{"text_format":"1","workbook":"xlsx","n_sheets":9,"sheets":["Welcome Help","Ranks","Portfolio Page","Single Co Tear Sheet","GARP Model","Top 100 By Sector","Glossary","Appendix","Ref"],"not_rendered":{"charts":0,"images":18,"macros":1,"external_links":6,"defined_names":63,"comments":4,"pivot_tables":0},"unopened":[],"bounds":{"document_bytes":16777216,"sheet_cells":100000,"rows_first":2000,"rows_last":500,"rows_between":2000,"halvings":0,"cell_chars":16384,"cell_head_chars":4096},"cells_cut":0,"cells_raw":0,"read":"whole","date_system":"1900"}

{"sheet":"Welcome Help","index":0,"n_rows":24,"n_cols":1,"rows_kept":24,"cut":false,"hidden":false,"merged":[]}
[]
[]
[]
[]
[]
["Factor Description and Welcome"]
["For Institutional Use Only"]
["Our objective is to present a comprehensive explanation of certain variables considered to help screen our universe of Small & Mid cap stocks. Our screen and process has been specifically built by former buysiders for buysiders to optimize stock selection among companies with ~$1 billion-$7 billion in market cap by considering an atypically large number of diverse fundamental inputs"]
["While we detail many of the fundamental factors considered in the screening process, users should be mindful that much of the process’s strength stems from the intermittent interaction of these variables. On an individual basis all these factors should be considered for informational purposes only.  We hope you find this document useful and feel free to contact us with any questions."]
["While the process involves more than 80 individual factors, they are divided into five common-sense categories:"]
[]
[]
[]
[]
[]
[]
[]
["We like quality. Our objective in designing the approach was to find undiscovered value by ferreting out atypically high-quality businesses for their level of relative valuation. There’s an old saw in the industry that “a growth investor studies the income statement, glances at the balance sheet and forgets valuation while a value investor starts with valuation, studies the balance sheet and looks at the income statement.”  Our methodology works with the knowledge that there is excellence in both approaches."]
["In an ideal world, our fundamental process would produce nothing but inexpensive, fast growing companies with vaults for balance sheets, income statements and cash flow metrics that point to conservative accounting, track records of consistently efficient cash deployment, and idiosyncratic price action that reflects an improving market opinion of the company."]
["Unfortunately, these factors rarely, if ever, coalesce.  So unlike traditional quantitative models which we have observed to largely begin and end in either value or momentum, our process works backwards, assessing quality across dozens of metrics and then favoring shares whose quality may be mispriced.  We believe this approach closely mirrors the process pursued by most fundamental analysts who seek to arbitrage their incremental units of knowledge from their detailed study of fundamentals against the publicly recognized valuation and price."]
["In practical terms, the screen allows us to compare the relative merits of every company in its universe with every other company.  A great investor once said “The investor who wins is the one who turns over the most rocks.”  We agree emphatically and believe our approach does a solid job turning over the “rocks” in the ~$1 billion-$7 billion universe at once."]
["Our objective is to maximize efficiency and minimize the time you spend sifting through stocks that appear cheap, but are of low quality or represent over-priced growth. We believe that shopping in the right neighborhood is the most effective method to optimize your time, amplify your abilities as a portfolio manager and increase your chances of finding stocks accretive to your shareholders’ returns. "]
["Thank you for your consideration of our approach and efforts to optimize your time and enhance your stock selection."]
["555-555-5555"]

{"sheet":"Ranks","index":1,"n_rows":1531,"n_cols":132,"rows_kept":562,"cut":true,"hidden":false,"merged":[],"bounds":{"rows_first":250,"rows_last":62,"rows_between":250,"halvings":3}}
[]
[null,null,null,"March 2026 Small & Mid Cap Rankings Tool"]
[null,null,null,"For Institutional Use Only"]
[null,null,null,"Current GARP Model picks in green",null,null,null,null,null,null,null,null,null,null,null,null,null,null,null,null,null,null,null,null,null,null,null,null,null,null,null,null,null,null,null,null,null,"Valuation Quality",null,null,null,null,null,null,null,null,null,null,null,null,null,null,null,null,null,null,null,"Balance Sheet Quality",null,null,null,null,null,null,null,null,null,null,null,null,null,null,null,null,null,null,null,null,null,"Earnings Quality",null,null,null,null,null,null,null,null,null,null,null,null,null,null,null,null,null,null,null,null,null,null,null,null,null,null,"Analyst Quality",null,null,null,null,"Market Quality",null,null,null,null,null,null,null,null,null,null,null,null,"Trading Quality"]
[null,"MATCH","Date","Agg Rank","Rank Chg","Portfolio Stock","New Stock","Non Qtr Flag","GVKey","IID","Status","Ticker","Name","Exchange Code","Exchange Name","Sector Code","Sector Name","Group Code","Group Name","Industry Code","Industry Name","Sub-Industry Code","Sub-Industry Name","Fisc Yr","Fisc Qtr","Price","Shares Outstanding","Market Cap","Earnings Report Date","Proper Peers","Top Miss or Top Beat","Valuation Quintile","Balance Sheet Quintile","Earnings Quality Quintile","Analyst Quality Quintile","Market Quality Quintile","Trading Quality Quintile","Current Div to Price","Current Book to Price","Current Sales to EV","Current Earn to Price","E/P 3 Yr Avg","E/P 5 Yr Avg","Current FCF/P","FCF/P 3-Yr Avg","FCF/P 5-Yr Avg","Current FCF/EV","FCF/EV 3 Yr Avg","FCF/EV 5 Yr Avg","Earn 1 Yr Grth","Earn 3 Yr Grth (Inv)","Earn 5 Yr Grth (Inv)","Sales 1 Yr Grth (Inv)","Sales 3 Yr Grth (Inv)","Sales 5 Yr Grth (Inv)","Theoretical Growth","Theoretical Growth Diff","Current CAPX/Total Assets (Inv)","CAPX/Total Assets 3 Yr Chg (Inv)","Div 1 Yr Grth","Div 3 Yr Grth","Div 5 Yr Grth","Current Buyback Yield","Current GW/Total Assets (Inv)","Current Debt/EBITDA (Inv)","Current Net Cash/EV","Current R&D/Sales","Current CAPX/Sales (Inv)","CAPX/Sales 3 Yr Chg (Inv)","CAPX/Sales 5 Yr Chg (Inv)","WCap 3 Yr Grth (Inv)","WCap 5 Yr Grth (Inv)","Quick Ratio","Current Ratio","Rec/Sales 1 Yr Chg (Inv)","Rec/Sales 3 Yr Chg (Inv)","Rec/Sales 5 Yr Chg (Inv)","BV Grth 3 Yr Disp (Inv)","BV Grth 5 Yr Disp (Inv)","Curr. Accruals/Assets (Inv)","Inv/Sales 1 Yr Chg (Inv)","Inv/Sales 3 Yr Chg (Inv)","Inv/Sales 5 Yr Chg (Inv)","Current Op Margin","Current Gross Margin","Current Inv/Sales","Op Margin 1 Yr Chg","Op Margin 3 Yr Chg","Op Margin 5 Yr Chg","Gross Margin 1 Yr Chg","Gross Margin 3 Yr Chg","Gross Margin 5 Yr Chg","Current ROA","ROA 1 Yr Chg","ROA 3 Yr Chg","ROA 5 Yr Chg","Current ROE","ROE 1 Yr Chg","ROE 3 Yr Chg","ROE 5 Yr Chg","ROA 5 Yr Disp (Inv)","ROE 5 Yr Disp (Inv)","Current XI/Net Income (Inv)","Current Dep/CAPX","Dep/CAPX 3 Yr Avg","Dep/CAPX 5 Yr Avg","LTG Est (Inv)","Shr of Est Rising","LTG Disp (Inv)","Surp Score","PEG Ratio (Inv)","Volume (Inv)","3-Mo Mom","6-Mo Mom","9-Mo Mom","12-Mo Mom","36-Mo Mom (Inv)","3-Mo Bat Avg","6-Mo Bat Avg","9-Mo Bat Avg","12-Mo Bat Avg","3-Mo/6-Mo Breakout","6-Mo/12-Mo Breakout","CAPM Ret Diff (Inv)","Negative 24-Mo Skewness","24-Mo Kurtosis (Inv)","Extreme 6-Mo Momentum","Extreme 24-Mo Skewness","Extreme 24-Mo Kurtosis","Low Mom High Vol","Broken Chart","Hi 6-Mo Mom/Hi 9-Mo Bat Avg"]
["Index",null,"caldt","drank_agg_score","drank_agg_score_chg","activeflag","newflag","np_nonqtrly","gvkey","iid","secstat","tic","conm","exchg","exchg_desc","gsector","gsector_desc","ggroup","ggroup_desc","gind","gind_desc","gsubind","gsubind_desc","qtryr","fqtr","prccm","cshoq","np_mcap","np_qtr_reportdt","wm_flag","soc_flag","quint_v_score","quint_b_score","quint_e_score","quint_a_score","quint_m_score","quint_i_score","apct_NP_DIVYLD_I","apct_NP_SEQ_P","apct_NP_SALE_EV","apct_NP_IB_P","apct_NP_IB_P_3YR_AVG","apct_NP_IB_P_5YR_AVG","apct_NP_FCF_P","apct_NP_FCF_P_3YR_AVG","apct_NP_FCF_P_5YR_AVG","apct_NP_FCF_EV_1YR_AVG","apct_NP_FCF_EV_3YR_AVG","apct_NP_FCF_EV_5YR_AVG","apct_IB_1YR_GRTH","dpct_IB_3YR_GRTH","dpct_IB_5YR_GRTH","dpct_SALE_1YR_GRTH","dpct_SALE_3YR_GRTH","dpct_SALE_5YR_GRTH","apct_NP_GROWTH_RATE","apct_NP_GROWTH_RATE_DIFF","dpct_NP_CAPX_AT","dpct_NP_CAPX_AT_3YR_CHG","apct_DV_1YR_GRTH","apct_DV_3YR_GRTH","apct_DV_5YR_GRTH","apct_NP_BBYLD_D","dpct_NP_GDWL_AT","dpct_NP_DEBT_OIBDP","apct_NP_NETCASH_EV","apct_NP_XRD_SALE","dpct_NP_CAPX_SALE","dpct_NP_CAPX_SALE_3YR_CHG","dpct_NP_CAPX_SALE_5YR_CHG","dpct_NP_WCAP_3YR_GRTH","dpct_NP_WCAP_5YR_GRTH","apct_NP_QUICK_RATIO","apct_NP_CURRENT_RATIO","dpct_NP_RECT_SALE_1YR_CHG","dpct_NP_RECT_SALE_3YR_CHG","dpct_NP_RECT_SALE_5YR_CHG","dpct_NP_SEQ_1YR_GRTH_3YR_STDEV","dpct_NP_SEQ_1YR_GRTH_5YR_STDEV","dpct_NP_ACCRUAL_AT","dpct_NP_INVT_SALE_1YR_CHG","dpct_NP_INVT_SALE_3YR_CHG","dpct_NP_INVT_SALE_5YR_CHG","apct_NP_OP_MARGIN","apct_NP_G_MARGIN","apct_NP_INVT_SALE","apct_NP_OP_MARGIN_1YR_CHG","apct_NP_OP_MARGIN_3YR_CHG","apct_NP_OP_MARGIN_5YR_CHG","apct_NP_G_MARGIN_1YR_CHG","apct_NP_G_MARGIN_3YR_CHG","apct_NP_G_MARGIN_5YR_CHG","apct_NP_ROA","apct_NP_ROA_1YR_CHG","apct_NP_ROA_3YR_CHG","apct_NP_ROA_5YR_CHG","apct_NP_ROE","apct_NP_ROE_1YR_CHG","apct_NP_ROE_3YR_CHG","apct_NP_ROE_5YR_CHG","dpct_NP_ROA_5YR_STDEV","dpct_NP_ROE_5YR_STDEV","dpct_NP_XIDO_NI","apct_NP_DP_CAPX","apct_NP_DP_CAPX_3YR_AVG","apct_NP_DP_CAPX_5YR_AVG","dpct_EPSEST_MEAN_F_LTG","apct_NP_EPSEST_RISING","dpct_EPSEST_STDEV_F_LTG","apct_EPSSURP_FQ_SCORE","apct_NP_GEP","dpct_NP_VOLPCT","apct_MOM3","apct_MOM6","apct_MOM9","apct_MOM12","dpct_MOM36","apct_MOM3_BA","apct_MOM6_BA","apct_MOM9_BA","apct_MOM12_BA","apct_BREAKOUT_MOM3_6","apct_BREAKOUT_MOM6_12","dpct_NP_CAPM_DIFF","NEG_MOM24_SKEW","dpct_MOM24_KURT","NP_MOM6_X_H","NP_MOM24SKEW_X_H","NP_MOM24KURT_X_H","NP_MOM6_VOL_XN2_L","NP_MOM6_MOM36_XN2_L","NP_MOM6_MOM9BA_XN2_H"]
[1,{"$f":"IF(ISNA(MATCH(L7,'GARP Model'!$D$23:$D$32,0)),0,1)","v":1},"2026-02-28",1,1,"Y","","",39676,1,"A","IHS","IHS HOLDING LIMITED",11,"NYSE",50,"Communication Services",5010,"Telecommunication Services",501010,"Diversified Telecommunication Services",50101020,"Integrated Telecommunication Services",2025,3,8,335.52100000000002,2684.1680000000001,"","","",5,4,4,2,5,3,0,3,41,98,0,0,98,95,95,93,84,86,87,"","",75,79,"",53,15,21,93,"","","",36,38,34,10,"",14,94,"",96,"",50,36,94,97,"",7,9,84,25,74,"",95,83,13,81,78,"",55,76,"",89,99,91,"",53,96,89,"",4,2,100,67,54,57,19,"",100,"",98,81,70,65,77,94,64,100,89,90,96,45,2,95,0,22,0,0,0,0,0,0]
[{"$f":"A7+1","v":2},{"$f":"IF(ISNA(MATCH(L8,'GARP Model'!$D$23:$D$32,0)),0,1)","v":1},"2026-02-28",2,7,"Y","","",39124,1,"A","TBLA","TABOOLA.COM LTD",14,"NASDAQ",50,"Communication Services",5020,"Media & Entertainment",502030,"Interactive Media & Services",50203010,"Interactive Media & Services",2025,3,3.17,290.89299999999997,922.13081,"",2,1,5,5,3,5,5,3,0,88,96,45,17,18,94,81,78,95,87,84,91,"","",34,42,"",23,10,35,23,"","","",99,9,78,57,45,51,63,"",89,"",29,16,74,15,"",33,43,84,62,56,"",25,38,0,72,63,"",68,33,"",46,83,74,"",34,79,73,"",61,74,100,75,84,84,16,100,100,89,66,91,60,67,61,46,67,80,89,75,86,34,76,52,100,20,0,0,0,0,0,0]
[{"$f":"A8+1","v":3},{"$f":"IF(ISNA(MATCH(L9,'GARP Model'!$D$23:$D$32,0)),0,1)","v":0},"2026-02-28",3,0,"Y","","",28590,1,"A","BCO","BRINKS CO",11,"NYSE",20,"Industrials",2020,"Commercial & Professional Services",202010,"Commercial Services & Supplies",20201080,"Security & Alarm Services",2025,3,116.77,41.6,4857.6319999999996,"","","",5,5,5,3,4,3,16,8,73,51,49,48,74,69,68,65,61,59,72,49,4,61,55,59,96,"",28,33,45,44,55,85,22,20,20,"",32,38,26,65,29,46,31,80,76,81,10,16,67,62,56,68,48,33,0,32,55,63,39,61,68,53,63,42,62,97,91,13,95,85,20,5,51,57,60,"",48,"",91,"",64,66,81,67,76,21,100,98,90,96,17,56,77,0,17,0,0,0,0,0,100]
[4,{"$f":"IF(ISNA(MATCH(L10,'GARP Model'!$D$23:$D$32,0)),0,1)","v":0},"2026-02-28",4,1,"Y","","",17150,1,"A","WBS","WEBSTER FINANCIAL CORP",11,"NYSE",40,"Financials",4010,"Banks",401010,"Banks",40101015,"Regional Banks",2025,3,72.13,164.81700000000001,11888.25021,"","","",5,5,4,4,3,3,45,79,48,82,80,72,90,80,77,92,85,84,59,18,18,53,11,9,42,"",84,45,23,64,75,77,52,56,55,"",70,50,63,"","","","","","","",22,21,23,"","","",82,72,"",69,22,39,75,8,4,39,53,56,45,59,62,67,49,94,87,100,60,77,80,"",74,"",62,"",7,69,55,65,56,43,100,89,97,86,60,47,52,0,81,0,0,0,0,0,0]
[5,{"$f":"IF(ISNA(MATCH(L11,'GARP Model'!$D$23:$D$32,0)),0,1)","v":0},"2026-02-28",5,3,"Y","","",63643,1,"A","ANF","ABERCROMBIE & FITCH  -CL A",11,"NYSE",25,"Consumer Discretionary",2550,"Consumer Discretionary Distribution & Retail",255040,"Specialty Retail",25504010,"Apparel Retail",2025,3,97.8,45.856000000000002,4484.7168000000001,"","","",5,5,5,3,2,3,0,39,86,95,84,75,74,75,67,79,80,73,41,1,9,44,34,45,96,"",13,9,"","",8,95,100,74,50,"",30,32,35,26,69,15,28,47,57,51,29,35,35,70,91,90,50,74,55,21,81,80,16,74,25,95,28,90,91,96,30,91,93,27,29,100,20,30,42,"",51,"",69,"",14,90,34,65,22,7,80,31,75,48,97,77,20,0,64,0,0,0,0,0,0]
[6,{"$f":"IF(ISNA(MATCH(L12,'GARP Model'!$D$23:$D$32,0)),0,1)","v":0},"2026-02-28",6,-2,"Y","","",28742,1,"A","BWA","BORGWARNER INC",11,"NYSE",25,"Consumer Discretionary",2510,"Automobiles & Components",251010,"Automobile Components",25101010,"Automotive Parts & Equipment",2025,4,57.57,207.05699999999999,11920.271489999999,"","","",5,5,5,5,3,3,23,56,86,42,67,71,80,66,66,83,70,71,27,77,79,66,83,60,24,32,28,91,86,16,20,81,30,64,46,36,38,76,74,29,37,56,51,39,56,91,50,46,80,73,79,91,46,22,35,53,51,35,50,43,38,49,35,25,28,39,39,30,30,73,75,100,58,38,44,58,74,100,84,17,24,57,72,80,82,54,80,62,75,70,26,16,84,0,90,0,0,0,0,0,0]
[7,{"$f":"IF(ISNA(MATCH(L13,'GARP Model'!$D$23:$D$32,0)),0,1)","v":0},"2026-02-28",7,"","Y","","",26016,1,"A","UVE","UNIVERSAL INSURANCE HLDGS",11,"NYSE",40,"Financials",4030,"Insurance",403010,"Insurance",40301040,"Property & Casualty Insurance",2025,3,35.17,28.047999999999998,986.44816000000003,"","","",5,5,4,5,5,3,44,60,98,96,72,58,97,96,94,99,99,99,79,9,6,55,39,51,86,"",77,61,28,23,23,74,72,79,98,"",86,60,75,"","","","","","","",34,42,48,"","","","",8,"","","","",84,94,88,65,69,82,71,89,81,94,85,70,33,100,"",55,29,"",100,"","","",91,31,73,55,85,12,80,98,90,99,18,11,86,100,78,0,0,0,0,0,0]
[8,{"$f":"IF(ISNA(MATCH(L14,'GARP Model'!$D$23:$D$32,0)),0,1)","v":0},"2026-02-28",8,7,"Y","","",66379,1,"A","PRDO","PERDOCEO EDUCATION CORP",14,"NASDAQ",25,"Consumer Discretionary",2530,"Consumer Services",253020,"Diversified Consumer Services",25302010,"Education Services",2025,4,33.35,62.478000000000002,2083.6412999999998,"","","",5,5,5,5,4,3,37,56,67,82,80,76,82,72,74,93,89,90,51,21,62,15,49,75,70,50,63,33,81,"","",88,23,88,92,"",71,71,60,33,35,86,85,61,80,78,81,80,55,63,30,42,73,89,3,36,74,69,7,20,16,93,65,72,15,79,60,67,23,71,89,100,88,87,82,37,100,100,"",87,74,35,50,56,58,16,80,89,75,86,36,38,62,0,45,0,0,0,0,0,0]
[9,{"$f":"IF(ISNA(MATCH(L15,'GARP Model'!$D$23:$D$32,0)),0,1)","v":0},"2026-02-28",9,7,"Y","","",16981,1,"A","OFG","OFG BANCORP",11,"NYSE",40,"Financials",4010,"Banks",401010,"Banks",40101015,"Regional Banks",2025,3,40.08,44.265000000000001,1774.1412,"","","",4,5,4,3,3,3,58,78,68,94,91,89,81,88,75,89,94,86,46,34,17,57,32,45,64,"",78,63,76,90,85,87,65,73,79,"",57,89,71,"","","","","","","",74,79,13,"","","",91,82,"",10,12,67,10,10,39,45,46,53,53,75,49,52,70,93,85,100,59,54,53,"",26,"",93,"",81,43,27,29,37,34,80,62,31,48,78,38,38,0,10,0,0,0,0,0,0]
[10,{"$f":"IF(ISNA(MATCH(L16,'GARP Model'!$D$23:$D$32,0)),0,1)","v":0},"2026-02-28",10,18,"Y","","",43585,1,"A","HG","HAMILTON INSURANCE GROUP LTD",11,"NYSE",40,"Financials",4030,"Insurance",403010,"Insurance",40301040,"Property & Casualty Insurance",2025,3,31.59,98.361000000000004,3107.22399,"","","",5,5,4,4,5,3,0,82,94,97,94,94,97,95,95,99,98,99,34,"","",17,"","",79,"",99,"","","","",79,100,94,98,"",99,"","","","","","","","","",91,96,48,"","","",72,45,"",12,"","",8,"","",70,27,"","",80,25,"","",83,80,100,"","","","",62,"",71,"",80,71,71,71,80,"",80,89,75,86,35,19,82,0,33,0,0,0,0,0,0]
[11,{"$f":"IF(ISNA(MATCH(L17,'GARP Model'!$D$23:$D$32,0)),0,1)","v":1},"2026-02-28",11,3,"Y","","",327115,1,"A","INTR","INTER & CO INC",14,"NASDAQ",40,"Financials",4010,"Banks",401010,"Banks",40101010,"Diversified Banks",2025,4,8.7100000000000009,441.322,3843.91462,"","","",5,5,4,2,4,3,25,57,72,73,71,72,98,99,99,98,98,99,"","","",4,"","",70,11,77,"","","","",42,65,42,53,"",77,"","","","","","","","","","","",65,"","","",82,52,"",11,"","",7,"","",43,"","","",70,"","","","","",100,82,86,86,10,62,100,32,94,78,37,80,65,89,7,37,62,54,86,14,9,90,100,38,0,0,0,0,0,0]
[12,{"$f":"IF(ISNA(MATCH(L18,'GARP Model'!$D$23:$D$32,0)),0,1)","v":0},"2026-02-28",12,42,"Y","","",140988,1,"A","TNET","TRINET GROUP INC",11,"NYSE",20,"Industrials",2020,"Commercial & Professional Services",202020,"Professional Services",20202010,"Human Resource & Employment Services",2025,4,38.08,47.378,1804.1542400000001,"","","",5,5,4,3,1,3,56,6,99,86,96,97,89,96,97,98,99,99,35,72,78,74,70,74,99,"",48,68,93,"","",95,34,54,98,"",65,34,30,72,68,30,17,5,10,8,4,7,45,62,56,68,23,16,0,24,25,23,26,23,32,66,44,17,14,99,94,98,99,52,1,100,35,42,46,"",26,"",38,"",35,38,21,9,10,77,80,62,31,26,82,82,11,100,47,0,0,0,0,0,0]
[13,{"$f":"IF(ISNA(MATCH(L19,'GARP Model'!$D$23:$D$32,0)),0,1)","v":0},"2026-02-28",13,-12,"Y","","",33767,1,"A","SONO","SONOS INC",14,"NASDAQ",25,"Consumer Discretionary",2520,"Consumer Durables & Apparel",252010,"Household Durables",25201010,"Consumer Electronics",2026,1,15.4,120.861,1861.2593999999999,"","","",4,5,5,4,3,3,0,32,83,25,22,38,63,49,58,80,63,74,80,93,89,76,88,88,"","",40,93,"","","",84,39,85,87,62,63,79,63,76,77,40,38,15,23,50,70,25,90,80,94,25,22,60,37,87,58,37,54,69,52,23,86,26,11,23,87,32,15,21,30,100,79,50,46,99,100,100,"","",25,13,74,74,46,81,37,89,90,70,11,85,33,0,60,0,0,0,0,0,0]
[14,{"$f":"IF(ISNA(MATCH(L20,'GARP Model'!$D$23:$D$32,0)),0,1)","v":0},"2026-02-28",14,11,"Y","","",28967,1,"A","QCRH","QCR HOLDINGS INC",14,"NASDAQ",40,"Financials",4010,"Banks",401010,"Banks",40101015,"Regional Banks",2025,3,86.5,16.838999999999999,1456.5735,"",1,"",5,4,5,4,5,3,4,76,42,85,83,81,91,95,91,88,95,91,47,34,39,79,16,30,64,"",64,28,8,18,20,53,61,37,32,"",17,61,6,"","","","","","","",93,97,26,"","","",77,69,"",66,11,21,59,5,8,42,47,52,43,64,45,48,45,98,95,100,3,7,8,"",62,"",71,"",90,79,70,64,61,27,100,89,75,70,46,62,61,0,20,0,0,0,0,0,0]
[15,{"$f":"IF(ISNA(MATCH(L21,'GARP Model'!$D$23:$D$32,0)),0,1)","v":0},"2026-02-28",15,144,"Y","Y","",7116,1,"A","MAT","MATTEL INC",14,"NASDAQ",25,"Consumer Discretionary",2520,"Consumer Durables & Apparel",252020,"Leisure Products",25202010,"Leisure Products",2025,3,16.95,310.89999999999998,5269.7550000000001,"","","",5,5,3,1,4,3,0,53,76,85,80,88,78,83,77,74,82,76,29,62,0,80,83,79,84,87,34,72,"","","",95,23,43,29,33,39,29,32,68,46,34,36,73,18,79,57,11,41,10,82,37,47,65,61,21,32,60,49,67,53,79,24,29,78,84,26,24,80,37,24,100,37,40,47,77,26,35,2,39,15,64,65,57,56,66,80,89,75,70,40,62,58,0,91,0,0,0,0,0,0]
[16,{"$f":"IF(ISNA(MATCH(L22,'GARP Model'!$D$23:$D$32,0)),0,1)","v":0},"2026-02-28",16,-9,"Y","","",1076,1,"A","PRG","PROG HOLDINGS INC",11,"NYSE",40,"Financials",4020,"Financial Services",402020,"Consumer Finance",40202010,"Consumer Finance",2025,4,35.21,39.576000000000001,1393.4709600000001,"",2,"",5,5,5,5,4,3,29,63,93,88,92,94,96,93,93,96,94,94,22,36,79,80,81,90,74,"",64,38,42,"",62,81,26,91,40,"",82,39,82,"","","","","","","",67,40,83,"","","",98,88,"",39,40,11,2,13,4,84,12,63,6,80,12,53,21,39,61,2,99,99,99,"",100,"",98,"",44,61,36,51,17,36,80,62,75,48,79,83,18,100,16,0,0,0,0,0,0]
[17,{"$f":"IF(ISNA(MATCH(L23,'GARP Model'!$D$23:$D$32,0)),0,1)","v":0},"2026-02-28",17,12,"Y","","",6649,1,"A","LEG","LEGGETT & PLATT INC",11,"NYSE",25,"Consumer Discretionary",2520,"Consumer Durables & Apparel",252010,"Household Durables",25201020,"Home Furnishings",2025,3,11.68,135.4,1581.472,"","","",5,4,5,2,3,3,35,69,94,97,9,63,94,96,96,87,92,93,88,65,70,88,89,89,86,"",49,84,4,6,9,44,23,30,17,"",64,62,68,61,33,41,53,69,52,67,24,33,39,86,84,32,29,19,59,44,28,18,60,40,26,78,97,41,54,88,98,55,61,17,12,100,71,69,74,"",42,"",20,"",41,83,66,51,57,97,100,89,75,70,63,61,63,100,29,0,0,0,0,0,0]
[18,{"$f":"IF(ISNA(MATCH(L24,'GARP Model'!$D$23:$D$32,0)),0,1)","v":0},"2026-02-28",18,22,"Y","","",38647,1,"A","TASK","TASKUS INC",14,"NASDAQ",20,"Industrials",2020,"Commercial & Professional Services",202020,"Professional Services",20202030,"Data Processing & Outsourced Services",2025,3,10.62,90.397000000000006,960.01613999999995,"","","",5,5,4,3,2,3,0,67,87,86,70,49,75,83,66,80,88,72,75,18,"",19,50,"",74,"",14,6,"",5,"",75,23,72,51,"",24,62,"",30,"",75,69,72,34,"",57,60,65,62,56,"",56,46,0,44,65,"",20,26,"",84,76,72,"",75,73,70,"",30,37,100,34,66,55,"",26,"",55,"",82,10,3,9,10,90,37,31,31,48,90,35,10,0,66,0,0,0,0,0,0]
[19,{"$f":"IF(ISNA(MATCH(L25,'GARP Model'!$D$23:$D$32,0)),0,1)","v":0},"2026-02-28",19,-9,"Y","","",38038,1,"A","SNCY","SUN CONTY AIR HLD INC",14,"NASDAQ",20,"Industrials",2030,"Transportation",203020,"Passenger Airlines",20302010,"Passenger Airlines",2025,4,19.68,53.222999999999999,1047.4286400000001,"","","",5,5,3,4,4,3,0,68,79,66,73,69,72,50,27,70,49,27,43,8,"",55,45,"",52,"",22,95,"","","",66,32,51,32,"",21,95,"",11,"",17,8,22,33,"",85,88,63,34,30,"",55,34,6,28,69,"",34,71,"",58,44,68,"",53,43,71,"",73,68,100,52,28,16,"",71,"",62,"",22,93,83,83,45,71,100,98,90,70,41,93,40,100,88,0,0,0,0,0,100]
[20,{"$f":"IF(ISNA(MATCH(L26,'GARP Model'!$D$23:$D$32,0)),0,1)","v":0},"2026-02-28",20,0,"Y","","",127377,1,"A","BGC","BGC GROUP INC",14,"NASDAQ",40,"Financials",4020,"Financial Services",402030,"Capital Markets",40203020,"Investment Banking & Brokerage",2025,3,9.52,475.39,4525.7128000000002,"","","",5,5,5,5,2,3,15,29,62,53,42,43,76,61,67,76,62,68,70,31,18,14,28,67,71,31,50,44,90,94,12,87,35,22,35,"",49,68,83,"","","","","","","",51,56,54,"","","",43,11,"",54,62,44,60,63,49,55,50,54,58,81,71,48,72,81,60,100,57,55,57,22,100,100,"",69,91,32,30,26,37,18,80,62,54,48,61,45,41,0,95,0,0,0,0,0,0]
[21,{"$f":"IF(ISNA(MATCH(L27,'GARP Model'!$D$23:$D$32,0)),0,1)","v":0},"2026-02-28",21,10,"Y","","",34873,1,"A","LYFT","LYFT INC",14,"NASDAQ",20,"Industrials",2030,"Transportation",203040,"Ground Transportation",20304040,"Passenger Ground Transportation",2025,4,13.84,400.85599999999999,5547.8470399999997,"","","",5,5,2,3,3,3,0,67,91,99,22,5,95,69,30,97,82,32,100,"",19,31,24,15,98,98,59,89,"","","",96,47,13,80,42,76,82,85,9,95,11,4,56,64,29,10,15,1,62,56,68,16,45,0,70,92,95,45,71,83,99,97,99,99,98,97,99,98,7,5,100,78,58,62,83,67,0,55,92,3,11,62,62,67,65,37,62,54,48,15,32,48,0,76,0,0,0,0,0,0]
[22,{"$f":"IF(ISNA(MATCH(L28,'GARP Model'!$D$23:$D$32,0)),0,1)","v":0},"2026-02-28",22,-10,"Y","","",260893,1,"A","BLKB","BLACKBAUD INC",14,"NASDAQ",45,"Information Technology",4510,"Software & Services",451030,"Software",45103010,"Application Software",2025,3,48.54,48.058,2332.7353199999998,"","","",5,5,3,5,1,3,0,7,53,8,16,20,86,80,80,85,81,81,2,99,98,75,62,73,"","",75,66,"","",8,96,2,40,36,52,82,72,83,60,40,13,5,76,67,79,20,22,96,62,56,68,71,79,0,69,85,82,52,74,61,12,4,9,4,1,0,1,1,35,4,100,96,97,96,"",100,"",44,"",50,13,12,15,12,76,37,9,12,2,68,60,14,100,93,0,0,0,0,0,0]
[23,{"$f":"IF(ISNA(MATCH(L29,'GARP Model'!$D$23:$D$32,0)),0,1)","v":0},"2026-02-28",23,139,"Y","","",39225,1,"A","LZ","LEGALZOOM.COM INC",14,"NASDAQ",20,"Industrials",2020,"Commercial & Professional Services",202020,"Professional Services",20202020,"Research & Consulting Services",2025,3,7.03,179.51499999999999,1261.99045,"","","",5,4,5,3,3,3,0,20,75,38,34,23,87,72,70,94,86,85,36,"","",45,53,"",64,34,9,69,"",90,"",63,19,92,88,"",32,21,"",98,"",19,9,26,26,"",10,14,97,62,56,"",25,81,0,14,86,"",71,58,"",65,19,94,"",63,6,94,"",12,14,100,53,40,43,28,75,100,22,27,18,17,30,49,40,64,37,31,31,26,39,40,33,0,87,0,0,0,0,0,0]
[24,{"$f":"IF(ISNA(MATCH(L30,'GARP Model'!$D$23:$D$32,0)),0,1)","v":0},"2026-02-28",24,"","Y","Y","",181269,1,"A","GPRE","GREEN PLAINS INC",14,"NASDAQ",10,"Energy",1010,"Energy",101020,"Oil, Gas & Consumable Fuels",10102030,"Oil & Gas Refining & Marketing",2025,4,13.73,69.828000000000003,958.73843999999997,"","","",5,5,4,3,4,3,0,80,95,7,5,4,70,13,4,71,13,5,19,"",72,94,96,84,"","",42,95,"",5,8,77,62,4,37,"",58,90,88,81,52,37,43,61,38,36,49,46,88,88,64,94,15,6,29,58,59,50,68,70,60,14,19,34,30,15,22,47,44,53,56,100,78,40,24,"",77,"",16,"",16,58,77,96,71,98,80,89,97,86,20,61,69,0,61,0,0,0,0,0,0]
[25,{"$f":"IF(ISNA(MATCH(L31,'GARP Model'!$D$23:$D$32,0)),0,1)","v":0},"2026-02-28",25,28,"Y","Y","",158587,1,"A","TBBK","BANCORP INC",14,"NASDAQ",40,"Financials",4010,"Banks",401010,"Banks",40101015,"Regional Banks",2025,3,52.49,44.529000000000003,2337.3272099999999,"","","",5,4,5,1,2,3,0,43,45,90,86,80,93,79,53,94,83,56,52,16,17,11,7,10,93,"",87,65,"","","",97,74,78,46,"",85,73,53,"","","","","","","",67,80,28,"","","",90,72,"",6,12,9,4,5,2,54,51,63,56,93,74,80,79,89,66,100,66,14,20,"",26,"",1,"",42,19,24,50,38,27,37,31,54,48,52,34,36,0,39,0,0,0,0,0,0]
[26,{"$f":"IF(ISNA(MATCH(L32,'GARP Model'!$D$23:$D$32,0)),0,1)","v":0},"2026-02-28",26,92,"","","",38915,1,"A","CXM","SPRINKLR INC",11,"NYSE",45,"Information Technology",4510,"Software & Services",451030,"Software",45103010,"Application Software",2025,3,5.82,245.81200000000001,1430.6258399999999,"","","",5,5,3,5,1,3,0,50,80,83,56,33,76,55,44,92,78,59,90,"","",48,33,"",86,"",48,70,"","","",94,50,85,95,50,55,61,"",70,"",54,39,88,83,"",37,49,37,62,56,"",27,84,0,66,88,"",9,30,"",90,88,93,"",85,87,91,"",19,29,100,45,38,34,"",100,"",96,"",57,11,6,12,13,87,37,9,31,26,82,39,18,100,83,0,0,0,0,0,0]
[27,{"$f":"IF(ISNA(MATCH(L33,'GARP Model'!$D$23:$D$32,0)),0,1)","v":0},"2026-02-28",27,-6,"Y","","",36550,1,"A","ACEL","ACCEL ENTERTAINMENT INC",11,"NYSE",25,"Consumer Discretionary",2530,"Consumer Services",253010,"Hotels, Restaurants & Leisure",25301010,"Casinos & Gaming",2025,3,11.36,83.766000000000005,951.58176000000003,"","","",5,5,5,3,4,3,0,38,86,62,68,61,53,61,60,52,60,59,45,64,17,43,30,7,79,"",8,12,"","","",76,36,47,32,"",21,17,88,50,44,71,63,36,47,43,57,32,74,64,58,39,45,33,4,39,38,56,61,42,29,65,37,23,81,79,27,15,87,44,28,100,29,31,38,"",26,"",50,"",94,57,18,36,42,51,80,31,54,48,94,22,42,0,79,0,0,0,0,0,0]
[28,{"$f":"IF(ISNA(MATCH(L34,'GARP Model'!$D$23:$D$32,0)),0,1)","v":1},"2026-02-28",28,109,"","","",33301,1,"A","DOCU","DOCUSIGN INC",14,"NASDAQ",45,"Information Technology",4510,"Software & Services",451030,"Software",45103010,"Application Software",2025,3,45.07,200.297,9027.3857900000003,"","",1,5,4,5,5,1,3,0,30,52,50,63,44,84,78,72,91,87,83,14,"",20,41,43,19,76,24,32,21,"","","",96,35,90,77,67,37,29,87,99,99,15,6,34,89,93,19,19,94,62,56,68,40,94,0,70,83,89,53,56,70,83,2,89,91,77,4,92,94,12,13,100,42,47,50,16,80,8,68,73,12,5,5,3,4,75,7,1,2,9,64,70,5,100,54,0,0,0,100,0,0]
[29,{"$f":"IF(ISNA(MATCH(L35,'GARP Model'!$D$23:$D$32,0)),0,1)","v":0},"2026-02-28",29,-12,"Y","","",189517,1,"A","ENVA","ENOVA INTERNATIONAL INC",11,"NYSE",40,"Financials",4020,"Financial Services",402020,"Consumer Finance",40202010,"Consumer Finance",2025,3,139.05000000000001,24.882999999999999,3459.9811500000001,"",1,"",5,5,5,5,4,3,0,48,33,86,75,83,99,99,98,97,96,95,77,29,51,18,25,23,89,"",60,42,"","","",89,48,21,11,"",46,74,59,"","","","","","","",64,23,96,"","","",90,52,"",73,75,56,80,81,15,71,70,37,11,88,83,71,20,30,41,100,34,35,36,"",100,"",73,"",43,91,86,83,81,6,100,98,90,70,25,62,79,0,35,0,0,0,0,0,100]
[30,{"$f":"IF(ISNA(MATCH(L36,'GARP Model'!$D$23:$D$32,0)),0,1)","v":0},"2026-02-28",30,22,"","","",26061,1,"A","MTCH","MATCH GROUP INC",14,"NASDAQ",50,"Communication Services",5020,"Media & Entertainment",502030,"Interactive Media & Services",50203010,"Interactive Media & Services",2025,3,31.6,239.011,7552.7475999999997,"","",1,5,5,5,3,1,3,48,4,46,80,80,76,88,83,84,84,81,82,35,4,64,73,65,80,85,65,56,70,"","","",95,2,35,29,53,64,67,69,6,27,43,29,48,12,18,9,8,80,62,56,68,75,85,0,42,44,61,42,58,31,92,26,86,15,91,13,"","",39,8,100,75,77,68,27,62,10,48,89,26,27,22,32,28,90,37,31,31,26,70,45,31,0,11,0,0,0,0,0,0]
[31,{"$f":"IF(ISNA(MATCH(L37,'GARP Model'!$D$23:$D$32,0)),0,1)","v":0},"2026-02-28",31,1,"Y","","",32884,1,"A","PAGS","PAGSEGURO DIGITAL LTD",11,"NYSE",40,"Financials",4020,"Financial Services",402010,"Financial Services",40201060,"Transaction & Payment Processing Services",2025,3,10.61,290.98200000000003,3087.3190199999999,"","","",5,5,4,4,5,3,26,84,67,95,92,90,97,75,62,98,90,80,38,27,64,96,86,40,61,51,51,74,"","","",88,69,"",91,"",13,85,91,17,18,44,30,"","","",48,57,53,"","","",7,5,"",2,4,2,2,7,3,54,38,42,9,71,40,62,24,76,94,100,65,62,42,46,51,15,36,92,49,74,82,46,84,54,80,89,75,96,19,22,84,0,69,0,0,0,0,0,0]
[32,{"$f":"IF(ISNA(MATCH(L38,'GARP Model'!$D$23:$D$32,0)),0,1)","v":0},"2026-02-28",32,335,"","","",29133,1,"A","ITRI","ITRON INC",14,"NASDAQ",45,"Information Technology",4520,"Technology Hardware & Equipment",452030,"Electronic Equipment, Instruments & Components",45203010,"Electronic Equipment & Instruments",2025,4,93.95,44.929000000000002,4221.0795500000004,"","","",5,5,5,5,1,3,0,51,66,78,60,43,77,51,47,82,57,51,64,"",8,82,41,84,81,62,63,69,"","","",69,9,42,56,46,73,54,73,12,21,51,43,26,50,66,57,44,35,78,81,29,49,47,42,70,82,76,82,85,84,85,67,84,85,82,54,86,83,38,42,100,72,78,82,32,51,19,93,86,10,30,12,16,32,28,37,9,12,48,91,21,29,0,14,0,0,0,100,0,0]
[33,{"$f":"IF(ISNA(MATCH(L39,'GARP Model'!$D$23:$D$32,0)),0,1)","v":0},"2026-02-28",33,8,"Y","","",17408,1,"A","NVGS","NAVIGATOR HOLDINGS LTD",11,"NYSE",10,"Energy",1010,"Energy",101020,"Oil, Gas & Consumable Fuels",10102040,"Oil & Gas Storage & Transportation",2025,3,21.02,65.537999999999997,1377.6087600000001,"",1,"",4,5,4,2,5,3,27,84,38,81,73,57,36,53,58,34,48,52,65,0,9,63,51,31,46,41,11,9,17,"","",81,100,42,23,"",6,1,1,96,91,32,20,77,51,57,98,71,47,71,68,85,92,65,11,19,77,82,20,85,85,68,63,77,75,53,63,77,72,68,77,100,28,46,66,48,26,100,25,77,95,62,60,70,57,37,80,89,90,70,47,50,61,0,73,0,0,0,0,0,0]
[34,{"$f":"IF(ISNA(MATCH(L40,'GARP Model'!$D$23:$D$32,0)),0,1)","v":1},"2026-02-28",34,-7,"Y","","",179974,1,"A","HCI","HCI GROUP INC",11,"NYSE",40,"Financials",4030,"Insurance",403010,"Insurance",40301040,"Property & Casualty Insurance",2025,3,176.42,12.959,2286.22678,"","","",5,4,5,5,3,3,17,47,75,88,56,46,94,83,74,98,97,95,71,0,10,40,20,11,89,50,75,64,81,52,58,38,100,93,98,"",81,70,81,"","","","","","","",14,21,75,"","","",85,60,"",85,94,92,89,96,92,86,71,88,73,89,21,94,69,44,23,100,60,49,35,16,100,100,79,96,74,8,53,35,73,8,37,89,75,86,16,18,74,100,90,0,0,0,0,0,0]
[35,{"$f":"IF(ISNA(MATCH(L41,'GARP Model'!$D$23:$D$32,0)),0,1)","v":0},"2026-02-28",35,10,"","","",61581,1,"A","SAM","BOSTON BEER INC  -CL A",11,"NYSE",30,"Consumer Staples",3020,"Food, Beverage & Tobacco",302010,"Beverages",30201010,"Brewers",2025,3,226.78,10.712999999999999,2429.4941399999998,"",2,"",5,4,5,3,2,3,0,49,82,54,52,56,75,69,55,86,82,69,56,6,79,75,74,73,60,60,22,85,"","","",93,39,95,79,"",41,81,90,55,47,44,44,63,58,69,60,53,88,90,88,89,40,64,24,45,71,15,85,85,50,82,73,81,11,61,68,76,19,34,52,100,58,55,32,60,26,100,48,33,33,39,37,14,25,91,80,62,54,70,59,74,34,100,74,0,0,0,0,0,0]
[36,{"$f":"IF(ISNA(MATCH(L42,'GARP Model'!$D$23:$D$32,0)),0,1)","v":0},"2026-02-28",36,0,"","","",64410,1,"A","KMX","CARMAX INC",11,"NYSE",25,"Consumer Discretionary",2550,"Consumer Discretionary Distribution & Retail",255040,"Specialty Retail",25504050,"Automotive Retail",2025,3,43.17,143.06200000000001,6175.9865399999999,"","","",5,5,5,3,1,3,0,88,90,80,83,92,98,66,12,82,37,20,43,58,77,71,86,61,47,59,43,29,"","","",95,67,2,2,"",56,25,24,72,62,6,49,59,52,52,83,72,73,88,23,89,17,10,44,41,48,24,48,56,26,47,51,43,24,49,52,43,16,78,56,100,13,14,19,70,62,8,70,56,19,46,11,5,3,88,37,31,12,2,96,84,3,100,67,0,0,0,100,0,0]
[37,{"$f":"IF(ISNA(MATCH(L43,'GARP Model'!$D$23:$D$32,0)),0,1)","v":0},"2026-02-28",37,2,"","","",32519,1,"A","MCB","METROPOLITAN BANK HLDNG",11,"NYSE",40,"Financials",4010,"Banks",401010,"Banks",40101015,"Regional Banks",2025,4,84.15,10.089,848.98934999999994,"","","",5,5,2,4,5,3,18,83,84,85,83,84,80,80,78,94,95,95,49,38,47,46,15,9,56,"",81,57,"","","",94,72,89,97,"",68,91,74,"","","","","","","",84,40,17,"","","",82,64,"",16,4,3,18,4,2,36,46,49,37,58,54,52,32,98,92,100,"","",8,"",100,"",80,"",33,92,73,71,80,33,100,89,75,70,77,21,78,0,60,0,0,0,0,0,0]
[38,{"$f":"IF(ISNA(MATCH(L44,'GARP Model'!$D$23:$D$32,0)),0,1)","v":0},"2026-02-28",38,-12,"","","",3592,1,"A","OMF","ONEMAIN HOLDINGS INC",11,"NYSE",40,"Financials",4020,"Financial Services",402020,"Consumer Finance",40202010,"Consumer Finance",2025,4,55.02,117.197,6448.1789399999998,"",1,"",5,5,5,3,3,3,92,62,31,95,90,95,99,99,98,90,88,88,75,52,68,39,48,72,51,23,99,55,32,36,16,69,46,8,2,"",99,49,49,"","","","","","","",95,84,75,"","","",89,51,"",78,29,18,85,26,21,55,65,37,33,88,82,34,48,74,45,100,"","","",25,26,11,38,96,42,61,59,69,69,21,80,89,90,70,48,25,67,0,86,0,0,0,0,0,0]
[39,{"$f":"IF(ISNA(MATCH(L45,'GARP Model'!$D$23:$D$32,0)),0,1)","v":0},"2026-02-28",39,88,"Y","","",35708,1,"A","PGNY","PROGYNY INC",14,"NASDAQ",35,"Health Care",3510,"Health Care Equipment & Services",351020,"Health Care Providers & Services",35102030,"Managed Health Care",2025,3,17.690000000000001,86.147000000000006,1523.9404300000001,"","","",5,5,5,4,1,3,0,48,86,53,54,59,88,84,73,95,94,88,42,31,3,32,15,6,60,64,40,10,"","","",81,56,91,90,4,69,25,36,23,10,75,70,91,96,86,25,32,93,62,56,68,23,22,0,57,69,63,67,59,63,81,27,36,74,61,32,46,66,28,43,100,5,13,15,65,32,100,79,26,33,85,34,29,45,85,37,9,12,26,96,37,48,0,14,0,0,0,0,0,0]
[40,{"$f":"IF(ISNA(MATCH(L46,'GARP Model'!$D$23:$D$32,0)),0,1)","v":0},"2026-02-28",40,-5,"Y","","",37752,1,"A","PLTK","PLAYTIKA HOLDING CORP",14,"NASDAQ",50,"Communication Services",5020,"Media & Entertainment",502020,"Entertainment",50202020,"Interactive Home Entertainment",2025,3,3.09,376.5,1163.385,"",2,1,4,5,5,4,2,3,97,3,82,80,98,98,98,99,99,92,95,96,16,77,"",44,69,"",1,12,54,73,97,"","",65,3,35,6,58,65,68,"",86,"",43,29,62,29,"",11,16,78,62,56,"",67,93,0,16,47,"",74,64,"",52,14,15,"",79,7,"","",49,4,100,91,89,88,75,26,100,62,43,91,35,16,7,4,96,37,31,12,26,88,86,5,100,28,0,0,0,0,0,0]
[41,{"$f":"IF(ISNA(MATCH(L47,'GARP Model'!$D$23:$D$32,0)),0,1)","v":0},"2026-02-28",41,62,"","","",166213,1,"A","LQDT","LIQUIDITY SERVICES INC",14,"NASDAQ",20,"Industrials",2020,"Commercial & Professional Services",202010,"Commercial Services & Supplies",20201070,"Diversified Support Services",2026,1,31.61,30.803000000000001,973.68282999999997,"","","",5,4,5,5,5,3,0,30,70,48,46,55,67,57,59,83,74,75,64,61,14,26,20,23,73,"",36,29,"","","",69,17,92,88,"",59,71,56,2,12,44,34,88,56,54,77,81,86,71,81,85,32,33,17,42,39,66,30,21,20,85,65,16,73,74,61,23,68,32,39,100,50,64,63,"",100,"",73,"",89,89,75,25,32,18,100,89,54,48,58,91,43,100,27,0,0,0,0,0,0]
[42,{"$f":"IF(ISNA(MATCH(L48,'GARP Model'!$D$23:$D$32,0)),0,1)","v":0},"2026-02-28",42,17,"","","",32541,1,"A","CARG","CARGURUS INC",14,"NASDAQ",50,"Communication Services",5020,"Media & Entertainment",502030,"Interactive Media & Services",50203010,"Interactive Media & Services",2025,3,30.7,96.125,2951.0374999999999,"","","",5,4,5,1,3,3,0,16,43,66,56,51,77,61,61,84,70,71,96,"",34,56,96,43,96,91,37,96,"","","",96,49,82,65,59,54,21,25,84,69,74,68,69,80,30,23,27,94,64,75,68,71,97,0,91,87,80,91,96,23,98,97,95,82,96,96,92,81,15,29,100,56,27,44,21,50,7,32,84,34,21,30,43,22,25,80,89,90,70,45,71,17,100,53,0,0,0,0,0,0]
[43,{"$f":"IF(ISNA(MATCH(L49,'GARP Model'!$D$23:$D$32,0)),0,1)","v":0},"2026-02-28",43,15,"","","",1661,1,"A","NBR","NABORS INDUSTRIES LTD",11,"NYSE",10,"Energy",1010,"Energy",101010,"Energy Equipment & Services",10101010,"Oil & Gas Drilling",2025,4,78.12,14.542,1136.0210400000001,"","","",5,5,5,3,5,5,0,61,85,99,18,2,19,49,74,22,34,47,94,"",34,41,51,54,96,"",2,5,100,99,11,36,100,53,12,17,8,6,3,32,62,46,35,72,49,84,9,14,75,84,77,92,73,48,16,23,62,56,33,65,61,76,92,90,92,97,98,97,96,32,11,100,32,49,65,"",100,"",66,"",13,91,92,92,61,96,100,100,99,99,10,97,65,0,51,100,0,0,0,0,100]
[44,{"$f":"IF(ISNA(MATCH(L50,'GARP Model'!$D$23:$D$32,0)),0,1)","v":0},"2026-02-28",44,22,"","","",65831,1,"A","SAH","SONIC AUTOMOTIVE INC  -CL A",11,"NYSE",25,"Consumer Discretionary",2550,"Consumer Discretionary Distribution & Retail",255040,"Specialty Retail",25504050,"Automotive Retail",2025,3,62.72,34.173000000000002,2143.3305599999999,"","","",5,5,5,1,3,3,48,59,97,73,74,87,95,18,35,77,23,30,24,75,16,39,61,49,49,"",34,87,79,80,88,69,36,9,5,"",71,76,62,33,19,1,15,59,42,47,36,44,71,70,8,29,17,13,52,28,36,36,44,38,50,50,30,19,68,68,21,14,80,50,35,100,40,26,18,"",26,"",33,"",74,24,15,25,22,53,7,9,31,26,82,42,22,0,86,0,0,0,0,0,0]
[45,{"$f":"IF(ISNA(MATCH(L51,'GARP Model'!$D$23:$D$32,0)),0,1)","v":0},"2026-02-28",45,-2,"","","",17228,1,"A","TALO","TALOS ENERGY INC",11,"NYSE",10,"Energy",1010,"Energy",101020,"Oil, Gas & Consumable Fuels",10102020,"Oil & Gas Exploration & Production",2025,3,12.25,169.989,2082.3652499999998,"","","",5,5,4,3,4,3,0,92,71,4,60,18,97,90,83,96,86,80,2,92,97,72,62,13,"","",10,19,"","","",85,100,72,24,"",7,5,98,94,93,38,23,88,8,81,15,20,96,62,56,68,93,70,0,4,5,26,3,9,21,16,9,3,13,16,10,5,14,12,13,100,75,71,70,"",66,"",17,"",52,79,78,81,64,89,80,62,75,70,27,75,68,100,23,0,0,0,0,0,0]
[46,{"$f":"IF(ISNA(MATCH(L52,'GARP Model'!$D$23:$D$32,0)),0,1)","v":0},"2026-02-28",46,176,"","","",39103,1,"A","PAYO","PAYONEER GLBL INC",14,"NASDAQ",40,"Financials",4020,"Financial Services",402010,"Financial Services",40201060,"Transaction & Payment Processing Services",2025,3,4.32,358.83600000000001,1550.1715200000001,"",2,"",5,5,2,2,3,3,0,58,83,63,66,56,90,81,75,96,94,92,20,"","",35,16,"",58,74,74,36,"","","",91,64,92,94,57,62,57,"",88,"",27,15,"","","",76,88,28,"","","",57,80,"",15,88,"",61,89,"",37,32,64,"",59,18,82,"",84,46,100,85,89,88,82,26,100,86,9,53,55,28,17,7,62,37,31,12,2,84,89,8,0,31,0,0,0,0,0,0]
[47,{"$f":"IF(ISNA(MATCH(L53,'GARP Model'!$D$23:$D$32,0)),0,1)","v":1},"2026-02-28",47,-10,"","","",177287,1,"A","JAZZ","JAZZ PHARMACEUTICALS PLC",14,"NASDAQ",35,"Health Care",3520,"Pharmaceuticals, Biotechnology & Life Sciences",352020,"Pharmaceuticals",35202010,"Pharmaceuticals",2025,3,190.02,60.74,11541.8148,"","",1,5,4,5,4,4,3,0,44,38,18,36,34,85,83,81,83,84,82,6,"",93,57,55,34,"","",68,31,"","","",63,28,44,34,84,66,28,29,64,69,45,38,45,26,22,42,46,89,87,94,8,87,98,45,59,29,19,37,36,32,20,10,27,11,19,9,29,12,49,46,100,95,98,98,4,79,13,36,"",34,76,80,65,73,64,37,62,54,48,22,63,78,0,14,0,0,0,0,0,0]
[48,{"$f":"IF(ISNA(MATCH(L54,'GARP Model'!$D$23:$D$32,0)),0,1)","v":0},"2026-02-28",48,-24,"Y","","",3336,1,"A","DXC","DXC TECHNOLOGY CO",11,"NYSE",45,"Information Technology",4510,"Software & Services",451020,"IT Services",45102010,"IT Consulting & Other Services",2025,3,12.59,170.03700000000001,2140.7658299999998,"","","",5,5,4,5,2,3,0,96,97,99,22,69,99,99,99,97,98,97,97,66,38,82,86,96,72,"",48,56,"","",8,94,50,51,10,"",59,38,52,23,31,41,27,18,55,43,36,51,68,62,56,68,37,21,0,25,47,39,54,66,56,59,84,40,90,73,90,46,94,53,37,100,87,92,94,"",75,"",69,"",33,36,41,19,10,92,37,62,31,9,49,90,11,0,43,0,0,0,0,0,0]
[49,{"$f":"IF(ISNA(MATCH(L55,'GARP Model'!$D$23:$D$32,0)),0,1)","v":0},"2026-02-28",49,12,"Y","","",61325,1,"A","MD","PEDIATRIX MEDICAL GROUP INC",11,"NYSE",35,"Health Care",3510,"Health Care Equipment & Services",351020,"Health Care Providers & Services",35102015,"Health Care Services",2025,4,19.850000000000001,82.975999999999999,1647.0735999999999,"","","",5,5,4,3,5,3,0,61,87,91,28,39,92,81,76,94,86,83,94,10,3,86,77,83,84,"",61,77,"","","",84,1,57,54,"",73,65,67,0,83,55,39,71,78,66,39,47,52,62,56,68,42,25,0,70,59,58,83,64,50,82,93,78,80,84,93,81,81,31,30,100,46,53,54,"",72,"",17,"",59,83,89,79,83,41,37,31,31,48,11,79,85,0,37,0,0,0,0,0,0]
[50,{"$f":"IF(ISNA(MATCH(L56,'GARP Model'!$D$23:$D$32,0)),0,1)","v":1},"2026-02-28",50,-3,"","","",177108,1,"A","CNK","CINEMARK HOLDINGS INC",11,"NYSE",50,"Communication Services",5020,"Media & Entertainment",502020,"Entertainment",50202010,"Movies & Entertainment",2025,3,28.24,116.50700000000001,3290.1576799999998,"","","",5,5,5,3,2,3,24,15,67,63,55,16,74,70,44,60,58,37,23,"",32,38,46,22,94,19,27,22,"","",12,89,16,23,17,"",26,20,93,95,91,14,7,55,37,79,12,17,65,66,30,71,55,16,6,55,66,90,62,69,92,60,28,82,83,96,34,96,95,25,6,100,47,63,76,6,62,100,19,95,17,16,18,10,23,21,80,62,54,70,57,50,29,0,87,0,0,0,100,0,0]
[51,{"$f":"IF(ISNA(MATCH(L57,'GARP Model'!$D$23:$D$32,0)),0,1)","v":0},"2026-02-28",51,57,"","","",38832,1,"A","MQ","MARQETA INC",14,"NASDAQ",40,"Financials",4020,"Financial Services",402010,"Financial Services",40201060,"Transaction & Payment Processing Services",2025,3,3.84,449.34500000000003,1725.4848,"",2,"",5,5,3,3,1,3,0,58,81,20,12,9,60,33,36,95,57,63,3,"","",19,87,"","","",44,19,"","","",99,36,"",99,73,29,9,"",84,"",79,46,"","","",73,81,83,"","","",11,83,"",94,90,"",73,95,"",21,16,84,"",22,23,77,"",31,54,100,31,33,34,"",100,"","","",62,19,7,23,50,88,37,31,54,86,91,10,56,100,21,0,0,0,0,0,0]
[52,{"$f":"IF(ISNA(MATCH(L58,'GARP Model'!$D$23:$D$32,0)),0,1)","v":1},"2026-02-28",52,-18,"Y","","",38237,2,"A","HGTY","HAGERTY INC",11,"NYSE",40,"Financials",4030,"Insurance",403010,"Insurance",40301010,"Insurance Brokers",2025,3,11.74,100.426,1179.0012400000001,"","","",5,4,4,4,5,3,0,34,94,53,41,38,89,79,78,95,92,91,75,"","",21,15,"",70,1,53,80,30,74,"",49,46,71,90,"",60,94,"",90,"","",14,"","","",14,19,63,"","","",35,41,"",74,85,"",88,87,"",49,60,73,"",75,68,89,"",77,24,100,61,62,51,2,34,100,79,98,99,61,67,66,72,46,80,89,75,70,35,30,72,100,46,0,0,0,0,0,0]
[53,{"$f":"IF(ISNA(MATCH(L59,'GARP Model'!$D$23:$D$32,0)),0,1)","v":0},"2026-02-28",53,"","","","",12441,1,"A","IT","GARTNER INC",11,"NYSE",45,"Information Technology",4510,"Software & Services",451020,"IT Services",45102010,"IT Consulting & Other Services",2025,4,157.19999999999999,70.849000000000004,11137.462799999999,"","","",5,5,5,4,1,3,0,6,64,75,87,84,82,83,84,85,86,88,21,52,28,58,53,47,99,99,52,37,"","","",99,11,58,46,"",58,56,57,89,87,26,14,73,77,82,5,7,69,62,56,68,63,81,0,31,31,63,58,41,53,87,12,32,74,99,98,1,98,59,5,100,64,72,79,44,43,11,85,74,10,13,3,0,0,88,37,31,12,9,93,81,1,100,63,0,0,0,100,0,0]
[54,{"$f":"IF(ISNA(MATCH(L60,'GARP Model'!$D$23:$D$32,0)),0,1)","v":0},"2026-02-28",54,10,"","","",41507,1,"A","GCT","GIGACLOUD TECHNOLOGY INC",14,"NASDAQ",25,"Consumer Discretionary",2550,"Consumer Discretionary Distribution & Retail",255010,"Distributors",25501010,"Distributors",2025,3,44.34,37.24,1651.2216000000001,"","",1,5,5,5,5,5,5,0,37,75,83,73,72,85,71,71,88,78,78,43,3,"",36,5,"",93,"",64,76,"","","",84,63,45,57,9,80,40,"",13,"",47,51,69,46,"",40,52,60,88,84,"",37,23,56,19,70,"",14,84,"",92,35,81,"",92,28,85,"",58,50,100,50,22,22,"",100,"",56,"",36,93,90,95,90,2,100,98,99,96,15,27,89,0,24,100,0,0,0,0,100]
[55,{"$f":"IF(ISNA(MATCH(L61,'GARP Model'!$D$23:$D$32,0)),0,1)","v":0},"2026-02-28",55,178,"","","",28866,1,"A","CASH","PATHWARD FINANCIAL INC",14,"NASDAQ",40,"Financials",4010,"Banks",401010,"Banks",40101015,"Regional Banks",2026,1,90.79,22.17,2012.8143,"","","",5,5,5,5,3,3,2,53,63,89,85,85,95,24,69,97,24,83,54,37,47,40,28,44,88,"",33,93,14,17,17,92,51,96,84,"",8,98,4,"","","","","","","",44,57,60,"","","",97,99,"",76,77,85,75,45,88,53,57,54,50,87,68,46,70,91,78,100,"","","","",100,"",60,"",49,89,61,40,58,24,80,62,31,26,84,52,61,0,29,0,0,0,0,0,0]
[56,{"$f":"IF(ISNA(MATCH(L62,'GARP Model'!$D$23:$D$32,0)),0,1)","v":0},"2026-02-28",56,4,"Y","","",122902,1,"A","NTCT","NETSCOUT SYSTEMS INC",14,"NASDAQ",45,"Information Technology",4520,"Technology Hardware & Equipment",452010,"Communications Equipment",45201020,"Communications Equipment",2025,3,29.21,72.22,2109.5462000000002,"","","",5,4,5,5,4,3,0,78,67,62,10,17,89,72,79,95,89,93,87,19,10,54,78,88,38,"",69,41,"","","",69,3,93,92,62,73,60,66,22,51,62,47,27,16,21,41,61,73,71,66,84,60,93,9,76,60,55,59,58,61,66,96,69,67,42,94,67,59,16,31,100,92,96,96,"",62,"",77,"",76,32,72,58,61,75,80,98,97,96,18,67,64,100,70,0,0,0,0,0,0]
[57,{"$f":"IF(ISNA(MATCH(L63,'GARP Model'!$D$23:$D$32,0)),0,1)","v":0},"2026-02-28",57,-7,"","","",143974,1,"A","BFH","BREAD FINANCIAL HOLDINGS INC",11,"NYSE",40,"Financials",4020,"Financial Services",402020,"Consumer Finance",40202010,"Consumer Finance",2025,4,70.86,44.1,3124.9259999999999,"","","",5,5,5,5,4,3,25,90,90,98,96,97,99,99,99,99,99,99,83,12,48,79,65,87,75,49,79,65,21,26,18,91,55,32,37,"",81,74,67,"","","","","","","",59,39,69,"","","",66,21,"",76,52,27,84,52,1,52,68,65,52,78,81,73,27,83,41,5,83,82,77,29,80,100,89,97,28,69,61,73,60,24,80,89,97,86,52,46,58,100,56,0,0,0,0,0,0]
[58,{"$f":"IF(ISNA(MATCH(L64,'GARP Model'!$D$23:$D$32,0)),0,1)","v":0},"2026-02-28",58,56,"Y","","",16401,1,"A","CRUS","CIRRUS LOGIC INC",14,"NASDAQ",45,"Information Technology",4530,"Semiconductors & Semiconductor Equipment",453010,"Semiconductors & Semiconductor Equipment",45301020,"Semiconductors",2025,3,141.12,51.000999999999998,7197.2611200000001,"","","",5,4,5,5,4,3,0,39,42,70,58,61,74,60,57,85,73,71,68,36,42,46,76,57,84,84,64,84,"","","",83,26,92,80,68,76,71,58,26,23,89,90,55,35,81,89,93,77,95,17,79,70,66,39,71,53,65,50,51,41,96,83,65,74,84,73,57,58,51,73,100,84,72,78,70,100,100,93,40,40,29,72,61,72,39,37,89,75,86,17,40,69,0,35,0,0,0,0,0,0]
[59,{"$f":"IF(ISNA(MATCH(L65,'GARP Model'!$D$23:$D$32,0)),0,1)","v":0},"2026-02-28",59,72,"","","",24379,1,"A","MTG","MGIC INVESTMENT CORP/WI",11,"NYSE",40,"Financials",4020,"Financial Services",402010,"Financial Services",40201050,"Commercial & Residential Mortgage Finance",2025,4,26.53,219.36699999999999,5819.8065100000003,"","","",5,5,3,1,2,3,45,84,31,96,94,94,91,88,89,95,94,94,41,55,51,70,69,88,68,77,89,58,40,56,67,97,100,84,78,"",89,56,54,"","","","","","","",85,85,27,"","","",99,92,"",9,5,89,9,8,91,91,36,29,73,75,48,39,59,65,87,100,92,97,97,79,42,100,32,55,58,30,40,36,51,20,80,62,75,86,45,35,53,100,61,0,0,0,0,0,0]
[60,{"$f":"IF(ISNA(MATCH(L66,'GARP Model'!$D$23:$D$32,0)),0,1)","v":0},"2026-02-28",60,10,"","","",14418,1,"A","MGM","MGM RESORTS INTERNATIONAL",11,"NYSE",25,"Consumer Discretionary",2530,"Consumer Services",253010,"Hotels, Restaurants & Leisure",25301010,"Casinos & Gaming",2025,4,36.86,258.32299999999998,9521.7857800000002,"","","",5,5,4,3,1,3,0,34,59,41,86,86,92,91,85,51,54,48,13,81,36,66,39,8,54,76,35,37,"",5,8,97,34,4,2,"",23,33,25,87,85,35,22,55,37,78,67,76,58,67,61,80,41,54,4,29,43,92,27,24,87,33,29,30,66,54,11,15,83,56,24,100,35,58,73,87,42,8,92,2,23,42,22,31,38,79,80,62,75,86,84,31,33,100,96,0,0,0,0,0,0]
[61,{"$f":"IF(ISNA(MATCH(L67,'GARP Model'!$D$23:$D$32,0)),0,1)","v":0},"2026-02-28",61,38,"","","",61034,1,"A","TK","TEEKAY CORPORATION LTD",11,"NYSE",10,"Energy",1010,"Energy",101020,"Oil, Gas & Consumable Fuels",10102040,"Oil & Gas Storage & Transportation",2025,2,12.95,85.269000000000005,1104.2335499999999,"","","",5,5,5,2,5,3,0,68,99,78,87,44,93,98,98,99,99,99,18,"",35,97,35,98,9,"",17,3,"","",99,95,72,94,99,"",13,4,3,9,1,87,86,58,89,78,48,57,80,74,90,20,72,37,18,4,91,8,4,95,14,60,16,87,79,68,19,91,95,37,24,100,23,87,92,"","","","","",80,46,79,77,85,11,80,89,75,86,16,16,88,0,30,0,0,0,0,0,0]
[62,{"$f":"IF(ISNA(MATCH(L68,'GARP Model'!$D$23:$D$32,0)),0,1)","v":1},"2026-02-28",62,0,"","","",175007,1,"A","ALGT","ALLEGIANT TRAVEL CO",14,"NASDAQ",20,"Industrials",2030,"Transportation",203020,"Passenger Airlines",20302010,"Passenger Airlines",2025,3,102.15,18.324000000000002,1871.7965999999999,"","","",4,5,4,4,5,3,0,63,81,5,21,26,20,5,11,21,7,13,1,94,92,60,53,25,"","",10,97,0,"",0,55,100,23,20,"",11,93,96,90,89,24,13,60,70,95,45,31,89,67,64,79,50,24,9,70,66,66,56,67,52,15,11,18,18,11,6,12,12,45,32,100,20,10,12,3,100,100,87,"",10,93,89,85,25,63,100,89,75,48,19,97,19,100,83,0,0,0,0,0,0]
[63,{"$f":"IF(ISNA(MATCH(L69,'GARP Model'!$D$23:$D$32,0)),0,1)","v":0},"2026-02-28",63,0,"Y","","",136648,2,"A","VC","VISTEON CORP",14,"NASDAQ",25,"Consumer Discretionary",2510,"Automobiles & Components",251010,"Automobile Components",25101010,"Automotive Parts & Equipment",2025,4,95.67,26.803999999999998,2564.3386799999998,"","",1,5,5,5,4,1,3,22,69,95,83,94,87,83,79,64,92,90,79,26,22,12,80,72,55,68,65,21,27,"","","",70,53,80,84,40,36,18,64,43,36,49,43,22,80,87,41,49,63,68,78,45,37,15,30,53,67,71,60,73,66,75,17,61,81,70,16,35,85,29,32,100,28,31,43,59,28,100,94,70,16,14,14,42,52,90,7,9,54,70,65,13,53,0,50,0,0,0,100,0,0]
[64,{"$f":"IF(ISNA(MATCH(L70,'GARP Model'!$D$23:$D$32,0)),0,1)","v":0},"2026-02-28",64,-18,"","","",33999,2,"A","AMTB","AMERANT BANCORP INC",11,"NYSE",40,"Financials",4010,"Banks",401010,"Banks",40101015,"Regional Banks",2025,3,21.35,41.265000000000001,881.00774999999999,"","","",5,5,4,2,4,3,35,91,65,81,52,69,95,50,52,93,46,48,93,65,3,27,12,31,36,"",87,65,88,84,"",69,71,25,25,"",81,85,82,"","","","","","","",44,59,24,"","","",78,68,"",92,13,87,94,3,71,34,68,41,48,46,88,28,64,88,58,100,68,25,33,"",42,"",55,"",84,86,52,57,36,78,100,89,75,70,89,74,36,100,78,0,0,0,0,0,0]
[65,{"$f":"IF(ISNA(MATCH(L71,'GARP Model'!$D$23:$D$32,0)),0,1)","v":0},"2026-02-28",65,17,"","","",23247,1,"A","PJT","PJT PARTNERS INC",11,"NYSE",40,"Financials",4020,"Financial Services",402030,"Capital Markets",40203020,"Investment Banking & Brokerage",2025,3,147.68,24.306999999999999,3589.6577600000001,"","","",5,5,5,4,2,3,11,9,62,65,52,54,92,85,83,94,92,90,78,19,41,16,25,39,97,"",44,8,36,8,96,93,35,76,71,"",58,18,28,"","","","","","","",28,15,95,"","","",61,18,"",75,40,37,82,36,41,90,82,61,62,98,86,79,81,65,20,100,10,76,81,"",62,"",47,"",39,49,28,50,47,17,80,31,75,70,80,26,45,0,48,0,0,0,0,0,0]
[66,{"$f":"IF(ISNA(MATCH(L72,'GARP Model'!$D$23:$D$32,0)),0,1)","v":0},"2026-02-28",66,22,"","","",160549,5,"A","LBTYK","LIBERTY GLOBAL LTD",14,"NASDAQ",50,"Communication Services",5010,"Telecommunication Services",501010,"Diversified Telecommunication Services",50101010,"Alternative Carriers",2025,4,12.3,334.80399999999997,4118.0892000000003,"","","",5,5,3,2,2,3,0,99,57,0,0,99,16,95,98,21,77,93,3,98,94,30,93,98,"","",19,25,"","","",83,29,9,5,"",7,5,3,89,75,30,16,15,27,13,57,24,98,62,56,68,66,58,0,37,18,4,24,18,14,5,0,1,1,4,2,3,3,8,16,100,26,60,65,"","","","","",93,31,44,23,35,80,37,31,12,26,41,68,40,0,71,0,0,0,0,0,0]
[{"$f":"A72+1","v":67},{"$f":"IF(ISNA(MATCH(L73,'GARP Model'!$D$23:$D$32,0)),0,1)","v":0},"2026-02-28",67,40,"Y","","",16821,1,"A","FBP","FIRST BANCORP P R",11,"NYSE",40,"Financials",4010,"Banks",401010,"Banks",40101015,"Regional Banks",2025,3,21.13,159.13499999999999,3362.5225500000001,"","","",4,5,5,5,3,3,72,65,60,91,88,86,88,85,86,95,94,95,52,44,18,60,41,45,66,69,86,62,71,69,85,75,70,87,89,"",78,76,77,"","","","","","","",34,43,21,"","","",91,85,"",50,10,83,58,9,81,47,52,52,54,82,48,33,75,92,62,100,78,70,75,69,78,100,72,69,85,66,44,42,54,24,100,89,54,70,73,35,55,100,37,0,0,0,0,0,0]
[68,{"$f":"IF(ISNA(MATCH(L74,'GARP Model'!$D$23:$D$32,0)),0,1)","v":0},"2026-02-28",68,3,"","","",21004,1,"A","LNTH","LANTHEUS HOLDINGS INC",14,"NASDAQ",35,"Health Care",3510,"Health Care Equipment & Services",351010,"Health Care Equipment & Supplies",35101020,"Health Care Supplies",2025,3,74.91,66.299000000000007,4966.4580900000001,"","",1,5,4,5,2,2,3,0,31,41,51,65,50,73,70,58,80,79,66,15,24,0,65,13,4,76,82,41,30,"","","",89,36,75,59,49,43,27,73,15,5,71,65,10,40,5,20,13,85,76,62,94,76,79,20,5,26,86,17,57,89,82,4,31,80,76,8,47,77,17,25,100,53,60,70,80,27,10,84,8,50,69,24,3,14,56,80,62,54,86,93,79,23,100,43,0,0,0,0,0,0]
[69,{"$f":"IF(ISNA(MATCH(L75,'GARP Model'!$D$23:$D$32,0)),0,1)","v":0},"2026-02-28",69,5,"","","",63892,1,"A","NOV","NOV INC",11,"NYSE",10,"Energy",1010,"Energy",101010,"Energy Equipment & Services",10101020,"Oil & Gas Equipment & Services",2025,4,20.260000000000002,360.803,7309.8687799999998,"","","",5,5,5,1,3,3,29,82,87,39,87,60,86,57,48,89,63,51,12,50,40,77,50,58,9,"",28,20,96,93,98,81,31,60,51,"",32,18,28,46,56,55,60,69,91,84,62,69,79,81,88,88,38,24,74,31,61,85,45,58,88,42,14,46,95,32,20,52,93,34,45,100,35,45,54,"",26,"",0,"",46,84,82,77,73,80,100,98,90,96,24,70,76,100,35,0,0,0,0,0,100]
[70,{"$f":"IF(ISNA(MATCH(L76,'GARP Model'!$D$23:$D$32,0)),0,1)","v":0},"2026-02-28",70,6,"","","",12389,1,"A","HOG","HARLEY-DAVIDSON INC",11,"NYSE",25,"Consumer Discretionary",2510,"Automobiles & Components",251020,"Automobiles",25102020,"Motorcycle Manufacturers",2025,3,18,118.142,2126.556,"","","",4,5,4,1,1,3,76,98,80,99,99,99,94,98,98,77,91,94,31,63,15,94,88,86,67,89,54,74,17,24,19,97,66,11,6,31,37,23,51,7,16,70,62,96,85,94,56,54,20,82,70,19,48,54,44,9,22,41,25,55,46,70,53,35,68,74,30,24,67,69,53,100,40,33,44,92,26,100,3,"",10,6,14,17,16,94,7,9,31,26,41,55,13,0,65,0,0,0,100,0,0]
[71,{"$f":"IF(ISNA(MATCH(L77,'GARP Model'!$D$23:$D$32,0)),0,1)","v":0},"2026-02-28",71,40,"","","",28420,1,"A","BL","BLACKLINE INC",14,"NASDAQ",45,"Information Technology",4510,"Software & Services",451030,"Software",45103010,"Application Software",2025,3,35.25,59.942,2112.9555,"","",1,5,5,5,3,1,3,0,20,42,52,53,33,73,65,59,80,72,66,21,"",17,45,36,27,90,80,67,36,"","","",94,18,5,58,59,68,78,37,83,75,49,34,24,33,83,13,17,65,62,56,68,39,93,0,34,88,83,38,49,28,68,19,85,81,88,14,96,88,34,11,100,90,94,93,40,72,100,70,52,14,10,17,23,14,87,7,9,12,9,47,68,14,100,38,0,0,0,100,0,0]
[72,{"$f":"IF(ISNA(MATCH(L78,'GARP Model'!$D$23:$D$32,0)),0,1)","v":0},"2026-02-28",72,12,"","","",64536,1,"A","EEFT","EURONET WORLDWIDE INC",14,"NASDAQ",40,"Financials",4020,"Financial Services",402010,"Financial Services",40201060,"Transaction & Payment Processing Services",2025,3,69.55,39.691000000000003,2760.5090500000001,"","","",5,5,4,2,1,3,0,56,92,93,91,83,87,97,93,88,97,96,37,17,7,45,45,41,90,82,43,23,"","","",99,29,41,46,"",41,54,72,79,80,"",19,"","","",44,48,33,"","","",51,23,"",54,54,60,63,51,59,70,38,66,69,89,49,77,82,68,47,100,40,54,58,43,26,100,14,91,22,25,8,7,14,87,37,9,12,26,92,42,18,0,77,0,0,0,0,0,0]
[73,{"$f":"IF(ISNA(MATCH(L79,'GARP Model'!$D$23:$D$32,0)),0,1)","v":0},"2026-02-28",73,32,"","","",186392,1,"A","PRKS","UNITED PARKS & RESORTS INC",11,"NYSE",25,"Consumer Discretionary",2530,"Consumer Services",253010,"Hotels, Restaurants & Leisure",25301030,"Leisure Facilities",2025,3,34.79,54.97,1912.4063000000001,"","","",5,5,5,1,1,3,0,2,56,90,94,88,85,87,87,66,71,72,27,67,30,83,76,13,68,78,12,95,"","","",73,56,32,11,"",14,64,94,91,86,23,17,50,38,36,4,2,75,31,63,89,80,56,17,11,27,94,13,26,94,79,21,16,91,67,23,12,96,25,3,100,31,19,27,81,26,100,11,34,15,8,12,14,13,89,80,62,54,26,55,56,14,100,13,0,0,0,100,0,0]
[74,{"$f":"IF(ISNA(MATCH(L80,'GARP Model'!$D$23:$D$32,0)),0,1)","v":0},"2026-02-28",74,5,"","","",31521,1,"A","SNEX","STONEX GROUP INC",14,"NASDAQ",40,"Financials",4020,"Financial Services",402030,"Capital Markets",40203020,"Investment Banking & Brokerage",2026,1,127.5,52.356000000000002,6675.39,"",2,"",5,5,4,3,3,3,0,49,99,68,59,57,99,70,90,99,73,92,67,26,40,10,8,14,74,"",74,40,"","","",28,66,5,41,"",90,51,50,"","","","","","","",67,80,67,"","","",14,5,"",41,50,46,44,49,51,35,42,42,32,75,41,34,21,96,85,100,44,41,35,"",100,"","","",76,79,55,54,83,10,80,62,75,96,74,9,85,0,88,0,0,0,0,0,0]
[75,{"$f":"IF(ISNA(MATCH(L81,'GARP Model'!$D$23:$D$32,0)),0,1)","v":0},"2026-02-28",75,14,"","","",25339,1,"A","CACC","CREDIT ACCEPTANCE CORP",14,"NASDAQ",40,"Financials",4020,"Financial Services",402020,"Consumer Finance",40202010,"Consumer Finance",2025,3,473.18,11.041,5224.3803799999996,"",1,"",5,5,5,5,3,3,0,40,29,86,76,90,95,97,96,86,90,90,89,61,68,36,46,59,93,"",89,58,"","","",96,100,20,10,"",89,53,65,"","","","","","","",64,52,70,"","","",93,59,"",92,22,42,95,19,47,72,81,24,33,92,90,25,71,42,32,100,72,85,78,"",100,"",67,"",20,58,34,27,39,62,80,62,54,48,79,48,37,0,45,0,0,0,0,0,0]
[76,{"$f":"IF(ISNA(MATCH(L82,'GARP Model'!$D$23:$D$32,0)),0,1)","v":0},"2026-02-28",76,261,"","","",11670,1,"A","SPB","SPECTRUM BRND HLDG INC",11,"NYSE",30,"Consumer Staples",3030,"Household & Personal Products",303010,"Household Products",30301010,"Household Products",2026,1,78.38,23.3,1826.2539999999999,"",2,"",5,5,4,5,5,3,48,90,89,71,25,30,93,13,29,92,14,29,42,"",79,88,83,97,25,47,56,70,15,15,16,98,19,54,33,8,63,64,35,85,62,42,55,84,6,12,17,26,69,79,92,73,29,48,62,25,58,15,27,76,49,57,52,78,30,40,53,81,20,52,49,100,76,76,79,73,74,100,63,34,32,75,63,28,18,66,80,89,54,26,55,92,24,0,98,0,0,0,0,0,0]
[77,{"$f":"IF(ISNA(MATCH(L83,'GARP Model'!$D$23:$D$32,0)),0,1)","v":0},"2026-02-28",77,-22,"","","",185836,1,"A","PCRX","PACIRA BIOSCIENCES INC",14,"NASDAQ",35,"Health Care",3520,"Pharmaceuticals, Biotechnology & Life Sciences",352020,"Pharmaceuticals",35202010,"Pharmaceuticals",2025,3,21.91,42.966000000000001,941.38505999999995,"",2,2,5,5,3,1,2,3,0,78,72,41,23,48,89,92,89,89,93,91,87,46,84,61,63,40,25,"",56,47,"","","",96,60,52,42,62,49,87,88,45,68,82,85,20,24,12,52,34,78,4,6,11,62,94,77,9,22,73,91,82,82,46,89,57,7,34,89,57,10,30,38,100,88,90,81,"",26,"",4,"",30,26,29,8,18,92,80,62,31,48,56,76,25,0,37,0,0,0,0,0,0]
[78,{"$f":"IF(ISNA(MATCH(L84,'GARP Model'!$D$23:$D$32,0)),0,1)","v":0},"2026-02-28",78,-6,"","","",6543,1,"A","LZB","LA-Z-BOY INC",11,"NYSE",25,"Consumer Discretionary",2520,"Consumer Durables & Apparel",252010,"Household Durables",25201020,"Home Furnishings",2025,3,35.72,40.923999999999999,1461.80528,"","",1,5,5,5,4,3,3,53,75,90,70,83,87,84,77,74,84,80,77,24,70,65,66,86,66,32,33,24,17,67,65,83,75,33,52,42,4,35,25,18,57,60,34,39,51,47,87,78,88,70,90,72,87,29,56,44,31,37,31,46,68,47,65,22,19,37,51,28,24,35,75,74,100,17,24,21,52,26,100,82,62,65,68,36,20,19,43,37,31,12,9,84,81,19,0,77,0,0,0,0,0,0]
[79,{"$f":"IF(ISNA(MATCH(L85,'GARP Model'!$D$23:$D$32,0)),0,1)","v":0},"2026-02-28",79,100,"","","",34101,1,"A","UPWK","UPWORK INC",14,"NASDAQ",20,"Industrials",2020,"Commercial & Professional Services",202020,"Professional Services",20202010,"Human Resource & Employment Services",2025,4,13.42,130.54499999999999,1751.9139,"","","",5,5,5,5,5,3,0,47,67,76,75,46,88,59,48,94,76,61,20,"",8,64,44,25,83,"",42,16,"","","",91,35,59,88,71,39,15,66,82,26,46,31,57,63,77,31,34,80,62,56,68,61,92,0,87,92,90,60,75,76,87,8,93,88,83,9,94,84,17,19,100,39,36,41,"",67,"",73,"",5,83,88,72,70,34,80,89,75,86,13,91,66,0,92,0,0,0,0,0,0]
[80,{"$f":"IF(ISNA(MATCH(L86,'GARP Model'!$D$23:$D$32,0)),0,1)","v":0},"2026-02-28",80,10,"","","",162385,1,"A","WEX","WEX INC",11,"NYSE",40,"Financials",4020,"Financial Services",402010,"Financial Services",40201060,"Transaction & Payment Processing Services",2025,4,149.19,34.299999999999997,5117.2169999999996,"","","",5,5,4,4,1,3,0,33,73,72,70,54,60,79,71,79,92,87,42,25,22,67,59,40,91,89,58,58,"","","",98,23,25,91,"",26,29,36,67,77,28,16,"","","",32,48,24,"","","",85,77,"",26,47,73,26,45,53,50,41,56,73,89,73,81,89,69,33,100,75,78,83,67,43,31,78,48,38,44,20,45,23,78,100,62,75,70,87,54,24,100,92,0,0,0,0,0,0]
[81,{"$f":"IF(ISNA(MATCH(L87,'GARP Model'!$D$23:$D$32,0)),0,1)","v":0},"2026-02-28",81,-13,"","","",38961,1,"A","JBI","JANUS INTERNATIONL GROUP INC",11,"NYSE",20,"Industrials",2010,"Capital Goods",201020,"Building Products",20102010,"Building Products",2025,3,6.96,138.81100000000001,966.12455999999997,"","","",5,5,4,1,2,3,0,66,72,64,91,89,91,91,90,86,90,87,17,68,"",92,83,"",52,32,43,19,"",5,"",75,15,38,26,"",42,16,"",20,"",72,71,86,79,"",34,42,77,13,33,"",56,49,30,7,37,"",13,58,"",62,14,27,"",52,14,18,"",54,51,100,64,80,81,37,26,100,5,68,80,5,12,24,23,88,80,62,75,48,41,34,20,100,32,0,0,0,0,0,0]
[82,{"$f":"IF(ISNA(MATCH(L88,'GARP Model'!$D$23:$D$32,0)),0,1)","v":0},"2026-02-28",82,1,"","","",20233,1,"A","TBPH","THERAVANCE BIOPHARMA INC",14,"NASDAQ",35,"Health Care",3520,"Pharmaceuticals, Biotechnology & Life Sciences",352020,"Pharmaceuticals",35202010,"Pharmaceuticals",2025,3,18.25,50.671999999999997,924.76400000000001,"",1,1,5,4,5,4,5,3,0,34,18,49,14,4,97,18,5,98,13,2,90,"",39,13,25,90,70,"",83,68,"","","",46,100,"",94,85,85,76,93,63,61,93,93,90,85,99,10,13,99,62,56,68,6,3,0,93,97,98,95,98,98,81,96,94,99,69,95,91,"",5,33,100,92,76,68,"",48,"",88,"",68,86,88,86,91,26,37,62,54,86,14,10,92,0,17,0,0,0,0,0,0]
[83,{"$f":"IF(ISNA(MATCH(L89,'GARP Model'!$D$23:$D$32,0)),0,1)","v":0},"2026-02-28",83,-3,"","","",175900,1,"A","SBH","SALLY BEAUTY HOLDINGS INC",11,"NYSE",25,"Consumer Discretionary",2550,"Consumer Discretionary Distribution & Retail",255040,"Specialty Retail",25504040,"Other Specialty Retail",2026,1,16.07,97.492000000000004,1566.6964399999999,"","","",5,5,5,4,3,3,0,61,91,95,92,94,90,82,88,78,68,76,45,43,55,73,77,85,88,"",22,17,"","","",82,25,41,14,"",40,27,26,32,69,8,59,37,33,34,35,5,56,75,28,41,37,63,85,43,42,38,60,54,62,78,43,54,61,87,25,14,2,78,16,100,29,46,50,"",66,"",61,"",29,34,85,85,78,69,80,89,97,96,9,72,73,0,13,0,0,0,0,0,100]
[84,{"$f":"IF(ISNA(MATCH(L90,'GARP Model'!$D$23:$D$32,0)),0,1)","v":0},"2026-02-28",84,-7,"","","",12471,1,"A","WKC","WORLD KINECT CORP",11,"NYSE",10,"Energy",1010,"Energy",101020,"Oil, Gas & Consumable Fuels",10102030,"Oil & Gas Refining & Marketing",2025,3,24.95,55.6,1387.22,"","","",5,5,4,1,4,3,64,93,99,1,32,50,96,89,93,96,90,94,3,97,94,94,93,53,"","",60,71,69,73,64,88,31,59,38,"",88,39,52,53,79,26,19,55,52,36,58,79,87,65,33,45,14,5,9,42,49,38,49,52,35,15,7,13,5,12,5,9,5,55,43,100,62,60,64,27,26,100,2,"",45,43,32,36,39,65,80,31,31,48,69,44,37,100,87,0,0,0,0,0,0]
[85,{"$f":"IF(ISNA(MATCH(L91,'GARP Model'!$D$23:$D$32,0)),0,1)","v":0},"2026-02-28",85,30,"","","",162560,1,"A","AX","AXOS FINANCIAL INC",11,"NYSE",40,"Financials",4010,"Banks",401010,"Banks",40101015,"Regional Banks",2026,2,86.82,56.677,4920.6971400000002,"","","",5,5,4,5,4,3,0,68,57,89,85,80,74,62,65,83,73,75,48,19,37,62,10,16,77,"",73,36,"","",8,65,67,76,73,"",43,37,19,"","","","","","","",95,98,15,"","","",92,76,"",66,13,7,80,11,6,45,42,55,41,77,38,60,37,95,91,100,27,23,34,"",100,"",80,"",83,84,54,74,79,20,100,89,97,96,83,13,77,0,51,0,0,0,0,0,0]
[86,{"$f":"IF(ISNA(MATCH(L92,'GARP Model'!$D$23:$D$32,0)),0,1)","v":0},"2026-02-28",86,-17,"","","",23555,1,"A","COLL","COLLEGIUM PHARMACEUTICAL INC",14,"NASDAQ",35,"Health Care",3520,"Pharmaceuticals, Biotechnology & Life Sciences",352020,"Pharmaceuticals",35202010,"Pharmaceuticals",2025,3,41.67,31.600999999999999,1316.81367,"","","",5,5,5,2,5,3,0,28,53,61,51,54,96,94,90,94,92,87,24,49,21,13,10,19,87,"",80,43,"","","",81,39,59,25,"",87,54,76,99,3,38,27,94,97,10,45,32,88,82,97,77,95,97,23,6,78,91,65,83,91,62,24,82,51,86,11,92,72,33,22,100,99,99,99,"",42,"",18,"",63,85,84,80,79,31,37,62,54,48,20,62,81,0,33,0,0,0,0,0,0]
[87,{"$f":"IF(ISNA(MATCH(L93,'GARP Model'!$D$23:$D$32,0)),0,1)","v":0},"2026-02-28",87,6,"","","",122172,1,"A","ZD","ZIFF DAVIS INC",14,"NASDAQ",50,"Communication Services",5020,"Media & Entertainment",502030,"Interactive Media & Services",50203010,"Interactive Media & Services",2025,3,27.08,39.993000000000002,1083.01044,"","","",5,5,4,1,3,3,0,98,85,92,76,96,97,96,97,96,95,97,81,77,80,51,69,87,40,"",28,33,"","",8,95,3,65,32,35,19,36,19,69,2,53,37,96,15,9,93,44,71,62,56,68,77,34,0,25,36,11,27,33,1,58,71,15,19,43,70,20,15,46,51,100,71,77,78,"",32,"",13,"",21,61,65,56,13,95,80,62,75,48,38,94,9,0,50,0,0,0,0,0,0]
[88,{"$f":"IF(ISNA(MATCH(L94,'GARP Model'!$D$23:$D$32,0)),0,1)","v":0},"2026-02-28",88,4,"","","",184470,2,"A","CRCT","CRICUT INC",14,"NASDAQ",25,"Consumer Discretionary",2520,"Consumer Durables & Apparel",252010,"Household Durables",25201040,"Household Appliances",2025,3,4.3,212.19499999999999,912.43849999999998,"","",1,4,5,5,4,3,3,99,50,85,87,79,90,96,98,93,98,98,97,67,33,"",81,92,"",0,"",29,75,96,"","",80,100,96,91,47,42,64,"",83,"",54,58,61,15,"",48,45,96,93,99,"",53,70,70,51,71,"",89,93,"",95,86,83,"",87,85,83,"",34,47,100,46,53,35,"",26,"",86,"",96,14,24,33,41,86,37,62,75,86,43,28,46,0,95,0,0,0,0,0,0]
[89,{"$f":"IF(ISNA(MATCH(L95,'GARP Model'!$D$23:$D$32,0)),0,1)","v":0},"2026-02-28",89,2,"","","",15520,1,"A","SIG","SIGNET JEWELERS LTD",11,"NYSE",25,"Consumer Discretionary",2550,"Consumer Discretionary Distribution & Retail",255040,"Specialty Retail",25504040,"Other Specialty Retail",2025,3,96.19,40.700000000000003,3914.933,"","","",5,4,5,5,4,3,27,54,93,53,91,92,92,89,95,91,90,96,13,75,18,73,86,68,36,46,38,69,9,16,25,85,41,66,38,"",55,58,32,70,81,1,33,64,78,75,34,42,81,69,27,97,28,51,89,26,30,61,51,52,71,54,9,24,69,53,7,23,76,41,39,100,43,48,55,64,71,38,73,28,29,22,59,75,84,50,80,98,97,99,22,8,84,100,78,0,0,0,0,0,0]
[90,{"$f":"IF(ISNA(MATCH(L96,'GARP Model'!$D$23:$D$32,0)),0,1)","v":0},"2026-02-28",90,-4,"","","",19402,1,"A","GIII","G-III APPAREL GROUP LTD",14,"NASDAQ",25,"Consumer Discretionary",2520,"Consumer Durables & Apparel",252030,"Textiles, Apparel & Luxury Goods",25203010,"Apparel, Accessories & Luxury Goods",2025,3,30.59,42.189,1290.56151,"","","",5,5,3,5,5,3,26,96,97,94,71,85,97,97,93,97,97,96,32,56,16,81,77,67,51,"",52,33,"","","",81,100,77,54,"",68,27,30,74,58,48,58,86,80,88,52,71,78,19,96,86,26,48,69,21,42,45,40,79,72,73,32,51,69,52,35,44,61,34,46,100,24,35,50,"",100,"",98,"",66,54,68,44,35,27,37,31,54,48,30,86,42,100,53,0,0,0,0,0,0]
[91,{"$f":"IF(ISNA(MATCH(L97,'GARP Model'!$D$23:$D$32,0)),0,1)","v":0},"2026-02-28",91,35,"","","",26567,1,"A","FRHC","FREEDOM HOLDING CORP",14,"NASDAQ",40,"Financials",4020,"Financial Services",402030,"Capital Markets",40203020,"Investment Banking & Brokerage",2025,3,120.17,61.18,7352.0006000000003,"","","",5,4,5,2,1,3,0,26,45,30,50,51,98,35,26,99,42,26,10,83,85,90,3,2,12,"",37,7,"","","",36,68,24,89,"",15,7,5,"","","","","","","",33,22,96,"","","",65,20,"",3,7,1,2,10,2,29,17,38,10,28,7,32,4,42,25,100,1,2,2,"","","","","",98,10,4,14,27,22,37,9,31,48,85,15,35,0,77,0,0,0,0,0,0]
[92,{"$f":"IF(ISNA(MATCH(L98,'GARP Model'!$D$23:$D$32,0)),0,1)","v":1},"2026-02-28",92,2,"","","",164086,1,"A","CMPR","CIMPRESS PLC",14,"NASDAQ",20,"Industrials",2020,"Commercial & Professional Services",202010,"Commercial Services & Supplies",20201010,"Commercial Printing",2026,2,73.05,24.41,1783.1505,"","","",5,5,3,1,5,3,0,0,87,35,37,25,86,86,83,73,73,73,11,"",36,49,49,55,24,9,19,11,"","","",79,6,29,15,19,45,23,21,27,74,7,5,46,57,50,37,45,87,28,73,71,35,62,18,42,73,26,29,47,26,39,10,91,78,34,10,91,75,25,28,100,57,79,85,16,"",100,"",30,89,65,80,85,63,14,37,62,75,48,19,81,52,0,54,0,0,0,0,0,0]
[93,{"$f":"IF(ISNA(MATCH(L99,'GARP Model'!$D$23:$D$32,0)),0,1)","v":0},"2026-02-28",93,2,"","","",196268,1,"A","YELP","YELP INC",11,"NYSE",50,"Communication Services",5020,"Media & Entertainment",502030,"Interactive Media & Services",50203010,"Interactive Media & Services",2025,3,22.29,62.140999999999998,1385.1228900000001,"",2,"",5,5,5,2,1,3,0,62,93,93,82,71,96,95,93,98,98,97,65,5,7,52,45,46,86,80,20,13,"","","",99,31,96,92,68,39,22,57,63,72,75,71,68,58,36,89,81,94,62,56,68,52,98,0,82,78,85,29,41,27,95,81,88,91,86,76,84,83,32,52,100,39,55,63,51,26,8,26,88,10,12,12,9,11,75,37,31,31,26,67,62,17,100,91,0,0,0,100,0,0]
[94,{"$f":"IF(ISNA(MATCH(L100,'GARP Model'!$D$23:$D$32,0)),0,1)","v":0},"2026-02-28",94,2,"","","",33152,1,"A","DBX","DROPBOX INC",14,"NASDAQ",45,"Information Technology",4510,"Software & Services",451030,"Software",45103010,"Application Software",2025,3,24.99,255.5,6384.9449999999997,"","","",5,5,5,4,2,3,0,1,40,83,85,71,91,89,88,88,87,87,33,28,11,73,62,64,"","",66,79,"","","",99,28,36,30,79,80,63,89,96,95,8,3,48,34,41,7,9,89,62,56,68,79,96,0,87,81,89,31,42,48,97,14,79,89,"","","","",17,"",100,95,93,93,71,49,100,35,58,26,16,24,16,19,60,37,62,31,48,46,69,26,100,13,0,0,0,0,0,0]
[95,{"$f":"IF(ISNA(MATCH(L101,'GARP Model'!$D$23:$D$32,0)),0,1)","v":0},"2026-02-28",95,2,"","","",23238,1,"A","ETSY","ETSY INC",11,"NYSE",25,"Consumer Discretionary",2550,"Consumer Discretionary Distribution & Retail",255030,"Broadline Retail",25503030,"Broadline Retail",2025,4,54.88,97.031000000000006,5325.0612799999999,"","",2,5,5,4,3,1,3,0,1,57,48,40,47,86,88,89,85,88,89,20,"",80,63,59,42,"","",39,24,"","","",98,61,15,35,59,56,25,17,73,81,45,31,53,62,60,15,17,92,62,56,68,52,88,0,25,35,7,27,49,36,74,10,96,7,"","","","",8,"",100,67,80,84,43,100,7,26,40,3,14,20,49,37,96,37,31,54,26,47,30,31,0,31,0,0,0,0,0,0]
[96,{"$f":"IF(ISNA(MATCH(L102,'GARP Model'!$D$23:$D$32,0)),0,1)","v":0},"2026-02-28",96,4,"","","",20088,1,"A","BOX","BOX INC",11,"NYSE",45,"Information Technology",4510,"Software & Services",451030,"Software",45103010,"Application Software",2025,3,23.55,144.18600000000001,3395.5803000000001,"","",2,5,5,5,1,1,3,0,9,47,76,60,45,81,80,77,87,87,85,75,0,13,45,52,51,98,98,69,34,30,15,"",92,47,13,65,74,83,40,68,10,96,35,20,46,57,22,3,5,71,62,56,68,30,93,0,27,48,78,56,50,54,95,81,91,93,98,0,"",98,25,3,100,91,96,97,88,53,100,32,2,31,9,11,11,16,81,37,9,12,26,59,46,19,0,42,0,0,0,0,0,0]
[97,{"$f":"IF(ISNA(MATCH(L103,'GARP Model'!$D$23:$D$32,0)),0,1)","v":0},"2026-02-28",97,"","","","",23071,1,"A","GDDY","GODADDY INC",11,"NYSE",45,"Information Technology",4510,"Software & Services",451020,"IT Services",45102030,"Internet Services & Infrastructure",2025,3,87.16,135.477,11808.17532,"","",1,5,5,5,1,1,3,0,5,46,78,85,70,89,80,78,87,82,79,17,12,18,41,51,52,99,99,69,67,"","","",96,4,47,37,60,78,71,72,19,49,8,3,47,36,32,4,4,78,62,56,68,69,70,0,67,75,81,58,57,63,90,5,80,91,99,99,"","",20,1,100,85,90,89,21,26,100,51,91,26,7,3,1,2,51,7,1,0,2,85,69,3,100,56,0,0,0,0,0,0]
[98,{"$f":"IF(ISNA(MATCH(L104,'GARP Model'!$D$23:$D$32,0)),0,1)","v":0},"2026-02-28",98,-56,"Y","","",12392,1,"A","SKYW","SKYWEST INC",14,"NASDAQ",20,"Industrials",2030,"Transportation",203020,"Passenger Airlines",20302010,"Passenger Airlines",2025,4,104.08,39.871000000000002,4149.7736800000002,"","","",5,5,5,3,2,3,0,72,75,92,69,60,65,73,53,61,68,50,68,3,1,25,38,31,78,"",8,5,"","",8,72,100,57,27,"",10,93,89,96,98,7,4,40,42,24,50,75,69,30,32,70,69,36,20,30,71,84,30,64,91,75,70,79,75,78,67,81,77,63,59,100,15,38,28,"",100,"",25,"",85,26,15,34,20,4,37,31,54,48,84,47,16,100,76,0,0,0,0,100,0]
[99,{"$f":"IF(ISNA(MATCH(L105,'GARP Model'!$D$23:$D$32,0)),0,1)","v":0},"2026-02-28",99,-1,"","","",18630,1,"A","RNG","RINGCENTRAL INC",11,"NYSE",45,"Information Technology",4510,"Software & Services",451030,"Software",45103010,"Application Software",2025,3,36.450000000000003,88.513999999999996,3226.3353000000002,"",2,"",5,4,5,4,1,3,0,2,69,31,8,6,92,82,68,91,81,67,86,"",38,52,43,22,"","",20,30,"","","",92,43,39,31,54,37,73,85,97,92,10,4,77,27,29,7,10,98,65,57,69,45,92,0,84,89,86,42,47,54,37,88,96,75,"","","","",11,"",100,78,86,83,16,71,7,61,5,4,14,34,26,15,86,37,62,54,48,30,84,18,0,74,0,0,0,0,0,0]
[100,{"$f":"IF(ISNA(MATCH(L106,'GARP Model'!$D$23:$D$32,0)),0,1)","v":0},"2026-02-28",100,-43,"","","",64275,1,"A","CALM","CAL-MAINE FOODS INC",14,"NASDAQ",30,"Consumer Staples",3020,"Food, Beverage & Tobacco",302020,"Food Products",30202030,"Packaged Foods & Meats",2025,2,87.11,47.654000000000003,4151.13994,"","","",5,4,5,1,1,3,65,71,93,99,98,93,97,93,84,98,97,95,82,12,3,9,20,12,92,"",12,8,98,96,"",76,55,"",94,"",30,31,85,14,9,88,91,90,89,69,44,49,65,85,83,93,84,54,34,89,81,92,92,88,92,99,93,86,96,96,87,75,89,9,26,100,16,16,19,"",26,"",45,"",26,25,11,19,24,26,37,31,31,48,90,31,29,100,34,0,0,0,0,0,0]
[101,{"$f":"IF(ISNA(MATCH(L107,'GARP Model'!$D$23:$D$32,0)),0,1)","v":0},"2026-02-28",101,34,"","","",185375,1,"A","EVTC","EVERTEC INC",11,"NYSE",40,"Financials",4020,"Financial Services",402010,"Financial Services",40201060,"Transaction & Payment Processing Services",2025,3,28.31,63.984000000000002,1811.3870400000001,"","","",5,5,4,5,2,3,12,48,51,84,82,85,86,85,86,82,84,86,80,66,56,38,30,35,85,84,56,77,23,22,23,55,9,40,32,"",49,84,63,15,16,75,69,"","","",39,45,46,"","","",80,61,"",53,22,11,23,24,20,80,77,6,21,87,77,9,17,29,36,100,89,90,90,66,71,100,60,63,74,44,15,16,33,78,100,62,54,70,93,24,36,0,42,0,0,0,0,0,0]
[102,{"$f":"IF(ISNA(MATCH(L108,'GARP Model'!$D$23:$D$32,0)),0,1)","v":0},"2026-02-28",102,-89,"Y","","",25536,3,"A","CENTA","CENTRAL GARDEN & PET CO",14,"NASDAQ",30,"Consumer Staples",3030,"Household & Personal Products",303010,"Household Products",30301010,"Household Products",2026,1,34.54,62.256999999999998,2150.3567800000001,"","","",5,5,2,2,1,3,0,76,88,79,76,78,90,90,80,87,90,80,66,40,65,85,80,83,59,"",52,62,"","","",86,29,32,32,"",63,81,55,37,46,63,76,70,25,45,87,89,52,12,86,9,35,40,86,54,57,47,76,71,66,67,64,53,28,60,65,54,32,86,89,100,66,73,56,"","","","","",93,55,17,28,39,70,80,31,54,70,95,22,45,0,91,0,0,0,0,0,0]
[103,{"$f":"IF(ISNA(MATCH(L109,'GARP Model'!$D$23:$D$32,0)),0,1)","v":0},"2026-02-28",103,7,"Y","","",2002,1,"A","BPOP","POPULAR INC",14,"NASDAQ",40,"Financials",4010,"Banks",401010,"Banks",40101015,"Regional Banks",2025,3,135.36000000000001,66.959999999999994,9063.7055999999993,"","","",4,5,4,5,3,3,44,73,81,86,84,87,64,65,74,90,91,94,73,60,54,62,36,43,58,52,71,42,70,58,60,86,63,84,97,"",28,14,13,"","","","","","","",38,45,14,"","","",89,78,"",77,6,15,86,6,9,38,57,43,44,70,73,19,57,92,59,100,3,6,10,50,100,100,81,81,74,77,60,66,74,18,100,89,97,96,64,19,75,100,74,0,0,0,0,0,0]
[104,{"$f":"IF(ISNA(MATCH(L110,'GARP Model'!$D$23:$D$32,0)),0,1)","v":0},"2026-02-28",104,-82,"Y","","",2536,1,"A","RAMP","LIVERAMP HOLDINGS INC",11,"NYSE",45,"Information Technology",4510,"Software & Services",451030,"Software",45103010,"Application Software",2025,3,27.17,63.125,1715.10625,"","","",5,5,3,5,1,3,0,65,70,57,27,22,80,66,56,92,84,74,99,"",23,39,38,33,44,"",79,68,"","","",93,6,90,92,65,88,73,65,66,75,73,66,73,87,92,77,86,73,62,56,68,32,85,0,86,88,91,20,28,36,73,87,92,85,47,83,87,74,38,60,100,94,93,94,"",100,"",74,"",38,17,8,19,13,73,80,31,31,26,87,45,13,0,27,0,0,0,0,0,0]
[105,{"$f":"IF(ISNA(MATCH(L111,'GARP Model'!$D$23:$D$32,0)),0,1)","v":0},"2026-02-28",105,-3,"","","",61487,1,"A","BANR","BANNER CORP",14,"NASDAQ",40,"Financials",4010,"Banks",401010,"Banks",40101015,"Regional Banks",2025,3,58.85,34.335000000000001,2020.61475,"","","",5,4,4,4,3,3,65,87,65,89,88,88,92,88,88,96,95,95,56,47,49,45,33,60,41,"",84,60,34,45,19,58,57,79,88,"",69,79,79,"","","","","","","",62,72,23,"","","",85,86,"",63,17,65,51,8,14,40,52,50,46,60,57,41,53,98,91,100,68,66,71,"",42,"",61,"",67,39,33,27,29,63,37,31,12,2,63,62,30,0,55,0,0,0,0,0,0]
[106,{"$f":"IF(ISNA(MATCH(L112,'GARP Model'!$D$23:$D$32,0)),0,1)","v":0},"2026-02-28",106,14,"","","",27653,1,"A","YETI","YETI HOLDINGS INC",11,"NYSE",25,"Consumer Discretionary",2520,"Consumer Durables & Apparel",252020,"Leisure Products",25202010,"Leisure Products",2025,3,43.71,78.070999999999998,3412.4834099999998,"","",1,5,4,5,4,5,3,0,28,66,63,61,67,71,59,59,78,69,69,29,56,52,64,55,34,89,88,28,76,"","",8,92,45,83,63,12,50,69,30,53,33,33,53,37,19,28,46,24,83,91,95,16,49,71,67,20,30,28,19,65,46,93,19,16,28,88,30,24,8,31,33,100,48,45,38,68,49,100,60,35,29,90,67,76,66,66,100,89,90,70,80,43,67,0,68,0,0,0,0,0,0]
[107,{"$f":"IF(ISNA(MATCH(L113,'GARP Model'!$D$23:$D$32,0)),0,1)","v":0},"2026-02-28",107,-1,"Y","","",32930,1,"A","ADT","ADT INC",11,"NYSE",25,"Consumer Discretionary",2530,"Consumer Services",253020,"Diversified Consumer Services",25302020,"Specialized Consumer Services",2025,3,8.02,819.72400000000005,6574.1864800000003,"","","",5,4,5,3,1,3,54,64,49,91,64,36,96,93,92,86,82,80,66,"",23,53,87,90,69,"",26,89,82,81,11,96,14,51,10,"",15,89,19,84,4,7,4,57,66,19,60,71,74,73,83,69,94,93,19,35,86,83,22,91,84,66,66,77,80,82,76,86,89,58,38,5,75,73,79,"",26,"",54,"",29,19,28,26,49,68,7,9,2,9,46,24,50,0,82,0,0,0,0,0,0]
[108,{"$f":"IF(ISNA(MATCH(L114,'GARP Model'!$D$23:$D$32,0)),0,1)","v":0},"2026-02-28",108,42,"","","",139025,1,"A","PNFP","PINNACLE FINL PARTNERS INC",11,"NYSE",40,"Financials",4010,"Banks",401010,"Banks",40101015,"Regional Banks",2025,3,90.76,77.558000000000007,7039.1640799999996,"","","",5,5,4,3,2,3,44,88,66,87,83,82,92,76,76,95,87,88,74,42,39,42,11,19,48,15,76,43,60,44,70,48,53,56,83,"",43,65,52,"","","","","","","",97,97,23,"","","",76,70,"",78,7,15,90,4,12,39,57,46,43,56,69,49,52,95,95,100,"","","",20,71,100,25,94,29,59,45,21,17,50,80,62,31,9,66,87,16,0,51,0,0,0,0,0,0]
[109,{"$f":"IF(ISNA(MATCH(L115,'GARP Model'!$D$23:$D$32,0)),0,1)","v":0},"2026-02-28",109,-44,"","","",179819,1,"A","NX","QUANEX BUILDING PRODUCTS",11,"NYSE",20,"Industrials",2010,"Capital Goods",201020,"Building Products",20102010,"Building Products",2025,4,20.53,45.674999999999997,937.70775000000003,"","","",5,4,5,3,2,3,31,78,87,2,34,55,84,76,75,69,64,62,1,96,97,8,29,24,"","",33,6,87,76,57,78,31,41,15,"",38,25,31,16,9,32,50,91,16,34,23,35,94,97,11,9,42,27,53,66,53,46,82,78,72,12,4,3,3,9,4,5,4,24,29,100,61,62,65,82,26,6,98,"",58,88,28,42,30,82,80,62,75,70,98,53,32,100,71,0,0,0,0,0,0]
[110,{"$f":"IF(ISNA(MATCH(L116,'GARP Model'!$D$23:$D$32,0)),0,1)","v":0},"2026-02-28",110,-35,"","","",61483,1,"A","DVA","DAVITA INC",11,"NYSE",35,"Health Care",3510,"Health Care Equipment & Services",351020,"Health Care Providers & Services",35102015,"Health Care Services",2025,4,156.30000000000001,68.549000000000007,10714.208699999999,"","","",5,5,3,3,1,3,0,3,68,77,80,82,87,87,88,65,69,71,28,33,71,48,53,79,"","",28,57,"","","",98,4,27,12,"",32,73,78,22,42,37,24,19,54,36,6,10,65,33,30,44,61,36,7,29,61,38,33,67,55,66,29,61,32,"","","","",84,5,4,48,56,54,15,100,100,55,93,23,20,10,9,8,45,37,9,2,2,86,71,7,0,76,0,0,0,0,0,0]
[111,{"$f":"IF(ISNA(MATCH(L117,'GARP Model'!$D$23:$D$32,0)),0,1)","v":0},"2026-02-28",111,36,"","","",24724,2,"A","LILAK","LIBERTY LATIN AMERICA LTD",14,"NASDAQ",50,"Communication Services",5010,"Telecommunication Services",501010,"Diversified Telecommunication Services",50101010,"Alternative Carriers",2025,4,7.94,200,1588,"","","",5,5,3,2,3,3,0,46,60,1,2,1,94,92,90,46,44,44,50,"",67,73,82,79,"","",24,80,"","","",36,20,21,1,"",15,85,87,64,53,"",18,57,14,10,31,42,83,"","","",84,43,0,74,64,39,80,67,43,17,53,25,32,2,3,2,2,51,11,100,66,70,67,"","","","","",95,29,46,65,69,81,80,62,75,70,37,17,74,100,57,0,0,0,0,0,0]
[112,{"$f":"IF(ISNA(MATCH(L118,'GARP Model'!$D$23:$D$32,0)),0,1)","v":0},"2026-02-28",112,-106,"Y","","",174700,2,"A","GSL","GLOBAL SHIP LEASE INC",11,"NYSE",20,"Industrials",2030,"Transportation",203030,"Marine Transportation",20303010,"Marine Transportation",2025,3,41.08,35.771000000000001,1469.4726800000001,"","","",4,4,5,3,5,3,88,93,60,99,99,98,80,94,82,82,95,86,63,29,6,46,52,15,84,"",3,2,85,77,99,37,100,73,49,"",4,1,4,98,0,66,54,14,15,21,86,66,25,73,58,71,97,83,11,43,46,82,41,40,85,95,62,66,87,89,51,30,77,40,54,100,8,20,10,"",26,"",52,"",70,78,76,84,90,13,80,89,97,99,30,6,91,0,12,0,0,0,0,0,0]
[113,{"$f":"IF(ISNA(MATCH(L119,'GARP Model'!$D$23:$D$32,0)),0,1)","v":0},"2026-02-28",113,-46,"","","",149318,1,"A","WYNN","WYNN RESORTS LTD",14,"NASDAQ",25,"Consumer Discretionary",2530,"Consumer Services",253010,"Hotels, Restaurants & Leisure",25301010,"Casinos & Gaming",2025,3,108.19,103.977,11249.271629999999,"","","",4,5,5,2,2,3,18,3,46,61,54,23,63,59,28,48,47,27,19,"",35,73,14,21,75,88,22,10,88,99,20,85,71,14,13,"",18,65,91,25,79,56,42,65,59,59,8,6,66,31,65,81,70,51,8,17,84,92,23,84,89,65,20,85,91,87,5,96,98,26,3,100,37,67,75,89,42,20,17,"",35,18,30,61,67,63,37,31,54,48,41,14,68,0,58,0,0,0,0,0,0]
[114,{"$f":"IF(ISNA(MATCH(L120,'GARP Model'!$D$23:$D$32,0)),0,1)","v":0},"2026-02-28",114,20,"","","",33459,1,"A","OBK","ORIGIN BANCORP",11,"NYSE",40,"Financials",4010,"Banks",401010,"Banks",40101015,"Regional Banks",2025,3,41.6,30.968,1288.2688000000001,"","","",5,5,3,5,5,3,29,86,78,63,76,77,82,77,77,95,95,95,29,63,45,88,18,27,26,"",80,67,36,69,81,58,62,84,97,"",60,64,34,"","","","","","","",38,54,23,"","","",69,67,"",20,6,24,63,5,12,34,43,45,41,39,38,39,40,94,78,100,66,36,38,"",77,"",74,"",82,82,60,61,59,52,100,89,90,86,72,47,60,100,76,0,0,0,0,0,0]
[115,{"$f":"IF(ISNA(MATCH(L121,'GARP Model'!$D$23:$D$32,0)),0,1)","v":0},"2026-02-28",115,10,"","","",26746,1,"A","NTNX","NUTANIX INC",14,"NASDAQ",45,"Information Technology",4510,"Software & Services",451030,"Software",45103010,"Application Software",2026,1,38.28,270.72899999999998,10363.50612,"","",1,5,5,4,3,1,3,0,3,37,40,26,15,69,54,41,80,66,45,96,"",36,22,21,28,"","",25,22,"","","",85,45,20,74,77,39,37,87,13,10,62,46,7,11,88,38,6,93,62,56,68,32,97,0,83,92,95,65,76,72,79,92,97,98,"","","","",6,"",100,31,46,55,53,64,7,85,18,20,0,1,2,5,40,37,31,31,26,65,31,9,100,29,0,0,0,0,0,0]
[116,{"$f":"IF(ISNA(MATCH(L122,'GARP Model'!$D$23:$D$32,0)),0,1)","v":0},"2026-02-28",116,29,"","","",162559,1,"A","LAZ","LAZARD INC",11,"NYSE",40,"Financials",4020,"Financial Services",402030,"Capital Markets",40203020,"Investment Banking & Brokerage",2025,3,50.6,94.878,4800.8267999999998,"","","",3,5,5,3,3,3,75,23,67,70,54,75,77,81,88,79,84,90,49,69,70,62,76,75,62,8,60,43,52,27,24,78,40,24,44,"",64,36,51,"","","","","","","",19,27,50,"","","",45,12,"",51,16,11,57,15,14,75,61,30,48,94,18,4,18,48,17,100,27,39,34,9,26,100,49,94,57,58,40,66,44,34,80,62,90,70,72,45,39,0,42,0,0,0,0,0,0]
[117,{"$f":"IF(ISNA(MATCH(L123,'GARP Model'!$D$23:$D$32,0)),0,1)","v":0},"2026-02-28",117,-8,"","","",34526,1,"A","ARDT","ARDENT HEALTH INC",11,"NYSE",35,"Health Care",3510,"Health Care Equipment & Services",351020,"Health Care Providers & Services",35102020,"Health Care Facilities",2025,3,9.39,143.16999999999999,1344.3662999999999,"","","",5,4,3,5,4,3,0,85,97,98,96,96,86,82,83,64,63,66,87,"","",32,"","",80,94,22,"","","","",36,27,40,9,"",38,"","","","",63,51,74,"","","","",38,37,"","",31,44,11,71,"","",81,"","",65,76,"","",80,83,"","","","",100,24,25,25,97,26,100,95,"",96,1,10,3,4,"",37,89,75,48,24,80,"",100,19,0,0,0,0,0,0]
[118,{"$f":"IF(ISNA(MATCH(L124,'GARP Model'!$D$23:$D$32,0)),0,1)","v":0},"2026-02-28",118,128,"","","",157057,1,"A","AIZ","ASSURANT INC",11,"NYSE",40,"Financials",4030,"Insurance",403010,"Insurance",40301040,"Property & Casualty Insurance",2025,4,229.59,49.792999999999999,11431.97487,"","","",5,5,3,4,2,3,31,60,89,81,73,71,90,81,76,94,89,85,56,7,43,43,46,72,69,"",63,38,66,46,26,73,41,70,67,"",57,41,27,"","","","","","","",63,55,33,"","","",37,9,"","","","",79,80,67,53,56,66,55,76,51,77,66,88,80,100,35,44,50,"",53,"",34,"",63,62,71,52,56,23,80,62,31,26,30,71,60,0,53,0,0,0,0,0,0]
[119,{"$f":"IF(ISNA(MATCH(L125,'GARP Model'!$D$23:$D$32,0)),0,1)","v":0},"2026-02-28",119,2,"","","",64853,1,"A","QRVO","QORVO INC",14,"NASDAQ",45,"Information Technology",4530,"Semiconductors & Semiconductor Equipment",453010,"Semiconductors & Semiconductor Equipment",45301020,"Semiconductors",2025,3,82.9,92.653000000000006,7680.9336999999996,"","","",5,4,5,5,1,3,0,58,62,61,32,67,70,72,82,78,80,88,98,60,75,76,82,89,56,54,39,61,"","","",69,7,64,61,65,35,67,56,48,55,75,78,15,13,39,67,77,64,91,92,33,64,63,55,70,20,6,80,35,21,73,86,38,26,56,84,48,34,29,42,100,70,79,79,54,80,12,94,48,46,11,24,35,34,84,7,31,31,26,36,39,33,100,24,0,0,0,0,0,0]
[120,{"$f":"IF(ISNA(MATCH(L126,'GARP Model'!$D$23:$D$32,0)),0,1)","v":0},"2026-02-28",120,18,"","","",19753,1,"A","MGNI","MAGNITE INC",14,"NASDAQ",50,"Communication Services",5020,"Media & Entertainment",502010,"Media",50201010,"Advertising",2025,3,13.62,143.643,1956.4176600000001,"",1,"",5,5,3,3,2,3,0,52,47,47,17,19,76,78,70,81,84,77,93,0,24,49,46,7,45,11,46,21,"","","",73,11,30,55,52,21,11,17,89,85,26,14,87,1,99,45,15,58,62,56,68,62,82,0,78,45,88,71,30,10,49,71,81,82,48,76,86,83,45,34,100,45,90,92,13,71,100,26,72,27,10,3,49,24,53,37,31,54,48,90,15,8,0,80,0,0,0,0,0,0]
[121,{"$f":"IF(ISNA(MATCH(L127,'GARP Model'!$D$23:$D$32,0)),0,1)","v":0},"2026-02-28",121,27,"","","",33625,1,"A","AMAL","AMALGAMATED FINANCIAL CORP",14,"NASDAQ",40,"Financials",4010,"Banks",401010,"Banks",40101015,"Regional Banks",2025,3,38.49,30.088999999999999,1158.1256100000001,"","","",5,4,5,5,5,3,36,73,56,87,86,80,83,85,82,90,93,90,41,29,34,61,19,30,64,"",87,44,86,83,69,69,71,89,77,"",78,39,35,"","","","","","","",51,63,18,"","","",91,82,"",19,15,43,24,9,6,40,46,55,47,71,38,48,58,95,81,100,48,82,85,"",100,"",58,"",89,93,76,64,57,26,100,62,54,26,76,80,58,0,55,0,0,0,0,0,0]
[122,{"$f":"IF(ISNA(MATCH(L128,'GARP Model'!$D$23:$D$32,0)),0,1)","v":0},"2026-02-28",122,329,"","","",38927,1,"A","DOCS","DOXIMITY INC",11,"NYSE",35,"Health Care",3510,"Health Care Equipment & Services",351030,"Health Care Technology",35103010,"Health Care Technology",2025,3,24.53,184.99299999999999,4537.8782899999997,"","",1,4,5,5,3,2,3,0,29,24,67,58,58,64,55,53,81,71,70,59,16,"",24,24,"",91,79,63,33,"","","",93,41,98,87,63,67,65,"",50,"",89,89,67,8,"",51,65,66,62,56,"",88,98,0,19,78,"",37,63,"",98,83,86,"",89,77,80,"",48,71,100,60,70,61,31,38,100,37,75,13,1,4,4,9,63,7,31,31,26,44,41,5,0,89,0,0,0,100,0,0]
[123,{"$f":"IF(ISNA(MATCH(L129,'GARP Model'!$D$23:$D$32,0)),0,1)","v":0},"2026-02-28",123,-10,"","","",24678,1,"A","HMN","HORACE MANN EDUCATORS CORP",11,"NYSE",40,"Financials",4030,"Insurance",403010,"Insurance",40301030,"Multi-line Insurance",2025,3,43.51,40.813000000000002,1775.7736299999999,"",1,"",5,5,2,3,4,3,64,80,69,89,56,69,98,96,93,96,93,91,76,8,59,58,49,74,47,38,99,55,47,41,39,51,69,6,21,"",99,49,49,"","","","","","","",35,45,36,"","","",38,9,"",72,79,53,79,86,35,39,59,59,41,65,72,74,57,90,72,100,"","","",44,26,100,43,87,87,34,42,37,64,41,80,62,31,48,46,21,71,0,56,0,0,0,0,0,0]
[124,{"$f":"IF(ISNA(MATCH(L130,'GARP Model'!$D$23:$D$32,0)),0,1)","v":0},"2026-02-28",124,103,"","","",41835,1,"A","MBC","MASTERBRAND INC",11,"NYSE",20,"Industrials",2010,"Capital Goods",201020,"Building Products",20102010,"Building Products",2025,4,10.119999999999999,127.2,1287.2639999999999,"","","",5,4,3,1,3,3,0,90,90,40,90,90,77,95,95,63,90,91,12,80,"",67,87,"",19,"",34,28,"","","",67,9,28,16,"",43,20,"",73,"",27,39,79,82,"",77,88,57,72,75,"",30,37,40,11,38,"",21,62,"",36,17,20,"",31,19,21,"",60,68,100,47,44,45,"",26,"","","",21,25,47,24,12,46,37,31,31,9,32,90,13,0,93,0,0,0,0,0,0]
[125,{"$f":"IF(ISNA(MATCH(L131,'GARP Model'!$D$23:$D$32,0)),0,1)","v":0},"2026-02-28",125,11,"Y","","",27014,1,"A","ATKR","ATKORE INC",11,"NYSE",20,"Industrials",2010,"Capital Goods",201040,"Electrical Equipment",20104010,"Electrical Components & Equipment",2026,1,64.709999999999994,33.750999999999998,2184.0272100000002,"",2,"",4,5,4,3,2,3,41,70,87,21,98,99,76,96,97,78,96,97,8,85,88,89,92,49,"","",34,96,20,"","",71,36,52,39,"",45,78,23,37,25,70,76,20,13,72,42,25,83,76,7,15,36,25,63,5,7,8,5,13,15,23,4,1,4,23,6,3,4,13,19,100,60,25,28,"",62,"",81,"",73,34,21,37,26,91,37,62,75,86,79,48,24,100,63,0,0,0,0,0,0]
[126,{"$f":"IF(ISNA(MATCH(L132,'GARP Model'!$D$23:$D$32,0)),0,1)","v":0},"2026-02-28",126,3,"","","",24352,1,"A","PRGS","PROGRESS SOFTWARE CORP",14,"NASDAQ",45,"Information Technology",4510,"Software & Services",451030,"Software",45103020,"Systems Software",2025,4,41.88,42.335999999999999,1773.0316800000001,"","",1,5,4,5,5,1,3,0,36,44,58,59,64,89,84,84,78,73,75,49,59,71,12,22,23,76,81,74,45,3,6,8,87,1,30,17,65,79,63,70,97,1,5,1,78,14,44,55,72,66,62,68,68,80,96,0,28,46,34,22,29,26,57,56,24,15,77,48,29,20,71,70,100,97,97,97,77,78,100,95,15,11,25,16,5,13,81,37,9,2,2,81,68,19,100,18,0,0,0,100,0,0]
[127,{"$f":"IF(ISNA(MATCH(L133,'GARP Model'!$D$23:$D$32,0)),0,1)","v":0},"2026-02-28",127,-89,"Y","","",27333,1,"A","ADNT","ADIENT PLC",11,"NYSE",25,"Consumer Discretionary",2510,"Automobiles & Components",251010,"Automobile Components",25101010,"Automotive Parts & Equipment",2026,1,24.32,78.33,1904.9856,"","",1,5,5,2,3,2,3,0,85,98,5,25,86,77,92,81,58,83,67,0,"",75,68,70,80,"","",31,64,"","","",89,24,41,13,7,60,38,68,80,82,20,17,23,66,50,58,32,74,30,75,76,19,7,24,40,52,48,52,53,52,19,17,28,27,15,10,20,33,41,25,100,52,58,60,17,100,9,53,"",50,17,28,78,63,93,37,31,75,48,43,15,60,0,44,0,0,0,0,0,0]
[128,{"$f":"IF(ISNA(MATCH(L134,'GARP Model'!$D$23:$D$32,0)),0,1)","v":0},"2026-02-28",128,18,"","","",17035,1,"A","MCY","MERCURY GENERAL CORP",11,"NYSE",40,"Financials",4030,"Insurance",403010,"Insurance",40301040,"Property & Casualty Insurance",2025,4,90.58,55.389000000000003,5017.13562,"","","",5,4,4,5,4,3,28,58,95,93,63,53,95,89,88,98,96,96,57,"",58,37,21,50,85,"",63,31,31,15,14,36,68,83,94,"",72,41,51,"","","","","","","",35,42,59,"","","",41,10,"",52,91,20,58,95,23,74,48,90,35,87,38,94,56,33,23,100,50,69,72,"",100,"","","",86,64,70,76,89,12,80,89,90,96,33,6,89,100,36,0,0,0,0,0,0]
[129,{"$f":"IF(ISNA(MATCH(L135,'GARP Model'!$D$23:$D$32,0)),0,1)","v":0},"2026-02-28",129,12,"Y","","",65886,1,"A","AMG","AFFILIATED MANAGERS GRP INC",11,"NYSE",40,"Financials",4020,"Financial Services",402030,"Capital Markets",40203010,"Asset Management & Custody Banks",2025,3,306.18,28.3,8664.8940000000002,"","","",5,4,4,5,4,3,0,50,27,73,87,83,83,84,88,82,85,89,41,49,14,68,88,89,78,43,84,62,15,16,9,90,16,43,40,"",86,58,56,"","","","","","","",43,61,49,"","","",81,65,"",17,22,14,26,30,24,75,42,42,70,78,46,40,73,50,49,100,92,93,94,22,100,16,79,88,36,88,82,85,86,25,100,98,97,96,27,18,87,0,68,0,0,0,0,0,100]
[130,{"$f":"IF(ISNA(MATCH(L136,'GARP Model'!$D$23:$D$32,0)),0,1)","v":0},"2026-02-28",130,-112,"Y","","",31843,1,"A","HLIT","HARMONIC INC",14,"NASDAQ",45,"Information Technology",4520,"Technology Hardware & Equipment",452010,"Communications Equipment",45201020,"Communications Equipment",2025,3,10.63,112.215,1192.84545,"","","",5,4,4,4,3,3,0,48,55,50,60,51,84,46,44,89,52,47,21,38,21,65,69,39,55,"",51,30,"","","",85,13,66,63,64,51,26,91,29,17,54,52,93,12,73,59,78,85,9,77,16,50,66,55,85,75,86,55,63,47,72,11,38,87,55,15,37,83,40,49,2,36,58,45,"",26,"",87,"",67,19,54,34,25,83,37,89,54,26,22,85,25,100,59,0,0,0,0,0,0]
[{"$f":"A136+1","v":131},{"$f":"IF(ISNA(MATCH(L137,'GARP Model'!$D$23:$D$32,0)),0,1)","v":0},"2026-02-28",131,-83,"","","",19849,1,"A","ATEN","A10 NETWORKS INC",11,"NYSE",45,"Information Technology",4510,"Software & Services",451030,"Software",45103020,"Systems Software",2025,3,19.260000000000002,71.683999999999997,1380.63384,"","",1,3,5,5,4,3,3,24,19,32,53,53,60,54,52,51,69,64,64,44,34,14,36,68,72,79,65,25,14,23,49,"",83,56,40,81,70,25,15,9,9,17,80,77,89,87,22,48,35,62,89,71,90,65,94,28,71,54,83,44,50,51,85,15,27,71,89,64,55,78,26,38,100,19,18,32,40,78,8,48,53,48,29,26,32,29,54,37,9,12,26,65,51,28,100,19,0,0,0,0,0,0]
[132,{"$f":"IF(ISNA(MATCH(L138,'GARP Model'!$D$23:$D$32,0)),0,1)","v":0},"2026-02-28",132,-81,"","","",1230,1,"A","ALK","ALASKA AIR GROUP INC",11,"NYSE",20,"Industrials",2030,"Transportation",203020,"Passenger Airlines",20302010,"Passenger Airlines",2025,4,51.6,115.53100000000001,5961.3995999999997,"","","",4,5,4,3,1,3,0,74,92,37,58,42,12,13,24,15,17,25,13,20,40,17,30,6,21,2,11,18,"","",8,94,32,23,16,"",15,92,8,14,2,5,1,70,32,93,69,58,59,70,29,71,30,18,9,13,37,94,13,34,95,32,28,53,84,32,22,59,92,55,37,100,13,8,11,3,48,100,97,83,16,79,27,41,12,68,80,62,75,48,95,84,12,100,48,0,0,0,0,0,0]
[133,{"$f":"IF(ISNA(MATCH(L139,'GARP Model'!$D$23:$D$32,0)),0,1)","v":0},"2026-02-28",133,-46,"","","",10565,2,"A","TDW","TIDEWATER INC",11,"NYSE",10,"Energy",1010,"Energy",101010,"Energy Equipment & Services",10101020,"Oil & Gas Equipment & Services",2025,3,79.42,49.561999999999998,3936.2140399999998,"","","",4,4,5,3,4,3,0,39,45,55,50,33,68,50,41,76,55,43,31,"",29,56,7,9,71,"",54,73,"","","",78,100,76,56,"",57,77,55,8,25,74,69,18,92,96,58,51,72,37,75,86,88,60,12,54,88,92,76,91,91,81,25,89,94,72,32,87,90,19,31,100,94,94,95,"",37,"",37,"",40,81,68,81,58,39,80,62,90,70,56,63,62,0,80,0,0,0,0,0,0]
[134,{"$f":"IF(ISNA(MATCH(L140,'GARP Model'!$D$23:$D$32,0)),0,1)","v":0},"2026-02-28",134,-33,"","","",183640,1,"A","IRDM","IRIDIUM COMMUNICATIONS INC",14,"NASDAQ",50,"Communication Services",5010,"Telecommunication Services",501010,"Diversified Telecommunication Services",50101010,"Alternative Carriers",2025,4,23.95,104.91800000000001,2512.7860999999998,"","","",5,4,5,4,1,3,50,25,29,62,48,40,86,84,85,77,76,78,44,1,16,54,50,54,65,49,25,17,20,"","",92,51,34,19,22,14,17,8,54,72,59,61,74,60,40,54,63,82,82,14,22,94,84,35,68,39,14,33,42,24,68,58,77,76,89,77,88,86,61,39,100,71,87,90,40,71,29,50,61,22,43,14,13,13,97,80,62,54,48,93,64,21,100,86,0,0,0,0,0,0]
[135,{"$f":"IF(ISNA(MATCH(L141,'GARP Model'!$D$23:$D$32,0)),0,1)","v":0},"2026-02-28",135,40,"","","",33759,1,"A","TENB","TENABLE HOLDINGS INC",14,"NASDAQ",45,"Information Technology",4510,"Software & Services",451030,"Software",45103020,"Systems Software",2025,3,19.23,120.03400000000001,2308.2538199999999,"","",1,5,5,3,5,1,3,0,19,56,23,19,20,83,71,65,88,80,74,73,"",53,34,28,21,"","",57,28,"","","",94,5,12,64,69,58,71,90,91,91,23,12,76,77,51,41,42,91,62,56,68,20,94,0,80,83,87,61,50,30,22,73,76,85,19,77,87,93,75,49,100,75,80,74,"",81,"",94,"",11,7,6,6,3,91,7,1,0,0,71,76,4,0,98,0,0,0,100,0,0]
[136,{"$f":"IF(ISNA(MATCH(L142,'GARP Model'!$D$23:$D$32,0)),0,1)","v":0},"2026-02-28",136,49,"","","",39309,1,"A","STGW","STAGWELL INC",14,"NASDAQ",50,"Communication Services",5020,"Media & Entertainment",502010,"Media",50201010,"Advertising",2025,3,4.82,254.315,1225.7982999999999,"","","",5,5,2,3,2,3,0,69,85,36,32,35,94,91,91,78,73,75,99,67,"",47,61,"",23,10,62,29,"",5,"",94,8,20,8,"",72,61,"",60,"",21,10,37,25,"",14,19,55,62,56,"",34,42,0,56,32,"",66,34,"",32,60,43,"",33,69,27,"",91,72,100,91,95,94,17,26,100,58,39,87,84,39,33,36,76,80,31,31,26,93,57,29,0,81,0,0,0,0,0,0]
[137,{"$f":"IF(ISNA(MATCH(L143,'GARP Model'!$D$23:$D$32,0)),0,1)","v":0},"2026-02-28",137,-5,"","","",175606,1,"A","DAC","DANAOS CORPORATION",11,"NYSE",20,"Industrials",2030,"Transportation",203030,"Marine Transportation",20303010,"Marine Transportation",2025,3,117.95,18.309999999999999,2159.6644999999999,"","","",5,5,5,1,4,1,60,98,61,99,99,99,92,87,88,95,93,93,31,57,22,62,65,22,64,"",15,95,44,46,"",83,100,78,63,"",7,6,15,21,98,85,83,35,14,23,82,32,40,71,29,48,97,83,11,13,18,31,14,17,37,89,18,19,72,69,28,25,33,28,35,100,17,8,8,"",26,"","","",93,66,55,57,75,21,80,31,31,70,59,16,78,0,4,0,100,100,0,0,0]
[138,{"$f":"IF(ISNA(MATCH(L144,'GARP Model'!$D$23:$D$32,0)),0,1)","v":0},"2026-02-28",138,-19,"","","",43316,1,"A","CART","MAPLEBEAR INC",14,"NASDAQ",30,"Consumer Staples",3010,"Consumer Staples Distribution & Retail",301010,"Consumer Staples Distribution & Retail",30101030,"Food Retail",2025,3,37.51,265.50799999999998,9959.2050799999997,"","","",5,4,5,3,1,3,0,48,59,66,16,15,76,68,71,89,84,86,57,"","",36,"","",74,39,50,"","","","",75,39,97,89,61,60,"","","","",81,77,56,"","",39,50,78,62,"","",55,88,0,79,"","",40,"","",91,48,"","",74,47,"","",4,16,100,53,35,34,24,80,11,43,81,20,34,10,19,17,"",80,31,54,70,94,41,21,0,49,0,0,0,0,0,0]
[139,{"$f":"IF(ISNA(MATCH(L145,'GARP Model'!$D$23:$D$32,0)),0,1)","v":0},"2026-02-28",139,4,"","","",30463,1,"A","GBX","GREENBRIER COS INC (THE)",11,"NYSE",20,"Industrials",2010,"Capital Goods",201060,"Machinery",20106010,"Construction Machinery & Heavy Transportation Equipment",2026,1,56.42,30.896000000000001,1743.1523199999999,"","",1,5,5,3,5,4,3,45,84,84,92,84,73,68,9,4,52,12,7,44,2,11,94,78,72,60,90,15,93,12,20,18,71,54,27,15,1,18,19,7,"","","","",44,34,7,73,85,55,20,93,11,42,19,88,38,76,63,68,85,71,67,48,75,66,67,42,79,70,72,66,100,10,6,7,95,71,100,72,"",69,80,50,49,19,26,100,89,54,26,80,88,14,100,92,0,0,0,0,0,0]
[140,{"$f":"IF(ISNA(MATCH(L146,'GARP Model'!$D$23:$D$32,0)),0,1)","v":0},"2026-02-28",140,-17,"","","",21808,1,"A","CZR","CAESARS ENTERTAINMENT INC",14,"NASDAQ",25,"Consumer Discretionary",2530,"Consumer Services",253010,"Hotels, Restaurants & Leisure",25301010,"Casinos & Gaming",2025,3,25.05,205,5135.25,"","","",5,5,3,2,1,3,0,76,54,15,36,6,68,56,38,31,30,28,69,"",47,69,65,5,"","",32,85,"","","",83,11,12,1,"",19,66,11,54,88,15,7,64,66,96,39,12,53,64,58,84,76,61,2,20,72,81,21,66,42,26,58,66,62,20,68,84,86,59,26,100,58,48,59,"",26,"",24,"",6,39,10,8,5,96,80,31,31,26,95,77,4,100,51,0,0,0,100,0,0]
[141,{"$f":"IF(ISNA(MATCH(L147,'GARP Model'!$D$23:$D$32,0)),0,1)","v":0},"2026-02-28",141,13,"","","",38412,1,"A","DV","DOUBLEVERIFY HOLD INC",11,"NYSE",50,"Communication Services",5020,"Media & Entertainment",502010,"Media",50201010,"Advertising",2025,3,10.54,161.09399999999999,1697.93076,"","",2,5,5,4,3,1,3,0,70,60,45,53,51,73,66,63,83,78,74,24,56,"",25,18,"",30,11,33,19,"","","",97,6,83,75,72,28,86,"",52,"",82,79,67,83,"",52,68,80,62,56,"",57,93,0,24,32,"",37,41,"",60,27,33,"",37,38,45,"",77,93,100,58,64,67,18,80,8,22,60,30,24,6,11,3,96,37,31,54,48,95,74,4,100,56,0,0,0,0,0,0]
[142,{"$f":"IF(ISNA(MATCH(L148,'GARP Model'!$D$23:$D$32,0)),0,1)","v":0},"2026-02-28",142,23,"","","",39561,1,"A","JXN","JACKSON FINANCIAL INC",11,"NYSE",40,"Financials",4020,"Financial Services",402010,"Financial Services",40201020,"Diversified Financial Services",2025,3,109.48,68.332999999999998,7481.0968400000002,"","","",5,5,1,4,3,3,57,96,77,82,98,99,99,99,99,99,99,99,90,83,"",13,98,"",25,"",99,55,54,69,"",92,100,15,78,"",99,49,"","","","","","","","",45,58,26,"","","",53,46,"",95,2,"",96,10,"",30,60,32,"",41,89,4,"",86,21,100,"","","","",26,"",83,"",67,75,77,74,72,9,80,62,54,26,26,55,71,0,68,0,0,0,0,0,0]
[143,{"$f":"IF(ISNA(MATCH(L149,'GARP Model'!$D$23:$D$32,0)),0,1)","v":0},"2026-02-28",143,73,"","","",175263,1,"A","WU","WESTERN UNION CO",11,"NYSE",40,"Financials",4020,"Financial Services",402010,"Financial Services",40201060,"Transaction & Payment Processing Services",2025,4,9.6300000000000008,315.7,3040.1909999999998,"","","",4,5,3,5,2,3,95,42,80,98,99,99,93,94,97,87,91,95,20,68,76,84,83,94,85,90,68,36,18,20,21,91,19,42,20,"",73,34,34,"","","","","","","",17,10,21,"","","",65,48,"",27,35,22,17,23,18,76,13,21,24,97,4,1,0,76,8,100,82,92,94,83,67,24,64,49,9,39,65,27,42,76,37,62,31,48,25,80,52,0,35,0,0,0,0,0,0]
[144,{"$f":"IF(ISNA(MATCH(L150,'GARP Model'!$D$23:$D$32,0)),0,1)","v":0},"2026-02-28",144,17,"Y","","",18869,1,"A","WIX","WIX COM LTD",14,"NASDAQ",45,"Information Technology",4510,"Software & Services",451020,"IT Services",45102030,"Internet Services & Infrastructure",2025,3,70.459999999999994,56.107999999999997,3953.3696799999998,"","",1,5,5,5,3,1,1,0,2,63,52,32,22,90,71,57,93,80,68,74,"",27,29,34,25,65,30,66,93,"","","",95,45,9,67,78,81,91,76,3,41,53,38,56,45,40,0,1,90,62,56,68,30,83,0,77,93,90,51,83,31,73,47,96,90,65,52,99,95,15,6,100,83,20,18,25,26,100,40,65,5,1,4,1,0,67,37,62,54,48,49,85,0,0,47,0,0,0,100,0,0]
[145,{"$f":"IF(ISNA(MATCH(L151,'GARP Model'!$D$23:$D$32,0)),0,1)","v":0},"2026-02-28",145,62,"","","",17115,1,"A","SIGI","SELECTIVE INS GROUP INC",14,"NASDAQ",40,"Financials",4030,"Insurance",403010,"Insurance",40301040,"Property & Casualty Insurance",2025,4,84.04,60.076000000000001,5048.7870400000002,"","","",5,4,4,3,1,3,41,75,88,88,76,77,96,95,94,97,97,97,87,15,45,37,29,33,60,"",71,37,68,72,75,64,73,70,74,"",77,50,50,"","","","","","","",69,58,54,"","","",39,10,"",85,63,36,90,65,40,58,73,62,48,70,80,69,55,85,86,100,29,50,65,"",64,"",61,"",68,60,46,23,43,72,80,31,12,26,67,54,54,0,65,0,0,0,0,0,0]
[146,{"$f":"IF(ISNA(MATCH(L152,'GARP Model'!$D$23:$D$32,0)),0,1)","v":0},"2026-02-28",146,-42,"","","",23353,1,"A","GSBD","GOLDMAN SACHS BDC INC",11,"NYSE",40,"Financials",4020,"Financial Services",402030,"Capital Markets",40203010,"Asset Management & Custody Banks",2025,3,9.06,114.113,1033.8637799999999,"",1,"",4,5,4,4,2,3,99,96,21,96,91,96,98,95,91,93,77,72,80,26,5,94,56,12,2,82,99,55,79,63,91,78,100,18,6,"",99,49,49,"","","","","","","",80,19,69,"","","",98,92,"",12,25,20,12,22,22,65,74,65,65,56,75,67,65,55,62,100,"","","",97,26,100,50,"",45,28,21,26,26,72,80,62,54,48,73,49,32,100,72,0,0,0,0,0,0]
[147,{"$f":"IF(ISNA(MATCH(L153,'GARP Model'!$D$23:$D$32,0)),0,1)","v":0},"2026-02-28",147,-3,"","","",8606,1,"A","PBI","PITNEY BOWES INC",11,"NYSE",20,"Industrials",2020,"Commercial & Professional Services",202010,"Commercial Services & Supplies",20201060,"Office Services & Supplies",2025,3,10.73,162.899,1747.9062699999999,"","","",4,5,3,4,3,3,65,0,66,60,15,19,89,55,66,72,43,50,92,13,33,95,97,97,17,25,44,82,89,70,52,98,21,29,11,11,36,61,53,96,92,15,8,7,5,7,3,5,66,19,20,28,71,72,19,90,88,86,93,95,91,52,85,66,77,35,82,66,99,43,8,4,62,66,59,57,100,12,87,43,43,47,24,50,64,11,80,62,90,86,85,13,60,0,73,0,0,0,0,0,0]
[148,{"$f":"IF(ISNA(MATCH(L154,'GARP Model'!$D$23:$D$32,0)),0,1)","v":0},"2026-02-28",148,-24,"","","",32285,1,"A","ECVT","ECOVYST INC",11,"NYSE",15,"Materials",1510,"Materials",151010,"Chemicals",15101050,"Specialty Chemicals",2025,3,11.27,114.01900000000001,1284.99413,"",1,"",4,4,5,4,5,3,0,57,47,20,50,30,57,68,73,48,60,65,6,91,91,66,85,98,"","",26,44,"",5,"",69,25,22,19,9,17,11,15,62,81,65,56,33,71,68,62,44,88,94,82,98,68,38,18,12,35,40,7,24,36,23,13,20,20,21,13,22,20,42,41,0,46,54,59,37,48,100,69,"",51,86,65,82,76,66,100,89,97,86,73,21,74,100,47,0,0,0,0,0,0]
[149,{"$f":"IF(ISNA(MATCH(L155,'GARP Model'!$D$23:$D$32,0)),0,1)","v":0},"2026-02-28",149,100,"","","",133885,1,"A","EXEL","EXELIXIS INC",14,"NASDAQ",35,"Health Care",3520,"Pharmaceuticals, Biotechnology & Life Sciences",352010,"Biotechnology",35201010,"Biotechnology",2025,4,44.06,262.483,11565.000980000001,"","","",5,4,5,4,2,3,0,25,31,77,59,53,69,54,50,81,66,60,74,10,13,46,34,19,95,87,71,82,"","","",93,57,94,77,81,83,84,81,73,65,80,77,54,58,84,56,62,42,66,66,80,87,99,6,86,87,89,41,46,49,99,92,92,92,95,88,88,85,23,42,100,84,47,17,20,66,5,41,92,62,48,53,30,67,15,37,62,54,86,43,23,74,0,32,0,0,0,0,0,0]
[150,{"$f":"IF(ISNA(MATCH(L156,'GARP Model'!$D$23:$D$32,0)),0,1)","v":0},"2026-02-28",150,24,"","","",65106,1,"A","OZK","BANK OZK",14,"NASDAQ",40,"Financials",4010,"Banks",401010,"Banks",40101015,"Regional Banks",2025,3,46.56,112.628,5243.9596799999999,"","","",4,5,4,2,3,3,75,93,84,97,94,93,89,91,90,97,98,98,45,33,29,62,8,21,52,"",71,32,70,65,63,58,60,84,98,"",34,20,75,"","","","","","","",78,89,16,"","","",88,66,"",32,4,30,65,2,13,47,43,44,50,67,43,54,61,94,94,100,"",16,24,"",38,"",25,"",68,48,30,41,38,56,80,62,75,48,77,42,36,0,70,0,0,0,0,0,0]
[151,{"$f":"IF(ISNA(MATCH(L157,'GARP Model'!$D$23:$D$32,0)),0,1)","v":0},"2026-02-28",151,85,"","","",37382,1,"A","CNXC","CONCENTRIX CORP",14,"NASDAQ",20,"Industrials",2020,"Commercial & Professional Services",202020,"Professional Services",20202030,"Data Processing & Outsourced Services",2025,4,32.799999999999997,61.738999999999997,2025.0391999999999,"","","",5,5,3,2,1,3,79,96,93,0,86,94,97,97,96,81,76,75,2,96,97,65,25,26,"","",43,23,64,85,"",94,11,33,3,"",49,35,74,30,21,43,29,44,72,74,28,40,93,62,56,68,44,50,0,24,38,32,23,54,38,12,4,5,3,7,3,4,3,40,34,100,80,83,82,65,37,35,64,"",18,22,7,8,15,98,37,9,12,9,92,39,20,0,75,0,0,0,100,0,0]
[152,{"$f":"IF(ISNA(MATCH(L158,'GARP Model'!$D$23:$D$32,0)),0,1)","v":0},"2026-02-28",152,347,"Y","","",20235,1,"A","DNOW","DNOW INC",11,"NYSE",20,"Industrials",2010,"Capital Goods",201070,"Trading Companies & Distributors",20107010,"Trading Companies & Distributors",2025,3,11.78,105.012,1237.0413599999999,"","","",5,4,3,1,3,3,0,87,97,76,93,72,91,89,83,95,96,93,17,53,37,60,51,73,43,"",57,28,"","","",72,31,93,89,"",77,32,38,47,54,54,62,40,78,8,59,52,68,35,80,79,22,23,60,35,47,79,41,44,65,70,8,25,98,45,14,33,95,11,25,100,76,79,84,"",26,"",32,"",9,39,29,21,44,61,37,31,31,48,71,32,43,0,16,0,0,0,0,0,0]
[153,{"$f":"IF(ISNA(MATCH(L159,'GARP Model'!$D$23:$D$32,0)),0,1)","v":0},"2026-02-28",153,141,"","","",39963,1,"A","KD","KYNDRYL HOLDINGS INC",11,"NYSE",45,"Information Technology",4510,"Software & Services",451020,"IT Services",45102010,"IT Consulting & Other Services",2025,3,12.33,226,2786.58,"","","",5,5,5,1,1,1,0,53,98,88,5,1,82,21,13,66,23,17,82,"","",71,85,"",87,"",12,21,"","","",98,42,54,13,3,28,53,"",96,"",19,9,58,43,"",26,34,68,62,56,"",31,27,0,69,73,"",74,83,"",51,64,90,"",86,84,96,"",22,10,100,41,53,56,"",26,"",5,"",4,9,2,5,7,28,37,9,31,48,91,41,4,0,8,0,100,100,100,0,0]
[154,{"$f":"IF(ISNA(MATCH(L160,'GARP Model'!$D$23:$D$32,0)),0,1)","v":0},"2026-02-28",154,244,"","","",38374,1,"A","ACVA","ACV AUCTIONS INC",11,"NYSE",20,"Industrials",2020,"Commercial & Professional Services",202010,"Commercial Services & Supplies",20201070,"Diversified Support Services",2025,3,4.8600000000000003,172.17099999999999,836.75106000000005,"","","",5,5,3,1,1,3,0,61,83,10,7,6,79,40,42,87,46,47,48,"","",16,18,"","","",62,25,"","","",75,29,"",76,"",71,32,"",71,"",53,37,35,18,"",90,92,87,62,56,"",13,30,0,86,89,"",84,93,"",16,69,80,"",15,52,69,"",65,76,100,90,94,93,7,53,100,32,"",14,15,1,1,0,80,37,9,12,9,97,74,0,0,23,0,0,0,100,0,0]
[155,{"$f":"IF(ISNA(MATCH(L161,'GARP Model'!$D$23:$D$32,0)),0,1)","v":0},"2026-02-28",155,-16,"Y","","",62396,3,"A","IDT","IDT CORP",11,"NYSE",50,"Communication Services",5010,"Telecommunication Services",501010,"Diversified Telecommunication Services",50101020,"Integrated Telecommunication Services",2026,1,50.95,25.073,1277.4693500000001,"",2,"",5,4,4,3,3,3,7,34,92,74,65,67,69,52,49,87,71,67,52,16,30,63,80,91,90,82,25,39,95,"","",66,50,99,93,"",59,50,30,7,0,59,43,19,19,15,65,29,57,62,56,68,34,46,0,74,70,74,84,91,90,93,32,77,71,90,31,64,13,42,32,100,37,41,41,44,100,100,"",72,88,26,14,22,45,29,37,31,54,70,85,16,53,0,53,0,0,0,0,0,0]
[156,{"$f":"IF(ISNA(MATCH(L162,'GARP Model'!$D$23:$D$32,0)),0,1)","v":0},"2026-02-28",156,88,"","","",11537,1,"A","WGO","WINNEBAGO INDUSTRIES",11,"NYSE",25,"Consumer Discretionary",2510,"Automobiles & Components",251020,"Automobiles",25102010,"Automobile Manufacturers",2026,1,39.89,28.1,1120.9090000000001,"","","",4,4,4,5,4,3,67,92,96,49,88,97,87,89,93,83,88,93,95,82,82,67,95,82,11,"",50,88,54,79,87,67,22,30,31,"",68,69,53,68,56,37,65,71,29,80,67,54,64,79,14,16,18,13,56,30,21,22,32,25,39,46,78,8,16,34,76,12,18,28,38,100,64,41,33,"",75,"",74,"",37,80,85,70,41,81,80,89,90,70,16,95,35,0,93,0,0,0,0,0,100]
[157,{"$f":"IF(ISNA(MATCH(L163,'GARP Model'!$D$23:$D$32,0)),0,1)","v":0},"2026-02-28",157,14,"","","",24978,1,"A","CALY","CALLAWAY GOLF CO",11,"NYSE",25,"Consumer Discretionary",2520,"Consumer Durables & Apparel",252020,"Leisure Products",25202010,"Leisure Products",2025,3,14.06,183.9,2585.634,"","","",4,5,5,5,3,3,0,87,73,0,3,9,30,10,13,27,16,19,0,98,98,83,67,15,"","",30,92,"",5,8,42,40,8,8,20,21,91,10,11,34,39,45,81,60,92,33,9,96,87,88,94,40,45,54,64,56,63,46,44,15,9,2,3,4,5,3,4,4,20,19,100,38,18,17,96,100,100,36,"",28,96,85,89,89,90,80,62,75,86,53,13,89,100,21,0,0,0,0,0,0]
[158,{"$f":"IF(ISNA(MATCH(L164,'GARP Model'!$D$23:$D$32,0)),0,1)","v":0},"2026-02-28",158,85,"","","",25749,1,"A","ASGN","ASGN INC",11,"NYSE",45,"Information Technology",4510,"Software & Services",451020,"IT Services",45102010,"IT Consulting & Other Services",2025,3,42.9,43.1,1848.99,"",2,"",5,5,3,3,2,3,0,88,92,78,91,93,92,95,93,86,92,91,26,71,75,86,84,89,44,"",54,35,"","","",92,1,43,21,"",70,33,37,70,66,63,49,22,73,35,84,71,56,62,56,68,29,31,0,29,36,33,49,45,58,61,24,23,22,47,31,31,25,79,88,100,74,83,85,"",79,"",13,"",30,70,38,28,6,90,100,89,54,26,83,92,8,100,40,0,0,0,0,0,0]
[159,{"$f":"IF(ISNA(MATCH(L165,'GARP Model'!$D$23:$D$32,0)),0,1)","v":0},"2026-02-28",159,18,"","","",16705,1,"A","CPF","CENTRAL PACIFIC FINANCIAL CP",11,"NYSE",40,"Financials",4010,"Banks",401010,"Banks",40101015,"Regional Banks",2025,3,31.85,26.904,856.89239999999995,"","","",4,4,4,4,5,3,70,73,64,82,81,82,85,83,82,93,93,93,57,54,50,67,42,62,40,"",83,68,47,33,37,56,100,78,88,"",63,91,92,"","","","","","","",58,66,20,"","","",89,87,"",79,11,65,89,7,23,37,52,48,44,64,57,34,56,97,80,100,57,16,14,"",100,"",81,"",86,67,67,57,57,30,100,89,54,26,40,63,57,0,41,0,0,0,0,0,0]
[160,{"$f":"IF(ISNA(MATCH(L166,'GARP Model'!$D$23:$D$32,0)),0,1)","v":0},"2026-02-28",160,-3,"","","",10411,1,"A","TDS","TELEPHONE & DATA SYSTEMS INC",11,"NYSE",50,"Communication Services",5010,"Telecommunication Services",501020,"Wireless Telecommunication Services",50102010,"Wireless Telecommunication Services",2025,3,44.75,115.544,5170.5940000000001,"","","",4,4,5,2,3,3,5,83,52,35,18,27,57,33,35,63,35,37,86,66,83,98,98,98,"","",26,96,10,13,39,57,100,43,53,"",8,22,71,69,83,61,46,97,97,97,80,63,79,91,87,89,60,68,1,10,41,23,33,70,49,36,86,51,28,31,88,53,29,68,66,0,39,36,32,"","","","","",74,70,56,48,71,6,100,89,75,86,60,22,80,0,17,0,0,0,0,0,0]
[161,{"$f":"IF(ISNA(MATCH(L167,'GARP Model'!$D$23:$D$32,0)),0,1)","v":0},"2026-02-28",161,-19,"","","",184442,2,"A","CHRD","CHORD ENERGY CORP",14,"NASDAQ",10,"Energy",1010,"Energy",101020,"Oil, Gas & Consumable Fuels",10102020,"Oil & Gas Exploration & Production",2025,3,108.37,56.865000000000002,6162.4600499999997,"","","",5,5,4,3,1,3,82,95,77,45,97,91,90,93,91,91,95,93,12,82,41,42,22,9,7,73,6,3,8,14,"",94,100,85,46,"",7,3,96,98,2,38,27,89,36,5,9,11,89,26,31,74,92,59,12,44,19,98,53,17,98,42,11,5,100,32,18,12,"",1,6,100,41,33,34,95,26,2,34,"",44,60,23,42,34,76,80,31,54,70,91,39,41,100,70,0,0,0,0,0,0]
[162,{"$f":"IF(ISNA(MATCH(L168,'GARP Model'!$D$23:$D$32,0)),0,1)","v":0},"2026-02-28",162,-45,"","","",206243,1,"A","XPRO","EXPRO GROUP HOLDINGS N V",11,"NYSE",10,"Energy",1010,"Energy",101010,"Energy Equipment & Services",10101020,"Oil & Gas Equipment & Services",2025,3,17.86,113.517,2027.41362,"","",2,5,4,5,3,4,3,0,77,80,51,34,27,61,34,26,72,37,26,95,"","",76,37,"",32,49,19,40,"","","",73,29,86,67,11,20,88,"",37,"",58,52,81,86,"",66,80,72,71,67,"",58,23,42,74,83,"",79,85,"",57,77,86,"",38,72,83,"",46,64,100,56,59,58,69,62,100,19,20,70,73,82,86,69,77,80,89,75,48,18,79,67,0,80,0,0,0,0,0,0]
[163,{"$f":"IF(ISNA(MATCH(L169,'GARP Model'!$D$23:$D$32,0)),0,1)","v":0},"2026-02-28",163,10,"","","",36847,1,"A","HRMY","HARMONY BIOSC HOLD INC",14,"NASDAQ",35,"Health Care",3520,"Pharmaceuticals, Biotechnology & Life Sciences",352020,"Pharmaceuticals",35202010,"Pharmaceuticals",2025,3,28.54,57.595999999999997,1643.7898399999999,"",2,2,5,3,5,1,2,3,0,60,77,94,89,79,94,88,81,97,96,95,74,38,15,17,10,2,89,70,82,43,"","","",21,100,85,95,67,89,39,51,15,15,81,78,46,72,75,22,28,78,68,60,82,81,90,5,13,65,94,28,27,92,96,76,13,97,87,64,13,96,19,27,100,98,99,99,26,26,0,3,95,22,85,38,51,34,82,80,89,90,86,95,60,31,100,53,0,0,0,0,0,0]
[164,{"$f":"IF(ISNA(MATCH(L170,'GARP Model'!$D$23:$D$32,0)),0,1)","v":0},"2026-02-28",164,-120,"Y","","",33951,1,"A","FTDR","FRONTDOOR INC",14,"NASDAQ",25,"Consumer Discretionary",2530,"Consumer Services",253020,"Diversified Consumer Services",25302020,"Specialized Consumer Services",2025,3,68.569999999999993,72.433000000000007,4966.73081,"","","",4,4,5,4,3,3,0,9,50,67,57,54,65,51,50,71,55,53,53,5,41,32,48,60,98,"",39,85,"","","",83,4,58,48,"",65,72,71,98,40,57,41,58,47,39,1,3,53,62,56,68,68,67,0,68,84,71,68,91,76,92,9,80,61,98,22,4,"",46,0,100,79,53,53,"",66,"",49,"",78,17,33,67,40,17,80,89,90,86,34,44,32,0,41,0,0,0,0,0,0]
[165,{"$f":"IF(ISNA(MATCH(L171,'GARP Model'!$D$23:$D$32,0)),0,1)","v":0},"2026-02-28",165,-43,"","","",8215,2,"A","OI","O-I GLASS INC",11,"NYSE",15,"Materials",1510,"Materials",151030,"Containers & Packaging",15103010,"Metal, Glass & Plastic Containers",2025,4,13.4,152.97200000000001,2049.8247999999999,"","","",5,5,2,3,2,3,0,70,85,13,26,74,72,14,32,40,21,27,29,88,90,78,80,86,"","",19,93,"","",8,67,28,23,4,6,21,75,17,16,45,16,22,36,73,59,20,6,72,20,13,30,49,21,60,47,46,40,39,38,42,24,43,15,15,18,50,5,2,43,16,100,32,28,36,10,31,4,44,"",54,90,59,48,70,80,100,62,54,70,90,24,71,0,98,0,0,0,0,0,0]
[166,{"$f":"IF(ISNA(MATCH(L172,'GARP Model'!$D$23:$D$32,0)),0,1)","v":0},"2026-02-28",166,22,"","","",24232,1,"A","HWC","HANCOCK WHITNEY CORP",14,"NASDAQ",40,"Financials",4010,"Banks",401010,"Banks",40101015,"Regional Banks",2025,3,65.81,84.710999999999999,5574.8309099999997,"","","",4,5,4,3,4,3,54,80,44,86,85,83,81,82,84,83,86,88,63,51,6,69,31,59,46,"",86,59,87,83,65,67,56,58,46,"",77,81,82,"","","","","","","",68,77,17,"","","",91,84,"",85,9,93,90,5,92,43,56,48,55,63,63,36,74,90,71,100,79,80,76,"",100,"",32,"",74,78,58,61,62,37,100,89,90,70,69,37,61,0,79,0,0,0,0,0,0]
[167,{"$f":"IF(ISNA(MATCH(L173,'GARP Model'!$D$23:$D$32,0)),0,1)","v":0},"2026-02-28",167,-39,"","","",2593,1,"A","CBT","CABOT CORP",11,"NYSE",15,"Materials",1510,"Materials",151010,"Chemicals",15101010,"Commodity Chemicals",2026,1,76.14,52.216000000000001,3975.72624,"","","",5,4,5,4,3,3,47,50,77,83,90,82,81,79,63,81,80,65,26,53,20,91,87,64,72,82,13,32,38,50,42,81,52,72,39,16,20,13,20,71,55,31,39,49,65,74,49,52,78,25,80,82,63,32,53,60,71,68,71,82,62,86,18,34,90,85,14,20,91,36,33,100,17,17,21,83,26,100,73,18,68,50,34,20,25,66,80,62,31,48,73,71,28,0,79,0,0,0,0,0,0]
[168,{"$f":"IF(ISNA(MATCH(L174,'GARP Model'!$D$23:$D$32,0)),0,1)","v":0},"2026-02-28",168,12,"","","",18745,1,"A","ESNT","ESSENT GROUP LTD",11,"NYSE",40,"Financials",4020,"Financial Services",402010,"Financial Services",40201050,"Commercial & Residential Mortgage Finance",2025,3,60.84,97.497,5931.7174800000003,"","","",5,5,3,2,3,3,41,87,31,95,93,93,91,89,89,94,94,94,39,57,52,61,48,66,60,74,80,42,61,74,75,93,66,86,72,"",80,34,33,"","","","","","","",81,81,29,"","","",97,82,"",8,3,84,8,3,87,88,33,18,52,68,44,30,43,60,81,100,26,38,42,81,43,100,7,46,77,42,52,39,54,35,80,62,31,48,40,46,59,0,76,0,0,0,0,0,0]
[169,{"$f":"IF(ISNA(MATCH(L175,'GARP Model'!$D$23:$D$32,0)),0,1)","v":0},"2026-02-28",169,65,"","","",35881,1,"A","XP","XP INC",14,"NASDAQ",40,"Financials",4020,"Financial Services",402030,"Capital Markets",40203020,"Investment Banking & Brokerage",2025,3,21.53,525.74699999999996,11319.332909999999,"","","",4,5,3,5,3,3,15,50,"",80,79,74,97,88,68,"","","",43,36,26,90,48,24,67,45,85,41,11,"",87,64,67,3,"","",71,27,65,"","","","","","","",37,35,38,"","","",80,83,"",51,64,91,52,34,59,40,40,38,26,84,34,46,36,88,91,100,55,83,78,34,100,33,59,85,51,51,64,50,80,51,80,62,54,86,32,15,79,100,85,0,0,0,0,0,0]
[170,{"$f":"IF(ISNA(MATCH(L176,'GARP Model'!$D$23:$D$32,0)),0,1)","v":0},"2026-02-28",170,20,"","","",38821,1,"A","OGN","ORGANON & CO",11,"NYSE",35,"Health Care",3520,"Pharmaceuticals, Biotechnology & Life Sciences",352020,"Pharmaceuticals",35202010,"Pharmaceuticals",2025,3,7.29,259.983,1895.2760699999999,"",2,"",4,5,4,2,1,3,21,57,71,99,99,99,99,98,99,79,76,92,15,70,"",78,73,"",95,96,52,77,6,13,"",58,10,26,1,41,44,60,"",25,"",35,42,89,36,"",4,6,39,10,4,"",74,75,80,24,23,"",35,23,"",63,10,18,"",97,1,"","",58,"",100,69,54,45,85,26,22,12,64,32,84,18,4,5,98,80,62,31,26,98,87,9,100,25,0,0,0,0,0,0]
[171,{"$f":"IF(ISNA(MATCH(L177,'GARP Model'!$D$23:$D$32,0)),0,1)","v":0},"2026-02-28",171,-22,"","","",29082,10,"A","CBL","CBL & ASSOCIATES PPTYS INC",11,"NYSE",60,"Real Estate",6010,"Equity Real Estate Investment Trusts (REITs)",601070,"Retail REITs",60107010,"Retail REITs",2025,3,37.78,30.783999999999999,1163.0195200000001,"","","",4,5,4,2,5,3,82,40,26,93,40,3,94,94,94,74,74,77,94,"",24,60,74,96,73,"",99,55,94,96,14,66,100,"",5,"",99,49,49,"","","","","","","",47,53,40,"","","","",47,"","","","",14,94,92,69,81,95,78,95,92,97,92,18,10,100,"","","","","","","","",90,80,76,76,70,30,80,62,75,70,33,57,72,0,69,0,0,0,0,0,0]
[172,{"$f":"IF(ISNA(MATCH(L178,'GARP Model'!$D$23:$D$32,0)),0,1)","v":0},"2026-02-28",172,86,"","","",34300,1,"A","VRRM","VERRA MOBILITY CORP",14,"NASDAQ",20,"Industrials",2020,"Commercial & Professional Services",202020,"Professional Services",20202030,"Data Processing & Outsourced Services",2025,3,16.71,159.56399999999999,2666.3144400000001,"",1,"",4,4,5,2,2,3,0,19,37,39,47,43,57,63,60,55,63,59,18,65,27,41,43,24,70,66,18,8,"","","",87,5,52,32,"",15,9,9,16,32,69,61,25,23,60,16,25,83,32,60,26,86,72,13,21,32,17,27,29,22,56,21,33,55,70,18,10,65,60,32,100,41,71,82,54,43,12,21,13,54,12,9,15,14,50,37,9,31,26,74,47,18,0,86,0,0,0,0,0,0]
[173,{"$f":"IF(ISNA(MATCH(L179,'GARP Model'!$D$23:$D$32,0)),0,1)","v":0},"2026-02-28",173,-22,"","","",11854,1,"A","NMIH","NMI HOLDINGS INC",14,"NASDAQ",40,"Financials",4020,"Financial Services",402010,"Financial Services",40201050,"Commercial & Residential Mortgage Finance",2025,4,39.31,76.284999999999997,2998.7633500000002,"","","",5,4,3,3,3,3,0,83,32,96,93,91,90,87,86,93,92,92,51,32,35,41,38,44,76,78,75,64,"","","",79,72,83,61,"",73,74,80,"","","","","","","",92,74,22,"","","",98,89,"",17,30,88,18,26,91,89,35,34,59,76,41,42,51,80,93,100,62,61,54,70,71,100,37,78,85,46,37,32,41,30,80,62,75,86,64,47,46,0,81,0,0,0,0,0,0]
[174,{"$f":"IF(ISNA(MATCH(L180,'GARP Model'!$D$23:$D$32,0)),0,1)","v":0},"2026-02-28",174,153,"","","",36203,1,"A","VNT","VONTIER CORP",11,"NYSE",45,"Information Technology",4520,"Technology Hardware & Equipment",452030,"Electronic Equipment, Instruments & Components",45203010,"Electronic Equipment & Instruments",2025,4,40.92,142.19999999999999,5818.8239999999996,"","","",4,4,5,4,2,3,3,29,56,78,77,81,69,66,72,69,67,73,39,47,65,60,78,82,94,93,49,58,20,23,"",84,5,48,35,39,51,31,23,81,76,22,19,63,33,32,37,24,32,77,61,28,66,59,43,43,50,"",35,48,73,88,36,52,24,94,20,8,1,64,14,100,66,71,71,67,62,100,45,56,63,27,20,45,38,31,37,31,54,26,74,28,37,0,31,0,0,0,0,0,0]
[175,{"$f":"IF(ISNA(MATCH(L181,'GARP Model'!$D$23:$D$32,0)),0,1)","v":0},"2026-02-28",175,"","","","",45327,1,"A","BOW","BOWHEAD SPECIALTY HOLDGS INC",11,"NYSE",40,"Financials",4030,"Insurance",403010,"Insurance",40301040,"Property & Casualty Insurance",2025,3,25.33,32.783000000000001,830.39338999999995,"","","",5,3,5,4,3,3,0,61,88,74,67,67,98,99,99,99,99,99,81,"","",10,"","",69,39,71,"","","","",29,100,98,98,"",75,"","","","","","","","","",98,99,87,"","","",46,13,"",73,"","",80,"","",53,62,"","",68,75,"","","","",100,13,25,25,28,34,100,53,84,80,38,9,3,16,"",80,31,12,26,96,39,"",0,65,0,0,0,0,0,0]
[176,{"$f":"IF(ISNA(MATCH(L182,'GARP Model'!$D$23:$D$32,0)),0,1)","v":0},"2026-02-28",176,64,"Y","","",150306,1,"A","TCBI","TEXAS CAPITAL BANCSHARES INC",14,"NASDAQ",40,"Financials",4010,"Banks",401010,"Banks",40101015,"Regional Banks",2025,4,95.3,44.253999999999998,4217.4062000000004,"","","",5,5,2,5,4,3,0,82,71,83,69,71,73,70,83,88,87,94,95,48,14,28,23,46,53,11,86,65,30,30,72,82,74,68,91,"",78,59,31,"","","","","","","",89,83,15,"","","",81,72,"",92,38,38,93,15,24,38,64,48,51,56,81,47,64,91,79,100,86,65,86,13,81,100,83,96,55,77,62,70,71,35,100,89,90,86,60,27,71,100,69,0,0,0,0,0,0]
[177,{"$f":"IF(ISNA(MATCH(L183,'GARP Model'!$D$23:$D$32,0)),0,1)","v":0},"2026-02-28",177,22,"","","",27803,1,"A","DFIN","DONNELLEY FINANCIAL SOLTNS",11,"NYSE",40,"Financials",4020,"Financial Services",402030,"Capital Markets",40203040,"Financial Exchanges & Data",2025,3,49.76,26.9,1338.5440000000001,"",2,"",5,3,5,5,4,3,0,42,64,42,78,77,69,69,76,75,74,82,14,78,44,88,87,93,48,57,13,72,"","","",95,2,82,51,"",19,14,9,66,84,27,18,"","","",46,50,89,"","","",71,75,"",59,59,80,62,80,91,65,9,11,59,50,12,11,47,35,36,100,37,37,41,68,100,100,93,12,54,61,29,32,18,58,80,62,75,70,87,77,23,100,56,0,0,0,0,0,0]
[178,{"$f":"IF(ISNA(MATCH(L184,'GARP Model'!$D$23:$D$32,0)),0,1)","v":0},"2026-02-28",178,-38,"","","",1678,1,"A","APA","APA CORP",14,"NASDAQ",10,"Energy",1010,"Energy",101020,"Oil, Gas & Consumable Fuels",10102020,"Oil & Gas Exploration & Production",2025,3,30.37,355.66199999999998,10801.45494,"",2,"",5,3,5,4,2,3,64,64,73,97,98,95,94,85,90,92,84,89,25,73,37,52,84,26,84,91,3,12,67,92,72,74,100,82,29,"",6,4,93,97,94,11,7,94,91,92,2,3,92,86,67,94,96,75,19,89,46,97,91,38,97,86,19,5,99,90,9,0,99,10,3,100,32,26,34,88,27,2,61,"",29,72,78,82,69,86,80,89,97,96,23,67,74,100,35,0,0,0,0,0,0]
[179,{"$f":"IF(ISNA(MATCH(L185,'GARP Model'!$D$23:$D$32,0)),0,1)","v":0},"2026-02-28",179,30,"","","",39820,1,"A","ARHS","ARHAUS INC",14,"NASDAQ",25,"Consumer Discretionary",2550,"Consumer Discretionary Distribution & Retail",255040,"Specialty Retail",25504060,"Homefurnishing Retail",2025,3,8.25,141.06100000000001,1163.75325,"","","",5,4,4,4,3,3,0,45,83,74,88,85,65,53,56,66,53,56,38,60,"",45,48,"",83,87,15,90,3,6,"",45,65,33,36,"",24,24,"",10,"",11,26,54,50,"",13,18,63,19,79,"",33,52,81,36,35,"",48,37,"",72,30,19,"",83,23,7,"",40,29,100,17,8,9,80,62,100,70,21,67,36,57,56,23,83,80,62,54,26,31,88,13,0,45,0,0,0,0,0,0]
[180,{"$f":"IF(ISNA(MATCH(L186,'GARP Model'!$D$23:$D$32,0)),0,1)","v":0},"2026-02-28",180,-27,"","","",162254,1,"A","CE","CELANESE CORP",11,"NYSE",15,"Materials",1510,"Materials",151010,"Chemicals",15101050,"Specialty Chemicals",2025,3,49.94,109.504,5468.6297599999998,"","","",5,4,4,1,1,3,2,76,69,1,88,98,94,95,95,69,70,76,3,95,96,89,72,36,"","",51,83,5,9,11,36,25,9,4,12,35,83,87,87,4,28,38,83,36,69,26,33,94,85,8,15,51,27,79,17,21,26,17,23,36,11,2,4,2,3,1,1,2,16,14,5,71,60,54,"",27,"",4,"",17,68,16,25,8,96,100,62,54,48,97,80,12,100,22,0,0,0,100,0,0]
[181,{"$f":"IF(ISNA(MATCH(L187,'GARP Model'!$D$23:$D$32,0)),0,1)","v":0},"2026-02-28",181,-25,"","","",183830,1,"A","PEB","PEBBLEBROOK HOTEL TRUST",11,"NYSE",60,"Real Estate",6010,"Equity Real Estate Investment Trusts (REITs)",601030,"Hotel & Resort REITs",60103010,"Hotel & Resort REITs",2025,3,12.83,113.842,1460.59286,"","","",4,5,3,2,2,3,4,98,52,12,19,6,94,95,86,78,77,63,0,"",56,68,61,30,"","",99,55,25,26,12,82,100,"",6,"",99,41,50,"","","","","","","",95,93,69,"","","","",4,"","","","",6,18,93,23,24,44,54,23,28,51,49,56,65,100,"","","",89,26,100,"","",30,53,53,53,26,85,37,31,31,9,48,84,25,0,35,0,0,0,0,0,0]
[182,{"$f":"IF(ISNA(MATCH(L188,'GARP Model'!$D$23:$D$32,0)),0,1)","v":0},"2026-02-28",182,42,"","","",35544,1,"A","INMD","INMODE LTD",14,"NASDAQ",35,"Health Care",3510,"Health Care Equipment & Services",351010,"Health Care Equipment & Supplies",35101010,"Health Care Equipment",2025,4,13.75,63.359000000000002,871.18624999999997,"",2,"",5,5,1,4,3,3,0,79,89,93,98,98,80,93,94,97,99,99,19,66,63,88,88,35,72,"",79,43,"","","",98,100,96,99,31,86,53,39,44,17,92,93,11,7,9,26,33,9,5,3,4,67,91,73,8,8,6,22,23,17,92,6,8,4,73,13,20,11,28,51,100,23,34,24,"",26,"",75,"",28,46,55,38,31,94,80,62,31,48,41,81,23,100,45,0,0,0,0,0,0]
[183,{"$f":"IF(ISNA(MATCH(L189,'GARP Model'!$D$23:$D$32,0)),0,1)","v":0},"2026-02-28",183,32,"","","",2884,1,"A","LUMN","LUMEN TECHNOLOGIES INC",11,"NYSE",50,"Communication Services",5010,"Telecommunication Services",501010,"Diversified Telecommunication Services",50101010,"Alternative Carriers",2025,3,7.11,1025.654,7292.3999400000002,"","","",5,4,5,4,4,1,0,2,68,3,0,0,93,63,96,65,39,80,62,92,92,85,93,97,"","",6,17,4,5,8,36,100,18,4,"",6,3,5,3,94,67,55,7,10,18,9,13,92,63,29,39,68,57,8,11,12,4,18,17,13,17,72,14,9,"","","","",12,1,100,26,39,48,"",43,"",77,"",38,14,93,92,88,29,37,89,90,70,3,76,86,0,2,100,100,100,0,0,100]
[184,{"$f":"IF(ISNA(MATCH(L190,'GARP Model'!$D$23:$D$32,0)),0,1)","v":0},"2026-02-28",184,44,"","","",39057,1,"A","GLUE","MONTE ROSA THERAPEUTICS INC",14,"NASDAQ",35,"Health Care",3520,"Pharmaceuticals, Biotechnology & Life Sciences",352010,"Biotechnology",35201010,"Biotechnology",2025,3,17.75,61.79,1096.7725,"","",1,5,3,5,3,5,3,0,31,33,39,9,9,89,14,10,96,9,6,86,"","",0,"","",52,"",52,93,"","","",25,100,58,95,88,51,"","",38,"",89,88,75,"","",22,30,97,62,"","",30,7,0,98,"","",98,"","",69,98,96,"",53,97,92,"",7,18,100,70,17,13,"",32,"",33,"",39,97,99,97,97,11,80,89,90,86,0,98,96,0,61,100,0,0,0,0,100]
[185,{"$f":"IF(ISNA(MATCH(L191,'GARP Model'!$D$23:$D$32,0)),0,1)","v":0},"2026-02-28",185,-55,"Y","","",170396,1,"A","CUBI","CUSTOMERS BANCORP INC",11,"NYSE",40,"Financials",4010,"Banks",401010,"Banks",40101015,"Regional Banks",2025,3,67.44,34.164000000000001,2304.02016,"","","",5,4,4,4,4,3,0,86,"",82,87,91,93,29,55,"","","",30,66,50,84,25,23,48,"",65,29,12,79,22,14,"",44,"","",17,83,9,"","","","","","","",73,81,25,"","","",79,58,"",19,4,11,51,4,7,35,40,40,41,52,29,21,34,90,59,100,5,11,13,"",100,"",34,"",53,72,66,75,77,13,100,98,97,96,45,19,75,0,37,0,0,0,0,0,0]
[186,{"$f":"IF(ISNA(MATCH(L192,'GARP Model'!$D$23:$D$32,0)),0,1)","v":0},"2026-02-28",186,-22,"","","",63000,2,"A","RUSHA","RUSH ENTERPRISES INC",14,"NASDAQ",20,"Industrials",2010,"Capital Goods",201070,"Trading Companies & Distributors",20107010,"Trading Companies & Distributors",2025,3,70.97,77.84,5524.3047999999999,"","","",5,3,5,2,4,3,21,51,89,65,75,71,88,36,50,87,36,50,35,60,27,78,53,46,59,"",8,9,61,70,90,67,38,60,38,"",23,12,13,27,20,2,28,57,45,39,79,91,93,92,22,27,27,20,76,35,53,67,39,48,67,76,35,25,63,69,34,27,57,70,72,100,15,18,15,"","","","","",82,87,61,54,49,24,100,89,75,48,81,65,45,0,59,0,0,0,0,0,0]
[187,{"$f":"IF(ISNA(MATCH(L193,'GARP Model'!$D$23:$D$32,0)),0,1)","v":0},"2026-02-28",187,50,"","","",3246,1,"A","CMC","COMMERCIAL METALS",11,"NYSE",15,"Materials",1510,"Materials",151040,"Metals & Mining",15104050,"Steel",2026,1,73.3,111.008,8136.8864000000003,"",2,"",3,5,4,5,5,3,19,62,84,68,76,83,44,67,58,49,75,67,93,75,50,64,85,56,51,12,17,85,33,52,56,70,50,39,59,"",26,64,15,18,15,81,82,31,31,58,43,47,36,72,60,69,36,18,46,44,25,40,50,27,45,69,79,7,24,61,81,12,29,29,39,100,22,16,17,15,80,100,61,90,69,86,82,81,84,37,100,98,97,99,26,23,84,100,30,0,0,0,0,0,100]
[188,{"$f":"IF(ISNA(MATCH(L194,'GARP Model'!$D$23:$D$32,0)),0,1)","v":0},"2026-02-28",188,-2,"","","",8214,6,"A","OC","OWENS CORNING",11,"NYSE",20,"Industrials",2010,"Capital Goods",201020,"Building Products",20102010,"Building Products",2025,3,122.07,82.2,10034.154,"","",2,5,4,5,1,1,3,51,54,76,22,89,88,84,86,86,77,81,82,8,87,50,59,59,47,"","",19,10,77,87,82,90,30,61,23,14,20,14,14,72,67,20,29,81,53,67,52,67,91,88,65,45,69,41,51,27,54,72,41,67,79,25,8,8,70,23,8,9,71,38,42,0,31,42,47,76,26,40,8,"",33,23,17,12,10,47,37,31,12,9,76,78,9,100,83,0,0,0,0,0,0]
[189,{"$f":"IF(ISNA(MATCH(L195,'GARP Model'!$D$23:$D$32,0)),0,1)","v":0},"2026-02-28",189,14,"","","",3905,1,"A","ATGE","ADTALEM GLOBAL EDUCATION INC",11,"NYSE",25,"Consumer Discretionary",2530,"Consumer Services",253020,"Diversified Consumer Services",25302010,"Education Services",2026,2,98,34.654000000000003,3396.0920000000001,"","","",5,4,5,5,2,3,0,51,61,80,68,57,84,69,59,84,71,62,62,2,72,31,42,38,83,68,41,23,"","","",95,8,70,41,"",40,18,74,96,91,12,5,56,25,42,68,70,67,62,56,68,68,72,0,56,43,45,56,55,46,88,76,84,19,83,74,84,28,50,58,6,31,67,77,37,100,100,79,85,51,45,20,23,37,11,37,62,54,70,87,30,41,100,14,0,0,0,0,0,0]
[190,{"$f":"IF(ISNA(MATCH(L196,'GARP Model'!$D$23:$D$32,0)),0,1)","v":0},"2026-02-28",190,259,"","","",3708,3,"A","WEN","WENDY'S CO",14,"NASDAQ",25,"Consumer Discretionary",2530,"Consumer Services",253010,"Hotels, Restaurants & Leisure",25301040,"Restaurants",2025,3,7.66,190.31100000000001,1457.78226,"","","",3,5,4,3,1,3,91,10,57,96,94,94,93,94,94,57,64,67,39,48,48,72,64,69,93,95,42,29,10,77,77,97,29,9,3,"",28,26,35,92,92,17,8,33,68,49,32,39,38,36,57,47,67,40,1,44,49,44,2,5,2,63,45,56,56,99,98,97,97,90,12,100,53,65,68,87,26,10,51,3,3,21,13,3,4,95,37,31,12,26,82,83,12,100,97,0,0,0,100,0,0]
[191,{"$f":"IF(ISNA(MATCH(L197,'GARP Model'!$D$23:$D$32,0)),0,1)","v":0},"2026-02-28",191,93,"","","",14253,1,"A","WABC","WESTAMERICA BANCORPORATION",14,"NASDAQ",40,"Financials",4010,"Banks",401010,"Banks",40101015,"Regional Banks",2025,3,50.65,25.106999999999999,1271.6695500000001,"","","",4,5,2,5,5,3,70,76,50,89,92,90,79,84,81,95,96,96,30,40,54,93,55,66,49,"",87,45,35,37,34,88,58,82,97,"",75,31,68,"","","","","","","",36,43,15,"","","",97,99,"",14,37,76,49,26,33,49,39,59,51,70,31,34,54,88,66,100,49,80,83,"",100,"",75,"",86,49,43,32,43,66,80,62,31,48,58,53,46,0,62,0,0,0,0,0,0]
[192,{"$f":"IF(ISNA(MATCH(L198,'GARP Model'!$D$23:$D$32,0)),0,1)","v":0},"2026-02-28",192,131,"","","",37414,1,"A","CERT","CERTARA INC",14,"NASDAQ",35,"Health Care",3510,"Health Care Equipment & Services",351030,"Health Care Technology",35103010,"Health Care Technology",2025,3,7.08,159.39699999999999,1128.5307600000001,"","",2,5,5,3,1,1,3,0,86,46,33,24,22,82,72,70,84,77,75,88,"","",32,44,"",15,18,82,60,"","","",80,2,49,50,47,85,55,"",75,"",65,52,92,67,"",91,65,68,62,56,"",68,79,0,71,40,"",79,67,"",34,79,62,"",30,74,62,"",63,79,100,99,99,99,43,26,100,25,7,25,7,19,3,7,94,7,31,12,9,32,85,6,0,32,0,0,0,0,0,0]
[193,{"$f":"IF(ISNA(MATCH(L199,'GARP Model'!$D$23:$D$32,0)),0,1)","v":0},"2026-02-28",193,45,"","","",3278,1,"A","CAR","AVIS BUDGET GROUP INC",14,"NASDAQ",20,"Industrials",2030,"Transportation",203040,"Ground Transportation",20304040,"Passenger Ground Transportation",2025,3,97.41,35.200000000000003,3428.8319999999999,"",1,"",5,5,4,1,1,3,0,0,52,0,93,98,1,1,2,15,13,18,1,92,94,76,74,32,"","",3,90,2,"","",62,52,14,0,"",4,78,0,"","","","",63,48,73,4,6,91,62,56,68,82,59,0,16,20,81,23,19,84,16,9,5,16,12,6,5,11,29,12,100,20,14,16,"",26,"",1,"",16,13,5,51,71,89,7,1,12,26,89,5,59,0,70,0,0,0,100,0,0]
[194,{"$f":"IF(ISNA(MATCH(L200,'GARP Model'!$D$23:$D$32,0)),0,1)","v":0},"2026-02-28",194,36,"","","",23500,1,"A","CATY","CATHAY GENERAL BANCORP",14,"NASDAQ",40,"Financials",4010,"Banks",401010,"Banks",40101015,"Regional Banks",2025,3,49.71,68.287000000000006,3394.5467699999999,"","","",5,5,2,3,5,3,60,82,68,88,90,89,86,85,85,95,95,96,49,52,60,80,20,35,45,"",89,46,19,23,26,82,60,84,94,"",83,53,61,"","","","","","","",91,94,19,"","","",83,63,"",30,3,5,51,2,5,42,48,46,39,62,54,41,44,97,92,100,50,78,78,"",77,"",56,"",89,63,54,52,54,48,100,89,75,70,56,48,54,0,67,0,0,0,0,0,0]
[{"$f":"A200+1","v":195},{"$f":"IF(ISNA(MATCH(L201,'GARP Model'!$D$23:$D$32,0)),0,1)","v":0},"2026-02-28",195,-184,"Y","","",19817,1,"A","UVSP","UNIVEST FINANCIAL CORP",14,"NASDAQ",40,"Financials",4010,"Banks",401010,"Banks",40101015,"Regional Banks",2025,4,33.549999999999997,28.157,944.66735000000006,"","","",4,5,2,5,5,3,51,88,75,90,86,87,82,77,80,92,91,92,60,40,44,58,24,33,43,"",85,58,43,34,58,77,58,63,91,"",74,69,62,"","","","","","","",98,94,15,"","","",80,73,"",73,15,22,78,8,8,39,53,50,45,58,60,53,52,96,94,100,47,43,40,"",100,"",42,"",91,64,57,41,56,44,80,62,31,48,52,49,58,0,22,0,0,0,0,0,0]
[196,{"$f":"IF(ISNA(MATCH(L202,'GARP Model'!$D$23:$D$32,0)),0,1)","v":0},"2026-02-28",196,45,"","","",29150,1,"A","URBN","URBAN OUTFITTERS INC",14,"NASDAQ",25,"Consumer Discretionary",2550,"Consumer Discretionary Distribution & Retail",255040,"Specialty Retail",25504010,"Apparel Retail",2025,3,66.2,89.712000000000003,5938.9344000000001,"","","",5,4,5,5,2,3,0,55,83,85,71,67,64,51,45,71,56,47,74,8,1,33,45,40,83,81,19,15,"","","",74,100,68,52,"",34,77,49,21,40,17,33,59,51,58,81,81,36,77,76,46,37,45,54,65,69,75,68,79,82,89,78,80,84,82,74,77,79,59,69,100,14,16,14,66,77,33,86,65,39,54,24,60,70,13,80,62,75,86,88,10,69,0,25,0,0,0,0,0,0]
[197,{"$f":"IF(ISNA(MATCH(L203,'GARP Model'!$D$23:$D$32,0)),0,1)","v":0},"2026-02-28",197,-14,"","","",18441,1,"A","SPNT","SIRIUSPOINT LTD",11,"NYSE",40,"Financials",4030,"Insurance",403010,"Insurance",40301050,"Reinsurance",2025,3,21.14,116.807,2469.2999799999998,"","","",5,5,1,4,3,3,0,84,93,84,78,62,79,86,77,90,95,90,22,6,13,43,31,7,51,"",99,55,30,30,"",99,100,62,89,"",99,49,49,"","","","","","","",35,26,18,"","","",39,19,"",26,93,71,25,96,79,45,32,81,47,55,33,90,63,54,35,100,"","","","","","",64,"",90,60,38,49,78,12,80,31,31,48,76,9,81,0,97,0,0,0,0,0,0]
[198,{"$f":"IF(ISNA(MATCH(L204,'GARP Model'!$D$23:$D$32,0)),0,1)","v":0},"2026-02-28",198,14,"","","",7991,1,"A","TEX","TEREX CORP",11,"NYSE",20,"Industrials",2010,"Capital Goods",201060,"Machinery",20106010,"Construction Machinery & Heavy Transportation Equipment",2025,4,68.790000000000006,64.900000000000006,4464.4709999999995,"","","",4,4,4,3,3,3,19,56,80,65,85,80,67,61,60,62,57,56,24,60,2,50,48,37,52,52,42,77,22,63,96,61,26,38,26,7,52,60,38,25,43,41,57,41,35,71,41,56,42,87,77,40,43,23,73,49,63,76,59,69,68,62,22,18,66,62,19,20,70,40,49,100,52,21,21,54,26,100,33,53,5,82,51,78,64,56,100,62,75,48,82,27,60,0,55,0,0,0,0,0,0]
[199,{"$f":"IF(ISNA(MATCH(L205,'GARP Model'!$D$23:$D$32,0)),0,1)","v":0},"2026-02-28",199,183,"","","",40535,1,"A","TPG","TPG INC",14,"NASDAQ",40,"Financials",4020,"Financial Services",402030,"Capital Markets",40203010,"Asset Management & Custody Banks",2025,3,43.42,152.80699999999999,6634.8799399999998,"","","",4,5,5,2,2,3,86,23,66,38,36,57,89,88,93,89,90,94,96,77,"",14,23,"",0,0,75,42,93,18,"",74,51,30,41,"",81,30,"","","","","","","","",35,45,61,"","","",41,11,"",83,8,"",89,11,"",37,63,25,"",62,82,4,"",40,8,100,92,91,92,16,50,24,58,45,8,50,40,57,30,20,80,62,75,48,65,69,27,0,58,0,0,0,0,0,0]
[200,{"$f":"IF(ISNA(MATCH(L206,'GARP Model'!$D$23:$D$32,0)),0,1)","v":0},"2026-02-28",200,-45,"","","",1864,1,"A","REX","REX AMERICAN RESOURCES CORP",11,"NYSE",10,"Energy",1010,"Energy",101020,"Oil, Gas & Consumable Fuels",10102030,"Oil & Gas Refining & Marketing",2025,3,35.56,32.938000000000002,1171.2752800000001,"","","",3,5,4,2,5,3,0,58,77,60,62,59,31,45,49,36,61,68,27,36,4,82,91,36,55,"",7,4,"","","",80,100,91,93,"",15,5,5,46,34,90,90,28,24,44,73,85,55,66,65,84,34,13,20,14,64,74,13,71,75,79,20,44,75,55,31,54,67,58,80,100,2,7,15,"","","","","",92,44,72,80,85,19,80,89,90,96,22,10,86,0,14,0,0,0,0,0,0]
[201,{"$f":"IF(ISNA(MATCH(L207,'GARP Model'!$D$23:$D$32,0)),0,1)","v":0},"2026-02-28",201,54,"","","",9299,1,"A","R","RYDER SYSTEM INC",11,"NYSE",20,"Industrials",2030,"Transportation",203040,"Ground Transportation",20304030,"Cargo Ground Transportation",2025,4,221.56,39.417000000000002,8733.2305199999992,"","","",4,4,5,3,2,3,34,45,77,70,74,74,54,11,19,41,16,22,45,67,10,71,67,53,67,"",4,97,65,54,44,88,42,49,13,"",10,91,11,86,73,"",10,46,26,33,79,74,85,"","","",66,39,0,53,47,19,57,46,25,57,52,28,68,79,57,22,81,76,56,6,28,20,25,"",38,"",37,"",56,63,45,65,65,17,80,62,90,86,70,20,68,100,48,0,0,0,0,0,0]
[202,{"$f":"IF(ISNA(MATCH(L208,'GARP Model'!$D$23:$D$32,0)),0,1)","v":0},"2026-02-28",202,-5,"","","",22983,1,"A","XHR","XENIA HOTELS & RESORTS INC",11,"NYSE",60,"Real Estate",6010,"Equity Real Estate Investment Trusts (REITs)",601030,"Hotel & Resort REITs",60103010,"Hotel & Resort REITs",2025,3,15.28,94.805999999999997,1448.6356800000001,"","","",4,5,2,5,5,3,70,80,56,55,48,25,89,88,78,77,79,67,88,"",34,56,56,32,12,"",99,55,79,100,15,88,71,"",16,"",99,49,49,"","","","","","","",91,95,50,"","","","",10,"","","","",59,49,94,49,68,68,79,38,71,71,78,54,60,100,"","","","",100,"",95,"",82,78,60,66,44,60,100,89,75,48,65,70,43,0,85,0,0,0,0,0,0]
[203,{"$f":"IF(ISNA(MATCH(L209,'GARP Model'!$D$23:$D$32,0)),0,1)","v":0},"2026-02-28",203,106,"","","",119574,1,"A","EXTR","EXTREME NETWORKS INC",14,"NASDAQ",45,"Information Technology",4520,"Technology Hardware & Equipment",452010,"Communications Equipment",45201020,"Communications Equipment",2026,2,13.98,134.15299999999999,1875.45894,"",2,1,4,4,5,4,1,3,0,8,73,31,29,33,63,65,69,73,74,78,85,80,39,19,69,65,58,22,37,20,"","","",76,11,54,67,63,52,23,27,58,35,17,12,30,56,68,13,7,84,96,19,33,21,75,29,88,34,56,83,73,48,36,93,24,82,58,99,6,99,30,6,100,23,60,76,23,49,41,74,4,51,7,14,37,32,79,7,9,31,26,46,24,32,0,74,0,0,0,0,0,0]
[204,{"$f":"IF(ISNA(MATCH(L210,'GARP Model'!$D$23:$D$32,0)),0,1)","v":0},"2026-02-28",204,291,"","","",37200,1,"A","ARRY","ARRAY TECHNOLOGIES INC",14,"NASDAQ",20,"Industrials",2010,"Capital Goods",201040,"Electrical Equipment",20104010,"Electrical Components & Equipment",2025,3,7.58,152.74799999999999,1157.8298400000001,"","",2,5,4,5,2,4,3,0,45,80,19,25,24,70,91,51,66,91,48,78,"","",9,82,"","","",47,19,"",5,"",36,29,43,29,6,54,17,"",44,"",48,46,86,79,"",15,8,78,96,89,"",47,29,52,26,83,"",11,93,"",22,84,34,"",19,88,35,"",23,16,100,61,89,91,42,26,18,26,"",5,87,89,91,83,92,80,89,90,70,13,76,83,0,66,0,0,0,0,0,100]
[205,{"$f":"IF(ISNA(MATCH(L211,'GARP Model'!$D$23:$D$32,0)),0,1)","v":0},"2026-02-28",205,-149,"","","",1327,1,"A","SWKS","SKYWORKS SOLUTIONS INC",14,"NASDAQ",45,"Information Technology",4530,"Semiconductors & Semiconductor Equipment",453010,"Semiconductors & Semiconductor Equipment",45301020,"Semiconductors",2026,1,59.58,149.9,8931.0419999999995,"","",1,4,5,4,5,1,3,82,70,62,61,84,92,87,92,92,92,96,96,27,76,82,71,90,88,10,65,35,38,19,47,52,94,17,77,72,67,26,88,89,66,64,59,60,86,85,90,56,66,84,13,89,38,70,65,71,10,12,4,62,23,22,71,29,14,4,45,40,20,11,35,50,100,72,82,66,91,79,27,91,"",18,5,15,16,9,91,7,9,31,48,37,73,10,100,48,0,0,0,100,0,0]
[206,{"$f":"IF(ISNA(MATCH(L212,'GARP Model'!$D$23:$D$32,0)),0,1)","v":0},"2026-02-28",206,-25,"","","",29011,1,"A","BYD","BOYD GAMING CORP",11,"NYSE",25,"Consumer Discretionary",2530,"Consumer Services",253010,"Hotels, Restaurants & Leisure",25301010,"Casinos & Gaming",2025,3,83.23,78.646000000000001,6545.70658,"","","",5,4,4,4,2,3,16,51,61,99,91,87,61,76,79,59,74,79,94,7,5,50,55,40,97,98,9,7,16,88,93,97,30,62,31,"",12,7,6,7,96,5,2,75,57,43,30,40,1,63,59,75,75,54,3,27,30,80,26,24,68,99,96,93,96,98,95,90,96,31,31,100,14,22,33,71,51,100,55,95,52,52,31,50,55,41,80,31,54,70,78,23,53,100,12,0,0,0,0,0,0]
[207,{"$f":"IF(ISNA(MATCH(L213,'GARP Model'!$D$23:$D$32,0)),0,1)","v":0},"2026-02-28",207,6,"Y","","",66016,1,"A","INGR","INGREDION INC",11,"NYSE",30,"Consumer Staples",3020,"Food, Beverage & Tobacco",302020,"Food Products",30202010,"Agricultural Products & Services",2025,3,117.46,63.7,7482.2020000000002,"","","",5,4,3,2,2,3,55,65,81,87,86,78,67,76,67,74,81,73,40,26,44,84,80,76,77,"",17,11,"","","",76,33,73,50,9,23,15,38,22,36,58,66,14,52,20,76,83,46,25,81,31,54,29,64,65,72,58,79,83,69,86,35,70,65,77,38,60,53,53,62,100,13,22,23,"",62,"",9,"",54,39,20,17,28,50,80,31,12,9,83,44,31,0,92,0,0,0,0,0,0]
[208,{"$f":"IF(ISNA(MATCH(L214,'GARP Model'!$D$23:$D$32,0)),0,1)","v":0},"2026-02-28",208,18,"","","",31252,2,"A","MGY","MAGNOLIA OIL & GAS CORP",11,"NYSE",10,"Energy",1010,"Energy",101020,"Oil, Gas & Consumable Fuels",10102020,"Oil & Gas Exploration & Production",2025,4,27.82,181.23,5041.8185999999996,"","","",5,3,5,4,3,3,47,49,35,75,87,88,72,80,83,80,86,89,34,74,35,73,89,19,64,92,2,37,81,80,"",80,100,88,61,"",5,6,74,85,57,50,34,16,16,70,30,32,93,62,56,68,97,87,0,12,18,98,14,18,98,91,25,3,99,80,34,7,98,19,27,100,35,30,30,97,38,100,48,"",31,65,45,54,54,56,80,62,54,70,72,36,60,100,46,0,0,0,0,0,0]
[209,{"$f":"IF(ISNA(MATCH(L215,'GARP Model'!$D$23:$D$32,0)),0,1)","v":0},"2026-02-28",209,8,"","","",25751,1,"A","BLX","BANCO LATINOAMERICANO DE COM",11,"NYSE",40,"Financials",4020,"Financial Services",402010,"Financial Services",40201040,"Specialized Finance",2025,3,50.03,37.231000000000002,1862.6669300000001,"",1,"",5,4,4,1,4,3,85,84,33,95,89,84,99,97,96,97,92,93,52,7,30,68,2,14,50,"",90,57,92,92,60,7,"",3,15,"",88,57,36,"","","","","","","",76,79,53,"","","",75,43,"",73,15,18,82,11,17,47,48,62,47,73,37,75,60,91,73,100,87,82,97,"",26,"","","",94,65,67,58,76,8,80,62,54,70,37,23,77,100,54,0,0,0,0,0,0]
[210,{"$f":"IF(ISNA(MATCH(L216,'GARP Model'!$D$23:$D$32,0)),0,1)","v":0},"2026-02-28",210,4,"","","",63596,1,"A","WLFC","WILLIS LEASE FINANCE CORP",14,"NASDAQ",20,"Industrials",2010,"Capital Goods",201070,"Trading Companies & Distributors",20107010,"Trading Companies & Distributors",2025,3,203.71,7.6459999999999999,1557.56666,"",1,"",4,4,5,3,4,3,14,56,26,83,65,50,1,3,3,5,8,7,63,0,9,12,8,26,77,77,1,1,14,95,93,61,"",18,8,"",1,3,0,"","","","",97,3,2,66,72,50,96,91,96,96,67,34,9,32,7,10,28,10,61,58,76,63,81,53,86,74,74,50,100,2,2,3,67,26,100,"",60,92,93,72,46,35,8,80,62,54,48,84,89,38,0,82,0,0,0,0,0,0]
[211,{"$f":"IF(ISNA(MATCH(L217,'GARP Model'!$D$23:$D$32,0)),0,1)","v":0},"2026-02-28",211,12,"","","",63781,1,"A","WTFC","WINTRUST FINANCIAL CORP",14,"NASDAQ",40,"Financials",4010,"Banks",401010,"Banks",40101015,"Regional Banks",2025,3,144.06,66.960999999999999,9646.4016599999995,"","","",5,4,4,5,3,3,30,76,57,84,79,74,85,75,75,89,83,83,63,21,27,39,10,24,55,"",82,60,84,82,79,26,62,52,61,"",70,85,86,"","","","","","","",61,80,21,"","","",82,74,"",74,16,48,80,6,10,40,53,55,47,64,61,61,57,98,96,100,"",6,6,"",100,"",76,"",78,64,57,60,59,28,100,89,90,70,54,43,56,0,32,0,0,0,0,0,0]
[212,{"$f":"IF(ISNA(MATCH(L218,'GARP Model'!$D$23:$D$32,0)),0,1)","v":0},"2026-02-28",212,-11,"","","",41640,1,"A","MBLY","MOBILEYE GLOBAL INC",14,"NASDAQ",25,"Consumer Discretionary",2510,"Automobiles & Components",251010,"Automobile Components",25101010,"Automotive Parts & Equipment",2025,4,8.4600000000000009,814.74900000000002,6892.7765399999998,"","",2,5,4,4,1,1,3,0,98,52,14,3,3,69,60,64,87,81,83,83,"","",26,72,"","","",64,66,"",5,"",62,0,82,93,86,33,81,"",20,"",86,87,93,91,"",55,69,73,97,3,"",18,84,65,82,5,"",49,25,"",20,96,30,"",23,92,44,"",15,38,100,92,92,94,7,26,3,32,"",83,4,3,3,4,99,7,1,12,9,71,58,5,0,41,0,0,0,0,0,0]
[213,{"$f":"IF(ISNA(MATCH(L219,'GARP Model'!$D$23:$D$32,0)),0,1)","v":0},"2026-02-28",213,"","","","",38634,1,"A","FSBC","FIVE STAR BANCORP",14,"NASDAQ",40,"Financials",4010,"Banks",401010,"Banks",40101015,"Regional Banks",2025,3,38.93,21.367000000000001,831.81731000000002,"","","",4,4,4,5,5,3,50,61,77,77,73,72,73,62,64,96,95,95,68,32,"",16,8,"",57,"",89,47,73,45,"",36,100,82,99,"",85,62,"","","","","","","","",42,54,17,"","","",89,69,"",67,6,"",68,5,"",41,52,48,"",72,68,38,"",96,81,100,23,81,69,"",74,"",75,"",96,60,75,69,74,32,80,89,75,86,24,39,74,0,14,0,0,0,0,0,0]
[214,{"$f":"IF(ISNA(MATCH(L220,'GARP Model'!$D$23:$D$32,0)),0,1)","v":0},"2026-02-28",214,-54,"","","",3028,1,"A","CHDN","CHURCHILL DOWNS INC",14,"NASDAQ",25,"Consumer Discretionary",2530,"Consumer Services",253010,"Hotels, Restaurants & Leisure",25301010,"Casinos & Gaming",2025,3,91.93,69.8,6416.7139999999999,"","","",4,4,5,2,1,3,7,21,35,74,77,72,66,36,39,53,32,35,41,56,0,43,19,15,95,94,20,97,60,56,49,90,34,22,17,"",13,92,95,92,93,8,3,64,65,87,22,25,57,27,27,42,79,50,2,36,72,87,38,75,89,73,39,20,73,96,61,7,90,59,22,100,19,6,8,58,48,100,18,60,48,31,22,35,20,80,80,31,54,26,75,65,24,100,35,0,0,0,0,0,0]
[215,{"$f":"IF(ISNA(MATCH(L221,'GARP Model'!$D$23:$D$32,0)),0,1)","v":0},"2026-02-28",215,56,"","","",170527,1,"A","POST","POST HOLDINGS INC",11,"NYSE",30,"Consumer Staples",3020,"Food, Beverage & Tobacco",302020,"Food Products",30202030,"Packaged Foods & Meats",2026,1,106.3,47.957000000000001,5097.8290999999999,"","",1,5,5,2,5,2,3,0,73,75,74,79,83,74,79,76,49,56,53,30,74,2,52,36,56,56,"",25,18,"","","",99,8,24,8,4,23,16,14,74,72,27,46,39,62,42,53,58,51,14,22,40,54,37,43,52,64,33,42,71,33,53,35,20,62,57,43,19,70,70,60,100,42,49,58,"",79,"",84,"",26,29,27,17,37,62,37,31,12,26,63,41,43,0,72,0,0,0,0,0,0]
[216,{"$f":"IF(ISNA(MATCH(L222,'GARP Model'!$D$23:$D$32,0)),0,1)","v":0},"2026-02-28",216,73,"","","",43057,1,"A","PHIN","PHINIA INC",11,"NYSE",25,"Consumer Discretionary",2510,"Automobiles & Components",251010,"Automobile Components",25101010,"Automotive Parts & Equipment",2025,4,72.63,37.914999999999999,2753.7664500000001,"","","",4,5,2,4,5,3,30,66,86,63,60,63,65,67,70,66,68,72,78,"","",64,"","",36,"",28,"",18,"","",91,32,61,38,29,36,"","","","",41,45,71,"","",71,84,52,24,"","",43,26,52,35,"","",35,"","",60,70,"","",51,72,"","",79,88,100,49,52,53,"",100,"",34,"",51,91,79,83,79,"",100,89,90,70,50,38,78,100,95,0,0,0,0,0,0]
[217,{"$f":"IF(ISNA(MATCH(L223,'GARP Model'!$D$23:$D$32,0)),0,1)","v":0},"2026-02-28",217,-26,"","","",21431,2,"A","CRC","CALIFORNIA RESOURCES CORP",11,"NYSE",10,"Energy",1010,"Energy",101020,"Oil, Gas & Consumable Fuels",10102020,"Oil & Gas Exploration & Production",2025,3,58.84,83.712000000000003,4925.6140800000003,"","","",5,4,4,4,4,3,54,74,71,82,91,99,84,75,72,85,78,76,26,76,4,20,37,63,44,95,24,16,92,93,"",89,100,81,42,"",19,92,94,15,79,16,10,81,78,71,25,10,67,32,28,47,84,55,14,8,29,54,7,28,40,74,25,3,76,64,28,6,"",1,6,100,73,63,67,98,48,100,53,"",76,65,51,76,56,44,80,89,90,86,62,41,55,0,34,0,0,0,0,0,0]
[218,{"$f":"IF(ISNA(MATCH(L224,'GARP Model'!$D$23:$D$32,0)),0,1)","v":0},"2026-02-28",218,14,"","","",174077,1,"A","CVLT","COMMVAULT SYSTEMS INC",14,"NASDAQ",45,"Information Technology",4510,"Software & Services",451030,"Software",45103020,"Systems Software",2025,3,85.08,44.033999999999999,3746.4127199999998,"","",1,3,5,4,4,1,3,0,8,44,42,43,39,51,57,58,62,68,69,18,3,13,17,32,44,96,96,62,24,"","","",86,36,9,70,56,77,31,59,3,12,69,58,11,13,13,20,29,54,62,56,68,31,93,0,35,63,58,35,34,25,67,5,70,80,96,9,90,92,23,19,100,50,74,79,87,100,100,88,1,19,2,0,1,3,43,37,9,31,48,89,26,5,100,17,0,0,0,100,0,0]
[219,{"$f":"IF(ISNA(MATCH(L225,'GARP Model'!$D$23:$D$32,0)),0,1)","v":0},"2026-02-28",219,-146,"","","",277323,1,"A","ZIM","ZIM INTEGRATED SHIPPING SERV",11,"NYSE",20,"Industrials",2030,"Transportation",203030,"Marine Transportation",20303010,"Marine Transportation",2025,3,28.83,120.458,3472.8041400000002,"",2,"",5,5,5,2,3,1,78,93,87,99,98,99,99,99,99,98,99,99,25,81,"",66,96,"",20,"",40,26,99,9,"",36,100,63,11,"",40,72,"",83,"",36,24,93,36,"",19,18,93,72,24,"",84,50,13,21,4,"",27,7,"",88,16,1,"",90,14,3,"",3,8,100,89,94,87,"",26,"",26,"",5,94,79,73,84,24,100,89,75,86,67,17,86,0,14,0,100,0,0,0,0]
[220,{"$f":"IF(ISNA(MATCH(L226,'GARP Model'!$D$23:$D$32,0)),0,1)","v":0},"2026-02-28",220,37,"","","",51266,1,"A","KLAR","KLARNA GROUP PLC",11,"NYSE",40,"Financials",4020,"Financial Services",402010,"Financial Services",40201060,"Transaction & Payment Processing Services",2025,3,13.56,377.255,5115.5778,"",2,"",5,4,3,1,3,3,0,57,98,15,15,14,99,99,99,99,99,100,"","","","","","","","","","","","","",14,53,"",99,59,90,"","","","","","","","","","","",87,"","","",10,63,"","","","","","","",25,"","","",19,"","","","","",100,98,98,99,1,"",100,"","",22,2,"","","","",7,"","","","","","",0,90,0,0,0,0,0,0]
[221,{"$f":"IF(ISNA(MATCH(L227,'GARP Model'!$D$23:$D$32,0)),0,1)","v":0},"2026-02-28",221,206,"","","",2312,1,"A","RHI","ROBERT HALF INC",11,"NYSE",20,"Industrials",2020,"Commercial & Professional Services",202020,"Professional Services",20202010,"Human Resource & Employment Services",2025,4,24.42,101.14100000000001,2469.8632200000002,"",2,"",4,5,3,2,1,3,95,61,98,68,94,97,83,94,95,96,98,99,19,79,81,89,91,86,2,6,45,42,67,62,63,79,39,65,97,"",72,36,32,72,61,49,34,36,52,48,58,62,65,62,56,68,16,46,0,15,17,16,23,23,29,69,15,5,9,62,19,10,12,28,37,100,36,44,49,19,29,100,59,88,7,90,28,11,5,93,100,89,54,26,98,91,6,0,16,0,0,0,0,0,0]
[222,{"$f":"IF(ISNA(MATCH(L228,'GARP Model'!$D$23:$D$32,0)),0,1)","v":0},"2026-02-28",222,-141,"","","",199356,1,"A","TRIP","TRIPADVISOR INC",14,"NASDAQ",50,"Communication Services",5020,"Media & Entertainment",502030,"Interactive Media & Services",50203010,"Interactive Media & Services",2025,4,10.11,114.47199999999999,1157.3119200000001,"","","",5,5,3,1,1,1,0,64,93,51,42,18,91,91,90,91,93,92,97,16,38,61,44,10,40,42,29,23,"","","",99,13,18,42,"",31,27,89,83,63,39,24,59,80,94,38,55,72,62,56,68,35,74,0,29,37,93,2,5,2,44,71,60,90,43,78,69,90,36,32,100,43,55,66,53,28,4,16,36,8,12,9,32,16,90,7,1,12,9,74,41,17,0,29,0,0,0,100,0,0]
[223,{"$f":"IF(ISNA(MATCH(L229,'GARP Model'!$D$23:$D$32,0)),0,1)","v":0},"2026-02-28",223,30,"","","",24021,1,"A","HAE","HAEMONETICS CORP",11,"NYSE",35,"Health Care",3510,"Health Care Equipment & Services",351010,"Health Care Equipment & Supplies",35101020,"Health Care Supplies",2025,3,63.32,46.829000000000001,2965.2122800000002,"","",1,5,5,5,5,1,1,0,41,48,72,65,59,75,55,52,74,55,52,69,18,52,84,54,54,84,79,29,19,"","","",91,20,47,34,36,22,91,14,64,65,33,41,67,68,69,48,67,66,86,18,96,74,79,81,78,72,64,88,82,76,81,75,68,27,85,77,75,57,70,66,100,53,64,57,52,72,21,64,64,23,89,20,30,37,81,37,31,54,48,98,29,44,0,4,0,100,100,0,0,0]
[224,{"$f":"IF(ISNA(MATCH(L230,'GARP Model'!$D$23:$D$32,0)),0,1)","v":0},"2026-02-28",224,61,"","","",16384,1,"A","VOYA","VOYA FINANCIAL INC",11,"NYSE",40,"Financials",4020,"Financial Services",402010,"Financial Services",40201020,"Diversified Financial Services",2025,3,66.88,95.355000000000004,6377.3424000000005,"",2,"",4,5,2,1,3,3,55,78,90,90,90,95,88,97,94,91,97,97,34,55,24,62,39,83,49,30,99,55,47,88,76,77,68,48,65,"",99,49,49,"","","","","","","",28,38,15,"","","","",11,"","","","",43,31,86,31,45,48,43,68,35,37,71,92,63,100,"","","",34,26,100,9,91,55,40,48,58,54,55,80,62,75,70,43,40,53,100,60,0,0,0,0,0,0]
[225,{"$f":"IF(ISNA(MATCH(L231,'GARP Model'!$D$23:$D$32,0)),0,1)","v":0},"2026-02-28",225,-33,"","","",21503,1,"A","KMPR","KEMPER CORP/DE",11,"NYSE",40,"Financials",4030,"Insurance",403010,"Insurance",40301040,"Property & Casualty Insurance",2025,4,32.32,58.667000000000002,1896.11744,"","","",5,5,2,1,1,3,75,96,97,81,40,27,98,78,82,97,81,85,17,"",82,61,85,91,21,"",99,55,26,28,30,98,37,48,42,"",99,49,49,"","","","","","","",48,46,42,"","","",22,6,"",8,82,19,8,89,22,40,28,74,24,40,23,85,28,61,41,100,"","","","",26,"",6,"",30,16,4,4,6,84,7,1,2,9,94,50,6,0,48,0,0,0,0,0,0]
[226,{"$f":"IF(ISNA(MATCH(L232,'GARP Model'!$D$23:$D$32,0)),0,1)","v":0},"2026-02-28",226,40,"","","",29131,1,"A","ROCK","GIBRALTAR INDUSTRIES INC",14,"NASDAQ",20,"Industrials",2010,"Capital Goods",201020,"Building Products",20102010,"Building Products",2025,3,45.48,29.542999999999999,1343.61564,"","","",5,4,5,3,1,3,0,74,82,90,86,83,72,86,77,82,93,86,60,26,56,93,87,87,73,54,30,10,"","","",84,17,92,71,"",35,13,12,41,39,47,42,85,82,71,69,87,81,35,86,20,49,32,42,61,68,53,48,79,62,88,71,71,54,74,70,67,49,80,95,1,23,56,61,37,26,100,82,92,79,11,10,22,23,70,37,9,31,26,69,30,22,100,73,0,0,0,0,0,0]
[227,{"$f":"IF(ISNA(MATCH(L233,'GARP Model'!$D$23:$D$32,0)),0,1)","v":0},"2026-02-28",227,-31,"","","",109183,1,"A","PFBC","PREFERRED BANK LOS ANGELES",14,"NASDAQ",40,"Financials",4010,"Banks",401010,"Banks",40101015,"Regional Banks",2025,3,87.72,12.35,1083.3420000000001,"","","",4,5,2,2,4,3,70,75,78,95,94,92,84,91,90,96,98,97,38,37,47,83,9,24,68,"",90,58,64,83,80,91,100,67,97,"",89,54,58,"","","","","","","",85,94,13,"","","",89,67,"",62,5,14,83,3,8,47,41,51,44,80,39,49,49,92,81,100,86,70,73,"",74,"",32,"",82,25,27,36,38,44,37,31,31,9,59,38,40,0,60,0,0,0,0,0,0]
[228,{"$f":"IF(ISNA(MATCH(L234,'GARP Model'!$D$23:$D$32,0)),0,1)","v":0},"2026-02-28",228,186,"","","",160893,1,"A","ENS","ENERSYS",11,"NYSE",20,"Industrials",2010,"Capital Goods",201040,"Electrical Equipment",20104010,"Electrical Components & Equipment",2025,3,166.15,36.731999999999999,6103.0218000000004,"","","",4,4,4,4,4,5,10,41,67,66,65,59,67,54,45,73,59,46,39,13,26,53,70,72,75,71,37,68,45,71,47,85,25,64,50,"",46,30,65,45,46,57,66,85,79,85,76,75,58,34,76,18,50,37,76,64,75,68,70,86,73,84,38,76,71,80,41,76,69,65,74,100,44,40,47,56,74,12,57,54,38,93,92,88,90,16,100,100,97,96,10,57,90,0,65,100,0,0,0,0,100]
[229,{"$f":"IF(ISNA(MATCH(L235,'GARP Model'!$D$23:$D$32,0)),0,1)","v":0},"2026-02-28",229,"","","","",8582,2,"A","SENEA","SENECA FOODS CORP",14,"NASDAQ",30,"Consumer Staples",3020,"Food, Beverage & Tobacco",302020,"Food Products",30202030,"Packaged Foods & Meats",2025,3,138.97999999999999,6.8220000000000001,948.12156000000004,"","","",5,2,5,2,5,3,0,77,92,90,68,75,94,36,24,93,36,24,88,18,76,55,66,84,70,"",30,81,30,30,29,57,100,67,35,"",49,86,78,56,27,14,81,24,55,55,76,52,78,96,95,3,33,13,94,68,66,31,77,68,32,82,85,75,8,69,80,70,13,49,64,100,46,43,28,"","","","","",75,56,53,59,85,22,80,62,75,96,51,6,89,100,87,0,0,0,0,0,0]
[230,{"$f":"IF(ISNA(MATCH(L236,'GARP Model'!$D$23:$D$32,0)),0,1)","v":0},"2026-02-28",230,-61,"","","",260751,1,"A","NTB","BANK OF NT BUTTERFIELD & SON",11,"NYSE",40,"Financials",4010,"Banks",401010,"Banks",40101010,"Diversified Banks",2025,4,50.75,39.948,2027.3610000000001,"","","",3,5,3,5,4,3,75,65,"",94,92,90,88,88,88,"","","",50,44,54,79,41,54,72,"",76,56,21,21,22,90,71,96,"","",41,77,68,"","","","","","","",70,61,18,"","","",93,88,"",76,20,14,88,14,6,46,52,54,49,85,43,39,61,93,80,100,"",51,78,"",100,"",71,"",94,62,57,59,81,23,100,89,75,96,52,11,83,100,88,0,0,0,0,0,0]
[231,{"$f":"IF(ISNA(MATCH(L237,'GARP Model'!$D$23:$D$32,0)),0,1)","v":0},"2026-02-28",231,0,"","","",51778,1,"A","SLDE","SLIDE INSURANCE HOLDINGS INC",14,"NASDAQ",40,"Financials",4030,"Insurance",403010,"Insurance",40301040,"Property & Casualty Insurance",2025,3,19,124.242,2360.598,"",2,"",5,3,5,5,3,3,0,51,88,97,94,94,98,99,98,99,99,99,"","","","","","",95,"","","","","","",7,72,97,99,"",68,"","","","","","","","","","","",95,"","","",92,75,"","","","","","","",94,"","","",95,"","","","","",100,37,43,43,"",100,"",97,"",59,50,21,"","","",80,62,"","",88,"","",100,91,0,0,0,0,0,0]
[232,{"$f":"IF(ISNA(MATCH(L238,'GARP Model'!$D$23:$D$32,0)),0,1)","v":0},"2026-02-28",232,"","","","",23245,1,"A","BLD","TOPBUILD CORP",11,"NYSE",25,"Consumer Discretionary",2520,"Consumer Durables & Apparel",252010,"Household Durables",25201030,"Homebuilding",2025,3,448.3,28.111000000000001,12602.1613,"","","",4,4,5,2,3,3,0,23,50,62,66,61,61,58,54,66,64,57,36,40,31,76,64,29,91,92,55,76,"","","",79,6,50,45,"",71,62,60,13,10,71,69,27,54,40,33,49,49,64,78,28,59,37,31,34,56,67,36,53,67,87,14,32,50,90,29,50,68,70,75,100,79,76,74,78,32,34,26,14,56,57,69,75,76,15,80,89,90,86,30,24,70,100,90,0,0,0,0,0,0]
[233,{"$f":"IF(ISNA(MATCH(L239,'GARP Model'!$D$23:$D$32,0)),0,1)","v":0},"2026-02-28",233,551,"","","",33337,1,"A","OBDC","BLUE OWL CAPITAL CORP",11,"NYSE",40,"Financials",4020,"Financial Services",402030,"Capital Markets",40203010,"Asset Management & Custody Banks",2025,4,11.29,499.44799999999998,5638.7679200000002,"","","",4,4,4,2,1,3,98,95,19,94,93,93,98,90,34,91,69,30,48,32,52,24,26,22,8,80,99,55,79,81,69,71,100,14,6,"",99,49,49,"","","","","","","",44,65,65,"","","",98,88,"",39,66,12,42,69,15,62,35,54,42,53,39,58,47,79,85,100,"","","",96,29,100,48,"",36,24,19,19,28,47,37,9,2,9,71,41,35,100,52,0,0,0,0,0,0]
[234,{"$f":"IF(ISNA(MATCH(L240,'GARP Model'!$D$23:$D$32,0)),0,1)","v":0},"2026-02-28",234,113,"","","",63186,1,"A","QGEN","QIAGEN NV",11,"NYSE",35,"Health Care",3520,"Pharmaceuticals, Biotechnology & Life Sciences",352030,"Life Sciences Tools & Services",35203010,"Life Sciences Tools & Services",2025,3,49.8,216.84100000000001,10258.74771,"","","",3,5,5,1,3,3,8,46,27,56,47,58,50,52,56,57,59,63,95,53,39,52,81,77,58,61,32,26,"","","",75,6,53,59,47,18,12,16,39,13,68,64,42,13,89,66,80,44,89,64,79,83,86,54,58,36,19,33,40,23,77,86,38,64,64,84,43,56,56,63,100,41,57,58,65,26,30,32,29,66,64,44,52,64,61,80,62,75,86,71,22,67,0,19,0,0,0,0,0,0]
[235,{"$f":"IF(ISNA(MATCH(L241,'GARP Model'!$D$23:$D$32,0)),0,1)","v":0},"2026-02-28",235,-14,"","","",6733,1,"A","BBWI","BATH & BODY WORKS INC",11,"NYSE",25,"Consumer Discretionary",2550,"Consumer Discretionary Distribution & Retail",255040,"Specialty Retail",25504040,"Other Specialty Retail",2025,3,22.76,205,4665.8,"","","",5,4,4,3,1,3,67,0,78,98,98,98,95,93,97,87,83,92,28,61,12,75,79,97,"","",20,84,16,24,31,93,33,43,11,"",40,64,24,74,85,3,21,64,63,50,34,14,79,17,27,35,61,58,65,28,31,66,42,46,77,94,14,21,90,"","","","",45,"",100,43,42,50,91,63,22,11,"",19,18,10,7,6,92,80,31,31,26,85,72,6,0,51,0,0,0,100,0,0]
[236,{"$f":"IF(ISNA(MATCH(L242,'GARP Model'!$D$23:$D$32,0)),0,1)","v":0},"2026-02-28",236,"","","","",11770,1,"A","SF","STIFEL FINANCIAL CORP",11,"NYSE",40,"Financials",4020,"Financial Services",402030,"Capital Markets",40203020,"Investment Banking & Brokerage",2025,3,74.05,101.94799999999999,11323.874100000001,"","","",5,5,2,5,2,3,34,60,70,71,71,73,87,67,71,92,79,82,45,53,56,44,40,42,45,"",76,58,70,81,92,77,52,56,76,"",70,57,80,"","","","","","","",92,78,28,"","","",59,17,"",54,29,44,60,26,49,45,45,44,36,66,49,44,43,91,88,100,49,51,32,"",71,"",70,"",55,42,45,68,51,22,80,62,90,70,49,42,49,100,75,0,0,0,0,0,0]
[237,{"$f":"IF(ISNA(MATCH(L243,'GARP Model'!$D$23:$D$32,0)),0,1)","v":0},"2026-02-28",237,8,"","","",29282,1,"A","FLG","FLAGSTAR BANK NA",11,"NYSE",40,"Financials",4010,"Banks",401010,"Banks",40101015,"Regional Banks",2025,3,12.69,415.608,5274.0655200000001,"","","",5,5,2,2,2,3,4,97,63,12,13,37,85,55,65,68,43,51,83,91,91,96,5,13,"","",88,59,4,7,10,42,100,1,12,"",78,28,28,"","","","","","","",23,37,24,"","","",31,39,"",89,2,2,94,2,3,27,79,35,27,22,94,21,16,72,25,100,88,88,89,83,27,100,71,"",47,69,59,40,56,93,100,89,75,96,55,50,55,100,51,0,0,0,0,0,0]
[238,{"$f":"IF(ISNA(MATCH(L244,'GARP Model'!$D$23:$D$32,0)),0,1)","v":0},"2026-02-28",238,-70,"Y","","",178310,1,"A","TDC","TERADATA CORP",11,"NYSE",45,"Information Technology",4510,"Software & Services",451030,"Software",45103020,"Systems Software",2025,3,31.49,93.7,2950.6129999999998,"","","",5,4,5,5,2,1,0,10,66,57,47,52,79,82,86,84,88,92,72,23,67,90,83,92,97,97,58,69,"","","",82,22,66,58,60,71,35,76,95,93,21,11,6,11,33,11,18,81,75,63,76,57,78,1,23,52,70,19,25,54,79,74,71,57,97,14,88,84,64,20,100,89,92,93,77,100,100,98,15,13,91,76,58,28,79,80,31,12,2,60,93,36,0,5,0,0,100,0,0,0]
[239,{"$f":"IF(ISNA(MATCH(L245,'GARP Model'!$D$23:$D$32,0)),0,1)","v":0},"2026-02-28",239,38,"","","",65718,1,"A","GPI","GROUP 1 AUTOMOTIVE INC",11,"NYSE",25,"Consumer Discretionary",2550,"Consumer Discretionary Distribution & Retail",255040,"Specialty Retail",25504050,"Automotive Retail",2025,4,325.74,12.042999999999999,3922.8868200000002,"","","",5,4,4,1,1,3,10,75,97,85,95,96,83,64,89,56,44,69,23,73,66,29,35,26,63,"",33,18,40,41,84,97,23,21,7,"",68,34,33,6,32,1,17,66,51,60,59,60,42,81,11,82,19,14,47,30,34,34,40,33,43,58,24,14,21,66,25,14,19,50,48,5,10,12,14,"",30,"",17,"",41,17,17,15,18,29,37,31,12,26,66,56,20,0,36,0,0,0,0,0,0]
[240,{"$f":"IF(ISNA(MATCH(L246,'GARP Model'!$D$23:$D$32,0)),0,1)","v":0},"2026-02-28",240,-56,"","","",22447,2,"A","PARR","PAR PACIFIC HOLDINGS INC",11,"NYSE",10,"Energy",1010,"Energy",101020,"Oil, Gas & Consumable Fuels",10102030,"Oil & Gas Refining & Marketing",2025,3,42.67,50.253,2144.2955099999999,"","","",5,4,2,3,4,3,0,71,97,93,98,85,71,89,71,61,83,64,28,57,25,92,63,29,80,"",22,8,"","","",85,53,53,21,"",51,17,27,0,97,5,33,65,40,28,6,10,32,4,9,13,22,6,68,69,48,74,76,50,79,74,22,26,90,81,19,8,95,14,8,100,29,52,61,"",74,"",20,"",27,23,62,93,93,40,80,89,97,99,20,3,93,0,17,0,0,0,0,0,0]
[241,{"$f":"IF(ISNA(MATCH(L247,'GARP Model'!$D$23:$D$32,0)),0,1)","v":0},"2026-02-28",241,-69,"","","",1045,4,"A","AAL","AMERICAN AIRLINES GROUP INC",14,"NASDAQ",20,"Industrials",2030,"Transportation",203020,"Passenger Airlines",20302010,"Passenger Airlines",2025,3,13.07,660.06500000000005,8627.0495499999997,"",2,"",5,5,2,3,1,3,0,0,94,78,90,3,81,79,7,38,41,19,86,"",39,67,51,23,"","",21,31,"","",8,36,43,10,2,"",25,31,92,12,16,4,2,43,60,58,40,1,54,28,30,83,26,23,24,26,68,92,38,74,93,38,61,74,86,"","","","",36,"",100,26,31,47,1,80,100,5,99,1,35,56,59,19,78,80,89,90,70,31,90,18,100,87,0,0,0,0,0,0]
[242,{"$f":"IF(ISNA(MATCH(L248,'GARP Model'!$D$23:$D$32,0)),0,1)","v":0},"2026-02-28",242,62,"","","",3505,1,"A","TAP","MOLSON COORS BEVERAGE CO",11,"NYSE",30,"Consumer Staples",3020,"Food, Beverage & Tobacco",302010,"Beverages",30201010,"Brewers",2025,4,48.99,190.8,9347.2919999999995,"","","",4,5,3,2,2,3,73,92,77,3,49,48,85,88,87,76,83,82,4,"",88,85,68,81,"","",33,33,43,50,90,90,39,53,20,"",21,33,29,8,33,4,2,34,51,34,57,77,91,31,70,75,63,52,27,26,70,29,27,73,28,14,4,13,11,13,6,16,13,40,46,100,36,43,50,90,26,27,47,"",33,57,32,14,31,67,100,89,54,70,80,60,37,0,75,0,0,0,0,0,0]
[243,{"$f":"IF(ISNA(MATCH(L249,'GARP Model'!$D$23:$D$32,0)),0,1)","v":0},"2026-02-28",243,49,"","","",120093,1,"A","CNX","CNX RESOURCES CORP",11,"NYSE",10,"Energy",1010,"Energy",101020,"Oil, Gas & Consumable Fuels",10102020,"Oil & Gas Exploration & Production",2025,4,41.78,142.59100000000001,5957.4519799999998,"","","",5,3,4,5,3,3,0,76,36,92,96,64,76,60,70,72,57,66,98,"",21,3,16,36,75,4,17,89,"","","",93,52,67,26,"",8,96,96,63,10,4,1,73,95,21,23,29,49,36,70,42,97,78,7,94,92,90,96,95,92,80,90,85,88,75,90,86,84,12,16,100,45,32,36,4,67,100,94,99,33,67,70,58,79,16,80,89,75,86,34,21,82,100,30,0,0,0,0,0,0]
[244,{"$f":"IF(ISNA(MATCH(L250,'GARP Model'!$D$23:$D$32,0)),0,1)","v":0},"2026-02-28",244,-128,"","","",164755,1,"A","CROX","CROCS INC",14,"NASDAQ",25,"Consumer Discretionary",2520,"Consumer Durables & Apparel",252030,"Textiles, Apparel & Luxury Goods",25203020,"Footwear",2025,4,90.71,50.22,4555.4561999999996,"","",1,5,4,3,5,1,3,0,38,74,22,95,95,91,94,91,89,94,91,9,87,88,77,58,12,"","",57,86,"","","",97,38,69,32,8,67,80,79,81,61,15,23,24,66,80,14,2,92,27,86,90,69,73,38,14,29,70,41,77,69,22,2,7,1,21,3,4,1,11,1,100,59,27,21,73,100,100,94,"",11,38,15,14,22,85,80,31,12,9,91,44,23,0,30,0,0,0,100,0,0]
[246,{"$f":"IF(ISNA(MATCH(L252,'GARP Model'!$D$23:$D$32,0)),0,1)","v":0},"2026-02-28",246,-79,"Y","","",30024,1,"A","TIGO","MILLICOM INTL CELLULAR SA",14,"NASDAQ",50,"Communication Services",5010,"Telecommunication Services",501020,"Wireless Telecommunication Services",50102010,"Wireless Telecommunication Services",2025,3,72.89,167.08500000000001,12178.825650000001,"","","",4,4,4,5,3,3,77,37,41,88,43,43,76,63,55,68,57,49,97,21,2,85,73,68,86,29,21,80,"","",90,61,15,45,22,"",15,90,88,97,92,22,12,37,49,57,38,34,45,31,32,47,92,89,7,66,77,81,75,72,74,81,87,70,80,94,93,83,88,54,35,6,68,73,74,12,71,100,89,97,75,87,86,85,94,5,100,89,90,96,18,3,95,0,63,0,0,0,0,0,100]
[250,{"$f":"IF(ISNA(MATCH(L256,'GARP Model'!$D$23:$D$32,0)),0,1)","v":0},"2026-02-28",250,-74,"","","",331125,1,"A","RNW","RENEW ENERGY GLOBAL PLC",14,"NASDAQ",55,"Utilities",5510,"Utilities",551050,"Independent Power & Renewable Electricity Producers",55105020,"Renewable Electricity",2025,2,5.52,362.8,2002.6559999999999,"","","",5,4,3,1,1,3,0,73,21,65,32,32,99,99,99,85,85,86,92,"","",9,32,"",45,"","","","",5,"",12,62,7,1,"","","","",96,"",14,7,93,99,"",74,86,68,7,"","",97,80,24,6,81,"",5,88,"",37,62,"","",48,77,"","",84,60,100,"","","","",26,"","","",98,5,6,13,23,73,37,9,31,26,60,22,23,100,18,0,0,0,0,0,0]
[255,{"$f":"IF(ISNA(MATCH(L261,'GARP Model'!$D$23:$D$32,0)),0,1)","v":0},"2026-02-28",255,24,"","","",29994,1,"A","FMBH","FIRST MID BANCSHARES INC",14,"NASDAQ",40,"Financials",4010,"Banks",401010,"Banks",40101015,"Regional Banks",2025,3,41.01,23.997,984.11697000000004,"","","",5,4,4,1,5,3,49,87,51,87,83,80,87,79,77,86,79,77,54,35,42,61,20,22,43,"",81,44,55,73,74,27,55,44,34,"",67,66,61,"","","","","","","",57,75,20,"","","",84,85,"",47,18,16,70,12,12,39,50,52,40,57,53,46,47,98,94,100,27,44,48,"",48,"",32,"",94,74,50,55,58,40,100,89,75,70,73,37,58,100,67,0,0,0,0,0,0]
[261,{"$f":"IF(ISNA(MATCH(L267,'GARP Model'!$D$23:$D$32,0)),0,1)","v":0},"2026-02-28",261,-51,"","","",149177,1,"A","NXST","NEXSTAR MEDIA GROUP",14,"NASDAQ",50,"Communication Services",5020,"Media & Entertainment",502010,"Media",50201020,"Broadcasting",2025,3,251.02,30.324000000000002,7611.93048,"","","",4,4,5,3,4,3,58,40,51,77,84,89,89,89,91,76,79,83,33,69,71,77,69,76,71,90,57,70,52,84,82,79,19,30,15,"",47,63,87,63,60,61,45,46,52,32,68,56,56,62,56,68,75,61,0,26,21,14,22,18,19,69,37,27,46,88,28,22,31,74,56,100,85,87,87,92,62,100,"","",51,54,56,69,79,56,80,62,75,86,46,12,82,100,59,0,0,0,0,0,0]
[266,{"$f":"IF(ISNA(MATCH(L272,'GARP Model'!$D$23:$D$32,0)),0,1)","v":0},"2026-02-28",266,-48,"","","",24447,2,"A","BOKF","BOK FINANCIAL CORP",14,"NASDAQ",40,"Financials",4010,"Banks",401010,"Banks",40101015,"Regional Banks",2025,4,125.72,60.621000000000002,7621.2721199999996,"","","",4,5,2,5,4,3,40,78,43,81,80,82,80,62,78,75,60,75,52,43,61,81,21,47,45,"","","",48,33,31,86,58,32,27,"","","","","","","","","","","",80,72,18,"","","",81,77,"",74,11,9,90,8,5,39,49,51,41,59,54,49,47,98,94,100,"","","","",100,"",81,"",89,82,72,65,64,42,100,89,75,86,49,59,64,100,64,0,0,0,0,0,0]
[271,{"$f":"IF(ISNA(MATCH(L277,'GARP Model'!$D$23:$D$32,0)),0,1)","v":0},"2026-02-28",271,24,"","","",62266,1,"A","CSGS","CSG SYSTEMS INTL INC",14,"NASDAQ",20,"Industrials",2020,"Commercial & Professional Services",202020,"Professional Services",20202030,"Data Processing & Outsourced Services",2025,3,79.900000000000006,28.608000000000001,2285.7791999999999,"","",1,4,4,5,4,5,3,33,16,59,53,51,52,66,52,55,70,54,58,66,15,64,60,59,75,84,80,54,85,12,19,23,78,22,55,42,55,65,82,81,43,56,48,33,84,39,20,40,55,65,62,56,68,55,63,0,69,57,38,74,52,59,74,66,70,44,92,80,85,73,85,55,100,80,74,73,56,26,100,86,36,52,37,71,60,77,40,80,89,75,96,20,25,77,0,71,0,0,0,0,0,0]
[277,{"$f":"IF(ISNA(MATCH(L283,'GARP Model'!$D$23:$D$32,0)),0,1)","v":0},"2026-02-28",277,441,"","","",3238,1,"A","CBSH","COMMERCE BANCSHARES INC",14,"NASDAQ",40,"Financials",4010,"Banks",401010,"Banks",40101015,"Regional Banks",2025,4,50.99,137.71199999999999,7021.9348799999998,"","","",4,5,3,2,1,3,39,63,46,84,81,82,73,68,73,84,80,84,50,40,53,64,37,50,64,74,76,62,50,54,40,75,68,50,77,"",48,80,38,"","","","","","","",51,48,17,"","","",92,92,"",64,21,50,75,14,16,46,50,54,49,76,42,38,58,99,90,100,41,30,31,77,53,100,35,40,68,44,21,18,24,69,80,31,12,9,86,54,26,0,18,0,0,0,0,0,0]
[282,{"$f":"IF(ISNA(MATCH(L288,'GARP Model'!$D$23:$D$32,0)),0,1)","v":0},"2026-02-28",282,28,"","","",17248,1,"A","UBSI","UNITED BANKSHARES INC/WV",14,"NASDAQ",40,"Financials",4010,"Banks",401010,"Banks",40101015,"Regional Banks",2025,3,41.3,141.16999999999999,5830.3209999999999,"","","",3,5,3,5,4,3,71,86,58,79,78,77,73,75,78,90,92,93,60,37,51,40,21,43,30,"",85,46,51,41,53,61,44,78,94,"",75,68,70,"","","","","","","",81,75,16,"","","",89,77,"",66,10,21,70,4,8,42,50,52,44,50,57,56,48,99,99,100,"","","","",100,"",82,"",90,75,63,54,59,53,100,89,54,48,54,54,59,0,25,0,0,0,0,0,0]
[285,{"$f":"IF(ISNA(MATCH(L291,'GARP Model'!$D$23:$D$32,0)),0,1)","v":0},"2026-02-28",285,"","","","",110620,1,"A","ICLR","ICON PUBLIC LIMITED COMPANY",14,"NASDAQ",35,"Health Care",3520,"Pharmaceuticals, Biotechnology & Life Sciences",352030,"Life Sciences Tools & Services",35203010,"Life Sciences Tools & Services",2025,3,108.14,76.36,8257.5704000000005,"","","",5,4,2,3,1,3,0,92,76,79,83,75,86,82,82,82,82,80,29,34,47,80,67,12,41,63,58,35,"","","",97,1,58,30,"",52,30,30,82,82,29,16,71,18,73,79,11,39,62,"","",57,29,0,22,50,51,23,45,37,62,34,61,9,44,41,58,14,54,66,100,73,88,89,78,26,16,36,29,4,43,42,46,30,81,37,31,54,26,55,71,28,0,44,0,0,0,0,0,0]
[292,{"$f":"IF(ISNA(MATCH(L298,'GARP Model'!$D$23:$D$32,0)),0,1)","v":0},"2026-02-28",292,-90,"","","",31453,1,"A","NSIT","INSIGHT ENTERPRISES INC",14,"NASDAQ",45,"Information Technology",4520,"Technology Hardware & Equipment",452030,"Electronic Equipment, Instruments & Components",45203030,"Technology Distributors",2025,4,83.56,30.995999999999999,2590.02576,"","","",5,5,1,3,1,3,0,70,96,73,89,88,83,96,85,77,94,81,22,68,71,86,89,89,58,59,70,77,"","","",87,32,47,24,"",85,61,40,40,43,36,22,1,0,0,55,67,27,24,65,73,21,21,11,48,57,53,66,82,80,47,26,24,22,58,26,31,29,78,83,100,87,77,66,62,51,100,73,57,45,13,6,2,2,83,37,31,31,26,84,80,5,0,85,0,0,0,0,0,0]
[297,{"$f":"IF(ISNA(MATCH(L303,'GARP Model'!$D$23:$D$32,0)),0,1)","v":0},"2026-02-28",297,27,"","","",35627,1,"A","PTON","PELOTON INTERACTIVE INC",14,"NASDAQ",25,"Consumer Discretionary",2520,"Consumer Durables & Apparel",252020,"Leisure Products",25202010,"Leisure Products",2026,2,4.0199999999999996,424.92500000000001,1708.1985,"","","",5,4,5,5,1,1,0,2,85,18,0,0,95,15,0,93,16,0,82,"",89,89,89,94,"","",65,86,"","","",22,58,7,26,48,81,92,92,73,78,57,49,48,51,24,2,5,92,80,98,96,27,65,37,88,93,34,86,95,83,21,93,99,10,"","","","",3,0,100,91,86,30,"",100,"",40,"",6,8,11,10,14,94,7,31,31,26,56,52,10,0,3,0,100,100,100,0,0]
[298,{"$f":"IF(ISNA(MATCH(L304,'GARP Model'!$D$23:$D$32,0)),0,1)","v":0},"2026-02-28",298,-22,"","","",177983,1,"A","G","GENPACT LTD",11,"NYSE",20,"Industrials",2020,"Commercial & Professional Services",202020,"Professional Services",20202030,"Data Processing & Outsourced Services",2025,3,39.72,172.40899999999999,6848.0854799999997,"","","",4,4,4,5,1,3,35,48,74,84,82,79,79,71,74,82,77,80,31,22,48,45,56,65,81,76,50,28,67,67,67,80,11,68,52,"",61,33,55,3,56,48,33,56,17,20,62,72,39,62,56,68,52,44,0,50,55,44,51,46,43,89,23,72,68,86,23,64,55,60,76,100,40,60,73,59,100,37,85,70,31,69,33,15,31,69,80,62,31,70,87,58,38,0,74,0,0,0,0,0,0]
[303,{"$f":"IF(ISNA(MATCH(L309,'GARP Model'!$D$23:$D$32,0)),0,1)","v":0},"2026-02-28",303,-99,"Y","","",4367,5,"A","WFRD","WEATHERFORD INTL PLC",14,"NASDAQ",10,"Energy",1010,"Energy",101010,"Energy Equipment & Services",10101020,"Oil & Gas Equipment & Services",2025,4,105.46,71.599999999999994,7550.9359999999997,"","","",4,4,4,4,4,3,20,31,71,70,72,36,59,67,58,66,73,64,32,1,37,92,58,93,87,93,22,77,97,"","",64,100,70,54,22,29,17,18,43,33,54,54,13,19,8,26,23,52,17,21,79,62,43,64,13,63,77,24,35,75,86,27,83,98,90,12,87,"",18,9,100,46,58,76,91,62,100,89,"",41,85,88,90,83,29,100,100,99,99,14,70,83,100,89,0,0,0,0,0,100]
[308,{"$f":"IF(ISNA(MATCH(L314,'GARP Model'!$D$23:$D$32,0)),0,1)","v":0},"2026-02-28",308,-138,"","","",37623,1,"A","RSI","RUSH STREET INTERACTIVE INC",11,"NYSE",25,"Consumer Discretionary",2530,"Consumer Services",253010,"Hotels, Restaurants & Leisure",25301010,"Casinos & Gaming",2025,3,19.75,97.061999999999998,1916.9745,"","","",4,4,5,3,2,3,0,10,73,36,28,29,62,36,28,78,43,29,99,"","",16,13,"",89,"",74,76,"","","",65,100,97,85,"",89,70,"",49,"",62,47,42,68,"",20,25,89,62,56,"",33,41,0,84,92,"",67,80,"",72,87,92,"",88,92,95,"",19,12,100,98,97,96,"",78,"",4,"",15,41,17,68,65,5,80,62,75,70,89,10,61,0,51,0,0,0,100,100,0]
[314,{"$f":"IF(ISNA(MATCH(L320,'GARP Model'!$D$23:$D$32,0)),0,1)","v":0},"2026-02-28",314,-281,"","","",38954,1,"A","YOU","CLEAR SECURE INC",11,"NYSE",45,"Information Technology",4510,"Software & Services",451030,"Software",45103010,"Application Software",2025,3,48.64,97.546000000000006,4744.6374400000004,"",1,1,3,4,5,4,3,3,32,6,28,55,38,34,60,56,50,74,68,59,87,"","",22,8,"",98,"",36,70,8,99,"",80,45,86,79,46,48,91,"",91,"",23,12,50,60,"",31,14,83,62,56,"",66,76,0,81,94,"",48,60,"",96,88,94,"",99,96,97,"",20,10,100,51,45,30,"",71,"",36,"",23,49,49,59,79,57,37,31,54,70,49,12,82,0,23,0,0,0,0,0,0]
[319,{"$f":"IF(ISNA(MATCH(L325,'GARP Model'!$D$23:$D$32,0)),0,1)","v":0},"2026-02-28",319,89,"","","",39539,1,"A","FRSH","FRESHWORKS INC",14,"NASDAQ",45,"Information Technology",4510,"Software & Services",451030,"Software",45103010,"Application Software",2025,3,7.82,281.74400000000003,2203.2380800000001,"",2,1,5,5,3,4,1,1,0,50,69,23,12,9,76,54,47,93,78,69,79,"","",21,18,"","","",51,18,"","","",99,36,"",96,66,44,31,"",78,"",68,56,53,19,"",54,67,92,62,56,"",12,96,0,93,94,"",64,71,"",22,85,92,"",23,78,87,"",31,54,100,44,56,55,13,27,20,77,"",12,27,14,7,5,86,80,62,31,26,86,82,6,0,8,0,0,100,100,0,0]
[324,{"$f":"IF(ISNA(MATCH(L330,'GARP Model'!$D$23:$D$32,0)),0,1)","v":0},"2026-02-28",324,-2,"","","",19150,1,"A","OSBC","OLD SECOND BANCORP INC/IL",14,"NASDAQ",40,"Financials",4010,"Banks",401010,"Banks",40101015,"Regional Banks",2025,3,19.63,52.664999999999999,1033.81395,"","","",4,3,4,4,5,3,29,81,43,77,85,75,78,83,74,80,86,78,31,15,33,34,20,16,43,"",80,64,87,75,97,55,59,65,44,"",62,55,79,"","","","","","","",53,50,20,"","","",88,89,"",8,28,27,26,16,20,38,37,57,39,51,26,56,33,89,70,100,63,30,37,"",51,"",65,"",88,57,59,54,49,52,100,98,90,70,44,61,50,0,73,0,0,0,0,0,0]
[329,{"$f":"IF(ISNA(MATCH(L335,'GARP Model'!$D$23:$D$32,0)),0,1)","v":0},"2026-02-28",329,-62,"","","",13200,1,"A","PLAB","PHOTRONICS INC",14,"NASDAQ",45,"Information Technology",4530,"Semiconductors & Semiconductor Equipment",453010,"Semiconductors & Semiconductor Equipment",45301010,"Semiconductor Materials & Equipment",2025,4,37.43,57.633000000000003,2157.2031900000002,"","","",5,5,4,5,5,1,0,63,66,74,74,68,37,63,62,51,84,82,47,41,16,79,70,61,67,"",5,5,"","","",82,100,99,93,19,8,6,5,24,23,86,86,49,70,59,86,89,63,21,21,86,81,54,30,22,38,77,23,39,80,83,45,35,72,66,51,44,66,64,79,100,8,16,22,"",100,"","","",24,94,88,85,82,22,80,89,90,86,21,76,82,0,3,0,100,100,0,0,100]
[334,{"$f":"IF(ISNA(MATCH(L340,'GARP Model'!$D$23:$D$32,0)),0,1)","v":0},"2026-02-28",334,-15,"","","",155738,1,"A","NNI","NELNET INC",11,"NYSE",40,"Financials",4020,"Financial Services",402020,"Consumer Finance",40202010,"Consumer Finance",2025,3,129.46,35.993000000000002,4659.6537799999996,"",1,"",4,5,2,3,4,3,19,79,26,89,65,79,81,82,84,53,59,62,94,55,28,69,38,70,63,"",90,74,36,50,50,59,63,9,7,"",90,89,91,"","","","","","","",89,83,17,"","","",92,56,"",19,64,25,20,66,29,58,77,58,61,67,84,40,60,86,61,100,97,62,56,"",100,"","","",97,38,42,52,65,40,37,62,75,70,50,19,68,0,72,0,0,0,0,0,0]
[340,{"$f":"IF(ISNA(MATCH(L346,'GARP Model'!$D$23:$D$32,0)),0,1)","v":0},"2026-02-28",340,-44,"","","",3734,2,"A","DAN","DANA INC",11,"NYSE",25,"Consumer Discretionary",2510,"Automobiles & Components",251010,"Automobile Components",25101010,"Automotive Parts & Equipment",2025,3,34.24,121.917,4174.4380799999999,"","","",3,5,3,3,5,3,28,35,87,20,22,29,35,37,29,32,33,27,2,89,97,96,89,81,12,"",25,91,23,30,76,95,100,13,18,27,34,67,65,70,78,24,25,21,50,74,62,64,49,89,79,84,21,9,53,23,48,27,25,49,29,24,30,39,25,18,17,30,16,70,48,1,47,41,42,"",100,"",7,"",55,93,91,88,89,28,100,89,75,70,14,36,89,0,62,100,0,0,0,0,0]
[345,{"$f":"IF(ISNA(MATCH(L351,'GARP Model'!$D$23:$D$32,0)),0,1)","v":0},"2026-02-28",345,-296,"","","",4685,1,"A","TRMK","TRUSTMARK CORP",14,"NASDAQ",40,"Financials",4010,"Banks",401010,"Banks",40101015,"Regional Banks",2025,4,42.59,59.012,2513.3210800000002,"","","",4,5,1,5,4,3,46,81,52,88,65,70,78,67,78,80,70,82,96,8,59,20,29,53,48,"",83,66,47,35,28,76,59,58,44,"",70,85,81,"","","","","","","",58,62,15,"","","",87,83,"",93,27,14,95,11,4,41,66,60,42,63,84,72,46,91,77,100,83,60,64,"",66,"",89,"",85,67,55,56,61,32,100,89,75,48,58,39,61,0,73,0,0,0,0,0,0]
[351,{"$f":"IF(ISNA(MATCH(L357,'GARP Model'!$D$23:$D$32,0)),0,1)","v":0},"2026-02-28",351,2,"","","",17132,1,"A","WSFS","WSFS FINANCIAL CORP",14,"NASDAQ",40,"Financials",4010,"Banks",401010,"Banks",40101015,"Regional Banks",2025,3,63.51,55.427,3520.1687700000002,"","","",4,5,1,5,4,3,20,79,70,84,82,80,60,72,66,85,92,87,49,28,28,81,23,31,54,"",86,56,42,47,61,87,49,84,96,"",78,63,58,"","","","","","","",67,64,12,"","","",89,87,"",58,17,73,88,11,70,43,50,56,49,61,53,59,58,93,88,100,81,88,89,"",100,"",79,"",75,82,60,54,61,41,80,62,31,48,72,43,60,0,40,0,0,0,0,0,0]
[356,{"$f":"IF(ISNA(MATCH(L362,'GARP Model'!$D$23:$D$32,0)),0,1)","v":0},"2026-02-28",356,-53,"","","",11729,1,"A","WTM","WHITE MTNS INS GROUP LTD",11,"NYSE",40,"Financials",4030,"Insurance",403010,"Insurance",40301040,"Property & Casualty Insurance",2025,3,2220.5100000000002,2.5752000000000002,5718.2573519999996,"","","",5,4,2,2,4,3,0,81,66,43,66,62,80,77,61,92,91,79,12,"",80,83,7,13,24,"",99,55,53,21,20,43,43,74,91,"",99,49,49,"","","","","","","",75,64,40,"","","","",36,"","","","",2,93,1,40,13,71,12,34,14,74,24,33,45,100,"","","","","","","","",85,49,54,43,47,44,80,89,54,48,44,57,55,0,51,0,0,0,0,0,0]
[361,{"$f":"IF(ISNA(MATCH(L367,'GARP Model'!$D$23:$D$32,0)),0,1)","v":0},"2026-02-28",361,-126,"","","",2444,1,"A","BC","BRUNSWICK CORP",11,"NYSE",25,"Consumer Discretionary",2520,"Consumer Durables & Apparel",252020,"Leisure Products",25202010,"Leisure Products",2025,4,79.62,64.888999999999996,5166.4621800000004,"","","",4,3,5,4,5,3,44,41,77,19,68,84,70,71,70,66,68,69,5,88,89,63,89,75,"","",31,89,33,35,58,65,32,38,29,29,41,86,72,79,54,9,31,21,24,25,64,53,86,90,26,11,36,32,78,16,23,19,28,35,37,21,13,8,4,19,11,7,5,35,33,5,65,52,39,"",63,"",35,"",48,79,78,82,65,66,100,98,99,96,28,72,60,100,88,0,0,0,0,0,0]
[363,{"$f":"IF(ISNA(MATCH(L369,'GARP Model'!$D$23:$D$32,0)),0,1)","v":0},"2026-02-28",363,26,"","","",18498,1,"A","MUSA","MURPHY USA INC",11,"NYSE",25,"Consumer Discretionary",2550,"Consumer Discretionary Distribution & Retail",255040,"Specialty Retail",25504050,"Automotive Retail",2025,3,390.74,18.734000000000002,7320.1231600000001,"","","",4,3,5,3,2,3,10,10,95,75,81,80,53,63,68,50,62,65,37,62,63,89,88,41,98,98,7,10,72,72,"",94,42,53,30,"",45,19,30,99,92,3,8,42,39,38,37,56,70,27,23,75,20,11,12,47,48,32,64,63,42,89,27,18,18,98,92,54,91,59,29,100,18,20,23,74,51,100,76,38,24,73,58,13,24,33,100,89,54,70,61,87,31,100,56,0,0,0,0,0,0]
[366,{"$f":"IF(ISNA(MATCH(L372,'GARP Model'!$D$23:$D$32,0)),0,1)","v":0},"2026-02-28",366,14,"","","",29156,1,"A","UFPI","UFP INDUSTRIES INC",14,"NASDAQ",20,"Industrials",2010,"Capital Goods",201020,"Building Products",20102010,"Building Products",2025,3,102.91,58.256999999999998,5995.2278699999997,"","","",4,5,3,1,3,3,28,62,90,68,85,86,50,81,76,63,92,88,26,71,57,84,94,65,47,"",16,10,53,78,84,83,40,84,82,"",32,12,13,45,26,78,82,71,47,76,56,61,56,22,57,78,27,17,42,21,34,43,20,44,56,84,20,10,25,61,28,17,23,47,57,100,16,21,22,"",26,"",2,"",86,61,41,30,30,57,80,62,31,26,73,70,29,0,54,0,0,0,0,0,0]
[371,{"$f":"IF(ISNA(MATCH(L377,'GARP Model'!$D$23:$D$32,0)),0,1)","v":0},"2026-02-28",371,17,"","","",5690,1,"A","HNI","HNI CORP",11,"NYSE",20,"Industrials",2020,"Commercial & Professional Services",202010,"Commercial Services & Supplies",20201060,"Office Services & Supplies",2025,3,44.96,45.831000000000003,2060.56176,"",2,2,4,3,5,3,3,3,59,51,86,77,69,65,78,71,69,79,72,72,55,37,39,68,65,70,57,20,30,77,34,55,43,86,21,74,40,20,50,53,32,23,32,19,26,60,52,50,53,64,61,77,76,43,42,54,32,45,70,58,55,84,72,84,69,50,63,81,68,46,61,64,69,100,64,64,67,23,100,100,3,90,47,73,25,42,40,30,100,89,97,96,94,32,39,0,79,0,0,0,0,0,0]
[377,{"$f":"IF(ISNA(MATCH(L383,'GARP Model'!$D$23:$D$32,0)),0,1)","v":0},"2026-02-28",377,312,"","","",38019,1,"A","OSCR","OSCAR HEALTH INC",11,"NYSE",40,"Financials",4030,"Insurance",403010,"Insurance",40301020,"Life & Health Insurance",2025,3,13.64,261.45,3566.1779999999999,"",2,"",5,3,3,3,1,3,0,39,99,12,12,7,95,86,82,99,98,98,1,"","",9,3,"","","",62,35,"","","",17,100,"",99,"",85,65,"",91,"",23,12,"","","",30,39,91,"","","",12,14,"",15,85,"",34,95,"",19,13,85,"",12,7,89,"",27,21,100,31,40,30,99,79,100,5,"",9,9,35,37,25,6,7,31,31,9,23,71,13,0,36,0,0,0,0,0,0]
[382,{"$f":"IF(ISNA(MATCH(L388,'GARP Model'!$D$23:$D$32,0)),0,1)","v":0},"2026-02-28",382,-54,"","","",162401,1,"A","HUN","HUNTSMAN CORP",11,"NYSE",15,"Materials",1510,"Materials",151010,"Chemicals",15101020,"Diversified Chemicals",2025,3,12.65,172.59800000000001,2183.3647000000001,"","",2,3,4,4,2,2,3,54,95,93,6,24,96,77,75,89,61,60,79,5,89,93,83,93,90,"","",39,83,48,33,44,47,39,8,14,21,43,60,77,84,78,19,27,66,25,66,89,51,79,89,17,38,18,16,57,31,20,26,37,21,24,18,19,5,10,18,19,7,11,30,34,4,62,57,51,"",37,"",18,"",6,88,56,14,12,96,80,62,31,48,88,93,17,0,31,0,0,0,0,0,0]
[388,{"$f":"IF(ISNA(MATCH(L394,'GARP Model'!$D$23:$D$32,0)),0,1)","v":0},"2026-02-28",388,-31,"","","",174236,1,"A","SEM","SELECT MEDICAL HOLDINGS CORP",11,"NYSE",35,"Health Care",3510,"Health Care Equipment & Services",351020,"Health Care Providers & Services",35102020,"Health Care Facilities",2025,3,14.97,123.818,1853.55546,"","","",4,4,2,1,4,3,34,85,89,69,90,94,79,88,93,51,67,79,15,67,80,96,86,89,29,23,31,32,8,13,"",89,5,15,7,"",31,18,15,6,83,30,17,48,31,48,39,48,55,62,56,68,25,9,0,11,41,20,5,47,27,47,26,41,29,42,18,26,12,77,42,3,18,33,41,39,34,39,3,70,76,53,36,12,18,65,37,31,12,9,73,82,19,0,65,0,0,0,0,0,0]
[393,{"$f":"IF(ISNA(MATCH(L399,'GARP Model'!$D$23:$D$32,0)),0,1)","v":0},"2026-02-28",393,179,"","","",26305,1,"A","LAUR","LAUREATE EDUCATION INC",14,"NASDAQ",25,"Consumer Discretionary",2530,"Consumer Services",253020,"Diversified Consumer Services",25302010,"Education Services",2025,4,32.340000000000003,142.94,4622.6796000000004,"","","",4,3,4,5,4,3,0,35,48,73,60,30,57,50,52,64,55,57,39,4,26,41,37,43,90,86,18,9,5,5,"",83,16,79,54,"",23,15,73,55,90,12,5,18,66,83,41,37,44,62,56,68,75,37,0,64,66,88,73,53,63,93,18,86,92,89,21,84,90,15,21,7,24,44,57,56,62,100,95,61,80,73,84,80,89,8,100,98,90,96,17,11,91,0,41,0,0,0,0,0,100]
[398,{"$f":"IF(ISNA(MATCH(L404,'GARP Model'!$D$23:$D$32,0)),0,1)","v":0},"2026-02-28",398,6,"Y","","",23432,1,"A","VIRT","VIRTU FINANCIAL INC",11,"NYSE",40,"Financials",4020,"Financial Services",402030,"Capital Markets",40203020,"Investment Banking & Brokerage",2025,3,41.41,84.906999999999996,3515.9988699999999,"",1,"",3,5,2,5,2,3,46,52,31,95,79,90,79,92,95,37,53,66,87,36,73,10,39,79,89,94,68,62,16,19,19,89,46,9,2,"",58,68,61,"","","","","","","",53,44,13,"","","",94,62,"",69,63,37,77,65,42,49,63,36,18,92,89,68,19,70,43,100,66,73,78,92,79,100,87,"",47,76,26,33,48,14,80,31,31,48,95,23,55,0,63,0,0,0,0,0,0]
[402,{"$f":"IF(ISNA(MATCH(L408,'GARP Model'!$D$23:$D$32,0)),0,1)","v":0},"2026-02-28",402,21,"","","",63290,1,"A","PEGA","PEGASYSTEMS INC",14,"NASDAQ",45,"Information Technology",4510,"Software & Services",451030,"Software",45103010,"Application Software",2025,4,43.73,170.34700000000001,7449.2743099999998,"","",1,4,3,5,5,1,3,3,13,34,67,37,30,63,50,41,75,59,46,95,"",7,23,40,39,96,"",61,68,94,82,67,83,47,93,73,62,75,82,78,68,80,40,25,95,94,97,12,15,68,62,56,68,53,89,0,83,90,92,70,68,73,99,95,98,95,97,93,98,94,7,5,100,34,47,54,"",100,"",39,"",32,4,8,21,21,16,37,62,90,86,46,29,18,100,45,0,0,0,0,100,0]
[408,{"$f":"IF(ISNA(MATCH(L414,'GARP Model'!$D$23:$D$32,0)),0,1)","v":0},"2026-02-28",408,240,"","","",16777,1,"A","FBNC","FIRST BANCORP/NC",14,"NASDAQ",40,"Financials",4010,"Banks",401010,"Banks",40101015,"Regional Banks",2025,3,56.79,41.465000000000003,2354.7973499999998,"","","",4,3,3,5,5,3,33,73,40,59,64,65,77,69,69,90,85,85,40,56,63,87,37,40,29,"",87,56,42,66,76,39,51,87,90,"",78,63,83,"","","","","","","",45,59,23,"","","",85,80,"",66,8,13,86,8,9,35,46,44,34,43,44,35,30,95,86,100,86,89,81,"",74,"",79,"",92,76,58,68,74,33,80,62,75,86,67,18,75,0,12,0,0,0,0,0,0]
[413,{"$f":"IF(ISNA(MATCH(L419,'GARP Model'!$D$23:$D$32,0)),0,1)","v":0},"2026-02-28",413,-18,"","","",189579,2,"A","GO","GROCERY OUTLET HLDNG CORP",14,"NASDAQ",30,"Consumer Staples",3010,"Consumer Staples Distribution & Retail",301010,"Consumer Staples Distribution & Retail",30101030,"Food Retail",2025,3,9.8800000000000008,98.137,969.59356000000002,"","","",4,4,3,3,1,3,0,94,95,27,69,77,16,45,52,21,33,36,9,86,86,45,39,50,"","",14,11,2,5,8,70,21,6,5,"",28,19,22,74,68,0,24,52,48,46,73,79,60,68,65,40,18,36,38,39,44,34,44,59,53,28,25,31,17,27,27,36,16,79,79,100,11,12,12,69,26,25,52,"",23,4,7,2,6,98,7,9,12,26,53,67,8,0,26,0,0,0,0,0,0]
[419,{"$f":"IF(ISNA(MATCH(L425,'GARP Model'!$D$23:$D$32,0)),0,1)","v":0},"2026-02-28",419,-45,"","","",6617,1,"A","DSGR","DISTRIBUTION SOLUTIO GRO INC",14,"NASDAQ",20,"Industrials",2010,"Capital Goods",201070,"Trading Companies & Distributors",20107010,"Trading Companies & Distributors",2025,3,29.9,46.286000000000001,1383.9513999999999,"","","",4,3,4,1,4,3,0,57,83,25,30,32,55,41,35,49,37,33,2,94,92,26,9,3,"","",42,15,"","","",62,18,27,23,"",56,35,19,25,2,42,62,76,84,33,9,12,69,90,95,78,28,40,66,63,47,55,31,30,4,26,33,35,12,25,36,42,15,62,69,100,72,83,83,"",26,"",32,"",98,40,25,35,27,42,80,62,54,48,78,54,34,0,94,0,0,0,0,0,0]
[424,{"$f":"IF(ISNA(MATCH(L430,'GARP Model'!$D$23:$D$32,0)),0,1)","v":0},"2026-02-28",424,46,"","","",22000,1,"A","WK","WORKIVA INC",11,"NYSE",45,"Information Technology",4510,"Software & Services",451030,"Software",45103010,"Application Software",2025,4,61.58,56.32,3468.1855999999998,"","",1,3,5,4,5,1,3,0,4,36,25,21,22,47,37,36,54,41,39,75,"",57,19,21,18,"","",77,59,"","","",68,31,"",70,73,86,62,58,15,49,51,36,75,62,50,0,0,82,62,56,68,11,91,0,83,82,72,70,61,66,23,77,85,73,"","","","",44,0,100,89,92,89,20,100,100,85,"",17,19,63,27,19,74,37,62,31,9,18,92,21,0,19,0,0,0,0,0,0]
[425,{"$f":"IF(ISNA(MATCH(L431,'GARP Model'!$D$23:$D$32,0)),0,1)","v":0},"2026-02-28",425,-41,"","","",8092,3,"A","VTOL","BRISTOW GROUP INC",11,"NYSE",10,"Energy",1010,"Energy",101010,"Energy Equipment & Services",10101020,"Oil & Gas Equipment & Services",2025,3,47.7,28.92,1379.4839999999999,"","","",4,4,2,1,5,3,0,77,76,92,54,42,20,14,27,21,16,27,90,2,32,54,47,73,72,"",8,6,"","",8,52,100,32,25,"",13,4,6,31,58,49,47,69,69,75,65,65,25,16,15,40,48,27,38,53,74,67,50,74,65,77,83,80,93,73,83,80,91,38,43,100,8,17,36,"","","",32,"",81,50,70,72,73,39,37,62,75,70,26,32,73,0,30,0,0,0,0,0,0]
[430,{"$f":"IF(ISNA(MATCH(L436,'GARP Model'!$D$23:$D$32,0)),0,1)","v":0},"2026-02-28",430,-4,"","","",18888,1,"A","AMRX","AMNEAL PHARMACEUTICALS INC",14,"NASDAQ",35,"Health Care",3520,"Pharmaceuticals, Biotechnology & Life Sciences",352020,"Pharmaceuticals",35202010,"Pharmaceuticals",2025,3,13.81,314.31099999999998,4340.6349099999998,"",2,"",4,3,5,4,5,3,0,4,57,30,23,25,60,54,57,52,47,50,85,98,84,38,37,49,"","",45,26,"","","",52,28,28,22,43,52,59,30,24,52,44,53,16,37,91,6,10,76,82,88,92,61,55,75,47,62,50,65,39,41,30,87,74,26,"","","","",61,6,100,85,91,91,"",62,"",64,"",87,84,89,83,85,2,100,100,97,99,11,59,87,0,83,0,0,0,0,0,100]
[435,{"$f":"IF(ISNA(MATCH(L441,'GARP Model'!$D$23:$D$32,0)),0,1)","v":0},"2026-02-28",435,-43,"","","",13570,1,"A","MIDD","MIDDLEBY CORP",14,"NASDAQ",20,"Industrials",2010,"Capital Goods",201060,"Machinery",20106020,"Industrial Machinery & Supplies & Components",2025,3,168.86,50.37,8505.4781999999996,"","",1,4,3,4,4,1,3,0,45,45,62,62,65,65,64,63,67,67,65,7,90,91,70,72,53,"","",54,30,"","","",88,13,53,39,18,45,23,23,54,34,31,51,6,9,9,49,68,88,6,57,11,66,51,87,62,64,62,60,63,59,77,63,53,52,72,69,43,42,60,60,0,46,71,79,"",37,"",63,"",57,74,34,37,25,71,37,9,12,2,89,70,24,0,26,0,0,0,0,0,0]
[441,{"$f":"IF(ISNA(MATCH(L447,'GARP Model'!$D$23:$D$32,0)),0,1)","v":0},"2026-02-28",441,-252,"","","",74419,1,"A","PXED","PHOENIX EDUCATION PARTNE INC",11,"NYSE",25,"Consumer Discretionary",2530,"Consumer Services",253020,"Diversified Consumer Services",25302010,"Education Services",2026,1,29.6,35.725000000000001,1057.46,"",2,"",5,3,4,2,5,1,56,36,88,90,90,90,75,77,79,86,88,90,"","","","","","",95,93,"","","","","",45,66,91,83,"",45,"","","","",61,46,"","","","","",35,"","","",63,71,0,"","","","","","",97,"","","",95,"","","","","",100,28,31,31,45,"",100,"",88,98,12,"","","","",7,"","","","","","",0,"",0,100,0,0,0,0]
[445,{"$f":"IF(ISNA(MATCH(L451,'GARP Model'!$D$23:$D$32,0)),0,1)","v":0},"2026-02-28",445,"","","","",36718,1,"A","MEG","MONTROSE ENV GROUP INC",11,"NYSE",20,"Industrials",2020,"Commercial & Professional Services",202010,"Commercial Services & Supplies",20201050,"Environmental & Facilities Services",2025,3,29.22,35.319000000000003,1032.02118,"","","",4,3,4,4,2,3,0,55,70,21,17,17,67,36,36,65,35,35,71,"",49,16,28,20,"","",52,89,7,11,85,97,3,21,31,"",61,32,75,71,7,54,39,91,20,12,45,34,82,65,61,73,26,50,2,75,66,27,68,80,81,22,71,60,85,22,67,57,82,65,69,100,86,80,87,25,66,100,60,"",53,15,29,72,49,95,7,9,54,48,34,26,39,0,44,0,0,0,0,0,0]
[{"$f":"A456+1","v":451},{"$f":"IF(ISNA(MATCH(L457,'GARP Model'!$D$23:$D$32,0)),0,1)","v":0},"2026-02-28",451,-64,"","","",23996,1,"A","GNL","GLOBAL NET LEASE INC",11,"NYSE",60,"Real Estate",6010,"Equity Real Estate Investment Trusts (REITs)",601010,"Diversified REITs",60101010,"Diversified REITs",2025,3,9.42,220.35599999999999,2075.7535200000002,"","","",3,5,3,1,3,3,92,80,18,9,10,15,86,81,82,62,61,62,33,98,97,97,31,35,"","",99,55,10,74,56,80,64,3,9,"",99,49,49,"","","","","","","",18,27,82,"","","",79,54,"",4,18,4,5,20,10,19,25,21,14,18,29,22,13,71,65,2,"","",100,74,26,100,"","",75,84,79,60,80,71,100,89,54,70,31,34,82,0,38,0,0,0,0,0,0]
[456,{"$f":"IF(ISNA(MATCH(L462,'GARP Model'!$D$23:$D$32,0)),0,1)","v":0},"2026-02-28",456,29,"","","",9317,1,"A","SEIC","SEI INVESTMENTS CO",14,"NASDAQ",40,"Financials",4020,"Financial Services",402030,"Capital Markets",40203010,"Asset Management & Custody Banks",2025,3,81.319999999999993,122.633,9972.5155599999998,"","","",4,4,4,5,3,3,24,33,33,78,70,71,63,56,61,76,69,74,66,31,54,38,56,65,90,"",59,72,46,47,41,87,45,98,77,"",69,69,82,42,44,87,86,"","","",82,94,10,"","","",75,32,"",62,48,33,70,47,38,99,85,70,64,92,79,66,53,53,75,100,80,82,84,"",100,"",59,"",86,54,32,40,44,37,100,62,75,86,78,36,44,100,91,0,0,0,0,0,0]
[461,{"$f":"IF(ISNA(MATCH(L467,'GARP Model'!$D$23:$D$32,0)),0,1)","v":0},"2026-02-28",461,22,"","","",5862,1,"A","RYN","RAYONIER INC",11,"NYSE",60,"Real Estate",6010,"Equity Real Estate Investment Trusts (REITs)",601080,"Specialized REITs",60108040,"Timber REITs",2025,3,21.49,153.87100000000001,3306.6877899999999,"","","",3,5,4,5,1,3,83,74,43,94,76,69,62,29,38,70,30,40,88,4,7,40,53,68,66,"",38,98,83,78,68,71,70,62,59,"",20,95,94,10,3,79,76,"","","",49,66,2,"","","",92,65,"",90,87,86,92,92,90,90,88,84,83,79,83,81,75,50,63,1,54,17,24,"",48,"",91,"",20,42,41,27,37,80,80,62,54,70,55,59,36,100,60,0,0,0,0,0,0]
[467,{"$f":"IF(ISNA(MATCH(L473,'GARP Model'!$D$23:$D$32,0)),0,1)","v":0},"2026-02-28",467,-14,"","","",63927,1,"A","UNFI","UNITED NATURAL FOODS INC",11,"NYSE",30,"Consumer Staples",3010,"Consumer Staples Distribution & Retail",301010,"Consumer Staples Distribution & Retail",30101020,"Food Distributors",2026,1,38.21,60.9,2326.989,"","","",5,2,4,4,3,3,0,72,99,16,22,47,91,74,73,69,50,50,37,89,91,67,65,79,"","",36,90,"","","",51,70,12,7,"",79,59,50,79,75,6,28,61,70,64,77,49,75,76,80,86,14,13,29,40,43,34,43,39,36,24,43,22,19,20,44,16,10,65,44,100,60,46,46,2,77,100,56,"",64,30,76,64,68,73,37,62,75,70,16,60,68,100,68,0,0,0,0,0,0]
[472,{"$f":"IF(ISNA(MATCH(L478,'GARP Model'!$D$23:$D$32,0)),0,1)","v":0},"2026-02-28",472,-94,"","","",174134,1,"A","PTCT","PTC THERAPEUTICS INC",14,"NASDAQ",35,"Health Care",3520,"Pharmaceuticals, Biotechnology & Life Sciences",352010,"Biotechnology",35201010,"Biotechnology",2025,4,68.19,81.474000000000004,5555.7120599999998,"","","",5,3,1,1,4,3,0,3,38,96,20,13,88,35,22,89,36,22,95,"",19,2,6,4,"","",67,81,"","","",17,55,50,47,75,81,90,88,5,41,68,58,95,97,90,7,0,24,13,19,74,94,99,21,96,96,97,83,65,54,98,98,98,97,"","","","",4,"",100,87,95,92,"",26,"",12,"",46,56,81,72,85,30,37,62,54,48,16,16,85,0,53,0,0,0,0,0,0]
[477,{"$f":"IF(ISNA(MATCH(L483,'GARP Model'!$D$23:$D$32,0)),0,1)","v":0},"2026-02-28",477,66,"","","",179834,1,"A","CDNA","CAREDX INC",14,"NASDAQ",35,"Health Care",3520,"Pharmaceuticals, Biotechnology & Life Sciences",352010,"Biotechnology",35201010,"Biotechnology",2025,3,18.760000000000002,51.406999999999996,964.39531999999997,"","","",3,5,1,1,5,3,0,42,59,79,11,12,46,23,20,59,22,19,89,"",12,26,59,25,89,"",56,86,"","","",92,38,"",88,64,62,92,85,75,56,74,71,95,93,84,24,14,4,12,16,27,12,84,33,90,86,77,69,66,96,96,98,96,93,88,97,92,87,7,18,100,78,63,46,"",26,"",2,"",50,91,88,49,27,43,100,100,97,86,18,97,7,0,26,0,0,0,0,0,100]
[480,{"$f":"IF(ISNA(MATCH(L486,'GARP Model'!$D$23:$D$32,0)),0,1)","v":0},"2026-02-28",480,197,"","","",36964,1,"A","ASAN","ASANA INC",11,"NYSE",45,"Information Technology",4510,"Software & Services",451030,"Software",45103010,"Application Software",2025,3,7.1,238.09299999999999,1690.4603,"",2,"",3,5,2,5,1,3,0,14,65,7,3,2,46,18,10,56,16,8,55,"",75,38,27,6,"","",50,33,"","","",77,100,"",83,83,58,28,97,81,78,43,28,57,77,72,11,4,98,62,56,68,8,98,0,89,94,93,53,47,68,7,81,92,38,2,16,21,99,20,8,100,58,58,14,"",100,"",82,"",14,6,5,3,2,86,37,31,54,48,66,79,4,0,66,0,0,0,100,0,0]
[487,{"$f":"IF(ISNA(MATCH(L493,'GARP Model'!$D$23:$D$32,0)),0,1)","v":0},"2026-02-28",487,-139,"","","",25870,1,"A","MTX","MINERALS TECHNOLOGIES INC",11,"NYSE",15,"Materials",1510,"Materials",151010,"Chemicals",15101050,"Specialty Chemicals",2025,4,70.62,31.033999999999999,2191.6210799999999,"","","",3,5,2,3,3,3,11,79,76,25,51,66,46,57,61,44,57,60,9,87,87,79,77,70,"","",29,23,66,91,79,73,18,55,33,12,26,19,23,51,67,46,51,27,42,81,87,95,62,21,27,33,56,31,64,25,60,33,29,68,32,27,12,23,17,26,15,28,19,66,71,100,29,44,47,"",62,"",23,"",92,69,52,55,25,70,100,89,90,70,64,84,24,0,54,0,0,0,0,0,0]
[488,{"$f":"IF(ISNA(MATCH(L494,'GARP Model'!$D$23:$D$32,0)),0,1)","v":0},"2026-02-28",488,-68,"","","",148223,1,"A","GLDD","GREAT LAKES DREDGE & DOCK CP",14,"NASDAQ",20,"Industrials",2010,"Capital Goods",201030,"Construction & Engineering",20103010,"Construction & Engineering",2025,3,16.95,66.686999999999998,1130.34465,"","","",4,2,5,5,4,3,0,55,65,78,42,50,29,9,8,29,10,11,70,6,66,30,54,81,79,71,4,66,"","","",59,44,51,27,"",10,85,4,82,85,29,20,28,33,5,46,65,60,84,65,82,60,30,17,79,76,35,81,85,44,78,69,77,29,79,67,80,25,44,42,100,5,5,6,52,100,32,90,72,11,88,76,78,76,17,100,89,90,96,51,38,74,0,24,0,0,0,0,0,0]
[493,{"$f":"IF(ISNA(MATCH(L499,'GARP Model'!$D$23:$D$32,0)),0,1)","v":0},"2026-02-28",493,-2,"","","",20019,1,"A","CVBF","CVB FINANCIAL CORP",14,"NASDAQ",40,"Financials",4010,"Banks",401010,"Banks",40101015,"Regional Banks",2025,3,19.23,137.51,2644.3173000000002,"",1,"",3,5,2,5,2,3,77,83,31,82,85,86,78,81,80,83,86,85,46,50,66,91,52,70,30,"",88,56,27,44,38,65,47,49,55,"",77,65,59,"","","","","","","",77,88,18,"","","",94,91,"",71,11,8,89,12,9,42,48,50,38,55,50,45,40,99,96,100,85,88,89,"",100,"",47,"",72,51,44,36,40,72,80,62,54,48,61,58,37,0,33,0,0,0,0,0,0]
[498,{"$f":"IF(ISNA(MATCH(L504,'GARP Model'!$D$23:$D$32,0)),0,1)","v":0},"2026-02-28",498,-191,"","","",35497,1,"A","NVST","ENVISTA HOLDINGS CORP",11,"NYSE",35,"Health Care",3510,"Health Care Equipment & Services",351010,"Health Care Equipment & Supplies",35101010,"Health Care Equipment",2025,4,29.21,163.80000000000001,4784.598,"","","",3,5,1,5,2,3,0,71,66,33,9,20,51,56,60,57,63,68,85,80,59,42,66,78,18,24,61,63,"","","",78,5,30,54,34,60,76,61,3,98,65,59,24,40,47,38,53,46,18,71,81,43,71,43,64,24,29,29,25,47,36,96,29,45,31,95,40,43,16,26,100,78,84,82,52,100,100,91,5,19,68,67,69,59,89,100,89,90,70,41,60,59,100,92,0,0,0,0,0,0]
[504,{"$f":"IF(ISNA(MATCH(L510,'GARP Model'!$D$23:$D$32,0)),0,1)","v":0},"2026-02-28",504,121,"","","",25895,1,"A","RDN","RADIAN GROUP INC",11,"NYSE",40,"Financials",4020,"Financial Services",402010,"Financial Services",40201050,"Commercial & Residential Mortgage Finance",2025,4,34.520000000000003,135.49799999999999,4677.3909599999997,"","","",1,5,4,5,3,3,58,89,41,97,95,95,36,21,49,42,19,61,45,56,54,90,72,94,59,73,85,66,18,40,61,94,100,75,83,"",84,75,69,"","","","","","","",78,79,4,"","","","",86,"","","","",86,13,94,83,62,28,62,71,50,34,55,73,84,4,"",68,66,80,66,100,60,55,66,27,36,30,41,31,80,89,90,86,48,46,43,0,50,0,0,0,0,0,0]
[509,{"$f":"IF(ISNA(MATCH(L515,'GARP Model'!$D$23:$D$32,0)),0,1)","v":0},"2026-02-28",509,-48,"","","",15199,1,"A","SRCE","1ST SOURCE CORP",14,"NASDAQ",40,"Financials",4010,"Banks",401010,"Banks",40101015,"Regional Banks",2025,4,67.010000000000005,24.369,1632.96669,"","","",5,3,2,5,5,3,48,79,44,90,85,84,89,86,86,90,89,89,60,33,44,54,25,44,57,"",79,44,69,56,48,57,64,75,46,"",60,21,24,"","","","","","","",86,76,22,"","","",91,83,"",80,17,58,87,12,12,47,56,55,49,69,55,49,53,99,97,100,28,55,83,"",100,"",96,"",94,65,53,41,53,37,100,89,54,70,60,48,57,0,41,0,0,0,0,0,0]
[{"$f":"A520+1","v":515},{"$f":"IF(ISNA(MATCH(L521,'GARP Model'!$D$23:$D$32,0)),0,1)","v":0},"2026-02-28",515,-25,"","","",9466,1,"A","SCHL","SCHOLASTIC CORP",14,"NASDAQ",50,"Communication Services",5020,"Media & Entertainment",502010,"Media",50201040,"Publishing",2025,2,34.770000000000003,25.442,884.61833999999999,"","","",3,5,1,3,4,3,46,90,93,27,53,56,53,77,81,51,75,80,61,85,44,63,79,72,"","",43,87,15,26,33,88,37,44,31,"",47,57,81,37,62,37,39,43,61,93,90,87,50,33,87,93,24,68,68,63,41,71,50,66,83,28,49,26,62,27,52,35,58,68,80,100,61,45,51,90,100,100,"","",41,80,81,87,90,76,100,100,99,99,23,8,90,100,58,0,0,0,0,0,100]
[519,{"$f":"IF(ISNA(MATCH(L525,'GARP Model'!$D$23:$D$32,0)),0,1)","v":0},"2026-02-28",519,80,"","","",33948,1,"A","GLXY","GALAXY DIGITAL INC",14,"NASDAQ",40,"Financials",4020,"Financial Services",402030,"Capital Markets",40203010,"Asset Management & Custody Banks",2025,3,20.59,179.31200000000001,3692.0340799999999,"",2,"",5,3,3,3,2,3,0,57,99,57,38,39,41,27,27,52,27,28,"","","","","","",37,"","","","","","",5,67,70,85,"",67,"","","","",41,26,"","","","","",56,"","","",15,5,"","","","","","","",42,"","","",52,"","","","","",100,0,0,0,"",66,"",27,"",6,10,31,82,80,1,37,62,90,86,26,7,66,0,92,0,0,0,0,0,0]
[524,{"$f":"IF(ISNA(MATCH(L530,'GARP Model'!$D$23:$D$32,0)),0,1)","v":0},"2026-02-28",524,-111,"","","",30091,1,"A","SNAP","SNAP INC",11,"NYSE",50,"Communication Services",5020,"Media & Entertainment",502030,"Interactive Media & Services",50203010,"Interactive Media & Services",2025,4,5.21,1711.5530000000001,8917.1911299999992,"","",1,4,5,3,4,1,1,0,34,70,14,6,5,52,35,35,55,37,35,69,"",55,35,43,20,"","",33,30,"","","",93,22,"",47,79,35,23,18,67,47,"",77,83,79,88,48,29,88,"","","",11,66,0,80,86,91,65,21,55,16,79,88,88,14,84,91,81,35,28,100,25,33,45,16,62,9,66,"",8,17,7,14,7,89,37,31,54,26,87,65,8,100,56,0,0,0,100,0,0]
[530,{"$f":"IF(ISNA(MATCH(L536,'GARP Model'!$D$23:$D$32,0)),0,1)","v":0},"2026-02-28",530,-46,"","","",1926,1,"A","AZZ","AZZ INC",11,"NYSE",20,"Industrials",2010,"Capital Goods",201020,"Building Products",20102010,"Building Products",2025,3,135.97999999999999,29.856000000000002,4059.8188799999998,"","","",5,1,5,3,3,3,9,43,49,83,57,53,82,52,47,85,56,49,90,5,2,66,39,34,89,83,24,75,13,69,46,52,13,69,47,"",25,15,24,63,69,36,38,33,82,85,55,61,76,75,89,91,64,29,28,49,54,74,49,36,49,95,91,87,88,89,87,84,83,47,65,100,37,34,42,50,72,18,43,77,89,82,53,67,80,9,100,89,75,86,81,11,79,0,88,0,0,0,0,0,0]
[535,{"$f":"IF(ISNA(MATCH(L541,'GARP Model'!$D$23:$D$32,0)),0,1)","v":0},"2026-02-28",535,-41,"","","",142814,1,"A","SYNA","SYNAPTICS INC",14,"NASDAQ",45,"Information Technology",4530,"Semiconductors & Semiconductor Equipment",453010,"Semiconductors & Semiconductor Equipment",45301020,"Semiconductors",2026,2,81.459999999999994,38.710999999999999,3153.39806,"","",1,3,4,2,5,3,3,0,54,44,21,37,54,52,58,76,55,64,80,7,88,89,28,94,92,"","",51,35,"","","",76,11,7,47,80,40,19,17,80,51,69,69,87,81,90,49,55,80,11,12,7,26,67,53,69,6,12,36,21,77,21,7,9,6,23,11,13,9,38,44,100,87,90,91,19,80,100,93,"",24,70,73,70,38,86,80,89,75,70,30,88,35,100,61,0,0,0,0,0,0]
[540,{"$f":"IF(ISNA(MATCH(L546,'GARP Model'!$D$23:$D$32,0)),0,1)","v":0},"2026-02-28",540,151,"","","",27841,1,"A","AMR","ALPHA METALLURGICAL RESOURCE",11,"NYSE",15,"Materials",1510,"Materials",151040,"Metals & Mining",15104050,"Steel",2025,3,162.65,12.919,2101.2753499999999,"",2,"",4,4,2,3,5,3,0,77,92,20,99,99,33,98,97,39,98,98,8,85,45,97,96,74,"","",18,95,3,6,"",62,68,98,91,"",22,11,85,59,17,77,79,20,35,19,19,8,79,6,7,25,25,8,39,4,2,74,4,3,75,22,3,0,94,23,7,2,97,3,9,100,54,35,43,"",26,"","","",21,78,90,81,59,46,80,98,90,70,9,95,58,0,50,100,0,0,0,0,100]
[546,{"$f":"IF(ISNA(MATCH(L552,'GARP Model'!$D$23:$D$32,0)),0,1)","v":0},"2026-02-28",546,5,"","","",37793,1,"A","DFH","DREAM FINDERS HOMES INC",11,"NYSE",25,"Consumer Discretionary",2520,"Consumer Durables & Apparel",252010,"Household Durables",25201030,"Homebuilding",2025,3,18.07,92.754999999999995,1676.08285,"","","",2,5,4,2,3,3,0,85,94,98,98,95,35,36,31,31,32,29,38,36,"",24,28,"",82,83,63,26,30,94,"",71,38,27,14,"",81,33,"","","","","",61,75,"",60,35,4,94,17,"",25,19,96,17,35,"",57,59,"",83,25,29,"",84,24,21,"",68,66,100,19,29,37,71,26,100,23,87,92,22,7,10,20,38,37,31,31,48,92,28,13,100,87,0,0,0,0,0,0]
[551,{"$f":"IF(ISNA(MATCH(L557,'GARP Model'!$D$23:$D$32,0)),0,1)","v":0},"2026-02-28",551,2,"","","",11343,1,"A","WMK","WEIS MARKETS INC",11,"NYSE",30,"Consumer Staples",3010,"Consumer Staples Distribution & Retail",301010,"Consumer Staples Distribution & Retail",30101030,"Food Retail",2025,3,67.760000000000005,24.745000000000001,1676.7212,"","","",3,5,2,2,2,3,40,80,98,72,77,78,25,46,53,25,53,62,47,56,73,61,64,75,33,"",7,5,22,36,35,92,53,83,69,"",32,17,19,63,50,27,48,51,32,35,81,93,56,30,59,70,18,24,28,41,42,30,60,44,35,71,58,36,24,49,57,47,29,87,97,100,14,25,24,"","","","","",90,62,30,12,50,75,80,31,12,48,86,26,59,0,62,0,0,0,0,0,0]
[552,{"$f":"IF(ISNA(MATCH(L558,'GARP Model'!$D$23:$D$32,0)),0,1)","v":0},"2026-02-28",552,-21,"Y","","",117141,1,"A","EFSC","ENTERPRISE FINL SERVICES CP",14,"NASDAQ",40,"Financials",4010,"Banks",401010,"Banks",40101015,"Regional Banks",2025,3,57.1,37.011000000000003,2113.3281000000002,"","","",4,4,3,2,4,1,45,86,56,89,88,85,77,84,82,82,89,87,50,47,30,59,16,15,47,"",82,42,76,72,86,58,57,71,53,"",69,25,40,"","","","","","","",87,50,14,"","","",92,82,"",64,9,66,84,7,34,41,47,45,44,60,51,41,46,94,90,100,34,69,83,"",62,"",32,"",90,54,40,38,39,56,80,62,31,26,70,54,40,0,7,0,100,100,0,0,0]
[558,{"$f":"IF(ISNA(MATCH(L564,'GARP Model'!$D$23:$D$32,0)),0,1)","v":0},"2026-02-28",558,-134,"","","",38041,2,"A","PGY","PAGAYA TECHNOLOGIES LTD",14,"NASDAQ",45,"Information Technology",4510,"Software & Services",451030,"Software",45103010,"Application Software",2025,3,11.19,80.128,896.63232000000005,"","","",5,3,3,3,2,1,0,61,81,3,1,0,94,42,44,92,37,39,37,"","",12,"","","","",57,"","","","",19,60,39,20,40,68,"","","","",59,43,15,"","",29,37,96,62,"","",55,53,0,92,"","",73,"","",11,44,"","",8,20,"","",19,17,100,72,50,52,1,26,100,36,"",2,5,4,82,92,36,7,9,54,70,75,1,91,0,76,0,0,0,100,0,0]
[561,{"$f":"IF(ISNA(MATCH(L567,'GARP Model'!$D$23:$D$32,0)),0,1)","v":0},"2026-02-28",561,-75,"","","",37054,1,"A","ASO","ACADEMY SPO AND OU INC",14,"NASDAQ",25,"Consumer Discretionary",2550,"Consumer Discretionary Distribution & Retail",255040,"Specialty Retail",25504040,"Other Specialty Retail",2025,3,60.13,66.677000000000007,4009.2880100000002,"","","",4,4,2,3,2,3,16,62,87,89,93,94,51,78,88,48,74,86,31,65,53,74,81,83,78,75,21,15,72,88,9,82,29,50,29,"",34,13,13,37,50,2,40,53,48,45,77,68,23,7,7,7,32,40,88,22,28,51,49,46,64,80,24,18,59,82,24,14,22,58,45,100,14,19,29,60,77,13,43,76,28,67,45,69,48,70,100,89,97,86,72,45,43,0,88,0,0,0,0,0,0]
[567,{"$f":"IF(ISNA(MATCH(L573,'GARP Model'!$D$23:$D$32,0)),0,1)","v":0},"2026-02-28",567,94,"","","",33809,1,"A","CWK","CUSHMAN & WAKEFIELD",11,"NYSE",60,"Real Estate",6020,"Real Estate Management & Development",602010,"Real Estate Management & Development",60201040,"Real Estate Services",2025,3,13.41,231.60499999999999,3105.82305,"",2,"",3,4,1,1,5,3,0,70,95,79,47,53,54,50,61,43,42,51,90,62,22,47,78,76,66,"",68,69,"","","",50,18,21,16,"",84,60,60,59,85,29,16,"","","",72,55,11,"","","",20,16,"",51,35,52,53,33,46,56,73,36,75,65,80,29,86,63,39,100,82,86,89,"",30,"",32,"",46,42,76,82,63,58,80,62,90,70,18,71,55,0,46,0,0,0,0,0,0]
[572,{"$f":"IF(ISNA(MATCH(L578,'GARP Model'!$D$23:$D$32,0)),0,1)","v":0},"2026-02-28",572,150,"","","",65275,2,"A","BFAM","BRIGHT HORIZONS FAMILY SOLTN",11,"NYSE",25,"Consumer Discretionary",2530,"Consumer Services",253020,"Diversified Consumer Services",25302010,"Education Services",2025,3,74.52,56.801000000000002,4232.81052,"","","",4,3,3,4,1,3,0,44,64,63,48,45,56,53,53,53,51,51,80,11,28,38,31,38,73,66,38,38,"","","",82,3,35,29,"",40,55,83,54,96,7,2,59,71,66,60,53,38,62,56,68,48,29,0,60,71,64,67,69,69,72,76,72,65,74,79,73,67,78,76,100,38,51,57,50,30,100,57,56,18,14,13,7,16,52,7,9,2,9,65,53,17,0,55,0,0,0,100,0,0]
[577,{"$f":"IF(ISNA(MATCH(L583,'GARP Model'!$D$23:$D$32,0)),0,1)","v":0},"2026-02-28",577,44,"","","",164633,1,"A","HOMB","HOME BANCSHARES INC",11,"NYSE",40,"Financials",4010,"Banks",401010,"Banks",40101015,"Regional Banks",2025,3,27.46,196.88900000000001,5406.5719399999998,"","","",3,4,3,3,3,3,60,79,36,86,81,78,63,72,72,72,80,80,58,19,36,71,23,33,45,"",78,40,61,70,74,61,44,73,60,"",51,18,35,"","","","","","","",53,67,11,"","","",93,84,"",79,24,57,87,14,39,49,58,61,50,63,60,67,52,93,94,100,32,63,69,"",100,"",32,"",87,53,38,31,39,45,80,62,31,48,70,51,40,0,18,0,0,0,0,0,0]
[583,{"$f":"IF(ISNA(MATCH(L589,'GARP Model'!$D$23:$D$32,0)),0,1)","v":0},"2026-02-28",583,-51,"","","",34414,1,"A","KNTK","KINETIK HOLDINGS INC",11,"NYSE",10,"Energy",1010,"Energy",101020,"Oil, Gas & Consumable Fuels",10102040,"Oil & Gas Storage & Transportation",2025,3,45.49,64.105999999999995,2916.1819399999999,"",1,"",3,3,5,5,2,3,90,0,21,36,67,52,58,85,82,33,48,46,11,"",39,20,17,1,"","",14,6,87,97,"",87,73,9,21,"",7,4,96,98,99,"",4,54,95,10,8,7,74,"","","",75,32,0,7,24,2,6,21,3,33,15,59,93,"","","","",70,"",100,27,45,47,"",42,"",98,"",13,46,27,28,11,30,80,31,31,9,79,85,13,100,62,0,0,0,0,0,0]
[588,{"$f":"IF(ISNA(MATCH(L594,'GARP Model'!$D$23:$D$32,0)),0,1)","v":0},"2026-02-28",588,58,"","","",40501,1,"A","SVV","SAVERS VALUE VILLAGE INC",11,"NYSE",25,"Consumer Discretionary",2550,"Consumer Discretionary Distribution & Retail",255030,"Broadline Retail",25503030,"Broadline Retail",2025,3,9.43,156.21899999999999,1473.14517,"","","",3,4,2,1,4,3,0,38,70,29,49,52,31,50,52,29,40,42,10,"","",48,"","","","",18,"",2,"","",75,10,12,14,"",21,"","","","",9,8,50,"","",1,1,68,28,"","",38,40,16,14,"","",22,"","",29,15,"","",27,10,"","",78,61,100,22,18,18,"",26,"",32,"",79,61,31,33,33,"",80,89,54,48,84,53,34,0,35,0,0,0,0,0,0]
[594,{"$f":"IF(ISNA(MATCH(L600,'GARP Model'!$D$23:$D$32,0)),0,1)","v":0},"2026-02-28",594,60,"","","",64175,1,"A","LAD","LITHIA MOTORS INC  -CL A",11,"NYSE",25,"Consumer Discretionary",2550,"Consumer Discretionary Distribution & Retail",255040,"Specialty Retail",25504050,"Automotive Retail",2025,3,279.58,24.4,6821.7520000000004,"","","",2,5,3,1,3,3,14,88,96,96,95,95,23,10,27,24,18,26,54,63,31,41,36,11,69,"",51,29,32,64,78,95,37,14,4,"",74,54,60,69,16,1,21,60,57,59,72,22,7,86,12,83,20,14,61,40,34,40,37,31,41,62,55,19,24,72,60,22,20,58,65,100,25,27,23,"",34,"",3,"",43,39,51,37,26,49,80,62,75,70,39,84,22,100,66,0,0,0,0,0,0]
[597,{"$f":"IF(ISNA(MATCH(L603,'GARP Model'!$D$23:$D$32,0)),0,1)","v":0},"2026-02-28",597,-1,"","","",245918,1,"A","BRSL","BRIGHTSTAR LOTTERY PLC",11,"NYSE",25,"Consumer Discretionary",2530,"Consumer Services",253010,"Hotels, Restaurants & Leisure",25301010,"Casinos & Gaming",2025,3,13.56,190,2576.4,"","","",2,5,1,5,2,3,89,44,62,32,67,31,48,98,97,36,93,94,30,83,41,94,95,97,5,"",33,67,99,96,97,94,16,25,12,17,15,9,12,97,96,13,6,2,15,94,41,32,24,25,73,72,82,62,21,21,61,77,7,19,33,30,46,26,78,32,56,15,92,55,15,0,25,58,69,"",48,"",92,"",72,16,32,37,51,83,7,31,54,70,34,27,48,0,67,0,0,0,0,0,0]
[603,{"$f":"IF(ISNA(MATCH(L609,'GARP Model'!$D$23:$D$32,0)),0,1)","v":0},"2026-02-28",603,210,"","","",35158,1,"A","PSN","PARSONS CORP",11,"NYSE",20,"Industrials",2020,"Commercial & Professional Services",202020,"Professional Services",20202020,"Research & Consulting Services",2025,4,66,106.968,7059.8879999999999,"","","",4,3,3,1,2,3,0,49,79,51,45,42,58,59,57,63,66,61,46,11,32,87,28,45,56,53,54,22,"","","",66,7,57,48,"",70,32,34,19,28,"",41,6,52,54,89,96,47,"","","",27,23,0,44,57,49,75,38,35,66,44,68,56,56,45,70,55,79,83,100,61,80,88,53,26,100,16,37,52,13,25,29,27,32,80,62,75,86,38,52,32,100,27,0,0,0,0,0,0]
[609,{"$f":"IF(ISNA(MATCH(L615,'GARP Model'!$D$23:$D$32,0)),0,1)","v":0},"2026-02-28",609,-91,"","","",24135,1,"A","ALRM","ALARM.COM HOLDINGS INC",14,"NASDAQ",45,"Information Technology",4510,"Software & Services",451030,"Software",45103010,"Application Software",2025,3,47.85,49.761000000000003,2381.06385,"","","",4,5,2,5,1,1,0,45,56,68,60,58,63,60,56,73,69,65,45,10,49,45,52,42,77,"",60,27,"","","",55,39,14,67,76,58,82,77,57,19,62,51,82,82,75,62,50,30,16,87,24,51,79,38,58,75,44,64,84,65,76,40,70,14,77,34,76,33,72,74,100,63,81,78,"",100,"",73,"",61,30,19,17,21,73,37,31,31,26,79,58,22,0,18,0,100,0,0,0,0]
[614,{"$f":"IF(ISNA(MATCH(L620,'GARP Model'!$D$23:$D$32,0)),0,1)","v":0},"2026-02-28",614,0,"","","",150279,1,"A","PFS","PROVIDENT FINANCIAL SVCS INC",11,"NYSE",40,"Financials",4010,"Banks",401010,"Banks",40101015,"Regional Banks",2025,3,21.04,130.62200000000001,2748.2868800000001,"","","",5,3,4,5,5,1,80,89,37,89,72,73,96,83,78,91,71,66,91,24,23,9,5,9,32,"",89,56,94,87,78,41,56,25,15,"",83,84,79,"","","","","","","",27,39,26,"","","",87,74,"",89,9,23,91,4,6,38,62,48,46,57,78,50,56,92,85,100,94,92,82,"",62,"",93,"",89,80,67,65,68,59,100,89,75,70,54,38,70,0,8,0,100,100,0,0,0]
[615,{"$f":"IF(ISNA(MATCH(L621,'GARP Model'!$D$23:$D$32,0)),0,1)","v":0},"2026-02-28",615,-9,"","","",64821,1,"A","ARE","ALEXANDRIA R E EQUITIES INC",11,"NYSE",60,"Real Estate",6010,"Equity Real Estate Investment Trusts (REITs)",601050,"Health Care REITs",60105010,"Health Care REITs",2025,4,54.04,170.53800000000001,9215.8735199999992,"","","",4,4,3,3,1,3,85,98,20,5,35,55,92,93,91,74,79,76,2,96,93,83,41,71,"","",99,55,40,57,71,71,100,"",9,"",99,49,49,"","","","","","","",66,45,74,"","","","",3,"","","","",1,1,1,19,13,18,8,19,15,23,11,72,77,100,"","","",96,"",39,"","",44,24,8,9,6,96,37,31,54,48,93,68,6,100,15,0,0,0,0,0,0]
[620,{"$f":"IF(ISNA(MATCH(L626,'GARP Model'!$D$23:$D$32,0)),0,1)","v":0},"2026-02-28",620,-58,"","","",17934,1,"A","SFM","SPROUTS FARMERS MARKET",14,"NASDAQ",30,"Consumer Staples",3010,"Consumer Staples Distribution & Retail",301010,"Consumer Staples Distribution & Retail",30101030,"Food Retail",2025,4,73.87,95.926000000000002,7086.0536199999997,"","","",5,4,4,4,1,1,0,27,85,79,69,66,64,56,55,65,58,56,70,16,47,27,36,64,95,95,14,15,"","","",89,38,59,38,"",43,23,24,93,23,4,12,37,38,35,75,68,51,27,33,37,30,47,22,58,60,49,58,61,59,93,76,76,60,95,85,81,58,70,67,100,19,21,28,64,31,17,64,62,9,17,0,0,1,17,37,9,2,9,98,44,4,100,78,0,0,0,100,100,0]
[625,{"$f":"IF(ISNA(MATCH(L631,'GARP Model'!$D$23:$D$32,0)),0,1)","v":0},"2026-02-28",625,-121,"","","",11925,3,"A","NE","NOBLE CORP PLC",11,"NYSE",10,"Energy",1010,"Energy",101010,"Energy Equipment & Services",10101010,"Oil & Gas Drilling",2025,4,45.43,158.85400000000001,7216.73722,"","","",3,3,4,2,5,3,79,70,51,47,72,33,59,44,34,61,44,34,18,34,34,44,7,13,6,"",15,13,80,"","",50,100,64,38,"",11,10,92,34,95,55,40,94,96,73,14,18,79,62,56,68,79,43,0,9,65,59,9,56,54,56,20,45,86,38,25,56,83,2,12,100,43,36,41,"",37,"",15,"",36,81,77,81,64,67,80,89,90,70,32,74,64,0,41,0,0,0,0,0,0]
[631,{"$f":"IF(ISNA(MATCH(L637,'GARP Model'!$D$23:$D$32,0)),0,1)","v":0},"2026-02-28",631,16,"","","",35852,1,"A","AHCO","ADAPTHEALTH CORP",14,"NASDAQ",35,"Health Care",3510,"Health Care Equipment & Services",351020,"Health Care Providers & Services",35102010,"Health Care Distributors",2025,3,9.15,135.42400000000001,1239.1296,"","","",5,3,4,3,3,1,0,95,87,76,4,8,93,84,81,76,61,58,88,54,1,73,59,7,34,"",11,37,"","",8,42,0,50,7,"",16,36,7,85,83,19,17,68,61,86,37,0,82,26,30,78,59,31,21,24,45,58,84,77,78,48,88,52,58,39,91,58,61,28,25,100,40,46,50,"",71,"",11,"",70,59,50,45,32,93,80,62,31,48,58,75,26,0,6,0,0,100,0,0,0]
[636,{"$f":"IF(ISNA(MATCH(L642,'GARP Model'!$D$23:$D$32,0)),0,1)","v":0},"2026-02-28",636,-16,"","","",18293,3,"A","CWEN","CLEARWAY ENERGY INC",11,"NYSE",55,"Utilities",5510,"Utilities",551050,"Independent Power & Renewable Electricity Producers",55105020,"Renewable Electricity",2025,3,38.31,117.881,4516.0211099999997,"","","",3,3,3,2,4,3,82,55,15,73,60,63,80,86,87,47,57,60,87,70,10,69,61,78,5,"",45,26,63,60,76,36,100,5,5,"",10,5,5,78,20,45,34,12,29,15,49,59,34,24,20,32,96,73,24,40,54,25,43,54,29,46,65,29,54,73,83,24,72,71,44,100,77,84,86,"","","","","",75,66,53,55,81,48,80,62,54,70,61,10,83,100,91,0,0,0,0,0,0]
[640,{"$f":"IF(ISNA(MATCH(L646,'GARP Model'!$D$23:$D$32,0)),0,1)","v":0},"2026-02-28",640,130,"","","",10549,1,"A","THO","THOR INDUSTRIES INC",11,"NYSE",25,"Consumer Discretionary",2510,"Automobiles & Components",251020,"Automobiles",25102010,"Automobile Manufacturers",2026,1,96.13,52.838999999999999,5079.4130699999996,"",2,"",4,3,1,5,4,3,43,81,95,69,78,91,68,84,85,74,88,90,69,78,69,67,94,81,30,24,44,81,52,46,43,62,18,69,51,4,66,60,35,61,25,18,43,50,27,77,78,66,38,21,14,23,21,14,58,42,27,31,41,33,48,65,66,11,29,44,62,14,24,40,43,100,71,70,68,41,71,100,82,69,58,50,67,74,55,50,80,62,90,70,29,67,41,100,52,0,0,0,0,0,0]
[646,{"$f":"IF(ISNA(MATCH(L652,'GARP Model'!$D$23:$D$32,0)),0,1)","v":0},"2026-02-28",646,-78,"","","",30443,1,"A","FDP","FRESH DEL MONTE PRODUCE INC",11,"NYSE",30,"Consumer Staples",3020,"Food, Beverage & Tobacco",302020,"Food Products",30202010,"Agricultural Products & Services",2025,3,42.93,47.774999999999999,2050.9807500000002,"","","",4,2,3,5,4,3,55,88,96,55,58,59,74,58,51,79,64,54,96,41,19,69,77,88,16,"",48,42,85,89,95,56,33,73,50,"",68,38,78,48,41,30,52,70,44,38,83,94,53,75,68,33,19,8,51,43,53,47,51,55,54,54,76,59,58,36,72,57,51,71,83,100,54,67,52,"",100,"","","",92,62,43,47,75,35,80,31,31,70,72,13,81,0,90,0,0,0,0,0,0]
[651,{"$f":"IF(ISNA(MATCH(L657,'GARP Model'!$D$23:$D$32,0)),0,1)","v":0},"2026-02-28",651,-18,"","","",19305,1,"A","PLPC","PREFORMED LINE PRODUCTS CO",14,"NASDAQ",20,"Industrials",2010,"Capital Goods",201040,"Electrical Equipment",20104010,"Electrical Components & Equipment",2025,3,253.65,4.9020000000000001,1243.3923,"",2,"",3,2,5,2,4,3,5,49,67,47,59,58,42,47,42,48,54,46,54,58,66,24,61,58,44,29,18,24,37,29,27,57,48,87,69,31,27,55,80,36,31,60,72,74,78,75,72,88,61,90,63,31,41,41,77,63,43,38,39,50,38,74,55,27,26,51,54,34,27,66,78,100,20,20,21,37,"",100,"",45,18,74,87,84,86,10,80,89,75,70,12,32,87,0,89,0,0,0,0,0,0]
[657,{"$f":"IF(ISNA(MATCH(L663,'GARP Model'!$D$23:$D$32,0)),0,1)","v":0},"2026-02-28",657,"","","","",12726,1,"A","UNM","UNUM GROUP",11,"NYSE",40,"Financials",4030,"Insurance",403010,"Insurance",40301020,"Life & Health Insurance",2025,4,71.73,165.69399999999999,11885.23062,"","","",2,5,1,1,2,3,50,86,88,73,92,91,50,80,80,59,87,87,16,68,71,67,64,89,29,54,74,46,49,57,50,93,67,41,67,"",71,35,36,"","","","","","","",60,64,13,"","","",31,7,"",5,24,39,4,21,44,40,25,37,39,45,16,30,37,88,76,100,33,37,41,77,26,100,3,28,63,41,42,24,44,21,80,62,31,48,52,50,51,0,60,0,0,0,0,0,0]
[662,{"$f":"IF(ISNA(MATCH(L668,'GARP Model'!$D$23:$D$32,0)),0,1)","v":0},"2026-02-28",662,-21,"","","",10735,1,"A","TRN","TRINITY INDUSTRIES INC",11,"NYSE",20,"Industrials",2010,"Capital Goods",201060,"Machinery",20106010,"Construction Machinery & Heavy Transportation Equipment",2025,3,34.18,80.3,2744.654,"",1,"",2,4,2,3,4,3,69,48,35,54,64,44,5,3,4,11,10,11,20,23,1,97,54,92,10,"",9,22,64,62,37,75,56,8,4,"",5,95,14,"","","","",9,33,96,82,51,39,2,96,5,76,49,83,87,74,75,93,80,78,40,32,57,53,62,20,69,70,76,45,3,7,9,8,"",100,"",39,"",69,46,69,46,20,58,37,31,12,2,25,93,17,0,59,0,0,0,0,0,0]
[667,{"$f":"IF(ISNA(MATCH(L673,'GARP Model'!$D$23:$D$32,0)),0,1)","v":0},"2026-02-28",667,107,"","","",35640,1,"A","TXG","10X GENOMICS INC",14,"NASDAQ",35,"Health Care",3520,"Pharmaceuticals, Biotechnology & Life Sciences",352030,"Life Sciences Tools & Services",35203010,"Life Sciences Tools & Services",2025,4,23.05,127.691,2943.2775499999998,"","","",3,2,5,4,3,3,0,36,35,23,12,9,49,24,15,64,23,12,81,"",45,53,47,25,"","",64,96,"","","",23,68,"",86,82,74,96,95,51,67,83,82,78,91,83,66,33,91,94,92,82,10,87,37,93,87,84,63,20,11,19,95,88,98,21,91,84,94,9,26,100,91,34,11,"",71,"",50,"",21,95,83,91,75,94,80,89,97,86,54,70,65,0,91,0,0,0,0,0,100]
[673,{"$f":"IF(ISNA(MATCH(L679,'GARP Model'!$D$23:$D$32,0)),0,1)","v":0},"2026-02-28",673,-21,"","","",14369,1,"A","AD","ARRAY DIG INFRASTRUCTURE INC",11,"NYSE",50,"Communication Services",5010,"Telecommunication Services",501020,"Wireless Telecommunication Services",50102010,"Wireless Telecommunication Services",2025,3,48.73,86.38,4209.2974000000004,"","","",3,4,5,3,3,1,0,68,30,49,33,41,75,68,65,77,70,69,97,24,79,99,98,99,0,"",50,96,"","","",72,100,8,40,"",12,79,93,92,88,11,4,98,98,98,44,66,81,94,91,91,41,63,0,5,24,9,9,43,24,55,81,68,39,40,79,68,40,82,88,1,50,52,45,"",100,"","","",97,75,54,49,74,7,80,62,54,70,69,17,82,0,1,0,100,100,0,0,0]
[675,{"$f":"IF(ISNA(MATCH(L681,'GARP Model'!$D$23:$D$32,0)),0,1)","v":0},"2026-02-28",675,79,"","","",17602,1,"A","BHRB","BURKE HERBERT FINL SRVS CORP",14,"NASDAQ",40,"Financials",4010,"Banks",401010,"Banks",40101015,"Regional Banks",2025,3,64.44,15.029,968.46875999999997,"","","",4,3,4,5,5,1,66,82,49,93,63,65,91,64,67,87,61,63,96,9,"",6,2,"",55,5,79,71,93,92,"",24,68,56,26,"",56,21,"","","","","","","","",13,18,21,"","","",90,81,"",91,11,"",93,2,"",43,68,55,"",71,86,45,"",90,63,100,77,23,25,6,100,100,78,98,92,60,55,47,47,65,80,62,31,26,53,59,52,0,4,0,100,100,0,0,0]
[682,{"$f":"IF(ISNA(MATCH(L688,'GARP Model'!$D$23:$D$32,0)),0,1)","v":0},"2026-02-28",682,59,"","","",24861,1,"A","PLNT","PLANET FITNESS INC",11,"NYSE",25,"Consumer Discretionary",2530,"Consumer Services",253010,"Hotels, Restaurants & Leisure",25301030,"Leisure Facilities",2025,3,82.15,82.981999999999999,6816.9713000000002,"",1,"",3,4,3,4,2,3,0,4,21,47,44,40,38,42,40,38,41,38,66,9,2,26,27,14,"","",19,18,"","","",68,21,25,33,"",14,16,58,44,70,65,52,41,64,80,15,21,53,33,32,46,88,63,3,36,68,82,32,51,75,79,72,77,77,"","","","",62,"",100,38,47,50,27,27,26,68,55,17,33,15,22,24,62,37,9,31,26,89,39,22,0,41,0,0,0,100,0,0]
[683,{"$f":"IF(ISNA(MATCH(L689,'GARP Model'!$D$23:$D$32,0)),0,1)","v":0},"2026-02-28",683,-23,"","","",11600,1,"A","WOR","WORTHINGTON ENTERPRISES INC",11,"NYSE",20,"Industrials",2010,"Capital Goods",201060,"Machinery",20106020,"Industrial Machinery & Supplies & Components",2025,2,56.01,49.546999999999997,2775.1274699999999,"","","",3,3,3,1,3,3,28,45,57,54,70,88,58,83,74,66,89,81,89,70,84,45,98,98,46,48,29,83,13,13,17,62,21,53,57,"",33,12,25,81,81,68,74,18,9,21,26,31,62,26,11,14,32,35,61,81,71,51,82,94,88,76,82,45,4,63,80,42,5,34,35,100,38,43,46,56,26,100,15,38,96,31,20,37,75,38,37,31,54,86,78,8,75,0,58,0,0,0,0,0,0]
[688,{"$f":"IF(ISNA(MATCH(L694,'GARP Model'!$D$23:$D$32,0)),0,1)","v":0},"2026-02-28",688,-71,"","","",31477,1,"A","AZTA","AZENTA INC",14,"NASDAQ",35,"Health Care",3520,"Pharmaceuticals, Biotechnology & Life Sciences",352030,"Life Sciences Tools & Services",35203010,"Life Sciences Tools & Services",2026,1,26.98,46.018000000000001,1241.56564,"","",2,3,4,1,2,3,3,0,96,74,40,14,20,36,19,8,48,15,5,86,"",82,90,73,97,"","",50,72,"",5,8,52,11,76,94,39,26,92,31,84,50,72,69,16,89,6,54,18,61,14,95,40,25,63,53,62,59,7,55,53,70,42,91,68,18,31,87,65,25,44,67,0,66,77,64,"",48,"",13,"",26,85,61,70,14,85,80,62,75,48,79,93,11,100,96,0,0,0,0,0,0]
[694,{"$f":"IF(ISNA(MATCH(L700,'GARP Model'!$D$23:$D$32,0)),0,1)","v":0},"2026-02-28",694,-24,"","","",19094,1,"A","NBTB","N B T BANCORP INC",14,"NASDAQ",40,"Financials",4010,"Banks",401010,"Banks",40101015,"Regional Banks",2025,3,42.72,52.448999999999998,2240.6212799999998,"","","",4,4,3,4,4,1,67,80,59,76,75,76,76,71,72,88,85,85,52,49,55,33,21,38,31,"",79,40,78,76,60,45,55,80,85,"",57,30,31,"","","","","","","",54,69,19,"","","",87,85,"",62,14,36,79,10,15,37,46,44,38,51,44,37,39,96,89,100,56,69,70,"",37,"",81,"",94,56,46,33,37,50,100,89,54,48,62,66,40,0,6,0,100,100,0,0,0]
[699,{"$f":"IF(ISNA(MATCH(L705,'GARP Model'!$D$23:$D$32,0)),0,1)","v":0},"2026-02-28",699,-90,"","","",12589,1,"A","EHC","ENCOMPASS HEALTH CORP",11,"NYSE",35,"Health Care",3510,"Health Care Equipment & Services",351020,"Health Care Providers & Services",35102020,"Health Care Facilities",2025,3,107.88,100.7,10863.516,"","","",4,2,5,5,1,3,12,30,58,65,57,58,44,40,43,44,40,42,64,15,41,33,44,73,85,79,5,10,78,14,16,58,25,63,38,"",14,61,9,65,85,33,19,66,58,73,29,40,74,62,56,68,67,26,0,58,65,65,65,69,70,84,69,73,68,88,57,63,61,81,90,6,10,11,12,49,81,23,86,59,42,12,17,11,36,34,37,62,31,70,52,24,42,100,67,0,0,0,0,0,0]
[704,{"$f":"IF(ISNA(MATCH(L710,'GARP Model'!$D$23:$D$32,0)),0,1)","v":0},"2026-02-28",704,-155,"","","",10407,1,"A","TFX","TELEFLEX INC",11,"NYSE",35,"Health Care",3510,"Health Care Equipment & Services",351010,"Health Care Equipment & Supplies",35101010,"Health Care Equipment",2025,3,122.06,44.194000000000003,5394.3196399999997,"","","",3,4,2,1,1,3,22,75,41,23,61,73,52,69,75,47,66,72,5,92,91,56,58,72,"","",48,28,18,25,26,86,12,4,26,40,25,11,13,30,45,50,63,2,4,5,58,75,77,1,2,3,31,71,91,3,9,3,7,27,40,25,15,16,10,25,20,23,13,56,65,0,16,81,84,17,26,100,1,"",18,13,18,8,5,94,37,31,12,9,50,86,7,100,27,0,0,0,100,0,0]
[710,{"$f":"IF(ISNA(MATCH(L716,'GARP Model'!$D$23:$D$32,0)),0,1)","v":0},"2026-02-28",710,36,"","","",39550,1,"A","CLBT","CELLEBRITE DI LTD",14,"NASDAQ",45,"Information Technology",4510,"Software & Services",451030,"Software",45103010,"Application Software",2025,3,13.34,234.52500000000001,3128.5635000000002,"","",2,3,2,5,1,2,3,0,18,25,43,19,22,49,44,45,65,54,53,87,69,"",21,17,"",81,62,43,10,"",5,"",18,52,92,87,73,44,70,"",3,"",65,52,78,81,"",2,3,77,76,72,"",52,95,11,29,80,"",31,53,"",88,99,1,"",81,98,0,"",3,3,100,30,60,59,33,62,100,32,38,65,15,40,7,7,12,37,62,31,48,26,92,7,0,62,0,0,0,0,0,0]
[714,{"$f":"IF(ISNA(MATCH(L720,'GARP Model'!$D$23:$D$32,0)),0,1)","v":0},"2026-02-28",714,5,"","","",8947,1,"A","USLM","U S LIME & MINERALS",14,"NASDAQ",15,"Materials",1510,"Materials",151020,"Construction Materials",15102010,"Construction Materials",2025,3,114.16,28.638999999999999,3269.4282400000002,"","","",3,2,5,1,3,3,2,25,19,57,48,44,40,38,37,49,44,41,68,8,14,18,22,21,87,79,6,3,85,80,10,41,100,98,81,"",12,10,15,12,8,97,97,74,71,37,84,86,47,82,57,85,93,66,33,77,86,86,83,92,89,98,68,84,85,87,58,77,71,44,73,100,10,24,27,50,26,100,"",47,96,38,63,56,52,5,37,62,54,48,27,64,51,0,53,0,0,0,0,0,0]
[720,{"$f":"IF(ISNA(MATCH(L726,'GARP Model'!$D$23:$D$32,0)),0,1)","v":0},"2026-02-28",720,-21,"","","",177067,1,"A","CCEC","CAPITAL CLEAN ENERGY CARRIER",14,"NASDAQ",20,"Industrials",2030,"Transportation",203030,"Marine Transportation",20303010,"Marine Transportation",2025,3,22.71,59.082000000000001,1341.7522200000001,"",1,"",4,4,3,2,4,1,51,91,18,84,78,72,52,0,1,35,3,5,88,50,21,27,14,16,41,"",21,100,20,94,20,29,100,10,6,"",4,99,1,95,2,44,31,39,46,65,22,28,18,72,75,45,98,92,6,77,82,88,78,90,91,54,72,26,23,48,73,22,38,66,58,1,13,1,1,"",26,"",22,"",99,40,27,46,61,26,80,62,54,48,75,15,66,0,6,0,100,100,0,0,0]
[725,{"$f":"IF(ISNA(MATCH(L731,'GARP Model'!$D$23:$D$32,0)),0,1)","v":0},"2026-02-28",725,-43,"","","",16710,1,"A","DGII","DIGI INTERNATIONAL INC",14,"NASDAQ",45,"Information Technology",4520,"Technology Hardware & Equipment",452010,"Communications Equipment",45201020,"Communications Equipment",2026,1,48.82,37.603999999999999,1835.82728,"","",1,4,1,5,4,5,3,0,46,32,42,40,38,60,51,49,68,56,52,59,19,12,48,64,49,42,"",71,60,"","","",40,5,71,56,57,80,51,39,84,83,21,22,74,30,81,97,75,72,91,95,97,63,84,37,53,63,77,82,83,86,69,53,67,65,44,55,64,57,76,92,100,96,96,97,"",37,"",70,"",68,72,74,75,77,49,80,89,90,70,31,30,76,100,63,0,0,0,0,0,0]
[730,{"$f":"IF(ISNA(MATCH(L736,'GARP Model'!$D$23:$D$32,0)),0,1)","v":0},"2026-02-28",730,51,"","","",31109,1,"A","AM","ANTERO MIDSTREAM CORP",11,"NYSE",10,"Energy",1010,"Energy",101020,"Oil, Gas & Consumable Fuels",10102040,"Oil & Gas Storage & Transportation",2025,4,22.48,474.06,10656.8688,"","","",3,2,5,3,2,3,76,25,13,55,56,57,67,62,62,67,63,62,46,35,12,45,43,68,8,"",32,79,33,32,19,63,100,39,35,"",12,96,93,99,100,79,75,77,57,63,97,98,76,62,56,68,98,86,0,50,43,24,55,42,28,81,50,65,83,86,66,73,84,86,83,100,28,26,19,"",100,"",35,"",82,55,40,45,66,19,80,62,54,70,71,17,70,100,80,0,0,0,0,0,0]
[736,{"$f":"IF(ISNA(MATCH(L742,'GARP Model'!$D$23:$D$32,0)),0,1)","v":0},"2026-02-28",736,-3,"","","",146017,1,"A","AYI","ACUITY INC",11,"NYSE",20,"Industrials",2010,"Capital Goods",201040,"Electrical Equipment",20104010,"Electrical Components & Equipment",2026,1,301.58999999999997,30.7,9258.8130000000001,"",2,1,4,3,3,3,2,3,3,40,61,61,61,61,57,59,57,66,67,64,39,43,51,22,61,63,73,69,44,29,80,58,32,66,13,77,57,29,60,38,49,49,54,43,51,77,74,62,64,69,48,15,64,30,54,60,45,51,62,59,67,81,75,86,22,33,55,76,33,38,47,79,89,100,70,66,70,56,43,100,41,46,53,13,31,54,33,30,37,89,97,86,31,52,31,100,91,0,0,0,0,0,0]
[741,{"$f":"IF(ISNA(MATCH(L747,'GARP Model'!$D$23:$D$32,0)),0,1)","v":0},"2026-02-28",741,16,"Y","","",285333,2,"A","IFS","INTERCORP FINANCIAL SVCS INC",11,"NYSE",40,"Financials",4010,"Banks",401010,"Banks",40101010,"Diversified Banks",2025,3,48.38,111.351,5387.1613799999996,"","","",1,5,2,3,4,3,42,70,59,91,80,78,6,73,94,5,79,96,82,25,16,54,32,69,69,59,75,40,41,11,16,65,65,47,56,"",55,28,24,"","","","","","","",67,74,5,"","","",93,74,"",90,13,84,94,13,88,49,64,56,54,79,78,58,70,89,68,100,76,84,87,48,100,100,"",88,97,64,76,68,86,16,80,89,75,96,23,10,88,100,63,0,0,0,0,0,0]
[746,{"$f":"IF(ISNA(MATCH(L752,'GARP Model'!$D$23:$D$32,0)),0,1)","v":0},"2026-02-28",746,-169,"","","",4462,1,"A","NEU","NEWMARKET CORP",11,"NYSE",15,"Materials",1510,"Materials",151010,"Chemicals",15101050,"Specialty Chemicals",2025,4,626.01,9.3970000000000002,5882.6159699999998,"","","",4,2,4,2,1,3,38,41,55,78,80,74,73,72,60,77,76,65,35,25,55,80,75,65,81,"",36,16,73,62,47,61,34,72,45,36,43,24,79,65,53,40,62,25,64,64,50,44,48,29,87,83,69,42,69,27,79,68,42,88,59,92,20,57,23,88,18,22,15,53,65,100,59,71,63,"","","","","",37,16,30,36,76,20,7,9,12,48,37,9,78,0,39,0,0,0,0,0,0]
[747,{"$f":"IF(ISNA(MATCH(L753,'GARP Model'!$D$23:$D$32,0)),0,1)","v":0},"2026-02-28",747,"","","","",12840,1,"A","HTLD","HEARTLAND EXPRESS INC",14,"NASDAQ",20,"Industrials",2030,"Transportation",203040,"Ground Transportation",20304030,"Cargo Ground Transportation",2025,3,11.03,77.412999999999997,853.86539000000005,"","","",3,2,3,3,4,3,12,85,81,16,41,71,9,27,25,9,26,25,17,88,90,95,57,68,"","",3,14,26,7,25,60,19,69,42,"",9,10,95,88,85,32,19,48,94,43,60,77,84,62,56,68,42,11,0,29,16,5,31,15,8,20,31,10,6,23,38,15,13,34,50,100,33,49,40,"",37,"",38,"",73,86,72,59,28,88,100,89,75,48,59,91,24,0,96,0,0,0,0,0,0]
[753,{"$f":"IF(ISNA(MATCH(L759,'GARP Model'!$D$23:$D$32,0)),0,1)","v":0},"2026-02-28",753,18,"","","",24783,1,"A","TTEK","TETRA TECH INC",14,"NASDAQ",20,"Industrials",2020,"Commercial & Professional Services",202010,"Commercial Services & Supplies",20201050,"Environmental & Facilities Services",2026,1,35.840000000000003,260.81099999999998,9347.4662399999997,"","","",3,3,4,5,2,3,12,27,65,54,50,51,54,48,50,61,53,53,70,41,43,82,30,36,77,"",68,63,71,76,75,75,3,70,53,"",83,51,40,51,41,40,25,42,70,77,56,71,44,62,56,68,40,17,0,59,59,62,69,60,66,86,75,27,51,84,73,39,52,68,77,100,81,86,86,"",78,"",86,"",44,73,36,49,45,50,80,31,31,48,87,40,48,100,41,0,0,0,0,0,0]
[757,{"$f":"IF(ISNA(MATCH(L763,'GARP Model'!$D$23:$D$32,0)),0,1)","v":0},"2026-02-28",757,-90,"","","",31236,1,"A","APPN","APPIAN CORP",14,"NASDAQ",45,"Information Technology",4510,"Software & Services",451030,"Software",45103020,"Systems Software",2025,3,26.67,73.817999999999998,1968.72606,"","",1,3,3,4,5,1,3,0,4,46,27,13,14,44,17,16,48,16,15,83,"",47,24,26,20,"","",66,87,"","","",55,48,2,57,72,82,80,57,58,83,34,20,25,1,72,13,18,87,62,56,68,16,88,0,91,90,85,23,61,70,25,94,96,77,"","","","",21,0,100,83,59,58,"",100,"",65,"",28,22,33,16,20,86,37,31,12,9,42,79,24,0,37,0,0,0,0,0,0]
[762,{"$f":"IF(ISNA(MATCH(L768,'GARP Model'!$D$23:$D$32,0)),0,1)","v":0},"2026-02-28",762,54,"","","",37079,3,"A","GBTG","GLOBAL BUSINESS TRAVL GP INC",11,"NYSE",25,"Consumer Discretionary",2530,"Consumer Services",253010,"Hotels, Restaurants & Leisure",25301020,"Hotels, Resorts & Cruise Lines",2025,3,5.47,525.94600000000003,2876.9246199999998,"",2,2,4,4,2,2,1,1,0,62,72,31,22,25,48,25,19,45,25,20,85,99,"",51,13,"",14,0,29,26,"","","",71,12,40,30,64,28,68,"",75,"",36,22,4,97,"",2,4,53,62,56,"",51,73,0,61,86,"",71,79,"",30,86,61,"",29,90,90,"",75,39,100,54,69,70,0,62,100,4,67,95,15,42,27,18,69,7,9,2,0,25,85,16,0,9,0,100,100,0,0,0]
[767,{"$f":"IF(ISNA(MATCH(L773,'GARP Model'!$D$23:$D$32,0)),0,1)","v":0},"2026-02-28",767,-5,"","","",16486,1,"A","BCC","BOISE CASCADE CO",11,"NYSE",20,"Industrials",2010,"Capital Goods",201070,"Trading Companies & Distributors",20107010,"Trading Companies & Distributors",2025,3,82.74,37.162999999999997,3074.8666199999998,"","","",2,5,1,2,3,3,20,74,96,74,97,97,19,89,92,18,94,96,18,79,65,85,90,71,46,93,10,8,3,7,16,84,47,75,65,"",31,11,11,62,29,55,72,32,32,66,36,35,22,15,10,16,21,15,50,12,20,34,15,22,46,74,11,4,22,55,16,8,15,24,33,100,15,21,24,98,42,100,55,"",54,67,28,15,9,50,80,62,31,26,90,87,8,0,83,0,0,0,0,0,0]
[773,{"$f":"IF(ISNA(MATCH(L779,'GARP Model'!$D$23:$D$32,0)),0,1)","v":0},"2026-02-28",773,-100,"","","",19516,1,"A","IBP","INSTALLED BLDG PRODUCTS INC",11,"NYSE",25,"Consumer Discretionary",2520,"Consumer Durables & Apparel",252010,"Household Durables",25201030,"Homebuilding",2025,3,327.76,27.125,8890.49,"","","",2,3,5,4,3,3,19,11,43,46,49,46,42,44,42,46,47,44,44,30,26,65,53,33,91,91,26,23,51,75,"",71,22,62,55,"",46,24,34,39,32,68,67,66,73,64,37,53,63,35,69,28,51,41,27,34,54,56,40,69,61,93,54,68,72,95,67,45,68,63,63,100,53,62,68,79,52,100,69,7,47,70,80,82,81,11,80,62,75,70,20,32,76,0,71,0,0,0,0,0,0]
[778,{"$f":"IF(ISNA(MATCH(L784,'GARP Model'!$D$23:$D$32,0)),0,1)","v":0},"2026-02-28",778,-73,"","","",22783,1,"A","KEN","KENON HOLDINGS LTD",11,"NYSE",55,"Utilities",5510,"Utilities",551050,"Independent Power & Renewable Electricity Producers",55105010,"Independent Power Producers & Energy Traders",2025,3,77.89,52.396000000000001,4081.12444,"","","",1,4,2,2,5,3,88,48,27,95,31,90,44,35,40,49,38,43,91,76,58,42,34,24,74,"",43,97,89,10,94,51,61,3,61,"",16,98,91,34,13,85,83,12,8,8,23,24,4,62,"",68,40,27,0,7,40,15,11,45,30,89,87,3,11,94,90,10,30,8,13,100,32,4,4,"","","","","",99,90,82,90,95,7,100,89,97,99,34,2,96,100,93,0,0,0,0,0,100]
[784,{"$f":"IF(ISNA(MATCH(L790,'GARP Model'!$D$23:$D$32,0)),0,1)","v":0},"2026-02-28",784,136,"","","",64766,1,"A","RMBS","RAMBUS INC",14,"NASDAQ",45,"Information Technology",4530,"Semiconductors & Semiconductor Equipment",453010,"Semiconductors & Semiconductor Equipment",45301020,"Semiconductors",2025,4,99.66,107.782,10741.554120000001,"","",2,3,2,5,1,3,3,0,16,11,40,43,38,39,36,38,47,41,42,66,"",8,13,25,12,80,51,43,41,"","","",50,25,97,76,76,35,51,93,15,39,91,91,89,96,99,50,51,75,86,18,44,90,95,27,74,84,94,18,40,14,95,73,92,91,81,58,86,82,15,34,100,59,70,77,24,42,100,32,42,14,56,84,91,89,10,37,31,75,48,13,11,89,0,44,0,0,0,0,0,0]
[789,{"$f":"IF(ISNA(MATCH(L795,'GARP Model'!$D$23:$D$32,0)),0,1)","v":0},"2026-02-28",789,75,"","","",16113,1,"A","APAM","ARTISAN PARTNERS ASSET MGMT",11,"NYSE",40,"Financials",4020,"Financial Services",402030,"Capital Markets",40203010,"Asset Management & Custody Banks",2025,3,40.28,70.462000000000003,2838.2093599999998,"","","",3,3,3,5,3,3,96,18,52,89,86,88,76,82,86,81,87,91,46,43,58,40,66,64,1,"",85,82,83,20,37,49,100,82,68,"",89,78,57,"","","","","","","",56,37,10,"","","",80,38,"",58,26,17,66,23,19,96,66,37,35,98,34,9,3,40,17,100,95,47,44,"",62,"",81,"",72,41,35,54,52,35,37,31,54,26,63,29,43,100,97,0,0,0,0,0,0]
[792,{"$f":"IF(ISNA(MATCH(L798,'GARP Model'!$D$23:$D$32,0)),0,1)","v":0},"2026-02-28",792,13,"","","",148469,1,"A","SAFT","SAFETY INSURANCE GROUP INC",14,"NASDAQ",40,"Financials",4030,"Insurance",403010,"Insurance",40301040,"Property & Casualty Insurance",2025,3,77.63,14.894,1156.2212199999999,"","","",4,2,2,2,5,3,82,78,88,81,65,81,91,71,77,94,81,86,57,23,74,28,25,56,28,"",88,68,36,31,27,36,65,90,71,"",90,60,75,"","","","","","","",70,72,41,"","","",28,7,"",48,59,10,53,59,14,61,56,60,23,59,58,66,27,60,64,100,96,87,72,"","","","","",93,69,54,31,46,62,80,62,54,48,61,61,57,0,52,0,0,0,0,0,0]
[799,{"$f":"IF(ISNA(MATCH(L805,'GARP Model'!$D$23:$D$32,0)),0,1)","v":0},"2026-02-28",799,-302,"","","",178672,1,"A","CVI","CVR ENERGY INC",11,"NYSE",10,"Energy",1010,"Energy",101020,"Oil, Gas & Consumable Fuels",10102030,"Oil & Gas Refining & Marketing",2025,4,24.16,100.53100000000001,2428.8289599999998,"",2,"",2,4,2,3,1,3,0,40,96,34,93,89,20,91,92,21,87,89,94,83,39,87,94,34,27,77,23,62,2,5,8,36,100,49,23,"",46,23,65,7,70,32,43,67,49,64,22,28,38,63,24,80,26,8,28,77,32,79,85,31,83,35,61,10,79,36,70,3,86,21,11,100,72,69,66,92,26,100,33,"",51,3,16,48,64,78,7,31,54,48,24,10,60,100,50,0,0,0,0,0,0]
[804,{"$f":"IF(ISNA(MATCH(L810,'GARP Model'!$D$23:$D$32,0)),0,1)","v":0},"2026-02-28",804,-97,"","","",64306,1,"A","KRC","KILROY REALTY CORP",11,"NYSE",60,"Real Estate",6010,"Equity Real Estate Investment Trusts (REITs)",601040,"Office REITs",60104010,"Office REITs",2025,4,29.82,118.372,3529.85304,"","","",4,3,2,1,3,3,90,97,21,83,77,87,92,93,93,76,79,80,68,38,57,85,71,74,12,95,99,55,35,36,39,45,100,3,9,"",99,49,49,"","","","","","","",99,92,34,"","","","",38,"","","","",10,24,22,53,62,57,49,39,61,59,46,70,79,100,"","","",99,26,0,1,"",26,12,27,41,34,67,37,31,54,26,33,44,30,0,49,0,0,0,0,0,0]
[809,{"$f":"IF(ISNA(MATCH(L815,'GARP Model'!$D$23:$D$32,0)),0,1)","v":0},"2026-02-28",809,-70,"","","",10801,1,"A","UGI","UGI CORP",11,"NYSE",55,"Utilities",5510,"Utilities",551020,"Gas Utilities",55102010,"Gas Utilities",2026,1,37.409999999999997,214.636,8029.5327600000001,"","","",3,2,4,1,3,3,76,69,63,80,29,70,43,49,54,35,40,44,51,9,70,61,92,82,37,56,18,68,35,40,40,45,26,27,15,"",14,11,18,98,97,11,7,54,67,67,42,48,40,63,67,36,63,19,25,9,80,18,9,87,21,63,55,71,32,67,51,76,32,33,28,100,21,20,21,74,26,100,"",44,74,78,52,53,76,54,80,31,31,48,76,15,77,0,20,0,0,0,0,0,0]
[810,{"$f":"IF(ISNA(MATCH(L816,'GARP Model'!$D$23:$D$32,0)),0,1)","v":0},"2026-02-28",810,-2,"","","",38834,1,"A","LFST","LIFESTAN HLTH GRP INC",14,"NASDAQ",35,"Health Care",3510,"Health Care Equipment & Services",351020,"Health Care Providers & Services",35102015,"Health Care Services",2025,3,7.24,389,2816.36,"","","",3,2,2,4,5,3,0,62,59,28,15,11,48,28,24,52,29,25,83,"","",28,20,"","","",50,78,"","","",48,0,11,52,"",50,94,"",58,"",51,36,91,87,"",89,95,71,62,56,"",18,36,0,72,92,"",67,75,"",27,85,90,"",27,79,85,"",31,53,100,65,73,56,"",100,"",92,"",85,94,90,33,28,44,80,62,31,9,17,97,26,0,48,100,0,0,0,0,0]
[815,{"$f":"IF(ISNA(MATCH(L821,'GARP Model'!$D$23:$D$32,0)),0,1)","v":0},"2026-02-28",815,-1,"","","",150803,1,"A","BFC","BANK FIRST CORP",14,"NASDAQ",40,"Financials",4010,"Banks",401010,"Banks",40101015,"Regional Banks",2025,3,134.66999999999999,9.8339999999999996,1324.3447799999999,"",1,"",1,3,4,5,4,3,27,57,24,67,68,64,46,46,46,50,50,49,32,22,40,27,13,27,24,"",72,39,98,97,97,64,50,66,55,"",27,89,83,"","","","","","","",25,38,13,"","","",94,83,"",79,16,18,72,10,11,45,39,57,44,64,37,62,37,94,88,100,19,26,19,"",100,"",79,"",68,66,60,59,79,23,80,62,54,86,51,14,81,0,59,0,0,0,0,0,0]
[821,{"$f":"IF(ISNA(MATCH(L827,'GARP Model'!$D$23:$D$32,0)),0,1)","v":0},"2026-02-28",821,68,"","","",39648,1,"A","LTH","LIFE TIME GRP HOLD INC",11,"NYSE",25,"Consumer Discretionary",2530,"Consumer Services",253010,"Hotels, Restaurants & Leisure",25301030,"Leisure Facilities",2025,3,27,220.262,5947.0739999999996,"","","",4,1,4,4,2,3,0,60,41,64,43,29,29,18,14,28,20,17,84,"","",25,19,"",58,9,7,12,"","","",19,29,23,19,"",8,92,"",67,"",7,4,47,34,"",69,82,65,34,60,"",72,42,14,58,85,"",63,88,"",63,73,84,"",58,75,88,"",41,38,100,8,10,10,10,42,3,46,93,56,73,34,21,42,34,80,31,31,70,89,42,36,0,50,0,0,0,0,0,0]
[826,{"$f":"IF(ISNA(MATCH(L832,'GARP Model'!$D$23:$D$32,0)),0,1)","v":0},"2026-02-28",826,-53,"","","",24157,1,"A","FCFS","FIRSTCASH HOLDINGS INC",14,"NASDAQ",40,"Financials",4020,"Financial Services",402020,"Consumer Finance",40202010,"Consumer Finance",2025,4,192.79,43.976999999999997,8478.3258299999998,"","","",3,2,3,5,4,3,16,36,47,55,51,49,56,52,48,55,52,47,66,33,23,43,40,23,66,"",35,78,66,55,65,62,7,38,34,"",40,75,80,21,11,76,83,"","","",91,55,52,"","","",57,24,"",69,64,65,83,70,67,77,60,46,57,75,66,60,63,82,86,100,35,31,25,"",78,"",61,"",86,50,71,55,84,22,80,89,75,96,25,12,86,100,82,0,0,0,0,0,0]
[831,{"$f":"IF(ISNA(MATCH(L837,'GARP Model'!$D$23:$D$32,0)),0,1)","v":0},"2026-02-28",831,11,"","","",5496,1,"A","NVRI","ENVIRI CORP",11,"NYSE",20,"Industrials",2020,"Commercial & Professional Services",202010,"Commercial Services & Supplies",20201050,"Environmental & Facilities Services",2025,3,18.93,80.653000000000006,1526.7612899999999,"","",1,3,3,2,2,5,5,0,32,77,9,11,14,20,18,15,22,21,19,5,97,96,82,52,71,"","",21,77,"","","",42,17,10,12,1,24,84,71,75,80,21,21,82,35,95,62,64,78,30,9,80,30,26,37,10,33,22,18,48,30,17,16,33,14,7,5,12,4,62,33,4,54,55,54,"",26,"",76,"",36,96,94,93,91,15,80,89,97,99,9,66,91,0,36,100,0,0,0,0,100]
[836,{"$f":"IF(ISNA(MATCH(L842,'GARP Model'!$D$23:$D$32,0)),0,1)","v":0},"2026-02-28",836,-61,"","","",27960,1,"A","ALG","ALAMO GROUP INC",11,"NYSE",20,"Industrials",2010,"Capital Goods",201060,"Machinery",20106015,"Agricultural & Farm Machinery",2025,3,213.53,11.99,2560.2247000000002,"","","",4,2,2,1,3,3,10,54,72,62,66,62,58,52,49,69,60,55,41,35,42,81,62,63,55,39,41,56,81,86,83,38,32,79,67,8,55,62,59,33,26,74,82,54,37,22,88,94,47,18,73,24,44,28,80,42,57,48,34,51,40,82,33,56,60,61,40,46,43,77,92,100,64,68,71,39,26,15,5,63,70,54,18,45,47,48,80,31,54,48,93,17,44,0,85,0,0,0,0,0,0]
[841,{"$f":"IF(ISNA(MATCH(L847,'GARP Model'!$D$23:$D$32,0)),0,1)","v":0},"2026-02-28",841,87,"","","",28176,1,"A","ATR","APTARGROUP INC",11,"NYSE",15,"Materials",1510,"Materials",151030,"Containers & Packaging",15103010,"Metal, Glass & Plastic Containers",2025,4,143.71,64.212999999999994,9228.0502300000007,"","","",2,3,3,3,2,3,27,39,50,59,55,55,41,45,42,43,47,44,47,22,46,52,58,70,61,60,17,81,60,58,49,79,24,64,49,27,20,84,74,31,47,34,37,11,36,27,89,82,40,15,63,34,63,44,55,34,63,44,33,61,45,83,32,67,59,76,47,67,53,81,95,100,40,36,33,60,42,100,44,39,66,50,12,12,21,59,80,31,12,26,96,39,28,100,53,0,0,0,0,0,0]
[846,{"$f":"IF(ISNA(MATCH(L852,'GARP Model'!$D$23:$D$32,0)),0,1)","v":0},"2026-02-28",846,14,"","","",26359,1,"A","APLS","APELLIS PHARMACEUTICALS",14,"NASDAQ",35,"Health Care",3520,"Pharmaceuticals, Biotechnology & Life Sciences",352010,"Biotechnology",35201010,"Biotechnology",2025,3,20.96,126.5,2651.44,"",2,"",2,2,4,2,1,3,0,19,53,37,4,2,38,4,3,44,3,2,86,"",39,8,1,0,65,"",88,65,"","","",22,100,19,66,78,91,66,99,55,54,77,77,92,5,1,24,7,39,94,99,4,25,97,47,95,98,99,97,98,99,67,97,99,99,64,98,98,99,3,5,100,93,77,42,"",51,"",20,"",37,43,33,45,18,95,37,31,31,9,68,81,26,0,45,0,0,0,0,0,0]
[852,{"$f":"IF(ISNA(MATCH(L858,'GARP Model'!$D$23:$D$32,0)),0,1)","v":0},"2026-02-28",852,38,"","","",30536,1,"A","GEO","GEO GROUP INC",11,"NYSE",20,"Industrials",2020,"Commercial & Professional Services",202010,"Commercial Services & Supplies",20201080,"Security & Alarm Services",2025,3,15.04,139.196,2093.5078400000002,"","","",4,4,2,2,1,1,0,76,76,94,69,69,29,74,82,28,63,74,97,8,49,56,63,86,78,"",19,7,"",90,8,72,24,34,18,"",20,10,12,9,12,53,37,12,28,26,73,82,10,62,56,68,51,25,0,16,27,39,23,26,55,77,86,76,64,78,88,77,43,76,69,100,23,60,64,"",42,"","","",28,23,3,1,3,42,37,9,12,26,97,62,5,0,1,0,100,100,0,0,0]
[857,{"$f":"IF(ISNA(MATCH(L863,'GARP Model'!$D$23:$D$32,0)),0,1)","v":0},"2026-02-28",857,129,"","","",175654,1,"A","WLDN","WILLDAN GROUP INC",14,"NASDAQ",20,"Industrials",2020,"Commercial & Professional Services",202020,"Professional Services",20202020,"Research & Consulting Services",2025,3,89.14,14.754,1315.17156,"","","",3,1,5,5,4,3,0,29,62,49,36,33,52,43,39,61,46,41,82,"",8,29,24,50,76,"",42,59,"","","",27,10,79,62,"",64,75,33,22,19,14,32,52,86,72,61,77,65,68,64,24,32,45,68,64,77,73,82,76,74,85,81,87,84,76,76,86,80,43,51,100,68,71,77,"",62,"",98,"",22,89,82,96,97,2,100,89,97,96,31,0,98,0,94,0,0,0,0,0,100]
[863,{"$f":"IF(ISNA(MATCH(L869,'GARP Model'!$D$23:$D$32,0)),0,1)","v":0},"2026-02-28",863,15,"","","",155394,2,"A","LKQ","LKQ CORP",14,"NASDAQ",25,"Consumer Discretionary",2550,"Consumer Discretionary Distribution & Retail",255010,"Distributors",25501010,"Distributors",2025,3,33.11,256.3,8486.0930000000008,"","","",3,3,1,1,2,3,69,78,85,83,90,92,74,81,87,64,73,81,38,67,66,87,67,80,38,"",49,81,21,43,"",70,10,42,20,"",57,66,40,44,59,12,36,28,22,40,73,78,27,7,10,13,38,48,81,37,40,43,40,36,41,67,39,18,31,61,41,23,36,64,71,4,64,51,53,"",31,"",6,"",73,40,52,15,30,89,80,89,75,86,38,80,32,100,59,0,0,0,0,0,0]
[868,{"$f":"IF(ISNA(MATCH(L874,'GARP Model'!$D$23:$D$32,0)),0,1)","v":0},"2026-02-28",868,335,"","","",65607,1,"A","OSIS","OSI SYSTEMS INC",14,"NASDAQ",45,"Information Technology",4520,"Technology Hardware & Equipment",452030,"Electronic Equipment, Instruments & Components",45203010,"Electronic Equipment & Instruments",2026,2,285.2,16.451000000000001,4691.8252000000002,"","","",2,4,4,4,2,1,0,24,46,49,48,47,38,27,31,40,27,31,55,27,32,40,28,44,83,79,56,31,"","","",79,29,34,45,34,66,36,55,4,9,69,73,8,2,2,71,81,18,85,89,36,46,41,82,34,56,42,27,32,18,76,41,37,53,83,65,64,66,85,87,100,62,75,80,57,78,20,53,29,42,18,51,50,70,12,7,62,54,70,22,20,67,0,9,0,0,100,0,0,0]
[873,{"$f":"IF(ISNA(MATCH(L879,'GARP Model'!$D$23:$D$32,0)),0,1)","v":0},"2026-02-28",873,74,"","","",4036,1,"A","DCI","DONALDSON CO INC",11,"NYSE",20,"Industrials",2010,"Capital Goods",201060,"Machinery",20106020,"Industrial Machinery & Supplies & Components",2026,1,92.76,115.51,10714.7076,"","","",2,2,4,2,4,3,25,18,46,52,55,55,45,47,46,49,52,51,36,43,56,64,63,56,79,74,40,89,65,58,47,75,28,80,59,22,57,73,83,51,52,42,53,27,34,50,65,77,36,36,59,32,57,44,55,81,59,48,42,61,42,93,30,37,55,90,36,39,44,83,90,100,55,43,49,56,49,100,6,35,80,78,80,74,80,28,80,89,75,70,24,34,81,100,27,0,0,0,0,0,0]
[876,{"$f":"IF(ISNA(MATCH(L882,'GARP Model'!$D$23:$D$32,0)),0,1)","v":0},"2026-02-28",876,-221,"","","",165262,1,"A","DHT","DHT HOLDINGS INC",11,"NYSE",10,"Energy",1010,"Energy",101020,"Oil, Gas & Consumable Fuels",10102040,"Oil & Gas Storage & Transportation",2025,3,19.489999999999998,160.79900000000001,3133.9725100000001,"",1,"",2,2,5,4,3,3,93,46,21,74,69,60,51,57,54,58,65,60,63,"",78,95,41,97,43,"",11,10,12,98,17,51,72,78,57,"",8,2,2,65,64,64,60,87,90,58,93,81,53,79,8,14,94,66,22,16,89,4,23,94,9,95,82,91,12,83,70,86,16,30,47,100,33,52,56,"",77,"",45,"",17,53,75,65,75,17,37,62,75,86,21,38,81,0,39,0,0,0,0,0,0]
[878,{"$f":"IF(ISNA(MATCH(L884,'GARP Model'!$D$23:$D$32,0)),0,1)","v":0},"2026-02-28",878,-71,"","","",146140,1,"A","PDM","PIEDMONT OFFICE REALTY TRUST",11,"NYSE",60,"Real Estate",6010,"Equity Real Estate Investment Trusts (REITs)",601040,"Office REITs",60104010,"Office REITs",2025,3,7.59,124.504,944.98536000000001,"","","",4,2,2,2,3,3,0,98,26,12,23,50,93,96,96,62,73,79,51,94,88,76,71,86,"","",99,55,6,9,11,49,61,"",3,"",99,49,49,"","","","","","","",85,91,58,"","","","",15,"","","","",72,71,21,23,51,29,5,22,53,33,7,56,61,100,"","","",79,"",100,"","",80,42,49,66,38,71,37,62,75,70,44,67,33,0,58,0,0,0,0,0,0]
[884,{"$f":"IF(ISNA(MATCH(L890,'GARP Model'!$D$23:$D$32,0)),0,1)","v":0},"2026-02-28",884,-105,"","","",31331,2,"A","NESR","NATIONAL ENERGY SERVICES REU",14,"NASDAQ",10,"Energy",1010,"Energy",101010,"Energy Equipment & Services",10101020,"Oil & Gas Equipment & Services",2025,3,25.05,100.77800000000001,2524.4888999999998,"","","",3,1,4,5,5,5,0,49,59,46,43,44,32,46,43,34,49,44,70,19,2,70,12,"",45,14,14,14,"","","",36,9,73,50,"",17,92,"",85,98,22,18,5,27,"",63,76,58,69,87,"",59,21,32,34,27,"",28,16,"",64,67,64,"",48,63,66,"",83,92,100,41,50,51,18,100,100,77,63,34,96,98,95,92,12,100,100,97,86,2,97,93,0,28,100,0,0,0,0,100]
[889,{"$f":"IF(ISNA(MATCH(L895,'GARP Model'!$D$23:$D$32,0)),0,1)","v":0},"2026-02-28",889,-21,"","","",124046,1,"A","DHC","DIVERSIFIED HEALTHCARE TRUST",14,"NASDAQ",60,"Real Estate",6010,"Equity Real Estate Investment Trusts (REITs)",601050,"Health Care REITs",60105010,"Health Care REITs",2025,3,6.76,242.14699999999999,1636.91372,"","","",1,3,2,3,5,5,9,90,52,3,2,7,29,38,34,26,31,29,51,92,86,44,50,87,"","",99,55,34,31,9,39,100,"",6,"",99,49,49,"","","","","","","",81,61,72,"","","","",4,"","","","",11,19,10,15,41,7,14,13,36,8,12,36,38,100,"","","","",26,"","","",76,91,90,93,94,1,100,98,97,96,13,5,93,100,71,100,0,0,0,0,100]
[894,{"$f":"IF(ISNA(MATCH(L900,'GARP Model'!$D$23:$D$32,0)),0,1)","v":0},"2026-02-28",894,-66,"","","",26749,1,"A","HRI","HERC HOLDINGS INC",11,"NYSE",20,"Industrials",2010,"Capital Goods",201070,"Trading Companies & Distributors",20107010,"Trading Companies & Distributors",2025,4,139.79,33.299999999999997,4655.0069999999996,"","","",4,2,3,1,2,3,40,52,42,29,67,68,15,12,16,20,20,22,10,84,85,16,23,19,4,37,2,88,77,65,"",38,23,20,4,"",6,96,6,4,5,40,25,28,71,35,44,63,72,62,56,68,87,64,0,12,31,54,11,22,49,29,21,19,23,28,12,10,17,66,40,100,30,19,20,87,30,100,47,0,25,35,66,59,13,69,37,62,75,48,22,94,10,100,70,0,0,0,0,0,0]
[900,{"$f":"IF(ISNA(MATCH(L906,'GARP Model'!$D$23:$D$32,0)),0,1)","v":0},"2026-02-28",900,-29,"","","",10086,1,"A","STC","STEWART INFORMATION SERVICES",11,"NYSE",40,"Financials",4030,"Insurance",403010,"Insurance",40301040,"Property & Casualty Insurance",2025,3,70.989999999999995,28.02,1989.1397999999999,"","","",3,3,2,5,3,3,58,76,91,66,55,83,62,49,79,67,53,84,80,72,68,24,88,65,25,"",41,20,62,70,76,23,6,58,49,"",53,26,19,"","","","","","","",95,52,36,"","","",26,6,"",50,31,30,56,27,34,61,71,20,25,46,70,26,29,39,47,100,40,61,57,"",62,"",76,"",77,31,41,30,48,33,37,31,31,48,46,38,54,0,97,0,0,0,0,0,0]
[905,{"$f":"IF(ISNA(MATCH(L911,'GARP Model'!$D$23:$D$32,0)),0,1)","v":0},"2026-02-28",905,-61,"","","",26162,1,"A","ANAB","ANAPTYSBIO INC",14,"NASDAQ",35,"Health Care",3520,"Pharmaceuticals, Biotechnology & Life Sciences",352010,"Biotechnology",35201010,"Biotechnology",2025,3,55.05,27.574999999999999,1518.0037500000001,"",1,"",1,5,1,4,5,3,0,4,15,14,7,9,7,8,9,7,7,9,74,"",72,1,0,1,"","",83,60,"","","",79,100,"",56,88,87,90,79,72,62,92,92,1,2,0,7,12,1,62,56,68,9,4,0,97,99,98,98,99,98,7,92,31,14,"","","","",11,2,100,61,56,37,"",26,"",62,"",39,86,92,88,95,23,80,89,75,86,7,4,95,100,30,100,0,0,0,0,0]
[910,{"$f":"IF(ISNA(MATCH(L916,'GARP Model'!$D$23:$D$32,0)),0,1)","v":0},"2026-02-28",910,13,"","","",23027,1,"A","EXPO","EXPONENT INC",14,"NASDAQ",20,"Industrials",2020,"Commercial & Professional Services",202020,"Professional Services",20202020,"Research & Consulting Services",2025,3,72.78,49.95,3635.3609999999999,"",1,"",2,3,4,5,1,3,34,14,23,46,49,51,42,45,46,49,52,52,42,45,61,54,57,61,64,"",53,78,62,66,66,67,63,85,72,"",60,64,70,33,51,73,65,30,70,12,45,57,42,62,56,68,66,26,0,46,21,38,53,19,44,94,36,22,27,91,52,36,52,74,84,100,41,29,32,"",100,"",77,"",59,37,40,19,20,84,80,62,31,26,51,83,25,100,34,0,0,0,0,0,0]
[915,{"$f":"IF(ISNA(MATCH(L921,'GARP Model'!$D$23:$D$32,0)),0,1)","v":0},"2026-02-28",915,212,"","","",65009,1,"A","AROC","ARCHROCK INC",11,"NYSE",10,"Energy",1010,"Energy",101010,"Energy Equipment & Services",10101020,"Oil & Gas Equipment & Services",2025,3,35.33,175.482,6199.7790599999998,"","","",2,2,5,3,3,3,50,32,24,60,44,39,26,26,32,25,26,31,82,2,5,10,17,49,56,47,3,2,89,79,63,59,55,44,28,"",5,4,3,5,36,27,35,61,76,58,28,39,62,35,80,39,95,77,33,87,86,79,90,91,82,76,76,78,79,84,83,82,82,62,56,100,12,15,25,48,71,100,94,54,65,73,71,55,52,8,80,89,75,70,37,77,50,0,13,0,0,0,0,0,0]
[920,{"$f":"IF(ISNA(MATCH(L926,'GARP Model'!$D$23:$D$32,0)),0,1)","v":0},"2026-02-28",920,-38,"","","",22741,1,"A","CC","CHEMOURS CO",11,"NYSE",15,"Materials",1510,"Materials",151010,"Chemicals",15101020,"Diversified Chemicals",2025,3,18.239999999999998,149.87200000000001,2733.6652800000002,"","","",2,4,1,1,2,3,39,14,82,7,26,81,23,8,54,24,14,39,3,89,91,65,87,80,"","",26,86,9,14,15,36,66,14,8,19,28,36,77,65,56,20,40,23,14,11,31,30,73,14,5,9,36,21,85,34,23,19,19,20,22,18,12,6,20,2,1,1,2,33,9,100,43,37,42,"",26,"",38,"",14,61,69,51,22,93,37,31,54,26,32,92,19,0,75,0,0,0,0,0,0]
[926,{"$f":"IF(ISNA(MATCH(L932,'GARP Model'!$D$23:$D$32,0)),0,1)","v":0},"2026-02-28",926,-94,"","","",177881,1,"A","MASI","MASIMO CORP",14,"NASDAQ",35,"Health Care",3510,"Health Care Equipment & Services",351010,"Health Care Equipment & Supplies",35101010,"Health Care Equipment",2025,3,175.35,53.713999999999999,9418.7499000000007,"","","",2,2,5,2,1,3,0,11,25,21,30,35,33,30,33,36,31,35,4,93,91,94,76,48,"","",73,87,"","","",62,46,71,61,49,82,82,91,52,71,62,68,73,84,14,35,47,99,97,94,35,65,74,72,88,72,23,90,65,16,13,4,6,2,12,5,8,4,20,29,0,92,84,77,28,49,100,"","",6,27,19,13,19,79,80,62,31,26,77,61,18,0,85,0,0,0,100,0,0]
[931,{"$f":"IF(ISNA(MATCH(L937,'GARP Model'!$D$23:$D$32,0)),0,1)","v":0},"2026-02-28",931,53,"","","",42314,2,"A","USAR","USA RARE EARTH INC",14,"NASDAQ",15,"Materials",1510,"Materials",151040,"Metals & Mining",15104020,"Diversified Metals & Mining",2025,3,18.899999999999999,115.693,2186.5976999999998,"","","",4,3,3,1,5,1,0,4,"","","","","","","","","","","","","","","","","","","","","","","","",100,"",83,"","","","","","",97,97,"","","","","","","","","","","",0,"","","","","","","","","","","","","","","","","","","","","",26,"",5,"",0,67,90,88,86,"",37,89,90,86,8,53,87,0,8,100,100,100,0,0,100]
[936,{"$f":"IF(ISNA(MATCH(L942,'GARP Model'!$D$23:$D$32,0)),0,1)","v":0},"2026-02-28",936,2,"","","",62823,1,"A","FCN","FTI CONSULTING INC",11,"NYSE",20,"Industrials",2020,"Commercial & Professional Services",202020,"Professional Services",20202020,"Research & Consulting Services",2025,3,164.42,31.346,5153.9093199999998,"","","",2,4,1,4,3,3,0,44,72,67,70,68,27,45,50,28,47,53,32,39,58,75,45,52,76,"",46,22,"","","",98,9,67,49,"",59,55,39,59,48,60,44,83,78,53,43,63,4,62,56,68,37,38,0,32,51,33,31,53,42,83,29,55,53,77,62,62,52,86,96,100,25,41,36,"",48,"",71,"",37,45,40,30,29,61,80,31,31,48,61,70,37,100,10,0,0,0,0,0,0]
[937,{"$f":"IF(ISNA(MATCH(L943,'GARP Model'!$D$23:$D$32,0)),0,1)","v":0},"2026-02-28",937,148,"","","",38681,1,"A","GENI","GENIUS SPORTS LTD",11,"NYSE",25,"Consumer Discretionary",2530,"Consumer Services",253010,"Hotels, Restaurants & Leisure",25301010,"Casinos & Gaming",2025,3,6.21,238.71799999999999,1482.43878,"","","",4,1,4,1,2,3,0,58,61,11,10,4,49,32,26,63,35,26,15,"","",11,13,"","","",37,13,"","","",8,12,"",83,35,42,24,"",17,"",57,41,5,4,"",37,48,93,65,58,"",9,37,0,5,93,"",9,94,"",12,29,73,"",15,30,64,"",6,21,100,85,95,96,"",26,"","","",8,8,10,10,39,32,37,31,54,70,59,16,34,0,18,0,0,0,100,0,0]
[942,{"$f":"IF(ISNA(MATCH(L948,'GARP Model'!$D$23:$D$32,0)),0,1)","v":0},"2026-02-28",942,-434,"","","",43415,1,"A","BIRK","BIRKENSTOCK HOLDING PLC",11,"NYSE",25,"Consumer Discretionary",2520,"Consumer Durables & Apparel",252030,"Textiles, Apparel & Luxury Goods",25203020,"Footwear",2026,1,41.65,183.90600000000001,7659.6849000000002,"",1,"",3,3,1,3,1,3,0,53,39,71,53,56,47,53,55,48,56,58,83,"","",14,"","",72,44,39,"","","","",72,14,64,43,"",29,"","","","",28,73,29,"","",88,94,11,11,"","",77,72,93,48,"","",49,"","",84,81,"","",73,77,"","",61,72,100,46,53,55,27,43,10,40,82,45,23,9,7,9,"",37,31,12,9,91,63,11,0,47,0,0,0,0,0,0]
[948,{"$f":"IF(ISNA(MATCH(L954,'GARP Model'!$D$23:$D$32,0)),0,1)","v":0},"2026-02-28",948,-131,"","","",29392,1,"A","EMN","EASTMAN CHEMICAL CO",11,"NYSE",15,"Materials",1510,"Materials",151010,"Chemicals",15101050,"Specialty Chemicals",2025,4,75.510000000000005,114.047,8611.6889699999992,"","","",3,3,2,1,1,3,80,74,74,69,88,88,52,60,72,46,56,68,19,65,69,89,88,87,18,47,26,88,35,30,34,60,20,42,24,28,22,32,16,19,74,10,28,73,60,88,76,82,40,14,8,10,51,27,78,15,51,23,14,59,27,58,20,31,42,50,19,31,41,73,69,100,34,25,31,78,26,6,42,20,43,73,29,19,14,74,100,62,31,9,92,82,16,0,86,0,0,0,0,0,0]
[954,{"$f":"IF(ISNA(MATCH(L960,'GARP Model'!$D$23:$D$32,0)),0,1)","v":0},"2026-02-28",954,123,"","","",1968,1,"A","BMI","BADGER METER INC",11,"NYSE",45,"Information Technology",4520,"Technology Hardware & Equipment",452030,"Electronic Equipment, Instruments & Components",45203010,"Electronic Equipment & Instruments",2025,4,152.43,29.387,4479.4604099999997,"","",2,2,2,5,2,1,3,20,20,30,49,46,44,45,42,41,53,48,45,54,14,26,34,22,24,73,61,47,26,86,87,81,49,20,"",74,23,62,29,65,28,19,70,75,17,69,73,94,91,49,78,88,88,68,55,63,53,67,57,72,59,44,95,33,74,69,85,44,71,63,72,85,100,76,83,86,46,28,100,26,40,43,10,10,4,11,47,7,1,2,2,67,58,15,100,37,0,0,0,0,0,0]
[957,{"$f":"IF(ISNA(MATCH(L963,'GARP Model'!$D$23:$D$32,0)),0,1)","v":0},"2026-02-28",957,-91,"","","",315318,1,"A","ESI","ELEMENT SOLUTIONS INC",11,"NYSE",15,"Materials",1510,"Materials",151010,"Chemicals",15101050,"Specialty Chemicals",2025,3,35.090000000000003,242,8491.7800000000007,"","","",2,2,3,4,3,3,17,41,36,46,44,45,40,46,46,42,48,49,35,32,43,57,79,60,39,25,52,32,27,27,"",46,4,46,49,25,45,24,25,32,27,78,80,42,21,55,72,82,29,70,60,74,61,59,45,28,50,34,38,75,25,70,37,63,58,56,37,61,54,78,86,100,74,85,88,37,100,16,40,43,46,53,67,67,59,37,37,62,75,70,31,60,56,100,56,0,0,0,0,0,0]
[{"$f":"A968+1","v":963},{"$f":"IF(ISNA(MATCH(L969,'GARP Model'!$D$23:$D$32,0)),0,1)","v":0},"2026-02-28",963,-8,"","","",322985,1,"A","DEC","DIVERSIFIED ENERGY CO",11,"NYSE",10,"Energy",1010,"Energy",101020,"Oil, Gas & Consumable Fuels",10102020,"Oil & Gas Exploration & Production",2025,2,13.76,77.768000000000001,1070.0876800000001,"","","",3,1,3,2,4,3,93,72,44,7,97,97,87,36,39,48,28,30,"","","",91,"","","","",7,"",6,"","",12,100,20,3,"",4,"","","","",3,2,4,"","","","",86,"","","",88,63,0,89,"","",91,"","",21,"","","",14,"","","","","",100,23,14,14,"","","","","",78,50,22,41,30,"",37,31,54,48,88,43,36,0,43,0,0,0,0,0,0]
[968,{"$f":"IF(ISNA(MATCH(L974,'GARP Model'!$D$23:$D$32,0)),0,1)","v":0},"2026-02-28",968,14,"","","",38258,2,"A","LUNR","INTUITIVE MACHINES INC",14,"NASDAQ",20,"Industrials",2010,"Capital Goods",201010,"Aerospace & Defense",20101010,"Aerospace & Defense",2025,3,16.48,117.883,1942.7118399999999,"",1,"",1,2,4,1,4,3,0,1,13,9,11,10,19,15,14,19,15,14,17,"","",43,"","","","",3,"",2,"","",2,100,"",80,"",12,"","","","",88,88,98,"","",8,10,96,62,"","",7,4,0,6,"","",26,"","",7,97,"","","","","","",1,"",100,1,1,1,14,26,100,9,"",1,97,89,90,26,23,80,89,90,86,36,97,9,0,32,0,0,0,0,0,100]
[973,{"$f":"IF(ISNA(MATCH(L979,'GARP Model'!$D$23:$D$32,0)),0,1)","v":0},"2026-02-28",973,-258,"","","",65228,1,"A","COLB","COLUMBIA BANKING SYSTEM INC",14,"NASDAQ",40,"Financials",4010,"Banks",401010,"Banks",40101015,"Regional Banks",2025,3,28.45,299.14699999999999,8510.7321499999998,"","","",3,4,1,4,4,1,84,85,45,70,68,60,71,75,75,77,81,82,42,30,35,72,7,25,20,"",81,38,33,84,68,40,57,53,53,"",62,29,31,"","","","","","","",20,27,19,"","","",84,77,"",68,18,75,82,6,14,35,41,44,76,43,32,30,94,75,30,100,83,90,90,"",54,"",78,"",66,58,70,62,55,57,100,98,75,48,29,70,57,0,8,0,0,100,0,0,0]
[979,{"$f":"IF(ISNA(MATCH(L985,'GARP Model'!$D$23:$D$32,0)),0,1)","v":0},"2026-02-28",979,-67,"","","",37076,1,"A","BSY","BENTLEY SYSTEMS INC",14,"NASDAQ",45,"Information Technology",4510,"Software & Services",451030,"Software",45103010,"Application Software",2025,3,36.549999999999997,303.45800000000003,11091.3899,"","",1,3,2,5,2,1,3,13,14,18,43,45,42,47,47,46,51,50,49,27,28,33,33,37,32,78,68,66,60,83,92,10,57,0,48,52,67,67,65,83,32,9,10,3,64,36,67,40,2,62,62,56,68,73,94,0,63,48,46,56,60,51,84,19,66,21,87,13,21,0,54,53,100,83,87,87,46,62,40,39,26,44,4,2,11,16,73,7,1,31,26,77,19,20,0,53,0,0,0,0,0,0]
[984,{"$f":"IF(ISNA(MATCH(L990,'GARP Model'!$D$23:$D$32,0)),0,1)","v":0},"2026-02-28",984,-112,"","","",312009,1,"A","FRO","FRONTLINE PLC",11,"NYSE",10,"Energy",1010,"Energy",101020,"Oil, Gas & Consumable Fuels",10102040,"Oil & Gas Storage & Transportation",2025,3,37.950000000000003,222.62299999999999,8448.5428499999998,"","","",2,1,4,3,3,3,40,37,22,44,77,66,63,17,17,61,18,18,15,6,80,93,12,67,9,"",77,99,7,"",31,36,58,31,31,"",79,98,99,4,92,33,28,85,86,89,38,55,62,"","","",90,55,0,7,87,9,6,93,12,64,13,69,8,57,12,73,10,32,36,100,98,5,5,"",100,"",14,"",44,67,86,82,88,11,37,89,90,86,12,20,89,0,72,0,0,0,0,0,100]
[990,{"$f":"IF(ISNA(MATCH(L996,'GARP Model'!$D$23:$D$32,0)),0,1)","v":0},"2026-02-28",990,-21,"","","",42339,2,"A","KDK","KODIAK AI INC",14,"NASDAQ",25,"Consumer Discretionary",2510,"Automobiles & Components",251010,"Automobile Components",25101010,"Automotive Parts & Equipment",2025,3,8.4,174.95699999999999,1469.6387999999999,"","","",4,3,3,2,3,1,0,5,"","","","","","","","","","","","","","","","","","","","","","","","",100,"",77,"","","","","","",84,82,"","","","","","","","","","","",0,"","","","","","","","","","","","","","","","","","","","","","","","","",97,34,12,10,23,"",37,31,12,48,92,34,35,0,2,0,100,100,0,0,0]
[993,{"$f":"IF(ISNA(MATCH(L999,'GARP Model'!$D$23:$D$32,0)),0,1)","v":0},"2026-02-28",993,148,"","","",21237,1,"A","TTI","TETRA TECHNOLOGIES INC/DE",11,"NYSE",10,"Energy",1010,"Energy",101010,"Energy Equipment & Services",10101020,"Oil & Gas Equipment & Services",2025,3,8.66,133.65100000000001,1157.4176600000001,"","","",3,2,2,1,5,5,0,35,62,92,62,46,26,25,26,26,25,26,98,1,27,71,52,95,96,92,3,4,"","","",43,100,60,48,"",15,10,7,24,59,51,58,29,72,10,23,0,3,15,13,20,50,34,65,74,75,29,83,76,41,97,95,92,96,96,94,90,99,21,9,6,15,23,32,23,26,100,32,95,47,97,97,97,96,10,100,100,99,96,3,47,96,100,99,100,0,0,0,0,100]
[999,{"$f":"IF(ISNA(MATCH(L1005,'GARP Model'!$D$23:$D$32,0)),0,1)","v":0},"2026-02-28",999,55,"","","",110566,1,"A","IOSP","INNOSPEC INC",14,"NASDAQ",15,"Materials",1510,"Materials",151010,"Chemicals",15101050,"Specialty Chemicals",2025,3,76.58,24.777999999999999,1897.4992400000001,"",2,1,2,3,1,4,2,3,45,73,87,29,70,68,38,66,61,47,81,75,10,84,86,85,78,61,"","",34,64,71,71,65,60,22,93,83,28,45,27,31,33,21,59,67,17,29,17,86,93,60,9,71,42,34,33,71,25,43,42,22,38,31,29,8,15,20,28,14,23,26,51,68,100,35,33,41,68,26,100,99,"",73,60,37,19,14,82,100,89,54,26,78,86,17,0,98,0,0,0,0,0,0]
[1000,{"$f":"IF(ISNA(MATCH(L1006,'GARP Model'!$D$23:$D$32,0)),0,1)","v":0},"2026-02-28",1000,80,"","","",348615,1,"A","NYAX","NAYAX LTD",14,"NASDAQ",45,"Information Technology",4520,"Technology Hardware & Equipment",452030,"Electronic Equipment, Instruments & Components",45203010,"Electronic Equipment & Instruments",2025,3,51.15,36.606999999999999,1872.44805,"","","",2,1,4,1,5,3,0,14,28,35,28,28,32,29,30,36,30,32,95,"","",13,"","",67,"",55,"","","","",23,49,40,67,45,64,"","","","",53,40,98,"","",32,41,35,83,"","",39,59,28,84,"","",88,"","",63,87,"","",66,90,"","",30,32,100,88,95,96,"",26,"",4,"",99,89,72,62,80,12,100,89,90,86,66,20,83,0,61,0,0,0,0,0,0]
[1005,{"$f":"IF(ISNA(MATCH(L1011,'GARP Model'!$D$23:$D$32,0)),0,1)","v":0},"2026-02-28",1005,34,"","","",29052,1,"A","LXP","LXP INDUSTRIAL TRUST",11,"NYSE",60,"Real Estate",6010,"Equity Real Estate Investment Trusts (REITs)",601025,"Industrial REITs",60102510,"Industrial REITs",2025,4,49.56,59.076999999999998,2927.8561199999999,"",1,"",2,3,1,2,5,3,86,74,12,55,44,69,62,68,72,58,66,70,90,48,77,81,70,86,6,38,99,55,52,51,54,59,100,"",28,"",99,49,49,"","","","","","","",86,76,30,"","","","",24,"","","","",10,24,13,59,75,57,23,41,72,58,27,51,61,100,"","","",85,"",14,"",4,58,45,73,57,69,66,80,89,75,86,21,50,71,0,60,0,0,0,0,0,0]
[1010,{"$f":"IF(ISNA(MATCH(L1016,'GARP Model'!$D$23:$D$32,0)),0,1)","v":0},"2026-02-28",1010,-37,"","","",5530,1,"A","HWKN","HAWKINS INC",14,"NASDAQ",15,"Materials",1510,"Materials",151010,"Chemicals",15101010,"Commodity Chemicals",2025,3,149.1,20.74,3092.3339999999998,"","","",2,1,5,3,2,3,8,22,44,45,46,45,38,42,37,40,44,39,44,30,36,32,57,32,70,55,13,15,68,68,64,50,21,69,53,"",29,56,18,64,42,46,58,55,74,72,98,98,59,74,82,90,50,28,34,24,68,58,39,83,66,86,18,34,42,78,36,49,47,79,98,100,38,31,31,41,62,28,26,36,85,20,12,32,65,7,37,62,90,96,83,8,68,100,70,0,0,0,0,100,0]
[1016,{"$f":"IF(ISNA(MATCH(L1022,'GARP Model'!$D$23:$D$32,0)),0,1)","v":0},"2026-02-28",1016,50,"","","",39048,1,"A","FA","FIRST ADVANTAGE CORP",14,"NASDAQ",20,"Industrials",2020,"Commercial & Professional Services",202020,"Professional Services",20202010,"Human Resource & Employment Services",2025,3,11.51,174.036,2003.15436,"","","",2,3,2,5,3,3,0,71,52,12,26,29,24,55,62,24,44,48,0,96,"",3,16,"","","",31,17,7,18,"",39,1,10,13,"",38,58,"",75,"",68,56,21,23,"",27,37,52,62,56,"",57,56,0,11,19,"",12,27,"",19,16,16,"",18,14,19,"",55,57,100,89,91,92,"",51,"",91,"",72,48,10,22,13,62,80,31,54,48,96,53,15,100,26,0,0,0,0,0,0]
[1021,{"$f":"IF(ISNA(MATCH(L1027,'GARP Model'!$D$23:$D$32,0)),0,1)","v":0},"2026-02-28",1021,-26,"","","",39483,1,"A","BROS","DUTCH BROS INC",11,"NYSE",25,"Consumer Discretionary",2530,"Consumer Services",253010,"Hotels, Restaurants & Leisure",25301040,"Restaurants",2025,4,53.61,127.054,6811.3649400000004,"","","",2,2,4,4,2,3,0,13,30,34,33,31,27,24,23,28,24,23,88,"","",12,8,"",68,9,8,10,"","","",44,65,37,50,"",12,94,"",94,"",39,32,44,58,"",11,15,70,32,80,"",54,37,16,48,84,"",28,72,"",54,70,72,"",67,77,84,"",30,14,100,11,8,5,9,53,100,89,41,3,28,22,17,26,39,80,89,75,70,72,49,19,0,19,0,0,0,0,0,0]
[{"$f":"A1032+1","v":1027},{"$f":"IF(ISNA(MATCH(L1033,'GARP Model'!$D$23:$D$32,0)),0,1)","v":0},"2026-02-28",1027,40,"","","",15420,1,"A","AMBA","AMBARELLA INC",14,"NASDAQ",45,"Information Technology",4530,"Semiconductors & Semiconductor Equipment",453010,"Semiconductors & Semiconductor Equipment",45301020,"Semiconductors",2025,3,60.34,43.048000000000002,2597.5163200000002,"","",1,2,1,5,5,1,3,0,31,23,18,15,17,36,28,32,42,30,33,74,"",76,7,65,39,"","",38,22,"","","",21,5,"",82,87,32,66,10,48,76,70,64,83,80,41,69,75,95,93,81,75,9,80,42,94,27,73,11,35,50,13,94,35,45,16,89,44,38,24,47,100,56,69,68,"",100,"",68,"",24,7,28,59,23,84,7,31,54,26,23,67,13,0,73,0,0,0,0,0,0]
[1032,{"$f":"IF(ISNA(MATCH(L1038,'GARP Model'!$D$23:$D$32,0)),0,1)","v":0},"2026-02-28",1032,-20,"","","",35770,1,"A","SILA","SILA REALTY TRUST INC",11,"NYSE",60,"Real Estate",6010,"Equity Real Estate Investment Trusts (REITs)",601050,"Health Care REITs",60105010,"Health Care REITs",2025,3,25.73,54.877000000000002,1411.9852100000001,"","","",2,2,2,2,4,3,88,87,13,45,45,47,74,78,80,68,72,76,80,"","",65,"","",4,32,99,"",82,"","",55,64,"",25,"",99,"","","","","","","","","",95,98,45,"","","","",57,"","","","",91,"","",48,63,"","",34,62,"","","","",100,"","","",83,"",40,"",4,86,42,37,24,46,"",80,62,54,70,62,37,58,100,86,0,0,0,0,0,0]
[1036,{"$f":"IF(ISNA(MATCH(L1042,'GARP Model'!$D$23:$D$32,0)),0,1)","v":0},"2026-02-28",1036,"","","","",187039,5,"A","Z","ZILLOW GROUP INC",14,"NASDAQ",60,"Real Estate",6020,"Real Estate Management & Development",602010,"Real Estate Management & Development",60201040,"Real Estate Services",2025,4,44.62,240.446,10728.70052,"","","",2,4,2,2,1,1,0,55,36,30,26,24,34,44,46,38,52,54,87,"",38,25,41,95,13,"",39,62,"","","",82,2,64,78,68,26,69,12,82,82,77,72,"","","",83,43,62,"","","",28,95,"",85,71,66,15,24,94,32,77,67,61,29,70,65,55,59,73,100,70,67,68,"","","","","",16,13,12,19,17,40,7,9,12,2,70,45,12,0,11,0,100,0,100,0,0]
[1042,{"$f":"IF(ISNA(MATCH(L1048,'GARP Model'!$D$23:$D$32,0)),0,1)","v":0},"2026-02-28",1042,17,"","","",7549,1,"A","MOG.A","MOOG INC  -CL A",11,"NYSE",20,"Industrials",2010,"Capital Goods",201010,"Aerospace & Defense",20101010,"Aerospace & Defense",2026,1,337.43,31.751000000000001,10713.73993,"","","",2,1,4,5,4,3,5,26,48,42,41,40,33,26,28,34,26,29,61,22,0,34,40,58,63,42,27,76,45,43,61,55,25,59,50,23,36,69,26,34,31,46,58,31,63,20,90,95,31,85,19,75,43,32,78,43,58,54,45,47,48,73,61,65,75,69,57,64,74,77,80,100,24,18,20,37,100,100,96,35,80,95,86,84,86,8,100,89,90,86,41,23,87,0,46,0,0,0,0,0,100]
[1047,{"$f":"IF(ISNA(MATCH(L1053,'GARP Model'!$D$23:$D$32,0)),0,1)","v":0},"2026-02-28",1047,-302,"","","",264416,1,"A","UCTT","ULTRA CLEAN HOLDINGS INC",14,"NASDAQ",45,"Information Technology",4530,"Semiconductors & Semiconductor Equipment",453010,"Semiconductors & Semiconductor Equipment",45301010,"Semiconductor Materials & Equipment",2025,3,60.68,45.4,2754.8719999999998,"",2,2,2,3,4,3,5,1,0,35,75,13,27,35,26,28,36,27,28,37,0,96,95,47,85,46,"","",30,88,"","","",40,43,30,49,14,45,70,59,60,23,62,73,83,54,67,66,36,87,88,20,14,23,17,69,30,26,19,31,29,25,14,7,9,4,12,8,11,6,38,40,100,51,38,40,9,100,100,21,"",6,97,92,91,62,47,37,62,54,26,16,97,50,0,3,100,100,100,0,0,0]
[1053,{"$f":"IF(ISNA(MATCH(L1059,'GARP Model'!$D$23:$D$32,0)),0,1)","v":0},"2026-02-28",1053,17,"","","",332179,1,"A","LIF","LIFE360 INC",14,"NASDAQ",45,"Information Technology",4510,"Software & Services",451030,"Software",45103010,"Application Software",2025,3,52.65,78.269000000000005,4120.8628500000004,"","",1,2,2,4,3,2,3,0,12,17,32,31,31,30,29,31,33,31,33,94,"","",10,"","",47,"",64,"","","","",27,27,5,72,76,79,"","","","",89,89,36,"","",95,98,49,80,"","",21,92,17,88,"","",80,"","",63,89,"","",49,88,"","","","",100,88,95,95,"",71,"",92,"",62,1,8,59,68,"",7,31,54,70,28,6,"",0,33,0,0,0,0,0,0]
[1058,{"$f":"IF(ISNA(MATCH(L1064,'GARP Model'!$D$23:$D$32,0)),0,1)","v":0},"2026-02-28",1058,21,"","","",11566,1,"A","WWW","WOLVERINE WORLD WIDE",11,"NYSE",25,"Consumer Discretionary",2520,"Consumer Durables & Apparel",252030,"Textiles, Apparel & Luxury Goods",25203020,"Footwear",2025,3,17.670000000000002,81.954999999999998,1448.1448499999999,"","","",2,2,3,4,3,3,45,35,81,72,13,18,45,58,59,40,54,54,93,68,30,58,92,89,74,"",53,60,42,31,27,21,19,28,25,"",68,40,29,66,82,17,26,84,87,88,24,37,10,68,98,83,31,58,61,84,65,72,86,74,76,72,91,53,68,88,95,51,80,31,15,100,48,59,66,"",53,"",46,"",39,9,12,63,21,53,37,31,75,48,57,37,13,0,69,0,0,0,0,0,0]
[1063,{"$f":"IF(ISNA(MATCH(L1069,'GARP Model'!$D$23:$D$32,0)),0,1)","v":0},"2026-02-28",1063,-20,"","","",18329,1,"A","BUSE","FIRST BUSEY CORP",14,"NASDAQ",40,"Financials",4010,"Banks",401010,"Banks",40101015,"Regional Banks",2025,3,25.36,88.789000000000001,2251.6890400000002,"","","",3,2,1,4,5,3,76,91,55,62,68,69,66,69,73,75,78,81,37,56,69,8,11,27,15,"",79,39,93,80,68,10,58,70,61,"",60,28,31,"","","","","","","",24,33,19,"","","",76,75,"",7,5,5,8,4,5,33,38,43,33,37,29,32,27,95,85,100,66,86,90,"",48,"",72,"",82,58,51,50,48,54,100,89,75,70,55,54,49,0,74,0,0,0,0,0,0]
[1064,{"$f":"IF(ISNA(MATCH(L1070,'GARP Model'!$D$23:$D$32,0)),0,1)","v":0},"2026-02-28",1064,-49,"","","",333070,1,"A","SEZL","SEZZLE INC",14,"NASDAQ",40,"Financials",4020,"Financial Services",402010,"Financial Services",40201060,"Transaction & Payment Processing Services",2025,3,72.95,34.152999999999999,2491.46135,"","","",2,2,3,5,2,3,0,9,24,63,45,47,34,29,31,37,30,32,85,"","",3,"","",98,0,73,"","","","",60,100,83,65,"",88,"","","","",80,76,"","","",12,17,1,"","","",84,85,"",89,"","",95,"","",99,91,"","",98,10,"","",12,19,100,69,92,94,0,100,100,90,99,14,26,0,49,85,"",37,9,31,48,99,2,43,0,84,0,0,0,100,0,0]
[1071,{"$f":"IF(ISNA(MATCH(L1077,'GARP Model'!$D$23:$D$32,0)),0,1)","v":0},"2026-02-28",1071,397,"","","",65290,1,"A","SLG","SL GREEN REALTY CORP",11,"NYSE",60,"Real Estate",6010,"Equity Real Estate Investment Trusts (REITs)",601040,"Office REITs",60104010,"Office REITs",2025,4,36.85,71.159000000000006,2622.2091500000001,"",1,"",1,4,1,1,2,3,93,97,16,17,9,28,40,64,81,30,39,49,2,"",88,10,47,91,"","",99,55,74,23,21,62,100,"",4,"",99,49,49,"","","","","","","",59,81,27,"","","","",13,"","","","",95,15,7,26,31,47,16,24,32,52,17,49,51,100,"","","","",26,"","","",23,16,12,15,12,45,7,9,31,9,76,61,8,0,92,0,0,0,0,0,0]
[1073,{"$f":"IF(ISNA(MATCH(L1079,'GARP Model'!$D$23:$D$32,0)),0,1)","v":0},"2026-02-28",1073,-22,"","","",2352,1,"A","BRC","BRADY CORP",11,"NYSE",20,"Industrials",2020,"Commercial & Professional Services",202010,"Commercial Services & Supplies",20201010,"Commercial Printing",2026,1,92.34,47.204999999999998,4358.9097000000002,"","","",2,2,2,2,4,3,20,38,49,62,62,60,44,49,49,50,57,55,43,35,47,33,53,58,69,60,44,89,39,29,29,60,7,86,66,39,54,69,66,35,57,42,51,42,21,29,84,83,12,17,70,23,60,65,54,35,57,62,45,63,62,90,30,42,57,78,37,51,54,75,89,100,52,27,31,52,62,100,32,52,90,65,65,51,61,29,100,89,75,86,40,51,67,0,36,0,0,0,0,0,0]
[1079,{"$f":"IF(ISNA(MATCH(L1085,'GARP Model'!$D$23:$D$32,0)),0,1)","v":0},"2026-02-28",1079,"","","","",37675,1,"A","CGEM","CULLINAN THERAPEUTICS INC",14,"NASDAQ",35,"Health Care",3520,"Pharmaceuticals, Biotechnology & Life Sciences",352010,"Biotechnology",35201010,"Biotechnology",2025,3,15.5,59.076000000000001,915.678,"","",1,1,3,3,2,5,3,0,59,3,3,4,7,3,3,3,1,1,1,18,95,"","",99,"","","",90,65,"","","",23,100,"",97,"","","","",78,"",94,94,"","","",28,37,76,"","","","","",0,"","","","","","",3,1,0,"",7,7,4,"",6,23,100,94,19,22,"",32,"",65,"",49,91,84,67,57,65,80,62,54,48,29,91,73,0,24,0,0,0,0,0,0]
[1084,{"$f":"IF(ISNA(MATCH(L1090,'GARP Model'!$D$23:$D$32,0)),0,1)","v":0},"2026-02-28",1084,13,"","","",20299,1,"A","LOB","LIVE OAK BANCSHARES INC",11,"NYSE",40,"Financials",4010,"Banks",401010,"Banks",40101015,"Regional Banks",2025,3,36.270000000000003,45.856000000000002,1663.19712,"",2,"",1,3,3,2,5,3,4,75,89,59,71,80,8,98,87,3,99,98,31,75,45,33,27,14,35,"",82,78,84,59,50,11,74,88,98,"",73,91,76,"","","","","","","",81,86,8,"","","",64,53,"",24,3,20,19,2,4,32,42,33,39,41,34,16,38,87,50,100,80,16,22,"",42,"",11,"",85,85,69,73,57,54,100,89,90,70,63,67,41,0,85,0,0,0,0,0,0]
[1090,{"$f":"IF(ISNA(MATCH(L1096,'GARP Model'!$D$23:$D$32,0)),0,1)","v":0},"2026-02-28",1090,-50,"","","",9969,2,"A","STAA","STAAR SURGICAL CO",14,"NASDAQ",35,"Health Care",3510,"Health Care Equipment & Services",351010,"Health Care Equipment & Supplies",35101020,"Health Care Supplies",2025,3,19.899999999999999,49.353999999999999,982.14459999999997,"","","",1,4,1,4,2,3,0,47,38,9,27,33,14,24,30,11,23,32,2,96,98,97,88,55,"","",45,94,"","","",51,68,"",87,63,32,85,78,52,33,84,85,90,7,60,39,50,88,1,2,4,8,88,79,2,2,1,10,27,51,8,1,1,1,12,5,8,6,18,36,100,31,6,5,"",66,"",52,"",11,6,41,28,19,98,37,31,31,48,17,85,27,0,15,0,0,0,0,0,0]
[1095,{"$f":"IF(ISNA(MATCH(L1101,'GARP Model'!$D$23:$D$32,0)),0,1)","v":0},"2026-02-28",1095,16,"","","",178803,1,"A","ENSG","ENSIGN GROUP INC",14,"NASDAQ",35,"Health Care",3510,"Health Care Equipment & Services",351020,"Health Care Providers & Services",35102020,"Health Care Facilities",2025,4,214.17,58.085000000000001,12440.06445,"","","",3,1,3,5,2,3,1,24,50,45,44,43,39,35,38,40,37,38,56,25,41,20,20,26,76,"",23,11,58,54,51,26,59,33,48,"",34,22,16,19,1,44,30,70,64,48,97,95,46,62,56,68,34,14,0,47,41,34,54,38,39,77,45,47,33,77,44,44,24,87,88,100,14,17,21,"",100,"",74,"",76,24,54,59,66,24,37,62,54,70,26,26,69,0,86,0,0,0,0,0,0]
[1100,{"$f":"IF(ISNA(MATCH(L1106,'GARP Model'!$D$23:$D$32,0)),0,1)","v":0},"2026-02-28",1100,8,"","","",45373,1,"A","KBDC","KAYNE ANDERSON BDC INC",11,"NYSE",40,"Financials",4020,"Financial Services",402030,"Capital Markets",40203010,"Asset Management & Custody Banks",2025,3,13.42,69.765000000000001,936.24630000000002,"",1,"",1,4,1,3,4,3,96,94,17,94,94,94,2,0,0,5,1,1,35,"","",25,"","",7,78,99,"",17,"","",71,100,19,10,"",99,"","","","","","","","","",98,98,1,"","","",99,95,"",9,"","",10,"","",69,29,"","",58,45,"","","","",100,"","","",96,37,100,84,"",87,35,28,23,32,"",37,31,12,26,69,49,"",100,27,0,0,0,0,0,0]
[1106,{"$f":"IF(ISNA(MATCH(L1112,'GARP Model'!$D$23:$D$32,0)),0,1)","v":0},"2026-02-28",1106,57,"","","",40383,1,"A","CRGY","CRESCENT ENERGY CO",11,"NYSE",10,"Energy",1010,"Energy",101020,"Oil, Gas & Consumable Fuels",10102020,"Oil & Gas Exploration & Production",2025,3,11.66,254.63200000000001,2969.0091200000002,"",2,"",3,1,4,5,1,3,77,97,69,32,39,36,6,6,5,10,11,10,16,75,"",10,45,"",7,"",1,1,97,89,"",8,100,60,11,"",3,5,"",84,"",18,8,91,83,"",23,30,90,62,56,"",88,60,0,47,6,"",52,12,"",30,38,38,"",29,39,31,"",74,40,100,17,16,15,"",100,"",49,"",21,72,45,50,11,72,80,62,54,26,78,91,13,100,61,0,0,0,0,0,0]
[1110,{"$f":"IF(ISNA(MATCH(L1116,'GARP Model'!$D$23:$D$32,0)),0,1)","v":0},"2026-02-28",1110,39,"","","",66871,1,"A","HLMN","HILLMAN SOLUTIONS CORP",14,"NASDAQ",20,"Industrials",2010,"Capital Goods",201060,"Machinery",20106020,"Industrial Machinery & Supplies & Components",2025,4,8.1999999999999993,196.488,1611.2016000000001,"",2,"",3,2,1,1,2,3,0,77,73,43,32,30,33,67,46,33,63,42,88,"","",52,68,"",26,25,30,74,"","","",55,10,51,25,0,30,56,"",58,"",10,62,55,26,"",96,97,34,6,75,"",52,59,89,52,73,"",57,80,"",46,66,70,"",35,65,70,"",82,89,100,70,70,71,48,32,100,32,27,67,36,60,60,34,69,37,31,31,9,28,82,27,0,39,0,0,0,0,0,0]
[1115,{"$f":"IF(ISNA(MATCH(L1121,'GARP Model'!$D$23:$D$32,0)),0,1)","v":0},"2026-02-28",1115,-24,"","","",31177,1,"A","SVRA","SAVARA INC",14,"NASDAQ",35,"Health Care",3520,"Pharmaceuticals, Biotechnology & Life Sciences",352010,"Biotechnology",35201010,"Biotechnology",2025,3,6.02,172.85,1040.557,"","",2,1,2,3,1,5,3,0,12,3,8,10,11,7,9,9,6,7,8,21,"",83,"","",100,"","",90,65,"","","",40,100,"",79,"","","","",64,46,91,90,"","","",25,22,83,"","","","","",0,"","","","","","",0,0,0,2,2,2,2,5,8,19,100,95,31,61,"",26,"",15,"",70,87,93,79,91,19,37,89,75,86,5,57,92,0,13,100,0,0,0,0,0]
[1121,{"$f":"IF(ISNA(MATCH(L1127,'GARP Model'!$D$23:$D$32,0)),0,1)","v":0},"2026-02-28",1121,-120,"","","",29837,1,"A","BCRX","BIOCRYST PHARMACEUTICALS INC",14,"NASDAQ",35,"Health Care",3520,"Pharmaceuticals, Biotechnology & Life Sciences",352010,"Biotechnology",35201010,"Biotechnology",2025,3,8.75,210.52199999999999,1842.0675000000001,"","","",2,2,5,3,1,1,0,1,36,27,8,6,36,13,8,36,13,10,84,"",44,7,6,1,"","",67,34,"","","",25,100,10,37,78,83,63,61,84,12,60,45,84,79,12,16,4,86,80,95,97,46,99,6,94,95,97,31,98,98,22,96,96,99,"","","","",5,"",100,15,38,27,"",71,"","","",25,18,13,7,23,88,37,31,31,48,78,35,27,0,8,0,100,100,0,0,0]
[1126,{"$f":"IF(ISNA(MATCH(L1132,'GARP Model'!$D$23:$D$32,0)),0,1)","v":0},"2026-02-28",1126,26,"","","",38931,1,"A","CFLT","CONFLUENT INC",14,"NASDAQ",45,"Information Technology",4510,"Software & Services",451030,"Software",45103010,"Application Software",2025,4,30.67,356.13799999999998,10922.75246,"","",1,2,2,2,4,3,3,0,13,17,19,17,17,26,24,22,26,23,21,55,"","",17,11,"","","",59,33,"","","",19,46,"",79,84,51,57,"",48,"",82,79,31,17,"",48,51,84,62,56,"",7,89,0,91,94,"",67,89,"",13,80,85,"",12,86,90,"",41,33,100,44,34,27,17,54,13,68,"",3,87,89,55,44,45,37,62,54,70,13,96,47,0,34,0,0,0,0,0,0]
[1127,{"$f":"IF(ISNA(MATCH(L1133,'GARP Model'!$D$23:$D$32,0)),0,1)","v":0},"2026-02-28",1127,163,"","","",27387,1,"A","PI","IMPINJ INC",14,"NASDAQ",45,"Information Technology",4530,"Semiconductors & Semiconductor Equipment",453010,"Semiconductors & Semiconductor Equipment",45301020,"Semiconductors",2025,4,122.66,30.222000000000001,3707.0305199999998,"","",2,2,1,5,1,3,3,0,8,13,28,30,27,29,28,26,31,28,26,8,"",48,77,35,17,"","",34,90,"","","",23,51,1,60,77,36,75,18,59,38,64,65,7,44,28,4,6,85,92,7,88,18,68,80,60,80,92,71,49,77,22,6,79,94,22,5,97,91,17,2,100,45,28,22,"",26,"",14,"",13,4,19,71,52,63,37,62,75,70,24,16,49,0,79,0,0,0,100,0,0]
[1132,{"$f":"IF(ISNA(MATCH(L1138,'GARP Model'!$D$23:$D$32,0)),0,1)","v":0},"2026-02-28",1132,-34,"","","",162160,1,"A","MPW","MEDICAL PROPERTIES TRUST",11,"NYSE",60,"Real Estate",6010,"Equity Real Estate Investment Trusts (REITs)",601050,"Health Care REITs",60105010,"Health Care REITs",2025,3,5.76,601.13599999999997,3462.5433600000001,"",1,"",1,3,2,1,2,3,89,95,12,3,1,9,48,87,93,31,51,63,80,90,93,5,95,94,"","",99,55,6,9,12,39,100,"",3,"",99,49,49,"","","","","","","",45,46,59,"","","","",14,"","","","",98,1,1,18,94,9,9,15,94,11,8,22,23,100,"","","",65,26,100,"","",59,30,69,22,59,92,37,62,31,48,20,64,58,0,77,0,0,0,0,0,0]
[1137,{"$f":"IF(ISNA(MATCH(L1143,'GARP Model'!$D$23:$D$32,0)),0,1)","v":0},"2026-02-28",1137,7,"","","",4091,1,"A","DCO","DUCOMMUN INC",11,"NYSE",20,"Industrials",2010,"Capital Goods",201010,"Aerospace & Defense",20101010,"Aerospace & Defense",2025,3,123.59,14.946,1847.17614,"","","",2,1,2,4,5,3,0,46,54,21,37,48,35,31,28,37,31,28,5,88,92,60,54,76,"","",52,75,"","","",44,24,55,50,"",56,75,38,48,48,45,50,3,6,2,57,53,71,33,72,16,40,32,82,43,59,41,54,78,68,20,12,6,11,21,16,10,12,35,43,100,73,72,73,"",62,"",63,"",62,81,67,87,86,21,80,62,90,86,57,8,86,0,58,0,0,0,0,0,0]
[1143,{"$f":"IF(ISNA(MATCH(L1149,'GARP Model'!$D$23:$D$32,0)),0,1)","v":0},"2026-02-28",1143,16,"","","",18629,1,"A","LGIH","LGI HOMES INC",14,"NASDAQ",25,"Consumer Discretionary",2520,"Consumer Durables & Apparel",252010,"Household Durables",25201030,"Homebuilding",2025,3,51.9,23.079000000000001,1197.8000999999999,"","","",1,4,1,2,2,3,0,98,71,87,97,99,5,3,5,10,8,11,20,78,81,95,93,93,34,"",86,47,"","","",73,69,3,7,"",89,39,40,"","","","",73,53,69,85,64,3,0,0,0,21,20,100,10,15,12,19,20,32,54,21,11,5,40,26,16,9,27,41,100,77,71,49,"","","",54,"",36,80,24,18,4,94,80,62,54,26,96,90,3,0,81,0,0,0,0,0,0]
[1149,{"$f":"IF(ISNA(MATCH(L1155,'GARP Model'!$D$23:$D$32,0)),0,1)","v":0},"2026-02-28",1149,73,"","","",7526,1,"A","QDEL","QUIDELORTHO CORP",14,"NASDAQ",35,"Health Care",3510,"Health Care Equipment & Services",351010,"Health Care Equipment & Supplies",35101010,"Health Care Equipment",2025,3,22.74,67.900000000000006,1544.046,"","","",2,2,2,4,3,3,0,95,72,0,0,12,7,52,96,13,35,83,70,94,95,83,84,15,"","",32,62,"","","",29,100,26,5,42,20,11,12,51,29,25,42,62,38,97,15,15,94,9,8,3,65,68,78,55,5,1,38,14,3,9,89,1,0,5,65,3,2,3,12,100,74,79,65,"",26,"",64,"",28,34,60,23,8,98,80,62,54,26,28,95,9,100,75,0,0,0,0,0,0]
[1153,{"$f":"IF(ISNA(MATCH(L1159,'GARP Model'!$D$23:$D$32,0)),0,1)","v":0},"2026-02-28",1153,4,"","","",3580,1,"A","CR","CRANE CO",11,"NYSE",20,"Industrials",2010,"Capital Goods",201060,"Machinery",20106020,"Industrial Machinery & Supplies & Components",2025,3,200.53,57.593000000000004,11549.12429,"","","",2,1,4,5,2,3,8,22,28,45,45,49,38,30,35,44,31,38,61,54,4,73,93,95,73,68,42,32,78,12,14,39,18,98,71,20,48,28,21,15,26,67,74,63,17,18,28,42,25,66,9,25,61,54,66,67,53,65,84,59,74,93,79,74,87,79,47,36,77,60,70,2,34,56,74,53,74,26,78,26,76,26,24,40,51,13,37,31,75,70,65,20,49,100,39,0,0,0,0,0,0]
[1158,{"$f":"IF(ISNA(MATCH(L1164,'GARP Model'!$D$23:$D$32,0)),0,1)","v":0},"2026-02-28",1158,-5,"","","",14403,1,"A","DX","DYNEX CAPITAL INC",11,"NYSE",40,"Financials",4020,"Financial Services",402040,"Mortgage Real Estate Investment Trusts (REITs)",40204010,"Mortgage REITs",2025,4,14.03,174.815,2452.65445,"","","",1,3,2,1,4,3,98,89,7,96,52,66,52,40,52,28,27,30,91,14,48,4,"",68,25,"",99,55,97,95,95,0,100,"",1,"",99,49,49,"","","","","","","",23,35,9,"","","","",98,"","","","",42,"",25,48,60,32,17,71,72,43,12,50,35,100,"","","","",26,"",10,"",10,52,62,53,65,38,80,89,75,70,35,37,66,100,80,0,0,0,0,0,0]
[1163,{"$f":"IF(ISNA(MATCH(L1169,'GARP Model'!$D$23:$D$32,0)),0,1)","v":0},"2026-02-28",1163,-2,"","","",183902,1,"A","EFC","ELLINGTON FINANCIAL INC",11,"NYSE",40,"Financials",4020,"Financial Services",402040,"Mortgage Real Estate Investment Trusts (REITs)",40204010,"Mortgage REITs",2025,3,12.42,106.066,1317.3397199999999,"",1,"",1,3,1,3,4,3,97,95,7,95,79,79,0,1,3,12,18,21,57,43,8,21,7,16,8,"",99,55,67,79,88,4,100,0,0,"",99,49,49,"","","","","","","",57,57,4,"","","",96,71,"",82,11,2,88,13,4,37,48,67,56,54,55,82,73,73,54,100,"","","","",26,"",39,"",29,31,43,33,60,43,80,89,54,48,42,27,64,0,43,0,0,0,0,0,0]
[1169,{"$f":"IF(ISNA(MATCH(L1175,'GARP Model'!$D$23:$D$32,0)),0,1)","v":0},"2026-02-28",1169,19,"","","",35794,1,"A","SITM","SITIME CORP",14,"NASDAQ",45,"Information Technology",4530,"Semiconductors & Semiconductor Equipment",453010,"Semiconductors & Semiconductor Equipment",45301020,"Semiconductors",2025,4,397.88,26.298999999999999,10463.84612,"","",1,2,1,4,5,3,5,0,14,7,27,27,29,26,26,26,26,26,26,76,95,94,4,56,14,"","",17,6,"","","",14,43,"",77,82,11,9,4,33,3,94,94,92,62,90,27,11,80,98,9,3,11,76,82,95,12,18,13,22,82,19,89,17,67,23,86,32,59,28,51,100,26,31,20,"",100,"",93,"",42,83,90,92,88,8,100,98,97,96,10,42,87,0,63,100,0,0,0,0,100]
[1174,{"$f":"IF(ISNA(MATCH(L1180,'GARP Model'!$D$23:$D$32,0)),0,1)","v":0},"2026-02-28",1174,4,"","","",25922,1,"A","KAI","KADANT INC",11,"NYSE",20,"Industrials",2010,"Capital Goods",201060,"Machinery",20106020,"Industrial Machinery & Supplies & Components",2025,3,339.17,11.778,3994.7442599999999,"","","",3,1,3,4,2,3,6,32,34,44,49,49,44,44,46,49,48,50,34,55,38,75,56,48,56,"",56,88,68,68,58,40,12,76,61,14,60,70,34,24,24,52,61,23,27,25,90,96,45,17,57,38,62,61,67,26,46,56,69,67,60,79,31,23,55,63,33,28,42,74,84,100,81,65,74,"",74,"",51,"",43,69,27,35,25,32,100,62,75,70,92,61,23,0,64,0,0,0,0,0,0]
[1179,{"$f":"IF(ISNA(MATCH(L1185,'GARP Model'!$D$23:$D$32,0)),0,1)","v":0},"2026-02-28",1179,-89,"","","",12262,1,"A","ASTE","ASTEC INDUSTRIES INC",14,"NASDAQ",20,"Industrials",2010,"Capital Goods",201060,"Machinery",20106010,"Construction Machinery & Heavy Transportation Equipment",2025,3,62.09,22.876000000000001,1420.37084,"","","",2,2,1,5,5,3,15,56,79,50,37,39,40,21,24,41,21,24,99,79,18,47,56,71,35,52,50,91,37,41,42,38,40,51,41,18,68,82,58,32,42,26,63,40,37,24,87,92,24,29,12,4,27,31,92,79,73,52,81,82,69,61,83,77,58,47,83,77,59,67,83,100,68,39,47,70,100,100,68,19,67,43,66,61,78,57,37,62,75,96,27,17,80,100,55,0,0,0,0,0,0]
[1185,{"$f":"IF(ISNA(MATCH(L1191,'GARP Model'!$D$23:$D$32,0)),0,1)","v":0},"2026-02-28",1185,46,"","","",28367,1,"A","IRTC","IRHYTHM HOLDINGS INC",14,"NASDAQ",35,"Health Care",3510,"Health Care Equipment & Services",351010,"Health Care Equipment & Supplies",35101010,"Health Care Equipment",2025,4,133.75,32.296999999999997,4319.7237500000001,"","","",2,2,2,4,3,3,0,7,24,25,21,21,27,22,22,28,22,21,77,"",70,13,15,13,"","",20,9,"","","",22,72,"",60,48,22,74,21,10,27,84,83,89,75,63,19,20,84,25,67,37,12,86,16,83,84,82,63,57,29,18,90,94,69,11,97,86,11,21,11,100,10,13,12,"",63,"",67,"",22,11,47,67,79,33,37,62,75,96,19,11,77,0,72,0,0,0,0,0,0]
[1188,{"$f":"IF(ISNA(MATCH(L1194,'GARP Model'!$D$23:$D$32,0)),0,1)","v":0},"2026-02-28",1188,-430,"","","",12945,1,"A","PLXS","PLEXUS CORP",14,"NASDAQ",45,"Information Technology",4520,"Technology Hardware & Equipment",452030,"Electronic Equipment, Instruments & Components",45203020,"Electronic Manufacturing Services",2026,1,194.13,26.713000000000001,5185.7946899999997,"","","",2,2,3,5,4,1,0,38,79,51,48,50,30,45,39,33,50,41,74,42,58,56,72,76,68,30,27,31,"","","",65,100,84,68,"",47,33,23,50,51,15,36,18,61,23,92,94,15,80,94,6,23,9,90,40,50,40,44,53,48,73,73,61,41,67,71,48,39,82,89,100,25,28,29,24,100,100,44,65,51,93,85,77,78,19,100,98,90,86,32,71,80,0,9,0,100,100,0,0,100]
[1190,{"$f":"IF(ISNA(MATCH(L1196,'GARP Model'!$D$23:$D$32,0)),0,1)","v":0},"2026-02-28",1190,-89,"","","",61420,1,"A","POOL","POOL CORP",14,"NASDAQ",25,"Consumer Discretionary",2550,"Consumer Discretionary Distribution & Retail",255010,"Distributors",25501010,"Distributors",2025,4,227.18,36.578000000000003,8309.7900399999999,"","","",2,3,2,1,1,3,44,18,67,64,74,79,45,72,65,45,75,69,38,68,67,73,86,66,83,83,48,63,48,60,77,80,25,58,43,"",70,31,29,67,29,9,55,35,32,57,55,30,9,7,18,8,38,33,87,33,26,35,47,37,53,91,26,11,6,94,53,12,8,37,33,100,32,26,30,69,26,38,6,35,15,25,15,15,15,85,37,9,12,9,83,56,16,0,34,0,0,0,100,0,0]
[1195,{"$f":"IF(ISNA(MATCH(L1201,'GARP Model'!$D$23:$D$32,0)),0,1)","v":0},"2026-02-28",1195,50,"","","",30384,1,"A","FR","FIRST INDL REALTY TRUST INC",11,"NYSE",60,"Real Estate",6010,"Equity Real Estate Investment Trusts (REITs)",601025,"Industrial REITs",60102510,"Industrial REITs",2025,4,63.14,132.47,8364.1558000000005,"","","",2,1,3,5,4,3,55,42,11,47,54,57,56,52,53,54,52,52,32,63,63,29,54,40,13,67,99,55,84,79,74,37,100,11,34,"",99,49,49,"","","","","","","",90,85,43,"","","",91,62,"",78,26,78,83,23,77,68,31,28,30,57,39,36,35,82,90,100,"","","",90,26,100,98,"",69,45,63,52,56,53,80,89,54,70,30,57,57,100,31,0,0,0,0,0,0]
[1200,{"$f":"IF(ISNA(MATCH(L1206,'GARP Model'!$D$23:$D$32,0)),0,1)","v":0},"2026-02-28",1200,-74,"","","",32608,3,"A","OSW","ONESPAWORLD HOLDINGS LTD",14,"NASDAQ",25,"Consumer Discretionary",2530,"Consumer Services",253020,"Diversified Consumer Services",25302020,"Specialized Consumer Services",2025,3,21.53,101.952,2195.0265599999998,"","","",2,2,1,1,2,3,18,34,56,50,42,28,39,40,31,43,44,32,73,21,35,45,11,7,62,"",46,15,99,"",97,71,100,81,61,"",64,31,29,29,46,31,44,45,67,14,45,37,23,12,62,93,38,11,28,48,76,87,54,79,89,89,81,75,97,72,74,61,95,10,19,100,67,88,92,"",26,"",8,"",24,13,19,46,32,23,37,62,90,86,49,33,29,0,48,0,0,0,0,0,0]
[1206,{"$f":"IF(ISNA(MATCH(L1212,'GARP Model'!$D$23:$D$32,0)),0,1)","v":0},"2026-02-28",1206,61,"","","",51708,1,"A","CHYM","CHIME FINANCIAL INC",14,"NASDAQ",40,"Financials",4020,"Financial Services",402010,"Financial Services",40201060,"Transaction & Payment Processing Services",2025,3,22.13,374.41800000000001,8285.8703399999995,"","","",2,2,3,2,2,3,0,23,40,7,5,4,27,28,29,28,29,31,"","","","","","","","","","","","","",12,61,"",85,84,65,"","","","",86,84,"","","","","",99,"","","",6,97,"","","","","","","",2,"","","",4,"","","","","",100,39,48,49,"",48,"","","",67,95,8,"","","",80,31,"","",99,"","",0,99,0,0,0,0,0,0]
[1211,{"$f":"IF(ISNA(MATCH(L1217,'GARP Model'!$D$23:$D$32,0)),0,1)","v":0},"2026-02-28",1211,-45,"","","",183283,1,"A","ADUS","ADDUS HOMECARE CORP",14,"NASDAQ",35,"Health Care",3510,"Health Care Equipment & Services",351020,"Health Care Providers & Services",35102015,"Health Care Services",2025,3,103.53,18.483000000000001,1913.5449900000001,"","","",3,1,1,4,1,3,0,64,74,61,54,53,53,59,57,60,67,65,57,17,33,20,32,36,50,45,65,71,"","","",25,0,72,58,"",81,39,62,58,79,55,39,20,83,88,43,46,25,62,56,68,32,36,0,27,51,46,43,51,62,76,38,64,52,51,54,59,45,84,98,100,74,70,78,49,74,17,56,55,43,17,28,24,22,70,37,31,12,26,41,69,24,100,15,0,0,0,0,0,0]
[1217,{"$f":"IF(ISNA(MATCH(L1223,'GARP Model'!$D$23:$D$32,0)),0,1)","v":0},"2026-02-28",1217,-10,"","","",39477,1,"A","TYRA","TYRA BIOSCIENCES INC",14,"NASDAQ",35,"Health Care",3520,"Pharmaceuticals, Biotechnology & Life Sciences",352010,"Biotechnology",35201010,"Biotechnology",2025,3,33.31,53.317999999999998,1776.0225800000001,"","",1,1,2,2,3,5,5,0,20,3,13,15,16,12,14,14,10,11,12,24,"","","","","","","",88,71,"","","",23,100,"",86,"","","","",53,"",97,97,"","","",21,28,68,"","","","","",0,"","","","","","",4,3,5,"",8,11,16,"",22,46,100,91,26,16,"",26,"",33,"",44,98,97,95,92,10,100,100,99,99,5,96,92,0,51,100,0,0,0,0,100]
[1222,{"$f":"IF(ISNA(MATCH(L1228,'GARP Model'!$D$23:$D$32,0)),0,1)","v":0},"2026-02-28",1222,59,"","","",37646,1,"A","SHLS","SHOALS TECHNOLOGIES GRP INC",14,"NASDAQ",20,"Industrials",2010,"Capital Goods",201040,"Electrical Equipment",20104010,"Electrical Components & Equipment",2025,3,5.93,167.386,992.59897999999998,"","","",2,1,3,1,4,3,0,67,52,50,78,65,27,66,55,27,70,58,44,10,"",63,26,"",37,6,27,5,"","","",38,40,63,45,"",22,8,"",56,"",50,54,10,63,"",0,0,17,85,97,"",59,45,53,11,41,"",12,41,"",65,42,65,"",41,48,7,"",26,4,100,12,47,58,9,26,2,8,86,8,17,89,93,91,97,80,98,97,99,5,15,92,0,59,0,0,0,0,0,100]
[1227,{"$f":"IF(ISNA(MATCH(L1233,'GARP Model'!$D$23:$D$32,0)),0,1)","v":0},"2026-02-28",1227,-7,"","","",25274,1,"A","OLED","UNIVERSAL DISPLAY CORP",14,"NASDAQ",45,"Information Technology",4530,"Semiconductors & Semiconductor Equipment",453010,"Semiconductors & Semiconductor Equipment",45301020,"Semiconductors",2025,3,106.69,47.542000000000002,5072.2559799999999,"","","",2,2,1,2,1,3,35,45,21,60,62,61,40,40,44,49,48,52,38,40,39,69,64,42,49,63,31,31,74,82,91,43,65,97,82,72,19,25,14,47,44,91,93,88,16,91,97,96,11,4,15,5,92,93,91,36,36,64,43,39,43,91,25,36,63,70,35,42,43,84,94,100,30,35,38,73,26,17,79,23,25,8,13,18,18,74,7,31,54,48,55,45,17,0,74,0,0,0,0,0,0]
[1232,{"$f":"IF(ISNA(MATCH(L1238,'GARP Model'!$D$23:$D$32,0)),0,1)","v":0},"2026-02-28",1232,22,"","","",36967,1,"A","BNL","BROADSTONE NET LEASE INC",11,"NYSE",60,"Real Estate",6010,"Equity Real Estate Investment Trusts (REITs)",601010,"Diversified REITs",60101010,"Diversified REITs",2025,3,19.39,189.21600000000001,3668.89824,"","","",2,2,2,3,4,3,88,79,11,43,58,56,70,71,71,59,63,63,22,59,57,52,55,63,4,"",99,55,43,62,90,37,44,"",20,"",99,49,49,"","","","","","","",60,72,41,"","","","",56,"","","","",74,16,56,45,31,41,41,34,38,51,42,87,97,100,"","","","",42,"",75,"",70,43,59,47,68,49,80,62,31,48,34,27,72,0,75,0,0,0,0,0,0]
[1237,{"$f":"IF(ISNA(MATCH(L1243,'GARP Model'!$D$23:$D$32,0)),0,1)","v":0},"2026-02-28",1237,4,"","","",2986,1,"A","CPK","CHESAPEAKE UTILITIES CORP",11,"NYSE",55,"Utilities",5510,"Utilities",551020,"Gas Utilities",55102010,"Gas Utilities",2025,3,135.97,23.545999999999999,3201.5496199999998,"","","",2,1,4,2,4,3,40,57,26,58,52,53,11,20,21,12,21,22,61,25,43,22,37,33,33,46,4,2,82,86,82,15,32,26,24,"",3,1,4,66,77,7,4,20,15,65,32,49,31,78,68,38,85,45,18,42,73,60,46,80,65,60,58,41,36,53,56,46,32,89,95,100,2,4,5,65,26,40,24,31,92,36,45,24,50,61,80,89,54,86,44,42,56,100,85,0,0,0,0,0,0]
[1242,{"$f":"IF(ISNA(MATCH(L1248,'GARP Model'!$D$23:$D$32,0)),0,1)","v":0},"2026-02-28",1242,85,"","","",5870,1,"A","IDA","IDACORP INC",11,"NYSE",55,"Utilities",5510,"Utilities",551010,"Electric Utilities",55101010,"Electric Utilities",2025,4,143.97,54.859000000000002,7898.0502299999998,"",1,"",2,1,4,2,3,3,49,55,23,58,56,57,10,11,16,11,13,18,53,36,60,74,62,66,28,41,4,3,63,59,53,17,100,17,26,"",2,0,1,93,89,12,11,65,79,32,82,93,34,79,6,12,80,38,48,76,65,26,83,68,30,58,49,46,35,56,54,55,40,97,99,100,3,3,5,64,49,35,56,33,72,40,43,41,67,42,80,62,54,86,50,18,73,0,27,0,0,0,0,0,0]
[1248,{"$f":"IF(ISNA(MATCH(L1254,'GARP Model'!$D$23:$D$32,0)),0,1)","v":0},"2026-02-28",1248,32,"","","",183388,1,"A","STWD","STARWOOD PROPERTY TRUST INC",11,"NYSE",40,"Financials",4020,"Financial Services",402040,"Mortgage Real Estate Investment Trusts (REITs)",40204010,"Mortgage REITs",2025,3,17.809999999999999,370.31599999999997,6595.3279599999996,"","","",2,2,1,2,2,3,96,90,10,69,79,83,86,62,51,42,34,33,40,72,71,90,31,44,4,49,99,55,65,47,42,9,68,"",2,"",99,49,49,"","","","","","","",90,49,22,"","","","",85,"","","","",70,91,91,33,47,43,40,40,47,31,28,96,82,100,"","","",90,37,100,50,"",70,35,28,25,44,56,80,62,31,48,69,31,45,100,85,0,0,0,0,0,0]
[1253,{"$f":"IF(ISNA(MATCH(L1259,'GARP Model'!$D$23:$D$32,0)),0,1)","v":0},"2026-02-28",1253,3,"","","",34118,1,"A","KOD","KODIAK SCIENCES INC",14,"NASDAQ",35,"Health Care",3520,"Pharmaceuticals, Biotechnology & Life Sciences",352010,"Biotechnology",35201010,"Biotechnology",2025,3,26.8,52.999000000000002,1420.3732,"","",2,1,1,4,2,5,5,0,5,3,6,3,2,8,4,3,8,3,2,33,"",87,"","","","","",77,95,"","","",25,100,"",56,"","","","",89,86,58,42,"","","",38,17,98,"","","","","",0,"","","","","","",0,0,0,0,0,0,0,0,6,4,100,98,29,3,"",51,"",8,"",54,83,98,98,97,10,80,98,97,96,1,25,97,0,97,100,0,0,0,0,100]
[1254,{"$f":"IF(ISNA(MATCH(L1260,'GARP Model'!$D$23:$D$32,0)),0,1)","v":0},"2026-02-28",1254,24,"","","",180466,1,"A","JBTM","JBT MAREL CORP",11,"NYSE",20,"Industrials",2010,"Capital Goods",201060,"Machinery",20106020,"Industrial Machinery & Supplies & Components",2025,3,154,51.970999999999997,8003.5339999999997,"","",1,3,1,1,4,3,3,3,64,46,23,35,37,42,32,36,42,32,36,6,92,91,3,24,36,"","",32,17,94,78,62,41,5,41,39,28,48,80,26,93,91,6,12,87,71,46,13,20,59,4,11,7,51,52,74,33,69,46,68,88,81,24,10,17,8,24,14,18,8,57,56,5,80,73,70,62,71,20,43,"",61,82,54,71,62,40,100,89,90,86,80,33,64,100,72,0,0,0,0,0,0]
[1259,{"$f":"IF(ISNA(MATCH(L1265,'GARP Model'!$D$23:$D$32,0)),0,1)","v":0},"2026-02-28",1259,110,"","","",36726,1,"A","VITL","VITAL FARMS INC",14,"NASDAQ",30,"Consumer Staples",3020,"Food, Beverage & Tobacco",302020,"Food Products",30202030,"Packaged Foods & Meats",2025,3,21.09,44.773000000000003,944.26256999999998,"","","",2,2,1,1,2,3,0,46,80,75,57,47,19,36,32,17,42,34,61,0,5,15,9,8,83,"",2,1,"","","",20,65,85,80,"",18,8,11,22,39,66,64,53,72,53,48,54,5,14,63,32,42,48,30,50,83,76,45,87,74,93,24,91,83,83,40,87,76,30,48,100,3,12,10,"",30,"",10,"",4,15,10,12,9,31,7,9,12,9,80,64,10,0,55,0,0,0,100,0,0]
[1266,{"$f":"IF(ISNA(MATCH(L1272,'GARP Model'!$D$23:$D$32,0)),0,1)","v":0},"2026-02-28",1266,-33,"","","",266214,1,"A","CNS","COHEN & STEERS INC",11,"NYSE",40,"Financials",4020,"Financial Services",402030,"Capital Markets",40203010,"Asset Management & Custody Banks",2025,3,66.87,51.003999999999998,3410.6374799999999,"","","",1,2,4,1,1,3,71,21,23,64,62,65,17,35,43,16,38,47,61,58,59,33,82,69,44,42,58,96,63,17,19,56,57,84,64,"",66,25,26,"","","","","","","",54,51,0,"","","",82,41,"",61,24,28,70,21,33,98,75,4,7,93,68,9,9,22,27,100,51,4,7,50,26,100,32,57,91,24,18,14,15,70,37,31,12,2,72,68,16,0,33,0,0,0,0,0,0]
[1269,{"$f":"IF(ISNA(MATCH(L1275,'GARP Model'!$D$23:$D$32,0)),0,1)","v":0},"2026-02-28",1269,-50,"","","",32244,1,"A","NEXT","NEXTDECADE CORP",14,"NASDAQ",10,"Energy",1010,"Energy",101020,"Oil, Gas & Consumable Fuels",10102040,"Oil & Gas Storage & Transportation",2025,3,5.39,264.39999999999998,1425.116,"","","",1,3,1,1,1,3,0,14,3,6,8,11,0,0,0,0,0,1,64,"",96,"","","","","",0,0,2,5,8,0,100,"",1,"","","","",98,98,11,4,"","","",12,19,19,"","","","","",0,"","","","","","",22,81,90,85,1,2,2,2,13,15,100,0,0,0,"",26,"","","",65,17,0,5,8,74,37,9,54,48,98,19,10,100,26,0,0,0,0,0,0]
[1274,{"$f":"IF(ISNA(MATCH(L1280,'GARP Model'!$D$23:$D$32,0)),0,1)","v":0},"2026-02-28",1274,71,"","","",28717,1,"A","INOD","INNODATA INC",14,"NASDAQ",20,"Industrials",2020,"Commercial & Professional Services",202020,"Professional Services",20202020,"Research & Consulting Services",2025,3,44.17,31.859000000000002,1407.2120299999999,"",1,"",3,1,5,3,2,1,0,10,26,42,34,33,38,29,28,44,30,29,79,"",0,4,3,5,94,"",4,2,"","","",20,61,96,74,"",30,90,15,0,3,73,65,62,11,31,12,18,83,62,56,68,60,53,0,81,92,84,82,82,73,98,34,97,94,95,20,96,89,7,14,100,18,26,26,"",62,"",17,"",6,6,33,69,82,0,37,31,54,70,20,7,69,0,22,0,100,0,0,0,0]
[1279,{"$f":"IF(ISNA(MATCH(L1285,'GARP Model'!$D$23:$D$32,0)),0,1)","v":0},"2026-02-28",1279,38,"","","",61356,1,"A","NOVT","NOVANTA INC",14,"NASDAQ",45,"Information Technology",4520,"Technology Hardware & Equipment",452030,"Electronic Equipment, Instruments & Components",45203010,"Electronic Equipment & Instruments",2025,3,134.43,35.845999999999997,4818.7777800000003,"","","",2,2,2,3,1,3,0,22,26,34,39,38,33,38,39,36,40,41,34,61,62,57,57,47,42,35,58,77,"","","",53,4,53,53,49,63,73,54,45,31,50,62,55,38,14,90,95,48,10,65,29,57,59,70,35,46,51,54,54,64,61,34,30,27,44,39,33,31,85,92,100,86,86,85,45,26,100,78,8,62,45,46,40,29,78,80,62,31,9,51,76,27,0,21,0,0,0,0,0,0]
[1285,{"$f":"IF(ISNA(MATCH(L1291,'GARP Model'!$D$23:$D$32,0)),0,1)","v":0},"2026-02-28",1285,15,"","","",45265,1,"A","LOAR","LOAR HOLDINGS INC",11,"NYSE",20,"Industrials",2010,"Capital Goods",201010,"Aerospace & Defense",20101010,"Aerospace & Defense",2025,3,70.790000000000006,93.622,6627.5013799999997,"","","",2,1,4,4,2,3,0,23,10,33,33,33,30,29,30,32,30,31,93,"","",14,"","",36,"",63,"","","","",13,3,68,61,24,52,"","","","",82,87,69,"","",98,99,33,92,"","",82,68,77,57,"","",67,"","",66,80,"","",40,71,"","","","",100,88,89,89,"",26,"",90,"",57,15,23,6,25,"",7,9,2,9,46,53,"",0,44,0,0,0,0,0,0]
[1290,{"$f":"IF(ISNA(MATCH(L1296,'GARP Model'!$D$23:$D$32,0)),0,1)","v":0},"2026-02-28",1290,-2,"","","",34970,3,"A","AHR","AMERICAN HEALTHCARE REIT INC",11,"NYSE",60,"Real Estate",6010,"Equity Real Estate Investment Trusts (REITs)",601050,"Health Care REITs",60105010,"Health Care REITs",2025,3,52.24,171.03100000000001,8934.6594399999994,"","","",2,1,4,1,4,3,38,40,30,30,29,29,42,37,39,43,38,39,91,"","",38,"","",3,12,99,"",96,"","",10,47,"",43,"",99,"","","","","","","","","",78,88,59,"","","","",6,"","","","",41,"","",33,70,"","",30,69,"","","","",100,"","","",41,26,11,21,2,46,41,65,70,86,"",37,62,90,99,26,7,88,0,16,0,0,0,0,0,0]
[1296,{"$f":"IF(ISNA(MATCH(L1302,'GARP Model'!$D$23:$D$32,0)),0,1)","v":0},"2026-02-28",1296,-113,"","","",196159,1,"A","PBF","PBF ENERGY INC",11,"NYSE",10,"Energy",1010,"Energy",101020,"Oil, Gas & Consumable Fuels",10102030,"Oil & Gas Refining & Marketing",2025,4,35.6,116.937,4162.9571999999998,"",2,"",1,3,1,3,3,3,61,95,99,16,99,98,3,82,95,5,75,93,79,86,46,92,95,30,"","",18,15,58,97,92,36,100,"",21,"",49,21,21,77,77,6,21,39,32,36,16,19,21,19,14,87,13,4,37,36,18,78,45,16,82,24,80,3,87,23,81,4,95,15,16,100,33,46,53,13,37,100,63,"",18,30,83,87,63,75,80,98,99,96,10,87,63,0,97,0,0,0,0,0,100]
[1301,{"$f":"IF(ISNA(MATCH(L1307,'GARP Model'!$D$23:$D$32,0)),0,1)","v":0},"2026-02-28",1301,28,"","","",4605,1,"A","FRT","FEDERAL REALTY INVESTMENT TR",11,"NYSE",60,"Real Estate",6010,"Equity Real Estate Investment Trusts (REITs)",601070,"Retail REITs",60107010,"Retail REITs",2025,4,108.77,86.266000000000005,9383.1528199999993,"","","",2,1,3,3,3,3,77,45,13,60,53,54,64,63,64,55,57,57,71,45,23,49,52,51,14,46,99,55,54,45,41,20,100,"",24,"",99,49,49,"","","","","","","",84,88,31,"","","","",46,"","","","",26,40,85,68,67,47,63,69,72,54,65,84,87,100,"","","",81,37,29,99,11,61,46,50,38,38,65,100,89,54,26,46,69,42,0,30,0,0,0,0,0,0]
[1305,{"$f":"IF(ISNA(MATCH(L1311,'GARP Model'!$D$23:$D$32,0)),0,1)","v":0},"2026-02-28",1305,35,"","","",20645,1,"A","ARDX","ARDELYX INC",14,"NASDAQ",35,"Health Care",3520,"Pharmaceuticals, Biotechnology & Life Sciences",352010,"Biotechnology",35201010,"Biotechnology",2025,3,6.55,242.97200000000001,1591.4666,"","","",1,2,1,2,5,3,0,12,35,17,17,12,15,12,9,14,10,8,61,"",61,5,0,0,"","",67,18,"","","",21,100,"",66,59,82,18,62,6,32,83,82,81,98,5,14,20,21,12,93,10,10,4,27,82,99,98,95,99,99,12,90,99,96,9,85,97,86,1,8,100,59,75,70,"",34,"",18,"",32,84,91,64,79,12,80,89,90,96,10,90,78,0,22,100,0,0,0,0,100]
[1311,{"$f":"IF(ISNA(MATCH(L1317,'GARP Model'!$D$23:$D$32,0)),0,1)","v":0},"2026-02-28",1311,-4,"","","",45551,1,"A","TTAN","SERVICETITAN INC",14,"NASDAQ",45,"Information Technology",4510,"Software & Services",451030,"Software",45103010,"Application Software",2025,3,72.39,93.634,6778.1652599999998,"","","",2,1,3,5,1,3,0,30,21,18,18,18,29,28,29,31,29,31,"","","","","","","","","","","","","",11,3,"",74,80,80,"","","","",83,81,"","","","","",90,"","","",9,90,0,"","","","","","",12,"","","",16,"","","","","",100,96,97,98,2,100,100,81,"",23,12,4,4,16,"",37,9,12,26,88,25,"",0,29,0,0,0,0,0,0]
[1316,{"$f":"IF(ISNA(MATCH(L1322,'GARP Model'!$D$23:$D$32,0)),0,1)","v":0},"2026-02-28",1316,16,"","","",9324,1,"A","HTO","H2O AMERICA",14,"NASDAQ",55,"Utilities",5510,"Utilities",551040,"Water Utilities",55104010,"Water Utilities",2025,3,53.79,35.805,1925.9509499999999,"","","",2,1,3,2,2,3,64,79,30,70,66,62,5,8,8,9,12,12,61,17,31,32,37,57,27,47,6,4,75,70,65,10,32,17,12,"",2,2,2,77,74,"",5,81,59,45,90,92,31,"","","",86,46,0,46,68,59,51,72,64,51,55,59,51,47,54,63,51,93,98,100,3,7,7,72,26,30,19,37,76,63,47,20,49,84,100,89,54,86,68,45,60,100,61,0,0,0,0,0,0]
[1317,{"$f":"IF(ISNA(MATCH(L1323,'GARP Model'!$D$23:$D$32,0)),0,1)","v":0},"2026-02-28",1317,-45,"","","",37925,1,"A","SANA","SANA BIOTCHNOLOGY INC",14,"NASDAQ",35,"Health Care",3520,"Pharmaceuticals, Biotechnology & Life Sciences",352010,"Biotechnology",35201010,"Biotechnology",2025,3,4.21,262.26400000000001,1104.1314400000001,"","","",1,1,3,3,3,3,0,24,3,3,2,1,5,1,1,4,0,0,62,"","","","","","","",81,94,"","","",7,12,"",75,"","","","",85,"",85,83,"","","",37,52,91,"","","","","",0,"","","","","","",1,64,4,"",2,11,4,"",11,13,100,98,26,17,"",26,"",58,"",82,17,46,90,76,69,37,62,90,86,25,13,59,0,24,0,0,0,0,0,0]
[1322,{"$f":"IF(ISNA(MATCH(L1328,'GARP Model'!$D$23:$D$32,0)),0,1)","v":0},"2026-02-28",1322,0,"","","",27670,1,"A","PTGX","PROTAGONIST THERAPEUTICS INC",14,"NASDAQ",35,"Health Care",3520,"Pharmaceuticals, Biotechnology & Life Sciences",352010,"Biotechnology",35201010,"Biotechnology",2025,3,92.08,62.447000000000003,5750.1197599999996,"","","",2,1,2,2,4,3,0,14,8,32,33,28,28,28,25,31,30,24,13,"",29,97,1,2,44,"",71,30,"","","",21,100,87,80,88,75,81,75,14,12,95,95,19,34,93,16,15,35,62,56,68,30,7,0,2,98,98,1,98,98,79,2,98,96,47,7,94,91,2,15,100,16,36,40,"",49,"",21,"",70,41,84,82,93,2,37,89,75,86,12,5,93,0,93,0,0,0,0,0,0]
[1327,{"$f":"IF(ISNA(MATCH(L1333,'GARP Model'!$D$23:$D$32,0)),0,1)","v":0},"2026-02-28",1327,122,"","","",37664,2,"A","PCT","PURECYCLE TECHNOLOGIES INC",14,"NASDAQ",15,"Materials",1510,"Materials",151010,"Chemicals",15101010,"Commodity Chemicals",2025,3,6.31,180.191,1137.00521,"",1,"",1,2,2,2,3,3,0,42,4,4,4,4,3,2,1,4,1,1,51,"","","","","","","",16,99,"","","",1,100,"",41,89,0,"","",79,"",66,55,"","","",24,26,74,"","","",1,1,99,"","","","","","",8,90,8,"",5,94,7,"",19,14,100,17,1,1,"",26,"",88,"",20,11,6,66,44,57,37,31,54,48,82,11,19,0,88,0,0,0,0,0,0]
[1333,{"$f":"IF(ISNA(MATCH(L1339,'GARP Model'!$D$23:$D$32,0)),0,1)","v":0},"2026-02-28",1333,-28,"","","",12140,1,"A","NNN","NNN REIT INC",11,"NYSE",60,"Real Estate",6010,"Equity Real Estate Investment Trusts (REITs)",601070,"Retail REITs",60107010,"Retail REITs",2025,4,45.32,189.93700000000001,8607.9448400000001,"","","",2,1,2,4,3,3,85,60,10,62,63,62,70,70,71,62,64,65,42,39,49,47,50,66,8,43,99,55,58,52,41,18,100,"",22,"",99,49,49,"","","","","","","",95,88,37,"","","","",77,"","","","",15,32,58,66,40,52,53,55,49,58,54,89,96,100,"","","",82,71,25,48,8,76,42,38,31,56,64,80,62,31,48,60,27,60,100,71,0,0,0,0,0,0]
[1338,{"$f":"IF(ISNA(MATCH(L1344,'GARP Model'!$D$23:$D$32,0)),0,1)","v":0},"2026-02-28",1338,29,"","","",6547,1,"A","SR","SPIRE INC",11,"NYSE",55,"Utilities",5510,"Utilities",551020,"Gas Utilities",55102010,"Gas Utilities",2026,1,91.61,59.094999999999999,5413.6929499999997,"","","",2,1,2,3,4,3,69,70,33,67,65,65,12,15,10,16,19,15,57,43,30,63,68,59,22,36,12,20,62,63,57,19,37,16,12,"",5,4,55,62,64,5,3,13,93,51,85,95,32,27,89,71,80,38,41,67,70,44,75,75,49,52,55,49,53,52,58,53,56,93,97,100,7,7,7,64,49,21,71,46,85,30,56,40,66,45,80,98,75,86,28,26,71,0,45,0,0,0,0,0,0]
[1344,{"$f":"IF(ISNA(MATCH(L1350,'GARP Model'!$D$23:$D$32,0)),0,1)","v":0},"2026-02-28",1344,-23,"","","",37848,1,"A","TERN","TERNS PHARMACEUTIC INC",14,"NASDAQ",35,"Health Care",3520,"Pharmaceuticals, Biotechnology & Life Sciences",352020,"Pharmaceuticals",35202010,"Pharmaceuticals",2025,3,42.12,87.510999999999996,3685.9633199999998,"","","",1,1,2,4,4,3,0,11,3,20,21,23,19,19,19,17,17,18,37,"","","",99,"","","",99,61,"","","",28,100,"",78,"","","","",26,"",98,98,"","","",20,25,57,"","","","","",0,"","","","","","",6,9,39,"",10,17,50,"",21,48,100,"",92,72,"",48,"",62,"",21,99,99,99,99,6,80,98,97,96,1,1,99,0,0,100,100,100,0,0,100]
[1348,{"$f":"IF(ISNA(MATCH(L1354,'GARP Model'!$D$23:$D$32,0)),0,1)","v":0},"2026-02-28",1348,8,"","","",36767,1,"A","NRIX","NURIX THERAPEUTICS INC",14,"NASDAQ",35,"Health Care",3520,"Pharmaceuticals, Biotechnology & Life Sciences",352010,"Biotechnology",35201010,"Biotechnology",2025,4,15.97,101.807,1625.85779,"","","",1,2,1,2,5,3,0,43,11,5,5,6,4,5,6,1,2,2,22,"",96,5,9,4,"","",41,15,"","","",4,100,"",96,93,10,95,94,16,22,90,89,72,66,99,13,20,30,62,56,68,3,2,0,95,96,90,96,97,92,4,7,79,1,7,13,79,5,17,28,100,19,31,23,"",71,"",41,"",77,85,82,66,24,44,80,62,54,26,26,95,14,0,64,0,0,0,0,0,0]
[1353,{"$f":"IF(ISNA(MATCH(L1359,'GARP Model'!$D$23:$D$32,0)),0,1)","v":0},"2026-02-28",1353,-7,"","","",61732,1,"A","MSM","MSC INDUSTRIAL DIRECT  -CL A",11,"NYSE",20,"Industrials",2010,"Capital Goods",201070,"Trading Companies & Distributors",20107010,"Trading Companies & Distributors",2026,1,93.84,55.792000000000002,5235.5212799999999,"",2,"",1,1,2,4,3,3,71,35,73,55,70,71,40,71,66,43,77,72,33,67,71,70,73,77,15,"",25,39,41,22,13,51,16,73,51,"",47,27,21,75,66,18,41,37,90,83,65,67,31,24,76,39,34,52,66,23,29,24,43,40,38,85,29,21,25,76,35,25,24,61,72,100,37,35,41,"",67,"",66,"",59,35,31,40,53,57,37,31,31,70,63,24,57,0,89,0,0,0,0,0,0]
[1359,{"$f":"IF(ISNA(MATCH(L1365,'GARP Model'!$D$23:$D$32,0)),0,1)","v":0},"2026-02-28",1359,6,"","","",26167,1,"A","BWIN","BALDWIN INSURANCE GROUP INC",14,"NASDAQ",40,"Financials",4030,"Insurance",403010,"Insurance",40301010,"Insurance Brokers",2025,3,23.23,71.417000000000002,1659.0169100000001,"","","",1,2,1,2,1,3,0,48,59,22,18,21,14,26,28,18,26,27,65,"",85,34,20,2,"","",55,28,"","","",36,6,7,12,"",44,24,27,50,8,33,19,"","","",75,12,16,"","","",40,27,"",41,59,52,59,41,41,26,59,46,54,22,66,46,49,83,62,100,80,88,89,21,53,100,59,"",17,31,2,1,3,82,37,9,12,26,98,52,5,0,86,0,0,0,100,0,0]
[1364,{"$f":"IF(ISNA(MATCH(L1370,'GARP Model'!$D$23:$D$32,0)),0,1)","v":0},"2026-02-28",1364,67,"","","",10917,1,"A","UMH","UMH PROPERTIES INC",11,"NYSE",60,"Real Estate",6010,"Equity Real Estate Investment Trusts (REITs)",601060,"Residential REITs",60106020,"Single-Family Residential REITs",2025,3,15.08,85.197000000000003,1284.7707600000001,"","","",2,1,2,2,4,3,87,75,20,40,36,41,65,60,60,58,56,55,40,7,17,50,36,30,2,17,99,55,85,71,66,8,100,"",24,"",99,49,49,"","","","","","","",33,38,43,"","","","",35,"","","","",21,70,90,46,42,62,64,34,48,61,62,71,79,100,"","","",74,"",100,"",7,92,53,30,18,31,66,80,31,12,26,80,55,38,0,86,0,0,0,0,0,0]
[1369,{"$f":"IF(ISNA(MATCH(L1375,'GARP Model'!$D$23:$D$32,0)),0,1)","v":0},"2026-02-28",1369,17,"","","",35714,1,"A","BEAM","BEAM THERAPEUTICS INC",14,"NASDAQ",35,"Health Care",3520,"Pharmaceuticals, Biotechnology & Life Sciences",352010,"Biotechnology",35201010,"Biotechnology",2025,4,28.46,101.749,2895.7765399999998,"","","",1,2,1,3,3,3,0,53,12,19,9,6,6,5,8,2,2,4,"","",60,2,27,0,"","",51,90,"","","",3,100,"",97,92,16,98,100,33,4,95,95,53,49,47,31,15,1,"",56,68,3,2,0,98,95,100,98,97,0,17,97,93,97,20,95,91,93,12,23,100,57,18,8,"",32,"",99,"",39,55,78,63,48,87,80,89,90,96,18,88,34,0,29,0,0,0,0,0,0]
[1375,{"$f":"IF(ISNA(MATCH(L1381,'GARP Model'!$D$23:$D$32,0)),0,1)","v":0},"2026-02-28",1375,-45,"","","",61463,1,"A","LGN","LEGENCE CORP",14,"NASDAQ",20,"Industrials",2010,"Capital Goods",201030,"Construction & Engineering",20103010,"Construction & Engineering",2025,3,58.05,58.511000000000003,3396.5635499999999,"","","",1,1,3,2,3,3,0,14,69,23,25,25,49,53,54,49,54,56,"","","","","","","","","","","","","",2,15,29,39,"",57,"","","","",50,36,"","","","","",77,"","","",28,19,3,"","","","","","",23,"","","",17,"","","","","",100,75,81,82,"","","","","",37,63,"","","","",80,"","","","","","",0,21,0,0,0,0,0,0]
[1380,{"$f":"IF(ISNA(MATCH(L1386,'GARP Model'!$D$23:$D$32,0)),0,1)","v":0},"2026-02-28",1380,75,"","","",30547,1,"A","SEI","SOLARIS ENRGY INFRASTRUCTURE",11,"NYSE",10,"Energy",1010,"Energy",101010,"Energy Equipment & Services",10101020,"Oil & Gas Equipment & Services",2025,3,49.63,48.654000000000003,2414.6980199999998,"","","",1,1,5,3,3,1,19,31,27,36,35,34,4,13,17,4,13,17,91,14,14,3,13,6,27,"",0,0,96,"","",11,43,53,42,"",1,0,0,5,18,68,60,20,66,4,17,25,58,86,29,31,82,56,13,88,85,45,92,93,40,53,66,35,74,46,57,51,75,49,54,100,1,3,6,"",43,"",42,"",2,41,88,93,91,3,37,62,75,70,7,9,91,0,8,0,0,100,0,0,0]
[1383,{"$f":"IF(ISNA(MATCH(L1389,'GARP Model'!$D$23:$D$32,0)),0,1)","v":0},"2026-02-28",1383,-74,"","","",17199,1,"A","BLFS","BIOLIFE SOLUTIONS INC",14,"NASDAQ",35,"Health Care",3520,"Pharmaceuticals, Biotechnology & Life Sciences",352030,"Life Sciences Tools & Services",35203010,"Life Sciences Tools & Services",2025,3,24.2,47.966000000000001,1160.7772,"","",1,2,1,1,5,2,3,0,41,13,23,13,15,28,23,22,29,23,21,69,"",94,94,94,20,"","",46,83,"","","",29,1,12,74,74,21,54,85,54,66,80,83,91,94,81,46,12,54,23,6,34,16,73,88,91,88,21,93,95,25,18,78,92,7,22,71,87,18,15,34,1,45,49,48,"",62,"",88,"",73,8,36,17,20,72,7,31,12,26,21,80,19,0,77,0,0,0,0,0,0]
[1385,{"$f":"IF(ISNA(MATCH(L1391,'GARP Model'!$D$23:$D$32,0)),0,1)","v":0},"2026-02-28",1385,-41,"","","",31061,1,"A","URGN","UROGEN PHARMA LTD",14,"NASDAQ",35,"Health Care",3520,"Pharmaceuticals, Biotechnology & Life Sciences",352010,"Biotechnology",35201010,"Biotechnology",2025,3,21.7,46.780999999999999,1015.1477,"","",2,1,2,4,2,4,1,0,2,12,5,5,4,5,6,5,5,5,5,20,"",74,43,26,1,"","",78,36,"","","",18,100,"",49,87,83,60,98,39,51,82,80,92,10,99,4,6,88,32,24,99,4,97,36,2,20,99,17,34,99,0,0,24,82,"","","","",4,"",100,26,81,60,"",26,"",27,"",44,25,36,79,88,23,37,62,75,86,44,4,86,0,0,0,100,100,0,0,0]
[1390,{"$f":"IF(ISNA(MATCH(L1396,'GARP Model'!$D$23:$D$32,0)),0,1)","v":0},"2026-02-28",1390,56,"","","",200480,2,"A","MANU","MANCHESTER UNITED PLC",11,"NYSE",50,"Communication Services",5020,"Media & Entertainment",502020,"Entertainment",50202010,"Movies & Entertainment",2026,1,18.010000000000002,172.434,3105.5363400000001,"","","",2,1,2,1,2,3,0,11,31,22,19,18,26,37,45,26,36,43,74,"",93,40,48,78,"","",29,7,"",5,8,15,20,36,34,"",20,7,9,12,5,1,0,5,30,32,15,23,60,22,16,26,73,30,15,84,85,48,89,92,55,21,78,86,16,13,93,93,7,47,15,100,86,95,96,"",26,"","","",98,47,32,55,55,81,80,62,54,48,71,23,58,0,30,0,0,0,0,0,0]
[1396,{"$f":"IF(ISNA(MATCH(L1402,'GARP Model'!$D$23:$D$32,0)),0,1)","v":0},"2026-02-28",1396,0,"","","",24599,1,"A","SYRE","SPYRE THERAPEUTICS INC",14,"NASDAQ",35,"Health Care",3520,"Pharmaceuticals, Biotechnology & Life Sciences",352010,"Biotechnology",35201010,"Biotechnology",2025,3,43.01,60.472000000000001,2600.9007200000001,"","","",1,1,1,4,4,3,0,23,3,14,8,11,11,11,12,8,8,9,68,"",84,99,99,"","","",99,56,"","","",9,100,"",89,"","","","",3,11,94,94,"","","",1,2,6,"","","","","",0,"","","","","","",6,96,99,93,10,93,96,84,1,10,100,"",99,65,94,37,100,33,"",54,87,92,88,77,13,80,62,54,26,8,94,48,0,29,100,0,0,0,0,0]
[1401,{"$f":"IF(ISNA(MATCH(L1407,'GARP Model'!$D$23:$D$32,0)),0,1)","v":0},"2026-02-28",1401,3,"","","",36819,1,"A","KYMR","KYMERA THERAPEUTIC INC",14,"NASDAQ",35,"Health Care",3520,"Pharmaceuticals, Biotechnology & Life Sciences",352010,"Biotechnology",35201010,"Biotechnology",2025,4,91.35,81.323999999999998,7428.9474,"","",2,1,1,1,2,4,3,0,29,5,16,20,22,16,17,18,14,14,16,21,"",96,95,87,81,"","",77,94,"","","",4,100,"",81,96,35,84,97,14,8,94,94,82,88,82,18,26,50,62,56,68,2,1,0,1,0,0,1,0,0,10,86,84,7,14,82,81,28,31,53,100,90,7,9,"",53,"",14,"",64,72,88,88,89,22,80,89,75,70,11,18,86,0,40,0,0,0,0,0,0]
[1406,{"$f":"IF(ISNA(MATCH(L1412,'GARP Model'!$D$23:$D$32,0)),0,1)","v":0},"2026-02-28",1406,11,"","","",347007,1,"A","IBRX","IMMUNITYBIO INC",14,"NASDAQ",35,"Health Care",3520,"Pharmaceuticals, Biotechnology & Life Sciences",352010,"Biotechnology",35201010,"Biotechnology",2025,3,9.7799999999999994,984.96500000000003,9632.9577000000008,"","","",1,1,4,4,3,1,0,3,5,17,14,14,15,13,12,15,11,11,71,"","",0,0,"","","",51,98,"","","",13,71,"",56,92,22,100,"",7,"",87,87,98,100,"",21,20,58,99,5,"",3,2,34,99,100,"",99,100,"",1,99,97,"","","","","",3,"",100,82,20,13,"",62,"",52,"",7,99,96,92,89,30,37,31,12,2,73,96,91,0,0,100,100,100,0,0,0]
[1412,{"$f":"IF(ISNA(MATCH(L1418,'GARP Model'!$D$23:$D$32,0)),0,1)","v":0},"2026-02-28",1412,6,"","","",26112,1,"A","CTMX","CYTOMX THERAPEUTICS INC",14,"NASDAQ",35,"Health Care",3520,"Pharmaceuticals, Biotechnology & Life Sciences",352010,"Biotechnology",35201010,"Biotechnology",2025,3,5.37,165.07,886.42589999999996,"","","",1,1,2,1,5,1,0,15,22,49,27,16,9,6,5,6,5,3,85,"",31,92,24,75,92,"",82,75,"","","",7,66,93,87,86,89,85,84,51,80,80,77,75,65,96,5,8,0,62,56,68,64,20,0,92,97,96,94,97,97,97,90,99,96,91,"",98,97,4,6,100,95,85,76,"",32,"",14,"",31,97,96,99,99,19,80,89,75,70,4,0,99,0,0,100,100,100,0,0,0]
[1417,{"$f":"IF(ISNA(MATCH(L1423,'GARP Model'!$D$23:$D$32,0)),0,1)","v":0},"2026-02-28",1417,-18,"","","",37351,2,"A","ALVO","ALVOTECH",14,"NASDAQ",35,"Health Care",3520,"Pharmaceuticals, Biotechnology & Life Sciences",352010,"Biotechnology",35201010,"Biotechnology",2025,3,3.99,311.601,1243.28799,"","","",1,1,3,1,2,1,0,2,32,70,1,1,8,1,1,12,4,3,86,"","",1,"","","","",11,"","","","",10,64,3,12,80,11,"","","","",15,30,98,"","",12,16,3,99,"","",44,74,92,97,"","",97,"","",71,99,"","","","","","",3,"",100,9,17,18,"",26,"",7,"",98,4,2,5,1,94,80,31,31,9,81,72,3,0,9,0,0,100,0,0,0]
[1422,{"$f":"IF(ISNA(MATCH(L1428,'GARP Model'!$D$23:$D$32,0)),0,1)","v":0},"2026-02-28",1422,4,"","","",32356,1,"A","CELC","CELCUITY INC",14,"NASDAQ",35,"Health Care",3520,"Pharmaceuticals, Biotechnology & Life Sciences",352010,"Biotechnology",35201010,"Biotechnology",2025,3,111.71,43.274999999999999,4834.2502500000001,"","",1,1,1,1,3,4,1,0,6,3,17,23,25,16,21,21,15,19,21,13,"",99,"","","","","",81,37,"","","",16,100,"",70,"","","","",2,1,95,95,"","","",14,10,44,"","","","","",0,"","","","","","",5,55,93,94,1,2,5,3,8,9,100,19,30,65,"",26,"",96,"",45,92,97,99,99,0,80,89,90,96,2,0,99,0,0,100,100,100,0,0,100]
[1427,{"$f":"IF(ISNA(MATCH(L1433,'GARP Model'!$D$23:$D$32,0)),0,1)","v":0},"2026-02-28",1427,17,"","","",38465,1,"A","SKYT","SKYWATER TECH INC",14,"NASDAQ",45,"Information Technology",4530,"Semiconductors & Semiconductor Equipment",453010,"Semiconductors & Semiconductor Equipment",45301020,"Semiconductors",2025,3,29.46,48.508000000000003,1429.0456799999999,"","","",2,1,1,1,5,3,0,17,30,87,27,24,23,26,21,23,26,20,98,"","",71,14,"",97,"",24,81,"","","",23,100,16,49,34,36,87,"",99,"",10,4,2,3,"",13,17,1,13,66,"",31,33,26,64,88,"",90,91,"",96,96,97,"",97,97,98,"",18,10,100,72,72,40,"",26,"",19,"",11,98,98,97,96,9,80,89,90,86,1,93,97,0,43,100,0,0,0,0,100]
[1432,{"$f":"IF(ISNA(MATCH(L1438,'GARP Model'!$D$23:$D$32,0)),0,1)","v":0},"2026-02-28",1432,-55,"","","",43023,1,"A","CAVA","CAVA GROUP INC",11,"NYSE",25,"Consumer Discretionary",2530,"Consumer Services",253010,"Hotels, Restaurants & Leisure",25301040,"Restaurants",2025,3,82.47,115.985,9565.2829500000007,"",1,"",2,1,4,1,1,1,0,11,17,36,34,34,25,25,26,26,25,26,90,"","",15,"","",82,36,3,"","","","",36,71,42,65,"",13,"","","","",72,65,51,"","",59,73,35,64,"","",36,24,5,52,"","",39,"","",90,87,"","",82,85,"","",33,45,100,11,10,9,17,29,100,47,32,8,61,5,4,1,"",80,31,31,26,98,81,1,0,80,0,0,0,100,0,0]
[1438,{"$f":"IF(ISNA(MATCH(L1444,'GARP Model'!$D$23:$D$32,0)),0,1)","v":0},"2026-02-28",1438,-62,"","","",27252,1,"A","PLSE","PULSE BIOSCIENCES INC",14,"NASDAQ",35,"Health Care",3510,"Health Care Equipment & Services",351010,"Health Care Equipment & Supplies",35101010,"Health Care Equipment",2025,4,18.73,67.84,1270.6432,"",1,1,1,1,3,2,2,3,0,9,3,14,16,14,13,15,13,12,13,12,23,"",79,"",97,"","","",73,32,"","","",17,54,"",75,99,1,1,"",34,6,94,94,"",0,"",2,4,93,"",0,"",0,3,93,"",0,"","",99,"",0,0,33,97,3,4,"",96,2,4,100,84,94,90,"","","","","",74,11,22,11,10,4,37,62,31,26,37,83,2,0,19,0,0,0,0,0,0]
[1443,{"$f":"IF(ISNA(MATCH(L1449,'GARP Model'!$D$23:$D$32,0)),0,1)","v":0},"2026-02-28",1443,-124,"","","",36777,1,"A","NTST","NETSTREIT CORP",11,"NYSE",60,"Real Estate",6010,"Equity Real Estate Investment Trusts (REITs)",601070,"Retail REITs",60107010,"Retail REITs",2025,4,20.77,93.070999999999998,1933.08467,"","","",2,1,2,3,4,3,77,77,10,31,31,31,57,53,48,50,47,43,90,55,6,19,10,3,4,26,90,58,73,88,97,8,100,"",22,"",90,76,53,"","","","","","","",49,41,45,"","","","",44,"","","","",94,62,31,31,64,47,41,29,62,54,42,91,99,100,"","","",80,100,100,"",1,25,37,41,47,76,61,37,31,54,86,51,11,78,100,69,0,0,0,0,0,0]
[1448,{"$f":"IF(ISNA(MATCH(L1454,'GARP Model'!$D$23:$D$32,0)),0,1)","v":0},"2026-02-28",1448,16,"","","",190355,1,"A","AXGN","AXOGEN INC",14,"NASDAQ",35,"Health Care",3510,"Health Care Equipment & Services",351010,"Health Care Equipment & Supplies",35101010,"Health Care Equipment",2025,3,31.73,46.116999999999997,1463.29241,"","","",2,1,1,3,5,5,0,11,21,29,25,25,25,22,19,25,22,19,83,"",45,20,23,28,"","",48,96,"","","",21,100,16,63,53,63,95,96,48,71,72,80,34,72,78,52,67,45,8,9,7,19,90,70,85,91,91,27,20,24,25,88,90,87,25,88,89,79,39,47,100,73,13,4,"",77,"",20,"",24,96,97,88,90,6,100,100,97,96,4,96,89,100,36,100,0,0,0,0,100]
[1449,{"$f":"IF(ISNA(MATCH(L1455,'GARP Model'!$D$23:$D$32,0)),0,1)","v":0},"2026-02-28",1449,11,"","","",38107,2,"A","AUR","AURORA INNOVATION INC",14,"NASDAQ",45,"Information Technology",4510,"Software & Services",451030,"Software",45103010,"Application Software",2025,4,4.68,1943,9093.24,"","",1,1,1,2,3,1,3,0,32,3,10,7,5,10,8,7,8,6,6,36,"","","",99,"","","",50,26,"","","",8,100,"",84,100,0,0,"",43,"",95,95,"",49,"",32,22,80,"",56,"",0,0,0,"",0,"","",0,"",5,53,98,"",9,65,94,"",4,18,100,36,37,22,"",26,"","","",73,10,7,2,7,16,37,9,12,26,76,61,3,0,42,0,0,0,0,100,0]
[1454,{"$f":"IF(ISNA(MATCH(L1460,'GARP Model'!$D$23:$D$32,0)),0,1)","v":0},"2026-02-28",1454,11,"","","",27186,3,"A","BATRK","ATLANTA BRAVES HOLDINGS INC",14,"NASDAQ",50,"Communication Services",5020,"Media & Entertainment",502020,"Entertainment",50202010,"Movies & Entertainment",2025,3,43.71,62.902999999999999,2749.4901300000001,"","","",1,1,1,2,3,3,0,28,29,29,20,22,13,19,20,14,20,20,84,86,44,47,58,17,"","",8,3,"","","",22,36,6,36,"",9,2,96,92,86,20,10,72,24,27,15,22,27,62,56,68,39,31,0,89,44,90,92,38,88,29,79,36,52,28,84,38,57,38,19,100,11,40,48,"","","","","",89,29,19,25,45,56,7,1,2,26,77,21,49,0,15,0,0,0,0,0,0]
[1460,{"$f":"IF(ISNA(MATCH(L1466,'GARP Model'!$D$23:$D$32,0)),0,1)","v":0},"2026-02-28",1460,"","","","",45783,1,"A","KRMN","KARMAN HOLDINGS INC",11,"NYSE",20,"Industrials",2010,"Capital Goods",201010,"Aerospace & Defense",20101010,"Aerospace & Defense",2025,3,88.11,132.322,11658.89142,"","","",2,1,1,3,5,5,0,6,7,30,31,31,24,25,25,23,25,25,"","","","","","",25,"","","","","","",17,14,27,59,"",29,"","","","",73,68,"","","","","",6,"","","",69,51,19,"","","","","","",40,"","","",34,"","","","","",100,68,53,55,"",62,"",21,"",33,81,93,94,"","",80,98,99,"",6,"","",100,34,100,0,0,0,0,100]
[1464,{"$f":"IF(ISNA(MATCH(L1470,'GARP Model'!$D$23:$D$32,0)),0,1)","v":0},"2026-02-28",1464,2,"","","",187650,1,"A","PPTA","PERPETUA RESOURCES CORP",14,"NASDAQ",15,"Materials",1510,"Materials",151040,"Metals & Mining",15104030,"Gold",2025,3,36.86,107.616,3966.7257599999998,"","","",1,1,1,1,4,3,0,17,3,24,28,28,21,23,23,20,23,22,5,"","","","","","","",25,"","","","",5,100,"",82,"","","","","","",99,99,"","","",5,6,13,"","","","","",0,"","","","","","",14,89,"","",19,86,"","",20,40,100,0,0,0,"",26,"",1,"",38,57,90,83,93,1,80,98,90,96,7,7,95,100,78,0,0,0,0,0,100]
[1465,{"$f":"IF(ISNA(MATCH(L1471,'GARP Model'!$D$23:$D$32,0)),0,1)","v":0},"2026-02-28",1465,10,"","","",18071,1,"A","REXR","REXFORD INDUS REALTY",11,"NYSE",60,"Real Estate",6010,"Equity Real Estate Investment Trusts (REITs)",601025,"Industrial REITs",60102510,"Industrial REITs",2025,4,37.47,231.58,8677.3026000000009,"","","",2,1,1,1,2,3,81,88,12,43,50,47,61,58,55,58,57,52,28,35,28,46,24,11,6,42,99,55,75,89,92,15,100,"",31,"",99,49,49,"","","","","","","",48,47,33,"","","","",44,"","","","",4,18,24,46,37,48,40,33,44,56,41,94,99,100,"","","",86,26,11,52,3,51,31,52,53,46,84,80,62,75,86,32,59,43,100,45,0,0,0,0,0,0]
[1466,{"$f":"IF(ISNA(MATCH(L1472,'GARP Model'!$D$23:$D$32,0)),0,1)","v":0},"2026-02-28",1466,5,"","","",33684,1,"A","EPRT","ESSENTIAL PPT RLTY TST",11,"NYSE",60,"Real Estate",6010,"Equity Real Estate Investment Trusts (REITs)",601010,"Diversified REITs",60101010,"Diversified REITs",2025,4,33.94,209.702,7117.2858800000004,"","","",2,1,1,3,2,3,70,67,9,52,49,46,55,51,49,53,49,47,64,17,11,15,12,8,13,34,99,55,82,84,89,8,100,"",31,"",99,49,49,"","","","","","","",89,84,28,"","","","",82,"","","","",57,85,88,63,54,56,58,42,54,58,54,87,97,100,"","","",72,26,29,51,20,67,38,34,22,39,44,80,62,31,48,61,47,44,0,77,0,0,0,0,0,0]
[1467,{"$f":"IF(ISNA(MATCH(L1473,'GARP Model'!$D$23:$D$32,0)),0,1)","v":0},"2026-02-28",1467,15,"","","",45462,1,"A","TEM","TEMPUS AI INC",14,"NASDAQ",35,"Health Care",3520,"Pharmaceuticals, Biotechnology & Life Sciences",352030,"Life Sciences Tools & Services",35203010,"Life Sciences Tools & Services",2025,3,53.25,177.679,9461.4067500000001,"","","",1,1,1,3,2,3,0,8,16,21,12,12,17,16,15,17,15,14,80,"","",4,"","","","",36,"",2,"","",16,24,"",57,75,52,"","","","",77,74,11,"","",3,4,10,76,"","",9,80,22,96,"","",93,"","",14,99,"","",8,100,"","","","",100,84,70,71,"",42,"",34,"",10,3,41,43,46,"",7,62,75,70,15,43,"",0,39,0,0,0,0,0,0]
[1468,{"$f":"IF(ISNA(MATCH(L1474,'GARP Model'!$D$23:$D$32,0)),0,1)","v":0},"2026-02-28",1468,11,"","","",3107,1,"A","CLF","CLEVELAND-CLIFFS INC",11,"NYSE",15,"Materials",1510,"Materials",151040,"Metals & Mining",15104050,"Steel",2025,4,10.66,569.75900000000001,6073.63094,"",2,"",1,1,2,3,2,3,0,89,92,2,10,90,4,53,88,8,38,70,11,93,98,82,88,8,"","",33,84,"","",8,3,39,"",9,"",42,75,92,67,43,6,48,65,62,96,42,11,54,79,13,99,13,5,84,10,13,9,12,14,11,15,16,7,10,12,13,7,10,20,18,6,73,64,61,"",42,"",81,"",9,56,73,79,75,87,100,98,97,99,25,33,73,0,35,0,0,0,0,0,0]
[1469,{"$f":"IF(ISNA(MATCH(L1475,'GARP Model'!$D$23:$D$32,0)),0,1)","v":0},"2026-02-28",1469,34,"","","",38777,2,"A","BTDR","BITDEER TECHNOLOGIES GROUP",14,"NASDAQ",45,"Information Technology",4510,"Software & Services",451030,"Software",45103010,"Application Software",2025,3,7.7,211.71700000000001,1630.2209,"","","",1,2,1,1,3,3,0,46,28,1,4,3,0,0,0,0,0,0,1,"","",22,"","","","",1,"","","","",1,61,"",27,79,3,"","","","",15,11,1,"","",17,22,0,0,"","",10,45,95,3,"","",11,"","",8,3,"","",3,2,"","",14,9,100,10,12,13,"",26,"",12,"",5,1,34,62,12,50,37,89,90,86,13,87,0,0,47,0,0,0,0,0,0]
[1470,{"$f":"IF(ISNA(MATCH(L1476,'GARP Model'!$D$23:$D$32,0)),0,1)","v":0},"2026-02-28",1470,-23,"","","",17769,1,"A","HASI","HA SUSTAINABLE INFRA CAP INC",11,"NYSE",40,"Financials",4020,"Financial Services",402010,"Financial Services",40201040,"Specialized Finance",2025,4,36.520000000000003,127.64400000000001,4661.5588799999996,"",1,"",1,1,1,4,5,3,81,64,11,56,56,54,43,30,30,34,28,28,37,5,36,34,6,11,9,18,99,55,70,83,79,12,100,"",11,"",99,49,49,"","","","","","","",52,67,12,"","","","",49,"","","","",15,94,78,51,36,65,36,47,40,70,42,81,80,100,"","","",51,67,34,36,45,70,83,76,67,72,59,80,89,75,86,37,51,68,0,34,0,0,0,0,0,0]
[1471,{"$f":"IF(ISNA(MATCH(L1477,'GARP Model'!$D$23:$D$32,0)),0,1)","v":0},"2026-02-28",1471,-18,"","","",253527,1,"A","EYPT","EYEPOINT INC",14,"NASDAQ",35,"Health Care",3520,"Pharmaceuticals, Biotechnology & Life Sciences",352020,"Pharmaceuticals",35202010,"Pharmaceuticals",2025,3,17.559999999999999,69.569999999999993,1221.6492000000001,"","","",1,1,1,1,4,3,0,21,8,4,7,8,3,8,9,2,6,7,10,"",95,90,74,80,"","",60,77,"","","",5,100,"",86,94,22,12,7,43,6,90,90,20,99,97,8,3,7,81,84,92,2,2,23,1,1,0,1,0,0,0,0,0,1,2,3,6,99,7,10,100,26,10,34,"",30,"",18,"",16,39,77,87,88,10,80,89,90,86,16,8,85,0,80,0,0,0,0,0,0]
[1472,{"$f":"IF(ISNA(MATCH(L1478,'GARP Model'!$D$23:$D$32,0)),0,1)","v":0},"2026-02-28",1472,16,"","","",50617,1,"A","SARO","STANDARDAERO INC",11,"NYSE",20,"Industrials",2010,"Capital Goods",201010,"Aerospace & Defense",20101010,"Aerospace & Defense",2025,3,30.8,334.47,10301.675999999999,"",2,"",2,1,1,5,3,3,0,34,60,38,36,36,25,25,24,25,25,25,"","","","","","",44,0,"","","","","",6,19,39,38,"",59,"","","","",47,54,"","","","","",8,"","","",37,15,63,"","","","","","",55,"","","",47,"","","","","",100,69,71,72,0,77,100,85,98,58,48,44,41,60,"",80,62,75,96,56,28,"",100,99,0,0,0,0,0,0]
[1473,{"$f":"IF(ISNA(MATCH(L1479,'GARP Model'!$D$23:$D$32,0)),0,1)","v":0},"2026-02-28",1473,36,"","","",36692,1,"A","LMND","LEMONADE INC",11,"NYSE",40,"Financials",4030,"Insurance",403010,"Insurance",40301040,"Property & Casualty Insurance",2025,3,51.74,74.665999999999997,3863.21884,"","",1,1,2,2,5,4,1,0,17,27,15,12,11,22,17,15,22,14,12,59,"",78,10,3,2,"","",66,46,"","","",19,63,"",82,56,63,88,89,"","","","","","","",87,30,72,"","","",8,47,"",91,96,96,92,94,89,14,79,85,74,10,69,55,14,50,50,100,66,76,63,"",100,"",76,"",5,94,95,94,95,3,80,89,90,86,5,12,94,0,3,100,100,100,0,0,100]
[1474,{"$f":"IF(ISNA(MATCH(L1480,'GARP Model'!$D$23:$D$32,0)),0,1)","v":0},"2026-02-28",1474,-2,"","","",30067,1,"A","ADC","AGREE REALTY CORP",11,"NYSE",60,"Real Estate",6010,"Equity Real Estate Investment Trusts (REITs)",601070,"Retail REITs",60107010,"Retail REITs",2025,4,80.48,120.02800000000001,9659.8534400000008,"",2,"",2,1,2,3,2,3,74,71,9,40,41,40,54,54,51,52,52,49,51,32,36,23,20,13,6,29,99,55,75,80,90,8,100,"",31,"",99,49,49,"","","","","","","",60,49,37,"","","","",64,"","","","",37,27,18,50,44,47,35,35,49,56,39,99,100,100,"","","",76,100,34,32,5,61,32,36,22,45,60,37,31,12,48,52,39,54,100,40,0,0,0,0,0,0]
[{"$f":"A1480+1","v":1475},{"$f":"IF(ISNA(MATCH(L1481,'GARP Model'!$D$23:$D$32,0)),0,1)","v":0},"2026-02-28",1475,-1,"","","",45768,1,"A","SAIL","SAILPOINT INC",14,"NASDAQ",45,"Information Technology",4510,"Software & Services",451030,"Software",45103010,"Application Software",2025,3,14.1,561.60400000000004,7918.6163999999999,"","","",2,1,2,5,2,3,0,82,20,16,15,14,25,20,19,25,19,18,"","","","","","","","","","","","","",1,0,"",72,67,64,"","","","",38,23,"","","","","",50,"","","",10,85,0,"","","","","","",19,"","","",22,"","","","","",100,94,93,94,17,81,100,92,"",89,5,5,17,"","",37,31,31,"",63,"","",0,34,0,0,0,0,0,0]
[1476,{"$f":"IF(ISNA(MATCH(L1482,'GARP Model'!$D$23:$D$32,0)),0,1)","v":0},"2026-02-28",1476,1,"","","",60787,1,"A","HTFL","HEARTFLOW INC",14,"NASDAQ",35,"Health Care",3510,"Health Care Equipment & Services",351030,"Health Care Technology",35103010,"Health Care Technology",2025,3,23.16,83.474000000000004,1933.25784,"","","",1,1,1,1,3,3,0,17,14,13,11,10,11,9,8,9,6,6,"","","","","","","","","","","","","",3,100,"",85,82,29,"","","","",92,92,"","","","","",42,"","","",6,91,0,"","","","","","",5,"","","",6,"","","","","",100,25,27,27,"",26,"",45,"",17,10,"","","","",37,"","","","","","",100,99,0,0,0,0,0,0]
[1477,{"$f":"IF(ISNA(MATCH(L1483,'GARP Model'!$D$23:$D$32,0)),0,1)","v":0},"2026-02-28",1477,14,"","","",183833,1,"A","TRNO","TERRENO REALTY CORP",11,"NYSE",60,"Real Estate",6010,"Equity Real Estate Investment Trusts (REITs)",601025,"Industrial REITs",60102510,"Industrial REITs",2025,4,66.06,103.572,6841.9663200000005,"","","",1,1,1,1,4,3,62,68,10,71,51,48,47,44,43,49,46,45,86,15,13,16,18,17,33,58,99,55,82,89,89,14,100,"",47,"",99,49,49,"","","","","","","",61,70,7,"","","","",62,"","","","",35,43,55,83,83,64,68,59,76,59,58,77,92,100,"","","",78,26,10,21,23,81,52,51,39,38,64,80,62,31,26,49,70,39,100,32,0,0,0,0,0,0]
[1478,{"$f":"IF(ISNA(MATCH(L1484,'GARP Model'!$D$23:$D$32,0)),0,1)","v":0},"2026-02-28",1478,19,"","","",38356,2,"A","CRML","CRITICAL METALS CORP",14,"NASDAQ",15,"Materials",1510,"Materials",151040,"Metals & Mining",15104020,"Diversified Metals & Mining",2025,4,10.15,104.79,1063.6185,"","","",1,1,4,2,5,1,0,11,3,15,6,4,20,19,19,18,19,18,"","","","","","","","",47,"","","","",15,100,"",67,"","","","","","",0,0,"","","","","",94,"","","","","",0,"","","","","","",6,"","","",5,"","","","","",100,0,0,0,"","","","","",0,36,98,99,87,49,37,62,75,70,0,99,83,0,11,100,100,0,0,0,0]
[1479,{"$f":"IF(ISNA(MATCH(L1485,'GARP Model'!$D$23:$D$32,0)),0,1)","v":0},"2026-02-28",1479,2,"","","",33195,1,"A","HUT","HUT 8 CORP",14,"NASDAQ",45,"Information Technology",4510,"Software & Services",451030,"Software",45103010,"Application Software",2025,3,53.23,106.312,5658.98776,"",1,"",1,1,2,2,3,5,0,34,6,52,30,29,12,15,15,11,14,13,"","","","",63,"",74,"",2,0,"","","",7,41,"",56,"",1,1,"",93,"",14,6,"","","",12,16,2,"",56,"",13,58,0,"",2,"","",15,"",83,"",95,"",74,"",91,"",5,18,5,8,19,15,"","","",0,"",4,55,97,97,95,3,80,98,99,99,2,51,94,0,52,100,0,0,0,0,100]
[1480,{"$f":"IF(ISNA(MATCH(L1486,'GARP Model'!$D$23:$D$32,0)),0,1)","v":0},"2026-02-28",1480,-2,"","","",33779,1,"A","ESTA","ESTABLISHMNT LBS HLDNG",14,"NASDAQ",35,"Health Care",3510,"Health Care Equipment & Services",351010,"Health Care Equipment & Supplies",35101020,"Health Care Supplies",2025,3,78.7,29.056000000000001,2286.7071999999998,"","","",1,1,1,5,5,3,0,5,11,17,17,19,15,13,15,15,12,14,31,"",87,14,46,21,"","",47,98,"","","",16,69,"",54,49,47,95,70,25,38,66,75,94,2,3,2,4,40,9,1,4,8,86,95,87,35,54,87,73,65,7,60,92,40,0,0,99,0,27,1,100,68,6,6,"",100,"",73,"",31,93,87,89,92,67,80,62,75,86,25,6,93,0,28,0,0,0,0,0,0]
[1481,{"$f":"IF(ISNA(MATCH(L1487,'GARP Model'!$D$23:$D$32,0)),0,1)","v":0},"2026-02-28",1481,-108,"","","",36204,1,"A","ELVN","ENLIVEN THERAPEUTICS INC",14,"NASDAQ",35,"Health Care",3520,"Pharmaceuticals, Biotechnology & Life Sciences",352020,"Pharmaceuticals",35202010,"Pharmaceuticals",2025,3,29.69,59.261000000000003,1759.4590900000001,"","",1,1,2,2,4,5,1,0,37,3,14,18,18,14,14,14,10,10,10,32,"",90,"","","","","",85,43,"","","",4,100,"",94,"","","","",2,6,99,99,"","","",8,11,55,"","","","","",0,"","","","","","",9,90,98,91,14,85,94,79,4,18,100,67,72,75,"",100,"",93,"",58,62,79,64,65,39,37,62,54,48,19,76,65,0,3,0,100,100,0,0,0]
[1482,{"$f":"IF(ISNA(MATCH(L1488,'GARP Model'!$D$23:$D$32,0)),0,1)","v":0},"2026-02-28",1482,42,"","","",51747,1,"A","VOYG","VOYAGER TECHNOLOGIES INC",11,"NYSE",20,"Industrials",2010,"Capital Goods",201010,"Aerospace & Defense",20101010,"Aerospace & Defense",2025,3,26.69,59.265000000000001,1581.7828500000001,"","","",1,2,1,2,2,3,0,49,20,14,13,13,4,3,2,2,1,1,"","","","","","","","","","","","","",0,37,"",93,37,1,"","","","",86,84,"","","","","",27,"","","",6,20,7,"","","","","","",12,"","","",16,"","","","","",100,0,1,1,"",42,"",62,"",28,32,9,"","","",80,62,"","",94,"","",100,98,0,0,0,0,0,0]
[1483,{"$f":"IF(ISNA(MATCH(L1489,'GARP Model'!$D$23:$D$32,0)),0,1)","v":0},"2026-02-28",1483,17,"","","",45158,1,"A","NNE","NANO NUCLEAR ENERGY INC",14,"NASDAQ",20,"Industrials",2010,"Capital Goods",201040,"Electrical Equipment",20104020,"Heavy Electrical Equipment",2026,1,26.59,50.582000000000001,1344.9753800000001,"","",1,1,2,2,5,3,1,0,55,3,18,22,23,18,21,20,13,16,15,4,"","","","","","","",12,"","","","",1,100,"",97,"","","","","","",99,99,"","","",2,3,44,"","","","","",0,"","","","","","",15,74,"","",20,66,"","","","",100,0,0,0,"",100,"",65,"",12,2,14,56,16,"",37,62,90,70,24,54,"",0,2,0,100,100,100,0,0]
[1484,{"$f":"IF(ISNA(MATCH(L1490,'GARP Model'!$D$23:$D$32,0)),0,1)","v":0},"2026-02-28",1484,-617,"","","",180193,1,"A","OCSL","OAKTREE SPECIALTY LENDING CP",14,"NASDAQ",40,"Financials",4020,"Financial Services",402030,"Capital Markets",40203010,"Asset Management & Custody Banks",2026,1,11.34,88.085999999999999,998.89523999999994,"","","",1,2,1,4,1,3,98,96,18,49,75,91,25,94,58,25,78,40,21,1,82,95,62,28,2,"",99,55,11,25,86,8,100,16,7,"",99,49,49,"","","","","","","",49,40,9,"","","",99,95,"",72,77,87,80,84,90,38,34,61,17,32,39,64,21,42,52,100,"","","","",48,"",72,"",60,19,25,20,26,74,7,9,2,9,51,55,33,0,58,0,0,0,0,0,0]
[1485,{"$f":"IF(ISNA(MATCH(L1491,'GARP Model'!$D$23:$D$32,0)),0,1)","v":0},"2026-02-28",1485,-5,"","","",11012,1,"A","SXT","SENSIENT TECHNOLOGIES CORP",11,"NYSE",15,"Materials",1510,"Materials",151010,"Chemicals",15101050,"Specialty Chemicals",2025,4,101.53,42.268999999999998,4291.5715700000001,"","","",1,1,1,1,2,3,33,37,45,48,48,52,28,31,33,28,31,34,50,50,64,59,60,77,36,19,22,20,33,31,33,36,24,55,44,30,25,40,16,39,34,49,80,44,76,30,82,92,12,6,14,3,55,45,94,56,49,47,66,46,58,76,43,36,34,65,46,43,38,82,90,100,22,27,28,28,26,23,7,56,67,34,16,27,70,45,37,9,12,26,88,8,75,0,13,0,0,0,0,0,0]
[1486,{"$f":"IF(ISNA(MATCH(L1492,'GARP Model'!$D$23:$D$32,0)),0,1)","v":0},"2026-02-28",1486,1,"","","",40092,1,"A","ACHR","ARCHER AVIATION INC",11,"NYSE",20,"Industrials",2010,"Capital Goods",201010,"Aerospace & Defense",20101010,"Aerospace & Defense",2025,3,7.12,651.29700000000003,4637.2346399999997,"","",1,1,2,3,2,1,1,0,47,3,7,6,6,6,7,7,3,3,4,21,"","","","","","","",5,5,"","","",1,100,"",96,"","","","",10,"",97,97,"","","",8,10,83,"","","","","",0,"","","","","","",5,98,84,"",9,96,78,"",5,13,100,3,1,2,"",26,"",79,"",3,3,6,14,16,14,7,31,54,48,43,33,3,0,0,0,100,100,100,100,0]
[1487,{"$f":"IF(ISNA(MATCH(L1493,'GARP Model'!$D$23:$D$32,0)),0,1)","v":0},"2026-02-28",1487,2,"","","",41293,1,"A","IE","IVANHOE ELECTRIC INC",12,"AMEX",15,"Materials",1510,"Materials",151040,"Metals & Mining",15104020,"Diversified Metals & Mining",2025,3,17.190000000000001,133.166,2289.12354,"",1,"",1,1,1,4,5,5,0,15,4,20,11,10,13,7,6,12,6,6,79,"","",28,97,"","","",59,99,"","","",15,100,"",66,55,1,99,"",88,"",44,30,0,0,"",17,23,2,62,99,"",1,0,0,99,0,"",99,0,"",11,98,96,"",14,96,91,"",8,21,100,29,0,0,"",26,"",66,"",48,68,90,93,96,48,80,89,97,99,7,3,96,100,73,100,0,0,0,0,100]
[1488,{"$f":"IF(ISNA(MATCH(L1494,'GARP Model'!$D$23:$D$32,0)),0,1)","v":0},"2026-02-28",1488,-3,"","","",11756,1,"A","ALEX","ALEXANDER & BALDWIN INC",11,"NYSE",60,"Real Estate",6010,"Equity Real Estate Investment Trusts (REITs)",601010,"Diversified REITs",60101010,"Diversified REITs",2025,3,20.79,72.757999999999996,1512.6388199999999,"","","",2,1,2,2,4,1,90,72,17,64,55,51,59,56,60,58,55,60,62,10,10,80,96,97,14,"",99,68,91,48,84,36,67,"",33,"",99,49,49,"","","","","","","",87,95,24,"","","","",58,"","","","",28,92,92,68,64,72,68,48,61,71,63,79,90,6,"","","","","","","","",64,88,60,52,66,52,37,31,12,48,85,33,70,0,3,0,100,100,0,0,0]
[1489,{"$f":"IF(ISNA(MATCH(L1495,'GARP Model'!$D$23:$D$32,0)),0,1)","v":0},"2026-02-28",1489,-5,"","","",20029,1,"A","CSWC","CAPITAL SOUTHWEST CORP",14,"NASDAQ",40,"Financials",4020,"Financial Services",402030,"Capital Markets",40203010,"Asset Management & Custody Banks",2025,3,21.87,59.457000000000001,1300.3245899999999,"","","",1,1,2,3,4,3,96,78,14,84,73,67,5,3,3,8,5,6,76,8,10,26,8,8,4,"",87,56,83,92,93,4,100,21,16,"",85,81,33,"","","","","","","",56,73,1,"","","",99,96,"",37,74,82,40,81,87,70,68,68,62,62,68,69,61,79,85,100,0,0,0,"",100,"",51,"",62,74,45,53,61,30,100,62,75,86,79,25,68,100,87,0,0,0,0,0,0]
[1490,{"$f":"IF(ISNA(MATCH(L1496,'GARP Model'!$D$23:$D$32,0)),0,1)","v":0},"2026-02-28",1490,-7,"","","",38848,1,"A","NEGG","NEWEGG COMMERCE INC",14,"NASDAQ",25,"Consumer Discretionary",2550,"Consumer Discretionary Distribution & Retail",255040,"Specialty Retail",25504020,"Computer & Electronics Retail",2025,2,44.46,19.498999999999999,866.92553999999996,"","","",1,2,1,2,4,1,0,17,94,20,16,15,11,11,10,9,10,10,79,93,"",93,97,"","","",55,92,"","","",53,100,"",63,"",83,59,"",80,"",6,22,74,19,"",61,74,3,9,"","",12,9,45,63,31,"",37,30,"",16,93,"","",14,94,"","",24,21,100,69,27,26,"","","","","",97,1,10,99,99,45,7,9,54,26,26,0,99,0,3,0,100,100,0,0,0]
[1491,{"$f":"IF(ISNA(MATCH(L1497,'GARP Model'!$D$23:$D$32,0)),0,1)","v":0},"2026-02-28",1491,2,"","","",21542,1,"A","AAON","AAON INC",14,"NASDAQ",20,"Industrials",2010,"Capital Goods",201020,"Building Products",20102010,"Building Products",2025,3,101.2,81.593000000000004,8257.2116000000005,"","","",1,1,1,1,2,3,6,13,22,34,41,39,16,26,26,16,26,26,19,26,62,40,19,18,50,21,1,1,83,81,70,47,46,66,59,31,10,5,6,11,13,65,71,1,2,1,52,71,3,5,89,18,49,33,71,5,45,11,5,67,23,78,5,32,5,66,13,50,16,40,67,100,6,10,10,25,26,7,57,17,60,21,46,25,19,25,37,62,54,70,28,87,19,100,51,0,0,0,0,0,0]
[1492,{"$f":"IF(ISNA(MATCH(L1498,'GARP Model'!$D$23:$D$32,0)),0,1)","v":0},"2026-02-28",1492,6,"","","",50999,1,"A","KMTS","KESTRA MEDICAL TECHNOLOG LTD",14,"NASDAQ",35,"Health Care",3510,"Health Care Equipment & Services",351010,"Health Care Equipment & Supplies",35101010,"Health Care Equipment",2025,2,23.28,51.448999999999998,1197.73272,"",1,"",1,1,3,4,5,1,0,17,10,8,6,5,7,6,5,5,4,3,"","","","","","","","","","","","","",3,100,"",82,72,5,"","","","",86,86,"","","","","",92,"","","",4,69,38,"","","","","","",1,"","","",3,"","","","","",100,5,5,5,"",26,"",88,"",93,18,83,27,"","",7,31,12,"",8,"","",0,7,0,100,100,0,0,0]
[1493,{"$f":"IF(ISNA(MATCH(L1499,'GARP Model'!$D$23:$D$32,0)),0,1)","v":0},"2026-02-28",1493,-1,"","","",10930,1,"A","UAMY","U S ANTIMONY CORP",12,"AMEX",15,"Materials",1510,"Materials",151040,"Metals & Mining",15104020,"Diversified Metals & Mining",2025,3,8.94,130.33799999999999,1165.22172,"",1,"",1,1,1,1,4,3,0,9,6,27,29,30,20,24,24,18,24,24,28,97,83,1,4,4,"","",0,0,2,"","",14,100,"",68,"",3,0,1,45,98,81,85,85,92,23,16,11,13,1,2,2,9,33,83,94,3,88,95,65,95,16,90,12,90,20,86,26,87,18,34,4,1,7,13,"",26,"",1,"",1,19,95,90,98,0,37,89,75,86,2,1,99,0,28,100,0,0,0,0,0]
[1494,{"$f":"IF(ISNA(MATCH(L1500,'GARP Model'!$D$23:$D$32,0)),0,1)","v":0},"2026-02-28",1494,0,"","","",107712,1,"A","UUUU","ENERGY FUELS INC",12,"AMEX",10,"Energy",1010,"Energy",101020,"Oil, Gas & Consumable Fuels",10102050,"Coal & Consumable Fuels",2025,3,21.32,236.86600000000001,5049.9831199999999,"",1,"",1,1,1,1,4,5,0,17,6,21,30,30,18,21,22,17,20,21,6,99,92,2,1,0,"","",9,9,"","","",13,100,"",73,"",4,1,2,13,4,93,95,13,20,98,24,32,29,14,99,100,4,5,99,1,97,99,1,93,99,12,15,13,70,16,27,27,66,10,30,100,4,2,2,"",26,"","","",4,53,96,98,98,9,80,98,99,99,2,1,98,0,82,100,0,0,0,0,100]
[null,null,"2026-02-28",1495,6,"","","",4384,1,"A","MARA","MARA HOLDINGS INC",14,"NASDAQ",45,"Information Technology",4510,"Software & Services",451030,"Software",45103010,"Application Software",2025,3,8.94,378.601,3384.6929399999999,"",1,"",1,3,1,1,1,1,0,97,21,99,42,32,1,2,2,2,5,5,96,"",0,6,1,0,82,"",4,1,"","","",1,64,"",15,30,4,99,99,11,1,66,52,10,18,16,8,0,0,62,56,68,13,49,0,39,3,97,43,7,95,89,87,95,95,82,88,94,88,5,11,100,56,78,28,"",26,"",9,"",0,0,2,6,3,46,37,31,54,48,44,55,0,0,25,0,0,0,100,0,0]
[null,null,"2026-02-28",1496,0,"","","",160541,1,"A","HTGC","HERCULES CAPITAL INC",11,"NYSE",40,"Financials",4020,"Financial Services",402030,"Capital Markets",40203010,"Asset Management & Custody Banks",2025,3,14.21,181.77600000000001,2583.0369599999999,"","","",1,1,2,2,2,3,98,81,16,95,91,89,4,9,15,8,12,19,40,2,31,55,17,34,10,"",90,59,66,77,80,5,100,23,15,"",91,51,52,"","","","","","","",67,74,1,"","","",99,96,"",29,77,59,30,74,44,81,25,80,59,74,31,80,55,48,56,100,90,15,30,"",31,"",18,"",20,46,38,38,37,25,80,62,54,48,64,55,43,100,67,0,0,0,0,0,0]
[null,null,"2026-02-28",1497,9,"","","",38121,2,"A","OCS","OCULIS HOLDING AG",14,"NASDAQ",35,"Health Care",3520,"Pharmaceuticals, Biotechnology & Life Sciences",352020,"Pharmaceuticals",35202010,"Pharmaceuticals",2025,3,29.41,52.375,1540.3487500000001,"","",1,1,1,2,1,5,1,0,13,4,11,11,10,13,12,11,11,10,9,23,"","",94,"","","","",73,"","","","",9,100,"",83,98,4,"","","","",84,82,0,"","",18,24,96,62,"","",0,0,0,0,"","",0,"","",1,78,"","",3,77,"","",18,26,100,60,78,80,"",26,"",55,"",89,94,86,78,67,10,80,89,75,70,33,89,74,0,20,0,100,0,0,0,0]
[null,null,"2026-02-28",1498,4,"","","",39989,1,"A","BXSL","BLACKSTONE SECURED LENDING F",11,"NYSE",40,"Financials",4020,"Financial Services",402030,"Capital Markets",40203010,"Asset Management & Custody Banks",2025,3,23.88,230.95699999999999,5515.2531600000002,"","","",1,1,1,4,2,3,97,92,16,93,91,91,3,6,4,7,12,9,33,26,"",35,16,"",9,76,99,55,84,88,"",6,100,13,8,"",99,49,"","","","","","","","",63,76,2,"","","",98,90,"",45,40,"",50,37,"",67,28,54,"",58,34,55,"",85,95,100,"","","",95,48,100,39,"",54,32,17,21,24,40,37,9,31,48,85,42,31,100,36,0,0,0,0,0,0]
[null,null,"2026-02-28",1499,0,"","","",37407,1,"A","MP","MP MATERIALS CORP",11,"NYSE",15,"Materials",1510,"Materials",151040,"Metals & Mining",15104020,"Diversified Metals & Mining",2025,3,58.87,177.21100000000001,10432.41157,"",1,"",1,2,2,3,1,1,0,31,6,24,32,35,19,19,22,17,18,20,10,90,"",13,97,"","","",15,97,"","","",6,100,"",79,"",2,2,"",29,"",91,91,1,1,"",20,29,24,83,0,"",6,9,97,64,1,"",15,1,"",20,36,6,"",22,56,11,"",29,38,100,16,3,3,"",26,"",58,"",10,22,26,91,95,25,37,31,54,86,53,1,96,0,12,0,100,0,0,0,0]
[null,null,"2026-02-28",1500,7,"","","",37723,1,"A","TRIN","TRINITY CAPITAL INC",14,"NASDAQ",40,"Financials",4020,"Financial Services",402030,"Capital Markets",40203010,"Asset Management & Custody Banks",2025,3,14.79,74.989000000000004,1109.0873099999999,"","","",1,1,1,1,4,3,98,84,19,96,79,80,1,2,1,4,4,4,78,3,"",11,8,"",17,"",88,65,90,93,"",2,100,"",11,"",88,38,"","","","","","","","",43,59,0,"","","","",89,"","","","",73,77,"",78,70,76,"",74,70,78,"",41,48,100,"","",0,"",43,"",32,"",27,70,63,56,70,22,80,62,54,70,48,30,74,0,27,0,0,0,0,0,0]
[null,null,"2026-02-28",1501,"","","","",176362,1,"A","AVAV","AEROVIRONMENT INC",14,"NASDAQ",20,"Industrials",2010,"Capital Goods",201010,"Aerospace & Defense",20101010,"Aerospace & Defense",2025,2,252.25,49.927,12594.08575,"","","",1,1,1,1,1,3,0,46,16,26,29,30,20,24,26,18,25,25,5,"",94,3,3,7,"","",21,7,"","","",9,3,21,63,46,38,63,28,4,14,84,85,1,1,1,7,11,7,24,91,13,34,47,71,24,51,21,8,25,22,24,11,44,11,25,20,54,21,22,40,100,85,87,87,23,26,100,10,"",21,7,38,84,83,8,37,62,75,70,19,6,81,0,39,0,0,0,0,0,0]
[null,null,"2026-02-28",1502,3,"","","",148170,1,"A","RIOT","RIOT PLATFORMS INC",14,"NASDAQ",45,"Information Technology",4510,"Software & Services",451030,"Software",45103010,"Application Software",2025,3,16.29,371.11599999999999,6045.4796399999996,"",1,"",1,1,1,1,2,3,0,66,14,45,21,23,5,10,11,5,9,11,98,"",6,2,8,0,32,64,11,8,"","","",10,55,"",54,"",5,97,99,81,7,47,32,92,90,13,18,3,1,62,56,68,10,48,0,95,8,96,95,39,86,62,81,95,96,38,75,90,89,8,27,100,54,49,35,84,26,100,"",3,3,8,55,88,72,14,37,89,97,96,15,19,48,0,98,0,0,0,0,0,0]
[null,null,"2026-02-28",1503,24,"","","",18564,1,"A","AAOI","APPLIED OPTOELECTRONICS INC",14,"NASDAQ",45,"Information Technology",4520,"Technology Hardware & Equipment",452010,"Communications Equipment",45201020,"Communications Equipment",2025,3,84.23,68.064999999999998,5733.1149500000001,"",1,"",1,1,1,4,3,3,0,12,11,19,23,24,12,20,21,11,19,20,11,"",85,2,12,34,"","",1,0,"","","",10,100,"",64,62,6,1,1,3,12,54,57,2,1,1,15,23,8,2,84,95,11,42,93,90,77,52,50,85,53,10,84,35,43,12,86,65,51,31,32,100,2,21,39,"",100,"",75,"",1,80,92,96,84,0,80,98,97,86,7,89,53,0,2,100,100,100,0,0,100]
[null,null,"2026-02-28",1504,-120,"","","",1050,1,"A","CECO","CECO ENVIRONMENTAL CORP",14,"NASDAQ",20,"Industrials",2010,"Capital Goods",201060,"Machinery",20106020,"Industrial Machinery & Supplies & Components",2025,3,60.45,35.640999999999998,2154.49845,"","","",2,1,1,3,4,1,0,18,42,42,36,35,22,29,29,22,29,29,95,4,20,12,16,23,80,"",37,16,"","","",46,12,40,52,"",53,19,28,43,44,16,25,7,54,14,58,73,4,5,14,14,30,42,80,34,57,39,50,79,57,75,84,75,60,80,87,80,69,72,64,100,58,58,69,"",71,"",8,"",31,91,83,94,94,4,100,89,97,96,34,4,94,0,7,0,100,100,0,0,100]
[null,null,"2026-02-28",1505,-143,"","","",45447,1,"A","ALMS","ALUMIS INC",14,"NASDAQ",35,"Health Care",3520,"Pharmaceuticals, Biotechnology & Life Sciences",352020,"Pharmaceuticals",35202010,"Pharmaceuticals",2025,3,29.69,104.35899999999999,3098.4187099999999,"","","",1,2,1,1,5,1,0,16,5,11,9,8,6,6,5,4,4,3,41,"","","","","","","",73,"","","","",28,100,"",82,97,29,"","","","",88,87,"","","",11,14,0,"","","",1,1,0,"","","","","","",2,90,"","",4,76,"","","","",100,84,47,49,"",26,"","","",55,100,99,98,97,"",100,98,90,86,6,99,"",0,4,100,100,100,0,0,100]
[null,null,"2026-02-28",1506,5,"","","",60820,1,"A","BLSH","BULLISH",11,"NYSE",40,"Financials",4020,"Financial Services",402030,"Capital Markets",40203040,"Financial Exchanges & Data",2025,3,31.39,150.684,4729.9707600000002,"",1,"",1,1,1,2,3,1,0,80,8,24,25,25,21,21,20,20,20,20,"","","","","","","","","","","","","",17,61,0,62,"",65,"","","","",99,99,"","","","","",13,"","","",14,5,"","","","","","","",24,"","","",26,"","","","","",100,81,89,90,0,48,100,60,"",36,2,"","","","",7,"","","","","","",0,10,0,100,0,0,0,0]
[null,null,"2026-02-28",1507,9,"","","",37073,2,"A","SMR","NUSCALE POWER CORP",11,"NYSE",20,"Industrials",2010,"Capital Goods",201040,"Electrical Equipment",20104020,"Heavy Electrical Equipment",2025,3,12.85,167.596,2153.6086,"",1,"",1,2,2,2,2,1,0,50,8,4,14,13,6,7,7,2,4,3,3,"","",0,"","","","",82,74,"","","",0,64,"",96,87,85,"","",60,"",53,37,99,"","",5,8,82,62,"","",2,4,0,98,"","",99,"","",4,6,"","",7,76,"","",19,31,100,93,76,77,"",53,"",2,"",0,0,0,30,14,31,37,62,90,86,68,9,3,0,83,0,0,0,100,0,0]
[null,null,"2026-02-28",1508,-4,"","","",21015,1,"A","OCUL","OCULAR THERAPEUTIX INC",14,"NASDAQ",35,"Health Care",3520,"Pharmaceuticals, Biotechnology & Life Sciences",352020,"Pharmaceuticals",35202010,"Pharmaceuticals",2025,4,8.94,215.928,1930.3963200000001,"","",1,1,2,1,3,1,1,0,44,8,6,9,11,6,9,10,3,5,6,22,"",83,95,72,12,"","",34,3,"","","",1,100,"",96,93,8,2,2,2,12,96,96,4,2,95,0,0,71,10,13,69,2,96,29,1,1,1,4,18,98,5,91,91,95,8,91,97,98,7,1,100,7,20,29,"",100,"",67,"",7,9,11,36,62,15,37,31,54,70,58,8,52,0,2,0,100,100,100,100,0]
[null,null,"2026-02-28",1509,4,"","","",38060,3,"A","RGTI","RIGETTI COMPUTING INC",14,"NASDAQ",45,"Information Technology",4530,"Semiconductors & Semiconductor Equipment",453010,"Semiconductors & Semiconductor Equipment",45301020,"Semiconductors",2025,3,17.420000000000002,325.30799999999999,5666.8653599999998,"",1,1,1,1,2,1,2,1,0,10,4,13,22,22,22,22,21,20,21,20,3,"","",98,"","","","",7,17,"","","",8,100,"",77,95,0,"","",9,"",99,99,98,"","",9,12,99,62,"","",2,1,0,1,"","",1,"","",1,3,"","",3,4,"","",15,16,100,12,15,15,"",26,"","","",1,0,68,87,77,0,7,62,75,70,5,22,81,0,0,0,100,100,0,0,0]
[null,null,"2026-02-28",1510,-2,"","","",37953,3,"A","RUM","RUMBLE INC",14,"NASDAQ",50,"Communication Services",5020,"Media & Entertainment",502030,"Interactive Media & Services",50203010,"Interactive Media & Services",2025,3,5.41,339.07100000000003,1834.37411,"","","",1,1,2,2,1,1,0,22,10,5,8,7,16,12,11,14,9,8,8,"","",17,"","","","",61,92,"","","",5,54,"",85,64,59,"","",73,"",88,87,73,"","",14,19,99,62,"","",5,4,0,96,"","",97,"","",0,3,"","",3,11,"","",1,15,100,94,43,43,"","","","","",89,12,4,7,2,90,7,1,2,2,88,78,3,0,2,0,100,100,0,0,0]
[null,null,"2026-02-28",1511,-136,"","","",38687,1,"A","ATAI","ATAIBECKLEY INC",14,"NASDAQ",35,"Health Care",3520,"Pharmaceuticals, Biotechnology & Life Sciences",352020,"Pharmaceuticals",35202010,"Pharmaceuticals",2025,3,3.63,240.43700000000001,872.78630999999996,"","",2,1,1,2,1,3,1,0,25,4,4,5,2,8,6,5,6,3,4,29,"","",0,1,"","","",69,35,"","","",4,71,"",84,97,7,99,"",83,"",91,91,99,99,"",36,47,97,62,56,"",0,0,0,99,99,"",99,99,"",1,64,16,"",3,18,11,"",5,17,100,44,45,35,"",26,"",2,"",33,3,21,92,94,19,37,89,90,96,20,1,94,0,17,0,100,0,0,0,0]
[null,null,"2026-02-28",1512,-244,"","","",24795,1,"A","AMSC","AMERICAN SUPERCONDUCTOR CP",14,"NASDAQ",20,"Industrials",2010,"Capital Goods",201040,"Electrical Equipment",20104010,"Electrical Components & Equipment",2025,3,32.58,47.612000000000002,1551.1989599999999,"","","",2,1,2,5,1,1,0,45,28,85,31,28,28,27,25,31,28,25,99,"",7,8,5,9,90,"",52,12,"","","",9,21,87,79,38,63,32,74,2,14,59,64,49,10,6,13,19,1,34,58,1,24,35,93,70,93,90,81,94,80,97,95,97,95,89,92,94,90,17,27,100,54,84,89,"",100,"",100,"",10,0,1,71,58,3,37,31,75,70,54,5,22,0,62,0,0,0,100,100,0]
[null,null,"2026-02-28",1513,-63,"","","",8807,1,"A","TXNM","TXNM ENERGY INC",11,"NYSE",55,"Utilities",5510,"Utilities",551010,"Electric Utilities",55101010,"Electric Utilities",2025,3,59.02,108.92100000000001,6428.5174200000001,"","","",2,1,2,1,2,1,56,62,25,45,47,50,7,6,7,11,10,11,44,44,71,35,73,61,14,24,5,13,76,67,65,4,56,15,14,"",2,10,3,14,73,3,1,36,27,31,47,63,40,11,7,19,88,50,35,59,80,50,66,87,56,44,43,45,28,40,36,45,23,88,87,100,6,6,6,57,26,19,17,24,63,42,41,39,68,45,80,31,31,70,55,16,75,0,20,0,100,0,0,0,0]
[null,null,"2026-02-28",1514,15,"","","",39578,1,"A","RDW","REDWIRE CORP",11,"NYSE",20,"Industrials",2010,"Capital Goods",201010,"Aerospace & Defense",20101010,"Aerospace & Defense",2025,3,9.07,154.28399999999999,1399.3558800000001,"","",2,1,1,1,1,1,3,0,76,27,6,11,10,6,15,14,6,14,13,4,"","",74,11,"","","",20,4,"","","",2,1,"",49,33,29,12,"",97,"",28,29,6,9,"",0,0,48,1,2,"",6,14,68,2,16,"",10,17,"",11,86,98,"",14,99,99,"",6,3,100,63,75,80,"",26,"","","",0,95,14,35,3,4,80,31,54,48,99,88,0,0,76,0,0,0,100,100,0]
[null,null,"2026-02-28",1515,"","","","",30137,1,"A","NKTR","NEKTAR THERAPEUTICS",14,"NASDAQ",35,"Health Care",3520,"Pharmaceuticals, Biotechnology & Life Sciences",352020,"Pharmaceuticals",35202010,"Pharmaceuticals",2025,3,68.98,19.652999999999999,1355.6639399999999,"","","",1,2,1,5,3,1,0,9,8,10,3,1,5,3,1,4,2,1,66,"",49,97,94,98,"","",75,68,"","","",7,100,"",77,91,72,94,89,83,84,83,81,59,93,98,19,29,0,62,98,95,3,3,0,1,96,76,1,1,96,4,94,93,5,1,99,10,2,11,4,100,68,90,72,"",100,"",68,"",1,1,89,95,96,73,37,89,75,86,3,2,96,0,6,0,100,100,0,0,0]
[null,null,"2026-02-28",1516,3,"","","",39931,1,"A","NVTS","NAVITAS SEMICONDUCTOR CORP",14,"NASDAQ",45,"Information Technology",4530,"Semiconductors & Semiconductor Equipment",453010,"Semiconductors & Semiconductor Equipment",45301020,"Semiconductors",2025,3,9,214.93899999999999,1934.451,"",1,"",1,1,2,2,3,1,0,26,7,13,15,16,18,16,15,16,14,13,15,"","",98,19,"","","",67,85,"","","",12,7,"",77,89,36,95,"",45,"",90,91,93,96,"",8,11,92,8,98,"",4,47,85,25,98,"",9,34,"",6,6,4,"",10,12,13,"",6,10,100,95,89,88,"",79,"",32,"",1,3,58,97,96,28,37,62,90,70,10,1,95,0,2,0,100,100,0,0,0]
[null,null,"2026-02-28",1517,1,"","","",162643,1,"A","QUBT","QUANTUM COMPUTING INC",14,"NASDAQ",45,"Information Technology",4520,"Technology Hardware & Equipment",452020,"Technology Hardware, Storage & Peripherals",45202030,"Technology Hardware, Storage & Peripherals",2025,3,8.41,186.90799999999999,1571.8962799999999,"","",1,1,2,1,3,1,1,0,65,4,16,19,19,19,21,20,15,17,16,6,"","",8,"","","","",5,1,2,"","",0,44,"",96,98,0,"","",5,"",100,100,0,"","",3,5,54,0,"","",0,0,99,0,"","",0,"","",15,97,"","",20,93,"","",12,29,100,13,37,36,"",100,"","","",2,0,3,63,28,3,7,31,54,48,44,13,3,0,0,0,100,100,100,100,0]
[null,null,"2026-02-28",1518,-1,"","","",35054,1,"A","TRVI","TREVI THERAPEUTICS INC",14,"NASDAQ",35,"Health Care",3520,"Pharmaceuticals, Biotechnology & Life Sciences",352020,"Pharmaceuticals",35202010,"Pharmaceuticals",2025,3,11.92,128.215,1528.3227999999999,"","","",1,1,1,4,4,1,0,16,3,18,21,21,17,17,17,14,15,15,40,"",80,"","","","","",88,65,"","","",6,100,"",83,"","","","",23,9,98,98,"","","",5,7,23,"","","","","",0,"","","","","","",8,98,68,95,12,96,71,93,2,7,100,93,47,56,"",31,"",59,"",67,17,79,72,95,4,37,62,54,86,10,2,96,0,4,0,100,100,0,0,0]
[null,null,"2026-02-28",1519,-4,"","","",39405,1,"A","JOBY","JOBY AVIATION INC",11,"NYSE",20,"Industrials",2030,"Transportation",203020,"Passenger Airlines",20302010,"Passenger Airlines",2025,3,10.06,874.27700000000004,8795.2266199999995,"",1,2,1,1,2,1,1,1,0,13,4,7,11,13,11,12,11,9,9,10,8,"","",0,"","","","",17,16,"","","",8,43,"",81,97,0,"","",62,"",96,96,99,"","",51,66,99,62,"","",1,1,0,99,"","",99,"","",0,1,0,"",2,3,2,"",6,17,100,22,25,22,"",26,"","","",11,2,3,79,70,15,7,31,75,70,53,5,45,0,7,0,100,100,100,100,0]
[null,null,"2026-02-28",1520,0,"","","",38087,4,"A","SOUN","SOUNDHOUND AI INC",14,"NASDAQ",45,"Information Technology",4510,"Software & Services",451030,"Software",45103010,"Application Software",2025,3,8.6,418.83499999999998,3601.9810000000002,"","",2,1,1,2,1,1,1,0,14,8,10,15,14,16,17,16,14,14,14,6,"","",2,"","","","",79,69,"","","",8,26,"",77,87,83,"","",0,"",86,85,97,"","",0,1,97,62,"","",5,63,0,94,"","",3,"","",3,2,"","",3,4,"","",0,0,100,98,97,97,"",26,"",32,"",2,0,13,17,6,5,7,62,75,70,17,80,0,0,0,0,100,100,100,100,0]
[null,null,"2026-02-28",1521,0,"","","",33728,1,"A","SGML","SIGMA LITHIUM CORP",14,"NASDAQ",15,"Materials",1510,"Materials",151040,"Metals & Mining",15104020,"Diversified Metals & Mining",2025,3,14.41,111.363,1604.74083,"",1,"",1,1,1,1,4,1,0,8,12,21,18,17,20,13,12,19,12,11,70,"","",79,"","","","",37,"","","","",36,100,"",52,"",22,"","","","",2,1,10,"","",26,33,52,5,"","",12,23,61,62,"","",92,"","",13,86,"","",8,83,"","",9,17,100,56,2,2,"",26,"",20,"",9,98,93,60,42,97,80,62,54,48,13,98,56,0,7,100,0,100,0,0,0]
[null,null,"2026-02-28",1522,0,"","","",38375,1,"A","OKLO","OKLO INC",11,"NYSE",55,"Utilities",5510,"Utilities",551010,"Electric Utilities",55101010,"Electric Utilities",2025,3,62.95,156.18600000000001,9831.9087,"","","",2,1,1,1,1,1,0,16,3,25,27,27,23,24,23,22,23,23,"","","","","","","","",41,"","","","",8,67,"",80,"","","","","","",99,99,"","","",8,10,24,"","","","","",0,"","","","","","",16,"","","",21,"","","","","",100,1,2,2,"",32,"",11,"",3,2,38,96,90,1,37,62,90,86,12,4,90,0,9,0,100,100,0,0,0]
[null,null,"2026-02-28",1523,0,"","","",26340,1,"A","WVE","WAVE LIFE SCIENCES LTD",14,"NASDAQ",35,"Health Care",3520,"Pharmaceuticals, Biotechnology & Life Sciences",352020,"Pharmaceuticals",35202010,"Pharmaceuticals",2025,3,13.93,160.28800000000001,2232.8118399999998,"","","",1,1,1,2,4,1,0,9,9,14,14,12,8,11,10,7,9,9,55,"",61,2,0,2,"","",74,70,"","","",15,100,"",78,91,77,97,96,18,64,71,62,3,6,99,1,3,0,62,56,68,4,3,0,97,99,99,97,99,99,2,6,96,78,3,72,99,93,5,1,100,87,93,95,"",37,"",21,"",39,93,86,79,55,12,37,62,75,48,28,93,66,0,9,0,100,100,0,0,0]
[null,null,"2026-02-28",1524,"","","","",39800,1,"A","IONQ","IONQ INC",11,"NYSE",45,"Information Technology",4520,"Technology Hardware & Equipment",452020,"Technology Hardware, Storage & Peripherals",45202030,"Technology Hardware, Storage & Peripherals",2025,3,38.369999999999997,325.30900000000003,12482.106330000001,"","",1,1,1,1,4,1,1,0,24,5,8,21,23,19,22,23,17,22,22,1,"","",2,1,"","","",39,78,"","","",6,4,"",78,93,12,99,"",11,"",92,92,0,1,"",8,11,97,0,0,"",2,62,97,90,97,"",65,9,"",5,60,6,"",4,7,6,"",10,24,100,86,53,46,"",71,"",43,"",2,3,32,68,43,1,7,31,54,48,16,38,22,0,3,0,100,100,0,0,0]
[null,null,"2026-02-28",1525,"","","","",33773,1,"A","SSII","SS INNOVATIONS INTERNATI INC",14,"NASDAQ",35,"Health Care",3510,"Health Care Equipment & Services",351010,"Health Care Equipment & Supplies",35101010,"Health Care Equipment",2025,3,4.76,193.59200000000001,921.49792000000002,"","","",1,1,1,2,2,1,0,7,7,24,24,24,18,20,19,17,19,18,"","","","","","","","","","","","","",36,100,"",65,46,24,"","","","",41,57,"","","","","",2,"","","",8,58,96,"","","","","","",10,"","","",11,"","","","","",100,9,50,52,"","","","","",99,0,3,0,1,4,7,31,31,70,37,73,2,0,0,0,100,100,0,100,0]

{"sheet":"Portfolio Page","index":2,"n_rows":506,"n_cols":132,"rows_kept":506,"cut":false,"hidden":false,"merged":[]}
[null,null,{"$f":"MATCH(C$5,Ranks!$5:$5,0)","v":3},{"$f":"MATCH(D$5,Ranks!$5:$5,0)","v":4},{"$f":"MATCH(E$5,Ranks!$5:$5,0)","v":5},{"$f":"MATCH(F$5,Ranks!$5:$5,0)","v":6},{"$f":"MATCH(G$5,Ranks!$5:$5,0)","v":7},{"$f":"MATCH(H$5,Ranks!$5:$5,0)","v":8},{"$f":"MATCH(I$5,Ranks!$5:$5,0)","v":9},{"$f":"MATCH(J$5,Ranks!$5:$5,0)","v":10},{"$f":"MATCH(K$5,Ranks!$5:$5,0)","v":11},{"$f":"MATCH(L$5,Ranks!$5:$5,0)","v":12},{"$f":"MATCH(M$5,Ranks!$5:$5,0)","v":13},{"$f":"MATCH(N$5,Ranks!$5:$5,0)","v":14},{"$f":"MATCH(O$5,Ranks!$5:$5,0)","v":15},{"$f":"MATCH(P$5,Ranks!$5:$5,0)","v":16},{"$f":"MATCH(Q$5,Ranks!$5:$5,0)","v":17},{"$f":"MATCH(R$5,Ranks!$5:$5,0)","v":18},{"$f":"MATCH(S$5,Ranks!$5:$5,0)","v":19},{"$f":"MATCH(T$5,Ranks!$5:$5,0)","v":20},{"$f":"MATCH(U$5,Ranks!$5:$5,0)","v":21},{"$f":"MATCH(V$5,Ranks!$5:$5,0)","v":22},{"$f":"MATCH(W$5,Ranks!$5:$5,0)","v":23},{"$f":"MATCH(X$5,Ranks!$5:$5,0)","v":24},{"$f":"MATCH(Y$5,Ranks!$5:$5,0)","v":25},{"$f":"MATCH(Z$5,Ranks!$5:$5,0)","v":26},{"$f":"MATCH(AA$5,Ranks!$5:$5,0)","v":27},{"$f":"MATCH(AB$5,Ranks!$5:$5,0)","v":28},{"$f":"MATCH(AC$5,Ranks!$5:$5,0)","v":29},{"$f":"MATCH(AD$5,Ranks!$5:$5,0)","v":30},{"$f":"MATCH(AE$5,Ranks!$5:$5,0)","v":31},{"$f":"MATCH(AF$5,Ranks!$5:$5,0)","v":32},{"$f":"MATCH(AG$5,Ranks!$5:$5,0)","v":33},{"$f":"MATCH(AH$5,Ranks!$5:$5,0)","v":34},{"$f":"MATCH(AI$5,Ranks!$5:$5,0)","v":35},{"$f":"MATCH(AJ$5,Ranks!$5:$5,0)","v":36},{"$f":"MATCH(AK$5,Ranks!$5:$5,0)","v":37},{"$f":"MATCH(AL$5,Ranks!$5:$5,0)","v":38},{"$f":"MATCH(AM$5,Ranks!$5:$5,0)","v":39},{"$f":"MATCH(AN$5,Ranks!$5:$5,0)","v":40},{"$f":"MATCH(AO$5,Ranks!$5:$5,0)","v":41},{"$f":"MATCH(AP$5,Ranks!$5:$5,0)","v":42},{"$f":"MATCH(AQ$5,Ranks!$5:$5,0)","v":43},{"$f":"MATCH(AR$5,Ranks!$5:$5,0)","v":44},{"$f":"MATCH(AS$5,Ranks!$5:$5,0)","v":45},{"$f":"MATCH(AT$5,Ranks!$5:$5,0)","v":46},{"$f":"MATCH(AU$5,Ranks!$5:$5,0)","v":47},{"$f":"MATCH(AV$5,Ranks!$5:$5,0)","v":48},{"$f":"MATCH(AW$5,Ranks!$5:$5,0)","v":49},{"$f":"MATCH(AX$5,Ranks!$5:$5,0)","v":50},{"$f":"MATCH(AY$5,Ranks!$5:$5,0)","v":51},{"$f":"MATCH(AZ$5,Ranks!$5:$5,0)","v":52},{"$f":"MATCH(BA$5,Ranks!$5:$5,0)","v":53},{"$f":"MATCH(BB$5,Ranks!$5:$5,0)","v":54},{"$f":"MATCH(BC$5,Ranks!$5:$5,0)","v":55},{"$f":"MATCH(BD$5,Ranks!$5:$5,0)","v":56},{"$f":"MATCH(BE$5,Ranks!$5:$5,0)","v":57},{"$f":"MATCH(BF$5,Ranks!$5:$5,0)","v":58},{"$f":"MATCH(BG$5,Ranks!$5:$5,0)","v":59},{"$f":"MATCH(BH$5,Ranks!$5:$5,0)","v":60},{"$f":"MATCH(BI$5,Ranks!$5:$5,0)","v":61},{"$f":"MATCH(BJ$5,Ranks!$5:$5,0)","v":62},{"$f":"MATCH(BK$5,Ranks!$5:$5,0)","v":63},{"$f":"MATCH(BL$5,Ranks!$5:$5,0)","v":64},{"$f":"MATCH(BM$5,Ranks!$5:$5,0)","v":65},{"$f":"MATCH(BN$5,Ranks!$5:$5,0)","v":66},{"$f":"MATCH(BO$5,Ranks!$5:$5,0)","v":67},{"$f":"MATCH(BP$5,Ranks!$5:$5,0)","v":68},{"$f":"MATCH(BQ$5,Ranks!$5:$5,0)","v":69},{"$f":"MATCH(BR$5,Ranks!$5:$5,0)","v":70},{"$f":"MATCH(BS$5,Ranks!$5:$5,0)","v":71},{"$f":"MATCH(BT$5,Ranks!$5:$5,0)","v":72},{"$f":"MATCH(BU$5,Ranks!$5:$5,0)","v":73},{"$f":"MATCH(BV$5,Ranks!$5:$5,0)","v":74},{"$f":"MATCH(BW$5,Ranks!$5:$5,0)","v":75},{"$f":"MATCH(BX$5,Ranks!$5:$5,0)","v":76},{"$f":"MATCH(BY$5,Ranks!$5:$5,0)","v":77},{"$f":"MATCH(BZ$5,Ranks!$5:$5,0)","v":78},{"$f":"MATCH(CA$5,Ranks!$5:$5,0)","v":79},{"$f":"MATCH(CB$5,Ranks!$5:$5,0)","v":80},{"$f":"MATCH(CC$5,Ranks!$5:$5,0)","v":81},{"$f":"MATCH(CD$5,Ranks!$5:$5,0)","v":82},{"$f":"MATCH(CE$5,Ranks!$5:$5,0)","v":83},{"$f":"MATCH(CF$5,Ranks!$5:$5,0)","v":84},{"$f":"MATCH(CG$5,Ranks!$5:$5,0)","v":85},{"$f":"MATCH(CH$5,Ranks!$5:$5,0)","v":86},{"$f":"MATCH(CI$5,Ranks!$5:$5,0)","v":87},{"$f":"MATCH(CJ$5,Ranks!$5:$5,0)","v":88},{"$f":"MATCH(CK$5,Ranks!$5:$5,0)","v":89},{"$f":"MATCH(CL$5,Ranks!$5:$5,0)","v":90},{"$f":"MATCH(CM$5,Ranks!$5:$5,0)","v":91},{"$f":"MATCH(CN$5,Ranks!$5:$5,0)","v":92},{"$f":"MATCH(CO$5,Ranks!$5:$5,0)","v":93},{"$f":"MATCH(CP$5,Ranks!$5:$5,0)","v":94},{"$f":"MATCH(CQ$5,Ranks!$5:$5,0)","v":95},{"$f":"MATCH(CR$5,Ranks!$5:$5,0)","v":96},{"$f":"MATCH(CS$5,Ranks!$5:$5,0)","v":97},{"$f":"MATCH(CT$5,Ranks!$5:$5,0)","v":98},{"$f":"MATCH(CU$5,Ranks!$5:$5,0)","v":99},{"$f":"MATCH(CV$5,Ranks!$5:$5,0)","v":100},{"$f":"MATCH(CW$5,Ranks!$5:$5,0)","v":101},{"$f":"MATCH(CX$5,Ranks!$5:$5,0)","v":102},{"$f":"MATCH(CY$5,Ranks!$5:$5,0)","v":103},{"$f":"MATCH(CZ$5,Ranks!$5:$5,0)","v":104},{"$f":"MATCH(DA$5,Ranks!$5:$5,0)","v":105},{"$f":"MATCH(DB$5,Ranks!$5:$5,0)","v":106},{"$f":"MATCH(DC$5,Ranks!$5:$5,0)","v":107},{"$f":"MATCH(DD$5,Ranks!$5:$5,0)","v":108},{"$f":"MATCH(DE$5,Ranks!$5:$5,0)","v":109},{"$f":"MATCH(DF$5,Ranks!$5:$5,0)","v":110},{"$f":"MATCH(DG$5,Ranks!$5:$5,0)","v":111},{"$f":"MATCH(DH$5,Ranks!$5:$5,0)","v":112},{"$f":"MATCH(DI$5,Ranks!$5:$5,0)","v":113},{"$f":"MATCH(DJ$5,Ranks!$5:$5,0)","v":114},{"$f":"MATCH(DK$5,Ranks!$5:$5,0)","v":115},{"$f":"MATCH(DL$5,Ranks!$5:$5,0)","v":116},{"$f":"MATCH(DM$5,Ranks!$5:$5,0)","v":117},{"$f":"MATCH(DN$5,Ranks!$5:$5,0)","v":118},{"$f":"MATCH(DO$5,Ranks!$5:$5,0)","v":119},{"$f":"MATCH(DP$5,Ranks!$5:$5,0)","v":120},{"$f":"MATCH(DQ$5,Ranks!$5:$5,0)","v":121},{"$f":"MATCH(DR$5,Ranks!$5:$5,0)","v":122},{"$f":"MATCH(DS$5,Ranks!$5:$5,0)","v":123},{"$f":"MATCH(DT$5,Ranks!$5:$5,0)","v":124},{"$f":"MATCH(DU$5,Ranks!$5:$5,0)","v":125},{"$f":"MATCH(DV$5,Ranks!$5:$5,0)","v":126},{"$f":"MATCH(DW$5,Ranks!$5:$5,0)","v":127},{"$f":"MATCH(DX$5,Ranks!$5:$5,0)","v":128},{"$f":"MATCH(DY$5,Ranks!$5:$5,0)","v":129},{"$f":"MATCH(DZ$5,Ranks!$5:$5,0)","v":130},{"$f":"MATCH(EA$5,Ranks!$5:$5,0)","v":131},{"$f":"MATCH(EB$5,Ranks!$5:$5,0)","v":132}]
[null,null,null,"March 2026 Small & Mid Cap Rankings Tool"]
[null,null,null,"For Institutional Use Only"]
[null,null,null,null,null,null,null,null,null,null,null,null,null,null,null,null,null,null,null,null,null,null,{"$f":"V4&\":\"","v":":"},null,null,null,null,null,null,null,null,null,null,null,null,null,null,"Valuation Quality",null,null,null,null,null,null,null,null,null,null,null,null,null,null,null,null,null,null,null,"Balance Sheet Quality",null,null,null,null,null,null,null,null,null,null,null,null,null,null,null,null,null,null,null,null,null,"Earnings Quality",null,null,null,null,null,null,null,null,null,null,null,null,null,null,null,null,null,null,null,null,null,null,null,null,null,null,"Analyst Quality",null,null,null,null,"Market Quality",null,null,null,null,null,null,null,null,null,null,null,null,"Trading Quality"]
[null,null,"Date","Agg Rank","Rank Chg","Portfolio Stock","New Stock","Non Qtr Flag","GVKey","IID","Status","Ticker","Name","Exchange Code","Exchange Name","Sector Code","Sector Name","Group Code","Group Name","Industry Code","Industry Name","Sub-Industry Code","Sub-Industry Name","Fisc Yr","Fisc Qtr","Price","Shares Outstanding","Market Cap","Earnings Report Date","Proper Peers","Top Miss or Top Beat","Valuation Quintile","Balance Sheet Quintile","Earnings Quality Quintile","Analyst Quality Quintile","Market Quality Quintile","Trading Quality Quintile","Current Div to Price","Current Book to Price","Current Sales to EV","Current Earn to Price","E/P 3 Yr Avg","E/P 5 Yr Avg","Current FCF/P","FCF/P 3-Yr Avg","FCF/P 5-Yr Avg","Current FCF/EV","FCF/EV 3 Yr Avg","FCF/EV 5 Yr Avg","Earn 1 Yr Grth","Earn 3 Yr Grth (Inv)","Earn 5 Yr Grth (Inv)","Sales 1 Yr Grth (Inv)","Sales 3 Yr Grth (Inv)","Sales 5 Yr Grth (Inv)","Theoretical Growth","Theoretical Growth Diff","Current CAPX/Total Assets (Inv)","CAPX/Total Assets 3 Yr Chg (Inv)","Div 1 Yr Grth","Div 3 Yr Grth","Div 5 Yr Grth","Current Buyback Yield","Current GW/Total Assets (Inv)","Current Debt/EBITDA (Inv)","Current Net Cash/EV","Current R&D/Sales","Current CAPX/Sales (Inv)","CAPX/Sales 3 Yr Chg (Inv)","CAPX/Sales 5 Yr Chg (Inv)","WCap 3 Yr Grth (Inv)","WCap 5 Yr Grth (Inv)","Quick Ratio","Current Ratio","Rec/Sales 1 Yr Chg (Inv)","Rec/Sales 3 Yr Chg (Inv)","Rec/Sales 5 Yr Chg (Inv)","BV Grth 3 Yr Disp (Inv)","BV Grth 5 Yr Disp (Inv)","Curr. Accruals/Assets (Inv)","Inv/Sales 1 Yr Chg (Inv)","Inv/Sales 3 Yr Chg (Inv)","Inv/Sales 5 Yr Chg (Inv)","Current Op Margin","Current Gross Margin","Current Inv/Sales","Op Margin 1 Yr Chg","Op Margin 3 Yr Chg","Op Margin 5 Yr Chg","Gross Margin 1 Yr Chg","Gross Margin 3 Yr Chg","Gross Margin 5 Yr Chg","Current ROA","ROA 1 Yr Chg","ROA 3 Yr Chg","ROA 5 Yr Chg","Current ROE","ROE 1 Yr Chg","ROE 3 Yr Chg","ROE 5 Yr Chg","ROA 5 Yr Disp (Inv)","ROE 5 Yr Disp (Inv)","Current XI/Net Income (Inv)","Current Dep/CAPX","Dep/CAPX 3 Yr Avg","Dep/CAPX 5 Yr Avg","LTG Est (Inv)","Shr of Est Rising","LTG Disp (Inv)","Surp Score","PEG Ratio (Inv)","Volume (Inv)","3-Mo Mom","6-Mo Mom","9-Mo Mom","12-Mo Mom","36-Mo Mom (Inv)","3-Mo Bat Avg","6-Mo Bat Avg","9-Mo Bat Avg","12-Mo Bat Avg","3-Mo/6-Mo Breakout","6-Mo/12-Mo Breakout","CAPM Ret Diff (Inv)","Negative 24-Mo Skewness","24-Mo Kurtosis (Inv)","Extreme 6-Mo Momentum","Extreme 24-Mo Skewness","Extreme 24-Mo Kurtosis","Low Mom High Vol","Broken Chart","Hi 6-Mo Mom/Hi 9-Mo Bat Avg"]
["Index",null,"caldt","drank_agg_score","drank_agg_score_chg","activeflag","newflag","np_nonqtrly","gvkey","iid","secstat","tic","conm","exchg","exchg_desc","gsector","gsector_desc","ggroup","ggroup_desc","gind","gind_desc","gsubind","gsubind_desc","qtryr","fqtr","prccm","cshoq","np_mcap","np_qtr_reportdt","wm_flag","soc_flag","quint_v_score","quint_b_score","quint_e_score","quint_a_score","quint_m_score","quint_i_score","apct_NP_DIVYLD_I","apct_NP_SEQ_P","apct_NP_SALE_EV","apct_NP_IB_P","apct_NP_IB_P_3YR_AVG","apct_NP_IB_P_5YR_AVG","apct_NP_FCF_P","apct_NP_FCF_P_3YR_AVG","apct_NP_FCF_P_5YR_AVG","apct_NP_FCF_EV_1YR_AVG","apct_NP_FCF_EV_3YR_AVG","apct_NP_FCF_EV_5YR_AVG","apct_IB_1YR_GRTH","dpct_IB_3YR_GRTH","dpct_IB_5YR_GRTH","dpct_SALE_1YR_GRTH","dpct_SALE_3YR_GRTH","dpct_SALE_5YR_GRTH","apct_NP_GROWTH_RATE","apct_NP_GROWTH_RATE_DIFF","dpct_NP_CAPX_AT","dpct_NP_CAPX_AT_3YR_CHG","apct_DV_1YR_GRTH","apct_DV_3YR_GRTH","apct_DV_5YR_GRTH","apct_NP_BBYLD_D","dpct_NP_GDWL_AT","dpct_NP_DEBT_OIBDP","apct_NP_NETCASH_EV","apct_NP_XRD_SALE","dpct_NP_CAPX_SALE","dpct_NP_CAPX_SALE_3YR_CHG","dpct_NP_CAPX_SALE_5YR_CHG","dpct_NP_WCAP_3YR_GRTH","dpct_NP_WCAP_5YR_GRTH","apct_NP_QUICK_RATIO","apct_NP_CURRENT_RATIO","dpct_NP_RECT_SALE_1YR_CHG","dpct_NP_RECT_SALE_3YR_CHG","dpct_NP_RECT_SALE_5YR_CHG","dpct_NP_SEQ_1YR_GRTH_3YR_STDEV","dpct_NP_SEQ_1YR_GRTH_5YR_STDEV","dpct_NP_ACCRUAL_AT","dpct_NP_INVT_SALE_1YR_CHG","dpct_NP_INVT_SALE_3YR_CHG","dpct_NP_INVT_SALE_5YR_CHG","apct_NP_OP_MARGIN","apct_NP_G_MARGIN","apct_NP_INVT_SALE","apct_NP_OP_MARGIN_1YR_CHG","apct_NP_OP_MARGIN_3YR_CHG","apct_NP_OP_MARGIN_5YR_CHG","apct_NP_G_MARGIN_1YR_CHG","apct_NP_G_MARGIN_3YR_CHG","apct_NP_G_MARGIN_5YR_CHG","apct_NP_ROA","apct_NP_ROA_1YR_CHG","apct_NP_ROA_3YR_CHG","apct_NP_ROA_5YR_CHG","apct_NP_ROE","apct_NP_ROE_1YR_CHG","apct_NP_ROE_3YR_CHG","apct_NP_ROE_5YR_CHG","dpct_NP_ROA_5YR_STDEV","dpct_NP_ROE_5YR_STDEV","dpct_NP_XIDO_NI","apct_NP_DP_CAPX","apct_NP_DP_CAPX_3YR_AVG","apct_NP_DP_CAPX_5YR_AVG","dpct_EPSEST_MEAN_F_LTG","apct_NP_EPSEST_RISING","dpct_EPSEST_STDEV_F_LTG","apct_EPSSURP_FQ_SCORE","apct_NP_GEP","dpct_NP_VOLPCT","apct_MOM3","apct_MOM6","apct_MOM9","apct_MOM12","dpct_MOM36","apct_MOM3_BA","apct_MOM6_BA","apct_MOM9_BA","apct_MOM12_BA","apct_BREAKOUT_MOM3_6","apct_BREAKOUT_MOM6_12","dpct_NP_CAPM_DIFF","NEG_MOM24_SKEW","dpct_MOM24_KURT","NP_MOM6_X_H","NP_MOM24SKEW_X_H","NP_MOM24KURT_X_H","NP_MOM6_VOL_XN2_L","NP_MOM6_MOM36_XN2_L","NP_MOM6_MOM9BA_XN2_H"]
[{"$f":"IFERROR(MATCH('Portfolio Page'!L7,Ranks!L:L,0),\"N/A\")","v":"N/A"},null,{"$f":"IF($A7=\"N/A\",\"\",INDEX(Ranks!$1:$1048576,$A7,C$1))","v":""},{"$f":"IF($A7=\"N/A\",Ref!$B$36,INDEX(Ranks!$1:$1048576,$A7,D$1))","v":""},{"$f":"IF($A7=\"N/A\",Ref!$B$36,INDEX(Ranks!$1:$1048576,$A7,E$1))","v":""},{"$f":"IF($A7=\"N/A\",\"\",INDEX(Ranks!$1:$1048576,$A7,F$1))","v":""},{"$f":"IF($A7=\"N/A\",\"\",INDEX(Ranks!$1:$1048576,$A7,G$1))","v":""},{"$f":"IF($A7=\"N/A\",\"\",INDEX(Ranks!$1:$1048576,$A7,H$1))","v":""},{"$f":"IF($A7=\"N/A\",\"\",INDEX(Ranks!$1:$1048576,$A7,I$1))","v":""},{"$f":"IF($A7=\"N/A\",\"\",INDEX(Ranks!$1:$1048576,$A7,J$1))","v":""},{"$f":"IF($A7=\"N/A\",\"\",INDEX(Ranks!$1:$1048576,$A7,K$1))","v":""},null,{"$f":"IF($A7=\"N/A\",Ref!$B$36,INDEX(Ranks!$1:$1048576,$A7,M$1))","v":""},{"$f":"IF($A7=\"N/A\",Ref!$B$36,INDEX(Ranks!$1:$1048576,$A7,N$1))","v":""},{"$f":"IF($A7=\"N/A\",Ref!$B$36,INDEX(Ranks!$1:$1048576,$A7,O$1))","v":""},{"$f":"IF($A7=\"N/A\",Ref!$B$36,INDEX(Ranks!$1:$1048576,$A7,P$1))","v":""},{"$f":"IF($A7=\"N/A\",Ref!$B$36,INDEX(Ranks!$1:$1048576,$A7,Q$1))","v":""},{"$f":"IF($A7=\"N/A\",Ref!$B$36,INDEX(Ranks!$1:$1048576,$A7,R$1))","v":""},{"$f":"IF($A7=\"N/A\",Ref!$B$36,INDEX(Ranks!$1:$1048576,$A7,S$1))","v":""},{"$f":"IF($A7=\"N/A\",Ref!$B$36,INDEX(Ranks!$1:$1048576,$A7,T$1))","v":""},{"$f":"IF($A7=\"N/A\",Ref!$B$36,INDEX(Ranks!$1:$1048576,$A7,U$1))","v":""},{"$f":"IF($A7=\"N/A\",Ref!$B$36,INDEX(Ranks!$1:$1048576,$A7,V$1))","v":""},{"$f":"IF($A7=\"N/A\",Ref!$B$36,INDEX(Ranks!$1:$1048576,$A7,W$1))","v":""},{"$f":"IF($A7=\"N/A\",Ref!$B$36,INDEX(Ranks!$1:$1048576,$A7,X$1))","v":""},{"$f":"IF($A7=\"N/A\",Ref!$B$36,INDEX(Ranks!$1:$1048576,$A7,Y$1))","v":""},{"$f":"IF($A7=\"N/A\",Ref!$B$36,INDEX(Ranks!$1:$1048576,$A7,Z$1))","v":""},{"$f":"IF($A7=\"N/A\",Ref!$B$36,INDEX(Ranks!$1:$1048576,$A7,AA$1))","v":""},{"$f":"IF($A7=\"N/A\",Ref!$B$36,INDEX(Ranks!$1:$1048576,$A7,AB$1))","v":""},{"$f":"IF($A7=\"N/A\",Ref!$B$36,INDEX(Ranks!$1:$1048576,$A7,AC$1))","v":""},{"$f":"IF($A7=\"N/A\",Ref!$B$36,INDEX(Ranks!$1:$1048576,$A7,AD$1))","v":""},{"$f":"IF($A7=\"N/A\",Ref!$B$36,INDEX(Ranks!$1:$1048576,$A7,AE$1))","v":""},{"$f":"IF($A7=\"N/A\",Ref!$B$36,INDEX(Ranks!$1:$1048576,$A7,AF$1))","v":""},{"$f":"IF($A7=\"N/A\",Ref!$B$36,INDEX(Ranks!$1:$1048576,$A7,AG$1))","v":""},{"$f":"IF($A7=\"N/A\",Ref!$B$36,INDEX(Ranks!$1:$1048576,$A7,AH$1))","v":""},{"$f":"IF($A7=\"N/A\",Ref!$B$36,INDEX(Ranks!$1:$1048576,$A7,AI$1))","v":""},{"$f":"IF($A7=\"N/A\",Ref!$B$36,INDEX(Ranks!$1:$1048576,$A7,AJ$1))","v":""},{"$f":"IF($A7=\"N/A\",Ref!$B$36,INDEX(Ranks!$1:$1048576,$A7,AK$1))","v":""},{"$f":"IF($A7=\"N/A\",Ref!$B$36,INDEX(Ranks!$1:$1048576,$A7,AL$1))","v":""},{"$f":"IF($A7=\"N/A\",Ref!$B$36,INDEX(Ranks!$1:$1048576,$A7,AM$1))","v":""},{"$f":"IF($A7=\"N/A\",Ref!$B$36,INDEX(Ranks!$1:$1048576,$A7,AN$1))","v":""},{"$f":"IF($A7=\"N/A\",Ref!$B$36,INDEX(Ranks!$1:$1048576,$A7,AO$1))","v":""},{"$f":"IF($A7=\"N/A\",Ref!$B$36,INDEX(Ranks!$1:$1048576,$A7,AP$1))","v":""},{"$f":"IF($A7=\"N/A\",Ref!$B$36,INDEX(Ranks!$1:$1048576,$A7,AQ$1))","v":""},{"$f":"IF($A7=\"N/A\",Ref!$B$36,INDEX(Ranks!$1:$1048576,$A7,AR$1))","v":""},{"$f":"IF($A7=\"N/A\",Ref!$B$36,INDEX(Ranks!$1:$1048576,$A7,AS$1))","v":""},{"$f":"IF($A7=\"N/A\",Ref!$B$36,INDEX(Ranks!$1:$1048576,$A7,AT$1))","v":""},{"$f":"IF($A7=\"N/A\",Ref!$B$36,INDEX(Ranks!$1:$1048576,$A7,AU$1))","v":""},{"$f":"IF($A7=\"N/A\",Ref!$B$36,INDEX(Ranks!$1:$1048576,$A7,AV$1))","v":""},{"$f":"IF($A7=\"N/A\",Ref!$B$36,INDEX(Ranks!$1:$1048576,$A7,AW$1))","v":""},{"$f":"IF($A7=\"N/A\",Ref!$B$36,INDEX(Ranks!$1:$1048576,$A7,AX$1))","v":""},{"$f":"IF($A7=\"N/A\",Ref!$B$36,INDEX(Ranks!$1:$1048576,$A7,AY$1))","v":""},{"$f":"IF($A7=\"N/A\",Ref!$B$36,INDEX(Ranks!$1:$1048576,$A7,AZ$1))","v":""},{"$f":"IF($A7=\"N/A\",Ref!$B$36,INDEX(Ranks!$1:$1048576,$A7,BA$1))","v":""},{"$f":"IF($A7=\"N/A\",Ref!$B$36,INDEX(Ranks!$1:$1048576,$A7,BB$1))","v":""},{"$f":"IF($A7=\"N/A\",Ref!$B$36,INDEX(Ranks!$1:$1048576,$A7,BC$1))","v":""},{"$f":"IF($A7=\"N/A\",Ref!$B$36,INDEX(Ranks!$1:$1048576,$A7,BD$1))","v":""},{"$f":"IF($A7=\"N/A\",Ref!$B$36,INDEX(Ranks!$1:$1048576,$A7,BE$1))","v":""},{"$f":"IF($A7=\"N/A\",Ref!$B$36,INDEX(Ranks!$1:$1048576,$A7,BF$1))","v":""},{"$f":"IF($A7=\"N/A\",Ref!$B$36,INDEX(Ranks!$1:$1048576,$A7,BG$1))","v":""},{"$f":"IF($A7=\"N/A\",Ref!$B$36,INDEX(Ranks!$1:$1048576,$A7,BH$1))","v":""},{"$f":"IF($A7=\"N/A\",Ref!$B$36,INDEX(Ranks!$1:$1048576,$A7,BI$1))","v":""},{"$f":"IF($A7=\"N/A\",Ref!$B$36,INDEX(Ranks!$1:$1048576,$A7,BJ$1))","v":""},{"$f":"IF($A7=\"N/A\",Ref!$B$36,INDEX(Ranks!$1:$1048576,$A7,BK$1))","v":""},{"$f":"IF($A7=\"N/A\",Ref!$B$36,INDEX(Ranks!$1:$1048576,$A7,BL$1))","v":""},{"$f":"IF($A7=\"N/A\",Ref!$B$36,INDEX(Ranks!$1:$1048576,$A7,BM$1))","v":""},{"$f":"IF($A7=\"N/A\",Ref!$B$36,INDEX(Ranks!$1:$1048576,$A7,BN$1))","v":""},{"$f":"IF($A7=\"N/A\",Ref!$B$36,INDEX(Ranks!$1:$1048576,$A7,BO$1))","v":""},{"$f":"IF($A7=\"N/A\",Ref!$B$36,INDEX(Ranks!$1:$1048576,$A7,BP$1))","v":""},{"$f":"IF($A7=\"N/A\",Ref!$B$36,INDEX(Ranks!$1:$1048576,$A7,BQ$1))","v":""},{"$f":"IF($A7=\"N/A\",Ref!$B$36,INDEX(Ranks!$1:$1048576,$A7,BR$1))","v":""},{"$f":"IF($A7=\"N/A\",Ref!$B$36,INDEX(Ranks!$1:$1048576,$A7,BS$1))","v":""},{"$f":"IF($A7=\"N/A\",Ref!$B$36,INDEX(Ranks!$1:$1048576,$A7,BT$1))","v":""},{"$f":"IF($A7=\"N/A\",Ref!$B$36,INDEX(Ranks!$1:$1048576,$A7,BU$1))","v":""},{"$f":"IF($A7=\"N/A\",Ref!$B$36,INDEX(Ranks!$1:$1048576,$A7,BV$1))","v":""},{"$f":"IF($A7=\"N/A\",Ref!$B$36,INDEX(Ranks!$1:$1048576,$A7,BW$1))","v":""},{"$f":"IF($A7=\"N/A\",Ref!$B$36,INDEX(Ranks!$1:$1048576,$A7,BX$1))","v":""},{"$f":"IF($A7=\"N/A\",Ref!$B$36,INDEX(Ranks!$1:$1048576,$A7,BY$1))","v":""},{"$f":"IF($A7=\"N/A\",Ref!$B$36,INDEX(Ranks!$1:$1048576,$A7,BZ$1))","v":""},{"$f":"IF($A7=\"N/A\",Ref!$B$36,INDEX(Ranks!$1:$1048576,$A7,CA$1))","v":""},{"$f":"IF($A7=\"N/A\",Ref!$B$36,INDEX(Ranks!$1:$1048576,$A7,CB$1))","v":""},{"$f":"IF($A7=\"N/A\",Ref!$B$36,INDEX(Ranks!$1:$1048576,$A7,CC$1))","v":""},{"$f":"IF($A7=\"N/A\",Ref!$B$36,INDEX(Ranks!$1:$1048576,$A7,CD$1))","v":""},{"$f":"IF($A7=\"N/A\",Ref!$B$36,INDEX(Ranks!$1:$1048576,$A7,CE$1))","v":""},{"$f":"IF($A7=\"N/A\",Ref!$B$36,INDEX(Ranks!$1:$1048576,$A7,CF$1))","v":""},{"$f":"IF($A7=\"N/A\",Ref!$B$36,INDEX(Ranks!$1:$1048576,$A7,CG$1))","v":""},{"$f":"IF($A7=\"N/A\",Ref!$B$36,INDEX(Ranks!$1:$1048576,$A7,CH$1))","v":""},{"$f":"IF($A7=\"N/A\",Ref!$B$36,INDEX(Ranks!$1:$1048576,$A7,CI$1))","v":""},{"$f":"IF($A7=\"N/A\",Ref!$B$36,INDEX(Ranks!$1:$1048576,$A7,CJ$1))","v":""},{"$f":"IF($A7=\"N/A\",Ref!$B$36,INDEX(Ranks!$1:$1048576,$A7,CK$1))","v":""},{"$f":"IF($A7=\"N/A\",Ref!$B$36,INDEX(Ranks!$1:$1048576,$A7,CL$1))","v":""},{"$f":"IF($A7=\"N/A\",Ref!$B$36,INDEX(Ranks!$1:$1048576,$A7,CM$1))","v":""},{"$f":"IF($A7=\"N/A\",Ref!$B$36,INDEX(Ranks!$1:$1048576,$A7,CN$1))","v":""},{"$f":"IF($A7=\"N/A\",Ref!$B$36,INDEX(Ranks!$1:$1048576,$A7,CO$1))","v":""},{"$f":"IF($A7=\"N/A\",Ref!$B$36,INDEX(Ranks!$1:$1048576,$A7,CP$1))","v":""},{"$f":"IF($A7=\"N/A\",Ref!$B$36,INDEX(Ranks!$1:$1048576,$A7,CQ$1))","v":""},{"$f":"IF($A7=\"N/A\",Ref!$B$36,INDEX(Ranks!$1:$1048576,$A7,CR$1))","v":""},{"$f":"IF($A7=\"N/A\",Ref!$B$36,INDEX(Ranks!$1:$1048576,$A7,CS$1))","v":""},{"$f":"IF($A7=\"N/A\",Ref!$B$36,INDEX(Ranks!$1:$1048576,$A7,CT$1))","v":""},{"$f":"IF($A7=\"N/A\",Ref!$B$36,INDEX(Ranks!$1:$1048576,$A7,CU$1))","v":""},{"$f":"IF($A7=\"N/A\",Ref!$B$36,INDEX(Ranks!$1:$1048576,$A7,CV$1))","v":""},{"$f":"IF($A7=\"N/A\",Ref!$B$36,INDEX(Ranks!$1:$1048576,$A7,CW$1))","v":""},{"$f":"IF($A7=\"N/A\",Ref!$B$36,INDEX(Ranks!$1:$1048576,$A7,CX$1))","v":""},{"$f":"IF($A7=\"N/A\",Ref!$B$36,INDEX(Ranks!$1:$1048576,$A7,CY$1))","v":""},{"$f":"IF($A7=\"N/A\",Ref!$B$36,INDEX(Ranks!$1:$1048576,$A7,CZ$1))","v":""},{"$f":"IF($A7=\"N/A\",Ref!$B$36,INDEX(Ranks!$1:$1048576,$A7,DA$1))","v":""},{"$f":"IF($A7=\"N/A\",Ref!$B$36,INDEX(Ranks!$1:$1048576,$A7,DB$1))","v":""},{"$f":"IF($A7=\"N/A\",Ref!$B$36,INDEX(Ranks!$1:$1048576,$A7,DC$1))","v":""},{"$f":"IF($A7=\"N/A\",Ref!$B$36,INDEX(Ranks!$1:$1048576,$A7,DD$1))","v":""},{"$f":"IF($A7=\"N/A\",Ref!$B$36,INDEX(Ranks!$1:$1048576,$A7,DE$1))","v":""},{"$f":"IF($A7=\"N/A\",Ref!$B$36,INDEX(Ranks!$1:$1048576,$A7,DF$1))","v":""},{"$f":"IF($A7=\"N/A\",Ref!$B$36,INDEX(Ranks!$1:$1048576,$A7,DG$1))","v":""},{"$f":"IF($A7=\"N/A\",Ref!$B$36,INDEX(Ranks!$1:$1048576,$A7,DH$1))","v":""},{"$f":"IF($A7=\"N/A\",Ref!$B$36,INDEX(Ranks!$1:$1048576,$A7,DI$1))","v":""},{"$f":"IF($A7=\"N/A\",Ref!$B$36,INDEX(Ranks!$1:$1048576,$A7,DJ$1))","v":""},{"$f":"IF($A7=\"N/A\",Ref!$B$36,INDEX(Ranks!$1:$1048576,$A7,DK$1))","v":""},{"$f":"IF($A7=\"N/A\",Ref!$B$36,INDEX(Ranks!$1:$1048576,$A7,DL$1))","v":""},{"$f":"IF($A7=\"N/A\",Ref!$B$36,INDEX(Ranks!$1:$1048576,$A7,DM$1))","v":""},{"$f":"IF($A7=\"N/A\",Ref!$B$36,INDEX(Ranks!$1:$1048576,$A7,DN$1))","v":""},{"$f":"IF($A7=\"N/A\",Ref!$B$36,INDEX(Ranks!$1:$1048576,$A7,DO$1))","v":""},{"$f":"IF($A7=\"N/A\",Ref!$B$36,INDEX(Ranks!$1:$1048576,$A7,DP$1))","v":""},{"$f":"IF($A7=\"N/A\",Ref!$B$36,INDEX(Ranks!$1:$1048576,$A7,DQ$1))","v":""},{"$f":"IF($A7=\"N/A\",Ref!$B$36,INDEX(Ranks!$1:$1048576,$A7,DR$1))","v":""},{"$f":"IF($A7=\"N/A\",Ref!$B$36,INDEX(Ranks!$1:$1048576,$A7,DS$1))","v":""},{"$f":"IF($A7=\"N/A\",Ref!$B$36,INDEX(Ranks!$1:$1048576,$A7,DT$1))","v":""},{"$f":"IF($A7=\"N/A\",Ref!$B$36,INDEX(Ranks!$1:$1048576,$A7,DU$1))","v":""},{"$f":"IF($A7=\"N/A\",Ref!$B$36,INDEX(Ranks!$1:$1048576,$A7,DV$1))","v":""},{"$f":"IF($A7=\"N/A\",Ref!$B$36,INDEX(Ranks!$1:$1048576,$A7,DW$1))","v":""},{"$f":"IF($A7=\"N/A\",Ref!$B$36,INDEX(Ranks!$1:$1048576,$A7,DX$1))","v":""},{"$f":"IF($A7=\"N/A\",Ref!$B$36,INDEX(Ranks!$1:$1048576,$A7,DY$1))","v":""},{"$f":"IF($A7=\"N/A\",Ref!$B$36,INDEX(Ranks!$1:$1048576,$A7,DZ$1))","v":""},{"$f":"IF($A7=\"N/A\",Ref!$B$36,INDEX(Ranks!$1:$1048576,$A7,EA$1))","v":""},{"$f":"IF($A7=\"N/A\",Ref!$B$36,INDEX(Ranks!$1:$1048576,$A7,EB$1))","v":""}]
[{"$f":"IFERROR(MATCH('Portfolio Page'!L8,Ranks!L:L,0),\"N/A\")","v":"N/A"},null,{"$f":"IF($A8=\"N/A\",\"\",INDEX(Ranks!$1:$1048576,$A8,C$1))","v":""},{"$f":"IF($A8=\"N/A\",Ref!$B$36,INDEX(Ranks!$1:$1048576,$A8,D$1))","v":""},{"$f":"IF($A8=\"N/A\",Ref!$B$36,INDEX(Ranks!$1:$1048576,$A8,E$1))","v":""},{"$f":"IF($A8=\"N/A\",\"\",INDEX(Ranks!$1:$1048576,$A8,F$1))","v":""},{"$f":"IF($A8=\"N/A\",\"\",INDEX(Ranks!$1:$1048576,$A8,G$1))","v":""},{"$f":"IF($A8=\"N/A\",\"\",INDEX(Ranks!$1:$1048576,$A8,H$1))","v":""},{"$f":"IF($A8=\"N/A\",\"\",INDEX(Ranks!$1:$1048576,$A8,I$1))","v":""},{"$f":"IF($A8=\"N/A\",\"\",INDEX(Ranks!$1:$1048576,$A8,J$1))","v":""},{"$f":"IF($A8=\"N/A\",\"\",INDEX(Ranks!$1:$1048576,$A8,K$1))","v":""},null,{"$f":"IF($A8=\"N/A\",Ref!$B$36,INDEX(Ranks!$1:$1048576,$A8,M$1))","v":""},{"$f":"IF($A8=\"N/A\",Ref!$B$36,INDEX(Ranks!$1:$1048576,$A8,N$1))","v":""},{"$f":"IF($A8=\"N/A\",Ref!$B$36,INDEX(Ranks!$1:$1048576,$A8,O$1))","v":""},{"$f":"IF($A8=\"N/A\",Ref!$B$36,INDEX(Ranks!$1:$1048576,$A8,P$1))","v":""},{"$f":"IF($A8=\"N/A\",Ref!$B$36,INDEX(Ranks!$1:$1048576,$A8,Q$1))","v":""},{"$f":"IF($A8=\"N/A\",Ref!$B$36,INDEX(Ranks!$1:$1048576,$A8,R$1))","v":""},{"$f":"IF($A8=\"N/A\",Ref!$B$36,INDEX(Ranks!$1:$1048576,$A8,S$1))","v":""},{"$f":"IF($A8=\"N/A\",Ref!$B$36,INDEX(Ranks!$1:$1048576,$A8,T$1))","v":""},{"$f":"IF($A8=\"N/A\",Ref!$B$36,INDEX(Ranks!$1:$1048576,$A8,U$1))","v":""},{"$f":"IF($A8=\"N/A\",Ref!$B$36,INDEX(Ranks!$1:$1048576,$A8,V$1))","v":""},{"$f":"IF($A8=\"N/A\",Ref!$B$36,INDEX(Ranks!$1:$1048576,$A8,W$1))","v":""},{"$f":"IF($A8=\"N/A\",Ref!$B$36,INDEX(Ranks!$1:$1048576,$A8,X$1))","v":""},{"$f":"IF($A8=\"N/A\",Ref!$B$36,INDEX(Ranks!$1:$1048576,$A8,Y$1))","v":""},{"$f":"IF($A8=\"N/A\",Ref!$B$36,INDEX(Ranks!$1:$1048576,$A8,Z$1))","v":""},{"$f":"IF($A8=\"N/A\",Ref!$B$36,INDEX(Ranks!$1:$1048576,$A8,AA$1))","v":""},{"$f":"IF($A8=\"N/A\",Ref!$B$36,INDEX(Ranks!$1:$1048576,$A8,AB$1))","v":""},{"$f":"IF($A8=\"N/A\",Ref!$B$36,INDEX(Ranks!$1:$1048576,$A8,AC$1))","v":""},{"$f":"IF($A8=\"N/A\",Ref!$B$36,INDEX(Ranks!$1:$1048576,$A8,AD$1))","v":""},{"$f":"IF($A8=\"N/A\",Ref!$B$36,INDEX(Ranks!$1:$1048576,$A8,AE$1))","v":""},{"$f":"IF($A8=\"N/A\",Ref!$B$36,INDEX(Ranks!$1:$1048576,$A8,AF$1))","v":""},{"$f":"IF($A8=\"N/A\",Ref!$B$36,INDEX(Ranks!$1:$1048576,$A8,AG$1))","v":""},{"$f":"IF($A8=\"N/A\",Ref!$B$36,INDEX(Ranks!$1:$1048576,$A8,AH$1))","v":""},{"$f":"IF($A8=\"N/A\",Ref!$B$36,INDEX(Ranks!$1:$1048576,$A8,AI$1))","v":""},{"$f":"IF($A8=\"N/A\",Ref!$B$36,INDEX(Ranks!$1:$1048576,$A8,AJ$1))","v":""},{"$f":"IF($A8=\"N/A\",Ref!$B$36,INDEX(Ranks!$1:$1048576,$A8,AK$1))","v":""},{"$f":"IF($A8=\"N/A\",Ref!$B$36,INDEX(Ranks!$1:$1048576,$A8,AL$1))","v":""},{"$f":"IF($A8=\"N/A\",Ref!$B$36,INDEX(Ranks!$1:$1048576,$A8,AM$1))","v":""},{"$f":"IF($A8=\"N/A\",Ref!$B$36,INDEX(Ranks!$1:$1048576,$A8,AN$1))","v":""},{"$f":"IF($A8=\"N/A\",Ref!$B$36,INDEX(Ranks!$1:$1048576,$A8,AO$1))","v":""},{"$f":"IF($A8=\"N/A\",Ref!$B$36,INDEX(Ranks!$1:$1048576,$A8,AP$1))","v":""},{"$f":"IF($A8=\"N/A\",Ref!$B$36,INDEX(Ranks!$1:$1048576,$A8,AQ$1))","v":""},{"$f":"IF($A8=\"N/A\",Ref!$B$36,INDEX(Ranks!$1:$1048576,$A8,AR$1))","v":""},{"$f":"IF($A8=\"N/A\",Ref!$B$36,INDEX(Ranks!$1:$1048576,$A8,AS$1))","v":""},{"$f":"IF($A8=\"N/A\",Ref!$B$36,INDEX(Ranks!$1:$1048576,$A8,AT$1))","v":""},{"$f":"IF($A8=\"N/A\",Ref!$B$36,INDEX(Ranks!$1:$1048576,$A8,AU$1))","v":""},{"$f":"IF($A8=\"N/A\",Ref!$B$36,INDEX(Ranks!$1:$1048576,$A8,AV$1))","v":""},{"$f":"IF($A8=\"N/A\",Ref!$B$36,INDEX(Ranks!$1:$1048576,$A8,AW$1))","v":""},{"$f":"IF($A8=\"N/A\",Ref!$B$36,INDEX(Ranks!$1:$1048576,$A8,AX$1))","v":""},{"$f":"IF($A8=\"N/A\",Ref!$B$36,INDEX(Ranks!$1:$1048576,$A8,AY$1))","v":""},{"$f":"IF($A8=\"N/A\",Ref!$B$36,INDEX(Ranks!$1:$1048576,$A8,AZ$1))","v":""},{"$f":"IF($A8=\"N/A\",Ref!$B$36,INDEX(Ranks!$1:$1048576,$A8,BA$1))","v":""},{"$f":"IF($A8=\"N/A\",Ref!$B$36,INDEX(Ranks!$1:$1048576,$A8,BB$1))","v":""},{"$f":"IF($A8=\"N/A\",Ref!$B$36,INDEX(Ranks!$1:$1048576,$A8,BC$1))","v":""},{"$f":"IF($A8=\"N/A\",Ref!$B$36,INDEX(Ranks!$1:$1048576,$A8,BD$1))","v":""},{"$f":"IF($A8=\"N/A\",Ref!$B$36,INDEX(Ranks!$1:$1048576,$A8,BE$1))","v":""},{"$f":"IF($A8=\"N/A\",Ref!$B$36,INDEX(Ranks!$1:$1048576,$A8,BF$1))","v":""},{"$f":"IF($A8=\"N/A\",Ref!$B$36,INDEX(Ranks!$1:$1048576,$A8,BG$1))","v":""},{"$f":"IF($A8=\"N/A\",Ref!$B$36,INDEX(Ranks!$1:$1048576,$A8,BH$1))","v":""},{"$f":"IF($A8=\"N/A\",Ref!$B$36,INDEX(Ranks!$1:$1048576,$A8,BI$1))","v":""},{"$f":"IF($A8=\"N/A\",Ref!$B$36,INDEX(Ranks!$1:$1048576,$A8,BJ$1))","v":""},{"$f":"IF($A8=\"N/A\",Ref!$B$36,INDEX(Ranks!$1:$1048576,$A8,BK$1))","v":""},{"$f":"IF($A8=\"N/A\",Ref!$B$36,INDEX(Ranks!$1:$1048576,$A8,BL$1))","v":""},{"$f":"IF($A8=\"N/A\",Ref!$B$36,INDEX(Ranks!$1:$1048576,$A8,BM$1))","v":""},{"$f":"IF($A8=\"N/A\",Ref!$B$36,INDEX(Ranks!$1:$1048576,$A8,BN$1))","v":""},{"$f":"IF($A8=\"N/A\",Ref!$B$36,INDEX(Ranks!$1:$1048576,$A8,BO$1))","v":""},{"$f":"IF($A8=\"N/A\",Ref!$B$36,INDEX(Ranks!$1:$1048576,$A8,BP$1))","v":""},{"$f":"IF($A8=\"N/A\",Ref!$B$36,INDEX(Ranks!$1:$1048576,$A8,BQ$1))","v":""},{"$f":"IF($A8=\"N/A\",Ref!$B$36,INDEX(Ranks!$1:$1048576,$A8,BR$1))","v":""},{"$f":"IF($A8=\"N/A\",Ref!$B$36,INDEX(Ranks!$1:$1048576,$A8,BS$1))","v":""},{"$f":"IF($A8=\"N/A\",Ref!$B$36,INDEX(Ranks!$1:$1048576,$A8,BT$1))","v":""},{"$f":"IF($A8=\"N/A\",Ref!$B$36,INDEX(Ranks!$1:$1048576,$A8,BU$1))","v":""},{"$f":"IF($A8=\"N/A\",Ref!$B$36,INDEX(Ranks!$1:$1048576,$A8,BV$1))","v":""},{"$f":"IF($A8=\"N/A\",Ref!$B$36,INDEX(Ranks!$1:$1048576,$A8,BW$1))","v":""},{"$f":"IF($A8=\"N/A\",Ref!$B$36,INDEX(Ranks!$1:$1048576,$A8,BX$1))","v":""},{"$f":"IF($A8=\"N/A\",Ref!$B$36,INDEX(Ranks!$1:$1048576,$A8,BY$1))","v":""},{"$f":"IF($A8=\"N/A\",Ref!$B$36,INDEX(Ranks!$1:$1048576,$A8,BZ$1))","v":""},{"$f":"IF($A8=\"N/A\",Ref!$B$36,INDEX(Ranks!$1:$1048576,$A8,CA$1))","v":""},{"$f":"IF($A8=\"N/A\",Ref!$B$36,INDEX(Ranks!$1:$1048576,$A8,CB$1))","v":""},{"$f":"IF($A8=\"N/A\",Ref!$B$36,INDEX(Ranks!$1:$1048576,$A8,CC$1))","v":""},{"$f":"IF($A8=\"N/A\",Ref!$B$36,INDEX(Ranks!$1:$1048576,$A8,CD$1))","v":""},{"$f":"IF($A8=\"N/A\",Ref!$B$36,INDEX(Ranks!$1:$1048576,$A8,CE$1))","v":""},{"$f":"IF($A8=\"N/A\",Ref!$B$36,INDEX(Ranks!$1:$1048576,$A8,CF$1))","v":""},{"$f":"IF($A8=\"N/A\",Ref!$B$36,INDEX(Ranks!$1:$1048576,$A8,CG$1))","v":""},{"$f":"IF($A8=\"N/A\",Ref!$B$36,INDEX(Ranks!$1:$1048576,$A8,CH$1))","v":""},{"$f":"IF($A8=\"N/A\",Ref!$B$36,INDEX(Ranks!$1:$1048576,$A8,CI$1))","v":""},{"$f":"IF($A8=\"N/A\",Ref!$B$36,INDEX(Ranks!$1:$1048576,$A8,CJ$1))","v":""},{"$f":"IF($A8=\"N/A\",Ref!$B$36,INDEX(Ranks!$1:$1048576,$A8,CK$1))","v":""},{"$f":"IF($A8=\"N/A\",Ref!$B$36,INDEX(Ranks!$1:$1048576,$A8,CL$1))","v":""},{"$f":"IF($A8=\"N/A\",Ref!$B$36,INDEX(Ranks!$1:$1048576,$A8,CM$1))","v":""},{"$f":"IF($A8=\"N/A\",Ref!$B$36,INDEX(Ranks!$1:$1048576,$A8,CN$1))","v":""},{"$f":"IF($A8=\"N/A\",Ref!$B$36,INDEX(Ranks!$1:$1048576,$A8,CO$1))","v":""},{"$f":"IF($A8=\"N/A\",Ref!$B$36,INDEX(Ranks!$1:$1048576,$A8,CP$1))","v":""},{"$f":"IF($A8=\"N/A\",Ref!$B$36,INDEX(Ranks!$1:$1048576,$A8,CQ$1))","v":""},{"$f":"IF($A8=\"N/A\",Ref!$B$36,INDEX(Ranks!$1:$1048576,$A8,CR$1))","v":""},{"$f":"IF($A8=\"N/A\",Ref!$B$36,INDEX(Ranks!$1:$1048576,$A8,CS$1))","v":""},{"$f":"IF($A8=\"N/A\",Ref!$B$36,INDEX(Ranks!$1:$1048576,$A8,CT$1))","v":""},{"$f":"IF($A8=\"N/A\",Ref!$B$36,INDEX(Ranks!$1:$1048576,$A8,CU$1))","v":""},{"$f":"IF($A8=\"N/A\",Ref!$B$36,INDEX(Ranks!$1:$1048576,$A8,CV$1))","v":""},{"$f":"IF($A8=\"N/A\",Ref!$B$36,INDEX(Ranks!$1:$1048576,$A8,CW$1))","v":""},{"$f":"IF($A8=\"N/A\",Ref!$B$36,INDEX(Ranks!$1:$1048576,$A8,CX$1))","v":""},{"$f":"IF($A8=\"N/A\",Ref!$B$36,INDEX(Ranks!$1:$1048576,$A8,CY$1))","v":""},{"$f":"IF($A8=\"N/A\",Ref!$B$36,INDEX(Ranks!$1:$1048576,$A8,CZ$1))","v":""},{"$f":"IF($A8=\"N/A\",Ref!$B$36,INDEX(Ranks!$1:$1048576,$A8,DA$1))","v":""},{"$f":"IF($A8=\"N/A\",Ref!$B$36,INDEX(Ranks!$1:$1048576,$A8,DB$1))","v":""},{"$f":"IF($A8=\"N/A\",Ref!$B$36,INDEX(Ranks!$1:$1048576,$A8,DC$1))","v":""},{"$f":"IF($A8=\"N/A\",Ref!$B$36,INDEX(Ranks!$1:$1048576,$A8,DD$1))","v":""},{"$f":"IF($A8=\"N/A\",Ref!$B$36,INDEX(Ranks!$1:$1048576,$A8,DE$1))","v":""},{"$f":"IF($A8=\"N/A\",Ref!$B$36,INDEX(Ranks!$1:$1048576,$A8,DF$1))","v":""},{"$f":"IF($A8=\"N/A\",Ref!$B$36,INDEX(Ranks!$1:$1048576,$A8,DG$1))","v":""},{"$f":"IF($A8=\"N/A\",Ref!$B$36,INDEX(Ranks!$1:$1048576,$A8,DH$1))","v":""},{"$f":"IF($A8=\"N/A\",Ref!$B$36,INDEX(Ranks!$1:$1048576,$A8,DI$1))","v":""},{"$f":"IF($A8=\"N/A\",Ref!$B$36,INDEX(Ranks!$1:$1048576,$A8,DJ$1))","v":""},{"$f":"IF($A8=\"N/A\",Ref!$B$36,INDEX(Ranks!$1:$1048576,$A8,DK$1))","v":""},{"$f":"IF($A8=\"N/A\",Ref!$B$36,INDEX(Ranks!$1:$1048576,$A8,DL$1))","v":""},{"$f":"IF($A8=\"N/A\",Ref!$B$36,INDEX(Ranks!$1:$1048576,$A8,DM$1))","v":""},{"$f":"IF($A8=\"N/A\",Ref!$B$36,INDEX(Ranks!$1:$1048576,$A8,DN$1))","v":""},{"$f":"IF($A8=\"N/A\",Ref!$B$36,INDEX(Ranks!$1:$1048576,$A8,DO$1))","v":""},{"$f":"IF($A8=\"N/A\",Ref!$B$36,INDEX(Ranks!$1:$1048576,$A8,DP$1))","v":""},{"$f":"IF($A8=\"N/A\",Ref!$B$36,INDEX(Ranks!$1:$1048576,$A8,DQ$1))","v":""},{"$f":"IF($A8=\"N/A\",Ref!$B$36,INDEX(Ranks!$1:$1048576,$A8,DR$1))","v":""},{"$f":"IF($A8=\"N/A\",Ref!$B$36,INDEX(Ranks!$1:$1048576,$A8,DS$1))","v":""},{"$f":"IF($A8=\"N/A\",Ref!$B$36,INDEX(Ranks!$1:$1048576,$A8,DT$1))","v":""},{"$f":"IF($A8=\"N/A\",Ref!$B$36,INDEX(Ranks!$1:$1048576,$A8,DU$1))","v":""},{"$f":"IF($A8=\"N/A\",Ref!$B$36,INDEX(Ranks!$1:$1048576,$A8,DV$1))","v":""},{"$f":"IF($A8=\"N/A\",Ref!$B$36,INDEX(Ranks!$1:$1048576,$A8,DW$1))","v":""},{"$f":"IF($A8=\"N/A\",Ref!$B$36,INDEX(Ranks!$1:$1048576,$A8,DX$1))","v":""},{"$f":"IF($A8=\"N/A\",Ref!$B$36,INDEX(Ranks!$1:$1048576,$A8,DY$1))","v":""},{"$f":"IF($A8=\"N/A\",Ref!$B$36,INDEX(Ranks!$1:$1048576,$A8,DZ$1))","v":""},{"$f":"IF($A8=\"N/A\",Ref!$B$36,INDEX(Ranks!$1:$1048576,$A8,EA$1))","v":""},{"$f":"IF($A8=\"N/A\",Ref!$B$36,INDEX(Ranks!$1:$1048576,$A8,EB$1))","v":""}]
[{"$f":"IFERROR(MATCH('Portfolio Page'!L9,Ranks!L:L,0),\"N/A\")","v":"N/A"},null,{"$f":"IF($A9=\"N/A\",\"\",INDEX(Ranks!$1:$1048576,$A9,C$1))","v":""},{"$f":"IF($A9=\"N/A\",Ref!$B$36,INDEX(Ranks!$1:$1048576,$A9,D$1))","v":""},{"$f":"IF($A9=\"N/A\",Ref!$B$36,INDEX(Ranks!$1:$1048576,$A9,E$1))","v":""},{"$f":"IF($A9=\"N/A\",\"\",INDEX(Ranks!$1:$1048576,$A9,F$1))","v":""},{"$f":"IF($A9=\"N/A\",\"\",INDEX(Ranks!$1:$1048576,$A9,G$1))","v":""},{"$f":"IF($A9=\"N/A\",\"\",INDEX(Ranks!$1:$1048576,$A9,H$1))","v":""},{"$f":"IF($A9=\"N/A\",\"\",INDEX(Ranks!$1:$1048576,$A9,I$1))","v":""},{"$f":"IF($A9=\"N/A\",\"\",INDEX(Ranks!$1:$1048576,$A9,J$1))","v":""},{"$f":"IF($A9=\"N/A\",\"\",INDEX(Ranks!$1:$1048576,$A9,K$1))","v":""},null,{"$f":"IF($A9=\"N/A\",Ref!$B$36,INDEX(Ranks!$1:$1048576,$A9,M$1))","v":""},{"$f":"IF($A9=\"N/A\",Ref!$B$36,INDEX(Ranks!$1:$1048576,$A9,N$1))","v":""},{"$f":"IF($A9=\"N/A\",Ref!$B$36,INDEX(Ranks!$1:$1048576,$A9,O$1))","v":""},{"$f":"IF($A9=\"N/A\",Ref!$B$36,INDEX(Ranks!$1:$1048576,$A9,P$1))","v":""},{"$f":"IF($A9=\"N/A\",Ref!$B$36,INDEX(Ranks!$1:$1048576,$A9,Q$1))","v":""},{"$f":"IF($A9=\"N/A\",Ref!$B$36,INDEX(Ranks!$1:$1048576,$A9,R$1))","v":""},{"$f":"IF($A9=\"N/A\",Ref!$B$36,INDEX(Ranks!$1:$1048576,$A9,S$1))","v":""},{"$f":"IF($A9=\"N/A\",Ref!$B$36,INDEX(Ranks!$1:$1048576,$A9,T$1))","v":""},{"$f":"IF($A9=\"N/A\",Ref!$B$36,INDEX(Ranks!$1:$1048576,$A9,U$1))","v":""},{"$f":"IF($A9=\"N/A\",Ref!$B$36,INDEX(Ranks!$1:$1048576,$A9,V$1))","v":""},{"$f":"IF($A9=\"N/A\",Ref!$B$36,INDEX(Ranks!$1:$1048576,$A9,W$1))","v":""},{"$f":"IF($A9=\"N/A\",Ref!$B$36,INDEX(Ranks!$1:$1048576,$A9,X$1))","v":""},{"$f":"IF($A9=\"N/A\",Ref!$B$36,INDEX(Ranks!$1:$1048576,$A9,Y$1))","v":""},{"$f":"IF($A9=\"N/A\",Ref!$B$36,INDEX(Ranks!$1:$1048576,$A9,Z$1))","v":""},{"$f":"IF($A9=\"N/A\",Ref!$B$36,INDEX(Ranks!$1:$1048576,$A9,AA$1))","v":""},{"$f":"IF($A9=\"N/A\",Ref!$B$36,INDEX(Ranks!$1:$1048576,$A9,AB$1))","v":""},{"$f":"IF($A9=\"N/A\",Ref!$B$36,INDEX(Ranks!$1:$1048576,$A9,AC$1))","v":""},{"$f":"IF($A9=\"N/A\",Ref!$B$36,INDEX(Ranks!$1:$1048576,$A9,AD$1))","v":""},{"$f":"IF($A9=\"N/A\",Ref!$B$36,INDEX(Ranks!$1:$1048576,$A9,AE$1))","v":""},{"$f":"IF($A9=\"N/A\",Ref!$B$36,INDEX(Ranks!$1:$1048576,$A9,AF$1))","v":""},{"$f":"IF($A9=\"N/A\",Ref!$B$36,INDEX(Ranks!$1:$1048576,$A9,AG$1))","v":""},{"$f":"IF($A9=\"N/A\",Ref!$B$36,INDEX(Ranks!$1:$1048576,$A9,AH$1))","v":""},{"$f":"IF($A9=\"N/A\",Ref!$B$36,INDEX(Ranks!$1:$1048576,$A9,AI$1))","v":""},{"$f":"IF($A9=\"N/A\",Ref!$B$36,INDEX(Ranks!$1:$1048576,$A9,AJ$1))","v":""},{"$f":"IF($A9=\"N/A\",Ref!$B$36,INDEX(Ranks!$1:$1048576,$A9,AK$1))","v":""},{"$f":"IF($A9=\"N/A\",Ref!$B$36,INDEX(Ranks!$1:$1048576,$A9,AL$1))","v":""},{"$f":"IF($A9=\"N/A\",Ref!$B$36,INDEX(Ranks!$1:$1048576,$A9,AM$1))","v":""},{"$f":"IF($A9=\"N/A\",Ref!$B$36,INDEX(Ranks!$1:$1048576,$A9,AN$1))","v":""},{"$f":"IF($A9=\"N/A\",Ref!$B$36,INDEX(Ranks!$1:$1048576,$A9,AO$1))","v":""},{"$f":"IF($A9=\"N/A\",Ref!$B$36,INDEX(Ranks!$1:$1048576,$A9,AP$1))","v":""},{"$f":"IF($A9=\"N/A\",Ref!$B$36,INDEX(Ranks!$1:$1048576,$A9,AQ$1))","v":""},{"$f":"IF($A9=\"N/A\",Ref!$B$36,INDEX(Ranks!$1:$1048576,$A9,AR$1))","v":""},{"$f":"IF($A9=\"N/A\",Ref!$B$36,INDEX(Ranks!$1:$1048576,$A9,AS$1))","v":""},{"$f":"IF($A9=\"N/A\",Ref!$B$36,INDEX(Ranks!$1:$1048576,$A9,AT$1))","v":""},{"$f":"IF($A9=\"N/A\",Ref!$B$36,INDEX(Ranks!$1:$1048576,$A9,AU$1))","v":""},{"$f":"IF($A9=\"N/A\",Ref!$B$36,INDEX(Ranks!$1:$1048576,$A9,AV$1))","v":""},{"$f":"IF($A9=\"N/A\",Ref!$B$36,INDEX(Ranks!$1:$1048576,$A9,AW$1))","v":""},{"$f":"IF($A9=\"N/A\",Ref!$B$36,INDEX(Ranks!$1:$1048576,$A9,AX$1))","v":""},{"$f":"IF($A9=\"N/A\",Ref!$B$36,INDEX(Ranks!$1:$1048576,$A9,AY$1))","v":""},{"$f":"IF($A9=\"N/A\",Ref!$B$36,INDEX(Ranks!$1:$1048576,$A9,AZ$1))","v":""},{"$f":"IF($A9=\"N/A\",Ref!$B$36,INDEX(Ranks!$1:$1048576,$A9,BA$1))","v":""},{"$f":"IF($A9=\"N/A\",Ref!$B$36,INDEX(Ranks!$1:$1048576,$A9,BB$1))","v":""},{"$f":"IF($A9=\"N/A\",Ref!$B$36,INDEX(Ranks!$1:$1048576,$A9,BC$1))","v":""},{"$f":"IF($A9=\"N/A\",Ref!$B$36,INDEX(Ranks!$1:$1048576,$A9,BD$1))","v":""},{"$f":"IF($A9=\"N/A\",Ref!$B$36,INDEX(Ranks!$1:$1048576,$A9,BE$1))","v":""},{"$f":"IF($A9=\"N/A\",Ref!$B$36,INDEX(Ranks!$1:$1048576,$A9,BF$1))","v":""},{"$f":"IF($A9=\"N/A\",Ref!$B$36,INDEX(Ranks!$1:$1048576,$A9,BG$1))","v":""},{"$f":"IF($A9=\"N/A\",Ref!$B$36,INDEX(Ranks!$1:$1048576,$A9,BH$1))","v":""},{"$f":"IF($A9=\"N/A\",Ref!$B$36,INDEX(Ranks!$1:$1048576,$A9,BI$1))","v":""},{"$f":"IF($A9=\"N/A\",Ref!$B$36,INDEX(Ranks!$1:$1048576,$A9,BJ$1))","v":""},{"$f":"IF($A9=\"N/A\",Ref!$B$36,INDEX(Ranks!$1:$1048576,$A9,BK$1))","v":""},{"$f":"IF($A9=\"N/A\",Ref!$B$36,INDEX(Ranks!$1:$1048576,$A9,BL$1))","v":""},{"$f":"IF($A9=\"N/A\",Ref!$B$36,INDEX(Ranks!$1:$1048576,$A9,BM$1))","v":""},{"$f":"IF($A9=\"N/A\",Ref!$B$36,INDEX(Ranks!$1:$1048576,$A9,BN$1))","v":""},{"$f":"IF($A9=\"N/A\",Ref!$B$36,INDEX(Ranks!$1:$1048576,$A9,BO$1))","v":""},{"$f":"IF($A9=\"N/A\",Ref!$B$36,INDEX(Ranks!$1:$1048576,$A9,BP$1))","v":""},{"$f":"IF($A9=\"N/A\",Ref!$B$36,INDEX(Ranks!$1:$1048576,$A9,BQ$1))","v":""},{"$f":"IF($A9=\"N/A\",Ref!$B$36,INDEX(Ranks!$1:$1048576,$A9,BR$1))","v":""},{"$f":"IF($A9=\"N/A\",Ref!$B$36,INDEX(Ranks!$1:$1048576,$A9,BS$1))","v":""},{"$f":"IF($A9=\"N/A\",Ref!$B$36,INDEX(Ranks!$1:$1048576,$A9,BT$1))","v":""},{"$f":"IF($A9=\"N/A\",Ref!$B$36,INDEX(Ranks!$1:$1048576,$A9,BU$1))","v":""},{"$f":"IF($A9=\"N/A\",Ref!$B$36,INDEX(Ranks!$1:$1048576,$A9,BV$1))","v":""},{"$f":"IF($A9=\"N/A\",Ref!$B$36,INDEX(Ranks!$1:$1048576,$A9,BW$1))","v":""},{"$f":"IF($A9=\"N/A\",Ref!$B$36,INDEX(Ranks!$1:$1048576,$A9,BX$1))","v":""},{"$f":"IF($A9=\"N/A\",Ref!$B$36,INDEX(Ranks!$1:$1048576,$A9,BY$1))","v":""},{"$f":"IF($A9=\"N/A\",Ref!$B$36,INDEX(Ranks!$1:$1048576,$A9,BZ$1))","v":""},{"$f":"IF($A9=\"N/A\",Ref!$B$36,INDEX(Ranks!$1:$1048576,$A9,CA$1))","v":""},{"$f":"IF($A9=\"N/A\",Ref!$B$36,INDEX(Ranks!$1:$1048576,$A9,CB$1))","v":""},{"$f":"IF($A9=\"N/A\",Ref!$B$36,INDEX(Ranks!$1:$1048576,$A9,CC$1))","v":""},{"$f":"IF($A9=\"N/A\",Ref!$B$36,INDEX(Ranks!$1:$1048576,$A9,CD$1))","v":""},{"$f":"IF($A9=\"N/A\",Ref!$B$36,INDEX(Ranks!$1:$1048576,$A9,CE$1))","v":""},{"$f":"IF($A9=\"N/A\",Ref!$B$36,INDEX(Ranks!$1:$1048576,$A9,CF$1))","v":""},{"$f":"IF($A9=\"N/A\",Ref!$B$36,INDEX(Ranks!$1:$1048576,$A9,CG$1))","v":""},{"$f":"IF($A9=\"N/A\",Ref!$B$36,INDEX(Ranks!$1:$1048576,$A9,CH$1))","v":""},{"$f":"IF($A9=\"N/A\",Ref!$B$36,INDEX(Ranks!$1:$1048576,$A9,CI$1))","v":""},{"$f":"IF($A9=\"N/A\",Ref!$B$36,INDEX(Ranks!$1:$1048576,$A9,CJ$1))","v":""},{"$f":"IF($A9=\"N/A\",Ref!$B$36,INDEX(Ranks!$1:$1048576,$A9,CK$1))","v":""},{"$f":"IF($A9=\"N/A\",Ref!$B$36,INDEX(Ranks!$1:$1048576,$A9,CL$1))","v":""},{"$f":"IF($A9=\"N/A\",Ref!$B$36,INDEX(Ranks!$1:$1048576,$A9,CM$1))","v":""},{"$f":"IF($A9=\"N/A\",Ref!$B$36,INDEX(Ranks!$1:$1048576,$A9,CN$1))","v":""},{"$f":"IF($A9=\"N/A\",Ref!$B$36,INDEX(Ranks!$1:$1048576,$A9,CO$1))","v":""},{"$f":"IF($A9=\"N/A\",Ref!$B$36,INDEX(Ranks!$1:$1048576,$A9,CP$1))","v":""},{"$f":"IF($A9=\"N/A\",Ref!$B$36,INDEX(Ranks!$1:$1048576,$A9,CQ$1))","v":""},{"$f":"IF($A9=\"N/A\",Ref!$B$36,INDEX(Ranks!$1:$1048576,$A9,CR$1))","v":""},{"$f":"IF($A9=\"N/A\",Ref!$B$36,INDEX(Ranks!$1:$1048576,$A9,CS$1))","v":""},{"$f":"IF($A9=\"N/A\",Ref!$B$36,INDEX(Ranks!$1:$1048576,$A9,CT$1))","v":""},{"$f":"IF($A9=\"N/A\",Ref!$B$36,INDEX(Ranks!$1:$1048576,$A9,CU$1))","v":""},{"$f":"IF($A9=\"N/A\",Ref!$B$36,INDEX(Ranks!$1:$1048576,$A9,CV$1))","v":""},{"$f":"IF($A9=\"N/A\",Ref!$B$36,INDEX(Ranks!$1:$1048576,$A9,CW$1))","v":""},{"$f":"IF($A9=\"N/A\",Ref!$B$36,INDEX(Ranks!$1:$1048576,$A9,CX$1))","v":""},{"$f":"IF($A9=\"N/A\",Ref!$B$36,INDEX(Ranks!$1:$1048576,$A9,CY$1))","v":""},{"$f":"IF($A9=\"N/A\",Ref!$B$36,INDEX(Ranks!$1:$1048576,$A9,CZ$1))","v":""},{"$f":"IF($A9=\"N/A\",Ref!$B$36,INDEX(Ranks!$1:$1048576,$A9,DA$1))","v":""},{"$f":"IF($A9=\"N/A\",Ref!$B$36,INDEX(Ranks!$1:$1048576,$A9,DB$1))","v":""},{"$f":"IF($A9=\"N/A\",Ref!$B$36,INDEX(Ranks!$1:$1048576,$A9,DC$1))","v":""},{"$f":"IF($A9=\"N/A\",Ref!$B$36,INDEX(Ranks!$1:$1048576,$A9,DD$1))","v":""},{"$f":"IF($A9=\"N/A\",Ref!$B$36,INDEX(Ranks!$1:$1048576,$A9,DE$1))","v":""},{"$f":"IF($A9=\"N/A\",Ref!$B$36,INDEX(Ranks!$1:$1048576,$A9,DF$1))","v":""},{"$f":"IF($A9=\"N/A\",Ref!$B$36,INDEX(Ranks!$1:$1048576,$A9,DG$1))","v":""},{"$f":"IF($A9=\"N/A\",Ref!$B$36,INDEX(Ranks!$1:$1048576,$A9,DH$1))","v":""},{"$f":"IF($A9=\"N/A\",Ref!$B$36,INDEX(Ranks!$1:$1048576,$A9,DI$1))","v":""},{"$f":"IF($A9=\"N/A\",Ref!$B$36,INDEX(Ranks!$1:$1048576,$A9,DJ$1))","v":""},{"$f":"IF($A9=\"N/A\",Ref!$B$36,INDEX(Ranks!$1:$1048576,$A9,DK$1))","v":""},{"$f":"IF($A9=\"N/A\",Ref!$B$36,INDEX(Ranks!$1:$1048576,$A9,DL$1))","v":""},{"$f":"IF($A9=\"N/A\",Ref!$B$36,INDEX(Ranks!$1:$1048576,$A9,DM$1))","v":""},{"$f":"IF($A9=\"N/A\",Ref!$B$36,INDEX(Ranks!$1:$1048576,$A9,DN$1))","v":""},{"$f":"IF($A9=\"N/A\",Ref!$B$36,INDEX(Ranks!$1:$1048576,$A9,DO$1))","v":""},{"$f":"IF($A9=\"N/A\",Ref!$B$36,INDEX(Ranks!$1:$1048576,$A9,DP$1))","v":""},{"$f":"IF($A9=\"N/A\",Ref!$B$36,INDEX(Ranks!$1:$1048576,$A9,DQ$1))","v":""},{"$f":"IF($A9=\"N/A\",Ref!$B$36,INDEX(Ranks!$1:$1048576,$A9,DR$1))","v":""},{"$f":"IF($A9=\"N/A\",Ref!$B$36,INDEX(Ranks!$1:$1048576,$A9,DS$1))","v":""},{"$f":"IF($A9=\"N/A\",Ref!$B$36,INDEX(Ranks!$1:$1048576,$A9,DT$1))","v":""},{"$f":"IF($A9=\"N/A\",Ref!$B$36,INDEX(Ranks!$1:$1048576,$A9,DU$1))","v":""},{"$f":"IF($A9=\"N/A\",Ref!$B$36,INDEX(Ranks!$1:$1048576,$A9,DV$1))","v":""},{"$f":"IF($A9=\"N/A\",Ref!$B$36,INDEX(Ranks!$1:$1048576,$A9,DW$1))","v":""},{"$f":"IF($A9=\"N/A\",Ref!$B$36,INDEX(Ranks!$1:$1048576,$A9,DX$1))","v":""},{"$f":"IF($A9=\"N/A\",Ref!$B$36,INDEX(Ranks!$1:$1048576,$A9,DY$1))","v":""},{"$f":"IF($A9=\"N/A\",Ref!$B$36,INDEX(Ranks!$1:$1048576,$A9,DZ$1))","v":""},{"$f":"IF($A9=\"N/A\",Ref!$B$36,INDEX(Ranks!$1:$1048576,$A9,EA$1))","v":""},{"$f":"IF($A9=\"N/A\",Ref!$B$36,INDEX(Ranks!$1:$1048576,$A9,EB$1))","v":""}]
[{"$f":"IFERROR(MATCH('Portfolio Page'!L10,Ranks!L:L,0),\"N/A\")","v":"N/A"},null,{"$f":"IF($A10=\"N/A\",\"\",INDEX(Ranks!$1:$1048576,$A10,C$1))","v":""},{"$f":"IF($A10=\"N/A\",Ref!$B$36,INDEX(Ranks!$1:$1048576,$A10,D$1))","v":""},{"$f":"IF($A10=\"N/A\",Ref!$B$36,INDEX(Ranks!$1:$1048576,$A10,E$1))","v":""},{"$f":"IF($A10=\"N/A\",\"\",INDEX(Ranks!$1:$1048576,$A10,F$1))","v":""},{"$f":"IF($A10=\"N/A\",\"\",INDEX(Ranks!$1:$1048576,$A10,G$1))","v":""},{"$f":"IF($A10=\"N/A\",\"\",INDEX(Ranks!$1:$1048576,$A10,H$1))","v":""},{"$f":"IF($A10=\"N/A\",\"\",INDEX(Ranks!$1:$1048576,$A10,I$1))","v":""},{"$f":"IF($A10=\"N/A\",\"\",INDEX(Ranks!$1:$1048576,$A10,J$1))","v":""},{"$f":"IF($A10=\"N/A\",\"\",INDEX(Ranks!$1:$1048576,$A10,K$1))","v":""},null,{"$f":"IF($A10=\"N/A\",Ref!$B$36,INDEX(Ranks!$1:$1048576,$A10,M$1))","v":""},{"$f":"IF($A10=\"N/A\",Ref!$B$36,INDEX(Ranks!$1:$1048576,$A10,N$1))","v":""},{"$f":"IF($A10=\"N/A\",Ref!$B$36,INDEX(Ranks!$1:$1048576,$A10,O$1))","v":""},{"$f":"IF($A10=\"N/A\",Ref!$B$36,INDEX(Ranks!$1:$1048576,$A10,P$1))","v":""},{"$f":"IF($A10=\"N/A\",Ref!$B$36,INDEX(Ranks!$1:$1048576,$A10,Q$1))","v":""},{"$f":"IF($A10=\"N/A\",Ref!$B$36,INDEX(Ranks!$1:$1048576,$A10,R$1))","v":""},{"$f":"IF($A10=\"N/A\",Ref!$B$36,INDEX(Ranks!$1:$1048576,$A10,S$1))","v":""},{"$f":"IF($A10=\"N/A\",Ref!$B$36,INDEX(Ranks!$1:$1048576,$A10,T$1))","v":""},{"$f":"IF($A10=\"N/A\",Ref!$B$36,INDEX(Ranks!$1:$1048576,$A10,U$1))","v":""},{"$f":"IF($A10=\"N/A\",Ref!$B$36,INDEX(Ranks!$1:$1048576,$A10,V$1))","v":""},{"$f":"IF($A10=\"N/A\",Ref!$B$36,INDEX(Ranks!$1:$1048576,$A10,W$1))","v":""},{"$f":"IF($A10=\"N/A\",Ref!$B$36,INDEX(Ranks!$1:$1048576,$A10,X$1))","v":""},{"$f":"IF($A10=\"N/A\",Ref!$B$36,INDEX(Ranks!$1:$1048576,$A10,Y$1))","v":""},{"$f":"IF($A10=\"N/A\",Ref!$B$36,INDEX(Ranks!$1:$1048576,$A10,Z$1))","v":""},{"$f":"IF($A10=\"N/A\",Ref!$B$36,INDEX(Ranks!$1:$1048576,$A10,AA$1))","v":""},{"$f":"IF($A10=\"N/A\",Ref!$B$36,INDEX(Ranks!$1:$1048576,$A10,AB$1))","v":""},{"$f":"IF($A10=\"N/A\",Ref!$B$36,INDEX(Ranks!$1:$1048576,$A10,AC$1))","v":""},{"$f":"IF($A10=\"N/A\",Ref!$B$36,INDEX(Ranks!$1:$1048576,$A10,AD$1))","v":""},{"$f":"IF($A10=\"N/A\",Ref!$B$36,INDEX(Ranks!$1:$1048576,$A10,AE$1))","v":""},{"$f":"IF($A10=\"N/A\",Ref!$B$36,INDEX(Ranks!$1:$1048576,$A10,AF$1))","v":""},{"$f":"IF($A10=\"N/A\",Ref!$B$36,INDEX(Ranks!$1:$1048576,$A10,AG$1))","v":""},{"$f":"IF($A10=\"N/A\",Ref!$B$36,INDEX(Ranks!$1:$1048576,$A10,AH$1))","v":""},{"$f":"IF($A10=\"N/A\",Ref!$B$36,INDEX(Ranks!$1:$1048576,$A10,AI$1))","v":""},{"$f":"IF($A10=\"N/A\",Ref!$B$36,INDEX(Ranks!$1:$1048576,$A10,AJ$1))","v":""},{"$f":"IF($A10=\"N/A\",Ref!$B$36,INDEX(Ranks!$1:$1048576,$A10,AK$1))","v":""},{"$f":"IF($A10=\"N/A\",Ref!$B$36,INDEX(Ranks!$1:$1048576,$A10,AL$1))","v":""},{"$f":"IF($A10=\"N/A\",Ref!$B$36,INDEX(Ranks!$1:$1048576,$A10,AM$1))","v":""},{"$f":"IF($A10=\"N/A\",Ref!$B$36,INDEX(Ranks!$1:$1048576,$A10,AN$1))","v":""},{"$f":"IF($A10=\"N/A\",Ref!$B$36,INDEX(Ranks!$1:$1048576,$A10,AO$1))","v":""},{"$f":"IF($A10=\"N/A\",Ref!$B$36,INDEX(Ranks!$1:$1048576,$A10,AP$1))","v":""},{"$f":"IF($A10=\"N/A\",Ref!$B$36,INDEX(Ranks!$1:$1048576,$A10,AQ$1))","v":""},{"$f":"IF($A10=\"N/A\",Ref!$B$36,INDEX(Ranks!$1:$1048576,$A10,AR$1))","v":""},{"$f":"IF($A10=\"N/A\",Ref!$B$36,INDEX(Ranks!$1:$1048576,$A10,AS$1))","v":""},{"$f":"IF($A10=\"N/A\",Ref!$B$36,INDEX(Ranks!$1:$1048576,$A10,AT$1))","v":""},{"$f":"IF($A10=\"N/A\",Ref!$B$36,INDEX(Ranks!$1:$1048576,$A10,AU$1))","v":""},{"$f":"IF($A10=\"N/A\",Ref!$B$36,INDEX(Ranks!$1:$1048576,$A10,AV$1))","v":""},{"$f":"IF($A10=\"N/A\",Ref!$B$36,INDEX(Ranks!$1:$1048576,$A10,AW$1))","v":""},{"$f":"IF($A10=\"N/A\",Ref!$B$36,INDEX(Ranks!$1:$1048576,$A10,AX$1))","v":""},{"$f":"IF($A10=\"N/A\",Ref!$B$36,INDEX(Ranks!$1:$1048576,$A10,AY$1))","v":""},{"$f":"IF($A10=\"N/A\",Ref!$B$36,INDEX(Ranks!$1:$1048576,$A10,AZ$1))","v":""},{"$f":"IF($A10=\"N/A\",Ref!$B$36,INDEX(Ranks!$1:$1048576,$A10,BA$1))","v":""},{"$f":"IF($A10=\"N/A\",Ref!$B$36,INDEX(Ranks!$1:$1048576,$A10,BB$1))","v":""},{"$f":"IF($A10=\"N/A\",Ref!$B$36,INDEX(Ranks!$1:$1048576,$A10,BC$1))","v":""},{"$f":"IF($A10=\"N/A\",Ref!$B$36,INDEX(Ranks!$1:$1048576,$A10,BD$1))","v":""},{"$f":"IF($A10=\"N/A\",Ref!$B$36,INDEX(Ranks!$1:$1048576,$A10,BE$1))","v":""},{"$f":"IF($A10=\"N/A\",Ref!$B$36,INDEX(Ranks!$1:$1048576,$A10,BF$1))","v":""},{"$f":"IF($A10=\"N/A\",Ref!$B$36,INDEX(Ranks!$1:$1048576,$A10,BG$1))","v":""},{"$f":"IF($A10=\"N/A\",Ref!$B$36,INDEX(Ranks!$1:$1048576,$A10,BH$1))","v":""},{"$f":"IF($A10=\"N/A\",Ref!$B$36,INDEX(Ranks!$1:$1048576,$A10,BI$1))","v":""},{"$f":"IF($A10=\"N/A\",Ref!$B$36,INDEX(Ranks!$1:$1048576,$A10,BJ$1))","v":""},{"$f":"IF($A10=\"N/A\",Ref!$B$36,INDEX(Ranks!$1:$1048576,$A10,BK$1))","v":""},{"$f":"IF($A10=\"N/A\",Ref!$B$36,INDEX(Ranks!$1:$1048576,$A10,BL$1))","v":""},{"$f":"IF($A10=\"N/A\",Ref!$B$36,INDEX(Ranks!$1:$1048576,$A10,BM$1))","v":""},{"$f":"IF($A10=\"N/A\",Ref!$B$36,INDEX(Ranks!$1:$1048576,$A10,BN$1))","v":""},{"$f":"IF($A10=\"N/A\",Ref!$B$36,INDEX(Ranks!$1:$1048576,$A10,BO$1))","v":""},{"$f":"IF($A10=\"N/A\",Ref!$B$36,INDEX(Ranks!$1:$1048576,$A10,BP$1))","v":""},{"$f":"IF($A10=\"N/A\",Ref!$B$36,INDEX(Ranks!$1:$1048576,$A10,BQ$1))","v":""},{"$f":"IF($A10=\"N/A\",Ref!$B$36,INDEX(Ranks!$1:$1048576,$A10,BR$1))","v":""},{"$f":"IF($A10=\"N/A\",Ref!$B$36,INDEX(Ranks!$1:$1048576,$A10,BS$1))","v":""},{"$f":"IF($A10=\"N/A\",Ref!$B$36,INDEX(Ranks!$1:$1048576,$A10,BT$1))","v":""},{"$f":"IF($A10=\"N/A\",Ref!$B$36,INDEX(Ranks!$1:$1048576,$A10,BU$1))","v":""},{"$f":"IF($A10=\"N/A\",Ref!$B$36,INDEX(Ranks!$1:$1048576,$A10,BV$1))","v":""},{"$f":"IF($A10=\"N/A\",Ref!$B$36,INDEX(Ranks!$1:$1048576,$A10,BW$1))","v":""},{"$f":"IF($A10=\"N/A\",Ref!$B$36,INDEX(Ranks!$1:$1048576,$A10,BX$1))","v":""},{"$f":"IF($A10=\"N/A\",Ref!$B$36,INDEX(Ranks!$1:$1048576,$A10,BY$1))","v":""},{"$f":"IF($A10=\"N/A\",Ref!$B$36,INDEX(Ranks!$1:$1048576,$A10,BZ$1))","v":""},{"$f":"IF($A10=\"N/A\",Ref!$B$36,INDEX(Ranks!$1:$1048576,$A10,CA$1))","v":""},{"$f":"IF($A10=\"N/A\",Ref!$B$36,INDEX(Ranks!$1:$1048576,$A10,CB$1))","v":""},{"$f":"IF($A10=\"N/A\",Ref!$B$36,INDEX(Ranks!$1:$1048576,$A10,CC$1))","v":""},{"$f":"IF($A10=\"N/A\",Ref!$B$36,INDEX(Ranks!$1:$1048576,$A10,CD$1))","v":""},{"$f":"IF($A10=\"N/A\",Ref!$B$36,INDEX(Ranks!$1:$1048576,$A10,CE$1))","v":""},{"$f":"IF($A10=\"N/A\",Ref!$B$36,INDEX(Ranks!$1:$1048576,$A10,CF$1))","v":""},{"$f":"IF($A10=\"N/A\",Ref!$B$36,INDEX(Ranks!$1:$1048576,$A10,CG$1))","v":""},{"$f":"IF($A10=\"N/A\",Ref!$B$36,INDEX(Ranks!$1:$1048576,$A10,CH$1))","v":""},{"$f":"IF($A10=\"N/A\",Ref!$B$36,INDEX(Ranks!$1:$1048576,$A10,CI$1))","v":""},{"$f":"IF($A10=\"N/A\",Ref!$B$36,INDEX(Ranks!$1:$1048576,$A10,CJ$1))","v":""},{"$f":"IF($A10=\"N/A\",Ref!$B$36,INDEX(Ranks!$1:$1048576,$A10,CK$1))","v":""},{"$f":"IF($A10=\"N/A\",Ref!$B$36,INDEX(Ranks!$1:$1048576,$A10,CL$1))","v":""},{"$f":"IF($A10=\"N/A\",Ref!$B$36,INDEX(Ranks!$1:$1048576,$A10,CM$1))","v":""},{"$f":"IF($A10=\"N/A\",Ref!$B$36,INDEX(Ranks!$1:$1048576,$A10,CN$1))","v":""},{"$f":"IF($A10=\"N/A\",Ref!$B$36,INDEX(Ranks!$1:$1048576,$A10,CO$1))","v":""},{"$f":"IF($A10=\"N/A\",Ref!$B$36,INDEX(Ranks!$1:$1048576,$A10,CP$1))","v":""},{"$f":"IF($A10=\"N/A\",Ref!$B$36,INDEX(Ranks!$1:$1048576,$A10,CQ$1))","v":""},{"$f":"IF($A10=\"N/A\",Ref!$B$36,INDEX(Ranks!$1:$1048576,$A10,CR$1))","v":""},{"$f":"IF($A10=\"N/A\",Ref!$B$36,INDEX(Ranks!$1:$1048576,$A10,CS$1))","v":""},{"$f":"IF($A10=\"N/A\",Ref!$B$36,INDEX(Ranks!$1:$1048576,$A10,CT$1))","v":""},{"$f":"IF($A10=\"N/A\",Ref!$B$36,INDEX(Ranks!$1:$1048576,$A10,CU$1))","v":""},{"$f":"IF($A10=\"N/A\",Ref!$B$36,INDEX(Ranks!$1:$1048576,$A10,CV$1))","v":""},{"$f":"IF($A10=\"N/A\",Ref!$B$36,INDEX(Ranks!$1:$1048576,$A10,CW$1))","v":""},{"$f":"IF($A10=\"N/A\",Ref!$B$36,INDEX(Ranks!$1:$1048576,$A10,CX$1))","v":""},{"$f":"IF($A10=\"N/A\",Ref!$B$36,INDEX(Ranks!$1:$1048576,$A10,CY$1))","v":""},{"$f":"IF($A10=\"N/A\",Ref!$B$36,INDEX(Ranks!$1:$1048576,$A10,CZ$1))","v":""},{"$f":"IF($A10=\"N/A\",Ref!$B$36,INDEX(Ranks!$1:$1048576,$A10,DA$1))","v":""},{"$f":"IF($A10=\"N/A\",Ref!$B$36,INDEX(Ranks!$1:$1048576,$A10,DB$1))","v":""},{"$f":"IF($A10=\"N/A\",Ref!$B$36,INDEX(Ranks!$1:$1048576,$A10,DC$1))","v":""},{"$f":"IF($A10=\"N/A\",Ref!$B$36,INDEX(Ranks!$1:$1048576,$A10,DD$1))","v":""},{"$f":"IF($A10=\"N/A\",Ref!$B$36,INDEX(Ranks!$1:$1048576,$A10,DE$1))","v":""},{"$f":"IF($A10=\"N/A\",Ref!$B$36,INDEX(Ranks!$1:$1048576,$A10,DF$1))","v":""},{"$f":"IF($A10=\"N/A\",Ref!$B$36,INDEX(Ranks!$1:$1048576,$A10,DG$1))","v":""},{"$f":"IF($A10=\"N/A\",Ref!$B$36,INDEX(Ranks!$1:$1048576,$A10,DH$1))","v":""},{"$f":"IF($A10=\"N/A\",Ref!$B$36,INDEX(Ranks!$1:$1048576,$A10,DI$1))","v":""},{"$f":"IF($A10=\"N/A\",Ref!$B$36,INDEX(Ranks!$1:$1048576,$A10,DJ$1))","v":""},{"$f":"IF($A10=\"N/A\",Ref!$B$36,INDEX(Ranks!$1:$1048576,$A10,DK$1))","v":""},{"$f":"IF($A10=\"N/A\",Ref!$B$36,INDEX(Ranks!$1:$1048576,$A10,DL$1))","v":""},{"$f":"IF($A10=\"N/A\",Ref!$B$36,INDEX(Ranks!$1:$1048576,$A10,DM$1))","v":""},{"$f":"IF($A10=\"N/A\",Ref!$B$36,INDEX(Ranks!$1:$1048576,$A10,DN$1))","v":""},{"$f":"IF($A10=\"N/A\",Ref!$B$36,INDEX(Ranks!$1:$1048576,$A10,DO$1))","v":""},{"$f":"IF($A10=\"N/A\",Ref!$B$36,INDEX(Ranks!$1:$1048576,$A10,DP$1))","v":""},{"$f":"IF($A10=\"N/A\",Ref!$B$36,INDEX(Ranks!$1:$1048576,$A10,DQ$1))","v":""},{"$f":"IF($A10=\"N/A\",Ref!$B$36,INDEX(Ranks!$1:$1048576,$A10,DR$1))","v":""},{"$f":"IF($A10=\"N/A\",Ref!$B$36,INDEX(Ranks!$1:$1048576,$A10,DS$1))","v":""},{"$f":"IF($A10=\"N/A\",Ref!$B$36,INDEX(Ranks!$1:$1048576,$A10,DT$1))","v":""},{"$f":"IF($A10=\"N/A\",Ref!$B$36,INDEX(Ranks!$1:$1048576,$A10,DU$1))","v":""},{"$f":"IF($A10=\"N/A\",Ref!$B$36,INDEX(Ranks!$1:$1048576,$A10,DV$1))","v":""},{"$f":"IF($A10=\"N/A\",Ref!$B$36,INDEX(Ranks!$1:$1048576,$A10,DW$1))","v":""},{"$f":"IF($A10=\"N/A\",Ref!$B$36,INDEX(Ranks!$1:$1048576,$A10,DX$1))","v":""},{"$f":"IF($A10=\"N/A\",Ref!$B$36,INDEX(Ranks!$1:$1048576,$A10,DY$1))","v":""},{"$f":"IF($A10=\"N/A\",Ref!$B$36,INDEX(Ranks!$1:$1048576,$A10,DZ$1))","v":""},{"$f":"IF($A10=\"N/A\",Ref!$B$36,INDEX(Ranks!$1:$1048576,$A10,EA$1))","v":""},{"$f":"IF($A10=\"N/A\",Ref!$B$36,INDEX(Ranks!$1:$1048576,$A10,EB$1))","v":""}]
[{"$f":"IFERROR(MATCH('Portfolio Page'!L11,Ranks!L:L,0),\"N/A\")","v":"N/A"},null,{"$f":"IF($A11=\"N/A\",\"\",INDEX(Ranks!$1:$1048576,$A11,C$1))","v":""},{"$f":"IF($A11=\"N/A\",Ref!$B$36,INDEX(Ranks!$1:$1048576,$A11,D$1))","v":""},{"$f":"IF($A11=\"N/A\",Ref!$B$36,INDEX(Ranks!$1:$1048576,$A11,E$1))","v":""},{"$f":"IF($A11=\"N/A\",\"\",INDEX(Ranks!$1:$1048576,$A11,F$1))","v":""},{"$f":"IF($A11=\"N/A\",\"\",INDEX(Ranks!$1:$1048576,$A11,G$1))","v":""},{"$f":"IF($A11=\"N/A\",\"\",INDEX(Ranks!$1:$1048576,$A11,H$1))","v":""},{"$f":"IF($A11=\"N/A\",\"\",INDEX(Ranks!$1:$1048576,$A11,I$1))","v":""},{"$f":"IF($A11=\"N/A\",\"\",INDEX(Ranks!$1:$1048576,$A11,J$1))","v":""},{"$f":"IF($A11=\"N/A\",\"\",INDEX(Ranks!$1:$1048576,$A11,K$1))","v":""},null,{"$f":"IF($A11=\"N/A\",Ref!$B$36,INDEX(Ranks!$1:$1048576,$A11,M$1))","v":""},{"$f":"IF($A11=\"N/A\",Ref!$B$36,INDEX(Ranks!$1:$1048576,$A11,N$1))","v":""},{"$f":"IF($A11=\"N/A\",Ref!$B$36,INDEX(Ranks!$1:$1048576,$A11,O$1))","v":""},{"$f":"IF($A11=\"N/A\",Ref!$B$36,INDEX(Ranks!$1:$1048576,$A11,P$1))","v":""},{"$f":"IF($A11=\"N/A\",Ref!$B$36,INDEX(Ranks!$1:$1048576,$A11,Q$1))","v":""},{"$f":"IF($A11=\"N/A\",Ref!$B$36,INDEX(Ranks!$1:$1048576,$A11,R$1))","v":""},{"$f":"IF($A11=\"N/A\",Ref!$B$36,INDEX(Ranks!$1:$1048576,$A11,S$1))","v":""},{"$f":"IF($A11=\"N/A\",Ref!$B$36,INDEX(Ranks!$1:$1048576,$A11,T$1))","v":""},{"$f":"IF($A11=\"N/A\",Ref!$B$36,INDEX(Ranks!$1:$1048576,$A11,U$1))","v":""},{"$f":"IF($A11=\"N/A\",Ref!$B$36,INDEX(Ranks!$1:$1048576,$A11,V$1))","v":""},{"$f":"IF($A11=\"N/A\",Ref!$B$36,INDEX(Ranks!$1:$1048576,$A11,W$1))","v":""},{"$f":"IF($A11=\"N/A\",Ref!$B$36,INDEX(Ranks!$1:$1048576,$A11,X$1))","v":""},{"$f":"IF($A11=\"N/A\",Ref!$B$36,INDEX(Ranks!$1:$1048576,$A11,Y$1))","v":""},{"$f":"IF($A11=\"N/A\",Ref!$B$36,INDEX(Ranks!$1:$1048576,$A11,Z$1))","v":""},{"$f":"IF($A11=\"N/A\",Ref!$B$36,INDEX(Ranks!$1:$1048576,$A11,AA$1))","v":""},{"$f":"IF($A11=\"N/A\",Ref!$B$36,INDEX(Ranks!$1:$1048576,$A11,AB$1))","v":""},{"$f":"IF($A11=\"N/A\",Ref!$B$36,INDEX(Ranks!$1:$1048576,$A11,AC$1))","v":""},{"$f":"IF($A11=\"N/A\",Ref!$B$36,INDEX(Ranks!$1:$1048576,$A11,AD$1))","v":""},{"$f":"IF($A11=\"N/A\",Ref!$B$36,INDEX(Ranks!$1:$1048576,$A11,AE$1))","v":""},{"$f":"IF($A11=\"N/A\",Ref!$B$36,INDEX(Ranks!$1:$1048576,$A11,AF$1))","v":""},{"$f":"IF($A11=\"N/A\",Ref!$B$36,INDEX(Ranks!$1:$1048576,$A11,AG$1))","v":""},{"$f":"IF($A11=\"N/A\",Ref!$B$36,INDEX(Ranks!$1:$1048576,$A11,AH$1))","v":""},{"$f":"IF($A11=\"N/A\",Ref!$B$36,INDEX(Ranks!$1:$1048576,$A11,AI$1))","v":""},{"$f":"IF($A11=\"N/A\",Ref!$B$36,INDEX(Ranks!$1:$1048576,$A11,AJ$1))","v":""},{"$f":"IF($A11=\"N/A\",Ref!$B$36,INDEX(Ranks!$1:$1048576,$A11,AK$1))","v":""},{"$f":"IF($A11=\"N/A\",Ref!$B$36,INDEX(Ranks!$1:$1048576,$A11,AL$1))","v":""},{"$f":"IF($A11=\"N/A\",Ref!$B$36,INDEX(Ranks!$1:$1048576,$A11,AM$1))","v":""},{"$f":"IF($A11=\"N/A\",Ref!$B$36,INDEX(Ranks!$1:$1048576,$A11,AN$1))","v":""},{"$f":"IF($A11=\"N/A\",Ref!$B$36,INDEX(Ranks!$1:$1048576,$A11,AO$1))","v":""},{"$f":"IF($A11=\"N/A\",Ref!$B$36,INDEX(Ranks!$1:$1048576,$A11,AP$1))","v":""},{"$f":"IF($A11=\"N/A\",Ref!$B$36,INDEX(Ranks!$1:$1048576,$A11,AQ$1))","v":""},{"$f":"IF($A11=\"N/A\",Ref!$B$36,INDEX(Ranks!$1:$1048576,$A11,AR$1))","v":""},{"$f":"IF($A11=\"N/A\",Ref!$B$36,INDEX(Ranks!$1:$1048576,$A11,AS$1))","v":""},{"$f":"IF($A11=\"N/A\",Ref!$B$36,INDEX(Ranks!$1:$1048576,$A11,AT$1))","v":""},{"$f":"IF($A11=\"N/A\",Ref!$B$36,INDEX(Ranks!$1:$1048576,$A11,AU$1))","v":""},{"$f":"IF($A11=\"N/A\",Ref!$B$36,INDEX(Ranks!$1:$1048576,$A11,AV$1))","v":""},{"$f":"IF($A11=\"N/A\",Ref!$B$36,INDEX(Ranks!$1:$1048576,$A11,AW$1))","v":""},{"$f":"IF($A11=\"N/A\",Ref!$B$36,INDEX(Ranks!$1:$1048576,$A11,AX$1))","v":""},{"$f":"IF($A11=\"N/A\",Ref!$B$36,INDEX(Ranks!$1:$1048576,$A11,AY$1))","v":""},{"$f":"IF($A11=\"N/A\",Ref!$B$36,INDEX(Ranks!$1:$1048576,$A11,AZ$1))","v":""},{"$f":"IF($A11=\"N/A\",Ref!$B$36,INDEX(Ranks!$1:$1048576,$A11,BA$1))","v":""},{"$f":"IF($A11=\"N/A\",Ref!$B$36,INDEX(Ranks!$1:$1048576,$A11,BB$1))","v":""},{"$f":"IF($A11=\"N/A\",Ref!$B$36,INDEX(Ranks!$1:$1048576,$A11,BC$1))","v":""},{"$f":"IF($A11=\"N/A\",Ref!$B$36,INDEX(Ranks!$1:$1048576,$A11,BD$1))","v":""},{"$f":"IF($A11=\"N/A\",Ref!$B$36,INDEX(Ranks!$1:$1048576,$A11,BE$1))","v":""},{"$f":"IF($A11=\"N/A\",Ref!$B$36,INDEX(Ranks!$1:$1048576,$A11,BF$1))","v":""},{"$f":"IF($A11=\"N/A\",Ref!$B$36,INDEX(Ranks!$1:$1048576,$A11,BG$1))","v":""},{"$f":"IF($A11=\"N/A\",Ref!$B$36,INDEX(Ranks!$1:$1048576,$A11,BH$1))","v":""},{"$f":"IF($A11=\"N/A\",Ref!$B$36,INDEX(Ranks!$1:$1048576,$A11,BI$1))","v":""},{"$f":"IF($A11=\"N/A\",Ref!$B$36,INDEX(Ranks!$1:$1048576,$A11,BJ$1))","v":""},{"$f":"IF($A11=\"N/A\",Ref!$B$36,INDEX(Ranks!$1:$1048576,$A11,BK$1))","v":""},{"$f":"IF($A11=\"N/A\",Ref!$B$36,INDEX(Ranks!$1:$1048576,$A11,BL$1))","v":""},{"$f":"IF($A11=\"N/A\",Ref!$B$36,INDEX(Ranks!$1:$1048576,$A11,BM$1))","v":""},{"$f":"IF($A11=\"N/A\",Ref!$B$36,INDEX(Ranks!$1:$1048576,$A11,BN$1))","v":""},{"$f":"IF($A11=\"N/A\",Ref!$B$36,INDEX(Ranks!$1:$1048576,$A11,BO$1))","v":""},{"$f":"IF($A11=\"N/A\",Ref!$B$36,INDEX(Ranks!$1:$1048576,$A11,BP$1))","v":""},{"$f":"IF($A11=\"N/A\",Ref!$B$36,INDEX(Ranks!$1:$1048576,$A11,BQ$1))","v":""},{"$f":"IF($A11=\"N/A\",Ref!$B$36,INDEX(Ranks!$1:$1048576,$A11,BR$1))","v":""},{"$f":"IF($A11=\"N/A\",Ref!$B$36,INDEX(Ranks!$1:$1048576,$A11,BS$1))","v":""},{"$f":"IF($A11=\"N/A\",Ref!$B$36,INDEX(Ranks!$1:$1048576,$A11,BT$1))","v":""},{"$f":"IF($A11=\"N/A\",Ref!$B$36,INDEX(Ranks!$1:$1048576,$A11,BU$1))","v":""},{"$f":"IF($A11=\"N/A\",Ref!$B$36,INDEX(Ranks!$1:$1048576,$A11,BV$1))","v":""},{"$f":"IF($A11=\"N/A\",Ref!$B$36,INDEX(Ranks!$1:$1048576,$A11,BW$1))","v":""},{"$f":"IF($A11=\"N/A\",Ref!$B$36,INDEX(Ranks!$1:$1048576,$A11,BX$1))","v":""},{"$f":"IF($A11=\"N/A\",Ref!$B$36,INDEX(Ranks!$1:$1048576,$A11,BY$1))","v":""},{"$f":"IF($A11=\"N/A\",Ref!$B$36,INDEX(Ranks!$1:$1048576,$A11,BZ$1))","v":""},{"$f":"IF($A11=\"N/A\",Ref!$B$36,INDEX(Ranks!$1:$1048576,$A11,CA$1))","v":""},{"$f":"IF($A11=\"N/A\",Ref!$B$36,INDEX(Ranks!$1:$1048576,$A11,CB$1))","v":""},{"$f":"IF($A11=\"N/A\",Ref!$B$36,INDEX(Ranks!$1:$1048576,$A11,CC$1))","v":""},{"$f":"IF($A11=\"N/A\",Ref!$B$36,INDEX(Ranks!$1:$1048576,$A11,CD$1))","v":""},{"$f":"IF($A11=\"N/A\",Ref!$B$36,INDEX(Ranks!$1:$1048576,$A11,CE$1))","v":""},{"$f":"IF($A11=\"N/A\",Ref!$B$36,INDEX(Ranks!$1:$1048576,$A11,CF$1))","v":""},{"$f":"IF($A11=\"N/A\",Ref!$B$36,INDEX(Ranks!$1:$1048576,$A11,CG$1))","v":""},{"$f":"IF($A11=\"N/A\",Ref!$B$36,INDEX(Ranks!$1:$1048576,$A11,CH$1))","v":""},{"$f":"IF($A11=\"N/A\",Ref!$B$36,INDEX(Ranks!$1:$1048576,$A11,CI$1))","v":""},{"$f":"IF($A11=\"N/A\",Ref!$B$36,INDEX(Ranks!$1:$1048576,$A11,CJ$1))","v":""},{"$f":"IF($A11=\"N/A\",Ref!$B$36,INDEX(Ranks!$1:$1048576,$A11,CK$1))","v":""},{"$f":"IF($A11=\"N/A\",Ref!$B$36,INDEX(Ranks!$1:$1048576,$A11,CL$1))","v":""},{"$f":"IF($A11=\"N/A\",Ref!$B$36,INDEX(Ranks!$1:$1048576,$A11,CM$1))","v":""},{"$f":"IF($A11=\"N/A\",Ref!$B$36,INDEX(Ranks!$1:$1048576,$A11,CN$1))","v":""},{"$f":"IF($A11=\"N/A\",Ref!$B$36,INDEX(Ranks!$1:$1048576,$A11,CO$1))","v":""},{"$f":"IF($A11=\"N/A\",Ref!$B$36,INDEX(Ranks!$1:$1048576,$A11,CP$1))","v":""},{"$f":"IF($A11=\"N/A\",Ref!$B$36,INDEX(Ranks!$1:$1048576,$A11,CQ$1))","v":""},{"$f":"IF($A11=\"N/A\",Ref!$B$36,INDEX(Ranks!$1:$1048576,$A11,CR$1))","v":""},{"$f":"IF($A11=\"N/A\",Ref!$B$36,INDEX(Ranks!$1:$1048576,$A11,CS$1))","v":""},{"$f":"IF($A11=\"N/A\",Ref!$B$36,INDEX(Ranks!$1:$1048576,$A11,CT$1))","v":""},{"$f":"IF($A11=\"N/A\",Ref!$B$36,INDEX(Ranks!$1:$1048576,$A11,CU$1))","v":""},{"$f":"IF($A11=\"N/A\",Ref!$B$36,INDEX(Ranks!$1:$1048576,$A11,CV$1))","v":""},{"$f":"IF($A11=\"N/A\",Ref!$B$36,INDEX(Ranks!$1:$1048576,$A11,CW$1))","v":""},{"$f":"IF($A11=\"N/A\",Ref!$B$36,INDEX(Ranks!$1:$1048576,$A11,CX$1))","v":""},{"$f":"IF($A11=\"N/A\",Ref!$B$36,INDEX(Ranks!$1:$1048576,$A11,CY$1))","v":""},{"$f":"IF($A11=\"N/A\",Ref!$B$36,INDEX(Ranks!$1:$1048576,$A11,CZ$1))","v":""},{"$f":"IF($A11=\"N/A\",Ref!$B$36,INDEX(Ranks!$1:$1048576,$A11,DA$1))","v":""},{"$f":"IF($A11=\"N/A\",Ref!$B$36,INDEX(Ranks!$1:$1048576,$A11,DB$1))","v":""},{"$f":"IF($A11=\"N/A\",Ref!$B$36,INDEX(Ranks!$1:$1048576,$A11,DC$1))","v":""},{"$f":"IF($A11=\"N/A\",Ref!$B$36,INDEX(Ranks!$1:$1048576,$A11,DD$1))","v":""},{"$f":"IF($A11=\"N/A\",Ref!$B$36,INDEX(Ranks!$1:$1048576,$A11,DE$1))","v":""},{"$f":"IF($A11=\"N/A\",Ref!$B$36,INDEX(Ranks!$1:$1048576,$A11,DF$1))","v":""},{"$f":"IF($A11=\"N/A\",Ref!$B$36,INDEX(Ranks!$1:$1048576,$A11,DG$1))","v":""},{"$f":"IF($A11=\"N/A\",Ref!$B$36,INDEX(Ranks!$1:$1048576,$A11,DH$1))","v":""},{"$f":"IF($A11=\"N/A\",Ref!$B$36,INDEX(Ranks!$1:$1048576,$A11,DI$1))","v":""},{"$f":"IF($A11=\"N/A\",Ref!$B$36,INDEX(Ranks!$1:$1048576,$A11,DJ$1))","v":""},{"$f":"IF($A11=\"N/A\",Ref!$B$36,INDEX(Ranks!$1:$1048576,$A11,DK$1))","v":""},{"$f":"IF($A11=\"N/A\",Ref!$B$36,INDEX(Ranks!$1:$1048576,$A11,DL$1))","v":""},{"$f":"IF($A11=\"N/A\",Ref!$B$36,INDEX(Ranks!$1:$1048576,$A11,DM$1))","v":""},{"$f":"IF($A11=\"N/A\",Ref!$B$36,INDEX(Ranks!$1:$1048576,$A11,DN$1))","v":""},{"$f":"IF($A11=\"N/A\",Ref!$B$36,INDEX(Ranks!$1:$1048576,$A11,DO$1))","v":""},{"$f":"IF($A11=\"N/A\",Ref!$B$36,INDEX(Ranks!$1:$1048576,$A11,DP$1))","v":""},{"$f":"IF($A11=\"N/A\",Ref!$B$36,INDEX(Ranks!$1:$1048576,$A11,DQ$1))","v":""},{"$f":"IF($A11=\"N/A\",Ref!$B$36,INDEX(Ranks!$1:$1048576,$A11,DR$1))","v":""},{"$f":"IF($A11=\"N/A\",Ref!$B$36,INDEX(Ranks!$1:$1048576,$A11,DS$1))","v":""},{"$f":"IF($A11=\"N/A\",Ref!$B$36,INDEX(Ranks!$1:$1048576,$A11,DT$1))","v":""},{"$f":"IF($A11=\"N/A\",Ref!$B$36,INDEX(Ranks!$1:$1048576,$A11,DU$1))","v":""},{"$f":"IF($A11=\"N/A\",Ref!$B$36,INDEX(Ranks!$1:$1048576,$A11,DV$1))","v":""},{"$f":"IF($A11=\"N/A\",Ref!$B$36,INDEX(Ranks!$1:$1048576,$A11,DW$1))","v":""},{"$f":"IF($A11=\"N/A\",Ref!$B$36,INDEX(Ranks!$1:$1048576,$A11,DX$1))","v":""},{"$f":"IF($A11=\"N/A\",Ref!$B$36,INDEX(Ranks!$1:$1048576,$A11,DY$1))","v":""},{"$f":"IF($A11=\"N/A\",Ref!$B$36,INDEX(Ranks!$1:$1048576,$A11,DZ$1))","v":""},{"$f":"IF($A11=\"N/A\",Ref!$B$36,INDEX(Ranks!$1:$1048576,$A11,EA$1))","v":""},{"$f":"IF($A11=\"N/A\",Ref!$B$36,INDEX(Ranks!$1:$1048576,$A11,EB$1))","v":""}]
[{"$f":"IFERROR(MATCH('Portfolio Page'!L12,Ranks!L:L,0),\"N/A\")","v":"N/A"},null,{"$f":"IF($A12=\"N/A\",\"\",INDEX(Ranks!$1:$1048576,$A12,C$1))","v":""},{"$f":"IF($A12=\"N/A\",Ref!$B$36,INDEX(Ranks!$1:$1048576,$A12,D$1))","v":""},{"$f":"IF($A12=\"N/A\",Ref!$B$36,INDEX(Ranks!$1:$1048576,$A12,E$1))","v":""},{"$f":"IF($A12=\"N/A\",\"\",INDEX(Ranks!$1:$1048576,$A12,F$1))","v":""},{"$f":"IF($A12=\"N/A\",\"\",INDEX(Ranks!$1:$1048576,$A12,G$1))","v":""},{"$f":"IF($A12=\"N/A\",\"\",INDEX(Ranks!$1:$1048576,$A12,H$1))","v":""},{"$f":"IF($A12=\"N/A\",\"\",INDEX(Ranks!$1:$1048576,$A12,I$1))","v":""},{"$f":"IF($A12=\"N/A\",\"\",INDEX(Ranks!$1:$1048576,$A12,J$1))","v":""},{"$f":"IF($A12=\"N/A\",\"\",INDEX(Ranks!$1:$1048576,$A12,K$1))","v":""},null,{"$f":"IF($A12=\"N/A\",Ref!$B$36,INDEX(Ranks!$1:$1048576,$A12,M$1))","v":""},{"$f":"IF($A12=\"N/A\",Ref!$B$36,INDEX(Ranks!$1:$1048576,$A12,N$1))","v":""},{"$f":"IF($A12=\"N/A\",Ref!$B$36,INDEX(Ranks!$1:$1048576,$A12,O$1))","v":""},{"$f":"IF($A12=\"N/A\",Ref!$B$36,INDEX(Ranks!$1:$1048576,$A12,P$1))","v":""},{"$f":"IF($A12=\"N/A\",Ref!$B$36,INDEX(Ranks!$1:$1048576,$A12,Q$1))","v":""},{"$f":"IF($A12=\"N/A\",Ref!$B$36,INDEX(Ranks!$1:$1048576,$A12,R$1))","v":""},{"$f":"IF($A12=\"N/A\",Ref!$B$36,INDEX(Ranks!$1:$1048576,$A12,S$1))","v":""},{"$f":"IF($A12=\"N/A\",Ref!$B$36,INDEX(Ranks!$1:$1048576,$A12,T$1))","v":""},{"$f":"IF($A12=\"N/A\",Ref!$B$36,INDEX(Ranks!$1:$1048576,$A12,U$1))","v":""},{"$f":"IF($A12=\"N/A\",Ref!$B$36,INDEX(Ranks!$1:$1048576,$A12,V$1))","v":""},{"$f":"IF($A12=\"N/A\",Ref!$B$36,INDEX(Ranks!$1:$1048576,$A12,W$1))","v":""},{"$f":"IF($A12=\"N/A\",Ref!$B$36,INDEX(Ranks!$1:$1048576,$A12,X$1))","v":""},{"$f":"IF($A12=\"N/A\",Ref!$B$36,INDEX(Ranks!$1:$1048576,$A12,Y$1))","v":""},{"$f":"IF($A12=\"N/A\",Ref!$B$36,INDEX(Ranks!$1:$1048576,$A12,Z$1))","v":""},{"$f":"IF($A12=\"N/A\",Ref!$B$36,INDEX(Ranks!$1:$1048576,$A12,AA$1))","v":""},{"$f":"IF($A12=\"N/A\",Ref!$B$36,INDEX(Ranks!$1:$1048576,$A12,AB$1))","v":""},{"$f":"IF($A12=\"N/A\",Ref!$B$36,INDEX(Ranks!$1:$1048576,$A12,AC$1))","v":""},{"$f":"IF($A12=\"N/A\",Ref!$B$36,INDEX(Ranks!$1:$1048576,$A12,AD$1))","v":""},{"$f":"IF($A12=\"N/A\",Ref!$B$36,INDEX(Ranks!$1:$1048576,$A12,AE$1))","v":""},{"$f":"IF($A12=\"N/A\",Ref!$B$36,INDEX(Ranks!$1:$1048576,$A12,AF$1))","v":""},{"$f":"IF($A12=\"N/A\",Ref!$B$36,INDEX(Ranks!$1:$1048576,$A12,AG$1))","v":""},{"$f":"IF($A12=\"N/A\",Ref!$B$36,INDEX(Ranks!$1:$1048576,$A12,AH$1))","v":""},{"$f":"IF($A12=\"N/A\",Ref!$B$36,INDEX(Ranks!$1:$1048576,$A12,AI$1))","v":""},{"$f":"IF($A12=\"N/A\",Ref!$B$36,INDEX(Ranks!$1:$1048576,$A12,AJ$1))","v":""},{"$f":"IF($A12=\"N/A\",Ref!$B$36,INDEX(Ranks!$1:$1048576,$A12,AK$1))","v":""},{"$f":"IF($A12=\"N/A\",Ref!$B$36,INDEX(Ranks!$1:$1048576,$A12,AL$1))","v":""},{"$f":"IF($A12=\"N/A\",Ref!$B$36,INDEX(Ranks!$1:$1048576,$A12,AM$1))","v":""},{"$f":"IF($A12=\"N/A\",Ref!$B$36,INDEX(Ranks!$1:$1048576,$A12,AN$1))","v":""},{"$f":"IF($A12=\"N/A\",Ref!$B$36,INDEX(Ranks!$1:$1048576,$A12,AO$1))","v":""},{"$f":"IF($A12=\"N/A\",Ref!$B$36,INDEX(Ranks!$1:$1048576,$A12,AP$1))","v":""},{"$f":"IF($A12=\"N/A\",Ref!$B$36,INDEX(Ranks!$1:$1048576,$A12,AQ$1))","v":""},{"$f":"IF($A12=\"N/A\",Ref!$B$36,INDEX(Ranks!$1:$1048576,$A12,AR$1))","v":""},{"$f":"IF($A12=\"N/A\",Ref!$B$36,INDEX(Ranks!$1:$1048576,$A12,AS$1))","v":""},{"$f":"IF($A12=\"N/A\",Ref!$B$36,INDEX(Ranks!$1:$1048576,$A12,AT$1))","v":""},{"$f":"IF($A12=\"N/A\",Ref!$B$36,INDEX(Ranks!$1:$1048576,$A12,AU$1))","v":""},{"$f":"IF($A12=\"N/A\",Ref!$B$36,INDEX(Ranks!$1:$1048576,$A12,AV$1))","v":""},{"$f":"IF($A12=\"N/A\",Ref!$B$36,INDEX(Ranks!$1:$1048576,$A12,AW$1))","v":""},{"$f":"IF($A12=\"N/A\",Ref!$B$36,INDEX(Ranks!$1:$1048576,$A12,AX$1))","v":""},{"$f":"IF($A12=\"N/A\",Ref!$B$36,INDEX(Ranks!$1:$1048576,$A12,AY$1))","v":""},{"$f":"IF($A12=\"N/A\",Ref!$B$36,INDEX(Ranks!$1:$1048576,$A12,AZ$1))","v":""},{"$f":"IF($A12=\"N/A\",Ref!$B$36,INDEX(Ranks!$1:$1048576,$A12,BA$1))","v":""},{"$f":"IF($A12=\"N/A\",Ref!$B$36,INDEX(Ranks!$1:$1048576,$A12,BB$1))","v":""},{"$f":"IF($A12=\"N/A\",Ref!$B$36,INDEX(Ranks!$1:$1048576,$A12,BC$1))","v":""},{"$f":"IF($A12=\"N/A\",Ref!$B$36,INDEX(Ranks!$1:$1048576,$A12,BD$1))","v":""},{"$f":"IF($A12=\"N/A\",Ref!$B$36,INDEX(Ranks!$1:$1048576,$A12,BE$1))","v":""},{"$f":"IF($A12=\"N/A\",Ref!$B$36,INDEX(Ranks!$1:$1048576,$A12,BF$1))","v":""},{"$f":"IF($A12=\"N/A\",Ref!$B$36,INDEX(Ranks!$1:$1048576,$A12,BG$1))","v":""},{"$f":"IF($A12=\"N/A\",Ref!$B$36,INDEX(Ranks!$1:$1048576,$A12,BH$1))","v":""},{"$f":"IF($A12=\"N/A\",Ref!$B$36,INDEX(Ranks!$1:$1048576,$A12,BI$1))","v":""},{"$f":"IF($A12=\"N/A\",Ref!$B$36,INDEX(Ranks!$1:$1048576,$A12,BJ$1))","v":""},{"$f":"IF($A12=\"N/A\",Ref!$B$36,INDEX(Ranks!$1:$1048576,$A12,BK$1))","v":""},{"$f":"IF($A12=\"N/A\",Ref!$B$36,INDEX(Ranks!$1:$1048576,$A12,BL$1))","v":""},{"$f":"IF($A12=\"N/A\",Ref!$B$36,INDEX(Ranks!$1:$1048576,$A12,BM$1))","v":""},{"$f":"IF($A12=\"N/A\",Ref!$B$36,INDEX(Ranks!$1:$1048576,$A12,BN$1))","v":""},{"$f":"IF($A12=\"N/A\",Ref!$B$36,INDEX(Ranks!$1:$1048576,$A12,BO$1))","v":""},{"$f":"IF($A12=\"N/A\",Ref!$B$36,INDEX(Ranks!$1:$1048576,$A12,BP$1))","v":""},{"$f":"IF($A12=\"N/A\",Ref!$B$36,INDEX(Ranks!$1:$1048576,$A12,BQ$1))","v":""},{"$f":"IF($A12=\"N/A\",Ref!$B$36,INDEX(Ranks!$1:$1048576,$A12,BR$1))","v":""},{"$f":"IF($A12=\"N/A\",Ref!$B$36,INDEX(Ranks!$1:$1048576,$A12,BS$1))","v":""},{"$f":"IF($A12=\"N/A\",Ref!$B$36,INDEX(Ranks!$1:$1048576,$A12,BT$1))","v":""},{"$f":"IF($A12=\"N/A\",Ref!$B$36,INDEX(Ranks!$1:$1048576,$A12,BU$1))","v":""},{"$f":"IF($A12=\"N/A\",Ref!$B$36,INDEX(Ranks!$1:$1048576,$A12,BV$1))","v":""},{"$f":"IF($A12=\"N/A\",Ref!$B$36,INDEX(Ranks!$1:$1048576,$A12,BW$1))","v":""},{"$f":"IF($A12=\"N/A\",Ref!$B$36,INDEX(Ranks!$1:$1048576,$A12,BX$1))","v":""},{"$f":"IF($A12=\"N/A\",Ref!$B$36,INDEX(Ranks!$1:$1048576,$A12,BY$1))","v":""},{"$f":"IF($A12=\"N/A\",Ref!$B$36,INDEX(Ranks!$1:$1048576,$A12,BZ$1))","v":""},{"$f":"IF($A12=\"N/A\",Ref!$B$36,INDEX(Ranks!$1:$1048576,$A12,CA$1))","v":""},{"$f":"IF($A12=\"N/A\",Ref!$B$36,INDEX(Ranks!$1:$1048576,$A12,CB$1))","v":""},{"$f":"IF($A12=\"N/A\",Ref!$B$36,INDEX(Ranks!$1:$1048576,$A12,CC$1))","v":""},{"$f":"IF($A12=\"N/A\",Ref!$B$36,INDEX(Ranks!$1:$1048576,$A12,CD$1))","v":""},{"$f":"IF($A12=\"N/A\",Ref!$B$36,INDEX(Ranks!$1:$1048576,$A12,CE$1))","v":""},{"$f":"IF($A12=\"N/A\",Ref!$B$36,INDEX(Ranks!$1:$1048576,$A12,CF$1))","v":""},{"$f":"IF($A12=\"N/A\",Ref!$B$36,INDEX(Ranks!$1:$1048576,$A12,CG$1))","v":""},{"$f":"IF($A12=\"N/A\",Ref!$B$36,INDEX(Ranks!$1:$1048576,$A12,CH$1))","v":""},{"$f":"IF($A12=\"N/A\",Ref!$B$36,INDEX(Ranks!$1:$1048576,$A12,CI$1))","v":""},{"$f":"IF($A12=\"N/A\",Ref!$B$36,INDEX(Ranks!$1:$1048576,$A12,CJ$1))","v":""},{"$f":"IF($A12=\"N/A\",Ref!$B$36,INDEX(Ranks!$1:$1048576,$A12,CK$1))","v":""},{"$f":"IF($A12=\"N/A\",Ref!$B$36,INDEX(Ranks!$1:$1048576,$A12,CL$1))","v":""},{"$f":"IF($A12=\"N/A\",Ref!$B$36,INDEX(Ranks!$1:$1048576,$A12,CM$1))","v":""},{"$f":"IF($A12=\"N/A\",Ref!$B$36,INDEX(Ranks!$1:$1048576,$A12,CN$1))","v":""},{"$f":"IF($A12=\"N/A\",Ref!$B$36,INDEX(Ranks!$1:$1048576,$A12,CO$1))","v":""},{"$f":"IF($A12=\"N/A\",Ref!$B$36,INDEX(Ranks!$1:$1048576,$A12,CP$1))","v":""},{"$f":"IF($A12=\"N/A\",Ref!$B$36,INDEX(Ranks!$1:$1048576,$A12,CQ$1))","v":""},{"$f":"IF($A12=\"N/A\",Ref!$B$36,INDEX(Ranks!$1:$1048576,$A12,CR$1))","v":""},{"$f":"IF($A12=\"N/A\",Ref!$B$36,INDEX(Ranks!$1:$1048576,$A12,CS$1))","v":""},{"$f":"IF($A12=\"N/A\",Ref!$B$36,INDEX(Ranks!$1:$1048576,$A12,CT$1))","v":""},{"$f":"IF($A12=\"N/A\",Ref!$B$36,INDEX(Ranks!$1:$1048576,$A12,CU$1))","v":""},{"$f":"IF($A12=\"N/A\",Ref!$B$36,INDEX(Ranks!$1:$1048576,$A12,CV$1))","v":""},{"$f":"IF($A12=\"N/A\",Ref!$B$36,INDEX(Ranks!$1:$1048576,$A12,CW$1))","v":""},{"$f":"IF($A12=\"N/A\",Ref!$B$36,INDEX(Ranks!$1:$1048576,$A12,CX$1))","v":""},{"$f":"IF($A12=\"N/A\",Ref!$B$36,INDEX(Ranks!$1:$1048576,$A12,CY$1))","v":""},{"$f":"IF($A12=\"N/A\",Ref!$B$36,INDEX(Ranks!$1:$1048576,$A12,CZ$1))","v":""},{"$f":"IF($A12=\"N/A\",Ref!$B$36,INDEX(Ranks!$1:$1048576,$A12,DA$1))","v":""},{"$f":"IF($A12=\"N/A\",Ref!$B$36,INDEX(Ranks!$1:$1048576,$A12,DB$1))","v":""},{"$f":"IF($A12=\"N/A\",Ref!$B$36,INDEX(Ranks!$1:$1048576,$A12,DC$1))","v":""},{"$f":"IF($A12=\"N/A\",Ref!$B$36,INDEX(Ranks!$1:$1048576,$A12,DD$1))","v":""},{"$f":"IF($A12=\"N/A\",Ref!$B$36,INDEX(Ranks!$1:$1048576,$A12,DE$1))","v":""},{"$f":"IF($A12=\"N/A\",Ref!$B$36,INDEX(Ranks!$1:$1048576,$A12,DF$1))","v":""},{"$f":"IF($A12=\"N/A\",Ref!$B$36,INDEX(Ranks!$1:$1048576,$A12,DG$1))","v":""},{"$f":"IF($A12=\"N/A\",Ref!$B$36,INDEX(Ranks!$1:$1048576,$A12,DH$1))","v":""},{"$f":"IF($A12=\"N/A\",Ref!$B$36,INDEX(Ranks!$1:$1048576,$A12,DI$1))","v":""},{"$f":"IF($A12=\"N/A\",Ref!$B$36,INDEX(Ranks!$1:$1048576,$A12,DJ$1))","v":""},{"$f":"IF($A12=\"N/A\",Ref!$B$36,INDEX(Ranks!$1:$1048576,$A12,DK$1))","v":""},{"$f":"IF($A12=\"N/A\",Ref!$B$36,INDEX(Ranks!$1:$1048576,$A12,DL$1))","v":""},{"$f":"IF($A12=\"N/A\",Ref!$B$36,INDEX(Ranks!$1:$1048576,$A12,DM$1))","v":""},{"$f":"IF($A12=\"N/A\",Ref!$B$36,INDEX(Ranks!$1:$1048576,$A12,DN$1))","v":""},{"$f":"IF($A12=\"N/A\",Ref!$B$36,INDEX(Ranks!$1:$1048576,$A12,DO$1))","v":""},{"$f":"IF($A12=\"N/A\",Ref!$B$36,INDEX(Ranks!$1:$1048576,$A12,DP$1))","v":""},{"$f":"IF($A12=\"N/A\",Ref!$B$36,INDEX(Ranks!$1:$1048576,$A12,DQ$1))","v":""},{"$f":"IF($A12=\"N/A\",Ref!$B$36,INDEX(Ranks!$1:$1048576,$A12,DR$1))","v":""},{"$f":"IF($A12=\"N/A\",Ref!$B$36,INDEX(Ranks!$1:$1048576,$A12,DS$1))","v":""},{"$f":"IF($A12=\"N/A\",Ref!$B$36,INDEX(Ranks!$1:$1048576,$A12,DT$1))","v":""},{"$f":"IF($A12=\"N/A\",Ref!$B$36,INDEX(Ranks!$1:$1048576,$A12,DU$1))","v":""},{"$f":"IF($A12=\"N/A\",Ref!$B$36,INDEX(Ranks!$1:$1048576,$A12,DV$1))","v":""},{"$f":"IF($A12=\"N/A\",Ref!$B$36,INDEX(Ranks!$1:$1048576,$A12,DW$1))","v":""},{"$f":"IF($A12=\"N/A\",Ref!$B$36,INDEX(Ranks!$1:$1048576,$A12,DX$1))","v":""},{"$f":"IF($A12=\"N/A\",Ref!$B$36,INDEX(Ranks!$1:$1048576,$A12,DY$1))","v":""},{"$f":"IF($A12=\"N/A\",Ref!$B$36,INDEX(Ranks!$1:$1048576,$A12,DZ$1))","v":""},{"$f":"IF($A12=\"N/A\",Ref!$B$36,INDEX(Ranks!$1:$1048576,$A12,EA$1))","v":""},{"$f":"IF($A12=\"N/A\",Ref!$B$36,INDEX(Ranks!$1:$1048576,$A12,EB$1))","v":""}]
[{"$f":"IFERROR(MATCH('Portfolio Page'!L13,Ranks!L:L,0),\"N/A\")","v":"N/A"},null,{"$f":"IF($A13=\"N/A\",\"\",INDEX(Ranks!$1:$1048576,$A13,C$1))","v":""},{"$f":"IF($A13=\"N/A\",Ref!$B$36,INDEX(Ranks!$1:$1048576,$A13,D$1))","v":""},{"$f":"IF($A13=\"N/A\",Ref!$B$36,INDEX(Ranks!$1:$1048576,$A13,E$1))","v":""},{"$f":"IF($A13=\"N/A\",\"\",INDEX(Ranks!$1:$1048576,$A13,F$1))","v":""},{"$f":"IF($A13=\"N/A\",\"\",INDEX(Ranks!$1:$1048576,$A13,G$1))","v":""},{"$f":"IF($A13=\"N/A\",\"\",INDEX(Ranks!$1:$1048576,$A13,H$1))","v":""},{"$f":"IF($A13=\"N/A\",\"\",INDEX(Ranks!$1:$1048576,$A13,I$1))","v":""},{"$f":"IF($A13=\"N/A\",\"\",INDEX(Ranks!$1:$1048576,$A13,J$1))","v":""},{"$f":"IF($A13=\"N/A\",\"\",INDEX(Ranks!$1:$1048576,$A13,K$1))","v":""},null,{"$f":"IF($A13=\"N/A\",Ref!$B$36,INDEX(Ranks!$1:$1048576,$A13,M$1))","v":""},{"$f":"IF($A13=\"N/A\",Ref!$B$36,INDEX(Ranks!$1:$1048576,$A13,N$1))","v":""},{"$f":"IF($A13=\"N/A\",Ref!$B$36,INDEX(Ranks!$1:$1048576,$A13,O$1))","v":""},{"$f":"IF($A13=\"N/A\",Ref!$B$36,INDEX(Ranks!$1:$1048576,$A13,P$1))","v":""},{"$f":"IF($A13=\"N/A\",Ref!$B$36,INDEX(Ranks!$1:$1048576,$A13,Q$1))","v":""},{"$f":"IF($A13=\"N/A\",Ref!$B$36,INDEX(Ranks!$1:$1048576,$A13,R$1))","v":""},{"$f":"IF($A13=\"N/A\",Ref!$B$36,INDEX(Ranks!$1:$1048576,$A13,S$1))","v":""},{"$f":"IF($A13=\"N/A\",Ref!$B$36,INDEX(Ranks!$1:$1048576,$A13,T$1))","v":""},{"$f":"IF($A13=\"N/A\",Ref!$B$36,INDEX(Ranks!$1:$1048576,$A13,U$1))","v":""},{"$f":"IF($A13=\"N/A\",Ref!$B$36,INDEX(Ranks!$1:$1048576,$A13,V$1))","v":""},{"$f":"IF($A13=\"N/A\",Ref!$B$36,INDEX(Ranks!$1:$1048576,$A13,W$1))","v":""},{"$f":"IF($A13=\"N/A\",Ref!$B$36,INDEX(Ranks!$1:$1048576,$A13,X$1))","v":""},{"$f":"IF($A13=\"N/A\",Ref!$B$36,INDEX(Ranks!$1:$1048576,$A13,Y$1))","v":""},{"$f":"IF($A13=\"N/A\",Ref!$B$36,INDEX(Ranks!$1:$1048576,$A13,Z$1))","v":""},{"$f":"IF($A13=\"N/A\",Ref!$B$36,INDEX(Ranks!$1:$1048576,$A13,AA$1))","v":""},{"$f":"IF($A13=\"N/A\",Ref!$B$36,INDEX(Ranks!$1:$1048576,$A13,AB$1))","v":""},{"$f":"IF($A13=\"N/A\",Ref!$B$36,INDEX(Ranks!$1:$1048576,$A13,AC$1))","v":""},{"$f":"IF($A13=\"N/A\",Ref!$B$36,INDEX(Ranks!$1:$1048576,$A13,AD$1))","v":""},{"$f":"IF($A13=\"N/A\",Ref!$B$36,INDEX(Ranks!$1:$1048576,$A13,AE$1))","v":""},{"$f":"IF($A13=\"N/A\",Ref!$B$36,INDEX(Ranks!$1:$1048576,$A13,AF$1))","v":""},{"$f":"IF($A13=\"N/A\",Ref!$B$36,INDEX(Ranks!$1:$1048576,$A13,AG$1))","v":""},{"$f":"IF($A13=\"N/A\",Ref!$B$36,INDEX(Ranks!$1:$1048576,$A13,AH$1))","v":""},{"$f":"IF($A13=\"N/A\",Ref!$B$36,INDEX(Ranks!$1:$1048576,$A13,AI$1))","v":""},{"$f":"IF($A13=\"N/A\",Ref!$B$36,INDEX(Ranks!$1:$1048576,$A13,AJ$1))","v":""},{"$f":"IF($A13=\"N/A\",Ref!$B$36,INDEX(Ranks!$1:$1048576,$A13,AK$1))","v":""},{"$f":"IF($A13=\"N/A\",Ref!$B$36,INDEX(Ranks!$1:$1048576,$A13,AL$1))","v":""},{"$f":"IF($A13=\"N/A\",Ref!$B$36,INDEX(Ranks!$1:$1048576,$A13,AM$1))","v":""},{"$f":"IF($A13=\"N/A\",Ref!$B$36,INDEX(Ranks!$1:$1048576,$A13,AN$1))","v":""},{"$f":"IF($A13=\"N/A\",Ref!$B$36,INDEX(Ranks!$1:$1048576,$A13,AO$1))","v":""},{"$f":"IF($A13=\"N/A\",Ref!$B$36,INDEX(Ranks!$1:$1048576,$A13,AP$1))","v":""},{"$f":"IF($A13=\"N/A\",Ref!$B$36,INDEX(Ranks!$1:$1048576,$A13,AQ$1))","v":""},{"$f":"IF($A13=\"N/A\",Ref!$B$36,INDEX(Ranks!$1:$1048576,$A13,AR$1))","v":""},{"$f":"IF($A13=\"N/A\",Ref!$B$36,INDEX(Ranks!$1:$1048576,$A13,AS$1))","v":""},{"$f":"IF($A13=\"N/A\",Ref!$B$36,INDEX(Ranks!$1:$1048576,$A13,AT$1))","v":""},{"$f":"IF($A13=\"N/A\",Ref!$B$36,INDEX(Ranks!$1:$1048576,$A13,AU$1))","v":""},{"$f":"IF($A13=\"N/A\",Ref!$B$36,INDEX(Ranks!$1:$1048576,$A13,AV$1))","v":""},{"$f":"IF($A13=\"N/A\",Ref!$B$36,INDEX(Ranks!$1:$1048576,$A13,AW$1))","v":""},{"$f":"IF($A13=\"N/A\",Ref!$B$36,INDEX(Ranks!$1:$1048576,$A13,AX$1))","v":""},{"$f":"IF($A13=\"N/A\",Ref!$B$36,INDEX(Ranks!$1:$1048576,$A13,AY$1))","v":""},{"$f":"IF($A13=\"N/A\",Ref!$B$36,INDEX(Ranks!$1:$1048576,$A13,AZ$1))","v":""},{"$f":"IF($A13=\"N/A\",Ref!$B$36,INDEX(Ranks!$1:$1048576,$A13,BA$1))","v":""},{"$f":"IF($A13=\"N/A\",Ref!$B$36,INDEX(Ranks!$1:$1048576,$A13,BB$1))","v":""},{"$f":"IF($A13=\"N/A\",Ref!$B$36,INDEX(Ranks!$1:$1048576,$A13,BC$1))","v":""},{"$f":"IF($A13=\"N/A\",Ref!$B$36,INDEX(Ranks!$1:$1048576,$A13,BD$1))","v":""},{"$f":"IF($A13=\"N/A\",Ref!$B$36,INDEX(Ranks!$1:$1048576,$A13,BE$1))","v":""},{"$f":"IF($A13=\"N/A\",Ref!$B$36,INDEX(Ranks!$1:$1048576,$A13,BF$1))","v":""},{"$f":"IF($A13=\"N/A\",Ref!$B$36,INDEX(Ranks!$1:$1048576,$A13,BG$1))","v":""},{"$f":"IF($A13=\"N/A\",Ref!$B$36,INDEX(Ranks!$1:$1048576,$A13,BH$1))","v":""},{"$f":"IF($A13=\"N/A\",Ref!$B$36,INDEX(Ranks!$1:$1048576,$A13,BI$1))","v":""},{"$f":"IF($A13=\"N/A\",Ref!$B$36,INDEX(Ranks!$1:$1048576,$A13,BJ$1))","v":""},{"$f":"IF($A13=\"N/A\",Ref!$B$36,INDEX(Ranks!$1:$1048576,$A13,BK$1))","v":""},{"$f":"IF($A13=\"N/A\",Ref!$B$36,INDEX(Ranks!$1:$1048576,$A13,BL$1))","v":""},{"$f":"IF($A13=\"N/A\",Ref!$B$36,INDEX(Ranks!$1:$1048576,$A13,BM$1))","v":""},{"$f":"IF($A13=\"N/A\",Ref!$B$36,INDEX(Ranks!$1:$1048576,$A13,BN$1))","v":""},{"$f":"IF($A13=\"N/A\",Ref!$B$36,INDEX(Ranks!$1:$1048576,$A13,BO$1))","v":""},{"$f":"IF($A13=\"N/A\",Ref!$B$36,INDEX(Ranks!$1:$1048576,$A13,BP$1))","v":""},{"$f":"IF($A13=\"N/A\",Ref!$B$36,INDEX(Ranks!$1:$1048576,$A13,BQ$1))","v":""},{"$f":"IF($A13=\"N/A\",Ref!$B$36,INDEX(Ranks!$1:$1048576,$A13,BR$1))","v":""},{"$f":"IF($A13=\"N/A\",Ref!$B$36,INDEX(Ranks!$1:$1048576,$A13,BS$1))","v":""},{"$f":"IF($A13=\"N/A\",Ref!$B$36,INDEX(Ranks!$1:$1048576,$A13,BT$1))","v":""},{"$f":"IF($A13=\"N/A\",Ref!$B$36,INDEX(Ranks!$1:$1048576,$A13,BU$1))","v":""},{"$f":"IF($A13=\"N/A\",Ref!$B$36,INDEX(Ranks!$1:$1048576,$A13,BV$1))","v":""},{"$f":"IF($A13=\"N/A\",Ref!$B$36,INDEX(Ranks!$1:$1048576,$A13,BW$1))","v":""},{"$f":"IF($A13=\"N/A\",Ref!$B$36,INDEX(Ranks!$1:$1048576,$A13,BX$1))","v":""},{"$f":"IF($A13=\"N/A\",Ref!$B$36,INDEX(Ranks!$1:$1048576,$A13,BY$1))","v":""},{"$f":"IF($A13=\"N/A\",Ref!$B$36,INDEX(Ranks!$1:$1048576,$A13,BZ$1))","v":""},{"$f":"IF($A13=\"N/A\",Ref!$B$36,INDEX(Ranks!$1:$1048576,$A13,CA$1))","v":""},{"$f":"IF($A13=\"N/A\",Ref!$B$36,INDEX(Ranks!$1:$1048576,$A13,CB$1))","v":""},{"$f":"IF($A13=\"N/A\",Ref!$B$36,INDEX(Ranks!$1:$1048576,$A13,CC$1))","v":""},{"$f":"IF($A13=\"N/A\",Ref!$B$36,INDEX(Ranks!$1:$1048576,$A13,CD$1))","v":""},{"$f":"IF($A13=\"N/A\",Ref!$B$36,INDEX(Ranks!$1:$1048576,$A13,CE$1))","v":""},{"$f":"IF($A13=\"N/A\",Ref!$B$36,INDEX(Ranks!$1:$1048576,$A13,CF$1))","v":""},{"$f":"IF($A13=\"N/A\",Ref!$B$36,INDEX(Ranks!$1:$1048576,$A13,CG$1))","v":""},{"$f":"IF($A13=\"N/A\",Ref!$B$36,INDEX(Ranks!$1:$1048576,$A13,CH$1))","v":""},{"$f":"IF($A13=\"N/A\",Ref!$B$36,INDEX(Ranks!$1:$1048576,$A13,CI$1))","v":""},{"$f":"IF($A13=\"N/A\",Ref!$B$36,INDEX(Ranks!$1:$1048576,$A13,CJ$1))","v":""},{"$f":"IF($A13=\"N/A\",Ref!$B$36,INDEX(Ranks!$1:$1048576,$A13,CK$1))","v":""},{"$f":"IF($A13=\"N/A\",Ref!$B$36,INDEX(Ranks!$1:$1048576,$A13,CL$1))","v":""},{"$f":"IF($A13=\"N/A\",Ref!$B$36,INDEX(Ranks!$1:$1048576,$A13,CM$1))","v":""},{"$f":"IF($A13=\"N/A\",Ref!$B$36,INDEX(Ranks!$1:$1048576,$A13,CN$1))","v":""},{"$f":"IF($A13=\"N/A\",Ref!$B$36,INDEX(Ranks!$1:$1048576,$A13,CO$1))","v":""},{"$f":"IF($A13=\"N/A\",Ref!$B$36,INDEX(Ranks!$1:$1048576,$A13,CP$1))","v":""},{"$f":"IF($A13=\"N/A\",Ref!$B$36,INDEX(Ranks!$1:$1048576,$A13,CQ$1))","v":""},{"$f":"IF($A13=\"N/A\",Ref!$B$36,INDEX(Ranks!$1:$1048576,$A13,CR$1))","v":""},{"$f":"IF($A13=\"N/A\",Ref!$B$36,INDEX(Ranks!$1:$1048576,$A13,CS$1))","v":""},{"$f":"IF($A13=\"N/A\",Ref!$B$36,INDEX(Ranks!$1:$1048576,$A13,CT$1))","v":""},{"$f":"IF($A13=\"N/A\",Ref!$B$36,INDEX(Ranks!$1:$1048576,$A13,CU$1))","v":""},{"$f":"IF($A13=\"N/A\",Ref!$B$36,INDEX(Ranks!$1:$1048576,$A13,CV$1))","v":""},{"$f":"IF($A13=\"N/A\",Ref!$B$36,INDEX(Ranks!$1:$1048576,$A13,CW$1))","v":""},{"$f":"IF($A13=\"N/A\",Ref!$B$36,INDEX(Ranks!$1:$1048576,$A13,CX$1))","v":""},{"$f":"IF($A13=\"N/A\",Ref!$B$36,INDEX(Ranks!$1:$1048576,$A13,CY$1))","v":""},{"$f":"IF($A13=\"N/A\",Ref!$B$36,INDEX(Ranks!$1:$1048576,$A13,CZ$1))","v":""},{"$f":"IF($A13=\"N/A\",Ref!$B$36,INDEX(Ranks!$1:$1048576,$A13,DA$1))","v":""},{"$f":"IF($A13=\"N/A\",Ref!$B$36,INDEX(Ranks!$1:$1048576,$A13,DB$1))","v":""},{"$f":"IF($A13=\"N/A\",Ref!$B$36,INDEX(Ranks!$1:$1048576,$A13,DC$1))","v":""},{"$f":"IF($A13=\"N/A\",Ref!$B$36,INDEX(Ranks!$1:$1048576,$A13,DD$1))","v":""},{"$f":"IF($A13=\"N/A\",Ref!$B$36,INDEX(Ranks!$1:$1048576,$A13,DE$1))","v":""},{"$f":"IF($A13=\"N/A\",Ref!$B$36,INDEX(Ranks!$1:$1048576,$A13,DF$1))","v":""},{"$f":"IF($A13=\"N/A\",Ref!$B$36,INDEX(Ranks!$1:$1048576,$A13,DG$1))","v":""},{"$f":"IF($A13=\"N/A\",Ref!$B$36,INDEX(Ranks!$1:$1048576,$A13,DH$1))","v":""},{"$f":"IF($A13=\"N/A\",Ref!$B$36,INDEX(Ranks!$1:$1048576,$A13,DI$1))","v":""},{"$f":"IF($A13=\"N/A\",Ref!$B$36,INDEX(Ranks!$1:$1048576,$A13,DJ$1))","v":""},{"$f":"IF($A13=\"N/A\",Ref!$B$36,INDEX(Ranks!$1:$1048576,$A13,DK$1))","v":""},{"$f":"IF($A13=\"N/A\",Ref!$B$36,INDEX(Ranks!$1:$1048576,$A13,DL$1))","v":""},{"$f":"IF($A13=\"N/A\",Ref!$B$36,INDEX(Ranks!$1:$1048576,$A13,DM$1))","v":""},{"$f":"IF($A13=\"N/A\",Ref!$B$36,INDEX(Ranks!$1:$1048576,$A13,DN$1))","v":""},{"$f":"IF($A13=\"N/A\",Ref!$B$36,INDEX(Ranks!$1:$1048576,$A13,DO$1))","v":""},{"$f":"IF($A13=\"N/A\",Ref!$B$36,INDEX(Ranks!$1:$1048576,$A13,DP$1))","v":""},{"$f":"IF($A13=\"N/A\",Ref!$B$36,INDEX(Ranks!$1:$1048576,$A13,DQ$1))","v":""},{"$f":"IF($A13=\"N/A\",Ref!$B$36,INDEX(Ranks!$1:$1048576,$A13,DR$1))","v":""},{"$f":"IF($A13=\"N/A\",Ref!$B$36,INDEX(Ranks!$1:$1048576,$A13,DS$1))","v":""},{"$f":"IF($A13=\"N/A\",Ref!$B$36,INDEX(Ranks!$1:$1048576,$A13,DT$1))","v":""},{"$f":"IF($A13=\"N/A\",Ref!$B$36,INDEX(Ranks!$1:$1048576,$A13,DU$1))","v":""},{"$f":"IF($A13=\"N/A\",Ref!$B$36,INDEX(Ranks!$1:$1048576,$A13,DV$1))","v":""},{"$f":"IF($A13=\"N/A\",Ref!$B$36,INDEX(Ranks!$1:$1048576,$A13,DW$1))","v":""},{"$f":"IF($A13=\"N/A\",Ref!$B$36,INDEX(Ranks!$1:$1048576,$A13,DX$1))","v":""},{"$f":"IF($A13=\"N/A\",Ref!$B$36,INDEX(Ranks!$1:$1048576,$A13,DY$1))","v":""},{"$f":"IF($A13=\"N/A\",Ref!$B$36,INDEX(Ranks!$1:$1048576,$A13,DZ$1))","v":""},{"$f":"IF($A13=\"N/A\",Ref!$B$36,INDEX(Ranks!$1:$1048576,$A13,EA$1))","v":""},{"$f":"IF($A13=\"N/A\",Ref!$B$36,INDEX(Ranks!$1:$1048576,$A13,EB$1))","v":""}]
[{"$f":"IFERROR(MATCH('Portfolio Page'!L14,Ranks!L:L,0),\"N/A\")","v":"N/A"},null,{"$f":"IF($A14=\"N/A\",\"\",INDEX(Ranks!$1:$1048576,$A14,C$1))","v":""},{"$f":"IF($A14=\"N/A\",Ref!$B$36,INDEX(Ranks!$1:$1048576,$A14,D$1))","v":""},{"$f":"IF($A14=\"N/A\",Ref!$B$36,INDEX(Ranks!$1:$1048576,$A14,E$1))","v":""},{"$f":"IF($A14=\"N/A\",\"\",INDEX(Ranks!$1:$1048576,$A14,F$1))","v":""},{"$f":"IF($A14=\"N/A\",\"\",INDEX(Ranks!$1:$1048576,$A14,G$1))","v":""},{"$f":"IF($A14=\"N/A\",\"\",INDEX(Ranks!$1:$1048576,$A14,H$1))","v":""},{"$f":"IF($A14=\"N/A\",\"\",INDEX(Ranks!$1:$1048576,$A14,I$1))","v":""},{"$f":"IF($A14=\"N/A\",\"\",INDEX(Ranks!$1:$1048576,$A14,J$1))","v":""},{"$f":"IF($A14=\"N/A\",\"\",INDEX(Ranks!$1:$1048576,$A14,K$1))","v":""},null,{"$f":"IF($A14=\"N/A\",Ref!$B$36,INDEX(Ranks!$1:$1048576,$A14,M$1))","v":""},{"$f":"IF($A14=\"N/A\",Ref!$B$36,INDEX(Ranks!$1:$1048576,$A14,N$1))","v":""},{"$f":"IF($A14=\"N/A\",Ref!$B$36,INDEX(Ranks!$1:$1048576,$A14,O$1))","v":""},{"$f":"IF($A14=\"N/A\",Ref!$B$36,INDEX(Ranks!$1:$1048576,$A14,P$1))","v":""},{"$f":"IF($A14=\"N/A\",Ref!$B$36,INDEX(Ranks!$1:$1048576,$A14,Q$1))","v":""},{"$f":"IF($A14=\"N/A\",Ref!$B$36,INDEX(Ranks!$1:$1048576,$A14,R$1))","v":""},{"$f":"IF($A14=\"N/A\",Ref!$B$36,INDEX(Ranks!$1:$1048576,$A14,S$1))","v":""},{"$f":"IF($A14=\"N/A\",Ref!$B$36,INDEX(Ranks!$1:$1048576,$A14,T$1))","v":""},{"$f":"IF($A14=\"N/A\",Ref!$B$36,INDEX(Ranks!$1:$1048576,$A14,U$1))","v":""},{"$f":"IF($A14=\"N/A\",Ref!$B$36,INDEX(Ranks!$1:$1048576,$A14,V$1))","v":""},{"$f":"IF($A14=\"N/A\",Ref!$B$36,INDEX(Ranks!$1:$1048576,$A14,W$1))","v":""},{"$f":"IF($A14=\"N/A\",Ref!$B$36,INDEX(Ranks!$1:$1048576,$A14,X$1))","v":""},{"$f":"IF($A14=\"N/A\",Ref!$B$36,INDEX(Ranks!$1:$1048576,$A14,Y$1))","v":""},{"$f":"IF($A14=\"N/A\",Ref!$B$36,INDEX(Ranks!$1:$1048576,$A14,Z$1))","v":""},{"$f":"IF($A14=\"N/A\",Ref!$B$36,INDEX(Ranks!$1:$1048576,$A14,AA$1))","v":""},{"$f":"IF($A14=\"N/A\",Ref!$B$36,INDEX(Ranks!$1:$1048576,$A14,AB$1))","v":""},{"$f":"IF($A14=\"N/A\",Ref!$B$36,INDEX(Ranks!$1:$1048576,$A14,AC$1))","v":""},{"$f":"IF($A14=\"N/A\",Ref!$B$36,INDEX(Ranks!$1:$1048576,$A14,AD$1))","v":""},{"$f":"IF($A14=\"N/A\",Ref!$B$36,INDEX(Ranks!$1:$1048576,$A14,AE$1))","v":""},{"$f":"IF($A14=\"N/A\",Ref!$B$36,INDEX(Ranks!$1:$1048576,$A14,AF$1))","v":""},{"$f":"IF($A14=\"N/A\",Ref!$B$36,INDEX(Ranks!$1:$1048576,$A14,AG$1))","v":""},{"$f":"IF($A14=\"N/A\",Ref!$B$36,INDEX(Ranks!$1:$1048576,$A14,AH$1))","v":""},{"$f":"IF($A14=\"N/A\",Ref!$B$36,INDEX(Ranks!$1:$1048576,$A14,AI$1))","v":""},{"$f":"IF($A14=\"N/A\",Ref!$B$36,INDEX(Ranks!$1:$1048576,$A14,AJ$1))","v":""},{"$f":"IF($A14=\"N/A\",Ref!$B$36,INDEX(Ranks!$1:$1048576,$A14,AK$1))","v":""},{"$f":"IF($A14=\"N/A\",Ref!$B$36,INDEX(Ranks!$1:$1048576,$A14,AL$1))","v":""},{"$f":"IF($A14=\"N/A\",Ref!$B$36,INDEX(Ranks!$1:$1048576,$A14,AM$1))","v":""},{"$f":"IF($A14=\"N/A\",Ref!$B$36,INDEX(Ranks!$1:$1048576,$A14,AN$1))","v":""},{"$f":"IF($A14=\"N/A\",Ref!$B$36,INDEX(Ranks!$1:$1048576,$A14,AO$1))","v":""},{"$f":"IF($A14=\"N/A\",Ref!$B$36,INDEX(Ranks!$1:$1048576,$A14,AP$1))","v":""},{"$f":"IF($A14=\"N/A\",Ref!$B$36,INDEX(Ranks!$1:$1048576,$A14,AQ$1))","v":""},{"$f":"IF($A14=\"N/A\",Ref!$B$36,INDEX(Ranks!$1:$1048576,$A14,AR$1))","v":""},{"$f":"IF($A14=\"N/A\",Ref!$B$36,INDEX(Ranks!$1:$1048576,$A14,AS$1))","v":""},{"$f":"IF($A14=\"N/A\",Ref!$B$36,INDEX(Ranks!$1:$1048576,$A14,AT$1))","v":""},{"$f":"IF($A14=\"N/A\",Ref!$B$36,INDEX(Ranks!$1:$1048576,$A14,AU$1))","v":""},{"$f":"IF($A14=\"N/A\",Ref!$B$36,INDEX(Ranks!$1:$1048576,$A14,AV$1))","v":""},{"$f":"IF($A14=\"N/A\",Ref!$B$36,INDEX(Ranks!$1:$1048576,$A14,AW$1))","v":""},{"$f":"IF($A14=\"N/A\",Ref!$B$36,INDEX(Ranks!$1:$1048576,$A14,AX$1))","v":""},{"$f":"IF($A14=\"N/A\",Ref!$B$36,INDEX(Ranks!$1:$1048576,$A14,AY$1))","v":""},{"$f":"IF($A14=\"N/A\",Ref!$B$36,INDEX(Ranks!$1:$1048576,$A14,AZ$1))","v":""},{"$f":"IF($A14=\"N/A\",Ref!$B$36,INDEX(Ranks!$1:$1048576,$A14,BA$1))","v":""},{"$f":"IF($A14=\"N/A\",Ref!$B$36,INDEX(Ranks!$1:$1048576,$A14,BB$1))","v":""},{"$f":"IF($A14=\"N/A\",Ref!$B$36,INDEX(Ranks!$1:$1048576,$A14,BC$1))","v":""},{"$f":"IF($A14=\"N/A\",Ref!$B$36,INDEX(Ranks!$1:$1048576,$A14,BD$1))","v":""},{"$f":"IF($A14=\"N/A\",Ref!$B$36,INDEX(Ranks!$1:$1048576,$A14,BE$1))","v":""},{"$f":"IF($A14=\"N/A\",Ref!$B$36,INDEX(Ranks!$1:$1048576,$A14,BF$1))","v":""},{"$f":"IF($A14=\"N/A\",Ref!$B$36,INDEX(Ranks!$1:$1048576,$A14,BG$1))","v":""},{"$f":"IF($A14=\"N/A\",Ref!$B$36,INDEX(Ranks!$1:$1048576,$A14,BH$1))","v":""},{"$f":"IF($A14=\"N/A\",Ref!$B$36,INDEX(Ranks!$1:$1048576,$A14,BI$1))","v":""},{"$f":"IF($A14=\"N/A\",Ref!$B$36,INDEX(Ranks!$1:$1048576,$A14,BJ$1))","v":""},{"$f":"IF($A14=\"N/A\",Ref!$B$36,INDEX(Ranks!$1:$1048576,$A14,BK$1))","v":""},{"$f":"IF($A14=\"N/A\",Ref!$B$36,INDEX(Ranks!$1:$1048576,$A14,BL$1))","v":""},{"$f":"IF($A14=\"N/A\",Ref!$B$36,INDEX(Ranks!$1:$1048576,$A14,BM$1))","v":""},{"$f":"IF($A14=\"N/A\",Ref!$B$36,INDEX(Ranks!$1:$1048576,$A14,BN$1))","v":""},{"$f":"IF($A14=\"N/A\",Ref!$B$36,INDEX(Ranks!$1:$1048576,$A14,BO$1))","v":""},{"$f":"IF($A14=\"N/A\",Ref!$B$36,INDEX(Ranks!$1:$1048576,$A14,BP$1))","v":""},{"$f":"IF($A14=\"N/A\",Ref!$B$36,INDEX(Ranks!$1:$1048576,$A14,BQ$1))","v":""},{"$f":"IF($A14=\"N/A\",Ref!$B$36,INDEX(Ranks!$1:$1048576,$A14,BR$1))","v":""},{"$f":"IF($A14=\"N/A\",Ref!$B$36,INDEX(Ranks!$1:$1048576,$A14,BS$1))","v":""},{"$f":"IF($A14=\"N/A\",Ref!$B$36,INDEX(Ranks!$1:$1048576,$A14,BT$1))","v":""},{"$f":"IF($A14=\"N/A\",Ref!$B$36,INDEX(Ranks!$1:$1048576,$A14,BU$1))","v":""},{"$f":"IF($A14=\"N/A\",Ref!$B$36,INDEX(Ranks!$1:$1048576,$A14,BV$1))","v":""},{"$f":"IF($A14=\"N/A\",Ref!$B$36,INDEX(Ranks!$1:$1048576,$A14,BW$1))","v":""},{"$f":"IF($A14=\"N/A\",Ref!$B$36,INDEX(Ranks!$1:$1048576,$A14,BX$1))","v":""},{"$f":"IF($A14=\"N/A\",Ref!$B$36,INDEX(Ranks!$1:$1048576,$A14,BY$1))","v":""},{"$f":"IF($A14=\"N/A\",Ref!$B$36,INDEX(Ranks!$1:$1048576,$A14,BZ$1))","v":""},{"$f":"IF($A14=\"N/A\",Ref!$B$36,INDEX(Ranks!$1:$1048576,$A14,CA$1))","v":""},{"$f":"IF($A14=\"N/A\",Ref!$B$36,INDEX(Ranks!$1:$1048576,$A14,CB$1))","v":""},{"$f":"IF($A14=\"N/A\",Ref!$B$36,INDEX(Ranks!$1:$1048576,$A14,CC$1))","v":""},{"$f":"IF($A14=\"N/A\",Ref!$B$36,INDEX(Ranks!$1:$1048576,$A14,CD$1))","v":""},{"$f":"IF($A14=\"N/A\",Ref!$B$36,INDEX(Ranks!$1:$1048576,$A14,CE$1))","v":""},{"$f":"IF($A14=\"N/A\",Ref!$B$36,INDEX(Ranks!$1:$1048576,$A14,CF$1))","v":""},{"$f":"IF($A14=\"N/A\",Ref!$B$36,INDEX(Ranks!$1:$1048576,$A14,CG$1))","v":""},{"$f":"IF($A14=\"N/A\",Ref!$B$36,INDEX(Ranks!$1:$1048576,$A14,CH$1))","v":""},{"$f":"IF($A14=\"N/A\",Ref!$B$36,INDEX(Ranks!$1:$1048576,$A14,CI$1))","v":""},{"$f":"IF($A14=\"N/A\",Ref!$B$36,INDEX(Ranks!$1:$1048576,$A14,CJ$1))","v":""},{"$f":"IF($A14=\"N/A\",Ref!$B$36,INDEX(Ranks!$1:$1048576,$A14,CK$1))","v":""},{"$f":"IF($A14=\"N/A\",Ref!$B$36,INDEX(Ranks!$1:$1048576,$A14,CL$1))","v":""},{"$f":"IF($A14=\"N/A\",Ref!$B$36,INDEX(Ranks!$1:$1048576,$A14,CM$1))","v":""},{"$f":"IF($A14=\"N/A\",Ref!$B$36,INDEX(Ranks!$1:$1048576,$A14,CN$1))","v":""},{"$f":"IF($A14=\"N/A\",Ref!$B$36,INDEX(Ranks!$1:$1048576,$A14,CO$1))","v":""},{"$f":"IF($A14=\"N/A\",Ref!$B$36,INDEX(Ranks!$1:$1048576,$A14,CP$1))","v":""},{"$f":"IF($A14=\"N/A\",Ref!$B$36,INDEX(Ranks!$1:$1048576,$A14,CQ$1))","v":""},{"$f":"IF($A14=\"N/A\",Ref!$B$36,INDEX(Ranks!$1:$1048576,$A14,CR$1))","v":""},{"$f":"IF($A14=\"N/A\",Ref!$B$36,INDEX(Ranks!$1:$1048576,$A14,CS$1))","v":""},{"$f":"IF($A14=\"N/A\",Ref!$B$36,INDEX(Ranks!$1:$1048576,$A14,CT$1))","v":""},{"$f":"IF($A14=\"N/A\",Ref!$B$36,INDEX(Ranks!$1:$1048576,$A14,CU$1))","v":""},{"$f":"IF($A14=\"N/A\",Ref!$B$36,INDEX(Ranks!$1:$1048576,$A14,CV$1))","v":""},{"$f":"IF($A14=\"N/A\",Ref!$B$36,INDEX(Ranks!$1:$1048576,$A14,CW$1))","v":""},{"$f":"IF($A14=\"N/A\",Ref!$B$36,INDEX(Ranks!$1:$1048576,$A14,CX$1))","v":""},{"$f":"IF($A14=\"N/A\",Ref!$B$36,INDEX(Ranks!$1:$1048576,$A14,CY$1))","v":""},{"$f":"IF($A14=\"N/A\",Ref!$B$36,INDEX(Ranks!$1:$1048576,$A14,CZ$1))","v":""},{"$f":"IF($A14=\"N/A\",Ref!$B$36,INDEX(Ranks!$1:$1048576,$A14,DA$1))","v":""},{"$f":"IF($A14=\"N/A\",Ref!$B$36,INDEX(Ranks!$1:$1048576,$A14,DB$1))","v":""},{"$f":"IF($A14=\"N/A\",Ref!$B$36,INDEX(Ranks!$1:$1048576,$A14,DC$1))","v":""},{"$f":"IF($A14=\"N/A\",Ref!$B$36,INDEX(Ranks!$1:$1048576,$A14,DD$1))","v":""},{"$f":"IF($A14=\"N/A\",Ref!$B$36,INDEX(Ranks!$1:$1048576,$A14,DE$1))","v":""},{"$f":"IF($A14=\"N/A\",Ref!$B$36,INDEX(Ranks!$1:$1048576,$A14,DF$1))","v":""},{"$f":"IF($A14=\"N/A\",Ref!$B$36,INDEX(Ranks!$1:$1048576,$A14,DG$1))","v":""},{"$f":"IF($A14=\"N/A\",Ref!$B$36,INDEX(Ranks!$1:$1048576,$A14,DH$1))","v":""},{"$f":"IF($A14=\"N/A\",Ref!$B$36,INDEX(Ranks!$1:$1048576,$A14,DI$1))","v":""},{"$f":"IF($A14=\"N/A\",Ref!$B$36,INDEX(Ranks!$1:$1048576,$A14,DJ$1))","v":""},{"$f":"IF($A14=\"N/A\",Ref!$B$36,INDEX(Ranks!$1:$1048576,$A14,DK$1))","v":""},{"$f":"IF($A14=\"N/A\",Ref!$B$36,INDEX(Ranks!$1:$1048576,$A14,DL$1))","v":""},{"$f":"IF($A14=\"N/A\",Ref!$B$36,INDEX(Ranks!$1:$1048576,$A14,DM$1))","v":""},{"$f":"IF($A14=\"N/A\",Ref!$B$36,INDEX(Ranks!$1:$1048576,$A14,DN$1))","v":""},{"$f":"IF($A14=\"N/A\",Ref!$B$36,INDEX(Ranks!$1:$1048576,$A14,DO$1))","v":""},{"$f":"IF($A14=\"N/A\",Ref!$B$36,INDEX(Ranks!$1:$1048576,$A14,DP$1))","v":""},{"$f":"IF($A14=\"N/A\",Ref!$B$36,INDEX(Ranks!$1:$1048576,$A14,DQ$1))","v":""},{"$f":"IF($A14=\"N/A\",Ref!$B$36,INDEX(Ranks!$1:$1048576,$A14,DR$1))","v":""},{"$f":"IF($A14=\"N/A\",Ref!$B$36,INDEX(Ranks!$1:$1048576,$A14,DS$1))","v":""},{"$f":"IF($A14=\"N/A\",Ref!$B$36,INDEX(Ranks!$1:$1048576,$A14,DT$1))","v":""},{"$f":"IF($A14=\"N/A\",Ref!$B$36,INDEX(Ranks!$1:$1048576,$A14,DU$1))","v":""},{"$f":"IF($A14=\"N/A\",Ref!$B$36,INDEX(Ranks!$1:$1048576,$A14,DV$1))","v":""},{"$f":"IF($A14=\"N/A\",Ref!$B$36,INDEX(Ranks!$1:$1048576,$A14,DW$1))","v":""},{"$f":"IF($A14=\"N/A\",Ref!$B$36,INDEX(Ranks!$1:$1048576,$A14,DX$1))","v":""},{"$f":"IF($A14=\"N/A\",Ref!$B$36,INDEX(Ranks!$1:$1048576,$A14,DY$1))","v":""},{"$f":"IF($A14=\"N/A\",Ref!$B$36,INDEX(Ranks!$1:$1048576,$A14,DZ$1))","v":""},{"$f":"IF($A14=\"N/A\",Ref!$B$36,INDEX(Ranks!$1:$1048576,$A14,EA$1))","v":""},{"$f":"IF($A14=\"N/A\",Ref!$B$36,INDEX(Ranks!$1:$1048576,$A14,EB$1))","v":""}]
[{"$f":"IFERROR(MATCH('Portfolio Page'!L15,Ranks!L:L,0),\"N/A\")","v":"N/A"},null,{"$f":"IF($A15=\"N/A\",\"\",INDEX(Ranks!$1:$1048576,$A15,C$1))","v":""},{"$f":"IF($A15=\"N/A\",Ref!$B$36,INDEX(Ranks!$1:$1048576,$A15,D$1))","v":""},{"$f":"IF($A15=\"N/A\",Ref!$B$36,INDEX(Ranks!$1:$1048576,$A15,E$1))","v":""},{"$f":"IF($A15=\"N/A\",\"\",INDEX(Ranks!$1:$1048576,$A15,F$1))","v":""},{"$f":"IF($A15=\"N/A\",\"\",INDEX(Ranks!$1:$1048576,$A15,G$1))","v":""},{"$f":"IF($A15=\"N/A\",\"\",INDEX(Ranks!$1:$1048576,$A15,H$1))","v":""},{"$f":"IF($A15=\"N/A\",\"\",INDEX(Ranks!$1:$1048576,$A15,I$1))","v":""},{"$f":"IF($A15=\"N/A\",\"\",INDEX(Ranks!$1:$1048576,$A15,J$1))","v":""},{"$f":"IF($A15=\"N/A\",\"\",INDEX(Ranks!$1:$1048576,$A15,K$1))","v":""},null,{"$f":"IF($A15=\"N/A\",Ref!$B$36,INDEX(Ranks!$1:$1048576,$A15,M$1))","v":""},{"$f":"IF($A15=\"N/A\",Ref!$B$36,INDEX(Ranks!$1:$1048576,$A15,N$1))","v":""},{"$f":"IF($A15=\"N/A\",Ref!$B$36,INDEX(Ranks!$1:$1048576,$A15,O$1))","v":""},{"$f":"IF($A15=\"N/A\",Ref!$B$36,INDEX(Ranks!$1:$1048576,$A15,P$1))","v":""},{"$f":"IF($A15=\"N/A\",Ref!$B$36,INDEX(Ranks!$1:$1048576,$A15,Q$1))","v":""},{"$f":"IF($A15=\"N/A\",Ref!$B$36,INDEX(Ranks!$1:$1048576,$A15,R$1))","v":""},{"$f":"IF($A15=\"N/A\",Ref!$B$36,INDEX(Ranks!$1:$1048576,$A15,S$1))","v":""},{"$f":"IF($A15=\"N/A\",Ref!$B$36,INDEX(Ranks!$1:$1048576,$A15,T$1))","v":""},{"$f":"IF($A15=\"N/A\",Ref!$B$36,INDEX(Ranks!$1:$1048576,$A15,U$1))","v":""},{"$f":"IF($A15=\"N/A\",Ref!$B$36,INDEX(Ranks!$1:$1048576,$A15,V$1))","v":""},{"$f":"IF($A15=\"N/A\",Ref!$B$36,INDEX(Ranks!$1:$1048576,$A15,W$1))","v":""},{"$f":"IF($A15=\"N/A\",Ref!$B$36,INDEX(Ranks!$1:$1048576,$A15,X$1))","v":""},{"$f":"IF($A15=\"N/A\",Ref!$B$36,INDEX(Ranks!$1:$1048576,$A15,Y$1))","v":""},{"$f":"IF($A15=\"N/A\",Ref!$B$36,INDEX(Ranks!$1:$1048576,$A15,Z$1))","v":""},{"$f":"IF($A15=\"N/A\",Ref!$B$36,INDEX(Ranks!$1:$1048576,$A15,AA$1))","v":""},{"$f":"IF($A15=\"N/A\",Ref!$B$36,INDEX(Ranks!$1:$1048576,$A15,AB$1))","v":""},{"$f":"IF($A15=\"N/A\",Ref!$B$36,INDEX(Ranks!$1:$1048576,$A15,AC$1))","v":""},{"$f":"IF($A15=\"N/A\",Ref!$B$36,INDEX(Ranks!$1:$1048576,$A15,AD$1))","v":""},{"$f":"IF($A15=\"N/A\",Ref!$B$36,INDEX(Ranks!$1:$1048576,$A15,AE$1))","v":""},{"$f":"IF($A15=\"N/A\",Ref!$B$36,INDEX(Ranks!$1:$1048576,$A15,AF$1))","v":""},{"$f":"IF($A15=\"N/A\",Ref!$B$36,INDEX(Ranks!$1:$1048576,$A15,AG$1))","v":""},{"$f":"IF($A15=\"N/A\",Ref!$B$36,INDEX(Ranks!$1:$1048576,$A15,AH$1))","v":""},{"$f":"IF($A15=\"N/A\",Ref!$B$36,INDEX(Ranks!$1:$1048576,$A15,AI$1))","v":""},{"$f":"IF($A15=\"N/A\",Ref!$B$36,INDEX(Ranks!$1:$1048576,$A15,AJ$1))","v":""},{"$f":"IF($A15=\"N/A\",Ref!$B$36,INDEX(Ranks!$1:$1048576,$A15,AK$1))","v":""},{"$f":"IF($A15=\"N/A\",Ref!$B$36,INDEX(Ranks!$1:$1048576,$A15,AL$1))","v":""},{"$f":"IF($A15=\"N/A\",Ref!$B$36,INDEX(Ranks!$1:$1048576,$A15,AM$1))","v":""},{"$f":"IF($A15=\"N/A\",Ref!$B$36,INDEX(Ranks!$1:$1048576,$A15,AN$1))","v":""},{"$f":"IF($A15=\"N/A\",Ref!$B$36,INDEX(Ranks!$1:$1048576,$A15,AO$1))","v":""},{"$f":"IF($A15=\"N/A\",Ref!$B$36,INDEX(Ranks!$1:$1048576,$A15,AP$1))","v":""},{"$f":"IF($A15=\"N/A\",Ref!$B$36,INDEX(Ranks!$1:$1048576,$A15,AQ$1))","v":""},{"$f":"IF($A15=\"N/A\",Ref!$B$36,INDEX(Ranks!$1:$1048576,$A15,AR$1))","v":""},{"$f":"IF($A15=\"N/A\",Ref!$B$36,INDEX(Ranks!$1:$1048576,$A15,AS$1))","v":""},{"$f":"IF($A15=\"N/A\",Ref!$B$36,INDEX(Ranks!$1:$1048576,$A15,AT$1))","v":""},{"$f":"IF($A15=\"N/A\",Ref!$B$36,INDEX(Ranks!$1:$1048576,$A15,AU$1))","v":""},{"$f":"IF($A15=\"N/A\",Ref!$B$36,INDEX(Ranks!$1:$1048576,$A15,AV$1))","v":""},{"$f":"IF($A15=\"N/A\",Ref!$B$36,INDEX(Ranks!$1:$1048576,$A15,AW$1))","v":""},{"$f":"IF($A15=\"N/A\",Ref!$B$36,INDEX(Ranks!$1:$1048576,$A15,AX$1))","v":""},{"$f":"IF($A15=\"N/A\",Ref!$B$36,INDEX(Ranks!$1:$1048576,$A15,AY$1))","v":""},{"$f":"IF($A15=\"N/A\",Ref!$B$36,INDEX(Ranks!$1:$1048576,$A15,AZ$1))","v":""},{"$f":"IF($A15=\"N/A\",Ref!$B$36,INDEX(Ranks!$1:$1048576,$A15,BA$1))","v":""},{"$f":"IF($A15=\"N/A\",Ref!$B$36,INDEX(Ranks!$1:$1048576,$A15,BB$1))","v":""},{"$f":"IF($A15=\"N/A\",Ref!$B$36,INDEX(Ranks!$1:$1048576,$A15,BC$1))","v":""},{"$f":"IF($A15=\"N/A\",Ref!$B$36,INDEX(Ranks!$1:$1048576,$A15,BD$1))","v":""},{"$f":"IF($A15=\"N/A\",Ref!$B$36,INDEX(Ranks!$1:$1048576,$A15,BE$1))","v":""},{"$f":"IF($A15=\"N/A\",Ref!$B$36,INDEX(Ranks!$1:$1048576,$A15,BF$1))","v":""},{"$f":"IF($A15=\"N/A\",Ref!$B$36,INDEX(Ranks!$1:$1048576,$A15,BG$1))","v":""},{"$f":"IF($A15=\"N/A\",Ref!$B$36,INDEX(Ranks!$1:$1048576,$A15,BH$1))","v":""},{"$f":"IF($A15=\"N/A\",Ref!$B$36,INDEX(Ranks!$1:$1048576,$A15,BI$1))","v":""},{"$f":"IF($A15=\"N/A\",Ref!$B$36,INDEX(Ranks!$1:$1048576,$A15,BJ$1))","v":""},{"$f":"IF($A15=\"N/A\",Ref!$B$36,INDEX(Ranks!$1:$1048576,$A15,BK$1))","v":""},{"$f":"IF($A15=\"N/A\",Ref!$B$36,INDEX(Ranks!$1:$1048576,$A15,BL$1))","v":""},{"$f":"IF($A15=\"N/A\",Ref!$B$36,INDEX(Ranks!$1:$1048576,$A15,BM$1))","v":""},{"$f":"IF($A15=\"N/A\",Ref!$B$36,INDEX(Ranks!$1:$1048576,$A15,BN$1))","v":""},{"$f":"IF($A15=\"N/A\",Ref!$B$36,INDEX(Ranks!$1:$1048576,$A15,BO$1))","v":""},{"$f":"IF($A15=\"N/A\",Ref!$B$36,INDEX(Ranks!$1:$1048576,$A15,BP$1))","v":""},{"$f":"IF($A15=\"N/A\",Ref!$B$36,INDEX(Ranks!$1:$1048576,$A15,BQ$1))","v":""},{"$f":"IF($A15=\"N/A\",Ref!$B$36,INDEX(Ranks!$1:$1048576,$A15,BR$1))","v":""},{"$f":"IF($A15=\"N/A\",Ref!$B$36,INDEX(Ranks!$1:$1048576,$A15,BS$1))","v":""},{"$f":"IF($A15=\"N/A\",Ref!$B$36,INDEX(Ranks!$1:$1048576,$A15,BT$1))","v":""},{"$f":"IF($A15=\"N/A\",Ref!$B$36,INDEX(Ranks!$1:$1048576,$A15,BU$1))","v":""},{"$f":"IF($A15=\"N/A\",Ref!$B$36,INDEX(Ranks!$1:$1048576,$A15,BV$1))","v":""},{"$f":"IF($A15=\"N/A\",Ref!$B$36,INDEX(Ranks!$1:$1048576,$A15,BW$1))","v":""},{"$f":"IF($A15=\"N/A\",Ref!$B$36,INDEX(Ranks!$1:$1048576,$A15,BX$1))","v":""},{"$f":"IF($A15=\"N/A\",Ref!$B$36,INDEX(Ranks!$1:$1048576,$A15,BY$1))","v":""},{"$f":"IF($A15=\"N/A\",Ref!$B$36,INDEX(Ranks!$1:$1048576,$A15,BZ$1))","v":""},{"$f":"IF($A15=\"N/A\",Ref!$B$36,INDEX(Ranks!$1:$1048576,$A15,CA$1))","v":""},{"$f":"IF($A15=\"N/A\",Ref!$B$36,INDEX(Ranks!$1:$1048576,$A15,CB$1))","v":""},{"$f":"IF($A15=\"N/A\",Ref!$B$36,INDEX(Ranks!$1:$1048576,$A15,CC$1))","v":""},{"$f":"IF($A15=\"N/A\",Ref!$B$36,INDEX(Ranks!$1:$1048576,$A15,CD$1))","v":""},{"$f":"IF($A15=\"N/A\",Ref!$B$36,INDEX(Ranks!$1:$1048576,$A15,CE$1))","v":""},{"$f":"IF($A15=\"N/A\",Ref!$B$36,INDEX(Ranks!$1:$1048576,$A15,CF$1))","v":""},{"$f":"IF($A15=\"N/A\",Ref!$B$36,INDEX(Ranks!$1:$1048576,$A15,CG$1))","v":""},{"$f":"IF($A15=\"N/A\",Ref!$B$36,INDEX(Ranks!$1:$1048576,$A15,CH$1))","v":""},{"$f":"IF($A15=\"N/A\",Ref!$B$36,INDEX(Ranks!$1:$1048576,$A15,CI$1))","v":""},{"$f":"IF($A15=\"N/A\",Ref!$B$36,INDEX(Ranks!$1:$1048576,$A15,CJ$1))","v":""},{"$f":"IF($A15=\"N/A\",Ref!$B$36,INDEX(Ranks!$1:$1048576,$A15,CK$1))","v":""},{"$f":"IF($A15=\"N/A\",Ref!$B$36,INDEX(Ranks!$1:$1048576,$A15,CL$1))","v":""},{"$f":"IF($A15=\"N/A\",Ref!$B$36,INDEX(Ranks!$1:$1048576,$A15,CM$1))","v":""},{"$f":"IF($A15=\"N/A\",Ref!$B$36,INDEX(Ranks!$1:$1048576,$A15,CN$1))","v":""},{"$f":"IF($A15=\"N/A\",Ref!$B$36,INDEX(Ranks!$1:$1048576,$A15,CO$1))","v":""},{"$f":"IF($A15=\"N/A\",Ref!$B$36,INDEX(Ranks!$1:$1048576,$A15,CP$1))","v":""},{"$f":"IF($A15=\"N/A\",Ref!$B$36,INDEX(Ranks!$1:$1048576,$A15,CQ$1))","v":""},{"$f":"IF($A15=\"N/A\",Ref!$B$36,INDEX(Ranks!$1:$1048576,$A15,CR$1))","v":""},{"$f":"IF($A15=\"N/A\",Ref!$B$36,INDEX(Ranks!$1:$1048576,$A15,CS$1))","v":""},{"$f":"IF($A15=\"N/A\",Ref!$B$36,INDEX(Ranks!$1:$1048576,$A15,CT$1))","v":""},{"$f":"IF($A15=\"N/A\",Ref!$B$36,INDEX(Ranks!$1:$1048576,$A15,CU$1))","v":""},{"$f":"IF($A15=\"N/A\",Ref!$B$36,INDEX(Ranks!$1:$1048576,$A15,CV$1))","v":""},{"$f":"IF($A15=\"N/A\",Ref!$B$36,INDEX(Ranks!$1:$1048576,$A15,CW$1))","v":""},{"$f":"IF($A15=\"N/A\",Ref!$B$36,INDEX(Ranks!$1:$1048576,$A15,CX$1))","v":""},{"$f":"IF($A15=\"N/A\",Ref!$B$36,INDEX(Ranks!$1:$1048576,$A15,CY$1))","v":""},{"$f":"IF($A15=\"N/A\",Ref!$B$36,INDEX(Ranks!$1:$1048576,$A15,CZ$1))","v":""},{"$f":"IF($A15=\"N/A\",Ref!$B$36,INDEX(Ranks!$1:$1048576,$A15,DA$1))","v":""},{"$f":"IF($A15=\"N/A\",Ref!$B$36,INDEX(Ranks!$1:$1048576,$A15,DB$1))","v":""},{"$f":"IF($A15=\"N/A\",Ref!$B$36,INDEX(Ranks!$1:$1048576,$A15,DC$1))","v":""},{"$f":"IF($A15=\"N/A\",Ref!$B$36,INDEX(Ranks!$1:$1048576,$A15,DD$1))","v":""},{"$f":"IF($A15=\"N/A\",Ref!$B$36,INDEX(Ranks!$1:$1048576,$A15,DE$1))","v":""},{"$f":"IF($A15=\"N/A\",Ref!$B$36,INDEX(Ranks!$1:$1048576,$A15,DF$1))","v":""},{"$f":"IF($A15=\"N/A\",Ref!$B$36,INDEX(Ranks!$1:$1048576,$A15,DG$1))","v":""},{"$f":"IF($A15=\"N/A\",Ref!$B$36,INDEX(Ranks!$1:$1048576,$A15,DH$1))","v":""},{"$f":"IF($A15=\"N/A\",Ref!$B$36,INDEX(Ranks!$1:$1048576,$A15,DI$1))","v":""},{"$f":"IF($A15=\"N/A\",Ref!$B$36,INDEX(Ranks!$1:$1048576,$A15,DJ$1))","v":""},{"$f":"IF($A15=\"N/A\",Ref!$B$36,INDEX(Ranks!$1:$1048576,$A15,DK$1))","v":""},{"$f":"IF($A15=\"N/A\",Ref!$B$36,INDEX(Ranks!$1:$1048576,$A15,DL$1))","v":""},{"$f":"IF($A15=\"N/A\",Ref!$B$36,INDEX(Ranks!$1:$1048576,$A15,DM$1))","v":""},{"$f":"IF($A15=\"N/A\",Ref!$B$36,INDEX(Ranks!$1:$1048576,$A15,DN$1))","v":""},{"$f":"IF($A15=\"N/A\",Ref!$B$36,INDEX(Ranks!$1:$1048576,$A15,DO$1))","v":""},{"$f":"IF($A15=\"N/A\",Ref!$B$36,INDEX(Ranks!$1:$1048576,$A15,DP$1))","v":""},{"$f":"IF($A15=\"N/A\",Ref!$B$36,INDEX(Ranks!$1:$1048576,$A15,DQ$1))","v":""},{"$f":"IF($A15=\"N/A\",Ref!$B$36,INDEX(Ranks!$1:$1048576,$A15,DR$1))","v":""},{"$f":"IF($A15=\"N/A\",Ref!$B$36,INDEX(Ranks!$1:$1048576,$A15,DS$1))","v":""},{"$f":"IF($A15=\"N/A\",Ref!$B$36,INDEX(Ranks!$1:$1048576,$A15,DT$1))","v":""},{"$f":"IF($A15=\"N/A\",Ref!$B$36,INDEX(Ranks!$1:$1048576,$A15,DU$1))","v":""},{"$f":"IF($A15=\"N/A\",Ref!$B$36,INDEX(Ranks!$1:$1048576,$A15,DV$1))","v":""},{"$f":"IF($A15=\"N/A\",Ref!$B$36,INDEX(Ranks!$1:$1048576,$A15,DW$1))","v":""},{"$f":"IF($A15=\"N/A\",Ref!$B$36,INDEX(Ranks!$1:$1048576,$A15,DX$1))","v":""},{"$f":"IF($A15=\"N/A\",Ref!$B$36,INDEX(Ranks!$1:$1048576,$A15,DY$1))","v":""},{"$f":"IF($A15=\"N/A\",Ref!$B$36,INDEX(Ranks!$1:$1048576,$A15,DZ$1))","v":""},{"$f":"IF($A15=\"N/A\",Ref!$B$36,INDEX(Ranks!$1:$1048576,$A15,EA$1))","v":""},{"$f":"IF($A15=\"N/A\",Ref!$B$36,INDEX(Ranks!$1:$1048576,$A15,EB$1))","v":""}]
[{"$f":"IFERROR(MATCH('Portfolio Page'!L16,Ranks!L:L,0),\"N/A\")","v":"N/A"},null,{"$f":"IF($A16=\"N/A\",\"\",INDEX(Ranks!$1:$1048576,$A16,C$1))","v":""},{"$f":"IF($A16=\"N/A\",Ref!$B$36,INDEX(Ranks!$1:$1048576,$A16,D$1))","v":""},{"$f":"IF($A16=\"N/A\",Ref!$B$36,INDEX(Ranks!$1:$1048576,$A16,E$1))","v":""},{"$f":"IF($A16=\"N/A\",\"\",INDEX(Ranks!$1:$1048576,$A16,F$1))","v":""},{"$f":"IF($A16=\"N/A\",\"\",INDEX(Ranks!$1:$1048576,$A16,G$1))","v":""},{"$f":"IF($A16=\"N/A\",\"\",INDEX(Ranks!$1:$1048576,$A16,H$1))","v":""},{"$f":"IF($A16=\"N/A\",\"\",INDEX(Ranks!$1:$1048576,$A16,I$1))","v":""},{"$f":"IF($A16=\"N/A\",\"\",INDEX(Ranks!$1:$1048576,$A16,J$1))","v":""},{"$f":"IF($A16=\"N/A\",\"\",INDEX(Ranks!$1:$1048576,$A16,K$1))","v":""},null,{"$f":"IF($A16=\"N/A\",Ref!$B$36,INDEX(Ranks!$1:$1048576,$A16,M$1))","v":""},{"$f":"IF($A16=\"N/A\",Ref!$B$36,INDEX(Ranks!$1:$1048576,$A16,N$1))","v":""},{"$f":"IF($A16=\"N/A\",Ref!$B$36,INDEX(Ranks!$1:$1048576,$A16,O$1))","v":""},{"$f":"IF($A16=\"N/A\",Ref!$B$36,INDEX(Ranks!$1:$1048576,$A16,P$1))","v":""},{"$f":"IF($A16=\"N/A\",Ref!$B$36,INDEX(Ranks!$1:$1048576,$A16,Q$1))","v":""},{"$f":"IF($A16=\"N/A\",Ref!$B$36,INDEX(Ranks!$1:$1048576,$A16,R$1))","v":""},{"$f":"IF($A16=\"N/A\",Ref!$B$36,INDEX(Ranks!$1:$1048576,$A16,S$1))","v":""},{"$f":"IF($A16=\"N/A\",Ref!$B$36,INDEX(Ranks!$1:$1048576,$A16,T$1))","v":""},{"$f":"IF($A16=\"N/A\",Ref!$B$36,INDEX(Ranks!$1:$1048576,$A16,U$1))","v":""},{"$f":"IF($A16=\"N/A\",Ref!$B$36,INDEX(Ranks!$1:$1048576,$A16,V$1))","v":""},{"$f":"IF($A16=\"N/A\",Ref!$B$36,INDEX(Ranks!$1:$1048576,$A16,W$1))","v":""},{"$f":"IF($A16=\"N/A\",Ref!$B$36,INDEX(Ranks!$1:$1048576,$A16,X$1))","v":""},{"$f":"IF($A16=\"N/A\",Ref!$B$36,INDEX(Ranks!$1:$1048576,$A16,Y$1))","v":""},{"$f":"IF($A16=\"N/A\",Ref!$B$36,INDEX(Ranks!$1:$1048576,$A16,Z$1))","v":""},{"$f":"IF($A16=\"N/A\",Ref!$B$36,INDEX(Ranks!$1:$1048576,$A16,AA$1))","v":""},{"$f":"IF($A16=\"N/A\",Ref!$B$36,INDEX(Ranks!$1:$1048576,$A16,AB$1))","v":""},{"$f":"IF($A16=\"N/A\",Ref!$B$36,INDEX(Ranks!$1:$1048576,$A16,AC$1))","v":""},{"$f":"IF($A16=\"N/A\",Ref!$B$36,INDEX(Ranks!$1:$1048576,$A16,AD$1))","v":""},{"$f":"IF($A16=\"N/A\",Ref!$B$36,INDEX(Ranks!$1:$1048576,$A16,AE$1))","v":""},{"$f":"IF($A16=\"N/A\",Ref!$B$36,INDEX(Ranks!$1:$1048576,$A16,AF$1))","v":""},{"$f":"IF($A16=\"N/A\",Ref!$B$36,INDEX(Ranks!$1:$1048576,$A16,AG$1))","v":""},{"$f":"IF($A16=\"N/A\",Ref!$B$36,INDEX(Ranks!$1:$1048576,$A16,AH$1))","v":""},{"$f":"IF($A16=\"N/A\",Ref!$B$36,INDEX(Ranks!$1:$1048576,$A16,AI$1))","v":""},{"$f":"IF($A16=\"N/A\",Ref!$B$36,INDEX(Ranks!$1:$1048576,$A16,AJ$1))","v":""},{"$f":"IF($A16=\"N/A\",Ref!$B$36,INDEX(Ranks!$1:$1048576,$A16,AK$1))","v":""},{"$f":"IF($A16=\"N/A\",Ref!$B$36,INDEX(Ranks!$1:$1048576,$A16,AL$1))","v":""},{"$f":"IF($A16=\"N/A\",Ref!$B$36,INDEX(Ranks!$1:$1048576,$A16,AM$1))","v":""},{"$f":"IF($A16=\"N/A\",Ref!$B$36,INDEX(Ranks!$1:$1048576,$A16,AN$1))","v":""},{"$f":"IF($A16=\"N/A\",Ref!$B$36,INDEX(Ranks!$1:$1048576,$A16,AO$1))","v":""},{"$f":"IF($A16=\"N/A\",Ref!$B$36,INDEX(Ranks!$1:$1048576,$A16,AP$1))","v":""},{"$f":"IF($A16=\"N/A\",Ref!$B$36,INDEX(Ranks!$1:$1048576,$A16,AQ$1))","v":""},{"$f":"IF($A16=\"N/A\",Ref!$B$36,INDEX(Ranks!$1:$1048576,$A16,AR$1))","v":""},{"$f":"IF($A16=\"N/A\",Ref!$B$36,INDEX(Ranks!$1:$1048576,$A16,AS$1))","v":""},{"$f":"IF($A16=\"N/A\",Ref!$B$36,INDEX(Ranks!$1:$1048576,$A16,AT$1))","v":""},{"$f":"IF($A16=\"N/A\",Ref!$B$36,INDEX(Ranks!$1:$1048576,$A16,AU$1))","v":""},{"$f":"IF($A16=\"N/A\",Ref!$B$36,INDEX(Ranks!$1:$1048576,$A16,AV$1))","v":""},{"$f":"IF($A16=\"N/A\",Ref!$B$36,INDEX(Ranks!$1:$1048576,$A16,AW$1))","v":""},{"$f":"IF($A16=\"N/A\",Ref!$B$36,INDEX(Ranks!$1:$1048576,$A16,AX$1))","v":""},{"$f":"IF($A16=\"N/A\",Ref!$B$36,INDEX(Ranks!$1:$1048576,$A16,AY$1))","v":""},{"$f":"IF($A16=\"N/A\",Ref!$B$36,INDEX(Ranks!$1:$1048576,$A16,AZ$1))","v":""},{"$f":"IF($A16=\"N/A\",Ref!$B$36,INDEX(Ranks!$1:$1048576,$A16,BA$1))","v":""},{"$f":"IF($A16=\"N/A\",Ref!$B$36,INDEX(Ranks!$1:$1048576,$A16,BB$1))","v":""},{"$f":"IF($A16=\"N/A\",Ref!$B$36,INDEX(Ranks!$1:$1048576,$A16,BC$1))","v":""},{"$f":"IF($A16=\"N/A\",Ref!$B$36,INDEX(Ranks!$1:$1048576,$A16,BD$1))","v":""},{"$f":"IF($A16=\"N/A\",Ref!$B$36,INDEX(Ranks!$1:$1048576,$A16,BE$1))","v":""},{"$f":"IF($A16=\"N/A\",Ref!$B$36,INDEX(Ranks!$1:$1048576,$A16,BF$1))","v":""},{"$f":"IF($A16=\"N/A\",Ref!$B$36,INDEX(Ranks!$1:$1048576,$A16,BG$1))","v":""},{"$f":"IF($A16=\"N/A\",Ref!$B$36,INDEX(Ranks!$1:$1048576,$A16,BH$1))","v":""},{"$f":"IF($A16=\"N/A\",Ref!$B$36,INDEX(Ranks!$1:$1048576,$A16,BI$1))","v":""},{"$f":"IF($A16=\"N/A\",Ref!$B$36,INDEX(Ranks!$1:$1048576,$A16,BJ$1))","v":""},{"$f":"IF($A16=\"N/A\",Ref!$B$36,INDEX(Ranks!$1:$1048576,$A16,BK$1))","v":""},{"$f":"IF($A16=\"N/A\",Ref!$B$36,INDEX(Ranks!$1:$1048576,$A16,BL$1))","v":""},{"$f":"IF($A16=\"N/A\",Ref!$B$36,INDEX(Ranks!$1:$1048576,$A16,BM$1))","v":""},{"$f":"IF($A16=\"N/A\",Ref!$B$36,INDEX(Ranks!$1:$1048576,$A16,BN$1))","v":""},{"$f":"IF($A16=\"N/A\",Ref!$B$36,INDEX(Ranks!$1:$1048576,$A16,BO$1))","v":""},{"$f":"IF($A16=\"N/A\",Ref!$B$36,INDEX(Ranks!$1:$1048576,$A16,BP$1))","v":""},{"$f":"IF($A16=\"N/A\",Ref!$B$36,INDEX(Ranks!$1:$1048576,$A16,BQ$1))","v":""},{"$f":"IF($A16=\"N/A\",Ref!$B$36,INDEX(Ranks!$1:$1048576,$A16,BR$1))","v":""},{"$f":"IF($A16=\"N/A\",Ref!$B$36,INDEX(Ranks!$1:$1048576,$A16,BS$1))","v":""},{"$f":"IF($A16=\"N/A\",Ref!$B$36,INDEX(Ranks!$1:$1048576,$A16,BT$1))","v":""},{"$f":"IF($A16=\"N/A\",Ref!$B$36,INDEX(Ranks!$1:$1048576,$A16,BU$1))","v":""},{"$f":"IF($A16=\"N/A\",Ref!$B$36,INDEX(Ranks!$1:$1048576,$A16,BV$1))","v":""},{"$f":"IF($A16=\"N/A\",Ref!$B$36,INDEX(Ranks!$1:$1048576,$A16,BW$1))","v":""},{"$f":"IF($A16=\"N/A\",Ref!$B$36,INDEX(Ranks!$1:$1048576,$A16,BX$1))","v":""},{"$f":"IF($A16=\"N/A\",Ref!$B$36,INDEX(Ranks!$1:$1048576,$A16,BY$1))","v":""},{"$f":"IF($A16=\"N/A\",Ref!$B$36,INDEX(Ranks!$1:$1048576,$A16,BZ$1))","v":""},{"$f":"IF($A16=\"N/A\",Ref!$B$36,INDEX(Ranks!$1:$1048576,$A16,CA$1))","v":""},{"$f":"IF($A16=\"N/A\",Ref!$B$36,INDEX(Ranks!$1:$1048576,$A16,CB$1))","v":""},{"$f":"IF($A16=\"N/A\",Ref!$B$36,INDEX(Ranks!$1:$1048576,$A16,CC$1))","v":""},{"$f":"IF($A16=\"N/A\",Ref!$B$36,INDEX(Ranks!$1:$1048576,$A16,CD$1))","v":""},{"$f":"IF($A16=\"N/A\",Ref!$B$36,INDEX(Ranks!$1:$1048576,$A16,CE$1))","v":""},{"$f":"IF($A16=\"N/A\",Ref!$B$36,INDEX(Ranks!$1:$1048576,$A16,CF$1))","v":""},{"$f":"IF($A16=\"N/A\",Ref!$B$36,INDEX(Ranks!$1:$1048576,$A16,CG$1))","v":""},{"$f":"IF($A16=\"N/A\",Ref!$B$36,INDEX(Ranks!$1:$1048576,$A16,CH$1))","v":""},{"$f":"IF($A16=\"N/A\",Ref!$B$36,INDEX(Ranks!$1:$1048576,$A16,CI$1))","v":""},{"$f":"IF($A16=\"N/A\",Ref!$B$36,INDEX(Ranks!$1:$1048576,$A16,CJ$1))","v":""},{"$f":"IF($A16=\"N/A\",Ref!$B$36,INDEX(Ranks!$1:$1048576,$A16,CK$1))","v":""},{"$f":"IF($A16=\"N/A\",Ref!$B$36,INDEX(Ranks!$1:$1048576,$A16,CL$1))","v":""},{"$f":"IF($A16=\"N/A\",Ref!$B$36,INDEX(Ranks!$1:$1048576,$A16,CM$1))","v":""},{"$f":"IF($A16=\"N/A\",Ref!$B$36,INDEX(Ranks!$1:$1048576,$A16,CN$1))","v":""},{"$f":"IF($A16=\"N/A\",Ref!$B$36,INDEX(Ranks!$1:$1048576,$A16,CO$1))","v":""},{"$f":"IF($A16=\"N/A\",Ref!$B$36,INDEX(Ranks!$1:$1048576,$A16,CP$1))","v":""},{"$f":"IF($A16=\"N/A\",Ref!$B$36,INDEX(Ranks!$1:$1048576,$A16,CQ$1))","v":""},{"$f":"IF($A16=\"N/A\",Ref!$B$36,INDEX(Ranks!$1:$1048576,$A16,CR$1))","v":""},{"$f":"IF($A16=\"N/A\",Ref!$B$36,INDEX(Ranks!$1:$1048576,$A16,CS$1))","v":""},{"$f":"IF($A16=\"N/A\",Ref!$B$36,INDEX(Ranks!$1:$1048576,$A16,CT$1))","v":""},{"$f":"IF($A16=\"N/A\",Ref!$B$36,INDEX(Ranks!$1:$1048576,$A16,CU$1))","v":""},{"$f":"IF($A16=\"N/A\",Ref!$B$36,INDEX(Ranks!$1:$1048576,$A16,CV$1))","v":""},{"$f":"IF($A16=\"N/A\",Ref!$B$36,INDEX(Ranks!$1:$1048576,$A16,CW$1))","v":""},{"$f":"IF($A16=\"N/A\",Ref!$B$36,INDEX(Ranks!$1:$1048576,$A16,CX$1))","v":""},{"$f":"IF($A16=\"N/A\",Ref!$B$36,INDEX(Ranks!$1:$1048576,$A16,CY$1))","v":""},{"$f":"IF($A16=\"N/A\",Ref!$B$36,INDEX(Ranks!$1:$1048576,$A16,CZ$1))","v":""},{"$f":"IF($A16=\"N/A\",Ref!$B$36,INDEX(Ranks!$1:$1048576,$A16,DA$1))","v":""},{"$f":"IF($A16=\"N/A\",Ref!$B$36,INDEX(Ranks!$1:$1048576,$A16,DB$1))","v":""},{"$f":"IF($A16=\"N/A\",Ref!$B$36,INDEX(Ranks!$1:$1048576,$A16,DC$1))","v":""},{"$f":"IF($A16=\"N/A\",Ref!$B$36,INDEX(Ranks!$1:$1048576,$A16,DD$1))","v":""},{"$f":"IF($A16=\"N/A\",Ref!$B$36,INDEX(Ranks!$1:$1048576,$A16,DE$1))","v":""},{"$f":"IF($A16=\"N/A\",Ref!$B$36,INDEX(Ranks!$1:$1048576,$A16,DF$1))","v":""},{"$f":"IF($A16=\"N/A\",Ref!$B$36,INDEX(Ranks!$1:$1048576,$A16,DG$1))","v":""},{"$f":"IF($A16=\"N/A\",Ref!$B$36,INDEX(Ranks!$1:$1048576,$A16,DH$1))","v":""},{"$f":"IF($A16=\"N/A\",Ref!$B$36,INDEX(Ranks!$1:$1048576,$A16,DI$1))","v":""},{"$f":"IF($A16=\"N/A\",Ref!$B$36,INDEX(Ranks!$1:$1048576,$A16,DJ$1))","v":""},{"$f":"IF($A16=\"N/A\",Ref!$B$36,INDEX(Ranks!$1:$1048576,$A16,DK$1))","v":""},{"$f":"IF($A16=\"N/A\",Ref!$B$36,INDEX(Ranks!$1:$1048576,$A16,DL$1))","v":""},{"$f":"IF($A16=\"N/A\",Ref!$B$36,INDEX(Ranks!$1:$1048576,$A16,DM$1))","v":""},{"$f":"IF($A16=\"N/A\",Ref!$B$36,INDEX(Ranks!$1:$1048576,$A16,DN$1))","v":""},{"$f":"IF($A16=\"N/A\",Ref!$B$36,INDEX(Ranks!$1:$1048576,$A16,DO$1))","v":""},{"$f":"IF($A16=\"N/A\",Ref!$B$36,INDEX(Ranks!$1:$1048576,$A16,DP$1))","v":""},{"$f":"IF($A16=\"N/A\",Ref!$B$36,INDEX(Ranks!$1:$1048576,$A16,DQ$1))","v":""},{"$f":"IF($A16=\"N/A\",Ref!$B$36,INDEX(Ranks!$1:$1048576,$A16,DR$1))","v":""},{"$f":"IF($A16=\"N/A\",Ref!$B$36,INDEX(Ranks!$1:$1048576,$A16,DS$1))","v":""},{"$f":"IF($A16=\"N/A\",Ref!$B$36,INDEX(Ranks!$1:$1048576,$A16,DT$1))","v":""},{"$f":"IF($A16=\"N/A\",Ref!$B$36,INDEX(Ranks!$1:$1048576,$A16,DU$1))","v":""},{"$f":"IF($A16=\"N/A\",Ref!$B$36,INDEX(Ranks!$1:$1048576,$A16,DV$1))","v":""},{"$f":"IF($A16=\"N/A\",Ref!$B$36,INDEX(Ranks!$1:$1048576,$A16,DW$1))","v":""},{"$f":"IF($A16=\"N/A\",Ref!$B$36,INDEX(Ranks!$1:$1048576,$A16,DX$1))","v":""},{"$f":"IF($A16=\"N/A\",Ref!$B$36,INDEX(Ranks!$1:$1048576,$A16,DY$1))","v":""},{"$f":"IF($A16=\"N/A\",Ref!$B$36,INDEX(Ranks!$1:$1048576,$A16,DZ$1))","v":""},{"$f":"IF($A16=\"N/A\",Ref!$B$36,INDEX(Ranks!$1:$1048576,$A16,EA$1))","v":""},{"$f":"IF($A16=\"N/A\",Ref!$B$36,INDEX(Ranks!$1:$1048576,$A16,EB$1))","v":""}]
[{"$f":"IFERROR(MATCH('Portfolio Page'!L17,Ranks!L:L,0),\"N/A\")","v":"N/A"},null,{"$f":"IF($A17=\"N/A\",\"\",INDEX(Ranks!$1:$1048576,$A17,C$1))","v":""},{"$f":"IF($A17=\"N/A\",Ref!$B$36,INDEX(Ranks!$1:$1048576,$A17,D$1))","v":""},{"$f":"IF($A17=\"N/A\",Ref!$B$36,INDEX(Ranks!$1:$1048576,$A17,E$1))","v":""},{"$f":"IF($A17=\"N/A\",\"\",INDEX(Ranks!$1:$1048576,$A17,F$1))","v":""},{"$f":"IF($A17=\"N/A\",\"\",INDEX(Ranks!$1:$1048576,$A17,G$1))","v":""},{"$f":"IF($A17=\"N/A\",\"\",INDEX(Ranks!$1:$1048576,$A17,H$1))","v":""},{"$f":"IF($A17=\"N/A\",\"\",INDEX(Ranks!$1:$1048576,$A17,I$1))","v":""},{"$f":"IF($A17=\"N/A\",\"\",INDEX(Ranks!$1:$1048576,$A17,J$1))","v":""},{"$f":"IF($A17=\"N/A\",\"\",INDEX(Ranks!$1:$1048576,$A17,K$1))","v":""},null,{"$f":"IF($A17=\"N/A\",Ref!$B$36,INDEX(Ranks!$1:$1048576,$A17,M$1))","v":""},{"$f":"IF($A17=\"N/A\",Ref!$B$36,INDEX(Ranks!$1:$1048576,$A17,N$1))","v":""},{"$f":"IF($A17=\"N/A\",Ref!$B$36,INDEX(Ranks!$1:$1048576,$A17,O$1))","v":""},{"$f":"IF($A17=\"N/A\",Ref!$B$36,INDEX(Ranks!$1:$1048576,$A17,P$1))","v":""},{"$f":"IF($A17=\"N/A\",Ref!$B$36,INDEX(Ranks!$1:$1048576,$A17,Q$1))","v":""},{"$f":"IF($A17=\"N/A\",Ref!$B$36,INDEX(Ranks!$1:$1048576,$A17,R$1))","v":""},{"$f":"IF($A17=\"N/A\",Ref!$B$36,INDEX(Ranks!$1:$1048576,$A17,S$1))","v":""},{"$f":"IF($A17=\"N/A\",Ref!$B$36,INDEX(Ranks!$1:$1048576,$A17,T$1))","v":""},{"$f":"IF($A17=\"N/A\",Ref!$B$36,INDEX(Ranks!$1:$1048576,$A17,U$1))","v":""},{"$f":"IF($A17=\"N/A\",Ref!$B$36,INDEX(Ranks!$1:$1048576,$A17,V$1))","v":""},{"$f":"IF($A17=\"N/A\",Ref!$B$36,INDEX(Ranks!$1:$1048576,$A17,W$1))","v":""},{"$f":"IF($A17=\"N/A\",Ref!$B$36,INDEX(Ranks!$1:$1048576,$A17,X$1))","v":""},{"$f":"IF($A17=\"N/A\",Ref!$B$36,INDEX(Ranks!$1:$1048576,$A17,Y$1))","v":""},{"$f":"IF($A17=\"N/A\",Ref!$B$36,INDEX(Ranks!$1:$1048576,$A17,Z$1))","v":""},{"$f":"IF($A17=\"N/A\",Ref!$B$36,INDEX(Ranks!$1:$1048576,$A17,AA$1))","v":""},{"$f":"IF($A17=\"N/A\",Ref!$B$36,INDEX(Ranks!$1:$1048576,$A17,AB$1))","v":""},{"$f":"IF($A17=\"N/A\",Ref!$B$36,INDEX(Ranks!$1:$1048576,$A17,AC$1))","v":""},{"$f":"IF($A17=\"N/A\",Ref!$B$36,INDEX(Ranks!$1:$1048576,$A17,AD$1))","v":""},{"$f":"IF($A17=\"N/A\",Ref!$B$36,INDEX(Ranks!$1:$1048576,$A17,AE$1))","v":""},{"$f":"IF($A17=\"N/A\",Ref!$B$36,INDEX(Ranks!$1:$1048576,$A17,AF$1))","v":""},{"$f":"IF($A17=\"N/A\",Ref!$B$36,INDEX(Ranks!$1:$1048576,$A17,AG$1))","v":""},{"$f":"IF($A17=\"N/A\",Ref!$B$36,INDEX(Ranks!$1:$1048576,$A17,AH$1))","v":""},{"$f":"IF($A17=\"N/A\",Ref!$B$36,INDEX(Ranks!$1:$1048576,$A17,AI$1))","v":""},{"$f":"IF($A17=\"N/A\",Ref!$B$36,INDEX(Ranks!$1:$1048576,$A17,AJ$1))","v":""},{"$f":"IF($A17=\"N/A\",Ref!$B$36,INDEX(Ranks!$1:$1048576,$A17,AK$1))","v":""},{"$f":"IF($A17=\"N/A\",Ref!$B$36,INDEX(Ranks!$1:$1048576,$A17,AL$1))","v":""},{"$f":"IF($A17=\"N/A\",Ref!$B$36,INDEX(Ranks!$1:$1048576,$A17,AM$1))","v":""},{"$f":"IF($A17=\"N/A\",Ref!$B$36,INDEX(Ranks!$1:$1048576,$A17,AN$1))","v":""},{"$f":"IF($A17=\"N/A\",Ref!$B$36,INDEX(Ranks!$1:$1048576,$A17,AO$1))","v":""},{"$f":"IF($A17=\"N/A\",Ref!$B$36,INDEX(Ranks!$1:$1048576,$A17,AP$1))","v":""},{"$f":"IF($A17=\"N/A\",Ref!$B$36,INDEX(Ranks!$1:$1048576,$A17,AQ$1))","v":""},{"$f":"IF($A17=\"N/A\",Ref!$B$36,INDEX(Ranks!$1:$1048576,$A17,AR$1))","v":""},{"$f":"IF($A17=\"N/A\",Ref!$B$36,INDEX(Ranks!$1:$1048576,$A17,AS$1))","v":""},{"$f":"IF($A17=\"N/A\",Ref!$B$36,INDEX(Ranks!$1:$1048576,$A17,AT$1))","v":""},{"$f":"IF($A17=\"N/A\",Ref!$B$36,INDEX(Ranks!$1:$1048576,$A17,AU$1))","v":""},{"$f":"IF($A17=\"N/A\",Ref!$B$36,INDEX(Ranks!$1:$1048576,$A17,AV$1))","v":""},{"$f":"IF($A17=\"N/A\",Ref!$B$36,INDEX(Ranks!$1:$1048576,$A17,AW$1))","v":""},{"$f":"IF($A17=\"N/A\",Ref!$B$36,INDEX(Ranks!$1:$1048576,$A17,AX$1))","v":""},{"$f":"IF($A17=\"N/A\",Ref!$B$36,INDEX(Ranks!$1:$1048576,$A17,AY$1))","v":""},{"$f":"IF($A17=\"N/A\",Ref!$B$36,INDEX(Ranks!$1:$1048576,$A17,AZ$1))","v":""},{"$f":"IF($A17=\"N/A\",Ref!$B$36,INDEX(Ranks!$1:$1048576,$A17,BA$1))","v":""},{"$f":"IF($A17=\"N/A\",Ref!$B$36,INDEX(Ranks!$1:$1048576,$A17,BB$1))","v":""},{"$f":"IF($A17=\"N/A\",Ref!$B$36,INDEX(Ranks!$1:$1048576,$A17,BC$1))","v":""},{"$f":"IF($A17=\"N/A\",Ref!$B$36,INDEX(Ranks!$1:$1048576,$A17,BD$1))","v":""},{"$f":"IF($A17=\"N/A\",Ref!$B$36,INDEX(Ranks!$1:$1048576,$A17,BE$1))","v":""},{"$f":"IF($A17=\"N/A\",Ref!$B$36,INDEX(Ranks!$1:$1048576,$A17,BF$1))","v":""},{"$f":"IF($A17=\"N/A\",Ref!$B$36,INDEX(Ranks!$1:$1048576,$A17,BG$1))","v":""},{"$f":"IF($A17=\"N/A\",Ref!$B$36,INDEX(Ranks!$1:$1048576,$A17,BH$1))","v":""},{"$f":"IF($A17=\"N/A\",Ref!$B$36,INDEX(Ranks!$1:$1048576,$A17,BI$1))","v":""},{"$f":"IF($A17=\"N/A\",Ref!$B$36,INDEX(Ranks!$1:$1048576,$A17,BJ$1))","v":""},{"$f":"IF($A17=\"N/A\",Ref!$B$36,INDEX(Ranks!$1:$1048576,$A17,BK$1))","v":""},{"$f":"IF($A17=\"N/A\",Ref!$B$36,INDEX(Ranks!$1:$1048576,$A17,BL$1))","v":""},{"$f":"IF($A17=\"N/A\",Ref!$B$36,INDEX(Ranks!$1:$1048576,$A17,BM$1))","v":""},{"$f":"IF($A17=\"N/A\",Ref!$B$36,INDEX(Ranks!$1:$1048576,$A17,BN$1))","v":""},{"$f":"IF($A17=\"N/A\",Ref!$B$36,INDEX(Ranks!$1:$1048576,$A17,BO$1))","v":""},{"$f":"IF($A17=\"N/A\",Ref!$B$36,INDEX(Ranks!$1:$1048576,$A17,BP$1))","v":""},{"$f":"IF($A17=\"N/A\",Ref!$B$36,INDEX(Ranks!$1:$1048576,$A17,BQ$1))","v":""},{"$f":"IF($A17=\"N/A\",Ref!$B$36,INDEX(Ranks!$1:$1048576,$A17,BR$1))","v":""},{"$f":"IF($A17=\"N/A\",Ref!$B$36,INDEX(Ranks!$1:$1048576,$A17,BS$1))","v":""},{"$f":"IF($A17=\"N/A\",Ref!$B$36,INDEX(Ranks!$1:$1048576,$A17,BT$1))","v":""},{"$f":"IF($A17=\"N/A\",Ref!$B$36,INDEX(Ranks!$1:$1048576,$A17,BU$1))","v":""},{"$f":"IF($A17=\"N/A\",Ref!$B$36,INDEX(Ranks!$1:$1048576,$A17,BV$1))","v":""},{"$f":"IF($A17=\"N/A\",Ref!$B$36,INDEX(Ranks!$1:$1048576,$A17,BW$1))","v":""},{"$f":"IF($A17=\"N/A\",Ref!$B$36,INDEX(Ranks!$1:$1048576,$A17,BX$1))","v":""},{"$f":"IF($A17=\"N/A\",Ref!$B$36,INDEX(Ranks!$1:$1048576,$A17,BY$1))","v":""},{"$f":"IF($A17=\"N/A\",Ref!$B$36,INDEX(Ranks!$1:$1048576,$A17,BZ$1))","v":""},{"$f":"IF($A17=\"N/A\",Ref!$B$36,INDEX(Ranks!$1:$1048576,$A17,CA$1))","v":""},{"$f":"IF($A17=\"N/A\",Ref!$B$36,INDEX(Ranks!$1:$1048576,$A17,CB$1))","v":""},{"$f":"IF($A17=\"N/A\",Ref!$B$36,INDEX(Ranks!$1:$1048576,$A17,CC$1))","v":""},{"$f":"IF($A17=\"N/A\",Ref!$B$36,INDEX(Ranks!$1:$1048576,$A17,CD$1))","v":""},{"$f":"IF($A17=\"N/A\",Ref!$B$36,INDEX(Ranks!$1:$1048576,$A17,CE$1))","v":""},{"$f":"IF($A17=\"N/A\",Ref!$B$36,INDEX(Ranks!$1:$1048576,$A17,CF$1))","v":""},{"$f":"IF($A17=\"N/A\",Ref!$B$36,INDEX(Ranks!$1:$1048576,$A17,CG$1))","v":""},{"$f":"IF($A17=\"N/A\",Ref!$B$36,INDEX(Ranks!$1:$1048576,$A17,CH$1))","v":""},{"$f":"IF($A17=\"N/A\",Ref!$B$36,INDEX(Ranks!$1:$1048576,$A17,CI$1))","v":""},{"$f":"IF($A17=\"N/A\",Ref!$B$36,INDEX(Ranks!$1:$1048576,$A17,CJ$1))","v":""},{"$f":"IF($A17=\"N/A\",Ref!$B$36,INDEX(Ranks!$1:$1048576,$A17,CK$1))","v":""},{"$f":"IF($A17=\"N/A\",Ref!$B$36,INDEX(Ranks!$1:$1048576,$A17,CL$1))","v":""},{"$f":"IF($A17=\"N/A\",Ref!$B$36,INDEX(Ranks!$1:$1048576,$A17,CM$1))","v":""},{"$f":"IF($A17=\"N/A\",Ref!$B$36,INDEX(Ranks!$1:$1048576,$A17,CN$1))","v":""},{"$f":"IF($A17=\"N/A\",Ref!$B$36,INDEX(Ranks!$1:$1048576,$A17,CO$1))","v":""},{"$f":"IF($A17=\"N/A\",Ref!$B$36,INDEX(Ranks!$1:$1048576,$A17,CP$1))","v":""},{"$f":"IF($A17=\"N/A\",Ref!$B$36,INDEX(Ranks!$1:$1048576,$A17,CQ$1))","v":""},{"$f":"IF($A17=\"N/A\",Ref!$B$36,INDEX(Ranks!$1:$1048576,$A17,CR$1))","v":""},{"$f":"IF($A17=\"N/A\",Ref!$B$36,INDEX(Ranks!$1:$1048576,$A17,CS$1))","v":""},{"$f":"IF($A17=\"N/A\",Ref!$B$36,INDEX(Ranks!$1:$1048576,$A17,CT$1))","v":""},{"$f":"IF($A17=\"N/A\",Ref!$B$36,INDEX(Ranks!$1:$1048576,$A17,CU$1))","v":""},{"$f":"IF($A17=\"N/A\",Ref!$B$36,INDEX(Ranks!$1:$1048576,$A17,CV$1))","v":""},{"$f":"IF($A17=\"N/A\",Ref!$B$36,INDEX(Ranks!$1:$1048576,$A17,CW$1))","v":""},{"$f":"IF($A17=\"N/A\",Ref!$B$36,INDEX(Ranks!$1:$1048576,$A17,CX$1))","v":""},{"$f":"IF($A17=\"N/A\",Ref!$B$36,INDEX(Ranks!$1:$1048576,$A17,CY$1))","v":""},{"$f":"IF($A17=\"N/A\",Ref!$B$36,INDEX(Ranks!$1:$1048576,$A17,CZ$1))","v":""},{"$f":"IF($A17=\"N/A\",Ref!$B$36,INDEX(Ranks!$1:$1048576,$A17,DA$1))","v":""},{"$f":"IF($A17=\"N/A\",Ref!$B$36,INDEX(Ranks!$1:$1048576,$A17,DB$1))","v":""},{"$f":"IF($A17=\"N/A\",Ref!$B$36,INDEX(Ranks!$1:$1048576,$A17,DC$1))","v":""},{"$f":"IF($A17=\"N/A\",Ref!$B$36,INDEX(Ranks!$1:$1048576,$A17,DD$1))","v":""},{"$f":"IF($A17=\"N/A\",Ref!$B$36,INDEX(Ranks!$1:$1048576,$A17,DE$1))","v":""},{"$f":"IF($A17=\"N/A\",Ref!$B$36,INDEX(Ranks!$1:$1048576,$A17,DF$1))","v":""},{"$f":"IF($A17=\"N/A\",Ref!$B$36,INDEX(Ranks!$1:$1048576,$A17,DG$1))","v":""},{"$f":"IF($A17=\"N/A\",Ref!$B$36,INDEX(Ranks!$1:$1048576,$A17,DH$1))","v":""},{"$f":"IF($A17=\"N/A\",Ref!$B$36,INDEX(Ranks!$1:$1048576,$A17,DI$1))","v":""},{"$f":"IF($A17=\"N/A\",Ref!$B$36,INDEX(Ranks!$1:$1048576,$A17,DJ$1))","v":""},{"$f":"IF($A17=\"N/A\",Ref!$B$36,INDEX(Ranks!$1:$1048576,$A17,DK$1))","v":""},{"$f":"IF($A17=\"N/A\",Ref!$B$36,INDEX(Ranks!$1:$1048576,$A17,DL$1))","v":""},{"$f":"IF($A17=\"N/A\",Ref!$B$36,INDEX(Ranks!$1:$1048576,$A17,DM$1))","v":""},{"$f":"IF($A17=\"N/A\",Ref!$B$36,INDEX(Ranks!$1:$1048576,$A17,DN$1))","v":""},{"$f":"IF($A17=\"N/A\",Ref!$B$36,INDEX(Ranks!$1:$1048576,$A17,DO$1))","v":""},{"$f":"IF($A17=\"N/A\",Ref!$B$36,INDEX(Ranks!$1:$1048576,$A17,DP$1))","v":""},{"$f":"IF($A17=\"N/A\",Ref!$B$36,INDEX(Ranks!$1:$1048576,$A17,DQ$1))","v":""},{"$f":"IF($A17=\"N/A\",Ref!$B$36,INDEX(Ranks!$1:$1048576,$A17,DR$1))","v":""},{"$f":"IF($A17=\"N/A\",Ref!$B$36,INDEX(Ranks!$1:$1048576,$A17,DS$1))","v":""},{"$f":"IF($A17=\"N/A\",Ref!$B$36,INDEX(Ranks!$1:$1048576,$A17,DT$1))","v":""},{"$f":"IF($A17=\"N/A\",Ref!$B$36,INDEX(Ranks!$1:$1048576,$A17,DU$1))","v":""},{"$f":"IF($A17=\"N/A\",Ref!$B$36,INDEX(Ranks!$1:$1048576,$A17,DV$1))","v":""},{"$f":"IF($A17=\"N/A\",Ref!$B$36,INDEX(Ranks!$1:$1048576,$A17,DW$1))","v":""},{"$f":"IF($A17=\"N/A\",Ref!$B$36,INDEX(Ranks!$1:$1048576,$A17,DX$1))","v":""},{"$f":"IF($A17=\"N/A\",Ref!$B$36,INDEX(Ranks!$1:$1048576,$A17,DY$1))","v":""},{"$f":"IF($A17=\"N/A\",Ref!$B$36,INDEX(Ranks!$1:$1048576,$A17,DZ$1))","v":""},{"$f":"IF($A17=\"N/A\",Ref!$B$36,INDEX(Ranks!$1:$1048576,$A17,EA$1))","v":""},{"$f":"IF($A17=\"N/A\",Ref!$B$36,INDEX(Ranks!$1:$1048576,$A17,EB$1))","v":""}]
[{"$f":"IFERROR(MATCH('Portfolio Page'!L18,Ranks!L:L,0),\"N/A\")","v":"N/A"},null,{"$f":"IF($A18=\"N/A\",\"\",INDEX(Ranks!$1:$1048576,$A18,C$1))","v":""},{"$f":"IF($A18=\"N/A\",Ref!$B$36,INDEX(Ranks!$1:$1048576,$A18,D$1))","v":""},{"$f":"IF($A18=\"N/A\",Ref!$B$36,INDEX(Ranks!$1:$1048576,$A18,E$1))","v":""},{"$f":"IF($A18=\"N/A\",\"\",INDEX(Ranks!$1:$1048576,$A18,F$1))","v":""},{"$f":"IF($A18=\"N/A\",\"\",INDEX(Ranks!$1:$1048576,$A18,G$1))","v":""},{"$f":"IF($A18=\"N/A\",\"\",INDEX(Ranks!$1:$1048576,$A18,H$1))","v":""},{"$f":"IF($A18=\"N/A\",\"\",INDEX(Ranks!$1:$1048576,$A18,I$1))","v":""},{"$f":"IF($A18=\"N/A\",\"\",INDEX(Ranks!$1:$1048576,$A18,J$1))","v":""},{"$f":"IF($A18=\"N/A\",\"\",INDEX(Ranks!$1:$1048576,$A18,K$1))","v":""},null,{"$f":"IF($A18=\"N/A\",Ref!$B$36,INDEX(Ranks!$1:$1048576,$A18,M$1))","v":""},{"$f":"IF($A18=\"N/A\",Ref!$B$36,INDEX(Ranks!$1:$1048576,$A18,N$1))","v":""},{"$f":"IF($A18=\"N/A\",Ref!$B$36,INDEX(Ranks!$1:$1048576,$A18,O$1))","v":""},{"$f":"IF($A18=\"N/A\",Ref!$B$36,INDEX(Ranks!$1:$1048576,$A18,P$1))","v":""},{"$f":"IF($A18=\"N/A\",Ref!$B$36,INDEX(Ranks!$1:$1048576,$A18,Q$1))","v":""},{"$f":"IF($A18=\"N/A\",Ref!$B$36,INDEX(Ranks!$1:$1048576,$A18,R$1))","v":""},{"$f":"IF($A18=\"N/A\",Ref!$B$36,INDEX(Ranks!$1:$1048576,$A18,S$1))","v":""},{"$f":"IF($A18=\"N/A\",Ref!$B$36,INDEX(Ranks!$1:$1048576,$A18,T$1))","v":""},{"$f":"IF($A18=\"N/A\",Ref!$B$36,INDEX(Ranks!$1:$1048576,$A18,U$1))","v":""},{"$f":"IF($A18=\"N/A\",Ref!$B$36,INDEX(Ranks!$1:$1048576,$A18,V$1))","v":""},{"$f":"IF($A18=\"N/A\",Ref!$B$36,INDEX(Ranks!$1:$1048576,$A18,W$1))","v":""},{"$f":"IF($A18=\"N/A\",Ref!$B$36,INDEX(Ranks!$1:$1048576,$A18,X$1))","v":""},{"$f":"IF($A18=\"N/A\",Ref!$B$36,INDEX(Ranks!$1:$1048576,$A18,Y$1))","v":""},{"$f":"IF($A18=\"N/A\",Ref!$B$36,INDEX(Ranks!$1:$1048576,$A18,Z$1))","v":""},{"$f":"IF($A18=\"N/A\",Ref!$B$36,INDEX(Ranks!$1:$1048576,$A18,AA$1))","v":""},{"$f":"IF($A18=\"N/A\",Ref!$B$36,INDEX(Ranks!$1:$1048576,$A18,AB$1))","v":""},{"$f":"IF($A18=\"N/A\",Ref!$B$36,INDEX(Ranks!$1:$1048576,$A18,AC$1))","v":""},{"$f":"IF($A18=\"N/A\",Ref!$B$36,INDEX(Ranks!$1:$1048576,$A18,AD$1))","v":""},{"$f":"IF($A18=\"N/A\",Ref!$B$36,INDEX(Ranks!$1:$1048576,$A18,AE$1))","v":""},{"$f":"IF($A18=\"N/A\",Ref!$B$36,INDEX(Ranks!$1:$1048576,$A18,AF$1))","v":""},{"$f":"IF($A18=\"N/A\",Ref!$B$36,INDEX(Ranks!$1:$1048576,$A18,AG$1))","v":""},{"$f":"IF($A18=\"N/A\",Ref!$B$36,INDEX(Ranks!$1:$1048576,$A18,AH$1))","v":""},{"$f":"IF($A18=\"N/A\",Ref!$B$36,INDEX(Ranks!$1:$1048576,$A18,AI$1))","v":""},{"$f":"IF($A18=\"N/A\",Ref!$B$36,INDEX(Ranks!$1:$1048576,$A18,AJ$1))","v":""},{"$f":"IF($A18=\"N/A\",Ref!$B$36,INDEX(Ranks!$1:$1048576,$A18,AK$1))","v":""},{"$f":"IF($A18=\"N/A\",Ref!$B$36,INDEX(Ranks!$1:$1048576,$A18,AL$1))","v":""},{"$f":"IF($A18=\"N/A\",Ref!$B$36,INDEX(Ranks!$1:$1048576,$A18,AM$1))","v":""},{"$f":"IF($A18=\"N/A\",Ref!$B$36,INDEX(Ranks!$1:$1048576,$A18,AN$1))","v":""},{"$f":"IF($A18=\"N/A\",Ref!$B$36,INDEX(Ranks!$1:$1048576,$A18,AO$1))","v":""},{"$f":"IF($A18=\"N/A\",Ref!$B$36,INDEX(Ranks!$1:$1048576,$A18,AP$1))","v":""},{"$f":"IF($A18=\"N/A\",Ref!$B$36,INDEX(Ranks!$1:$1048576,$A18,AQ$1))","v":""},{"$f":"IF($A18=\"N/A\",Ref!$B$36,INDEX(Ranks!$1:$1048576,$A18,AR$1))","v":""},{"$f":"IF($A18=\"N/A\",Ref!$B$36,INDEX(Ranks!$1:$1048576,$A18,AS$1))","v":""},{"$f":"IF($A18=\"N/A\",Ref!$B$36,INDEX(Ranks!$1:$1048576,$A18,AT$1))","v":""},{"$f":"IF($A18=\"N/A\",Ref!$B$36,INDEX(Ranks!$1:$1048576,$A18,AU$1))","v":""},{"$f":"IF($A18=\"N/A\",Ref!$B$36,INDEX(Ranks!$1:$1048576,$A18,AV$1))","v":""},{"$f":"IF($A18=\"N/A\",Ref!$B$36,INDEX(Ranks!$1:$1048576,$A18,AW$1))","v":""},{"$f":"IF($A18=\"N/A\",Ref!$B$36,INDEX(Ranks!$1:$1048576,$A18,AX$1))","v":""},{"$f":"IF($A18=\"N/A\",Ref!$B$36,INDEX(Ranks!$1:$1048576,$A18,AY$1))","v":""},{"$f":"IF($A18=\"N/A\",Ref!$B$36,INDEX(Ranks!$1:$1048576,$A18,AZ$1))","v":""},{"$f":"IF($A18=\"N/A\",Ref!$B$36,INDEX(Ranks!$1:$1048576,$A18,BA$1))","v":""},{"$f":"IF($A18=\"N/A\",Ref!$B$36,INDEX(Ranks!$1:$1048576,$A18,BB$1))","v":""},{"$f":"IF($A18=\"N/A\",Ref!$B$36,INDEX(Ranks!$1:$1048576,$A18,BC$1))","v":""},{"$f":"IF($A18=\"N/A\",Ref!$B$36,INDEX(Ranks!$1:$1048576,$A18,BD$1))","v":""},{"$f":"IF($A18=\"N/A\",Ref!$B$36,INDEX(Ranks!$1:$1048576,$A18,BE$1))","v":""},{"$f":"IF($A18=\"N/A\",Ref!$B$36,INDEX(Ranks!$1:$1048576,$A18,BF$1))","v":""},{"$f":"IF($A18=\"N/A\",Ref!$B$36,INDEX(Ranks!$1:$1048576,$A18,BG$1))","v":""},{"$f":"IF($A18=\"N/A\",Ref!$B$36,INDEX(Ranks!$1:$1048576,$A18,BH$1))","v":""},{"$f":"IF($A18=\"N/A\",Ref!$B$36,INDEX(Ranks!$1:$1048576,$A18,BI$1))","v":""},{"$f":"IF($A18=\"N/A\",Ref!$B$36,INDEX(Ranks!$1:$1048576,$A18,BJ$1))","v":""},{"$f":"IF($A18=\"N/A\",Ref!$B$36,INDEX(Ranks!$1:$1048576,$A18,BK$1))","v":""},{"$f":"IF($A18=\"N/A\",Ref!$B$36,INDEX(Ranks!$1:$1048576,$A18,BL$1))","v":""},{"$f":"IF($A18=\"N/A\",Ref!$B$36,INDEX(Ranks!$1:$1048576,$A18,BM$1))","v":""},{"$f":"IF($A18=\"N/A\",Ref!$B$36,INDEX(Ranks!$1:$1048576,$A18,BN$1))","v":""},{"$f":"IF($A18=\"N/A\",Ref!$B$36,INDEX(Ranks!$1:$1048576,$A18,BO$1))","v":""},{"$f":"IF($A18=\"N/A\",Ref!$B$36,INDEX(Ranks!$1:$1048576,$A18,BP$1))","v":""},{"$f":"IF($A18=\"N/A\",Ref!$B$36,INDEX(Ranks!$1:$1048576,$A18,BQ$1))","v":""},{"$f":"IF($A18=\"N/A\",Ref!$B$36,INDEX(Ranks!$1:$1048576,$A18,BR$1))","v":""},{"$f":"IF($A18=\"N/A\",Ref!$B$36,INDEX(Ranks!$1:$1048576,$A18,BS$1))","v":""},{"$f":"IF($A18=\"N/A\",Ref!$B$36,INDEX(Ranks!$1:$1048576,$A18,BT$1))","v":""},{"$f":"IF($A18=\"N/A\",Ref!$B$36,INDEX(Ranks!$1:$1048576,$A18,BU$1))","v":""},{"$f":"IF($A18=\"N/A\",Ref!$B$36,INDEX(Ranks!$1:$1048576,$A18,BV$1))","v":""},{"$f":"IF($A18=\"N/A\",Ref!$B$36,INDEX(Ranks!$1:$1048576,$A18,BW$1))","v":""},{"$f":"IF($A18=\"N/A\",Ref!$B$36,INDEX(Ranks!$1:$1048576,$A18,BX$1))","v":""},{"$f":"IF($A18=\"N/A\",Ref!$B$36,INDEX(Ranks!$1:$1048576,$A18,BY$1))","v":""},{"$f":"IF($A18=\"N/A\",Ref!$B$36,INDEX(Ranks!$1:$1048576,$A18,BZ$1))","v":""},{"$f":"IF($A18=\"N/A\",Ref!$B$36,INDEX(Ranks!$1:$1048576,$A18,CA$1))","v":""},{"$f":"IF($A18=\"N/A\",Ref!$B$36,INDEX(Ranks!$1:$1048576,$A18,CB$1))","v":""},{"$f":"IF($A18=\"N/A\",Ref!$B$36,INDEX(Ranks!$1:$1048576,$A18,CC$1))","v":""},{"$f":"IF($A18=\"N/A\",Ref!$B$36,INDEX(Ranks!$1:$1048576,$A18,CD$1))","v":""},{"$f":"IF($A18=\"N/A\",Ref!$B$36,INDEX(Ranks!$1:$1048576,$A18,CE$1))","v":""},{"$f":"IF($A18=\"N/A\",Ref!$B$36,INDEX(Ranks!$1:$1048576,$A18,CF$1))","v":""},{"$f":"IF($A18=\"N/A\",Ref!$B$36,INDEX(Ranks!$1:$1048576,$A18,CG$1))","v":""},{"$f":"IF($A18=\"N/A\",Ref!$B$36,INDEX(Ranks!$1:$1048576,$A18,CH$1))","v":""},{"$f":"IF($A18=\"N/A\",Ref!$B$36,INDEX(Ranks!$1:$1048576,$A18,CI$1))","v":""},{"$f":"IF($A18=\"N/A\",Ref!$B$36,INDEX(Ranks!$1:$1048576,$A18,CJ$1))","v":""},{"$f":"IF($A18=\"N/A\",Ref!$B$36,INDEX(Ranks!$1:$1048576,$A18,CK$1))","v":""},{"$f":"IF($A18=\"N/A\",Ref!$B$36,INDEX(Ranks!$1:$1048576,$A18,CL$1))","v":""},{"$f":"IF($A18=\"N/A\",Ref!$B$36,INDEX(Ranks!$1:$1048576,$A18,CM$1))","v":""},{"$f":"IF($A18=\"N/A\",Ref!$B$36,INDEX(Ranks!$1:$1048576,$A18,CN$1))","v":""},{"$f":"IF($A18=\"N/A\",Ref!$B$36,INDEX(Ranks!$1:$1048576,$A18,CO$1))","v":""},{"$f":"IF($A18=\"N/A\",Ref!$B$36,INDEX(Ranks!$1:$1048576,$A18,CP$1))","v":""},{"$f":"IF($A18=\"N/A\",Ref!$B$36,INDEX(Ranks!$1:$1048576,$A18,CQ$1))","v":""},{"$f":"IF($A18=\"N/A\",Ref!$B$36,INDEX(Ranks!$1:$1048576,$A18,CR$1))","v":""},{"$f":"IF($A18=\"N/A\",Ref!$B$36,INDEX(Ranks!$1:$1048576,$A18,CS$1))","v":""},{"$f":"IF($A18=\"N/A\",Ref!$B$36,INDEX(Ranks!$1:$1048576,$A18,CT$1))","v":""},{"$f":"IF($A18=\"N/A\",Ref!$B$36,INDEX(Ranks!$1:$1048576,$A18,CU$1))","v":""},{"$f":"IF($A18=\"N/A\",Ref!$B$36,INDEX(Ranks!$1:$1048576,$A18,CV$1))","v":""},{"$f":"IF($A18=\"N/A\",Ref!$B$36,INDEX(Ranks!$1:$1048576,$A18,CW$1))","v":""},{"$f":"IF($A18=\"N/A\",Ref!$B$36,INDEX(Ranks!$1:$1048576,$A18,CX$1))","v":""},{"$f":"IF($A18=\"N/A\",Ref!$B$36,INDEX(Ranks!$1:$1048576,$A18,CY$1))","v":""},{"$f":"IF($A18=\"N/A\",Ref!$B$36,INDEX(Ranks!$1:$1048576,$A18,CZ$1))","v":""},{"$f":"IF($A18=\"N/A\",Ref!$B$36,INDEX(Ranks!$1:$1048576,$A18,DA$1))","v":""},{"$f":"IF($A18=\"N/A\",Ref!$B$36,INDEX(Ranks!$1:$1048576,$A18,DB$1))","v":""},{"$f":"IF($A18=\"N/A\",Ref!$B$36,INDEX(Ranks!$1:$1048576,$A18,DC$1))","v":""},{"$f":"IF($A18=\"N/A\",Ref!$B$36,INDEX(Ranks!$1:$1048576,$A18,DD$1))","v":""},{"$f":"IF($A18=\"N/A\",Ref!$B$36,INDEX(Ranks!$1:$1048576,$A18,DE$1))","v":""},{"$f":"IF($A18=\"N/A\",Ref!$B$36,INDEX(Ranks!$1:$1048576,$A18,DF$1))","v":""},{"$f":"IF($A18=\"N/A\",Ref!$B$36,INDEX(Ranks!$1:$1048576,$A18,DG$1))","v":""},{"$f":"IF($A18=\"N/A\",Ref!$B$36,INDEX(Ranks!$1:$1048576,$A18,DH$1))","v":""},{"$f":"IF($A18=\"N/A\",Ref!$B$36,INDEX(Ranks!$1:$1048576,$A18,DI$1))","v":""},{"$f":"IF($A18=\"N/A\",Ref!$B$36,INDEX(Ranks!$1:$1048576,$A18,DJ$1))","v":""},{"$f":"IF($A18=\"N/A\",Ref!$B$36,INDEX(Ranks!$1:$1048576,$A18,DK$1))","v":""},{"$f":"IF($A18=\"N/A\",Ref!$B$36,INDEX(Ranks!$1:$1048576,$A18,DL$1))","v":""},{"$f":"IF($A18=\"N/A\",Ref!$B$36,INDEX(Ranks!$1:$1048576,$A18,DM$1))","v":""},{"$f":"IF($A18=\"N/A\",Ref!$B$36,INDEX(Ranks!$1:$1048576,$A18,DN$1))","v":""},{"$f":"IF($A18=\"N/A\",Ref!$B$36,INDEX(Ranks!$1:$1048576,$A18,DO$1))","v":""},{"$f":"IF($A18=\"N/A\",Ref!$B$36,INDEX(Ranks!$1:$1048576,$A18,DP$1))","v":""},{"$f":"IF($A18=\"N/A\",Ref!$B$36,INDEX(Ranks!$1:$1048576,$A18,DQ$1))","v":""},{"$f":"IF($A18=\"N/A\",Ref!$B$36,INDEX(Ranks!$1:$1048576,$A18,DR$1))","v":""},{"$f":"IF($A18=\"N/A\",Ref!$B$36,INDEX(Ranks!$1:$1048576,$A18,DS$1))","v":""},{"$f":"IF($A18=\"N/A\",Ref!$B$36,INDEX(Ranks!$1:$1048576,$A18,DT$1))","v":""},{"$f":"IF($A18=\"N/A\",Ref!$B$36,INDEX(Ranks!$1:$1048576,$A18,DU$1))","v":""},{"$f":"IF($A18=\"N/A\",Ref!$B$36,INDEX(Ranks!$1:$1048576,$A18,DV$1))","v":""},{"$f":"IF($A18=\"N/A\",Ref!$B$36,INDEX(Ranks!$1:$1048576,$A18,DW$1))","v":""},{"$f":"IF($A18=\"N/A\",Ref!$B$36,INDEX(Ranks!$1:$1048576,$A18,DX$1))","v":""},{"$f":"IF($A18=\"N/A\",Ref!$B$36,INDEX(Ranks!$1:$1048576,$A18,DY$1))","v":""},{"$f":"IF($A18=\"N/A\",Ref!$B$36,INDEX(Ranks!$1:$1048576,$A18,DZ$1))","v":""},{"$f":"IF($A18=\"N/A\",Ref!$B$36,INDEX(Ranks!$1:$1048576,$A18,EA$1))","v":""},{"$f":"IF($A18=\"N/A\",Ref!$B$36,INDEX(Ranks!$1:$1048576,$A18,EB$1))","v":""}]
[{"$f":"IFERROR(MATCH('Portfolio Page'!L19,Ranks!L:L,0),\"N/A\")","v":"N/A"},null,{"$f":"IF($A19=\"N/A\",\"\",INDEX(Ranks!$1:$1048576,$A19,C$1))","v":""},{"$f":"IF($A19=\"N/A\",Ref!$B$36,INDEX(Ranks!$1:$1048576,$A19,D$1))","v":""},{"$f":"IF($A19=\"N/A\",Ref!$B$36,INDEX(Ranks!$1:$1048576,$A19,E$1))","v":""},{"$f":"IF($A19=\"N/A\",\"\",INDEX(Ranks!$1:$1048576,$A19,F$1))","v":""},{"$f":"IF($A19=\"N/A\",\"\",INDEX(Ranks!$1:$1048576,$A19,G$1))","v":""},{"$f":"IF($A19=\"N/A\",\"\",INDEX(Ranks!$1:$1048576,$A19,H$1))","v":""},{"$f":"IF($A19=\"N/A\",\"\",INDEX(Ranks!$1:$1048576,$A19,I$1))","v":""},{"$f":"IF($A19=\"N/A\",\"\",INDEX(Ranks!$1:$1048576,$A19,J$1))","v":""},{"$f":"IF($A19=\"N/A\",\"\",INDEX(Ranks!$1:$1048576,$A19,K$1))","v":""},null,{"$f":"IF($A19=\"N/A\",Ref!$B$36,INDEX(Ranks!$1:$1048576,$A19,M$1))","v":""},{"$f":"IF($A19=\"N/A\",Ref!$B$36,INDEX(Ranks!$1:$1048576,$A19,N$1))","v":""},{"$f":"IF($A19=\"N/A\",Ref!$B$36,INDEX(Ranks!$1:$1048576,$A19,O$1))","v":""},{"$f":"IF($A19=\"N/A\",Ref!$B$36,INDEX(Ranks!$1:$1048576,$A19,P$1))","v":""},{"$f":"IF($A19=\"N/A\",Ref!$B$36,INDEX(Ranks!$1:$1048576,$A19,Q$1))","v":""},{"$f":"IF($A19=\"N/A\",Ref!$B$36,INDEX(Ranks!$1:$1048576,$A19,R$1))","v":""},{"$f":"IF($A19=\"N/A\",Ref!$B$36,INDEX(Ranks!$1:$1048576,$A19,S$1))","v":""},{"$f":"IF($A19=\"N/A\",Ref!$B$36,INDEX(Ranks!$1:$1048576,$A19,T$1))","v":""},{"$f":"IF($A19=\"N/A\",Ref!$B$36,INDEX(Ranks!$1:$1048576,$A19,U$1))","v":""},{"$f":"IF($A19=\"N/A\",Ref!$B$36,INDEX(Ranks!$1:$1048576,$A19,V$1))","v":""},{"$f":"IF($A19=\"N/A\",Ref!$B$36,INDEX(Ranks!$1:$1048576,$A19,W$1))","v":""},{"$f":"IF($A19=\"N/A\",Ref!$B$36,INDEX(Ranks!$1:$1048576,$A19,X$1))","v":""},{"$f":"IF($A19=\"N/A\",Ref!$B$36,INDEX(Ranks!$1:$1048576,$A19,Y$1))","v":""},{"$f":"IF($A19=\"N/A\",Ref!$B$36,INDEX(Ranks!$1:$1048576,$A19,Z$1))","v":""},{"$f":"IF($A19=\"N/A\",Ref!$B$36,INDEX(Ranks!$1:$1048576,$A19,AA$1))","v":""},{"$f":"IF($A19=\"N/A\",Ref!$B$36,INDEX(Ranks!$1:$1048576,$A19,AB$1))","v":""},{"$f":"IF($A19=\"N/A\",Ref!$B$36,INDEX(Ranks!$1:$1048576,$A19,AC$1))","v":""},{"$f":"IF($A19=\"N/A\",Ref!$B$36,INDEX(Ranks!$1:$1048576,$A19,AD$1))","v":""},{"$f":"IF($A19=\"N/A\",Ref!$B$36,INDEX(Ranks!$1:$1048576,$A19,AE$1))","v":""},{"$f":"IF($A19=\"N/A\",Ref!$B$36,INDEX(Ranks!$1:$1048576,$A19,AF$1))","v":""},{"$f":"IF($A19=\"N/A\",Ref!$B$36,INDEX(Ranks!$1:$1048576,$A19,AG$1))","v":""},{"$f":"IF($A19=\"N/A\",Ref!$B$36,INDEX(Ranks!$1:$1048576,$A19,AH$1))","v":""},{"$f":"IF($A19=\"N/A\",Ref!$B$36,INDEX(Ranks!$1:$1048576,$A19,AI$1))","v":""},{"$f":"IF($A19=\"N/A\",Ref!$B$36,INDEX(Ranks!$1:$1048576,$A19,AJ$1))","v":""},{"$f":"IF($A19=\"N/A\",Ref!$B$36,INDEX(Ranks!$1:$1048576,$A19,AK$1))","v":""},{"$f":"IF($A19=\"N/A\",Ref!$B$36,INDEX(Ranks!$1:$1048576,$A19,AL$1))","v":""},{"$f":"IF($A19=\"N/A\",Ref!$B$36,INDEX(Ranks!$1:$1048576,$A19,AM$1))","v":""},{"$f":"IF($A19=\"N/A\",Ref!$B$36,INDEX(Ranks!$1:$1048576,$A19,AN$1))","v":""},{"$f":"IF($A19=\"N/A\",Ref!$B$36,INDEX(Ranks!$1:$1048576,$A19,AO$1))","v":""},{"$f":"IF($A19=\"N/A\",Ref!$B$36,INDEX(Ranks!$1:$1048576,$A19,AP$1))","v":""},{"$f":"IF($A19=\"N/A\",Ref!$B$36,INDEX(Ranks!$1:$1048576,$A19,AQ$1))","v":""},{"$f":"IF($A19=\"N/A\",Ref!$B$36,INDEX(Ranks!$1:$1048576,$A19,AR$1))","v":""},{"$f":"IF($A19=\"N/A\",Ref!$B$36,INDEX(Ranks!$1:$1048576,$A19,AS$1))","v":""},{"$f":"IF($A19=\"N/A\",Ref!$B$36,INDEX(Ranks!$1:$1048576,$A19,AT$1))","v":""},{"$f":"IF($A19=\"N/A\",Ref!$B$36,INDEX(Ranks!$1:$1048576,$A19,AU$1))","v":""},{"$f":"IF($A19=\"N/A\",Ref!$B$36,INDEX(Ranks!$1:$1048576,$A19,AV$1))","v":""},{"$f":"IF($A19=\"N/A\",Ref!$B$36,INDEX(Ranks!$1:$1048576,$A19,AW$1))","v":""},{"$f":"IF($A19=\"N/A\",Ref!$B$36,INDEX(Ranks!$1:$1048576,$A19,AX$1))","v":""},{"$f":"IF($A19=\"N/A\",Ref!$B$36,INDEX(Ranks!$1:$1048576,$A19,AY$1))","v":""},{"$f":"IF($A19=\"N/A\",Ref!$B$36,INDEX(Ranks!$1:$1048576,$A19,AZ$1))","v":""},{"$f":"IF($A19=\"N/A\",Ref!$B$36,INDEX(Ranks!$1:$1048576,$A19,BA$1))","v":""},{"$f":"IF($A19=\"N/A\",Ref!$B$36,INDEX(Ranks!$1:$1048576,$A19,BB$1))","v":""},{"$f":"IF($A19=\"N/A\",Ref!$B$36,INDEX(Ranks!$1:$1048576,$A19,BC$1))","v":""},{"$f":"IF($A19=\"N/A\",Ref!$B$36,INDEX(Ranks!$1:$1048576,$A19,BD$1))","v":""},{"$f":"IF($A19=\"N/A\",Ref!$B$36,INDEX(Ranks!$1:$1048576,$A19,BE$1))","v":""},{"$f":"IF($A19=\"N/A\",Ref!$B$36,INDEX(Ranks!$1:$1048576,$A19,BF$1))","v":""},{"$f":"IF($A19=\"N/A\",Ref!$B$36,INDEX(Ranks!$1:$1048576,$A19,BG$1))","v":""},{"$f":"IF($A19=\"N/A\",Ref!$B$36,INDEX(Ranks!$1:$1048576,$A19,BH$1))","v":""},{"$f":"IF($A19=\"N/A\",Ref!$B$36,INDEX(Ranks!$1:$1048576,$A19,BI$1))","v":""},{"$f":"IF($A19=\"N/A\",Ref!$B$36,INDEX(Ranks!$1:$1048576,$A19,BJ$1))","v":""},{"$f":"IF($A19=\"N/A\",Ref!$B$36,INDEX(Ranks!$1:$1048576,$A19,BK$1))","v":""},{"$f":"IF($A19=\"N/A\",Ref!$B$36,INDEX(Ranks!$1:$1048576,$A19,BL$1))","v":""},{"$f":"IF($A19=\"N/A\",Ref!$B$36,INDEX(Ranks!$1:$1048576,$A19,BM$1))","v":""},{"$f":"IF($A19=\"N/A\",Ref!$B$36,INDEX(Ranks!$1:$1048576,$A19,BN$1))","v":""},{"$f":"IF($A19=\"N/A\",Ref!$B$36,INDEX(Ranks!$1:$1048576,$A19,BO$1))","v":""},{"$f":"IF($A19=\"N/A\",Ref!$B$36,INDEX(Ranks!$1:$1048576,$A19,BP$1))","v":""},{"$f":"IF($A19=\"N/A\",Ref!$B$36,INDEX(Ranks!$1:$1048576,$A19,BQ$1))","v":""},{"$f":"IF($A19=\"N/A\",Ref!$B$36,INDEX(Ranks!$1:$1048576,$A19,BR$1))","v":""},{"$f":"IF($A19=\"N/A\",Ref!$B$36,INDEX(Ranks!$1:$1048576,$A19,BS$1))","v":""},{"$f":"IF($A19=\"N/A\",Ref!$B$36,INDEX(Ranks!$1:$1048576,$A19,BT$1))","v":""},{"$f":"IF($A19=\"N/A\",Ref!$B$36,INDEX(Ranks!$1:$1048576,$A19,BU$1))","v":""},{"$f":"IF($A19=\"N/A\",Ref!$B$36,INDEX(Ranks!$1:$1048576,$A19,BV$1))","v":""},{"$f":"IF($A19=\"N/A\",Ref!$B$36,INDEX(Ranks!$1:$1048576,$A19,BW$1))","v":""},{"$f":"IF($A19=\"N/A\",Ref!$B$36,INDEX(Ranks!$1:$1048576,$A19,BX$1))","v":""},{"$f":"IF($A19=\"N/A\",Ref!$B$36,INDEX(Ranks!$1:$1048576,$A19,BY$1))","v":""},{"$f":"IF($A19=\"N/A\",Ref!$B$36,INDEX(Ranks!$1:$1048576,$A19,BZ$1))","v":""},{"$f":"IF($A19=\"N/A\",Ref!$B$36,INDEX(Ranks!$1:$1048576,$A19,CA$1))","v":""},{"$f":"IF($A19=\"N/A\",Ref!$B$36,INDEX(Ranks!$1:$1048576,$A19,CB$1))","v":""},{"$f":"IF($A19=\"N/A\",Ref!$B$36,INDEX(Ranks!$1:$1048576,$A19,CC$1))","v":""},{"$f":"IF($A19=\"N/A\",Ref!$B$36,INDEX(Ranks!$1:$1048576,$A19,CD$1))","v":""},{"$f":"IF($A19=\"N/A\",Ref!$B$36,INDEX(Ranks!$1:$1048576,$A19,CE$1))","v":""},{"$f":"IF($A19=\"N/A\",Ref!$B$36,INDEX(Ranks!$1:$1048576,$A19,CF$1))","v":""},{"$f":"IF($A19=\"N/A\",Ref!$B$36,INDEX(Ranks!$1:$1048576,$A19,CG$1))","v":""},{"$f":"IF($A19=\"N/A\",Ref!$B$36,INDEX(Ranks!$1:$1048576,$A19,CH$1))","v":""},{"$f":"IF($A19=\"N/A\",Ref!$B$36,INDEX(Ranks!$1:$1048576,$A19,CI$1))","v":""},{"$f":"IF($A19=\"N/A\",Ref!$B$36,INDEX(Ranks!$1:$1048576,$A19,CJ$1))","v":""},{"$f":"IF($A19=\"N/A\",Ref!$B$36,INDEX(Ranks!$1:$1048576,$A19,CK$1))","v":""},{"$f":"IF($A19=\"N/A\",Ref!$B$36,INDEX(Ranks!$1:$1048576,$A19,CL$1))","v":""},{"$f":"IF($A19=\"N/A\",Ref!$B$36,INDEX(Ranks!$1:$1048576,$A19,CM$1))","v":""},{"$f":"IF($A19=\"N/A\",Ref!$B$36,INDEX(Ranks!$1:$1048576,$A19,CN$1))","v":""},{"$f":"IF($A19=\"N/A\",Ref!$B$36,INDEX(Ranks!$1:$1048576,$A19,CO$1))","v":""},{"$f":"IF($A19=\"N/A\",Ref!$B$36,INDEX(Ranks!$1:$1048576,$A19,CP$1))","v":""},{"$f":"IF($A19=\"N/A\",Ref!$B$36,INDEX(Ranks!$1:$1048576,$A19,CQ$1))","v":""},{"$f":"IF($A19=\"N/A\",Ref!$B$36,INDEX(Ranks!$1:$1048576,$A19,CR$1))","v":""},{"$f":"IF($A19=\"N/A\",Ref!$B$36,INDEX(Ranks!$1:$1048576,$A19,CS$1))","v":""},{"$f":"IF($A19=\"N/A\",Ref!$B$36,INDEX(Ranks!$1:$1048576,$A19,CT$1))","v":""},{"$f":"IF($A19=\"N/A\",Ref!$B$36,INDEX(Ranks!$1:$1048576,$A19,CU$1))","v":""},{"$f":"IF($A19=\"N/A\",Ref!$B$36,INDEX(Ranks!$1:$1048576,$A19,CV$1))","v":""},{"$f":"IF($A19=\"N/A\",Ref!$B$36,INDEX(Ranks!$1:$1048576,$A19,CW$1))","v":""},{"$f":"IF($A19=\"N/A\",Ref!$B$36,INDEX(Ranks!$1:$1048576,$A19,CX$1))","v":""},{"$f":"IF($A19=\"N/A\",Ref!$B$36,INDEX(Ranks!$1:$1048576,$A19,CY$1))","v":""},{"$f":"IF($A19=\"N/A\",Ref!$B$36,INDEX(Ranks!$1:$1048576,$A19,CZ$1))","v":""},{"$f":"IF($A19=\"N/A\",Ref!$B$36,INDEX(Ranks!$1:$1048576,$A19,DA$1))","v":""},{"$f":"IF($A19=\"N/A\",Ref!$B$36,INDEX(Ranks!$1:$1048576,$A19,DB$1))","v":""},{"$f":"IF($A19=\"N/A\",Ref!$B$36,INDEX(Ranks!$1:$1048576,$A19,DC$1))","v":""},{"$f":"IF($A19=\"N/A\",Ref!$B$36,INDEX(Ranks!$1:$1048576,$A19,DD$1))","v":""},{"$f":"IF($A19=\"N/A\",Ref!$B$36,INDEX(Ranks!$1:$1048576,$A19,DE$1))","v":""},{"$f":"IF($A19=\"N/A\",Ref!$B$36,INDEX(Ranks!$1:$1048576,$A19,DF$1))","v":""},{"$f":"IF($A19=\"N/A\",Ref!$B$36,INDEX(Ranks!$1:$1048576,$A19,DG$1))","v":""},{"$f":"IF($A19=\"N/A\",Ref!$B$36,INDEX(Ranks!$1:$1048576,$A19,DH$1))","v":""},{"$f":"IF($A19=\"N/A\",Ref!$B$36,INDEX(Ranks!$1:$1048576,$A19,DI$1))","v":""},{"$f":"IF($A19=\"N/A\",Ref!$B$36,INDEX(Ranks!$1:$1048576,$A19,DJ$1))","v":""},{"$f":"IF($A19=\"N/A\",Ref!$B$36,INDEX(Ranks!$1:$1048576,$A19,DK$1))","v":""},{"$f":"IF($A19=\"N/A\",Ref!$B$36,INDEX(Ranks!$1:$1048576,$A19,DL$1))","v":""},{"$f":"IF($A19=\"N/A\",Ref!$B$36,INDEX(Ranks!$1:$1048576,$A19,DM$1))","v":""},{"$f":"IF($A19=\"N/A\",Ref!$B$36,INDEX(Ranks!$1:$1048576,$A19,DN$1))","v":""},{"$f":"IF($A19=\"N/A\",Ref!$B$36,INDEX(Ranks!$1:$1048576,$A19,DO$1))","v":""},{"$f":"IF($A19=\"N/A\",Ref!$B$36,INDEX(Ranks!$1:$1048576,$A19,DP$1))","v":""},{"$f":"IF($A19=\"N/A\",Ref!$B$36,INDEX(Ranks!$1:$1048576,$A19,DQ$1))","v":""},{"$f":"IF($A19=\"N/A\",Ref!$B$36,INDEX(Ranks!$1:$1048576,$A19,DR$1))","v":""},{"$f":"IF($A19=\"N/A\",Ref!$B$36,INDEX(Ranks!$1:$1048576,$A19,DS$1))","v":""},{"$f":"IF($A19=\"N/A\",Ref!$B$36,INDEX(Ranks!$1:$1048576,$A19,DT$1))","v":""},{"$f":"IF($A19=\"N/A\",Ref!$B$36,INDEX(Ranks!$1:$1048576,$A19,DU$1))","v":""},{"$f":"IF($A19=\"N/A\",Ref!$B$36,INDEX(Ranks!$1:$1048576,$A19,DV$1))","v":""},{"$f":"IF($A19=\"N/A\",Ref!$B$36,INDEX(Ranks!$1:$1048576,$A19,DW$1))","v":""},{"$f":"IF($A19=\"N/A\",Ref!$B$36,INDEX(Ranks!$1:$1048576,$A19,DX$1))","v":""},{"$f":"IF($A19=\"N/A\",Ref!$B$36,INDEX(Ranks!$1:$1048576,$A19,DY$1))","v":""},{"$f":"IF($A19=\"N/A\",Ref!$B$36,INDEX(Ranks!$1:$1048576,$A19,DZ$1))","v":""},{"$f":"IF($A19=\"N/A\",Ref!$B$36,INDEX(Ranks!$1:$1048576,$A19,EA$1))","v":""},{"$f":"IF($A19=\"N/A\",Ref!$B$36,INDEX(Ranks!$1:$1048576,$A19,EB$1))","v":""}]
[{"$f":"IFERROR(MATCH('Portfolio Page'!L20,Ranks!L:L,0),\"N/A\")","v":"N/A"},null,{"$f":"IF($A20=\"N/A\",\"\",INDEX(Ranks!$1:$1048576,$A20,C$1))","v":""},{"$f":"IF($A20=\"N/A\",Ref!$B$36,INDEX(Ranks!$1:$1048576,$A20,D$1))","v":""},{"$f":"IF($A20=\"N/A\",Ref!$B$36,INDEX(Ranks!$1:$1048576,$A20,E$1))","v":""},{"$f":"IF($A20=\"N/A\",\"\",INDEX(Ranks!$1:$1048576,$A20,F$1))","v":""},{"$f":"IF($A20=\"N/A\",\"\",INDEX(Ranks!$1:$1048576,$A20,G$1))","v":""},{"$f":"IF($A20=\"N/A\",\"\",INDEX(Ranks!$1:$1048576,$A20,H$1))","v":""},{"$f":"IF($A20=\"N/A\",\"\",INDEX(Ranks!$1:$1048576,$A20,I$1))","v":""},{"$f":"IF($A20=\"N/A\",\"\",INDEX(Ranks!$1:$1048576,$A20,J$1))","v":""},{"$f":"IF($A20=\"N/A\",\"\",INDEX(Ranks!$1:$1048576,$A20,K$1))","v":""},null,{"$f":"IF($A20=\"N/A\",Ref!$B$36,INDEX(Ranks!$1:$1048576,$A20,M$1))","v":""},{"$f":"IF($A20=\"N/A\",Ref!$B$36,INDEX(Ranks!$1:$1048576,$A20,N$1))","v":""},{"$f":"IF($A20=\"N/A\",Ref!$B$36,INDEX(Ranks!$1:$1048576,$A20,O$1))","v":""},{"$f":"IF($A20=\"N/A\",Ref!$B$36,INDEX(Ranks!$1:$1048576,$A20,P$1))","v":""},{"$f":"IF($A20=\"N/A\",Ref!$B$36,INDEX(Ranks!$1:$1048576,$A20,Q$1))","v":""},{"$f":"IF($A20=\"N/A\",Ref!$B$36,INDEX(Ranks!$1:$1048576,$A20,R$1))","v":""},{"$f":"IF($A20=\"N/A\",Ref!$B$36,INDEX(Ranks!$1:$1048576,$A20,S$1))","v":""},{"$f":"IF($A20=\"N/A\",Ref!$B$36,INDEX(Ranks!$1:$1048576,$A20,T$1))","v":""},{"$f":"IF($A20=\"N/A\",Ref!$B$36,INDEX(Ranks!$1:$1048576,$A20,U$1))","v":""},{"$f":"IF($A20=\"N/A\",Ref!$B$36,INDEX(Ranks!$1:$1048576,$A20,V$1))","v":""},{"$f":"IF($A20=\"N/A\",Ref!$B$36,INDEX(Ranks!$1:$1048576,$A20,W$1))","v":""},{"$f":"IF($A20=\"N/A\",Ref!$B$36,INDEX(Ranks!$1:$1048576,$A20,X$1))","v":""},{"$f":"IF($A20=\"N/A\",Ref!$B$36,INDEX(Ranks!$1:$1048576,$A20,Y$1))","v":""},{"$f":"IF($A20=\"N/A\",Ref!$B$36,INDEX(Ranks!$1:$1048576,$A20,Z$1))","v":""},{"$f":"IF($A20=\"N/A\",Ref!$B$36,INDEX(Ranks!$1:$1048576,$A20,AA$1))","v":""},{"$f":"IF($A20=\"N/A\",Ref!$B$36,INDEX(Ranks!$1:$1048576,$A20,AB$1))","v":""},{"$f":"IF($A20=\"N/A\",Ref!$B$36,INDEX(Ranks!$1:$1048576,$A20,AC$1))","v":""},{"$f":"IF($A20=\"N/A\",Ref!$B$36,INDEX(Ranks!$1:$1048576,$A20,AD$1))","v":""},{"$f":"IF($A20=\"N/A\",Ref!$B$36,INDEX(Ranks!$1:$1048576,$A20,AE$1))","v":""},{"$f":"IF($A20=\"N/A\",Ref!$B$36,INDEX(Ranks!$1:$1048576,$A20,AF$1))","v":""},{"$f":"IF($A20=\"N/A\",Ref!$B$36,INDEX(Ranks!$1:$1048576,$A20,AG$1))","v":""},{"$f":"IF($A20=\"N/A\",Ref!$B$36,INDEX(Ranks!$1:$1048576,$A20,AH$1))","v":""},{"$f":"IF($A20=\"N/A\",Ref!$B$36,INDEX(Ranks!$1:$1048576,$A20,AI$1))","v":""},{"$f":"IF($A20=\"N/A\",Ref!$B$36,INDEX(Ranks!$1:$1048576,$A20,AJ$1))","v":""},{"$f":"IF($A20=\"N/A\",Ref!$B$36,INDEX(Ranks!$1:$1048576,$A20,AK$1))","v":""},{"$f":"IF($A20=\"N/A\",Ref!$B$36,INDEX(Ranks!$1:$1048576,$A20,AL$1))","v":""},{"$f":"IF($A20=\"N/A\",Ref!$B$36,INDEX(Ranks!$1:$1048576,$A20,AM$1))","v":""},{"$f":"IF($A20=\"N/A\",Ref!$B$36,INDEX(Ranks!$1:$1048576,$A20,AN$1))","v":""},{"$f":"IF($A20=\"N/A\",Ref!$B$36,INDEX(Ranks!$1:$1048576,$A20,AO$1))","v":""},{"$f":"IF($A20=\"N/A\",Ref!$B$36,INDEX(Ranks!$1:$1048576,$A20,AP$1))","v":""},{"$f":"IF($A20=\"N/A\",Ref!$B$36,INDEX(Ranks!$1:$1048576,$A20,AQ$1))","v":""},{"$f":"IF($A20=\"N/A\",Ref!$B$36,INDEX(Ranks!$1:$1048576,$A20,AR$1))","v":""},{"$f":"IF($A20=\"N/A\",Ref!$B$36,INDEX(Ranks!$1:$1048576,$A20,AS$1))","v":""},{"$f":"IF($A20=\"N/A\",Ref!$B$36,INDEX(Ranks!$1:$1048576,$A20,AT$1))","v":""},{"$f":"IF($A20=\"N/A\",Ref!$B$36,INDEX(Ranks!$1:$1048576,$A20,AU$1))","v":""},{"$f":"IF($A20=\"N/A\",Ref!$B$36,INDEX(Ranks!$1:$1048576,$A20,AV$1))","v":""},{"$f":"IF($A20=\"N/A\",Ref!$B$36,INDEX(Ranks!$1:$1048576,$A20,AW$1))","v":""},{"$f":"IF($A20=\"N/A\",Ref!$B$36,INDEX(Ranks!$1:$1048576,$A20,AX$1))","v":""},{"$f":"IF($A20=\"N/A\",Ref!$B$36,INDEX(Ranks!$1:$1048576,$A20,AY$1))","v":""},{"$f":"IF($A20=\"N/A\",Ref!$B$36,INDEX(Ranks!$1:$1048576,$A20,AZ$1))","v":""},{"$f":"IF($A20=\"N/A\",Ref!$B$36,INDEX(Ranks!$1:$1048576,$A20,BA$1))","v":""},{"$f":"IF($A20=\"N/A\",Ref!$B$36,INDEX(Ranks!$1:$1048576,$A20,BB$1))","v":""},{"$f":"IF($A20=\"N/A\",Ref!$B$36,INDEX(Ranks!$1:$1048576,$A20,BC$1))","v":""},{"$f":"IF($A20=\"N/A\",Ref!$B$36,INDEX(Ranks!$1:$1048576,$A20,BD$1))","v":""},{"$f":"IF($A20=\"N/A\",Ref!$B$36,INDEX(Ranks!$1:$1048576,$A20,BE$1))","v":""},{"$f":"IF($A20=\"N/A\",Ref!$B$36,INDEX(Ranks!$1:$1048576,$A20,BF$1))","v":""},{"$f":"IF($A20=\"N/A\",Ref!$B$36,INDEX(Ranks!$1:$1048576,$A20,BG$1))","v":""},{"$f":"IF($A20=\"N/A\",Ref!$B$36,INDEX(Ranks!$1:$1048576,$A20,BH$1))","v":""},{"$f":"IF($A20=\"N/A\",Ref!$B$36,INDEX(Ranks!$1:$1048576,$A20,BI$1))","v":""},{"$f":"IF($A20=\"N/A\",Ref!$B$36,INDEX(Ranks!$1:$1048576,$A20,BJ$1))","v":""},{"$f":"IF($A20=\"N/A\",Ref!$B$36,INDEX(Ranks!$1:$1048576,$A20,BK$1))","v":""},{"$f":"IF($A20=\"N/A\",Ref!$B$36,INDEX(Ranks!$1:$1048576,$A20,BL$1))","v":""},{"$f":"IF($A20=\"N/A\",Ref!$B$36,INDEX(Ranks!$1:$1048576,$A20,BM$1))","v":""},{"$f":"IF($A20=\"N/A\",Ref!$B$36,INDEX(Ranks!$1:$1048576,$A20,BN$1))","v":""},{"$f":"IF($A20=\"N/A\",Ref!$B$36,INDEX(Ranks!$1:$1048576,$A20,BO$1))","v":""},{"$f":"IF($A20=\"N/A\",Ref!$B$36,INDEX(Ranks!$1:$1048576,$A20,BP$1))","v":""},{"$f":"IF($A20=\"N/A\",Ref!$B$36,INDEX(Ranks!$1:$1048576,$A20,BQ$1))","v":""},{"$f":"IF($A20=\"N/A\",Ref!$B$36,INDEX(Ranks!$1:$1048576,$A20,BR$1))","v":""},{"$f":"IF($A20=\"N/A\",Ref!$B$36,INDEX(Ranks!$1:$1048576,$A20,BS$1))","v":""},{"$f":"IF($A20=\"N/A\",Ref!$B$36,INDEX(Ranks!$1:$1048576,$A20,BT$1))","v":""},{"$f":"IF($A20=\"N/A\",Ref!$B$36,INDEX(Ranks!$1:$1048576,$A20,BU$1))","v":""},{"$f":"IF($A20=\"N/A\",Ref!$B$36,INDEX(Ranks!$1:$1048576,$A20,BV$1))","v":""},{"$f":"IF($A20=\"N/A\",Ref!$B$36,INDEX(Ranks!$1:$1048576,$A20,BW$1))","v":""},{"$f":"IF($A20=\"N/A\",Ref!$B$36,INDEX(Ranks!$1:$1048576,$A20,BX$1))","v":""},{"$f":"IF($A20=\"N/A\",Ref!$B$36,INDEX(Ranks!$1:$1048576,$A20,BY$1))","v":""},{"$f":"IF($A20=\"N/A\",Ref!$B$36,INDEX(Ranks!$1:$1048576,$A20,BZ$1))","v":""},{"$f":"IF($A20=\"N/A\",Ref!$B$36,INDEX(Ranks!$1:$1048576,$A20,CA$1))","v":""},{"$f":"IF($A20=\"N/A\",Ref!$B$36,INDEX(Ranks!$1:$1048576,$A20,CB$1))","v":""},{"$f":"IF($A20=\"N/A\",Ref!$B$36,INDEX(Ranks!$1:$1048576,$A20,CC$1))","v":""},{"$f":"IF($A20=\"N/A\",Ref!$B$36,INDEX(Ranks!$1:$1048576,$A20,CD$1))","v":""},{"$f":"IF($A20=\"N/A\",Ref!$B$36,INDEX(Ranks!$1:$1048576,$A20,CE$1))","v":""},{"$f":"IF($A20=\"N/A\",Ref!$B$36,INDEX(Ranks!$1:$1048576,$A20,CF$1))","v":""},{"$f":"IF($A20=\"N/A\",Ref!$B$36,INDEX(Ranks!$1:$1048576,$A20,CG$1))","v":""},{"$f":"IF($A20=\"N/A\",Ref!$B$36,INDEX(Ranks!$1:$1048576,$A20,CH$1))","v":""},{"$f":"IF($A20=\"N/A\",Ref!$B$36,INDEX(Ranks!$1:$1048576,$A20,CI$1))","v":""},{"$f":"IF($A20=\"N/A\",Ref!$B$36,INDEX(Ranks!$1:$1048576,$A20,CJ$1))","v":""},{"$f":"IF($A20=\"N/A\",Ref!$B$36,INDEX(Ranks!$1:$1048576,$A20,CK$1))","v":""},{"$f":"IF($A20=\"N/A\",Ref!$B$36,INDEX(Ranks!$1:$1048576,$A20,CL$1))","v":""},{"$f":"IF($A20=\"N/A\",Ref!$B$36,INDEX(Ranks!$1:$1048576,$A20,CM$1))","v":""},{"$f":"IF($A20=\"N/A\",Ref!$B$36,INDEX(Ranks!$1:$1048576,$A20,CN$1))","v":""},{"$f":"IF($A20=\"N/A\",Ref!$B$36,INDEX(Ranks!$1:$1048576,$A20,CO$1))","v":""},{"$f":"IF($A20=\"N/A\",Ref!$B$36,INDEX(Ranks!$1:$1048576,$A20,CP$1))","v":""},{"$f":"IF($A20=\"N/A\",Ref!$B$36,INDEX(Ranks!$1:$1048576,$A20,CQ$1))","v":""},{"$f":"IF($A20=\"N/A\",Ref!$B$36,INDEX(Ranks!$1:$1048576,$A20,CR$1))","v":""},{"$f":"IF($A20=\"N/A\",Ref!$B$36,INDEX(Ranks!$1:$1048576,$A20,CS$1))","v":""},{"$f":"IF($A20=\"N/A\",Ref!$B$36,INDEX(Ranks!$1:$1048576,$A20,CT$1))","v":""},{"$f":"IF($A20=\"N/A\",Ref!$B$36,INDEX(Ranks!$1:$1048576,$A20,CU$1))","v":""},{"$f":"IF($A20=\"N/A\",Ref!$B$36,INDEX(Ranks!$1:$1048576,$A20,CV$1))","v":""},{"$f":"IF($A20=\"N/A\",Ref!$B$36,INDEX(Ranks!$1:$1048576,$A20,CW$1))","v":""},{"$f":"IF($A20=\"N/A\",Ref!$B$36,INDEX(Ranks!$1:$1048576,$A20,CX$1))","v":""},{"$f":"IF($A20=\"N/A\",Ref!$B$36,INDEX(Ranks!$1:$1048576,$A20,CY$1))","v":""},{"$f":"IF($A20=\"N/A\",Ref!$B$36,INDEX(Ranks!$1:$1048576,$A20,CZ$1))","v":""},{"$f":"IF($A20=\"N/A\",Ref!$B$36,INDEX(Ranks!$1:$1048576,$A20,DA$1))","v":""},{"$f":"IF($A20=\"N/A\",Ref!$B$36,INDEX(Ranks!$1:$1048576,$A20,DB$1))","v":""},{"$f":"IF($A20=\"N/A\",Ref!$B$36,INDEX(Ranks!$1:$1048576,$A20,DC$1))","v":""},{"$f":"IF($A20=\"N/A\",Ref!$B$36,INDEX(Ranks!$1:$1048576,$A20,DD$1))","v":""},{"$f":"IF($A20=\"N/A\",Ref!$B$36,INDEX(Ranks!$1:$1048576,$A20,DE$1))","v":""},{"$f":"IF($A20=\"N/A\",Ref!$B$36,INDEX(Ranks!$1:$1048576,$A20,DF$1))","v":""},{"$f":"IF($A20=\"N/A\",Ref!$B$36,INDEX(Ranks!$1:$1048576,$A20,DG$1))","v":""},{"$f":"IF($A20=\"N/A\",Ref!$B$36,INDEX(Ranks!$1:$1048576,$A20,DH$1))","v":""},{"$f":"IF($A20=\"N/A\",Ref!$B$36,INDEX(Ranks!$1:$1048576,$A20,DI$1))","v":""},{"$f":"IF($A20=\"N/A\",Ref!$B$36,INDEX(Ranks!$1:$1048576,$A20,DJ$1))","v":""},{"$f":"IF($A20=\"N/A\",Ref!$B$36,INDEX(Ranks!$1:$1048576,$A20,DK$1))","v":""},{"$f":"IF($A20=\"N/A\",Ref!$B$36,INDEX(Ranks!$1:$1048576,$A20,DL$1))","v":""},{"$f":"IF($A20=\"N/A\",Ref!$B$36,INDEX(Ranks!$1:$1048576,$A20,DM$1))","v":""},{"$f":"IF($A20=\"N/A\",Ref!$B$36,INDEX(Ranks!$1:$1048576,$A20,DN$1))","v":""},{"$f":"IF($A20=\"N/A\",Ref!$B$36,INDEX(Ranks!$1:$1048576,$A20,DO$1))","v":""},{"$f":"IF($A20=\"N/A\",Ref!$B$36,INDEX(Ranks!$1:$1048576,$A20,DP$1))","v":""},{"$f":"IF($A20=\"N/A\",Ref!$B$36,INDEX(Ranks!$1:$1048576,$A20,DQ$1))","v":""},{"$f":"IF($A20=\"N/A\",Ref!$B$36,INDEX(Ranks!$1:$1048576,$A20,DR$1))","v":""},{"$f":"IF($A20=\"N/A\",Ref!$B$36,INDEX(Ranks!$1:$1048576,$A20,DS$1))","v":""},{"$f":"IF($A20=\"N/A\",Ref!$B$36,INDEX(Ranks!$1:$1048576,$A20,DT$1))","v":""},{"$f":"IF($A20=\"N/A\",Ref!$B$36,INDEX(Ranks!$1:$1048576,$A20,DU$1))","v":""},{"$f":"IF($A20=\"N/A\",Ref!$B$36,INDEX(Ranks!$1:$1048576,$A20,DV$1))","v":""},{"$f":"IF($A20=\"N/A\",Ref!$B$36,INDEX(Ranks!$1:$1048576,$A20,DW$1))","v":""},{"$f":"IF($A20=\"N/A\",Ref!$B$36,INDEX(Ranks!$1:$1048576,$A20,DX$1))","v":""},{"$f":"IF($A20=\"N/A\",Ref!$B$36,INDEX(Ranks!$1:$1048576,$A20,DY$1))","v":""},{"$f":"IF($A20=\"N/A\",Ref!$B$36,INDEX(Ranks!$1:$1048576,$A20,DZ$1))","v":""},{"$f":"IF($A20=\"N/A\",Ref!$B$36,INDEX(Ranks!$1:$1048576,$A20,EA$1))","v":""},{"$f":"IF($A20=\"N/A\",Ref!$B$36,INDEX(Ranks!$1:$1048576,$A20,EB$1))","v":""}]
[{"$f":"IFERROR(MATCH('Portfolio Page'!L21,Ranks!L:L,0),\"N/A\")","v":"N/A"},null,{"$f":"IF($A21=\"N/A\",\"\",INDEX(Ranks!$1:$1048576,$A21,C$1))","v":""},{"$f":"IF($A21=\"N/A\",Ref!$B$36,INDEX(Ranks!$1:$1048576,$A21,D$1))","v":""},{"$f":"IF($A21=\"N/A\",Ref!$B$36,INDEX(Ranks!$1:$1048576,$A21,E$1))","v":""},{"$f":"IF($A21=\"N/A\",\"\",INDEX(Ranks!$1:$1048576,$A21,F$1))","v":""},{"$f":"IF($A21=\"N/A\",\"\",INDEX(Ranks!$1:$1048576,$A21,G$1))","v":""},{"$f":"IF($A21=\"N/A\",\"\",INDEX(Ranks!$1:$1048576,$A21,H$1))","v":""},{"$f":"IF($A21=\"N/A\",\"\",INDEX(Ranks!$1:$1048576,$A21,I$1))","v":""},{"$f":"IF($A21=\"N/A\",\"\",INDEX(Ranks!$1:$1048576,$A21,J$1))","v":""},{"$f":"IF($A21=\"N/A\",\"\",INDEX(Ranks!$1:$1048576,$A21,K$1))","v":""},null,{"$f":"IF($A21=\"N/A\",Ref!$B$36,INDEX(Ranks!$1:$1048576,$A21,M$1))","v":""},{"$f":"IF($A21=\"N/A\",Ref!$B$36,INDEX(Ranks!$1:$1048576,$A21,N$1))","v":""},{"$f":"IF($A21=\"N/A\",Ref!$B$36,INDEX(Ranks!$1:$1048576,$A21,O$1))","v":""},{"$f":"IF($A21=\"N/A\",Ref!$B$36,INDEX(Ranks!$1:$1048576,$A21,P$1))","v":""},{"$f":"IF($A21=\"N/A\",Ref!$B$36,INDEX(Ranks!$1:$1048576,$A21,Q$1))","v":""},{"$f":"IF($A21=\"N/A\",Ref!$B$36,INDEX(Ranks!$1:$1048576,$A21,R$1))","v":""},{"$f":"IF($A21=\"N/A\",Ref!$B$36,INDEX(Ranks!$1:$1048576,$A21,S$1))","v":""},{"$f":"IF($A21=\"N/A\",Ref!$B$36,INDEX(Ranks!$1:$1048576,$A21,T$1))","v":""},{"$f":"IF($A21=\"N/A\",Ref!$B$36,INDEX(Ranks!$1:$1048576,$A21,U$1))","v":""},{"$f":"IF($A21=\"N/A\",Ref!$B$36,INDEX(Ranks!$1:$1048576,$A21,V$1))","v":""},{"$f":"IF($A21=\"N/A\",Ref!$B$36,INDEX(Ranks!$1:$1048576,$A21,W$1))","v":""},{"$f":"IF($A21=\"N/A\",Ref!$B$36,INDEX(Ranks!$1:$1048576,$A21,X$1))","v":""},{"$f":"IF($A21=\"N/A\",Ref!$B$36,INDEX(Ranks!$1:$1048576,$A21,Y$1))","v":""},{"$f":"IF($A21=\"N/A\",Ref!$B$36,INDEX(Ranks!$1:$1048576,$A21,Z$1))","v":""},{"$f":"IF($A21=\"N/A\",Ref!$B$36,INDEX(Ranks!$1:$1048576,$A21,AA$1))","v":""},{"$f":"IF($A21=\"N/A\",Ref!$B$36,INDEX(Ranks!$1:$1048576,$A21,AB$1))","v":""},{"$f":"IF($A21=\"N/A\",Ref!$B$36,INDEX(Ranks!$1:$1048576,$A21,AC$1))","v":""},{"$f":"IF($A21=\"N/A\",Ref!$B$36,INDEX(Ranks!$1:$1048576,$A21,AD$1))","v":""},{"$f":"IF($A21=\"N/A\",Ref!$B$36,INDEX(Ranks!$1:$1048576,$A21,AE$1))","v":""},{"$f":"IF($A21=\"N/A\",Ref!$B$36,INDEX(Ranks!$1:$1048576,$A21,AF$1))","v":""},{"$f":"IF($A21=\"N/A\",Ref!$B$36,INDEX(Ranks!$1:$1048576,$A21,AG$1))","v":""},{"$f":"IF($A21=\"N/A\",Ref!$B$36,INDEX(Ranks!$1:$1048576,$A21,AH$1))","v":""},{"$f":"IF($A21=\"N/A\",Ref!$B$36,INDEX(Ranks!$1:$1048576,$A21,AI$1))","v":""},{"$f":"IF($A21=\"N/A\",Ref!$B$36,INDEX(Ranks!$1:$1048576,$A21,AJ$1))","v":""},{"$f":"IF($A21=\"N/A\",Ref!$B$36,INDEX(Ranks!$1:$1048576,$A21,AK$1))","v":""},{"$f":"IF($A21=\"N/A\",Ref!$B$36,INDEX(Ranks!$1:$1048576,$A21,AL$1))","v":""},{"$f":"IF($A21=\"N/A\",Ref!$B$36,INDEX(Ranks!$1:$1048576,$A21,AM$1))","v":""},{"$f":"IF($A21=\"N/A\",Ref!$B$36,INDEX(Ranks!$1:$1048576,$A21,AN$1))","v":""},{"$f":"IF($A21=\"N/A\",Ref!$B$36,INDEX(Ranks!$1:$1048576,$A21,AO$1))","v":""},{"$f":"IF($A21=\"N/A\",Ref!$B$36,INDEX(Ranks!$1:$1048576,$A21,AP$1))","v":""},{"$f":"IF($A21=\"N/A\",Ref!$B$36,INDEX(Ranks!$1:$1048576,$A21,AQ$1))","v":""},{"$f":"IF($A21=\"N/A\",Ref!$B$36,INDEX(Ranks!$1:$1048576,$A21,AR$1))","v":""},{"$f":"IF($A21=\"N/A\",Ref!$B$36,INDEX(Ranks!$1:$1048576,$A21,AS$1))","v":""},{"$f":"IF($A21=\"N/A\",Ref!$B$36,INDEX(Ranks!$1:$1048576,$A21,AT$1))","v":""},{"$f":"IF($A21=\"N/A\",Ref!$B$36,INDEX(Ranks!$1:$1048576,$A21,AU$1))","v":""},{"$f":"IF($A21=\"N/A\",Ref!$B$36,INDEX(Ranks!$1:$1048576,$A21,AV$1))","v":""},{"$f":"IF($A21=\"N/A\",Ref!$B$36,INDEX(Ranks!$1:$1048576,$A21,AW$1))","v":""},{"$f":"IF($A21=\"N/A\",Ref!$B$36,INDEX(Ranks!$1:$1048576,$A21,AX$1))","v":""},{"$f":"IF($A21=\"N/A\",Ref!$B$36,INDEX(Ranks!$1:$1048576,$A21,AY$1))","v":""},{"$f":"IF($A21=\"N/A\",Ref!$B$36,INDEX(Ranks!$1:$1048576,$A21,AZ$1))","v":""},{"$f":"IF($A21=\"N/A\",Ref!$B$36,INDEX(Ranks!$1:$1048576,$A21,BA$1))","v":""},{"$f":"IF($A21=\"N/A\",Ref!$B$36,INDEX(Ranks!$1:$1048576,$A21,BB$1))","v":""},{"$f":"IF($A21=\"N/A\",Ref!$B$36,INDEX(Ranks!$1:$1048576,$A21,BC$1))","v":""},{"$f":"IF($A21=\"N/A\",Ref!$B$36,INDEX(Ranks!$1:$1048576,$A21,BD$1))","v":""},{"$f":"IF($A21=\"N/A\",Ref!$B$36,INDEX(Ranks!$1:$1048576,$A21,BE$1))","v":""},{"$f":"IF($A21=\"N/A\",Ref!$B$36,INDEX(Ranks!$1:$1048576,$A21,BF$1))","v":""},{"$f":"IF($A21=\"N/A\",Ref!$B$36,INDEX(Ranks!$1:$1048576,$A21,BG$1))","v":""},{"$f":"IF($A21=\"N/A\",Ref!$B$36,INDEX(Ranks!$1:$1048576,$A21,BH$1))","v":""},{"$f":"IF($A21=\"N/A\",Ref!$B$36,INDEX(Ranks!$1:$1048576,$A21,BI$1))","v":""},{"$f":"IF($A21=\"N/A\",Ref!$B$36,INDEX(Ranks!$1:$1048576,$A21,BJ$1))","v":""},{"$f":"IF($A21=\"N/A\",Ref!$B$36,INDEX(Ranks!$1:$1048576,$A21,BK$1))","v":""},{"$f":"IF($A21=\"N/A\",Ref!$B$36,INDEX(Ranks!$1:$1048576,$A21,BL$1))","v":""},{"$f":"IF($A21=\"N/A\",Ref!$B$36,INDEX(Ranks!$1:$1048576,$A21,BM$1))","v":""},{"$f":"IF($A21=\"N/A\",Ref!$B$36,INDEX(Ranks!$1:$1048576,$A21,BN$1))","v":""},{"$f":"IF($A21=\"N/A\",Ref!$B$36,INDEX(Ranks!$1:$1048576,$A21,BO$1))","v":""},{"$f":"IF($A21=\"N/A\",Ref!$B$36,INDEX(Ranks!$1:$1048576,$A21,BP$1))","v":""},{"$f":"IF($A21=\"N/A\",Ref!$B$36,INDEX(Ranks!$1:$1048576,$A21,BQ$1))","v":""},{"$f":"IF($A21=\"N/A\",Ref!$B$36,INDEX(Ranks!$1:$1048576,$A21,BR$1))","v":""},{"$f":"IF($A21=\"N/A\",Ref!$B$36,INDEX(Ranks!$1:$1048576,$A21,BS$1))","v":""},{"$f":"IF($A21=\"N/A\",Ref!$B$36,INDEX(Ranks!$1:$1048576,$A21,BT$1))","v":""},{"$f":"IF($A21=\"N/A\",Ref!$B$36,INDEX(Ranks!$1:$1048576,$A21,BU$1))","v":""},{"$f":"IF($A21=\"N/A\",Ref!$B$36,INDEX(Ranks!$1:$1048576,$A21,BV$1))","v":""},{"$f":"IF($A21=\"N/A\",Ref!$B$36,INDEX(Ranks!$1:$1048576,$A21,BW$1))","v":""},{"$f":"IF($A21=\"N/A\",Ref!$B$36,INDEX(Ranks!$1:$1048576,$A21,BX$1))","v":""},{"$f":"IF($A21=\"N/A\",Ref!$B$36,INDEX(Ranks!$1:$1048576,$A21,BY$1))","v":""},{"$f":"IF($A21=\"N/A\",Ref!$B$36,INDEX(Ranks!$1:$1048576,$A21,BZ$1))","v":""},{"$f":"IF($A21=\"N/A\",Ref!$B$36,INDEX(Ranks!$1:$1048576,$A21,CA$1))","v":""},{"$f":"IF($A21=\"N/A\",Ref!$B$36,INDEX(Ranks!$1:$1048576,$A21,CB$1))","v":""},{"$f":"IF($A21=\"N/A\",Ref!$B$36,INDEX(Ranks!$1:$1048576,$A21,CC$1))","v":""},{"$f":"IF($A21=\"N/A\",Ref!$B$36,INDEX(Ranks!$1:$1048576,$A21,CD$1))","v":""},{"$f":"IF($A21=\"N/A\",Ref!$B$36,INDEX(Ranks!$1:$1048576,$A21,CE$1))","v":""},{"$f":"IF($A21=\"N/A\",Ref!$B$36,INDEX(Ranks!$1:$1048576,$A21,CF$1))","v":""},{"$f":"IF($A21=\"N/A\",Ref!$B$36,INDEX(Ranks!$1:$1048576,$A21,CG$1))","v":""},{"$f":"IF($A21=\"N/A\",Ref!$B$36,INDEX(Ranks!$1:$1048576,$A21,CH$1))","v":""},{"$f":"IF($A21=\"N/A\",Ref!$B$36,INDEX(Ranks!$1:$1048576,$A21,CI$1))","v":""},{"$f":"IF($A21=\"N/A\",Ref!$B$36,INDEX(Ranks!$1:$1048576,$A21,CJ$1))","v":""},{"$f":"IF($A21=\"N/A\",Ref!$B$36,INDEX(Ranks!$1:$1048576,$A21,CK$1))","v":""},{"$f":"IF($A21=\"N/A\",Ref!$B$36,INDEX(Ranks!$1:$1048576,$A21,CL$1))","v":""},{"$f":"IF($A21=\"N/A\",Ref!$B$36,INDEX(Ranks!$1:$1048576,$A21,CM$1))","v":""},{"$f":"IF($A21=\"N/A\",Ref!$B$36,INDEX(Ranks!$1:$1048576,$A21,CN$1))","v":""},{"$f":"IF($A21=\"N/A\",Ref!$B$36,INDEX(Ranks!$1:$1048576,$A21,CO$1))","v":""},{"$f":"IF($A21=\"N/A\",Ref!$B$36,INDEX(Ranks!$1:$1048576,$A21,CP$1))","v":""},{"$f":"IF($A21=\"N/A\",Ref!$B$36,INDEX(Ranks!$1:$1048576,$A21,CQ$1))","v":""},{"$f":"IF($A21=\"N/A\",Ref!$B$36,INDEX(Ranks!$1:$1048576,$A21,CR$1))","v":""},{"$f":"IF($A21=\"N/A\",Ref!$B$36,INDEX(Ranks!$1:$1048576,$A21,CS$1))","v":""},{"$f":"IF($A21=\"N/A\",Ref!$B$36,INDEX(Ranks!$1:$1048576,$A21,CT$1))","v":""},{"$f":"IF($A21=\"N/A\",Ref!$B$36,INDEX(Ranks!$1:$1048576,$A21,CU$1))","v":""},{"$f":"IF($A21=\"N/A\",Ref!$B$36,INDEX(Ranks!$1:$1048576,$A21,CV$1))","v":""},{"$f":"IF($A21=\"N/A\",Ref!$B$36,INDEX(Ranks!$1:$1048576,$A21,CW$1))","v":""},{"$f":"IF($A21=\"N/A\",Ref!$B$36,INDEX(Ranks!$1:$1048576,$A21,CX$1))","v":""},{"$f":"IF($A21=\"N/A\",Ref!$B$36,INDEX(Ranks!$1:$1048576,$A21,CY$1))","v":""},{"$f":"IF($A21=\"N/A\",Ref!$B$36,INDEX(Ranks!$1:$1048576,$A21,CZ$1))","v":""},{"$f":"IF($A21=\"N/A\",Ref!$B$36,INDEX(Ranks!$1:$1048576,$A21,DA$1))","v":""},{"$f":"IF($A21=\"N/A\",Ref!$B$36,INDEX(Ranks!$1:$1048576,$A21,DB$1))","v":""},{"$f":"IF($A21=\"N/A\",Ref!$B$36,INDEX(Ranks!$1:$1048576,$A21,DC$1))","v":""},{"$f":"IF($A21=\"N/A\",Ref!$B$36,INDEX(Ranks!$1:$1048576,$A21,DD$1))","v":""},{"$f":"IF($A21=\"N/A\",Ref!$B$36,INDEX(Ranks!$1:$1048576,$A21,DE$1))","v":""},{"$f":"IF($A21=\"N/A\",Ref!$B$36,INDEX(Ranks!$1:$1048576,$A21,DF$1))","v":""},{"$f":"IF($A21=\"N/A\",Ref!$B$36,INDEX(Ranks!$1:$1048576,$A21,DG$1))","v":""},{"$f":"IF($A21=\"N/A\",Ref!$B$36,INDEX(Ranks!$1:$1048576,$A21,DH$1))","v":""},{"$f":"IF($A21=\"N/A\",Ref!$B$36,INDEX(Ranks!$1:$1048576,$A21,DI$1))","v":""},{"$f":"IF($A21=\"N/A\",Ref!$B$36,INDEX(Ranks!$1:$1048576,$A21,DJ$1))","v":""},{"$f":"IF($A21=\"N/A\",Ref!$B$36,INDEX(Ranks!$1:$1048576,$A21,DK$1))","v":""},{"$f":"IF($A21=\"N/A\",Ref!$B$36,INDEX(Ranks!$1:$1048576,$A21,DL$1))","v":""},{"$f":"IF($A21=\"N/A\",Ref!$B$36,INDEX(Ranks!$1:$1048576,$A21,DM$1))","v":""},{"$f":"IF($A21=\"N/A\",Ref!$B$36,INDEX(Ranks!$1:$1048576,$A21,DN$1))","v":""},{"$f":"IF($A21=\"N/A\",Ref!$B$36,INDEX(Ranks!$1:$1048576,$A21,DO$1))","v":""},{"$f":"IF($A21=\"N/A\",Ref!$B$36,INDEX(Ranks!$1:$1048576,$A21,DP$1))","v":""},{"$f":"IF($A21=\"N/A\",Ref!$B$36,INDEX(Ranks!$1:$1048576,$A21,DQ$1))","v":""},{"$f":"IF($A21=\"N/A\",Ref!$B$36,INDEX(Ranks!$1:$1048576,$A21,DR$1))","v":""},{"$f":"IF($A21=\"N/A\",Ref!$B$36,INDEX(Ranks!$1:$1048576,$A21,DS$1))","v":""},{"$f":"IF($A21=\"N/A\",Ref!$B$36,INDEX(Ranks!$1:$1048576,$A21,DT$1))","v":""},{"$f":"IF($A21=\"N/A\",Ref!$B$36,INDEX(Ranks!$1:$1048576,$A21,DU$1))","v":""},{"$f":"IF($A21=\"N/A\",Ref!$B$36,INDEX(Ranks!$1:$1048576,$A21,DV$1))","v":""},{"$f":"IF($A21=\"N/A\",Ref!$B$36,INDEX(Ranks!$1:$1048576,$A21,DW$1))","v":""},{"$f":"IF($A21=\"N/A\",Ref!$B$36,INDEX(Ranks!$1:$1048576,$A21,DX$1))","v":""},{"$f":"IF($A21=\"N/A\",Ref!$B$36,INDEX(Ranks!$1:$1048576,$A21,DY$1))","v":""},{"$f":"IF($A21=\"N/A\",Ref!$B$36,INDEX(Ranks!$1:$1048576,$A21,DZ$1))","v":""},{"$f":"IF($A21=\"N/A\",Ref!$B$36,INDEX(Ranks!$1:$1048576,$A21,EA$1))","v":""},{"$f":"IF($A21=\"N/A\",Ref!$B$36,INDEX(Ranks!$1:$1048576,$A21,EB$1))","v":""}]
[{"$f":"IFERROR(MATCH('Portfolio Page'!L22,Ranks!L:L,0),\"N/A\")","v":"N/A"},null,{"$f":"IF($A22=\"N/A\",\"\",INDEX(Ranks!$1:$1048576,$A22,C$1))","v":""},{"$f":"IF($A22=\"N/A\",Ref!$B$36,INDEX(Ranks!$1:$1048576,$A22,D$1))","v":""},{"$f":"IF($A22=\"N/A\",Ref!$B$36,INDEX(Ranks!$1:$1048576,$A22,E$1))","v":""},{"$f":"IF($A22=\"N/A\",\"\",INDEX(Ranks!$1:$1048576,$A22,F$1))","v":""},{"$f":"IF($A22=\"N/A\",\"\",INDEX(Ranks!$1:$1048576,$A22,G$1))","v":""},{"$f":"IF($A22=\"N/A\",\"\",INDEX(Ranks!$1:$1048576,$A22,H$1))","v":""},{"$f":"IF($A22=\"N/A\",\"\",INDEX(Ranks!$1:$1048576,$A22,I$1))","v":""},{"$f":"IF($A22=\"N/A\",\"\",INDEX(Ranks!$1:$1048576,$A22,J$1))","v":""},{"$f":"IF($A22=\"N/A\",\"\",INDEX(Ranks!$1:$1048576,$A22,K$1))","v":""},null,{"$f":"IF($A22=\"N/A\",Ref!$B$36,INDEX(Ranks!$1:$1048576,$A22,M$1))","v":""},{"$f":"IF($A22=\"N/A\",Ref!$B$36,INDEX(Ranks!$1:$1048576,$A22,N$1))","v":""},{"$f":"IF($A22=\"N/A\",Ref!$B$36,INDEX(Ranks!$1:$1048576,$A22,O$1))","v":""},{"$f":"IF($A22=\"N/A\",Ref!$B$36,INDEX(Ranks!$1:$1048576,$A22,P$1))","v":""},{"$f":"IF($A22=\"N/A\",Ref!$B$36,INDEX(Ranks!$1:$1048576,$A22,Q$1))","v":""},{"$f":"IF($A22=\"N/A\",Ref!$B$36,INDEX(Ranks!$1:$1048576,$A22,R$1))","v":""},{"$f":"IF($A22=\"N/A\",Ref!$B$36,INDEX(Ranks!$1:$1048576,$A22,S$1))","v":""},{"$f":"IF($A22=\"N/A\",Ref!$B$36,INDEX(Ranks!$1:$1048576,$A22,T$1))","v":""},{"$f":"IF($A22=\"N/A\",Ref!$B$36,INDEX(Ranks!$1:$1048576,$A22,U$1))","v":""},{"$f":"IF($A22=\"N/A\",Ref!$B$36,INDEX(Ranks!$1:$1048576,$A22,V$1))","v":""},{"$f":"IF($A22=\"N/A\",Ref!$B$36,INDEX(Ranks!$1:$1048576,$A22,W$1))","v":""},{"$f":"IF($A22=\"N/A\",Ref!$B$36,INDEX(Ranks!$1:$1048576,$A22,X$1))","v":""},{"$f":"IF($A22=\"N/A\",Ref!$B$36,INDEX(Ranks!$1:$1048576,$A22,Y$1))","v":""},{"$f":"IF($A22=\"N/A\",Ref!$B$36,INDEX(Ranks!$1:$1048576,$A22,Z$1))","v":""},{"$f":"IF($A22=\"N/A\",Ref!$B$36,INDEX(Ranks!$1:$1048576,$A22,AA$1))","v":""},{"$f":"IF($A22=\"N/A\",Ref!$B$36,INDEX(Ranks!$1:$1048576,$A22,AB$1))","v":""},{"$f":"IF($A22=\"N/A\",Ref!$B$36,INDEX(Ranks!$1:$1048576,$A22,AC$1))","v":""},{"$f":"IF($A22=\"N/A\",Ref!$B$36,INDEX(Ranks!$1:$1048576,$A22,AD$1))","v":""},{"$f":"IF($A22=\"N/A\",Ref!$B$36,INDEX(Ranks!$1:$1048576,$A22,AE$1))","v":""},{"$f":"IF($A22=\"N/A\",Ref!$B$36,INDEX(Ranks!$1:$1048576,$A22,AF$1))","v":""},{"$f":"IF($A22=\"N/A\",Ref!$B$36,INDEX(Ranks!$1:$1048576,$A22,AG$1))","v":""},{"$f":"IF($A22=\"N/A\",Ref!$B$36,INDEX(Ranks!$1:$1048576,$A22,AH$1))","v":""},{"$f":"IF($A22=\"N/A\",Ref!$B$36,INDEX(Ranks!$1:$1048576,$A22,AI$1))","v":""},{"$f":"IF($A22=\"N/A\",Ref!$B$36,INDEX(Ranks!$1:$1048576,$A22,AJ$1))","v":""},{"$f":"IF($A22=\"N/A\",Ref!$B$36,INDEX(Ranks!$1:$1048576,$A22,AK$1))","v":""},{"$f":"IF($A22=\"N/A\",Ref!$B$36,INDEX(Ranks!$1:$1048576,$A22,AL$1))","v":""},{"$f":"IF($A22=\"N/A\",Ref!$B$36,INDEX(Ranks!$1:$1048576,$A22,AM$1))","v":""},{"$f":"IF($A22=\"N/A\",Ref!$B$36,INDEX(Ranks!$1:$1048576,$A22,AN$1))","v":""},{"$f":"IF($A22=\"N/A\",Ref!$B$36,INDEX(Ranks!$1:$1048576,$A22,AO$1))","v":""},{"$f":"IF($A22=\"N/A\",Ref!$B$36,INDEX(Ranks!$1:$1048576,$A22,AP$1))","v":""},{"$f":"IF($A22=\"N/A\",Ref!$B$36,INDEX(Ranks!$1:$1048576,$A22,AQ$1))","v":""},{"$f":"IF($A22=\"N/A\",Ref!$B$36,INDEX(Ranks!$1:$1048576,$A22,AR$1))","v":""},{"$f":"IF($A22=\"N/A\",Ref!$B$36,INDEX(Ranks!$1:$1048576,$A22,AS$1))","v":""},{"$f":"IF($A22=\"N/A\",Ref!$B$36,INDEX(Ranks!$1:$1048576,$A22,AT$1))","v":""},{"$f":"IF($A22=\"N/A\",Ref!$B$36,INDEX(Ranks!$1:$1048576,$A22,AU$1))","v":""},{"$f":"IF($A22=\"N/A\",Ref!$B$36,INDEX(Ranks!$1:$1048576,$A22,AV$1))","v":""},{"$f":"IF($A22=\"N/A\",Ref!$B$36,INDEX(Ranks!$1:$1048576,$A22,AW$1))","v":""},{"$f":"IF($A22=\"N/A\",Ref!$B$36,INDEX(Ranks!$1:$1048576,$A22,AX$1))","v":""},{"$f":"IF($A22=\"N/A\",Ref!$B$36,INDEX(Ranks!$1:$1048576,$A22,AY$1))","v":""},{"$f":"IF($A22=\"N/A\",Ref!$B$36,INDEX(Ranks!$1:$1048576,$A22,AZ$1))","v":""},{"$f":"IF($A22=\"N/A\",Ref!$B$36,INDEX(Ranks!$1:$1048576,$A22,BA$1))","v":""},{"$f":"IF($A22=\"N/A\",Ref!$B$36,INDEX(Ranks!$1:$1048576,$A22,BB$1))","v":""},{"$f":"IF($A22=\"N/A\",Ref!$B$36,INDEX(Ranks!$1:$1048576,$A22,BC$1))","v":""},{"$f":"IF($A22=\"N/A\",Ref!$B$36,INDEX(Ranks!$1:$1048576,$A22,BD$1))","v":""},{"$f":"IF($A22=\"N/A\",Ref!$B$36,INDEX(Ranks!$1:$1048576,$A22,BE$1))","v":""},{"$f":"IF($A22=\"N/A\",Ref!$B$36,INDEX(Ranks!$1:$1048576,$A22,BF$1))","v":""},{"$f":"IF($A22=\"N/A\",Ref!$B$36,INDEX(Ranks!$1:$1048576,$A22,BG$1))","v":""},{"$f":"IF($A22=\"N/A\",Ref!$B$36,INDEX(Ranks!$1:$1048576,$A22,BH$1))","v":""},{"$f":"IF($A22=\"N/A\",Ref!$B$36,INDEX(Ranks!$1:$1048576,$A22,BI$1))","v":""},{"$f":"IF($A22=\"N/A\",Ref!$B$36,INDEX(Ranks!$1:$1048576,$A22,BJ$1))","v":""},{"$f":"IF($A22=\"N/A\",Ref!$B$36,INDEX(Ranks!$1:$1048576,$A22,BK$1))","v":""},{"$f":"IF($A22=\"N/A\",Ref!$B$36,INDEX(Ranks!$1:$1048576,$A22,BL$1))","v":""},{"$f":"IF($A22=\"N/A\",Ref!$B$36,INDEX(Ranks!$1:$1048576,$A22,BM$1))","v":""},{"$f":"IF($A22=\"N/A\",Ref!$B$36,INDEX(Ranks!$1:$1048576,$A22,BN$1))","v":""},{"$f":"IF($A22=\"N/A\",Ref!$B$36,INDEX(Ranks!$1:$1048576,$A22,BO$1))","v":""},{"$f":"IF($A22=\"N/A\",Ref!$B$36,INDEX(Ranks!$1:$1048576,$A22,BP$1))","v":""},{"$f":"IF($A22=\"N/A\",Ref!$B$36,INDEX(Ranks!$1:$1048576,$A22,BQ$1))","v":""},{"$f":"IF($A22=\"N/A\",Ref!$B$36,INDEX(Ranks!$1:$1048576,$A22,BR$1))","v":""},{"$f":"IF($A22=\"N/A\",Ref!$B$36,INDEX(Ranks!$1:$1048576,$A22,BS$1))","v":""},{"$f":"IF($A22=\"N/A\",Ref!$B$36,INDEX(Ranks!$1:$1048576,$A22,BT$1))","v":""},{"$f":"IF($A22=\"N/A\",Ref!$B$36,INDEX(Ranks!$1:$1048576,$A22,BU$1))","v":""},{"$f":"IF($A22=\"N/A\",Ref!$B$36,INDEX(Ranks!$1:$1048576,$A22,BV$1))","v":""},{"$f":"IF($A22=\"N/A\",Ref!$B$36,INDEX(Ranks!$1:$1048576,$A22,BW$1))","v":""},{"$f":"IF($A22=\"N/A\",Ref!$B$36,INDEX(Ranks!$1:$1048576,$A22,BX$1))","v":""},{"$f":"IF($A22=\"N/A\",Ref!$B$36,INDEX(Ranks!$1:$1048576,$A22,BY$1))","v":""},{"$f":"IF($A22=\"N/A\",Ref!$B$36,INDEX(Ranks!$1:$1048576,$A22,BZ$1))","v":""},{"$f":"IF($A22=\"N/A\",Ref!$B$36,INDEX(Ranks!$1:$1048576,$A22,CA$1))","v":""},{"$f":"IF($A22=\"N/A\",Ref!$B$36,INDEX(Ranks!$1:$1048576,$A22,CB$1))","v":""},{"$f":"IF($A22=\"N/A\",Ref!$B$36,INDEX(Ranks!$1:$1048576,$A22,CC$1))","v":""},{"$f":"IF($A22=\"N/A\",Ref!$B$36,INDEX(Ranks!$1:$1048576,$A22,CD$1))","v":""},{"$f":"IF($A22=\"N/A\",Ref!$B$36,INDEX(Ranks!$1:$1048576,$A22,CE$1))","v":""},{"$f":"IF($A22=\"N/A\",Ref!$B$36,INDEX(Ranks!$1:$1048576,$A22,CF$1))","v":""},{"$f":"IF($A22=\"N/A\",Ref!$B$36,INDEX(Ranks!$1:$1048576,$A22,CG$1))","v":""},{"$f":"IF($A22=\"N/A\",Ref!$B$36,INDEX(Ranks!$1:$1048576,$A22,CH$1))","v":""},{"$f":"IF($A22=\"N/A\",Ref!$B$36,INDEX(Ranks!$1:$1048576,$A22,CI$1))","v":""},{"$f":"IF($A22=\"N/A\",Ref!$B$36,INDEX(Ranks!$1:$1048576,$A22,CJ$1))","v":""},{"$f":"IF($A22=\"N/A\",Ref!$B$36,INDEX(Ranks!$1:$1048576,$A22,CK$1))","v":""},{"$f":"IF($A22=\"N/A\",Ref!$B$36,INDEX(Ranks!$1:$1048576,$A22,CL$1))","v":""},{"$f":"IF($A22=\"N/A\",Ref!$B$36,INDEX(Ranks!$1:$1048576,$A22,CM$1))","v":""},{"$f":"IF($A22=\"N/A\",Ref!$B$36,INDEX(Ranks!$1:$1048576,$A22,CN$1))","v":""},{"$f":"IF($A22=\"N/A\",Ref!$B$36,INDEX(Ranks!$1:$1048576,$A22,CO$1))","v":""},{"$f":"IF($A22=\"N/A\",Ref!$B$36,INDEX(Ranks!$1:$1048576,$A22,CP$1))","v":""},{"$f":"IF($A22=\"N/A\",Ref!$B$36,INDEX(Ranks!$1:$1048576,$A22,CQ$1))","v":""},{"$f":"IF($A22=\"N/A\",Ref!$B$36,INDEX(Ranks!$1:$1048576,$A22,CR$1))","v":""},{"$f":"IF($A22=\"N/A\",Ref!$B$36,INDEX(Ranks!$1:$1048576,$A22,CS$1))","v":""},{"$f":"IF($A22=\"N/A\",Ref!$B$36,INDEX(Ranks!$1:$1048576,$A22,CT$1))","v":""},{"$f":"IF($A22=\"N/A\",Ref!$B$36,INDEX(Ranks!$1:$1048576,$A22,CU$1))","v":""},{"$f":"IF($A22=\"N/A\",Ref!$B$36,INDEX(Ranks!$1:$1048576,$A22,CV$1))","v":""},{"$f":"IF($A22=\"N/A\",Ref!$B$36,INDEX(Ranks!$1:$1048576,$A22,CW$1))","v":""},{"$f":"IF($A22=\"N/A\",Ref!$B$36,INDEX(Ranks!$1:$1048576,$A22,CX$1))","v":""},{"$f":"IF($A22=\"N/A\",Ref!$B$36,INDEX(Ranks!$1:$1048576,$A22,CY$1))","v":""},{"$f":"IF($A22=\"N/A\",Ref!$B$36,INDEX(Ranks!$1:$1048576,$A22,CZ$1))","v":""},{"$f":"IF($A22=\"N/A\",Ref!$B$36,INDEX(Ranks!$1:$1048576,$A22,DA$1))","v":""},{"$f":"IF($A22=\"N/A\",Ref!$B$36,INDEX(Ranks!$1:$1048576,$A22,DB$1))","v":""},{"$f":"IF($A22=\"N/A\",Ref!$B$36,INDEX(Ranks!$1:$1048576,$A22,DC$1))","v":""},{"$f":"IF($A22=\"N/A\",Ref!$B$36,INDEX(Ranks!$1:$1048576,$A22,DD$1))","v":""},{"$f":"IF($A22=\"N/A\",Ref!$B$36,INDEX(Ranks!$1:$1048576,$A22,DE$1))","v":""},{"$f":"IF($A22=\"N/A\",Ref!$B$36,INDEX(Ranks!$1:$1048576,$A22,DF$1))","v":""},{"$f":"IF($A22=\"N/A\",Ref!$B$36,INDEX(Ranks!$1:$1048576,$A22,DG$1))","v":""},{"$f":"IF($A22=\"N/A\",Ref!$B$36,INDEX(Ranks!$1:$1048576,$A22,DH$1))","v":""},{"$f":"IF($A22=\"N/A\",Ref!$B$36,INDEX(Ranks!$1:$1048576,$A22,DI$1))","v":""},{"$f":"IF($A22=\"N/A\",Ref!$B$36,INDEX(Ranks!$1:$1048576,$A22,DJ$1))","v":""},{"$f":"IF($A22=\"N/A\",Ref!$B$36,INDEX(Ranks!$1:$1048576,$A22,DK$1))","v":""},{"$f":"IF($A22=\"N/A\",Ref!$B$36,INDEX(Ranks!$1:$1048576,$A22,DL$1))","v":""},{"$f":"IF($A22=\"N/A\",Ref!$B$36,INDEX(Ranks!$1:$1048576,$A22,DM$1))","v":""},{"$f":"IF($A22=\"N/A\",Ref!$B$36,INDEX(Ranks!$1:$1048576,$A22,DN$1))","v":""},{"$f":"IF($A22=\"N/A\",Ref!$B$36,INDEX(Ranks!$1:$1048576,$A22,DO$1))","v":""},{"$f":"IF($A22=\"N/A\",Ref!$B$36,INDEX(Ranks!$1:$1048576,$A22,DP$1))","v":""},{"$f":"IF($A22=\"N/A\",Ref!$B$36,INDEX(Ranks!$1:$1048576,$A22,DQ$1))","v":""},{"$f":"IF($A22=\"N/A\",Ref!$B$36,INDEX(Ranks!$1:$1048576,$A22,DR$1))","v":""},{"$f":"IF($A22=\"N/A\",Ref!$B$36,INDEX(Ranks!$1:$1048576,$A22,DS$1))","v":""},{"$f":"IF($A22=\"N/A\",Ref!$B$36,INDEX(Ranks!$1:$1048576,$A22,DT$1))","v":""},{"$f":"IF($A22=\"N/A\",Ref!$B$36,INDEX(Ranks!$1:$1048576,$A22,DU$1))","v":""},{"$f":"IF($A22=\"N/A\",Ref!$B$36,INDEX(Ranks!$1:$1048576,$A22,DV$1))","v":""},{"$f":"IF($A22=\"N/A\",Ref!$B$36,INDEX(Ranks!$1:$1048576,$A22,DW$1))","v":""},{"$f":"IF($A22=\"N/A\",Ref!$B$36,INDEX(Ranks!$1:$1048576,$A22,DX$1))","v":""},{"$f":"IF($A22=\"N/A\",Ref!$B$36,INDEX(Ranks!$1:$1048576,$A22,DY$1))","v":""},{"$f":"IF($A22=\"N/A\",Ref!$B$36,INDEX(Ranks!$1:$1048576,$A22,DZ$1))","v":""},{"$f":"IF($A22=\"N/A\",Ref!$B$36,INDEX(Ranks!$1:$1048576,$A22,EA$1))","v":""},{"$f":"IF($A22=\"N/A\",Ref!$B$36,INDEX(Ranks!$1:$1048576,$A22,EB$1))","v":""}]
[{"$f":"IFERROR(MATCH('Portfolio Page'!L23,Ranks!L:L,0),\"N/A\")","v":"N/A"},null,{"$f":"IF($A23=\"N/A\",\"\",INDEX(Ranks!$1:$1048576,$A23,C$1))","v":""},{"$f":"IF($A23=\"N/A\",Ref!$B$36,INDEX(Ranks!$1:$1048576,$A23,D$1))","v":""},{"$f":"IF($A23=\"N/A\",Ref!$B$36,INDEX(Ranks!$1:$1048576,$A23,E$1))","v":""},{"$f":"IF($A23=\"N/A\",\"\",INDEX(Ranks!$1:$1048576,$A23,F$1))","v":""},{"$f":"IF($A23=\"N/A\",\"\",INDEX(Ranks!$1:$1048576,$A23,G$1))","v":""},{"$f":"IF($A23=\"N/A\",\"\",INDEX(Ranks!$1:$1048576,$A23,H$1))","v":""},{"$f":"IF($A23=\"N/A\",\"\",INDEX(Ranks!$1:$1048576,$A23,I$1))","v":""},{"$f":"IF($A23=\"N/A\",\"\",INDEX(Ranks!$1:$1048576,$A23,J$1))","v":""},{"$f":"IF($A23=\"N/A\",\"\",INDEX(Ranks!$1:$1048576,$A23,K$1))","v":""},null,{"$f":"IF($A23=\"N/A\",Ref!$B$36,INDEX(Ranks!$1:$1048576,$A23,M$1))","v":""},{"$f":"IF($A23=\"N/A\",Ref!$B$36,INDEX(Ranks!$1:$1048576,$A23,N$1))","v":""},{"$f":"IF($A23=\"N/A\",Ref!$B$36,INDEX(Ranks!$1:$1048576,$A23,O$1))","v":""},{"$f":"IF($A23=\"N/A\",Ref!$B$36,INDEX(Ranks!$1:$1048576,$A23,P$1))","v":""},{"$f":"IF($A23=\"N/A\",Ref!$B$36,INDEX(Ranks!$1:$1048576,$A23,Q$1))","v":""},{"$f":"IF($A23=\"N/A\",Ref!$B$36,INDEX(Ranks!$1:$1048576,$A23,R$1))","v":""},{"$f":"IF($A23=\"N/A\",Ref!$B$36,INDEX(Ranks!$1:$1048576,$A23,S$1))","v":""},{"$f":"IF($A23=\"N/A\",Ref!$B$36,INDEX(Ranks!$1:$1048576,$A23,T$1))","v":""},{"$f":"IF($A23=\"N/A\",Ref!$B$36,INDEX(Ranks!$1:$1048576,$A23,U$1))","v":""},{"$f":"IF($A23=\"N/A\",Ref!$B$36,INDEX(Ranks!$1:$1048576,$A23,V$1))","v":""},{"$f":"IF($A23=\"N/A\",Ref!$B$36,INDEX(Ranks!$1:$1048576,$A23,W$1))","v":""},{"$f":"IF($A23=\"N/A\",Ref!$B$36,INDEX(Ranks!$1:$1048576,$A23,X$1))","v":""},{"$f":"IF($A23=\"N/A\",Ref!$B$36,INDEX(Ranks!$1:$1048576,$A23,Y$1))","v":""},{"$f":"IF($A23=\"N/A\",Ref!$B$36,INDEX(Ranks!$1:$1048576,$A23,Z$1))","v":""},{"$f":"IF($A23=\"N/A\",Ref!$B$36,INDEX(Ranks!$1:$1048576,$A23,AA$1))","v":""},{"$f":"IF($A23=\"N/A\",Ref!$B$36,INDEX(Ranks!$1:$1048576,$A23,AB$1))","v":""},{"$f":"IF($A23=\"N/A\",Ref!$B$36,INDEX(Ranks!$1:$1048576,$A23,AC$1))","v":""},{"$f":"IF($A23=\"N/A\",Ref!$B$36,INDEX(Ranks!$1:$1048576,$A23,AD$1))","v":""},{"$f":"IF($A23=\"N/A\",Ref!$B$36,INDEX(Ranks!$1:$1048576,$A23,AE$1))","v":""},{"$f":"IF($A23=\"N/A\",Ref!$B$36,INDEX(Ranks!$1:$1048576,$A23,AF$1))","v":""},{"$f":"IF($A23=\"N/A\",Ref!$B$36,INDEX(Ranks!$1:$1048576,$A23,AG$1))","v":""},{"$f":"IF($A23=\"N/A\",Ref!$B$36,INDEX(Ranks!$1:$1048576,$A23,AH$1))","v":""},{"$f":"IF($A23=\"N/A\",Ref!$B$36,INDEX(Ranks!$1:$1048576,$A23,AI$1))","v":""},{"$f":"IF($A23=\"N/A\",Ref!$B$36,INDEX(Ranks!$1:$1048576,$A23,AJ$1))","v":""},{"$f":"IF($A23=\"N/A\",Ref!$B$36,INDEX(Ranks!$1:$1048576,$A23,AK$1))","v":""},{"$f":"IF($A23=\"N/A\",Ref!$B$36,INDEX(Ranks!$1:$1048576,$A23,AL$1))","v":""},{"$f":"IF($A23=\"N/A\",Ref!$B$36,INDEX(Ranks!$1:$1048576,$A23,AM$1))","v":""},{"$f":"IF($A23=\"N/A\",Ref!$B$36,INDEX(Ranks!$1:$1048576,$A23,AN$1))","v":""},{"$f":"IF($A23=\"N/A\",Ref!$B$36,INDEX(Ranks!$1:$1048576,$A23,AO$1))","v":""},{"$f":"IF($A23=\"N/A\",Ref!$B$36,INDEX(Ranks!$1:$1048576,$A23,AP$1))","v":""},{"$f":"IF($A23=\"N/A\",Ref!$B$36,INDEX(Ranks!$1:$1048576,$A23,AQ$1))","v":""},{"$f":"IF($A23=\"N/A\",Ref!$B$36,INDEX(Ranks!$1:$1048576,$A23,AR$1))","v":""},{"$f":"IF($A23=\"N/A\",Ref!$B$36,INDEX(Ranks!$1:$1048576,$A23,AS$1))","v":""},{"$f":"IF($A23=\"N/A\",Ref!$B$36,INDEX(Ranks!$1:$1048576,$A23,AT$1))","v":""},{"$f":"IF($A23=\"N/A\",Ref!$B$36,INDEX(Ranks!$1:$1048576,$A23,AU$1))","v":""},{"$f":"IF($A23=\"N/A\",Ref!$B$36,INDEX(Ranks!$1:$1048576,$A23,AV$1))","v":""},{"$f":"IF($A23=\"N/A\",Ref!$B$36,INDEX(Ranks!$1:$1048576,$A23,AW$1))","v":""},{"$f":"IF($A23=\"N/A\",Ref!$B$36,INDEX(Ranks!$1:$1048576,$A23,AX$1))","v":""},{"$f":"IF($A23=\"N/A\",Ref!$B$36,INDEX(Ranks!$1:$1048576,$A23,AY$1))","v":""},{"$f":"IF($A23=\"N/A\",Ref!$B$36,INDEX(Ranks!$1:$1048576,$A23,AZ$1))","v":""},{"$f":"IF($A23=\"N/A\",Ref!$B$36,INDEX(Ranks!$1:$1048576,$A23,BA$1))","v":""},{"$f":"IF($A23=\"N/A\",Ref!$B$36,INDEX(Ranks!$1:$1048576,$A23,BB$1))","v":""},{"$f":"IF($A23=\"N/A\",Ref!$B$36,INDEX(Ranks!$1:$1048576,$A23,BC$1))","v":""},{"$f":"IF($A23=\"N/A\",Ref!$B$36,INDEX(Ranks!$1:$1048576,$A23,BD$1))","v":""},{"$f":"IF($A23=\"N/A\",Ref!$B$36,INDEX(Ranks!$1:$1048576,$A23,BE$1))","v":""},{"$f":"IF($A23=\"N/A\",Ref!$B$36,INDEX(Ranks!$1:$1048576,$A23,BF$1))","v":""},{"$f":"IF($A23=\"N/A\",Ref!$B$36,INDEX(Ranks!$1:$1048576,$A23,BG$1))","v":""},{"$f":"IF($A23=\"N/A\",Ref!$B$36,INDEX(Ranks!$1:$1048576,$A23,BH$1))","v":""},{"$f":"IF($A23=\"N/A\",Ref!$B$36,INDEX(Ranks!$1:$1048576,$A23,BI$1))","v":""},{"$f":"IF($A23=\"N/A\",Ref!$B$36,INDEX(Ranks!$1:$1048576,$A23,BJ$1))","v":""},{"$f":"IF($A23=\"N/A\",Ref!$B$36,INDEX(Ranks!$1:$1048576,$A23,BK$1))","v":""},{"$f":"IF($A23=\"N/A\",Ref!$B$36,INDEX(Ranks!$1:$1048576,$A23,BL$1))","v":""},{"$f":"IF($A23=\"N/A\",Ref!$B$36,INDEX(Ranks!$1:$1048576,$A23,BM$1))","v":""},{"$f":"IF($A23=\"N/A\",Ref!$B$36,INDEX(Ranks!$1:$1048576,$A23,BN$1))","v":""},{"$f":"IF($A23=\"N/A\",Ref!$B$36,INDEX(Ranks!$1:$1048576,$A23,BO$1))","v":""},{"$f":"IF($A23=\"N/A\",Ref!$B$36,INDEX(Ranks!$1:$1048576,$A23,BP$1))","v":""},{"$f":"IF($A23=\"N/A\",Ref!$B$36,INDEX(Ranks!$1:$1048576,$A23,BQ$1))","v":""},{"$f":"IF($A23=\"N/A\",Ref!$B$36,INDEX(Ranks!$1:$1048576,$A23,BR$1))","v":""},{"$f":"IF($A23=\"N/A\",Ref!$B$36,INDEX(Ranks!$1:$1048576,$A23,BS$1))","v":""},{"$f":"IF($A23=\"N/A\",Ref!$B$36,INDEX(Ranks!$1:$1048576,$A23,BT$1))","v":""},{"$f":"IF($A23=\"N/A\",Ref!$B$36,INDEX(Ranks!$1:$1048576,$A23,BU$1))","v":""},{"$f":"IF($A23=\"N/A\",Ref!$B$36,INDEX(Ranks!$1:$1048576,$A23,BV$1))","v":""},{"$f":"IF($A23=\"N/A\",Ref!$B$36,INDEX(Ranks!$1:$1048576,$A23,BW$1))","v":""},{"$f":"IF($A23=\"N/A\",Ref!$B$36,INDEX(Ranks!$1:$1048576,$A23,BX$1))","v":""},{"$f":"IF($A23=\"N/A\",Ref!$B$36,INDEX(Ranks!$1:$1048576,$A23,BY$1))","v":""},{"$f":"IF($A23=\"N/A\",Ref!$B$36,INDEX(Ranks!$1:$1048576,$A23,BZ$1))","v":""},{"$f":"IF($A23=\"N/A\",Ref!$B$36,INDEX(Ranks!$1:$1048576,$A23,CA$1))","v":""},{"$f":"IF($A23=\"N/A\",Ref!$B$36,INDEX(Ranks!$1:$1048576,$A23,CB$1))","v":""},{"$f":"IF($A23=\"N/A\",Ref!$B$36,INDEX(Ranks!$1:$1048576,$A23,CC$1))","v":""},{"$f":"IF($A23=\"N/A\",Ref!$B$36,INDEX(Ranks!$1:$1048576,$A23,CD$1))","v":""},{"$f":"IF($A23=\"N/A\",Ref!$B$36,INDEX(Ranks!$1:$1048576,$A23,CE$1))","v":""},{"$f":"IF($A23=\"N/A\",Ref!$B$36,INDEX(Ranks!$1:$1048576,$A23,CF$1))","v":""},{"$f":"IF($A23=\"N/A\",Ref!$B$36,INDEX(Ranks!$1:$1048576,$A23,CG$1))","v":""},{"$f":"IF($A23=\"N/A\",Ref!$B$36,INDEX(Ranks!$1:$1048576,$A23,CH$1))","v":""},{"$f":"IF($A23=\"N/A\",Ref!$B$36,INDEX(Ranks!$1:$1048576,$A23,CI$1))","v":""},{"$f":"IF($A23=\"N/A\",Ref!$B$36,INDEX(Ranks!$1:$1048576,$A23,CJ$1))","v":""},{"$f":"IF($A23=\"N/A\",Ref!$B$36,INDEX(Ranks!$1:$1048576,$A23,CK$1))","v":""},{"$f":"IF($A23=\"N/A\",Ref!$B$36,INDEX(Ranks!$1:$1048576,$A23,CL$1))","v":""},{"$f":"IF($A23=\"N/A\",Ref!$B$36,INDEX(Ranks!$1:$1048576,$A23,CM$1))","v":""},{"$f":"IF($A23=\"N/A\",Ref!$B$36,INDEX(Ranks!$1:$1048576,$A23,CN$1))","v":""},{"$f":"IF($A23=\"N/A\",Ref!$B$36,INDEX(Ranks!$1:$1048576,$A23,CO$1))","v":""},{"$f":"IF($A23=\"N/A\",Ref!$B$36,INDEX(Ranks!$1:$1048576,$A23,CP$1))","v":""},{"$f":"IF($A23=\"N/A\",Ref!$B$36,INDEX(Ranks!$1:$1048576,$A23,CQ$1))","v":""},{"$f":"IF($A23=\"N/A\",Ref!$B$36,INDEX(Ranks!$1:$1048576,$A23,CR$1))","v":""},{"$f":"IF($A23=\"N/A\",Ref!$B$36,INDEX(Ranks!$1:$1048576,$A23,CS$1))","v":""},{"$f":"IF($A23=\"N/A\",Ref!$B$36,INDEX(Ranks!$1:$1048576,$A23,CT$1))","v":""},{"$f":"IF($A23=\"N/A\",Ref!$B$36,INDEX(Ranks!$1:$1048576,$A23,CU$1))","v":""},{"$f":"IF($A23=\"N/A\",Ref!$B$36,INDEX(Ranks!$1:$1048576,$A23,CV$1))","v":""},{"$f":"IF($A23=\"N/A\",Ref!$B$36,INDEX(Ranks!$1:$1048576,$A23,CW$1))","v":""},{"$f":"IF($A23=\"N/A\",Ref!$B$36,INDEX(Ranks!$1:$1048576,$A23,CX$1))","v":""},{"$f":"IF($A23=\"N/A\",Ref!$B$36,INDEX(Ranks!$1:$1048576,$A23,CY$1))","v":""},{"$f":"IF($A23=\"N/A\",Ref!$B$36,INDEX(Ranks!$1:$1048576,$A23,CZ$1))","v":""},{"$f":"IF($A23=\"N/A\",Ref!$B$36,INDEX(Ranks!$1:$1048576,$A23,DA$1))","v":""},{"$f":"IF($A23=\"N/A\",Ref!$B$36,INDEX(Ranks!$1:$1048576,$A23,DB$1))","v":""},{"$f":"IF($A23=\"N/A\",Ref!$B$36,INDEX(Ranks!$1:$1048576,$A23,DC$1))","v":""},{"$f":"IF($A23=\"N/A\",Ref!$B$36,INDEX(Ranks!$1:$1048576,$A23,DD$1))","v":""},{"$f":"IF($A23=\"N/A\",Ref!$B$36,INDEX(Ranks!$1:$1048576,$A23,DE$1))","v":""},{"$f":"IF($A23=\"N/A\",Ref!$B$36,INDEX(Ranks!$1:$1048576,$A23,DF$1))","v":""},{"$f":"IF($A23=\"N/A\",Ref!$B$36,INDEX(Ranks!$1:$1048576,$A23,DG$1))","v":""},{"$f":"IF($A23=\"N/A\",Ref!$B$36,INDEX(Ranks!$1:$1048576,$A23,DH$1))","v":""},{"$f":"IF($A23=\"N/A\",Ref!$B$36,INDEX(Ranks!$1:$1048576,$A23,DI$1))","v":""},{"$f":"IF($A23=\"N/A\",Ref!$B$36,INDEX(Ranks!$1:$1048576,$A23,DJ$1))","v":""},{"$f":"IF($A23=\"N/A\",Ref!$B$36,INDEX(Ranks!$1:$1048576,$A23,DK$1))","v":""},{"$f":"IF($A23=\"N/A\",Ref!$B$36,INDEX(Ranks!$1:$1048576,$A23,DL$1))","v":""},{"$f":"IF($A23=\"N/A\",Ref!$B$36,INDEX(Ranks!$1:$1048576,$A23,DM$1))","v":""},{"$f":"IF($A23=\"N/A\",Ref!$B$36,INDEX(Ranks!$1:$1048576,$A23,DN$1))","v":""},{"$f":"IF($A23=\"N/A\",Ref!$B$36,INDEX(Ranks!$1:$1048576,$A23,DO$1))","v":""},{"$f":"IF($A23=\"N/A\",Ref!$B$36,INDEX(Ranks!$1:$1048576,$A23,DP$1))","v":""},{"$f":"IF($A23=\"N/A\",Ref!$B$36,INDEX(Ranks!$1:$1048576,$A23,DQ$1))","v":""},{"$f":"IF($A23=\"N/A\",Ref!$B$36,INDEX(Ranks!$1:$1048576,$A23,DR$1))","v":""},{"$f":"IF($A23=\"N/A\",Ref!$B$36,INDEX(Ranks!$1:$1048576,$A23,DS$1))","v":""},{"$f":"IF($A23=\"N/A\",Ref!$B$36,INDEX(Ranks!$1:$1048576,$A23,DT$1))","v":""},{"$f":"IF($A23=\"N/A\",Ref!$B$36,INDEX(Ranks!$1:$1048576,$A23,DU$1))","v":""},{"$f":"IF($A23=\"N/A\",Ref!$B$36,INDEX(Ranks!$1:$1048576,$A23,DV$1))","v":""},{"$f":"IF($A23=\"N/A\",Ref!$B$36,INDEX(Ranks!$1:$1048576,$A23,DW$1))","v":""},{"$f":"IF($A23=\"N/A\",Ref!$B$36,INDEX(Ranks!$1:$1048576,$A23,DX$1))","v":""},{"$f":"IF($A23=\"N/A\",Ref!$B$36,INDEX(Ranks!$1:$1048576,$A23,DY$1))","v":""},{"$f":"IF($A23=\"N/A\",Ref!$B$36,INDEX(Ranks!$1:$1048576,$A23,DZ$1))","v":""},{"$f":"IF($A23=\"N/A\",Ref!$B$36,INDEX(Ranks!$1:$1048576,$A23,EA$1))","v":""},{"$f":"IF($A23=\"N/A\",Ref!$B$36,INDEX(Ranks!$1:$1048576,$A23,EB$1))","v":""}]
[{"$f":"IFERROR(MATCH('Portfolio Page'!L24,Ranks!L:L,0),\"N/A\")","v":"N/A"},null,{"$f":"IF($A24=\"N/A\",\"\",INDEX(Ranks!$1:$1048576,$A24,C$1))","v":""},{"$f":"IF($A24=\"N/A\",Ref!$B$36,INDEX(Ranks!$1:$1048576,$A24,D$1))","v":""},{"$f":"IF($A24=\"N/A\",Ref!$B$36,INDEX(Ranks!$1:$1048576,$A24,E$1))","v":""},{"$f":"IF($A24=\"N/A\",\"\",INDEX(Ranks!$1:$1048576,$A24,F$1))","v":""},{"$f":"IF($A24=\"N/A\",\"\",INDEX(Ranks!$1:$1048576,$A24,G$1))","v":""},{"$f":"IF($A24=\"N/A\",\"\",INDEX(Ranks!$1:$1048576,$A24,H$1))","v":""},{"$f":"IF($A24=\"N/A\",\"\",INDEX(Ranks!$1:$1048576,$A24,I$1))","v":""},{"$f":"IF($A24=\"N/A\",\"\",INDEX(Ranks!$1:$1048576,$A24,J$1))","v":""},{"$f":"IF($A24=\"N/A\",\"\",INDEX(Ranks!$1:$1048576,$A24,K$1))","v":""},null,{"$f":"IF($A24=\"N/A\",Ref!$B$36,INDEX(Ranks!$1:$1048576,$A24,M$1))","v":""},{"$f":"IF($A24=\"N/A\",Ref!$B$36,INDEX(Ranks!$1:$1048576,$A24,N$1))","v":""},{"$f":"IF($A24=\"N/A\",Ref!$B$36,INDEX(Ranks!$1:$1048576,$A24,O$1))","v":""},{"$f":"IF($A24=\"N/A\",Ref!$B$36,INDEX(Ranks!$1:$1048576,$A24,P$1))","v":""},{"$f":"IF($A24=\"N/A\",Ref!$B$36,INDEX(Ranks!$1:$1048576,$A24,Q$1))","v":""},{"$f":"IF($A24=\"N/A\",Ref!$B$36,INDEX(Ranks!$1:$1048576,$A24,R$1))","v":""},{"$f":"IF($A24=\"N/A\",Ref!$B$36,INDEX(Ranks!$1:$1048576,$A24,S$1))","v":""},{"$f":"IF($A24=\"N/A\",Ref!$B$36,INDEX(Ranks!$1:$1048576,$A24,T$1))","v":""},{"$f":"IF($A24=\"N/A\",Ref!$B$36,INDEX(Ranks!$1:$1048576,$A24,U$1))","v":""},{"$f":"IF($A24=\"N/A\",Ref!$B$36,INDEX(Ranks!$1:$1048576,$A24,V$1))","v":""},{"$f":"IF($A24=\"N/A\",Ref!$B$36,INDEX(Ranks!$1:$1048576,$A24,W$1))","v":""},{"$f":"IF($A24=\"N/A\",Ref!$B$36,INDEX(Ranks!$1:$1048576,$A24,X$1))","v":""},{"$f":"IF($A24=\"N/A\",Ref!$B$36,INDEX(Ranks!$1:$1048576,$A24,Y$1))","v":""},{"$f":"IF($A24=\"N/A\",Ref!$B$36,INDEX(Ranks!$1:$1048576,$A24,Z$1))","v":""},{"$f":"IF($A24=\"N/A\",Ref!$B$36,INDEX(Ranks!$1:$1048576,$A24,AA$1))","v":""},{"$f":"IF($A24=\"N/A\",Ref!$B$36,INDEX(Ranks!$1:$1048576,$A24,AB$1))","v":""},{"$f":"IF($A24=\"N/A\",Ref!$B$36,INDEX(Ranks!$1:$1048576,$A24,AC$1))","v":""},{"$f":"IF($A24=\"N/A\",Ref!$B$36,INDEX(Ranks!$1:$1048576,$A24,AD$1))","v":""},{"$f":"IF($A24=\"N/A\",Ref!$B$36,INDEX(Ranks!$1:$1048576,$A24,AE$1))","v":""},{"$f":"IF($A24=\"N/A\",Ref!$B$36,INDEX(Ranks!$1:$1048576,$A24,AF$1))","v":""},{"$f":"IF($A24=\"N/A\",Ref!$B$36,INDEX(Ranks!$1:$1048576,$A24,AG$1))","v":""},{"$f":"IF($A24=\"N/A\",Ref!$B$36,INDEX(Ranks!$1:$1048576,$A24,AH$1))","v":""},{"$f":"IF($A24=\"N/A\",Ref!$B$36,INDEX(Ranks!$1:$1048576,$A24,AI$1))","v":""},{"$f":"IF($A24=\"N/A\",Ref!$B$36,INDEX(Ranks!$1:$1048576,$A24,AJ$1))","v":""},{"$f":"IF($A24=\"N/A\",Ref!$B$36,INDEX(Ranks!$1:$1048576,$A24,AK$1))","v":""},{"$f":"IF($A24=\"N/A\",Ref!$B$36,INDEX(Ranks!$1:$1048576,$A24,AL$1))","v":""},{"$f":"IF($A24=\"N/A\",Ref!$B$36,INDEX(Ranks!$1:$1048576,$A24,AM$1))","v":""},{"$f":"IF($A24=\"N/A\",Ref!$B$36,INDEX(Ranks!$1:$1048576,$A24,AN$1))","v":""},{"$f":"IF($A24=\"N/A\",Ref!$B$36,INDEX(Ranks!$1:$1048576,$A24,AO$1))","v":""},{"$f":"IF($A24=\"N/A\",Ref!$B$36,INDEX(Ranks!$1:$1048576,$A24,AP$1))","v":""},{"$f":"IF($A24=\"N/A\",Ref!$B$36,INDEX(Ranks!$1:$1048576,$A24,AQ$1))","v":""},{"$f":"IF($A24=\"N/A\",Ref!$B$36,INDEX(Ranks!$1:$1048576,$A24,AR$1))","v":""},{"$f":"IF($A24=\"N/A\",Ref!$B$36,INDEX(Ranks!$1:$1048576,$A24,AS$1))","v":""},{"$f":"IF($A24=\"N/A\",Ref!$B$36,INDEX(Ranks!$1:$1048576,$A24,AT$1))","v":""},{"$f":"IF($A24=\"N/A\",Ref!$B$36,INDEX(Ranks!$1:$1048576,$A24,AU$1))","v":""},{"$f":"IF($A24=\"N/A\",Ref!$B$36,INDEX(Ranks!$1:$1048576,$A24,AV$1))","v":""},{"$f":"IF($A24=\"N/A\",Ref!$B$36,INDEX(Ranks!$1:$1048576,$A24,AW$1))","v":""},{"$f":"IF($A24=\"N/A\",Ref!$B$36,INDEX(Ranks!$1:$1048576,$A24,AX$1))","v":""},{"$f":"IF($A24=\"N/A\",Ref!$B$36,INDEX(Ranks!$1:$1048576,$A24,AY$1))","v":""},{"$f":"IF($A24=\"N/A\",Ref!$B$36,INDEX(Ranks!$1:$1048576,$A24,AZ$1))","v":""},{"$f":"IF($A24=\"N/A\",Ref!$B$36,INDEX(Ranks!$1:$1048576,$A24,BA$1))","v":""},{"$f":"IF($A24=\"N/A\",Ref!$B$36,INDEX(Ranks!$1:$1048576,$A24,BB$1))","v":""},{"$f":"IF($A24=\"N/A\",Ref!$B$36,INDEX(Ranks!$1:$1048576,$A24,BC$1))","v":""},{"$f":"IF($A24=\"N/A\",Ref!$B$36,INDEX(Ranks!$1:$1048576,$A24,BD$1))","v":""},{"$f":"IF($A24=\"N/A\",Ref!$B$36,INDEX(Ranks!$1:$1048576,$A24,BE$1))","v":""},{"$f":"IF($A24=\"N/A\",Ref!$B$36,INDEX(Ranks!$1:$1048576,$A24,BF$1))","v":""},{"$f":"IF($A24=\"N/A\",Ref!$B$36,INDEX(Ranks!$1:$1048576,$A24,BG$1))","v":""},{"$f":"IF($A24=\"N/A\",Ref!$B$36,INDEX(Ranks!$1:$1048576,$A24,BH$1))","v":""},{"$f":"IF($A24=\"N/A\",Ref!$B$36,INDEX(Ranks!$1:$1048576,$A24,BI$1))","v":""},{"$f":"IF($A24=\"N/A\",Ref!$B$36,INDEX(Ranks!$1:$1048576,$A24,BJ$1))","v":""},{"$f":"IF($A24=\"N/A\",Ref!$B$36,INDEX(Ranks!$1:$1048576,$A24,BK$1))","v":""},{"$f":"IF($A24=\"N/A\",Ref!$B$36,INDEX(Ranks!$1:$1048576,$A24,BL$1))","v":""},{"$f":"IF($A24=\"N/A\",Ref!$B$36,INDEX(Ranks!$1:$1048576,$A24,BM$1))","v":""},{"$f":"IF($A24=\"N/A\",Ref!$B$36,INDEX(Ranks!$1:$1048576,$A24,BN$1))","v":""},{"$f":"IF($A24=\"N/A\",Ref!$B$36,INDEX(Ranks!$1:$1048576,$A24,BO$1))","v":""},{"$f":"IF($A24=\"N/A\",Ref!$B$36,INDEX(Ranks!$1:$1048576,$A24,BP$1))","v":""},{"$f":"IF($A24=\"N/A\",Ref!$B$36,INDEX(Ranks!$1:$1048576,$A24,BQ$1))","v":""},{"$f":"IF($A24=\"N/A\",Ref!$B$36,INDEX(Ranks!$1:$1048576,$A24,BR$1))","v":""},{"$f":"IF($A24=\"N/A\",Ref!$B$36,INDEX(Ranks!$1:$1048576,$A24,BS$1))","v":""},{"$f":"IF($A24=\"N/A\",Ref!$B$36,INDEX(Ranks!$1:$1048576,$A24,BT$1))","v":""},{"$f":"IF($A24=\"N/A\",Ref!$B$36,INDEX(Ranks!$1:$1048576,$A24,BU$1))","v":""},{"$f":"IF($A24=\"N/A\",Ref!$B$36,INDEX(Ranks!$1:$1048576,$A24,BV$1))","v":""},{"$f":"IF($A24=\"N/A\",Ref!$B$36,INDEX(Ranks!$1:$1048576,$A24,BW$1))","v":""},{"$f":"IF($A24=\"N/A\",Ref!$B$36,INDEX(Ranks!$1:$1048576,$A24,BX$1))","v":""},{"$f":"IF($A24=\"N/A\",Ref!$B$36,INDEX(Ranks!$1:$1048576,$A24,BY$1))","v":""},{"$f":"IF($A24=\"N/A\",Ref!$B$36,INDEX(Ranks!$1:$1048576,$A24,BZ$1))","v":""},{"$f":"IF($A24=\"N/A\",Ref!$B$36,INDEX(Ranks!$1:$1048576,$A24,CA$1))","v":""},{"$f":"IF($A24=\"N/A\",Ref!$B$36,INDEX(Ranks!$1:$1048576,$A24,CB$1))","v":""},{"$f":"IF($A24=\"N/A\",Ref!$B$36,INDEX(Ranks!$1:$1048576,$A24,CC$1))","v":""},{"$f":"IF($A24=\"N/A\",Ref!$B$36,INDEX(Ranks!$1:$1048576,$A24,CD$1))","v":""},{"$f":"IF($A24=\"N/A\",Ref!$B$36,INDEX(Ranks!$1:$1048576,$A24,CE$1))","v":""},{"$f":"IF($A24=\"N/A\",Ref!$B$36,INDEX(Ranks!$1:$1048576,$A24,CF$1))","v":""},{"$f":"IF($A24=\"N/A\",Ref!$B$36,INDEX(Ranks!$1:$1048576,$A24,CG$1))","v":""},{"$f":"IF($A24=\"N/A\",Ref!$B$36,INDEX(Ranks!$1:$1048576,$A24,CH$1))","v":""},{"$f":"IF($A24=\"N/A\",Ref!$B$36,INDEX(Ranks!$1:$1048576,$A24,CI$1))","v":""},{"$f":"IF($A24=\"N/A\",Ref!$B$36,INDEX(Ranks!$1:$1048576,$A24,CJ$1))","v":""},{"$f":"IF($A24=\"N/A\",Ref!$B$36,INDEX(Ranks!$1:$1048576,$A24,CK$1))","v":""},{"$f":"IF($A24=\"N/A\",Ref!$B$36,INDEX(Ranks!$1:$1048576,$A24,CL$1))","v":""},{"$f":"IF($A24=\"N/A\",Ref!$B$36,INDEX(Ranks!$1:$1048576,$A24,CM$1))","v":""},{"$f":"IF($A24=\"N/A\",Ref!$B$36,INDEX(Ranks!$1:$1048576,$A24,CN$1))","v":""},{"$f":"IF($A24=\"N/A\",Ref!$B$36,INDEX(Ranks!$1:$1048576,$A24,CO$1))","v":""},{"$f":"IF($A24=\"N/A\",Ref!$B$36,INDEX(Ranks!$1:$1048576,$A24,CP$1))","v":""},{"$f":"IF($A24=\"N/A\",Ref!$B$36,INDEX(Ranks!$1:$1048576,$A24,CQ$1))","v":""},{"$f":"IF($A24=\"N/A\",Ref!$B$36,INDEX(Ranks!$1:$1048576,$A24,CR$1))","v":""},{"$f":"IF($A24=\"N/A\",Ref!$B$36,INDEX(Ranks!$1:$1048576,$A24,CS$1))","v":""},{"$f":"IF($A24=\"N/A\",Ref!$B$36,INDEX(Ranks!$1:$1048576,$A24,CT$1))","v":""},{"$f":"IF($A24=\"N/A\",Ref!$B$36,INDEX(Ranks!$1:$1048576,$A24,CU$1))","v":""},{"$f":"IF($A24=\"N/A\",Ref!$B$36,INDEX(Ranks!$1:$1048576,$A24,CV$1))","v":""},{"$f":"IF($A24=\"N/A\",Ref!$B$36,INDEX(Ranks!$1:$1048576,$A24,CW$1))","v":""},{"$f":"IF($A24=\"N/A\",Ref!$B$36,INDEX(Ranks!$1:$1048576,$A24,CX$1))","v":""},{"$f":"IF($A24=\"N/A\",Ref!$B$36,INDEX(Ranks!$1:$1048576,$A24,CY$1))","v":""},{"$f":"IF($A24=\"N/A\",Ref!$B$36,INDEX(Ranks!$1:$1048576,$A24,CZ$1))","v":""},{"$f":"IF($A24=\"N/A\",Ref!$B$36,INDEX(Ranks!$1:$1048576,$A24,DA$1))","v":""},{"$f":"IF($A24=\"N/A\",Ref!$B$36,INDEX(Ranks!$1:$1048576,$A24,DB$1))","v":""},{"$f":"IF($A24=\"N/A\",Ref!$B$36,INDEX(Ranks!$1:$1048576,$A24,DC$1))","v":""},{"$f":"IF($A24=\"N/A\",Ref!$B$36,INDEX(Ranks!$1:$1048576,$A24,DD$1))","v":""},{"$f":"IF($A24=\"N/A\",Ref!$B$36,INDEX(Ranks!$1:$1048576,$A24,DE$1))","v":""},{"$f":"IF($A24=\"N/A\",Ref!$B$36,INDEX(Ranks!$1:$1048576,$A24,DF$1))","v":""},{"$f":"IF($A24=\"N/A\",Ref!$B$36,INDEX(Ranks!$1:$1048576,$A24,DG$1))","v":""},{"$f":"IF($A24=\"N/A\",Ref!$B$36,INDEX(Ranks!$1:$1048576,$A24,DH$1))","v":""},{"$f":"IF($A24=\"N/A\",Ref!$B$36,INDEX(Ranks!$1:$1048576,$A24,DI$1))","v":""},{"$f":"IF($A24=\"N/A\",Ref!$B$36,INDEX(Ranks!$1:$1048576,$A24,DJ$1))","v":""},{"$f":"IF($A24=\"N/A\",Ref!$B$36,INDEX(Ranks!$1:$1048576,$A24,DK$1))","v":""},{"$f":"IF($A24=\"N/A\",Ref!$B$36,INDEX(Ranks!$1:$1048576,$A24,DL$1))","v":""},{"$f":"IF($A24=\"N/A\",Ref!$B$36,INDEX(Ranks!$1:$1048576,$A24,DM$1))","v":""},{"$f":"IF($A24=\"N/A\",Ref!$B$36,INDEX(Ranks!$1:$1048576,$A24,DN$1))","v":""},{"$f":"IF($A24=\"N/A\",Ref!$B$36,INDEX(Ranks!$1:$1048576,$A24,DO$1))","v":""},{"$f":"IF($A24=\"N/A\",Ref!$B$36,INDEX(Ranks!$1:$1048576,$A24,DP$1))","v":""},{"$f":"IF($A24=\"N/A\",Ref!$B$36,INDEX(Ranks!$1:$1048576,$A24,DQ$1))","v":""},{"$f":"IF($A24=\"N/A\",Ref!$B$36,INDEX(Ranks!$1:$1048576,$A24,DR$1))","v":""},{"$f":"IF($A24=\"N/A\",Ref!$B$36,INDEX(Ranks!$1:$1048576,$A24,DS$1))","v":""},{"$f":"IF($A24=\"N/A\",Ref!$B$36,INDEX(Ranks!$1:$1048576,$A24,DT$1))","v":""},{"$f":"IF($A24=\"N/A\",Ref!$B$36,INDEX(Ranks!$1:$1048576,$A24,DU$1))","v":""},{"$f":"IF($A24=\"N/A\",Ref!$B$36,INDEX(Ranks!$1:$1048576,$A24,DV$1))","v":""},{"$f":"IF($A24=\"N/A\",Ref!$B$36,INDEX(Ranks!$1:$1048576,$A24,DW$1))","v":""},{"$f":"IF($A24=\"N/A\",Ref!$B$36,INDEX(Ranks!$1:$1048576,$A24,DX$1))","v":""},{"$f":"IF($A24=\"N/A\",Ref!$B$36,INDEX(Ranks!$1:$1048576,$A24,DY$1))","v":""},{"$f":"IF($A24=\"N/A\",Ref!$B$36,INDEX(Ranks!$1:$1048576,$A24,DZ$1))","v":""},{"$f":"IF($A24=\"N/A\",Ref!$B$36,INDEX(Ranks!$1:$1048576,$A24,EA$1))","v":""},{"$f":"IF($A24=\"N/A\",Ref!$B$36,INDEX(Ranks!$1:$1048576,$A24,EB$1))","v":""}]
[{"$f":"IFERROR(MATCH('Portfolio Page'!L25,Ranks!L:L,0),\"N/A\")","v":"N/A"},null,{"$f":"IF($A25=\"N/A\",\"\",INDEX(Ranks!$1:$1048576,$A25,C$1))","v":""},{"$f":"IF($A25=\"N/A\",Ref!$B$36,INDEX(Ranks!$1:$1048576,$A25,D$1))","v":""},{"$f":"IF($A25=\"N/A\",Ref!$B$36,INDEX(Ranks!$1:$1048576,$A25,E$1))","v":""},{"$f":"IF($A25=\"N/A\",\"\",INDEX(Ranks!$1:$1048576,$A25,F$1))","v":""},{"$f":"IF($A25=\"N/A\",\"\",INDEX(Ranks!$1:$1048576,$A25,G$1))","v":""},{"$f":"IF($A25=\"N/A\",\"\",INDEX(Ranks!$1:$1048576,$A25,H$1))","v":""},{"$f":"IF($A25=\"N/A\",\"\",INDEX(Ranks!$1:$1048576,$A25,I$1))","v":""},{"$f":"IF($A25=\"N/A\",\"\",INDEX(Ranks!$1:$1048576,$A25,J$1))","v":""},{"$f":"IF($A25=\"N/A\",\"\",INDEX(Ranks!$1:$1048576,$A25,K$1))","v":""},null,{"$f":"IF($A25=\"N/A\",Ref!$B$36,INDEX(Ranks!$1:$1048576,$A25,M$1))","v":""},{"$f":"IF($A25=\"N/A\",Ref!$B$36,INDEX(Ranks!$1:$1048576,$A25,N$1))","v":""},{"$f":"IF($A25=\"N/A\",Ref!$B$36,INDEX(Ranks!$1:$1048576,$A25,O$1))","v":""},{"$f":"IF($A25=\"N/A\",Ref!$B$36,INDEX(Ranks!$1:$1048576,$A25,P$1))","v":""},{"$f":"IF($A25=\"N/A\",Ref!$B$36,INDEX(Ranks!$1:$1048576,$A25,Q$1))","v":""},{"$f":"IF($A25=\"N/A\",Ref!$B$36,INDEX(Ranks!$1:$1048576,$A25,R$1))","v":""},{"$f":"IF($A25=\"N/A\",Ref!$B$36,INDEX(Ranks!$1:$1048576,$A25,S$1))","v":""},{"$f":"IF($A25=\"N/A\",Ref!$B$36,INDEX(Ranks!$1:$1048576,$A25,T$1))","v":""},{"$f":"IF($A25=\"N/A\",Ref!$B$36,INDEX(Ranks!$1:$1048576,$A25,U$1))","v":""},{"$f":"IF($A25=\"N/A\",Ref!$B$36,INDEX(Ranks!$1:$1048576,$A25,V$1))","v":""},{"$f":"IF($A25=\"N/A\",Ref!$B$36,INDEX(Ranks!$1:$1048576,$A25,W$1))","v":""},{"$f":"IF($A25=\"N/A\",Ref!$B$36,INDEX(Ranks!$1:$1048576,$A25,X$1))","v":""},{"$f":"IF($A25=\"N/A\",Ref!$B$36,INDEX(Ranks!$1:$1048576,$A25,Y$1))","v":""},{"$f":"IF($A25=\"N/A\",Ref!$B$36,INDEX(Ranks!$1:$1048576,$A25,Z$1))","v":""},{"$f":"IF($A25=\"N/A\",Ref!$B$36,INDEX(Ranks!$1:$1048576,$A25,AA$1))","v":""},{"$f":"IF($A25=\"N/A\",Ref!$B$36,INDEX(Ranks!$1:$1048576,$A25,AB$1))","v":""},{"$f":"IF($A25=\"N/A\",Ref!$B$36,INDEX(Ranks!$1:$1048576,$A25,AC$1))","v":""},{"$f":"IF($A25=\"N/A\",Ref!$B$36,INDEX(Ranks!$1:$1048576,$A25,AD$1))","v":""},{"$f":"IF($A25=\"N/A\",Ref!$B$36,INDEX(Ranks!$1:$1048576,$A25,AE$1))","v":""},{"$f":"IF($A25=\"N/A\",Ref!$B$36,INDEX(Ranks!$1:$1048576,$A25,AF$1))","v":""},{"$f":"IF($A25=\"N/A\",Ref!$B$36,INDEX(Ranks!$1:$1048576,$A25,AG$1))","v":""},{"$f":"IF($A25=\"N/A\",Ref!$B$36,INDEX(Ranks!$1:$1048576,$A25,AH$1))","v":""},{"$f":"IF($A25=\"N/A\",Ref!$B$36,INDEX(Ranks!$1:$1048576,$A25,AI$1))","v":""},{"$f":"IF($A25=\"N/A\",Ref!$B$36,INDEX(Ranks!$1:$1048576,$A25,AJ$1))","v":""},{"$f":"IF($A25=\"N/A\",Ref!$B$36,INDEX(Ranks!$1:$1048576,$A25,AK$1))","v":""},{"$f":"IF($A25=\"N/A\",Ref!$B$36,INDEX(Ranks!$1:$1048576,$A25,AL$1))","v":""},{"$f":"IF($A25=\"N/A\",Ref!$B$36,INDEX(Ranks!$1:$1048576,$A25,AM$1))","v":""},{"$f":"IF($A25=\"N/A\",Ref!$B$36,INDEX(Ranks!$1:$1048576,$A25,AN$1))","v":""},{"$f":"IF($A25=\"N/A\",Ref!$B$36,INDEX(Ranks!$1:$1048576,$A25,AO$1))","v":""},{"$f":"IF($A25=\"N/A\",Ref!$B$36,INDEX(Ranks!$1:$1048576,$A25,AP$1))","v":""},{"$f":"IF($A25=\"N/A\",Ref!$B$36,INDEX(Ranks!$1:$1048576,$A25,AQ$1))","v":""},{"$f":"IF($A25=\"N/A\",Ref!$B$36,INDEX(Ranks!$1:$1048576,$A25,AR$1))","v":""},{"$f":"IF($A25=\"N/A\",Ref!$B$36,INDEX(Ranks!$1:$1048576,$A25,AS$1))","v":""},{"$f":"IF($A25=\"N/A\",Ref!$B$36,INDEX(Ranks!$1:$1048576,$A25,AT$1))","v":""},{"$f":"IF($A25=\"N/A\",Ref!$B$36,INDEX(Ranks!$1:$1048576,$A25,AU$1))","v":""},{"$f":"IF($A25=\"N/A\",Ref!$B$36,INDEX(Ranks!$1:$1048576,$A25,AV$1))","v":""},{"$f":"IF($A25=\"N/A\",Ref!$B$36,INDEX(Ranks!$1:$1048576,$A25,AW$1))","v":""},{"$f":"IF($A25=\"N/A\",Ref!$B$36,INDEX(Ranks!$1:$1048576,$A25,AX$1))","v":""},{"$f":"IF($A25=\"N/A\",Ref!$B$36,INDEX(Ranks!$1:$1048576,$A25,AY$1))","v":""},{"$f":"IF($A25=\"N/A\",Ref!$B$36,INDEX(Ranks!$1:$1048576,$A25,AZ$1))","v":""},{"$f":"IF($A25=\"N/A\",Ref!$B$36,INDEX(Ranks!$1:$1048576,$A25,BA$1))","v":""},{"$f":"IF($A25=\"N/A\",Ref!$B$36,INDEX(Ranks!$1:$1048576,$A25,BB$1))","v":""},{"$f":"IF($A25=\"N/A\",Ref!$B$36,INDEX(Ranks!$1:$1048576,$A25,BC$1))","v":""},{"$f":"IF($A25=\"N/A\",Ref!$B$36,INDEX(Ranks!$1:$1048576,$A25,BD$1))","v":""},{"$f":"IF($A25=\"N/A\",Ref!$B$36,INDEX(Ranks!$1:$1048576,$A25,BE$1))","v":""},{"$f":"IF($A25=\"N/A\",Ref!$B$36,INDEX(Ranks!$1:$1048576,$A25,BF$1))","v":""},{"$f":"IF($A25=\"N/A\",Ref!$B$36,INDEX(Ranks!$1:$1048576,$A25,BG$1))","v":""},{"$f":"IF($A25=\"N/A\",Ref!$B$36,INDEX(Ranks!$1:$1048576,$A25,BH$1))","v":""},{"$f":"IF($A25=\"N/A\",Ref!$B$36,INDEX(Ranks!$1:$1048576,$A25,BI$1))","v":""},{"$f":"IF($A25=\"N/A\",Ref!$B$36,INDEX(Ranks!$1:$1048576,$A25,BJ$1))","v":""},{"$f":"IF($A25=\"N/A\",Ref!$B$36,INDEX(Ranks!$1:$1048576,$A25,BK$1))","v":""},{"$f":"IF($A25=\"N/A\",Ref!$B$36,INDEX(Ranks!$1:$1048576,$A25,BL$1))","v":""},{"$f":"IF($A25=\"N/A\",Ref!$B$36,INDEX(Ranks!$1:$1048576,$A25,BM$1))","v":""},{"$f":"IF($A25=\"N/A\",Ref!$B$36,INDEX(Ranks!$1:$1048576,$A25,BN$1))","v":""},{"$f":"IF($A25=\"N/A\",Ref!$B$36,INDEX(Ranks!$1:$1048576,$A25,BO$1))","v":""},{"$f":"IF($A25=\"N/A\",Ref!$B$36,INDEX(Ranks!$1:$1048576,$A25,BP$1))","v":""},{"$f":"IF($A25=\"N/A\",Ref!$B$36,INDEX(Ranks!$1:$1048576,$A25,BQ$1))","v":""},{"$f":"IF($A25=\"N/A\",Ref!$B$36,INDEX(Ranks!$1:$1048576,$A25,BR$1))","v":""},{"$f":"IF($A25=\"N/A\",Ref!$B$36,INDEX(Ranks!$1:$1048576,$A25,BS$1))","v":""},{"$f":"IF($A25=\"N/A\",Ref!$B$36,INDEX(Ranks!$1:$1048576,$A25,BT$1))","v":""},{"$f":"IF($A25=\"N/A\",Ref!$B$36,INDEX(Ranks!$1:$1048576,$A25,BU$1))","v":""},{"$f":"IF($A25=\"N/A\",Ref!$B$36,INDEX(Ranks!$1:$1048576,$A25,BV$1))","v":""},{"$f":"IF($A25=\"N/A\",Ref!$B$36,INDEX(Ranks!$1:$1048576,$A25,BW$1))","v":""},{"$f":"IF($A25=\"N/A\",Ref!$B$36,INDEX(Ranks!$1:$1048576,$A25,BX$1))","v":""},{"$f":"IF($A25=\"N/A\",Ref!$B$36,INDEX(Ranks!$1:$1048576,$A25,BY$1))","v":""},{"$f":"IF($A25=\"N/A\",Ref!$B$36,INDEX(Ranks!$1:$1048576,$A25,BZ$1))","v":""},{"$f":"IF($A25=\"N/A\",Ref!$B$36,INDEX(Ranks!$1:$1048576,$A25,CA$1))","v":""},{"$f":"IF($A25=\"N/A\",Ref!$B$36,INDEX(Ranks!$1:$1048576,$A25,CB$1))","v":""},{"$f":"IF($A25=\"N/A\",Ref!$B$36,INDEX(Ranks!$1:$1048576,$A25,CC$1))","v":""},{"$f":"IF($A25=\"N/A\",Ref!$B$36,INDEX(Ranks!$1:$1048576,$A25,CD$1))","v":""},{"$f":"IF($A25=\"N/A\",Ref!$B$36,INDEX(Ranks!$1:$1048576,$A25,CE$1))","v":""},{"$f":"IF($A25=\"N/A\",Ref!$B$36,INDEX(Ranks!$1:$1048576,$A25,CF$1))","v":""},{"$f":"IF($A25=\"N/A\",Ref!$B$36,INDEX(Ranks!$1:$1048576,$A25,CG$1))","v":""},{"$f":"IF($A25=\"N/A\",Ref!$B$36,INDEX(Ranks!$1:$1048576,$A25,CH$1))","v":""},{"$f":"IF($A25=\"N/A\",Ref!$B$36,INDEX(Ranks!$1:$1048576,$A25,CI$1))","v":""},{"$f":"IF($A25=\"N/A\",Ref!$B$36,INDEX(Ranks!$1:$1048576,$A25,CJ$1))","v":""},{"$f":"IF($A25=\"N/A\",Ref!$B$36,INDEX(Ranks!$1:$1048576,$A25,CK$1))","v":""},{"$f":"IF($A25=\"N/A\",Ref!$B$36,INDEX(Ranks!$1:$1048576,$A25,CL$1))","v":""},{"$f":"IF($A25=\"N/A\",Ref!$B$36,INDEX(Ranks!$1:$1048576,$A25,CM$1))","v":""},{"$f":"IF($A25=\"N/A\",Ref!$B$36,INDEX(Ranks!$1:$1048576,$A25,CN$1))","v":""},{"$f":"IF($A25=\"N/A\",Ref!$B$36,INDEX(Ranks!$1:$1048576,$A25,CO$1))","v":""},{"$f":"IF($A25=\"N/A\",Ref!$B$36,INDEX(Ranks!$1:$1048576,$A25,CP$1))","v":""},{"$f":"IF($A25=\"N/A\",Ref!$B$36,INDEX(Ranks!$1:$1048576,$A25,CQ$1))","v":""},{"$f":"IF($A25=\"N/A\",Ref!$B$36,INDEX(Ranks!$1:$1048576,$A25,CR$1))","v":""},{"$f":"IF($A25=\"N/A\",Ref!$B$36,INDEX(Ranks!$1:$1048576,$A25,CS$1))","v":""},{"$f":"IF($A25=\"N/A\",Ref!$B$36,INDEX(Ranks!$1:$1048576,$A25,CT$1))","v":""},{"$f":"IF($A25=\"N/A\",Ref!$B$36,INDEX(Ranks!$1:$1048576,$A25,CU$1))","v":""},{"$f":"IF($A25=\"N/A\",Ref!$B$36,INDEX(Ranks!$1:$1048576,$A25,CV$1))","v":""},{"$f":"IF($A25=\"N/A\",Ref!$B$36,INDEX(Ranks!$1:$1048576,$A25,CW$1))","v":""},{"$f":"IF($A25=\"N/A\",Ref!$B$36,INDEX(Ranks!$1:$1048576,$A25,CX$1))","v":""},{"$f":"IF($A25=\"N/A\",Ref!$B$36,INDEX(Ranks!$1:$1048576,$A25,CY$1))","v":""},{"$f":"IF($A25=\"N/A\",Ref!$B$36,INDEX(Ranks!$1:$1048576,$A25,CZ$1))","v":""},{"$f":"IF($A25=\"N/A\",Ref!$B$36,INDEX(Ranks!$1:$1048576,$A25,DA$1))","v":""},{"$f":"IF($A25=\"N/A\",Ref!$B$36,INDEX(Ranks!$1:$1048576,$A25,DB$1))","v":""},{"$f":"IF($A25=\"N/A\",Ref!$B$36,INDEX(Ranks!$1:$1048576,$A25,DC$1))","v":""},{"$f":"IF($A25=\"N/A\",Ref!$B$36,INDEX(Ranks!$1:$1048576,$A25,DD$1))","v":""},{"$f":"IF($A25=\"N/A\",Ref!$B$36,INDEX(Ranks!$1:$1048576,$A25,DE$1))","v":""},{"$f":"IF($A25=\"N/A\",Ref!$B$36,INDEX(Ranks!$1:$1048576,$A25,DF$1))","v":""},{"$f":"IF($A25=\"N/A\",Ref!$B$36,INDEX(Ranks!$1:$1048576,$A25,DG$1))","v":""},{"$f":"IF($A25=\"N/A\",Ref!$B$36,INDEX(Ranks!$1:$1048576,$A25,DH$1))","v":""},{"$f":"IF($A25=\"N/A\",Ref!$B$36,INDEX(Ranks!$1:$1048576,$A25,DI$1))","v":""},{"$f":"IF($A25=\"N/A\",Ref!$B$36,INDEX(Ranks!$1:$1048576,$A25,DJ$1))","v":""},{"$f":"IF($A25=\"N/A\",Ref!$B$36,INDEX(Ranks!$1:$1048576,$A25,DK$1))","v":""},{"$f":"IF($A25=\"N/A\",Ref!$B$36,INDEX(Ranks!$1:$1048576,$A25,DL$1))","v":""},{"$f":"IF($A25=\"N/A\",Ref!$B$36,INDEX(Ranks!$1:$1048576,$A25,DM$1))","v":""},{"$f":"IF($A25=\"N/A\",Ref!$B$36,INDEX(Ranks!$1:$1048576,$A25,DN$1))","v":""},{"$f":"IF($A25=\"N/A\",Ref!$B$36,INDEX(Ranks!$1:$1048576,$A25,DO$1))","v":""},{"$f":"IF($A25=\"N/A\",Ref!$B$36,INDEX(Ranks!$1:$1048576,$A25,DP$1))","v":""},{"$f":"IF($A25=\"N/A\",Ref!$B$36,INDEX(Ranks!$1:$1048576,$A25,DQ$1))","v":""},{"$f":"IF($A25=\"N/A\",Ref!$B$36,INDEX(Ranks!$1:$1048576,$A25,DR$1))","v":""},{"$f":"IF($A25=\"N/A\",Ref!$B$36,INDEX(Ranks!$1:$1048576,$A25,DS$1))","v":""},{"$f":"IF($A25=\"N/A\",Ref!$B$36,INDEX(Ranks!$1:$1048576,$A25,DT$1))","v":""},{"$f":"IF($A25=\"N/A\",Ref!$B$36,INDEX(Ranks!$1:$1048576,$A25,DU$1))","v":""},{"$f":"IF($A25=\"N/A\",Ref!$B$36,INDEX(Ranks!$1:$1048576,$A25,DV$1))","v":""},{"$f":"IF($A25=\"N/A\",Ref!$B$36,INDEX(Ranks!$1:$1048576,$A25,DW$1))","v":""},{"$f":"IF($A25=\"N/A\",Ref!$B$36,INDEX(Ranks!$1:$1048576,$A25,DX$1))","v":""},{"$f":"IF($A25=\"N/A\",Ref!$B$36,INDEX(Ranks!$1:$1048576,$A25,DY$1))","v":""},{"$f":"IF($A25=\"N/A\",Ref!$B$36,INDEX(Ranks!$1:$1048576,$A25,DZ$1))","v":""},{"$f":"IF($A25=\"N/A\",Ref!$B$36,INDEX(Ranks!$1:$1048576,$A25,EA$1))","v":""},{"$f":"IF($A25=\"N/A\",Ref!$B$36,INDEX(Ranks!$1:$1048576,$A25,EB$1))","v":""}]
[{"$f":"IFERROR(MATCH('Portfolio Page'!L26,Ranks!L:L,0),\"N/A\")","v":"N/A"},null,{"$f":"IF($A26=\"N/A\",\"\",INDEX(Ranks!$1:$1048576,$A26,C$1))","v":""},{"$f":"IF($A26=\"N/A\",Ref!$B$36,INDEX(Ranks!$1:$1048576,$A26,D$1))","v":""},{"$f":"IF($A26=\"N/A\",Ref!$B$36,INDEX(Ranks!$1:$1048576,$A26,E$1))","v":""},{"$f":"IF($A26=\"N/A\",\"\",INDEX(Ranks!$1:$1048576,$A26,F$1))","v":""},{"$f":"IF($A26=\"N/A\",\"\",INDEX(Ranks!$1:$1048576,$A26,G$1))","v":""},{"$f":"IF($A26=\"N/A\",\"\",INDEX(Ranks!$1:$1048576,$A26,H$1))","v":""},{"$f":"IF($A26=\"N/A\",\"\",INDEX(Ranks!$1:$1048576,$A26,I$1))","v":""},{"$f":"IF($A26=\"N/A\",\"\",INDEX(Ranks!$1:$1048576,$A26,J$1))","v":""},{"$f":"IF($A26=\"N/A\",\"\",INDEX(Ranks!$1:$1048576,$A26,K$1))","v":""},null,{"$f":"IF($A26=\"N/A\",Ref!$B$36,INDEX(Ranks!$1:$1048576,$A26,M$1))","v":""},{"$f":"IF($A26=\"N/A\",Ref!$B$36,INDEX(Ranks!$1:$1048576,$A26,N$1))","v":""},{"$f":"IF($A26=\"N/A\",Ref!$B$36,INDEX(Ranks!$1:$1048576,$A26,O$1))","v":""},{"$f":"IF($A26=\"N/A\",Ref!$B$36,INDEX(Ranks!$1:$1048576,$A26,P$1))","v":""},{"$f":"IF($A26=\"N/A\",Ref!$B$36,INDEX(Ranks!$1:$1048576,$A26,Q$1))","v":""},{"$f":"IF($A26=\"N/A\",Ref!$B$36,INDEX(Ranks!$1:$1048576,$A26,R$1))","v":""},{"$f":"IF($A26=\"N/A\",Ref!$B$36,INDEX(Ranks!$1:$1048576,$A26,S$1))","v":""},{"$f":"IF($A26=\"N/A\",Ref!$B$36,INDEX(Ranks!$1:$1048576,$A26,T$1))","v":""},{"$f":"IF($A26=\"N/A\",Ref!$B$36,INDEX(Ranks!$1:$1048576,$A26,U$1))","v":""},{"$f":"IF($A26=\"N/A\",Ref!$B$36,INDEX(Ranks!$1:$1048576,$A26,V$1))","v":""},{"$f":"IF($A26=\"N/A\",Ref!$B$36,INDEX(Ranks!$1:$1048576,$A26,W$1))","v":""},{"$f":"IF($A26=\"N/A\",Ref!$B$36,INDEX(Ranks!$1:$1048576,$A26,X$1))","v":""},{"$f":"IF($A26=\"N/A\",Ref!$B$36,INDEX(Ranks!$1:$1048576,$A26,Y$1))","v":""},{"$f":"IF($A26=\"N/A\",Ref!$B$36,INDEX(Ranks!$1:$1048576,$A26,Z$1))","v":""},{"$f":"IF($A26=\"N/A\",Ref!$B$36,INDEX(Ranks!$1:$1048576,$A26,AA$1))","v":""},{"$f":"IF($A26=\"N/A\",Ref!$B$36,INDEX(Ranks!$1:$1048576,$A26,AB$1))","v":""},{"$f":"IF($A26=\"N/A\",Ref!$B$36,INDEX(Ranks!$1:$1048576,$A26,AC$1))","v":""},{"$f":"IF($A26=\"N/A\",Ref!$B$36,INDEX(Ranks!$1:$1048576,$A26,AD$1))","v":""},{"$f":"IF($A26=\"N/A\",Ref!$B$36,INDEX(Ranks!$1:$1048576,$A26,AE$1))","v":""},{"$f":"IF($A26=\"N/A\",Ref!$B$36,INDEX(Ranks!$1:$1048576,$A26,AF$1))","v":""},{"$f":"IF($A26=\"N/A\",Ref!$B$36,INDEX(Ranks!$1:$1048576,$A26,AG$1))","v":""},{"$f":"IF($A26=\"N/A\",Ref!$B$36,INDEX(Ranks!$1:$1048576,$A26,AH$1))","v":""},{"$f":"IF($A26=\"N/A\",Ref!$B$36,INDEX(Ranks!$1:$1048576,$A26,AI$1))","v":""},{"$f":"IF($A26=\"N/A\",Ref!$B$36,INDEX(Ranks!$1:$1048576,$A26,AJ$1))","v":""},{"$f":"IF($A26=\"N/A\",Ref!$B$36,INDEX(Ranks!$1:$1048576,$A26,AK$1))","v":""},{"$f":"IF($A26=\"N/A\",Ref!$B$36,INDEX(Ranks!$1:$1048576,$A26,AL$1))","v":""},{"$f":"IF($A26=\"N/A\",Ref!$B$36,INDEX(Ranks!$1:$1048576,$A26,AM$1))","v":""},{"$f":"IF($A26=\"N/A\",Ref!$B$36,INDEX(Ranks!$1:$1048576,$A26,AN$1))","v":""},{"$f":"IF($A26=\"N/A\",Ref!$B$36,INDEX(Ranks!$1:$1048576,$A26,AO$1))","v":""},{"$f":"IF($A26=\"N/A\",Ref!$B$36,INDEX(Ranks!$1:$1048576,$A26,AP$1))","v":""},{"$f":"IF($A26=\"N/A\",Ref!$B$36,INDEX(Ranks!$1:$1048576,$A26,AQ$1))","v":""},{"$f":"IF($A26=\"N/A\",Ref!$B$36,INDEX(Ranks!$1:$1048576,$A26,AR$1))","v":""},{"$f":"IF($A26=\"N/A\",Ref!$B$36,INDEX(Ranks!$1:$1048576,$A26,AS$1))","v":""},{"$f":"IF($A26=\"N/A\",Ref!$B$36,INDEX(Ranks!$1:$1048576,$A26,AT$1))","v":""},{"$f":"IF($A26=\"N/A\",Ref!$B$36,INDEX(Ranks!$1:$1048576,$A26,AU$1))","v":""},{"$f":"IF($A26=\"N/A\",Ref!$B$36,INDEX(Ranks!$1:$1048576,$A26,AV$1))","v":""},{"$f":"IF($A26=\"N/A\",Ref!$B$36,INDEX(Ranks!$1:$1048576,$A26,AW$1))","v":""},{"$f":"IF($A26=\"N/A\",Ref!$B$36,INDEX(Ranks!$1:$1048576,$A26,AX$1))","v":""},{"$f":"IF($A26=\"N/A\",Ref!$B$36,INDEX(Ranks!$1:$1048576,$A26,AY$1))","v":""},{"$f":"IF($A26=\"N/A\",Ref!$B$36,INDEX(Ranks!$1:$1048576,$A26,AZ$1))","v":""},{"$f":"IF($A26=\"N/A\",Ref!$B$36,INDEX(Ranks!$1:$1048576,$A26,BA$1))","v":""},{"$f":"IF($A26=\"N/A\",Ref!$B$36,INDEX(Ranks!$1:$1048576,$A26,BB$1))","v":""},{"$f":"IF($A26=\"N/A\",Ref!$B$36,INDEX(Ranks!$1:$1048576,$A26,BC$1))","v":""},{"$f":"IF($A26=\"N/A\",Ref!$B$36,INDEX(Ranks!$1:$1048576,$A26,BD$1))","v":""},{"$f":"IF($A26=\"N/A\",Ref!$B$36,INDEX(Ranks!$1:$1048576,$A26,BE$1))","v":""},{"$f":"IF($A26=\"N/A\",Ref!$B$36,INDEX(Ranks!$1:$1048576,$A26,BF$1))","v":""},{"$f":"IF($A26=\"N/A\",Ref!$B$36,INDEX(Ranks!$1:$1048576,$A26,BG$1))","v":""},{"$f":"IF($A26=\"N/A\",Ref!$B$36,INDEX(Ranks!$1:$1048576,$A26,BH$1))","v":""},{"$f":"IF($A26=\"N/A\",Ref!$B$36,INDEX(Ranks!$1:$1048576,$A26,BI$1))","v":""},{"$f":"IF($A26=\"N/A\",Ref!$B$36,INDEX(Ranks!$1:$1048576,$A26,BJ$1))","v":""},{"$f":"IF($A26=\"N/A\",Ref!$B$36,INDEX(Ranks!$1:$1048576,$A26,BK$1))","v":""},{"$f":"IF($A26=\"N/A\",Ref!$B$36,INDEX(Ranks!$1:$1048576,$A26,BL$1))","v":""},{"$f":"IF($A26=\"N/A\",Ref!$B$36,INDEX(Ranks!$1:$1048576,$A26,BM$1))","v":""},{"$f":"IF($A26=\"N/A\",Ref!$B$36,INDEX(Ranks!$1:$1048576,$A26,BN$1))","v":""},{"$f":"IF($A26=\"N/A\",Ref!$B$36,INDEX(Ranks!$1:$1048576,$A26,BO$1))","v":""},{"$f":"IF($A26=\"N/A\",Ref!$B$36,INDEX(Ranks!$1:$1048576,$A26,BP$1))","v":""},{"$f":"IF($A26=\"N/A\",Ref!$B$36,INDEX(Ranks!$1:$1048576,$A26,BQ$1))","v":""},{"$f":"IF($A26=\"N/A\",Ref!$B$36,INDEX(Ranks!$1:$1048576,$A26,BR$1))","v":""},{"$f":"IF($A26=\"N/A\",Ref!$B$36,INDEX(Ranks!$1:$1048576,$A26,BS$1))","v":""},{"$f":"IF($A26=\"N/A\",Ref!$B$36,INDEX(Ranks!$1:$1048576,$A26,BT$1))","v":""},{"$f":"IF($A26=\"N/A\",Ref!$B$36,INDEX(Ranks!$1:$1048576,$A26,BU$1))","v":""},{"$f":"IF($A26=\"N/A\",Ref!$B$36,INDEX(Ranks!$1:$1048576,$A26,BV$1))","v":""},{"$f":"IF($A26=\"N/A\",Ref!$B$36,INDEX(Ranks!$1:$1048576,$A26,BW$1))","v":""},{"$f":"IF($A26=\"N/A\",Ref!$B$36,INDEX(Ranks!$1:$1048576,$A26,BX$1))","v":""},{"$f":"IF($A26=\"N/A\",Ref!$B$36,INDEX(Ranks!$1:$1048576,$A26,BY$1))","v":""},{"$f":"IF($A26=\"N/A\",Ref!$B$36,INDEX(Ranks!$1:$1048576,$A26,BZ$1))","v":""},{"$f":"IF($A26=\"N/A\",Ref!$B$36,INDEX(Ranks!$1:$1048576,$A26,CA$1))","v":""},{"$f":"IF($A26=\"N/A\",Ref!$B$36,INDEX(Ranks!$1:$1048576,$A26,CB$1))","v":""},{"$f":"IF($A26=\"N/A\",Ref!$B$36,INDEX(Ranks!$1:$1048576,$A26,CC$1))","v":""},{"$f":"IF($A26=\"N/A\",Ref!$B$36,INDEX(Ranks!$1:$1048576,$A26,CD$1))","v":""},{"$f":"IF($A26=\"N/A\",Ref!$B$36,INDEX(Ranks!$1:$1048576,$A26,CE$1))","v":""},{"$f":"IF($A26=\"N/A\",Ref!$B$36,INDEX(Ranks!$1:$1048576,$A26,CF$1))","v":""},{"$f":"IF($A26=\"N/A\",Ref!$B$36,INDEX(Ranks!$1:$1048576,$A26,CG$1))","v":""},{"$f":"IF($A26=\"N/A\",Ref!$B$36,INDEX(Ranks!$1:$1048576,$A26,CH$1))","v":""},{"$f":"IF($A26=\"N/A\",Ref!$B$36,INDEX(Ranks!$1:$1048576,$A26,CI$1))","v":""},{"$f":"IF($A26=\"N/A\",Ref!$B$36,INDEX(Ranks!$1:$1048576,$A26,CJ$1))","v":""},{"$f":"IF($A26=\"N/A\",Ref!$B$36,INDEX(Ranks!$1:$1048576,$A26,CK$1))","v":""},{"$f":"IF($A26=\"N/A\",Ref!$B$36,INDEX(Ranks!$1:$1048576,$A26,CL$1))","v":""},{"$f":"IF($A26=\"N/A\",Ref!$B$36,INDEX(Ranks!$1:$1048576,$A26,CM$1))","v":""},{"$f":"IF($A26=\"N/A\",Ref!$B$36,INDEX(Ranks!$1:$1048576,$A26,CN$1))","v":""},{"$f":"IF($A26=\"N/A\",Ref!$B$36,INDEX(Ranks!$1:$1048576,$A26,CO$1))","v":""},{"$f":"IF($A26=\"N/A\",Ref!$B$36,INDEX(Ranks!$1:$1048576,$A26,CP$1))","v":""},{"$f":"IF($A26=\"N/A\",Ref!$B$36,INDEX(Ranks!$1:$1048576,$A26,CQ$1))","v":""},{"$f":"IF($A26=\"N/A\",Ref!$B$36,INDEX(Ranks!$1:$1048576,$A26,CR$1))","v":""},{"$f":"IF($A26=\"N/A\",Ref!$B$36,INDEX(Ranks!$1:$1048576,$A26,CS$1))","v":""},{"$f":"IF($A26=\"N/A\",Ref!$B$36,INDEX(Ranks!$1:$1048576,$A26,CT$1))","v":""},{"$f":"IF($A26=\"N/A\",Ref!$B$36,INDEX(Ranks!$1:$1048576,$A26,CU$1))","v":""},{"$f":"IF($A26=\"N/A\",Ref!$B$36,INDEX(Ranks!$1:$1048576,$A26,CV$1))","v":""},{"$f":"IF($A26=\"N/A\",Ref!$B$36,INDEX(Ranks!$1:$1048576,$A26,CW$1))","v":""},{"$f":"IF($A26=\"N/A\",Ref!$B$36,INDEX(Ranks!$1:$1048576,$A26,CX$1))","v":""},{"$f":"IF($A26=\"N/A\",Ref!$B$36,INDEX(Ranks!$1:$1048576,$A26,CY$1))","v":""},{"$f":"IF($A26=\"N/A\",Ref!$B$36,INDEX(Ranks!$1:$1048576,$A26,CZ$1))","v":""},{"$f":"IF($A26=\"N/A\",Ref!$B$36,INDEX(Ranks!$1:$1048576,$A26,DA$1))","v":""},{"$f":"IF($A26=\"N/A\",Ref!$B$36,INDEX(Ranks!$1:$1048576,$A26,DB$1))","v":""},{"$f":"IF($A26=\"N/A\",Ref!$B$36,INDEX(Ranks!$1:$1048576,$A26,DC$1))","v":""},{"$f":"IF($A26=\"N/A\",Ref!$B$36,INDEX(Ranks!$1:$1048576,$A26,DD$1))","v":""},{"$f":"IF($A26=\"N/A\",Ref!$B$36,INDEX(Ranks!$1:$1048576,$A26,DE$1))","v":""},{"$f":"IF($A26=\"N/A\",Ref!$B$36,INDEX(Ranks!$1:$1048576,$A26,DF$1))","v":""},{"$f":"IF($A26=\"N/A\",Ref!$B$36,INDEX(Ranks!$1:$1048576,$A26,DG$1))","v":""},{"$f":"IF($A26=\"N/A\",Ref!$B$36,INDEX(Ranks!$1:$1048576,$A26,DH$1))","v":""},{"$f":"IF($A26=\"N/A\",Ref!$B$36,INDEX(Ranks!$1:$1048576,$A26,DI$1))","v":""},{"$f":"IF($A26=\"N/A\",Ref!$B$36,INDEX(Ranks!$1:$1048576,$A26,DJ$1))","v":""},{"$f":"IF($A26=\"N/A\",Ref!$B$36,INDEX(Ranks!$1:$1048576,$A26,DK$1))","v":""},{"$f":"IF($A26=\"N/A\",Ref!$B$36,INDEX(Ranks!$1:$1048576,$A26,DL$1))","v":""},{"$f":"IF($A26=\"N/A\",Ref!$B$36,INDEX(Ranks!$1:$1048576,$A26,DM$1))","v":""},{"$f":"IF($A26=\"N/A\",Ref!$B$36,INDEX(Ranks!$1:$1048576,$A26,DN$1))","v":""},{"$f":"IF($A26=\"N/A\",Ref!$B$36,INDEX(Ranks!$1:$1048576,$A26,DO$1))","v":""},{"$f":"IF($A26=\"N/A\",Ref!$B$36,INDEX(Ranks!$1:$1048576,$A26,DP$1))","v":""},{"$f":"IF($A26=\"N/A\",Ref!$B$36,INDEX(Ranks!$1:$1048576,$A26,DQ$1))","v":""},{"$f":"IF($A26=\"N/A\",Ref!$B$36,INDEX(Ranks!$1:$1048576,$A26,DR$1))","v":""},{"$f":"IF($A26=\"N/A\",Ref!$B$36,INDEX(Ranks!$1:$1048576,$A26,DS$1))","v":""},{"$f":"IF($A26=\"N/A\",Ref!$B$36,INDEX(Ranks!$1:$1048576,$A26,DT$1))","v":""},{"$f":"IF($A26=\"N/A\",Ref!$B$36,INDEX(Ranks!$1:$1048576,$A26,DU$1))","v":""},{"$f":"IF($A26=\"N/A\",Ref!$B$36,INDEX(Ranks!$1:$1048576,$A26,DV$1))","v":""},{"$f":"IF($A26=\"N/A\",Ref!$B$36,INDEX(Ranks!$1:$1048576,$A26,DW$1))","v":""},{"$f":"IF($A26=\"N/A\",Ref!$B$36,INDEX(Ranks!$1:$1048576,$A26,DX$1))","v":""},{"$f":"IF($A26=\"N/A\",Ref!$B$36,INDEX(Ranks!$1:$1048576,$A26,DY$1))","v":""},{"$f":"IF($A26=\"N/A\",Ref!$B$36,INDEX(Ranks!$1:$1048576,$A26,DZ$1))","v":""},{"$f":"IF($A26=\"N/A\",Ref!$B$36,INDEX(Ranks!$1:$1048576,$A26,EA$1))","v":""},{"$f":"IF($A26=\"N/A\",Ref!$B$36,INDEX(Ranks!$1:$1048576,$A26,EB$1))","v":""}]
[{"$f":"IFERROR(MATCH('Portfolio Page'!L27,Ranks!L:L,0),\"N/A\")","v":"N/A"},null,{"$f":"IF($A27=\"N/A\",\"\",INDEX(Ranks!$1:$1048576,$A27,C$1))","v":""},{"$f":"IF($A27=\"N/A\",Ref!$B$36,INDEX(Ranks!$1:$1048576,$A27,D$1))","v":""},{"$f":"IF($A27=\"N/A\",Ref!$B$36,INDEX(Ranks!$1:$1048576,$A27,E$1))","v":""},{"$f":"IF($A27=\"N/A\",\"\",INDEX(Ranks!$1:$1048576,$A27,F$1))","v":""},{"$f":"IF($A27=\"N/A\",\"\",INDEX(Ranks!$1:$1048576,$A27,G$1))","v":""},{"$f":"IF($A27=\"N/A\",\"\",INDEX(Ranks!$1:$1048576,$A27,H$1))","v":""},{"$f":"IF($A27=\"N/A\",\"\",INDEX(Ranks!$1:$1048576,$A27,I$1))","v":""},{"$f":"IF($A27=\"N/A\",\"\",INDEX(Ranks!$1:$1048576,$A27,J$1))","v":""},{"$f":"IF($A27=\"N/A\",\"\",INDEX(Ranks!$1:$1048576,$A27,K$1))","v":""},null,{"$f":"IF($A27=\"N/A\",Ref!$B$36,INDEX(Ranks!$1:$1048576,$A27,M$1))","v":""},{"$f":"IF($A27=\"N/A\",Ref!$B$36,INDEX(Ranks!$1:$1048576,$A27,N$1))","v":""},{"$f":"IF($A27=\"N/A\",Ref!$B$36,INDEX(Ranks!$1:$1048576,$A27,O$1))","v":""},{"$f":"IF($A27=\"N/A\",Ref!$B$36,INDEX(Ranks!$1:$1048576,$A27,P$1))","v":""},{"$f":"IF($A27=\"N/A\",Ref!$B$36,INDEX(Ranks!$1:$1048576,$A27,Q$1))","v":""},{"$f":"IF($A27=\"N/A\",Ref!$B$36,INDEX(Ranks!$1:$1048576,$A27,R$1))","v":""},{"$f":"IF($A27=\"N/A\",Ref!$B$36,INDEX(Ranks!$1:$1048576,$A27,S$1))","v":""},{"$f":"IF($A27=\"N/A\",Ref!$B$36,INDEX(Ranks!$1:$1048576,$A27,T$1))","v":""},{"$f":"IF($A27=\"N/A\",Ref!$B$36,INDEX(Ranks!$1:$1048576,$A27,U$1))","v":""},{"$f":"IF($A27=\"N/A\",Ref!$B$36,INDEX(Ranks!$1:$1048576,$A27,V$1))","v":""},{"$f":"IF($A27=\"N/A\",Ref!$B$36,INDEX(Ranks!$1:$1048576,$A27,W$1))","v":""},{"$f":"IF($A27=\"N/A\",Ref!$B$36,INDEX(Ranks!$1:$1048576,$A27,X$1))","v":""},{"$f":"IF($A27=\"N/A\",Ref!$B$36,INDEX(Ranks!$1:$1048576,$A27,Y$1))","v":""},{"$f":"IF($A27=\"N/A\",Ref!$B$36,INDEX(Ranks!$1:$1048576,$A27,Z$1))","v":""},{"$f":"IF($A27=\"N/A\",Ref!$B$36,INDEX(Ranks!$1:$1048576,$A27,AA$1))","v":""},{"$f":"IF($A27=\"N/A\",Ref!$B$36,INDEX(Ranks!$1:$1048576,$A27,AB$1))","v":""},{"$f":"IF($A27=\"N/A\",Ref!$B$36,INDEX(Ranks!$1:$1048576,$A27,AC$1))","v":""},{"$f":"IF($A27=\"N/A\",Ref!$B$36,INDEX(Ranks!$1:$1048576,$A27,AD$1))","v":""},{"$f":"IF($A27=\"N/A\",Ref!$B$36,INDEX(Ranks!$1:$1048576,$A27,AE$1))","v":""},{"$f":"IF($A27=\"N/A\",Ref!$B$36,INDEX(Ranks!$1:$1048576,$A27,AF$1))","v":""},{"$f":"IF($A27=\"N/A\",Ref!$B$36,INDEX(Ranks!$1:$1048576,$A27,AG$1))","v":""},{"$f":"IF($A27=\"N/A\",Ref!$B$36,INDEX(Ranks!$1:$1048576,$A27,AH$1))","v":""},{"$f":"IF($A27=\"N/A\",Ref!$B$36,INDEX(Ranks!$1:$1048576,$A27,AI$1))","v":""},{"$f":"IF($A27=\"N/A\",Ref!$B$36,INDEX(Ranks!$1:$1048576,$A27,AJ$1))","v":""},{"$f":"IF($A27=\"N/A\",Ref!$B$36,INDEX(Ranks!$1:$1048576,$A27,AK$1))","v":""},{"$f":"IF($A27=\"N/A\",Ref!$B$36,INDEX(Ranks!$1:$1048576,$A27,AL$1))","v":""},{"$f":"IF($A27=\"N/A\",Ref!$B$36,INDEX(Ranks!$1:$1048576,$A27,AM$1))","v":""},{"$f":"IF($A27=\"N/A\",Ref!$B$36,INDEX(Ranks!$1:$1048576,$A27,AN$1))","v":""},{"$f":"IF($A27=\"N/A\",Ref!$B$36,INDEX(Ranks!$1:$1048576,$A27,AO$1))","v":""},{"$f":"IF($A27=\"N/A\",Ref!$B$36,INDEX(Ranks!$1:$1048576,$A27,AP$1))","v":""},{"$f":"IF($A27=\"N/A\",Ref!$B$36,INDEX(Ranks!$1:$1048576,$A27,AQ$1))","v":""},{"$f":"IF($A27=\"N/A\",Ref!$B$36,INDEX(Ranks!$1:$1048576,$A27,AR$1))","v":""},{"$f":"IF($A27=\"N/A\",Ref!$B$36,INDEX(Ranks!$1:$1048576,$A27,AS$1))","v":""},{"$f":"IF($A27=\"N/A\",Ref!$B$36,INDEX(Ranks!$1:$1048576,$A27,AT$1))","v":""},{"$f":"IF($A27=\"N/A\",Ref!$B$36,INDEX(Ranks!$1:$1048576,$A27,AU$1))","v":""},{"$f":"IF($A27=\"N/A\",Ref!$B$36,INDEX(Ranks!$1:$1048576,$A27,AV$1))","v":""},{"$f":"IF($A27=\"N/A\",Ref!$B$36,INDEX(Ranks!$1:$1048576,$A27,AW$1))","v":""},{"$f":"IF($A27=\"N/A\",Ref!$B$36,INDEX(Ranks!$1:$1048576,$A27,AX$1))","v":""},{"$f":"IF($A27=\"N/A\",Ref!$B$36,INDEX(Ranks!$1:$1048576,$A27,AY$1))","v":""},{"$f":"IF($A27=\"N/A\",Ref!$B$36,INDEX(Ranks!$1:$1048576,$A27,AZ$1))","v":""},{"$f":"IF($A27=\"N/A\",Ref!$B$36,INDEX(Ranks!$1:$1048576,$A27,BA$1))","v":""},{"$f":"IF($A27=\"N/A\",Ref!$B$36,INDEX(Ranks!$1:$1048576,$A27,BB$1))","v":""},{"$f":"IF($A27=\"N/A\",Ref!$B$36,INDEX(Ranks!$1:$1048576,$A27,BC$1))","v":""},{"$f":"IF($A27=\"N/A\",Ref!$B$36,INDEX(Ranks!$1:$1048576,$A27,BD$1))","v":""},{"$f":"IF($A27=\"N/A\",Ref!$B$36,INDEX(Ranks!$1:$1048576,$A27,BE$1))","v":""},{"$f":"IF($A27=\"N/A\",Ref!$B$36,INDEX(Ranks!$1:$1048576,$A27,BF$1))","v":""},{"$f":"IF($A27=\"N/A\",Ref!$B$36,INDEX(Ranks!$1:$1048576,$A27,BG$1))","v":""},{"$f":"IF($A27=\"N/A\",Ref!$B$36,INDEX(Ranks!$1:$1048576,$A27,BH$1))","v":""},{"$f":"IF($A27=\"N/A\",Ref!$B$36,INDEX(Ranks!$1:$1048576,$A27,BI$1))","v":""},{"$f":"IF($A27=\"N/A\",Ref!$B$36,INDEX(Ranks!$1:$1048576,$A27,BJ$1))","v":""},{"$f":"IF($A27=\"N/A\",Ref!$B$36,INDEX(Ranks!$1:$1048576,$A27,BK$1))","v":""},{"$f":"IF($A27=\"N/A\",Ref!$B$36,INDEX(Ranks!$1:$1048576,$A27,BL$1))","v":""},{"$f":"IF($A27=\"N/A\",Ref!$B$36,INDEX(Ranks!$1:$1048576,$A27,BM$1))","v":""},{"$f":"IF($A27=\"N/A\",Ref!$B$36,INDEX(Ranks!$1:$1048576,$A27,BN$1))","v":""},{"$f":"IF($A27=\"N/A\",Ref!$B$36,INDEX(Ranks!$1:$1048576,$A27,BO$1))","v":""},{"$f":"IF($A27=\"N/A\",Ref!$B$36,INDEX(Ranks!$1:$1048576,$A27,BP$1))","v":""},{"$f":"IF($A27=\"N/A\",Ref!$B$36,INDEX(Ranks!$1:$1048576,$A27,BQ$1))","v":""},{"$f":"IF($A27=\"N/A\",Ref!$B$36,INDEX(Ranks!$1:$1048576,$A27,BR$1))","v":""},{"$f":"IF($A27=\"N/A\",Ref!$B$36,INDEX(Ranks!$1:$1048576,$A27,BS$1))","v":""},{"$f":"IF($A27=\"N/A\",Ref!$B$36,INDEX(Ranks!$1:$1048576,$A27,BT$1))","v":""},{"$f":"IF($A27=\"N/A\",Ref!$B$36,INDEX(Ranks!$1:$1048576,$A27,BU$1))","v":""},{"$f":"IF($A27=\"N/A\",Ref!$B$36,INDEX(Ranks!$1:$1048576,$A27,BV$1))","v":""},{"$f":"IF($A27=\"N/A\",Ref!$B$36,INDEX(Ranks!$1:$1048576,$A27,BW$1))","v":""},{"$f":"IF($A27=\"N/A\",Ref!$B$36,INDEX(Ranks!$1:$1048576,$A27,BX$1))","v":""},{"$f":"IF($A27=\"N/A\",Ref!$B$36,INDEX(Ranks!$1:$1048576,$A27,BY$1))","v":""},{"$f":"IF($A27=\"N/A\",Ref!$B$36,INDEX(Ranks!$1:$1048576,$A27,BZ$1))","v":""},{"$f":"IF($A27=\"N/A\",Ref!$B$36,INDEX(Ranks!$1:$1048576,$A27,CA$1))","v":""},{"$f":"IF($A27=\"N/A\",Ref!$B$36,INDEX(Ranks!$1:$1048576,$A27,CB$1))","v":""},{"$f":"IF($A27=\"N/A\",Ref!$B$36,INDEX(Ranks!$1:$1048576,$A27,CC$1))","v":""},{"$f":"IF($A27=\"N/A\",Ref!$B$36,INDEX(Ranks!$1:$1048576,$A27,CD$1))","v":""},{"$f":"IF($A27=\"N/A\",Ref!$B$36,INDEX(Ranks!$1:$1048576,$A27,CE$1))","v":""},{"$f":"IF($A27=\"N/A\",Ref!$B$36,INDEX(Ranks!$1:$1048576,$A27,CF$1))","v":""},{"$f":"IF($A27=\"N/A\",Ref!$B$36,INDEX(Ranks!$1:$1048576,$A27,CG$1))","v":""},{"$f":"IF($A27=\"N/A\",Ref!$B$36,INDEX(Ranks!$1:$1048576,$A27,CH$1))","v":""},{"$f":"IF($A27=\"N/A\",Ref!$B$36,INDEX(Ranks!$1:$1048576,$A27,CI$1))","v":""},{"$f":"IF($A27=\"N/A\",Ref!$B$36,INDEX(Ranks!$1:$1048576,$A27,CJ$1))","v":""},{"$f":"IF($A27=\"N/A\",Ref!$B$36,INDEX(Ranks!$1:$1048576,$A27,CK$1))","v":""},{"$f":"IF($A27=\"N/A\",Ref!$B$36,INDEX(Ranks!$1:$1048576,$A27,CL$1))","v":""},{"$f":"IF($A27=\"N/A\",Ref!$B$36,INDEX(Ranks!$1:$1048576,$A27,CM$1))","v":""},{"$f":"IF($A27=\"N/A\",Ref!$B$36,INDEX(Ranks!$1:$1048576,$A27,CN$1))","v":""},{"$f":"IF($A27=\"N/A\",Ref!$B$36,INDEX(Ranks!$1:$1048576,$A27,CO$1))","v":""},{"$f":"IF($A27=\"N/A\",Ref!$B$36,INDEX(Ranks!$1:$1048576,$A27,CP$1))","v":""},{"$f":"IF($A27=\"N/A\",Ref!$B$36,INDEX(Ranks!$1:$1048576,$A27,CQ$1))","v":""},{"$f":"IF($A27=\"N/A\",Ref!$B$36,INDEX(Ranks!$1:$1048576,$A27,CR$1))","v":""},{"$f":"IF($A27=\"N/A\",Ref!$B$36,INDEX(Ranks!$1:$1048576,$A27,CS$1))","v":""},{"$f":"IF($A27=\"N/A\",Ref!$B$36,INDEX(Ranks!$1:$1048576,$A27,CT$1))","v":""},{"$f":"IF($A27=\"N/A\",Ref!$B$36,INDEX(Ranks!$1:$1048576,$A27,CU$1))","v":""},{"$f":"IF($A27=\"N/A\",Ref!$B$36,INDEX(Ranks!$1:$1048576,$A27,CV$1))","v":""},{"$f":"IF($A27=\"N/A\",Ref!$B$36,INDEX(Ranks!$1:$1048576,$A27,CW$1))","v":""},{"$f":"IF($A27=\"N/A\",Ref!$B$36,INDEX(Ranks!$1:$1048576,$A27,CX$1))","v":""},{"$f":"IF($A27=\"N/A\",Ref!$B$36,INDEX(Ranks!$1:$1048576,$A27,CY$1))","v":""},{"$f":"IF($A27=\"N/A\",Ref!$B$36,INDEX(Ranks!$1:$1048576,$A27,CZ$1))","v":""},{"$f":"IF($A27=\"N/A\",Ref!$B$36,INDEX(Ranks!$1:$1048576,$A27,DA$1))","v":""},{"$f":"IF($A27=\"N/A\",Ref!$B$36,INDEX(Ranks!$1:$1048576,$A27,DB$1))","v":""},{"$f":"IF($A27=\"N/A\",Ref!$B$36,INDEX(Ranks!$1:$1048576,$A27,DC$1))","v":""},{"$f":"IF($A27=\"N/A\",Ref!$B$36,INDEX(Ranks!$1:$1048576,$A27,DD$1))","v":""},{"$f":"IF($A27=\"N/A\",Ref!$B$36,INDEX(Ranks!$1:$1048576,$A27,DE$1))","v":""},{"$f":"IF($A27=\"N/A\",Ref!$B$36,INDEX(Ranks!$1:$1048576,$A27,DF$1))","v":""},{"$f":"IF($A27=\"N/A\",Ref!$B$36,INDEX(Ranks!$1:$1048576,$A27,DG$1))","v":""},{"$f":"IF($A27=\"N/A\",Ref!$B$36,INDEX(Ranks!$1:$1048576,$A27,DH$1))","v":""},{"$f":"IF($A27=\"N/A\",Ref!$B$36,INDEX(Ranks!$1:$1048576,$A27,DI$1))","v":""},{"$f":"IF($A27=\"N/A\",Ref!$B$36,INDEX(Ranks!$1:$1048576,$A27,DJ$1))","v":""},{"$f":"IF($A27=\"N/A\",Ref!$B$36,INDEX(Ranks!$1:$1048576,$A27,DK$1))","v":""},{"$f":"IF($A27=\"N/A\",Ref!$B$36,INDEX(Ranks!$1:$1048576,$A27,DL$1))","v":""},{"$f":"IF($A27=\"N/A\",Ref!$B$36,INDEX(Ranks!$1:$1048576,$A27,DM$1))","v":""},{"$f":"IF($A27=\"N/A\",Ref!$B$36,INDEX(Ranks!$1:$1048576,$A27,DN$1))","v":""},{"$f":"IF($A27=\"N/A\",Ref!$B$36,INDEX(Ranks!$1:$1048576,$A27,DO$1))","v":""},{"$f":"IF($A27=\"N/A\",Ref!$B$36,INDEX(Ranks!$1:$1048576,$A27,DP$1))","v":""},{"$f":"IF($A27=\"N/A\",Ref!$B$36,INDEX(Ranks!$1:$1048576,$A27,DQ$1))","v":""},{"$f":"IF($A27=\"N/A\",Ref!$B$36,INDEX(Ranks!$1:$1048576,$A27,DR$1))","v":""},{"$f":"IF($A27=\"N/A\",Ref!$B$36,INDEX(Ranks!$1:$1048576,$A27,DS$1))","v":""},{"$f":"IF($A27=\"N/A\",Ref!$B$36,INDEX(Ranks!$1:$1048576,$A27,DT$1))","v":""},{"$f":"IF($A27=\"N/A\",Ref!$B$36,INDEX(Ranks!$1:$1048576,$A27,DU$1))","v":""},{"$f":"IF($A27=\"N/A\",Ref!$B$36,INDEX(Ranks!$1:$1048576,$A27,DV$1))","v":""},{"$f":"IF($A27=\"N/A\",Ref!$B$36,INDEX(Ranks!$1:$1048576,$A27,DW$1))","v":""},{"$f":"IF($A27=\"N/A\",Ref!$B$36,INDEX(Ranks!$1:$1048576,$A27,DX$1))","v":""},{"$f":"IF($A27=\"N/A\",Ref!$B$36,INDEX(Ranks!$1:$1048576,$A27,DY$1))","v":""},{"$f":"IF($A27=\"N/A\",Ref!$B$36,INDEX(Ranks!$1:$1048576,$A27,DZ$1))","v":""},{"$f":"IF($A27=\"N/A\",Ref!$B$36,INDEX(Ranks!$1:$1048576,$A27,EA$1))","v":""},{"$f":"IF($A27=\"N/A\",Ref!$B$36,INDEX(Ranks!$1:$1048576,$A27,EB$1))","v":""}]
[{"$f":"IFERROR(MATCH('Portfolio Page'!L28,Ranks!L:L,0),\"N/A\")","v":"N/A"},null,{"$f":"IF($A28=\"N/A\",\"\",INDEX(Ranks!$1:$1048576,$A28,C$1))","v":""},{"$f":"IF($A28=\"N/A\",Ref!$B$36,INDEX(Ranks!$1:$1048576,$A28,D$1))","v":""},{"$f":"IF($A28=\"N/A\",Ref!$B$36,INDEX(Ranks!$1:$1048576,$A28,E$1))","v":""},{"$f":"IF($A28=\"N/A\",\"\",INDEX(Ranks!$1:$1048576,$A28,F$1))","v":""},{"$f":"IF($A28=\"N/A\",\"\",INDEX(Ranks!$1:$1048576,$A28,G$1))","v":""},{"$f":"IF($A28=\"N/A\",\"\",INDEX(Ranks!$1:$1048576,$A28,H$1))","v":""},{"$f":"IF($A28=\"N/A\",\"\",INDEX(Ranks!$1:$1048576,$A28,I$1))","v":""},{"$f":"IF($A28=\"N/A\",\"\",INDEX(Ranks!$1:$1048576,$A28,J$1))","v":""},{"$f":"IF($A28=\"N/A\",\"\",INDEX(Ranks!$1:$1048576,$A28,K$1))","v":""},null,{"$f":"IF($A28=\"N/A\",Ref!$B$36,INDEX(Ranks!$1:$1048576,$A28,M$1))","v":""},{"$f":"IF($A28=\"N/A\",Ref!$B$36,INDEX(Ranks!$1:$1048576,$A28,N$1))","v":""},{"$f":"IF($A28=\"N/A\",Ref!$B$36,INDEX(Ranks!$1:$1048576,$A28,O$1))","v":""},{"$f":"IF($A28=\"N/A\",Ref!$B$36,INDEX(Ranks!$1:$1048576,$A28,P$1))","v":""},{"$f":"IF($A28=\"N/A\",Ref!$B$36,INDEX(Ranks!$1:$1048576,$A28,Q$1))","v":""},{"$f":"IF($A28=\"N/A\",Ref!$B$36,INDEX(Ranks!$1:$1048576,$A28,R$1))","v":""},{"$f":"IF($A28=\"N/A\",Ref!$B$36,INDEX(Ranks!$1:$1048576,$A28,S$1))","v":""},{"$f":"IF($A28=\"N/A\",Ref!$B$36,INDEX(Ranks!$1:$1048576,$A28,T$1))","v":""},{"$f":"IF($A28=\"N/A\",Ref!$B$36,INDEX(Ranks!$1:$1048576,$A28,U$1))","v":""},{"$f":"IF($A28=\"N/A\",Ref!$B$36,INDEX(Ranks!$1:$1048576,$A28,V$1))","v":""},{"$f":"IF($A28=\"N/A\",Ref!$B$36,INDEX(Ranks!$1:$1048576,$A28,W$1))","v":""},{"$f":"IF($A28=\"N/A\",Ref!$B$36,INDEX(Ranks!$1:$1048576,$A28,X$1))","v":""},{"$f":"IF($A28=\"N/A\",Ref!$B$36,INDEX(Ranks!$1:$1048576,$A28,Y$1))","v":""},{"$f":"IF($A28=\"N/A\",Ref!$B$36,INDEX(Ranks!$1:$1048576,$A28,Z$1))","v":""},{"$f":"IF($A28=\"N/A\",Ref!$B$36,INDEX(Ranks!$1:$1048576,$A28,AA$1))","v":""},{"$f":"IF($A28=\"N/A\",Ref!$B$36,INDEX(Ranks!$1:$1048576,$A28,AB$1))","v":""},{"$f":"IF($A28=\"N/A\",Ref!$B$36,INDEX(Ranks!$1:$1048576,$A28,AC$1))","v":""},{"$f":"IF($A28=\"N/A\",Ref!$B$36,INDEX(Ranks!$1:$1048576,$A28,AD$1))","v":""},{"$f":"IF($A28=\"N/A\",Ref!$B$36,INDEX(Ranks!$1:$1048576,$A28,AE$1))","v":""},{"$f":"IF($A28=\"N/A\",Ref!$B$36,INDEX(Ranks!$1:$1048576,$A28,AF$1))","v":""},{"$f":"IF($A28=\"N/A\",Ref!$B$36,INDEX(Ranks!$1:$1048576,$A28,AG$1))","v":""},{"$f":"IF($A28=\"N/A\",Ref!$B$36,INDEX(Ranks!$1:$1048576,$A28,AH$1))","v":""},{"$f":"IF($A28=\"N/A\",Ref!$B$36,INDEX(Ranks!$1:$1048576,$A28,AI$1))","v":""},{"$f":"IF($A28=\"N/A\",Ref!$B$36,INDEX(Ranks!$1:$1048576,$A28,AJ$1))","v":""},{"$f":"IF($A28=\"N/A\",Ref!$B$36,INDEX(Ranks!$1:$1048576,$A28,AK$1))","v":""},{"$f":"IF($A28=\"N/A\",Ref!$B$36,INDEX(Ranks!$1:$1048576,$A28,AL$1))","v":""},{"$f":"IF($A28=\"N/A\",Ref!$B$36,INDEX(Ranks!$1:$1048576,$A28,AM$1))","v":""},{"$f":"IF($A28=\"N/A\",Ref!$B$36,INDEX(Ranks!$1:$1048576,$A28,AN$1))","v":""},{"$f":"IF($A28=\"N/A\",Ref!$B$36,INDEX(Ranks!$1:$1048576,$A28,AO$1))","v":""},{"$f":"IF($A28=\"N/A\",Ref!$B$36,INDEX(Ranks!$1:$1048576,$A28,AP$1))","v":""},{"$f":"IF($A28=\"N/A\",Ref!$B$36,INDEX(Ranks!$1:$1048576,$A28,AQ$1))","v":""},{"$f":"IF($A28=\"N/A\",Ref!$B$36,INDEX(Ranks!$1:$1048576,$A28,AR$1))","v":""},{"$f":"IF($A28=\"N/A\",Ref!$B$36,INDEX(Ranks!$1:$1048576,$A28,AS$1))","v":""},{"$f":"IF($A28=\"N/A\",Ref!$B$36,INDEX(Ranks!$1:$1048576,$A28,AT$1))","v":""},{"$f":"IF($A28=\"N/A\",Ref!$B$36,INDEX(Ranks!$1:$1048576,$A28,AU$1))","v":""},{"$f":"IF($A28=\"N/A\",Ref!$B$36,INDEX(Ranks!$1:$1048576,$A28,AV$1))","v":""},{"$f":"IF($A28=\"N/A\",Ref!$B$36,INDEX(Ranks!$1:$1048576,$A28,AW$1))","v":""},{"$f":"IF($A28=\"N/A\",Ref!$B$36,INDEX(Ranks!$1:$1048576,$A28,AX$1))","v":""},{"$f":"IF($A28=\"N/A\",Ref!$B$36,INDEX(Ranks!$1:$1048576,$A28,AY$1))","v":""},{"$f":"IF($A28=\"N/A\",Ref!$B$36,INDEX(Ranks!$1:$1048576,$A28,AZ$1))","v":""},{"$f":"IF($A28=\"N/A\",Ref!$B$36,INDEX(Ranks!$1:$1048576,$A28,BA$1))","v":""},{"$f":"IF($A28=\"N/A\",Ref!$B$36,INDEX(Ranks!$1:$1048576,$A28,BB$1))","v":""},{"$f":"IF($A28=\"N/A\",Ref!$B$36,INDEX(Ranks!$1:$1048576,$A28,BC$1))","v":""},{"$f":"IF($A28=\"N/A\",Ref!$B$36,INDEX(Ranks!$1:$1048576,$A28,BD$1))","v":""},{"$f":"IF($A28=\"N/A\",Ref!$B$36,INDEX(Ranks!$1:$1048576,$A28,BE$1))","v":""},{"$f":"IF($A28=\"N/A\",Ref!$B$36,INDEX(Ranks!$1:$1048576,$A28,BF$1))","v":""},{"$f":"IF($A28=\"N/A\",Ref!$B$36,INDEX(Ranks!$1:$1048576,$A28,BG$1))","v":""},{"$f":"IF($A28=\"N/A\",Ref!$B$36,INDEX(Ranks!$1:$1048576,$A28,BH$1))","v":""},{"$f":"IF($A28=\"N/A\",Ref!$B$36,INDEX(Ranks!$1:$1048576,$A28,BI$1))","v":""},{"$f":"IF($A28=\"N/A\",Ref!$B$36,INDEX(Ranks!$1:$1048576,$A28,BJ$1))","v":""},{"$f":"IF($A28=\"N/A\",Ref!$B$36,INDEX(Ranks!$1:$1048576,$A28,BK$1))","v":""},{"$f":"IF($A28=\"N/A\",Ref!$B$36,INDEX(Ranks!$1:$1048576,$A28,BL$1))","v":""},{"$f":"IF($A28=\"N/A\",Ref!$B$36,INDEX(Ranks!$1:$1048576,$A28,BM$1))","v":""},{"$f":"IF($A28=\"N/A\",Ref!$B$36,INDEX(Ranks!$1:$1048576,$A28,BN$1))","v":""},{"$f":"IF($A28=\"N/A\",Ref!$B$36,INDEX(Ranks!$1:$1048576,$A28,BO$1))","v":""},{"$f":"IF($A28=\"N/A\",Ref!$B$36,INDEX(Ranks!$1:$1048576,$A28,BP$1))","v":""},{"$f":"IF($A28=\"N/A\",Ref!$B$36,INDEX(Ranks!$1:$1048576,$A28,BQ$1))","v":""},{"$f":"IF($A28=\"N/A\",Ref!$B$36,INDEX(Ranks!$1:$1048576,$A28,BR$1))","v":""},{"$f":"IF($A28=\"N/A\",Ref!$B$36,INDEX(Ranks!$1:$1048576,$A28,BS$1))","v":""},{"$f":"IF($A28=\"N/A\",Ref!$B$36,INDEX(Ranks!$1:$1048576,$A28,BT$1))","v":""},{"$f":"IF($A28=\"N/A\",Ref!$B$36,INDEX(Ranks!$1:$1048576,$A28,BU$1))","v":""},{"$f":"IF($A28=\"N/A\",Ref!$B$36,INDEX(Ranks!$1:$1048576,$A28,BV$1))","v":""},{"$f":"IF($A28=\"N/A\",Ref!$B$36,INDEX(Ranks!$1:$1048576,$A28,BW$1))","v":""},{"$f":"IF($A28=\"N/A\",Ref!$B$36,INDEX(Ranks!$1:$1048576,$A28,BX$1))","v":""},{"$f":"IF($A28=\"N/A\",Ref!$B$36,INDEX(Ranks!$1:$1048576,$A28,BY$1))","v":""},{"$f":"IF($A28=\"N/A\",Ref!$B$36,INDEX(Ranks!$1:$1048576,$A28,BZ$1))","v":""},{"$f":"IF($A28=\"N/A\",Ref!$B$36,INDEX(Ranks!$1:$1048576,$A28,CA$1))","v":""},{"$f":"IF($A28=\"N/A\",Ref!$B$36,INDEX(Ranks!$1:$1048576,$A28,CB$1))","v":""},{"$f":"IF($A28=\"N/A\",Ref!$B$36,INDEX(Ranks!$1:$1048576,$A28,CC$1))","v":""},{"$f":"IF($A28=\"N/A\",Ref!$B$36,INDEX(Ranks!$1:$1048576,$A28,CD$1))","v":""},{"$f":"IF($A28=\"N/A\",Ref!$B$36,INDEX(Ranks!$1:$1048576,$A28,CE$1))","v":""},{"$f":"IF($A28=\"N/A\",Ref!$B$36,INDEX(Ranks!$1:$1048576,$A28,CF$1))","v":""},{"$f":"IF($A28=\"N/A\",Ref!$B$36,INDEX(Ranks!$1:$1048576,$A28,CG$1))","v":""},{"$f":"IF($A28=\"N/A\",Ref!$B$36,INDEX(Ranks!$1:$1048576,$A28,CH$1))","v":""},{"$f":"IF($A28=\"N/A\",Ref!$B$36,INDEX(Ranks!$1:$1048576,$A28,CI$1))","v":""},{"$f":"IF($A28=\"N/A\",Ref!$B$36,INDEX(Ranks!$1:$1048576,$A28,CJ$1))","v":""},{"$f":"IF($A28=\"N/A\",Ref!$B$36,INDEX(Ranks!$1:$1048576,$A28,CK$1))","v":""},{"$f":"IF($A28=\"N/A\",Ref!$B$36,INDEX(Ranks!$1:$1048576,$A28,CL$1))","v":""},{"$f":"IF($A28=\"N/A\",Ref!$B$36,INDEX(Ranks!$1:$1048576,$A28,CM$1))","v":""},{"$f":"IF($A28=\"N/A\",Ref!$B$36,INDEX(Ranks!$1:$1048576,$A28,CN$1))","v":""},{"$f":"IF($A28=\"N/A\",Ref!$B$36,INDEX(Ranks!$1:$1048576,$A28,CO$1))","v":""},{"$f":"IF($A28=\"N/A\",Ref!$B$36,INDEX(Ranks!$1:$1048576,$A28,CP$1))","v":""},{"$f":"IF($A28=\"N/A\",Ref!$B$36,INDEX(Ranks!$1:$1048576,$A28,CQ$1))","v":""},{"$f":"IF($A28=\"N/A\",Ref!$B$36,INDEX(Ranks!$1:$1048576,$A28,CR$1))","v":""},{"$f":"IF($A28=\"N/A\",Ref!$B$36,INDEX(Ranks!$1:$1048576,$A28,CS$1))","v":""},{"$f":"IF($A28=\"N/A\",Ref!$B$36,INDEX(Ranks!$1:$1048576,$A28,CT$1))","v":""},{"$f":"IF($A28=\"N/A\",Ref!$B$36,INDEX(Ranks!$1:$1048576,$A28,CU$1))","v":""},{"$f":"IF($A28=\"N/A\",Ref!$B$36,INDEX(Ranks!$1:$1048576,$A28,CV$1))","v":""},{"$f":"IF($A28=\"N/A\",Ref!$B$36,INDEX(Ranks!$1:$1048576,$A28,CW$1))","v":""},{"$f":"IF($A28=\"N/A\",Ref!$B$36,INDEX(Ranks!$1:$1048576,$A28,CX$1))","v":""},{"$f":"IF($A28=\"N/A\",Ref!$B$36,INDEX(Ranks!$1:$1048576,$A28,CY$1))","v":""},{"$f":"IF($A28=\"N/A\",Ref!$B$36,INDEX(Ranks!$1:$1048576,$A28,CZ$1))","v":""},{"$f":"IF($A28=\"N/A\",Ref!$B$36,INDEX(Ranks!$1:$1048576,$A28,DA$1))","v":""},{"$f":"IF($A28=\"N/A\",Ref!$B$36,INDEX(Ranks!$1:$1048576,$A28,DB$1))","v":""},{"$f":"IF($A28=\"N/A\",Ref!$B$36,INDEX(Ranks!$1:$1048576,$A28,DC$1))","v":""},{"$f":"IF($A28=\"N/A\",Ref!$B$36,INDEX(Ranks!$1:$1048576,$A28,DD$1))","v":""},{"$f":"IF($A28=\"N/A\",Ref!$B$36,INDEX(Ranks!$1:$1048576,$A28,DE$1))","v":""},{"$f":"IF($A28=\"N/A\",Ref!$B$36,INDEX(Ranks!$1:$1048576,$A28,DF$1))","v":""},{"$f":"IF($A28=\"N/A\",Ref!$B$36,INDEX(Ranks!$1:$1048576,$A28,DG$1))","v":""},{"$f":"IF($A28=\"N/A\",Ref!$B$36,INDEX(Ranks!$1:$1048576,$A28,DH$1))","v":""},{"$f":"IF($A28=\"N/A\",Ref!$B$36,INDEX(Ranks!$1:$1048576,$A28,DI$1))","v":""},{"$f":"IF($A28=\"N/A\",Ref!$B$36,INDEX(Ranks!$1:$1048576,$A28,DJ$1))","v":""},{"$f":"IF($A28=\"N/A\",Ref!$B$36,INDEX(Ranks!$1:$1048576,$A28,DK$1))","v":""},{"$f":"IF($A28=\"N/A\",Ref!$B$36,INDEX(Ranks!$1:$1048576,$A28,DL$1))","v":""},{"$f":"IF($A28=\"N/A\",Ref!$B$36,INDEX(Ranks!$1:$1048576,$A28,DM$1))","v":""},{"$f":"IF($A28=\"N/A\",Ref!$B$36,INDEX(Ranks!$1:$1048576,$A28,DN$1))","v":""},{"$f":"IF($A28=\"N/A\",Ref!$B$36,INDEX(Ranks!$1:$1048576,$A28,DO$1))","v":""},{"$f":"IF($A28=\"N/A\",Ref!$B$36,INDEX(Ranks!$1:$1048576,$A28,DP$1))","v":""},{"$f":"IF($A28=\"N/A\",Ref!$B$36,INDEX(Ranks!$1:$1048576,$A28,DQ$1))","v":""},{"$f":"IF($A28=\"N/A\",Ref!$B$36,INDEX(Ranks!$1:$1048576,$A28,DR$1))","v":""},{"$f":"IF($A28=\"N/A\",Ref!$B$36,INDEX(Ranks!$1:$1048576,$A28,DS$1))","v":""},{"$f":"IF($A28=\"N/A\",Ref!$B$36,INDEX(Ranks!$1:$1048576,$A28,DT$1))","v":""},{"$f":"IF($A28=\"N/A\",Ref!$B$36,INDEX(Ranks!$1:$1048576,$A28,DU$1))","v":""},{"$f":"IF($A28=\"N/A\",Ref!$B$36,INDEX(Ranks!$1:$1048576,$A28,DV$1))","v":""},{"$f":"IF($A28=\"N/A\",Ref!$B$36,INDEX(Ranks!$1:$1048576,$A28,DW$1))","v":""},{"$f":"IF($A28=\"N/A\",Ref!$B$36,INDEX(Ranks!$1:$1048576,$A28,DX$1))","v":""},{"$f":"IF($A28=\"N/A\",Ref!$B$36,INDEX(Ranks!$1:$1048576,$A28,DY$1))","v":""},{"$f":"IF($A28=\"N/A\",Ref!$B$36,INDEX(Ranks!$1:$1048576,$A28,DZ$1))","v":""},{"$f":"IF($A28=\"N/A\",Ref!$B$36,INDEX(Ranks!$1:$1048576,$A28,EA$1))","v":""},{"$f":"IF($A28=\"N/A\",Ref!$B$36,INDEX(Ranks!$1:$1048576,$A28,EB$1))","v":""}]
[{"$f":"IFERROR(MATCH('Portfolio Page'!L29,Ranks!L:L,0),\"N/A\")","v":"N/A"},null,{"$f":"IF($A29=\"N/A\",\"\",INDEX(Ranks!$1:$1048576,$A29,C$1))","v":""},{"$f":"IF($A29=\"N/A\",Ref!$B$36,INDEX(Ranks!$1:$1048576,$A29,D$1))","v":""},{"$f":"IF($A29=\"N/A\",Ref!$B$36,INDEX(Ranks!$1:$1048576,$A29,E$1))","v":""},{"$f":"IF($A29=\"N/A\",\"\",INDEX(Ranks!$1:$1048576,$A29,F$1))","v":""},{"$f":"IF($A29=\"N/A\",\"\",INDEX(Ranks!$1:$1048576,$A29,G$1))","v":""},{"$f":"IF($A29=\"N/A\",\"\",INDEX(Ranks!$1:$1048576,$A29,H$1))","v":""},{"$f":"IF($A29=\"N/A\",\"\",INDEX(Ranks!$1:$1048576,$A29,I$1))","v":""},{"$f":"IF($A29=\"N/A\",\"\",INDEX(Ranks!$1:$1048576,$A29,J$1))","v":""},{"$f":"IF($A29=\"N/A\",\"\",INDEX(Ranks!$1:$1048576,$A29,K$1))","v":""},null,{"$f":"IF($A29=\"N/A\",Ref!$B$36,INDEX(Ranks!$1:$1048576,$A29,M$1))","v":""},{"$f":"IF($A29=\"N/A\",Ref!$B$36,INDEX(Ranks!$1:$1048576,$A29,N$1))","v":""},{"$f":"IF($A29=\"N/A\",Ref!$B$36,INDEX(Ranks!$1:$1048576,$A29,O$1))","v":""},{"$f":"IF($A29=\"N/A\",Ref!$B$36,INDEX(Ranks!$1:$1048576,$A29,P$1))","v":""},{"$f":"IF($A29=\"N/A\",Ref!$B$36,INDEX(Ranks!$1:$1048576,$A29,Q$1))","v":""},{"$f":"IF($A29=\"N/A\",Ref!$B$36,INDEX(Ranks!$1:$1048576,$A29,R$1))","v":""},{"$f":"IF($A29=\"N/A\",Ref!$B$36,INDEX(Ranks!$1:$1048576,$A29,S$1))","v":""},{"$f":"IF($A29=\"N/A\",Ref!$B$36,INDEX(Ranks!$1:$1048576,$A29,T$1))","v":""},{"$f":"IF($A29=\"N/A\",Ref!$B$36,INDEX(Ranks!$1:$1048576,$A29,U$1))","v":""},{"$f":"IF($A29=\"N/A\",Ref!$B$36,INDEX(Ranks!$1:$1048576,$A29,V$1))","v":""},{"$f":"IF($A29=\"N/A\",Ref!$B$36,INDEX(Ranks!$1:$1048576,$A29,W$1))","v":""},{"$f":"IF($A29=\"N/A\",Ref!$B$36,INDEX(Ranks!$1:$1048576,$A29,X$1))","v":""},{"$f":"IF($A29=\"N/A\",Ref!$B$36,INDEX(Ranks!$1:$1048576,$A29,Y$1))","v":""},{"$f":"IF($A29=\"N/A\",Ref!$B$36,INDEX(Ranks!$1:$1048576,$A29,Z$1))","v":""},{"$f":"IF($A29=\"N/A\",Ref!$B$36,INDEX(Ranks!$1:$1048576,$A29,AA$1))","v":""},{"$f":"IF($A29=\"N/A\",Ref!$B$36,INDEX(Ranks!$1:$1048576,$A29,AB$1))","v":""},{"$f":"IF($A29=\"N/A\",Ref!$B$36,INDEX(Ranks!$1:$1048576,$A29,AC$1))","v":""},{"$f":"IF($A29=\"N/A\",Ref!$B$36,INDEX(Ranks!$1:$1048576,$A29,AD$1))","v":""},{"$f":"IF($A29=\"N/A\",Ref!$B$36,INDEX(Ranks!$1:$1048576,$A29,AE$1))","v":""},{"$f":"IF($A29=\"N/A\",Ref!$B$36,INDEX(Ranks!$1:$1048576,$A29,AF$1))","v":""},{"$f":"IF($A29=\"N/A\",Ref!$B$36,INDEX(Ranks!$1:$1048576,$A29,AG$1))","v":""},{"$f":"IF($A29=\"N/A\",Ref!$B$36,INDEX(Ranks!$1:$1048576,$A29,AH$1))","v":""},{"$f":"IF($A29=\"N/A\",Ref!$B$36,INDEX(Ranks!$1:$1048576,$A29,AI$1))","v":""},{"$f":"IF($A29=\"N/A\",Ref!$B$36,INDEX(Ranks!$1:$1048576,$A29,AJ$1))","v":""},{"$f":"IF($A29=\"N/A\",Ref!$B$36,INDEX(Ranks!$1:$1048576,$A29,AK$1))","v":""},{"$f":"IF($A29=\"N/A\",Ref!$B$36,INDEX(Ranks!$1:$1048576,$A29,AL$1))","v":""},{"$f":"IF($A29=\"N/A\",Ref!$B$36,INDEX(Ranks!$1:$1048576,$A29,AM$1))","v":""},{"$f":"IF($A29=\"N/A\",Ref!$B$36,INDEX(Ranks!$1:$1048576,$A29,AN$1))","v":""},{"$f":"IF($A29=\"N/A\",Ref!$B$36,INDEX(Ranks!$1:$1048576,$A29,AO$1))","v":""},{"$f":"IF($A29=\"N/A\",Ref!$B$36,INDEX(Ranks!$1:$1048576,$A29,AP$1))","v":""},{"$f":"IF($A29=\"N/A\",Ref!$B$36,INDEX(Ranks!$1:$1048576,$A29,AQ$1))","v":""},{"$f":"IF($A29=\"N/A\",Ref!$B$36,INDEX(Ranks!$1:$1048576,$A29,AR$1))","v":""},{"$f":"IF($A29=\"N/A\",Ref!$B$36,INDEX(Ranks!$1:$1048576,$A29,AS$1))","v":""},{"$f":"IF($A29=\"N/A\",Ref!$B$36,INDEX(Ranks!$1:$1048576,$A29,AT$1))","v":""},{"$f":"IF($A29=\"N/A\",Ref!$B$36,INDEX(Ranks!$1:$1048576,$A29,AU$1))","v":""},{"$f":"IF($A29=\"N/A\",Ref!$B$36,INDEX(Ranks!$1:$1048576,$A29,AV$1))","v":""},{"$f":"IF($A29=\"N/A\",Ref!$B$36,INDEX(Ranks!$1:$1048576,$A29,AW$1))","v":""},{"$f":"IF($A29=\"N/A\",Ref!$B$36,INDEX(Ranks!$1:$1048576,$A29,AX$1))","v":""},{"$f":"IF($A29=\"N/A\",Ref!$B$36,INDEX(Ranks!$1:$1048576,$A29,AY$1))","v":""},{"$f":"IF($A29=\"N/A\",Ref!$B$36,INDEX(Ranks!$1:$1048576,$A29,AZ$1))","v":""},{"$f":"IF($A29=\"N/A\",Ref!$B$36,INDEX(Ranks!$1:$1048576,$A29,BA$1))","v":""},{"$f":"IF($A29=\"N/A\",Ref!$B$36,INDEX(Ranks!$1:$1048576,$A29,BB$1))","v":""},{"$f":"IF($A29=\"N/A\",Ref!$B$36,INDEX(Ranks!$1:$1048576,$A29,BC$1))","v":""},{"$f":"IF($A29=\"N/A\",Ref!$B$36,INDEX(Ranks!$1:$1048576,$A29,BD$1))","v":""},{"$f":"IF($A29=\"N/A\",Ref!$B$36,INDEX(Ranks!$1:$1048576,$A29,BE$1))","v":""},{"$f":"IF($A29=\"N/A\",Ref!$B$36,INDEX(Ranks!$1:$1048576,$A29,BF$1))","v":""},{"$f":"IF($A29=\"N/A\",Ref!$B$36,INDEX(Ranks!$1:$1048576,$A29,BG$1))","v":""},{"$f":"IF($A29=\"N/A\",Ref!$B$36,INDEX(Ranks!$1:$1048576,$A29,BH$1))","v":""},{"$f":"IF($A29=\"N/A\",Ref!$B$36,INDEX(Ranks!$1:$1048576,$A29,BI$1))","v":""},{"$f":"IF($A29=\"N/A\",Ref!$B$36,INDEX(Ranks!$1:$1048576,$A29,BJ$1))","v":""},{"$f":"IF($A29=\"N/A\",Ref!$B$36,INDEX(Ranks!$1:$1048576,$A29,BK$1))","v":""},{"$f":"IF($A29=\"N/A\",Ref!$B$36,INDEX(Ranks!$1:$1048576,$A29,BL$1))","v":""},{"$f":"IF($A29=\"N/A\",Ref!$B$36,INDEX(Ranks!$1:$1048576,$A29,BM$1))","v":""},{"$f":"IF($A29=\"N/A\",Ref!$B$36,INDEX(Ranks!$1:$1048576,$A29,BN$1))","v":""},{"$f":"IF($A29=\"N/A\",Ref!$B$36,INDEX(Ranks!$1:$1048576,$A29,BO$1))","v":""},{"$f":"IF($A29=\"N/A\",Ref!$B$36,INDEX(Ranks!$1:$1048576,$A29,BP$1))","v":""},{"$f":"IF($A29=\"N/A\",Ref!$B$36,INDEX(Ranks!$1:$1048576,$A29,BQ$1))","v":""},{"$f":"IF($A29=\"N/A\",Ref!$B$36,INDEX(Ranks!$1:$1048576,$A29,BR$1))","v":""},{"$f":"IF($A29=\"N/A\",Ref!$B$36,INDEX(Ranks!$1:$1048576,$A29,BS$1))","v":""},{"$f":"IF($A29=\"N/A\",Ref!$B$36,INDEX(Ranks!$1:$1048576,$A29,BT$1))","v":""},{"$f":"IF($A29=\"N/A\",Ref!$B$36,INDEX(Ranks!$1:$1048576,$A29,BU$1))","v":""},{"$f":"IF($A29=\"N/A\",Ref!$B$36,INDEX(Ranks!$1:$1048576,$A29,BV$1))","v":""},{"$f":"IF($A29=\"N/A\",Ref!$B$36,INDEX(Ranks!$1:$1048576,$A29,BW$1))","v":""},{"$f":"IF($A29=\"N/A\",Ref!$B$36,INDEX(Ranks!$1:$1048576,$A29,BX$1))","v":""},{"$f":"IF($A29=\"N/A\",Ref!$B$36,INDEX(Ranks!$1:$1048576,$A29,BY$1))","v":""},{"$f":"IF($A29=\"N/A\",Ref!$B$36,INDEX(Ranks!$1:$1048576,$A29,BZ$1))","v":""},{"$f":"IF($A29=\"N/A\",Ref!$B$36,INDEX(Ranks!$1:$1048576,$A29,CA$1))","v":""},{"$f":"IF($A29=\"N/A\",Ref!$B$36,INDEX(Ranks!$1:$1048576,$A29,CB$1))","v":""},{"$f":"IF($A29=\"N/A\",Ref!$B$36,INDEX(Ranks!$1:$1048576,$A29,CC$1))","v":""},{"$f":"IF($A29=\"N/A\",Ref!$B$36,INDEX(Ranks!$1:$1048576,$A29,CD$1))","v":""},{"$f":"IF($A29=\"N/A\",Ref!$B$36,INDEX(Ranks!$1:$1048576,$A29,CE$1))","v":""},{"$f":"IF($A29=\"N/A\",Ref!$B$36,INDEX(Ranks!$1:$1048576,$A29,CF$1))","v":""},{"$f":"IF($A29=\"N/A\",Ref!$B$36,INDEX(Ranks!$1:$1048576,$A29,CG$1))","v":""},{"$f":"IF($A29=\"N/A\",Ref!$B$36,INDEX(Ranks!$1:$1048576,$A29,CH$1))","v":""},{"$f":"IF($A29=\"N/A\",Ref!$B$36,INDEX(Ranks!$1:$1048576,$A29,CI$1))","v":""},{"$f":"IF($A29=\"N/A\",Ref!$B$36,INDEX(Ranks!$1:$1048576,$A29,CJ$1))","v":""},{"$f":"IF($A29=\"N/A\",Ref!$B$36,INDEX(Ranks!$1:$1048576,$A29,CK$1))","v":""},{"$f":"IF($A29=\"N/A\",Ref!$B$36,INDEX(Ranks!$1:$1048576,$A29,CL$1))","v":""},{"$f":"IF($A29=\"N/A\",Ref!$B$36,INDEX(Ranks!$1:$1048576,$A29,CM$1))","v":""},{"$f":"IF($A29=\"N/A\",Ref!$B$36,INDEX(Ranks!$1:$1048576,$A29,CN$1))","v":""},{"$f":"IF($A29=\"N/A\",Ref!$B$36,INDEX(Ranks!$1:$1048576,$A29,CO$1))","v":""},{"$f":"IF($A29=\"N/A\",Ref!$B$36,INDEX(Ranks!$1:$1048576,$A29,CP$1))","v":""},{"$f":"IF($A29=\"N/A\",Ref!$B$36,INDEX(Ranks!$1:$1048576,$A29,CQ$1))","v":""},{"$f":"IF($A29=\"N/A\",Ref!$B$36,INDEX(Ranks!$1:$1048576,$A29,CR$1))","v":""},{"$f":"IF($A29=\"N/A\",Ref!$B$36,INDEX(Ranks!$1:$1048576,$A29,CS$1))","v":""},{"$f":"IF($A29=\"N/A\",Ref!$B$36,INDEX(Ranks!$1:$1048576,$A29,CT$1))","v":""},{"$f":"IF($A29=\"N/A\",Ref!$B$36,INDEX(Ranks!$1:$1048576,$A29,CU$1))","v":""},{"$f":"IF($A29=\"N/A\",Ref!$B$36,INDEX(Ranks!$1:$1048576,$A29,CV$1))","v":""},{"$f":"IF($A29=\"N/A\",Ref!$B$36,INDEX(Ranks!$1:$1048576,$A29,CW$1))","v":""},{"$f":"IF($A29=\"N/A\",Ref!$B$36,INDEX(Ranks!$1:$1048576,$A29,CX$1))","v":""},{"$f":"IF($A29=\"N/A\",Ref!$B$36,INDEX(Ranks!$1:$1048576,$A29,CY$1))","v":""},{"$f":"IF($A29=\"N/A\",Ref!$B$36,INDEX(Ranks!$1:$1048576,$A29,CZ$1))","v":""},{"$f":"IF($A29=\"N/A\",Ref!$B$36,INDEX(Ranks!$1:$1048576,$A29,DA$1))","v":""},{"$f":"IF($A29=\"N/A\",Ref!$B$36,INDEX(Ranks!$1:$1048576,$A29,DB$1))","v":""},{"$f":"IF($A29=\"N/A\",Ref!$B$36,INDEX(Ranks!$1:$1048576,$A29,DC$1))","v":""},{"$f":"IF($A29=\"N/A\",Ref!$B$36,INDEX(Ranks!$1:$1048576,$A29,DD$1))","v":""},{"$f":"IF($A29=\"N/A\",Ref!$B$36,INDEX(Ranks!$1:$1048576,$A29,DE$1))","v":""},{"$f":"IF($A29=\"N/A\",Ref!$B$36,INDEX(Ranks!$1:$1048576,$A29,DF$1))","v":""},{"$f":"IF($A29=\"N/A\",Ref!$B$36,INDEX(Ranks!$1:$1048576,$A29,DG$1))","v":""},{"$f":"IF($A29=\"N/A\",Ref!$B$36,INDEX(Ranks!$1:$1048576,$A29,DH$1))","v":""},{"$f":"IF($A29=\"N/A\",Ref!$B$36,INDEX(Ranks!$1:$1048576,$A29,DI$1))","v":""},{"$f":"IF($A29=\"N/A\",Ref!$B$36,INDEX(Ranks!$1:$1048576,$A29,DJ$1))","v":""},{"$f":"IF($A29=\"N/A\",Ref!$B$36,INDEX(Ranks!$1:$1048576,$A29,DK$1))","v":""},{"$f":"IF($A29=\"N/A\",Ref!$B$36,INDEX(Ranks!$1:$1048576,$A29,DL$1))","v":""},{"$f":"IF($A29=\"N/A\",Ref!$B$36,INDEX(Ranks!$1:$1048576,$A29,DM$1))","v":""},{"$f":"IF($A29=\"N/A\",Ref!$B$36,INDEX(Ranks!$1:$1048576,$A29,DN$1))","v":""},{"$f":"IF($A29=\"N/A\",Ref!$B$36,INDEX(Ranks!$1:$1048576,$A29,DO$1))","v":""},{"$f":"IF($A29=\"N/A\",Ref!$B$36,INDEX(Ranks!$1:$1048576,$A29,DP$1))","v":""},{"$f":"IF($A29=\"N/A\",Ref!$B$36,INDEX(Ranks!$1:$1048576,$A29,DQ$1))","v":""},{"$f":"IF($A29=\"N/A\",Ref!$B$36,INDEX(Ranks!$1:$1048576,$A29,DR$1))","v":""},{"$f":"IF($A29=\"N/A\",Ref!$B$36,INDEX(Ranks!$1:$1048576,$A29,DS$1))","v":""},{"$f":"IF($A29=\"N/A\",Ref!$B$36,INDEX(Ranks!$1:$1048576,$A29,DT$1))","v":""},{"$f":"IF($A29=\"N/A\",Ref!$B$36,INDEX(Ranks!$1:$1048576,$A29,DU$1))","v":""},{"$f":"IF($A29=\"N/A\",Ref!$B$36,INDEX(Ranks!$1:$1048576,$A29,DV$1))","v":""},{"$f":"IF($A29=\"N/A\",Ref!$B$36,INDEX(Ranks!$1:$1048576,$A29,DW$1))","v":""},{"$f":"IF($A29=\"N/A\",Ref!$B$36,INDEX(Ranks!$1:$1048576,$A29,DX$1))","v":""},{"$f":"IF($A29=\"N/A\",Ref!$B$36,INDEX(Ranks!$1:$1048576,$A29,DY$1))","v":""},{"$f":"IF($A29=\"N/A\",Ref!$B$36,INDEX(Ranks!$1:$1048576,$A29,DZ$1))","v":""},{"$f":"IF($A29=\"N/A\",Ref!$B$36,INDEX(Ranks!$1:$1048576,$A29,EA$1))","v":""},{"$f":"IF($A29=\"N/A\",Ref!$B$36,INDEX(Ranks!$1:$1048576,$A29,EB$1))","v":""}]
[{"$f":"IFERROR(MATCH('Portfolio Page'!L30,Ranks!L:L,0),\"N/A\")","v":"N/A"},null,{"$f":"IF($A30=\"N/A\",\"\",INDEX(Ranks!$1:$1048576,$A30,C$1))","v":""},{"$f":"IF($A30=\"N/A\",Ref!$B$36,INDEX(Ranks!$1:$1048576,$A30,D$1))","v":""},{"$f":"IF($A30=\"N/A\",Ref!$B$36,INDEX(Ranks!$1:$1048576,$A30,E$1))","v":""},{"$f":"IF($A30=\"N/A\",\"\",INDEX(Ranks!$1:$1048576,$A30,F$1))","v":""},{"$f":"IF($A30=\"N/A\",\"\",INDEX(Ranks!$1:$1048576,$A30,G$1))","v":""},{"$f":"IF($A30=\"N/A\",\"\",INDEX(Ranks!$1:$1048576,$A30,H$1))","v":""},{"$f":"IF($A30=\"N/A\",\"\",INDEX(Ranks!$1:$1048576,$A30,I$1))","v":""},{"$f":"IF($A30=\"N/A\",\"\",INDEX(Ranks!$1:$1048576,$A30,J$1))","v":""},{"$f":"IF($A30=\"N/A\",\"\",INDEX(Ranks!$1:$1048576,$A30,K$1))","v":""},null,{"$f":"IF($A30=\"N/A\",Ref!$B$36,INDEX(Ranks!$1:$1048576,$A30,M$1))","v":""},{"$f":"IF($A30=\"N/A\",Ref!$B$36,INDEX(Ranks!$1:$1048576,$A30,N$1))","v":""},{"$f":"IF($A30=\"N/A\",Ref!$B$36,INDEX(Ranks!$1:$1048576,$A30,O$1))","v":""},{"$f":"IF($A30=\"N/A\",Ref!$B$36,INDEX(Ranks!$1:$1048576,$A30,P$1))","v":""},{"$f":"IF($A30=\"N/A\",Ref!$B$36,INDEX(Ranks!$1:$1048576,$A30,Q$1))","v":""},{"$f":"IF($A30=\"N/A\",Ref!$B$36,INDEX(Ranks!$1:$1048576,$A30,R$1))","v":""},{"$f":"IF($A30=\"N/A\",Ref!$B$36,INDEX(Ranks!$1:$1048576,$A30,S$1))","v":""},{"$f":"IF($A30=\"N/A\",Ref!$B$36,INDEX(Ranks!$1:$1048576,$A30,T$1))","v":""},{"$f":"IF($A30=\"N/A\",Ref!$B$36,INDEX(Ranks!$1:$1048576,$A30,U$1))","v":""},{"$f":"IF($A30=\"N/A\",Ref!$B$36,INDEX(Ranks!$1:$1048576,$A30,V$1))","v":""},{"$f":"IF($A30=\"N/A\",Ref!$B$36,INDEX(Ranks!$1:$1048576,$A30,W$1))","v":""},{"$f":"IF($A30=\"N/A\",Ref!$B$36,INDEX(Ranks!$1:$1048576,$A30,X$1))","v":""},{"$f":"IF($A30=\"N/A\",Ref!$B$36,INDEX(Ranks!$1:$1048576,$A30,Y$1))","v":""},{"$f":"IF($A30=\"N/A\",Ref!$B$36,INDEX(Ranks!$1:$1048576,$A30,Z$1))","v":""},{"$f":"IF($A30=\"N/A\",Ref!$B$36,INDEX(Ranks!$1:$1048576,$A30,AA$1))","v":""},{"$f":"IF($A30=\"N/A\",Ref!$B$36,INDEX(Ranks!$1:$1048576,$A30,AB$1))","v":""},{"$f":"IF($A30=\"N/A\",Ref!$B$36,INDEX(Ranks!$1:$1048576,$A30,AC$1))","v":""},{"$f":"IF($A30=\"N/A\",Ref!$B$36,INDEX(Ranks!$1:$1048576,$A30,AD$1))","v":""},{"$f":"IF($A30=\"N/A\",Ref!$B$36,INDEX(Ranks!$1:$1048576,$A30,AE$1))","v":""},{"$f":"IF($A30=\"N/A\",Ref!$B$36,INDEX(Ranks!$1:$1048576,$A30,AF$1))","v":""},{"$f":"IF($A30=\"N/A\",Ref!$B$36,INDEX(Ranks!$1:$1048576,$A30,AG$1))","v":""},{"$f":"IF($A30=\"N/A\",Ref!$B$36,INDEX(Ranks!$1:$1048576,$A30,AH$1))","v":""},{"$f":"IF($A30=\"N/A\",Ref!$B$36,INDEX(Ranks!$1:$1048576,$A30,AI$1))","v":""},{"$f":"IF($A30=\"N/A\",Ref!$B$36,INDEX(Ranks!$1:$1048576,$A30,AJ$1))","v":""},{"$f":"IF($A30=\"N/A\",Ref!$B$36,INDEX(Ranks!$1:$1048576,$A30,AK$1))","v":""},{"$f":"IF($A30=\"N/A\",Ref!$B$36,INDEX(Ranks!$1:$1048576,$A30,AL$1))","v":""},{"$f":"IF($A30=\"N/A\",Ref!$B$36,INDEX(Ranks!$1:$1048576,$A30,AM$1))","v":""},{"$f":"IF($A30=\"N/A\",Ref!$B$36,INDEX(Ranks!$1:$1048576,$A30,AN$1))","v":""},{"$f":"IF($A30=\"N/A\",Ref!$B$36,INDEX(Ranks!$1:$1048576,$A30,AO$1))","v":""},{"$f":"IF($A30=\"N/A\",Ref!$B$36,INDEX(Ranks!$1:$1048576,$A30,AP$1))","v":""},{"$f":"IF($A30=\"N/A\",Ref!$B$36,INDEX(Ranks!$1:$1048576,$A30,AQ$1))","v":""},{"$f":"IF($A30=\"N/A\",Ref!$B$36,INDEX(Ranks!$1:$1048576,$A30,AR$1))","v":""},{"$f":"IF($A30=\"N/A\",Ref!$B$36,INDEX(Ranks!$1:$1048576,$A30,AS$1))","v":""},{"$f":"IF($A30=\"N/A\",Ref!$B$36,INDEX(Ranks!$1:$1048576,$A30,AT$1))","v":""},{"$f":"IF($A30=\"N/A\",Ref!$B$36,INDEX(Ranks!$1:$1048576,$A30,AU$1))","v":""},{"$f":"IF($A30=\"N/A\",Ref!$B$36,INDEX(Ranks!$1:$1048576,$A30,AV$1))","v":""},{"$f":"IF($A30=\"N/A\",Ref!$B$36,INDEX(Ranks!$1:$1048576,$A30,AW$1))","v":""},{"$f":"IF($A30=\"N/A\",Ref!$B$36,INDEX(Ranks!$1:$1048576,$A30,AX$1))","v":""},{"$f":"IF($A30=\"N/A\",Ref!$B$36,INDEX(Ranks!$1:$1048576,$A30,AY$1))","v":""},{"$f":"IF($A30=\"N/A\",Ref!$B$36,INDEX(Ranks!$1:$1048576,$A30,AZ$1))","v":""},{"$f":"IF($A30=\"N/A\",Ref!$B$36,INDEX(Ranks!$1:$1048576,$A30,BA$1))","v":""},{"$f":"IF($A30=\"N/A\",Ref!$B$36,INDEX(Ranks!$1:$1048576,$A30,BB$1))","v":""},{"$f":"IF($A30=\"N/A\",Ref!$B$36,INDEX(Ranks!$1:$1048576,$A30,BC$1))","v":""},{"$f":"IF($A30=\"N/A\",Ref!$B$36,INDEX(Ranks!$1:$1048576,$A30,BD$1))","v":""},{"$f":"IF($A30=\"N/A\",Ref!$B$36,INDEX(Ranks!$1:$1048576,$A30,BE$1))","v":""},{"$f":"IF($A30=\"N/A\",Ref!$B$36,INDEX(Ranks!$1:$1048576,$A30,BF$1))","v":""},{"$f":"IF($A30=\"N/A\",Ref!$B$36,INDEX(Ranks!$1:$1048576,$A30,BG$1))","v":""},{"$f":"IF($A30=\"N/A\",Ref!$B$36,INDEX(Ranks!$1:$1048576,$A30,BH$1))","v":""},{"$f":"IF($A30=\"N/A\",Ref!$B$36,INDEX(Ranks!$1:$1048576,$A30,BI$1))","v":""},{"$f":"IF($A30=\"N/A\",Ref!$B$36,INDEX(Ranks!$1:$1048576,$A30,BJ$1))","v":""},{"$f":"IF($A30=\"N/A\",Ref!$B$36,INDEX(Ranks!$1:$1048576,$A30,BK$1))","v":""},{"$f":"IF($A30=\"N/A\",Ref!$B$36,INDEX(Ranks!$1:$1048576,$A30,BL$1))","v":""},{"$f":"IF($A30=\"N/A\",Ref!$B$36,INDEX(Ranks!$1:$1048576,$A30,BM$1))","v":""},{"$f":"IF($A30=\"N/A\",Ref!$B$36,INDEX(Ranks!$1:$1048576,$A30,BN$1))","v":""},{"$f":"IF($A30=\"N/A\",Ref!$B$36,INDEX(Ranks!$1:$1048576,$A30,BO$1))","v":""},{"$f":"IF($A30=\"N/A\",Ref!$B$36,INDEX(Ranks!$1:$1048576,$A30,BP$1))","v":""},{"$f":"IF($A30=\"N/A\",Ref!$B$36,INDEX(Ranks!$1:$1048576,$A30,BQ$1))","v":""},{"$f":"IF($A30=\"N/A\",Ref!$B$36,INDEX(Ranks!$1:$1048576,$A30,BR$1))","v":""},{"$f":"IF($A30=\"N/A\",Ref!$B$36,INDEX(Ranks!$1:$1048576,$A30,BS$1))","v":""},{"$f":"IF($A30=\"N/A\",Ref!$B$36,INDEX(Ranks!$1:$1048576,$A30,BT$1))","v":""},{"$f":"IF($A30=\"N/A\",Ref!$B$36,INDEX(Ranks!$1:$1048576,$A30,BU$1))","v":""},{"$f":"IF($A30=\"N/A\",Ref!$B$36,INDEX(Ranks!$1:$1048576,$A30,BV$1))","v":""},{"$f":"IF($A30=\"N/A\",Ref!$B$36,INDEX(Ranks!$1:$1048576,$A30,BW$1))","v":""},{"$f":"IF($A30=\"N/A\",Ref!$B$36,INDEX(Ranks!$1:$1048576,$A30,BX$1))","v":""},{"$f":"IF($A30=\"N/A\",Ref!$B$36,INDEX(Ranks!$1:$1048576,$A30,BY$1))","v":""},{"$f":"IF($A30=\"N/A\",Ref!$B$36,INDEX(Ranks!$1:$1048576,$A30,BZ$1))","v":""},{"$f":"IF($A30=\"N/A\",Ref!$B$36,INDEX(Ranks!$1:$1048576,$A30,CA$1))","v":""},{"$f":"IF($A30=\"N/A\",Ref!$B$36,INDEX(Ranks!$1:$1048576,$A30,CB$1))","v":""},{"$f":"IF($A30=\"N/A\",Ref!$B$36,INDEX(Ranks!$1:$1048576,$A30,CC$1))","v":""},{"$f":"IF($A30=\"N/A\",Ref!$B$36,INDEX(Ranks!$1:$1048576,$A30,CD$1))","v":""},{"$f":"IF($A30=\"N/A\",Ref!$B$36,INDEX(Ranks!$1:$1048576,$A30,CE$1))","v":""},{"$f":"IF($A30=\"N/A\",Ref!$B$36,INDEX(Ranks!$1:$1048576,$A30,CF$1))","v":""},{"$f":"IF($A30=\"N/A\",Ref!$B$36,INDEX(Ranks!$1:$1048576,$A30,CG$1))","v":""},{"$f":"IF($A30=\"N/A\",Ref!$B$36,INDEX(Ranks!$1:$1048576,$A30,CH$1))","v":""},{"$f":"IF($A30=\"N/A\",Ref!$B$36,INDEX(Ranks!$1:$1048576,$A30,CI$1))","v":""},{"$f":"IF($A30=\"N/A\",Ref!$B$36,INDEX(Ranks!$1:$1048576,$A30,CJ$1))","v":""},{"$f":"IF($A30=\"N/A\",Ref!$B$36,INDEX(Ranks!$1:$1048576,$A30,CK$1))","v":""},{"$f":"IF($A30=\"N/A\",Ref!$B$36,INDEX(Ranks!$1:$1048576,$A30,CL$1))","v":""},{"$f":"IF($A30=\"N/A\",Ref!$B$36,INDEX(Ranks!$1:$1048576,$A30,CM$1))","v":""},{"$f":"IF($A30=\"N/A\",Ref!$B$36,INDEX(Ranks!$1:$1048576,$A30,CN$1))","v":""},{"$f":"IF($A30=\"N/A\",Ref!$B$36,INDEX(Ranks!$1:$1048576,$A30,CO$1))","v":""},{"$f":"IF($A30=\"N/A\",Ref!$B$36,INDEX(Ranks!$1:$1048576,$A30,CP$1))","v":""},{"$f":"IF($A30=\"N/A\",Ref!$B$36,INDEX(Ranks!$1:$1048576,$A30,CQ$1))","v":""},{"$f":"IF($A30=\"N/A\",Ref!$B$36,INDEX(Ranks!$1:$1048576,$A30,CR$1))","v":""},{"$f":"IF($A30=\"N/A\",Ref!$B$36,INDEX(Ranks!$1:$1048576,$A30,CS$1))","v":""},{"$f":"IF($A30=\"N/A\",Ref!$B$36,INDEX(Ranks!$1:$1048576,$A30,CT$1))","v":""},{"$f":"IF($A30=\"N/A\",Ref!$B$36,INDEX(Ranks!$1:$1048576,$A30,CU$1))","v":""},{"$f":"IF($A30=\"N/A\",Ref!$B$36,INDEX(Ranks!$1:$1048576,$A30,CV$1))","v":""},{"$f":"IF($A30=\"N/A\",Ref!$B$36,INDEX(Ranks!$1:$1048576,$A30,CW$1))","v":""},{"$f":"IF($A30=\"N/A\",Ref!$B$36,INDEX(Ranks!$1:$1048576,$A30,CX$1))","v":""},{"$f":"IF($A30=\"N/A\",Ref!$B$36,INDEX(Ranks!$1:$1048576,$A30,CY$1))","v":""},{"$f":"IF($A30=\"N/A\",Ref!$B$36,INDEX(Ranks!$1:$1048576,$A30,CZ$1))","v":""},{"$f":"IF($A30=\"N/A\",Ref!$B$36,INDEX(Ranks!$1:$1048576,$A30,DA$1))","v":""},{"$f":"IF($A30=\"N/A\",Ref!$B$36,INDEX(Ranks!$1:$1048576,$A30,DB$1))","v":""},{"$f":"IF($A30=\"N/A\",Ref!$B$36,INDEX(Ranks!$1:$1048576,$A30,DC$1))","v":""},{"$f":"IF($A30=\"N/A\",Ref!$B$36,INDEX(Ranks!$1:$1048576,$A30,DD$1))","v":""},{"$f":"IF($A30=\"N/A\",Ref!$B$36,INDEX(Ranks!$1:$1048576,$A30,DE$1))","v":""},{"$f":"IF($A30=\"N/A\",Ref!$B$36,INDEX(Ranks!$1:$1048576,$A30,DF$1))","v":""},{"$f":"IF($A30=\"N/A\",Ref!$B$36,INDEX(Ranks!$1:$1048576,$A30,DG$1))","v":""},{"$f":"IF($A30=\"N/A\",Ref!$B$36,INDEX(Ranks!$1:$1048576,$A30,DH$1))","v":""},{"$f":"IF($A30=\"N/A\",Ref!$B$36,INDEX(Ranks!$1:$1048576,$A30,DI$1))","v":""},{"$f":"IF($A30=\"N/A\",Ref!$B$36,INDEX(Ranks!$1:$1048576,$A30,DJ$1))","v":""},{"$f":"IF($A30=\"N/A\",Ref!$B$36,INDEX(Ranks!$1:$1048576,$A30,DK$1))","v":""},{"$f":"IF($A30=\"N/A\",Ref!$B$36,INDEX(Ranks!$1:$1048576,$A30,DL$1))","v":""},{"$f":"IF($A30=\"N/A\",Ref!$B$36,INDEX(Ranks!$1:$1048576,$A30,DM$1))","v":""},{"$f":"IF($A30=\"N/A\",Ref!$B$36,INDEX(Ranks!$1:$1048576,$A30,DN$1))","v":""},{"$f":"IF($A30=\"N/A\",Ref!$B$36,INDEX(Ranks!$1:$1048576,$A30,DO$1))","v":""},{"$f":"IF($A30=\"N/A\",Ref!$B$36,INDEX(Ranks!$1:$1048576,$A30,DP$1))","v":""},{"$f":"IF($A30=\"N/A\",Ref!$B$36,INDEX(Ranks!$1:$1048576,$A30,DQ$1))","v":""},{"$f":"IF($A30=\"N/A\",Ref!$B$36,INDEX(Ranks!$1:$1048576,$A30,DR$1))","v":""},{"$f":"IF($A30=\"N/A\",Ref!$B$36,INDEX(Ranks!$1:$1048576,$A30,DS$1))","v":""},{"$f":"IF($A30=\"N/A\",Ref!$B$36,INDEX(Ranks!$1:$1048576,$A30,DT$1))","v":""},{"$f":"IF($A30=\"N/A\",Ref!$B$36,INDEX(Ranks!$1:$1048576,$A30,DU$1))","v":""},{"$f":"IF($A30=\"N/A\",Ref!$B$36,INDEX(Ranks!$1:$1048576,$A30,DV$1))","v":""},{"$f":"IF($A30=\"N/A\",Ref!$B$36,INDEX(Ranks!$1:$1048576,$A30,DW$1))","v":""},{"$f":"IF($A30=\"N/A\",Ref!$B$36,INDEX(Ranks!$1:$1048576,$A30,DX$1))","v":""},{"$f":"IF($A30=\"N/A\",Ref!$B$36,INDEX(Ranks!$1:$1048576,$A30,DY$1))","v":""},{"$f":"IF($A30=\"N/A\",Ref!$B$36,INDEX(Ranks!$1:$1048576,$A30,DZ$1))","v":""},{"$f":"IF($A30=\"N/A\",Ref!$B$36,INDEX(Ranks!$1:$1048576,$A30,EA$1))","v":""},{"$f":"IF($A30=\"N/A\",Ref!$B$36,INDEX(Ranks!$1:$1048576,$A30,EB$1))","v":""}]
[{"$f":"IFERROR(MATCH('Portfolio Page'!L31,Ranks!L:L,0),\"N/A\")","v":"N/A"},null,{"$f":"IF($A31=\"N/A\",\"\",INDEX(Ranks!$1:$1048576,$A31,C$1))","v":""},{"$f":"IF($A31=\"N/A\",Ref!$B$36,INDEX(Ranks!$1:$1048576,$A31,D$1))","v":""},{"$f":"IF($A31=\"N/A\",Ref!$B$36,INDEX(Ranks!$1:$1048576,$A31,E$1))","v":""},{"$f":"IF($A31=\"N/A\",\"\",INDEX(Ranks!$1:$1048576,$A31,F$1))","v":""},{"$f":"IF($A31=\"N/A\",\"\",INDEX(Ranks!$1:$1048576,$A31,G$1))","v":""},{"$f":"IF($A31=\"N/A\",\"\",INDEX(Ranks!$1:$1048576,$A31,H$1))","v":""},{"$f":"IF($A31=\"N/A\",\"\",INDEX(Ranks!$1:$1048576,$A31,I$1))","v":""},{"$f":"IF($A31=\"N/A\",\"\",INDEX(Ranks!$1:$1048576,$A31,J$1))","v":""},{"$f":"IF($A31=\"N/A\",\"\",INDEX(Ranks!$1:$1048576,$A31,K$1))","v":""},null,{"$f":"IF($A31=\"N/A\",Ref!$B$36,INDEX(Ranks!$1:$1048576,$A31,M$1))","v":""},{"$f":"IF($A31=\"N/A\",Ref!$B$36,INDEX(Ranks!$1:$1048576,$A31,N$1))","v":""},{"$f":"IF($A31=\"N/A\",Ref!$B$36,INDEX(Ranks!$1:$1048576,$A31,O$1))","v":""},{"$f":"IF($A31=\"N/A\",Ref!$B$36,INDEX(Ranks!$1:$1048576,$A31,P$1))","v":""},{"$f":"IF($A31=\"N/A\",Ref!$B$36,INDEX(Ranks!$1:$1048576,$A31,Q$1))","v":""},{"$f":"IF($A31=\"N/A\",Ref!$B$36,INDEX(Ranks!$1:$1048576,$A31,R$1))","v":""},{"$f":"IF($A31=\"N/A\",Ref!$B$36,INDEX(Ranks!$1:$1048576,$A31,S$1))","v":""},{"$f":"IF($A31=\"N/A\",Ref!$B$36,INDEX(Ranks!$1:$1048576,$A31,T$1))","v":""},{"$f":"IF($A31=\"N/A\",Ref!$B$36,INDEX(Ranks!$1:$1048576,$A31,U$1))","v":""},{"$f":"IF($A31=\"N/A\",Ref!$B$36,INDEX(Ranks!$1:$1048576,$A31,V$1))","v":""},{"$f":"IF($A31=\"N/A\",Ref!$B$36,INDEX(Ranks!$1:$1048576,$A31,W$1))","v":""},{"$f":"IF($A31=\"N/A\",Ref!$B$36,INDEX(Ranks!$1:$1048576,$A31,X$1))","v":""},{"$f":"IF($A31=\"N/A\",Ref!$B$36,INDEX(Ranks!$1:$1048576,$A31,Y$1))","v":""},{"$f":"IF($A31=\"N/A\",Ref!$B$36,INDEX(Ranks!$1:$1048576,$A31,Z$1))","v":""},{"$f":"IF($A31=\"N/A\",Ref!$B$36,INDEX(Ranks!$1:$1048576,$A31,AA$1))","v":""},{"$f":"IF($A31=\"N/A\",Ref!$B$36,INDEX(Ranks!$1:$1048576,$A31,AB$1))","v":""},{"$f":"IF($A31=\"N/A\",Ref!$B$36,INDEX(Ranks!$1:$1048576,$A31,AC$1))","v":""},{"$f":"IF($A31=\"N/A\",Ref!$B$36,INDEX(Ranks!$1:$1048576,$A31,AD$1))","v":""},{"$f":"IF($A31=\"N/A\",Ref!$B$36,INDEX(Ranks!$1:$1048576,$A31,AE$1))","v":""},{"$f":"IF($A31=\"N/A\",Ref!$B$36,INDEX(Ranks!$1:$1048576,$A31,AF$1))","v":""},{"$f":"IF($A31=\"N/A\",Ref!$B$36,INDEX(Ranks!$1:$1048576,$A31,AG$1))","v":""},{"$f":"IF($A31=\"N/A\",Ref!$B$36,INDEX(Ranks!$1:$1048576,$A31,AH$1))","v":""},{"$f":"IF($A31=\"N/A\",Ref!$B$36,INDEX(Ranks!$1:$1048576,$A31,AI$1))","v":""},{"$f":"IF($A31=\"N/A\",Ref!$B$36,INDEX(Ranks!$1:$1048576,$A31,AJ$1))","v":""},{"$f":"IF($A31=\"N/A\",Ref!$B$36,INDEX(Ranks!$1:$1048576,$A31,AK$1))","v":""},{"$f":"IF($A31=\"N/A\",Ref!$B$36,INDEX(Ranks!$1:$1048576,$A31,AL$1))","v":""},{"$f":"IF($A31=\"N/A\",Ref!$B$36,INDEX(Ranks!$1:$1048576,$A31,AM$1))","v":""},{"$f":"IF($A31=\"N/A\",Ref!$B$36,INDEX(Ranks!$1:$1048576,$A31,AN$1))","v":""},{"$f":"IF($A31=\"N/A\",Ref!$B$36,INDEX(Ranks!$1:$1048576,$A31,AO$1))","v":""},{"$f":"IF($A31=\"N/A\",Ref!$B$36,INDEX(Ranks!$1:$1048576,$A31,AP$1))","v":""},{"$f":"IF($A31=\"N/A\",Ref!$B$36,INDEX(Ranks!$1:$1048576,$A31,AQ$1))","v":""},{"$f":"IF($A31=\"N/A\",Ref!$B$36,INDEX(Ranks!$1:$1048576,$A31,AR$1))","v":""},{"$f":"IF($A31=\"N/A\",Ref!$B$36,INDEX(Ranks!$1:$1048576,$A31,AS$1))","v":""},{"$f":"IF($A31=\"N/A\",Ref!$B$36,INDEX(Ranks!$1:$1048576,$A31,AT$1))","v":""},{"$f":"IF($A31=\"N/A\",Ref!$B$36,INDEX(Ranks!$1:$1048576,$A31,AU$1))","v":""},{"$f":"IF($A31=\"N/A\",Ref!$B$36,INDEX(Ranks!$1:$1048576,$A31,AV$1))","v":""},{"$f":"IF($A31=\"N/A\",Ref!$B$36,INDEX(Ranks!$1:$1048576,$A31,AW$1))","v":""},{"$f":"IF($A31=\"N/A\",Ref!$B$36,INDEX(Ranks!$1:$1048576,$A31,AX$1))","v":""},{"$f":"IF($A31=\"N/A\",Ref!$B$36,INDEX(Ranks!$1:$1048576,$A31,AY$1))","v":""},{"$f":"IF($A31=\"N/A\",Ref!$B$36,INDEX(Ranks!$1:$1048576,$A31,AZ$1))","v":""},{"$f":"IF($A31=\"N/A\",Ref!$B$36,INDEX(Ranks!$1:$1048576,$A31,BA$1))","v":""},{"$f":"IF($A31=\"N/A\",Ref!$B$36,INDEX(Ranks!$1:$1048576,$A31,BB$1))","v":""},{"$f":"IF($A31=\"N/A\",Ref!$B$36,INDEX(Ranks!$1:$1048576,$A31,BC$1))","v":""},{"$f":"IF($A31=\"N/A\",Ref!$B$36,INDEX(Ranks!$1:$1048576,$A31,BD$1))","v":""},{"$f":"IF($A31=\"N/A\",Ref!$B$36,INDEX(Ranks!$1:$1048576,$A31,BE$1))","v":""},{"$f":"IF($A31=\"N/A\",Ref!$B$36,INDEX(Ranks!$1:$1048576,$A31,BF$1))","v":""},{"$f":"IF($A31=\"N/A\",Ref!$B$36,INDEX(Ranks!$1:$1048576,$A31,BG$1))","v":""},{"$f":"IF($A31=\"N/A\",Ref!$B$36,INDEX(Ranks!$1:$1048576,$A31,BH$1))","v":""},{"$f":"IF($A31=\"N/A\",Ref!$B$36,INDEX(Ranks!$1:$1048576,$A31,BI$1))","v":""},{"$f":"IF($A31=\"N/A\",Ref!$B$36,INDEX(Ranks!$1:$1048576,$A31,BJ$1))","v":""},{"$f":"IF($A31=\"N/A\",Ref!$B$36,INDEX(Ranks!$1:$1048576,$A31,BK$1))","v":""},{"$f":"IF($A31=\"N/A\",Ref!$B$36,INDEX(Ranks!$1:$1048576,$A31,BL$1))","v":""},{"$f":"IF($A31=\"N/A\",Ref!$B$36,INDEX(Ranks!$1:$1048576,$A31,BM$1))","v":""},{"$f":"IF($A31=\"N/A\",Ref!$B$36,INDEX(Ranks!$1:$1048576,$A31,BN$1))","v":""},{"$f":"IF($A31=\"N/A\",Ref!$B$36,INDEX(Ranks!$1:$1048576,$A31,BO$1))","v":""},{"$f":"IF($A31=\"N/A\",Ref!$B$36,INDEX(Ranks!$1:$1048576,$A31,BP$1))","v":""},{"$f":"IF($A31=\"N/A\",Ref!$B$36,INDEX(Ranks!$1:$1048576,$A31,BQ$1))","v":""},{"$f":"IF($A31=\"N/A\",Ref!$B$36,INDEX(Ranks!$1:$1048576,$A31,BR$1))","v":""},{"$f":"IF($A31=\"N/A\",Ref!$B$36,INDEX(Ranks!$1:$1048576,$A31,BS$1))","v":""},{"$f":"IF($A31=\"N/A\",Ref!$B$36,INDEX(Ranks!$1:$1048576,$A31,BT$1))","v":""},{"$f":"IF($A31=\"N/A\",Ref!$B$36,INDEX(Ranks!$1:$1048576,$A31,BU$1))","v":""},{"$f":"IF($A31=\"N/A\",Ref!$B$36,INDEX(Ranks!$1:$1048576,$A31,BV$1))","v":""},{"$f":"IF($A31=\"N/A\",Ref!$B$36,INDEX(Ranks!$1:$1048576,$A31,BW$1))","v":""},{"$f":"IF($A31=\"N/A\",Ref!$B$36,INDEX(Ranks!$1:$1048576,$A31,BX$1))","v":""},{"$f":"IF($A31=\"N/A\",Ref!$B$36,INDEX(Ranks!$1:$1048576,$A31,BY$1))","v":""},{"$f":"IF($A31=\"N/A\",Ref!$B$36,INDEX(Ranks!$1:$1048576,$A31,BZ$1))","v":""},{"$f":"IF($A31=\"N/A\",Ref!$B$36,INDEX(Ranks!$1:$1048576,$A31,CA$1))","v":""},{"$f":"IF($A31=\"N/A\",Ref!$B$36,INDEX(Ranks!$1:$1048576,$A31,CB$1))","v":""},{"$f":"IF($A31=\"N/A\",Ref!$B$36,INDEX(Ranks!$1:$1048576,$A31,CC$1))","v":""},{"$f":"IF($A31=\"N/A\",Ref!$B$36,INDEX(Ranks!$1:$1048576,$A31,CD$1))","v":""},{"$f":"IF($A31=\"N/A\",Ref!$B$36,INDEX(Ranks!$1:$1048576,$A31,CE$1))","v":""},{"$f":"IF($A31=\"N/A\",Ref!$B$36,INDEX(Ranks!$1:$1048576,$A31,CF$1))","v":""},{"$f":"IF($A31=\"N/A\",Ref!$B$36,INDEX(Ranks!$1:$1048576,$A31,CG$1))","v":""},{"$f":"IF($A31=\"N/A\",Ref!$B$36,INDEX(Ranks!$1:$1048576,$A31,CH$1))","v":""},{"$f":"IF($A31=\"N/A\",Ref!$B$36,INDEX(Ranks!$1:$1048576,$A31,CI$1))","v":""},{"$f":"IF($A31=\"N/A\",Ref!$B$36,INDEX(Ranks!$1:$1048576,$A31,CJ$1))","v":""},{"$f":"IF($A31=\"N/A\",Ref!$B$36,INDEX(Ranks!$1:$1048576,$A31,CK$1))","v":""},{"$f":"IF($A31=\"N/A\",Ref!$B$36,INDEX(Ranks!$1:$1048576,$A31,CL$1))","v":""},{"$f":"IF($A31=\"N/A\",Ref!$B$36,INDEX(Ranks!$1:$1048576,$A31,CM$1))","v":""},{"$f":"IF($A31=\"N/A\",Ref!$B$36,INDEX(Ranks!$1:$1048576,$A31,CN$1))","v":""},{"$f":"IF($A31=\"N/A\",Ref!$B$36,INDEX(Ranks!$1:$1048576,$A31,CO$1))","v":""},{"$f":"IF($A31=\"N/A\",Ref!$B$36,INDEX(Ranks!$1:$1048576,$A31,CP$1))","v":""},{"$f":"IF($A31=\"N/A\",Ref!$B$36,INDEX(Ranks!$1:$1048576,$A31,CQ$1))","v":""},{"$f":"IF($A31=\"N/A\",Ref!$B$36,INDEX(Ranks!$1:$1048576,$A31,CR$1))","v":""},{"$f":"IF($A31=\"N/A\",Ref!$B$36,INDEX(Ranks!$1:$1048576,$A31,CS$1))","v":""},{"$f":"IF($A31=\"N/A\",Ref!$B$36,INDEX(Ranks!$1:$1048576,$A31,CT$1))","v":""},{"$f":"IF($A31=\"N/A\",Ref!$B$36,INDEX(Ranks!$1:$1048576,$A31,CU$1))","v":""},{"$f":"IF($A31=\"N/A\",Ref!$B$36,INDEX(Ranks!$1:$1048576,$A31,CV$1))","v":""},{"$f":"IF($A31=\"N/A\",Ref!$B$36,INDEX(Ranks!$1:$1048576,$A31,CW$1))","v":""},{"$f":"IF($A31=\"N/A\",Ref!$B$36,INDEX(Ranks!$1:$1048576,$A31,CX$1))","v":""},{"$f":"IF($A31=\"N/A\",Ref!$B$36,INDEX(Ranks!$1:$1048576,$A31,CY$1))","v":""},{"$f":"IF($A31=\"N/A\",Ref!$B$36,INDEX(Ranks!$1:$1048576,$A31,CZ$1))","v":""},{"$f":"IF($A31=\"N/A\",Ref!$B$36,INDEX(Ranks!$1:$1048576,$A31,DA$1))","v":""},{"$f":"IF($A31=\"N/A\",Ref!$B$36,INDEX(Ranks!$1:$1048576,$A31,DB$1))","v":""},{"$f":"IF($A31=\"N/A\",Ref!$B$36,INDEX(Ranks!$1:$1048576,$A31,DC$1))","v":""},{"$f":"IF($A31=\"N/A\",Ref!$B$36,INDEX(Ranks!$1:$1048576,$A31,DD$1))","v":""},{"$f":"IF($A31=\"N/A\",Ref!$B$36,INDEX(Ranks!$1:$1048576,$A31,DE$1))","v":""},{"$f":"IF($A31=\"N/A\",Ref!$B$36,INDEX(Ranks!$1:$1048576,$A31,DF$1))","v":""},{"$f":"IF($A31=\"N/A\",Ref!$B$36,INDEX(Ranks!$1:$1048576,$A31,DG$1))","v":""},{"$f":"IF($A31=\"N/A\",Ref!$B$36,INDEX(Ranks!$1:$1048576,$A31,DH$1))","v":""},{"$f":"IF($A31=\"N/A\",Ref!$B$36,INDEX(Ranks!$1:$1048576,$A31,DI$1))","v":""},{"$f":"IF($A31=\"N/A\",Ref!$B$36,INDEX(Ranks!$1:$1048576,$A31,DJ$1))","v":""},{"$f":"IF($A31=\"N/A\",Ref!$B$36,INDEX(Ranks!$1:$1048576,$A31,DK$1))","v":""},{"$f":"IF($A31=\"N/A\",Ref!$B$36,INDEX(Ranks!$1:$1048576,$A31,DL$1))","v":""},{"$f":"IF($A31=\"N/A\",Ref!$B$36,INDEX(Ranks!$1:$1048576,$A31,DM$1))","v":""},{"$f":"IF($A31=\"N/A\",Ref!$B$36,INDEX(Ranks!$1:$1048576,$A31,DN$1))","v":""},{"$f":"IF($A31=\"N/A\",Ref!$B$36,INDEX(Ranks!$1:$1048576,$A31,DO$1))","v":""},{"$f":"IF($A31=\"N/A\",Ref!$B$36,INDEX(Ranks!$1:$1048576,$A31,DP$1))","v":""},{"$f":"IF($A31=\"N/A\",Ref!$B$36,INDEX(Ranks!$1:$1048576,$A31,DQ$1))","v":""},{"$f":"IF($A31=\"N/A\",Ref!$B$36,INDEX(Ranks!$1:$1048576,$A31,DR$1))","v":""},{"$f":"IF($A31=\"N/A\",Ref!$B$36,INDEX(Ranks!$1:$1048576,$A31,DS$1))","v":""},{"$f":"IF($A31=\"N/A\",Ref!$B$36,INDEX(Ranks!$1:$1048576,$A31,DT$1))","v":""},{"$f":"IF($A31=\"N/A\",Ref!$B$36,INDEX(Ranks!$1:$1048576,$A31,DU$1))","v":""},{"$f":"IF($A31=\"N/A\",Ref!$B$36,INDEX(Ranks!$1:$1048576,$A31,DV$1))","v":""},{"$f":"IF($A31=\"N/A\",Ref!$B$36,INDEX(Ranks!$1:$1048576,$A31,DW$1))","v":""},{"$f":"IF($A31=\"N/A\",Ref!$B$36,INDEX(Ranks!$1:$1048576,$A31,DX$1))","v":""},{"$f":"IF($A31=\"N/A\",Ref!$B$36,INDEX(Ranks!$1:$1048576,$A31,DY$1))","v":""},{"$f":"IF($A31=\"N/A\",Ref!$B$36,INDEX(Ranks!$1:$1048576,$A31,DZ$1))","v":""},{"$f":"IF($A31=\"N/A\",Ref!$B$36,INDEX(Ranks!$1:$1048576,$A31,EA$1))","v":""},{"$f":"IF($A31=\"N/A\",Ref!$B$36,INDEX(Ranks!$1:$1048576,$A31,EB$1))","v":""}]
[{"$f":"IFERROR(MATCH('Portfolio Page'!L32,Ranks!L:L,0),\"N/A\")","v":"N/A"},null,{"$f":"IF($A32=\"N/A\",\"\",INDEX(Ranks!$1:$1048576,$A32,C$1))","v":""},{"$f":"IF($A32=\"N/A\",Ref!$B$36,INDEX(Ranks!$1:$1048576,$A32,D$1))","v":""},{"$f":"IF($A32=\"N/A\",Ref!$B$36,INDEX(Ranks!$1:$1048576,$A32,E$1))","v":""},{"$f":"IF($A32=\"N/A\",\"\",INDEX(Ranks!$1:$1048576,$A32,F$1))","v":""},{"$f":"IF($A32=\"N/A\",\"\",INDEX(Ranks!$1:$1048576,$A32,G$1))","v":""},{"$f":"IF($A32=\"N/A\",\"\",INDEX(Ranks!$1:$1048576,$A32,H$1))","v":""},{"$f":"IF($A32=\"N/A\",\"\",INDEX(Ranks!$1:$1048576,$A32,I$1))","v":""},{"$f":"IF($A32=\"N/A\",\"\",INDEX(Ranks!$1:$1048576,$A32,J$1))","v":""},{"$f":"IF($A32=\"N/A\",\"\",INDEX(Ranks!$1:$1048576,$A32,K$1))","v":""},null,{"$f":"IF($A32=\"N/A\",Ref!$B$36,INDEX(Ranks!$1:$1048576,$A32,M$1))","v":""},{"$f":"IF($A32=\"N/A\",Ref!$B$36,INDEX(Ranks!$1:$1048576,$A32,N$1))","v":""},{"$f":"IF($A32=\"N/A\",Ref!$B$36,INDEX(Ranks!$1:$1048576,$A32,O$1))","v":""},{"$f":"IF($A32=\"N/A\",Ref!$B$36,INDEX(Ranks!$1:$1048576,$A32,P$1))","v":""},{"$f":"IF($A32=\"N/A\",Ref!$B$36,INDEX(Ranks!$1:$1048576,$A32,Q$1))","v":""},{"$f":"IF($A32=\"N/A\",Ref!$B$36,INDEX(Ranks!$1:$1048576,$A32,R$1))","v":""},{"$f":"IF($A32=\"N/A\",Ref!$B$36,INDEX(Ranks!$1:$1048576,$A32,S$1))","v":""},{"$f":"IF($A32=\"N/A\",Ref!$B$36,INDEX(Ranks!$1:$1048576,$A32,T$1))","v":""},{"$f":"IF($A32=\"N/A\",Ref!$B$36,INDEX(Ranks!$1:$1048576,$A32,U$1))","v":""},{"$f":"IF($A32=\"N/A\",Ref!$B$36,INDEX(Ranks!$1:$1048576,$A32,V$1))","v":""},{"$f":"IF($A32=\"N/A\",Ref!$B$36,INDEX(Ranks!$1:$1048576,$A32,W$1))","v":""},{"$f":"IF($A32=\"N/A\",Ref!$B$36,INDEX(Ranks!$1:$1048576,$A32,X$1))","v":""},{"$f":"IF($A32=\"N/A\",Ref!$B$36,INDEX(Ranks!$1:$1048576,$A32,Y$1))","v":""},{"$f":"IF($A32=\"N/A\",Ref!$B$36,INDEX(Ranks!$1:$1048576,$A32,Z$1))","v":""},{"$f":"IF($A32=\"N/A\",Ref!$B$36,INDEX(Ranks!$1:$1048576,$A32,AA$1))","v":""},{"$f":"IF($A32=\"N/A\",Ref!$B$36,INDEX(Ranks!$1:$1048576,$A32,AB$1))","v":""},{"$f":"IF($A32=\"N/A\",Ref!$B$36,INDEX(Ranks!$1:$1048576,$A32,AC$1))","v":""},{"$f":"IF($A32=\"N/A\",Ref!$B$36,INDEX(Ranks!$1:$1048576,$A32,AD$1))","v":""},{"$f":"IF($A32=\"N/A\",Ref!$B$36,INDEX(Ranks!$1:$1048576,$A32,AE$1))","v":""},{"$f":"IF($A32=\"N/A\",Ref!$B$36,INDEX(Ranks!$1:$1048576,$A32,AF$1))","v":""},{"$f":"IF($A32=\"N/A\",Ref!$B$36,INDEX(Ranks!$1:$1048576,$A32,AG$1))","v":""},{"$f":"IF($A32=\"N/A\",Ref!$B$36,INDEX(Ranks!$1:$1048576,$A32,AH$1))","v":""},{"$f":"IF($A32=\"N/A\",Ref!$B$36,INDEX(Ranks!$1:$1048576,$A32,AI$1))","v":""},{"$f":"IF($A32=\"N/A\",Ref!$B$36,INDEX(Ranks!$1:$1048576,$A32,AJ$1))","v":""},{"$f":"IF($A32=\"N/A\",Ref!$B$36,INDEX(Ranks!$1:$1048576,$A32,AK$1))","v":""},{"$f":"IF($A32=\"N/A\",Ref!$B$36,INDEX(Ranks!$1:$1048576,$A32,AL$1))","v":""},{"$f":"IF($A32=\"N/A\",Ref!$B$36,INDEX(Ranks!$1:$1048576,$A32,AM$1))","v":""},{"$f":"IF($A32=\"N/A\",Ref!$B$36,INDEX(Ranks!$1:$1048576,$A32,AN$1))","v":""},{"$f":"IF($A32=\"N/A\",Ref!$B$36,INDEX(Ranks!$1:$1048576,$A32,AO$1))","v":""},{"$f":"IF($A32=\"N/A\",Ref!$B$36,INDEX(Ranks!$1:$1048576,$A32,AP$1))","v":""},{"$f":"IF($A32=\"N/A\",Ref!$B$36,INDEX(Ranks!$1:$1048576,$A32,AQ$1))","v":""},{"$f":"IF($A32=\"N/A\",Ref!$B$36,INDEX(Ranks!$1:$1048576,$A32,AR$1))","v":""},{"$f":"IF($A32=\"N/A\",Ref!$B$36,INDEX(Ranks!$1:$1048576,$A32,AS$1))","v":""},{"$f":"IF($A32=\"N/A\",Ref!$B$36,INDEX(Ranks!$1:$1048576,$A32,AT$1))","v":""},{"$f":"IF($A32=\"N/A\",Ref!$B$36,INDEX(Ranks!$1:$1048576,$A32,AU$1))","v":""},{"$f":"IF($A32=\"N/A\",Ref!$B$36,INDEX(Ranks!$1:$1048576,$A32,AV$1))","v":""},{"$f":"IF($A32=\"N/A\",Ref!$B$36,INDEX(Ranks!$1:$1048576,$A32,AW$1))","v":""},{"$f":"IF($A32=\"N/A\",Ref!$B$36,INDEX(Ranks!$1:$1048576,$A32,AX$1))","v":""},{"$f":"IF($A32=\"N/A\",Ref!$B$36,INDEX(Ranks!$1:$1048576,$A32,AY$1))","v":""},{"$f":"IF($A32=\"N/A\",Ref!$B$36,INDEX(Ranks!$1:$1048576,$A32,AZ$1))","v":""},{"$f":"IF($A32=\"N/A\",Ref!$B$36,INDEX(Ranks!$1:$1048576,$A32,BA$1))","v":""},{"$f":"IF($A32=\"N/A\",Ref!$B$36,INDEX(Ranks!$1:$1048576,$A32,BB$1))","v":""},{"$f":"IF($A32=\"N/A\",Ref!$B$36,INDEX(Ranks!$1:$1048576,$A32,BC$1))","v":""},{"$f":"IF($A32=\"N/A\",Ref!$B$36,INDEX(Ranks!$1:$1048576,$A32,BD$1))","v":""},{"$f":"IF($A32=\"N/A\",Ref!$B$36,INDEX(Ranks!$1:$1048576,$A32,BE$1))","v":""},{"$f":"IF($A32=\"N/A\",Ref!$B$36,INDEX(Ranks!$1:$1048576,$A32,BF$1))","v":""},{"$f":"IF($A32=\"N/A\",Ref!$B$36,INDEX(Ranks!$1:$1048576,$A32,BG$1))","v":""},{"$f":"IF($A32=\"N/A\",Ref!$B$36,INDEX(Ranks!$1:$1048576,$A32,BH$1))","v":""},{"$f":"IF($A32=\"N/A\",Ref!$B$36,INDEX(Ranks!$1:$1048576,$A32,BI$1))","v":""},{"$f":"IF($A32=\"N/A\",Ref!$B$36,INDEX(Ranks!$1:$1048576,$A32,BJ$1))","v":""},{"$f":"IF($A32=\"N/A\",Ref!$B$36,INDEX(Ranks!$1:$1048576,$A32,BK$1))","v":""},{"$f":"IF($A32=\"N/A\",Ref!$B$36,INDEX(Ranks!$1:$1048576,$A32,BL$1))","v":""},{"$f":"IF($A32=\"N/A\",Ref!$B$36,INDEX(Ranks!$1:$1048576,$A32,BM$1))","v":""},{"$f":"IF($A32=\"N/A\",Ref!$B$36,INDEX(Ranks!$1:$1048576,$A32,BN$1))","v":""},{"$f":"IF($A32=\"N/A\",Ref!$B$36,INDEX(Ranks!$1:$1048576,$A32,BO$1))","v":""},{"$f":"IF($A32=\"N/A\",Ref!$B$36,INDEX(Ranks!$1:$1048576,$A32,BP$1))","v":""},{"$f":"IF($A32=\"N/A\",Ref!$B$36,INDEX(Ranks!$1:$1048576,$A32,BQ$1))","v":""},{"$f":"IF($A32=\"N/A\",Ref!$B$36,INDEX(Ranks!$1:$1048576,$A32,BR$1))","v":""},{"$f":"IF($A32=\"N/A\",Ref!$B$36,INDEX(Ranks!$1:$1048576,$A32,BS$1))","v":""},{"$f":"IF($A32=\"N/A\",Ref!$B$36,INDEX(Ranks!$1:$1048576,$A32,BT$1))","v":""},{"$f":"IF($A32=\"N/A\",Ref!$B$36,INDEX(Ranks!$1:$1048576,$A32,BU$1))","v":""},{"$f":"IF($A32=\"N/A\",Ref!$B$36,INDEX(Ranks!$1:$1048576,$A32,BV$1))","v":""},{"$f":"IF($A32=\"N/A\",Ref!$B$36,INDEX(Ranks!$1:$1048576,$A32,BW$1))","v":""},{"$f":"IF($A32=\"N/A\",Ref!$B$36,INDEX(Ranks!$1:$1048576,$A32,BX$1))","v":""},{"$f":"IF($A32=\"N/A\",Ref!$B$36,INDEX(Ranks!$1:$1048576,$A32,BY$1))","v":""},{"$f":"IF($A32=\"N/A\",Ref!$B$36,INDEX(Ranks!$1:$1048576,$A32,BZ$1))","v":""},{"$f":"IF($A32=\"N/A\",Ref!$B$36,INDEX(Ranks!$1:$1048576,$A32,CA$1))","v":""},{"$f":"IF($A32=\"N/A\",Ref!$B$36,INDEX(Ranks!$1:$1048576,$A32,CB$1))","v":""},{"$f":"IF($A32=\"N/A\",Ref!$B$36,INDEX(Ranks!$1:$1048576,$A32,CC$1))","v":""},{"$f":"IF($A32=\"N/A\",Ref!$B$36,INDEX(Ranks!$1:$1048576,$A32,CD$1))","v":""},{"$f":"IF($A32=\"N/A\",Ref!$B$36,INDEX(Ranks!$1:$1048576,$A32,CE$1))","v":""},{"$f":"IF($A32=\"N/A\",Ref!$B$36,INDEX(Ranks!$1:$1048576,$A32,CF$1))","v":""},{"$f":"IF($A32=\"N/A\",Ref!$B$36,INDEX(Ranks!$1:$1048576,$A32,CG$1))","v":""},{"$f":"IF($A32=\"N/A\",Ref!$B$36,INDEX(Ranks!$1:$1048576,$A32,CH$1))","v":""},{"$f":"IF($A32=\"N/A\",Ref!$B$36,INDEX(Ranks!$1:$1048576,$A32,CI$1))","v":""},{"$f":"IF($A32=\"N/A\",Ref!$B$36,INDEX(Ranks!$1:$1048576,$A32,CJ$1))","v":""},{"$f":"IF($A32=\"N/A\",Ref!$B$36,INDEX(Ranks!$1:$1048576,$A32,CK$1))","v":""},{"$f":"IF($A32=\"N/A\",Ref!$B$36,INDEX(Ranks!$1:$1048576,$A32,CL$1))","v":""},{"$f":"IF($A32=\"N/A\",Ref!$B$36,INDEX(Ranks!$1:$1048576,$A32,CM$1))","v":""},{"$f":"IF($A32=\"N/A\",Ref!$B$36,INDEX(Ranks!$1:$1048576,$A32,CN$1))","v":""},{"$f":"IF($A32=\"N/A\",Ref!$B$36,INDEX(Ranks!$1:$1048576,$A32,CO$1))","v":""},{"$f":"IF($A32=\"N/A\",Ref!$B$36,INDEX(Ranks!$1:$1048576,$A32,CP$1))","v":""},{"$f":"IF($A32=\"N/A\",Ref!$B$36,INDEX(Ranks!$1:$1048576,$A32,CQ$1))","v":""},{"$f":"IF($A32=\"N/A\",Ref!$B$36,INDEX(Ranks!$1:$1048576,$A32,CR$1))","v":""},{"$f":"IF($A32=\"N/A\",Ref!$B$36,INDEX(Ranks!$1:$1048576,$A32,CS$1))","v":""},{"$f":"IF($A32=\"N/A\",Ref!$B$36,INDEX(Ranks!$1:$1048576,$A32,CT$1))","v":""},{"$f":"IF($A32=\"N/A\",Ref!$B$36,INDEX(Ranks!$1:$1048576,$A32,CU$1))","v":""},{"$f":"IF($A32=\"N/A\",Ref!$B$36,INDEX(Ranks!$1:$1048576,$A32,CV$1))","v":""},{"$f":"IF($A32=\"N/A\",Ref!$B$36,INDEX(Ranks!$1:$1048576,$A32,CW$1))","v":""},{"$f":"IF($A32=\"N/A\",Ref!$B$36,INDEX(Ranks!$1:$1048576,$A32,CX$1))","v":""},{"$f":"IF($A32=\"N/A\",Ref!$B$36,INDEX(Ranks!$1:$1048576,$A32,CY$1))","v":""},{"$f":"IF($A32=\"N/A\",Ref!$B$36,INDEX(Ranks!$1:$1048576,$A32,CZ$1))","v":""},{"$f":"IF($A32=\"N/A\",Ref!$B$36,INDEX(Ranks!$1:$1048576,$A32,DA$1))","v":""},{"$f":"IF($A32=\"N/A\",Ref!$B$36,INDEX(Ranks!$1:$1048576,$A32,DB$1))","v":""},{"$f":"IF($A32=\"N/A\",Ref!$B$36,INDEX(Ranks!$1:$1048576,$A32,DC$1))","v":""},{"$f":"IF($A32=\"N/A\",Ref!$B$36,INDEX(Ranks!$1:$1048576,$A32,DD$1))","v":""},{"$f":"IF($A32=\"N/A\",Ref!$B$36,INDEX(Ranks!$1:$1048576,$A32,DE$1))","v":""},{"$f":"IF($A32=\"N/A\",Ref!$B$36,INDEX(Ranks!$1:$1048576,$A32,DF$1))","v":""},{"$f":"IF($A32=\"N/A\",Ref!$B$36,INDEX(Ranks!$1:$1048576,$A32,DG$1))","v":""},{"$f":"IF($A32=\"N/A\",Ref!$B$36,INDEX(Ranks!$1:$1048576,$A32,DH$1))","v":""},{"$f":"IF($A32=\"N/A\",Ref!$B$36,INDEX(Ranks!$1:$1048576,$A32,DI$1))","v":""},{"$f":"IF($A32=\"N/A\",Ref!$B$36,INDEX(Ranks!$1:$1048576,$A32,DJ$1))","v":""},{"$f":"IF($A32=\"N/A\",Ref!$B$36,INDEX(Ranks!$1:$1048576,$A32,DK$1))","v":""},{"$f":"IF($A32=\"N/A\",Ref!$B$36,INDEX(Ranks!$1:$1048576,$A32,DL$1))","v":""},{"$f":"IF($A32=\"N/A\",Ref!$B$36,INDEX(Ranks!$1:$1048576,$A32,DM$1))","v":""},{"$f":"IF($A32=\"N/A\",Ref!$B$36,INDEX(Ranks!$1:$1048576,$A32,DN$1))","v":""},{"$f":"IF($A32=\"N/A\",Ref!$B$36,INDEX(Ranks!$1:$1048576,$A32,DO$1))","v":""},{"$f":"IF($A32=\"N/A\",Ref!$B$36,INDEX(Ranks!$1:$1048576,$A32,DP$1))","v":""},{"$f":"IF($A32=\"N/A\",Ref!$B$36,INDEX(Ranks!$1:$1048576,$A32,DQ$1))","v":""},{"$f":"IF($A32=\"N/A\",Ref!$B$36,INDEX(Ranks!$1:$1048576,$A32,DR$1))","v":""},{"$f":"IF($A32=\"N/A\",Ref!$B$36,INDEX(Ranks!$1:$1048576,$A32,DS$1))","v":""},{"$f":"IF($A32=\"N/A\",Ref!$B$36,INDEX(Ranks!$1:$1048576,$A32,DT$1))","v":""},{"$f":"IF($A32=\"N/A\",Ref!$B$36,INDEX(Ranks!$1:$1048576,$A32,DU$1))","v":""},{"$f":"IF($A32=\"N/A\",Ref!$B$36,INDEX(Ranks!$1:$1048576,$A32,DV$1))","v":""},{"$f":"IF($A32=\"N/A\",Ref!$B$36,INDEX(Ranks!$1:$1048576,$A32,DW$1))","v":""},{"$f":"IF($A32=\"N/A\",Ref!$B$36,INDEX(Ranks!$1:$1048576,$A32,DX$1))","v":""},{"$f":"IF($A32=\"N/A\",Ref!$B$36,INDEX(Ranks!$1:$1048576,$A32,DY$1))","v":""},{"$f":"IF($A32=\"N/A\",Ref!$B$36,INDEX(Ranks!$1:$1048576,$A32,DZ$1))","v":""},{"$f":"IF($A32=\"N/A\",Ref!$B$36,INDEX(Ranks!$1:$1048576,$A32,EA$1))","v":""},{"$f":"IF($A32=\"N/A\",Ref!$B$36,INDEX(Ranks!$1:$1048576,$A32,EB$1))","v":""}]
[{"$f":"IFERROR(MATCH('Portfolio Page'!L33,Ranks!L:L,0),\"N/A\")","v":"N/A"},null,{"$f":"IF($A33=\"N/A\",\"\",INDEX(Ranks!$1:$1048576,$A33,C$1))","v":""},{"$f":"IF($A33=\"N/A\",Ref!$B$36,INDEX(Ranks!$1:$1048576,$A33,D$1))","v":""},{"$f":"IF($A33=\"N/A\",Ref!$B$36,INDEX(Ranks!$1:$1048576,$A33,E$1))","v":""},{"$f":"IF($A33=\"N/A\",\"\",INDEX(Ranks!$1:$1048576,$A33,F$1))","v":""},{"$f":"IF($A33=\"N/A\",\"\",INDEX(Ranks!$1:$1048576,$A33,G$1))","v":""},{"$f":"IF($A33=\"N/A\",\"\",INDEX(Ranks!$1:$1048576,$A33,H$1))","v":""},{"$f":"IF($A33=\"N/A\",\"\",INDEX(Ranks!$1:$1048576,$A33,I$1))","v":""},{"$f":"IF($A33=\"N/A\",\"\",INDEX(Ranks!$1:$1048576,$A33,J$1))","v":""},{"$f":"IF($A33=\"N/A\",\"\",INDEX(Ranks!$1:$1048576,$A33,K$1))","v":""},null,{"$f":"IF($A33=\"N/A\",Ref!$B$36,INDEX(Ranks!$1:$1048576,$A33,M$1))","v":""},{"$f":"IF($A33=\"N/A\",Ref!$B$36,INDEX(Ranks!$1:$1048576,$A33,N$1))","v":""},{"$f":"IF($A33=\"N/A\",Ref!$B$36,INDEX(Ranks!$1:$1048576,$A33,O$1))","v":""},{"$f":"IF($A33=\"N/A\",Ref!$B$36,INDEX(Ranks!$1:$1048576,$A33,P$1))","v":""},{"$f":"IF($A33=\"N/A\",Ref!$B$36,INDEX(Ranks!$1:$1048576,$A33,Q$1))","v":""},{"$f":"IF($A33=\"N/A\",Ref!$B$36,INDEX(Ranks!$1:$1048576,$A33,R$1))","v":""},{"$f":"IF($A33=\"N/A\",Ref!$B$36,INDEX(Ranks!$1:$1048576,$A33,S$1))","v":""},{"$f":"IF($A33=\"N/A\",Ref!$B$36,INDEX(Ranks!$1:$1048576,$A33,T$1))","v":""},{"$f":"IF($A33=\"N/A\",Ref!$B$36,INDEX(Ranks!$1:$1048576,$A33,U$1))","v":""},{"$f":"IF($A33=\"N/A\",Ref!$B$36,INDEX(Ranks!$1:$1048576,$A33,V$1))","v":""},{"$f":"IF($A33=\"N/A\",Ref!$B$36,INDEX(Ranks!$1:$1048576,$A33,W$1))","v":""},{"$f":"IF($A33=\"N/A\",Ref!$B$36,INDEX(Ranks!$1:$1048576,$A33,X$1))","v":""},{"$f":"IF($A33=\"N/A\",Ref!$B$36,INDEX(Ranks!$1:$1048576,$A33,Y$1))","v":""},{"$f":"IF($A33=\"N/A\",Ref!$B$36,INDEX(Ranks!$1:$1048576,$A33,Z$1))","v":""},{"$f":"IF($A33=\"N/A\",Ref!$B$36,INDEX(Ranks!$1:$1048576,$A33,AA$1))","v":""},{"$f":"IF($A33=\"N/A\",Ref!$B$36,INDEX(Ranks!$1:$1048576,$A33,AB$1))","v":""},{"$f":"IF($A33=\"N/A\",Ref!$B$36,INDEX(Ranks!$1:$1048576,$A33,AC$1))","v":""},{"$f":"IF($A33=\"N/A\",Ref!$B$36,INDEX(Ranks!$1:$1048576,$A33,AD$1))","v":""},{"$f":"IF($A33=\"N/A\",Ref!$B$36,INDEX(Ranks!$1:$1048576,$A33,AE$1))","v":""},{"$f":"IF($A33=\"N/A\",Ref!$B$36,INDEX(Ranks!$1:$1048576,$A33,AF$1))","v":""},{"$f":"IF($A33=\"N/A\",Ref!$B$36,INDEX(Ranks!$1:$1048576,$A33,AG$1))","v":""},{"$f":"IF($A33=\"N/A\",Ref!$B$36,INDEX(Ranks!$1:$1048576,$A33,AH$1))","v":""},{"$f":"IF($A33=\"N/A\",Ref!$B$36,INDEX(Ranks!$1:$1048576,$A33,AI$1))","v":""},{"$f":"IF($A33=\"N/A\",Ref!$B$36,INDEX(Ranks!$1:$1048576,$A33,AJ$1))","v":""},{"$f":"IF($A33=\"N/A\",Ref!$B$36,INDEX(Ranks!$1:$1048576,$A33,AK$1))","v":""},{"$f":"IF($A33=\"N/A\",Ref!$B$36,INDEX(Ranks!$1:$1048576,$A33,AL$1))","v":""},{"$f":"IF($A33=\"N/A\",Ref!$B$36,INDEX(Ranks!$1:$1048576,$A33,AM$1))","v":""},{"$f":"IF($A33=\"N/A\",Ref!$B$36,INDEX(Ranks!$1:$1048576,$A33,AN$1))","v":""},{"$f":"IF($A33=\"N/A\",Ref!$B$36,INDEX(Ranks!$1:$1048576,$A33,AO$1))","v":""},{"$f":"IF($A33=\"N/A\",Ref!$B$36,INDEX(Ranks!$1:$1048576,$A33,AP$1))","v":""},{"$f":"IF($A33=\"N/A\",Ref!$B$36,INDEX(Ranks!$1:$1048576,$A33,AQ$1))","v":""},{"$f":"IF($A33=\"N/A\",Ref!$B$36,INDEX(Ranks!$1:$1048576,$A33,AR$1))","v":""},{"$f":"IF($A33=\"N/A\",Ref!$B$36,INDEX(Ranks!$1:$1048576,$A33,AS$1))","v":""},{"$f":"IF($A33=\"N/A\",Ref!$B$36,INDEX(Ranks!$1:$1048576,$A33,AT$1))","v":""},{"$f":"IF($A33=\"N/A\",Ref!$B$36,INDEX(Ranks!$1:$1048576,$A33,AU$1))","v":""},{"$f":"IF($A33=\"N/A\",Ref!$B$36,INDEX(Ranks!$1:$1048576,$A33,AV$1))","v":""},{"$f":"IF($A33=\"N/A\",Ref!$B$36,INDEX(Ranks!$1:$1048576,$A33,AW$1))","v":""},{"$f":"IF($A33=\"N/A\",Ref!$B$36,INDEX(Ranks!$1:$1048576,$A33,AX$1))","v":""},{"$f":"IF($A33=\"N/A\",Ref!$B$36,INDEX(Ranks!$1:$1048576,$A33,AY$1))","v":""},{"$f":"IF($A33=\"N/A\",Ref!$B$36,INDEX(Ranks!$1:$1048576,$A33,AZ$1))","v":""},{"$f":"IF($A33=\"N/A\",Ref!$B$36,INDEX(Ranks!$1:$1048576,$A33,BA$1))","v":""},{"$f":"IF($A33=\"N/A\",Ref!$B$36,INDEX(Ranks!$1:$1048576,$A33,BB$1))","v":""},{"$f":"IF($A33=\"N/A\",Ref!$B$36,INDEX(Ranks!$1:$1048576,$A33,BC$1))","v":""},{"$f":"IF($A33=\"N/A\",Ref!$B$36,INDEX(Ranks!$1:$1048576,$A33,BD$1))","v":""},{"$f":"IF($A33=\"N/A\",Ref!$B$36,INDEX(Ranks!$1:$1048576,$A33,BE$1))","v":""},{"$f":"IF($A33=\"N/A\",Ref!$B$36,INDEX(Ranks!$1:$1048576,$A33,BF$1))","v":""},{"$f":"IF($A33=\"N/A\",Ref!$B$36,INDEX(Ranks!$1:$1048576,$A33,BG$1))","v":""},{"$f":"IF($A33=\"N/A\",Ref!$B$36,INDEX(Ranks!$1:$1048576,$A33,BH$1))","v":""},{"$f":"IF($A33=\"N/A\",Ref!$B$36,INDEX(Ranks!$1:$1048576,$A33,BI$1))","v":""},{"$f":"IF($A33=\"N/A\",Ref!$B$36,INDEX(Ranks!$1:$1048576,$A33,BJ$1))","v":""},{"$f":"IF($A33=\"N/A\",Ref!$B$36,INDEX(Ranks!$1:$1048576,$A33,BK$1))","v":""},{"$f":"IF($A33=\"N/A\",Ref!$B$36,INDEX(Ranks!$1:$1048576,$A33,BL$1))","v":""},{"$f":"IF($A33=\"N/A\",Ref!$B$36,INDEX(Ranks!$1:$1048576,$A33,BM$1))","v":""},{"$f":"IF($A33=\"N/A\",Ref!$B$36,INDEX(Ranks!$1:$1048576,$A33,BN$1))","v":""},{"$f":"IF($A33=\"N/A\",Ref!$B$36,INDEX(Ranks!$1:$1048576,$A33,BO$1))","v":""},{"$f":"IF($A33=\"N/A\",Ref!$B$36,INDEX(Ranks!$1:$1048576,$A33,BP$1))","v":""},{"$f":"IF($A33=\"N/A\",Ref!$B$36,INDEX(Ranks!$1:$1048576,$A33,BQ$1))","v":""},{"$f":"IF($A33=\"N/A\",Ref!$B$36,INDEX(Ranks!$1:$1048576,$A33,BR$1))","v":""},{"$f":"IF($A33=\"N/A\",Ref!$B$36,INDEX(Ranks!$1:$1048576,$A33,BS$1))","v":""},{"$f":"IF($A33=\"N/A\",Ref!$B$36,INDEX(Ranks!$1:$1048576,$A33,BT$1))","v":""},{"$f":"IF($A33=\"N/A\",Ref!$B$36,INDEX(Ranks!$1:$1048576,$A33,BU$1))","v":""},{"$f":"IF($A33=\"N/A\",Ref!$B$36,INDEX(Ranks!$1:$1048576,$A33,BV$1))","v":""},{"$f":"IF($A33=\"N/A\",Ref!$B$36,INDEX(Ranks!$1:$1048576,$A33,BW$1))","v":""},{"$f":"IF($A33=\"N/A\",Ref!$B$36,INDEX(Ranks!$1:$1048576,$A33,BX$1))","v":""},{"$f":"IF($A33=\"N/A\",Ref!$B$36,INDEX(Ranks!$1:$1048576,$A33,BY$1))","v":""},{"$f":"IF($A33=\"N/A\",Ref!$B$36,INDEX(Ranks!$1:$1048576,$A33,BZ$1))","v":""},{"$f":"IF($A33=\"N/A\",Ref!$B$36,INDEX(Ranks!$1:$1048576,$A33,CA$1))","v":""},{"$f":"IF($A33=\"N/A\",Ref!$B$36,INDEX(Ranks!$1:$1048576,$A33,CB$1))","v":""},{"$f":"IF($A33=\"N/A\",Ref!$B$36,INDEX(Ranks!$1:$1048576,$A33,CC$1))","v":""},{"$f":"IF($A33=\"N/A\",Ref!$B$36,INDEX(Ranks!$1:$1048576,$A33,CD$1))","v":""},{"$f":"IF($A33=\"N/A\",Ref!$B$36,INDEX(Ranks!$1:$1048576,$A33,CE$1))","v":""},{"$f":"IF($A33=\"N/A\",Ref!$B$36,INDEX(Ranks!$1:$1048576,$A33,CF$1))","v":""},{"$f":"IF($A33=\"N/A\",Ref!$B$36,INDEX(Ranks!$1:$1048576,$A33,CG$1))","v":""},{"$f":"IF($A33=\"N/A\",Ref!$B$36,INDEX(Ranks!$1:$1048576,$A33,CH$1))","v":""},{"$f":"IF($A33=\"N/A\",Ref!$B$36,INDEX(Ranks!$1:$1048576,$A33,CI$1))","v":""},{"$f":"IF($A33=\"N/A\",Ref!$B$36,INDEX(Ranks!$1:$1048576,$A33,CJ$1))","v":""},{"$f":"IF($A33=\"N/A\",Ref!$B$36,INDEX(Ranks!$1:$1048576,$A33,CK$1))","v":""},{"$f":"IF($A33=\"N/A\",Ref!$B$36,INDEX(Ranks!$1:$1048576,$A33,CL$1))","v":""},{"$f":"IF($A33=\"N/A\",Ref!$B$36,INDEX(Ranks!$1:$1048576,$A33,CM$1))","v":""},{"$f":"IF($A33=\"N/A\",Ref!$B$36,INDEX(Ranks!$1:$1048576,$A33,CN$1))","v":""},{"$f":"IF($A33=\"N/A\",Ref!$B$36,INDEX(Ranks!$1:$1048576,$A33,CO$1))","v":""},{"$f":"IF($A33=\"N/A\",Ref!$B$36,INDEX(Ranks!$1:$1048576,$A33,CP$1))","v":""},{"$f":"IF($A33=\"N/A\",Ref!$B$36,INDEX(Ranks!$1:$1048576,$A33,CQ$1))","v":""},{"$f":"IF($A33=\"N/A\",Ref!$B$36,INDEX(Ranks!$1:$1048576,$A33,CR$1))","v":""},{"$f":"IF($A33=\"N/A\",Ref!$B$36,INDEX(Ranks!$1:$1048576,$A33,CS$1))","v":""},{"$f":"IF($A33=\"N/A\",Ref!$B$36,INDEX(Ranks!$1:$1048576,$A33,CT$1))","v":""},{"$f":"IF($A33=\"N/A\",Ref!$B$36,INDEX(Ranks!$1:$1048576,$A33,CU$1))","v":""},{"$f":"IF($A33=\"N/A\",Ref!$B$36,INDEX(Ranks!$1:$1048576,$A33,CV$1))","v":""},{"$f":"IF($A33=\"N/A\",Ref!$B$36,INDEX(Ranks!$1:$1048576,$A33,CW$1))","v":""},{"$f":"IF($A33=\"N/A\",Ref!$B$36,INDEX(Ranks!$1:$1048576,$A33,CX$1))","v":""},{"$f":"IF($A33=\"N/A\",Ref!$B$36,INDEX(Ranks!$1:$1048576,$A33,CY$1))","v":""},{"$f":"IF($A33=\"N/A\",Ref!$B$36,INDEX(Ranks!$1:$1048576,$A33,CZ$1))","v":""},{"$f":"IF($A33=\"N/A\",Ref!$B$36,INDEX(Ranks!$1:$1048576,$A33,DA$1))","v":""},{"$f":"IF($A33=\"N/A\",Ref!$B$36,INDEX(Ranks!$1:$1048576,$A33,DB$1))","v":""},{"$f":"IF($A33=\"N/A\",Ref!$B$36,INDEX(Ranks!$1:$1048576,$A33,DC$1))","v":""},{"$f":"IF($A33=\"N/A\",Ref!$B$36,INDEX(Ranks!$1:$1048576,$A33,DD$1))","v":""},{"$f":"IF($A33=\"N/A\",Ref!$B$36,INDEX(Ranks!$1:$1048576,$A33,DE$1))","v":""},{"$f":"IF($A33=\"N/A\",Ref!$B$36,INDEX(Ranks!$1:$1048576,$A33,DF$1))","v":""},{"$f":"IF($A33=\"N/A\",Ref!$B$36,INDEX(Ranks!$1:$1048576,$A33,DG$1))","v":""},{"$f":"IF($A33=\"N/A\",Ref!$B$36,INDEX(Ranks!$1:$1048576,$A33,DH$1))","v":""},{"$f":"IF($A33=\"N/A\",Ref!$B$36,INDEX(Ranks!$1:$1048576,$A33,DI$1))","v":""},{"$f":"IF($A33=\"N/A\",Ref!$B$36,INDEX(Ranks!$1:$1048576,$A33,DJ$1))","v":""},{"$f":"IF($A33=\"N/A\",Ref!$B$36,INDEX(Ranks!$1:$1048576,$A33,DK$1))","v":""},{"$f":"IF($A33=\"N/A\",Ref!$B$36,INDEX(Ranks!$1:$1048576,$A33,DL$1))","v":""},{"$f":"IF($A33=\"N/A\",Ref!$B$36,INDEX(Ranks!$1:$1048576,$A33,DM$1))","v":""},{"$f":"IF($A33=\"N/A\",Ref!$B$36,INDEX(Ranks!$1:$1048576,$A33,DN$1))","v":""},{"$f":"IF($A33=\"N/A\",Ref!$B$36,INDEX(Ranks!$1:$1048576,$A33,DO$1))","v":""},{"$f":"IF($A33=\"N/A\",Ref!$B$36,INDEX(Ranks!$1:$1048576,$A33,DP$1))","v":""},{"$f":"IF($A33=\"N/A\",Ref!$B$36,INDEX(Ranks!$1:$1048576,$A33,DQ$1))","v":""},{"$f":"IF($A33=\"N/A\",Ref!$B$36,INDEX(Ranks!$1:$1048576,$A33,DR$1))","v":""},{"$f":"IF($A33=\"N/A\",Ref!$B$36,INDEX(Ranks!$1:$1048576,$A33,DS$1))","v":""},{"$f":"IF($A33=\"N/A\",Ref!$B$36,INDEX(Ranks!$1:$1048576,$A33,DT$1))","v":""},{"$f":"IF($A33=\"N/A\",Ref!$B$36,INDEX(Ranks!$1:$1048576,$A33,DU$1))","v":""},{"$f":"IF($A33=\"N/A\",Ref!$B$36,INDEX(Ranks!$1:$1048576,$A33,DV$1))","v":""},{"$f":"IF($A33=\"N/A\",Ref!$B$36,INDEX(Ranks!$1:$1048576,$A33,DW$1))","v":""},{"$f":"IF($A33=\"N/A\",Ref!$B$36,INDEX(Ranks!$1:$1048576,$A33,DX$1))","v":""},{"$f":"IF($A33=\"N/A\",Ref!$B$36,INDEX(Ranks!$1:$1048576,$A33,DY$1))","v":""},{"$f":"IF($A33=\"N/A\",Ref!$B$36,INDEX(Ranks!$1:$1048576,$A33,DZ$1))","v":""},{"$f":"IF($A33=\"N/A\",Ref!$B$36,INDEX(Ranks!$1:$1048576,$A33,EA$1))","v":""},{"$f":"IF($A33=\"N/A\",Ref!$B$36,INDEX(Ranks!$1:$1048576,$A33,EB$1))","v":""}]
[{"$f":"IFERROR(MATCH('Portfolio Page'!L34,Ranks!L:L,0),\"N/A\")","v":"N/A"},null,{"$f":"IF($A34=\"N/A\",\"\",INDEX(Ranks!$1:$1048576,$A34,C$1))","v":""},{"$f":"IF($A34=\"N/A\",Ref!$B$36,INDEX(Ranks!$1:$1048576,$A34,D$1))","v":""},{"$f":"IF($A34=\"N/A\",Ref!$B$36,INDEX(Ranks!$1:$1048576,$A34,E$1))","v":""},{"$f":"IF($A34=\"N/A\",\"\",INDEX(Ranks!$1:$1048576,$A34,F$1))","v":""},{"$f":"IF($A34=\"N/A\",\"\",INDEX(Ranks!$1:$1048576,$A34,G$1))","v":""},{"$f":"IF($A34=\"N/A\",\"\",INDEX(Ranks!$1:$1048576,$A34,H$1))","v":""},{"$f":"IF($A34=\"N/A\",\"\",INDEX(Ranks!$1:$1048576,$A34,I$1))","v":""},{"$f":"IF($A34=\"N/A\",\"\",INDEX(Ranks!$1:$1048576,$A34,J$1))","v":""},{"$f":"IF($A34=\"N/A\",\"\",INDEX(Ranks!$1:$1048576,$A34,K$1))","v":""},null,{"$f":"IF($A34=\"N/A\",Ref!$B$36,INDEX(Ranks!$1:$1048576,$A34,M$1))","v":""},{"$f":"IF($A34=\"N/A\",Ref!$B$36,INDEX(Ranks!$1:$1048576,$A34,N$1))","v":""},{"$f":"IF($A34=\"N/A\",Ref!$B$36,INDEX(Ranks!$1:$1048576,$A34,O$1))","v":""},{"$f":"IF($A34=\"N/A\",Ref!$B$36,INDEX(Ranks!$1:$1048576,$A34,P$1))","v":""},{"$f":"IF($A34=\"N/A\",Ref!$B$36,INDEX(Ranks!$1:$1048576,$A34,Q$1))","v":""},{"$f":"IF($A34=\"N/A\",Ref!$B$36,INDEX(Ranks!$1:$1048576,$A34,R$1))","v":""},{"$f":"IF($A34=\"N/A\",Ref!$B$36,INDEX(Ranks!$1:$1048576,$A34,S$1))","v":""},{"$f":"IF($A34=\"N/A\",Ref!$B$36,INDEX(Ranks!$1:$1048576,$A34,T$1))","v":""},{"$f":"IF($A34=\"N/A\",Ref!$B$36,INDEX(Ranks!$1:$1048576,$A34,U$1))","v":""},{"$f":"IF($A34=\"N/A\",Ref!$B$36,INDEX(Ranks!$1:$1048576,$A34,V$1))","v":""},{"$f":"IF($A34=\"N/A\",Ref!$B$36,INDEX(Ranks!$1:$1048576,$A34,W$1))","v":""},{"$f":"IF($A34=\"N/A\",Ref!$B$36,INDEX(Ranks!$1:$1048576,$A34,X$1))","v":""},{"$f":"IF($A34=\"N/A\",Ref!$B$36,INDEX(Ranks!$1:$1048576,$A34,Y$1))","v":""},{"$f":"IF($A34=\"N/A\",Ref!$B$36,INDEX(Ranks!$1:$1048576,$A34,Z$1))","v":""},{"$f":"IF($A34=\"N/A\",Ref!$B$36,INDEX(Ranks!$1:$1048576,$A34,AA$1))","v":""},{"$f":"IF($A34=\"N/A\",Ref!$B$36,INDEX(Ranks!$1:$1048576,$A34,AB$1))","v":""},{"$f":"IF($A34=\"N/A\",Ref!$B$36,INDEX(Ranks!$1:$1048576,$A34,AC$1))","v":""},{"$f":"IF($A34=\"N/A\",Ref!$B$36,INDEX(Ranks!$1:$1048576,$A34,AD$1))","v":""},{"$f":"IF($A34=\"N/A\",Ref!$B$36,INDEX(Ranks!$1:$1048576,$A34,AE$1))","v":""},{"$f":"IF($A34=\"N/A\",Ref!$B$36,INDEX(Ranks!$1:$1048576,$A34,AF$1))","v":""},{"$f":"IF($A34=\"N/A\",Ref!$B$36,INDEX(Ranks!$1:$1048576,$A34,AG$1))","v":""},{"$f":"IF($A34=\"N/A\",Ref!$B$36,INDEX(Ranks!$1:$1048576,$A34,AH$1))","v":""},{"$f":"IF($A34=\"N/A\",Ref!$B$36,INDEX(Ranks!$1:$1048576,$A34,AI$1))","v":""},{"$f":"IF($A34=\"N/A\",Ref!$B$36,INDEX(Ranks!$1:$1048576,$A34,AJ$1))","v":""},{"$f":"IF($A34=\"N/A\",Ref!$B$36,INDEX(Ranks!$1:$1048576,$A34,AK$1))","v":""},{"$f":"IF($A34=\"N/A\",Ref!$B$36,INDEX(Ranks!$1:$1048576,$A34,AL$1))","v":""},{"$f":"IF($A34=\"N/A\",Ref!$B$36,INDEX(Ranks!$1:$1048576,$A34,AM$1))","v":""},{"$f":"IF($A34=\"N/A\",Ref!$B$36,INDEX(Ranks!$1:$1048576,$A34,AN$1))","v":""},{"$f":"IF($A34=\"N/A\",Ref!$B$36,INDEX(Ranks!$1:$1048576,$A34,AO$1))","v":""},{"$f":"IF($A34=\"N/A\",Ref!$B$36,INDEX(Ranks!$1:$1048576,$A34,AP$1))","v":""},{"$f":"IF($A34=\"N/A\",Ref!$B$36,INDEX(Ranks!$1:$1048576,$A34,AQ$1))","v":""},{"$f":"IF($A34=\"N/A\",Ref!$B$36,INDEX(Ranks!$1:$1048576,$A34,AR$1))","v":""},{"$f":"IF($A34=\"N/A\",Ref!$B$36,INDEX(Ranks!$1:$1048576,$A34,AS$1))","v":""},{"$f":"IF($A34=\"N/A\",Ref!$B$36,INDEX(Ranks!$1:$1048576,$A34,AT$1))","v":""},{"$f":"IF($A34=\"N/A\",Ref!$B$36,INDEX(Ranks!$1:$1048576,$A34,AU$1))","v":""},{"$f":"IF($A34=\"N/A\",Ref!$B$36,INDEX(Ranks!$1:$1048576,$A34,AV$1))","v":""},{"$f":"IF($A34=\"N/A\",Ref!$B$36,INDEX(Ranks!$1:$1048576,$A34,AW$1))","v":""},{"$f":"IF($A34=\"N/A\",Ref!$B$36,INDEX(Ranks!$1:$1048576,$A34,AX$1))","v":""},{"$f":"IF($A34=\"N/A\",Ref!$B$36,INDEX(Ranks!$1:$1048576,$A34,AY$1))","v":""},{"$f":"IF($A34=\"N/A\",Ref!$B$36,INDEX(Ranks!$1:$1048576,$A34,AZ$1))","v":""},{"$f":"IF($A34=\"N/A\",Ref!$B$36,INDEX(Ranks!$1:$1048576,$A34,BA$1))","v":""},{"$f":"IF($A34=\"N/A\",Ref!$B$36,INDEX(Ranks!$1:$1048576,$A34,BB$1))","v":""},{"$f":"IF($A34=\"N/A\",Ref!$B$36,INDEX(Ranks!$1:$1048576,$A34,BC$1))","v":""},{"$f":"IF($A34=\"N/A\",Ref!$B$36,INDEX(Ranks!$1:$1048576,$A34,BD$1))","v":""},{"$f":"IF($A34=\"N/A\",Ref!$B$36,INDEX(Ranks!$1:$1048576,$A34,BE$1))","v":""},{"$f":"IF($A34=\"N/A\",Ref!$B$36,INDEX(Ranks!$1:$1048576,$A34,BF$1))","v":""},{"$f":"IF($A34=\"N/A\",Ref!$B$36,INDEX(Ranks!$1:$1048576,$A34,BG$1))","v":""},{"$f":"IF($A34=\"N/A\",Ref!$B$36,INDEX(Ranks!$1:$1048576,$A34,BH$1))","v":""},{"$f":"IF($A34=\"N/A\",Ref!$B$36,INDEX(Ranks!$1:$1048576,$A34,BI$1))","v":""},{"$f":"IF($A34=\"N/A\",Ref!$B$36,INDEX(Ranks!$1:$1048576,$A34,BJ$1))","v":""},{"$f":"IF($A34=\"N/A\",Ref!$B$36,INDEX(Ranks!$1:$1048576,$A34,BK$1))","v":""},{"$f":"IF($A34=\"N/A\",Ref!$B$36,INDEX(Ranks!$1:$1048576,$A34,BL$1))","v":""},{"$f":"IF($A34=\"N/A\",Ref!$B$36,INDEX(Ranks!$1:$1048576,$A34,BM$1))","v":""},{"$f":"IF($A34=\"N/A\",Ref!$B$36,INDEX(Ranks!$1:$1048576,$A34,BN$1))","v":""},{"$f":"IF($A34=\"N/A\",Ref!$B$36,INDEX(Ranks!$1:$1048576,$A34,BO$1))","v":""},{"$f":"IF($A34=\"N/A\",Ref!$B$36,INDEX(Ranks!$1:$1048576,$A34,BP$1))","v":""},{"$f":"IF($A34=\"N/A\",Ref!$B$36,INDEX(Ranks!$1:$1048576,$A34,BQ$1))","v":""},{"$f":"IF($A34=\"N/A\",Ref!$B$36,INDEX(Ranks!$1:$1048576,$A34,BR$1))","v":""},{"$f":"IF($A34=\"N/A\",Ref!$B$36,INDEX(Ranks!$1:$1048576,$A34,BS$1))","v":""},{"$f":"IF($A34=\"N/A\",Ref!$B$36,INDEX(Ranks!$1:$1048576,$A34,BT$1))","v":""},{"$f":"IF($A34=\"N/A\",Ref!$B$36,INDEX(Ranks!$1:$1048576,$A34,BU$1))","v":""},{"$f":"IF($A34=\"N/A\",Ref!$B$36,INDEX(Ranks!$1:$1048576,$A34,BV$1))","v":""},{"$f":"IF($A34=\"N/A\",Ref!$B$36,INDEX(Ranks!$1:$1048576,$A34,BW$1))","v":""},{"$f":"IF($A34=\"N/A\",Ref!$B$36,INDEX(Ranks!$1:$1048576,$A34,BX$1))","v":""},{"$f":"IF($A34=\"N/A\",Ref!$B$36,INDEX(Ranks!$1:$1048576,$A34,BY$1))","v":""},{"$f":"IF($A34=\"N/A\",Ref!$B$36,INDEX(Ranks!$1:$1048576,$A34,BZ$1))","v":""},{"$f":"IF($A34=\"N/A\",Ref!$B$36,INDEX(Ranks!$1:$1048576,$A34,CA$1))","v":""},{"$f":"IF($A34=\"N/A\",Ref!$B$36,INDEX(Ranks!$1:$1048576,$A34,CB$1))","v":""},{"$f":"IF($A34=\"N/A\",Ref!$B$36,INDEX(Ranks!$1:$1048576,$A34,CC$1))","v":""},{"$f":"IF($A34=\"N/A\",Ref!$B$36,INDEX(Ranks!$1:$1048576,$A34,CD$1))","v":""},{"$f":"IF($A34=\"N/A\",Ref!$B$36,INDEX(Ranks!$1:$1048576,$A34,CE$1))","v":""},{"$f":"IF($A34=\"N/A\",Ref!$B$36,INDEX(Ranks!$1:$1048576,$A34,CF$1))","v":""},{"$f":"IF($A34=\"N/A\",Ref!$B$36,INDEX(Ranks!$1:$1048576,$A34,CG$1))","v":""},{"$f":"IF($A34=\"N/A\",Ref!$B$36,INDEX(Ranks!$1:$1048576,$A34,CH$1))","v":""},{"$f":"IF($A34=\"N/A\",Ref!$B$36,INDEX(Ranks!$1:$1048576,$A34,CI$1))","v":""},{"$f":"IF($A34=\"N/A\",Ref!$B$36,INDEX(Ranks!$1:$1048576,$A34,CJ$1))","v":""},{"$f":"IF($A34=\"N/A\",Ref!$B$36,INDEX(Ranks!$1:$1048576,$A34,CK$1))","v":""},{"$f":"IF($A34=\"N/A\",Ref!$B$36,INDEX(Ranks!$1:$1048576,$A34,CL$1))","v":""},{"$f":"IF($A34=\"N/A\",Ref!$B$36,INDEX(Ranks!$1:$1048576,$A34,CM$1))","v":""},{"$f":"IF($A34=\"N/A\",Ref!$B$36,INDEX(Ranks!$1:$1048576,$A34,CN$1))","v":""},{"$f":"IF($A34=\"N/A\",Ref!$B$36,INDEX(Ranks!$1:$1048576,$A34,CO$1))","v":""},{"$f":"IF($A34=\"N/A\",Ref!$B$36,INDEX(Ranks!$1:$1048576,$A34,CP$1))","v":""},{"$f":"IF($A34=\"N/A\",Ref!$B$36,INDEX(Ranks!$1:$1048576,$A34,CQ$1))","v":""},{"$f":"IF($A34=\"N/A\",Ref!$B$36,INDEX(Ranks!$1:$1048576,$A34,CR$1))","v":""},{"$f":"IF($A34=\"N/A\",Ref!$B$36,INDEX(Ranks!$1:$1048576,$A34,CS$1))","v":""},{"$f":"IF($A34=\"N/A\",Ref!$B$36,INDEX(Ranks!$1:$1048576,$A34,CT$1))","v":""},{"$f":"IF($A34=\"N/A\",Ref!$B$36,INDEX(Ranks!$1:$1048576,$A34,CU$1))","v":""},{"$f":"IF($A34=\"N/A\",Ref!$B$36,INDEX(Ranks!$1:$1048576,$A34,CV$1))","v":""},{"$f":"IF($A34=\"N/A\",Ref!$B$36,INDEX(Ranks!$1:$1048576,$A34,CW$1))","v":""},{"$f":"IF($A34=\"N/A\",Ref!$B$36,INDEX(Ranks!$1:$1048576,$A34,CX$1))","v":""},{"$f":"IF($A34=\"N/A\",Ref!$B$36,INDEX(Ranks!$1:$1048576,$A34,CY$1))","v":""},{"$f":"IF($A34=\"N/A\",Ref!$B$36,INDEX(Ranks!$1:$1048576,$A34,CZ$1))","v":""},{"$f":"IF($A34=\"N/A\",Ref!$B$36,INDEX(Ranks!$1:$1048576,$A34,DA$1))","v":""},{"$f":"IF($A34=\"N/A\",Ref!$B$36,INDEX(Ranks!$1:$1048576,$A34,DB$1))","v":""},{"$f":"IF($A34=\"N/A\",Ref!$B$36,INDEX(Ranks!$1:$1048576,$A34,DC$1))","v":""},{"$f":"IF($A34=\"N/A\",Ref!$B$36,INDEX(Ranks!$1:$1048576,$A34,DD$1))","v":""},{"$f":"IF($A34=\"N/A\",Ref!$B$36,INDEX(Ranks!$1:$1048576,$A34,DE$1))","v":""},{"$f":"IF($A34=\"N/A\",Ref!$B$36,INDEX(Ranks!$1:$1048576,$A34,DF$1))","v":""},{"$f":"IF($A34=\"N/A\",Ref!$B$36,INDEX(Ranks!$1:$1048576,$A34,DG$1))","v":""},{"$f":"IF($A34=\"N/A\",Ref!$B$36,INDEX(Ranks!$1:$1048576,$A34,DH$1))","v":""},{"$f":"IF($A34=\"N/A\",Ref!$B$36,INDEX(Ranks!$1:$1048576,$A34,DI$1))","v":""},{"$f":"IF($A34=\"N/A\",Ref!$B$36,INDEX(Ranks!$1:$1048576,$A34,DJ$1))","v":""},{"$f":"IF($A34=\"N/A\",Ref!$B$36,INDEX(Ranks!$1:$1048576,$A34,DK$1))","v":""},{"$f":"IF($A34=\"N/A\",Ref!$B$36,INDEX(Ranks!$1:$1048576,$A34,DL$1))","v":""},{"$f":"IF($A34=\"N/A\",Ref!$B$36,INDEX(Ranks!$1:$1048576,$A34,DM$1))","v":""},{"$f":"IF($A34=\"N/A\",Ref!$B$36,INDEX(Ranks!$1:$1048576,$A34,DN$1))","v":""},{"$f":"IF($A34=\"N/A\",Ref!$B$36,INDEX(Ranks!$1:$1048576,$A34,DO$1))","v":""},{"$f":"IF($A34=\"N/A\",Ref!$B$36,INDEX(Ranks!$1:$1048576,$A34,DP$1))","v":""},{"$f":"IF($A34=\"N/A\",Ref!$B$36,INDEX(Ranks!$1:$1048576,$A34,DQ$1))","v":""},{"$f":"IF($A34=\"N/A\",Ref!$B$36,INDEX(Ranks!$1:$1048576,$A34,DR$1))","v":""},{"$f":"IF($A34=\"N/A\",Ref!$B$36,INDEX(Ranks!$1:$1048576,$A34,DS$1))","v":""},{"$f":"IF($A34=\"N/A\",Ref!$B$36,INDEX(Ranks!$1:$1048576,$A34,DT$1))","v":""},{"$f":"IF($A34=\"N/A\",Ref!$B$36,INDEX(Ranks!$1:$1048576,$A34,DU$1))","v":""},{"$f":"IF($A34=\"N/A\",Ref!$B$36,INDEX(Ranks!$1:$1048576,$A34,DV$1))","v":""},{"$f":"IF($A34=\"N/A\",Ref!$B$36,INDEX(Ranks!$1:$1048576,$A34,DW$1))","v":""},{"$f":"IF($A34=\"N/A\",Ref!$B$36,INDEX(Ranks!$1:$1048576,$A34,DX$1))","v":""},{"$f":"IF($A34=\"N/A\",Ref!$B$36,INDEX(Ranks!$1:$1048576,$A34,DY$1))","v":""},{"$f":"IF($A34=\"N/A\",Ref!$B$36,INDEX(Ranks!$1:$1048576,$A34,DZ$1))","v":""},{"$f":"IF($A34=\"N/A\",Ref!$B$36,INDEX(Ranks!$1:$1048576,$A34,EA$1))","v":""},{"$f":"IF($A34=\"N/A\",Ref!$B$36,INDEX(Ranks!$1:$1048576,$A34,EB$1))","v":""}]
[{"$f":"IFERROR(MATCH('Portfolio Page'!L35,Ranks!L:L,0),\"N/A\")","v":"N/A"},null,{"$f":"IF($A35=\"N/A\",\"\",INDEX(Ranks!$1:$1048576,$A35,C$1))","v":""},{"$f":"IF($A35=\"N/A\",Ref!$B$36,INDEX(Ranks!$1:$1048576,$A35,D$1))","v":""},{"$f":"IF($A35=\"N/A\",Ref!$B$36,INDEX(Ranks!$1:$1048576,$A35,E$1))","v":""},{"$f":"IF($A35=\"N/A\",\"\",INDEX(Ranks!$1:$1048576,$A35,F$1))","v":""},{"$f":"IF($A35=\"N/A\",\"\",INDEX(Ranks!$1:$1048576,$A35,G$1))","v":""},{"$f":"IF($A35=\"N/A\",\"\",INDEX(Ranks!$1:$1048576,$A35,H$1))","v":""},{"$f":"IF($A35=\"N/A\",\"\",INDEX(Ranks!$1:$1048576,$A35,I$1))","v":""},{"$f":"IF($A35=\"N/A\",\"\",INDEX(Ranks!$1:$1048576,$A35,J$1))","v":""},{"$f":"IF($A35=\"N/A\",\"\",INDEX(Ranks!$1:$1048576,$A35,K$1))","v":""},null,{"$f":"IF($A35=\"N/A\",Ref!$B$36,INDEX(Ranks!$1:$1048576,$A35,M$1))","v":""},{"$f":"IF($A35=\"N/A\",Ref!$B$36,INDEX(Ranks!$1:$1048576,$A35,N$1))","v":""},{"$f":"IF($A35=\"N/A\",Ref!$B$36,INDEX(Ranks!$1:$1048576,$A35,O$1))","v":""},{"$f":"IF($A35=\"N/A\",Ref!$B$36,INDEX(Ranks!$1:$1048576,$A35,P$1))","v":""},{"$f":"IF($A35=\"N/A\",Ref!$B$36,INDEX(Ranks!$1:$1048576,$A35,Q$1))","v":""},{"$f":"IF($A35=\"N/A\",Ref!$B$36,INDEX(Ranks!$1:$1048576,$A35,R$1))","v":""},{"$f":"IF($A35=\"N/A\",Ref!$B$36,INDEX(Ranks!$1:$1048576,$A35,S$1))","v":""},{"$f":"IF($A35=\"N/A\",Ref!$B$36,INDEX(Ranks!$1:$1048576,$A35,T$1))","v":""},{"$f":"IF($A35=\"N/A\",Ref!$B$36,INDEX(Ranks!$1:$1048576,$A35,U$1))","v":""},{"$f":"IF($A35=\"N/A\",Ref!$B$36,INDEX(Ranks!$1:$1048576,$A35,V$1))","v":""},{"$f":"IF($A35=\"N/A\",Ref!$B$36,INDEX(Ranks!$1:$1048576,$A35,W$1))","v":""},{"$f":"IF($A35=\"N/A\",Ref!$B$36,INDEX(Ranks!$1:$1048576,$A35,X$1))","v":""},{"$f":"IF($A35=\"N/A\",Ref!$B$36,INDEX(Ranks!$1:$1048576,$A35,Y$1))","v":""},{"$f":"IF($A35=\"N/A\",Ref!$B$36,INDEX(Ranks!$1:$1048576,$A35,Z$1))","v":""},{"$f":"IF($A35=\"N/A\",Ref!$B$36,INDEX(Ranks!$1:$1048576,$A35,AA$1))","v":""},{"$f":"IF($A35=\"N/A\",Ref!$B$36,INDEX(Ranks!$1:$1048576,$A35,AB$1))","v":""},{"$f":"IF($A35=\"N/A\",Ref!$B$36,INDEX(Ranks!$1:$1048576,$A35,AC$1))","v":""},{"$f":"IF($A35=\"N/A\",Ref!$B$36,INDEX(Ranks!$1:$1048576,$A35,AD$1))","v":""},{"$f":"IF($A35=\"N/A\",Ref!$B$36,INDEX(Ranks!$1:$1048576,$A35,AE$1))","v":""},{"$f":"IF($A35=\"N/A\",Ref!$B$36,INDEX(Ranks!$1:$1048576,$A35,AF$1))","v":""},{"$f":"IF($A35=\"N/A\",Ref!$B$36,INDEX(Ranks!$1:$1048576,$A35,AG$1))","v":""},{"$f":"IF($A35=\"N/A\",Ref!$B$36,INDEX(Ranks!$1:$1048576,$A35,AH$1))","v":""},{"$f":"IF($A35=\"N/A\",Ref!$B$36,INDEX(Ranks!$1:$1048576,$A35,AI$1))","v":""},{"$f":"IF($A35=\"N/A\",Ref!$B$36,INDEX(Ranks!$1:$1048576,$A35,AJ$1))","v":""},{"$f":"IF($A35=\"N/A\",Ref!$B$36,INDEX(Ranks!$1:$1048576,$A35,AK$1))","v":""},{"$f":"IF($A35=\"N/A\",Ref!$B$36,INDEX(Ranks!$1:$1048576,$A35,AL$1))","v":""},{"$f":"IF($A35=\"N/A\",Ref!$B$36,INDEX(Ranks!$1:$1048576,$A35,AM$1))","v":""},{"$f":"IF($A35=\"N/A\",Ref!$B$36,INDEX(Ranks!$1:$1048576,$A35,AN$1))","v":""},{"$f":"IF($A35=\"N/A\",Ref!$B$36,INDEX(Ranks!$1:$1048576,$A35,AO$1))","v":""},{"$f":"IF($A35=\"N/A\",Ref!$B$36,INDEX(Ranks!$1:$1048576,$A35,AP$1))","v":""},{"$f":"IF($A35=\"N/A\",Ref!$B$36,INDEX(Ranks!$1:$1048576,$A35,AQ$1))","v":""},{"$f":"IF($A35=\"N/A\",Ref!$B$36,INDEX(Ranks!$1:$1048576,$A35,AR$1))","v":""},{"$f":"IF($A35=\"N/A\",Ref!$B$36,INDEX(Ranks!$1:$1048576,$A35,AS$1))","v":""},{"$f":"IF($A35=\"N/A\",Ref!$B$36,INDEX(Ranks!$1:$1048576,$A35,AT$1))","v":""},{"$f":"IF($A35=\"N/A\",Ref!$B$36,INDEX(Ranks!$1:$1048576,$A35,AU$1))","v":""},{"$f":"IF($A35=\"N/A\",Ref!$B$36,INDEX(Ranks!$1:$1048576,$A35,AV$1))","v":""},{"$f":"IF($A35=\"N/A\",Ref!$B$36,INDEX(Ranks!$1:$1048576,$A35,AW$1))","v":""},{"$f":"IF($A35=\"N/A\",Ref!$B$36,INDEX(Ranks!$1:$1048576,$A35,AX$1))","v":""},{"$f":"IF($A35=\"N/A\",Ref!$B$36,INDEX(Ranks!$1:$1048576,$A35,AY$1))","v":""},{"$f":"IF($A35=\"N/A\",Ref!$B$36,INDEX(Ranks!$1:$1048576,$A35,AZ$1))","v":""},{"$f":"IF($A35=\"N/A\",Ref!$B$36,INDEX(Ranks!$1:$1048576,$A35,BA$1))","v":""},{"$f":"IF($A35=\"N/A\",Ref!$B$36,INDEX(Ranks!$1:$1048576,$A35,BB$1))","v":""},{"$f":"IF($A35=\"N/A\",Ref!$B$36,INDEX(Ranks!$1:$1048576,$A35,BC$1))","v":""},{"$f":"IF($A35=\"N/A\",Ref!$B$36,INDEX(Ranks!$1:$1048576,$A35,BD$1))","v":""},{"$f":"IF($A35=\"N/A\",Ref!$B$36,INDEX(Ranks!$1:$1048576,$A35,BE$1))","v":""},{"$f":"IF($A35=\"N/A\",Ref!$B$36,INDEX(Ranks!$1:$1048576,$A35,BF$1))","v":""},{"$f":"IF($A35=\"N/A\",Ref!$B$36,INDEX(Ranks!$1:$1048576,$A35,BG$1))","v":""},{"$f":"IF($A35=\"N/A\",Ref!$B$36,INDEX(Ranks!$1:$1048576,$A35,BH$1))","v":""},{"$f":"IF($A35=\"N/A\",Ref!$B$36,INDEX(Ranks!$1:$1048576,$A35,BI$1))","v":""},{"$f":"IF($A35=\"N/A\",Ref!$B$36,INDEX(Ranks!$1:$1048576,$A35,BJ$1))","v":""},{"$f":"IF($A35=\"N/A\",Ref!$B$36,INDEX(Ranks!$1:$1048576,$A35,BK$1))","v":""},{"$f":"IF($A35=\"N/A\",Ref!$B$36,INDEX(Ranks!$1:$1048576,$A35,BL$1))","v":""},{"$f":"IF($A35=\"N/A\",Ref!$B$36,INDEX(Ranks!$1:$1048576,$A35,BM$1))","v":""},{"$f":"IF($A35=\"N/A\",Ref!$B$36,INDEX(Ranks!$1:$1048576,$A35,BN$1))","v":""},{"$f":"IF($A35=\"N/A\",Ref!$B$36,INDEX(Ranks!$1:$1048576,$A35,BO$1))","v":""},{"$f":"IF($A35=\"N/A\",Ref!$B$36,INDEX(Ranks!$1:$1048576,$A35,BP$1))","v":""},{"$f":"IF($A35=\"N/A\",Ref!$B$36,INDEX(Ranks!$1:$1048576,$A35,BQ$1))","v":""},{"$f":"IF($A35=\"N/A\",Ref!$B$36,INDEX(Ranks!$1:$1048576,$A35,BR$1))","v":""},{"$f":"IF($A35=\"N/A\",Ref!$B$36,INDEX(Ranks!$1:$1048576,$A35,BS$1))","v":""},{"$f":"IF($A35=\"N/A\",Ref!$B$36,INDEX(Ranks!$1:$1048576,$A35,BT$1))","v":""},{"$f":"IF($A35=\"N/A\",Ref!$B$36,INDEX(Ranks!$1:$1048576,$A35,BU$1))","v":""},{"$f":"IF($A35=\"N/A\",Ref!$B$36,INDEX(Ranks!$1:$1048576,$A35,BV$1))","v":""},{"$f":"IF($A35=\"N/A\",Ref!$B$36,INDEX(Ranks!$1:$1048576,$A35,BW$1))","v":""},{"$f":"IF($A35=\"N/A\",Ref!$B$36,INDEX(Ranks!$1:$1048576,$A35,BX$1))","v":""},{"$f":"IF($A35=\"N/A\",Ref!$B$36,INDEX(Ranks!$1:$1048576,$A35,BY$1))","v":""},{"$f":"IF($A35=\"N/A\",Ref!$B$36,INDEX(Ranks!$1:$1048576,$A35,BZ$1))","v":""},{"$f":"IF($A35=\"N/A\",Ref!$B$36,INDEX(Ranks!$1:$1048576,$A35,CA$1))","v":""},{"$f":"IF($A35=\"N/A\",Ref!$B$36,INDEX(Ranks!$1:$1048576,$A35,CB$1))","v":""},{"$f":"IF($A35=\"N/A\",Ref!$B$36,INDEX(Ranks!$1:$1048576,$A35,CC$1))","v":""},{"$f":"IF($A35=\"N/A\",Ref!$B$36,INDEX(Ranks!$1:$1048576,$A35,CD$1))","v":""},{"$f":"IF($A35=\"N/A\",Ref!$B$36,INDEX(Ranks!$1:$1048576,$A35,CE$1))","v":""},{"$f":"IF($A35=\"N/A\",Ref!$B$36,INDEX(Ranks!$1:$1048576,$A35,CF$1))","v":""},{"$f":"IF($A35=\"N/A\",Ref!$B$36,INDEX(Ranks!$1:$1048576,$A35,CG$1))","v":""},{"$f":"IF($A35=\"N/A\",Ref!$B$36,INDEX(Ranks!$1:$1048576,$A35,CH$1))","v":""},{"$f":"IF($A35=\"N/A\",Ref!$B$36,INDEX(Ranks!$1:$1048576,$A35,CI$1))","v":""},{"$f":"IF($A35=\"N/A\",Ref!$B$36,INDEX(Ranks!$1:$1048576,$A35,CJ$1))","v":""},{"$f":"IF($A35=\"N/A\",Ref!$B$36,INDEX(Ranks!$1:$1048576,$A35,CK$1))","v":""},{"$f":"IF($A35=\"N/A\",Ref!$B$36,INDEX(Ranks!$1:$1048576,$A35,CL$1))","v":""},{"$f":"IF($A35=\"N/A\",Ref!$B$36,INDEX(Ranks!$1:$1048576,$A35,CM$1))","v":""},{"$f":"IF($A35=\"N/A\",Ref!$B$36,INDEX(Ranks!$1:$1048576,$A35,CN$1))","v":""},{"$f":"IF($A35=\"N/A\",Ref!$B$36,INDEX(Ranks!$1:$1048576,$A35,CO$1))","v":""},{"$f":"IF($A35=\"N/A\",Ref!$B$36,INDEX(Ranks!$1:$1048576,$A35,CP$1))","v":""},{"$f":"IF($A35=\"N/A\",Ref!$B$36,INDEX(Ranks!$1:$1048576,$A35,CQ$1))","v":""},{"$f":"IF($A35=\"N/A\",Ref!$B$36,INDEX(Ranks!$1:$1048576,$A35,CR$1))","v":""},{"$f":"IF($A35=\"N/A\",Ref!$B$36,INDEX(Ranks!$1:$1048576,$A35,CS$1))","v":""},{"$f":"IF($A35=\"N/A\",Ref!$B$36,INDEX(Ranks!$1:$1048576,$A35,CT$1))","v":""},{"$f":"IF($A35=\"N/A\",Ref!$B$36,INDEX(Ranks!$1:$1048576,$A35,CU$1))","v":""},{"$f":"IF($A35=\"N/A\",Ref!$B$36,INDEX(Ranks!$1:$1048576,$A35,CV$1))","v":""},{"$f":"IF($A35=\"N/A\",Ref!$B$36,INDEX(Ranks!$1:$1048576,$A35,CW$1))","v":""},{"$f":"IF($A35=\"N/A\",Ref!$B$36,INDEX(Ranks!$1:$1048576,$A35,CX$1))","v":""},{"$f":"IF($A35=\"N/A\",Ref!$B$36,INDEX(Ranks!$1:$1048576,$A35,CY$1))","v":""},{"$f":"IF($A35=\"N/A\",Ref!$B$36,INDEX(Ranks!$1:$1048576,$A35,CZ$1))","v":""},{"$f":"IF($A35=\"N/A\",Ref!$B$36,INDEX(Ranks!$1:$1048576,$A35,DA$1))","v":""},{"$f":"IF($A35=\"N/A\",Ref!$B$36,INDEX(Ranks!$1:$1048576,$A35,DB$1))","v":""},{"$f":"IF($A35=\"N/A\",Ref!$B$36,INDEX(Ranks!$1:$1048576,$A35,DC$1))","v":""},{"$f":"IF($A35=\"N/A\",Ref!$B$36,INDEX(Ranks!$1:$1048576,$A35,DD$1))","v":""},{"$f":"IF($A35=\"N/A\",Ref!$B$36,INDEX(Ranks!$1:$1048576,$A35,DE$1))","v":""},{"$f":"IF($A35=\"N/A\",Ref!$B$36,INDEX(Ranks!$1:$1048576,$A35,DF$1))","v":""},{"$f":"IF($A35=\"N/A\",Ref!$B$36,INDEX(Ranks!$1:$1048576,$A35,DG$1))","v":""},{"$f":"IF($A35=\"N/A\",Ref!$B$36,INDEX(Ranks!$1:$1048576,$A35,DH$1))","v":""},{"$f":"IF($A35=\"N/A\",Ref!$B$36,INDEX(Ranks!$1:$1048576,$A35,DI$1))","v":""},{"$f":"IF($A35=\"N/A\",Ref!$B$36,INDEX(Ranks!$1:$1048576,$A35,DJ$1))","v":""},{"$f":"IF($A35=\"N/A\",Ref!$B$36,INDEX(Ranks!$1:$1048576,$A35,DK$1))","v":""},{"$f":"IF($A35=\"N/A\",Ref!$B$36,INDEX(Ranks!$1:$1048576,$A35,DL$1))","v":""},{"$f":"IF($A35=\"N/A\",Ref!$B$36,INDEX(Ranks!$1:$1048576,$A35,DM$1))","v":""},{"$f":"IF($A35=\"N/A\",Ref!$B$36,INDEX(Ranks!$1:$1048576,$A35,DN$1))","v":""},{"$f":"IF($A35=\"N/A\",Ref!$B$36,INDEX(Ranks!$1:$1048576,$A35,DO$1))","v":""},{"$f":"IF($A35=\"N/A\",Ref!$B$36,INDEX(Ranks!$1:$1048576,$A35,DP$1))","v":""},{"$f":"IF($A35=\"N/A\",Ref!$B$36,INDEX(Ranks!$1:$1048576,$A35,DQ$1))","v":""},{"$f":"IF($A35=\"N/A\",Ref!$B$36,INDEX(Ranks!$1:$1048576,$A35,DR$1))","v":""},{"$f":"IF($A35=\"N/A\",Ref!$B$36,INDEX(Ranks!$1:$1048576,$A35,DS$1))","v":""},{"$f":"IF($A35=\"N/A\",Ref!$B$36,INDEX(Ranks!$1:$1048576,$A35,DT$1))","v":""},{"$f":"IF($A35=\"N/A\",Ref!$B$36,INDEX(Ranks!$1:$1048576,$A35,DU$1))","v":""},{"$f":"IF($A35=\"N/A\",Ref!$B$36,INDEX(Ranks!$1:$1048576,$A35,DV$1))","v":""},{"$f":"IF($A35=\"N/A\",Ref!$B$36,INDEX(Ranks!$1:$1048576,$A35,DW$1))","v":""},{"$f":"IF($A35=\"N/A\",Ref!$B$36,INDEX(Ranks!$1:$1048576,$A35,DX$1))","v":""},{"$f":"IF($A35=\"N/A\",Ref!$B$36,INDEX(Ranks!$1:$1048576,$A35,DY$1))","v":""},{"$f":"IF($A35=\"N/A\",Ref!$B$36,INDEX(Ranks!$1:$1048576,$A35,DZ$1))","v":""},{"$f":"IF($A35=\"N/A\",Ref!$B$36,INDEX(Ranks!$1:$1048576,$A35,EA$1))","v":""},{"$f":"IF($A35=\"N/A\",Ref!$B$36,INDEX(Ranks!$1:$1048576,$A35,EB$1))","v":""}]
[{"$f":"IFERROR(MATCH('Portfolio Page'!L36,Ranks!L:L,0),\"N/A\")","v":"N/A"},null,{"$f":"IF($A36=\"N/A\",\"\",INDEX(Ranks!$1:$1048576,$A36,C$1))","v":""},{"$f":"IF($A36=\"N/A\",Ref!$B$36,INDEX(Ranks!$1:$1048576,$A36,D$1))","v":""},{"$f":"IF($A36=\"N/A\",Ref!$B$36,INDEX(Ranks!$1:$1048576,$A36,E$1))","v":""},{"$f":"IF($A36=\"N/A\",\"\",INDEX(Ranks!$1:$1048576,$A36,F$1))","v":""},{"$f":"IF($A36=\"N/A\",\"\",INDEX(Ranks!$1:$1048576,$A36,G$1))","v":""},{"$f":"IF($A36=\"N/A\",\"\",INDEX(Ranks!$1:$1048576,$A36,H$1))","v":""},{"$f":"IF($A36=\"N/A\",\"\",INDEX(Ranks!$1:$1048576,$A36,I$1))","v":""},{"$f":"IF($A36=\"N/A\",\"\",INDEX(Ranks!$1:$1048576,$A36,J$1))","v":""},{"$f":"IF($A36=\"N/A\",\"\",INDEX(Ranks!$1:$1048576,$A36,K$1))","v":""},null,{"$f":"IF($A36=\"N/A\",Ref!$B$36,INDEX(Ranks!$1:$1048576,$A36,M$1))","v":""},{"$f":"IF($A36=\"N/A\",Ref!$B$36,INDEX(Ranks!$1:$1048576,$A36,N$1))","v":""},{"$f":"IF($A36=\"N/A\",Ref!$B$36,INDEX(Ranks!$1:$1048576,$A36,O$1))","v":""},{"$f":"IF($A36=\"N/A\",Ref!$B$36,INDEX(Ranks!$1:$1048576,$A36,P$1))","v":""},{"$f":"IF($A36=\"N/A\",Ref!$B$36,INDEX(Ranks!$1:$1048576,$A36,Q$1))","v":""},{"$f":"IF($A36=\"N/A\",Ref!$B$36,INDEX(Ranks!$1:$1048576,$A36,R$1))","v":""},{"$f":"IF($A36=\"N/A\",Ref!$B$36,INDEX(Ranks!$1:$1048576,$A36,S$1))","v":""},{"$f":"IF($A36=\"N/A\",Ref!$B$36,INDEX(Ranks!$1:$1048576,$A36,T$1))","v":""},{"$f":"IF($A36=\"N/A\",Ref!$B$36,INDEX(Ranks!$1:$1048576,$A36,U$1))","v":""},{"$f":"IF($A36=\"N/A\",Ref!$B$36,INDEX(Ranks!$1:$1048576,$A36,V$1))","v":""},{"$f":"IF($A36=\"N/A\",Ref!$B$36,INDEX(Ranks!$1:$1048576,$A36,W$1))","v":""},{"$f":"IF($A36=\"N/A\",Ref!$B$36,INDEX(Ranks!$1:$1048576,$A36,X$1))","v":""},{"$f":"IF($A36=\"N/A\",Ref!$B$36,INDEX(Ranks!$1:$1048576,$A36,Y$1))","v":""},{"$f":"IF($A36=\"N/A\",Ref!$B$36,INDEX(Ranks!$1:$1048576,$A36,Z$1))","v":""},{"$f":"IF($A36=\"N/A\",Ref!$B$36,INDEX(Ranks!$1:$1048576,$A36,AA$1))","v":""},{"$f":"IF($A36=\"N/A\",Ref!$B$36,INDEX(Ranks!$1:$1048576,$A36,AB$1))","v":""},{"$f":"IF($A36=\"N/A\",Ref!$B$36,INDEX(Ranks!$1:$1048576,$A36,AC$1))","v":""},{"$f":"IF($A36=\"N/A\",Ref!$B$36,INDEX(Ranks!$1:$1048576,$A36,AD$1))","v":""},{"$f":"IF($A36=\"N/A\",Ref!$B$36,INDEX(Ranks!$1:$1048576,$A36,AE$1))","v":""},{"$f":"IF($A36=\"N/A\",Ref!$B$36,INDEX(Ranks!$1:$1048576,$A36,AF$1))","v":""},{"$f":"IF($A36=\"N/A\",Ref!$B$36,INDEX(Ranks!$1:$1048576,$A36,AG$1))","v":""},{"$f":"IF($A36=\"N/A\",Ref!$B$36,INDEX(Ranks!$1:$1048576,$A36,AH$1))","v":""},{"$f":"IF($A36=\"N/A\",Ref!$B$36,INDEX(Ranks!$1:$1048576,$A36,AI$1))","v":""},{"$f":"IF($A36=\"N/A\",Ref!$B$36,INDEX(Ranks!$1:$1048576,$A36,AJ$1))","v":""},{"$f":"IF($A36=\"N/A\",Ref!$B$36,INDEX(Ranks!$1:$1048576,$A36,AK$1))","v":""},{"$f":"IF($A36=\"N/A\",Ref!$B$36,INDEX(Ranks!$1:$1048576,$A36,AL$1))","v":""},{"$f":"IF($A36=\"N/A\",Ref!$B$36,INDEX(Ranks!$1:$1048576,$A36,AM$1))","v":""},{"$f":"IF($A36=\"N/A\",Ref!$B$36,INDEX(Ranks!$1:$1048576,$A36,AN$1))","v":""},{"$f":"IF($A36=\"N/A\",Ref!$B$36,INDEX(Ranks!$1:$1048576,$A36,AO$1))","v":""},{"$f":"IF($A36=\"N/A\",Ref!$B$36,INDEX(Ranks!$1:$1048576,$A36,AP$1))","v":""},{"$f":"IF($A36=\"N/A\",Ref!$B$36,INDEX(Ranks!$1:$1048576,$A36,AQ$1))","v":""},{"$f":"IF($A36=\"N/A\",Ref!$B$36,INDEX(Ranks!$1:$1048576,$A36,AR$1))","v":""},{"$f":"IF($A36=\"N/A\",Ref!$B$36,INDEX(Ranks!$1:$1048576,$A36,AS$1))","v":""},{"$f":"IF($A36=\"N/A\",Ref!$B$36,INDEX(Ranks!$1:$1048576,$A36,AT$1))","v":""},{"$f":"IF($A36=\"N/A\",Ref!$B$36,INDEX(Ranks!$1:$1048576,$A36,AU$1))","v":""},{"$f":"IF($A36=\"N/A\",Ref!$B$36,INDEX(Ranks!$1:$1048576,$A36,AV$1))","v":""},{"$f":"IF($A36=\"N/A\",Ref!$B$36,INDEX(Ranks!$1:$1048576,$A36,AW$1))","v":""},{"$f":"IF($A36=\"N/A\",Ref!$B$36,INDEX(Ranks!$1:$1048576,$A36,AX$1))","v":""},{"$f":"IF($A36=\"N/A\",Ref!$B$36,INDEX(Ranks!$1:$1048576,$A36,AY$1))","v":""},{"$f":"IF($A36=\"N/A\",Ref!$B$36,INDEX(Ranks!$1:$1048576,$A36,AZ$1))","v":""},{"$f":"IF($A36=\"N/A\",Ref!$B$36,INDEX(Ranks!$1:$1048576,$A36,BA$1))","v":""},{"$f":"IF($A36=\"N/A\",Ref!$B$36,INDEX(Ranks!$1:$1048576,$A36,BB$1))","v":""},{"$f":"IF($A36=\"N/A\",Ref!$B$36,INDEX(Ranks!$1:$1048576,$A36,BC$1))","v":""},{"$f":"IF($A36=\"N/A\",Ref!$B$36,INDEX(Ranks!$1:$1048576,$A36,BD$1))","v":""},{"$f":"IF($A36=\"N/A\",Ref!$B$36,INDEX(Ranks!$1:$1048576,$A36,BE$1))","v":""},{"$f":"IF($A36=\"N/A\",Ref!$B$36,INDEX(Ranks!$1:$1048576,$A36,BF$1))","v":""},{"$f":"IF($A36=\"N/A\",Ref!$B$36,INDEX(Ranks!$1:$1048576,$A36,BG$1))","v":""},{"$f":"IF($A36=\"N/A\",Ref!$B$36,INDEX(Ranks!$1:$1048576,$A36,BH$1))","v":""},{"$f":"IF($A36=\"N/A\",Ref!$B$36,INDEX(Ranks!$1:$1048576,$A36,BI$1))","v":""},{"$f":"IF($A36=\"N/A\",Ref!$B$36,INDEX(Ranks!$1:$1048576,$A36,BJ$1))","v":""},{"$f":"IF($A36=\"N/A\",Ref!$B$36,INDEX(Ranks!$1:$1048576,$A36,BK$1))","v":""},{"$f":"IF($A36=\"N/A\",Ref!$B$36,INDEX(Ranks!$1:$1048576,$A36,BL$1))","v":""},{"$f":"IF($A36=\"N/A\",Ref!$B$36,INDEX(Ranks!$1:$1048576,$A36,BM$1))","v":""},{"$f":"IF($A36=\"N/A\",Ref!$B$36,INDEX(Ranks!$1:$1048576,$A36,BN$1))","v":""},{"$f":"IF($A36=\"N/A\",Ref!$B$36,INDEX(Ranks!$1:$1048576,$A36,BO$1))","v":""},{"$f":"IF($A36=\"N/A\",Ref!$B$36,INDEX(Ranks!$1:$1048576,$A36,BP$1))","v":""},{"$f":"IF($A36=\"N/A\",Ref!$B$36,INDEX(Ranks!$1:$1048576,$A36,BQ$1))","v":""},{"$f":"IF($A36=\"N/A\",Ref!$B$36,INDEX(Ranks!$1:$1048576,$A36,BR$1))","v":""},{"$f":"IF($A36=\"N/A\",Ref!$B$36,INDEX(Ranks!$1:$1048576,$A36,BS$1))","v":""},{"$f":"IF($A36=\"N/A\",Ref!$B$36,INDEX(Ranks!$1:$1048576,$A36,BT$1))","v":""},{"$f":"IF($A36=\"N/A\",Ref!$B$36,INDEX(Ranks!$1:$1048576,$A36,BU$1))","v":""},{"$f":"IF($A36=\"N/A\",Ref!$B$36,INDEX(Ranks!$1:$1048576,$A36,BV$1))","v":""},{"$f":"IF($A36=\"N/A\",Ref!$B$36,INDEX(Ranks!$1:$1048576,$A36,BW$1))","v":""},{"$f":"IF($A36=\"N/A\",Ref!$B$36,INDEX(Ranks!$1:$1048576,$A36,BX$1))","v":""},{"$f":"IF($A36=\"N/A\",Ref!$B$36,INDEX(Ranks!$1:$1048576,$A36,BY$1))","v":""},{"$f":"IF($A36=\"N/A\",Ref!$B$36,INDEX(Ranks!$1:$1048576,$A36,BZ$1))","v":""},{"$f":"IF($A36=\"N/A\",Ref!$B$36,INDEX(Ranks!$1:$1048576,$A36,CA$1))","v":""},{"$f":"IF($A36=\"N/A\",Ref!$B$36,INDEX(Ranks!$1:$1048576,$A36,CB$1))","v":""},{"$f":"IF($A36=\"N/A\",Ref!$B$36,INDEX(Ranks!$1:$1048576,$A36,CC$1))","v":""},{"$f":"IF($A36=\"N/A\",Ref!$B$36,INDEX(Ranks!$1:$1048576,$A36,CD$1))","v":""},{"$f":"IF($A36=\"N/A\",Ref!$B$36,INDEX(Ranks!$1:$1048576,$A36,CE$1))","v":""},{"$f":"IF($A36=\"N/A\",Ref!$B$36,INDEX(Ranks!$1:$1048576,$A36,CF$1))","v":""},{"$f":"IF($A36=\"N/A\",Ref!$B$36,INDEX(Ranks!$1:$1048576,$A36,CG$1))","v":""},{"$f":"IF($A36=\"N/A\",Ref!$B$36,INDEX(Ranks!$1:$1048576,$A36,CH$1))","v":""},{"$f":"IF($A36=\"N/A\",Ref!$B$36,INDEX(Ranks!$1:$1048576,$A36,CI$1))","v":""},{"$f":"IF($A36=\"N/A\",Ref!$B$36,INDEX(Ranks!$1:$1048576,$A36,CJ$1))","v":""},{"$f":"IF($A36=\"N/A\",Ref!$B$36,INDEX(Ranks!$1:$1048576,$A36,CK$1))","v":""},{"$f":"IF($A36=\"N/A\",Ref!$B$36,INDEX(Ranks!$1:$1048576,$A36,CL$1))","v":""},{"$f":"IF($A36=\"N/A\",Ref!$B$36,INDEX(Ranks!$1:$1048576,$A36,CM$1))","v":""},{"$f":"IF($A36=\"N/A\",Ref!$B$36,INDEX(Ranks!$1:$1048576,$A36,CN$1))","v":""},{"$f":"IF($A36=\"N/A\",Ref!$B$36,INDEX(Ranks!$1:$1048576,$A36,CO$1))","v":""},{"$f":"IF($A36=\"N/A\",Ref!$B$36,INDEX(Ranks!$1:$1048576,$A36,CP$1))","v":""},{"$f":"IF($A36=\"N/A\",Ref!$B$36,INDEX(Ranks!$1:$1048576,$A36,CQ$1))","v":""},{"$f":"IF($A36=\"N/A\",Ref!$B$36,INDEX(Ranks!$1:$1048576,$A36,CR$1))","v":""},{"$f":"IF($A36=\"N/A\",Ref!$B$36,INDEX(Ranks!$1:$1048576,$A36,CS$1))","v":""},{"$f":"IF($A36=\"N/A\",Ref!$B$36,INDEX(Ranks!$1:$1048576,$A36,CT$1))","v":""},{"$f":"IF($A36=\"N/A\",Ref!$B$36,INDEX(Ranks!$1:$1048576,$A36,CU$1))","v":""},{"$f":"IF($A36=\"N/A\",Ref!$B$36,INDEX(Ranks!$1:$1048576,$A36,CV$1))","v":""},{"$f":"IF($A36=\"N/A\",Ref!$B$36,INDEX(Ranks!$1:$1048576,$A36,CW$1))","v":""},{"$f":"IF($A36=\"N/A\",Ref!$B$36,INDEX(Ranks!$1:$1048576,$A36,CX$1))","v":""},{"$f":"IF($A36=\"N/A\",Ref!$B$36,INDEX(Ranks!$1:$1048576,$A36,CY$1))","v":""},{"$f":"IF($A36=\"N/A\",Ref!$B$36,INDEX(Ranks!$1:$1048576,$A36,CZ$1))","v":""},{"$f":"IF($A36=\"N/A\",Ref!$B$36,INDEX(Ranks!$1:$1048576,$A36,DA$1))","v":""},{"$f":"IF($A36=\"N/A\",Ref!$B$36,INDEX(Ranks!$1:$1048576,$A36,DB$1))","v":""},{"$f":"IF($A36=\"N/A\",Ref!$B$36,INDEX(Ranks!$1:$1048576,$A36,DC$1))","v":""},{"$f":"IF($A36=\"N/A\",Ref!$B$36,INDEX(Ranks!$1:$1048576,$A36,DD$1))","v":""},{"$f":"IF($A36=\"N/A\",Ref!$B$36,INDEX(Ranks!$1:$1048576,$A36,DE$1))","v":""},{"$f":"IF($A36=\"N/A\",Ref!$B$36,INDEX(Ranks!$1:$1048576,$A36,DF$1))","v":""},{"$f":"IF($A36=\"N/A\",Ref!$B$36,INDEX(Ranks!$1:$1048576,$A36,DG$1))","v":""},{"$f":"IF($A36=\"N/A\",Ref!$B$36,INDEX(Ranks!$1:$1048576,$A36,DH$1))","v":""},{"$f":"IF($A36=\"N/A\",Ref!$B$36,INDEX(Ranks!$1:$1048576,$A36,DI$1))","v":""},{"$f":"IF($A36=\"N/A\",Ref!$B$36,INDEX(Ranks!$1:$1048576,$A36,DJ$1))","v":""},{"$f":"IF($A36=\"N/A\",Ref!$B$36,INDEX(Ranks!$1:$1048576,$A36,DK$1))","v":""},{"$f":"IF($A36=\"N/A\",Ref!$B$36,INDEX(Ranks!$1:$1048576,$A36,DL$1))","v":""},{"$f":"IF($A36=\"N/A\",Ref!$B$36,INDEX(Ranks!$1:$1048576,$A36,DM$1))","v":""},{"$f":"IF($A36=\"N/A\",Ref!$B$36,INDEX(Ranks!$1:$1048576,$A36,DN$1))","v":""},{"$f":"IF($A36=\"N/A\",Ref!$B$36,INDEX(Ranks!$1:$1048576,$A36,DO$1))","v":""},{"$f":"IF($A36=\"N/A\",Ref!$B$36,INDEX(Ranks!$1:$1048576,$A36,DP$1))","v":""},{"$f":"IF($A36=\"N/A\",Ref!$B$36,INDEX(Ranks!$1:$1048576,$A36,DQ$1))","v":""},{"$f":"IF($A36=\"N/A\",Ref!$B$36,INDEX(Ranks!$1:$1048576,$A36,DR$1))","v":""},{"$f":"IF($A36=\"N/A\",Ref!$B$36,INDEX(Ranks!$1:$1048576,$A36,DS$1))","v":""},{"$f":"IF($A36=\"N/A\",Ref!$B$36,INDEX(Ranks!$1:$1048576,$A36,DT$1))","v":""},{"$f":"IF($A36=\"N/A\",Ref!$B$36,INDEX(Ranks!$1:$1048576,$A36,DU$1))","v":""},{"$f":"IF($A36=\"N/A\",Ref!$B$36,INDEX(Ranks!$1:$1048576,$A36,DV$1))","v":""},{"$f":"IF($A36=\"N/A\",Ref!$B$36,INDEX(Ranks!$1:$1048576,$A36,DW$1))","v":""},{"$f":"IF($A36=\"N/A\",Ref!$B$36,INDEX(Ranks!$1:$1048576,$A36,DX$1))","v":""},{"$f":"IF($A36=\"N/A\",Ref!$B$36,INDEX(Ranks!$1:$1048576,$A36,DY$1))","v":""},{"$f":"IF($A36=\"N/A\",Ref!$B$36,INDEX(Ranks!$1:$1048576,$A36,DZ$1))","v":""},{"$f":"IF($A36=\"N/A\",Ref!$B$36,INDEX(Ranks!$1:$1048576,$A36,EA$1))","v":""},{"$f":"IF($A36=\"N/A\",Ref!$B$36,INDEX(Ranks!$1:$1048576,$A36,EB$1))","v":""}]
[{"$f":"IFERROR(MATCH('Portfolio Page'!L37,Ranks!L:L,0),\"N/A\")","v":"N/A"},null,{"$f":"IF($A37=\"N/A\",\"\",INDEX(Ranks!$1:$1048576,$A37,C$1))","v":""},{"$f":"IF($A37=\"N/A\",Ref!$B$36,INDEX(Ranks!$1:$1048576,$A37,D$1))","v":""},{"$f":"IF($A37=\"N/A\",Ref!$B$36,INDEX(Ranks!$1:$1048576,$A37,E$1))","v":""},{"$f":"IF($A37=\"N/A\",\"\",INDEX(Ranks!$1:$1048576,$A37,F$1))","v":""},{"$f":"IF($A37=\"N/A\",\"\",INDEX(Ranks!$1:$1048576,$A37,G$1))","v":""},{"$f":"IF($A37=\"N/A\",\"\",INDEX(Ranks!$1:$1048576,$A37,H$1))","v":""},{"$f":"IF($A37=\"N/A\",\"\",INDEX(Ranks!$1:$1048576,$A37,I$1))","v":""},{"$f":"IF($A37=\"N/A\",\"\",INDEX(Ranks!$1:$1048576,$A37,J$1))","v":""},{"$f":"IF($A37=\"N/A\",\"\",INDEX(Ranks!$1:$1048576,$A37,K$1))","v":""},null,{"$f":"IF($A37=\"N/A\",Ref!$B$36,INDEX(Ranks!$1:$1048576,$A37,M$1))","v":""},{"$f":"IF($A37=\"N/A\",Ref!$B$36,INDEX(Ranks!$1:$1048576,$A37,N$1))","v":""},{"$f":"IF($A37=\"N/A\",Ref!$B$36,INDEX(Ranks!$1:$1048576,$A37,O$1))","v":""},{"$f":"IF($A37=\"N/A\",Ref!$B$36,INDEX(Ranks!$1:$1048576,$A37,P$1))","v":""},{"$f":"IF($A37=\"N/A\",Ref!$B$36,INDEX(Ranks!$1:$1048576,$A37,Q$1))","v":""},{"$f":"IF($A37=\"N/A\",Ref!$B$36,INDEX(Ranks!$1:$1048576,$A37,R$1))","v":""},{"$f":"IF($A37=\"N/A\",Ref!$B$36,INDEX(Ranks!$1:$1048576,$A37,S$1))","v":""},{"$f":"IF($A37=\"N/A\",Ref!$B$36,INDEX(Ranks!$1:$1048576,$A37,T$1))","v":""},{"$f":"IF($A37=\"N/A\",Ref!$B$36,INDEX(Ranks!$1:$1048576,$A37,U$1))","v":""},{"$f":"IF($A37=\"N/A\",Ref!$B$36,INDEX(Ranks!$1:$1048576,$A37,V$1))","v":""},{"$f":"IF($A37=\"N/A\",Ref!$B$36,INDEX(Ranks!$1:$1048576,$A37,W$1))","v":""},{"$f":"IF($A37=\"N/A\",Ref!$B$36,INDEX(Ranks!$1:$1048576,$A37,X$1))","v":""},{"$f":"IF($A37=\"N/A\",Ref!$B$36,INDEX(Ranks!$1:$1048576,$A37,Y$1))","v":""},{"$f":"IF($A37=\"N/A\",Ref!$B$36,INDEX(Ranks!$1:$1048576,$A37,Z$1))","v":""},{"$f":"IF($A37=\"N/A\",Ref!$B$36,INDEX(Ranks!$1:$1048576,$A37,AA$1))","v":""},{"$f":"IF($A37=\"N/A\",Ref!$B$36,INDEX(Ranks!$1:$1048576,$A37,AB$1))","v":""},{"$f":"IF($A37=\"N/A\",Ref!$B$36,INDEX(Ranks!$1:$1048576,$A37,AC$1))","v":""},{"$f":"IF($A37=\"N/A\",Ref!$B$36,INDEX(Ranks!$1:$1048576,$A37,AD$1))","v":""},{"$f":"IF($A37=\"N/A\",Ref!$B$36,INDEX(Ranks!$1:$1048576,$A37,AE$1))","v":""},{"$f":"IF($A37=\"N/A\",Ref!$B$36,INDEX(Ranks!$1:$1048576,$A37,AF$1))","v":""},{"$f":"IF($A37=\"N/A\",Ref!$B$36,INDEX(Ranks!$1:$1048576,$A37,AG$1))","v":""},{"$f":"IF($A37=\"N/A\",Ref!$B$36,INDEX(Ranks!$1:$1048576,$A37,AH$1))","v":""},{"$f":"IF($A37=\"N/A\",Ref!$B$36,INDEX(Ranks!$1:$1048576,$A37,AI$1))","v":""},{"$f":"IF($A37=\"N/A\",Ref!$B$36,INDEX(Ranks!$1:$1048576,$A37,AJ$1))","v":""},{"$f":"IF($A37=\"N/A\",Ref!$B$36,INDEX(Ranks!$1:$1048576,$A37,AK$1))","v":""},{"$f":"IF($A37=\"N/A\",Ref!$B$36,INDEX(Ranks!$1:$1048576,$A37,AL$1))","v":""},{"$f":"IF($A37=\"N/A\",Ref!$B$36,INDEX(Ranks!$1:$1048576,$A37,AM$1))","v":""},{"$f":"IF($A37=\"N/A\",Ref!$B$36,INDEX(Ranks!$1:$1048576,$A37,AN$1))","v":""},{"$f":"IF($A37=\"N/A\",Ref!$B$36,INDEX(Ranks!$1:$1048576,$A37,AO$1))","v":""},{"$f":"IF($A37=\"N/A\",Ref!$B$36,INDEX(Ranks!$1:$1048576,$A37,AP$1))","v":""},{"$f":"IF($A37=\"N/A\",Ref!$B$36,INDEX(Ranks!$1:$1048576,$A37,AQ$1))","v":""},{"$f":"IF($A37=\"N/A\",Ref!$B$36,INDEX(Ranks!$1:$1048576,$A37,AR$1))","v":""},{"$f":"IF($A37=\"N/A\",Ref!$B$36,INDEX(Ranks!$1:$1048576,$A37,AS$1))","v":""},{"$f":"IF($A37=\"N/A\",Ref!$B$36,INDEX(Ranks!$1:$1048576,$A37,AT$1))","v":""},{"$f":"IF($A37=\"N/A\",Ref!$B$36,INDEX(Ranks!$1:$1048576,$A37,AU$1))","v":""},{"$f":"IF($A37=\"N/A\",Ref!$B$36,INDEX(Ranks!$1:$1048576,$A37,AV$1))","v":""},{"$f":"IF($A37=\"N/A\",Ref!$B$36,INDEX(Ranks!$1:$1048576,$A37,AW$1))","v":""},{"$f":"IF($A37=\"N/A\",Ref!$B$36,INDEX(Ranks!$1:$1048576,$A37,AX$1))","v":""},{"$f":"IF($A37=\"N/A\",Ref!$B$36,INDEX(Ranks!$1:$1048576,$A37,AY$1))","v":""},{"$f":"IF($A37=\"N/A\",Ref!$B$36,INDEX(Ranks!$1:$1048576,$A37,AZ$1))","v":""},{"$f":"IF($A37=\"N/A\",Ref!$B$36,INDEX(Ranks!$1:$1048576,$A37,BA$1))","v":""},{"$f":"IF($A37=\"N/A\",Ref!$B$36,INDEX(Ranks!$1:$1048576,$A37,BB$1))","v":""},{"$f":"IF($A37=\"N/A\",Ref!$B$36,INDEX(Ranks!$1:$1048576,$A37,BC$1))","v":""},{"$f":"IF($A37=\"N/A\",Ref!$B$36,INDEX(Ranks!$1:$1048576,$A37,BD$1))","v":""},{"$f":"IF($A37=\"N/A\",Ref!$B$36,INDEX(Ranks!$1:$1048576,$A37,BE$1))","v":""},{"$f":"IF($A37=\"N/A\",Ref!$B$36,INDEX(Ranks!$1:$1048576,$A37,BF$1))","v":""},{"$f":"IF($A37=\"N/A\",Ref!$B$36,INDEX(Ranks!$1:$1048576,$A37,BG$1))","v":""},{"$f":"IF($A37=\"N/A\",Ref!$B$36,INDEX(Ranks!$1:$1048576,$A37,BH$1))","v":""},{"$f":"IF($A37=\"N/A\",Ref!$B$36,INDEX(Ranks!$1:$1048576,$A37,BI$1))","v":""},{"$f":"IF($A37=\"N/A\",Ref!$B$36,INDEX(Ranks!$1:$1048576,$A37,BJ$1))","v":""},{"$f":"IF($A37=\"N/A\",Ref!$B$36,INDEX(Ranks!$1:$1048576,$A37,BK$1))","v":""},{"$f":"IF($A37=\"N/A\",Ref!$B$36,INDEX(Ranks!$1:$1048576,$A37,BL$1))","v":""},{"$f":"IF($A37=\"N/A\",Ref!$B$36,INDEX(Ranks!$1:$1048576,$A37,BM$1))","v":""},{"$f":"IF($A37=\"N/A\",Ref!$B$36,INDEX(Ranks!$1:$1048576,$A37,BN$1))","v":""},{"$f":"IF($A37=\"N/A\",Ref!$B$36,INDEX(Ranks!$1:$1048576,$A37,BO$1))","v":""},{"$f":"IF($A37=\"N/A\",Ref!$B$36,INDEX(Ranks!$1:$1048576,$A37,BP$1))","v":""},{"$f":"IF($A37=\"N/A\",Ref!$B$36,INDEX(Ranks!$1:$1048576,$A37,BQ$1))","v":""},{"$f":"IF($A37=\"N/A\",Ref!$B$36,INDEX(Ranks!$1:$1048576,$A37,BR$1))","v":""},{"$f":"IF($A37=\"N/A\",Ref!$B$36,INDEX(Ranks!$1:$1048576,$A37,BS$1))","v":""},{"$f":"IF($A37=\"N/A\",Ref!$B$36,INDEX(Ranks!$1:$1048576,$A37,BT$1))","v":""},{"$f":"IF($A37=\"N/A\",Ref!$B$36,INDEX(Ranks!$1:$1048576,$A37,BU$1))","v":""},{"$f":"IF($A37=\"N/A\",Ref!$B$36,INDEX(Ranks!$1:$1048576,$A37,BV$1))","v":""},{"$f":"IF($A37=\"N/A\",Ref!$B$36,INDEX(Ranks!$1:$1048576,$A37,BW$1))","v":""},{"$f":"IF($A37=\"N/A\",Ref!$B$36,INDEX(Ranks!$1:$1048576,$A37,BX$1))","v":""},{"$f":"IF($A37=\"N/A\",Ref!$B$36,INDEX(Ranks!$1:$1048576,$A37,BY$1))","v":""},{"$f":"IF($A37=\"N/A\",Ref!$B$36,INDEX(Ranks!$1:$1048576,$A37,BZ$1))","v":""},{"$f":"IF($A37=\"N/A\",Ref!$B$36,INDEX(Ranks!$1:$1048576,$A37,CA$1))","v":""},{"$f":"IF($A37=\"N/A\",Ref!$B$36,INDEX(Ranks!$1:$1048576,$A37,CB$1))","v":""},{"$f":"IF($A37=\"N/A\",Ref!$B$36,INDEX(Ranks!$1:$1048576,$A37,CC$1))","v":""},{"$f":"IF($A37=\"N/A\",Ref!$B$36,INDEX(Ranks!$1:$1048576,$A37,CD$1))","v":""},{"$f":"IF($A37=\"N/A\",Ref!$B$36,INDEX(Ranks!$1:$1048576,$A37,CE$1))","v":""},{"$f":"IF($A37=\"N/A\",Ref!$B$36,INDEX(Ranks!$1:$1048576,$A37,CF$1))","v":""},{"$f":"IF($A37=\"N/A\",Ref!$B$36,INDEX(Ranks!$1:$1048576,$A37,CG$1))","v":""},{"$f":"IF($A37=\"N/A\",Ref!$B$36,INDEX(Ranks!$1:$1048576,$A37,CH$1))","v":""},{"$f":"IF($A37=\"N/A\",Ref!$B$36,INDEX(Ranks!$1:$1048576,$A37,CI$1))","v":""},{"$f":"IF($A37=\"N/A\",Ref!$B$36,INDEX(Ranks!$1:$1048576,$A37,CJ$1))","v":""},{"$f":"IF($A37=\"N/A\",Ref!$B$36,INDEX(Ranks!$1:$1048576,$A37,CK$1))","v":""},{"$f":"IF($A37=\"N/A\",Ref!$B$36,INDEX(Ranks!$1:$1048576,$A37,CL$1))","v":""},{"$f":"IF($A37=\"N/A\",Ref!$B$36,INDEX(Ranks!$1:$1048576,$A37,CM$1))","v":""},{"$f":"IF($A37=\"N/A\",Ref!$B$36,INDEX(Ranks!$1:$1048576,$A37,CN$1))","v":""},{"$f":"IF($A37=\"N/A\",Ref!$B$36,INDEX(Ranks!$1:$1048576,$A37,CO$1))","v":""},{"$f":"IF($A37=\"N/A\",Ref!$B$36,INDEX(Ranks!$1:$1048576,$A37,CP$1))","v":""},{"$f":"IF($A37=\"N/A\",Ref!$B$36,INDEX(Ranks!$1:$1048576,$A37,CQ$1))","v":""},{"$f":"IF($A37=\"N/A\",Ref!$B$36,INDEX(Ranks!$1:$1048576,$A37,CR$1))","v":""},{"$f":"IF($A37=\"N/A\",Ref!$B$36,INDEX(Ranks!$1:$1048576,$A37,CS$1))","v":""},{"$f":"IF($A37=\"N/A\",Ref!$B$36,INDEX(Ranks!$1:$1048576,$A37,CT$1))","v":""},{"$f":"IF($A37=\"N/A\",Ref!$B$36,INDEX(Ranks!$1:$1048576,$A37,CU$1))","v":""},{"$f":"IF($A37=\"N/A\",Ref!$B$36,INDEX(Ranks!$1:$1048576,$A37,CV$1))","v":""},{"$f":"IF($A37=\"N/A\",Ref!$B$36,INDEX(Ranks!$1:$1048576,$A37,CW$1))","v":""},{"$f":"IF($A37=\"N/A\",Ref!$B$36,INDEX(Ranks!$1:$1048576,$A37,CX$1))","v":""},{"$f":"IF($A37=\"N/A\",Ref!$B$36,INDEX(Ranks!$1:$1048576,$A37,CY$1))","v":""},{"$f":"IF($A37=\"N/A\",Ref!$B$36,INDEX(Ranks!$1:$1048576,$A37,CZ$1))","v":""},{"$f":"IF($A37=\"N/A\",Ref!$B$36,INDEX(Ranks!$1:$1048576,$A37,DA$1))","v":""},{"$f":"IF($A37=\"N/A\",Ref!$B$36,INDEX(Ranks!$1:$1048576,$A37,DB$1))","v":""},{"$f":"IF($A37=\"N/A\",Ref!$B$36,INDEX(Ranks!$1:$1048576,$A37,DC$1))","v":""},{"$f":"IF($A37=\"N/A\",Ref!$B$36,INDEX(Ranks!$1:$1048576,$A37,DD$1))","v":""},{"$f":"IF($A37=\"N/A\",Ref!$B$36,INDEX(Ranks!$1:$1048576,$A37,DE$1))","v":""},{"$f":"IF($A37=\"N/A\",Ref!$B$36,INDEX(Ranks!$1:$1048576,$A37,DF$1))","v":""},{"$f":"IF($A37=\"N/A\",Ref!$B$36,INDEX(Ranks!$1:$1048576,$A37,DG$1))","v":""},{"$f":"IF($A37=\"N/A\",Ref!$B$36,INDEX(Ranks!$1:$1048576,$A37,DH$1))","v":""},{"$f":"IF($A37=\"N/A\",Ref!$B$36,INDEX(Ranks!$1:$1048576,$A37,DI$1))","v":""},{"$f":"IF($A37=\"N/A\",Ref!$B$36,INDEX(Ranks!$1:$1048576,$A37,DJ$1))","v":""},{"$f":"IF($A37=\"N/A\",Ref!$B$36,INDEX(Ranks!$1:$1048576,$A37,DK$1))","v":""},{"$f":"IF($A37=\"N/A\",Ref!$B$36,INDEX(Ranks!$1:$1048576,$A37,DL$1))","v":""},{"$f":"IF($A37=\"N/A\",Ref!$B$36,INDEX(Ranks!$1:$1048576,$A37,DM$1))","v":""},{"$f":"IF($A37=\"N/A\",Ref!$B$36,INDEX(Ranks!$1:$1048576,$A37,DN$1))","v":""},{"$f":"IF($A37=\"N/A\",Ref!$B$36,INDEX(Ranks!$1:$1048576,$A37,DO$1))","v":""},{"$f":"IF($A37=\"N/A\",Ref!$B$36,INDEX(Ranks!$1:$1048576,$A37,DP$1))","v":""},{"$f":"IF($A37=\"N/A\",Ref!$B$36,INDEX(Ranks!$1:$1048576,$A37,DQ$1))","v":""},{"$f":"IF($A37=\"N/A\",Ref!$B$36,INDEX(Ranks!$1:$1048576,$A37,DR$1))","v":""},{"$f":"IF($A37=\"N/A\",Ref!$B$36,INDEX(Ranks!$1:$1048576,$A37,DS$1))","v":""},{"$f":"IF($A37=\"N/A\",Ref!$B$36,INDEX(Ranks!$1:$1048576,$A37,DT$1))","v":""},{"$f":"IF($A37=\"N/A\",Ref!$B$36,INDEX(Ranks!$1:$1048576,$A37,DU$1))","v":""},{"$f":"IF($A37=\"N/A\",Ref!$B$36,INDEX(Ranks!$1:$1048576,$A37,DV$1))","v":""},{"$f":"IF($A37=\"N/A\",Ref!$B$36,INDEX(Ranks!$1:$1048576,$A37,DW$1))","v":""},{"$f":"IF($A37=\"N/A\",Ref!$B$36,INDEX(Ranks!$1:$1048576,$A37,DX$1))","v":""},{"$f":"IF($A37=\"N/A\",Ref!$B$36,INDEX(Ranks!$1:$1048576,$A37,DY$1))","v":""},{"$f":"IF($A37=\"N/A\",Ref!$B$36,INDEX(Ranks!$1:$1048576,$A37,DZ$1))","v":""},{"$f":"IF($A37=\"N/A\",Ref!$B$36,INDEX(Ranks!$1:$1048576,$A37,EA$1))","v":""},{"$f":"IF($A37=\"N/A\",Ref!$B$36,INDEX(Ranks!$1:$1048576,$A37,EB$1))","v":""}]
[{"$f":"IFERROR(MATCH('Portfolio Page'!L38,Ranks!L:L,0),\"N/A\")","v":"N/A"},null,{"$f":"IF($A38=\"N/A\",\"\",INDEX(Ranks!$1:$1048576,$A38,C$1))","v":""},{"$f":"IF($A38=\"N/A\",Ref!$B$36,INDEX(Ranks!$1:$1048576,$A38,D$1))","v":""},{"$f":"IF($A38=\"N/A\",Ref!$B$36,INDEX(Ranks!$1:$1048576,$A38,E$1))","v":""},{"$f":"IF($A38=\"N/A\",\"\",INDEX(Ranks!$1:$1048576,$A38,F$1))","v":""},{"$f":"IF($A38=\"N/A\",\"\",INDEX(Ranks!$1:$1048576,$A38,G$1))","v":""},{"$f":"IF($A38=\"N/A\",\"\",INDEX(Ranks!$1:$1048576,$A38,H$1))","v":""},{"$f":"IF($A38=\"N/A\",\"\",INDEX(Ranks!$1:$1048576,$A38,I$1))","v":""},{"$f":"IF($A38=\"N/A\",\"\",INDEX(Ranks!$1:$1048576,$A38,J$1))","v":""},{"$f":"IF($A38=\"N/A\",\"\",INDEX(Ranks!$1:$1048576,$A38,K$1))","v":""},null,{"$f":"IF($A38=\"N/A\",Ref!$B$36,INDEX(Ranks!$1:$1048576,$A38,M$1))","v":""},{"$f":"IF($A38=\"N/A\",Ref!$B$36,INDEX(Ranks!$1:$1048576,$A38,N$1))","v":""},{"$f":"IF($A38=\"N/A\",Ref!$B$36,INDEX(Ranks!$1:$1048576,$A38,O$1))","v":""},{"$f":"IF($A38=\"N/A\",Ref!$B$36,INDEX(Ranks!$1:$1048576,$A38,P$1))","v":""},{"$f":"IF($A38=\"N/A\",Ref!$B$36,INDEX(Ranks!$1:$1048576,$A38,Q$1))","v":""},{"$f":"IF($A38=\"N/A\",Ref!$B$36,INDEX(Ranks!$1:$1048576,$A38,R$1))","v":""},{"$f":"IF($A38=\"N/A\",Ref!$B$36,INDEX(Ranks!$1:$1048576,$A38,S$1))","v":""},{"$f":"IF($A38=\"N/A\",Ref!$B$36,INDEX(Ranks!$1:$1048576,$A38,T$1))","v":""},{"$f":"IF($A38=\"N/A\",Ref!$B$36,INDEX(Ranks!$1:$1048576,$A38,U$1))","v":""},{"$f":"IF($A38=\"N/A\",Ref!$B$36,INDEX(Ranks!$1:$1048576,$A38,V$1))","v":""},{"$f":"IF($A38=\"N/A\",Ref!$B$36,INDEX(Ranks!$1:$1048576,$A38,W$1))","v":""},{"$f":"IF($A38=\"N/A\",Ref!$B$36,INDEX(Ranks!$1:$1048576,$A38,X$1))","v":""},{"$f":"IF($A38=\"N/A\",Ref!$B$36,INDEX(Ranks!$1:$1048576,$A38,Y$1))","v":""},{"$f":"IF($A38=\"N/A\",Ref!$B$36,INDEX(Ranks!$1:$1048576,$A38,Z$1))","v":""},{"$f":"IF($A38=\"N/A\",Ref!$B$36,INDEX(Ranks!$1:$1048576,$A38,AA$1))","v":""},{"$f":"IF($A38=\"N/A\",Ref!$B$36,INDEX(Ranks!$1:$1048576,$A38,AB$1))","v":""},{"$f":"IF($A38=\"N/A\",Ref!$B$36,INDEX(Ranks!$1:$1048576,$A38,AC$1))","v":""},{"$f":"IF($A38=\"N/A\",Ref!$B$36,INDEX(Ranks!$1:$1048576,$A38,AD$1))","v":""},{"$f":"IF($A38=\"N/A\",Ref!$B$36,INDEX(Ranks!$1:$1048576,$A38,AE$1))","v":""},{"$f":"IF($A38=\"N/A\",Ref!$B$36,INDEX(Ranks!$1:$1048576,$A38,AF$1))","v":""},{"$f":"IF($A38=\"N/A\",Ref!$B$36,INDEX(Ranks!$1:$1048576,$A38,AG$1))","v":""},{"$f":"IF($A38=\"N/A\",Ref!$B$36,INDEX(Ranks!$1:$1048576,$A38,AH$1))","v":""},{"$f":"IF($A38=\"N/A\",Ref!$B$36,INDEX(Ranks!$1:$1048576,$A38,AI$1))","v":""},{"$f":"IF($A38=\"N/A\",Ref!$B$36,INDEX(Ranks!$1:$1048576,$A38,AJ$1))","v":""},{"$f":"IF($A38=\"N/A\",Ref!$B$36,INDEX(Ranks!$1:$1048576,$A38,AK$1))","v":""},{"$f":"IF($A38=\"N/A\",Ref!$B$36,INDEX(Ranks!$1:$1048576,$A38,AL$1))","v":""},{"$f":"IF($A38=\"N/A\",Ref!$B$36,INDEX(Ranks!$1:$1048576,$A38,AM$1))","v":""},{"$f":"IF($A38=\"N/A\",Ref!$B$36,INDEX(Ranks!$1:$1048576,$A38,AN$1))","v":""},{"$f":"IF($A38=\"N/A\",Ref!$B$36,INDEX(Ranks!$1:$1048576,$A38,AO$1))","v":""},{"$f":"IF($A38=\"N/A\",Ref!$B$36,INDEX(Ranks!$1:$1048576,$A38,AP$1))","v":""},{"$f":"IF($A38=\"N/A\",Ref!$B$36,INDEX(Ranks!$1:$1048576,$A38,AQ$1))","v":""},{"$f":"IF($A38=\"N/A\",Ref!$B$36,INDEX(Ranks!$1:$1048576,$A38,AR$1))","v":""},{"$f":"IF($A38=\"N/A\",Ref!$B$36,INDEX(Ranks!$1:$1048576,$A38,AS$1))","v":""},{"$f":"IF($A38=\"N/A\",Ref!$B$36,INDEX(Ranks!$1:$1048576,$A38,AT$1))","v":""},{"$f":"IF($A38=\"N/A\",Ref!$B$36,INDEX(Ranks!$1:$1048576,$A38,AU$1))","v":""},{"$f":"IF($A38=\"N/A\",Ref!$B$36,INDEX(Ranks!$1:$1048576,$A38,AV$1))","v":""},{"$f":"IF($A38=\"N/A\",Ref!$B$36,INDEX(Ranks!$1:$1048576,$A38,AW$1))","v":""},{"$f":"IF($A38=\"N/A\",Ref!$B$36,INDEX(Ranks!$1:$1048576,$A38,AX$1))","v":""},{"$f":"IF($A38=\"N/A\",Ref!$B$36,INDEX(Ranks!$1:$1048576,$A38,AY$1))","v":""},{"$f":"IF($A38=\"N/A\",Ref!$B$36,INDEX(Ranks!$1:$1048576,$A38,AZ$1))","v":""},{"$f":"IF($A38=\"N/A\",Ref!$B$36,INDEX(Ranks!$1:$1048576,$A38,BA$1))","v":""},{"$f":"IF($A38=\"N/A\",Ref!$B$36,INDEX(Ranks!$1:$1048576,$A38,BB$1))","v":""},{"$f":"IF($A38=\"N/A\",Ref!$B$36,INDEX(Ranks!$1:$1048576,$A38,BC$1))","v":""},{"$f":"IF($A38=\"N/A\",Ref!$B$36,INDEX(Ranks!$1:$1048576,$A38,BD$1))","v":""},{"$f":"IF($A38=\"N/A\",Ref!$B$36,INDEX(Ranks!$1:$1048576,$A38,BE$1))","v":""},{"$f":"IF($A38=\"N/A\",Ref!$B$36,INDEX(Ranks!$1:$1048576,$A38,BF$1))","v":""},{"$f":"IF($A38=\"N/A\",Ref!$B$36,INDEX(Ranks!$1:$1048576,$A38,BG$1))","v":""},{"$f":"IF($A38=\"N/A\",Ref!$B$36,INDEX(Ranks!$1:$1048576,$A38,BH$1))","v":""},{"$f":"IF($A38=\"N/A\",Ref!$B$36,INDEX(Ranks!$1:$1048576,$A38,BI$1))","v":""},{"$f":"IF($A38=\"N/A\",Ref!$B$36,INDEX(Ranks!$1:$1048576,$A38,BJ$1))","v":""},{"$f":"IF($A38=\"N/A\",Ref!$B$36,INDEX(Ranks!$1:$1048576,$A38,BK$1))","v":""},{"$f":"IF($A38=\"N/A\",Ref!$B$36,INDEX(Ranks!$1:$1048576,$A38,BL$1))","v":""},{"$f":"IF($A38=\"N/A\",Ref!$B$36,INDEX(Ranks!$1:$1048576,$A38,BM$1))","v":""},{"$f":"IF($A38=\"N/A\",Ref!$B$36,INDEX(Ranks!$1:$1048576,$A38,BN$1))","v":""},{"$f":"IF($A38=\"N/A\",Ref!$B$36,INDEX(Ranks!$1:$1048576,$A38,BO$1))","v":""},{"$f":"IF($A38=\"N/A\",Ref!$B$36,INDEX(Ranks!$1:$1048576,$A38,BP$1))","v":""},{"$f":"IF($A38=\"N/A\",Ref!$B$36,INDEX(Ranks!$1:$1048576,$A38,BQ$1))","v":""},{"$f":"IF($A38=\"N/A\",Ref!$B$36,INDEX(Ranks!$1:$1048576,$A38,BR$1))","v":""},{"$f":"IF($A38=\"N/A\",Ref!$B$36,INDEX(Ranks!$1:$1048576,$A38,BS$1))","v":""},{"$f":"IF($A38=\"N/A\",Ref!$B$36,INDEX(Ranks!$1:$1048576,$A38,BT$1))","v":""},{"$f":"IF($A38=\"N/A\",Ref!$B$36,INDEX(Ranks!$1:$1048576,$A38,BU$1))","v":""},{"$f":"IF($A38=\"N/A\",Ref!$B$36,INDEX(Ranks!$1:$1048576,$A38,BV$1))","v":""},{"$f":"IF($A38=\"N/A\",Ref!$B$36,INDEX(Ranks!$1:$1048576,$A38,BW$1))","v":""},{"$f":"IF($A38=\"N/A\",Ref!$B$36,INDEX(Ranks!$1:$1048576,$A38,BX$1))","v":""},{"$f":"IF($A38=\"N/A\",Ref!$B$36,INDEX(Ranks!$1:$1048576,$A38,BY$1))","v":""},{"$f":"IF($A38=\"N/A\",Ref!$B$36,INDEX(Ranks!$1:$1048576,$A38,BZ$1))","v":""},{"$f":"IF($A38=\"N/A\",Ref!$B$36,INDEX(Ranks!$1:$1048576,$A38,CA$1))","v":""},{"$f":"IF($A38=\"N/A\",Ref!$B$36,INDEX(Ranks!$1:$1048576,$A38,CB$1))","v":""},{"$f":"IF($A38=\"N/A\",Ref!$B$36,INDEX(Ranks!$1:$1048576,$A38,CC$1))","v":""},{"$f":"IF($A38=\"N/A\",Ref!$B$36,INDEX(Ranks!$1:$1048576,$A38,CD$1))","v":""},{"$f":"IF($A38=\"N/A\",Ref!$B$36,INDEX(Ranks!$1:$1048576,$A38,CE$1))","v":""},{"$f":"IF($A38=\"N/A\",Ref!$B$36,INDEX(Ranks!$1:$1048576,$A38,CF$1))","v":""},{"$f":"IF($A38=\"N/A\",Ref!$B$36,INDEX(Ranks!$1:$1048576,$A38,CG$1))","v":""},{"$f":"IF($A38=\"N/A\",Ref!$B$36,INDEX(Ranks!$1:$1048576,$A38,CH$1))","v":""},{"$f":"IF($A38=\"N/A\",Ref!$B$36,INDEX(Ranks!$1:$1048576,$A38,CI$1))","v":""},{"$f":"IF($A38=\"N/A\",Ref!$B$36,INDEX(Ranks!$1:$1048576,$A38,CJ$1))","v":""},{"$f":"IF($A38=\"N/A\",Ref!$B$36,INDEX(Ranks!$1:$1048576,$A38,CK$1))","v":""},{"$f":"IF($A38=\"N/A\",Ref!$B$36,INDEX(Ranks!$1:$1048576,$A38,CL$1))","v":""},{"$f":"IF($A38=\"N/A\",Ref!$B$36,INDEX(Ranks!$1:$1048576,$A38,CM$1))","v":""},{"$f":"IF($A38=\"N/A\",Ref!$B$36,INDEX(Ranks!$1:$1048576,$A38,CN$1))","v":""},{"$f":"IF($A38=\"N/A\",Ref!$B$36,INDEX(Ranks!$1:$1048576,$A38,CO$1))","v":""},{"$f":"IF($A38=\"N/A\",Ref!$B$36,INDEX(Ranks!$1:$1048576,$A38,CP$1))","v":""},{"$f":"IF($A38=\"N/A\",Ref!$B$36,INDEX(Ranks!$1:$1048576,$A38,CQ$1))","v":""},{"$f":"IF($A38=\"N/A\",Ref!$B$36,INDEX(Ranks!$1:$1048576,$A38,CR$1))","v":""},{"$f":"IF($A38=\"N/A\",Ref!$B$36,INDEX(Ranks!$1:$1048576,$A38,CS$1))","v":""},{"$f":"IF($A38=\"N/A\",Ref!$B$36,INDEX(Ranks!$1:$1048576,$A38,CT$1))","v":""},{"$f":"IF($A38=\"N/A\",Ref!$B$36,INDEX(Ranks!$1:$1048576,$A38,CU$1))","v":""},{"$f":"IF($A38=\"N/A\",Ref!$B$36,INDEX(Ranks!$1:$1048576,$A38,CV$1))","v":""},{"$f":"IF($A38=\"N/A\",Ref!$B$36,INDEX(Ranks!$1:$1048576,$A38,CW$1))","v":""},{"$f":"IF($A38=\"N/A\",Ref!$B$36,INDEX(Ranks!$1:$1048576,$A38,CX$1))","v":""},{"$f":"IF($A38=\"N/A\",Ref!$B$36,INDEX(Ranks!$1:$1048576,$A38,CY$1))","v":""},{"$f":"IF($A38=\"N/A\",Ref!$B$36,INDEX(Ranks!$1:$1048576,$A38,CZ$1))","v":""},{"$f":"IF($A38=\"N/A\",Ref!$B$36,INDEX(Ranks!$1:$1048576,$A38,DA$1))","v":""},{"$f":"IF($A38=\"N/A\",Ref!$B$36,INDEX(Ranks!$1:$1048576,$A38,DB$1))","v":""},{"$f":"IF($A38=\"N/A\",Ref!$B$36,INDEX(Ranks!$1:$1048576,$A38,DC$1))","v":""},{"$f":"IF($A38=\"N/A\",Ref!$B$36,INDEX(Ranks!$1:$1048576,$A38,DD$1))","v":""},{"$f":"IF($A38=\"N/A\",Ref!$B$36,INDEX(Ranks!$1:$1048576,$A38,DE$1))","v":""},{"$f":"IF($A38=\"N/A\",Ref!$B$36,INDEX(Ranks!$1:$1048576,$A38,DF$1))","v":""},{"$f":"IF($A38=\"N/A\",Ref!$B$36,INDEX(Ranks!$1:$1048576,$A38,DG$1))","v":""},{"$f":"IF($A38=\"N/A\",Ref!$B$36,INDEX(Ranks!$1:$1048576,$A38,DH$1))","v":""},{"$f":"IF($A38=\"N/A\",Ref!$B$36,INDEX(Ranks!$1:$1048576,$A38,DI$1))","v":""},{"$f":"IF($A38=\"N/A\",Ref!$B$36,INDEX(Ranks!$1:$1048576,$A38,DJ$1))","v":""},{"$f":"IF($A38=\"N/A\",Ref!$B$36,INDEX(Ranks!$1:$1048576,$A38,DK$1))","v":""},{"$f":"IF($A38=\"N/A\",Ref!$B$36,INDEX(Ranks!$1:$1048576,$A38,DL$1))","v":""},{"$f":"IF($A38=\"N/A\",Ref!$B$36,INDEX(Ranks!$1:$1048576,$A38,DM$1))","v":""},{"$f":"IF($A38=\"N/A\",Ref!$B$36,INDEX(Ranks!$1:$1048576,$A38,DN$1))","v":""},{"$f":"IF($A38=\"N/A\",Ref!$B$36,INDEX(Ranks!$1:$1048576,$A38,DO$1))","v":""},{"$f":"IF($A38=\"N/A\",Ref!$B$36,INDEX(Ranks!$1:$1048576,$A38,DP$1))","v":""},{"$f":"IF($A38=\"N/A\",Ref!$B$36,INDEX(Ranks!$1:$1048576,$A38,DQ$1))","v":""},{"$f":"IF($A38=\"N/A\",Ref!$B$36,INDEX(Ranks!$1:$1048576,$A38,DR$1))","v":""},{"$f":"IF($A38=\"N/A\",Ref!$B$36,INDEX(Ranks!$1:$1048576,$A38,DS$1))","v":""},{"$f":"IF($A38=\"N/A\",Ref!$B$36,INDEX(Ranks!$1:$1048576,$A38,DT$1))","v":""},{"$f":"IF($A38=\"N/A\",Ref!$B$36,INDEX(Ranks!$1:$1048576,$A38,DU$1))","v":""},{"$f":"IF($A38=\"N/A\",Ref!$B$36,INDEX(Ranks!$1:$1048576,$A38,DV$1))","v":""},{"$f":"IF($A38=\"N/A\",Ref!$B$36,INDEX(Ranks!$1:$1048576,$A38,DW$1))","v":""},{"$f":"IF($A38=\"N/A\",Ref!$B$36,INDEX(Ranks!$1:$1048576,$A38,DX$1))","v":""},{"$f":"IF($A38=\"N/A\",Ref!$B$36,INDEX(Ranks!$1:$1048576,$A38,DY$1))","v":""},{"$f":"IF($A38=\"N/A\",Ref!$B$36,INDEX(Ranks!$1:$1048576,$A38,DZ$1))","v":""},{"$f":"IF($A38=\"N/A\",Ref!$B$36,INDEX(Ranks!$1:$1048576,$A38,EA$1))","v":""},{"$f":"IF($A38=\"N/A\",Ref!$B$36,INDEX(Ranks!$1:$1048576,$A38,EB$1))","v":""}]
[{"$f":"IFERROR(MATCH('Portfolio Page'!L39,Ranks!L:L,0),\"N/A\")","v":"N/A"},null,{"$f":"IF($A39=\"N/A\",\"\",INDEX(Ranks!$1:$1048576,$A39,C$1))","v":""},{"$f":"IF($A39=\"N/A\",Ref!$B$36,INDEX(Ranks!$1:$1048576,$A39,D$1))","v":""},{"$f":"IF($A39=\"N/A\",Ref!$B$36,INDEX(Ranks!$1:$1048576,$A39,E$1))","v":""},{"$f":"IF($A39=\"N/A\",\"\",INDEX(Ranks!$1:$1048576,$A39,F$1))","v":""},{"$f":"IF($A39=\"N/A\",\"\",INDEX(Ranks!$1:$1048576,$A39,G$1))","v":""},{"$f":"IF($A39=\"N/A\",\"\",INDEX(Ranks!$1:$1048576,$A39,H$1))","v":""},{"$f":"IF($A39=\"N/A\",\"\",INDEX(Ranks!$1:$1048576,$A39,I$1))","v":""},{"$f":"IF($A39=\"N/A\",\"\",INDEX(Ranks!$1:$1048576,$A39,J$1))","v":""},{"$f":"IF($A39=\"N/A\",\"\",INDEX(Ranks!$1:$1048576,$A39,K$1))","v":""},null,{"$f":"IF($A39=\"N/A\",Ref!$B$36,INDEX(Ranks!$1:$1048576,$A39,M$1))","v":""},{"$f":"IF($A39=\"N/A\",Ref!$B$36,INDEX(Ranks!$1:$1048576,$A39,N$1))","v":""},{"$f":"IF($A39=\"N/A\",Ref!$B$36,INDEX(Ranks!$1:$1048576,$A39,O$1))","v":""},{"$f":"IF($A39=\"N/A\",Ref!$B$36,INDEX(Ranks!$1:$1048576,$A39,P$1))","v":""},{"$f":"IF($A39=\"N/A\",Ref!$B$36,INDEX(Ranks!$1:$1048576,$A39,Q$1))","v":""},{"$f":"IF($A39=\"N/A\",Ref!$B$36,INDEX(Ranks!$1:$1048576,$A39,R$1))","v":""},{"$f":"IF($A39=\"N/A\",Ref!$B$36,INDEX(Ranks!$1:$1048576,$A39,S$1))","v":""},{"$f":"IF($A39=\"N/A\",Ref!$B$36,INDEX(Ranks!$1:$1048576,$A39,T$1))","v":""},{"$f":"IF($A39=\"N/A\",Ref!$B$36,INDEX(Ranks!$1:$1048576,$A39,U$1))","v":""},{"$f":"IF($A39=\"N/A\",Ref!$B$36,INDEX(Ranks!$1:$1048576,$A39,V$1))","v":""},{"$f":"IF($A39=\"N/A\",Ref!$B$36,INDEX(Ranks!$1:$1048576,$A39,W$1))","v":""},{"$f":"IF($A39=\"N/A\",Ref!$B$36,INDEX(Ranks!$1:$1048576,$A39,X$1))","v":""},{"$f":"IF($A39=\"N/A\",Ref!$B$36,INDEX(Ranks!$1:$1048576,$A39,Y$1))","v":""},{"$f":"IF($A39=\"N/A\",Ref!$B$36,INDEX(Ranks!$1:$1048576,$A39,Z$1))","v":""},{"$f":"IF($A39=\"N/A\",Ref!$B$36,INDEX(Ranks!$1:$1048576,$A39,AA$1))","v":""},{"$f":"IF($A39=\"N/A\",Ref!$B$36,INDEX(Ranks!$1:$1048576,$A39,AB$1))","v":""},{"$f":"IF($A39=\"N/A\",Ref!$B$36,INDEX(Ranks!$1:$1048576,$A39,AC$1))","v":""},{"$f":"IF($A39=\"N/A\",Ref!$B$36,INDEX(Ranks!$1:$1048576,$A39,AD$1))","v":""},{"$f":"IF($A39=\"N/A\",Ref!$B$36,INDEX(Ranks!$1:$1048576,$A39,AE$1))","v":""},{"$f":"IF($A39=\"N/A\",Ref!$B$36,INDEX(Ranks!$1:$1048576,$A39,AF$1))","v":""},{"$f":"IF($A39=\"N/A\",Ref!$B$36,INDEX(Ranks!$1:$1048576,$A39,AG$1))","v":""},{"$f":"IF($A39=\"N/A\",Ref!$B$36,INDEX(Ranks!$1:$1048576,$A39,AH$1))","v":""},{"$f":"IF($A39=\"N/A\",Ref!$B$36,INDEX(Ranks!$1:$1048576,$A39,AI$1))","v":""},{"$f":"IF($A39=\"N/A\",Ref!$B$36,INDEX(Ranks!$1:$1048576,$A39,AJ$1))","v":""},{"$f":"IF($A39=\"N/A\",Ref!$B$36,INDEX(Ranks!$1:$1048576,$A39,AK$1))","v":""},{"$f":"IF($A39=\"N/A\",Ref!$B$36,INDEX(Ranks!$1:$1048576,$A39,AL$1))","v":""},{"$f":"IF($A39=\"N/A\",Ref!$B$36,INDEX(Ranks!$1:$1048576,$A39,AM$1))","v":""},{"$f":"IF($A39=\"N/A\",Ref!$B$36,INDEX(Ranks!$1:$1048576,$A39,AN$1))","v":""},{"$f":"IF($A39=\"N/A\",Ref!$B$36,INDEX(Ranks!$1:$1048576,$A39,AO$1))","v":""},{"$f":"IF($A39=\"N/A\",Ref!$B$36,INDEX(Ranks!$1:$1048576,$A39,AP$1))","v":""},{"$f":"IF($A39=\"N/A\",Ref!$B$36,INDEX(Ranks!$1:$1048576,$A39,AQ$1))","v":""},{"$f":"IF($A39=\"N/A\",Ref!$B$36,INDEX(Ranks!$1:$1048576,$A39,AR$1))","v":""},{"$f":"IF($A39=\"N/A\",Ref!$B$36,INDEX(Ranks!$1:$1048576,$A39,AS$1))","v":""},{"$f":"IF($A39=\"N/A\",Ref!$B$36,INDEX(Ranks!$1:$1048576,$A39,AT$1))","v":""},{"$f":"IF($A39=\"N/A\",Ref!$B$36,INDEX(Ranks!$1:$1048576,$A39,AU$1))","v":""},{"$f":"IF($A39=\"N/A\",Ref!$B$36,INDEX(Ranks!$1:$1048576,$A39,AV$1))","v":""},{"$f":"IF($A39=\"N/A\",Ref!$B$36,INDEX(Ranks!$1:$1048576,$A39,AW$1))","v":""},{"$f":"IF($A39=\"N/A\",Ref!$B$36,INDEX(Ranks!$1:$1048576,$A39,AX$1))","v":""},{"$f":"IF($A39=\"N/A\",Ref!$B$36,INDEX(Ranks!$1:$1048576,$A39,AY$1))","v":""},{"$f":"IF($A39=\"N/A\",Ref!$B$36,INDEX(Ranks!$1:$1048576,$A39,AZ$1))","v":""},{"$f":"IF($A39=\"N/A\",Ref!$B$36,INDEX(Ranks!$1:$1048576,$A39,BA$1))","v":""},{"$f":"IF($A39=\"N/A\",Ref!$B$36,INDEX(Ranks!$1:$1048576,$A39,BB$1))","v":""},{"$f":"IF($A39=\"N/A\",Ref!$B$36,INDEX(Ranks!$1:$1048576,$A39,BC$1))","v":""},{"$f":"IF($A39=\"N/A\",Ref!$B$36,INDEX(Ranks!$1:$1048576,$A39,BD$1))","v":""},{"$f":"IF($A39=\"N/A\",Ref!$B$36,INDEX(Ranks!$1:$1048576,$A39,BE$1))","v":""},{"$f":"IF($A39=\"N/A\",Ref!$B$36,INDEX(Ranks!$1:$1048576,$A39,BF$1))","v":""},{"$f":"IF($A39=\"N/A\",Ref!$B$36,INDEX(Ranks!$1:$1048576,$A39,BG$1))","v":""},{"$f":"IF($A39=\"N/A\",Ref!$B$36,INDEX(Ranks!$1:$1048576,$A39,BH$1))","v":""},{"$f":"IF($A39=\"N/A\",Ref!$B$36,INDEX(Ranks!$1:$1048576,$A39,BI$1))","v":""},{"$f":"IF($A39=\"N/A\",Ref!$B$36,INDEX(Ranks!$1:$1048576,$A39,BJ$1))","v":""},{"$f":"IF($A39=\"N/A\",Ref!$B$36,INDEX(Ranks!$1:$1048576,$A39,BK$1))","v":""},{"$f":"IF($A39=\"N/A\",Ref!$B$36,INDEX(Ranks!$1:$1048576,$A39,BL$1))","v":""},{"$f":"IF($A39=\"N/A\",Ref!$B$36,INDEX(Ranks!$1:$1048576,$A39,BM$1))","v":""},{"$f":"IF($A39=\"N/A\",Ref!$B$36,INDEX(Ranks!$1:$1048576,$A39,BN$1))","v":""},{"$f":"IF($A39=\"N/A\",Ref!$B$36,INDEX(Ranks!$1:$1048576,$A39,BO$1))","v":""},{"$f":"IF($A39=\"N/A\",Ref!$B$36,INDEX(Ranks!$1:$1048576,$A39,BP$1))","v":""},{"$f":"IF($A39=\"N/A\",Ref!$B$36,INDEX(Ranks!$1:$1048576,$A39,BQ$1))","v":""},{"$f":"IF($A39=\"N/A\",Ref!$B$36,INDEX(Ranks!$1:$1048576,$A39,BR$1))","v":""},{"$f":"IF($A39=\"N/A\",Ref!$B$36,INDEX(Ranks!$1:$1048576,$A39,BS$1))","v":""},{"$f":"IF($A39=\"N/A\",Ref!$B$36,INDEX(Ranks!$1:$1048576,$A39,BT$1))","v":""},{"$f":"IF($A39=\"N/A\",Ref!$B$36,INDEX(Ranks!$1:$1048576,$A39,BU$1))","v":""},{"$f":"IF($A39=\"N/A\",Ref!$B$36,INDEX(Ranks!$1:$1048576,$A39,BV$1))","v":""},{"$f":"IF($A39=\"N/A\",Ref!$B$36,INDEX(Ranks!$1:$1048576,$A39,BW$1))","v":""},{"$f":"IF($A39=\"N/A\",Ref!$B$36,INDEX(Ranks!$1:$1048576,$A39,BX$1))","v":""},{"$f":"IF($A39=\"N/A\",Ref!$B$36,INDEX(Ranks!$1:$1048576,$A39,BY$1))","v":""},{"$f":"IF($A39=\"N/A\",Ref!$B$36,INDEX(Ranks!$1:$1048576,$A39,BZ$1))","v":""},{"$f":"IF($A39=\"N/A\",Ref!$B$36,INDEX(Ranks!$1:$1048576,$A39,CA$1))","v":""},{"$f":"IF($A39=\"N/A\",Ref!$B$36,INDEX(Ranks!$1:$1048576,$A39,CB$1))","v":""},{"$f":"IF($A39=\"N/A\",Ref!$B$36,INDEX(Ranks!$1:$1048576,$A39,CC$1))","v":""},{"$f":"IF($A39=\"N/A\",Ref!$B$36,INDEX(Ranks!$1:$1048576,$A39,CD$1))","v":""},{"$f":"IF($A39=\"N/A\",Ref!$B$36,INDEX(Ranks!$1:$1048576,$A39,CE$1))","v":""},{"$f":"IF($A39=\"N/A\",Ref!$B$36,INDEX(Ranks!$1:$1048576,$A39,CF$1))","v":""},{"$f":"IF($A39=\"N/A\",Ref!$B$36,INDEX(Ranks!$1:$1048576,$A39,CG$1))","v":""},{"$f":"IF($A39=\"N/A\",Ref!$B$36,INDEX(Ranks!$1:$1048576,$A39,CH$1))","v":""},{"$f":"IF($A39=\"N/A\",Ref!$B$36,INDEX(Ranks!$1:$1048576,$A39,CI$1))","v":""},{"$f":"IF($A39=\"N/A\",Ref!$B$36,INDEX(Ranks!$1:$1048576,$A39,CJ$1))","v":""},{"$f":"IF($A39=\"N/A\",Ref!$B$36,INDEX(Ranks!$1:$1048576,$A39,CK$1))","v":""},{"$f":"IF($A39=\"N/A\",Ref!$B$36,INDEX(Ranks!$1:$1048576,$A39,CL$1))","v":""},{"$f":"IF($A39=\"N/A\",Ref!$B$36,INDEX(Ranks!$1:$1048576,$A39,CM$1))","v":""},{"$f":"IF($A39=\"N/A\",Ref!$B$36,INDEX(Ranks!$1:$1048576,$A39,CN$1))","v":""},{"$f":"IF($A39=\"N/A\",Ref!$B$36,INDEX(Ranks!$1:$1048576,$A39,CO$1))","v":""},{"$f":"IF($A39=\"N/A\",Ref!$B$36,INDEX(Ranks!$1:$1048576,$A39,CP$1))","v":""},{"$f":"IF($A39=\"N/A\",Ref!$B$36,INDEX(Ranks!$1:$1048576,$A39,CQ$1))","v":""},{"$f":"IF($A39=\"N/A\",Ref!$B$36,INDEX(Ranks!$1:$1048576,$A39,CR$1))","v":""},{"$f":"IF($A39=\"N/A\",Ref!$B$36,INDEX(Ranks!$1:$1048576,$A39,CS$1))","v":""},{"$f":"IF($A39=\"N/A\",Ref!$B$36,INDEX(Ranks!$1:$1048576,$A39,CT$1))","v":""},{"$f":"IF($A39=\"N/A\",Ref!$B$36,INDEX(Ranks!$1:$1048576,$A39,CU$1))","v":""},{"$f":"IF($A39=\"N/A\",Ref!$B$36,INDEX(Ranks!$1:$1048576,$A39,CV$1))","v":""},{"$f":"IF($A39=\"N/A\",Ref!$B$36,INDEX(Ranks!$1:$1048576,$A39,CW$1))","v":""},{"$f":"IF($A39=\"N/A\",Ref!$B$36,INDEX(Ranks!$1:$1048576,$A39,CX$1))","v":""},{"$f":"IF($A39=\"N/A\",Ref!$B$36,INDEX(Ranks!$1:$1048576,$A39,CY$1))","v":""},{"$f":"IF($A39=\"N/A\",Ref!$B$36,INDEX(Ranks!$1:$1048576,$A39,CZ$1))","v":""},{"$f":"IF($A39=\"N/A\",Ref!$B$36,INDEX(Ranks!$1:$1048576,$A39,DA$1))","v":""},{"$f":"IF($A39=\"N/A\",Ref!$B$36,INDEX(Ranks!$1:$1048576,$A39,DB$1))","v":""},{"$f":"IF($A39=\"N/A\",Ref!$B$36,INDEX(Ranks!$1:$1048576,$A39,DC$1))","v":""},{"$f":"IF($A39=\"N/A\",Ref!$B$36,INDEX(Ranks!$1:$1048576,$A39,DD$1))","v":""},{"$f":"IF($A39=\"N/A\",Ref!$B$36,INDEX(Ranks!$1:$1048576,$A39,DE$1))","v":""},{"$f":"IF($A39=\"N/A\",Ref!$B$36,INDEX(Ranks!$1:$1048576,$A39,DF$1))","v":""},{"$f":"IF($A39=\"N/A\",Ref!$B$36,INDEX(Ranks!$1:$1048576,$A39,DG$1))","v":""},{"$f":"IF($A39=\"N/A\",Ref!$B$36,INDEX(Ranks!$1:$1048576,$A39,DH$1))","v":""},{"$f":"IF($A39=\"N/A\",Ref!$B$36,INDEX(Ranks!$1:$1048576,$A39,DI$1))","v":""},{"$f":"IF($A39=\"N/A\",Ref!$B$36,INDEX(Ranks!$1:$1048576,$A39,DJ$1))","v":""},{"$f":"IF($A39=\"N/A\",Ref!$B$36,INDEX(Ranks!$1:$1048576,$A39,DK$1))","v":""},{"$f":"IF($A39=\"N/A\",Ref!$B$36,INDEX(Ranks!$1:$1048576,$A39,DL$1))","v":""},{"$f":"IF($A39=\"N/A\",Ref!$B$36,INDEX(Ranks!$1:$1048576,$A39,DM$1))","v":""},{"$f":"IF($A39=\"N/A\",Ref!$B$36,INDEX(Ranks!$1:$1048576,$A39,DN$1))","v":""},{"$f":"IF($A39=\"N/A\",Ref!$B$36,INDEX(Ranks!$1:$1048576,$A39,DO$1))","v":""},{"$f":"IF($A39=\"N/A\",Ref!$B$36,INDEX(Ranks!$1:$1048576,$A39,DP$1))","v":""},{"$f":"IF($A39=\"N/A\",Ref!$B$36,INDEX(Ranks!$1:$1048576,$A39,DQ$1))","v":""},{"$f":"IF($A39=\"N/A\",Ref!$B$36,INDEX(Ranks!$1:$1048576,$A39,DR$1))","v":""},{"$f":"IF($A39=\"N/A\",Ref!$B$36,INDEX(Ranks!$1:$1048576,$A39,DS$1))","v":""},{"$f":"IF($A39=\"N/A\",Ref!$B$36,INDEX(Ranks!$1:$1048576,$A39,DT$1))","v":""},{"$f":"IF($A39=\"N/A\",Ref!$B$36,INDEX(Ranks!$1:$1048576,$A39,DU$1))","v":""},{"$f":"IF($A39=\"N/A\",Ref!$B$36,INDEX(Ranks!$1:$1048576,$A39,DV$1))","v":""},{"$f":"IF($A39=\"N/A\",Ref!$B$36,INDEX(Ranks!$1:$1048576,$A39,DW$1))","v":""},{"$f":"IF($A39=\"N/A\",Ref!$B$36,INDEX(Ranks!$1:$1048576,$A39,DX$1))","v":""},{"$f":"IF($A39=\"N/A\",Ref!$B$36,INDEX(Ranks!$1:$1048576,$A39,DY$1))","v":""},{"$f":"IF($A39=\"N/A\",Ref!$B$36,INDEX(Ranks!$1:$1048576,$A39,DZ$1))","v":""},{"$f":"IF($A39=\"N/A\",Ref!$B$36,INDEX(Ranks!$1:$1048576,$A39,EA$1))","v":""},{"$f":"IF($A39=\"N/A\",Ref!$B$36,INDEX(Ranks!$1:$1048576,$A39,EB$1))","v":""}]
[{"$f":"IFERROR(MATCH('Portfolio Page'!L40,Ranks!L:L,0),\"N/A\")","v":"N/A"},null,{"$f":"IF($A40=\"N/A\",\"\",INDEX(Ranks!$1:$1048576,$A40,C$1))","v":""},{"$f":"IF($A40=\"N/A\",Ref!$B$36,INDEX(Ranks!$1:$1048576,$A40,D$1))","v":""},{"$f":"IF($A40=\"N/A\",Ref!$B$36,INDEX(Ranks!$1:$1048576,$A40,E$1))","v":""},{"$f":"IF($A40=\"N/A\",\"\",INDEX(Ranks!$1:$1048576,$A40,F$1))","v":""},{"$f":"IF($A40=\"N/A\",\"\",INDEX(Ranks!$1:$1048576,$A40,G$1))","v":""},{"$f":"IF($A40=\"N/A\",\"\",INDEX(Ranks!$1:$1048576,$A40,H$1))","v":""},{"$f":"IF($A40=\"N/A\",\"\",INDEX(Ranks!$1:$1048576,$A40,I$1))","v":""},{"$f":"IF($A40=\"N/A\",\"\",INDEX(Ranks!$1:$1048576,$A40,J$1))","v":""},{"$f":"IF($A40=\"N/A\",\"\",INDEX(Ranks!$1:$1048576,$A40,K$1))","v":""},null,{"$f":"IF($A40=\"N/A\",Ref!$B$36,INDEX(Ranks!$1:$1048576,$A40,M$1))","v":""},{"$f":"IF($A40=\"N/A\",Ref!$B$36,INDEX(Ranks!$1:$1048576,$A40,N$1))","v":""},{"$f":"IF($A40=\"N/A\",Ref!$B$36,INDEX(Ranks!$1:$1048576,$A40,O$1))","v":""},{"$f":"IF($A40=\"N/A\",Ref!$B$36,INDEX(Ranks!$1:$1048576,$A40,P$1))","v":""},{"$f":"IF($A40=\"N/A\",Ref!$B$36,INDEX(Ranks!$1:$1048576,$A40,Q$1))","v":""},{"$f":"IF($A40=\"N/A\",Ref!$B$36,INDEX(Ranks!$1:$1048576,$A40,R$1))","v":""},{"$f":"IF($A40=\"N/A\",Ref!$B$36,INDEX(Ranks!$1:$1048576,$A40,S$1))","v":""},{"$f":"IF($A40=\"N/A\",Ref!$B$36,INDEX(Ranks!$1:$1048576,$A40,T$1))","v":""},{"$f":"IF($A40=\"N/A\",Ref!$B$36,INDEX(Ranks!$1:$1048576,$A40,U$1))","v":""},{"$f":"IF($A40=\"N/A\",Ref!$B$36,INDEX(Ranks!$1:$1048576,$A40,V$1))","v":""},{"$f":"IF($A40=\"N/A\",Ref!$B$36,INDEX(Ranks!$1:$1048576,$A40,W$1))","v":""},{"$f":"IF($A40=\"N/A\",Ref!$B$36,INDEX(Ranks!$1:$1048576,$A40,X$1))","v":""},{"$f":"IF($A40=\"N/A\",Ref!$B$36,INDEX(Ranks!$1:$1048576,$A40,Y$1))","v":""},{"$f":"IF($A40=\"N/A\",Ref!$B$36,INDEX(Ranks!$1:$1048576,$A40,Z$1))","v":""},{"$f":"IF($A40=\"N/A\",Ref!$B$36,INDEX(Ranks!$1:$1048576,$A40,AA$1))","v":""},{"$f":"IF($A40=\"N/A\",Ref!$B$36,INDEX(Ranks!$1:$1048576,$A40,AB$1))","v":""},{"$f":"IF($A40=\"N/A\",Ref!$B$36,INDEX(Ranks!$1:$1048576,$A40,AC$1))","v":""},{"$f":"IF($A40=\"N/A\",Ref!$B$36,INDEX(Ranks!$1:$1048576,$A40,AD$1))","v":""},{"$f":"IF($A40=\"N/A\",Ref!$B$36,INDEX(Ranks!$1:$1048576,$A40,AE$1))","v":""},{"$f":"IF($A40=\"N/A\",Ref!$B$36,INDEX(Ranks!$1:$1048576,$A40,AF$1))","v":""},{"$f":"IF($A40=\"N/A\",Ref!$B$36,INDEX(Ranks!$1:$1048576,$A40,AG$1))","v":""},{"$f":"IF($A40=\"N/A\",Ref!$B$36,INDEX(Ranks!$1:$1048576,$A40,AH$1))","v":""},{"$f":"IF($A40=\"N/A\",Ref!$B$36,INDEX(Ranks!$1:$1048576,$A40,AI$1))","v":""},{"$f":"IF($A40=\"N/A\",Ref!$B$36,INDEX(Ranks!$1:$1048576,$A40,AJ$1))","v":""},{"$f":"IF($A40=\"N/A\",Ref!$B$36,INDEX(Ranks!$1:$1048576,$A40,AK$1))","v":""},{"$f":"IF($A40=\"N/A\",Ref!$B$36,INDEX(Ranks!$1:$1048576,$A40,AL$1))","v":""},{"$f":"IF($A40=\"N/A\",Ref!$B$36,INDEX(Ranks!$1:$1048576,$A40,AM$1))","v":""},{"$f":"IF($A40=\"N/A\",Ref!$B$36,INDEX(Ranks!$1:$1048576,$A40,AN$1))","v":""},{"$f":"IF($A40=\"N/A\",Ref!$B$36,INDEX(Ranks!$1:$1048576,$A40,AO$1))","v":""},{"$f":"IF($A40=\"N/A\",Ref!$B$36,INDEX(Ranks!$1:$1048576,$A40,AP$1))","v":""},{"$f":"IF($A40=\"N/A\",Ref!$B$36,INDEX(Ranks!$1:$1048576,$A40,AQ$1))","v":""},{"$f":"IF($A40=\"N/A\",Ref!$B$36,INDEX(Ranks!$1:$1048576,$A40,AR$1))","v":""},{"$f":"IF($A40=\"N/A\",Ref!$B$36,INDEX(Ranks!$1:$1048576,$A40,AS$1))","v":""},{"$f":"IF($A40=\"N/A\",Ref!$B$36,INDEX(Ranks!$1:$1048576,$A40,AT$1))","v":""},{"$f":"IF($A40=\"N/A\",Ref!$B$36,INDEX(Ranks!$1:$1048576,$A40,AU$1))","v":""},{"$f":"IF($A40=\"N/A\",Ref!$B$36,INDEX(Ranks!$1:$1048576,$A40,AV$1))","v":""},{"$f":"IF($A40=\"N/A\",Ref!$B$36,INDEX(Ranks!$1:$1048576,$A40,AW$1))","v":""},{"$f":"IF($A40=\"N/A\",Ref!$B$36,INDEX(Ranks!$1:$1048576,$A40,AX$1))","v":""},{"$f":"IF($A40=\"N/A\",Ref!$B$36,INDEX(Ranks!$1:$1048576,$A40,AY$1))","v":""},{"$f":"IF($A40=\"N/A\",Ref!$B$36,INDEX(Ranks!$1:$1048576,$A40,AZ$1))","v":""},{"$f":"IF($A40=\"N/A\",Ref!$B$36,INDEX(Ranks!$1:$1048576,$A40,BA$1))","v":""},{"$f":"IF($A40=\"N/A\",Ref!$B$36,INDEX(Ranks!$1:$1048576,$A40,BB$1))","v":""},{"$f":"IF($A40=\"N/A\",Ref!$B$36,INDEX(Ranks!$1:$1048576,$A40,BC$1))","v":""},{"$f":"IF($A40=\"N/A\",Ref!$B$36,INDEX(Ranks!$1:$1048576,$A40,BD$1))","v":""},{"$f":"IF($A40=\"N/A\",Ref!$B$36,INDEX(Ranks!$1:$1048576,$A40,BE$1))","v":""},{"$f":"IF($A40=\"N/A\",Ref!$B$36,INDEX(Ranks!$1:$1048576,$A40,BF$1))","v":""},{"$f":"IF($A40=\"N/A\",Ref!$B$36,INDEX(Ranks!$1:$1048576,$A40,BG$1))","v":""},{"$f":"IF($A40=\"N/A\",Ref!$B$36,INDEX(Ranks!$1:$1048576,$A40,BH$1))","v":""},{"$f":"IF($A40=\"N/A\",Ref!$B$36,INDEX(Ranks!$1:$1048576,$A40,BI$1))","v":""},{"$f":"IF($A40=\"N/A\",Ref!$B$36,INDEX(Ranks!$1:$1048576,$A40,BJ$1))","v":""},{"$f":"IF($A40=\"N/A\",Ref!$B$36,INDEX(Ranks!$1:$1048576,$A40,BK$1))","v":""},{"$f":"IF($A40=\"N/A\",Ref!$B$36,INDEX(Ranks!$1:$1048576,$A40,BL$1))","v":""},{"$f":"IF($A40=\"N/A\",Ref!$B$36,INDEX(Ranks!$1:$1048576,$A40,BM$1))","v":""},{"$f":"IF($A40=\"N/A\",Ref!$B$36,INDEX(Ranks!$1:$1048576,$A40,BN$1))","v":""},{"$f":"IF($A40=\"N/A\",Ref!$B$36,INDEX(Ranks!$1:$1048576,$A40,BO$1))","v":""},{"$f":"IF($A40=\"N/A\",Ref!$B$36,INDEX(Ranks!$1:$1048576,$A40,BP$1))","v":""},{"$f":"IF($A40=\"N/A\",Ref!$B$36,INDEX(Ranks!$1:$1048576,$A40,BQ$1))","v":""},{"$f":"IF($A40=\"N/A\",Ref!$B$36,INDEX(Ranks!$1:$1048576,$A40,BR$1))","v":""},{"$f":"IF($A40=\"N/A\",Ref!$B$36,INDEX(Ranks!$1:$1048576,$A40,BS$1))","v":""},{"$f":"IF($A40=\"N/A\",Ref!$B$36,INDEX(Ranks!$1:$1048576,$A40,BT$1))","v":""},{"$f":"IF($A40=\"N/A\",Ref!$B$36,INDEX(Ranks!$1:$1048576,$A40,BU$1))","v":""},{"$f":"IF($A40=\"N/A\",Ref!$B$36,INDEX(Ranks!$1:$1048576,$A40,BV$1))","v":""},{"$f":"IF($A40=\"N/A\",Ref!$B$36,INDEX(Ranks!$1:$1048576,$A40,BW$1))","v":""},{"$f":"IF($A40=\"N/A\",Ref!$B$36,INDEX(Ranks!$1:$1048576,$A40,BX$1))","v":""},{"$f":"IF($A40=\"N/A\",Ref!$B$36,INDEX(Ranks!$1:$1048576,$A40,BY$1))","v":""},{"$f":"IF($A40=\"N/A\",Ref!$B$36,INDEX(Ranks!$1:$1048576,$A40,BZ$1))","v":""},{"$f":"IF($A40=\"N/A\",Ref!$B$36,INDEX(Ranks!$1:$1048576,$A40,CA$1))","v":""},{"$f":"IF($A40=\"N/A\",Ref!$B$36,INDEX(Ranks!$1:$1048576,$A40,CB$1))","v":""},{"$f":"IF($A40=\"N/A\",Ref!$B$36,INDEX(Ranks!$1:$1048576,$A40,CC$1))","v":""},{"$f":"IF($A40=\"N/A\",Ref!$B$36,INDEX(Ranks!$1:$1048576,$A40,CD$1))","v":""},{"$f":"IF($A40=\"N/A\",Ref!$B$36,INDEX(Ranks!$1:$1048576,$A40,CE$1))","v":""},{"$f":"IF($A40=\"N/A\",Ref!$B$36,INDEX(Ranks!$1:$1048576,$A40,CF$1))","v":""},{"$f":"IF($A40=\"N/A\",Ref!$B$36,INDEX(Ranks!$1:$1048576,$A40,CG$1))","v":""},{"$f":"IF($A40=\"N/A\",Ref!$B$36,INDEX(Ranks!$1:$1048576,$A40,CH$1))","v":""},{"$f":"IF($A40=\"N/A\",Ref!$B$36,INDEX(Ranks!$1:$1048576,$A40,CI$1))","v":""},{"$f":"IF($A40=\"N/A\",Ref!$B$36,INDEX(Ranks!$1:$1048576,$A40,CJ$1))","v":""},{"$f":"IF($A40=\"N/A\",Ref!$B$36,INDEX(Ranks!$1:$1048576,$A40,CK$1))","v":""},{"$f":"IF($A40=\"N/A\",Ref!$B$36,INDEX(Ranks!$1:$1048576,$A40,CL$1))","v":""},{"$f":"IF($A40=\"N/A\",Ref!$B$36,INDEX(Ranks!$1:$1048576,$A40,CM$1))","v":""},{"$f":"IF($A40=\"N/A\",Ref!$B$36,INDEX(Ranks!$1:$1048576,$A40,CN$1))","v":""},{"$f":"IF($A40=\"N/A\",Ref!$B$36,INDEX(Ranks!$1:$1048576,$A40,CO$1))","v":""},{"$f":"IF($A40=\"N/A\",Ref!$B$36,INDEX(Ranks!$1:$1048576,$A40,CP$1))","v":""},{"$f":"IF($A40=\"N/A\",Ref!$B$36,INDEX(Ranks!$1:$1048576,$A40,CQ$1))","v":""},{"$f":"IF($A40=\"N/A\",Ref!$B$36,INDEX(Ranks!$1:$1048576,$A40,CR$1))","v":""},{"$f":"IF($A40=\"N/A\",Ref!$B$36,INDEX(Ranks!$1:$1048576,$A40,CS$1))","v":""},{"$f":"IF($A40=\"N/A\",Ref!$B$36,INDEX(Ranks!$1:$1048576,$A40,CT$1))","v":""},{"$f":"IF($A40=\"N/A\",Ref!$B$36,INDEX(Ranks!$1:$1048576,$A40,CU$1))","v":""},{"$f":"IF($A40=\"N/A\",Ref!$B$36,INDEX(Ranks!$1:$1048576,$A40,CV$1))","v":""},{"$f":"IF($A40=\"N/A\",Ref!$B$36,INDEX(Ranks!$1:$1048576,$A40,CW$1))","v":""},{"$f":"IF($A40=\"N/A\",Ref!$B$36,INDEX(Ranks!$1:$1048576,$A40,CX$1))","v":""},{"$f":"IF($A40=\"N/A\",Ref!$B$36,INDEX(Ranks!$1:$1048576,$A40,CY$1))","v":""},{"$f":"IF($A40=\"N/A\",Ref!$B$36,INDEX(Ranks!$1:$1048576,$A40,CZ$1))","v":""},{"$f":"IF($A40=\"N/A\",Ref!$B$36,INDEX(Ranks!$1:$1048576,$A40,DA$1))","v":""},{"$f":"IF($A40=\"N/A\",Ref!$B$36,INDEX(Ranks!$1:$1048576,$A40,DB$1))","v":""},{"$f":"IF($A40=\"N/A\",Ref!$B$36,INDEX(Ranks!$1:$1048576,$A40,DC$1))","v":""},{"$f":"IF($A40=\"N/A\",Ref!$B$36,INDEX(Ranks!$1:$1048576,$A40,DD$1))","v":""},{"$f":"IF($A40=\"N/A\",Ref!$B$36,INDEX(Ranks!$1:$1048576,$A40,DE$1))","v":""},{"$f":"IF($A40=\"N/A\",Ref!$B$36,INDEX(Ranks!$1:$1048576,$A40,DF$1))","v":""},{"$f":"IF($A40=\"N/A\",Ref!$B$36,INDEX(Ranks!$1:$1048576,$A40,DG$1))","v":""},{"$f":"IF($A40=\"N/A\",Ref!$B$36,INDEX(Ranks!$1:$1048576,$A40,DH$1))","v":""},{"$f":"IF($A40=\"N/A\",Ref!$B$36,INDEX(Ranks!$1:$1048576,$A40,DI$1))","v":""},{"$f":"IF($A40=\"N/A\",Ref!$B$36,INDEX(Ranks!$1:$1048576,$A40,DJ$1))","v":""},{"$f":"IF($A40=\"N/A\",Ref!$B$36,INDEX(Ranks!$1:$1048576,$A40,DK$1))","v":""},{"$f":"IF($A40=\"N/A\",Ref!$B$36,INDEX(Ranks!$1:$1048576,$A40,DL$1))","v":""},{"$f":"IF($A40=\"N/A\",Ref!$B$36,INDEX(Ranks!$1:$1048576,$A40,DM$1))","v":""},{"$f":"IF($A40=\"N/A\",Ref!$B$36,INDEX(Ranks!$1:$1048576,$A40,DN$1))","v":""},{"$f":"IF($A40=\"N/A\",Ref!$B$36,INDEX(Ranks!$1:$1048576,$A40,DO$1))","v":""},{"$f":"IF($A40=\"N/A\",Ref!$B$36,INDEX(Ranks!$1:$1048576,$A40,DP$1))","v":""},{"$f":"IF($A40=\"N/A\",Ref!$B$36,INDEX(Ranks!$1:$1048576,$A40,DQ$1))","v":""},{"$f":"IF($A40=\"N/A\",Ref!$B$36,INDEX(Ranks!$1:$1048576,$A40,DR$1))","v":""},{"$f":"IF($A40=\"N/A\",Ref!$B$36,INDEX(Ranks!$1:$1048576,$A40,DS$1))","v":""},{"$f":"IF($A40=\"N/A\",Ref!$B$36,INDEX(Ranks!$1:$1048576,$A40,DT$1))","v":""},{"$f":"IF($A40=\"N/A\",Ref!$B$36,INDEX(Ranks!$1:$1048576,$A40,DU$1))","v":""},{"$f":"IF($A40=\"N/A\",Ref!$B$36,INDEX(Ranks!$1:$1048576,$A40,DV$1))","v":""},{"$f":"IF($A40=\"N/A\",Ref!$B$36,INDEX(Ranks!$1:$1048576,$A40,DW$1))","v":""},{"$f":"IF($A40=\"N/A\",Ref!$B$36,INDEX(Ranks!$1:$1048576,$A40,DX$1))","v":""},{"$f":"IF($A40=\"N/A\",Ref!$B$36,INDEX(Ranks!$1:$1048576,$A40,DY$1))","v":""},{"$f":"IF($A40=\"N/A\",Ref!$B$36,INDEX(Ranks!$1:$1048576,$A40,DZ$1))","v":""},{"$f":"IF($A40=\"N/A\",Ref!$B$36,INDEX(Ranks!$1:$1048576,$A40,EA$1))","v":""},{"$f":"IF($A40=\"N/A\",Ref!$B$36,INDEX(Ranks!$1:$1048576,$A40,EB$1))","v":""}]
[{"$f":"IFERROR(MATCH('Portfolio Page'!L41,Ranks!L:L,0),\"N/A\")","v":"N/A"},null,{"$f":"IF($A41=\"N/A\",\"\",INDEX(Ranks!$1:$1048576,$A41,C$1))","v":""},{"$f":"IF($A41=\"N/A\",Ref!$B$36,INDEX(Ranks!$1:$1048576,$A41,D$1))","v":""},{"$f":"IF($A41=\"N/A\",Ref!$B$36,INDEX(Ranks!$1:$1048576,$A41,E$1))","v":""},{"$f":"IF($A41=\"N/A\",\"\",INDEX(Ranks!$1:$1048576,$A41,F$1))","v":""},{"$f":"IF($A41=\"N/A\",\"\",INDEX(Ranks!$1:$1048576,$A41,G$1))","v":""},{"$f":"IF($A41=\"N/A\",\"\",INDEX(Ranks!$1:$1048576,$A41,H$1))","v":""},{"$f":"IF($A41=\"N/A\",\"\",INDEX(Ranks!$1:$1048576,$A41,I$1))","v":""},{"$f":"IF($A41=\"N/A\",\"\",INDEX(Ranks!$1:$1048576,$A41,J$1))","v":""},{"$f":"IF($A41=\"N/A\",\"\",INDEX(Ranks!$1:$1048576,$A41,K$1))","v":""},null,{"$f":"IF($A41=\"N/A\",Ref!$B$36,INDEX(Ranks!$1:$1048576,$A41,M$1))","v":""},{"$f":"IF($A41=\"N/A\",Ref!$B$36,INDEX(Ranks!$1:$1048576,$A41,N$1))","v":""},{"$f":"IF($A41=\"N/A\",Ref!$B$36,INDEX(Ranks!$1:$1048576,$A41,O$1))","v":""},{"$f":"IF($A41=\"N/A\",Ref!$B$36,INDEX(Ranks!$1:$1048576,$A41,P$1))","v":""},{"$f":"IF($A41=\"N/A\",Ref!$B$36,INDEX(Ranks!$1:$1048576,$A41,Q$1))","v":""},{"$f":"IF($A41=\"N/A\",Ref!$B$36,INDEX(Ranks!$1:$1048576,$A41,R$1))","v":""},{"$f":"IF($A41=\"N/A\",Ref!$B$36,INDEX(Ranks!$1:$1048576,$A41,S$1))","v":""},{"$f":"IF($A41=\"N/A\",Ref!$B$36,INDEX(Ranks!$1:$1048576,$A41,T$1))","v":""},{"$f":"IF($A41=\"N/A\",Ref!$B$36,INDEX(Ranks!$1:$1048576,$A41,U$1))","v":""},{"$f":"IF($A41=\"N/A\",Ref!$B$36,INDEX(Ranks!$1:$1048576,$A41,V$1))","v":""},{"$f":"IF($A41=\"N/A\",Ref!$B$36,INDEX(Ranks!$1:$1048576,$A41,W$1))","v":""},{"$f":"IF($A41=\"N/A\",Ref!$B$36,INDEX(Ranks!$1:$1048576,$A41,X$1))","v":""},{"$f":"IF($A41=\"N/A\",Ref!$B$36,INDEX(Ranks!$1:$1048576,$A41,Y$1))","v":""},{"$f":"IF($A41=\"N/A\",Ref!$B$36,INDEX(Ranks!$1:$1048576,$A41,Z$1))","v":""},{"$f":"IF($A41=\"N/A\",Ref!$B$36,INDEX(Ranks!$1:$1048576,$A41,AA$1))","v":""},{"$f":"IF($A41=\"N/A\",Ref!$B$36,INDEX(Ranks!$1:$1048576,$A41,AB$1))","v":""},{"$f":"IF($A41=\"N/A\",Ref!$B$36,INDEX(Ranks!$1:$1048576,$A41,AC$1))","v":""},{"$f":"IF($A41=\"N/A\",Ref!$B$36,INDEX(Ranks!$1:$1048576,$A41,AD$1))","v":""},{"$f":"IF($A41=\"N/A\",Ref!$B$36,INDEX(Ranks!$1:$1048576,$A41,AE$1))","v":""},{"$f":"IF($A41=\"N/A\",Ref!$B$36,INDEX(Ranks!$1:$1048576,$A41,AF$1))","v":""},{"$f":"IF($A41=\"N/A\",Ref!$B$36,INDEX(Ranks!$1:$1048576,$A41,AG$1))","v":""},{"$f":"IF($A41=\"N/A\",Ref!$B$36,INDEX(Ranks!$1:$1048576,$A41,AH$1))","v":""},{"$f":"IF($A41=\"N/A\",Ref!$B$36,INDEX(Ranks!$1:$1048576,$A41,AI$1))","v":""},{"$f":"IF($A41=\"N/A\",Ref!$B$36,INDEX(Ranks!$1:$1048576,$A41,AJ$1))","v":""},{"$f":"IF($A41=\"N/A\",Ref!$B$36,INDEX(Ranks!$1:$1048576,$A41,AK$1))","v":""},{"$f":"IF($A41=\"N/A\",Ref!$B$36,INDEX(Ranks!$1:$1048576,$A41,AL$1))","v":""},{"$f":"IF($A41=\"N/A\",Ref!$B$36,INDEX(Ranks!$1:$1048576,$A41,AM$1))","v":""},{"$f":"IF($A41=\"N/A\",Ref!$B$36,INDEX(Ranks!$1:$1048576,$A41,AN$1))","v":""},{"$f":"IF($A41=\"N/A\",Ref!$B$36,INDEX(Ranks!$1:$1048576,$A41,AO$1))","v":""},{"$f":"IF($A41=\"N/A\",Ref!$B$36,INDEX(Ranks!$1:$1048576,$A41,AP$1))","v":""},{"$f":"IF($A41=\"N/A\",Ref!$B$36,INDEX(Ranks!$1:$1048576,$A41,AQ$1))","v":""},{"$f":"IF($A41=\"N/A\",Ref!$B$36,INDEX(Ranks!$1:$1048576,$A41,AR$1))","v":""},{"$f":"IF($A41=\"N/A\",Ref!$B$36,INDEX(Ranks!$1:$1048576,$A41,AS$1))","v":""},{"$f":"IF($A41=\"N/A\",Ref!$B$36,INDEX(Ranks!$1:$1048576,$A41,AT$1))","v":""},{"$f":"IF($A41=\"N/A\",Ref!$B$36,INDEX(Ranks!$1:$1048576,$A41,AU$1))","v":""},{"$f":"IF($A41=\"N/A\",Ref!$B$36,INDEX(Ranks!$1:$1048576,$A41,AV$1))","v":""},{"$f":"IF($A41=\"N/A\",Ref!$B$36,INDEX(Ranks!$1:$1048576,$A41,AW$1))","v":""},{"$f":"IF($A41=\"N/A\",Ref!$B$36,INDEX(Ranks!$1:$1048576,$A41,AX$1))","v":""},{"$f":"IF($A41=\"N/A\",Ref!$B$36,INDEX(Ranks!$1:$1048576,$A41,AY$1))","v":""},{"$f":"IF($A41=\"N/A\",Ref!$B$36,INDEX(Ranks!$1:$1048576,$A41,AZ$1))","v":""},{"$f":"IF($A41=\"N/A\",Ref!$B$36,INDEX(Ranks!$1:$1048576,$A41,BA$1))","v":""},{"$f":"IF($A41=\"N/A\",Ref!$B$36,INDEX(Ranks!$1:$1048576,$A41,BB$1))","v":""},{"$f":"IF($A41=\"N/A\",Ref!$B$36,INDEX(Ranks!$1:$1048576,$A41,BC$1))","v":""},{"$f":"IF($A41=\"N/A\",Ref!$B$36,INDEX(Ranks!$1:$1048576,$A41,BD$1))","v":""},{"$f":"IF($A41=\"N/A\",Ref!$B$36,INDEX(Ranks!$1:$1048576,$A41,BE$1))","v":""},{"$f":"IF($A41=\"N/A\",Ref!$B$36,INDEX(Ranks!$1:$1048576,$A41,BF$1))","v":""},{"$f":"IF($A41=\"N/A\",Ref!$B$36,INDEX(Ranks!$1:$1048576,$A41,BG$1))","v":""},{"$f":"IF($A41=\"N/A\",Ref!$B$36,INDEX(Ranks!$1:$1048576,$A41,BH$1))","v":""},{"$f":"IF($A41=\"N/A\",Ref!$B$36,INDEX(Ranks!$1:$1048576,$A41,BI$1))","v":""},{"$f":"IF($A41=\"N/A\",Ref!$B$36,INDEX(Ranks!$1:$1048576,$A41,BJ$1))","v":""},{"$f":"IF($A41=\"N/A\",Ref!$B$36,INDEX(Ranks!$1:$1048576,$A41,BK$1))","v":""},{"$f":"IF($A41=\"N/A\",Ref!$B$36,INDEX(Ranks!$1:$1048576,$A41,BL$1))","v":""},{"$f":"IF($A41=\"N/A\",Ref!$B$36,INDEX(Ranks!$1:$1048576,$A41,BM$1))","v":""},{"$f":"IF($A41=\"N/A\",Ref!$B$36,INDEX(Ranks!$1:$1048576,$A41,BN$1))","v":""},{"$f":"IF($A41=\"N/A\",Ref!$B$36,INDEX(Ranks!$1:$1048576,$A41,BO$1))","v":""},{"$f":"IF($A41=\"N/A\",Ref!$B$36,INDEX(Ranks!$1:$1048576,$A41,BP$1))","v":""},{"$f":"IF($A41=\"N/A\",Ref!$B$36,INDEX(Ranks!$1:$1048576,$A41,BQ$1))","v":""},{"$f":"IF($A41=\"N/A\",Ref!$B$36,INDEX(Ranks!$1:$1048576,$A41,BR$1))","v":""},{"$f":"IF($A41=\"N/A\",Ref!$B$36,INDEX(Ranks!$1:$1048576,$A41,BS$1))","v":""},{"$f":"IF($A41=\"N/A\",Ref!$B$36,INDEX(Ranks!$1:$1048576,$A41,BT$1))","v":""},{"$f":"IF($A41=\"N/A\",Ref!$B$36,INDEX(Ranks!$1:$1048576,$A41,BU$1))","v":""},{"$f":"IF($A41=\"N/A\",Ref!$B$36,INDEX(Ranks!$1:$1048576,$A41,BV$1))","v":""},{"$f":"IF($A41=\"N/A\",Ref!$B$36,INDEX(Ranks!$1:$1048576,$A41,BW$1))","v":""},{"$f":"IF($A41=\"N/A\",Ref!$B$36,INDEX(Ranks!$1:$1048576,$A41,BX$1))","v":""},{"$f":"IF($A41=\"N/A\",Ref!$B$36,INDEX(Ranks!$1:$1048576,$A41,BY$1))","v":""},{"$f":"IF($A41=\"N/A\",Ref!$B$36,INDEX(Ranks!$1:$1048576,$A41,BZ$1))","v":""},{"$f":"IF($A41=\"N/A\",Ref!$B$36,INDEX(Ranks!$1:$1048576,$A41,CA$1))","v":""},{"$f":"IF($A41=\"N/A\",Ref!$B$36,INDEX(Ranks!$1:$1048576,$A41,CB$1))","v":""},{"$f":"IF($A41=\"N/A\",Ref!$B$36,INDEX(Ranks!$1:$1048576,$A41,CC$1))","v":""},{"$f":"IF($A41=\"N/A\",Ref!$B$36,INDEX(Ranks!$1:$1048576,$A41,CD$1))","v":""},{"$f":"IF($A41=\"N/A\",Ref!$B$36,INDEX(Ranks!$1:$1048576,$A41,CE$1))","v":""},{"$f":"IF($A41=\"N/A\",Ref!$B$36,INDEX(Ranks!$1:$1048576,$A41,CF$1))","v":""},{"$f":"IF($A41=\"N/A\",Ref!$B$36,INDEX(Ranks!$1:$1048576,$A41,CG$1))","v":""},{"$f":"IF($A41=\"N/A\",Ref!$B$36,INDEX(Ranks!$1:$1048576,$A41,CH$1))","v":""},{"$f":"IF($A41=\"N/A\",Ref!$B$36,INDEX(Ranks!$1:$1048576,$A41,CI$1))","v":""},{"$f":"IF($A41=\"N/A\",Ref!$B$36,INDEX(Ranks!$1:$1048576,$A41,CJ$1))","v":""},{"$f":"IF($A41=\"N/A\",Ref!$B$36,INDEX(Ranks!$1:$1048576,$A41,CK$1))","v":""},{"$f":"IF($A41=\"N/A\",Ref!$B$36,INDEX(Ranks!$1:$1048576,$A41,CL$1))","v":""},{"$f":"IF($A41=\"N/A\",Ref!$B$36,INDEX(Ranks!$1:$1048576,$A41,CM$1))","v":""},{"$f":"IF($A41=\"N/A\",Ref!$B$36,INDEX(Ranks!$1:$1048576,$A41,CN$1))","v":""},{"$f":"IF($A41=\"N/A\",Ref!$B$36,INDEX(Ranks!$1:$1048576,$A41,CO$1))","v":""},{"$f":"IF($A41=\"N/A\",Ref!$B$36,INDEX(Ranks!$1:$1048576,$A41,CP$1))","v":""},{"$f":"IF($A41=\"N/A\",Ref!$B$36,INDEX(Ranks!$1:$1048576,$A41,CQ$1))","v":""},{"$f":"IF($A41=\"N/A\",Ref!$B$36,INDEX(Ranks!$1:$1048576,$A41,CR$1))","v":""},{"$f":"IF($A41=\"N/A\",Ref!$B$36,INDEX(Ranks!$1:$1048576,$A41,CS$1))","v":""},{"$f":"IF($A41=\"N/A\",Ref!$B$36,INDEX(Ranks!$1:$1048576,$A41,CT$1))","v":""},{"$f":"IF($A41=\"N/A\",Ref!$B$36,INDEX(Ranks!$1:$1048576,$A41,CU$1))","v":""},{"$f":"IF($A41=\"N/A\",Ref!$B$36,INDEX(Ranks!$1:$1048576,$A41,CV$1))","v":""},{"$f":"IF($A41=\"N/A\",Ref!$B$36,INDEX(Ranks!$1:$1048576,$A41,CW$1))","v":""},{"$f":"IF($A41=\"N/A\",Ref!$B$36,INDEX(Ranks!$1:$1048576,$A41,CX$1))","v":""},{"$f":"IF($A41=\"N/A\",Ref!$B$36,INDEX(Ranks!$1:$1048576,$A41,CY$1))","v":""},{"$f":"IF($A41=\"N/A\",Ref!$B$36,INDEX(Ranks!$1:$1048576,$A41,CZ$1))","v":""},{"$f":"IF($A41=\"N/A\",Ref!$B$36,INDEX(Ranks!$1:$1048576,$A41,DA$1))","v":""},{"$f":"IF($A41=\"N/A\",Ref!$B$36,INDEX(Ranks!$1:$1048576,$A41,DB$1))","v":""},{"$f":"IF($A41=\"N/A\",Ref!$B$36,INDEX(Ranks!$1:$1048576,$A41,DC$1))","v":""},{"$f":"IF($A41=\"N/A\",Ref!$B$36,INDEX(Ranks!$1:$1048576,$A41,DD$1))","v":""},{"$f":"IF($A41=\"N/A\",Ref!$B$36,INDEX(Ranks!$1:$1048576,$A41,DE$1))","v":""},{"$f":"IF($A41=\"N/A\",Ref!$B$36,INDEX(Ranks!$1:$1048576,$A41,DF$1))","v":""},{"$f":"IF($A41=\"N/A\",Ref!$B$36,INDEX(Ranks!$1:$1048576,$A41,DG$1))","v":""},{"$f":"IF($A41=\"N/A\",Ref!$B$36,INDEX(Ranks!$1:$1048576,$A41,DH$1))","v":""},{"$f":"IF($A41=\"N/A\",Ref!$B$36,INDEX(Ranks!$1:$1048576,$A41,DI$1))","v":""},{"$f":"IF($A41=\"N/A\",Ref!$B$36,INDEX(Ranks!$1:$1048576,$A41,DJ$1))","v":""},{"$f":"IF($A41=\"N/A\",Ref!$B$36,INDEX(Ranks!$1:$1048576,$A41,DK$1))","v":""},{"$f":"IF($A41=\"N/A\",Ref!$B$36,INDEX(Ranks!$1:$1048576,$A41,DL$1))","v":""},{"$f":"IF($A41=\"N/A\",Ref!$B$36,INDEX(Ranks!$1:$1048576,$A41,DM$1))","v":""},{"$f":"IF($A41=\"N/A\",Ref!$B$36,INDEX(Ranks!$1:$1048576,$A41,DN$1))","v":""},{"$f":"IF($A41=\"N/A\",Ref!$B$36,INDEX(Ranks!$1:$1048576,$A41,DO$1))","v":""},{"$f":"IF($A41=\"N/A\",Ref!$B$36,INDEX(Ranks!$1:$1048576,$A41,DP$1))","v":""},{"$f":"IF($A41=\"N/A\",Ref!$B$36,INDEX(Ranks!$1:$1048576,$A41,DQ$1))","v":""},{"$f":"IF($A41=\"N/A\",Ref!$B$36,INDEX(Ranks!$1:$1048576,$A41,DR$1))","v":""},{"$f":"IF($A41=\"N/A\",Ref!$B$36,INDEX(Ranks!$1:$1048576,$A41,DS$1))","v":""},{"$f":"IF($A41=\"N/A\",Ref!$B$36,INDEX(Ranks!$1:$1048576,$A41,DT$1))","v":""},{"$f":"IF($A41=\"N/A\",Ref!$B$36,INDEX(Ranks!$1:$1048576,$A41,DU$1))","v":""},{"$f":"IF($A41=\"N/A\",Ref!$B$36,INDEX(Ranks!$1:$1048576,$A41,DV$1))","v":""},{"$f":"IF($A41=\"N/A\",Ref!$B$36,INDEX(Ranks!$1:$1048576,$A41,DW$1))","v":""},{"$f":"IF($A41=\"N/A\",Ref!$B$36,INDEX(Ranks!$1:$1048576,$A41,DX$1))","v":""},{"$f":"IF($A41=\"N/A\",Ref!$B$36,INDEX(Ranks!$1:$1048576,$A41,DY$1))","v":""},{"$f":"IF($A41=\"N/A\",Ref!$B$36,INDEX(Ranks!$1:$1048576,$A41,DZ$1))","v":""},{"$f":"IF($A41=\"N/A\",Ref!$B$36,INDEX(Ranks!$1:$1048576,$A41,EA$1))","v":""},{"$f":"IF($A41=\"N/A\",Ref!$B$36,INDEX(Ranks!$1:$1048576,$A41,EB$1))","v":""}]
[{"$f":"IFERROR(MATCH('Portfolio Page'!L42,Ranks!L:L,0),\"N/A\")","v":"N/A"},null,{"$f":"IF($A42=\"N/A\",\"\",INDEX(Ranks!$1:$1048576,$A42,C$1))","v":""},{"$f":"IF($A42=\"N/A\",Ref!$B$36,INDEX(Ranks!$1:$1048576,$A42,D$1))","v":""},{"$f":"IF($A42=\"N/A\",Ref!$B$36,INDEX(Ranks!$1:$1048576,$A42,E$1))","v":""},{"$f":"IF($A42=\"N/A\",\"\",INDEX(Ranks!$1:$1048576,$A42,F$1))","v":""},{"$f":"IF($A42=\"N/A\",\"\",INDEX(Ranks!$1:$1048576,$A42,G$1))","v":""},{"$f":"IF($A42=\"N/A\",\"\",INDEX(Ranks!$1:$1048576,$A42,H$1))","v":""},{"$f":"IF($A42=\"N/A\",\"\",INDEX(Ranks!$1:$1048576,$A42,I$1))","v":""},{"$f":"IF($A42=\"N/A\",\"\",INDEX(Ranks!$1:$1048576,$A42,J$1))","v":""},{"$f":"IF($A42=\"N/A\",\"\",INDEX(Ranks!$1:$1048576,$A42,K$1))","v":""},null,{"$f":"IF($A42=\"N/A\",Ref!$B$36,INDEX(Ranks!$1:$1048576,$A42,M$1))","v":""},{"$f":"IF($A42=\"N/A\",Ref!$B$36,INDEX(Ranks!$1:$1048576,$A42,N$1))","v":""},{"$f":"IF($A42=\"N/A\",Ref!$B$36,INDEX(Ranks!$1:$1048576,$A42,O$1))","v":""},{"$f":"IF($A42=\"N/A\",Ref!$B$36,INDEX(Ranks!$1:$1048576,$A42,P$1))","v":""},{"$f":"IF($A42=\"N/A\",Ref!$B$36,INDEX(Ranks!$1:$1048576,$A42,Q$1))","v":""},{"$f":"IF($A42=\"N/A\",Ref!$B$36,INDEX(Ranks!$1:$1048576,$A42,R$1))","v":""},{"$f":"IF($A42=\"N/A\",Ref!$B$36,INDEX(Ranks!$1:$1048576,$A42,S$1))","v":""},{"$f":"IF($A42=\"N/A\",Ref!$B$36,INDEX(Ranks!$1:$1048576,$A42,T$1))","v":""},{"$f":"IF($A42=\"N/A\",Ref!$B$36,INDEX(Ranks!$1:$1048576,$A42,U$1))","v":""},{"$f":"IF($A42=\"N/A\",Ref!$B$36,INDEX(Ranks!$1:$1048576,$A42,V$1))","v":""},{"$f":"IF($A42=\"N/A\",Ref!$B$36,INDEX(Ranks!$1:$1048576,$A42,W$1))","v":""},{"$f":"IF($A42=\"N/A\",Ref!$B$36,INDEX(Ranks!$1:$1048576,$A42,X$1))","v":""},{"$f":"IF($A42=\"N/A\",Ref!$B$36,INDEX(Ranks!$1:$1048576,$A42,Y$1))","v":""},{"$f":"IF($A42=\"N/A\",Ref!$B$36,INDEX(Ranks!$1:$1048576,$A42,Z$1))","v":""},{"$f":"IF($A42=\"N/A\",Ref!$B$36,INDEX(Ranks!$1:$1048576,$A42,AA$1))","v":""},{"$f":"IF($A42=\"N/A\",Ref!$B$36,INDEX(Ranks!$1:$1048576,$A42,AB$1))","v":""},{"$f":"IF($A42=\"N/A\",Ref!$B$36,INDEX(Ranks!$1:$1048576,$A42,AC$1))","v":""},{"$f":"IF($A42=\"N/A\",Ref!$B$36,INDEX(Ranks!$1:$1048576,$A42,AD$1))","v":""},{"$f":"IF($A42=\"N/A\",Ref!$B$36,INDEX(Ranks!$1:$1048576,$A42,AE$1))","v":""},{"$f":"IF($A42=\"N/A\",Ref!$B$36,INDEX(Ranks!$1:$1048576,$A42,AF$1))","v":""},{"$f":"IF($A42=\"N/A\",Ref!$B$36,INDEX(Ranks!$1:$1048576,$A42,AG$1))","v":""},{"$f":"IF($A42=\"N/A\",Ref!$B$36,INDEX(Ranks!$1:$1048576,$A42,AH$1))","v":""},{"$f":"IF($A42=\"N/A\",Ref!$B$36,INDEX(Ranks!$1:$1048576,$A42,AI$1))","v":""},{"$f":"IF($A42=\"N/A\",Ref!$B$36,INDEX(Ranks!$1:$1048576,$A42,AJ$1))","v":""},{"$f":"IF($A42=\"N/A\",Ref!$B$36,INDEX(Ranks!$1:$1048576,$A42,AK$1))","v":""},{"$f":"IF($A42=\"N/A\",Ref!$B$36,INDEX(Ranks!$1:$1048576,$A42,AL$1))","v":""},{"$f":"IF($A42=\"N/A\",Ref!$B$36,INDEX(Ranks!$1:$1048576,$A42,AM$1))","v":""},{"$f":"IF($A42=\"N/A\",Ref!$B$36,INDEX(Ranks!$1:$1048576,$A42,AN$1))","v":""},{"$f":"IF($A42=\"N/A\",Ref!$B$36,INDEX(Ranks!$1:$1048576,$A42,AO$1))","v":""},{"$f":"IF($A42=\"N/A\",Ref!$B$36,INDEX(Ranks!$1:$1048576,$A42,AP$1))","v":""},{"$f":"IF($A42=\"N/A\",Ref!$B$36,INDEX(Ranks!$1:$1048576,$A42,AQ$1))","v":""},{"$f":"IF($A42=\"N/A\",Ref!$B$36,INDEX(Ranks!$1:$1048576,$A42,AR$1))","v":""},{"$f":"IF($A42=\"N/A\",Ref!$B$36,INDEX(Ranks!$1:$1048576,$A42,AS$1))","v":""},{"$f":"IF($A42=\"N/A\",Ref!$B$36,INDEX(Ranks!$1:$1048576,$A42,AT$1))","v":""},{"$f":"IF($A42=\"N/A\",Ref!$B$36,INDEX(Ranks!$1:$1048576,$A42,AU$1))","v":""},{"$f":"IF($A42=\"N/A\",Ref!$B$36,INDEX(Ranks!$1:$1048576,$A42,AV$1))","v":""},{"$f":"IF($A42=\"N/A\",Ref!$B$36,INDEX(Ranks!$1:$1048576,$A42,AW$1))","v":""},{"$f":"IF($A42=\"N/A\",Ref!$B$36,INDEX(Ranks!$1:$1048576,$A42,AX$1))","v":""},{"$f":"IF($A42=\"N/A\",Ref!$B$36,INDEX(Ranks!$1:$1048576,$A42,AY$1))","v":""},{"$f":"IF($A42=\"N/A\",Ref!$B$36,INDEX(Ranks!$1:$1048576,$A42,AZ$1))","v":""},{"$f":"IF($A42=\"N/A\",Ref!$B$36,INDEX(Ranks!$1:$1048576,$A42,BA$1))","v":""},{"$f":"IF($A42=\"N/A\",Ref!$B$36,INDEX(Ranks!$1:$1048576,$A42,BB$1))","v":""},{"$f":"IF($A42=\"N/A\",Ref!$B$36,INDEX(Ranks!$1:$1048576,$A42,BC$1))","v":""},{"$f":"IF($A42=\"N/A\",Ref!$B$36,INDEX(Ranks!$1:$1048576,$A42,BD$1))","v":""},{"$f":"IF($A42=\"N/A\",Ref!$B$36,INDEX(Ranks!$1:$1048576,$A42,BE$1))","v":""},{"$f":"IF($A42=\"N/A\",Ref!$B$36,INDEX(Ranks!$1:$1048576,$A42,BF$1))","v":""},{"$f":"IF($A42=\"N/A\",Ref!$B$36,INDEX(Ranks!$1:$1048576,$A42,BG$1))","v":""},{"$f":"IF($A42=\"N/A\",Ref!$B$36,INDEX(Ranks!$1:$1048576,$A42,BH$1))","v":""},{"$f":"IF($A42=\"N/A\",Ref!$B$36,INDEX(Ranks!$1:$1048576,$A42,BI$1))","v":""},{"$f":"IF($A42=\"N/A\",Ref!$B$36,INDEX(Ranks!$1:$1048576,$A42,BJ$1))","v":""},{"$f":"IF($A42=\"N/A\",Ref!$B$36,INDEX(Ranks!$1:$1048576,$A42,BK$1))","v":""},{"$f":"IF($A42=\"N/A\",Ref!$B$36,INDEX(Ranks!$1:$1048576,$A42,BL$1))","v":""},{"$f":"IF($A42=\"N/A\",Ref!$B$36,INDEX(Ranks!$1:$1048576,$A42,BM$1))","v":""},{"$f":"IF($A42=\"N/A\",Ref!$B$36,INDEX(Ranks!$1:$1048576,$A42,BN$1))","v":""},{"$f":"IF($A42=\"N/A\",Ref!$B$36,INDEX(Ranks!$1:$1048576,$A42,BO$1))","v":""},{"$f":"IF($A42=\"N/A\",Ref!$B$36,INDEX(Ranks!$1:$1048576,$A42,BP$1))","v":""},{"$f":"IF($A42=\"N/A\",Ref!$B$36,INDEX(Ranks!$1:$1048576,$A42,BQ$1))","v":""},{"$f":"IF($A42=\"N/A\",Ref!$B$36,INDEX(Ranks!$1:$1048576,$A42,BR$1))","v":""},{"$f":"IF($A42=\"N/A\",Ref!$B$36,INDEX(Ranks!$1:$1048576,$A42,BS$1))","v":""},{"$f":"IF($A42=\"N/A\",Ref!$B$36,INDEX(Ranks!$1:$1048576,$A42,BT$1))","v":""},{"$f":"IF($A42=\"N/A\",Ref!$B$36,INDEX(Ranks!$1:$1048576,$A42,BU$1))","v":""},{"$f":"IF($A42=\"N/A\",Ref!$B$36,INDEX(Ranks!$1:$1048576,$A42,BV$1))","v":""},{"$f":"IF($A42=\"N/A\",Ref!$B$36,INDEX(Ranks!$1:$1048576,$A42,BW$1))","v":""},{"$f":"IF($A42=\"N/A\",Ref!$B$36,INDEX(Ranks!$1:$1048576,$A42,BX$1))","v":""},{"$f":"IF($A42=\"N/A\",Ref!$B$36,INDEX(Ranks!$1:$1048576,$A42,BY$1))","v":""},{"$f":"IF($A42=\"N/A\",Ref!$B$36,INDEX(Ranks!$1:$1048576,$A42,BZ$1))","v":""},{"$f":"IF($A42=\"N/A\",Ref!$B$36,INDEX(Ranks!$1:$1048576,$A42,CA$1))","v":""},{"$f":"IF($A42=\"N/A\",Ref!$B$36,INDEX(Ranks!$1:$1048576,$A42,CB$1))","v":""},{"$f":"IF($A42=\"N/A\",Ref!$B$36,INDEX(Ranks!$1:$1048576,$A42,CC$1))","v":""},{"$f":"IF($A42=\"N/A\",Ref!$B$36,INDEX(Ranks!$1:$1048576,$A42,CD$1))","v":""},{"$f":"IF($A42=\"N/A\",Ref!$B$36,INDEX(Ranks!$1:$1048576,$A42,CE$1))","v":""},{"$f":"IF($A42=\"N/A\",Ref!$B$36,INDEX(Ranks!$1:$1048576,$A42,CF$1))","v":""},{"$f":"IF($A42=\"N/A\",Ref!$B$36,INDEX(Ranks!$1:$1048576,$A42,CG$1))","v":""},{"$f":"IF($A42=\"N/A\",Ref!$B$36,INDEX(Ranks!$1:$1048576,$A42,CH$1))","v":""},{"$f":"IF($A42=\"N/A\",Ref!$B$36,INDEX(Ranks!$1:$1048576,$A42,CI$1))","v":""},{"$f":"IF($A42=\"N/A\",Ref!$B$36,INDEX(Ranks!$1:$1048576,$A42,CJ$1))","v":""},{"$f":"IF($A42=\"N/A\",Ref!$B$36,INDEX(Ranks!$1:$1048576,$A42,CK$1))","v":""},{"$f":"IF($A42=\"N/A\",Ref!$B$36,INDEX(Ranks!$1:$1048576,$A42,CL$1))","v":""},{"$f":"IF($A42=\"N/A\",Ref!$B$36,INDEX(Ranks!$1:$1048576,$A42,CM$1))","v":""},{"$f":"IF($A42=\"N/A\",Ref!$B$36,INDEX(Ranks!$1:$1048576,$A42,CN$1))","v":""},{"$f":"IF($A42=\"N/A\",Ref!$B$36,INDEX(Ranks!$1:$1048576,$A42,CO$1))","v":""},{"$f":"IF($A42=\"N/A\",Ref!$B$36,INDEX(Ranks!$1:$1048576,$A42,CP$1))","v":""},{"$f":"IF($A42=\"N/A\",Ref!$B$36,INDEX(Ranks!$1:$1048576,$A42,CQ$1))","v":""},{"$f":"IF($A42=\"N/A\",Ref!$B$36,INDEX(Ranks!$1:$1048576,$A42,CR$1))","v":""},{"$f":"IF($A42=\"N/A\",Ref!$B$36,INDEX(Ranks!$1:$1048576,$A42,CS$1))","v":""},{"$f":"IF($A42=\"N/A\",Ref!$B$36,INDEX(Ranks!$1:$1048576,$A42,CT$1))","v":""},{"$f":"IF($A42=\"N/A\",Ref!$B$36,INDEX(Ranks!$1:$1048576,$A42,CU$1))","v":""},{"$f":"IF($A42=\"N/A\",Ref!$B$36,INDEX(Ranks!$1:$1048576,$A42,CV$1))","v":""},{"$f":"IF($A42=\"N/A\",Ref!$B$36,INDEX(Ranks!$1:$1048576,$A42,CW$1))","v":""},{"$f":"IF($A42=\"N/A\",Ref!$B$36,INDEX(Ranks!$1:$1048576,$A42,CX$1))","v":""},{"$f":"IF($A42=\"N/A\",Ref!$B$36,INDEX(Ranks!$1:$1048576,$A42,CY$1))","v":""},{"$f":"IF($A42=\"N/A\",Ref!$B$36,INDEX(Ranks!$1:$1048576,$A42,CZ$1))","v":""},{"$f":"IF($A42=\"N/A\",Ref!$B$36,INDEX(Ranks!$1:$1048576,$A42,DA$1))","v":""},{"$f":"IF($A42=\"N/A\",Ref!$B$36,INDEX(Ranks!$1:$1048576,$A42,DB$1))","v":""},{"$f":"IF($A42=\"N/A\",Ref!$B$36,INDEX(Ranks!$1:$1048576,$A42,DC$1))","v":""},{"$f":"IF($A42=\"N/A\",Ref!$B$36,INDEX(Ranks!$1:$1048576,$A42,DD$1))","v":""},{"$f":"IF($A42=\"N/A\",Ref!$B$36,INDEX(Ranks!$1:$1048576,$A42,DE$1))","v":""},{"$f":"IF($A42=\"N/A\",Ref!$B$36,INDEX(Ranks!$1:$1048576,$A42,DF$1))","v":""},{"$f":"IF($A42=\"N/A\",Ref!$B$36,INDEX(Ranks!$1:$1048576,$A42,DG$1))","v":""},{"$f":"IF($A42=\"N/A\",Ref!$B$36,INDEX(Ranks!$1:$1048576,$A42,DH$1))","v":""},{"$f":"IF($A42=\"N/A\",Ref!$B$36,INDEX(Ranks!$1:$1048576,$A42,DI$1))","v":""},{"$f":"IF($A42=\"N/A\",Ref!$B$36,INDEX(Ranks!$1:$1048576,$A42,DJ$1))","v":""},{"$f":"IF($A42=\"N/A\",Ref!$B$36,INDEX(Ranks!$1:$1048576,$A42,DK$1))","v":""},{"$f":"IF($A42=\"N/A\",Ref!$B$36,INDEX(Ranks!$1:$1048576,$A42,DL$1))","v":""},{"$f":"IF($A42=\"N/A\",Ref!$B$36,INDEX(Ranks!$1:$1048576,$A42,DM$1))","v":""},{"$f":"IF($A42=\"N/A\",Ref!$B$36,INDEX(Ranks!$1:$1048576,$A42,DN$1))","v":""},{"$f":"IF($A42=\"N/A\",Ref!$B$36,INDEX(Ranks!$1:$1048576,$A42,DO$1))","v":""},{"$f":"IF($A42=\"N/A\",Ref!$B$36,INDEX(Ranks!$1:$1048576,$A42,DP$1))","v":""},{"$f":"IF($A42=\"N/A\",Ref!$B$36,INDEX(Ranks!$1:$1048576,$A42,DQ$1))","v":""},{"$f":"IF($A42=\"N/A\",Ref!$B$36,INDEX(Ranks!$1:$1048576,$A42,DR$1))","v":""},{"$f":"IF($A42=\"N/A\",Ref!$B$36,INDEX(Ranks!$1:$1048576,$A42,DS$1))","v":""},{"$f":"IF($A42=\"N/A\",Ref!$B$36,INDEX(Ranks!$1:$1048576,$A42,DT$1))","v":""},{"$f":"IF($A42=\"N/A\",Ref!$B$36,INDEX(Ranks!$1:$1048576,$A42,DU$1))","v":""},{"$f":"IF($A42=\"N/A\",Ref!$B$36,INDEX(Ranks!$1:$1048576,$A42,DV$1))","v":""},{"$f":"IF($A42=\"N/A\",Ref!$B$36,INDEX(Ranks!$1:$1048576,$A42,DW$1))","v":""},{"$f":"IF($A42=\"N/A\",Ref!$B$36,INDEX(Ranks!$1:$1048576,$A42,DX$1))","v":""},{"$f":"IF($A42=\"N/A\",Ref!$B$36,INDEX(Ranks!$1:$1048576,$A42,DY$1))","v":""},{"$f":"IF($A42=\"N/A\",Ref!$B$36,INDEX(Ranks!$1:$1048576,$A42,DZ$1))","v":""},{"$f":"IF($A42=\"N/A\",Ref!$B$36,INDEX(Ranks!$1:$1048576,$A42,EA$1))","v":""},{"$f":"IF($A42=\"N/A\",Ref!$B$36,INDEX(Ranks!$1:$1048576,$A42,EB$1))","v":""}]
[{"$f":"IFERROR(MATCH('Portfolio Page'!L43,Ranks!L:L,0),\"N/A\")","v":"N/A"},null,{"$f":"IF($A43=\"N/A\",\"\",INDEX(Ranks!$1:$1048576,$A43,C$1))","v":""},{"$f":"IF($A43=\"N/A\",Ref!$B$36,INDEX(Ranks!$1:$1048576,$A43,D$1))","v":""},{"$f":"IF($A43=\"N/A\",Ref!$B$36,INDEX(Ranks!$1:$1048576,$A43,E$1))","v":""},{"$f":"IF($A43=\"N/A\",\"\",INDEX(Ranks!$1:$1048576,$A43,F$1))","v":""},{"$f":"IF($A43=\"N/A\",\"\",INDEX(Ranks!$1:$1048576,$A43,G$1))","v":""},{"$f":"IF($A43=\"N/A\",\"\",INDEX(Ranks!$1:$1048576,$A43,H$1))","v":""},{"$f":"IF($A43=\"N/A\",\"\",INDEX(Ranks!$1:$1048576,$A43,I$1))","v":""},{"$f":"IF($A43=\"N/A\",\"\",INDEX(Ranks!$1:$1048576,$A43,J$1))","v":""},{"$f":"IF($A43=\"N/A\",\"\",INDEX(Ranks!$1:$1048576,$A43,K$1))","v":""},null,{"$f":"IF($A43=\"N/A\",Ref!$B$36,INDEX(Ranks!$1:$1048576,$A43,M$1))","v":""},{"$f":"IF($A43=\"N/A\",Ref!$B$36,INDEX(Ranks!$1:$1048576,$A43,N$1))","v":""},{"$f":"IF($A43=\"N/A\",Ref!$B$36,INDEX(Ranks!$1:$1048576,$A43,O$1))","v":""},{"$f":"IF($A43=\"N/A\",Ref!$B$36,INDEX(Ranks!$1:$1048576,$A43,P$1))","v":""},{"$f":"IF($A43=\"N/A\",Ref!$B$36,INDEX(Ranks!$1:$1048576,$A43,Q$1))","v":""},{"$f":"IF($A43=\"N/A\",Ref!$B$36,INDEX(Ranks!$1:$1048576,$A43,R$1))","v":""},{"$f":"IF($A43=\"N/A\",Ref!$B$36,INDEX(Ranks!$1:$1048576,$A43,S$1))","v":""},{"$f":"IF($A43=\"N/A\",Ref!$B$36,INDEX(Ranks!$1:$1048576,$A43,T$1))","v":""},{"$f":"IF($A43=\"N/A\",Ref!$B$36,INDEX(Ranks!$1:$1048576,$A43,U$1))","v":""},{"$f":"IF($A43=\"N/A\",Ref!$B$36,INDEX(Ranks!$1:$1048576,$A43,V$1))","v":""},{"$f":"IF($A43=\"N/A\",Ref!$B$36,INDEX(Ranks!$1:$1048576,$A43,W$1))","v":""},{"$f":"IF($A43=\"N/A\",Ref!$B$36,INDEX(Ranks!$1:$1048576,$A43,X$1))","v":""},{"$f":"IF($A43=\"N/A\",Ref!$B$36,INDEX(Ranks!$1:$1048576,$A43,Y$1))","v":""},{"$f":"IF($A43=\"N/A\",Ref!$B$36,INDEX(Ranks!$1:$1048576,$A43,Z$1))","v":""},{"$f":"IF($A43=\"N/A\",Ref!$B$36,INDEX(Ranks!$1:$1048576,$A43,AA$1))","v":""},{"$f":"IF($A43=\"N/A\",Ref!$B$36,INDEX(Ranks!$1:$1048576,$A43,AB$1))","v":""},{"$f":"IF($A43=\"N/A\",Ref!$B$36,INDEX(Ranks!$1:$1048576,$A43,AC$1))","v":""},{"$f":"IF($A43=\"N/A\",Ref!$B$36,INDEX(Ranks!$1:$1048576,$A43,AD$1))","v":""},{"$f":"IF($A43=\"N/A\",Ref!$B$36,INDEX(Ranks!$1:$1048576,$A43,AE$1))","v":""},{"$f":"IF($A43=\"N/A\",Ref!$B$36,INDEX(Ranks!$1:$1048576,$A43,AF$1))","v":""},{"$f":"IF($A43=\"N/A\",Ref!$B$36,INDEX(Ranks!$1:$1048576,$A43,AG$1))","v":""},{"$f":"IF($A43=\"N/A\",Ref!$B$36,INDEX(Ranks!$1:$1048576,$A43,AH$1))","v":""},{"$f":"IF($A43=\"N/A\",Ref!$B$36,INDEX(Ranks!$1:$1048576,$A43,AI$1))","v":""},{"$f":"IF($A43=\"N/A\",Ref!$B$36,INDEX(Ranks!$1:$1048576,$A43,AJ$1))","v":""},{"$f":"IF($A43=\"N/A\",Ref!$B$36,INDEX(Ranks!$1:$1048576,$A43,AK$1))","v":""},{"$f":"IF($A43=\"N/A\",Ref!$B$36,INDEX(Ranks!$1:$1048576,$A43,AL$1))","v":""},{"$f":"IF($A43=\"N/A\",Ref!$B$36,INDEX(Ranks!$1:$1048576,$A43,AM$1))","v":""},{"$f":"IF($A43=\"N/A\",Ref!$B$36,INDEX(Ranks!$1:$1048576,$A43,AN$1))","v":""},{"$f":"IF($A43=\"N/A\",Ref!$B$36,INDEX(Ranks!$1:$1048576,$A43,AO$1))","v":""},{"$f":"IF($A43=\"N/A\",Ref!$B$36,INDEX(Ranks!$1:$1048576,$A43,AP$1))","v":""},{"$f":"IF($A43=\"N/A\",Ref!$B$36,INDEX(Ranks!$1:$1048576,$A43,AQ$1))","v":""},{"$f":"IF($A43=\"N/A\",Ref!$B$36,INDEX(Ranks!$1:$1048576,$A43,AR$1))","v":""},{"$f":"IF($A43=\"N/A\",Ref!$B$36,INDEX(Ranks!$1:$1048576,$A43,AS$1))","v":""},{"$f":"IF($A43=\"N/A\",Ref!$B$36,INDEX(Ranks!$1:$1048576,$A43,AT$1))","v":""},{"$f":"IF($A43=\"N/A\",Ref!$B$36,INDEX(Ranks!$1:$1048576,$A43,AU$1))","v":""},{"$f":"IF($A43=\"N/A\",Ref!$B$36,INDEX(Ranks!$1:$1048576,$A43,AV$1))","v":""},{"$f":"IF($A43=\"N/A\",Ref!$B$36,INDEX(Ranks!$1:$1048576,$A43,AW$1))","v":""},{"$f":"IF($A43=\"N/A\",Ref!$B$36,INDEX(Ranks!$1:$1048576,$A43,AX$1))","v":""},{"$f":"IF($A43=\"N/A\",Ref!$B$36,INDEX(Ranks!$1:$1048576,$A43,AY$1))","v":""},{"$f":"IF($A43=\"N/A\",Ref!$B$36,INDEX(Ranks!$1:$1048576,$A43,AZ$1))","v":""},{"$f":"IF($A43=\"N/A\",Ref!$B$36,INDEX(Ranks!$1:$1048576,$A43,BA$1))","v":""},{"$f":"IF($A43=\"N/A\",Ref!$B$36,INDEX(Ranks!$1:$1048576,$A43,BB$1))","v":""},{"$f":"IF($A43=\"N/A\",Ref!$B$36,INDEX(Ranks!$1:$1048576,$A43,BC$1))","v":""},{"$f":"IF($A43=\"N/A\",Ref!$B$36,INDEX(Ranks!$1:$1048576,$A43,BD$1))","v":""},{"$f":"IF($A43=\"N/A\",Ref!$B$36,INDEX(Ranks!$1:$1048576,$A43,BE$1))","v":""},{"$f":"IF($A43=\"N/A\",Ref!$B$36,INDEX(Ranks!$1:$1048576,$A43,BF$1))","v":""},{"$f":"IF($A43=\"N/A\",Ref!$B$36,INDEX(Ranks!$1:$1048576,$A43,BG$1))","v":""},{"$f":"IF($A43=\"N/A\",Ref!$B$36,INDEX(Ranks!$1:$1048576,$A43,BH$1))","v":""},{"$f":"IF($A43=\"N/A\",Ref!$B$36,INDEX(Ranks!$1:$1048576,$A43,BI$1))","v":""},{"$f":"IF($A43=\"N/A\",Ref!$B$36,INDEX(Ranks!$1:$1048576,$A43,BJ$1))","v":""},{"$f":"IF($A43=\"N/A\",Ref!$B$36,INDEX(Ranks!$1:$1048576,$A43,BK$1))","v":""},{"$f":"IF($A43=\"N/A\",Ref!$B$36,INDEX(Ranks!$1:$1048576,$A43,BL$1))","v":""},{"$f":"IF($A43=\"N/A\",Ref!$B$36,INDEX(Ranks!$1:$1048576,$A43,BM$1))","v":""},{"$f":"IF($A43=\"N/A\",Ref!$B$36,INDEX(Ranks!$1:$1048576,$A43,BN$1))","v":""},{"$f":"IF($A43=\"N/A\",Ref!$B$36,INDEX(Ranks!$1:$1048576,$A43,BO$1))","v":""},{"$f":"IF($A43=\"N/A\",Ref!$B$36,INDEX(Ranks!$1:$1048576,$A43,BP$1))","v":""},{"$f":"IF($A43=\"N/A\",Ref!$B$36,INDEX(Ranks!$1:$1048576,$A43,BQ$1))","v":""},{"$f":"IF($A43=\"N/A\",Ref!$B$36,INDEX(Ranks!$1:$1048576,$A43,BR$1))","v":""},{"$f":"IF($A43=\"N/A\",Ref!$B$36,INDEX(Ranks!$1:$1048576,$A43,BS$1))","v":""},{"$f":"IF($A43=\"N/A\",Ref!$B$36,INDEX(Ranks!$1:$1048576,$A43,BT$1))","v":""},{"$f":"IF($A43=\"N/A\",Ref!$B$36,INDEX(Ranks!$1:$1048576,$A43,BU$1))","v":""},{"$f":"IF($A43=\"N/A\",Ref!$B$36,INDEX(Ranks!$1:$1048576,$A43,BV$1))","v":""},{"$f":"IF($A43=\"N/A\",Ref!$B$36,INDEX(Ranks!$1:$1048576,$A43,BW$1))","v":""},{"$f":"IF($A43=\"N/A\",Ref!$B$36,INDEX(Ranks!$1:$1048576,$A43,BX$1))","v":""},{"$f":"IF($A43=\"N/A\",Ref!$B$36,INDEX(Ranks!$1:$1048576,$A43,BY$1))","v":""},{"$f":"IF($A43=\"N/A\",Ref!$B$36,INDEX(Ranks!$1:$1048576,$A43,BZ$1))","v":""},{"$f":"IF($A43=\"N/A\",Ref!$B$36,INDEX(Ranks!$1:$1048576,$A43,CA$1))","v":""},{"$f":"IF($A43=\"N/A\",Ref!$B$36,INDEX(Ranks!$1:$1048576,$A43,CB$1))","v":""},{"$f":"IF($A43=\"N/A\",Ref!$B$36,INDEX(Ranks!$1:$1048576,$A43,CC$1))","v":""},{"$f":"IF($A43=\"N/A\",Ref!$B$36,INDEX(Ranks!$1:$1048576,$A43,CD$1))","v":""},{"$f":"IF($A43=\"N/A\",Ref!$B$36,INDEX(Ranks!$1:$1048576,$A43,CE$1))","v":""},{"$f":"IF($A43=\"N/A\",Ref!$B$36,INDEX(Ranks!$1:$1048576,$A43,CF$1))","v":""},{"$f":"IF($A43=\"N/A\",Ref!$B$36,INDEX(Ranks!$1:$1048576,$A43,CG$1))","v":""},{"$f":"IF($A43=\"N/A\",Ref!$B$36,INDEX(Ranks!$1:$1048576,$A43,CH$1))","v":""},{"$f":"IF($A43=\"N/A\",Ref!$B$36,INDEX(Ranks!$1:$1048576,$A43,CI$1))","v":""},{"$f":"IF($A43=\"N/A\",Ref!$B$36,INDEX(Ranks!$1:$1048576,$A43,CJ$1))","v":""},{"$f":"IF($A43=\"N/A\",Ref!$B$36,INDEX(Ranks!$1:$1048576,$A43,CK$1))","v":""},{"$f":"IF($A43=\"N/A\",Ref!$B$36,INDEX(Ranks!$1:$1048576,$A43,CL$1))","v":""},{"$f":"IF($A43=\"N/A\",Ref!$B$36,INDEX(Ranks!$1:$1048576,$A43,CM$1))","v":""},{"$f":"IF($A43=\"N/A\",Ref!$B$36,INDEX(Ranks!$1:$1048576,$A43,CN$1))","v":""},{"$f":"IF($A43=\"N/A\",Ref!$B$36,INDEX(Ranks!$1:$1048576,$A43,CO$1))","v":""},{"$f":"IF($A43=\"N/A\",Ref!$B$36,INDEX(Ranks!$1:$1048576,$A43,CP$1))","v":""},{"$f":"IF($A43=\"N/A\",Ref!$B$36,INDEX(Ranks!$1:$1048576,$A43,CQ$1))","v":""},{"$f":"IF($A43=\"N/A\",Ref!$B$36,INDEX(Ranks!$1:$1048576,$A43,CR$1))","v":""},{"$f":"IF($A43=\"N/A\",Ref!$B$36,INDEX(Ranks!$1:$1048576,$A43,CS$1))","v":""},{"$f":"IF($A43=\"N/A\",Ref!$B$36,INDEX(Ranks!$1:$1048576,$A43,CT$1))","v":""},{"$f":"IF($A43=\"N/A\",Ref!$B$36,INDEX(Ranks!$1:$1048576,$A43,CU$1))","v":""},{"$f":"IF($A43=\"N/A\",Ref!$B$36,INDEX(Ranks!$1:$1048576,$A43,CV$1))","v":""},{"$f":"IF($A43=\"N/A\",Ref!$B$36,INDEX(Ranks!$1:$1048576,$A43,CW$1))","v":""},{"$f":"IF($A43=\"N/A\",Ref!$B$36,INDEX(Ranks!$1:$1048576,$A43,CX$1))","v":""},{"$f":"IF($A43=\"N/A\",Ref!$B$36,INDEX(Ranks!$1:$1048576,$A43,CY$1))","v":""},{"$f":"IF($A43=\"N/A\",Ref!$B$36,INDEX(Ranks!$1:$1048576,$A43,CZ$1))","v":""},{"$f":"IF($A43=\"N/A\",Ref!$B$36,INDEX(Ranks!$1:$1048576,$A43,DA$1))","v":""},{"$f":"IF($A43=\"N/A\",Ref!$B$36,INDEX(Ranks!$1:$1048576,$A43,DB$1))","v":""},{"$f":"IF($A43=\"N/A\",Ref!$B$36,INDEX(Ranks!$1:$1048576,$A43,DC$1))","v":""},{"$f":"IF($A43=\"N/A\",Ref!$B$36,INDEX(Ranks!$1:$1048576,$A43,DD$1))","v":""},{"$f":"IF($A43=\"N/A\",Ref!$B$36,INDEX(Ranks!$1:$1048576,$A43,DE$1))","v":""},{"$f":"IF($A43=\"N/A\",Ref!$B$36,INDEX(Ranks!$1:$1048576,$A43,DF$1))","v":""},{"$f":"IF($A43=\"N/A\",Ref!$B$36,INDEX(Ranks!$1:$1048576,$A43,DG$1))","v":""},{"$f":"IF($A43=\"N/A\",Ref!$B$36,INDEX(Ranks!$1:$1048576,$A43,DH$1))","v":""},{"$f":"IF($A43=\"N/A\",Ref!$B$36,INDEX(Ranks!$1:$1048576,$A43,DI$1))","v":""},{"$f":"IF($A43=\"N/A\",Ref!$B$36,INDEX(Ranks!$1:$1048576,$A43,DJ$1))","v":""},{"$f":"IF($A43=\"N/A\",Ref!$B$36,INDEX(Ranks!$1:$1048576,$A43,DK$1))","v":""},{"$f":"IF($A43=\"N/A\",Ref!$B$36,INDEX(Ranks!$1:$1048576,$A43,DL$1))","v":""},{"$f":"IF($A43=\"N/A\",Ref!$B$36,INDEX(Ranks!$1:$1048576,$A43,DM$1))","v":""},{"$f":"IF($A43=\"N/A\",Ref!$B$36,INDEX(Ranks!$1:$1048576,$A43,DN$1))","v":""},{"$f":"IF($A43=\"N/A\",Ref!$B$36,INDEX(Ranks!$1:$1048576,$A43,DO$1))","v":""},{"$f":"IF($A43=\"N/A\",Ref!$B$36,INDEX(Ranks!$1:$1048576,$A43,DP$1))","v":""},{"$f":"IF($A43=\"N/A\",Ref!$B$36,INDEX(Ranks!$1:$1048576,$A43,DQ$1))","v":""},{"$f":"IF($A43=\"N/A\",Ref!$B$36,INDEX(Ranks!$1:$1048576,$A43,DR$1))","v":""},{"$f":"IF($A43=\"N/A\",Ref!$B$36,INDEX(Ranks!$1:$1048576,$A43,DS$1))","v":""},{"$f":"IF($A43=\"N/A\",Ref!$B$36,INDEX(Ranks!$1:$1048576,$A43,DT$1))","v":""},{"$f":"IF($A43=\"N/A\",Ref!$B$36,INDEX(Ranks!$1:$1048576,$A43,DU$1))","v":""},{"$f":"IF($A43=\"N/A\",Ref!$B$36,INDEX(Ranks!$1:$1048576,$A43,DV$1))","v":""},{"$f":"IF($A43=\"N/A\",Ref!$B$36,INDEX(Ranks!$1:$1048576,$A43,DW$1))","v":""},{"$f":"IF($A43=\"N/A\",Ref!$B$36,INDEX(Ranks!$1:$1048576,$A43,DX$1))","v":""},{"$f":"IF($A43=\"N/A\",Ref!$B$36,INDEX(Ranks!$1:$1048576,$A43,DY$1))","v":""},{"$f":"IF($A43=\"N/A\",Ref!$B$36,INDEX(Ranks!$1:$1048576,$A43,DZ$1))","v":""},{"$f":"IF($A43=\"N/A\",Ref!$B$36,INDEX(Ranks!$1:$1048576,$A43,EA$1))","v":""},{"$f":"IF($A43=\"N/A\",Ref!$B$36,INDEX(Ranks!$1:$1048576,$A43,EB$1))","v":""}]
[{"$f":"IFERROR(MATCH('Portfolio Page'!L44,Ranks!L:L,0),\"N/A\")","v":"N/A"},null,{"$f":"IF($A44=\"N/A\",\"\",INDEX(Ranks!$1:$1048576,$A44,C$1))","v":""},{"$f":"IF($A44=\"N/A\",Ref!$B$36,INDEX(Ranks!$1:$1048576,$A44,D$1))","v":""},{"$f":"IF($A44=\"N/A\",Ref!$B$36,INDEX(Ranks!$1:$1048576,$A44,E$1))","v":""},{"$f":"IF($A44=\"N/A\",\"\",INDEX(Ranks!$1:$1048576,$A44,F$1))","v":""},{"$f":"IF($A44=\"N/A\",\"\",INDEX(Ranks!$1:$1048576,$A44,G$1))","v":""},{"$f":"IF($A44=\"N/A\",\"\",INDEX(Ranks!$1:$1048576,$A44,H$1))","v":""},{"$f":"IF($A44=\"N/A\",\"\",INDEX(Ranks!$1:$1048576,$A44,I$1))","v":""},{"$f":"IF($A44=\"N/A\",\"\",INDEX(Ranks!$1:$1048576,$A44,J$1))","v":""},{"$f":"IF($A44=\"N/A\",\"\",INDEX(Ranks!$1:$1048576,$A44,K$1))","v":""},null,{"$f":"IF($A44=\"N/A\",Ref!$B$36,INDEX(Ranks!$1:$1048576,$A44,M$1))","v":""},{"$f":"IF($A44=\"N/A\",Ref!$B$36,INDEX(Ranks!$1:$1048576,$A44,N$1))","v":""},{"$f":"IF($A44=\"N/A\",Ref!$B$36,INDEX(Ranks!$1:$1048576,$A44,O$1))","v":""},{"$f":"IF($A44=\"N/A\",Ref!$B$36,INDEX(Ranks!$1:$1048576,$A44,P$1))","v":""},{"$f":"IF($A44=\"N/A\",Ref!$B$36,INDEX(Ranks!$1:$1048576,$A44,Q$1))","v":""},{"$f":"IF($A44=\"N/A\",Ref!$B$36,INDEX(Ranks!$1:$1048576,$A44,R$1))","v":""},{"$f":"IF($A44=\"N/A\",Ref!$B$36,INDEX(Ranks!$1:$1048576,$A44,S$1))","v":""},{"$f":"IF($A44=\"N/A\",Ref!$B$36,INDEX(Ranks!$1:$1048576,$A44,T$1))","v":""},{"$f":"IF($A44=\"N/A\",Ref!$B$36,INDEX(Ranks!$1:$1048576,$A44,U$1))","v":""},{"$f":"IF($A44=\"N/A\",Ref!$B$36,INDEX(Ranks!$1:$1048576,$A44,V$1))","v":""},{"$f":"IF($A44=\"N/A\",Ref!$B$36,INDEX(Ranks!$1:$1048576,$A44,W$1))","v":""},{"$f":"IF($A44=\"N/A\",Ref!$B$36,INDEX(Ranks!$1:$1048576,$A44,X$1))","v":""},{"$f":"IF($A44=\"N/A\",Ref!$B$36,INDEX(Ranks!$1:$1048576,$A44,Y$1))","v":""},{"$f":"IF($A44=\"N/A\",Ref!$B$36,INDEX(Ranks!$1:$1048576,$A44,Z$1))","v":""},{"$f":"IF($A44=\"N/A\",Ref!$B$36,INDEX(Ranks!$1:$1048576,$A44,AA$1))","v":""},{"$f":"IF($A44=\"N/A\",Ref!$B$36,INDEX(Ranks!$1:$1048576,$A44,AB$1))","v":""},{"$f":"IF($A44=\"N/A\",Ref!$B$36,INDEX(Ranks!$1:$1048576,$A44,AC$1))","v":""},{"$f":"IF($A44=\"N/A\",Ref!$B$36,INDEX(Ranks!$1:$1048576,$A44,AD$1))","v":""},{"$f":"IF($A44=\"N/A\",Ref!$B$36,INDEX(Ranks!$1:$1048576,$A44,AE$1))","v":""},{"$f":"IF($A44=\"N/A\",Ref!$B$36,INDEX(Ranks!$1:$1048576,$A44,AF$1))","v":""},{"$f":"IF($A44=\"N/A\",Ref!$B$36,INDEX(Ranks!$1:$1048576,$A44,AG$1))","v":""},{"$f":"IF($A44=\"N/A\",Ref!$B$36,INDEX(Ranks!$1:$1048576,$A44,AH$1))","v":""},{"$f":"IF($A44=\"N/A\",Ref!$B$36,INDEX(Ranks!$1:$1048576,$A44,AI$1))","v":""},{"$f":"IF($A44=\"N/A\",Ref!$B$36,INDEX(Ranks!$1:$1048576,$A44,AJ$1))","v":""},{"$f":"IF($A44=\"N/A\",Ref!$B$36,INDEX(Ranks!$1:$1048576,$A44,AK$1))","v":""},{"$f":"IF($A44=\"N/A\",Ref!$B$36,INDEX(Ranks!$1:$1048576,$A44,AL$1))","v":""},{"$f":"IF($A44=\"N/A\",Ref!$B$36,INDEX(Ranks!$1:$1048576,$A44,AM$1))","v":""},{"$f":"IF($A44=\"N/A\",Ref!$B$36,INDEX(Ranks!$1:$1048576,$A44,AN$1))","v":""},{"$f":"IF($A44=\"N/A\",Ref!$B$36,INDEX(Ranks!$1:$1048576,$A44,AO$1))","v":""},{"$f":"IF($A44=\"N/A\",Ref!$B$36,INDEX(Ranks!$1:$1048576,$A44,AP$1))","v":""},{"$f":"IF($A44=\"N/A\",Ref!$B$36,INDEX(Ranks!$1:$1048576,$A44,AQ$1))","v":""},{"$f":"IF($A44=\"N/A\",Ref!$B$36,INDEX(Ranks!$1:$1048576,$A44,AR$1))","v":""},{"$f":"IF($A44=\"N/A\",Ref!$B$36,INDEX(Ranks!$1:$1048576,$A44,AS$1))","v":""},{"$f":"IF($A44=\"N/A\",Ref!$B$36,INDEX(Ranks!$1:$1048576,$A44,AT$1))","v":""},{"$f":"IF($A44=\"N/A\",Ref!$B$36,INDEX(Ranks!$1:$1048576,$A44,AU$1))","v":""},{"$f":"IF($A44=\"N/A\",Ref!$B$36,INDEX(Ranks!$1:$1048576,$A44,AV$1))","v":""},{"$f":"IF($A44=\"N/A\",Ref!$B$36,INDEX(Ranks!$1:$1048576,$A44,AW$1))","v":""},{"$f":"IF($A44=\"N/A\",Ref!$B$36,INDEX(Ranks!$1:$1048576,$A44,AX$1))","v":""},{"$f":"IF($A44=\"N/A\",Ref!$B$36,INDEX(Ranks!$1:$1048576,$A44,AY$1))","v":""},{"$f":"IF($A44=\"N/A\",Ref!$B$36,INDEX(Ranks!$1:$1048576,$A44,AZ$1))","v":""},{"$f":"IF($A44=\"N/A\",Ref!$B$36,INDEX(Ranks!$1:$1048576,$A44,BA$1))","v":""},{"$f":"IF($A44=\"N/A\",Ref!$B$36,INDEX(Ranks!$1:$1048576,$A44,BB$1))","v":""},{"$f":"IF($A44=\"N/A\",Ref!$B$36,INDEX(Ranks!$1:$1048576,$A44,BC$1))","v":""},{"$f":"IF($A44=\"N/A\",Ref!$B$36,INDEX(Ranks!$1:$1048576,$A44,BD$1))","v":""},{"$f":"IF($A44=\"N/A\",Ref!$B$36,INDEX(Ranks!$1:$1048576,$A44,BE$1))","v":""},{"$f":"IF($A44=\"N/A\",Ref!$B$36,INDEX(Ranks!$1:$1048576,$A44,BF$1))","v":""},{"$f":"IF($A44=\"N/A\",Ref!$B$36,INDEX(Ranks!$1:$1048576,$A44,BG$1))","v":""},{"$f":"IF($A44=\"N/A\",Ref!$B$36,INDEX(Ranks!$1:$1048576,$A44,BH$1))","v":""},{"$f":"IF($A44=\"N/A\",Ref!$B$36,INDEX(Ranks!$1:$1048576,$A44,BI$1))","v":""},{"$f":"IF($A44=\"N/A\",Ref!$B$36,INDEX(Ranks!$1:$1048576,$A44,BJ$1))","v":""},{"$f":"IF($A44=\"N/A\",Ref!$B$36,INDEX(Ranks!$1:$1048576,$A44,BK$1))","v":""},{"$f":"IF($A44=\"N/A\",Ref!$B$36,INDEX(Ranks!$1:$1048576,$A44,BL$1))","v":""},{"$f":"IF($A44=\"N/A\",Ref!$B$36,INDEX(Ranks!$1:$1048576,$A44,BM$1))","v":""},{"$f":"IF($A44=\"N/A\",Ref!$B$36,INDEX(Ranks!$1:$1048576,$A44,BN$1))","v":""},{"$f":"IF($A44=\"N/A\",Ref!$B$36,INDEX(Ranks!$1:$1048576,$A44,BO$1))","v":""},{"$f":"IF($A44=\"N/A\",Ref!$B$36,INDEX(Ranks!$1:$1048576,$A44,BP$1))","v":""},{"$f":"IF($A44=\"N/A\",Ref!$B$36,INDEX(Ranks!$1:$1048576,$A44,BQ$1))","v":""},{"$f":"IF($A44=\"N/A\",Ref!$B$36,INDEX(Ranks!$1:$1048576,$A44,BR$1))","v":""},{"$f":"IF($A44=\"N/A\",Ref!$B$36,INDEX(Ranks!$1:$1048576,$A44,BS$1))","v":""},{"$f":"IF($A44=\"N/A\",Ref!$B$36,INDEX(Ranks!$1:$1048576,$A44,BT$1))","v":""},{"$f":"IF($A44=\"N/A\",Ref!$B$36,INDEX(Ranks!$1:$1048576,$A44,BU$1))","v":""},{"$f":"IF($A44=\"N/A\",Ref!$B$36,INDEX(Ranks!$1:$1048576,$A44,BV$1))","v":""},{"$f":"IF($A44=\"N/A\",Ref!$B$36,INDEX(Ranks!$1:$1048576,$A44,BW$1))","v":""},{"$f":"IF($A44=\"N/A\",Ref!$B$36,INDEX(Ranks!$1:$1048576,$A44,BX$1))","v":""},{"$f":"IF($A44=\"N/A\",Ref!$B$36,INDEX(Ranks!$1:$1048576,$A44,BY$1))","v":""},{"$f":"IF($A44=\"N/A\",Ref!$B$36,INDEX(Ranks!$1:$1048576,$A44,BZ$1))","v":""},{"$f":"IF($A44=\"N/A\",Ref!$B$36,INDEX(Ranks!$1:$1048576,$A44,CA$1))","v":""},{"$f":"IF($A44=\"N/A\",Ref!$B$36,INDEX(Ranks!$1:$1048576,$A44,CB$1))","v":""},{"$f":"IF($A44=\"N/A\",Ref!$B$36,INDEX(Ranks!$1:$1048576,$A44,CC$1))","v":""},{"$f":"IF($A44=\"N/A\",Ref!$B$36,INDEX(Ranks!$1:$1048576,$A44,CD$1))","v":""},{"$f":"IF($A44=\"N/A\",Ref!$B$36,INDEX(Ranks!$1:$1048576,$A44,CE$1))","v":""},{"$f":"IF($A44=\"N/A\",Ref!$B$36,INDEX(Ranks!$1:$1048576,$A44,CF$1))","v":""},{"$f":"IF($A44=\"N/A\",Ref!$B$36,INDEX(Ranks!$1:$1048576,$A44,CG$1))","v":""},{"$f":"IF($A44=\"N/A\",Ref!$B$36,INDEX(Ranks!$1:$1048576,$A44,CH$1))","v":""},{"$f":"IF($A44=\"N/A\",Ref!$B$36,INDEX(Ranks!$1:$1048576,$A44,CI$1))","v":""},{"$f":"IF($A44=\"N/A\",Ref!$B$36,INDEX(Ranks!$1:$1048576,$A44,CJ$1))","v":""},{"$f":"IF($A44=\"N/A\",Ref!$B$36,INDEX(Ranks!$1:$1048576,$A44,CK$1))","v":""},{"$f":"IF($A44=\"N/A\",Ref!$B$36,INDEX(Ranks!$1:$1048576,$A44,CL$1))","v":""},{"$f":"IF($A44=\"N/A\",Ref!$B$36,INDEX(Ranks!$1:$1048576,$A44,CM$1))","v":""},{"$f":"IF($A44=\"N/A\",Ref!$B$36,INDEX(Ranks!$1:$1048576,$A44,CN$1))","v":""},{"$f":"IF($A44=\"N/A\",Ref!$B$36,INDEX(Ranks!$1:$1048576,$A44,CO$1))","v":""},{"$f":"IF($A44=\"N/A\",Ref!$B$36,INDEX(Ranks!$1:$1048576,$A44,CP$1))","v":""},{"$f":"IF($A44=\"N/A\",Ref!$B$36,INDEX(Ranks!$1:$1048576,$A44,CQ$1))","v":""},{"$f":"IF($A44=\"N/A\",Ref!$B$36,INDEX(Ranks!$1:$1048576,$A44,CR$1))","v":""},{"$f":"IF($A44=\"N/A\",Ref!$B$36,INDEX(Ranks!$1:$1048576,$A44,CS$1))","v":""},{"$f":"IF($A44=\"N/A\",Ref!$B$36,INDEX(Ranks!$1:$1048576,$A44,CT$1))","v":""},{"$f":"IF($A44=\"N/A\",Ref!$B$36,INDEX(Ranks!$1:$1048576,$A44,CU$1))","v":""},{"$f":"IF($A44=\"N/A\",Ref!$B$36,INDEX(Ranks!$1:$1048576,$A44,CV$1))","v":""},{"$f":"IF($A44=\"N/A\",Ref!$B$36,INDEX(Ranks!$1:$1048576,$A44,CW$1))","v":""},{"$f":"IF($A44=\"N/A\",Ref!$B$36,INDEX(Ranks!$1:$1048576,$A44,CX$1))","v":""},{"$f":"IF($A44=\"N/A\",Ref!$B$36,INDEX(Ranks!$1:$1048576,$A44,CY$1))","v":""},{"$f":"IF($A44=\"N/A\",Ref!$B$36,INDEX(Ranks!$1:$1048576,$A44,CZ$1))","v":""},{"$f":"IF($A44=\"N/A\",Ref!$B$36,INDEX(Ranks!$1:$1048576,$A44,DA$1))","v":""},{"$f":"IF($A44=\"N/A\",Ref!$B$36,INDEX(Ranks!$1:$1048576,$A44,DB$1))","v":""},{"$f":"IF($A44=\"N/A\",Ref!$B$36,INDEX(Ranks!$1:$1048576,$A44,DC$1))","v":""},{"$f":"IF($A44=\"N/A\",Ref!$B$36,INDEX(Ranks!$1:$1048576,$A44,DD$1))","v":""},{"$f":"IF($A44=\"N/A\",Ref!$B$36,INDEX(Ranks!$1:$1048576,$A44,DE$1))","v":""},{"$f":"IF($A44=\"N/A\",Ref!$B$36,INDEX(Ranks!$1:$1048576,$A44,DF$1))","v":""},{"$f":"IF($A44=\"N/A\",Ref!$B$36,INDEX(Ranks!$1:$1048576,$A44,DG$1))","v":""},{"$f":"IF($A44=\"N/A\",Ref!$B$36,INDEX(Ranks!$1:$1048576,$A44,DH$1))","v":""},{"$f":"IF($A44=\"N/A\",Ref!$B$36,INDEX(Ranks!$1:$1048576,$A44,DI$1))","v":""},{"$f":"IF($A44=\"N/A\",Ref!$B$36,INDEX(Ranks!$1:$1048576,$A44,DJ$1))","v":""},{"$f":"IF($A44=\"N/A\",Ref!$B$36,INDEX(Ranks!$1:$1048576,$A44,DK$1))","v":""},{"$f":"IF($A44=\"N/A\",Ref!$B$36,INDEX(Ranks!$1:$1048576,$A44,DL$1))","v":""},{"$f":"IF($A44=\"N/A\",Ref!$B$36,INDEX(Ranks!$1:$1048576,$A44,DM$1))","v":""},{"$f":"IF($A44=\"N/A\",Ref!$B$36,INDEX(Ranks!$1:$1048576,$A44,DN$1))","v":""},{"$f":"IF($A44=\"N/A\",Ref!$B$36,INDEX(Ranks!$1:$1048576,$A44,DO$1))","v":""},{"$f":"IF($A44=\"N/A\",Ref!$B$36,INDEX(Ranks!$1:$1048576,$A44,DP$1))","v":""},{"$f":"IF($A44=\"N/A\",Ref!$B$36,INDEX(Ranks!$1:$1048576,$A44,DQ$1))","v":""},{"$f":"IF($A44=\"N/A\",Ref!$B$36,INDEX(Ranks!$1:$1048576,$A44,DR$1))","v":""},{"$f":"IF($A44=\"N/A\",Ref!$B$36,INDEX(Ranks!$1:$1048576,$A44,DS$1))","v":""},{"$f":"IF($A44=\"N/A\",Ref!$B$36,INDEX(Ranks!$1:$1048576,$A44,DT$1))","v":""},{"$f":"IF($A44=\"N/A\",Ref!$B$36,INDEX(Ranks!$1:$1048576,$A44,DU$1))","v":""},{"$f":"IF($A44=\"N/A\",Ref!$B$36,INDEX(Ranks!$1:$1048576,$A44,DV$1))","v":""},{"$f":"IF($A44=\"N/A\",Ref!$B$36,INDEX(Ranks!$1:$1048576,$A44,DW$1))","v":""},{"$f":"IF($A44=\"N/A\",Ref!$B$36,INDEX(Ranks!$1:$1048576,$A44,DX$1))","v":""},{"$f":"IF($A44=\"N/A\",Ref!$B$36,INDEX(Ranks!$1:$1048576,$A44,DY$1))","v":""},{"$f":"IF($A44=\"N/A\",Ref!$B$36,INDEX(Ranks!$1:$1048576,$A44,DZ$1))","v":""},{"$f":"IF($A44=\"N/A\",Ref!$B$36,INDEX(Ranks!$1:$1048576,$A44,EA$1))","v":""},{"$f":"IF($A44=\"N/A\",Ref!$B$36,INDEX(Ranks!$1:$1048576,$A44,EB$1))","v":""}]
[{"$f":"IFERROR(MATCH('Portfolio Page'!L45,Ranks!L:L,0),\"N/A\")","v":"N/A"},null,{"$f":"IF($A45=\"N/A\",\"\",INDEX(Ranks!$1:$1048576,$A45,C$1))","v":""},{"$f":"IF($A45=\"N/A\",Ref!$B$36,INDEX(Ranks!$1:$1048576,$A45,D$1))","v":""},{"$f":"IF($A45=\"N/A\",Ref!$B$36,INDEX(Ranks!$1:$1048576,$A45,E$1))","v":""},{"$f":"IF($A45=\"N/A\",\"\",INDEX(Ranks!$1:$1048576,$A45,F$1))","v":""},{"$f":"IF($A45=\"N/A\",\"\",INDEX(Ranks!$1:$1048576,$A45,G$1))","v":""},{"$f":"IF($A45=\"N/A\",\"\",INDEX(Ranks!$1:$1048576,$A45,H$1))","v":""},{"$f":"IF($A45=\"N/A\",\"\",INDEX(Ranks!$1:$1048576,$A45,I$1))","v":""},{"$f":"IF($A45=\"N/A\",\"\",INDEX(Ranks!$1:$1048576,$A45,J$1))","v":""},{"$f":"IF($A45=\"N/A\",\"\",INDEX(Ranks!$1:$1048576,$A45,K$1))","v":""},null,{"$f":"IF($A45=\"N/A\",Ref!$B$36,INDEX(Ranks!$1:$1048576,$A45,M$1))","v":""},{"$f":"IF($A45=\"N/A\",Ref!$B$36,INDEX(Ranks!$1:$1048576,$A45,N$1))","v":""},{"$f":"IF($A45=\"N/A\",Ref!$B$36,INDEX(Ranks!$1:$1048576,$A45,O$1))","v":""},{"$f":"IF($A45=\"N/A\",Ref!$B$36,INDEX(Ranks!$1:$1048576,$A45,P$1))","v":""},{"$f":"IF($A45=\"N/A\",Ref!$B$36,INDEX(Ranks!$1:$1048576,$A45,Q$1))","v":""},{"$f":"IF($A45=\"N/A\",Ref!$B$36,INDEX(Ranks!$1:$1048576,$A45,R$1))","v":""},{"$f":"IF($A45=\"N/A\",Ref!$B$36,INDEX(Ranks!$1:$1048576,$A45,S$1))","v":""},{"$f":"IF($A45=\"N/A\",Ref!$B$36,INDEX(Ranks!$1:$1048576,$A45,T$1))","v":""},{"$f":"IF($A45=\"N/A\",Ref!$B$36,INDEX(Ranks!$1:$1048576,$A45,U$1))","v":""},{"$f":"IF($A45=\"N/A\",Ref!$B$36,INDEX(Ranks!$1:$1048576,$A45,V$1))","v":""},{"$f":"IF($A45=\"N/A\",Ref!$B$36,INDEX(Ranks!$1:$1048576,$A45,W$1))","v":""},{"$f":"IF($A45=\"N/A\",Ref!$B$36,INDEX(Ranks!$1:$1048576,$A45,X$1))","v":""},{"$f":"IF($A45=\"N/A\",Ref!$B$36,INDEX(Ranks!$1:$1048576,$A45,Y$1))","v":""},{"$f":"IF($A45=\"N/A\",Ref!$B$36,INDEX(Ranks!$1:$1048576,$A45,Z$1))","v":""},{"$f":"IF($A45=\"N/A\",Ref!$B$36,INDEX(Ranks!$1:$1048576,$A45,AA$1))","v":""},{"$f":"IF($A45=\"N/A\",Ref!$B$36,INDEX(Ranks!$1:$1048576,$A45,AB$1))","v":""},{"$f":"IF($A45=\"N/A\",Ref!$B$36,INDEX(Ranks!$1:$1048576,$A45,AC$1))","v":""},{"$f":"IF($A45=\"N/A\",Ref!$B$36,INDEX(Ranks!$1:$1048576,$A45,AD$1))","v":""},{"$f":"IF($A45=\"N/A\",Ref!$B$36,INDEX(Ranks!$1:$1048576,$A45,AE$1))","v":""},{"$f":"IF($A45=\"N/A\",Ref!$B$36,INDEX(Ranks!$1:$1048576,$A45,AF$1))","v":""},{"$f":"IF($A45=\"N/A\",Ref!$B$36,INDEX(Ranks!$1:$1048576,$A45,AG$1))","v":""},{"$f":"IF($A45=\"N/A\",Ref!$B$36,INDEX(Ranks!$1:$1048576,$A45,AH$1))","v":""},{"$f":"IF($A45=\"N/A\",Ref!$B$36,INDEX(Ranks!$1:$1048576,$A45,AI$1))","v":""},{"$f":"IF($A45=\"N/A\",Ref!$B$36,INDEX(Ranks!$1:$1048576,$A45,AJ$1))","v":""},{"$f":"IF($A45=\"N/A\",Ref!$B$36,INDEX(Ranks!$1:$1048576,$A45,AK$1))","v":""},{"$f":"IF($A45=\"N/A\",Ref!$B$36,INDEX(Ranks!$1:$1048576,$A45,AL$1))","v":""},{"$f":"IF($A45=\"N/A\",Ref!$B$36,INDEX(Ranks!$1:$1048576,$A45,AM$1))","v":""},{"$f":"IF($A45=\"N/A\",Ref!$B$36,INDEX(Ranks!$1:$1048576,$A45,AN$1))","v":""},{"$f":"IF($A45=\"N/A\",Ref!$B$36,INDEX(Ranks!$1:$1048576,$A45,AO$1))","v":""},{"$f":"IF($A45=\"N/A\",Ref!$B$36,INDEX(Ranks!$1:$1048576,$A45,AP$1))","v":""},{"$f":"IF($A45=\"N/A\",Ref!$B$36,INDEX(Ranks!$1:$1048576,$A45,AQ$1))","v":""},{"$f":"IF($A45=\"N/A\",Ref!$B$36,INDEX(Ranks!$1:$1048576,$A45,AR$1))","v":""},{"$f":"IF($A45=\"N/A\",Ref!$B$36,INDEX(Ranks!$1:$1048576,$A45,AS$1))","v":""},{"$f":"IF($A45=\"N/A\",Ref!$B$36,INDEX(Ranks!$1:$1048576,$A45,AT$1))","v":""},{"$f":"IF($A45=\"N/A\",Ref!$B$36,INDEX(Ranks!$1:$1048576,$A45,AU$1))","v":""},{"$f":"IF($A45=\"N/A\",Ref!$B$36,INDEX(Ranks!$1:$1048576,$A45,AV$1))","v":""},{"$f":"IF($A45=\"N/A\",Ref!$B$36,INDEX(Ranks!$1:$1048576,$A45,AW$1))","v":""},{"$f":"IF($A45=\"N/A\",Ref!$B$36,INDEX(Ranks!$1:$1048576,$A45,AX$1))","v":""},{"$f":"IF($A45=\"N/A\",Ref!$B$36,INDEX(Ranks!$1:$1048576,$A45,AY$1))","v":""},{"$f":"IF($A45=\"N/A\",Ref!$B$36,INDEX(Ranks!$1:$1048576,$A45,AZ$1))","v":""},{"$f":"IF($A45=\"N/A\",Ref!$B$36,INDEX(Ranks!$1:$1048576,$A45,BA$1))","v":""},{"$f":"IF($A45=\"N/A\",Ref!$B$36,INDEX(Ranks!$1:$1048576,$A45,BB$1))","v":""},{"$f":"IF($A45=\"N/A\",Ref!$B$36,INDEX(Ranks!$1:$1048576,$A45,BC$1))","v":""},{"$f":"IF($A45=\"N/A\",Ref!$B$36,INDEX(Ranks!$1:$1048576,$A45,BD$1))","v":""},{"$f":"IF($A45=\"N/A\",Ref!$B$36,INDEX(Ranks!$1:$1048576,$A45,BE$1))","v":""},{"$f":"IF($A45=\"N/A\",Ref!$B$36,INDEX(Ranks!$1:$1048576,$A45,BF$1))","v":""},{"$f":"IF($A45=\"N/A\",Ref!$B$36,INDEX(Ranks!$1:$1048576,$A45,BG$1))","v":""},{"$f":"IF($A45=\"N/A\",Ref!$B$36,INDEX(Ranks!$1:$1048576,$A45,BH$1))","v":""},{"$f":"IF($A45=\"N/A\",Ref!$B$36,INDEX(Ranks!$1:$1048576,$A45,BI$1))","v":""},{"$f":"IF($A45=\"N/A\",Ref!$B$36,INDEX(Ranks!$1:$1048576,$A45,BJ$1))","v":""},{"$f":"IF($A45=\"N/A\",Ref!$B$36,INDEX(Ranks!$1:$1048576,$A45,BK$1))","v":""},{"$f":"IF($A45=\"N/A\",Ref!$B$36,INDEX(Ranks!$1:$1048576,$A45,BL$1))","v":""},{"$f":"IF($A45=\"N/A\",Ref!$B$36,INDEX(Ranks!$1:$1048576,$A45,BM$1))","v":""},{"$f":"IF($A45=\"N/A\",Ref!$B$36,INDEX(Ranks!$1:$1048576,$A45,BN$1))","v":""},{"$f":"IF($A45=\"N/A\",Ref!$B$36,INDEX(Ranks!$1:$1048576,$A45,BO$1))","v":""},{"$f":"IF($A45=\"N/A\",Ref!$B$36,INDEX(Ranks!$1:$1048576,$A45,BP$1))","v":""},{"$f":"IF($A45=\"N/A\",Ref!$B$36,INDEX(Ranks!$1:$1048576,$A45,BQ$1))","v":""},{"$f":"IF($A45=\"N/A\",Ref!$B$36,INDEX(Ranks!$1:$1048576,$A45,BR$1))","v":""},{"$f":"IF($A45=\"N/A\",Ref!$B$36,INDEX(Ranks!$1:$1048576,$A45,BS$1))","v":""},{"$f":"IF($A45=\"N/A\",Ref!$B$36,INDEX(Ranks!$1:$1048576,$A45,BT$1))","v":""},{"$f":"IF($A45=\"N/A\",Ref!$B$36,INDEX(Ranks!$1:$1048576,$A45,BU$1))","v":""},{"$f":"IF($A45=\"N/A\",Ref!$B$36,INDEX(Ranks!$1:$1048576,$A45,BV$1))","v":""},{"$f":"IF($A45=\"N/A\",Ref!$B$36,INDEX(Ranks!$1:$1048576,$A45,BW$1))","v":""},{"$f":"IF($A45=\"N/A\",Ref!$B$36,INDEX(Ranks!$1:$1048576,$A45,BX$1))","v":""},{"$f":"IF($A45=\"N/A\",Ref!$B$36,INDEX(Ranks!$1:$1048576,$A45,BY$1))","v":""},{"$f":"IF($A45=\"N/A\",Ref!$B$36,INDEX(Ranks!$1:$1048576,$A45,BZ$1))","v":""},{"$f":"IF($A45=\"N/A\",Ref!$B$36,INDEX(Ranks!$1:$1048576,$A45,CA$1))","v":""},{"$f":"IF($A45=\"N/A\",Ref!$B$36,INDEX(Ranks!$1:$1048576,$A45,CB$1))","v":""},{"$f":"IF($A45=\"N/A\",Ref!$B$36,INDEX(Ranks!$1:$1048576,$A45,CC$1))","v":""},{"$f":"IF($A45=\"N/A\",Ref!$B$36,INDEX(Ranks!$1:$1048576,$A45,CD$1))","v":""},{"$f":"IF($A45=\"N/A\",Ref!$B$36,INDEX(Ranks!$1:$1048576,$A45,CE$1))","v":""},{"$f":"IF($A45=\"N/A\",Ref!$B$36,INDEX(Ranks!$1:$1048576,$A45,CF$1))","v":""},{"$f":"IF($A45=\"N/A\",Ref!$B$36,INDEX(Ranks!$1:$1048576,$A45,CG$1))","v":""},{"$f":"IF($A45=\"N/A\",Ref!$B$36,INDEX(Ranks!$1:$1048576,$A45,CH$1))","v":""},{"$f":"IF($A45=\"N/A\",Ref!$B$36,INDEX(Ranks!$1:$1048576,$A45,CI$1))","v":""},{"$f":"IF($A45=\"N/A\",Ref!$B$36,INDEX(Ranks!$1:$1048576,$A45,CJ$1))","v":""},{"$f":"IF($A45=\"N/A\",Ref!$B$36,INDEX(Ranks!$1:$1048576,$A45,CK$1))","v":""},{"$f":"IF($A45=\"N/A\",Ref!$B$36,INDEX(Ranks!$1:$1048576,$A45,CL$1))","v":""},{"$f":"IF($A45=\"N/A\",Ref!$B$36,INDEX(Ranks!$1:$1048576,$A45,CM$1))","v":""},{"$f":"IF($A45=\"N/A\",Ref!$B$36,INDEX(Ranks!$1:$1048576,$A45,CN$1))","v":""},{"$f":"IF($A45=\"N/A\",Ref!$B$36,INDEX(Ranks!$1:$1048576,$A45,CO$1))","v":""},{"$f":"IF($A45=\"N/A\",Ref!$B$36,INDEX(Ranks!$1:$1048576,$A45,CP$1))","v":""},{"$f":"IF($A45=\"N/A\",Ref!$B$36,INDEX(Ranks!$1:$1048576,$A45,CQ$1))","v":""},{"$f":"IF($A45=\"N/A\",Ref!$B$36,INDEX(Ranks!$1:$1048576,$A45,CR$1))","v":""},{"$f":"IF($A45=\"N/A\",Ref!$B$36,INDEX(Ranks!$1:$1048576,$A45,CS$1))","v":""},{"$f":"IF($A45=\"N/A\",Ref!$B$36,INDEX(Ranks!$1:$1048576,$A45,CT$1))","v":""},{"$f":"IF($A45=\"N/A\",Ref!$B$36,INDEX(Ranks!$1:$1048576,$A45,CU$1))","v":""},{"$f":"IF($A45=\"N/A\",Ref!$B$36,INDEX(Ranks!$1:$1048576,$A45,CV$1))","v":""},{"$f":"IF($A45=\"N/A\",Ref!$B$36,INDEX(Ranks!$1:$1048576,$A45,CW$1))","v":""},{"$f":"IF($A45=\"N/A\",Ref!$B$36,INDEX(Ranks!$1:$1048576,$A45,CX$1))","v":""},{"$f":"IF($A45=\"N/A\",Ref!$B$36,INDEX(Ranks!$1:$1048576,$A45,CY$1))","v":""},{"$f":"IF($A45=\"N/A\",Ref!$B$36,INDEX(Ranks!$1:$1048576,$A45,CZ$1))","v":""},{"$f":"IF($A45=\"N/A\",Ref!$B$36,INDEX(Ranks!$1:$1048576,$A45,DA$1))","v":""},{"$f":"IF($A45=\"N/A\",Ref!$B$36,INDEX(Ranks!$1:$1048576,$A45,DB$1))","v":""},{"$f":"IF($A45=\"N/A\",Ref!$B$36,INDEX(Ranks!$1:$1048576,$A45,DC$1))","v":""},{"$f":"IF($A45=\"N/A\",Ref!$B$36,INDEX(Ranks!$1:$1048576,$A45,DD$1))","v":""},{"$f":"IF($A45=\"N/A\",Ref!$B$36,INDEX(Ranks!$1:$1048576,$A45,DE$1))","v":""},{"$f":"IF($A45=\"N/A\",Ref!$B$36,INDEX(Ranks!$1:$1048576,$A45,DF$1))","v":""},{"$f":"IF($A45=\"N/A\",Ref!$B$36,INDEX(Ranks!$1:$1048576,$A45,DG$1))","v":""},{"$f":"IF($A45=\"N/A\",Ref!$B$36,INDEX(Ranks!$1:$1048576,$A45,DH$1))","v":""},{"$f":"IF($A45=\"N/A\",Ref!$B$36,INDEX(Ranks!$1:$1048576,$A45,DI$1))","v":""},{"$f":"IF($A45=\"N/A\",Ref!$B$36,INDEX(Ranks!$1:$1048576,$A45,DJ$1))","v":""},{"$f":"IF($A45=\"N/A\",Ref!$B$36,INDEX(Ranks!$1:$1048576,$A45,DK$1))","v":""},{"$f":"IF($A45=\"N/A\",Ref!$B$36,INDEX(Ranks!$1:$1048576,$A45,DL$1))","v":""},{"$f":"IF($A45=\"N/A\",Ref!$B$36,INDEX(Ranks!$1:$1048576,$A45,DM$1))","v":""},{"$f":"IF($A45=\"N/A\",Ref!$B$36,INDEX(Ranks!$1:$1048576,$A45,DN$1))","v":""},{"$f":"IF($A45=\"N/A\",Ref!$B$36,INDEX(Ranks!$1:$1048576,$A45,DO$1))","v":""},{"$f":"IF($A45=\"N/A\",Ref!$B$36,INDEX(Ranks!$1:$1048576,$A45,DP$1))","v":""},{"$f":"IF($A45=\"N/A\",Ref!$B$36,INDEX(Ranks!$1:$1048576,$A45,DQ$1))","v":""},{"$f":"IF($A45=\"N/A\",Ref!$B$36,INDEX(Ranks!$1:$1048576,$A45,DR$1))","v":""},{"$f":"IF($A45=\"N/A\",Ref!$B$36,INDEX(Ranks!$1:$1048576,$A45,DS$1))","v":""},{"$f":"IF($A45=\"N/A\",Ref!$B$36,INDEX(Ranks!$1:$1048576,$A45,DT$1))","v":""},{"$f":"IF($A45=\"N/A\",Ref!$B$36,INDEX(Ranks!$1:$1048576,$A45,DU$1))","v":""},{"$f":"IF($A45=\"N/A\",Ref!$B$36,INDEX(Ranks!$1:$1048576,$A45,DV$1))","v":""},{"$f":"IF($A45=\"N/A\",Ref!$B$36,INDEX(Ranks!$1:$1048576,$A45,DW$1))","v":""},{"$f":"IF($A45=\"N/A\",Ref!$B$36,INDEX(Ranks!$1:$1048576,$A45,DX$1))","v":""},{"$f":"IF($A45=\"N/A\",Ref!$B$36,INDEX(Ranks!$1:$1048576,$A45,DY$1))","v":""},{"$f":"IF($A45=\"N/A\",Ref!$B$36,INDEX(Ranks!$1:$1048576,$A45,DZ$1))","v":""},{"$f":"IF($A45=\"N/A\",Ref!$B$36,INDEX(Ranks!$1:$1048576,$A45,EA$1))","v":""},{"$f":"IF($A45=\"N/A\",Ref!$B$36,INDEX(Ranks!$1:$1048576,$A45,EB$1))","v":""}]
[{"$f":"IFERROR(MATCH('Portfolio Page'!L46,Ranks!L:L,0),\"N/A\")","v":"N/A"},null,{"$f":"IF($A46=\"N/A\",\"\",INDEX(Ranks!$1:$1048576,$A46,C$1))","v":""},{"$f":"IF($A46=\"N/A\",Ref!$B$36,INDEX(Ranks!$1:$1048576,$A46,D$1))","v":""},{"$f":"IF($A46=\"N/A\",Ref!$B$36,INDEX(Ranks!$1:$1048576,$A46,E$1))","v":""},{"$f":"IF($A46=\"N/A\",\"\",INDEX(Ranks!$1:$1048576,$A46,F$1))","v":""},{"$f":"IF($A46=\"N/A\",\"\",INDEX(Ranks!$1:$1048576,$A46,G$1))","v":""},{"$f":"IF($A46=\"N/A\",\"\",INDEX(Ranks!$1:$1048576,$A46,H$1))","v":""},{"$f":"IF($A46=\"N/A\",\"\",INDEX(Ranks!$1:$1048576,$A46,I$1))","v":""},{"$f":"IF($A46=\"N/A\",\"\",INDEX(Ranks!$1:$1048576,$A46,J$1))","v":""},{"$f":"IF($A46=\"N/A\",\"\",INDEX(Ranks!$1:$1048576,$A46,K$1))","v":""},null,{"$f":"IF($A46=\"N/A\",Ref!$B$36,INDEX(Ranks!$1:$1048576,$A46,M$1))","v":""},{"$f":"IF($A46=\"N/A\",Ref!$B$36,INDEX(Ranks!$1:$1048576,$A46,N$1))","v":""},{"$f":"IF($A46=\"N/A\",Ref!$B$36,INDEX(Ranks!$1:$1048576,$A46,O$1))","v":""},{"$f":"IF($A46=\"N/A\",Ref!$B$36,INDEX(Ranks!$1:$1048576,$A46,P$1))","v":""},{"$f":"IF($A46=\"N/A\",Ref!$B$36,INDEX(Ranks!$1:$1048576,$A46,Q$1))","v":""},{"$f":"IF($A46=\"N/A\",Ref!$B$36,INDEX(Ranks!$1:$1048576,$A46,R$1))","v":""},{"$f":"IF($A46=\"N/A\",Ref!$B$36,INDEX(Ranks!$1:$1048576,$A46,S$1))","v":""},{"$f":"IF($A46=\"N/A\",Ref!$B$36,INDEX(Ranks!$1:$1048576,$A46,T$1))","v":""},{"$f":"IF($A46=\"N/A\",Ref!$B$36,INDEX(Ranks!$1:$1048576,$A46,U$1))","v":""},{"$f":"IF($A46=\"N/A\",Ref!$B$36,INDEX(Ranks!$1:$1048576,$A46,V$1))","v":""},{"$f":"IF($A46=\"N/A\",Ref!$B$36,INDEX(Ranks!$1:$1048576,$A46,W$1))","v":""},{"$f":"IF($A46=\"N/A\",Ref!$B$36,INDEX(Ranks!$1:$1048576,$A46,X$1))","v":""},{"$f":"IF($A46=\"N/A\",Ref!$B$36,INDEX(Ranks!$1:$1048576,$A46,Y$1))","v":""},{"$f":"IF($A46=\"N/A\",Ref!$B$36,INDEX(Ranks!$1:$1048576,$A46,Z$1))","v":""},{"$f":"IF($A46=\"N/A\",Ref!$B$36,INDEX(Ranks!$1:$1048576,$A46,AA$1))","v":""},{"$f":"IF($A46=\"N/A\",Ref!$B$36,INDEX(Ranks!$1:$1048576,$A46,AB$1))","v":""},{"$f":"IF($A46=\"N/A\",Ref!$B$36,INDEX(Ranks!$1:$1048576,$A46,AC$1))","v":""},{"$f":"IF($A46=\"N/A\",Ref!$B$36,INDEX(Ranks!$1:$1048576,$A46,AD$1))","v":""},{"$f":"IF($A46=\"N/A\",Ref!$B$36,INDEX(Ranks!$1:$1048576,$A46,AE$1))","v":""},{"$f":"IF($A46=\"N/A\",Ref!$B$36,INDEX(Ranks!$1:$1048576,$A46,AF$1))","v":""},{"$f":"IF($A46=\"N/A\",Ref!$B$36,INDEX(Ranks!$1:$1048576,$A46,AG$1))","v":""},{"$f":"IF($A46=\"N/A\",Ref!$B$36,INDEX(Ranks!$1:$1048576,$A46,AH$1))","v":""},{"$f":"IF($A46=\"N/A\",Ref!$B$36,INDEX(Ranks!$1:$1048576,$A46,AI$1))","v":""},{"$f":"IF($A46=\"N/A\",Ref!$B$36,INDEX(Ranks!$1:$1048576,$A46,AJ$1))","v":""},{"$f":"IF($A46=\"N/A\",Ref!$B$36,INDEX(Ranks!$1:$1048576,$A46,AK$1))","v":""},{"$f":"IF($A46=\"N/A\",Ref!$B$36,INDEX(Ranks!$1:$1048576,$A46,AL$1))","v":""},{"$f":"IF($A46=\"N/A\",Ref!$B$36,INDEX(Ranks!$1:$1048576,$A46,AM$1))","v":""},{"$f":"IF($A46=\"N/A\",Ref!$B$36,INDEX(Ranks!$1:$1048576,$A46,AN$1))","v":""},{"$f":"IF($A46=\"N/A\",Ref!$B$36,INDEX(Ranks!$1:$1048576,$A46,AO$1))","v":""},{"$f":"IF($A46=\"N/A\",Ref!$B$36,INDEX(Ranks!$1:$1048576,$A46,AP$1))","v":""},{"$f":"IF($A46=\"N/A\",Ref!$B$36,INDEX(Ranks!$1:$1048576,$A46,AQ$1))","v":""},{"$f":"IF($A46=\"N/A\",Ref!$B$36,INDEX(Ranks!$1:$1048576,$A46,AR$1))","v":""},{"$f":"IF($A46=\"N/A\",Ref!$B$36,INDEX(Ranks!$1:$1048576,$A46,AS$1))","v":""},{"$f":"IF($A46=\"N/A\",Ref!$B$36,INDEX(Ranks!$1:$1048576,$A46,AT$1))","v":""},{"$f":"IF($A46=\"N/A\",Ref!$B$36,INDEX(Ranks!$1:$1048576,$A46,AU$1))","v":""},{"$f":"IF($A46=\"N/A\",Ref!$B$36,INDEX(Ranks!$1:$1048576,$A46,AV$1))","v":""},{"$f":"IF($A46=\"N/A\",Ref!$B$36,INDEX(Ranks!$1:$1048576,$A46,AW$1))","v":""},{"$f":"IF($A46=\"N/A\",Ref!$B$36,INDEX(Ranks!$1:$1048576,$A46,AX$1))","v":""},{"$f":"IF($A46=\"N/A\",Ref!$B$36,INDEX(Ranks!$1:$1048576,$A46,AY$1))","v":""},{"$f":"IF($A46=\"N/A\",Ref!$B$36,INDEX(Ranks!$1:$1048576,$A46,AZ$1))","v":""},{"$f":"IF($A46=\"N/A\",Ref!$B$36,INDEX(Ranks!$1:$1048576,$A46,BA$1))","v":""},{"$f":"IF($A46=\"N/A\",Ref!$B$36,INDEX(Ranks!$1:$1048576,$A46,BB$1))","v":""},{"$f":"IF($A46=\"N/A\",Ref!$B$36,INDEX(Ranks!$1:$1048576,$A46,BC$1))","v":""},{"$f":"IF($A46=\"N/A\",Ref!$B$36,INDEX(Ranks!$1:$1048576,$A46,BD$1))","v":""},{"$f":"IF($A46=\"N/A\",Ref!$B$36,INDEX(Ranks!$1:$1048576,$A46,BE$1))","v":""},{"$f":"IF($A46=\"N/A\",Ref!$B$36,INDEX(Ranks!$1:$1048576,$A46,BF$1))","v":""},{"$f":"IF($A46=\"N/A\",Ref!$B$36,INDEX(Ranks!$1:$1048576,$A46,BG$1))","v":""},{"$f":"IF($A46=\"N/A\",Ref!$B$36,INDEX(Ranks!$1:$1048576,$A46,BH$1))","v":""},{"$f":"IF($A46=\"N/A\",Ref!$B$36,INDEX(Ranks!$1:$1048576,$A46,BI$1))","v":""},{"$f":"IF($A46=\"N/A\",Ref!$B$36,INDEX(Ranks!$1:$1048576,$A46,BJ$1))","v":""},{"$f":"IF($A46=\"N/A\",Ref!$B$36,INDEX(Ranks!$1:$1048576,$A46,BK$1))","v":""},{"$f":"IF($A46=\"N/A\",Ref!$B$36,INDEX(Ranks!$1:$1048576,$A46,BL$1))","v":""},{"$f":"IF($A46=\"N/A\",Ref!$B$36,INDEX(Ranks!$1:$1048576,$A46,BM$1))","v":""},{"$f":"IF($A46=\"N/A\",Ref!$B$36,INDEX(Ranks!$1:$1048576,$A46,BN$1))","v":""},{"$f":"IF($A46=\"N/A\",Ref!$B$36,INDEX(Ranks!$1:$1048576,$A46,BO$1))","v":""},{"$f":"IF($A46=\"N/A\",Ref!$B$36,INDEX(Ranks!$1:$1048576,$A46,BP$1))","v":""},{"$f":"IF($A46=\"N/A\",Ref!$B$36,INDEX(Ranks!$1:$1048576,$A46,BQ$1))","v":""},{"$f":"IF($A46=\"N/A\",Ref!$B$36,INDEX(Ranks!$1:$1048576,$A46,BR$1))","v":""},{"$f":"IF($A46=\"N/A\",Ref!$B$36,INDEX(Ranks!$1:$1048576,$A46,BS$1))","v":""},{"$f":"IF($A46=\"N/A\",Ref!$B$36,INDEX(Ranks!$1:$1048576,$A46,BT$1))","v":""},{"$f":"IF($A46=\"N/A\",Ref!$B$36,INDEX(Ranks!$1:$1048576,$A46,BU$1))","v":""},{"$f":"IF($A46=\"N/A\",Ref!$B$36,INDEX(Ranks!$1:$1048576,$A46,BV$1))","v":""},{"$f":"IF($A46=\"N/A\",Ref!$B$36,INDEX(Ranks!$1:$1048576,$A46,BW$1))","v":""},{"$f":"IF($A46=\"N/A\",Ref!$B$36,INDEX(Ranks!$1:$1048576,$A46,BX$1))","v":""},{"$f":"IF($A46=\"N/A\",Ref!$B$36,INDEX(Ranks!$1:$1048576,$A46,BY$1))","v":""},{"$f":"IF($A46=\"N/A\",Ref!$B$36,INDEX(Ranks!$1:$1048576,$A46,BZ$1))","v":""},{"$f":"IF($A46=\"N/A\",Ref!$B$36,INDEX(Ranks!$1:$1048576,$A46,CA$1))","v":""},{"$f":"IF($A46=\"N/A\",Ref!$B$36,INDEX(Ranks!$1:$1048576,$A46,CB$1))","v":""},{"$f":"IF($A46=\"N/A\",Ref!$B$36,INDEX(Ranks!$1:$1048576,$A46,CC$1))","v":""},{"$f":"IF($A46=\"N/A\",Ref!$B$36,INDEX(Ranks!$1:$1048576,$A46,CD$1))","v":""},{"$f":"IF($A46=\"N/A\",Ref!$B$36,INDEX(Ranks!$1:$1048576,$A46,CE$1))","v":""},{"$f":"IF($A46=\"N/A\",Ref!$B$36,INDEX(Ranks!$1:$1048576,$A46,CF$1))","v":""},{"$f":"IF($A46=\"N/A\",Ref!$B$36,INDEX(Ranks!$1:$1048576,$A46,CG$1))","v":""},{"$f":"IF($A46=\"N/A\",Ref!$B$36,INDEX(Ranks!$1:$1048576,$A46,CH$1))","v":""},{"$f":"IF($A46=\"N/A\",Ref!$B$36,INDEX(Ranks!$1:$1048576,$A46,CI$1))","v":""},{"$f":"IF($A46=\"N/A\",Ref!$B$36,INDEX(Ranks!$1:$1048576,$A46,CJ$1))","v":""},{"$f":"IF($A46=\"N/A\",Ref!$B$36,INDEX(Ranks!$1:$1048576,$A46,CK$1))","v":""},{"$f":"IF($A46=\"N/A\",Ref!$B$36,INDEX(Ranks!$1:$1048576,$A46,CL$1))","v":""},{"$f":"IF($A46=\"N/A\",Ref!$B$36,INDEX(Ranks!$1:$1048576,$A46,CM$1))","v":""},{"$f":"IF($A46=\"N/A\",Ref!$B$36,INDEX(Ranks!$1:$1048576,$A46,CN$1))","v":""},{"$f":"IF($A46=\"N/A\",Ref!$B$36,INDEX(Ranks!$1:$1048576,$A46,CO$1))","v":""},{"$f":"IF($A46=\"N/A\",Ref!$B$36,INDEX(Ranks!$1:$1048576,$A46,CP$1))","v":""},{"$f":"IF($A46=\"N/A\",Ref!$B$36,INDEX(Ranks!$1:$1048576,$A46,CQ$1))","v":""},{"$f":"IF($A46=\"N/A\",Ref!$B$36,INDEX(Ranks!$1:$1048576,$A46,CR$1))","v":""},{"$f":"IF($A46=\"N/A\",Ref!$B$36,INDEX(Ranks!$1:$1048576,$A46,CS$1))","v":""},{"$f":"IF($A46=\"N/A\",Ref!$B$36,INDEX(Ranks!$1:$1048576,$A46,CT$1))","v":""},{"$f":"IF($A46=\"N/A\",Ref!$B$36,INDEX(Ranks!$1:$1048576,$A46,CU$1))","v":""},{"$f":"IF($A46=\"N/A\",Ref!$B$36,INDEX(Ranks!$1:$1048576,$A46,CV$1))","v":""},{"$f":"IF($A46=\"N/A\",Ref!$B$36,INDEX(Ranks!$1:$1048576,$A46,CW$1))","v":""},{"$f":"IF($A46=\"N/A\",Ref!$B$36,INDEX(Ranks!$1:$1048576,$A46,CX$1))","v":""},{"$f":"IF($A46=\"N/A\",Ref!$B$36,INDEX(Ranks!$1:$1048576,$A46,CY$1))","v":""},{"$f":"IF($A46=\"N/A\",Ref!$B$36,INDEX(Ranks!$1:$1048576,$A46,CZ$1))","v":""},{"$f":"IF($A46=\"N/A\",Ref!$B$36,INDEX(Ranks!$1:$1048576,$A46,DA$1))","v":""},{"$f":"IF($A46=\"N/A\",Ref!$B$36,INDEX(Ranks!$1:$1048576,$A46,DB$1))","v":""},{"$f":"IF($A46=\"N/A\",Ref!$B$36,INDEX(Ranks!$1:$1048576,$A46,DC$1))","v":""},{"$f":"IF($A46=\"N/A\",Ref!$B$36,INDEX(Ranks!$1:$1048576,$A46,DD$1))","v":""},{"$f":"IF($A46=\"N/A\",Ref!$B$36,INDEX(Ranks!$1:$1048576,$A46,DE$1))","v":""},{"$f":"IF($A46=\"N/A\",Ref!$B$36,INDEX(Ranks!$1:$1048576,$A46,DF$1))","v":""},{"$f":"IF($A46=\"N/A\",Ref!$B$36,INDEX(Ranks!$1:$1048576,$A46,DG$1))","v":""},{"$f":"IF($A46=\"N/A\",Ref!$B$36,INDEX(Ranks!$1:$1048576,$A46,DH$1))","v":""},{"$f":"IF($A46=\"N/A\",Ref!$B$36,INDEX(Ranks!$1:$1048576,$A46,DI$1))","v":""},{"$f":"IF($A46=\"N/A\",Ref!$B$36,INDEX(Ranks!$1:$1048576,$A46,DJ$1))","v":""},{"$f":"IF($A46=\"N/A\",Ref!$B$36,INDEX(Ranks!$1:$1048576,$A46,DK$1))","v":""},{"$f":"IF($A46=\"N/A\",Ref!$B$36,INDEX(Ranks!$1:$1048576,$A46,DL$1))","v":""},{"$f":"IF($A46=\"N/A\",Ref!$B$36,INDEX(Ranks!$1:$1048576,$A46,DM$1))","v":""},{"$f":"IF($A46=\"N/A\",Ref!$B$36,INDEX(Ranks!$1:$1048576,$A46,DN$1))","v":""},{"$f":"IF($A46=\"N/A\",Ref!$B$36,INDEX(Ranks!$1:$1048576,$A46,DO$1))","v":""},{"$f":"IF($A46=\"N/A\",Ref!$B$36,INDEX(Ranks!$1:$1048576,$A46,DP$1))","v":""},{"$f":"IF($A46=\"N/A\",Ref!$B$36,INDEX(Ranks!$1:$1048576,$A46,DQ$1))","v":""},{"$f":"IF($A46=\"N/A\",Ref!$B$36,INDEX(Ranks!$1:$1048576,$A46,DR$1))","v":""},{"$f":"IF($A46=\"N/A\",Ref!$B$36,INDEX(Ranks!$1:$1048576,$A46,DS$1))","v":""},{"$f":"IF($A46=\"N/A\",Ref!$B$36,INDEX(Ranks!$1:$1048576,$A46,DT$1))","v":""},{"$f":"IF($A46=\"N/A\",Ref!$B$36,INDEX(Ranks!$1:$1048576,$A46,DU$1))","v":""},{"$f":"IF($A46=\"N/A\",Ref!$B$36,INDEX(Ranks!$1:$1048576,$A46,DV$1))","v":""},{"$f":"IF($A46=\"N/A\",Ref!$B$36,INDEX(Ranks!$1:$1048576,$A46,DW$1))","v":""},{"$f":"IF($A46=\"N/A\",Ref!$B$36,INDEX(Ranks!$1:$1048576,$A46,DX$1))","v":""},{"$f":"IF($A46=\"N/A\",Ref!$B$36,INDEX(Ranks!$1:$1048576,$A46,DY$1))","v":""},{"$f":"IF($A46=\"N/A\",Ref!$B$36,INDEX(Ranks!$1:$1048576,$A46,DZ$1))","v":""},{"$f":"IF($A46=\"N/A\",Ref!$B$36,INDEX(Ranks!$1:$1048576,$A46,EA$1))","v":""},{"$f":"IF($A46=\"N/A\",Ref!$B$36,INDEX(Ranks!$1:$1048576,$A46,EB$1))","v":""}]
[{"$f":"IFERROR(MATCH('Portfolio Page'!L47,Ranks!L:L,0),\"N/A\")","v":"N/A"},null,{"$f":"IF($A47=\"N/A\",\"\",INDEX(Ranks!$1:$1048576,$A47,C$1))","v":""},{"$f":"IF($A47=\"N/A\",Ref!$B$36,INDEX(Ranks!$1:$1048576,$A47,D$1))","v":""},{"$f":"IF($A47=\"N/A\",Ref!$B$36,INDEX(Ranks!$1:$1048576,$A47,E$1))","v":""},{"$f":"IF($A47=\"N/A\",\"\",INDEX(Ranks!$1:$1048576,$A47,F$1))","v":""},{"$f":"IF($A47=\"N/A\",\"\",INDEX(Ranks!$1:$1048576,$A47,G$1))","v":""},{"$f":"IF($A47=\"N/A\",\"\",INDEX(Ranks!$1:$1048576,$A47,H$1))","v":""},{"$f":"IF($A47=\"N/A\",\"\",INDEX(Ranks!$1:$1048576,$A47,I$1))","v":""},{"$f":"IF($A47=\"N/A\",\"\",INDEX(Ranks!$1:$1048576,$A47,J$1))","v":""},{"$f":"IF($A47=\"N/A\",\"\",INDEX(Ranks!$1:$1048576,$A47,K$1))","v":""},null,{"$f":"IF($A47=\"N/A\",Ref!$B$36,INDEX(Ranks!$1:$1048576,$A47,M$1))","v":""},{"$f":"IF($A47=\"N/A\",Ref!$B$36,INDEX(Ranks!$1:$1048576,$A47,N$1))","v":""},{"$f":"IF($A47=\"N/A\",Ref!$B$36,INDEX(Ranks!$1:$1048576,$A47,O$1))","v":""},{"$f":"IF($A47=\"N/A\",Ref!$B$36,INDEX(Ranks!$1:$1048576,$A47,P$1))","v":""},{"$f":"IF($A47=\"N/A\",Ref!$B$36,INDEX(Ranks!$1:$1048576,$A47,Q$1))","v":""},{"$f":"IF($A47=\"N/A\",Ref!$B$36,INDEX(Ranks!$1:$1048576,$A47,R$1))","v":""},{"$f":"IF($A47=\"N/A\",Ref!$B$36,INDEX(Ranks!$1:$1048576,$A47,S$1))","v":""},{"$f":"IF($A47=\"N/A\",Ref!$B$36,INDEX(Ranks!$1:$1048576,$A47,T$1))","v":""},{"$f":"IF($A47=\"N/A\",Ref!$B$36,INDEX(Ranks!$1:$1048576,$A47,U$1))","v":""},{"$f":"IF($A47=\"N/A\",Ref!$B$36,INDEX(Ranks!$1:$1048576,$A47,V$1))","v":""},{"$f":"IF($A47=\"N/A\",Ref!$B$36,INDEX(Ranks!$1:$1048576,$A47,W$1))","v":""},{"$f":"IF($A47=\"N/A\",Ref!$B$36,INDEX(Ranks!$1:$1048576,$A47,X$1))","v":""},{"$f":"IF($A47=\"N/A\",Ref!$B$36,INDEX(Ranks!$1:$1048576,$A47,Y$1))","v":""},{"$f":"IF($A47=\"N/A\",Ref!$B$36,INDEX(Ranks!$1:$1048576,$A47,Z$1))","v":""},{"$f":"IF($A47=\"N/A\",Ref!$B$36,INDEX(Ranks!$1:$1048576,$A47,AA$1))","v":""},{"$f":"IF($A47=\"N/A\",Ref!$B$36,INDEX(Ranks!$1:$1048576,$A47,AB$1))","v":""},{"$f":"IF($A47=\"N/A\",Ref!$B$36,INDEX(Ranks!$1:$1048576,$A47,AC$1))","v":""},{"$f":"IF($A47=\"N/A\",Ref!$B$36,INDEX(Ranks!$1:$1048576,$A47,AD$1))","v":""},{"$f":"IF($A47=\"N/A\",Ref!$B$36,INDEX(Ranks!$1:$1048576,$A47,AE$1))","v":""},{"$f":"IF($A47=\"N/A\",Ref!$B$36,INDEX(Ranks!$1:$1048576,$A47,AF$1))","v":""},{"$f":"IF($A47=\"N/A\",Ref!$B$36,INDEX(Ranks!$1:$1048576,$A47,AG$1))","v":""},{"$f":"IF($A47=\"N/A\",Ref!$B$36,INDEX(Ranks!$1:$1048576,$A47,AH$1))","v":""},{"$f":"IF($A47=\"N/A\",Ref!$B$36,INDEX(Ranks!$1:$1048576,$A47,AI$1))","v":""},{"$f":"IF($A47=\"N/A\",Ref!$B$36,INDEX(Ranks!$1:$1048576,$A47,AJ$1))","v":""},{"$f":"IF($A47=\"N/A\",Ref!$B$36,INDEX(Ranks!$1:$1048576,$A47,AK$1))","v":""},{"$f":"IF($A47=\"N/A\",Ref!$B$36,INDEX(Ranks!$1:$1048576,$A47,AL$1))","v":""},{"$f":"IF($A47=\"N/A\",Ref!$B$36,INDEX(Ranks!$1:$1048576,$A47,AM$1))","v":""},{"$f":"IF($A47=\"N/A\",Ref!$B$36,INDEX(Ranks!$1:$1048576,$A47,AN$1))","v":""},{"$f":"IF($A47=\"N/A\",Ref!$B$36,INDEX(Ranks!$1:$1048576,$A47,AO$1))","v":""},{"$f":"IF($A47=\"N/A\",Ref!$B$36,INDEX(Ranks!$1:$1048576,$A47,AP$1))","v":""},{"$f":"IF($A47=\"N/A\",Ref!$B$36,INDEX(Ranks!$1:$1048576,$A47,AQ$1))","v":""},{"$f":"IF($A47=\"N/A\",Ref!$B$36,INDEX(Ranks!$1:$1048576,$A47,AR$1))","v":""},{"$f":"IF($A47=\"N/A\",Ref!$B$36,INDEX(Ranks!$1:$1048576,$A47,AS$1))","v":""},{"$f":"IF($A47=\"N/A\",Ref!$B$36,INDEX(Ranks!$1:$1048576,$A47,AT$1))","v":""},{"$f":"IF($A47=\"N/A\",Ref!$B$36,INDEX(Ranks!$1:$1048576,$A47,AU$1))","v":""},{"$f":"IF($A47=\"N/A\",Ref!$B$36,INDEX(Ranks!$1:$1048576,$A47,AV$1))","v":""},{"$f":"IF($A47=\"N/A\",Ref!$B$36,INDEX(Ranks!$1:$1048576,$A47,AW$1))","v":""},{"$f":"IF($A47=\"N/A\",Ref!$B$36,INDEX(Ranks!$1:$1048576,$A47,AX$1))","v":""},{"$f":"IF($A47=\"N/A\",Ref!$B$36,INDEX(Ranks!$1:$1048576,$A47,AY$1))","v":""},{"$f":"IF($A47=\"N/A\",Ref!$B$36,INDEX(Ranks!$1:$1048576,$A47,AZ$1))","v":""},{"$f":"IF($A47=\"N/A\",Ref!$B$36,INDEX(Ranks!$1:$1048576,$A47,BA$1))","v":""},{"$f":"IF($A47=\"N/A\",Ref!$B$36,INDEX(Ranks!$1:$1048576,$A47,BB$1))","v":""},{"$f":"IF($A47=\"N/A\",Ref!$B$36,INDEX(Ranks!$1:$1048576,$A47,BC$1))","v":""},{"$f":"IF($A47=\"N/A\",Ref!$B$36,INDEX(Ranks!$1:$1048576,$A47,BD$1))","v":""},{"$f":"IF($A47=\"N/A\",Ref!$B$36,INDEX(Ranks!$1:$1048576,$A47,BE$1))","v":""},{"$f":"IF($A47=\"N/A\",Ref!$B$36,INDEX(Ranks!$1:$1048576,$A47,BF$1))","v":""},{"$f":"IF($A47=\"N/A\",Ref!$B$36,INDEX(Ranks!$1:$1048576,$A47,BG$1))","v":""},{"$f":"IF($A47=\"N/A\",Ref!$B$36,INDEX(Ranks!$1:$1048576,$A47,BH$1))","v":""},{"$f":"IF($A47=\"N/A\",Ref!$B$36,INDEX(Ranks!$1:$1048576,$A47,BI$1))","v":""},{"$f":"IF($A47=\"N/A\",Ref!$B$36,INDEX(Ranks!$1:$1048576,$A47,BJ$1))","v":""},{"$f":"IF($A47=\"N/A\",Ref!$B$36,INDEX(Ranks!$1:$1048576,$A47,BK$1))","v":""},{"$f":"IF($A47=\"N/A\",Ref!$B$36,INDEX(Ranks!$1:$1048576,$A47,BL$1))","v":""},{"$f":"IF($A47=\"N/A\",Ref!$B$36,INDEX(Ranks!$1:$1048576,$A47,BM$1))","v":""},{"$f":"IF($A47=\"N/A\",Ref!$B$36,INDEX(Ranks!$1:$1048576,$A47,BN$1))","v":""},{"$f":"IF($A47=\"N/A\",Ref!$B$36,INDEX(Ranks!$1:$1048576,$A47,BO$1))","v":""},{"$f":"IF($A47=\"N/A\",Ref!$B$36,INDEX(Ranks!$1:$1048576,$A47,BP$1))","v":""},{"$f":"IF($A47=\"N/A\",Ref!$B$36,INDEX(Ranks!$1:$1048576,$A47,BQ$1))","v":""},{"$f":"IF($A47=\"N/A\",Ref!$B$36,INDEX(Ranks!$1:$1048576,$A47,BR$1))","v":""},{"$f":"IF($A47=\"N/A\",Ref!$B$36,INDEX(Ranks!$1:$1048576,$A47,BS$1))","v":""},{"$f":"IF($A47=\"N/A\",Ref!$B$36,INDEX(Ranks!$1:$1048576,$A47,BT$1))","v":""},{"$f":"IF($A47=\"N/A\",Ref!$B$36,INDEX(Ranks!$1:$1048576,$A47,BU$1))","v":""},{"$f":"IF($A47=\"N/A\",Ref!$B$36,INDEX(Ranks!$1:$1048576,$A47,BV$1))","v":""},{"$f":"IF($A47=\"N/A\",Ref!$B$36,INDEX(Ranks!$1:$1048576,$A47,BW$1))","v":""},{"$f":"IF($A47=\"N/A\",Ref!$B$36,INDEX(Ranks!$1:$1048576,$A47,BX$1))","v":""},{"$f":"IF($A47=\"N/A\",Ref!$B$36,INDEX(Ranks!$1:$1048576,$A47,BY$1))","v":""},{"$f":"IF($A47=\"N/A\",Ref!$B$36,INDEX(Ranks!$1:$1048576,$A47,BZ$1))","v":""},{"$f":"IF($A47=\"N/A\",Ref!$B$36,INDEX(Ranks!$1:$1048576,$A47,CA$1))","v":""},{"$f":"IF($A47=\"N/A\",Ref!$B$36,INDEX(Ranks!$1:$1048576,$A47,CB$1))","v":""},{"$f":"IF($A47=\"N/A\",Ref!$B$36,INDEX(Ranks!$1:$1048576,$A47,CC$1))","v":""},{"$f":"IF($A47=\"N/A\",Ref!$B$36,INDEX(Ranks!$1:$1048576,$A47,CD$1))","v":""},{"$f":"IF($A47=\"N/A\",Ref!$B$36,INDEX(Ranks!$1:$1048576,$A47,CE$1))","v":""},{"$f":"IF($A47=\"N/A\",Ref!$B$36,INDEX(Ranks!$1:$1048576,$A47,CF$1))","v":""},{"$f":"IF($A47=\"N/A\",Ref!$B$36,INDEX(Ranks!$1:$1048576,$A47,CG$1))","v":""},{"$f":"IF($A47=\"N/A\",Ref!$B$36,INDEX(Ranks!$1:$1048576,$A47,CH$1))","v":""},{"$f":"IF($A47=\"N/A\",Ref!$B$36,INDEX(Ranks!$1:$1048576,$A47,CI$1))","v":""},{"$f":"IF($A47=\"N/A\",Ref!$B$36,INDEX(Ranks!$1:$1048576,$A47,CJ$1))","v":""},{"$f":"IF($A47=\"N/A\",Ref!$B$36,INDEX(Ranks!$1:$1048576,$A47,CK$1))","v":""},{"$f":"IF($A47=\"N/A\",Ref!$B$36,INDEX(Ranks!$1:$1048576,$A47,CL$1))","v":""},{"$f":"IF($A47=\"N/A\",Ref!$B$36,INDEX(Ranks!$1:$1048576,$A47,CM$1))","v":""},{"$f":"IF($A47=\"N/A\",Ref!$B$36,INDEX(Ranks!$1:$1048576,$A47,CN$1))","v":""},{"$f":"IF($A47=\"N/A\",Ref!$B$36,INDEX(Ranks!$1:$1048576,$A47,CO$1))","v":""},{"$f":"IF($A47=\"N/A\",Ref!$B$36,INDEX(Ranks!$1:$1048576,$A47,CP$1))","v":""},{"$f":"IF($A47=\"N/A\",Ref!$B$36,INDEX(Ranks!$1:$1048576,$A47,CQ$1))","v":""},{"$f":"IF($A47=\"N/A\",Ref!$B$36,INDEX(Ranks!$1:$1048576,$A47,CR$1))","v":""},{"$f":"IF($A47=\"N/A\",Ref!$B$36,INDEX(Ranks!$1:$1048576,$A47,CS$1))","v":""},{"$f":"IF($A47=\"N/A\",Ref!$B$36,INDEX(Ranks!$1:$1048576,$A47,CT$1))","v":""},{"$f":"IF($A47=\"N/A\",Ref!$B$36,INDEX(Ranks!$1:$1048576,$A47,CU$1))","v":""},{"$f":"IF($A47=\"N/A\",Ref!$B$36,INDEX(Ranks!$1:$1048576,$A47,CV$1))","v":""},{"$f":"IF($A47=\"N/A\",Ref!$B$36,INDEX(Ranks!$1:$1048576,$A47,CW$1))","v":""},{"$f":"IF($A47=\"N/A\",Ref!$B$36,INDEX(Ranks!$1:$1048576,$A47,CX$1))","v":""},{"$f":"IF($A47=\"N/A\",Ref!$B$36,INDEX(Ranks!$1:$1048576,$A47,CY$1))","v":""},{"$f":"IF($A47=\"N/A\",Ref!$B$36,INDEX(Ranks!$1:$1048576,$A47,CZ$1))","v":""},{"$f":"IF($A47=\"N/A\",Ref!$B$36,INDEX(Ranks!$1:$1048576,$A47,DA$1))","v":""},{"$f":"IF($A47=\"N/A\",Ref!$B$36,INDEX(Ranks!$1:$1048576,$A47,DB$1))","v":""},{"$f":"IF($A47=\"N/A\",Ref!$B$36,INDEX(Ranks!$1:$1048576,$A47,DC$1))","v":""},{"$f":"IF($A47=\"N/A\",Ref!$B$36,INDEX(Ranks!$1:$1048576,$A47,DD$1))","v":""},{"$f":"IF($A47=\"N/A\",Ref!$B$36,INDEX(Ranks!$1:$1048576,$A47,DE$1))","v":""},{"$f":"IF($A47=\"N/A\",Ref!$B$36,INDEX(Ranks!$1:$1048576,$A47,DF$1))","v":""},{"$f":"IF($A47=\"N/A\",Ref!$B$36,INDEX(Ranks!$1:$1048576,$A47,DG$1))","v":""},{"$f":"IF($A47=\"N/A\",Ref!$B$36,INDEX(Ranks!$1:$1048576,$A47,DH$1))","v":""},{"$f":"IF($A47=\"N/A\",Ref!$B$36,INDEX(Ranks!$1:$1048576,$A47,DI$1))","v":""},{"$f":"IF($A47=\"N/A\",Ref!$B$36,INDEX(Ranks!$1:$1048576,$A47,DJ$1))","v":""},{"$f":"IF($A47=\"N/A\",Ref!$B$36,INDEX(Ranks!$1:$1048576,$A47,DK$1))","v":""},{"$f":"IF($A47=\"N/A\",Ref!$B$36,INDEX(Ranks!$1:$1048576,$A47,DL$1))","v":""},{"$f":"IF($A47=\"N/A\",Ref!$B$36,INDEX(Ranks!$1:$1048576,$A47,DM$1))","v":""},{"$f":"IF($A47=\"N/A\",Ref!$B$36,INDEX(Ranks!$1:$1048576,$A47,DN$1))","v":""},{"$f":"IF($A47=\"N/A\",Ref!$B$36,INDEX(Ranks!$1:$1048576,$A47,DO$1))","v":""},{"$f":"IF($A47=\"N/A\",Ref!$B$36,INDEX(Ranks!$1:$1048576,$A47,DP$1))","v":""},{"$f":"IF($A47=\"N/A\",Ref!$B$36,INDEX(Ranks!$1:$1048576,$A47,DQ$1))","v":""},{"$f":"IF($A47=\"N/A\",Ref!$B$36,INDEX(Ranks!$1:$1048576,$A47,DR$1))","v":""},{"$f":"IF($A47=\"N/A\",Ref!$B$36,INDEX(Ranks!$1:$1048576,$A47,DS$1))","v":""},{"$f":"IF($A47=\"N/A\",Ref!$B$36,INDEX(Ranks!$1:$1048576,$A47,DT$1))","v":""},{"$f":"IF($A47=\"N/A\",Ref!$B$36,INDEX(Ranks!$1:$1048576,$A47,DU$1))","v":""},{"$f":"IF($A47=\"N/A\",Ref!$B$36,INDEX(Ranks!$1:$1048576,$A47,DV$1))","v":""},{"$f":"IF($A47=\"N/A\",Ref!$B$36,INDEX(Ranks!$1:$1048576,$A47,DW$1))","v":""},{"$f":"IF($A47=\"N/A\",Ref!$B$36,INDEX(Ranks!$1:$1048576,$A47,DX$1))","v":""},{"$f":"IF($A47=\"N/A\",Ref!$B$36,INDEX(Ranks!$1:$1048576,$A47,DY$1))","v":""},{"$f":"IF($A47=\"N/A\",Ref!$B$36,INDEX(Ranks!$1:$1048576,$A47,DZ$1))","v":""},{"$f":"IF($A47=\"N/A\",Ref!$B$36,INDEX(Ranks!$1:$1048576,$A47,EA$1))","v":""},{"$f":"IF($A47=\"N/A\",Ref!$B$36,INDEX(Ranks!$1:$1048576,$A47,EB$1))","v":""}]
[{"$f":"IFERROR(MATCH('Portfolio Page'!L48,Ranks!L:L,0),\"N/A\")","v":"N/A"},null,{"$f":"IF($A48=\"N/A\",\"\",INDEX(Ranks!$1:$1048576,$A48,C$1))","v":""},{"$f":"IF($A48=\"N/A\",Ref!$B$36,INDEX(Ranks!$1:$1048576,$A48,D$1))","v":""},{"$f":"IF($A48=\"N/A\",Ref!$B$36,INDEX(Ranks!$1:$1048576,$A48,E$1))","v":""},{"$f":"IF($A48=\"N/A\",\"\",INDEX(Ranks!$1:$1048576,$A48,F$1))","v":""},{"$f":"IF($A48=\"N/A\",\"\",INDEX(Ranks!$1:$1048576,$A48,G$1))","v":""},{"$f":"IF($A48=\"N/A\",\"\",INDEX(Ranks!$1:$1048576,$A48,H$1))","v":""},{"$f":"IF($A48=\"N/A\",\"\",INDEX(Ranks!$1:$1048576,$A48,I$1))","v":""},{"$f":"IF($A48=\"N/A\",\"\",INDEX(Ranks!$1:$1048576,$A48,J$1))","v":""},{"$f":"IF($A48=\"N/A\",\"\",INDEX(Ranks!$1:$1048576,$A48,K$1))","v":""},null,{"$f":"IF($A48=\"N/A\",Ref!$B$36,INDEX(Ranks!$1:$1048576,$A48,M$1))","v":""},{"$f":"IF($A48=\"N/A\",Ref!$B$36,INDEX(Ranks!$1:$1048576,$A48,N$1))","v":""},{"$f":"IF($A48=\"N/A\",Ref!$B$36,INDEX(Ranks!$1:$1048576,$A48,O$1))","v":""},{"$f":"IF($A48=\"N/A\",Ref!$B$36,INDEX(Ranks!$1:$1048576,$A48,P$1))","v":""},{"$f":"IF($A48=\"N/A\",Ref!$B$36,INDEX(Ranks!$1:$1048576,$A48,Q$1))","v":""},{"$f":"IF($A48=\"N/A\",Ref!$B$36,INDEX(Ranks!$1:$1048576,$A48,R$1))","v":""},{"$f":"IF($A48=\"N/A\",Ref!$B$36,INDEX(Ranks!$1:$1048576,$A48,S$1))","v":""},{"$f":"IF($A48=\"N/A\",Ref!$B$36,INDEX(Ranks!$1:$1048576,$A48,T$1))","v":""},{"$f":"IF($A48=\"N/A\",Ref!$B$36,INDEX(Ranks!$1:$1048576,$A48,U$1))","v":""},{"$f":"IF($A48=\"N/A\",Ref!$B$36,INDEX(Ranks!$1:$1048576,$A48,V$1))","v":""},{"$f":"IF($A48=\"N/A\",Ref!$B$36,INDEX(Ranks!$1:$1048576,$A48,W$1))","v":""},{"$f":"IF($A48=\"N/A\",Ref!$B$36,INDEX(Ranks!$1:$1048576,$A48,X$1))","v":""},{"$f":"IF($A48=\"N/A\",Ref!$B$36,INDEX(Ranks!$1:$1048576,$A48,Y$1))","v":""},{"$f":"IF($A48=\"N/A\",Ref!$B$36,INDEX(Ranks!$1:$1048576,$A48,Z$1))","v":""},{"$f":"IF($A48=\"N/A\",Ref!$B$36,INDEX(Ranks!$1:$1048576,$A48,AA$1))","v":""},{"$f":"IF($A48=\"N/A\",Ref!$B$36,INDEX(Ranks!$1:$1048576,$A48,AB$1))","v":""},{"$f":"IF($A48=\"N/A\",Ref!$B$36,INDEX(Ranks!$1:$1048576,$A48,AC$1))","v":""},{"$f":"IF($A48=\"N/A\",Ref!$B$36,INDEX(Ranks!$1:$1048576,$A48,AD$1))","v":""},{"$f":"IF($A48=\"N/A\",Ref!$B$36,INDEX(Ranks!$1:$1048576,$A48,AE$1))","v":""},{"$f":"IF($A48=\"N/A\",Ref!$B$36,INDEX(Ranks!$1:$1048576,$A48,AF$1))","v":""},{"$f":"IF($A48=\"N/A\",Ref!$B$36,INDEX(Ranks!$1:$1048576,$A48,AG$1))","v":""},{"$f":"IF($A48=\"N/A\",Ref!$B$36,INDEX(Ranks!$1:$1048576,$A48,AH$1))","v":""},{"$f":"IF($A48=\"N/A\",Ref!$B$36,INDEX(Ranks!$1:$1048576,$A48,AI$1))","v":""},{"$f":"IF($A48=\"N/A\",Ref!$B$36,INDEX(Ranks!$1:$1048576,$A48,AJ$1))","v":""},{"$f":"IF($A48=\"N/A\",Ref!$B$36,INDEX(Ranks!$1:$1048576,$A48,AK$1))","v":""},{"$f":"IF($A48=\"N/A\",Ref!$B$36,INDEX(Ranks!$1:$1048576,$A48,AL$1))","v":""},{"$f":"IF($A48=\"N/A\",Ref!$B$36,INDEX(Ranks!$1:$1048576,$A48,AM$1))","v":""},{"$f":"IF($A48=\"N/A\",Ref!$B$36,INDEX(Ranks!$1:$1048576,$A48,AN$1))","v":""},{"$f":"IF($A48=\"N/A\",Ref!$B$36,INDEX(Ranks!$1:$1048576,$A48,AO$1))","v":""},{"$f":"IF($A48=\"N/A\",Ref!$B$36,INDEX(Ranks!$1:$1048576,$A48,AP$1))","v":""},{"$f":"IF($A48=\"N/A\",Ref!$B$36,INDEX(Ranks!$1:$1048576,$A48,AQ$1))","v":""},{"$f":"IF($A48=\"N/A\",Ref!$B$36,INDEX(Ranks!$1:$1048576,$A48,AR$1))","v":""},{"$f":"IF($A48=\"N/A\",Ref!$B$36,INDEX(Ranks!$1:$1048576,$A48,AS$1))","v":""},{"$f":"IF($A48=\"N/A\",Ref!$B$36,INDEX(Ranks!$1:$1048576,$A48,AT$1))","v":""},{"$f":"IF($A48=\"N/A\",Ref!$B$36,INDEX(Ranks!$1:$1048576,$A48,AU$1))","v":""},{"$f":"IF($A48=\"N/A\",Ref!$B$36,INDEX(Ranks!$1:$1048576,$A48,AV$1))","v":""},{"$f":"IF($A48=\"N/A\",Ref!$B$36,INDEX(Ranks!$1:$1048576,$A48,AW$1))","v":""},{"$f":"IF($A48=\"N/A\",Ref!$B$36,INDEX(Ranks!$1:$1048576,$A48,AX$1))","v":""},{"$f":"IF($A48=\"N/A\",Ref!$B$36,INDEX(Ranks!$1:$1048576,$A48,AY$1))","v":""},{"$f":"IF($A48=\"N/A\",Ref!$B$36,INDEX(Ranks!$1:$1048576,$A48,AZ$1))","v":""},{"$f":"IF($A48=\"N/A\",Ref!$B$36,INDEX(Ranks!$1:$1048576,$A48,BA$1))","v":""},{"$f":"IF($A48=\"N/A\",Ref!$B$36,INDEX(Ranks!$1:$1048576,$A48,BB$1))","v":""},{"$f":"IF($A48=\"N/A\",Ref!$B$36,INDEX(Ranks!$1:$1048576,$A48,BC$1))","v":""},{"$f":"IF($A48=\"N/A\",Ref!$B$36,INDEX(Ranks!$1:$1048576,$A48,BD$1))","v":""},{"$f":"IF($A48=\"N/A\",Ref!$B$36,INDEX(Ranks!$1:$1048576,$A48,BE$1))","v":""},{"$f":"IF($A48=\"N/A\",Ref!$B$36,INDEX(Ranks!$1:$1048576,$A48,BF$1))","v":""},{"$f":"IF($A48=\"N/A\",Ref!$B$36,INDEX(Ranks!$1:$1048576,$A48,BG$1))","v":""},{"$f":"IF($A48=\"N/A\",Ref!$B$36,INDEX(Ranks!$1:$1048576,$A48,BH$1))","v":""},{"$f":"IF($A48=\"N/A\",Ref!$B$36,INDEX(Ranks!$1:$1048576,$A48,BI$1))","v":""},{"$f":"IF($A48=\"N/A\",Ref!$B$36,INDEX(Ranks!$1:$1048576,$A48,BJ$1))","v":""},{"$f":"IF($A48=\"N/A\",Ref!$B$36,INDEX(Ranks!$1:$1048576,$A48,BK$1))","v":""},{"$f":"IF($A48=\"N/A\",Ref!$B$36,INDEX(Ranks!$1:$1048576,$A48,BL$1))","v":""},{"$f":"IF($A48=\"N/A\",Ref!$B$36,INDEX(Ranks!$1:$1048576,$A48,BM$1))","v":""},{"$f":"IF($A48=\"N/A\",Ref!$B$36,INDEX(Ranks!$1:$1048576,$A48,BN$1))","v":""},{"$f":"IF($A48=\"N/A\",Ref!$B$36,INDEX(Ranks!$1:$1048576,$A48,BO$1))","v":""},{"$f":"IF($A48=\"N/A\",Ref!$B$36,INDEX(Ranks!$1:$1048576,$A48,BP$1))","v":""},{"$f":"IF($A48=\"N/A\",Ref!$B$36,INDEX(Ranks!$1:$1048576,$A48,BQ$1))","v":""},{"$f":"IF($A48=\"N/A\",Ref!$B$36,INDEX(Ranks!$1:$1048576,$A48,BR$1))","v":""},{"$f":"IF($A48=\"N/A\",Ref!$B$36,INDEX(Ranks!$1:$1048576,$A48,BS$1))","v":""},{"$f":"IF($A48=\"N/A\",Ref!$B$36,INDEX(Ranks!$1:$1048576,$A48,BT$1))","v":""},{"$f":"IF($A48=\"N/A\",Ref!$B$36,INDEX(Ranks!$1:$1048576,$A48,BU$1))","v":""},{"$f":"IF($A48=\"N/A\",Ref!$B$36,INDEX(Ranks!$1:$1048576,$A48,BV$1))","v":""},{"$f":"IF($A48=\"N/A\",Ref!$B$36,INDEX(Ranks!$1:$1048576,$A48,BW$1))","v":""},{"$f":"IF($A48=\"N/A\",Ref!$B$36,INDEX(Ranks!$1:$1048576,$A48,BX$1))","v":""},{"$f":"IF($A48=\"N/A\",Ref!$B$36,INDEX(Ranks!$1:$1048576,$A48,BY$1))","v":""},{"$f":"IF($A48=\"N/A\",Ref!$B$36,INDEX(Ranks!$1:$1048576,$A48,BZ$1))","v":""},{"$f":"IF($A48=\"N/A\",Ref!$B$36,INDEX(Ranks!$1:$1048576,$A48,CA$1))","v":""},{"$f":"IF($A48=\"N/A\",Ref!$B$36,INDEX(Ranks!$1:$1048576,$A48,CB$1))","v":""},{"$f":"IF($A48=\"N/A\",Ref!$B$36,INDEX(Ranks!$1:$1048576,$A48,CC$1))","v":""},{"$f":"IF($A48=\"N/A\",Ref!$B$36,INDEX(Ranks!$1:$1048576,$A48,CD$1))","v":""},{"$f":"IF($A48=\"N/A\",Ref!$B$36,INDEX(Ranks!$1:$1048576,$A48,CE$1))","v":""},{"$f":"IF($A48=\"N/A\",Ref!$B$36,INDEX(Ranks!$1:$1048576,$A48,CF$1))","v":""},{"$f":"IF($A48=\"N/A\",Ref!$B$36,INDEX(Ranks!$1:$1048576,$A48,CG$1))","v":""},{"$f":"IF($A48=\"N/A\",Ref!$B$36,INDEX(Ranks!$1:$1048576,$A48,CH$1))","v":""},{"$f":"IF($A48=\"N/A\",Ref!$B$36,INDEX(Ranks!$1:$1048576,$A48,CI$1))","v":""},{"$f":"IF($A48=\"N/A\",Ref!$B$36,INDEX(Ranks!$1:$1048576,$A48,CJ$1))","v":""},{"$f":"IF($A48=\"N/A\",Ref!$B$36,INDEX(Ranks!$1:$1048576,$A48,CK$1))","v":""},{"$f":"IF($A48=\"N/A\",Ref!$B$36,INDEX(Ranks!$1:$1048576,$A48,CL$1))","v":""},{"$f":"IF($A48=\"N/A\",Ref!$B$36,INDEX(Ranks!$1:$1048576,$A48,CM$1))","v":""},{"$f":"IF($A48=\"N/A\",Ref!$B$36,INDEX(Ranks!$1:$1048576,$A48,CN$1))","v":""},{"$f":"IF($A48=\"N/A\",Ref!$B$36,INDEX(Ranks!$1:$1048576,$A48,CO$1))","v":""},{"$f":"IF($A48=\"N/A\",Ref!$B$36,INDEX(Ranks!$1:$1048576,$A48,CP$1))","v":""},{"$f":"IF($A48=\"N/A\",Ref!$B$36,INDEX(Ranks!$1:$1048576,$A48,CQ$1))","v":""},{"$f":"IF($A48=\"N/A\",Ref!$B$36,INDEX(Ranks!$1:$1048576,$A48,CR$1))","v":""},{"$f":"IF($A48=\"N/A\",Ref!$B$36,INDEX(Ranks!$1:$1048576,$A48,CS$1))","v":""},{"$f":"IF($A48=\"N/A\",Ref!$B$36,INDEX(Ranks!$1:$1048576,$A48,CT$1))","v":""},{"$f":"IF($A48=\"N/A\",Ref!$B$36,INDEX(Ranks!$1:$1048576,$A48,CU$1))","v":""},{"$f":"IF($A48=\"N/A\",Ref!$B$36,INDEX(Ranks!$1:$1048576,$A48,CV$1))","v":""},{"$f":"IF($A48=\"N/A\",Ref!$B$36,INDEX(Ranks!$1:$1048576,$A48,CW$1))","v":""},{"$f":"IF($A48=\"N/A\",Ref!$B$36,INDEX(Ranks!$1:$1048576,$A48,CX$1))","v":""},{"$f":"IF($A48=\"N/A\",Ref!$B$36,INDEX(Ranks!$1:$1048576,$A48,CY$1))","v":""},{"$f":"IF($A48=\"N/A\",Ref!$B$36,INDEX(Ranks!$1:$1048576,$A48,CZ$1))","v":""},{"$f":"IF($A48=\"N/A\",Ref!$B$36,INDEX(Ranks!$1:$1048576,$A48,DA$1))","v":""},{"$f":"IF($A48=\"N/A\",Ref!$B$36,INDEX(Ranks!$1:$1048576,$A48,DB$1))","v":""},{"$f":"IF($A48=\"N/A\",Ref!$B$36,INDEX(Ranks!$1:$1048576,$A48,DC$1))","v":""},{"$f":"IF($A48=\"N/A\",Ref!$B$36,INDEX(Ranks!$1:$1048576,$A48,DD$1))","v":""},{"$f":"IF($A48=\"N/A\",Ref!$B$36,INDEX(Ranks!$1:$1048576,$A48,DE$1))","v":""},{"$f":"IF($A48=\"N/A\",Ref!$B$36,INDEX(Ranks!$1:$1048576,$A48,DF$1))","v":""},{"$f":"IF($A48=\"N/A\",Ref!$B$36,INDEX(Ranks!$1:$1048576,$A48,DG$1))","v":""},{"$f":"IF($A48=\"N/A\",Ref!$B$36,INDEX(Ranks!$1:$1048576,$A48,DH$1))","v":""},{"$f":"IF($A48=\"N/A\",Ref!$B$36,INDEX(Ranks!$1:$1048576,$A48,DI$1))","v":""},{"$f":"IF($A48=\"N/A\",Ref!$B$36,INDEX(Ranks!$1:$1048576,$A48,DJ$1))","v":""},{"$f":"IF($A48=\"N/A\",Ref!$B$36,INDEX(Ranks!$1:$1048576,$A48,DK$1))","v":""},{"$f":"IF($A48=\"N/A\",Ref!$B$36,INDEX(Ranks!$1:$1048576,$A48,DL$1))","v":""},{"$f":"IF($A48=\"N/A\",Ref!$B$36,INDEX(Ranks!$1:$1048576,$A48,DM$1))","v":""},{"$f":"IF($A48=\"N/A\",Ref!$B$36,INDEX(Ranks!$1:$1048576,$A48,DN$1))","v":""},{"$f":"IF($A48=\"N/A\",Ref!$B$36,INDEX(Ranks!$1:$1048576,$A48,DO$1))","v":""},{"$f":"IF($A48=\"N/A\",Ref!$B$36,INDEX(Ranks!$1:$1048576,$A48,DP$1))","v":""},{"$f":"IF($A48=\"N/A\",Ref!$B$36,INDEX(Ranks!$1:$1048576,$A48,DQ$1))","v":""},{"$f":"IF($A48=\"N/A\",Ref!$B$36,INDEX(Ranks!$1:$1048576,$A48,DR$1))","v":""},{"$f":"IF($A48=\"N/A\",Ref!$B$36,INDEX(Ranks!$1:$1048576,$A48,DS$1))","v":""},{"$f":"IF($A48=\"N/A\",Ref!$B$36,INDEX(Ranks!$1:$1048576,$A48,DT$1))","v":""},{"$f":"IF($A48=\"N/A\",Ref!$B$36,INDEX(Ranks!$1:$1048576,$A48,DU$1))","v":""},{"$f":"IF($A48=\"N/A\",Ref!$B$36,INDEX(Ranks!$1:$1048576,$A48,DV$1))","v":""},{"$f":"IF($A48=\"N/A\",Ref!$B$36,INDEX(Ranks!$1:$1048576,$A48,DW$1))","v":""},{"$f":"IF($A48=\"N/A\",Ref!$B$36,INDEX(Ranks!$1:$1048576,$A48,DX$1))","v":""},{"$f":"IF($A48=\"N/A\",Ref!$B$36,INDEX(Ranks!$1:$1048576,$A48,DY$1))","v":""},{"$f":"IF($A48=\"N/A\",Ref!$B$36,INDEX(Ranks!$1:$1048576,$A48,DZ$1))","v":""},{"$f":"IF($A48=\"N/A\",Ref!$B$36,INDEX(Ranks!$1:$1048576,$A48,EA$1))","v":""},{"$f":"IF($A48=\"N/A\",Ref!$B$36,INDEX(Ranks!$1:$1048576,$A48,EB$1))","v":""}]
[{"$f":"IFERROR(MATCH('Portfolio Page'!L49,Ranks!L:L,0),\"N/A\")","v":"N/A"},null,{"$f":"IF($A49=\"N/A\",\"\",INDEX(Ranks!$1:$1048576,$A49,C$1))","v":""},{"$f":"IF($A49=\"N/A\",Ref!$B$36,INDEX(Ranks!$1:$1048576,$A49,D$1))","v":""},{"$f":"IF($A49=\"N/A\",Ref!$B$36,INDEX(Ranks!$1:$1048576,$A49,E$1))","v":""},{"$f":"IF($A49=\"N/A\",\"\",INDEX(Ranks!$1:$1048576,$A49,F$1))","v":""},{"$f":"IF($A49=\"N/A\",\"\",INDEX(Ranks!$1:$1048576,$A49,G$1))","v":""},{"$f":"IF($A49=\"N/A\",\"\",INDEX(Ranks!$1:$1048576,$A49,H$1))","v":""},{"$f":"IF($A49=\"N/A\",\"\",INDEX(Ranks!$1:$1048576,$A49,I$1))","v":""},{"$f":"IF($A49=\"N/A\",\"\",INDEX(Ranks!$1:$1048576,$A49,J$1))","v":""},{"$f":"IF($A49=\"N/A\",\"\",INDEX(Ranks!$1:$1048576,$A49,K$1))","v":""},null,{"$f":"IF($A49=\"N/A\",Ref!$B$36,INDEX(Ranks!$1:$1048576,$A49,M$1))","v":""},{"$f":"IF($A49=\"N/A\",Ref!$B$36,INDEX(Ranks!$1:$1048576,$A49,N$1))","v":""},{"$f":"IF($A49=\"N/A\",Ref!$B$36,INDEX(Ranks!$1:$1048576,$A49,O$1))","v":""},{"$f":"IF($A49=\"N/A\",Ref!$B$36,INDEX(Ranks!$1:$1048576,$A49,P$1))","v":""},{"$f":"IF($A49=\"N/A\",Ref!$B$36,INDEX(Ranks!$1:$1048576,$A49,Q$1))","v":""},{"$f":"IF($A49=\"N/A\",Ref!$B$36,INDEX(Ranks!$1:$1048576,$A49,R$1))","v":""},{"$f":"IF($A49=\"N/A\",Ref!$B$36,INDEX(Ranks!$1:$1048576,$A49,S$1))","v":""},{"$f":"IF($A49=\"N/A\",Ref!$B$36,INDEX(Ranks!$1:$1048576,$A49,T$1))","v":""},{"$f":"IF($A49=\"N/A\",Ref!$B$36,INDEX(Ranks!$1:$1048576,$A49,U$1))","v":""},{"$f":"IF($A49=\"N/A\",Ref!$B$36,INDEX(Ranks!$1:$1048576,$A49,V$1))","v":""},{"$f":"IF($A49=\"N/A\",Ref!$B$36,INDEX(Ranks!$1:$1048576,$A49,W$1))","v":""},{"$f":"IF($A49=\"N/A\",Ref!$B$36,INDEX(Ranks!$1:$1048576,$A49,X$1))","v":""},{"$f":"IF($A49=\"N/A\",Ref!$B$36,INDEX(Ranks!$1:$1048576,$A49,Y$1))","v":""},{"$f":"IF($A49=\"N/A\",Ref!$B$36,INDEX(Ranks!$1:$1048576,$A49,Z$1))","v":""},{"$f":"IF($A49=\"N/A\",Ref!$B$36,INDEX(Ranks!$1:$1048576,$A49,AA$1))","v":""},{"$f":"IF($A49=\"N/A\",Ref!$B$36,INDEX(Ranks!$1:$1048576,$A49,AB$1))","v":""},{"$f":"IF($A49=\"N/A\",Ref!$B$36,INDEX(Ranks!$1:$1048576,$A49,AC$1))","v":""},{"$f":"IF($A49=\"N/A\",Ref!$B$36,INDEX(Ranks!$1:$1048576,$A49,AD$1))","v":""},{"$f":"IF($A49=\"N/A\",Ref!$B$36,INDEX(Ranks!$1:$1048576,$A49,AE$1))","v":""},{"$f":"IF($A49=\"N/A\",Ref!$B$36,INDEX(Ranks!$1:$1048576,$A49,AF$1))","v":""},{"$f":"IF($A49=\"N/A\",Ref!$B$36,INDEX(Ranks!$1:$1048576,$A49,AG$1))","v":""},{"$f":"IF($A49=\"N/A\",Ref!$B$36,INDEX(Ranks!$1:$1048576,$A49,AH$1))","v":""},{"$f":"IF($A49=\"N/A\",Ref!$B$36,INDEX(Ranks!$1:$1048576,$A49,AI$1))","v":""},{"$f":"IF($A49=\"N/A\",Ref!$B$36,INDEX(Ranks!$1:$1048576,$A49,AJ$1))","v":""},{"$f":"IF($A49=\"N/A\",Ref!$B$36,INDEX(Ranks!$1:$1048576,$A49,AK$1))","v":""},{"$f":"IF($A49=\"N/A\",Ref!$B$36,INDEX(Ranks!$1:$1048576,$A49,AL$1))","v":""},{"$f":"IF($A49=\"N/A\",Ref!$B$36,INDEX(Ranks!$1:$1048576,$A49,AM$1))","v":""},{"$f":"IF($A49=\"N/A\",Ref!$B$36,INDEX(Ranks!$1:$1048576,$A49,AN$1))","v":""},{"$f":"IF($A49=\"N/A\",Ref!$B$36,INDEX(Ranks!$1:$1048576,$A49,AO$1))","v":""},{"$f":"IF($A49=\"N/A\",Ref!$B$36,INDEX(Ranks!$1:$1048576,$A49,AP$1))","v":""},{"$f":"IF($A49=\"N/A\",Ref!$B$36,INDEX(Ranks!$1:$1048576,$A49,AQ$1))","v":""},{"$f":"IF($A49=\"N/A\",Ref!$B$36,INDEX(Ranks!$1:$1048576,$A49,AR$1))","v":""},{"$f":"IF($A49=\"N/A\",Ref!$B$36,INDEX(Ranks!$1:$1048576,$A49,AS$1))","v":""},{"$f":"IF($A49=\"N/A\",Ref!$B$36,INDEX(Ranks!$1:$1048576,$A49,AT$1))","v":""},{"$f":"IF($A49=\"N/A\",Ref!$B$36,INDEX(Ranks!$1:$1048576,$A49,AU$1))","v":""},{"$f":"IF($A49=\"N/A\",Ref!$B$36,INDEX(Ranks!$1:$1048576,$A49,AV$1))","v":""},{"$f":"IF($A49=\"N/A\",Ref!$B$36,INDEX(Ranks!$1:$1048576,$A49,AW$1))","v":""},{"$f":"IF($A49=\"N/A\",Ref!$B$36,INDEX(Ranks!$1:$1048576,$A49,AX$1))","v":""},{"$f":"IF($A49=\"N/A\",Ref!$B$36,INDEX(Ranks!$1:$1048576,$A49,AY$1))","v":""},{"$f":"IF($A49=\"N/A\",Ref!$B$36,INDEX(Ranks!$1:$1048576,$A49,AZ$1))","v":""},{"$f":"IF($A49=\"N/A\",Ref!$B$36,INDEX(Ranks!$1:$1048576,$A49,BA$1))","v":""},{"$f":"IF($A49=\"N/A\",Ref!$B$36,INDEX(Ranks!$1:$1048576,$A49,BB$1))","v":""},{"$f":"IF($A49=\"N/A\",Ref!$B$36,INDEX(Ranks!$1:$1048576,$A49,BC$1))","v":""},{"$f":"IF($A49=\"N/A\",Ref!$B$36,INDEX(Ranks!$1:$1048576,$A49,BD$1))","v":""},{"$f":"IF($A49=\"N/A\",Ref!$B$36,INDEX(Ranks!$1:$1048576,$A49,BE$1))","v":""},{"$f":"IF($A49=\"N/A\",Ref!$B$36,INDEX(Ranks!$1:$1048576,$A49,BF$1))","v":""},{"$f":"IF($A49=\"N/A\",Ref!$B$36,INDEX(Ranks!$1:$1048576,$A49,BG$1))","v":""},{"$f":"IF($A49=\"N/A\",Ref!$B$36,INDEX(Ranks!$1:$1048576,$A49,BH$1))","v":""},{"$f":"IF($A49=\"N/A\",Ref!$B$36,INDEX(Ranks!$1:$1048576,$A49,BI$1))","v":""},{"$f":"IF($A49=\"N/A\",Ref!$B$36,INDEX(Ranks!$1:$1048576,$A49,BJ$1))","v":""},{"$f":"IF($A49=\"N/A\",Ref!$B$36,INDEX(Ranks!$1:$1048576,$A49,BK$1))","v":""},{"$f":"IF($A49=\"N/A\",Ref!$B$36,INDEX(Ranks!$1:$1048576,$A49,BL$1))","v":""},{"$f":"IF($A49=\"N/A\",Ref!$B$36,INDEX(Ranks!$1:$1048576,$A49,BM$1))","v":""},{"$f":"IF($A49=\"N/A\",Ref!$B$36,INDEX(Ranks!$1:$1048576,$A49,BN$1))","v":""},{"$f":"IF($A49=\"N/A\",Ref!$B$36,INDEX(Ranks!$1:$1048576,$A49,BO$1))","v":""},{"$f":"IF($A49=\"N/A\",Ref!$B$36,INDEX(Ranks!$1:$1048576,$A49,BP$1))","v":""},{"$f":"IF($A49=\"N/A\",Ref!$B$36,INDEX(Ranks!$1:$1048576,$A49,BQ$1))","v":""},{"$f":"IF($A49=\"N/A\",Ref!$B$36,INDEX(Ranks!$1:$1048576,$A49,BR$1))","v":""},{"$f":"IF($A49=\"N/A\",Ref!$B$36,INDEX(Ranks!$1:$1048576,$A49,BS$1))","v":""},{"$f":"IF($A49=\"N/A\",Ref!$B$36,INDEX(Ranks!$1:$1048576,$A49,BT$1))","v":""},{"$f":"IF($A49=\"N/A\",Ref!$B$36,INDEX(Ranks!$1:$1048576,$A49,BU$1))","v":""},{"$f":"IF($A49=\"N/A\",Ref!$B$36,INDEX(Ranks!$1:$1048576,$A49,BV$1))","v":""},{"$f":"IF($A49=\"N/A\",Ref!$B$36,INDEX(Ranks!$1:$1048576,$A49,BW$1))","v":""},{"$f":"IF($A49=\"N/A\",Ref!$B$36,INDEX(Ranks!$1:$1048576,$A49,BX$1))","v":""},{"$f":"IF($A49=\"N/A\",Ref!$B$36,INDEX(Ranks!$1:$1048576,$A49,BY$1))","v":""},{"$f":"IF($A49=\"N/A\",Ref!$B$36,INDEX(Ranks!$1:$1048576,$A49,BZ$1))","v":""},{"$f":"IF($A49=\"N/A\",Ref!$B$36,INDEX(Ranks!$1:$1048576,$A49,CA$1))","v":""},{"$f":"IF($A49=\"N/A\",Ref!$B$36,INDEX(Ranks!$1:$1048576,$A49,CB$1))","v":""},{"$f":"IF($A49=\"N/A\",Ref!$B$36,INDEX(Ranks!$1:$1048576,$A49,CC$1))","v":""},{"$f":"IF($A49=\"N/A\",Ref!$B$36,INDEX(Ranks!$1:$1048576,$A49,CD$1))","v":""},{"$f":"IF($A49=\"N/A\",Ref!$B$36,INDEX(Ranks!$1:$1048576,$A49,CE$1))","v":""},{"$f":"IF($A49=\"N/A\",Ref!$B$36,INDEX(Ranks!$1:$1048576,$A49,CF$1))","v":""},{"$f":"IF($A49=\"N/A\",Ref!$B$36,INDEX(Ranks!$1:$1048576,$A49,CG$1))","v":""},{"$f":"IF($A49=\"N/A\",Ref!$B$36,INDEX(Ranks!$1:$1048576,$A49,CH$1))","v":""},{"$f":"IF($A49=\"N/A\",Ref!$B$36,INDEX(Ranks!$1:$1048576,$A49,CI$1))","v":""},{"$f":"IF($A49=\"N/A\",Ref!$B$36,INDEX(Ranks!$1:$1048576,$A49,CJ$1))","v":""},{"$f":"IF($A49=\"N/A\",Ref!$B$36,INDEX(Ranks!$1:$1048576,$A49,CK$1))","v":""},{"$f":"IF($A49=\"N/A\",Ref!$B$36,INDEX(Ranks!$1:$1048576,$A49,CL$1))","v":""},{"$f":"IF($A49=\"N/A\",Ref!$B$36,INDEX(Ranks!$1:$1048576,$A49,CM$1))","v":""},{"$f":"IF($A49=\"N/A\",Ref!$B$36,INDEX(Ranks!$1:$1048576,$A49,CN$1))","v":""},{"$f":"IF($A49=\"N/A\",Ref!$B$36,INDEX(Ranks!$1:$1048576,$A49,CO$1))","v":""},{"$f":"IF($A49=\"N/A\",Ref!$B$36,INDEX(Ranks!$1:$1048576,$A49,CP$1))","v":""},{"$f":"IF($A49=\"N/A\",Ref!$B$36,INDEX(Ranks!$1:$1048576,$A49,CQ$1))","v":""},{"$f":"IF($A49=\"N/A\",Ref!$B$36,INDEX(Ranks!$1:$1048576,$A49,CR$1))","v":""},{"$f":"IF($A49=\"N/A\",Ref!$B$36,INDEX(Ranks!$1:$1048576,$A49,CS$1))","v":""},{"$f":"IF($A49=\"N/A\",Ref!$B$36,INDEX(Ranks!$1:$1048576,$A49,CT$1))","v":""},{"$f":"IF($A49=\"N/A\",Ref!$B$36,INDEX(Ranks!$1:$1048576,$A49,CU$1))","v":""},{"$f":"IF($A49=\"N/A\",Ref!$B$36,INDEX(Ranks!$1:$1048576,$A49,CV$1))","v":""},{"$f":"IF($A49=\"N/A\",Ref!$B$36,INDEX(Ranks!$1:$1048576,$A49,CW$1))","v":""},{"$f":"IF($A49=\"N/A\",Ref!$B$36,INDEX(Ranks!$1:$1048576,$A49,CX$1))","v":""},{"$f":"IF($A49=\"N/A\",Ref!$B$36,INDEX(Ranks!$1:$1048576,$A49,CY$1))","v":""},{"$f":"IF($A49=\"N/A\",Ref!$B$36,INDEX(Ranks!$1:$1048576,$A49,CZ$1))","v":""},{"$f":"IF($A49=\"N/A\",Ref!$B$36,INDEX(Ranks!$1:$1048576,$A49,DA$1))","v":""},{"$f":"IF($A49=\"N/A\",Ref!$B$36,INDEX(Ranks!$1:$1048576,$A49,DB$1))","v":""},{"$f":"IF($A49=\"N/A\",Ref!$B$36,INDEX(Ranks!$1:$1048576,$A49,DC$1))","v":""},{"$f":"IF($A49=\"N/A\",Ref!$B$36,INDEX(Ranks!$1:$1048576,$A49,DD$1))","v":""},{"$f":"IF($A49=\"N/A\",Ref!$B$36,INDEX(Ranks!$1:$1048576,$A49,DE$1))","v":""},{"$f":"IF($A49=\"N/A\",Ref!$B$36,INDEX(Ranks!$1:$1048576,$A49,DF$1))","v":""},{"$f":"IF($A49=\"N/A\",Ref!$B$36,INDEX(Ranks!$1:$1048576,$A49,DG$1))","v":""},{"$f":"IF($A49=\"N/A\",Ref!$B$36,INDEX(Ranks!$1:$1048576,$A49,DH$1))","v":""},{"$f":"IF($A49=\"N/A\",Ref!$B$36,INDEX(Ranks!$1:$1048576,$A49,DI$1))","v":""},{"$f":"IF($A49=\"N/A\",Ref!$B$36,INDEX(Ranks!$1:$1048576,$A49,DJ$1))","v":""},{"$f":"IF($A49=\"N/A\",Ref!$B$36,INDEX(Ranks!$1:$1048576,$A49,DK$1))","v":""},{"$f":"IF($A49=\"N/A\",Ref!$B$36,INDEX(Ranks!$1:$1048576,$A49,DL$1))","v":""},{"$f":"IF($A49=\"N/A\",Ref!$B$36,INDEX(Ranks!$1:$1048576,$A49,DM$1))","v":""},{"$f":"IF($A49=\"N/A\",Ref!$B$36,INDEX(Ranks!$1:$1048576,$A49,DN$1))","v":""},{"$f":"IF($A49=\"N/A\",Ref!$B$36,INDEX(Ranks!$1:$1048576,$A49,DO$1))","v":""},{"$f":"IF($A49=\"N/A\",Ref!$B$36,INDEX(Ranks!$1:$1048576,$A49,DP$1))","v":""},{"$f":"IF($A49=\"N/A\",Ref!$B$36,INDEX(Ranks!$1:$1048576,$A49,DQ$1))","v":""},{"$f":"IF($A49=\"N/A\",Ref!$B$36,INDEX(Ranks!$1:$1048576,$A49,DR$1))","v":""},{"$f":"IF($A49=\"N/A\",Ref!$B$36,INDEX(Ranks!$1:$1048576,$A49,DS$1))","v":""},{"$f":"IF($A49=\"N/A\",Ref!$B$36,INDEX(Ranks!$1:$1048576,$A49,DT$1))","v":""},{"$f":"IF($A49=\"N/A\",Ref!$B$36,INDEX(Ranks!$1:$1048576,$A49,DU$1))","v":""},{"$f":"IF($A49=\"N/A\",Ref!$B$36,INDEX(Ranks!$1:$1048576,$A49,DV$1))","v":""},{"$f":"IF($A49=\"N/A\",Ref!$B$36,INDEX(Ranks!$1:$1048576,$A49,DW$1))","v":""},{"$f":"IF($A49=\"N/A\",Ref!$B$36,INDEX(Ranks!$1:$1048576,$A49,DX$1))","v":""},{"$f":"IF($A49=\"N/A\",Ref!$B$36,INDEX(Ranks!$1:$1048576,$A49,DY$1))","v":""},{"$f":"IF($A49=\"N/A\",Ref!$B$36,INDEX(Ranks!$1:$1048576,$A49,DZ$1))","v":""},{"$f":"IF($A49=\"N/A\",Ref!$B$36,INDEX(Ranks!$1:$1048576,$A49,EA$1))","v":""},{"$f":"IF($A49=\"N/A\",Ref!$B$36,INDEX(Ranks!$1:$1048576,$A49,EB$1))","v":""}]
[{"$f":"IFERROR(MATCH('Portfolio Page'!L50,Ranks!L:L,0),\"N/A\")","v":"N/A"},null,{"$f":"IF($A50=\"N/A\",\"\",INDEX(Ranks!$1:$1048576,$A50,C$1))","v":""},{"$f":"IF($A50=\"N/A\",Ref!$B$36,INDEX(Ranks!$1:$1048576,$A50,D$1))","v":""},{"$f":"IF($A50=\"N/A\",Ref!$B$36,INDEX(Ranks!$1:$1048576,$A50,E$1))","v":""},{"$f":"IF($A50=\"N/A\",\"\",INDEX(Ranks!$1:$1048576,$A50,F$1))","v":""},{"$f":"IF($A50=\"N/A\",\"\",INDEX(Ranks!$1:$1048576,$A50,G$1))","v":""},{"$f":"IF($A50=\"N/A\",\"\",INDEX(Ranks!$1:$1048576,$A50,H$1))","v":""},{"$f":"IF($A50=\"N/A\",\"\",INDEX(Ranks!$1:$1048576,$A50,I$1))","v":""},{"$f":"IF($A50=\"N/A\",\"\",INDEX(Ranks!$1:$1048576,$A50,J$1))","v":""},{"$f":"IF($A50=\"N/A\",\"\",INDEX(Ranks!$1:$1048576,$A50,K$1))","v":""},null,{"$f":"IF($A50=\"N/A\",Ref!$B$36,INDEX(Ranks!$1:$1048576,$A50,M$1))","v":""},{"$f":"IF($A50=\"N/A\",Ref!$B$36,INDEX(Ranks!$1:$1048576,$A50,N$1))","v":""},{"$f":"IF($A50=\"N/A\",Ref!$B$36,INDEX(Ranks!$1:$1048576,$A50,O$1))","v":""},{"$f":"IF($A50=\"N/A\",Ref!$B$36,INDEX(Ranks!$1:$1048576,$A50,P$1))","v":""},{"$f":"IF($A50=\"N/A\",Ref!$B$36,INDEX(Ranks!$1:$1048576,$A50,Q$1))","v":""},{"$f":"IF($A50=\"N/A\",Ref!$B$36,INDEX(Ranks!$1:$1048576,$A50,R$1))","v":""},{"$f":"IF($A50=\"N/A\",Ref!$B$36,INDEX(Ranks!$1:$1048576,$A50,S$1))","v":""},{"$f":"IF($A50=\"N/A\",Ref!$B$36,INDEX(Ranks!$1:$1048576,$A50,T$1))","v":""},{"$f":"IF($A50=\"N/A\",Ref!$B$36,INDEX(Ranks!$1:$1048576,$A50,U$1))","v":""},{"$f":"IF($A50=\"N/A\",Ref!$B$36,INDEX(Ranks!$1:$1048576,$A50,V$1))","v":""},{"$f":"IF($A50=\"N/A\",Ref!$B$36,INDEX(Ranks!$1:$1048576,$A50,W$1))","v":""},{"$f":"IF($A50=\"N/A\",Ref!$B$36,INDEX(Ranks!$1:$1048576,$A50,X$1))","v":""},{"$f":"IF($A50=\"N/A\",Ref!$B$36,INDEX(Ranks!$1:$1048576,$A50,Y$1))","v":""},{"$f":"IF($A50=\"N/A\",Ref!$B$36,INDEX(Ranks!$1:$1048576,$A50,Z$1))","v":""},{"$f":"IF($A50=\"N/A\",Ref!$B$36,INDEX(Ranks!$1:$1048576,$A50,AA$1))","v":""},{"$f":"IF($A50=\"N/A\",Ref!$B$36,INDEX(Ranks!$1:$1048576,$A50,AB$1))","v":""},{"$f":"IF($A50=\"N/A\",Ref!$B$36,INDEX(Ranks!$1:$1048576,$A50,AC$1))","v":""},{"$f":"IF($A50=\"N/A\",Ref!$B$36,INDEX(Ranks!$1:$1048576,$A50,AD$1))","v":""},{"$f":"IF($A50=\"N/A\",Ref!$B$36,INDEX(Ranks!$1:$1048576,$A50,AE$1))","v":""},{"$f":"IF($A50=\"N/A\",Ref!$B$36,INDEX(Ranks!$1:$1048576,$A50,AF$1))","v":""},{"$f":"IF($A50=\"N/A\",Ref!$B$36,INDEX(Ranks!$1:$1048576,$A50,AG$1))","v":""},{"$f":"IF($A50=\"N/A\",Ref!$B$36,INDEX(Ranks!$1:$1048576,$A50,AH$1))","v":""},{"$f":"IF($A50=\"N/A\",Ref!$B$36,INDEX(Ranks!$1:$1048576,$A50,AI$1))","v":""},{"$f":"IF($A50=\"N/A\",Ref!$B$36,INDEX(Ranks!$1:$1048576,$A50,AJ$1))","v":""},{"$f":"IF($A50=\"N/A\",Ref!$B$36,INDEX(Ranks!$1:$1048576,$A50,AK$1))","v":""},{"$f":"IF($A50=\"N/A\",Ref!$B$36,INDEX(Ranks!$1:$1048576,$A50,AL$1))","v":""},{"$f":"IF($A50=\"N/A\",Ref!$B$36,INDEX(Ranks!$1:$1048576,$A50,AM$1))","v":""},{"$f":"IF($A50=\"N/A\",Ref!$B$36,INDEX(Ranks!$1:$1048576,$A50,AN$1))","v":""},{"$f":"IF($A50=\"N/A\",Ref!$B$36,INDEX(Ranks!$1:$1048576,$A50,AO$1))","v":""},{"$f":"IF($A50=\"N/A\",Ref!$B$36,INDEX(Ranks!$1:$1048576,$A50,AP$1))","v":""},{"$f":"IF($A50=\"N/A\",Ref!$B$36,INDEX(Ranks!$1:$1048576,$A50,AQ$1))","v":""},{"$f":"IF($A50=\"N/A\",Ref!$B$36,INDEX(Ranks!$1:$1048576,$A50,AR$1))","v":""},{"$f":"IF($A50=\"N/A\",Ref!$B$36,INDEX(Ranks!$1:$1048576,$A50,AS$1))","v":""},{"$f":"IF($A50=\"N/A\",Ref!$B$36,INDEX(Ranks!$1:$1048576,$A50,AT$1))","v":""},{"$f":"IF($A50=\"N/A\",Ref!$B$36,INDEX(Ranks!$1:$1048576,$A50,AU$1))","v":""},{"$f":"IF($A50=\"N/A\",Ref!$B$36,INDEX(Ranks!$1:$1048576,$A50,AV$1))","v":""},{"$f":"IF($A50=\"N/A\",Ref!$B$36,INDEX(Ranks!$1:$1048576,$A50,AW$1))","v":""},{"$f":"IF($A50=\"N/A\",Ref!$B$36,INDEX(Ranks!$1:$1048576,$A50,AX$1))","v":""},{"$f":"IF($A50=\"N/A\",Ref!$B$36,INDEX(Ranks!$1:$1048576,$A50,AY$1))","v":""},{"$f":"IF($A50=\"N/A\",Ref!$B$36,INDEX(Ranks!$1:$1048576,$A50,AZ$1))","v":""},{"$f":"IF($A50=\"N/A\",Ref!$B$36,INDEX(Ranks!$1:$1048576,$A50,BA$1))","v":""},{"$f":"IF($A50=\"N/A\",Ref!$B$36,INDEX(Ranks!$1:$1048576,$A50,BB$1))","v":""},{"$f":"IF($A50=\"N/A\",Ref!$B$36,INDEX(Ranks!$1:$1048576,$A50,BC$1))","v":""},{"$f":"IF($A50=\"N/A\",Ref!$B$36,INDEX(Ranks!$1:$1048576,$A50,BD$1))","v":""},{"$f":"IF($A50=\"N/A\",Ref!$B$36,INDEX(Ranks!$1:$1048576,$A50,BE$1))","v":""},{"$f":"IF($A50=\"N/A\",Ref!$B$36,INDEX(Ranks!$1:$1048576,$A50,BF$1))","v":""},{"$f":"IF($A50=\"N/A\",Ref!$B$36,INDEX(Ranks!$1:$1048576,$A50,BG$1))","v":""},{"$f":"IF($A50=\"N/A\",Ref!$B$36,INDEX(Ranks!$1:$1048576,$A50,BH$1))","v":""},{"$f":"IF($A50=\"N/A\",Ref!$B$36,INDEX(Ranks!$1:$1048576,$A50,BI$1))","v":""},{"$f":"IF($A50=\"N/A\",Ref!$B$36,INDEX(Ranks!$1:$1048576,$A50,BJ$1))","v":""},{"$f":"IF($A50=\"N/A\",Ref!$B$36,INDEX(Ranks!$1:$1048576,$A50,BK$1))","v":""},{"$f":"IF($A50=\"N/A\",Ref!$B$36,INDEX(Ranks!$1:$1048576,$A50,BL$1))","v":""},{"$f":"IF($A50=\"N/A\",Ref!$B$36,INDEX(Ranks!$1:$1048576,$A50,BM$1))","v":""},{"$f":"IF($A50=\"N/A\",Ref!$B$36,INDEX(Ranks!$1:$1048576,$A50,BN$1))","v":""},{"$f":"IF($A50=\"N/A\",Ref!$B$36,INDEX(Ranks!$1:$1048576,$A50,BO$1))","v":""},{"$f":"IF($A50=\"N/A\",Ref!$B$36,INDEX(Ranks!$1:$1048576,$A50,BP$1))","v":""},{"$f":"IF($A50=\"N/A\",Ref!$B$36,INDEX(Ranks!$1:$1048576,$A50,BQ$1))","v":""},{"$f":"IF($A50=\"N/A\",Ref!$B$36,INDEX(Ranks!$1:$1048576,$A50,BR$1))","v":""},{"$f":"IF($A50=\"N/A\",Ref!$B$36,INDEX(Ranks!$1:$1048576,$A50,BS$1))","v":""},{"$f":"IF($A50=\"N/A\",Ref!$B$36,INDEX(Ranks!$1:$1048576,$A50,BT$1))","v":""},{"$f":"IF($A50=\"N/A\",Ref!$B$36,INDEX(Ranks!$1:$1048576,$A50,BU$1))","v":""},{"$f":"IF($A50=\"N/A\",Ref!$B$36,INDEX(Ranks!$1:$1048576,$A50,BV$1))","v":""},{"$f":"IF($A50=\"N/A\",Ref!$B$36,INDEX(Ranks!$1:$1048576,$A50,BW$1))","v":""},{"$f":"IF($A50=\"N/A\",Ref!$B$36,INDEX(Ranks!$1:$1048576,$A50,BX$1))","v":""},{"$f":"IF($A50=\"N/A\",Ref!$B$36,INDEX(Ranks!$1:$1048576,$A50,BY$1))","v":""},{"$f":"IF($A50=\"N/A\",Ref!$B$36,INDEX(Ranks!$1:$1048576,$A50,BZ$1))","v":""},{"$f":"IF($A50=\"N/A\",Ref!$B$36,INDEX(Ranks!$1:$1048576,$A50,CA$1))","v":""},{"$f":"IF($A50=\"N/A\",Ref!$B$36,INDEX(Ranks!$1:$1048576,$A50,CB$1))","v":""},{"$f":"IF($A50=\"N/A\",Ref!$B$36,INDEX(Ranks!$1:$1048576,$A50,CC$1))","v":""},{"$f":"IF($A50=\"N/A\",Ref!$B$36,INDEX(Ranks!$1:$1048576,$A50,CD$1))","v":""},{"$f":"IF($A50=\"N/A\",Ref!$B$36,INDEX(Ranks!$1:$1048576,$A50,CE$1))","v":""},{"$f":"IF($A50=\"N/A\",Ref!$B$36,INDEX(Ranks!$1:$1048576,$A50,CF$1))","v":""},{"$f":"IF($A50=\"N/A\",Ref!$B$36,INDEX(Ranks!$1:$1048576,$A50,CG$1))","v":""},{"$f":"IF($A50=\"N/A\",Ref!$B$36,INDEX(Ranks!$1:$1048576,$A50,CH$1))","v":""},{"$f":"IF($A50=\"N/A\",Ref!$B$36,INDEX(Ranks!$1:$1048576,$A50,CI$1))","v":""},{"$f":"IF($A50=\"N/A\",Ref!$B$36,INDEX(Ranks!$1:$1048576,$A50,CJ$1))","v":""},{"$f":"IF($A50=\"N/A\",Ref!$B$36,INDEX(Ranks!$1:$1048576,$A50,CK$1))","v":""},{"$f":"IF($A50=\"N/A\",Ref!$B$36,INDEX(Ranks!$1:$1048576,$A50,CL$1))","v":""},{"$f":"IF($A50=\"N/A\",Ref!$B$36,INDEX(Ranks!$1:$1048576,$A50,CM$1))","v":""},{"$f":"IF($A50=\"N/A\",Ref!$B$36,INDEX(Ranks!$1:$1048576,$A50,CN$1))","v":""},{"$f":"IF($A50=\"N/A\",Ref!$B$36,INDEX(Ranks!$1:$1048576,$A50,CO$1))","v":""},{"$f":"IF($A50=\"N/A\",Ref!$B$36,INDEX(Ranks!$1:$1048576,$A50,CP$1))","v":""},{"$f":"IF($A50=\"N/A\",Ref!$B$36,INDEX(Ranks!$1:$1048576,$A50,CQ$1))","v":""},{"$f":"IF($A50=\"N/A\",Ref!$B$36,INDEX(Ranks!$1:$1048576,$A50,CR$1))","v":""},{"$f":"IF($A50=\"N/A\",Ref!$B$36,INDEX(Ranks!$1:$1048576,$A50,CS$1))","v":""},{"$f":"IF($A50=\"N/A\",Ref!$B$36,INDEX(Ranks!$1:$1048576,$A50,CT$1))","v":""},{"$f":"IF($A50=\"N/A\",Ref!$B$36,INDEX(Ranks!$1:$1048576,$A50,CU$1))","v":""},{"$f":"IF($A50=\"N/A\",Ref!$B$36,INDEX(Ranks!$1:$1048576,$A50,CV$1))","v":""},{"$f":"IF($A50=\"N/A\",Ref!$B$36,INDEX(Ranks!$1:$1048576,$A50,CW$1))","v":""},{"$f":"IF($A50=\"N/A\",Ref!$B$36,INDEX(Ranks!$1:$1048576,$A50,CX$1))","v":""},{"$f":"IF($A50=\"N/A\",Ref!$B$36,INDEX(Ranks!$1:$1048576,$A50,CY$1))","v":""},{"$f":"IF($A50=\"N/A\",Ref!$B$36,INDEX(Ranks!$1:$1048576,$A50,CZ$1))","v":""},{"$f":"IF($A50=\"N/A\",Ref!$B$36,INDEX(Ranks!$1:$1048576,$A50,DA$1))","v":""},{"$f":"IF($A50=\"N/A\",Ref!$B$36,INDEX(Ranks!$1:$1048576,$A50,DB$1))","v":""},{"$f":"IF($A50=\"N/A\",Ref!$B$36,INDEX(Ranks!$1:$1048576,$A50,DC$1))","v":""},{"$f":"IF($A50=\"N/A\",Ref!$B$36,INDEX(Ranks!$1:$1048576,$A50,DD$1))","v":""},{"$f":"IF($A50=\"N/A\",Ref!$B$36,INDEX(Ranks!$1:$1048576,$A50,DE$1))","v":""},{"$f":"IF($A50=\"N/A\",Ref!$B$36,INDEX(Ranks!$1:$1048576,$A50,DF$1))","v":""},{"$f":"IF($A50=\"N/A\",Ref!$B$36,INDEX(Ranks!$1:$1048576,$A50,DG$1))","v":""},{"$f":"IF($A50=\"N/A\",Ref!$B$36,INDEX(Ranks!$1:$1048576,$A50,DH$1))","v":""},{"$f":"IF($A50=\"N/A\",Ref!$B$36,INDEX(Ranks!$1:$1048576,$A50,DI$1))","v":""},{"$f":"IF($A50=\"N/A\",Ref!$B$36,INDEX(Ranks!$1:$1048576,$A50,DJ$1))","v":""},{"$f":"IF($A50=\"N/A\",Ref!$B$36,INDEX(Ranks!$1:$1048576,$A50,DK$1))","v":""},{"$f":"IF($A50=\"N/A\",Ref!$B$36,INDEX(Ranks!$1:$1048576,$A50,DL$1))","v":""},{"$f":"IF($A50=\"N/A\",Ref!$B$36,INDEX(Ranks!$1:$1048576,$A50,DM$1))","v":""},{"$f":"IF($A50=\"N/A\",Ref!$B$36,INDEX(Ranks!$1:$1048576,$A50,DN$1))","v":""},{"$f":"IF($A50=\"N/A\",Ref!$B$36,INDEX(Ranks!$1:$1048576,$A50,DO$1))","v":""},{"$f":"IF($A50=\"N/A\",Ref!$B$36,INDEX(Ranks!$1:$1048576,$A50,DP$1))","v":""},{"$f":"IF($A50=\"N/A\",Ref!$B$36,INDEX(Ranks!$1:$1048576,$A50,DQ$1))","v":""},{"$f":"IF($A50=\"N/A\",Ref!$B$36,INDEX(Ranks!$1:$1048576,$A50,DR$1))","v":""},{"$f":"IF($A50=\"N/A\",Ref!$B$36,INDEX(Ranks!$1:$1048576,$A50,DS$1))","v":""},{"$f":"IF($A50=\"N/A\",Ref!$B$36,INDEX(Ranks!$1:$1048576,$A50,DT$1))","v":""},{"$f":"IF($A50=\"N/A\",Ref!$B$36,INDEX(Ranks!$1:$1048576,$A50,DU$1))","v":""},{"$f":"IF($A50=\"N/A\",Ref!$B$36,INDEX(Ranks!$1:$1048576,$A50,DV$1))","v":""},{"$f":"IF($A50=\"N/A\",Ref!$B$36,INDEX(Ranks!$1:$1048576,$A50,DW$1))","v":""},{"$f":"IF($A50=\"N/A\",Ref!$B$36,INDEX(Ranks!$1:$1048576,$A50,DX$1))","v":""},{"$f":"IF($A50=\"N/A\",Ref!$B$36,INDEX(Ranks!$1:$1048576,$A50,DY$1))","v":""},{"$f":"IF($A50=\"N/A\",Ref!$B$36,INDEX(Ranks!$1:$1048576,$A50,DZ$1))","v":""},{"$f":"IF($A50=\"N/A\",Ref!$B$36,INDEX(Ranks!$1:$1048576,$A50,EA$1))","v":""},{"$f":"IF($A50=\"N/A\",Ref!$B$36,INDEX(Ranks!$1:$1048576,$A50,EB$1))","v":""}]
[{"$f":"IFERROR(MATCH('Portfolio Page'!L51,Ranks!L:L,0),\"N/A\")","v":"N/A"},null,{"$f":"IF($A51=\"N/A\",\"\",INDEX(Ranks!$1:$1048576,$A51,C$1))","v":""},{"$f":"IF($A51=\"N/A\",Ref!$B$36,INDEX(Ranks!$1:$1048576,$A51,D$1))","v":""},{"$f":"IF($A51=\"N/A\",Ref!$B$36,INDEX(Ranks!$1:$1048576,$A51,E$1))","v":""},{"$f":"IF($A51=\"N/A\",\"\",INDEX(Ranks!$1:$1048576,$A51,F$1))","v":""},{"$f":"IF($A51=\"N/A\",\"\",INDEX(Ranks!$1:$1048576,$A51,G$1))","v":""},{"$f":"IF($A51=\"N/A\",\"\",INDEX(Ranks!$1:$1048576,$A51,H$1))","v":""},{"$f":"IF($A51=\"N/A\",\"\",INDEX(Ranks!$1:$1048576,$A51,I$1))","v":""},{"$f":"IF($A51=\"N/A\",\"\",INDEX(Ranks!$1:$1048576,$A51,J$1))","v":""},{"$f":"IF($A51=\"N/A\",\"\",INDEX(Ranks!$1:$1048576,$A51,K$1))","v":""},null,{"$f":"IF($A51=\"N/A\",Ref!$B$36,INDEX(Ranks!$1:$1048576,$A51,M$1))","v":""},{"$f":"IF($A51=\"N/A\",Ref!$B$36,INDEX(Ranks!$1:$1048576,$A51,N$1))","v":""},{"$f":"IF($A51=\"N/A\",Ref!$B$36,INDEX(Ranks!$1:$1048576,$A51,O$1))","v":""},{"$f":"IF($A51=\"N/A\",Ref!$B$36,INDEX(Ranks!$1:$1048576,$A51,P$1))","v":""},{"$f":"IF($A51=\"N/A\",Ref!$B$36,INDEX(Ranks!$1:$1048576,$A51,Q$1))","v":""},{"$f":"IF($A51=\"N/A\",Ref!$B$36,INDEX(Ranks!$1:$1048576,$A51,R$1))","v":""},{"$f":"IF($A51=\"N/A\",Ref!$B$36,INDEX(Ranks!$1:$1048576,$A51,S$1))","v":""},{"$f":"IF($A51=\"N/A\",Ref!$B$36,INDEX(Ranks!$1:$1048576,$A51,T$1))","v":""},{"$f":"IF($A51=\"N/A\",Ref!$B$36,INDEX(Ranks!$1:$1048576,$A51,U$1))","v":""},{"$f":"IF($A51=\"N/A\",Ref!$B$36,INDEX(Ranks!$1:$1048576,$A51,V$1))","v":""},{"$f":"IF($A51=\"N/A\",Ref!$B$36,INDEX(Ranks!$1:$1048576,$A51,W$1))","v":""},{"$f":"IF($A51=\"N/A\",Ref!$B$36,INDEX(Ranks!$1:$1048576,$A51,X$1))","v":""},{"$f":"IF($A51=\"N/A\",Ref!$B$36,INDEX(Ranks!$1:$1048576,$A51,Y$1))","v":""},{"$f":"IF($A51=\"N/A\",Ref!$B$36,INDEX(Ranks!$1:$1048576,$A51,Z$1))","v":""},{"$f":"IF($A51=\"N/A\",Ref!$B$36,INDEX(Ranks!$1:$1048576,$A51,AA$1))","v":""},{"$f":"IF($A51=\"N/A\",Ref!$B$36,INDEX(Ranks!$1:$1048576,$A51,AB$1))","v":""},{"$f":"IF($A51=\"N/A\",Ref!$B$36,INDEX(Ranks!$1:$1048576,$A51,AC$1))","v":""},{"$f":"IF($A51=\"N/A\",Ref!$B$36,INDEX(Ranks!$1:$1048576,$A51,AD$1))","v":""},{"$f":"IF($A51=\"N/A\",Ref!$B$36,INDEX(Ranks!$1:$1048576,$A51,AE$1))","v":""},{"$f":"IF($A51=\"N/A\",Ref!$B$36,INDEX(Ranks!$1:$1048576,$A51,AF$1))","v":""},{"$f":"IF($A51=\"N/A\",Ref!$B$36,INDEX(Ranks!$1:$1048576,$A51,AG$1))","v":""},{"$f":"IF($A51=\"N/A\",Ref!$B$36,INDEX(Ranks!$1:$1048576,$A51,AH$1))","v":""},{"$f":"IF($A51=\"N/A\",Ref!$B$36,INDEX(Ranks!$1:$1048576,$A51,AI$1))","v":""},{"$f":"IF($A51=\"N/A\",Ref!$B$36,INDEX(Ranks!$1:$1048576,$A51,AJ$1))","v":""},{"$f":"IF($A51=\"N/A\",Ref!$B$36,INDEX(Ranks!$1:$1048576,$A51,AK$1))","v":""},{"$f":"IF($A51=\"N/A\",Ref!$B$36,INDEX(Ranks!$1:$1048576,$A51,AL$1))","v":""},{"$f":"IF($A51=\"N/A\",Ref!$B$36,INDEX(Ranks!$1:$1048576,$A51,AM$1))","v":""},{"$f":"IF($A51=\"N/A\",Ref!$B$36,INDEX(Ranks!$1:$1048576,$A51,AN$1))","v":""},{"$f":"IF($A51=\"N/A\",Ref!$B$36,INDEX(Ranks!$1:$1048576,$A51,AO$1))","v":""},{"$f":"IF($A51=\"N/A\",Ref!$B$36,INDEX(Ranks!$1:$1048576,$A51,AP$1))","v":""},{"$f":"IF($A51=\"N/A\",Ref!$B$36,INDEX(Ranks!$1:$1048576,$A51,AQ$1))","v":""},{"$f":"IF($A51=\"N/A\",Ref!$B$36,INDEX(Ranks!$1:$1048576,$A51,AR$1))","v":""},{"$f":"IF($A51=\"N/A\",Ref!$B$36,INDEX(Ranks!$1:$1048576,$A51,AS$1))","v":""},{"$f":"IF($A51=\"N/A\",Ref!$B$36,INDEX(Ranks!$1:$1048576,$A51,AT$1))","v":""},{"$f":"IF($A51=\"N/A\",Ref!$B$36,INDEX(Ranks!$1:$1048576,$A51,AU$1))","v":""},{"$f":"IF($A51=\"N/A\",Ref!$B$36,INDEX(Ranks!$1:$1048576,$A51,AV$1))","v":""},{"$f":"IF($A51=\"N/A\",Ref!$B$36,INDEX(Ranks!$1:$1048576,$A51,AW$1))","v":""},{"$f":"IF($A51=\"N/A\",Ref!$B$36,INDEX(Ranks!$1:$1048576,$A51,AX$1))","v":""},{"$f":"IF($A51=\"N/A\",Ref!$B$36,INDEX(Ranks!$1:$1048576,$A51,AY$1))","v":""},{"$f":"IF($A51=\"N/A\",Ref!$B$36,INDEX(Ranks!$1:$1048576,$A51,AZ$1))","v":""},{"$f":"IF($A51=\"N/A\",Ref!$B$36,INDEX(Ranks!$1:$1048576,$A51,BA$1))","v":""},{"$f":"IF($A51=\"N/A\",Ref!$B$36,INDEX(Ranks!$1:$1048576,$A51,BB$1))","v":""},{"$f":"IF($A51=\"N/A\",Ref!$B$36,INDEX(Ranks!$1:$1048576,$A51,BC$1))","v":""},{"$f":"IF($A51=\"N/A\",Ref!$B$36,INDEX(Ranks!$1:$1048576,$A51,BD$1))","v":""},{"$f":"IF($A51=\"N/A\",Ref!$B$36,INDEX(Ranks!$1:$1048576,$A51,BE$1))","v":""},{"$f":"IF($A51=\"N/A\",Ref!$B$36,INDEX(Ranks!$1:$1048576,$A51,BF$1))","v":""},{"$f":"IF($A51=\"N/A\",Ref!$B$36,INDEX(Ranks!$1:$1048576,$A51,BG$1))","v":""},{"$f":"IF($A51=\"N/A\",Ref!$B$36,INDEX(Ranks!$1:$1048576,$A51,BH$1))","v":""},{"$f":"IF($A51=\"N/A\",Ref!$B$36,INDEX(Ranks!$1:$1048576,$A51,BI$1))","v":""},{"$f":"IF($A51=\"N/A\",Ref!$B$36,INDEX(Ranks!$1:$1048576,$A51,BJ$1))","v":""},{"$f":"IF($A51=\"N/A\",Ref!$B$36,INDEX(Ranks!$1:$1048576,$A51,BK$1))","v":""},{"$f":"IF($A51=\"N/A\",Ref!$B$36,INDEX(Ranks!$1:$1048576,$A51,BL$1))","v":""},{"$f":"IF($A51=\"N/A\",Ref!$B$36,INDEX(Ranks!$1:$1048576,$A51,BM$1))","v":""},{"$f":"IF($A51=\"N/A\",Ref!$B$36,INDEX(Ranks!$1:$1048576,$A51,BN$1))","v":""},{"$f":"IF($A51=\"N/A\",Ref!$B$36,INDEX(Ranks!$1:$1048576,$A51,BO$1))","v":""},{"$f":"IF($A51=\"N/A\",Ref!$B$36,INDEX(Ranks!$1:$1048576,$A51,BP$1))","v":""},{"$f":"IF($A51=\"N/A\",Ref!$B$36,INDEX(Ranks!$1:$1048576,$A51,BQ$1))","v":""},{"$f":"IF($A51=\"N/A\",Ref!$B$36,INDEX(Ranks!$1:$1048576,$A51,BR$1))","v":""},{"$f":"IF($A51=\"N/A\",Ref!$B$36,INDEX(Ranks!$1:$1048576,$A51,BS$1))","v":""},{"$f":"IF($A51=\"N/A\",Ref!$B$36,INDEX(Ranks!$1:$1048576,$A51,BT$1))","v":""},{"$f":"IF($A51=\"N/A\",Ref!$B$36,INDEX(Ranks!$1:$1048576,$A51,BU$1))","v":""},{"$f":"IF($A51=\"N/A\",Ref!$B$36,INDEX(Ranks!$1:$1048576,$A51,BV$1))","v":""},{"$f":"IF($A51=\"N/A\",Ref!$B$36,INDEX(Ranks!$1:$1048576,$A51,BW$1))","v":""},{"$f":"IF($A51=\"N/A\",Ref!$B$36,INDEX(Ranks!$1:$1048576,$A51,BX$1))","v":""},{"$f":"IF($A51=\"N/A\",Ref!$B$36,INDEX(Ranks!$1:$1048576,$A51,BY$1))","v":""},{"$f":"IF($A51=\"N/A\",Ref!$B$36,INDEX(Ranks!$1:$1048576,$A51,BZ$1))","v":""},{"$f":"IF($A51=\"N/A\",Ref!$B$36,INDEX(Ranks!$1:$1048576,$A51,CA$1))","v":""},{"$f":"IF($A51=\"N/A\",Ref!$B$36,INDEX(Ranks!$1:$1048576,$A51,CB$1))","v":""},{"$f":"IF($A51=\"N/A\",Ref!$B$36,INDEX(Ranks!$1:$1048576,$A51,CC$1))","v":""},{"$f":"IF($A51=\"N/A\",Ref!$B$36,INDEX(Ranks!$1:$1048576,$A51,CD$1))","v":""},{"$f":"IF($A51=\"N/A\",Ref!$B$36,INDEX(Ranks!$1:$1048576,$A51,CE$1))","v":""},{"$f":"IF($A51=\"N/A\",Ref!$B$36,INDEX(Ranks!$1:$1048576,$A51,CF$1))","v":""},{"$f":"IF($A51=\"N/A\",Ref!$B$36,INDEX(Ranks!$1:$1048576,$A51,CG$1))","v":""},{"$f":"IF($A51=\"N/A\",Ref!$B$36,INDEX(Ranks!$1:$1048576,$A51,CH$1))","v":""},{"$f":"IF($A51=\"N/A\",Ref!$B$36,INDEX(Ranks!$1:$1048576,$A51,CI$1))","v":""},{"$f":"IF($A51=\"N/A\",Ref!$B$36,INDEX(Ranks!$1:$1048576,$A51,CJ$1))","v":""},{"$f":"IF($A51=\"N/A\",Ref!$B$36,INDEX(Ranks!$1:$1048576,$A51,CK$1))","v":""},{"$f":"IF($A51=\"N/A\",Ref!$B$36,INDEX(Ranks!$1:$1048576,$A51,CL$1))","v":""},{"$f":"IF($A51=\"N/A\",Ref!$B$36,INDEX(Ranks!$1:$1048576,$A51,CM$1))","v":""},{"$f":"IF($A51=\"N/A\",Ref!$B$36,INDEX(Ranks!$1:$1048576,$A51,CN$1))","v":""},{"$f":"IF($A51=\"N/A\",Ref!$B$36,INDEX(Ranks!$1:$1048576,$A51,CO$1))","v":""},{"$f":"IF($A51=\"N/A\",Ref!$B$36,INDEX(Ranks!$1:$1048576,$A51,CP$1))","v":""},{"$f":"IF($A51=\"N/A\",Ref!$B$36,INDEX(Ranks!$1:$1048576,$A51,CQ$1))","v":""},{"$f":"IF($A51=\"N/A\",Ref!$B$36,INDEX(Ranks!$1:$1048576,$A51,CR$1))","v":""},{"$f":"IF($A51=\"N/A\",Ref!$B$36,INDEX(Ranks!$1:$1048576,$A51,CS$1))","v":""},{"$f":"IF($A51=\"N/A\",Ref!$B$36,INDEX(Ranks!$1:$1048576,$A51,CT$1))","v":""},{"$f":"IF($A51=\"N/A\",Ref!$B$36,INDEX(Ranks!$1:$1048576,$A51,CU$1))","v":""},{"$f":"IF($A51=\"N/A\",Ref!$B$36,INDEX(Ranks!$1:$1048576,$A51,CV$1))","v":""},{"$f":"IF($A51=\"N/A\",Ref!$B$36,INDEX(Ranks!$1:$1048576,$A51,CW$1))","v":""},{"$f":"IF($A51=\"N/A\",Ref!$B$36,INDEX(Ranks!$1:$1048576,$A51,CX$1))","v":""},{"$f":"IF($A51=\"N/A\",Ref!$B$36,INDEX(Ranks!$1:$1048576,$A51,CY$1))","v":""},{"$f":"IF($A51=\"N/A\",Ref!$B$36,INDEX(Ranks!$1:$1048576,$A51,CZ$1))","v":""},{"$f":"IF($A51=\"N/A\",Ref!$B$36,INDEX(Ranks!$1:$1048576,$A51,DA$1))","v":""},{"$f":"IF($A51=\"N/A\",Ref!$B$36,INDEX(Ranks!$1:$1048576,$A51,DB$1))","v":""},{"$f":"IF($A51=\"N/A\",Ref!$B$36,INDEX(Ranks!$1:$1048576,$A51,DC$1))","v":""},{"$f":"IF($A51=\"N/A\",Ref!$B$36,INDEX(Ranks!$1:$1048576,$A51,DD$1))","v":""},{"$f":"IF($A51=\"N/A\",Ref!$B$36,INDEX(Ranks!$1:$1048576,$A51,DE$1))","v":""},{"$f":"IF($A51=\"N/A\",Ref!$B$36,INDEX(Ranks!$1:$1048576,$A51,DF$1))","v":""},{"$f":"IF($A51=\"N/A\",Ref!$B$36,INDEX(Ranks!$1:$1048576,$A51,DG$1))","v":""},{"$f":"IF($A51=\"N/A\",Ref!$B$36,INDEX(Ranks!$1:$1048576,$A51,DH$1))","v":""},{"$f":"IF($A51=\"N/A\",Ref!$B$36,INDEX(Ranks!$1:$1048576,$A51,DI$1))","v":""},{"$f":"IF($A51=\"N/A\",Ref!$B$36,INDEX(Ranks!$1:$1048576,$A51,DJ$1))","v":""},{"$f":"IF($A51=\"N/A\",Ref!$B$36,INDEX(Ranks!$1:$1048576,$A51,DK$1))","v":""},{"$f":"IF($A51=\"N/A\",Ref!$B$36,INDEX(Ranks!$1:$1048576,$A51,DL$1))","v":""},{"$f":"IF($A51=\"N/A\",Ref!$B$36,INDEX(Ranks!$1:$1048576,$A51,DM$1))","v":""},{"$f":"IF($A51=\"N/A\",Ref!$B$36,INDEX(Ranks!$1:$1048576,$A51,DN$1))","v":""},{"$f":"IF($A51=\"N/A\",Ref!$B$36,INDEX(Ranks!$1:$1048576,$A51,DO$1))","v":""},{"$f":"IF($A51=\"N/A\",Ref!$B$36,INDEX(Ranks!$1:$1048576,$A51,DP$1))","v":""},{"$f":"IF($A51=\"N/A\",Ref!$B$36,INDEX(Ranks!$1:$1048576,$A51,DQ$1))","v":""},{"$f":"IF($A51=\"N/A\",Ref!$B$36,INDEX(Ranks!$1:$1048576,$A51,DR$1))","v":""},{"$f":"IF($A51=\"N/A\",Ref!$B$36,INDEX(Ranks!$1:$1048576,$A51,DS$1))","v":""},{"$f":"IF($A51=\"N/A\",Ref!$B$36,INDEX(Ranks!$1:$1048576,$A51,DT$1))","v":""},{"$f":"IF($A51=\"N/A\",Ref!$B$36,INDEX(Ranks!$1:$1048576,$A51,DU$1))","v":""},{"$f":"IF($A51=\"N/A\",Ref!$B$36,INDEX(Ranks!$1:$1048576,$A51,DV$1))","v":""},{"$f":"IF($A51=\"N/A\",Ref!$B$36,INDEX(Ranks!$1:$1048576,$A51,DW$1))","v":""},{"$f":"IF($A51=\"N/A\",Ref!$B$36,INDEX(Ranks!$1:$1048576,$A51,DX$1))","v":""},{"$f":"IF($A51=\"N/A\",Ref!$B$36,INDEX(Ranks!$1:$1048576,$A51,DY$1))","v":""},{"$f":"IF($A51=\"N/A\",Ref!$B$36,INDEX(Ranks!$1:$1048576,$A51,DZ$1))","v":""},{"$f":"IF($A51=\"N/A\",Ref!$B$36,INDEX(Ranks!$1:$1048576,$A51,EA$1))","v":""},{"$f":"IF($A51=\"N/A\",Ref!$B$36,INDEX(Ranks!$1:$1048576,$A51,EB$1))","v":""}]
[{"$f":"IFERROR(MATCH('Portfolio Page'!L52,Ranks!L:L,0),\"N/A\")","v":"N/A"},null,{"$f":"IF($A52=\"N/A\",\"\",INDEX(Ranks!$1:$1048576,$A52,C$1))","v":""},{"$f":"IF($A52=\"N/A\",Ref!$B$36,INDEX(Ranks!$1:$1048576,$A52,D$1))","v":""},{"$f":"IF($A52=\"N/A\",Ref!$B$36,INDEX(Ranks!$1:$1048576,$A52,E$1))","v":""},{"$f":"IF($A52=\"N/A\",\"\",INDEX(Ranks!$1:$1048576,$A52,F$1))","v":""},{"$f":"IF($A52=\"N/A\",\"\",INDEX(Ranks!$1:$1048576,$A52,G$1))","v":""},{"$f":"IF($A52=\"N/A\",\"\",INDEX(Ranks!$1:$1048576,$A52,H$1))","v":""},{"$f":"IF($A52=\"N/A\",\"\",INDEX(Ranks!$1:$1048576,$A52,I$1))","v":""},{"$f":"IF($A52=\"N/A\",\"\",INDEX(Ranks!$1:$1048576,$A52,J$1))","v":""},{"$f":"IF($A52=\"N/A\",\"\",INDEX(Ranks!$1:$1048576,$A52,K$1))","v":""},null,{"$f":"IF($A52=\"N/A\",Ref!$B$36,INDEX(Ranks!$1:$1048576,$A52,M$1))","v":""},{"$f":"IF($A52=\"N/A\",Ref!$B$36,INDEX(Ranks!$1:$1048576,$A52,N$1))","v":""},{"$f":"IF($A52=\"N/A\",Ref!$B$36,INDEX(Ranks!$1:$1048576,$A52,O$1))","v":""},{"$f":"IF($A52=\"N/A\",Ref!$B$36,INDEX(Ranks!$1:$1048576,$A52,P$1))","v":""},{"$f":"IF($A52=\"N/A\",Ref!$B$36,INDEX(Ranks!$1:$1048576,$A52,Q$1))","v":""},{"$f":"IF($A52=\"N/A\",Ref!$B$36,INDEX(Ranks!$1:$1048576,$A52,R$1))","v":""},{"$f":"IF($A52=\"N/A\",Ref!$B$36,INDEX(Ranks!$1:$1048576,$A52,S$1))","v":""},{"$f":"IF($A52=\"N/A\",Ref!$B$36,INDEX(Ranks!$1:$1048576,$A52,T$1))","v":""},{"$f":"IF($A52=\"N/A\",Ref!$B$36,INDEX(Ranks!$1:$1048576,$A52,U$1))","v":""},{"$f":"IF($A52=\"N/A\",Ref!$B$36,INDEX(Ranks!$1:$1048576,$A52,V$1))","v":""},{"$f":"IF($A52=\"N/A\",Ref!$B$36,INDEX(Ranks!$1:$1048576,$A52,W$1))","v":""},{"$f":"IF($A52=\"N/A\",Ref!$B$36,INDEX(Ranks!$1:$1048576,$A52,X$1))","v":""},{"$f":"IF($A52=\"N/A\",Ref!$B$36,INDEX(Ranks!$1:$1048576,$A52,Y$1))","v":""},{"$f":"IF($A52=\"N/A\",Ref!$B$36,INDEX(Ranks!$1:$1048576,$A52,Z$1))","v":""},{"$f":"IF($A52=\"N/A\",Ref!$B$36,INDEX(Ranks!$1:$1048576,$A52,AA$1))","v":""},{"$f":"IF($A52=\"N/A\",Ref!$B$36,INDEX(Ranks!$1:$1048576,$A52,AB$1))","v":""},{"$f":"IF($A52=\"N/A\",Ref!$B$36,INDEX(Ranks!$1:$1048576,$A52,AC$1))","v":""},{"$f":"IF($A52=\"N/A\",Ref!$B$36,INDEX(Ranks!$1:$1048576,$A52,AD$1))","v":""},{"$f":"IF($A52=\"N/A\",Ref!$B$36,INDEX(Ranks!$1:$1048576,$A52,AE$1))","v":""},{"$f":"IF($A52=\"N/A\",Ref!$B$36,INDEX(Ranks!$1:$1048576,$A52,AF$1))","v":""},{"$f":"IF($A52=\"N/A\",Ref!$B$36,INDEX(Ranks!$1:$1048576,$A52,AG$1))","v":""},{"$f":"IF($A52=\"N/A\",Ref!$B$36,INDEX(Ranks!$1:$1048576,$A52,AH$1))","v":""},{"$f":"IF($A52=\"N/A\",Ref!$B$36,INDEX(Ranks!$1:$1048576,$A52,AI$1))","v":""},{"$f":"IF($A52=\"N/A\",Ref!$B$36,INDEX(Ranks!$1:$1048576,$A52,AJ$1))","v":""},{"$f":"IF($A52=\"N/A\",Ref!$B$36,INDEX(Ranks!$1:$1048576,$A52,AK$1))","v":""},{"$f":"IF($A52=\"N/A\",Ref!$B$36,INDEX(Ranks!$1:$1048576,$A52,AL$1))","v":""},{"$f":"IF($A52=\"N/A\",Ref!$B$36,INDEX(Ranks!$1:$1048576,$A52,AM$1))","v":""},{"$f":"IF($A52=\"N/A\",Ref!$B$36,INDEX(Ranks!$1:$1048576,$A52,AN$1))","v":""},{"$f":"IF($A52=\"N/A\",Ref!$B$36,INDEX(Ranks!$1:$1048576,$A52,AO$1))","v":""},{"$f":"IF($A52=\"N/A\",Ref!$B$36,INDEX(Ranks!$1:$1048576,$A52,AP$1))","v":""},{"$f":"IF($A52=\"N/A\",Ref!$B$36,INDEX(Ranks!$1:$1048576,$A52,AQ$1))","v":""},{"$f":"IF($A52=\"N/A\",Ref!$B$36,INDEX(Ranks!$1:$1048576,$A52,AR$1))","v":""},{"$f":"IF($A52=\"N/A\",Ref!$B$36,INDEX(Ranks!$1:$1048576,$A52,AS$1))","v":""},{"$f":"IF($A52=\"N/A\",Ref!$B$36,INDEX(Ranks!$1:$1048576,$A52,AT$1))","v":""},{"$f":"IF($A52=\"N/A\",Ref!$B$36,INDEX(Ranks!$1:$1048576,$A52,AU$1))","v":""},{"$f":"IF($A52=\"N/A\",Ref!$B$36,INDEX(Ranks!$1:$1048576,$A52,AV$1))","v":""},{"$f":"IF($A52=\"N/A\",Ref!$B$36,INDEX(Ranks!$1:$1048576,$A52,AW$1))","v":""},{"$f":"IF($A52=\"N/A\",Ref!$B$36,INDEX(Ranks!$1:$1048576,$A52,AX$1))","v":""},{"$f":"IF($A52=\"N/A\",Ref!$B$36,INDEX(Ranks!$1:$1048576,$A52,AY$1))","v":""},{"$f":"IF($A52=\"N/A\",Ref!$B$36,INDEX(Ranks!$1:$1048576,$A52,AZ$1))","v":""},{"$f":"IF($A52=\"N/A\",Ref!$B$36,INDEX(Ranks!$1:$1048576,$A52,BA$1))","v":""},{"$f":"IF($A52=\"N/A\",Ref!$B$36,INDEX(Ranks!$1:$1048576,$A52,BB$1))","v":""},{"$f":"IF($A52=\"N/A\",Ref!$B$36,INDEX(Ranks!$1:$1048576,$A52,BC$1))","v":""},{"$f":"IF($A52=\"N/A\",Ref!$B$36,INDEX(Ranks!$1:$1048576,$A52,BD$1))","v":""},{"$f":"IF($A52=\"N/A\",Ref!$B$36,INDEX(Ranks!$1:$1048576,$A52,BE$1))","v":""},{"$f":"IF($A52=\"N/A\",Ref!$B$36,INDEX(Ranks!$1:$1048576,$A52,BF$1))","v":""},{"$f":"IF($A52=\"N/A\",Ref!$B$36,INDEX(Ranks!$1:$1048576,$A52,BG$1))","v":""},{"$f":"IF($A52=\"N/A\",Ref!$B$36,INDEX(Ranks!$1:$1048576,$A52,BH$1))","v":""},{"$f":"IF($A52=\"N/A\",Ref!$B$36,INDEX(Ranks!$1:$1048576,$A52,BI$1))","v":""},{"$f":"IF($A52=\"N/A\",Ref!$B$36,INDEX(Ranks!$1:$1048576,$A52,BJ$1))","v":""},{"$f":"IF($A52=\"N/A\",Ref!$B$36,INDEX(Ranks!$1:$1048576,$A52,BK$1))","v":""},{"$f":"IF($A52=\"N/A\",Ref!$B$36,INDEX(Ranks!$1:$1048576,$A52,BL$1))","v":""},{"$f":"IF($A52=\"N/A\",Ref!$B$36,INDEX(Ranks!$1:$1048576,$A52,BM$1))","v":""},{"$f":"IF($A52=\"N/A\",Ref!$B$36,INDEX(Ranks!$1:$1048576,$A52,BN$1))","v":""},{"$f":"IF($A52=\"N/A\",Ref!$B$36,INDEX(Ranks!$1:$1048576,$A52,BO$1))","v":""},{"$f":"IF($A52=\"N/A\",Ref!$B$36,INDEX(Ranks!$1:$1048576,$A52,BP$1))","v":""},{"$f":"IF($A52=\"N/A\",Ref!$B$36,INDEX(Ranks!$1:$1048576,$A52,BQ$1))","v":""},{"$f":"IF($A52=\"N/A\",Ref!$B$36,INDEX(Ranks!$1:$1048576,$A52,BR$1))","v":""},{"$f":"IF($A52=\"N/A\",Ref!$B$36,INDEX(Ranks!$1:$1048576,$A52,BS$1))","v":""},{"$f":"IF($A52=\"N/A\",Ref!$B$36,INDEX(Ranks!$1:$1048576,$A52,BT$1))","v":""},{"$f":"IF($A52=\"N/A\",Ref!$B$36,INDEX(Ranks!$1:$1048576,$A52,BU$1))","v":""},{"$f":"IF($A52=\"N/A\",Ref!$B$36,INDEX(Ranks!$1:$1048576,$A52,BV$1))","v":""},{"$f":"IF($A52=\"N/A\",Ref!$B$36,INDEX(Ranks!$1:$1048576,$A52,BW$1))","v":""},{"$f":"IF($A52=\"N/A\",Ref!$B$36,INDEX(Ranks!$1:$1048576,$A52,BX$1))","v":""},{"$f":"IF($A52=\"N/A\",Ref!$B$36,INDEX(Ranks!$1:$1048576,$A52,BY$1))","v":""},{"$f":"IF($A52=\"N/A\",Ref!$B$36,INDEX(Ranks!$1:$1048576,$A52,BZ$1))","v":""},{"$f":"IF($A52=\"N/A\",Ref!$B$36,INDEX(Ranks!$1:$1048576,$A52,CA$1))","v":""},{"$f":"IF($A52=\"N/A\",Ref!$B$36,INDEX(Ranks!$1:$1048576,$A52,CB$1))","v":""},{"$f":"IF($A52=\"N/A\",Ref!$B$36,INDEX(Ranks!$1:$1048576,$A52,CC$1))","v":""},{"$f":"IF($A52=\"N/A\",Ref!$B$36,INDEX(Ranks!$1:$1048576,$A52,CD$1))","v":""},{"$f":"IF($A52=\"N/A\",Ref!$B$36,INDEX(Ranks!$1:$1048576,$A52,CE$1))","v":""},{"$f":"IF($A52=\"N/A\",Ref!$B$36,INDEX(Ranks!$1:$1048576,$A52,CF$1))","v":""},{"$f":"IF($A52=\"N/A\",Ref!$B$36,INDEX(Ranks!$1:$1048576,$A52,CG$1))","v":""},{"$f":"IF($A52=\"N/A\",Ref!$B$36,INDEX(Ranks!$1:$1048576,$A52,CH$1))","v":""},{"$f":"IF($A52=\"N/A\",Ref!$B$36,INDEX(Ranks!$1:$1048576,$A52,CI$1))","v":""},{"$f":"IF($A52=\"N/A\",Ref!$B$36,INDEX(Ranks!$1:$1048576,$A52,CJ$1))","v":""},{"$f":"IF($A52=\"N/A\",Ref!$B$36,INDEX(Ranks!$1:$1048576,$A52,CK$1))","v":""},{"$f":"IF($A52=\"N/A\",Ref!$B$36,INDEX(Ranks!$1:$1048576,$A52,CL$1))","v":""},{"$f":"IF($A52=\"N/A\",Ref!$B$36,INDEX(Ranks!$1:$1048576,$A52,CM$1))","v":""},{"$f":"IF($A52=\"N/A\",Ref!$B$36,INDEX(Ranks!$1:$1048576,$A52,CN$1))","v":""},{"$f":"IF($A52=\"N/A\",Ref!$B$36,INDEX(Ranks!$1:$1048576,$A52,CO$1))","v":""},{"$f":"IF($A52=\"N/A\",Ref!$B$36,INDEX(Ranks!$1:$1048576,$A52,CP$1))","v":""},{"$f":"IF($A52=\"N/A\",Ref!$B$36,INDEX(Ranks!$1:$1048576,$A52,CQ$1))","v":""},{"$f":"IF($A52=\"N/A\",Ref!$B$36,INDEX(Ranks!$1:$1048576,$A52,CR$1))","v":""},{"$f":"IF($A52=\"N/A\",Ref!$B$36,INDEX(Ranks!$1:$1048576,$A52,CS$1))","v":""},{"$f":"IF($A52=\"N/A\",Ref!$B$36,INDEX(Ranks!$1:$1048576,$A52,CT$1))","v":""},{"$f":"IF($A52=\"N/A\",Ref!$B$36,INDEX(Ranks!$1:$1048576,$A52,CU$1))","v":""},{"$f":"IF($A52=\"N/A\",Ref!$B$36,INDEX(Ranks!$1:$1048576,$A52,CV$1))","v":""},{"$f":"IF($A52=\"N/A\",Ref!$B$36,INDEX(Ranks!$1:$1048576,$A52,CW$1))","v":""},{"$f":"IF($A52=\"N/A\",Ref!$B$36,INDEX(Ranks!$1:$1048576,$A52,CX$1))","v":""},{"$f":"IF($A52=\"N/A\",Ref!$B$36,INDEX(Ranks!$1:$1048576,$A52,CY$1))","v":""},{"$f":"IF($A52=\"N/A\",Ref!$B$36,INDEX(Ranks!$1:$1048576,$A52,CZ$1))","v":""},{"$f":"IF($A52=\"N/A\",Ref!$B$36,INDEX(Ranks!$1:$1048576,$A52,DA$1))","v":""},{"$f":"IF($A52=\"N/A\",Ref!$B$36,INDEX(Ranks!$1:$1048576,$A52,DB$1))","v":""},{"$f":"IF($A52=\"N/A\",Ref!$B$36,INDEX(Ranks!$1:$1048576,$A52,DC$1))","v":""},{"$f":"IF($A52=\"N/A\",Ref!$B$36,INDEX(Ranks!$1:$1048576,$A52,DD$1))","v":""},{"$f":"IF($A52=\"N/A\",Ref!$B$36,INDEX(Ranks!$1:$1048576,$A52,DE$1))","v":""},{"$f":"IF($A52=\"N/A\",Ref!$B$36,INDEX(Ranks!$1:$1048576,$A52,DF$1))","v":""},{"$f":"IF($A52=\"N/A\",Ref!$B$36,INDEX(Ranks!$1:$1048576,$A52,DG$1))","v":""},{"$f":"IF($A52=\"N/A\",Ref!$B$36,INDEX(Ranks!$1:$1048576,$A52,DH$1))","v":""},{"$f":"IF($A52=\"N/A\",Ref!$B$36,INDEX(Ranks!$1:$1048576,$A52,DI$1))","v":""},{"$f":"IF($A52=\"N/A\",Ref!$B$36,INDEX(Ranks!$1:$1048576,$A52,DJ$1))","v":""},{"$f":"IF($A52=\"N/A\",Ref!$B$36,INDEX(Ranks!$1:$1048576,$A52,DK$1))","v":""},{"$f":"IF($A52=\"N/A\",Ref!$B$36,INDEX(Ranks!$1:$1048576,$A52,DL$1))","v":""},{"$f":"IF($A52=\"N/A\",Ref!$B$36,INDEX(Ranks!$1:$1048576,$A52,DM$1))","v":""},{"$f":"IF($A52=\"N/A\",Ref!$B$36,INDEX(Ranks!$1:$1048576,$A52,DN$1))","v":""},{"$f":"IF($A52=\"N/A\",Ref!$B$36,INDEX(Ranks!$1:$1048576,$A52,DO$1))","v":""},{"$f":"IF($A52=\"N/A\",Ref!$B$36,INDEX(Ranks!$1:$1048576,$A52,DP$1))","v":""},{"$f":"IF($A52=\"N/A\",Ref!$B$36,INDEX(Ranks!$1:$1048576,$A52,DQ$1))","v":""},{"$f":"IF($A52=\"N/A\",Ref!$B$36,INDEX(Ranks!$1:$1048576,$A52,DR$1))","v":""},{"$f":"IF($A52=\"N/A\",Ref!$B$36,INDEX(Ranks!$1:$1048576,$A52,DS$1))","v":""},{"$f":"IF($A52=\"N/A\",Ref!$B$36,INDEX(Ranks!$1:$1048576,$A52,DT$1))","v":""},{"$f":"IF($A52=\"N/A\",Ref!$B$36,INDEX(Ranks!$1:$1048576,$A52,DU$1))","v":""},{"$f":"IF($A52=\"N/A\",Ref!$B$36,INDEX(Ranks!$1:$1048576,$A52,DV$1))","v":""},{"$f":"IF($A52=\"N/A\",Ref!$B$36,INDEX(Ranks!$1:$1048576,$A52,DW$1))","v":""},{"$f":"IF($A52=\"N/A\",Ref!$B$36,INDEX(Ranks!$1:$1048576,$A52,DX$1))","v":""},{"$f":"IF($A52=\"N/A\",Ref!$B$36,INDEX(Ranks!$1:$1048576,$A52,DY$1))","v":""},{"$f":"IF($A52=\"N/A\",Ref!$B$36,INDEX(Ranks!$1:$1048576,$A52,DZ$1))","v":""},{"$f":"IF($A52=\"N/A\",Ref!$B$36,INDEX(Ranks!$1:$1048576,$A52,EA$1))","v":""},{"$f":"IF($A52=\"N/A\",Ref!$B$36,INDEX(Ranks!$1:$1048576,$A52,EB$1))","v":""}]
[{"$f":"IFERROR(MATCH('Portfolio Page'!L53,Ranks!L:L,0),\"N/A\")","v":"N/A"},null,{"$f":"IF($A53=\"N/A\",\"\",INDEX(Ranks!$1:$1048576,$A53,C$1))","v":""},{"$f":"IF($A53=\"N/A\",Ref!$B$36,INDEX(Ranks!$1:$1048576,$A53,D$1))","v":""},{"$f":"IF($A53=\"N/A\",Ref!$B$36,INDEX(Ranks!$1:$1048576,$A53,E$1))","v":""},{"$f":"IF($A53=\"N/A\",\"\",INDEX(Ranks!$1:$1048576,$A53,F$1))","v":""},{"$f":"IF($A53=\"N/A\",\"\",INDEX(Ranks!$1:$1048576,$A53,G$1))","v":""},{"$f":"IF($A53=\"N/A\",\"\",INDEX(Ranks!$1:$1048576,$A53,H$1))","v":""},{"$f":"IF($A53=\"N/A\",\"\",INDEX(Ranks!$1:$1048576,$A53,I$1))","v":""},{"$f":"IF($A53=\"N/A\",\"\",INDEX(Ranks!$1:$1048576,$A53,J$1))","v":""},{"$f":"IF($A53=\"N/A\",\"\",INDEX(Ranks!$1:$1048576,$A53,K$1))","v":""},null,{"$f":"IF($A53=\"N/A\",Ref!$B$36,INDEX(Ranks!$1:$1048576,$A53,M$1))","v":""},{"$f":"IF($A53=\"N/A\",Ref!$B$36,INDEX(Ranks!$1:$1048576,$A53,N$1))","v":""},{"$f":"IF($A53=\"N/A\",Ref!$B$36,INDEX(Ranks!$1:$1048576,$A53,O$1))","v":""},{"$f":"IF($A53=\"N/A\",Ref!$B$36,INDEX(Ranks!$1:$1048576,$A53,P$1))","v":""},{"$f":"IF($A53=\"N/A\",Ref!$B$36,INDEX(Ranks!$1:$1048576,$A53,Q$1))","v":""},{"$f":"IF($A53=\"N/A\",Ref!$B$36,INDEX(Ranks!$1:$1048576,$A53,R$1))","v":""},{"$f":"IF($A53=\"N/A\",Ref!$B$36,INDEX(Ranks!$1:$1048576,$A53,S$1))","v":""},{"$f":"IF($A53=\"N/A\",Ref!$B$36,INDEX(Ranks!$1:$1048576,$A53,T$1))","v":""},{"$f":"IF($A53=\"N/A\",Ref!$B$36,INDEX(Ranks!$1:$1048576,$A53,U$1))","v":""},{"$f":"IF($A53=\"N/A\",Ref!$B$36,INDEX(Ranks!$1:$1048576,$A53,V$1))","v":""},{"$f":"IF($A53=\"N/A\",Ref!$B$36,INDEX(Ranks!$1:$1048576,$A53,W$1))","v":""},{"$f":"IF($A53=\"N/A\",Ref!$B$36,INDEX(Ranks!$1:$1048576,$A53,X$1))","v":""},{"$f":"IF($A53=\"N/A\",Ref!$B$36,INDEX(Ranks!$1:$1048576,$A53,Y$1))","v":""},{"$f":"IF($A53=\"N/A\",Ref!$B$36,INDEX(Ranks!$1:$1048576,$A53,Z$1))","v":""},{"$f":"IF($A53=\"N/A\",Ref!$B$36,INDEX(Ranks!$1:$1048576,$A53,AA$1))","v":""},{"$f":"IF($A53=\"N/A\",Ref!$B$36,INDEX(Ranks!$1:$1048576,$A53,AB$1))","v":""},{"$f":"IF($A53=\"N/A\",Ref!$B$36,INDEX(Ranks!$1:$1048576,$A53,AC$1))","v":""},{"$f":"IF($A53=\"N/A\",Ref!$B$36,INDEX(Ranks!$1:$1048576,$A53,AD$1))","v":""},{"$f":"IF($A53=\"N/A\",Ref!$B$36,INDEX(Ranks!$1:$1048576,$A53,AE$1))","v":""},{"$f":"IF($A53=\"N/A\",Ref!$B$36,INDEX(Ranks!$1:$1048576,$A53,AF$1))","v":""},{"$f":"IF($A53=\"N/A\",Ref!$B$36,INDEX(Ranks!$1:$1048576,$A53,AG$1))","v":""},{"$f":"IF($A53=\"N/A\",Ref!$B$36,INDEX(Ranks!$1:$1048576,$A53,AH$1))","v":""},{"$f":"IF($A53=\"N/A\",Ref!$B$36,INDEX(Ranks!$1:$1048576,$A53,AI$1))","v":""},{"$f":"IF($A53=\"N/A\",Ref!$B$36,INDEX(Ranks!$1:$1048576,$A53,AJ$1))","v":""},{"$f":"IF($A53=\"N/A\",Ref!$B$36,INDEX(Ranks!$1:$1048576,$A53,AK$1))","v":""},{"$f":"IF($A53=\"N/A\",Ref!$B$36,INDEX(Ranks!$1:$1048576,$A53,AL$1))","v":""},{"$f":"IF($A53=\"N/A\",Ref!$B$36,INDEX(Ranks!$1:$1048576,$A53,AM$1))","v":""},{"$f":"IF($A53=\"N/A\",Ref!$B$36,INDEX(Ranks!$1:$1048576,$A53,AN$1))","v":""},{"$f":"IF($A53=\"N/A\",Ref!$B$36,INDEX(Ranks!$1:$1048576,$A53,AO$1))","v":""},{"$f":"IF($A53=\"N/A\",Ref!$B$36,INDEX(Ranks!$1:$1048576,$A53,AP$1))","v":""},{"$f":"IF($A53=\"N/A\",Ref!$B$36,INDEX(Ranks!$1:$1048576,$A53,AQ$1))","v":""},{"$f":"IF($A53=\"N/A\",Ref!$B$36,INDEX(Ranks!$1:$1048576,$A53,AR$1))","v":""},{"$f":"IF($A53=\"N/A\",Ref!$B$36,INDEX(Ranks!$1:$1048576,$A53,AS$1))","v":""},{"$f":"IF($A53=\"N/A\",Ref!$B$36,INDEX(Ranks!$1:$1048576,$A53,AT$1))","v":""},{"$f":"IF($A53=\"N/A\",Ref!$B$36,INDEX(Ranks!$1:$1048576,$A53,AU$1))","v":""},{"$f":"IF($A53=\"N/A\",Ref!$B$36,INDEX(Ranks!$1:$1048576,$A53,AV$1))","v":""},{"$f":"IF($A53=\"N/A\",Ref!$B$36,INDEX(Ranks!$1:$1048576,$A53,AW$1))","v":""},{"$f":"IF($A53=\"N/A\",Ref!$B$36,INDEX(Ranks!$1:$1048576,$A53,AX$1))","v":""},{"$f":"IF($A53=\"N/A\",Ref!$B$36,INDEX(Ranks!$1:$1048576,$A53,AY$1))","v":""},{"$f":"IF($A53=\"N/A\",Ref!$B$36,INDEX(Ranks!$1:$1048576,$A53,AZ$1))","v":""},{"$f":"IF($A53=\"N/A\",Ref!$B$36,INDEX(Ranks!$1:$1048576,$A53,BA$1))","v":""},{"$f":"IF($A53=\"N/A\",Ref!$B$36,INDEX(Ranks!$1:$1048576,$A53,BB$1))","v":""},{"$f":"IF($A53=\"N/A\",Ref!$B$36,INDEX(Ranks!$1:$1048576,$A53,BC$1))","v":""},{"$f":"IF($A53=\"N/A\",Ref!$B$36,INDEX(Ranks!$1:$1048576,$A53,BD$1))","v":""},{"$f":"IF($A53=\"N/A\",Ref!$B$36,INDEX(Ranks!$1:$1048576,$A53,BE$1))","v":""},{"$f":"IF($A53=\"N/A\",Ref!$B$36,INDEX(Ranks!$1:$1048576,$A53,BF$1))","v":""},{"$f":"IF($A53=\"N/A\",Ref!$B$36,INDEX(Ranks!$1:$1048576,$A53,BG$1))","v":""},{"$f":"IF($A53=\"N/A\",Ref!$B$36,INDEX(Ranks!$1:$1048576,$A53,BH$1))","v":""},{"$f":"IF($A53=\"N/A\",Ref!$B$36,INDEX(Ranks!$1:$1048576,$A53,BI$1))","v":""},{"$f":"IF($A53=\"N/A\",Ref!$B$36,INDEX(Ranks!$1:$1048576,$A53,BJ$1))","v":""},{"$f":"IF($A53=\"N/A\",Ref!$B$36,INDEX(Ranks!$1:$1048576,$A53,BK$1))","v":""},{"$f":"IF($A53=\"N/A\",Ref!$B$36,INDEX(Ranks!$1:$1048576,$A53,BL$1))","v":""},{"$f":"IF($A53=\"N/A\",Ref!$B$36,INDEX(Ranks!$1:$1048576,$A53,BM$1))","v":""},{"$f":"IF($A53=\"N/A\",Ref!$B$36,INDEX(Ranks!$1:$1048576,$A53,BN$1))","v":""},{"$f":"IF($A53=\"N/A\",Ref!$B$36,INDEX(Ranks!$1:$1048576,$A53,BO$1))","v":""},{"$f":"IF($A53=\"N/A\",Ref!$B$36,INDEX(Ranks!$1:$1048576,$A53,BP$1))","v":""},{"$f":"IF($A53=\"N/A\",Ref!$B$36,INDEX(Ranks!$1:$1048576,$A53,BQ$1))","v":""},{"$f":"IF($A53=\"N/A\",Ref!$B$36,INDEX(Ranks!$1:$1048576,$A53,BR$1))","v":""},{"$f":"IF($A53=\"N/A\",Ref!$B$36,INDEX(Ranks!$1:$1048576,$A53,BS$1))","v":""},{"$f":"IF($A53=\"N/A\",Ref!$B$36,INDEX(Ranks!$1:$1048576,$A53,BT$1))","v":""},{"$f":"IF($A53=\"N/A\",Ref!$B$36,INDEX(Ranks!$1:$1048576,$A53,BU$1))","v":""},{"$f":"IF($A53=\"N/A\",Ref!$B$36,INDEX(Ranks!$1:$1048576,$A53,BV$1))","v":""},{"$f":"IF($A53=\"N/A\",Ref!$B$36,INDEX(Ranks!$1:$1048576,$A53,BW$1))","v":""},{"$f":"IF($A53=\"N/A\",Ref!$B$36,INDEX(Ranks!$1:$1048576,$A53,BX$1))","v":""},{"$f":"IF($A53=\"N/A\",Ref!$B$36,INDEX(Ranks!$1:$1048576,$A53,BY$1))","v":""},{"$f":"IF($A53=\"N/A\",Ref!$B$36,INDEX(Ranks!$1:$1048576,$A53,BZ$1))","v":""},{"$f":"IF($A53=\"N/A\",Ref!$B$36,INDEX(Ranks!$1:$1048576,$A53,CA$1))","v":""},{"$f":"IF($A53=\"N/A\",Ref!$B$36,INDEX(Ranks!$1:$1048576,$A53,CB$1))","v":""},{"$f":"IF($A53=\"N/A\",Ref!$B$36,INDEX(Ranks!$1:$1048576,$A53,CC$1))","v":""},{"$f":"IF($A53=\"N/A\",Ref!$B$36,INDEX(Ranks!$1:$1048576,$A53,CD$1))","v":""},{"$f":"IF($A53=\"N/A\",Ref!$B$36,INDEX(Ranks!$1:$1048576,$A53,CE$1))","v":""},{"$f":"IF($A53=\"N/A\",Ref!$B$36,INDEX(Ranks!$1:$1048576,$A53,CF$1))","v":""},{"$f":"IF($A53=\"N/A\",Ref!$B$36,INDEX(Ranks!$1:$1048576,$A53,CG$1))","v":""},{"$f":"IF($A53=\"N/A\",Ref!$B$36,INDEX(Ranks!$1:$1048576,$A53,CH$1))","v":""},{"$f":"IF($A53=\"N/A\",Ref!$B$36,INDEX(Ranks!$1:$1048576,$A53,CI$1))","v":""},{"$f":"IF($A53=\"N/A\",Ref!$B$36,INDEX(Ranks!$1:$1048576,$A53,CJ$1))","v":""},{"$f":"IF($A53=\"N/A\",Ref!$B$36,INDEX(Ranks!$1:$1048576,$A53,CK$1))","v":""},{"$f":"IF($A53=\"N/A\",Ref!$B$36,INDEX(Ranks!$1:$1048576,$A53,CL$1))","v":""},{"$f":"IF($A53=\"N/A\",Ref!$B$36,INDEX(Ranks!$1:$1048576,$A53,CM$1))","v":""},{"$f":"IF($A53=\"N/A\",Ref!$B$36,INDEX(Ranks!$1:$1048576,$A53,CN$1))","v":""},{"$f":"IF($A53=\"N/A\",Ref!$B$36,INDEX(Ranks!$1:$1048576,$A53,CO$1))","v":""},{"$f":"IF($A53=\"N/A\",Ref!$B$36,INDEX(Ranks!$1:$1048576,$A53,CP$1))","v":""},{"$f":"IF($A53=\"N/A\",Ref!$B$36,INDEX(Ranks!$1:$1048576,$A53,CQ$1))","v":""},{"$f":"IF($A53=\"N/A\",Ref!$B$36,INDEX(Ranks!$1:$1048576,$A53,CR$1))","v":""},{"$f":"IF($A53=\"N/A\",Ref!$B$36,INDEX(Ranks!$1:$1048576,$A53,CS$1))","v":""},{"$f":"IF($A53=\"N/A\",Ref!$B$36,INDEX(Ranks!$1:$1048576,$A53,CT$1))","v":""},{"$f":"IF($A53=\"N/A\",Ref!$B$36,INDEX(Ranks!$1:$1048576,$A53,CU$1))","v":""},{"$f":"IF($A53=\"N/A\",Ref!$B$36,INDEX(Ranks!$1:$1048576,$A53,CV$1))","v":""},{"$f":"IF($A53=\"N/A\",Ref!$B$36,INDEX(Ranks!$1:$1048576,$A53,CW$1))","v":""},{"$f":"IF($A53=\"N/A\",Ref!$B$36,INDEX(Ranks!$1:$1048576,$A53,CX$1))","v":""},{"$f":"IF($A53=\"N/A\",Ref!$B$36,INDEX(Ranks!$1:$1048576,$A53,CY$1))","v":""},{"$f":"IF($A53=\"N/A\",Ref!$B$36,INDEX(Ranks!$1:$1048576,$A53,CZ$1))","v":""},{"$f":"IF($A53=\"N/A\",Ref!$B$36,INDEX(Ranks!$1:$1048576,$A53,DA$1))","v":""},{"$f":"IF($A53=\"N/A\",Ref!$B$36,INDEX(Ranks!$1:$1048576,$A53,DB$1))","v":""},{"$f":"IF($A53=\"N/A\",Ref!$B$36,INDEX(Ranks!$1:$1048576,$A53,DC$1))","v":""},{"$f":"IF($A53=\"N/A\",Ref!$B$36,INDEX(Ranks!$1:$1048576,$A53,DD$1))","v":""},{"$f":"IF($A53=\"N/A\",Ref!$B$36,INDEX(Ranks!$1:$1048576,$A53,DE$1))","v":""},{"$f":"IF($A53=\"N/A\",Ref!$B$36,INDEX(Ranks!$1:$1048576,$A53,DF$1))","v":""},{"$f":"IF($A53=\"N/A\",Ref!$B$36,INDEX(Ranks!$1:$1048576,$A53,DG$1))","v":""},{"$f":"IF($A53=\"N/A\",Ref!$B$36,INDEX(Ranks!$1:$1048576,$A53,DH$1))","v":""},{"$f":"IF($A53=\"N/A\",Ref!$B$36,INDEX(Ranks!$1:$1048576,$A53,DI$1))","v":""},{"$f":"IF($A53=\"N/A\",Ref!$B$36,INDEX(Ranks!$1:$1048576,$A53,DJ$1))","v":""},{"$f":"IF($A53=\"N/A\",Ref!$B$36,INDEX(Ranks!$1:$1048576,$A53,DK$1))","v":""},{"$f":"IF($A53=\"N/A\",Ref!$B$36,INDEX(Ranks!$1:$1048576,$A53,DL$1))","v":""},{"$f":"IF($A53=\"N/A\",Ref!$B$36,INDEX(Ranks!$1:$1048576,$A53,DM$1))","v":""},{"$f":"IF($A53=\"N/A\",Ref!$B$36,INDEX(Ranks!$1:$1048576,$A53,DN$1))","v":""},{"$f":"IF($A53=\"N/A\",Ref!$B$36,INDEX(Ranks!$1:$1048576,$A53,DO$1))","v":""},{"$f":"IF($A53=\"N/A\",Ref!$B$36,INDEX(Ranks!$1:$1048576,$A53,DP$1))","v":""},{"$f":"IF($A53=\"N/A\",Ref!$B$36,INDEX(Ranks!$1:$1048576,$A53,DQ$1))","v":""},{"$f":"IF($A53=\"N/A\",Ref!$B$36,INDEX(Ranks!$1:$1048576,$A53,DR$1))","v":""},{"$f":"IF($A53=\"N/A\",Ref!$B$36,INDEX(Ranks!$1:$1048576,$A53,DS$1))","v":""},{"$f":"IF($A53=\"N/A\",Ref!$B$36,INDEX(Ranks!$1:$1048576,$A53,DT$1))","v":""},{"$f":"IF($A53=\"N/A\",Ref!$B$36,INDEX(Ranks!$1:$1048576,$A53,DU$1))","v":""},{"$f":"IF($A53=\"N/A\",Ref!$B$36,INDEX(Ranks!$1:$1048576,$A53,DV$1))","v":""},{"$f":"IF($A53=\"N/A\",Ref!$B$36,INDEX(Ranks!$1:$1048576,$A53,DW$1))","v":""},{"$f":"IF($A53=\"N/A\",Ref!$B$36,INDEX(Ranks!$1:$1048576,$A53,DX$1))","v":""},{"$f":"IF($A53=\"N/A\",Ref!$B$36,INDEX(Ranks!$1:$1048576,$A53,DY$1))","v":""},{"$f":"IF($A53=\"N/A\",Ref!$B$36,INDEX(Ranks!$1:$1048576,$A53,DZ$1))","v":""},{"$f":"IF($A53=\"N/A\",Ref!$B$36,INDEX(Ranks!$1:$1048576,$A53,EA$1))","v":""},{"$f":"IF($A53=\"N/A\",Ref!$B$36,INDEX(Ranks!$1:$1048576,$A53,EB$1))","v":""}]
[{"$f":"IFERROR(MATCH('Portfolio Page'!L54,Ranks!L:L,0),\"N/A\")","v":"N/A"},null,{"$f":"IF($A54=\"N/A\",\"\",INDEX(Ranks!$1:$1048576,$A54,C$1))","v":""},{"$f":"IF($A54=\"N/A\",Ref!$B$36,INDEX(Ranks!$1:$1048576,$A54,D$1))","v":""},{"$f":"IF($A54=\"N/A\",Ref!$B$36,INDEX(Ranks!$1:$1048576,$A54,E$1))","v":""},{"$f":"IF($A54=\"N/A\",\"\",INDEX(Ranks!$1:$1048576,$A54,F$1))","v":""},{"$f":"IF($A54=\"N/A\",\"\",INDEX(Ranks!$1:$1048576,$A54,G$1))","v":""},{"$f":"IF($A54=\"N/A\",\"\",INDEX(Ranks!$1:$1048576,$A54,H$1))","v":""},{"$f":"IF($A54=\"N/A\",\"\",INDEX(Ranks!$1:$1048576,$A54,I$1))","v":""},{"$f":"IF($A54=\"N/A\",\"\",INDEX(Ranks!$1:$1048576,$A54,J$1))","v":""},{"$f":"IF($A54=\"N/A\",\"\",INDEX(Ranks!$1:$1048576,$A54,K$1))","v":""},null,{"$f":"IF($A54=\"N/A\",Ref!$B$36,INDEX(Ranks!$1:$1048576,$A54,M$1))","v":""},{"$f":"IF($A54=\"N/A\",Ref!$B$36,INDEX(Ranks!$1:$1048576,$A54,N$1))","v":""},{"$f":"IF($A54=\"N/A\",Ref!$B$36,INDEX(Ranks!$1:$1048576,$A54,O$1))","v":""},{"$f":"IF($A54=\"N/A\",Ref!$B$36,INDEX(Ranks!$1:$1048576,$A54,P$1))","v":""},{"$f":"IF($A54=\"N/A\",Ref!$B$36,INDEX(Ranks!$1:$1048576,$A54,Q$1))","v":""},{"$f":"IF($A54=\"N/A\",Ref!$B$36,INDEX(Ranks!$1:$1048576,$A54,R$1))","v":""},{"$f":"IF($A54=\"N/A\",Ref!$B$36,INDEX(Ranks!$1:$1048576,$A54,S$1))","v":""},{"$f":"IF($A54=\"N/A\",Ref!$B$36,INDEX(Ranks!$1:$1048576,$A54,T$1))","v":""},{"$f":"IF($A54=\"N/A\",Ref!$B$36,INDEX(Ranks!$1:$1048576,$A54,U$1))","v":""},{"$f":"IF($A54=\"N/A\",Ref!$B$36,INDEX(Ranks!$1:$1048576,$A54,V$1))","v":""},{"$f":"IF($A54=\"N/A\",Ref!$B$36,INDEX(Ranks!$1:$1048576,$A54,W$1))","v":""},{"$f":"IF($A54=\"N/A\",Ref!$B$36,INDEX(Ranks!$1:$1048576,$A54,X$1))","v":""},{"$f":"IF($A54=\"N/A\",Ref!$B$36,INDEX(Ranks!$1:$1048576,$A54,Y$1))","v":""},{"$f":"IF($A54=\"N/A\",Ref!$B$36,INDEX(Ranks!$1:$1048576,$A54,Z$1))","v":""},{"$f":"IF($A54=\"N/A\",Ref!$B$36,INDEX(Ranks!$1:$1048576,$A54,AA$1))","v":""},{"$f":"IF($A54=\"N/A\",Ref!$B$36,INDEX(Ranks!$1:$1048576,$A54,AB$1))","v":""},{"$f":"IF($A54=\"N/A\",Ref!$B$36,INDEX(Ranks!$1:$1048576,$A54,AC$1))","v":""},{"$f":"IF($A54=\"N/A\",Ref!$B$36,INDEX(Ranks!$1:$1048576,$A54,AD$1))","v":""},{"$f":"IF($A54=\"N/A\",Ref!$B$36,INDEX(Ranks!$1:$1048576,$A54,AE$1))","v":""},{"$f":"IF($A54=\"N/A\",Ref!$B$36,INDEX(Ranks!$1:$1048576,$A54,AF$1))","v":""},{"$f":"IF($A54=\"N/A\",Ref!$B$36,INDEX(Ranks!$1:$1048576,$A54,AG$1))","v":""},{"$f":"IF($A54=\"N/A\",Ref!$B$36,INDEX(Ranks!$1:$1048576,$A54,AH$1))","v":""},{"$f":"IF($A54=\"N/A\",Ref!$B$36,INDEX(Ranks!$1:$1048576,$A54,AI$1))","v":""},{"$f":"IF($A54=\"N/A\",Ref!$B$36,INDEX(Ranks!$1:$1048576,$A54,AJ$1))","v":""},{"$f":"IF($A54=\"N/A\",Ref!$B$36,INDEX(Ranks!$1:$1048576,$A54,AK$1))","v":""},{"$f":"IF($A54=\"N/A\",Ref!$B$36,INDEX(Ranks!$1:$1048576,$A54,AL$1))","v":""},{"$f":"IF($A54=\"N/A\",Ref!$B$36,INDEX(Ranks!$1:$1048576,$A54,AM$1))","v":""},{"$f":"IF($A54=\"N/A\",Ref!$B$36,INDEX(Ranks!$1:$1048576,$A54,AN$1))","v":""},{"$f":"IF($A54=\"N/A\",Ref!$B$36,INDEX(Ranks!$1:$1048576,$A54,AO$1))","v":""},{"$f":"IF($A54=\"N/A\",Ref!$B$36,INDEX(Ranks!$1:$1048576,$A54,AP$1))","v":""},{"$f":"IF($A54=\"N/A\",Ref!$B$36,INDEX(Ranks!$1:$1048576,$A54,AQ$1))","v":""},{"$f":"IF($A54=\"N/A\",Ref!$B$36,INDEX(Ranks!$1:$1048576,$A54,AR$1))","v":""},{"$f":"IF($A54=\"N/A\",Ref!$B$36,INDEX(Ranks!$1:$1048576,$A54,AS$1))","v":""},{"$f":"IF($A54=\"N/A\",Ref!$B$36,INDEX(Ranks!$1:$1048576,$A54,AT$1))","v":""},{"$f":"IF($A54=\"N/A\",Ref!$B$36,INDEX(Ranks!$1:$1048576,$A54,AU$1))","v":""},{"$f":"IF($A54=\"N/A\",Ref!$B$36,INDEX(Ranks!$1:$1048576,$A54,AV$1))","v":""},{"$f":"IF($A54=\"N/A\",Ref!$B$36,INDEX(Ranks!$1:$1048576,$A54,AW$1))","v":""},{"$f":"IF($A54=\"N/A\",Ref!$B$36,INDEX(Ranks!$1:$1048576,$A54,AX$1))","v":""},{"$f":"IF($A54=\"N/A\",Ref!$B$36,INDEX(Ranks!$1:$1048576,$A54,AY$1))","v":""},{"$f":"IF($A54=\"N/A\",Ref!$B$36,INDEX(Ranks!$1:$1048576,$A54,AZ$1))","v":""},{"$f":"IF($A54=\"N/A\",Ref!$B$36,INDEX(Ranks!$1:$1048576,$A54,BA$1))","v":""},{"$f":"IF($A54=\"N/A\",Ref!$B$36,INDEX(Ranks!$1:$1048576,$A54,BB$1))","v":""},{"$f":"IF($A54=\"N/A\",Ref!$B$36,INDEX(Ranks!$1:$1048576,$A54,BC$1))","v":""},{"$f":"IF($A54=\"N/A\",Ref!$B$36,INDEX(Ranks!$1:$1048576,$A54,BD$1))","v":""},{"$f":"IF($A54=\"N/A\",Ref!$B$36,INDEX(Ranks!$1:$1048576,$A54,BE$1))","v":""},{"$f":"IF($A54=\"N/A\",Ref!$B$36,INDEX(Ranks!$1:$1048576,$A54,BF$1))","v":""},{"$f":"IF($A54=\"N/A\",Ref!$B$36,INDEX(Ranks!$1:$1048576,$A54,BG$1))","v":""},{"$f":"IF($A54=\"N/A\",Ref!$B$36,INDEX(Ranks!$1:$1048576,$A54,BH$1))","v":""},{"$f":"IF($A54=\"N/A\",Ref!$B$36,INDEX(Ranks!$1:$1048576,$A54,BI$1))","v":""},{"$f":"IF($A54=\"N/A\",Ref!$B$36,INDEX(Ranks!$1:$1048576,$A54,BJ$1))","v":""},{"$f":"IF($A54=\"N/A\",Ref!$B$36,INDEX(Ranks!$1:$1048576,$A54,BK$1))","v":""},{"$f":"IF($A54=\"N/A\",Ref!$B$36,INDEX(Ranks!$1:$1048576,$A54,BL$1))","v":""},{"$f":"IF($A54=\"N/A\",Ref!$B$36,INDEX(Ranks!$1:$1048576,$A54,BM$1))","v":""},{"$f":"IF($A54=\"N/A\",Ref!$B$36,INDEX(Ranks!$1:$1048576,$A54,BN$1))","v":""},{"$f":"IF($A54=\"N/A\",Ref!$B$36,INDEX(Ranks!$1:$1048576,$A54,BO$1))","v":""},{"$f":"IF($A54=\"N/A\",Ref!$B$36,INDEX(Ranks!$1:$1048576,$A54,BP$1))","v":""},{"$f":"IF($A54=\"N/A\",Ref!$B$36,INDEX(Ranks!$1:$1048576,$A54,BQ$1))","v":""},{"$f":"IF($A54=\"N/A\",Ref!$B$36,INDEX(Ranks!$1:$1048576,$A54,BR$1))","v":""},{"$f":"IF($A54=\"N/A\",Ref!$B$36,INDEX(Ranks!$1:$1048576,$A54,BS$1))","v":""},{"$f":"IF($A54=\"N/A\",Ref!$B$36,INDEX(Ranks!$1:$1048576,$A54,BT$1))","v":""},{"$f":"IF($A54=\"N/A\",Ref!$B$36,INDEX(Ranks!$1:$1048576,$A54,BU$1))","v":""},{"$f":"IF($A54=\"N/A\",Ref!$B$36,INDEX(Ranks!$1:$1048576,$A54,BV$1))","v":""},{"$f":"IF($A54=\"N/A\",Ref!$B$36,INDEX(Ranks!$1:$1048576,$A54,BW$1))","v":""},{"$f":"IF($A54=\"N/A\",Ref!$B$36,INDEX(Ranks!$1:$1048576,$A54,BX$1))","v":""},{"$f":"IF($A54=\"N/A\",Ref!$B$36,INDEX(Ranks!$1:$1048576,$A54,BY$1))","v":""},{"$f":"IF($A54=\"N/A\",Ref!$B$36,INDEX(Ranks!$1:$1048576,$A54,BZ$1))","v":""},{"$f":"IF($A54=\"N/A\",Ref!$B$36,INDEX(Ranks!$1:$1048576,$A54,CA$1))","v":""},{"$f":"IF($A54=\"N/A\",Ref!$B$36,INDEX(Ranks!$1:$1048576,$A54,CB$1))","v":""},{"$f":"IF($A54=\"N/A\",Ref!$B$36,INDEX(Ranks!$1:$1048576,$A54,CC$1))","v":""},{"$f":"IF($A54=\"N/A\",Ref!$B$36,INDEX(Ranks!$1:$1048576,$A54,CD$1))","v":""},{"$f":"IF($A54=\"N/A\",Ref!$B$36,INDEX(Ranks!$1:$1048576,$A54,CE$1))","v":""},{"$f":"IF($A54=\"N/A\",Ref!$B$36,INDEX(Ranks!$1:$1048576,$A54,CF$1))","v":""},{"$f":"IF($A54=\"N/A\",Ref!$B$36,INDEX(Ranks!$1:$1048576,$A54,CG$1))","v":""},{"$f":"IF($A54=\"N/A\",Ref!$B$36,INDEX(Ranks!$1:$1048576,$A54,CH$1))","v":""},{"$f":"IF($A54=\"N/A\",Ref!$B$36,INDEX(Ranks!$1:$1048576,$A54,CI$1))","v":""},{"$f":"IF($A54=\"N/A\",Ref!$B$36,INDEX(Ranks!$1:$1048576,$A54,CJ$1))","v":""},{"$f":"IF($A54=\"N/A\",Ref!$B$36,INDEX(Ranks!$1:$1048576,$A54,CK$1))","v":""},{"$f":"IF($A54=\"N/A\",Ref!$B$36,INDEX(Ranks!$1:$1048576,$A54,CL$1))","v":""},{"$f":"IF($A54=\"N/A\",Ref!$B$36,INDEX(Ranks!$1:$1048576,$A54,CM$1))","v":""},{"$f":"IF($A54=\"N/A\",Ref!$B$36,INDEX(Ranks!$1:$1048576,$A54,CN$1))","v":""},{"$f":"IF($A54=\"N/A\",Ref!$B$36,INDEX(Ranks!$1:$1048576,$A54,CO$1))","v":""},{"$f":"IF($A54=\"N/A\",Ref!$B$36,INDEX(Ranks!$1:$1048576,$A54,CP$1))","v":""},{"$f":"IF($A54=\"N/A\",Ref!$B$36,INDEX(Ranks!$1:$1048576,$A54,CQ$1))","v":""},{"$f":"IF($A54=\"N/A\",Ref!$B$36,INDEX(Ranks!$1:$1048576,$A54,CR$1))","v":""},{"$f":"IF($A54=\"N/A\",Ref!$B$36,INDEX(Ranks!$1:$1048576,$A54,CS$1))","v":""},{"$f":"IF($A54=\"N/A\",Ref!$B$36,INDEX(Ranks!$1:$1048576,$A54,CT$1))","v":""},{"$f":"IF($A54=\"N/A\",Ref!$B$36,INDEX(Ranks!$1:$1048576,$A54,CU$1))","v":""},{"$f":"IF($A54=\"N/A\",Ref!$B$36,INDEX(Ranks!$1:$1048576,$A54,CV$1))","v":""},{"$f":"IF($A54=\"N/A\",Ref!$B$36,INDEX(Ranks!$1:$1048576,$A54,CW$1))","v":""},{"$f":"IF($A54=\"N/A\",Ref!$B$36,INDEX(Ranks!$1:$1048576,$A54,CX$1))","v":""},{"$f":"IF($A54=\"N/A\",Ref!$B$36,INDEX(Ranks!$1:$1048576,$A54,CY$1))","v":""},{"$f":"IF($A54=\"N/A\",Ref!$B$36,INDEX(Ranks!$1:$1048576,$A54,CZ$1))","v":""},{"$f":"IF($A54=\"N/A\",Ref!$B$36,INDEX(Ranks!$1:$1048576,$A54,DA$1))","v":""},{"$f":"IF($A54=\"N/A\",Ref!$B$36,INDEX(Ranks!$1:$1048576,$A54,DB$1))","v":""},{"$f":"IF($A54=\"N/A\",Ref!$B$36,INDEX(Ranks!$1:$1048576,$A54,DC$1))","v":""},{"$f":"IF($A54=\"N/A\",Ref!$B$36,INDEX(Ranks!$1:$1048576,$A54,DD$1))","v":""},{"$f":"IF($A54=\"N/A\",Ref!$B$36,INDEX(Ranks!$1:$1048576,$A54,DE$1))","v":""},{"$f":"IF($A54=\"N/A\",Ref!$B$36,INDEX(Ranks!$1:$1048576,$A54,DF$1))","v":""},{"$f":"IF($A54=\"N/A\",Ref!$B$36,INDEX(Ranks!$1:$1048576,$A54,DG$1))","v":""},{"$f":"IF($A54=\"N/A\",Ref!$B$36,INDEX(Ranks!$1:$1048576,$A54,DH$1))","v":""},{"$f":"IF($A54=\"N/A\",Ref!$B$36,INDEX(Ranks!$1:$1048576,$A54,DI$1))","v":""},{"$f":"IF($A54=\"N/A\",Ref!$B$36,INDEX(Ranks!$1:$1048576,$A54,DJ$1))","v":""},{"$f":"IF($A54=\"N/A\",Ref!$B$36,INDEX(Ranks!$1:$1048576,$A54,DK$1))","v":""},{"$f":"IF($A54=\"N/A\",Ref!$B$36,INDEX(Ranks!$1:$1048576,$A54,DL$1))","v":""},{"$f":"IF($A54=\"N/A\",Ref!$B$36,INDEX(Ranks!$1:$1048576,$A54,DM$1))","v":""},{"$f":"IF($A54=\"N/A\",Ref!$B$36,INDEX(Ranks!$1:$1048576,$A54,DN$1))","v":""},{"$f":"IF($A54=\"N/A\",Ref!$B$36,INDEX(Ranks!$1:$1048576,$A54,DO$1))","v":""},{"$f":"IF($A54=\"N/A\",Ref!$B$36,INDEX(Ranks!$1:$1048576,$A54,DP$1))","v":""},{"$f":"IF($A54=\"N/A\",Ref!$B$36,INDEX(Ranks!$1:$1048576,$A54,DQ$1))","v":""},{"$f":"IF($A54=\"N/A\",Ref!$B$36,INDEX(Ranks!$1:$1048576,$A54,DR$1))","v":""},{"$f":"IF($A54=\"N/A\",Ref!$B$36,INDEX(Ranks!$1:$1048576,$A54,DS$1))","v":""},{"$f":"IF($A54=\"N/A\",Ref!$B$36,INDEX(Ranks!$1:$1048576,$A54,DT$1))","v":""},{"$f":"IF($A54=\"N/A\",Ref!$B$36,INDEX(Ranks!$1:$1048576,$A54,DU$1))","v":""},{"$f":"IF($A54=\"N/A\",Ref!$B$36,INDEX(Ranks!$1:$1048576,$A54,DV$1))","v":""},{"$f":"IF($A54=\"N/A\",Ref!$B$36,INDEX(Ranks!$1:$1048576,$A54,DW$1))","v":""},{"$f":"IF($A54=\"N/A\",Ref!$B$36,INDEX(Ranks!$1:$1048576,$A54,DX$1))","v":""},{"$f":"IF($A54=\"N/A\",Ref!$B$36,INDEX(Ranks!$1:$1048576,$A54,DY$1))","v":""},{"$f":"IF($A54=\"N/A\",Ref!$B$36,INDEX(Ranks!$1:$1048576,$A54,DZ$1))","v":""},{"$f":"IF($A54=\"N/A\",Ref!$B$36,INDEX(Ranks!$1:$1048576,$A54,EA$1))","v":""},{"$f":"IF($A54=\"N/A\",Ref!$B$36,INDEX(Ranks!$1:$1048576,$A54,EB$1))","v":""}]
[{"$f":"IFERROR(MATCH('Portfolio Page'!L55,Ranks!L:L,0),\"N/A\")","v":"N/A"},null,{"$f":"IF($A55=\"N/A\",\"\",INDEX(Ranks!$1:$1048576,$A55,C$1))","v":""},{"$f":"IF($A55=\"N/A\",Ref!$B$36,INDEX(Ranks!$1:$1048576,$A55,D$1))","v":""},{"$f":"IF($A55=\"N/A\",Ref!$B$36,INDEX(Ranks!$1:$1048576,$A55,E$1))","v":""},{"$f":"IF($A55=\"N/A\",\"\",INDEX(Ranks!$1:$1048576,$A55,F$1))","v":""},{"$f":"IF($A55=\"N/A\",\"\",INDEX(Ranks!$1:$1048576,$A55,G$1))","v":""},{"$f":"IF($A55=\"N/A\",\"\",INDEX(Ranks!$1:$1048576,$A55,H$1))","v":""},{"$f":"IF($A55=\"N/A\",\"\",INDEX(Ranks!$1:$1048576,$A55,I$1))","v":""},{"$f":"IF($A55=\"N/A\",\"\",INDEX(Ranks!$1:$1048576,$A55,J$1))","v":""},{"$f":"IF($A55=\"N/A\",\"\",INDEX(Ranks!$1:$1048576,$A55,K$1))","v":""},null,{"$f":"IF($A55=\"N/A\",Ref!$B$36,INDEX(Ranks!$1:$1048576,$A55,M$1))","v":""},{"$f":"IF($A55=\"N/A\",Ref!$B$36,INDEX(Ranks!$1:$1048576,$A55,N$1))","v":""},{"$f":"IF($A55=\"N/A\",Ref!$B$36,INDEX(Ranks!$1:$1048576,$A55,O$1))","v":""},{"$f":"IF($A55=\"N/A\",Ref!$B$36,INDEX(Ranks!$1:$1048576,$A55,P$1))","v":""},{"$f":"IF($A55=\"N/A\",Ref!$B$36,INDEX(Ranks!$1:$1048576,$A55,Q$1))","v":""},{"$f":"IF($A55=\"N/A\",Ref!$B$36,INDEX(Ranks!$1:$1048576,$A55,R$1))","v":""},{"$f":"IF($A55=\"N/A\",Ref!$B$36,INDEX(Ranks!$1:$1048576,$A55,S$1))","v":""},{"$f":"IF($A55=\"N/A\",Ref!$B$36,INDEX(Ranks!$1:$1048576,$A55,T$1))","v":""},{"$f":"IF($A55=\"N/A\",Ref!$B$36,INDEX(Ranks!$1:$1048576,$A55,U$1))","v":""},{"$f":"IF($A55=\"N/A\",Ref!$B$36,INDEX(Ranks!$1:$1048576,$A55,V$1))","v":""},{"$f":"IF($A55=\"N/A\",Ref!$B$36,INDEX(Ranks!$1:$1048576,$A55,W$1))","v":""},{"$f":"IF($A55=\"N/A\",Ref!$B$36,INDEX(Ranks!$1:$1048576,$A55,X$1))","v":""},{"$f":"IF($A55=\"N/A\",Ref!$B$36,INDEX(Ranks!$1:$1048576,$A55,Y$1))","v":""},{"$f":"IF($A55=\"N/A\",Ref!$B$36,INDEX(Ranks!$1:$1048576,$A55,Z$1))","v":""},{"$f":"IF($A55=\"N/A\",Ref!$B$36,INDEX(Ranks!$1:$1048576,$A55,AA$1))","v":""},{"$f":"IF($A55=\"N/A\",Ref!$B$36,INDEX(Ranks!$1:$1048576,$A55,AB$1))","v":""},{"$f":"IF($A55=\"N/A\",Ref!$B$36,INDEX(Ranks!$1:$1048576,$A55,AC$1))","v":""},{"$f":"IF($A55=\"N/A\",Ref!$B$36,INDEX(Ranks!$1:$1048576,$A55,AD$1))","v":""},{"$f":"IF($A55=\"N/A\",Ref!$B$36,INDEX(Ranks!$1:$1048576,$A55,AE$1))","v":""},{"$f":"IF($A55=\"N/A\",Ref!$B$36,INDEX(Ranks!$1:$1048576,$A55,AF$1))","v":""},{"$f":"IF($A55=\"N/A\",Ref!$B$36,INDEX(Ranks!$1:$1048576,$A55,AG$1))","v":""},{"$f":"IF($A55=\"N/A\",Ref!$B$36,INDEX(Ranks!$1:$1048576,$A55,AH$1))","v":""},{"$f":"IF($A55=\"N/A\",Ref!$B$36,INDEX(Ranks!$1:$1048576,$A55,AI$1))","v":""},{"$f":"IF($A55=\"N/A\",Ref!$B$36,INDEX(Ranks!$1:$1048576,$A55,AJ$1))","v":""},{"$f":"IF($A55=\"N/A\",Ref!$B$36,INDEX(Ranks!$1:$1048576,$A55,AK$1))","v":""},{"$f":"IF($A55=\"N/A\",Ref!$B$36,INDEX(Ranks!$1:$1048576,$A55,AL$1))","v":""},{"$f":"IF($A55=\"N/A\",Ref!$B$36,INDEX(Ranks!$1:$1048576,$A55,AM$1))","v":""},{"$f":"IF($A55=\"N/A\",Ref!$B$36,INDEX(Ranks!$1:$1048576,$A55,AN$1))","v":""},{"$f":"IF($A55=\"N/A\",Ref!$B$36,INDEX(Ranks!$1:$1048576,$A55,AO$1))","v":""},{"$f":"IF($A55=\"N/A\",Ref!$B$36,INDEX(Ranks!$1:$1048576,$A55,AP$1))","v":""},{"$f":"IF($A55=\"N/A\",Ref!$B$36,INDEX(Ranks!$1:$1048576,$A55,AQ$1))","v":""},{"$f":"IF($A55=\"N/A\",Ref!$B$36,INDEX(Ranks!$1:$1048576,$A55,AR$1))","v":""},{"$f":"IF($A55=\"N/A\",Ref!$B$36,INDEX(Ranks!$1:$1048576,$A55,AS$1))","v":""},{"$f":"IF($A55=\"N/A\",Ref!$B$36,INDEX(Ranks!$1:$1048576,$A55,AT$1))","v":""},{"$f":"IF($A55=\"N/A\",Ref!$B$36,INDEX(Ranks!$1:$1048576,$A55,AU$1))","v":""},{"$f":"IF($A55=\"N/A\",Ref!$B$36,INDEX(Ranks!$1:$1048576,$A55,AV$1))","v":""},{"$f":"IF($A55=\"N/A\",Ref!$B$36,INDEX(Ranks!$1:$1048576,$A55,AW$1))","v":""},{"$f":"IF($A55=\"N/A\",Ref!$B$36,INDEX(Ranks!$1:$1048576,$A55,AX$1))","v":""},{"$f":"IF($A55=\"N/A\",Ref!$B$36,INDEX(Ranks!$1:$1048576,$A55,AY$1))","v":""},{"$f":"IF($A55=\"N/A\",Ref!$B$36,INDEX(Ranks!$1:$1048576,$A55,AZ$1))","v":""},{"$f":"IF($A55=\"N/A\",Ref!$B$36,INDEX(Ranks!$1:$1048576,$A55,BA$1))","v":""},{"$f":"IF($A55=\"N/A\",Ref!$B$36,INDEX(Ranks!$1:$1048576,$A55,BB$1))","v":""},{"$f":"IF($A55=\"N/A\",Ref!$B$36,INDEX(Ranks!$1:$1048576,$A55,BC$1))","v":""},{"$f":"IF($A55=\"N/A\",Ref!$B$36,INDEX(Ranks!$1:$1048576,$A55,BD$1))","v":""},{"$f":"IF($A55=\"N/A\",Ref!$B$36,INDEX(Ranks!$1:$1048576,$A55,BE$1))","v":""},{"$f":"IF($A55=\"N/A\",Ref!$B$36,INDEX(Ranks!$1:$1048576,$A55,BF$1))","v":""},{"$f":"IF($A55=\"N/A\",Ref!$B$36,INDEX(Ranks!$1:$1048576,$A55,BG$1))","v":""},{"$f":"IF($A55=\"N/A\",Ref!$B$36,INDEX(Ranks!$1:$1048576,$A55,BH$1))","v":""},{"$f":"IF($A55=\"N/A\",Ref!$B$36,INDEX(Ranks!$1:$1048576,$A55,BI$1))","v":""},{"$f":"IF($A55=\"N/A\",Ref!$B$36,INDEX(Ranks!$1:$1048576,$A55,BJ$1))","v":""},{"$f":"IF($A55=\"N/A\",Ref!$B$36,INDEX(Ranks!$1:$1048576,$A55,BK$1))","v":""},{"$f":"IF($A55=\"N/A\",Ref!$B$36,INDEX(Ranks!$1:$1048576,$A55,BL$1))","v":""},{"$f":"IF($A55=\"N/A\",Ref!$B$36,INDEX(Ranks!$1:$1048576,$A55,BM$1))","v":""},{"$f":"IF($A55=\"N/A\",Ref!$B$36,INDEX(Ranks!$1:$1048576,$A55,BN$1))","v":""},{"$f":"IF($A55=\"N/A\",Ref!$B$36,INDEX(Ranks!$1:$1048576,$A55,BO$1))","v":""},{"$f":"IF($A55=\"N/A\",Ref!$B$36,INDEX(Ranks!$1:$1048576,$A55,BP$1))","v":""},{"$f":"IF($A55=\"N/A\",Ref!$B$36,INDEX(Ranks!$1:$1048576,$A55,BQ$1))","v":""},{"$f":"IF($A55=\"N/A\",Ref!$B$36,INDEX(Ranks!$1:$1048576,$A55,BR$1))","v":""},{"$f":"IF($A55=\"N/A\",Ref!$B$36,INDEX(Ranks!$1:$1048576,$A55,BS$1))","v":""},{"$f":"IF($A55=\"N/A\",Ref!$B$36,INDEX(Ranks!$1:$1048576,$A55,BT$1))","v":""},{"$f":"IF($A55=\"N/A\",Ref!$B$36,INDEX(Ranks!$1:$1048576,$A55,BU$1))","v":""},{"$f":"IF($A55=\"N/A\",Ref!$B$36,INDEX(Ranks!$1:$1048576,$A55,BV$1))","v":""},{"$f":"IF($A55=\"N/A\",Ref!$B$36,INDEX(Ranks!$1:$1048576,$A55,BW$1))","v":""},{"$f":"IF($A55=\"N/A\",Ref!$B$36,INDEX(Ranks!$1:$1048576,$A55,BX$1))","v":""},{"$f":"IF($A55=\"N/A\",Ref!$B$36,INDEX(Ranks!$1:$1048576,$A55,BY$1))","v":""},{"$f":"IF($A55=\"N/A\",Ref!$B$36,INDEX(Ranks!$1:$1048576,$A55,BZ$1))","v":""},{"$f":"IF($A55=\"N/A\",Ref!$B$36,INDEX(Ranks!$1:$1048576,$A55,CA$1))","v":""},{"$f":"IF($A55=\"N/A\",Ref!$B$36,INDEX(Ranks!$1:$1048576,$A55,CB$1))","v":""},{"$f":"IF($A55=\"N/A\",Ref!$B$36,INDEX(Ranks!$1:$1048576,$A55,CC$1))","v":""},{"$f":"IF($A55=\"N/A\",Ref!$B$36,INDEX(Ranks!$1:$1048576,$A55,CD$1))","v":""},{"$f":"IF($A55=\"N/A\",Ref!$B$36,INDEX(Ranks!$1:$1048576,$A55,CE$1))","v":""},{"$f":"IF($A55=\"N/A\",Ref!$B$36,INDEX(Ranks!$1:$1048576,$A55,CF$1))","v":""},{"$f":"IF($A55=\"N/A\",Ref!$B$36,INDEX(Ranks!$1:$1048576,$A55,CG$1))","v":""},{"$f":"IF($A55=\"N/A\",Ref!$B$36,INDEX(Ranks!$1:$1048576,$A55,CH$1))","v":""},{"$f":"IF($A55=\"N/A\",Ref!$B$36,INDEX(Ranks!$1:$1048576,$A55,CI$1))","v":""},{"$f":"IF($A55=\"N/A\",Ref!$B$36,INDEX(Ranks!$1:$1048576,$A55,CJ$1))","v":""},{"$f":"IF($A55=\"N/A\",Ref!$B$36,INDEX(Ranks!$1:$1048576,$A55,CK$1))","v":""},{"$f":"IF($A55=\"N/A\",Ref!$B$36,INDEX(Ranks!$1:$1048576,$A55,CL$1))","v":""},{"$f":"IF($A55=\"N/A\",Ref!$B$36,INDEX(Ranks!$1:$1048576,$A55,CM$1))","v":""},{"$f":"IF($A55=\"N/A\",Ref!$B$36,INDEX(Ranks!$1:$1048576,$A55,CN$1))","v":""},{"$f":"IF($A55=\"N/A\",Ref!$B$36,INDEX(Ranks!$1:$1048576,$A55,CO$1))","v":""},{"$f":"IF($A55=\"N/A\",Ref!$B$36,INDEX(Ranks!$1:$1048576,$A55,CP$1))","v":""},{"$f":"IF($A55=\"N/A\",Ref!$B$36,INDEX(Ranks!$1:$1048576,$A55,CQ$1))","v":""},{"$f":"IF($A55=\"N/A\",Ref!$B$36,INDEX(Ranks!$1:$1048576,$A55,CR$1))","v":""},{"$f":"IF($A55=\"N/A\",Ref!$B$36,INDEX(Ranks!$1:$1048576,$A55,CS$1))","v":""},{"$f":"IF($A55=\"N/A\",Ref!$B$36,INDEX(Ranks!$1:$1048576,$A55,CT$1))","v":""},{"$f":"IF($A55=\"N/A\",Ref!$B$36,INDEX(Ranks!$1:$1048576,$A55,CU$1))","v":""},{"$f":"IF($A55=\"N/A\",Ref!$B$36,INDEX(Ranks!$1:$1048576,$A55,CV$1))","v":""},{"$f":"IF($A55=\"N/A\",Ref!$B$36,INDEX(Ranks!$1:$1048576,$A55,CW$1))","v":""},{"$f":"IF($A55=\"N/A\",Ref!$B$36,INDEX(Ranks!$1:$1048576,$A55,CX$1))","v":""},{"$f":"IF($A55=\"N/A\",Ref!$B$36,INDEX(Ranks!$1:$1048576,$A55,CY$1))","v":""},{"$f":"IF($A55=\"N/A\",Ref!$B$36,INDEX(Ranks!$1:$1048576,$A55,CZ$1))","v":""},{"$f":"IF($A55=\"N/A\",Ref!$B$36,INDEX(Ranks!$1:$1048576,$A55,DA$1))","v":""},{"$f":"IF($A55=\"N/A\",Ref!$B$36,INDEX(Ranks!$1:$1048576,$A55,DB$1))","v":""},{"$f":"IF($A55=\"N/A\",Ref!$B$36,INDEX(Ranks!$1:$1048576,$A55,DC$1))","v":""},{"$f":"IF($A55=\"N/A\",Ref!$B$36,INDEX(Ranks!$1:$1048576,$A55,DD$1))","v":""},{"$f":"IF($A55=\"N/A\",Ref!$B$36,INDEX(Ranks!$1:$1048576,$A55,DE$1))","v":""},{"$f":"IF($A55=\"N/A\",Ref!$B$36,INDEX(Ranks!$1:$1048576,$A55,DF$1))","v":""},{"$f":"IF($A55=\"N/A\",Ref!$B$36,INDEX(Ranks!$1:$1048576,$A55,DG$1))","v":""},{"$f":"IF($A55=\"N/A\",Ref!$B$36,INDEX(Ranks!$1:$1048576,$A55,DH$1))","v":""},{"$f":"IF($A55=\"N/A\",Ref!$B$36,INDEX(Ranks!$1:$1048576,$A55,DI$1))","v":""},{"$f":"IF($A55=\"N/A\",Ref!$B$36,INDEX(Ranks!$1:$1048576,$A55,DJ$1))","v":""},{"$f":"IF($A55=\"N/A\",Ref!$B$36,INDEX(Ranks!$1:$1048576,$A55,DK$1))","v":""},{"$f":"IF($A55=\"N/A\",Ref!$B$36,INDEX(Ranks!$1:$1048576,$A55,DL$1))","v":""},{"$f":"IF($A55=\"N/A\",Ref!$B$36,INDEX(Ranks!$1:$1048576,$A55,DM$1))","v":""},{"$f":"IF($A55=\"N/A\",Ref!$B$36,INDEX(Ranks!$1:$1048576,$A55,DN$1))","v":""},{"$f":"IF($A55=\"N/A\",Ref!$B$36,INDEX(Ranks!$1:$1048576,$A55,DO$1))","v":""},{"$f":"IF($A55=\"N/A\",Ref!$B$36,INDEX(Ranks!$1:$1048576,$A55,DP$1))","v":""},{"$f":"IF($A55=\"N/A\",Ref!$B$36,INDEX(Ranks!$1:$1048576,$A55,DQ$1))","v":""},{"$f":"IF($A55=\"N/A\",Ref!$B$36,INDEX(Ranks!$1:$1048576,$A55,DR$1))","v":""},{"$f":"IF($A55=\"N/A\",Ref!$B$36,INDEX(Ranks!$1:$1048576,$A55,DS$1))","v":""},{"$f":"IF($A55=\"N/A\",Ref!$B$36,INDEX(Ranks!$1:$1048576,$A55,DT$1))","v":""},{"$f":"IF($A55=\"N/A\",Ref!$B$36,INDEX(Ranks!$1:$1048576,$A55,DU$1))","v":""},{"$f":"IF($A55=\"N/A\",Ref!$B$36,INDEX(Ranks!$1:$1048576,$A55,DV$1))","v":""},{"$f":"IF($A55=\"N/A\",Ref!$B$36,INDEX(Ranks!$1:$1048576,$A55,DW$1))","v":""},{"$f":"IF($A55=\"N/A\",Ref!$B$36,INDEX(Ranks!$1:$1048576,$A55,DX$1))","v":""},{"$f":"IF($A55=\"N/A\",Ref!$B$36,INDEX(Ranks!$1:$1048576,$A55,DY$1))","v":""},{"$f":"IF($A55=\"N/A\",Ref!$B$36,INDEX(Ranks!$1:$1048576,$A55,DZ$1))","v":""},{"$f":"IF($A55=\"N/A\",Ref!$B$36,INDEX(Ranks!$1:$1048576,$A55,EA$1))","v":""},{"$f":"IF($A55=\"N/A\",Ref!$B$36,INDEX(Ranks!$1:$1048576,$A55,EB$1))","v":""}]
[{"$f":"IFERROR(MATCH('Portfolio Page'!L56,Ranks!L:L,0),\"N/A\")","v":"N/A"},null,{"$f":"IF($A56=\"N/A\",\"\",INDEX(Ranks!$1:$1048576,$A56,C$1))","v":""},{"$f":"IF($A56=\"N/A\",Ref!$B$36,INDEX(Ranks!$1:$1048576,$A56,D$1))","v":""},{"$f":"IF($A56=\"N/A\",Ref!$B$36,INDEX(Ranks!$1:$1048576,$A56,E$1))","v":""},{"$f":"IF($A56=\"N/A\",\"\",INDEX(Ranks!$1:$1048576,$A56,F$1))","v":""},{"$f":"IF($A56=\"N/A\",\"\",INDEX(Ranks!$1:$1048576,$A56,G$1))","v":""},{"$f":"IF($A56=\"N/A\",\"\",INDEX(Ranks!$1:$1048576,$A56,H$1))","v":""},{"$f":"IF($A56=\"N/A\",\"\",INDEX(Ranks!$1:$1048576,$A56,I$1))","v":""},{"$f":"IF($A56=\"N/A\",\"\",INDEX(Ranks!$1:$1048576,$A56,J$1))","v":""},{"$f":"IF($A56=\"N/A\",\"\",INDEX(Ranks!$1:$1048576,$A56,K$1))","v":""},null,{"$f":"IF($A56=\"N/A\",Ref!$B$36,INDEX(Ranks!$1:$1048576,$A56,M$1))","v":""},{"$f":"IF($A56=\"N/A\",Ref!$B$36,INDEX(Ranks!$1:$1048576,$A56,N$1))","v":""},{"$f":"IF($A56=\"N/A\",Ref!$B$36,INDEX(Ranks!$1:$1048576,$A56,O$1))","v":""},{"$f":"IF($A56=\"N/A\",Ref!$B$36,INDEX(Ranks!$1:$1048576,$A56,P$1))","v":""},{"$f":"IF($A56=\"N/A\",Ref!$B$36,INDEX(Ranks!$1:$1048576,$A56,Q$1))","v":""},{"$f":"IF($A56=\"N/A\",Ref!$B$36,INDEX(Ranks!$1:$1048576,$A56,R$1))","v":""},{"$f":"IF($A56=\"N/A\",Ref!$B$36,INDEX(Ranks!$1:$1048576,$A56,S$1))","v":""},{"$f":"IF($A56=\"N/A\",Ref!$B$36,INDEX(Ranks!$1:$1048576,$A56,T$1))","v":""},{"$f":"IF($A56=\"N/A\",Ref!$B$36,INDEX(Ranks!$1:$1048576,$A56,U$1))","v":""},{"$f":"IF($A56=\"N/A\",Ref!$B$36,INDEX(Ranks!$1:$1048576,$A56,V$1))","v":""},{"$f":"IF($A56=\"N/A\",Ref!$B$36,INDEX(Ranks!$1:$1048576,$A56,W$1))","v":""},{"$f":"IF($A56=\"N/A\",Ref!$B$36,INDEX(Ranks!$1:$1048576,$A56,X$1))","v":""},{"$f":"IF($A56=\"N/A\",Ref!$B$36,INDEX(Ranks!$1:$1048576,$A56,Y$1))","v":""},{"$f":"IF($A56=\"N/A\",Ref!$B$36,INDEX(Ranks!$1:$1048576,$A56,Z$1))","v":""},{"$f":"IF($A56=\"N/A\",Ref!$B$36,INDEX(Ranks!$1:$1048576,$A56,AA$1))","v":""},{"$f":"IF($A56=\"N/A\",Ref!$B$36,INDEX(Ranks!$1:$1048576,$A56,AB$1))","v":""},{"$f":"IF($A56=\"N/A\",Ref!$B$36,INDEX(Ranks!$1:$1048576,$A56,AC$1))","v":""},{"$f":"IF($A56=\"N/A\",Ref!$B$36,INDEX(Ranks!$1:$1048576,$A56,AD$1))","v":""},{"$f":"IF($A56=\"N/A\",Ref!$B$36,INDEX(Ranks!$1:$1048576,$A56,AE$1))","v":""},{"$f":"IF($A56=\"N/A\",Ref!$B$36,INDEX(Ranks!$1:$1048576,$A56,AF$1))","v":""},{"$f":"IF($A56=\"N/A\",Ref!$B$36,INDEX(Ranks!$1:$1048576,$A56,AG$1))","v":""},{"$f":"IF($A56=\"N/A\",Ref!$B$36,INDEX(Ranks!$1:$1048576,$A56,AH$1))","v":""},{"$f":"IF($A56=\"N/A\",Ref!$B$36,INDEX(Ranks!$1:$1048576,$A56,AI$1))","v":""},{"$f":"IF($A56=\"N/A\",Ref!$B$36,INDEX(Ranks!$1:$1048576,$A56,AJ$1))","v":""},{"$f":"IF($A56=\"N/A\",Ref!$B$36,INDEX(Ranks!$1:$1048576,$A56,AK$1))","v":""},{"$f":"IF($A56=\"N/A\",Ref!$B$36,INDEX(Ranks!$1:$1048576,$A56,AL$1))","v":""},{"$f":"IF($A56=\"N/A\",Ref!$B$36,INDEX(Ranks!$1:$1048576,$A56,AM$1))","v":""},{"$f":"IF($A56=\"N/A\",Ref!$B$36,INDEX(Ranks!$1:$1048576,$A56,AN$1))","v":""},{"$f":"IF($A56=\"N/A\",Ref!$B$36,INDEX(Ranks!$1:$1048576,$A56,AO$1))","v":""},{"$f":"IF($A56=\"N/A\",Ref!$B$36,INDEX(Ranks!$1:$1048576,$A56,AP$1))","v":""},{"$f":"IF($A56=\"N/A\",Ref!$B$36,INDEX(Ranks!$1:$1048576,$A56,AQ$1))","v":""},{"$f":"IF($A56=\"N/A\",Ref!$B$36,INDEX(Ranks!$1:$1048576,$A56,AR$1))","v":""},{"$f":"IF($A56=\"N/A\",Ref!$B$36,INDEX(Ranks!$1:$1048576,$A56,AS$1))","v":""},{"$f":"IF($A56=\"N/A\",Ref!$B$36,INDEX(Ranks!$1:$1048576,$A56,AT$1))","v":""},{"$f":"IF($A56=\"N/A\",Ref!$B$36,INDEX(Ranks!$1:$1048576,$A56,AU$1))","v":""},{"$f":"IF($A56=\"N/A\",Ref!$B$36,INDEX(Ranks!$1:$1048576,$A56,AV$1))","v":""},{"$f":"IF($A56=\"N/A\",Ref!$B$36,INDEX(Ranks!$1:$1048576,$A56,AW$1))","v":""},{"$f":"IF($A56=\"N/A\",Ref!$B$36,INDEX(Ranks!$1:$1048576,$A56,AX$1))","v":""},{"$f":"IF($A56=\"N/A\",Ref!$B$36,INDEX(Ranks!$1:$1048576,$A56,AY$1))","v":""},{"$f":"IF($A56=\"N/A\",Ref!$B$36,INDEX(Ranks!$1:$1048576,$A56,AZ$1))","v":""},{"$f":"IF($A56=\"N/A\",Ref!$B$36,INDEX(Ranks!$1:$1048576,$A56,BA$1))","v":""},{"$f":"IF($A56=\"N/A\",Ref!$B$36,INDEX(Ranks!$1:$1048576,$A56,BB$1))","v":""},{"$f":"IF($A56=\"N/A\",Ref!$B$36,INDEX(Ranks!$1:$1048576,$A56,BC$1))","v":""},{"$f":"IF($A56=\"N/A\",Ref!$B$36,INDEX(Ranks!$1:$1048576,$A56,BD$1))","v":""},{"$f":"IF($A56=\"N/A\",Ref!$B$36,INDEX(Ranks!$1:$1048576,$A56,BE$1))","v":""},{"$f":"IF($A56=\"N/A\",Ref!$B$36,INDEX(Ranks!$1:$1048576,$A56,BF$1))","v":""},{"$f":"IF($A56=\"N/A\",Ref!$B$36,INDEX(Ranks!$1:$1048576,$A56,BG$1))","v":""},{"$f":"IF($A56=\"N/A\",Ref!$B$36,INDEX(Ranks!$1:$1048576,$A56,BH$1))","v":""},{"$f":"IF($A56=\"N/A\",Ref!$B$36,INDEX(Ranks!$1:$1048576,$A56,BI$1))","v":""},{"$f":"IF($A56=\"N/A\",Ref!$B$36,INDEX(Ranks!$1:$1048576,$A56,BJ$1))","v":""},{"$f":"IF($A56=\"N/A\",Ref!$B$36,INDEX(Ranks!$1:$1048576,$A56,BK$1))","v":""},{"$f":"IF($A56=\"N/A\",Ref!$B$36,INDEX(Ranks!$1:$1048576,$A56,BL$1))","v":""},{"$f":"IF($A56=\"N/A\",Ref!$B$36,INDEX(Ranks!$1:$1048576,$A56,BM$1))","v":""},{"$f":"IF($A56=\"N/A\",Ref!$B$36,INDEX(Ranks!$1:$1048576,$A56,BN$1))","v":""},{"$f":"IF($A56=\"N/A\",Ref!$B$36,INDEX(Ranks!$1:$1048576,$A56,BO$1))","v":""},{"$f":"IF($A56=\"N/A\",Ref!$B$36,INDEX(Ranks!$1:$1048576,$A56,BP$1))","v":""},{"$f":"IF($A56=\"N/A\",Ref!$B$36,INDEX(Ranks!$1:$1048576,$A56,BQ$1))","v":""},{"$f":"IF($A56=\"N/A\",Ref!$B$36,INDEX(Ranks!$1:$1048576,$A56,BR$1))","v":""},{"$f":"IF($A56=\"N/A\",Ref!$B$36,INDEX(Ranks!$1:$1048576,$A56,BS$1))","v":""},{"$f":"IF($A56=\"N/A\",Ref!$B$36,INDEX(Ranks!$1:$1048576,$A56,BT$1))","v":""},{"$f":"IF($A56=\"N/A\",Ref!$B$36,INDEX(Ranks!$1:$1048576,$A56,BU$1))","v":""},{"$f":"IF($A56=\"N/A\",Ref!$B$36,INDEX(Ranks!$1:$1048576,$A56,BV$1))","v":""},{"$f":"IF($A56=\"N/A\",Ref!$B$36,INDEX(Ranks!$1:$1048576,$A56,BW$1))","v":""},{"$f":"IF($A56=\"N/A\",Ref!$B$36,INDEX(Ranks!$1:$1048576,$A56,BX$1))","v":""},{"$f":"IF($A56=\"N/A\",Ref!$B$36,INDEX(Ranks!$1:$1048576,$A56,BY$1))","v":""},{"$f":"IF($A56=\"N/A\",Ref!$B$36,INDEX(Ranks!$1:$1048576,$A56,BZ$1))","v":""},{"$f":"IF($A56=\"N/A\",Ref!$B$36,INDEX(Ranks!$1:$1048576,$A56,CA$1))","v":""},{"$f":"IF($A56=\"N/A\",Ref!$B$36,INDEX(Ranks!$1:$1048576,$A56,CB$1))","v":""},{"$f":"IF($A56=\"N/A\",Ref!$B$36,INDEX(Ranks!$1:$1048576,$A56,CC$1))","v":""},{"$f":"IF($A56=\"N/A\",Ref!$B$36,INDEX(Ranks!$1:$1048576,$A56,CD$1))","v":""},{"$f":"IF($A56=\"N/A\",Ref!$B$36,INDEX(Ranks!$1:$1048576,$A56,CE$1))","v":""},{"$f":"IF($A56=\"N/A\",Ref!$B$36,INDEX(Ranks!$1:$1048576,$A56,CF$1))","v":""},{"$f":"IF($A56=\"N/A\",Ref!$B$36,INDEX(Ranks!$1:$1048576,$A56,CG$1))","v":""},{"$f":"IF($A56=\"N/A\",Ref!$B$36,INDEX(Ranks!$1:$1048576,$A56,CH$1))","v":""},{"$f":"IF($A56=\"N/A\",Ref!$B$36,INDEX(Ranks!$1:$1048576,$A56,CI$1))","v":""},{"$f":"IF($A56=\"N/A\",Ref!$B$36,INDEX(Ranks!$1:$1048576,$A56,CJ$1))","v":""},{"$f":"IF($A56=\"N/A\",Ref!$B$36,INDEX(Ranks!$1:$1048576,$A56,CK$1))","v":""},{"$f":"IF($A56=\"N/A\",Ref!$B$36,INDEX(Ranks!$1:$1048576,$A56,CL$1))","v":""},{"$f":"IF($A56=\"N/A\",Ref!$B$36,INDEX(Ranks!$1:$1048576,$A56,CM$1))","v":""},{"$f":"IF($A56=\"N/A\",Ref!$B$36,INDEX(Ranks!$1:$1048576,$A56,CN$1))","v":""},{"$f":"IF($A56=\"N/A\",Ref!$B$36,INDEX(Ranks!$1:$1048576,$A56,CO$1))","v":""},{"$f":"IF($A56=\"N/A\",Ref!$B$36,INDEX(Ranks!$1:$1048576,$A56,CP$1))","v":""},{"$f":"IF($A56=\"N/A\",Ref!$B$36,INDEX(Ranks!$1:$1048576,$A56,CQ$1))","v":""},{"$f":"IF($A56=\"N/A\",Ref!$B$36,INDEX(Ranks!$1:$1048576,$A56,CR$1))","v":""},{"$f":"IF($A56=\"N/A\",Ref!$B$36,INDEX(Ranks!$1:$1048576,$A56,CS$1))","v":""},{"$f":"IF($A56=\"N/A\",Ref!$B$36,INDEX(Ranks!$1:$1048576,$A56,CT$1))","v":""},{"$f":"IF($A56=\"N/A\",Ref!$B$36,INDEX(Ranks!$1:$1048576,$A56,CU$1))","v":""},{"$f":"IF($A56=\"N/A\",Ref!$B$36,INDEX(Ranks!$1:$1048576,$A56,CV$1))","v":""},{"$f":"IF($A56=\"N/A\",Ref!$B$36,INDEX(Ranks!$1:$1048576,$A56,CW$1))","v":""},{"$f":"IF($A56=\"N/A\",Ref!$B$36,INDEX(Ranks!$1:$1048576,$A56,CX$1))","v":""},{"$f":"IF($A56=\"N/A\",Ref!$B$36,INDEX(Ranks!$1:$1048576,$A56,CY$1))","v":""},{"$f":"IF($A56=\"N/A\",Ref!$B$36,INDEX(Ranks!$1:$1048576,$A56,CZ$1))","v":""},{"$f":"IF($A56=\"N/A\",Ref!$B$36,INDEX(Ranks!$1:$1048576,$A56,DA$1))","v":""},{"$f":"IF($A56=\"N/A\",Ref!$B$36,INDEX(Ranks!$1:$1048576,$A56,DB$1))","v":""},{"$f":"IF($A56=\"N/A\",Ref!$B$36,INDEX(Ranks!$1:$1048576,$A56,DC$1))","v":""},{"$f":"IF($A56=\"N/A\",Ref!$B$36,INDEX(Ranks!$1:$1048576,$A56,DD$1))","v":""},{"$f":"IF($A56=\"N/A\",Ref!$B$36,INDEX(Ranks!$1:$1048576,$A56,DE$1))","v":""},{"$f":"IF($A56=\"N/A\",Ref!$B$36,INDEX(Ranks!$1:$1048576,$A56,DF$1))","v":""},{"$f":"IF($A56=\"N/A\",Ref!$B$36,INDEX(Ranks!$1:$1048576,$A56,DG$1))","v":""},{"$f":"IF($A56=\"N/A\",Ref!$B$36,INDEX(Ranks!$1:$1048576,$A56,DH$1))","v":""},{"$f":"IF($A56=\"N/A\",Ref!$B$36,INDEX(Ranks!$1:$1048576,$A56,DI$1))","v":""},{"$f":"IF($A56=\"N/A\",Ref!$B$36,INDEX(Ranks!$1:$1048576,$A56,DJ$1))","v":""},{"$f":"IF($A56=\"N/A\",Ref!$B$36,INDEX(Ranks!$1:$1048576,$A56,DK$1))","v":""},{"$f":"IF($A56=\"N/A\",Ref!$B$36,INDEX(Ranks!$1:$1048576,$A56,DL$1))","v":""},{"$f":"IF($A56=\"N/A\",Ref!$B$36,INDEX(Ranks!$1:$1048576,$A56,DM$1))","v":""},{"$f":"IF($A56=\"N/A\",Ref!$B$36,INDEX(Ranks!$1:$1048576,$A56,DN$1))","v":""},{"$f":"IF($A56=\"N/A\",Ref!$B$36,INDEX(Ranks!$1:$1048576,$A56,DO$1))","v":""},{"$f":"IF($A56=\"N/A\",Ref!$B$36,INDEX(Ranks!$1:$1048576,$A56,DP$1))","v":""},{"$f":"IF($A56=\"N/A\",Ref!$B$36,INDEX(Ranks!$1:$1048576,$A56,DQ$1))","v":""},{"$f":"IF($A56=\"N/A\",Ref!$B$36,INDEX(Ranks!$1:$1048576,$A56,DR$1))","v":""},{"$f":"IF($A56=\"N/A\",Ref!$B$36,INDEX(Ranks!$1:$1048576,$A56,DS$1))","v":""},{"$f":"IF($A56=\"N/A\",Ref!$B$36,INDEX(Ranks!$1:$1048576,$A56,DT$1))","v":""},{"$f":"IF($A56=\"N/A\",Ref!$B$36,INDEX(Ranks!$1:$1048576,$A56,DU$1))","v":""},{"$f":"IF($A56=\"N/A\",Ref!$B$36,INDEX(Ranks!$1:$1048576,$A56,DV$1))","v":""},{"$f":"IF($A56=\"N/A\",Ref!$B$36,INDEX(Ranks!$1:$1048576,$A56,DW$1))","v":""},{"$f":"IF($A56=\"N/A\",Ref!$B$36,INDEX(Ranks!$1:$1048576,$A56,DX$1))","v":""},{"$f":"IF($A56=\"N/A\",Ref!$B$36,INDEX(Ranks!$1:$1048576,$A56,DY$1))","v":""},{"$f":"IF($A56=\"N/A\",Ref!$B$36,INDEX(Ranks!$1:$1048576,$A56,DZ$1))","v":""},{"$f":"IF($A56=\"N/A\",Ref!$B$36,INDEX(Ranks!$1:$1048576,$A56,EA$1))","v":""},{"$f":"IF($A56=\"N/A\",Ref!$B$36,INDEX(Ranks!$1:$1048576,$A56,EB$1))","v":""}]
[{"$f":"IFERROR(MATCH('Portfolio Page'!L57,Ranks!L:L,0),\"N/A\")","v":"N/A"},null,{"$f":"IF($A57=\"N/A\",\"\",INDEX(Ranks!$1:$1048576,$A57,C$1))","v":""},{"$f":"IF($A57=\"N/A\",Ref!$B$36,INDEX(Ranks!$1:$1048576,$A57,D$1))","v":""},{"$f":"IF($A57=\"N/A\",Ref!$B$36,INDEX(Ranks!$1:$1048576,$A57,E$1))","v":""},{"$f":"IF($A57=\"N/A\",\"\",INDEX(Ranks!$1:$1048576,$A57,F$1))","v":""},{"$f":"IF($A57=\"N/A\",\"\",INDEX(Ranks!$1:$1048576,$A57,G$1))","v":""},{"$f":"IF($A57=\"N/A\",\"\",INDEX(Ranks!$1:$1048576,$A57,H$1))","v":""},{"$f":"IF($A57=\"N/A\",\"\",INDEX(Ranks!$1:$1048576,$A57,I$1))","v":""},{"$f":"IF($A57=\"N/A\",\"\",INDEX(Ranks!$1:$1048576,$A57,J$1))","v":""},{"$f":"IF($A57=\"N/A\",\"\",INDEX(Ranks!$1:$1048576,$A57,K$1))","v":""},null,{"$f":"IF($A57=\"N/A\",Ref!$B$36,INDEX(Ranks!$1:$1048576,$A57,M$1))","v":""},{"$f":"IF($A57=\"N/A\",Ref!$B$36,INDEX(Ranks!$1:$1048576,$A57,N$1))","v":""},{"$f":"IF($A57=\"N/A\",Ref!$B$36,INDEX(Ranks!$1:$1048576,$A57,O$1))","v":""},{"$f":"IF($A57=\"N/A\",Ref!$B$36,INDEX(Ranks!$1:$1048576,$A57,P$1))","v":""},{"$f":"IF($A57=\"N/A\",Ref!$B$36,INDEX(Ranks!$1:$1048576,$A57,Q$1))","v":""},{"$f":"IF($A57=\"N/A\",Ref!$B$36,INDEX(Ranks!$1:$1048576,$A57,R$1))","v":""},{"$f":"IF($A57=\"N/A\",Ref!$B$36,INDEX(Ranks!$1:$1048576,$A57,S$1))","v":""},{"$f":"IF($A57=\"N/A\",Ref!$B$36,INDEX(Ranks!$1:$1048576,$A57,T$1))","v":""},{"$f":"IF($A57=\"N/A\",Ref!$B$36,INDEX(Ranks!$1:$1048576,$A57,U$1))","v":""},{"$f":"IF($A57=\"N/A\",Ref!$B$36,INDEX(Ranks!$1:$1048576,$A57,V$1))","v":""},{"$f":"IF($A57=\"N/A\",Ref!$B$36,INDEX(Ranks!$1:$1048576,$A57,W$1))","v":""},{"$f":"IF($A57=\"N/A\",Ref!$B$36,INDEX(Ranks!$1:$1048576,$A57,X$1))","v":""},{"$f":"IF($A57=\"N/A\",Ref!$B$36,INDEX(Ranks!$1:$1048576,$A57,Y$1))","v":""},{"$f":"IF($A57=\"N/A\",Ref!$B$36,INDEX(Ranks!$1:$1048576,$A57,Z$1))","v":""},{"$f":"IF($A57=\"N/A\",Ref!$B$36,INDEX(Ranks!$1:$1048576,$A57,AA$1))","v":""},{"$f":"IF($A57=\"N/A\",Ref!$B$36,INDEX(Ranks!$1:$1048576,$A57,AB$1))","v":""},{"$f":"IF($A57=\"N/A\",Ref!$B$36,INDEX(Ranks!$1:$1048576,$A57,AC$1))","v":""},{"$f":"IF($A57=\"N/A\",Ref!$B$36,INDEX(Ranks!$1:$1048576,$A57,AD$1))","v":""},{"$f":"IF($A57=\"N/A\",Ref!$B$36,INDEX(Ranks!$1:$1048576,$A57,AE$1))","v":""},{"$f":"IF($A57=\"N/A\",Ref!$B$36,INDEX(Ranks!$1:$1048576,$A57,AF$1))","v":""},{"$f":"IF($A57=\"N/A\",Ref!$B$36,INDEX(Ranks!$1:$1048576,$A57,AG$1))","v":""},{"$f":"IF($A57=\"N/A\",Ref!$B$36,INDEX(Ranks!$1:$1048576,$A57,AH$1))","v":""},{"$f":"IF($A57=\"N/A\",Ref!$B$36,INDEX(Ranks!$1:$1048576,$A57,AI$1))","v":""},{"$f":"IF($A57=\"N/A\",Ref!$B$36,INDEX(Ranks!$1:$1048576,$A57,AJ$1))","v":""},{"$f":"IF($A57=\"N/A\",Ref!$B$36,INDEX(Ranks!$1:$1048576,$A57,AK$1))","v":""},{"$f":"IF($A57=\"N/A\",Ref!$B$36,INDEX(Ranks!$1:$1048576,$A57,AL$1))","v":""},{"$f":"IF($A57=\"N/A\",Ref!$B$36,INDEX(Ranks!$1:$1048576,$A57,AM$1))","v":""},{"$f":"IF($A57=\"N/A\",Ref!$B$36,INDEX(Ranks!$1:$1048576,$A57,AN$1))","v":""},{"$f":"IF($A57=\"N/A\",Ref!$B$36,INDEX(Ranks!$1:$1048576,$A57,AO$1))","v":""},{"$f":"IF($A57=\"N/A\",Ref!$B$36,INDEX(Ranks!$1:$1048576,$A57,AP$1))","v":""},{"$f":"IF($A57=\"N/A\",Ref!$B$36,INDEX(Ranks!$1:$1048576,$A57,AQ$1))","v":""},{"$f":"IF($A57=\"N/A\",Ref!$B$36,INDEX(Ranks!$1:$1048576,$A57,AR$1))","v":""},{"$f":"IF($A57=\"N/A\",Ref!$B$36,INDEX(Ranks!$1:$1048576,$A57,AS$1))","v":""},{"$f":"IF($A57=\"N/A\",Ref!$B$36,INDEX(Ranks!$1:$1048576,$A57,AT$1))","v":""},{"$f":"IF($A57=\"N/A\",Ref!$B$36,INDEX(Ranks!$1:$1048576,$A57,AU$1))","v":""},{"$f":"IF($A57=\"N/A\",Ref!$B$36,INDEX(Ranks!$1:$1048576,$A57,AV$1))","v":""},{"$f":"IF($A57=\"N/A\",Ref!$B$36,INDEX(Ranks!$1:$1048576,$A57,AW$1))","v":""},{"$f":"IF($A57=\"N/A\",Ref!$B$36,INDEX(Ranks!$1:$1048576,$A57,AX$1))","v":""},{"$f":"IF($A57=\"N/A\",Ref!$B$36,INDEX(Ranks!$1:$1048576,$A57,AY$1))","v":""},{"$f":"IF($A57=\"N/A\",Ref!$B$36,INDEX(Ranks!$1:$1048576,$A57,AZ$1))","v":""},{"$f":"IF($A57=\"N/A\",Ref!$B$36,INDEX(Ranks!$1:$1048576,$A57,BA$1))","v":""},{"$f":"IF($A57=\"N/A\",Ref!$B$36,INDEX(Ranks!$1:$1048576,$A57,BB$1))","v":""},{"$f":"IF($A57=\"N/A\",Ref!$B$36,INDEX(Ranks!$1:$1048576,$A57,BC$1))","v":""},{"$f":"IF($A57=\"N/A\",Ref!$B$36,INDEX(Ranks!$1:$1048576,$A57,BD$1))","v":""},{"$f":"IF($A57=\"N/A\",Ref!$B$36,INDEX(Ranks!$1:$1048576,$A57,BE$1))","v":""},{"$f":"IF($A57=\"N/A\",Ref!$B$36,INDEX(Ranks!$1:$1048576,$A57,BF$1))","v":""},{"$f":"IF($A57=\"N/A\",Ref!$B$36,INDEX(Ranks!$1:$1048576,$A57,BG$1))","v":""},{"$f":"IF($A57=\"N/A\",Ref!$B$36,INDEX(Ranks!$1:$1048576,$A57,BH$1))","v":""},{"$f":"IF($A57=\"N/A\",Ref!$B$36,INDEX(Ranks!$1:$1048576,$A57,BI$1))","v":""},{"$f":"IF($A57=\"N/A\",Ref!$B$36,INDEX(Ranks!$1:$1048576,$A57,BJ$1))","v":""},{"$f":"IF($A57=\"N/A\",Ref!$B$36,INDEX(Ranks!$1:$1048576,$A57,BK$1))","v":""},{"$f":"IF($A57=\"N/A\",Ref!$B$36,INDEX(Ranks!$1:$1048576,$A57,BL$1))","v":""},{"$f":"IF($A57=\"N/A\",Ref!$B$36,INDEX(Ranks!$1:$1048576,$A57,BM$1))","v":""},{"$f":"IF($A57=\"N/A\",Ref!$B$36,INDEX(Ranks!$1:$1048576,$A57,BN$1))","v":""},{"$f":"IF($A57=\"N/A\",Ref!$B$36,INDEX(Ranks!$1:$1048576,$A57,BO$1))","v":""},{"$f":"IF($A57=\"N/A\",Ref!$B$36,INDEX(Ranks!$1:$1048576,$A57,BP$1))","v":""},{"$f":"IF($A57=\"N/A\",Ref!$B$36,INDEX(Ranks!$1:$1048576,$A57,BQ$1))","v":""},{"$f":"IF($A57=\"N/A\",Ref!$B$36,INDEX(Ranks!$1:$1048576,$A57,BR$1))","v":""},{"$f":"IF($A57=\"N/A\",Ref!$B$36,INDEX(Ranks!$1:$1048576,$A57,BS$1))","v":""},{"$f":"IF($A57=\"N/A\",Ref!$B$36,INDEX(Ranks!$1:$1048576,$A57,BT$1))","v":""},{"$f":"IF($A57=\"N/A\",Ref!$B$36,INDEX(Ranks!$1:$1048576,$A57,BU$1))","v":""},{"$f":"IF($A57=\"N/A\",Ref!$B$36,INDEX(Ranks!$1:$1048576,$A57,BV$1))","v":""},{"$f":"IF($A57=\"N/A\",Ref!$B$36,INDEX(Ranks!$1:$1048576,$A57,BW$1))","v":""},{"$f":"IF($A57=\"N/A\",Ref!$B$36,INDEX(Ranks!$1:$1048576,$A57,BX$1))","v":""},{"$f":"IF($A57=\"N/A\",Ref!$B$36,INDEX(Ranks!$1:$1048576,$A57,BY$1))","v":""},{"$f":"IF($A57=\"N/A\",Ref!$B$36,INDEX(Ranks!$1:$1048576,$A57,BZ$1))","v":""},{"$f":"IF($A57=\"N/A\",Ref!$B$36,INDEX(Ranks!$1:$1048576,$A57,CA$1))","v":""},{"$f":"IF($A57=\"N/A\",Ref!$B$36,INDEX(Ranks!$1:$1048576,$A57,CB$1))","v":""},{"$f":"IF($A57=\"N/A\",Ref!$B$36,INDEX(Ranks!$1:$1048576,$A57,CC$1))","v":""},{"$f":"IF($A57=\"N/A\",Ref!$B$36,INDEX(Ranks!$1:$1048576,$A57,CD$1))","v":""},{"$f":"IF($A57=\"N/A\",Ref!$B$36,INDEX(Ranks!$1:$1048576,$A57,CE$1))","v":""},{"$f":"IF($A57=\"N/A\",Ref!$B$36,INDEX(Ranks!$1:$1048576,$A57,CF$1))","v":""},{"$f":"IF($A57=\"N/A\",Ref!$B$36,INDEX(Ranks!$1:$1048576,$A57,CG$1))","v":""},{"$f":"IF($A57=\"N/A\",Ref!$B$36,INDEX(Ranks!$1:$1048576,$A57,CH$1))","v":""},{"$f":"IF($A57=\"N/A\",Ref!$B$36,INDEX(Ranks!$1:$1048576,$A57,CI$1))","v":""},{"$f":"IF($A57=\"N/A\",Ref!$B$36,INDEX(Ranks!$1:$1048576,$A57,CJ$1))","v":""},{"$f":"IF($A57=\"N/A\",Ref!$B$36,INDEX(Ranks!$1:$1048576,$A57,CK$1))","v":""},{"$f":"IF($A57=\"N/A\",Ref!$B$36,INDEX(Ranks!$1:$1048576,$A57,CL$1))","v":""},{"$f":"IF($A57=\"N/A\",Ref!$B$36,INDEX(Ranks!$1:$1048576,$A57,CM$1))","v":""},{"$f":"IF($A57=\"N/A\",Ref!$B$36,INDEX(Ranks!$1:$1048576,$A57,CN$1))","v":""},{"$f":"IF($A57=\"N/A\",Ref!$B$36,INDEX(Ranks!$1:$1048576,$A57,CO$1))","v":""},{"$f":"IF($A57=\"N/A\",Ref!$B$36,INDEX(Ranks!$1:$1048576,$A57,CP$1))","v":""},{"$f":"IF($A57=\"N/A\",Ref!$B$36,INDEX(Ranks!$1:$1048576,$A57,CQ$1))","v":""},{"$f":"IF($A57=\"N/A\",Ref!$B$36,INDEX(Ranks!$1:$1048576,$A57,CR$1))","v":""},{"$f":"IF($A57=\"N/A\",Ref!$B$36,INDEX(Ranks!$1:$1048576,$A57,CS$1))","v":""},{"$f":"IF($A57=\"N/A\",Ref!$B$36,INDEX(Ranks!$1:$1048576,$A57,CT$1))","v":""},{"$f":"IF($A57=\"N/A\",Ref!$B$36,INDEX(Ranks!$1:$1048576,$A57,CU$1))","v":""},{"$f":"IF($A57=\"N/A\",Ref!$B$36,INDEX(Ranks!$1:$1048576,$A57,CV$1))","v":""},{"$f":"IF($A57=\"N/A\",Ref!$B$36,INDEX(Ranks!$1:$1048576,$A57,CW$1))","v":""},{"$f":"IF($A57=\"N/A\",Ref!$B$36,INDEX(Ranks!$1:$1048576,$A57,CX$1))","v":""},{"$f":"IF($A57=\"N/A\",Ref!$B$36,INDEX(Ranks!$1:$1048576,$A57,CY$1))","v":""},{"$f":"IF($A57=\"N/A\",Ref!$B$36,INDEX(Ranks!$1:$1048576,$A57,CZ$1))","v":""},{"$f":"IF($A57=\"N/A\",Ref!$B$36,INDEX(Ranks!$1:$1048576,$A57,DA$1))","v":""},{"$f":"IF($A57=\"N/A\",Ref!$B$36,INDEX(Ranks!$1:$1048576,$A57,DB$1))","v":""},{"$f":"IF($A57=\"N/A\",Ref!$B$36,INDEX(Ranks!$1:$1048576,$A57,DC$1))","v":""},{"$f":"IF($A57=\"N/A\",Ref!$B$36,INDEX(Ranks!$1:$1048576,$A57,DD$1))","v":""},{"$f":"IF($A57=\"N/A\",Ref!$B$36,INDEX(Ranks!$1:$1048576,$A57,DE$1))","v":""},{"$f":"IF($A57=\"N/A\",Ref!$B$36,INDEX(Ranks!$1:$1048576,$A57,DF$1))","v":""},{"$f":"IF($A57=\"N/A\",Ref!$B$36,INDEX(Ranks!$1:$1048576,$A57,DG$1))","v":""},{"$f":"IF($A57=\"N/A\",Ref!$B$36,INDEX(Ranks!$1:$1048576,$A57,DH$1))","v":""},{"$f":"IF($A57=\"N/A\",Ref!$B$36,INDEX(Ranks!$1:$1048576,$A57,DI$1))","v":""},{"$f":"IF($A57=\"N/A\",Ref!$B$36,INDEX(Ranks!$1:$1048576,$A57,DJ$1))","v":""},{"$f":"IF($A57=\"N/A\",Ref!$B$36,INDEX(Ranks!$1:$1048576,$A57,DK$1))","v":""},{"$f":"IF($A57=\"N/A\",Ref!$B$36,INDEX(Ranks!$1:$1048576,$A57,DL$1))","v":""},{"$f":"IF($A57=\"N/A\",Ref!$B$36,INDEX(Ranks!$1:$1048576,$A57,DM$1))","v":""},{"$f":"IF($A57=\"N/A\",Ref!$B$36,INDEX(Ranks!$1:$1048576,$A57,DN$1))","v":""},{"$f":"IF($A57=\"N/A\",Ref!$B$36,INDEX(Ranks!$1:$1048576,$A57,DO$1))","v":""},{"$f":"IF($A57=\"N/A\",Ref!$B$36,INDEX(Ranks!$1:$1048576,$A57,DP$1))","v":""},{"$f":"IF($A57=\"N/A\",Ref!$B$36,INDEX(Ranks!$1:$1048576,$A57,DQ$1))","v":""},{"$f":"IF($A57=\"N/A\",Ref!$B$36,INDEX(Ranks!$1:$1048576,$A57,DR$1))","v":""},{"$f":"IF($A57=\"N/A\",Ref!$B$36,INDEX(Ranks!$1:$1048576,$A57,DS$1))","v":""},{"$f":"IF($A57=\"N/A\",Ref!$B$36,INDEX(Ranks!$1:$1048576,$A57,DT$1))","v":""},{"$f":"IF($A57=\"N/A\",Ref!$B$36,INDEX(Ranks!$1:$1048576,$A57,DU$1))","v":""},{"$f":"IF($A57=\"N/A\",Ref!$B$36,INDEX(Ranks!$1:$1048576,$A57,DV$1))","v":""},{"$f":"IF($A57=\"N/A\",Ref!$B$36,INDEX(Ranks!$1:$1048576,$A57,DW$1))","v":""},{"$f":"IF($A57=\"N/A\",Ref!$B$36,INDEX(Ranks!$1:$1048576,$A57,DX$1))","v":""},{"$f":"IF($A57=\"N/A\",Ref!$B$36,INDEX(Ranks!$1:$1048576,$A57,DY$1))","v":""},{"$f":"IF($A57=\"N/A\",Ref!$B$36,INDEX(Ranks!$1:$1048576,$A57,DZ$1))","v":""},{"$f":"IF($A57=\"N/A\",Ref!$B$36,INDEX(Ranks!$1:$1048576,$A57,EA$1))","v":""},{"$f":"IF($A57=\"N/A\",Ref!$B$36,INDEX(Ranks!$1:$1048576,$A57,EB$1))","v":""}]
[{"$f":"IFERROR(MATCH('Portfolio Page'!L58,Ranks!L:L,0),\"N/A\")","v":"N/A"},null,{"$f":"IF($A58=\"N/A\",\"\",INDEX(Ranks!$1:$1048576,$A58,C$1))","v":""},{"$f":"IF($A58=\"N/A\",Ref!$B$36,INDEX(Ranks!$1:$1048576,$A58,D$1))","v":""},{"$f":"IF($A58=\"N/A\",Ref!$B$36,INDEX(Ranks!$1:$1048576,$A58,E$1))","v":""},{"$f":"IF($A58=\"N/A\",\"\",INDEX(Ranks!$1:$1048576,$A58,F$1))","v":""},{"$f":"IF($A58=\"N/A\",\"\",INDEX(Ranks!$1:$1048576,$A58,G$1))","v":""},{"$f":"IF($A58=\"N/A\",\"\",INDEX(Ranks!$1:$1048576,$A58,H$1))","v":""},{"$f":"IF($A58=\"N/A\",\"\",INDEX(Ranks!$1:$1048576,$A58,I$1))","v":""},{"$f":"IF($A58=\"N/A\",\"\",INDEX(Ranks!$1:$1048576,$A58,J$1))","v":""},{"$f":"IF($A58=\"N/A\",\"\",INDEX(Ranks!$1:$1048576,$A58,K$1))","v":""},null,{"$f":"IF($A58=\"N/A\",Ref!$B$36,INDEX(Ranks!$1:$1048576,$A58,M$1))","v":""},{"$f":"IF($A58=\"N/A\",Ref!$B$36,INDEX(Ranks!$1:$1048576,$A58,N$1))","v":""},{"$f":"IF($A58=\"N/A\",Ref!$B$36,INDEX(Ranks!$1:$1048576,$A58,O$1))","v":""},{"$f":"IF($A58=\"N/A\",Ref!$B$36,INDEX(Ranks!$1:$1048576,$A58,P$1))","v":""},{"$f":"IF($A58=\"N/A\",Ref!$B$36,INDEX(Ranks!$1:$1048576,$A58,Q$1))","v":""},{"$f":"IF($A58=\"N/A\",Ref!$B$36,INDEX(Ranks!$1:$1048576,$A58,R$1))","v":""},{"$f":"IF($A58=\"N/A\",Ref!$B$36,INDEX(Ranks!$1:$1048576,$A58,S$1))","v":""},{"$f":"IF($A58=\"N/A\",Ref!$B$36,INDEX(Ranks!$1:$1048576,$A58,T$1))","v":""},{"$f":"IF($A58=\"N/A\",Ref!$B$36,INDEX(Ranks!$1:$1048576,$A58,U$1))","v":""},{"$f":"IF($A58=\"N/A\",Ref!$B$36,INDEX(Ranks!$1:$1048576,$A58,V$1))","v":""},{"$f":"IF($A58=\"N/A\",Ref!$B$36,INDEX(Ranks!$1:$1048576,$A58,W$1))","v":""},{"$f":"IF($A58=\"N/A\",Ref!$B$36,INDEX(Ranks!$1:$1048576,$A58,X$1))","v":""},{"$f":"IF($A58=\"N/A\",Ref!$B$36,INDEX(Ranks!$1:$1048576,$A58,Y$1))","v":""},{"$f":"IF($A58=\"N/A\",Ref!$B$36,INDEX(Ranks!$1:$1048576,$A58,Z$1))","v":""},{"$f":"IF($A58=\"N/A\",Ref!$B$36,INDEX(Ranks!$1:$1048576,$A58,AA$1))","v":""},{"$f":"IF($A58=\"N/A\",Ref!$B$36,INDEX(Ranks!$1:$1048576,$A58,AB$1))","v":""},{"$f":"IF($A58=\"N/A\",Ref!$B$36,INDEX(Ranks!$1:$1048576,$A58,AC$1))","v":""},{"$f":"IF($A58=\"N/A\",Ref!$B$36,INDEX(Ranks!$1:$1048576,$A58,AD$1))","v":""},{"$f":"IF($A58=\"N/A\",Ref!$B$36,INDEX(Ranks!$1:$1048576,$A58,AE$1))","v":""},{"$f":"IF($A58=\"N/A\",Ref!$B$36,INDEX(Ranks!$1:$1048576,$A58,AF$1))","v":""},{"$f":"IF($A58=\"N/A\",Ref!$B$36,INDEX(Ranks!$1:$1048576,$A58,AG$1))","v":""},{"$f":"IF($A58=\"N/A\",Ref!$B$36,INDEX(Ranks!$1:$1048576,$A58,AH$1))","v":""},{"$f":"IF($A58=\"N/A\",Ref!$B$36,INDEX(Ranks!$1:$1048576,$A58,AI$1))","v":""},{"$f":"IF($A58=\"N/A\",Ref!$B$36,INDEX(Ranks!$1:$1048576,$A58,AJ$1))","v":""},{"$f":"IF($A58=\"N/A\",Ref!$B$36,INDEX(Ranks!$1:$1048576,$A58,AK$1))","v":""},{"$f":"IF($A58=\"N/A\",Ref!$B$36,INDEX(Ranks!$1:$1048576,$A58,AL$1))","v":""},{"$f":"IF($A58=\"N/A\",Ref!$B$36,INDEX(Ranks!$1:$1048576,$A58,AM$1))","v":""},{"$f":"IF($A58=\"N/A\",Ref!$B$36,INDEX(Ranks!$1:$1048576,$A58,AN$1))","v":""},{"$f":"IF($A58=\"N/A\",Ref!$B$36,INDEX(Ranks!$1:$1048576,$A58,AO$1))","v":""},{"$f":"IF($A58=\"N/A\",Ref!$B$36,INDEX(Ranks!$1:$1048576,$A58,AP$1))","v":""},{"$f":"IF($A58=\"N/A\",Ref!$B$36,INDEX(Ranks!$1:$1048576,$A58,AQ$1))","v":""},{"$f":"IF($A58=\"N/A\",Ref!$B$36,INDEX(Ranks!$1:$1048576,$A58,AR$1))","v":""},{"$f":"IF($A58=\"N/A\",Ref!$B$36,INDEX(Ranks!$1:$1048576,$A58,AS$1))","v":""},{"$f":"IF($A58=\"N/A\",Ref!$B$36,INDEX(Ranks!$1:$1048576,$A58,AT$1))","v":""},{"$f":"IF($A58=\"N/A\",Ref!$B$36,INDEX(Ranks!$1:$1048576,$A58,AU$1))","v":""},{"$f":"IF($A58=\"N/A\",Ref!$B$36,INDEX(Ranks!$1:$1048576,$A58,AV$1))","v":""},{"$f":"IF($A58=\"N/A\",Ref!$B$36,INDEX(Ranks!$1:$1048576,$A58,AW$1))","v":""},{"$f":"IF($A58=\"N/A\",Ref!$B$36,INDEX(Ranks!$1:$1048576,$A58,AX$1))","v":""},{"$f":"IF($A58=\"N/A\",Ref!$B$36,INDEX(Ranks!$1:$1048576,$A58,AY$1))","v":""},{"$f":"IF($A58=\"N/A\",Ref!$B$36,INDEX(Ranks!$1:$1048576,$A58,AZ$1))","v":""},{"$f":"IF($A58=\"N/A\",Ref!$B$36,INDEX(Ranks!$1:$1048576,$A58,BA$1))","v":""},{"$f":"IF($A58=\"N/A\",Ref!$B$36,INDEX(Ranks!$1:$1048576,$A58,BB$1))","v":""},{"$f":"IF($A58=\"N/A\",Ref!$B$36,INDEX(Ranks!$1:$1048576,$A58,BC$1))","v":""},{"$f":"IF($A58=\"N/A\",Ref!$B$36,INDEX(Ranks!$1:$1048576,$A58,BD$1))","v":""},{"$f":"IF($A58=\"N/A\",Ref!$B$36,INDEX(Ranks!$1:$1048576,$A58,BE$1))","v":""},{"$f":"IF($A58=\"N/A\",Ref!$B$36,INDEX(Ranks!$1:$1048576,$A58,BF$1))","v":""},{"$f":"IF($A58=\"N/A\",Ref!$B$36,INDEX(Ranks!$1:$1048576,$A58,BG$1))","v":""},{"$f":"IF($A58=\"N/A\",Ref!$B$36,INDEX(Ranks!$1:$1048576,$A58,BH$1))","v":""},{"$f":"IF($A58=\"N/A\",Ref!$B$36,INDEX(Ranks!$1:$1048576,$A58,BI$1))","v":""},{"$f":"IF($A58=\"N/A\",Ref!$B$36,INDEX(Ranks!$1:$1048576,$A58,BJ$1))","v":""},{"$f":"IF($A58=\"N/A\",Ref!$B$36,INDEX(Ranks!$1:$1048576,$A58,BK$1))","v":""},{"$f":"IF($A58=\"N/A\",Ref!$B$36,INDEX(Ranks!$1:$1048576,$A58,BL$1))","v":""},{"$f":"IF($A58=\"N/A\",Ref!$B$36,INDEX(Ranks!$1:$1048576,$A58,BM$1))","v":""},{"$f":"IF($A58=\"N/A\",Ref!$B$36,INDEX(Ranks!$1:$1048576,$A58,BN$1))","v":""},{"$f":"IF($A58=\"N/A\",Ref!$B$36,INDEX(Ranks!$1:$1048576,$A58,BO$1))","v":""},{"$f":"IF($A58=\"N/A\",Ref!$B$36,INDEX(Ranks!$1:$1048576,$A58,BP$1))","v":""},{"$f":"IF($A58=\"N/A\",Ref!$B$36,INDEX(Ranks!$1:$1048576,$A58,BQ$1))","v":""},{"$f":"IF($A58=\"N/A\",Ref!$B$36,INDEX(Ranks!$1:$1048576,$A58,BR$1))","v":""},{"$f":"IF($A58=\"N/A\",Ref!$B$36,INDEX(Ranks!$1:$1048576,$A58,BS$1))","v":""},{"$f":"IF($A58=\"N/A\",Ref!$B$36,INDEX(Ranks!$1:$1048576,$A58,BT$1))","v":""},{"$f":"IF($A58=\"N/A\",Ref!$B$36,INDEX(Ranks!$1:$1048576,$A58,BU$1))","v":""},{"$f":"IF($A58=\"N/A\",Ref!$B$36,INDEX(Ranks!$1:$1048576,$A58,BV$1))","v":""},{"$f":"IF($A58=\"N/A\",Ref!$B$36,INDEX(Ranks!$1:$1048576,$A58,BW$1))","v":""},{"$f":"IF($A58=\"N/A\",Ref!$B$36,INDEX(Ranks!$1:$1048576,$A58,BX$1))","v":""},{"$f":"IF($A58=\"N/A\",Ref!$B$36,INDEX(Ranks!$1:$1048576,$A58,BY$1))","v":""},{"$f":"IF($A58=\"N/A\",Ref!$B$36,INDEX(Ranks!$1:$1048576,$A58,BZ$1))","v":""},{"$f":"IF($A58=\"N/A\",Ref!$B$36,INDEX(Ranks!$1:$1048576,$A58,CA$1))","v":""},{"$f":"IF($A58=\"N/A\",Ref!$B$36,INDEX(Ranks!$1:$1048576,$A58,CB$1))","v":""},{"$f":"IF($A58=\"N/A\",Ref!$B$36,INDEX(Ranks!$1:$1048576,$A58,CC$1))","v":""},{"$f":"IF($A58=\"N/A\",Ref!$B$36,INDEX(Ranks!$1:$1048576,$A58,CD$1))","v":""},{"$f":"IF($A58=\"N/A\",Ref!$B$36,INDEX(Ranks!$1:$1048576,$A58,CE$1))","v":""},{"$f":"IF($A58=\"N/A\",Ref!$B$36,INDEX(Ranks!$1:$1048576,$A58,CF$1))","v":""},{"$f":"IF($A58=\"N/A\",Ref!$B$36,INDEX(Ranks!$1:$1048576,$A58,CG$1))","v":""},{"$f":"IF($A58=\"N/A\",Ref!$B$36,INDEX(Ranks!$1:$1048576,$A58,CH$1))","v":""},{"$f":"IF($A58=\"N/A\",Ref!$B$36,INDEX(Ranks!$1:$1048576,$A58,CI$1))","v":""},{"$f":"IF($A58=\"N/A\",Ref!$B$36,INDEX(Ranks!$1:$1048576,$A58,CJ$1))","v":""},{"$f":"IF($A58=\"N/A\",Ref!$B$36,INDEX(Ranks!$1:$1048576,$A58,CK$1))","v":""},{"$f":"IF($A58=\"N/A\",Ref!$B$36,INDEX(Ranks!$1:$1048576,$A58,CL$1))","v":""},{"$f":"IF($A58=\"N/A\",Ref!$B$36,INDEX(Ranks!$1:$1048576,$A58,CM$1))","v":""},{"$f":"IF($A58=\"N/A\",Ref!$B$36,INDEX(Ranks!$1:$1048576,$A58,CN$1))","v":""},{"$f":"IF($A58=\"N/A\",Ref!$B$36,INDEX(Ranks!$1:$1048576,$A58,CO$1))","v":""},{"$f":"IF($A58=\"N/A\",Ref!$B$36,INDEX(Ranks!$1:$1048576,$A58,CP$1))","v":""},{"$f":"IF($A58=\"N/A\",Ref!$B$36,INDEX(Ranks!$1:$1048576,$A58,CQ$1))","v":""},{"$f":"IF($A58=\"N/A\",Ref!$B$36,INDEX(Ranks!$1:$1048576,$A58,CR$1))","v":""},{"$f":"IF($A58=\"N/A\",Ref!$B$36,INDEX(Ranks!$1:$1048576,$A58,CS$1))","v":""},{"$f":"IF($A58=\"N/A\",Ref!$B$36,INDEX(Ranks!$1:$1048576,$A58,CT$1))","v":""},{"$f":"IF($A58=\"N/A\",Ref!$B$36,INDEX(Ranks!$1:$1048576,$A58,CU$1))","v":""},{"$f":"IF($A58=\"N/A\",Ref!$B$36,INDEX(Ranks!$1:$1048576,$A58,CV$1))","v":""},{"$f":"IF($A58=\"N/A\",Ref!$B$36,INDEX(Ranks!$1:$1048576,$A58,CW$1))","v":""},{"$f":"IF($A58=\"N/A\",Ref!$B$36,INDEX(Ranks!$1:$1048576,$A58,CX$1))","v":""},{"$f":"IF($A58=\"N/A\",Ref!$B$36,INDEX(Ranks!$1:$1048576,$A58,CY$1))","v":""},{"$f":"IF($A58=\"N/A\",Ref!$B$36,INDEX(Ranks!$1:$1048576,$A58,CZ$1))","v":""},{"$f":"IF($A58=\"N/A\",Ref!$B$36,INDEX(Ranks!$1:$1048576,$A58,DA$1))","v":""},{"$f":"IF($A58=\"N/A\",Ref!$B$36,INDEX(Ranks!$1:$1048576,$A58,DB$1))","v":""},{"$f":"IF($A58=\"N/A\",Ref!$B$36,INDEX(Ranks!$1:$1048576,$A58,DC$1))","v":""},{"$f":"IF($A58=\"N/A\",Ref!$B$36,INDEX(Ranks!$1:$1048576,$A58,DD$1))","v":""},{"$f":"IF($A58=\"N/A\",Ref!$B$36,INDEX(Ranks!$1:$1048576,$A58,DE$1))","v":""},{"$f":"IF($A58=\"N/A\",Ref!$B$36,INDEX(Ranks!$1:$1048576,$A58,DF$1))","v":""},{"$f":"IF($A58=\"N/A\",Ref!$B$36,INDEX(Ranks!$1:$1048576,$A58,DG$1))","v":""},{"$f":"IF($A58=\"N/A\",Ref!$B$36,INDEX(Ranks!$1:$1048576,$A58,DH$1))","v":""},{"$f":"IF($A58=\"N/A\",Ref!$B$36,INDEX(Ranks!$1:$1048576,$A58,DI$1))","v":""},{"$f":"IF($A58=\"N/A\",Ref!$B$36,INDEX(Ranks!$1:$1048576,$A58,DJ$1))","v":""},{"$f":"IF($A58=\"N/A\",Ref!$B$36,INDEX(Ranks!$1:$1048576,$A58,DK$1))","v":""},{"$f":"IF($A58=\"N/A\",Ref!$B$36,INDEX(Ranks!$1:$1048576,$A58,DL$1))","v":""},{"$f":"IF($A58=\"N/A\",Ref!$B$36,INDEX(Ranks!$1:$1048576,$A58,DM$1))","v":""},{"$f":"IF($A58=\"N/A\",Ref!$B$36,INDEX(Ranks!$1:$1048576,$A58,DN$1))","v":""},{"$f":"IF($A58=\"N/A\",Ref!$B$36,INDEX(Ranks!$1:$1048576,$A58,DO$1))","v":""},{"$f":"IF($A58=\"N/A\",Ref!$B$36,INDEX(Ranks!$1:$1048576,$A58,DP$1))","v":""},{"$f":"IF($A58=\"N/A\",Ref!$B$36,INDEX(Ranks!$1:$1048576,$A58,DQ$1))","v":""},{"$f":"IF($A58=\"N/A\",Ref!$B$36,INDEX(Ranks!$1:$1048576,$A58,DR$1))","v":""},{"$f":"IF($A58=\"N/A\",Ref!$B$36,INDEX(Ranks!$1:$1048576,$A58,DS$1))","v":""},{"$f":"IF($A58=\"N/A\",Ref!$B$36,INDEX(Ranks!$1:$1048576,$A58,DT$1))","v":""},{"$f":"IF($A58=\"N/A\",Ref!$B$36,INDEX(Ranks!$1:$1048576,$A58,DU$1))","v":""},{"$f":"IF($A58=\"N/A\",Ref!$B$36,INDEX(Ranks!$1:$1048576,$A58,DV$1))","v":""},{"$f":"IF($A58=\"N/A\",Ref!$B$36,INDEX(Ranks!$1:$1048576,$A58,DW$1))","v":""},{"$f":"IF($A58=\"N/A\",Ref!$B$36,INDEX(Ranks!$1:$1048576,$A58,DX$1))","v":""},{"$f":"IF($A58=\"N/A\",Ref!$B$36,INDEX(Ranks!$1:$1048576,$A58,DY$1))","v":""},{"$f":"IF($A58=\"N/A\",Ref!$B$36,INDEX(Ranks!$1:$1048576,$A58,DZ$1))","v":""},{"$f":"IF($A58=\"N/A\",Ref!$B$36,INDEX(Ranks!$1:$1048576,$A58,EA$1))","v":""},{"$f":"IF($A58=\"N/A\",Ref!$B$36,INDEX(Ranks!$1:$1048576,$A58,EB$1))","v":""}]
[{"$f":"IFERROR(MATCH('Portfolio Page'!L59,Ranks!L:L,0),\"N/A\")","v":"N/A"},null,{"$f":"IF($A59=\"N/A\",\"\",INDEX(Ranks!$1:$1048576,$A59,C$1))","v":""},{"$f":"IF($A59=\"N/A\",Ref!$B$36,INDEX(Ranks!$1:$1048576,$A59,D$1))","v":""},{"$f":"IF($A59=\"N/A\",Ref!$B$36,INDEX(Ranks!$1:$1048576,$A59,E$1))","v":""},{"$f":"IF($A59=\"N/A\",\"\",INDEX(Ranks!$1:$1048576,$A59,F$1))","v":""},{"$f":"IF($A59=\"N/A\",\"\",INDEX(Ranks!$1:$1048576,$A59,G$1))","v":""},{"$f":"IF($A59=\"N/A\",\"\",INDEX(Ranks!$1:$1048576,$A59,H$1))","v":""},{"$f":"IF($A59=\"N/A\",\"\",INDEX(Ranks!$1:$1048576,$A59,I$1))","v":""},{"$f":"IF($A59=\"N/A\",\"\",INDEX(Ranks!$1:$1048576,$A59,J$1))","v":""},{"$f":"IF($A59=\"N/A\",\"\",INDEX(Ranks!$1:$1048576,$A59,K$1))","v":""},null,{"$f":"IF($A59=\"N/A\",Ref!$B$36,INDEX(Ranks!$1:$1048576,$A59,M$1))","v":""},{"$f":"IF($A59=\"N/A\",Ref!$B$36,INDEX(Ranks!$1:$1048576,$A59,N$1))","v":""},{"$f":"IF($A59=\"N/A\",Ref!$B$36,INDEX(Ranks!$1:$1048576,$A59,O$1))","v":""},{"$f":"IF($A59=\"N/A\",Ref!$B$36,INDEX(Ranks!$1:$1048576,$A59,P$1))","v":""},{"$f":"IF($A59=\"N/A\",Ref!$B$36,INDEX(Ranks!$1:$1048576,$A59,Q$1))","v":""},{"$f":"IF($A59=\"N/A\",Ref!$B$36,INDEX(Ranks!$1:$1048576,$A59,R$1))","v":""},{"$f":"IF($A59=\"N/A\",Ref!$B$36,INDEX(Ranks!$1:$1048576,$A59,S$1))","v":""},{"$f":"IF($A59=\"N/A\",Ref!$B$36,INDEX(Ranks!$1:$1048576,$A59,T$1))","v":""},{"$f":"IF($A59=\"N/A\",Ref!$B$36,INDEX(Ranks!$1:$1048576,$A59,U$1))","v":""},{"$f":"IF($A59=\"N/A\",Ref!$B$36,INDEX(Ranks!$1:$1048576,$A59,V$1))","v":""},{"$f":"IF($A59=\"N/A\",Ref!$B$36,INDEX(Ranks!$1:$1048576,$A59,W$1))","v":""},{"$f":"IF($A59=\"N/A\",Ref!$B$36,INDEX(Ranks!$1:$1048576,$A59,X$1))","v":""},{"$f":"IF($A59=\"N/A\",Ref!$B$36,INDEX(Ranks!$1:$1048576,$A59,Y$1))","v":""},{"$f":"IF($A59=\"N/A\",Ref!$B$36,INDEX(Ranks!$1:$1048576,$A59,Z$1))","v":""},{"$f":"IF($A59=\"N/A\",Ref!$B$36,INDEX(Ranks!$1:$1048576,$A59,AA$1))","v":""},{"$f":"IF($A59=\"N/A\",Ref!$B$36,INDEX(Ranks!$1:$1048576,$A59,AB$1))","v":""},{"$f":"IF($A59=\"N/A\",Ref!$B$36,INDEX(Ranks!$1:$1048576,$A59,AC$1))","v":""},{"$f":"IF($A59=\"N/A\",Ref!$B$36,INDEX(Ranks!$1:$1048576,$A59,AD$1))","v":""},{"$f":"IF($A59=\"N/A\",Ref!$B$36,INDEX(Ranks!$1:$1048576,$A59,AE$1))","v":""},{"$f":"IF($A59=\"N/A\",Ref!$B$36,INDEX(Ranks!$1:$1048576,$A59,AF$1))","v":""},{"$f":"IF($A59=\"N/A\",Ref!$B$36,INDEX(Ranks!$1:$1048576,$A59,AG$1))","v":""},{"$f":"IF($A59=\"N/A\",Ref!$B$36,INDEX(Ranks!$1:$1048576,$A59,AH$1))","v":""},{"$f":"IF($A59=\"N/A\",Ref!$B$36,INDEX(Ranks!$1:$1048576,$A59,AI$1))","v":""},{"$f":"IF($A59=\"N/A\",Ref!$B$36,INDEX(Ranks!$1:$1048576,$A59,AJ$1))","v":""},{"$f":"IF($A59=\"N/A\",Ref!$B$36,INDEX(Ranks!$1:$1048576,$A59,AK$1))","v":""},{"$f":"IF($A59=\"N/A\",Ref!$B$36,INDEX(Ranks!$1:$1048576,$A59,AL$1))","v":""},{"$f":"IF($A59=\"N/A\",Ref!$B$36,INDEX(Ranks!$1:$1048576,$A59,AM$1))","v":""},{"$f":"IF($A59=\"N/A\",Ref!$B$36,INDEX(Ranks!$1:$1048576,$A59,AN$1))","v":""},{"$f":"IF($A59=\"N/A\",Ref!$B$36,INDEX(Ranks!$1:$1048576,$A59,AO$1))","v":""},{"$f":"IF($A59=\"N/A\",Ref!$B$36,INDEX(Ranks!$1:$1048576,$A59,AP$1))","v":""},{"$f":"IF($A59=\"N/A\",Ref!$B$36,INDEX(Ranks!$1:$1048576,$A59,AQ$1))","v":""},{"$f":"IF($A59=\"N/A\",Ref!$B$36,INDEX(Ranks!$1:$1048576,$A59,AR$1))","v":""},{"$f":"IF($A59=\"N/A\",Ref!$B$36,INDEX(Ranks!$1:$1048576,$A59,AS$1))","v":""},{"$f":"IF($A59=\"N/A\",Ref!$B$36,INDEX(Ranks!$1:$1048576,$A59,AT$1))","v":""},{"$f":"IF($A59=\"N/A\",Ref!$B$36,INDEX(Ranks!$1:$1048576,$A59,AU$1))","v":""},{"$f":"IF($A59=\"N/A\",Ref!$B$36,INDEX(Ranks!$1:$1048576,$A59,AV$1))","v":""},{"$f":"IF($A59=\"N/A\",Ref!$B$36,INDEX(Ranks!$1:$1048576,$A59,AW$1))","v":""},{"$f":"IF($A59=\"N/A\",Ref!$B$36,INDEX(Ranks!$1:$1048576,$A59,AX$1))","v":""},{"$f":"IF($A59=\"N/A\",Ref!$B$36,INDEX(Ranks!$1:$1048576,$A59,AY$1))","v":""},{"$f":"IF($A59=\"N/A\",Ref!$B$36,INDEX(Ranks!$1:$1048576,$A59,AZ$1))","v":""},{"$f":"IF($A59=\"N/A\",Ref!$B$36,INDEX(Ranks!$1:$1048576,$A59,BA$1))","v":""},{"$f":"IF($A59=\"N/A\",Ref!$B$36,INDEX(Ranks!$1:$1048576,$A59,BB$1))","v":""},{"$f":"IF($A59=\"N/A\",Ref!$B$36,INDEX(Ranks!$1:$1048576,$A59,BC$1))","v":""},{"$f":"IF($A59=\"N/A\",Ref!$B$36,INDEX(Ranks!$1:$1048576,$A59,BD$1))","v":""},{"$f":"IF($A59=\"N/A\",Ref!$B$36,INDEX(Ranks!$1:$1048576,$A59,BE$1))","v":""},{"$f":"IF($A59=\"N/A\",Ref!$B$36,INDEX(Ranks!$1:$1048576,$A59,BF$1))","v":""},{"$f":"IF($A59=\"N/A\",Ref!$B$36,INDEX(Ranks!$1:$1048576,$A59,BG$1))","v":""},{"$f":"IF($A59=\"N/A\",Ref!$B$36,INDEX(Ranks!$1:$1048576,$A59,BH$1))","v":""},{"$f":"IF($A59=\"N/A\",Ref!$B$36,INDEX(Ranks!$1:$1048576,$A59,BI$1))","v":""},{"$f":"IF($A59=\"N/A\",Ref!$B$36,INDEX(Ranks!$1:$1048576,$A59,BJ$1))","v":""},{"$f":"IF($A59=\"N/A\",Ref!$B$36,INDEX(Ranks!$1:$1048576,$A59,BK$1))","v":""},{"$f":"IF($A59=\"N/A\",Ref!$B$36,INDEX(Ranks!$1:$1048576,$A59,BL$1))","v":""},{"$f":"IF($A59=\"N/A\",Ref!$B$36,INDEX(Ranks!$1:$1048576,$A59,BM$1))","v":""},{"$f":"IF($A59=\"N/A\",Ref!$B$36,INDEX(Ranks!$1:$1048576,$A59,BN$1))","v":""},{"$f":"IF($A59=\"N/A\",Ref!$B$36,INDEX(Ranks!$1:$1048576,$A59,BO$1))","v":""},{"$f":"IF($A59=\"N/A\",Ref!$B$36,INDEX(Ranks!$1:$1048576,$A59,BP$1))","v":""},{"$f":"IF($A59=\"N/A\",Ref!$B$36,INDEX(Ranks!$1:$1048576,$A59,BQ$1))","v":""},{"$f":"IF($A59=\"N/A\",Ref!$B$36,INDEX(Ranks!$1:$1048576,$A59,BR$1))","v":""},{"$f":"IF($A59=\"N/A\",Ref!$B$36,INDEX(Ranks!$1:$1048576,$A59,BS$1))","v":""},{"$f":"IF($A59=\"N/A\",Ref!$B$36,INDEX(Ranks!$1:$1048576,$A59,BT$1))","v":""},{"$f":"IF($A59=\"N/A\",Ref!$B$36,INDEX(Ranks!$1:$1048576,$A59,BU$1))","v":""},{"$f":"IF($A59=\"N/A\",Ref!$B$36,INDEX(Ranks!$1:$1048576,$A59,BV$1))","v":""},{"$f":"IF($A59=\"N/A\",Ref!$B$36,INDEX(Ranks!$1:$1048576,$A59,BW$1))","v":""},{"$f":"IF($A59=\"N/A\",Ref!$B$36,INDEX(Ranks!$1:$1048576,$A59,BX$1))","v":""},{"$f":"IF($A59=\"N/A\",Ref!$B$36,INDEX(Ranks!$1:$1048576,$A59,BY$1))","v":""},{"$f":"IF($A59=\"N/A\",Ref!$B$36,INDEX(Ranks!$1:$1048576,$A59,BZ$1))","v":""},{"$f":"IF($A59=\"N/A\",Ref!$B$36,INDEX(Ranks!$1:$1048576,$A59,CA$1))","v":""},{"$f":"IF($A59=\"N/A\",Ref!$B$36,INDEX(Ranks!$1:$1048576,$A59,CB$1))","v":""},{"$f":"IF($A59=\"N/A\",Ref!$B$36,INDEX(Ranks!$1:$1048576,$A59,CC$1))","v":""},{"$f":"IF($A59=\"N/A\",Ref!$B$36,INDEX(Ranks!$1:$1048576,$A59,CD$1))","v":""},{"$f":"IF($A59=\"N/A\",Ref!$B$36,INDEX(Ranks!$1:$1048576,$A59,CE$1))","v":""},{"$f":"IF($A59=\"N/A\",Ref!$B$36,INDEX(Ranks!$1:$1048576,$A59,CF$1))","v":""},{"$f":"IF($A59=\"N/A\",Ref!$B$36,INDEX(Ranks!$1:$1048576,$A59,CG$1))","v":""},{"$f":"IF($A59=\"N/A\",Ref!$B$36,INDEX(Ranks!$1:$1048576,$A59,CH$1))","v":""},{"$f":"IF($A59=\"N/A\",Ref!$B$36,INDEX(Ranks!$1:$1048576,$A59,CI$1))","v":""},{"$f":"IF($A59=\"N/A\",Ref!$B$36,INDEX(Ranks!$1:$1048576,$A59,CJ$1))","v":""},{"$f":"IF($A59=\"N/A\",Ref!$B$36,INDEX(Ranks!$1:$1048576,$A59,CK$1))","v":""},{"$f":"IF($A59=\"N/A\",Ref!$B$36,INDEX(Ranks!$1:$1048576,$A59,CL$1))","v":""},{"$f":"IF($A59=\"N/A\",Ref!$B$36,INDEX(Ranks!$1:$1048576,$A59,CM$1))","v":""},{"$f":"IF($A59=\"N/A\",Ref!$B$36,INDEX(Ranks!$1:$1048576,$A59,CN$1))","v":""},{"$f":"IF($A59=\"N/A\",Ref!$B$36,INDEX(Ranks!$1:$1048576,$A59,CO$1))","v":""},{"$f":"IF($A59=\"N/A\",Ref!$B$36,INDEX(Ranks!$1:$1048576,$A59,CP$1))","v":""},{"$f":"IF($A59=\"N/A\",Ref!$B$36,INDEX(Ranks!$1:$1048576,$A59,CQ$1))","v":""},{"$f":"IF($A59=\"N/A\",Ref!$B$36,INDEX(Ranks!$1:$1048576,$A59,CR$1))","v":""},{"$f":"IF($A59=\"N/A\",Ref!$B$36,INDEX(Ranks!$1:$1048576,$A59,CS$1))","v":""},{"$f":"IF($A59=\"N/A\",Ref!$B$36,INDEX(Ranks!$1:$1048576,$A59,CT$1))","v":""},{"$f":"IF($A59=\"N/A\",Ref!$B$36,INDEX(Ranks!$1:$1048576,$A59,CU$1))","v":""},{"$f":"IF($A59=\"N/A\",Ref!$B$36,INDEX(Ranks!$1:$1048576,$A59,CV$1))","v":""},{"$f":"IF($A59=\"N/A\",Ref!$B$36,INDEX(Ranks!$1:$1048576,$A59,CW$1))","v":""},{"$f":"IF($A59=\"N/A\",Ref!$B$36,INDEX(Ranks!$1:$1048576,$A59,CX$1))","v":""},{"$f":"IF($A59=\"N/A\",Ref!$B$36,INDEX(Ranks!$1:$1048576,$A59,CY$1))","v":""},{"$f":"IF($A59=\"N/A\",Ref!$B$36,INDEX(Ranks!$1:$1048576,$A59,CZ$1))","v":""},{"$f":"IF($A59=\"N/A\",Ref!$B$36,INDEX(Ranks!$1:$1048576,$A59,DA$1))","v":""},{"$f":"IF($A59=\"N/A\",Ref!$B$36,INDEX(Ranks!$1:$1048576,$A59,DB$1))","v":""},{"$f":"IF($A59=\"N/A\",Ref!$B$36,INDEX(Ranks!$1:$1048576,$A59,DC$1))","v":""},{"$f":"IF($A59=\"N/A\",Ref!$B$36,INDEX(Ranks!$1:$1048576,$A59,DD$1))","v":""},{"$f":"IF($A59=\"N/A\",Ref!$B$36,INDEX(Ranks!$1:$1048576,$A59,DE$1))","v":""},{"$f":"IF($A59=\"N/A\",Ref!$B$36,INDEX(Ranks!$1:$1048576,$A59,DF$1))","v":""},{"$f":"IF($A59=\"N/A\",Ref!$B$36,INDEX(Ranks!$1:$1048576,$A59,DG$1))","v":""},{"$f":"IF($A59=\"N/A\",Ref!$B$36,INDEX(Ranks!$1:$1048576,$A59,DH$1))","v":""},{"$f":"IF($A59=\"N/A\",Ref!$B$36,INDEX(Ranks!$1:$1048576,$A59,DI$1))","v":""},{"$f":"IF($A59=\"N/A\",Ref!$B$36,INDEX(Ranks!$1:$1048576,$A59,DJ$1))","v":""},{"$f":"IF($A59=\"N/A\",Ref!$B$36,INDEX(Ranks!$1:$1048576,$A59,DK$1))","v":""},{"$f":"IF($A59=\"N/A\",Ref!$B$36,INDEX(Ranks!$1:$1048576,$A59,DL$1))","v":""},{"$f":"IF($A59=\"N/A\",Ref!$B$36,INDEX(Ranks!$1:$1048576,$A59,DM$1))","v":""},{"$f":"IF($A59=\"N/A\",Ref!$B$36,INDEX(Ranks!$1:$1048576,$A59,DN$1))","v":""},{"$f":"IF($A59=\"N/A\",Ref!$B$36,INDEX(Ranks!$1:$1048576,$A59,DO$1))","v":""},{"$f":"IF($A59=\"N/A\",Ref!$B$36,INDEX(Ranks!$1:$1048576,$A59,DP$1))","v":""},{"$f":"IF($A59=\"N/A\",Ref!$B$36,INDEX(Ranks!$1:$1048576,$A59,DQ$1))","v":""},{"$f":"IF($A59=\"N/A\",Ref!$B$36,INDEX(Ranks!$1:$1048576,$A59,DR$1))","v":""},{"$f":"IF($A59=\"N/A\",Ref!$B$36,INDEX(Ranks!$1:$1048576,$A59,DS$1))","v":""},{"$f":"IF($A59=\"N/A\",Ref!$B$36,INDEX(Ranks!$1:$1048576,$A59,DT$1))","v":""},{"$f":"IF($A59=\"N/A\",Ref!$B$36,INDEX(Ranks!$1:$1048576,$A59,DU$1))","v":""},{"$f":"IF($A59=\"N/A\",Ref!$B$36,INDEX(Ranks!$1:$1048576,$A59,DV$1))","v":""},{"$f":"IF($A59=\"N/A\",Ref!$B$36,INDEX(Ranks!$1:$1048576,$A59,DW$1))","v":""},{"$f":"IF($A59=\"N/A\",Ref!$B$36,INDEX(Ranks!$1:$1048576,$A59,DX$1))","v":""},{"$f":"IF($A59=\"N/A\",Ref!$B$36,INDEX(Ranks!$1:$1048576,$A59,DY$1))","v":""},{"$f":"IF($A59=\"N/A\",Ref!$B$36,INDEX(Ranks!$1:$1048576,$A59,DZ$1))","v":""},{"$f":"IF($A59=\"N/A\",Ref!$B$36,INDEX(Ranks!$1:$1048576,$A59,EA$1))","v":""},{"$f":"IF($A59=\"N/A\",Ref!$B$36,INDEX(Ranks!$1:$1048576,$A59,EB$1))","v":""}]
[{"$f":"IFERROR(MATCH('Portfolio Page'!L60,Ranks!L:L,0),\"N/A\")","v":"N/A"},null,{"$f":"IF($A60=\"N/A\",\"\",INDEX(Ranks!$1:$1048576,$A60,C$1))","v":""},{"$f":"IF($A60=\"N/A\",Ref!$B$36,INDEX(Ranks!$1:$1048576,$A60,D$1))","v":""},{"$f":"IF($A60=\"N/A\",Ref!$B$36,INDEX(Ranks!$1:$1048576,$A60,E$1))","v":""},{"$f":"IF($A60=\"N/A\",\"\",INDEX(Ranks!$1:$1048576,$A60,F$1))","v":""},{"$f":"IF($A60=\"N/A\",\"\",INDEX(Ranks!$1:$1048576,$A60,G$1))","v":""},{"$f":"IF($A60=\"N/A\",\"\",INDEX(Ranks!$1:$1048576,$A60,H$1))","v":""},{"$f":"IF($A60=\"N/A\",\"\",INDEX(Ranks!$1:$1048576,$A60,I$1))","v":""},{"$f":"IF($A60=\"N/A\",\"\",INDEX(Ranks!$1:$1048576,$A60,J$1))","v":""},{"$f":"IF($A60=\"N/A\",\"\",INDEX(Ranks!$1:$1048576,$A60,K$1))","v":""},null,{"$f":"IF($A60=\"N/A\",Ref!$B$36,INDEX(Ranks!$1:$1048576,$A60,M$1))","v":""},{"$f":"IF($A60=\"N/A\",Ref!$B$36,INDEX(Ranks!$1:$1048576,$A60,N$1))","v":""},{"$f":"IF($A60=\"N/A\",Ref!$B$36,INDEX(Ranks!$1:$1048576,$A60,O$1))","v":""},{"$f":"IF($A60=\"N/A\",Ref!$B$36,INDEX(Ranks!$1:$1048576,$A60,P$1))","v":""},{"$f":"IF($A60=\"N/A\",Ref!$B$36,INDEX(Ranks!$1:$1048576,$A60,Q$1))","v":""},{"$f":"IF($A60=\"N/A\",Ref!$B$36,INDEX(Ranks!$1:$1048576,$A60,R$1))","v":""},{"$f":"IF($A60=\"N/A\",Ref!$B$36,INDEX(Ranks!$1:$1048576,$A60,S$1))","v":""},{"$f":"IF($A60=\"N/A\",Ref!$B$36,INDEX(Ranks!$1:$1048576,$A60,T$1))","v":""},{"$f":"IF($A60=\"N/A\",Ref!$B$36,INDEX(Ranks!$1:$1048576,$A60,U$1))","v":""},{"$f":"IF($A60=\"N/A\",Ref!$B$36,INDEX(Ranks!$1:$1048576,$A60,V$1))","v":""},{"$f":"IF($A60=\"N/A\",Ref!$B$36,INDEX(Ranks!$1:$1048576,$A60,W$1))","v":""},{"$f":"IF($A60=\"N/A\",Ref!$B$36,INDEX(Ranks!$1:$1048576,$A60,X$1))","v":""},{"$f":"IF($A60=\"N/A\",Ref!$B$36,INDEX(Ranks!$1:$1048576,$A60,Y$1))","v":""},{"$f":"IF($A60=\"N/A\",Ref!$B$36,INDEX(Ranks!$1:$1048576,$A60,Z$1))","v":""},{"$f":"IF($A60=\"N/A\",Ref!$B$36,INDEX(Ranks!$1:$1048576,$A60,AA$1))","v":""},{"$f":"IF($A60=\"N/A\",Ref!$B$36,INDEX(Ranks!$1:$1048576,$A60,AB$1))","v":""},{"$f":"IF($A60=\"N/A\",Ref!$B$36,INDEX(Ranks!$1:$1048576,$A60,AC$1))","v":""},{"$f":"IF($A60=\"N/A\",Ref!$B$36,INDEX(Ranks!$1:$1048576,$A60,AD$1))","v":""},{"$f":"IF($A60=\"N/A\",Ref!$B$36,INDEX(Ranks!$1:$1048576,$A60,AE$1))","v":""},{"$f":"IF($A60=\"N/A\",Ref!$B$36,INDEX(Ranks!$1:$1048576,$A60,AF$1))","v":""},{"$f":"IF($A60=\"N/A\",Ref!$B$36,INDEX(Ranks!$1:$1048576,$A60,AG$1))","v":""},{"$f":"IF($A60=\"N/A\",Ref!$B$36,INDEX(Ranks!$1:$1048576,$A60,AH$1))","v":""},{"$f":"IF($A60=\"N/A\",Ref!$B$36,INDEX(Ranks!$1:$1048576,$A60,AI$1))","v":""},{"$f":"IF($A60=\"N/A\",Ref!$B$36,INDEX(Ranks!$1:$1048576,$A60,AJ$1))","v":""},{"$f":"IF($A60=\"N/A\",Ref!$B$36,INDEX(Ranks!$1:$1048576,$A60,AK$1))","v":""},{"$f":"IF($A60=\"N/A\",Ref!$B$36,INDEX(Ranks!$1:$1048576,$A60,AL$1))","v":""},{"$f":"IF($A60=\"N/A\",Ref!$B$36,INDEX(Ranks!$1:$1048576,$A60,AM$1))","v":""},{"$f":"IF($A60=\"N/A\",Ref!$B$36,INDEX(Ranks!$1:$1048576,$A60,AN$1))","v":""},{"$f":"IF($A60=\"N/A\",Ref!$B$36,INDEX(Ranks!$1:$1048576,$A60,AO$1))","v":""},{"$f":"IF($A60=\"N/A\",Ref!$B$36,INDEX(Ranks!$1:$1048576,$A60,AP$1))","v":""},{"$f":"IF($A60=\"N/A\",Ref!$B$36,INDEX(Ranks!$1:$1048576,$A60,AQ$1))","v":""},{"$f":"IF($A60=\"N/A\",Ref!$B$36,INDEX(Ranks!$1:$1048576,$A60,AR$1))","v":""},{"$f":"IF($A60=\"N/A\",Ref!$B$36,INDEX(Ranks!$1:$1048576,$A60,AS$1))","v":""},{"$f":"IF($A60=\"N/A\",Ref!$B$36,INDEX(Ranks!$1:$1048576,$A60,AT$1))","v":""},{"$f":"IF($A60=\"N/A\",Ref!$B$36,INDEX(Ranks!$1:$1048576,$A60,AU$1))","v":""},{"$f":"IF($A60=\"N/A\",Ref!$B$36,INDEX(Ranks!$1:$1048576,$A60,AV$1))","v":""},{"$f":"IF($A60=\"N/A\",Ref!$B$36,INDEX(Ranks!$1:$1048576,$A60,AW$1))","v":""},{"$f":"IF($A60=\"N/A\",Ref!$B$36,INDEX(Ranks!$1:$1048576,$A60,AX$1))","v":""},{"$f":"IF($A60=\"N/A\",Ref!$B$36,INDEX(Ranks!$1:$1048576,$A60,AY$1))","v":""},{"$f":"IF($A60=\"N/A\",Ref!$B$36,INDEX(Ranks!$1:$1048576,$A60,AZ$1))","v":""},{"$f":"IF($A60=\"N/A\",Ref!$B$36,INDEX(Ranks!$1:$1048576,$A60,BA$1))","v":""},{"$f":"IF($A60=\"N/A\",Ref!$B$36,INDEX(Ranks!$1:$1048576,$A60,BB$1))","v":""},{"$f":"IF($A60=\"N/A\",Ref!$B$36,INDEX(Ranks!$1:$1048576,$A60,BC$1))","v":""},{"$f":"IF($A60=\"N/A\",Ref!$B$36,INDEX(Ranks!$1:$1048576,$A60,BD$1))","v":""},{"$f":"IF($A60=\"N/A\",Ref!$B$36,INDEX(Ranks!$1:$1048576,$A60,BE$1))","v":""},{"$f":"IF($A60=\"N/A\",Ref!$B$36,INDEX(Ranks!$1:$1048576,$A60,BF$1))","v":""},{"$f":"IF($A60=\"N/A\",Ref!$B$36,INDEX(Ranks!$1:$1048576,$A60,BG$1))","v":""},{"$f":"IF($A60=\"N/A\",Ref!$B$36,INDEX(Ranks!$1:$1048576,$A60,BH$1))","v":""},{"$f":"IF($A60=\"N/A\",Ref!$B$36,INDEX(Ranks!$1:$1048576,$A60,BI$1))","v":""},{"$f":"IF($A60=\"N/A\",Ref!$B$36,INDEX(Ranks!$1:$1048576,$A60,BJ$1))","v":""},{"$f":"IF($A60=\"N/A\",Ref!$B$36,INDEX(Ranks!$1:$1048576,$A60,BK$1))","v":""},{"$f":"IF($A60=\"N/A\",Ref!$B$36,INDEX(Ranks!$1:$1048576,$A60,BL$1))","v":""},{"$f":"IF($A60=\"N/A\",Ref!$B$36,INDEX(Ranks!$1:$1048576,$A60,BM$1))","v":""},{"$f":"IF($A60=\"N/A\",Ref!$B$36,INDEX(Ranks!$1:$1048576,$A60,BN$1))","v":""},{"$f":"IF($A60=\"N/A\",Ref!$B$36,INDEX(Ranks!$1:$1048576,$A60,BO$1))","v":""},{"$f":"IF($A60=\"N/A\",Ref!$B$36,INDEX(Ranks!$1:$1048576,$A60,BP$1))","v":""},{"$f":"IF($A60=\"N/A\",Ref!$B$36,INDEX(Ranks!$1:$1048576,$A60,BQ$1))","v":""},{"$f":"IF($A60=\"N/A\",Ref!$B$36,INDEX(Ranks!$1:$1048576,$A60,BR$1))","v":""},{"$f":"IF($A60=\"N/A\",Ref!$B$36,INDEX(Ranks!$1:$1048576,$A60,BS$1))","v":""},{"$f":"IF($A60=\"N/A\",Ref!$B$36,INDEX(Ranks!$1:$1048576,$A60,BT$1))","v":""},{"$f":"IF($A60=\"N/A\",Ref!$B$36,INDEX(Ranks!$1:$1048576,$A60,BU$1))","v":""},{"$f":"IF($A60=\"N/A\",Ref!$B$36,INDEX(Ranks!$1:$1048576,$A60,BV$1))","v":""},{"$f":"IF($A60=\"N/A\",Ref!$B$36,INDEX(Ranks!$1:$1048576,$A60,BW$1))","v":""},{"$f":"IF($A60=\"N/A\",Ref!$B$36,INDEX(Ranks!$1:$1048576,$A60,BX$1))","v":""},{"$f":"IF($A60=\"N/A\",Ref!$B$36,INDEX(Ranks!$1:$1048576,$A60,BY$1))","v":""},{"$f":"IF($A60=\"N/A\",Ref!$B$36,INDEX(Ranks!$1:$1048576,$A60,BZ$1))","v":""},{"$f":"IF($A60=\"N/A\",Ref!$B$36,INDEX(Ranks!$1:$1048576,$A60,CA$1))","v":""},{"$f":"IF($A60=\"N/A\",Ref!$B$36,INDEX(Ranks!$1:$1048576,$A60,CB$1))","v":""},{"$f":"IF($A60=\"N/A\",Ref!$B$36,INDEX(Ranks!$1:$1048576,$A60,CC$1))","v":""},{"$f":"IF($A60=\"N/A\",Ref!$B$36,INDEX(Ranks!$1:$1048576,$A60,CD$1))","v":""},{"$f":"IF($A60=\"N/A\",Ref!$B$36,INDEX(Ranks!$1:$1048576,$A60,CE$1))","v":""},{"$f":"IF($A60=\"N/A\",Ref!$B$36,INDEX(Ranks!$1:$1048576,$A60,CF$1))","v":""},{"$f":"IF($A60=\"N/A\",Ref!$B$36,INDEX(Ranks!$1:$1048576,$A60,CG$1))","v":""},{"$f":"IF($A60=\"N/A\",Ref!$B$36,INDEX(Ranks!$1:$1048576,$A60,CH$1))","v":""},{"$f":"IF($A60=\"N/A\",Ref!$B$36,INDEX(Ranks!$1:$1048576,$A60,CI$1))","v":""},{"$f":"IF($A60=\"N/A\",Ref!$B$36,INDEX(Ranks!$1:$1048576,$A60,CJ$1))","v":""},{"$f":"IF($A60=\"N/A\",Ref!$B$36,INDEX(Ranks!$1:$1048576,$A60,CK$1))","v":""},{"$f":"IF($A60=\"N/A\",Ref!$B$36,INDEX(Ranks!$1:$1048576,$A60,CL$1))","v":""},{"$f":"IF($A60=\"N/A\",Ref!$B$36,INDEX(Ranks!$1:$1048576,$A60,CM$1))","v":""},{"$f":"IF($A60=\"N/A\",Ref!$B$36,INDEX(Ranks!$1:$1048576,$A60,CN$1))","v":""},{"$f":"IF($A60=\"N/A\",Ref!$B$36,INDEX(Ranks!$1:$1048576,$A60,CO$1))","v":""},{"$f":"IF($A60=\"N/A\",Ref!$B$36,INDEX(Ranks!$1:$1048576,$A60,CP$1))","v":""},{"$f":"IF($A60=\"N/A\",Ref!$B$36,INDEX(Ranks!$1:$1048576,$A60,CQ$1))","v":""},{"$f":"IF($A60=\"N/A\",Ref!$B$36,INDEX(Ranks!$1:$1048576,$A60,CR$1))","v":""},{"$f":"IF($A60=\"N/A\",Ref!$B$36,INDEX(Ranks!$1:$1048576,$A60,CS$1))","v":""},{"$f":"IF($A60=\"N/A\",Ref!$B$36,INDEX(Ranks!$1:$1048576,$A60,CT$1))","v":""},{"$f":"IF($A60=\"N/A\",Ref!$B$36,INDEX(Ranks!$1:$1048576,$A60,CU$1))","v":""},{"$f":"IF($A60=\"N/A\",Ref!$B$36,INDEX(Ranks!$1:$1048576,$A60,CV$1))","v":""},{"$f":"IF($A60=\"N/A\",Ref!$B$36,INDEX(Ranks!$1:$1048576,$A60,CW$1))","v":""},{"$f":"IF($A60=\"N/A\",Ref!$B$36,INDEX(Ranks!$1:$1048576,$A60,CX$1))","v":""},{"$f":"IF($A60=\"N/A\",Ref!$B$36,INDEX(Ranks!$1:$1048576,$A60,CY$1))","v":""},{"$f":"IF($A60=\"N/A\",Ref!$B$36,INDEX(Ranks!$1:$1048576,$A60,CZ$1))","v":""},{"$f":"IF($A60=\"N/A\",Ref!$B$36,INDEX(Ranks!$1:$1048576,$A60,DA$1))","v":""},{"$f":"IF($A60=\"N/A\",Ref!$B$36,INDEX(Ranks!$1:$1048576,$A60,DB$1))","v":""},{"$f":"IF($A60=\"N/A\",Ref!$B$36,INDEX(Ranks!$1:$1048576,$A60,DC$1))","v":""},{"$f":"IF($A60=\"N/A\",Ref!$B$36,INDEX(Ranks!$1:$1048576,$A60,DD$1))","v":""},{"$f":"IF($A60=\"N/A\",Ref!$B$36,INDEX(Ranks!$1:$1048576,$A60,DE$1))","v":""},{"$f":"IF($A60=\"N/A\",Ref!$B$36,INDEX(Ranks!$1:$1048576,$A60,DF$1))","v":""},{"$f":"IF($A60=\"N/A\",Ref!$B$36,INDEX(Ranks!$1:$1048576,$A60,DG$1))","v":""},{"$f":"IF($A60=\"N/A\",Ref!$B$36,INDEX(Ranks!$1:$1048576,$A60,DH$1))","v":""},{"$f":"IF($A60=\"N/A\",Ref!$B$36,INDEX(Ranks!$1:$1048576,$A60,DI$1))","v":""},{"$f":"IF($A60=\"N/A\",Ref!$B$36,INDEX(Ranks!$1:$1048576,$A60,DJ$1))","v":""},{"$f":"IF($A60=\"N/A\",Ref!$B$36,INDEX(Ranks!$1:$1048576,$A60,DK$1))","v":""},{"$f":"IF($A60=\"N/A\",Ref!$B$36,INDEX(Ranks!$1:$1048576,$A60,DL$1))","v":""},{"$f":"IF($A60=\"N/A\",Ref!$B$36,INDEX(Ranks!$1:$1048576,$A60,DM$1))","v":""},{"$f":"IF($A60=\"N/A\",Ref!$B$36,INDEX(Ranks!$1:$1048576,$A60,DN$1))","v":""},{"$f":"IF($A60=\"N/A\",Ref!$B$36,INDEX(Ranks!$1:$1048576,$A60,DO$1))","v":""},{"$f":"IF($A60=\"N/A\",Ref!$B$36,INDEX(Ranks!$1:$1048576,$A60,DP$1))","v":""},{"$f":"IF($A60=\"N/A\",Ref!$B$36,INDEX(Ranks!$1:$1048576,$A60,DQ$1))","v":""},{"$f":"IF($A60=\"N/A\",Ref!$B$36,INDEX(Ranks!$1:$1048576,$A60,DR$1))","v":""},{"$f":"IF($A60=\"N/A\",Ref!$B$36,INDEX(Ranks!$1:$1048576,$A60,DS$1))","v":""},{"$f":"IF($A60=\"N/A\",Ref!$B$36,INDEX(Ranks!$1:$1048576,$A60,DT$1))","v":""},{"$f":"IF($A60=\"N/A\",Ref!$B$36,INDEX(Ranks!$1:$1048576,$A60,DU$1))","v":""},{"$f":"IF($A60=\"N/A\",Ref!$B$36,INDEX(Ranks!$1:$1048576,$A60,DV$1))","v":""},{"$f":"IF($A60=\"N/A\",Ref!$B$36,INDEX(Ranks!$1:$1048576,$A60,DW$1))","v":""},{"$f":"IF($A60=\"N/A\",Ref!$B$36,INDEX(Ranks!$1:$1048576,$A60,DX$1))","v":""},{"$f":"IF($A60=\"N/A\",Ref!$B$36,INDEX(Ranks!$1:$1048576,$A60,DY$1))","v":""},{"$f":"IF($A60=\"N/A\",Ref!$B$36,INDEX(Ranks!$1:$1048576,$A60,DZ$1))","v":""},{"$f":"IF($A60=\"N/A\",Ref!$B$36,INDEX(Ranks!$1:$1048576,$A60,EA$1))","v":""},{"$f":"IF($A60=\"N/A\",Ref!$B$36,INDEX(Ranks!$1:$1048576,$A60,EB$1))","v":""}]
[{"$f":"IFERROR(MATCH('Portfolio Page'!L61,Ranks!L:L,0),\"N/A\")","v":"N/A"},null,{"$f":"IF($A61=\"N/A\",\"\",INDEX(Ranks!$1:$1048576,$A61,C$1))","v":""},{"$f":"IF($A61=\"N/A\",Ref!$B$36,INDEX(Ranks!$1:$1048576,$A61,D$1))","v":""},{"$f":"IF($A61=\"N/A\",Ref!$B$36,INDEX(Ranks!$1:$1048576,$A61,E$1))","v":""},{"$f":"IF($A61=\"N/A\",\"\",INDEX(Ranks!$1:$1048576,$A61,F$1))","v":""},{"$f":"IF($A61=\"N/A\",\"\",INDEX(Ranks!$1:$1048576,$A61,G$1))","v":""},{"$f":"IF($A61=\"N/A\",\"\",INDEX(Ranks!$1:$1048576,$A61,H$1))","v":""},{"$f":"IF($A61=\"N/A\",\"\",INDEX(Ranks!$1:$1048576,$A61,I$1))","v":""},{"$f":"IF($A61=\"N/A\",\"\",INDEX(Ranks!$1:$1048576,$A61,J$1))","v":""},{"$f":"IF($A61=\"N/A\",\"\",INDEX(Ranks!$1:$1048576,$A61,K$1))","v":""},null,{"$f":"IF($A61=\"N/A\",Ref!$B$36,INDEX(Ranks!$1:$1048576,$A61,M$1))","v":""},{"$f":"IF($A61=\"N/A\",Ref!$B$36,INDEX(Ranks!$1:$1048576,$A61,N$1))","v":""},{"$f":"IF($A61=\"N/A\",Ref!$B$36,INDEX(Ranks!$1:$1048576,$A61,O$1))","v":""},{"$f":"IF($A61=\"N/A\",Ref!$B$36,INDEX(Ranks!$1:$1048576,$A61,P$1))","v":""},{"$f":"IF($A61=\"N/A\",Ref!$B$36,INDEX(Ranks!$1:$1048576,$A61,Q$1))","v":""},{"$f":"IF($A61=\"N/A\",Ref!$B$36,INDEX(Ranks!$1:$1048576,$A61,R$1))","v":""},{"$f":"IF($A61=\"N/A\",Ref!$B$36,INDEX(Ranks!$1:$1048576,$A61,S$1))","v":""},{"$f":"IF($A61=\"N/A\",Ref!$B$36,INDEX(Ranks!$1:$1048576,$A61,T$1))","v":""},{"$f":"IF($A61=\"N/A\",Ref!$B$36,INDEX(Ranks!$1:$1048576,$A61,U$1))","v":""},{"$f":"IF($A61=\"N/A\",Ref!$B$36,INDEX(Ranks!$1:$1048576,$A61,V$1))","v":""},{"$f":"IF($A61=\"N/A\",Ref!$B$36,INDEX(Ranks!$1:$1048576,$A61,W$1))","v":""},{"$f":"IF($A61=\"N/A\",Ref!$B$36,INDEX(Ranks!$1:$1048576,$A61,X$1))","v":""},{"$f":"IF($A61=\"N/A\",Ref!$B$36,INDEX(Ranks!$1:$1048576,$A61,Y$1))","v":""},{"$f":"IF($A61=\"N/A\",Ref!$B$36,INDEX(Ranks!$1:$1048576,$A61,Z$1))","v":""},{"$f":"IF($A61=\"N/A\",Ref!$B$36,INDEX(Ranks!$1:$1048576,$A61,AA$1))","v":""},{"$f":"IF($A61=\"N/A\",Ref!$B$36,INDEX(Ranks!$1:$1048576,$A61,AB$1))","v":""},{"$f":"IF($A61=\"N/A\",Ref!$B$36,INDEX(Ranks!$1:$1048576,$A61,AC$1))","v":""},{"$f":"IF($A61=\"N/A\",Ref!$B$36,INDEX(Ranks!$1:$1048576,$A61,AD$1))","v":""},{"$f":"IF($A61=\"N/A\",Ref!$B$36,INDEX(Ranks!$1:$1048576,$A61,AE$1))","v":""},{"$f":"IF($A61=\"N/A\",Ref!$B$36,INDEX(Ranks!$1:$1048576,$A61,AF$1))","v":""},{"$f":"IF($A61=\"N/A\",Ref!$B$36,INDEX(Ranks!$1:$1048576,$A61,AG$1))","v":""},{"$f":"IF($A61=\"N/A\",Ref!$B$36,INDEX(Ranks!$1:$1048576,$A61,AH$1))","v":""},{"$f":"IF($A61=\"N/A\",Ref!$B$36,INDEX(Ranks!$1:$1048576,$A61,AI$1))","v":""},{"$f":"IF($A61=\"N/A\",Ref!$B$36,INDEX(Ranks!$1:$1048576,$A61,AJ$1))","v":""},{"$f":"IF($A61=\"N/A\",Ref!$B$36,INDEX(Ranks!$1:$1048576,$A61,AK$1))","v":""},{"$f":"IF($A61=\"N/A\",Ref!$B$36,INDEX(Ranks!$1:$1048576,$A61,AL$1))","v":""},{"$f":"IF($A61=\"N/A\",Ref!$B$36,INDEX(Ranks!$1:$1048576,$A61,AM$1))","v":""},{"$f":"IF($A61=\"N/A\",Ref!$B$36,INDEX(Ranks!$1:$1048576,$A61,AN$1))","v":""},{"$f":"IF($A61=\"N/A\",Ref!$B$36,INDEX(Ranks!$1:$1048576,$A61,AO$1))","v":""},{"$f":"IF($A61=\"N/A\",Ref!$B$36,INDEX(Ranks!$1:$1048576,$A61,AP$1))","v":""},{"$f":"IF($A61=\"N/A\",Ref!$B$36,INDEX(Ranks!$1:$1048576,$A61,AQ$1))","v":""},{"$f":"IF($A61=\"N/A\",Ref!$B$36,INDEX(Ranks!$1:$1048576,$A61,AR$1))","v":""},{"$f":"IF($A61=\"N/A\",Ref!$B$36,INDEX(Ranks!$1:$1048576,$A61,AS$1))","v":""},{"$f":"IF($A61=\"N/A\",Ref!$B$36,INDEX(Ranks!$1:$1048576,$A61,AT$1))","v":""},{"$f":"IF($A61=\"N/A\",Ref!$B$36,INDEX(Ranks!$1:$1048576,$A61,AU$1))","v":""},{"$f":"IF($A61=\"N/A\",Ref!$B$36,INDEX(Ranks!$1:$1048576,$A61,AV$1))","v":""},{"$f":"IF($A61=\"N/A\",Ref!$B$36,INDEX(Ranks!$1:$1048576,$A61,AW$1))","v":""},{"$f":"IF($A61=\"N/A\",Ref!$B$36,INDEX(Ranks!$1:$1048576,$A61,AX$1))","v":""},{"$f":"IF($A61=\"N/A\",Ref!$B$36,INDEX(Ranks!$1:$1048576,$A61,AY$1))","v":""},{"$f":"IF($A61=\"N/A\",Ref!$B$36,INDEX(Ranks!$1:$1048576,$A61,AZ$1))","v":""},{"$f":"IF($A61=\"N/A\",Ref!$B$36,INDEX(Ranks!$1:$1048576,$A61,BA$1))","v":""},{"$f":"IF($A61=\"N/A\",Ref!$B$36,INDEX(Ranks!$1:$1048576,$A61,BB$1))","v":""},{"$f":"IF($A61=\"N/A\",Ref!$B$36,INDEX(Ranks!$1:$1048576,$A61,BC$1))","v":""},{"$f":"IF($A61=\"N/A\",Ref!$B$36,INDEX(Ranks!$1:$1048576,$A61,BD$1))","v":""},{"$f":"IF($A61=\"N/A\",Ref!$B$36,INDEX(Ranks!$1:$1048576,$A61,BE$1))","v":""},{"$f":"IF($A61=\"N/A\",Ref!$B$36,INDEX(Ranks!$1:$1048576,$A61,BF$1))","v":""},{"$f":"IF($A61=\"N/A\",Ref!$B$36,INDEX(Ranks!$1:$1048576,$A61,BG$1))","v":""},{"$f":"IF($A61=\"N/A\",Ref!$B$36,INDEX(Ranks!$1:$1048576,$A61,BH$1))","v":""},{"$f":"IF($A61=\"N/A\",Ref!$B$36,INDEX(Ranks!$1:$1048576,$A61,BI$1))","v":""},{"$f":"IF($A61=\"N/A\",Ref!$B$36,INDEX(Ranks!$1:$1048576,$A61,BJ$1))","v":""},{"$f":"IF($A61=\"N/A\",Ref!$B$36,INDEX(Ranks!$1:$1048576,$A61,BK$1))","v":""},{"$f":"IF($A61=\"N/A\",Ref!$B$36,INDEX(Ranks!$1:$1048576,$A61,BL$1))","v":""},{"$f":"IF($A61=\"N/A\",Ref!$B$36,INDEX(Ranks!$1:$1048576,$A61,BM$1))","v":""},{"$f":"IF($A61=\"N/A\",Ref!$B$36,INDEX(Ranks!$1:$1048576,$A61,BN$1))","v":""},{"$f":"IF($A61=\"N/A\",Ref!$B$36,INDEX(Ranks!$1:$1048576,$A61,BO$1))","v":""},{"$f":"IF($A61=\"N/A\",Ref!$B$36,INDEX(Ranks!$1:$1048576,$A61,BP$1))","v":""},{"$f":"IF($A61=\"N/A\",Ref!$B$36,INDEX(Ranks!$1:$1048576,$A61,BQ$1))","v":""},{"$f":"IF($A61=\"N/A\",Ref!$B$36,INDEX(Ranks!$1:$1048576,$A61,BR$1))","v":""},{"$f":"IF($A61=\"N/A\",Ref!$B$36,INDEX(Ranks!$1:$1048576,$A61,BS$1))","v":""},{"$f":"IF($A61=\"N/A\",Ref!$B$36,INDEX(Ranks!$1:$1048576,$A61,BT$1))","v":""},{"$f":"IF($A61=\"N/A\",Ref!$B$36,INDEX(Ranks!$1:$1048576,$A61,BU$1))","v":""},{"$f":"IF($A61=\"N/A\",Ref!$B$36,INDEX(Ranks!$1:$1048576,$A61,BV$1))","v":""},{"$f":"IF($A61=\"N/A\",Ref!$B$36,INDEX(Ranks!$1:$1048576,$A61,BW$1))","v":""},{"$f":"IF($A61=\"N/A\",Ref!$B$36,INDEX(Ranks!$1:$1048576,$A61,BX$1))","v":""},{"$f":"IF($A61=\"N/A\",Ref!$B$36,INDEX(Ranks!$1:$1048576,$A61,BY$1))","v":""},{"$f":"IF($A61=\"N/A\",Ref!$B$36,INDEX(Ranks!$1:$1048576,$A61,BZ$1))","v":""},{"$f":"IF($A61=\"N/A\",Ref!$B$36,INDEX(Ranks!$1:$1048576,$A61,CA$1))","v":""},{"$f":"IF($A61=\"N/A\",Ref!$B$36,INDEX(Ranks!$1:$1048576,$A61,CB$1))","v":""},{"$f":"IF($A61=\"N/A\",Ref!$B$36,INDEX(Ranks!$1:$1048576,$A61,CC$1))","v":""},{"$f":"IF($A61=\"N/A\",Ref!$B$36,INDEX(Ranks!$1:$1048576,$A61,CD$1))","v":""},{"$f":"IF($A61=\"N/A\",Ref!$B$36,INDEX(Ranks!$1:$1048576,$A61,CE$1))","v":""},{"$f":"IF($A61=\"N/A\",Ref!$B$36,INDEX(Ranks!$1:$1048576,$A61,CF$1))","v":""},{"$f":"IF($A61=\"N/A\",Ref!$B$36,INDEX(Ranks!$1:$1048576,$A61,CG$1))","v":""},{"$f":"IF($A61=\"N/A\",Ref!$B$36,INDEX(Ranks!$1:$1048576,$A61,CH$1))","v":""},{"$f":"IF($A61=\"N/A\",Ref!$B$36,INDEX(Ranks!$1:$1048576,$A61,CI$1))","v":""},{"$f":"IF($A61=\"N/A\",Ref!$B$36,INDEX(Ranks!$1:$1048576,$A61,CJ$1))","v":""},{"$f":"IF($A61=\"N/A\",Ref!$B$36,INDEX(Ranks!$1:$1048576,$A61,CK$1))","v":""},{"$f":"IF($A61=\"N/A\",Ref!$B$36,INDEX(Ranks!$1:$1048576,$A61,CL$1))","v":""},{"$f":"IF($A61=\"N/A\",Ref!$B$36,INDEX(Ranks!$1:$1048576,$A61,CM$1))","v":""},{"$f":"IF($A61=\"N/A\",Ref!$B$36,INDEX(Ranks!$1:$1048576,$A61,CN$1))","v":""},{"$f":"IF($A61=\"N/A\",Ref!$B$36,INDEX(Ranks!$1:$1048576,$A61,CO$1))","v":""},{"$f":"IF($A61=\"N/A\",Ref!$B$36,INDEX(Ranks!$1:$1048576,$A61,CP$1))","v":""},{"$f":"IF($A61=\"N/A\",Ref!$B$36,INDEX(Ranks!$1:$1048576,$A61,CQ$1))","v":""},{"$f":"IF($A61=\"N/A\",Ref!$B$36,INDEX(Ranks!$1:$1048576,$A61,CR$1))","v":""},{"$f":"IF($A61=\"N/A\",Ref!$B$36,INDEX(Ranks!$1:$1048576,$A61,CS$1))","v":""},{"$f":"IF($A61=\"N/A\",Ref!$B$36,INDEX(Ranks!$1:$1048576,$A61,CT$1))","v":""},{"$f":"IF($A61=\"N/A\",Ref!$B$36,INDEX(Ranks!$1:$1048576,$A61,CU$1))","v":""},{"$f":"IF($A61=\"N/A\",Ref!$B$36,INDEX(Ranks!$1:$1048576,$A61,CV$1))","v":""},{"$f":"IF($A61=\"N/A\",Ref!$B$36,INDEX(Ranks!$1:$1048576,$A61,CW$1))","v":""},{"$f":"IF($A61=\"N/A\",Ref!$B$36,INDEX(Ranks!$1:$1048576,$A61,CX$1))","v":""},{"$f":"IF($A61=\"N/A\",Ref!$B$36,INDEX(Ranks!$1:$1048576,$A61,CY$1))","v":""},{"$f":"IF($A61=\"N/A\",Ref!$B$36,INDEX(Ranks!$1:$1048576,$A61,CZ$1))","v":""},{"$f":"IF($A61=\"N/A\",Ref!$B$36,INDEX(Ranks!$1:$1048576,$A61,DA$1))","v":""},{"$f":"IF($A61=\"N/A\",Ref!$B$36,INDEX(Ranks!$1:$1048576,$A61,DB$1))","v":""},{"$f":"IF($A61=\"N/A\",Ref!$B$36,INDEX(Ranks!$1:$1048576,$A61,DC$1))","v":""},{"$f":"IF($A61=\"N/A\",Ref!$B$36,INDEX(Ranks!$1:$1048576,$A61,DD$1))","v":""},{"$f":"IF($A61=\"N/A\",Ref!$B$36,INDEX(Ranks!$1:$1048576,$A61,DE$1))","v":""},{"$f":"IF($A61=\"N/A\",Ref!$B$36,INDEX(Ranks!$1:$1048576,$A61,DF$1))","v":""},{"$f":"IF($A61=\"N/A\",Ref!$B$36,INDEX(Ranks!$1:$1048576,$A61,DG$1))","v":""},{"$f":"IF($A61=\"N/A\",Ref!$B$36,INDEX(Ranks!$1:$1048576,$A61,DH$1))","v":""},{"$f":"IF($A61=\"N/A\",Ref!$B$36,INDEX(Ranks!$1:$1048576,$A61,DI$1))","v":""},{"$f":"IF($A61=\"N/A\",Ref!$B$36,INDEX(Ranks!$1:$1048576,$A61,DJ$1))","v":""},{"$f":"IF($A61=\"N/A\",Ref!$B$36,INDEX(Ranks!$1:$1048576,$A61,DK$1))","v":""},{"$f":"IF($A61=\"N/A\",Ref!$B$36,INDEX(Ranks!$1:$1048576,$A61,DL$1))","v":""},{"$f":"IF($A61=\"N/A\",Ref!$B$36,INDEX(Ranks!$1:$1048576,$A61,DM$1))","v":""},{"$f":"IF($A61=\"N/A\",Ref!$B$36,INDEX(Ranks!$1:$1048576,$A61,DN$1))","v":""},{"$f":"IF($A61=\"N/A\",Ref!$B$36,INDEX(Ranks!$1:$1048576,$A61,DO$1))","v":""},{"$f":"IF($A61=\"N/A\",Ref!$B$36,INDEX(Ranks!$1:$1048576,$A61,DP$1))","v":""},{"$f":"IF($A61=\"N/A\",Ref!$B$36,INDEX(Ranks!$1:$1048576,$A61,DQ$1))","v":""},{"$f":"IF($A61=\"N/A\",Ref!$B$36,INDEX(Ranks!$1:$1048576,$A61,DR$1))","v":""},{"$f":"IF($A61=\"N/A\",Ref!$B$36,INDEX(Ranks!$1:$1048576,$A61,DS$1))","v":""},{"$f":"IF($A61=\"N/A\",Ref!$B$36,INDEX(Ranks!$1:$1048576,$A61,DT$1))","v":""},{"$f":"IF($A61=\"N/A\",Ref!$B$36,INDEX(Ranks!$1:$1048576,$A61,DU$1))","v":""},{"$f":"IF($A61=\"N/A\",Ref!$B$36,INDEX(Ranks!$1:$1048576,$A61,DV$1))","v":""},{"$f":"IF($A61=\"N/A\",Ref!$B$36,INDEX(Ranks!$1:$1048576,$A61,DW$1))","v":""},{"$f":"IF($A61=\"N/A\",Ref!$B$36,INDEX(Ranks!$1:$1048576,$A61,DX$1))","v":""},{"$f":"IF($A61=\"N/A\",Ref!$B$36,INDEX(Ranks!$1:$1048576,$A61,DY$1))","v":""},{"$f":"IF($A61=\"N/A\",Ref!$B$36,INDEX(Ranks!$1:$1048576,$A61,DZ$1))","v":""},{"$f":"IF($A61=\"N/A\",Ref!$B$36,INDEX(Ranks!$1:$1048576,$A61,EA$1))","v":""},{"$f":"IF($A61=\"N/A\",Ref!$B$36,INDEX(Ranks!$1:$1048576,$A61,EB$1))","v":""}]
[{"$f":"IFERROR(MATCH('Portfolio Page'!L62,Ranks!L:L,0),\"N/A\")","v":"N/A"},null,{"$f":"IF($A62=\"N/A\",\"\",INDEX(Ranks!$1:$1048576,$A62,C$1))","v":""},{"$f":"IF($A62=\"N/A\",Ref!$B$36,INDEX(Ranks!$1:$1048576,$A62,D$1))","v":""},{"$f":"IF($A62=\"N/A\",Ref!$B$36,INDEX(Ranks!$1:$1048576,$A62,E$1))","v":""},{"$f":"IF($A62=\"N/A\",\"\",INDEX(Ranks!$1:$1048576,$A62,F$1))","v":""},{"$f":"IF($A62=\"N/A\",\"\",INDEX(Ranks!$1:$1048576,$A62,G$1))","v":""},{"$f":"IF($A62=\"N/A\",\"\",INDEX(Ranks!$1:$1048576,$A62,H$1))","v":""},{"$f":"IF($A62=\"N/A\",\"\",INDEX(Ranks!$1:$1048576,$A62,I$1))","v":""},{"$f":"IF($A62=\"N/A\",\"\",INDEX(Ranks!$1:$1048576,$A62,J$1))","v":""},{"$f":"IF($A62=\"N/A\",\"\",INDEX(Ranks!$1:$1048576,$A62,K$1))","v":""},null,{"$f":"IF($A62=\"N/A\",Ref!$B$36,INDEX(Ranks!$1:$1048576,$A62,M$1))","v":""},{"$f":"IF($A62=\"N/A\",Ref!$B$36,INDEX(Ranks!$1:$1048576,$A62,N$1))","v":""},{"$f":"IF($A62=\"N/A\",Ref!$B$36,INDEX(Ranks!$1:$1048576,$A62,O$1))","v":""},{"$f":"IF($A62=\"N/A\",Ref!$B$36,INDEX(Ranks!$1:$1048576,$A62,P$1))","v":""},{"$f":"IF($A62=\"N/A\",Ref!$B$36,INDEX(Ranks!$1:$1048576,$A62,Q$1))","v":""},{"$f":"IF($A62=\"N/A\",Ref!$B$36,INDEX(Ranks!$1:$1048576,$A62,R$1))","v":""},{"$f":"IF($A62=\"N/A\",Ref!$B$36,INDEX(Ranks!$1:$1048576,$A62,S$1))","v":""},{"$f":"IF($A62=\"N/A\",Ref!$B$36,INDEX(Ranks!$1:$1048576,$A62,T$1))","v":""},{"$f":"IF($A62=\"N/A\",Ref!$B$36,INDEX(Ranks!$1:$1048576,$A62,U$1))","v":""},{"$f":"IF($A62=\"N/A\",Ref!$B$36,INDEX(Ranks!$1:$1048576,$A62,V$1))","v":""},{"$f":"IF($A62=\"N/A\",Ref!$B$36,INDEX(Ranks!$1:$1048576,$A62,W$1))","v":""},{"$f":"IF($A62=\"N/A\",Ref!$B$36,INDEX(Ranks!$1:$1048576,$A62,X$1))","v":""},{"$f":"IF($A62=\"N/A\",Ref!$B$36,INDEX(Ranks!$1:$1048576,$A62,Y$1))","v":""},{"$f":"IF($A62=\"N/A\",Ref!$B$36,INDEX(Ranks!$1:$1048576,$A62,Z$1))","v":""},{"$f":"IF($A62=\"N/A\",Ref!$B$36,INDEX(Ranks!$1:$1048576,$A62,AA$1))","v":""},{"$f":"IF($A62=\"N/A\",Ref!$B$36,INDEX(Ranks!$1:$1048576,$A62,AB$1))","v":""},{"$f":"IF($A62=\"N/A\",Ref!$B$36,INDEX(Ranks!$1:$1048576,$A62,AC$1))","v":""},{"$f":"IF($A62=\"N/A\",Ref!$B$36,INDEX(Ranks!$1:$1048576,$A62,AD$1))","v":""},{"$f":"IF($A62=\"N/A\",Ref!$B$36,INDEX(Ranks!$1:$1048576,$A62,AE$1))","v":""},{"$f":"IF($A62=\"N/A\",Ref!$B$36,INDEX(Ranks!$1:$1048576,$A62,AF$1))","v":""},{"$f":"IF($A62=\"N/A\",Ref!$B$36,INDEX(Ranks!$1:$1048576,$A62,AG$1))","v":""},{"$f":"IF($A62=\"N/A\",Ref!$B$36,INDEX(Ranks!$1:$1048576,$A62,AH$1))","v":""},{"$f":"IF($A62=\"N/A\",Ref!$B$36,INDEX(Ranks!$1:$1048576,$A62,AI$1))","v":""},{"$f":"IF($A62=\"N/A\",Ref!$B$36,INDEX(Ranks!$1:$1048576,$A62,AJ$1))","v":""},{"$f":"IF($A62=\"N/A\",Ref!$B$36,INDEX(Ranks!$1:$1048576,$A62,AK$1))","v":""},{"$f":"IF($A62=\"N/A\",Ref!$B$36,INDEX(Ranks!$1:$1048576,$A62,AL$1))","v":""},{"$f":"IF($A62=\"N/A\",Ref!$B$36,INDEX(Ranks!$1:$1048576,$A62,AM$1))","v":""},{"$f":"IF($A62=\"N/A\",Ref!$B$36,INDEX(Ranks!$1:$1048576,$A62,AN$1))","v":""},{"$f":"IF($A62=\"N/A\",Ref!$B$36,INDEX(Ranks!$1:$1048576,$A62,AO$1))","v":""},{"$f":"IF($A62=\"N/A\",Ref!$B$36,INDEX(Ranks!$1:$1048576,$A62,AP$1))","v":""},{"$f":"IF($A62=\"N/A\",Ref!$B$36,INDEX(Ranks!$1:$1048576,$A62,AQ$1))","v":""},{"$f":"IF($A62=\"N/A\",Ref!$B$36,INDEX(Ranks!$1:$1048576,$A62,AR$1))","v":""},{"$f":"IF($A62=\"N/A\",Ref!$B$36,INDEX(Ranks!$1:$1048576,$A62,AS$1))","v":""},{"$f":"IF($A62=\"N/A\",Ref!$B$36,INDEX(Ranks!$1:$1048576,$A62,AT$1))","v":""},{"$f":"IF($A62=\"N/A\",Ref!$B$36,INDEX(Ranks!$1:$1048576,$A62,AU$1))","v":""},{"$f":"IF($A62=\"N/A\",Ref!$B$36,INDEX(Ranks!$1:$1048576,$A62,AV$1))","v":""},{"$f":"IF($A62=\"N/A\",Ref!$B$36,INDEX(Ranks!$1:$1048576,$A62,AW$1))","v":""},{"$f":"IF($A62=\"N/A\",Ref!$B$36,INDEX(Ranks!$1:$1048576,$A62,AX$1))","v":""},{"$f":"IF($A62=\"N/A\",Ref!$B$36,INDEX(Ranks!$1:$1048576,$A62,AY$1))","v":""},{"$f":"IF($A62=\"N/A\",Ref!$B$36,INDEX(Ranks!$1:$1048576,$A62,AZ$1))","v":""},{"$f":"IF($A62=\"N/A\",Ref!$B$36,INDEX(Ranks!$1:$1048576,$A62,BA$1))","v":""},{"$f":"IF($A62=\"N/A\",Ref!$B$36,INDEX(Ranks!$1:$1048576,$A62,BB$1))","v":""},{"$f":"IF($A62=\"N/A\",Ref!$B$36,INDEX(Ranks!$1:$1048576,$A62,BC$1))","v":""},{"$f":"IF($A62=\"N/A\",Ref!$B$36,INDEX(Ranks!$1:$1048576,$A62,BD$1))","v":""},{"$f":"IF($A62=\"N/A\",Ref!$B$36,INDEX(Ranks!$1:$1048576,$A62,BE$1))","v":""},{"$f":"IF($A62=\"N/A\",Ref!$B$36,INDEX(Ranks!$1:$1048576,$A62,BF$1))","v":""},{"$f":"IF($A62=\"N/A\",Ref!$B$36,INDEX(Ranks!$1:$1048576,$A62,BG$1))","v":""},{"$f":"IF($A62=\"N/A\",Ref!$B$36,INDEX(Ranks!$1:$1048576,$A62,BH$1))","v":""},{"$f":"IF($A62=\"N/A\",Ref!$B$36,INDEX(Ranks!$1:$1048576,$A62,BI$1))","v":""},{"$f":"IF($A62=\"N/A\",Ref!$B$36,INDEX(Ranks!$1:$1048576,$A62,BJ$1))","v":""},{"$f":"IF($A62=\"N/A\",Ref!$B$36,INDEX(Ranks!$1:$1048576,$A62,BK$1))","v":""},{"$f":"IF($A62=\"N/A\",Ref!$B$36,INDEX(Ranks!$1:$1048576,$A62,BL$1))","v":""},{"$f":"IF($A62=\"N/A\",Ref!$B$36,INDEX(Ranks!$1:$1048576,$A62,BM$1))","v":""},{"$f":"IF($A62=\"N/A\",Ref!$B$36,INDEX(Ranks!$1:$1048576,$A62,BN$1))","v":""},{"$f":"IF($A62=\"N/A\",Ref!$B$36,INDEX(Ranks!$1:$1048576,$A62,BO$1))","v":""},{"$f":"IF($A62=\"N/A\",Ref!$B$36,INDEX(Ranks!$1:$1048576,$A62,BP$1))","v":""},{"$f":"IF($A62=\"N/A\",Ref!$B$36,INDEX(Ranks!$1:$1048576,$A62,BQ$1))","v":""},{"$f":"IF($A62=\"N/A\",Ref!$B$36,INDEX(Ranks!$1:$1048576,$A62,BR$1))","v":""},{"$f":"IF($A62=\"N/A\",Ref!$B$36,INDEX(Ranks!$1:$1048576,$A62,BS$1))","v":""},{"$f":"IF($A62=\"N/A\",Ref!$B$36,INDEX(Ranks!$1:$1048576,$A62,BT$1))","v":""},{"$f":"IF($A62=\"N/A\",Ref!$B$36,INDEX(Ranks!$1:$1048576,$A62,BU$1))","v":""},{"$f":"IF($A62=\"N/A\",Ref!$B$36,INDEX(Ranks!$1:$1048576,$A62,BV$1))","v":""},{"$f":"IF($A62=\"N/A\",Ref!$B$36,INDEX(Ranks!$1:$1048576,$A62,BW$1))","v":""},{"$f":"IF($A62=\"N/A\",Ref!$B$36,INDEX(Ranks!$1:$1048576,$A62,BX$1))","v":""},{"$f":"IF($A62=\"N/A\",Ref!$B$36,INDEX(Ranks!$1:$1048576,$A62,BY$1))","v":""},{"$f":"IF($A62=\"N/A\",Ref!$B$36,INDEX(Ranks!$1:$1048576,$A62,BZ$1))","v":""},{"$f":"IF($A62=\"N/A\",Ref!$B$36,INDEX(Ranks!$1:$1048576,$A62,CA$1))","v":""},{"$f":"IF($A62=\"N/A\",Ref!$B$36,INDEX(Ranks!$1:$1048576,$A62,CB$1))","v":""},{"$f":"IF($A62=\"N/A\",Ref!$B$36,INDEX(Ranks!$1:$1048576,$A62,CC$1))","v":""},{"$f":"IF($A62=\"N/A\",Ref!$B$36,INDEX(Ranks!$1:$1048576,$A62,CD$1))","v":""},{"$f":"IF($A62=\"N/A\",Ref!$B$36,INDEX(Ranks!$1:$1048576,$A62,CE$1))","v":""},{"$f":"IF($A62=\"N/A\",Ref!$B$36,INDEX(Ranks!$1:$1048576,$A62,CF$1))","v":""},{"$f":"IF($A62=\"N/A\",Ref!$B$36,INDEX(Ranks!$1:$1048576,$A62,CG$1))","v":""},{"$f":"IF($A62=\"N/A\",Ref!$B$36,INDEX(Ranks!$1:$1048576,$A62,CH$1))","v":""},{"$f":"IF($A62=\"N/A\",Ref!$B$36,INDEX(Ranks!$1:$1048576,$A62,CI$1))","v":""},{"$f":"IF($A62=\"N/A\",Ref!$B$36,INDEX(Ranks!$1:$1048576,$A62,CJ$1))","v":""},{"$f":"IF($A62=\"N/A\",Ref!$B$36,INDEX(Ranks!$1:$1048576,$A62,CK$1))","v":""},{"$f":"IF($A62=\"N/A\",Ref!$B$36,INDEX(Ranks!$1:$1048576,$A62,CL$1))","v":""},{"$f":"IF($A62=\"N/A\",Ref!$B$36,INDEX(Ranks!$1:$1048576,$A62,CM$1))","v":""},{"$f":"IF($A62=\"N/A\",Ref!$B$36,INDEX(Ranks!$1:$1048576,$A62,CN$1))","v":""},{"$f":"IF($A62=\"N/A\",Ref!$B$36,INDEX(Ranks!$1:$1048576,$A62,CO$1))","v":""},{"$f":"IF($A62=\"N/A\",Ref!$B$36,INDEX(Ranks!$1:$1048576,$A62,CP$1))","v":""},{"$f":"IF($A62=\"N/A\",Ref!$B$36,INDEX(Ranks!$1:$1048576,$A62,CQ$1))","v":""},{"$f":"IF($A62=\"N/A\",Ref!$B$36,INDEX(Ranks!$1:$1048576,$A62,CR$1))","v":""},{"$f":"IF($A62=\"N/A\",Ref!$B$36,INDEX(Ranks!$1:$1048576,$A62,CS$1))","v":""},{"$f":"IF($A62=\"N/A\",Ref!$B$36,INDEX(Ranks!$1:$1048576,$A62,CT$1))","v":""},{"$f":"IF($A62=\"N/A\",Ref!$B$36,INDEX(Ranks!$1:$1048576,$A62,CU$1))","v":""},{"$f":"IF($A62=\"N/A\",Ref!$B$36,INDEX(Ranks!$1:$1048576,$A62,CV$1))","v":""},{"$f":"IF($A62=\"N/A\",Ref!$B$36,INDEX(Ranks!$1:$1048576,$A62,CW$1))","v":""},{"$f":"IF($A62=\"N/A\",Ref!$B$36,INDEX(Ranks!$1:$1048576,$A62,CX$1))","v":""},{"$f":"IF($A62=\"N/A\",Ref!$B$36,INDEX(Ranks!$1:$1048576,$A62,CY$1))","v":""},{"$f":"IF($A62=\"N/A\",Ref!$B$36,INDEX(Ranks!$1:$1048576,$A62,CZ$1))","v":""},{"$f":"IF($A62=\"N/A\",Ref!$B$36,INDEX(Ranks!$1:$1048576,$A62,DA$1))","v":""},{"$f":"IF($A62=\"N/A\",Ref!$B$36,INDEX(Ranks!$1:$1048576,$A62,DB$1))","v":""},{"$f":"IF($A62=\"N/A\",Ref!$B$36,INDEX(Ranks!$1:$1048576,$A62,DC$1))","v":""},{"$f":"IF($A62=\"N/A\",Ref!$B$36,INDEX(Ranks!$1:$1048576,$A62,DD$1))","v":""},{"$f":"IF($A62=\"N/A\",Ref!$B$36,INDEX(Ranks!$1:$1048576,$A62,DE$1))","v":""},{"$f":"IF($A62=\"N/A\",Ref!$B$36,INDEX(Ranks!$1:$1048576,$A62,DF$1))","v":""},{"$f":"IF($A62=\"N/A\",Ref!$B$36,INDEX(Ranks!$1:$1048576,$A62,DG$1))","v":""},{"$f":"IF($A62=\"N/A\",Ref!$B$36,INDEX(Ranks!$1:$1048576,$A62,DH$1))","v":""},{"$f":"IF($A62=\"N/A\",Ref!$B$36,INDEX(Ranks!$1:$1048576,$A62,DI$1))","v":""},{"$f":"IF($A62=\"N/A\",Ref!$B$36,INDEX(Ranks!$1:$1048576,$A62,DJ$1))","v":""},{"$f":"IF($A62=\"N/A\",Ref!$B$36,INDEX(Ranks!$1:$1048576,$A62,DK$1))","v":""},{"$f":"IF($A62=\"N/A\",Ref!$B$36,INDEX(Ranks!$1:$1048576,$A62,DL$1))","v":""},{"$f":"IF($A62=\"N/A\",Ref!$B$36,INDEX(Ranks!$1:$1048576,$A62,DM$1))","v":""},{"$f":"IF($A62=\"N/A\",Ref!$B$36,INDEX(Ranks!$1:$1048576,$A62,DN$1))","v":""},{"$f":"IF($A62=\"N/A\",Ref!$B$36,INDEX(Ranks!$1:$1048576,$A62,DO$1))","v":""},{"$f":"IF($A62=\"N/A\",Ref!$B$36,INDEX(Ranks!$1:$1048576,$A62,DP$1))","v":""},{"$f":"IF($A62=\"N/A\",Ref!$B$36,INDEX(Ranks!$1:$1048576,$A62,DQ$1))","v":""},{"$f":"IF($A62=\"N/A\",Ref!$B$36,INDEX(Ranks!$1:$1048576,$A62,DR$1))","v":""},{"$f":"IF($A62=\"N/A\",Ref!$B$36,INDEX(Ranks!$1:$1048576,$A62,DS$1))","v":""},{"$f":"IF($A62=\"N/A\",Ref!$B$36,INDEX(Ranks!$1:$1048576,$A62,DT$1))","v":""},{"$f":"IF($A62=\"N/A\",Ref!$B$36,INDEX(Ranks!$1:$1048576,$A62,DU$1))","v":""},{"$f":"IF($A62=\"N/A\",Ref!$B$36,INDEX(Ranks!$1:$1048576,$A62,DV$1))","v":""},{"$f":"IF($A62=\"N/A\",Ref!$B$36,INDEX(Ranks!$1:$1048576,$A62,DW$1))","v":""},{"$f":"IF($A62=\"N/A\",Ref!$B$36,INDEX(Ranks!$1:$1048576,$A62,DX$1))","v":""},{"$f":"IF($A62=\"N/A\",Ref!$B$36,INDEX(Ranks!$1:$1048576,$A62,DY$1))","v":""},{"$f":"IF($A62=\"N/A\",Ref!$B$36,INDEX(Ranks!$1:$1048576,$A62,DZ$1))","v":""},{"$f":"IF($A62=\"N/A\",Ref!$B$36,INDEX(Ranks!$1:$1048576,$A62,EA$1))","v":""},{"$f":"IF($A62=\"N/A\",Ref!$B$36,INDEX(Ranks!$1:$1048576,$A62,EB$1))","v":""}]
[{"$f":"IFERROR(MATCH('Portfolio Page'!L63,Ranks!L:L,0),\"N/A\")","v":"N/A"},null,{"$f":"IF($A63=\"N/A\",\"\",INDEX(Ranks!$1:$1048576,$A63,C$1))","v":""},{"$f":"IF($A63=\"N/A\",Ref!$B$36,INDEX(Ranks!$1:$1048576,$A63,D$1))","v":""},{"$f":"IF($A63=\"N/A\",Ref!$B$36,INDEX(Ranks!$1:$1048576,$A63,E$1))","v":""},{"$f":"IF($A63=\"N/A\",\"\",INDEX(Ranks!$1:$1048576,$A63,F$1))","v":""},{"$f":"IF($A63=\"N/A\",\"\",INDEX(Ranks!$1:$1048576,$A63,G$1))","v":""},{"$f":"IF($A63=\"N/A\",\"\",INDEX(Ranks!$1:$1048576,$A63,H$1))","v":""},{"$f":"IF($A63=\"N/A\",\"\",INDEX(Ranks!$1:$1048576,$A63,I$1))","v":""},{"$f":"IF($A63=\"N/A\",\"\",INDEX(Ranks!$1:$1048576,$A63,J$1))","v":""},{"$f":"IF($A63=\"N/A\",\"\",INDEX(Ranks!$1:$1048576,$A63,K$1))","v":""},null,{"$f":"IF($A63=\"N/A\",Ref!$B$36,INDEX(Ranks!$1:$1048576,$A63,M$1))","v":""},{"$f":"IF($A63=\"N/A\",Ref!$B$36,INDEX(Ranks!$1:$1048576,$A63,N$1))","v":""},{"$f":"IF($A63=\"N/A\",Ref!$B$36,INDEX(Ranks!$1:$1048576,$A63,O$1))","v":""},{"$f":"IF($A63=\"N/A\",Ref!$B$36,INDEX(Ranks!$1:$1048576,$A63,P$1))","v":""},{"$f":"IF($A63=\"N/A\",Ref!$B$36,INDEX(Ranks!$1:$1048576,$A63,Q$1))","v":""},{"$f":"IF($A63=\"N/A\",Ref!$B$36,INDEX(Ranks!$1:$1048576,$A63,R$1))","v":""},{"$f":"IF($A63=\"N/A\",Ref!$B$36,INDEX(Ranks!$1:$1048576,$A63,S$1))","v":""},{"$f":"IF($A63=\"N/A\",Ref!$B$36,INDEX(Ranks!$1:$1048576,$A63,T$1))","v":""},{"$f":"IF($A63=\"N/A\",Ref!$B$36,INDEX(Ranks!$1:$1048576,$A63,U$1))","v":""},{"$f":"IF($A63=\"N/A\",Ref!$B$36,INDEX(Ranks!$1:$1048576,$A63,V$1))","v":""},{"$f":"IF($A63=\"N/A\",Ref!$B$36,INDEX(Ranks!$1:$1048576,$A63,W$1))","v":""},{"$f":"IF($A63=\"N/A\",Ref!$B$36,INDEX(Ranks!$1:$1048576,$A63,X$1))","v":""},{"$f":"IF($A63=\"N/A\",Ref!$B$36,INDEX(Ranks!$1:$1048576,$A63,Y$1))","v":""},{"$f":"IF($A63=\"N/A\",Ref!$B$36,INDEX(Ranks!$1:$1048576,$A63,Z$1))","v":""},{"$f":"IF($A63=\"N/A\",Ref!$B$36,INDEX(Ranks!$1:$1048576,$A63,AA$1))","v":""},{"$f":"IF($A63=\"N/A\",Ref!$B$36,INDEX(Ranks!$1:$1048576,$A63,AB$1))","v":""},{"$f":"IF($A63=\"N/A\",Ref!$B$36,INDEX(Ranks!$1:$1048576,$A63,AC$1))","v":""},{"$f":"IF($A63=\"N/A\",Ref!$B$36,INDEX(Ranks!$1:$1048576,$A63,AD$1))","v":""},{"$f":"IF($A63=\"N/A\",Ref!$B$36,INDEX(Ranks!$1:$1048576,$A63,AE$1))","v":""},{"$f":"IF($A63=\"N/A\",Ref!$B$36,INDEX(Ranks!$1:$1048576,$A63,AF$1))","v":""},{"$f":"IF($A63=\"N/A\",Ref!$B$36,INDEX(Ranks!$1:$1048576,$A63,AG$1))","v":""},{"$f":"IF($A63=\"N/A\",Ref!$B$36,INDEX(Ranks!$1:$1048576,$A63,AH$1))","v":""},{"$f":"IF($A63=\"N/A\",Ref!$B$36,INDEX(Ranks!$1:$1048576,$A63,AI$1))","v":""},{"$f":"IF($A63=\"N/A\",Ref!$B$36,INDEX(Ranks!$1:$1048576,$A63,AJ$1))","v":""},{"$f":"IF($A63=\"N/A\",Ref!$B$36,INDEX(Ranks!$1:$1048576,$A63,AK$1))","v":""},{"$f":"IF($A63=\"N/A\",Ref!$B$36,INDEX(Ranks!$1:$1048576,$A63,AL$1))","v":""},{"$f":"IF($A63=\"N/A\",Ref!$B$36,INDEX(Ranks!$1:$1048576,$A63,AM$1))","v":""},{"$f":"IF($A63=\"N/A\",Ref!$B$36,INDEX(Ranks!$1:$1048576,$A63,AN$1))","v":""},{"$f":"IF($A63=\"N/A\",Ref!$B$36,INDEX(Ranks!$1:$1048576,$A63,AO$1))","v":""},{"$f":"IF($A63=\"N/A\",Ref!$B$36,INDEX(Ranks!$1:$1048576,$A63,AP$1))","v":""},{"$f":"IF($A63=\"N/A\",Ref!$B$36,INDEX(Ranks!$1:$1048576,$A63,AQ$1))","v":""},{"$f":"IF($A63=\"N/A\",Ref!$B$36,INDEX(Ranks!$1:$1048576,$A63,AR$1))","v":""},{"$f":"IF($A63=\"N/A\",Ref!$B$36,INDEX(Ranks!$1:$1048576,$A63,AS$1))","v":""},{"$f":"IF($A63=\"N/A\",Ref!$B$36,INDEX(Ranks!$1:$1048576,$A63,AT$1))","v":""},{"$f":"IF($A63=\"N/A\",Ref!$B$36,INDEX(Ranks!$1:$1048576,$A63,AU$1))","v":""},{"$f":"IF($A63=\"N/A\",Ref!$B$36,INDEX(Ranks!$1:$1048576,$A63,AV$1))","v":""},{"$f":"IF($A63=\"N/A\",Ref!$B$36,INDEX(Ranks!$1:$1048576,$A63,AW$1))","v":""},{"$f":"IF($A63=\"N/A\",Ref!$B$36,INDEX(Ranks!$1:$1048576,$A63,AX$1))","v":""},{"$f":"IF($A63=\"N/A\",Ref!$B$36,INDEX(Ranks!$1:$1048576,$A63,AY$1))","v":""},{"$f":"IF($A63=\"N/A\",Ref!$B$36,INDEX(Ranks!$1:$1048576,$A63,AZ$1))","v":""},{"$f":"IF($A63=\"N/A\",Ref!$B$36,INDEX(Ranks!$1:$1048576,$A63,BA$1))","v":""},{"$f":"IF($A63=\"N/A\",Ref!$B$36,INDEX(Ranks!$1:$1048576,$A63,BB$1))","v":""},{"$f":"IF($A63=\"N/A\",Ref!$B$36,INDEX(Ranks!$1:$1048576,$A63,BC$1))","v":""},{"$f":"IF($A63=\"N/A\",Ref!$B$36,INDEX(Ranks!$1:$1048576,$A63,BD$1))","v":""},{"$f":"IF($A63=\"N/A\",Ref!$B$36,INDEX(Ranks!$1:$1048576,$A63,BE$1))","v":""},{"$f":"IF($A63=\"N/A\",Ref!$B$36,INDEX(Ranks!$1:$1048576,$A63,BF$1))","v":""},{"$f":"IF($A63=\"N/A\",Ref!$B$36,INDEX(Ranks!$1:$1048576,$A63,BG$1))","v":""},{"$f":"IF($A63=\"N/A\",Ref!$B$36,INDEX(Ranks!$1:$1048576,$A63,BH$1))","v":""},{"$f":"IF($A63=\"N/A\",Ref!$B$36,INDEX(Ranks!$1:$1048576,$A63,BI$1))","v":""},{"$f":"IF($A63=\"N/A\",Ref!$B$36,INDEX(Ranks!$1:$1048576,$A63,BJ$1))","v":""},{"$f":"IF($A63=\"N/A\",Ref!$B$36,INDEX(Ranks!$1:$1048576,$A63,BK$1))","v":""},{"$f":"IF($A63=\"N/A\",Ref!$B$36,INDEX(Ranks!$1:$1048576,$A63,BL$1))","v":""},{"$f":"IF($A63=\"N/A\",Ref!$B$36,INDEX(Ranks!$1:$1048576,$A63,BM$1))","v":""},{"$f":"IF($A63=\"N/A\",Ref!$B$36,INDEX(Ranks!$1:$1048576,$A63,BN$1))","v":""},{"$f":"IF($A63=\"N/A\",Ref!$B$36,INDEX(Ranks!$1:$1048576,$A63,BO$1))","v":""},{"$f":"IF($A63=\"N/A\",Ref!$B$36,INDEX(Ranks!$1:$1048576,$A63,BP$1))","v":""},{"$f":"IF($A63=\"N/A\",Ref!$B$36,INDEX(Ranks!$1:$1048576,$A63,BQ$1))","v":""},{"$f":"IF($A63=\"N/A\",Ref!$B$36,INDEX(Ranks!$1:$1048576,$A63,BR$1))","v":""},{"$f":"IF($A63=\"N/A\",Ref!$B$36,INDEX(Ranks!$1:$1048576,$A63,BS$1))","v":""},{"$f":"IF($A63=\"N/A\",Ref!$B$36,INDEX(Ranks!$1:$1048576,$A63,BT$1))","v":""},{"$f":"IF($A63=\"N/A\",Ref!$B$36,INDEX(Ranks!$1:$1048576,$A63,BU$1))","v":""},{"$f":"IF($A63=\"N/A\",Ref!$B$36,INDEX(Ranks!$1:$1048576,$A63,BV$1))","v":""},{"$f":"IF($A63=\"N/A\",Ref!$B$36,INDEX(Ranks!$1:$1048576,$A63,BW$1))","v":""},{"$f":"IF($A63=\"N/A\",Ref!$B$36,INDEX(Ranks!$1:$1048576,$A63,BX$1))","v":""},{"$f":"IF($A63=\"N/A\",Ref!$B$36,INDEX(Ranks!$1:$1048576,$A63,BY$1))","v":""},{"$f":"IF($A63=\"N/A\",Ref!$B$36,INDEX(Ranks!$1:$1048576,$A63,BZ$1))","v":""},{"$f":"IF($A63=\"N/A\",Ref!$B$36,INDEX(Ranks!$1:$1048576,$A63,CA$1))","v":""},{"$f":"IF($A63=\"N/A\",Ref!$B$36,INDEX(Ranks!$1:$1048576,$A63,CB$1))","v":""},{"$f":"IF($A63=\"N/A\",Ref!$B$36,INDEX(Ranks!$1:$1048576,$A63,CC$1))","v":""},{"$f":"IF($A63=\"N/A\",Ref!$B$36,INDEX(Ranks!$1:$1048576,$A63,CD$1))","v":""},{"$f":"IF($A63=\"N/A\",Ref!$B$36,INDEX(Ranks!$1:$1048576,$A63,CE$1))","v":""},{"$f":"IF($A63=\"N/A\",Ref!$B$36,INDEX(Ranks!$1:$1048576,$A63,CF$1))","v":""},{"$f":"IF($A63=\"N/A\",Ref!$B$36,INDEX(Ranks!$1:$1048576,$A63,CG$1))","v":""},{"$f":"IF($A63=\"N/A\",Ref!$B$36,INDEX(Ranks!$1:$1048576,$A63,CH$1))","v":""},{"$f":"IF($A63=\"N/A\",Ref!$B$36,INDEX(Ranks!$1:$1048576,$A63,CI$1))","v":""},{"$f":"IF($A63=\"N/A\",Ref!$B$36,INDEX(Ranks!$1:$1048576,$A63,CJ$1))","v":""},{"$f":"IF($A63=\"N/A\",Ref!$B$36,INDEX(Ranks!$1:$1048576,$A63,CK$1))","v":""},{"$f":"IF($A63=\"N/A\",Ref!$B$36,INDEX(Ranks!$1:$1048576,$A63,CL$1))","v":""},{"$f":"IF($A63=\"N/A\",Ref!$B$36,INDEX(Ranks!$1:$1048576,$A63,CM$1))","v":""},{"$f":"IF($A63=\"N/A\",Ref!$B$36,INDEX(Ranks!$1:$1048576,$A63,CN$1))","v":""},{"$f":"IF($A63=\"N/A\",Ref!$B$36,INDEX(Ranks!$1:$1048576,$A63,CO$1))","v":""},{"$f":"IF($A63=\"N/A\",Ref!$B$36,INDEX(Ranks!$1:$1048576,$A63,CP$1))","v":""},{"$f":"IF($A63=\"N/A\",Ref!$B$36,INDEX(Ranks!$1:$1048576,$A63,CQ$1))","v":""},{"$f":"IF($A63=\"N/A\",Ref!$B$36,INDEX(Ranks!$1:$1048576,$A63,CR$1))","v":""},{"$f":"IF($A63=\"N/A\",Ref!$B$36,INDEX(Ranks!$1:$1048576,$A63,CS$1))","v":""},{"$f":"IF($A63=\"N/A\",Ref!$B$36,INDEX(Ranks!$1:$1048576,$A63,CT$1))","v":""},{"$f":"IF($A63=\"N/A\",Ref!$B$36,INDEX(Ranks!$1:$1048576,$A63,CU$1))","v":""},{"$f":"IF($A63=\"N/A\",Ref!$B$36,INDEX(Ranks!$1:$1048576,$A63,CV$1))","v":""},{"$f":"IF($A63=\"N/A\",Ref!$B$36,INDEX(Ranks!$1:$1048576,$A63,CW$1))","v":""},{"$f":"IF($A63=\"N/A\",Ref!$B$36,INDEX(Ranks!$1:$1048576,$A63,CX$1))","v":""},{"$f":"IF($A63=\"N/A\",Ref!$B$36,INDEX(Ranks!$1:$1048576,$A63,CY$1))","v":""},{"$f":"IF($A63=\"N/A\",Ref!$B$36,INDEX(Ranks!$1:$1048576,$A63,CZ$1))","v":""},{"$f":"IF($A63=\"N/A\",Ref!$B$36,INDEX(Ranks!$1:$1048576,$A63,DA$1))","v":""},{"$f":"IF($A63=\"N/A\",Ref!$B$36,INDEX(Ranks!$1:$1048576,$A63,DB$1))","v":""},{"$f":"IF($A63=\"N/A\",Ref!$B$36,INDEX(Ranks!$1:$1048576,$A63,DC$1))","v":""},{"$f":"IF($A63=\"N/A\",Ref!$B$36,INDEX(Ranks!$1:$1048576,$A63,DD$1))","v":""},{"$f":"IF($A63=\"N/A\",Ref!$B$36,INDEX(Ranks!$1:$1048576,$A63,DE$1))","v":""},{"$f":"IF($A63=\"N/A\",Ref!$B$36,INDEX(Ranks!$1:$1048576,$A63,DF$1))","v":""},{"$f":"IF($A63=\"N/A\",Ref!$B$36,INDEX(Ranks!$1:$1048576,$A63,DG$1))","v":""},{"$f":"IF($A63=\"N/A\",Ref!$B$36,INDEX(Ranks!$1:$1048576,$A63,DH$1))","v":""},{"$f":"IF($A63=\"N/A\",Ref!$B$36,INDEX(Ranks!$1:$1048576,$A63,DI$1))","v":""},{"$f":"IF($A63=\"N/A\",Ref!$B$36,INDEX(Ranks!$1:$1048576,$A63,DJ$1))","v":""},{"$f":"IF($A63=\"N/A\",Ref!$B$36,INDEX(Ranks!$1:$1048576,$A63,DK$1))","v":""},{"$f":"IF($A63=\"N/A\",Ref!$B$36,INDEX(Ranks!$1:$1048576,$A63,DL$1))","v":""},{"$f":"IF($A63=\"N/A\",Ref!$B$36,INDEX(Ranks!$1:$1048576,$A63,DM$1))","v":""},{"$f":"IF($A63=\"N/A\",Ref!$B$36,INDEX(Ranks!$1:$1048576,$A63,DN$1))","v":""},{"$f":"IF($A63=\"N/A\",Ref!$B$36,INDEX(Ranks!$1:$1048576,$A63,DO$1))","v":""},{"$f":"IF($A63=\"N/A\",Ref!$B$36,INDEX(Ranks!$1:$1048576,$A63,DP$1))","v":""},{"$f":"IF($A63=\"N/A\",Ref!$B$36,INDEX(Ranks!$1:$1048576,$A63,DQ$1))","v":""},{"$f":"IF($A63=\"N/A\",Ref!$B$36,INDEX(Ranks!$1:$1048576,$A63,DR$1))","v":""},{"$f":"IF($A63=\"N/A\",Ref!$B$36,INDEX(Ranks!$1:$1048576,$A63,DS$1))","v":""},{"$f":"IF($A63=\"N/A\",Ref!$B$36,INDEX(Ranks!$1:$1048576,$A63,DT$1))","v":""},{"$f":"IF($A63=\"N/A\",Ref!$B$36,INDEX(Ranks!$1:$1048576,$A63,DU$1))","v":""},{"$f":"IF($A63=\"N/A\",Ref!$B$36,INDEX(Ranks!$1:$1048576,$A63,DV$1))","v":""},{"$f":"IF($A63=\"N/A\",Ref!$B$36,INDEX(Ranks!$1:$1048576,$A63,DW$1))","v":""},{"$f":"IF($A63=\"N/A\",Ref!$B$36,INDEX(Ranks!$1:$1048576,$A63,DX$1))","v":""},{"$f":"IF($A63=\"N/A\",Ref!$B$36,INDEX(Ranks!$1:$1048576,$A63,DY$1))","v":""},{"$f":"IF($A63=\"N/A\",Ref!$B$36,INDEX(Ranks!$1:$1048576,$A63,DZ$1))","v":""},{"$f":"IF($A63=\"N/A\",Ref!$B$36,INDEX(Ranks!$1:$1048576,$A63,EA$1))","v":""},{"$f":"IF($A63=\"N/A\",Ref!$B$36,INDEX(Ranks!$1:$1048576,$A63,EB$1))","v":""}]
[{"$f":"IFERROR(MATCH('Portfolio Page'!L64,Ranks!L:L,0),\"N/A\")","v":"N/A"},null,{"$f":"IF($A64=\"N/A\",\"\",INDEX(Ranks!$1:$1048576,$A64,C$1))","v":""},{"$f":"IF($A64=\"N/A\",Ref!$B$36,INDEX(Ranks!$1:$1048576,$A64,D$1))","v":""},{"$f":"IF($A64=\"N/A\",Ref!$B$36,INDEX(Ranks!$1:$1048576,$A64,E$1))","v":""},{"$f":"IF($A64=\"N/A\",\"\",INDEX(Ranks!$1:$1048576,$A64,F$1))","v":""},{"$f":"IF($A64=\"N/A\",\"\",INDEX(Ranks!$1:$1048576,$A64,G$1))","v":""},{"$f":"IF($A64=\"N/A\",\"\",INDEX(Ranks!$1:$1048576,$A64,H$1))","v":""},{"$f":"IF($A64=\"N/A\",\"\",INDEX(Ranks!$1:$1048576,$A64,I$1))","v":""},{"$f":"IF($A64=\"N/A\",\"\",INDEX(Ranks!$1:$1048576,$A64,J$1))","v":""},{"$f":"IF($A64=\"N/A\",\"\",INDEX(Ranks!$1:$1048576,$A64,K$1))","v":""},null,{"$f":"IF($A64=\"N/A\",Ref!$B$36,INDEX(Ranks!$1:$1048576,$A64,M$1))","v":""},{"$f":"IF($A64=\"N/A\",Ref!$B$36,INDEX(Ranks!$1:$1048576,$A64,N$1))","v":""},{"$f":"IF($A64=\"N/A\",Ref!$B$36,INDEX(Ranks!$1:$1048576,$A64,O$1))","v":""},{"$f":"IF($A64=\"N/A\",Ref!$B$36,INDEX(Ranks!$1:$1048576,$A64,P$1))","v":""},{"$f":"IF($A64=\"N/A\",Ref!$B$36,INDEX(Ranks!$1:$1048576,$A64,Q$1))","v":""},{"$f":"IF($A64=\"N/A\",Ref!$B$36,INDEX(Ranks!$1:$1048576,$A64,R$1))","v":""},{"$f":"IF($A64=\"N/A\",Ref!$B$36,INDEX(Ranks!$1:$1048576,$A64,S$1))","v":""},{"$f":"IF($A64=\"N/A\",Ref!$B$36,INDEX(Ranks!$1:$1048576,$A64,T$1))","v":""},{"$f":"IF($A64=\"N/A\",Ref!$B$36,INDEX(Ranks!$1:$1048576,$A64,U$1))","v":""},{"$f":"IF($A64=\"N/A\",Ref!$B$36,INDEX(Ranks!$1:$1048576,$A64,V$1))","v":""},{"$f":"IF($A64=\"N/A\",Ref!$B$36,INDEX(Ranks!$1:$1048576,$A64,W$1))","v":""},{"$f":"IF($A64=\"N/A\",Ref!$B$36,INDEX(Ranks!$1:$1048576,$A64,X$1))","v":""},{"$f":"IF($A64=\"N/A\",Ref!$B$36,INDEX(Ranks!$1:$1048576,$A64,Y$1))","v":""},{"$f":"IF($A64=\"N/A\",Ref!$B$36,INDEX(Ranks!$1:$1048576,$A64,Z$1))","v":""},{"$f":"IF($A64=\"N/A\",Ref!$B$36,INDEX(Ranks!$1:$1048576,$A64,AA$1))","v":""},{"$f":"IF($A64=\"N/A\",Ref!$B$36,INDEX(Ranks!$1:$1048576,$A64,AB$1))","v":""},{"$f":"IF($A64=\"N/A\",Ref!$B$36,INDEX(Ranks!$1:$1048576,$A64,AC$1))","v":""},{"$f":"IF($A64=\"N/A\",Ref!$B$36,INDEX(Ranks!$1:$1048576,$A64,AD$1))","v":""},{"$f":"IF($A64=\"N/A\",Ref!$B$36,INDEX(Ranks!$1:$1048576,$A64,AE$1))","v":""},{"$f":"IF($A64=\"N/A\",Ref!$B$36,INDEX(Ranks!$1:$1048576,$A64,AF$1))","v":""},{"$f":"IF($A64=\"N/A\",Ref!$B$36,INDEX(Ranks!$1:$1048576,$A64,AG$1))","v":""},{"$f":"IF($A64=\"N/A\",Ref!$B$36,INDEX(Ranks!$1:$1048576,$A64,AH$1))","v":""},{"$f":"IF($A64=\"N/A\",Ref!$B$36,INDEX(Ranks!$1:$1048576,$A64,AI$1))","v":""},{"$f":"IF($A64=\"N/A\",Ref!$B$36,INDEX(Ranks!$1:$1048576,$A64,AJ$1))","v":""},{"$f":"IF($A64=\"N/A\",Ref!$B$36,INDEX(Ranks!$1:$1048576,$A64,AK$1))","v":""},{"$f":"IF($A64=\"N/A\",Ref!$B$36,INDEX(Ranks!$1:$1048576,$A64,AL$1))","v":""},{"$f":"IF($A64=\"N/A\",Ref!$B$36,INDEX(Ranks!$1:$1048576,$A64,AM$1))","v":""},{"$f":"IF($A64=\"N/A\",Ref!$B$36,INDEX(Ranks!$1:$1048576,$A64,AN$1))","v":""},{"$f":"IF($A64=\"N/A\",Ref!$B$36,INDEX(Ranks!$1:$1048576,$A64,AO$1))","v":""},{"$f":"IF($A64=\"N/A\",Ref!$B$36,INDEX(Ranks!$1:$1048576,$A64,AP$1))","v":""},{"$f":"IF($A64=\"N/A\",Ref!$B$36,INDEX(Ranks!$1:$1048576,$A64,AQ$1))","v":""},{"$f":"IF($A64=\"N/A\",Ref!$B$36,INDEX(Ranks!$1:$1048576,$A64,AR$1))","v":""},{"$f":"IF($A64=\"N/A\",Ref!$B$36,INDEX(Ranks!$1:$1048576,$A64,AS$1))","v":""},{"$f":"IF($A64=\"N/A\",Ref!$B$36,INDEX(Ranks!$1:$1048576,$A64,AT$1))","v":""},{"$f":"IF($A64=\"N/A\",Ref!$B$36,INDEX(Ranks!$1:$1048576,$A64,AU$1))","v":""},{"$f":"IF($A64=\"N/A\",Ref!$B$36,INDEX(Ranks!$1:$1048576,$A64,AV$1))","v":""},{"$f":"IF($A64=\"N/A\",Ref!$B$36,INDEX(Ranks!$1:$1048576,$A64,AW$1))","v":""},{"$f":"IF($A64=\"N/A\",Ref!$B$36,INDEX(Ranks!$1:$1048576,$A64,AX$1))","v":""},{"$f":"IF($A64=\"N/A\",Ref!$B$36,INDEX(Ranks!$1:$1048576,$A64,AY$1))","v":""},{"$f":"IF($A64=\"N/A\",Ref!$B$36,INDEX(Ranks!$1:$1048576,$A64,AZ$1))","v":""},{"$f":"IF($A64=\"N/A\",Ref!$B$36,INDEX(Ranks!$1:$1048576,$A64,BA$1))","v":""},{"$f":"IF($A64=\"N/A\",Ref!$B$36,INDEX(Ranks!$1:$1048576,$A64,BB$1))","v":""},{"$f":"IF($A64=\"N/A\",Ref!$B$36,INDEX(Ranks!$1:$1048576,$A64,BC$1))","v":""},{"$f":"IF($A64=\"N/A\",Ref!$B$36,INDEX(Ranks!$1:$1048576,$A64,BD$1))","v":""},{"$f":"IF($A64=\"N/A\",Ref!$B$36,INDEX(Ranks!$1:$1048576,$A64,BE$1))","v":""},{"$f":"IF($A64=\"N/A\",Ref!$B$36,INDEX(Ranks!$1:$1048576,$A64,BF$1))","v":""},{"$f":"IF($A64=\"N/A\",Ref!$B$36,INDEX(Ranks!$1:$1048576,$A64,BG$1))","v":""},{"$f":"IF($A64=\"N/A\",Ref!$B$36,INDEX(Ranks!$1:$1048576,$A64,BH$1))","v":""},{"$f":"IF($A64=\"N/A\",Ref!$B$36,INDEX(Ranks!$1:$1048576,$A64,BI$1))","v":""},{"$f":"IF($A64=\"N/A\",Ref!$B$36,INDEX(Ranks!$1:$1048576,$A64,BJ$1))","v":""},{"$f":"IF($A64=\"N/A\",Ref!$B$36,INDEX(Ranks!$1:$1048576,$A64,BK$1))","v":""},{"$f":"IF($A64=\"N/A\",Ref!$B$36,INDEX(Ranks!$1:$1048576,$A64,BL$1))","v":""},{"$f":"IF($A64=\"N/A\",Ref!$B$36,INDEX(Ranks!$1:$1048576,$A64,BM$1))","v":""},{"$f":"IF($A64=\"N/A\",Ref!$B$36,INDEX(Ranks!$1:$1048576,$A64,BN$1))","v":""},{"$f":"IF($A64=\"N/A\",Ref!$B$36,INDEX(Ranks!$1:$1048576,$A64,BO$1))","v":""},{"$f":"IF($A64=\"N/A\",Ref!$B$36,INDEX(Ranks!$1:$1048576,$A64,BP$1))","v":""},{"$f":"IF($A64=\"N/A\",Ref!$B$36,INDEX(Ranks!$1:$1048576,$A64,BQ$1))","v":""},{"$f":"IF($A64=\"N/A\",Ref!$B$36,INDEX(Ranks!$1:$1048576,$A64,BR$1))","v":""},{"$f":"IF($A64=\"N/A\",Ref!$B$36,INDEX(Ranks!$1:$1048576,$A64,BS$1))","v":""},{"$f":"IF($A64=\"N/A\",Ref!$B$36,INDEX(Ranks!$1:$1048576,$A64,BT$1))","v":""},{"$f":"IF($A64=\"N/A\",Ref!$B$36,INDEX(Ranks!$1:$1048576,$A64,BU$1))","v":""},{"$f":"IF($A64=\"N/A\",Ref!$B$36,INDEX(Ranks!$1:$1048576,$A64,BV$1))","v":""},{"$f":"IF($A64=\"N/A\",Ref!$B$36,INDEX(Ranks!$1:$1048576,$A64,BW$1))","v":""},{"$f":"IF($A64=\"N/A\",Ref!$B$36,INDEX(Ranks!$1:$1048576,$A64,BX$1))","v":""},{"$f":"IF($A64=\"N/A\",Ref!$B$36,INDEX(Ranks!$1:$1048576,$A64,BY$1))","v":""},{"$f":"IF($A64=\"N/A\",Ref!$B$36,INDEX(Ranks!$1:$1048576,$A64,BZ$1))","v":""},{"$f":"IF($A64=\"N/A\",Ref!$B$36,INDEX(Ranks!$1:$1048576,$A64,CA$1))","v":""},{"$f":"IF($A64=\"N/A\",Ref!$B$36,INDEX(Ranks!$1:$1048576,$A64,CB$1))","v":""},{"$f":"IF($A64=\"N/A\",Ref!$B$36,INDEX(Ranks!$1:$1048576,$A64,CC$1))","v":""},{"$f":"IF($A64=\"N/A\",Ref!$B$36,INDEX(Ranks!$1:$1048576,$A64,CD$1))","v":""},{"$f":"IF($A64=\"N/A\",Ref!$B$36,INDEX(Ranks!$1:$1048576,$A64,CE$1))","v":""},{"$f":"IF($A64=\"N/A\",Ref!$B$36,INDEX(Ranks!$1:$1048576,$A64,CF$1))","v":""},{"$f":"IF($A64=\"N/A\",Ref!$B$36,INDEX(Ranks!$1:$1048576,$A64,CG$1))","v":""},{"$f":"IF($A64=\"N/A\",Ref!$B$36,INDEX(Ranks!$1:$1048576,$A64,CH$1))","v":""},{"$f":"IF($A64=\"N/A\",Ref!$B$36,INDEX(Ranks!$1:$1048576,$A64,CI$1))","v":""},{"$f":"IF($A64=\"N/A\",Ref!$B$36,INDEX(Ranks!$1:$1048576,$A64,CJ$1))","v":""},{"$f":"IF($A64=\"N/A\",Ref!$B$36,INDEX(Ranks!$1:$1048576,$A64,CK$1))","v":""},{"$f":"IF($A64=\"N/A\",Ref!$B$36,INDEX(Ranks!$1:$1048576,$A64,CL$1))","v":""},{"$f":"IF($A64=\"N/A\",Ref!$B$36,INDEX(Ranks!$1:$1048576,$A64,CM$1))","v":""},{"$f":"IF($A64=\"N/A\",Ref!$B$36,INDEX(Ranks!$1:$1048576,$A64,CN$1))","v":""},{"$f":"IF($A64=\"N/A\",Ref!$B$36,INDEX(Ranks!$1:$1048576,$A64,CO$1))","v":""},{"$f":"IF($A64=\"N/A\",Ref!$B$36,INDEX(Ranks!$1:$1048576,$A64,CP$1))","v":""},{"$f":"IF($A64=\"N/A\",Ref!$B$36,INDEX(Ranks!$1:$1048576,$A64,CQ$1))","v":""},{"$f":"IF($A64=\"N/A\",Ref!$B$36,INDEX(Ranks!$1:$1048576,$A64,CR$1))","v":""},{"$f":"IF($A64=\"N/A\",Ref!$B$36,INDEX(Ranks!$1:$1048576,$A64,CS$1))","v":""},{"$f":"IF($A64=\"N/A\",Ref!$B$36,INDEX(Ranks!$1:$1048576,$A64,CT$1))","v":""},{"$f":"IF($A64=\"N/A\",Ref!$B$36,INDEX(Ranks!$1:$1048576,$A64,CU$1))","v":""},{"$f":"IF($A64=\"N/A\",Ref!$B$36,INDEX(Ranks!$1:$1048576,$A64,CV$1))","v":""},{"$f":"IF($A64=\"N/A\",Ref!$B$36,INDEX(Ranks!$1:$1048576,$A64,CW$1))","v":""},{"$f":"IF($A64=\"N/A\",Ref!$B$36,INDEX(Ranks!$1:$1048576,$A64,CX$1))","v":""},{"$f":"IF($A64=\"N/A\",Ref!$B$36,INDEX(Ranks!$1:$1048576,$A64,CY$1))","v":""},{"$f":"IF($A64=\"N/A\",Ref!$B$36,INDEX(Ranks!$1:$1048576,$A64,CZ$1))","v":""},{"$f":"IF($A64=\"N/A\",Ref!$B$36,INDEX(Ranks!$1:$1048576,$A64,DA$1))","v":""},{"$f":"IF($A64=\"N/A\",Ref!$B$36,INDEX(Ranks!$1:$1048576,$A64,DB$1))","v":""},{"$f":"IF($A64=\"N/A\",Ref!$B$36,INDEX(Ranks!$1:$1048576,$A64,DC$1))","v":""},{"$f":"IF($A64=\"N/A\",Ref!$B$36,INDEX(Ranks!$1:$1048576,$A64,DD$1))","v":""},{"$f":"IF($A64=\"N/A\",Ref!$B$36,INDEX(Ranks!$1:$1048576,$A64,DE$1))","v":""},{"$f":"IF($A64=\"N/A\",Ref!$B$36,INDEX(Ranks!$1:$1048576,$A64,DF$1))","v":""},{"$f":"IF($A64=\"N/A\",Ref!$B$36,INDEX(Ranks!$1:$1048576,$A64,DG$1))","v":""},{"$f":"IF($A64=\"N/A\",Ref!$B$36,INDEX(Ranks!$1:$1048576,$A64,DH$1))","v":""},{"$f":"IF($A64=\"N/A\",Ref!$B$36,INDEX(Ranks!$1:$1048576,$A64,DI$1))","v":""},{"$f":"IF($A64=\"N/A\",Ref!$B$36,INDEX(Ranks!$1:$1048576,$A64,DJ$1))","v":""},{"$f":"IF($A64=\"N/A\",Ref!$B$36,INDEX(Ranks!$1:$1048576,$A64,DK$1))","v":""},{"$f":"IF($A64=\"N/A\",Ref!$B$36,INDEX(Ranks!$1:$1048576,$A64,DL$1))","v":""},{"$f":"IF($A64=\"N/A\",Ref!$B$36,INDEX(Ranks!$1:$1048576,$A64,DM$1))","v":""},{"$f":"IF($A64=\"N/A\",Ref!$B$36,INDEX(Ranks!$1:$1048576,$A64,DN$1))","v":""},{"$f":"IF($A64=\"N/A\",Ref!$B$36,INDEX(Ranks!$1:$1048576,$A64,DO$1))","v":""},{"$f":"IF($A64=\"N/A\",Ref!$B$36,INDEX(Ranks!$1:$1048576,$A64,DP$1))","v":""},{"$f":"IF($A64=\"N/A\",Ref!$B$36,INDEX(Ranks!$1:$1048576,$A64,DQ$1))","v":""},{"$f":"IF($A64=\"N/A\",Ref!$B$36,INDEX(Ranks!$1:$1048576,$A64,DR$1))","v":""},{"$f":"IF($A64=\"N/A\",Ref!$B$36,INDEX(Ranks!$1:$1048576,$A64,DS$1))","v":""},{"$f":"IF($A64=\"N/A\",Ref!$B$36,INDEX(Ranks!$1:$1048576,$A64,DT$1))","v":""},{"$f":"IF($A64=\"N/A\",Ref!$B$36,INDEX(Ranks!$1:$1048576,$A64,DU$1))","v":""},{"$f":"IF($A64=\"N/A\",Ref!$B$36,INDEX(Ranks!$1:$1048576,$A64,DV$1))","v":""},{"$f":"IF($A64=\"N/A\",Ref!$B$36,INDEX(Ranks!$1:$1048576,$A64,DW$1))","v":""},{"$f":"IF($A64=\"N/A\",Ref!$B$36,INDEX(Ranks!$1:$1048576,$A64,DX$1))","v":""},{"$f":"IF($A64=\"N/A\",Ref!$B$36,INDEX(Ranks!$1:$1048576,$A64,DY$1))","v":""},{"$f":"IF($A64=\"N/A\",Ref!$B$36,INDEX(Ranks!$1:$1048576,$A64,DZ$1))","v":""},{"$f":"IF($A64=\"N/A\",Ref!$B$36,INDEX(Ranks!$1:$1048576,$A64,EA$1))","v":""},{"$f":"IF($A64=\"N/A\",Ref!$B$36,INDEX(Ranks!$1:$1048576,$A64,EB$1))","v":""}]
[{"$f":"IFERROR(MATCH('Portfolio Page'!L65,Ranks!L:L,0),\"N/A\")","v":"N/A"},null,{"$f":"IF($A65=\"N/A\",\"\",INDEX(Ranks!$1:$1048576,$A65,C$1))","v":""},{"$f":"IF($A65=\"N/A\",Ref!$B$36,INDEX(Ranks!$1:$1048576,$A65,D$1))","v":""},{"$f":"IF($A65=\"N/A\",Ref!$B$36,INDEX(Ranks!$1:$1048576,$A65,E$1))","v":""},{"$f":"IF($A65=\"N/A\",\"\",INDEX(Ranks!$1:$1048576,$A65,F$1))","v":""},{"$f":"IF($A65=\"N/A\",\"\",INDEX(Ranks!$1:$1048576,$A65,G$1))","v":""},{"$f":"IF($A65=\"N/A\",\"\",INDEX(Ranks!$1:$1048576,$A65,H$1))","v":""},{"$f":"IF($A65=\"N/A\",\"\",INDEX(Ranks!$1:$1048576,$A65,I$1))","v":""},{"$f":"IF($A65=\"N/A\",\"\",INDEX(Ranks!$1:$1048576,$A65,J$1))","v":""},{"$f":"IF($A65=\"N/A\",\"\",INDEX(Ranks!$1:$1048576,$A65,K$1))","v":""},null,{"$f":"IF($A65=\"N/A\",Ref!$B$36,INDEX(Ranks!$1:$1048576,$A65,M$1))","v":""},{"$f":"IF($A65=\"N/A\",Ref!$B$36,INDEX(Ranks!$1:$1048576,$A65,N$1))","v":""},{"$f":"IF($A65=\"N/A\",Ref!$B$36,INDEX(Ranks!$1:$1048576,$A65,O$1))","v":""},{"$f":"IF($A65=\"N/A\",Ref!$B$36,INDEX(Ranks!$1:$1048576,$A65,P$1))","v":""},{"$f":"IF($A65=\"N/A\",Ref!$B$36,INDEX(Ranks!$1:$1048576,$A65,Q$1))","v":""},{"$f":"IF($A65=\"N/A\",Ref!$B$36,INDEX(Ranks!$1:$1048576,$A65,R$1))","v":""},{"$f":"IF($A65=\"N/A\",Ref!$B$36,INDEX(Ranks!$1:$1048576,$A65,S$1))","v":""},{"$f":"IF($A65=\"N/A\",Ref!$B$36,INDEX(Ranks!$1:$1048576,$A65,T$1))","v":""},{"$f":"IF($A65=\"N/A\",Ref!$B$36,INDEX(Ranks!$1:$1048576,$A65,U$1))","v":""},{"$f":"IF($A65=\"N/A\",Ref!$B$36,INDEX(Ranks!$1:$1048576,$A65,V$1))","v":""},{"$f":"IF($A65=\"N/A\",Ref!$B$36,INDEX(Ranks!$1:$1048576,$A65,W$1))","v":""},{"$f":"IF($A65=\"N/A\",Ref!$B$36,INDEX(Ranks!$1:$1048576,$A65,X$1))","v":""},{"$f":"IF($A65=\"N/A\",Ref!$B$36,INDEX(Ranks!$1:$1048576,$A65,Y$1))","v":""},{"$f":"IF($A65=\"N/A\",Ref!$B$36,INDEX(Ranks!$1:$1048576,$A65,Z$1))","v":""},{"$f":"IF($A65=\"N/A\",Ref!$B$36,INDEX(Ranks!$1:$1048576,$A65,AA$1))","v":""},{"$f":"IF($A65=\"N/A\",Ref!$B$36,INDEX(Ranks!$1:$1048576,$A65,AB$1))","v":""},{"$f":"IF($A65=\"N/A\",Ref!$B$36,INDEX(Ranks!$1:$1048576,$A65,AC$1))","v":""},{"$f":"IF($A65=\"N/A\",Ref!$B$36,INDEX(Ranks!$1:$1048576,$A65,AD$1))","v":""},{"$f":"IF($A65=\"N/A\",Ref!$B$36,INDEX(Ranks!$1:$1048576,$A65,AE$1))","v":""},{"$f":"IF($A65=\"N/A\",Ref!$B$36,INDEX(Ranks!$1:$1048576,$A65,AF$1))","v":""},{"$f":"IF($A65=\"N/A\",Ref!$B$36,INDEX(Ranks!$1:$1048576,$A65,AG$1))","v":""},{"$f":"IF($A65=\"N/A\",Ref!$B$36,INDEX(Ranks!$1:$1048576,$A65,AH$1))","v":""},{"$f":"IF($A65=\"N/A\",Ref!$B$36,INDEX(Ranks!$1:$1048576,$A65,AI$1))","v":""},{"$f":"IF($A65=\"N/A\",Ref!$B$36,INDEX(Ranks!$1:$1048576,$A65,AJ$1))","v":""},{"$f":"IF($A65=\"N/A\",Ref!$B$36,INDEX(Ranks!$1:$1048576,$A65,AK$1))","v":""},{"$f":"IF($A65=\"N/A\",Ref!$B$36,INDEX(Ranks!$1:$1048576,$A65,AL$1))","v":""},{"$f":"IF($A65=\"N/A\",Ref!$B$36,INDEX(Ranks!$1:$1048576,$A65,AM$1))","v":""},{"$f":"IF($A65=\"N/A\",Ref!$B$36,INDEX(Ranks!$1:$1048576,$A65,AN$1))","v":""},{"$f":"IF($A65=\"N/A\",Ref!$B$36,INDEX(Ranks!$1:$1048576,$A65,AO$1))","v":""},{"$f":"IF($A65=\"N/A\",Ref!$B$36,INDEX(Ranks!$1:$1048576,$A65,AP$1))","v":""},{"$f":"IF($A65=\"N/A\",Ref!$B$36,INDEX(Ranks!$1:$1048576,$A65,AQ$1))","v":""},{"$f":"IF($A65=\"N/A\",Ref!$B$36,INDEX(Ranks!$1:$1048576,$A65,AR$1))","v":""},{"$f":"IF($A65=\"N/A\",Ref!$B$36,INDEX(Ranks!$1:$1048576,$A65,AS$1))","v":""},{"$f":"IF($A65=\"N/A\",Ref!$B$36,INDEX(Ranks!$1:$1048576,$A65,AT$1))","v":""},{"$f":"IF($A65=\"N/A\",Ref!$B$36,INDEX(Ranks!$1:$1048576,$A65,AU$1))","v":""},{"$f":"IF($A65=\"N/A\",Ref!$B$36,INDEX(Ranks!$1:$1048576,$A65,AV$1))","v":""},{"$f":"IF($A65=\"N/A\",Ref!$B$36,INDEX(Ranks!$1:$1048576,$A65,AW$1))","v":""},{"$f":"IF($A65=\"N/A\",Ref!$B$36,INDEX(Ranks!$1:$1048576,$A65,AX$1))","v":""},{"$f":"IF($A65=\"N/A\",Ref!$B$36,INDEX(Ranks!$1:$1048576,$A65,AY$1))","v":""},{"$f":"IF($A65=\"N/A\",Ref!$B$36,INDEX(Ranks!$1:$1048576,$A65,AZ$1))","v":""},{"$f":"IF($A65=\"N/A\",Ref!$B$36,INDEX(Ranks!$1:$1048576,$A65,BA$1))","v":""},{"$f":"IF($A65=\"N/A\",Ref!$B$36,INDEX(Ranks!$1:$1048576,$A65,BB$1))","v":""},{"$f":"IF($A65=\"N/A\",Ref!$B$36,INDEX(Ranks!$1:$1048576,$A65,BC$1))","v":""},{"$f":"IF($A65=\"N/A\",Ref!$B$36,INDEX(Ranks!$1:$1048576,$A65,BD$1))","v":""},{"$f":"IF($A65=\"N/A\",Ref!$B$36,INDEX(Ranks!$1:$1048576,$A65,BE$1))","v":""},{"$f":"IF($A65=\"N/A\",Ref!$B$36,INDEX(Ranks!$1:$1048576,$A65,BF$1))","v":""},{"$f":"IF($A65=\"N/A\",Ref!$B$36,INDEX(Ranks!$1:$1048576,$A65,BG$1))","v":""},{"$f":"IF($A65=\"N/A\",Ref!$B$36,INDEX(Ranks!$1:$1048576,$A65,BH$1))","v":""},{"$f":"IF($A65=\"N/A\",Ref!$B$36,INDEX(Ranks!$1:$1048576,$A65,BI$1))","v":""},{"$f":"IF($A65=\"N/A\",Ref!$B$36,INDEX(Ranks!$1:$1048576,$A65,BJ$1))","v":""},{"$f":"IF($A65=\"N/A\",Ref!$B$36,INDEX(Ranks!$1:$1048576,$A65,BK$1))","v":""},{"$f":"IF($A65=\"N/A\",Ref!$B$36,INDEX(Ranks!$1:$1048576,$A65,BL$1))","v":""},{"$f":"IF($A65=\"N/A\",Ref!$B$36,INDEX(Ranks!$1:$1048576,$A65,BM$1))","v":""},{"$f":"IF($A65=\"N/A\",Ref!$B$36,INDEX(Ranks!$1:$1048576,$A65,BN$1))","v":""},{"$f":"IF($A65=\"N/A\",Ref!$B$36,INDEX(Ranks!$1:$1048576,$A65,BO$1))","v":""},{"$f":"IF($A65=\"N/A\",Ref!$B$36,INDEX(Ranks!$1:$1048576,$A65,BP$1))","v":""},{"$f":"IF($A65=\"N/A\",Ref!$B$36,INDEX(Ranks!$1:$1048576,$A65,BQ$1))","v":""},{"$f":"IF($A65=\"N/A\",Ref!$B$36,INDEX(Ranks!$1:$1048576,$A65,BR$1))","v":""},{"$f":"IF($A65=\"N/A\",Ref!$B$36,INDEX(Ranks!$1:$1048576,$A65,BS$1))","v":""},{"$f":"IF($A65=\"N/A\",Ref!$B$36,INDEX(Ranks!$1:$1048576,$A65,BT$1))","v":""},{"$f":"IF($A65=\"N/A\",Ref!$B$36,INDEX(Ranks!$1:$1048576,$A65,BU$1))","v":""},{"$f":"IF($A65=\"N/A\",Ref!$B$36,INDEX(Ranks!$1:$1048576,$A65,BV$1))","v":""},{"$f":"IF($A65=\"N/A\",Ref!$B$36,INDEX(Ranks!$1:$1048576,$A65,BW$1))","v":""},{"$f":"IF($A65=\"N/A\",Ref!$B$36,INDEX(Ranks!$1:$1048576,$A65,BX$1))","v":""},{"$f":"IF($A65=\"N/A\",Ref!$B$36,INDEX(Ranks!$1:$1048576,$A65,BY$1))","v":""},{"$f":"IF($A65=\"N/A\",Ref!$B$36,INDEX(Ranks!$1:$1048576,$A65,BZ$1))","v":""},{"$f":"IF($A65=\"N/A\",Ref!$B$36,INDEX(Ranks!$1:$1048576,$A65,CA$1))","v":""},{"$f":"IF($A65=\"N/A\",Ref!$B$36,INDEX(Ranks!$1:$1048576,$A65,CB$1))","v":""},{"$f":"IF($A65=\"N/A\",Ref!$B$36,INDEX(Ranks!$1:$1048576,$A65,CC$1))","v":""},{"$f":"IF($A65=\"N/A\",Ref!$B$36,INDEX(Ranks!$1:$1048576,$A65,CD$1))","v":""},{"$f":"IF($A65=\"N/A\",Ref!$B$36,INDEX(Ranks!$1:$1048576,$A65,CE$1))","v":""},{"$f":"IF($A65=\"N/A\",Ref!$B$36,INDEX(Ranks!$1:$1048576,$A65,CF$1))","v":""},{"$f":"IF($A65=\"N/A\",Ref!$B$36,INDEX(Ranks!$1:$1048576,$A65,CG$1))","v":""},{"$f":"IF($A65=\"N/A\",Ref!$B$36,INDEX(Ranks!$1:$1048576,$A65,CH$1))","v":""},{"$f":"IF($A65=\"N/A\",Ref!$B$36,INDEX(Ranks!$1:$1048576,$A65,CI$1))","v":""},{"$f":"IF($A65=\"N/A\",Ref!$B$36,INDEX(Ranks!$1:$1048576,$A65,CJ$1))","v":""},{"$f":"IF($A65=\"N/A\",Ref!$B$36,INDEX(Ranks!$1:$1048576,$A65,CK$1))","v":""},{"$f":"IF($A65=\"N/A\",Ref!$B$36,INDEX(Ranks!$1:$1048576,$A65,CL$1))","v":""},{"$f":"IF($A65=\"N/A\",Ref!$B$36,INDEX(Ranks!$1:$1048576,$A65,CM$1))","v":""},{"$f":"IF($A65=\"N/A\",Ref!$B$36,INDEX(Ranks!$1:$1048576,$A65,CN$1))","v":""},{"$f":"IF($A65=\"N/A\",Ref!$B$36,INDEX(Ranks!$1:$1048576,$A65,CO$1))","v":""},{"$f":"IF($A65=\"N/A\",Ref!$B$36,INDEX(Ranks!$1:$1048576,$A65,CP$1))","v":""},{"$f":"IF($A65=\"N/A\",Ref!$B$36,INDEX(Ranks!$1:$1048576,$A65,CQ$1))","v":""},{"$f":"IF($A65=\"N/A\",Ref!$B$36,INDEX(Ranks!$1:$1048576,$A65,CR$1))","v":""},{"$f":"IF($A65=\"N/A\",Ref!$B$36,INDEX(Ranks!$1:$1048576,$A65,CS$1))","v":""},{"$f":"IF($A65=\"N/A\",Ref!$B$36,INDEX(Ranks!$1:$1048576,$A65,CT$1))","v":""},{"$f":"IF($A65=\"N/A\",Ref!$B$36,INDEX(Ranks!$1:$1048576,$A65,CU$1))","v":""},{"$f":"IF($A65=\"N/A\",Ref!$B$36,INDEX(Ranks!$1:$1048576,$A65,CV$1))","v":""},{"$f":"IF($A65=\"N/A\",Ref!$B$36,INDEX(Ranks!$1:$1048576,$A65,CW$1))","v":""},{"$f":"IF($A65=\"N/A\",Ref!$B$36,INDEX(Ranks!$1:$1048576,$A65,CX$1))","v":""},{"$f":"IF($A65=\"N/A\",Ref!$B$36,INDEX(Ranks!$1:$1048576,$A65,CY$1))","v":""},{"$f":"IF($A65=\"N/A\",Ref!$B$36,INDEX(Ranks!$1:$1048576,$A65,CZ$1))","v":""},{"$f":"IF($A65=\"N/A\",Ref!$B$36,INDEX(Ranks!$1:$1048576,$A65,DA$1))","v":""},{"$f":"IF($A65=\"N/A\",Ref!$B$36,INDEX(Ranks!$1:$1048576,$A65,DB$1))","v":""},{"$f":"IF($A65=\"N/A\",Ref!$B$36,INDEX(Ranks!$1:$1048576,$A65,DC$1))","v":""},{"$f":"IF($A65=\"N/A\",Ref!$B$36,INDEX(Ranks!$1:$1048576,$A65,DD$1))","v":""},{"$f":"IF($A65=\"N/A\",Ref!$B$36,INDEX(Ranks!$1:$1048576,$A65,DE$1))","v":""},{"$f":"IF($A65=\"N/A\",Ref!$B$36,INDEX(Ranks!$1:$1048576,$A65,DF$1))","v":""},{"$f":"IF($A65=\"N/A\",Ref!$B$36,INDEX(Ranks!$1:$1048576,$A65,DG$1))","v":""},{"$f":"IF($A65=\"N/A\",Ref!$B$36,INDEX(Ranks!$1:$1048576,$A65,DH$1))","v":""},{"$f":"IF($A65=\"N/A\",Ref!$B$36,INDEX(Ranks!$1:$1048576,$A65,DI$1))","v":""},{"$f":"IF($A65=\"N/A\",Ref!$B$36,INDEX(Ranks!$1:$1048576,$A65,DJ$1))","v":""},{"$f":"IF($A65=\"N/A\",Ref!$B$36,INDEX(Ranks!$1:$1048576,$A65,DK$1))","v":""},{"$f":"IF($A65=\"N/A\",Ref!$B$36,INDEX(Ranks!$1:$1048576,$A65,DL$1))","v":""},{"$f":"IF($A65=\"N/A\",Ref!$B$36,INDEX(Ranks!$1:$1048576,$A65,DM$1))","v":""},{"$f":"IF($A65=\"N/A\",Ref!$B$36,INDEX(Ranks!$1:$1048576,$A65,DN$1))","v":""},{"$f":"IF($A65=\"N/A\",Ref!$B$36,INDEX(Ranks!$1:$1048576,$A65,DO$1))","v":""},{"$f":"IF($A65=\"N/A\",Ref!$B$36,INDEX(Ranks!$1:$1048576,$A65,DP$1))","v":""},{"$f":"IF($A65=\"N/A\",Ref!$B$36,INDEX(Ranks!$1:$1048576,$A65,DQ$1))","v":""},{"$f":"IF($A65=\"N/A\",Ref!$B$36,INDEX(Ranks!$1:$1048576,$A65,DR$1))","v":""},{"$f":"IF($A65=\"N/A\",Ref!$B$36,INDEX(Ranks!$1:$1048576,$A65,DS$1))","v":""},{"$f":"IF($A65=\"N/A\",Ref!$B$36,INDEX(Ranks!$1:$1048576,$A65,DT$1))","v":""},{"$f":"IF($A65=\"N/A\",Ref!$B$36,INDEX(Ranks!$1:$1048576,$A65,DU$1))","v":""},{"$f":"IF($A65=\"N/A\",Ref!$B$36,INDEX(Ranks!$1:$1048576,$A65,DV$1))","v":""},{"$f":"IF($A65=\"N/A\",Ref!$B$36,INDEX(Ranks!$1:$1048576,$A65,DW$1))","v":""},{"$f":"IF($A65=\"N/A\",Ref!$B$36,INDEX(Ranks!$1:$1048576,$A65,DX$1))","v":""},{"$f":"IF($A65=\"N/A\",Ref!$B$36,INDEX(Ranks!$1:$1048576,$A65,DY$1))","v":""},{"$f":"IF($A65=\"N/A\",Ref!$B$36,INDEX(Ranks!$1:$1048576,$A65,DZ$1))","v":""},{"$f":"IF($A65=\"N/A\",Ref!$B$36,INDEX(Ranks!$1:$1048576,$A65,EA$1))","v":""},{"$f":"IF($A65=\"N/A\",Ref!$B$36,INDEX(Ranks!$1:$1048576,$A65,EB$1))","v":""}]
[{"$f":"IFERROR(MATCH('Portfolio Page'!L66,Ranks!L:L,0),\"N/A\")","v":"N/A"},null,{"$f":"IF($A66=\"N/A\",\"\",INDEX(Ranks!$1:$1048576,$A66,C$1))","v":""},{"$f":"IF($A66=\"N/A\",Ref!$B$36,INDEX(Ranks!$1:$1048576,$A66,D$1))","v":""},{"$f":"IF($A66=\"N/A\",Ref!$B$36,INDEX(Ranks!$1:$1048576,$A66,E$1))","v":""},{"$f":"IF($A66=\"N/A\",\"\",INDEX(Ranks!$1:$1048576,$A66,F$1))","v":""},{"$f":"IF($A66=\"N/A\",\"\",INDEX(Ranks!$1:$1048576,$A66,G$1))","v":""},{"$f":"IF($A66=\"N/A\",\"\",INDEX(Ranks!$1:$1048576,$A66,H$1))","v":""},{"$f":"IF($A66=\"N/A\",\"\",INDEX(Ranks!$1:$1048576,$A66,I$1))","v":""},{"$f":"IF($A66=\"N/A\",\"\",INDEX(Ranks!$1:$1048576,$A66,J$1))","v":""},{"$f":"IF($A66=\"N/A\",\"\",INDEX(Ranks!$1:$1048576,$A66,K$1))","v":""},null,{"$f":"IF($A66=\"N/A\",Ref!$B$36,INDEX(Ranks!$1:$1048576,$A66,M$1))","v":""},{"$f":"IF($A66=\"N/A\",Ref!$B$36,INDEX(Ranks!$1:$1048576,$A66,N$1))","v":""},{"$f":"IF($A66=\"N/A\",Ref!$B$36,INDEX(Ranks!$1:$1048576,$A66,O$1))","v":""},{"$f":"IF($A66=\"N/A\",Ref!$B$36,INDEX(Ranks!$1:$1048576,$A66,P$1))","v":""},{"$f":"IF($A66=\"N/A\",Ref!$B$36,INDEX(Ranks!$1:$1048576,$A66,Q$1))","v":""},{"$f":"IF($A66=\"N/A\",Ref!$B$36,INDEX(Ranks!$1:$1048576,$A66,R$1))","v":""},{"$f":"IF($A66=\"N/A\",Ref!$B$36,INDEX(Ranks!$1:$1048576,$A66,S$1))","v":""},{"$f":"IF($A66=\"N/A\",Ref!$B$36,INDEX(Ranks!$1:$1048576,$A66,T$1))","v":""},{"$f":"IF($A66=\"N/A\",Ref!$B$36,INDEX(Ranks!$1:$1048576,$A66,U$1))","v":""},{"$f":"IF($A66=\"N/A\",Ref!$B$36,INDEX(Ranks!$1:$1048576,$A66,V$1))","v":""},{"$f":"IF($A66=\"N/A\",Ref!$B$36,INDEX(Ranks!$1:$1048576,$A66,W$1))","v":""},{"$f":"IF($A66=\"N/A\",Ref!$B$36,INDEX(Ranks!$1:$1048576,$A66,X$1))","v":""},{"$f":"IF($A66=\"N/A\",Ref!$B$36,INDEX(Ranks!$1:$1048576,$A66,Y$1))","v":""},{"$f":"IF($A66=\"N/A\",Ref!$B$36,INDEX(Ranks!$1:$1048576,$A66,Z$1))","v":""},{"$f":"IF($A66=\"N/A\",Ref!$B$36,INDEX(Ranks!$1:$1048576,$A66,AA$1))","v":""},{"$f":"IF($A66=\"N/A\",Ref!$B$36,INDEX(Ranks!$1:$1048576,$A66,AB$1))","v":""},{"$f":"IF($A66=\"N/A\",Ref!$B$36,INDEX(Ranks!$1:$1048576,$A66,AC$1))","v":""},{"$f":"IF($A66=\"N/A\",Ref!$B$36,INDEX(Ranks!$1:$1048576,$A66,AD$1))","v":""},{"$f":"IF($A66=\"N/A\",Ref!$B$36,INDEX(Ranks!$1:$1048576,$A66,AE$1))","v":""},{"$f":"IF($A66=\"N/A\",Ref!$B$36,INDEX(Ranks!$1:$1048576,$A66,AF$1))","v":""},{"$f":"IF($A66=\"N/A\",Ref!$B$36,INDEX(Ranks!$1:$1048576,$A66,AG$1))","v":""},{"$f":"IF($A66=\"N/A\",Ref!$B$36,INDEX(Ranks!$1:$1048576,$A66,AH$1))","v":""},{"$f":"IF($A66=\"N/A\",Ref!$B$36,INDEX(Ranks!$1:$1048576,$A66,AI$1))","v":""},{"$f":"IF($A66=\"N/A\",Ref!$B$36,INDEX(Ranks!$1:$1048576,$A66,AJ$1))","v":""},{"$f":"IF($A66=\"N/A\",Ref!$B$36,INDEX(Ranks!$1:$1048576,$A66,AK$1))","v":""},{"$f":"IF($A66=\"N/A\",Ref!$B$36,INDEX(Ranks!$1:$1048576,$A66,AL$1))","v":""},{"$f":"IF($A66=\"N/A\",Ref!$B$36,INDEX(Ranks!$1:$1048576,$A66,AM$1))","v":""},{"$f":"IF($A66=\"N/A\",Ref!$B$36,INDEX(Ranks!$1:$1048576,$A66,AN$1))","v":""},{"$f":"IF($A66=\"N/A\",Ref!$B$36,INDEX(Ranks!$1:$1048576,$A66,AO$1))","v":""},{"$f":"IF($A66=\"N/A\",Ref!$B$36,INDEX(Ranks!$1:$1048576,$A66,AP$1))","v":""},{"$f":"IF($A66=\"N/A\",Ref!$B$36,INDEX(Ranks!$1:$1048576,$A66,AQ$1))","v":""},{"$f":"IF($A66=\"N/A\",Ref!$B$36,INDEX(Ranks!$1:$1048576,$A66,AR$1))","v":""},{"$f":"IF($A66=\"N/A\",Ref!$B$36,INDEX(Ranks!$1:$1048576,$A66,AS$1))","v":""},{"$f":"IF($A66=\"N/A\",Ref!$B$36,INDEX(Ranks!$1:$1048576,$A66,AT$1))","v":""},{"$f":"IF($A66=\"N/A\",Ref!$B$36,INDEX(Ranks!$1:$1048576,$A66,AU$1))","v":""},{"$f":"IF($A66=\"N/A\",Ref!$B$36,INDEX(Ranks!$1:$1048576,$A66,AV$1))","v":""},{"$f":"IF($A66=\"N/A\",Ref!$B$36,INDEX(Ranks!$1:$1048576,$A66,AW$1))","v":""},{"$f":"IF($A66=\"N/A\",Ref!$B$36,INDEX(Ranks!$1:$1048576,$A66,AX$1))","v":""},{"$f":"IF($A66=\"N/A\",Ref!$B$36,INDEX(Ranks!$1:$1048576,$A66,AY$1))","v":""},{"$f":"IF($A66=\"N/A\",Ref!$B$36,INDEX(Ranks!$1:$1048576,$A66,AZ$1))","v":""},{"$f":"IF($A66=\"N/A\",Ref!$B$36,INDEX(Ranks!$1:$1048576,$A66,BA$1))","v":""},{"$f":"IF($A66=\"N/A\",Ref!$B$36,INDEX(Ranks!$1:$1048576,$A66,BB$1))","v":""},{"$f":"IF($A66=\"N/A\",Ref!$B$36,INDEX(Ranks!$1:$1048576,$A66,BC$1))","v":""},{"$f":"IF($A66=\"N/A\",Ref!$B$36,INDEX(Ranks!$1:$1048576,$A66,BD$1))","v":""},{"$f":"IF($A66=\"N/A\",Ref!$B$36,INDEX(Ranks!$1:$1048576,$A66,BE$1))","v":""},{"$f":"IF($A66=\"N/A\",Ref!$B$36,INDEX(Ranks!$1:$1048576,$A66,BF$1))","v":""},{"$f":"IF($A66=\"N/A\",Ref!$B$36,INDEX(Ranks!$1:$1048576,$A66,BG$1))","v":""},{"$f":"IF($A66=\"N/A\",Ref!$B$36,INDEX(Ranks!$1:$1048576,$A66,BH$1))","v":""},{"$f":"IF($A66=\"N/A\",Ref!$B$36,INDEX(Ranks!$1:$1048576,$A66,BI$1))","v":""},{"$f":"IF($A66=\"N/A\",Ref!$B$36,INDEX(Ranks!$1:$1048576,$A66,BJ$1))","v":""},{"$f":"IF($A66=\"N/A\",Ref!$B$36,INDEX(Ranks!$1:$1048576,$A66,BK$1))","v":""},{"$f":"IF($A66=\"N/A\",Ref!$B$36,INDEX(Ranks!$1:$1048576,$A66,BL$1))","v":""},{"$f":"IF($A66=\"N/A\",Ref!$B$36,INDEX(Ranks!$1:$1048576,$A66,BM$1))","v":""},{"$f":"IF($A66=\"N/A\",Ref!$B$36,INDEX(Ranks!$1:$1048576,$A66,BN$1))","v":""},{"$f":"IF($A66=\"N/A\",Ref!$B$36,INDEX(Ranks!$1:$1048576,$A66,BO$1))","v":""},{"$f":"IF($A66=\"N/A\",Ref!$B$36,INDEX(Ranks!$1:$1048576,$A66,BP$1))","v":""},{"$f":"IF($A66=\"N/A\",Ref!$B$36,INDEX(Ranks!$1:$1048576,$A66,BQ$1))","v":""},{"$f":"IF($A66=\"N/A\",Ref!$B$36,INDEX(Ranks!$1:$1048576,$A66,BR$1))","v":""},{"$f":"IF($A66=\"N/A\",Ref!$B$36,INDEX(Ranks!$1:$1048576,$A66,BS$1))","v":""},{"$f":"IF($A66=\"N/A\",Ref!$B$36,INDEX(Ranks!$1:$1048576,$A66,BT$1))","v":""},{"$f":"IF($A66=\"N/A\",Ref!$B$36,INDEX(Ranks!$1:$1048576,$A66,BU$1))","v":""},{"$f":"IF($A66=\"N/A\",Ref!$B$36,INDEX(Ranks!$1:$1048576,$A66,BV$1))","v":""},{"$f":"IF($A66=\"N/A\",Ref!$B$36,INDEX(Ranks!$1:$1048576,$A66,BW$1))","v":""},{"$f":"IF($A66=\"N/A\",Ref!$B$36,INDEX(Ranks!$1:$1048576,$A66,BX$1))","v":""},{"$f":"IF($A66=\"N/A\",Ref!$B$36,INDEX(Ranks!$1:$1048576,$A66,BY$1))","v":""},{"$f":"IF($A66=\"N/A\",Ref!$B$36,INDEX(Ranks!$1:$1048576,$A66,BZ$1))","v":""},{"$f":"IF($A66=\"N/A\",Ref!$B$36,INDEX(Ranks!$1:$1048576,$A66,CA$1))","v":""},{"$f":"IF($A66=\"N/A\",Ref!$B$36,INDEX(Ranks!$1:$1048576,$A66,CB$1))","v":""},{"$f":"IF($A66=\"N/A\",Ref!$B$36,INDEX(Ranks!$1:$1048576,$A66,CC$1))","v":""},{"$f":"IF($A66=\"N/A\",Ref!$B$36,INDEX(Ranks!$1:$1048576,$A66,CD$1))","v":""},{"$f":"IF($A66=\"N/A\",Ref!$B$36,INDEX(Ranks!$1:$1048576,$A66,CE$1))","v":""},{"$f":"IF($A66=\"N/A\",Ref!$B$36,INDEX(Ranks!$1:$1048576,$A66,CF$1))","v":""},{"$f":"IF($A66=\"N/A\",Ref!$B$36,INDEX(Ranks!$1:$1048576,$A66,CG$1))","v":""},{"$f":"IF($A66=\"N/A\",Ref!$B$36,INDEX(Ranks!$1:$1048576,$A66,CH$1))","v":""},{"$f":"IF($A66=\"N/A\",Ref!$B$36,INDEX(Ranks!$1:$1048576,$A66,CI$1))","v":""},{"$f":"IF($A66=\"N/A\",Ref!$B$36,INDEX(Ranks!$1:$1048576,$A66,CJ$1))","v":""},{"$f":"IF($A66=\"N/A\",Ref!$B$36,INDEX(Ranks!$1:$1048576,$A66,CK$1))","v":""},{"$f":"IF($A66=\"N/A\",Ref!$B$36,INDEX(Ranks!$1:$1048576,$A66,CL$1))","v":""},{"$f":"IF($A66=\"N/A\",Ref!$B$36,INDEX(Ranks!$1:$1048576,$A66,CM$1))","v":""},{"$f":"IF($A66=\"N/A\",Ref!$B$36,INDEX(Ranks!$1:$1048576,$A66,CN$1))","v":""},{"$f":"IF($A66=\"N/A\",Ref!$B$36,INDEX(Ranks!$1:$1048576,$A66,CO$1))","v":""},{"$f":"IF($A66=\"N/A\",Ref!$B$36,INDEX(Ranks!$1:$1048576,$A66,CP$1))","v":""},{"$f":"IF($A66=\"N/A\",Ref!$B$36,INDEX(Ranks!$1:$1048576,$A66,CQ$1))","v":""},{"$f":"IF($A66=\"N/A\",Ref!$B$36,INDEX(Ranks!$1:$1048576,$A66,CR$1))","v":""},{"$f":"IF($A66=\"N/A\",Ref!$B$36,INDEX(Ranks!$1:$1048576,$A66,CS$1))","v":""},{"$f":"IF($A66=\"N/A\",Ref!$B$36,INDEX(Ranks!$1:$1048576,$A66,CT$1))","v":""},{"$f":"IF($A66=\"N/A\",Ref!$B$36,INDEX(Ranks!$1:$1048576,$A66,CU$1))","v":""},{"$f":"IF($A66=\"N/A\",Ref!$B$36,INDEX(Ranks!$1:$1048576,$A66,CV$1))","v":""},{"$f":"IF($A66=\"N/A\",Ref!$B$36,INDEX(Ranks!$1:$1048576,$A66,CW$1))","v":""},{"$f":"IF($A66=\"N/A\",Ref!$B$36,INDEX(Ranks!$1:$1048576,$A66,CX$1))","v":""},{"$f":"IF($A66=\"N/A\",Ref!$B$36,INDEX(Ranks!$1:$1048576,$A66,CY$1))","v":""},{"$f":"IF($A66=\"N/A\",Ref!$B$36,INDEX(Ranks!$1:$1048576,$A66,CZ$1))","v":""},{"$f":"IF($A66=\"N/A\",Ref!$B$36,INDEX(Ranks!$1:$1048576,$A66,DA$1))","v":""},{"$f":"IF($A66=\"N/A\",Ref!$B$36,INDEX(Ranks!$1:$1048576,$A66,DB$1))","v":""},{"$f":"IF($A66=\"N/A\",Ref!$B$36,INDEX(Ranks!$1:$1048576,$A66,DC$1))","v":""},{"$f":"IF($A66=\"N/A\",Ref!$B$36,INDEX(Ranks!$1:$1048576,$A66,DD$1))","v":""},{"$f":"IF($A66=\"N/A\",Ref!$B$36,INDEX(Ranks!$1:$1048576,$A66,DE$1))","v":""},{"$f":"IF($A66=\"N/A\",Ref!$B$36,INDEX(Ranks!$1:$1048576,$A66,DF$1))","v":""},{"$f":"IF($A66=\"N/A\",Ref!$B$36,INDEX(Ranks!$1:$1048576,$A66,DG$1))","v":""},{"$f":"IF($A66=\"N/A\",Ref!$B$36,INDEX(Ranks!$1:$1048576,$A66,DH$1))","v":""},{"$f":"IF($A66=\"N/A\",Ref!$B$36,INDEX(Ranks!$1:$1048576,$A66,DI$1))","v":""},{"$f":"IF($A66=\"N/A\",Ref!$B$36,INDEX(Ranks!$1:$1048576,$A66,DJ$1))","v":""},{"$f":"IF($A66=\"N/A\",Ref!$B$36,INDEX(Ranks!$1:$1048576,$A66,DK$1))","v":""},{"$f":"IF($A66=\"N/A\",Ref!$B$36,INDEX(Ranks!$1:$1048576,$A66,DL$1))","v":""},{"$f":"IF($A66=\"N/A\",Ref!$B$36,INDEX(Ranks!$1:$1048576,$A66,DM$1))","v":""},{"$f":"IF($A66=\"N/A\",Ref!$B$36,INDEX(Ranks!$1:$1048576,$A66,DN$1))","v":""},{"$f":"IF($A66=\"N/A\",Ref!$B$36,INDEX(Ranks!$1:$1048576,$A66,DO$1))","v":""},{"$f":"IF($A66=\"N/A\",Ref!$B$36,INDEX(Ranks!$1:$1048576,$A66,DP$1))","v":""},{"$f":"IF($A66=\"N/A\",Ref!$B$36,INDEX(Ranks!$1:$1048576,$A66,DQ$1))","v":""},{"$f":"IF($A66=\"N/A\",Ref!$B$36,INDEX(Ranks!$1:$1048576,$A66,DR$1))","v":""},{"$f":"IF($A66=\"N/A\",Ref!$B$36,INDEX(Ranks!$1:$1048576,$A66,DS$1))","v":""},{"$f":"IF($A66=\"N/A\",Ref!$B$36,INDEX(Ranks!$1:$1048576,$A66,DT$1))","v":""},{"$f":"IF($A66=\"N/A\",Ref!$B$36,INDEX(Ranks!$1:$1048576,$A66,DU$1))","v":""},{"$f":"IF($A66=\"N/A\",Ref!$B$36,INDEX(Ranks!$1:$1048576,$A66,DV$1))","v":""},{"$f":"IF($A66=\"N/A\",Ref!$B$36,INDEX(Ranks!$1:$1048576,$A66,DW$1))","v":""},{"$f":"IF($A66=\"N/A\",Ref!$B$36,INDEX(Ranks!$1:$1048576,$A66,DX$1))","v":""},{"$f":"IF($A66=\"N/A\",Ref!$B$36,INDEX(Ranks!$1:$1048576,$A66,DY$1))","v":""},{"$f":"IF($A66=\"N/A\",Ref!$B$36,INDEX(Ranks!$1:$1048576,$A66,DZ$1))","v":""},{"$f":"IF($A66=\"N/A\",Ref!$B$36,INDEX(Ranks!$1:$1048576,$A66,EA$1))","v":""},{"$f":"IF($A66=\"N/A\",Ref!$B$36,INDEX(Ranks!$1:$1048576,$A66,EB$1))","v":""}]
[{"$f":"IFERROR(MATCH('Portfolio Page'!L67,Ranks!L:L,0),\"N/A\")","v":"N/A"},null,{"$f":"IF($A67=\"N/A\",\"\",INDEX(Ranks!$1:$1048576,$A67,C$1))","v":""},{"$f":"IF($A67=\"N/A\",Ref!$B$36,INDEX(Ranks!$1:$1048576,$A67,D$1))","v":""},{"$f":"IF($A67=\"N/A\",Ref!$B$36,INDEX(Ranks!$1:$1048576,$A67,E$1))","v":""},{"$f":"IF($A67=\"N/A\",\"\",INDEX(Ranks!$1:$1048576,$A67,F$1))","v":""},{"$f":"IF($A67=\"N/A\",\"\",INDEX(Ranks!$1:$1048576,$A67,G$1))","v":""},{"$f":"IF($A67=\"N/A\",\"\",INDEX(Ranks!$1:$1048576,$A67,H$1))","v":""},{"$f":"IF($A67=\"N/A\",\"\",INDEX(Ranks!$1:$1048576,$A67,I$1))","v":""},{"$f":"IF($A67=\"N/A\",\"\",INDEX(Ranks!$1:$1048576,$A67,J$1))","v":""},{"$f":"IF($A67=\"N/A\",\"\",INDEX(Ranks!$1:$1048576,$A67,K$1))","v":""},null,{"$f":"IF($A67=\"N/A\",Ref!$B$36,INDEX(Ranks!$1:$1048576,$A67,M$1))","v":""},{"$f":"IF($A67=\"N/A\",Ref!$B$36,INDEX(Ranks!$1:$1048576,$A67,N$1))","v":""},{"$f":"IF($A67=\"N/A\",Ref!$B$36,INDEX(Ranks!$1:$1048576,$A67,O$1))","v":""},{"$f":"IF($A67=\"N/A\",Ref!$B$36,INDEX(Ranks!$1:$1048576,$A67,P$1))","v":""},{"$f":"IF($A67=\"N/A\",Ref!$B$36,INDEX(Ranks!$1:$1048576,$A67,Q$1))","v":""},{"$f":"IF($A67=\"N/A\",Ref!$B$36,INDEX(Ranks!$1:$1048576,$A67,R$1))","v":""},{"$f":"IF($A67=\"N/A\",Ref!$B$36,INDEX(Ranks!$1:$1048576,$A67,S$1))","v":""},{"$f":"IF($A67=\"N/A\",Ref!$B$36,INDEX(Ranks!$1:$1048576,$A67,T$1))","v":""},{"$f":"IF($A67=\"N/A\",Ref!$B$36,INDEX(Ranks!$1:$1048576,$A67,U$1))","v":""},{"$f":"IF($A67=\"N/A\",Ref!$B$36,INDEX(Ranks!$1:$1048576,$A67,V$1))","v":""},{"$f":"IF($A67=\"N/A\",Ref!$B$36,INDEX(Ranks!$1:$1048576,$A67,W$1))","v":""},{"$f":"IF($A67=\"N/A\",Ref!$B$36,INDEX(Ranks!$1:$1048576,$A67,X$1))","v":""},{"$f":"IF($A67=\"N/A\",Ref!$B$36,INDEX(Ranks!$1:$1048576,$A67,Y$1))","v":""},{"$f":"IF($A67=\"N/A\",Ref!$B$36,INDEX(Ranks!$1:$1048576,$A67,Z$1))","v":""},{"$f":"IF($A67=\"N/A\",Ref!$B$36,INDEX(Ranks!$1:$1048576,$A67,AA$1))","v":""},{"$f":"IF($A67=\"N/A\",Ref!$B$36,INDEX(Ranks!$1:$1048576,$A67,AB$1))","v":""},{"$f":"IF($A67=\"N/A\",Ref!$B$36,INDEX(Ranks!$1:$1048576,$A67,AC$1))","v":""},{"$f":"IF($A67=\"N/A\",Ref!$B$36,INDEX(Ranks!$1:$1048576,$A67,AD$1))","v":""},{"$f":"IF($A67=\"N/A\",Ref!$B$36,INDEX(Ranks!$1:$1048576,$A67,AE$1))","v":""},{"$f":"IF($A67=\"N/A\",Ref!$B$36,INDEX(Ranks!$1:$1048576,$A67,AF$1))","v":""},{"$f":"IF($A67=\"N/A\",Ref!$B$36,INDEX(Ranks!$1:$1048576,$A67,AG$1))","v":""},{"$f":"IF($A67=\"N/A\",Ref!$B$36,INDEX(Ranks!$1:$1048576,$A67,AH$1))","v":""},{"$f":"IF($A67=\"N/A\",Ref!$B$36,INDEX(Ranks!$1:$1048576,$A67,AI$1))","v":""},{"$f":"IF($A67=\"N/A\",Ref!$B$36,INDEX(Ranks!$1:$1048576,$A67,AJ$1))","v":""},{"$f":"IF($A67=\"N/A\",Ref!$B$36,INDEX(Ranks!$1:$1048576,$A67,AK$1))","v":""},{"$f":"IF($A67=\"N/A\",Ref!$B$36,INDEX(Ranks!$1:$1048576,$A67,AL$1))","v":""},{"$f":"IF($A67=\"N/A\",Ref!$B$36,INDEX(Ranks!$1:$1048576,$A67,AM$1))","v":""},{"$f":"IF($A67=\"N/A\",Ref!$B$36,INDEX(Ranks!$1:$1048576,$A67,AN$1))","v":""},{"$f":"IF($A67=\"N/A\",Ref!$B$36,INDEX(Ranks!$1:$1048576,$A67,AO$1))","v":""},{"$f":"IF($A67=\"N/A\",Ref!$B$36,INDEX(Ranks!$1:$1048576,$A67,AP$1))","v":""},{"$f":"IF($A67=\"N/A\",Ref!$B$36,INDEX(Ranks!$1:$1048576,$A67,AQ$1))","v":""},{"$f":"IF($A67=\"N/A\",Ref!$B$36,INDEX(Ranks!$1:$1048576,$A67,AR$1))","v":""},{"$f":"IF($A67=\"N/A\",Ref!$B$36,INDEX(Ranks!$1:$1048576,$A67,AS$1))","v":""},{"$f":"IF($A67=\"N/A\",Ref!$B$36,INDEX(Ranks!$1:$1048576,$A67,AT$1))","v":""},{"$f":"IF($A67=\"N/A\",Ref!$B$36,INDEX(Ranks!$1:$1048576,$A67,AU$1))","v":""},{"$f":"IF($A67=\"N/A\",Ref!$B$36,INDEX(Ranks!$1:$1048576,$A67,AV$1))","v":""},{"$f":"IF($A67=\"N/A\",Ref!$B$36,INDEX(Ranks!$1:$1048576,$A67,AW$1))","v":""},{"$f":"IF($A67=\"N/A\",Ref!$B$36,INDEX(Ranks!$1:$1048576,$A67,AX$1))","v":""},{"$f":"IF($A67=\"N/A\",Ref!$B$36,INDEX(Ranks!$1:$1048576,$A67,AY$1))","v":""},{"$f":"IF($A67=\"N/A\",Ref!$B$36,INDEX(Ranks!$1:$1048576,$A67,AZ$1))","v":""},{"$f":"IF($A67=\"N/A\",Ref!$B$36,INDEX(Ranks!$1:$1048576,$A67,BA$1))","v":""},{"$f":"IF($A67=\"N/A\",Ref!$B$36,INDEX(Ranks!$1:$1048576,$A67,BB$1))","v":""},{"$f":"IF($A67=\"N/A\",Ref!$B$36,INDEX(Ranks!$1:$1048576,$A67,BC$1))","v":""},{"$f":"IF($A67=\"N/A\",Ref!$B$36,INDEX(Ranks!$1:$1048576,$A67,BD$1))","v":""},{"$f":"IF($A67=\"N/A\",Ref!$B$36,INDEX(Ranks!$1:$1048576,$A67,BE$1))","v":""},{"$f":"IF($A67=\"N/A\",Ref!$B$36,INDEX(Ranks!$1:$1048576,$A67,BF$1))","v":""},{"$f":"IF($A67=\"N/A\",Ref!$B$36,INDEX(Ranks!$1:$1048576,$A67,BG$1))","v":""},{"$f":"IF($A67=\"N/A\",Ref!$B$36,INDEX(Ranks!$1:$1048576,$A67,BH$1))","v":""},{"$f":"IF($A67=\"N/A\",Ref!$B$36,INDEX(Ranks!$1:$1048576,$A67,BI$1))","v":""},{"$f":"IF($A67=\"N/A\",Ref!$B$36,INDEX(Ranks!$1:$1048576,$A67,BJ$1))","v":""},{"$f":"IF($A67=\"N/A\",Ref!$B$36,INDEX(Ranks!$1:$1048576,$A67,BK$1))","v":""},{"$f":"IF($A67=\"N/A\",Ref!$B$36,INDEX(Ranks!$1:$1048576,$A67,BL$1))","v":""},{"$f":"IF($A67=\"N/A\",Ref!$B$36,INDEX(Ranks!$1:$1048576,$A67,BM$1))","v":""},{"$f":"IF($A67=\"N/A\",Ref!$B$36,INDEX(Ranks!$1:$1048576,$A67,BN$1))","v":""},{"$f":"IF($A67=\"N/A\",Ref!$B$36,INDEX(Ranks!$1:$1048576,$A67,BO$1))","v":""},{"$f":"IF($A67=\"N/A\",Ref!$B$36,INDEX(Ranks!$1:$1048576,$A67,BP$1))","v":""},{"$f":"IF($A67=\"N/A\",Ref!$B$36,INDEX(Ranks!$1:$1048576,$A67,BQ$1))","v":""},{"$f":"IF($A67=\"N/A\",Ref!$B$36,INDEX(Ranks!$1:$1048576,$A67,BR$1))","v":""},{"$f":"IF($A67=\"N/A\",Ref!$B$36,INDEX(Ranks!$1:$1048576,$A67,BS$1))","v":""},{"$f":"IF($A67=\"N/A\",Ref!$B$36,INDEX(Ranks!$1:$1048576,$A67,BT$1))","v":""},{"$f":"IF($A67=\"N/A\",Ref!$B$36,INDEX(Ranks!$1:$1048576,$A67,BU$1))","v":""},{"$f":"IF($A67=\"N/A\",Ref!$B$36,INDEX(Ranks!$1:$1048576,$A67,BV$1))","v":""},{"$f":"IF($A67=\"N/A\",Ref!$B$36,INDEX(Ranks!$1:$1048576,$A67,BW$1))","v":""},{"$f":"IF($A67=\"N/A\",Ref!$B$36,INDEX(Ranks!$1:$1048576,$A67,BX$1))","v":""},{"$f":"IF($A67=\"N/A\",Ref!$B$36,INDEX(Ranks!$1:$1048576,$A67,BY$1))","v":""},{"$f":"IF($A67=\"N/A\",Ref!$B$36,INDEX(Ranks!$1:$1048576,$A67,BZ$1))","v":""},{"$f":"IF($A67=\"N/A\",Ref!$B$36,INDEX(Ranks!$1:$1048576,$A67,CA$1))","v":""},{"$f":"IF($A67=\"N/A\",Ref!$B$36,INDEX(Ranks!$1:$1048576,$A67,CB$1))","v":""},{"$f":"IF($A67=\"N/A\",Ref!$B$36,INDEX(Ranks!$1:$1048576,$A67,CC$1))","v":""},{"$f":"IF($A67=\"N/A\",Ref!$B$36,INDEX(Ranks!$1:$1048576,$A67,CD$1))","v":""},{"$f":"IF($A67=\"N/A\",Ref!$B$36,INDEX(Ranks!$1:$1048576,$A67,CE$1))","v":""},{"$f":"IF($A67=\"N/A\",Ref!$B$36,INDEX(Ranks!$1:$1048576,$A67,CF$1))","v":""},{"$f":"IF($A67=\"N/A\",Ref!$B$36,INDEX(Ranks!$1:$1048576,$A67,CG$1))","v":""},{"$f":"IF($A67=\"N/A\",Ref!$B$36,INDEX(Ranks!$1:$1048576,$A67,CH$1))","v":""},{"$f":"IF($A67=\"N/A\",Ref!$B$36,INDEX(Ranks!$1:$1048576,$A67,CI$1))","v":""},{"$f":"IF($A67=\"N/A\",Ref!$B$36,INDEX(Ranks!$1:$1048576,$A67,CJ$1))","v":""},{"$f":"IF($A67=\"N/A\",Ref!$B$36,INDEX(Ranks!$1:$1048576,$A67,CK$1))","v":""},{"$f":"IF($A67=\"N/A\",Ref!$B$36,INDEX(Ranks!$1:$1048576,$A67,CL$1))","v":""},{"$f":"IF($A67=\"N/A\",Ref!$B$36,INDEX(Ranks!$1:$1048576,$A67,CM$1))","v":""},{"$f":"IF($A67=\"N/A\",Ref!$B$36,INDEX(Ranks!$1:$1048576,$A67,CN$1))","v":""},{"$f":"IF($A67=\"N/A\",Ref!$B$36,INDEX(Ranks!$1:$1048576,$A67,CO$1))","v":""},{"$f":"IF($A67=\"N/A\",Ref!$B$36,INDEX(Ranks!$1:$1048576,$A67,CP$1))","v":""},{"$f":"IF($A67=\"N/A\",Ref!$B$36,INDEX(Ranks!$1:$1048576,$A67,CQ$1))","v":""},{"$f":"IF($A67=\"N/A\",Ref!$B$36,INDEX(Ranks!$1:$1048576,$A67,CR$1))","v":""},{"$f":"IF($A67=\"N/A\",Ref!$B$36,INDEX(Ranks!$1:$1048576,$A67,CS$1))","v":""},{"$f":"IF($A67=\"N/A\",Ref!$B$36,INDEX(Ranks!$1:$1048576,$A67,CT$1))","v":""},{"$f":"IF($A67=\"N/A\",Ref!$B$36,INDEX(Ranks!$1:$1048576,$A67,CU$1))","v":""},{"$f":"IF($A67=\"N/A\",Ref!$B$36,INDEX(Ranks!$1:$1048576,$A67,CV$1))","v":""},{"$f":"IF($A67=\"N/A\",Ref!$B$36,INDEX(Ranks!$1:$1048576,$A67,CW$1))","v":""},{"$f":"IF($A67=\"N/A\",Ref!$B$36,INDEX(Ranks!$1:$1048576,$A67,CX$1))","v":""},{"$f":"IF($A67=\"N/A\",Ref!$B$36,INDEX(Ranks!$1:$1048576,$A67,CY$1))","v":""},{"$f":"IF($A67=\"N/A\",Ref!$B$36,INDEX(Ranks!$1:$1048576,$A67,CZ$1))","v":""},{"$f":"IF($A67=\"N/A\",Ref!$B$36,INDEX(Ranks!$1:$1048576,$A67,DA$1))","v":""},{"$f":"IF($A67=\"N/A\",Ref!$B$36,INDEX(Ranks!$1:$1048576,$A67,DB$1))","v":""},{"$f":"IF($A67=\"N/A\",Ref!$B$36,INDEX(Ranks!$1:$1048576,$A67,DC$1))","v":""},{"$f":"IF($A67=\"N/A\",Ref!$B$36,INDEX(Ranks!$1:$1048576,$A67,DD$1))","v":""},{"$f":"IF($A67=\"N/A\",Ref!$B$36,INDEX(Ranks!$1:$1048576,$A67,DE$1))","v":""},{"$f":"IF($A67=\"N/A\",Ref!$B$36,INDEX(Ranks!$1:$1048576,$A67,DF$1))","v":""},{"$f":"IF($A67=\"N/A\",Ref!$B$36,INDEX(Ranks!$1:$1048576,$A67,DG$1))","v":""},{"$f":"IF($A67=\"N/A\",Ref!$B$36,INDEX(Ranks!$1:$1048576,$A67,DH$1))","v":""},{"$f":"IF($A67=\"N/A\",Ref!$B$36,INDEX(Ranks!$1:$1048576,$A67,DI$1))","v":""},{"$f":"IF($A67=\"N/A\",Ref!$B$36,INDEX(Ranks!$1:$1048576,$A67,DJ$1))","v":""},{"$f":"IF($A67=\"N/A\",Ref!$B$36,INDEX(Ranks!$1:$1048576,$A67,DK$1))","v":""},{"$f":"IF($A67=\"N/A\",Ref!$B$36,INDEX(Ranks!$1:$1048576,$A67,DL$1))","v":""},{"$f":"IF($A67=\"N/A\",Ref!$B$36,INDEX(Ranks!$1:$1048576,$A67,DM$1))","v":""},{"$f":"IF($A67=\"N/A\",Ref!$B$36,INDEX(Ranks!$1:$1048576,$A67,DN$1))","v":""},{"$f":"IF($A67=\"N/A\",Ref!$B$36,INDEX(Ranks!$1:$1048576,$A67,DO$1))","v":""},{"$f":"IF($A67=\"N/A\",Ref!$B$36,INDEX(Ranks!$1:$1048576,$A67,DP$1))","v":""},{"$f":"IF($A67=\"N/A\",Ref!$B$36,INDEX(Ranks!$1:$1048576,$A67,DQ$1))","v":""},{"$f":"IF($A67=\"N/A\",Ref!$B$36,INDEX(Ranks!$1:$1048576,$A67,DR$1))","v":""},{"$f":"IF($A67=\"N/A\",Ref!$B$36,INDEX(Ranks!$1:$1048576,$A67,DS$1))","v":""},{"$f":"IF($A67=\"N/A\",Ref!$B$36,INDEX(Ranks!$1:$1048576,$A67,DT$1))","v":""},{"$f":"IF($A67=\"N/A\",Ref!$B$36,INDEX(Ranks!$1:$1048576,$A67,DU$1))","v":""},{"$f":"IF($A67=\"N/A\",Ref!$B$36,INDEX(Ranks!$1:$1048576,$A67,DV$1))","v":""},{"$f":"IF($A67=\"N/A\",Ref!$B$36,INDEX(Ranks!$1:$1048576,$A67,DW$1))","v":""},{"$f":"IF($A67=\"N/A\",Ref!$B$36,INDEX(Ranks!$1:$1048576,$A67,DX$1))","v":""},{"$f":"IF($A67=\"N/A\",Ref!$B$36,INDEX(Ranks!$1:$1048576,$A67,DY$1))","v":""},{"$f":"IF($A67=\"N/A\",Ref!$B$36,INDEX(Ranks!$1:$1048576,$A67,DZ$1))","v":""},{"$f":"IF($A67=\"N/A\",Ref!$B$36,INDEX(Ranks!$1:$1048576,$A67,EA$1))","v":""},{"$f":"IF($A67=\"N/A\",Ref!$B$36,INDEX(Ranks!$1:$1048576,$A67,EB$1))","v":""}]
[{"$f":"IFERROR(MATCH('Portfolio Page'!L68,Ranks!L:L,0),\"N/A\")","v":"N/A"},null,{"$f":"IF($A68=\"N/A\",\"\",INDEX(Ranks!$1:$1048576,$A68,C$1))","v":""},{"$f":"IF($A68=\"N/A\",Ref!$B$36,INDEX(Ranks!$1:$1048576,$A68,D$1))","v":""},{"$f":"IF($A68=\"N/A\",Ref!$B$36,INDEX(Ranks!$1:$1048576,$A68,E$1))","v":""},{"$f":"IF($A68=\"N/A\",\"\",INDEX(Ranks!$1:$1048576,$A68,F$1))","v":""},{"$f":"IF($A68=\"N/A\",\"\",INDEX(Ranks!$1:$1048576,$A68,G$1))","v":""},{"$f":"IF($A68=\"N/A\",\"\",INDEX(Ranks!$1:$1048576,$A68,H$1))","v":""},{"$f":"IF($A68=\"N/A\",\"\",INDEX(Ranks!$1:$1048576,$A68,I$1))","v":""},{"$f":"IF($A68=\"N/A\",\"\",INDEX(Ranks!$1:$1048576,$A68,J$1))","v":""},{"$f":"IF($A68=\"N/A\",\"\",INDEX(Ranks!$1:$1048576,$A68,K$1))","v":""},null,{"$f":"IF($A68=\"N/A\",Ref!$B$36,INDEX(Ranks!$1:$1048576,$A68,M$1))","v":""},{"$f":"IF($A68=\"N/A\",Ref!$B$36,INDEX(Ranks!$1:$1048576,$A68,N$1))","v":""},{"$f":"IF($A68=\"N/A\",Ref!$B$36,INDEX(Ranks!$1:$1048576,$A68,O$1))","v":""},{"$f":"IF($A68=\"N/A\",Ref!$B$36,INDEX(Ranks!$1:$1048576,$A68,P$1))","v":""},{"$f":"IF($A68=\"N/A\",Ref!$B$36,INDEX(Ranks!$1:$1048576,$A68,Q$1))","v":""},{"$f":"IF($A68=\"N/A\",Ref!$B$36,INDEX(Ranks!$1:$1048576,$A68,R$1))","v":""},{"$f":"IF($A68=\"N/A\",Ref!$B$36,INDEX(Ranks!$1:$1048576,$A68,S$1))","v":""},{"$f":"IF($A68=\"N/A\",Ref!$B$36,INDEX(Ranks!$1:$1048576,$A68,T$1))","v":""},{"$f":"IF($A68=\"N/A\",Ref!$B$36,INDEX(Ranks!$1:$1048576,$A68,U$1))","v":""},{"$f":"IF($A68=\"N/A\",Ref!$B$36,INDEX(Ranks!$1:$1048576,$A68,V$1))","v":""},{"$f":"IF($A68=\"N/A\",Ref!$B$36,INDEX(Ranks!$1:$1048576,$A68,W$1))","v":""},{"$f":"IF($A68=\"N/A\",Ref!$B$36,INDEX(Ranks!$1:$1048576,$A68,X$1))","v":""},{"$f":"IF($A68=\"N/A\",Ref!$B$36,INDEX(Ranks!$1:$1048576,$A68,Y$1))","v":""},{"$f":"IF($A68=\"N/A\",Ref!$B$36,INDEX(Ranks!$1:$1048576,$A68,Z$1))","v":""},{"$f":"IF($A68=\"N/A\",Ref!$B$36,INDEX(Ranks!$1:$1048576,$A68,AA$1))","v":""},{"$f":"IF($A68=\"N/A\",Ref!$B$36,INDEX(Ranks!$1:$1048576,$A68,AB$1))","v":""},{"$f":"IF($A68=\"N/A\",Ref!$B$36,INDEX(Ranks!$1:$1048576,$A68,AC$1))","v":""},{"$f":"IF($A68=\"N/A\",Ref!$B$36,INDEX(Ranks!$1:$1048576,$A68,AD$1))","v":""},{"$f":"IF($A68=\"N/A\",Ref!$B$36,INDEX(Ranks!$1:$1048576,$A68,AE$1))","v":""},{"$f":"IF($A68=\"N/A\",Ref!$B$36,INDEX(Ranks!$1:$1048576,$A68,AF$1))","v":""},{"$f":"IF($A68=\"N/A\",Ref!$B$36,INDEX(Ranks!$1:$1048576,$A68,AG$1))","v":""},{"$f":"IF($A68=\"N/A\",Ref!$B$36,INDEX(Ranks!$1:$1048576,$A68,AH$1))","v":""},{"$f":"IF($A68=\"N/A\",Ref!$B$36,INDEX(Ranks!$1:$1048576,$A68,AI$1))","v":""},{"$f":"IF($A68=\"N/A\",Ref!$B$36,INDEX(Ranks!$1:$1048576,$A68,AJ$1))","v":""},{"$f":"IF($A68=\"N/A\",Ref!$B$36,INDEX(Ranks!$1:$1048576,$A68,AK$1))","v":""},{"$f":"IF($A68=\"N/A\",Ref!$B$36,INDEX(Ranks!$1:$1048576,$A68,AL$1))","v":""},{"$f":"IF($A68=\"N/A\",Ref!$B$36,INDEX(Ranks!$1:$1048576,$A68,AM$1))","v":""},{"$f":"IF($A68=\"N/A\",Ref!$B$36,INDEX(Ranks!$1:$1048576,$A68,AN$1))","v":""},{"$f":"IF($A68=\"N/A\",Ref!$B$36,INDEX(Ranks!$1:$1048576,$A68,AO$1))","v":""},{"$f":"IF($A68=\"N/A\",Ref!$B$36,INDEX(Ranks!$1:$1048576,$A68,AP$1))","v":""},{"$f":"IF($A68=\"N/A\",Ref!$B$36,INDEX(Ranks!$1:$1048576,$A68,AQ$1))","v":""},{"$f":"IF($A68=\"N/A\",Ref!$B$36,INDEX(Ranks!$1:$1048576,$A68,AR$1))","v":""},{"$f":"IF($A68=\"N/A\",Ref!$B$36,INDEX(Ranks!$1:$1048576,$A68,AS$1))","v":""},{"$f":"IF($A68=\"N/A\",Ref!$B$36,INDEX(Ranks!$1:$1048576,$A68,AT$1))","v":""},{"$f":"IF($A68=\"N/A\",Ref!$B$36,INDEX(Ranks!$1:$1048576,$A68,AU$1))","v":""},{"$f":"IF($A68=\"N/A\",Ref!$B$36,INDEX(Ranks!$1:$1048576,$A68,AV$1))","v":""},{"$f":"IF($A68=\"N/A\",Ref!$B$36,INDEX(Ranks!$1:$1048576,$A68,AW$1))","v":""},{"$f":"IF($A68=\"N/A\",Ref!$B$36,INDEX(Ranks!$1:$1048576,$A68,AX$1))","v":""},{"$f":"IF($A68=\"N/A\",Ref!$B$36,INDEX(Ranks!$1:$1048576,$A68,AY$1))","v":""},{"$f":"IF($A68=\"N/A\",Ref!$B$36,INDEX(Ranks!$1:$1048576,$A68,AZ$1))","v":""},{"$f":"IF($A68=\"N/A\",Ref!$B$36,INDEX(Ranks!$1:$1048576,$A68,BA$1))","v":""},{"$f":"IF($A68=\"N/A\",Ref!$B$36,INDEX(Ranks!$1:$1048576,$A68,BB$1))","v":""},{"$f":"IF($A68=\"N/A\",Ref!$B$36,INDEX(Ranks!$1:$1048576,$A68,BC$1))","v":""},{"$f":"IF($A68=\"N/A\",Ref!$B$36,INDEX(Ranks!$1:$1048576,$A68,BD$1))","v":""},{"$f":"IF($A68=\"N/A\",Ref!$B$36,INDEX(Ranks!$1:$1048576,$A68,BE$1))","v":""},{"$f":"IF($A68=\"N/A\",Ref!$B$36,INDEX(Ranks!$1:$1048576,$A68,BF$1))","v":""},{"$f":"IF($A68=\"N/A\",Ref!$B$36,INDEX(Ranks!$1:$1048576,$A68,BG$1))","v":""},{"$f":"IF($A68=\"N/A\",Ref!$B$36,INDEX(Ranks!$1:$1048576,$A68,BH$1))","v":""},{"$f":"IF($A68=\"N/A\",Ref!$B$36,INDEX(Ranks!$1:$1048576,$A68,BI$1))","v":""},{"$f":"IF($A68=\"N/A\",Ref!$B$36,INDEX(Ranks!$1:$1048576,$A68,BJ$1))","v":""},{"$f":"IF($A68=\"N/A\",Ref!$B$36,INDEX(Ranks!$1:$1048576,$A68,BK$1))","v":""},{"$f":"IF($A68=\"N/A\",Ref!$B$36,INDEX(Ranks!$1:$1048576,$A68,BL$1))","v":""},{"$f":"IF($A68=\"N/A\",Ref!$B$36,INDEX(Ranks!$1:$1048576,$A68,BM$1))","v":""},{"$f":"IF($A68=\"N/A\",Ref!$B$36,INDEX(Ranks!$1:$1048576,$A68,BN$1))","v":""},{"$f":"IF($A68=\"N/A\",Ref!$B$36,INDEX(Ranks!$1:$1048576,$A68,BO$1))","v":""},{"$f":"IF($A68=\"N/A\",Ref!$B$36,INDEX(Ranks!$1:$1048576,$A68,BP$1))","v":""},{"$f":"IF($A68=\"N/A\",Ref!$B$36,INDEX(Ranks!$1:$1048576,$A68,BQ$1))","v":""},{"$f":"IF($A68=\"N/A\",Ref!$B$36,INDEX(Ranks!$1:$1048576,$A68,BR$1))","v":""},{"$f":"IF($A68=\"N/A\",Ref!$B$36,INDEX(Ranks!$1:$1048576,$A68,BS$1))","v":""},{"$f":"IF($A68=\"N/A\",Ref!$B$36,INDEX(Ranks!$1:$1048576,$A68,BT$1))","v":""},{"$f":"IF($A68=\"N/A\",Ref!$B$36,INDEX(Ranks!$1:$1048576,$A68,BU$1))","v":""},{"$f":"IF($A68=\"N/A\",Ref!$B$36,INDEX(Ranks!$1:$1048576,$A68,BV$1))","v":""},{"$f":"IF($A68=\"N/A\",Ref!$B$36,INDEX(Ranks!$1:$1048576,$A68,BW$1))","v":""},{"$f":"IF($A68=\"N/A\",Ref!$B$36,INDEX(Ranks!$1:$1048576,$A68,BX$1))","v":""},{"$f":"IF($A68=\"N/A\",Ref!$B$36,INDEX(Ranks!$1:$1048576,$A68,BY$1))","v":""},{"$f":"IF($A68=\"N/A\",Ref!$B$36,INDEX(Ranks!$1:$1048576,$A68,BZ$1))","v":""},{"$f":"IF($A68=\"N/A\",Ref!$B$36,INDEX(Ranks!$1:$1048576,$A68,CA$1))","v":""},{"$f":"IF($A68=\"N/A\",Ref!$B$36,INDEX(Ranks!$1:$1048576,$A68,CB$1))","v":""},{"$f":"IF($A68=\"N/A\",Ref!$B$36,INDEX(Ranks!$1:$1048576,$A68,CC$1))","v":""},{"$f":"IF($A68=\"N/A\",Ref!$B$36,INDEX(Ranks!$1:$1048576,$A68,CD$1))","v":""},{"$f":"IF($A68=\"N/A\",Ref!$B$36,INDEX(Ranks!$1:$1048576,$A68,CE$1))","v":""},{"$f":"IF($A68=\"N/A\",Ref!$B$36,INDEX(Ranks!$1:$1048576,$A68,CF$1))","v":""},{"$f":"IF($A68=\"N/A\",Ref!$B$36,INDEX(Ranks!$1:$1048576,$A68,CG$1))","v":""},{"$f":"IF($A68=\"N/A\",Ref!$B$36,INDEX(Ranks!$1:$1048576,$A68,CH$1))","v":""},{"$f":"IF($A68=\"N/A\",Ref!$B$36,INDEX(Ranks!$1:$1048576,$A68,CI$1))","v":""},{"$f":"IF($A68=\"N/A\",Ref!$B$36,INDEX(Ranks!$1:$1048576,$A68,CJ$1))","v":""},{"$f":"IF($A68=\"N/A\",Ref!$B$36,INDEX(Ranks!$1:$1048576,$A68,CK$1))","v":""},{"$f":"IF($A68=\"N/A\",Ref!$B$36,INDEX(Ranks!$1:$1048576,$A68,CL$1))","v":""},{"$f":"IF($A68=\"N/A\",Ref!$B$36,INDEX(Ranks!$1:$1048576,$A68,CM$1))","v":""},{"$f":"IF($A68=\"N/A\",Ref!$B$36,INDEX(Ranks!$1:$1048576,$A68,CN$1))","v":""},{"$f":"IF($A68=\"N/A\",Ref!$B$36,INDEX(Ranks!$1:$1048576,$A68,CO$1))","v":""},{"$f":"IF($A68=\"N/A\",Ref!$B$36,INDEX(Ranks!$1:$1048576,$A68,CP$1))","v":""},{"$f":"IF($A68=\"N/A\",Ref!$B$36,INDEX(Ranks!$1:$1048576,$A68,CQ$1))","v":""},{"$f":"IF($A68=\"N/A\",Ref!$B$36,INDEX(Ranks!$1:$1048576,$A68,CR$1))","v":""},{"$f":"IF($A68=\"N/A\",Ref!$B$36,INDEX(Ranks!$1:$1048576,$A68,CS$1))","v":""},{"$f":"IF($A68=\"N/A\",Ref!$B$36,INDEX(Ranks!$1:$1048576,$A68,CT$1))","v":""},{"$f":"IF($A68=\"N/A\",Ref!$B$36,INDEX(Ranks!$1:$1048576,$A68,CU$1))","v":""},{"$f":"IF($A68=\"N/A\",Ref!$B$36,INDEX(Ranks!$1:$1048576,$A68,CV$1))","v":""},{"$f":"IF($A68=\"N/A\",Ref!$B$36,INDEX(Ranks!$1:$1048576,$A68,CW$1))","v":""},{"$f":"IF($A68=\"N/A\",Ref!$B$36,INDEX(Ranks!$1:$1048576,$A68,CX$1))","v":""},{"$f":"IF($A68=\"N/A\",Ref!$B$36,INDEX(Ranks!$1:$1048576,$A68,CY$1))","v":""},{"$f":"IF($A68=\"N/A\",Ref!$B$36,INDEX(Ranks!$1:$1048576,$A68,CZ$1))","v":""},{"$f":"IF($A68=\"N/A\",Ref!$B$36,INDEX(Ranks!$1:$1048576,$A68,DA$1))","v":""},{"$f":"IF($A68=\"N/A\",Ref!$B$36,INDEX(Ranks!$1:$1048576,$A68,DB$1))","v":""},{"$f":"IF($A68=\"N/A\",Ref!$B$36,INDEX(Ranks!$1:$1048576,$A68,DC$1))","v":""},{"$f":"IF($A68=\"N/A\",Ref!$B$36,INDEX(Ranks!$1:$1048576,$A68,DD$1))","v":""},{"$f":"IF($A68=\"N/A\",Ref!$B$36,INDEX(Ranks!$1:$1048576,$A68,DE$1))","v":""},{"$f":"IF($A68=\"N/A\",Ref!$B$36,INDEX(Ranks!$1:$1048576,$A68,DF$1))","v":""},{"$f":"IF($A68=\"N/A\",Ref!$B$36,INDEX(Ranks!$1:$1048576,$A68,DG$1))","v":""},{"$f":"IF($A68=\"N/A\",Ref!$B$36,INDEX(Ranks!$1:$1048576,$A68,DH$1))","v":""},{"$f":"IF($A68=\"N/A\",Ref!$B$36,INDEX(Ranks!$1:$1048576,$A68,DI$1))","v":""},{"$f":"IF($A68=\"N/A\",Ref!$B$36,INDEX(Ranks!$1:$1048576,$A68,DJ$1))","v":""},{"$f":"IF($A68=\"N/A\",Ref!$B$36,INDEX(Ranks!$1:$1048576,$A68,DK$1))","v":""},{"$f":"IF($A68=\"N/A\",Ref!$B$36,INDEX(Ranks!$1:$1048576,$A68,DL$1))","v":""},{"$f":"IF($A68=\"N/A\",Ref!$B$36,INDEX(Ranks!$1:$1048576,$A68,DM$1))","v":""},{"$f":"IF($A68=\"N/A\",Ref!$B$36,INDEX(Ranks!$1:$1048576,$A68,DN$1))","v":""},{"$f":"IF($A68=\"N/A\",Ref!$B$36,INDEX(Ranks!$1:$1048576,$A68,DO$1))","v":""},{"$f":"IF($A68=\"N/A\",Ref!$B$36,INDEX(Ranks!$1:$1048576,$A68,DP$1))","v":""},{"$f":"IF($A68=\"N/A\",Ref!$B$36,INDEX(Ranks!$1:$1048576,$A68,DQ$1))","v":""},{"$f":"IF($A68=\"N/A\",Ref!$B$36,INDEX(Ranks!$1:$1048576,$A68,DR$1))","v":""},{"$f":"IF($A68=\"N/A\",Ref!$B$36,INDEX(Ranks!$1:$1048576,$A68,DS$1))","v":""},{"$f":"IF($A68=\"N/A\",Ref!$B$36,INDEX(Ranks!$1:$1048576,$A68,DT$1))","v":""},{"$f":"IF($A68=\"N/A\",Ref!$B$36,INDEX(Ranks!$1:$1048576,$A68,DU$1))","v":""},{"$f":"IF($A68=\"N/A\",Ref!$B$36,INDEX(Ranks!$1:$1048576,$A68,DV$1))","v":""},{"$f":"IF($A68=\"N/A\",Ref!$B$36,INDEX(Ranks!$1:$1048576,$A68,DW$1))","v":""},{"$f":"IF($A68=\"N/A\",Ref!$B$36,INDEX(Ranks!$1:$1048576,$A68,DX$1))","v":""},{"$f":"IF($A68=\"N/A\",Ref!$B$36,INDEX(Ranks!$1:$1048576,$A68,DY$1))","v":""},{"$f":"IF($A68=\"N/A\",Ref!$B$36,INDEX(Ranks!$1:$1048576,$A68,DZ$1))","v":""},{"$f":"IF($A68=\"N/A\",Ref!$B$36,INDEX(Ranks!$1:$1048576,$A68,EA$1))","v":""},{"$f":"IF($A68=\"N/A\",Ref!$B$36,INDEX(Ranks!$1:$1048576,$A68,EB$1))","v":""}]
[{"$f":"IFERROR(MATCH('Portfolio Page'!L69,Ranks!L:L,0),\"N/A\")","v":"N/A"},null,{"$f":"IF($A69=\"N/A\",\"\",INDEX(Ranks!$1:$1048576,$A69,C$1))","v":""},{"$f":"IF($A69=\"N/A\",Ref!$B$36,INDEX(Ranks!$1:$1048576,$A69,D$1))","v":""},{"$f":"IF($A69=\"N/A\",Ref!$B$36,INDEX(Ranks!$1:$1048576,$A69,E$1))","v":""},{"$f":"IF($A69=\"N/A\",\"\",INDEX(Ranks!$1:$1048576,$A69,F$1))","v":""},{"$f":"IF($A69=\"N/A\",\"\",INDEX(Ranks!$1:$1048576,$A69,G$1))","v":""},{"$f":"IF($A69=\"N/A\",\"\",INDEX(Ranks!$1:$1048576,$A69,H$1))","v":""},{"$f":"IF($A69=\"N/A\",\"\",INDEX(Ranks!$1:$1048576,$A69,I$1))","v":""},{"$f":"IF($A69=\"N/A\",\"\",INDEX(Ranks!$1:$1048576,$A69,J$1))","v":""},{"$f":"IF($A69=\"N/A\",\"\",INDEX(Ranks!$1:$1048576,$A69,K$1))","v":""},null,{"$f":"IF($A69=\"N/A\",Ref!$B$36,INDEX(Ranks!$1:$1048576,$A69,M$1))","v":""},{"$f":"IF($A69=\"N/A\",Ref!$B$36,INDEX(Ranks!$1:$1048576,$A69,N$1))","v":""},{"$f":"IF($A69=\"N/A\",Ref!$B$36,INDEX(Ranks!$1:$1048576,$A69,O$1))","v":""},{"$f":"IF($A69=\"N/A\",Ref!$B$36,INDEX(Ranks!$1:$1048576,$A69,P$1))","v":""},{"$f":"IF($A69=\"N/A\",Ref!$B$36,INDEX(Ranks!$1:$1048576,$A69,Q$1))","v":""},{"$f":"IF($A69=\"N/A\",Ref!$B$36,INDEX(Ranks!$1:$1048576,$A69,R$1))","v":""},{"$f":"IF($A69=\"N/A\",Ref!$B$36,INDEX(Ranks!$1:$1048576,$A69,S$1))","v":""},{"$f":"IF($A69=\"N/A\",Ref!$B$36,INDEX(Ranks!$1:$1048576,$A69,T$1))","v":""},{"$f":"IF($A69=\"N/A\",Ref!$B$36,INDEX(Ranks!$1:$1048576,$A69,U$1))","v":""},{"$f":"IF($A69=\"N/A\",Ref!$B$36,INDEX(Ranks!$1:$1048576,$A69,V$1))","v":""},{"$f":"IF($A69=\"N/A\",Ref!$B$36,INDEX(Ranks!$1:$1048576,$A69,W$1))","v":""},{"$f":"IF($A69=\"N/A\",Ref!$B$36,INDEX(Ranks!$1:$1048576,$A69,X$1))","v":""},{"$f":"IF($A69=\"N/A\",Ref!$B$36,INDEX(Ranks!$1:$1048576,$A69,Y$1))","v":""},{"$f":"IF($A69=\"N/A\",Ref!$B$36,INDEX(Ranks!$1:$1048576,$A69,Z$1))","v":""},{"$f":"IF($A69=\"N/A\",Ref!$B$36,INDEX(Ranks!$1:$1048576,$A69,AA$1))","v":""},{"$f":"IF($A69=\"N/A\",Ref!$B$36,INDEX(Ranks!$1:$1048576,$A69,AB$1))","v":""},{"$f":"IF($A69=\"N/A\",Ref!$B$36,INDEX(Ranks!$1:$1048576,$A69,AC$1))","v":""},{"$f":"IF($A69=\"N/A\",Ref!$B$36,INDEX(Ranks!$1:$1048576,$A69,AD$1))","v":""},{"$f":"IF($A69=\"N/A\",Ref!$B$36,INDEX(Ranks!$1:$1048576,$A69,AE$1))","v":""},{"$f":"IF($A69=\"N/A\",Ref!$B$36,INDEX(Ranks!$1:$1048576,$A69,AF$1))","v":""},{"$f":"IF($A69=\"N/A\",Ref!$B$36,INDEX(Ranks!$1:$1048576,$A69,AG$1))","v":""},{"$f":"IF($A69=\"N/A\",Ref!$B$36,INDEX(Ranks!$1:$1048576,$A69,AH$1))","v":""},{"$f":"IF($A69=\"N/A\",Ref!$B$36,INDEX(Ranks!$1:$1048576,$A69,AI$1))","v":""},{"$f":"IF($A69=\"N/A\",Ref!$B$36,INDEX(Ranks!$1:$1048576,$A69,AJ$1))","v":""},{"$f":"IF($A69=\"N/A\",Ref!$B$36,INDEX(Ranks!$1:$1048576,$A69,AK$1))","v":""},{"$f":"IF($A69=\"N/A\",Ref!$B$36,INDEX(Ranks!$1:$1048576,$A69,AL$1))","v":""},{"$f":"IF($A69=\"N/A\",Ref!$B$36,INDEX(Ranks!$1:$1048576,$A69,AM$1))","v":""},{"$f":"IF($A69=\"N/A\",Ref!$B$36,INDEX(Ranks!$1:$1048576,$A69,AN$1))","v":""},{"$f":"IF($A69=\"N/A\",Ref!$B$36,INDEX(Ranks!$1:$1048576,$A69,AO$1))","v":""},{"$f":"IF($A69=\"N/A\",Ref!$B$36,INDEX(Ranks!$1:$1048576,$A69,AP$1))","v":""},{"$f":"IF($A69=\"N/A\",Ref!$B$36,INDEX(Ranks!$1:$1048576,$A69,AQ$1))","v":""},{"$f":"IF($A69=\"N/A\",Ref!$B$36,INDEX(Ranks!$1:$1048576,$A69,AR$1))","v":""},{"$f":"IF($A69=\"N/A\",Ref!$B$36,INDEX(Ranks!$1:$1048576,$A69,AS$1))","v":""},{"$f":"IF($A69=\"N/A\",Ref!$B$36,INDEX(Ranks!$1:$1048576,$A69,AT$1))","v":""},{"$f":"IF($A69=\"N/A\",Ref!$B$36,INDEX(Ranks!$1:$1048576,$A69,AU$1))","v":""},{"$f":"IF($A69=\"N/A\",Ref!$B$36,INDEX(Ranks!$1:$1048576,$A69,AV$1))","v":""},{"$f":"IF($A69=\"N/A\",Ref!$B$36,INDEX(Ranks!$1:$1048576,$A69,AW$1))","v":""},{"$f":"IF($A69=\"N/A\",Ref!$B$36,INDEX(Ranks!$1:$1048576,$A69,AX$1))","v":""},{"$f":"IF($A69=\"N/A\",Ref!$B$36,INDEX(Ranks!$1:$1048576,$A69,AY$1))","v":""},{"$f":"IF($A69=\"N/A\",Ref!$B$36,INDEX(Ranks!$1:$1048576,$A69,AZ$1))","v":""},{"$f":"IF($A69=\"N/A\",Ref!$B$36,INDEX(Ranks!$1:$1048576,$A69,BA$1))","v":""},{"$f":"IF($A69=\"N/A\",Ref!$B$36,INDEX(Ranks!$1:$1048576,$A69,BB$1))","v":""},{"$f":"IF($A69=\"N/A\",Ref!$B$36,INDEX(Ranks!$1:$1048576,$A69,BC$1))","v":""},{"$f":"IF($A69=\"N/A\",Ref!$B$36,INDEX(Ranks!$1:$1048576,$A69,BD$1))","v":""},{"$f":"IF($A69=\"N/A\",Ref!$B$36,INDEX(Ranks!$1:$1048576,$A69,BE$1))","v":""},{"$f":"IF($A69=\"N/A\",Ref!$B$36,INDEX(Ranks!$1:$1048576,$A69,BF$1))","v":""},{"$f":"IF($A69=\"N/A\",Ref!$B$36,INDEX(Ranks!$1:$1048576,$A69,BG$1))","v":""},{"$f":"IF($A69=\"N/A\",Ref!$B$36,INDEX(Ranks!$1:$1048576,$A69,BH$1))","v":""},{"$f":"IF($A69=\"N/A\",Ref!$B$36,INDEX(Ranks!$1:$1048576,$A69,BI$1))","v":""},{"$f":"IF($A69=\"N/A\",Ref!$B$36,INDEX(Ranks!$1:$1048576,$A69,BJ$1))","v":""},{"$f":"IF($A69=\"N/A\",Ref!$B$36,INDEX(Ranks!$1:$1048576,$A69,BK$1))","v":""},{"$f":"IF($A69=\"N/A\",Ref!$B$36,INDEX(Ranks!$1:$1048576,$A69,BL$1))","v":""},{"$f":"IF($A69=\"N/A\",Ref!$B$36,INDEX(Ranks!$1:$1048576,$A69,BM$1))","v":""},{"$f":"IF($A69=\"N/A\",Ref!$B$36,INDEX(Ranks!$1:$1048576,$A69,BN$1))","v":""},{"$f":"IF($A69=\"N/A\",Ref!$B$36,INDEX(Ranks!$1:$1048576,$A69,BO$1))","v":""},{"$f":"IF($A69=\"N/A\",Ref!$B$36,INDEX(Ranks!$1:$1048576,$A69,BP$1))","v":""},{"$f":"IF($A69=\"N/A\",Ref!$B$36,INDEX(Ranks!$1:$1048576,$A69,BQ$1))","v":""},{"$f":"IF($A69=\"N/A\",Ref!$B$36,INDEX(Ranks!$1:$1048576,$A69,BR$1))","v":""},{"$f":"IF($A69=\"N/A\",Ref!$B$36,INDEX(Ranks!$1:$1048576,$A69,BS$1))","v":""},{"$f":"IF($A69=\"N/A\",Ref!$B$36,INDEX(Ranks!$1:$1048576,$A69,BT$1))","v":""},{"$f":"IF($A69=\"N/A\",Ref!$B$36,INDEX(Ranks!$1:$1048576,$A69,BU$1))","v":""},{"$f":"IF($A69=\"N/A\",Ref!$B$36,INDEX(Ranks!$1:$1048576,$A69,BV$1))","v":""},{"$f":"IF($A69=\"N/A\",Ref!$B$36,INDEX(Ranks!$1:$1048576,$A69,BW$1))","v":""},{"$f":"IF($A69=\"N/A\",Ref!$B$36,INDEX(Ranks!$1:$1048576,$A69,BX$1))","v":""},{"$f":"IF($A69=\"N/A\",Ref!$B$36,INDEX(Ranks!$1:$1048576,$A69,BY$1))","v":""},{"$f":"IF($A69=\"N/A\",Ref!$B$36,INDEX(Ranks!$1:$1048576,$A69,BZ$1))","v":""},{"$f":"IF($A69=\"N/A\",Ref!$B$36,INDEX(Ranks!$1:$1048576,$A69,CA$1))","v":""},{"$f":"IF($A69=\"N/A\",Ref!$B$36,INDEX(Ranks!$1:$1048576,$A69,CB$1))","v":""},{"$f":"IF($A69=\"N/A\",Ref!$B$36,INDEX(Ranks!$1:$1048576,$A69,CC$1))","v":""},{"$f":"IF($A69=\"N/A\",Ref!$B$36,INDEX(Ranks!$1:$1048576,$A69,CD$1))","v":""},{"$f":"IF($A69=\"N/A\",Ref!$B$36,INDEX(Ranks!$1:$1048576,$A69,CE$1))","v":""},{"$f":"IF($A69=\"N/A\",Ref!$B$36,INDEX(Ranks!$1:$1048576,$A69,CF$1))","v":""},{"$f":"IF($A69=\"N/A\",Ref!$B$36,INDEX(Ranks!$1:$1048576,$A69,CG$1))","v":""},{"$f":"IF($A69=\"N/A\",Ref!$B$36,INDEX(Ranks!$1:$1048576,$A69,CH$1))","v":""},{"$f":"IF($A69=\"N/A\",Ref!$B$36,INDEX(Ranks!$1:$1048576,$A69,CI$1))","v":""},{"$f":"IF($A69=\"N/A\",Ref!$B$36,INDEX(Ranks!$1:$1048576,$A69,CJ$1))","v":""},{"$f":"IF($A69=\"N/A\",Ref!$B$36,INDEX(Ranks!$1:$1048576,$A69,CK$1))","v":""},{"$f":"IF($A69=\"N/A\",Ref!$B$36,INDEX(Ranks!$1:$1048576,$A69,CL$1))","v":""},{"$f":"IF($A69=\"N/A\",Ref!$B$36,INDEX(Ranks!$1:$1048576,$A69,CM$1))","v":""},{"$f":"IF($A69=\"N/A\",Ref!$B$36,INDEX(Ranks!$1:$1048576,$A69,CN$1))","v":""},{"$f":"IF($A69=\"N/A\",Ref!$B$36,INDEX(Ranks!$1:$1048576,$A69,CO$1))","v":""},{"$f":"IF($A69=\"N/A\",Ref!$B$36,INDEX(Ranks!$1:$1048576,$A69,CP$1))","v":""},{"$f":"IF($A69=\"N/A\",Ref!$B$36,INDEX(Ranks!$1:$1048576,$A69,CQ$1))","v":""},{"$f":"IF($A69=\"N/A\",Ref!$B$36,INDEX(Ranks!$1:$1048576,$A69,CR$1))","v":""},{"$f":"IF($A69=\"N/A\",Ref!$B$36,INDEX(Ranks!$1:$1048576,$A69,CS$1))","v":""},{"$f":"IF($A69=\"N/A\",Ref!$B$36,INDEX(Ranks!$1:$1048576,$A69,CT$1))","v":""},{"$f":"IF($A69=\"N/A\",Ref!$B$36,INDEX(Ranks!$1:$1048576,$A69,CU$1))","v":""},{"$f":"IF($A69=\"N/A\",Ref!$B$36,INDEX(Ranks!$1:$1048576,$A69,CV$1))","v":""},{"$f":"IF($A69=\"N/A\",Ref!$B$36,INDEX(Ranks!$1:$1048576,$A69,CW$1))","v":""},{"$f":"IF($A69=\"N/A\",Ref!$B$36,INDEX(Ranks!$1:$1048576,$A69,CX$1))","v":""},{"$f":"IF($A69=\"N/A\",Ref!$B$36,INDEX(Ranks!$1:$1048576,$A69,CY$1))","v":""},{"$f":"IF($A69=\"N/A\",Ref!$B$36,INDEX(Ranks!$1:$1048576,$A69,CZ$1))","v":""},{"$f":"IF($A69=\"N/A\",Ref!$B$36,INDEX(Ranks!$1:$1048576,$A69,DA$1))","v":""},{"$f":"IF($A69=\"N/A\",Ref!$B$36,INDEX(Ranks!$1:$1048576,$A69,DB$1))","v":""},{"$f":"IF($A69=\"N/A\",Ref!$B$36,INDEX(Ranks!$1:$1048576,$A69,DC$1))","v":""},{"$f":"IF($A69=\"N/A\",Ref!$B$36,INDEX(Ranks!$1:$1048576,$A69,DD$1))","v":""},{"$f":"IF($A69=\"N/A\",Ref!$B$36,INDEX(Ranks!$1:$1048576,$A69,DE$1))","v":""},{"$f":"IF($A69=\"N/A\",Ref!$B$36,INDEX(Ranks!$1:$1048576,$A69,DF$1))","v":""},{"$f":"IF($A69=\"N/A\",Ref!$B$36,INDEX(Ranks!$1:$1048576,$A69,DG$1))","v":""},{"$f":"IF($A69=\"N/A\",Ref!$B$36,INDEX(Ranks!$1:$1048576,$A69,DH$1))","v":""},{"$f":"IF($A69=\"N/A\",Ref!$B$36,INDEX(Ranks!$1:$1048576,$A69,DI$1))","v":""},{"$f":"IF($A69=\"N/A\",Ref!$B$36,INDEX(Ranks!$1:$1048576,$A69,DJ$1))","v":""},{"$f":"IF($A69=\"N/A\",Ref!$B$36,INDEX(Ranks!$1:$1048576,$A69,DK$1))","v":""},{"$f":"IF($A69=\"N/A\",Ref!$B$36,INDEX(Ranks!$1:$1048576,$A69,DL$1))","v":""},{"$f":"IF($A69=\"N/A\",Ref!$B$36,INDEX(Ranks!$1:$1048576,$A69,DM$1))","v":""},{"$f":"IF($A69=\"N/A\",Ref!$B$36,INDEX(Ranks!$1:$1048576,$A69,DN$1))","v":""},{"$f":"IF($A69=\"N/A\",Ref!$B$36,INDEX(Ranks!$1:$1048576,$A69,DO$1))","v":""},{"$f":"IF($A69=\"N/A\",Ref!$B$36,INDEX(Ranks!$1:$1048576,$A69,DP$1))","v":""},{"$f":"IF($A69=\"N/A\",Ref!$B$36,INDEX(Ranks!$1:$1048576,$A69,DQ$1))","v":""},{"$f":"IF($A69=\"N/A\",Ref!$B$36,INDEX(Ranks!$1:$1048576,$A69,DR$1))","v":""},{"$f":"IF($A69=\"N/A\",Ref!$B$36,INDEX(Ranks!$1:$1048576,$A69,DS$1))","v":""},{"$f":"IF($A69=\"N/A\",Ref!$B$36,INDEX(Ranks!$1:$1048576,$A69,DT$1))","v":""},{"$f":"IF($A69=\"N/A\",Ref!$B$36,INDEX(Ranks!$1:$1048576,$A69,DU$1))","v":""},{"$f":"IF($A69=\"N/A\",Ref!$B$36,INDEX(Ranks!$1:$1048576,$A69,DV$1))","v":""},{"$f":"IF($A69=\"N/A\",Ref!$B$36,INDEX(Ranks!$1:$1048576,$A69,DW$1))","v":""},{"$f":"IF($A69=\"N/A\",Ref!$B$36,INDEX(Ranks!$1:$1048576,$A69,DX$1))","v":""},{"$f":"IF($A69=\"N/A\",Ref!$B$36,INDEX(Ranks!$1:$1048576,$A69,DY$1))","v":""},{"$f":"IF($A69=\"N/A\",Ref!$B$36,INDEX(Ranks!$1:$1048576,$A69,DZ$1))","v":""},{"$f":"IF($A69=\"N/A\",Ref!$B$36,INDEX(Ranks!$1:$1048576,$A69,EA$1))","v":""},{"$f":"IF($A69=\"N/A\",Ref!$B$36,INDEX(Ranks!$1:$1048576,$A69,EB$1))","v":""}]
[{"$f":"IFERROR(MATCH('Portfolio Page'!L70,Ranks!L:L,0),\"N/A\")","v":"N/A"},null,{"$f":"IF($A70=\"N/A\",\"\",INDEX(Ranks!$1:$1048576,$A70,C$1))","v":""},{"$f":"IF($A70=\"N/A\",Ref!$B$36,INDEX(Ranks!$1:$1048576,$A70,D$1))","v":""},{"$f":"IF($A70=\"N/A\",Ref!$B$36,INDEX(Ranks!$1:$1048576,$A70,E$1))","v":""},{"$f":"IF($A70=\"N/A\",\"\",INDEX(Ranks!$1:$1048576,$A70,F$1))","v":""},{"$f":"IF($A70=\"N/A\",\"\",INDEX(Ranks!$1:$1048576,$A70,G$1))","v":""},{"$f":"IF($A70=\"N/A\",\"\",INDEX(Ranks!$1:$1048576,$A70,H$1))","v":""},{"$f":"IF($A70=\"N/A\",\"\",INDEX(Ranks!$1:$1048576,$A70,I$1))","v":""},{"$f":"IF($A70=\"N/A\",\"\",INDEX(Ranks!$1:$1048576,$A70,J$1))","v":""},{"$f":"IF($A70=\"N/A\",\"\",INDEX(Ranks!$1:$1048576,$A70,K$1))","v":""},null,{"$f":"IF($A70=\"N/A\",Ref!$B$36,INDEX(Ranks!$1:$1048576,$A70,M$1))","v":""},{"$f":"IF($A70=\"N/A\",Ref!$B$36,INDEX(Ranks!$1:$1048576,$A70,N$1))","v":""},{"$f":"IF($A70=\"N/A\",Ref!$B$36,INDEX(Ranks!$1:$1048576,$A70,O$1))","v":""},{"$f":"IF($A70=\"N/A\",Ref!$B$36,INDEX(Ranks!$1:$1048576,$A70,P$1))","v":""},{"$f":"IF($A70=\"N/A\",Ref!$B$36,INDEX(Ranks!$1:$1048576,$A70,Q$1))","v":""},{"$f":"IF($A70=\"N/A\",Ref!$B$36,INDEX(Ranks!$1:$1048576,$A70,R$1))","v":""},{"$f":"IF($A70=\"N/A\",Ref!$B$36,INDEX(Ranks!$1:$1048576,$A70,S$1))","v":""},{"$f":"IF($A70=\"N/A\",Ref!$B$36,INDEX(Ranks!$1:$1048576,$A70,T$1))","v":""},{"$f":"IF($A70=\"N/A\",Ref!$B$36,INDEX(Ranks!$1:$1048576,$A70,U$1))","v":""},{"$f":"IF($A70=\"N/A\",Ref!$B$36,INDEX(Ranks!$1:$1048576,$A70,V$1))","v":""},{"$f":"IF($A70=\"N/A\",Ref!$B$36,INDEX(Ranks!$1:$1048576,$A70,W$1))","v":""},{"$f":"IF($A70=\"N/A\",Ref!$B$36,INDEX(Ranks!$1:$1048576,$A70,X$1))","v":""},{"$f":"IF($A70=\"N/A\",Ref!$B$36,INDEX(Ranks!$1:$1048576,$A70,Y$1))","v":""},{"$f":"IF($A70=\"N/A\",Ref!$B$36,INDEX(Ranks!$1:$1048576,$A70,Z$1))","v":""},{"$f":"IF($A70=\"N/A\",Ref!$B$36,INDEX(Ranks!$1:$1048576,$A70,AA$1))","v":""},{"$f":"IF($A70=\"N/A\",Ref!$B$36,INDEX(Ranks!$1:$1048576,$A70,AB$1))","v":""},{"$f":"IF($A70=\"N/A\",Ref!$B$36,INDEX(Ranks!$1:$1048576,$A70,AC$1))","v":""},{"$f":"IF($A70=\"N/A\",Ref!$B$36,INDEX(Ranks!$1:$1048576,$A70,AD$1))","v":""},{"$f":"IF($A70=\"N/A\",Ref!$B$36,INDEX(Ranks!$1:$1048576,$A70,AE$1))","v":""},{"$f":"IF($A70=\"N/A\",Ref!$B$36,INDEX(Ranks!$1:$1048576,$A70,AF$1))","v":""},{"$f":"IF($A70=\"N/A\",Ref!$B$36,INDEX(Ranks!$1:$1048576,$A70,AG$1))","v":""},{"$f":"IF($A70=\"N/A\",Ref!$B$36,INDEX(Ranks!$1:$1048576,$A70,AH$1))","v":""},{"$f":"IF($A70=\"N/A\",Ref!$B$36,INDEX(Ranks!$1:$1048576,$A70,AI$1))","v":""},{"$f":"IF($A70=\"N/A\",Ref!$B$36,INDEX(Ranks!$1:$1048576,$A70,AJ$1))","v":""},{"$f":"IF($A70=\"N/A\",Ref!$B$36,INDEX(Ranks!$1:$1048576,$A70,AK$1))","v":""},{"$f":"IF($A70=\"N/A\",Ref!$B$36,INDEX(Ranks!$1:$1048576,$A70,AL$1))","v":""},{"$f":"IF($A70=\"N/A\",Ref!$B$36,INDEX(Ranks!$1:$1048576,$A70,AM$1))","v":""},{"$f":"IF($A70=\"N/A\",Ref!$B$36,INDEX(Ranks!$1:$1048576,$A70,AN$1))","v":""},{"$f":"IF($A70=\"N/A\",Ref!$B$36,INDEX(Ranks!$1:$1048576,$A70,AO$1))","v":""},{"$f":"IF($A70=\"N/A\",Ref!$B$36,INDEX(Ranks!$1:$1048576,$A70,AP$1))","v":""},{"$f":"IF($A70=\"N/A\",Ref!$B$36,INDEX(Ranks!$1:$1048576,$A70,AQ$1))","v":""},{"$f":"IF($A70=\"N/A\",Ref!$B$36,INDEX(Ranks!$1:$1048576,$A70,AR$1))","v":""},{"$f":"IF($A70=\"N/A\",Ref!$B$36,INDEX(Ranks!$1:$1048576,$A70,AS$1))","v":""},{"$f":"IF($A70=\"N/A\",Ref!$B$36,INDEX(Ranks!$1:$1048576,$A70,AT$1))","v":""},{"$f":"IF($A70=\"N/A\",Ref!$B$36,INDEX(Ranks!$1:$1048576,$A70,AU$1))","v":""},{"$f":"IF($A70=\"N/A\",Ref!$B$36,INDEX(Ranks!$1:$1048576,$A70,AV$1))","v":""},{"$f":"IF($A70=\"N/A\",Ref!$B$36,INDEX(Ranks!$1:$1048576,$A70,AW$1))","v":""},{"$f":"IF($A70=\"N/A\",Ref!$B$36,INDEX(Ranks!$1:$1048576,$A70,AX$1))","v":""},{"$f":"IF($A70=\"N/A\",Ref!$B$36,INDEX(Ranks!$1:$1048576,$A70,AY$1))","v":""},{"$f":"IF($A70=\"N/A\",Ref!$B$36,INDEX(Ranks!$1:$1048576,$A70,AZ$1))","v":""},{"$f":"IF($A70=\"N/A\",Ref!$B$36,INDEX(Ranks!$1:$1048576,$A70,BA$1))","v":""},{"$f":"IF($A70=\"N/A\",Ref!$B$36,INDEX(Ranks!$1:$1048576,$A70,BB$1))","v":""},{"$f":"IF($A70=\"N/A\",Ref!$B$36,INDEX(Ranks!$1:$1048576,$A70,BC$1))","v":""},{"$f":"IF($A70=\"N/A\",Ref!$B$36,INDEX(Ranks!$1:$1048576,$A70,BD$1))","v":""},{"$f":"IF($A70=\"N/A\",Ref!$B$36,INDEX(Ranks!$1:$1048576,$A70,BE$1))","v":""},{"$f":"IF($A70=\"N/A\",Ref!$B$36,INDEX(Ranks!$1:$1048576,$A70,BF$1))","v":""},{"$f":"IF($A70=\"N/A\",Ref!$B$36,INDEX(Ranks!$1:$1048576,$A70,BG$1))","v":""},{"$f":"IF($A70=\"N/A\",Ref!$B$36,INDEX(Ranks!$1:$1048576,$A70,BH$1))","v":""},{"$f":"IF($A70=\"N/A\",Ref!$B$36,INDEX(Ranks!$1:$1048576,$A70,BI$1))","v":""},{"$f":"IF($A70=\"N/A\",Ref!$B$36,INDEX(Ranks!$1:$1048576,$A70,BJ$1))","v":""},{"$f":"IF($A70=\"N/A\",Ref!$B$36,INDEX(Ranks!$1:$1048576,$A70,BK$1))","v":""},{"$f":"IF($A70=\"N/A\",Ref!$B$36,INDEX(Ranks!$1:$1048576,$A70,BL$1))","v":""},{"$f":"IF($A70=\"N/A\",Ref!$B$36,INDEX(Ranks!$1:$1048576,$A70,BM$1))","v":""},{"$f":"IF($A70=\"N/A\",Ref!$B$36,INDEX(Ranks!$1:$1048576,$A70,BN$1))","v":""},{"$f":"IF($A70=\"N/A\",Ref!$B$36,INDEX(Ranks!$1:$1048576,$A70,BO$1))","v":""},{"$f":"IF($A70=\"N/A\",Ref!$B$36,INDEX(Ranks!$1:$1048576,$A70,BP$1))","v":""},{"$f":"IF($A70=\"N/A\",Ref!$B$36,INDEX(Ranks!$1:$1048576,$A70,BQ$1))","v":""},{"$f":"IF($A70=\"N/A\",Ref!$B$36,INDEX(Ranks!$1:$1048576,$A70,BR$1))","v":""},{"$f":"IF($A70=\"N/A\",Ref!$B$36,INDEX(Ranks!$1:$1048576,$A70,BS$1))","v":""},{"$f":"IF($A70=\"N/A\",Ref!$B$36,INDEX(Ranks!$1:$1048576,$A70,BT$1))","v":""},{"$f":"IF($A70=\"N/A\",Ref!$B$36,INDEX(Ranks!$1:$1048576,$A70,BU$1))","v":""},{"$f":"IF($A70=\"N/A\",Ref!$B$36,INDEX(Ranks!$1:$1048576,$A70,BV$1))","v":""},{"$f":"IF($A70=\"N/A\",Ref!$B$36,INDEX(Ranks!$1:$1048576,$A70,BW$1))","v":""},{"$f":"IF($A70=\"N/A\",Ref!$B$36,INDEX(Ranks!$1:$1048576,$A70,BX$1))","v":""},{"$f":"IF($A70=\"N/A\",Ref!$B$36,INDEX(Ranks!$1:$1048576,$A70,BY$1))","v":""},{"$f":"IF($A70=\"N/A\",Ref!$B$36,INDEX(Ranks!$1:$1048576,$A70,BZ$1))","v":""},{"$f":"IF($A70=\"N/A\",Ref!$B$36,INDEX(Ranks!$1:$1048576,$A70,CA$1))","v":""},{"$f":"IF($A70=\"N/A\",Ref!$B$36,INDEX(Ranks!$1:$1048576,$A70,CB$1))","v":""},{"$f":"IF($A70=\"N/A\",Ref!$B$36,INDEX(Ranks!$1:$1048576,$A70,CC$1))","v":""},{"$f":"IF($A70=\"N/A\",Ref!$B$36,INDEX(Ranks!$1:$1048576,$A70,CD$1))","v":""},{"$f":"IF($A70=\"N/A\",Ref!$B$36,INDEX(Ranks!$1:$1048576,$A70,CE$1))","v":""},{"$f":"IF($A70=\"N/A\",Ref!$B$36,INDEX(Ranks!$1:$1048576,$A70,CF$1))","v":""},{"$f":"IF($A70=\"N/A\",Ref!$B$36,INDEX(Ranks!$1:$1048576,$A70,CG$1))","v":""},{"$f":"IF($A70=\"N/A\",Ref!$B$36,INDEX(Ranks!$1:$1048576,$A70,CH$1))","v":""},{"$f":"IF($A70=\"N/A\",Ref!$B$36,INDEX(Ranks!$1:$1048576,$A70,CI$1))","v":""},{"$f":"IF($A70=\"N/A\",Ref!$B$36,INDEX(Ranks!$1:$1048576,$A70,CJ$1))","v":""},{"$f":"IF($A70=\"N/A\",Ref!$B$36,INDEX(Ranks!$1:$1048576,$A70,CK$1))","v":""},{"$f":"IF($A70=\"N/A\",Ref!$B$36,INDEX(Ranks!$1:$1048576,$A70,CL$1))","v":""},{"$f":"IF($A70=\"N/A\",Ref!$B$36,INDEX(Ranks!$1:$1048576,$A70,CM$1))","v":""},{"$f":"IF($A70=\"N/A\",Ref!$B$36,INDEX(Ranks!$1:$1048576,$A70,CN$1))","v":""},{"$f":"IF($A70=\"N/A\",Ref!$B$36,INDEX(Ranks!$1:$1048576,$A70,CO$1))","v":""},{"$f":"IF($A70=\"N/A\",Ref!$B$36,INDEX(Ranks!$1:$1048576,$A70,CP$1))","v":""},{"$f":"IF($A70=\"N/A\",Ref!$B$36,INDEX(Ranks!$1:$1048576,$A70,CQ$1))","v":""},{"$f":"IF($A70=\"N/A\",Ref!$B$36,INDEX(Ranks!$1:$1048576,$A70,CR$1))","v":""},{"$f":"IF($A70=\"N/A\",Ref!$B$36,INDEX(Ranks!$1:$1048576,$A70,CS$1))","v":""},{"$f":"IF($A70=\"N/A\",Ref!$B$36,INDEX(Ranks!$1:$1048576,$A70,CT$1))","v":""},{"$f":"IF($A70=\"N/A\",Ref!$B$36,INDEX(Ranks!$1:$1048576,$A70,CU$1))","v":""},{"$f":"IF($A70=\"N/A\",Ref!$B$36,INDEX(Ranks!$1:$1048576,$A70,CV$1))","v":""},{"$f":"IF($A70=\"N/A\",Ref!$B$36,INDEX(Ranks!$1:$1048576,$A70,CW$1))","v":""},{"$f":"IF($A70=\"N/A\",Ref!$B$36,INDEX(Ranks!$1:$1048576,$A70,CX$1))","v":""},{"$f":"IF($A70=\"N/A\",Ref!$B$36,INDEX(Ranks!$1:$1048576,$A70,CY$1))","v":""},{"$f":"IF($A70=\"N/A\",Ref!$B$36,INDEX(Ranks!$1:$1048576,$A70,CZ$1))","v":""},{"$f":"IF($A70=\"N/A\",Ref!$B$36,INDEX(Ranks!$1:$1048576,$A70,DA$1))","v":""},{"$f":"IF($A70=\"N/A\",Ref!$B$36,INDEX(Ranks!$1:$1048576,$A70,DB$1))","v":""},{"$f":"IF($A70=\"N/A\",Ref!$B$36,INDEX(Ranks!$1:$1048576,$A70,DC$1))","v":""},{"$f":"IF($A70=\"N/A\",Ref!$B$36,INDEX(Ranks!$1:$1048576,$A70,DD$1))","v":""},{"$f":"IF($A70=\"N/A\",Ref!$B$36,INDEX(Ranks!$1:$1048576,$A70,DE$1))","v":""},{"$f":"IF($A70=\"N/A\",Ref!$B$36,INDEX(Ranks!$1:$1048576,$A70,DF$1))","v":""},{"$f":"IF($A70=\"N/A\",Ref!$B$36,INDEX(Ranks!$1:$1048576,$A70,DG$1))","v":""},{"$f":"IF($A70=\"N/A\",Ref!$B$36,INDEX(Ranks!$1:$1048576,$A70,DH$1))","v":""},{"$f":"IF($A70=\"N/A\",Ref!$B$36,INDEX(Ranks!$1:$1048576,$A70,DI$1))","v":""},{"$f":"IF($A70=\"N/A\",Ref!$B$36,INDEX(Ranks!$1:$1048576,$A70,DJ$1))","v":""},{"$f":"IF($A70=\"N/A\",Ref!$B$36,INDEX(Ranks!$1:$1048576,$A70,DK$1))","v":""},{"$f":"IF($A70=\"N/A\",Ref!$B$36,INDEX(Ranks!$1:$1048576,$A70,DL$1))","v":""},{"$f":"IF($A70=\"N/A\",Ref!$B$36,INDEX(Ranks!$1:$1048576,$A70,DM$1))","v":""},{"$f":"IF($A70=\"N/A\",Ref!$B$36,INDEX(Ranks!$1:$1048576,$A70,DN$1))","v":""},{"$f":"IF($A70=\"N/A\",Ref!$B$36,INDEX(Ranks!$1:$1048576,$A70,DO$1))","v":""},{"$f":"IF($A70=\"N/A\",Ref!$B$36,INDEX(Ranks!$1:$1048576,$A70,DP$1))","v":""},{"$f":"IF($A70=\"N/A\",Ref!$B$36,INDEX(Ranks!$1:$1048576,$A70,DQ$1))","v":""},{"$f":"IF($A70=\"N/A\",Ref!$B$36,INDEX(Ranks!$1:$1048576,$A70,DR$1))","v":""},{"$f":"IF($A70=\"N/A\",Ref!$B$36,INDEX(Ranks!$1:$1048576,$A70,DS$1))","v":""},{"$f":"IF($A70=\"N/A\",Ref!$B$36,INDEX(Ranks!$1:$1048576,$A70,DT$1))","v":""},{"$f":"IF($A70=\"N/A\",Ref!$B$36,INDEX(Ranks!$1:$1048576,$A70,DU$1))","v":""},{"$f":"IF($A70=\"N/A\",Ref!$B$36,INDEX(Ranks!$1:$1048576,$A70,DV$1))","v":""},{"$f":"IF($A70=\"N/A\",Ref!$B$36,INDEX(Ranks!$1:$1048576,$A70,DW$1))","v":""},{"$f":"IF($A70=\"N/A\",Ref!$B$36,INDEX(Ranks!$1:$1048576,$A70,DX$1))","v":""},{"$f":"IF($A70=\"N/A\",Ref!$B$36,INDEX(Ranks!$1:$1048576,$A70,DY$1))","v":""},{"$f":"IF($A70=\"N/A\",Ref!$B$36,INDEX(Ranks!$1:$1048576,$A70,DZ$1))","v":""},{"$f":"IF($A70=\"N/A\",Ref!$B$36,INDEX(Ranks!$1:$1048576,$A70,EA$1))","v":""},{"$f":"IF($A70=\"N/A\",Ref!$B$36,INDEX(Ranks!$1:$1048576,$A70,EB$1))","v":""}]
[{"$f":"IFERROR(MATCH('Portfolio Page'!L71,Ranks!L:L,0),\"N/A\")","v":"N/A"},null,{"$f":"IF($A71=\"N/A\",\"\",INDEX(Ranks!$1:$1048576,$A71,C$1))","v":""},{"$f":"IF($A71=\"N/A\",Ref!$B$36,INDEX(Ranks!$1:$1048576,$A71,D$1))","v":""},{"$f":"IF($A71=\"N/A\",Ref!$B$36,INDEX(Ranks!$1:$1048576,$A71,E$1))","v":""},{"$f":"IF($A71=\"N/A\",\"\",INDEX(Ranks!$1:$1048576,$A71,F$1))","v":""},{"$f":"IF($A71=\"N/A\",\"\",INDEX(Ranks!$1:$1048576,$A71,G$1))","v":""},{"$f":"IF($A71=\"N/A\",\"\",INDEX(Ranks!$1:$1048576,$A71,H$1))","v":""},{"$f":"IF($A71=\"N/A\",\"\",INDEX(Ranks!$1:$1048576,$A71,I$1))","v":""},{"$f":"IF($A71=\"N/A\",\"\",INDEX(Ranks!$1:$1048576,$A71,J$1))","v":""},{"$f":"IF($A71=\"N/A\",\"\",INDEX(Ranks!$1:$1048576,$A71,K$1))","v":""},null,{"$f":"IF($A71=\"N/A\",Ref!$B$36,INDEX(Ranks!$1:$1048576,$A71,M$1))","v":""},{"$f":"IF($A71=\"N/A\",Ref!$B$36,INDEX(Ranks!$1:$1048576,$A71,N$1))","v":""},{"$f":"IF($A71=\"N/A\",Ref!$B$36,INDEX(Ranks!$1:$1048576,$A71,O$1))","v":""},{"$f":"IF($A71=\"N/A\",Ref!$B$36,INDEX(Ranks!$1:$1048576,$A71,P$1))","v":""},{"$f":"IF($A71=\"N/A\",Ref!$B$36,INDEX(Ranks!$1:$1048576,$A71,Q$1))","v":""},{"$f":"IF($A71=\"N/A\",Ref!$B$36,INDEX(Ranks!$1:$1048576,$A71,R$1))","v":""},{"$f":"IF($A71=\"N/A\",Ref!$B$36,INDEX(Ranks!$1:$1048576,$A71,S$1))","v":""},{"$f":"IF($A71=\"N/A\",Ref!$B$36,INDEX(Ranks!$1:$1048576,$A71,T$1))","v":""},{"$f":"IF($A71=\"N/A\",Ref!$B$36,INDEX(Ranks!$1:$1048576,$A71,U$1))","v":""},{"$f":"IF($A71=\"N/A\",Ref!$B$36,INDEX(Ranks!$1:$1048576,$A71,V$1))","v":""},{"$f":"IF($A71=\"N/A\",Ref!$B$36,INDEX(Ranks!$1:$1048576,$A71,W$1))","v":""},{"$f":"IF($A71=\"N/A\",Ref!$B$36,INDEX(Ranks!$1:$1048576,$A71,X$1))","v":""},{"$f":"IF($A71=\"N/A\",Ref!$B$36,INDEX(Ranks!$1:$1048576,$A71,Y$1))","v":""},{"$f":"IF($A71=\"N/A\",Ref!$B$36,INDEX(Ranks!$1:$1048576,$A71,Z$1))","v":""},{"$f":"IF($A71=\"N/A\",Ref!$B$36,INDEX(Ranks!$1:$1048576,$A71,AA$1))","v":""},{"$f":"IF($A71=\"N/A\",Ref!$B$36,INDEX(Ranks!$1:$1048576,$A71,AB$1))","v":""},{"$f":"IF($A71=\"N/A\",Ref!$B$36,INDEX(Ranks!$1:$1048576,$A71,AC$1))","v":""},{"$f":"IF($A71=\"N/A\",Ref!$B$36,INDEX(Ranks!$1:$1048576,$A71,AD$1))","v":""},{"$f":"IF($A71=\"N/A\",Ref!$B$36,INDEX(Ranks!$1:$1048576,$A71,AE$1))","v":""},{"$f":"IF($A71=\"N/A\",Ref!$B$36,INDEX(Ranks!$1:$1048576,$A71,AF$1))","v":""},{"$f":"IF($A71=\"N/A\",Ref!$B$36,INDEX(Ranks!$1:$1048576,$A71,AG$1))","v":""},{"$f":"IF($A71=\"N/A\",Ref!$B$36,INDEX(Ranks!$1:$1048576,$A71,AH$1))","v":""},{"$f":"IF($A71=\"N/A\",Ref!$B$36,INDEX(Ranks!$1:$1048576,$A71,AI$1))","v":""},{"$f":"IF($A71=\"N/A\",Ref!$B$36,INDEX(Ranks!$1:$1048576,$A71,AJ$1))","v":""},{"$f":"IF($A71=\"N/A\",Ref!$B$36,INDEX(Ranks!$1:$1048576,$A71,AK$1))","v":""},{"$f":"IF($A71=\"N/A\",Ref!$B$36,INDEX(Ranks!$1:$1048576,$A71,AL$1))","v":""},{"$f":"IF($A71=\"N/A\",Ref!$B$36,INDEX(Ranks!$1:$1048576,$A71,AM$1))","v":""},{"$f":"IF($A71=\"N/A\",Ref!$B$36,INDEX(Ranks!$1:$1048576,$A71,AN$1))","v":""},{"$f":"IF($A71=\"N/A\",Ref!$B$36,INDEX(Ranks!$1:$1048576,$A71,AO$1))","v":""},{"$f":"IF($A71=\"N/A\",Ref!$B$36,INDEX(Ranks!$1:$1048576,$A71,AP$1))","v":""},{"$f":"IF($A71=\"N/A\",Ref!$B$36,INDEX(Ranks!$1:$1048576,$A71,AQ$1))","v":""},{"$f":"IF($A71=\"N/A\",Ref!$B$36,INDEX(Ranks!$1:$1048576,$A71,AR$1))","v":""},{"$f":"IF($A71=\"N/A\",Ref!$B$36,INDEX(Ranks!$1:$1048576,$A71,AS$1))","v":""},{"$f":"IF($A71=\"N/A\",Ref!$B$36,INDEX(Ranks!$1:$1048576,$A71,AT$1))","v":""},{"$f":"IF($A71=\"N/A\",Ref!$B$36,INDEX(Ranks!$1:$1048576,$A71,AU$1))","v":""},{"$f":"IF($A71=\"N/A\",Ref!$B$36,INDEX(Ranks!$1:$1048576,$A71,AV$1))","v":""},{"$f":"IF($A71=\"N/A\",Ref!$B$36,INDEX(Ranks!$1:$1048576,$A71,AW$1))","v":""},{"$f":"IF($A71=\"N/A\",Ref!$B$36,INDEX(Ranks!$1:$1048576,$A71,AX$1))","v":""},{"$f":"IF($A71=\"N/A\",Ref!$B$36,INDEX(Ranks!$1:$1048576,$A71,AY$1))","v":""},{"$f":"IF($A71=\"N/A\",Ref!$B$36,INDEX(Ranks!$1:$1048576,$A71,AZ$1))","v":""},{"$f":"IF($A71=\"N/A\",Ref!$B$36,INDEX(Ranks!$1:$1048576,$A71,BA$1))","v":""},{"$f":"IF($A71=\"N/A\",Ref!$B$36,INDEX(Ranks!$1:$1048576,$A71,BB$1))","v":""},{"$f":"IF($A71=\"N/A\",Ref!$B$36,INDEX(Ranks!$1:$1048576,$A71,BC$1))","v":""},{"$f":"IF($A71=\"N/A\",Ref!$B$36,INDEX(Ranks!$1:$1048576,$A71,BD$1))","v":""},{"$f":"IF($A71=\"N/A\",Ref!$B$36,INDEX(Ranks!$1:$1048576,$A71,BE$1))","v":""},{"$f":"IF($A71=\"N/A\",Ref!$B$36,INDEX(Ranks!$1:$1048576,$A71,BF$1))","v":""},{"$f":"IF($A71=\"N/A\",Ref!$B$36,INDEX(Ranks!$1:$1048576,$A71,BG$1))","v":""},{"$f":"IF($A71=\"N/A\",Ref!$B$36,INDEX(Ranks!$1:$1048576,$A71,BH$1))","v":""},{"$f":"IF($A71=\"N/A\",Ref!$B$36,INDEX(Ranks!$1:$1048576,$A71,BI$1))","v":""},{"$f":"IF($A71=\"N/A\",Ref!$B$36,INDEX(Ranks!$1:$1048576,$A71,BJ$1))","v":""},{"$f":"IF($A71=\"N/A\",Ref!$B$36,INDEX(Ranks!$1:$1048576,$A71,BK$1))","v":""},{"$f":"IF($A71=\"N/A\",Ref!$B$36,INDEX(Ranks!$1:$1048576,$A71,BL$1))","v":""},{"$f":"IF($A71=\"N/A\",Ref!$B$36,INDEX(Ranks!$1:$1048576,$A71,BM$1))","v":""},{"$f":"IF($A71=\"N/A\",Ref!$B$36,INDEX(Ranks!$1:$1048576,$A71,BN$1))","v":""},{"$f":"IF($A71=\"N/A\",Ref!$B$36,INDEX(Ranks!$1:$1048576,$A71,BO$1))","v":""},{"$f":"IF($A71=\"N/A\",Ref!$B$36,INDEX(Ranks!$1:$1048576,$A71,BP$1))","v":""},{"$f":"IF($A71=\"N/A\",Ref!$B$36,INDEX(Ranks!$1:$1048576,$A71,BQ$1))","v":""},{"$f":"IF($A71=\"N/A\",Ref!$B$36,INDEX(Ranks!$1:$1048576,$A71,BR$1))","v":""},{"$f":"IF($A71=\"N/A\",Ref!$B$36,INDEX(Ranks!$1:$1048576,$A71,BS$1))","v":""},{"$f":"IF($A71=\"N/A\",Ref!$B$36,INDEX(Ranks!$1:$1048576,$A71,BT$1))","v":""},{"$f":"IF($A71=\"N/A\",Ref!$B$36,INDEX(Ranks!$1:$1048576,$A71,BU$1))","v":""},{"$f":"IF($A71=\"N/A\",Ref!$B$36,INDEX(Ranks!$1:$1048576,$A71,BV$1))","v":""},{"$f":"IF($A71=\"N/A\",Ref!$B$36,INDEX(Ranks!$1:$1048576,$A71,BW$1))","v":""},{"$f":"IF($A71=\"N/A\",Ref!$B$36,INDEX(Ranks!$1:$1048576,$A71,BX$1))","v":""},{"$f":"IF($A71=\"N/A\",Ref!$B$36,INDEX(Ranks!$1:$1048576,$A71,BY$1))","v":""},{"$f":"IF($A71=\"N/A\",Ref!$B$36,INDEX(Ranks!$1:$1048576,$A71,BZ$1))","v":""},{"$f":"IF($A71=\"N/A\",Ref!$B$36,INDEX(Ranks!$1:$1048576,$A71,CA$1))","v":""},{"$f":"IF($A71=\"N/A\",Ref!$B$36,INDEX(Ranks!$1:$1048576,$A71,CB$1))","v":""},{"$f":"IF($A71=\"N/A\",Ref!$B$36,INDEX(Ranks!$1:$1048576,$A71,CC$1))","v":""},{"$f":"IF($A71=\"N/A\",Ref!$B$36,INDEX(Ranks!$1:$1048576,$A71,CD$1))","v":""},{"$f":"IF($A71=\"N/A\",Ref!$B$36,INDEX(Ranks!$1:$1048576,$A71,CE$1))","v":""},{"$f":"IF($A71=\"N/A\",Ref!$B$36,INDEX(Ranks!$1:$1048576,$A71,CF$1))","v":""},{"$f":"IF($A71=\"N/A\",Ref!$B$36,INDEX(Ranks!$1:$1048576,$A71,CG$1))","v":""},{"$f":"IF($A71=\"N/A\",Ref!$B$36,INDEX(Ranks!$1:$1048576,$A71,CH$1))","v":""},{"$f":"IF($A71=\"N/A\",Ref!$B$36,INDEX(Ranks!$1:$1048576,$A71,CI$1))","v":""},{"$f":"IF($A71=\"N/A\",Ref!$B$36,INDEX(Ranks!$1:$1048576,$A71,CJ$1))","v":""},{"$f":"IF($A71=\"N/A\",Ref!$B$36,INDEX(Ranks!$1:$1048576,$A71,CK$1))","v":""},{"$f":"IF($A71=\"N/A\",Ref!$B$36,INDEX(Ranks!$1:$1048576,$A71,CL$1))","v":""},{"$f":"IF($A71=\"N/A\",Ref!$B$36,INDEX(Ranks!$1:$1048576,$A71,CM$1))","v":""},{"$f":"IF($A71=\"N/A\",Ref!$B$36,INDEX(Ranks!$1:$1048576,$A71,CN$1))","v":""},{"$f":"IF($A71=\"N/A\",Ref!$B$36,INDEX(Ranks!$1:$1048576,$A71,CO$1))","v":""},{"$f":"IF($A71=\"N/A\",Ref!$B$36,INDEX(Ranks!$1:$1048576,$A71,CP$1))","v":""},{"$f":"IF($A71=\"N/A\",Ref!$B$36,INDEX(Ranks!$1:$1048576,$A71,CQ$1))","v":""},{"$f":"IF($A71=\"N/A\",Ref!$B$36,INDEX(Ranks!$1:$1048576,$A71,CR$1))","v":""},{"$f":"IF($A71=\"N/A\",Ref!$B$36,INDEX(Ranks!$1:$1048576,$A71,CS$1))","v":""},{"$f":"IF($A71=\"N/A\",Ref!$B$36,INDEX(Ranks!$1:$1048576,$A71,CT$1))","v":""},{"$f":"IF($A71=\"N/A\",Ref!$B$36,INDEX(Ranks!$1:$1048576,$A71,CU$1))","v":""},{"$f":"IF($A71=\"N/A\",Ref!$B$36,INDEX(Ranks!$1:$1048576,$A71,CV$1))","v":""},{"$f":"IF($A71=\"N/A\",Ref!$B$36,INDEX(Ranks!$1:$1048576,$A71,CW$1))","v":""},{"$f":"IF($A71=\"N/A\",Ref!$B$36,INDEX(Ranks!$1:$1048576,$A71,CX$1))","v":""},{"$f":"IF($A71=\"N/A\",Ref!$B$36,INDEX(Ranks!$1:$1048576,$A71,CY$1))","v":""},{"$f":"IF($A71=\"N/A\",Ref!$B$36,INDEX(Ranks!$1:$1048576,$A71,CZ$1))","v":""},{"$f":"IF($A71=\"N/A\",Ref!$B$36,INDEX(Ranks!$1:$1048576,$A71,DA$1))","v":""},{"$f":"IF($A71=\"N/A\",Ref!$B$36,INDEX(Ranks!$1:$1048576,$A71,DB$1))","v":""},{"$f":"IF($A71=\"N/A\",Ref!$B$36,INDEX(Ranks!$1:$1048576,$A71,DC$1))","v":""},{"$f":"IF($A71=\"N/A\",Ref!$B$36,INDEX(Ranks!$1:$1048576,$A71,DD$1))","v":""},{"$f":"IF($A71=\"N/A\",Ref!$B$36,INDEX(Ranks!$1:$1048576,$A71,DE$1))","v":""},{"$f":"IF($A71=\"N/A\",Ref!$B$36,INDEX(Ranks!$1:$1048576,$A71,DF$1))","v":""},{"$f":"IF($A71=\"N/A\",Ref!$B$36,INDEX(Ranks!$1:$1048576,$A71,DG$1))","v":""},{"$f":"IF($A71=\"N/A\",Ref!$B$36,INDEX(Ranks!$1:$1048576,$A71,DH$1))","v":""},{"$f":"IF($A71=\"N/A\",Ref!$B$36,INDEX(Ranks!$1:$1048576,$A71,DI$1))","v":""},{"$f":"IF($A71=\"N/A\",Ref!$B$36,INDEX(Ranks!$1:$1048576,$A71,DJ$1))","v":""},{"$f":"IF($A71=\"N/A\",Ref!$B$36,INDEX(Ranks!$1:$1048576,$A71,DK$1))","v":""},{"$f":"IF($A71=\"N/A\",Ref!$B$36,INDEX(Ranks!$1:$1048576,$A71,DL$1))","v":""},{"$f":"IF($A71=\"N/A\",Ref!$B$36,INDEX(Ranks!$1:$1048576,$A71,DM$1))","v":""},{"$f":"IF($A71=\"N/A\",Ref!$B$36,INDEX(Ranks!$1:$1048576,$A71,DN$1))","v":""},{"$f":"IF($A71=\"N/A\",Ref!$B$36,INDEX(Ranks!$1:$1048576,$A71,DO$1))","v":""},{"$f":"IF($A71=\"N/A\",Ref!$B$36,INDEX(Ranks!$1:$1048576,$A71,DP$1))","v":""},{"$f":"IF($A71=\"N/A\",Ref!$B$36,INDEX(Ranks!$1:$1048576,$A71,DQ$1))","v":""},{"$f":"IF($A71=\"N/A\",Ref!$B$36,INDEX(Ranks!$1:$1048576,$A71,DR$1))","v":""},{"$f":"IF($A71=\"N/A\",Ref!$B$36,INDEX(Ranks!$1:$1048576,$A71,DS$1))","v":""},{"$f":"IF($A71=\"N/A\",Ref!$B$36,INDEX(Ranks!$1:$1048576,$A71,DT$1))","v":""},{"$f":"IF($A71=\"N/A\",Ref!$B$36,INDEX(Ranks!$1:$1048576,$A71,DU$1))","v":""},{"$f":"IF($A71=\"N/A\",Ref!$B$36,INDEX(Ranks!$1:$1048576,$A71,DV$1))","v":""},{"$f":"IF($A71=\"N/A\",Ref!$B$36,INDEX(Ranks!$1:$1048576,$A71,DW$1))","v":""},{"$f":"IF($A71=\"N/A\",Ref!$B$36,INDEX(Ranks!$1:$1048576,$A71,DX$1))","v":""},{"$f":"IF($A71=\"N/A\",Ref!$B$36,INDEX(Ranks!$1:$1048576,$A71,DY$1))","v":""},{"$f":"IF($A71=\"N/A\",Ref!$B$36,INDEX(Ranks!$1:$1048576,$A71,DZ$1))","v":""},{"$f":"IF($A71=\"N/A\",Ref!$B$36,INDEX(Ranks!$1:$1048576,$A71,EA$1))","v":""},{"$f":"IF($A71=\"N/A\",Ref!$B$36,INDEX(Ranks!$1:$1048576,$A71,EB$1))","v":""}]
[{"$f":"IFERROR(MATCH('Portfolio Page'!L72,Ranks!L:L,0),\"N/A\")","v":"N/A"},null,{"$f":"IF($A72=\"N/A\",\"\",INDEX(Ranks!$1:$1048576,$A72,C$1))","v":""},{"$f":"IF($A72=\"N/A\",Ref!$B$36,INDEX(Ranks!$1:$1048576,$A72,D$1))","v":""},{"$f":"IF($A72=\"N/A\",Ref!$B$36,INDEX(Ranks!$1:$1048576,$A72,E$1))","v":""},{"$f":"IF($A72=\"N/A\",\"\",INDEX(Ranks!$1:$1048576,$A72,F$1))","v":""},{"$f":"IF($A72=\"N/A\",\"\",INDEX(Ranks!$1:$1048576,$A72,G$1))","v":""},{"$f":"IF($A72=\"N/A\",\"\",INDEX(Ranks!$1:$1048576,$A72,H$1))","v":""},{"$f":"IF($A72=\"N/A\",\"\",INDEX(Ranks!$1:$1048576,$A72,I$1))","v":""},{"$f":"IF($A72=\"N/A\",\"\",INDEX(Ranks!$1:$1048576,$A72,J$1))","v":""},{"$f":"IF($A72=\"N/A\",\"\",INDEX(Ranks!$1:$1048576,$A72,K$1))","v":""},null,{"$f":"IF($A72=\"N/A\",Ref!$B$36,INDEX(Ranks!$1:$1048576,$A72,M$1))","v":""},{"$f":"IF($A72=\"N/A\",Ref!$B$36,INDEX(Ranks!$1:$1048576,$A72,N$1))","v":""},{"$f":"IF($A72=\"N/A\",Ref!$B$36,INDEX(Ranks!$1:$1048576,$A72,O$1))","v":""},{"$f":"IF($A72=\"N/A\",Ref!$B$36,INDEX(Ranks!$1:$1048576,$A72,P$1))","v":""},{"$f":"IF($A72=\"N/A\",Ref!$B$36,INDEX(Ranks!$1:$1048576,$A72,Q$1))","v":""},{"$f":"IF($A72=\"N/A\",Ref!$B$36,INDEX(Ranks!$1:$1048576,$A72,R$1))","v":""},{"$f":"IF($A72=\"N/A\",Ref!$B$36,INDEX(Ranks!$1:$1048576,$A72,S$1))","v":""},{"$f":"IF($A72=\"N/A\",Ref!$B$36,INDEX(Ranks!$1:$1048576,$A72,T$1))","v":""},{"$f":"IF($A72=\"N/A\",Ref!$B$36,INDEX(Ranks!$1:$1048576,$A72,U$1))","v":""},{"$f":"IF($A72=\"N/A\",Ref!$B$36,INDEX(Ranks!$1:$1048576,$A72,V$1))","v":""},{"$f":"IF($A72=\"N/A\",Ref!$B$36,INDEX(Ranks!$1:$1048576,$A72,W$1))","v":""},{"$f":"IF($A72=\"N/A\",Ref!$B$36,INDEX(Ranks!$1:$1048576,$A72,X$1))","v":""},{"$f":"IF($A72=\"N/A\",Ref!$B$36,INDEX(Ranks!$1:$1048576,$A72,Y$1))","v":""},{"$f":"IF($A72=\"N/A\",Ref!$B$36,INDEX(Ranks!$1:$1048576,$A72,Z$1))","v":""},{"$f":"IF($A72=\"N/A\",Ref!$B$36,INDEX(Ranks!$1:$1048576,$A72,AA$1))","v":""},{"$f":"IF($A72=\"N/A\",Ref!$B$36,INDEX(Ranks!$1:$1048576,$A72,AB$1))","v":""},{"$f":"IF($A72=\"N/A\",Ref!$B$36,INDEX(Ranks!$1:$1048576,$A72,AC$1))","v":""},{"$f":"IF($A72=\"N/A\",Ref!$B$36,INDEX(Ranks!$1:$1048576,$A72,AD$1))","v":""},{"$f":"IF($A72=\"N/A\",Ref!$B$36,INDEX(Ranks!$1:$1048576,$A72,AE$1))","v":""},{"$f":"IF($A72=\"N/A\",Ref!$B$36,INDEX(Ranks!$1:$1048576,$A72,AF$1))","v":""},{"$f":"IF($A72=\"N/A\",Ref!$B$36,INDEX(Ranks!$1:$1048576,$A72,AG$1))","v":""},{"$f":"IF($A72=\"N/A\",Ref!$B$36,INDEX(Ranks!$1:$1048576,$A72,AH$1))","v":""},{"$f":"IF($A72=\"N/A\",Ref!$B$36,INDEX(Ranks!$1:$1048576,$A72,AI$1))","v":""},{"$f":"IF($A72=\"N/A\",Ref!$B$36,INDEX(Ranks!$1:$1048576,$A72,AJ$1))","v":""},{"$f":"IF($A72=\"N/A\",Ref!$B$36,INDEX(Ranks!$1:$1048576,$A72,AK$1))","v":""},{"$f":"IF($A72=\"N/A\",Ref!$B$36,INDEX(Ranks!$1:$1048576,$A72,AL$1))","v":""},{"$f":"IF($A72=\"N/A\",Ref!$B$36,INDEX(Ranks!$1:$1048576,$A72,AM$1))","v":""},{"$f":"IF($A72=\"N/A\",Ref!$B$36,INDEX(Ranks!$1:$1048576,$A72,AN$1))","v":""},{"$f":"IF($A72=\"N/A\",Ref!$B$36,INDEX(Ranks!$1:$1048576,$A72,AO$1))","v":""},{"$f":"IF($A72=\"N/A\",Ref!$B$36,INDEX(Ranks!$1:$1048576,$A72,AP$1))","v":""},{"$f":"IF($A72=\"N/A\",Ref!$B$36,INDEX(Ranks!$1:$1048576,$A72,AQ$1))","v":""},{"$f":"IF($A72=\"N/A\",Ref!$B$36,INDEX(Ranks!$1:$1048576,$A72,AR$1))","v":""},{"$f":"IF($A72=\"N/A\",Ref!$B$36,INDEX(Ranks!$1:$1048576,$A72,AS$1))","v":""},{"$f":"IF($A72=\"N/A\",Ref!$B$36,INDEX(Ranks!$1:$1048576,$A72,AT$1))","v":""},{"$f":"IF($A72=\"N/A\",Ref!$B$36,INDEX(Ranks!$1:$1048576,$A72,AU$1))","v":""},{"$f":"IF($A72=\"N/A\",Ref!$B$36,INDEX(Ranks!$1:$1048576,$A72,AV$1))","v":""},{"$f":"IF($A72=\"N/A\",Ref!$B$36,INDEX(Ranks!$1:$1048576,$A72,AW$1))","v":""},{"$f":"IF($A72=\"N/A\",Ref!$B$36,INDEX(Ranks!$1:$1048576,$A72,AX$1))","v":""},{"$f":"IF($A72=\"N/A\",Ref!$B$36,INDEX(Ranks!$1:$1048576,$A72,AY$1))","v":""},{"$f":"IF($A72=\"N/A\",Ref!$B$36,INDEX(Ranks!$1:$1048576,$A72,AZ$1))","v":""},{"$f":"IF($A72=\"N/A\",Ref!$B$36,INDEX(Ranks!$1:$1048576,$A72,BA$1))","v":""},{"$f":"IF($A72=\"N/A\",Ref!$B$36,INDEX(Ranks!$1:$1048576,$A72,BB$1))","v":""},{"$f":"IF($A72=\"N/A\",Ref!$B$36,INDEX(Ranks!$1:$1048576,$A72,BC$1))","v":""},{"$f":"IF($A72=\"N/A\",Ref!$B$36,INDEX(Ranks!$1:$1048576,$A72,BD$1))","v":""},{"$f":"IF($A72=\"N/A\",Ref!$B$36,INDEX(Ranks!$1:$1048576,$A72,BE$1))","v":""},{"$f":"IF($A72=\"N/A\",Ref!$B$36,INDEX(Ranks!$1:$1048576,$A72,BF$1))","v":""},{"$f":"IF($A72=\"N/A\",Ref!$B$36,INDEX(Ranks!$1:$1048576,$A72,BG$1))","v":""},{"$f":"IF($A72=\"N/A\",Ref!$B$36,INDEX(Ranks!$1:$1048576,$A72,BH$1))","v":""},{"$f":"IF($A72=\"N/A\",Ref!$B$36,INDEX(Ranks!$1:$1048576,$A72,BI$1))","v":""},{"$f":"IF($A72=\"N/A\",Ref!$B$36,INDEX(Ranks!$1:$1048576,$A72,BJ$1))","v":""},{"$f":"IF($A72=\"N/A\",Ref!$B$36,INDEX(Ranks!$1:$1048576,$A72,BK$1))","v":""},{"$f":"IF($A72=\"N/A\",Ref!$B$36,INDEX(Ranks!$1:$1048576,$A72,BL$1))","v":""},{"$f":"IF($A72=\"N/A\",Ref!$B$36,INDEX(Ranks!$1:$1048576,$A72,BM$1))","v":""},{"$f":"IF($A72=\"N/A\",Ref!$B$36,INDEX(Ranks!$1:$1048576,$A72,BN$1))","v":""},{"$f":"IF($A72=\"N/A\",Ref!$B$36,INDEX(Ranks!$1:$1048576,$A72,BO$1))","v":""},{"$f":"IF($A72=\"N/A\",Ref!$B$36,INDEX(Ranks!$1:$1048576,$A72,BP$1))","v":""},{"$f":"IF($A72=\"N/A\",Ref!$B$36,INDEX(Ranks!$1:$1048576,$A72,BQ$1))","v":""},{"$f":"IF($A72=\"N/A\",Ref!$B$36,INDEX(Ranks!$1:$1048576,$A72,BR$1))","v":""},{"$f":"IF($A72=\"N/A\",Ref!$B$36,INDEX(Ranks!$1:$1048576,$A72,BS$1))","v":""},{"$f":"IF($A72=\"N/A\",Ref!$B$36,INDEX(Ranks!$1:$1048576,$A72,BT$1))","v":""},{"$f":"IF($A72=\"N/A\",Ref!$B$36,INDEX(Ranks!$1:$1048576,$A72,BU$1))","v":""},{"$f":"IF($A72=\"N/A\",Ref!$B$36,INDEX(Ranks!$1:$1048576,$A72,BV$1))","v":""},{"$f":"IF($A72=\"N/A\",Ref!$B$36,INDEX(Ranks!$1:$1048576,$A72,BW$1))","v":""},{"$f":"IF($A72=\"N/A\",Ref!$B$36,INDEX(Ranks!$1:$1048576,$A72,BX$1))","v":""},{"$f":"IF($A72=\"N/A\",Ref!$B$36,INDEX(Ranks!$1:$1048576,$A72,BY$1))","v":""},{"$f":"IF($A72=\"N/A\",Ref!$B$36,INDEX(Ranks!$1:$1048576,$A72,BZ$1))","v":""},{"$f":"IF($A72=\"N/A\",Ref!$B$36,INDEX(Ranks!$1:$1048576,$A72,CA$1))","v":""},{"$f":"IF($A72=\"N/A\",Ref!$B$36,INDEX(Ranks!$1:$1048576,$A72,CB$1))","v":""},{"$f":"IF($A72=\"N/A\",Ref!$B$36,INDEX(Ranks!$1:$1048576,$A72,CC$1))","v":""},{"$f":"IF($A72=\"N/A\",Ref!$B$36,INDEX(Ranks!$1:$1048576,$A72,CD$1))","v":""},{"$f":"IF($A72=\"N/A\",Ref!$B$36,INDEX(Ranks!$1:$1048576,$A72,CE$1))","v":""},{"$f":"IF($A72=\"N/A\",Ref!$B$36,INDEX(Ranks!$1:$1048576,$A72,CF$1))","v":""},{"$f":"IF($A72=\"N/A\",Ref!$B$36,INDEX(Ranks!$1:$1048576,$A72,CG$1))","v":""},{"$f":"IF($A72=\"N/A\",Ref!$B$36,INDEX(Ranks!$1:$1048576,$A72,CH$1))","v":""},{"$f":"IF($A72=\"N/A\",Ref!$B$36,INDEX(Ranks!$1:$1048576,$A72,CI$1))","v":""},{"$f":"IF($A72=\"N/A\",Ref!$B$36,INDEX(Ranks!$1:$1048576,$A72,CJ$1))","v":""},{"$f":"IF($A72=\"N/A\",Ref!$B$36,INDEX(Ranks!$1:$1048576,$A72,CK$1))","v":""},{"$f":"IF($A72=\"N/A\",Ref!$B$36,INDEX(Ranks!$1:$1048576,$A72,CL$1))","v":""},{"$f":"IF($A72=\"N/A\",Ref!$B$36,INDEX(Ranks!$1:$1048576,$A72,CM$1))","v":""},{"$f":"IF($A72=\"N/A\",Ref!$B$36,INDEX(Ranks!$1:$1048576,$A72,CN$1))","v":""},{"$f":"IF($A72=\"N/A\",Ref!$B$36,INDEX(Ranks!$1:$1048576,$A72,CO$1))","v":""},{"$f":"IF($A72=\"N/A\",Ref!$B$36,INDEX(Ranks!$1:$1048576,$A72,CP$1))","v":""},{"$f":"IF($A72=\"N/A\",Ref!$B$36,INDEX(Ranks!$1:$1048576,$A72,CQ$1))","v":""},{"$f":"IF($A72=\"N/A\",Ref!$B$36,INDEX(Ranks!$1:$1048576,$A72,CR$1))","v":""},{"$f":"IF($A72=\"N/A\",Ref!$B$36,INDEX(Ranks!$1:$1048576,$A72,CS$1))","v":""},{"$f":"IF($A72=\"N/A\",Ref!$B$36,INDEX(Ranks!$1:$1048576,$A72,CT$1))","v":""},{"$f":"IF($A72=\"N/A\",Ref!$B$36,INDEX(Ranks!$1:$1048576,$A72,CU$1))","v":""},{"$f":"IF($A72=\"N/A\",Ref!$B$36,INDEX(Ranks!$1:$1048576,$A72,CV$1))","v":""},{"$f":"IF($A72=\"N/A\",Ref!$B$36,INDEX(Ranks!$1:$1048576,$A72,CW$1))","v":""},{"$f":"IF($A72=\"N/A\",Ref!$B$36,INDEX(Ranks!$1:$1048576,$A72,CX$1))","v":""},{"$f":"IF($A72=\"N/A\",Ref!$B$36,INDEX(Ranks!$1:$1048576,$A72,CY$1))","v":""},{"$f":"IF($A72=\"N/A\",Ref!$B$36,INDEX(Ranks!$1:$1048576,$A72,CZ$1))","v":""},{"$f":"IF($A72=\"N/A\",Ref!$B$36,INDEX(Ranks!$1:$1048576,$A72,DA$1))","v":""},{"$f":"IF($A72=\"N/A\",Ref!$B$36,INDEX(Ranks!$1:$1048576,$A72,DB$1))","v":""},{"$f":"IF($A72=\"N/A\",Ref!$B$36,INDEX(Ranks!$1:$1048576,$A72,DC$1))","v":""},{"$f":"IF($A72=\"N/A\",Ref!$B$36,INDEX(Ranks!$1:$1048576,$A72,DD$1))","v":""},{"$f":"IF($A72=\"N/A\",Ref!$B$36,INDEX(Ranks!$1:$1048576,$A72,DE$1))","v":""},{"$f":"IF($A72=\"N/A\",Ref!$B$36,INDEX(Ranks!$1:$1048576,$A72,DF$1))","v":""},{"$f":"IF($A72=\"N/A\",Ref!$B$36,INDEX(Ranks!$1:$1048576,$A72,DG$1))","v":""},{"$f":"IF($A72=\"N/A\",Ref!$B$36,INDEX(Ranks!$1:$1048576,$A72,DH$1))","v":""},{"$f":"IF($A72=\"N/A\",Ref!$B$36,INDEX(Ranks!$1:$1048576,$A72,DI$1))","v":""},{"$f":"IF($A72=\"N/A\",Ref!$B$36,INDEX(Ranks!$1:$1048576,$A72,DJ$1))","v":""},{"$f":"IF($A72=\"N/A\",Ref!$B$36,INDEX(Ranks!$1:$1048576,$A72,DK$1))","v":""},{"$f":"IF($A72=\"N/A\",Ref!$B$36,INDEX(Ranks!$1:$1048576,$A72,DL$1))","v":""},{"$f":"IF($A72=\"N/A\",Ref!$B$36,INDEX(Ranks!$1:$1048576,$A72,DM$1))","v":""},{"$f":"IF($A72=\"N/A\",Ref!$B$36,INDEX(Ranks!$1:$1048576,$A72,DN$1))","v":""},{"$f":"IF($A72=\"N/A\",Ref!$B$36,INDEX(Ranks!$1:$1048576,$A72,DO$1))","v":""},{"$f":"IF($A72=\"N/A\",Ref!$B$36,INDEX(Ranks!$1:$1048576,$A72,DP$1))","v":""},{"$f":"IF($A72=\"N/A\",Ref!$B$36,INDEX(Ranks!$1:$1048576,$A72,DQ$1))","v":""},{"$f":"IF($A72=\"N/A\",Ref!$B$36,INDEX(Ranks!$1:$1048576,$A72,DR$1))","v":""},{"$f":"IF($A72=\"N/A\",Ref!$B$36,INDEX(Ranks!$1:$1048576,$A72,DS$1))","v":""},{"$f":"IF($A72=\"N/A\",Ref!$B$36,INDEX(Ranks!$1:$1048576,$A72,DT$1))","v":""},{"$f":"IF($A72=\"N/A\",Ref!$B$36,INDEX(Ranks!$1:$1048576,$A72,DU$1))","v":""},{"$f":"IF($A72=\"N/A\",Ref!$B$36,INDEX(Ranks!$1:$1048576,$A72,DV$1))","v":""},{"$f":"IF($A72=\"N/A\",Ref!$B$36,INDEX(Ranks!$1:$1048576,$A72,DW$1))","v":""},{"$f":"IF($A72=\"N/A\",Ref!$B$36,INDEX(Ranks!$1:$1048576,$A72,DX$1))","v":""},{"$f":"IF($A72=\"N/A\",Ref!$B$36,INDEX(Ranks!$1:$1048576,$A72,DY$1))","v":""},{"$f":"IF($A72=\"N/A\",Ref!$B$36,INDEX(Ranks!$1:$1048576,$A72,DZ$1))","v":""},{"$f":"IF($A72=\"N/A\",Ref!$B$36,INDEX(Ranks!$1:$1048576,$A72,EA$1))","v":""},{"$f":"IF($A72=\"N/A\",Ref!$B$36,INDEX(Ranks!$1:$1048576,$A72,EB$1))","v":""}]
[{"$f":"IFERROR(MATCH('Portfolio Page'!L73,Ranks!L:L,0),\"N/A\")","v":"N/A"},null,{"$f":"IF($A73=\"N/A\",\"\",INDEX(Ranks!$1:$1048576,$A73,C$1))","v":""},{"$f":"IF($A73=\"N/A\",Ref!$B$36,INDEX(Ranks!$1:$1048576,$A73,D$1))","v":""},{"$f":"IF($A73=\"N/A\",Ref!$B$36,INDEX(Ranks!$1:$1048576,$A73,E$1))","v":""},{"$f":"IF($A73=\"N/A\",\"\",INDEX(Ranks!$1:$1048576,$A73,F$1))","v":""},{"$f":"IF($A73=\"N/A\",\"\",INDEX(Ranks!$1:$1048576,$A73,G$1))","v":""},{"$f":"IF($A73=\"N/A\",\"\",INDEX(Ranks!$1:$1048576,$A73,H$1))","v":""},{"$f":"IF($A73=\"N/A\",\"\",INDEX(Ranks!$1:$1048576,$A73,I$1))","v":""},{"$f":"IF($A73=\"N/A\",\"\",INDEX(Ranks!$1:$1048576,$A73,J$1))","v":""},{"$f":"IF($A73=\"N/A\",\"\",INDEX(Ranks!$1:$1048576,$A73,K$1))","v":""},null,{"$f":"IF($A73=\"N/A\",Ref!$B$36,INDEX(Ranks!$1:$1048576,$A73,M$1))","v":""},{"$f":"IF($A73=\"N/A\",Ref!$B$36,INDEX(Ranks!$1:$1048576,$A73,N$1))","v":""},{"$f":"IF($A73=\"N/A\",Ref!$B$36,INDEX(Ranks!$1:$1048576,$A73,O$1))","v":""},{"$f":"IF($A73=\"N/A\",Ref!$B$36,INDEX(Ranks!$1:$1048576,$A73,P$1))","v":""},{"$f":"IF($A73=\"N/A\",Ref!$B$36,INDEX(Ranks!$1:$1048576,$A73,Q$1))","v":""},{"$f":"IF($A73=\"N/A\",Ref!$B$36,INDEX(Ranks!$1:$1048576,$A73,R$1))","v":""},{"$f":"IF($A73=\"N/A\",Ref!$B$36,INDEX(Ranks!$1:$1048576,$A73,S$1))","v":""},{"$f":"IF($A73=\"N/A\",Ref!$B$36,INDEX(Ranks!$1:$1048576,$A73,T$1))","v":""},{"$f":"IF($A73=\"N/A\",Ref!$B$36,INDEX(Ranks!$1:$1048576,$A73,U$1))","v":""},{"$f":"IF($A73=\"N/A\",Ref!$B$36,INDEX(Ranks!$1:$1048576,$A73,V$1))","v":""},{"$f":"IF($A73=\"N/A\",Ref!$B$36,INDEX(Ranks!$1:$1048576,$A73,W$1))","v":""},{"$f":"IF($A73=\"N/A\",Ref!$B$36,INDEX(Ranks!$1:$1048576,$A73,X$1))","v":""},{"$f":"IF($A73=\"N/A\",Ref!$B$36,INDEX(Ranks!$1:$1048576,$A73,Y$1))","v":""},{"$f":"IF($A73=\"N/A\",Ref!$B$36,INDEX(Ranks!$1:$1048576,$A73,Z$1))","v":""},{"$f":"IF($A73=\"N/A\",Ref!$B$36,INDEX(Ranks!$1:$1048576,$A73,AA$1))","v":""},{"$f":"IF($A73=\"N/A\",Ref!$B$36,INDEX(Ranks!$1:$1048576,$A73,AB$1))","v":""},{"$f":"IF($A73=\"N/A\",Ref!$B$36,INDEX(Ranks!$1:$1048576,$A73,AC$1))","v":""},{"$f":"IF($A73=\"N/A\",Ref!$B$36,INDEX(Ranks!$1:$1048576,$A73,AD$1))","v":""},{"$f":"IF($A73=\"N/A\",Ref!$B$36,INDEX(Ranks!$1:$1048576,$A73,AE$1))","v":""},{"$f":"IF($A73=\"N/A\",Ref!$B$36,INDEX(Ranks!$1:$1048576,$A73,AF$1))","v":""},{"$f":"IF($A73=\"N/A\",Ref!$B$36,INDEX(Ranks!$1:$1048576,$A73,AG$1))","v":""},{"$f":"IF($A73=\"N/A\",Ref!$B$36,INDEX(Ranks!$1:$1048576,$A73,AH$1))","v":""},{"$f":"IF($A73=\"N/A\",Ref!$B$36,INDEX(Ranks!$1:$1048576,$A73,AI$1))","v":""},{"$f":"IF($A73=\"N/A\",Ref!$B$36,INDEX(Ranks!$1:$1048576,$A73,AJ$1))","v":""},{"$f":"IF($A73=\"N/A\",Ref!$B$36,INDEX(Ranks!$1:$1048576,$A73,AK$1))","v":""},{"$f":"IF($A73=\"N/A\",Ref!$B$36,INDEX(Ranks!$1:$1048576,$A73,AL$1))","v":""},{"$f":"IF($A73=\"N/A\",Ref!$B$36,INDEX(Ranks!$1:$1048576,$A73,AM$1))","v":""},{"$f":"IF($A73=\"N/A\",Ref!$B$36,INDEX(Ranks!$1:$1048576,$A73,AN$1))","v":""},{"$f":"IF($A73=\"N/A\",Ref!$B$36,INDEX(Ranks!$1:$1048576,$A73,AO$1))","v":""},{"$f":"IF($A73=\"N/A\",Ref!$B$36,INDEX(Ranks!$1:$1048576,$A73,AP$1))","v":""},{"$f":"IF($A73=\"N/A\",Ref!$B$36,INDEX(Ranks!$1:$1048576,$A73,AQ$1))","v":""},{"$f":"IF($A73=\"N/A\",Ref!$B$36,INDEX(Ranks!$1:$1048576,$A73,AR$1))","v":""},{"$f":"IF($A73=\"N/A\",Ref!$B$36,INDEX(Ranks!$1:$1048576,$A73,AS$1))","v":""},{"$f":"IF($A73=\"N/A\",Ref!$B$36,INDEX(Ranks!$1:$1048576,$A73,AT$1))","v":""},{"$f":"IF($A73=\"N/A\",Ref!$B$36,INDEX(Ranks!$1:$1048576,$A73,AU$1))","v":""},{"$f":"IF($A73=\"N/A\",Ref!$B$36,INDEX(Ranks!$1:$1048576,$A73,AV$1))","v":""},{"$f":"IF($A73=\"N/A\",Ref!$B$36,INDEX(Ranks!$1:$1048576,$A73,AW$1))","v":""},{"$f":"IF($A73=\"N/A\",Ref!$B$36,INDEX(Ranks!$1:$1048576,$A73,AX$1))","v":""},{"$f":"IF($A73=\"N/A\",Ref!$B$36,INDEX(Ranks!$1:$1048576,$A73,AY$1))","v":""},{"$f":"IF($A73=\"N/A\",Ref!$B$36,INDEX(Ranks!$1:$1048576,$A73,AZ$1))","v":""},{"$f":"IF($A73=\"N/A\",Ref!$B$36,INDEX(Ranks!$1:$1048576,$A73,BA$1))","v":""},{"$f":"IF($A73=\"N/A\",Ref!$B$36,INDEX(Ranks!$1:$1048576,$A73,BB$1))","v":""},{"$f":"IF($A73=\"N/A\",Ref!$B$36,INDEX(Ranks!$1:$1048576,$A73,BC$1))","v":""},{"$f":"IF($A73=\"N/A\",Ref!$B$36,INDEX(Ranks!$1:$1048576,$A73,BD$1))","v":""},{"$f":"IF($A73=\"N/A\",Ref!$B$36,INDEX(Ranks!$1:$1048576,$A73,BE$1))","v":""},{"$f":"IF($A73=\"N/A\",Ref!$B$36,INDEX(Ranks!$1:$1048576,$A73,BF$1))","v":""},{"$f":"IF($A73=\"N/A\",Ref!$B$36,INDEX(Ranks!$1:$1048576,$A73,BG$1))","v":""},{"$f":"IF($A73=\"N/A\",Ref!$B$36,INDEX(Ranks!$1:$1048576,$A73,BH$1))","v":""},{"$f":"IF($A73=\"N/A\",Ref!$B$36,INDEX(Ranks!$1:$1048576,$A73,BI$1))","v":""},{"$f":"IF($A73=\"N/A\",Ref!$B$36,INDEX(Ranks!$1:$1048576,$A73,BJ$1))","v":""},{"$f":"IF($A73=\"N/A\",Ref!$B$36,INDEX(Ranks!$1:$1048576,$A73,BK$1))","v":""},{"$f":"IF($A73=\"N/A\",Ref!$B$36,INDEX(Ranks!$1:$1048576,$A73,BL$1))","v":""},{"$f":"IF($A73=\"N/A\",Ref!$B$36,INDEX(Ranks!$1:$1048576,$A73,BM$1))","v":""},{"$f":"IF($A73=\"N/A\",Ref!$B$36,INDEX(Ranks!$1:$1048576,$A73,BN$1))","v":""},{"$f":"IF($A73=\"N/A\",Ref!$B$36,INDEX(Ranks!$1:$1048576,$A73,BO$1))","v":""},{"$f":"IF($A73=\"N/A\",Ref!$B$36,INDEX(Ranks!$1:$1048576,$A73,BP$1))","v":""},{"$f":"IF($A73=\"N/A\",Ref!$B$36,INDEX(Ranks!$1:$1048576,$A73,BQ$1))","v":""},{"$f":"IF($A73=\"N/A\",Ref!$B$36,INDEX(Ranks!$1:$1048576,$A73,BR$1))","v":""},{"$f":"IF($A73=\"N/A\",Ref!$B$36,INDEX(Ranks!$1:$1048576,$A73,BS$1))","v":""},{"$f":"IF($A73=\"N/A\",Ref!$B$36,INDEX(Ranks!$1:$1048576,$A73,BT$1))","v":""},{"$f":"IF($A73=\"N/A\",Ref!$B$36,INDEX(Ranks!$1:$1048576,$A73,BU$1))","v":""},{"$f":"IF($A73=\"N/A\",Ref!$B$36,INDEX(Ranks!$1:$1048576,$A73,BV$1))","v":""},{"$f":"IF($A73=\"N/A\",Ref!$B$36,INDEX(Ranks!$1:$1048576,$A73,BW$1))","v":""},{"$f":"IF($A73=\"N/A\",Ref!$B$36,INDEX(Ranks!$1:$1048576,$A73,BX$1))","v":""},{"$f":"IF($A73=\"N/A\",Ref!$B$36,INDEX(Ranks!$1:$1048576,$A73,BY$1))","v":""},{"$f":"IF($A73=\"N/A\",Ref!$B$36,INDEX(Ranks!$1:$1048576,$A73,BZ$1))","v":""},{"$f":"IF($A73=\"N/A\",Ref!$B$36,INDEX(Ranks!$1:$1048576,$A73,CA$1))","v":""},{"$f":"IF($A73=\"N/A\",Ref!$B$36,INDEX(Ranks!$1:$1048576,$A73,CB$1))","v":""},{"$f":"IF($A73=\"N/A\",Ref!$B$36,INDEX(Ranks!$1:$1048576,$A73,CC$1))","v":""},{"$f":"IF($A73=\"N/A\",Ref!$B$36,INDEX(Ranks!$1:$1048576,$A73,CD$1))","v":""},{"$f":"IF($A73=\"N/A\",Ref!$B$36,INDEX(Ranks!$1:$1048576,$A73,CE$1))","v":""},{"$f":"IF($A73=\"N/A\",Ref!$B$36,INDEX(Ranks!$1:$1048576,$A73,CF$1))","v":""},{"$f":"IF($A73=\"N/A\",Ref!$B$36,INDEX(Ranks!$1:$1048576,$A73,CG$1))","v":""},{"$f":"IF($A73=\"N/A\",Ref!$B$36,INDEX(Ranks!$1:$1048576,$A73,CH$1))","v":""},{"$f":"IF($A73=\"N/A\",Ref!$B$36,INDEX(Ranks!$1:$1048576,$A73,CI$1))","v":""},{"$f":"IF($A73=\"N/A\",Ref!$B$36,INDEX(Ranks!$1:$1048576,$A73,CJ$1))","v":""},{"$f":"IF($A73=\"N/A\",Ref!$B$36,INDEX(Ranks!$1:$1048576,$A73,CK$1))","v":""},{"$f":"IF($A73=\"N/A\",Ref!$B$36,INDEX(Ranks!$1:$1048576,$A73,CL$1))","v":""},{"$f":"IF($A73=\"N/A\",Ref!$B$36,INDEX(Ranks!$1:$1048576,$A73,CM$1))","v":""},{"$f":"IF($A73=\"N/A\",Ref!$B$36,INDEX(Ranks!$1:$1048576,$A73,CN$1))","v":""},{"$f":"IF($A73=\"N/A\",Ref!$B$36,INDEX(Ranks!$1:$1048576,$A73,CO$1))","v":""},{"$f":"IF($A73=\"N/A\",Ref!$B$36,INDEX(Ranks!$1:$1048576,$A73,CP$1))","v":""},{"$f":"IF($A73=\"N/A\",Ref!$B$36,INDEX(Ranks!$1:$1048576,$A73,CQ$1))","v":""},{"$f":"IF($A73=\"N/A\",Ref!$B$36,INDEX(Ranks!$1:$1048576,$A73,CR$1))","v":""},{"$f":"IF($A73=\"N/A\",Ref!$B$36,INDEX(Ranks!$1:$1048576,$A73,CS$1))","v":""},{"$f":"IF($A73=\"N/A\",Ref!$B$36,INDEX(Ranks!$1:$1048576,$A73,CT$1))","v":""},{"$f":"IF($A73=\"N/A\",Ref!$B$36,INDEX(Ranks!$1:$1048576,$A73,CU$1))","v":""},{"$f":"IF($A73=\"N/A\",Ref!$B$36,INDEX(Ranks!$1:$1048576,$A73,CV$1))","v":""},{"$f":"IF($A73=\"N/A\",Ref!$B$36,INDEX(Ranks!$1:$1048576,$A73,CW$1))","v":""},{"$f":"IF($A73=\"N/A\",Ref!$B$36,INDEX(Ranks!$1:$1048576,$A73,CX$1))","v":""},{"$f":"IF($A73=\"N/A\",Ref!$B$36,INDEX(Ranks!$1:$1048576,$A73,CY$1))","v":""},{"$f":"IF($A73=\"N/A\",Ref!$B$36,INDEX(Ranks!$1:$1048576,$A73,CZ$1))","v":""},{"$f":"IF($A73=\"N/A\",Ref!$B$36,INDEX(Ranks!$1:$1048576,$A73,DA$1))","v":""},{"$f":"IF($A73=\"N/A\",Ref!$B$36,INDEX(Ranks!$1:$1048576,$A73,DB$1))","v":""},{"$f":"IF($A73=\"N/A\",Ref!$B$36,INDEX(Ranks!$1:$1048576,$A73,DC$1))","v":""},{"$f":"IF($A73=\"N/A\",Ref!$B$36,INDEX(Ranks!$1:$1048576,$A73,DD$1))","v":""},{"$f":"IF($A73=\"N/A\",Ref!$B$36,INDEX(Ranks!$1:$1048576,$A73,DE$1))","v":""},{"$f":"IF($A73=\"N/A\",Ref!$B$36,INDEX(Ranks!$1:$1048576,$A73,DF$1))","v":""},{"$f":"IF($A73=\"N/A\",Ref!$B$36,INDEX(Ranks!$1:$1048576,$A73,DG$1))","v":""},{"$f":"IF($A73=\"N/A\",Ref!$B$36,INDEX(Ranks!$1:$1048576,$A73,DH$1))","v":""},{"$f":"IF($A73=\"N/A\",Ref!$B$36,INDEX(Ranks!$1:$1048576,$A73,DI$1))","v":""},{"$f":"IF($A73=\"N/A\",Ref!$B$36,INDEX(Ranks!$1:$1048576,$A73,DJ$1))","v":""},{"$f":"IF($A73=\"N/A\",Ref!$B$36,INDEX(Ranks!$1:$1048576,$A73,DK$1))","v":""},{"$f":"IF($A73=\"N/A\",Ref!$B$36,INDEX(Ranks!$1:$1048576,$A73,DL$1))","v":""},{"$f":"IF($A73=\"N/A\",Ref!$B$36,INDEX(Ranks!$1:$1048576,$A73,DM$1))","v":""},{"$f":"IF($A73=\"N/A\",Ref!$B$36,INDEX(Ranks!$1:$1048576,$A73,DN$1))","v":""},{"$f":"IF($A73=\"N/A\",Ref!$B$36,INDEX(Ranks!$1:$1048576,$A73,DO$1))","v":""},{"$f":"IF($A73=\"N/A\",Ref!$B$36,INDEX(Ranks!$1:$1048576,$A73,DP$1))","v":""},{"$f":"IF($A73=\"N/A\",Ref!$B$36,INDEX(Ranks!$1:$1048576,$A73,DQ$1))","v":""},{"$f":"IF($A73=\"N/A\",Ref!$B$36,INDEX(Ranks!$1:$1048576,$A73,DR$1))","v":""},{"$f":"IF($A73=\"N/A\",Ref!$B$36,INDEX(Ranks!$1:$1048576,$A73,DS$1))","v":""},{"$f":"IF($A73=\"N/A\",Ref!$B$36,INDEX(Ranks!$1:$1048576,$A73,DT$1))","v":""},{"$f":"IF($A73=\"N/A\",Ref!$B$36,INDEX(Ranks!$1:$1048576,$A73,DU$1))","v":""},{"$f":"IF($A73=\"N/A\",Ref!$B$36,INDEX(Ranks!$1:$1048576,$A73,DV$1))","v":""},{"$f":"IF($A73=\"N/A\",Ref!$B$36,INDEX(Ranks!$1:$1048576,$A73,DW$1))","v":""},{"$f":"IF($A73=\"N/A\",Ref!$B$36,INDEX(Ranks!$1:$1048576,$A73,DX$1))","v":""},{"$f":"IF($A73=\"N/A\",Ref!$B$36,INDEX(Ranks!$1:$1048576,$A73,DY$1))","v":""},{"$f":"IF($A73=\"N/A\",Ref!$B$36,INDEX(Ranks!$1:$1048576,$A73,DZ$1))","v":""},{"$f":"IF($A73=\"N/A\",Ref!$B$36,INDEX(Ranks!$1:$1048576,$A73,EA$1))","v":""},{"$f":"IF($A73=\"N/A\",Ref!$B$36,INDEX(Ranks!$1:$1048576,$A73,EB$1))","v":""}]
[{"$f":"IFERROR(MATCH('Portfolio Page'!L74,Ranks!L:L,0),\"N/A\")","v":"N/A"},null,{"$f":"IF($A74=\"N/A\",\"\",INDEX(Ranks!$1:$1048576,$A74,C$1))","v":""},{"$f":"IF($A74=\"N/A\",Ref!$B$36,INDEX(Ranks!$1:$1048576,$A74,D$1))","v":""},{"$f":"IF($A74=\"N/A\",Ref!$B$36,INDEX(Ranks!$1:$1048576,$A74,E$1))","v":""},{"$f":"IF($A74=\"N/A\",\"\",INDEX(Ranks!$1:$1048576,$A74,F$1))","v":""},{"$f":"IF($A74=\"N/A\",\"\",INDEX(Ranks!$1:$1048576,$A74,G$1))","v":""},{"$f":"IF($A74=\"N/A\",\"\",INDEX(Ranks!$1:$1048576,$A74,H$1))","v":""},{"$f":"IF($A74=\"N/A\",\"\",INDEX(Ranks!$1:$1048576,$A74,I$1))","v":""},{"$f":"IF($A74=\"N/A\",\"\",INDEX(Ranks!$1:$1048576,$A74,J$1))","v":""},{"$f":"IF($A74=\"N/A\",\"\",INDEX(Ranks!$1:$1048576,$A74,K$1))","v":""},null,{"$f":"IF($A74=\"N/A\",Ref!$B$36,INDEX(Ranks!$1:$1048576,$A74,M$1))","v":""},{"$f":"IF($A74=\"N/A\",Ref!$B$36,INDEX(Ranks!$1:$1048576,$A74,N$1))","v":""},{"$f":"IF($A74=\"N/A\",Ref!$B$36,INDEX(Ranks!$1:$1048576,$A74,O$1))","v":""},{"$f":"IF($A74=\"N/A\",Ref!$B$36,INDEX(Ranks!$1:$1048576,$A74,P$1))","v":""},{"$f":"IF($A74=\"N/A\",Ref!$B$36,INDEX(Ranks!$1:$1048576,$A74,Q$1))","v":""},{"$f":"IF($A74=\"N/A\",Ref!$B$36,INDEX(Ranks!$1:$1048576,$A74,R$1))","v":""},{"$f":"IF($A74=\"N/A\",Ref!$B$36,INDEX(Ranks!$1:$1048576,$A74,S$1))","v":""},{"$f":"IF($A74=\"N/A\",Ref!$B$36,INDEX(Ranks!$1:$1048576,$A74,T$1))","v":""},{"$f":"IF($A74=\"N/A\",Ref!$B$36,INDEX(Ranks!$1:$1048576,$A74,U$1))","v":""},{"$f":"IF($A74=\"N/A\",Ref!$B$36,INDEX(Ranks!$1:$1048576,$A74,V$1))","v":""},{"$f":"IF($A74=\"N/A\",Ref!$B$36,INDEX(Ranks!$1:$1048576,$A74,W$1))","v":""},{"$f":"IF($A74=\"N/A\",Ref!$B$36,INDEX(Ranks!$1:$1048576,$A74,X$1))","v":""},{"$f":"IF($A74=\"N/A\",Ref!$B$36,INDEX(Ranks!$1:$1048576,$A74,Y$1))","v":""},{"$f":"IF($A74=\"N/A\",Ref!$B$36,INDEX(Ranks!$1:$1048576,$A74,Z$1))","v":""},{"$f":"IF($A74=\"N/A\",Ref!$B$36,INDEX(Ranks!$1:$1048576,$A74,AA$1))","v":""},{"$f":"IF($A74=\"N/A\",Ref!$B$36,INDEX(Ranks!$1:$1048576,$A74,AB$1))","v":""},{"$f":"IF($A74=\"N/A\",Ref!$B$36,INDEX(Ranks!$1:$1048576,$A74,AC$1))","v":""},{"$f":"IF($A74=\"N/A\",Ref!$B$36,INDEX(Ranks!$1:$1048576,$A74,AD$1))","v":""},{"$f":"IF($A74=\"N/A\",Ref!$B$36,INDEX(Ranks!$1:$1048576,$A74,AE$1))","v":""},{"$f":"IF($A74=\"N/A\",Ref!$B$36,INDEX(Ranks!$1:$1048576,$A74,AF$1))","v":""},{"$f":"IF($A74=\"N/A\",Ref!$B$36,INDEX(Ranks!$1:$1048576,$A74,AG$1))","v":""},{"$f":"IF($A74=\"N/A\",Ref!$B$36,INDEX(Ranks!$1:$1048576,$A74,AH$1))","v":""},{"$f":"IF($A74=\"N/A\",Ref!$B$36,INDEX(Ranks!$1:$1048576,$A74,AI$1))","v":""},{"$f":"IF($A74=\"N/A\",Ref!$B$36,INDEX(Ranks!$1:$1048576,$A74,AJ$1))","v":""},{"$f":"IF($A74=\"N/A\",Ref!$B$36,INDEX(Ranks!$1:$1048576,$A74,AK$1))","v":""},{"$f":"IF($A74=\"N/A\",Ref!$B$36,INDEX(Ranks!$1:$1048576,$A74,AL$1))","v":""},{"$f":"IF($A74=\"N/A\",Ref!$B$36,INDEX(Ranks!$1:$1048576,$A74,AM$1))","v":""},{"$f":"IF($A74=\"N/A\",Ref!$B$36,INDEX(Ranks!$1:$1048576,$A74,AN$1))","v":""},{"$f":"IF($A74=\"N/A\",Ref!$B$36,INDEX(Ranks!$1:$1048576,$A74,AO$1))","v":""},{"$f":"IF($A74=\"N/A\",Ref!$B$36,INDEX(Ranks!$1:$1048576,$A74,AP$1))","v":""},{"$f":"IF($A74=\"N/A\",Ref!$B$36,INDEX(Ranks!$1:$1048576,$A74,AQ$1))","v":""},{"$f":"IF($A74=\"N/A\",Ref!$B$36,INDEX(Ranks!$1:$1048576,$A74,AR$1))","v":""},{"$f":"IF($A74=\"N/A\",Ref!$B$36,INDEX(Ranks!$1:$1048576,$A74,AS$1))","v":""},{"$f":"IF($A74=\"N/A\",Ref!$B$36,INDEX(Ranks!$1:$1048576,$A74,AT$1))","v":""},{"$f":"IF($A74=\"N/A\",Ref!$B$36,INDEX(Ranks!$1:$1048576,$A74,AU$1))","v":""},{"$f":"IF($A74=\"N/A\",Ref!$B$36,INDEX(Ranks!$1:$1048576,$A74,AV$1))","v":""},{"$f":"IF($A74=\"N/A\",Ref!$B$36,INDEX(Ranks!$1:$1048576,$A74,AW$1))","v":""},{"$f":"IF($A74=\"N/A\",Ref!$B$36,INDEX(Ranks!$1:$1048576,$A74,AX$1))","v":""},{"$f":"IF($A74=\"N/A\",Ref!$B$36,INDEX(Ranks!$1:$1048576,$A74,AY$1))","v":""},{"$f":"IF($A74=\"N/A\",Ref!$B$36,INDEX(Ranks!$1:$1048576,$A74,AZ$1))","v":""},{"$f":"IF($A74=\"N/A\",Ref!$B$36,INDEX(Ranks!$1:$1048576,$A74,BA$1))","v":""},{"$f":"IF($A74=\"N/A\",Ref!$B$36,INDEX(Ranks!$1:$1048576,$A74,BB$1))","v":""},{"$f":"IF($A74=\"N/A\",Ref!$B$36,INDEX(Ranks!$1:$1048576,$A74,BC$1))","v":""},{"$f":"IF($A74=\"N/A\",Ref!$B$36,INDEX(Ranks!$1:$1048576,$A74,BD$1))","v":""},{"$f":"IF($A74=\"N/A\",Ref!$B$36,INDEX(Ranks!$1:$1048576,$A74,BE$1))","v":""},{"$f":"IF($A74=\"N/A\",Ref!$B$36,INDEX(Ranks!$1:$1048576,$A74,BF$1))","v":""},{"$f":"IF($A74=\"N/A\",Ref!$B$36,INDEX(Ranks!$1:$1048576,$A74,BG$1))","v":""},{"$f":"IF($A74=\"N/A\",Ref!$B$36,INDEX(Ranks!$1:$1048576,$A74,BH$1))","v":""},{"$f":"IF($A74=\"N/A\",Ref!$B$36,INDEX(Ranks!$1:$1048576,$A74,BI$1))","v":""},{"$f":"IF($A74=\"N/A\",Ref!$B$36,INDEX(Ranks!$1:$1048576,$A74,BJ$1))","v":""},{"$f":"IF($A74=\"N/A\",Ref!$B$36,INDEX(Ranks!$1:$1048576,$A74,BK$1))","v":""},{"$f":"IF($A74=\"N/A\",Ref!$B$36,INDEX(Ranks!$1:$1048576,$A74,BL$1))","v":""},{"$f":"IF($A74=\"N/A\",Ref!$B$36,INDEX(Ranks!$1:$1048576,$A74,BM$1))","v":""},{"$f":"IF($A74=\"N/A\",Ref!$B$36,INDEX(Ranks!$1:$1048576,$A74,BN$1))","v":""},{"$f":"IF($A74=\"N/A\",Ref!$B$36,INDEX(Ranks!$1:$1048576,$A74,BO$1))","v":""},{"$f":"IF($A74=\"N/A\",Ref!$B$36,INDEX(Ranks!$1:$1048576,$A74,BP$1))","v":""},{"$f":"IF($A74=\"N/A\",Ref!$B$36,INDEX(Ranks!$1:$1048576,$A74,BQ$1))","v":""},{"$f":"IF($A74=\"N/A\",Ref!$B$36,INDEX(Ranks!$1:$1048576,$A74,BR$1))","v":""},{"$f":"IF($A74=\"N/A\",Ref!$B$36,INDEX(Ranks!$1:$1048576,$A74,BS$1))","v":""},{"$f":"IF($A74=\"N/A\",Ref!$B$36,INDEX(Ranks!$1:$1048576,$A74,BT$1))","v":""},{"$f":"IF($A74=\"N/A\",Ref!$B$36,INDEX(Ranks!$1:$1048576,$A74,BU$1))","v":""},{"$f":"IF($A74=\"N/A\",Ref!$B$36,INDEX(Ranks!$1:$1048576,$A74,BV$1))","v":""},{"$f":"IF($A74=\"N/A\",Ref!$B$36,INDEX(Ranks!$1:$1048576,$A74,BW$1))","v":""},{"$f":"IF($A74=\"N/A\",Ref!$B$36,INDEX(Ranks!$1:$1048576,$A74,BX$1))","v":""},{"$f":"IF($A74=\"N/A\",Ref!$B$36,INDEX(Ranks!$1:$1048576,$A74,BY$1))","v":""},{"$f":"IF($A74=\"N/A\",Ref!$B$36,INDEX(Ranks!$1:$1048576,$A74,BZ$1))","v":""},{"$f":"IF($A74=\"N/A\",Ref!$B$36,INDEX(Ranks!$1:$1048576,$A74,CA$1))","v":""},{"$f":"IF($A74=\"N/A\",Ref!$B$36,INDEX(Ranks!$1:$1048576,$A74,CB$1))","v":""},{"$f":"IF($A74=\"N/A\",Ref!$B$36,INDEX(Ranks!$1:$1048576,$A74,CC$1))","v":""},{"$f":"IF($A74=\"N/A\",Ref!$B$36,INDEX(Ranks!$1:$1048576,$A74,CD$1))","v":""},{"$f":"IF($A74=\"N/A\",Ref!$B$36,INDEX(Ranks!$1:$1048576,$A74,CE$1))","v":""},{"$f":"IF($A74=\"N/A\",Ref!$B$36,INDEX(Ranks!$1:$1048576,$A74,CF$1))","v":""},{"$f":"IF($A74=\"N/A\",Ref!$B$36,INDEX(Ranks!$1:$1048576,$A74,CG$1))","v":""},{"$f":"IF($A74=\"N/A\",Ref!$B$36,INDEX(Ranks!$1:$1048576,$A74,CH$1))","v":""},{"$f":"IF($A74=\"N/A\",Ref!$B$36,INDEX(Ranks!$1:$1048576,$A74,CI$1))","v":""},{"$f":"IF($A74=\"N/A\",Ref!$B$36,INDEX(Ranks!$1:$1048576,$A74,CJ$1))","v":""},{"$f":"IF($A74=\"N/A\",Ref!$B$36,INDEX(Ranks!$1:$1048576,$A74,CK$1))","v":""},{"$f":"IF($A74=\"N/A\",Ref!$B$36,INDEX(Ranks!$1:$1048576,$A74,CL$1))","v":""},{"$f":"IF($A74=\"N/A\",Ref!$B$36,INDEX(Ranks!$1:$1048576,$A74,CM$1))","v":""},{"$f":"IF($A74=\"N/A\",Ref!$B$36,INDEX(Ranks!$1:$1048576,$A74,CN$1))","v":""},{"$f":"IF($A74=\"N/A\",Ref!$B$36,INDEX(Ranks!$1:$1048576,$A74,CO$1))","v":""},{"$f":"IF($A74=\"N/A\",Ref!$B$36,INDEX(Ranks!$1:$1048576,$A74,CP$1))","v":""},{"$f":"IF($A74=\"N/A\",Ref!$B$36,INDEX(Ranks!$1:$1048576,$A74,CQ$1))","v":""},{"$f":"IF($A74=\"N/A\",Ref!$B$36,INDEX(Ranks!$1:$1048576,$A74,CR$1))","v":""},{"$f":"IF($A74=\"N/A\",Ref!$B$36,INDEX(Ranks!$1:$1048576,$A74,CS$1))","v":""},{"$f":"IF($A74=\"N/A\",Ref!$B$36,INDEX(Ranks!$1:$1048576,$A74,CT$1))","v":""},{"$f":"IF($A74=\"N/A\",Ref!$B$36,INDEX(Ranks!$1:$1048576,$A74,CU$1))","v":""},{"$f":"IF($A74=\"N/A\",Ref!$B$36,INDEX(Ranks!$1:$1048576,$A74,CV$1))","v":""},{"$f":"IF($A74=\"N/A\",Ref!$B$36,INDEX(Ranks!$1:$1048576,$A74,CW$1))","v":""},{"$f":"IF($A74=\"N/A\",Ref!$B$36,INDEX(Ranks!$1:$1048576,$A74,CX$1))","v":""},{"$f":"IF($A74=\"N/A\",Ref!$B$36,INDEX(Ranks!$1:$1048576,$A74,CY$1))","v":""},{"$f":"IF($A74=\"N/A\",Ref!$B$36,INDEX(Ranks!$1:$1048576,$A74,CZ$1))","v":""},{"$f":"IF($A74=\"N/A\",Ref!$B$36,INDEX(Ranks!$1:$1048576,$A74,DA$1))","v":""},{"$f":"IF($A74=\"N/A\",Ref!$B$36,INDEX(Ranks!$1:$1048576,$A74,DB$1))","v":""},{"$f":"IF($A74=\"N/A\",Ref!$B$36,INDEX(Ranks!$1:$1048576,$A74,DC$1))","v":""},{"$f":"IF($A74=\"N/A\",Ref!$B$36,INDEX(Ranks!$1:$1048576,$A74,DD$1))","v":""},{"$f":"IF($A74=\"N/A\",Ref!$B$36,INDEX(Ranks!$1:$1048576,$A74,DE$1))","v":""},{"$f":"IF($A74=\"N/A\",Ref!$B$36,INDEX(Ranks!$1:$1048576,$A74,DF$1))","v":""},{"$f":"IF($A74=\"N/A\",Ref!$B$36,INDEX(Ranks!$1:$1048576,$A74,DG$1))","v":""},{"$f":"IF($A74=\"N/A\",Ref!$B$36,INDEX(Ranks!$1:$1048576,$A74,DH$1))","v":""},{"$f":"IF($A74=\"N/A\",Ref!$B$36,INDEX(Ranks!$1:$1048576,$A74,DI$1))","v":""},{"$f":"IF($A74=\"N/A\",Ref!$B$36,INDEX(Ranks!$1:$1048576,$A74,DJ$1))","v":""},{"$f":"IF($A74=\"N/A\",Ref!$B$36,INDEX(Ranks!$1:$1048576,$A74,DK$1))","v":""},{"$f":"IF($A74=\"N/A\",Ref!$B$36,INDEX(Ranks!$1:$1048576,$A74,DL$1))","v":""},{"$f":"IF($A74=\"N/A\",Ref!$B$36,INDEX(Ranks!$1:$1048576,$A74,DM$1))","v":""},{"$f":"IF($A74=\"N/A\",Ref!$B$36,INDEX(Ranks!$1:$1048576,$A74,DN$1))","v":""},{"$f":"IF($A74=\"N/A\",Ref!$B$36,INDEX(Ranks!$1:$1048576,$A74,DO$1))","v":""},{"$f":"IF($A74=\"N/A\",Ref!$B$36,INDEX(Ranks!$1:$1048576,$A74,DP$1))","v":""},{"$f":"IF($A74=\"N/A\",Ref!$B$36,INDEX(Ranks!$1:$1048576,$A74,DQ$1))","v":""},{"$f":"IF($A74=\"N/A\",Ref!$B$36,INDEX(Ranks!$1:$1048576,$A74,DR$1))","v":""},{"$f":"IF($A74=\"N/A\",Ref!$B$36,INDEX(Ranks!$1:$1048576,$A74,DS$1))","v":""},{"$f":"IF($A74=\"N/A\",Ref!$B$36,INDEX(Ranks!$1:$1048576,$A74,DT$1))","v":""},{"$f":"IF($A74=\"N/A\",Ref!$B$36,INDEX(Ranks!$1:$1048576,$A74,DU$1))","v":""},{"$f":"IF($A74=\"N/A\",Ref!$B$36,INDEX(Ranks!$1:$1048576,$A74,DV$1))","v":""},{"$f":"IF($A74=\"N/A\",Ref!$B$36,INDEX(Ranks!$1:$1048576,$A74,DW$1))","v":""},{"$f":"IF($A74=\"N/A\",Ref!$B$36,INDEX(Ranks!$1:$1048576,$A74,DX$1))","v":""},{"$f":"IF($A74=\"N/A\",Ref!$B$36,INDEX(Ranks!$1:$1048576,$A74,DY$1))","v":""},{"$f":"IF($A74=\"N/A\",Ref!$B$36,INDEX(Ranks!$1:$1048576,$A74,DZ$1))","v":""},{"$f":"IF($A74=\"N/A\",Ref!$B$36,INDEX(Ranks!$1:$1048576,$A74,EA$1))","v":""},{"$f":"IF($A74=\"N/A\",Ref!$B$36,INDEX(Ranks!$1:$1048576,$A74,EB$1))","v":""}]
[{"$f":"IFERROR(MATCH('Portfolio Page'!L75,Ranks!L:L,0),\"N/A\")","v":"N/A"},null,{"$f":"IF($A75=\"N/A\",\"\",INDEX(Ranks!$1:$1048576,$A75,C$1))","v":""},{"$f":"IF($A75=\"N/A\",Ref!$B$36,INDEX(Ranks!$1:$1048576,$A75,D$1))","v":""},{"$f":"IF($A75=\"N/A\",Ref!$B$36,INDEX(Ranks!$1:$1048576,$A75,E$1))","v":""},{"$f":"IF($A75=\"N/A\",\"\",INDEX(Ranks!$1:$1048576,$A75,F$1))","v":""},{"$f":"IF($A75=\"N/A\",\"\",INDEX(Ranks!$1:$1048576,$A75,G$1))","v":""},{"$f":"IF($A75=\"N/A\",\"\",INDEX(Ranks!$1:$1048576,$A75,H$1))","v":""},{"$f":"IF($A75=\"N/A\",\"\",INDEX(Ranks!$1:$1048576,$A75,I$1))","v":""},{"$f":"IF($A75=\"N/A\",\"\",INDEX(Ranks!$1:$1048576,$A75,J$1))","v":""},{"$f":"IF($A75=\"N/A\",\"\",INDEX(Ranks!$1:$1048576,$A75,K$1))","v":""},null,{"$f":"IF($A75=\"N/A\",Ref!$B$36,INDEX(Ranks!$1:$1048576,$A75,M$1))","v":""},{"$f":"IF($A75=\"N/A\",Ref!$B$36,INDEX(Ranks!$1:$1048576,$A75,N$1))","v":""},{"$f":"IF($A75=\"N/A\",Ref!$B$36,INDEX(Ranks!$1:$1048576,$A75,O$1))","v":""},{"$f":"IF($A75=\"N/A\",Ref!$B$36,INDEX(Ranks!$1:$1048576,$A75,P$1))","v":""},{"$f":"IF($A75=\"N/A\",Ref!$B$36,INDEX(Ranks!$1:$1048576,$A75,Q$1))","v":""},{"$f":"IF($A75=\"N/A\",Ref!$B$36,INDEX(Ranks!$1:$1048576,$A75,R$1))","v":""},{"$f":"IF($A75=\"N/A\",Ref!$B$36,INDEX(Ranks!$1:$1048576,$A75,S$1))","v":""},{"$f":"IF($A75=\"N/A\",Ref!$B$36,INDEX(Ranks!$1:$1048576,$A75,T$1))","v":""},{"$f":"IF($A75=\"N/A\",Ref!$B$36,INDEX(Ranks!$1:$1048576,$A75,U$1))","v":""},{"$f":"IF($A75=\"N/A\",Ref!$B$36,INDEX(Ranks!$1:$1048576,$A75,V$1))","v":""},{"$f":"IF($A75=\"N/A\",Ref!$B$36,INDEX(Ranks!$1:$1048576,$A75,W$1))","v":""},{"$f":"IF($A75=\"N/A\",Ref!$B$36,INDEX(Ranks!$1:$1048576,$A75,X$1))","v":""},{"$f":"IF($A75=\"N/A\",Ref!$B$36,INDEX(Ranks!$1:$1048576,$A75,Y$1))","v":""},{"$f":"IF($A75=\"N/A\",Ref!$B$36,INDEX(Ranks!$1:$1048576,$A75,Z$1))","v":""},{"$f":"IF($A75=\"N/A\",Ref!$B$36,INDEX(Ranks!$1:$1048576,$A75,AA$1))","v":""},{"$f":"IF($A75=\"N/A\",Ref!$B$36,INDEX(Ranks!$1:$1048576,$A75,AB$1))","v":""},{"$f":"IF($A75=\"N/A\",Ref!$B$36,INDEX(Ranks!$1:$1048576,$A75,AC$1))","v":""},{"$f":"IF($A75=\"N/A\",Ref!$B$36,INDEX(Ranks!$1:$1048576,$A75,AD$1))","v":""},{"$f":"IF($A75=\"N/A\",Ref!$B$36,INDEX(Ranks!$1:$1048576,$A75,AE$1))","v":""},{"$f":"IF($A75=\"N/A\",Ref!$B$36,INDEX(Ranks!$1:$1048576,$A75,AF$1))","v":""},{"$f":"IF($A75=\"N/A\",Ref!$B$36,INDEX(Ranks!$1:$1048576,$A75,AG$1))","v":""},{"$f":"IF($A75=\"N/A\",Ref!$B$36,INDEX(Ranks!$1:$1048576,$A75,AH$1))","v":""},{"$f":"IF($A75=\"N/A\",Ref!$B$36,INDEX(Ranks!$1:$1048576,$A75,AI$1))","v":""},{"$f":"IF($A75=\"N/A\",Ref!$B$36,INDEX(Ranks!$1:$1048576,$A75,AJ$1))","v":""},{"$f":"IF($A75=\"N/A\",Ref!$B$36,INDEX(Ranks!$1:$1048576,$A75,AK$1))","v":""},{"$f":"IF($A75=\"N/A\",Ref!$B$36,INDEX(Ranks!$1:$1048576,$A75,AL$1))","v":""},{"$f":"IF($A75=\"N/A\",Ref!$B$36,INDEX(Ranks!$1:$1048576,$A75,AM$1))","v":""},{"$f":"IF($A75=\"N/A\",Ref!$B$36,INDEX(Ranks!$1:$1048576,$A75,AN$1))","v":""},{"$f":"IF($A75=\"N/A\",Ref!$B$36,INDEX(Ranks!$1:$1048576,$A75,AO$1))","v":""},{"$f":"IF($A75=\"N/A\",Ref!$B$36,INDEX(Ranks!$1:$1048576,$A75,AP$1))","v":""},{"$f":"IF($A75=\"N/A\",Ref!$B$36,INDEX(Ranks!$1:$1048576,$A75,AQ$1))","v":""},{"$f":"IF($A75=\"N/A\",Ref!$B$36,INDEX(Ranks!$1:$1048576,$A75,AR$1))","v":""},{"$f":"IF($A75=\"N/A\",Ref!$B$36,INDEX(Ranks!$1:$1048576,$A75,AS$1))","v":""},{"$f":"IF($A75=\"N/A\",Ref!$B$36,INDEX(Ranks!$1:$1048576,$A75,AT$1))","v":""},{"$f":"IF($A75=\"N/A\",Ref!$B$36,INDEX(Ranks!$1:$1048576,$A75,AU$1))","v":""},{"$f":"IF($A75=\"N/A\",Ref!$B$36,INDEX(Ranks!$1:$1048576,$A75,AV$1))","v":""},{"$f":"IF($A75=\"N/A\",Ref!$B$36,INDEX(Ranks!$1:$1048576,$A75,AW$1))","v":""},{"$f":"IF($A75=\"N/A\",Ref!$B$36,INDEX(Ranks!$1:$1048576,$A75,AX$1))","v":""},{"$f":"IF($A75=\"N/A\",Ref!$B$36,INDEX(Ranks!$1:$1048576,$A75,AY$1))","v":""},{"$f":"IF($A75=\"N/A\",Ref!$B$36,INDEX(Ranks!$1:$1048576,$A75,AZ$1))","v":""},{"$f":"IF($A75=\"N/A\",Ref!$B$36,INDEX(Ranks!$1:$1048576,$A75,BA$1))","v":""},{"$f":"IF($A75=\"N/A\",Ref!$B$36,INDEX(Ranks!$1:$1048576,$A75,BB$1))","v":""},{"$f":"IF($A75=\"N/A\",Ref!$B$36,INDEX(Ranks!$1:$1048576,$A75,BC$1))","v":""},{"$f":"IF($A75=\"N/A\",Ref!$B$36,INDEX(Ranks!$1:$1048576,$A75,BD$1))","v":""},{"$f":"IF($A75=\"N/A\",Ref!$B$36,INDEX(Ranks!$1:$1048576,$A75,BE$1))","v":""},{"$f":"IF($A75=\"N/A\",Ref!$B$36,INDEX(Ranks!$1:$1048576,$A75,BF$1))","v":""},{"$f":"IF($A75=\"N/A\",Ref!$B$36,INDEX(Ranks!$1:$1048576,$A75,BG$1))","v":""},{"$f":"IF($A75=\"N/A\",Ref!$B$36,INDEX(Ranks!$1:$1048576,$A75,BH$1))","v":""},{"$f":"IF($A75=\"N/A\",Ref!$B$36,INDEX(Ranks!$1:$1048576,$A75,BI$1))","v":""},{"$f":"IF($A75=\"N/A\",Ref!$B$36,INDEX(Ranks!$1:$1048576,$A75,BJ$1))","v":""},{"$f":"IF($A75=\"N/A\",Ref!$B$36,INDEX(Ranks!$1:$1048576,$A75,BK$1))","v":""},{"$f":"IF($A75=\"N/A\",Ref!$B$36,INDEX(Ranks!$1:$1048576,$A75,BL$1))","v":""},{"$f":"IF($A75=\"N/A\",Ref!$B$36,INDEX(Ranks!$1:$1048576,$A75,BM$1))","v":""},{"$f":"IF($A75=\"N/A\",Ref!$B$36,INDEX(Ranks!$1:$1048576,$A75,BN$1))","v":""},{"$f":"IF($A75=\"N/A\",Ref!$B$36,INDEX(Ranks!$1:$1048576,$A75,BO$1))","v":""},{"$f":"IF($A75=\"N/A\",Ref!$B$36,INDEX(Ranks!$1:$1048576,$A75,BP$1))","v":""},{"$f":"IF($A75=\"N/A\",Ref!$B$36,INDEX(Ranks!$1:$1048576,$A75,BQ$1))","v":""},{"$f":"IF($A75=\"N/A\",Ref!$B$36,INDEX(Ranks!$1:$1048576,$A75,BR$1))","v":""},{"$f":"IF($A75=\"N/A\",Ref!$B$36,INDEX(Ranks!$1:$1048576,$A75,BS$1))","v":""},{"$f":"IF($A75=\"N/A\",Ref!$B$36,INDEX(Ranks!$1:$1048576,$A75,BT$1))","v":""},{"$f":"IF($A75=\"N/A\",Ref!$B$36,INDEX(Ranks!$1:$1048576,$A75,BU$1))","v":""},{"$f":"IF($A75=\"N/A\",Ref!$B$36,INDEX(Ranks!$1:$1048576,$A75,BV$1))","v":""},{"$f":"IF($A75=\"N/A\",Ref!$B$36,INDEX(Ranks!$1:$1048576,$A75,BW$1))","v":""},{"$f":"IF($A75=\"N/A\",Ref!$B$36,INDEX(Ranks!$1:$1048576,$A75,BX$1))","v":""},{"$f":"IF($A75=\"N/A\",Ref!$B$36,INDEX(Ranks!$1:$1048576,$A75,BY$1))","v":""},{"$f":"IF($A75=\"N/A\",Ref!$B$36,INDEX(Ranks!$1:$1048576,$A75,BZ$1))","v":""},{"$f":"IF($A75=\"N/A\",Ref!$B$36,INDEX(Ranks!$1:$1048576,$A75,CA$1))","v":""},{"$f":"IF($A75=\"N/A\",Ref!$B$36,INDEX(Ranks!$1:$1048576,$A75,CB$1))","v":""},{"$f":"IF($A75=\"N/A\",Ref!$B$36,INDEX(Ranks!$1:$1048576,$A75,CC$1))","v":""},{"$f":"IF($A75=\"N/A\",Ref!$B$36,INDEX(Ranks!$1:$1048576,$A75,CD$1))","v":""},{"$f":"IF($A75=\"N/A\",Ref!$B$36,INDEX(Ranks!$1:$1048576,$A75,CE$1))","v":""},{"$f":"IF($A75=\"N/A\",Ref!$B$36,INDEX(Ranks!$1:$1048576,$A75,CF$1))","v":""},{"$f":"IF($A75=\"N/A\",Ref!$B$36,INDEX(Ranks!$1:$1048576,$A75,CG$1))","v":""},{"$f":"IF($A75=\"N/A\",Ref!$B$36,INDEX(Ranks!$1:$1048576,$A75,CH$1))","v":""},{"$f":"IF($A75=\"N/A\",Ref!$B$36,INDEX(Ranks!$1:$1048576,$A75,CI$1))","v":""},{"$f":"IF($A75=\"N/A\",Ref!$B$36,INDEX(Ranks!$1:$1048576,$A75,CJ$1))","v":""},{"$f":"IF($A75=\"N/A\",Ref!$B$36,INDEX(Ranks!$1:$1048576,$A75,CK$1))","v":""},{"$f":"IF($A75=\"N/A\",Ref!$B$36,INDEX(Ranks!$1:$1048576,$A75,CL$1))","v":""},{"$f":"IF($A75=\"N/A\",Ref!$B$36,INDEX(Ranks!$1:$1048576,$A75,CM$1))","v":""},{"$f":"IF($A75=\"N/A\",Ref!$B$36,INDEX(Ranks!$1:$1048576,$A75,CN$1))","v":""},{"$f":"IF($A75=\"N/A\",Ref!$B$36,INDEX(Ranks!$1:$1048576,$A75,CO$1))","v":""},{"$f":"IF($A75=\"N/A\",Ref!$B$36,INDEX(Ranks!$1:$1048576,$A75,CP$1))","v":""},{"$f":"IF($A75=\"N/A\",Ref!$B$36,INDEX(Ranks!$1:$1048576,$A75,CQ$1))","v":""},{"$f":"IF($A75=\"N/A\",Ref!$B$36,INDEX(Ranks!$1:$1048576,$A75,CR$1))","v":""},{"$f":"IF($A75=\"N/A\",Ref!$B$36,INDEX(Ranks!$1:$1048576,$A75,CS$1))","v":""},{"$f":"IF($A75=\"N/A\",Ref!$B$36,INDEX(Ranks!$1:$1048576,$A75,CT$1))","v":""},{"$f":"IF($A75=\"N/A\",Ref!$B$36,INDEX(Ranks!$1:$1048576,$A75,CU$1))","v":""},{"$f":"IF($A75=\"N/A\",Ref!$B$36,INDEX(Ranks!$1:$1048576,$A75,CV$1))","v":""},{"$f":"IF($A75=\"N/A\",Ref!$B$36,INDEX(Ranks!$1:$1048576,$A75,CW$1))","v":""},{"$f":"IF($A75=\"N/A\",Ref!$B$36,INDEX(Ranks!$1:$1048576,$A75,CX$1))","v":""},{"$f":"IF($A75=\"N/A\",Ref!$B$36,INDEX(Ranks!$1:$1048576,$A75,CY$1))","v":""},{"$f":"IF($A75=\"N/A\",Ref!$B$36,INDEX(Ranks!$1:$1048576,$A75,CZ$1))","v":""},{"$f":"IF($A75=\"N/A\",Ref!$B$36,INDEX(Ranks!$1:$1048576,$A75,DA$1))","v":""},{"$f":"IF($A75=\"N/A\",Ref!$B$36,INDEX(Ranks!$1:$1048576,$A75,DB$1))","v":""},{"$f":"IF($A75=\"N/A\",Ref!$B$36,INDEX(Ranks!$1:$1048576,$A75,DC$1))","v":""},{"$f":"IF($A75=\"N/A\",Ref!$B$36,INDEX(Ranks!$1:$1048576,$A75,DD$1))","v":""},{"$f":"IF($A75=\"N/A\",Ref!$B$36,INDEX(Ranks!$1:$1048576,$A75,DE$1))","v":""},{"$f":"IF($A75=\"N/A\",Ref!$B$36,INDEX(Ranks!$1:$1048576,$A75,DF$1))","v":""},{"$f":"IF($A75=\"N/A\",Ref!$B$36,INDEX(Ranks!$1:$1048576,$A75,DG$1))","v":""},{"$f":"IF($A75=\"N/A\",Ref!$B$36,INDEX(Ranks!$1:$1048576,$A75,DH$1))","v":""},{"$f":"IF($A75=\"N/A\",Ref!$B$36,INDEX(Ranks!$1:$1048576,$A75,DI$1))","v":""},{"$f":"IF($A75=\"N/A\",Ref!$B$36,INDEX(Ranks!$1:$1048576,$A75,DJ$1))","v":""},{"$f":"IF($A75=\"N/A\",Ref!$B$36,INDEX(Ranks!$1:$1048576,$A75,DK$1))","v":""},{"$f":"IF($A75=\"N/A\",Ref!$B$36,INDEX(Ranks!$1:$1048576,$A75,DL$1))","v":""},{"$f":"IF($A75=\"N/A\",Ref!$B$36,INDEX(Ranks!$1:$1048576,$A75,DM$1))","v":""},{"$f":"IF($A75=\"N/A\",Ref!$B$36,INDEX(Ranks!$1:$1048576,$A75,DN$1))","v":""},{"$f":"IF($A75=\"N/A\",Ref!$B$36,INDEX(Ranks!$1:$1048576,$A75,DO$1))","v":""},{"$f":"IF($A75=\"N/A\",Ref!$B$36,INDEX(Ranks!$1:$1048576,$A75,DP$1))","v":""},{"$f":"IF($A75=\"N/A\",Ref!$B$36,INDEX(Ranks!$1:$1048576,$A75,DQ$1))","v":""},{"$f":"IF($A75=\"N/A\",Ref!$B$36,INDEX(Ranks!$1:$1048576,$A75,DR$1))","v":""},{"$f":"IF($A75=\"N/A\",Ref!$B$36,INDEX(Ranks!$1:$1048576,$A75,DS$1))","v":""},{"$f":"IF($A75=\"N/A\",Ref!$B$36,INDEX(Ranks!$1:$1048576,$A75,DT$1))","v":""},{"$f":"IF($A75=\"N/A\",Ref!$B$36,INDEX(Ranks!$1:$1048576,$A75,DU$1))","v":""},{"$f":"IF($A75=\"N/A\",Ref!$B$36,INDEX(Ranks!$1:$1048576,$A75,DV$1))","v":""},{"$f":"IF($A75=\"N/A\",Ref!$B$36,INDEX(Ranks!$1:$1048576,$A75,DW$1))","v":""},{"$f":"IF($A75=\"N/A\",Ref!$B$36,INDEX(Ranks!$1:$1048576,$A75,DX$1))","v":""},{"$f":"IF($A75=\"N/A\",Ref!$B$36,INDEX(Ranks!$1:$1048576,$A75,DY$1))","v":""},{"$f":"IF($A75=\"N/A\",Ref!$B$36,INDEX(Ranks!$1:$1048576,$A75,DZ$1))","v":""},{"$f":"IF($A75=\"N/A\",Ref!$B$36,INDEX(Ranks!$1:$1048576,$A75,EA$1))","v":""},{"$f":"IF($A75=\"N/A\",Ref!$B$36,INDEX(Ranks!$1:$1048576,$A75,EB$1))","v":""}]
[{"$f":"IFERROR(MATCH('Portfolio Page'!L76,Ranks!L:L,0),\"N/A\")","v":"N/A"},null,{"$f":"IF($A76=\"N/A\",\"\",INDEX(Ranks!$1:$1048576,$A76,C$1))","v":""},{"$f":"IF($A76=\"N/A\",Ref!$B$36,INDEX(Ranks!$1:$1048576,$A76,D$1))","v":""},{"$f":"IF($A76=\"N/A\",Ref!$B$36,INDEX(Ranks!$1:$1048576,$A76,E$1))","v":""},{"$f":"IF($A76=\"N/A\",\"\",INDEX(Ranks!$1:$1048576,$A76,F$1))","v":""},{"$f":"IF($A76=\"N/A\",\"\",INDEX(Ranks!$1:$1048576,$A76,G$1))","v":""},{"$f":"IF($A76=\"N/A\",\"\",INDEX(Ranks!$1:$1048576,$A76,H$1))","v":""},{"$f":"IF($A76=\"N/A\",\"\",INDEX(Ranks!$1:$1048576,$A76,I$1))","v":""},{"$f":"IF($A76=\"N/A\",\"\",INDEX(Ranks!$1:$1048576,$A76,J$1))","v":""},{"$f":"IF($A76=\"N/A\",\"\",INDEX(Ranks!$1:$1048576,$A76,K$1))","v":""},null,{"$f":"IF($A76=\"N/A\",Ref!$B$36,INDEX(Ranks!$1:$1048576,$A76,M$1))","v":""},{"$f":"IF($A76=\"N/A\",Ref!$B$36,INDEX(Ranks!$1:$1048576,$A76,N$1))","v":""},{"$f":"IF($A76=\"N/A\",Ref!$B$36,INDEX(Ranks!$1:$1048576,$A76,O$1))","v":""},{"$f":"IF($A76=\"N/A\",Ref!$B$36,INDEX(Ranks!$1:$1048576,$A76,P$1))","v":""},{"$f":"IF($A76=\"N/A\",Ref!$B$36,INDEX(Ranks!$1:$1048576,$A76,Q$1))","v":""},{"$f":"IF($A76=\"N/A\",Ref!$B$36,INDEX(Ranks!$1:$1048576,$A76,R$1))","v":""},{"$f":"IF($A76=\"N/A\",Ref!$B$36,INDEX(Ranks!$1:$1048576,$A76,S$1))","v":""},{"$f":"IF($A76=\"N/A\",Ref!$B$36,INDEX(Ranks!$1:$1048576,$A76,T$1))","v":""},{"$f":"IF($A76=\"N/A\",Ref!$B$36,INDEX(Ranks!$1:$1048576,$A76,U$1))","v":""},{"$f":"IF($A76=\"N/A\",Ref!$B$36,INDEX(Ranks!$1:$1048576,$A76,V$1))","v":""},{"$f":"IF($A76=\"N/A\",Ref!$B$36,INDEX(Ranks!$1:$1048576,$A76,W$1))","v":""},{"$f":"IF($A76=\"N/A\",Ref!$B$36,INDEX(Ranks!$1:$1048576,$A76,X$1))","v":""},{"$f":"IF($A76=\"N/A\",Ref!$B$36,INDEX(Ranks!$1:$1048576,$A76,Y$1))","v":""},{"$f":"IF($A76=\"N/A\",Ref!$B$36,INDEX(Ranks!$1:$1048576,$A76,Z$1))","v":""},{"$f":"IF($A76=\"N/A\",Ref!$B$36,INDEX(Ranks!$1:$1048576,$A76,AA$1))","v":""},{"$f":"IF($A76=\"N/A\",Ref!$B$36,INDEX(Ranks!$1:$1048576,$A76,AB$1))","v":""},{"$f":"IF($A76=\"N/A\",Ref!$B$36,INDEX(Ranks!$1:$1048576,$A76,AC$1))","v":""},{"$f":"IF($A76=\"N/A\",Ref!$B$36,INDEX(Ranks!$1:$1048576,$A76,AD$1))","v":""},{"$f":"IF($A76=\"N/A\",Ref!$B$36,INDEX(Ranks!$1:$1048576,$A76,AE$1))","v":""},{"$f":"IF($A76=\"N/A\",Ref!$B$36,INDEX(Ranks!$1:$1048576,$A76,AF$1))","v":""},{"$f":"IF($A76=\"N/A\",Ref!$B$36,INDEX(Ranks!$1:$1048576,$A76,AG$1))","v":""},{"$f":"IF($A76=\"N/A\",Ref!$B$36,INDEX(Ranks!$1:$1048576,$A76,AH$1))","v":""},{"$f":"IF($A76=\"N/A\",Ref!$B$36,INDEX(Ranks!$1:$1048576,$A76,AI$1))","v":""},{"$f":"IF($A76=\"N/A\",Ref!$B$36,INDEX(Ranks!$1:$1048576,$A76,AJ$1))","v":""},{"$f":"IF($A76=\"N/A\",Ref!$B$36,INDEX(Ranks!$1:$1048576,$A76,AK$1))","v":""},{"$f":"IF($A76=\"N/A\",Ref!$B$36,INDEX(Ranks!$1:$1048576,$A76,AL$1))","v":""},{"$f":"IF($A76=\"N/A\",Ref!$B$36,INDEX(Ranks!$1:$1048576,$A76,AM$1))","v":""},{"$f":"IF($A76=\"N/A\",Ref!$B$36,INDEX(Ranks!$1:$1048576,$A76,AN$1))","v":""},{"$f":"IF($A76=\"N/A\",Ref!$B$36,INDEX(Ranks!$1:$1048576,$A76,AO$1))","v":""},{"$f":"IF($A76=\"N/A\",Ref!$B$36,INDEX(Ranks!$1:$1048576,$A76,AP$1))","v":""},{"$f":"IF($A76=\"N/A\",Ref!$B$36,INDEX(Ranks!$1:$1048576,$A76,AQ$1))","v":""},{"$f":"IF($A76=\"N/A\",Ref!$B$36,INDEX(Ranks!$1:$1048576,$A76,AR$1))","v":""},{"$f":"IF($A76=\"N/A\",Ref!$B$36,INDEX(Ranks!$1:$1048576,$A76,AS$1))","v":""},{"$f":"IF($A76=\"N/A\",Ref!$B$36,INDEX(Ranks!$1:$1048576,$A76,AT$1))","v":""},{"$f":"IF($A76=\"N/A\",Ref!$B$36,INDEX(Ranks!$1:$1048576,$A76,AU$1))","v":""},{"$f":"IF($A76=\"N/A\",Ref!$B$36,INDEX(Ranks!$1:$1048576,$A76,AV$1))","v":""},{"$f":"IF($A76=\"N/A\",Ref!$B$36,INDEX(Ranks!$1:$1048576,$A76,AW$1))","v":""},{"$f":"IF($A76=\"N/A\",Ref!$B$36,INDEX(Ranks!$1:$1048576,$A76,AX$1))","v":""},{"$f":"IF($A76=\"N/A\",Ref!$B$36,INDEX(Ranks!$1:$1048576,$A76,AY$1))","v":""},{"$f":"IF($A76=\"N/A\",Ref!$B$36,INDEX(Ranks!$1:$1048576,$A76,AZ$1))","v":""},{"$f":"IF($A76=\"N/A\",Ref!$B$36,INDEX(Ranks!$1:$1048576,$A76,BA$1))","v":""},{"$f":"IF($A76=\"N/A\",Ref!$B$36,INDEX(Ranks!$1:$1048576,$A76,BB$1))","v":""},{"$f":"IF($A76=\"N/A\",Ref!$B$36,INDEX(Ranks!$1:$1048576,$A76,BC$1))","v":""},{"$f":"IF($A76=\"N/A\",Ref!$B$36,INDEX(Ranks!$1:$1048576,$A76,BD$1))","v":""},{"$f":"IF($A76=\"N/A\",Ref!$B$36,INDEX(Ranks!$1:$1048576,$A76,BE$1))","v":""},{"$f":"IF($A76=\"N/A\",Ref!$B$36,INDEX(Ranks!$1:$1048576,$A76,BF$1))","v":""},{"$f":"IF($A76=\"N/A\",Ref!$B$36,INDEX(Ranks!$1:$1048576,$A76,BG$1))","v":""},{"$f":"IF($A76=\"N/A\",Ref!$B$36,INDEX(Ranks!$1:$1048576,$A76,BH$1))","v":""},{"$f":"IF($A76=\"N/A\",Ref!$B$36,INDEX(Ranks!$1:$1048576,$A76,BI$1))","v":""},{"$f":"IF($A76=\"N/A\",Ref!$B$36,INDEX(Ranks!$1:$1048576,$A76,BJ$1))","v":""},{"$f":"IF($A76=\"N/A\",Ref!$B$36,INDEX(Ranks!$1:$1048576,$A76,BK$1))","v":""},{"$f":"IF($A76=\"N/A\",Ref!$B$36,INDEX(Ranks!$1:$1048576,$A76,BL$1))","v":""},{"$f":"IF($A76=\"N/A\",Ref!$B$36,INDEX(Ranks!$1:$1048576,$A76,BM$1))","v":""},{"$f":"IF($A76=\"N/A\",Ref!$B$36,INDEX(Ranks!$1:$1048576,$A76,BN$1))","v":""},{"$f":"IF($A76=\"N/A\",Ref!$B$36,INDEX(Ranks!$1:$1048576,$A76,BO$1))","v":""},{"$f":"IF($A76=\"N/A\",Ref!$B$36,INDEX(Ranks!$1:$1048576,$A76,BP$1))","v":""},{"$f":"IF($A76=\"N/A\",Ref!$B$36,INDEX(Ranks!$1:$1048576,$A76,BQ$1))","v":""},{"$f":"IF($A76=\"N/A\",Ref!$B$36,INDEX(Ranks!$1:$1048576,$A76,BR$1))","v":""},{"$f":"IF($A76=\"N/A\",Ref!$B$36,INDEX(Ranks!$1:$1048576,$A76,BS$1))","v":""},{"$f":"IF($A76=\"N/A\",Ref!$B$36,INDEX(Ranks!$1:$1048576,$A76,BT$1))","v":""},{"$f":"IF($A76=\"N/A\",Ref!$B$36,INDEX(Ranks!$1:$1048576,$A76,BU$1))","v":""},{"$f":"IF($A76=\"N/A\",Ref!$B$36,INDEX(Ranks!$1:$1048576,$A76,BV$1))","v":""},{"$f":"IF($A76=\"N/A\",Ref!$B$36,INDEX(Ranks!$1:$1048576,$A76,BW$1))","v":""},{"$f":"IF($A76=\"N/A\",Ref!$B$36,INDEX(Ranks!$1:$1048576,$A76,BX$1))","v":""},{"$f":"IF($A76=\"N/A\",Ref!$B$36,INDEX(Ranks!$1:$1048576,$A76,BY$1))","v":""},{"$f":"IF($A76=\"N/A\",Ref!$B$36,INDEX(Ranks!$1:$1048576,$A76,BZ$1))","v":""},{"$f":"IF($A76=\"N/A\",Ref!$B$36,INDEX(Ranks!$1:$1048576,$A76,CA$1))","v":""},{"$f":"IF($A76=\"N/A\",Ref!$B$36,INDEX(Ranks!$1:$1048576,$A76,CB$1))","v":""},{"$f":"IF($A76=\"N/A\",Ref!$B$36,INDEX(Ranks!$1:$1048576,$A76,CC$1))","v":""},{"$f":"IF($A76=\"N/A\",Ref!$B$36,INDEX(Ranks!$1:$1048576,$A76,CD$1))","v":""},{"$f":"IF($A76=\"N/A\",Ref!$B$36,INDEX(Ranks!$1:$1048576,$A76,CE$1))","v":""},{"$f":"IF($A76=\"N/A\",Ref!$B$36,INDEX(Ranks!$1:$1048576,$A76,CF$1))","v":""},{"$f":"IF($A76=\"N/A\",Ref!$B$36,INDEX(Ranks!$1:$1048576,$A76,CG$1))","v":""},{"$f":"IF($A76=\"N/A\",Ref!$B$36,INDEX(Ranks!$1:$1048576,$A76,CH$1))","v":""},{"$f":"IF($A76=\"N/A\",Ref!$B$36,INDEX(Ranks!$1:$1048576,$A76,CI$1))","v":""},{"$f":"IF($A76=\"N/A\",Ref!$B$36,INDEX(Ranks!$1:$1048576,$A76,CJ$1))","v":""},{"$f":"IF($A76=\"N/A\",Ref!$B$36,INDEX(Ranks!$1:$1048576,$A76,CK$1))","v":""},{"$f":"IF($A76=\"N/A\",Ref!$B$36,INDEX(Ranks!$1:$1048576,$A76,CL$1))","v":""},{"$f":"IF($A76=\"N/A\",Ref!$B$36,INDEX(Ranks!$1:$1048576,$A76,CM$1))","v":""},{"$f":"IF($A76=\"N/A\",Ref!$B$36,INDEX(Ranks!$1:$1048576,$A76,CN$1))","v":""},{"$f":"IF($A76=\"N/A\",Ref!$B$36,INDEX(Ranks!$1:$1048576,$A76,CO$1))","v":""},{"$f":"IF($A76=\"N/A\",Ref!$B$36,INDEX(Ranks!$1:$1048576,$A76,CP$1))","v":""},{"$f":"IF($A76=\"N/A\",Ref!$B$36,INDEX(Ranks!$1:$1048576,$A76,CQ$1))","v":""},{"$f":"IF($A76=\"N/A\",Ref!$B$36,INDEX(Ranks!$1:$1048576,$A76,CR$1))","v":""},{"$f":"IF($A76=\"N/A\",Ref!$B$36,INDEX(Ranks!$1:$1048576,$A76,CS$1))","v":""},{"$f":"IF($A76=\"N/A\",Ref!$B$36,INDEX(Ranks!$1:$1048576,$A76,CT$1))","v":""},{"$f":"IF($A76=\"N/A\",Ref!$B$36,INDEX(Ranks!$1:$1048576,$A76,CU$1))","v":""},{"$f":"IF($A76=\"N/A\",Ref!$B$36,INDEX(Ranks!$1:$1048576,$A76,CV$1))","v":""},{"$f":"IF($A76=\"N/A\",Ref!$B$36,INDEX(Ranks!$1:$1048576,$A76,CW$1))","v":""},{"$f":"IF($A76=\"N/A\",Ref!$B$36,INDEX(Ranks!$1:$1048576,$A76,CX$1))","v":""},{"$f":"IF($A76=\"N/A\",Ref!$B$36,INDEX(Ranks!$1:$1048576,$A76,CY$1))","v":""},{"$f":"IF($A76=\"N/A\",Ref!$B$36,INDEX(Ranks!$1:$1048576,$A76,CZ$1))","v":""},{"$f":"IF($A76=\"N/A\",Ref!$B$36,INDEX(Ranks!$1:$1048576,$A76,DA$1))","v":""},{"$f":"IF($A76=\"N/A\",Ref!$B$36,INDEX(Ranks!$1:$1048576,$A76,DB$1))","v":""},{"$f":"IF($A76=\"N/A\",Ref!$B$36,INDEX(Ranks!$1:$1048576,$A76,DC$1))","v":""},{"$f":"IF($A76=\"N/A\",Ref!$B$36,INDEX(Ranks!$1:$1048576,$A76,DD$1))","v":""},{"$f":"IF($A76=\"N/A\",Ref!$B$36,INDEX(Ranks!$1:$1048576,$A76,DE$1))","v":""},{"$f":"IF($A76=\"N/A\",Ref!$B$36,INDEX(Ranks!$1:$1048576,$A76,DF$1))","v":""},{"$f":"IF($A76=\"N/A\",Ref!$B$36,INDEX(Ranks!$1:$1048576,$A76,DG$1))","v":""},{"$f":"IF($A76=\"N/A\",Ref!$B$36,INDEX(Ranks!$1:$1048576,$A76,DH$1))","v":""},{"$f":"IF($A76=\"N/A\",Ref!$B$36,INDEX(Ranks!$1:$1048576,$A76,DI$1))","v":""},{"$f":"IF($A76=\"N/A\",Ref!$B$36,INDEX(Ranks!$1:$1048576,$A76,DJ$1))","v":""},{"$f":"IF($A76=\"N/A\",Ref!$B$36,INDEX(Ranks!$1:$1048576,$A76,DK$1))","v":""},{"$f":"IF($A76=\"N/A\",Ref!$B$36,INDEX(Ranks!$1:$1048576,$A76,DL$1))","v":""},{"$f":"IF($A76=\"N/A\",Ref!$B$36,INDEX(Ranks!$1:$1048576,$A76,DM$1))","v":""},{"$f":"IF($A76=\"N/A\",Ref!$B$36,INDEX(Ranks!$1:$1048576,$A76,DN$1))","v":""},{"$f":"IF($A76=\"N/A\",Ref!$B$36,INDEX(Ranks!$1:$1048576,$A76,DO$1))","v":""},{"$f":"IF($A76=\"N/A\",Ref!$B$36,INDEX(Ranks!$1:$1048576,$A76,DP$1))","v":""},{"$f":"IF($A76=\"N/A\",Ref!$B$36,INDEX(Ranks!$1:$1048576,$A76,DQ$1))","v":""},{"$f":"IF($A76=\"N/A\",Ref!$B$36,INDEX(Ranks!$1:$1048576,$A76,DR$1))","v":""},{"$f":"IF($A76=\"N/A\",Ref!$B$36,INDEX(Ranks!$1:$1048576,$A76,DS$1))","v":""},{"$f":"IF($A76=\"N/A\",Ref!$B$36,INDEX(Ranks!$1:$1048576,$A76,DT$1))","v":""},{"$f":"IF($A76=\"N/A\",Ref!$B$36,INDEX(Ranks!$1:$1048576,$A76,DU$1))","v":""},{"$f":"IF($A76=\"N/A\",Ref!$B$36,INDEX(Ranks!$1:$1048576,$A76,DV$1))","v":""},{"$f":"IF($A76=\"N/A\",Ref!$B$36,INDEX(Ranks!$1:$1048576,$A76,DW$1))","v":""},{"$f":"IF($A76=\"N/A\",Ref!$B$36,INDEX(Ranks!$1:$1048576,$A76,DX$1))","v":""},{"$f":"IF($A76=\"N/A\",Ref!$B$36,INDEX(Ranks!$1:$1048576,$A76,DY$1))","v":""},{"$f":"IF($A76=\"N/A\",Ref!$B$36,INDEX(Ranks!$1:$1048576,$A76,DZ$1))","v":""},{"$f":"IF($A76=\"N/A\",Ref!$B$36,INDEX(Ranks!$1:$1048576,$A76,EA$1))","v":""},{"$f":"IF($A76=\"N/A\",Ref!$B$36,INDEX(Ranks!$1:$1048576,$A76,EB$1))","v":""}]
[{"$f":"IFERROR(MATCH('Portfolio Page'!L77,Ranks!L:L,0),\"N/A\")","v":"N/A"},null,{"$f":"IF($A77=\"N/A\",\"\",INDEX(Ranks!$1:$1048576,$A77,C$1))","v":""},{"$f":"IF($A77=\"N/A\",Ref!$B$36,INDEX(Ranks!$1:$1048576,$A77,D$1))","v":""},{"$f":"IF($A77=\"N/A\",Ref!$B$36,INDEX(Ranks!$1:$1048576,$A77,E$1))","v":""},{"$f":"IF($A77=\"N/A\",\"\",INDEX(Ranks!$1:$1048576,$A77,F$1))","v":""},{"$f":"IF($A77=\"N/A\",\"\",INDEX(Ranks!$1:$1048576,$A77,G$1))","v":""},{"$f":"IF($A77=\"N/A\",\"\",INDEX(Ranks!$1:$1048576,$A77,H$1))","v":""},{"$f":"IF($A77=\"N/A\",\"\",INDEX(Ranks!$1:$1048576,$A77,I$1))","v":""},{"$f":"IF($A77=\"N/A\",\"\",INDEX(Ranks!$1:$1048576,$A77,J$1))","v":""},{"$f":"IF($A77=\"N/A\",\"\",INDEX(Ranks!$1:$1048576,$A77,K$1))","v":""},null,{"$f":"IF($A77=\"N/A\",Ref!$B$36,INDEX(Ranks!$1:$1048576,$A77,M$1))","v":""},{"$f":"IF($A77=\"N/A\",Ref!$B$36,INDEX(Ranks!$1:$1048576,$A77,N$1))","v":""},{"$f":"IF($A77=\"N/A\",Ref!$B$36,INDEX(Ranks!$1:$1048576,$A77,O$1))","v":""},{"$f":"IF($A77=\"N/A\",Ref!$B$36,INDEX(Ranks!$1:$1048576,$A77,P$1))","v":""},{"$f":"IF($A77=\"N/A\",Ref!$B$36,INDEX(Ranks!$1:$1048576,$A77,Q$1))","v":""},{"$f":"IF($A77=\"N/A\",Ref!$B$36,INDEX(Ranks!$1:$1048576,$A77,R$1))","v":""},{"$f":"IF($A77=\"N/A\",Ref!$B$36,INDEX(Ranks!$1:$1048576,$A77,S$1))","v":""},{"$f":"IF($A77=\"N/A\",Ref!$B$36,INDEX(Ranks!$1:$1048576,$A77,T$1))","v":""},{"$f":"IF($A77=\"N/A\",Ref!$B$36,INDEX(Ranks!$1:$1048576,$A77,U$1))","v":""},{"$f":"IF($A77=\"N/A\",Ref!$B$36,INDEX(Ranks!$1:$1048576,$A77,V$1))","v":""},{"$f":"IF($A77=\"N/A\",Ref!$B$36,INDEX(Ranks!$1:$1048576,$A77,W$1))","v":""},{"$f":"IF($A77=\"N/A\",Ref!$B$36,INDEX(Ranks!$1:$1048576,$A77,X$1))","v":""},{"$f":"IF($A77=\"N/A\",Ref!$B$36,INDEX(Ranks!$1:$1048576,$A77,Y$1))","v":""},{"$f":"IF($A77=\"N/A\",Ref!$B$36,INDEX(Ranks!$1:$1048576,$A77,Z$1))","v":""},{"$f":"IF($A77=\"N/A\",Ref!$B$36,INDEX(Ranks!$1:$1048576,$A77,AA$1))","v":""},{"$f":"IF($A77=\"N/A\",Ref!$B$36,INDEX(Ranks!$1:$1048576,$A77,AB$1))","v":""},{"$f":"IF($A77=\"N/A\",Ref!$B$36,INDEX(Ranks!$1:$1048576,$A77,AC$1))","v":""},{"$f":"IF($A77=\"N/A\",Ref!$B$36,INDEX(Ranks!$1:$1048576,$A77,AD$1))","v":""},{"$f":"IF($A77=\"N/A\",Ref!$B$36,INDEX(Ranks!$1:$1048576,$A77,AE$1))","v":""},{"$f":"IF($A77=\"N/A\",Ref!$B$36,INDEX(Ranks!$1:$1048576,$A77,AF$1))","v":""},{"$f":"IF($A77=\"N/A\",Ref!$B$36,INDEX(Ranks!$1:$1048576,$A77,AG$1))","v":""},{"$f":"IF($A77=\"N/A\",Ref!$B$36,INDEX(Ranks!$1:$1048576,$A77,AH$1))","v":""},{"$f":"IF($A77=\"N/A\",Ref!$B$36,INDEX(Ranks!$1:$1048576,$A77,AI$1))","v":""},{"$f":"IF($A77=\"N/A\",Ref!$B$36,INDEX(Ranks!$1:$1048576,$A77,AJ$1))","v":""},{"$f":"IF($A77=\"N/A\",Ref!$B$36,INDEX(Ranks!$1:$1048576,$A77,AK$1))","v":""},{"$f":"IF($A77=\"N/A\",Ref!$B$36,INDEX(Ranks!$1:$1048576,$A77,AL$1))","v":""},{"$f":"IF($A77=\"N/A\",Ref!$B$36,INDEX(Ranks!$1:$1048576,$A77,AM$1))","v":""},{"$f":"IF($A77=\"N/A\",Ref!$B$36,INDEX(Ranks!$1:$1048576,$A77,AN$1))","v":""},{"$f":"IF($A77=\"N/A\",Ref!$B$36,INDEX(Ranks!$1:$1048576,$A77,AO$1))","v":""},{"$f":"IF($A77=\"N/A\",Ref!$B$36,INDEX(Ranks!$1:$1048576,$A77,AP$1))","v":""},{"$f":"IF($A77=\"N/A\",Ref!$B$36,INDEX(Ranks!$1:$1048576,$A77,AQ$1))","v":""},{"$f":"IF($A77=\"N/A\",Ref!$B$36,INDEX(Ranks!$1:$1048576,$A77,AR$1))","v":""},{"$f":"IF($A77=\"N/A\",Ref!$B$36,INDEX(Ranks!$1:$1048576,$A77,AS$1))","v":""},{"$f":"IF($A77=\"N/A\",Ref!$B$36,INDEX(Ranks!$1:$1048576,$A77,AT$1))","v":""},{"$f":"IF($A77=\"N/A\",Ref!$B$36,INDEX(Ranks!$1:$1048576,$A77,AU$1))","v":""},{"$f":"IF($A77=\"N/A\",Ref!$B$36,INDEX(Ranks!$1:$1048576,$A77,AV$1))","v":""},{"$f":"IF($A77=\"N/A\",Ref!$B$36,INDEX(Ranks!$1:$1048576,$A77,AW$1))","v":""},{"$f":"IF($A77=\"N/A\",Ref!$B$36,INDEX(Ranks!$1:$1048576,$A77,AX$1))","v":""},{"$f":"IF($A77=\"N/A\",Ref!$B$36,INDEX(Ranks!$1:$1048576,$A77,AY$1))","v":""},{"$f":"IF($A77=\"N/A\",Ref!$B$36,INDEX(Ranks!$1:$1048576,$A77,AZ$1))","v":""},{"$f":"IF($A77=\"N/A\",Ref!$B$36,INDEX(Ranks!$1:$1048576,$A77,BA$1))","v":""},{"$f":"IF($A77=\"N/A\",Ref!$B$36,INDEX(Ranks!$1:$1048576,$A77,BB$1))","v":""},{"$f":"IF($A77=\"N/A\",Ref!$B$36,INDEX(Ranks!$1:$1048576,$A77,BC$1))","v":""},{"$f":"IF($A77=\"N/A\",Ref!$B$36,INDEX(Ranks!$1:$1048576,$A77,BD$1))","v":""},{"$f":"IF($A77=\"N/A\",Ref!$B$36,INDEX(Ranks!$1:$1048576,$A77,BE$1))","v":""},{"$f":"IF($A77=\"N/A\",Ref!$B$36,INDEX(Ranks!$1:$1048576,$A77,BF$1))","v":""},{"$f":"IF($A77=\"N/A\",Ref!$B$36,INDEX(Ranks!$1:$1048576,$A77,BG$1))","v":""},{"$f":"IF($A77=\"N/A\",Ref!$B$36,INDEX(Ranks!$1:$1048576,$A77,BH$1))","v":""},{"$f":"IF($A77=\"N/A\",Ref!$B$36,INDEX(Ranks!$1:$1048576,$A77,BI$1))","v":""},{"$f":"IF($A77=\"N/A\",Ref!$B$36,INDEX(Ranks!$1:$1048576,$A77,BJ$1))","v":""},{"$f":"IF($A77=\"N/A\",Ref!$B$36,INDEX(Ranks!$1:$1048576,$A77,BK$1))","v":""},{"$f":"IF($A77=\"N/A\",Ref!$B$36,INDEX(Ranks!$1:$1048576,$A77,BL$1))","v":""},{"$f":"IF($A77=\"N/A\",Ref!$B$36,INDEX(Ranks!$1:$1048576,$A77,BM$1))","v":""},{"$f":"IF($A77=\"N/A\",Ref!$B$36,INDEX(Ranks!$1:$1048576,$A77,BN$1))","v":""},{"$f":"IF($A77=\"N/A\",Ref!$B$36,INDEX(Ranks!$1:$1048576,$A77,BO$1))","v":""},{"$f":"IF($A77=\"N/A\",Ref!$B$36,INDEX(Ranks!$1:$1048576,$A77,BP$1))","v":""},{"$f":"IF($A77=\"N/A\",Ref!$B$36,INDEX(Ranks!$1:$1048576,$A77,BQ$1))","v":""},{"$f":"IF($A77=\"N/A\",Ref!$B$36,INDEX(Ranks!$1:$1048576,$A77,BR$1))","v":""},{"$f":"IF($A77=\"N/A\",Ref!$B$36,INDEX(Ranks!$1:$1048576,$A77,BS$1))","v":""},{"$f":"IF($A77=\"N/A\",Ref!$B$36,INDEX(Ranks!$1:$1048576,$A77,BT$1))","v":""},{"$f":"IF($A77=\"N/A\",Ref!$B$36,INDEX(Ranks!$1:$1048576,$A77,BU$1))","v":""},{"$f":"IF($A77=\"N/A\",Ref!$B$36,INDEX(Ranks!$1:$1048576,$A77,BV$1))","v":""},{"$f":"IF($A77=\"N/A\",Ref!$B$36,INDEX(Ranks!$1:$1048576,$A77,BW$1))","v":""},{"$f":"IF($A77=\"N/A\",Ref!$B$36,INDEX(Ranks!$1:$1048576,$A77,BX$1))","v":""},{"$f":"IF($A77=\"N/A\",Ref!$B$36,INDEX(Ranks!$1:$1048576,$A77,BY$1))","v":""},{"$f":"IF($A77=\"N/A\",Ref!$B$36,INDEX(Ranks!$1:$1048576,$A77,BZ$1))","v":""},{"$f":"IF($A77=\"N/A\",Ref!$B$36,INDEX(Ranks!$1:$1048576,$A77,CA$1))","v":""},{"$f":"IF($A77=\"N/A\",Ref!$B$36,INDEX(Ranks!$1:$1048576,$A77,CB$1))","v":""},{"$f":"IF($A77=\"N/A\",Ref!$B$36,INDEX(Ranks!$1:$1048576,$A77,CC$1))","v":""},{"$f":"IF($A77=\"N/A\",Ref!$B$36,INDEX(Ranks!$1:$1048576,$A77,CD$1))","v":""},{"$f":"IF($A77=\"N/A\",Ref!$B$36,INDEX(Ranks!$1:$1048576,$A77,CE$1))","v":""},{"$f":"IF($A77=\"N/A\",Ref!$B$36,INDEX(Ranks!$1:$1048576,$A77,CF$1))","v":""},{"$f":"IF($A77=\"N/A\",Ref!$B$36,INDEX(Ranks!$1:$1048576,$A77,CG$1))","v":""},{"$f":"IF($A77=\"N/A\",Ref!$B$36,INDEX(Ranks!$1:$1048576,$A77,CH$1))","v":""},{"$f":"IF($A77=\"N/A\",Ref!$B$36,INDEX(Ranks!$1:$1048576,$A77,CI$1))","v":""},{"$f":"IF($A77=\"N/A\",Ref!$B$36,INDEX(Ranks!$1:$1048576,$A77,CJ$1))","v":""},{"$f":"IF($A77=\"N/A\",Ref!$B$36,INDEX(Ranks!$1:$1048576,$A77,CK$1))","v":""},{"$f":"IF($A77=\"N/A\",Ref!$B$36,INDEX(Ranks!$1:$1048576,$A77,CL$1))","v":""},{"$f":"IF($A77=\"N/A\",Ref!$B$36,INDEX(Ranks!$1:$1048576,$A77,CM$1))","v":""},{"$f":"IF($A77=\"N/A\",Ref!$B$36,INDEX(Ranks!$1:$1048576,$A77,CN$1))","v":""},{"$f":"IF($A77=\"N/A\",Ref!$B$36,INDEX(Ranks!$1:$1048576,$A77,CO$1))","v":""},{"$f":"IF($A77=\"N/A\",Ref!$B$36,INDEX(Ranks!$1:$1048576,$A77,CP$1))","v":""},{"$f":"IF($A77=\"N/A\",Ref!$B$36,INDEX(Ranks!$1:$1048576,$A77,CQ$1))","v":""},{"$f":"IF($A77=\"N/A\",Ref!$B$36,INDEX(Ranks!$1:$1048576,$A77,CR$1))","v":""},{"$f":"IF($A77=\"N/A\",Ref!$B$36,INDEX(Ranks!$1:$1048576,$A77,CS$1))","v":""},{"$f":"IF($A77=\"N/A\",Ref!$B$36,INDEX(Ranks!$1:$1048576,$A77,CT$1))","v":""},{"$f":"IF($A77=\"N/A\",Ref!$B$36,INDEX(Ranks!$1:$1048576,$A77,CU$1))","v":""},{"$f":"IF($A77=\"N/A\",Ref!$B$36,INDEX(Ranks!$1:$1048576,$A77,CV$1))","v":""},{"$f":"IF($A77=\"N/A\",Ref!$B$36,INDEX(Ranks!$1:$1048576,$A77,CW$1))","v":""},{"$f":"IF($A77=\"N/A\",Ref!$B$36,INDEX(Ranks!$1:$1048576,$A77,CX$1))","v":""},{"$f":"IF($A77=\"N/A\",Ref!$B$36,INDEX(Ranks!$1:$1048576,$A77,CY$1))","v":""},{"$f":"IF($A77=\"N/A\",Ref!$B$36,INDEX(Ranks!$1:$1048576,$A77,CZ$1))","v":""},{"$f":"IF($A77=\"N/A\",Ref!$B$36,INDEX(Ranks!$1:$1048576,$A77,DA$1))","v":""},{"$f":"IF($A77=\"N/A\",Ref!$B$36,INDEX(Ranks!$1:$1048576,$A77,DB$1))","v":""},{"$f":"IF($A77=\"N/A\",Ref!$B$36,INDEX(Ranks!$1:$1048576,$A77,DC$1))","v":""},{"$f":"IF($A77=\"N/A\",Ref!$B$36,INDEX(Ranks!$1:$1048576,$A77,DD$1))","v":""},{"$f":"IF($A77=\"N/A\",Ref!$B$36,INDEX(Ranks!$1:$1048576,$A77,DE$1))","v":""},{"$f":"IF($A77=\"N/A\",Ref!$B$36,INDEX(Ranks!$1:$1048576,$A77,DF$1))","v":""},{"$f":"IF($A77=\"N/A\",Ref!$B$36,INDEX(Ranks!$1:$1048576,$A77,DG$1))","v":""},{"$f":"IF($A77=\"N/A\",Ref!$B$36,INDEX(Ranks!$1:$1048576,$A77,DH$1))","v":""},{"$f":"IF($A77=\"N/A\",Ref!$B$36,INDEX(Ranks!$1:$1048576,$A77,DI$1))","v":""},{"$f":"IF($A77=\"N/A\",Ref!$B$36,INDEX(Ranks!$1:$1048576,$A77,DJ$1))","v":""},{"$f":"IF($A77=\"N/A\",Ref!$B$36,INDEX(Ranks!$1:$1048576,$A77,DK$1))","v":""},{"$f":"IF($A77=\"N/A\",Ref!$B$36,INDEX(Ranks!$1:$1048576,$A77,DL$1))","v":""},{"$f":"IF($A77=\"N/A\",Ref!$B$36,INDEX(Ranks!$1:$1048576,$A77,DM$1))","v":""},{"$f":"IF($A77=\"N/A\",Ref!$B$36,INDEX(Ranks!$1:$1048576,$A77,DN$1))","v":""},{"$f":"IF($A77=\"N/A\",Ref!$B$36,INDEX(Ranks!$1:$1048576,$A77,DO$1))","v":""},{"$f":"IF($A77=\"N/A\",Ref!$B$36,INDEX(Ranks!$1:$1048576,$A77,DP$1))","v":""},{"$f":"IF($A77=\"N/A\",Ref!$B$36,INDEX(Ranks!$1:$1048576,$A77,DQ$1))","v":""},{"$f":"IF($A77=\"N/A\",Ref!$B$36,INDEX(Ranks!$1:$1048576,$A77,DR$1))","v":""},{"$f":"IF($A77=\"N/A\",Ref!$B$36,INDEX(Ranks!$1:$1048576,$A77,DS$1))","v":""},{"$f":"IF($A77=\"N/A\",Ref!$B$36,INDEX(Ranks!$1:$1048576,$A77,DT$1))","v":""},{"$f":"IF($A77=\"N/A\",Ref!$B$36,INDEX(Ranks!$1:$1048576,$A77,DU$1))","v":""},{"$f":"IF($A77=\"N/A\",Ref!$B$36,INDEX(Ranks!$1:$1048576,$A77,DV$1))","v":""},{"$f":"IF($A77=\"N/A\",Ref!$B$36,INDEX(Ranks!$1:$1048576,$A77,DW$1))","v":""},{"$f":"IF($A77=\"N/A\",Ref!$B$36,INDEX(Ranks!$1:$1048576,$A77,DX$1))","v":""},{"$f":"IF($A77=\"N/A\",Ref!$B$36,INDEX(Ranks!$1:$1048576,$A77,DY$1))","v":""},{"$f":"IF($A77=\"N/A\",Ref!$B$36,INDEX(Ranks!$1:$1048576,$A77,DZ$1))","v":""},{"$f":"IF($A77=\"N/A\",Ref!$B$36,INDEX(Ranks!$1:$1048576,$A77,EA$1))","v":""},{"$f":"IF($A77=\"N/A\",Ref!$B$36,INDEX(Ranks!$1:$1048576,$A77,EB$1))","v":""}]
[{"$f":"IFERROR(MATCH('Portfolio Page'!L78,Ranks!L:L,0),\"N/A\")","v":"N/A"},null,{"$f":"IF($A78=\"N/A\",\"\",INDEX(Ranks!$1:$1048576,$A78,C$1))","v":""},{"$f":"IF($A78=\"N/A\",Ref!$B$36,INDEX(Ranks!$1:$1048576,$A78,D$1))","v":""},{"$f":"IF($A78=\"N/A\",Ref!$B$36,INDEX(Ranks!$1:$1048576,$A78,E$1))","v":""},{"$f":"IF($A78=\"N/A\",\"\",INDEX(Ranks!$1:$1048576,$A78,F$1))","v":""},{"$f":"IF($A78=\"N/A\",\"\",INDEX(Ranks!$1:$1048576,$A78,G$1))","v":""},{"$f":"IF($A78=\"N/A\",\"\",INDEX(Ranks!$1:$1048576,$A78,H$1))","v":""},{"$f":"IF($A78=\"N/A\",\"\",INDEX(Ranks!$1:$1048576,$A78,I$1))","v":""},{"$f":"IF($A78=\"N/A\",\"\",INDEX(Ranks!$1:$1048576,$A78,J$1))","v":""},{"$f":"IF($A78=\"N/A\",\"\",INDEX(Ranks!$1:$1048576,$A78,K$1))","v":""},null,{"$f":"IF($A78=\"N/A\",Ref!$B$36,INDEX(Ranks!$1:$1048576,$A78,M$1))","v":""},{"$f":"IF($A78=\"N/A\",Ref!$B$36,INDEX(Ranks!$1:$1048576,$A78,N$1))","v":""},{"$f":"IF($A78=\"N/A\",Ref!$B$36,INDEX(Ranks!$1:$1048576,$A78,O$1))","v":""},{"$f":"IF($A78=\"N/A\",Ref!$B$36,INDEX(Ranks!$1:$1048576,$A78,P$1))","v":""},{"$f":"IF($A78=\"N/A\",Ref!$B$36,INDEX(Ranks!$1:$1048576,$A78,Q$1))","v":""},{"$f":"IF($A78=\"N/A\",Ref!$B$36,INDEX(Ranks!$1:$1048576,$A78,R$1))","v":""},{"$f":"IF($A78=\"N/A\",Ref!$B$36,INDEX(Ranks!$1:$1048576,$A78,S$1))","v":""},{"$f":"IF($A78=\"N/A\",Ref!$B$36,INDEX(Ranks!$1:$1048576,$A78,T$1))","v":""},{"$f":"IF($A78=\"N/A\",Ref!$B$36,INDEX(Ranks!$1:$1048576,$A78,U$1))","v":""},{"$f":"IF($A78=\"N/A\",Ref!$B$36,INDEX(Ranks!$1:$1048576,$A78,V$1))","v":""},{"$f":"IF($A78=\"N/A\",Ref!$B$36,INDEX(Ranks!$1:$1048576,$A78,W$1))","v":""},{"$f":"IF($A78=\"N/A\",Ref!$B$36,INDEX(Ranks!$1:$1048576,$A78,X$1))","v":""},{"$f":"IF($A78=\"N/A\",Ref!$B$36,INDEX(Ranks!$1:$1048576,$A78,Y$1))","v":""},{"$f":"IF($A78=\"N/A\",Ref!$B$36,INDEX(Ranks!$1:$1048576,$A78,Z$1))","v":""},{"$f":"IF($A78=\"N/A\",Ref!$B$36,INDEX(Ranks!$1:$1048576,$A78,AA$1))","v":""},{"$f":"IF($A78=\"N/A\",Ref!$B$36,INDEX(Ranks!$1:$1048576,$A78,AB$1))","v":""},{"$f":"IF($A78=\"N/A\",Ref!$B$36,INDEX(Ranks!$1:$1048576,$A78,AC$1))","v":""},{"$f":"IF($A78=\"N/A\",Ref!$B$36,INDEX(Ranks!$1:$1048576,$A78,AD$1))","v":""},{"$f":"IF($A78=\"N/A\",Ref!$B$36,INDEX(Ranks!$1:$1048576,$A78,AE$1))","v":""},{"$f":"IF($A78=\"N/A\",Ref!$B$36,INDEX(Ranks!$1:$1048576,$A78,AF$1))","v":""},{"$f":"IF($A78=\"N/A\",Ref!$B$36,INDEX(Ranks!$1:$1048576,$A78,AG$1))","v":""},{"$f":"IF($A78=\"N/A\",Ref!$B$36,INDEX(Ranks!$1:$1048576,$A78,AH$1))","v":""},{"$f":"IF($A78=\"N/A\",Ref!$B$36,INDEX(Ranks!$1:$1048576,$A78,AI$1))","v":""},{"$f":"IF($A78=\"N/A\",Ref!$B$36,INDEX(Ranks!$1:$1048576,$A78,AJ$1))","v":""},{"$f":"IF($A78=\"N/A\",Ref!$B$36,INDEX(Ranks!$1:$1048576,$A78,AK$1))","v":""},{"$f":"IF($A78=\"N/A\",Ref!$B$36,INDEX(Ranks!$1:$1048576,$A78,AL$1))","v":""},{"$f":"IF($A78=\"N/A\",Ref!$B$36,INDEX(Ranks!$1:$1048576,$A78,AM$1))","v":""},{"$f":"IF($A78=\"N/A\",Ref!$B$36,INDEX(Ranks!$1:$1048576,$A78,AN$1))","v":""},{"$f":"IF($A78=\"N/A\",Ref!$B$36,INDEX(Ranks!$1:$1048576,$A78,AO$1))","v":""},{"$f":"IF($A78=\"N/A\",Ref!$B$36,INDEX(Ranks!$1:$1048576,$A78,AP$1))","v":""},{"$f":"IF($A78=\"N/A\",Ref!$B$36,INDEX(Ranks!$1:$1048576,$A78,AQ$1))","v":""},{"$f":"IF($A78=\"N/A\",Ref!$B$36,INDEX(Ranks!$1:$1048576,$A78,AR$1))","v":""},{"$f":"IF($A78=\"N/A\",Ref!$B$36,INDEX(Ranks!$1:$1048576,$A78,AS$1))","v":""},{"$f":"IF($A78=\"N/A\",Ref!$B$36,INDEX(Ranks!$1:$1048576,$A78,AT$1))","v":""},{"$f":"IF($A78=\"N/A\",Ref!$B$36,INDEX(Ranks!$1:$1048576,$A78,AU$1))","v":""},{"$f":"IF($A78=\"N/A\",Ref!$B$36,INDEX(Ranks!$1:$1048576,$A78,AV$1))","v":""},{"$f":"IF($A78=\"N/A\",Ref!$B$36,INDEX(Ranks!$1:$1048576,$A78,AW$1))","v":""},{"$f":"IF($A78=\"N/A\",Ref!$B$36,INDEX(Ranks!$1:$1048576,$A78,AX$1))","v":""},{"$f":"IF($A78=\"N/A\",Ref!$B$36,INDEX(Ranks!$1:$1048576,$A78,AY$1))","v":""},{"$f":"IF($A78=\"N/A\",Ref!$B$36,INDEX(Ranks!$1:$1048576,$A78,AZ$1))","v":""},{"$f":"IF($A78=\"N/A\",Ref!$B$36,INDEX(Ranks!$1:$1048576,$A78,BA$1))","v":""},{"$f":"IF($A78=\"N/A\",Ref!$B$36,INDEX(Ranks!$1:$1048576,$A78,BB$1))","v":""},{"$f":"IF($A78=\"N/A\",Ref!$B$36,INDEX(Ranks!$1:$1048576,$A78,BC$1))","v":""},{"$f":"IF($A78=\"N/A\",Ref!$B$36,INDEX(Ranks!$1:$1048576,$A78,BD$1))","v":""},{"$f":"IF($A78=\"N/A\",Ref!$B$36,INDEX(Ranks!$1:$1048576,$A78,BE$1))","v":""},{"$f":"IF($A78=\"N/A\",Ref!$B$36,INDEX(Ranks!$1:$1048576,$A78,BF$1))","v":""},{"$f":"IF($A78=\"N/A\",Ref!$B$36,INDEX(Ranks!$1:$1048576,$A78,BG$1))","v":""},{"$f":"IF($A78=\"N/A\",Ref!$B$36,INDEX(Ranks!$1:$1048576,$A78,BH$1))","v":""},{"$f":"IF($A78=\"N/A\",Ref!$B$36,INDEX(Ranks!$1:$1048576,$A78,BI$1))","v":""},{"$f":"IF($A78=\"N/A\",Ref!$B$36,INDEX(Ranks!$1:$1048576,$A78,BJ$1))","v":""},{"$f":"IF($A78=\"N/A\",Ref!$B$36,INDEX(Ranks!$1:$1048576,$A78,BK$1))","v":""},{"$f":"IF($A78=\"N/A\",Ref!$B$36,INDEX(Ranks!$1:$1048576,$A78,BL$1))","v":""},{"$f":"IF($A78=\"N/A\",Ref!$B$36,INDEX(Ranks!$1:$1048576,$A78,BM$1))","v":""},{"$f":"IF($A78=\"N/A\",Ref!$B$36,INDEX(Ranks!$1:$1048576,$A78,BN$1))","v":""},{"$f":"IF($A78=\"N/A\",Ref!$B$36,INDEX(Ranks!$1:$1048576,$A78,BO$1))","v":""},{"$f":"IF($A78=\"N/A\",Ref!$B$36,INDEX(Ranks!$1:$1048576,$A78,BP$1))","v":""},{"$f":"IF($A78=\"N/A\",Ref!$B$36,INDEX(Ranks!$1:$1048576,$A78,BQ$1))","v":""},{"$f":"IF($A78=\"N/A\",Ref!$B$36,INDEX(Ranks!$1:$1048576,$A78,BR$1))","v":""},{"$f":"IF($A78=\"N/A\",Ref!$B$36,INDEX(Ranks!$1:$1048576,$A78,BS$1))","v":""},{"$f":"IF($A78=\"N/A\",Ref!$B$36,INDEX(Ranks!$1:$1048576,$A78,BT$1))","v":""},{"$f":"IF($A78=\"N/A\",Ref!$B$36,INDEX(Ranks!$1:$1048576,$A78,BU$1))","v":""},{"$f":"IF($A78=\"N/A\",Ref!$B$36,INDEX(Ranks!$1:$1048576,$A78,BV$1))","v":""},{"$f":"IF($A78=\"N/A\",Ref!$B$36,INDEX(Ranks!$1:$1048576,$A78,BW$1))","v":""},{"$f":"IF($A78=\"N/A\",Ref!$B$36,INDEX(Ranks!$1:$1048576,$A78,BX$1))","v":""},{"$f":"IF($A78=\"N/A\",Ref!$B$36,INDEX(Ranks!$1:$1048576,$A78,BY$1))","v":""},{"$f":"IF($A78=\"N/A\",Ref!$B$36,INDEX(Ranks!$1:$1048576,$A78,BZ$1))","v":""},{"$f":"IF($A78=\"N/A\",Ref!$B$36,INDEX(Ranks!$1:$1048576,$A78,CA$1))","v":""},{"$f":"IF($A78=\"N/A\",Ref!$B$36,INDEX(Ranks!$1:$1048576,$A78,CB$1))","v":""},{"$f":"IF($A78=\"N/A\",Ref!$B$36,INDEX(Ranks!$1:$1048576,$A78,CC$1))","v":""},{"$f":"IF($A78=\"N/A\",Ref!$B$36,INDEX(Ranks!$1:$1048576,$A78,CD$1))","v":""},{"$f":"IF($A78=\"N/A\",Ref!$B$36,INDEX(Ranks!$1:$1048576,$A78,CE$1))","v":""},{"$f":"IF($A78=\"N/A\",Ref!$B$36,INDEX(Ranks!$1:$1048576,$A78,CF$1))","v":""},{"$f":"IF($A78=\"N/A\",Ref!$B$36,INDEX(Ranks!$1:$1048576,$A78,CG$1))","v":""},{"$f":"IF($A78=\"N/A\",Ref!$B$36,INDEX(Ranks!$1:$1048576,$A78,CH$1))","v":""},{"$f":"IF($A78=\"N/A\",Ref!$B$36,INDEX(Ranks!$1:$1048576,$A78,CI$1))","v":""},{"$f":"IF($A78=\"N/A\",Ref!$B$36,INDEX(Ranks!$1:$1048576,$A78,CJ$1))","v":""},{"$f":"IF($A78=\"N/A\",Ref!$B$36,INDEX(Ranks!$1:$1048576,$A78,CK$1))","v":""},{"$f":"IF($A78=\"N/A\",Ref!$B$36,INDEX(Ranks!$1:$1048576,$A78,CL$1))","v":""},{"$f":"IF($A78=\"N/A\",Ref!$B$36,INDEX(Ranks!$1:$1048576,$A78,CM$1))","v":""},{"$f":"IF($A78=\"N/A\",Ref!$B$36,INDEX(Ranks!$1:$1048576,$A78,CN$1))","v":""},{"$f":"IF($A78=\"N/A\",Ref!$B$36,INDEX(Ranks!$1:$1048576,$A78,CO$1))","v":""},{"$f":"IF($A78=\"N/A\",Ref!$B$36,INDEX(Ranks!$1:$1048576,$A78,CP$1))","v":""},{"$f":"IF($A78=\"N/A\",Ref!$B$36,INDEX(Ranks!$1:$1048576,$A78,CQ$1))","v":""},{"$f":"IF($A78=\"N/A\",Ref!$B$36,INDEX(Ranks!$1:$1048576,$A78,CR$1))","v":""},{"$f":"IF($A78=\"N/A\",Ref!$B$36,INDEX(Ranks!$1:$1048576,$A78,CS$1))","v":""},{"$f":"IF($A78=\"N/A\",Ref!$B$36,INDEX(Ranks!$1:$1048576,$A78,CT$1))","v":""},{"$f":"IF($A78=\"N/A\",Ref!$B$36,INDEX(Ranks!$1:$1048576,$A78,CU$1))","v":""},{"$f":"IF($A78=\"N/A\",Ref!$B$36,INDEX(Ranks!$1:$1048576,$A78,CV$1))","v":""},{"$f":"IF($A78=\"N/A\",Ref!$B$36,INDEX(Ranks!$1:$1048576,$A78,CW$1))","v":""},{"$f":"IF($A78=\"N/A\",Ref!$B$36,INDEX(Ranks!$1:$1048576,$A78,CX$1))","v":""},{"$f":"IF($A78=\"N/A\",Ref!$B$36,INDEX(Ranks!$1:$1048576,$A78,CY$1))","v":""},{"$f":"IF($A78=\"N/A\",Ref!$B$36,INDEX(Ranks!$1:$1048576,$A78,CZ$1))","v":""},{"$f":"IF($A78=\"N/A\",Ref!$B$36,INDEX(Ranks!$1:$1048576,$A78,DA$1))","v":""},{"$f":"IF($A78=\"N/A\",Ref!$B$36,INDEX(Ranks!$1:$1048576,$A78,DB$1))","v":""},{"$f":"IF($A78=\"N/A\",Ref!$B$36,INDEX(Ranks!$1:$1048576,$A78,DC$1))","v":""},{"$f":"IF($A78=\"N/A\",Ref!$B$36,INDEX(Ranks!$1:$1048576,$A78,DD$1))","v":""},{"$f":"IF($A78=\"N/A\",Ref!$B$36,INDEX(Ranks!$1:$1048576,$A78,DE$1))","v":""},{"$f":"IF($A78=\"N/A\",Ref!$B$36,INDEX(Ranks!$1:$1048576,$A78,DF$1))","v":""},{"$f":"IF($A78=\"N/A\",Ref!$B$36,INDEX(Ranks!$1:$1048576,$A78,DG$1))","v":""},{"$f":"IF($A78=\"N/A\",Ref!$B$36,INDEX(Ranks!$1:$1048576,$A78,DH$1))","v":""},{"$f":"IF($A78=\"N/A\",Ref!$B$36,INDEX(Ranks!$1:$1048576,$A78,DI$1))","v":""},{"$f":"IF($A78=\"N/A\",Ref!$B$36,INDEX(Ranks!$1:$1048576,$A78,DJ$1))","v":""},{"$f":"IF($A78=\"N/A\",Ref!$B$36,INDEX(Ranks!$1:$1048576,$A78,DK$1))","v":""},{"$f":"IF($A78=\"N/A\",Ref!$B$36,INDEX(Ranks!$1:$1048576,$A78,DL$1))","v":""},{"$f":"IF($A78=\"N/A\",Ref!$B$36,INDEX(Ranks!$1:$1048576,$A78,DM$1))","v":""},{"$f":"IF($A78=\"N/A\",Ref!$B$36,INDEX(Ranks!$1:$1048576,$A78,DN$1))","v":""},{"$f":"IF($A78=\"N/A\",Ref!$B$36,INDEX(Ranks!$1:$1048576,$A78,DO$1))","v":""},{"$f":"IF($A78=\"N/A\",Ref!$B$36,INDEX(Ranks!$1:$1048576,$A78,DP$1))","v":""},{"$f":"IF($A78=\"N/A\",Ref!$B$36,INDEX(Ranks!$1:$1048576,$A78,DQ$1))","v":""},{"$f":"IF($A78=\"N/A\",Ref!$B$36,INDEX(Ranks!$1:$1048576,$A78,DR$1))","v":""},{"$f":"IF($A78=\"N/A\",Ref!$B$36,INDEX(Ranks!$1:$1048576,$A78,DS$1))","v":""},{"$f":"IF($A78=\"N/A\",Ref!$B$36,INDEX(Ranks!$1:$1048576,$A78,DT$1))","v":""},{"$f":"IF($A78=\"N/A\",Ref!$B$36,INDEX(Ranks!$1:$1048576,$A78,DU$1))","v":""},{"$f":"IF($A78=\"N/A\",Ref!$B$36,INDEX(Ranks!$1:$1048576,$A78,DV$1))","v":""},{"$f":"IF($A78=\"N/A\",Ref!$B$36,INDEX(Ranks!$1:$1048576,$A78,DW$1))","v":""},{"$f":"IF($A78=\"N/A\",Ref!$B$36,INDEX(Ranks!$1:$1048576,$A78,DX$1))","v":""},{"$f":"IF($A78=\"N/A\",Ref!$B$36,INDEX(Ranks!$1:$1048576,$A78,DY$1))","v":""},{"$f":"IF($A78=\"N/A\",Ref!$B$36,INDEX(Ranks!$1:$1048576,$A78,DZ$1))","v":""},{"$f":"IF($A78=\"N/A\",Ref!$B$36,INDEX(Ranks!$1:$1048576,$A78,EA$1))","v":""},{"$f":"IF($A78=\"N/A\",Ref!$B$36,INDEX(Ranks!$1:$1048576,$A78,EB$1))","v":""}]
[{"$f":"IFERROR(MATCH('Portfolio Page'!L79,Ranks!L:L,0),\"N/A\")","v":"N/A"},null,{"$f":"IF($A79=\"N/A\",\"\",INDEX(Ranks!$1:$1048576,$A79,C$1))","v":""},{"$f":"IF($A79=\"N/A\",Ref!$B$36,INDEX(Ranks!$1:$1048576,$A79,D$1))","v":""},{"$f":"IF($A79=\"N/A\",Ref!$B$36,INDEX(Ranks!$1:$1048576,$A79,E$1))","v":""},{"$f":"IF($A79=\"N/A\",\"\",INDEX(Ranks!$1:$1048576,$A79,F$1))","v":""},{"$f":"IF($A79=\"N/A\",\"\",INDEX(Ranks!$1:$1048576,$A79,G$1))","v":""},{"$f":"IF($A79=\"N/A\",\"\",INDEX(Ranks!$1:$1048576,$A79,H$1))","v":""},{"$f":"IF($A79=\"N/A\",\"\",INDEX(Ranks!$1:$1048576,$A79,I$1))","v":""},{"$f":"IF($A79=\"N/A\",\"\",INDEX(Ranks!$1:$1048576,$A79,J$1))","v":""},{"$f":"IF($A79=\"N/A\",\"\",INDEX(Ranks!$1:$1048576,$A79,K$1))","v":""},null,{"$f":"IF($A79=\"N/A\",Ref!$B$36,INDEX(Ranks!$1:$1048576,$A79,M$1))","v":""},{"$f":"IF($A79=\"N/A\",Ref!$B$36,INDEX(Ranks!$1:$1048576,$A79,N$1))","v":""},{"$f":"IF($A79=\"N/A\",Ref!$B$36,INDEX(Ranks!$1:$1048576,$A79,O$1))","v":""},{"$f":"IF($A79=\"N/A\",Ref!$B$36,INDEX(Ranks!$1:$1048576,$A79,P$1))","v":""},{"$f":"IF($A79=\"N/A\",Ref!$B$36,INDEX(Ranks!$1:$1048576,$A79,Q$1))","v":""},{"$f":"IF($A79=\"N/A\",Ref!$B$36,INDEX(Ranks!$1:$1048576,$A79,R$1))","v":""},{"$f":"IF($A79=\"N/A\",Ref!$B$36,INDEX(Ranks!$1:$1048576,$A79,S$1))","v":""},{"$f":"IF($A79=\"N/A\",Ref!$B$36,INDEX(Ranks!$1:$1048576,$A79,T$1))","v":""},{"$f":"IF($A79=\"N/A\",Ref!$B$36,INDEX(Ranks!$1:$1048576,$A79,U$1))","v":""},{"$f":"IF($A79=\"N/A\",Ref!$B$36,INDEX(Ranks!$1:$1048576,$A79,V$1))","v":""},{"$f":"IF($A79=\"N/A\",Ref!$B$36,INDEX(Ranks!$1:$1048576,$A79,W$1))","v":""},{"$f":"IF($A79=\"N/A\",Ref!$B$36,INDEX(Ranks!$1:$1048576,$A79,X$1))","v":""},{"$f":"IF($A79=\"N/A\",Ref!$B$36,INDEX(Ranks!$1:$1048576,$A79,Y$1))","v":""},{"$f":"IF($A79=\"N/A\",Ref!$B$36,INDEX(Ranks!$1:$1048576,$A79,Z$1))","v":""},{"$f":"IF($A79=\"N/A\",Ref!$B$36,INDEX(Ranks!$1:$1048576,$A79,AA$1))","v":""},{"$f":"IF($A79=\"N/A\",Ref!$B$36,INDEX(Ranks!$1:$1048576,$A79,AB$1))","v":""},{"$f":"IF($A79=\"N/A\",Ref!$B$36,INDEX(Ranks!$1:$1048576,$A79,AC$1))","v":""},{"$f":"IF($A79=\"N/A\",Ref!$B$36,INDEX(Ranks!$1:$1048576,$A79,AD$1))","v":""},{"$f":"IF($A79=\"N/A\",Ref!$B$36,INDEX(Ranks!$1:$1048576,$A79,AE$1))","v":""},{"$f":"IF($A79=\"N/A\",Ref!$B$36,INDEX(Ranks!$1:$1048576,$A79,AF$1))","v":""},{"$f":"IF($A79=\"N/A\",Ref!$B$36,INDEX(Ranks!$1:$1048576,$A79,AG$1))","v":""},{"$f":"IF($A79=\"N/A\",Ref!$B$36,INDEX(Ranks!$1:$1048576,$A79,AH$1))","v":""},{"$f":"IF($A79=\"N/A\",Ref!$B$36,INDEX(Ranks!$1:$1048576,$A79,AI$1))","v":""},{"$f":"IF($A79=\"N/A\",Ref!$B$36,INDEX(Ranks!$1:$1048576,$A79,AJ$1))","v":""},{"$f":"IF($A79=\"N/A\",Ref!$B$36,INDEX(Ranks!$1:$1048576,$A79,AK$1))","v":""},{"$f":"IF($A79=\"N/A\",Ref!$B$36,INDEX(Ranks!$1:$1048576,$A79,AL$1))","v":""},{"$f":"IF($A79=\"N/A\",Ref!$B$36,INDEX(Ranks!$1:$1048576,$A79,AM$1))","v":""},{"$f":"IF($A79=\"N/A\",Ref!$B$36,INDEX(Ranks!$1:$1048576,$A79,AN$1))","v":""},{"$f":"IF($A79=\"N/A\",Ref!$B$36,INDEX(Ranks!$1:$1048576,$A79,AO$1))","v":""},{"$f":"IF($A79=\"N/A\",Ref!$B$36,INDEX(Ranks!$1:$1048576,$A79,AP$1))","v":""},{"$f":"IF($A79=\"N/A\",Ref!$B$36,INDEX(Ranks!$1:$1048576,$A79,AQ$1))","v":""},{"$f":"IF($A79=\"N/A\",Ref!$B$36,INDEX(Ranks!$1:$1048576,$A79,AR$1))","v":""},{"$f":"IF($A79=\"N/A\",Ref!$B$36,INDEX(Ranks!$1:$1048576,$A79,AS$1))","v":""},{"$f":"IF($A79=\"N/A\",Ref!$B$36,INDEX(Ranks!$1:$1048576,$A79,AT$1))","v":""},{"$f":"IF($A79=\"N/A\",Ref!$B$36,INDEX(Ranks!$1:$1048576,$A79,AU$1))","v":""},{"$f":"IF($A79=\"N/A\",Ref!$B$36,INDEX(Ranks!$1:$1048576,$A79,AV$1))","v":""},{"$f":"IF($A79=\"N/A\",Ref!$B$36,INDEX(Ranks!$1:$1048576,$A79,AW$1))","v":""},{"$f":"IF($A79=\"N/A\",Ref!$B$36,INDEX(Ranks!$1:$1048576,$A79,AX$1))","v":""},{"$f":"IF($A79=\"N/A\",Ref!$B$36,INDEX(Ranks!$1:$1048576,$A79,AY$1))","v":""},{"$f":"IF($A79=\"N/A\",Ref!$B$36,INDEX(Ranks!$1:$1048576,$A79,AZ$1))","v":""},{"$f":"IF($A79=\"N/A\",Ref!$B$36,INDEX(Ranks!$1:$1048576,$A79,BA$1))","v":""},{"$f":"IF($A79=\"N/A\",Ref!$B$36,INDEX(Ranks!$1:$1048576,$A79,BB$1))","v":""},{"$f":"IF($A79=\"N/A\",Ref!$B$36,INDEX(Ranks!$1:$1048576,$A79,BC$1))","v":""},{"$f":"IF($A79=\"N/A\",Ref!$B$36,INDEX(Ranks!$1:$1048576,$A79,BD$1))","v":""},{"$f":"IF($A79=\"N/A\",Ref!$B$36,INDEX(Ranks!$1:$1048576,$A79,BE$1))","v":""},{"$f":"IF($A79=\"N/A\",Ref!$B$36,INDEX(Ranks!$1:$1048576,$A79,BF$1))","v":""},{"$f":"IF($A79=\"N/A\",Ref!$B$36,INDEX(Ranks!$1:$1048576,$A79,BG$1))","v":""},{"$f":"IF($A79=\"N/A\",Ref!$B$36,INDEX(Ranks!$1:$1048576,$A79,BH$1))","v":""},{"$f":"IF($A79=\"N/A\",Ref!$B$36,INDEX(Ranks!$1:$1048576,$A79,BI$1))","v":""},{"$f":"IF($A79=\"N/A\",Ref!$B$36,INDEX(Ranks!$1:$1048576,$A79,BJ$1))","v":""},{"$f":"IF($A79=\"N/A\",Ref!$B$36,INDEX(Ranks!$1:$1048576,$A79,BK$1))","v":""},{"$f":"IF($A79=\"N/A\",Ref!$B$36,INDEX(Ranks!$1:$1048576,$A79,BL$1))","v":""},{"$f":"IF($A79=\"N/A\",Ref!$B$36,INDEX(Ranks!$1:$1048576,$A79,BM$1))","v":""},{"$f":"IF($A79=\"N/A\",Ref!$B$36,INDEX(Ranks!$1:$1048576,$A79,BN$1))","v":""},{"$f":"IF($A79=\"N/A\",Ref!$B$36,INDEX(Ranks!$1:$1048576,$A79,BO$1))","v":""},{"$f":"IF($A79=\"N/A\",Ref!$B$36,INDEX(Ranks!$1:$1048576,$A79,BP$1))","v":""},{"$f":"IF($A79=\"N/A\",Ref!$B$36,INDEX(Ranks!$1:$1048576,$A79,BQ$1))","v":""},{"$f":"IF($A79=\"N/A\",Ref!$B$36,INDEX(Ranks!$1:$1048576,$A79,BR$1))","v":""},{"$f":"IF($A79=\"N/A\",Ref!$B$36,INDEX(Ranks!$1:$1048576,$A79,BS$1))","v":""},{"$f":"IF($A79=\"N/A\",Ref!$B$36,INDEX(Ranks!$1:$1048576,$A79,BT$1))","v":""},{"$f":"IF($A79=\"N/A\",Ref!$B$36,INDEX(Ranks!$1:$1048576,$A79,BU$1))","v":""},{"$f":"IF($A79=\"N/A\",Ref!$B$36,INDEX(Ranks!$1:$1048576,$A79,BV$1))","v":""},{"$f":"IF($A79=\"N/A\",Ref!$B$36,INDEX(Ranks!$1:$1048576,$A79,BW$1))","v":""},{"$f":"IF($A79=\"N/A\",Ref!$B$36,INDEX(Ranks!$1:$1048576,$A79,BX$1))","v":""},{"$f":"IF($A79=\"N/A\",Ref!$B$36,INDEX(Ranks!$1:$1048576,$A79,BY$1))","v":""},{"$f":"IF($A79=\"N/A\",Ref!$B$36,INDEX(Ranks!$1:$1048576,$A79,BZ$1))","v":""},{"$f":"IF($A79=\"N/A\",Ref!$B$36,INDEX(Ranks!$1:$1048576,$A79,CA$1))","v":""},{"$f":"IF($A79=\"N/A\",Ref!$B$36,INDEX(Ranks!$1:$1048576,$A79,CB$1))","v":""},{"$f":"IF($A79=\"N/A\",Ref!$B$36,INDEX(Ranks!$1:$1048576,$A79,CC$1))","v":""},{"$f":"IF($A79=\"N/A\",Ref!$B$36,INDEX(Ranks!$1:$1048576,$A79,CD$1))","v":""},{"$f":"IF($A79=\"N/A\",Ref!$B$36,INDEX(Ranks!$1:$1048576,$A79,CE$1))","v":""},{"$f":"IF($A79=\"N/A\",Ref!$B$36,INDEX(Ranks!$1:$1048576,$A79,CF$1))","v":""},{"$f":"IF($A79=\"N/A\",Ref!$B$36,INDEX(Ranks!$1:$1048576,$A79,CG$1))","v":""},{"$f":"IF($A79=\"N/A\",Ref!$B$36,INDEX(Ranks!$1:$1048576,$A79,CH$1))","v":""},{"$f":"IF($A79=\"N/A\",Ref!$B$36,INDEX(Ranks!$1:$1048576,$A79,CI$1))","v":""},{"$f":"IF($A79=\"N/A\",Ref!$B$36,INDEX(Ranks!$1:$1048576,$A79,CJ$1))","v":""},{"$f":"IF($A79=\"N/A\",Ref!$B$36,INDEX(Ranks!$1:$1048576,$A79,CK$1))","v":""},{"$f":"IF($A79=\"N/A\",Ref!$B$36,INDEX(Ranks!$1:$1048576,$A79,CL$1))","v":""},{"$f":"IF($A79=\"N/A\",Ref!$B$36,INDEX(Ranks!$1:$1048576,$A79,CM$1))","v":""},{"$f":"IF($A79=\"N/A\",Ref!$B$36,INDEX(Ranks!$1:$1048576,$A79,CN$1))","v":""},{"$f":"IF($A79=\"N/A\",Ref!$B$36,INDEX(Ranks!$1:$1048576,$A79,CO$1))","v":""},{"$f":"IF($A79=\"N/A\",Ref!$B$36,INDEX(Ranks!$1:$1048576,$A79,CP$1))","v":""},{"$f":"IF($A79=\"N/A\",Ref!$B$36,INDEX(Ranks!$1:$1048576,$A79,CQ$1))","v":""},{"$f":"IF($A79=\"N/A\",Ref!$B$36,INDEX(Ranks!$1:$1048576,$A79,CR$1))","v":""},{"$f":"IF($A79=\"N/A\",Ref!$B$36,INDEX(Ranks!$1:$1048576,$A79,CS$1))","v":""},{"$f":"IF($A79=\"N/A\",Ref!$B$36,INDEX(Ranks!$1:$1048576,$A79,CT$1))","v":""},{"$f":"IF($A79=\"N/A\",Ref!$B$36,INDEX(Ranks!$1:$1048576,$A79,CU$1))","v":""},{"$f":"IF($A79=\"N/A\",Ref!$B$36,INDEX(Ranks!$1:$1048576,$A79,CV$1))","v":""},{"$f":"IF($A79=\"N/A\",Ref!$B$36,INDEX(Ranks!$1:$1048576,$A79,CW$1))","v":""},{"$f":"IF($A79=\"N/A\",Ref!$B$36,INDEX(Ranks!$1:$1048576,$A79,CX$1))","v":""},{"$f":"IF($A79=\"N/A\",Ref!$B$36,INDEX(Ranks!$1:$1048576,$A79,CY$1))","v":""},{"$f":"IF($A79=\"N/A\",Ref!$B$36,INDEX(Ranks!$1:$1048576,$A79,CZ$1))","v":""},{"$f":"IF($A79=\"N/A\",Ref!$B$36,INDEX(Ranks!$1:$1048576,$A79,DA$1))","v":""},{"$f":"IF($A79=\"N/A\",Ref!$B$36,INDEX(Ranks!$1:$1048576,$A79,DB$1))","v":""},{"$f":"IF($A79=\"N/A\",Ref!$B$36,INDEX(Ranks!$1:$1048576,$A79,DC$1))","v":""},{"$f":"IF($A79=\"N/A\",Ref!$B$36,INDEX(Ranks!$1:$1048576,$A79,DD$1))","v":""},{"$f":"IF($A79=\"N/A\",Ref!$B$36,INDEX(Ranks!$1:$1048576,$A79,DE$1))","v":""},{"$f":"IF($A79=\"N/A\",Ref!$B$36,INDEX(Ranks!$1:$1048576,$A79,DF$1))","v":""},{"$f":"IF($A79=\"N/A\",Ref!$B$36,INDEX(Ranks!$1:$1048576,$A79,DG$1))","v":""},{"$f":"IF($A79=\"N/A\",Ref!$B$36,INDEX(Ranks!$1:$1048576,$A79,DH$1))","v":""},{"$f":"IF($A79=\"N/A\",Ref!$B$36,INDEX(Ranks!$1:$1048576,$A79,DI$1))","v":""},{"$f":"IF($A79=\"N/A\",Ref!$B$36,INDEX(Ranks!$1:$1048576,$A79,DJ$1))","v":""},{"$f":"IF($A79=\"N/A\",Ref!$B$36,INDEX(Ranks!$1:$1048576,$A79,DK$1))","v":""},{"$f":"IF($A79=\"N/A\",Ref!$B$36,INDEX(Ranks!$1:$1048576,$A79,DL$1))","v":""},{"$f":"IF($A79=\"N/A\",Ref!$B$36,INDEX(Ranks!$1:$1048576,$A79,DM$1))","v":""},{"$f":"IF($A79=\"N/A\",Ref!$B$36,INDEX(Ranks!$1:$1048576,$A79,DN$1))","v":""},{"$f":"IF($A79=\"N/A\",Ref!$B$36,INDEX(Ranks!$1:$1048576,$A79,DO$1))","v":""},{"$f":"IF($A79=\"N/A\",Ref!$B$36,INDEX(Ranks!$1:$1048576,$A79,DP$1))","v":""},{"$f":"IF($A79=\"N/A\",Ref!$B$36,INDEX(Ranks!$1:$1048576,$A79,DQ$1))","v":""},{"$f":"IF($A79=\"N/A\",Ref!$B$36,INDEX(Ranks!$1:$1048576,$A79,DR$1))","v":""},{"$f":"IF($A79=\"N/A\",Ref!$B$36,INDEX(Ranks!$1:$1048576,$A79,DS$1))","v":""},{"$f":"IF($A79=\"N/A\",Ref!$B$36,INDEX(Ranks!$1:$1048576,$A79,DT$1))","v":""},{"$f":"IF($A79=\"N/A\",Ref!$B$36,INDEX(Ranks!$1:$1048576,$A79,DU$1))","v":""},{"$f":"IF($A79=\"N/A\",Ref!$B$36,INDEX(Ranks!$1:$1048576,$A79,DV$1))","v":""},{"$f":"IF($A79=\"N/A\",Ref!$B$36,INDEX(Ranks!$1:$1048576,$A79,DW$1))","v":""},{"$f":"IF($A79=\"N/A\",Ref!$B$36,INDEX(Ranks!$1:$1048576,$A79,DX$1))","v":""},{"$f":"IF($A79=\"N/A\",Ref!$B$36,INDEX(Ranks!$1:$1048576,$A79,DY$1))","v":""},{"$f":"IF($A79=\"N/A\",Ref!$B$36,INDEX(Ranks!$1:$1048576,$A79,DZ$1))","v":""},{"$f":"IF($A79=\"N/A\",Ref!$B$36,INDEX(Ranks!$1:$1048576,$A79,EA$1))","v":""},{"$f":"IF($A79=\"N/A\",Ref!$B$36,INDEX(Ranks!$1:$1048576,$A79,EB$1))","v":""}]
[{"$f":"IFERROR(MATCH('Portfolio Page'!L80,Ranks!L:L,0),\"N/A\")","v":"N/A"},null,{"$f":"IF($A80=\"N/A\",\"\",INDEX(Ranks!$1:$1048576,$A80,C$1))","v":""},{"$f":"IF($A80=\"N/A\",Ref!$B$36,INDEX(Ranks!$1:$1048576,$A80,D$1))","v":""},{"$f":"IF($A80=\"N/A\",Ref!$B$36,INDEX(Ranks!$1:$1048576,$A80,E$1))","v":""},{"$f":"IF($A80=\"N/A\",\"\",INDEX(Ranks!$1:$1048576,$A80,F$1))","v":""},{"$f":"IF($A80=\"N/A\",\"\",INDEX(Ranks!$1:$1048576,$A80,G$1))","v":""},{"$f":"IF($A80=\"N/A\",\"\",INDEX(Ranks!$1:$1048576,$A80,H$1))","v":""},{"$f":"IF($A80=\"N/A\",\"\",INDEX(Ranks!$1:$1048576,$A80,I$1))","v":""},{"$f":"IF($A80=\"N/A\",\"\",INDEX(Ranks!$1:$1048576,$A80,J$1))","v":""},{"$f":"IF($A80=\"N/A\",\"\",INDEX(Ranks!$1:$1048576,$A80,K$1))","v":""},null,{"$f":"IF($A80=\"N/A\",Ref!$B$36,INDEX(Ranks!$1:$1048576,$A80,M$1))","v":""},{"$f":"IF($A80=\"N/A\",Ref!$B$36,INDEX(Ranks!$1:$1048576,$A80,N$1))","v":""},{"$f":"IF($A80=\"N/A\",Ref!$B$36,INDEX(Ranks!$1:$1048576,$A80,O$1))","v":""},{"$f":"IF($A80=\"N/A\",Ref!$B$36,INDEX(Ranks!$1:$1048576,$A80,P$1))","v":""},{"$f":"IF($A80=\"N/A\",Ref!$B$36,INDEX(Ranks!$1:$1048576,$A80,Q$1))","v":""},{"$f":"IF($A80=\"N/A\",Ref!$B$36,INDEX(Ranks!$1:$1048576,$A80,R$1))","v":""},{"$f":"IF($A80=\"N/A\",Ref!$B$36,INDEX(Ranks!$1:$1048576,$A80,S$1))","v":""},{"$f":"IF($A80=\"N/A\",Ref!$B$36,INDEX(Ranks!$1:$1048576,$A80,T$1))","v":""},{"$f":"IF($A80=\"N/A\",Ref!$B$36,INDEX(Ranks!$1:$1048576,$A80,U$1))","v":""},{"$f":"IF($A80=\"N/A\",Ref!$B$36,INDEX(Ranks!$1:$1048576,$A80,V$1))","v":""},{"$f":"IF($A80=\"N/A\",Ref!$B$36,INDEX(Ranks!$1:$1048576,$A80,W$1))","v":""},{"$f":"IF($A80=\"N/A\",Ref!$B$36,INDEX(Ranks!$1:$1048576,$A80,X$1))","v":""},{"$f":"IF($A80=\"N/A\",Ref!$B$36,INDEX(Ranks!$1:$1048576,$A80,Y$1))","v":""},{"$f":"IF($A80=\"N/A\",Ref!$B$36,INDEX(Ranks!$1:$1048576,$A80,Z$1))","v":""},{"$f":"IF($A80=\"N/A\",Ref!$B$36,INDEX(Ranks!$1:$1048576,$A80,AA$1))","v":""},{"$f":"IF($A80=\"N/A\",Ref!$B$36,INDEX(Ranks!$1:$1048576,$A80,AB$1))","v":""},{"$f":"IF($A80=\"N/A\",Ref!$B$36,INDEX(Ranks!$1:$1048576,$A80,AC$1))","v":""},{"$f":"IF($A80=\"N/A\",Ref!$B$36,INDEX(Ranks!$1:$1048576,$A80,AD$1))","v":""},{"$f":"IF($A80=\"N/A\",Ref!$B$36,INDEX(Ranks!$1:$1048576,$A80,AE$1))","v":""},{"$f":"IF($A80=\"N/A\",Ref!$B$36,INDEX(Ranks!$1:$1048576,$A80,AF$1))","v":""},{"$f":"IF($A80=\"N/A\",Ref!$B$36,INDEX(Ranks!$1:$1048576,$A80,AG$1))","v":""},{"$f":"IF($A80=\"N/A\",Ref!$B$36,INDEX(Ranks!$1:$1048576,$A80,AH$1))","v":""},{"$f":"IF($A80=\"N/A\",Ref!$B$36,INDEX(Ranks!$1:$1048576,$A80,AI$1))","v":""},{"$f":"IF($A80=\"N/A\",Ref!$B$36,INDEX(Ranks!$1:$1048576,$A80,AJ$1))","v":""},{"$f":"IF($A80=\"N/A\",Ref!$B$36,INDEX(Ranks!$1:$1048576,$A80,AK$1))","v":""},{"$f":"IF($A80=\"N/A\",Ref!$B$36,INDEX(Ranks!$1:$1048576,$A80,AL$1))","v":""},{"$f":"IF($A80=\"N/A\",Ref!$B$36,INDEX(Ranks!$1:$1048576,$A80,AM$1))","v":""},{"$f":"IF($A80=\"N/A\",Ref!$B$36,INDEX(Ranks!$1:$1048576,$A80,AN$1))","v":""},{"$f":"IF($A80=\"N/A\",Ref!$B$36,INDEX(Ranks!$1:$1048576,$A80,AO$1))","v":""},{"$f":"IF($A80=\"N/A\",Ref!$B$36,INDEX(Ranks!$1:$1048576,$A80,AP$1))","v":""},{"$f":"IF($A80=\"N/A\",Ref!$B$36,INDEX(Ranks!$1:$1048576,$A80,AQ$1))","v":""},{"$f":"IF($A80=\"N/A\",Ref!$B$36,INDEX(Ranks!$1:$1048576,$A80,AR$1))","v":""},{"$f":"IF($A80=\"N/A\",Ref!$B$36,INDEX(Ranks!$1:$1048576,$A80,AS$1))","v":""},{"$f":"IF($A80=\"N/A\",Ref!$B$36,INDEX(Ranks!$1:$1048576,$A80,AT$1))","v":""},{"$f":"IF($A80=\"N/A\",Ref!$B$36,INDEX(Ranks!$1:$1048576,$A80,AU$1))","v":""},{"$f":"IF($A80=\"N/A\",Ref!$B$36,INDEX(Ranks!$1:$1048576,$A80,AV$1))","v":""},{"$f":"IF($A80=\"N/A\",Ref!$B$36,INDEX(Ranks!$1:$1048576,$A80,AW$1))","v":""},{"$f":"IF($A80=\"N/A\",Ref!$B$36,INDEX(Ranks!$1:$1048576,$A80,AX$1))","v":""},{"$f":"IF($A80=\"N/A\",Ref!$B$36,INDEX(Ranks!$1:$1048576,$A80,AY$1))","v":""},{"$f":"IF($A80=\"N/A\",Ref!$B$36,INDEX(Ranks!$1:$1048576,$A80,AZ$1))","v":""},{"$f":"IF($A80=\"N/A\",Ref!$B$36,INDEX(Ranks!$1:$1048576,$A80,BA$1))","v":""},{"$f":"IF($A80=\"N/A\",Ref!$B$36,INDEX(Ranks!$1:$1048576,$A80,BB$1))","v":""},{"$f":"IF($A80=\"N/A\",Ref!$B$36,INDEX(Ranks!$1:$1048576,$A80,BC$1))","v":""},{"$f":"IF($A80=\"N/A\",Ref!$B$36,INDEX(Ranks!$1:$1048576,$A80,BD$1))","v":""},{"$f":"IF($A80=\"N/A\",Ref!$B$36,INDEX(Ranks!$1:$1048576,$A80,BE$1))","v":""},{"$f":"IF($A80=\"N/A\",Ref!$B$36,INDEX(Ranks!$1:$1048576,$A80,BF$1))","v":""},{"$f":"IF($A80=\"N/A\",Ref!$B$36,INDEX(Ranks!$1:$1048576,$A80,BG$1))","v":""},{"$f":"IF($A80=\"N/A\",Ref!$B$36,INDEX(Ranks!$1:$1048576,$A80,BH$1))","v":""},{"$f":"IF($A80=\"N/A\",Ref!$B$36,INDEX(Ranks!$1:$1048576,$A80,BI$1))","v":""},{"$f":"IF($A80=\"N/A\",Ref!$B$36,INDEX(Ranks!$1:$1048576,$A80,BJ$1))","v":""},{"$f":"IF($A80=\"N/A\",Ref!$B$36,INDEX(Ranks!$1:$1048576,$A80,BK$1))","v":""},{"$f":"IF($A80=\"N/A\",Ref!$B$36,INDEX(Ranks!$1:$1048576,$A80,BL$1))","v":""},{"$f":"IF($A80=\"N/A\",Ref!$B$36,INDEX(Ranks!$1:$1048576,$A80,BM$1))","v":""},{"$f":"IF($A80=\"N/A\",Ref!$B$36,INDEX(Ranks!$1:$1048576,$A80,BN$1))","v":""},{"$f":"IF($A80=\"N/A\",Ref!$B$36,INDEX(Ranks!$1:$1048576,$A80,BO$1))","v":""},{"$f":"IF($A80=\"N/A\",Ref!$B$36,INDEX(Ranks!$1:$1048576,$A80,BP$1))","v":""},{"$f":"IF($A80=\"N/A\",Ref!$B$36,INDEX(Ranks!$1:$1048576,$A80,BQ$1))","v":""},{"$f":"IF($A80=\"N/A\",Ref!$B$36,INDEX(Ranks!$1:$1048576,$A80,BR$1))","v":""},{"$f":"IF($A80=\"N/A\",Ref!$B$36,INDEX(Ranks!$1:$1048576,$A80,BS$1))","v":""},{"$f":"IF($A80=\"N/A\",Ref!$B$36,INDEX(Ranks!$1:$1048576,$A80,BT$1))","v":""},{"$f":"IF($A80=\"N/A\",Ref!$B$36,INDEX(Ranks!$1:$1048576,$A80,BU$1))","v":""},{"$f":"IF($A80=\"N/A\",Ref!$B$36,INDEX(Ranks!$1:$1048576,$A80,BV$1))","v":""},{"$f":"IF($A80=\"N/A\",Ref!$B$36,INDEX(Ranks!$1:$1048576,$A80,BW$1))","v":""},{"$f":"IF($A80=\"N/A\",Ref!$B$36,INDEX(Ranks!$1:$1048576,$A80,BX$1))","v":""},{"$f":"IF($A80=\"N/A\",Ref!$B$36,INDEX(Ranks!$1:$1048576,$A80,BY$1))","v":""},{"$f":"IF($A80=\"N/A\",Ref!$B$36,INDEX(Ranks!$1:$1048576,$A80,BZ$1))","v":""},{"$f":"IF($A80=\"N/A\",Ref!$B$36,INDEX(Ranks!$1:$1048576,$A80,CA$1))","v":""},{"$f":"IF($A80=\"N/A\",Ref!$B$36,INDEX(Ranks!$1:$1048576,$A80,CB$1))","v":""},{"$f":"IF($A80=\"N/A\",Ref!$B$36,INDEX(Ranks!$1:$1048576,$A80,CC$1))","v":""},{"$f":"IF($A80=\"N/A\",Ref!$B$36,INDEX(Ranks!$1:$1048576,$A80,CD$1))","v":""},{"$f":"IF($A80=\"N/A\",Ref!$B$36,INDEX(Ranks!$1:$1048576,$A80,CE$1))","v":""},{"$f":"IF($A80=\"N/A\",Ref!$B$36,INDEX(Ranks!$1:$1048576,$A80,CF$1))","v":""},{"$f":"IF($A80=\"N/A\",Ref!$B$36,INDEX(Ranks!$1:$1048576,$A80,CG$1))","v":""},{"$f":"IF($A80=\"N/A\",Ref!$B$36,INDEX(Ranks!$1:$1048576,$A80,CH$1))","v":""},{"$f":"IF($A80=\"N/A\",Ref!$B$36,INDEX(Ranks!$1:$1048576,$A80,CI$1))","v":""},{"$f":"IF($A80=\"N/A\",Ref!$B$36,INDEX(Ranks!$1:$1048576,$A80,CJ$1))","v":""},{"$f":"IF($A80=\"N/A\",Ref!$B$36,INDEX(Ranks!$1:$1048576,$A80,CK$1))","v":""},{"$f":"IF($A80=\"N/A\",Ref!$B$36,INDEX(Ranks!$1:$1048576,$A80,CL$1))","v":""},{"$f":"IF($A80=\"N/A\",Ref!$B$36,INDEX(Ranks!$1:$1048576,$A80,CM$1))","v":""},{"$f":"IF($A80=\"N/A\",Ref!$B$36,INDEX(Ranks!$1:$1048576,$A80,CN$1))","v":""},{"$f":"IF($A80=\"N/A\",Ref!$B$36,INDEX(Ranks!$1:$1048576,$A80,CO$1))","v":""},{"$f":"IF($A80=\"N/A\",Ref!$B$36,INDEX(Ranks!$1:$1048576,$A80,CP$1))","v":""},{"$f":"IF($A80=\"N/A\",Ref!$B$36,INDEX(Ranks!$1:$1048576,$A80,CQ$1))","v":""},{"$f":"IF($A80=\"N/A\",Ref!$B$36,INDEX(Ranks!$1:$1048576,$A80,CR$1))","v":""},{"$f":"IF($A80=\"N/A\",Ref!$B$36,INDEX(Ranks!$1:$1048576,$A80,CS$1))","v":""},{"$f":"IF($A80=\"N/A\",Ref!$B$36,INDEX(Ranks!$1:$1048576,$A80,CT$1))","v":""},{"$f":"IF($A80=\"N/A\",Ref!$B$36,INDEX(Ranks!$1:$1048576,$A80,CU$1))","v":""},{"$f":"IF($A80=\"N/A\",Ref!$B$36,INDEX(Ranks!$1:$1048576,$A80,CV$1))","v":""},{"$f":"IF($A80=\"N/A\",Ref!$B$36,INDEX(Ranks!$1:$1048576,$A80,CW$1))","v":""},{"$f":"IF($A80=\"N/A\",Ref!$B$36,INDEX(Ranks!$1:$1048576,$A80,CX$1))","v":""},{"$f":"IF($A80=\"N/A\",Ref!$B$36,INDEX(Ranks!$1:$1048576,$A80,CY$1))","v":""},{"$f":"IF($A80=\"N/A\",Ref!$B$36,INDEX(Ranks!$1:$1048576,$A80,CZ$1))","v":""},{"$f":"IF($A80=\"N/A\",Ref!$B$36,INDEX(Ranks!$1:$1048576,$A80,DA$1))","v":""},{"$f":"IF($A80=\"N/A\",Ref!$B$36,INDEX(Ranks!$1:$1048576,$A80,DB$1))","v":""},{"$f":"IF($A80=\"N/A\",Ref!$B$36,INDEX(Ranks!$1:$1048576,$A80,DC$1))","v":""},{"$f":"IF($A80=\"N/A\",Ref!$B$36,INDEX(Ranks!$1:$1048576,$A80,DD$1))","v":""},{"$f":"IF($A80=\"N/A\",Ref!$B$36,INDEX(Ranks!$1:$1048576,$A80,DE$1))","v":""},{"$f":"IF($A80=\"N/A\",Ref!$B$36,INDEX(Ranks!$1:$1048576,$A80,DF$1))","v":""},{"$f":"IF($A80=\"N/A\",Ref!$B$36,INDEX(Ranks!$1:$1048576,$A80,DG$1))","v":""},{"$f":"IF($A80=\"N/A\",Ref!$B$36,INDEX(Ranks!$1:$1048576,$A80,DH$1))","v":""},{"$f":"IF($A80=\"N/A\",Ref!$B$36,INDEX(Ranks!$1:$1048576,$A80,DI$1))","v":""},{"$f":"IF($A80=\"N/A\",Ref!$B$36,INDEX(Ranks!$1:$1048576,$A80,DJ$1))","v":""},{"$f":"IF($A80=\"N/A\",Ref!$B$36,INDEX(Ranks!$1:$1048576,$A80,DK$1))","v":""},{"$f":"IF($A80=\"N/A\",Ref!$B$36,INDEX(Ranks!$1:$1048576,$A80,DL$1))","v":""},{"$f":"IF($A80=\"N/A\",Ref!$B$36,INDEX(Ranks!$1:$1048576,$A80,DM$1))","v":""},{"$f":"IF($A80=\"N/A\",Ref!$B$36,INDEX(Ranks!$1:$1048576,$A80,DN$1))","v":""},{"$f":"IF($A80=\"N/A\",Ref!$B$36,INDEX(Ranks!$1:$1048576,$A80,DO$1))","v":""},{"$f":"IF($A80=\"N/A\",Ref!$B$36,INDEX(Ranks!$1:$1048576,$A80,DP$1))","v":""},{"$f":"IF($A80=\"N/A\",Ref!$B$36,INDEX(Ranks!$1:$1048576,$A80,DQ$1))","v":""},{"$f":"IF($A80=\"N/A\",Ref!$B$36,INDEX(Ranks!$1:$1048576,$A80,DR$1))","v":""},{"$f":"IF($A80=\"N/A\",Ref!$B$36,INDEX(Ranks!$1:$1048576,$A80,DS$1))","v":""},{"$f":"IF($A80=\"N/A\",Ref!$B$36,INDEX(Ranks!$1:$1048576,$A80,DT$1))","v":""},{"$f":"IF($A80=\"N/A\",Ref!$B$36,INDEX(Ranks!$1:$1048576,$A80,DU$1))","v":""},{"$f":"IF($A80=\"N/A\",Ref!$B$36,INDEX(Ranks!$1:$1048576,$A80,DV$1))","v":""},{"$f":"IF($A80=\"N/A\",Ref!$B$36,INDEX(Ranks!$1:$1048576,$A80,DW$1))","v":""},{"$f":"IF($A80=\"N/A\",Ref!$B$36,INDEX(Ranks!$1:$1048576,$A80,DX$1))","v":""},{"$f":"IF($A80=\"N/A\",Ref!$B$36,INDEX(Ranks!$1:$1048576,$A80,DY$1))","v":""},{"$f":"IF($A80=\"N/A\",Ref!$B$36,INDEX(Ranks!$1:$1048576,$A80,DZ$1))","v":""},{"$f":"IF($A80=\"N/A\",Ref!$B$36,INDEX(Ranks!$1:$1048576,$A80,EA$1))","v":""},{"$f":"IF($A80=\"N/A\",Ref!$B$36,INDEX(Ranks!$1:$1048576,$A80,EB$1))","v":""}]
[{"$f":"IFERROR(MATCH('Portfolio Page'!L81,Ranks!L:L,0),\"N/A\")","v":"N/A"},null,{"$f":"IF($A81=\"N/A\",\"\",INDEX(Ranks!$1:$1048576,$A81,C$1))","v":""},{"$f":"IF($A81=\"N/A\",Ref!$B$36,INDEX(Ranks!$1:$1048576,$A81,D$1))","v":""},{"$f":"IF($A81=\"N/A\",Ref!$B$36,INDEX(Ranks!$1:$1048576,$A81,E$1))","v":""},{"$f":"IF($A81=\"N/A\",\"\",INDEX(Ranks!$1:$1048576,$A81,F$1))","v":""},{"$f":"IF($A81=\"N/A\",\"\",INDEX(Ranks!$1:$1048576,$A81,G$1))","v":""},{"$f":"IF($A81=\"N/A\",\"\",INDEX(Ranks!$1:$1048576,$A81,H$1))","v":""},{"$f":"IF($A81=\"N/A\",\"\",INDEX(Ranks!$1:$1048576,$A81,I$1))","v":""},{"$f":"IF($A81=\"N/A\",\"\",INDEX(Ranks!$1:$1048576,$A81,J$1))","v":""},{"$f":"IF($A81=\"N/A\",\"\",INDEX(Ranks!$1:$1048576,$A81,K$1))","v":""},null,{"$f":"IF($A81=\"N/A\",Ref!$B$36,INDEX(Ranks!$1:$1048576,$A81,M$1))","v":""},{"$f":"IF($A81=\"N/A\",Ref!$B$36,INDEX(Ranks!$1:$1048576,$A81,N$1))","v":""},{"$f":"IF($A81=\"N/A\",Ref!$B$36,INDEX(Ranks!$1:$1048576,$A81,O$1))","v":""},{"$f":"IF($A81=\"N/A\",Ref!$B$36,INDEX(Ranks!$1:$1048576,$A81,P$1))","v":""},{"$f":"IF($A81=\"N/A\",Ref!$B$36,INDEX(Ranks!$1:$1048576,$A81,Q$1))","v":""},{"$f":"IF($A81=\"N/A\",Ref!$B$36,INDEX(Ranks!$1:$1048576,$A81,R$1))","v":""},{"$f":"IF($A81=\"N/A\",Ref!$B$36,INDEX(Ranks!$1:$1048576,$A81,S$1))","v":""},{"$f":"IF($A81=\"N/A\",Ref!$B$36,INDEX(Ranks!$1:$1048576,$A81,T$1))","v":""},{"$f":"IF($A81=\"N/A\",Ref!$B$36,INDEX(Ranks!$1:$1048576,$A81,U$1))","v":""},{"$f":"IF($A81=\"N/A\",Ref!$B$36,INDEX(Ranks!$1:$1048576,$A81,V$1))","v":""},{"$f":"IF($A81=\"N/A\",Ref!$B$36,INDEX(Ranks!$1:$1048576,$A81,W$1))","v":""},{"$f":"IF($A81=\"N/A\",Ref!$B$36,INDEX(Ranks!$1:$1048576,$A81,X$1))","v":""},{"$f":"IF($A81=\"N/A\",Ref!$B$36,INDEX(Ranks!$1:$1048576,$A81,Y$1))","v":""},{"$f":"IF($A81=\"N/A\",Ref!$B$36,INDEX(Ranks!$1:$1048576,$A81,Z$1))","v":""},{"$f":"IF($A81=\"N/A\",Ref!$B$36,INDEX(Ranks!$1:$1048576,$A81,AA$1))","v":""},{"$f":"IF($A81=\"N/A\",Ref!$B$36,INDEX(Ranks!$1:$1048576,$A81,AB$1))","v":""},{"$f":"IF($A81=\"N/A\",Ref!$B$36,INDEX(Ranks!$1:$1048576,$A81,AC$1))","v":""},{"$f":"IF($A81=\"N/A\",Ref!$B$36,INDEX(Ranks!$1:$1048576,$A81,AD$1))","v":""},{"$f":"IF($A81=\"N/A\",Ref!$B$36,INDEX(Ranks!$1:$1048576,$A81,AE$1))","v":""},{"$f":"IF($A81=\"N/A\",Ref!$B$36,INDEX(Ranks!$1:$1048576,$A81,AF$1))","v":""},{"$f":"IF($A81=\"N/A\",Ref!$B$36,INDEX(Ranks!$1:$1048576,$A81,AG$1))","v":""},{"$f":"IF($A81=\"N/A\",Ref!$B$36,INDEX(Ranks!$1:$1048576,$A81,AH$1))","v":""},{"$f":"IF($A81=\"N/A\",Ref!$B$36,INDEX(Ranks!$1:$1048576,$A81,AI$1))","v":""},{"$f":"IF($A81=\"N/A\",Ref!$B$36,INDEX(Ranks!$1:$1048576,$A81,AJ$1))","v":""},{"$f":"IF($A81=\"N/A\",Ref!$B$36,INDEX(Ranks!$1:$1048576,$A81,AK$1))","v":""},{"$f":"IF($A81=\"N/A\",Ref!$B$36,INDEX(Ranks!$1:$1048576,$A81,AL$1))","v":""},{"$f":"IF($A81=\"N/A\",Ref!$B$36,INDEX(Ranks!$1:$1048576,$A81,AM$1))","v":""},{"$f":"IF($A81=\"N/A\",Ref!$B$36,INDEX(Ranks!$1:$1048576,$A81,AN$1))","v":""},{"$f":"IF($A81=\"N/A\",Ref!$B$36,INDEX(Ranks!$1:$1048576,$A81,AO$1))","v":""},{"$f":"IF($A81=\"N/A\",Ref!$B$36,INDEX(Ranks!$1:$1048576,$A81,AP$1))","v":""},{"$f":"IF($A81=\"N/A\",Ref!$B$36,INDEX(Ranks!$1:$1048576,$A81,AQ$1))","v":""},{"$f":"IF($A81=\"N/A\",Ref!$B$36,INDEX(Ranks!$1:$1048576,$A81,AR$1))","v":""},{"$f":"IF($A81=\"N/A\",Ref!$B$36,INDEX(Ranks!$1:$1048576,$A81,AS$1))","v":""},{"$f":"IF($A81=\"N/A\",Ref!$B$36,INDEX(Ranks!$1:$1048576,$A81,AT$1))","v":""},{"$f":"IF($A81=\"N/A\",Ref!$B$36,INDEX(Ranks!$1:$1048576,$A81,AU$1))","v":""},{"$f":"IF($A81=\"N/A\",Ref!$B$36,INDEX(Ranks!$1:$1048576,$A81,AV$1))","v":""},{"$f":"IF($A81=\"N/A\",Ref!$B$36,INDEX(Ranks!$1:$1048576,$A81,AW$1))","v":""},{"$f":"IF($A81=\"N/A\",Ref!$B$36,INDEX(Ranks!$1:$1048576,$A81,AX$1))","v":""},{"$f":"IF($A81=\"N/A\",Ref!$B$36,INDEX(Ranks!$1:$1048576,$A81,AY$1))","v":""},{"$f":"IF($A81=\"N/A\",Ref!$B$36,INDEX(Ranks!$1:$1048576,$A81,AZ$1))","v":""},{"$f":"IF($A81=\"N/A\",Ref!$B$36,INDEX(Ranks!$1:$1048576,$A81,BA$1))","v":""},{"$f":"IF($A81=\"N/A\",Ref!$B$36,INDEX(Ranks!$1:$1048576,$A81,BB$1))","v":""},{"$f":"IF($A81=\"N/A\",Ref!$B$36,INDEX(Ranks!$1:$1048576,$A81,BC$1))","v":""},{"$f":"IF($A81=\"N/A\",Ref!$B$36,INDEX(Ranks!$1:$1048576,$A81,BD$1))","v":""},{"$f":"IF($A81=\"N/A\",Ref!$B$36,INDEX(Ranks!$1:$1048576,$A81,BE$1))","v":""},{"$f":"IF($A81=\"N/A\",Ref!$B$36,INDEX(Ranks!$1:$1048576,$A81,BF$1))","v":""},{"$f":"IF($A81=\"N/A\",Ref!$B$36,INDEX(Ranks!$1:$1048576,$A81,BG$1))","v":""},{"$f":"IF($A81=\"N/A\",Ref!$B$36,INDEX(Ranks!$1:$1048576,$A81,BH$1))","v":""},{"$f":"IF($A81=\"N/A\",Ref!$B$36,INDEX(Ranks!$1:$1048576,$A81,BI$1))","v":""},{"$f":"IF($A81=\"N/A\",Ref!$B$36,INDEX(Ranks!$1:$1048576,$A81,BJ$1))","v":""},{"$f":"IF($A81=\"N/A\",Ref!$B$36,INDEX(Ranks!$1:$1048576,$A81,BK$1))","v":""},{"$f":"IF($A81=\"N/A\",Ref!$B$36,INDEX(Ranks!$1:$1048576,$A81,BL$1))","v":""},{"$f":"IF($A81=\"N/A\",Ref!$B$36,INDEX(Ranks!$1:$1048576,$A81,BM$1))","v":""},{"$f":"IF($A81=\"N/A\",Ref!$B$36,INDEX(Ranks!$1:$1048576,$A81,BN$1))","v":""},{"$f":"IF($A81=\"N/A\",Ref!$B$36,INDEX(Ranks!$1:$1048576,$A81,BO$1))","v":""},{"$f":"IF($A81=\"N/A\",Ref!$B$36,INDEX(Ranks!$1:$1048576,$A81,BP$1))","v":""},{"$f":"IF($A81=\"N/A\",Ref!$B$36,INDEX(Ranks!$1:$1048576,$A81,BQ$1))","v":""},{"$f":"IF($A81=\"N/A\",Ref!$B$36,INDEX(Ranks!$1:$1048576,$A81,BR$1))","v":""},{"$f":"IF($A81=\"N/A\",Ref!$B$36,INDEX(Ranks!$1:$1048576,$A81,BS$1))","v":""},{"$f":"IF($A81=\"N/A\",Ref!$B$36,INDEX(Ranks!$1:$1048576,$A81,BT$1))","v":""},{"$f":"IF($A81=\"N/A\",Ref!$B$36,INDEX(Ranks!$1:$1048576,$A81,BU$1))","v":""},{"$f":"IF($A81=\"N/A\",Ref!$B$36,INDEX(Ranks!$1:$1048576,$A81,BV$1))","v":""},{"$f":"IF($A81=\"N/A\",Ref!$B$36,INDEX(Ranks!$1:$1048576,$A81,BW$1))","v":""},{"$f":"IF($A81=\"N/A\",Ref!$B$36,INDEX(Ranks!$1:$1048576,$A81,BX$1))","v":""},{"$f":"IF($A81=\"N/A\",Ref!$B$36,INDEX(Ranks!$1:$1048576,$A81,BY$1))","v":""},{"$f":"IF($A81=\"N/A\",Ref!$B$36,INDEX(Ranks!$1:$1048576,$A81,BZ$1))","v":""},{"$f":"IF($A81=\"N/A\",Ref!$B$36,INDEX(Ranks!$1:$1048576,$A81,CA$1))","v":""},{"$f":"IF($A81=\"N/A\",Ref!$B$36,INDEX(Ranks!$1:$1048576,$A81,CB$1))","v":""},{"$f":"IF($A81=\"N/A\",Ref!$B$36,INDEX(Ranks!$1:$1048576,$A81,CC$1))","v":""},{"$f":"IF($A81=\"N/A\",Ref!$B$36,INDEX(Ranks!$1:$1048576,$A81,CD$1))","v":""},{"$f":"IF($A81=\"N/A\",Ref!$B$36,INDEX(Ranks!$1:$1048576,$A81,CE$1))","v":""},{"$f":"IF($A81=\"N/A\",Ref!$B$36,INDEX(Ranks!$1:$1048576,$A81,CF$1))","v":""},{"$f":"IF($A81=\"N/A\",Ref!$B$36,INDEX(Ranks!$1:$1048576,$A81,CG$1))","v":""},{"$f":"IF($A81=\"N/A\",Ref!$B$36,INDEX(Ranks!$1:$1048576,$A81,CH$1))","v":""},{"$f":"IF($A81=\"N/A\",Ref!$B$36,INDEX(Ranks!$1:$1048576,$A81,CI$1))","v":""},{"$f":"IF($A81=\"N/A\",Ref!$B$36,INDEX(Ranks!$1:$1048576,$A81,CJ$1))","v":""},{"$f":"IF($A81=\"N/A\",Ref!$B$36,INDEX(Ranks!$1:$1048576,$A81,CK$1))","v":""},{"$f":"IF($A81=\"N/A\",Ref!$B$36,INDEX(Ranks!$1:$1048576,$A81,CL$1))","v":""},{"$f":"IF($A81=\"N/A\",Ref!$B$36,INDEX(Ranks!$1:$1048576,$A81,CM$1))","v":""},{"$f":"IF($A81=\"N/A\",Ref!$B$36,INDEX(Ranks!$1:$1048576,$A81,CN$1))","v":""},{"$f":"IF($A81=\"N/A\",Ref!$B$36,INDEX(Ranks!$1:$1048576,$A81,CO$1))","v":""},{"$f":"IF($A81=\"N/A\",Ref!$B$36,INDEX(Ranks!$1:$1048576,$A81,CP$1))","v":""},{"$f":"IF($A81=\"N/A\",Ref!$B$36,INDEX(Ranks!$1:$1048576,$A81,CQ$1))","v":""},{"$f":"IF($A81=\"N/A\",Ref!$B$36,INDEX(Ranks!$1:$1048576,$A81,CR$1))","v":""},{"$f":"IF($A81=\"N/A\",Ref!$B$36,INDEX(Ranks!$1:$1048576,$A81,CS$1))","v":""},{"$f":"IF($A81=\"N/A\",Ref!$B$36,INDEX(Ranks!$1:$1048576,$A81,CT$1))","v":""},{"$f":"IF($A81=\"N/A\",Ref!$B$36,INDEX(Ranks!$1:$1048576,$A81,CU$1))","v":""},{"$f":"IF($A81=\"N/A\",Ref!$B$36,INDEX(Ranks!$1:$1048576,$A81,CV$1))","v":""},{"$f":"IF($A81=\"N/A\",Ref!$B$36,INDEX(Ranks!$1:$1048576,$A81,CW$1))","v":""},{"$f":"IF($A81=\"N/A\",Ref!$B$36,INDEX(Ranks!$1:$1048576,$A81,CX$1))","v":""},{"$f":"IF($A81=\"N/A\",Ref!$B$36,INDEX(Ranks!$1:$1048576,$A81,CY$1))","v":""},{"$f":"IF($A81=\"N/A\",Ref!$B$36,INDEX(Ranks!$1:$1048576,$A81,CZ$1))","v":""},{"$f":"IF($A81=\"N/A\",Ref!$B$36,INDEX(Ranks!$1:$1048576,$A81,DA$1))","v":""},{"$f":"IF($A81=\"N/A\",Ref!$B$36,INDEX(Ranks!$1:$1048576,$A81,DB$1))","v":""},{"$f":"IF($A81=\"N/A\",Ref!$B$36,INDEX(Ranks!$1:$1048576,$A81,DC$1))","v":""},{"$f":"IF($A81=\"N/A\",Ref!$B$36,INDEX(Ranks!$1:$1048576,$A81,DD$1))","v":""},{"$f":"IF($A81=\"N/A\",Ref!$B$36,INDEX(Ranks!$1:$1048576,$A81,DE$1))","v":""},{"$f":"IF($A81=\"N/A\",Ref!$B$36,INDEX(Ranks!$1:$1048576,$A81,DF$1))","v":""},{"$f":"IF($A81=\"N/A\",Ref!$B$36,INDEX(Ranks!$1:$1048576,$A81,DG$1))","v":""},{"$f":"IF($A81=\"N/A\",Ref!$B$36,INDEX(Ranks!$1:$1048576,$A81,DH$1))","v":""},{"$f":"IF($A81=\"N/A\",Ref!$B$36,INDEX(Ranks!$1:$1048576,$A81,DI$1))","v":""},{"$f":"IF($A81=\"N/A\",Ref!$B$36,INDEX(Ranks!$1:$1048576,$A81,DJ$1))","v":""},{"$f":"IF($A81=\"N/A\",Ref!$B$36,INDEX(Ranks!$1:$1048576,$A81,DK$1))","v":""},{"$f":"IF($A81=\"N/A\",Ref!$B$36,INDEX(Ranks!$1:$1048576,$A81,DL$1))","v":""},{"$f":"IF($A81=\"N/A\",Ref!$B$36,INDEX(Ranks!$1:$1048576,$A81,DM$1))","v":""},{"$f":"IF($A81=\"N/A\",Ref!$B$36,INDEX(Ranks!$1:$1048576,$A81,DN$1))","v":""},{"$f":"IF($A81=\"N/A\",Ref!$B$36,INDEX(Ranks!$1:$1048576,$A81,DO$1))","v":""},{"$f":"IF($A81=\"N/A\",Ref!$B$36,INDEX(Ranks!$1:$1048576,$A81,DP$1))","v":""},{"$f":"IF($A81=\"N/A\",Ref!$B$36,INDEX(Ranks!$1:$1048576,$A81,DQ$1))","v":""},{"$f":"IF($A81=\"N/A\",Ref!$B$36,INDEX(Ranks!$1:$1048576,$A81,DR$1))","v":""},{"$f":"IF($A81=\"N/A\",Ref!$B$36,INDEX(Ranks!$1:$1048576,$A81,DS$1))","v":""},{"$f":"IF($A81=\"N/A\",Ref!$B$36,INDEX(Ranks!$1:$1048576,$A81,DT$1))","v":""},{"$f":"IF($A81=\"N/A\",Ref!$B$36,INDEX(Ranks!$1:$1048576,$A81,DU$1))","v":""},{"$f":"IF($A81=\"N/A\",Ref!$B$36,INDEX(Ranks!$1:$1048576,$A81,DV$1))","v":""},{"$f":"IF($A81=\"N/A\",Ref!$B$36,INDEX(Ranks!$1:$1048576,$A81,DW$1))","v":""},{"$f":"IF($A81=\"N/A\",Ref!$B$36,INDEX(Ranks!$1:$1048576,$A81,DX$1))","v":""},{"$f":"IF($A81=\"N/A\",Ref!$B$36,INDEX(Ranks!$1:$1048576,$A81,DY$1))","v":""},{"$f":"IF($A81=\"N/A\",Ref!$B$36,INDEX(Ranks!$1:$1048576,$A81,DZ$1))","v":""},{"$f":"IF($A81=\"N/A\",Ref!$B$36,INDEX(Ranks!$1:$1048576,$A81,EA$1))","v":""},{"$f":"IF($A81=\"N/A\",Ref!$B$36,INDEX(Ranks!$1:$1048576,$A81,EB$1))","v":""}]
[{"$f":"IFERROR(MATCH('Portfolio Page'!L82,Ranks!L:L,0),\"N/A\")","v":"N/A"},null,{"$f":"IF($A82=\"N/A\",\"\",INDEX(Ranks!$1:$1048576,$A82,C$1))","v":""},{"$f":"IF($A82=\"N/A\",Ref!$B$36,INDEX(Ranks!$1:$1048576,$A82,D$1))","v":""},{"$f":"IF($A82=\"N/A\",Ref!$B$36,INDEX(Ranks!$1:$1048576,$A82,E$1))","v":""},{"$f":"IF($A82=\"N/A\",\"\",INDEX(Ranks!$1:$1048576,$A82,F$1))","v":""},{"$f":"IF($A82=\"N/A\",\"\",INDEX(Ranks!$1:$1048576,$A82,G$1))","v":""},{"$f":"IF($A82=\"N/A\",\"\",INDEX(Ranks!$1:$1048576,$A82,H$1))","v":""},{"$f":"IF($A82=\"N/A\",\"\",INDEX(Ranks!$1:$1048576,$A82,I$1))","v":""},{"$f":"IF($A82=\"N/A\",\"\",INDEX(Ranks!$1:$1048576,$A82,J$1))","v":""},{"$f":"IF($A82=\"N/A\",\"\",INDEX(Ranks!$1:$1048576,$A82,K$1))","v":""},null,{"$f":"IF($A82=\"N/A\",Ref!$B$36,INDEX(Ranks!$1:$1048576,$A82,M$1))","v":""},{"$f":"IF($A82=\"N/A\",Ref!$B$36,INDEX(Ranks!$1:$1048576,$A82,N$1))","v":""},{"$f":"IF($A82=\"N/A\",Ref!$B$36,INDEX(Ranks!$1:$1048576,$A82,O$1))","v":""},{"$f":"IF($A82=\"N/A\",Ref!$B$36,INDEX(Ranks!$1:$1048576,$A82,P$1))","v":""},{"$f":"IF($A82=\"N/A\",Ref!$B$36,INDEX(Ranks!$1:$1048576,$A82,Q$1))","v":""},{"$f":"IF($A82=\"N/A\",Ref!$B$36,INDEX(Ranks!$1:$1048576,$A82,R$1))","v":""},{"$f":"IF($A82=\"N/A\",Ref!$B$36,INDEX(Ranks!$1:$1048576,$A82,S$1))","v":""},{"$f":"IF($A82=\"N/A\",Ref!$B$36,INDEX(Ranks!$1:$1048576,$A82,T$1))","v":""},{"$f":"IF($A82=\"N/A\",Ref!$B$36,INDEX(Ranks!$1:$1048576,$A82,U$1))","v":""},{"$f":"IF($A82=\"N/A\",Ref!$B$36,INDEX(Ranks!$1:$1048576,$A82,V$1))","v":""},{"$f":"IF($A82=\"N/A\",Ref!$B$36,INDEX(Ranks!$1:$1048576,$A82,W$1))","v":""},{"$f":"IF($A82=\"N/A\",Ref!$B$36,INDEX(Ranks!$1:$1048576,$A82,X$1))","v":""},{"$f":"IF($A82=\"N/A\",Ref!$B$36,INDEX(Ranks!$1:$1048576,$A82,Y$1))","v":""},{"$f":"IF($A82=\"N/A\",Ref!$B$36,INDEX(Ranks!$1:$1048576,$A82,Z$1))","v":""},{"$f":"IF($A82=\"N/A\",Ref!$B$36,INDEX(Ranks!$1:$1048576,$A82,AA$1))","v":""},{"$f":"IF($A82=\"N/A\",Ref!$B$36,INDEX(Ranks!$1:$1048576,$A82,AB$1))","v":""},{"$f":"IF($A82=\"N/A\",Ref!$B$36,INDEX(Ranks!$1:$1048576,$A82,AC$1))","v":""},{"$f":"IF($A82=\"N/A\",Ref!$B$36,INDEX(Ranks!$1:$1048576,$A82,AD$1))","v":""},{"$f":"IF($A82=\"N/A\",Ref!$B$36,INDEX(Ranks!$1:$1048576,$A82,AE$1))","v":""},{"$f":"IF($A82=\"N/A\",Ref!$B$36,INDEX(Ranks!$1:$1048576,$A82,AF$1))","v":""},{"$f":"IF($A82=\"N/A\",Ref!$B$36,INDEX(Ranks!$1:$1048576,$A82,AG$1))","v":""},{"$f":"IF($A82=\"N/A\",Ref!$B$36,INDEX(Ranks!$1:$1048576,$A82,AH$1))","v":""},{"$f":"IF($A82=\"N/A\",Ref!$B$36,INDEX(Ranks!$1:$1048576,$A82,AI$1))","v":""},{"$f":"IF($A82=\"N/A\",Ref!$B$36,INDEX(Ranks!$1:$1048576,$A82,AJ$1))","v":""},{"$f":"IF($A82=\"N/A\",Ref!$B$36,INDEX(Ranks!$1:$1048576,$A82,AK$1))","v":""},{"$f":"IF($A82=\"N/A\",Ref!$B$36,INDEX(Ranks!$1:$1048576,$A82,AL$1))","v":""},{"$f":"IF($A82=\"N/A\",Ref!$B$36,INDEX(Ranks!$1:$1048576,$A82,AM$1))","v":""},{"$f":"IF($A82=\"N/A\",Ref!$B$36,INDEX(Ranks!$1:$1048576,$A82,AN$1))","v":""},{"$f":"IF($A82=\"N/A\",Ref!$B$36,INDEX(Ranks!$1:$1048576,$A82,AO$1))","v":""},{"$f":"IF($A82=\"N/A\",Ref!$B$36,INDEX(Ranks!$1:$1048576,$A82,AP$1))","v":""},{"$f":"IF($A82=\"N/A\",Ref!$B$36,INDEX(Ranks!$1:$1048576,$A82,AQ$1))","v":""},{"$f":"IF($A82=\"N/A\",Ref!$B$36,INDEX(Ranks!$1:$1048576,$A82,AR$1))","v":""},{"$f":"IF($A82=\"N/A\",Ref!$B$36,INDEX(Ranks!$1:$1048576,$A82,AS$1))","v":""},{"$f":"IF($A82=\"N/A\",Ref!$B$36,INDEX(Ranks!$1:$1048576,$A82,AT$1))","v":""},{"$f":"IF($A82=\"N/A\",Ref!$B$36,INDEX(Ranks!$1:$1048576,$A82,AU$1))","v":""},{"$f":"IF($A82=\"N/A\",Ref!$B$36,INDEX(Ranks!$1:$1048576,$A82,AV$1))","v":""},{"$f":"IF($A82=\"N/A\",Ref!$B$36,INDEX(Ranks!$1:$1048576,$A82,AW$1))","v":""},{"$f":"IF($A82=\"N/A\",Ref!$B$36,INDEX(Ranks!$1:$1048576,$A82,AX$1))","v":""},{"$f":"IF($A82=\"N/A\",Ref!$B$36,INDEX(Ranks!$1:$1048576,$A82,AY$1))","v":""},{"$f":"IF($A82=\"N/A\",Ref!$B$36,INDEX(Ranks!$1:$1048576,$A82,AZ$1))","v":""},{"$f":"IF($A82=\"N/A\",Ref!$B$36,INDEX(Ranks!$1:$1048576,$A82,BA$1))","v":""},{"$f":"IF($A82=\"N/A\",Ref!$B$36,INDEX(Ranks!$1:$1048576,$A82,BB$1))","v":""},{"$f":"IF($A82=\"N/A\",Ref!$B$36,INDEX(Ranks!$1:$1048576,$A82,BC$1))","v":""},{"$f":"IF($A82=\"N/A\",Ref!$B$36,INDEX(Ranks!$1:$1048576,$A82,BD$1))","v":""},{"$f":"IF($A82=\"N/A\",Ref!$B$36,INDEX(Ranks!$1:$1048576,$A82,BE$1))","v":""},{"$f":"IF($A82=\"N/A\",Ref!$B$36,INDEX(Ranks!$1:$1048576,$A82,BF$1))","v":""},{"$f":"IF($A82=\"N/A\",Ref!$B$36,INDEX(Ranks!$1:$1048576,$A82,BG$1))","v":""},{"$f":"IF($A82=\"N/A\",Ref!$B$36,INDEX(Ranks!$1:$1048576,$A82,BH$1))","v":""},{"$f":"IF($A82=\"N/A\",Ref!$B$36,INDEX(Ranks!$1:$1048576,$A82,BI$1))","v":""},{"$f":"IF($A82=\"N/A\",Ref!$B$36,INDEX(Ranks!$1:$1048576,$A82,BJ$1))","v":""},{"$f":"IF($A82=\"N/A\",Ref!$B$36,INDEX(Ranks!$1:$1048576,$A82,BK$1))","v":""},{"$f":"IF($A82=\"N/A\",Ref!$B$36,INDEX(Ranks!$1:$1048576,$A82,BL$1))","v":""},{"$f":"IF($A82=\"N/A\",Ref!$B$36,INDEX(Ranks!$1:$1048576,$A82,BM$1))","v":""},{"$f":"IF($A82=\"N/A\",Ref!$B$36,INDEX(Ranks!$1:$1048576,$A82,BN$1))","v":""},{"$f":"IF($A82=\"N/A\",Ref!$B$36,INDEX(Ranks!$1:$1048576,$A82,BO$1))","v":""},{"$f":"IF($A82=\"N/A\",Ref!$B$36,INDEX(Ranks!$1:$1048576,$A82,BP$1))","v":""},{"$f":"IF($A82=\"N/A\",Ref!$B$36,INDEX(Ranks!$1:$1048576,$A82,BQ$1))","v":""},{"$f":"IF($A82=\"N/A\",Ref!$B$36,INDEX(Ranks!$1:$1048576,$A82,BR$1))","v":""},{"$f":"IF($A82=\"N/A\",Ref!$B$36,INDEX(Ranks!$1:$1048576,$A82,BS$1))","v":""},{"$f":"IF($A82=\"N/A\",Ref!$B$36,INDEX(Ranks!$1:$1048576,$A82,BT$1))","v":""},{"$f":"IF($A82=\"N/A\",Ref!$B$36,INDEX(Ranks!$1:$1048576,$A82,BU$1))","v":""},{"$f":"IF($A82=\"N/A\",Ref!$B$36,INDEX(Ranks!$1:$1048576,$A82,BV$1))","v":""},{"$f":"IF($A82=\"N/A\",Ref!$B$36,INDEX(Ranks!$1:$1048576,$A82,BW$1))","v":""},{"$f":"IF($A82=\"N/A\",Ref!$B$36,INDEX(Ranks!$1:$1048576,$A82,BX$1))","v":""},{"$f":"IF($A82=\"N/A\",Ref!$B$36,INDEX(Ranks!$1:$1048576,$A82,BY$1))","v":""},{"$f":"IF($A82=\"N/A\",Ref!$B$36,INDEX(Ranks!$1:$1048576,$A82,BZ$1))","v":""},{"$f":"IF($A82=\"N/A\",Ref!$B$36,INDEX(Ranks!$1:$1048576,$A82,CA$1))","v":""},{"$f":"IF($A82=\"N/A\",Ref!$B$36,INDEX(Ranks!$1:$1048576,$A82,CB$1))","v":""},{"$f":"IF($A82=\"N/A\",Ref!$B$36,INDEX(Ranks!$1:$1048576,$A82,CC$1))","v":""},{"$f":"IF($A82=\"N/A\",Ref!$B$36,INDEX(Ranks!$1:$1048576,$A82,CD$1))","v":""},{"$f":"IF($A82=\"N/A\",Ref!$B$36,INDEX(Ranks!$1:$1048576,$A82,CE$1))","v":""},{"$f":"IF($A82=\"N/A\",Ref!$B$36,INDEX(Ranks!$1:$1048576,$A82,CF$1))","v":""},{"$f":"IF($A82=\"N/A\",Ref!$B$36,INDEX(Ranks!$1:$1048576,$A82,CG$1))","v":""},{"$f":"IF($A82=\"N/A\",Ref!$B$36,INDEX(Ranks!$1:$1048576,$A82,CH$1))","v":""},{"$f":"IF($A82=\"N/A\",Ref!$B$36,INDEX(Ranks!$1:$1048576,$A82,CI$1))","v":""},{"$f":"IF($A82=\"N/A\",Ref!$B$36,INDEX(Ranks!$1:$1048576,$A82,CJ$1))","v":""},{"$f":"IF($A82=\"N/A\",Ref!$B$36,INDEX(Ranks!$1:$1048576,$A82,CK$1))","v":""},{"$f":"IF($A82=\"N/A\",Ref!$B$36,INDEX(Ranks!$1:$1048576,$A82,CL$1))","v":""},{"$f":"IF($A82=\"N/A\",Ref!$B$36,INDEX(Ranks!$1:$1048576,$A82,CM$1))","v":""},{"$f":"IF($A82=\"N/A\",Ref!$B$36,INDEX(Ranks!$1:$1048576,$A82,CN$1))","v":""},{"$f":"IF($A82=\"N/A\",Ref!$B$36,INDEX(Ranks!$1:$1048576,$A82,CO$1))","v":""},{"$f":"IF($A82=\"N/A\",Ref!$B$36,INDEX(Ranks!$1:$1048576,$A82,CP$1))","v":""},{"$f":"IF($A82=\"N/A\",Ref!$B$36,INDEX(Ranks!$1:$1048576,$A82,CQ$1))","v":""},{"$f":"IF($A82=\"N/A\",Ref!$B$36,INDEX(Ranks!$1:$1048576,$A82,CR$1))","v":""},{"$f":"IF($A82=\"N/A\",Ref!$B$36,INDEX(Ranks!$1:$1048576,$A82,CS$1))","v":""},{"$f":"IF($A82=\"N/A\",Ref!$B$36,INDEX(Ranks!$1:$1048576,$A82,CT$1))","v":""},{"$f":"IF($A82=\"N/A\",Ref!$B$36,INDEX(Ranks!$1:$1048576,$A82,CU$1))","v":""},{"$f":"IF($A82=\"N/A\",Ref!$B$36,INDEX(Ranks!$1:$1048576,$A82,CV$1))","v":""},{"$f":"IF($A82=\"N/A\",Ref!$B$36,INDEX(Ranks!$1:$1048576,$A82,CW$1))","v":""},{"$f":"IF($A82=\"N/A\",Ref!$B$36,INDEX(Ranks!$1:$1048576,$A82,CX$1))","v":""},{"$f":"IF($A82=\"N/A\",Ref!$B$36,INDEX(Ranks!$1:$1048576,$A82,CY$1))","v":""},{"$f":"IF($A82=\"N/A\",Ref!$B$36,INDEX(Ranks!$1:$1048576,$A82,CZ$1))","v":""},{"$f":"IF($A82=\"N/A\",Ref!$B$36,INDEX(Ranks!$1:$1048576,$A82,DA$1))","v":""},{"$f":"IF($A82=\"N/A\",Ref!$B$36,INDEX(Ranks!$1:$1048576,$A82,DB$1))","v":""},{"$f":"IF($A82=\"N/A\",Ref!$B$36,INDEX(Ranks!$1:$1048576,$A82,DC$1))","v":""},{"$f":"IF($A82=\"N/A\",Ref!$B$36,INDEX(Ranks!$1:$1048576,$A82,DD$1))","v":""},{"$f":"IF($A82=\"N/A\",Ref!$B$36,INDEX(Ranks!$1:$1048576,$A82,DE$1))","v":""},{"$f":"IF($A82=\"N/A\",Ref!$B$36,INDEX(Ranks!$1:$1048576,$A82,DF$1))","v":""},{"$f":"IF($A82=\"N/A\",Ref!$B$36,INDEX(Ranks!$1:$1048576,$A82,DG$1))","v":""},{"$f":"IF($A82=\"N/A\",Ref!$B$36,INDEX(Ranks!$1:$1048576,$A82,DH$1))","v":""},{"$f":"IF($A82=\"N/A\",Ref!$B$36,INDEX(Ranks!$1:$1048576,$A82,DI$1))","v":""},{"$f":"IF($A82=\"N/A\",Ref!$B$36,INDEX(Ranks!$1:$1048576,$A82,DJ$1))","v":""},{"$f":"IF($A82=\"N/A\",Ref!$B$36,INDEX(Ranks!$1:$1048576,$A82,DK$1))","v":""},{"$f":"IF($A82=\"N/A\",Ref!$B$36,INDEX(Ranks!$1:$1048576,$A82,DL$1))","v":""},{"$f":"IF($A82=\"N/A\",Ref!$B$36,INDEX(Ranks!$1:$1048576,$A82,DM$1))","v":""},{"$f":"IF($A82=\"N/A\",Ref!$B$36,INDEX(Ranks!$1:$1048576,$A82,DN$1))","v":""},{"$f":"IF($A82=\"N/A\",Ref!$B$36,INDEX(Ranks!$1:$1048576,$A82,DO$1))","v":""},{"$f":"IF($A82=\"N/A\",Ref!$B$36,INDEX(Ranks!$1:$1048576,$A82,DP$1))","v":""},{"$f":"IF($A82=\"N/A\",Ref!$B$36,INDEX(Ranks!$1:$1048576,$A82,DQ$1))","v":""},{"$f":"IF($A82=\"N/A\",Ref!$B$36,INDEX(Ranks!$1:$1048576,$A82,DR$1))","v":""},{"$f":"IF($A82=\"N/A\",Ref!$B$36,INDEX(Ranks!$1:$1048576,$A82,DS$1))","v":""},{"$f":"IF($A82=\"N/A\",Ref!$B$36,INDEX(Ranks!$1:$1048576,$A82,DT$1))","v":""},{"$f":"IF($A82=\"N/A\",Ref!$B$36,INDEX(Ranks!$1:$1048576,$A82,DU$1))","v":""},{"$f":"IF($A82=\"N/A\",Ref!$B$36,INDEX(Ranks!$1:$1048576,$A82,DV$1))","v":""},{"$f":"IF($A82=\"N/A\",Ref!$B$36,INDEX(Ranks!$1:$1048576,$A82,DW$1))","v":""},{"$f":"IF($A82=\"N/A\",Ref!$B$36,INDEX(Ranks!$1:$1048576,$A82,DX$1))","v":""},{"$f":"IF($A82=\"N/A\",Ref!$B$36,INDEX(Ranks!$1:$1048576,$A82,DY$1))","v":""},{"$f":"IF($A82=\"N/A\",Ref!$B$36,INDEX(Ranks!$1:$1048576,$A82,DZ$1))","v":""},{"$f":"IF($A82=\"N/A\",Ref!$B$36,INDEX(Ranks!$1:$1048576,$A82,EA$1))","v":""},{"$f":"IF($A82=\"N/A\",Ref!$B$36,INDEX(Ranks!$1:$1048576,$A82,EB$1))","v":""}]
[{"$f":"IFERROR(MATCH('Portfolio Page'!L83,Ranks!L:L,0),\"N/A\")","v":"N/A"},null,{"$f":"IF($A83=\"N/A\",\"\",INDEX(Ranks!$1:$1048576,$A83,C$1))","v":""},{"$f":"IF($A83=\"N/A\",Ref!$B$36,INDEX(Ranks!$1:$1048576,$A83,D$1))","v":""},{"$f":"IF($A83=\"N/A\",Ref!$B$36,INDEX(Ranks!$1:$1048576,$A83,E$1))","v":""},{"$f":"IF($A83=\"N/A\",\"\",INDEX(Ranks!$1:$1048576,$A83,F$1))","v":""},{"$f":"IF($A83=\"N/A\",\"\",INDEX(Ranks!$1:$1048576,$A83,G$1))","v":""},{"$f":"IF($A83=\"N/A\",\"\",INDEX(Ranks!$1:$1048576,$A83,H$1))","v":""},{"$f":"IF($A83=\"N/A\",\"\",INDEX(Ranks!$1:$1048576,$A83,I$1))","v":""},{"$f":"IF($A83=\"N/A\",\"\",INDEX(Ranks!$1:$1048576,$A83,J$1))","v":""},{"$f":"IF($A83=\"N/A\",\"\",INDEX(Ranks!$1:$1048576,$A83,K$1))","v":""},null,{"$f":"IF($A83=\"N/A\",Ref!$B$36,INDEX(Ranks!$1:$1048576,$A83,M$1))","v":""},{"$f":"IF($A83=\"N/A\",Ref!$B$36,INDEX(Ranks!$1:$1048576,$A83,N$1))","v":""},{"$f":"IF($A83=\"N/A\",Ref!$B$36,INDEX(Ranks!$1:$1048576,$A83,O$1))","v":""},{"$f":"IF($A83=\"N/A\",Ref!$B$36,INDEX(Ranks!$1:$1048576,$A83,P$1))","v":""},{"$f":"IF($A83=\"N/A\",Ref!$B$36,INDEX(Ranks!$1:$1048576,$A83,Q$1))","v":""},{"$f":"IF($A83=\"N/A\",Ref!$B$36,INDEX(Ranks!$1:$1048576,$A83,R$1))","v":""},{"$f":"IF($A83=\"N/A\",Ref!$B$36,INDEX(Ranks!$1:$1048576,$A83,S$1))","v":""},{"$f":"IF($A83=\"N/A\",Ref!$B$36,INDEX(Ranks!$1:$1048576,$A83,T$1))","v":""},{"$f":"IF($A83=\"N/A\",Ref!$B$36,INDEX(Ranks!$1:$1048576,$A83,U$1))","v":""},{"$f":"IF($A83=\"N/A\",Ref!$B$36,INDEX(Ranks!$1:$1048576,$A83,V$1))","v":""},{"$f":"IF($A83=\"N/A\",Ref!$B$36,INDEX(Ranks!$1:$1048576,$A83,W$1))","v":""},{"$f":"IF($A83=\"N/A\",Ref!$B$36,INDEX(Ranks!$1:$1048576,$A83,X$1))","v":""},{"$f":"IF($A83=\"N/A\",Ref!$B$36,INDEX(Ranks!$1:$1048576,$A83,Y$1))","v":""},{"$f":"IF($A83=\"N/A\",Ref!$B$36,INDEX(Ranks!$1:$1048576,$A83,Z$1))","v":""},{"$f":"IF($A83=\"N/A\",Ref!$B$36,INDEX(Ranks!$1:$1048576,$A83,AA$1))","v":""},{"$f":"IF($A83=\"N/A\",Ref!$B$36,INDEX(Ranks!$1:$1048576,$A83,AB$1))","v":""},{"$f":"IF($A83=\"N/A\",Ref!$B$36,INDEX(Ranks!$1:$1048576,$A83,AC$1))","v":""},{"$f":"IF($A83=\"N/A\",Ref!$B$36,INDEX(Ranks!$1:$1048576,$A83,AD$1))","v":""},{"$f":"IF($A83=\"N/A\",Ref!$B$36,INDEX(Ranks!$1:$1048576,$A83,AE$1))","v":""},{"$f":"IF($A83=\"N/A\",Ref!$B$36,INDEX(Ranks!$1:$1048576,$A83,AF$1))","v":""},{"$f":"IF($A83=\"N/A\",Ref!$B$36,INDEX(Ranks!$1:$1048576,$A83,AG$1))","v":""},{"$f":"IF($A83=\"N/A\",Ref!$B$36,INDEX(Ranks!$1:$1048576,$A83,AH$1))","v":""},{"$f":"IF($A83=\"N/A\",Ref!$B$36,INDEX(Ranks!$1:$1048576,$A83,AI$1))","v":""},{"$f":"IF($A83=\"N/A\",Ref!$B$36,INDEX(Ranks!$1:$1048576,$A83,AJ$1))","v":""},{"$f":"IF($A83=\"N/A\",Ref!$B$36,INDEX(Ranks!$1:$1048576,$A83,AK$1))","v":""},{"$f":"IF($A83=\"N/A\",Ref!$B$36,INDEX(Ranks!$1:$1048576,$A83,AL$1))","v":""},{"$f":"IF($A83=\"N/A\",Ref!$B$36,INDEX(Ranks!$1:$1048576,$A83,AM$1))","v":""},{"$f":"IF($A83=\"N/A\",Ref!$B$36,INDEX(Ranks!$1:$1048576,$A83,AN$1))","v":""},{"$f":"IF($A83=\"N/A\",Ref!$B$36,INDEX(Ranks!$1:$1048576,$A83,AO$1))","v":""},{"$f":"IF($A83=\"N/A\",Ref!$B$36,INDEX(Ranks!$1:$1048576,$A83,AP$1))","v":""},{"$f":"IF($A83=\"N/A\",Ref!$B$36,INDEX(Ranks!$1:$1048576,$A83,AQ$1))","v":""},{"$f":"IF($A83=\"N/A\",Ref!$B$36,INDEX(Ranks!$1:$1048576,$A83,AR$1))","v":""},{"$f":"IF($A83=\"N/A\",Ref!$B$36,INDEX(Ranks!$1:$1048576,$A83,AS$1))","v":""},{"$f":"IF($A83=\"N/A\",Ref!$B$36,INDEX(Ranks!$1:$1048576,$A83,AT$1))","v":""},{"$f":"IF($A83=\"N/A\",Ref!$B$36,INDEX(Ranks!$1:$1048576,$A83,AU$1))","v":""},{"$f":"IF($A83=\"N/A\",Ref!$B$36,INDEX(Ranks!$1:$1048576,$A83,AV$1))","v":""},{"$f":"IF($A83=\"N/A\",Ref!$B$36,INDEX(Ranks!$1:$1048576,$A83,AW$1))","v":""},{"$f":"IF($A83=\"N/A\",Ref!$B$36,INDEX(Ranks!$1:$1048576,$A83,AX$1))","v":""},{"$f":"IF($A83=\"N/A\",Ref!$B$36,INDEX(Ranks!$1:$1048576,$A83,AY$1))","v":""},{"$f":"IF($A83=\"N/A\",Ref!$B$36,INDEX(Ranks!$1:$1048576,$A83,AZ$1))","v":""},{"$f":"IF($A83=\"N/A\",Ref!$B$36,INDEX(Ranks!$1:$1048576,$A83,BA$1))","v":""},{"$f":"IF($A83=\"N/A\",Ref!$B$36,INDEX(Ranks!$1:$1048576,$A83,BB$1))","v":""},{"$f":"IF($A83=\"N/A\",Ref!$B$36,INDEX(Ranks!$1:$1048576,$A83,BC$1))","v":""},{"$f":"IF($A83=\"N/A\",Ref!$B$36,INDEX(Ranks!$1:$1048576,$A83,BD$1))","v":""},{"$f":"IF($A83=\"N/A\",Ref!$B$36,INDEX(Ranks!$1:$1048576,$A83,BE$1))","v":""},{"$f":"IF($A83=\"N/A\",Ref!$B$36,INDEX(Ranks!$1:$1048576,$A83,BF$1))","v":""},{"$f":"IF($A83=\"N/A\",Ref!$B$36,INDEX(Ranks!$1:$1048576,$A83,BG$1))","v":""},{"$f":"IF($A83=\"N/A\",Ref!$B$36,INDEX(Ranks!$1:$1048576,$A83,BH$1))","v":""},{"$f":"IF($A83=\"N/A\",Ref!$B$36,INDEX(Ranks!$1:$1048576,$A83,BI$1))","v":""},{"$f":"IF($A83=\"N/A\",Ref!$B$36,INDEX(Ranks!$1:$1048576,$A83,BJ$1))","v":""},{"$f":"IF($A83=\"N/A\",Ref!$B$36,INDEX(Ranks!$1:$1048576,$A83,BK$1))","v":""},{"$f":"IF($A83=\"N/A\",Ref!$B$36,INDEX(Ranks!$1:$1048576,$A83,BL$1))","v":""},{"$f":"IF($A83=\"N/A\",Ref!$B$36,INDEX(Ranks!$1:$1048576,$A83,BM$1))","v":""},{"$f":"IF($A83=\"N/A\",Ref!$B$36,INDEX(Ranks!$1:$1048576,$A83,BN$1))","v":""},{"$f":"IF($A83=\"N/A\",Ref!$B$36,INDEX(Ranks!$1:$1048576,$A83,BO$1))","v":""},{"$f":"IF($A83=\"N/A\",Ref!$B$36,INDEX(Ranks!$1:$1048576,$A83,BP$1))","v":""},{"$f":"IF($A83=\"N/A\",Ref!$B$36,INDEX(Ranks!$1:$1048576,$A83,BQ$1))","v":""},{"$f":"IF($A83=\"N/A\",Ref!$B$36,INDEX(Ranks!$1:$1048576,$A83,BR$1))","v":""},{"$f":"IF($A83=\"N/A\",Ref!$B$36,INDEX(Ranks!$1:$1048576,$A83,BS$1))","v":""},{"$f":"IF($A83=\"N/A\",Ref!$B$36,INDEX(Ranks!$1:$1048576,$A83,BT$1))","v":""},{"$f":"IF($A83=\"N/A\",Ref!$B$36,INDEX(Ranks!$1:$1048576,$A83,BU$1))","v":""},{"$f":"IF($A83=\"N/A\",Ref!$B$36,INDEX(Ranks!$1:$1048576,$A83,BV$1))","v":""},{"$f":"IF($A83=\"N/A\",Ref!$B$36,INDEX(Ranks!$1:$1048576,$A83,BW$1))","v":""},{"$f":"IF($A83=\"N/A\",Ref!$B$36,INDEX(Ranks!$1:$1048576,$A83,BX$1))","v":""},{"$f":"IF($A83=\"N/A\",Ref!$B$36,INDEX(Ranks!$1:$1048576,$A83,BY$1))","v":""},{"$f":"IF($A83=\"N/A\",Ref!$B$36,INDEX(Ranks!$1:$1048576,$A83,BZ$1))","v":""},{"$f":"IF($A83=\"N/A\",Ref!$B$36,INDEX(Ranks!$1:$1048576,$A83,CA$1))","v":""},{"$f":"IF($A83=\"N/A\",Ref!$B$36,INDEX(Ranks!$1:$1048576,$A83,CB$1))","v":""},{"$f":"IF($A83=\"N/A\",Ref!$B$36,INDEX(Ranks!$1:$1048576,$A83,CC$1))","v":""},{"$f":"IF($A83=\"N/A\",Ref!$B$36,INDEX(Ranks!$1:$1048576,$A83,CD$1))","v":""},{"$f":"IF($A83=\"N/A\",Ref!$B$36,INDEX(Ranks!$1:$1048576,$A83,CE$1))","v":""},{"$f":"IF($A83=\"N/A\",Ref!$B$36,INDEX(Ranks!$1:$1048576,$A83,CF$1))","v":""},{"$f":"IF($A83=\"N/A\",Ref!$B$36,INDEX(Ranks!$1:$1048576,$A83,CG$1))","v":""},{"$f":"IF($A83=\"N/A\",Ref!$B$36,INDEX(Ranks!$1:$1048576,$A83,CH$1))","v":""},{"$f":"IF($A83=\"N/A\",Ref!$B$36,INDEX(Ranks!$1:$1048576,$A83,CI$1))","v":""},{"$f":"IF($A83=\"N/A\",Ref!$B$36,INDEX(Ranks!$1:$1048576,$A83,CJ$1))","v":""},{"$f":"IF($A83=\"N/A\",Ref!$B$36,INDEX(Ranks!$1:$1048576,$A83,CK$1))","v":""},{"$f":"IF($A83=\"N/A\",Ref!$B$36,INDEX(Ranks!$1:$1048576,$A83,CL$1))","v":""},{"$f":"IF($A83=\"N/A\",Ref!$B$36,INDEX(Ranks!$1:$1048576,$A83,CM$1))","v":""},{"$f":"IF($A83=\"N/A\",Ref!$B$36,INDEX(Ranks!$1:$1048576,$A83,CN$1))","v":""},{"$f":"IF($A83=\"N/A\",Ref!$B$36,INDEX(Ranks!$1:$1048576,$A83,CO$1))","v":""},{"$f":"IF($A83=\"N/A\",Ref!$B$36,INDEX(Ranks!$1:$1048576,$A83,CP$1))","v":""},{"$f":"IF($A83=\"N/A\",Ref!$B$36,INDEX(Ranks!$1:$1048576,$A83,CQ$1))","v":""},{"$f":"IF($A83=\"N/A\",Ref!$B$36,INDEX(Ranks!$1:$1048576,$A83,CR$1))","v":""},{"$f":"IF($A83=\"N/A\",Ref!$B$36,INDEX(Ranks!$1:$1048576,$A83,CS$1))","v":""},{"$f":"IF($A83=\"N/A\",Ref!$B$36,INDEX(Ranks!$1:$1048576,$A83,CT$1))","v":""},{"$f":"IF($A83=\"N/A\",Ref!$B$36,INDEX(Ranks!$1:$1048576,$A83,CU$1))","v":""},{"$f":"IF($A83=\"N/A\",Ref!$B$36,INDEX(Ranks!$1:$1048576,$A83,CV$1))","v":""},{"$f":"IF($A83=\"N/A\",Ref!$B$36,INDEX(Ranks!$1:$1048576,$A83,CW$1))","v":""},{"$f":"IF($A83=\"N/A\",Ref!$B$36,INDEX(Ranks!$1:$1048576,$A83,CX$1))","v":""},{"$f":"IF($A83=\"N/A\",Ref!$B$36,INDEX(Ranks!$1:$1048576,$A83,CY$1))","v":""},{"$f":"IF($A83=\"N/A\",Ref!$B$36,INDEX(Ranks!$1:$1048576,$A83,CZ$1))","v":""},{"$f":"IF($A83=\"N/A\",Ref!$B$36,INDEX(Ranks!$1:$1048576,$A83,DA$1))","v":""},{"$f":"IF($A83=\"N/A\",Ref!$B$36,INDEX(Ranks!$1:$1048576,$A83,DB$1))","v":""},{"$f":"IF($A83=\"N/A\",Ref!$B$36,INDEX(Ranks!$1:$1048576,$A83,DC$1))","v":""},{"$f":"IF($A83=\"N/A\",Ref!$B$36,INDEX(Ranks!$1:$1048576,$A83,DD$1))","v":""},{"$f":"IF($A83=\"N/A\",Ref!$B$36,INDEX(Ranks!$1:$1048576,$A83,DE$1))","v":""},{"$f":"IF($A83=\"N/A\",Ref!$B$36,INDEX(Ranks!$1:$1048576,$A83,DF$1))","v":""},{"$f":"IF($A83=\"N/A\",Ref!$B$36,INDEX(Ranks!$1:$1048576,$A83,DG$1))","v":""},{"$f":"IF($A83=\"N/A\",Ref!$B$36,INDEX(Ranks!$1:$1048576,$A83,DH$1))","v":""},{"$f":"IF($A83=\"N/A\",Ref!$B$36,INDEX(Ranks!$1:$1048576,$A83,DI$1))","v":""},{"$f":"IF($A83=\"N/A\",Ref!$B$36,INDEX(Ranks!$1:$1048576,$A83,DJ$1))","v":""},{"$f":"IF($A83=\"N/A\",Ref!$B$36,INDEX(Ranks!$1:$1048576,$A83,DK$1))","v":""},{"$f":"IF($A83=\"N/A\",Ref!$B$36,INDEX(Ranks!$1:$1048576,$A83,DL$1))","v":""},{"$f":"IF($A83=\"N/A\",Ref!$B$36,INDEX(Ranks!$1:$1048576,$A83,DM$1))","v":""},{"$f":"IF($A83=\"N/A\",Ref!$B$36,INDEX(Ranks!$1:$1048576,$A83,DN$1))","v":""},{"$f":"IF($A83=\"N/A\",Ref!$B$36,INDEX(Ranks!$1:$1048576,$A83,DO$1))","v":""},{"$f":"IF($A83=\"N/A\",Ref!$B$36,INDEX(Ranks!$1:$1048576,$A83,DP$1))","v":""},{"$f":"IF($A83=\"N/A\",Ref!$B$36,INDEX(Ranks!$1:$1048576,$A83,DQ$1))","v":""},{"$f":"IF($A83=\"N/A\",Ref!$B$36,INDEX(Ranks!$1:$1048576,$A83,DR$1))","v":""},{"$f":"IF($A83=\"N/A\",Ref!$B$36,INDEX(Ranks!$1:$1048576,$A83,DS$1))","v":""},{"$f":"IF($A83=\"N/A\",Ref!$B$36,INDEX(Ranks!$1:$1048576,$A83,DT$1))","v":""},{"$f":"IF($A83=\"N/A\",Ref!$B$36,INDEX(Ranks!$1:$1048576,$A83,DU$1))","v":""},{"$f":"IF($A83=\"N/A\",Ref!$B$36,INDEX(Ranks!$1:$1048576,$A83,DV$1))","v":""},{"$f":"IF($A83=\"N/A\",Ref!$B$36,INDEX(Ranks!$1:$1048576,$A83,DW$1))","v":""},{"$f":"IF($A83=\"N/A\",Ref!$B$36,INDEX(Ranks!$1:$1048576,$A83,DX$1))","v":""},{"$f":"IF($A83=\"N/A\",Ref!$B$36,INDEX(Ranks!$1:$1048576,$A83,DY$1))","v":""},{"$f":"IF($A83=\"N/A\",Ref!$B$36,INDEX(Ranks!$1:$1048576,$A83,DZ$1))","v":""},{"$f":"IF($A83=\"N/A\",Ref!$B$36,INDEX(Ranks!$1:$1048576,$A83,EA$1))","v":""},{"$f":"IF($A83=\"N/A\",Ref!$B$36,INDEX(Ranks!$1:$1048576,$A83,EB$1))","v":""}]
[{"$f":"IFERROR(MATCH('Portfolio Page'!L84,Ranks!L:L,0),\"N/A\")","v":"N/A"},null,{"$f":"IF($A84=\"N/A\",\"\",INDEX(Ranks!$1:$1048576,$A84,C$1))","v":""},{"$f":"IF($A84=\"N/A\",Ref!$B$36,INDEX(Ranks!$1:$1048576,$A84,D$1))","v":""},{"$f":"IF($A84=\"N/A\",Ref!$B$36,INDEX(Ranks!$1:$1048576,$A84,E$1))","v":""},{"$f":"IF($A84=\"N/A\",\"\",INDEX(Ranks!$1:$1048576,$A84,F$1))","v":""},{"$f":"IF($A84=\"N/A\",\"\",INDEX(Ranks!$1:$1048576,$A84,G$1))","v":""},{"$f":"IF($A84=\"N/A\",\"\",INDEX(Ranks!$1:$1048576,$A84,H$1))","v":""},{"$f":"IF($A84=\"N/A\",\"\",INDEX(Ranks!$1:$1048576,$A84,I$1))","v":""},{"$f":"IF($A84=\"N/A\",\"\",INDEX(Ranks!$1:$1048576,$A84,J$1))","v":""},{"$f":"IF($A84=\"N/A\",\"\",INDEX(Ranks!$1:$1048576,$A84,K$1))","v":""},null,{"$f":"IF($A84=\"N/A\",Ref!$B$36,INDEX(Ranks!$1:$1048576,$A84,M$1))","v":""},{"$f":"IF($A84=\"N/A\",Ref!$B$36,INDEX(Ranks!$1:$1048576,$A84,N$1))","v":""},{"$f":"IF($A84=\"N/A\",Ref!$B$36,INDEX(Ranks!$1:$1048576,$A84,O$1))","v":""},{"$f":"IF($A84=\"N/A\",Ref!$B$36,INDEX(Ranks!$1:$1048576,$A84,P$1))","v":""},{"$f":"IF($A84=\"N/A\",Ref!$B$36,INDEX(Ranks!$1:$1048576,$A84,Q$1))","v":""},{"$f":"IF($A84=\"N/A\",Ref!$B$36,INDEX(Ranks!$1:$1048576,$A84,R$1))","v":""},{"$f":"IF($A84=\"N/A\",Ref!$B$36,INDEX(Ranks!$1:$1048576,$A84,S$1))","v":""},{"$f":"IF($A84=\"N/A\",Ref!$B$36,INDEX(Ranks!$1:$1048576,$A84,T$1))","v":""},{"$f":"IF($A84=\"N/A\",Ref!$B$36,INDEX(Ranks!$1:$1048576,$A84,U$1))","v":""},{"$f":"IF($A84=\"N/A\",Ref!$B$36,INDEX(Ranks!$1:$1048576,$A84,V$1))","v":""},{"$f":"IF($A84=\"N/A\",Ref!$B$36,INDEX(Ranks!$1:$1048576,$A84,W$1))","v":""},{"$f":"IF($A84=\"N/A\",Ref!$B$36,INDEX(Ranks!$1:$1048576,$A84,X$1))","v":""},{"$f":"IF($A84=\"N/A\",Ref!$B$36,INDEX(Ranks!$1:$1048576,$A84,Y$1))","v":""},{"$f":"IF($A84=\"N/A\",Ref!$B$36,INDEX(Ranks!$1:$1048576,$A84,Z$1))","v":""},{"$f":"IF($A84=\"N/A\",Ref!$B$36,INDEX(Ranks!$1:$1048576,$A84,AA$1))","v":""},{"$f":"IF($A84=\"N/A\",Ref!$B$36,INDEX(Ranks!$1:$1048576,$A84,AB$1))","v":""},{"$f":"IF($A84=\"N/A\",Ref!$B$36,INDEX(Ranks!$1:$1048576,$A84,AC$1))","v":""},{"$f":"IF($A84=\"N/A\",Ref!$B$36,INDEX(Ranks!$1:$1048576,$A84,AD$1))","v":""},{"$f":"IF($A84=\"N/A\",Ref!$B$36,INDEX(Ranks!$1:$1048576,$A84,AE$1))","v":""},{"$f":"IF($A84=\"N/A\",Ref!$B$36,INDEX(Ranks!$1:$1048576,$A84,AF$1))","v":""},{"$f":"IF($A84=\"N/A\",Ref!$B$36,INDEX(Ranks!$1:$1048576,$A84,AG$1))","v":""},{"$f":"IF($A84=\"N/A\",Ref!$B$36,INDEX(Ranks!$1:$1048576,$A84,AH$1))","v":""},{"$f":"IF($A84=\"N/A\",Ref!$B$36,INDEX(Ranks!$1:$1048576,$A84,AI$1))","v":""},{"$f":"IF($A84=\"N/A\",Ref!$B$36,INDEX(Ranks!$1:$1048576,$A84,AJ$1))","v":""},{"$f":"IF($A84=\"N/A\",Ref!$B$36,INDEX(Ranks!$1:$1048576,$A84,AK$1))","v":""},{"$f":"IF($A84=\"N/A\",Ref!$B$36,INDEX(Ranks!$1:$1048576,$A84,AL$1))","v":""},{"$f":"IF($A84=\"N/A\",Ref!$B$36,INDEX(Ranks!$1:$1048576,$A84,AM$1))","v":""},{"$f":"IF($A84=\"N/A\",Ref!$B$36,INDEX(Ranks!$1:$1048576,$A84,AN$1))","v":""},{"$f":"IF($A84=\"N/A\",Ref!$B$36,INDEX(Ranks!$1:$1048576,$A84,AO$1))","v":""},{"$f":"IF($A84=\"N/A\",Ref!$B$36,INDEX(Ranks!$1:$1048576,$A84,AP$1))","v":""},{"$f":"IF($A84=\"N/A\",Ref!$B$36,INDEX(Ranks!$1:$1048576,$A84,AQ$1))","v":""},{"$f":"IF($A84=\"N/A\",Ref!$B$36,INDEX(Ranks!$1:$1048576,$A84,AR$1))","v":""},{"$f":"IF($A84=\"N/A\",Ref!$B$36,INDEX(Ranks!$1:$1048576,$A84,AS$1))","v":""},{"$f":"IF($A84=\"N/A\",Ref!$B$36,INDEX(Ranks!$1:$1048576,$A84,AT$1))","v":""},{"$f":"IF($A84=\"N/A\",Ref!$B$36,INDEX(Ranks!$1:$1048576,$A84,AU$1))","v":""},{"$f":"IF($A84=\"N/A\",Ref!$B$36,INDEX(Ranks!$1:$1048576,$A84,AV$1))","v":""},{"$f":"IF($A84=\"N/A\",Ref!$B$36,INDEX(Ranks!$1:$1048576,$A84,AW$1))","v":""},{"$f":"IF($A84=\"N/A\",Ref!$B$36,INDEX(Ranks!$1:$1048576,$A84,AX$1))","v":""},{"$f":"IF($A84=\"N/A\",Ref!$B$36,INDEX(Ranks!$1:$1048576,$A84,AY$1))","v":""},{"$f":"IF($A84=\"N/A\",Ref!$B$36,INDEX(Ranks!$1:$1048576,$A84,AZ$1))","v":""},{"$f":"IF($A84=\"N/A\",Ref!$B$36,INDEX(Ranks!$1:$1048576,$A84,BA$1))","v":""},{"$f":"IF($A84=\"N/A\",Ref!$B$36,INDEX(Ranks!$1:$1048576,$A84,BB$1))","v":""},{"$f":"IF($A84=\"N/A\",Ref!$B$36,INDEX(Ranks!$1:$1048576,$A84,BC$1))","v":""},{"$f":"IF($A84=\"N/A\",Ref!$B$36,INDEX(Ranks!$1:$1048576,$A84,BD$1))","v":""},{"$f":"IF($A84=\"N/A\",Ref!$B$36,INDEX(Ranks!$1:$1048576,$A84,BE$1))","v":""},{"$f":"IF($A84=\"N/A\",Ref!$B$36,INDEX(Ranks!$1:$1048576,$A84,BF$1))","v":""},{"$f":"IF($A84=\"N/A\",Ref!$B$36,INDEX(Ranks!$1:$1048576,$A84,BG$1))","v":""},{"$f":"IF($A84=\"N/A\",Ref!$B$36,INDEX(Ranks!$1:$1048576,$A84,BH$1))","v":""},{"$f":"IF($A84=\"N/A\",Ref!$B$36,INDEX(Ranks!$1:$1048576,$A84,BI$1))","v":""},{"$f":"IF($A84=\"N/A\",Ref!$B$36,INDEX(Ranks!$1:$1048576,$A84,BJ$1))","v":""},{"$f":"IF($A84=\"N/A\",Ref!$B$36,INDEX(Ranks!$1:$1048576,$A84,BK$1))","v":""},{"$f":"IF($A84=\"N/A\",Ref!$B$36,INDEX(Ranks!$1:$1048576,$A84,BL$1))","v":""},{"$f":"IF($A84=\"N/A\",Ref!$B$36,INDEX(Ranks!$1:$1048576,$A84,BM$1))","v":""},{"$f":"IF($A84=\"N/A\",Ref!$B$36,INDEX(Ranks!$1:$1048576,$A84,BN$1))","v":""},{"$f":"IF($A84=\"N/A\",Ref!$B$36,INDEX(Ranks!$1:$1048576,$A84,BO$1))","v":""},{"$f":"IF($A84=\"N/A\",Ref!$B$36,INDEX(Ranks!$1:$1048576,$A84,BP$1))","v":""},{"$f":"IF($A84=\"N/A\",Ref!$B$36,INDEX(Ranks!$1:$1048576,$A84,BQ$1))","v":""},{"$f":"IF($A84=\"N/A\",Ref!$B$36,INDEX(Ranks!$1:$1048576,$A84,BR$1))","v":""},{"$f":"IF($A84=\"N/A\",Ref!$B$36,INDEX(Ranks!$1:$1048576,$A84,BS$1))","v":""},{"$f":"IF($A84=\"N/A\",Ref!$B$36,INDEX(Ranks!$1:$1048576,$A84,BT$1))","v":""},{"$f":"IF($A84=\"N/A\",Ref!$B$36,INDEX(Ranks!$1:$1048576,$A84,BU$1))","v":""},{"$f":"IF($A84=\"N/A\",Ref!$B$36,INDEX(Ranks!$1:$1048576,$A84,BV$1))","v":""},{"$f":"IF($A84=\"N/A\",Ref!$B$36,INDEX(Ranks!$1:$1048576,$A84,BW$1))","v":""},{"$f":"IF($A84=\"N/A\",Ref!$B$36,INDEX(Ranks!$1:$1048576,$A84,BX$1))","v":""},{"$f":"IF($A84=\"N/A\",Ref!$B$36,INDEX(Ranks!$1:$1048576,$A84,BY$1))","v":""},{"$f":"IF($A84=\"N/A\",Ref!$B$36,INDEX(Ranks!$1:$1048576,$A84,BZ$1))","v":""},{"$f":"IF($A84=\"N/A\",Ref!$B$36,INDEX(Ranks!$1:$1048576,$A84,CA$1))","v":""},{"$f":"IF($A84=\"N/A\",Ref!$B$36,INDEX(Ranks!$1:$1048576,$A84,CB$1))","v":""},{"$f":"IF($A84=\"N/A\",Ref!$B$36,INDEX(Ranks!$1:$1048576,$A84,CC$1))","v":""},{"$f":"IF($A84=\"N/A\",Ref!$B$36,INDEX(Ranks!$1:$1048576,$A84,CD$1))","v":""},{"$f":"IF($A84=\"N/A\",Ref!$B$36,INDEX(Ranks!$1:$1048576,$A84,CE$1))","v":""},{"$f":"IF($A84=\"N/A\",Ref!$B$36,INDEX(Ranks!$1:$1048576,$A84,CF$1))","v":""},{"$f":"IF($A84=\"N/A\",Ref!$B$36,INDEX(Ranks!$1:$1048576,$A84,CG$1))","v":""},{"$f":"IF($A84=\"N/A\",Ref!$B$36,INDEX(Ranks!$1:$1048576,$A84,CH$1))","v":""},{"$f":"IF($A84=\"N/A\",Ref!$B$36,INDEX(Ranks!$1:$1048576,$A84,CI$1))","v":""},{"$f":"IF($A84=\"N/A\",Ref!$B$36,INDEX(Ranks!$1:$1048576,$A84,CJ$1))","v":""},{"$f":"IF($A84=\"N/A\",Ref!$B$36,INDEX(Ranks!$1:$1048576,$A84,CK$1))","v":""},{"$f":"IF($A84=\"N/A\",Ref!$B$36,INDEX(Ranks!$1:$1048576,$A84,CL$1))","v":""},{"$f":"IF($A84=\"N/A\",Ref!$B$36,INDEX(Ranks!$1:$1048576,$A84,CM$1))","v":""},{"$f":"IF($A84=\"N/A\",Ref!$B$36,INDEX(Ranks!$1:$1048576,$A84,CN$1))","v":""},{"$f":"IF($A84=\"N/A\",Ref!$B$36,INDEX(Ranks!$1:$1048576,$A84,CO$1))","v":""},{"$f":"IF($A84=\"N/A\",Ref!$B$36,INDEX(Ranks!$1:$1048576,$A84,CP$1))","v":""},{"$f":"IF($A84=\"N/A\",Ref!$B$36,INDEX(Ranks!$1:$1048576,$A84,CQ$1))","v":""},{"$f":"IF($A84=\"N/A\",Ref!$B$36,INDEX(Ranks!$1:$1048576,$A84,CR$1))","v":""},{"$f":"IF($A84=\"N/A\",Ref!$B$36,INDEX(Ranks!$1:$1048576,$A84,CS$1))","v":""},{"$f":"IF($A84=\"N/A\",Ref!$B$36,INDEX(Ranks!$1:$1048576,$A84,CT$1))","v":""},{"$f":"IF($A84=\"N/A\",Ref!$B$36,INDEX(Ranks!$1:$1048576,$A84,CU$1))","v":""},{"$f":"IF($A84=\"N/A\",Ref!$B$36,INDEX(Ranks!$1:$1048576,$A84,CV$1))","v":""},{"$f":"IF($A84=\"N/A\",Ref!$B$36,INDEX(Ranks!$1:$1048576,$A84,CW$1))","v":""},{"$f":"IF($A84=\"N/A\",Ref!$B$36,INDEX(Ranks!$1:$1048576,$A84,CX$1))","v":""},{"$f":"IF($A84=\"N/A\",Ref!$B$36,INDEX(Ranks!$1:$1048576,$A84,CY$1))","v":""},{"$f":"IF($A84=\"N/A\",Ref!$B$36,INDEX(Ranks!$1:$1048576,$A84,CZ$1))","v":""},{"$f":"IF($A84=\"N/A\",Ref!$B$36,INDEX(Ranks!$1:$1048576,$A84,DA$1))","v":""},{"$f":"IF($A84=\"N/A\",Ref!$B$36,INDEX(Ranks!$1:$1048576,$A84,DB$1))","v":""},{"$f":"IF($A84=\"N/A\",Ref!$B$36,INDEX(Ranks!$1:$1048576,$A84,DC$1))","v":""},{"$f":"IF($A84=\"N/A\",Ref!$B$36,INDEX(Ranks!$1:$1048576,$A84,DD$1))","v":""},{"$f":"IF($A84=\"N/A\",Ref!$B$36,INDEX(Ranks!$1:$1048576,$A84,DE$1))","v":""},{"$f":"IF($A84=\"N/A\",Ref!$B$36,INDEX(Ranks!$1:$1048576,$A84,DF$1))","v":""},{"$f":"IF($A84=\"N/A\",Ref!$B$36,INDEX(Ranks!$1:$1048576,$A84,DG$1))","v":""},{"$f":"IF($A84=\"N/A\",Ref!$B$36,INDEX(Ranks!$1:$1048576,$A84,DH$1))","v":""},{"$f":"IF($A84=\"N/A\",Ref!$B$36,INDEX(Ranks!$1:$1048576,$A84,DI$1))","v":""},{"$f":"IF($A84=\"N/A\",Ref!$B$36,INDEX(Ranks!$1:$1048576,$A84,DJ$1))","v":""},{"$f":"IF($A84=\"N/A\",Ref!$B$36,INDEX(Ranks!$1:$1048576,$A84,DK$1))","v":""},{"$f":"IF($A84=\"N/A\",Ref!$B$36,INDEX(Ranks!$1:$1048576,$A84,DL$1))","v":""},{"$f":"IF($A84=\"N/A\",Ref!$B$36,INDEX(Ranks!$1:$1048576,$A84,DM$1))","v":""},{"$f":"IF($A84=\"N/A\",Ref!$B$36,INDEX(Ranks!$1:$1048576,$A84,DN$1))","v":""},{"$f":"IF($A84=\"N/A\",Ref!$B$36,INDEX(Ranks!$1:$1048576,$A84,DO$1))","v":""},{"$f":"IF($A84=\"N/A\",Ref!$B$36,INDEX(Ranks!$1:$1048576,$A84,DP$1))","v":""},{"$f":"IF($A84=\"N/A\",Ref!$B$36,INDEX(Ranks!$1:$1048576,$A84,DQ$1))","v":""},{"$f":"IF($A84=\"N/A\",Ref!$B$36,INDEX(Ranks!$1:$1048576,$A84,DR$1))","v":""},{"$f":"IF($A84=\"N/A\",Ref!$B$36,INDEX(Ranks!$1:$1048576,$A84,DS$1))","v":""},{"$f":"IF($A84=\"N/A\",Ref!$B$36,INDEX(Ranks!$1:$1048576,$A84,DT$1))","v":""},{"$f":"IF($A84=\"N/A\",Ref!$B$36,INDEX(Ranks!$1:$1048576,$A84,DU$1))","v":""},{"$f":"IF($A84=\"N/A\",Ref!$B$36,INDEX(Ranks!$1:$1048576,$A84,DV$1))","v":""},{"$f":"IF($A84=\"N/A\",Ref!$B$36,INDEX(Ranks!$1:$1048576,$A84,DW$1))","v":""},{"$f":"IF($A84=\"N/A\",Ref!$B$36,INDEX(Ranks!$1:$1048576,$A84,DX$1))","v":""},{"$f":"IF($A84=\"N/A\",Ref!$B$36,INDEX(Ranks!$1:$1048576,$A84,DY$1))","v":""},{"$f":"IF($A84=\"N/A\",Ref!$B$36,INDEX(Ranks!$1:$1048576,$A84,DZ$1))","v":""},{"$f":"IF($A84=\"N/A\",Ref!$B$36,INDEX(Ranks!$1:$1048576,$A84,EA$1))","v":""},{"$f":"IF($A84=\"N/A\",Ref!$B$36,INDEX(Ranks!$1:$1048576,$A84,EB$1))","v":""}]
[{"$f":"IFERROR(MATCH('Portfolio Page'!L85,Ranks!L:L,0),\"N/A\")","v":"N/A"},null,{"$f":"IF($A85=\"N/A\",\"\",INDEX(Ranks!$1:$1048576,$A85,C$1))","v":""},{"$f":"IF($A85=\"N/A\",Ref!$B$36,INDEX(Ranks!$1:$1048576,$A85,D$1))","v":""},{"$f":"IF($A85=\"N/A\",Ref!$B$36,INDEX(Ranks!$1:$1048576,$A85,E$1))","v":""},{"$f":"IF($A85=\"N/A\",\"\",INDEX(Ranks!$1:$1048576,$A85,F$1))","v":""},{"$f":"IF($A85=\"N/A\",\"\",INDEX(Ranks!$1:$1048576,$A85,G$1))","v":""},{"$f":"IF($A85=\"N/A\",\"\",INDEX(Ranks!$1:$1048576,$A85,H$1))","v":""},{"$f":"IF($A85=\"N/A\",\"\",INDEX(Ranks!$1:$1048576,$A85,I$1))","v":""},{"$f":"IF($A85=\"N/A\",\"\",INDEX(Ranks!$1:$1048576,$A85,J$1))","v":""},{"$f":"IF($A85=\"N/A\",\"\",INDEX(Ranks!$1:$1048576,$A85,K$1))","v":""},null,{"$f":"IF($A85=\"N/A\",Ref!$B$36,INDEX(Ranks!$1:$1048576,$A85,M$1))","v":""},{"$f":"IF($A85=\"N/A\",Ref!$B$36,INDEX(Ranks!$1:$1048576,$A85,N$1))","v":""},{"$f":"IF($A85=\"N/A\",Ref!$B$36,INDEX(Ranks!$1:$1048576,$A85,O$1))","v":""},{"$f":"IF($A85=\"N/A\",Ref!$B$36,INDEX(Ranks!$1:$1048576,$A85,P$1))","v":""},{"$f":"IF($A85=\"N/A\",Ref!$B$36,INDEX(Ranks!$1:$1048576,$A85,Q$1))","v":""},{"$f":"IF($A85=\"N/A\",Ref!$B$36,INDEX(Ranks!$1:$1048576,$A85,R$1))","v":""},{"$f":"IF($A85=\"N/A\",Ref!$B$36,INDEX(Ranks!$1:$1048576,$A85,S$1))","v":""},{"$f":"IF($A85=\"N/A\",Ref!$B$36,INDEX(Ranks!$1:$1048576,$A85,T$1))","v":""},{"$f":"IF($A85=\"N/A\",Ref!$B$36,INDEX(Ranks!$1:$1048576,$A85,U$1))","v":""},{"$f":"IF($A85=\"N/A\",Ref!$B$36,INDEX(Ranks!$1:$1048576,$A85,V$1))","v":""},{"$f":"IF($A85=\"N/A\",Ref!$B$36,INDEX(Ranks!$1:$1048576,$A85,W$1))","v":""},{"$f":"IF($A85=\"N/A\",Ref!$B$36,INDEX(Ranks!$1:$1048576,$A85,X$1))","v":""},{"$f":"IF($A85=\"N/A\",Ref!$B$36,INDEX(Ranks!$1:$1048576,$A85,Y$1))","v":""},{"$f":"IF($A85=\"N/A\",Ref!$B$36,INDEX(Ranks!$1:$1048576,$A85,Z$1))","v":""},{"$f":"IF($A85=\"N/A\",Ref!$B$36,INDEX(Ranks!$1:$1048576,$A85,AA$1))","v":""},{"$f":"IF($A85=\"N/A\",Ref!$B$36,INDEX(Ranks!$1:$1048576,$A85,AB$1))","v":""},{"$f":"IF($A85=\"N/A\",Ref!$B$36,INDEX(Ranks!$1:$1048576,$A85,AC$1))","v":""},{"$f":"IF($A85=\"N/A\",Ref!$B$36,INDEX(Ranks!$1:$1048576,$A85,AD$1))","v":""},{"$f":"IF($A85=\"N/A\",Ref!$B$36,INDEX(Ranks!$1:$1048576,$A85,AE$1))","v":""},{"$f":"IF($A85=\"N/A\",Ref!$B$36,INDEX(Ranks!$1:$1048576,$A85,AF$1))","v":""},{"$f":"IF($A85=\"N/A\",Ref!$B$36,INDEX(Ranks!$1:$1048576,$A85,AG$1))","v":""},{"$f":"IF($A85=\"N/A\",Ref!$B$36,INDEX(Ranks!$1:$1048576,$A85,AH$1))","v":""},{"$f":"IF($A85=\"N/A\",Ref!$B$36,INDEX(Ranks!$1:$1048576,$A85,AI$1))","v":""},{"$f":"IF($A85=\"N/A\",Ref!$B$36,INDEX(Ranks!$1:$1048576,$A85,AJ$1))","v":""},{"$f":"IF($A85=\"N/A\",Ref!$B$36,INDEX(Ranks!$1:$1048576,$A85,AK$1))","v":""},{"$f":"IF($A85=\"N/A\",Ref!$B$36,INDEX(Ranks!$1:$1048576,$A85,AL$1))","v":""},{"$f":"IF($A85=\"N/A\",Ref!$B$36,INDEX(Ranks!$1:$1048576,$A85,AM$1))","v":""},{"$f":"IF($A85=\"N/A\",Ref!$B$36,INDEX(Ranks!$1:$1048576,$A85,AN$1))","v":""},{"$f":"IF($A85=\"N/A\",Ref!$B$36,INDEX(Ranks!$1:$1048576,$A85,AO$1))","v":""},{"$f":"IF($A85=\"N/A\",Ref!$B$36,INDEX(Ranks!$1:$1048576,$A85,AP$1))","v":""},{"$f":"IF($A85=\"N/A\",Ref!$B$36,INDEX(Ranks!$1:$1048576,$A85,AQ$1))","v":""},{"$f":"IF($A85=\"N/A\",Ref!$B$36,INDEX(Ranks!$1:$1048576,$A85,AR$1))","v":""},{"$f":"IF($A85=\"N/A\",Ref!$B$36,INDEX(Ranks!$1:$1048576,$A85,AS$1))","v":""},{"$f":"IF($A85=\"N/A\",Ref!$B$36,INDEX(Ranks!$1:$1048576,$A85,AT$1))","v":""},{"$f":"IF($A85=\"N/A\",Ref!$B$36,INDEX(Ranks!$1:$1048576,$A85,AU$1))","v":""},{"$f":"IF($A85=\"N/A\",Ref!$B$36,INDEX(Ranks!$1:$1048576,$A85,AV$1))","v":""},{"$f":"IF($A85=\"N/A\",Ref!$B$36,INDEX(Ranks!$1:$1048576,$A85,AW$1))","v":""},{"$f":"IF($A85=\"N/A\",Ref!$B$36,INDEX(Ranks!$1:$1048576,$A85,AX$1))","v":""},{"$f":"IF($A85=\"N/A\",Ref!$B$36,INDEX(Ranks!$1:$1048576,$A85,AY$1))","v":""},{"$f":"IF($A85=\"N/A\",Ref!$B$36,INDEX(Ranks!$1:$1048576,$A85,AZ$1))","v":""},{"$f":"IF($A85=\"N/A\",Ref!$B$36,INDEX(Ranks!$1:$1048576,$A85,BA$1))","v":""},{"$f":"IF($A85=\"N/A\",Ref!$B$36,INDEX(Ranks!$1:$1048576,$A85,BB$1))","v":""},{"$f":"IF($A85=\"N/A\",Ref!$B$36,INDEX(Ranks!$1:$1048576,$A85,BC$1))","v":""},{"$f":"IF($A85=\"N/A\",Ref!$B$36,INDEX(Ranks!$1:$1048576,$A85,BD$1))","v":""},{"$f":"IF($A85=\"N/A\",Ref!$B$36,INDEX(Ranks!$1:$1048576,$A85,BE$1))","v":""},{"$f":"IF($A85=\"N/A\",Ref!$B$36,INDEX(Ranks!$1:$1048576,$A85,BF$1))","v":""},{"$f":"IF($A85=\"N/A\",Ref!$B$36,INDEX(Ranks!$1:$1048576,$A85,BG$1))","v":""},{"$f":"IF($A85=\"N/A\",Ref!$B$36,INDEX(Ranks!$1:$1048576,$A85,BH$1))","v":""},{"$f":"IF($A85=\"N/A\",Ref!$B$36,INDEX(Ranks!$1:$1048576,$A85,BI$1))","v":""},{"$f":"IF($A85=\"N/A\",Ref!$B$36,INDEX(Ranks!$1:$1048576,$A85,BJ$1))","v":""},{"$f":"IF($A85=\"N/A\",Ref!$B$36,INDEX(Ranks!$1:$1048576,$A85,BK$1))","v":""},{"$f":"IF($A85=\"N/A\",Ref!$B$36,INDEX(Ranks!$1:$1048576,$A85,BL$1))","v":""},{"$f":"IF($A85=\"N/A\",Ref!$B$36,INDEX(Ranks!$1:$1048576,$A85,BM$1))","v":""},{"$f":"IF($A85=\"N/A\",Ref!$B$36,INDEX(Ranks!$1:$1048576,$A85,BN$1))","v":""},{"$f":"IF($A85=\"N/A\",Ref!$B$36,INDEX(Ranks!$1:$1048576,$A85,BO$1))","v":""},{"$f":"IF($A85=\"N/A\",Ref!$B$36,INDEX(Ranks!$1:$1048576,$A85,BP$1))","v":""},{"$f":"IF($A85=\"N/A\",Ref!$B$36,INDEX(Ranks!$1:$1048576,$A85,BQ$1))","v":""},{"$f":"IF($A85=\"N/A\",Ref!$B$36,INDEX(Ranks!$1:$1048576,$A85,BR$1))","v":""},{"$f":"IF($A85=\"N/A\",Ref!$B$36,INDEX(Ranks!$1:$1048576,$A85,BS$1))","v":""},{"$f":"IF($A85=\"N/A\",Ref!$B$36,INDEX(Ranks!$1:$1048576,$A85,BT$1))","v":""},{"$f":"IF($A85=\"N/A\",Ref!$B$36,INDEX(Ranks!$1:$1048576,$A85,BU$1))","v":""},{"$f":"IF($A85=\"N/A\",Ref!$B$36,INDEX(Ranks!$1:$1048576,$A85,BV$1))","v":""},{"$f":"IF($A85=\"N/A\",Ref!$B$36,INDEX(Ranks!$1:$1048576,$A85,BW$1))","v":""},{"$f":"IF($A85=\"N/A\",Ref!$B$36,INDEX(Ranks!$1:$1048576,$A85,BX$1))","v":""},{"$f":"IF($A85=\"N/A\",Ref!$B$36,INDEX(Ranks!$1:$1048576,$A85,BY$1))","v":""},{"$f":"IF($A85=\"N/A\",Ref!$B$36,INDEX(Ranks!$1:$1048576,$A85,BZ$1))","v":""},{"$f":"IF($A85=\"N/A\",Ref!$B$36,INDEX(Ranks!$1:$1048576,$A85,CA$1))","v":""},{"$f":"IF($A85=\"N/A\",Ref!$B$36,INDEX(Ranks!$1:$1048576,$A85,CB$1))","v":""},{"$f":"IF($A85=\"N/A\",Ref!$B$36,INDEX(Ranks!$1:$1048576,$A85,CC$1))","v":""},{"$f":"IF($A85=\"N/A\",Ref!$B$36,INDEX(Ranks!$1:$1048576,$A85,CD$1))","v":""},{"$f":"IF($A85=\"N/A\",Ref!$B$36,INDEX(Ranks!$1:$1048576,$A85,CE$1))","v":""},{"$f":"IF($A85=\"N/A\",Ref!$B$36,INDEX(Ranks!$1:$1048576,$A85,CF$1))","v":""},{"$f":"IF($A85=\"N/A\",Ref!$B$36,INDEX(Ranks!$1:$1048576,$A85,CG$1))","v":""},{"$f":"IF($A85=\"N/A\",Ref!$B$36,INDEX(Ranks!$1:$1048576,$A85,CH$1))","v":""},{"$f":"IF($A85=\"N/A\",Ref!$B$36,INDEX(Ranks!$1:$1048576,$A85,CI$1))","v":""},{"$f":"IF($A85=\"N/A\",Ref!$B$36,INDEX(Ranks!$1:$1048576,$A85,CJ$1))","v":""},{"$f":"IF($A85=\"N/A\",Ref!$B$36,INDEX(Ranks!$1:$1048576,$A85,CK$1))","v":""},{"$f":"IF($A85=\"N/A\",Ref!$B$36,INDEX(Ranks!$1:$1048576,$A85,CL$1))","v":""},{"$f":"IF($A85=\"N/A\",Ref!$B$36,INDEX(Ranks!$1:$1048576,$A85,CM$1))","v":""},{"$f":"IF($A85=\"N/A\",Ref!$B$36,INDEX(Ranks!$1:$1048576,$A85,CN$1))","v":""},{"$f":"IF($A85=\"N/A\",Ref!$B$36,INDEX(Ranks!$1:$1048576,$A85,CO$1))","v":""},{"$f":"IF($A85=\"N/A\",Ref!$B$36,INDEX(Ranks!$1:$1048576,$A85,CP$1))","v":""},{"$f":"IF($A85=\"N/A\",Ref!$B$36,INDEX(Ranks!$1:$1048576,$A85,CQ$1))","v":""},{"$f":"IF($A85=\"N/A\",Ref!$B$36,INDEX(Ranks!$1:$1048576,$A85,CR$1))","v":""},{"$f":"IF($A85=\"N/A\",Ref!$B$36,INDEX(Ranks!$1:$1048576,$A85,CS$1))","v":""},{"$f":"IF($A85=\"N/A\",Ref!$B$36,INDEX(Ranks!$1:$1048576,$A85,CT$1))","v":""},{"$f":"IF($A85=\"N/A\",Ref!$B$36,INDEX(Ranks!$1:$1048576,$A85,CU$1))","v":""},{"$f":"IF($A85=\"N/A\",Ref!$B$36,INDEX(Ranks!$1:$1048576,$A85,CV$1))","v":""},{"$f":"IF($A85=\"N/A\",Ref!$B$36,INDEX(Ranks!$1:$1048576,$A85,CW$1))","v":""},{"$f":"IF($A85=\"N/A\",Ref!$B$36,INDEX(Ranks!$1:$1048576,$A85,CX$1))","v":""},{"$f":"IF($A85=\"N/A\",Ref!$B$36,INDEX(Ranks!$1:$1048576,$A85,CY$1))","v":""},{"$f":"IF($A85=\"N/A\",Ref!$B$36,INDEX(Ranks!$1:$1048576,$A85,CZ$1))","v":""},{"$f":"IF($A85=\"N/A\",Ref!$B$36,INDEX(Ranks!$1:$1048576,$A85,DA$1))","v":""},{"$f":"IF($A85=\"N/A\",Ref!$B$36,INDEX(Ranks!$1:$1048576,$A85,DB$1))","v":""},{"$f":"IF($A85=\"N/A\",Ref!$B$36,INDEX(Ranks!$1:$1048576,$A85,DC$1))","v":""},{"$f":"IF($A85=\"N/A\",Ref!$B$36,INDEX(Ranks!$1:$1048576,$A85,DD$1))","v":""},{"$f":"IF($A85=\"N/A\",Ref!$B$36,INDEX(Ranks!$1:$1048576,$A85,DE$1))","v":""},{"$f":"IF($A85=\"N/A\",Ref!$B$36,INDEX(Ranks!$1:$1048576,$A85,DF$1))","v":""},{"$f":"IF($A85=\"N/A\",Ref!$B$36,INDEX(Ranks!$1:$1048576,$A85,DG$1))","v":""},{"$f":"IF($A85=\"N/A\",Ref!$B$36,INDEX(Ranks!$1:$1048576,$A85,DH$1))","v":""},{"$f":"IF($A85=\"N/A\",Ref!$B$36,INDEX(Ranks!$1:$1048576,$A85,DI$1))","v":""},{"$f":"IF($A85=\"N/A\",Ref!$B$36,INDEX(Ranks!$1:$1048576,$A85,DJ$1))","v":""},{"$f":"IF($A85=\"N/A\",Ref!$B$36,INDEX(Ranks!$1:$1048576,$A85,DK$1))","v":""},{"$f":"IF($A85=\"N/A\",Ref!$B$36,INDEX(Ranks!$1:$1048576,$A85,DL$1))","v":""},{"$f":"IF($A85=\"N/A\",Ref!$B$36,INDEX(Ranks!$1:$1048576,$A85,DM$1))","v":""},{"$f":"IF($A85=\"N/A\",Ref!$B$36,INDEX(Ranks!$1:$1048576,$A85,DN$1))","v":""},{"$f":"IF($A85=\"N/A\",Ref!$B$36,INDEX(Ranks!$1:$1048576,$A85,DO$1))","v":""},{"$f":"IF($A85=\"N/A\",Ref!$B$36,INDEX(Ranks!$1:$1048576,$A85,DP$1))","v":""},{"$f":"IF($A85=\"N/A\",Ref!$B$36,INDEX(Ranks!$1:$1048576,$A85,DQ$1))","v":""},{"$f":"IF($A85=\"N/A\",Ref!$B$36,INDEX(Ranks!$1:$1048576,$A85,DR$1))","v":""},{"$f":"IF($A85=\"N/A\",Ref!$B$36,INDEX(Ranks!$1:$1048576,$A85,DS$1))","v":""},{"$f":"IF($A85=\"N/A\",Ref!$B$36,INDEX(Ranks!$1:$1048576,$A85,DT$1))","v":""},{"$f":"IF($A85=\"N/A\",Ref!$B$36,INDEX(Ranks!$1:$1048576,$A85,DU$1))","v":""},{"$f":"IF($A85=\"N/A\",Ref!$B$36,INDEX(Ranks!$1:$1048576,$A85,DV$1))","v":""},{"$f":"IF($A85=\"N/A\",Ref!$B$36,INDEX(Ranks!$1:$1048576,$A85,DW$1))","v":""},{"$f":"IF($A85=\"N/A\",Ref!$B$36,INDEX(Ranks!$1:$1048576,$A85,DX$1))","v":""},{"$f":"IF($A85=\"N/A\",Ref!$B$36,INDEX(Ranks!$1:$1048576,$A85,DY$1))","v":""},{"$f":"IF($A85=\"N/A\",Ref!$B$36,INDEX(Ranks!$1:$1048576,$A85,DZ$1))","v":""},{"$f":"IF($A85=\"N/A\",Ref!$B$36,INDEX(Ranks!$1:$1048576,$A85,EA$1))","v":""},{"$f":"IF($A85=\"N/A\",Ref!$B$36,INDEX(Ranks!$1:$1048576,$A85,EB$1))","v":""}]
[{"$f":"IFERROR(MATCH('Portfolio Page'!L86,Ranks!L:L,0),\"N/A\")","v":"N/A"},null,{"$f":"IF($A86=\"N/A\",\"\",INDEX(Ranks!$1:$1048576,$A86,C$1))","v":""},{"$f":"IF($A86=\"N/A\",Ref!$B$36,INDEX(Ranks!$1:$1048576,$A86,D$1))","v":""},{"$f":"IF($A86=\"N/A\",Ref!$B$36,INDEX(Ranks!$1:$1048576,$A86,E$1))","v":""},{"$f":"IF($A86=\"N/A\",\"\",INDEX(Ranks!$1:$1048576,$A86,F$1))","v":""},{"$f":"IF($A86=\"N/A\",\"\",INDEX(Ranks!$1:$1048576,$A86,G$1))","v":""},{"$f":"IF($A86=\"N/A\",\"\",INDEX(Ranks!$1:$1048576,$A86,H$1))","v":""},{"$f":"IF($A86=\"N/A\",\"\",INDEX(Ranks!$1:$1048576,$A86,I$1))","v":""},{"$f":"IF($A86=\"N/A\",\"\",INDEX(Ranks!$1:$1048576,$A86,J$1))","v":""},{"$f":"IF($A86=\"N/A\",\"\",INDEX(Ranks!$1:$1048576,$A86,K$1))","v":""},null,{"$f":"IF($A86=\"N/A\",Ref!$B$36,INDEX(Ranks!$1:$1048576,$A86,M$1))","v":""},{"$f":"IF($A86=\"N/A\",Ref!$B$36,INDEX(Ranks!$1:$1048576,$A86,N$1))","v":""},{"$f":"IF($A86=\"N/A\",Ref!$B$36,INDEX(Ranks!$1:$1048576,$A86,O$1))","v":""},{"$f":"IF($A86=\"N/A\",Ref!$B$36,INDEX(Ranks!$1:$1048576,$A86,P$1))","v":""},{"$f":"IF($A86=\"N/A\",Ref!$B$36,INDEX(Ranks!$1:$1048576,$A86,Q$1))","v":""},{"$f":"IF($A86=\"N/A\",Ref!$B$36,INDEX(Ranks!$1:$1048576,$A86,R$1))","v":""},{"$f":"IF($A86=\"N/A\",Ref!$B$36,INDEX(Ranks!$1:$1048576,$A86,S$1))","v":""},{"$f":"IF($A86=\"N/A\",Ref!$B$36,INDEX(Ranks!$1:$1048576,$A86,T$1))","v":""},{"$f":"IF($A86=\"N/A\",Ref!$B$36,INDEX(Ranks!$1:$1048576,$A86,U$1))","v":""},{"$f":"IF($A86=\"N/A\",Ref!$B$36,INDEX(Ranks!$1:$1048576,$A86,V$1))","v":""},{"$f":"IF($A86=\"N/A\",Ref!$B$36,INDEX(Ranks!$1:$1048576,$A86,W$1))","v":""},{"$f":"IF($A86=\"N/A\",Ref!$B$36,INDEX(Ranks!$1:$1048576,$A86,X$1))","v":""},{"$f":"IF($A86=\"N/A\",Ref!$B$36,INDEX(Ranks!$1:$1048576,$A86,Y$1))","v":""},{"$f":"IF($A86=\"N/A\",Ref!$B$36,INDEX(Ranks!$1:$1048576,$A86,Z$1))","v":""},{"$f":"IF($A86=\"N/A\",Ref!$B$36,INDEX(Ranks!$1:$1048576,$A86,AA$1))","v":""},{"$f":"IF($A86=\"N/A\",Ref!$B$36,INDEX(Ranks!$1:$1048576,$A86,AB$1))","v":""},{"$f":"IF($A86=\"N/A\",Ref!$B$36,INDEX(Ranks!$1:$1048576,$A86,AC$1))","v":""},{"$f":"IF($A86=\"N/A\",Ref!$B$36,INDEX(Ranks!$1:$1048576,$A86,AD$1))","v":""},{"$f":"IF($A86=\"N/A\",Ref!$B$36,INDEX(Ranks!$1:$1048576,$A86,AE$1))","v":""},{"$f":"IF($A86=\"N/A\",Ref!$B$36,INDEX(Ranks!$1:$1048576,$A86,AF$1))","v":""},{"$f":"IF($A86=\"N/A\",Ref!$B$36,INDEX(Ranks!$1:$1048576,$A86,AG$1))","v":""},{"$f":"IF($A86=\"N/A\",Ref!$B$36,INDEX(Ranks!$1:$1048576,$A86,AH$1))","v":""},{"$f":"IF($A86=\"N/A\",Ref!$B$36,INDEX(Ranks!$1:$1048576,$A86,AI$1))","v":""},{"$f":"IF($A86=\"N/A\",Ref!$B$36,INDEX(Ranks!$1:$1048576,$A86,AJ$1))","v":""},{"$f":"IF($A86=\"N/A\",Ref!$B$36,INDEX(Ranks!$1:$1048576,$A86,AK$1))","v":""},{"$f":"IF($A86=\"N/A\",Ref!$B$36,INDEX(Ranks!$1:$1048576,$A86,AL$1))","v":""},{"$f":"IF($A86=\"N/A\",Ref!$B$36,INDEX(Ranks!$1:$1048576,$A86,AM$1))","v":""},{"$f":"IF($A86=\"N/A\",Ref!$B$36,INDEX(Ranks!$1:$1048576,$A86,AN$1))","v":""},{"$f":"IF($A86=\"N/A\",Ref!$B$36,INDEX(Ranks!$1:$1048576,$A86,AO$1))","v":""},{"$f":"IF($A86=\"N/A\",Ref!$B$36,INDEX(Ranks!$1:$1048576,$A86,AP$1))","v":""},{"$f":"IF($A86=\"N/A\",Ref!$B$36,INDEX(Ranks!$1:$1048576,$A86,AQ$1))","v":""},{"$f":"IF($A86=\"N/A\",Ref!$B$36,INDEX(Ranks!$1:$1048576,$A86,AR$1))","v":""},{"$f":"IF($A86=\"N/A\",Ref!$B$36,INDEX(Ranks!$1:$1048576,$A86,AS$1))","v":""},{"$f":"IF($A86=\"N/A\",Ref!$B$36,INDEX(Ranks!$1:$1048576,$A86,AT$1))","v":""},{"$f":"IF($A86=\"N/A\",Ref!$B$36,INDEX(Ranks!$1:$1048576,$A86,AU$1))","v":""},{"$f":"IF($A86=\"N/A\",Ref!$B$36,INDEX(Ranks!$1:$1048576,$A86,AV$1))","v":""},{"$f":"IF($A86=\"N/A\",Ref!$B$36,INDEX(Ranks!$1:$1048576,$A86,AW$1))","v":""},{"$f":"IF($A86=\"N/A\",Ref!$B$36,INDEX(Ranks!$1:$1048576,$A86,AX$1))","v":""},{"$f":"IF($A86=\"N/A\",Ref!$B$36,INDEX(Ranks!$1:$1048576,$A86,AY$1))","v":""},{"$f":"IF($A86=\"N/A\",Ref!$B$36,INDEX(Ranks!$1:$1048576,$A86,AZ$1))","v":""},{"$f":"IF($A86=\"N/A\",Ref!$B$36,INDEX(Ranks!$1:$1048576,$A86,BA$1))","v":""},{"$f":"IF($A86=\"N/A\",Ref!$B$36,INDEX(Ranks!$1:$1048576,$A86,BB$1))","v":""},{"$f":"IF($A86=\"N/A\",Ref!$B$36,INDEX(Ranks!$1:$1048576,$A86,BC$1))","v":""},{"$f":"IF($A86=\"N/A\",Ref!$B$36,INDEX(Ranks!$1:$1048576,$A86,BD$1))","v":""},{"$f":"IF($A86=\"N/A\",Ref!$B$36,INDEX(Ranks!$1:$1048576,$A86,BE$1))","v":""},{"$f":"IF($A86=\"N/A\",Ref!$B$36,INDEX(Ranks!$1:$1048576,$A86,BF$1))","v":""},{"$f":"IF($A86=\"N/A\",Ref!$B$36,INDEX(Ranks!$1:$1048576,$A86,BG$1))","v":""},{"$f":"IF($A86=\"N/A\",Ref!$B$36,INDEX(Ranks!$1:$1048576,$A86,BH$1))","v":""},{"$f":"IF($A86=\"N/A\",Ref!$B$36,INDEX(Ranks!$1:$1048576,$A86,BI$1))","v":""},{"$f":"IF($A86=\"N/A\",Ref!$B$36,INDEX(Ranks!$1:$1048576,$A86,BJ$1))","v":""},{"$f":"IF($A86=\"N/A\",Ref!$B$36,INDEX(Ranks!$1:$1048576,$A86,BK$1))","v":""},{"$f":"IF($A86=\"N/A\",Ref!$B$36,INDEX(Ranks!$1:$1048576,$A86,BL$1))","v":""},{"$f":"IF($A86=\"N/A\",Ref!$B$36,INDEX(Ranks!$1:$1048576,$A86,BM$1))","v":""},{"$f":"IF($A86=\"N/A\",Ref!$B$36,INDEX(Ranks!$1:$1048576,$A86,BN$1))","v":""},{"$f":"IF($A86=\"N/A\",Ref!$B$36,INDEX(Ranks!$1:$1048576,$A86,BO$1))","v":""},{"$f":"IF($A86=\"N/A\",Ref!$B$36,INDEX(Ranks!$1:$1048576,$A86,BP$1))","v":""},{"$f":"IF($A86=\"N/A\",Ref!$B$36,INDEX(Ranks!$1:$1048576,$A86,BQ$1))","v":""},{"$f":"IF($A86=\"N/A\",Ref!$B$36,INDEX(Ranks!$1:$1048576,$A86,BR$1))","v":""},{"$f":"IF($A86=\"N/A\",Ref!$B$36,INDEX(Ranks!$1:$1048576,$A86,BS$1))","v":""},{"$f":"IF($A86=\"N/A\",Ref!$B$36,INDEX(Ranks!$1:$1048576,$A86,BT$1))","v":""},{"$f":"IF($A86=\"N/A\",Ref!$B$36,INDEX(Ranks!$1:$1048576,$A86,BU$1))","v":""},{"$f":"IF($A86=\"N/A\",Ref!$B$36,INDEX(Ranks!$1:$1048576,$A86,BV$1))","v":""},{"$f":"IF($A86=\"N/A\",Ref!$B$36,INDEX(Ranks!$1:$1048576,$A86,BW$1))","v":""},{"$f":"IF($A86=\"N/A\",Ref!$B$36,INDEX(Ranks!$1:$1048576,$A86,BX$1))","v":""},{"$f":"IF($A86=\"N/A\",Ref!$B$36,INDEX(Ranks!$1:$1048576,$A86,BY$1))","v":""},{"$f":"IF($A86=\"N/A\",Ref!$B$36,INDEX(Ranks!$1:$1048576,$A86,BZ$1))","v":""},{"$f":"IF($A86=\"N/A\",Ref!$B$36,INDEX(Ranks!$1:$1048576,$A86,CA$1))","v":""},{"$f":"IF($A86=\"N/A\",Ref!$B$36,INDEX(Ranks!$1:$1048576,$A86,CB$1))","v":""},{"$f":"IF($A86=\"N/A\",Ref!$B$36,INDEX(Ranks!$1:$1048576,$A86,CC$1))","v":""},{"$f":"IF($A86=\"N/A\",Ref!$B$36,INDEX(Ranks!$1:$1048576,$A86,CD$1))","v":""},{"$f":"IF($A86=\"N/A\",Ref!$B$36,INDEX(Ranks!$1:$1048576,$A86,CE$1))","v":""},{"$f":"IF($A86=\"N/A\",Ref!$B$36,INDEX(Ranks!$1:$1048576,$A86,CF$1))","v":""},{"$f":"IF($A86=\"N/A\",Ref!$B$36,INDEX(Ranks!$1:$1048576,$A86,CG$1))","v":""},{"$f":"IF($A86=\"N/A\",Ref!$B$36,INDEX(Ranks!$1:$1048576,$A86,CH$1))","v":""},{"$f":"IF($A86=\"N/A\",Ref!$B$36,INDEX(Ranks!$1:$1048576,$A86,CI$1))","v":""},{"$f":"IF($A86=\"N/A\",Ref!$B$36,INDEX(Ranks!$1:$1048576,$A86,CJ$1))","v":""},{"$f":"IF($A86=\"N/A\",Ref!$B$36,INDEX(Ranks!$1:$1048576,$A86,CK$1))","v":""},{"$f":"IF($A86=\"N/A\",Ref!$B$36,INDEX(Ranks!$1:$1048576,$A86,CL$1))","v":""},{"$f":"IF($A86=\"N/A\",Ref!$B$36,INDEX(Ranks!$1:$1048576,$A86,CM$1))","v":""},{"$f":"IF($A86=\"N/A\",Ref!$B$36,INDEX(Ranks!$1:$1048576,$A86,CN$1))","v":""},{"$f":"IF($A86=\"N/A\",Ref!$B$36,INDEX(Ranks!$1:$1048576,$A86,CO$1))","v":""},{"$f":"IF($A86=\"N/A\",Ref!$B$36,INDEX(Ranks!$1:$1048576,$A86,CP$1))","v":""},{"$f":"IF($A86=\"N/A\",Ref!$B$36,INDEX(Ranks!$1:$1048576,$A86,CQ$1))","v":""},{"$f":"IF($A86=\"N/A\",Ref!$B$36,INDEX(Ranks!$1:$1048576,$A86,CR$1))","v":""},{"$f":"IF($A86=\"N/A\",Ref!$B$36,INDEX(Ranks!$1:$1048576,$A86,CS$1))","v":""},{"$f":"IF($A86=\"N/A\",Ref!$B$36,INDEX(Ranks!$1:$1048576,$A86,CT$1))","v":""},{"$f":"IF($A86=\"N/A\",Ref!$B$36,INDEX(Ranks!$1:$1048576,$A86,CU$1))","v":""},{"$f":"IF($A86=\"N/A\",Ref!$B$36,INDEX(Ranks!$1:$1048576,$A86,CV$1))","v":""},{"$f":"IF($A86=\"N/A\",Ref!$B$36,INDEX(Ranks!$1:$1048576,$A86,CW$1))","v":""},{"$f":"IF($A86=\"N/A\",Ref!$B$36,INDEX(Ranks!$1:$1048576,$A86,CX$1))","v":""},{"$f":"IF($A86=\"N/A\",Ref!$B$36,INDEX(Ranks!$1:$1048576,$A86,CY$1))","v":""},{"$f":"IF($A86=\"N/A\",Ref!$B$36,INDEX(Ranks!$1:$1048576,$A86,CZ$1))","v":""},{"$f":"IF($A86=\"N/A\",Ref!$B$36,INDEX(Ranks!$1:$1048576,$A86,DA$1))","v":""},{"$f":"IF($A86=\"N/A\",Ref!$B$36,INDEX(Ranks!$1:$1048576,$A86,DB$1))","v":""},{"$f":"IF($A86=\"N/A\",Ref!$B$36,INDEX(Ranks!$1:$1048576,$A86,DC$1))","v":""},{"$f":"IF($A86=\"N/A\",Ref!$B$36,INDEX(Ranks!$1:$1048576,$A86,DD$1))","v":""},{"$f":"IF($A86=\"N/A\",Ref!$B$36,INDEX(Ranks!$1:$1048576,$A86,DE$1))","v":""},{"$f":"IF($A86=\"N/A\",Ref!$B$36,INDEX(Ranks!$1:$1048576,$A86,DF$1))","v":""},{"$f":"IF($A86=\"N/A\",Ref!$B$36,INDEX(Ranks!$1:$1048576,$A86,DG$1))","v":""},{"$f":"IF($A86=\"N/A\",Ref!$B$36,INDEX(Ranks!$1:$1048576,$A86,DH$1))","v":""},{"$f":"IF($A86=\"N/A\",Ref!$B$36,INDEX(Ranks!$1:$1048576,$A86,DI$1))","v":""},{"$f":"IF($A86=\"N/A\",Ref!$B$36,INDEX(Ranks!$1:$1048576,$A86,DJ$1))","v":""},{"$f":"IF($A86=\"N/A\",Ref!$B$36,INDEX(Ranks!$1:$1048576,$A86,DK$1))","v":""},{"$f":"IF($A86=\"N/A\",Ref!$B$36,INDEX(Ranks!$1:$1048576,$A86,DL$1))","v":""},{"$f":"IF($A86=\"N/A\",Ref!$B$36,INDEX(Ranks!$1:$1048576,$A86,DM$1))","v":""},{"$f":"IF($A86=\"N/A\",Ref!$B$36,INDEX(Ranks!$1:$1048576,$A86,DN$1))","v":""},{"$f":"IF($A86=\"N/A\",Ref!$B$36,INDEX(Ranks!$1:$1048576,$A86,DO$1))","v":""},{"$f":"IF($A86=\"N/A\",Ref!$B$36,INDEX(Ranks!$1:$1048576,$A86,DP$1))","v":""},{"$f":"IF($A86=\"N/A\",Ref!$B$36,INDEX(Ranks!$1:$1048576,$A86,DQ$1))","v":""},{"$f":"IF($A86=\"N/A\",Ref!$B$36,INDEX(Ranks!$1:$1048576,$A86,DR$1))","v":""},{"$f":"IF($A86=\"N/A\",Ref!$B$36,INDEX(Ranks!$1:$1048576,$A86,DS$1))","v":""},{"$f":"IF($A86=\"N/A\",Ref!$B$36,INDEX(Ranks!$1:$1048576,$A86,DT$1))","v":""},{"$f":"IF($A86=\"N/A\",Ref!$B$36,INDEX(Ranks!$1:$1048576,$A86,DU$1))","v":""},{"$f":"IF($A86=\"N/A\",Ref!$B$36,INDEX(Ranks!$1:$1048576,$A86,DV$1))","v":""},{"$f":"IF($A86=\"N/A\",Ref!$B$36,INDEX(Ranks!$1:$1048576,$A86,DW$1))","v":""},{"$f":"IF($A86=\"N/A\",Ref!$B$36,INDEX(Ranks!$1:$1048576,$A86,DX$1))","v":""},{"$f":"IF($A86=\"N/A\",Ref!$B$36,INDEX(Ranks!$1:$1048576,$A86,DY$1))","v":""},{"$f":"IF($A86=\"N/A\",Ref!$B$36,INDEX(Ranks!$1:$1048576,$A86,DZ$1))","v":""},{"$f":"IF($A86=\"N/A\",Ref!$B$36,INDEX(Ranks!$1:$1048576,$A86,EA$1))","v":""},{"$f":"IF($A86=\"N/A\",Ref!$B$36,INDEX(Ranks!$1:$1048576,$A86,EB$1))","v":""}]
[{"$f":"IFERROR(MATCH('Portfolio Page'!L87,Ranks!L:L,0),\"N/A\")","v":"N/A"},null,{"$f":"IF($A87=\"N/A\",\"\",INDEX(Ranks!$1:$1048576,$A87,C$1))","v":""},{"$f":"IF($A87=\"N/A\",Ref!$B$36,INDEX(Ranks!$1:$1048576,$A87,D$1))","v":""},{"$f":"IF($A87=\"N/A\",Ref!$B$36,INDEX(Ranks!$1:$1048576,$A87,E$1))","v":""},{"$f":"IF($A87=\"N/A\",\"\",INDEX(Ranks!$1:$1048576,$A87,F$1))","v":""},{"$f":"IF($A87=\"N/A\",\"\",INDEX(Ranks!$1:$1048576,$A87,G$1))","v":""},{"$f":"IF($A87=\"N/A\",\"\",INDEX(Ranks!$1:$1048576,$A87,H$1))","v":""},{"$f":"IF($A87=\"N/A\",\"\",INDEX(Ranks!$1:$1048576,$A87,I$1))","v":""},{"$f":"IF($A87=\"N/A\",\"\",INDEX(Ranks!$1:$1048576,$A87,J$1))","v":""},{"$f":"IF($A87=\"N/A\",\"\",INDEX(Ranks!$1:$1048576,$A87,K$1))","v":""},null,{"$f":"IF($A87=\"N/A\",Ref!$B$36,INDEX(Ranks!$1:$1048576,$A87,M$1))","v":""},{"$f":"IF($A87=\"N/A\",Ref!$B$36,INDEX(Ranks!$1:$1048576,$A87,N$1))","v":""},{"$f":"IF($A87=\"N/A\",Ref!$B$36,INDEX(Ranks!$1:$1048576,$A87,O$1))","v":""},{"$f":"IF($A87=\"N/A\",Ref!$B$36,INDEX(Ranks!$1:$1048576,$A87,P$1))","v":""},{"$f":"IF($A87=\"N/A\",Ref!$B$36,INDEX(Ranks!$1:$1048576,$A87,Q$1))","v":""},{"$f":"IF($A87=\"N/A\",Ref!$B$36,INDEX(Ranks!$1:$1048576,$A87,R$1))","v":""},{"$f":"IF($A87=\"N/A\",Ref!$B$36,INDEX(Ranks!$1:$1048576,$A87,S$1))","v":""},{"$f":"IF($A87=\"N/A\",Ref!$B$36,INDEX(Ranks!$1:$1048576,$A87,T$1))","v":""},{"$f":"IF($A87=\"N/A\",Ref!$B$36,INDEX(Ranks!$1:$1048576,$A87,U$1))","v":""},{"$f":"IF($A87=\"N/A\",Ref!$B$36,INDEX(Ranks!$1:$1048576,$A87,V$1))","v":""},{"$f":"IF($A87=\"N/A\",Ref!$B$36,INDEX(Ranks!$1:$1048576,$A87,W$1))","v":""},{"$f":"IF($A87=\"N/A\",Ref!$B$36,INDEX(Ranks!$1:$1048576,$A87,X$1))","v":""},{"$f":"IF($A87=\"N/A\",Ref!$B$36,INDEX(Ranks!$1:$1048576,$A87,Y$1))","v":""},{"$f":"IF($A87=\"N/A\",Ref!$B$36,INDEX(Ranks!$1:$1048576,$A87,Z$1))","v":""},{"$f":"IF($A87=\"N/A\",Ref!$B$36,INDEX(Ranks!$1:$1048576,$A87,AA$1))","v":""},{"$f":"IF($A87=\"N/A\",Ref!$B$36,INDEX(Ranks!$1:$1048576,$A87,AB$1))","v":""},{"$f":"IF($A87=\"N/A\",Ref!$B$36,INDEX(Ranks!$1:$1048576,$A87,AC$1))","v":""},{"$f":"IF($A87=\"N/A\",Ref!$B$36,INDEX(Ranks!$1:$1048576,$A87,AD$1))","v":""},{"$f":"IF($A87=\"N/A\",Ref!$B$36,INDEX(Ranks!$1:$1048576,$A87,AE$1))","v":""},{"$f":"IF($A87=\"N/A\",Ref!$B$36,INDEX(Ranks!$1:$1048576,$A87,AF$1))","v":""},{"$f":"IF($A87=\"N/A\",Ref!$B$36,INDEX(Ranks!$1:$1048576,$A87,AG$1))","v":""},{"$f":"IF($A87=\"N/A\",Ref!$B$36,INDEX(Ranks!$1:$1048576,$A87,AH$1))","v":""},{"$f":"IF($A87=\"N/A\",Ref!$B$36,INDEX(Ranks!$1:$1048576,$A87,AI$1))","v":""},{"$f":"IF($A87=\"N/A\",Ref!$B$36,INDEX(Ranks!$1:$1048576,$A87,AJ$1))","v":""},{"$f":"IF($A87=\"N/A\",Ref!$B$36,INDEX(Ranks!$1:$1048576,$A87,AK$1))","v":""},{"$f":"IF($A87=\"N/A\",Ref!$B$36,INDEX(Ranks!$1:$1048576,$A87,AL$1))","v":""},{"$f":"IF($A87=\"N/A\",Ref!$B$36,INDEX(Ranks!$1:$1048576,$A87,AM$1))","v":""},{"$f":"IF($A87=\"N/A\",Ref!$B$36,INDEX(Ranks!$1:$1048576,$A87,AN$1))","v":""},{"$f":"IF($A87=\"N/A\",Ref!$B$36,INDEX(Ranks!$1:$1048576,$A87,AO$1))","v":""},{"$f":"IF($A87=\"N/A\",Ref!$B$36,INDEX(Ranks!$1:$1048576,$A87,AP$1))","v":""},{"$f":"IF($A87=\"N/A\",Ref!$B$36,INDEX(Ranks!$1:$1048576,$A87,AQ$1))","v":""},{"$f":"IF($A87=\"N/A\",Ref!$B$36,INDEX(Ranks!$1:$1048576,$A87,AR$1))","v":""},{"$f":"IF($A87=\"N/A\",Ref!$B$36,INDEX(Ranks!$1:$1048576,$A87,AS$1))","v":""},{"$f":"IF($A87=\"N/A\",Ref!$B$36,INDEX(Ranks!$1:$1048576,$A87,AT$1))","v":""},{"$f":"IF($A87=\"N/A\",Ref!$B$36,INDEX(Ranks!$1:$1048576,$A87,AU$1))","v":""},{"$f":"IF($A87=\"N/A\",Ref!$B$36,INDEX(Ranks!$1:$1048576,$A87,AV$1))","v":""},{"$f":"IF($A87=\"N/A\",Ref!$B$36,INDEX(Ranks!$1:$1048576,$A87,AW$1))","v":""},{"$f":"IF($A87=\"N/A\",Ref!$B$36,INDEX(Ranks!$1:$1048576,$A87,AX$1))","v":""},{"$f":"IF($A87=\"N/A\",Ref!$B$36,INDEX(Ranks!$1:$1048576,$A87,AY$1))","v":""},{"$f":"IF($A87=\"N/A\",Ref!$B$36,INDEX(Ranks!$1:$1048576,$A87,AZ$1))","v":""},{"$f":"IF($A87=\"N/A\",Ref!$B$36,INDEX(Ranks!$1:$1048576,$A87,BA$1))","v":""},{"$f":"IF($A87=\"N/A\",Ref!$B$36,INDEX(Ranks!$1:$1048576,$A87,BB$1))","v":""},{"$f":"IF($A87=\"N/A\",Ref!$B$36,INDEX(Ranks!$1:$1048576,$A87,BC$1))","v":""},{"$f":"IF($A87=\"N/A\",Ref!$B$36,INDEX(Ranks!$1:$1048576,$A87,BD$1))","v":""},{"$f":"IF($A87=\"N/A\",Ref!$B$36,INDEX(Ranks!$1:$1048576,$A87,BE$1))","v":""},{"$f":"IF($A87=\"N/A\",Ref!$B$36,INDEX(Ranks!$1:$1048576,$A87,BF$1))","v":""},{"$f":"IF($A87=\"N/A\",Ref!$B$36,INDEX(Ranks!$1:$1048576,$A87,BG$1))","v":""},{"$f":"IF($A87=\"N/A\",Ref!$B$36,INDEX(Ranks!$1:$1048576,$A87,BH$1))","v":""},{"$f":"IF($A87=\"N/A\",Ref!$B$36,INDEX(Ranks!$1:$1048576,$A87,BI$1))","v":""},{"$f":"IF($A87=\"N/A\",Ref!$B$36,INDEX(Ranks!$1:$1048576,$A87,BJ$1))","v":""},{"$f":"IF($A87=\"N/A\",Ref!$B$36,INDEX(Ranks!$1:$1048576,$A87,BK$1))","v":""},{"$f":"IF($A87=\"N/A\",Ref!$B$36,INDEX(Ranks!$1:$1048576,$A87,BL$1))","v":""},{"$f":"IF($A87=\"N/A\",Ref!$B$36,INDEX(Ranks!$1:$1048576,$A87,BM$1))","v":""},{"$f":"IF($A87=\"N/A\",Ref!$B$36,INDEX(Ranks!$1:$1048576,$A87,BN$1))","v":""},{"$f":"IF($A87=\"N/A\",Ref!$B$36,INDEX(Ranks!$1:$1048576,$A87,BO$1))","v":""},{"$f":"IF($A87=\"N/A\",Ref!$B$36,INDEX(Ranks!$1:$1048576,$A87,BP$1))","v":""},{"$f":"IF($A87=\"N/A\",Ref!$B$36,INDEX(Ranks!$1:$1048576,$A87,BQ$1))","v":""},{"$f":"IF($A87=\"N/A\",Ref!$B$36,INDEX(Ranks!$1:$1048576,$A87,BR$1))","v":""},{"$f":"IF($A87=\"N/A\",Ref!$B$36,INDEX(Ranks!$1:$1048576,$A87,BS$1))","v":""},{"$f":"IF($A87=\"N/A\",Ref!$B$36,INDEX(Ranks!$1:$1048576,$A87,BT$1))","v":""},{"$f":"IF($A87=\"N/A\",Ref!$B$36,INDEX(Ranks!$1:$1048576,$A87,BU$1))","v":""},{"$f":"IF($A87=\"N/A\",Ref!$B$36,INDEX(Ranks!$1:$1048576,$A87,BV$1))","v":""},{"$f":"IF($A87=\"N/A\",Ref!$B$36,INDEX(Ranks!$1:$1048576,$A87,BW$1))","v":""},{"$f":"IF($A87=\"N/A\",Ref!$B$36,INDEX(Ranks!$1:$1048576,$A87,BX$1))","v":""},{"$f":"IF($A87=\"N/A\",Ref!$B$36,INDEX(Ranks!$1:$1048576,$A87,BY$1))","v":""},{"$f":"IF($A87=\"N/A\",Ref!$B$36,INDEX(Ranks!$1:$1048576,$A87,BZ$1))","v":""},{"$f":"IF($A87=\"N/A\",Ref!$B$36,INDEX(Ranks!$1:$1048576,$A87,CA$1))","v":""},{"$f":"IF($A87=\"N/A\",Ref!$B$36,INDEX(Ranks!$1:$1048576,$A87,CB$1))","v":""},{"$f":"IF($A87=\"N/A\",Ref!$B$36,INDEX(Ranks!$1:$1048576,$A87,CC$1))","v":""},{"$f":"IF($A87=\"N/A\",Ref!$B$36,INDEX(Ranks!$1:$1048576,$A87,CD$1))","v":""},{"$f":"IF($A87=\"N/A\",Ref!$B$36,INDEX(Ranks!$1:$1048576,$A87,CE$1))","v":""},{"$f":"IF($A87=\"N/A\",Ref!$B$36,INDEX(Ranks!$1:$1048576,$A87,CF$1))","v":""},{"$f":"IF($A87=\"N/A\",Ref!$B$36,INDEX(Ranks!$1:$1048576,$A87,CG$1))","v":""},{"$f":"IF($A87=\"N/A\",Ref!$B$36,INDEX(Ranks!$1:$1048576,$A87,CH$1))","v":""},{"$f":"IF($A87=\"N/A\",Ref!$B$36,INDEX(Ranks!$1:$1048576,$A87,CI$1))","v":""},{"$f":"IF($A87=\"N/A\",Ref!$B$36,INDEX(Ranks!$1:$1048576,$A87,CJ$1))","v":""},{"$f":"IF($A87=\"N/A\",Ref!$B$36,INDEX(Ranks!$1:$1048576,$A87,CK$1))","v":""},{"$f":"IF($A87=\"N/A\",Ref!$B$36,INDEX(Ranks!$1:$1048576,$A87,CL$1))","v":""},{"$f":"IF($A87=\"N/A\",Ref!$B$36,INDEX(Ranks!$1:$1048576,$A87,CM$1))","v":""},{"$f":"IF($A87=\"N/A\",Ref!$B$36,INDEX(Ranks!$1:$1048576,$A87,CN$1))","v":""},{"$f":"IF($A87=\"N/A\",Ref!$B$36,INDEX(Ranks!$1:$1048576,$A87,CO$1))","v":""},{"$f":"IF($A87=\"N/A\",Ref!$B$36,INDEX(Ranks!$1:$1048576,$A87,CP$1))","v":""},{"$f":"IF($A87=\"N/A\",Ref!$B$36,INDEX(Ranks!$1:$1048576,$A87,CQ$1))","v":""},{"$f":"IF($A87=\"N/A\",Ref!$B$36,INDEX(Ranks!$1:$1048576,$A87,CR$1))","v":""},{"$f":"IF($A87=\"N/A\",Ref!$B$36,INDEX(Ranks!$1:$1048576,$A87,CS$1))","v":""},{"$f":"IF($A87=\"N/A\",Ref!$B$36,INDEX(Ranks!$1:$1048576,$A87,CT$1))","v":""},{"$f":"IF($A87=\"N/A\",Ref!$B$36,INDEX(Ranks!$1:$1048576,$A87,CU$1))","v":""},{"$f":"IF($A87=\"N/A\",Ref!$B$36,INDEX(Ranks!$1:$1048576,$A87,CV$1))","v":""},{"$f":"IF($A87=\"N/A\",Ref!$B$36,INDEX(Ranks!$1:$1048576,$A87,CW$1))","v":""},{"$f":"IF($A87=\"N/A\",Ref!$B$36,INDEX(Ranks!$1:$1048576,$A87,CX$1))","v":""},{"$f":"IF($A87=\"N/A\",Ref!$B$36,INDEX(Ranks!$1:$1048576,$A87,CY$1))","v":""},{"$f":"IF($A87=\"N/A\",Ref!$B$36,INDEX(Ranks!$1:$1048576,$A87,CZ$1))","v":""},{"$f":"IF($A87=\"N/A\",Ref!$B$36,INDEX(Ranks!$1:$1048576,$A87,DA$1))","v":""},{"$f":"IF($A87=\"N/A\",Ref!$B$36,INDEX(Ranks!$1:$1048576,$A87,DB$1))","v":""},{"$f":"IF($A87=\"N/A\",Ref!$B$36,INDEX(Ranks!$1:$1048576,$A87,DC$1))","v":""},{"$f":"IF($A87=\"N/A\",Ref!$B$36,INDEX(Ranks!$1:$1048576,$A87,DD$1))","v":""},{"$f":"IF($A87=\"N/A\",Ref!$B$36,INDEX(Ranks!$1:$1048576,$A87,DE$1))","v":""},{"$f":"IF($A87=\"N/A\",Ref!$B$36,INDEX(Ranks!$1:$1048576,$A87,DF$1))","v":""},{"$f":"IF($A87=\"N/A\",Ref!$B$36,INDEX(Ranks!$1:$1048576,$A87,DG$1))","v":""},{"$f":"IF($A87=\"N/A\",Ref!$B$36,INDEX(Ranks!$1:$1048576,$A87,DH$1))","v":""},{"$f":"IF($A87=\"N/A\",Ref!$B$36,INDEX(Ranks!$1:$1048576,$A87,DI$1))","v":""},{"$f":"IF($A87=\"N/A\",Ref!$B$36,INDEX(Ranks!$1:$1048576,$A87,DJ$1))","v":""},{"$f":"IF($A87=\"N/A\",Ref!$B$36,INDEX(Ranks!$1:$1048576,$A87,DK$1))","v":""},{"$f":"IF($A87=\"N/A\",Ref!$B$36,INDEX(Ranks!$1:$1048576,$A87,DL$1))","v":""},{"$f":"IF($A87=\"N/A\",Ref!$B$36,INDEX(Ranks!$1:$1048576,$A87,DM$1))","v":""},{"$f":"IF($A87=\"N/A\",Ref!$B$36,INDEX(Ranks!$1:$1048576,$A87,DN$1))","v":""},{"$f":"IF($A87=\"N/A\",Ref!$B$36,INDEX(Ranks!$1:$1048576,$A87,DO$1))","v":""},{"$f":"IF($A87=\"N/A\",Ref!$B$36,INDEX(Ranks!$1:$1048576,$A87,DP$1))","v":""},{"$f":"IF($A87=\"N/A\",Ref!$B$36,INDEX(Ranks!$1:$1048576,$A87,DQ$1))","v":""},{"$f":"IF($A87=\"N/A\",Ref!$B$36,INDEX(Ranks!$1:$1048576,$A87,DR$1))","v":""},{"$f":"IF($A87=\"N/A\",Ref!$B$36,INDEX(Ranks!$1:$1048576,$A87,DS$1))","v":""},{"$f":"IF($A87=\"N/A\",Ref!$B$36,INDEX(Ranks!$1:$1048576,$A87,DT$1))","v":""},{"$f":"IF($A87=\"N/A\",Ref!$B$36,INDEX(Ranks!$1:$1048576,$A87,DU$1))","v":""},{"$f":"IF($A87=\"N/A\",Ref!$B$36,INDEX(Ranks!$1:$1048576,$A87,DV$1))","v":""},{"$f":"IF($A87=\"N/A\",Ref!$B$36,INDEX(Ranks!$1:$1048576,$A87,DW$1))","v":""},{"$f":"IF($A87=\"N/A\",Ref!$B$36,INDEX(Ranks!$1:$1048576,$A87,DX$1))","v":""},{"$f":"IF($A87=\"N/A\",Ref!$B$36,INDEX(Ranks!$1:$1048576,$A87,DY$1))","v":""},{"$f":"IF($A87=\"N/A\",Ref!$B$36,INDEX(Ranks!$1:$1048576,$A87,DZ$1))","v":""},{"$f":"IF($A87=\"N/A\",Ref!$B$36,INDEX(Ranks!$1:$1048576,$A87,EA$1))","v":""},{"$f":"IF($A87=\"N/A\",Ref!$B$36,INDEX(Ranks!$1:$1048576,$A87,EB$1))","v":""}]
[{"$f":"IFERROR(MATCH('Portfolio Page'!L88,Ranks!L:L,0),\"N/A\")","v":"N/A"},null,{"$f":"IF($A88=\"N/A\",\"\",INDEX(Ranks!$1:$1048576,$A88,C$1))","v":""},{"$f":"IF($A88=\"N/A\",Ref!$B$36,INDEX(Ranks!$1:$1048576,$A88,D$1))","v":""},{"$f":"IF($A88=\"N/A\",Ref!$B$36,INDEX(Ranks!$1:$1048576,$A88,E$1))","v":""},{"$f":"IF($A88=\"N/A\",\"\",INDEX(Ranks!$1:$1048576,$A88,F$1))","v":""},{"$f":"IF($A88=\"N/A\",\"\",INDEX(Ranks!$1:$1048576,$A88,G$1))","v":""},{"$f":"IF($A88=\"N/A\",\"\",INDEX(Ranks!$1:$1048576,$A88,H$1))","v":""},{"$f":"IF($A88=\"N/A\",\"\",INDEX(Ranks!$1:$1048576,$A88,I$1))","v":""},{"$f":"IF($A88=\"N/A\",\"\",INDEX(Ranks!$1:$1048576,$A88,J$1))","v":""},{"$f":"IF($A88=\"N/A\",\"\",INDEX(Ranks!$1:$1048576,$A88,K$1))","v":""},null,{"$f":"IF($A88=\"N/A\",Ref!$B$36,INDEX(Ranks!$1:$1048576,$A88,M$1))","v":""},{"$f":"IF($A88=\"N/A\",Ref!$B$36,INDEX(Ranks!$1:$1048576,$A88,N$1))","v":""},{"$f":"IF($A88=\"N/A\",Ref!$B$36,INDEX(Ranks!$1:$1048576,$A88,O$1))","v":""},{"$f":"IF($A88=\"N/A\",Ref!$B$36,INDEX(Ranks!$1:$1048576,$A88,P$1))","v":""},{"$f":"IF($A88=\"N/A\",Ref!$B$36,INDEX(Ranks!$1:$1048576,$A88,Q$1))","v":""},{"$f":"IF($A88=\"N/A\",Ref!$B$36,INDEX(Ranks!$1:$1048576,$A88,R$1))","v":""},{"$f":"IF($A88=\"N/A\",Ref!$B$36,INDEX(Ranks!$1:$1048576,$A88,S$1))","v":""},{"$f":"IF($A88=\"N/A\",Ref!$B$36,INDEX(Ranks!$1:$1048576,$A88,T$1))","v":""},{"$f":"IF($A88=\"N/A\",Ref!$B$36,INDEX(Ranks!$1:$1048576,$A88,U$1))","v":""},{"$f":"IF($A88=\"N/A\",Ref!$B$36,INDEX(Ranks!$1:$1048576,$A88,V$1))","v":""},{"$f":"IF($A88=\"N/A\",Ref!$B$36,INDEX(Ranks!$1:$1048576,$A88,W$1))","v":""},{"$f":"IF($A88=\"N/A\",Ref!$B$36,INDEX(Ranks!$1:$1048576,$A88,X$1))","v":""},{"$f":"IF($A88=\"N/A\",Ref!$B$36,INDEX(Ranks!$1:$1048576,$A88,Y$1))","v":""},{"$f":"IF($A88=\"N/A\",Ref!$B$36,INDEX(Ranks!$1:$1048576,$A88,Z$1))","v":""},{"$f":"IF($A88=\"N/A\",Ref!$B$36,INDEX(Ranks!$1:$1048576,$A88,AA$1))","v":""},{"$f":"IF($A88=\"N/A\",Ref!$B$36,INDEX(Ranks!$1:$1048576,$A88,AB$1))","v":""},{"$f":"IF($A88=\"N/A\",Ref!$B$36,INDEX(Ranks!$1:$1048576,$A88,AC$1))","v":""},{"$f":"IF($A88=\"N/A\",Ref!$B$36,INDEX(Ranks!$1:$1048576,$A88,AD$1))","v":""},{"$f":"IF($A88=\"N/A\",Ref!$B$36,INDEX(Ranks!$1:$1048576,$A88,AE$1))","v":""},{"$f":"IF($A88=\"N/A\",Ref!$B$36,INDEX(Ranks!$1:$1048576,$A88,AF$1))","v":""},{"$f":"IF($A88=\"N/A\",Ref!$B$36,INDEX(Ranks!$1:$1048576,$A88,AG$1))","v":""},{"$f":"IF($A88=\"N/A\",Ref!$B$36,INDEX(Ranks!$1:$1048576,$A88,AH$1))","v":""},{"$f":"IF($A88=\"N/A\",Ref!$B$36,INDEX(Ranks!$1:$1048576,$A88,AI$1))","v":""},{"$f":"IF($A88=\"N/A\",Ref!$B$36,INDEX(Ranks!$1:$1048576,$A88,AJ$1))","v":""},{"$f":"IF($A88=\"N/A\",Ref!$B$36,INDEX(Ranks!$1:$1048576,$A88,AK$1))","v":""},{"$f":"IF($A88=\"N/A\",Ref!$B$36,INDEX(Ranks!$1:$1048576,$A88,AL$1))","v":""},{"$f":"IF($A88=\"N/A\",Ref!$B$36,INDEX(Ranks!$1:$1048576,$A88,AM$1))","v":""},{"$f":"IF($A88=\"N/A\",Ref!$B$36,INDEX(Ranks!$1:$1048576,$A88,AN$1))","v":""},{"$f":"IF($A88=\"N/A\",Ref!$B$36,INDEX(Ranks!$1:$1048576,$A88,AO$1))","v":""},{"$f":"IF($A88=\"N/A\",Ref!$B$36,INDEX(Ranks!$1:$1048576,$A88,AP$1))","v":""},{"$f":"IF($A88=\"N/A\",Ref!$B$36,INDEX(Ranks!$1:$1048576,$A88,AQ$1))","v":""},{"$f":"IF($A88=\"N/A\",Ref!$B$36,INDEX(Ranks!$1:$1048576,$A88,AR$1))","v":""},{"$f":"IF($A88=\"N/A\",Ref!$B$36,INDEX(Ranks!$1:$1048576,$A88,AS$1))","v":""},{"$f":"IF($A88=\"N/A\",Ref!$B$36,INDEX(Ranks!$1:$1048576,$A88,AT$1))","v":""},{"$f":"IF($A88=\"N/A\",Ref!$B$36,INDEX(Ranks!$1:$1048576,$A88,AU$1))","v":""},{"$f":"IF($A88=\"N/A\",Ref!$B$36,INDEX(Ranks!$1:$1048576,$A88,AV$1))","v":""},{"$f":"IF($A88=\"N/A\",Ref!$B$36,INDEX(Ranks!$1:$1048576,$A88,AW$1))","v":""},{"$f":"IF($A88=\"N/A\",Ref!$B$36,INDEX(Ranks!$1:$1048576,$A88,AX$1))","v":""},{"$f":"IF($A88=\"N/A\",Ref!$B$36,INDEX(Ranks!$1:$1048576,$A88,AY$1))","v":""},{"$f":"IF($A88=\"N/A\",Ref!$B$36,INDEX(Ranks!$1:$1048576,$A88,AZ$1))","v":""},{"$f":"IF($A88=\"N/A\",Ref!$B$36,INDEX(Ranks!$1:$1048576,$A88,BA$1))","v":""},{"$f":"IF($A88=\"N/A\",Ref!$B$36,INDEX(Ranks!$1:$1048576,$A88,BB$1))","v":""},{"$f":"IF($A88=\"N/A\",Ref!$B$36,INDEX(Ranks!$1:$1048576,$A88,BC$1))","v":""},{"$f":"IF($A88=\"N/A\",Ref!$B$36,INDEX(Ranks!$1:$1048576,$A88,BD$1))","v":""},{"$f":"IF($A88=\"N/A\",Ref!$B$36,INDEX(Ranks!$1:$1048576,$A88,BE$1))","v":""},{"$f":"IF($A88=\"N/A\",Ref!$B$36,INDEX(Ranks!$1:$1048576,$A88,BF$1))","v":""},{"$f":"IF($A88=\"N/A\",Ref!$B$36,INDEX(Ranks!$1:$1048576,$A88,BG$1))","v":""},{"$f":"IF($A88=\"N/A\",Ref!$B$36,INDEX(Ranks!$1:$1048576,$A88,BH$1))","v":""},{"$f":"IF($A88=\"N/A\",Ref!$B$36,INDEX(Ranks!$1:$1048576,$A88,BI$1))","v":""},{"$f":"IF($A88=\"N/A\",Ref!$B$36,INDEX(Ranks!$1:$1048576,$A88,BJ$1))","v":""},{"$f":"IF($A88=\"N/A\",Ref!$B$36,INDEX(Ranks!$1:$1048576,$A88,BK$1))","v":""},{"$f":"IF($A88=\"N/A\",Ref!$B$36,INDEX(Ranks!$1:$1048576,$A88,BL$1))","v":""},{"$f":"IF($A88=\"N/A\",Ref!$B$36,INDEX(Ranks!$1:$1048576,$A88,BM$1))","v":""},{"$f":"IF($A88=\"N/A\",Ref!$B$36,INDEX(Ranks!$1:$1048576,$A88,BN$1))","v":""},{"$f":"IF($A88=\"N/A\",Ref!$B$36,INDEX(Ranks!$1:$1048576,$A88,BO$1))","v":""},{"$f":"IF($A88=\"N/A\",Ref!$B$36,INDEX(Ranks!$1:$1048576,$A88,BP$1))","v":""},{"$f":"IF($A88=\"N/A\",Ref!$B$36,INDEX(Ranks!$1:$1048576,$A88,BQ$1))","v":""},{"$f":"IF($A88=\"N/A\",Ref!$B$36,INDEX(Ranks!$1:$1048576,$A88,BR$1))","v":""},{"$f":"IF($A88=\"N/A\",Ref!$B$36,INDEX(Ranks!$1:$1048576,$A88,BS$1))","v":""},{"$f":"IF($A88=\"N/A\",Ref!$B$36,INDEX(Ranks!$1:$1048576,$A88,BT$1))","v":""},{"$f":"IF($A88=\"N/A\",Ref!$B$36,INDEX(Ranks!$1:$1048576,$A88,BU$1))","v":""},{"$f":"IF($A88=\"N/A\",Ref!$B$36,INDEX(Ranks!$1:$1048576,$A88,BV$1))","v":""},{"$f":"IF($A88=\"N/A\",Ref!$B$36,INDEX(Ranks!$1:$1048576,$A88,BW$1))","v":""},{"$f":"IF($A88=\"N/A\",Ref!$B$36,INDEX(Ranks!$1:$1048576,$A88,BX$1))","v":""},{"$f":"IF($A88=\"N/A\",Ref!$B$36,INDEX(Ranks!$1:$1048576,$A88,BY$1))","v":""},{"$f":"IF($A88=\"N/A\",Ref!$B$36,INDEX(Ranks!$1:$1048576,$A88,BZ$1))","v":""},{"$f":"IF($A88=\"N/A\",Ref!$B$36,INDEX(Ranks!$1:$1048576,$A88,CA$1))","v":""},{"$f":"IF($A88=\"N/A\",Ref!$B$36,INDEX(Ranks!$1:$1048576,$A88,CB$1))","v":""},{"$f":"IF($A88=\"N/A\",Ref!$B$36,INDEX(Ranks!$1:$1048576,$A88,CC$1))","v":""},{"$f":"IF($A88=\"N/A\",Ref!$B$36,INDEX(Ranks!$1:$1048576,$A88,CD$1))","v":""},{"$f":"IF($A88=\"N/A\",Ref!$B$36,INDEX(Ranks!$1:$1048576,$A88,CE$1))","v":""},{"$f":"IF($A88=\"N/A\",Ref!$B$36,INDEX(Ranks!$1:$1048576,$A88,CF$1))","v":""},{"$f":"IF($A88=\"N/A\",Ref!$B$36,INDEX(Ranks!$1:$1048576,$A88,CG$1))","v":""},{"$f":"IF($A88=\"N/A\",Ref!$B$36,INDEX(Ranks!$1:$1048576,$A88,CH$1))","v":""},{"$f":"IF($A88=\"N/A\",Ref!$B$36,INDEX(Ranks!$1:$1048576,$A88,CI$1))","v":""},{"$f":"IF($A88=\"N/A\",Ref!$B$36,INDEX(Ranks!$1:$1048576,$A88,CJ$1))","v":""},{"$f":"IF($A88=\"N/A\",Ref!$B$36,INDEX(Ranks!$1:$1048576,$A88,CK$1))","v":""},{"$f":"IF($A88=\"N/A\",Ref!$B$36,INDEX(Ranks!$1:$1048576,$A88,CL$1))","v":""},{"$f":"IF($A88=\"N/A\",Ref!$B$36,INDEX(Ranks!$1:$1048576,$A88,CM$1))","v":""},{"$f":"IF($A88=\"N/A\",Ref!$B$36,INDEX(Ranks!$1:$1048576,$A88,CN$1))","v":""},{"$f":"IF($A88=\"N/A\",Ref!$B$36,INDEX(Ranks!$1:$1048576,$A88,CO$1))","v":""},{"$f":"IF($A88=\"N/A\",Ref!$B$36,INDEX(Ranks!$1:$1048576,$A88,CP$1))","v":""},{"$f":"IF($A88=\"N/A\",Ref!$B$36,INDEX(Ranks!$1:$1048576,$A88,CQ$1))","v":""},{"$f":"IF($A88=\"N/A\",Ref!$B$36,INDEX(Ranks!$1:$1048576,$A88,CR$1))","v":""},{"$f":"IF($A88=\"N/A\",Ref!$B$36,INDEX(Ranks!$1:$1048576,$A88,CS$1))","v":""},{"$f":"IF($A88=\"N/A\",Ref!$B$36,INDEX(Ranks!$1:$1048576,$A88,CT$1))","v":""},{"$f":"IF($A88=\"N/A\",Ref!$B$36,INDEX(Ranks!$1:$1048576,$A88,CU$1))","v":""},{"$f":"IF($A88=\"N/A\",Ref!$B$36,INDEX(Ranks!$1:$1048576,$A88,CV$1))","v":""},{"$f":"IF($A88=\"N/A\",Ref!$B$36,INDEX(Ranks!$1:$1048576,$A88,CW$1))","v":""},{"$f":"IF($A88=\"N/A\",Ref!$B$36,INDEX(Ranks!$1:$1048576,$A88,CX$1))","v":""},{"$f":"IF($A88=\"N/A\",Ref!$B$36,INDEX(Ranks!$1:$1048576,$A88,CY$1))","v":""},{"$f":"IF($A88=\"N/A\",Ref!$B$36,INDEX(Ranks!$1:$1048576,$A88,CZ$1))","v":""},{"$f":"IF($A88=\"N/A\",Ref!$B$36,INDEX(Ranks!$1:$1048576,$A88,DA$1))","v":""},{"$f":"IF($A88=\"N/A\",Ref!$B$36,INDEX(Ranks!$1:$1048576,$A88,DB$1))","v":""},{"$f":"IF($A88=\"N/A\",Ref!$B$36,INDEX(Ranks!$1:$1048576,$A88,DC$1))","v":""},{"$f":"IF($A88=\"N/A\",Ref!$B$36,INDEX(Ranks!$1:$1048576,$A88,DD$1))","v":""},{"$f":"IF($A88=\"N/A\",Ref!$B$36,INDEX(Ranks!$1:$1048576,$A88,DE$1))","v":""},{"$f":"IF($A88=\"N/A\",Ref!$B$36,INDEX(Ranks!$1:$1048576,$A88,DF$1))","v":""},{"$f":"IF($A88=\"N/A\",Ref!$B$36,INDEX(Ranks!$1:$1048576,$A88,DG$1))","v":""},{"$f":"IF($A88=\"N/A\",Ref!$B$36,INDEX(Ranks!$1:$1048576,$A88,DH$1))","v":""},{"$f":"IF($A88=\"N/A\",Ref!$B$36,INDEX(Ranks!$1:$1048576,$A88,DI$1))","v":""},{"$f":"IF($A88=\"N/A\",Ref!$B$36,INDEX(Ranks!$1:$1048576,$A88,DJ$1))","v":""},{"$f":"IF($A88=\"N/A\",Ref!$B$36,INDEX(Ranks!$1:$1048576,$A88,DK$1))","v":""},{"$f":"IF($A88=\"N/A\",Ref!$B$36,INDEX(Ranks!$1:$1048576,$A88,DL$1))","v":""},{"$f":"IF($A88=\"N/A\",Ref!$B$36,INDEX(Ranks!$1:$1048576,$A88,DM$1))","v":""},{"$f":"IF($A88=\"N/A\",Ref!$B$36,INDEX(Ranks!$1:$1048576,$A88,DN$1))","v":""},{"$f":"IF($A88=\"N/A\",Ref!$B$36,INDEX(Ranks!$1:$1048576,$A88,DO$1))","v":""},{"$f":"IF($A88=\"N/A\",Ref!$B$36,INDEX(Ranks!$1:$1048576,$A88,DP$1))","v":""},{"$f":"IF($A88=\"N/A\",Ref!$B$36,INDEX(Ranks!$1:$1048576,$A88,DQ$1))","v":""},{"$f":"IF($A88=\"N/A\",Ref!$B$36,INDEX(Ranks!$1:$1048576,$A88,DR$1))","v":""},{"$f":"IF($A88=\"N/A\",Ref!$B$36,INDEX(Ranks!$1:$1048576,$A88,DS$1))","v":""},{"$f":"IF($A88=\"N/A\",Ref!$B$36,INDEX(Ranks!$1:$1048576,$A88,DT$1))","v":""},{"$f":"IF($A88=\"N/A\",Ref!$B$36,INDEX(Ranks!$1:$1048576,$A88,DU$1))","v":""},{"$f":"IF($A88=\"N/A\",Ref!$B$36,INDEX(Ranks!$1:$1048576,$A88,DV$1))","v":""},{"$f":"IF($A88=\"N/A\",Ref!$B$36,INDEX(Ranks!$1:$1048576,$A88,DW$1))","v":""},{"$f":"IF($A88=\"N/A\",Ref!$B$36,INDEX(Ranks!$1:$1048576,$A88,DX$1))","v":""},{"$f":"IF($A88=\"N/A\",Ref!$B$36,INDEX(Ranks!$1:$1048576,$A88,DY$1))","v":""},{"$f":"IF($A88=\"N/A\",Ref!$B$36,INDEX(Ranks!$1:$1048576,$A88,DZ$1))","v":""},{"$f":"IF($A88=\"N/A\",Ref!$B$36,INDEX(Ranks!$1:$1048576,$A88,EA$1))","v":""},{"$f":"IF($A88=\"N/A\",Ref!$B$36,INDEX(Ranks!$1:$1048576,$A88,EB$1))","v":""}]
[{"$f":"IFERROR(MATCH('Portfolio Page'!L89,Ranks!L:L,0),\"N/A\")","v":"N/A"},null,{"$f":"IF($A89=\"N/A\",\"\",INDEX(Ranks!$1:$1048576,$A89,C$1))","v":""},{"$f":"IF($A89=\"N/A\",Ref!$B$36,INDEX(Ranks!$1:$1048576,$A89,D$1))","v":""},{"$f":"IF($A89=\"N/A\",Ref!$B$36,INDEX(Ranks!$1:$1048576,$A89,E$1))","v":""},{"$f":"IF($A89=\"N/A\",\"\",INDEX(Ranks!$1:$1048576,$A89,F$1))","v":""},{"$f":"IF($A89=\"N/A\",\"\",INDEX(Ranks!$1:$1048576,$A89,G$1))","v":""},{"$f":"IF($A89=\"N/A\",\"\",INDEX(Ranks!$1:$1048576,$A89,H$1))","v":""},{"$f":"IF($A89=\"N/A\",\"\",INDEX(Ranks!$1:$1048576,$A89,I$1))","v":""},{"$f":"IF($A89=\"N/A\",\"\",INDEX(Ranks!$1:$1048576,$A89,J$1))","v":""},{"$f":"IF($A89=\"N/A\",\"\",INDEX(Ranks!$1:$1048576,$A89,K$1))","v":""},null,{"$f":"IF($A89=\"N/A\",Ref!$B$36,INDEX(Ranks!$1:$1048576,$A89,M$1))","v":""},{"$f":"IF($A89=\"N/A\",Ref!$B$36,INDEX(Ranks!$1:$1048576,$A89,N$1))","v":""},{"$f":"IF($A89=\"N/A\",Ref!$B$36,INDEX(Ranks!$1:$1048576,$A89,O$1))","v":""},{"$f":"IF($A89=\"N/A\",Ref!$B$36,INDEX(Ranks!$1:$1048576,$A89,P$1))","v":""},{"$f":"IF($A89=\"N/A\",Ref!$B$36,INDEX(Ranks!$1:$1048576,$A89,Q$1))","v":""},{"$f":"IF($A89=\"N/A\",Ref!$B$36,INDEX(Ranks!$1:$1048576,$A89,R$1))","v":""},{"$f":"IF($A89=\"N/A\",Ref!$B$36,INDEX(Ranks!$1:$1048576,$A89,S$1))","v":""},{"$f":"IF($A89=\"N/A\",Ref!$B$36,INDEX(Ranks!$1:$1048576,$A89,T$1))","v":""},{"$f":"IF($A89=\"N/A\",Ref!$B$36,INDEX(Ranks!$1:$1048576,$A89,U$1))","v":""},{"$f":"IF($A89=\"N/A\",Ref!$B$36,INDEX(Ranks!$1:$1048576,$A89,V$1))","v":""},{"$f":"IF($A89=\"N/A\",Ref!$B$36,INDEX(Ranks!$1:$1048576,$A89,W$1))","v":""},{"$f":"IF($A89=\"N/A\",Ref!$B$36,INDEX(Ranks!$1:$1048576,$A89,X$1))","v":""},{"$f":"IF($A89=\"N/A\",Ref!$B$36,INDEX(Ranks!$1:$1048576,$A89,Y$1))","v":""},{"$f":"IF($A89=\"N/A\",Ref!$B$36,INDEX(Ranks!$1:$1048576,$A89,Z$1))","v":""},{"$f":"IF($A89=\"N/A\",Ref!$B$36,INDEX(Ranks!$1:$1048576,$A89,AA$1))","v":""},{"$f":"IF($A89=\"N/A\",Ref!$B$36,INDEX(Ranks!$1:$1048576,$A89,AB$1))","v":""},{"$f":"IF($A89=\"N/A\",Ref!$B$36,INDEX(Ranks!$1:$1048576,$A89,AC$1))","v":""},{"$f":"IF($A89=\"N/A\",Ref!$B$36,INDEX(Ranks!$1:$1048576,$A89,AD$1))","v":""},{"$f":"IF($A89=\"N/A\",Ref!$B$36,INDEX(Ranks!$1:$1048576,$A89,AE$1))","v":""},{"$f":"IF($A89=\"N/A\",Ref!$B$36,INDEX(Ranks!$1:$1048576,$A89,AF$1))","v":""},{"$f":"IF($A89=\"N/A\",Ref!$B$36,INDEX(Ranks!$1:$1048576,$A89,AG$1))","v":""},{"$f":"IF($A89=\"N/A\",Ref!$B$36,INDEX(Ranks!$1:$1048576,$A89,AH$1))","v":""},{"$f":"IF($A89=\"N/A\",Ref!$B$36,INDEX(Ranks!$1:$1048576,$A89,AI$1))","v":""},{"$f":"IF($A89=\"N/A\",Ref!$B$36,INDEX(Ranks!$1:$1048576,$A89,AJ$1))","v":""},{"$f":"IF($A89=\"N/A\",Ref!$B$36,INDEX(Ranks!$1:$1048576,$A89,AK$1))","v":""},{"$f":"IF($A89=\"N/A\",Ref!$B$36,INDEX(Ranks!$1:$1048576,$A89,AL$1))","v":""},{"$f":"IF($A89=\"N/A\",Ref!$B$36,INDEX(Ranks!$1:$1048576,$A89,AM$1))","v":""},{"$f":"IF($A89=\"N/A\",Ref!$B$36,INDEX(Ranks!$1:$1048576,$A89,AN$1))","v":""},{"$f":"IF($A89=\"N/A\",Ref!$B$36,INDEX(Ranks!$1:$1048576,$A89,AO$1))","v":""},{"$f":"IF($A89=\"N/A\",Ref!$B$36,INDEX(Ranks!$1:$1048576,$A89,AP$1))","v":""},{"$f":"IF($A89=\"N/A\",Ref!$B$36,INDEX(Ranks!$1:$1048576,$A89,AQ$1))","v":""},{"$f":"IF($A89=\"N/A\",Ref!$B$36,INDEX(Ranks!$1:$1048576,$A89,AR$1))","v":""},{"$f":"IF($A89=\"N/A\",Ref!$B$36,INDEX(Ranks!$1:$1048576,$A89,AS$1))","v":""},{"$f":"IF($A89=\"N/A\",Ref!$B$36,INDEX(Ranks!$1:$1048576,$A89,AT$1))","v":""},{"$f":"IF($A89=\"N/A\",Ref!$B$36,INDEX(Ranks!$1:$1048576,$A89,AU$1))","v":""},{"$f":"IF($A89=\"N/A\",Ref!$B$36,INDEX(Ranks!$1:$1048576,$A89,AV$1))","v":""},{"$f":"IF($A89=\"N/A\",Ref!$B$36,INDEX(Ranks!$1:$1048576,$A89,AW$1))","v":""},{"$f":"IF($A89=\"N/A\",Ref!$B$36,INDEX(Ranks!$1:$1048576,$A89,AX$1))","v":""},{"$f":"IF($A89=\"N/A\",Ref!$B$36,INDEX(Ranks!$1:$1048576,$A89,AY$1))","v":""},{"$f":"IF($A89=\"N/A\",Ref!$B$36,INDEX(Ranks!$1:$1048576,$A89,AZ$1))","v":""},{"$f":"IF($A89=\"N/A\",Ref!$B$36,INDEX(Ranks!$1:$1048576,$A89,BA$1))","v":""},{"$f":"IF($A89=\"N/A\",Ref!$B$36,INDEX(Ranks!$1:$1048576,$A89,BB$1))","v":""},{"$f":"IF($A89=\"N/A\",Ref!$B$36,INDEX(Ranks!$1:$1048576,$A89,BC$1))","v":""},{"$f":"IF($A89=\"N/A\",Ref!$B$36,INDEX(Ranks!$1:$1048576,$A89,BD$1))","v":""},{"$f":"IF($A89=\"N/A\",Ref!$B$36,INDEX(Ranks!$1:$1048576,$A89,BE$1))","v":""},{"$f":"IF($A89=\"N/A\",Ref!$B$36,INDEX(Ranks!$1:$1048576,$A89,BF$1))","v":""},{"$f":"IF($A89=\"N/A\",Ref!$B$36,INDEX(Ranks!$1:$1048576,$A89,BG$1))","v":""},{"$f":"IF($A89=\"N/A\",Ref!$B$36,INDEX(Ranks!$1:$1048576,$A89,BH$1))","v":""},{"$f":"IF($A89=\"N/A\",Ref!$B$36,INDEX(Ranks!$1:$1048576,$A89,BI$1))","v":""},{"$f":"IF($A89=\"N/A\",Ref!$B$36,INDEX(Ranks!$1:$1048576,$A89,BJ$1))","v":""},{"$f":"IF($A89=\"N/A\",Ref!$B$36,INDEX(Ranks!$1:$1048576,$A89,BK$1))","v":""},{"$f":"IF($A89=\"N/A\",Ref!$B$36,INDEX(Ranks!$1:$1048576,$A89,BL$1))","v":""},{"$f":"IF($A89=\"N/A\",Ref!$B$36,INDEX(Ranks!$1:$1048576,$A89,BM$1))","v":""},{"$f":"IF($A89=\"N/A\",Ref!$B$36,INDEX(Ranks!$1:$1048576,$A89,BN$1))","v":""},{"$f":"IF($A89=\"N/A\",Ref!$B$36,INDEX(Ranks!$1:$1048576,$A89,BO$1))","v":""},{"$f":"IF($A89=\"N/A\",Ref!$B$36,INDEX(Ranks!$1:$1048576,$A89,BP$1))","v":""},{"$f":"IF($A89=\"N/A\",Ref!$B$36,INDEX(Ranks!$1:$1048576,$A89,BQ$1))","v":""},{"$f":"IF($A89=\"N/A\",Ref!$B$36,INDEX(Ranks!$1:$1048576,$A89,BR$1))","v":""},{"$f":"IF($A89=\"N/A\",Ref!$B$36,INDEX(Ranks!$1:$1048576,$A89,BS$1))","v":""},{"$f":"IF($A89=\"N/A\",Ref!$B$36,INDEX(Ranks!$1:$1048576,$A89,BT$1))","v":""},{"$f":"IF($A89=\"N/A\",Ref!$B$36,INDEX(Ranks!$1:$1048576,$A89,BU$1))","v":""},{"$f":"IF($A89=\"N/A\",Ref!$B$36,INDEX(Ranks!$1:$1048576,$A89,BV$1))","v":""},{"$f":"IF($A89=\"N/A\",Ref!$B$36,INDEX(Ranks!$1:$1048576,$A89,BW$1))","v":""},{"$f":"IF($A89=\"N/A\",Ref!$B$36,INDEX(Ranks!$1:$1048576,$A89,BX$1))","v":""},{"$f":"IF($A89=\"N/A\",Ref!$B$36,INDEX(Ranks!$1:$1048576,$A89,BY$1))","v":""},{"$f":"IF($A89=\"N/A\",Ref!$B$36,INDEX(Ranks!$1:$1048576,$A89,BZ$1))","v":""},{"$f":"IF($A89=\"N/A\",Ref!$B$36,INDEX(Ranks!$1:$1048576,$A89,CA$1))","v":""},{"$f":"IF($A89=\"N/A\",Ref!$B$36,INDEX(Ranks!$1:$1048576,$A89,CB$1))","v":""},{"$f":"IF($A89=\"N/A\",Ref!$B$36,INDEX(Ranks!$1:$1048576,$A89,CC$1))","v":""},{"$f":"IF($A89=\"N/A\",Ref!$B$36,INDEX(Ranks!$1:$1048576,$A89,CD$1))","v":""},{"$f":"IF($A89=\"N/A\",Ref!$B$36,INDEX(Ranks!$1:$1048576,$A89,CE$1))","v":""},{"$f":"IF($A89=\"N/A\",Ref!$B$36,INDEX(Ranks!$1:$1048576,$A89,CF$1))","v":""},{"$f":"IF($A89=\"N/A\",Ref!$B$36,INDEX(Ranks!$1:$1048576,$A89,CG$1))","v":""},{"$f":"IF($A89=\"N/A\",Ref!$B$36,INDEX(Ranks!$1:$1048576,$A89,CH$1))","v":""},{"$f":"IF($A89=\"N/A\",Ref!$B$36,INDEX(Ranks!$1:$1048576,$A89,CI$1))","v":""},{"$f":"IF($A89=\"N/A\",Ref!$B$36,INDEX(Ranks!$1:$1048576,$A89,CJ$1))","v":""},{"$f":"IF($A89=\"N/A\",Ref!$B$36,INDEX(Ranks!$1:$1048576,$A89,CK$1))","v":""},{"$f":"IF($A89=\"N/A\",Ref!$B$36,INDEX(Ranks!$1:$1048576,$A89,CL$1))","v":""},{"$f":"IF($A89=\"N/A\",Ref!$B$36,INDEX(Ranks!$1:$1048576,$A89,CM$1))","v":""},{"$f":"IF($A89=\"N/A\",Ref!$B$36,INDEX(Ranks!$1:$1048576,$A89,CN$1))","v":""},{"$f":"IF($A89=\"N/A\",Ref!$B$36,INDEX(Ranks!$1:$1048576,$A89,CO$1))","v":""},{"$f":"IF($A89=\"N/A\",Ref!$B$36,INDEX(Ranks!$1:$1048576,$A89,CP$1))","v":""},{"$f":"IF($A89=\"N/A\",Ref!$B$36,INDEX(Ranks!$1:$1048576,$A89,CQ$1))","v":""},{"$f":"IF($A89=\"N/A\",Ref!$B$36,INDEX(Ranks!$1:$1048576,$A89,CR$1))","v":""},{"$f":"IF($A89=\"N/A\",Ref!$B$36,INDEX(Ranks!$1:$1048576,$A89,CS$1))","v":""},{"$f":"IF($A89=\"N/A\",Ref!$B$36,INDEX(Ranks!$1:$1048576,$A89,CT$1))","v":""},{"$f":"IF($A89=\"N/A\",Ref!$B$36,INDEX(Ranks!$1:$1048576,$A89,CU$1))","v":""},{"$f":"IF($A89=\"N/A\",Ref!$B$36,INDEX(Ranks!$1:$1048576,$A89,CV$1))","v":""},{"$f":"IF($A89=\"N/A\",Ref!$B$36,INDEX(Ranks!$1:$1048576,$A89,CW$1))","v":""},{"$f":"IF($A89=\"N/A\",Ref!$B$36,INDEX(Ranks!$1:$1048576,$A89,CX$1))","v":""},{"$f":"IF($A89=\"N/A\",Ref!$B$36,INDEX(Ranks!$1:$1048576,$A89,CY$1))","v":""},{"$f":"IF($A89=\"N/A\",Ref!$B$36,INDEX(Ranks!$1:$1048576,$A89,CZ$1))","v":""},{"$f":"IF($A89=\"N/A\",Ref!$B$36,INDEX(Ranks!$1:$1048576,$A89,DA$1))","v":""},{"$f":"IF($A89=\"N/A\",Ref!$B$36,INDEX(Ranks!$1:$1048576,$A89,DB$1))","v":""},{"$f":"IF($A89=\"N/A\",Ref!$B$36,INDEX(Ranks!$1:$1048576,$A89,DC$1))","v":""},{"$f":"IF($A89=\"N/A\",Ref!$B$36,INDEX(Ranks!$1:$1048576,$A89,DD$1))","v":""},{"$f":"IF($A89=\"N/A\",Ref!$B$36,INDEX(Ranks!$1:$1048576,$A89,DE$1))","v":""},{"$f":"IF($A89=\"N/A\",Ref!$B$36,INDEX(Ranks!$1:$1048576,$A89,DF$1))","v":""},{"$f":"IF($A89=\"N/A\",Ref!$B$36,INDEX(Ranks!$1:$1048576,$A89,DG$1))","v":""},{"$f":"IF($A89=\"N/A\",Ref!$B$36,INDEX(Ranks!$1:$1048576,$A89,DH$1))","v":""},{"$f":"IF($A89=\"N/A\",Ref!$B$36,INDEX(Ranks!$1:$1048576,$A89,DI$1))","v":""},{"$f":"IF($A89=\"N/A\",Ref!$B$36,INDEX(Ranks!$1:$1048576,$A89,DJ$1))","v":""},{"$f":"IF($A89=\"N/A\",Ref!$B$36,INDEX(Ranks!$1:$1048576,$A89,DK$1))","v":""},{"$f":"IF($A89=\"N/A\",Ref!$B$36,INDEX(Ranks!$1:$1048576,$A89,DL$1))","v":""},{"$f":"IF($A89=\"N/A\",Ref!$B$36,INDEX(Ranks!$1:$1048576,$A89,DM$1))","v":""},{"$f":"IF($A89=\"N/A\",Ref!$B$36,INDEX(Ranks!$1:$1048576,$A89,DN$1))","v":""},{"$f":"IF($A89=\"N/A\",Ref!$B$36,INDEX(Ranks!$1:$1048576,$A89,DO$1))","v":""},{"$f":"IF($A89=\"N/A\",Ref!$B$36,INDEX(Ranks!$1:$1048576,$A89,DP$1))","v":""},{"$f":"IF($A89=\"N/A\",Ref!$B$36,INDEX(Ranks!$1:$1048576,$A89,DQ$1))","v":""},{"$f":"IF($A89=\"N/A\",Ref!$B$36,INDEX(Ranks!$1:$1048576,$A89,DR$1))","v":""},{"$f":"IF($A89=\"N/A\",Ref!$B$36,INDEX(Ranks!$1:$1048576,$A89,DS$1))","v":""},{"$f":"IF($A89=\"N/A\",Ref!$B$36,INDEX(Ranks!$1:$1048576,$A89,DT$1))","v":""},{"$f":"IF($A89=\"N/A\",Ref!$B$36,INDEX(Ranks!$1:$1048576,$A89,DU$1))","v":""},{"$f":"IF($A89=\"N/A\",Ref!$B$36,INDEX(Ranks!$1:$1048576,$A89,DV$1))","v":""},{"$f":"IF($A89=\"N/A\",Ref!$B$36,INDEX(Ranks!$1:$1048576,$A89,DW$1))","v":""},{"$f":"IF($A89=\"N/A\",Ref!$B$36,INDEX(Ranks!$1:$1048576,$A89,DX$1))","v":""},{"$f":"IF($A89=\"N/A\",Ref!$B$36,INDEX(Ranks!$1:$1048576,$A89,DY$1))","v":""},{"$f":"IF($A89=\"N/A\",Ref!$B$36,INDEX(Ranks!$1:$1048576,$A89,DZ$1))","v":""},{"$f":"IF($A89=\"N/A\",Ref!$B$36,INDEX(Ranks!$1:$1048576,$A89,EA$1))","v":""},{"$f":"IF($A89=\"N/A\",Ref!$B$36,INDEX(Ranks!$1:$1048576,$A89,EB$1))","v":""}]
[{"$f":"IFERROR(MATCH('Portfolio Page'!L90,Ranks!L:L,0),\"N/A\")","v":"N/A"},null,{"$f":"IF($A90=\"N/A\",\"\",INDEX(Ranks!$1:$1048576,$A90,C$1))","v":""},{"$f":"IF($A90=\"N/A\",Ref!$B$36,INDEX(Ranks!$1:$1048576,$A90,D$1))","v":""},{"$f":"IF($A90=\"N/A\",Ref!$B$36,INDEX(Ranks!$1:$1048576,$A90,E$1))","v":""},{"$f":"IF($A90=\"N/A\",\"\",INDEX(Ranks!$1:$1048576,$A90,F$1))","v":""},{"$f":"IF($A90=\"N/A\",\"\",INDEX(Ranks!$1:$1048576,$A90,G$1))","v":""},{"$f":"IF($A90=\"N/A\",\"\",INDEX(Ranks!$1:$1048576,$A90,H$1))","v":""},{"$f":"IF($A90=\"N/A\",\"\",INDEX(Ranks!$1:$1048576,$A90,I$1))","v":""},{"$f":"IF($A90=\"N/A\",\"\",INDEX(Ranks!$1:$1048576,$A90,J$1))","v":""},{"$f":"IF($A90=\"N/A\",\"\",INDEX(Ranks!$1:$1048576,$A90,K$1))","v":""},null,{"$f":"IF($A90=\"N/A\",Ref!$B$36,INDEX(Ranks!$1:$1048576,$A90,M$1))","v":""},{"$f":"IF($A90=\"N/A\",Ref!$B$36,INDEX(Ranks!$1:$1048576,$A90,N$1))","v":""},{"$f":"IF($A90=\"N/A\",Ref!$B$36,INDEX(Ranks!$1:$1048576,$A90,O$1))","v":""},{"$f":"IF($A90=\"N/A\",Ref!$B$36,INDEX(Ranks!$1:$1048576,$A90,P$1))","v":""},{"$f":"IF($A90=\"N/A\",Ref!$B$36,INDEX(Ranks!$1:$1048576,$A90,Q$1))","v":""},{"$f":"IF($A90=\"N/A\",Ref!$B$36,INDEX(Ranks!$1:$1048576,$A90,R$1))","v":""},{"$f":"IF($A90=\"N/A\",Ref!$B$36,INDEX(Ranks!$1:$1048576,$A90,S$1))","v":""},{"$f":"IF($A90=\"N/A\",Ref!$B$36,INDEX(Ranks!$1:$1048576,$A90,T$1))","v":""},{"$f":"IF($A90=\"N/A\",Ref!$B$36,INDEX(Ranks!$1:$1048576,$A90,U$1))","v":""},{"$f":"IF($A90=\"N/A\",Ref!$B$36,INDEX(Ranks!$1:$1048576,$A90,V$1))","v":""},{"$f":"IF($A90=\"N/A\",Ref!$B$36,INDEX(Ranks!$1:$1048576,$A90,W$1))","v":""},{"$f":"IF($A90=\"N/A\",Ref!$B$36,INDEX(Ranks!$1:$1048576,$A90,X$1))","v":""},{"$f":"IF($A90=\"N/A\",Ref!$B$36,INDEX(Ranks!$1:$1048576,$A90,Y$1))","v":""},{"$f":"IF($A90=\"N/A\",Ref!$B$36,INDEX(Ranks!$1:$1048576,$A90,Z$1))","v":""},{"$f":"IF($A90=\"N/A\",Ref!$B$36,INDEX(Ranks!$1:$1048576,$A90,AA$1))","v":""},{"$f":"IF($A90=\"N/A\",Ref!$B$36,INDEX(Ranks!$1:$1048576,$A90,AB$1))","v":""},{"$f":"IF($A90=\"N/A\",Ref!$B$36,INDEX(Ranks!$1:$1048576,$A90,AC$1))","v":""},{"$f":"IF($A90=\"N/A\",Ref!$B$36,INDEX(Ranks!$1:$1048576,$A90,AD$1))","v":""},{"$f":"IF($A90=\"N/A\",Ref!$B$36,INDEX(Ranks!$1:$1048576,$A90,AE$1))","v":""},{"$f":"IF($A90=\"N/A\",Ref!$B$36,INDEX(Ranks!$1:$1048576,$A90,AF$1))","v":""},{"$f":"IF($A90=\"N/A\",Ref!$B$36,INDEX(Ranks!$1:$1048576,$A90,AG$1))","v":""},{"$f":"IF($A90=\"N/A\",Ref!$B$36,INDEX(Ranks!$1:$1048576,$A90,AH$1))","v":""},{"$f":"IF($A90=\"N/A\",Ref!$B$36,INDEX(Ranks!$1:$1048576,$A90,AI$1))","v":""},{"$f":"IF($A90=\"N/A\",Ref!$B$36,INDEX(Ranks!$1:$1048576,$A90,AJ$1))","v":""},{"$f":"IF($A90=\"N/A\",Ref!$B$36,INDEX(Ranks!$1:$1048576,$A90,AK$1))","v":""},{"$f":"IF($A90=\"N/A\",Ref!$B$36,INDEX(Ranks!$1:$1048576,$A90,AL$1))","v":""},{"$f":"IF($A90=\"N/A\",Ref!$B$36,INDEX(Ranks!$1:$1048576,$A90,AM$1))","v":""},{"$f":"IF($A90=\"N/A\",Ref!$B$36,INDEX(Ranks!$1:$1048576,$A90,AN$1))","v":""},{"$f":"IF($A90=\"N/A\",Ref!$B$36,INDEX(Ranks!$1:$1048576,$A90,AO$1))","v":""},{"$f":"IF($A90=\"N/A\",Ref!$B$36,INDEX(Ranks!$1:$1048576,$A90,AP$1))","v":""},{"$f":"IF($A90=\"N/A\",Ref!$B$36,INDEX(Ranks!$1:$1048576,$A90,AQ$1))","v":""},{"$f":"IF($A90=\"N/A\",Ref!$B$36,INDEX(Ranks!$1:$1048576,$A90,AR$1))","v":""},{"$f":"IF($A90=\"N/A\",Ref!$B$36,INDEX(Ranks!$1:$1048576,$A90,AS$1))","v":""},{"$f":"IF($A90=\"N/A\",Ref!$B$36,INDEX(Ranks!$1:$1048576,$A90,AT$1))","v":""},{"$f":"IF($A90=\"N/A\",Ref!$B$36,INDEX(Ranks!$1:$1048576,$A90,AU$1))","v":""},{"$f":"IF($A90=\"N/A\",Ref!$B$36,INDEX(Ranks!$1:$1048576,$A90,AV$1))","v":""},{"$f":"IF($A90=\"N/A\",Ref!$B$36,INDEX(Ranks!$1:$1048576,$A90,AW$1))","v":""},{"$f":"IF($A90=\"N/A\",Ref!$B$36,INDEX(Ranks!$1:$1048576,$A90,AX$1))","v":""},{"$f":"IF($A90=\"N/A\",Ref!$B$36,INDEX(Ranks!$1:$1048576,$A90,AY$1))","v":""},{"$f":"IF($A90=\"N/A\",Ref!$B$36,INDEX(Ranks!$1:$1048576,$A90,AZ$1))","v":""},{"$f":"IF($A90=\"N/A\",Ref!$B$36,INDEX(Ranks!$1:$1048576,$A90,BA$1))","v":""},{"$f":"IF($A90=\"N/A\",Ref!$B$36,INDEX(Ranks!$1:$1048576,$A90,BB$1))","v":""},{"$f":"IF($A90=\"N/A\",Ref!$B$36,INDEX(Ranks!$1:$1048576,$A90,BC$1))","v":""},{"$f":"IF($A90=\"N/A\",Ref!$B$36,INDEX(Ranks!$1:$1048576,$A90,BD$1))","v":""},{"$f":"IF($A90=\"N/A\",Ref!$B$36,INDEX(Ranks!$1:$1048576,$A90,BE$1))","v":""},{"$f":"IF($A90=\"N/A\",Ref!$B$36,INDEX(Ranks!$1:$1048576,$A90,BF$1))","v":""},{"$f":"IF($A90=\"N/A\",Ref!$B$36,INDEX(Ranks!$1:$1048576,$A90,BG$1))","v":""},{"$f":"IF($A90=\"N/A\",Ref!$B$36,INDEX(Ranks!$1:$1048576,$A90,BH$1))","v":""},{"$f":"IF($A90=\"N/A\",Ref!$B$36,INDEX(Ranks!$1:$1048576,$A90,BI$1))","v":""},{"$f":"IF($A90=\"N/A\",Ref!$B$36,INDEX(Ranks!$1:$1048576,$A90,BJ$1))","v":""},{"$f":"IF($A90=\"N/A\",Ref!$B$36,INDEX(Ranks!$1:$1048576,$A90,BK$1))","v":""},{"$f":"IF($A90=\"N/A\",Ref!$B$36,INDEX(Ranks!$1:$1048576,$A90,BL$1))","v":""},{"$f":"IF($A90=\"N/A\",Ref!$B$36,INDEX(Ranks!$1:$1048576,$A90,BM$1))","v":""},{"$f":"IF($A90=\"N/A\",Ref!$B$36,INDEX(Ranks!$1:$1048576,$A90,BN$1))","v":""},{"$f":"IF($A90=\"N/A\",Ref!$B$36,INDEX(Ranks!$1:$1048576,$A90,BO$1))","v":""},{"$f":"IF($A90=\"N/A\",Ref!$B$36,INDEX(Ranks!$1:$1048576,$A90,BP$1))","v":""},{"$f":"IF($A90=\"N/A\",Ref!$B$36,INDEX(Ranks!$1:$1048576,$A90,BQ$1))","v":""},{"$f":"IF($A90=\"N/A\",Ref!$B$36,INDEX(Ranks!$1:$1048576,$A90,BR$1))","v":""},{"$f":"IF($A90=\"N/A\",Ref!$B$36,INDEX(Ranks!$1:$1048576,$A90,BS$1))","v":""},{"$f":"IF($A90=\"N/A\",Ref!$B$36,INDEX(Ranks!$1:$1048576,$A90,BT$1))","v":""},{"$f":"IF($A90=\"N/A\",Ref!$B$36,INDEX(Ranks!$1:$1048576,$A90,BU$1))","v":""},{"$f":"IF($A90=\"N/A\",Ref!$B$36,INDEX(Ranks!$1:$1048576,$A90,BV$1))","v":""},{"$f":"IF($A90=\"N/A\",Ref!$B$36,INDEX(Ranks!$1:$1048576,$A90,BW$1))","v":""},{"$f":"IF($A90=\"N/A\",Ref!$B$36,INDEX(Ranks!$1:$1048576,$A90,BX$1))","v":""},{"$f":"IF($A90=\"N/A\",Ref!$B$36,INDEX(Ranks!$1:$1048576,$A90,BY$1))","v":""},{"$f":"IF($A90=\"N/A\",Ref!$B$36,INDEX(Ranks!$1:$1048576,$A90,BZ$1))","v":""},{"$f":"IF($A90=\"N/A\",Ref!$B$36,INDEX(Ranks!$1:$1048576,$A90,CA$1))","v":""},{"$f":"IF($A90=\"N/A\",Ref!$B$36,INDEX(Ranks!$1:$1048576,$A90,CB$1))","v":""},{"$f":"IF($A90=\"N/A\",Ref!$B$36,INDEX(Ranks!$1:$1048576,$A90,CC$1))","v":""},{"$f":"IF($A90=\"N/A\",Ref!$B$36,INDEX(Ranks!$1:$1048576,$A90,CD$1))","v":""},{"$f":"IF($A90=\"N/A\",Ref!$B$36,INDEX(Ranks!$1:$1048576,$A90,CE$1))","v":""},{"$f":"IF($A90=\"N/A\",Ref!$B$36,INDEX(Ranks!$1:$1048576,$A90,CF$1))","v":""},{"$f":"IF($A90=\"N/A\",Ref!$B$36,INDEX(Ranks!$1:$1048576,$A90,CG$1))","v":""},{"$f":"IF($A90=\"N/A\",Ref!$B$36,INDEX(Ranks!$1:$1048576,$A90,CH$1))","v":""},{"$f":"IF($A90=\"N/A\",Ref!$B$36,INDEX(Ranks!$1:$1048576,$A90,CI$1))","v":""},{"$f":"IF($A90=\"N/A\",Ref!$B$36,INDEX(Ranks!$1:$1048576,$A90,CJ$1))","v":""},{"$f":"IF($A90=\"N/A\",Ref!$B$36,INDEX(Ranks!$1:$1048576,$A90,CK$1))","v":""},{"$f":"IF($A90=\"N/A\",Ref!$B$36,INDEX(Ranks!$1:$1048576,$A90,CL$1))","v":""},{"$f":"IF($A90=\"N/A\",Ref!$B$36,INDEX(Ranks!$1:$1048576,$A90,CM$1))","v":""},{"$f":"IF($A90=\"N/A\",Ref!$B$36,INDEX(Ranks!$1:$1048576,$A90,CN$1))","v":""},{"$f":"IF($A90=\"N/A\",Ref!$B$36,INDEX(Ranks!$1:$1048576,$A90,CO$1))","v":""},{"$f":"IF($A90=\"N/A\",Ref!$B$36,INDEX(Ranks!$1:$1048576,$A90,CP$1))","v":""},{"$f":"IF($A90=\"N/A\",Ref!$B$36,INDEX(Ranks!$1:$1048576,$A90,CQ$1))","v":""},{"$f":"IF($A90=\"N/A\",Ref!$B$36,INDEX(Ranks!$1:$1048576,$A90,CR$1))","v":""},{"$f":"IF($A90=\"N/A\",Ref!$B$36,INDEX(Ranks!$1:$1048576,$A90,CS$1))","v":""},{"$f":"IF($A90=\"N/A\",Ref!$B$36,INDEX(Ranks!$1:$1048576,$A90,CT$1))","v":""},{"$f":"IF($A90=\"N/A\",Ref!$B$36,INDEX(Ranks!$1:$1048576,$A90,CU$1))","v":""},{"$f":"IF($A90=\"N/A\",Ref!$B$36,INDEX(Ranks!$1:$1048576,$A90,CV$1))","v":""},{"$f":"IF($A90=\"N/A\",Ref!$B$36,INDEX(Ranks!$1:$1048576,$A90,CW$1))","v":""},{"$f":"IF($A90=\"N/A\",Ref!$B$36,INDEX(Ranks!$1:$1048576,$A90,CX$1))","v":""},{"$f":"IF($A90=\"N/A\",Ref!$B$36,INDEX(Ranks!$1:$1048576,$A90,CY$1))","v":""},{"$f":"IF($A90=\"N/A\",Ref!$B$36,INDEX(Ranks!$1:$1048576,$A90,CZ$1))","v":""},{"$f":"IF($A90=\"N/A\",Ref!$B$36,INDEX(Ranks!$1:$1048576,$A90,DA$1))","v":""},{"$f":"IF($A90=\"N/A\",Ref!$B$36,INDEX(Ranks!$1:$1048576,$A90,DB$1))","v":""},{"$f":"IF($A90=\"N/A\",Ref!$B$36,INDEX(Ranks!$1:$1048576,$A90,DC$1))","v":""},{"$f":"IF($A90=\"N/A\",Ref!$B$36,INDEX(Ranks!$1:$1048576,$A90,DD$1))","v":""},{"$f":"IF($A90=\"N/A\",Ref!$B$36,INDEX(Ranks!$1:$1048576,$A90,DE$1))","v":""},{"$f":"IF($A90=\"N/A\",Ref!$B$36,INDEX(Ranks!$1:$1048576,$A90,DF$1))","v":""},{"$f":"IF($A90=\"N/A\",Ref!$B$36,INDEX(Ranks!$1:$1048576,$A90,DG$1))","v":""},{"$f":"IF($A90=\"N/A\",Ref!$B$36,INDEX(Ranks!$1:$1048576,$A90,DH$1))","v":""},{"$f":"IF($A90=\"N/A\",Ref!$B$36,INDEX(Ranks!$1:$1048576,$A90,DI$1))","v":""},{"$f":"IF($A90=\"N/A\",Ref!$B$36,INDEX(Ranks!$1:$1048576,$A90,DJ$1))","v":""},{"$f":"IF($A90=\"N/A\",Ref!$B$36,INDEX(Ranks!$1:$1048576,$A90,DK$1))","v":""},{"$f":"IF($A90=\"N/A\",Ref!$B$36,INDEX(Ranks!$1:$1048576,$A90,DL$1))","v":""},{"$f":"IF($A90=\"N/A\",Ref!$B$36,INDEX(Ranks!$1:$1048576,$A90,DM$1))","v":""},{"$f":"IF($A90=\"N/A\",Ref!$B$36,INDEX(Ranks!$1:$1048576,$A90,DN$1))","v":""},{"$f":"IF($A90=\"N/A\",Ref!$B$36,INDEX(Ranks!$1:$1048576,$A90,DO$1))","v":""},{"$f":"IF($A90=\"N/A\",Ref!$B$36,INDEX(Ranks!$1:$1048576,$A90,DP$1))","v":""},{"$f":"IF($A90=\"N/A\",Ref!$B$36,INDEX(Ranks!$1:$1048576,$A90,DQ$1))","v":""},{"$f":"IF($A90=\"N/A\",Ref!$B$36,INDEX(Ranks!$1:$1048576,$A90,DR$1))","v":""},{"$f":"IF($A90=\"N/A\",Ref!$B$36,INDEX(Ranks!$1:$1048576,$A90,DS$1))","v":""},{"$f":"IF($A90=\"N/A\",Ref!$B$36,INDEX(Ranks!$1:$1048576,$A90,DT$1))","v":""},{"$f":"IF($A90=\"N/A\",Ref!$B$36,INDEX(Ranks!$1:$1048576,$A90,DU$1))","v":""},{"$f":"IF($A90=\"N/A\",Ref!$B$36,INDEX(Ranks!$1:$1048576,$A90,DV$1))","v":""},{"$f":"IF($A90=\"N/A\",Ref!$B$36,INDEX(Ranks!$1:$1048576,$A90,DW$1))","v":""},{"$f":"IF($A90=\"N/A\",Ref!$B$36,INDEX(Ranks!$1:$1048576,$A90,DX$1))","v":""},{"$f":"IF($A90=\"N/A\",Ref!$B$36,INDEX(Ranks!$1:$1048576,$A90,DY$1))","v":""},{"$f":"IF($A90=\"N/A\",Ref!$B$36,INDEX(Ranks!$1:$1048576,$A90,DZ$1))","v":""},{"$f":"IF($A90=\"N/A\",Ref!$B$36,INDEX(Ranks!$1:$1048576,$A90,EA$1))","v":""},{"$f":"IF($A90=\"N/A\",Ref!$B$36,INDEX(Ranks!$1:$1048576,$A90,EB$1))","v":""}]
[{"$f":"IFERROR(MATCH('Portfolio Page'!L91,Ranks!L:L,0),\"N/A\")","v":"N/A"},null,{"$f":"IF($A91=\"N/A\",\"\",INDEX(Ranks!$1:$1048576,$A91,C$1))","v":""},{"$f":"IF($A91=\"N/A\",Ref!$B$36,INDEX(Ranks!$1:$1048576,$A91,D$1))","v":""},{"$f":"IF($A91=\"N/A\",Ref!$B$36,INDEX(Ranks!$1:$1048576,$A91,E$1))","v":""},{"$f":"IF($A91=\"N/A\",\"\",INDEX(Ranks!$1:$1048576,$A91,F$1))","v":""},{"$f":"IF($A91=\"N/A\",\"\",INDEX(Ranks!$1:$1048576,$A91,G$1))","v":""},{"$f":"IF($A91=\"N/A\",\"\",INDEX(Ranks!$1:$1048576,$A91,H$1))","v":""},{"$f":"IF($A91=\"N/A\",\"\",INDEX(Ranks!$1:$1048576,$A91,I$1))","v":""},{"$f":"IF($A91=\"N/A\",\"\",INDEX(Ranks!$1:$1048576,$A91,J$1))","v":""},{"$f":"IF($A91=\"N/A\",\"\",INDEX(Ranks!$1:$1048576,$A91,K$1))","v":""},null,{"$f":"IF($A91=\"N/A\",Ref!$B$36,INDEX(Ranks!$1:$1048576,$A91,M$1))","v":""},{"$f":"IF($A91=\"N/A\",Ref!$B$36,INDEX(Ranks!$1:$1048576,$A91,N$1))","v":""},{"$f":"IF($A91=\"N/A\",Ref!$B$36,INDEX(Ranks!$1:$1048576,$A91,O$1))","v":""},{"$f":"IF($A91=\"N/A\",Ref!$B$36,INDEX(Ranks!$1:$1048576,$A91,P$1))","v":""},{"$f":"IF($A91=\"N/A\",Ref!$B$36,INDEX(Ranks!$1:$1048576,$A91,Q$1))","v":""},{"$f":"IF($A91=\"N/A\",Ref!$B$36,INDEX(Ranks!$1:$1048576,$A91,R$1))","v":""},{"$f":"IF($A91=\"N/A\",Ref!$B$36,INDEX(Ranks!$1:$1048576,$A91,S$1))","v":""},{"$f":"IF($A91=\"N/A\",Ref!$B$36,INDEX(Ranks!$1:$1048576,$A91,T$1))","v":""},{"$f":"IF($A91=\"N/A\",Ref!$B$36,INDEX(Ranks!$1:$1048576,$A91,U$1))","v":""},{"$f":"IF($A91=\"N/A\",Ref!$B$36,INDEX(Ranks!$1:$1048576,$A91,V$1))","v":""},{"$f":"IF($A91=\"N/A\",Ref!$B$36,INDEX(Ranks!$1:$1048576,$A91,W$1))","v":""},{"$f":"IF($A91=\"N/A\",Ref!$B$36,INDEX(Ranks!$1:$1048576,$A91,X$1))","v":""},{"$f":"IF($A91=\"N/A\",Ref!$B$36,INDEX(Ranks!$1:$1048576,$A91,Y$1))","v":""},{"$f":"IF($A91=\"N/A\",Ref!$B$36,INDEX(Ranks!$1:$1048576,$A91,Z$1))","v":""},{"$f":"IF($A91=\"N/A\",Ref!$B$36,INDEX(Ranks!$1:$1048576,$A91,AA$1))","v":""},{"$f":"IF($A91=\"N/A\",Ref!$B$36,INDEX(Ranks!$1:$1048576,$A91,AB$1))","v":""},{"$f":"IF($A91=\"N/A\",Ref!$B$36,INDEX(Ranks!$1:$1048576,$A91,AC$1))","v":""},{"$f":"IF($A91=\"N/A\",Ref!$B$36,INDEX(Ranks!$1:$1048576,$A91,AD$1))","v":""},{"$f":"IF($A91=\"N/A\",Ref!$B$36,INDEX(Ranks!$1:$1048576,$A91,AE$1))","v":""},{"$f":"IF($A91=\"N/A\",Ref!$B$36,INDEX(Ranks!$1:$1048576,$A91,AF$1))","v":""},{"$f":"IF($A91=\"N/A\",Ref!$B$36,INDEX(Ranks!$1:$1048576,$A91,AG$1))","v":""},{"$f":"IF($A91=\"N/A\",Ref!$B$36,INDEX(Ranks!$1:$1048576,$A91,AH$1))","v":""},{"$f":"IF($A91=\"N/A\",Ref!$B$36,INDEX(Ranks!$1:$1048576,$A91,AI$1))","v":""},{"$f":"IF($A91=\"N/A\",Ref!$B$36,INDEX(Ranks!$1:$1048576,$A91,AJ$1))","v":""},{"$f":"IF($A91=\"N/A\",Ref!$B$36,INDEX(Ranks!$1:$1048576,$A91,AK$1))","v":""},{"$f":"IF($A91=\"N/A\",Ref!$B$36,INDEX(Ranks!$1:$1048576,$A91,AL$1))","v":""},{"$f":"IF($A91=\"N/A\",Ref!$B$36,INDEX(Ranks!$1:$1048576,$A91,AM$1))","v":""},{"$f":"IF($A91=\"N/A\",Ref!$B$36,INDEX(Ranks!$1:$1048576,$A91,AN$1))","v":""},{"$f":"IF($A91=\"N/A\",Ref!$B$36,INDEX(Ranks!$1:$1048576,$A91,AO$1))","v":""},{"$f":"IF($A91=\"N/A\",Ref!$B$36,INDEX(Ranks!$1:$1048576,$A91,AP$1))","v":""},{"$f":"IF($A91=\"N/A\",Ref!$B$36,INDEX(Ranks!$1:$1048576,$A91,AQ$1))","v":""},{"$f":"IF($A91=\"N/A\",Ref!$B$36,INDEX(Ranks!$1:$1048576,$A91,AR$1))","v":""},{"$f":"IF($A91=\"N/A\",Ref!$B$36,INDEX(Ranks!$1:$1048576,$A91,AS$1))","v":""},{"$f":"IF($A91=\"N/A\",Ref!$B$36,INDEX(Ranks!$1:$1048576,$A91,AT$1))","v":""},{"$f":"IF($A91=\"N/A\",Ref!$B$36,INDEX(Ranks!$1:$1048576,$A91,AU$1))","v":""},{"$f":"IF($A91=\"N/A\",Ref!$B$36,INDEX(Ranks!$1:$1048576,$A91,AV$1))","v":""},{"$f":"IF($A91=\"N/A\",Ref!$B$36,INDEX(Ranks!$1:$1048576,$A91,AW$1))","v":""},{"$f":"IF($A91=\"N/A\",Ref!$B$36,INDEX(Ranks!$1:$1048576,$A91,AX$1))","v":""},{"$f":"IF($A91=\"N/A\",Ref!$B$36,INDEX(Ranks!$1:$1048576,$A91,AY$1))","v":""},{"$f":"IF($A91=\"N/A\",Ref!$B$36,INDEX(Ranks!$1:$1048576,$A91,AZ$1))","v":""},{"$f":"IF($A91=\"N/A\",Ref!$B$36,INDEX(Ranks!$1:$1048576,$A91,BA$1))","v":""},{"$f":"IF($A91=\"N/A\",Ref!$B$36,INDEX(Ranks!$1:$1048576,$A91,BB$1))","v":""},{"$f":"IF($A91=\"N/A\",Ref!$B$36,INDEX(Ranks!$1:$1048576,$A91,BC$1))","v":""},{"$f":"IF($A91=\"N/A\",Ref!$B$36,INDEX(Ranks!$1:$1048576,$A91,BD$1))","v":""},{"$f":"IF($A91=\"N/A\",Ref!$B$36,INDEX(Ranks!$1:$1048576,$A91,BE$1))","v":""},{"$f":"IF($A91=\"N/A\",Ref!$B$36,INDEX(Ranks!$1:$1048576,$A91,BF$1))","v":""},{"$f":"IF($A91=\"N/A\",Ref!$B$36,INDEX(Ranks!$1:$1048576,$A91,BG$1))","v":""},{"$f":"IF($A91=\"N/A\",Ref!$B$36,INDEX(Ranks!$1:$1048576,$A91,BH$1))","v":""},{"$f":"IF($A91=\"N/A\",Ref!$B$36,INDEX(Ranks!$1:$1048576,$A91,BI$1))","v":""},{"$f":"IF($A91=\"N/A\",Ref!$B$36,INDEX(Ranks!$1:$1048576,$A91,BJ$1))","v":""},{"$f":"IF($A91=\"N/A\",Ref!$B$36,INDEX(Ranks!$1:$1048576,$A91,BK$1))","v":""},{"$f":"IF($A91=\"N/A\",Ref!$B$36,INDEX(Ranks!$1:$1048576,$A91,BL$1))","v":""},{"$f":"IF($A91=\"N/A\",Ref!$B$36,INDEX(Ranks!$1:$1048576,$A91,BM$1))","v":""},{"$f":"IF($A91=\"N/A\",Ref!$B$36,INDEX(Ranks!$1:$1048576,$A91,BN$1))","v":""},{"$f":"IF($A91=\"N/A\",Ref!$B$36,INDEX(Ranks!$1:$1048576,$A91,BO$1))","v":""},{"$f":"IF($A91=\"N/A\",Ref!$B$36,INDEX(Ranks!$1:$1048576,$A91,BP$1))","v":""},{"$f":"IF($A91=\"N/A\",Ref!$B$36,INDEX(Ranks!$1:$1048576,$A91,BQ$1))","v":""},{"$f":"IF($A91=\"N/A\",Ref!$B$36,INDEX(Ranks!$1:$1048576,$A91,BR$1))","v":""},{"$f":"IF($A91=\"N/A\",Ref!$B$36,INDEX(Ranks!$1:$1048576,$A91,BS$1))","v":""},{"$f":"IF($A91=\"N/A\",Ref!$B$36,INDEX(Ranks!$1:$1048576,$A91,BT$1))","v":""},{"$f":"IF($A91=\"N/A\",Ref!$B$36,INDEX(Ranks!$1:$1048576,$A91,BU$1))","v":""},{"$f":"IF($A91=\"N/A\",Ref!$B$36,INDEX(Ranks!$1:$1048576,$A91,BV$1))","v":""},{"$f":"IF($A91=\"N/A\",Ref!$B$36,INDEX(Ranks!$1:$1048576,$A91,BW$1))","v":""},{"$f":"IF($A91=\"N/A\",Ref!$B$36,INDEX(Ranks!$1:$1048576,$A91,BX$1))","v":""},{"$f":"IF($A91=\"N/A\",Ref!$B$36,INDEX(Ranks!$1:$1048576,$A91,BY$1))","v":""},{"$f":"IF($A91=\"N/A\",Ref!$B$36,INDEX(Ranks!$1:$1048576,$A91,BZ$1))","v":""},{"$f":"IF($A91=\"N/A\",Ref!$B$36,INDEX(Ranks!$1:$1048576,$A91,CA$1))","v":""},{"$f":"IF($A91=\"N/A\",Ref!$B$36,INDEX(Ranks!$1:$1048576,$A91,CB$1))","v":""},{"$f":"IF($A91=\"N/A\",Ref!$B$36,INDEX(Ranks!$1:$1048576,$A91,CC$1))","v":""},{"$f":"IF($A91=\"N/A\",Ref!$B$36,INDEX(Ranks!$1:$1048576,$A91,CD$1))","v":""},{"$f":"IF($A91=\"N/A\",Ref!$B$36,INDEX(Ranks!$1:$1048576,$A91,CE$1))","v":""},{"$f":"IF($A91=\"N/A\",Ref!$B$36,INDEX(Ranks!$1:$1048576,$A91,CF$1))","v":""},{"$f":"IF($A91=\"N/A\",Ref!$B$36,INDEX(Ranks!$1:$1048576,$A91,CG$1))","v":""},{"$f":"IF($A91=\"N/A\",Ref!$B$36,INDEX(Ranks!$1:$1048576,$A91,CH$1))","v":""},{"$f":"IF($A91=\"N/A\",Ref!$B$36,INDEX(Ranks!$1:$1048576,$A91,CI$1))","v":""},{"$f":"IF($A91=\"N/A\",Ref!$B$36,INDEX(Ranks!$1:$1048576,$A91,CJ$1))","v":""},{"$f":"IF($A91=\"N/A\",Ref!$B$36,INDEX(Ranks!$1:$1048576,$A91,CK$1))","v":""},{"$f":"IF($A91=\"N/A\",Ref!$B$36,INDEX(Ranks!$1:$1048576,$A91,CL$1))","v":""},{"$f":"IF($A91=\"N/A\",Ref!$B$36,INDEX(Ranks!$1:$1048576,$A91,CM$1))","v":""},{"$f":"IF($A91=\"N/A\",Ref!$B$36,INDEX(Ranks!$1:$1048576,$A91,CN$1))","v":""},{"$f":"IF($A91=\"N/A\",Ref!$B$36,INDEX(Ranks!$1:$1048576,$A91,CO$1))","v":""},{"$f":"IF($A91=\"N/A\",Ref!$B$36,INDEX(Ranks!$1:$1048576,$A91,CP$1))","v":""},{"$f":"IF($A91=\"N/A\",Ref!$B$36,INDEX(Ranks!$1:$1048576,$A91,CQ$1))","v":""},{"$f":"IF($A91=\"N/A\",Ref!$B$36,INDEX(Ranks!$1:$1048576,$A91,CR$1))","v":""},{"$f":"IF($A91=\"N/A\",Ref!$B$36,INDEX(Ranks!$1:$1048576,$A91,CS$1))","v":""},{"$f":"IF($A91=\"N/A\",Ref!$B$36,INDEX(Ranks!$1:$1048576,$A91,CT$1))","v":""},{"$f":"IF($A91=\"N/A\",Ref!$B$36,INDEX(Ranks!$1:$1048576,$A91,CU$1))","v":""},{"$f":"IF($A91=\"N/A\",Ref!$B$36,INDEX(Ranks!$1:$1048576,$A91,CV$1))","v":""},{"$f":"IF($A91=\"N/A\",Ref!$B$36,INDEX(Ranks!$1:$1048576,$A91,CW$1))","v":""},{"$f":"IF($A91=\"N/A\",Ref!$B$36,INDEX(Ranks!$1:$1048576,$A91,CX$1))","v":""},{"$f":"IF($A91=\"N/A\",Ref!$B$36,INDEX(Ranks!$1:$1048576,$A91,CY$1))","v":""},{"$f":"IF($A91=\"N/A\",Ref!$B$36,INDEX(Ranks!$1:$1048576,$A91,CZ$1))","v":""},{"$f":"IF($A91=\"N/A\",Ref!$B$36,INDEX(Ranks!$1:$1048576,$A91,DA$1))","v":""},{"$f":"IF($A91=\"N/A\",Ref!$B$36,INDEX(Ranks!$1:$1048576,$A91,DB$1))","v":""},{"$f":"IF($A91=\"N/A\",Ref!$B$36,INDEX(Ranks!$1:$1048576,$A91,DC$1))","v":""},{"$f":"IF($A91=\"N/A\",Ref!$B$36,INDEX(Ranks!$1:$1048576,$A91,DD$1))","v":""},{"$f":"IF($A91=\"N/A\",Ref!$B$36,INDEX(Ranks!$1:$1048576,$A91,DE$1))","v":""},{"$f":"IF($A91=\"N/A\",Ref!$B$36,INDEX(Ranks!$1:$1048576,$A91,DF$1))","v":""},{"$f":"IF($A91=\"N/A\",Ref!$B$36,INDEX(Ranks!$1:$1048576,$A91,DG$1))","v":""},{"$f":"IF($A91=\"N/A\",Ref!$B$36,INDEX(Ranks!$1:$1048576,$A91,DH$1))","v":""},{"$f":"IF($A91=\"N/A\",Ref!$B$36,INDEX(Ranks!$1:$1048576,$A91,DI$1))","v":""},{"$f":"IF($A91=\"N/A\",Ref!$B$36,INDEX(Ranks!$1:$1048576,$A91,DJ$1))","v":""},{"$f":"IF($A91=\"N/A\",Ref!$B$36,INDEX(Ranks!$1:$1048576,$A91,DK$1))","v":""},{"$f":"IF($A91=\"N/A\",Ref!$B$36,INDEX(Ranks!$1:$1048576,$A91,DL$1))","v":""},{"$f":"IF($A91=\"N/A\",Ref!$B$36,INDEX(Ranks!$1:$1048576,$A91,DM$1))","v":""},{"$f":"IF($A91=\"N/A\",Ref!$B$36,INDEX(Ranks!$1:$1048576,$A91,DN$1))","v":""},{"$f":"IF($A91=\"N/A\",Ref!$B$36,INDEX(Ranks!$1:$1048576,$A91,DO$1))","v":""},{"$f":"IF($A91=\"N/A\",Ref!$B$36,INDEX(Ranks!$1:$1048576,$A91,DP$1))","v":""},{"$f":"IF($A91=\"N/A\",Ref!$B$36,INDEX(Ranks!$1:$1048576,$A91,DQ$1))","v":""},{"$f":"IF($A91=\"N/A\",Ref!$B$36,INDEX(Ranks!$1:$1048576,$A91,DR$1))","v":""},{"$f":"IF($A91=\"N/A\",Ref!$B$36,INDEX(Ranks!$1:$1048576,$A91,DS$1))","v":""},{"$f":"IF($A91=\"N/A\",Ref!$B$36,INDEX(Ranks!$1:$1048576,$A91,DT$1))","v":""},{"$f":"IF($A91=\"N/A\",Ref!$B$36,INDEX(Ranks!$1:$1048576,$A91,DU$1))","v":""},{"$f":"IF($A91=\"N/A\",Ref!$B$36,INDEX(Ranks!$1:$1048576,$A91,DV$1))","v":""},{"$f":"IF($A91=\"N/A\",Ref!$B$36,INDEX(Ranks!$1:$1048576,$A91,DW$1))","v":""},{"$f":"IF($A91=\"N/A\",Ref!$B$36,INDEX(Ranks!$1:$1048576,$A91,DX$1))","v":""},{"$f":"IF($A91=\"N/A\",Ref!$B$36,INDEX(Ranks!$1:$1048576,$A91,DY$1))","v":""},{"$f":"IF($A91=\"N/A\",Ref!$B$36,INDEX(Ranks!$1:$1048576,$A91,DZ$1))","v":""},{"$f":"IF($A91=\"N/A\",Ref!$B$36,INDEX(Ranks!$1:$1048576,$A91,EA$1))","v":""},{"$f":"IF($A91=\"N/A\",Ref!$B$36,INDEX(Ranks!$1:$1048576,$A91,EB$1))","v":""}]
[{"$f":"IFERROR(MATCH('Portfolio Page'!L92,Ranks!L:L,0),\"N/A\")","v":"N/A"},null,{"$f":"IF($A92=\"N/A\",\"\",INDEX(Ranks!$1:$1048576,$A92,C$1))","v":""},{"$f":"IF($A92=\"N/A\",Ref!$B$36,INDEX(Ranks!$1:$1048576,$A92,D$1))","v":""},{"$f":"IF($A92=\"N/A\",Ref!$B$36,INDEX(Ranks!$1:$1048576,$A92,E$1))","v":""},{"$f":"IF($A92=\"N/A\",\"\",INDEX(Ranks!$1:$1048576,$A92,F$1))","v":""},{"$f":"IF($A92=\"N/A\",\"\",INDEX(Ranks!$1:$1048576,$A92,G$1))","v":""},{"$f":"IF($A92=\"N/A\",\"\",INDEX(Ranks!$1:$1048576,$A92,H$1))","v":""},{"$f":"IF($A92=\"N/A\",\"\",INDEX(Ranks!$1:$1048576,$A92,I$1))","v":""},{"$f":"IF($A92=\"N/A\",\"\",INDEX(Ranks!$1:$1048576,$A92,J$1))","v":""},{"$f":"IF($A92=\"N/A\",\"\",INDEX(Ranks!$1:$1048576,$A92,K$1))","v":""},null,{"$f":"IF($A92=\"N/A\",Ref!$B$36,INDEX(Ranks!$1:$1048576,$A92,M$1))","v":""},{"$f":"IF($A92=\"N/A\",Ref!$B$36,INDEX(Ranks!$1:$1048576,$A92,N$1))","v":""},{"$f":"IF($A92=\"N/A\",Ref!$B$36,INDEX(Ranks!$1:$1048576,$A92,O$1))","v":""},{"$f":"IF($A92=\"N/A\",Ref!$B$36,INDEX(Ranks!$1:$1048576,$A92,P$1))","v":""},{"$f":"IF($A92=\"N/A\",Ref!$B$36,INDEX(Ranks!$1:$1048576,$A92,Q$1))","v":""},{"$f":"IF($A92=\"N/A\",Ref!$B$36,INDEX(Ranks!$1:$1048576,$A92,R$1))","v":""},{"$f":"IF($A92=\"N/A\",Ref!$B$36,INDEX(Ranks!$1:$1048576,$A92,S$1))","v":""},{"$f":"IF($A92=\"N/A\",Ref!$B$36,INDEX(Ranks!$1:$1048576,$A92,T$1))","v":""},{"$f":"IF($A92=\"N/A\",Ref!$B$36,INDEX(Ranks!$1:$1048576,$A92,U$1))","v":""},{"$f":"IF($A92=\"N/A\",Ref!$B$36,INDEX(Ranks!$1:$1048576,$A92,V$1))","v":""},{"$f":"IF($A92=\"N/A\",Ref!$B$36,INDEX(Ranks!$1:$1048576,$A92,W$1))","v":""},{"$f":"IF($A92=\"N/A\",Ref!$B$36,INDEX(Ranks!$1:$1048576,$A92,X$1))","v":""},{"$f":"IF($A92=\"N/A\",Ref!$B$36,INDEX(Ranks!$1:$1048576,$A92,Y$1))","v":""},{"$f":"IF($A92=\"N/A\",Ref!$B$36,INDEX(Ranks!$1:$1048576,$A92,Z$1))","v":""},{"$f":"IF($A92=\"N/A\",Ref!$B$36,INDEX(Ranks!$1:$1048576,$A92,AA$1))","v":""},{"$f":"IF($A92=\"N/A\",Ref!$B$36,INDEX(Ranks!$1:$1048576,$A92,AB$1))","v":""},{"$f":"IF($A92=\"N/A\",Ref!$B$36,INDEX(Ranks!$1:$1048576,$A92,AC$1))","v":""},{"$f":"IF($A92=\"N/A\",Ref!$B$36,INDEX(Ranks!$1:$1048576,$A92,AD$1))","v":""},{"$f":"IF($A92=\"N/A\",Ref!$B$36,INDEX(Ranks!$1:$1048576,$A92,AE$1))","v":""},{"$f":"IF($A92=\"N/A\",Ref!$B$36,INDEX(Ranks!$1:$1048576,$A92,AF$1))","v":""},{"$f":"IF($A92=\"N/A\",Ref!$B$36,INDEX(Ranks!$1:$1048576,$A92,AG$1))","v":""},{"$f":"IF($A92=\"N/A\",Ref!$B$36,INDEX(Ranks!$1:$1048576,$A92,AH$1))","v":""},{"$f":"IF($A92=\"N/A\",Ref!$B$36,INDEX(Ranks!$1:$1048576,$A92,AI$1))","v":""},{"$f":"IF($A92=\"N/A\",Ref!$B$36,INDEX(Ranks!$1:$1048576,$A92,AJ$1))","v":""},{"$f":"IF($A92=\"N/A\",Ref!$B$36,INDEX(Ranks!$1:$1048576,$A92,AK$1))","v":""},{"$f":"IF($A92=\"N/A\",Ref!$B$36,INDEX(Ranks!$1:$1048576,$A92,AL$1))","v":""},{"$f":"IF($A92=\"N/A\",Ref!$B$36,INDEX(Ranks!$1:$1048576,$A92,AM$1))","v":""},{"$f":"IF($A92=\"N/A\",Ref!$B$36,INDEX(Ranks!$1:$1048576,$A92,AN$1))","v":""},{"$f":"IF($A92=\"N/A\",Ref!$B$36,INDEX(Ranks!$1:$1048576,$A92,AO$1))","v":""},{"$f":"IF($A92=\"N/A\",Ref!$B$36,INDEX(Ranks!$1:$1048576,$A92,AP$1))","v":""},{"$f":"IF($A92=\"N/A\",Ref!$B$36,INDEX(Ranks!$1:$1048576,$A92,AQ$1))","v":""},{"$f":"IF($A92=\"N/A\",Ref!$B$36,INDEX(Ranks!$1:$1048576,$A92,AR$1))","v":""},{"$f":"IF($A92=\"N/A\",Ref!$B$36,INDEX(Ranks!$1:$1048576,$A92,AS$1))","v":""},{"$f":"IF($A92=\"N/A\",Ref!$B$36,INDEX(Ranks!$1:$1048576,$A92,AT$1))","v":""},{"$f":"IF($A92=\"N/A\",Ref!$B$36,INDEX(Ranks!$1:$1048576,$A92,AU$1))","v":""},{"$f":"IF($A92=\"N/A\",Ref!$B$36,INDEX(Ranks!$1:$1048576,$A92,AV$1))","v":""},{"$f":"IF($A92=\"N/A\",Ref!$B$36,INDEX(Ranks!$1:$1048576,$A92,AW$1))","v":""},{"$f":"IF($A92=\"N/A\",Ref!$B$36,INDEX(Ranks!$1:$1048576,$A92,AX$1))","v":""},{"$f":"IF($A92=\"N/A\",Ref!$B$36,INDEX(Ranks!$1:$1048576,$A92,AY$1))","v":""},{"$f":"IF($A92=\"N/A\",Ref!$B$36,INDEX(Ranks!$1:$1048576,$A92,AZ$1))","v":""},{"$f":"IF($A92=\"N/A\",Ref!$B$36,INDEX(Ranks!$1:$1048576,$A92,BA$1))","v":""},{"$f":"IF($A92=\"N/A\",Ref!$B$36,INDEX(Ranks!$1:$1048576,$A92,BB$1))","v":""},{"$f":"IF($A92=\"N/A\",Ref!$B$36,INDEX(Ranks!$1:$1048576,$A92,BC$1))","v":""},{"$f":"IF($A92=\"N/A\",Ref!$B$36,INDEX(Ranks!$1:$1048576,$A92,BD$1))","v":""},{"$f":"IF($A92=\"N/A\",Ref!$B$36,INDEX(Ranks!$1:$1048576,$A92,BE$1))","v":""},{"$f":"IF($A92=\"N/A\",Ref!$B$36,INDEX(Ranks!$1:$1048576,$A92,BF$1))","v":""},{"$f":"IF($A92=\"N/A\",Ref!$B$36,INDEX(Ranks!$1:$1048576,$A92,BG$1))","v":""},{"$f":"IF($A92=\"N/A\",Ref!$B$36,INDEX(Ranks!$1:$1048576,$A92,BH$1))","v":""},{"$f":"IF($A92=\"N/A\",Ref!$B$36,INDEX(Ranks!$1:$1048576,$A92,BI$1))","v":""},{"$f":"IF($A92=\"N/A\",Ref!$B$36,INDEX(Ranks!$1:$1048576,$A92,BJ$1))","v":""},{"$f":"IF($A92=\"N/A\",Ref!$B$36,INDEX(Ranks!$1:$1048576,$A92,BK$1))","v":""},{"$f":"IF($A92=\"N/A\",Ref!$B$36,INDEX(Ranks!$1:$1048576,$A92,BL$1))","v":""},{"$f":"IF($A92=\"N/A\",Ref!$B$36,INDEX(Ranks!$1:$1048576,$A92,BM$1))","v":""},{"$f":"IF($A92=\"N/A\",Ref!$B$36,INDEX(Ranks!$1:$1048576,$A92,BN$1))","v":""},{"$f":"IF($A92=\"N/A\",Ref!$B$36,INDEX(Ranks!$1:$1048576,$A92,BO$1))","v":""},{"$f":"IF($A92=\"N/A\",Ref!$B$36,INDEX(Ranks!$1:$1048576,$A92,BP$1))","v":""},{"$f":"IF($A92=\"N/A\",Ref!$B$36,INDEX(Ranks!$1:$1048576,$A92,BQ$1))","v":""},{"$f":"IF($A92=\"N/A\",Ref!$B$36,INDEX(Ranks!$1:$1048576,$A92,BR$1))","v":""},{"$f":"IF($A92=\"N/A\",Ref!$B$36,INDEX(Ranks!$1:$1048576,$A92,BS$1))","v":""},{"$f":"IF($A92=\"N/A\",Ref!$B$36,INDEX(Ranks!$1:$1048576,$A92,BT$1))","v":""},{"$f":"IF($A92=\"N/A\",Ref!$B$36,INDEX(Ranks!$1:$1048576,$A92,BU$1))","v":""},{"$f":"IF($A92=\"N/A\",Ref!$B$36,INDEX(Ranks!$1:$1048576,$A92,BV$1))","v":""},{"$f":"IF($A92=\"N/A\",Ref!$B$36,INDEX(Ranks!$1:$1048576,$A92,BW$1))","v":""},{"$f":"IF($A92=\"N/A\",Ref!$B$36,INDEX(Ranks!$1:$1048576,$A92,BX$1))","v":""},{"$f":"IF($A92=\"N/A\",Ref!$B$36,INDEX(Ranks!$1:$1048576,$A92,BY$1))","v":""},{"$f":"IF($A92=\"N/A\",Ref!$B$36,INDEX(Ranks!$1:$1048576,$A92,BZ$1))","v":""},{"$f":"IF($A92=\"N/A\",Ref!$B$36,INDEX(Ranks!$1:$1048576,$A92,CA$1))","v":""},{"$f":"IF($A92=\"N/A\",Ref!$B$36,INDEX(Ranks!$1:$1048576,$A92,CB$1))","v":""},{"$f":"IF($A92=\"N/A\",Ref!$B$36,INDEX(Ranks!$1:$1048576,$A92,CC$1))","v":""},{"$f":"IF($A92=\"N/A\",Ref!$B$36,INDEX(Ranks!$1:$1048576,$A92,CD$1))","v":""},{"$f":"IF($A92=\"N/A\",Ref!$B$36,INDEX(Ranks!$1:$1048576,$A92,CE$1))","v":""},{"$f":"IF($A92=\"N/A\",Ref!$B$36,INDEX(Ranks!$1:$1048576,$A92,CF$1))","v":""},{"$f":"IF($A92=\"N/A\",Ref!$B$36,INDEX(Ranks!$1:$1048576,$A92,CG$1))","v":""},{"$f":"IF($A92=\"N/A\",Ref!$B$36,INDEX(Ranks!$1:$1048576,$A92,CH$1))","v":""},{"$f":"IF($A92=\"N/A\",Ref!$B$36,INDEX(Ranks!$1:$1048576,$A92,CI$1))","v":""},{"$f":"IF($A92=\"N/A\",Ref!$B$36,INDEX(Ranks!$1:$1048576,$A92,CJ$1))","v":""},{"$f":"IF($A92=\"N/A\",Ref!$B$36,INDEX(Ranks!$1:$1048576,$A92,CK$1))","v":""},{"$f":"IF($A92=\"N/A\",Ref!$B$36,INDEX(Ranks!$1:$1048576,$A92,CL$1))","v":""},{"$f":"IF($A92=\"N/A\",Ref!$B$36,INDEX(Ranks!$1:$1048576,$A92,CM$1))","v":""},{"$f":"IF($A92=\"N/A\",Ref!$B$36,INDEX(Ranks!$1:$1048576,$A92,CN$1))","v":""},{"$f":"IF($A92=\"N/A\",Ref!$B$36,INDEX(Ranks!$1:$1048576,$A92,CO$1))","v":""},{"$f":"IF($A92=\"N/A\",Ref!$B$36,INDEX(Ranks!$1:$1048576,$A92,CP$1))","v":""},{"$f":"IF($A92=\"N/A\",Ref!$B$36,INDEX(Ranks!$1:$1048576,$A92,CQ$1))","v":""},{"$f":"IF($A92=\"N/A\",Ref!$B$36,INDEX(Ranks!$1:$1048576,$A92,CR$1))","v":""},{"$f":"IF($A92=\"N/A\",Ref!$B$36,INDEX(Ranks!$1:$1048576,$A92,CS$1))","v":""},{"$f":"IF($A92=\"N/A\",Ref!$B$36,INDEX(Ranks!$1:$1048576,$A92,CT$1))","v":""},{"$f":"IF($A92=\"N/A\",Ref!$B$36,INDEX(Ranks!$1:$1048576,$A92,CU$1))","v":""},{"$f":"IF($A92=\"N/A\",Ref!$B$36,INDEX(Ranks!$1:$1048576,$A92,CV$1))","v":""},{"$f":"IF($A92=\"N/A\",Ref!$B$36,INDEX(Ranks!$1:$1048576,$A92,CW$1))","v":""},{"$f":"IF($A92=\"N/A\",Ref!$B$36,INDEX(Ranks!$1:$1048576,$A92,CX$1))","v":""},{"$f":"IF($A92=\"N/A\",Ref!$B$36,INDEX(Ranks!$1:$1048576,$A92,CY$1))","v":""},{"$f":"IF($A92=\"N/A\",Ref!$B$36,INDEX(Ranks!$1:$1048576,$A92,CZ$1))","v":""},{"$f":"IF($A92=\"N/A\",Ref!$B$36,INDEX(Ranks!$1:$1048576,$A92,DA$1))","v":""},{"$f":"IF($A92=\"N/A\",Ref!$B$36,INDEX(Ranks!$1:$1048576,$A92,DB$1))","v":""},{"$f":"IF($A92=\"N/A\",Ref!$B$36,INDEX(Ranks!$1:$1048576,$A92,DC$1))","v":""},{"$f":"IF($A92=\"N/A\",Ref!$B$36,INDEX(Ranks!$1:$1048576,$A92,DD$1))","v":""},{"$f":"IF($A92=\"N/A\",Ref!$B$36,INDEX(Ranks!$1:$1048576,$A92,DE$1))","v":""},{"$f":"IF($A92=\"N/A\",Ref!$B$36,INDEX(Ranks!$1:$1048576,$A92,DF$1))","v":""},{"$f":"IF($A92=\"N/A\",Ref!$B$36,INDEX(Ranks!$1:$1048576,$A92,DG$1))","v":""},{"$f":"IF($A92=\"N/A\",Ref!$B$36,INDEX(Ranks!$1:$1048576,$A92,DH$1))","v":""},{"$f":"IF($A92=\"N/A\",Ref!$B$36,INDEX(Ranks!$1:$1048576,$A92,DI$1))","v":""},{"$f":"IF($A92=\"N/A\",Ref!$B$36,INDEX(Ranks!$1:$1048576,$A92,DJ$1))","v":""},{"$f":"IF($A92=\"N/A\",Ref!$B$36,INDEX(Ranks!$1:$1048576,$A92,DK$1))","v":""},{"$f":"IF($A92=\"N/A\",Ref!$B$36,INDEX(Ranks!$1:$1048576,$A92,DL$1))","v":""},{"$f":"IF($A92=\"N/A\",Ref!$B$36,INDEX(Ranks!$1:$1048576,$A92,DM$1))","v":""},{"$f":"IF($A92=\"N/A\",Ref!$B$36,INDEX(Ranks!$1:$1048576,$A92,DN$1))","v":""},{"$f":"IF($A92=\"N/A\",Ref!$B$36,INDEX(Ranks!$1:$1048576,$A92,DO$1))","v":""},{"$f":"IF($A92=\"N/A\",Ref!$B$36,INDEX(Ranks!$1:$1048576,$A92,DP$1))","v":""},{"$f":"IF($A92=\"N/A\",Ref!$B$36,INDEX(Ranks!$1:$1048576,$A92,DQ$1))","v":""},{"$f":"IF($A92=\"N/A\",Ref!$B$36,INDEX(Ranks!$1:$1048576,$A92,DR$1))","v":""},{"$f":"IF($A92=\"N/A\",Ref!$B$36,INDEX(Ranks!$1:$1048576,$A92,DS$1))","v":""},{"$f":"IF($A92=\"N/A\",Ref!$B$36,INDEX(Ranks!$1:$1048576,$A92,DT$1))","v":""},{"$f":"IF($A92=\"N/A\",Ref!$B$36,INDEX(Ranks!$1:$1048576,$A92,DU$1))","v":""},{"$f":"IF($A92=\"N/A\",Ref!$B$36,INDEX(Ranks!$1:$1048576,$A92,DV$1))","v":""},{"$f":"IF($A92=\"N/A\",Ref!$B$36,INDEX(Ranks!$1:$1048576,$A92,DW$1))","v":""},{"$f":"IF($A92=\"N/A\",Ref!$B$36,INDEX(Ranks!$1:$1048576,$A92,DX$1))","v":""},{"$f":"IF($A92=\"N/A\",Ref!$B$36,INDEX(Ranks!$1:$1048576,$A92,DY$1))","v":""},{"$f":"IF($A92=\"N/A\",Ref!$B$36,INDEX(Ranks!$1:$1048576,$A92,DZ$1))","v":""},{"$f":"IF($A92=\"N/A\",Ref!$B$36,INDEX(Ranks!$1:$1048576,$A92,EA$1))","v":""},{"$f":"IF($A92=\"N/A\",Ref!$B$36,INDEX(Ranks!$1:$1048576,$A92,EB$1))","v":""}]
[{"$f":"IFERROR(MATCH('Portfolio Page'!L93,Ranks!L:L,0),\"N/A\")","v":"N/A"},null,{"$f":"IF($A93=\"N/A\",\"\",INDEX(Ranks!$1:$1048576,$A93,C$1))","v":""},{"$f":"IF($A93=\"N/A\",Ref!$B$36,INDEX(Ranks!$1:$1048576,$A93,D$1))","v":""},{"$f":"IF($A93=\"N/A\",Ref!$B$36,INDEX(Ranks!$1:$1048576,$A93,E$1))","v":""},{"$f":"IF($A93=\"N/A\",\"\",INDEX(Ranks!$1:$1048576,$A93,F$1))","v":""},{"$f":"IF($A93=\"N/A\",\"\",INDEX(Ranks!$1:$1048576,$A93,G$1))","v":""},{"$f":"IF($A93=\"N/A\",\"\",INDEX(Ranks!$1:$1048576,$A93,H$1))","v":""},{"$f":"IF($A93=\"N/A\",\"\",INDEX(Ranks!$1:$1048576,$A93,I$1))","v":""},{"$f":"IF($A93=\"N/A\",\"\",INDEX(Ranks!$1:$1048576,$A93,J$1))","v":""},{"$f":"IF($A93=\"N/A\",\"\",INDEX(Ranks!$1:$1048576,$A93,K$1))","v":""},null,{"$f":"IF($A93=\"N/A\",Ref!$B$36,INDEX(Ranks!$1:$1048576,$A93,M$1))","v":""},{"$f":"IF($A93=\"N/A\",Ref!$B$36,INDEX(Ranks!$1:$1048576,$A93,N$1))","v":""},{"$f":"IF($A93=\"N/A\",Ref!$B$36,INDEX(Ranks!$1:$1048576,$A93,O$1))","v":""},{"$f":"IF($A93=\"N/A\",Ref!$B$36,INDEX(Ranks!$1:$1048576,$A93,P$1))","v":""},{"$f":"IF($A93=\"N/A\",Ref!$B$36,INDEX(Ranks!$1:$1048576,$A93,Q$1))","v":""},{"$f":"IF($A93=\"N/A\",Ref!$B$36,INDEX(Ranks!$1:$1048576,$A93,R$1))","v":""},{"$f":"IF($A93=\"N/A\",Ref!$B$36,INDEX(Ranks!$1:$1048576,$A93,S$1))","v":""},{"$f":"IF($A93=\"N/A\",Ref!$B$36,INDEX(Ranks!$1:$1048576,$A93,T$1))","v":""},{"$f":"IF($A93=\"N/A\",Ref!$B$36,INDEX(Ranks!$1:$1048576,$A93,U$1))","v":""},{"$f":"IF($A93=\"N/A\",Ref!$B$36,INDEX(Ranks!$1:$1048576,$A93,V$1))","v":""},{"$f":"IF($A93=\"N/A\",Ref!$B$36,INDEX(Ranks!$1:$1048576,$A93,W$1))","v":""},{"$f":"IF($A93=\"N/A\",Ref!$B$36,INDEX(Ranks!$1:$1048576,$A93,X$1))","v":""},{"$f":"IF($A93=\"N/A\",Ref!$B$36,INDEX(Ranks!$1:$1048576,$A93,Y$1))","v":""},{"$f":"IF($A93=\"N/A\",Ref!$B$36,INDEX(Ranks!$1:$1048576,$A93,Z$1))","v":""},{"$f":"IF($A93=\"N/A\",Ref!$B$36,INDEX(Ranks!$1:$1048576,$A93,AA$1))","v":""},{"$f":"IF($A93=\"N/A\",Ref!$B$36,INDEX(Ranks!$1:$1048576,$A93,AB$1))","v":""},{"$f":"IF($A93=\"N/A\",Ref!$B$36,INDEX(Ranks!$1:$1048576,$A93,AC$1))","v":""},{"$f":"IF($A93=\"N/A\",Ref!$B$36,INDEX(Ranks!$1:$1048576,$A93,AD$1))","v":""},{"$f":"IF($A93=\"N/A\",Ref!$B$36,INDEX(Ranks!$1:$1048576,$A93,AE$1))","v":""},{"$f":"IF($A93=\"N/A\",Ref!$B$36,INDEX(Ranks!$1:$1048576,$A93,AF$1))","v":""},{"$f":"IF($A93=\"N/A\",Ref!$B$36,INDEX(Ranks!$1:$1048576,$A93,AG$1))","v":""},{"$f":"IF($A93=\"N/A\",Ref!$B$36,INDEX(Ranks!$1:$1048576,$A93,AH$1))","v":""},{"$f":"IF($A93=\"N/A\",Ref!$B$36,INDEX(Ranks!$1:$1048576,$A93,AI$1))","v":""},{"$f":"IF($A93=\"N/A\",Ref!$B$36,INDEX(Ranks!$1:$1048576,$A93,AJ$1))","v":""},{"$f":"IF($A93=\"N/A\",Ref!$B$36,INDEX(Ranks!$1:$1048576,$A93,AK$1))","v":""},{"$f":"IF($A93=\"N/A\",Ref!$B$36,INDEX(Ranks!$1:$1048576,$A93,AL$1))","v":""},{"$f":"IF($A93=\"N/A\",Ref!$B$36,INDEX(Ranks!$1:$1048576,$A93,AM$1))","v":""},{"$f":"IF($A93=\"N/A\",Ref!$B$36,INDEX(Ranks!$1:$1048576,$A93,AN$1))","v":""},{"$f":"IF($A93=\"N/A\",Ref!$B$36,INDEX(Ranks!$1:$1048576,$A93,AO$1))","v":""},{"$f":"IF($A93=\"N/A\",Ref!$B$36,INDEX(Ranks!$1:$1048576,$A93,AP$1))","v":""},{"$f":"IF($A93=\"N/A\",Ref!$B$36,INDEX(Ranks!$1:$1048576,$A93,AQ$1))","v":""},{"$f":"IF($A93=\"N/A\",Ref!$B$36,INDEX(Ranks!$1:$1048576,$A93,AR$1))","v":""},{"$f":"IF($A93=\"N/A\",Ref!$B$36,INDEX(Ranks!$1:$1048576,$A93,AS$1))","v":""},{"$f":"IF($A93=\"N/A\",Ref!$B$36,INDEX(Ranks!$1:$1048576,$A93,AT$1))","v":""},{"$f":"IF($A93=\"N/A\",Ref!$B$36,INDEX(Ranks!$1:$1048576,$A93,AU$1))","v":""},{"$f":"IF($A93=\"N/A\",Ref!$B$36,INDEX(Ranks!$1:$1048576,$A93,AV$1))","v":""},{"$f":"IF($A93=\"N/A\",Ref!$B$36,INDEX(Ranks!$1:$1048576,$A93,AW$1))","v":""},{"$f":"IF($A93=\"N/A\",Ref!$B$36,INDEX(Ranks!$1:$1048576,$A93,AX$1))","v":""},{"$f":"IF($A93=\"N/A\",Ref!$B$36,INDEX(Ranks!$1:$1048576,$A93,AY$1))","v":""},{"$f":"IF($A93=\"N/A\",Ref!$B$36,INDEX(Ranks!$1:$1048576,$A93,AZ$1))","v":""},{"$f":"IF($A93=\"N/A\",Ref!$B$36,INDEX(Ranks!$1:$1048576,$A93,BA$1))","v":""},{"$f":"IF($A93=\"N/A\",Ref!$B$36,INDEX(Ranks!$1:$1048576,$A93,BB$1))","v":""},{"$f":"IF($A93=\"N/A\",Ref!$B$36,INDEX(Ranks!$1:$1048576,$A93,BC$1))","v":""},{"$f":"IF($A93=\"N/A\",Ref!$B$36,INDEX(Ranks!$1:$1048576,$A93,BD$1))","v":""},{"$f":"IF($A93=\"N/A\",Ref!$B$36,INDEX(Ranks!$1:$1048576,$A93,BE$1))","v":""},{"$f":"IF($A93=\"N/A\",Ref!$B$36,INDEX(Ranks!$1:$1048576,$A93,BF$1))","v":""},{"$f":"IF($A93=\"N/A\",Ref!$B$36,INDEX(Ranks!$1:$1048576,$A93,BG$1))","v":""},{"$f":"IF($A93=\"N/A\",Ref!$B$36,INDEX(Ranks!$1:$1048576,$A93,BH$1))","v":""},{"$f":"IF($A93=\"N/A\",Ref!$B$36,INDEX(Ranks!$1:$1048576,$A93,BI$1))","v":""},{"$f":"IF($A93=\"N/A\",Ref!$B$36,INDEX(Ranks!$1:$1048576,$A93,BJ$1))","v":""},{"$f":"IF($A93=\"N/A\",Ref!$B$36,INDEX(Ranks!$1:$1048576,$A93,BK$1))","v":""},{"$f":"IF($A93=\"N/A\",Ref!$B$36,INDEX(Ranks!$1:$1048576,$A93,BL$1))","v":""},{"$f":"IF($A93=\"N/A\",Ref!$B$36,INDEX(Ranks!$1:$1048576,$A93,BM$1))","v":""},{"$f":"IF($A93=\"N/A\",Ref!$B$36,INDEX(Ranks!$1:$1048576,$A93,BN$1))","v":""},{"$f":"IF($A93=\"N/A\",Ref!$B$36,INDEX(Ranks!$1:$1048576,$A93,BO$1))","v":""},{"$f":"IF($A93=\"N/A\",Ref!$B$36,INDEX(Ranks!$1:$1048576,$A93,BP$1))","v":""},{"$f":"IF($A93=\"N/A\",Ref!$B$36,INDEX(Ranks!$1:$1048576,$A93,BQ$1))","v":""},{"$f":"IF($A93=\"N/A\",Ref!$B$36,INDEX(Ranks!$1:$1048576,$A93,BR$1))","v":""},{"$f":"IF($A93=\"N/A\",Ref!$B$36,INDEX(Ranks!$1:$1048576,$A93,BS$1))","v":""},{"$f":"IF($A93=\"N/A\",Ref!$B$36,INDEX(Ranks!$1:$1048576,$A93,BT$1))","v":""},{"$f":"IF($A93=\"N/A\",Ref!$B$36,INDEX(Ranks!$1:$1048576,$A93,BU$1))","v":""},{"$f":"IF($A93=\"N/A\",Ref!$B$36,INDEX(Ranks!$1:$1048576,$A93,BV$1))","v":""},{"$f":"IF($A93=\"N/A\",Ref!$B$36,INDEX(Ranks!$1:$1048576,$A93,BW$1))","v":""},{"$f":"IF($A93=\"N/A\",Ref!$B$36,INDEX(Ranks!$1:$1048576,$A93,BX$1))","v":""},{"$f":"IF($A93=\"N/A\",Ref!$B$36,INDEX(Ranks!$1:$1048576,$A93,BY$1))","v":""},{"$f":"IF($A93=\"N/A\",Ref!$B$36,INDEX(Ranks!$1:$1048576,$A93,BZ$1))","v":""},{"$f":"IF($A93=\"N/A\",Ref!$B$36,INDEX(Ranks!$1:$1048576,$A93,CA$1))","v":""},{"$f":"IF($A93=\"N/A\",Ref!$B$36,INDEX(Ranks!$1:$1048576,$A93,CB$1))","v":""},{"$f":"IF($A93=\"N/A\",Ref!$B$36,INDEX(Ranks!$1:$1048576,$A93,CC$1))","v":""},{"$f":"IF($A93=\"N/A\",Ref!$B$36,INDEX(Ranks!$1:$1048576,$A93,CD$1))","v":""},{"$f":"IF($A93=\"N/A\",Ref!$B$36,INDEX(Ranks!$1:$1048576,$A93,CE$1))","v":""},{"$f":"IF($A93=\"N/A\",Ref!$B$36,INDEX(Ranks!$1:$1048576,$A93,CF$1))","v":""},{"$f":"IF($A93=\"N/A\",Ref!$B$36,INDEX(Ranks!$1:$1048576,$A93,CG$1))","v":""},{"$f":"IF($A93=\"N/A\",Ref!$B$36,INDEX(Ranks!$1:$1048576,$A93,CH$1))","v":""},{"$f":"IF($A93=\"N/A\",Ref!$B$36,INDEX(Ranks!$1:$1048576,$A93,CI$1))","v":""},{"$f":"IF($A93=\"N/A\",Ref!$B$36,INDEX(Ranks!$1:$1048576,$A93,CJ$1))","v":""},{"$f":"IF($A93=\"N/A\",Ref!$B$36,INDEX(Ranks!$1:$1048576,$A93,CK$1))","v":""},{"$f":"IF($A93=\"N/A\",Ref!$B$36,INDEX(Ranks!$1:$1048576,$A93,CL$1))","v":""},{"$f":"IF($A93=\"N/A\",Ref!$B$36,INDEX(Ranks!$1:$1048576,$A93,CM$1))","v":""},{"$f":"IF($A93=\"N/A\",Ref!$B$36,INDEX(Ranks!$1:$1048576,$A93,CN$1))","v":""},{"$f":"IF($A93=\"N/A\",Ref!$B$36,INDEX(Ranks!$1:$1048576,$A93,CO$1))","v":""},{"$f":"IF($A93=\"N/A\",Ref!$B$36,INDEX(Ranks!$1:$1048576,$A93,CP$1))","v":""},{"$f":"IF($A93=\"N/A\",Ref!$B$36,INDEX(Ranks!$1:$1048576,$A93,CQ$1))","v":""},{"$f":"IF($A93=\"N/A\",Ref!$B$36,INDEX(Ranks!$1:$1048576,$A93,CR$1))","v":""},{"$f":"IF($A93=\"N/A\",Ref!$B$36,INDEX(Ranks!$1:$1048576,$A93,CS$1))","v":""},{"$f":"IF($A93=\"N/A\",Ref!$B$36,INDEX(Ranks!$1:$1048576,$A93,CT$1))","v":""},{"$f":"IF($A93=\"N/A\",Ref!$B$36,INDEX(Ranks!$1:$1048576,$A93,CU$1))","v":""},{"$f":"IF($A93=\"N/A\",Ref!$B$36,INDEX(Ranks!$1:$1048576,$A93,CV$1))","v":""},{"$f":"IF($A93=\"N/A\",Ref!$B$36,INDEX(Ranks!$1:$1048576,$A93,CW$1))","v":""},{"$f":"IF($A93=\"N/A\",Ref!$B$36,INDEX(Ranks!$1:$1048576,$A93,CX$1))","v":""},{"$f":"IF($A93=\"N/A\",Ref!$B$36,INDEX(Ranks!$1:$1048576,$A93,CY$1))","v":""},{"$f":"IF($A93=\"N/A\",Ref!$B$36,INDEX(Ranks!$1:$1048576,$A93,CZ$1))","v":""},{"$f":"IF($A93=\"N/A\",Ref!$B$36,INDEX(Ranks!$1:$1048576,$A93,DA$1))","v":""},{"$f":"IF($A93=\"N/A\",Ref!$B$36,INDEX(Ranks!$1:$1048576,$A93,DB$1))","v":""},{"$f":"IF($A93=\"N/A\",Ref!$B$36,INDEX(Ranks!$1:$1048576,$A93,DC$1))","v":""},{"$f":"IF($A93=\"N/A\",Ref!$B$36,INDEX(Ranks!$1:$1048576,$A93,DD$1))","v":""},{"$f":"IF($A93=\"N/A\",Ref!$B$36,INDEX(Ranks!$1:$1048576,$A93,DE$1))","v":""},{"$f":"IF($A93=\"N/A\",Ref!$B$36,INDEX(Ranks!$1:$1048576,$A93,DF$1))","v":""},{"$f":"IF($A93=\"N/A\",Ref!$B$36,INDEX(Ranks!$1:$1048576,$A93,DG$1))","v":""},{"$f":"IF($A93=\"N/A\",Ref!$B$36,INDEX(Ranks!$1:$1048576,$A93,DH$1))","v":""},{"$f":"IF($A93=\"N/A\",Ref!$B$36,INDEX(Ranks!$1:$1048576,$A93,DI$1))","v":""},{"$f":"IF($A93=\"N/A\",Ref!$B$36,INDEX(Ranks!$1:$1048576,$A93,DJ$1))","v":""},{"$f":"IF($A93=\"N/A\",Ref!$B$36,INDEX(Ranks!$1:$1048576,$A93,DK$1))","v":""},{"$f":"IF($A93=\"N/A\",Ref!$B$36,INDEX(Ranks!$1:$1048576,$A93,DL$1))","v":""},{"$f":"IF($A93=\"N/A\",Ref!$B$36,INDEX(Ranks!$1:$1048576,$A93,DM$1))","v":""},{"$f":"IF($A93=\"N/A\",Ref!$B$36,INDEX(Ranks!$1:$1048576,$A93,DN$1))","v":""},{"$f":"IF($A93=\"N/A\",Ref!$B$36,INDEX(Ranks!$1:$1048576,$A93,DO$1))","v":""},{"$f":"IF($A93=\"N/A\",Ref!$B$36,INDEX(Ranks!$1:$1048576,$A93,DP$1))","v":""},{"$f":"IF($A93=\"N/A\",Ref!$B$36,INDEX(Ranks!$1:$1048576,$A93,DQ$1))","v":""},{"$f":"IF($A93=\"N/A\",Ref!$B$36,INDEX(Ranks!$1:$1048576,$A93,DR$1))","v":""},{"$f":"IF($A93=\"N/A\",Ref!$B$36,INDEX(Ranks!$1:$1048576,$A93,DS$1))","v":""},{"$f":"IF($A93=\"N/A\",Ref!$B$36,INDEX(Ranks!$1:$1048576,$A93,DT$1))","v":""},{"$f":"IF($A93=\"N/A\",Ref!$B$36,INDEX(Ranks!$1:$1048576,$A93,DU$1))","v":""},{"$f":"IF($A93=\"N/A\",Ref!$B$36,INDEX(Ranks!$1:$1048576,$A93,DV$1))","v":""},{"$f":"IF($A93=\"N/A\",Ref!$B$36,INDEX(Ranks!$1:$1048576,$A93,DW$1))","v":""},{"$f":"IF($A93=\"N/A\",Ref!$B$36,INDEX(Ranks!$1:$1048576,$A93,DX$1))","v":""},{"$f":"IF($A93=\"N/A\",Ref!$B$36,INDEX(Ranks!$1:$1048576,$A93,DY$1))","v":""},{"$f":"IF($A93=\"N/A\",Ref!$B$36,INDEX(Ranks!$1:$1048576,$A93,DZ$1))","v":""},{"$f":"IF($A93=\"N/A\",Ref!$B$36,INDEX(Ranks!$1:$1048576,$A93,EA$1))","v":""},{"$f":"IF($A93=\"N/A\",Ref!$B$36,INDEX(Ranks!$1:$1048576,$A93,EB$1))","v":""}]
[{"$f":"IFERROR(MATCH('Portfolio Page'!L94,Ranks!L:L,0),\"N/A\")","v":"N/A"},null,{"$f":"IF($A94=\"N/A\",\"\",INDEX(Ranks!$1:$1048576,$A94,C$1))","v":""},{"$f":"IF($A94=\"N/A\",Ref!$B$36,INDEX(Ranks!$1:$1048576,$A94,D$1))","v":""},{"$f":"IF($A94=\"N/A\",Ref!$B$36,INDEX(Ranks!$1:$1048576,$A94,E$1))","v":""},{"$f":"IF($A94=\"N/A\",\"\",INDEX(Ranks!$1:$1048576,$A94,F$1))","v":""},{"$f":"IF($A94=\"N/A\",\"\",INDEX(Ranks!$1:$1048576,$A94,G$1))","v":""},{"$f":"IF($A94=\"N/A\",\"\",INDEX(Ranks!$1:$1048576,$A94,H$1))","v":""},{"$f":"IF($A94=\"N/A\",\"\",INDEX(Ranks!$1:$1048576,$A94,I$1))","v":""},{"$f":"IF($A94=\"N/A\",\"\",INDEX(Ranks!$1:$1048576,$A94,J$1))","v":""},{"$f":"IF($A94=\"N/A\",\"\",INDEX(Ranks!$1:$1048576,$A94,K$1))","v":""},null,{"$f":"IF($A94=\"N/A\",Ref!$B$36,INDEX(Ranks!$1:$1048576,$A94,M$1))","v":""},{"$f":"IF($A94=\"N/A\",Ref!$B$36,INDEX(Ranks!$1:$1048576,$A94,N$1))","v":""},{"$f":"IF($A94=\"N/A\",Ref!$B$36,INDEX(Ranks!$1:$1048576,$A94,O$1))","v":""},{"$f":"IF($A94=\"N/A\",Ref!$B$36,INDEX(Ranks!$1:$1048576,$A94,P$1))","v":""},{"$f":"IF($A94=\"N/A\",Ref!$B$36,INDEX(Ranks!$1:$1048576,$A94,Q$1))","v":""},{"$f":"IF($A94=\"N/A\",Ref!$B$36,INDEX(Ranks!$1:$1048576,$A94,R$1))","v":""},{"$f":"IF($A94=\"N/A\",Ref!$B$36,INDEX(Ranks!$1:$1048576,$A94,S$1))","v":""},{"$f":"IF($A94=\"N/A\",Ref!$B$36,INDEX(Ranks!$1:$1048576,$A94,T$1))","v":""},{"$f":"IF($A94=\"N/A\",Ref!$B$36,INDEX(Ranks!$1:$1048576,$A94,U$1))","v":""},{"$f":"IF($A94=\"N/A\",Ref!$B$36,INDEX(Ranks!$1:$1048576,$A94,V$1))","v":""},{"$f":"IF($A94=\"N/A\",Ref!$B$36,INDEX(Ranks!$1:$1048576,$A94,W$1))","v":""},{"$f":"IF($A94=\"N/A\",Ref!$B$36,INDEX(Ranks!$1:$1048576,$A94,X$1))","v":""},{"$f":"IF($A94=\"N/A\",Ref!$B$36,INDEX(Ranks!$1:$1048576,$A94,Y$1))","v":""},{"$f":"IF($A94=\"N/A\",Ref!$B$36,INDEX(Ranks!$1:$1048576,$A94,Z$1))","v":""},{"$f":"IF($A94=\"N/A\",Ref!$B$36,INDEX(Ranks!$1:$1048576,$A94,AA$1))","v":""},{"$f":"IF($A94=\"N/A\",Ref!$B$36,INDEX(Ranks!$1:$1048576,$A94,AB$1))","v":""},{"$f":"IF($A94=\"N/A\",Ref!$B$36,INDEX(Ranks!$1:$1048576,$A94,AC$1))","v":""},{"$f":"IF($A94=\"N/A\",Ref!$B$36,INDEX(Ranks!$1:$1048576,$A94,AD$1))","v":""},{"$f":"IF($A94=\"N/A\",Ref!$B$36,INDEX(Ranks!$1:$1048576,$A94,AE$1))","v":""},{"$f":"IF($A94=\"N/A\",Ref!$B$36,INDEX(Ranks!$1:$1048576,$A94,AF$1))","v":""},{"$f":"IF($A94=\"N/A\",Ref!$B$36,INDEX(Ranks!$1:$1048576,$A94,AG$1))","v":""},{"$f":"IF($A94=\"N/A\",Ref!$B$36,INDEX(Ranks!$1:$1048576,$A94,AH$1))","v":""},{"$f":"IF($A94=\"N/A\",Ref!$B$36,INDEX(Ranks!$1:$1048576,$A94,AI$1))","v":""},{"$f":"IF($A94=\"N/A\",Ref!$B$36,INDEX(Ranks!$1:$1048576,$A94,AJ$1))","v":""},{"$f":"IF($A94=\"N/A\",Ref!$B$36,INDEX(Ranks!$1:$1048576,$A94,AK$1))","v":""},{"$f":"IF($A94=\"N/A\",Ref!$B$36,INDEX(Ranks!$1:$1048576,$A94,AL$1))","v":""},{"$f":"IF($A94=\"N/A\",Ref!$B$36,INDEX(Ranks!$1:$1048576,$A94,AM$1))","v":""},{"$f":"IF($A94=\"N/A\",Ref!$B$36,INDEX(Ranks!$1:$1048576,$A94,AN$1))","v":""},{"$f":"IF($A94=\"N/A\",Ref!$B$36,INDEX(Ranks!$1:$1048576,$A94,AO$1))","v":""},{"$f":"IF($A94=\"N/A\",Ref!$B$36,INDEX(Ranks!$1:$1048576,$A94,AP$1))","v":""},{"$f":"IF($A94=\"N/A\",Ref!$B$36,INDEX(Ranks!$1:$1048576,$A94,AQ$1))","v":""},{"$f":"IF($A94=\"N/A\",Ref!$B$36,INDEX(Ranks!$1:$1048576,$A94,AR$1))","v":""},{"$f":"IF($A94=\"N/A\",Ref!$B$36,INDEX(Ranks!$1:$1048576,$A94,AS$1))","v":""},{"$f":"IF($A94=\"N/A\",Ref!$B$36,INDEX(Ranks!$1:$1048576,$A94,AT$1))","v":""},{"$f":"IF($A94=\"N/A\",Ref!$B$36,INDEX(Ranks!$1:$1048576,$A94,AU$1))","v":""},{"$f":"IF($A94=\"N/A\",Ref!$B$36,INDEX(Ranks!$1:$1048576,$A94,AV$1))","v":""},{"$f":"IF($A94=\"N/A\",Ref!$B$36,INDEX(Ranks!$1:$1048576,$A94,AW$1))","v":""},{"$f":"IF($A94=\"N/A\",Ref!$B$36,INDEX(Ranks!$1:$1048576,$A94,AX$1))","v":""},{"$f":"IF($A94=\"N/A\",Ref!$B$36,INDEX(Ranks!$1:$1048576,$A94,AY$1))","v":""},{"$f":"IF($A94=\"N/A\",Ref!$B$36,INDEX(Ranks!$1:$1048576,$A94,AZ$1))","v":""},{"$f":"IF($A94=\"N/A\",Ref!$B$36,INDEX(Ranks!$1:$1048576,$A94,BA$1))","v":""},{"$f":"IF($A94=\"N/A\",Ref!$B$36,INDEX(Ranks!$1:$1048576,$A94,BB$1))","v":""},{"$f":"IF($A94=\"N/A\",Ref!$B$36,INDEX(Ranks!$1:$1048576,$A94,BC$1))","v":""},{"$f":"IF($A94=\"N/A\",Ref!$B$36,INDEX(Ranks!$1:$1048576,$A94,BD$1))","v":""},{"$f":"IF($A94=\"N/A\",Ref!$B$36,INDEX(Ranks!$1:$1048576,$A94,BE$1))","v":""},{"$f":"IF($A94=\"N/A\",Ref!$B$36,INDEX(Ranks!$1:$1048576,$A94,BF$1))","v":""},{"$f":"IF($A94=\"N/A\",Ref!$B$36,INDEX(Ranks!$1:$1048576,$A94,BG$1))","v":""},{"$f":"IF($A94=\"N/A\",Ref!$B$36,INDEX(Ranks!$1:$1048576,$A94,BH$1))","v":""},{"$f":"IF($A94=\"N/A\",Ref!$B$36,INDEX(Ranks!$1:$1048576,$A94,BI$1))","v":""},{"$f":"IF($A94=\"N/A\",Ref!$B$36,INDEX(Ranks!$1:$1048576,$A94,BJ$1))","v":""},{"$f":"IF($A94=\"N/A\",Ref!$B$36,INDEX(Ranks!$1:$1048576,$A94,BK$1))","v":""},{"$f":"IF($A94=\"N/A\",Ref!$B$36,INDEX(Ranks!$1:$1048576,$A94,BL$1))","v":""},{"$f":"IF($A94=\"N/A\",Ref!$B$36,INDEX(Ranks!$1:$1048576,$A94,BM$1))","v":""},{"$f":"IF($A94=\"N/A\",Ref!$B$36,INDEX(Ranks!$1:$1048576,$A94,BN$1))","v":""},{"$f":"IF($A94=\"N/A\",Ref!$B$36,INDEX(Ranks!$1:$1048576,$A94,BO$1))","v":""},{"$f":"IF($A94=\"N/A\",Ref!$B$36,INDEX(Ranks!$1:$1048576,$A94,BP$1))","v":""},{"$f":"IF($A94=\"N/A\",Ref!$B$36,INDEX(Ranks!$1:$1048576,$A94,BQ$1))","v":""},{"$f":"IF($A94=\"N/A\",Ref!$B$36,INDEX(Ranks!$1:$1048576,$A94,BR$1))","v":""},{"$f":"IF($A94=\"N/A\",Ref!$B$36,INDEX(Ranks!$1:$1048576,$A94,BS$1))","v":""},{"$f":"IF($A94=\"N/A\",Ref!$B$36,INDEX(Ranks!$1:$1048576,$A94,BT$1))","v":""},{"$f":"IF($A94=\"N/A\",Ref!$B$36,INDEX(Ranks!$1:$1048576,$A94,BU$1))","v":""},{"$f":"IF($A94=\"N/A\",Ref!$B$36,INDEX(Ranks!$1:$1048576,$A94,BV$1))","v":""},{"$f":"IF($A94=\"N/A\",Ref!$B$36,INDEX(Ranks!$1:$1048576,$A94,BW$1))","v":""},{"$f":"IF($A94=\"N/A\",Ref!$B$36,INDEX(Ranks!$1:$1048576,$A94,BX$1))","v":""},{"$f":"IF($A94=\"N/A\",Ref!$B$36,INDEX(Ranks!$1:$1048576,$A94,BY$1))","v":""},{"$f":"IF($A94=\"N/A\",Ref!$B$36,INDEX(Ranks!$1:$1048576,$A94,BZ$1))","v":""},{"$f":"IF($A94=\"N/A\",Ref!$B$36,INDEX(Ranks!$1:$1048576,$A94,CA$1))","v":""},{"$f":"IF($A94=\"N/A\",Ref!$B$36,INDEX(Ranks!$1:$1048576,$A94,CB$1))","v":""},{"$f":"IF($A94=\"N/A\",Ref!$B$36,INDEX(Ranks!$1:$1048576,$A94,CC$1))","v":""},{"$f":"IF($A94=\"N/A\",Ref!$B$36,INDEX(Ranks!$1:$1048576,$A94,CD$1))","v":""},{"$f":"IF($A94=\"N/A\",Ref!$B$36,INDEX(Ranks!$1:$1048576,$A94,CE$1))","v":""},{"$f":"IF($A94=\"N/A\",Ref!$B$36,INDEX(Ranks!$1:$1048576,$A94,CF$1))","v":""},{"$f":"IF($A94=\"N/A\",Ref!$B$36,INDEX(Ranks!$1:$1048576,$A94,CG$1))","v":""},{"$f":"IF($A94=\"N/A\",Ref!$B$36,INDEX(Ranks!$1:$1048576,$A94,CH$1))","v":""},{"$f":"IF($A94=\"N/A\",Ref!$B$36,INDEX(Ranks!$1:$1048576,$A94,CI$1))","v":""},{"$f":"IF($A94=\"N/A\",Ref!$B$36,INDEX(Ranks!$1:$1048576,$A94,CJ$1))","v":""},{"$f":"IF($A94=\"N/A\",Ref!$B$36,INDEX(Ranks!$1:$1048576,$A94,CK$1))","v":""},{"$f":"IF($A94=\"N/A\",Ref!$B$36,INDEX(Ranks!$1:$1048576,$A94,CL$1))","v":""},{"$f":"IF($A94=\"N/A\",Ref!$B$36,INDEX(Ranks!$1:$1048576,$A94,CM$1))","v":""},{"$f":"IF($A94=\"N/A\",Ref!$B$36,INDEX(Ranks!$1:$1048576,$A94,CN$1))","v":""},{"$f":"IF($A94=\"N/A\",Ref!$B$36,INDEX(Ranks!$1:$1048576,$A94,CO$1))","v":""},{"$f":"IF($A94=\"N/A\",Ref!$B$36,INDEX(Ranks!$1:$1048576,$A94,CP$1))","v":""},{"$f":"IF($A94=\"N/A\",Ref!$B$36,INDEX(Ranks!$1:$1048576,$A94,CQ$1))","v":""},{"$f":"IF($A94=\"N/A\",Ref!$B$36,INDEX(Ranks!$1:$1048576,$A94,CR$1))","v":""},{"$f":"IF($A94=\"N/A\",Ref!$B$36,INDEX(Ranks!$1:$1048576,$A94,CS$1))","v":""},{"$f":"IF($A94=\"N/A\",Ref!$B$36,INDEX(Ranks!$1:$1048576,$A94,CT$1))","v":""},{"$f":"IF($A94=\"N/A\",Ref!$B$36,INDEX(Ranks!$1:$1048576,$A94,CU$1))","v":""},{"$f":"IF($A94=\"N/A\",Ref!$B$36,INDEX(Ranks!$1:$1048576,$A94,CV$1))","v":""},{"$f":"IF($A94=\"N/A\",Ref!$B$36,INDEX(Ranks!$1:$1048576,$A94,CW$1))","v":""},{"$f":"IF($A94=\"N/A\",Ref!$B$36,INDEX(Ranks!$1:$1048576,$A94,CX$1))","v":""},{"$f":"IF($A94=\"N/A\",Ref!$B$36,INDEX(Ranks!$1:$1048576,$A94,CY$1))","v":""},{"$f":"IF($A94=\"N/A\",Ref!$B$36,INDEX(Ranks!$1:$1048576,$A94,CZ$1))","v":""},{"$f":"IF($A94=\"N/A\",Ref!$B$36,INDEX(Ranks!$1:$1048576,$A94,DA$1))","v":""},{"$f":"IF($A94=\"N/A\",Ref!$B$36,INDEX(Ranks!$1:$1048576,$A94,DB$1))","v":""},{"$f":"IF($A94=\"N/A\",Ref!$B$36,INDEX(Ranks!$1:$1048576,$A94,DC$1))","v":""},{"$f":"IF($A94=\"N/A\",Ref!$B$36,INDEX(Ranks!$1:$1048576,$A94,DD$1))","v":""},{"$f":"IF($A94=\"N/A\",Ref!$B$36,INDEX(Ranks!$1:$1048576,$A94,DE$1))","v":""},{"$f":"IF($A94=\"N/A\",Ref!$B$36,INDEX(Ranks!$1:$1048576,$A94,DF$1))","v":""},{"$f":"IF($A94=\"N/A\",Ref!$B$36,INDEX(Ranks!$1:$1048576,$A94,DG$1))","v":""},{"$f":"IF($A94=\"N/A\",Ref!$B$36,INDEX(Ranks!$1:$1048576,$A94,DH$1))","v":""},{"$f":"IF($A94=\"N/A\",Ref!$B$36,INDEX(Ranks!$1:$1048576,$A94,DI$1))","v":""},{"$f":"IF($A94=\"N/A\",Ref!$B$36,INDEX(Ranks!$1:$1048576,$A94,DJ$1))","v":""},{"$f":"IF($A94=\"N/A\",Ref!$B$36,INDEX(Ranks!$1:$1048576,$A94,DK$1))","v":""},{"$f":"IF($A94=\"N/A\",Ref!$B$36,INDEX(Ranks!$1:$1048576,$A94,DL$1))","v":""},{"$f":"IF($A94=\"N/A\",Ref!$B$36,INDEX(Ranks!$1:$1048576,$A94,DM$1))","v":""},{"$f":"IF($A94=\"N/A\",Ref!$B$36,INDEX(Ranks!$1:$1048576,$A94,DN$1))","v":""},{"$f":"IF($A94=\"N/A\",Ref!$B$36,INDEX(Ranks!$1:$1048576,$A94,DO$1))","v":""},{"$f":"IF($A94=\"N/A\",Ref!$B$36,INDEX(Ranks!$1:$1048576,$A94,DP$1))","v":""},{"$f":"IF($A94=\"N/A\",Ref!$B$36,INDEX(Ranks!$1:$1048576,$A94,DQ$1))","v":""},{"$f":"IF($A94=\"N/A\",Ref!$B$36,INDEX(Ranks!$1:$1048576,$A94,DR$1))","v":""},{"$f":"IF($A94=\"N/A\",Ref!$B$36,INDEX(Ranks!$1:$1048576,$A94,DS$1))","v":""},{"$f":"IF($A94=\"N/A\",Ref!$B$36,INDEX(Ranks!$1:$1048576,$A94,DT$1))","v":""},{"$f":"IF($A94=\"N/A\",Ref!$B$36,INDEX(Ranks!$1:$1048576,$A94,DU$1))","v":""},{"$f":"IF($A94=\"N/A\",Ref!$B$36,INDEX(Ranks!$1:$1048576,$A94,DV$1))","v":""},{"$f":"IF($A94=\"N/A\",Ref!$B$36,INDEX(Ranks!$1:$1048576,$A94,DW$1))","v":""},{"$f":"IF($A94=\"N/A\",Ref!$B$36,INDEX(Ranks!$1:$1048576,$A94,DX$1))","v":""},{"$f":"IF($A94=\"N/A\",Ref!$B$36,INDEX(Ranks!$1:$1048576,$A94,DY$1))","v":""},{"$f":"IF($A94=\"N/A\",Ref!$B$36,INDEX(Ranks!$1:$1048576,$A94,DZ$1))","v":""},{"$f":"IF($A94=\"N/A\",Ref!$B$36,INDEX(Ranks!$1:$1048576,$A94,EA$1))","v":""},{"$f":"IF($A94=\"N/A\",Ref!$B$36,INDEX(Ranks!$1:$1048576,$A94,EB$1))","v":""}]
[{"$f":"IFERROR(MATCH('Portfolio Page'!L95,Ranks!L:L,0),\"N/A\")","v":"N/A"},null,{"$f":"IF($A95=\"N/A\",\"\",INDEX(Ranks!$1:$1048576,$A95,C$1))","v":""},{"$f":"IF($A95=\"N/A\",Ref!$B$36,INDEX(Ranks!$1:$1048576,$A95,D$1))","v":""},{"$f":"IF($A95=\"N/A\",Ref!$B$36,INDEX(Ranks!$1:$1048576,$A95,E$1))","v":""},{"$f":"IF($A95=\"N/A\",\"\",INDEX(Ranks!$1:$1048576,$A95,F$1))","v":""},{"$f":"IF($A95=\"N/A\",\"\",INDEX(Ranks!$1:$1048576,$A95,G$1))","v":""},{"$f":"IF($A95=\"N/A\",\"\",INDEX(Ranks!$1:$1048576,$A95,H$1))","v":""},{"$f":"IF($A95=\"N/A\",\"\",INDEX(Ranks!$1:$1048576,$A95,I$1))","v":""},{"$f":"IF($A95=\"N/A\",\"\",INDEX(Ranks!$1:$1048576,$A95,J$1))","v":""},{"$f":"IF($A95=\"N/A\",\"\",INDEX(Ranks!$1:$1048576,$A95,K$1))","v":""},null,{"$f":"IF($A95=\"N/A\",Ref!$B$36,INDEX(Ranks!$1:$1048576,$A95,M$1))","v":""},{"$f":"IF($A95=\"N/A\",Ref!$B$36,INDEX(Ranks!$1:$1048576,$A95,N$1))","v":""},{"$f":"IF($A95=\"N/A\",Ref!$B$36,INDEX(Ranks!$1:$1048576,$A95,O$1))","v":""},{"$f":"IF($A95=\"N/A\",Ref!$B$36,INDEX(Ranks!$1:$1048576,$A95,P$1))","v":""},{"$f":"IF($A95=\"N/A\",Ref!$B$36,INDEX(Ranks!$1:$1048576,$A95,Q$1))","v":""},{"$f":"IF($A95=\"N/A\",Ref!$B$36,INDEX(Ranks!$1:$1048576,$A95,R$1))","v":""},{"$f":"IF($A95=\"N/A\",Ref!$B$36,INDEX(Ranks!$1:$1048576,$A95,S$1))","v":""},{"$f":"IF($A95=\"N/A\",Ref!$B$36,INDEX(Ranks!$1:$1048576,$A95,T$1))","v":""},{"$f":"IF($A95=\"N/A\",Ref!$B$36,INDEX(Ranks!$1:$1048576,$A95,U$1))","v":""},{"$f":"IF($A95=\"N/A\",Ref!$B$36,INDEX(Ranks!$1:$1048576,$A95,V$1))","v":""},{"$f":"IF($A95=\"N/A\",Ref!$B$36,INDEX(Ranks!$1:$1048576,$A95,W$1))","v":""},{"$f":"IF($A95=\"N/A\",Ref!$B$36,INDEX(Ranks!$1:$1048576,$A95,X$1))","v":""},{"$f":"IF($A95=\"N/A\",Ref!$B$36,INDEX(Ranks!$1:$1048576,$A95,Y$1))","v":""},{"$f":"IF($A95=\"N/A\",Ref!$B$36,INDEX(Ranks!$1:$1048576,$A95,Z$1))","v":""},{"$f":"IF($A95=\"N/A\",Ref!$B$36,INDEX(Ranks!$1:$1048576,$A95,AA$1))","v":""},{"$f":"IF($A95=\"N/A\",Ref!$B$36,INDEX(Ranks!$1:$1048576,$A95,AB$1))","v":""},{"$f":"IF($A95=\"N/A\",Ref!$B$36,INDEX(Ranks!$1:$1048576,$A95,AC$1))","v":""},{"$f":"IF($A95=\"N/A\",Ref!$B$36,INDEX(Ranks!$1:$1048576,$A95,AD$1))","v":""},{"$f":"IF($A95=\"N/A\",Ref!$B$36,INDEX(Ranks!$1:$1048576,$A95,AE$1))","v":""},{"$f":"IF($A95=\"N/A\",Ref!$B$36,INDEX(Ranks!$1:$1048576,$A95,AF$1))","v":""},{"$f":"IF($A95=\"N/A\",Ref!$B$36,INDEX(Ranks!$1:$1048576,$A95,AG$1))","v":""},{"$f":"IF($A95=\"N/A\",Ref!$B$36,INDEX(Ranks!$1:$1048576,$A95,AH$1))","v":""},{"$f":"IF($A95=\"N/A\",Ref!$B$36,INDEX(Ranks!$1:$1048576,$A95,AI$1))","v":""},{"$f":"IF($A95=\"N/A\",Ref!$B$36,INDEX(Ranks!$1:$1048576,$A95,AJ$1))","v":""},{"$f":"IF($A95=\"N/A\",Ref!$B$36,INDEX(Ranks!$1:$1048576,$A95,AK$1))","v":""},{"$f":"IF($A95=\"N/A\",Ref!$B$36,INDEX(Ranks!$1:$1048576,$A95,AL$1))","v":""},{"$f":"IF($A95=\"N/A\",Ref!$B$36,INDEX(Ranks!$1:$1048576,$A95,AM$1))","v":""},{"$f":"IF($A95=\"N/A\",Ref!$B$36,INDEX(Ranks!$1:$1048576,$A95,AN$1))","v":""},{"$f":"IF($A95=\"N/A\",Ref!$B$36,INDEX(Ranks!$1:$1048576,$A95,AO$1))","v":""},{"$f":"IF($A95=\"N/A\",Ref!$B$36,INDEX(Ranks!$1:$1048576,$A95,AP$1))","v":""},{"$f":"IF($A95=\"N/A\",Ref!$B$36,INDEX(Ranks!$1:$1048576,$A95,AQ$1))","v":""},{"$f":"IF($A95=\"N/A\",Ref!$B$36,INDEX(Ranks!$1:$1048576,$A95,AR$1))","v":""},{"$f":"IF($A95=\"N/A\",Ref!$B$36,INDEX(Ranks!$1:$1048576,$A95,AS$1))","v":""},{"$f":"IF($A95=\"N/A\",Ref!$B$36,INDEX(Ranks!$1:$1048576,$A95,AT$1))","v":""},{"$f":"IF($A95=\"N/A\",Ref!$B$36,INDEX(Ranks!$1:$1048576,$A95,AU$1))","v":""},{"$f":"IF($A95=\"N/A\",Ref!$B$36,INDEX(Ranks!$1:$1048576,$A95,AV$1))","v":""},{"$f":"IF($A95=\"N/A\",Ref!$B$36,INDEX(Ranks!$1:$1048576,$A95,AW$1))","v":""},{"$f":"IF($A95=\"N/A\",Ref!$B$36,INDEX(Ranks!$1:$1048576,$A95,AX$1))","v":""},{"$f":"IF($A95=\"N/A\",Ref!$B$36,INDEX(Ranks!$1:$1048576,$A95,AY$1))","v":""},{"$f":"IF($A95=\"N/A\",Ref!$B$36,INDEX(Ranks!$1:$1048576,$A95,AZ$1))","v":""},{"$f":"IF($A95=\"N/A\",Ref!$B$36,INDEX(Ranks!$1:$1048576,$A95,BA$1))","v":""},{"$f":"IF($A95=\"N/A\",Ref!$B$36,INDEX(Ranks!$1:$1048576,$A95,BB$1))","v":""},{"$f":"IF($A95=\"N/A\",Ref!$B$36,INDEX(Ranks!$1:$1048576,$A95,BC$1))","v":""},{"$f":"IF($A95=\"N/A\",Ref!$B$36,INDEX(Ranks!$1:$1048576,$A95,BD$1))","v":""},{"$f":"IF($A95=\"N/A\",Ref!$B$36,INDEX(Ranks!$1:$1048576,$A95,BE$1))","v":""},{"$f":"IF($A95=\"N/A\",Ref!$B$36,INDEX(Ranks!$1:$1048576,$A95,BF$1))","v":""},{"$f":"IF($A95=\"N/A\",Ref!$B$36,INDEX(Ranks!$1:$1048576,$A95,BG$1))","v":""},{"$f":"IF($A95=\"N/A\",Ref!$B$36,INDEX(Ranks!$1:$1048576,$A95,BH$1))","v":""},{"$f":"IF($A95=\"N/A\",Ref!$B$36,INDEX(Ranks!$1:$1048576,$A95,BI$1))","v":""},{"$f":"IF($A95=\"N/A\",Ref!$B$36,INDEX(Ranks!$1:$1048576,$A95,BJ$1))","v":""},{"$f":"IF($A95=\"N/A\",Ref!$B$36,INDEX(Ranks!$1:$1048576,$A95,BK$1))","v":""},{"$f":"IF($A95=\"N/A\",Ref!$B$36,INDEX(Ranks!$1:$1048576,$A95,BL$1))","v":""},{"$f":"IF($A95=\"N/A\",Ref!$B$36,INDEX(Ranks!$1:$1048576,$A95,BM$1))","v":""},{"$f":"IF($A95=\"N/A\",Ref!$B$36,INDEX(Ranks!$1:$1048576,$A95,BN$1))","v":""},{"$f":"IF($A95=\"N/A\",Ref!$B$36,INDEX(Ranks!$1:$1048576,$A95,BO$1))","v":""},{"$f":"IF($A95=\"N/A\",Ref!$B$36,INDEX(Ranks!$1:$1048576,$A95,BP$1))","v":""},{"$f":"IF($A95=\"N/A\",Ref!$B$36,INDEX(Ranks!$1:$1048576,$A95,BQ$1))","v":""},{"$f":"IF($A95=\"N/A\",Ref!$B$36,INDEX(Ranks!$1:$1048576,$A95,BR$1))","v":""},{"$f":"IF($A95=\"N/A\",Ref!$B$36,INDEX(Ranks!$1:$1048576,$A95,BS$1))","v":""},{"$f":"IF($A95=\"N/A\",Ref!$B$36,INDEX(Ranks!$1:$1048576,$A95,BT$1))","v":""},{"$f":"IF($A95=\"N/A\",Ref!$B$36,INDEX(Ranks!$1:$1048576,$A95,BU$1))","v":""},{"$f":"IF($A95=\"N/A\",Ref!$B$36,INDEX(Ranks!$1:$1048576,$A95,BV$1))","v":""},{"$f":"IF($A95=\"N/A\",Ref!$B$36,INDEX(Ranks!$1:$1048576,$A95,BW$1))","v":""},{"$f":"IF($A95=\"N/A\",Ref!$B$36,INDEX(Ranks!$1:$1048576,$A95,BX$1))","v":""},{"$f":"IF($A95=\"N/A\",Ref!$B$36,INDEX(Ranks!$1:$1048576,$A95,BY$1))","v":""},{"$f":"IF($A95=\"N/A\",Ref!$B$36,INDEX(Ranks!$1:$1048576,$A95,BZ$1))","v":""},{"$f":"IF($A95=\"N/A\",Ref!$B$36,INDEX(Ranks!$1:$1048576,$A95,CA$1))","v":""},{"$f":"IF($A95=\"N/A\",Ref!$B$36,INDEX(Ranks!$1:$1048576,$A95,CB$1))","v":""},{"$f":"IF($A95=\"N/A\",Ref!$B$36,INDEX(Ranks!$1:$1048576,$A95,CC$1))","v":""},{"$f":"IF($A95=\"N/A\",Ref!$B$36,INDEX(Ranks!$1:$1048576,$A95,CD$1))","v":""},{"$f":"IF($A95=\"N/A\",Ref!$B$36,INDEX(Ranks!$1:$1048576,$A95,CE$1))","v":""},{"$f":"IF($A95=\"N/A\",Ref!$B$36,INDEX(Ranks!$1:$1048576,$A95,CF$1))","v":""},{"$f":"IF($A95=\"N/A\",Ref!$B$36,INDEX(Ranks!$1:$1048576,$A95,CG$1))","v":""},{"$f":"IF($A95=\"N/A\",Ref!$B$36,INDEX(Ranks!$1:$1048576,$A95,CH$1))","v":""},{"$f":"IF($A95=\"N/A\",Ref!$B$36,INDEX(Ranks!$1:$1048576,$A95,CI$1))","v":""},{"$f":"IF($A95=\"N/A\",Ref!$B$36,INDEX(Ranks!$1:$1048576,$A95,CJ$1))","v":""},{"$f":"IF($A95=\"N/A\",Ref!$B$36,INDEX(Ranks!$1:$1048576,$A95,CK$1))","v":""},{"$f":"IF($A95=\"N/A\",Ref!$B$36,INDEX(Ranks!$1:$1048576,$A95,CL$1))","v":""},{"$f":"IF($A95=\"N/A\",Ref!$B$36,INDEX(Ranks!$1:$1048576,$A95,CM$1))","v":""},{"$f":"IF($A95=\"N/A\",Ref!$B$36,INDEX(Ranks!$1:$1048576,$A95,CN$1))","v":""},{"$f":"IF($A95=\"N/A\",Ref!$B$36,INDEX(Ranks!$1:$1048576,$A95,CO$1))","v":""},{"$f":"IF($A95=\"N/A\",Ref!$B$36,INDEX(Ranks!$1:$1048576,$A95,CP$1))","v":""},{"$f":"IF($A95=\"N/A\",Ref!$B$36,INDEX(Ranks!$1:$1048576,$A95,CQ$1))","v":""},{"$f":"IF($A95=\"N/A\",Ref!$B$36,INDEX(Ranks!$1:$1048576,$A95,CR$1))","v":""},{"$f":"IF($A95=\"N/A\",Ref!$B$36,INDEX(Ranks!$1:$1048576,$A95,CS$1))","v":""},{"$f":"IF($A95=\"N/A\",Ref!$B$36,INDEX(Ranks!$1:$1048576,$A95,CT$1))","v":""},{"$f":"IF($A95=\"N/A\",Ref!$B$36,INDEX(Ranks!$1:$1048576,$A95,CU$1))","v":""},{"$f":"IF($A95=\"N/A\",Ref!$B$36,INDEX(Ranks!$1:$1048576,$A95,CV$1))","v":""},{"$f":"IF($A95=\"N/A\",Ref!$B$36,INDEX(Ranks!$1:$1048576,$A95,CW$1))","v":""},{"$f":"IF($A95=\"N/A\",Ref!$B$36,INDEX(Ranks!$1:$1048576,$A95,CX$1))","v":""},{"$f":"IF($A95=\"N/A\",Ref!$B$36,INDEX(Ranks!$1:$1048576,$A95,CY$1))","v":""},{"$f":"IF($A95=\"N/A\",Ref!$B$36,INDEX(Ranks!$1:$1048576,$A95,CZ$1))","v":""},{"$f":"IF($A95=\"N/A\",Ref!$B$36,INDEX(Ranks!$1:$1048576,$A95,DA$1))","v":""},{"$f":"IF($A95=\"N/A\",Ref!$B$36,INDEX(Ranks!$1:$1048576,$A95,DB$1))","v":""},{"$f":"IF($A95=\"N/A\",Ref!$B$36,INDEX(Ranks!$1:$1048576,$A95,DC$1))","v":""},{"$f":"IF($A95=\"N/A\",Ref!$B$36,INDEX(Ranks!$1:$1048576,$A95,DD$1))","v":""},{"$f":"IF($A95=\"N/A\",Ref!$B$36,INDEX(Ranks!$1:$1048576,$A95,DE$1))","v":""},{"$f":"IF($A95=\"N/A\",Ref!$B$36,INDEX(Ranks!$1:$1048576,$A95,DF$1))","v":""},{"$f":"IF($A95=\"N/A\",Ref!$B$36,INDEX(Ranks!$1:$1048576,$A95,DG$1))","v":""},{"$f":"IF($A95=\"N/A\",Ref!$B$36,INDEX(Ranks!$1:$1048576,$A95,DH$1))","v":""},{"$f":"IF($A95=\"N/A\",Ref!$B$36,INDEX(Ranks!$1:$1048576,$A95,DI$1))","v":""},{"$f":"IF($A95=\"N/A\",Ref!$B$36,INDEX(Ranks!$1:$1048576,$A95,DJ$1))","v":""},{"$f":"IF($A95=\"N/A\",Ref!$B$36,INDEX(Ranks!$1:$1048576,$A95,DK$1))","v":""},{"$f":"IF($A95=\"N/A\",Ref!$B$36,INDEX(Ranks!$1:$1048576,$A95,DL$1))","v":""},{"$f":"IF($A95=\"N/A\",Ref!$B$36,INDEX(Ranks!$1:$1048576,$A95,DM$1))","v":""},{"$f":"IF($A95=\"N/A\",Ref!$B$36,INDEX(Ranks!$1:$1048576,$A95,DN$1))","v":""},{"$f":"IF($A95=\"N/A\",Ref!$B$36,INDEX(Ranks!$1:$1048576,$A95,DO$1))","v":""},{"$f":"IF($A95=\"N/A\",Ref!$B$36,INDEX(Ranks!$1:$1048576,$A95,DP$1))","v":""},{"$f":"IF($A95=\"N/A\",Ref!$B$36,INDEX(Ranks!$1:$1048576,$A95,DQ$1))","v":""},{"$f":"IF($A95=\"N/A\",Ref!$B$36,INDEX(Ranks!$1:$1048576,$A95,DR$1))","v":""},{"$f":"IF($A95=\"N/A\",Ref!$B$36,INDEX(Ranks!$1:$1048576,$A95,DS$1))","v":""},{"$f":"IF($A95=\"N/A\",Ref!$B$36,INDEX(Ranks!$1:$1048576,$A95,DT$1))","v":""},{"$f":"IF($A95=\"N/A\",Ref!$B$36,INDEX(Ranks!$1:$1048576,$A95,DU$1))","v":""},{"$f":"IF($A95=\"N/A\",Ref!$B$36,INDEX(Ranks!$1:$1048576,$A95,DV$1))","v":""},{"$f":"IF($A95=\"N/A\",Ref!$B$36,INDEX(Ranks!$1:$1048576,$A95,DW$1))","v":""},{"$f":"IF($A95=\"N/A\",Ref!$B$36,INDEX(Ranks!$1:$1048576,$A95,DX$1))","v":""},{"$f":"IF($A95=\"N/A\",Ref!$B$36,INDEX(Ranks!$1:$1048576,$A95,DY$1))","v":""},{"$f":"IF($A95=\"N/A\",Ref!$B$36,INDEX(Ranks!$1:$1048576,$A95,DZ$1))","v":""},{"$f":"IF($A95=\"N/A\",Ref!$B$36,INDEX(Ranks!$1:$1048576,$A95,EA$1))","v":""},{"$f":"IF($A95=\"N/A\",Ref!$B$36,INDEX(Ranks!$1:$1048576,$A95,EB$1))","v":""}]
[{"$f":"IFERROR(MATCH('Portfolio Page'!L96,Ranks!L:L,0),\"N/A\")","v":"N/A"},null,{"$f":"IF($A96=\"N/A\",\"\",INDEX(Ranks!$1:$1048576,$A96,C$1))","v":""},{"$f":"IF($A96=\"N/A\",Ref!$B$36,INDEX(Ranks!$1:$1048576,$A96,D$1))","v":""},{"$f":"IF($A96=\"N/A\",Ref!$B$36,INDEX(Ranks!$1:$1048576,$A96,E$1))","v":""},{"$f":"IF($A96=\"N/A\",\"\",INDEX(Ranks!$1:$1048576,$A96,F$1))","v":""},{"$f":"IF($A96=\"N/A\",\"\",INDEX(Ranks!$1:$1048576,$A96,G$1))","v":""},{"$f":"IF($A96=\"N/A\",\"\",INDEX(Ranks!$1:$1048576,$A96,H$1))","v":""},{"$f":"IF($A96=\"N/A\",\"\",INDEX(Ranks!$1:$1048576,$A96,I$1))","v":""},{"$f":"IF($A96=\"N/A\",\"\",INDEX(Ranks!$1:$1048576,$A96,J$1))","v":""},{"$f":"IF($A96=\"N/A\",\"\",INDEX(Ranks!$1:$1048576,$A96,K$1))","v":""},null,{"$f":"IF($A96=\"N/A\",Ref!$B$36,INDEX(Ranks!$1:$1048576,$A96,M$1))","v":""},{"$f":"IF($A96=\"N/A\",Ref!$B$36,INDEX(Ranks!$1:$1048576,$A96,N$1))","v":""},{"$f":"IF($A96=\"N/A\",Ref!$B$36,INDEX(Ranks!$1:$1048576,$A96,O$1))","v":""},{"$f":"IF($A96=\"N/A\",Ref!$B$36,INDEX(Ranks!$1:$1048576,$A96,P$1))","v":""},{"$f":"IF($A96=\"N/A\",Ref!$B$36,INDEX(Ranks!$1:$1048576,$A96,Q$1))","v":""},{"$f":"IF($A96=\"N/A\",Ref!$B$36,INDEX(Ranks!$1:$1048576,$A96,R$1))","v":""},{"$f":"IF($A96=\"N/A\",Ref!$B$36,INDEX(Ranks!$1:$1048576,$A96,S$1))","v":""},{"$f":"IF($A96=\"N/A\",Ref!$B$36,INDEX(Ranks!$1:$1048576,$A96,T$1))","v":""},{"$f":"IF($A96=\"N/A\",Ref!$B$36,INDEX(Ranks!$1:$1048576,$A96,U$1))","v":""},{"$f":"IF($A96=\"N/A\",Ref!$B$36,INDEX(Ranks!$1:$1048576,$A96,V$1))","v":""},{"$f":"IF($A96=\"N/A\",Ref!$B$36,INDEX(Ranks!$1:$1048576,$A96,W$1))","v":""},{"$f":"IF($A96=\"N/A\",Ref!$B$36,INDEX(Ranks!$1:$1048576,$A96,X$1))","v":""},{"$f":"IF($A96=\"N/A\",Ref!$B$36,INDEX(Ranks!$1:$1048576,$A96,Y$1))","v":""},{"$f":"IF($A96=\"N/A\",Ref!$B$36,INDEX(Ranks!$1:$1048576,$A96,Z$1))","v":""},{"$f":"IF($A96=\"N/A\",Ref!$B$36,INDEX(Ranks!$1:$1048576,$A96,AA$1))","v":""},{"$f":"IF($A96=\"N/A\",Ref!$B$36,INDEX(Ranks!$1:$1048576,$A96,AB$1))","v":""},{"$f":"IF($A96=\"N/A\",Ref!$B$36,INDEX(Ranks!$1:$1048576,$A96,AC$1))","v":""},{"$f":"IF($A96=\"N/A\",Ref!$B$36,INDEX(Ranks!$1:$1048576,$A96,AD$1))","v":""},{"$f":"IF($A96=\"N/A\",Ref!$B$36,INDEX(Ranks!$1:$1048576,$A96,AE$1))","v":""},{"$f":"IF($A96=\"N/A\",Ref!$B$36,INDEX(Ranks!$1:$1048576,$A96,AF$1))","v":""},{"$f":"IF($A96=\"N/A\",Ref!$B$36,INDEX(Ranks!$1:$1048576,$A96,AG$1))","v":""},{"$f":"IF($A96=\"N/A\",Ref!$B$36,INDEX(Ranks!$1:$1048576,$A96,AH$1))","v":""},{"$f":"IF($A96=\"N/A\",Ref!$B$36,INDEX(Ranks!$1:$1048576,$A96,AI$1))","v":""},{"$f":"IF($A96=\"N/A\",Ref!$B$36,INDEX(Ranks!$1:$1048576,$A96,AJ$1))","v":""},{"$f":"IF($A96=\"N/A\",Ref!$B$36,INDEX(Ranks!$1:$1048576,$A96,AK$1))","v":""},{"$f":"IF($A96=\"N/A\",Ref!$B$36,INDEX(Ranks!$1:$1048576,$A96,AL$1))","v":""},{"$f":"IF($A96=\"N/A\",Ref!$B$36,INDEX(Ranks!$1:$1048576,$A96,AM$1))","v":""},{"$f":"IF($A96=\"N/A\",Ref!$B$36,INDEX(Ranks!$1:$1048576,$A96,AN$1))","v":""},{"$f":"IF($A96=\"N/A\",Ref!$B$36,INDEX(Ranks!$1:$1048576,$A96,AO$1))","v":""},{"$f":"IF($A96=\"N/A\",Ref!$B$36,INDEX(Ranks!$1:$1048576,$A96,AP$1))","v":""},{"$f":"IF($A96=\"N/A\",Ref!$B$36,INDEX(Ranks!$1:$1048576,$A96,AQ$1))","v":""},{"$f":"IF($A96=\"N/A\",Ref!$B$36,INDEX(Ranks!$1:$1048576,$A96,AR$1))","v":""},{"$f":"IF($A96=\"N/A\",Ref!$B$36,INDEX(Ranks!$1:$1048576,$A96,AS$1))","v":""},{"$f":"IF($A96=\"N/A\",Ref!$B$36,INDEX(Ranks!$1:$1048576,$A96,AT$1))","v":""},{"$f":"IF($A96=\"N/A\",Ref!$B$36,INDEX(Ranks!$1:$1048576,$A96,AU$1))","v":""},{"$f":"IF($A96=\"N/A\",Ref!$B$36,INDEX(Ranks!$1:$1048576,$A96,AV$1))","v":""},{"$f":"IF($A96=\"N/A\",Ref!$B$36,INDEX(Ranks!$1:$1048576,$A96,AW$1))","v":""},{"$f":"IF($A96=\"N/A\",Ref!$B$36,INDEX(Ranks!$1:$1048576,$A96,AX$1))","v":""},{"$f":"IF($A96=\"N/A\",Ref!$B$36,INDEX(Ranks!$1:$1048576,$A96,AY$1))","v":""},{"$f":"IF($A96=\"N/A\",Ref!$B$36,INDEX(Ranks!$1:$1048576,$A96,AZ$1))","v":""},{"$f":"IF($A96=\"N/A\",Ref!$B$36,INDEX(Ranks!$1:$1048576,$A96,BA$1))","v":""},{"$f":"IF($A96=\"N/A\",Ref!$B$36,INDEX(Ranks!$1:$1048576,$A96,BB$1))","v":""},{"$f":"IF($A96=\"N/A\",Ref!$B$36,INDEX(Ranks!$1:$1048576,$A96,BC$1))","v":""},{"$f":"IF($A96=\"N/A\",Ref!$B$36,INDEX(Ranks!$1:$1048576,$A96,BD$1))","v":""},{"$f":"IF($A96=\"N/A\",Ref!$B$36,INDEX(Ranks!$1:$1048576,$A96,BE$1))","v":""},{"$f":"IF($A96=\"N/A\",Ref!$B$36,INDEX(Ranks!$1:$1048576,$A96,BF$1))","v":""},{"$f":"IF($A96=\"N/A\",Ref!$B$36,INDEX(Ranks!$1:$1048576,$A96,BG$1))","v":""},{"$f":"IF($A96=\"N/A\",Ref!$B$36,INDEX(Ranks!$1:$1048576,$A96,BH$1))","v":""},{"$f":"IF($A96=\"N/A\",Ref!$B$36,INDEX(Ranks!$1:$1048576,$A96,BI$1))","v":""},{"$f":"IF($A96=\"N/A\",Ref!$B$36,INDEX(Ranks!$1:$1048576,$A96,BJ$1))","v":""},{"$f":"IF($A96=\"N/A\",Ref!$B$36,INDEX(Ranks!$1:$1048576,$A96,BK$1))","v":""},{"$f":"IF($A96=\"N/A\",Ref!$B$36,INDEX(Ranks!$1:$1048576,$A96,BL$1))","v":""},{"$f":"IF($A96=\"N/A\",Ref!$B$36,INDEX(Ranks!$1:$1048576,$A96,BM$1))","v":""},{"$f":"IF($A96=\"N/A\",Ref!$B$36,INDEX(Ranks!$1:$1048576,$A96,BN$1))","v":""},{"$f":"IF($A96=\"N/A\",Ref!$B$36,INDEX(Ranks!$1:$1048576,$A96,BO$1))","v":""},{"$f":"IF($A96=\"N/A\",Ref!$B$36,INDEX(Ranks!$1:$1048576,$A96,BP$1))","v":""},{"$f":"IF($A96=\"N/A\",Ref!$B$36,INDEX(Ranks!$1:$1048576,$A96,BQ$1))","v":""},{"$f":"IF($A96=\"N/A\",Ref!$B$36,INDEX(Ranks!$1:$1048576,$A96,BR$1))","v":""},{"$f":"IF($A96=\"N/A\",Ref!$B$36,INDEX(Ranks!$1:$1048576,$A96,BS$1))","v":""},{"$f":"IF($A96=\"N/A\",Ref!$B$36,INDEX(Ranks!$1:$1048576,$A96,BT$1))","v":""},{"$f":"IF($A96=\"N/A\",Ref!$B$36,INDEX(Ranks!$1:$1048576,$A96,BU$1))","v":""},{"$f":"IF($A96=\"N/A\",Ref!$B$36,INDEX(Ranks!$1:$1048576,$A96,BV$1))","v":""},{"$f":"IF($A96=\"N/A\",Ref!$B$36,INDEX(Ranks!$1:$1048576,$A96,BW$1))","v":""},{"$f":"IF($A96=\"N/A\",Ref!$B$36,INDEX(Ranks!$1:$1048576,$A96,BX$1))","v":""},{"$f":"IF($A96=\"N/A\",Ref!$B$36,INDEX(Ranks!$1:$1048576,$A96,BY$1))","v":""},{"$f":"IF($A96=\"N/A\",Ref!$B$36,INDEX(Ranks!$1:$1048576,$A96,BZ$1))","v":""},{"$f":"IF($A96=\"N/A\",Ref!$B$36,INDEX(Ranks!$1:$1048576,$A96,CA$1))","v":""},{"$f":"IF($A96=\"N/A\",Ref!$B$36,INDEX(Ranks!$1:$1048576,$A96,CB$1))","v":""},{"$f":"IF($A96=\"N/A\",Ref!$B$36,INDEX(Ranks!$1:$1048576,$A96,CC$1))","v":""},{"$f":"IF($A96=\"N/A\",Ref!$B$36,INDEX(Ranks!$1:$1048576,$A96,CD$1))","v":""},{"$f":"IF($A96=\"N/A\",Ref!$B$36,INDEX(Ranks!$1:$1048576,$A96,CE$1))","v":""},{"$f":"IF($A96=\"N/A\",Ref!$B$36,INDEX(Ranks!$1:$1048576,$A96,CF$1))","v":""},{"$f":"IF($A96=\"N/A\",Ref!$B$36,INDEX(Ranks!$1:$1048576,$A96,CG$1))","v":""},{"$f":"IF($A96=\"N/A\",Ref!$B$36,INDEX(Ranks!$1:$1048576,$A96,CH$1))","v":""},{"$f":"IF($A96=\"N/A\",Ref!$B$36,INDEX(Ranks!$1:$1048576,$A96,CI$1))","v":""},{"$f":"IF($A96=\"N/A\",Ref!$B$36,INDEX(Ranks!$1:$1048576,$A96,CJ$1))","v":""},{"$f":"IF($A96=\"N/A\",Ref!$B$36,INDEX(Ranks!$1:$1048576,$A96,CK$1))","v":""},{"$f":"IF($A96=\"N/A\",Ref!$B$36,INDEX(Ranks!$1:$1048576,$A96,CL$1))","v":""},{"$f":"IF($A96=\"N/A\",Ref!$B$36,INDEX(Ranks!$1:$1048576,$A96,CM$1))","v":""},{"$f":"IF($A96=\"N/A\",Ref!$B$36,INDEX(Ranks!$1:$1048576,$A96,CN$1))","v":""},{"$f":"IF($A96=\"N/A\",Ref!$B$36,INDEX(Ranks!$1:$1048576,$A96,CO$1))","v":""},{"$f":"IF($A96=\"N/A\",Ref!$B$36,INDEX(Ranks!$1:$1048576,$A96,CP$1))","v":""},{"$f":"IF($A96=\"N/A\",Ref!$B$36,INDEX(Ranks!$1:$1048576,$A96,CQ$1))","v":""},{"$f":"IF($A96=\"N/A\",Ref!$B$36,INDEX(Ranks!$1:$1048576,$A96,CR$1))","v":""},{"$f":"IF($A96=\"N/A\",Ref!$B$36,INDEX(Ranks!$1:$1048576,$A96,CS$1))","v":""},{"$f":"IF($A96=\"N/A\",Ref!$B$36,INDEX(Ranks!$1:$1048576,$A96,CT$1))","v":""},{"$f":"IF($A96=\"N/A\",Ref!$B$36,INDEX(Ranks!$1:$1048576,$A96,CU$1))","v":""},{"$f":"IF($A96=\"N/A\",Ref!$B$36,INDEX(Ranks!$1:$1048576,$A96,CV$1))","v":""},{"$f":"IF($A96=\"N/A\",Ref!$B$36,INDEX(Ranks!$1:$1048576,$A96,CW$1))","v":""},{"$f":"IF($A96=\"N/A\",Ref!$B$36,INDEX(Ranks!$1:$1048576,$A96,CX$1))","v":""},{"$f":"IF($A96=\"N/A\",Ref!$B$36,INDEX(Ranks!$1:$1048576,$A96,CY$1))","v":""},{"$f":"IF($A96=\"N/A\",Ref!$B$36,INDEX(Ranks!$1:$1048576,$A96,CZ$1))","v":""},{"$f":"IF($A96=\"N/A\",Ref!$B$36,INDEX(Ranks!$1:$1048576,$A96,DA$1))","v":""},{"$f":"IF($A96=\"N/A\",Ref!$B$36,INDEX(Ranks!$1:$1048576,$A96,DB$1))","v":""},{"$f":"IF($A96=\"N/A\",Ref!$B$36,INDEX(Ranks!$1:$1048576,$A96,DC$1))","v":""},{"$f":"IF($A96=\"N/A\",Ref!$B$36,INDEX(Ranks!$1:$1048576,$A96,DD$1))","v":""},{"$f":"IF($A96=\"N/A\",Ref!$B$36,INDEX(Ranks!$1:$1048576,$A96,DE$1))","v":""},{"$f":"IF($A96=\"N/A\",Ref!$B$36,INDEX(Ranks!$1:$1048576,$A96,DF$1))","v":""},{"$f":"IF($A96=\"N/A\",Ref!$B$36,INDEX(Ranks!$1:$1048576,$A96,DG$1))","v":""},{"$f":"IF($A96=\"N/A\",Ref!$B$36,INDEX(Ranks!$1:$1048576,$A96,DH$1))","v":""},{"$f":"IF($A96=\"N/A\",Ref!$B$36,INDEX(Ranks!$1:$1048576,$A96,DI$1))","v":""},{"$f":"IF($A96=\"N/A\",Ref!$B$36,INDEX(Ranks!$1:$1048576,$A96,DJ$1))","v":""},{"$f":"IF($A96=\"N/A\",Ref!$B$36,INDEX(Ranks!$1:$1048576,$A96,DK$1))","v":""},{"$f":"IF($A96=\"N/A\",Ref!$B$36,INDEX(Ranks!$1:$1048576,$A96,DL$1))","v":""},{"$f":"IF($A96=\"N/A\",Ref!$B$36,INDEX(Ranks!$1:$1048576,$A96,DM$1))","v":""},{"$f":"IF($A96=\"N/A\",Ref!$B$36,INDEX(Ranks!$1:$1048576,$A96,DN$1))","v":""},{"$f":"IF($A96=\"N/A\",Ref!$B$36,INDEX(Ranks!$1:$1048576,$A96,DO$1))","v":""},{"$f":"IF($A96=\"N/A\",Ref!$B$36,INDEX(Ranks!$1:$1048576,$A96,DP$1))","v":""},{"$f":"IF($A96=\"N/A\",Ref!$B$36,INDEX(Ranks!$1:$1048576,$A96,DQ$1))","v":""},{"$f":"IF($A96=\"N/A\",Ref!$B$36,INDEX(Ranks!$1:$1048576,$A96,DR$1))","v":""},{"$f":"IF($A96=\"N/A\",Ref!$B$36,INDEX(Ranks!$1:$1048576,$A96,DS$1))","v":""},{"$f":"IF($A96=\"N/A\",Ref!$B$36,INDEX(Ranks!$1:$1048576,$A96,DT$1))","v":""},{"$f":"IF($A96=\"N/A\",Ref!$B$36,INDEX(Ranks!$1:$1048576,$A96,DU$1))","v":""},{"$f":"IF($A96=\"N/A\",Ref!$B$36,INDEX(Ranks!$1:$1048576,$A96,DV$1))","v":""},{"$f":"IF($A96=\"N/A\",Ref!$B$36,INDEX(Ranks!$1:$1048576,$A96,DW$1))","v":""},{"$f":"IF($A96=\"N/A\",Ref!$B$36,INDEX(Ranks!$1:$1048576,$A96,DX$1))","v":""},{"$f":"IF($A96=\"N/A\",Ref!$B$36,INDEX(Ranks!$1:$1048576,$A96,DY$1))","v":""},{"$f":"IF($A96=\"N/A\",Ref!$B$36,INDEX(Ranks!$1:$1048576,$A96,DZ$1))","v":""},{"$f":"IF($A96=\"N/A\",Ref!$B$36,INDEX(Ranks!$1:$1048576,$A96,EA$1))","v":""},{"$f":"IF($A96=\"N/A\",Ref!$B$36,INDEX(Ranks!$1:$1048576,$A96,EB$1))","v":""}]
[{"$f":"IFERROR(MATCH('Portfolio Page'!L97,Ranks!L:L,0),\"N/A\")","v":"N/A"},null,{"$f":"IF($A97=\"N/A\",\"\",INDEX(Ranks!$1:$1048576,$A97,C$1))","v":""},{"$f":"IF($A97=\"N/A\",Ref!$B$36,INDEX(Ranks!$1:$1048576,$A97,D$1))","v":""},{"$f":"IF($A97=\"N/A\",Ref!$B$36,INDEX(Ranks!$1:$1048576,$A97,E$1))","v":""},{"$f":"IF($A97=\"N/A\",\"\",INDEX(Ranks!$1:$1048576,$A97,F$1))","v":""},{"$f":"IF($A97=\"N/A\",\"\",INDEX(Ranks!$1:$1048576,$A97,G$1))","v":""},{"$f":"IF($A97=\"N/A\",\"\",INDEX(Ranks!$1:$1048576,$A97,H$1))","v":""},{"$f":"IF($A97=\"N/A\",\"\",INDEX(Ranks!$1:$1048576,$A97,I$1))","v":""},{"$f":"IF($A97=\"N/A\",\"\",INDEX(Ranks!$1:$1048576,$A97,J$1))","v":""},{"$f":"IF($A97=\"N/A\",\"\",INDEX(Ranks!$1:$1048576,$A97,K$1))","v":""},null,{"$f":"IF($A97=\"N/A\",Ref!$B$36,INDEX(Ranks!$1:$1048576,$A97,M$1))","v":""},{"$f":"IF($A97=\"N/A\",Ref!$B$36,INDEX(Ranks!$1:$1048576,$A97,N$1))","v":""},{"$f":"IF($A97=\"N/A\",Ref!$B$36,INDEX(Ranks!$1:$1048576,$A97,O$1))","v":""},{"$f":"IF($A97=\"N/A\",Ref!$B$36,INDEX(Ranks!$1:$1048576,$A97,P$1))","v":""},{"$f":"IF($A97=\"N/A\",Ref!$B$36,INDEX(Ranks!$1:$1048576,$A97,Q$1))","v":""},{"$f":"IF($A97=\"N/A\",Ref!$B$36,INDEX(Ranks!$1:$1048576,$A97,R$1))","v":""},{"$f":"IF($A97=\"N/A\",Ref!$B$36,INDEX(Ranks!$1:$1048576,$A97,S$1))","v":""},{"$f":"IF($A97=\"N/A\",Ref!$B$36,INDEX(Ranks!$1:$1048576,$A97,T$1))","v":""},{"$f":"IF($A97=\"N/A\",Ref!$B$36,INDEX(Ranks!$1:$1048576,$A97,U$1))","v":""},{"$f":"IF($A97=\"N/A\",Ref!$B$36,INDEX(Ranks!$1:$1048576,$A97,V$1))","v":""},{"$f":"IF($A97=\"N/A\",Ref!$B$36,INDEX(Ranks!$1:$1048576,$A97,W$1))","v":""},{"$f":"IF($A97=\"N/A\",Ref!$B$36,INDEX(Ranks!$1:$1048576,$A97,X$1))","v":""},{"$f":"IF($A97=\"N/A\",Ref!$B$36,INDEX(Ranks!$1:$1048576,$A97,Y$1))","v":""},{"$f":"IF($A97=\"N/A\",Ref!$B$36,INDEX(Ranks!$1:$1048576,$A97,Z$1))","v":""},{"$f":"IF($A97=\"N/A\",Ref!$B$36,INDEX(Ranks!$1:$1048576,$A97,AA$1))","v":""},{"$f":"IF($A97=\"N/A\",Ref!$B$36,INDEX(Ranks!$1:$1048576,$A97,AB$1))","v":""},{"$f":"IF($A97=\"N/A\",Ref!$B$36,INDEX(Ranks!$1:$1048576,$A97,AC$1))","v":""},{"$f":"IF($A97=\"N/A\",Ref!$B$36,INDEX(Ranks!$1:$1048576,$A97,AD$1))","v":""},{"$f":"IF($A97=\"N/A\",Ref!$B$36,INDEX(Ranks!$1:$1048576,$A97,AE$1))","v":""},{"$f":"IF($A97=\"N/A\",Ref!$B$36,INDEX(Ranks!$1:$1048576,$A97,AF$1))","v":""},{"$f":"IF($A97=\"N/A\",Ref!$B$36,INDEX(Ranks!$1:$1048576,$A97,AG$1))","v":""},{"$f":"IF($A97=\"N/A\",Ref!$B$36,INDEX(Ranks!$1:$1048576,$A97,AH$1))","v":""},{"$f":"IF($A97=\"N/A\",Ref!$B$36,INDEX(Ranks!$1:$1048576,$A97,AI$1))","v":""},{"$f":"IF($A97=\"N/A\",Ref!$B$36,INDEX(Ranks!$1:$1048576,$A97,AJ$1))","v":""},{"$f":"IF($A97=\"N/A\",Ref!$B$36,INDEX(Ranks!$1:$1048576,$A97,AK$1))","v":""},{"$f":"IF($A97=\"N/A\",Ref!$B$36,INDEX(Ranks!$1:$1048576,$A97,AL$1))","v":""},{"$f":"IF($A97=\"N/A\",Ref!$B$36,INDEX(Ranks!$1:$1048576,$A97,AM$1))","v":""},{"$f":"IF($A97=\"N/A\",Ref!$B$36,INDEX(Ranks!$1:$1048576,$A97,AN$1))","v":""},{"$f":"IF($A97=\"N/A\",Ref!$B$36,INDEX(Ranks!$1:$1048576,$A97,AO$1))","v":""},{"$f":"IF($A97=\"N/A\",Ref!$B$36,INDEX(Ranks!$1:$1048576,$A97,AP$1))","v":""},{"$f":"IF($A97=\"N/A\",Ref!$B$36,INDEX(Ranks!$1:$1048576,$A97,AQ$1))","v":""},{"$f":"IF($A97=\"N/A\",Ref!$B$36,INDEX(Ranks!$1:$1048576,$A97,AR$1))","v":""},{"$f":"IF($A97=\"N/A\",Ref!$B$36,INDEX(Ranks!$1:$1048576,$A97,AS$1))","v":""},{"$f":"IF($A97=\"N/A\",Ref!$B$36,INDEX(Ranks!$1:$1048576,$A97,AT$1))","v":""},{"$f":"IF($A97=\"N/A\",Ref!$B$36,INDEX(Ranks!$1:$1048576,$A97,AU$1))","v":""},{"$f":"IF($A97=\"N/A\",Ref!$B$36,INDEX(Ranks!$1:$1048576,$A97,AV$1))","v":""},{"$f":"IF($A97=\"N/A\",Ref!$B$36,INDEX(Ranks!$1:$1048576,$A97,AW$1))","v":""},{"$f":"IF($A97=\"N/A\",Ref!$B$36,INDEX(Ranks!$1:$1048576,$A97,AX$1))","v":""},{"$f":"IF($A97=\"N/A\",Ref!$B$36,INDEX(Ranks!$1:$1048576,$A97,AY$1))","v":""},{"$f":"IF($A97=\"N/A\",Ref!$B$36,INDEX(Ranks!$1:$1048576,$A97,AZ$1))","v":""},{"$f":"IF($A97=\"N/A\",Ref!$B$36,INDEX(Ranks!$1:$1048576,$A97,BA$1))","v":""},{"$f":"IF($A97=\"N/A\",Ref!$B$36,INDEX(Ranks!$1:$1048576,$A97,BB$1))","v":""},{"$f":"IF($A97=\"N/A\",Ref!$B$36,INDEX(Ranks!$1:$1048576,$A97,BC$1))","v":""},{"$f":"IF($A97=\"N/A\",Ref!$B$36,INDEX(Ranks!$1:$1048576,$A97,BD$1))","v":""},{"$f":"IF($A97=\"N/A\",Ref!$B$36,INDEX(Ranks!$1:$1048576,$A97,BE$1))","v":""},{"$f":"IF($A97=\"N/A\",Ref!$B$36,INDEX(Ranks!$1:$1048576,$A97,BF$1))","v":""},{"$f":"IF($A97=\"N/A\",Ref!$B$36,INDEX(Ranks!$1:$1048576,$A97,BG$1))","v":""},{"$f":"IF($A97=\"N/A\",Ref!$B$36,INDEX(Ranks!$1:$1048576,$A97,BH$1))","v":""},{"$f":"IF($A97=\"N/A\",Ref!$B$36,INDEX(Ranks!$1:$1048576,$A97,BI$1))","v":""},{"$f":"IF($A97=\"N/A\",Ref!$B$36,INDEX(Ranks!$1:$1048576,$A97,BJ$1))","v":""},{"$f":"IF($A97=\"N/A\",Ref!$B$36,INDEX(Ranks!$1:$1048576,$A97,BK$1))","v":""},{"$f":"IF($A97=\"N/A\",Ref!$B$36,INDEX(Ranks!$1:$1048576,$A97,BL$1))","v":""},{"$f":"IF($A97=\"N/A\",Ref!$B$36,INDEX(Ranks!$1:$1048576,$A97,BM$1))","v":""},{"$f":"IF($A97=\"N/A\",Ref!$B$36,INDEX(Ranks!$1:$1048576,$A97,BN$1))","v":""},{"$f":"IF($A97=\"N/A\",Ref!$B$36,INDEX(Ranks!$1:$1048576,$A97,BO$1))","v":""},{"$f":"IF($A97=\"N/A\",Ref!$B$36,INDEX(Ranks!$1:$1048576,$A97,BP$1))","v":""},{"$f":"IF($A97=\"N/A\",Ref!$B$36,INDEX(Ranks!$1:$1048576,$A97,BQ$1))","v":""},{"$f":"IF($A97=\"N/A\",Ref!$B$36,INDEX(Ranks!$1:$1048576,$A97,BR$1))","v":""},{"$f":"IF($A97=\"N/A\",Ref!$B$36,INDEX(Ranks!$1:$1048576,$A97,BS$1))","v":""},{"$f":"IF($A97=\"N/A\",Ref!$B$36,INDEX(Ranks!$1:$1048576,$A97,BT$1))","v":""},{"$f":"IF($A97=\"N/A\",Ref!$B$36,INDEX(Ranks!$1:$1048576,$A97,BU$1))","v":""},{"$f":"IF($A97=\"N/A\",Ref!$B$36,INDEX(Ranks!$1:$1048576,$A97,BV$1))","v":""},{"$f":"IF($A97=\"N/A\",Ref!$B$36,INDEX(Ranks!$1:$1048576,$A97,BW$1))","v":""},{"$f":"IF($A97=\"N/A\",Ref!$B$36,INDEX(Ranks!$1:$1048576,$A97,BX$1))","v":""},{"$f":"IF($A97=\"N/A\",Ref!$B$36,INDEX(Ranks!$1:$1048576,$A97,BY$1))","v":""},{"$f":"IF($A97=\"N/A\",Ref!$B$36,INDEX(Ranks!$1:$1048576,$A97,BZ$1))","v":""},{"$f":"IF($A97=\"N/A\",Ref!$B$36,INDEX(Ranks!$1:$1048576,$A97,CA$1))","v":""},{"$f":"IF($A97=\"N/A\",Ref!$B$36,INDEX(Ranks!$1:$1048576,$A97,CB$1))","v":""},{"$f":"IF($A97=\"N/A\",Ref!$B$36,INDEX(Ranks!$1:$1048576,$A97,CC$1))","v":""},{"$f":"IF($A97=\"N/A\",Ref!$B$36,INDEX(Ranks!$1:$1048576,$A97,CD$1))","v":""},{"$f":"IF($A97=\"N/A\",Ref!$B$36,INDEX(Ranks!$1:$1048576,$A97,CE$1))","v":""},{"$f":"IF($A97=\"N/A\",Ref!$B$36,INDEX(Ranks!$1:$1048576,$A97,CF$1))","v":""},{"$f":"IF($A97=\"N/A\",Ref!$B$36,INDEX(Ranks!$1:$1048576,$A97,CG$1))","v":""},{"$f":"IF($A97=\"N/A\",Ref!$B$36,INDEX(Ranks!$1:$1048576,$A97,CH$1))","v":""},{"$f":"IF($A97=\"N/A\",Ref!$B$36,INDEX(Ranks!$1:$1048576,$A97,CI$1))","v":""},{"$f":"IF($A97=\"N/A\",Ref!$B$36,INDEX(Ranks!$1:$1048576,$A97,CJ$1))","v":""},{"$f":"IF($A97=\"N/A\",Ref!$B$36,INDEX(Ranks!$1:$1048576,$A97,CK$1))","v":""},{"$f":"IF($A97=\"N/A\",Ref!$B$36,INDEX(Ranks!$1:$1048576,$A97,CL$1))","v":""},{"$f":"IF($A97=\"N/A\",Ref!$B$36,INDEX(Ranks!$1:$1048576,$A97,CM$1))","v":""},{"$f":"IF($A97=\"N/A\",Ref!$B$36,INDEX(Ranks!$1:$1048576,$A97,CN$1))","v":""},{"$f":"IF($A97=\"N/A\",Ref!$B$36,INDEX(Ranks!$1:$1048576,$A97,CO$1))","v":""},{"$f":"IF($A97=\"N/A\",Ref!$B$36,INDEX(Ranks!$1:$1048576,$A97,CP$1))","v":""},{"$f":"IF($A97=\"N/A\",Ref!$B$36,INDEX(Ranks!$1:$1048576,$A97,CQ$1))","v":""},{"$f":"IF($A97=\"N/A\",Ref!$B$36,INDEX(Ranks!$1:$1048576,$A97,CR$1))","v":""},{"$f":"IF($A97=\"N/A\",Ref!$B$36,INDEX(Ranks!$1:$1048576,$A97,CS$1))","v":""},{"$f":"IF($A97=\"N/A\",Ref!$B$36,INDEX(Ranks!$1:$1048576,$A97,CT$1))","v":""},{"$f":"IF($A97=\"N/A\",Ref!$B$36,INDEX(Ranks!$1:$1048576,$A97,CU$1))","v":""},{"$f":"IF($A97=\"N/A\",Ref!$B$36,INDEX(Ranks!$1:$1048576,$A97,CV$1))","v":""},{"$f":"IF($A97=\"N/A\",Ref!$B$36,INDEX(Ranks!$1:$1048576,$A97,CW$1))","v":""},{"$f":"IF($A97=\"N/A\",Ref!$B$36,INDEX(Ranks!$1:$1048576,$A97,CX$1))","v":""},{"$f":"IF($A97=\"N/A\",Ref!$B$36,INDEX(Ranks!$1:$1048576,$A97,CY$1))","v":""},{"$f":"IF($A97=\"N/A\",Ref!$B$36,INDEX(Ranks!$1:$1048576,$A97,CZ$1))","v":""},{"$f":"IF($A97=\"N/A\",Ref!$B$36,INDEX(Ranks!$1:$1048576,$A97,DA$1))","v":""},{"$f":"IF($A97=\"N/A\",Ref!$B$36,INDEX(Ranks!$1:$1048576,$A97,DB$1))","v":""},{"$f":"IF($A97=\"N/A\",Ref!$B$36,INDEX(Ranks!$1:$1048576,$A97,DC$1))","v":""},{"$f":"IF($A97=\"N/A\",Ref!$B$36,INDEX(Ranks!$1:$1048576,$A97,DD$1))","v":""},{"$f":"IF($A97=\"N/A\",Ref!$B$36,INDEX(Ranks!$1:$1048576,$A97,DE$1))","v":""},{"$f":"IF($A97=\"N/A\",Ref!$B$36,INDEX(Ranks!$1:$1048576,$A97,DF$1))","v":""},{"$f":"IF($A97=\"N/A\",Ref!$B$36,INDEX(Ranks!$1:$1048576,$A97,DG$1))","v":""},{"$f":"IF($A97=\"N/A\",Ref!$B$36,INDEX(Ranks!$1:$1048576,$A97,DH$1))","v":""},{"$f":"IF($A97=\"N/A\",Ref!$B$36,INDEX(Ranks!$1:$1048576,$A97,DI$1))","v":""},{"$f":"IF($A97=\"N/A\",Ref!$B$36,INDEX(Ranks!$1:$1048576,$A97,DJ$1))","v":""},{"$f":"IF($A97=\"N/A\",Ref!$B$36,INDEX(Ranks!$1:$1048576,$A97,DK$1))","v":""},{"$f":"IF($A97=\"N/A\",Ref!$B$36,INDEX(Ranks!$1:$1048576,$A97,DL$1))","v":""},{"$f":"IF($A97=\"N/A\",Ref!$B$36,INDEX(Ranks!$1:$1048576,$A97,DM$1))","v":""},{"$f":"IF($A97=\"N/A\",Ref!$B$36,INDEX(Ranks!$1:$1048576,$A97,DN$1))","v":""},{"$f":"IF($A97=\"N/A\",Ref!$B$36,INDEX(Ranks!$1:$1048576,$A97,DO$1))","v":""},{"$f":"IF($A97=\"N/A\",Ref!$B$36,INDEX(Ranks!$1:$1048576,$A97,DP$1))","v":""},{"$f":"IF($A97=\"N/A\",Ref!$B$36,INDEX(Ranks!$1:$1048576,$A97,DQ$1))","v":""},{"$f":"IF($A97=\"N/A\",Ref!$B$36,INDEX(Ranks!$1:$1048576,$A97,DR$1))","v":""},{"$f":"IF($A97=\"N/A\",Ref!$B$36,INDEX(Ranks!$1:$1048576,$A97,DS$1))","v":""},{"$f":"IF($A97=\"N/A\",Ref!$B$36,INDEX(Ranks!$1:$1048576,$A97,DT$1))","v":""},{"$f":"IF($A97=\"N/A\",Ref!$B$36,INDEX(Ranks!$1:$1048576,$A97,DU$1))","v":""},{"$f":"IF($A97=\"N/A\",Ref!$B$36,INDEX(Ranks!$1:$1048576,$A97,DV$1))","v":""},{"$f":"IF($A97=\"N/A\",Ref!$B$36,INDEX(Ranks!$1:$1048576,$A97,DW$1))","v":""},{"$f":"IF($A97=\"N/A\",Ref!$B$36,INDEX(Ranks!$1:$1048576,$A97,DX$1))","v":""},{"$f":"IF($A97=\"N/A\",Ref!$B$36,INDEX(Ranks!$1:$1048576,$A97,DY$1))","v":""},{"$f":"IF($A97=\"N/A\",Ref!$B$36,INDEX(Ranks!$1:$1048576,$A97,DZ$1))","v":""},{"$f":"IF($A97=\"N/A\",Ref!$B$36,INDEX(Ranks!$1:$1048576,$A97,EA$1))","v":""},{"$f":"IF($A97=\"N/A\",Ref!$B$36,INDEX(Ranks!$1:$1048576,$A97,EB$1))","v":""}]
[{"$f":"IFERROR(MATCH('Portfolio Page'!L98,Ranks!L:L,0),\"N/A\")","v":"N/A"},null,{"$f":"IF($A98=\"N/A\",\"\",INDEX(Ranks!$1:$1048576,$A98,C$1))","v":""},{"$f":"IF($A98=\"N/A\",Ref!$B$36,INDEX(Ranks!$1:$1048576,$A98,D$1))","v":""},{"$f":"IF($A98=\"N/A\",Ref!$B$36,INDEX(Ranks!$1:$1048576,$A98,E$1))","v":""},{"$f":"IF($A98=\"N/A\",\"\",INDEX(Ranks!$1:$1048576,$A98,F$1))","v":""},{"$f":"IF($A98=\"N/A\",\"\",INDEX(Ranks!$1:$1048576,$A98,G$1))","v":""},{"$f":"IF($A98=\"N/A\",\"\",INDEX(Ranks!$1:$1048576,$A98,H$1))","v":""},{"$f":"IF($A98=\"N/A\",\"\",INDEX(Ranks!$1:$1048576,$A98,I$1))","v":""},{"$f":"IF($A98=\"N/A\",\"\",INDEX(Ranks!$1:$1048576,$A98,J$1))","v":""},{"$f":"IF($A98=\"N/A\",\"\",INDEX(Ranks!$1:$1048576,$A98,K$1))","v":""},null,{"$f":"IF($A98=\"N/A\",Ref!$B$36,INDEX(Ranks!$1:$1048576,$A98,M$1))","v":""},{"$f":"IF($A98=\"N/A\",Ref!$B$36,INDEX(Ranks!$1:$1048576,$A98,N$1))","v":""},{"$f":"IF($A98=\"N/A\",Ref!$B$36,INDEX(Ranks!$1:$1048576,$A98,O$1))","v":""},{"$f":"IF($A98=\"N/A\",Ref!$B$36,INDEX(Ranks!$1:$1048576,$A98,P$1))","v":""},{"$f":"IF($A98=\"N/A\",Ref!$B$36,INDEX(Ranks!$1:$1048576,$A98,Q$1))","v":""},{"$f":"IF($A98=\"N/A\",Ref!$B$36,INDEX(Ranks!$1:$1048576,$A98,R$1))","v":""},{"$f":"IF($A98=\"N/A\",Ref!$B$36,INDEX(Ranks!$1:$1048576,$A98,S$1))","v":""},{"$f":"IF($A98=\"N/A\",Ref!$B$36,INDEX(Ranks!$1:$1048576,$A98,T$1))","v":""},{"$f":"IF($A98=\"N/A\",Ref!$B$36,INDEX(Ranks!$1:$1048576,$A98,U$1))","v":""},{"$f":"IF($A98=\"N/A\",Ref!$B$36,INDEX(Ranks!$1:$1048576,$A98,V$1))","v":""},{"$f":"IF($A98=\"N/A\",Ref!$B$36,INDEX(Ranks!$1:$1048576,$A98,W$1))","v":""},{"$f":"IF($A98=\"N/A\",Ref!$B$36,INDEX(Ranks!$1:$1048576,$A98,X$1))","v":""},{"$f":"IF($A98=\"N/A\",Ref!$B$36,INDEX(Ranks!$1:$1048576,$A98,Y$1))","v":""},{"$f":"IF($A98=\"N/A\",Ref!$B$36,INDEX(Ranks!$1:$1048576,$A98,Z$1))","v":""},{"$f":"IF($A98=\"N/A\",Ref!$B$36,INDEX(Ranks!$1:$1048576,$A98,AA$1))","v":""},{"$f":"IF($A98=\"N/A\",Ref!$B$36,INDEX(Ranks!$1:$1048576,$A98,AB$1))","v":""},{"$f":"IF($A98=\"N/A\",Ref!$B$36,INDEX(Ranks!$1:$1048576,$A98,AC$1))","v":""},{"$f":"IF($A98=\"N/A\",Ref!$B$36,INDEX(Ranks!$1:$1048576,$A98,AD$1))","v":""},{"$f":"IF($A98=\"N/A\",Ref!$B$36,INDEX(Ranks!$1:$1048576,$A98,AE$1))","v":""},{"$f":"IF($A98=\"N/A\",Ref!$B$36,INDEX(Ranks!$1:$1048576,$A98,AF$1))","v":""},{"$f":"IF($A98=\"N/A\",Ref!$B$36,INDEX(Ranks!$1:$1048576,$A98,AG$1))","v":""},{"$f":"IF($A98=\"N/A\",Ref!$B$36,INDEX(Ranks!$1:$1048576,$A98,AH$1))","v":""},{"$f":"IF($A98=\"N/A\",Ref!$B$36,INDEX(Ranks!$1:$1048576,$A98,AI$1))","v":""},{"$f":"IF($A98=\"N/A\",Ref!$B$36,INDEX(Ranks!$1:$1048576,$A98,AJ$1))","v":""},{"$f":"IF($A98=\"N/A\",Ref!$B$36,INDEX(Ranks!$1:$1048576,$A98,AK$1))","v":""},{"$f":"IF($A98=\"N/A\",Ref!$B$36,INDEX(Ranks!$1:$1048576,$A98,AL$1))","v":""},{"$f":"IF($A98=\"N/A\",Ref!$B$36,INDEX(Ranks!$1:$1048576,$A98,AM$1))","v":""},{"$f":"IF($A98=\"N/A\",Ref!$B$36,INDEX(Ranks!$1:$1048576,$A98,AN$1))","v":""},{"$f":"IF($A98=\"N/A\",Ref!$B$36,INDEX(Ranks!$1:$1048576,$A98,AO$1))","v":""},{"$f":"IF($A98=\"N/A\",Ref!$B$36,INDEX(Ranks!$1:$1048576,$A98,AP$1))","v":""},{"$f":"IF($A98=\"N/A\",Ref!$B$36,INDEX(Ranks!$1:$1048576,$A98,AQ$1))","v":""},{"$f":"IF($A98=\"N/A\",Ref!$B$36,INDEX(Ranks!$1:$1048576,$A98,AR$1))","v":""},{"$f":"IF($A98=\"N/A\",Ref!$B$36,INDEX(Ranks!$1:$1048576,$A98,AS$1))","v":""},{"$f":"IF($A98=\"N/A\",Ref!$B$36,INDEX(Ranks!$1:$1048576,$A98,AT$1))","v":""},{"$f":"IF($A98=\"N/A\",Ref!$B$36,INDEX(Ranks!$1:$1048576,$A98,AU$1))","v":""},{"$f":"IF($A98=\"N/A\",Ref!$B$36,INDEX(Ranks!$1:$1048576,$A98,AV$1))","v":""},{"$f":"IF($A98=\"N/A\",Ref!$B$36,INDEX(Ranks!$1:$1048576,$A98,AW$1))","v":""},{"$f":"IF($A98=\"N/A\",Ref!$B$36,INDEX(Ranks!$1:$1048576,$A98,AX$1))","v":""},{"$f":"IF($A98=\"N/A\",Ref!$B$36,INDEX(Ranks!$1:$1048576,$A98,AY$1))","v":""},{"$f":"IF($A98=\"N/A\",Ref!$B$36,INDEX(Ranks!$1:$1048576,$A98,AZ$1))","v":""},{"$f":"IF($A98=\"N/A\",Ref!$B$36,INDEX(Ranks!$1:$1048576,$A98,BA$1))","v":""},{"$f":"IF($A98=\"N/A\",Ref!$B$36,INDEX(Ranks!$1:$1048576,$A98,BB$1))","v":""},{"$f":"IF($A98=\"N/A\",Ref!$B$36,INDEX(Ranks!$1:$1048576,$A98,BC$1))","v":""},{"$f":"IF($A98=\"N/A\",Ref!$B$36,INDEX(Ranks!$1:$1048576,$A98,BD$1))","v":""},{"$f":"IF($A98=\"N/A\",Ref!$B$36,INDEX(Ranks!$1:$1048576,$A98,BE$1))","v":""},{"$f":"IF($A98=\"N/A\",Ref!$B$36,INDEX(Ranks!$1:$1048576,$A98,BF$1))","v":""},{"$f":"IF($A98=\"N/A\",Ref!$B$36,INDEX(Ranks!$1:$1048576,$A98,BG$1))","v":""},{"$f":"IF($A98=\"N/A\",Ref!$B$36,INDEX(Ranks!$1:$1048576,$A98,BH$1))","v":""},{"$f":"IF($A98=\"N/A\",Ref!$B$36,INDEX(Ranks!$1:$1048576,$A98,BI$1))","v":""},{"$f":"IF($A98=\"N/A\",Ref!$B$36,INDEX(Ranks!$1:$1048576,$A98,BJ$1))","v":""},{"$f":"IF($A98=\"N/A\",Ref!$B$36,INDEX(Ranks!$1:$1048576,$A98,BK$1))","v":""},{"$f":"IF($A98=\"N/A\",Ref!$B$36,INDEX(Ranks!$1:$1048576,$A98,BL$1))","v":""},{"$f":"IF($A98=\"N/A\",Ref!$B$36,INDEX(Ranks!$1:$1048576,$A98,BM$1))","v":""},{"$f":"IF($A98=\"N/A\",Ref!$B$36,INDEX(Ranks!$1:$1048576,$A98,BN$1))","v":""},{"$f":"IF($A98=\"N/A\",Ref!$B$36,INDEX(Ranks!$1:$1048576,$A98,BO$1))","v":""},{"$f":"IF($A98=\"N/A\",Ref!$B$36,INDEX(Ranks!$1:$1048576,$A98,BP$1))","v":""},{"$f":"IF($A98=\"N/A\",Ref!$B$36,INDEX(Ranks!$1:$1048576,$A98,BQ$1))","v":""},{"$f":"IF($A98=\"N/A\",Ref!$B$36,INDEX(Ranks!$1:$1048576,$A98,BR$1))","v":""},{"$f":"IF($A98=\"N/A\",Ref!$B$36,INDEX(Ranks!$1:$1048576,$A98,BS$1))","v":""},{"$f":"IF($A98=\"N/A\",Ref!$B$36,INDEX(Ranks!$1:$1048576,$A98,BT$1))","v":""},{"$f":"IF($A98=\"N/A\",Ref!$B$36,INDEX(Ranks!$1:$1048576,$A98,BU$1))","v":""},{"$f":"IF($A98=\"N/A\",Ref!$B$36,INDEX(Ranks!$1:$1048576,$A98,BV$1))","v":""},{"$f":"IF($A98=\"N/A\",Ref!$B$36,INDEX(Ranks!$1:$1048576,$A98,BW$1))","v":""},{"$f":"IF($A98=\"N/A\",Ref!$B$36,INDEX(Ranks!$1:$1048576,$A98,BX$1))","v":""},{"$f":"IF($A98=\"N/A\",Ref!$B$36,INDEX(Ranks!$1:$1048576,$A98,BY$1))","v":""},{"$f":"IF($A98=\"N/A\",Ref!$B$36,INDEX(Ranks!$1:$1048576,$A98,BZ$1))","v":""},{"$f":"IF($A98=\"N/A\",Ref!$B$36,INDEX(Ranks!$1:$1048576,$A98,CA$1))","v":""},{"$f":"IF($A98=\"N/A\",Ref!$B$36,INDEX(Ranks!$1:$1048576,$A98,CB$1))","v":""},{"$f":"IF($A98=\"N/A\",Ref!$B$36,INDEX(Ranks!$1:$1048576,$A98,CC$1))","v":""},{"$f":"IF($A98=\"N/A\",Ref!$B$36,INDEX(Ranks!$1:$1048576,$A98,CD$1))","v":""},{"$f":"IF($A98=\"N/A\",Ref!$B$36,INDEX(Ranks!$1:$1048576,$A98,CE$1))","v":""},{"$f":"IF($A98=\"N/A\",Ref!$B$36,INDEX(Ranks!$1:$1048576,$A98,CF$1))","v":""},{"$f":"IF($A98=\"N/A\",Ref!$B$36,INDEX(Ranks!$1:$1048576,$A98,CG$1))","v":""},{"$f":"IF($A98=\"N/A\",Ref!$B$36,INDEX(Ranks!$1:$1048576,$A98,CH$1))","v":""},{"$f":"IF($A98=\"N/A\",Ref!$B$36,INDEX(Ranks!$1:$1048576,$A98,CI$1))","v":""},{"$f":"IF($A98=\"N/A\",Ref!$B$36,INDEX(Ranks!$1:$1048576,$A98,CJ$1))","v":""},{"$f":"IF($A98=\"N/A\",Ref!$B$36,INDEX(Ranks!$1:$1048576,$A98,CK$1))","v":""},{"$f":"IF($A98=\"N/A\",Ref!$B$36,INDEX(Ranks!$1:$1048576,$A98,CL$1))","v":""},{"$f":"IF($A98=\"N/A\",Ref!$B$36,INDEX(Ranks!$1:$1048576,$A98,CM$1))","v":""},{"$f":"IF($A98=\"N/A\",Ref!$B$36,INDEX(Ranks!$1:$1048576,$A98,CN$1))","v":""},{"$f":"IF($A98=\"N/A\",Ref!$B$36,INDEX(Ranks!$1:$1048576,$A98,CO$1))","v":""},{"$f":"IF($A98=\"N/A\",Ref!$B$36,INDEX(Ranks!$1:$1048576,$A98,CP$1))","v":""},{"$f":"IF($A98=\"N/A\",Ref!$B$36,INDEX(Ranks!$1:$1048576,$A98,CQ$1))","v":""},{"$f":"IF($A98=\"N/A\",Ref!$B$36,INDEX(Ranks!$1:$1048576,$A98,CR$1))","v":""},{"$f":"IF($A98=\"N/A\",Ref!$B$36,INDEX(Ranks!$1:$1048576,$A98,CS$1))","v":""},{"$f":"IF($A98=\"N/A\",Ref!$B$36,INDEX(Ranks!$1:$1048576,$A98,CT$1))","v":""},{"$f":"IF($A98=\"N/A\",Ref!$B$36,INDEX(Ranks!$1:$1048576,$A98,CU$1))","v":""},{"$f":"IF($A98=\"N/A\",Ref!$B$36,INDEX(Ranks!$1:$1048576,$A98,CV$1))","v":""},{"$f":"IF($A98=\"N/A\",Ref!$B$36,INDEX(Ranks!$1:$1048576,$A98,CW$1))","v":""},{"$f":"IF($A98=\"N/A\",Ref!$B$36,INDEX(Ranks!$1:$1048576,$A98,CX$1))","v":""},{"$f":"IF($A98=\"N/A\",Ref!$B$36,INDEX(Ranks!$1:$1048576,$A98,CY$1))","v":""},{"$f":"IF($A98=\"N/A\",Ref!$B$36,INDEX(Ranks!$1:$1048576,$A98,CZ$1))","v":""},{"$f":"IF($A98=\"N/A\",Ref!$B$36,INDEX(Ranks!$1:$1048576,$A98,DA$1))","v":""},{"$f":"IF($A98=\"N/A\",Ref!$B$36,INDEX(Ranks!$1:$1048576,$A98,DB$1))","v":""},{"$f":"IF($A98=\"N/A\",Ref!$B$36,INDEX(Ranks!$1:$1048576,$A98,DC$1))","v":""},{"$f":"IF($A98=\"N/A\",Ref!$B$36,INDEX(Ranks!$1:$1048576,$A98,DD$1))","v":""},{"$f":"IF($A98=\"N/A\",Ref!$B$36,INDEX(Ranks!$1:$1048576,$A98,DE$1))","v":""},{"$f":"IF($A98=\"N/A\",Ref!$B$36,INDEX(Ranks!$1:$1048576,$A98,DF$1))","v":""},{"$f":"IF($A98=\"N/A\",Ref!$B$36,INDEX(Ranks!$1:$1048576,$A98,DG$1))","v":""},{"$f":"IF($A98=\"N/A\",Ref!$B$36,INDEX(Ranks!$1:$1048576,$A98,DH$1))","v":""},{"$f":"IF($A98=\"N/A\",Ref!$B$36,INDEX(Ranks!$1:$1048576,$A98,DI$1))","v":""},{"$f":"IF($A98=\"N/A\",Ref!$B$36,INDEX(Ranks!$1:$1048576,$A98,DJ$1))","v":""},{"$f":"IF($A98=\"N/A\",Ref!$B$36,INDEX(Ranks!$1:$1048576,$A98,DK$1))","v":""},{"$f":"IF($A98=\"N/A\",Ref!$B$36,INDEX(Ranks!$1:$1048576,$A98,DL$1))","v":""},{"$f":"IF($A98=\"N/A\",Ref!$B$36,INDEX(Ranks!$1:$1048576,$A98,DM$1))","v":""},{"$f":"IF($A98=\"N/A\",Ref!$B$36,INDEX(Ranks!$1:$1048576,$A98,DN$1))","v":""},{"$f":"IF($A98=\"N/A\",Ref!$B$36,INDEX(Ranks!$1:$1048576,$A98,DO$1))","v":""},{"$f":"IF($A98=\"N/A\",Ref!$B$36,INDEX(Ranks!$1:$1048576,$A98,DP$1))","v":""},{"$f":"IF($A98=\"N/A\",Ref!$B$36,INDEX(Ranks!$1:$1048576,$A98,DQ$1))","v":""},{"$f":"IF($A98=\"N/A\",Ref!$B$36,INDEX(Ranks!$1:$1048576,$A98,DR$1))","v":""},{"$f":"IF($A98=\"N/A\",Ref!$B$36,INDEX(Ranks!$1:$1048576,$A98,DS$1))","v":""},{"$f":"IF($A98=\"N/A\",Ref!$B$36,INDEX(Ranks!$1:$1048576,$A98,DT$1))","v":""},{"$f":"IF($A98=\"N/A\",Ref!$B$36,INDEX(Ranks!$1:$1048576,$A98,DU$1))","v":""},{"$f":"IF($A98=\"N/A\",Ref!$B$36,INDEX(Ranks!$1:$1048576,$A98,DV$1))","v":""},{"$f":"IF($A98=\"N/A\",Ref!$B$36,INDEX(Ranks!$1:$1048576,$A98,DW$1))","v":""},{"$f":"IF($A98=\"N/A\",Ref!$B$36,INDEX(Ranks!$1:$1048576,$A98,DX$1))","v":""},{"$f":"IF($A98=\"N/A\",Ref!$B$36,INDEX(Ranks!$1:$1048576,$A98,DY$1))","v":""},{"$f":"IF($A98=\"N/A\",Ref!$B$36,INDEX(Ranks!$1:$1048576,$A98,DZ$1))","v":""},{"$f":"IF($A98=\"N/A\",Ref!$B$36,INDEX(Ranks!$1:$1048576,$A98,EA$1))","v":""},{"$f":"IF($A98=\"N/A\",Ref!$B$36,INDEX(Ranks!$1:$1048576,$A98,EB$1))","v":""}]
[{"$f":"IFERROR(MATCH('Portfolio Page'!L99,Ranks!L:L,0),\"N/A\")","v":"N/A"},null,{"$f":"IF($A99=\"N/A\",\"\",INDEX(Ranks!$1:$1048576,$A99,C$1))","v":""},{"$f":"IF($A99=\"N/A\",Ref!$B$36,INDEX(Ranks!$1:$1048576,$A99,D$1))","v":""},{"$f":"IF($A99=\"N/A\",Ref!$B$36,INDEX(Ranks!$1:$1048576,$A99,E$1))","v":""},{"$f":"IF($A99=\"N/A\",\"\",INDEX(Ranks!$1:$1048576,$A99,F$1))","v":""},{"$f":"IF($A99=\"N/A\",\"\",INDEX(Ranks!$1:$1048576,$A99,G$1))","v":""},{"$f":"IF($A99=\"N/A\",\"\",INDEX(Ranks!$1:$1048576,$A99,H$1))","v":""},{"$f":"IF($A99=\"N/A\",\"\",INDEX(Ranks!$1:$1048576,$A99,I$1))","v":""},{"$f":"IF($A99=\"N/A\",\"\",INDEX(Ranks!$1:$1048576,$A99,J$1))","v":""},{"$f":"IF($A99=\"N/A\",\"\",INDEX(Ranks!$1:$1048576,$A99,K$1))","v":""},null,{"$f":"IF($A99=\"N/A\",Ref!$B$36,INDEX(Ranks!$1:$1048576,$A99,M$1))","v":""},{"$f":"IF($A99=\"N/A\",Ref!$B$36,INDEX(Ranks!$1:$1048576,$A99,N$1))","v":""},{"$f":"IF($A99=\"N/A\",Ref!$B$36,INDEX(Ranks!$1:$1048576,$A99,O$1))","v":""},{"$f":"IF($A99=\"N/A\",Ref!$B$36,INDEX(Ranks!$1:$1048576,$A99,P$1))","v":""},{"$f":"IF($A99=\"N/A\",Ref!$B$36,INDEX(Ranks!$1:$1048576,$A99,Q$1))","v":""},{"$f":"IF($A99=\"N/A\",Ref!$B$36,INDEX(Ranks!$1:$1048576,$A99,R$1))","v":""},{"$f":"IF($A99=\"N/A\",Ref!$B$36,INDEX(Ranks!$1:$1048576,$A99,S$1))","v":""},{"$f":"IF($A99=\"N/A\",Ref!$B$36,INDEX(Ranks!$1:$1048576,$A99,T$1))","v":""},{"$f":"IF($A99=\"N/A\",Ref!$B$36,INDEX(Ranks!$1:$1048576,$A99,U$1))","v":""},{"$f":"IF($A99=\"N/A\",Ref!$B$36,INDEX(Ranks!$1:$1048576,$A99,V$1))","v":""},{"$f":"IF($A99=\"N/A\",Ref!$B$36,INDEX(Ranks!$1:$1048576,$A99,W$1))","v":""},{"$f":"IF($A99=\"N/A\",Ref!$B$36,INDEX(Ranks!$1:$1048576,$A99,X$1))","v":""},{"$f":"IF($A99=\"N/A\",Ref!$B$36,INDEX(Ranks!$1:$1048576,$A99,Y$1))","v":""},{"$f":"IF($A99=\"N/A\",Ref!$B$36,INDEX(Ranks!$1:$1048576,$A99,Z$1))","v":""},{"$f":"IF($A99=\"N/A\",Ref!$B$36,INDEX(Ranks!$1:$1048576,$A99,AA$1))","v":""},{"$f":"IF($A99=\"N/A\",Ref!$B$36,INDEX(Ranks!$1:$1048576,$A99,AB$1))","v":""},{"$f":"IF($A99=\"N/A\",Ref!$B$36,INDEX(Ranks!$1:$1048576,$A99,AC$1))","v":""},{"$f":"IF($A99=\"N/A\",Ref!$B$36,INDEX(Ranks!$1:$1048576,$A99,AD$1))","v":""},{"$f":"IF($A99=\"N/A\",Ref!$B$36,INDEX(Ranks!$1:$1048576,$A99,AE$1))","v":""},{"$f":"IF($A99=\"N/A\",Ref!$B$36,INDEX(Ranks!$1:$1048576,$A99,AF$1))","v":""},{"$f":"IF($A99=\"N/A\",Ref!$B$36,INDEX(Ranks!$1:$1048576,$A99,AG$1))","v":""},{"$f":"IF($A99=\"N/A\",Ref!$B$36,INDEX(Ranks!$1:$1048576,$A99,AH$1))","v":""},{"$f":"IF($A99=\"N/A\",Ref!$B$36,INDEX(Ranks!$1:$1048576,$A99,AI$1))","v":""},{"$f":"IF($A99=\"N/A\",Ref!$B$36,INDEX(Ranks!$1:$1048576,$A99,AJ$1))","v":""},{"$f":"IF($A99=\"N/A\",Ref!$B$36,INDEX(Ranks!$1:$1048576,$A99,AK$1))","v":""},{"$f":"IF($A99=\"N/A\",Ref!$B$36,INDEX(Ranks!$1:$1048576,$A99,AL$1))","v":""},{"$f":"IF($A99=\"N/A\",Ref!$B$36,INDEX(Ranks!$1:$1048576,$A99,AM$1))","v":""},{"$f":"IF($A99=\"N/A\",Ref!$B$36,INDEX(Ranks!$1:$1048576,$A99,AN$1))","v":""},{"$f":"IF($A99=\"N/A\",Ref!$B$36,INDEX(Ranks!$1:$1048576,$A99,AO$1))","v":""},{"$f":"IF($A99=\"N/A\",Ref!$B$36,INDEX(Ranks!$1:$1048576,$A99,AP$1))","v":""},{"$f":"IF($A99=\"N/A\",Ref!$B$36,INDEX(Ranks!$1:$1048576,$A99,AQ$1))","v":""},{"$f":"IF($A99=\"N/A\",Ref!$B$36,INDEX(Ranks!$1:$1048576,$A99,AR$1))","v":""},{"$f":"IF($A99=\"N/A\",Ref!$B$36,INDEX(Ranks!$1:$1048576,$A99,AS$1))","v":""},{"$f":"IF($A99=\"N/A\",Ref!$B$36,INDEX(Ranks!$1:$1048576,$A99,AT$1))","v":""},{"$f":"IF($A99=\"N/A\",Ref!$B$36,INDEX(Ranks!$1:$1048576,$A99,AU$1))","v":""},{"$f":"IF($A99=\"N/A\",Ref!$B$36,INDEX(Ranks!$1:$1048576,$A99,AV$1))","v":""},{"$f":"IF($A99=\"N/A\",Ref!$B$36,INDEX(Ranks!$1:$1048576,$A99,AW$1))","v":""},{"$f":"IF($A99=\"N/A\",Ref!$B$36,INDEX(Ranks!$1:$1048576,$A99,AX$1))","v":""},{"$f":"IF($A99=\"N/A\",Ref!$B$36,INDEX(Ranks!$1:$1048576,$A99,AY$1))","v":""},{"$f":"IF($A99=\"N/A\",Ref!$B$36,INDEX(Ranks!$1:$1048576,$A99,AZ$1))","v":""},{"$f":"IF($A99=\"N/A\",Ref!$B$36,INDEX(Ranks!$1:$1048576,$A99,BA$1))","v":""},{"$f":"IF($A99=\"N/A\",Ref!$B$36,INDEX(Ranks!$1:$1048576,$A99,BB$1))","v":""},{"$f":"IF($A99=\"N/A\",Ref!$B$36,INDEX(Ranks!$1:$1048576,$A99,BC$1))","v":""},{"$f":"IF($A99=\"N/A\",Ref!$B$36,INDEX(Ranks!$1:$1048576,$A99,BD$1))","v":""},{"$f":"IF($A99=\"N/A\",Ref!$B$36,INDEX(Ranks!$1:$1048576,$A99,BE$1))","v":""},{"$f":"IF($A99=\"N/A\",Ref!$B$36,INDEX(Ranks!$1:$1048576,$A99,BF$1))","v":""},{"$f":"IF($A99=\"N/A\",Ref!$B$36,INDEX(Ranks!$1:$1048576,$A99,BG$1))","v":""},{"$f":"IF($A99=\"N/A\",Ref!$B$36,INDEX(Ranks!$1:$1048576,$A99,BH$1))","v":""},{"$f":"IF($A99=\"N/A\",Ref!$B$36,INDEX(Ranks!$1:$1048576,$A99,BI$1))","v":""},{"$f":"IF($A99=\"N/A\",Ref!$B$36,INDEX(Ranks!$1:$1048576,$A99,BJ$1))","v":""},{"$f":"IF($A99=\"N/A\",Ref!$B$36,INDEX(Ranks!$1:$1048576,$A99,BK$1))","v":""},{"$f":"IF($A99=\"N/A\",Ref!$B$36,INDEX(Ranks!$1:$1048576,$A99,BL$1))","v":""},{"$f":"IF($A99=\"N/A\",Ref!$B$36,INDEX(Ranks!$1:$1048576,$A99,BM$1))","v":""},{"$f":"IF($A99=\"N/A\",Ref!$B$36,INDEX(Ranks!$1:$1048576,$A99,BN$1))","v":""},{"$f":"IF($A99=\"N/A\",Ref!$B$36,INDEX(Ranks!$1:$1048576,$A99,BO$1))","v":""},{"$f":"IF($A99=\"N/A\",Ref!$B$36,INDEX(Ranks!$1:$1048576,$A99,BP$1))","v":""},{"$f":"IF($A99=\"N/A\",Ref!$B$36,INDEX(Ranks!$1:$1048576,$A99,BQ$1))","v":""},{"$f":"IF($A99=\"N/A\",Ref!$B$36,INDEX(Ranks!$1:$1048576,$A99,BR$1))","v":""},{"$f":"IF($A99=\"N/A\",Ref!$B$36,INDEX(Ranks!$1:$1048576,$A99,BS$1))","v":""},{"$f":"IF($A99=\"N/A\",Ref!$B$36,INDEX(Ranks!$1:$1048576,$A99,BT$1))","v":""},{"$f":"IF($A99=\"N/A\",Ref!$B$36,INDEX(Ranks!$1:$1048576,$A99,BU$1))","v":""},{"$f":"IF($A99=\"N/A\",Ref!$B$36,INDEX(Ranks!$1:$1048576,$A99,BV$1))","v":""},{"$f":"IF($A99=\"N/A\",Ref!$B$36,INDEX(Ranks!$1:$1048576,$A99,BW$1))","v":""},{"$f":"IF($A99=\"N/A\",Ref!$B$36,INDEX(Ranks!$1:$1048576,$A99,BX$1))","v":""},{"$f":"IF($A99=\"N/A\",Ref!$B$36,INDEX(Ranks!$1:$1048576,$A99,BY$1))","v":""},{"$f":"IF($A99=\"N/A\",Ref!$B$36,INDEX(Ranks!$1:$1048576,$A99,BZ$1))","v":""},{"$f":"IF($A99=\"N/A\",Ref!$B$36,INDEX(Ranks!$1:$1048576,$A99,CA$1))","v":""},{"$f":"IF($A99=\"N/A\",Ref!$B$36,INDEX(Ranks!$1:$1048576,$A99,CB$1))","v":""},{"$f":"IF($A99=\"N/A\",Ref!$B$36,INDEX(Ranks!$1:$1048576,$A99,CC$1))","v":""},{"$f":"IF($A99=\"N/A\",Ref!$B$36,INDEX(Ranks!$1:$1048576,$A99,CD$1))","v":""},{"$f":"IF($A99=\"N/A\",Ref!$B$36,INDEX(Ranks!$1:$1048576,$A99,CE$1))","v":""},{"$f":"IF($A99=\"N/A\",Ref!$B$36,INDEX(Ranks!$1:$1048576,$A99,CF$1))","v":""},{"$f":"IF($A99=\"N/A\",Ref!$B$36,INDEX(Ranks!$1:$1048576,$A99,CG$1))","v":""},{"$f":"IF($A99=\"N/A\",Ref!$B$36,INDEX(Ranks!$1:$1048576,$A99,CH$1))","v":""},{"$f":"IF($A99=\"N/A\",Ref!$B$36,INDEX(Ranks!$1:$1048576,$A99,CI$1))","v":""},{"$f":"IF($A99=\"N/A\",Ref!$B$36,INDEX(Ranks!$1:$1048576,$A99,CJ$1))","v":""},{"$f":"IF($A99=\"N/A\",Ref!$B$36,INDEX(Ranks!$1:$1048576,$A99,CK$1))","v":""},{"$f":"IF($A99=\"N/A\",Ref!$B$36,INDEX(Ranks!$1:$1048576,$A99,CL$1))","v":""},{"$f":"IF($A99=\"N/A\",Ref!$B$36,INDEX(Ranks!$1:$1048576,$A99,CM$1))","v":""},{"$f":"IF($A99=\"N/A\",Ref!$B$36,INDEX(Ranks!$1:$1048576,$A99,CN$1))","v":""},{"$f":"IF($A99=\"N/A\",Ref!$B$36,INDEX(Ranks!$1:$1048576,$A99,CO$1))","v":""},{"$f":"IF($A99=\"N/A\",Ref!$B$36,INDEX(Ranks!$1:$1048576,$A99,CP$1))","v":""},{"$f":"IF($A99=\"N/A\",Ref!$B$36,INDEX(Ranks!$1:$1048576,$A99,CQ$1))","v":""},{"$f":"IF($A99=\"N/A\",Ref!$B$36,INDEX(Ranks!$1:$1048576,$A99,CR$1))","v":""},{"$f":"IF($A99=\"N/A\",Ref!$B$36,INDEX(Ranks!$1:$1048576,$A99,CS$1))","v":""},{"$f":"IF($A99=\"N/A\",Ref!$B$36,INDEX(Ranks!$1:$1048576,$A99,CT$1))","v":""},{"$f":"IF($A99=\"N/A\",Ref!$B$36,INDEX(Ranks!$1:$1048576,$A99,CU$1))","v":""},{"$f":"IF($A99=\"N/A\",Ref!$B$36,INDEX(Ranks!$1:$1048576,$A99,CV$1))","v":""},{"$f":"IF($A99=\"N/A\",Ref!$B$36,INDEX(Ranks!$1:$1048576,$A99,CW$1))","v":""},{"$f":"IF($A99=\"N/A\",Ref!$B$36,INDEX(Ranks!$1:$1048576,$A99,CX$1))","v":""},{"$f":"IF($A99=\"N/A\",Ref!$B$36,INDEX(Ranks!$1:$1048576,$A99,CY$1))","v":""},{"$f":"IF($A99=\"N/A\",Ref!$B$36,INDEX(Ranks!$1:$1048576,$A99,CZ$1))","v":""},{"$f":"IF($A99=\"N/A\",Ref!$B$36,INDEX(Ranks!$1:$1048576,$A99,DA$1))","v":""},{"$f":"IF($A99=\"N/A\",Ref!$B$36,INDEX(Ranks!$1:$1048576,$A99,DB$1))","v":""},{"$f":"IF($A99=\"N/A\",Ref!$B$36,INDEX(Ranks!$1:$1048576,$A99,DC$1))","v":""},{"$f":"IF($A99=\"N/A\",Ref!$B$36,INDEX(Ranks!$1:$1048576,$A99,DD$1))","v":""},{"$f":"IF($A99=\"N/A\",Ref!$B$36,INDEX(Ranks!$1:$1048576,$A99,DE$1))","v":""},{"$f":"IF($A99=\"N/A\",Ref!$B$36,INDEX(Ranks!$1:$1048576,$A99,DF$1))","v":""},{"$f":"IF($A99=\"N/A\",Ref!$B$36,INDEX(Ranks!$1:$1048576,$A99,DG$1))","v":""},{"$f":"IF($A99=\"N/A\",Ref!$B$36,INDEX(Ranks!$1:$1048576,$A99,DH$1))","v":""},{"$f":"IF($A99=\"N/A\",Ref!$B$36,INDEX(Ranks!$1:$1048576,$A99,DI$1))","v":""},{"$f":"IF($A99=\"N/A\",Ref!$B$36,INDEX(Ranks!$1:$1048576,$A99,DJ$1))","v":""},{"$f":"IF($A99=\"N/A\",Ref!$B$36,INDEX(Ranks!$1:$1048576,$A99,DK$1))","v":""},{"$f":"IF($A99=\"N/A\",Ref!$B$36,INDEX(Ranks!$1:$1048576,$A99,DL$1))","v":""},{"$f":"IF($A99=\"N/A\",Ref!$B$36,INDEX(Ranks!$1:$1048576,$A99,DM$1))","v":""},{"$f":"IF($A99=\"N/A\",Ref!$B$36,INDEX(Ranks!$1:$1048576,$A99,DN$1))","v":""},{"$f":"IF($A99=\"N/A\",Ref!$B$36,INDEX(Ranks!$1:$1048576,$A99,DO$1))","v":""},{"$f":"IF($A99=\"N/A\",Ref!$B$36,INDEX(Ranks!$1:$1048576,$A99,DP$1))","v":""},{"$f":"IF($A99=\"N/A\",Ref!$B$36,INDEX(Ranks!$1:$1048576,$A99,DQ$1))","v":""},{"$f":"IF($A99=\"N/A\",Ref!$B$36,INDEX(Ranks!$1:$1048576,$A99,DR$1))","v":""},{"$f":"IF($A99=\"N/A\",Ref!$B$36,INDEX(Ranks!$1:$1048576,$A99,DS$1))","v":""},{"$f":"IF($A99=\"N/A\",Ref!$B$36,INDEX(Ranks!$1:$1048576,$A99,DT$1))","v":""},{"$f":"IF($A99=\"N/A\",Ref!$B$36,INDEX(Ranks!$1:$1048576,$A99,DU$1))","v":""},{"$f":"IF($A99=\"N/A\",Ref!$B$36,INDEX(Ranks!$1:$1048576,$A99,DV$1))","v":""},{"$f":"IF($A99=\"N/A\",Ref!$B$36,INDEX(Ranks!$1:$1048576,$A99,DW$1))","v":""},{"$f":"IF($A99=\"N/A\",Ref!$B$36,INDEX(Ranks!$1:$1048576,$A99,DX$1))","v":""},{"$f":"IF($A99=\"N/A\",Ref!$B$36,INDEX(Ranks!$1:$1048576,$A99,DY$1))","v":""},{"$f":"IF($A99=\"N/A\",Ref!$B$36,INDEX(Ranks!$1:$1048576,$A99,DZ$1))","v":""},{"$f":"IF($A99=\"N/A\",Ref!$B$36,INDEX(Ranks!$1:$1048576,$A99,EA$1))","v":""},{"$f":"IF($A99=\"N/A\",Ref!$B$36,INDEX(Ranks!$1:$1048576,$A99,EB$1))","v":""}]
[{"$f":"IFERROR(MATCH('Portfolio Page'!L100,Ranks!L:L,0),\"N/A\")","v":"N/A"},null,{"$f":"IF($A100=\"N/A\",\"\",INDEX(Ranks!$1:$1048576,$A100,C$1))","v":""},{"$f":"IF($A100=\"N/A\",Ref!$B$36,INDEX(Ranks!$1:$1048576,$A100,D$1))","v":""},{"$f":"IF($A100=\"N/A\",Ref!$B$36,INDEX(Ranks!$1:$1048576,$A100,E$1))","v":""},{"$f":"IF($A100=\"N/A\",\"\",INDEX(Ranks!$1:$1048576,$A100,F$1))","v":""},{"$f":"IF($A100=\"N/A\",\"\",INDEX(Ranks!$1:$1048576,$A100,G$1))","v":""},{"$f":"IF($A100=\"N/A\",\"\",INDEX(Ranks!$1:$1048576,$A100,H$1))","v":""},{"$f":"IF($A100=\"N/A\",\"\",INDEX(Ranks!$1:$1048576,$A100,I$1))","v":""},{"$f":"IF($A100=\"N/A\",\"\",INDEX(Ranks!$1:$1048576,$A100,J$1))","v":""},{"$f":"IF($A100=\"N/A\",\"\",INDEX(Ranks!$1:$1048576,$A100,K$1))","v":""},null,{"$f":"IF($A100=\"N/A\",Ref!$B$36,INDEX(Ranks!$1:$1048576,$A100,M$1))","v":""},{"$f":"IF($A100=\"N/A\",Ref!$B$36,INDEX(Ranks!$1:$1048576,$A100,N$1))","v":""},{"$f":"IF($A100=\"N/A\",Ref!$B$36,INDEX(Ranks!$1:$1048576,$A100,O$1))","v":""},{"$f":"IF($A100=\"N/A\",Ref!$B$36,INDEX(Ranks!$1:$1048576,$A100,P$1))","v":""},{"$f":"IF($A100=\"N/A\",Ref!$B$36,INDEX(Ranks!$1:$1048576,$A100,Q$1))","v":""},{"$f":"IF($A100=\"N/A\",Ref!$B$36,INDEX(Ranks!$1:$1048576,$A100,R$1))","v":""},{"$f":"IF($A100=\"N/A\",Ref!$B$36,INDEX(Ranks!$1:$1048576,$A100,S$1))","v":""},{"$f":"IF($A100=\"N/A\",Ref!$B$36,INDEX(Ranks!$1:$1048576,$A100,T$1))","v":""},{"$f":"IF($A100=\"N/A\",Ref!$B$36,INDEX(Ranks!$1:$1048576,$A100,U$1))","v":""},{"$f":"IF($A100=\"N/A\",Ref!$B$36,INDEX(Ranks!$1:$1048576,$A100,V$1))","v":""},{"$f":"IF($A100=\"N/A\",Ref!$B$36,INDEX(Ranks!$1:$1048576,$A100,W$1))","v":""},{"$f":"IF($A100=\"N/A\",Ref!$B$36,INDEX(Ranks!$1:$1048576,$A100,X$1))","v":""},{"$f":"IF($A100=\"N/A\",Ref!$B$36,INDEX(Ranks!$1:$1048576,$A100,Y$1))","v":""},{"$f":"IF($A100=\"N/A\",Ref!$B$36,INDEX(Ranks!$1:$1048576,$A100,Z$1))","v":""},{"$f":"IF($A100=\"N/A\",Ref!$B$36,INDEX(Ranks!$1:$1048576,$A100,AA$1))","v":""},{"$f":"IF($A100=\"N/A\",Ref!$B$36,INDEX(Ranks!$1:$1048576,$A100,AB$1))","v":""},{"$f":"IF($A100=\"N/A\",Ref!$B$36,INDEX(Ranks!$1:$1048576,$A100,AC$1))","v":""},{"$f":"IF($A100=\"N/A\",Ref!$B$36,INDEX(Ranks!$1:$1048576,$A100,AD$1))","v":""},{"$f":"IF($A100=\"N/A\",Ref!$B$36,INDEX(Ranks!$1:$1048576,$A100,AE$1))","v":""},{"$f":"IF($A100=\"N/A\",Ref!$B$36,INDEX(Ranks!$1:$1048576,$A100,AF$1))","v":""},{"$f":"IF($A100=\"N/A\",Ref!$B$36,INDEX(Ranks!$1:$1048576,$A100,AG$1))","v":""},{"$f":"IF($A100=\"N/A\",Ref!$B$36,INDEX(Ranks!$1:$1048576,$A100,AH$1))","v":""},{"$f":"IF($A100=\"N/A\",Ref!$B$36,INDEX(Ranks!$1:$1048576,$A100,AI$1))","v":""},{"$f":"IF($A100=\"N/A\",Ref!$B$36,INDEX(Ranks!$1:$1048576,$A100,AJ$1))","v":""},{"$f":"IF($A100=\"N/A\",Ref!$B$36,INDEX(Ranks!$1:$1048576,$A100,AK$1))","v":""},{"$f":"IF($A100=\"N/A\",Ref!$B$36,INDEX(Ranks!$1:$1048576,$A100,AL$1))","v":""},{"$f":"IF($A100=\"N/A\",Ref!$B$36,INDEX(Ranks!$1:$1048576,$A100,AM$1))","v":""},{"$f":"IF($A100=\"N/A\",Ref!$B$36,INDEX(Ranks!$1:$1048576,$A100,AN$1))","v":""},{"$f":"IF($A100=\"N/A\",Ref!$B$36,INDEX(Ranks!$1:$1048576,$A100,AO$1))","v":""},{"$f":"IF($A100=\"N/A\",Ref!$B$36,INDEX(Ranks!$1:$1048576,$A100,AP$1))","v":""},{"$f":"IF($A100=\"N/A\",Ref!$B$36,INDEX(Ranks!$1:$1048576,$A100,AQ$1))","v":""},{"$f":"IF($A100=\"N/A\",Ref!$B$36,INDEX(Ranks!$1:$1048576,$A100,AR$1))","v":""},{"$f":"IF($A100=\"N/A\",Ref!$B$36,INDEX(Ranks!$1:$1048576,$A100,AS$1))","v":""},{"$f":"IF($A100=\"N/A\",Ref!$B$36,INDEX(Ranks!$1:$1048576,$A100,AT$1))","v":""},{"$f":"IF($A100=\"N/A\",Ref!$B$36,INDEX(Ranks!$1:$1048576,$A100,AU$1))","v":""},{"$f":"IF($A100=\"N/A\",Ref!$B$36,INDEX(Ranks!$1:$1048576,$A100,AV$1))","v":""},{"$f":"IF($A100=\"N/A\",Ref!$B$36,INDEX(Ranks!$1:$1048576,$A100,AW$1))","v":""},{"$f":"IF($A100=\"N/A\",Ref!$B$36,INDEX(Ranks!$1:$1048576,$A100,AX$1))","v":""},{"$f":"IF($A100=\"N/A\",Ref!$B$36,INDEX(Ranks!$1:$1048576,$A100,AY$1))","v":""},{"$f":"IF($A100=\"N/A\",Ref!$B$36,INDEX(Ranks!$1:$1048576,$A100,AZ$1))","v":""},{"$f":"IF($A100=\"N/A\",Ref!$B$36,INDEX(Ranks!$1:$1048576,$A100,BA$1))","v":""},{"$f":"IF($A100=\"N/A\",Ref!$B$36,INDEX(Ranks!$1:$1048576,$A100,BB$1))","v":""},{"$f":"IF($A100=\"N/A\",Ref!$B$36,INDEX(Ranks!$1:$1048576,$A100,BC$1))","v":""},{"$f":"IF($A100=\"N/A\",Ref!$B$36,INDEX(Ranks!$1:$1048576,$A100,BD$1))","v":""},{"$f":"IF($A100=\"N/A\",Ref!$B$36,INDEX(Ranks!$1:$1048576,$A100,BE$1))","v":""},{"$f":"IF($A100=\"N/A\",Ref!$B$36,INDEX(Ranks!$1:$1048576,$A100,BF$1))","v":""},{"$f":"IF($A100=\"N/A\",Ref!$B$36,INDEX(Ranks!$1:$1048576,$A100,BG$1))","v":""},{"$f":"IF($A100=\"N/A\",Ref!$B$36,INDEX(Ranks!$1:$1048576,$A100,BH$1))","v":""},{"$f":"IF($A100=\"N/A\",Ref!$B$36,INDEX(Ranks!$1:$1048576,$A100,BI$1))","v":""},{"$f":"IF($A100=\"N/A\",Ref!$B$36,INDEX(Ranks!$1:$1048576,$A100,BJ$1))","v":""},{"$f":"IF($A100=\"N/A\",Ref!$B$36,INDEX(Ranks!$1:$1048576,$A100,BK$1))","v":""},{"$f":"IF($A100=\"N/A\",Ref!$B$36,INDEX(Ranks!$1:$1048576,$A100,BL$1))","v":""},{"$f":"IF($A100=\"N/A\",Ref!$B$36,INDEX(Ranks!$1:$1048576,$A100,BM$1))","v":""},{"$f":"IF($A100=\"N/A\",Ref!$B$36,INDEX(Ranks!$1:$1048576,$A100,BN$1))","v":""},{"$f":"IF($A100=\"N/A\",Ref!$B$36,INDEX(Ranks!$1:$1048576,$A100,BO$1))","v":""},{"$f":"IF($A100=\"N/A\",Ref!$B$36,INDEX(Ranks!$1:$1048576,$A100,BP$1))","v":""},{"$f":"IF($A100=\"N/A\",Ref!$B$36,INDEX(Ranks!$1:$1048576,$A100,BQ$1))","v":""},{"$f":"IF($A100=\"N/A\",Ref!$B$36,INDEX(Ranks!$1:$1048576,$A100,BR$1))","v":""},{"$f":"IF($A100=\"N/A\",Ref!$B$36,INDEX(Ranks!$1:$1048576,$A100,BS$1))","v":""},{"$f":"IF($A100=\"N/A\",Ref!$B$36,INDEX(Ranks!$1:$1048576,$A100,BT$1))","v":""},{"$f":"IF($A100=\"N/A\",Ref!$B$36,INDEX(Ranks!$1:$1048576,$A100,BU$1))","v":""},{"$f":"IF($A100=\"N/A\",Ref!$B$36,INDEX(Ranks!$1:$1048576,$A100,BV$1))","v":""},{"$f":"IF($A100=\"N/A\",Ref!$B$36,INDEX(Ranks!$1:$1048576,$A100,BW$1))","v":""},{"$f":"IF($A100=\"N/A\",Ref!$B$36,INDEX(Ranks!$1:$1048576,$A100,BX$1))","v":""},{"$f":"IF($A100=\"N/A\",Ref!$B$36,INDEX(Ranks!$1:$1048576,$A100,BY$1))","v":""},{"$f":"IF($A100=\"N/A\",Ref!$B$36,INDEX(Ranks!$1:$1048576,$A100,BZ$1))","v":""},{"$f":"IF($A100=\"N/A\",Ref!$B$36,INDEX(Ranks!$1:$1048576,$A100,CA$1))","v":""},{"$f":"IF($A100=\"N/A\",Ref!$B$36,INDEX(Ranks!$1:$1048576,$A100,CB$1))","v":""},{"$f":"IF($A100=\"N/A\",Ref!$B$36,INDEX(Ranks!$1:$1048576,$A100,CC$1))","v":""},{"$f":"IF($A100=\"N/A\",Ref!$B$36,INDEX(Ranks!$1:$1048576,$A100,CD$1))","v":""},{"$f":"IF($A100=\"N/A\",Ref!$B$36,INDEX(Ranks!$1:$1048576,$A100,CE$1))","v":""},{"$f":"IF($A100=\"N/A\",Ref!$B$36,INDEX(Ranks!$1:$1048576,$A100,CF$1))","v":""},{"$f":"IF($A100=\"N/A\",Ref!$B$36,INDEX(Ranks!$1:$1048576,$A100,CG$1))","v":""},{"$f":"IF($A100=\"N/A\",Ref!$B$36,INDEX(Ranks!$1:$1048576,$A100,CH$1))","v":""},{"$f":"IF($A100=\"N/A\",Ref!$B$36,INDEX(Ranks!$1:$1048576,$A100,CI$1))","v":""},{"$f":"IF($A100=\"N/A\",Ref!$B$36,INDEX(Ranks!$1:$1048576,$A100,CJ$1))","v":""},{"$f":"IF($A100=\"N/A\",Ref!$B$36,INDEX(Ranks!$1:$1048576,$A100,CK$1))","v":""},{"$f":"IF($A100=\"N/A\",Ref!$B$36,INDEX(Ranks!$1:$1048576,$A100,CL$1))","v":""},{"$f":"IF($A100=\"N/A\",Ref!$B$36,INDEX(Ranks!$1:$1048576,$A100,CM$1))","v":""},{"$f":"IF($A100=\"N/A\",Ref!$B$36,INDEX(Ranks!$1:$1048576,$A100,CN$1))","v":""},{"$f":"IF($A100=\"N/A\",Ref!$B$36,INDEX(Ranks!$1:$1048576,$A100,CO$1))","v":""},{"$f":"IF($A100=\"N/A\",Ref!$B$36,INDEX(Ranks!$1:$1048576,$A100,CP$1))","v":""},{"$f":"IF($A100=\"N/A\",Ref!$B$36,INDEX(Ranks!$1:$1048576,$A100,CQ$1))","v":""},{"$f":"IF($A100=\"N/A\",Ref!$B$36,INDEX(Ranks!$1:$1048576,$A100,CR$1))","v":""},{"$f":"IF($A100=\"N/A\",Ref!$B$36,INDEX(Ranks!$1:$1048576,$A100,CS$1))","v":""},{"$f":"IF($A100=\"N/A\",Ref!$B$36,INDEX(Ranks!$1:$1048576,$A100,CT$1))","v":""},{"$f":"IF($A100=\"N/A\",Ref!$B$36,INDEX(Ranks!$1:$1048576,$A100,CU$1))","v":""},{"$f":"IF($A100=\"N/A\",Ref!$B$36,INDEX(Ranks!$1:$1048576,$A100,CV$1))","v":""},{"$f":"IF($A100=\"N/A\",Ref!$B$36,INDEX(Ranks!$1:$1048576,$A100,CW$1))","v":""},{"$f":"IF($A100=\"N/A\",Ref!$B$36,INDEX(Ranks!$1:$1048576,$A100,CX$1))","v":""},{"$f":"IF($A100=\"N/A\",Ref!$B$36,INDEX(Ranks!$1:$1048576,$A100,CY$1))","v":""},{"$f":"IF($A100=\"N/A\",Ref!$B$36,INDEX(Ranks!$1:$1048576,$A100,CZ$1))","v":""},{"$f":"IF($A100=\"N/A\",Ref!$B$36,INDEX(Ranks!$1:$1048576,$A100,DA$1))","v":""},{"$f":"IF($A100=\"N/A\",Ref!$B$36,INDEX(Ranks!$1:$1048576,$A100,DB$1))","v":""},{"$f":"IF($A100=\"N/A\",Ref!$B$36,INDEX(Ranks!$1:$1048576,$A100,DC$1))","v":""},{"$f":"IF($A100=\"N/A\",Ref!$B$36,INDEX(Ranks!$1:$1048576,$A100,DD$1))","v":""},{"$f":"IF($A100=\"N/A\",Ref!$B$36,INDEX(Ranks!$1:$1048576,$A100,DE$1))","v":""},{"$f":"IF($A100=\"N/A\",Ref!$B$36,INDEX(Ranks!$1:$1048576,$A100,DF$1))","v":""},{"$f":"IF($A100=\"N/A\",Ref!$B$36,INDEX(Ranks!$1:$1048576,$A100,DG$1))","v":""},{"$f":"IF($A100=\"N/A\",Ref!$B$36,INDEX(Ranks!$1:$1048576,$A100,DH$1))","v":""},{"$f":"IF($A100=\"N/A\",Ref!$B$36,INDEX(Ranks!$1:$1048576,$A100,DI$1))","v":""},{"$f":"IF($A100=\"N/A\",Ref!$B$36,INDEX(Ranks!$1:$1048576,$A100,DJ$1))","v":""},{"$f":"IF($A100=\"N/A\",Ref!$B$36,INDEX(Ranks!$1:$1048576,$A100,DK$1))","v":""},{"$f":"IF($A100=\"N/A\",Ref!$B$36,INDEX(Ranks!$1:$1048576,$A100,DL$1))","v":""},{"$f":"IF($A100=\"N/A\",Ref!$B$36,INDEX(Ranks!$1:$1048576,$A100,DM$1))","v":""},{"$f":"IF($A100=\"N/A\",Ref!$B$36,INDEX(Ranks!$1:$1048576,$A100,DN$1))","v":""},{"$f":"IF($A100=\"N/A\",Ref!$B$36,INDEX(Ranks!$1:$1048576,$A100,DO$1))","v":""},{"$f":"IF($A100=\"N/A\",Ref!$B$36,INDEX(Ranks!$1:$1048576,$A100,DP$1))","v":""},{"$f":"IF($A100=\"N/A\",Ref!$B$36,INDEX(Ranks!$1:$1048576,$A100,DQ$1))","v":""},{"$f":"IF($A100=\"N/A\",Ref!$B$36,INDEX(Ranks!$1:$1048576,$A100,DR$1))","v":""},{"$f":"IF($A100=\"N/A\",Ref!$B$36,INDEX(Ranks!$1:$1048576,$A100,DS$1))","v":""},{"$f":"IF($A100=\"N/A\",Ref!$B$36,INDEX(Ranks!$1:$1048576,$A100,DT$1))","v":""},{"$f":"IF($A100=\"N/A\",Ref!$B$36,INDEX(Ranks!$1:$1048576,$A100,DU$1))","v":""},{"$f":"IF($A100=\"N/A\",Ref!$B$36,INDEX(Ranks!$1:$1048576,$A100,DV$1))","v":""},{"$f":"IF($A100=\"N/A\",Ref!$B$36,INDEX(Ranks!$1:$1048576,$A100,DW$1))","v":""},{"$f":"IF($A100=\"N/A\",Ref!$B$36,INDEX(Ranks!$1:$1048576,$A100,DX$1))","v":""},{"$f":"IF($A100=\"N/A\",Ref!$B$36,INDEX(Ranks!$1:$1048576,$A100,DY$1))","v":""},{"$f":"IF($A100=\"N/A\",Ref!$B$36,INDEX(Ranks!$1:$1048576,$A100,DZ$1))","v":""},{"$f":"IF($A100=\"N/A\",Ref!$B$36,INDEX(Ranks!$1:$1048576,$A100,EA$1))","v":""},{"$f":"IF($A100=\"N/A\",Ref!$B$36,INDEX(Ranks!$1:$1048576,$A100,EB$1))","v":""}]
[{"$f":"IFERROR(MATCH('Portfolio Page'!L101,Ranks!L:L,0),\"N/A\")","v":"N/A"},null,{"$f":"IF($A101=\"N/A\",\"\",INDEX(Ranks!$1:$1048576,$A101,C$1))","v":""},{"$f":"IF($A101=\"N/A\",Ref!$B$36,INDEX(Ranks!$1:$1048576,$A101,D$1))","v":""},{"$f":"IF($A101=\"N/A\",Ref!$B$36,INDEX(Ranks!$1:$1048576,$A101,E$1))","v":""},{"$f":"IF($A101=\"N/A\",\"\",INDEX(Ranks!$1:$1048576,$A101,F$1))","v":""},{"$f":"IF($A101=\"N/A\",\"\",INDEX(Ranks!$1:$1048576,$A101,G$1))","v":""},{"$f":"IF($A101=\"N/A\",\"\",INDEX(Ranks!$1:$1048576,$A101,H$1))","v":""},{"$f":"IF($A101=\"N/A\",\"\",INDEX(Ranks!$1:$1048576,$A101,I$1))","v":""},{"$f":"IF($A101=\"N/A\",\"\",INDEX(Ranks!$1:$1048576,$A101,J$1))","v":""},{"$f":"IF($A101=\"N/A\",\"\",INDEX(Ranks!$1:$1048576,$A101,K$1))","v":""},null,{"$f":"IF($A101=\"N/A\",Ref!$B$36,INDEX(Ranks!$1:$1048576,$A101,M$1))","v":""},{"$f":"IF($A101=\"N/A\",Ref!$B$36,INDEX(Ranks!$1:$1048576,$A101,N$1))","v":""},{"$f":"IF($A101=\"N/A\",Ref!$B$36,INDEX(Ranks!$1:$1048576,$A101,O$1))","v":""},{"$f":"IF($A101=\"N/A\",Ref!$B$36,INDEX(Ranks!$1:$1048576,$A101,P$1))","v":""},{"$f":"IF($A101=\"N/A\",Ref!$B$36,INDEX(Ranks!$1:$1048576,$A101,Q$1))","v":""},{"$f":"IF($A101=\"N/A\",Ref!$B$36,INDEX(Ranks!$1:$1048576,$A101,R$1))","v":""},{"$f":"IF($A101=\"N/A\",Ref!$B$36,INDEX(Ranks!$1:$1048576,$A101,S$1))","v":""},{"$f":"IF($A101=\"N/A\",Ref!$B$36,INDEX(Ranks!$1:$1048576,$A101,T$1))","v":""},{"$f":"IF($A101=\"N/A\",Ref!$B$36,INDEX(Ranks!$1:$1048576,$A101,U$1))","v":""},{"$f":"IF($A101=\"N/A\",Ref!$B$36,INDEX(Ranks!$1:$1048576,$A101,V$1))","v":""},{"$f":"IF($A101=\"N/A\",Ref!$B$36,INDEX(Ranks!$1:$1048576,$A101,W$1))","v":""},{"$f":"IF($A101=\"N/A\",Ref!$B$36,INDEX(Ranks!$1:$1048576,$A101,X$1))","v":""},{"$f":"IF($A101=\"N/A\",Ref!$B$36,INDEX(Ranks!$1:$1048576,$A101,Y$1))","v":""},{"$f":"IF($A101=\"N/A\",Ref!$B$36,INDEX(Ranks!$1:$1048576,$A101,Z$1))","v":""},{"$f":"IF($A101=\"N/A\",Ref!$B$36,INDEX(Ranks!$1:$1048576,$A101,AA$1))","v":""},{"$f":"IF($A101=\"N/A\",Ref!$B$36,INDEX(Ranks!$1:$1048576,$A101,AB$1))","v":""},{"$f":"IF($A101=\"N/A\",Ref!$B$36,INDEX(Ranks!$1:$1048576,$A101,AC$1))","v":""},{"$f":"IF($A101=\"N/A\",Ref!$B$36,INDEX(Ranks!$1:$1048576,$A101,AD$1))","v":""},{"$f":"IF($A101=\"N/A\",Ref!$B$36,INDEX(Ranks!$1:$1048576,$A101,AE$1))","v":""},{"$f":"IF($A101=\"N/A\",Ref!$B$36,INDEX(Ranks!$1:$1048576,$A101,AF$1))","v":""},{"$f":"IF($A101=\"N/A\",Ref!$B$36,INDEX(Ranks!$1:$1048576,$A101,AG$1))","v":""},{"$f":"IF($A101=\"N/A\",Ref!$B$36,INDEX(Ranks!$1:$1048576,$A101,AH$1))","v":""},{"$f":"IF($A101=\"N/A\",Ref!$B$36,INDEX(Ranks!$1:$1048576,$A101,AI$1))","v":""},{"$f":"IF($A101=\"N/A\",Ref!$B$36,INDEX(Ranks!$1:$1048576,$A101,AJ$1))","v":""},{"$f":"IF($A101=\"N/A\",Ref!$B$36,INDEX(Ranks!$1:$1048576,$A101,AK$1))","v":""},{"$f":"IF($A101=\"N/A\",Ref!$B$36,INDEX(Ranks!$1:$1048576,$A101,AL$1))","v":""},{"$f":"IF($A101=\"N/A\",Ref!$B$36,INDEX(Ranks!$1:$1048576,$A101,AM$1))","v":""},{"$f":"IF($A101=\"N/A\",Ref!$B$36,INDEX(Ranks!$1:$1048576,$A101,AN$1))","v":""},{"$f":"IF($A101=\"N/A\",Ref!$B$36,INDEX(Ranks!$1:$1048576,$A101,AO$1))","v":""},{"$f":"IF($A101=\"N/A\",Ref!$B$36,INDEX(Ranks!$1:$1048576,$A101,AP$1))","v":""},{"$f":"IF($A101=\"N/A\",Ref!$B$36,INDEX(Ranks!$1:$1048576,$A101,AQ$1))","v":""},{"$f":"IF($A101=\"N/A\",Ref!$B$36,INDEX(Ranks!$1:$1048576,$A101,AR$1))","v":""},{"$f":"IF($A101=\"N/A\",Ref!$B$36,INDEX(Ranks!$1:$1048576,$A101,AS$1))","v":""},{"$f":"IF($A101=\"N/A\",Ref!$B$36,INDEX(Ranks!$1:$1048576,$A101,AT$1))","v":""},{"$f":"IF($A101=\"N/A\",Ref!$B$36,INDEX(Ranks!$1:$1048576,$A101,AU$1))","v":""},{"$f":"IF($A101=\"N/A\",Ref!$B$36,INDEX(Ranks!$1:$1048576,$A101,AV$1))","v":""},{"$f":"IF($A101=\"N/A\",Ref!$B$36,INDEX(Ranks!$1:$1048576,$A101,AW$1))","v":""},{"$f":"IF($A101=\"N/A\",Ref!$B$36,INDEX(Ranks!$1:$1048576,$A101,AX$1))","v":""},{"$f":"IF($A101=\"N/A\",Ref!$B$36,INDEX(Ranks!$1:$1048576,$A101,AY$1))","v":""},{"$f":"IF($A101=\"N/A\",Ref!$B$36,INDEX(Ranks!$1:$1048576,$A101,AZ$1))","v":""},{"$f":"IF($A101=\"N/A\",Ref!$B$36,INDEX(Ranks!$1:$1048576,$A101,BA$1))","v":""},{"$f":"IF($A101=\"N/A\",Ref!$B$36,INDEX(Ranks!$1:$1048576,$A101,BB$1))","v":""},{"$f":"IF($A101=\"N/A\",Ref!$B$36,INDEX(Ranks!$1:$1048576,$A101,BC$1))","v":""},{"$f":"IF($A101=\"N/A\",Ref!$B$36,INDEX(Ranks!$1:$1048576,$A101,BD$1))","v":""},{"$f":"IF($A101=\"N/A\",Ref!$B$36,INDEX(Ranks!$1:$1048576,$A101,BE$1))","v":""},{"$f":"IF($A101=\"N/A\",Ref!$B$36,INDEX(Ranks!$1:$1048576,$A101,BF$1))","v":""},{"$f":"IF($A101=\"N/A\",Ref!$B$36,INDEX(Ranks!$1:$1048576,$A101,BG$1))","v":""},{"$f":"IF($A101=\"N/A\",Ref!$B$36,INDEX(Ranks!$1:$1048576,$A101,BH$1))","v":""},{"$f":"IF($A101=\"N/A\",Ref!$B$36,INDEX(Ranks!$1:$1048576,$A101,BI$1))","v":""},{"$f":"IF($A101=\"N/A\",Ref!$B$36,INDEX(Ranks!$1:$1048576,$A101,BJ$1))","v":""},{"$f":"IF($A101=\"N/A\",Ref!$B$36,INDEX(Ranks!$1:$1048576,$A101,BK$1))","v":""},{"$f":"IF($A101=\"N/A\",Ref!$B$36,INDEX(Ranks!$1:$1048576,$A101,BL$1))","v":""},{"$f":"IF($A101=\"N/A\",Ref!$B$36,INDEX(Ranks!$1:$1048576,$A101,BM$1))","v":""},{"$f":"IF($A101=\"N/A\",Ref!$B$36,INDEX(Ranks!$1:$1048576,$A101,BN$1))","v":""},{"$f":"IF($A101=\"N/A\",Ref!$B$36,INDEX(Ranks!$1:$1048576,$A101,BO$1))","v":""},{"$f":"IF($A101=\"N/A\",Ref!$B$36,INDEX(Ranks!$1:$1048576,$A101,BP$1))","v":""},{"$f":"IF($A101=\"N/A\",Ref!$B$36,INDEX(Ranks!$1:$1048576,$A101,BQ$1))","v":""},{"$f":"IF($A101=\"N/A\",Ref!$B$36,INDEX(Ranks!$1:$1048576,$A101,BR$1))","v":""},{"$f":"IF($A101=\"N/A\",Ref!$B$36,INDEX(Ranks!$1:$1048576,$A101,BS$1))","v":""},{"$f":"IF($A101=\"N/A\",Ref!$B$36,INDEX(Ranks!$1:$1048576,$A101,BT$1))","v":""},{"$f":"IF($A101=\"N/A\",Ref!$B$36,INDEX(Ranks!$1:$1048576,$A101,BU$1))","v":""},{"$f":"IF($A101=\"N/A\",Ref!$B$36,INDEX(Ranks!$1:$1048576,$A101,BV$1))","v":""},{"$f":"IF($A101=\"N/A\",Ref!$B$36,INDEX(Ranks!$1:$1048576,$A101,BW$1))","v":""},{"$f":"IF($A101=\"N/A\",Ref!$B$36,INDEX(Ranks!$1:$1048576,$A101,BX$1))","v":""},{"$f":"IF($A101=\"N/A\",Ref!$B$36,INDEX(Ranks!$1:$1048576,$A101,BY$1))","v":""},{"$f":"IF($A101=\"N/A\",Ref!$B$36,INDEX(Ranks!$1:$1048576,$A101,BZ$1))","v":""},{"$f":"IF($A101=\"N/A\",Ref!$B$36,INDEX(Ranks!$1:$1048576,$A101,CA$1))","v":""},{"$f":"IF($A101=\"N/A\",Ref!$B$36,INDEX(Ranks!$1:$1048576,$A101,CB$1))","v":""},{"$f":"IF($A101=\"N/A\",Ref!$B$36,INDEX(Ranks!$1:$1048576,$A101,CC$1))","v":""},{"$f":"IF($A101=\"N/A\",Ref!$B$36,INDEX(Ranks!$1:$1048576,$A101,CD$1))","v":""},{"$f":"IF($A101=\"N/A\",Ref!$B$36,INDEX(Ranks!$1:$1048576,$A101,CE$1))","v":""},{"$f":"IF($A101=\"N/A\",Ref!$B$36,INDEX(Ranks!$1:$1048576,$A101,CF$1))","v":""},{"$f":"IF($A101=\"N/A\",Ref!$B$36,INDEX(Ranks!$1:$1048576,$A101,CG$1))","v":""},{"$f":"IF($A101=\"N/A\",Ref!$B$36,INDEX(Ranks!$1:$1048576,$A101,CH$1))","v":""},{"$f":"IF($A101=\"N/A\",Ref!$B$36,INDEX(Ranks!$1:$1048576,$A101,CI$1))","v":""},{"$f":"IF($A101=\"N/A\",Ref!$B$36,INDEX(Ranks!$1:$1048576,$A101,CJ$1))","v":""},{"$f":"IF($A101=\"N/A\",Ref!$B$36,INDEX(Ranks!$1:$1048576,$A101,CK$1))","v":""},{"$f":"IF($A101=\"N/A\",Ref!$B$36,INDEX(Ranks!$1:$1048576,$A101,CL$1))","v":""},{"$f":"IF($A101=\"N/A\",Ref!$B$36,INDEX(Ranks!$1:$1048576,$A101,CM$1))","v":""},{"$f":"IF($A101=\"N/A\",Ref!$B$36,INDEX(Ranks!$1:$1048576,$A101,CN$1))","v":""},{"$f":"IF($A101=\"N/A\",Ref!$B$36,INDEX(Ranks!$1:$1048576,$A101,CO$1))","v":""},{"$f":"IF($A101=\"N/A\",Ref!$B$36,INDEX(Ranks!$1:$1048576,$A101,CP$1))","v":""},{"$f":"IF($A101=\"N/A\",Ref!$B$36,INDEX(Ranks!$1:$1048576,$A101,CQ$1))","v":""},{"$f":"IF($A101=\"N/A\",Ref!$B$36,INDEX(Ranks!$1:$1048576,$A101,CR$1))","v":""},{"$f":"IF($A101=\"N/A\",Ref!$B$36,INDEX(Ranks!$1:$1048576,$A101,CS$1))","v":""},{"$f":"IF($A101=\"N/A\",Ref!$B$36,INDEX(Ranks!$1:$1048576,$A101,CT$1))","v":""},{"$f":"IF($A101=\"N/A\",Ref!$B$36,INDEX(Ranks!$1:$1048576,$A101,CU$1))","v":""},{"$f":"IF($A101=\"N/A\",Ref!$B$36,INDEX(Ranks!$1:$1048576,$A101,CV$1))","v":""},{"$f":"IF($A101=\"N/A\",Ref!$B$36,INDEX(Ranks!$1:$1048576,$A101,CW$1))","v":""},{"$f":"IF($A101=\"N/A\",Ref!$B$36,INDEX(Ranks!$1:$1048576,$A101,CX$1))","v":""},{"$f":"IF($A101=\"N/A\",Ref!$B$36,INDEX(Ranks!$1:$1048576,$A101,CY$1))","v":""},{"$f":"IF($A101=\"N/A\",Ref!$B$36,INDEX(Ranks!$1:$1048576,$A101,CZ$1))","v":""},{"$f":"IF($A101=\"N/A\",Ref!$B$36,INDEX(Ranks!$1:$1048576,$A101,DA$1))","v":""},{"$f":"IF($A101=\"N/A\",Ref!$B$36,INDEX(Ranks!$1:$1048576,$A101,DB$1))","v":""},{"$f":"IF($A101=\"N/A\",Ref!$B$36,INDEX(Ranks!$1:$1048576,$A101,DC$1))","v":""},{"$f":"IF($A101=\"N/A\",Ref!$B$36,INDEX(Ranks!$1:$1048576,$A101,DD$1))","v":""},{"$f":"IF($A101=\"N/A\",Ref!$B$36,INDEX(Ranks!$1:$1048576,$A101,DE$1))","v":""},{"$f":"IF($A101=\"N/A\",Ref!$B$36,INDEX(Ranks!$1:$1048576,$A101,DF$1))","v":""},{"$f":"IF($A101=\"N/A\",Ref!$B$36,INDEX(Ranks!$1:$1048576,$A101,DG$1))","v":""},{"$f":"IF($A101=\"N/A\",Ref!$B$36,INDEX(Ranks!$1:$1048576,$A101,DH$1))","v":""},{"$f":"IF($A101=\"N/A\",Ref!$B$36,INDEX(Ranks!$1:$1048576,$A101,DI$1))","v":""},{"$f":"IF($A101=\"N/A\",Ref!$B$36,INDEX(Ranks!$1:$1048576,$A101,DJ$1))","v":""},{"$f":"IF($A101=\"N/A\",Ref!$B$36,INDEX(Ranks!$1:$1048576,$A101,DK$1))","v":""},{"$f":"IF($A101=\"N/A\",Ref!$B$36,INDEX(Ranks!$1:$1048576,$A101,DL$1))","v":""},{"$f":"IF($A101=\"N/A\",Ref!$B$36,INDEX(Ranks!$1:$1048576,$A101,DM$1))","v":""},{"$f":"IF($A101=\"N/A\",Ref!$B$36,INDEX(Ranks!$1:$1048576,$A101,DN$1))","v":""},{"$f":"IF($A101=\"N/A\",Ref!$B$36,INDEX(Ranks!$1:$1048576,$A101,DO$1))","v":""},{"$f":"IF($A101=\"N/A\",Ref!$B$36,INDEX(Ranks!$1:$1048576,$A101,DP$1))","v":""},{"$f":"IF($A101=\"N/A\",Ref!$B$36,INDEX(Ranks!$1:$1048576,$A101,DQ$1))","v":""},{"$f":"IF($A101=\"N/A\",Ref!$B$36,INDEX(Ranks!$1:$1048576,$A101,DR$1))","v":""},{"$f":"IF($A101=\"N/A\",Ref!$B$36,INDEX(Ranks!$1:$1048576,$A101,DS$1))","v":""},{"$f":"IF($A101=\"N/A\",Ref!$B$36,INDEX(Ranks!$1:$1048576,$A101,DT$1))","v":""},{"$f":"IF($A101=\"N/A\",Ref!$B$36,INDEX(Ranks!$1:$1048576,$A101,DU$1))","v":""},{"$f":"IF($A101=\"N/A\",Ref!$B$36,INDEX(Ranks!$1:$1048576,$A101,DV$1))","v":""},{"$f":"IF($A101=\"N/A\",Ref!$B$36,INDEX(Ranks!$1:$1048576,$A101,DW$1))","v":""},{"$f":"IF($A101=\"N/A\",Ref!$B$36,INDEX(Ranks!$1:$1048576,$A101,DX$1))","v":""},{"$f":"IF($A101=\"N/A\",Ref!$B$36,INDEX(Ranks!$1:$1048576,$A101,DY$1))","v":""},{"$f":"IF($A101=\"N/A\",Ref!$B$36,INDEX(Ranks!$1:$1048576,$A101,DZ$1))","v":""},{"$f":"IF($A101=\"N/A\",Ref!$B$36,INDEX(Ranks!$1:$1048576,$A101,EA$1))","v":""},{"$f":"IF($A101=\"N/A\",Ref!$B$36,INDEX(Ranks!$1:$1048576,$A101,EB$1))","v":""}]
[{"$f":"IFERROR(MATCH('Portfolio Page'!L102,Ranks!L:L,0),\"N/A\")","v":"N/A"},null,{"$f":"IF($A102=\"N/A\",\"\",INDEX(Ranks!$1:$1048576,$A102,C$1))","v":""},{"$f":"IF($A102=\"N/A\",Ref!$B$36,INDEX(Ranks!$1:$1048576,$A102,D$1))","v":""},{"$f":"IF($A102=\"N/A\",Ref!$B$36,INDEX(Ranks!$1:$1048576,$A102,E$1))","v":""},{"$f":"IF($A102=\"N/A\",\"\",INDEX(Ranks!$1:$1048576,$A102,F$1))","v":""},{"$f":"IF($A102=\"N/A\",\"\",INDEX(Ranks!$1:$1048576,$A102,G$1))","v":""},{"$f":"IF($A102=\"N/A\",\"\",INDEX(Ranks!$1:$1048576,$A102,H$1))","v":""},{"$f":"IF($A102=\"N/A\",\"\",INDEX(Ranks!$1:$1048576,$A102,I$1))","v":""},{"$f":"IF($A102=\"N/A\",\"\",INDEX(Ranks!$1:$1048576,$A102,J$1))","v":""},{"$f":"IF($A102=\"N/A\",\"\",INDEX(Ranks!$1:$1048576,$A102,K$1))","v":""},null,{"$f":"IF($A102=\"N/A\",Ref!$B$36,INDEX(Ranks!$1:$1048576,$A102,M$1))","v":""},{"$f":"IF($A102=\"N/A\",Ref!$B$36,INDEX(Ranks!$1:$1048576,$A102,N$1))","v":""},{"$f":"IF($A102=\"N/A\",Ref!$B$36,INDEX(Ranks!$1:$1048576,$A102,O$1))","v":""},{"$f":"IF($A102=\"N/A\",Ref!$B$36,INDEX(Ranks!$1:$1048576,$A102,P$1))","v":""},{"$f":"IF($A102=\"N/A\",Ref!$B$36,INDEX(Ranks!$1:$1048576,$A102,Q$1))","v":""},{"$f":"IF($A102=\"N/A\",Ref!$B$36,INDEX(Ranks!$1:$1048576,$A102,R$1))","v":""},{"$f":"IF($A102=\"N/A\",Ref!$B$36,INDEX(Ranks!$1:$1048576,$A102,S$1))","v":""},{"$f":"IF($A102=\"N/A\",Ref!$B$36,INDEX(Ranks!$1:$1048576,$A102,T$1))","v":""},{"$f":"IF($A102=\"N/A\",Ref!$B$36,INDEX(Ranks!$1:$1048576,$A102,U$1))","v":""},{"$f":"IF($A102=\"N/A\",Ref!$B$36,INDEX(Ranks!$1:$1048576,$A102,V$1))","v":""},{"$f":"IF($A102=\"N/A\",Ref!$B$36,INDEX(Ranks!$1:$1048576,$A102,W$1))","v":""},{"$f":"IF($A102=\"N/A\",Ref!$B$36,INDEX(Ranks!$1:$1048576,$A102,X$1))","v":""},{"$f":"IF($A102=\"N/A\",Ref!$B$36,INDEX(Ranks!$1:$1048576,$A102,Y$1))","v":""},{"$f":"IF($A102=\"N/A\",Ref!$B$36,INDEX(Ranks!$1:$1048576,$A102,Z$1))","v":""},{"$f":"IF($A102=\"N/A\",Ref!$B$36,INDEX(Ranks!$1:$1048576,$A102,AA$1))","v":""},{"$f":"IF($A102=\"N/A\",Ref!$B$36,INDEX(Ranks!$1:$1048576,$A102,AB$1))","v":""},{"$f":"IF($A102=\"N/A\",Ref!$B$36,INDEX(Ranks!$1:$1048576,$A102,AC$1))","v":""},{"$f":"IF($A102=\"N/A\",Ref!$B$36,INDEX(Ranks!$1:$1048576,$A102,AD$1))","v":""},{"$f":"IF($A102=\"N/A\",Ref!$B$36,INDEX(Ranks!$1:$1048576,$A102,AE$1))","v":""},{"$f":"IF($A102=\"N/A\",Ref!$B$36,INDEX(Ranks!$1:$1048576,$A102,AF$1))","v":""},{"$f":"IF($A102=\"N/A\",Ref!$B$36,INDEX(Ranks!$1:$1048576,$A102,AG$1))","v":""},{"$f":"IF($A102=\"N/A\",Ref!$B$36,INDEX(Ranks!$1:$1048576,$A102,AH$1))","v":""},{"$f":"IF($A102=\"N/A\",Ref!$B$36,INDEX(Ranks!$1:$1048576,$A102,AI$1))","v":""},{"$f":"IF($A102=\"N/A\",Ref!$B$36,INDEX(Ranks!$1:$1048576,$A102,AJ$1))","v":""},{"$f":"IF($A102=\"N/A\",Ref!$B$36,INDEX(Ranks!$1:$1048576,$A102,AK$1))","v":""},{"$f":"IF($A102=\"N/A\",Ref!$B$36,INDEX(Ranks!$1:$1048576,$A102,AL$1))","v":""},{"$f":"IF($A102=\"N/A\",Ref!$B$36,INDEX(Ranks!$1:$1048576,$A102,AM$1))","v":""},{"$f":"IF($A102=\"N/A\",Ref!$B$36,INDEX(Ranks!$1:$1048576,$A102,AN$1))","v":""},{"$f":"IF($A102=\"N/A\",Ref!$B$36,INDEX(Ranks!$1:$1048576,$A102,AO$1))","v":""},{"$f":"IF($A102=\"N/A\",Ref!$B$36,INDEX(Ranks!$1:$1048576,$A102,AP$1))","v":""},{"$f":"IF($A102=\"N/A\",Ref!$B$36,INDEX(Ranks!$1:$1048576,$A102,AQ$1))","v":""},{"$f":"IF($A102=\"N/A\",Ref!$B$36,INDEX(Ranks!$1:$1048576,$A102,AR$1))","v":""},{"$f":"IF($A102=\"N/A\",Ref!$B$36,INDEX(Ranks!$1:$1048576,$A102,AS$1))","v":""},{"$f":"IF($A102=\"N/A\",Ref!$B$36,INDEX(Ranks!$1:$1048576,$A102,AT$1))","v":""},{"$f":"IF($A102=\"N/A\",Ref!$B$36,INDEX(Ranks!$1:$1048576,$A102,AU$1))","v":""},{"$f":"IF($A102=\"N/A\",Ref!$B$36,INDEX(Ranks!$1:$1048576,$A102,AV$1))","v":""},{"$f":"IF($A102=\"N/A\",Ref!$B$36,INDEX(Ranks!$1:$1048576,$A102,AW$1))","v":""},{"$f":"IF($A102=\"N/A\",Ref!$B$36,INDEX(Ranks!$1:$1048576,$A102,AX$1))","v":""},{"$f":"IF($A102=\"N/A\",Ref!$B$36,INDEX(Ranks!$1:$1048576,$A102,AY$1))","v":""},{"$f":"IF($A102=\"N/A\",Ref!$B$36,INDEX(Ranks!$1:$1048576,$A102,AZ$1))","v":""},{"$f":"IF($A102=\"N/A\",Ref!$B$36,INDEX(Ranks!$1:$1048576,$A102,BA$1))","v":""},{"$f":"IF($A102=\"N/A\",Ref!$B$36,INDEX(Ranks!$1:$1048576,$A102,BB$1))","v":""},{"$f":"IF($A102=\"N/A\",Ref!$B$36,INDEX(Ranks!$1:$1048576,$A102,BC$1))","v":""},{"$f":"IF($A102=\"N/A\",Ref!$B$36,INDEX(Ranks!$1:$1048576,$A102,BD$1))","v":""},{"$f":"IF($A102=\"N/A\",Ref!$B$36,INDEX(Ranks!$1:$1048576,$A102,BE$1))","v":""},{"$f":"IF($A102=\"N/A\",Ref!$B$36,INDEX(Ranks!$1:$1048576,$A102,BF$1))","v":""},{"$f":"IF($A102=\"N/A\",Ref!$B$36,INDEX(Ranks!$1:$1048576,$A102,BG$1))","v":""},{"$f":"IF($A102=\"N/A\",Ref!$B$36,INDEX(Ranks!$1:$1048576,$A102,BH$1))","v":""},{"$f":"IF($A102=\"N/A\",Ref!$B$36,INDEX(Ranks!$1:$1048576,$A102,BI$1))","v":""},{"$f":"IF($A102=\"N/A\",Ref!$B$36,INDEX(Ranks!$1:$1048576,$A102,BJ$1))","v":""},{"$f":"IF($A102=\"N/A\",Ref!$B$36,INDEX(Ranks!$1:$1048576,$A102,BK$1))","v":""},{"$f":"IF($A102=\"N/A\",Ref!$B$36,INDEX(Ranks!$1:$1048576,$A102,BL$1))","v":""},{"$f":"IF($A102=\"N/A\",Ref!$B$36,INDEX(Ranks!$1:$1048576,$A102,BM$1))","v":""},{"$f":"IF($A102=\"N/A\",Ref!$B$36,INDEX(Ranks!$1:$1048576,$A102,BN$1))","v":""},{"$f":"IF($A102=\"N/A\",Ref!$B$36,INDEX(Ranks!$1:$1048576,$A102,BO$1))","v":""},{"$f":"IF($A102=\"N/A\",Ref!$B$36,INDEX(Ranks!$1:$1048576,$A102,BP$1))","v":""},{"$f":"IF($A102=\"N/A\",Ref!$B$36,INDEX(Ranks!$1:$1048576,$A102,BQ$1))","v":""},{"$f":"IF($A102=\"N/A\",Ref!$B$36,INDEX(Ranks!$1:$1048576,$A102,BR$1))","v":""},{"$f":"IF($A102=\"N/A\",Ref!$B$36,INDEX(Ranks!$1:$1048576,$A102,BS$1))","v":""},{"$f":"IF($A102=\"N/A\",Ref!$B$36,INDEX(Ranks!$1:$1048576,$A102,BT$1))","v":""},{"$f":"IF($A102=\"N/A\",Ref!$B$36,INDEX(Ranks!$1:$1048576,$A102,BU$1))","v":""},{"$f":"IF($A102=\"N/A\",Ref!$B$36,INDEX(Ranks!$1:$1048576,$A102,BV$1))","v":""},{"$f":"IF($A102=\"N/A\",Ref!$B$36,INDEX(Ranks!$1:$1048576,$A102,BW$1))","v":""},{"$f":"IF($A102=\"N/A\",Ref!$B$36,INDEX(Ranks!$1:$1048576,$A102,BX$1))","v":""},{"$f":"IF($A102=\"N/A\",Ref!$B$36,INDEX(Ranks!$1:$1048576,$A102,BY$1))","v":""},{"$f":"IF($A102=\"N/A\",Ref!$B$36,INDEX(Ranks!$1:$1048576,$A102,BZ$1))","v":""},{"$f":"IF($A102=\"N/A\",Ref!$B$36,INDEX(Ranks!$1:$1048576,$A102,CA$1))","v":""},{"$f":"IF($A102=\"N/A\",Ref!$B$36,INDEX(Ranks!$1:$1048576,$A102,CB$1))","v":""},{"$f":"IF($A102=\"N/A\",Ref!$B$36,INDEX(Ranks!$1:$1048576,$A102,CC$1))","v":""},{"$f":"IF($A102=\"N/A\",Ref!$B$36,INDEX(Ranks!$1:$1048576,$A102,CD$1))","v":""},{"$f":"IF($A102=\"N/A\",Ref!$B$36,INDEX(Ranks!$1:$1048576,$A102,CE$1))","v":""},{"$f":"IF($A102=\"N/A\",Ref!$B$36,INDEX(Ranks!$1:$1048576,$A102,CF$1))","v":""},{"$f":"IF($A102=\"N/A\",Ref!$B$36,INDEX(Ranks!$1:$1048576,$A102,CG$1))","v":""},{"$f":"IF($A102=\"N/A\",Ref!$B$36,INDEX(Ranks!$1:$1048576,$A102,CH$1))","v":""},{"$f":"IF($A102=\"N/A\",Ref!$B$36,INDEX(Ranks!$1:$1048576,$A102,CI$1))","v":""},{"$f":"IF($A102=\"N/A\",Ref!$B$36,INDEX(Ranks!$1:$1048576,$A102,CJ$1))","v":""},{"$f":"IF($A102=\"N/A\",Ref!$B$36,INDEX(Ranks!$1:$1048576,$A102,CK$1))","v":""},{"$f":"IF($A102=\"N/A\",Ref!$B$36,INDEX(Ranks!$1:$1048576,$A102,CL$1))","v":""},{"$f":"IF($A102=\"N/A\",Ref!$B$36,INDEX(Ranks!$1:$1048576,$A102,CM$1))","v":""},{"$f":"IF($A102=\"N/A\",Ref!$B$36,INDEX(Ranks!$1:$1048576,$A102,CN$1))","v":""},{"$f":"IF($A102=\"N/A\",Ref!$B$36,INDEX(Ranks!$1:$1048576,$A102,CO$1))","v":""},{"$f":"IF($A102=\"N/A\",Ref!$B$36,INDEX(Ranks!$1:$1048576,$A102,CP$1))","v":""},{"$f":"IF($A102=\"N/A\",Ref!$B$36,INDEX(Ranks!$1:$1048576,$A102,CQ$1))","v":""},{"$f":"IF($A102=\"N/A\",Ref!$B$36,INDEX(Ranks!$1:$1048576,$A102,CR$1))","v":""},{"$f":"IF($A102=\"N/A\",Ref!$B$36,INDEX(Ranks!$1:$1048576,$A102,CS$1))","v":""},{"$f":"IF($A102=\"N/A\",Ref!$B$36,INDEX(Ranks!$1:$1048576,$A102,CT$1))","v":""},{"$f":"IF($A102=\"N/A\",Ref!$B$36,INDEX(Ranks!$1:$1048576,$A102,CU$1))","v":""},{"$f":"IF($A102=\"N/A\",Ref!$B$36,INDEX(Ranks!$1:$1048576,$A102,CV$1))","v":""},{"$f":"IF($A102=\"N/A\",Ref!$B$36,INDEX(Ranks!$1:$1048576,$A102,CW$1))","v":""},{"$f":"IF($A102=\"N/A\",Ref!$B$36,INDEX(Ranks!$1:$1048576,$A102,CX$1))","v":""},{"$f":"IF($A102=\"N/A\",Ref!$B$36,INDEX(Ranks!$1:$1048576,$A102,CY$1))","v":""},{"$f":"IF($A102=\"N/A\",Ref!$B$36,INDEX(Ranks!$1:$1048576,$A102,CZ$1))","v":""},{"$f":"IF($A102=\"N/A\",Ref!$B$36,INDEX(Ranks!$1:$1048576,$A102,DA$1))","v":""},{"$f":"IF($A102=\"N/A\",Ref!$B$36,INDEX(Ranks!$1:$1048576,$A102,DB$1))","v":""},{"$f":"IF($A102=\"N/A\",Ref!$B$36,INDEX(Ranks!$1:$1048576,$A102,DC$1))","v":""},{"$f":"IF($A102=\"N/A\",Ref!$B$36,INDEX(Ranks!$1:$1048576,$A102,DD$1))","v":""},{"$f":"IF($A102=\"N/A\",Ref!$B$36,INDEX(Ranks!$1:$1048576,$A102,DE$1))","v":""},{"$f":"IF($A102=\"N/A\",Ref!$B$36,INDEX(Ranks!$1:$1048576,$A102,DF$1))","v":""},{"$f":"IF($A102=\"N/A\",Ref!$B$36,INDEX(Ranks!$1:$1048576,$A102,DG$1))","v":""},{"$f":"IF($A102=\"N/A\",Ref!$B$36,INDEX(Ranks!$1:$1048576,$A102,DH$1))","v":""},{"$f":"IF($A102=\"N/A\",Ref!$B$36,INDEX(Ranks!$1:$1048576,$A102,DI$1))","v":""},{"$f":"IF($A102=\"N/A\",Ref!$B$36,INDEX(Ranks!$1:$1048576,$A102,DJ$1))","v":""},{"$f":"IF($A102=\"N/A\",Ref!$B$36,INDEX(Ranks!$1:$1048576,$A102,DK$1))","v":""},{"$f":"IF($A102=\"N/A\",Ref!$B$36,INDEX(Ranks!$1:$1048576,$A102,DL$1))","v":""},{"$f":"IF($A102=\"N/A\",Ref!$B$36,INDEX(Ranks!$1:$1048576,$A102,DM$1))","v":""},{"$f":"IF($A102=\"N/A\",Ref!$B$36,INDEX(Ranks!$1:$1048576,$A102,DN$1))","v":""},{"$f":"IF($A102=\"N/A\",Ref!$B$36,INDEX(Ranks!$1:$1048576,$A102,DO$1))","v":""},{"$f":"IF($A102=\"N/A\",Ref!$B$36,INDEX(Ranks!$1:$1048576,$A102,DP$1))","v":""},{"$f":"IF($A102=\"N/A\",Ref!$B$36,INDEX(Ranks!$1:$1048576,$A102,DQ$1))","v":""},{"$f":"IF($A102=\"N/A\",Ref!$B$36,INDEX(Ranks!$1:$1048576,$A102,DR$1))","v":""},{"$f":"IF($A102=\"N/A\",Ref!$B$36,INDEX(Ranks!$1:$1048576,$A102,DS$1))","v":""},{"$f":"IF($A102=\"N/A\",Ref!$B$36,INDEX(Ranks!$1:$1048576,$A102,DT$1))","v":""},{"$f":"IF($A102=\"N/A\",Ref!$B$36,INDEX(Ranks!$1:$1048576,$A102,DU$1))","v":""},{"$f":"IF($A102=\"N/A\",Ref!$B$36,INDEX(Ranks!$1:$1048576,$A102,DV$1))","v":""},{"$f":"IF($A102=\"N/A\",Ref!$B$36,INDEX(Ranks!$1:$1048576,$A102,DW$1))","v":""},{"$f":"IF($A102=\"N/A\",Ref!$B$36,INDEX(Ranks!$1:$1048576,$A102,DX$1))","v":""},{"$f":"IF($A102=\"N/A\",Ref!$B$36,INDEX(Ranks!$1:$1048576,$A102,DY$1))","v":""},{"$f":"IF($A102=\"N/A\",Ref!$B$36,INDEX(Ranks!$1:$1048576,$A102,DZ$1))","v":""},{"$f":"IF($A102=\"N/A\",Ref!$B$36,INDEX(Ranks!$1:$1048576,$A102,EA$1))","v":""},{"$f":"IF($A102=\"N/A\",Ref!$B$36,INDEX(Ranks!$1:$1048576,$A102,EB$1))","v":""}]
[{"$f":"IFERROR(MATCH('Portfolio Page'!L103,Ranks!L:L,0),\"N/A\")","v":"N/A"},null,{"$f":"IF($A103=\"N/A\",\"\",INDEX(Ranks!$1:$1048576,$A103,C$1))","v":""},{"$f":"IF($A103=\"N/A\",Ref!$B$36,INDEX(Ranks!$1:$1048576,$A103,D$1))","v":""},{"$f":"IF($A103=\"N/A\",Ref!$B$36,INDEX(Ranks!$1:$1048576,$A103,E$1))","v":""},{"$f":"IF($A103=\"N/A\",\"\",INDEX(Ranks!$1:$1048576,$A103,F$1))","v":""},{"$f":"IF($A103=\"N/A\",\"\",INDEX(Ranks!$1:$1048576,$A103,G$1))","v":""},{"$f":"IF($A103=\"N/A\",\"\",INDEX(Ranks!$1:$1048576,$A103,H$1))","v":""},{"$f":"IF($A103=\"N/A\",\"\",INDEX(Ranks!$1:$1048576,$A103,I$1))","v":""},{"$f":"IF($A103=\"N/A\",\"\",INDEX(Ranks!$1:$1048576,$A103,J$1))","v":""},{"$f":"IF($A103=\"N/A\",\"\",INDEX(Ranks!$1:$1048576,$A103,K$1))","v":""},null,{"$f":"IF($A103=\"N/A\",Ref!$B$36,INDEX(Ranks!$1:$1048576,$A103,M$1))","v":""},{"$f":"IF($A103=\"N/A\",Ref!$B$36,INDEX(Ranks!$1:$1048576,$A103,N$1))","v":""},{"$f":"IF($A103=\"N/A\",Ref!$B$36,INDEX(Ranks!$1:$1048576,$A103,O$1))","v":""},{"$f":"IF($A103=\"N/A\",Ref!$B$36,INDEX(Ranks!$1:$1048576,$A103,P$1))","v":""},{"$f":"IF($A103=\"N/A\",Ref!$B$36,INDEX(Ranks!$1:$1048576,$A103,Q$1))","v":""},{"$f":"IF($A103=\"N/A\",Ref!$B$36,INDEX(Ranks!$1:$1048576,$A103,R$1))","v":""},{"$f":"IF($A103=\"N/A\",Ref!$B$36,INDEX(Ranks!$1:$1048576,$A103,S$1))","v":""},{"$f":"IF($A103=\"N/A\",Ref!$B$36,INDEX(Ranks!$1:$1048576,$A103,T$1))","v":""},{"$f":"IF($A103=\"N/A\",Ref!$B$36,INDEX(Ranks!$1:$1048576,$A103,U$1))","v":""},{"$f":"IF($A103=\"N/A\",Ref!$B$36,INDEX(Ranks!$1:$1048576,$A103,V$1))","v":""},{"$f":"IF($A103=\"N/A\",Ref!$B$36,INDEX(Ranks!$1:$1048576,$A103,W$1))","v":""},{"$f":"IF($A103=\"N/A\",Ref!$B$36,INDEX(Ranks!$1:$1048576,$A103,X$1))","v":""},{"$f":"IF($A103=\"N/A\",Ref!$B$36,INDEX(Ranks!$1:$1048576,$A103,Y$1))","v":""},{"$f":"IF($A103=\"N/A\",Ref!$B$36,INDEX(Ranks!$1:$1048576,$A103,Z$1))","v":""},{"$f":"IF($A103=\"N/A\",Ref!$B$36,INDEX(Ranks!$1:$1048576,$A103,AA$1))","v":""},{"$f":"IF($A103=\"N/A\",Ref!$B$36,INDEX(Ranks!$1:$1048576,$A103,AB$1))","v":""},{"$f":"IF($A103=\"N/A\",Ref!$B$36,INDEX(Ranks!$1:$1048576,$A103,AC$1))","v":""},{"$f":"IF($A103=\"N/A\",Ref!$B$36,INDEX(Ranks!$1:$1048576,$A103,AD$1))","v":""},{"$f":"IF($A103=\"N/A\",Ref!$B$36,INDEX(Ranks!$1:$1048576,$A103,AE$1))","v":""},{"$f":"IF($A103=\"N/A\",Ref!$B$36,INDEX(Ranks!$1:$1048576,$A103,AF$1))","v":""},{"$f":"IF($A103=\"N/A\",Ref!$B$36,INDEX(Ranks!$1:$1048576,$A103,AG$1))","v":""},{"$f":"IF($A103=\"N/A\",Ref!$B$36,INDEX(Ranks!$1:$1048576,$A103,AH$1))","v":""},{"$f":"IF($A103=\"N/A\",Ref!$B$36,INDEX(Ranks!$1:$1048576,$A103,AI$1))","v":""},{"$f":"IF($A103=\"N/A\",Ref!$B$36,INDEX(Ranks!$1:$1048576,$A103,AJ$1))","v":""},{"$f":"IF($A103=\"N/A\",Ref!$B$36,INDEX(Ranks!$1:$1048576,$A103,AK$1))","v":""},{"$f":"IF($A103=\"N/A\",Ref!$B$36,INDEX(Ranks!$1:$1048576,$A103,AL$1))","v":""},{"$f":"IF($A103=\"N/A\",Ref!$B$36,INDEX(Ranks!$1:$1048576,$A103,AM$1))","v":""},{"$f":"IF($A103=\"N/A\",Ref!$B$36,INDEX(Ranks!$1:$1048576,$A103,AN$1))","v":""},{"$f":"IF($A103=\"N/A\",Ref!$B$36,INDEX(Ranks!$1:$1048576,$A103,AO$1))","v":""},{"$f":"IF($A103=\"N/A\",Ref!$B$36,INDEX(Ranks!$1:$1048576,$A103,AP$1))","v":""},{"$f":"IF($A103=\"N/A\",Ref!$B$36,INDEX(Ranks!$1:$1048576,$A103,AQ$1))","v":""},{"$f":"IF($A103=\"N/A\",Ref!$B$36,INDEX(Ranks!$1:$1048576,$A103,AR$1))","v":""},{"$f":"IF($A103=\"N/A\",Ref!$B$36,INDEX(Ranks!$1:$1048576,$A103,AS$1))","v":""},{"$f":"IF($A103=\"N/A\",Ref!$B$36,INDEX(Ranks!$1:$1048576,$A103,AT$1))","v":""},{"$f":"IF($A103=\"N/A\",Ref!$B$36,INDEX(Ranks!$1:$1048576,$A103,AU$1))","v":""},{"$f":"IF($A103=\"N/A\",Ref!$B$36,INDEX(Ranks!$1:$1048576,$A103,AV$1))","v":""},{"$f":"IF($A103=\"N/A\",Ref!$B$36,INDEX(Ranks!$1:$1048576,$A103,AW$1))","v":""},{"$f":"IF($A103=\"N/A\",Ref!$B$36,INDEX(Ranks!$1:$1048576,$A103,AX$1))","v":""},{"$f":"IF($A103=\"N/A\",Ref!$B$36,INDEX(Ranks!$1:$1048576,$A103,AY$1))","v":""},{"$f":"IF($A103=\"N/A\",Ref!$B$36,INDEX(Ranks!$1:$1048576,$A103,AZ$1))","v":""},{"$f":"IF($A103=\"N/A\",Ref!$B$36,INDEX(Ranks!$1:$1048576,$A103,BA$1))","v":""},{"$f":"IF($A103=\"N/A\",Ref!$B$36,INDEX(Ranks!$1:$1048576,$A103,BB$1))","v":""},{"$f":"IF($A103=\"N/A\",Ref!$B$36,INDEX(Ranks!$1:$1048576,$A103,BC$1))","v":""},{"$f":"IF($A103=\"N/A\",Ref!$B$36,INDEX(Ranks!$1:$1048576,$A103,BD$1))","v":""},{"$f":"IF($A103=\"N/A\",Ref!$B$36,INDEX(Ranks!$1:$1048576,$A103,BE$1))","v":""},{"$f":"IF($A103=\"N/A\",Ref!$B$36,INDEX(Ranks!$1:$1048576,$A103,BF$1))","v":""},{"$f":"IF($A103=\"N/A\",Ref!$B$36,INDEX(Ranks!$1:$1048576,$A103,BG$1))","v":""},{"$f":"IF($A103=\"N/A\",Ref!$B$36,INDEX(Ranks!$1:$1048576,$A103,BH$1))","v":""},{"$f":"IF($A103=\"N/A\",Ref!$B$36,INDEX(Ranks!$1:$1048576,$A103,BI$1))","v":""},{"$f":"IF($A103=\"N/A\",Ref!$B$36,INDEX(Ranks!$1:$1048576,$A103,BJ$1))","v":""},{"$f":"IF($A103=\"N/A\",Ref!$B$36,INDEX(Ranks!$1:$1048576,$A103,BK$1))","v":""},{"$f":"IF($A103=\"N/A\",Ref!$B$36,INDEX(Ranks!$1:$1048576,$A103,BL$1))","v":""},{"$f":"IF($A103=\"N/A\",Ref!$B$36,INDEX(Ranks!$1:$1048576,$A103,BM$1))","v":""},{"$f":"IF($A103=\"N/A\",Ref!$B$36,INDEX(Ranks!$1:$1048576,$A103,BN$1))","v":""},{"$f":"IF($A103=\"N/A\",Ref!$B$36,INDEX(Ranks!$1:$1048576,$A103,BO$1))","v":""},{"$f":"IF($A103=\"N/A\",Ref!$B$36,INDEX(Ranks!$1:$1048576,$A103,BP$1))","v":""},{"$f":"IF($A103=\"N/A\",Ref!$B$36,INDEX(Ranks!$1:$1048576,$A103,BQ$1))","v":""},{"$f":"IF($A103=\"N/A\",Ref!$B$36,INDEX(Ranks!$1:$1048576,$A103,BR$1))","v":""},{"$f":"IF($A103=\"N/A\",Ref!$B$36,INDEX(Ranks!$1:$1048576,$A103,BS$1))","v":""},{"$f":"IF($A103=\"N/A\",Ref!$B$36,INDEX(Ranks!$1:$1048576,$A103,BT$1))","v":""},{"$f":"IF($A103=\"N/A\",Ref!$B$36,INDEX(Ranks!$1:$1048576,$A103,BU$1))","v":""},{"$f":"IF($A103=\"N/A\",Ref!$B$36,INDEX(Ranks!$1:$1048576,$A103,BV$1))","v":""},{"$f":"IF($A103=\"N/A\",Ref!$B$36,INDEX(Ranks!$1:$1048576,$A103,BW$1))","v":""},{"$f":"IF($A103=\"N/A\",Ref!$B$36,INDEX(Ranks!$1:$1048576,$A103,BX$1))","v":""},{"$f":"IF($A103=\"N/A\",Ref!$B$36,INDEX(Ranks!$1:$1048576,$A103,BY$1))","v":""},{"$f":"IF($A103=\"N/A\",Ref!$B$36,INDEX(Ranks!$1:$1048576,$A103,BZ$1))","v":""},{"$f":"IF($A103=\"N/A\",Ref!$B$36,INDEX(Ranks!$1:$1048576,$A103,CA$1))","v":""},{"$f":"IF($A103=\"N/A\",Ref!$B$36,INDEX(Ranks!$1:$1048576,$A103,CB$1))","v":""},{"$f":"IF($A103=\"N/A\",Ref!$B$36,INDEX(Ranks!$1:$1048576,$A103,CC$1))","v":""},{"$f":"IF($A103=\"N/A\",Ref!$B$36,INDEX(Ranks!$1:$1048576,$A103,CD$1))","v":""},{"$f":"IF($A103=\"N/A\",Ref!$B$36,INDEX(Ranks!$1:$1048576,$A103,CE$1))","v":""},{"$f":"IF($A103=\"N/A\",Ref!$B$36,INDEX(Ranks!$1:$1048576,$A103,CF$1))","v":""},{"$f":"IF($A103=\"N/A\",Ref!$B$36,INDEX(Ranks!$1:$1048576,$A103,CG$1))","v":""},{"$f":"IF($A103=\"N/A\",Ref!$B$36,INDEX(Ranks!$1:$1048576,$A103,CH$1))","v":""},{"$f":"IF($A103=\"N/A\",Ref!$B$36,INDEX(Ranks!$1:$1048576,$A103,CI$1))","v":""},{"$f":"IF($A103=\"N/A\",Ref!$B$36,INDEX(Ranks!$1:$1048576,$A103,CJ$1))","v":""},{"$f":"IF($A103=\"N/A\",Ref!$B$36,INDEX(Ranks!$1:$1048576,$A103,CK$1))","v":""},{"$f":"IF($A103=\"N/A\",Ref!$B$36,INDEX(Ranks!$1:$1048576,$A103,CL$1))","v":""},{"$f":"IF($A103=\"N/A\",Ref!$B$36,INDEX(Ranks!$1:$1048576,$A103,CM$1))","v":""},{"$f":"IF($A103=\"N/A\",Ref!$B$36,INDEX(Ranks!$1:$1048576,$A103,CN$1))","v":""},{"$f":"IF($A103=\"N/A\",Ref!$B$36,INDEX(Ranks!$1:$1048576,$A103,CO$1))","v":""},{"$f":"IF($A103=\"N/A\",Ref!$B$36,INDEX(Ranks!$1:$1048576,$A103,CP$1))","v":""},{"$f":"IF($A103=\"N/A\",Ref!$B$36,INDEX(Ranks!$1:$1048576,$A103,CQ$1))","v":""},{"$f":"IF($A103=\"N/A\",Ref!$B$36,INDEX(Ranks!$1:$1048576,$A103,CR$1))","v":""},{"$f":"IF($A103=\"N/A\",Ref!$B$36,INDEX(Ranks!$1:$1048576,$A103,CS$1))","v":""},{"$f":"IF($A103=\"N/A\",Ref!$B$36,INDEX(Ranks!$1:$1048576,$A103,CT$1))","v":""},{"$f":"IF($A103=\"N/A\",Ref!$B$36,INDEX(Ranks!$1:$1048576,$A103,CU$1))","v":""},{"$f":"IF($A103=\"N/A\",Ref!$B$36,INDEX(Ranks!$1:$1048576,$A103,CV$1))","v":""},{"$f":"IF($A103=\"N/A\",Ref!$B$36,INDEX(Ranks!$1:$1048576,$A103,CW$1))","v":""},{"$f":"IF($A103=\"N/A\",Ref!$B$36,INDEX(Ranks!$1:$1048576,$A103,CX$1))","v":""},{"$f":"IF($A103=\"N/A\",Ref!$B$36,INDEX(Ranks!$1:$1048576,$A103,CY$1))","v":""},{"$f":"IF($A103=\"N/A\",Ref!$B$36,INDEX(Ranks!$1:$1048576,$A103,CZ$1))","v":""},{"$f":"IF($A103=\"N/A\",Ref!$B$36,INDEX(Ranks!$1:$1048576,$A103,DA$1))","v":""},{"$f":"IF($A103=\"N/A\",Ref!$B$36,INDEX(Ranks!$1:$1048576,$A103,DB$1))","v":""},{"$f":"IF($A103=\"N/A\",Ref!$B$36,INDEX(Ranks!$1:$1048576,$A103,DC$1))","v":""},{"$f":"IF($A103=\"N/A\",Ref!$B$36,INDEX(Ranks!$1:$1048576,$A103,DD$1))","v":""},{"$f":"IF($A103=\"N/A\",Ref!$B$36,INDEX(Ranks!$1:$1048576,$A103,DE$1))","v":""},{"$f":"IF($A103=\"N/A\",Ref!$B$36,INDEX(Ranks!$1:$1048576,$A103,DF$1))","v":""},{"$f":"IF($A103=\"N/A\",Ref!$B$36,INDEX(Ranks!$1:$1048576,$A103,DG$1))","v":""},{"$f":"IF($A103=\"N/A\",Ref!$B$36,INDEX(Ranks!$1:$1048576,$A103,DH$1))","v":""},{"$f":"IF($A103=\"N/A\",Ref!$B$36,INDEX(Ranks!$1:$1048576,$A103,DI$1))","v":""},{"$f":"IF($A103=\"N/A\",Ref!$B$36,INDEX(Ranks!$1:$1048576,$A103,DJ$1))","v":""},{"$f":"IF($A103=\"N/A\",Ref!$B$36,INDEX(Ranks!$1:$1048576,$A103,DK$1))","v":""},{"$f":"IF($A103=\"N/A\",Ref!$B$36,INDEX(Ranks!$1:$1048576,$A103,DL$1))","v":""},{"$f":"IF($A103=\"N/A\",Ref!$B$36,INDEX(Ranks!$1:$1048576,$A103,DM$1))","v":""},{"$f":"IF($A103=\"N/A\",Ref!$B$36,INDEX(Ranks!$1:$1048576,$A103,DN$1))","v":""},{"$f":"IF($A103=\"N/A\",Ref!$B$36,INDEX(Ranks!$1:$1048576,$A103,DO$1))","v":""},{"$f":"IF($A103=\"N/A\",Ref!$B$36,INDEX(Ranks!$1:$1048576,$A103,DP$1))","v":""},{"$f":"IF($A103=\"N/A\",Ref!$B$36,INDEX(Ranks!$1:$1048576,$A103,DQ$1))","v":""},{"$f":"IF($A103=\"N/A\",Ref!$B$36,INDEX(Ranks!$1:$1048576,$A103,DR$1))","v":""},{"$f":"IF($A103=\"N/A\",Ref!$B$36,INDEX(Ranks!$1:$1048576,$A103,DS$1))","v":""},{"$f":"IF($A103=\"N/A\",Ref!$B$36,INDEX(Ranks!$1:$1048576,$A103,DT$1))","v":""},{"$f":"IF($A103=\"N/A\",Ref!$B$36,INDEX(Ranks!$1:$1048576,$A103,DU$1))","v":""},{"$f":"IF($A103=\"N/A\",Ref!$B$36,INDEX(Ranks!$1:$1048576,$A103,DV$1))","v":""},{"$f":"IF($A103=\"N/A\",Ref!$B$36,INDEX(Ranks!$1:$1048576,$A103,DW$1))","v":""},{"$f":"IF($A103=\"N/A\",Ref!$B$36,INDEX(Ranks!$1:$1048576,$A103,DX$1))","v":""},{"$f":"IF($A103=\"N/A\",Ref!$B$36,INDEX(Ranks!$1:$1048576,$A103,DY$1))","v":""},{"$f":"IF($A103=\"N/A\",Ref!$B$36,INDEX(Ranks!$1:$1048576,$A103,DZ$1))","v":""},{"$f":"IF($A103=\"N/A\",Ref!$B$36,INDEX(Ranks!$1:$1048576,$A103,EA$1))","v":""},{"$f":"IF($A103=\"N/A\",Ref!$B$36,INDEX(Ranks!$1:$1048576,$A103,EB$1))","v":""}]
[{"$f":"IFERROR(MATCH('Portfolio Page'!L104,Ranks!L:L,0),\"N/A\")","v":"N/A"},null,{"$f":"IF($A104=\"N/A\",\"\",INDEX(Ranks!$1:$1048576,$A104,C$1))","v":""},{"$f":"IF($A104=\"N/A\",Ref!$B$36,INDEX(Ranks!$1:$1048576,$A104,D$1))","v":""},{"$f":"IF($A104=\"N/A\",Ref!$B$36,INDEX(Ranks!$1:$1048576,$A104,E$1))","v":""},{"$f":"IF($A104=\"N/A\",\"\",INDEX(Ranks!$1:$1048576,$A104,F$1))","v":""},{"$f":"IF($A104=\"N/A\",\"\",INDEX(Ranks!$1:$1048576,$A104,G$1))","v":""},{"$f":"IF($A104=\"N/A\",\"\",INDEX(Ranks!$1:$1048576,$A104,H$1))","v":""},{"$f":"IF($A104=\"N/A\",\"\",INDEX(Ranks!$1:$1048576,$A104,I$1))","v":""},{"$f":"IF($A104=\"N/A\",\"\",INDEX(Ranks!$1:$1048576,$A104,J$1))","v":""},{"$f":"IF($A104=\"N/A\",\"\",INDEX(Ranks!$1:$1048576,$A104,K$1))","v":""},null,{"$f":"IF($A104=\"N/A\",Ref!$B$36,INDEX(Ranks!$1:$1048576,$A104,M$1))","v":""},{"$f":"IF($A104=\"N/A\",Ref!$B$36,INDEX(Ranks!$1:$1048576,$A104,N$1))","v":""},{"$f":"IF($A104=\"N/A\",Ref!$B$36,INDEX(Ranks!$1:$1048576,$A104,O$1))","v":""},{"$f":"IF($A104=\"N/A\",Ref!$B$36,INDEX(Ranks!$1:$1048576,$A104,P$1))","v":""},{"$f":"IF($A104=\"N/A\",Ref!$B$36,INDEX(Ranks!$1:$1048576,$A104,Q$1))","v":""},{"$f":"IF($A104=\"N/A\",Ref!$B$36,INDEX(Ranks!$1:$1048576,$A104,R$1))","v":""},{"$f":"IF($A104=\"N/A\",Ref!$B$36,INDEX(Ranks!$1:$1048576,$A104,S$1))","v":""},{"$f":"IF($A104=\"N/A\",Ref!$B$36,INDEX(Ranks!$1:$1048576,$A104,T$1))","v":""},{"$f":"IF($A104=\"N/A\",Ref!$B$36,INDEX(Ranks!$1:$1048576,$A104,U$1))","v":""},{"$f":"IF($A104=\"N/A\",Ref!$B$36,INDEX(Ranks!$1:$1048576,$A104,V$1))","v":""},{"$f":"IF($A104=\"N/A\",Ref!$B$36,INDEX(Ranks!$1:$1048576,$A104,W$1))","v":""},{"$f":"IF($A104=\"N/A\",Ref!$B$36,INDEX(Ranks!$1:$1048576,$A104,X$1))","v":""},{"$f":"IF($A104=\"N/A\",Ref!$B$36,INDEX(Ranks!$1:$1048576,$A104,Y$1))","v":""},{"$f":"IF($A104=\"N/A\",Ref!$B$36,INDEX(Ranks!$1:$1048576,$A104,Z$1))","v":""},{"$f":"IF($A104=\"N/A\",Ref!$B$36,INDEX(Ranks!$1:$1048576,$A104,AA$1))","v":""},{"$f":"IF($A104=\"N/A\",Ref!$B$36,INDEX(Ranks!$1:$1048576,$A104,AB$1))","v":""},{"$f":"IF($A104=\"N/A\",Ref!$B$36,INDEX(Ranks!$1:$1048576,$A104,AC$1))","v":""},{"$f":"IF($A104=\"N/A\",Ref!$B$36,INDEX(Ranks!$1:$1048576,$A104,AD$1))","v":""},{"$f":"IF($A104=\"N/A\",Ref!$B$36,INDEX(Ranks!$1:$1048576,$A104,AE$1))","v":""},{"$f":"IF($A104=\"N/A\",Ref!$B$36,INDEX(Ranks!$1:$1048576,$A104,AF$1))","v":""},{"$f":"IF($A104=\"N/A\",Ref!$B$36,INDEX(Ranks!$1:$1048576,$A104,AG$1))","v":""},{"$f":"IF($A104=\"N/A\",Ref!$B$36,INDEX(Ranks!$1:$1048576,$A104,AH$1))","v":""},{"$f":"IF($A104=\"N/A\",Ref!$B$36,INDEX(Ranks!$1:$1048576,$A104,AI$1))","v":""},{"$f":"IF($A104=\"N/A\",Ref!$B$36,INDEX(Ranks!$1:$1048576,$A104,AJ$1))","v":""},{"$f":"IF($A104=\"N/A\",Ref!$B$36,INDEX(Ranks!$1:$1048576,$A104,AK$1))","v":""},{"$f":"IF($A104=\"N/A\",Ref!$B$36,INDEX(Ranks!$1:$1048576,$A104,AL$1))","v":""},{"$f":"IF($A104=\"N/A\",Ref!$B$36,INDEX(Ranks!$1:$1048576,$A104,AM$1))","v":""},{"$f":"IF($A104=\"N/A\",Ref!$B$36,INDEX(Ranks!$1:$1048576,$A104,AN$1))","v":""},{"$f":"IF($A104=\"N/A\",Ref!$B$36,INDEX(Ranks!$1:$1048576,$A104,AO$1))","v":""},{"$f":"IF($A104=\"N/A\",Ref!$B$36,INDEX(Ranks!$1:$1048576,$A104,AP$1))","v":""},{"$f":"IF($A104=\"N/A\",Ref!$B$36,INDEX(Ranks!$1:$1048576,$A104,AQ$1))","v":""},{"$f":"IF($A104=\"N/A\",Ref!$B$36,INDEX(Ranks!$1:$1048576,$A104,AR$1))","v":""},{"$f":"IF($A104=\"N/A\",Ref!$B$36,INDEX(Ranks!$1:$1048576,$A104,AS$1))","v":""},{"$f":"IF($A104=\"N/A\",Ref!$B$36,INDEX(Ranks!$1:$1048576,$A104,AT$1))","v":""},{"$f":"IF($A104=\"N/A\",Ref!$B$36,INDEX(Ranks!$1:$1048576,$A104,AU$1))","v":""},{"$f":"IF($A104=\"N/A\",Ref!$B$36,INDEX(Ranks!$1:$1048576,$A104,AV$1))","v":""},{"$f":"IF($A104=\"N/A\",Ref!$B$36,INDEX(Ranks!$1:$1048576,$A104,AW$1))","v":""},{"$f":"IF($A104=\"N/A\",Ref!$B$36,INDEX(Ranks!$1:$1048576,$A104,AX$1))","v":""},{"$f":"IF($A104=\"N/A\",Ref!$B$36,INDEX(Ranks!$1:$1048576,$A104,AY$1))","v":""},{"$f":"IF($A104=\"N/A\",Ref!$B$36,INDEX(Ranks!$1:$1048576,$A104,AZ$1))","v":""},{"$f":"IF($A104=\"N/A\",Ref!$B$36,INDEX(Ranks!$1:$1048576,$A104,BA$1))","v":""},{"$f":"IF($A104=\"N/A\",Ref!$B$36,INDEX(Ranks!$1:$1048576,$A104,BB$1))","v":""},{"$f":"IF($A104=\"N/A\",Ref!$B$36,INDEX(Ranks!$1:$1048576,$A104,BC$1))","v":""},{"$f":"IF($A104=\"N/A\",Ref!$B$36,INDEX(Ranks!$1:$1048576,$A104,BD$1))","v":""},{"$f":"IF($A104=\"N/A\",Ref!$B$36,INDEX(Ranks!$1:$1048576,$A104,BE$1))","v":""},{"$f":"IF($A104=\"N/A\",Ref!$B$36,INDEX(Ranks!$1:$1048576,$A104,BF$1))","v":""},{"$f":"IF($A104=\"N/A\",Ref!$B$36,INDEX(Ranks!$1:$1048576,$A104,BG$1))","v":""},{"$f":"IF($A104=\"N/A\",Ref!$B$36,INDEX(Ranks!$1:$1048576,$A104,BH$1))","v":""},{"$f":"IF($A104=\"N/A\",Ref!$B$36,INDEX(Ranks!$1:$1048576,$A104,BI$1))","v":""},{"$f":"IF($A104=\"N/A\",Ref!$B$36,INDEX(Ranks!$1:$1048576,$A104,BJ$1))","v":""},{"$f":"IF($A104=\"N/A\",Ref!$B$36,INDEX(Ranks!$1:$1048576,$A104,BK$1))","v":""},{"$f":"IF($A104=\"N/A\",Ref!$B$36,INDEX(Ranks!$1:$1048576,$A104,BL$1))","v":""},{"$f":"IF($A104=\"N/A\",Ref!$B$36,INDEX(Ranks!$1:$1048576,$A104,BM$1))","v":""},{"$f":"IF($A104=\"N/A\",Ref!$B$36,INDEX(Ranks!$1:$1048576,$A104,BN$1))","v":""},{"$f":"IF($A104=\"N/A\",Ref!$B$36,INDEX(Ranks!$1:$1048576,$A104,BO$1))","v":""},{"$f":"IF($A104=\"N/A\",Ref!$B$36,INDEX(Ranks!$1:$1048576,$A104,BP$1))","v":""},{"$f":"IF($A104=\"N/A\",Ref!$B$36,INDEX(Ranks!$1:$1048576,$A104,BQ$1))","v":""},{"$f":"IF($A104=\"N/A\",Ref!$B$36,INDEX(Ranks!$1:$1048576,$A104,BR$1))","v":""},{"$f":"IF($A104=\"N/A\",Ref!$B$36,INDEX(Ranks!$1:$1048576,$A104,BS$1))","v":""},{"$f":"IF($A104=\"N/A\",Ref!$B$36,INDEX(Ranks!$1:$1048576,$A104,BT$1))","v":""},{"$f":"IF($A104=\"N/A\",Ref!$B$36,INDEX(Ranks!$1:$1048576,$A104,BU$1))","v":""},{"$f":"IF($A104=\"N/A\",Ref!$B$36,INDEX(Ranks!$1:$1048576,$A104,BV$1))","v":""},{"$f":"IF($A104=\"N/A\",Ref!$B$36,INDEX(Ranks!$1:$1048576,$A104,BW$1))","v":""},{"$f":"IF($A104=\"N/A\",Ref!$B$36,INDEX(Ranks!$1:$1048576,$A104,BX$1))","v":""},{"$f":"IF($A104=\"N/A\",Ref!$B$36,INDEX(Ranks!$1:$1048576,$A104,BY$1))","v":""},{"$f":"IF($A104=\"N/A\",Ref!$B$36,INDEX(Ranks!$1:$1048576,$A104,BZ$1))","v":""},{"$f":"IF($A104=\"N/A\",Ref!$B$36,INDEX(Ranks!$1:$1048576,$A104,CA$1))","v":""},{"$f":"IF($A104=\"N/A\",Ref!$B$36,INDEX(Ranks!$1:$1048576,$A104,CB$1))","v":""},{"$f":"IF($A104=\"N/A\",Ref!$B$36,INDEX(Ranks!$1:$1048576,$A104,CC$1))","v":""},{"$f":"IF($A104=\"N/A\",Ref!$B$36,INDEX(Ranks!$1:$1048576,$A104,CD$1))","v":""},{"$f":"IF($A104=\"N/A\",Ref!$B$36,INDEX(Ranks!$1:$1048576,$A104,CE$1))","v":""},{"$f":"IF($A104=\"N/A\",Ref!$B$36,INDEX(Ranks!$1:$1048576,$A104,CF$1))","v":""},{"$f":"IF($A104=\"N/A\",Ref!$B$36,INDEX(Ranks!$1:$1048576,$A104,CG$1))","v":""},{"$f":"IF($A104=\"N/A\",Ref!$B$36,INDEX(Ranks!$1:$1048576,$A104,CH$1))","v":""},{"$f":"IF($A104=\"N/A\",Ref!$B$36,INDEX(Ranks!$1:$1048576,$A104,CI$1))","v":""},{"$f":"IF($A104=\"N/A\",Ref!$B$36,INDEX(Ranks!$1:$1048576,$A104,CJ$1))","v":""},{"$f":"IF($A104=\"N/A\",Ref!$B$36,INDEX(Ranks!$1:$1048576,$A104,CK$1))","v":""},{"$f":"IF($A104=\"N/A\",Ref!$B$36,INDEX(Ranks!$1:$1048576,$A104,CL$1))","v":""},{"$f":"IF($A104=\"N/A\",Ref!$B$36,INDEX(Ranks!$1:$1048576,$A104,CM$1))","v":""},{"$f":"IF($A104=\"N/A\",Ref!$B$36,INDEX(Ranks!$1:$1048576,$A104,CN$1))","v":""},{"$f":"IF($A104=\"N/A\",Ref!$B$36,INDEX(Ranks!$1:$1048576,$A104,CO$1))","v":""},{"$f":"IF($A104=\"N/A\",Ref!$B$36,INDEX(Ranks!$1:$1048576,$A104,CP$1))","v":""},{"$f":"IF($A104=\"N/A\",Ref!$B$36,INDEX(Ranks!$1:$1048576,$A104,CQ$1))","v":""},{"$f":"IF($A104=\"N/A\",Ref!$B$36,INDEX(Ranks!$1:$1048576,$A104,CR$1))","v":""},{"$f":"IF($A104=\"N/A\",Ref!$B$36,INDEX(Ranks!$1:$1048576,$A104,CS$1))","v":""},{"$f":"IF($A104=\"N/A\",Ref!$B$36,INDEX(Ranks!$1:$1048576,$A104,CT$1))","v":""},{"$f":"IF($A104=\"N/A\",Ref!$B$36,INDEX(Ranks!$1:$1048576,$A104,CU$1))","v":""},{"$f":"IF($A104=\"N/A\",Ref!$B$36,INDEX(Ranks!$1:$1048576,$A104,CV$1))","v":""},{"$f":"IF($A104=\"N/A\",Ref!$B$36,INDEX(Ranks!$1:$1048576,$A104,CW$1))","v":""},{"$f":"IF($A104=\"N/A\",Ref!$B$36,INDEX(Ranks!$1:$1048576,$A104,CX$1))","v":""},{"$f":"IF($A104=\"N/A\",Ref!$B$36,INDEX(Ranks!$1:$1048576,$A104,CY$1))","v":""},{"$f":"IF($A104=\"N/A\",Ref!$B$36,INDEX(Ranks!$1:$1048576,$A104,CZ$1))","v":""},{"$f":"IF($A104=\"N/A\",Ref!$B$36,INDEX(Ranks!$1:$1048576,$A104,DA$1))","v":""},{"$f":"IF($A104=\"N/A\",Ref!$B$36,INDEX(Ranks!$1:$1048576,$A104,DB$1))","v":""},{"$f":"IF($A104=\"N/A\",Ref!$B$36,INDEX(Ranks!$1:$1048576,$A104,DC$1))","v":""},{"$f":"IF($A104=\"N/A\",Ref!$B$36,INDEX(Ranks!$1:$1048576,$A104,DD$1))","v":""},{"$f":"IF($A104=\"N/A\",Ref!$B$36,INDEX(Ranks!$1:$1048576,$A104,DE$1))","v":""},{"$f":"IF($A104=\"N/A\",Ref!$B$36,INDEX(Ranks!$1:$1048576,$A104,DF$1))","v":""},{"$f":"IF($A104=\"N/A\",Ref!$B$36,INDEX(Ranks!$1:$1048576,$A104,DG$1))","v":""},{"$f":"IF($A104=\"N/A\",Ref!$B$36,INDEX(Ranks!$1:$1048576,$A104,DH$1))","v":""},{"$f":"IF($A104=\"N/A\",Ref!$B$36,INDEX(Ranks!$1:$1048576,$A104,DI$1))","v":""},{"$f":"IF($A104=\"N/A\",Ref!$B$36,INDEX(Ranks!$1:$1048576,$A104,DJ$1))","v":""},{"$f":"IF($A104=\"N/A\",Ref!$B$36,INDEX(Ranks!$1:$1048576,$A104,DK$1))","v":""},{"$f":"IF($A104=\"N/A\",Ref!$B$36,INDEX(Ranks!$1:$1048576,$A104,DL$1))","v":""},{"$f":"IF($A104=\"N/A\",Ref!$B$36,INDEX(Ranks!$1:$1048576,$A104,DM$1))","v":""},{"$f":"IF($A104=\"N/A\",Ref!$B$36,INDEX(Ranks!$1:$1048576,$A104,DN$1))","v":""},{"$f":"IF($A104=\"N/A\",Ref!$B$36,INDEX(Ranks!$1:$1048576,$A104,DO$1))","v":""},{"$f":"IF($A104=\"N/A\",Ref!$B$36,INDEX(Ranks!$1:$1048576,$A104,DP$1))","v":""},{"$f":"IF($A104=\"N/A\",Ref!$B$36,INDEX(Ranks!$1:$1048576,$A104,DQ$1))","v":""},{"$f":"IF($A104=\"N/A\",Ref!$B$36,INDEX(Ranks!$1:$1048576,$A104,DR$1))","v":""},{"$f":"IF($A104=\"N/A\",Ref!$B$36,INDEX(Ranks!$1:$1048576,$A104,DS$1))","v":""},{"$f":"IF($A104=\"N/A\",Ref!$B$36,INDEX(Ranks!$1:$1048576,$A104,DT$1))","v":""},{"$f":"IF($A104=\"N/A\",Ref!$B$36,INDEX(Ranks!$1:$1048576,$A104,DU$1))","v":""},{"$f":"IF($A104=\"N/A\",Ref!$B$36,INDEX(Ranks!$1:$1048576,$A104,DV$1))","v":""},{"$f":"IF($A104=\"N/A\",Ref!$B$36,INDEX(Ranks!$1:$1048576,$A104,DW$1))","v":""},{"$f":"IF($A104=\"N/A\",Ref!$B$36,INDEX(Ranks!$1:$1048576,$A104,DX$1))","v":""},{"$f":"IF($A104=\"N/A\",Ref!$B$36,INDEX(Ranks!$1:$1048576,$A104,DY$1))","v":""},{"$f":"IF($A104=\"N/A\",Ref!$B$36,INDEX(Ranks!$1:$1048576,$A104,DZ$1))","v":""},{"$f":"IF($A104=\"N/A\",Ref!$B$36,INDEX(Ranks!$1:$1048576,$A104,EA$1))","v":""},{"$f":"IF($A104=\"N/A\",Ref!$B$36,INDEX(Ranks!$1:$1048576,$A104,EB$1))","v":""}]
[{"$f":"IFERROR(MATCH('Portfolio Page'!L105,Ranks!L:L,0),\"N/A\")","v":"N/A"},null,{"$f":"IF($A105=\"N/A\",\"\",INDEX(Ranks!$1:$1048576,$A105,C$1))","v":""},{"$f":"IF($A105=\"N/A\",Ref!$B$36,INDEX(Ranks!$1:$1048576,$A105,D$1))","v":""},{"$f":"IF($A105=\"N/A\",Ref!$B$36,INDEX(Ranks!$1:$1048576,$A105,E$1))","v":""},{"$f":"IF($A105=\"N/A\",\"\",INDEX(Ranks!$1:$1048576,$A105,F$1))","v":""},{"$f":"IF($A105=\"N/A\",\"\",INDEX(Ranks!$1:$1048576,$A105,G$1))","v":""},{"$f":"IF($A105=\"N/A\",\"\",INDEX(Ranks!$1:$1048576,$A105,H$1))","v":""},{"$f":"IF($A105=\"N/A\",\"\",INDEX(Ranks!$1:$1048576,$A105,I$1))","v":""},{"$f":"IF($A105=\"N/A\",\"\",INDEX(Ranks!$1:$1048576,$A105,J$1))","v":""},{"$f":"IF($A105=\"N/A\",\"\",INDEX(Ranks!$1:$1048576,$A105,K$1))","v":""},null,{"$f":"IF($A105=\"N/A\",Ref!$B$36,INDEX(Ranks!$1:$1048576,$A105,M$1))","v":""},{"$f":"IF($A105=\"N/A\",Ref!$B$36,INDEX(Ranks!$1:$1048576,$A105,N$1))","v":""},{"$f":"IF($A105=\"N/A\",Ref!$B$36,INDEX(Ranks!$1:$1048576,$A105,O$1))","v":""},{"$f":"IF($A105=\"N/A\",Ref!$B$36,INDEX(Ranks!$1:$1048576,$A105,P$1))","v":""},{"$f":"IF($A105=\"N/A\",Ref!$B$36,INDEX(Ranks!$1:$1048576,$A105,Q$1))","v":""},{"$f":"IF($A105=\"N/A\",Ref!$B$36,INDEX(Ranks!$1:$1048576,$A105,R$1))","v":""},{"$f":"IF($A105=\"N/A\",Ref!$B$36,INDEX(Ranks!$1:$1048576,$A105,S$1))","v":""},{"$f":"IF($A105=\"N/A\",Ref!$B$36,INDEX(Ranks!$1:$1048576,$A105,T$1))","v":""},{"$f":"IF($A105=\"N/A\",Ref!$B$36,INDEX(Ranks!$1:$1048576,$A105,U$1))","v":""},{"$f":"IF($A105=\"N/A\",Ref!$B$36,INDEX(Ranks!$1:$1048576,$A105,V$1))","v":""},{"$f":"IF($A105=\"N/A\",Ref!$B$36,INDEX(Ranks!$1:$1048576,$A105,W$1))","v":""},{"$f":"IF($A105=\"N/A\",Ref!$B$36,INDEX(Ranks!$1:$1048576,$A105,X$1))","v":""},{"$f":"IF($A105=\"N/A\",Ref!$B$36,INDEX(Ranks!$1:$1048576,$A105,Y$1))","v":""},{"$f":"IF($A105=\"N/A\",Ref!$B$36,INDEX(Ranks!$1:$1048576,$A105,Z$1))","v":""},{"$f":"IF($A105=\"N/A\",Ref!$B$36,INDEX(Ranks!$1:$1048576,$A105,AA$1))","v":""},{"$f":"IF($A105=\"N/A\",Ref!$B$36,INDEX(Ranks!$1:$1048576,$A105,AB$1))","v":""},{"$f":"IF($A105=\"N/A\",Ref!$B$36,INDEX(Ranks!$1:$1048576,$A105,AC$1))","v":""},{"$f":"IF($A105=\"N/A\",Ref!$B$36,INDEX(Ranks!$1:$1048576,$A105,AD$1))","v":""},{"$f":"IF($A105=\"N/A\",Ref!$B$36,INDEX(Ranks!$1:$1048576,$A105,AE$1))","v":""},{"$f":"IF($A105=\"N/A\",Ref!$B$36,INDEX(Ranks!$1:$1048576,$A105,AF$1))","v":""},{"$f":"IF($A105=\"N/A\",Ref!$B$36,INDEX(Ranks!$1:$1048576,$A105,AG$1))","v":""},{"$f":"IF($A105=\"N/A\",Ref!$B$36,INDEX(Ranks!$1:$1048576,$A105,AH$1))","v":""},{"$f":"IF($A105=\"N/A\",Ref!$B$36,INDEX(Ranks!$1:$1048576,$A105,AI$1))","v":""},{"$f":"IF($A105=\"N/A\",Ref!$B$36,INDEX(Ranks!$1:$1048576,$A105,AJ$1))","v":""},{"$f":"IF($A105=\"N/A\",Ref!$B$36,INDEX(Ranks!$1:$1048576,$A105,AK$1))","v":""},{"$f":"IF($A105=\"N/A\",Ref!$B$36,INDEX(Ranks!$1:$1048576,$A105,AL$1))","v":""},{"$f":"IF($A105=\"N/A\",Ref!$B$36,INDEX(Ranks!$1:$1048576,$A105,AM$1))","v":""},{"$f":"IF($A105=\"N/A\",Ref!$B$36,INDEX(Ranks!$1:$1048576,$A105,AN$1))","v":""},{"$f":"IF($A105=\"N/A\",Ref!$B$36,INDEX(Ranks!$1:$1048576,$A105,AO$1))","v":""},{"$f":"IF($A105=\"N/A\",Ref!$B$36,INDEX(Ranks!$1:$1048576,$A105,AP$1))","v":""},{"$f":"IF($A105=\"N/A\",Ref!$B$36,INDEX(Ranks!$1:$1048576,$A105,AQ$1))","v":""},{"$f":"IF($A105=\"N/A\",Ref!$B$36,INDEX(Ranks!$1:$1048576,$A105,AR$1))","v":""},{"$f":"IF($A105=\"N/A\",Ref!$B$36,INDEX(Ranks!$1:$1048576,$A105,AS$1))","v":""},{"$f":"IF($A105=\"N/A\",Ref!$B$36,INDEX(Ranks!$1:$1048576,$A105,AT$1))","v":""},{"$f":"IF($A105=\"N/A\",Ref!$B$36,INDEX(Ranks!$1:$1048576,$A105,AU$1))","v":""},{"$f":"IF($A105=\"N/A\",Ref!$B$36,INDEX(Ranks!$1:$1048576,$A105,AV$1))","v":""},{"$f":"IF($A105=\"N/A\",Ref!$B$36,INDEX(Ranks!$1:$1048576,$A105,AW$1))","v":""},{"$f":"IF($A105=\"N/A\",Ref!$B$36,INDEX(Ranks!$1:$1048576,$A105,AX$1))","v":""},{"$f":"IF($A105=\"N/A\",Ref!$B$36,INDEX(Ranks!$1:$1048576,$A105,AY$1))","v":""},{"$f":"IF($A105=\"N/A\",Ref!$B$36,INDEX(Ranks!$1:$1048576,$A105,AZ$1))","v":""},{"$f":"IF($A105=\"N/A\",Ref!$B$36,INDEX(Ranks!$1:$1048576,$A105,BA$1))","v":""},{"$f":"IF($A105=\"N/A\",Ref!$B$36,INDEX(Ranks!$1:$1048576,$A105,BB$1))","v":""},{"$f":"IF($A105=\"N/A\",Ref!$B$36,INDEX(Ranks!$1:$1048576,$A105,BC$1))","v":""},{"$f":"IF($A105=\"N/A\",Ref!$B$36,INDEX(Ranks!$1:$1048576,$A105,BD$1))","v":""},{"$f":"IF($A105=\"N/A\",Ref!$B$36,INDEX(Ranks!$1:$1048576,$A105,BE$1))","v":""},{"$f":"IF($A105=\"N/A\",Ref!$B$36,INDEX(Ranks!$1:$1048576,$A105,BF$1))","v":""},{"$f":"IF($A105=\"N/A\",Ref!$B$36,INDEX(Ranks!$1:$1048576,$A105,BG$1))","v":""},{"$f":"IF($A105=\"N/A\",Ref!$B$36,INDEX(Ranks!$1:$1048576,$A105,BH$1))","v":""},{"$f":"IF($A105=\"N/A\",Ref!$B$36,INDEX(Ranks!$1:$1048576,$A105,BI$1))","v":""},{"$f":"IF($A105=\"N/A\",Ref!$B$36,INDEX(Ranks!$1:$1048576,$A105,BJ$1))","v":""},{"$f":"IF($A105=\"N/A\",Ref!$B$36,INDEX(Ranks!$1:$1048576,$A105,BK$1))","v":""},{"$f":"IF($A105=\"N/A\",Ref!$B$36,INDEX(Ranks!$1:$1048576,$A105,BL$1))","v":""},{"$f":"IF($A105=\"N/A\",Ref!$B$36,INDEX(Ranks!$1:$1048576,$A105,BM$1))","v":""},{"$f":"IF($A105=\"N/A\",Ref!$B$36,INDEX(Ranks!$1:$1048576,$A105,BN$1))","v":""},{"$f":"IF($A105=\"N/A\",Ref!$B$36,INDEX(Ranks!$1:$1048576,$A105,BO$1))","v":""},{"$f":"IF($A105=\"N/A\",Ref!$B$36,INDEX(Ranks!$1:$1048576,$A105,BP$1))","v":""},{"$f":"IF($A105=\"N/A\",Ref!$B$36,INDEX(Ranks!$1:$1048576,$A105,BQ$1))","v":""},{"$f":"IF($A105=\"N/A\",Ref!$B$36,INDEX(Ranks!$1:$1048576,$A105,BR$1))","v":""},{"$f":"IF($A105=\"N/A\",Ref!$B$36,INDEX(Ranks!$1:$1048576,$A105,BS$1))","v":""},{"$f":"IF($A105=\"N/A\",Ref!$B$36,INDEX(Ranks!$1:$1048576,$A105,BT$1))","v":""},{"$f":"IF($A105=\"N/A\",Ref!$B$36,INDEX(Ranks!$1:$1048576,$A105,BU$1))","v":""},{"$f":"IF($A105=\"N/A\",Ref!$B$36,INDEX(Ranks!$1:$1048576,$A105,BV$1))","v":""},{"$f":"IF($A105=\"N/A\",Ref!$B$36,INDEX(Ranks!$1:$1048576,$A105,BW$1))","v":""},{"$f":"IF($A105=\"N/A\",Ref!$B$36,INDEX(Ranks!$1:$1048576,$A105,BX$1))","v":""},{"$f":"IF($A105=\"N/A\",Ref!$B$36,INDEX(Ranks!$1:$1048576,$A105,BY$1))","v":""},{"$f":"IF($A105=\"N/A\",Ref!$B$36,INDEX(Ranks!$1:$1048576,$A105,BZ$1))","v":""},{"$f":"IF($A105=\"N/A\",Ref!$B$36,INDEX(Ranks!$1:$1048576,$A105,CA$1))","v":""},{"$f":"IF($A105=\"N/A\",Ref!$B$36,INDEX(Ranks!$1:$1048576,$A105,CB$1))","v":""},{"$f":"IF($A105=\"N/A\",Ref!$B$36,INDEX(Ranks!$1:$1048576,$A105,CC$1))","v":""},{"$f":"IF($A105=\"N/A\",Ref!$B$36,INDEX(Ranks!$1:$1048576,$A105,CD$1))","v":""},{"$f":"IF($A105=\"N/A\",Ref!$B$36,INDEX(Ranks!$1:$1048576,$A105,CE$1))","v":""},{"$f":"IF($A105=\"N/A\",Ref!$B$36,INDEX(Ranks!$1:$1048576,$A105,CF$1))","v":""},{"$f":"IF($A105=\"N/A\",Ref!$B$36,INDEX(Ranks!$1:$1048576,$A105,CG$1))","v":""},{"$f":"IF($A105=\"N/A\",Ref!$B$36,INDEX(Ranks!$1:$1048576,$A105,CH$1))","v":""},{"$f":"IF($A105=\"N/A\",Ref!$B$36,INDEX(Ranks!$1:$1048576,$A105,CI$1))","v":""},{"$f":"IF($A105=\"N/A\",Ref!$B$36,INDEX(Ranks!$1:$1048576,$A105,CJ$1))","v":""},{"$f":"IF($A105=\"N/A\",Ref!$B$36,INDEX(Ranks!$1:$1048576,$A105,CK$1))","v":""},{"$f":"IF($A105=\"N/A\",Ref!$B$36,INDEX(Ranks!$1:$1048576,$A105,CL$1))","v":""},{"$f":"IF($A105=\"N/A\",Ref!$B$36,INDEX(Ranks!$1:$1048576,$A105,CM$1))","v":""},{"$f":"IF($A105=\"N/A\",Ref!$B$36,INDEX(Ranks!$1:$1048576,$A105,CN$1))","v":""},{"$f":"IF($A105=\"N/A\",Ref!$B$36,INDEX(Ranks!$1:$1048576,$A105,CO$1))","v":""},{"$f":"IF($A105=\"N/A\",Ref!$B$36,INDEX(Ranks!$1:$1048576,$A105,CP$1))","v":""},{"$f":"IF($A105=\"N/A\",Ref!$B$36,INDEX(Ranks!$1:$1048576,$A105,CQ$1))","v":""},{"$f":"IF($A105=\"N/A\",Ref!$B$36,INDEX(Ranks!$1:$1048576,$A105,CR$1))","v":""},{"$f":"IF($A105=\"N/A\",Ref!$B$36,INDEX(Ranks!$1:$1048576,$A105,CS$1))","v":""},{"$f":"IF($A105=\"N/A\",Ref!$B$36,INDEX(Ranks!$1:$1048576,$A105,CT$1))","v":""},{"$f":"IF($A105=\"N/A\",Ref!$B$36,INDEX(Ranks!$1:$1048576,$A105,CU$1))","v":""},{"$f":"IF($A105=\"N/A\",Ref!$B$36,INDEX(Ranks!$1:$1048576,$A105,CV$1))","v":""},{"$f":"IF($A105=\"N/A\",Ref!$B$36,INDEX(Ranks!$1:$1048576,$A105,CW$1))","v":""},{"$f":"IF($A105=\"N/A\",Ref!$B$36,INDEX(Ranks!$1:$1048576,$A105,CX$1))","v":""},{"$f":"IF($A105=\"N/A\",Ref!$B$36,INDEX(Ranks!$1:$1048576,$A105,CY$1))","v":""},{"$f":"IF($A105=\"N/A\",Ref!$B$36,INDEX(Ranks!$1:$1048576,$A105,CZ$1))","v":""},{"$f":"IF($A105=\"N/A\",Ref!$B$36,INDEX(Ranks!$1:$1048576,$A105,DA$1))","v":""},{"$f":"IF($A105=\"N/A\",Ref!$B$36,INDEX(Ranks!$1:$1048576,$A105,DB$1))","v":""},{"$f":"IF($A105=\"N/A\",Ref!$B$36,INDEX(Ranks!$1:$1048576,$A105,DC$1))","v":""},{"$f":"IF($A105=\"N/A\",Ref!$B$36,INDEX(Ranks!$1:$1048576,$A105,DD$1))","v":""},{"$f":"IF($A105=\"N/A\",Ref!$B$36,INDEX(Ranks!$1:$1048576,$A105,DE$1))","v":""},{"$f":"IF($A105=\"N/A\",Ref!$B$36,INDEX(Ranks!$1:$1048576,$A105,DF$1))","v":""},{"$f":"IF($A105=\"N/A\",Ref!$B$36,INDEX(Ranks!$1:$1048576,$A105,DG$1))","v":""},{"$f":"IF($A105=\"N/A\",Ref!$B$36,INDEX(Ranks!$1:$1048576,$A105,DH$1))","v":""},{"$f":"IF($A105=\"N/A\",Ref!$B$36,INDEX(Ranks!$1:$1048576,$A105,DI$1))","v":""},{"$f":"IF($A105=\"N/A\",Ref!$B$36,INDEX(Ranks!$1:$1048576,$A105,DJ$1))","v":""},{"$f":"IF($A105=\"N/A\",Ref!$B$36,INDEX(Ranks!$1:$1048576,$A105,DK$1))","v":""},{"$f":"IF($A105=\"N/A\",Ref!$B$36,INDEX(Ranks!$1:$1048576,$A105,DL$1))","v":""},{"$f":"IF($A105=\"N/A\",Ref!$B$36,INDEX(Ranks!$1:$1048576,$A105,DM$1))","v":""},{"$f":"IF($A105=\"N/A\",Ref!$B$36,INDEX(Ranks!$1:$1048576,$A105,DN$1))","v":""},{"$f":"IF($A105=\"N/A\",Ref!$B$36,INDEX(Ranks!$1:$1048576,$A105,DO$1))","v":""},{"$f":"IF($A105=\"N/A\",Ref!$B$36,INDEX(Ranks!$1:$1048576,$A105,DP$1))","v":""},{"$f":"IF($A105=\"N/A\",Ref!$B$36,INDEX(Ranks!$1:$1048576,$A105,DQ$1))","v":""},{"$f":"IF($A105=\"N/A\",Ref!$B$36,INDEX(Ranks!$1:$1048576,$A105,DR$1))","v":""},{"$f":"IF($A105=\"N/A\",Ref!$B$36,INDEX(Ranks!$1:$1048576,$A105,DS$1))","v":""},{"$f":"IF($A105=\"N/A\",Ref!$B$36,INDEX(Ranks!$1:$1048576,$A105,DT$1))","v":""},{"$f":"IF($A105=\"N/A\",Ref!$B$36,INDEX(Ranks!$1:$1048576,$A105,DU$1))","v":""},{"$f":"IF($A105=\"N/A\",Ref!$B$36,INDEX(Ranks!$1:$1048576,$A105,DV$1))","v":""},{"$f":"IF($A105=\"N/A\",Ref!$B$36,INDEX(Ranks!$1:$1048576,$A105,DW$1))","v":""},{"$f":"IF($A105=\"N/A\",Ref!$B$36,INDEX(Ranks!$1:$1048576,$A105,DX$1))","v":""},{"$f":"IF($A105=\"N/A\",Ref!$B$36,INDEX(Ranks!$1:$1048576,$A105,DY$1))","v":""},{"$f":"IF($A105=\"N/A\",Ref!$B$36,INDEX(Ranks!$1:$1048576,$A105,DZ$1))","v":""},{"$f":"IF($A105=\"N/A\",Ref!$B$36,INDEX(Ranks!$1:$1048576,$A105,EA$1))","v":""},{"$f":"IF($A105=\"N/A\",Ref!$B$36,INDEX(Ranks!$1:$1048576,$A105,EB$1))","v":""}]
[{"$f":"IFERROR(MATCH('Portfolio Page'!L106,Ranks!L:L,0),\"N/A\")","v":"N/A"},null,{"$f":"IF($A106=\"N/A\",\"\",INDEX(Ranks!$1:$1048576,$A106,C$1))","v":""},{"$f":"IF($A106=\"N/A\",Ref!$B$36,INDEX(Ranks!$1:$1048576,$A106,D$1))","v":""},{"$f":"IF($A106=\"N/A\",Ref!$B$36,INDEX(Ranks!$1:$1048576,$A106,E$1))","v":""},{"$f":"IF($A106=\"N/A\",\"\",INDEX(Ranks!$1:$1048576,$A106,F$1))","v":""},{"$f":"IF($A106=\"N/A\",\"\",INDEX(Ranks!$1:$1048576,$A106,G$1))","v":""},{"$f":"IF($A106=\"N/A\",\"\",INDEX(Ranks!$1:$1048576,$A106,H$1))","v":""},{"$f":"IF($A106=\"N/A\",\"\",INDEX(Ranks!$1:$1048576,$A106,I$1))","v":""},{"$f":"IF($A106=\"N/A\",\"\",INDEX(Ranks!$1:$1048576,$A106,J$1))","v":""},{"$f":"IF($A106=\"N/A\",\"\",INDEX(Ranks!$1:$1048576,$A106,K$1))","v":""},null,{"$f":"IF($A106=\"N/A\",Ref!$B$36,INDEX(Ranks!$1:$1048576,$A106,M$1))","v":""},{"$f":"IF($A106=\"N/A\",Ref!$B$36,INDEX(Ranks!$1:$1048576,$A106,N$1))","v":""},{"$f":"IF($A106=\"N/A\",Ref!$B$36,INDEX(Ranks!$1:$1048576,$A106,O$1))","v":""},{"$f":"IF($A106=\"N/A\",Ref!$B$36,INDEX(Ranks!$1:$1048576,$A106,P$1))","v":""},{"$f":"IF($A106=\"N/A\",Ref!$B$36,INDEX(Ranks!$1:$1048576,$A106,Q$1))","v":""},{"$f":"IF($A106=\"N/A\",Ref!$B$36,INDEX(Ranks!$1:$1048576,$A106,R$1))","v":""},{"$f":"IF($A106=\"N/A\",Ref!$B$36,INDEX(Ranks!$1:$1048576,$A106,S$1))","v":""},{"$f":"IF($A106=\"N/A\",Ref!$B$36,INDEX(Ranks!$1:$1048576,$A106,T$1))","v":""},{"$f":"IF($A106=\"N/A\",Ref!$B$36,INDEX(Ranks!$1:$1048576,$A106,U$1))","v":""},{"$f":"IF($A106=\"N/A\",Ref!$B$36,INDEX(Ranks!$1:$1048576,$A106,V$1))","v":""},{"$f":"IF($A106=\"N/A\",Ref!$B$36,INDEX(Ranks!$1:$1048576,$A106,W$1))","v":""},{"$f":"IF($A106=\"N/A\",Ref!$B$36,INDEX(Ranks!$1:$1048576,$A106,X$1))","v":""},{"$f":"IF($A106=\"N/A\",Ref!$B$36,INDEX(Ranks!$1:$1048576,$A106,Y$1))","v":""},{"$f":"IF($A106=\"N/A\",Ref!$B$36,INDEX(Ranks!$1:$1048576,$A106,Z$1))","v":""},{"$f":"IF($A106=\"N/A\",Ref!$B$36,INDEX(Ranks!$1:$1048576,$A106,AA$1))","v":""},{"$f":"IF($A106=\"N/A\",Ref!$B$36,INDEX(Ranks!$1:$1048576,$A106,AB$1))","v":""},{"$f":"IF($A106=\"N/A\",Ref!$B$36,INDEX(Ranks!$1:$1048576,$A106,AC$1))","v":""},{"$f":"IF($A106=\"N/A\",Ref!$B$36,INDEX(Ranks!$1:$1048576,$A106,AD$1))","v":""},{"$f":"IF($A106=\"N/A\",Ref!$B$36,INDEX(Ranks!$1:$1048576,$A106,AE$1))","v":""},{"$f":"IF($A106=\"N/A\",Ref!$B$36,INDEX(Ranks!$1:$1048576,$A106,AF$1))","v":""},{"$f":"IF($A106=\"N/A\",Ref!$B$36,INDEX(Ranks!$1:$1048576,$A106,AG$1))","v":""},{"$f":"IF($A106=\"N/A\",Ref!$B$36,INDEX(Ranks!$1:$1048576,$A106,AH$1))","v":""},{"$f":"IF($A106=\"N/A\",Ref!$B$36,INDEX(Ranks!$1:$1048576,$A106,AI$1))","v":""},{"$f":"IF($A106=\"N/A\",Ref!$B$36,INDEX(Ranks!$1:$1048576,$A106,AJ$1))","v":""},{"$f":"IF($A106=\"N/A\",Ref!$B$36,INDEX(Ranks!$1:$1048576,$A106,AK$1))","v":""},{"$f":"IF($A106=\"N/A\",Ref!$B$36,INDEX(Ranks!$1:$1048576,$A106,AL$1))","v":""},{"$f":"IF($A106=\"N/A\",Ref!$B$36,INDEX(Ranks!$1:$1048576,$A106,AM$1))","v":""},{"$f":"IF($A106=\"N/A\",Ref!$B$36,INDEX(Ranks!$1:$1048576,$A106,AN$1))","v":""},{"$f":"IF($A106=\"N/A\",Ref!$B$36,INDEX(Ranks!$1:$1048576,$A106,AO$1))","v":""},{"$f":"IF($A106=\"N/A\",Ref!$B$36,INDEX(Ranks!$1:$1048576,$A106,AP$1))","v":""},{"$f":"IF($A106=\"N/A\",Ref!$B$36,INDEX(Ranks!$1:$1048576,$A106,AQ$1))","v":""},{"$f":"IF($A106=\"N/A\",Ref!$B$36,INDEX(Ranks!$1:$1048576,$A106,AR$1))","v":""},{"$f":"IF($A106=\"N/A\",Ref!$B$36,INDEX(Ranks!$1:$1048576,$A106,AS$1))","v":""},{"$f":"IF($A106=\"N/A\",Ref!$B$36,INDEX(Ranks!$1:$1048576,$A106,AT$1))","v":""},{"$f":"IF($A106=\"N/A\",Ref!$B$36,INDEX(Ranks!$1:$1048576,$A106,AU$1))","v":""},{"$f":"IF($A106=\"N/A\",Ref!$B$36,INDEX(Ranks!$1:$1048576,$A106,AV$1))","v":""},{"$f":"IF($A106=\"N/A\",Ref!$B$36,INDEX(Ranks!$1:$1048576,$A106,AW$1))","v":""},{"$f":"IF($A106=\"N/A\",Ref!$B$36,INDEX(Ranks!$1:$1048576,$A106,AX$1))","v":""},{"$f":"IF($A106=\"N/A\",Ref!$B$36,INDEX(Ranks!$1:$1048576,$A106,AY$1))","v":""},{"$f":"IF($A106=\"N/A\",Ref!$B$36,INDEX(Ranks!$1:$1048576,$A106,AZ$1))","v":""},{"$f":"IF($A106=\"N/A\",Ref!$B$36,INDEX(Ranks!$1:$1048576,$A106,BA$1))","v":""},{"$f":"IF($A106=\"N/A\",Ref!$B$36,INDEX(Ranks!$1:$1048576,$A106,BB$1))","v":""},{"$f":"IF($A106=\"N/A\",Ref!$B$36,INDEX(Ranks!$1:$1048576,$A106,BC$1))","v":""},{"$f":"IF($A106=\"N/A\",Ref!$B$36,INDEX(Ranks!$1:$1048576,$A106,BD$1))","v":""},{"$f":"IF($A106=\"N/A\",Ref!$B$36,INDEX(Ranks!$1:$1048576,$A106,BE$1))","v":""},{"$f":"IF($A106=\"N/A\",Ref!$B$36,INDEX(Ranks!$1:$1048576,$A106,BF$1))","v":""},{"$f":"IF($A106=\"N/A\",Ref!$B$36,INDEX(Ranks!$1:$1048576,$A106,BG$1))","v":""},{"$f":"IF($A106=\"N/A\",Ref!$B$36,INDEX(Ranks!$1:$1048576,$A106,BH$1))","v":""},{"$f":"IF($A106=\"N/A\",Ref!$B$36,INDEX(Ranks!$1:$1048576,$A106,BI$1))","v":""},{"$f":"IF($A106=\"N/A\",Ref!$B$36,INDEX(Ranks!$1:$1048576,$A106,BJ$1))","v":""},{"$f":"IF($A106=\"N/A\",Ref!$B$36,INDEX(Ranks!$1:$1048576,$A106,BK$1))","v":""},{"$f":"IF($A106=\"N/A\",Ref!$B$36,INDEX(Ranks!$1:$1048576,$A106,BL$1))","v":""},{"$f":"IF($A106=\"N/A\",Ref!$B$36,INDEX(Ranks!$1:$1048576,$A106,BM$1))","v":""},{"$f":"IF($A106=\"N/A\",Ref!$B$36,INDEX(Ranks!$1:$1048576,$A106,BN$1))","v":""},{"$f":"IF($A106=\"N/A\",Ref!$B$36,INDEX(Ranks!$1:$1048576,$A106,BO$1))","v":""},{"$f":"IF($A106=\"N/A\",Ref!$B$36,INDEX(Ranks!$1:$1048576,$A106,BP$1))","v":""},{"$f":"IF($A106=\"N/A\",Ref!$B$36,INDEX(Ranks!$1:$1048576,$A106,BQ$1))","v":""},{"$f":"IF($A106=\"N/A\",Ref!$B$36,INDEX(Ranks!$1:$1048576,$A106,BR$1))","v":""},{"$f":"IF($A106=\"N/A\",Ref!$B$36,INDEX(Ranks!$1:$1048576,$A106,BS$1))","v":""},{"$f":"IF($A106=\"N/A\",Ref!$B$36,INDEX(Ranks!$1:$1048576,$A106,BT$1))","v":""},{"$f":"IF($A106=\"N/A\",Ref!$B$36,INDEX(Ranks!$1:$1048576,$A106,BU$1))","v":""},{"$f":"IF($A106=\"N/A\",Ref!$B$36,INDEX(Ranks!$1:$1048576,$A106,BV$1))","v":""},{"$f":"IF($A106=\"N/A\",Ref!$B$36,INDEX(Ranks!$1:$1048576,$A106,BW$1))","v":""},{"$f":"IF($A106=\"N/A\",Ref!$B$36,INDEX(Ranks!$1:$1048576,$A106,BX$1))","v":""},{"$f":"IF($A106=\"N/A\",Ref!$B$36,INDEX(Ranks!$1:$1048576,$A106,BY$1))","v":""},{"$f":"IF($A106=\"N/A\",Ref!$B$36,INDEX(Ranks!$1:$1048576,$A106,BZ$1))","v":""},{"$f":"IF($A106=\"N/A\",Ref!$B$36,INDEX(Ranks!$1:$1048576,$A106,CA$1))","v":""},{"$f":"IF($A106=\"N/A\",Ref!$B$36,INDEX(Ranks!$1:$1048576,$A106,CB$1))","v":""},{"$f":"IF($A106=\"N/A\",Ref!$B$36,INDEX(Ranks!$1:$1048576,$A106,CC$1))","v":""},{"$f":"IF($A106=\"N/A\",Ref!$B$36,INDEX(Ranks!$1:$1048576,$A106,CD$1))","v":""},{"$f":"IF($A106=\"N/A\",Ref!$B$36,INDEX(Ranks!$1:$1048576,$A106,CE$1))","v":""},{"$f":"IF($A106=\"N/A\",Ref!$B$36,INDEX(Ranks!$1:$1048576,$A106,CF$1))","v":""},{"$f":"IF($A106=\"N/A\",Ref!$B$36,INDEX(Ranks!$1:$1048576,$A106,CG$1))","v":""},{"$f":"IF($A106=\"N/A\",Ref!$B$36,INDEX(Ranks!$1:$1048576,$A106,CH$1))","v":""},{"$f":"IF($A106=\"N/A\",Ref!$B$36,INDEX(Ranks!$1:$1048576,$A106,CI$1))","v":""},{"$f":"IF($A106=\"N/A\",Ref!$B$36,INDEX(Ranks!$1:$1048576,$A106,CJ$1))","v":""},{"$f":"IF($A106=\"N/A\",Ref!$B$36,INDEX(Ranks!$1:$1048576,$A106,CK$1))","v":""},{"$f":"IF($A106=\"N/A\",Ref!$B$36,INDEX(Ranks!$1:$1048576,$A106,CL$1))","v":""},{"$f":"IF($A106=\"N/A\",Ref!$B$36,INDEX(Ranks!$1:$1048576,$A106,CM$1))","v":""},{"$f":"IF($A106=\"N/A\",Ref!$B$36,INDEX(Ranks!$1:$1048576,$A106,CN$1))","v":""},{"$f":"IF($A106=\"N/A\",Ref!$B$36,INDEX(Ranks!$1:$1048576,$A106,CO$1))","v":""},{"$f":"IF($A106=\"N/A\",Ref!$B$36,INDEX(Ranks!$1:$1048576,$A106,CP$1))","v":""},{"$f":"IF($A106=\"N/A\",Ref!$B$36,INDEX(Ranks!$1:$1048576,$A106,CQ$1))","v":""},{"$f":"IF($A106=\"N/A\",Ref!$B$36,INDEX(Ranks!$1:$1048576,$A106,CR$1))","v":""},{"$f":"IF($A106=\"N/A\",Ref!$B$36,INDEX(Ranks!$1:$1048576,$A106,CS$1))","v":""},{"$f":"IF($A106=\"N/A\",Ref!$B$36,INDEX(Ranks!$1:$1048576,$A106,CT$1))","v":""},{"$f":"IF($A106=\"N/A\",Ref!$B$36,INDEX(Ranks!$1:$1048576,$A106,CU$1))","v":""},{"$f":"IF($A106=\"N/A\",Ref!$B$36,INDEX(Ranks!$1:$1048576,$A106,CV$1))","v":""},{"$f":"IF($A106=\"N/A\",Ref!$B$36,INDEX(Ranks!$1:$1048576,$A106,CW$1))","v":""},{"$f":"IF($A106=\"N/A\",Ref!$B$36,INDEX(Ranks!$1:$1048576,$A106,CX$1))","v":""},{"$f":"IF($A106=\"N/A\",Ref!$B$36,INDEX(Ranks!$1:$1048576,$A106,CY$1))","v":""},{"$f":"IF($A106=\"N/A\",Ref!$B$36,INDEX(Ranks!$1:$1048576,$A106,CZ$1))","v":""},{"$f":"IF($A106=\"N/A\",Ref!$B$36,INDEX(Ranks!$1:$1048576,$A106,DA$1))","v":""},{"$f":"IF($A106=\"N/A\",Ref!$B$36,INDEX(Ranks!$1:$1048576,$A106,DB$1))","v":""},{"$f":"IF($A106=\"N/A\",Ref!$B$36,INDEX(Ranks!$1:$1048576,$A106,DC$1))","v":""},{"$f":"IF($A106=\"N/A\",Ref!$B$36,INDEX(Ranks!$1:$1048576,$A106,DD$1))","v":""},{"$f":"IF($A106=\"N/A\",Ref!$B$36,INDEX(Ranks!$1:$1048576,$A106,DE$1))","v":""},{"$f":"IF($A106=\"N/A\",Ref!$B$36,INDEX(Ranks!$1:$1048576,$A106,DF$1))","v":""},{"$f":"IF($A106=\"N/A\",Ref!$B$36,INDEX(Ranks!$1:$1048576,$A106,DG$1))","v":""},{"$f":"IF($A106=\"N/A\",Ref!$B$36,INDEX(Ranks!$1:$1048576,$A106,DH$1))","v":""},{"$f":"IF($A106=\"N/A\",Ref!$B$36,INDEX(Ranks!$1:$1048576,$A106,DI$1))","v":""},{"$f":"IF($A106=\"N/A\",Ref!$B$36,INDEX(Ranks!$1:$1048576,$A106,DJ$1))","v":""},{"$f":"IF($A106=\"N/A\",Ref!$B$36,INDEX(Ranks!$1:$1048576,$A106,DK$1))","v":""},{"$f":"IF($A106=\"N/A\",Ref!$B$36,INDEX(Ranks!$1:$1048576,$A106,DL$1))","v":""},{"$f":"IF($A106=\"N/A\",Ref!$B$36,INDEX(Ranks!$1:$1048576,$A106,DM$1))","v":""},{"$f":"IF($A106=\"N/A\",Ref!$B$36,INDEX(Ranks!$1:$1048576,$A106,DN$1))","v":""},{"$f":"IF($A106=\"N/A\",Ref!$B$36,INDEX(Ranks!$1:$1048576,$A106,DO$1))","v":""},{"$f":"IF($A106=\"N/A\",Ref!$B$36,INDEX(Ranks!$1:$1048576,$A106,DP$1))","v":""},{"$f":"IF($A106=\"N/A\",Ref!$B$36,INDEX(Ranks!$1:$1048576,$A106,DQ$1))","v":""},{"$f":"IF($A106=\"N/A\",Ref!$B$36,INDEX(Ranks!$1:$1048576,$A106,DR$1))","v":""},{"$f":"IF($A106=\"N/A\",Ref!$B$36,INDEX(Ranks!$1:$1048576,$A106,DS$1))","v":""},{"$f":"IF($A106=\"N/A\",Ref!$B$36,INDEX(Ranks!$1:$1048576,$A106,DT$1))","v":""},{"$f":"IF($A106=\"N/A\",Ref!$B$36,INDEX(Ranks!$1:$1048576,$A106,DU$1))","v":""},{"$f":"IF($A106=\"N/A\",Ref!$B$36,INDEX(Ranks!$1:$1048576,$A106,DV$1))","v":""},{"$f":"IF($A106=\"N/A\",Ref!$B$36,INDEX(Ranks!$1:$1048576,$A106,DW$1))","v":""},{"$f":"IF($A106=\"N/A\",Ref!$B$36,INDEX(Ranks!$1:$1048576,$A106,DX$1))","v":""},{"$f":"IF($A106=\"N/A\",Ref!$B$36,INDEX(Ranks!$1:$1048576,$A106,DY$1))","v":""},{"$f":"IF($A106=\"N/A\",Ref!$B$36,INDEX(Ranks!$1:$1048576,$A106,DZ$1))","v":""},{"$f":"IF($A106=\"N/A\",Ref!$B$36,INDEX(Ranks!$1:$1048576,$A106,EA$1))","v":""},{"$f":"IF($A106=\"N/A\",Ref!$B$36,INDEX(Ranks!$1:$1048576,$A106,EB$1))","v":""}]
[{"$f":"IFERROR(MATCH('Portfolio Page'!L107,Ranks!L:L,0),\"N/A\")","v":"N/A"},null,{"$f":"IF($A107=\"N/A\",\"\",INDEX(Ranks!$1:$1048576,$A107,C$1))","v":""},{"$f":"IF($A107=\"N/A\",Ref!$B$36,INDEX(Ranks!$1:$1048576,$A107,D$1))","v":""},{"$f":"IF($A107=\"N/A\",Ref!$B$36,INDEX(Ranks!$1:$1048576,$A107,E$1))","v":""},{"$f":"IF($A107=\"N/A\",\"\",INDEX(Ranks!$1:$1048576,$A107,F$1))","v":""},{"$f":"IF($A107=\"N/A\",\"\",INDEX(Ranks!$1:$1048576,$A107,G$1))","v":""},{"$f":"IF($A107=\"N/A\",\"\",INDEX(Ranks!$1:$1048576,$A107,H$1))","v":""},{"$f":"IF($A107=\"N/A\",\"\",INDEX(Ranks!$1:$1048576,$A107,I$1))","v":""},{"$f":"IF($A107=\"N/A\",\"\",INDEX(Ranks!$1:$1048576,$A107,J$1))","v":""},{"$f":"IF($A107=\"N/A\",\"\",INDEX(Ranks!$1:$1048576,$A107,K$1))","v":""},null,{"$f":"IF($A107=\"N/A\",Ref!$B$36,INDEX(Ranks!$1:$1048576,$A107,M$1))","v":""},{"$f":"IF($A107=\"N/A\",Ref!$B$36,INDEX(Ranks!$1:$1048576,$A107,N$1))","v":""},{"$f":"IF($A107=\"N/A\",Ref!$B$36,INDEX(Ranks!$1:$1048576,$A107,O$1))","v":""},{"$f":"IF($A107=\"N/A\",Ref!$B$36,INDEX(Ranks!$1:$1048576,$A107,P$1))","v":""},{"$f":"IF($A107=\"N/A\",Ref!$B$36,INDEX(Ranks!$1:$1048576,$A107,Q$1))","v":""},{"$f":"IF($A107=\"N/A\",Ref!$B$36,INDEX(Ranks!$1:$1048576,$A107,R$1))","v":""},{"$f":"IF($A107=\"N/A\",Ref!$B$36,INDEX(Ranks!$1:$1048576,$A107,S$1))","v":""},{"$f":"IF($A107=\"N/A\",Ref!$B$36,INDEX(Ranks!$1:$1048576,$A107,T$1))","v":""},{"$f":"IF($A107=\"N/A\",Ref!$B$36,INDEX(Ranks!$1:$1048576,$A107,U$1))","v":""},{"$f":"IF($A107=\"N/A\",Ref!$B$36,INDEX(Ranks!$1:$1048576,$A107,V$1))","v":""},{"$f":"IF($A107=\"N/A\",Ref!$B$36,INDEX(Ranks!$1:$1048576,$A107,W$1))","v":""},{"$f":"IF($A107=\"N/A\",Ref!$B$36,INDEX(Ranks!$1:$1048576,$A107,X$1))","v":""},{"$f":"IF($A107=\"N/A\",Ref!$B$36,INDEX(Ranks!$1:$1048576,$A107,Y$1))","v":""},{"$f":"IF($A107=\"N/A\",Ref!$B$36,INDEX(Ranks!$1:$1048576,$A107,Z$1))","v":""},{"$f":"IF($A107=\"N/A\",Ref!$B$36,INDEX(Ranks!$1:$1048576,$A107,AA$1))","v":""},{"$f":"IF($A107=\"N/A\",Ref!$B$36,INDEX(Ranks!$1:$1048576,$A107,AB$1))","v":""},{"$f":"IF($A107=\"N/A\",Ref!$B$36,INDEX(Ranks!$1:$1048576,$A107,AC$1))","v":""},{"$f":"IF($A107=\"N/A\",Ref!$B$36,INDEX(Ranks!$1:$1048576,$A107,AD$1))","v":""},{"$f":"IF($A107=\"N/A\",Ref!$B$36,INDEX(Ranks!$1:$1048576,$A107,AE$1))","v":""},{"$f":"IF($A107=\"N/A\",Ref!$B$36,INDEX(Ranks!$1:$1048576,$A107,AF$1))","v":""},{"$f":"IF($A107=\"N/A\",Ref!$B$36,INDEX(Ranks!$1:$1048576,$A107,AG$1))","v":""},{"$f":"IF($A107=\"N/A\",Ref!$B$36,INDEX(Ranks!$1:$1048576,$A107,AH$1))","v":""},{"$f":"IF($A107=\"N/A\",Ref!$B$36,INDEX(Ranks!$1:$1048576,$A107,AI$1))","v":""},{"$f":"IF($A107=\"N/A\",Ref!$B$36,INDEX(Ranks!$1:$1048576,$A107,AJ$1))","v":""},{"$f":"IF($A107=\"N/A\",Ref!$B$36,INDEX(Ranks!$1:$1048576,$A107,AK$1))","v":""},{"$f":"IF($A107=\"N/A\",Ref!$B$36,INDEX(Ranks!$1:$1048576,$A107,AL$1))","v":""},{"$f":"IF($A107=\"N/A\",Ref!$B$36,INDEX(Ranks!$1:$1048576,$A107,AM$1))","v":""},{"$f":"IF($A107=\"N/A\",Ref!$B$36,INDEX(Ranks!$1:$1048576,$A107,AN$1))","v":""},{"$f":"IF($A107=\"N/A\",Ref!$B$36,INDEX(Ranks!$1:$1048576,$A107,AO$1))","v":""},{"$f":"IF($A107=\"N/A\",Ref!$B$36,INDEX(Ranks!$1:$1048576,$A107,AP$1))","v":""},{"$f":"IF($A107=\"N/A\",Ref!$B$36,INDEX(Ranks!$1:$1048576,$A107,AQ$1))","v":""},{"$f":"IF($A107=\"N/A\",Ref!$B$36,INDEX(Ranks!$1:$1048576,$A107,AR$1))","v":""},{"$f":"IF($A107=\"N/A\",Ref!$B$36,INDEX(Ranks!$1:$1048576,$A107,AS$1))","v":""},{"$f":"IF($A107=\"N/A\",Ref!$B$36,INDEX(Ranks!$1:$1048576,$A107,AT$1))","v":""},{"$f":"IF($A107=\"N/A\",Ref!$B$36,INDEX(Ranks!$1:$1048576,$A107,AU$1))","v":""},{"$f":"IF($A107=\"N/A\",Ref!$B$36,INDEX(Ranks!$1:$1048576,$A107,AV$1))","v":""},{"$f":"IF($A107=\"N/A\",Ref!$B$36,INDEX(Ranks!$1:$1048576,$A107,AW$1))","v":""},{"$f":"IF($A107=\"N/A\",Ref!$B$36,INDEX(Ranks!$1:$1048576,$A107,AX$1))","v":""},{"$f":"IF($A107=\"N/A\",Ref!$B$36,INDEX(Ranks!$1:$1048576,$A107,AY$1))","v":""},{"$f":"IF($A107=\"N/A\",Ref!$B$36,INDEX(Ranks!$1:$1048576,$A107,AZ$1))","v":""},{"$f":"IF($A107=\"N/A\",Ref!$B$36,INDEX(Ranks!$1:$1048576,$A107,BA$1))","v":""},{"$f":"IF($A107=\"N/A\",Ref!$B$36,INDEX(Ranks!$1:$1048576,$A107,BB$1))","v":""},{"$f":"IF($A107=\"N/A\",Ref!$B$36,INDEX(Ranks!$1:$1048576,$A107,BC$1))","v":""},{"$f":"IF($A107=\"N/A\",Ref!$B$36,INDEX(Ranks!$1:$1048576,$A107,BD$1))","v":""},{"$f":"IF($A107=\"N/A\",Ref!$B$36,INDEX(Ranks!$1:$1048576,$A107,BE$1))","v":""},{"$f":"IF($A107=\"N/A\",Ref!$B$36,INDEX(Ranks!$1:$1048576,$A107,BF$1))","v":""},{"$f":"IF($A107=\"N/A\",Ref!$B$36,INDEX(Ranks!$1:$1048576,$A107,BG$1))","v":""},{"$f":"IF($A107=\"N/A\",Ref!$B$36,INDEX(Ranks!$1:$1048576,$A107,BH$1))","v":""},{"$f":"IF($A107=\"N/A\",Ref!$B$36,INDEX(Ranks!$1:$1048576,$A107,BI$1))","v":""},{"$f":"IF($A107=\"N/A\",Ref!$B$36,INDEX(Ranks!$1:$1048576,$A107,BJ$1))","v":""},{"$f":"IF($A107=\"N/A\",Ref!$B$36,INDEX(Ranks!$1:$1048576,$A107,BK$1))","v":""},{"$f":"IF($A107=\"N/A\",Ref!$B$36,INDEX(Ranks!$1:$1048576,$A107,BL$1))","v":""},{"$f":"IF($A107=\"N/A\",Ref!$B$36,INDEX(Ranks!$1:$1048576,$A107,BM$1))","v":""},{"$f":"IF($A107=\"N/A\",Ref!$B$36,INDEX(Ranks!$1:$1048576,$A107,BN$1))","v":""},{"$f":"IF($A107=\"N/A\",Ref!$B$36,INDEX(Ranks!$1:$1048576,$A107,BO$1))","v":""},{"$f":"IF($A107=\"N/A\",Ref!$B$36,INDEX(Ranks!$1:$1048576,$A107,BP$1))","v":""},{"$f":"IF($A107=\"N/A\",Ref!$B$36,INDEX(Ranks!$1:$1048576,$A107,BQ$1))","v":""},{"$f":"IF($A107=\"N/A\",Ref!$B$36,INDEX(Ranks!$1:$1048576,$A107,BR$1))","v":""},{"$f":"IF($A107=\"N/A\",Ref!$B$36,INDEX(Ranks!$1:$1048576,$A107,BS$1))","v":""},{"$f":"IF($A107=\"N/A\",Ref!$B$36,INDEX(Ranks!$1:$1048576,$A107,BT$1))","v":""},{"$f":"IF($A107=\"N/A\",Ref!$B$36,INDEX(Ranks!$1:$1048576,$A107,BU$1))","v":""},{"$f":"IF($A107=\"N/A\",Ref!$B$36,INDEX(Ranks!$1:$1048576,$A107,BV$1))","v":""},{"$f":"IF($A107=\"N/A\",Ref!$B$36,INDEX(Ranks!$1:$1048576,$A107,BW$1))","v":""},{"$f":"IF($A107=\"N/A\",Ref!$B$36,INDEX(Ranks!$1:$1048576,$A107,BX$1))","v":""},{"$f":"IF($A107=\"N/A\",Ref!$B$36,INDEX(Ranks!$1:$1048576,$A107,BY$1))","v":""},{"$f":"IF($A107=\"N/A\",Ref!$B$36,INDEX(Ranks!$1:$1048576,$A107,BZ$1))","v":""},{"$f":"IF($A107=\"N/A\",Ref!$B$36,INDEX(Ranks!$1:$1048576,$A107,CA$1))","v":""},{"$f":"IF($A107=\"N/A\",Ref!$B$36,INDEX(Ranks!$1:$1048576,$A107,CB$1))","v":""},{"$f":"IF($A107=\"N/A\",Ref!$B$36,INDEX(Ranks!$1:$1048576,$A107,CC$1))","v":""},{"$f":"IF($A107=\"N/A\",Ref!$B$36,INDEX(Ranks!$1:$1048576,$A107,CD$1))","v":""},{"$f":"IF($A107=\"N/A\",Ref!$B$36,INDEX(Ranks!$1:$1048576,$A107,CE$1))","v":""},{"$f":"IF($A107=\"N/A\",Ref!$B$36,INDEX(Ranks!$1:$1048576,$A107,CF$1))","v":""},{"$f":"IF($A107=\"N/A\",Ref!$B$36,INDEX(Ranks!$1:$1048576,$A107,CG$1))","v":""},{"$f":"IF($A107=\"N/A\",Ref!$B$36,INDEX(Ranks!$1:$1048576,$A107,CH$1))","v":""},{"$f":"IF($A107=\"N/A\",Ref!$B$36,INDEX(Ranks!$1:$1048576,$A107,CI$1))","v":""},{"$f":"IF($A107=\"N/A\",Ref!$B$36,INDEX(Ranks!$1:$1048576,$A107,CJ$1))","v":""},{"$f":"IF($A107=\"N/A\",Ref!$B$36,INDEX(Ranks!$1:$1048576,$A107,CK$1))","v":""},{"$f":"IF($A107=\"N/A\",Ref!$B$36,INDEX(Ranks!$1:$1048576,$A107,CL$1))","v":""},{"$f":"IF($A107=\"N/A\",Ref!$B$36,INDEX(Ranks!$1:$1048576,$A107,CM$1))","v":""},{"$f":"IF($A107=\"N/A\",Ref!$B$36,INDEX(Ranks!$1:$1048576,$A107,CN$1))","v":""},{"$f":"IF($A107=\"N/A\",Ref!$B$36,INDEX(Ranks!$1:$1048576,$A107,CO$1))","v":""},{"$f":"IF($A107=\"N/A\",Ref!$B$36,INDEX(Ranks!$1:$1048576,$A107,CP$1))","v":""},{"$f":"IF($A107=\"N/A\",Ref!$B$36,INDEX(Ranks!$1:$1048576,$A107,CQ$1))","v":""},{"$f":"IF($A107=\"N/A\",Ref!$B$36,INDEX(Ranks!$1:$1048576,$A107,CR$1))","v":""},{"$f":"IF($A107=\"N/A\",Ref!$B$36,INDEX(Ranks!$1:$1048576,$A107,CS$1))","v":""},{"$f":"IF($A107=\"N/A\",Ref!$B$36,INDEX(Ranks!$1:$1048576,$A107,CT$1))","v":""},{"$f":"IF($A107=\"N/A\",Ref!$B$36,INDEX(Ranks!$1:$1048576,$A107,CU$1))","v":""},{"$f":"IF($A107=\"N/A\",Ref!$B$36,INDEX(Ranks!$1:$1048576,$A107,CV$1))","v":""},{"$f":"IF($A107=\"N/A\",Ref!$B$36,INDEX(Ranks!$1:$1048576,$A107,CW$1))","v":""},{"$f":"IF($A107=\"N/A\",Ref!$B$36,INDEX(Ranks!$1:$1048576,$A107,CX$1))","v":""},{"$f":"IF($A107=\"N/A\",Ref!$B$36,INDEX(Ranks!$1:$1048576,$A107,CY$1))","v":""},{"$f":"IF($A107=\"N/A\",Ref!$B$36,INDEX(Ranks!$1:$1048576,$A107,CZ$1))","v":""},{"$f":"IF($A107=\"N/A\",Ref!$B$36,INDEX(Ranks!$1:$1048576,$A107,DA$1))","v":""},{"$f":"IF($A107=\"N/A\",Ref!$B$36,INDEX(Ranks!$1:$1048576,$A107,DB$1))","v":""},{"$f":"IF($A107=\"N/A\",Ref!$B$36,INDEX(Ranks!$1:$1048576,$A107,DC$1))","v":""},{"$f":"IF($A107=\"N/A\",Ref!$B$36,INDEX(Ranks!$1:$1048576,$A107,DD$1))","v":""},{"$f":"IF($A107=\"N/A\",Ref!$B$36,INDEX(Ranks!$1:$1048576,$A107,DE$1))","v":""},{"$f":"IF($A107=\"N/A\",Ref!$B$36,INDEX(Ranks!$1:$1048576,$A107,DF$1))","v":""},{"$f":"IF($A107=\"N/A\",Ref!$B$36,INDEX(Ranks!$1:$1048576,$A107,DG$1))","v":""},{"$f":"IF($A107=\"N/A\",Ref!$B$36,INDEX(Ranks!$1:$1048576,$A107,DH$1))","v":""},{"$f":"IF($A107=\"N/A\",Ref!$B$36,INDEX(Ranks!$1:$1048576,$A107,DI$1))","v":""},{"$f":"IF($A107=\"N/A\",Ref!$B$36,INDEX(Ranks!$1:$1048576,$A107,DJ$1))","v":""},{"$f":"IF($A107=\"N/A\",Ref!$B$36,INDEX(Ranks!$1:$1048576,$A107,DK$1))","v":""},{"$f":"IF($A107=\"N/A\",Ref!$B$36,INDEX(Ranks!$1:$1048576,$A107,DL$1))","v":""},{"$f":"IF($A107=\"N/A\",Ref!$B$36,INDEX(Ranks!$1:$1048576,$A107,DM$1))","v":""},{"$f":"IF($A107=\"N/A\",Ref!$B$36,INDEX(Ranks!$1:$1048576,$A107,DN$1))","v":""},{"$f":"IF($A107=\"N/A\",Ref!$B$36,INDEX(Ranks!$1:$1048576,$A107,DO$1))","v":""},{"$f":"IF($A107=\"N/A\",Ref!$B$36,INDEX(Ranks!$1:$1048576,$A107,DP$1))","v":""},{"$f":"IF($A107=\"N/A\",Ref!$B$36,INDEX(Ranks!$1:$1048576,$A107,DQ$1))","v":""},{"$f":"IF($A107=\"N/A\",Ref!$B$36,INDEX(Ranks!$1:$1048576,$A107,DR$1))","v":""},{"$f":"IF($A107=\"N/A\",Ref!$B$36,INDEX(Ranks!$1:$1048576,$A107,DS$1))","v":""},{"$f":"IF($A107=\"N/A\",Ref!$B$36,INDEX(Ranks!$1:$1048576,$A107,DT$1))","v":""},{"$f":"IF($A107=\"N/A\",Ref!$B$36,INDEX(Ranks!$1:$1048576,$A107,DU$1))","v":""},{"$f":"IF($A107=\"N/A\",Ref!$B$36,INDEX(Ranks!$1:$1048576,$A107,DV$1))","v":""},{"$f":"IF($A107=\"N/A\",Ref!$B$36,INDEX(Ranks!$1:$1048576,$A107,DW$1))","v":""},{"$f":"IF($A107=\"N/A\",Ref!$B$36,INDEX(Ranks!$1:$1048576,$A107,DX$1))","v":""},{"$f":"IF($A107=\"N/A\",Ref!$B$36,INDEX(Ranks!$1:$1048576,$A107,DY$1))","v":""},{"$f":"IF($A107=\"N/A\",Ref!$B$36,INDEX(Ranks!$1:$1048576,$A107,DZ$1))","v":""},{"$f":"IF($A107=\"N/A\",Ref!$B$36,INDEX(Ranks!$1:$1048576,$A107,EA$1))","v":""},{"$f":"IF($A107=\"N/A\",Ref!$B$36,INDEX(Ranks!$1:$1048576,$A107,EB$1))","v":""}]
[{"$f":"IFERROR(MATCH('Portfolio Page'!L108,Ranks!L:L,0),\"N/A\")","v":"N/A"},null,{"$f":"IF($A108=\"N/A\",\"\",INDEX(Ranks!$1:$1048576,$A108,C$1))","v":""},{"$f":"IF($A108=\"N/A\",Ref!$B$36,INDEX(Ranks!$1:$1048576,$A108,D$1))","v":""},{"$f":"IF($A108=\"N/A\",Ref!$B$36,INDEX(Ranks!$1:$1048576,$A108,E$1))","v":""},{"$f":"IF($A108=\"N/A\",\"\",INDEX(Ranks!$1:$1048576,$A108,F$1))","v":""},{"$f":"IF($A108=\"N/A\",\"\",INDEX(Ranks!$1:$1048576,$A108,G$1))","v":""},{"$f":"IF($A108=\"N/A\",\"\",INDEX(Ranks!$1:$1048576,$A108,H$1))","v":""},{"$f":"IF($A108=\"N/A\",\"\",INDEX(Ranks!$1:$1048576,$A108,I$1))","v":""},{"$f":"IF($A108=\"N/A\",\"\",INDEX(Ranks!$1:$1048576,$A108,J$1))","v":""},{"$f":"IF($A108=\"N/A\",\"\",INDEX(Ranks!$1:$1048576,$A108,K$1))","v":""},null,{"$f":"IF($A108=\"N/A\",Ref!$B$36,INDEX(Ranks!$1:$1048576,$A108,M$1))","v":""},{"$f":"IF($A108=\"N/A\",Ref!$B$36,INDEX(Ranks!$1:$1048576,$A108,N$1))","v":""},{"$f":"IF($A108=\"N/A\",Ref!$B$36,INDEX(Ranks!$1:$1048576,$A108,O$1))","v":""},{"$f":"IF($A108=\"N/A\",Ref!$B$36,INDEX(Ranks!$1:$1048576,$A108,P$1))","v":""},{"$f":"IF($A108=\"N/A\",Ref!$B$36,INDEX(Ranks!$1:$1048576,$A108,Q$1))","v":""},{"$f":"IF($A108=\"N/A\",Ref!$B$36,INDEX(Ranks!$1:$1048576,$A108,R$1))","v":""},{"$f":"IF($A108=\"N/A\",Ref!$B$36,INDEX(Ranks!$1:$1048576,$A108,S$1))","v":""},{"$f":"IF($A108=\"N/A\",Ref!$B$36,INDEX(Ranks!$1:$1048576,$A108,T$1))","v":""},{"$f":"IF($A108=\"N/A\",Ref!$B$36,INDEX(Ranks!$1:$1048576,$A108,U$1))","v":""},{"$f":"IF($A108=\"N/A\",Ref!$B$36,INDEX(Ranks!$1:$1048576,$A108,V$1))","v":""},{"$f":"IF($A108=\"N/A\",Ref!$B$36,INDEX(Ranks!$1:$1048576,$A108,W$1))","v":""},{"$f":"IF($A108=\"N/A\",Ref!$B$36,INDEX(Ranks!$1:$1048576,$A108,X$1))","v":""},{"$f":"IF($A108=\"N/A\",Ref!$B$36,INDEX(Ranks!$1:$1048576,$A108,Y$1))","v":""},{"$f":"IF($A108=\"N/A\",Ref!$B$36,INDEX(Ranks!$1:$1048576,$A108,Z$1))","v":""},{"$f":"IF($A108=\"N/A\",Ref!$B$36,INDEX(Ranks!$1:$1048576,$A108,AA$1))","v":""},{"$f":"IF($A108=\"N/A\",Ref!$B$36,INDEX(Ranks!$1:$1048576,$A108,AB$1))","v":""},{"$f":"IF($A108=\"N/A\",Ref!$B$36,INDEX(Ranks!$1:$1048576,$A108,AC$1))","v":""},{"$f":"IF($A108=\"N/A\",Ref!$B$36,INDEX(Ranks!$1:$1048576,$A108,AD$1))","v":""},{"$f":"IF($A108=\"N/A\",Ref!$B$36,INDEX(Ranks!$1:$1048576,$A108,AE$1))","v":""},{"$f":"IF($A108=\"N/A\",Ref!$B$36,INDEX(Ranks!$1:$1048576,$A108,AF$1))","v":""},{"$f":"IF($A108=\"N/A\",Ref!$B$36,INDEX(Ranks!$1:$1048576,$A108,AG$1))","v":""},{"$f":"IF($A108=\"N/A\",Ref!$B$36,INDEX(Ranks!$1:$1048576,$A108,AH$1))","v":""},{"$f":"IF($A108=\"N/A\",Ref!$B$36,INDEX(Ranks!$1:$1048576,$A108,AI$1))","v":""},{"$f":"IF($A108=\"N/A\",Ref!$B$36,INDEX(Ranks!$1:$1048576,$A108,AJ$1))","v":""},{"$f":"IF($A108=\"N/A\",Ref!$B$36,INDEX(Ranks!$1:$1048576,$A108,AK$1))","v":""},{"$f":"IF($A108=\"N/A\",Ref!$B$36,INDEX(Ranks!$1:$1048576,$A108,AL$1))","v":""},{"$f":"IF($A108=\"N/A\",Ref!$B$36,INDEX(Ranks!$1:$1048576,$A108,AM$1))","v":""},{"$f":"IF($A108=\"N/A\",Ref!$B$36,INDEX(Ranks!$1:$1048576,$A108,AN$1))","v":""},{"$f":"IF($A108=\"N/A\",Ref!$B$36,INDEX(Ranks!$1:$1048576,$A108,AO$1))","v":""},{"$f":"IF($A108=\"N/A\",Ref!$B$36,INDEX(Ranks!$1:$1048576,$A108,AP$1))","v":""},{"$f":"IF($A108=\"N/A\",Ref!$B$36,INDEX(Ranks!$1:$1048576,$A108,AQ$1))","v":""},{"$f":"IF($A108=\"N/A\",Ref!$B$36,INDEX(Ranks!$1:$1048576,$A108,AR$1))","v":""},{"$f":"IF($A108=\"N/A\",Ref!$B$36,INDEX(Ranks!$1:$1048576,$A108,AS$1))","v":""},{"$f":"IF($A108=\"N/A\",Ref!$B$36,INDEX(Ranks!$1:$1048576,$A108,AT$1))","v":""},{"$f":"IF($A108=\"N/A\",Ref!$B$36,INDEX(Ranks!$1:$1048576,$A108,AU$1))","v":""},{"$f":"IF($A108=\"N/A\",Ref!$B$36,INDEX(Ranks!$1:$1048576,$A108,AV$1))","v":""},{"$f":"IF($A108=\"N/A\",Ref!$B$36,INDEX(Ranks!$1:$1048576,$A108,AW$1))","v":""},{"$f":"IF($A108=\"N/A\",Ref!$B$36,INDEX(Ranks!$1:$1048576,$A108,AX$1))","v":""},{"$f":"IF($A108=\"N/A\",Ref!$B$36,INDEX(Ranks!$1:$1048576,$A108,AY$1))","v":""},{"$f":"IF($A108=\"N/A\",Ref!$B$36,INDEX(Ranks!$1:$1048576,$A108,AZ$1))","v":""},{"$f":"IF($A108=\"N/A\",Ref!$B$36,INDEX(Ranks!$1:$1048576,$A108,BA$1))","v":""},{"$f":"IF($A108=\"N/A\",Ref!$B$36,INDEX(Ranks!$1:$1048576,$A108,BB$1))","v":""},{"$f":"IF($A108=\"N/A\",Ref!$B$36,INDEX(Ranks!$1:$1048576,$A108,BC$1))","v":""},{"$f":"IF($A108=\"N/A\",Ref!$B$36,INDEX(Ranks!$1:$1048576,$A108,BD$1))","v":""},{"$f":"IF($A108=\"N/A\",Ref!$B$36,INDEX(Ranks!$1:$1048576,$A108,BE$1))","v":""},{"$f":"IF($A108=\"N/A\",Ref!$B$36,INDEX(Ranks!$1:$1048576,$A108,BF$1))","v":""},{"$f":"IF($A108=\"N/A\",Ref!$B$36,INDEX(Ranks!$1:$1048576,$A108,BG$1))","v":""},{"$f":"IF($A108=\"N/A\",Ref!$B$36,INDEX(Ranks!$1:$1048576,$A108,BH$1))","v":""},{"$f":"IF($A108=\"N/A\",Ref!$B$36,INDEX(Ranks!$1:$1048576,$A108,BI$1))","v":""},{"$f":"IF($A108=\"N/A\",Ref!$B$36,INDEX(Ranks!$1:$1048576,$A108,BJ$1))","v":""},{"$f":"IF($A108=\"N/A\",Ref!$B$36,INDEX(Ranks!$1:$1048576,$A108,BK$1))","v":""},{"$f":"IF($A108=\"N/A\",Ref!$B$36,INDEX(Ranks!$1:$1048576,$A108,BL$1))","v":""},{"$f":"IF($A108=\"N/A\",Ref!$B$36,INDEX(Ranks!$1:$1048576,$A108,BM$1))","v":""},{"$f":"IF($A108=\"N/A\",Ref!$B$36,INDEX(Ranks!$1:$1048576,$A108,BN$1))","v":""},{"$f":"IF($A108=\"N/A\",Ref!$B$36,INDEX(Ranks!$1:$1048576,$A108,BO$1))","v":""},{"$f":"IF($A108=\"N/A\",Ref!$B$36,INDEX(Ranks!$1:$1048576,$A108,BP$1))","v":""},{"$f":"IF($A108=\"N/A\",Ref!$B$36,INDEX(Ranks!$1:$1048576,$A108,BQ$1))","v":""},{"$f":"IF($A108=\"N/A\",Ref!$B$36,INDEX(Ranks!$1:$1048576,$A108,BR$1))","v":""},{"$f":"IF($A108=\"N/A\",Ref!$B$36,INDEX(Ranks!$1:$1048576,$A108,BS$1))","v":""},{"$f":"IF($A108=\"N/A\",Ref!$B$36,INDEX(Ranks!$1:$1048576,$A108,BT$1))","v":""},{"$f":"IF($A108=\"N/A\",Ref!$B$36,INDEX(Ranks!$1:$1048576,$A108,BU$1))","v":""},{"$f":"IF($A108=\"N/A\",Ref!$B$36,INDEX(Ranks!$1:$1048576,$A108,BV$1))","v":""},{"$f":"IF($A108=\"N/A\",Ref!$B$36,INDEX(Ranks!$1:$1048576,$A108,BW$1))","v":""},{"$f":"IF($A108=\"N/A\",Ref!$B$36,INDEX(Ranks!$1:$1048576,$A108,BX$1))","v":""},{"$f":"IF($A108=\"N/A\",Ref!$B$36,INDEX(Ranks!$1:$1048576,$A108,BY$1))","v":""},{"$f":"IF($A108=\"N/A\",Ref!$B$36,INDEX(Ranks!$1:$1048576,$A108,BZ$1))","v":""},{"$f":"IF($A108=\"N/A\",Ref!$B$36,INDEX(Ranks!$1:$1048576,$A108,CA$1))","v":""},{"$f":"IF($A108=\"N/A\",Ref!$B$36,INDEX(Ranks!$1:$1048576,$A108,CB$1))","v":""},{"$f":"IF($A108=\"N/A\",Ref!$B$36,INDEX(Ranks!$1:$1048576,$A108,CC$1))","v":""},{"$f":"IF($A108=\"N/A\",Ref!$B$36,INDEX(Ranks!$1:$1048576,$A108,CD$1))","v":""},{"$f":"IF($A108=\"N/A\",Ref!$B$36,INDEX(Ranks!$1:$1048576,$A108,CE$1))","v":""},{"$f":"IF($A108=\"N/A\",Ref!$B$36,INDEX(Ranks!$1:$1048576,$A108,CF$1))","v":""},{"$f":"IF($A108=\"N/A\",Ref!$B$36,INDEX(Ranks!$1:$1048576,$A108,CG$1))","v":""},{"$f":"IF($A108=\"N/A\",Ref!$B$36,INDEX(Ranks!$1:$1048576,$A108,CH$1))","v":""},{"$f":"IF($A108=\"N/A\",Ref!$B$36,INDEX(Ranks!$1:$1048576,$A108,CI$1))","v":""},{"$f":"IF($A108=\"N/A\",Ref!$B$36,INDEX(Ranks!$1:$1048576,$A108,CJ$1))","v":""},{"$f":"IF($A108=\"N/A\",Ref!$B$36,INDEX(Ranks!$1:$1048576,$A108,CK$1))","v":""},{"$f":"IF($A108=\"N/A\",Ref!$B$36,INDEX(Ranks!$1:$1048576,$A108,CL$1))","v":""},{"$f":"IF($A108=\"N/A\",Ref!$B$36,INDEX(Ranks!$1:$1048576,$A108,CM$1))","v":""},{"$f":"IF($A108=\"N/A\",Ref!$B$36,INDEX(Ranks!$1:$1048576,$A108,CN$1))","v":""},{"$f":"IF($A108=\"N/A\",Ref!$B$36,INDEX(Ranks!$1:$1048576,$A108,CO$1))","v":""},{"$f":"IF($A108=\"N/A\",Ref!$B$36,INDEX(Ranks!$1:$1048576,$A108,CP$1))","v":""},{"$f":"IF($A108=\"N/A\",Ref!$B$36,INDEX(Ranks!$1:$1048576,$A108,CQ$1))","v":""},{"$f":"IF($A108=\"N/A\",Ref!$B$36,INDEX(Ranks!$1:$1048576,$A108,CR$1))","v":""},{"$f":"IF($A108=\"N/A\",Ref!$B$36,INDEX(Ranks!$1:$1048576,$A108,CS$1))","v":""},{"$f":"IF($A108=\"N/A\",Ref!$B$36,INDEX(Ranks!$1:$1048576,$A108,CT$1))","v":""},{"$f":"IF($A108=\"N/A\",Ref!$B$36,INDEX(Ranks!$1:$1048576,$A108,CU$1))","v":""},{"$f":"IF($A108=\"N/A\",Ref!$B$36,INDEX(Ranks!$1:$1048576,$A108,CV$1))","v":""},{"$f":"IF($A108=\"N/A\",Ref!$B$36,INDEX(Ranks!$1:$1048576,$A108,CW$1))","v":""},{"$f":"IF($A108=\"N/A\",Ref!$B$36,INDEX(Ranks!$1:$1048576,$A108,CX$1))","v":""},{"$f":"IF($A108=\"N/A\",Ref!$B$36,INDEX(Ranks!$1:$1048576,$A108,CY$1))","v":""},{"$f":"IF($A108=\"N/A\",Ref!$B$36,INDEX(Ranks!$1:$1048576,$A108,CZ$1))","v":""},{"$f":"IF($A108=\"N/A\",Ref!$B$36,INDEX(Ranks!$1:$1048576,$A108,DA$1))","v":""},{"$f":"IF($A108=\"N/A\",Ref!$B$36,INDEX(Ranks!$1:$1048576,$A108,DB$1))","v":""},{"$f":"IF($A108=\"N/A\",Ref!$B$36,INDEX(Ranks!$1:$1048576,$A108,DC$1))","v":""},{"$f":"IF($A108=\"N/A\",Ref!$B$36,INDEX(Ranks!$1:$1048576,$A108,DD$1))","v":""},{"$f":"IF($A108=\"N/A\",Ref!$B$36,INDEX(Ranks!$1:$1048576,$A108,DE$1))","v":""},{"$f":"IF($A108=\"N/A\",Ref!$B$36,INDEX(Ranks!$1:$1048576,$A108,DF$1))","v":""},{"$f":"IF($A108=\"N/A\",Ref!$B$36,INDEX(Ranks!$1:$1048576,$A108,DG$1))","v":""},{"$f":"IF($A108=\"N/A\",Ref!$B$36,INDEX(Ranks!$1:$1048576,$A108,DH$1))","v":""},{"$f":"IF($A108=\"N/A\",Ref!$B$36,INDEX(Ranks!$1:$1048576,$A108,DI$1))","v":""},{"$f":"IF($A108=\"N/A\",Ref!$B$36,INDEX(Ranks!$1:$1048576,$A108,DJ$1))","v":""},{"$f":"IF($A108=\"N/A\",Ref!$B$36,INDEX(Ranks!$1:$1048576,$A108,DK$1))","v":""},{"$f":"IF($A108=\"N/A\",Ref!$B$36,INDEX(Ranks!$1:$1048576,$A108,DL$1))","v":""},{"$f":"IF($A108=\"N/A\",Ref!$B$36,INDEX(Ranks!$1:$1048576,$A108,DM$1))","v":""},{"$f":"IF($A108=\"N/A\",Ref!$B$36,INDEX(Ranks!$1:$1048576,$A108,DN$1))","v":""},{"$f":"IF($A108=\"N/A\",Ref!$B$36,INDEX(Ranks!$1:$1048576,$A108,DO$1))","v":""},{"$f":"IF($A108=\"N/A\",Ref!$B$36,INDEX(Ranks!$1:$1048576,$A108,DP$1))","v":""},{"$f":"IF($A108=\"N/A\",Ref!$B$36,INDEX(Ranks!$1:$1048576,$A108,DQ$1))","v":""},{"$f":"IF($A108=\"N/A\",Ref!$B$36,INDEX(Ranks!$1:$1048576,$A108,DR$1))","v":""},{"$f":"IF($A108=\"N/A\",Ref!$B$36,INDEX(Ranks!$1:$1048576,$A108,DS$1))","v":""},{"$f":"IF($A108=\"N/A\",Ref!$B$36,INDEX(Ranks!$1:$1048576,$A108,DT$1))","v":""},{"$f":"IF($A108=\"N/A\",Ref!$B$36,INDEX(Ranks!$1:$1048576,$A108,DU$1))","v":""},{"$f":"IF($A108=\"N/A\",Ref!$B$36,INDEX(Ranks!$1:$1048576,$A108,DV$1))","v":""},{"$f":"IF($A108=\"N/A\",Ref!$B$36,INDEX(Ranks!$1:$1048576,$A108,DW$1))","v":""},{"$f":"IF($A108=\"N/A\",Ref!$B$36,INDEX(Ranks!$1:$1048576,$A108,DX$1))","v":""},{"$f":"IF($A108=\"N/A\",Ref!$B$36,INDEX(Ranks!$1:$1048576,$A108,DY$1))","v":""},{"$f":"IF($A108=\"N/A\",Ref!$B$36,INDEX(Ranks!$1:$1048576,$A108,DZ$1))","v":""},{"$f":"IF($A108=\"N/A\",Ref!$B$36,INDEX(Ranks!$1:$1048576,$A108,EA$1))","v":""},{"$f":"IF($A108=\"N/A\",Ref!$B$36,INDEX(Ranks!$1:$1048576,$A108,EB$1))","v":""}]
[{"$f":"IFERROR(MATCH('Portfolio Page'!L109,Ranks!L:L,0),\"N/A\")","v":"N/A"},null,{"$f":"IF($A109=\"N/A\",\"\",INDEX(Ranks!$1:$1048576,$A109,C$1))","v":""},{"$f":"IF($A109=\"N/A\",Ref!$B$36,INDEX(Ranks!$1:$1048576,$A109,D$1))","v":""},{"$f":"IF($A109=\"N/A\",Ref!$B$36,INDEX(Ranks!$1:$1048576,$A109,E$1))","v":""},{"$f":"IF($A109=\"N/A\",\"\",INDEX(Ranks!$1:$1048576,$A109,F$1))","v":""},{"$f":"IF($A109=\"N/A\",\"\",INDEX(Ranks!$1:$1048576,$A109,G$1))","v":""},{"$f":"IF($A109=\"N/A\",\"\",INDEX(Ranks!$1:$1048576,$A109,H$1))","v":""},{"$f":"IF($A109=\"N/A\",\"\",INDEX(Ranks!$1:$1048576,$A109,I$1))","v":""},{"$f":"IF($A109=\"N/A\",\"\",INDEX(Ranks!$1:$1048576,$A109,J$1))","v":""},{"$f":"IF($A109=\"N/A\",\"\",INDEX(Ranks!$1:$1048576,$A109,K$1))","v":""},null,{"$f":"IF($A109=\"N/A\",Ref!$B$36,INDEX(Ranks!$1:$1048576,$A109,M$1))","v":""},{"$f":"IF($A109=\"N/A\",Ref!$B$36,INDEX(Ranks!$1:$1048576,$A109,N$1))","v":""},{"$f":"IF($A109=\"N/A\",Ref!$B$36,INDEX(Ranks!$1:$1048576,$A109,O$1))","v":""},{"$f":"IF($A109=\"N/A\",Ref!$B$36,INDEX(Ranks!$1:$1048576,$A109,P$1))","v":""},{"$f":"IF($A109=\"N/A\",Ref!$B$36,INDEX(Ranks!$1:$1048576,$A109,Q$1))","v":""},{"$f":"IF($A109=\"N/A\",Ref!$B$36,INDEX(Ranks!$1:$1048576,$A109,R$1))","v":""},{"$f":"IF($A109=\"N/A\",Ref!$B$36,INDEX(Ranks!$1:$1048576,$A109,S$1))","v":""},{"$f":"IF($A109=\"N/A\",Ref!$B$36,INDEX(Ranks!$1:$1048576,$A109,T$1))","v":""},{"$f":"IF($A109=\"N/A\",Ref!$B$36,INDEX(Ranks!$1:$1048576,$A109,U$1))","v":""},{"$f":"IF($A109=\"N/A\",Ref!$B$36,INDEX(Ranks!$1:$1048576,$A109,V$1))","v":""},{"$f":"IF($A109=\"N/A\",Ref!$B$36,INDEX(Ranks!$1:$1048576,$A109,W$1))","v":""},{"$f":"IF($A109=\"N/A\",Ref!$B$36,INDEX(Ranks!$1:$1048576,$A109,X$1))","v":""},{"$f":"IF($A109=\"N/A\",Ref!$B$36,INDEX(Ranks!$1:$1048576,$A109,Y$1))","v":""},{"$f":"IF($A109=\"N/A\",Ref!$B$36,INDEX(Ranks!$1:$1048576,$A109,Z$1))","v":""},{"$f":"IF($A109=\"N/A\",Ref!$B$36,INDEX(Ranks!$1:$1048576,$A109,AA$1))","v":""},{"$f":"IF($A109=\"N/A\",Ref!$B$36,INDEX(Ranks!$1:$1048576,$A109,AB$1))","v":""},{"$f":"IF($A109=\"N/A\",Ref!$B$36,INDEX(Ranks!$1:$1048576,$A109,AC$1))","v":""},{"$f":"IF($A109=\"N/A\",Ref!$B$36,INDEX(Ranks!$1:$1048576,$A109,AD$1))","v":""},{"$f":"IF($A109=\"N/A\",Ref!$B$36,INDEX(Ranks!$1:$1048576,$A109,AE$1))","v":""},{"$f":"IF($A109=\"N/A\",Ref!$B$36,INDEX(Ranks!$1:$1048576,$A109,AF$1))","v":""},{"$f":"IF($A109=\"N/A\",Ref!$B$36,INDEX(Ranks!$1:$1048576,$A109,AG$1))","v":""},{"$f":"IF($A109=\"N/A\",Ref!$B$36,INDEX(Ranks!$1:$1048576,$A109,AH$1))","v":""},{"$f":"IF($A109=\"N/A\",Ref!$B$36,INDEX(Ranks!$1:$1048576,$A109,AI$1))","v":""},{"$f":"IF($A109=\"N/A\",Ref!$B$36,INDEX(Ranks!$1:$1048576,$A109,AJ$1))","v":""},{"$f":"IF($A109=\"N/A\",Ref!$B$36,INDEX(Ranks!$1:$1048576,$A109,AK$1))","v":""},{"$f":"IF($A109=\"N/A\",Ref!$B$36,INDEX(Ranks!$1:$1048576,$A109,AL$1))","v":""},{"$f":"IF($A109=\"N/A\",Ref!$B$36,INDEX(Ranks!$1:$1048576,$A109,AM$1))","v":""},{"$f":"IF($A109=\"N/A\",Ref!$B$36,INDEX(Ranks!$1:$1048576,$A109,AN$1))","v":""},{"$f":"IF($A109=\"N/A\",Ref!$B$36,INDEX(Ranks!$1:$1048576,$A109,AO$1))","v":""},{"$f":"IF($A109=\"N/A\",Ref!$B$36,INDEX(Ranks!$1:$1048576,$A109,AP$1))","v":""},{"$f":"IF($A109=\"N/A\",Ref!$B$36,INDEX(Ranks!$1:$1048576,$A109,AQ$1))","v":""},{"$f":"IF($A109=\"N/A\",Ref!$B$36,INDEX(Ranks!$1:$1048576,$A109,AR$1))","v":""},{"$f":"IF($A109=\"N/A\",Ref!$B$36,INDEX(Ranks!$1:$1048576,$A109,AS$1))","v":""},{"$f":"IF($A109=\"N/A\",Ref!$B$36,INDEX(Ranks!$1:$1048576,$A109,AT$1))","v":""},{"$f":"IF($A109=\"N/A\",Ref!$B$36,INDEX(Ranks!$1:$1048576,$A109,AU$1))","v":""},{"$f":"IF($A109=\"N/A\",Ref!$B$36,INDEX(Ranks!$1:$1048576,$A109,AV$1))","v":""},{"$f":"IF($A109=\"N/A\",Ref!$B$36,INDEX(Ranks!$1:$1048576,$A109,AW$1))","v":""},{"$f":"IF($A109=\"N/A\",Ref!$B$36,INDEX(Ranks!$1:$1048576,$A109,AX$1))","v":""},{"$f":"IF($A109=\"N/A\",Ref!$B$36,INDEX(Ranks!$1:$1048576,$A109,AY$1))","v":""},{"$f":"IF($A109=\"N/A\",Ref!$B$36,INDEX(Ranks!$1:$1048576,$A109,AZ$1))","v":""},{"$f":"IF($A109=\"N/A\",Ref!$B$36,INDEX(Ranks!$1:$1048576,$A109,BA$1))","v":""},{"$f":"IF($A109=\"N/A\",Ref!$B$36,INDEX(Ranks!$1:$1048576,$A109,BB$1))","v":""},{"$f":"IF($A109=\"N/A\",Ref!$B$36,INDEX(Ranks!$1:$1048576,$A109,BC$1))","v":""},{"$f":"IF($A109=\"N/A\",Ref!$B$36,INDEX(Ranks!$1:$1048576,$A109,BD$1))","v":""},{"$f":"IF($A109=\"N/A\",Ref!$B$36,INDEX(Ranks!$1:$1048576,$A109,BE$1))","v":""},{"$f":"IF($A109=\"N/A\",Ref!$B$36,INDEX(Ranks!$1:$1048576,$A109,BF$1))","v":""},{"$f":"IF($A109=\"N/A\",Ref!$B$36,INDEX(Ranks!$1:$1048576,$A109,BG$1))","v":""},{"$f":"IF($A109=\"N/A\",Ref!$B$36,INDEX(Ranks!$1:$1048576,$A109,BH$1))","v":""},{"$f":"IF($A109=\"N/A\",Ref!$B$36,INDEX(Ranks!$1:$1048576,$A109,BI$1))","v":""},{"$f":"IF($A109=\"N/A\",Ref!$B$36,INDEX(Ranks!$1:$1048576,$A109,BJ$1))","v":""},{"$f":"IF($A109=\"N/A\",Ref!$B$36,INDEX(Ranks!$1:$1048576,$A109,BK$1))","v":""},{"$f":"IF($A109=\"N/A\",Ref!$B$36,INDEX(Ranks!$1:$1048576,$A109,BL$1))","v":""},{"$f":"IF($A109=\"N/A\",Ref!$B$36,INDEX(Ranks!$1:$1048576,$A109,BM$1))","v":""},{"$f":"IF($A109=\"N/A\",Ref!$B$36,INDEX(Ranks!$1:$1048576,$A109,BN$1))","v":""},{"$f":"IF($A109=\"N/A\",Ref!$B$36,INDEX(Ranks!$1:$1048576,$A109,BO$1))","v":""},{"$f":"IF($A109=\"N/A\",Ref!$B$36,INDEX(Ranks!$1:$1048576,$A109,BP$1))","v":""},{"$f":"IF($A109=\"N/A\",Ref!$B$36,INDEX(Ranks!$1:$1048576,$A109,BQ$1))","v":""},{"$f":"IF($A109=\"N/A\",Ref!$B$36,INDEX(Ranks!$1:$1048576,$A109,BR$1))","v":""},{"$f":"IF($A109=\"N/A\",Ref!$B$36,INDEX(Ranks!$1:$1048576,$A109,BS$1))","v":""},{"$f":"IF($A109=\"N/A\",Ref!$B$36,INDEX(Ranks!$1:$1048576,$A109,BT$1))","v":""},{"$f":"IF($A109=\"N/A\",Ref!$B$36,INDEX(Ranks!$1:$1048576,$A109,BU$1))","v":""},{"$f":"IF($A109=\"N/A\",Ref!$B$36,INDEX(Ranks!$1:$1048576,$A109,BV$1))","v":""},{"$f":"IF($A109=\"N/A\",Ref!$B$36,INDEX(Ranks!$1:$1048576,$A109,BW$1))","v":""},{"$f":"IF($A109=\"N/A\",Ref!$B$36,INDEX(Ranks!$1:$1048576,$A109,BX$1))","v":""},{"$f":"IF($A109=\"N/A\",Ref!$B$36,INDEX(Ranks!$1:$1048576,$A109,BY$1))","v":""},{"$f":"IF($A109=\"N/A\",Ref!$B$36,INDEX(Ranks!$1:$1048576,$A109,BZ$1))","v":""},{"$f":"IF($A109=\"N/A\",Ref!$B$36,INDEX(Ranks!$1:$1048576,$A109,CA$1))","v":""},{"$f":"IF($A109=\"N/A\",Ref!$B$36,INDEX(Ranks!$1:$1048576,$A109,CB$1))","v":""},{"$f":"IF($A109=\"N/A\",Ref!$B$36,INDEX(Ranks!$1:$1048576,$A109,CC$1))","v":""},{"$f":"IF($A109=\"N/A\",Ref!$B$36,INDEX(Ranks!$1:$1048576,$A109,CD$1))","v":""},{"$f":"IF($A109=\"N/A\",Ref!$B$36,INDEX(Ranks!$1:$1048576,$A109,CE$1))","v":""},{"$f":"IF($A109=\"N/A\",Ref!$B$36,INDEX(Ranks!$1:$1048576,$A109,CF$1))","v":""},{"$f":"IF($A109=\"N/A\",Ref!$B$36,INDEX(Ranks!$1:$1048576,$A109,CG$1))","v":""},{"$f":"IF($A109=\"N/A\",Ref!$B$36,INDEX(Ranks!$1:$1048576,$A109,CH$1))","v":""},{"$f":"IF($A109=\"N/A\",Ref!$B$36,INDEX(Ranks!$1:$1048576,$A109,CI$1))","v":""},{"$f":"IF($A109=\"N/A\",Ref!$B$36,INDEX(Ranks!$1:$1048576,$A109,CJ$1))","v":""},{"$f":"IF($A109=\"N/A\",Ref!$B$36,INDEX(Ranks!$1:$1048576,$A109,CK$1))","v":""},{"$f":"IF($A109=\"N/A\",Ref!$B$36,INDEX(Ranks!$1:$1048576,$A109,CL$1))","v":""},{"$f":"IF($A109=\"N/A\",Ref!$B$36,INDEX(Ranks!$1:$1048576,$A109,CM$1))","v":""},{"$f":"IF($A109=\"N/A\",Ref!$B$36,INDEX(Ranks!$1:$1048576,$A109,CN$1))","v":""},{"$f":"IF($A109=\"N/A\",Ref!$B$36,INDEX(Ranks!$1:$1048576,$A109,CO$1))","v":""},{"$f":"IF($A109=\"N/A\",Ref!$B$36,INDEX(Ranks!$1:$1048576,$A109,CP$1))","v":""},{"$f":"IF($A109=\"N/A\",Ref!$B$36,INDEX(Ranks!$1:$1048576,$A109,CQ$1))","v":""},{"$f":"IF($A109=\"N/A\",Ref!$B$36,INDEX(Ranks!$1:$1048576,$A109,CR$1))","v":""},{"$f":"IF($A109=\"N/A\",Ref!$B$36,INDEX(Ranks!$1:$1048576,$A109,CS$1))","v":""},{"$f":"IF($A109=\"N/A\",Ref!$B$36,INDEX(Ranks!$1:$1048576,$A109,CT$1))","v":""},{"$f":"IF($A109=\"N/A\",Ref!$B$36,INDEX(Ranks!$1:$1048576,$A109,CU$1))","v":""},{"$f":"IF($A109=\"N/A\",Ref!$B$36,INDEX(Ranks!$1:$1048576,$A109,CV$1))","v":""},{"$f":"IF($A109=\"N/A\",Ref!$B$36,INDEX(Ranks!$1:$1048576,$A109,CW$1))","v":""},{"$f":"IF($A109=\"N/A\",Ref!$B$36,INDEX(Ranks!$1:$1048576,$A109,CX$1))","v":""},{"$f":"IF($A109=\"N/A\",Ref!$B$36,INDEX(Ranks!$1:$1048576,$A109,CY$1))","v":""},{"$f":"IF($A109=\"N/A\",Ref!$B$36,INDEX(Ranks!$1:$1048576,$A109,CZ$1))","v":""},{"$f":"IF($A109=\"N/A\",Ref!$B$36,INDEX(Ranks!$1:$1048576,$A109,DA$1))","v":""},{"$f":"IF($A109=\"N/A\",Ref!$B$36,INDEX(Ranks!$1:$1048576,$A109,DB$1))","v":""},{"$f":"IF($A109=\"N/A\",Ref!$B$36,INDEX(Ranks!$1:$1048576,$A109,DC$1))","v":""},{"$f":"IF($A109=\"N/A\",Ref!$B$36,INDEX(Ranks!$1:$1048576,$A109,DD$1))","v":""},{"$f":"IF($A109=\"N/A\",Ref!$B$36,INDEX(Ranks!$1:$1048576,$A109,DE$1))","v":""},{"$f":"IF($A109=\"N/A\",Ref!$B$36,INDEX(Ranks!$1:$1048576,$A109,DF$1))","v":""},{"$f":"IF($A109=\"N/A\",Ref!$B$36,INDEX(Ranks!$1:$1048576,$A109,DG$1))","v":""},{"$f":"IF($A109=\"N/A\",Ref!$B$36,INDEX(Ranks!$1:$1048576,$A109,DH$1))","v":""},{"$f":"IF($A109=\"N/A\",Ref!$B$36,INDEX(Ranks!$1:$1048576,$A109,DI$1))","v":""},{"$f":"IF($A109=\"N/A\",Ref!$B$36,INDEX(Ranks!$1:$1048576,$A109,DJ$1))","v":""},{"$f":"IF($A109=\"N/A\",Ref!$B$36,INDEX(Ranks!$1:$1048576,$A109,DK$1))","v":""},{"$f":"IF($A109=\"N/A\",Ref!$B$36,INDEX(Ranks!$1:$1048576,$A109,DL$1))","v":""},{"$f":"IF($A109=\"N/A\",Ref!$B$36,INDEX(Ranks!$1:$1048576,$A109,DM$1))","v":""},{"$f":"IF($A109=\"N/A\",Ref!$B$36,INDEX(Ranks!$1:$1048576,$A109,DN$1))","v":""},{"$f":"IF($A109=\"N/A\",Ref!$B$36,INDEX(Ranks!$1:$1048576,$A109,DO$1))","v":""},{"$f":"IF($A109=\"N/A\",Ref!$B$36,INDEX(Ranks!$1:$1048576,$A109,DP$1))","v":""},{"$f":"IF($A109=\"N/A\",Ref!$B$36,INDEX(Ranks!$1:$1048576,$A109,DQ$1))","v":""},{"$f":"IF($A109=\"N/A\",Ref!$B$36,INDEX(Ranks!$1:$1048576,$A109,DR$1))","v":""},{"$f":"IF($A109=\"N/A\",Ref!$B$36,INDEX(Ranks!$1:$1048576,$A109,DS$1))","v":""},{"$f":"IF($A109=\"N/A\",Ref!$B$36,INDEX(Ranks!$1:$1048576,$A109,DT$1))","v":""},{"$f":"IF($A109=\"N/A\",Ref!$B$36,INDEX(Ranks!$1:$1048576,$A109,DU$1))","v":""},{"$f":"IF($A109=\"N/A\",Ref!$B$36,INDEX(Ranks!$1:$1048576,$A109,DV$1))","v":""},{"$f":"IF($A109=\"N/A\",Ref!$B$36,INDEX(Ranks!$1:$1048576,$A109,DW$1))","v":""},{"$f":"IF($A109=\"N/A\",Ref!$B$36,INDEX(Ranks!$1:$1048576,$A109,DX$1))","v":""},{"$f":"IF($A109=\"N/A\",Ref!$B$36,INDEX(Ranks!$1:$1048576,$A109,DY$1))","v":""},{"$f":"IF($A109=\"N/A\",Ref!$B$36,INDEX(Ranks!$1:$1048576,$A109,DZ$1))","v":""},{"$f":"IF($A109=\"N/A\",Ref!$B$36,INDEX(Ranks!$1:$1048576,$A109,EA$1))","v":""},{"$f":"IF($A109=\"N/A\",Ref!$B$36,INDEX(Ranks!$1:$1048576,$A109,EB$1))","v":""}]
[{"$f":"IFERROR(MATCH('Portfolio Page'!L110,Ranks!L:L,0),\"N/A\")","v":"N/A"},null,{"$f":"IF($A110=\"N/A\",\"\",INDEX(Ranks!$1:$1048576,$A110,C$1))","v":""},{"$f":"IF($A110=\"N/A\",Ref!$B$36,INDEX(Ranks!$1:$1048576,$A110,D$1))","v":""},{"$f":"IF($A110=\"N/A\",Ref!$B$36,INDEX(Ranks!$1:$1048576,$A110,E$1))","v":""},{"$f":"IF($A110=\"N/A\",\"\",INDEX(Ranks!$1:$1048576,$A110,F$1))","v":""},{"$f":"IF($A110=\"N/A\",\"\",INDEX(Ranks!$1:$1048576,$A110,G$1))","v":""},{"$f":"IF($A110=\"N/A\",\"\",INDEX(Ranks!$1:$1048576,$A110,H$1))","v":""},{"$f":"IF($A110=\"N/A\",\"\",INDEX(Ranks!$1:$1048576,$A110,I$1))","v":""},{"$f":"IF($A110=\"N/A\",\"\",INDEX(Ranks!$1:$1048576,$A110,J$1))","v":""},{"$f":"IF($A110=\"N/A\",\"\",INDEX(Ranks!$1:$1048576,$A110,K$1))","v":""},null,{"$f":"IF($A110=\"N/A\",Ref!$B$36,INDEX(Ranks!$1:$1048576,$A110,M$1))","v":""},{"$f":"IF($A110=\"N/A\",Ref!$B$36,INDEX(Ranks!$1:$1048576,$A110,N$1))","v":""},{"$f":"IF($A110=\"N/A\",Ref!$B$36,INDEX(Ranks!$1:$1048576,$A110,O$1))","v":""},{"$f":"IF($A110=\"N/A\",Ref!$B$36,INDEX(Ranks!$1:$1048576,$A110,P$1))","v":""},{"$f":"IF($A110=\"N/A\",Ref!$B$36,INDEX(Ranks!$1:$1048576,$A110,Q$1))","v":""},{"$f":"IF($A110=\"N/A\",Ref!$B$36,INDEX(Ranks!$1:$1048576,$A110,R$1))","v":""},{"$f":"IF($A110=\"N/A\",Ref!$B$36,INDEX(Ranks!$1:$1048576,$A110,S$1))","v":""},{"$f":"IF($A110=\"N/A\",Ref!$B$36,INDEX(Ranks!$1:$1048576,$A110,T$1))","v":""},{"$f":"IF($A110=\"N/A\",Ref!$B$36,INDEX(Ranks!$1:$1048576,$A110,U$1))","v":""},{"$f":"IF($A110=\"N/A\",Ref!$B$36,INDEX(Ranks!$1:$1048576,$A110,V$1))","v":""},{"$f":"IF($A110=\"N/A\",Ref!$B$36,INDEX(Ranks!$1:$1048576,$A110,W$1))","v":""},{"$f":"IF($A110=\"N/A\",Ref!$B$36,INDEX(Ranks!$1:$1048576,$A110,X$1))","v":""},{"$f":"IF($A110=\"N/A\",Ref!$B$36,INDEX(Ranks!$1:$1048576,$A110,Y$1))","v":""},{"$f":"IF($A110=\"N/A\",Ref!$B$36,INDEX(Ranks!$1:$1048576,$A110,Z$1))","v":""},{"$f":"IF($A110=\"N/A\",Ref!$B$36,INDEX(Ranks!$1:$1048576,$A110,AA$1))","v":""},{"$f":"IF($A110=\"N/A\",Ref!$B$36,INDEX(Ranks!$1:$1048576,$A110,AB$1))","v":""},{"$f":"IF($A110=\"N/A\",Ref!$B$36,INDEX(Ranks!$1:$1048576,$A110,AC$1))","v":""},{"$f":"IF($A110=\"N/A\",Ref!$B$36,INDEX(Ranks!$1:$1048576,$A110,AD$1))","v":""},{"$f":"IF($A110=\"N/A\",Ref!$B$36,INDEX(Ranks!$1:$1048576,$A110,AE$1))","v":""},{"$f":"IF($A110=\"N/A\",Ref!$B$36,INDEX(Ranks!$1:$1048576,$A110,AF$1))","v":""},{"$f":"IF($A110=\"N/A\",Ref!$B$36,INDEX(Ranks!$1:$1048576,$A110,AG$1))","v":""},{"$f":"IF($A110=\"N/A\",Ref!$B$36,INDEX(Ranks!$1:$1048576,$A110,AH$1))","v":""},{"$f":"IF($A110=\"N/A\",Ref!$B$36,INDEX(Ranks!$1:$1048576,$A110,AI$1))","v":""},{"$f":"IF($A110=\"N/A\",Ref!$B$36,INDEX(Ranks!$1:$1048576,$A110,AJ$1))","v":""},{"$f":"IF($A110=\"N/A\",Ref!$B$36,INDEX(Ranks!$1:$1048576,$A110,AK$1))","v":""},{"$f":"IF($A110=\"N/A\",Ref!$B$36,INDEX(Ranks!$1:$1048576,$A110,AL$1))","v":""},{"$f":"IF($A110=\"N/A\",Ref!$B$36,INDEX(Ranks!$1:$1048576,$A110,AM$1))","v":""},{"$f":"IF($A110=\"N/A\",Ref!$B$36,INDEX(Ranks!$1:$1048576,$A110,AN$1))","v":""},{"$f":"IF($A110=\"N/A\",Ref!$B$36,INDEX(Ranks!$1:$1048576,$A110,AO$1))","v":""},{"$f":"IF($A110=\"N/A\",Ref!$B$36,INDEX(Ranks!$1:$1048576,$A110,AP$1))","v":""},{"$f":"IF($A110=\"N/A\",Ref!$B$36,INDEX(Ranks!$1:$1048576,$A110,AQ$1))","v":""},{"$f":"IF($A110=\"N/A\",Ref!$B$36,INDEX(Ranks!$1:$1048576,$A110,AR$1))","v":""},{"$f":"IF($A110=\"N/A\",Ref!$B$36,INDEX(Ranks!$1:$1048576,$A110,AS$1))","v":""},{"$f":"IF($A110=\"N/A\",Ref!$B$36,INDEX(Ranks!$1:$1048576,$A110,AT$1))","v":""},{"$f":"IF($A110=\"N/A\",Ref!$B$36,INDEX(Ranks!$1:$1048576,$A110,AU$1))","v":""},{"$f":"IF($A110=\"N/A\",Ref!$B$36,INDEX(Ranks!$1:$1048576,$A110,AV$1))","v":""},{"$f":"IF($A110=\"N/A\",Ref!$B$36,INDEX(Ranks!$1:$1048576,$A110,AW$1))","v":""},{"$f":"IF($A110=\"N/A\",Ref!$B$36,INDEX(Ranks!$1:$1048576,$A110,AX$1))","v":""},{"$f":"IF($A110=\"N/A\",Ref!$B$36,INDEX(Ranks!$1:$1048576,$A110,AY$1))","v":""},{"$f":"IF($A110=\"N/A\",Ref!$B$36,INDEX(Ranks!$1:$1048576,$A110,AZ$1))","v":""},{"$f":"IF($A110=\"N/A\",Ref!$B$36,INDEX(Ranks!$1:$1048576,$A110,BA$1))","v":""},{"$f":"IF($A110=\"N/A\",Ref!$B$36,INDEX(Ranks!$1:$1048576,$A110,BB$1))","v":""},{"$f":"IF($A110=\"N/A\",Ref!$B$36,INDEX(Ranks!$1:$1048576,$A110,BC$1))","v":""},{"$f":"IF($A110=\"N/A\",Ref!$B$36,INDEX(Ranks!$1:$1048576,$A110,BD$1))","v":""},{"$f":"IF($A110=\"N/A\",Ref!$B$36,INDEX(Ranks!$1:$1048576,$A110,BE$1))","v":""},{"$f":"IF($A110=\"N/A\",Ref!$B$36,INDEX(Ranks!$1:$1048576,$A110,BF$1))","v":""},{"$f":"IF($A110=\"N/A\",Ref!$B$36,INDEX(Ranks!$1:$1048576,$A110,BG$1))","v":""},{"$f":"IF($A110=\"N/A\",Ref!$B$36,INDEX(Ranks!$1:$1048576,$A110,BH$1))","v":""},{"$f":"IF($A110=\"N/A\",Ref!$B$36,INDEX(Ranks!$1:$1048576,$A110,BI$1))","v":""},{"$f":"IF($A110=\"N/A\",Ref!$B$36,INDEX(Ranks!$1:$1048576,$A110,BJ$1))","v":""},{"$f":"IF($A110=\"N/A\",Ref!$B$36,INDEX(Ranks!$1:$1048576,$A110,BK$1))","v":""},{"$f":"IF($A110=\"N/A\",Ref!$B$36,INDEX(Ranks!$1:$1048576,$A110,BL$1))","v":""},{"$f":"IF($A110=\"N/A\",Ref!$B$36,INDEX(Ranks!$1:$1048576,$A110,BM$1))","v":""},{"$f":"IF($A110=\"N/A\",Ref!$B$36,INDEX(Ranks!$1:$1048576,$A110,BN$1))","v":""},{"$f":"IF($A110=\"N/A\",Ref!$B$36,INDEX(Ranks!$1:$1048576,$A110,BO$1))","v":""},{"$f":"IF($A110=\"N/A\",Ref!$B$36,INDEX(Ranks!$1:$1048576,$A110,BP$1))","v":""},{"$f":"IF($A110=\"N/A\",Ref!$B$36,INDEX(Ranks!$1:$1048576,$A110,BQ$1))","v":""},{"$f":"IF($A110=\"N/A\",Ref!$B$36,INDEX(Ranks!$1:$1048576,$A110,BR$1))","v":""},{"$f":"IF($A110=\"N/A\",Ref!$B$36,INDEX(Ranks!$1:$1048576,$A110,BS$1))","v":""},{"$f":"IF($A110=\"N/A\",Ref!$B$36,INDEX(Ranks!$1:$1048576,$A110,BT$1))","v":""},{"$f":"IF($A110=\"N/A\",Ref!$B$36,INDEX(Ranks!$1:$1048576,$A110,BU$1))","v":""},{"$f":"IF($A110=\"N/A\",Ref!$B$36,INDEX(Ranks!$1:$1048576,$A110,BV$1))","v":""},{"$f":"IF($A110=\"N/A\",Ref!$B$36,INDEX(Ranks!$1:$1048576,$A110,BW$1))","v":""},{"$f":"IF($A110=\"N/A\",Ref!$B$36,INDEX(Ranks!$1:$1048576,$A110,BX$1))","v":""},{"$f":"IF($A110=\"N/A\",Ref!$B$36,INDEX(Ranks!$1:$1048576,$A110,BY$1))","v":""},{"$f":"IF($A110=\"N/A\",Ref!$B$36,INDEX(Ranks!$1:$1048576,$A110,BZ$1))","v":""},{"$f":"IF($A110=\"N/A\",Ref!$B$36,INDEX(Ranks!$1:$1048576,$A110,CA$1))","v":""},{"$f":"IF($A110=\"N/A\",Ref!$B$36,INDEX(Ranks!$1:$1048576,$A110,CB$1))","v":""},{"$f":"IF($A110=\"N/A\",Ref!$B$36,INDEX(Ranks!$1:$1048576,$A110,CC$1))","v":""},{"$f":"IF($A110=\"N/A\",Ref!$B$36,INDEX(Ranks!$1:$1048576,$A110,CD$1))","v":""},{"$f":"IF($A110=\"N/A\",Ref!$B$36,INDEX(Ranks!$1:$1048576,$A110,CE$1))","v":""},{"$f":"IF($A110=\"N/A\",Ref!$B$36,INDEX(Ranks!$1:$1048576,$A110,CF$1))","v":""},{"$f":"IF($A110=\"N/A\",Ref!$B$36,INDEX(Ranks!$1:$1048576,$A110,CG$1))","v":""},{"$f":"IF($A110=\"N/A\",Ref!$B$36,INDEX(Ranks!$1:$1048576,$A110,CH$1))","v":""},{"$f":"IF($A110=\"N/A\",Ref!$B$36,INDEX(Ranks!$1:$1048576,$A110,CI$1))","v":""},{"$f":"IF($A110=\"N/A\",Ref!$B$36,INDEX(Ranks!$1:$1048576,$A110,CJ$1))","v":""},{"$f":"IF($A110=\"N/A\",Ref!$B$36,INDEX(Ranks!$1:$1048576,$A110,CK$1))","v":""},{"$f":"IF($A110=\"N/A\",Ref!$B$36,INDEX(Ranks!$1:$1048576,$A110,CL$1))","v":""},{"$f":"IF($A110=\"N/A\",Ref!$B$36,INDEX(Ranks!$1:$1048576,$A110,CM$1))","v":""},{"$f":"IF($A110=\"N/A\",Ref!$B$36,INDEX(Ranks!$1:$1048576,$A110,CN$1))","v":""},{"$f":"IF($A110=\"N/A\",Ref!$B$36,INDEX(Ranks!$1:$1048576,$A110,CO$1))","v":""},{"$f":"IF($A110=\"N/A\",Ref!$B$36,INDEX(Ranks!$1:$1048576,$A110,CP$1))","v":""},{"$f":"IF($A110=\"N/A\",Ref!$B$36,INDEX(Ranks!$1:$1048576,$A110,CQ$1))","v":""},{"$f":"IF($A110=\"N/A\",Ref!$B$36,INDEX(Ranks!$1:$1048576,$A110,CR$1))","v":""},{"$f":"IF($A110=\"N/A\",Ref!$B$36,INDEX(Ranks!$1:$1048576,$A110,CS$1))","v":""},{"$f":"IF($A110=\"N/A\",Ref!$B$36,INDEX(Ranks!$1:$1048576,$A110,CT$1))","v":""},{"$f":"IF($A110=\"N/A\",Ref!$B$36,INDEX(Ranks!$1:$1048576,$A110,CU$1))","v":""},{"$f":"IF($A110=\"N/A\",Ref!$B$36,INDEX(Ranks!$1:$1048576,$A110,CV$1))","v":""},{"$f":"IF($A110=\"N/A\",Ref!$B$36,INDEX(Ranks!$1:$1048576,$A110,CW$1))","v":""},{"$f":"IF($A110=\"N/A\",Ref!$B$36,INDEX(Ranks!$1:$1048576,$A110,CX$1))","v":""},{"$f":"IF($A110=\"N/A\",Ref!$B$36,INDEX(Ranks!$1:$1048576,$A110,CY$1))","v":""},{"$f":"IF($A110=\"N/A\",Ref!$B$36,INDEX(Ranks!$1:$1048576,$A110,CZ$1))","v":""},{"$f":"IF($A110=\"N/A\",Ref!$B$36,INDEX(Ranks!$1:$1048576,$A110,DA$1))","v":""},{"$f":"IF($A110=\"N/A\",Ref!$B$36,INDEX(Ranks!$1:$1048576,$A110,DB$1))","v":""},{"$f":"IF($A110=\"N/A\",Ref!$B$36,INDEX(Ranks!$1:$1048576,$A110,DC$1))","v":""},{"$f":"IF($A110=\"N/A\",Ref!$B$36,INDEX(Ranks!$1:$1048576,$A110,DD$1))","v":""},{"$f":"IF($A110=\"N/A\",Ref!$B$36,INDEX(Ranks!$1:$1048576,$A110,DE$1))","v":""},{"$f":"IF($A110=\"N/A\",Ref!$B$36,INDEX(Ranks!$1:$1048576,$A110,DF$1))","v":""},{"$f":"IF($A110=\"N/A\",Ref!$B$36,INDEX(Ranks!$1:$1048576,$A110,DG$1))","v":""},{"$f":"IF($A110=\"N/A\",Ref!$B$36,INDEX(Ranks!$1:$1048576,$A110,DH$1))","v":""},{"$f":"IF($A110=\"N/A\",Ref!$B$36,INDEX(Ranks!$1:$1048576,$A110,DI$1))","v":""},{"$f":"IF($A110=\"N/A\",Ref!$B$36,INDEX(Ranks!$1:$1048576,$A110,DJ$1))","v":""},{"$f":"IF($A110=\"N/A\",Ref!$B$36,INDEX(Ranks!$1:$1048576,$A110,DK$1))","v":""},{"$f":"IF($A110=\"N/A\",Ref!$B$36,INDEX(Ranks!$1:$1048576,$A110,DL$1))","v":""},{"$f":"IF($A110=\"N/A\",Ref!$B$36,INDEX(Ranks!$1:$1048576,$A110,DM$1))","v":""},{"$f":"IF($A110=\"N/A\",Ref!$B$36,INDEX(Ranks!$1:$1048576,$A110,DN$1))","v":""},{"$f":"IF($A110=\"N/A\",Ref!$B$36,INDEX(Ranks!$1:$1048576,$A110,DO$1))","v":""},{"$f":"IF($A110=\"N/A\",Ref!$B$36,INDEX(Ranks!$1:$1048576,$A110,DP$1))","v":""},{"$f":"IF($A110=\"N/A\",Ref!$B$36,INDEX(Ranks!$1:$1048576,$A110,DQ$1))","v":""},{"$f":"IF($A110=\"N/A\",Ref!$B$36,INDEX(Ranks!$1:$1048576,$A110,DR$1))","v":""},{"$f":"IF($A110=\"N/A\",Ref!$B$36,INDEX(Ranks!$1:$1048576,$A110,DS$1))","v":""},{"$f":"IF($A110=\"N/A\",Ref!$B$36,INDEX(Ranks!$1:$1048576,$A110,DT$1))","v":""},{"$f":"IF($A110=\"N/A\",Ref!$B$36,INDEX(Ranks!$1:$1048576,$A110,DU$1))","v":""},{"$f":"IF($A110=\"N/A\",Ref!$B$36,INDEX(Ranks!$1:$1048576,$A110,DV$1))","v":""},{"$f":"IF($A110=\"N/A\",Ref!$B$36,INDEX(Ranks!$1:$1048576,$A110,DW$1))","v":""},{"$f":"IF($A110=\"N/A\",Ref!$B$36,INDEX(Ranks!$1:$1048576,$A110,DX$1))","v":""},{"$f":"IF($A110=\"N/A\",Ref!$B$36,INDEX(Ranks!$1:$1048576,$A110,DY$1))","v":""},{"$f":"IF($A110=\"N/A\",Ref!$B$36,INDEX(Ranks!$1:$1048576,$A110,DZ$1))","v":""},{"$f":"IF($A110=\"N/A\",Ref!$B$36,INDEX(Ranks!$1:$1048576,$A110,EA$1))","v":""},{"$f":"IF($A110=\"N/A\",Ref!$B$36,INDEX(Ranks!$1:$1048576,$A110,EB$1))","v":""}]
[{"$f":"IFERROR(MATCH('Portfolio Page'!L111,Ranks!L:L,0),\"N/A\")","v":"N/A"},null,{"$f":"IF($A111=\"N/A\",\"\",INDEX(Ranks!$1:$1048576,$A111,C$1))","v":""},{"$f":"IF($A111=\"N/A\",Ref!$B$36,INDEX(Ranks!$1:$1048576,$A111,D$1))","v":""},{"$f":"IF($A111=\"N/A\",Ref!$B$36,INDEX(Ranks!$1:$1048576,$A111,E$1))","v":""},{"$f":"IF($A111=\"N/A\",\"\",INDEX(Ranks!$1:$1048576,$A111,F$1))","v":""},{"$f":"IF($A111=\"N/A\",\"\",INDEX(Ranks!$1:$1048576,$A111,G$1))","v":""},{"$f":"IF($A111=\"N/A\",\"\",INDEX(Ranks!$1:$1048576,$A111,H$1))","v":""},{"$f":"IF($A111=\"N/A\",\"\",INDEX(Ranks!$1:$1048576,$A111,I$1))","v":""},{"$f":"IF($A111=\"N/A\",\"\",INDEX(Ranks!$1:$1048576,$A111,J$1))","v":""},{"$f":"IF($A111=\"N/A\",\"\",INDEX(Ranks!$1:$1048576,$A111,K$1))","v":""},null,{"$f":"IF($A111=\"N/A\",Ref!$B$36,INDEX(Ranks!$1:$1048576,$A111,M$1))","v":""},{"$f":"IF($A111=\"N/A\",Ref!$B$36,INDEX(Ranks!$1:$1048576,$A111,N$1))","v":""},{"$f":"IF($A111=\"N/A\",Ref!$B$36,INDEX(Ranks!$1:$1048576,$A111,O$1))","v":""},{"$f":"IF($A111=\"N/A\",Ref!$B$36,INDEX(Ranks!$1:$1048576,$A111,P$1))","v":""},{"$f":"IF($A111=\"N/A\",Ref!$B$36,INDEX(Ranks!$1:$1048576,$A111,Q$1))","v":""},{"$f":"IF($A111=\"N/A\",Ref!$B$36,INDEX(Ranks!$1:$1048576,$A111,R$1))","v":""},{"$f":"IF($A111=\"N/A\",Ref!$B$36,INDEX(Ranks!$1:$1048576,$A111,S$1))","v":""},{"$f":"IF($A111=\"N/A\",Ref!$B$36,INDEX(Ranks!$1:$1048576,$A111,T$1))","v":""},{"$f":"IF($A111=\"N/A\",Ref!$B$36,INDEX(Ranks!$1:$1048576,$A111,U$1))","v":""},{"$f":"IF($A111=\"N/A\",Ref!$B$36,INDEX(Ranks!$1:$1048576,$A111,V$1))","v":""},{"$f":"IF($A111=\"N/A\",Ref!$B$36,INDEX(Ranks!$1:$1048576,$A111,W$1))","v":""},{"$f":"IF($A111=\"N/A\",Ref!$B$36,INDEX(Ranks!$1:$1048576,$A111,X$1))","v":""},{"$f":"IF($A111=\"N/A\",Ref!$B$36,INDEX(Ranks!$1:$1048576,$A111,Y$1))","v":""},{"$f":"IF($A111=\"N/A\",Ref!$B$36,INDEX(Ranks!$1:$1048576,$A111,Z$1))","v":""},{"$f":"IF($A111=\"N/A\",Ref!$B$36,INDEX(Ranks!$1:$1048576,$A111,AA$1))","v":""},{"$f":"IF($A111=\"N/A\",Ref!$B$36,INDEX(Ranks!$1:$1048576,$A111,AB$1))","v":""},{"$f":"IF($A111=\"N/A\",Ref!$B$36,INDEX(Ranks!$1:$1048576,$A111,AC$1))","v":""},{"$f":"IF($A111=\"N/A\",Ref!$B$36,INDEX(Ranks!$1:$1048576,$A111,AD$1))","v":""},{"$f":"IF($A111=\"N/A\",Ref!$B$36,INDEX(Ranks!$1:$1048576,$A111,AE$1))","v":""},{"$f":"IF($A111=\"N/A\",Ref!$B$36,INDEX(Ranks!$1:$1048576,$A111,AF$1))","v":""},{"$f":"IF($A111=\"N/A\",Ref!$B$36,INDEX(Ranks!$1:$1048576,$A111,AG$1))","v":""},{"$f":"IF($A111=\"N/A\",Ref!$B$36,INDEX(Ranks!$1:$1048576,$A111,AH$1))","v":""},{"$f":"IF($A111=\"N/A\",Ref!$B$36,INDEX(Ranks!$1:$1048576,$A111,AI$1))","v":""},{"$f":"IF($A111=\"N/A\",Ref!$B$36,INDEX(Ranks!$1:$1048576,$A111,AJ$1))","v":""},{"$f":"IF($A111=\"N/A\",Ref!$B$36,INDEX(Ranks!$1:$1048576,$A111,AK$1))","v":""},{"$f":"IF($A111=\"N/A\",Ref!$B$36,INDEX(Ranks!$1:$1048576,$A111,AL$1))","v":""},{"$f":"IF($A111=\"N/A\",Ref!$B$36,INDEX(Ranks!$1:$1048576,$A111,AM$1))","v":""},{"$f":"IF($A111=\"N/A\",Ref!$B$36,INDEX(Ranks!$1:$1048576,$A111,AN$1))","v":""},{"$f":"IF($A111=\"N/A\",Ref!$B$36,INDEX(Ranks!$1:$1048576,$A111,AO$1))","v":""},{"$f":"IF($A111=\"N/A\",Ref!$B$36,INDEX(Ranks!$1:$1048576,$A111,AP$1))","v":""},{"$f":"IF($A111=\"N/A\",Ref!$B$36,INDEX(Ranks!$1:$1048576,$A111,AQ$1))","v":""},{"$f":"IF($A111=\"N/A\",Ref!$B$36,INDEX(Ranks!$1:$1048576,$A111,AR$1))","v":""},{"$f":"IF($A111=\"N/A\",Ref!$B$36,INDEX(Ranks!$1:$1048576,$A111,AS$1))","v":""},{"$f":"IF($A111=\"N/A\",Ref!$B$36,INDEX(Ranks!$1:$1048576,$A111,AT$1))","v":""},{"$f":"IF($A111=\"N/A\",Ref!$B$36,INDEX(Ranks!$1:$1048576,$A111,AU$1))","v":""},{"$f":"IF($A111=\"N/A\",Ref!$B$36,INDEX(Ranks!$1:$1048576,$A111,AV$1))","v":""},{"$f":"IF($A111=\"N/A\",Ref!$B$36,INDEX(Ranks!$1:$1048576,$A111,AW$1))","v":""},{"$f":"IF($A111=\"N/A\",Ref!$B$36,INDEX(Ranks!$1:$1048576,$A111,AX$1))","v":""},{"$f":"IF($A111=\"N/A\",Ref!$B$36,INDEX(Ranks!$1:$1048576,$A111,AY$1))","v":""},{"$f":"IF($A111=\"N/A\",Ref!$B$36,INDEX(Ranks!$1:$1048576,$A111,AZ$1))","v":""},{"$f":"IF($A111=\"N/A\",Ref!$B$36,INDEX(Ranks!$1:$1048576,$A111,BA$1))","v":""},{"$f":"IF($A111=\"N/A\",Ref!$B$36,INDEX(Ranks!$1:$1048576,$A111,BB$1))","v":""},{"$f":"IF($A111=\"N/A\",Ref!$B$36,INDEX(Ranks!$1:$1048576,$A111,BC$1))","v":""},{"$f":"IF($A111=\"N/A\",Ref!$B$36,INDEX(Ranks!$1:$1048576,$A111,BD$1))","v":""},{"$f":"IF($A111=\"N/A\",Ref!$B$36,INDEX(Ranks!$1:$1048576,$A111,BE$1))","v":""},{"$f":"IF($A111=\"N/A\",Ref!$B$36,INDEX(Ranks!$1:$1048576,$A111,BF$1))","v":""},{"$f":"IF($A111=\"N/A\",Ref!$B$36,INDEX(Ranks!$1:$1048576,$A111,BG$1))","v":""},{"$f":"IF($A111=\"N/A\",Ref!$B$36,INDEX(Ranks!$1:$1048576,$A111,BH$1))","v":""},{"$f":"IF($A111=\"N/A\",Ref!$B$36,INDEX(Ranks!$1:$1048576,$A111,BI$1))","v":""},{"$f":"IF($A111=\"N/A\",Ref!$B$36,INDEX(Ranks!$1:$1048576,$A111,BJ$1))","v":""},{"$f":"IF($A111=\"N/A\",Ref!$B$36,INDEX(Ranks!$1:$1048576,$A111,BK$1))","v":""},{"$f":"IF($A111=\"N/A\",Ref!$B$36,INDEX(Ranks!$1:$1048576,$A111,BL$1))","v":""},{"$f":"IF($A111=\"N/A\",Ref!$B$36,INDEX(Ranks!$1:$1048576,$A111,BM$1))","v":""},{"$f":"IF($A111=\"N/A\",Ref!$B$36,INDEX(Ranks!$1:$1048576,$A111,BN$1))","v":""},{"$f":"IF($A111=\"N/A\",Ref!$B$36,INDEX(Ranks!$1:$1048576,$A111,BO$1))","v":""},{"$f":"IF($A111=\"N/A\",Ref!$B$36,INDEX(Ranks!$1:$1048576,$A111,BP$1))","v":""},{"$f":"IF($A111=\"N/A\",Ref!$B$36,INDEX(Ranks!$1:$1048576,$A111,BQ$1))","v":""},{"$f":"IF($A111=\"N/A\",Ref!$B$36,INDEX(Ranks!$1:$1048576,$A111,BR$1))","v":""},{"$f":"IF($A111=\"N/A\",Ref!$B$36,INDEX(Ranks!$1:$1048576,$A111,BS$1))","v":""},{"$f":"IF($A111=\"N/A\",Ref!$B$36,INDEX(Ranks!$1:$1048576,$A111,BT$1))","v":""},{"$f":"IF($A111=\"N/A\",Ref!$B$36,INDEX(Ranks!$1:$1048576,$A111,BU$1))","v":""},{"$f":"IF($A111=\"N/A\",Ref!$B$36,INDEX(Ranks!$1:$1048576,$A111,BV$1))","v":""},{"$f":"IF($A111=\"N/A\",Ref!$B$36,INDEX(Ranks!$1:$1048576,$A111,BW$1))","v":""},{"$f":"IF($A111=\"N/A\",Ref!$B$36,INDEX(Ranks!$1:$1048576,$A111,BX$1))","v":""},{"$f":"IF($A111=\"N/A\",Ref!$B$36,INDEX(Ranks!$1:$1048576,$A111,BY$1))","v":""},{"$f":"IF($A111=\"N/A\",Ref!$B$36,INDEX(Ranks!$1:$1048576,$A111,BZ$1))","v":""},{"$f":"IF($A111=\"N/A\",Ref!$B$36,INDEX(Ranks!$1:$1048576,$A111,CA$1))","v":""},{"$f":"IF($A111=\"N/A\",Ref!$B$36,INDEX(Ranks!$1:$1048576,$A111,CB$1))","v":""},{"$f":"IF($A111=\"N/A\",Ref!$B$36,INDEX(Ranks!$1:$1048576,$A111,CC$1))","v":""},{"$f":"IF($A111=\"N/A\",Ref!$B$36,INDEX(Ranks!$1:$1048576,$A111,CD$1))","v":""},{"$f":"IF($A111=\"N/A\",Ref!$B$36,INDEX(Ranks!$1:$1048576,$A111,CE$1))","v":""},{"$f":"IF($A111=\"N/A\",Ref!$B$36,INDEX(Ranks!$1:$1048576,$A111,CF$1))","v":""},{"$f":"IF($A111=\"N/A\",Ref!$B$36,INDEX(Ranks!$1:$1048576,$A111,CG$1))","v":""},{"$f":"IF($A111=\"N/A\",Ref!$B$36,INDEX(Ranks!$1:$1048576,$A111,CH$1))","v":""},{"$f":"IF($A111=\"N/A\",Ref!$B$36,INDEX(Ranks!$1:$1048576,$A111,CI$1))","v":""},{"$f":"IF($A111=\"N/A\",Ref!$B$36,INDEX(Ranks!$1:$1048576,$A111,CJ$1))","v":""},{"$f":"IF($A111=\"N/A\",Ref!$B$36,INDEX(Ranks!$1:$1048576,$A111,CK$1))","v":""},{"$f":"IF($A111=\"N/A\",Ref!$B$36,INDEX(Ranks!$1:$1048576,$A111,CL$1))","v":""},{"$f":"IF($A111=\"N/A\",Ref!$B$36,INDEX(Ranks!$1:$1048576,$A111,CM$1))","v":""},{"$f":"IF($A111=\"N/A\",Ref!$B$36,INDEX(Ranks!$1:$1048576,$A111,CN$1))","v":""},{"$f":"IF($A111=\"N/A\",Ref!$B$36,INDEX(Ranks!$1:$1048576,$A111,CO$1))","v":""},{"$f":"IF($A111=\"N/A\",Ref!$B$36,INDEX(Ranks!$1:$1048576,$A111,CP$1))","v":""},{"$f":"IF($A111=\"N/A\",Ref!$B$36,INDEX(Ranks!$1:$1048576,$A111,CQ$1))","v":""},{"$f":"IF($A111=\"N/A\",Ref!$B$36,INDEX(Ranks!$1:$1048576,$A111,CR$1))","v":""},{"$f":"IF($A111=\"N/A\",Ref!$B$36,INDEX(Ranks!$1:$1048576,$A111,CS$1))","v":""},{"$f":"IF($A111=\"N/A\",Ref!$B$36,INDEX(Ranks!$1:$1048576,$A111,CT$1))","v":""},{"$f":"IF($A111=\"N/A\",Ref!$B$36,INDEX(Ranks!$1:$1048576,$A111,CU$1))","v":""},{"$f":"IF($A111=\"N/A\",Ref!$B$36,INDEX(Ranks!$1:$1048576,$A111,CV$1))","v":""},{"$f":"IF($A111=\"N/A\",Ref!$B$36,INDEX(Ranks!$1:$1048576,$A111,CW$1))","v":""},{"$f":"IF($A111=\"N/A\",Ref!$B$36,INDEX(Ranks!$1:$1048576,$A111,CX$1))","v":""},{"$f":"IF($A111=\"N/A\",Ref!$B$36,INDEX(Ranks!$1:$1048576,$A111,CY$1))","v":""},{"$f":"IF($A111=\"N/A\",Ref!$B$36,INDEX(Ranks!$1:$1048576,$A111,CZ$1))","v":""},{"$f":"IF($A111=\"N/A\",Ref!$B$36,INDEX(Ranks!$1:$1048576,$A111,DA$1))","v":""},{"$f":"IF($A111=\"N/A\",Ref!$B$36,INDEX(Ranks!$1:$1048576,$A111,DB$1))","v":""},{"$f":"IF($A111=\"N/A\",Ref!$B$36,INDEX(Ranks!$1:$1048576,$A111,DC$1))","v":""},{"$f":"IF($A111=\"N/A\",Ref!$B$36,INDEX(Ranks!$1:$1048576,$A111,DD$1))","v":""},{"$f":"IF($A111=\"N/A\",Ref!$B$36,INDEX(Ranks!$1:$1048576,$A111,DE$1))","v":""},{"$f":"IF($A111=\"N/A\",Ref!$B$36,INDEX(Ranks!$1:$1048576,$A111,DF$1))","v":""},{"$f":"IF($A111=\"N/A\",Ref!$B$36,INDEX(Ranks!$1:$1048576,$A111,DG$1))","v":""},{"$f":"IF($A111=\"N/A\",Ref!$B$36,INDEX(Ranks!$1:$1048576,$A111,DH$1))","v":""},{"$f":"IF($A111=\"N/A\",Ref!$B$36,INDEX(Ranks!$1:$1048576,$A111,DI$1))","v":""},{"$f":"IF($A111=\"N/A\",Ref!$B$36,INDEX(Ranks!$1:$1048576,$A111,DJ$1))","v":""},{"$f":"IF($A111=\"N/A\",Ref!$B$36,INDEX(Ranks!$1:$1048576,$A111,DK$1))","v":""},{"$f":"IF($A111=\"N/A\",Ref!$B$36,INDEX(Ranks!$1:$1048576,$A111,DL$1))","v":""},{"$f":"IF($A111=\"N/A\",Ref!$B$36,INDEX(Ranks!$1:$1048576,$A111,DM$1))","v":""},{"$f":"IF($A111=\"N/A\",Ref!$B$36,INDEX(Ranks!$1:$1048576,$A111,DN$1))","v":""},{"$f":"IF($A111=\"N/A\",Ref!$B$36,INDEX(Ranks!$1:$1048576,$A111,DO$1))","v":""},{"$f":"IF($A111=\"N/A\",Ref!$B$36,INDEX(Ranks!$1:$1048576,$A111,DP$1))","v":""},{"$f":"IF($A111=\"N/A\",Ref!$B$36,INDEX(Ranks!$1:$1048576,$A111,DQ$1))","v":""},{"$f":"IF($A111=\"N/A\",Ref!$B$36,INDEX(Ranks!$1:$1048576,$A111,DR$1))","v":""},{"$f":"IF($A111=\"N/A\",Ref!$B$36,INDEX(Ranks!$1:$1048576,$A111,DS$1))","v":""},{"$f":"IF($A111=\"N/A\",Ref!$B$36,INDEX(Ranks!$1:$1048576,$A111,DT$1))","v":""},{"$f":"IF($A111=\"N/A\",Ref!$B$36,INDEX(Ranks!$1:$1048576,$A111,DU$1))","v":""},{"$f":"IF($A111=\"N/A\",Ref!$B$36,INDEX(Ranks!$1:$1048576,$A111,DV$1))","v":""},{"$f":"IF($A111=\"N/A\",Ref!$B$36,INDEX(Ranks!$1:$1048576,$A111,DW$1))","v":""},{"$f":"IF($A111=\"N/A\",Ref!$B$36,INDEX(Ranks!$1:$1048576,$A111,DX$1))","v":""},{"$f":"IF($A111=\"N/A\",Ref!$B$36,INDEX(Ranks!$1:$1048576,$A111,DY$1))","v":""},{"$f":"IF($A111=\"N/A\",Ref!$B$36,INDEX(Ranks!$1:$1048576,$A111,DZ$1))","v":""},{"$f":"IF($A111=\"N/A\",Ref!$B$36,INDEX(Ranks!$1:$1048576,$A111,EA$1))","v":""},{"$f":"IF($A111=\"N/A\",Ref!$B$36,INDEX(Ranks!$1:$1048576,$A111,EB$1))","v":""}]
[{"$f":"IFERROR(MATCH('Portfolio Page'!L112,Ranks!L:L,0),\"N/A\")","v":"N/A"},null,{"$f":"IF($A112=\"N/A\",\"\",INDEX(Ranks!$1:$1048576,$A112,C$1))","v":""},{"$f":"IF($A112=\"N/A\",Ref!$B$36,INDEX(Ranks!$1:$1048576,$A112,D$1))","v":""},{"$f":"IF($A112=\"N/A\",Ref!$B$36,INDEX(Ranks!$1:$1048576,$A112,E$1))","v":""},{"$f":"IF($A112=\"N/A\",\"\",INDEX(Ranks!$1:$1048576,$A112,F$1))","v":""},{"$f":"IF($A112=\"N/A\",\"\",INDEX(Ranks!$1:$1048576,$A112,G$1))","v":""},{"$f":"IF($A112=\"N/A\",\"\",INDEX(Ranks!$1:$1048576,$A112,H$1))","v":""},{"$f":"IF($A112=\"N/A\",\"\",INDEX(Ranks!$1:$1048576,$A112,I$1))","v":""},{"$f":"IF($A112=\"N/A\",\"\",INDEX(Ranks!$1:$1048576,$A112,J$1))","v":""},{"$f":"IF($A112=\"N/A\",\"\",INDEX(Ranks!$1:$1048576,$A112,K$1))","v":""},null,{"$f":"IF($A112=\"N/A\",Ref!$B$36,INDEX(Ranks!$1:$1048576,$A112,M$1))","v":""},{"$f":"IF($A112=\"N/A\",Ref!$B$36,INDEX(Ranks!$1:$1048576,$A112,N$1))","v":""},{"$f":"IF($A112=\"N/A\",Ref!$B$36,INDEX(Ranks!$1:$1048576,$A112,O$1))","v":""},{"$f":"IF($A112=\"N/A\",Ref!$B$36,INDEX(Ranks!$1:$1048576,$A112,P$1))","v":""},{"$f":"IF($A112=\"N/A\",Ref!$B$36,INDEX(Ranks!$1:$1048576,$A112,Q$1))","v":""},{"$f":"IF($A112=\"N/A\",Ref!$B$36,INDEX(Ranks!$1:$1048576,$A112,R$1))","v":""},{"$f":"IF($A112=\"N/A\",Ref!$B$36,INDEX(Ranks!$1:$1048576,$A112,S$1))","v":""},{"$f":"IF($A112=\"N/A\",Ref!$B$36,INDEX(Ranks!$1:$1048576,$A112,T$1))","v":""},{"$f":"IF($A112=\"N/A\",Ref!$B$36,INDEX(Ranks!$1:$1048576,$A112,U$1))","v":""},{"$f":"IF($A112=\"N/A\",Ref!$B$36,INDEX(Ranks!$1:$1048576,$A112,V$1))","v":""},{"$f":"IF($A112=\"N/A\",Ref!$B$36,INDEX(Ranks!$1:$1048576,$A112,W$1))","v":""},{"$f":"IF($A112=\"N/A\",Ref!$B$36,INDEX(Ranks!$1:$1048576,$A112,X$1))","v":""},{"$f":"IF($A112=\"N/A\",Ref!$B$36,INDEX(Ranks!$1:$1048576,$A112,Y$1))","v":""},{"$f":"IF($A112=\"N/A\",Ref!$B$36,INDEX(Ranks!$1:$1048576,$A112,Z$1))","v":""},{"$f":"IF($A112=\"N/A\",Ref!$B$36,INDEX(Ranks!$1:$1048576,$A112,AA$1))","v":""},{"$f":"IF($A112=\"N/A\",Ref!$B$36,INDEX(Ranks!$1:$1048576,$A112,AB$1))","v":""},{"$f":"IF($A112=\"N/A\",Ref!$B$36,INDEX(Ranks!$1:$1048576,$A112,AC$1))","v":""},{"$f":"IF($A112=\"N/A\",Ref!$B$36,INDEX(Ranks!$1:$1048576,$A112,AD$1))","v":""},{"$f":"IF($A112=\"N/A\",Ref!$B$36,INDEX(Ranks!$1:$1048576,$A112,AE$1))","v":""},{"$f":"IF($A112=\"N/A\",Ref!$B$36,INDEX(Ranks!$1:$1048576,$A112,AF$1))","v":""},{"$f":"IF($A112=\"N/A\",Ref!$B$36,INDEX(Ranks!$1:$1048576,$A112,AG$1))","v":""},{"$f":"IF($A112=\"N/A\",Ref!$B$36,INDEX(Ranks!$1:$1048576,$A112,AH$1))","v":""},{"$f":"IF($A112=\"N/A\",Ref!$B$36,INDEX(Ranks!$1:$1048576,$A112,AI$1))","v":""},{"$f":"IF($A112=\"N/A\",Ref!$B$36,INDEX(Ranks!$1:$1048576,$A112,AJ$1))","v":""},{"$f":"IF($A112=\"N/A\",Ref!$B$36,INDEX(Ranks!$1:$1048576,$A112,AK$1))","v":""},{"$f":"IF($A112=\"N/A\",Ref!$B$36,INDEX(Ranks!$1:$1048576,$A112,AL$1))","v":""},{"$f":"IF($A112=\"N/A\",Ref!$B$36,INDEX(Ranks!$1:$1048576,$A112,AM$1))","v":""},{"$f":"IF($A112=\"N/A\",Ref!$B$36,INDEX(Ranks!$1:$1048576,$A112,AN$1))","v":""},{"$f":"IF($A112=\"N/A\",Ref!$B$36,INDEX(Ranks!$1:$1048576,$A112,AO$1))","v":""},{"$f":"IF($A112=\"N/A\",Ref!$B$36,INDEX(Ranks!$1:$1048576,$A112,AP$1))","v":""},{"$f":"IF($A112=\"N/A\",Ref!$B$36,INDEX(Ranks!$1:$1048576,$A112,AQ$1))","v":""},{"$f":"IF($A112=\"N/A\",Ref!$B$36,INDEX(Ranks!$1:$1048576,$A112,AR$1))","v":""},{"$f":"IF($A112=\"N/A\",Ref!$B$36,INDEX(Ranks!$1:$1048576,$A112,AS$1))","v":""},{"$f":"IF($A112=\"N/A\",Ref!$B$36,INDEX(Ranks!$1:$1048576,$A112,AT$1))","v":""},{"$f":"IF($A112=\"N/A\",Ref!$B$36,INDEX(Ranks!$1:$1048576,$A112,AU$1))","v":""},{"$f":"IF($A112=\"N/A\",Ref!$B$36,INDEX(Ranks!$1:$1048576,$A112,AV$1))","v":""},{"$f":"IF($A112=\"N/A\",Ref!$B$36,INDEX(Ranks!$1:$1048576,$A112,AW$1))","v":""},{"$f":"IF($A112=\"N/A\",Ref!$B$36,INDEX(Ranks!$1:$1048576,$A112,AX$1))","v":""},{"$f":"IF($A112=\"N/A\",Ref!$B$36,INDEX(Ranks!$1:$1048576,$A112,AY$1))","v":""},{"$f":"IF($A112=\"N/A\",Ref!$B$36,INDEX(Ranks!$1:$1048576,$A112,AZ$1))","v":""},{"$f":"IF($A112=\"N/A\",Ref!$B$36,INDEX(Ranks!$1:$1048576,$A112,BA$1))","v":""},{"$f":"IF($A112=\"N/A\",Ref!$B$36,INDEX(Ranks!$1:$1048576,$A112,BB$1))","v":""},{"$f":"IF($A112=\"N/A\",Ref!$B$36,INDEX(Ranks!$1:$1048576,$A112,BC$1))","v":""},{"$f":"IF($A112=\"N/A\",Ref!$B$36,INDEX(Ranks!$1:$1048576,$A112,BD$1))","v":""},{"$f":"IF($A112=\"N/A\",Ref!$B$36,INDEX(Ranks!$1:$1048576,$A112,BE$1))","v":""},{"$f":"IF($A112=\"N/A\",Ref!$B$36,INDEX(Ranks!$1:$1048576,$A112,BF$1))","v":""},{"$f":"IF($A112=\"N/A\",Ref!$B$36,INDEX(Ranks!$1:$1048576,$A112,BG$1))","v":""},{"$f":"IF($A112=\"N/A\",Ref!$B$36,INDEX(Ranks!$1:$1048576,$A112,BH$1))","v":""},{"$f":"IF($A112=\"N/A\",Ref!$B$36,INDEX(Ranks!$1:$1048576,$A112,BI$1))","v":""},{"$f":"IF($A112=\"N/A\",Ref!$B$36,INDEX(Ranks!$1:$1048576,$A112,BJ$1))","v":""},{"$f":"IF($A112=\"N/A\",Ref!$B$36,INDEX(Ranks!$1:$1048576,$A112,BK$1))","v":""},{"$f":"IF($A112=\"N/A\",Ref!$B$36,INDEX(Ranks!$1:$1048576,$A112,BL$1))","v":""},{"$f":"IF($A112=\"N/A\",Ref!$B$36,INDEX(Ranks!$1:$1048576,$A112,BM$1))","v":""},{"$f":"IF($A112=\"N/A\",Ref!$B$36,INDEX(Ranks!$1:$1048576,$A112,BN$1))","v":""},{"$f":"IF($A112=\"N/A\",Ref!$B$36,INDEX(Ranks!$1:$1048576,$A112,BO$1))","v":""},{"$f":"IF($A112=\"N/A\",Ref!$B$36,INDEX(Ranks!$1:$1048576,$A112,BP$1))","v":""},{"$f":"IF($A112=\"N/A\",Ref!$B$36,INDEX(Ranks!$1:$1048576,$A112,BQ$1))","v":""},{"$f":"IF($A112=\"N/A\",Ref!$B$36,INDEX(Ranks!$1:$1048576,$A112,BR$1))","v":""},{"$f":"IF($A112=\"N/A\",Ref!$B$36,INDEX(Ranks!$1:$1048576,$A112,BS$1))","v":""},{"$f":"IF($A112=\"N/A\",Ref!$B$36,INDEX(Ranks!$1:$1048576,$A112,BT$1))","v":""},{"$f":"IF($A112=\"N/A\",Ref!$B$36,INDEX(Ranks!$1:$1048576,$A112,BU$1))","v":""},{"$f":"IF($A112=\"N/A\",Ref!$B$36,INDEX(Ranks!$1:$1048576,$A112,BV$1))","v":""},{"$f":"IF($A112=\"N/A\",Ref!$B$36,INDEX(Ranks!$1:$1048576,$A112,BW$1))","v":""},{"$f":"IF($A112=\"N/A\",Ref!$B$36,INDEX(Ranks!$1:$1048576,$A112,BX$1))","v":""},{"$f":"IF($A112=\"N/A\",Ref!$B$36,INDEX(Ranks!$1:$1048576,$A112,BY$1))","v":""},{"$f":"IF($A112=\"N/A\",Ref!$B$36,INDEX(Ranks!$1:$1048576,$A112,BZ$1))","v":""},{"$f":"IF($A112=\"N/A\",Ref!$B$36,INDEX(Ranks!$1:$1048576,$A112,CA$1))","v":""},{"$f":"IF($A112=\"N/A\",Ref!$B$36,INDEX(Ranks!$1:$1048576,$A112,CB$1))","v":""},{"$f":"IF($A112=\"N/A\",Ref!$B$36,INDEX(Ranks!$1:$1048576,$A112,CC$1))","v":""},{"$f":"IF($A112=\"N/A\",Ref!$B$36,INDEX(Ranks!$1:$1048576,$A112,CD$1))","v":""},{"$f":"IF($A112=\"N/A\",Ref!$B$36,INDEX(Ranks!$1:$1048576,$A112,CE$1))","v":""},{"$f":"IF($A112=\"N/A\",Ref!$B$36,INDEX(Ranks!$1:$1048576,$A112,CF$1))","v":""},{"$f":"IF($A112=\"N/A\",Ref!$B$36,INDEX(Ranks!$1:$1048576,$A112,CG$1))","v":""},{"$f":"IF($A112=\"N/A\",Ref!$B$36,INDEX(Ranks!$1:$1048576,$A112,CH$1))","v":""},{"$f":"IF($A112=\"N/A\",Ref!$B$36,INDEX(Ranks!$1:$1048576,$A112,CI$1))","v":""},{"$f":"IF($A112=\"N/A\",Ref!$B$36,INDEX(Ranks!$1:$1048576,$A112,CJ$1))","v":""},{"$f":"IF($A112=\"N/A\",Ref!$B$36,INDEX(Ranks!$1:$1048576,$A112,CK$1))","v":""},{"$f":"IF($A112=\"N/A\",Ref!$B$36,INDEX(Ranks!$1:$1048576,$A112,CL$1))","v":""},{"$f":"IF($A112=\"N/A\",Ref!$B$36,INDEX(Ranks!$1:$1048576,$A112,CM$1))","v":""},{"$f":"IF($A112=\"N/A\",Ref!$B$36,INDEX(Ranks!$1:$1048576,$A112,CN$1))","v":""},{"$f":"IF($A112=\"N/A\",Ref!$B$36,INDEX(Ranks!$1:$1048576,$A112,CO$1))","v":""},{"$f":"IF($A112=\"N/A\",Ref!$B$36,INDEX(Ranks!$1:$1048576,$A112,CP$1))","v":""},{"$f":"IF($A112=\"N/A\",Ref!$B$36,INDEX(Ranks!$1:$1048576,$A112,CQ$1))","v":""},{"$f":"IF($A112=\"N/A\",Ref!$B$36,INDEX(Ranks!$1:$1048576,$A112,CR$1))","v":""},{"$f":"IF($A112=\"N/A\",Ref!$B$36,INDEX(Ranks!$1:$1048576,$A112,CS$1))","v":""},{"$f":"IF($A112=\"N/A\",Ref!$B$36,INDEX(Ranks!$1:$1048576,$A112,CT$1))","v":""},{"$f":"IF($A112=\"N/A\",Ref!$B$36,INDEX(Ranks!$1:$1048576,$A112,CU$1))","v":""},{"$f":"IF($A112=\"N/A\",Ref!$B$36,INDEX(Ranks!$1:$1048576,$A112,CV$1))","v":""},{"$f":"IF($A112=\"N/A\",Ref!$B$36,INDEX(Ranks!$1:$1048576,$A112,CW$1))","v":""},{"$f":"IF($A112=\"N/A\",Ref!$B$36,INDEX(Ranks!$1:$1048576,$A112,CX$1))","v":""},{"$f":"IF($A112=\"N/A\",Ref!$B$36,INDEX(Ranks!$1:$1048576,$A112,CY$1))","v":""},{"$f":"IF($A112=\"N/A\",Ref!$B$36,INDEX(Ranks!$1:$1048576,$A112,CZ$1))","v":""},{"$f":"IF($A112=\"N/A\",Ref!$B$36,INDEX(Ranks!$1:$1048576,$A112,DA$1))","v":""},{"$f":"IF($A112=\"N/A\",Ref!$B$36,INDEX(Ranks!$1:$1048576,$A112,DB$1))","v":""},{"$f":"IF($A112=\"N/A\",Ref!$B$36,INDEX(Ranks!$1:$1048576,$A112,DC$1))","v":""},{"$f":"IF($A112=\"N/A\",Ref!$B$36,INDEX(Ranks!$1:$1048576,$A112,DD$1))","v":""},{"$f":"IF($A112=\"N/A\",Ref!$B$36,INDEX(Ranks!$1:$1048576,$A112,DE$1))","v":""},{"$f":"IF($A112=\"N/A\",Ref!$B$36,INDEX(Ranks!$1:$1048576,$A112,DF$1))","v":""},{"$f":"IF($A112=\"N/A\",Ref!$B$36,INDEX(Ranks!$1:$1048576,$A112,DG$1))","v":""},{"$f":"IF($A112=\"N/A\",Ref!$B$36,INDEX(Ranks!$1:$1048576,$A112,DH$1))","v":""},{"$f":"IF($A112=\"N/A\",Ref!$B$36,INDEX(Ranks!$1:$1048576,$A112,DI$1))","v":""},{"$f":"IF($A112=\"N/A\",Ref!$B$36,INDEX(Ranks!$1:$1048576,$A112,DJ$1))","v":""},{"$f":"IF($A112=\"N/A\",Ref!$B$36,INDEX(Ranks!$1:$1048576,$A112,DK$1))","v":""},{"$f":"IF($A112=\"N/A\",Ref!$B$36,INDEX(Ranks!$1:$1048576,$A112,DL$1))","v":""},{"$f":"IF($A112=\"N/A\",Ref!$B$36,INDEX(Ranks!$1:$1048576,$A112,DM$1))","v":""},{"$f":"IF($A112=\"N/A\",Ref!$B$36,INDEX(Ranks!$1:$1048576,$A112,DN$1))","v":""},{"$f":"IF($A112=\"N/A\",Ref!$B$36,INDEX(Ranks!$1:$1048576,$A112,DO$1))","v":""},{"$f":"IF($A112=\"N/A\",Ref!$B$36,INDEX(Ranks!$1:$1048576,$A112,DP$1))","v":""},{"$f":"IF($A112=\"N/A\",Ref!$B$36,INDEX(Ranks!$1:$1048576,$A112,DQ$1))","v":""},{"$f":"IF($A112=\"N/A\",Ref!$B$36,INDEX(Ranks!$1:$1048576,$A112,DR$1))","v":""},{"$f":"IF($A112=\"N/A\",Ref!$B$36,INDEX(Ranks!$1:$1048576,$A112,DS$1))","v":""},{"$f":"IF($A112=\"N/A\",Ref!$B$36,INDEX(Ranks!$1:$1048576,$A112,DT$1))","v":""},{"$f":"IF($A112=\"N/A\",Ref!$B$36,INDEX(Ranks!$1:$1048576,$A112,DU$1))","v":""},{"$f":"IF($A112=\"N/A\",Ref!$B$36,INDEX(Ranks!$1:$1048576,$A112,DV$1))","v":""},{"$f":"IF($A112=\"N/A\",Ref!$B$36,INDEX(Ranks!$1:$1048576,$A112,DW$1))","v":""},{"$f":"IF($A112=\"N/A\",Ref!$B$36,INDEX(Ranks!$1:$1048576,$A112,DX$1))","v":""},{"$f":"IF($A112=\"N/A\",Ref!$B$36,INDEX(Ranks!$1:$1048576,$A112,DY$1))","v":""},{"$f":"IF($A112=\"N/A\",Ref!$B$36,INDEX(Ranks!$1:$1048576,$A112,DZ$1))","v":""},{"$f":"IF($A112=\"N/A\",Ref!$B$36,INDEX(Ranks!$1:$1048576,$A112,EA$1))","v":""},{"$f":"IF($A112=\"N/A\",Ref!$B$36,INDEX(Ranks!$1:$1048576,$A112,EB$1))","v":""}]
[{"$f":"IFERROR(MATCH('Portfolio Page'!L113,Ranks!L:L,0),\"N/A\")","v":"N/A"},null,{"$f":"IF($A113=\"N/A\",\"\",INDEX(Ranks!$1:$1048576,$A113,C$1))","v":""},{"$f":"IF($A113=\"N/A\",Ref!$B$36,INDEX(Ranks!$1:$1048576,$A113,D$1))","v":""},{"$f":"IF($A113=\"N/A\",Ref!$B$36,INDEX(Ranks!$1:$1048576,$A113,E$1))","v":""},{"$f":"IF($A113=\"N/A\",\"\",INDEX(Ranks!$1:$1048576,$A113,F$1))","v":""},{"$f":"IF($A113=\"N/A\",\"\",INDEX(Ranks!$1:$1048576,$A113,G$1))","v":""},{"$f":"IF($A113=\"N/A\",\"\",INDEX(Ranks!$1:$1048576,$A113,H$1))","v":""},{"$f":"IF($A113=\"N/A\",\"\",INDEX(Ranks!$1:$1048576,$A113,I$1))","v":""},{"$f":"IF($A113=\"N/A\",\"\",INDEX(Ranks!$1:$1048576,$A113,J$1))","v":""},{"$f":"IF($A113=\"N/A\",\"\",INDEX(Ranks!$1:$1048576,$A113,K$1))","v":""},null,{"$f":"IF($A113=\"N/A\",Ref!$B$36,INDEX(Ranks!$1:$1048576,$A113,M$1))","v":""},{"$f":"IF($A113=\"N/A\",Ref!$B$36,INDEX(Ranks!$1:$1048576,$A113,N$1))","v":""},{"$f":"IF($A113=\"N/A\",Ref!$B$36,INDEX(Ranks!$1:$1048576,$A113,O$1))","v":""},{"$f":"IF($A113=\"N/A\",Ref!$B$36,INDEX(Ranks!$1:$1048576,$A113,P$1))","v":""},{"$f":"IF($A113=\"N/A\",Ref!$B$36,INDEX(Ranks!$1:$1048576,$A113,Q$1))","v":""},{"$f":"IF($A113=\"N/A\",Ref!$B$36,INDEX(Ranks!$1:$1048576,$A113,R$1))","v":""},{"$f":"IF($A113=\"N/A\",Ref!$B$36,INDEX(Ranks!$1:$1048576,$A113,S$1))","v":""},{"$f":"IF($A113=\"N/A\",Ref!$B$36,INDEX(Ranks!$1:$1048576,$A113,T$1))","v":""},{"$f":"IF($A113=\"N/A\",Ref!$B$36,INDEX(Ranks!$1:$1048576,$A113,U$1))","v":""},{"$f":"IF($A113=\"N/A\",Ref!$B$36,INDEX(Ranks!$1:$1048576,$A113,V$1))","v":""},{"$f":"IF($A113=\"N/A\",Ref!$B$36,INDEX(Ranks!$1:$1048576,$A113,W$1))","v":""},{"$f":"IF($A113=\"N/A\",Ref!$B$36,INDEX(Ranks!$1:$1048576,$A113,X$1))","v":""},{"$f":"IF($A113=\"N/A\",Ref!$B$36,INDEX(Ranks!$1:$1048576,$A113,Y$1))","v":""},{"$f":"IF($A113=\"N/A\",Ref!$B$36,INDEX(Ranks!$1:$1048576,$A113,Z$1))","v":""},{"$f":"IF($A113=\"N/A\",Ref!$B$36,INDEX(Ranks!$1:$1048576,$A113,AA$1))","v":""},{"$f":"IF($A113=\"N/A\",Ref!$B$36,INDEX(Ranks!$1:$1048576,$A113,AB$1))","v":""},{"$f":"IF($A113=\"N/A\",Ref!$B$36,INDEX(Ranks!$1:$1048576,$A113,AC$1))","v":""},{"$f":"IF($A113=\"N/A\",Ref!$B$36,INDEX(Ranks!$1:$1048576,$A113,AD$1))","v":""},{"$f":"IF($A113=\"N/A\",Ref!$B$36,INDEX(Ranks!$1:$1048576,$A113,AE$1))","v":""},{"$f":"IF($A113=\"N/A\",Ref!$B$36,INDEX(Ranks!$1:$1048576,$A113,AF$1))","v":""},{"$f":"IF($A113=\"N/A\",Ref!$B$36,INDEX(Ranks!$1:$1048576,$A113,AG$1))","v":""},{"$f":"IF($A113=\"N/A\",Ref!$B$36,INDEX(Ranks!$1:$1048576,$A113,AH$1))","v":""},{"$f":"IF($A113=\"N/A\",Ref!$B$36,INDEX(Ranks!$1:$1048576,$A113,AI$1))","v":""},{"$f":"IF($A113=\"N/A\",Ref!$B$36,INDEX(Ranks!$1:$1048576,$A113,AJ$1))","v":""},{"$f":"IF($A113=\"N/A\",Ref!$B$36,INDEX(Ranks!$1:$1048576,$A113,AK$1))","v":""},{"$f":"IF($A113=\"N/A\",Ref!$B$36,INDEX(Ranks!$1:$1048576,$A113,AL$1))","v":""},{"$f":"IF($A113=\"N/A\",Ref!$B$36,INDEX(Ranks!$1:$1048576,$A113,AM$1))","v":""},{"$f":"IF($A113=\"N/A\",Ref!$B$36,INDEX(Ranks!$1:$1048576,$A113,AN$1))","v":""},{"$f":"IF($A113=\"N/A\",Ref!$B$36,INDEX(Ranks!$1:$1048576,$A113,AO$1))","v":""},{"$f":"IF($A113=\"N/A\",Ref!$B$36,INDEX(Ranks!$1:$1048576,$A113,AP$1))","v":""},{"$f":"IF($A113=\"N/A\",Ref!$B$36,INDEX(Ranks!$1:$1048576,$A113,AQ$1))","v":""},{"$f":"IF($A113=\"N/A\",Ref!$B$36,INDEX(Ranks!$1:$1048576,$A113,AR$1))","v":""},{"$f":"IF($A113=\"N/A\",Ref!$B$36,INDEX(Ranks!$1:$1048576,$A113,AS$1))","v":""},{"$f":"IF($A113=\"N/A\",Ref!$B$36,INDEX(Ranks!$1:$1048576,$A113,AT$1))","v":""},{"$f":"IF($A113=\"N/A\",Ref!$B$36,INDEX(Ranks!$1:$1048576,$A113,AU$1))","v":""},{"$f":"IF($A113=\"N/A\",Ref!$B$36,INDEX(Ranks!$1:$1048576,$A113,AV$1))","v":""},{"$f":"IF($A113=\"N/A\",Ref!$B$36,INDEX(Ranks!$1:$1048576,$A113,AW$1))","v":""},{"$f":"IF($A113=\"N/A\",Ref!$B$36,INDEX(Ranks!$1:$1048576,$A113,AX$1))","v":""},{"$f":"IF($A113=\"N/A\",Ref!$B$36,INDEX(Ranks!$1:$1048576,$A113,AY$1))","v":""},{"$f":"IF($A113=\"N/A\",Ref!$B$36,INDEX(Ranks!$1:$1048576,$A113,AZ$1))","v":""},{"$f":"IF($A113=\"N/A\",Ref!$B$36,INDEX(Ranks!$1:$1048576,$A113,BA$1))","v":""},{"$f":"IF($A113=\"N/A\",Ref!$B$36,INDEX(Ranks!$1:$1048576,$A113,BB$1))","v":""},{"$f":"IF($A113=\"N/A\",Ref!$B$36,INDEX(Ranks!$1:$1048576,$A113,BC$1))","v":""},{"$f":"IF($A113=\"N/A\",Ref!$B$36,INDEX(Ranks!$1:$1048576,$A113,BD$1))","v":""},{"$f":"IF($A113=\"N/A\",Ref!$B$36,INDEX(Ranks!$1:$1048576,$A113,BE$1))","v":""},{"$f":"IF($A113=\"N/A\",Ref!$B$36,INDEX(Ranks!$1:$1048576,$A113,BF$1))","v":""},{"$f":"IF($A113=\"N/A\",Ref!$B$36,INDEX(Ranks!$1:$1048576,$A113,BG$1))","v":""},{"$f":"IF($A113=\"N/A\",Ref!$B$36,INDEX(Ranks!$1:$1048576,$A113,BH$1))","v":""},{"$f":"IF($A113=\"N/A\",Ref!$B$36,INDEX(Ranks!$1:$1048576,$A113,BI$1))","v":""},{"$f":"IF($A113=\"N/A\",Ref!$B$36,INDEX(Ranks!$1:$1048576,$A113,BJ$1))","v":""},{"$f":"IF($A113=\"N/A\",Ref!$B$36,INDEX(Ranks!$1:$1048576,$A113,BK$1))","v":""},{"$f":"IF($A113=\"N/A\",Ref!$B$36,INDEX(Ranks!$1:$1048576,$A113,BL$1))","v":""},{"$f":"IF($A113=\"N/A\",Ref!$B$36,INDEX(Ranks!$1:$1048576,$A113,BM$1))","v":""},{"$f":"IF($A113=\"N/A\",Ref!$B$36,INDEX(Ranks!$1:$1048576,$A113,BN$1))","v":""},{"$f":"IF($A113=\"N/A\",Ref!$B$36,INDEX(Ranks!$1:$1048576,$A113,BO$1))","v":""},{"$f":"IF($A113=\"N/A\",Ref!$B$36,INDEX(Ranks!$1:$1048576,$A113,BP$1))","v":""},{"$f":"IF($A113=\"N/A\",Ref!$B$36,INDEX(Ranks!$1:$1048576,$A113,BQ$1))","v":""},{"$f":"IF($A113=\"N/A\",Ref!$B$36,INDEX(Ranks!$1:$1048576,$A113,BR$1))","v":""},{"$f":"IF($A113=\"N/A\",Ref!$B$36,INDEX(Ranks!$1:$1048576,$A113,BS$1))","v":""},{"$f":"IF($A113=\"N/A\",Ref!$B$36,INDEX(Ranks!$1:$1048576,$A113,BT$1))","v":""},{"$f":"IF($A113=\"N/A\",Ref!$B$36,INDEX(Ranks!$1:$1048576,$A113,BU$1))","v":""},{"$f":"IF($A113=\"N/A\",Ref!$B$36,INDEX(Ranks!$1:$1048576,$A113,BV$1))","v":""},{"$f":"IF($A113=\"N/A\",Ref!$B$36,INDEX(Ranks!$1:$1048576,$A113,BW$1))","v":""},{"$f":"IF($A113=\"N/A\",Ref!$B$36,INDEX(Ranks!$1:$1048576,$A113,BX$1))","v":""},{"$f":"IF($A113=\"N/A\",Ref!$B$36,INDEX(Ranks!$1:$1048576,$A113,BY$1))","v":""},{"$f":"IF($A113=\"N/A\",Ref!$B$36,INDEX(Ranks!$1:$1048576,$A113,BZ$1))","v":""},{"$f":"IF($A113=\"N/A\",Ref!$B$36,INDEX(Ranks!$1:$1048576,$A113,CA$1))","v":""},{"$f":"IF($A113=\"N/A\",Ref!$B$36,INDEX(Ranks!$1:$1048576,$A113,CB$1))","v":""},{"$f":"IF($A113=\"N/A\",Ref!$B$36,INDEX(Ranks!$1:$1048576,$A113,CC$1))","v":""},{"$f":"IF($A113=\"N/A\",Ref!$B$36,INDEX(Ranks!$1:$1048576,$A113,CD$1))","v":""},{"$f":"IF($A113=\"N/A\",Ref!$B$36,INDEX(Ranks!$1:$1048576,$A113,CE$1))","v":""},{"$f":"IF($A113=\"N/A\",Ref!$B$36,INDEX(Ranks!$1:$1048576,$A113,CF$1))","v":""},{"$f":"IF($A113=\"N/A\",Ref!$B$36,INDEX(Ranks!$1:$1048576,$A113,CG$1))","v":""},{"$f":"IF($A113=\"N/A\",Ref!$B$36,INDEX(Ranks!$1:$1048576,$A113,CH$1))","v":""},{"$f":"IF($A113=\"N/A\",Ref!$B$36,INDEX(Ranks!$1:$1048576,$A113,CI$1))","v":""},{"$f":"IF($A113=\"N/A\",Ref!$B$36,INDEX(Ranks!$1:$1048576,$A113,CJ$1))","v":""},{"$f":"IF($A113=\"N/A\",Ref!$B$36,INDEX(Ranks!$1:$1048576,$A113,CK$1))","v":""},{"$f":"IF($A113=\"N/A\",Ref!$B$36,INDEX(Ranks!$1:$1048576,$A113,CL$1))","v":""},{"$f":"IF($A113=\"N/A\",Ref!$B$36,INDEX(Ranks!$1:$1048576,$A113,CM$1))","v":""},{"$f":"IF($A113=\"N/A\",Ref!$B$36,INDEX(Ranks!$1:$1048576,$A113,CN$1))","v":""},{"$f":"IF($A113=\"N/A\",Ref!$B$36,INDEX(Ranks!$1:$1048576,$A113,CO$1))","v":""},{"$f":"IF($A113=\"N/A\",Ref!$B$36,INDEX(Ranks!$1:$1048576,$A113,CP$1))","v":""},{"$f":"IF($A113=\"N/A\",Ref!$B$36,INDEX(Ranks!$1:$1048576,$A113,CQ$1))","v":""},{"$f":"IF($A113=\"N/A\",Ref!$B$36,INDEX(Ranks!$1:$1048576,$A113,CR$1))","v":""},{"$f":"IF($A113=\"N/A\",Ref!$B$36,INDEX(Ranks!$1:$1048576,$A113,CS$1))","v":""},{"$f":"IF($A113=\"N/A\",Ref!$B$36,INDEX(Ranks!$1:$1048576,$A113,CT$1))","v":""},{"$f":"IF($A113=\"N/A\",Ref!$B$36,INDEX(Ranks!$1:$1048576,$A113,CU$1))","v":""},{"$f":"IF($A113=\"N/A\",Ref!$B$36,INDEX(Ranks!$1:$1048576,$A113,CV$1))","v":""},{"$f":"IF($A113=\"N/A\",Ref!$B$36,INDEX(Ranks!$1:$1048576,$A113,CW$1))","v":""},{"$f":"IF($A113=\"N/A\",Ref!$B$36,INDEX(Ranks!$1:$1048576,$A113,CX$1))","v":""},{"$f":"IF($A113=\"N/A\",Ref!$B$36,INDEX(Ranks!$1:$1048576,$A113,CY$1))","v":""},{"$f":"IF($A113=\"N/A\",Ref!$B$36,INDEX(Ranks!$1:$1048576,$A113,CZ$1))","v":""},{"$f":"IF($A113=\"N/A\",Ref!$B$36,INDEX(Ranks!$1:$1048576,$A113,DA$1))","v":""},{"$f":"IF($A113=\"N/A\",Ref!$B$36,INDEX(Ranks!$1:$1048576,$A113,DB$1))","v":""},{"$f":"IF($A113=\"N/A\",Ref!$B$36,INDEX(Ranks!$1:$1048576,$A113,DC$1))","v":""},{"$f":"IF($A113=\"N/A\",Ref!$B$36,INDEX(Ranks!$1:$1048576,$A113,DD$1))","v":""},{"$f":"IF($A113=\"N/A\",Ref!$B$36,INDEX(Ranks!$1:$1048576,$A113,DE$1))","v":""},{"$f":"IF($A113=\"N/A\",Ref!$B$36,INDEX(Ranks!$1:$1048576,$A113,DF$1))","v":""},{"$f":"IF($A113=\"N/A\",Ref!$B$36,INDEX(Ranks!$1:$1048576,$A113,DG$1))","v":""},{"$f":"IF($A113=\"N/A\",Ref!$B$36,INDEX(Ranks!$1:$1048576,$A113,DH$1))","v":""},{"$f":"IF($A113=\"N/A\",Ref!$B$36,INDEX(Ranks!$1:$1048576,$A113,DI$1))","v":""},{"$f":"IF($A113=\"N/A\",Ref!$B$36,INDEX(Ranks!$1:$1048576,$A113,DJ$1))","v":""},{"$f":"IF($A113=\"N/A\",Ref!$B$36,INDEX(Ranks!$1:$1048576,$A113,DK$1))","v":""},{"$f":"IF($A113=\"N/A\",Ref!$B$36,INDEX(Ranks!$1:$1048576,$A113,DL$1))","v":""},{"$f":"IF($A113=\"N/A\",Ref!$B$36,INDEX(Ranks!$1:$1048576,$A113,DM$1))","v":""},{"$f":"IF($A113=\"N/A\",Ref!$B$36,INDEX(Ranks!$1:$1048576,$A113,DN$1))","v":""},{"$f":"IF($A113=\"N/A\",Ref!$B$36,INDEX(Ranks!$1:$1048576,$A113,DO$1))","v":""},{"$f":"IF($A113=\"N/A\",Ref!$B$36,INDEX(Ranks!$1:$1048576,$A113,DP$1))","v":""},{"$f":"IF($A113=\"N/A\",Ref!$B$36,INDEX(Ranks!$1:$1048576,$A113,DQ$1))","v":""},{"$f":"IF($A113=\"N/A\",Ref!$B$36,INDEX(Ranks!$1:$1048576,$A113,DR$1))","v":""},{"$f":"IF($A113=\"N/A\",Ref!$B$36,INDEX(Ranks!$1:$1048576,$A113,DS$1))","v":""},{"$f":"IF($A113=\"N/A\",Ref!$B$36,INDEX(Ranks!$1:$1048576,$A113,DT$1))","v":""},{"$f":"IF($A113=\"N/A\",Ref!$B$36,INDEX(Ranks!$1:$1048576,$A113,DU$1))","v":""},{"$f":"IF($A113=\"N/A\",Ref!$B$36,INDEX(Ranks!$1:$1048576,$A113,DV$1))","v":""},{"$f":"IF($A113=\"N/A\",Ref!$B$36,INDEX(Ranks!$1:$1048576,$A113,DW$1))","v":""},{"$f":"IF($A113=\"N/A\",Ref!$B$36,INDEX(Ranks!$1:$1048576,$A113,DX$1))","v":""},{"$f":"IF($A113=\"N/A\",Ref!$B$36,INDEX(Ranks!$1:$1048576,$A113,DY$1))","v":""},{"$f":"IF($A113=\"N/A\",Ref!$B$36,INDEX(Ranks!$1:$1048576,$A113,DZ$1))","v":""},{"$f":"IF($A113=\"N/A\",Ref!$B$36,INDEX(Ranks!$1:$1048576,$A113,EA$1))","v":""},{"$f":"IF($A113=\"N/A\",Ref!$B$36,INDEX(Ranks!$1:$1048576,$A113,EB$1))","v":""}]
[{"$f":"IFERROR(MATCH('Portfolio Page'!L114,Ranks!L:L,0),\"N/A\")","v":"N/A"},null,{"$f":"IF($A114=\"N/A\",\"\",INDEX(Ranks!$1:$1048576,$A114,C$1))","v":""},{"$f":"IF($A114=\"N/A\",Ref!$B$36,INDEX(Ranks!$1:$1048576,$A114,D$1))","v":""},{"$f":"IF($A114=\"N/A\",Ref!$B$36,INDEX(Ranks!$1:$1048576,$A114,E$1))","v":""},{"$f":"IF($A114=\"N/A\",\"\",INDEX(Ranks!$1:$1048576,$A114,F$1))","v":""},{"$f":"IF($A114=\"N/A\",\"\",INDEX(Ranks!$1:$1048576,$A114,G$1))","v":""},{"$f":"IF($A114=\"N/A\",\"\",INDEX(Ranks!$1:$1048576,$A114,H$1))","v":""},{"$f":"IF($A114=\"N/A\",\"\",INDEX(Ranks!$1:$1048576,$A114,I$1))","v":""},{"$f":"IF($A114=\"N/A\",\"\",INDEX(Ranks!$1:$1048576,$A114,J$1))","v":""},{"$f":"IF($A114=\"N/A\",\"\",INDEX(Ranks!$1:$1048576,$A114,K$1))","v":""},null,{"$f":"IF($A114=\"N/A\",Ref!$B$36,INDEX(Ranks!$1:$1048576,$A114,M$1))","v":""},{"$f":"IF($A114=\"N/A\",Ref!$B$36,INDEX(Ranks!$1:$1048576,$A114,N$1))","v":""},{"$f":"IF($A114=\"N/A\",Ref!$B$36,INDEX(Ranks!$1:$1048576,$A114,O$1))","v":""},{"$f":"IF($A114=\"N/A\",Ref!$B$36,INDEX(Ranks!$1:$1048576,$A114,P$1))","v":""},{"$f":"IF($A114=\"N/A\",Ref!$B$36,INDEX(Ranks!$1:$1048576,$A114,Q$1))","v":""},{"$f":"IF($A114=\"N/A\",Ref!$B$36,INDEX(Ranks!$1:$1048576,$A114,R$1))","v":""},{"$f":"IF($A114=\"N/A\",Ref!$B$36,INDEX(Ranks!$1:$1048576,$A114,S$1))","v":""},{"$f":"IF($A114=\"N/A\",Ref!$B$36,INDEX(Ranks!$1:$1048576,$A114,T$1))","v":""},{"$f":"IF($A114=\"N/A\",Ref!$B$36,INDEX(Ranks!$1:$1048576,$A114,U$1))","v":""},{"$f":"IF($A114=\"N/A\",Ref!$B$36,INDEX(Ranks!$1:$1048576,$A114,V$1))","v":""},{"$f":"IF($A114=\"N/A\",Ref!$B$36,INDEX(Ranks!$1:$1048576,$A114,W$1))","v":""},{"$f":"IF($A114=\"N/A\",Ref!$B$36,INDEX(Ranks!$1:$1048576,$A114,X$1))","v":""},{"$f":"IF($A114=\"N/A\",Ref!$B$36,INDEX(Ranks!$1:$1048576,$A114,Y$1))","v":""},{"$f":"IF($A114=\"N/A\",Ref!$B$36,INDEX(Ranks!$1:$1048576,$A114,Z$1))","v":""},{"$f":"IF($A114=\"N/A\",Ref!$B$36,INDEX(Ranks!$1:$1048576,$A114,AA$1))","v":""},{"$f":"IF($A114=\"N/A\",Ref!$B$36,INDEX(Ranks!$1:$1048576,$A114,AB$1))","v":""},{"$f":"IF($A114=\"N/A\",Ref!$B$36,INDEX(Ranks!$1:$1048576,$A114,AC$1))","v":""},{"$f":"IF($A114=\"N/A\",Ref!$B$36,INDEX(Ranks!$1:$1048576,$A114,AD$1))","v":""},{"$f":"IF($A114=\"N/A\",Ref!$B$36,INDEX(Ranks!$1:$1048576,$A114,AE$1))","v":""},{"$f":"IF($A114=\"N/A\",Ref!$B$36,INDEX(Ranks!$1:$1048576,$A114,AF$1))","v":""},{"$f":"IF($A114=\"N/A\",Ref!$B$36,INDEX(Ranks!$1:$1048576,$A114,AG$1))","v":""},{"$f":"IF($A114=\"N/A\",Ref!$B$36,INDEX(Ranks!$1:$1048576,$A114,AH$1))","v":""},{"$f":"IF($A114=\"N/A\",Ref!$B$36,INDEX(Ranks!$1:$1048576,$A114,AI$1))","v":""},{"$f":"IF($A114=\"N/A\",Ref!$B$36,INDEX(Ranks!$1:$1048576,$A114,AJ$1))","v":""},{"$f":"IF($A114=\"N/A\",Ref!$B$36,INDEX(Ranks!$1:$1048576,$A114,AK$1))","v":""},{"$f":"IF($A114=\"N/A\",Ref!$B$36,INDEX(Ranks!$1:$1048576,$A114,AL$1))","v":""},{"$f":"IF($A114=\"N/A\",Ref!$B$36,INDEX(Ranks!$1:$1048576,$A114,AM$1))","v":""},{"$f":"IF($A114=\"N/A\",Ref!$B$36,INDEX(Ranks!$1:$1048576,$A114,AN$1))","v":""},{"$f":"IF($A114=\"N/A\",Ref!$B$36,INDEX(Ranks!$1:$1048576,$A114,AO$1))","v":""},{"$f":"IF($A114=\"N/A\",Ref!$B$36,INDEX(Ranks!$1:$1048576,$A114,AP$1))","v":""},{"$f":"IF($A114=\"N/A\",Ref!$B$36,INDEX(Ranks!$1:$1048576,$A114,AQ$1))","v":""},{"$f":"IF($A114=\"N/A\",Ref!$B$36,INDEX(Ranks!$1:$1048576,$A114,AR$1))","v":""},{"$f":"IF($A114=\"N/A\",Ref!$B$36,INDEX(Ranks!$1:$1048576,$A114,AS$1))","v":""},{"$f":"IF($A114=\"N/A\",Ref!$B$36,INDEX(Ranks!$1:$1048576,$A114,AT$1))","v":""},{"$f":"IF($A114=\"N/A\",Ref!$B$36,INDEX(Ranks!$1:$1048576,$A114,AU$1))","v":""},{"$f":"IF($A114=\"N/A\",Ref!$B$36,INDEX(Ranks!$1:$1048576,$A114,AV$1))","v":""},{"$f":"IF($A114=\"N/A\",Ref!$B$36,INDEX(Ranks!$1:$1048576,$A114,AW$1))","v":""},{"$f":"IF($A114=\"N/A\",Ref!$B$36,INDEX(Ranks!$1:$1048576,$A114,AX$1))","v":""},{"$f":"IF($A114=\"N/A\",Ref!$B$36,INDEX(Ranks!$1:$1048576,$A114,AY$1))","v":""},{"$f":"IF($A114=\"N/A\",Ref!$B$36,INDEX(Ranks!$1:$1048576,$A114,AZ$1))","v":""},{"$f":"IF($A114=\"N/A\",Ref!$B$36,INDEX(Ranks!$1:$1048576,$A114,BA$1))","v":""},{"$f":"IF($A114=\"N/A\",Ref!$B$36,INDEX(Ranks!$1:$1048576,$A114,BB$1))","v":""},{"$f":"IF($A114=\"N/A\",Ref!$B$36,INDEX(Ranks!$1:$1048576,$A114,BC$1))","v":""},{"$f":"IF($A114=\"N/A\",Ref!$B$36,INDEX(Ranks!$1:$1048576,$A114,BD$1))","v":""},{"$f":"IF($A114=\"N/A\",Ref!$B$36,INDEX(Ranks!$1:$1048576,$A114,BE$1))","v":""},{"$f":"IF($A114=\"N/A\",Ref!$B$36,INDEX(Ranks!$1:$1048576,$A114,BF$1))","v":""},{"$f":"IF($A114=\"N/A\",Ref!$B$36,INDEX(Ranks!$1:$1048576,$A114,BG$1))","v":""},{"$f":"IF($A114=\"N/A\",Ref!$B$36,INDEX(Ranks!$1:$1048576,$A114,BH$1))","v":""},{"$f":"IF($A114=\"N/A\",Ref!$B$36,INDEX(Ranks!$1:$1048576,$A114,BI$1))","v":""},{"$f":"IF($A114=\"N/A\",Ref!$B$36,INDEX(Ranks!$1:$1048576,$A114,BJ$1))","v":""},{"$f":"IF($A114=\"N/A\",Ref!$B$36,INDEX(Ranks!$1:$1048576,$A114,BK$1))","v":""},{"$f":"IF($A114=\"N/A\",Ref!$B$36,INDEX(Ranks!$1:$1048576,$A114,BL$1))","v":""},{"$f":"IF($A114=\"N/A\",Ref!$B$36,INDEX(Ranks!$1:$1048576,$A114,BM$1))","v":""},{"$f":"IF($A114=\"N/A\",Ref!$B$36,INDEX(Ranks!$1:$1048576,$A114,BN$1))","v":""},{"$f":"IF($A114=\"N/A\",Ref!$B$36,INDEX(Ranks!$1:$1048576,$A114,BO$1))","v":""},{"$f":"IF($A114=\"N/A\",Ref!$B$36,INDEX(Ranks!$1:$1048576,$A114,BP$1))","v":""},{"$f":"IF($A114=\"N/A\",Ref!$B$36,INDEX(Ranks!$1:$1048576,$A114,BQ$1))","v":""},{"$f":"IF($A114=\"N/A\",Ref!$B$36,INDEX(Ranks!$1:$1048576,$A114,BR$1))","v":""},{"$f":"IF($A114=\"N/A\",Ref!$B$36,INDEX(Ranks!$1:$1048576,$A114,BS$1))","v":""},{"$f":"IF($A114=\"N/A\",Ref!$B$36,INDEX(Ranks!$1:$1048576,$A114,BT$1))","v":""},{"$f":"IF($A114=\"N/A\",Ref!$B$36,INDEX(Ranks!$1:$1048576,$A114,BU$1))","v":""},{"$f":"IF($A114=\"N/A\",Ref!$B$36,INDEX(Ranks!$1:$1048576,$A114,BV$1))","v":""},{"$f":"IF($A114=\"N/A\",Ref!$B$36,INDEX(Ranks!$1:$1048576,$A114,BW$1))","v":""},{"$f":"IF($A114=\"N/A\",Ref!$B$36,INDEX(Ranks!$1:$1048576,$A114,BX$1))","v":""},{"$f":"IF($A114=\"N/A\",Ref!$B$36,INDEX(Ranks!$1:$1048576,$A114,BY$1))","v":""},{"$f":"IF($A114=\"N/A\",Ref!$B$36,INDEX(Ranks!$1:$1048576,$A114,BZ$1))","v":""},{"$f":"IF($A114=\"N/A\",Ref!$B$36,INDEX(Ranks!$1:$1048576,$A114,CA$1))","v":""},{"$f":"IF($A114=\"N/A\",Ref!$B$36,INDEX(Ranks!$1:$1048576,$A114,CB$1))","v":""},{"$f":"IF($A114=\"N/A\",Ref!$B$36,INDEX(Ranks!$1:$1048576,$A114,CC$1))","v":""},{"$f":"IF($A114=\"N/A\",Ref!$B$36,INDEX(Ranks!$1:$1048576,$A114,CD$1))","v":""},{"$f":"IF($A114=\"N/A\",Ref!$B$36,INDEX(Ranks!$1:$1048576,$A114,CE$1))","v":""},{"$f":"IF($A114=\"N/A\",Ref!$B$36,INDEX(Ranks!$1:$1048576,$A114,CF$1))","v":""},{"$f":"IF($A114=\"N/A\",Ref!$B$36,INDEX(Ranks!$1:$1048576,$A114,CG$1))","v":""},{"$f":"IF($A114=\"N/A\",Ref!$B$36,INDEX(Ranks!$1:$1048576,$A114,CH$1))","v":""},{"$f":"IF($A114=\"N/A\",Ref!$B$36,INDEX(Ranks!$1:$1048576,$A114,CI$1))","v":""},{"$f":"IF($A114=\"N/A\",Ref!$B$36,INDEX(Ranks!$1:$1048576,$A114,CJ$1))","v":""},{"$f":"IF($A114=\"N/A\",Ref!$B$36,INDEX(Ranks!$1:$1048576,$A114,CK$1))","v":""},{"$f":"IF($A114=\"N/A\",Ref!$B$36,INDEX(Ranks!$1:$1048576,$A114,CL$1))","v":""},{"$f":"IF($A114=\"N/A\",Ref!$B$36,INDEX(Ranks!$1:$1048576,$A114,CM$1))","v":""},{"$f":"IF($A114=\"N/A\",Ref!$B$36,INDEX(Ranks!$1:$1048576,$A114,CN$1))","v":""},{"$f":"IF($A114=\"N/A\",Ref!$B$36,INDEX(Ranks!$1:$1048576,$A114,CO$1))","v":""},{"$f":"IF($A114=\"N/A\",Ref!$B$36,INDEX(Ranks!$1:$1048576,$A114,CP$1))","v":""},{"$f":"IF($A114=\"N/A\",Ref!$B$36,INDEX(Ranks!$1:$1048576,$A114,CQ$1))","v":""},{"$f":"IF($A114=\"N/A\",Ref!$B$36,INDEX(Ranks!$1:$1048576,$A114,CR$1))","v":""},{"$f":"IF($A114=\"N/A\",Ref!$B$36,INDEX(Ranks!$1:$1048576,$A114,CS$1))","v":""},{"$f":"IF($A114=\"N/A\",Ref!$B$36,INDEX(Ranks!$1:$1048576,$A114,CT$1))","v":""},{"$f":"IF($A114=\"N/A\",Ref!$B$36,INDEX(Ranks!$1:$1048576,$A114,CU$1))","v":""},{"$f":"IF($A114=\"N/A\",Ref!$B$36,INDEX(Ranks!$1:$1048576,$A114,CV$1))","v":""},{"$f":"IF($A114=\"N/A\",Ref!$B$36,INDEX(Ranks!$1:$1048576,$A114,CW$1))","v":""},{"$f":"IF($A114=\"N/A\",Ref!$B$36,INDEX(Ranks!$1:$1048576,$A114,CX$1))","v":""},{"$f":"IF($A114=\"N/A\",Ref!$B$36,INDEX(Ranks!$1:$1048576,$A114,CY$1))","v":""},{"$f":"IF($A114=\"N/A\",Ref!$B$36,INDEX(Ranks!$1:$1048576,$A114,CZ$1))","v":""},{"$f":"IF($A114=\"N/A\",Ref!$B$36,INDEX(Ranks!$1:$1048576,$A114,DA$1))","v":""},{"$f":"IF($A114=\"N/A\",Ref!$B$36,INDEX(Ranks!$1:$1048576,$A114,DB$1))","v":""},{"$f":"IF($A114=\"N/A\",Ref!$B$36,INDEX(Ranks!$1:$1048576,$A114,DC$1))","v":""},{"$f":"IF($A114=\"N/A\",Ref!$B$36,INDEX(Ranks!$1:$1048576,$A114,DD$1))","v":""},{"$f":"IF($A114=\"N/A\",Ref!$B$36,INDEX(Ranks!$1:$1048576,$A114,DE$1))","v":""},{"$f":"IF($A114=\"N/A\",Ref!$B$36,INDEX(Ranks!$1:$1048576,$A114,DF$1))","v":""},{"$f":"IF($A114=\"N/A\",Ref!$B$36,INDEX(Ranks!$1:$1048576,$A114,DG$1))","v":""},{"$f":"IF($A114=\"N/A\",Ref!$B$36,INDEX(Ranks!$1:$1048576,$A114,DH$1))","v":""},{"$f":"IF($A114=\"N/A\",Ref!$B$36,INDEX(Ranks!$1:$1048576,$A114,DI$1))","v":""},{"$f":"IF($A114=\"N/A\",Ref!$B$36,INDEX(Ranks!$1:$1048576,$A114,DJ$1))","v":""},{"$f":"IF($A114=\"N/A\",Ref!$B$36,INDEX(Ranks!$1:$1048576,$A114,DK$1))","v":""},{"$f":"IF($A114=\"N/A\",Ref!$B$36,INDEX(Ranks!$1:$1048576,$A114,DL$1))","v":""},{"$f":"IF($A114=\"N/A\",Ref!$B$36,INDEX(Ranks!$1:$1048576,$A114,DM$1))","v":""},{"$f":"IF($A114=\"N/A\",Ref!$B$36,INDEX(Ranks!$1:$1048576,$A114,DN$1))","v":""},{"$f":"IF($A114=\"N/A\",Ref!$B$36,INDEX(Ranks!$1:$1048576,$A114,DO$1))","v":""},{"$f":"IF($A114=\"N/A\",Ref!$B$36,INDEX(Ranks!$1:$1048576,$A114,DP$1))","v":""},{"$f":"IF($A114=\"N/A\",Ref!$B$36,INDEX(Ranks!$1:$1048576,$A114,DQ$1))","v":""},{"$f":"IF($A114=\"N/A\",Ref!$B$36,INDEX(Ranks!$1:$1048576,$A114,DR$1))","v":""},{"$f":"IF($A114=\"N/A\",Ref!$B$36,INDEX(Ranks!$1:$1048576,$A114,DS$1))","v":""},{"$f":"IF($A114=\"N/A\",Ref!$B$36,INDEX(Ranks!$1:$1048576,$A114,DT$1))","v":""},{"$f":"IF($A114=\"N/A\",Ref!$B$36,INDEX(Ranks!$1:$1048576,$A114,DU$1))","v":""},{"$f":"IF($A114=\"N/A\",Ref!$B$36,INDEX(Ranks!$1:$1048576,$A114,DV$1))","v":""},{"$f":"IF($A114=\"N/A\",Ref!$B$36,INDEX(Ranks!$1:$1048576,$A114,DW$1))","v":""},{"$f":"IF($A114=\"N/A\",Ref!$B$36,INDEX(Ranks!$1:$1048576,$A114,DX$1))","v":""},{"$f":"IF($A114=\"N/A\",Ref!$B$36,INDEX(Ranks!$1:$1048576,$A114,DY$1))","v":""},{"$f":"IF($A114=\"N/A\",Ref!$B$36,INDEX(Ranks!$1:$1048576,$A114,DZ$1))","v":""},{"$f":"IF($A114=\"N/A\",Ref!$B$36,INDEX(Ranks!$1:$1048576,$A114,EA$1))","v":""},{"$f":"IF($A114=\"N/A\",Ref!$B$36,INDEX(Ranks!$1:$1048576,$A114,EB$1))","v":""}]
[{"$f":"IFERROR(MATCH('Portfolio Page'!L115,Ranks!L:L,0),\"N/A\")","v":"N/A"},null,{"$f":"IF($A115=\"N/A\",\"\",INDEX(Ranks!$1:$1048576,$A115,C$1))","v":""},{"$f":"IF($A115=\"N/A\",Ref!$B$36,INDEX(Ranks!$1:$1048576,$A115,D$1))","v":""},{"$f":"IF($A115=\"N/A\",Ref!$B$36,INDEX(Ranks!$1:$1048576,$A115,E$1))","v":""},{"$f":"IF($A115=\"N/A\",\"\",INDEX(Ranks!$1:$1048576,$A115,F$1))","v":""},{"$f":"IF($A115=\"N/A\",\"\",INDEX(Ranks!$1:$1048576,$A115,G$1))","v":""},{"$f":"IF($A115=\"N/A\",\"\",INDEX(Ranks!$1:$1048576,$A115,H$1))","v":""},{"$f":"IF($A115=\"N/A\",\"\",INDEX(Ranks!$1:$1048576,$A115,I$1))","v":""},{"$f":"IF($A115=\"N/A\",\"\",INDEX(Ranks!$1:$1048576,$A115,J$1))","v":""},{"$f":"IF($A115=\"N/A\",\"\",INDEX(Ranks!$1:$1048576,$A115,K$1))","v":""},null,{"$f":"IF($A115=\"N/A\",Ref!$B$36,INDEX(Ranks!$1:$1048576,$A115,M$1))","v":""},{"$f":"IF($A115=\"N/A\",Ref!$B$36,INDEX(Ranks!$1:$1048576,$A115,N$1))","v":""},{"$f":"IF($A115=\"N/A\",Ref!$B$36,INDEX(Ranks!$1:$1048576,$A115,O$1))","v":""},{"$f":"IF($A115=\"N/A\",Ref!$B$36,INDEX(Ranks!$1:$1048576,$A115,P$1))","v":""},{"$f":"IF($A115=\"N/A\",Ref!$B$36,INDEX(Ranks!$1:$1048576,$A115,Q$1))","v":""},{"$f":"IF($A115=\"N/A\",Ref!$B$36,INDEX(Ranks!$1:$1048576,$A115,R$1))","v":""},{"$f":"IF($A115=\"N/A\",Ref!$B$36,INDEX(Ranks!$1:$1048576,$A115,S$1))","v":""},{"$f":"IF($A115=\"N/A\",Ref!$B$36,INDEX(Ranks!$1:$1048576,$A115,T$1))","v":""},{"$f":"IF($A115=\"N/A\",Ref!$B$36,INDEX(Ranks!$1:$1048576,$A115,U$1))","v":""},{"$f":"IF($A115=\"N/A\",Ref!$B$36,INDEX(Ranks!$1:$1048576,$A115,V$1))","v":""},{"$f":"IF($A115=\"N/A\",Ref!$B$36,INDEX(Ranks!$1:$1048576,$A115,W$1))","v":""},{"$f":"IF($A115=\"N/A\",Ref!$B$36,INDEX(Ranks!$1:$1048576,$A115,X$1))","v":""},{"$f":"IF($A115=\"N/A\",Ref!$B$36,INDEX(Ranks!$1:$1048576,$A115,Y$1))","v":""},{"$f":"IF($A115=\"N/A\",Ref!$B$36,INDEX(Ranks!$1:$1048576,$A115,Z$1))","v":""},{"$f":"IF($A115=\"N/A\",Ref!$B$36,INDEX(Ranks!$1:$1048576,$A115,AA$1))","v":""},{"$f":"IF($A115=\"N/A\",Ref!$B$36,INDEX(Ranks!$1:$1048576,$A115,AB$1))","v":""},{"$f":"IF($A115=\"N/A\",Ref!$B$36,INDEX(Ranks!$1:$1048576,$A115,AC$1))","v":""},{"$f":"IF($A115=\"N/A\",Ref!$B$36,INDEX(Ranks!$1:$1048576,$A115,AD$1))","v":""},{"$f":"IF($A115=\"N/A\",Ref!$B$36,INDEX(Ranks!$1:$1048576,$A115,AE$1))","v":""},{"$f":"IF($A115=\"N/A\",Ref!$B$36,INDEX(Ranks!$1:$1048576,$A115,AF$1))","v":""},{"$f":"IF($A115=\"N/A\",Ref!$B$36,INDEX(Ranks!$1:$1048576,$A115,AG$1))","v":""},{"$f":"IF($A115=\"N/A\",Ref!$B$36,INDEX(Ranks!$1:$1048576,$A115,AH$1))","v":""},{"$f":"IF($A115=\"N/A\",Ref!$B$36,INDEX(Ranks!$1:$1048576,$A115,AI$1))","v":""},{"$f":"IF($A115=\"N/A\",Ref!$B$36,INDEX(Ranks!$1:$1048576,$A115,AJ$1))","v":""},{"$f":"IF($A115=\"N/A\",Ref!$B$36,INDEX(Ranks!$1:$1048576,$A115,AK$1))","v":""},{"$f":"IF($A115=\"N/A\",Ref!$B$36,INDEX(Ranks!$1:$1048576,$A115,AL$1))","v":""},{"$f":"IF($A115=\"N/A\",Ref!$B$36,INDEX(Ranks!$1:$1048576,$A115,AM$1))","v":""},{"$f":"IF($A115=\"N/A\",Ref!$B$36,INDEX(Ranks!$1:$1048576,$A115,AN$1))","v":""},{"$f":"IF($A115=\"N/A\",Ref!$B$36,INDEX(Ranks!$1:$1048576,$A115,AO$1))","v":""},{"$f":"IF($A115=\"N/A\",Ref!$B$36,INDEX(Ranks!$1:$1048576,$A115,AP$1))","v":""},{"$f":"IF($A115=\"N/A\",Ref!$B$36,INDEX(Ranks!$1:$1048576,$A115,AQ$1))","v":""},{"$f":"IF($A115=\"N/A\",Ref!$B$36,INDEX(Ranks!$1:$1048576,$A115,AR$1))","v":""},{"$f":"IF($A115=\"N/A\",Ref!$B$36,INDEX(Ranks!$1:$1048576,$A115,AS$1))","v":""},{"$f":"IF($A115=\"N/A\",Ref!$B$36,INDEX(Ranks!$1:$1048576,$A115,AT$1))","v":""},{"$f":"IF($A115=\"N/A\",Ref!$B$36,INDEX(Ranks!$1:$1048576,$A115,AU$1))","v":""},{"$f":"IF($A115=\"N/A\",Ref!$B$36,INDEX(Ranks!$1:$1048576,$A115,AV$1))","v":""},{"$f":"IF($A115=\"N/A\",Ref!$B$36,INDEX(Ranks!$1:$1048576,$A115,AW$1))","v":""},{"$f":"IF($A115=\"N/A\",Ref!$B$36,INDEX(Ranks!$1:$1048576,$A115,AX$1))","v":""},{"$f":"IF($A115=\"N/A\",Ref!$B$36,INDEX(Ranks!$1:$1048576,$A115,AY$1))","v":""},{"$f":"IF($A115=\"N/A\",Ref!$B$36,INDEX(Ranks!$1:$1048576,$A115,AZ$1))","v":""},{"$f":"IF($A115=\"N/A\",Ref!$B$36,INDEX(Ranks!$1:$1048576,$A115,BA$1))","v":""},{"$f":"IF($A115=\"N/A\",Ref!$B$36,INDEX(Ranks!$1:$1048576,$A115,BB$1))","v":""},{"$f":"IF($A115=\"N/A\",Ref!$B$36,INDEX(Ranks!$1:$1048576,$A115,BC$1))","v":""},{"$f":"IF($A115=\"N/A\",Ref!$B$36,INDEX(Ranks!$1:$1048576,$A115,BD$1))","v":""},{"$f":"IF($A115=\"N/A\",Ref!$B$36,INDEX(Ranks!$1:$1048576,$A115,BE$1))","v":""},{"$f":"IF($A115=\"N/A\",Ref!$B$36,INDEX(Ranks!$1:$1048576,$A115,BF$1))","v":""},{"$f":"IF($A115=\"N/A\",Ref!$B$36,INDEX(Ranks!$1:$1048576,$A115,BG$1))","v":""},{"$f":"IF($A115=\"N/A\",Ref!$B$36,INDEX(Ranks!$1:$1048576,$A115,BH$1))","v":""},{"$f":"IF($A115=\"N/A\",Ref!$B$36,INDEX(Ranks!$1:$1048576,$A115,BI$1))","v":""},{"$f":"IF($A115=\"N/A\",Ref!$B$36,INDEX(Ranks!$1:$1048576,$A115,BJ$1))","v":""},{"$f":"IF($A115=\"N/A\",Ref!$B$36,INDEX(Ranks!$1:$1048576,$A115,BK$1))","v":""},{"$f":"IF($A115=\"N/A\",Ref!$B$36,INDEX(Ranks!$1:$1048576,$A115,BL$1))","v":""},{"$f":"IF($A115=\"N/A\",Ref!$B$36,INDEX(Ranks!$1:$1048576,$A115,BM$1))","v":""},{"$f":"IF($A115=\"N/A\",Ref!$B$36,INDEX(Ranks!$1:$1048576,$A115,BN$1))","v":""},{"$f":"IF($A115=\"N/A\",Ref!$B$36,INDEX(Ranks!$1:$1048576,$A115,BO$1))","v":""},{"$f":"IF($A115=\"N/A\",Ref!$B$36,INDEX(Ranks!$1:$1048576,$A115,BP$1))","v":""},{"$f":"IF($A115=\"N/A\",Ref!$B$36,INDEX(Ranks!$1:$1048576,$A115,BQ$1))","v":""},{"$f":"IF($A115=\"N/A\",Ref!$B$36,INDEX(Ranks!$1:$1048576,$A115,BR$1))","v":""},{"$f":"IF($A115=\"N/A\",Ref!$B$36,INDEX(Ranks!$1:$1048576,$A115,BS$1))","v":""},{"$f":"IF($A115=\"N/A\",Ref!$B$36,INDEX(Ranks!$1:$1048576,$A115,BT$1))","v":""},{"$f":"IF($A115=\"N/A\",Ref!$B$36,INDEX(Ranks!$1:$1048576,$A115,BU$1))","v":""},{"$f":"IF($A115=\"N/A\",Ref!$B$36,INDEX(Ranks!$1:$1048576,$A115,BV$1))","v":""},{"$f":"IF($A115=\"N/A\",Ref!$B$36,INDEX(Ranks!$1:$1048576,$A115,BW$1))","v":""},{"$f":"IF($A115=\"N/A\",Ref!$B$36,INDEX(Ranks!$1:$1048576,$A115,BX$1))","v":""},{"$f":"IF($A115=\"N/A\",Ref!$B$36,INDEX(Ranks!$1:$1048576,$A115,BY$1))","v":""},{"$f":"IF($A115=\"N/A\",Ref!$B$36,INDEX(Ranks!$1:$1048576,$A115,BZ$1))","v":""},{"$f":"IF($A115=\"N/A\",Ref!$B$36,INDEX(Ranks!$1:$1048576,$A115,CA$1))","v":""},{"$f":"IF($A115=\"N/A\",Ref!$B$36,INDEX(Ranks!$1:$1048576,$A115,CB$1))","v":""},{"$f":"IF($A115=\"N/A\",Ref!$B$36,INDEX(Ranks!$1:$1048576,$A115,CC$1))","v":""},{"$f":"IF($A115=\"N/A\",Ref!$B$36,INDEX(Ranks!$1:$1048576,$A115,CD$1))","v":""},{"$f":"IF($A115=\"N/A\",Ref!$B$36,INDEX(Ranks!$1:$1048576,$A115,CE$1))","v":""},{"$f":"IF($A115=\"N/A\",Ref!$B$36,INDEX(Ranks!$1:$1048576,$A115,CF$1))","v":""},{"$f":"IF($A115=\"N/A\",Ref!$B$36,INDEX(Ranks!$1:$1048576,$A115,CG$1))","v":""},{"$f":"IF($A115=\"N/A\",Ref!$B$36,INDEX(Ranks!$1:$1048576,$A115,CH$1))","v":""},{"$f":"IF($A115=\"N/A\",Ref!$B$36,INDEX(Ranks!$1:$1048576,$A115,CI$1))","v":""},{"$f":"IF($A115=\"N/A\",Ref!$B$36,INDEX(Ranks!$1:$1048576,$A115,CJ$1))","v":""},{"$f":"IF($A115=\"N/A\",Ref!$B$36,INDEX(Ranks!$1:$1048576,$A115,CK$1))","v":""},{"$f":"IF($A115=\"N/A\",Ref!$B$36,INDEX(Ranks!$1:$1048576,$A115,CL$1))","v":""},{"$f":"IF($A115=\"N/A\",Ref!$B$36,INDEX(Ranks!$1:$1048576,$A115,CM$1))","v":""},{"$f":"IF($A115=\"N/A\",Ref!$B$36,INDEX(Ranks!$1:$1048576,$A115,CN$1))","v":""},{"$f":"IF($A115=\"N/A\",Ref!$B$36,INDEX(Ranks!$1:$1048576,$A115,CO$1))","v":""},{"$f":"IF($A115=\"N/A\",Ref!$B$36,INDEX(Ranks!$1:$1048576,$A115,CP$1))","v":""},{"$f":"IF($A115=\"N/A\",Ref!$B$36,INDEX(Ranks!$1:$1048576,$A115,CQ$1))","v":""},{"$f":"IF($A115=\"N/A\",Ref!$B$36,INDEX(Ranks!$1:$1048576,$A115,CR$1))","v":""},{"$f":"IF($A115=\"N/A\",Ref!$B$36,INDEX(Ranks!$1:$1048576,$A115,CS$1))","v":""},{"$f":"IF($A115=\"N/A\",Ref!$B$36,INDEX(Ranks!$1:$1048576,$A115,CT$1))","v":""},{"$f":"IF($A115=\"N/A\",Ref!$B$36,INDEX(Ranks!$1:$1048576,$A115,CU$1))","v":""},{"$f":"IF($A115=\"N/A\",Ref!$B$36,INDEX(Ranks!$1:$1048576,$A115,CV$1))","v":""},{"$f":"IF($A115=\"N/A\",Ref!$B$36,INDEX(Ranks!$1:$1048576,$A115,CW$1))","v":""},{"$f":"IF($A115=\"N/A\",Ref!$B$36,INDEX(Ranks!$1:$1048576,$A115,CX$1))","v":""},{"$f":"IF($A115=\"N/A\",Ref!$B$36,INDEX(Ranks!$1:$1048576,$A115,CY$1))","v":""},{"$f":"IF($A115=\"N/A\",Ref!$B$36,INDEX(Ranks!$1:$1048576,$A115,CZ$1))","v":""},{"$f":"IF($A115=\"N/A\",Ref!$B$36,INDEX(Ranks!$1:$1048576,$A115,DA$1))","v":""},{"$f":"IF($A115=\"N/A\",Ref!$B$36,INDEX(Ranks!$1:$1048576,$A115,DB$1))","v":""},{"$f":"IF($A115=\"N/A\",Ref!$B$36,INDEX(Ranks!$1:$1048576,$A115,DC$1))","v":""},{"$f":"IF($A115=\"N/A\",Ref!$B$36,INDEX(Ranks!$1:$1048576,$A115,DD$1))","v":""},{"$f":"IF($A115=\"N/A\",Ref!$B$36,INDEX(Ranks!$1:$1048576,$A115,DE$1))","v":""},{"$f":"IF($A115=\"N/A\",Ref!$B$36,INDEX(Ranks!$1:$1048576,$A115,DF$1))","v":""},{"$f":"IF($A115=\"N/A\",Ref!$B$36,INDEX(Ranks!$1:$1048576,$A115,DG$1))","v":""},{"$f":"IF($A115=\"N/A\",Ref!$B$36,INDEX(Ranks!$1:$1048576,$A115,DH$1))","v":""},{"$f":"IF($A115=\"N/A\",Ref!$B$36,INDEX(Ranks!$1:$1048576,$A115,DI$1))","v":""},{"$f":"IF($A115=\"N/A\",Ref!$B$36,INDEX(Ranks!$1:$1048576,$A115,DJ$1))","v":""},{"$f":"IF($A115=\"N/A\",Ref!$B$36,INDEX(Ranks!$1:$1048576,$A115,DK$1))","v":""},{"$f":"IF($A115=\"N/A\",Ref!$B$36,INDEX(Ranks!$1:$1048576,$A115,DL$1))","v":""},{"$f":"IF($A115=\"N/A\",Ref!$B$36,INDEX(Ranks!$1:$1048576,$A115,DM$1))","v":""},{"$f":"IF($A115=\"N/A\",Ref!$B$36,INDEX(Ranks!$1:$1048576,$A115,DN$1))","v":""},{"$f":"IF($A115=\"N/A\",Ref!$B$36,INDEX(Ranks!$1:$1048576,$A115,DO$1))","v":""},{"$f":"IF($A115=\"N/A\",Ref!$B$36,INDEX(Ranks!$1:$1048576,$A115,DP$1))","v":""},{"$f":"IF($A115=\"N/A\",Ref!$B$36,INDEX(Ranks!$1:$1048576,$A115,DQ$1))","v":""},{"$f":"IF($A115=\"N/A\",Ref!$B$36,INDEX(Ranks!$1:$1048576,$A115,DR$1))","v":""},{"$f":"IF($A115=\"N/A\",Ref!$B$36,INDEX(Ranks!$1:$1048576,$A115,DS$1))","v":""},{"$f":"IF($A115=\"N/A\",Ref!$B$36,INDEX(Ranks!$1:$1048576,$A115,DT$1))","v":""},{"$f":"IF($A115=\"N/A\",Ref!$B$36,INDEX(Ranks!$1:$1048576,$A115,DU$1))","v":""},{"$f":"IF($A115=\"N/A\",Ref!$B$36,INDEX(Ranks!$1:$1048576,$A115,DV$1))","v":""},{"$f":"IF($A115=\"N/A\",Ref!$B$36,INDEX(Ranks!$1:$1048576,$A115,DW$1))","v":""},{"$f":"IF($A115=\"N/A\",Ref!$B$36,INDEX(Ranks!$1:$1048576,$A115,DX$1))","v":""},{"$f":"IF($A115=\"N/A\",Ref!$B$36,INDEX(Ranks!$1:$1048576,$A115,DY$1))","v":""},{"$f":"IF($A115=\"N/A\",Ref!$B$36,INDEX(Ranks!$1:$1048576,$A115,DZ$1))","v":""},{"$f":"IF($A115=\"N/A\",Ref!$B$36,INDEX(Ranks!$1:$1048576,$A115,EA$1))","v":""},{"$f":"IF($A115=\"N/A\",Ref!$B$36,INDEX(Ranks!$1:$1048576,$A115,EB$1))","v":""}]
[{"$f":"IFERROR(MATCH('Portfolio Page'!L116,Ranks!L:L,0),\"N/A\")","v":"N/A"},null,{"$f":"IF($A116=\"N/A\",\"\",INDEX(Ranks!$1:$1048576,$A116,C$1))","v":""},{"$f":"IF($A116=\"N/A\",Ref!$B$36,INDEX(Ranks!$1:$1048576,$A116,D$1))","v":""},{"$f":"IF($A116=\"N/A\",Ref!$B$36,INDEX(Ranks!$1:$1048576,$A116,E$1))","v":""},{"$f":"IF($A116=\"N/A\",\"\",INDEX(Ranks!$1:$1048576,$A116,F$1))","v":""},{"$f":"IF($A116=\"N/A\",\"\",INDEX(Ranks!$1:$1048576,$A116,G$1))","v":""},{"$f":"IF($A116=\"N/A\",\"\",INDEX(Ranks!$1:$1048576,$A116,H$1))","v":""},{"$f":"IF($A116=\"N/A\",\"\",INDEX(Ranks!$1:$1048576,$A116,I$1))","v":""},{"$f":"IF($A116=\"N/A\",\"\",INDEX(Ranks!$1:$1048576,$A116,J$1))","v":""},{"$f":"IF($A116=\"N/A\",\"\",INDEX(Ranks!$1:$1048576,$A116,K$1))","v":""},null,{"$f":"IF($A116=\"N/A\",Ref!$B$36,INDEX(Ranks!$1:$1048576,$A116,M$1))","v":""},{"$f":"IF($A116=\"N/A\",Ref!$B$36,INDEX(Ranks!$1:$1048576,$A116,N$1))","v":""},{"$f":"IF($A116=\"N/A\",Ref!$B$36,INDEX(Ranks!$1:$1048576,$A116,O$1))","v":""},{"$f":"IF($A116=\"N/A\",Ref!$B$36,INDEX(Ranks!$1:$1048576,$A116,P$1))","v":""},{"$f":"IF($A116=\"N/A\",Ref!$B$36,INDEX(Ranks!$1:$1048576,$A116,Q$1))","v":""},{"$f":"IF($A116=\"N/A\",Ref!$B$36,INDEX(Ranks!$1:$1048576,$A116,R$1))","v":""},{"$f":"IF($A116=\"N/A\",Ref!$B$36,INDEX(Ranks!$1:$1048576,$A116,S$1))","v":""},{"$f":"IF($A116=\"N/A\",Ref!$B$36,INDEX(Ranks!$1:$1048576,$A116,T$1))","v":""},{"$f":"IF($A116=\"N/A\",Ref!$B$36,INDEX(Ranks!$1:$1048576,$A116,U$1))","v":""},{"$f":"IF($A116=\"N/A\",Ref!$B$36,INDEX(Ranks!$1:$1048576,$A116,V$1))","v":""},{"$f":"IF($A116=\"N/A\",Ref!$B$36,INDEX(Ranks!$1:$1048576,$A116,W$1))","v":""},{"$f":"IF($A116=\"N/A\",Ref!$B$36,INDEX(Ranks!$1:$1048576,$A116,X$1))","v":""},{"$f":"IF($A116=\"N/A\",Ref!$B$36,INDEX(Ranks!$1:$1048576,$A116,Y$1))","v":""},{"$f":"IF($A116=\"N/A\",Ref!$B$36,INDEX(Ranks!$1:$1048576,$A116,Z$1))","v":""},{"$f":"IF($A116=\"N/A\",Ref!$B$36,INDEX(Ranks!$1:$1048576,$A116,AA$1))","v":""},{"$f":"IF($A116=\"N/A\",Ref!$B$36,INDEX(Ranks!$1:$1048576,$A116,AB$1))","v":""},{"$f":"IF($A116=\"N/A\",Ref!$B$36,INDEX(Ranks!$1:$1048576,$A116,AC$1))","v":""},{"$f":"IF($A116=\"N/A\",Ref!$B$36,INDEX(Ranks!$1:$1048576,$A116,AD$1))","v":""},{"$f":"IF($A116=\"N/A\",Ref!$B$36,INDEX(Ranks!$1:$1048576,$A116,AE$1))","v":""},{"$f":"IF($A116=\"N/A\",Ref!$B$36,INDEX(Ranks!$1:$1048576,$A116,AF$1))","v":""},{"$f":"IF($A116=\"N/A\",Ref!$B$36,INDEX(Ranks!$1:$1048576,$A116,AG$1))","v":""},{"$f":"IF($A116=\"N/A\",Ref!$B$36,INDEX(Ranks!$1:$1048576,$A116,AH$1))","v":""},{"$f":"IF($A116=\"N/A\",Ref!$B$36,INDEX(Ranks!$1:$1048576,$A116,AI$1))","v":""},{"$f":"IF($A116=\"N/A\",Ref!$B$36,INDEX(Ranks!$1:$1048576,$A116,AJ$1))","v":""},{"$f":"IF($A116=\"N/A\",Ref!$B$36,INDEX(Ranks!$1:$1048576,$A116,AK$1))","v":""},{"$f":"IF($A116=\"N/A\",Ref!$B$36,INDEX(Ranks!$1:$1048576,$A116,AL$1))","v":""},{"$f":"IF($A116=\"N/A\",Ref!$B$36,INDEX(Ranks!$1:$1048576,$A116,AM$1))","v":""},{"$f":"IF($A116=\"N/A\",Ref!$B$36,INDEX(Ranks!$1:$1048576,$A116,AN$1))","v":""},{"$f":"IF($A116=\"N/A\",Ref!$B$36,INDEX(Ranks!$1:$1048576,$A116,AO$1))","v":""},{"$f":"IF($A116=\"N/A\",Ref!$B$36,INDEX(Ranks!$1:$1048576,$A116,AP$1))","v":""},{"$f":"IF($A116=\"N/A\",Ref!$B$36,INDEX(Ranks!$1:$1048576,$A116,AQ$1))","v":""},{"$f":"IF($A116=\"N/A\",Ref!$B$36,INDEX(Ranks!$1:$1048576,$A116,AR$1))","v":""},{"$f":"IF($A116=\"N/A\",Ref!$B$36,INDEX(Ranks!$1:$1048576,$A116,AS$1))","v":""},{"$f":"IF($A116=\"N/A\",Ref!$B$36,INDEX(Ranks!$1:$1048576,$A116,AT$1))","v":""},{"$f":"IF($A116=\"N/A\",Ref!$B$36,INDEX(Ranks!$1:$1048576,$A116,AU$1))","v":""},{"$f":"IF($A116=\"N/A\",Ref!$B$36,INDEX(Ranks!$1:$1048576,$A116,AV$1))","v":""},{"$f":"IF($A116=\"N/A\",Ref!$B$36,INDEX(Ranks!$1:$1048576,$A116,AW$1))","v":""},{"$f":"IF($A116=\"N/A\",Ref!$B$36,INDEX(Ranks!$1:$1048576,$A116,AX$1))","v":""},{"$f":"IF($A116=\"N/A\",Ref!$B$36,INDEX(Ranks!$1:$1048576,$A116,AY$1))","v":""},{"$f":"IF($A116=\"N/A\",Ref!$B$36,INDEX(Ranks!$1:$1048576,$A116,AZ$1))","v":""},{"$f":"IF($A116=\"N/A\",Ref!$B$36,INDEX(Ranks!$1:$1048576,$A116,BA$1))","v":""},{"$f":"IF($A116=\"N/A\",Ref!$B$36,INDEX(Ranks!$1:$1048576,$A116,BB$1))","v":""},{"$f":"IF($A116=\"N/A\",Ref!$B$36,INDEX(Ranks!$1:$1048576,$A116,BC$1))","v":""},{"$f":"IF($A116=\"N/A\",Ref!$B$36,INDEX(Ranks!$1:$1048576,$A116,BD$1))","v":""},{"$f":"IF($A116=\"N/A\",Ref!$B$36,INDEX(Ranks!$1:$1048576,$A116,BE$1))","v":""},{"$f":"IF($A116=\"N/A\",Ref!$B$36,INDEX(Ranks!$1:$1048576,$A116,BF$1))","v":""},{"$f":"IF($A116=\"N/A\",Ref!$B$36,INDEX(Ranks!$1:$1048576,$A116,BG$1))","v":""},{"$f":"IF($A116=\"N/A\",Ref!$B$36,INDEX(Ranks!$1:$1048576,$A116,BH$1))","v":""},{"$f":"IF($A116=\"N/A\",Ref!$B$36,INDEX(Ranks!$1:$1048576,$A116,BI$1))","v":""},{"$f":"IF($A116=\"N/A\",Ref!$B$36,INDEX(Ranks!$1:$1048576,$A116,BJ$1))","v":""},{"$f":"IF($A116=\"N/A\",Ref!$B$36,INDEX(Ranks!$1:$1048576,$A116,BK$1))","v":""},{"$f":"IF($A116=\"N/A\",Ref!$B$36,INDEX(Ranks!$1:$1048576,$A116,BL$1))","v":""},{"$f":"IF($A116=\"N/A\",Ref!$B$36,INDEX(Ranks!$1:$1048576,$A116,BM$1))","v":""},{"$f":"IF($A116=\"N/A\",Ref!$B$36,INDEX(Ranks!$1:$1048576,$A116,BN$1))","v":""},{"$f":"IF($A116=\"N/A\",Ref!$B$36,INDEX(Ranks!$1:$1048576,$A116,BO$1))","v":""},{"$f":"IF($A116=\"N/A\",Ref!$B$36,INDEX(Ranks!$1:$1048576,$A116,BP$1))","v":""},{"$f":"IF($A116=\"N/A\",Ref!$B$36,INDEX(Ranks!$1:$1048576,$A116,BQ$1))","v":""},{"$f":"IF($A116=\"N/A\",Ref!$B$36,INDEX(Ranks!$1:$1048576,$A116,BR$1))","v":""},{"$f":"IF($A116=\"N/A\",Ref!$B$36,INDEX(Ranks!$1:$1048576,$A116,BS$1))","v":""},{"$f":"IF($A116=\"N/A\",Ref!$B$36,INDEX(Ranks!$1:$1048576,$A116,BT$1))","v":""},{"$f":"IF($A116=\"N/A\",Ref!$B$36,INDEX(Ranks!$1:$1048576,$A116,BU$1))","v":""},{"$f":"IF($A116=\"N/A\",Ref!$B$36,INDEX(Ranks!$1:$1048576,$A116,BV$1))","v":""},{"$f":"IF($A116=\"N/A\",Ref!$B$36,INDEX(Ranks!$1:$1048576,$A116,BW$1))","v":""},{"$f":"IF($A116=\"N/A\",Ref!$B$36,INDEX(Ranks!$1:$1048576,$A116,BX$1))","v":""},{"$f":"IF($A116=\"N/A\",Ref!$B$36,INDEX(Ranks!$1:$1048576,$A116,BY$1))","v":""},{"$f":"IF($A116=\"N/A\",Ref!$B$36,INDEX(Ranks!$1:$1048576,$A116,BZ$1))","v":""},{"$f":"IF($A116=\"N/A\",Ref!$B$36,INDEX(Ranks!$1:$1048576,$A116,CA$1))","v":""},{"$f":"IF($A116=\"N/A\",Ref!$B$36,INDEX(Ranks!$1:$1048576,$A116,CB$1))","v":""},{"$f":"IF($A116=\"N/A\",Ref!$B$36,INDEX(Ranks!$1:$1048576,$A116,CC$1))","v":""},{"$f":"IF($A116=\"N/A\",Ref!$B$36,INDEX(Ranks!$1:$1048576,$A116,CD$1))","v":""},{"$f":"IF($A116=\"N/A\",Ref!$B$36,INDEX(Ranks!$1:$1048576,$A116,CE$1))","v":""},{"$f":"IF($A116=\"N/A\",Ref!$B$36,INDEX(Ranks!$1:$1048576,$A116,CF$1))","v":""},{"$f":"IF($A116=\"N/A\",Ref!$B$36,INDEX(Ranks!$1:$1048576,$A116,CG$1))","v":""},{"$f":"IF($A116=\"N/A\",Ref!$B$36,INDEX(Ranks!$1:$1048576,$A116,CH$1))","v":""},{"$f":"IF($A116=\"N/A\",Ref!$B$36,INDEX(Ranks!$1:$1048576,$A116,CI$1))","v":""},{"$f":"IF($A116=\"N/A\",Ref!$B$36,INDEX(Ranks!$1:$1048576,$A116,CJ$1))","v":""},{"$f":"IF($A116=\"N/A\",Ref!$B$36,INDEX(Ranks!$1:$1048576,$A116,CK$1))","v":""},{"$f":"IF($A116=\"N/A\",Ref!$B$36,INDEX(Ranks!$1:$1048576,$A116,CL$1))","v":""},{"$f":"IF($A116=\"N/A\",Ref!$B$36,INDEX(Ranks!$1:$1048576,$A116,CM$1))","v":""},{"$f":"IF($A116=\"N/A\",Ref!$B$36,INDEX(Ranks!$1:$1048576,$A116,CN$1))","v":""},{"$f":"IF($A116=\"N/A\",Ref!$B$36,INDEX(Ranks!$1:$1048576,$A116,CO$1))","v":""},{"$f":"IF($A116=\"N/A\",Ref!$B$36,INDEX(Ranks!$1:$1048576,$A116,CP$1))","v":""},{"$f":"IF($A116=\"N/A\",Ref!$B$36,INDEX(Ranks!$1:$1048576,$A116,CQ$1))","v":""},{"$f":"IF($A116=\"N/A\",Ref!$B$36,INDEX(Ranks!$1:$1048576,$A116,CR$1))","v":""},{"$f":"IF($A116=\"N/A\",Ref!$B$36,INDEX(Ranks!$1:$1048576,$A116,CS$1))","v":""},{"$f":"IF($A116=\"N/A\",Ref!$B$36,INDEX(Ranks!$1:$1048576,$A116,CT$1))","v":""},{"$f":"IF($A116=\"N/A\",Ref!$B$36,INDEX(Ranks!$1:$1048576,$A116,CU$1))","v":""},{"$f":"IF($A116=\"N/A\",Ref!$B$36,INDEX(Ranks!$1:$1048576,$A116,CV$1))","v":""},{"$f":"IF($A116=\"N/A\",Ref!$B$36,INDEX(Ranks!$1:$1048576,$A116,CW$1))","v":""},{"$f":"IF($A116=\"N/A\",Ref!$B$36,INDEX(Ranks!$1:$1048576,$A116,CX$1))","v":""},{"$f":"IF($A116=\"N/A\",Ref!$B$36,INDEX(Ranks!$1:$1048576,$A116,CY$1))","v":""},{"$f":"IF($A116=\"N/A\",Ref!$B$36,INDEX(Ranks!$1:$1048576,$A116,CZ$1))","v":""},{"$f":"IF($A116=\"N/A\",Ref!$B$36,INDEX(Ranks!$1:$1048576,$A116,DA$1))","v":""},{"$f":"IF($A116=\"N/A\",Ref!$B$36,INDEX(Ranks!$1:$1048576,$A116,DB$1))","v":""},{"$f":"IF($A116=\"N/A\",Ref!$B$36,INDEX(Ranks!$1:$1048576,$A116,DC$1))","v":""},{"$f":"IF($A116=\"N/A\",Ref!$B$36,INDEX(Ranks!$1:$1048576,$A116,DD$1))","v":""},{"$f":"IF($A116=\"N/A\",Ref!$B$36,INDEX(Ranks!$1:$1048576,$A116,DE$1))","v":""},{"$f":"IF($A116=\"N/A\",Ref!$B$36,INDEX(Ranks!$1:$1048576,$A116,DF$1))","v":""},{"$f":"IF($A116=\"N/A\",Ref!$B$36,INDEX(Ranks!$1:$1048576,$A116,DG$1))","v":""},{"$f":"IF($A116=\"N/A\",Ref!$B$36,INDEX(Ranks!$1:$1048576,$A116,DH$1))","v":""},{"$f":"IF($A116=\"N/A\",Ref!$B$36,INDEX(Ranks!$1:$1048576,$A116,DI$1))","v":""},{"$f":"IF($A116=\"N/A\",Ref!$B$36,INDEX(Ranks!$1:$1048576,$A116,DJ$1))","v":""},{"$f":"IF($A116=\"N/A\",Ref!$B$36,INDEX(Ranks!$1:$1048576,$A116,DK$1))","v":""},{"$f":"IF($A116=\"N/A\",Ref!$B$36,INDEX(Ranks!$1:$1048576,$A116,DL$1))","v":""},{"$f":"IF($A116=\"N/A\",Ref!$B$36,INDEX(Ranks!$1:$1048576,$A116,DM$1))","v":""},{"$f":"IF($A116=\"N/A\",Ref!$B$36,INDEX(Ranks!$1:$1048576,$A116,DN$1))","v":""},{"$f":"IF($A116=\"N/A\",Ref!$B$36,INDEX(Ranks!$1:$1048576,$A116,DO$1))","v":""},{"$f":"IF($A116=\"N/A\",Ref!$B$36,INDEX(Ranks!$1:$1048576,$A116,DP$1))","v":""},{"$f":"IF($A116=\"N/A\",Ref!$B$36,INDEX(Ranks!$1:$1048576,$A116,DQ$1))","v":""},{"$f":"IF($A116=\"N/A\",Ref!$B$36,INDEX(Ranks!$1:$1048576,$A116,DR$1))","v":""},{"$f":"IF($A116=\"N/A\",Ref!$B$36,INDEX(Ranks!$1:$1048576,$A116,DS$1))","v":""},{"$f":"IF($A116=\"N/A\",Ref!$B$36,INDEX(Ranks!$1:$1048576,$A116,DT$1))","v":""},{"$f":"IF($A116=\"N/A\",Ref!$B$36,INDEX(Ranks!$1:$1048576,$A116,DU$1))","v":""},{"$f":"IF($A116=\"N/A\",Ref!$B$36,INDEX(Ranks!$1:$1048576,$A116,DV$1))","v":""},{"$f":"IF($A116=\"N/A\",Ref!$B$36,INDEX(Ranks!$1:$1048576,$A116,DW$1))","v":""},{"$f":"IF($A116=\"N/A\",Ref!$B$36,INDEX(Ranks!$1:$1048576,$A116,DX$1))","v":""},{"$f":"IF($A116=\"N/A\",Ref!$B$36,INDEX(Ranks!$1:$1048576,$A116,DY$1))","v":""},{"$f":"IF($A116=\"N/A\",Ref!$B$36,INDEX(Ranks!$1:$1048576,$A116,DZ$1))","v":""},{"$f":"IF($A116=\"N/A\",Ref!$B$36,INDEX(Ranks!$1:$1048576,$A116,EA$1))","v":""},{"$f":"IF($A116=\"N/A\",Ref!$B$36,INDEX(Ranks!$1:$1048576,$A116,EB$1))","v":""}]
[{"$f":"IFERROR(MATCH('Portfolio Page'!L117,Ranks!L:L,0),\"N/A\")","v":"N/A"},null,{"$f":"IF($A117=\"N/A\",\"\",INDEX(Ranks!$1:$1048576,$A117,C$1))","v":""},{"$f":"IF($A117=\"N/A\",Ref!$B$36,INDEX(Ranks!$1:$1048576,$A117,D$1))","v":""},{"$f":"IF($A117=\"N/A\",Ref!$B$36,INDEX(Ranks!$1:$1048576,$A117,E$1))","v":""},{"$f":"IF($A117=\"N/A\",\"\",INDEX(Ranks!$1:$1048576,$A117,F$1))","v":""},{"$f":"IF($A117=\"N/A\",\"\",INDEX(Ranks!$1:$1048576,$A117,G$1))","v":""},{"$f":"IF($A117=\"N/A\",\"\",INDEX(Ranks!$1:$1048576,$A117,H$1))","v":""},{"$f":"IF($A117=\"N/A\",\"\",INDEX(Ranks!$1:$1048576,$A117,I$1))","v":""},{"$f":"IF($A117=\"N/A\",\"\",INDEX(Ranks!$1:$1048576,$A117,J$1))","v":""},{"$f":"IF($A117=\"N/A\",\"\",INDEX(Ranks!$1:$1048576,$A117,K$1))","v":""},null,{"$f":"IF($A117=\"N/A\",Ref!$B$36,INDEX(Ranks!$1:$1048576,$A117,M$1))","v":""},{"$f":"IF($A117=\"N/A\",Ref!$B$36,INDEX(Ranks!$1:$1048576,$A117,N$1))","v":""},{"$f":"IF($A117=\"N/A\",Ref!$B$36,INDEX(Ranks!$1:$1048576,$A117,O$1))","v":""},{"$f":"IF($A117=\"N/A\",Ref!$B$36,INDEX(Ranks!$1:$1048576,$A117,P$1))","v":""},{"$f":"IF($A117=\"N/A\",Ref!$B$36,INDEX(Ranks!$1:$1048576,$A117,Q$1))","v":""},{"$f":"IF($A117=\"N/A\",Ref!$B$36,INDEX(Ranks!$1:$1048576,$A117,R$1))","v":""},{"$f":"IF($A117=\"N/A\",Ref!$B$36,INDEX(Ranks!$1:$1048576,$A117,S$1))","v":""},{"$f":"IF($A117=\"N/A\",Ref!$B$36,INDEX(Ranks!$1:$1048576,$A117,T$1))","v":""},{"$f":"IF($A117=\"N/A\",Ref!$B$36,INDEX(Ranks!$1:$1048576,$A117,U$1))","v":""},{"$f":"IF($A117=\"N/A\",Ref!$B$36,INDEX(Ranks!$1:$1048576,$A117,V$1))","v":""},{"$f":"IF($A117=\"N/A\",Ref!$B$36,INDEX(Ranks!$1:$1048576,$A117,W$1))","v":""},{"$f":"IF($A117=\"N/A\",Ref!$B$36,INDEX(Ranks!$1:$1048576,$A117,X$1))","v":""},{"$f":"IF($A117=\"N/A\",Ref!$B$36,INDEX(Ranks!$1:$1048576,$A117,Y$1))","v":""},{"$f":"IF($A117=\"N/A\",Ref!$B$36,INDEX(Ranks!$1:$1048576,$A117,Z$1))","v":""},{"$f":"IF($A117=\"N/A\",Ref!$B$36,INDEX(Ranks!$1:$1048576,$A117,AA$1))","v":""},{"$f":"IF($A117=\"N/A\",Ref!$B$36,INDEX(Ranks!$1:$1048576,$A117,AB$1))","v":""},{"$f":"IF($A117=\"N/A\",Ref!$B$36,INDEX(Ranks!$1:$1048576,$A117,AC$1))","v":""},{"$f":"IF($A117=\"N/A\",Ref!$B$36,INDEX(Ranks!$1:$1048576,$A117,AD$1))","v":""},{"$f":"IF($A117=\"N/A\",Ref!$B$36,INDEX(Ranks!$1:$1048576,$A117,AE$1))","v":""},{"$f":"IF($A117=\"N/A\",Ref!$B$36,INDEX(Ranks!$1:$1048576,$A117,AF$1))","v":""},{"$f":"IF($A117=\"N/A\",Ref!$B$36,INDEX(Ranks!$1:$1048576,$A117,AG$1))","v":""},{"$f":"IF($A117=\"N/A\",Ref!$B$36,INDEX(Ranks!$1:$1048576,$A117,AH$1))","v":""},{"$f":"IF($A117=\"N/A\",Ref!$B$36,INDEX(Ranks!$1:$1048576,$A117,AI$1))","v":""},{"$f":"IF($A117=\"N/A\",Ref!$B$36,INDEX(Ranks!$1:$1048576,$A117,AJ$1))","v":""},{"$f":"IF($A117=\"N/A\",Ref!$B$36,INDEX(Ranks!$1:$1048576,$A117,AK$1))","v":""},{"$f":"IF($A117=\"N/A\",Ref!$B$36,INDEX(Ranks!$1:$1048576,$A117,AL$1))","v":""},{"$f":"IF($A117=\"N/A\",Ref!$B$36,INDEX(Ranks!$1:$1048576,$A117,AM$1))","v":""},{"$f":"IF($A117=\"N/A\",Ref!$B$36,INDEX(Ranks!$1:$1048576,$A117,AN$1))","v":""},{"$f":"IF($A117=\"N/A\",Ref!$B$36,INDEX(Ranks!$1:$1048576,$A117,AO$1))","v":""},{"$f":"IF($A117=\"N/A\",Ref!$B$36,INDEX(Ranks!$1:$1048576,$A117,AP$1))","v":""},{"$f":"IF($A117=\"N/A\",Ref!$B$36,INDEX(Ranks!$1:$1048576,$A117,AQ$1))","v":""},{"$f":"IF($A117=\"N/A\",Ref!$B$36,INDEX(Ranks!$1:$1048576,$A117,AR$1))","v":""},{"$f":"IF($A117=\"N/A\",Ref!$B$36,INDEX(Ranks!$1:$1048576,$A117,AS$1))","v":""},{"$f":"IF($A117=\"N/A\",Ref!$B$36,INDEX(Ranks!$1:$1048576,$A117,AT$1))","v":""},{"$f":"IF($A117=\"N/A\",Ref!$B$36,INDEX(Ranks!$1:$1048576,$A117,AU$1))","v":""},{"$f":"IF($A117=\"N/A\",Ref!$B$36,INDEX(Ranks!$1:$1048576,$A117,AV$1))","v":""},{"$f":"IF($A117=\"N/A\",Ref!$B$36,INDEX(Ranks!$1:$1048576,$A117,AW$1))","v":""},{"$f":"IF($A117=\"N/A\",Ref!$B$36,INDEX(Ranks!$1:$1048576,$A117,AX$1))","v":""},{"$f":"IF($A117=\"N/A\",Ref!$B$36,INDEX(Ranks!$1:$1048576,$A117,AY$1))","v":""},{"$f":"IF($A117=\"N/A\",Ref!$B$36,INDEX(Ranks!$1:$1048576,$A117,AZ$1))","v":""},{"$f":"IF($A117=\"N/A\",Ref!$B$36,INDEX(Ranks!$1:$1048576,$A117,BA$1))","v":""},{"$f":"IF($A117=\"N/A\",Ref!$B$36,INDEX(Ranks!$1:$1048576,$A117,BB$1))","v":""},{"$f":"IF($A117=\"N/A\",Ref!$B$36,INDEX(Ranks!$1:$1048576,$A117,BC$1))","v":""},{"$f":"IF($A117=\"N/A\",Ref!$B$36,INDEX(Ranks!$1:$1048576,$A117,BD$1))","v":""},{"$f":"IF($A117=\"N/A\",Ref!$B$36,INDEX(Ranks!$1:$1048576,$A117,BE$1))","v":""},{"$f":"IF($A117=\"N/A\",Ref!$B$36,INDEX(Ranks!$1:$1048576,$A117,BF$1))","v":""},{"$f":"IF($A117=\"N/A\",Ref!$B$36,INDEX(Ranks!$1:$1048576,$A117,BG$1))","v":""},{"$f":"IF($A117=\"N/A\",Ref!$B$36,INDEX(Ranks!$1:$1048576,$A117,BH$1))","v":""},{"$f":"IF($A117=\"N/A\",Ref!$B$36,INDEX(Ranks!$1:$1048576,$A117,BI$1))","v":""},{"$f":"IF($A117=\"N/A\",Ref!$B$36,INDEX(Ranks!$1:$1048576,$A117,BJ$1))","v":""},{"$f":"IF($A117=\"N/A\",Ref!$B$36,INDEX(Ranks!$1:$1048576,$A117,BK$1))","v":""},{"$f":"IF($A117=\"N/A\",Ref!$B$36,INDEX(Ranks!$1:$1048576,$A117,BL$1))","v":""},{"$f":"IF($A117=\"N/A\",Ref!$B$36,INDEX(Ranks!$1:$1048576,$A117,BM$1))","v":""},{"$f":"IF($A117=\"N/A\",Ref!$B$36,INDEX(Ranks!$1:$1048576,$A117,BN$1))","v":""},{"$f":"IF($A117=\"N/A\",Ref!$B$36,INDEX(Ranks!$1:$1048576,$A117,BO$1))","v":""},{"$f":"IF($A117=\"N/A\",Ref!$B$36,INDEX(Ranks!$1:$1048576,$A117,BP$1))","v":""},{"$f":"IF($A117=\"N/A\",Ref!$B$36,INDEX(Ranks!$1:$1048576,$A117,BQ$1))","v":""},{"$f":"IF($A117=\"N/A\",Ref!$B$36,INDEX(Ranks!$1:$1048576,$A117,BR$1))","v":""},{"$f":"IF($A117=\"N/A\",Ref!$B$36,INDEX(Ranks!$1:$1048576,$A117,BS$1))","v":""},{"$f":"IF($A117=\"N/A\",Ref!$B$36,INDEX(Ranks!$1:$1048576,$A117,BT$1))","v":""},{"$f":"IF($A117=\"N/A\",Ref!$B$36,INDEX(Ranks!$1:$1048576,$A117,BU$1))","v":""},{"$f":"IF($A117=\"N/A\",Ref!$B$36,INDEX(Ranks!$1:$1048576,$A117,BV$1))","v":""},{"$f":"IF($A117=\"N/A\",Ref!$B$36,INDEX(Ranks!$1:$1048576,$A117,BW$1))","v":""},{"$f":"IF($A117=\"N/A\",Ref!$B$36,INDEX(Ranks!$1:$1048576,$A117,BX$1))","v":""},{"$f":"IF($A117=\"N/A\",Ref!$B$36,INDEX(Ranks!$1:$1048576,$A117,BY$1))","v":""},{"$f":"IF($A117=\"N/A\",Ref!$B$36,INDEX(Ranks!$1:$1048576,$A117,BZ$1))","v":""},{"$f":"IF($A117=\"N/A\",Ref!$B$36,INDEX(Ranks!$1:$1048576,$A117,CA$1))","v":""},{"$f":"IF($A117=\"N/A\",Ref!$B$36,INDEX(Ranks!$1:$1048576,$A117,CB$1))","v":""},{"$f":"IF($A117=\"N/A\",Ref!$B$36,INDEX(Ranks!$1:$1048576,$A117,CC$1))","v":""},{"$f":"IF($A117=\"N/A\",Ref!$B$36,INDEX(Ranks!$1:$1048576,$A117,CD$1))","v":""},{"$f":"IF($A117=\"N/A\",Ref!$B$36,INDEX(Ranks!$1:$1048576,$A117,CE$1))","v":""},{"$f":"IF($A117=\"N/A\",Ref!$B$36,INDEX(Ranks!$1:$1048576,$A117,CF$1))","v":""},{"$f":"IF($A117=\"N/A\",Ref!$B$36,INDEX(Ranks!$1:$1048576,$A117,CG$1))","v":""},{"$f":"IF($A117=\"N/A\",Ref!$B$36,INDEX(Ranks!$1:$1048576,$A117,CH$1))","v":""},{"$f":"IF($A117=\"N/A\",Ref!$B$36,INDEX(Ranks!$1:$1048576,$A117,CI$1))","v":""},{"$f":"IF($A117=\"N/A\",Ref!$B$36,INDEX(Ranks!$1:$1048576,$A117,CJ$1))","v":""},{"$f":"IF($A117=\"N/A\",Ref!$B$36,INDEX(Ranks!$1:$1048576,$A117,CK$1))","v":""},{"$f":"IF($A117=\"N/A\",Ref!$B$36,INDEX(Ranks!$1:$1048576,$A117,CL$1))","v":""},{"$f":"IF($A117=\"N/A\",Ref!$B$36,INDEX(Ranks!$1:$1048576,$A117,CM$1))","v":""},{"$f":"IF($A117=\"N/A\",Ref!$B$36,INDEX(Ranks!$1:$1048576,$A117,CN$1))","v":""},{"$f":"IF($A117=\"N/A\",Ref!$B$36,INDEX(Ranks!$1:$1048576,$A117,CO$1))","v":""},{"$f":"IF($A117=\"N/A\",Ref!$B$36,INDEX(Ranks!$1:$1048576,$A117,CP$1))","v":""},{"$f":"IF($A117=\"N/A\",Ref!$B$36,INDEX(Ranks!$1:$1048576,$A117,CQ$1))","v":""},{"$f":"IF($A117=\"N/A\",Ref!$B$36,INDEX(Ranks!$1:$1048576,$A117,CR$1))","v":""},{"$f":"IF($A117=\"N/A\",Ref!$B$36,INDEX(Ranks!$1:$1048576,$A117,CS$1))","v":""},{"$f":"IF($A117=\"N/A\",Ref!$B$36,INDEX(Ranks!$1:$1048576,$A117,CT$1))","v":""},{"$f":"IF($A117=\"N/A\",Ref!$B$36,INDEX(Ranks!$1:$1048576,$A117,CU$1))","v":""},{"$f":"IF($A117=\"N/A\",Ref!$B$36,INDEX(Ranks!$1:$1048576,$A117,CV$1))","v":""},{"$f":"IF($A117=\"N/A\",Ref!$B$36,INDEX(Ranks!$1:$1048576,$A117,CW$1))","v":""},{"$f":"IF($A117=\"N/A\",Ref!$B$36,INDEX(Ranks!$1:$1048576,$A117,CX$1))","v":""},{"$f":"IF($A117=\"N/A\",Ref!$B$36,INDEX(Ranks!$1:$1048576,$A117,CY$1))","v":""},{"$f":"IF($A117=\"N/A\",Ref!$B$36,INDEX(Ranks!$1:$1048576,$A117,CZ$1))","v":""},{"$f":"IF($A117=\"N/A\",Ref!$B$36,INDEX(Ranks!$1:$1048576,$A117,DA$1))","v":""},{"$f":"IF($A117=\"N/A\",Ref!$B$36,INDEX(Ranks!$1:$1048576,$A117,DB$1))","v":""},{"$f":"IF($A117=\"N/A\",Ref!$B$36,INDEX(Ranks!$1:$1048576,$A117,DC$1))","v":""},{"$f":"IF($A117=\"N/A\",Ref!$B$36,INDEX(Ranks!$1:$1048576,$A117,DD$1))","v":""},{"$f":"IF($A117=\"N/A\",Ref!$B$36,INDEX(Ranks!$1:$1048576,$A117,DE$1))","v":""},{"$f":"IF($A117=\"N/A\",Ref!$B$36,INDEX(Ranks!$1:$1048576,$A117,DF$1))","v":""},{"$f":"IF($A117=\"N/A\",Ref!$B$36,INDEX(Ranks!$1:$1048576,$A117,DG$1))","v":""},{"$f":"IF($A117=\"N/A\",Ref!$B$36,INDEX(Ranks!$1:$1048576,$A117,DH$1))","v":""},{"$f":"IF($A117=\"N/A\",Ref!$B$36,INDEX(Ranks!$1:$1048576,$A117,DI$1))","v":""},{"$f":"IF($A117=\"N/A\",Ref!$B$36,INDEX(Ranks!$1:$1048576,$A117,DJ$1))","v":""},{"$f":"IF($A117=\"N/A\",Ref!$B$36,INDEX(Ranks!$1:$1048576,$A117,DK$1))","v":""},{"$f":"IF($A117=\"N/A\",Ref!$B$36,INDEX(Ranks!$1:$1048576,$A117,DL$1))","v":""},{"$f":"IF($A117=\"N/A\",Ref!$B$36,INDEX(Ranks!$1:$1048576,$A117,DM$1))","v":""},{"$f":"IF($A117=\"N/A\",Ref!$B$36,INDEX(Ranks!$1:$1048576,$A117,DN$1))","v":""},{"$f":"IF($A117=\"N/A\",Ref!$B$36,INDEX(Ranks!$1:$1048576,$A117,DO$1))","v":""},{"$f":"IF($A117=\"N/A\",Ref!$B$36,INDEX(Ranks!$1:$1048576,$A117,DP$1))","v":""},{"$f":"IF($A117=\"N/A\",Ref!$B$36,INDEX(Ranks!$1:$1048576,$A117,DQ$1))","v":""},{"$f":"IF($A117=\"N/A\",Ref!$B$36,INDEX(Ranks!$1:$1048576,$A117,DR$1))","v":""},{"$f":"IF($A117=\"N/A\",Ref!$B$36,INDEX(Ranks!$1:$1048576,$A117,DS$1))","v":""},{"$f":"IF($A117=\"N/A\",Ref!$B$36,INDEX(Ranks!$1:$1048576,$A117,DT$1))","v":""},{"$f":"IF($A117=\"N/A\",Ref!$B$36,INDEX(Ranks!$1:$1048576,$A117,DU$1))","v":""},{"$f":"IF($A117=\"N/A\",Ref!$B$36,INDEX(Ranks!$1:$1048576,$A117,DV$1))","v":""},{"$f":"IF($A117=\"N/A\",Ref!$B$36,INDEX(Ranks!$1:$1048576,$A117,DW$1))","v":""},{"$f":"IF($A117=\"N/A\",Ref!$B$36,INDEX(Ranks!$1:$1048576,$A117,DX$1))","v":""},{"$f":"IF($A117=\"N/A\",Ref!$B$36,INDEX(Ranks!$1:$1048576,$A117,DY$1))","v":""},{"$f":"IF($A117=\"N/A\",Ref!$B$36,INDEX(Ranks!$1:$1048576,$A117,DZ$1))","v":""},{"$f":"IF($A117=\"N/A\",Ref!$B$36,INDEX(Ranks!$1:$1048576,$A117,EA$1))","v":""},{"$f":"IF($A117=\"N/A\",Ref!$B$36,INDEX(Ranks!$1:$1048576,$A117,EB$1))","v":""}]
[{"$f":"IFERROR(MATCH('Portfolio Page'!L118,Ranks!L:L,0),\"N/A\")","v":"N/A"},null,{"$f":"IF($A118=\"N/A\",\"\",INDEX(Ranks!$1:$1048576,$A118,C$1))","v":""},{"$f":"IF($A118=\"N/A\",Ref!$B$36,INDEX(Ranks!$1:$1048576,$A118,D$1))","v":""},{"$f":"IF($A118=\"N/A\",Ref!$B$36,INDEX(Ranks!$1:$1048576,$A118,E$1))","v":""},{"$f":"IF($A118=\"N/A\",\"\",INDEX(Ranks!$1:$1048576,$A118,F$1))","v":""},{"$f":"IF($A118=\"N/A\",\"\",INDEX(Ranks!$1:$1048576,$A118,G$1))","v":""},{"$f":"IF($A118=\"N/A\",\"\",INDEX(Ranks!$1:$1048576,$A118,H$1))","v":""},{"$f":"IF($A118=\"N/A\",\"\",INDEX(Ranks!$1:$1048576,$A118,I$1))","v":""},{"$f":"IF($A118=\"N/A\",\"\",INDEX(Ranks!$1:$1048576,$A118,J$1))","v":""},{"$f":"IF($A118=\"N/A\",\"\",INDEX(Ranks!$1:$1048576,$A118,K$1))","v":""},null,{"$f":"IF($A118=\"N/A\",Ref!$B$36,INDEX(Ranks!$1:$1048576,$A118,M$1))","v":""},{"$f":"IF($A118=\"N/A\",Ref!$B$36,INDEX(Ranks!$1:$1048576,$A118,N$1))","v":""},{"$f":"IF($A118=\"N/A\",Ref!$B$36,INDEX(Ranks!$1:$1048576,$A118,O$1))","v":""},{"$f":"IF($A118=\"N/A\",Ref!$B$36,INDEX(Ranks!$1:$1048576,$A118,P$1))","v":""},{"$f":"IF($A118=\"N/A\",Ref!$B$36,INDEX(Ranks!$1:$1048576,$A118,Q$1))","v":""},{"$f":"IF($A118=\"N/A\",Ref!$B$36,INDEX(Ranks!$1:$1048576,$A118,R$1))","v":""},{"$f":"IF($A118=\"N/A\",Ref!$B$36,INDEX(Ranks!$1:$1048576,$A118,S$1))","v":""},{"$f":"IF($A118=\"N/A\",Ref!$B$36,INDEX(Ranks!$1:$1048576,$A118,T$1))","v":""},{"$f":"IF($A118=\"N/A\",Ref!$B$36,INDEX(Ranks!$1:$1048576,$A118,U$1))","v":""},{"$f":"IF($A118=\"N/A\",Ref!$B$36,INDEX(Ranks!$1:$1048576,$A118,V$1))","v":""},{"$f":"IF($A118=\"N/A\",Ref!$B$36,INDEX(Ranks!$1:$1048576,$A118,W$1))","v":""},{"$f":"IF($A118=\"N/A\",Ref!$B$36,INDEX(Ranks!$1:$1048576,$A118,X$1))","v":""},{"$f":"IF($A118=\"N/A\",Ref!$B$36,INDEX(Ranks!$1:$1048576,$A118,Y$1))","v":""},{"$f":"IF($A118=\"N/A\",Ref!$B$36,INDEX(Ranks!$1:$1048576,$A118,Z$1))","v":""},{"$f":"IF($A118=\"N/A\",Ref!$B$36,INDEX(Ranks!$1:$1048576,$A118,AA$1))","v":""},{"$f":"IF($A118=\"N/A\",Ref!$B$36,INDEX(Ranks!$1:$1048576,$A118,AB$1))","v":""},{"$f":"IF($A118=\"N/A\",Ref!$B$36,INDEX(Ranks!$1:$1048576,$A118,AC$1))","v":""},{"$f":"IF($A118=\"N/A\",Ref!$B$36,INDEX(Ranks!$1:$1048576,$A118,AD$1))","v":""},{"$f":"IF($A118=\"N/A\",Ref!$B$36,INDEX(Ranks!$1:$1048576,$A118,AE$1))","v":""},{"$f":"IF($A118=\"N/A\",Ref!$B$36,INDEX(Ranks!$1:$1048576,$A118,AF$1))","v":""},{"$f":"IF($A118=\"N/A\",Ref!$B$36,INDEX(Ranks!$1:$1048576,$A118,AG$1))","v":""},{"$f":"IF($A118=\"N/A\",Ref!$B$36,INDEX(Ranks!$1:$1048576,$A118,AH$1))","v":""},{"$f":"IF($A118=\"N/A\",Ref!$B$36,INDEX(Ranks!$1:$1048576,$A118,AI$1))","v":""},{"$f":"IF($A118=\"N/A\",Ref!$B$36,INDEX(Ranks!$1:$1048576,$A118,AJ$1))","v":""},{"$f":"IF($A118=\"N/A\",Ref!$B$36,INDEX(Ranks!$1:$1048576,$A118,AK$1))","v":""},{"$f":"IF($A118=\"N/A\",Ref!$B$36,INDEX(Ranks!$1:$1048576,$A118,AL$1))","v":""},{"$f":"IF($A118=\"N/A\",Ref!$B$36,INDEX(Ranks!$1:$1048576,$A118,AM$1))","v":""},{"$f":"IF($A118=\"N/A\",Ref!$B$36,INDEX(Ranks!$1:$1048576,$A118,AN$1))","v":""},{"$f":"IF($A118=\"N/A\",Ref!$B$36,INDEX(Ranks!$1:$1048576,$A118,AO$1))","v":""},{"$f":"IF($A118=\"N/A\",Ref!$B$36,INDEX(Ranks!$1:$1048576,$A118,AP$1))","v":""},{"$f":"IF($A118=\"N/A\",Ref!$B$36,INDEX(Ranks!$1:$1048576,$A118,AQ$1))","v":""},{"$f":"IF($A118=\"N/A\",Ref!$B$36,INDEX(Ranks!$1:$1048576,$A118,AR$1))","v":""},{"$f":"IF($A118=\"N/A\",Ref!$B$36,INDEX(Ranks!$1:$1048576,$A118,AS$1))","v":""},{"$f":"IF($A118=\"N/A\",Ref!$B$36,INDEX(Ranks!$1:$1048576,$A118,AT$1))","v":""},{"$f":"IF($A118=\"N/A\",Ref!$B$36,INDEX(Ranks!$1:$1048576,$A118,AU$1))","v":""},{"$f":"IF($A118=\"N/A\",Ref!$B$36,INDEX(Ranks!$1:$1048576,$A118,AV$1))","v":""},{"$f":"IF($A118=\"N/A\",Ref!$B$36,INDEX(Ranks!$1:$1048576,$A118,AW$1))","v":""},{"$f":"IF($A118=\"N/A\",Ref!$B$36,INDEX(Ranks!$1:$1048576,$A118,AX$1))","v":""},{"$f":"IF($A118=\"N/A\",Ref!$B$36,INDEX(Ranks!$1:$1048576,$A118,AY$1))","v":""},{"$f":"IF($A118=\"N/A\",Ref!$B$36,INDEX(Ranks!$1:$1048576,$A118,AZ$1))","v":""},{"$f":"IF($A118=\"N/A\",Ref!$B$36,INDEX(Ranks!$1:$1048576,$A118,BA$1))","v":""},{"$f":"IF($A118=\"N/A\",Ref!$B$36,INDEX(Ranks!$1:$1048576,$A118,BB$1))","v":""},{"$f":"IF($A118=\"N/A\",Ref!$B$36,INDEX(Ranks!$1:$1048576,$A118,BC$1))","v":""},{"$f":"IF($A118=\"N/A\",Ref!$B$36,INDEX(Ranks!$1:$1048576,$A118,BD$1))","v":""},{"$f":"IF($A118=\"N/A\",Ref!$B$36,INDEX(Ranks!$1:$1048576,$A118,BE$1))","v":""},{"$f":"IF($A118=\"N/A\",Ref!$B$36,INDEX(Ranks!$1:$1048576,$A118,BF$1))","v":""},{"$f":"IF($A118=\"N/A\",Ref!$B$36,INDEX(Ranks!$1:$1048576,$A118,BG$1))","v":""},{"$f":"IF($A118=\"N/A\",Ref!$B$36,INDEX(Ranks!$1:$1048576,$A118,BH$1))","v":""},{"$f":"IF($A118=\"N/A\",Ref!$B$36,INDEX(Ranks!$1:$1048576,$A118,BI$1))","v":""},{"$f":"IF($A118=\"N/A\",Ref!$B$36,INDEX(Ranks!$1:$1048576,$A118,BJ$1))","v":""},{"$f":"IF($A118=\"N/A\",Ref!$B$36,INDEX(Ranks!$1:$1048576,$A118,BK$1))","v":""},{"$f":"IF($A118=\"N/A\",Ref!$B$36,INDEX(Ranks!$1:$1048576,$A118,BL$1))","v":""},{"$f":"IF($A118=\"N/A\",Ref!$B$36,INDEX(Ranks!$1:$1048576,$A118,BM$1))","v":""},{"$f":"IF($A118=\"N/A\",Ref!$B$36,INDEX(Ranks!$1:$1048576,$A118,BN$1))","v":""},{"$f":"IF($A118=\"N/A\",Ref!$B$36,INDEX(Ranks!$1:$1048576,$A118,BO$1))","v":""},{"$f":"IF($A118=\"N/A\",Ref!$B$36,INDEX(Ranks!$1:$1048576,$A118,BP$1))","v":""},{"$f":"IF($A118=\"N/A\",Ref!$B$36,INDEX(Ranks!$1:$1048576,$A118,BQ$1))","v":""},{"$f":"IF($A118=\"N/A\",Ref!$B$36,INDEX(Ranks!$1:$1048576,$A118,BR$1))","v":""},{"$f":"IF($A118=\"N/A\",Ref!$B$36,INDEX(Ranks!$1:$1048576,$A118,BS$1))","v":""},{"$f":"IF($A118=\"N/A\",Ref!$B$36,INDEX(Ranks!$1:$1048576,$A118,BT$1))","v":""},{"$f":"IF($A118=\"N/A\",Ref!$B$36,INDEX(Ranks!$1:$1048576,$A118,BU$1))","v":""},{"$f":"IF($A118=\"N/A\",Ref!$B$36,INDEX(Ranks!$1:$1048576,$A118,BV$1))","v":""},{"$f":"IF($A118=\"N/A\",Ref!$B$36,INDEX(Ranks!$1:$1048576,$A118,BW$1))","v":""},{"$f":"IF($A118=\"N/A\",Ref!$B$36,INDEX(Ranks!$1:$1048576,$A118,BX$1))","v":""},{"$f":"IF($A118=\"N/A\",Ref!$B$36,INDEX(Ranks!$1:$1048576,$A118,BY$1))","v":""},{"$f":"IF($A118=\"N/A\",Ref!$B$36,INDEX(Ranks!$1:$1048576,$A118,BZ$1))","v":""},{"$f":"IF($A118=\"N/A\",Ref!$B$36,INDEX(Ranks!$1:$1048576,$A118,CA$1))","v":""},{"$f":"IF($A118=\"N/A\",Ref!$B$36,INDEX(Ranks!$1:$1048576,$A118,CB$1))","v":""},{"$f":"IF($A118=\"N/A\",Ref!$B$36,INDEX(Ranks!$1:$1048576,$A118,CC$1))","v":""},{"$f":"IF($A118=\"N/A\",Ref!$B$36,INDEX(Ranks!$1:$1048576,$A118,CD$1))","v":""},{"$f":"IF($A118=\"N/A\",Ref!$B$36,INDEX(Ranks!$1:$1048576,$A118,CE$1))","v":""},{"$f":"IF($A118=\"N/A\",Ref!$B$36,INDEX(Ranks!$1:$1048576,$A118,CF$1))","v":""},{"$f":"IF($A118=\"N/A\",Ref!$B$36,INDEX(Ranks!$1:$1048576,$A118,CG$1))","v":""},{"$f":"IF($A118=\"N/A\",Ref!$B$36,INDEX(Ranks!$1:$1048576,$A118,CH$1))","v":""},{"$f":"IF($A118=\"N/A\",Ref!$B$36,INDEX(Ranks!$1:$1048576,$A118,CI$1))","v":""},{"$f":"IF($A118=\"N/A\",Ref!$B$36,INDEX(Ranks!$1:$1048576,$A118,CJ$1))","v":""},{"$f":"IF($A118=\"N/A\",Ref!$B$36,INDEX(Ranks!$1:$1048576,$A118,CK$1))","v":""},{"$f":"IF($A118=\"N/A\",Ref!$B$36,INDEX(Ranks!$1:$1048576,$A118,CL$1))","v":""},{"$f":"IF($A118=\"N/A\",Ref!$B$36,INDEX(Ranks!$1:$1048576,$A118,CM$1))","v":""},{"$f":"IF($A118=\"N/A\",Ref!$B$36,INDEX(Ranks!$1:$1048576,$A118,CN$1))","v":""},{"$f":"IF($A118=\"N/A\",Ref!$B$36,INDEX(Ranks!$1:$1048576,$A118,CO$1))","v":""},{"$f":"IF($A118=\"N/A\",Ref!$B$36,INDEX(Ranks!$1:$1048576,$A118,CP$1))","v":""},{"$f":"IF($A118=\"N/A\",Ref!$B$36,INDEX(Ranks!$1:$1048576,$A118,CQ$1))","v":""},{"$f":"IF($A118=\"N/A\",Ref!$B$36,INDEX(Ranks!$1:$1048576,$A118,CR$1))","v":""},{"$f":"IF($A118=\"N/A\",Ref!$B$36,INDEX(Ranks!$1:$1048576,$A118,CS$1))","v":""},{"$f":"IF($A118=\"N/A\",Ref!$B$36,INDEX(Ranks!$1:$1048576,$A118,CT$1))","v":""},{"$f":"IF($A118=\"N/A\",Ref!$B$36,INDEX(Ranks!$1:$1048576,$A118,CU$1))","v":""},{"$f":"IF($A118=\"N/A\",Ref!$B$36,INDEX(Ranks!$1:$1048576,$A118,CV$1))","v":""},{"$f":"IF($A118=\"N/A\",Ref!$B$36,INDEX(Ranks!$1:$1048576,$A118,CW$1))","v":""},{"$f":"IF($A118=\"N/A\",Ref!$B$36,INDEX(Ranks!$1:$1048576,$A118,CX$1))","v":""},{"$f":"IF($A118=\"N/A\",Ref!$B$36,INDEX(Ranks!$1:$1048576,$A118,CY$1))","v":""},{"$f":"IF($A118=\"N/A\",Ref!$B$36,INDEX(Ranks!$1:$1048576,$A118,CZ$1))","v":""},{"$f":"IF($A118=\"N/A\",Ref!$B$36,INDEX(Ranks!$1:$1048576,$A118,DA$1))","v":""},{"$f":"IF($A118=\"N/A\",Ref!$B$36,INDEX(Ranks!$1:$1048576,$A118,DB$1))","v":""},{"$f":"IF($A118=\"N/A\",Ref!$B$36,INDEX(Ranks!$1:$1048576,$A118,DC$1))","v":""},{"$f":"IF($A118=\"N/A\",Ref!$B$36,INDEX(Ranks!$1:$1048576,$A118,DD$1))","v":""},{"$f":"IF($A118=\"N/A\",Ref!$B$36,INDEX(Ranks!$1:$1048576,$A118,DE$1))","v":""},{"$f":"IF($A118=\"N/A\",Ref!$B$36,INDEX(Ranks!$1:$1048576,$A118,DF$1))","v":""},{"$f":"IF($A118=\"N/A\",Ref!$B$36,INDEX(Ranks!$1:$1048576,$A118,DG$1))","v":""},{"$f":"IF($A118=\"N/A\",Ref!$B$36,INDEX(Ranks!$1:$1048576,$A118,DH$1))","v":""},{"$f":"IF($A118=\"N/A\",Ref!$B$36,INDEX(Ranks!$1:$1048576,$A118,DI$1))","v":""},{"$f":"IF($A118=\"N/A\",Ref!$B$36,INDEX(Ranks!$1:$1048576,$A118,DJ$1))","v":""},{"$f":"IF($A118=\"N/A\",Ref!$B$36,INDEX(Ranks!$1:$1048576,$A118,DK$1))","v":""},{"$f":"IF($A118=\"N/A\",Ref!$B$36,INDEX(Ranks!$1:$1048576,$A118,DL$1))","v":""},{"$f":"IF($A118=\"N/A\",Ref!$B$36,INDEX(Ranks!$1:$1048576,$A118,DM$1))","v":""},{"$f":"IF($A118=\"N/A\",Ref!$B$36,INDEX(Ranks!$1:$1048576,$A118,DN$1))","v":""},{"$f":"IF($A118=\"N/A\",Ref!$B$36,INDEX(Ranks!$1:$1048576,$A118,DO$1))","v":""},{"$f":"IF($A118=\"N/A\",Ref!$B$36,INDEX(Ranks!$1:$1048576,$A118,DP$1))","v":""},{"$f":"IF($A118=\"N/A\",Ref!$B$36,INDEX(Ranks!$1:$1048576,$A118,DQ$1))","v":""},{"$f":"IF($A118=\"N/A\",Ref!$B$36,INDEX(Ranks!$1:$1048576,$A118,DR$1))","v":""},{"$f":"IF($A118=\"N/A\",Ref!$B$36,INDEX(Ranks!$1:$1048576,$A118,DS$1))","v":""},{"$f":"IF($A118=\"N/A\",Ref!$B$36,INDEX(Ranks!$1:$1048576,$A118,DT$1))","v":""},{"$f":"IF($A118=\"N/A\",Ref!$B$36,INDEX(Ranks!$1:$1048576,$A118,DU$1))","v":""},{"$f":"IF($A118=\"N/A\",Ref!$B$36,INDEX(Ranks!$1:$1048576,$A118,DV$1))","v":""},{"$f":"IF($A118=\"N/A\",Ref!$B$36,INDEX(Ranks!$1:$1048576,$A118,DW$1))","v":""},{"$f":"IF($A118=\"N/A\",Ref!$B$36,INDEX(Ranks!$1:$1048576,$A118,DX$1))","v":""},{"$f":"IF($A118=\"N/A\",Ref!$B$36,INDEX(Ranks!$1:$1048576,$A118,DY$1))","v":""},{"$f":"IF($A118=\"N/A\",Ref!$B$36,INDEX(Ranks!$1:$1048576,$A118,DZ$1))","v":""},{"$f":"IF($A118=\"N/A\",Ref!$B$36,INDEX(Ranks!$1:$1048576,$A118,EA$1))","v":""},{"$f":"IF($A118=\"N/A\",Ref!$B$36,INDEX(Ranks!$1:$1048576,$A118,EB$1))","v":""}]
[{"$f":"IFERROR(MATCH('Portfolio Page'!L119,Ranks!L:L,0),\"N/A\")","v":"N/A"},null,{"$f":"IF($A119=\"N/A\",\"\",INDEX(Ranks!$1:$1048576,$A119,C$1))","v":""},{"$f":"IF($A119=\"N/A\",Ref!$B$36,INDEX(Ranks!$1:$1048576,$A119,D$1))","v":""},{"$f":"IF($A119=\"N/A\",Ref!$B$36,INDEX(Ranks!$1:$1048576,$A119,E$1))","v":""},{"$f":"IF($A119=\"N/A\",\"\",INDEX(Ranks!$1:$1048576,$A119,F$1))","v":""},{"$f":"IF($A119=\"N/A\",\"\",INDEX(Ranks!$1:$1048576,$A119,G$1))","v":""},{"$f":"IF($A119=\"N/A\",\"\",INDEX(Ranks!$1:$1048576,$A119,H$1))","v":""},{"$f":"IF($A119=\"N/A\",\"\",INDEX(Ranks!$1:$1048576,$A119,I$1))","v":""},{"$f":"IF($A119=\"N/A\",\"\",INDEX(Ranks!$1:$1048576,$A119,J$1))","v":""},{"$f":"IF($A119=\"N/A\",\"\",INDEX(Ranks!$1:$1048576,$A119,K$1))","v":""},null,{"$f":"IF($A119=\"N/A\",Ref!$B$36,INDEX(Ranks!$1:$1048576,$A119,M$1))","v":""},{"$f":"IF($A119=\"N/A\",Ref!$B$36,INDEX(Ranks!$1:$1048576,$A119,N$1))","v":""},{"$f":"IF($A119=\"N/A\",Ref!$B$36,INDEX(Ranks!$1:$1048576,$A119,O$1))","v":""},{"$f":"IF($A119=\"N/A\",Ref!$B$36,INDEX(Ranks!$1:$1048576,$A119,P$1))","v":""},{"$f":"IF($A119=\"N/A\",Ref!$B$36,INDEX(Ranks!$1:$1048576,$A119,Q$1))","v":""},{"$f":"IF($A119=\"N/A\",Ref!$B$36,INDEX(Ranks!$1:$1048576,$A119,R$1))","v":""},{"$f":"IF($A119=\"N/A\",Ref!$B$36,INDEX(Ranks!$1:$1048576,$A119,S$1))","v":""},{"$f":"IF($A119=\"N/A\",Ref!$B$36,INDEX(Ranks!$1:$1048576,$A119,T$1))","v":""},{"$f":"IF($A119=\"N/A\",Ref!$B$36,INDEX(Ranks!$1:$1048576,$A119,U$1))","v":""},{"$f":"IF($A119=\"N/A\",Ref!$B$36,INDEX(Ranks!$1:$1048576,$A119,V$1))","v":""},{"$f":"IF($A119=\"N/A\",Ref!$B$36,INDEX(Ranks!$1:$1048576,$A119,W$1))","v":""},{"$f":"IF($A119=\"N/A\",Ref!$B$36,INDEX(Ranks!$1:$1048576,$A119,X$1))","v":""},{"$f":"IF($A119=\"N/A\",Ref!$B$36,INDEX(Ranks!$1:$1048576,$A119,Y$1))","v":""},{"$f":"IF($A119=\"N/A\",Ref!$B$36,INDEX(Ranks!$1:$1048576,$A119,Z$1))","v":""},{"$f":"IF($A119=\"N/A\",Ref!$B$36,INDEX(Ranks!$1:$1048576,$A119,AA$1))","v":""},{"$f":"IF($A119=\"N/A\",Ref!$B$36,INDEX(Ranks!$1:$1048576,$A119,AB$1))","v":""},{"$f":"IF($A119=\"N/A\",Ref!$B$36,INDEX(Ranks!$1:$1048576,$A119,AC$1))","v":""},{"$f":"IF($A119=\"N/A\",Ref!$B$36,INDEX(Ranks!$1:$1048576,$A119,AD$1))","v":""},{"$f":"IF($A119=\"N/A\",Ref!$B$36,INDEX(Ranks!$1:$1048576,$A119,AE$1))","v":""},{"$f":"IF($A119=\"N/A\",Ref!$B$36,INDEX(Ranks!$1:$1048576,$A119,AF$1))","v":""},{"$f":"IF($A119=\"N/A\",Ref!$B$36,INDEX(Ranks!$1:$1048576,$A119,AG$1))","v":""},{"$f":"IF($A119=\"N/A\",Ref!$B$36,INDEX(Ranks!$1:$1048576,$A119,AH$1))","v":""},{"$f":"IF($A119=\"N/A\",Ref!$B$36,INDEX(Ranks!$1:$1048576,$A119,AI$1))","v":""},{"$f":"IF($A119=\"N/A\",Ref!$B$36,INDEX(Ranks!$1:$1048576,$A119,AJ$1))","v":""},{"$f":"IF($A119=\"N/A\",Ref!$B$36,INDEX(Ranks!$1:$1048576,$A119,AK$1))","v":""},{"$f":"IF($A119=\"N/A\",Ref!$B$36,INDEX(Ranks!$1:$1048576,$A119,AL$1))","v":""},{"$f":"IF($A119=\"N/A\",Ref!$B$36,INDEX(Ranks!$1:$1048576,$A119,AM$1))","v":""},{"$f":"IF($A119=\"N/A\",Ref!$B$36,INDEX(Ranks!$1:$1048576,$A119,AN$1))","v":""},{"$f":"IF($A119=\"N/A\",Ref!$B$36,INDEX(Ranks!$1:$1048576,$A119,AO$1))","v":""},{"$f":"IF($A119=\"N/A\",Ref!$B$36,INDEX(Ranks!$1:$1048576,$A119,AP$1))","v":""},{"$f":"IF($A119=\"N/A\",Ref!$B$36,INDEX(Ranks!$1:$1048576,$A119,AQ$1))","v":""},{"$f":"IF($A119=\"N/A\",Ref!$B$36,INDEX(Ranks!$1:$1048576,$A119,AR$1))","v":""},{"$f":"IF($A119=\"N/A\",Ref!$B$36,INDEX(Ranks!$1:$1048576,$A119,AS$1))","v":""},{"$f":"IF($A119=\"N/A\",Ref!$B$36,INDEX(Ranks!$1:$1048576,$A119,AT$1))","v":""},{"$f":"IF($A119=\"N/A\",Ref!$B$36,INDEX(Ranks!$1:$1048576,$A119,AU$1))","v":""},{"$f":"IF($A119=\"N/A\",Ref!$B$36,INDEX(Ranks!$1:$1048576,$A119,AV$1))","v":""},{"$f":"IF($A119=\"N/A\",Ref!$B$36,INDEX(Ranks!$1:$1048576,$A119,AW$1))","v":""},{"$f":"IF($A119=\"N/A\",Ref!$B$36,INDEX(Ranks!$1:$1048576,$A119,AX$1))","v":""},{"$f":"IF($A119=\"N/A\",Ref!$B$36,INDEX(Ranks!$1:$1048576,$A119,AY$1))","v":""},{"$f":"IF($A119=\"N/A\",Ref!$B$36,INDEX(Ranks!$1:$1048576,$A119,AZ$1))","v":""},{"$f":"IF($A119=\"N/A\",Ref!$B$36,INDEX(Ranks!$1:$1048576,$A119,BA$1))","v":""},{"$f":"IF($A119=\"N/A\",Ref!$B$36,INDEX(Ranks!$1:$1048576,$A119,BB$1))","v":""},{"$f":"IF($A119=\"N/A\",Ref!$B$36,INDEX(Ranks!$1:$1048576,$A119,BC$1))","v":""},{"$f":"IF($A119=\"N/A\",Ref!$B$36,INDEX(Ranks!$1:$1048576,$A119,BD$1))","v":""},{"$f":"IF($A119=\"N/A\",Ref!$B$36,INDEX(Ranks!$1:$1048576,$A119,BE$1))","v":""},{"$f":"IF($A119=\"N/A\",Ref!$B$36,INDEX(Ranks!$1:$1048576,$A119,BF$1))","v":""},{"$f":"IF($A119=\"N/A\",Ref!$B$36,INDEX(Ranks!$1:$1048576,$A119,BG$1))","v":""},{"$f":"IF($A119=\"N/A\",Ref!$B$36,INDEX(Ranks!$1:$1048576,$A119,BH$1))","v":""},{"$f":"IF($A119=\"N/A\",Ref!$B$36,INDEX(Ranks!$1:$1048576,$A119,BI$1))","v":""},{"$f":"IF($A119=\"N/A\",Ref!$B$36,INDEX(Ranks!$1:$1048576,$A119,BJ$1))","v":""},{"$f":"IF($A119=\"N/A\",Ref!$B$36,INDEX(Ranks!$1:$1048576,$A119,BK$1))","v":""},{"$f":"IF($A119=\"N/A\",Ref!$B$36,INDEX(Ranks!$1:$1048576,$A119,BL$1))","v":""},{"$f":"IF($A119=\"N/A\",Ref!$B$36,INDEX(Ranks!$1:$1048576,$A119,BM$1))","v":""},{"$f":"IF($A119=\"N/A\",Ref!$B$36,INDEX(Ranks!$1:$1048576,$A119,BN$1))","v":""},{"$f":"IF($A119=\"N/A\",Ref!$B$36,INDEX(Ranks!$1:$1048576,$A119,BO$1))","v":""},{"$f":"IF($A119=\"N/A\",Ref!$B$36,INDEX(Ranks!$1:$1048576,$A119,BP$1))","v":""},{"$f":"IF($A119=\"N/A\",Ref!$B$36,INDEX(Ranks!$1:$1048576,$A119,BQ$1))","v":""},{"$f":"IF($A119=\"N/A\",Ref!$B$36,INDEX(Ranks!$1:$1048576,$A119,BR$1))","v":""},{"$f":"IF($A119=\"N/A\",Ref!$B$36,INDEX(Ranks!$1:$1048576,$A119,BS$1))","v":""},{"$f":"IF($A119=\"N/A\",Ref!$B$36,INDEX(Ranks!$1:$1048576,$A119,BT$1))","v":""},{"$f":"IF($A119=\"N/A\",Ref!$B$36,INDEX(Ranks!$1:$1048576,$A119,BU$1))","v":""},{"$f":"IF($A119=\"N/A\",Ref!$B$36,INDEX(Ranks!$1:$1048576,$A119,BV$1))","v":""},{"$f":"IF($A119=\"N/A\",Ref!$B$36,INDEX(Ranks!$1:$1048576,$A119,BW$1))","v":""},{"$f":"IF($A119=\"N/A\",Ref!$B$36,INDEX(Ranks!$1:$1048576,$A119,BX$1))","v":""},{"$f":"IF($A119=\"N/A\",Ref!$B$36,INDEX(Ranks!$1:$1048576,$A119,BY$1))","v":""},{"$f":"IF($A119=\"N/A\",Ref!$B$36,INDEX(Ranks!$1:$1048576,$A119,BZ$1))","v":""},{"$f":"IF($A119=\"N/A\",Ref!$B$36,INDEX(Ranks!$1:$1048576,$A119,CA$1))","v":""},{"$f":"IF($A119=\"N/A\",Ref!$B$36,INDEX(Ranks!$1:$1048576,$A119,CB$1))","v":""},{"$f":"IF($A119=\"N/A\",Ref!$B$36,INDEX(Ranks!$1:$1048576,$A119,CC$1))","v":""},{"$f":"IF($A119=\"N/A\",Ref!$B$36,INDEX(Ranks!$1:$1048576,$A119,CD$1))","v":""},{"$f":"IF($A119=\"N/A\",Ref!$B$36,INDEX(Ranks!$1:$1048576,$A119,CE$1))","v":""},{"$f":"IF($A119=\"N/A\",Ref!$B$36,INDEX(Ranks!$1:$1048576,$A119,CF$1))","v":""},{"$f":"IF($A119=\"N/A\",Ref!$B$36,INDEX(Ranks!$1:$1048576,$A119,CG$1))","v":""},{"$f":"IF($A119=\"N/A\",Ref!$B$36,INDEX(Ranks!$1:$1048576,$A119,CH$1))","v":""},{"$f":"IF($A119=\"N/A\",Ref!$B$36,INDEX(Ranks!$1:$1048576,$A119,CI$1))","v":""},{"$f":"IF($A119=\"N/A\",Ref!$B$36,INDEX(Ranks!$1:$1048576,$A119,CJ$1))","v":""},{"$f":"IF($A119=\"N/A\",Ref!$B$36,INDEX(Ranks!$1:$1048576,$A119,CK$1))","v":""},{"$f":"IF($A119=\"N/A\",Ref!$B$36,INDEX(Ranks!$1:$1048576,$A119,CL$1))","v":""},{"$f":"IF($A119=\"N/A\",Ref!$B$36,INDEX(Ranks!$1:$1048576,$A119,CM$1))","v":""},{"$f":"IF($A119=\"N/A\",Ref!$B$36,INDEX(Ranks!$1:$1048576,$A119,CN$1))","v":""},{"$f":"IF($A119=\"N/A\",Ref!$B$36,INDEX(Ranks!$1:$1048576,$A119,CO$1))","v":""},{"$f":"IF($A119=\"N/A\",Ref!$B$36,INDEX(Ranks!$1:$1048576,$A119,CP$1))","v":""},{"$f":"IF($A119=\"N/A\",Ref!$B$36,INDEX(Ranks!$1:$1048576,$A119,CQ$1))","v":""},{"$f":"IF($A119=\"N/A\",Ref!$B$36,INDEX(Ranks!$1:$1048576,$A119,CR$1))","v":""},{"$f":"IF($A119=\"N/A\",Ref!$B$36,INDEX(Ranks!$1:$1048576,$A119,CS$1))","v":""},{"$f":"IF($A119=\"N/A\",Ref!$B$36,INDEX(Ranks!$1:$1048576,$A119,CT$1))","v":""},{"$f":"IF($A119=\"N/A\",Ref!$B$36,INDEX(Ranks!$1:$1048576,$A119,CU$1))","v":""},{"$f":"IF($A119=\"N/A\",Ref!$B$36,INDEX(Ranks!$1:$1048576,$A119,CV$1))","v":""},{"$f":"IF($A119=\"N/A\",Ref!$B$36,INDEX(Ranks!$1:$1048576,$A119,CW$1))","v":""},{"$f":"IF($A119=\"N/A\",Ref!$B$36,INDEX(Ranks!$1:$1048576,$A119,CX$1))","v":""},{"$f":"IF($A119=\"N/A\",Ref!$B$36,INDEX(Ranks!$1:$1048576,$A119,CY$1))","v":""},{"$f":"IF($A119=\"N/A\",Ref!$B$36,INDEX(Ranks!$1:$1048576,$A119,CZ$1))","v":""},{"$f":"IF($A119=\"N/A\",Ref!$B$36,INDEX(Ranks!$1:$1048576,$A119,DA$1))","v":""},{"$f":"IF($A119=\"N/A\",Ref!$B$36,INDEX(Ranks!$1:$1048576,$A119,DB$1))","v":""},{"$f":"IF($A119=\"N/A\",Ref!$B$36,INDEX(Ranks!$1:$1048576,$A119,DC$1))","v":""},{"$f":"IF($A119=\"N/A\",Ref!$B$36,INDEX(Ranks!$1:$1048576,$A119,DD$1))","v":""},{"$f":"IF($A119=\"N/A\",Ref!$B$36,INDEX(Ranks!$1:$1048576,$A119,DE$1))","v":""},{"$f":"IF($A119=\"N/A\",Ref!$B$36,INDEX(Ranks!$1:$1048576,$A119,DF$1))","v":""},{"$f":"IF($A119=\"N/A\",Ref!$B$36,INDEX(Ranks!$1:$1048576,$A119,DG$1))","v":""},{"$f":"IF($A119=\"N/A\",Ref!$B$36,INDEX(Ranks!$1:$1048576,$A119,DH$1))","v":""},{"$f":"IF($A119=\"N/A\",Ref!$B$36,INDEX(Ranks!$1:$1048576,$A119,DI$1))","v":""},{"$f":"IF($A119=\"N/A\",Ref!$B$36,INDEX(Ranks!$1:$1048576,$A119,DJ$1))","v":""},{"$f":"IF($A119=\"N/A\",Ref!$B$36,INDEX(Ranks!$1:$1048576,$A119,DK$1))","v":""},{"$f":"IF($A119=\"N/A\",Ref!$B$36,INDEX(Ranks!$1:$1048576,$A119,DL$1))","v":""},{"$f":"IF($A119=\"N/A\",Ref!$B$36,INDEX(Ranks!$1:$1048576,$A119,DM$1))","v":""},{"$f":"IF($A119=\"N/A\",Ref!$B$36,INDEX(Ranks!$1:$1048576,$A119,DN$1))","v":""},{"$f":"IF($A119=\"N/A\",Ref!$B$36,INDEX(Ranks!$1:$1048576,$A119,DO$1))","v":""},{"$f":"IF($A119=\"N/A\",Ref!$B$36,INDEX(Ranks!$1:$1048576,$A119,DP$1))","v":""},{"$f":"IF($A119=\"N/A\",Ref!$B$36,INDEX(Ranks!$1:$1048576,$A119,DQ$1))","v":""},{"$f":"IF($A119=\"N/A\",Ref!$B$36,INDEX(Ranks!$1:$1048576,$A119,DR$1))","v":""},{"$f":"IF($A119=\"N/A\",Ref!$B$36,INDEX(Ranks!$1:$1048576,$A119,DS$1))","v":""},{"$f":"IF($A119=\"N/A\",Ref!$B$36,INDEX(Ranks!$1:$1048576,$A119,DT$1))","v":""},{"$f":"IF($A119=\"N/A\",Ref!$B$36,INDEX(Ranks!$1:$1048576,$A119,DU$1))","v":""},{"$f":"IF($A119=\"N/A\",Ref!$B$36,INDEX(Ranks!$1:$1048576,$A119,DV$1))","v":""},{"$f":"IF($A119=\"N/A\",Ref!$B$36,INDEX(Ranks!$1:$1048576,$A119,DW$1))","v":""},{"$f":"IF($A119=\"N/A\",Ref!$B$36,INDEX(Ranks!$1:$1048576,$A119,DX$1))","v":""},{"$f":"IF($A119=\"N/A\",Ref!$B$36,INDEX(Ranks!$1:$1048576,$A119,DY$1))","v":""},{"$f":"IF($A119=\"N/A\",Ref!$B$36,INDEX(Ranks!$1:$1048576,$A119,DZ$1))","v":""},{"$f":"IF($A119=\"N/A\",Ref!$B$36,INDEX(Ranks!$1:$1048576,$A119,EA$1))","v":""},{"$f":"IF($A119=\"N/A\",Ref!$B$36,INDEX(Ranks!$1:$1048576,$A119,EB$1))","v":""}]
[{"$f":"IFERROR(MATCH('Portfolio Page'!L120,Ranks!L:L,0),\"N/A\")","v":"N/A"},null,{"$f":"IF($A120=\"N/A\",\"\",INDEX(Ranks!$1:$1048576,$A120,C$1))","v":""},{"$f":"IF($A120=\"N/A\",Ref!$B$36,INDEX(Ranks!$1:$1048576,$A120,D$1))","v":""},{"$f":"IF($A120=\"N/A\",Ref!$B$36,INDEX(Ranks!$1:$1048576,$A120,E$1))","v":""},{"$f":"IF($A120=\"N/A\",\"\",INDEX(Ranks!$1:$1048576,$A120,F$1))","v":""},{"$f":"IF($A120=\"N/A\",\"\",INDEX(Ranks!$1:$1048576,$A120,G$1))","v":""},{"$f":"IF($A120=\"N/A\",\"\",INDEX(Ranks!$1:$1048576,$A120,H$1))","v":""},{"$f":"IF($A120=\"N/A\",\"\",INDEX(Ranks!$1:$1048576,$A120,I$1))","v":""},{"$f":"IF($A120=\"N/A\",\"\",INDEX(Ranks!$1:$1048576,$A120,J$1))","v":""},{"$f":"IF($A120=\"N/A\",\"\",INDEX(Ranks!$1:$1048576,$A120,K$1))","v":""},null,{"$f":"IF($A120=\"N/A\",Ref!$B$36,INDEX(Ranks!$1:$1048576,$A120,M$1))","v":""},{"$f":"IF($A120=\"N/A\",Ref!$B$36,INDEX(Ranks!$1:$1048576,$A120,N$1))","v":""},{"$f":"IF($A120=\"N/A\",Ref!$B$36,INDEX(Ranks!$1:$1048576,$A120,O$1))","v":""},{"$f":"IF($A120=\"N/A\",Ref!$B$36,INDEX(Ranks!$1:$1048576,$A120,P$1))","v":""},{"$f":"IF($A120=\"N/A\",Ref!$B$36,INDEX(Ranks!$1:$1048576,$A120,Q$1))","v":""},{"$f":"IF($A120=\"N/A\",Ref!$B$36,INDEX(Ranks!$1:$1048576,$A120,R$1))","v":""},{"$f":"IF($A120=\"N/A\",Ref!$B$36,INDEX(Ranks!$1:$1048576,$A120,S$1))","v":""},{"$f":"IF($A120=\"N/A\",Ref!$B$36,INDEX(Ranks!$1:$1048576,$A120,T$1))","v":""},{"$f":"IF($A120=\"N/A\",Ref!$B$36,INDEX(Ranks!$1:$1048576,$A120,U$1))","v":""},{"$f":"IF($A120=\"N/A\",Ref!$B$36,INDEX(Ranks!$1:$1048576,$A120,V$1))","v":""},{"$f":"IF($A120=\"N/A\",Ref!$B$36,INDEX(Ranks!$1:$1048576,$A120,W$1))","v":""},{"$f":"IF($A120=\"N/A\",Ref!$B$36,INDEX(Ranks!$1:$1048576,$A120,X$1))","v":""},{"$f":"IF($A120=\"N/A\",Ref!$B$36,INDEX(Ranks!$1:$1048576,$A120,Y$1))","v":""},{"$f":"IF($A120=\"N/A\",Ref!$B$36,INDEX(Ranks!$1:$1048576,$A120,Z$1))","v":""},{"$f":"IF($A120=\"N/A\",Ref!$B$36,INDEX(Ranks!$1:$1048576,$A120,AA$1))","v":""},{"$f":"IF($A120=\"N/A\",Ref!$B$36,INDEX(Ranks!$1:$1048576,$A120,AB$1))","v":""},{"$f":"IF($A120=\"N/A\",Ref!$B$36,INDEX(Ranks!$1:$1048576,$A120,AC$1))","v":""},{"$f":"IF($A120=\"N/A\",Ref!$B$36,INDEX(Ranks!$1:$1048576,$A120,AD$1))","v":""},{"$f":"IF($A120=\"N/A\",Ref!$B$36,INDEX(Ranks!$1:$1048576,$A120,AE$1))","v":""},{"$f":"IF($A120=\"N/A\",Ref!$B$36,INDEX(Ranks!$1:$1048576,$A120,AF$1))","v":""},{"$f":"IF($A120=\"N/A\",Ref!$B$36,INDEX(Ranks!$1:$1048576,$A120,AG$1))","v":""},{"$f":"IF($A120=\"N/A\",Ref!$B$36,INDEX(Ranks!$1:$1048576,$A120,AH$1))","v":""},{"$f":"IF($A120=\"N/A\",Ref!$B$36,INDEX(Ranks!$1:$1048576,$A120,AI$1))","v":""},{"$f":"IF($A120=\"N/A\",Ref!$B$36,INDEX(Ranks!$1:$1048576,$A120,AJ$1))","v":""},{"$f":"IF($A120=\"N/A\",Ref!$B$36,INDEX(Ranks!$1:$1048576,$A120,AK$1))","v":""},{"$f":"IF($A120=\"N/A\",Ref!$B$36,INDEX(Ranks!$1:$1048576,$A120,AL$1))","v":""},{"$f":"IF($A120=\"N/A\",Ref!$B$36,INDEX(Ranks!$1:$1048576,$A120,AM$1))","v":""},{"$f":"IF($A120=\"N/A\",Ref!$B$36,INDEX(Ranks!$1:$1048576,$A120,AN$1))","v":""},{"$f":"IF($A120=\"N/A\",Ref!$B$36,INDEX(Ranks!$1:$1048576,$A120,AO$1))","v":""},{"$f":"IF($A120=\"N/A\",Ref!$B$36,INDEX(Ranks!$1:$1048576,$A120,AP$1))","v":""},{"$f":"IF($A120=\"N/A\",Ref!$B$36,INDEX(Ranks!$1:$1048576,$A120,AQ$1))","v":""},{"$f":"IF($A120=\"N/A\",Ref!$B$36,INDEX(Ranks!$1:$1048576,$A120,AR$1))","v":""},{"$f":"IF($A120=\"N/A\",Ref!$B$36,INDEX(Ranks!$1:$1048576,$A120,AS$1))","v":""},{"$f":"IF($A120=\"N/A\",Ref!$B$36,INDEX(Ranks!$1:$1048576,$A120,AT$1))","v":""},{"$f":"IF($A120=\"N/A\",Ref!$B$36,INDEX(Ranks!$1:$1048576,$A120,AU$1))","v":""},{"$f":"IF($A120=\"N/A\",Ref!$B$36,INDEX(Ranks!$1:$1048576,$A120,AV$1))","v":""},{"$f":"IF($A120=\"N/A\",Ref!$B$36,INDEX(Ranks!$1:$1048576,$A120,AW$1))","v":""},{"$f":"IF($A120=\"N/A\",Ref!$B$36,INDEX(Ranks!$1:$1048576,$A120,AX$1))","v":""},{"$f":"IF($A120=\"N/A\",Ref!$B$36,INDEX(Ranks!$1:$1048576,$A120,AY$1))","v":""},{"$f":"IF($A120=\"N/A\",Ref!$B$36,INDEX(Ranks!$1:$1048576,$A120,AZ$1))","v":""},{"$f":"IF($A120=\"N/A\",Ref!$B$36,INDEX(Ranks!$1:$1048576,$A120,BA$1))","v":""},{"$f":"IF($A120=\"N/A\",Ref!$B$36,INDEX(Ranks!$1:$1048576,$A120,BB$1))","v":""},{"$f":"IF($A120=\"N/A\",Ref!$B$36,INDEX(Ranks!$1:$1048576,$A120,BC$1))","v":""},{"$f":"IF($A120=\"N/A\",Ref!$B$36,INDEX(Ranks!$1:$1048576,$A120,BD$1))","v":""},{"$f":"IF($A120=\"N/A\",Ref!$B$36,INDEX(Ranks!$1:$1048576,$A120,BE$1))","v":""},{"$f":"IF($A120=\"N/A\",Ref!$B$36,INDEX(Ranks!$1:$1048576,$A120,BF$1))","v":""},{"$f":"IF($A120=\"N/A\",Ref!$B$36,INDEX(Ranks!$1:$1048576,$A120,BG$1))","v":""},{"$f":"IF($A120=\"N/A\",Ref!$B$36,INDEX(Ranks!$1:$1048576,$A120,BH$1))","v":""},{"$f":"IF($A120=\"N/A\",Ref!$B$36,INDEX(Ranks!$1:$1048576,$A120,BI$1))","v":""},{"$f":"IF($A120=\"N/A\",Ref!$B$36,INDEX(Ranks!$1:$1048576,$A120,BJ$1))","v":""},{"$f":"IF($A120=\"N/A\",Ref!$B$36,INDEX(Ranks!$1:$1048576,$A120,BK$1))","v":""},{"$f":"IF($A120=\"N/A\",Ref!$B$36,INDEX(Ranks!$1:$1048576,$A120,BL$1))","v":""},{"$f":"IF($A120=\"N/A\",Ref!$B$36,INDEX(Ranks!$1:$1048576,$A120,BM$1))","v":""},{"$f":"IF($A120=\"N/A\",Ref!$B$36,INDEX(Ranks!$1:$1048576,$A120,BN$1))","v":""},{"$f":"IF($A120=\"N/A\",Ref!$B$36,INDEX(Ranks!$1:$1048576,$A120,BO$1))","v":""},{"$f":"IF($A120=\"N/A\",Ref!$B$36,INDEX(Ranks!$1:$1048576,$A120,BP$1))","v":""},{"$f":"IF($A120=\"N/A\",Ref!$B$36,INDEX(Ranks!$1:$1048576,$A120,BQ$1))","v":""},{"$f":"IF($A120=\"N/A\",Ref!$B$36,INDEX(Ranks!$1:$1048576,$A120,BR$1))","v":""},{"$f":"IF($A120=\"N/A\",Ref!$B$36,INDEX(Ranks!$1:$1048576,$A120,BS$1))","v":""},{"$f":"IF($A120=\"N/A\",Ref!$B$36,INDEX(Ranks!$1:$1048576,$A120,BT$1))","v":""},{"$f":"IF($A120=\"N/A\",Ref!$B$36,INDEX(Ranks!$1:$1048576,$A120,BU$1))","v":""},{"$f":"IF($A120=\"N/A\",Ref!$B$36,INDEX(Ranks!$1:$1048576,$A120,BV$1))","v":""},{"$f":"IF($A120=\"N/A\",Ref!$B$36,INDEX(Ranks!$1:$1048576,$A120,BW$1))","v":""},{"$f":"IF($A120=\"N/A\",Ref!$B$36,INDEX(Ranks!$1:$1048576,$A120,BX$1))","v":""},{"$f":"IF($A120=\"N/A\",Ref!$B$36,INDEX(Ranks!$1:$1048576,$A120,BY$1))","v":""},{"$f":"IF($A120=\"N/A\",Ref!$B$36,INDEX(Ranks!$1:$1048576,$A120,BZ$1))","v":""},{"$f":"IF($A120=\"N/A\",Ref!$B$36,INDEX(Ranks!$1:$1048576,$A120,CA$1))","v":""},{"$f":"IF($A120=\"N/A\",Ref!$B$36,INDEX(Ranks!$1:$1048576,$A120,CB$1))","v":""},{"$f":"IF($A120=\"N/A\",Ref!$B$36,INDEX(Ranks!$1:$1048576,$A120,CC$1))","v":""},{"$f":"IF($A120=\"N/A\",Ref!$B$36,INDEX(Ranks!$1:$1048576,$A120,CD$1))","v":""},{"$f":"IF($A120=\"N/A\",Ref!$B$36,INDEX(Ranks!$1:$1048576,$A120,CE$1))","v":""},{"$f":"IF($A120=\"N/A\",Ref!$B$36,INDEX(Ranks!$1:$1048576,$A120,CF$1))","v":""},{"$f":"IF($A120=\"N/A\",Ref!$B$36,INDEX(Ranks!$1:$1048576,$A120,CG$1))","v":""},{"$f":"IF($A120=\"N/A\",Ref!$B$36,INDEX(Ranks!$1:$1048576,$A120,CH$1))","v":""},{"$f":"IF($A120=\"N/A\",Ref!$B$36,INDEX(Ranks!$1:$1048576,$A120,CI$1))","v":""},{"$f":"IF($A120=\"N/A\",Ref!$B$36,INDEX(Ranks!$1:$1048576,$A120,CJ$1))","v":""},{"$f":"IF($A120=\"N/A\",Ref!$B$36,INDEX(Ranks!$1:$1048576,$A120,CK$1))","v":""},{"$f":"IF($A120=\"N/A\",Ref!$B$36,INDEX(Ranks!$1:$1048576,$A120,CL$1))","v":""},{"$f":"IF($A120=\"N/A\",Ref!$B$36,INDEX(Ranks!$1:$1048576,$A120,CM$1))","v":""},{"$f":"IF($A120=\"N/A\",Ref!$B$36,INDEX(Ranks!$1:$1048576,$A120,CN$1))","v":""},{"$f":"IF($A120=\"N/A\",Ref!$B$36,INDEX(Ranks!$1:$1048576,$A120,CO$1))","v":""},{"$f":"IF($A120=\"N/A\",Ref!$B$36,INDEX(Ranks!$1:$1048576,$A120,CP$1))","v":""},{"$f":"IF($A120=\"N/A\",Ref!$B$36,INDEX(Ranks!$1:$1048576,$A120,CQ$1))","v":""},{"$f":"IF($A120=\"N/A\",Ref!$B$36,INDEX(Ranks!$1:$1048576,$A120,CR$1))","v":""},{"$f":"IF($A120=\"N/A\",Ref!$B$36,INDEX(Ranks!$1:$1048576,$A120,CS$1))","v":""},{"$f":"IF($A120=\"N/A\",Ref!$B$36,INDEX(Ranks!$1:$1048576,$A120,CT$1))","v":""},{"$f":"IF($A120=\"N/A\",Ref!$B$36,INDEX(Ranks!$1:$1048576,$A120,CU$1))","v":""},{"$f":"IF($A120=\"N/A\",Ref!$B$36,INDEX(Ranks!$1:$1048576,$A120,CV$1))","v":""},{"$f":"IF($A120=\"N/A\",Ref!$B$36,INDEX(Ranks!$1:$1048576,$A120,CW$1))","v":""},{"$f":"IF($A120=\"N/A\",Ref!$B$36,INDEX(Ranks!$1:$1048576,$A120,CX$1))","v":""},{"$f":"IF($A120=\"N/A\",Ref!$B$36,INDEX(Ranks!$1:$1048576,$A120,CY$1))","v":""},{"$f":"IF($A120=\"N/A\",Ref!$B$36,INDEX(Ranks!$1:$1048576,$A120,CZ$1))","v":""},{"$f":"IF($A120=\"N/A\",Ref!$B$36,INDEX(Ranks!$1:$1048576,$A120,DA$1))","v":""},{"$f":"IF($A120=\"N/A\",Ref!$B$36,INDEX(Ranks!$1:$1048576,$A120,DB$1))","v":""},{"$f":"IF($A120=\"N/A\",Ref!$B$36,INDEX(Ranks!$1:$1048576,$A120,DC$1))","v":""},{"$f":"IF($A120=\"N/A\",Ref!$B$36,INDEX(Ranks!$1:$1048576,$A120,DD$1))","v":""},{"$f":"IF($A120=\"N/A\",Ref!$B$36,INDEX(Ranks!$1:$1048576,$A120,DE$1))","v":""},{"$f":"IF($A120=\"N/A\",Ref!$B$36,INDEX(Ranks!$1:$1048576,$A120,DF$1))","v":""},{"$f":"IF($A120=\"N/A\",Ref!$B$36,INDEX(Ranks!$1:$1048576,$A120,DG$1))","v":""},{"$f":"IF($A120=\"N/A\",Ref!$B$36,INDEX(Ranks!$1:$1048576,$A120,DH$1))","v":""},{"$f":"IF($A120=\"N/A\",Ref!$B$36,INDEX(Ranks!$1:$1048576,$A120,DI$1))","v":""},{"$f":"IF($A120=\"N/A\",Ref!$B$36,INDEX(Ranks!$1:$1048576,$A120,DJ$1))","v":""},{"$f":"IF($A120=\"N/A\",Ref!$B$36,INDEX(Ranks!$1:$1048576,$A120,DK$1))","v":""},{"$f":"IF($A120=\"N/A\",Ref!$B$36,INDEX(Ranks!$1:$1048576,$A120,DL$1))","v":""},{"$f":"IF($A120=\"N/A\",Ref!$B$36,INDEX(Ranks!$1:$1048576,$A120,DM$1))","v":""},{"$f":"IF($A120=\"N/A\",Ref!$B$36,INDEX(Ranks!$1:$1048576,$A120,DN$1))","v":""},{"$f":"IF($A120=\"N/A\",Ref!$B$36,INDEX(Ranks!$1:$1048576,$A120,DO$1))","v":""},{"$f":"IF($A120=\"N/A\",Ref!$B$36,INDEX(Ranks!$1:$1048576,$A120,DP$1))","v":""},{"$f":"IF($A120=\"N/A\",Ref!$B$36,INDEX(Ranks!$1:$1048576,$A120,DQ$1))","v":""},{"$f":"IF($A120=\"N/A\",Ref!$B$36,INDEX(Ranks!$1:$1048576,$A120,DR$1))","v":""},{"$f":"IF($A120=\"N/A\",Ref!$B$36,INDEX(Ranks!$1:$1048576,$A120,DS$1))","v":""},{"$f":"IF($A120=\"N/A\",Ref!$B$36,INDEX(Ranks!$1:$1048576,$A120,DT$1))","v":""},{"$f":"IF($A120=\"N/A\",Ref!$B$36,INDEX(Ranks!$1:$1048576,$A120,DU$1))","v":""},{"$f":"IF($A120=\"N/A\",Ref!$B$36,INDEX(Ranks!$1:$1048576,$A120,DV$1))","v":""},{"$f":"IF($A120=\"N/A\",Ref!$B$36,INDEX(Ranks!$1:$1048576,$A120,DW$1))","v":""},{"$f":"IF($A120=\"N/A\",Ref!$B$36,INDEX(Ranks!$1:$1048576,$A120,DX$1))","v":""},{"$f":"IF($A120=\"N/A\",Ref!$B$36,INDEX(Ranks!$1:$1048576,$A120,DY$1))","v":""},{"$f":"IF($A120=\"N/A\",Ref!$B$36,INDEX(Ranks!$1:$1048576,$A120,DZ$1))","v":""},{"$f":"IF($A120=\"N/A\",Ref!$B$36,INDEX(Ranks!$1:$1048576,$A120,EA$1))","v":""},{"$f":"IF($A120=\"N/A\",Ref!$B$36,INDEX(Ranks!$1:$1048576,$A120,EB$1))","v":""}]
[{"$f":"IFERROR(MATCH('Portfolio Page'!L121,Ranks!L:L,0),\"N/A\")","v":"N/A"},null,{"$f":"IF($A121=\"N/A\",\"\",INDEX(Ranks!$1:$1048576,$A121,C$1))","v":""},{"$f":"IF($A121=\"N/A\",Ref!$B$36,INDEX(Ranks!$1:$1048576,$A121,D$1))","v":""},{"$f":"IF($A121=\"N/A\",Ref!$B$36,INDEX(Ranks!$1:$1048576,$A121,E$1))","v":""},{"$f":"IF($A121=\"N/A\",\"\",INDEX(Ranks!$1:$1048576,$A121,F$1))","v":""},{"$f":"IF($A121=\"N/A\",\"\",INDEX(Ranks!$1:$1048576,$A121,G$1))","v":""},{"$f":"IF($A121=\"N/A\",\"\",INDEX(Ranks!$1:$1048576,$A121,H$1))","v":""},{"$f":"IF($A121=\"N/A\",\"\",INDEX(Ranks!$1:$1048576,$A121,I$1))","v":""},{"$f":"IF($A121=\"N/A\",\"\",INDEX(Ranks!$1:$1048576,$A121,J$1))","v":""},{"$f":"IF($A121=\"N/A\",\"\",INDEX(Ranks!$1:$1048576,$A121,K$1))","v":""},null,{"$f":"IF($A121=\"N/A\",Ref!$B$36,INDEX(Ranks!$1:$1048576,$A121,M$1))","v":""},{"$f":"IF($A121=\"N/A\",Ref!$B$36,INDEX(Ranks!$1:$1048576,$A121,N$1))","v":""},{"$f":"IF($A121=\"N/A\",Ref!$B$36,INDEX(Ranks!$1:$1048576,$A121,O$1))","v":""},{"$f":"IF($A121=\"N/A\",Ref!$B$36,INDEX(Ranks!$1:$1048576,$A121,P$1))","v":""},{"$f":"IF($A121=\"N/A\",Ref!$B$36,INDEX(Ranks!$1:$1048576,$A121,Q$1))","v":""},{"$f":"IF($A121=\"N/A\",Ref!$B$36,INDEX(Ranks!$1:$1048576,$A121,R$1))","v":""},{"$f":"IF($A121=\"N/A\",Ref!$B$36,INDEX(Ranks!$1:$1048576,$A121,S$1))","v":""},{"$f":"IF($A121=\"N/A\",Ref!$B$36,INDEX(Ranks!$1:$1048576,$A121,T$1))","v":""},{"$f":"IF($A121=\"N/A\",Ref!$B$36,INDEX(Ranks!$1:$1048576,$A121,U$1))","v":""},{"$f":"IF($A121=\"N/A\",Ref!$B$36,INDEX(Ranks!$1:$1048576,$A121,V$1))","v":""},{"$f":"IF($A121=\"N/A\",Ref!$B$36,INDEX(Ranks!$1:$1048576,$A121,W$1))","v":""},{"$f":"IF($A121=\"N/A\",Ref!$B$36,INDEX(Ranks!$1:$1048576,$A121,X$1))","v":""},{"$f":"IF($A121=\"N/A\",Ref!$B$36,INDEX(Ranks!$1:$1048576,$A121,Y$1))","v":""},{"$f":"IF($A121=\"N/A\",Ref!$B$36,INDEX(Ranks!$1:$1048576,$A121,Z$1))","v":""},{"$f":"IF($A121=\"N/A\",Ref!$B$36,INDEX(Ranks!$1:$1048576,$A121,AA$1))","v":""},{"$f":"IF($A121=\"N/A\",Ref!$B$36,INDEX(Ranks!$1:$1048576,$A121,AB$1))","v":""},{"$f":"IF($A121=\"N/A\",Ref!$B$36,INDEX(Ranks!$1:$1048576,$A121,AC$1))","v":""},{"$f":"IF($A121=\"N/A\",Ref!$B$36,INDEX(Ranks!$1:$1048576,$A121,AD$1))","v":""},{"$f":"IF($A121=\"N/A\",Ref!$B$36,INDEX(Ranks!$1:$1048576,$A121,AE$1))","v":""},{"$f":"IF($A121=\"N/A\",Ref!$B$36,INDEX(Ranks!$1:$1048576,$A121,AF$1))","v":""},{"$f":"IF($A121=\"N/A\",Ref!$B$36,INDEX(Ranks!$1:$1048576,$A121,AG$1))","v":""},{"$f":"IF($A121=\"N/A\",Ref!$B$36,INDEX(Ranks!$1:$1048576,$A121,AH$1))","v":""},{"$f":"IF($A121=\"N/A\",Ref!$B$36,INDEX(Ranks!$1:$1048576,$A121,AI$1))","v":""},{"$f":"IF($A121=\"N/A\",Ref!$B$36,INDEX(Ranks!$1:$1048576,$A121,AJ$1))","v":""},{"$f":"IF($A121=\"N/A\",Ref!$B$36,INDEX(Ranks!$1:$1048576,$A121,AK$1))","v":""},{"$f":"IF($A121=\"N/A\",Ref!$B$36,INDEX(Ranks!$1:$1048576,$A121,AL$1))","v":""},{"$f":"IF($A121=\"N/A\",Ref!$B$36,INDEX(Ranks!$1:$1048576,$A121,AM$1))","v":""},{"$f":"IF($A121=\"N/A\",Ref!$B$36,INDEX(Ranks!$1:$1048576,$A121,AN$1))","v":""},{"$f":"IF($A121=\"N/A\",Ref!$B$36,INDEX(Ranks!$1:$1048576,$A121,AO$1))","v":""},{"$f":"IF($A121=\"N/A\",Ref!$B$36,INDEX(Ranks!$1:$1048576,$A121,AP$1))","v":""},{"$f":"IF($A121=\"N/A\",Ref!$B$36,INDEX(Ranks!$1:$1048576,$A121,AQ$1))","v":""},{"$f":"IF($A121=\"N/A\",Ref!$B$36,INDEX(Ranks!$1:$1048576,$A121,AR$1))","v":""},{"$f":"IF($A121=\"N/A\",Ref!$B$36,INDEX(Ranks!$1:$1048576,$A121,AS$1))","v":""},{"$f":"IF($A121=\"N/A\",Ref!$B$36,INDEX(Ranks!$1:$1048576,$A121,AT$1))","v":""},{"$f":"IF($A121=\"N/A\",Ref!$B$36,INDEX(Ranks!$1:$1048576,$A121,AU$1))","v":""},{"$f":"IF($A121=\"N/A\",Ref!$B$36,INDEX(Ranks!$1:$1048576,$A121,AV$1))","v":""},{"$f":"IF($A121=\"N/A\",Ref!$B$36,INDEX(Ranks!$1:$1048576,$A121,AW$1))","v":""},{"$f":"IF($A121=\"N/A\",Ref!$B$36,INDEX(Ranks!$1:$1048576,$A121,AX$1))","v":""},{"$f":"IF($A121=\"N/A\",Ref!$B$36,INDEX(Ranks!$1:$1048576,$A121,AY$1))","v":""},{"$f":"IF($A121=\"N/A\",Ref!$B$36,INDEX(Ranks!$1:$1048576,$A121,AZ$1))","v":""},{"$f":"IF($A121=\"N/A\",Ref!$B$36,INDEX(Ranks!$1:$1048576,$A121,BA$1))","v":""},{"$f":"IF($A121=\"N/A\",Ref!$B$36,INDEX(Ranks!$1:$1048576,$A121,BB$1))","v":""},{"$f":"IF($A121=\"N/A\",Ref!$B$36,INDEX(Ranks!$1:$1048576,$A121,BC$1))","v":""},{"$f":"IF($A121=\"N/A\",Ref!$B$36,INDEX(Ranks!$1:$1048576,$A121,BD$1))","v":""},{"$f":"IF($A121=\"N/A\",Ref!$B$36,INDEX(Ranks!$1:$1048576,$A121,BE$1))","v":""},{"$f":"IF($A121=\"N/A\",Ref!$B$36,INDEX(Ranks!$1:$1048576,$A121,BF$1))","v":""},{"$f":"IF($A121=\"N/A\",Ref!$B$36,INDEX(Ranks!$1:$1048576,$A121,BG$1))","v":""},{"$f":"IF($A121=\"N/A\",Ref!$B$36,INDEX(Ranks!$1:$1048576,$A121,BH$1))","v":""},{"$f":"IF($A121=\"N/A\",Ref!$B$36,INDEX(Ranks!$1:$1048576,$A121,BI$1))","v":""},{"$f":"IF($A121=\"N/A\",Ref!$B$36,INDEX(Ranks!$1:$1048576,$A121,BJ$1))","v":""},{"$f":"IF($A121=\"N/A\",Ref!$B$36,INDEX(Ranks!$1:$1048576,$A121,BK$1))","v":""},{"$f":"IF($A121=\"N/A\",Ref!$B$36,INDEX(Ranks!$1:$1048576,$A121,BL$1))","v":""},{"$f":"IF($A121=\"N/A\",Ref!$B$36,INDEX(Ranks!$1:$1048576,$A121,BM$1))","v":""},{"$f":"IF($A121=\"N/A\",Ref!$B$36,INDEX(Ranks!$1:$1048576,$A121,BN$1))","v":""},{"$f":"IF($A121=\"N/A\",Ref!$B$36,INDEX(Ranks!$1:$1048576,$A121,BO$1))","v":""},{"$f":"IF($A121=\"N/A\",Ref!$B$36,INDEX(Ranks!$1:$1048576,$A121,BP$1))","v":""},{"$f":"IF($A121=\"N/A\",Ref!$B$36,INDEX(Ranks!$1:$1048576,$A121,BQ$1))","v":""},{"$f":"IF($A121=\"N/A\",Ref!$B$36,INDEX(Ranks!$1:$1048576,$A121,BR$1))","v":""},{"$f":"IF($A121=\"N/A\",Ref!$B$36,INDEX(Ranks!$1:$1048576,$A121,BS$1))","v":""},{"$f":"IF($A121=\"N/A\",Ref!$B$36,INDEX(Ranks!$1:$1048576,$A121,BT$1))","v":""},{"$f":"IF($A121=\"N/A\",Ref!$B$36,INDEX(Ranks!$1:$1048576,$A121,BU$1))","v":""},{"$f":"IF($A121=\"N/A\",Ref!$B$36,INDEX(Ranks!$1:$1048576,$A121,BV$1))","v":""},{"$f":"IF($A121=\"N/A\",Ref!$B$36,INDEX(Ranks!$1:$1048576,$A121,BW$1))","v":""},{"$f":"IF($A121=\"N/A\",Ref!$B$36,INDEX(Ranks!$1:$1048576,$A121,BX$1))","v":""},{"$f":"IF($A121=\"N/A\",Ref!$B$36,INDEX(Ranks!$1:$1048576,$A121,BY$1))","v":""},{"$f":"IF($A121=\"N/A\",Ref!$B$36,INDEX(Ranks!$1:$1048576,$A121,BZ$1))","v":""},{"$f":"IF($A121=\"N/A\",Ref!$B$36,INDEX(Ranks!$1:$1048576,$A121,CA$1))","v":""},{"$f":"IF($A121=\"N/A\",Ref!$B$36,INDEX(Ranks!$1:$1048576,$A121,CB$1))","v":""},{"$f":"IF($A121=\"N/A\",Ref!$B$36,INDEX(Ranks!$1:$1048576,$A121,CC$1))","v":""},{"$f":"IF($A121=\"N/A\",Ref!$B$36,INDEX(Ranks!$1:$1048576,$A121,CD$1))","v":""},{"$f":"IF($A121=\"N/A\",Ref!$B$36,INDEX(Ranks!$1:$1048576,$A121,CE$1))","v":""},{"$f":"IF($A121=\"N/A\",Ref!$B$36,INDEX(Ranks!$1:$1048576,$A121,CF$1))","v":""},{"$f":"IF($A121=\"N/A\",Ref!$B$36,INDEX(Ranks!$1:$1048576,$A121,CG$1))","v":""},{"$f":"IF($A121=\"N/A\",Ref!$B$36,INDEX(Ranks!$1:$1048576,$A121,CH$1))","v":""},{"$f":"IF($A121=\"N/A\",Ref!$B$36,INDEX(Ranks!$1:$1048576,$A121,CI$1))","v":""},{"$f":"IF($A121=\"N/A\",Ref!$B$36,INDEX(Ranks!$1:$1048576,$A121,CJ$1))","v":""},{"$f":"IF($A121=\"N/A\",Ref!$B$36,INDEX(Ranks!$1:$1048576,$A121,CK$1))","v":""},{"$f":"IF($A121=\"N/A\",Ref!$B$36,INDEX(Ranks!$1:$1048576,$A121,CL$1))","v":""},{"$f":"IF($A121=\"N/A\",Ref!$B$36,INDEX(Ranks!$1:$1048576,$A121,CM$1))","v":""},{"$f":"IF($A121=\"N/A\",Ref!$B$36,INDEX(Ranks!$1:$1048576,$A121,CN$1))","v":""},{"$f":"IF($A121=\"N/A\",Ref!$B$36,INDEX(Ranks!$1:$1048576,$A121,CO$1))","v":""},{"$f":"IF($A121=\"N/A\",Ref!$B$36,INDEX(Ranks!$1:$1048576,$A121,CP$1))","v":""},{"$f":"IF($A121=\"N/A\",Ref!$B$36,INDEX(Ranks!$1:$1048576,$A121,CQ$1))","v":""},{"$f":"IF($A121=\"N/A\",Ref!$B$36,INDEX(Ranks!$1:$1048576,$A121,CR$1))","v":""},{"$f":"IF($A121=\"N/A\",Ref!$B$36,INDEX(Ranks!$1:$1048576,$A121,CS$1))","v":""},{"$f":"IF($A121=\"N/A\",Ref!$B$36,INDEX(Ranks!$1:$1048576,$A121,CT$1))","v":""},{"$f":"IF($A121=\"N/A\",Ref!$B$36,INDEX(Ranks!$1:$1048576,$A121,CU$1))","v":""},{"$f":"IF($A121=\"N/A\",Ref!$B$36,INDEX(Ranks!$1:$1048576,$A121,CV$1))","v":""},{"$f":"IF($A121=\"N/A\",Ref!$B$36,INDEX(Ranks!$1:$1048576,$A121,CW$1))","v":""},{"$f":"IF($A121=\"N/A\",Ref!$B$36,INDEX(Ranks!$1:$1048576,$A121,CX$1))","v":""},{"$f":"IF($A121=\"N/A\",Ref!$B$36,INDEX(Ranks!$1:$1048576,$A121,CY$1))","v":""},{"$f":"IF($A121=\"N/A\",Ref!$B$36,INDEX(Ranks!$1:$1048576,$A121,CZ$1))","v":""},{"$f":"IF($A121=\"N/A\",Ref!$B$36,INDEX(Ranks!$1:$1048576,$A121,DA$1))","v":""},{"$f":"IF($A121=\"N/A\",Ref!$B$36,INDEX(Ranks!$1:$1048576,$A121,DB$1))","v":""},{"$f":"IF($A121=\"N/A\",Ref!$B$36,INDEX(Ranks!$1:$1048576,$A121,DC$1))","v":""},{"$f":"IF($A121=\"N/A\",Ref!$B$36,INDEX(Ranks!$1:$1048576,$A121,DD$1))","v":""},{"$f":"IF($A121=\"N/A\",Ref!$B$36,INDEX(Ranks!$1:$1048576,$A121,DE$1))","v":""},{"$f":"IF($A121=\"N/A\",Ref!$B$36,INDEX(Ranks!$1:$1048576,$A121,DF$1))","v":""},{"$f":"IF($A121=\"N/A\",Ref!$B$36,INDEX(Ranks!$1:$1048576,$A121,DG$1))","v":""},{"$f":"IF($A121=\"N/A\",Ref!$B$36,INDEX(Ranks!$1:$1048576,$A121,DH$1))","v":""},{"$f":"IF($A121=\"N/A\",Ref!$B$36,INDEX(Ranks!$1:$1048576,$A121,DI$1))","v":""},{"$f":"IF($A121=\"N/A\",Ref!$B$36,INDEX(Ranks!$1:$1048576,$A121,DJ$1))","v":""},{"$f":"IF($A121=\"N/A\",Ref!$B$36,INDEX(Ranks!$1:$1048576,$A121,DK$1))","v":""},{"$f":"IF($A121=\"N/A\",Ref!$B$36,INDEX(Ranks!$1:$1048576,$A121,DL$1))","v":""},{"$f":"IF($A121=\"N/A\",Ref!$B$36,INDEX(Ranks!$1:$1048576,$A121,DM$1))","v":""},{"$f":"IF($A121=\"N/A\",Ref!$B$36,INDEX(Ranks!$1:$1048576,$A121,DN$1))","v":""},{"$f":"IF($A121=\"N/A\",Ref!$B$36,INDEX(Ranks!$1:$1048576,$A121,DO$1))","v":""},{"$f":"IF($A121=\"N/A\",Ref!$B$36,INDEX(Ranks!$1:$1048576,$A121,DP$1))","v":""},{"$f":"IF($A121=\"N/A\",Ref!$B$36,INDEX(Ranks!$1:$1048576,$A121,DQ$1))","v":""},{"$f":"IF($A121=\"N/A\",Ref!$B$36,INDEX(Ranks!$1:$1048576,$A121,DR$1))","v":""},{"$f":"IF($A121=\"N/A\",Ref!$B$36,INDEX(Ranks!$1:$1048576,$A121,DS$1))","v":""},{"$f":"IF($A121=\"N/A\",Ref!$B$36,INDEX(Ranks!$1:$1048576,$A121,DT$1))","v":""},{"$f":"IF($A121=\"N/A\",Ref!$B$36,INDEX(Ranks!$1:$1048576,$A121,DU$1))","v":""},{"$f":"IF($A121=\"N/A\",Ref!$B$36,INDEX(Ranks!$1:$1048576,$A121,DV$1))","v":""},{"$f":"IF($A121=\"N/A\",Ref!$B$36,INDEX(Ranks!$1:$1048576,$A121,DW$1))","v":""},{"$f":"IF($A121=\"N/A\",Ref!$B$36,INDEX(Ranks!$1:$1048576,$A121,DX$1))","v":""},{"$f":"IF($A121=\"N/A\",Ref!$B$36,INDEX(Ranks!$1:$1048576,$A121,DY$1))","v":""},{"$f":"IF($A121=\"N/A\",Ref!$B$36,INDEX(Ranks!$1:$1048576,$A121,DZ$1))","v":""},{"$f":"IF($A121=\"N/A\",Ref!$B$36,INDEX(Ranks!$1:$1048576,$A121,EA$1))","v":""},{"$f":"IF($A121=\"N/A\",Ref!$B$36,INDEX(Ranks!$1:$1048576,$A121,EB$1))","v":""}]
[{"$f":"IFERROR(MATCH('Portfolio Page'!L122,Ranks!L:L,0),\"N/A\")","v":"N/A"},null,{"$f":"IF($A122=\"N/A\",\"\",INDEX(Ranks!$1:$1048576,$A122,C$1))","v":""},{"$f":"IF($A122=\"N/A\",Ref!$B$36,INDEX(Ranks!$1:$1048576,$A122,D$1))","v":""},{"$f":"IF($A122=\"N/A\",Ref!$B$36,INDEX(Ranks!$1:$1048576,$A122,E$1))","v":""},{"$f":"IF($A122=\"N/A\",\"\",INDEX(Ranks!$1:$1048576,$A122,F$1))","v":""},{"$f":"IF($A122=\"N/A\",\"\",INDEX(Ranks!$1:$1048576,$A122,G$1))","v":""},{"$f":"IF($A122=\"N/A\",\"\",INDEX(Ranks!$1:$1048576,$A122,H$1))","v":""},{"$f":"IF($A122=\"N/A\",\"\",INDEX(Ranks!$1:$1048576,$A122,I$1))","v":""},{"$f":"IF($A122=\"N/A\",\"\",INDEX(Ranks!$1:$1048576,$A122,J$1))","v":""},{"$f":"IF($A122=\"N/A\",\"\",INDEX(Ranks!$1:$1048576,$A122,K$1))","v":""},null,{"$f":"IF($A122=\"N/A\",Ref!$B$36,INDEX(Ranks!$1:$1048576,$A122,M$1))","v":""},{"$f":"IF($A122=\"N/A\",Ref!$B$36,INDEX(Ranks!$1:$1048576,$A122,N$1))","v":""},{"$f":"IF($A122=\"N/A\",Ref!$B$36,INDEX(Ranks!$1:$1048576,$A122,O$1))","v":""},{"$f":"IF($A122=\"N/A\",Ref!$B$36,INDEX(Ranks!$1:$1048576,$A122,P$1))","v":""},{"$f":"IF($A122=\"N/A\",Ref!$B$36,INDEX(Ranks!$1:$1048576,$A122,Q$1))","v":""},{"$f":"IF($A122=\"N/A\",Ref!$B$36,INDEX(Ranks!$1:$1048576,$A122,R$1))","v":""},{"$f":"IF($A122=\"N/A\",Ref!$B$36,INDEX(Ranks!$1:$1048576,$A122,S$1))","v":""},{"$f":"IF($A122=\"N/A\",Ref!$B$36,INDEX(Ranks!$1:$1048576,$A122,T$1))","v":""},{"$f":"IF($A122=\"N/A\",Ref!$B$36,INDEX(Ranks!$1:$1048576,$A122,U$1))","v":""},{"$f":"IF($A122=\"N/A\",Ref!$B$36,INDEX(Ranks!$1:$1048576,$A122,V$1))","v":""},{"$f":"IF($A122=\"N/A\",Ref!$B$36,INDEX(Ranks!$1:$1048576,$A122,W$1))","v":""},{"$f":"IF($A122=\"N/A\",Ref!$B$36,INDEX(Ranks!$1:$1048576,$A122,X$1))","v":""},{"$f":"IF($A122=\"N/A\",Ref!$B$36,INDEX(Ranks!$1:$1048576,$A122,Y$1))","v":""},{"$f":"IF($A122=\"N/A\",Ref!$B$36,INDEX(Ranks!$1:$1048576,$A122,Z$1))","v":""},{"$f":"IF($A122=\"N/A\",Ref!$B$36,INDEX(Ranks!$1:$1048576,$A122,AA$1))","v":""},{"$f":"IF($A122=\"N/A\",Ref!$B$36,INDEX(Ranks!$1:$1048576,$A122,AB$1))","v":""},{"$f":"IF($A122=\"N/A\",Ref!$B$36,INDEX(Ranks!$1:$1048576,$A122,AC$1))","v":""},{"$f":"IF($A122=\"N/A\",Ref!$B$36,INDEX(Ranks!$1:$1048576,$A122,AD$1))","v":""},{"$f":"IF($A122=\"N/A\",Ref!$B$36,INDEX(Ranks!$1:$1048576,$A122,AE$1))","v":""},{"$f":"IF($A122=\"N/A\",Ref!$B$36,INDEX(Ranks!$1:$1048576,$A122,AF$1))","v":""},{"$f":"IF($A122=\"N/A\",Ref!$B$36,INDEX(Ranks!$1:$1048576,$A122,AG$1))","v":""},{"$f":"IF($A122=\"N/A\",Ref!$B$36,INDEX(Ranks!$1:$1048576,$A122,AH$1))","v":""},{"$f":"IF($A122=\"N/A\",Ref!$B$36,INDEX(Ranks!$1:$1048576,$A122,AI$1))","v":""},{"$f":"IF($A122=\"N/A\",Ref!$B$36,INDEX(Ranks!$1:$1048576,$A122,AJ$1))","v":""},{"$f":"IF($A122=\"N/A\",Ref!$B$36,INDEX(Ranks!$1:$1048576,$A122,AK$1))","v":""},{"$f":"IF($A122=\"N/A\",Ref!$B$36,INDEX(Ranks!$1:$1048576,$A122,AL$1))","v":""},{"$f":"IF($A122=\"N/A\",Ref!$B$36,INDEX(Ranks!$1:$1048576,$A122,AM$1))","v":""},{"$f":"IF($A122=\"N/A\",Ref!$B$36,INDEX(Ranks!$1:$1048576,$A122,AN$1))","v":""},{"$f":"IF($A122=\"N/A\",Ref!$B$36,INDEX(Ranks!$1:$1048576,$A122,AO$1))","v":""},{"$f":"IF($A122=\"N/A\",Ref!$B$36,INDEX(Ranks!$1:$1048576,$A122,AP$1))","v":""},{"$f":"IF($A122=\"N/A\",Ref!$B$36,INDEX(Ranks!$1:$1048576,$A122,AQ$1))","v":""},{"$f":"IF($A122=\"N/A\",Ref!$B$36,INDEX(Ranks!$1:$1048576,$A122,AR$1))","v":""},{"$f":"IF($A122=\"N/A\",Ref!$B$36,INDEX(Ranks!$1:$1048576,$A122,AS$1))","v":""},{"$f":"IF($A122=\"N/A\",Ref!$B$36,INDEX(Ranks!$1:$1048576,$A122,AT$1))","v":""},{"$f":"IF($A122=\"N/A\",Ref!$B$36,INDEX(Ranks!$1:$1048576,$A122,AU$1))","v":""},{"$f":"IF($A122=\"N/A\",Ref!$B$36,INDEX(Ranks!$1:$1048576,$A122,AV$1))","v":""},{"$f":"IF($A122=\"N/A\",Ref!$B$36,INDEX(Ranks!$1:$1048576,$A122,AW$1))","v":""},{"$f":"IF($A122=\"N/A\",Ref!$B$36,INDEX(Ranks!$1:$1048576,$A122,AX$1))","v":""},{"$f":"IF($A122=\"N/A\",Ref!$B$36,INDEX(Ranks!$1:$1048576,$A122,AY$1))","v":""},{"$f":"IF($A122=\"N/A\",Ref!$B$36,INDEX(Ranks!$1:$1048576,$A122,AZ$1))","v":""},{"$f":"IF($A122=\"N/A\",Ref!$B$36,INDEX(Ranks!$1:$1048576,$A122,BA$1))","v":""},{"$f":"IF($A122=\"N/A\",Ref!$B$36,INDEX(Ranks!$1:$1048576,$A122,BB$1))","v":""},{"$f":"IF($A122=\"N/A\",Ref!$B$36,INDEX(Ranks!$1:$1048576,$A122,BC$1))","v":""},{"$f":"IF($A122=\"N/A\",Ref!$B$36,INDEX(Ranks!$1:$1048576,$A122,BD$1))","v":""},{"$f":"IF($A122=\"N/A\",Ref!$B$36,INDEX(Ranks!$1:$1048576,$A122,BE$1))","v":""},{"$f":"IF($A122=\"N/A\",Ref!$B$36,INDEX(Ranks!$1:$1048576,$A122,BF$1))","v":""},{"$f":"IF($A122=\"N/A\",Ref!$B$36,INDEX(Ranks!$1:$1048576,$A122,BG$1))","v":""},{"$f":"IF($A122=\"N/A\",Ref!$B$36,INDEX(Ranks!$1:$1048576,$A122,BH$1))","v":""},{"$f":"IF($A122=\"N/A\",Ref!$B$36,INDEX(Ranks!$1:$1048576,$A122,BI$1))","v":""},{"$f":"IF($A122=\"N/A\",Ref!$B$36,INDEX(Ranks!$1:$1048576,$A122,BJ$1))","v":""},{"$f":"IF($A122=\"N/A\",Ref!$B$36,INDEX(Ranks!$1:$1048576,$A122,BK$1))","v":""},{"$f":"IF($A122=\"N/A\",Ref!$B$36,INDEX(Ranks!$1:$1048576,$A122,BL$1))","v":""},{"$f":"IF($A122=\"N/A\",Ref!$B$36,INDEX(Ranks!$1:$1048576,$A122,BM$1))","v":""},{"$f":"IF($A122=\"N/A\",Ref!$B$36,INDEX(Ranks!$1:$1048576,$A122,BN$1))","v":""},{"$f":"IF($A122=\"N/A\",Ref!$B$36,INDEX(Ranks!$1:$1048576,$A122,BO$1))","v":""},{"$f":"IF($A122=\"N/A\",Ref!$B$36,INDEX(Ranks!$1:$1048576,$A122,BP$1))","v":""},{"$f":"IF($A122=\"N/A\",Ref!$B$36,INDEX(Ranks!$1:$1048576,$A122,BQ$1))","v":""},{"$f":"IF($A122=\"N/A\",Ref!$B$36,INDEX(Ranks!$1:$1048576,$A122,BR$1))","v":""},{"$f":"IF($A122=\"N/A\",Ref!$B$36,INDEX(Ranks!$1:$1048576,$A122,BS$1))","v":""},{"$f":"IF($A122=\"N/A\",Ref!$B$36,INDEX(Ranks!$1:$1048576,$A122,BT$1))","v":""},{"$f":"IF($A122=\"N/A\",Ref!$B$36,INDEX(Ranks!$1:$1048576,$A122,BU$1))","v":""},{"$f":"IF($A122=\"N/A\",Ref!$B$36,INDEX(Ranks!$1:$1048576,$A122,BV$1))","v":""},{"$f":"IF($A122=\"N/A\",Ref!$B$36,INDEX(Ranks!$1:$1048576,$A122,BW$1))","v":""},{"$f":"IF($A122=\"N/A\",Ref!$B$36,INDEX(Ranks!$1:$1048576,$A122,BX$1))","v":""},{"$f":"IF($A122=\"N/A\",Ref!$B$36,INDEX(Ranks!$1:$1048576,$A122,BY$1))","v":""},{"$f":"IF($A122=\"N/A\",Ref!$B$36,INDEX(Ranks!$1:$1048576,$A122,BZ$1))","v":""},{"$f":"IF($A122=\"N/A\",Ref!$B$36,INDEX(Ranks!$1:$1048576,$A122,CA$1))","v":""},{"$f":"IF($A122=\"N/A\",Ref!$B$36,INDEX(Ranks!$1:$1048576,$A122,CB$1))","v":""},{"$f":"IF($A122=\"N/A\",Ref!$B$36,INDEX(Ranks!$1:$1048576,$A122,CC$1))","v":""},{"$f":"IF($A122=\"N/A\",Ref!$B$36,INDEX(Ranks!$1:$1048576,$A122,CD$1))","v":""},{"$f":"IF($A122=\"N/A\",Ref!$B$36,INDEX(Ranks!$1:$1048576,$A122,CE$1))","v":""},{"$f":"IF($A122=\"N/A\",Ref!$B$36,INDEX(Ranks!$1:$1048576,$A122,CF$1))","v":""},{"$f":"IF($A122=\"N/A\",Ref!$B$36,INDEX(Ranks!$1:$1048576,$A122,CG$1))","v":""},{"$f":"IF($A122=\"N/A\",Ref!$B$36,INDEX(Ranks!$1:$1048576,$A122,CH$1))","v":""},{"$f":"IF($A122=\"N/A\",Ref!$B$36,INDEX(Ranks!$1:$1048576,$A122,CI$1))","v":""},{"$f":"IF($A122=\"N/A\",Ref!$B$36,INDEX(Ranks!$1:$1048576,$A122,CJ$1))","v":""},{"$f":"IF($A122=\"N/A\",Ref!$B$36,INDEX(Ranks!$1:$1048576,$A122,CK$1))","v":""},{"$f":"IF($A122=\"N/A\",Ref!$B$36,INDEX(Ranks!$1:$1048576,$A122,CL$1))","v":""},{"$f":"IF($A122=\"N/A\",Ref!$B$36,INDEX(Ranks!$1:$1048576,$A122,CM$1))","v":""},{"$f":"IF($A122=\"N/A\",Ref!$B$36,INDEX(Ranks!$1:$1048576,$A122,CN$1))","v":""},{"$f":"IF($A122=\"N/A\",Ref!$B$36,INDEX(Ranks!$1:$1048576,$A122,CO$1))","v":""},{"$f":"IF($A122=\"N/A\",Ref!$B$36,INDEX(Ranks!$1:$1048576,$A122,CP$1))","v":""},{"$f":"IF($A122=\"N/A\",Ref!$B$36,INDEX(Ranks!$1:$1048576,$A122,CQ$1))","v":""},{"$f":"IF($A122=\"N/A\",Ref!$B$36,INDEX(Ranks!$1:$1048576,$A122,CR$1))","v":""},{"$f":"IF($A122=\"N/A\",Ref!$B$36,INDEX(Ranks!$1:$1048576,$A122,CS$1))","v":""},{"$f":"IF($A122=\"N/A\",Ref!$B$36,INDEX(Ranks!$1:$1048576,$A122,CT$1))","v":""},{"$f":"IF($A122=\"N/A\",Ref!$B$36,INDEX(Ranks!$1:$1048576,$A122,CU$1))","v":""},{"$f":"IF($A122=\"N/A\",Ref!$B$36,INDEX(Ranks!$1:$1048576,$A122,CV$1))","v":""},{"$f":"IF($A122=\"N/A\",Ref!$B$36,INDEX(Ranks!$1:$1048576,$A122,CW$1))","v":""},{"$f":"IF($A122=\"N/A\",Ref!$B$36,INDEX(Ranks!$1:$1048576,$A122,CX$1))","v":""},{"$f":"IF($A122=\"N/A\",Ref!$B$36,INDEX(Ranks!$1:$1048576,$A122,CY$1))","v":""},{"$f":"IF($A122=\"N/A\",Ref!$B$36,INDEX(Ranks!$1:$1048576,$A122,CZ$1))","v":""},{"$f":"IF($A122=\"N/A\",Ref!$B$36,INDEX(Ranks!$1:$1048576,$A122,DA$1))","v":""},{"$f":"IF($A122=\"N/A\",Ref!$B$36,INDEX(Ranks!$1:$1048576,$A122,DB$1))","v":""},{"$f":"IF($A122=\"N/A\",Ref!$B$36,INDEX(Ranks!$1:$1048576,$A122,DC$1))","v":""},{"$f":"IF($A122=\"N/A\",Ref!$B$36,INDEX(Ranks!$1:$1048576,$A122,DD$1))","v":""},{"$f":"IF($A122=\"N/A\",Ref!$B$36,INDEX(Ranks!$1:$1048576,$A122,DE$1))","v":""},{"$f":"IF($A122=\"N/A\",Ref!$B$36,INDEX(Ranks!$1:$1048576,$A122,DF$1))","v":""},{"$f":"IF($A122=\"N/A\",Ref!$B$36,INDEX(Ranks!$1:$1048576,$A122,DG$1))","v":""},{"$f":"IF($A122=\"N/A\",Ref!$B$36,INDEX(Ranks!$1:$1048576,$A122,DH$1))","v":""},{"$f":"IF($A122=\"N/A\",Ref!$B$36,INDEX(Ranks!$1:$1048576,$A122,DI$1))","v":""},{"$f":"IF($A122=\"N/A\",Ref!$B$36,INDEX(Ranks!$1:$1048576,$A122,DJ$1))","v":""},{"$f":"IF($A122=\"N/A\",Ref!$B$36,INDEX(Ranks!$1:$1048576,$A122,DK$1))","v":""},{"$f":"IF($A122=\"N/A\",Ref!$B$36,INDEX(Ranks!$1:$1048576,$A122,DL$1))","v":""},{"$f":"IF($A122=\"N/A\",Ref!$B$36,INDEX(Ranks!$1:$1048576,$A122,DM$1))","v":""},{"$f":"IF($A122=\"N/A\",Ref!$B$36,INDEX(Ranks!$1:$1048576,$A122,DN$1))","v":""},{"$f":"IF($A122=\"N/A\",Ref!$B$36,INDEX(Ranks!$1:$1048576,$A122,DO$1))","v":""},{"$f":"IF($A122=\"N/A\",Ref!$B$36,INDEX(Ranks!$1:$1048576,$A122,DP$1))","v":""},{"$f":"IF($A122=\"N/A\",Ref!$B$36,INDEX(Ranks!$1:$1048576,$A122,DQ$1))","v":""},{"$f":"IF($A122=\"N/A\",Ref!$B$36,INDEX(Ranks!$1:$1048576,$A122,DR$1))","v":""},{"$f":"IF($A122=\"N/A\",Ref!$B$36,INDEX(Ranks!$1:$1048576,$A122,DS$1))","v":""},{"$f":"IF($A122=\"N/A\",Ref!$B$36,INDEX(Ranks!$1:$1048576,$A122,DT$1))","v":""},{"$f":"IF($A122=\"N/A\",Ref!$B$36,INDEX(Ranks!$1:$1048576,$A122,DU$1))","v":""},{"$f":"IF($A122=\"N/A\",Ref!$B$36,INDEX(Ranks!$1:$1048576,$A122,DV$1))","v":""},{"$f":"IF($A122=\"N/A\",Ref!$B$36,INDEX(Ranks!$1:$1048576,$A122,DW$1))","v":""},{"$f":"IF($A122=\"N/A\",Ref!$B$36,INDEX(Ranks!$1:$1048576,$A122,DX$1))","v":""},{"$f":"IF($A122=\"N/A\",Ref!$B$36,INDEX(Ranks!$1:$1048576,$A122,DY$1))","v":""},{"$f":"IF($A122=\"N/A\",Ref!$B$36,INDEX(Ranks!$1:$1048576,$A122,DZ$1))","v":""},{"$f":"IF($A122=\"N/A\",Ref!$B$36,INDEX(Ranks!$1:$1048576,$A122,EA$1))","v":""},{"$f":"IF($A122=\"N/A\",Ref!$B$36,INDEX(Ranks!$1:$1048576,$A122,EB$1))","v":""}]
[{"$f":"IFERROR(MATCH('Portfolio Page'!L123,Ranks!L:L,0),\"N/A\")","v":"N/A"},null,{"$f":"IF($A123=\"N/A\",\"\",INDEX(Ranks!$1:$1048576,$A123,C$1))","v":""},{"$f":"IF($A123=\"N/A\",Ref!$B$36,INDEX(Ranks!$1:$1048576,$A123,D$1))","v":""},{"$f":"IF($A123=\"N/A\",Ref!$B$36,INDEX(Ranks!$1:$1048576,$A123,E$1))","v":""},{"$f":"IF($A123=\"N/A\",\"\",INDEX(Ranks!$1:$1048576,$A123,F$1))","v":""},{"$f":"IF($A123=\"N/A\",\"\",INDEX(Ranks!$1:$1048576,$A123,G$1))","v":""},{"$f":"IF($A123=\"N/A\",\"\",INDEX(Ranks!$1:$1048576,$A123,H$1))","v":""},{"$f":"IF($A123=\"N/A\",\"\",INDEX(Ranks!$1:$1048576,$A123,I$1))","v":""},{"$f":"IF($A123=\"N/A\",\"\",INDEX(Ranks!$1:$1048576,$A123,J$1))","v":""},{"$f":"IF($A123=\"N/A\",\"\",INDEX(Ranks!$1:$1048576,$A123,K$1))","v":""},null,{"$f":"IF($A123=\"N/A\",Ref!$B$36,INDEX(Ranks!$1:$1048576,$A123,M$1))","v":""},{"$f":"IF($A123=\"N/A\",Ref!$B$36,INDEX(Ranks!$1:$1048576,$A123,N$1))","v":""},{"$f":"IF($A123=\"N/A\",Ref!$B$36,INDEX(Ranks!$1:$1048576,$A123,O$1))","v":""},{"$f":"IF($A123=\"N/A\",Ref!$B$36,INDEX(Ranks!$1:$1048576,$A123,P$1))","v":""},{"$f":"IF($A123=\"N/A\",Ref!$B$36,INDEX(Ranks!$1:$1048576,$A123,Q$1))","v":""},{"$f":"IF($A123=\"N/A\",Ref!$B$36,INDEX(Ranks!$1:$1048576,$A123,R$1))","v":""},{"$f":"IF($A123=\"N/A\",Ref!$B$36,INDEX(Ranks!$1:$1048576,$A123,S$1))","v":""},{"$f":"IF($A123=\"N/A\",Ref!$B$36,INDEX(Ranks!$1:$1048576,$A123,T$1))","v":""},{"$f":"IF($A123=\"N/A\",Ref!$B$36,INDEX(Ranks!$1:$1048576,$A123,U$1))","v":""},{"$f":"IF($A123=\"N/A\",Ref!$B$36,INDEX(Ranks!$1:$1048576,$A123,V$1))","v":""},{"$f":"IF($A123=\"N/A\",Ref!$B$36,INDEX(Ranks!$1:$1048576,$A123,W$1))","v":""},{"$f":"IF($A123=\"N/A\",Ref!$B$36,INDEX(Ranks!$1:$1048576,$A123,X$1))","v":""},{"$f":"IF($A123=\"N/A\",Ref!$B$36,INDEX(Ranks!$1:$1048576,$A123,Y$1))","v":""},{"$f":"IF($A123=\"N/A\",Ref!$B$36,INDEX(Ranks!$1:$1048576,$A123,Z$1))","v":""},{"$f":"IF($A123=\"N/A\",Ref!$B$36,INDEX(Ranks!$1:$1048576,$A123,AA$1))","v":""},{"$f":"IF($A123=\"N/A\",Ref!$B$36,INDEX(Ranks!$1:$1048576,$A123,AB$1))","v":""},{"$f":"IF($A123=\"N/A\",Ref!$B$36,INDEX(Ranks!$1:$1048576,$A123,AC$1))","v":""},{"$f":"IF($A123=\"N/A\",Ref!$B$36,INDEX(Ranks!$1:$1048576,$A123,AD$1))","v":""},{"$f":"IF($A123=\"N/A\",Ref!$B$36,INDEX(Ranks!$1:$1048576,$A123,AE$1))","v":""},{"$f":"IF($A123=\"N/A\",Ref!$B$36,INDEX(Ranks!$1:$1048576,$A123,AF$1))","v":""},{"$f":"IF($A123=\"N/A\",Ref!$B$36,INDEX(Ranks!$1:$1048576,$A123,AG$1))","v":""},{"$f":"IF($A123=\"N/A\",Ref!$B$36,INDEX(Ranks!$1:$1048576,$A123,AH$1))","v":""},{"$f":"IF($A123=\"N/A\",Ref!$B$36,INDEX(Ranks!$1:$1048576,$A123,AI$1))","v":""},{"$f":"IF($A123=\"N/A\",Ref!$B$36,INDEX(Ranks!$1:$1048576,$A123,AJ$1))","v":""},{"$f":"IF($A123=\"N/A\",Ref!$B$36,INDEX(Ranks!$1:$1048576,$A123,AK$1))","v":""},{"$f":"IF($A123=\"N/A\",Ref!$B$36,INDEX(Ranks!$1:$1048576,$A123,AL$1))","v":""},{"$f":"IF($A123=\"N/A\",Ref!$B$36,INDEX(Ranks!$1:$1048576,$A123,AM$1))","v":""},{"$f":"IF($A123=\"N/A\",Ref!$B$36,INDEX(Ranks!$1:$1048576,$A123,AN$1))","v":""},{"$f":"IF($A123=\"N/A\",Ref!$B$36,INDEX(Ranks!$1:$1048576,$A123,AO$1))","v":""},{"$f":"IF($A123=\"N/A\",Ref!$B$36,INDEX(Ranks!$1:$1048576,$A123,AP$1))","v":""},{"$f":"IF($A123=\"N/A\",Ref!$B$36,INDEX(Ranks!$1:$1048576,$A123,AQ$1))","v":""},{"$f":"IF($A123=\"N/A\",Ref!$B$36,INDEX(Ranks!$1:$1048576,$A123,AR$1))","v":""},{"$f":"IF($A123=\"N/A\",Ref!$B$36,INDEX(Ranks!$1:$1048576,$A123,AS$1))","v":""},{"$f":"IF($A123=\"N/A\",Ref!$B$36,INDEX(Ranks!$1:$1048576,$A123,AT$1))","v":""},{"$f":"IF($A123=\"N/A\",Ref!$B$36,INDEX(Ranks!$1:$1048576,$A123,AU$1))","v":""},{"$f":"IF($A123=\"N/A\",Ref!$B$36,INDEX(Ranks!$1:$1048576,$A123,AV$1))","v":""},{"$f":"IF($A123=\"N/A\",Ref!$B$36,INDEX(Ranks!$1:$1048576,$A123,AW$1))","v":""},{"$f":"IF($A123=\"N/A\",Ref!$B$36,INDEX(Ranks!$1:$1048576,$A123,AX$1))","v":""},{"$f":"IF($A123=\"N/A\",Ref!$B$36,INDEX(Ranks!$1:$1048576,$A123,AY$1))","v":""},{"$f":"IF($A123=\"N/A\",Ref!$B$36,INDEX(Ranks!$1:$1048576,$A123,AZ$1))","v":""},{"$f":"IF($A123=\"N/A\",Ref!$B$36,INDEX(Ranks!$1:$1048576,$A123,BA$1))","v":""},{"$f":"IF($A123=\"N/A\",Ref!$B$36,INDEX(Ranks!$1:$1048576,$A123,BB$1))","v":""},{"$f":"IF($A123=\"N/A\",Ref!$B$36,INDEX(Ranks!$1:$1048576,$A123,BC$1))","v":""},{"$f":"IF($A123=\"N/A\",Ref!$B$36,INDEX(Ranks!$1:$1048576,$A123,BD$1))","v":""},{"$f":"IF($A123=\"N/A\",Ref!$B$36,INDEX(Ranks!$1:$1048576,$A123,BE$1))","v":""},{"$f":"IF($A123=\"N/A\",Ref!$B$36,INDEX(Ranks!$1:$1048576,$A123,BF$1))","v":""},{"$f":"IF($A123=\"N/A\",Ref!$B$36,INDEX(Ranks!$1:$1048576,$A123,BG$1))","v":""},{"$f":"IF($A123=\"N/A\",Ref!$B$36,INDEX(Ranks!$1:$1048576,$A123,BH$1))","v":""},{"$f":"IF($A123=\"N/A\",Ref!$B$36,INDEX(Ranks!$1:$1048576,$A123,BI$1))","v":""},{"$f":"IF($A123=\"N/A\",Ref!$B$36,INDEX(Ranks!$1:$1048576,$A123,BJ$1))","v":""},{"$f":"IF($A123=\"N/A\",Ref!$B$36,INDEX(Ranks!$1:$1048576,$A123,BK$1))","v":""},{"$f":"IF($A123=\"N/A\",Ref!$B$36,INDEX(Ranks!$1:$1048576,$A123,BL$1))","v":""},{"$f":"IF($A123=\"N/A\",Ref!$B$36,INDEX(Ranks!$1:$1048576,$A123,BM$1))","v":""},{"$f":"IF($A123=\"N/A\",Ref!$B$36,INDEX(Ranks!$1:$1048576,$A123,BN$1))","v":""},{"$f":"IF($A123=\"N/A\",Ref!$B$36,INDEX(Ranks!$1:$1048576,$A123,BO$1))","v":""},{"$f":"IF($A123=\"N/A\",Ref!$B$36,INDEX(Ranks!$1:$1048576,$A123,BP$1))","v":""},{"$f":"IF($A123=\"N/A\",Ref!$B$36,INDEX(Ranks!$1:$1048576,$A123,BQ$1))","v":""},{"$f":"IF($A123=\"N/A\",Ref!$B$36,INDEX(Ranks!$1:$1048576,$A123,BR$1))","v":""},{"$f":"IF($A123=\"N/A\",Ref!$B$36,INDEX(Ranks!$1:$1048576,$A123,BS$1))","v":""},{"$f":"IF($A123=\"N/A\",Ref!$B$36,INDEX(Ranks!$1:$1048576,$A123,BT$1))","v":""},{"$f":"IF($A123=\"N/A\",Ref!$B$36,INDEX(Ranks!$1:$1048576,$A123,BU$1))","v":""},{"$f":"IF($A123=\"N/A\",Ref!$B$36,INDEX(Ranks!$1:$1048576,$A123,BV$1))","v":""},{"$f":"IF($A123=\"N/A\",Ref!$B$36,INDEX(Ranks!$1:$1048576,$A123,BW$1))","v":""},{"$f":"IF($A123=\"N/A\",Ref!$B$36,INDEX(Ranks!$1:$1048576,$A123,BX$1))","v":""},{"$f":"IF($A123=\"N/A\",Ref!$B$36,INDEX(Ranks!$1:$1048576,$A123,BY$1))","v":""},{"$f":"IF($A123=\"N/A\",Ref!$B$36,INDEX(Ranks!$1:$1048576,$A123,BZ$1))","v":""},{"$f":"IF($A123=\"N/A\",Ref!$B$36,INDEX(Ranks!$1:$1048576,$A123,CA$1))","v":""},{"$f":"IF($A123=\"N/A\",Ref!$B$36,INDEX(Ranks!$1:$1048576,$A123,CB$1))","v":""},{"$f":"IF($A123=\"N/A\",Ref!$B$36,INDEX(Ranks!$1:$1048576,$A123,CC$1))","v":""},{"$f":"IF($A123=\"N/A\",Ref!$B$36,INDEX(Ranks!$1:$1048576,$A123,CD$1))","v":""},{"$f":"IF($A123=\"N/A\",Ref!$B$36,INDEX(Ranks!$1:$1048576,$A123,CE$1))","v":""},{"$f":"IF($A123=\"N/A\",Ref!$B$36,INDEX(Ranks!$1:$1048576,$A123,CF$1))","v":""},{"$f":"IF($A123=\"N/A\",Ref!$B$36,INDEX(Ranks!$1:$1048576,$A123,CG$1))","v":""},{"$f":"IF($A123=\"N/A\",Ref!$B$36,INDEX(Ranks!$1:$1048576,$A123,CH$1))","v":""},{"$f":"IF($A123=\"N/A\",Ref!$B$36,INDEX(Ranks!$1:$1048576,$A123,CI$1))","v":""},{"$f":"IF($A123=\"N/A\",Ref!$B$36,INDEX(Ranks!$1:$1048576,$A123,CJ$1))","v":""},{"$f":"IF($A123=\"N/A\",Ref!$B$36,INDEX(Ranks!$1:$1048576,$A123,CK$1))","v":""},{"$f":"IF($A123=\"N/A\",Ref!$B$36,INDEX(Ranks!$1:$1048576,$A123,CL$1))","v":""},{"$f":"IF($A123=\"N/A\",Ref!$B$36,INDEX(Ranks!$1:$1048576,$A123,CM$1))","v":""},{"$f":"IF($A123=\"N/A\",Ref!$B$36,INDEX(Ranks!$1:$1048576,$A123,CN$1))","v":""},{"$f":"IF($A123=\"N/A\",Ref!$B$36,INDEX(Ranks!$1:$1048576,$A123,CO$1))","v":""},{"$f":"IF($A123=\"N/A\",Ref!$B$36,INDEX(Ranks!$1:$1048576,$A123,CP$1))","v":""},{"$f":"IF($A123=\"N/A\",Ref!$B$36,INDEX(Ranks!$1:$1048576,$A123,CQ$1))","v":""},{"$f":"IF($A123=\"N/A\",Ref!$B$36,INDEX(Ranks!$1:$1048576,$A123,CR$1))","v":""},{"$f":"IF($A123=\"N/A\",Ref!$B$36,INDEX(Ranks!$1:$1048576,$A123,CS$1))","v":""},{"$f":"IF($A123=\"N/A\",Ref!$B$36,INDEX(Ranks!$1:$1048576,$A123,CT$1))","v":""},{"$f":"IF($A123=\"N/A\",Ref!$B$36,INDEX(Ranks!$1:$1048576,$A123,CU$1))","v":""},{"$f":"IF($A123=\"N/A\",Ref!$B$36,INDEX(Ranks!$1:$1048576,$A123,CV$1))","v":""},{"$f":"IF($A123=\"N/A\",Ref!$B$36,INDEX(Ranks!$1:$1048576,$A123,CW$1))","v":""},{"$f":"IF($A123=\"N/A\",Ref!$B$36,INDEX(Ranks!$1:$1048576,$A123,CX$1))","v":""},{"$f":"IF($A123=\"N/A\",Ref!$B$36,INDEX(Ranks!$1:$1048576,$A123,CY$1))","v":""},{"$f":"IF($A123=\"N/A\",Ref!$B$36,INDEX(Ranks!$1:$1048576,$A123,CZ$1))","v":""},{"$f":"IF($A123=\"N/A\",Ref!$B$36,INDEX(Ranks!$1:$1048576,$A123,DA$1))","v":""},{"$f":"IF($A123=\"N/A\",Ref!$B$36,INDEX(Ranks!$1:$1048576,$A123,DB$1))","v":""},{"$f":"IF($A123=\"N/A\",Ref!$B$36,INDEX(Ranks!$1:$1048576,$A123,DC$1))","v":""},{"$f":"IF($A123=\"N/A\",Ref!$B$36,INDEX(Ranks!$1:$1048576,$A123,DD$1))","v":""},{"$f":"IF($A123=\"N/A\",Ref!$B$36,INDEX(Ranks!$1:$1048576,$A123,DE$1))","v":""},{"$f":"IF($A123=\"N/A\",Ref!$B$36,INDEX(Ranks!$1:$1048576,$A123,DF$1))","v":""},{"$f":"IF($A123=\"N/A\",Ref!$B$36,INDEX(Ranks!$1:$1048576,$A123,DG$1))","v":""},{"$f":"IF($A123=\"N/A\",Ref!$B$36,INDEX(Ranks!$1:$1048576,$A123,DH$1))","v":""},{"$f":"IF($A123=\"N/A\",Ref!$B$36,INDEX(Ranks!$1:$1048576,$A123,DI$1))","v":""},{"$f":"IF($A123=\"N/A\",Ref!$B$36,INDEX(Ranks!$1:$1048576,$A123,DJ$1))","v":""},{"$f":"IF($A123=\"N/A\",Ref!$B$36,INDEX(Ranks!$1:$1048576,$A123,DK$1))","v":""},{"$f":"IF($A123=\"N/A\",Ref!$B$36,INDEX(Ranks!$1:$1048576,$A123,DL$1))","v":""},{"$f":"IF($A123=\"N/A\",Ref!$B$36,INDEX(Ranks!$1:$1048576,$A123,DM$1))","v":""},{"$f":"IF($A123=\"N/A\",Ref!$B$36,INDEX(Ranks!$1:$1048576,$A123,DN$1))","v":""},{"$f":"IF($A123=\"N/A\",Ref!$B$36,INDEX(Ranks!$1:$1048576,$A123,DO$1))","v":""},{"$f":"IF($A123=\"N/A\",Ref!$B$36,INDEX(Ranks!$1:$1048576,$A123,DP$1))","v":""},{"$f":"IF($A123=\"N/A\",Ref!$B$36,INDEX(Ranks!$1:$1048576,$A123,DQ$1))","v":""},{"$f":"IF($A123=\"N/A\",Ref!$B$36,INDEX(Ranks!$1:$1048576,$A123,DR$1))","v":""},{"$f":"IF($A123=\"N/A\",Ref!$B$36,INDEX(Ranks!$1:$1048576,$A123,DS$1))","v":""},{"$f":"IF($A123=\"N/A\",Ref!$B$36,INDEX(Ranks!$1:$1048576,$A123,DT$1))","v":""},{"$f":"IF($A123=\"N/A\",Ref!$B$36,INDEX(Ranks!$1:$1048576,$A123,DU$1))","v":""},{"$f":"IF($A123=\"N/A\",Ref!$B$36,INDEX(Ranks!$1:$1048576,$A123,DV$1))","v":""},{"$f":"IF($A123=\"N/A\",Ref!$B$36,INDEX(Ranks!$1:$1048576,$A123,DW$1))","v":""},{"$f":"IF($A123=\"N/A\",Ref!$B$36,INDEX(Ranks!$1:$1048576,$A123,DX$1))","v":""},{"$f":"IF($A123=\"N/A\",Ref!$B$36,INDEX(Ranks!$1:$1048576,$A123,DY$1))","v":""},{"$f":"IF($A123=\"N/A\",Ref!$B$36,INDEX(Ranks!$1:$1048576,$A123,DZ$1))","v":""},{"$f":"IF($A123=\"N/A\",Ref!$B$36,INDEX(Ranks!$1:$1048576,$A123,EA$1))","v":""},{"$f":"IF($A123=\"N/A\",Ref!$B$36,INDEX(Ranks!$1:$1048576,$A123,EB$1))","v":""}]
[{"$f":"IFERROR(MATCH('Portfolio Page'!L124,Ranks!L:L,0),\"N/A\")","v":"N/A"},null,{"$f":"IF($A124=\"N/A\",\"\",INDEX(Ranks!$1:$1048576,$A124,C$1))","v":""},{"$f":"IF($A124=\"N/A\",Ref!$B$36,INDEX(Ranks!$1:$1048576,$A124,D$1))","v":""},{"$f":"IF($A124=\"N/A\",Ref!$B$36,INDEX(Ranks!$1:$1048576,$A124,E$1))","v":""},{"$f":"IF($A124=\"N/A\",\"\",INDEX(Ranks!$1:$1048576,$A124,F$1))","v":""},{"$f":"IF($A124=\"N/A\",\"\",INDEX(Ranks!$1:$1048576,$A124,G$1))","v":""},{"$f":"IF($A124=\"N/A\",\"\",INDEX(Ranks!$1:$1048576,$A124,H$1))","v":""},{"$f":"IF($A124=\"N/A\",\"\",INDEX(Ranks!$1:$1048576,$A124,I$1))","v":""},{"$f":"IF($A124=\"N/A\",\"\",INDEX(Ranks!$1:$1048576,$A124,J$1))","v":""},{"$f":"IF($A124=\"N/A\",\"\",INDEX(Ranks!$1:$1048576,$A124,K$1))","v":""},null,{"$f":"IF($A124=\"N/A\",Ref!$B$36,INDEX(Ranks!$1:$1048576,$A124,M$1))","v":""},{"$f":"IF($A124=\"N/A\",Ref!$B$36,INDEX(Ranks!$1:$1048576,$A124,N$1))","v":""},{"$f":"IF($A124=\"N/A\",Ref!$B$36,INDEX(Ranks!$1:$1048576,$A124,O$1))","v":""},{"$f":"IF($A124=\"N/A\",Ref!$B$36,INDEX(Ranks!$1:$1048576,$A124,P$1))","v":""},{"$f":"IF($A124=\"N/A\",Ref!$B$36,INDEX(Ranks!$1:$1048576,$A124,Q$1))","v":""},{"$f":"IF($A124=\"N/A\",Ref!$B$36,INDEX(Ranks!$1:$1048576,$A124,R$1))","v":""},{"$f":"IF($A124=\"N/A\",Ref!$B$36,INDEX(Ranks!$1:$1048576,$A124,S$1))","v":""},{"$f":"IF($A124=\"N/A\",Ref!$B$36,INDEX(Ranks!$1:$1048576,$A124,T$1))","v":""},{"$f":"IF($A124=\"N/A\",Ref!$B$36,INDEX(Ranks!$1:$1048576,$A124,U$1))","v":""},{"$f":"IF($A124=\"N/A\",Ref!$B$36,INDEX(Ranks!$1:$1048576,$A124,V$1))","v":""},{"$f":"IF($A124=\"N/A\",Ref!$B$36,INDEX(Ranks!$1:$1048576,$A124,W$1))","v":""},{"$f":"IF($A124=\"N/A\",Ref!$B$36,INDEX(Ranks!$1:$1048576,$A124,X$1))","v":""},{"$f":"IF($A124=\"N/A\",Ref!$B$36,INDEX(Ranks!$1:$1048576,$A124,Y$1))","v":""},{"$f":"IF($A124=\"N/A\",Ref!$B$36,INDEX(Ranks!$1:$1048576,$A124,Z$1))","v":""},{"$f":"IF($A124=\"N/A\",Ref!$B$36,INDEX(Ranks!$1:$1048576,$A124,AA$1))","v":""},{"$f":"IF($A124=\"N/A\",Ref!$B$36,INDEX(Ranks!$1:$1048576,$A124,AB$1))","v":""},{"$f":"IF($A124=\"N/A\",Ref!$B$36,INDEX(Ranks!$1:$1048576,$A124,AC$1))","v":""},{"$f":"IF($A124=\"N/A\",Ref!$B$36,INDEX(Ranks!$1:$1048576,$A124,AD$1))","v":""},{"$f":"IF($A124=\"N/A\",Ref!$B$36,INDEX(Ranks!$1:$1048576,$A124,AE$1))","v":""},{"$f":"IF($A124=\"N/A\",Ref!$B$36,INDEX(Ranks!$1:$1048576,$A124,AF$1))","v":""},{"$f":"IF($A124=\"N/A\",Ref!$B$36,INDEX(Ranks!$1:$1048576,$A124,AG$1))","v":""},{"$f":"IF($A124=\"N/A\",Ref!$B$36,INDEX(Ranks!$1:$1048576,$A124,AH$1))","v":""},{"$f":"IF($A124=\"N/A\",Ref!$B$36,INDEX(Ranks!$1:$1048576,$A124,AI$1))","v":""},{"$f":"IF($A124=\"N/A\",Ref!$B$36,INDEX(Ranks!$1:$1048576,$A124,AJ$1))","v":""},{"$f":"IF($A124=\"N/A\",Ref!$B$36,INDEX(Ranks!$1:$1048576,$A124,AK$1))","v":""},{"$f":"IF($A124=\"N/A\",Ref!$B$36,INDEX(Ranks!$1:$1048576,$A124,AL$1))","v":""},{"$f":"IF($A124=\"N/A\",Ref!$B$36,INDEX(Ranks!$1:$1048576,$A124,AM$1))","v":""},{"$f":"IF($A124=\"N/A\",Ref!$B$36,INDEX(Ranks!$1:$1048576,$A124,AN$1))","v":""},{"$f":"IF($A124=\"N/A\",Ref!$B$36,INDEX(Ranks!$1:$1048576,$A124,AO$1))","v":""},{"$f":"IF($A124=\"N/A\",Ref!$B$36,INDEX(Ranks!$1:$1048576,$A124,AP$1))","v":""},{"$f":"IF($A124=\"N/A\",Ref!$B$36,INDEX(Ranks!$1:$1048576,$A124,AQ$1))","v":""},{"$f":"IF($A124=\"N/A\",Ref!$B$36,INDEX(Ranks!$1:$1048576,$A124,AR$1))","v":""},{"$f":"IF($A124=\"N/A\",Ref!$B$36,INDEX(Ranks!$1:$1048576,$A124,AS$1))","v":""},{"$f":"IF($A124=\"N/A\",Ref!$B$36,INDEX(Ranks!$1:$1048576,$A124,AT$1))","v":""},{"$f":"IF($A124=\"N/A\",Ref!$B$36,INDEX(Ranks!$1:$1048576,$A124,AU$1))","v":""},{"$f":"IF($A124=\"N/A\",Ref!$B$36,INDEX(Ranks!$1:$1048576,$A124,AV$1))","v":""},{"$f":"IF($A124=\"N/A\",Ref!$B$36,INDEX(Ranks!$1:$1048576,$A124,AW$1))","v":""},{"$f":"IF($A124=\"N/A\",Ref!$B$36,INDEX(Ranks!$1:$1048576,$A124,AX$1))","v":""},{"$f":"IF($A124=\"N/A\",Ref!$B$36,INDEX(Ranks!$1:$1048576,$A124,AY$1))","v":""},{"$f":"IF($A124=\"N/A\",Ref!$B$36,INDEX(Ranks!$1:$1048576,$A124,AZ$1))","v":""},{"$f":"IF($A124=\"N/A\",Ref!$B$36,INDEX(Ranks!$1:$1048576,$A124,BA$1))","v":""},{"$f":"IF($A124=\"N/A\",Ref!$B$36,INDEX(Ranks!$1:$1048576,$A124,BB$1))","v":""},{"$f":"IF($A124=\"N/A\",Ref!$B$36,INDEX(Ranks!$1:$1048576,$A124,BC$1))","v":""},{"$f":"IF($A124=\"N/A\",Ref!$B$36,INDEX(Ranks!$1:$1048576,$A124,BD$1))","v":""},{"$f":"IF($A124=\"N/A\",Ref!$B$36,INDEX(Ranks!$1:$1048576,$A124,BE$1))","v":""},{"$f":"IF($A124=\"N/A\",Ref!$B$36,INDEX(Ranks!$1:$1048576,$A124,BF$1))","v":""},{"$f":"IF($A124=\"N/A\",Ref!$B$36,INDEX(Ranks!$1:$1048576,$A124,BG$1))","v":""},{"$f":"IF($A124=\"N/A\",Ref!$B$36,INDEX(Ranks!$1:$1048576,$A124,BH$1))","v":""},{"$f":"IF($A124=\"N/A\",Ref!$B$36,INDEX(Ranks!$1:$1048576,$A124,BI$1))","v":""},{"$f":"IF($A124=\"N/A\",Ref!$B$36,INDEX(Ranks!$1:$1048576,$A124,BJ$1))","v":""},{"$f":"IF($A124=\"N/A\",Ref!$B$36,INDEX(Ranks!$1:$1048576,$A124,BK$1))","v":""},{"$f":"IF($A124=\"N/A\",Ref!$B$36,INDEX(Ranks!$1:$1048576,$A124,BL$1))","v":""},{"$f":"IF($A124=\"N/A\",Ref!$B$36,INDEX(Ranks!$1:$1048576,$A124,BM$1))","v":""},{"$f":"IF($A124=\"N/A\",Ref!$B$36,INDEX(Ranks!$1:$1048576,$A124,BN$1))","v":""},{"$f":"IF($A124=\"N/A\",Ref!$B$36,INDEX(Ranks!$1:$1048576,$A124,BO$1))","v":""},{"$f":"IF($A124=\"N/A\",Ref!$B$36,INDEX(Ranks!$1:$1048576,$A124,BP$1))","v":""},{"$f":"IF($A124=\"N/A\",Ref!$B$36,INDEX(Ranks!$1:$1048576,$A124,BQ$1))","v":""},{"$f":"IF($A124=\"N/A\",Ref!$B$36,INDEX(Ranks!$1:$1048576,$A124,BR$1))","v":""},{"$f":"IF($A124=\"N/A\",Ref!$B$36,INDEX(Ranks!$1:$1048576,$A124,BS$1))","v":""},{"$f":"IF($A124=\"N/A\",Ref!$B$36,INDEX(Ranks!$1:$1048576,$A124,BT$1))","v":""},{"$f":"IF($A124=\"N/A\",Ref!$B$36,INDEX(Ranks!$1:$1048576,$A124,BU$1))","v":""},{"$f":"IF($A124=\"N/A\",Ref!$B$36,INDEX(Ranks!$1:$1048576,$A124,BV$1))","v":""},{"$f":"IF($A124=\"N/A\",Ref!$B$36,INDEX(Ranks!$1:$1048576,$A124,BW$1))","v":""},{"$f":"IF($A124=\"N/A\",Ref!$B$36,INDEX(Ranks!$1:$1048576,$A124,BX$1))","v":""},{"$f":"IF($A124=\"N/A\",Ref!$B$36,INDEX(Ranks!$1:$1048576,$A124,BY$1))","v":""},{"$f":"IF($A124=\"N/A\",Ref!$B$36,INDEX(Ranks!$1:$1048576,$A124,BZ$1))","v":""},{"$f":"IF($A124=\"N/A\",Ref!$B$36,INDEX(Ranks!$1:$1048576,$A124,CA$1))","v":""},{"$f":"IF($A124=\"N/A\",Ref!$B$36,INDEX(Ranks!$1:$1048576,$A124,CB$1))","v":""},{"$f":"IF($A124=\"N/A\",Ref!$B$36,INDEX(Ranks!$1:$1048576,$A124,CC$1))","v":""},{"$f":"IF($A124=\"N/A\",Ref!$B$36,INDEX(Ranks!$1:$1048576,$A124,CD$1))","v":""},{"$f":"IF($A124=\"N/A\",Ref!$B$36,INDEX(Ranks!$1:$1048576,$A124,CE$1))","v":""},{"$f":"IF($A124=\"N/A\",Ref!$B$36,INDEX(Ranks!$1:$1048576,$A124,CF$1))","v":""},{"$f":"IF($A124=\"N/A\",Ref!$B$36,INDEX(Ranks!$1:$1048576,$A124,CG$1))","v":""},{"$f":"IF($A124=\"N/A\",Ref!$B$36,INDEX(Ranks!$1:$1048576,$A124,CH$1))","v":""},{"$f":"IF($A124=\"N/A\",Ref!$B$36,INDEX(Ranks!$1:$1048576,$A124,CI$1))","v":""},{"$f":"IF($A124=\"N/A\",Ref!$B$36,INDEX(Ranks!$1:$1048576,$A124,CJ$1))","v":""},{"$f":"IF($A124=\"N/A\",Ref!$B$36,INDEX(Ranks!$1:$1048576,$A124,CK$1))","v":""},{"$f":"IF($A124=\"N/A\",Ref!$B$36,INDEX(Ranks!$1:$1048576,$A124,CL$1))","v":""},{"$f":"IF($A124=\"N/A\",Ref!$B$36,INDEX(Ranks!$1:$1048576,$A124,CM$1))","v":""},{"$f":"IF($A124=\"N/A\",Ref!$B$36,INDEX(Ranks!$1:$1048576,$A124,CN$1))","v":""},{"$f":"IF($A124=\"N/A\",Ref!$B$36,INDEX(Ranks!$1:$1048576,$A124,CO$1))","v":""},{"$f":"IF($A124=\"N/A\",Ref!$B$36,INDEX(Ranks!$1:$1048576,$A124,CP$1))","v":""},{"$f":"IF($A124=\"N/A\",Ref!$B$36,INDEX(Ranks!$1:$1048576,$A124,CQ$1))","v":""},{"$f":"IF($A124=\"N/A\",Ref!$B$36,INDEX(Ranks!$1:$1048576,$A124,CR$1))","v":""},{"$f":"IF($A124=\"N/A\",Ref!$B$36,INDEX(Ranks!$1:$1048576,$A124,CS$1))","v":""},{"$f":"IF($A124=\"N/A\",Ref!$B$36,INDEX(Ranks!$1:$1048576,$A124,CT$1))","v":""},{"$f":"IF($A124=\"N/A\",Ref!$B$36,INDEX(Ranks!$1:$1048576,$A124,CU$1))","v":""},{"$f":"IF($A124=\"N/A\",Ref!$B$36,INDEX(Ranks!$1:$1048576,$A124,CV$1))","v":""},{"$f":"IF($A124=\"N/A\",Ref!$B$36,INDEX(Ranks!$1:$1048576,$A124,CW$1))","v":""},{"$f":"IF($A124=\"N/A\",Ref!$B$36,INDEX(Ranks!$1:$1048576,$A124,CX$1))","v":""},{"$f":"IF($A124=\"N/A\",Ref!$B$36,INDEX(Ranks!$1:$1048576,$A124,CY$1))","v":""},{"$f":"IF($A124=\"N/A\",Ref!$B$36,INDEX(Ranks!$1:$1048576,$A124,CZ$1))","v":""},{"$f":"IF($A124=\"N/A\",Ref!$B$36,INDEX(Ranks!$1:$1048576,$A124,DA$1))","v":""},{"$f":"IF($A124=\"N/A\",Ref!$B$36,INDEX(Ranks!$1:$1048576,$A124,DB$1))","v":""},{"$f":"IF($A124=\"N/A\",Ref!$B$36,INDEX(Ranks!$1:$1048576,$A124,DC$1))","v":""},{"$f":"IF($A124=\"N/A\",Ref!$B$36,INDEX(Ranks!$1:$1048576,$A124,DD$1))","v":""},{"$f":"IF($A124=\"N/A\",Ref!$B$36,INDEX(Ranks!$1:$1048576,$A124,DE$1))","v":""},{"$f":"IF($A124=\"N/A\",Ref!$B$36,INDEX(Ranks!$1:$1048576,$A124,DF$1))","v":""},{"$f":"IF($A124=\"N/A\",Ref!$B$36,INDEX(Ranks!$1:$1048576,$A124,DG$1))","v":""},{"$f":"IF($A124=\"N/A\",Ref!$B$36,INDEX(Ranks!$1:$1048576,$A124,DH$1))","v":""},{"$f":"IF($A124=\"N/A\",Ref!$B$36,INDEX(Ranks!$1:$1048576,$A124,DI$1))","v":""},{"$f":"IF($A124=\"N/A\",Ref!$B$36,INDEX(Ranks!$1:$1048576,$A124,DJ$1))","v":""},{"$f":"IF($A124=\"N/A\",Ref!$B$36,INDEX(Ranks!$1:$1048576,$A124,DK$1))","v":""},{"$f":"IF($A124=\"N/A\",Ref!$B$36,INDEX(Ranks!$1:$1048576,$A124,DL$1))","v":""},{"$f":"IF($A124=\"N/A\",Ref!$B$36,INDEX(Ranks!$1:$1048576,$A124,DM$1))","v":""},{"$f":"IF($A124=\"N/A\",Ref!$B$36,INDEX(Ranks!$1:$1048576,$A124,DN$1))","v":""},{"$f":"IF($A124=\"N/A\",Ref!$B$36,INDEX(Ranks!$1:$1048576,$A124,DO$1))","v":""},{"$f":"IF($A124=\"N/A\",Ref!$B$36,INDEX(Ranks!$1:$1048576,$A124,DP$1))","v":""},{"$f":"IF($A124=\"N/A\",Ref!$B$36,INDEX(Ranks!$1:$1048576,$A124,DQ$1))","v":""},{"$f":"IF($A124=\"N/A\",Ref!$B$36,INDEX(Ranks!$1:$1048576,$A124,DR$1))","v":""},{"$f":"IF($A124=\"N/A\",Ref!$B$36,INDEX(Ranks!$1:$1048576,$A124,DS$1))","v":""},{"$f":"IF($A124=\"N/A\",Ref!$B$36,INDEX(Ranks!$1:$1048576,$A124,DT$1))","v":""},{"$f":"IF($A124=\"N/A\",Ref!$B$36,INDEX(Ranks!$1:$1048576,$A124,DU$1))","v":""},{"$f":"IF($A124=\"N/A\",Ref!$B$36,INDEX(Ranks!$1:$1048576,$A124,DV$1))","v":""},{"$f":"IF($A124=\"N/A\",Ref!$B$36,INDEX(Ranks!$1:$1048576,$A124,DW$1))","v":""},{"$f":"IF($A124=\"N/A\",Ref!$B$36,INDEX(Ranks!$1:$1048576,$A124,DX$1))","v":""},{"$f":"IF($A124=\"N/A\",Ref!$B$36,INDEX(Ranks!$1:$1048576,$A124,DY$1))","v":""},{"$f":"IF($A124=\"N/A\",Ref!$B$36,INDEX(Ranks!$1:$1048576,$A124,DZ$1))","v":""},{"$f":"IF($A124=\"N/A\",Ref!$B$36,INDEX(Ranks!$1:$1048576,$A124,EA$1))","v":""},{"$f":"IF($A124=\"N/A\",Ref!$B$36,INDEX(Ranks!$1:$1048576,$A124,EB$1))","v":""}]
[{"$f":"IFERROR(MATCH('Portfolio Page'!L125,Ranks!L:L,0),\"N/A\")","v":"N/A"},null,{"$f":"IF($A125=\"N/A\",\"\",INDEX(Ranks!$1:$1048576,$A125,C$1))","v":""},{"$f":"IF($A125=\"N/A\",Ref!$B$36,INDEX(Ranks!$1:$1048576,$A125,D$1))","v":""},{"$f":"IF($A125=\"N/A\",Ref!$B$36,INDEX(Ranks!$1:$1048576,$A125,E$1))","v":""},{"$f":"IF($A125=\"N/A\",\"\",INDEX(Ranks!$1:$1048576,$A125,F$1))","v":""},{"$f":"IF($A125=\"N/A\",\"\",INDEX(Ranks!$1:$1048576,$A125,G$1))","v":""},{"$f":"IF($A125=\"N/A\",\"\",INDEX(Ranks!$1:$1048576,$A125,H$1))","v":""},{"$f":"IF($A125=\"N/A\",\"\",INDEX(Ranks!$1:$1048576,$A125,I$1))","v":""},{"$f":"IF($A125=\"N/A\",\"\",INDEX(Ranks!$1:$1048576,$A125,J$1))","v":""},{"$f":"IF($A125=\"N/A\",\"\",INDEX(Ranks!$1:$1048576,$A125,K$1))","v":""},null,{"$f":"IF($A125=\"N/A\",Ref!$B$36,INDEX(Ranks!$1:$1048576,$A125,M$1))","v":""},{"$f":"IF($A125=\"N/A\",Ref!$B$36,INDEX(Ranks!$1:$1048576,$A125,N$1))","v":""},{"$f":"IF($A125=\"N/A\",Ref!$B$36,INDEX(Ranks!$1:$1048576,$A125,O$1))","v":""},{"$f":"IF($A125=\"N/A\",Ref!$B$36,INDEX(Ranks!$1:$1048576,$A125,P$1))","v":""},{"$f":"IF($A125=\"N/A\",Ref!$B$36,INDEX(Ranks!$1:$1048576,$A125,Q$1))","v":""},{"$f":"IF($A125=\"N/A\",Ref!$B$36,INDEX(Ranks!$1:$1048576,$A125,R$1))","v":""},{"$f":"IF($A125=\"N/A\",Ref!$B$36,INDEX(Ranks!$1:$1048576,$A125,S$1))","v":""},{"$f":"IF($A125=\"N/A\",Ref!$B$36,INDEX(Ranks!$1:$1048576,$A125,T$1))","v":""},{"$f":"IF($A125=\"N/A\",Ref!$B$36,INDEX(Ranks!$1:$1048576,$A125,U$1))","v":""},{"$f":"IF($A125=\"N/A\",Ref!$B$36,INDEX(Ranks!$1:$1048576,$A125,V$1))","v":""},{"$f":"IF($A125=\"N/A\",Ref!$B$36,INDEX(Ranks!$1:$1048576,$A125,W$1))","v":""},{"$f":"IF($A125=\"N/A\",Ref!$B$36,INDEX(Ranks!$1:$1048576,$A125,X$1))","v":""},{"$f":"IF($A125=\"N/A\",Ref!$B$36,INDEX(Ranks!$1:$1048576,$A125,Y$1))","v":""},{"$f":"IF($A125=\"N/A\",Ref!$B$36,INDEX(Ranks!$1:$1048576,$A125,Z$1))","v":""},{"$f":"IF($A125=\"N/A\",Ref!$B$36,INDEX(Ranks!$1:$1048576,$A125,AA$1))","v":""},{"$f":"IF($A125=\"N/A\",Ref!$B$36,INDEX(Ranks!$1:$1048576,$A125,AB$1))","v":""},{"$f":"IF($A125=\"N/A\",Ref!$B$36,INDEX(Ranks!$1:$1048576,$A125,AC$1))","v":""},{"$f":"IF($A125=\"N/A\",Ref!$B$36,INDEX(Ranks!$1:$1048576,$A125,AD$1))","v":""},{"$f":"IF($A125=\"N/A\",Ref!$B$36,INDEX(Ranks!$1:$1048576,$A125,AE$1))","v":""},{"$f":"IF($A125=\"N/A\",Ref!$B$36,INDEX(Ranks!$1:$1048576,$A125,AF$1))","v":""},{"$f":"IF($A125=\"N/A\",Ref!$B$36,INDEX(Ranks!$1:$1048576,$A125,AG$1))","v":""},{"$f":"IF($A125=\"N/A\",Ref!$B$36,INDEX(Ranks!$1:$1048576,$A125,AH$1))","v":""},{"$f":"IF($A125=\"N/A\",Ref!$B$36,INDEX(Ranks!$1:$1048576,$A125,AI$1))","v":""},{"$f":"IF($A125=\"N/A\",Ref!$B$36,INDEX(Ranks!$1:$1048576,$A125,AJ$1))","v":""},{"$f":"IF($A125=\"N/A\",Ref!$B$36,INDEX(Ranks!$1:$1048576,$A125,AK$1))","v":""},{"$f":"IF($A125=\"N/A\",Ref!$B$36,INDEX(Ranks!$1:$1048576,$A125,AL$1))","v":""},{"$f":"IF($A125=\"N/A\",Ref!$B$36,INDEX(Ranks!$1:$1048576,$A125,AM$1))","v":""},{"$f":"IF($A125=\"N/A\",Ref!$B$36,INDEX(Ranks!$1:$1048576,$A125,AN$1))","v":""},{"$f":"IF($A125=\"N/A\",Ref!$B$36,INDEX(Ranks!$1:$1048576,$A125,AO$1))","v":""},{"$f":"IF($A125=\"N/A\",Ref!$B$36,INDEX(Ranks!$1:$1048576,$A125,AP$1))","v":""},{"$f":"IF($A125=\"N/A\",Ref!$B$36,INDEX(Ranks!$1:$1048576,$A125,AQ$1))","v":""},{"$f":"IF($A125=\"N/A\",Ref!$B$36,INDEX(Ranks!$1:$1048576,$A125,AR$1))","v":""},{"$f":"IF($A125=\"N/A\",Ref!$B$36,INDEX(Ranks!$1:$1048576,$A125,AS$1))","v":""},{"$f":"IF($A125=\"N/A\",Ref!$B$36,INDEX(Ranks!$1:$1048576,$A125,AT$1))","v":""},{"$f":"IF($A125=\"N/A\",Ref!$B$36,INDEX(Ranks!$1:$1048576,$A125,AU$1))","v":""},{"$f":"IF($A125=\"N/A\",Ref!$B$36,INDEX(Ranks!$1:$1048576,$A125,AV$1))","v":""},{"$f":"IF($A125=\"N/A\",Ref!$B$36,INDEX(Ranks!$1:$1048576,$A125,AW$1))","v":""},{"$f":"IF($A125=\"N/A\",Ref!$B$36,INDEX(Ranks!$1:$1048576,$A125,AX$1))","v":""},{"$f":"IF($A125=\"N/A\",Ref!$B$36,INDEX(Ranks!$1:$1048576,$A125,AY$1))","v":""},{"$f":"IF($A125=\"N/A\",Ref!$B$36,INDEX(Ranks!$1:$1048576,$A125,AZ$1))","v":""},{"$f":"IF($A125=\"N/A\",Ref!$B$36,INDEX(Ranks!$1:$1048576,$A125,BA$1))","v":""},{"$f":"IF($A125=\"N/A\",Ref!$B$36,INDEX(Ranks!$1:$1048576,$A125,BB$1))","v":""},{"$f":"IF($A125=\"N/A\",Ref!$B$36,INDEX(Ranks!$1:$1048576,$A125,BC$1))","v":""},{"$f":"IF($A125=\"N/A\",Ref!$B$36,INDEX(Ranks!$1:$1048576,$A125,BD$1))","v":""},{"$f":"IF($A125=\"N/A\",Ref!$B$36,INDEX(Ranks!$1:$1048576,$A125,BE$1))","v":""},{"$f":"IF($A125=\"N/A\",Ref!$B$36,INDEX(Ranks!$1:$1048576,$A125,BF$1))","v":""},{"$f":"IF($A125=\"N/A\",Ref!$B$36,INDEX(Ranks!$1:$1048576,$A125,BG$1))","v":""},{"$f":"IF($A125=\"N/A\",Ref!$B$36,INDEX(Ranks!$1:$1048576,$A125,BH$1))","v":""},{"$f":"IF($A125=\"N/A\",Ref!$B$36,INDEX(Ranks!$1:$1048576,$A125,BI$1))","v":""},{"$f":"IF($A125=\"N/A\",Ref!$B$36,INDEX(Ranks!$1:$1048576,$A125,BJ$1))","v":""},{"$f":"IF($A125=\"N/A\",Ref!$B$36,INDEX(Ranks!$1:$1048576,$A125,BK$1))","v":""},{"$f":"IF($A125=\"N/A\",Ref!$B$36,INDEX(Ranks!$1:$1048576,$A125,BL$1))","v":""},{"$f":"IF($A125=\"N/A\",Ref!$B$36,INDEX(Ranks!$1:$1048576,$A125,BM$1))","v":""},{"$f":"IF($A125=\"N/A\",Ref!$B$36,INDEX(Ranks!$1:$1048576,$A125,BN$1))","v":""},{"$f":"IF($A125=\"N/A\",Ref!$B$36,INDEX(Ranks!$1:$1048576,$A125,BO$1))","v":""},{"$f":"IF($A125=\"N/A\",Ref!$B$36,INDEX(Ranks!$1:$1048576,$A125,BP$1))","v":""},{"$f":"IF($A125=\"N/A\",Ref!$B$36,INDEX(Ranks!$1:$1048576,$A125,BQ$1))","v":""},{"$f":"IF($A125=\"N/A\",Ref!$B$36,INDEX(Ranks!$1:$1048576,$A125,BR$1))","v":""},{"$f":"IF($A125=\"N/A\",Ref!$B$36,INDEX(Ranks!$1:$1048576,$A125,BS$1))","v":""},{"$f":"IF($A125=\"N/A\",Ref!$B$36,INDEX(Ranks!$1:$1048576,$A125,BT$1))","v":""},{"$f":"IF($A125=\"N/A\",Ref!$B$36,INDEX(Ranks!$1:$1048576,$A125,BU$1))","v":""},{"$f":"IF($A125=\"N/A\",Ref!$B$36,INDEX(Ranks!$1:$1048576,$A125,BV$1))","v":""},{"$f":"IF($A125=\"N/A\",Ref!$B$36,INDEX(Ranks!$1:$1048576,$A125,BW$1))","v":""},{"$f":"IF($A125=\"N/A\",Ref!$B$36,INDEX(Ranks!$1:$1048576,$A125,BX$1))","v":""},{"$f":"IF($A125=\"N/A\",Ref!$B$36,INDEX(Ranks!$1:$1048576,$A125,BY$1))","v":""},{"$f":"IF($A125=\"N/A\",Ref!$B$36,INDEX(Ranks!$1:$1048576,$A125,BZ$1))","v":""},{"$f":"IF($A125=\"N/A\",Ref!$B$36,INDEX(Ranks!$1:$1048576,$A125,CA$1))","v":""},{"$f":"IF($A125=\"N/A\",Ref!$B$36,INDEX(Ranks!$1:$1048576,$A125,CB$1))","v":""},{"$f":"IF($A125=\"N/A\",Ref!$B$36,INDEX(Ranks!$1:$1048576,$A125,CC$1))","v":""},{"$f":"IF($A125=\"N/A\",Ref!$B$36,INDEX(Ranks!$1:$1048576,$A125,CD$1))","v":""},{"$f":"IF($A125=\"N/A\",Ref!$B$36,INDEX(Ranks!$1:$1048576,$A125,CE$1))","v":""},{"$f":"IF($A125=\"N/A\",Ref!$B$36,INDEX(Ranks!$1:$1048576,$A125,CF$1))","v":""},{"$f":"IF($A125=\"N/A\",Ref!$B$36,INDEX(Ranks!$1:$1048576,$A125,CG$1))","v":""},{"$f":"IF($A125=\"N/A\",Ref!$B$36,INDEX(Ranks!$1:$1048576,$A125,CH$1))","v":""},{"$f":"IF($A125=\"N/A\",Ref!$B$36,INDEX(Ranks!$1:$1048576,$A125,CI$1))","v":""},{"$f":"IF($A125=\"N/A\",Ref!$B$36,INDEX(Ranks!$1:$1048576,$A125,CJ$1))","v":""},{"$f":"IF($A125=\"N/A\",Ref!$B$36,INDEX(Ranks!$1:$1048576,$A125,CK$1))","v":""},{"$f":"IF($A125=\"N/A\",Ref!$B$36,INDEX(Ranks!$1:$1048576,$A125,CL$1))","v":""},{"$f":"IF($A125=\"N/A\",Ref!$B$36,INDEX(Ranks!$1:$1048576,$A125,CM$1))","v":""},{"$f":"IF($A125=\"N/A\",Ref!$B$36,INDEX(Ranks!$1:$1048576,$A125,CN$1))","v":""},{"$f":"IF($A125=\"N/A\",Ref!$B$36,INDEX(Ranks!$1:$1048576,$A125,CO$1))","v":""},{"$f":"IF($A125=\"N/A\",Ref!$B$36,INDEX(Ranks!$1:$1048576,$A125,CP$1))","v":""},{"$f":"IF($A125=\"N/A\",Ref!$B$36,INDEX(Ranks!$1:$1048576,$A125,CQ$1))","v":""},{"$f":"IF($A125=\"N/A\",Ref!$B$36,INDEX(Ranks!$1:$1048576,$A125,CR$1))","v":""},{"$f":"IF($A125=\"N/A\",Ref!$B$36,INDEX(Ranks!$1:$1048576,$A125,CS$1))","v":""},{"$f":"IF($A125=\"N/A\",Ref!$B$36,INDEX(Ranks!$1:$1048576,$A125,CT$1))","v":""},{"$f":"IF($A125=\"N/A\",Ref!$B$36,INDEX(Ranks!$1:$1048576,$A125,CU$1))","v":""},{"$f":"IF($A125=\"N/A\",Ref!$B$36,INDEX(Ranks!$1:$1048576,$A125,CV$1))","v":""},{"$f":"IF($A125=\"N/A\",Ref!$B$36,INDEX(Ranks!$1:$1048576,$A125,CW$1))","v":""},{"$f":"IF($A125=\"N/A\",Ref!$B$36,INDEX(Ranks!$1:$1048576,$A125,CX$1))","v":""},{"$f":"IF($A125=\"N/A\",Ref!$B$36,INDEX(Ranks!$1:$1048576,$A125,CY$1))","v":""},{"$f":"IF($A125=\"N/A\",Ref!$B$36,INDEX(Ranks!$1:$1048576,$A125,CZ$1))","v":""},{"$f":"IF($A125=\"N/A\",Ref!$B$36,INDEX(Ranks!$1:$1048576,$A125,DA$1))","v":""},{"$f":"IF($A125=\"N/A\",Ref!$B$36,INDEX(Ranks!$1:$1048576,$A125,DB$1))","v":""},{"$f":"IF($A125=\"N/A\",Ref!$B$36,INDEX(Ranks!$1:$1048576,$A125,DC$1))","v":""},{"$f":"IF($A125=\"N/A\",Ref!$B$36,INDEX(Ranks!$1:$1048576,$A125,DD$1))","v":""},{"$f":"IF($A125=\"N/A\",Ref!$B$36,INDEX(Ranks!$1:$1048576,$A125,DE$1))","v":""},{"$f":"IF($A125=\"N/A\",Ref!$B$36,INDEX(Ranks!$1:$1048576,$A125,DF$1))","v":""},{"$f":"IF($A125=\"N/A\",Ref!$B$36,INDEX(Ranks!$1:$1048576,$A125,DG$1))","v":""},{"$f":"IF($A125=\"N/A\",Ref!$B$36,INDEX(Ranks!$1:$1048576,$A125,DH$1))","v":""},{"$f":"IF($A125=\"N/A\",Ref!$B$36,INDEX(Ranks!$1:$1048576,$A125,DI$1))","v":""},{"$f":"IF($A125=\"N/A\",Ref!$B$36,INDEX(Ranks!$1:$1048576,$A125,DJ$1))","v":""},{"$f":"IF($A125=\"N/A\",Ref!$B$36,INDEX(Ranks!$1:$1048576,$A125,DK$1))","v":""},{"$f":"IF($A125=\"N/A\",Ref!$B$36,INDEX(Ranks!$1:$1048576,$A125,DL$1))","v":""},{"$f":"IF($A125=\"N/A\",Ref!$B$36,INDEX(Ranks!$1:$1048576,$A125,DM$1))","v":""},{"$f":"IF($A125=\"N/A\",Ref!$B$36,INDEX(Ranks!$1:$1048576,$A125,DN$1))","v":""},{"$f":"IF($A125=\"N/A\",Ref!$B$36,INDEX(Ranks!$1:$1048576,$A125,DO$1))","v":""},{"$f":"IF($A125=\"N/A\",Ref!$B$36,INDEX(Ranks!$1:$1048576,$A125,DP$1))","v":""},{"$f":"IF($A125=\"N/A\",Ref!$B$36,INDEX(Ranks!$1:$1048576,$A125,DQ$1))","v":""},{"$f":"IF($A125=\"N/A\",Ref!$B$36,INDEX(Ranks!$1:$1048576,$A125,DR$1))","v":""},{"$f":"IF($A125=\"N/A\",Ref!$B$36,INDEX(Ranks!$1:$1048576,$A125,DS$1))","v":""},{"$f":"IF($A125=\"N/A\",Ref!$B$36,INDEX(Ranks!$1:$1048576,$A125,DT$1))","v":""},{"$f":"IF($A125=\"N/A\",Ref!$B$36,INDEX(Ranks!$1:$1048576,$A125,DU$1))","v":""},{"$f":"IF($A125=\"N/A\",Ref!$B$36,INDEX(Ranks!$1:$1048576,$A125,DV$1))","v":""},{"$f":"IF($A125=\"N/A\",Ref!$B$36,INDEX(Ranks!$1:$1048576,$A125,DW$1))","v":""},{"$f":"IF($A125=\"N/A\",Ref!$B$36,INDEX(Ranks!$1:$1048576,$A125,DX$1))","v":""},{"$f":"IF($A125=\"N/A\",Ref!$B$36,INDEX(Ranks!$1:$1048576,$A125,DY$1))","v":""},{"$f":"IF($A125=\"N/A\",Ref!$B$36,INDEX(Ranks!$1:$1048576,$A125,DZ$1))","v":""},{"$f":"IF($A125=\"N/A\",Ref!$B$36,INDEX(Ranks!$1:$1048576,$A125,EA$1))","v":""},{"$f":"IF($A125=\"N/A\",Ref!$B$36,INDEX(Ranks!$1:$1048576,$A125,EB$1))","v":""}]
[{"$f":"IFERROR(MATCH('Portfolio Page'!L126,Ranks!L:L,0),\"N/A\")","v":"N/A"},null,{"$f":"IF($A126=\"N/A\",\"\",INDEX(Ranks!$1:$1048576,$A126,C$1))","v":""},{"$f":"IF($A126=\"N/A\",Ref!$B$36,INDEX(Ranks!$1:$1048576,$A126,D$1))","v":""},{"$f":"IF($A126=\"N/A\",Ref!$B$36,INDEX(Ranks!$1:$1048576,$A126,E$1))","v":""},{"$f":"IF($A126=\"N/A\",\"\",INDEX(Ranks!$1:$1048576,$A126,F$1))","v":""},{"$f":"IF($A126=\"N/A\",\"\",INDEX(Ranks!$1:$1048576,$A126,G$1))","v":""},{"$f":"IF($A126=\"N/A\",\"\",INDEX(Ranks!$1:$1048576,$A126,H$1))","v":""},{"$f":"IF($A126=\"N/A\",\"\",INDEX(Ranks!$1:$1048576,$A126,I$1))","v":""},{"$f":"IF($A126=\"N/A\",\"\",INDEX(Ranks!$1:$1048576,$A126,J$1))","v":""},{"$f":"IF($A126=\"N/A\",\"\",INDEX(Ranks!$1:$1048576,$A126,K$1))","v":""},null,{"$f":"IF($A126=\"N/A\",Ref!$B$36,INDEX(Ranks!$1:$1048576,$A126,M$1))","v":""},{"$f":"IF($A126=\"N/A\",Ref!$B$36,INDEX(Ranks!$1:$1048576,$A126,N$1))","v":""},{"$f":"IF($A126=\"N/A\",Ref!$B$36,INDEX(Ranks!$1:$1048576,$A126,O$1))","v":""},{"$f":"IF($A126=\"N/A\",Ref!$B$36,INDEX(Ranks!$1:$1048576,$A126,P$1))","v":""},{"$f":"IF($A126=\"N/A\",Ref!$B$36,INDEX(Ranks!$1:$1048576,$A126,Q$1))","v":""},{"$f":"IF($A126=\"N/A\",Ref!$B$36,INDEX(Ranks!$1:$1048576,$A126,R$1))","v":""},{"$f":"IF($A126=\"N/A\",Ref!$B$36,INDEX(Ranks!$1:$1048576,$A126,S$1))","v":""},{"$f":"IF($A126=\"N/A\",Ref!$B$36,INDEX(Ranks!$1:$1048576,$A126,T$1))","v":""},{"$f":"IF($A126=\"N/A\",Ref!$B$36,INDEX(Ranks!$1:$1048576,$A126,U$1))","v":""},{"$f":"IF($A126=\"N/A\",Ref!$B$36,INDEX(Ranks!$1:$1048576,$A126,V$1))","v":""},{"$f":"IF($A126=\"N/A\",Ref!$B$36,INDEX(Ranks!$1:$1048576,$A126,W$1))","v":""},{"$f":"IF($A126=\"N/A\",Ref!$B$36,INDEX(Ranks!$1:$1048576,$A126,X$1))","v":""},{"$f":"IF($A126=\"N/A\",Ref!$B$36,INDEX(Ranks!$1:$1048576,$A126,Y$1))","v":""},{"$f":"IF($A126=\"N/A\",Ref!$B$36,INDEX(Ranks!$1:$1048576,$A126,Z$1))","v":""},{"$f":"IF($A126=\"N/A\",Ref!$B$36,INDEX(Ranks!$1:$1048576,$A126,AA$1))","v":""},{"$f":"IF($A126=\"N/A\",Ref!$B$36,INDEX(Ranks!$1:$1048576,$A126,AB$1))","v":""},{"$f":"IF($A126=\"N/A\",Ref!$B$36,INDEX(Ranks!$1:$1048576,$A126,AC$1))","v":""},{"$f":"IF($A126=\"N/A\",Ref!$B$36,INDEX(Ranks!$1:$1048576,$A126,AD$1))","v":""},{"$f":"IF($A126=\"N/A\",Ref!$B$36,INDEX(Ranks!$1:$1048576,$A126,AE$1))","v":""},{"$f":"IF($A126=\"N/A\",Ref!$B$36,INDEX(Ranks!$1:$1048576,$A126,AF$1))","v":""},{"$f":"IF($A126=\"N/A\",Ref!$B$36,INDEX(Ranks!$1:$1048576,$A126,AG$1))","v":""},{"$f":"IF($A126=\"N/A\",Ref!$B$36,INDEX(Ranks!$1:$1048576,$A126,AH$1))","v":""},{"$f":"IF($A126=\"N/A\",Ref!$B$36,INDEX(Ranks!$1:$1048576,$A126,AI$1))","v":""},{"$f":"IF($A126=\"N/A\",Ref!$B$36,INDEX(Ranks!$1:$1048576,$A126,AJ$1))","v":""},{"$f":"IF($A126=\"N/A\",Ref!$B$36,INDEX(Ranks!$1:$1048576,$A126,AK$1))","v":""},{"$f":"IF($A126=\"N/A\",Ref!$B$36,INDEX(Ranks!$1:$1048576,$A126,AL$1))","v":""},{"$f":"IF($A126=\"N/A\",Ref!$B$36,INDEX(Ranks!$1:$1048576,$A126,AM$1))","v":""},{"$f":"IF($A126=\"N/A\",Ref!$B$36,INDEX(Ranks!$1:$1048576,$A126,AN$1))","v":""},{"$f":"IF($A126=\"N/A\",Ref!$B$36,INDEX(Ranks!$1:$1048576,$A126,AO$1))","v":""},{"$f":"IF($A126=\"N/A\",Ref!$B$36,INDEX(Ranks!$1:$1048576,$A126,AP$1))","v":""},{"$f":"IF($A126=\"N/A\",Ref!$B$36,INDEX(Ranks!$1:$1048576,$A126,AQ$1))","v":""},{"$f":"IF($A126=\"N/A\",Ref!$B$36,INDEX(Ranks!$1:$1048576,$A126,AR$1))","v":""},{"$f":"IF($A126=\"N/A\",Ref!$B$36,INDEX(Ranks!$1:$1048576,$A126,AS$1))","v":""},{"$f":"IF($A126=\"N/A\",Ref!$B$36,INDEX(Ranks!$1:$1048576,$A126,AT$1))","v":""},{"$f":"IF($A126=\"N/A\",Ref!$B$36,INDEX(Ranks!$1:$1048576,$A126,AU$1))","v":""},{"$f":"IF($A126=\"N/A\",Ref!$B$36,INDEX(Ranks!$1:$1048576,$A126,AV$1))","v":""},{"$f":"IF($A126=\"N/A\",Ref!$B$36,INDEX(Ranks!$1:$1048576,$A126,AW$1))","v":""},{"$f":"IF($A126=\"N/A\",Ref!$B$36,INDEX(Ranks!$1:$1048576,$A126,AX$1))","v":""},{"$f":"IF($A126=\"N/A\",Ref!$B$36,INDEX(Ranks!$1:$1048576,$A126,AY$1))","v":""},{"$f":"IF($A126=\"N/A\",Ref!$B$36,INDEX(Ranks!$1:$1048576,$A126,AZ$1))","v":""},{"$f":"IF($A126=\"N/A\",Ref!$B$36,INDEX(Ranks!$1:$1048576,$A126,BA$1))","v":""},{"$f":"IF($A126=\"N/A\",Ref!$B$36,INDEX(Ranks!$1:$1048576,$A126,BB$1))","v":""},{"$f":"IF($A126=\"N/A\",Ref!$B$36,INDEX(Ranks!$1:$1048576,$A126,BC$1))","v":""},{"$f":"IF($A126=\"N/A\",Ref!$B$36,INDEX(Ranks!$1:$1048576,$A126,BD$1))","v":""},{"$f":"IF($A126=\"N/A\",Ref!$B$36,INDEX(Ranks!$1:$1048576,$A126,BE$1))","v":""},{"$f":"IF($A126=\"N/A\",Ref!$B$36,INDEX(Ranks!$1:$1048576,$A126,BF$1))","v":""},{"$f":"IF($A126=\"N/A\",Ref!$B$36,INDEX(Ranks!$1:$1048576,$A126,BG$1))","v":""},{"$f":"IF($A126=\"N/A\",Ref!$B$36,INDEX(Ranks!$1:$1048576,$A126,BH$1))","v":""},{"$f":"IF($A126=\"N/A\",Ref!$B$36,INDEX(Ranks!$1:$1048576,$A126,BI$1))","v":""},{"$f":"IF($A126=\"N/A\",Ref!$B$36,INDEX(Ranks!$1:$1048576,$A126,BJ$1))","v":""},{"$f":"IF($A126=\"N/A\",Ref!$B$36,INDEX(Ranks!$1:$1048576,$A126,BK$1))","v":""},{"$f":"IF($A126=\"N/A\",Ref!$B$36,INDEX(Ranks!$1:$1048576,$A126,BL$1))","v":""},{"$f":"IF($A126=\"N/A\",Ref!$B$36,INDEX(Ranks!$1:$1048576,$A126,BM$1))","v":""},{"$f":"IF($A126=\"N/A\",Ref!$B$36,INDEX(Ranks!$1:$1048576,$A126,BN$1))","v":""},{"$f":"IF($A126=\"N/A\",Ref!$B$36,INDEX(Ranks!$1:$1048576,$A126,BO$1))","v":""},{"$f":"IF($A126=\"N/A\",Ref!$B$36,INDEX(Ranks!$1:$1048576,$A126,BP$1))","v":""},{"$f":"IF($A126=\"N/A\",Ref!$B$36,INDEX(Ranks!$1:$1048576,$A126,BQ$1))","v":""},{"$f":"IF($A126=\"N/A\",Ref!$B$36,INDEX(Ranks!$1:$1048576,$A126,BR$1))","v":""},{"$f":"IF($A126=\"N/A\",Ref!$B$36,INDEX(Ranks!$1:$1048576,$A126,BS$1))","v":""},{"$f":"IF($A126=\"N/A\",Ref!$B$36,INDEX(Ranks!$1:$1048576,$A126,BT$1))","v":""},{"$f":"IF($A126=\"N/A\",Ref!$B$36,INDEX(Ranks!$1:$1048576,$A126,BU$1))","v":""},{"$f":"IF($A126=\"N/A\",Ref!$B$36,INDEX(Ranks!$1:$1048576,$A126,BV$1))","v":""},{"$f":"IF($A126=\"N/A\",Ref!$B$36,INDEX(Ranks!$1:$1048576,$A126,BW$1))","v":""},{"$f":"IF($A126=\"N/A\",Ref!$B$36,INDEX(Ranks!$1:$1048576,$A126,BX$1))","v":""},{"$f":"IF($A126=\"N/A\",Ref!$B$36,INDEX(Ranks!$1:$1048576,$A126,BY$1))","v":""},{"$f":"IF($A126=\"N/A\",Ref!$B$36,INDEX(Ranks!$1:$1048576,$A126,BZ$1))","v":""},{"$f":"IF($A126=\"N/A\",Ref!$B$36,INDEX(Ranks!$1:$1048576,$A126,CA$1))","v":""},{"$f":"IF($A126=\"N/A\",Ref!$B$36,INDEX(Ranks!$1:$1048576,$A126,CB$1))","v":""},{"$f":"IF($A126=\"N/A\",Ref!$B$36,INDEX(Ranks!$1:$1048576,$A126,CC$1))","v":""},{"$f":"IF($A126=\"N/A\",Ref!$B$36,INDEX(Ranks!$1:$1048576,$A126,CD$1))","v":""},{"$f":"IF($A126=\"N/A\",Ref!$B$36,INDEX(Ranks!$1:$1048576,$A126,CE$1))","v":""},{"$f":"IF($A126=\"N/A\",Ref!$B$36,INDEX(Ranks!$1:$1048576,$A126,CF$1))","v":""},{"$f":"IF($A126=\"N/A\",Ref!$B$36,INDEX(Ranks!$1:$1048576,$A126,CG$1))","v":""},{"$f":"IF($A126=\"N/A\",Ref!$B$36,INDEX(Ranks!$1:$1048576,$A126,CH$1))","v":""},{"$f":"IF($A126=\"N/A\",Ref!$B$36,INDEX(Ranks!$1:$1048576,$A126,CI$1))","v":""},{"$f":"IF($A126=\"N/A\",Ref!$B$36,INDEX(Ranks!$1:$1048576,$A126,CJ$1))","v":""},{"$f":"IF($A126=\"N/A\",Ref!$B$36,INDEX(Ranks!$1:$1048576,$A126,CK$1))","v":""},{"$f":"IF($A126=\"N/A\",Ref!$B$36,INDEX(Ranks!$1:$1048576,$A126,CL$1))","v":""},{"$f":"IF($A126=\"N/A\",Ref!$B$36,INDEX(Ranks!$1:$1048576,$A126,CM$1))","v":""},{"$f":"IF($A126=\"N/A\",Ref!$B$36,INDEX(Ranks!$1:$1048576,$A126,CN$1))","v":""},{"$f":"IF($A126=\"N/A\",Ref!$B$36,INDEX(Ranks!$1:$1048576,$A126,CO$1))","v":""},{"$f":"IF($A126=\"N/A\",Ref!$B$36,INDEX(Ranks!$1:$1048576,$A126,CP$1))","v":""},{"$f":"IF($A126=\"N/A\",Ref!$B$36,INDEX(Ranks!$1:$1048576,$A126,CQ$1))","v":""},{"$f":"IF($A126=\"N/A\",Ref!$B$36,INDEX(Ranks!$1:$1048576,$A126,CR$1))","v":""},{"$f":"IF($A126=\"N/A\",Ref!$B$36,INDEX(Ranks!$1:$1048576,$A126,CS$1))","v":""},{"$f":"IF($A126=\"N/A\",Ref!$B$36,INDEX(Ranks!$1:$1048576,$A126,CT$1))","v":""},{"$f":"IF($A126=\"N/A\",Ref!$B$36,INDEX(Ranks!$1:$1048576,$A126,CU$1))","v":""},{"$f":"IF($A126=\"N/A\",Ref!$B$36,INDEX(Ranks!$1:$1048576,$A126,CV$1))","v":""},{"$f":"IF($A126=\"N/A\",Ref!$B$36,INDEX(Ranks!$1:$1048576,$A126,CW$1))","v":""},{"$f":"IF($A126=\"N/A\",Ref!$B$36,INDEX(Ranks!$1:$1048576,$A126,CX$1))","v":""},{"$f":"IF($A126=\"N/A\",Ref!$B$36,INDEX(Ranks!$1:$1048576,$A126,CY$1))","v":""},{"$f":"IF($A126=\"N/A\",Ref!$B$36,INDEX(Ranks!$1:$1048576,$A126,CZ$1))","v":""},{"$f":"IF($A126=\"N/A\",Ref!$B$36,INDEX(Ranks!$1:$1048576,$A126,DA$1))","v":""},{"$f":"IF($A126=\"N/A\",Ref!$B$36,INDEX(Ranks!$1:$1048576,$A126,DB$1))","v":""},{"$f":"IF($A126=\"N/A\",Ref!$B$36,INDEX(Ranks!$1:$1048576,$A126,DC$1))","v":""},{"$f":"IF($A126=\"N/A\",Ref!$B$36,INDEX(Ranks!$1:$1048576,$A126,DD$1))","v":""},{"$f":"IF($A126=\"N/A\",Ref!$B$36,INDEX(Ranks!$1:$1048576,$A126,DE$1))","v":""},{"$f":"IF($A126=\"N/A\",Ref!$B$36,INDEX(Ranks!$1:$1048576,$A126,DF$1))","v":""},{"$f":"IF($A126=\"N/A\",Ref!$B$36,INDEX(Ranks!$1:$1048576,$A126,DG$1))","v":""},{"$f":"IF($A126=\"N/A\",Ref!$B$36,INDEX(Ranks!$1:$1048576,$A126,DH$1))","v":""},{"$f":"IF($A126=\"N/A\",Ref!$B$36,INDEX(Ranks!$1:$1048576,$A126,DI$1))","v":""},{"$f":"IF($A126=\"N/A\",Ref!$B$36,INDEX(Ranks!$1:$1048576,$A126,DJ$1))","v":""},{"$f":"IF($A126=\"N/A\",Ref!$B$36,INDEX(Ranks!$1:$1048576,$A126,DK$1))","v":""},{"$f":"IF($A126=\"N/A\",Ref!$B$36,INDEX(Ranks!$1:$1048576,$A126,DL$1))","v":""},{"$f":"IF($A126=\"N/A\",Ref!$B$36,INDEX(Ranks!$1:$1048576,$A126,DM$1))","v":""},{"$f":"IF($A126=\"N/A\",Ref!$B$36,INDEX(Ranks!$1:$1048576,$A126,DN$1))","v":""},{"$f":"IF($A126=\"N/A\",Ref!$B$36,INDEX(Ranks!$1:$1048576,$A126,DO$1))","v":""},{"$f":"IF($A126=\"N/A\",Ref!$B$36,INDEX(Ranks!$1:$1048576,$A126,DP$1))","v":""},{"$f":"IF($A126=\"N/A\",Ref!$B$36,INDEX(Ranks!$1:$1048576,$A126,DQ$1))","v":""},{"$f":"IF($A126=\"N/A\",Ref!$B$36,INDEX(Ranks!$1:$1048576,$A126,DR$1))","v":""},{"$f":"IF($A126=\"N/A\",Ref!$B$36,INDEX(Ranks!$1:$1048576,$A126,DS$1))","v":""},{"$f":"IF($A126=\"N/A\",Ref!$B$36,INDEX(Ranks!$1:$1048576,$A126,DT$1))","v":""},{"$f":"IF($A126=\"N/A\",Ref!$B$36,INDEX(Ranks!$1:$1048576,$A126,DU$1))","v":""},{"$f":"IF($A126=\"N/A\",Ref!$B$36,INDEX(Ranks!$1:$1048576,$A126,DV$1))","v":""},{"$f":"IF($A126=\"N/A\",Ref!$B$36,INDEX(Ranks!$1:$1048576,$A126,DW$1))","v":""},{"$f":"IF($A126=\"N/A\",Ref!$B$36,INDEX(Ranks!$1:$1048576,$A126,DX$1))","v":""},{"$f":"IF($A126=\"N/A\",Ref!$B$36,INDEX(Ranks!$1:$1048576,$A126,DY$1))","v":""},{"$f":"IF($A126=\"N/A\",Ref!$B$36,INDEX(Ranks!$1:$1048576,$A126,DZ$1))","v":""},{"$f":"IF($A126=\"N/A\",Ref!$B$36,INDEX(Ranks!$1:$1048576,$A126,EA$1))","v":""},{"$f":"IF($A126=\"N/A\",Ref!$B$36,INDEX(Ranks!$1:$1048576,$A126,EB$1))","v":""}]
[{"$f":"IFERROR(MATCH('Portfolio Page'!L127,Ranks!L:L,0),\"N/A\")","v":"N/A"},null,{"$f":"IF($A127=\"N/A\",\"\",INDEX(Ranks!$1:$1048576,$A127,C$1))","v":""},{"$f":"IF($A127=\"N/A\",Ref!$B$36,INDEX(Ranks!$1:$1048576,$A127,D$1))","v":""},{"$f":"IF($A127=\"N/A\",Ref!$B$36,INDEX(Ranks!$1:$1048576,$A127,E$1))","v":""},{"$f":"IF($A127=\"N/A\",\"\",INDEX(Ranks!$1:$1048576,$A127,F$1))","v":""},{"$f":"IF($A127=\"N/A\",\"\",INDEX(Ranks!$1:$1048576,$A127,G$1))","v":""},{"$f":"IF($A127=\"N/A\",\"\",INDEX(Ranks!$1:$1048576,$A127,H$1))","v":""},{"$f":"IF($A127=\"N/A\",\"\",INDEX(Ranks!$1:$1048576,$A127,I$1))","v":""},{"$f":"IF($A127=\"N/A\",\"\",INDEX(Ranks!$1:$1048576,$A127,J$1))","v":""},{"$f":"IF($A127=\"N/A\",\"\",INDEX(Ranks!$1:$1048576,$A127,K$1))","v":""},null,{"$f":"IF($A127=\"N/A\",Ref!$B$36,INDEX(Ranks!$1:$1048576,$A127,M$1))","v":""},{"$f":"IF($A127=\"N/A\",Ref!$B$36,INDEX(Ranks!$1:$1048576,$A127,N$1))","v":""},{"$f":"IF($A127=\"N/A\",Ref!$B$36,INDEX(Ranks!$1:$1048576,$A127,O$1))","v":""},{"$f":"IF($A127=\"N/A\",Ref!$B$36,INDEX(Ranks!$1:$1048576,$A127,P$1))","v":""},{"$f":"IF($A127=\"N/A\",Ref!$B$36,INDEX(Ranks!$1:$1048576,$A127,Q$1))","v":""},{"$f":"IF($A127=\"N/A\",Ref!$B$36,INDEX(Ranks!$1:$1048576,$A127,R$1))","v":""},{"$f":"IF($A127=\"N/A\",Ref!$B$36,INDEX(Ranks!$1:$1048576,$A127,S$1))","v":""},{"$f":"IF($A127=\"N/A\",Ref!$B$36,INDEX(Ranks!$1:$1048576,$A127,T$1))","v":""},{"$f":"IF($A127=\"N/A\",Ref!$B$36,INDEX(Ranks!$1:$1048576,$A127,U$1))","v":""},{"$f":"IF($A127=\"N/A\",Ref!$B$36,INDEX(Ranks!$1:$1048576,$A127,V$1))","v":""},{"$f":"IF($A127=\"N/A\",Ref!$B$36,INDEX(Ranks!$1:$1048576,$A127,W$1))","v":""},{"$f":"IF($A127=\"N/A\",Ref!$B$36,INDEX(Ranks!$1:$1048576,$A127,X$1))","v":""},{"$f":"IF($A127=\"N/A\",Ref!$B$36,INDEX(Ranks!$1:$1048576,$A127,Y$1))","v":""},{"$f":"IF($A127=\"N/A\",Ref!$B$36,INDEX(Ranks!$1:$1048576,$A127,Z$1))","v":""},{"$f":"IF($A127=\"N/A\",Ref!$B$36,INDEX(Ranks!$1:$1048576,$A127,AA$1))","v":""},{"$f":"IF($A127=\"N/A\",Ref!$B$36,INDEX(Ranks!$1:$1048576,$A127,AB$1))","v":""},{"$f":"IF($A127=\"N/A\",Ref!$B$36,INDEX(Ranks!$1:$1048576,$A127,AC$1))","v":""},{"$f":"IF($A127=\"N/A\",Ref!$B$36,INDEX(Ranks!$1:$1048576,$A127,AD$1))","v":""},{"$f":"IF($A127=\"N/A\",Ref!$B$36,INDEX(Ranks!$1:$1048576,$A127,AE$1))","v":""},{"$f":"IF($A127=\"N/A\",Ref!$B$36,INDEX(Ranks!$1:$1048576,$A127,AF$1))","v":""},{"$f":"IF($A127=\"N/A\",Ref!$B$36,INDEX(Ranks!$1:$1048576,$A127,AG$1))","v":""},{"$f":"IF($A127=\"N/A\",Ref!$B$36,INDEX(Ranks!$1:$1048576,$A127,AH$1))","v":""},{"$f":"IF($A127=\"N/A\",Ref!$B$36,INDEX(Ranks!$1:$1048576,$A127,AI$1))","v":""},{"$f":"IF($A127=\"N/A\",Ref!$B$36,INDEX(Ranks!$1:$1048576,$A127,AJ$1))","v":""},{"$f":"IF($A127=\"N/A\",Ref!$B$36,INDEX(Ranks!$1:$1048576,$A127,AK$1))","v":""},{"$f":"IF($A127=\"N/A\",Ref!$B$36,INDEX(Ranks!$1:$1048576,$A127,AL$1))","v":""},{"$f":"IF($A127=\"N/A\",Ref!$B$36,INDEX(Ranks!$1:$1048576,$A127,AM$1))","v":""},{"$f":"IF($A127=\"N/A\",Ref!$B$36,INDEX(Ranks!$1:$1048576,$A127,AN$1))","v":""},{"$f":"IF($A127=\"N/A\",Ref!$B$36,INDEX(Ranks!$1:$1048576,$A127,AO$1))","v":""},{"$f":"IF($A127=\"N/A\",Ref!$B$36,INDEX(Ranks!$1:$1048576,$A127,AP$1))","v":""},{"$f":"IF($A127=\"N/A\",Ref!$B$36,INDEX(Ranks!$1:$1048576,$A127,AQ$1))","v":""},{"$f":"IF($A127=\"N/A\",Ref!$B$36,INDEX(Ranks!$1:$1048576,$A127,AR$1))","v":""},{"$f":"IF($A127=\"N/A\",Ref!$B$36,INDEX(Ranks!$1:$1048576,$A127,AS$1))","v":""},{"$f":"IF($A127=\"N/A\",Ref!$B$36,INDEX(Ranks!$1:$1048576,$A127,AT$1))","v":""},{"$f":"IF($A127=\"N/A\",Ref!$B$36,INDEX(Ranks!$1:$1048576,$A127,AU$1))","v":""},{"$f":"IF($A127=\"N/A\",Ref!$B$36,INDEX(Ranks!$1:$1048576,$A127,AV$1))","v":""},{"$f":"IF($A127=\"N/A\",Ref!$B$36,INDEX(Ranks!$1:$1048576,$A127,AW$1))","v":""},{"$f":"IF($A127=\"N/A\",Ref!$B$36,INDEX(Ranks!$1:$1048576,$A127,AX$1))","v":""},{"$f":"IF($A127=\"N/A\",Ref!$B$36,INDEX(Ranks!$1:$1048576,$A127,AY$1))","v":""},{"$f":"IF($A127=\"N/A\",Ref!$B$36,INDEX(Ranks!$1:$1048576,$A127,AZ$1))","v":""},{"$f":"IF($A127=\"N/A\",Ref!$B$36,INDEX(Ranks!$1:$1048576,$A127,BA$1))","v":""},{"$f":"IF($A127=\"N/A\",Ref!$B$36,INDEX(Ranks!$1:$1048576,$A127,BB$1))","v":""},{"$f":"IF($A127=\"N/A\",Ref!$B$36,INDEX(Ranks!$1:$1048576,$A127,BC$1))","v":""},{"$f":"IF($A127=\"N/A\",Ref!$B$36,INDEX(Ranks!$1:$1048576,$A127,BD$1))","v":""},{"$f":"IF($A127=\"N/A\",Ref!$B$36,INDEX(Ranks!$1:$1048576,$A127,BE$1))","v":""},{"$f":"IF($A127=\"N/A\",Ref!$B$36,INDEX(Ranks!$1:$1048576,$A127,BF$1))","v":""},{"$f":"IF($A127=\"N/A\",Ref!$B$36,INDEX(Ranks!$1:$1048576,$A127,BG$1))","v":""},{"$f":"IF($A127=\"N/A\",Ref!$B$36,INDEX(Ranks!$1:$1048576,$A127,BH$1))","v":""},{"$f":"IF($A127=\"N/A\",Ref!$B$36,INDEX(Ranks!$1:$1048576,$A127,BI$1))","v":""},{"$f":"IF($A127=\"N/A\",Ref!$B$36,INDEX(Ranks!$1:$1048576,$A127,BJ$1))","v":""},{"$f":"IF($A127=\"N/A\",Ref!$B$36,INDEX(Ranks!$1:$1048576,$A127,BK$1))","v":""},{"$f":"IF($A127=\"N/A\",Ref!$B$36,INDEX(Ranks!$1:$1048576,$A127,BL$1))","v":""},{"$f":"IF($A127=\"N/A\",Ref!$B$36,INDEX(Ranks!$1:$1048576,$A127,BM$1))","v":""},{"$f":"IF($A127=\"N/A\",Ref!$B$36,INDEX(Ranks!$1:$1048576,$A127,BN$1))","v":""},{"$f":"IF($A127=\"N/A\",Ref!$B$36,INDEX(Ranks!$1:$1048576,$A127,BO$1))","v":""},{"$f":"IF($A127=\"N/A\",Ref!$B$36,INDEX(Ranks!$1:$1048576,$A127,BP$1))","v":""},{"$f":"IF($A127=\"N/A\",Ref!$B$36,INDEX(Ranks!$1:$1048576,$A127,BQ$1))","v":""},{"$f":"IF($A127=\"N/A\",Ref!$B$36,INDEX(Ranks!$1:$1048576,$A127,BR$1))","v":""},{"$f":"IF($A127=\"N/A\",Ref!$B$36,INDEX(Ranks!$1:$1048576,$A127,BS$1))","v":""},{"$f":"IF($A127=\"N/A\",Ref!$B$36,INDEX(Ranks!$1:$1048576,$A127,BT$1))","v":""},{"$f":"IF($A127=\"N/A\",Ref!$B$36,INDEX(Ranks!$1:$1048576,$A127,BU$1))","v":""},{"$f":"IF($A127=\"N/A\",Ref!$B$36,INDEX(Ranks!$1:$1048576,$A127,BV$1))","v":""},{"$f":"IF($A127=\"N/A\",Ref!$B$36,INDEX(Ranks!$1:$1048576,$A127,BW$1))","v":""},{"$f":"IF($A127=\"N/A\",Ref!$B$36,INDEX(Ranks!$1:$1048576,$A127,BX$1))","v":""},{"$f":"IF($A127=\"N/A\",Ref!$B$36,INDEX(Ranks!$1:$1048576,$A127,BY$1))","v":""},{"$f":"IF($A127=\"N/A\",Ref!$B$36,INDEX(Ranks!$1:$1048576,$A127,BZ$1))","v":""},{"$f":"IF($A127=\"N/A\",Ref!$B$36,INDEX(Ranks!$1:$1048576,$A127,CA$1))","v":""},{"$f":"IF($A127=\"N/A\",Ref!$B$36,INDEX(Ranks!$1:$1048576,$A127,CB$1))","v":""},{"$f":"IF($A127=\"N/A\",Ref!$B$36,INDEX(Ranks!$1:$1048576,$A127,CC$1))","v":""},{"$f":"IF($A127=\"N/A\",Ref!$B$36,INDEX(Ranks!$1:$1048576,$A127,CD$1))","v":""},{"$f":"IF($A127=\"N/A\",Ref!$B$36,INDEX(Ranks!$1:$1048576,$A127,CE$1))","v":""},{"$f":"IF($A127=\"N/A\",Ref!$B$36,INDEX(Ranks!$1:$1048576,$A127,CF$1))","v":""},{"$f":"IF($A127=\"N/A\",Ref!$B$36,INDEX(Ranks!$1:$1048576,$A127,CG$1))","v":""},{"$f":"IF($A127=\"N/A\",Ref!$B$36,INDEX(Ranks!$1:$1048576,$A127,CH$1))","v":""},{"$f":"IF($A127=\"N/A\",Ref!$B$36,INDEX(Ranks!$1:$1048576,$A127,CI$1))","v":""},{"$f":"IF($A127=\"N/A\",Ref!$B$36,INDEX(Ranks!$1:$1048576,$A127,CJ$1))","v":""},{"$f":"IF($A127=\"N/A\",Ref!$B$36,INDEX(Ranks!$1:$1048576,$A127,CK$1))","v":""},{"$f":"IF($A127=\"N/A\",Ref!$B$36,INDEX(Ranks!$1:$1048576,$A127,CL$1))","v":""},{"$f":"IF($A127=\"N/A\",Ref!$B$36,INDEX(Ranks!$1:$1048576,$A127,CM$1))","v":""},{"$f":"IF($A127=\"N/A\",Ref!$B$36,INDEX(Ranks!$1:$1048576,$A127,CN$1))","v":""},{"$f":"IF($A127=\"N/A\",Ref!$B$36,INDEX(Ranks!$1:$1048576,$A127,CO$1))","v":""},{"$f":"IF($A127=\"N/A\",Ref!$B$36,INDEX(Ranks!$1:$1048576,$A127,CP$1))","v":""},{"$f":"IF($A127=\"N/A\",Ref!$B$36,INDEX(Ranks!$1:$1048576,$A127,CQ$1))","v":""},{"$f":"IF($A127=\"N/A\",Ref!$B$36,INDEX(Ranks!$1:$1048576,$A127,CR$1))","v":""},{"$f":"IF($A127=\"N/A\",Ref!$B$36,INDEX(Ranks!$1:$1048576,$A127,CS$1))","v":""},{"$f":"IF($A127=\"N/A\",Ref!$B$36,INDEX(Ranks!$1:$1048576,$A127,CT$1))","v":""},{"$f":"IF($A127=\"N/A\",Ref!$B$36,INDEX(Ranks!$1:$1048576,$A127,CU$1))","v":""},{"$f":"IF($A127=\"N/A\",Ref!$B$36,INDEX(Ranks!$1:$1048576,$A127,CV$1))","v":""},{"$f":"IF($A127=\"N/A\",Ref!$B$36,INDEX(Ranks!$1:$1048576,$A127,CW$1))","v":""},{"$f":"IF($A127=\"N/A\",Ref!$B$36,INDEX(Ranks!$1:$1048576,$A127,CX$1))","v":""},{"$f":"IF($A127=\"N/A\",Ref!$B$36,INDEX(Ranks!$1:$1048576,$A127,CY$1))","v":""},{"$f":"IF($A127=\"N/A\",Ref!$B$36,INDEX(Ranks!$1:$1048576,$A127,CZ$1))","v":""},{"$f":"IF($A127=\"N/A\",Ref!$B$36,INDEX(Ranks!$1:$1048576,$A127,DA$1))","v":""},{"$f":"IF($A127=\"N/A\",Ref!$B$36,INDEX(Ranks!$1:$1048576,$A127,DB$1))","v":""},{"$f":"IF($A127=\"N/A\",Ref!$B$36,INDEX(Ranks!$1:$1048576,$A127,DC$1))","v":""},{"$f":"IF($A127=\"N/A\",Ref!$B$36,INDEX(Ranks!$1:$1048576,$A127,DD$1))","v":""},{"$f":"IF($A127=\"N/A\",Ref!$B$36,INDEX(Ranks!$1:$1048576,$A127,DE$1))","v":""},{"$f":"IF($A127=\"N/A\",Ref!$B$36,INDEX(Ranks!$1:$1048576,$A127,DF$1))","v":""},{"$f":"IF($A127=\"N/A\",Ref!$B$36,INDEX(Ranks!$1:$1048576,$A127,DG$1))","v":""},{"$f":"IF($A127=\"N/A\",Ref!$B$36,INDEX(Ranks!$1:$1048576,$A127,DH$1))","v":""},{"$f":"IF($A127=\"N/A\",Ref!$B$36,INDEX(Ranks!$1:$1048576,$A127,DI$1))","v":""},{"$f":"IF($A127=\"N/A\",Ref!$B$36,INDEX(Ranks!$1:$1048576,$A127,DJ$1))","v":""},{"$f":"IF($A127=\"N/A\",Ref!$B$36,INDEX(Ranks!$1:$1048576,$A127,DK$1))","v":""},{"$f":"IF($A127=\"N/A\",Ref!$B$36,INDEX(Ranks!$1:$1048576,$A127,DL$1))","v":""},{"$f":"IF($A127=\"N/A\",Ref!$B$36,INDEX(Ranks!$1:$1048576,$A127,DM$1))","v":""},{"$f":"IF($A127=\"N/A\",Ref!$B$36,INDEX(Ranks!$1:$1048576,$A127,DN$1))","v":""},{"$f":"IF($A127=\"N/A\",Ref!$B$36,INDEX(Ranks!$1:$1048576,$A127,DO$1))","v":""},{"$f":"IF($A127=\"N/A\",Ref!$B$36,INDEX(Ranks!$1:$1048576,$A127,DP$1))","v":""},{"$f":"IF($A127=\"N/A\",Ref!$B$36,INDEX(Ranks!$1:$1048576,$A127,DQ$1))","v":""},{"$f":"IF($A127=\"N/A\",Ref!$B$36,INDEX(Ranks!$1:$1048576,$A127,DR$1))","v":""},{"$f":"IF($A127=\"N/A\",Ref!$B$36,INDEX(Ranks!$1:$1048576,$A127,DS$1))","v":""},{"$f":"IF($A127=\"N/A\",Ref!$B$36,INDEX(Ranks!$1:$1048576,$A127,DT$1))","v":""},{"$f":"IF($A127=\"N/A\",Ref!$B$36,INDEX(Ranks!$1:$1048576,$A127,DU$1))","v":""},{"$f":"IF($A127=\"N/A\",Ref!$B$36,INDEX(Ranks!$1:$1048576,$A127,DV$1))","v":""},{"$f":"IF($A127=\"N/A\",Ref!$B$36,INDEX(Ranks!$1:$1048576,$A127,DW$1))","v":""},{"$f":"IF($A127=\"N/A\",Ref!$B$36,INDEX(Ranks!$1:$1048576,$A127,DX$1))","v":""},{"$f":"IF($A127=\"N/A\",Ref!$B$36,INDEX(Ranks!$1:$1048576,$A127,DY$1))","v":""},{"$f":"IF($A127=\"N/A\",Ref!$B$36,INDEX(Ranks!$1:$1048576,$A127,DZ$1))","v":""},{"$f":"IF($A127=\"N/A\",Ref!$B$36,INDEX(Ranks!$1:$1048576,$A127,EA$1))","v":""},{"$f":"IF($A127=\"N/A\",Ref!$B$36,INDEX(Ranks!$1:$1048576,$A127,EB$1))","v":""}]
[{"$f":"IFERROR(MATCH('Portfolio Page'!L128,Ranks!L:L,0),\"N/A\")","v":"N/A"},null,{"$f":"IF($A128=\"N/A\",\"\",INDEX(Ranks!$1:$1048576,$A128,C$1))","v":""},{"$f":"IF($A128=\"N/A\",Ref!$B$36,INDEX(Ranks!$1:$1048576,$A128,D$1))","v":""},{"$f":"IF($A128=\"N/A\",Ref!$B$36,INDEX(Ranks!$1:$1048576,$A128,E$1))","v":""},{"$f":"IF($A128=\"N/A\",\"\",INDEX(Ranks!$1:$1048576,$A128,F$1))","v":""},{"$f":"IF($A128=\"N/A\",\"\",INDEX(Ranks!$1:$1048576,$A128,G$1))","v":""},{"$f":"IF($A128=\"N/A\",\"\",INDEX(Ranks!$1:$1048576,$A128,H$1))","v":""},{"$f":"IF($A128=\"N/A\",\"\",INDEX(Ranks!$1:$1048576,$A128,I$1))","v":""},{"$f":"IF($A128=\"N/A\",\"\",INDEX(Ranks!$1:$1048576,$A128,J$1))","v":""},{"$f":"IF($A128=\"N/A\",\"\",INDEX(Ranks!$1:$1048576,$A128,K$1))","v":""},null,{"$f":"IF($A128=\"N/A\",Ref!$B$36,INDEX(Ranks!$1:$1048576,$A128,M$1))","v":""},{"$f":"IF($A128=\"N/A\",Ref!$B$36,INDEX(Ranks!$1:$1048576,$A128,N$1))","v":""},{"$f":"IF($A128=\"N/A\",Ref!$B$36,INDEX(Ranks!$1:$1048576,$A128,O$1))","v":""},{"$f":"IF($A128=\"N/A\",Ref!$B$36,INDEX(Ranks!$1:$1048576,$A128,P$1))","v":""},{"$f":"IF($A128=\"N/A\",Ref!$B$36,INDEX(Ranks!$1:$1048576,$A128,Q$1))","v":""},{"$f":"IF($A128=\"N/A\",Ref!$B$36,INDEX(Ranks!$1:$1048576,$A128,R$1))","v":""},{"$f":"IF($A128=\"N/A\",Ref!$B$36,INDEX(Ranks!$1:$1048576,$A128,S$1))","v":""},{"$f":"IF($A128=\"N/A\",Ref!$B$36,INDEX(Ranks!$1:$1048576,$A128,T$1))","v":""},{"$f":"IF($A128=\"N/A\",Ref!$B$36,INDEX(Ranks!$1:$1048576,$A128,U$1))","v":""},{"$f":"IF($A128=\"N/A\",Ref!$B$36,INDEX(Ranks!$1:$1048576,$A128,V$1))","v":""},{"$f":"IF($A128=\"N/A\",Ref!$B$36,INDEX(Ranks!$1:$1048576,$A128,W$1))","v":""},{"$f":"IF($A128=\"N/A\",Ref!$B$36,INDEX(Ranks!$1:$1048576,$A128,X$1))","v":""},{"$f":"IF($A128=\"N/A\",Ref!$B$36,INDEX(Ranks!$1:$1048576,$A128,Y$1))","v":""},{"$f":"IF($A128=\"N/A\",Ref!$B$36,INDEX(Ranks!$1:$1048576,$A128,Z$1))","v":""},{"$f":"IF($A128=\"N/A\",Ref!$B$36,INDEX(Ranks!$1:$1048576,$A128,AA$1))","v":""},{"$f":"IF($A128=\"N/A\",Ref!$B$36,INDEX(Ranks!$1:$1048576,$A128,AB$1))","v":""},{"$f":"IF($A128=\"N/A\",Ref!$B$36,INDEX(Ranks!$1:$1048576,$A128,AC$1))","v":""},{"$f":"IF($A128=\"N/A\",Ref!$B$36,INDEX(Ranks!$1:$1048576,$A128,AD$1))","v":""},{"$f":"IF($A128=\"N/A\",Ref!$B$36,INDEX(Ranks!$1:$1048576,$A128,AE$1))","v":""},{"$f":"IF($A128=\"N/A\",Ref!$B$36,INDEX(Ranks!$1:$1048576,$A128,AF$1))","v":""},{"$f":"IF($A128=\"N/A\",Ref!$B$36,INDEX(Ranks!$1:$1048576,$A128,AG$1))","v":""},{"$f":"IF($A128=\"N/A\",Ref!$B$36,INDEX(Ranks!$1:$1048576,$A128,AH$1))","v":""},{"$f":"IF($A128=\"N/A\",Ref!$B$36,INDEX(Ranks!$1:$1048576,$A128,AI$1))","v":""},{"$f":"IF($A128=\"N/A\",Ref!$B$36,INDEX(Ranks!$1:$1048576,$A128,AJ$1))","v":""},{"$f":"IF($A128=\"N/A\",Ref!$B$36,INDEX(Ranks!$1:$1048576,$A128,AK$1))","v":""},{"$f":"IF($A128=\"N/A\",Ref!$B$36,INDEX(Ranks!$1:$1048576,$A128,AL$1))","v":""},{"$f":"IF($A128=\"N/A\",Ref!$B$36,INDEX(Ranks!$1:$1048576,$A128,AM$1))","v":""},{"$f":"IF($A128=\"N/A\",Ref!$B$36,INDEX(Ranks!$1:$1048576,$A128,AN$1))","v":""},{"$f":"IF($A128=\"N/A\",Ref!$B$36,INDEX(Ranks!$1:$1048576,$A128,AO$1))","v":""},{"$f":"IF($A128=\"N/A\",Ref!$B$36,INDEX(Ranks!$1:$1048576,$A128,AP$1))","v":""},{"$f":"IF($A128=\"N/A\",Ref!$B$36,INDEX(Ranks!$1:$1048576,$A128,AQ$1))","v":""},{"$f":"IF($A128=\"N/A\",Ref!$B$36,INDEX(Ranks!$1:$1048576,$A128,AR$1))","v":""},{"$f":"IF($A128=\"N/A\",Ref!$B$36,INDEX(Ranks!$1:$1048576,$A128,AS$1))","v":""},{"$f":"IF($A128=\"N/A\",Ref!$B$36,INDEX(Ranks!$1:$1048576,$A128,AT$1))","v":""},{"$f":"IF($A128=\"N/A\",Ref!$B$36,INDEX(Ranks!$1:$1048576,$A128,AU$1))","v":""},{"$f":"IF($A128=\"N/A\",Ref!$B$36,INDEX(Ranks!$1:$1048576,$A128,AV$1))","v":""},{"$f":"IF($A128=\"N/A\",Ref!$B$36,INDEX(Ranks!$1:$1048576,$A128,AW$1))","v":""},{"$f":"IF($A128=\"N/A\",Ref!$B$36,INDEX(Ranks!$1:$1048576,$A128,AX$1))","v":""},{"$f":"IF($A128=\"N/A\",Ref!$B$36,INDEX(Ranks!$1:$1048576,$A128,AY$1))","v":""},{"$f":"IF($A128=\"N/A\",Ref!$B$36,INDEX(Ranks!$1:$1048576,$A128,AZ$1))","v":""},{"$f":"IF($A128=\"N/A\",Ref!$B$36,INDEX(Ranks!$1:$1048576,$A128,BA$1))","v":""},{"$f":"IF($A128=\"N/A\",Ref!$B$36,INDEX(Ranks!$1:$1048576,$A128,BB$1))","v":""},{"$f":"IF($A128=\"N/A\",Ref!$B$36,INDEX(Ranks!$1:$1048576,$A128,BC$1))","v":""},{"$f":"IF($A128=\"N/A\",Ref!$B$36,INDEX(Ranks!$1:$1048576,$A128,BD$1))","v":""},{"$f":"IF($A128=\"N/A\",Ref!$B$36,INDEX(Ranks!$1:$1048576,$A128,BE$1))","v":""},{"$f":"IF($A128=\"N/A\",Ref!$B$36,INDEX(Ranks!$1:$1048576,$A128,BF$1))","v":""},{"$f":"IF($A128=\"N/A\",Ref!$B$36,INDEX(Ranks!$1:$1048576,$A128,BG$1))","v":""},{"$f":"IF($A128=\"N/A\",Ref!$B$36,INDEX(Ranks!$1:$1048576,$A128,BH$1))","v":""},{"$f":"IF($A128=\"N/A\",Ref!$B$36,INDEX(Ranks!$1:$1048576,$A128,BI$1))","v":""},{"$f":"IF($A128=\"N/A\",Ref!$B$36,INDEX(Ranks!$1:$1048576,$A128,BJ$1))","v":""},{"$f":"IF($A128=\"N/A\",Ref!$B$36,INDEX(Ranks!$1:$1048576,$A128,BK$1))","v":""},{"$f":"IF($A128=\"N/A\",Ref!$B$36,INDEX(Ranks!$1:$1048576,$A128,BL$1))","v":""},{"$f":"IF($A128=\"N/A\",Ref!$B$36,INDEX(Ranks!$1:$1048576,$A128,BM$1))","v":""},{"$f":"IF($A128=\"N/A\",Ref!$B$36,INDEX(Ranks!$1:$1048576,$A128,BN$1))","v":""},{"$f":"IF($A128=\"N/A\",Ref!$B$36,INDEX(Ranks!$1:$1048576,$A128,BO$1))","v":""},{"$f":"IF($A128=\"N/A\",Ref!$B$36,INDEX(Ranks!$1:$1048576,$A128,BP$1))","v":""},{"$f":"IF($A128=\"N/A\",Ref!$B$36,INDEX(Ranks!$1:$1048576,$A128,BQ$1))","v":""},{"$f":"IF($A128=\"N/A\",Ref!$B$36,INDEX(Ranks!$1:$1048576,$A128,BR$1))","v":""},{"$f":"IF($A128=\"N/A\",Ref!$B$36,INDEX(Ranks!$1:$1048576,$A128,BS$1))","v":""},{"$f":"IF($A128=\"N/A\",Ref!$B$36,INDEX(Ranks!$1:$1048576,$A128,BT$1))","v":""},{"$f":"IF($A128=\"N/A\",Ref!$B$36,INDEX(Ranks!$1:$1048576,$A128,BU$1))","v":""},{"$f":"IF($A128=\"N/A\",Ref!$B$36,INDEX(Ranks!$1:$1048576,$A128,BV$1))","v":""},{"$f":"IF($A128=\"N/A\",Ref!$B$36,INDEX(Ranks!$1:$1048576,$A128,BW$1))","v":""},{"$f":"IF($A128=\"N/A\",Ref!$B$36,INDEX(Ranks!$1:$1048576,$A128,BX$1))","v":""},{"$f":"IF($A128=\"N/A\",Ref!$B$36,INDEX(Ranks!$1:$1048576,$A128,BY$1))","v":""},{"$f":"IF($A128=\"N/A\",Ref!$B$36,INDEX(Ranks!$1:$1048576,$A128,BZ$1))","v":""},{"$f":"IF($A128=\"N/A\",Ref!$B$36,INDEX(Ranks!$1:$1048576,$A128,CA$1))","v":""},{"$f":"IF($A128=\"N/A\",Ref!$B$36,INDEX(Ranks!$1:$1048576,$A128,CB$1))","v":""},{"$f":"IF($A128=\"N/A\",Ref!$B$36,INDEX(Ranks!$1:$1048576,$A128,CC$1))","v":""},{"$f":"IF($A128=\"N/A\",Ref!$B$36,INDEX(Ranks!$1:$1048576,$A128,CD$1))","v":""},{"$f":"IF($A128=\"N/A\",Ref!$B$36,INDEX(Ranks!$1:$1048576,$A128,CE$1))","v":""},{"$f":"IF($A128=\"N/A\",Ref!$B$36,INDEX(Ranks!$1:$1048576,$A128,CF$1))","v":""},{"$f":"IF($A128=\"N/A\",Ref!$B$36,INDEX(Ranks!$1:$1048576,$A128,CG$1))","v":""},{"$f":"IF($A128=\"N/A\",Ref!$B$36,INDEX(Ranks!$1:$1048576,$A128,CH$1))","v":""},{"$f":"IF($A128=\"N/A\",Ref!$B$36,INDEX(Ranks!$1:$1048576,$A128,CI$1))","v":""},{"$f":"IF($A128=\"N/A\",Ref!$B$36,INDEX(Ranks!$1:$1048576,$A128,CJ$1))","v":""},{"$f":"IF($A128=\"N/A\",Ref!$B$36,INDEX(Ranks!$1:$1048576,$A128,CK$1))","v":""},{"$f":"IF($A128=\"N/A\",Ref!$B$36,INDEX(Ranks!$1:$1048576,$A128,CL$1))","v":""},{"$f":"IF($A128=\"N/A\",Ref!$B$36,INDEX(Ranks!$1:$1048576,$A128,CM$1))","v":""},{"$f":"IF($A128=\"N/A\",Ref!$B$36,INDEX(Ranks!$1:$1048576,$A128,CN$1))","v":""},{"$f":"IF($A128=\"N/A\",Ref!$B$36,INDEX(Ranks!$1:$1048576,$A128,CO$1))","v":""},{"$f":"IF($A128=\"N/A\",Ref!$B$36,INDEX(Ranks!$1:$1048576,$A128,CP$1))","v":""},{"$f":"IF($A128=\"N/A\",Ref!$B$36,INDEX(Ranks!$1:$1048576,$A128,CQ$1))","v":""},{"$f":"IF($A128=\"N/A\",Ref!$B$36,INDEX(Ranks!$1:$1048576,$A128,CR$1))","v":""},{"$f":"IF($A128=\"N/A\",Ref!$B$36,INDEX(Ranks!$1:$1048576,$A128,CS$1))","v":""},{"$f":"IF($A128=\"N/A\",Ref!$B$36,INDEX(Ranks!$1:$1048576,$A128,CT$1))","v":""},{"$f":"IF($A128=\"N/A\",Ref!$B$36,INDEX(Ranks!$1:$1048576,$A128,CU$1))","v":""},{"$f":"IF($A128=\"N/A\",Ref!$B$36,INDEX(Ranks!$1:$1048576,$A128,CV$1))","v":""},{"$f":"IF($A128=\"N/A\",Ref!$B$36,INDEX(Ranks!$1:$1048576,$A128,CW$1))","v":""},{"$f":"IF($A128=\"N/A\",Ref!$B$36,INDEX(Ranks!$1:$1048576,$A128,CX$1))","v":""},{"$f":"IF($A128=\"N/A\",Ref!$B$36,INDEX(Ranks!$1:$1048576,$A128,CY$1))","v":""},{"$f":"IF($A128=\"N/A\",Ref!$B$36,INDEX(Ranks!$1:$1048576,$A128,CZ$1))","v":""},{"$f":"IF($A128=\"N/A\",Ref!$B$36,INDEX(Ranks!$1:$1048576,$A128,DA$1))","v":""},{"$f":"IF($A128=\"N/A\",Ref!$B$36,INDEX(Ranks!$1:$1048576,$A128,DB$1))","v":""},{"$f":"IF($A128=\"N/A\",Ref!$B$36,INDEX(Ranks!$1:$1048576,$A128,DC$1))","v":""},{"$f":"IF($A128=\"N/A\",Ref!$B$36,INDEX(Ranks!$1:$1048576,$A128,DD$1))","v":""},{"$f":"IF($A128=\"N/A\",Ref!$B$36,INDEX(Ranks!$1:$1048576,$A128,DE$1))","v":""},{"$f":"IF($A128=\"N/A\",Ref!$B$36,INDEX(Ranks!$1:$1048576,$A128,DF$1))","v":""},{"$f":"IF($A128=\"N/A\",Ref!$B$36,INDEX(Ranks!$1:$1048576,$A128,DG$1))","v":""},{"$f":"IF($A128=\"N/A\",Ref!$B$36,INDEX(Ranks!$1:$1048576,$A128,DH$1))","v":""},{"$f":"IF($A128=\"N/A\",Ref!$B$36,INDEX(Ranks!$1:$1048576,$A128,DI$1))","v":""},{"$f":"IF($A128=\"N/A\",Ref!$B$36,INDEX(Ranks!$1:$1048576,$A128,DJ$1))","v":""},{"$f":"IF($A128=\"N/A\",Ref!$B$36,INDEX(Ranks!$1:$1048576,$A128,DK$1))","v":""},{"$f":"IF($A128=\"N/A\",Ref!$B$36,INDEX(Ranks!$1:$1048576,$A128,DL$1))","v":""},{"$f":"IF($A128=\"N/A\",Ref!$B$36,INDEX(Ranks!$1:$1048576,$A128,DM$1))","v":""},{"$f":"IF($A128=\"N/A\",Ref!$B$36,INDEX(Ranks!$1:$1048576,$A128,DN$1))","v":""},{"$f":"IF($A128=\"N/A\",Ref!$B$36,INDEX(Ranks!$1:$1048576,$A128,DO$1))","v":""},{"$f":"IF($A128=\"N/A\",Ref!$B$36,INDEX(Ranks!$1:$1048576,$A128,DP$1))","v":""},{"$f":"IF($A128=\"N/A\",Ref!$B$36,INDEX(Ranks!$1:$1048576,$A128,DQ$1))","v":""},{"$f":"IF($A128=\"N/A\",Ref!$B$36,INDEX(Ranks!$1:$1048576,$A128,DR$1))","v":""},{"$f":"IF($A128=\"N/A\",Ref!$B$36,INDEX(Ranks!$1:$1048576,$A128,DS$1))","v":""},{"$f":"IF($A128=\"N/A\",Ref!$B$36,INDEX(Ranks!$1:$1048576,$A128,DT$1))","v":""},{"$f":"IF($A128=\"N/A\",Ref!$B$36,INDEX(Ranks!$1:$1048576,$A128,DU$1))","v":""},{"$f":"IF($A128=\"N/A\",Ref!$B$36,INDEX(Ranks!$1:$1048576,$A128,DV$1))","v":""},{"$f":"IF($A128=\"N/A\",Ref!$B$36,INDEX(Ranks!$1:$1048576,$A128,DW$1))","v":""},{"$f":"IF($A128=\"N/A\",Ref!$B$36,INDEX(Ranks!$1:$1048576,$A128,DX$1))","v":""},{"$f":"IF($A128=\"N/A\",Ref!$B$36,INDEX(Ranks!$1:$1048576,$A128,DY$1))","v":""},{"$f":"IF($A128=\"N/A\",Ref!$B$36,INDEX(Ranks!$1:$1048576,$A128,DZ$1))","v":""},{"$f":"IF($A128=\"N/A\",Ref!$B$36,INDEX(Ranks!$1:$1048576,$A128,EA$1))","v":""},{"$f":"IF($A128=\"N/A\",Ref!$B$36,INDEX(Ranks!$1:$1048576,$A128,EB$1))","v":""}]
[{"$f":"IFERROR(MATCH('Portfolio Page'!L129,Ranks!L:L,0),\"N/A\")","v":"N/A"},null,{"$f":"IF($A129=\"N/A\",\"\",INDEX(Ranks!$1:$1048576,$A129,C$1))","v":""},{"$f":"IF($A129=\"N/A\",Ref!$B$36,INDEX(Ranks!$1:$1048576,$A129,D$1))","v":""},{"$f":"IF($A129=\"N/A\",Ref!$B$36,INDEX(Ranks!$1:$1048576,$A129,E$1))","v":""},{"$f":"IF($A129=\"N/A\",\"\",INDEX(Ranks!$1:$1048576,$A129,F$1))","v":""},{"$f":"IF($A129=\"N/A\",\"\",INDEX(Ranks!$1:$1048576,$A129,G$1))","v":""},{"$f":"IF($A129=\"N/A\",\"\",INDEX(Ranks!$1:$1048576,$A129,H$1))","v":""},{"$f":"IF($A129=\"N/A\",\"\",INDEX(Ranks!$1:$1048576,$A129,I$1))","v":""},{"$f":"IF($A129=\"N/A\",\"\",INDEX(Ranks!$1:$1048576,$A129,J$1))","v":""},{"$f":"IF($A129=\"N/A\",\"\",INDEX(Ranks!$1:$1048576,$A129,K$1))","v":""},null,{"$f":"IF($A129=\"N/A\",Ref!$B$36,INDEX(Ranks!$1:$1048576,$A129,M$1))","v":""},{"$f":"IF($A129=\"N/A\",Ref!$B$36,INDEX(Ranks!$1:$1048576,$A129,N$1))","v":""},{"$f":"IF($A129=\"N/A\",Ref!$B$36,INDEX(Ranks!$1:$1048576,$A129,O$1))","v":""},{"$f":"IF($A129=\"N/A\",Ref!$B$36,INDEX(Ranks!$1:$1048576,$A129,P$1))","v":""},{"$f":"IF($A129=\"N/A\",Ref!$B$36,INDEX(Ranks!$1:$1048576,$A129,Q$1))","v":""},{"$f":"IF($A129=\"N/A\",Ref!$B$36,INDEX(Ranks!$1:$1048576,$A129,R$1))","v":""},{"$f":"IF($A129=\"N/A\",Ref!$B$36,INDEX(Ranks!$1:$1048576,$A129,S$1))","v":""},{"$f":"IF($A129=\"N/A\",Ref!$B$36,INDEX(Ranks!$1:$1048576,$A129,T$1))","v":""},{"$f":"IF($A129=\"N/A\",Ref!$B$36,INDEX(Ranks!$1:$1048576,$A129,U$1))","v":""},{"$f":"IF($A129=\"N/A\",Ref!$B$36,INDEX(Ranks!$1:$1048576,$A129,V$1))","v":""},{"$f":"IF($A129=\"N/A\",Ref!$B$36,INDEX(Ranks!$1:$1048576,$A129,W$1))","v":""},{"$f":"IF($A129=\"N/A\",Ref!$B$36,INDEX(Ranks!$1:$1048576,$A129,X$1))","v":""},{"$f":"IF($A129=\"N/A\",Ref!$B$36,INDEX(Ranks!$1:$1048576,$A129,Y$1))","v":""},{"$f":"IF($A129=\"N/A\",Ref!$B$36,INDEX(Ranks!$1:$1048576,$A129,Z$1))","v":""},{"$f":"IF($A129=\"N/A\",Ref!$B$36,INDEX(Ranks!$1:$1048576,$A129,AA$1))","v":""},{"$f":"IF($A129=\"N/A\",Ref!$B$36,INDEX(Ranks!$1:$1048576,$A129,AB$1))","v":""},{"$f":"IF($A129=\"N/A\",Ref!$B$36,INDEX(Ranks!$1:$1048576,$A129,AC$1))","v":""},{"$f":"IF($A129=\"N/A\",Ref!$B$36,INDEX(Ranks!$1:$1048576,$A129,AD$1))","v":""},{"$f":"IF($A129=\"N/A\",Ref!$B$36,INDEX(Ranks!$1:$1048576,$A129,AE$1))","v":""},{"$f":"IF($A129=\"N/A\",Ref!$B$36,INDEX(Ranks!$1:$1048576,$A129,AF$1))","v":""},{"$f":"IF($A129=\"N/A\",Ref!$B$36,INDEX(Ranks!$1:$1048576,$A129,AG$1))","v":""},{"$f":"IF($A129=\"N/A\",Ref!$B$36,INDEX(Ranks!$1:$1048576,$A129,AH$1))","v":""},{"$f":"IF($A129=\"N/A\",Ref!$B$36,INDEX(Ranks!$1:$1048576,$A129,AI$1))","v":""},{"$f":"IF($A129=\"N/A\",Ref!$B$36,INDEX(Ranks!$1:$1048576,$A129,AJ$1))","v":""},{"$f":"IF($A129=\"N/A\",Ref!$B$36,INDEX(Ranks!$1:$1048576,$A129,AK$1))","v":""},{"$f":"IF($A129=\"N/A\",Ref!$B$36,INDEX(Ranks!$1:$1048576,$A129,AL$1))","v":""},{"$f":"IF($A129=\"N/A\",Ref!$B$36,INDEX(Ranks!$1:$1048576,$A129,AM$1))","v":""},{"$f":"IF($A129=\"N/A\",Ref!$B$36,INDEX(Ranks!$1:$1048576,$A129,AN$1))","v":""},{"$f":"IF($A129=\"N/A\",Ref!$B$36,INDEX(Ranks!$1:$1048576,$A129,AO$1))","v":""},{"$f":"IF($A129=\"N/A\",Ref!$B$36,INDEX(Ranks!$1:$1048576,$A129,AP$1))","v":""},{"$f":"IF($A129=\"N/A\",Ref!$B$36,INDEX(Ranks!$1:$1048576,$A129,AQ$1))","v":""},{"$f":"IF($A129=\"N/A\",Ref!$B$36,INDEX(Ranks!$1:$1048576,$A129,AR$1))","v":""},{"$f":"IF($A129=\"N/A\",Ref!$B$36,INDEX(Ranks!$1:$1048576,$A129,AS$1))","v":""},{"$f":"IF($A129=\"N/A\",Ref!$B$36,INDEX(Ranks!$1:$1048576,$A129,AT$1))","v":""},{"$f":"IF($A129=\"N/A\",Ref!$B$36,INDEX(Ranks!$1:$1048576,$A129,AU$1))","v":""},{"$f":"IF($A129=\"N/A\",Ref!$B$36,INDEX(Ranks!$1:$1048576,$A129,AV$1))","v":""},{"$f":"IF($A129=\"N/A\",Ref!$B$36,INDEX(Ranks!$1:$1048576,$A129,AW$1))","v":""},{"$f":"IF($A129=\"N/A\",Ref!$B$36,INDEX(Ranks!$1:$1048576,$A129,AX$1))","v":""},{"$f":"IF($A129=\"N/A\",Ref!$B$36,INDEX(Ranks!$1:$1048576,$A129,AY$1))","v":""},{"$f":"IF($A129=\"N/A\",Ref!$B$36,INDEX(Ranks!$1:$1048576,$A129,AZ$1))","v":""},{"$f":"IF($A129=\"N/A\",Ref!$B$36,INDEX(Ranks!$1:$1048576,$A129,BA$1))","v":""},{"$f":"IF($A129=\"N/A\",Ref!$B$36,INDEX(Ranks!$1:$1048576,$A129,BB$1))","v":""},{"$f":"IF($A129=\"N/A\",Ref!$B$36,INDEX(Ranks!$1:$1048576,$A129,BC$1))","v":""},{"$f":"IF($A129=\"N/A\",Ref!$B$36,INDEX(Ranks!$1:$1048576,$A129,BD$1))","v":""},{"$f":"IF($A129=\"N/A\",Ref!$B$36,INDEX(Ranks!$1:$1048576,$A129,BE$1))","v":""},{"$f":"IF($A129=\"N/A\",Ref!$B$36,INDEX(Ranks!$1:$1048576,$A129,BF$1))","v":""},{"$f":"IF($A129=\"N/A\",Ref!$B$36,INDEX(Ranks!$1:$1048576,$A129,BG$1))","v":""},{"$f":"IF($A129=\"N/A\",Ref!$B$36,INDEX(Ranks!$1:$1048576,$A129,BH$1))","v":""},{"$f":"IF($A129=\"N/A\",Ref!$B$36,INDEX(Ranks!$1:$1048576,$A129,BI$1))","v":""},{"$f":"IF($A129=\"N/A\",Ref!$B$36,INDEX(Ranks!$1:$1048576,$A129,BJ$1))","v":""},{"$f":"IF($A129=\"N/A\",Ref!$B$36,INDEX(Ranks!$1:$1048576,$A129,BK$1))","v":""},{"$f":"IF($A129=\"N/A\",Ref!$B$36,INDEX(Ranks!$1:$1048576,$A129,BL$1))","v":""},{"$f":"IF($A129=\"N/A\",Ref!$B$36,INDEX(Ranks!$1:$1048576,$A129,BM$1))","v":""},{"$f":"IF($A129=\"N/A\",Ref!$B$36,INDEX(Ranks!$1:$1048576,$A129,BN$1))","v":""},{"$f":"IF($A129=\"N/A\",Ref!$B$36,INDEX(Ranks!$1:$1048576,$A129,BO$1))","v":""},{"$f":"IF($A129=\"N/A\",Ref!$B$36,INDEX(Ranks!$1:$1048576,$A129,BP$1))","v":""},{"$f":"IF($A129=\"N/A\",Ref!$B$36,INDEX(Ranks!$1:$1048576,$A129,BQ$1))","v":""},{"$f":"IF($A129=\"N/A\",Ref!$B$36,INDEX(Ranks!$1:$1048576,$A129,BR$1))","v":""},{"$f":"IF($A129=\"N/A\",Ref!$B$36,INDEX(Ranks!$1:$1048576,$A129,BS$1))","v":""},{"$f":"IF($A129=\"N/A\",Ref!$B$36,INDEX(Ranks!$1:$1048576,$A129,BT$1))","v":""},{"$f":"IF($A129=\"N/A\",Ref!$B$36,INDEX(Ranks!$1:$1048576,$A129,BU$1))","v":""},{"$f":"IF($A129=\"N/A\",Ref!$B$36,INDEX(Ranks!$1:$1048576,$A129,BV$1))","v":""},{"$f":"IF($A129=\"N/A\",Ref!$B$36,INDEX(Ranks!$1:$1048576,$A129,BW$1))","v":""},{"$f":"IF($A129=\"N/A\",Ref!$B$36,INDEX(Ranks!$1:$1048576,$A129,BX$1))","v":""},{"$f":"IF($A129=\"N/A\",Ref!$B$36,INDEX(Ranks!$1:$1048576,$A129,BY$1))","v":""},{"$f":"IF($A129=\"N/A\",Ref!$B$36,INDEX(Ranks!$1:$1048576,$A129,BZ$1))","v":""},{"$f":"IF($A129=\"N/A\",Ref!$B$36,INDEX(Ranks!$1:$1048576,$A129,CA$1))","v":""},{"$f":"IF($A129=\"N/A\",Ref!$B$36,INDEX(Ranks!$1:$1048576,$A129,CB$1))","v":""},{"$f":"IF($A129=\"N/A\",Ref!$B$36,INDEX(Ranks!$1:$1048576,$A129,CC$1))","v":""},{"$f":"IF($A129=\"N/A\",Ref!$B$36,INDEX(Ranks!$1:$1048576,$A129,CD$1))","v":""},{"$f":"IF($A129=\"N/A\",Ref!$B$36,INDEX(Ranks!$1:$1048576,$A129,CE$1))","v":""},{"$f":"IF($A129=\"N/A\",Ref!$B$36,INDEX(Ranks!$1:$1048576,$A129,CF$1))","v":""},{"$f":"IF($A129=\"N/A\",Ref!$B$36,INDEX(Ranks!$1:$1048576,$A129,CG$1))","v":""},{"$f":"IF($A129=\"N/A\",Ref!$B$36,INDEX(Ranks!$1:$1048576,$A129,CH$1))","v":""},{"$f":"IF($A129=\"N/A\",Ref!$B$36,INDEX(Ranks!$1:$1048576,$A129,CI$1))","v":""},{"$f":"IF($A129=\"N/A\",Ref!$B$36,INDEX(Ranks!$1:$1048576,$A129,CJ$1))","v":""},{"$f":"IF($A129=\"N/A\",Ref!$B$36,INDEX(Ranks!$1:$1048576,$A129,CK$1))","v":""},{"$f":"IF($A129=\"N/A\",Ref!$B$36,INDEX(Ranks!$1:$1048576,$A129,CL$1))","v":""},{"$f":"IF($A129=\"N/A\",Ref!$B$36,INDEX(Ranks!$1:$1048576,$A129,CM$1))","v":""},{"$f":"IF($A129=\"N/A\",Ref!$B$36,INDEX(Ranks!$1:$1048576,$A129,CN$1))","v":""},{"$f":"IF($A129=\"N/A\",Ref!$B$36,INDEX(Ranks!$1:$1048576,$A129,CO$1))","v":""},{"$f":"IF($A129=\"N/A\",Ref!$B$36,INDEX(Ranks!$1:$1048576,$A129,CP$1))","v":""},{"$f":"IF($A129=\"N/A\",Ref!$B$36,INDEX(Ranks!$1:$1048576,$A129,CQ$1))","v":""},{"$f":"IF($A129=\"N/A\",Ref!$B$36,INDEX(Ranks!$1:$1048576,$A129,CR$1))","v":""},{"$f":"IF($A129=\"N/A\",Ref!$B$36,INDEX(Ranks!$1:$1048576,$A129,CS$1))","v":""},{"$f":"IF($A129=\"N/A\",Ref!$B$36,INDEX(Ranks!$1:$1048576,$A129,CT$1))","v":""},{"$f":"IF($A129=\"N/A\",Ref!$B$36,INDEX(Ranks!$1:$1048576,$A129,CU$1))","v":""},{"$f":"IF($A129=\"N/A\",Ref!$B$36,INDEX(Ranks!$1:$1048576,$A129,CV$1))","v":""},{"$f":"IF($A129=\"N/A\",Ref!$B$36,INDEX(Ranks!$1:$1048576,$A129,CW$1))","v":""},{"$f":"IF($A129=\"N/A\",Ref!$B$36,INDEX(Ranks!$1:$1048576,$A129,CX$1))","v":""},{"$f":"IF($A129=\"N/A\",Ref!$B$36,INDEX(Ranks!$1:$1048576,$A129,CY$1))","v":""},{"$f":"IF($A129=\"N/A\",Ref!$B$36,INDEX(Ranks!$1:$1048576,$A129,CZ$1))","v":""},{"$f":"IF($A129=\"N/A\",Ref!$B$36,INDEX(Ranks!$1:$1048576,$A129,DA$1))","v":""},{"$f":"IF($A129=\"N/A\",Ref!$B$36,INDEX(Ranks!$1:$1048576,$A129,DB$1))","v":""},{"$f":"IF($A129=\"N/A\",Ref!$B$36,INDEX(Ranks!$1:$1048576,$A129,DC$1))","v":""},{"$f":"IF($A129=\"N/A\",Ref!$B$36,INDEX(Ranks!$1:$1048576,$A129,DD$1))","v":""},{"$f":"IF($A129=\"N/A\",Ref!$B$36,INDEX(Ranks!$1:$1048576,$A129,DE$1))","v":""},{"$f":"IF($A129=\"N/A\",Ref!$B$36,INDEX(Ranks!$1:$1048576,$A129,DF$1))","v":""},{"$f":"IF($A129=\"N/A\",Ref!$B$36,INDEX(Ranks!$1:$1048576,$A129,DG$1))","v":""},{"$f":"IF($A129=\"N/A\",Ref!$B$36,INDEX(Ranks!$1:$1048576,$A129,DH$1))","v":""},{"$f":"IF($A129=\"N/A\",Ref!$B$36,INDEX(Ranks!$1:$1048576,$A129,DI$1))","v":""},{"$f":"IF($A129=\"N/A\",Ref!$B$36,INDEX(Ranks!$1:$1048576,$A129,DJ$1))","v":""},{"$f":"IF($A129=\"N/A\",Ref!$B$36,INDEX(Ranks!$1:$1048576,$A129,DK$1))","v":""},{"$f":"IF($A129=\"N/A\",Ref!$B$36,INDEX(Ranks!$1:$1048576,$A129,DL$1))","v":""},{"$f":"IF($A129=\"N/A\",Ref!$B$36,INDEX(Ranks!$1:$1048576,$A129,DM$1))","v":""},{"$f":"IF($A129=\"N/A\",Ref!$B$36,INDEX(Ranks!$1:$1048576,$A129,DN$1))","v":""},{"$f":"IF($A129=\"N/A\",Ref!$B$36,INDEX(Ranks!$1:$1048576,$A129,DO$1))","v":""},{"$f":"IF($A129=\"N/A\",Ref!$B$36,INDEX(Ranks!$1:$1048576,$A129,DP$1))","v":""},{"$f":"IF($A129=\"N/A\",Ref!$B$36,INDEX(Ranks!$1:$1048576,$A129,DQ$1))","v":""},{"$f":"IF($A129=\"N/A\",Ref!$B$36,INDEX(Ranks!$1:$1048576,$A129,DR$1))","v":""},{"$f":"IF($A129=\"N/A\",Ref!$B$36,INDEX(Ranks!$1:$1048576,$A129,DS$1))","v":""},{"$f":"IF($A129=\"N/A\",Ref!$B$36,INDEX(Ranks!$1:$1048576,$A129,DT$1))","v":""},{"$f":"IF($A129=\"N/A\",Ref!$B$36,INDEX(Ranks!$1:$1048576,$A129,DU$1))","v":""},{"$f":"IF($A129=\"N/A\",Ref!$B$36,INDEX(Ranks!$1:$1048576,$A129,DV$1))","v":""},{"$f":"IF($A129=\"N/A\",Ref!$B$36,INDEX(Ranks!$1:$1048576,$A129,DW$1))","v":""},{"$f":"IF($A129=\"N/A\",Ref!$B$36,INDEX(Ranks!$1:$1048576,$A129,DX$1))","v":""},{"$f":"IF($A129=\"N/A\",Ref!$B$36,INDEX(Ranks!$1:$1048576,$A129,DY$1))","v":""},{"$f":"IF($A129=\"N/A\",Ref!$B$36,INDEX(Ranks!$1:$1048576,$A129,DZ$1))","v":""},{"$f":"IF($A129=\"N/A\",Ref!$B$36,INDEX(Ranks!$1:$1048576,$A129,EA$1))","v":""},{"$f":"IF($A129=\"N/A\",Ref!$B$36,INDEX(Ranks!$1:$1048576,$A129,EB$1))","v":""}]
[{"$f":"IFERROR(MATCH('Portfolio Page'!L130,Ranks!L:L,0),\"N/A\")","v":"N/A"},null,{"$f":"IF($A130=\"N/A\",\"\",INDEX(Ranks!$1:$1048576,$A130,C$1))","v":""},{"$f":"IF($A130=\"N/A\",Ref!$B$36,INDEX(Ranks!$1:$1048576,$A130,D$1))","v":""},{"$f":"IF($A130=\"N/A\",Ref!$B$36,INDEX(Ranks!$1:$1048576,$A130,E$1))","v":""},{"$f":"IF($A130=\"N/A\",\"\",INDEX(Ranks!$1:$1048576,$A130,F$1))","v":""},{"$f":"IF($A130=\"N/A\",\"\",INDEX(Ranks!$1:$1048576,$A130,G$1))","v":""},{"$f":"IF($A130=\"N/A\",\"\",INDEX(Ranks!$1:$1048576,$A130,H$1))","v":""},{"$f":"IF($A130=\"N/A\",\"\",INDEX(Ranks!$1:$1048576,$A130,I$1))","v":""},{"$f":"IF($A130=\"N/A\",\"\",INDEX(Ranks!$1:$1048576,$A130,J$1))","v":""},{"$f":"IF($A130=\"N/A\",\"\",INDEX(Ranks!$1:$1048576,$A130,K$1))","v":""},null,{"$f":"IF($A130=\"N/A\",Ref!$B$36,INDEX(Ranks!$1:$1048576,$A130,M$1))","v":""},{"$f":"IF($A130=\"N/A\",Ref!$B$36,INDEX(Ranks!$1:$1048576,$A130,N$1))","v":""},{"$f":"IF($A130=\"N/A\",Ref!$B$36,INDEX(Ranks!$1:$1048576,$A130,O$1))","v":""},{"$f":"IF($A130=\"N/A\",Ref!$B$36,INDEX(Ranks!$1:$1048576,$A130,P$1))","v":""},{"$f":"IF($A130=\"N/A\",Ref!$B$36,INDEX(Ranks!$1:$1048576,$A130,Q$1))","v":""},{"$f":"IF($A130=\"N/A\",Ref!$B$36,INDEX(Ranks!$1:$1048576,$A130,R$1))","v":""},{"$f":"IF($A130=\"N/A\",Ref!$B$36,INDEX(Ranks!$1:$1048576,$A130,S$1))","v":""},{"$f":"IF($A130=\"N/A\",Ref!$B$36,INDEX(Ranks!$1:$1048576,$A130,T$1))","v":""},{"$f":"IF($A130=\"N/A\",Ref!$B$36,INDEX(Ranks!$1:$1048576,$A130,U$1))","v":""},{"$f":"IF($A130=\"N/A\",Ref!$B$36,INDEX(Ranks!$1:$1048576,$A130,V$1))","v":""},{"$f":"IF($A130=\"N/A\",Ref!$B$36,INDEX(Ranks!$1:$1048576,$A130,W$1))","v":""},{"$f":"IF($A130=\"N/A\",Ref!$B$36,INDEX(Ranks!$1:$1048576,$A130,X$1))","v":""},{"$f":"IF($A130=\"N/A\",Ref!$B$36,INDEX(Ranks!$1:$1048576,$A130,Y$1))","v":""},{"$f":"IF($A130=\"N/A\",Ref!$B$36,INDEX(Ranks!$1:$1048576,$A130,Z$1))","v":""},{"$f":"IF($A130=\"N/A\",Ref!$B$36,INDEX(Ranks!$1:$1048576,$A130,AA$1))","v":""},{"$f":"IF($A130=\"N/A\",Ref!$B$36,INDEX(Ranks!$1:$1048576,$A130,AB$1))","v":""},{"$f":"IF($A130=\"N/A\",Ref!$B$36,INDEX(Ranks!$1:$1048576,$A130,AC$1))","v":""},{"$f":"IF($A130=\"N/A\",Ref!$B$36,INDEX(Ranks!$1:$1048576,$A130,AD$1))","v":""},{"$f":"IF($A130=\"N/A\",Ref!$B$36,INDEX(Ranks!$1:$1048576,$A130,AE$1))","v":""},{"$f":"IF($A130=\"N/A\",Ref!$B$36,INDEX(Ranks!$1:$1048576,$A130,AF$1))","v":""},{"$f":"IF($A130=\"N/A\",Ref!$B$36,INDEX(Ranks!$1:$1048576,$A130,AG$1))","v":""},{"$f":"IF($A130=\"N/A\",Ref!$B$36,INDEX(Ranks!$1:$1048576,$A130,AH$1))","v":""},{"$f":"IF($A130=\"N/A\",Ref!$B$36,INDEX(Ranks!$1:$1048576,$A130,AI$1))","v":""},{"$f":"IF($A130=\"N/A\",Ref!$B$36,INDEX(Ranks!$1:$1048576,$A130,AJ$1))","v":""},{"$f":"IF($A130=\"N/A\",Ref!$B$36,INDEX(Ranks!$1:$1048576,$A130,AK$1))","v":""},{"$f":"IF($A130=\"N/A\",Ref!$B$36,INDEX(Ranks!$1:$1048576,$A130,AL$1))","v":""},{"$f":"IF($A130=\"N/A\",Ref!$B$36,INDEX(Ranks!$1:$1048576,$A130,AM$1))","v":""},{"$f":"IF($A130=\"N/A\",Ref!$B$36,INDEX(Ranks!$1:$1048576,$A130,AN$1))","v":""},{"$f":"IF($A130=\"N/A\",Ref!$B$36,INDEX(Ranks!$1:$1048576,$A130,AO$1))","v":""},{"$f":"IF($A130=\"N/A\",Ref!$B$36,INDEX(Ranks!$1:$1048576,$A130,AP$1))","v":""},{"$f":"IF($A130=\"N/A\",Ref!$B$36,INDEX(Ranks!$1:$1048576,$A130,AQ$1))","v":""},{"$f":"IF($A130=\"N/A\",Ref!$B$36,INDEX(Ranks!$1:$1048576,$A130,AR$1))","v":""},{"$f":"IF($A130=\"N/A\",Ref!$B$36,INDEX(Ranks!$1:$1048576,$A130,AS$1))","v":""},{"$f":"IF($A130=\"N/A\",Ref!$B$36,INDEX(Ranks!$1:$1048576,$A130,AT$1))","v":""},{"$f":"IF($A130=\"N/A\",Ref!$B$36,INDEX(Ranks!$1:$1048576,$A130,AU$1))","v":""},{"$f":"IF($A130=\"N/A\",Ref!$B$36,INDEX(Ranks!$1:$1048576,$A130,AV$1))","v":""},{"$f":"IF($A130=\"N/A\",Ref!$B$36,INDEX(Ranks!$1:$1048576,$A130,AW$1))","v":""},{"$f":"IF($A130=\"N/A\",Ref!$B$36,INDEX(Ranks!$1:$1048576,$A130,AX$1))","v":""},{"$f":"IF($A130=\"N/A\",Ref!$B$36,INDEX(Ranks!$1:$1048576,$A130,AY$1))","v":""},{"$f":"IF($A130=\"N/A\",Ref!$B$36,INDEX(Ranks!$1:$1048576,$A130,AZ$1))","v":""},{"$f":"IF($A130=\"N/A\",Ref!$B$36,INDEX(Ranks!$1:$1048576,$A130,BA$1))","v":""},{"$f":"IF($A130=\"N/A\",Ref!$B$36,INDEX(Ranks!$1:$1048576,$A130,BB$1))","v":""},{"$f":"IF($A130=\"N/A\",Ref!$B$36,INDEX(Ranks!$1:$1048576,$A130,BC$1))","v":""},{"$f":"IF($A130=\"N/A\",Ref!$B$36,INDEX(Ranks!$1:$1048576,$A130,BD$1))","v":""},{"$f":"IF($A130=\"N/A\",Ref!$B$36,INDEX(Ranks!$1:$1048576,$A130,BE$1))","v":""},{"$f":"IF($A130=\"N/A\",Ref!$B$36,INDEX(Ranks!$1:$1048576,$A130,BF$1))","v":""},{"$f":"IF($A130=\"N/A\",Ref!$B$36,INDEX(Ranks!$1:$1048576,$A130,BG$1))","v":""},{"$f":"IF($A130=\"N/A\",Ref!$B$36,INDEX(Ranks!$1:$1048576,$A130,BH$1))","v":""},{"$f":"IF($A130=\"N/A\",Ref!$B$36,INDEX(Ranks!$1:$1048576,$A130,BI$1))","v":""},{"$f":"IF($A130=\"N/A\",Ref!$B$36,INDEX(Ranks!$1:$1048576,$A130,BJ$1))","v":""},{"$f":"IF($A130=\"N/A\",Ref!$B$36,INDEX(Ranks!$1:$1048576,$A130,BK$1))","v":""},{"$f":"IF($A130=\"N/A\",Ref!$B$36,INDEX(Ranks!$1:$1048576,$A130,BL$1))","v":""},{"$f":"IF($A130=\"N/A\",Ref!$B$36,INDEX(Ranks!$1:$1048576,$A130,BM$1))","v":""},{"$f":"IF($A130=\"N/A\",Ref!$B$36,INDEX(Ranks!$1:$1048576,$A130,BN$1))","v":""},{"$f":"IF($A130=\"N/A\",Ref!$B$36,INDEX(Ranks!$1:$1048576,$A130,BO$1))","v":""},{"$f":"IF($A130=\"N/A\",Ref!$B$36,INDEX(Ranks!$1:$1048576,$A130,BP$1))","v":""},{"$f":"IF($A130=\"N/A\",Ref!$B$36,INDEX(Ranks!$1:$1048576,$A130,BQ$1))","v":""},{"$f":"IF($A130=\"N/A\",Ref!$B$36,INDEX(Ranks!$1:$1048576,$A130,BR$1))","v":""},{"$f":"IF($A130=\"N/A\",Ref!$B$36,INDEX(Ranks!$1:$1048576,$A130,BS$1))","v":""},{"$f":"IF($A130=\"N/A\",Ref!$B$36,INDEX(Ranks!$1:$1048576,$A130,BT$1))","v":""},{"$f":"IF($A130=\"N/A\",Ref!$B$36,INDEX(Ranks!$1:$1048576,$A130,BU$1))","v":""},{"$f":"IF($A130=\"N/A\",Ref!$B$36,INDEX(Ranks!$1:$1048576,$A130,BV$1))","v":""},{"$f":"IF($A130=\"N/A\",Ref!$B$36,INDEX(Ranks!$1:$1048576,$A130,BW$1))","v":""},{"$f":"IF($A130=\"N/A\",Ref!$B$36,INDEX(Ranks!$1:$1048576,$A130,BX$1))","v":""},{"$f":"IF($A130=\"N/A\",Ref!$B$36,INDEX(Ranks!$1:$1048576,$A130,BY$1))","v":""},{"$f":"IF($A130=\"N/A\",Ref!$B$36,INDEX(Ranks!$1:$1048576,$A130,BZ$1))","v":""},{"$f":"IF($A130=\"N/A\",Ref!$B$36,INDEX(Ranks!$1:$1048576,$A130,CA$1))","v":""},{"$f":"IF($A130=\"N/A\",Ref!$B$36,INDEX(Ranks!$1:$1048576,$A130,CB$1))","v":""},{"$f":"IF($A130=\"N/A\",Ref!$B$36,INDEX(Ranks!$1:$1048576,$A130,CC$1))","v":""},{"$f":"IF($A130=\"N/A\",Ref!$B$36,INDEX(Ranks!$1:$1048576,$A130,CD$1))","v":""},{"$f":"IF($A130=\"N/A\",Ref!$B$36,INDEX(Ranks!$1:$1048576,$A130,CE$1))","v":""},{"$f":"IF($A130=\"N/A\",Ref!$B$36,INDEX(Ranks!$1:$1048576,$A130,CF$1))","v":""},{"$f":"IF($A130=\"N/A\",Ref!$B$36,INDEX(Ranks!$1:$1048576,$A130,CG$1))","v":""},{"$f":"IF($A130=\"N/A\",Ref!$B$36,INDEX(Ranks!$1:$1048576,$A130,CH$1))","v":""},{"$f":"IF($A130=\"N/A\",Ref!$B$36,INDEX(Ranks!$1:$1048576,$A130,CI$1))","v":""},{"$f":"IF($A130=\"N/A\",Ref!$B$36,INDEX(Ranks!$1:$1048576,$A130,CJ$1))","v":""},{"$f":"IF($A130=\"N/A\",Ref!$B$36,INDEX(Ranks!$1:$1048576,$A130,CK$1))","v":""},{"$f":"IF($A130=\"N/A\",Ref!$B$36,INDEX(Ranks!$1:$1048576,$A130,CL$1))","v":""},{"$f":"IF($A130=\"N/A\",Ref!$B$36,INDEX(Ranks!$1:$1048576,$A130,CM$1))","v":""},{"$f":"IF($A130=\"N/A\",Ref!$B$36,INDEX(Ranks!$1:$1048576,$A130,CN$1))","v":""},{"$f":"IF($A130=\"N/A\",Ref!$B$36,INDEX(Ranks!$1:$1048576,$A130,CO$1))","v":""},{"$f":"IF($A130=\"N/A\",Ref!$B$36,INDEX(Ranks!$1:$1048576,$A130,CP$1))","v":""},{"$f":"IF($A130=\"N/A\",Ref!$B$36,INDEX(Ranks!$1:$1048576,$A130,CQ$1))","v":""},{"$f":"IF($A130=\"N/A\",Ref!$B$36,INDEX(Ranks!$1:$1048576,$A130,CR$1))","v":""},{"$f":"IF($A130=\"N/A\",Ref!$B$36,INDEX(Ranks!$1:$1048576,$A130,CS$1))","v":""},{"$f":"IF($A130=\"N/A\",Ref!$B$36,INDEX(Ranks!$1:$1048576,$A130,CT$1))","v":""},{"$f":"IF($A130=\"N/A\",Ref!$B$36,INDEX(Ranks!$1:$1048576,$A130,CU$1))","v":""},{"$f":"IF($A130=\"N/A\",Ref!$B$36,INDEX(Ranks!$1:$1048576,$A130,CV$1))","v":""},{"$f":"IF($A130=\"N/A\",Ref!$B$36,INDEX(Ranks!$1:$1048576,$A130,CW$1))","v":""},{"$f":"IF($A130=\"N/A\",Ref!$B$36,INDEX(Ranks!$1:$1048576,$A130,CX$1))","v":""},{"$f":"IF($A130=\"N/A\",Ref!$B$36,INDEX(Ranks!$1:$1048576,$A130,CY$1))","v":""},{"$f":"IF($A130=\"N/A\",Ref!$B$36,INDEX(Ranks!$1:$1048576,$A130,CZ$1))","v":""},{"$f":"IF($A130=\"N/A\",Ref!$B$36,INDEX(Ranks!$1:$1048576,$A130,DA$1))","v":""},{"$f":"IF($A130=\"N/A\",Ref!$B$36,INDEX(Ranks!$1:$1048576,$A130,DB$1))","v":""},{"$f":"IF($A130=\"N/A\",Ref!$B$36,INDEX(Ranks!$1:$1048576,$A130,DC$1))","v":""},{"$f":"IF($A130=\"N/A\",Ref!$B$36,INDEX(Ranks!$1:$1048576,$A130,DD$1))","v":""},{"$f":"IF($A130=\"N/A\",Ref!$B$36,INDEX(Ranks!$1:$1048576,$A130,DE$1))","v":""},{"$f":"IF($A130=\"N/A\",Ref!$B$36,INDEX(Ranks!$1:$1048576,$A130,DF$1))","v":""},{"$f":"IF($A130=\"N/A\",Ref!$B$36,INDEX(Ranks!$1:$1048576,$A130,DG$1))","v":""},{"$f":"IF($A130=\"N/A\",Ref!$B$36,INDEX(Ranks!$1:$1048576,$A130,DH$1))","v":""},{"$f":"IF($A130=\"N/A\",Ref!$B$36,INDEX(Ranks!$1:$1048576,$A130,DI$1))","v":""},{"$f":"IF($A130=\"N/A\",Ref!$B$36,INDEX(Ranks!$1:$1048576,$A130,DJ$1))","v":""},{"$f":"IF($A130=\"N/A\",Ref!$B$36,INDEX(Ranks!$1:$1048576,$A130,DK$1))","v":""},{"$f":"IF($A130=\"N/A\",Ref!$B$36,INDEX(Ranks!$1:$1048576,$A130,DL$1))","v":""},{"$f":"IF($A130=\"N/A\",Ref!$B$36,INDEX(Ranks!$1:$1048576,$A130,DM$1))","v":""},{"$f":"IF($A130=\"N/A\",Ref!$B$36,INDEX(Ranks!$1:$1048576,$A130,DN$1))","v":""},{"$f":"IF($A130=\"N/A\",Ref!$B$36,INDEX(Ranks!$1:$1048576,$A130,DO$1))","v":""},{"$f":"IF($A130=\"N/A\",Ref!$B$36,INDEX(Ranks!$1:$1048576,$A130,DP$1))","v":""},{"$f":"IF($A130=\"N/A\",Ref!$B$36,INDEX(Ranks!$1:$1048576,$A130,DQ$1))","v":""},{"$f":"IF($A130=\"N/A\",Ref!$B$36,INDEX(Ranks!$1:$1048576,$A130,DR$1))","v":""},{"$f":"IF($A130=\"N/A\",Ref!$B$36,INDEX(Ranks!$1:$1048576,$A130,DS$1))","v":""},{"$f":"IF($A130=\"N/A\",Ref!$B$36,INDEX(Ranks!$1:$1048576,$A130,DT$1))","v":""},{"$f":"IF($A130=\"N/A\",Ref!$B$36,INDEX(Ranks!$1:$1048576,$A130,DU$1))","v":""},{"$f":"IF($A130=\"N/A\",Ref!$B$36,INDEX(Ranks!$1:$1048576,$A130,DV$1))","v":""},{"$f":"IF($A130=\"N/A\",Ref!$B$36,INDEX(Ranks!$1:$1048576,$A130,DW$1))","v":""},{"$f":"IF($A130=\"N/A\",Ref!$B$36,INDEX(Ranks!$1:$1048576,$A130,DX$1))","v":""},{"$f":"IF($A130=\"N/A\",Ref!$B$36,INDEX(Ranks!$1:$1048576,$A130,DY$1))","v":""},{"$f":"IF($A130=\"N/A\",Ref!$B$36,INDEX(Ranks!$1:$1048576,$A130,DZ$1))","v":""},{"$f":"IF($A130=\"N/A\",Ref!$B$36,INDEX(Ranks!$1:$1048576,$A130,EA$1))","v":""},{"$f":"IF($A130=\"N/A\",Ref!$B$36,INDEX(Ranks!$1:$1048576,$A130,EB$1))","v":""}]
[{"$f":"IFERROR(MATCH('Portfolio Page'!L131,Ranks!L:L,0),\"N/A\")","v":"N/A"},null,{"$f":"IF($A131=\"N/A\",\"\",INDEX(Ranks!$1:$1048576,$A131,C$1))","v":""},{"$f":"IF($A131=\"N/A\",Ref!$B$36,INDEX(Ranks!$1:$1048576,$A131,D$1))","v":""},{"$f":"IF($A131=\"N/A\",Ref!$B$36,INDEX(Ranks!$1:$1048576,$A131,E$1))","v":""},{"$f":"IF($A131=\"N/A\",\"\",INDEX(Ranks!$1:$1048576,$A131,F$1))","v":""},{"$f":"IF($A131=\"N/A\",\"\",INDEX(Ranks!$1:$1048576,$A131,G$1))","v":""},{"$f":"IF($A131=\"N/A\",\"\",INDEX(Ranks!$1:$1048576,$A131,H$1))","v":""},{"$f":"IF($A131=\"N/A\",\"\",INDEX(Ranks!$1:$1048576,$A131,I$1))","v":""},{"$f":"IF($A131=\"N/A\",\"\",INDEX(Ranks!$1:$1048576,$A131,J$1))","v":""},{"$f":"IF($A131=\"N/A\",\"\",INDEX(Ranks!$1:$1048576,$A131,K$1))","v":""},null,{"$f":"IF($A131=\"N/A\",Ref!$B$36,INDEX(Ranks!$1:$1048576,$A131,M$1))","v":""},{"$f":"IF($A131=\"N/A\",Ref!$B$36,INDEX(Ranks!$1:$1048576,$A131,N$1))","v":""},{"$f":"IF($A131=\"N/A\",Ref!$B$36,INDEX(Ranks!$1:$1048576,$A131,O$1))","v":""},{"$f":"IF($A131=\"N/A\",Ref!$B$36,INDEX(Ranks!$1:$1048576,$A131,P$1))","v":""},{"$f":"IF($A131=\"N/A\",Ref!$B$36,INDEX(Ranks!$1:$1048576,$A131,Q$1))","v":""},{"$f":"IF($A131=\"N/A\",Ref!$B$36,INDEX(Ranks!$1:$1048576,$A131,R$1))","v":""},{"$f":"IF($A131=\"N/A\",Ref!$B$36,INDEX(Ranks!$1:$1048576,$A131,S$1))","v":""},{"$f":"IF($A131=\"N/A\",Ref!$B$36,INDEX(Ranks!$1:$1048576,$A131,T$1))","v":""},{"$f":"IF($A131=\"N/A\",Ref!$B$36,INDEX(Ranks!$1:$1048576,$A131,U$1))","v":""},{"$f":"IF($A131=\"N/A\",Ref!$B$36,INDEX(Ranks!$1:$1048576,$A131,V$1))","v":""},{"$f":"IF($A131=\"N/A\",Ref!$B$36,INDEX(Ranks!$1:$1048576,$A131,W$1))","v":""},{"$f":"IF($A131=\"N/A\",Ref!$B$36,INDEX(Ranks!$1:$1048576,$A131,X$1))","v":""},{"$f":"IF($A131=\"N/A\",Ref!$B$36,INDEX(Ranks!$1:$1048576,$A131,Y$1))","v":""},{"$f":"IF($A131=\"N/A\",Ref!$B$36,INDEX(Ranks!$1:$1048576,$A131,Z$1))","v":""},{"$f":"IF($A131=\"N/A\",Ref!$B$36,INDEX(Ranks!$1:$1048576,$A131,AA$1))","v":""},{"$f":"IF($A131=\"N/A\",Ref!$B$36,INDEX(Ranks!$1:$1048576,$A131,AB$1))","v":""},{"$f":"IF($A131=\"N/A\",Ref!$B$36,INDEX(Ranks!$1:$1048576,$A131,AC$1))","v":""},{"$f":"IF($A131=\"N/A\",Ref!$B$36,INDEX(Ranks!$1:$1048576,$A131,AD$1))","v":""},{"$f":"IF($A131=\"N/A\",Ref!$B$36,INDEX(Ranks!$1:$1048576,$A131,AE$1))","v":""},{"$f":"IF($A131=\"N/A\",Ref!$B$36,INDEX(Ranks!$1:$1048576,$A131,AF$1))","v":""},{"$f":"IF($A131=\"N/A\",Ref!$B$36,INDEX(Ranks!$1:$1048576,$A131,AG$1))","v":""},{"$f":"IF($A131=\"N/A\",Ref!$B$36,INDEX(Ranks!$1:$1048576,$A131,AH$1))","v":""},{"$f":"IF($A131=\"N/A\",Ref!$B$36,INDEX(Ranks!$1:$1048576,$A131,AI$1))","v":""},{"$f":"IF($A131=\"N/A\",Ref!$B$36,INDEX(Ranks!$1:$1048576,$A131,AJ$1))","v":""},{"$f":"IF($A131=\"N/A\",Ref!$B$36,INDEX(Ranks!$1:$1048576,$A131,AK$1))","v":""},{"$f":"IF($A131=\"N/A\",Ref!$B$36,INDEX(Ranks!$1:$1048576,$A131,AL$1))","v":""},{"$f":"IF($A131=\"N/A\",Ref!$B$36,INDEX(Ranks!$1:$1048576,$A131,AM$1))","v":""},{"$f":"IF($A131=\"N/A\",Ref!$B$36,INDEX(Ranks!$1:$1048576,$A131,AN$1))","v":""},{"$f":"IF($A131=\"N/A\",Ref!$B$36,INDEX(Ranks!$1:$1048576,$A131,AO$1))","v":""},{"$f":"IF($A131=\"N/A\",Ref!$B$36,INDEX(Ranks!$1:$1048576,$A131,AP$1))","v":""},{"$f":"IF($A131=\"N/A\",Ref!$B$36,INDEX(Ranks!$1:$1048576,$A131,AQ$1))","v":""},{"$f":"IF($A131=\"N/A\",Ref!$B$36,INDEX(Ranks!$1:$1048576,$A131,AR$1))","v":""},{"$f":"IF($A131=\"N/A\",Ref!$B$36,INDEX(Ranks!$1:$1048576,$A131,AS$1))","v":""},{"$f":"IF($A131=\"N/A\",Ref!$B$36,INDEX(Ranks!$1:$1048576,$A131,AT$1))","v":""},{"$f":"IF($A131=\"N/A\",Ref!$B$36,INDEX(Ranks!$1:$1048576,$A131,AU$1))","v":""},{"$f":"IF($A131=\"N/A\",Ref!$B$36,INDEX(Ranks!$1:$1048576,$A131,AV$1))","v":""},{"$f":"IF($A131=\"N/A\",Ref!$B$36,INDEX(Ranks!$1:$1048576,$A131,AW$1))","v":""},{"$f":"IF($A131=\"N/A\",Ref!$B$36,INDEX(Ranks!$1:$1048576,$A131,AX$1))","v":""},{"$f":"IF($A131=\"N/A\",Ref!$B$36,INDEX(Ranks!$1:$1048576,$A131,AY$1))","v":""},{"$f":"IF($A131=\"N/A\",Ref!$B$36,INDEX(Ranks!$1:$1048576,$A131,AZ$1))","v":""},{"$f":"IF($A131=\"N/A\",Ref!$B$36,INDEX(Ranks!$1:$1048576,$A131,BA$1))","v":""},{"$f":"IF($A131=\"N/A\",Ref!$B$36,INDEX(Ranks!$1:$1048576,$A131,BB$1))","v":""},{"$f":"IF($A131=\"N/A\",Ref!$B$36,INDEX(Ranks!$1:$1048576,$A131,BC$1))","v":""},{"$f":"IF($A131=\"N/A\",Ref!$B$36,INDEX(Ranks!$1:$1048576,$A131,BD$1))","v":""},{"$f":"IF($A131=\"N/A\",Ref!$B$36,INDEX(Ranks!$1:$1048576,$A131,BE$1))","v":""},{"$f":"IF($A131=\"N/A\",Ref!$B$36,INDEX(Ranks!$1:$1048576,$A131,BF$1))","v":""},{"$f":"IF($A131=\"N/A\",Ref!$B$36,INDEX(Ranks!$1:$1048576,$A131,BG$1))","v":""},{"$f":"IF($A131=\"N/A\",Ref!$B$36,INDEX(Ranks!$1:$1048576,$A131,BH$1))","v":""},{"$f":"IF($A131=\"N/A\",Ref!$B$36,INDEX(Ranks!$1:$1048576,$A131,BI$1))","v":""},{"$f":"IF($A131=\"N/A\",Ref!$B$36,INDEX(Ranks!$1:$1048576,$A131,BJ$1))","v":""},{"$f":"IF($A131=\"N/A\",Ref!$B$36,INDEX(Ranks!$1:$1048576,$A131,BK$1))","v":""},{"$f":"IF($A131=\"N/A\",Ref!$B$36,INDEX(Ranks!$1:$1048576,$A131,BL$1))","v":""},{"$f":"IF($A131=\"N/A\",Ref!$B$36,INDEX(Ranks!$1:$1048576,$A131,BM$1))","v":""},{"$f":"IF($A131=\"N/A\",Ref!$B$36,INDEX(Ranks!$1:$1048576,$A131,BN$1))","v":""},{"$f":"IF($A131=\"N/A\",Ref!$B$36,INDEX(Ranks!$1:$1048576,$A131,BO$1))","v":""},{"$f":"IF($A131=\"N/A\",Ref!$B$36,INDEX(Ranks!$1:$1048576,$A131,BP$1))","v":""},{"$f":"IF($A131=\"N/A\",Ref!$B$36,INDEX(Ranks!$1:$1048576,$A131,BQ$1))","v":""},{"$f":"IF($A131=\"N/A\",Ref!$B$36,INDEX(Ranks!$1:$1048576,$A131,BR$1))","v":""},{"$f":"IF($A131=\"N/A\",Ref!$B$36,INDEX(Ranks!$1:$1048576,$A131,BS$1))","v":""},{"$f":"IF($A131=\"N/A\",Ref!$B$36,INDEX(Ranks!$1:$1048576,$A131,BT$1))","v":""},{"$f":"IF($A131=\"N/A\",Ref!$B$36,INDEX(Ranks!$1:$1048576,$A131,BU$1))","v":""},{"$f":"IF($A131=\"N/A\",Ref!$B$36,INDEX(Ranks!$1:$1048576,$A131,BV$1))","v":""},{"$f":"IF($A131=\"N/A\",Ref!$B$36,INDEX(Ranks!$1:$1048576,$A131,BW$1))","v":""},{"$f":"IF($A131=\"N/A\",Ref!$B$36,INDEX(Ranks!$1:$1048576,$A131,BX$1))","v":""},{"$f":"IF($A131=\"N/A\",Ref!$B$36,INDEX(Ranks!$1:$1048576,$A131,BY$1))","v":""},{"$f":"IF($A131=\"N/A\",Ref!$B$36,INDEX(Ranks!$1:$1048576,$A131,BZ$1))","v":""},{"$f":"IF($A131=\"N/A\",Ref!$B$36,INDEX(Ranks!$1:$1048576,$A131,CA$1))","v":""},{"$f":"IF($A131=\"N/A\",Ref!$B$36,INDEX(Ranks!$1:$1048576,$A131,CB$1))","v":""},{"$f":"IF($A131=\"N/A\",Ref!$B$36,INDEX(Ranks!$1:$1048576,$A131,CC$1))","v":""},{"$f":"IF($A131=\"N/A\",Ref!$B$36,INDEX(Ranks!$1:$1048576,$A131,CD$1))","v":""},{"$f":"IF($A131=\"N/A\",Ref!$B$36,INDEX(Ranks!$1:$1048576,$A131,CE$1))","v":""},{"$f":"IF($A131=\"N/A\",Ref!$B$36,INDEX(Ranks!$1:$1048576,$A131,CF$1))","v":""},{"$f":"IF($A131=\"N/A\",Ref!$B$36,INDEX(Ranks!$1:$1048576,$A131,CG$1))","v":""},{"$f":"IF($A131=\"N/A\",Ref!$B$36,INDEX(Ranks!$1:$1048576,$A131,CH$1))","v":""},{"$f":"IF($A131=\"N/A\",Ref!$B$36,INDEX(Ranks!$1:$1048576,$A131,CI$1))","v":""},{"$f":"IF($A131=\"N/A\",Ref!$B$36,INDEX(Ranks!$1:$1048576,$A131,CJ$1))","v":""},{"$f":"IF($A131=\"N/A\",Ref!$B$36,INDEX(Ranks!$1:$1048576,$A131,CK$1))","v":""},{"$f":"IF($A131=\"N/A\",Ref!$B$36,INDEX(Ranks!$1:$1048576,$A131,CL$1))","v":""},{"$f":"IF($A131=\"N/A\",Ref!$B$36,INDEX(Ranks!$1:$1048576,$A131,CM$1))","v":""},{"$f":"IF($A131=\"N/A\",Ref!$B$36,INDEX(Ranks!$1:$1048576,$A131,CN$1))","v":""},{"$f":"IF($A131=\"N/A\",Ref!$B$36,INDEX(Ranks!$1:$1048576,$A131,CO$1))","v":""},{"$f":"IF($A131=\"N/A\",Ref!$B$36,INDEX(Ranks!$1:$1048576,$A131,CP$1))","v":""},{"$f":"IF($A131=\"N/A\",Ref!$B$36,INDEX(Ranks!$1:$1048576,$A131,CQ$1))","v":""},{"$f":"IF($A131=\"N/A\",Ref!$B$36,INDEX(Ranks!$1:$1048576,$A131,CR$1))","v":""},{"$f":"IF($A131=\"N/A\",Ref!$B$36,INDEX(Ranks!$1:$1048576,$A131,CS$1))","v":""},{"$f":"IF($A131=\"N/A\",Ref!$B$36,INDEX(Ranks!$1:$1048576,$A131,CT$1))","v":""},{"$f":"IF($A131=\"N/A\",Ref!$B$36,INDEX(Ranks!$1:$1048576,$A131,CU$1))","v":""},{"$f":"IF($A131=\"N/A\",Ref!$B$36,INDEX(Ranks!$1:$1048576,$A131,CV$1))","v":""},{"$f":"IF($A131=\"N/A\",Ref!$B$36,INDEX(Ranks!$1:$1048576,$A131,CW$1))","v":""},{"$f":"IF($A131=\"N/A\",Ref!$B$36,INDEX(Ranks!$1:$1048576,$A131,CX$1))","v":""},{"$f":"IF($A131=\"N/A\",Ref!$B$36,INDEX(Ranks!$1:$1048576,$A131,CY$1))","v":""},{"$f":"IF($A131=\"N/A\",Ref!$B$36,INDEX(Ranks!$1:$1048576,$A131,CZ$1))","v":""},{"$f":"IF($A131=\"N/A\",Ref!$B$36,INDEX(Ranks!$1:$1048576,$A131,DA$1))","v":""},{"$f":"IF($A131=\"N/A\",Ref!$B$36,INDEX(Ranks!$1:$1048576,$A131,DB$1))","v":""},{"$f":"IF($A131=\"N/A\",Ref!$B$36,INDEX(Ranks!$1:$1048576,$A131,DC$1))","v":""},{"$f":"IF($A131=\"N/A\",Ref!$B$36,INDEX(Ranks!$1:$1048576,$A131,DD$1))","v":""},{"$f":"IF($A131=\"N/A\",Ref!$B$36,INDEX(Ranks!$1:$1048576,$A131,DE$1))","v":""},{"$f":"IF($A131=\"N/A\",Ref!$B$36,INDEX(Ranks!$1:$1048576,$A131,DF$1))","v":""},{"$f":"IF($A131=\"N/A\",Ref!$B$36,INDEX(Ranks!$1:$1048576,$A131,DG$1))","v":""},{"$f":"IF($A131=\"N/A\",Ref!$B$36,INDEX(Ranks!$1:$1048576,$A131,DH$1))","v":""},{"$f":"IF($A131=\"N/A\",Ref!$B$36,INDEX(Ranks!$1:$1048576,$A131,DI$1))","v":""},{"$f":"IF($A131=\"N/A\",Ref!$B$36,INDEX(Ranks!$1:$1048576,$A131,DJ$1))","v":""},{"$f":"IF($A131=\"N/A\",Ref!$B$36,INDEX(Ranks!$1:$1048576,$A131,DK$1))","v":""},{"$f":"IF($A131=\"N/A\",Ref!$B$36,INDEX(Ranks!$1:$1048576,$A131,DL$1))","v":""},{"$f":"IF($A131=\"N/A\",Ref!$B$36,INDEX(Ranks!$1:$1048576,$A131,DM$1))","v":""},{"$f":"IF($A131=\"N/A\",Ref!$B$36,INDEX(Ranks!$1:$1048576,$A131,DN$1))","v":""},{"$f":"IF($A131=\"N/A\",Ref!$B$36,INDEX(Ranks!$1:$1048576,$A131,DO$1))","v":""},{"$f":"IF($A131=\"N/A\",Ref!$B$36,INDEX(Ranks!$1:$1048576,$A131,DP$1))","v":""},{"$f":"IF($A131=\"N/A\",Ref!$B$36,INDEX(Ranks!$1:$1048576,$A131,DQ$1))","v":""},{"$f":"IF($A131=\"N/A\",Ref!$B$36,INDEX(Ranks!$1:$1048576,$A131,DR$1))","v":""},{"$f":"IF($A131=\"N/A\",Ref!$B$36,INDEX(Ranks!$1:$1048576,$A131,DS$1))","v":""},{"$f":"IF($A131=\"N/A\",Ref!$B$36,INDEX(Ranks!$1:$1048576,$A131,DT$1))","v":""},{"$f":"IF($A131=\"N/A\",Ref!$B$36,INDEX(Ranks!$1:$1048576,$A131,DU$1))","v":""},{"$f":"IF($A131=\"N/A\",Ref!$B$36,INDEX(Ranks!$1:$1048576,$A131,DV$1))","v":""},{"$f":"IF($A131=\"N/A\",Ref!$B$36,INDEX(Ranks!$1:$1048576,$A131,DW$1))","v":""},{"$f":"IF($A131=\"N/A\",Ref!$B$36,INDEX(Ranks!$1:$1048576,$A131,DX$1))","v":""},{"$f":"IF($A131=\"N/A\",Ref!$B$36,INDEX(Ranks!$1:$1048576,$A131,DY$1))","v":""},{"$f":"IF($A131=\"N/A\",Ref!$B$36,INDEX(Ranks!$1:$1048576,$A131,DZ$1))","v":""},{"$f":"IF($A131=\"N/A\",Ref!$B$36,INDEX(Ranks!$1:$1048576,$A131,EA$1))","v":""},{"$f":"IF($A131=\"N/A\",Ref!$B$36,INDEX(Ranks!$1:$1048576,$A131,EB$1))","v":""}]
[{"$f":"IFERROR(MATCH('Portfolio Page'!L132,Ranks!L:L,0),\"N/A\")","v":"N/A"},null,{"$f":"IF($A132=\"N/A\",\"\",INDEX(Ranks!$1:$1048576,$A132,C$1))","v":""},{"$f":"IF($A132=\"N/A\",Ref!$B$36,INDEX(Ranks!$1:$1048576,$A132,D$1))","v":""},{"$f":"IF($A132=\"N/A\",Ref!$B$36,INDEX(Ranks!$1:$1048576,$A132,E$1))","v":""},{"$f":"IF($A132=\"N/A\",\"\",INDEX(Ranks!$1:$1048576,$A132,F$1))","v":""},{"$f":"IF($A132=\"N/A\",\"\",INDEX(Ranks!$1:$1048576,$A132,G$1))","v":""},{"$f":"IF($A132=\"N/A\",\"\",INDEX(Ranks!$1:$1048576,$A132,H$1))","v":""},{"$f":"IF($A132=\"N/A\",\"\",INDEX(Ranks!$1:$1048576,$A132,I$1))","v":""},{"$f":"IF($A132=\"N/A\",\"\",INDEX(Ranks!$1:$1048576,$A132,J$1))","v":""},{"$f":"IF($A132=\"N/A\",\"\",INDEX(Ranks!$1:$1048576,$A132,K$1))","v":""},null,{"$f":"IF($A132=\"N/A\",Ref!$B$36,INDEX(Ranks!$1:$1048576,$A132,M$1))","v":""},{"$f":"IF($A132=\"N/A\",Ref!$B$36,INDEX(Ranks!$1:$1048576,$A132,N$1))","v":""},{"$f":"IF($A132=\"N/A\",Ref!$B$36,INDEX(Ranks!$1:$1048576,$A132,O$1))","v":""},{"$f":"IF($A132=\"N/A\",Ref!$B$36,INDEX(Ranks!$1:$1048576,$A132,P$1))","v":""},{"$f":"IF($A132=\"N/A\",Ref!$B$36,INDEX(Ranks!$1:$1048576,$A132,Q$1))","v":""},{"$f":"IF($A132=\"N/A\",Ref!$B$36,INDEX(Ranks!$1:$1048576,$A132,R$1))","v":""},{"$f":"IF($A132=\"N/A\",Ref!$B$36,INDEX(Ranks!$1:$1048576,$A132,S$1))","v":""},{"$f":"IF($A132=\"N/A\",Ref!$B$36,INDEX(Ranks!$1:$1048576,$A132,T$1))","v":""},{"$f":"IF($A132=\"N/A\",Ref!$B$36,INDEX(Ranks!$1:$1048576,$A132,U$1))","v":""},{"$f":"IF($A132=\"N/A\",Ref!$B$36,INDEX(Ranks!$1:$1048576,$A132,V$1))","v":""},{"$f":"IF($A132=\"N/A\",Ref!$B$36,INDEX(Ranks!$1:$1048576,$A132,W$1))","v":""},{"$f":"IF($A132=\"N/A\",Ref!$B$36,INDEX(Ranks!$1:$1048576,$A132,X$1))","v":""},{"$f":"IF($A132=\"N/A\",Ref!$B$36,INDEX(Ranks!$1:$1048576,$A132,Y$1))","v":""},{"$f":"IF($A132=\"N/A\",Ref!$B$36,INDEX(Ranks!$1:$1048576,$A132,Z$1))","v":""},{"$f":"IF($A132=\"N/A\",Ref!$B$36,INDEX(Ranks!$1:$1048576,$A132,AA$1))","v":""},{"$f":"IF($A132=\"N/A\",Ref!$B$36,INDEX(Ranks!$1:$1048576,$A132,AB$1))","v":""},{"$f":"IF($A132=\"N/A\",Ref!$B$36,INDEX(Ranks!$1:$1048576,$A132,AC$1))","v":""},{"$f":"IF($A132=\"N/A\",Ref!$B$36,INDEX(Ranks!$1:$1048576,$A132,AD$1))","v":""},{"$f":"IF($A132=\"N/A\",Ref!$B$36,INDEX(Ranks!$1:$1048576,$A132,AE$1))","v":""},{"$f":"IF($A132=\"N/A\",Ref!$B$36,INDEX(Ranks!$1:$1048576,$A132,AF$1))","v":""},{"$f":"IF($A132=\"N/A\",Ref!$B$36,INDEX(Ranks!$1:$1048576,$A132,AG$1))","v":""},{"$f":"IF($A132=\"N/A\",Ref!$B$36,INDEX(Ranks!$1:$1048576,$A132,AH$1))","v":""},{"$f":"IF($A132=\"N/A\",Ref!$B$36,INDEX(Ranks!$1:$1048576,$A132,AI$1))","v":""},{"$f":"IF($A132=\"N/A\",Ref!$B$36,INDEX(Ranks!$1:$1048576,$A132,AJ$1))","v":""},{"$f":"IF($A132=\"N/A\",Ref!$B$36,INDEX(Ranks!$1:$1048576,$A132,AK$1))","v":""},{"$f":"IF($A132=\"N/A\",Ref!$B$36,INDEX(Ranks!$1:$1048576,$A132,AL$1))","v":""},{"$f":"IF($A132=\"N/A\",Ref!$B$36,INDEX(Ranks!$1:$1048576,$A132,AM$1))","v":""},{"$f":"IF($A132=\"N/A\",Ref!$B$36,INDEX(Ranks!$1:$1048576,$A132,AN$1))","v":""},{"$f":"IF($A132=\"N/A\",Ref!$B$36,INDEX(Ranks!$1:$1048576,$A132,AO$1))","v":""},{"$f":"IF($A132=\"N/A\",Ref!$B$36,INDEX(Ranks!$1:$1048576,$A132,AP$1))","v":""},{"$f":"IF($A132=\"N/A\",Ref!$B$36,INDEX(Ranks!$1:$1048576,$A132,AQ$1))","v":""},{"$f":"IF($A132=\"N/A\",Ref!$B$36,INDEX(Ranks!$1:$1048576,$A132,AR$1))","v":""},{"$f":"IF($A132=\"N/A\",Ref!$B$36,INDEX(Ranks!$1:$1048576,$A132,AS$1))","v":""},{"$f":"IF($A132=\"N/A\",Ref!$B$36,INDEX(Ranks!$1:$1048576,$A132,AT$1))","v":""},{"$f":"IF($A132=\"N/A\",Ref!$B$36,INDEX(Ranks!$1:$1048576,$A132,AU$1))","v":""},{"$f":"IF($A132=\"N/A\",Ref!$B$36,INDEX(Ranks!$1:$1048576,$A132,AV$1))","v":""},{"$f":"IF($A132=\"N/A\",Ref!$B$36,INDEX(Ranks!$1:$1048576,$A132,AW$1))","v":""},{"$f":"IF($A132=\"N/A\",Ref!$B$36,INDEX(Ranks!$1:$1048576,$A132,AX$1))","v":""},{"$f":"IF($A132=\"N/A\",Ref!$B$36,INDEX(Ranks!$1:$1048576,$A132,AY$1))","v":""},{"$f":"IF($A132=\"N/A\",Ref!$B$36,INDEX(Ranks!$1:$1048576,$A132,AZ$1))","v":""},{"$f":"IF($A132=\"N/A\",Ref!$B$36,INDEX(Ranks!$1:$1048576,$A132,BA$1))","v":""},{"$f":"IF($A132=\"N/A\",Ref!$B$36,INDEX(Ranks!$1:$1048576,$A132,BB$1))","v":""},{"$f":"IF($A132=\"N/A\",Ref!$B$36,INDEX(Ranks!$1:$1048576,$A132,BC$1))","v":""},{"$f":"IF($A132=\"N/A\",Ref!$B$36,INDEX(Ranks!$1:$1048576,$A132,BD$1))","v":""},{"$f":"IF($A132=\"N/A\",Ref!$B$36,INDEX(Ranks!$1:$1048576,$A132,BE$1))","v":""},{"$f":"IF($A132=\"N/A\",Ref!$B$36,INDEX(Ranks!$1:$1048576,$A132,BF$1))","v":""},{"$f":"IF($A132=\"N/A\",Ref!$B$36,INDEX(Ranks!$1:$1048576,$A132,BG$1))","v":""},{"$f":"IF($A132=\"N/A\",Ref!$B$36,INDEX(Ranks!$1:$1048576,$A132,BH$1))","v":""},{"$f":"IF($A132=\"N/A\",Ref!$B$36,INDEX(Ranks!$1:$1048576,$A132,BI$1))","v":""},{"$f":"IF($A132=\"N/A\",Ref!$B$36,INDEX(Ranks!$1:$1048576,$A132,BJ$1))","v":""},{"$f":"IF($A132=\"N/A\",Ref!$B$36,INDEX(Ranks!$1:$1048576,$A132,BK$1))","v":""},{"$f":"IF($A132=\"N/A\",Ref!$B$36,INDEX(Ranks!$1:$1048576,$A132,BL$1))","v":""},{"$f":"IF($A132=\"N/A\",Ref!$B$36,INDEX(Ranks!$1:$1048576,$A132,BM$1))","v":""},{"$f":"IF($A132=\"N/A\",Ref!$B$36,INDEX(Ranks!$1:$1048576,$A132,BN$1))","v":""},{"$f":"IF($A132=\"N/A\",Ref!$B$36,INDEX(Ranks!$1:$1048576,$A132,BO$1))","v":""},{"$f":"IF($A132=\"N/A\",Ref!$B$36,INDEX(Ranks!$1:$1048576,$A132,BP$1))","v":""},{"$f":"IF($A132=\"N/A\",Ref!$B$36,INDEX(Ranks!$1:$1048576,$A132,BQ$1))","v":""},{"$f":"IF($A132=\"N/A\",Ref!$B$36,INDEX(Ranks!$1:$1048576,$A132,BR$1))","v":""},{"$f":"IF($A132=\"N/A\",Ref!$B$36,INDEX(Ranks!$1:$1048576,$A132,BS$1))","v":""},{"$f":"IF($A132=\"N/A\",Ref!$B$36,INDEX(Ranks!$1:$1048576,$A132,BT$1))","v":""},{"$f":"IF($A132=\"N/A\",Ref!$B$36,INDEX(Ranks!$1:$1048576,$A132,BU$1))","v":""},{"$f":"IF($A132=\"N/A\",Ref!$B$36,INDEX(Ranks!$1:$1048576,$A132,BV$1))","v":""},{"$f":"IF($A132=\"N/A\",Ref!$B$36,INDEX(Ranks!$1:$1048576,$A132,BW$1))","v":""},{"$f":"IF($A132=\"N/A\",Ref!$B$36,INDEX(Ranks!$1:$1048576,$A132,BX$1))","v":""},{"$f":"IF($A132=\"N/A\",Ref!$B$36,INDEX(Ranks!$1:$1048576,$A132,BY$1))","v":""},{"$f":"IF($A132=\"N/A\",Ref!$B$36,INDEX(Ranks!$1:$1048576,$A132,BZ$1))","v":""},{"$f":"IF($A132=\"N/A\",Ref!$B$36,INDEX(Ranks!$1:$1048576,$A132,CA$1))","v":""},{"$f":"IF($A132=\"N/A\",Ref!$B$36,INDEX(Ranks!$1:$1048576,$A132,CB$1))","v":""},{"$f":"IF($A132=\"N/A\",Ref!$B$36,INDEX(Ranks!$1:$1048576,$A132,CC$1))","v":""},{"$f":"IF($A132=\"N/A\",Ref!$B$36,INDEX(Ranks!$1:$1048576,$A132,CD$1))","v":""},{"$f":"IF($A132=\"N/A\",Ref!$B$36,INDEX(Ranks!$1:$1048576,$A132,CE$1))","v":""},{"$f":"IF($A132=\"N/A\",Ref!$B$36,INDEX(Ranks!$1:$1048576,$A132,CF$1))","v":""},{"$f":"IF($A132=\"N/A\",Ref!$B$36,INDEX(Ranks!$1:$1048576,$A132,CG$1))","v":""},{"$f":"IF($A132=\"N/A\",Ref!$B$36,INDEX(Ranks!$1:$1048576,$A132,CH$1))","v":""},{"$f":"IF($A132=\"N/A\",Ref!$B$36,INDEX(Ranks!$1:$1048576,$A132,CI$1))","v":""},{"$f":"IF($A132=\"N/A\",Ref!$B$36,INDEX(Ranks!$1:$1048576,$A132,CJ$1))","v":""},{"$f":"IF($A132=\"N/A\",Ref!$B$36,INDEX(Ranks!$1:$1048576,$A132,CK$1))","v":""},{"$f":"IF($A132=\"N/A\",Ref!$B$36,INDEX(Ranks!$1:$1048576,$A132,CL$1))","v":""},{"$f":"IF($A132=\"N/A\",Ref!$B$36,INDEX(Ranks!$1:$1048576,$A132,CM$1))","v":""},{"$f":"IF($A132=\"N/A\",Ref!$B$36,INDEX(Ranks!$1:$1048576,$A132,CN$1))","v":""},{"$f":"IF($A132=\"N/A\",Ref!$B$36,INDEX(Ranks!$1:$1048576,$A132,CO$1))","v":""},{"$f":"IF($A132=\"N/A\",Ref!$B$36,INDEX(Ranks!$1:$1048576,$A132,CP$1))","v":""},{"$f":"IF($A132=\"N/A\",Ref!$B$36,INDEX(Ranks!$1:$1048576,$A132,CQ$1))","v":""},{"$f":"IF($A132=\"N/A\",Ref!$B$36,INDEX(Ranks!$1:$1048576,$A132,CR$1))","v":""},{"$f":"IF($A132=\"N/A\",Ref!$B$36,INDEX(Ranks!$1:$1048576,$A132,CS$1))","v":""},{"$f":"IF($A132=\"N/A\",Ref!$B$36,INDEX(Ranks!$1:$1048576,$A132,CT$1))","v":""},{"$f":"IF($A132=\"N/A\",Ref!$B$36,INDEX(Ranks!$1:$1048576,$A132,CU$1))","v":""},{"$f":"IF($A132=\"N/A\",Ref!$B$36,INDEX(Ranks!$1:$1048576,$A132,CV$1))","v":""},{"$f":"IF($A132=\"N/A\",Ref!$B$36,INDEX(Ranks!$1:$1048576,$A132,CW$1))","v":""},{"$f":"IF($A132=\"N/A\",Ref!$B$36,INDEX(Ranks!$1:$1048576,$A132,CX$1))","v":""},{"$f":"IF($A132=\"N/A\",Ref!$B$36,INDEX(Ranks!$1:$1048576,$A132,CY$1))","v":""},{"$f":"IF($A132=\"N/A\",Ref!$B$36,INDEX(Ranks!$1:$1048576,$A132,CZ$1))","v":""},{"$f":"IF($A132=\"N/A\",Ref!$B$36,INDEX(Ranks!$1:$1048576,$A132,DA$1))","v":""},{"$f":"IF($A132=\"N/A\",Ref!$B$36,INDEX(Ranks!$1:$1048576,$A132,DB$1))","v":""},{"$f":"IF($A132=\"N/A\",Ref!$B$36,INDEX(Ranks!$1:$1048576,$A132,DC$1))","v":""},{"$f":"IF($A132=\"N/A\",Ref!$B$36,INDEX(Ranks!$1:$1048576,$A132,DD$1))","v":""},{"$f":"IF($A132=\"N/A\",Ref!$B$36,INDEX(Ranks!$1:$1048576,$A132,DE$1))","v":""},{"$f":"IF($A132=\"N/A\",Ref!$B$36,INDEX(Ranks!$1:$1048576,$A132,DF$1))","v":""},{"$f":"IF($A132=\"N/A\",Ref!$B$36,INDEX(Ranks!$1:$1048576,$A132,DG$1))","v":""},{"$f":"IF($A132=\"N/A\",Ref!$B$36,INDEX(Ranks!$1:$1048576,$A132,DH$1))","v":""},{"$f":"IF($A132=\"N/A\",Ref!$B$36,INDEX(Ranks!$1:$1048576,$A132,DI$1))","v":""},{"$f":"IF($A132=\"N/A\",Ref!$B$36,INDEX(Ranks!$1:$1048576,$A132,DJ$1))","v":""},{"$f":"IF($A132=\"N/A\",Ref!$B$36,INDEX(Ranks!$1:$1048576,$A132,DK$1))","v":""},{"$f":"IF($A132=\"N/A\",Ref!$B$36,INDEX(Ranks!$1:$1048576,$A132,DL$1))","v":""},{"$f":"IF($A132=\"N/A\",Ref!$B$36,INDEX(Ranks!$1:$1048576,$A132,DM$1))","v":""},{"$f":"IF($A132=\"N/A\",Ref!$B$36,INDEX(Ranks!$1:$1048576,$A132,DN$1))","v":""},{"$f":"IF($A132=\"N/A\",Ref!$B$36,INDEX(Ranks!$1:$1048576,$A132,DO$1))","v":""},{"$f":"IF($A132=\"N/A\",Ref!$B$36,INDEX(Ranks!$1:$1048576,$A132,DP$1))","v":""},{"$f":"IF($A132=\"N/A\",Ref!$B$36,INDEX(Ranks!$1:$1048576,$A132,DQ$1))","v":""},{"$f":"IF($A132=\"N/A\",Ref!$B$36,INDEX(Ranks!$1:$1048576,$A132,DR$1))","v":""},{"$f":"IF($A132=\"N/A\",Ref!$B$36,INDEX(Ranks!$1:$1048576,$A132,DS$1))","v":""},{"$f":"IF($A132=\"N/A\",Ref!$B$36,INDEX(Ranks!$1:$1048576,$A132,DT$1))","v":""},{"$f":"IF($A132=\"N/A\",Ref!$B$36,INDEX(Ranks!$1:$1048576,$A132,DU$1))","v":""},{"$f":"IF($A132=\"N/A\",Ref!$B$36,INDEX(Ranks!$1:$1048576,$A132,DV$1))","v":""},{"$f":"IF($A132=\"N/A\",Ref!$B$36,INDEX(Ranks!$1:$1048576,$A132,DW$1))","v":""},{"$f":"IF($A132=\"N/A\",Ref!$B$36,INDEX(Ranks!$1:$1048576,$A132,DX$1))","v":""},{"$f":"IF($A132=\"N/A\",Ref!$B$36,INDEX(Ranks!$1:$1048576,$A132,DY$1))","v":""},{"$f":"IF($A132=\"N/A\",Ref!$B$36,INDEX(Ranks!$1:$1048576,$A132,DZ$1))","v":""},{"$f":"IF($A132=\"N/A\",Ref!$B$36,INDEX(Ranks!$1:$1048576,$A132,EA$1))","v":""},{"$f":"IF($A132=\"N/A\",Ref!$B$36,INDEX(Ranks!$1:$1048576,$A132,EB$1))","v":""}]
[{"$f":"IFERROR(MATCH('Portfolio Page'!L133,Ranks!L:L,0),\"N/A\")","v":"N/A"},null,{"$f":"IF($A133=\"N/A\",\"\",INDEX(Ranks!$1:$1048576,$A133,C$1))","v":""},{"$f":"IF($A133=\"N/A\",Ref!$B$36,INDEX(Ranks!$1:$1048576,$A133,D$1))","v":""},{"$f":"IF($A133=\"N/A\",Ref!$B$36,INDEX(Ranks!$1:$1048576,$A133,E$1))","v":""},{"$f":"IF($A133=\"N/A\",\"\",INDEX(Ranks!$1:$1048576,$A133,F$1))","v":""},{"$f":"IF($A133=\"N/A\",\"\",INDEX(Ranks!$1:$1048576,$A133,G$1))","v":""},{"$f":"IF($A133=\"N/A\",\"\",INDEX(Ranks!$1:$1048576,$A133,H$1))","v":""},{"$f":"IF($A133=\"N/A\",\"\",INDEX(Ranks!$1:$1048576,$A133,I$1))","v":""},{"$f":"IF($A133=\"N/A\",\"\",INDEX(Ranks!$1:$1048576,$A133,J$1))","v":""},{"$f":"IF($A133=\"N/A\",\"\",INDEX(Ranks!$1:$1048576,$A133,K$1))","v":""},null,{"$f":"IF($A133=\"N/A\",Ref!$B$36,INDEX(Ranks!$1:$1048576,$A133,M$1))","v":""},{"$f":"IF($A133=\"N/A\",Ref!$B$36,INDEX(Ranks!$1:$1048576,$A133,N$1))","v":""},{"$f":"IF($A133=\"N/A\",Ref!$B$36,INDEX(Ranks!$1:$1048576,$A133,O$1))","v":""},{"$f":"IF($A133=\"N/A\",Ref!$B$36,INDEX(Ranks!$1:$1048576,$A133,P$1))","v":""},{"$f":"IF($A133=\"N/A\",Ref!$B$36,INDEX(Ranks!$1:$1048576,$A133,Q$1))","v":""},{"$f":"IF($A133=\"N/A\",Ref!$B$36,INDEX(Ranks!$1:$1048576,$A133,R$1))","v":""},{"$f":"IF($A133=\"N/A\",Ref!$B$36,INDEX(Ranks!$1:$1048576,$A133,S$1))","v":""},{"$f":"IF($A133=\"N/A\",Ref!$B$36,INDEX(Ranks!$1:$1048576,$A133,T$1))","v":""},{"$f":"IF($A133=\"N/A\",Ref!$B$36,INDEX(Ranks!$1:$1048576,$A133,U$1))","v":""},{"$f":"IF($A133=\"N/A\",Ref!$B$36,INDEX(Ranks!$1:$1048576,$A133,V$1))","v":""},{"$f":"IF($A133=\"N/A\",Ref!$B$36,INDEX(Ranks!$1:$1048576,$A133,W$1))","v":""},{"$f":"IF($A133=\"N/A\",Ref!$B$36,INDEX(Ranks!$1:$1048576,$A133,X$1))","v":""},{"$f":"IF($A133=\"N/A\",Ref!$B$36,INDEX(Ranks!$1:$1048576,$A133,Y$1))","v":""},{"$f":"IF($A133=\"N/A\",Ref!$B$36,INDEX(Ranks!$1:$1048576,$A133,Z$1))","v":""},{"$f":"IF($A133=\"N/A\",Ref!$B$36,INDEX(Ranks!$1:$1048576,$A133,AA$1))","v":""},{"$f":"IF($A133=\"N/A\",Ref!$B$36,INDEX(Ranks!$1:$1048576,$A133,AB$1))","v":""},{"$f":"IF($A133=\"N/A\",Ref!$B$36,INDEX(Ranks!$1:$1048576,$A133,AC$1))","v":""},{"$f":"IF($A133=\"N/A\",Ref!$B$36,INDEX(Ranks!$1:$1048576,$A133,AD$1))","v":""},{"$f":"IF($A133=\"N/A\",Ref!$B$36,INDEX(Ranks!$1:$1048576,$A133,AE$1))","v":""},{"$f":"IF($A133=\"N/A\",Ref!$B$36,INDEX(Ranks!$1:$1048576,$A133,AF$1))","v":""},{"$f":"IF($A133=\"N/A\",Ref!$B$36,INDEX(Ranks!$1:$1048576,$A133,AG$1))","v":""},{"$f":"IF($A133=\"N/A\",Ref!$B$36,INDEX(Ranks!$1:$1048576,$A133,AH$1))","v":""},{"$f":"IF($A133=\"N/A\",Ref!$B$36,INDEX(Ranks!$1:$1048576,$A133,AI$1))","v":""},{"$f":"IF($A133=\"N/A\",Ref!$B$36,INDEX(Ranks!$1:$1048576,$A133,AJ$1))","v":""},{"$f":"IF($A133=\"N/A\",Ref!$B$36,INDEX(Ranks!$1:$1048576,$A133,AK$1))","v":""},{"$f":"IF($A133=\"N/A\",Ref!$B$36,INDEX(Ranks!$1:$1048576,$A133,AL$1))","v":""},{"$f":"IF($A133=\"N/A\",Ref!$B$36,INDEX(Ranks!$1:$1048576,$A133,AM$1))","v":""},{"$f":"IF($A133=\"N/A\",Ref!$B$36,INDEX(Ranks!$1:$1048576,$A133,AN$1))","v":""},{"$f":"IF($A133=\"N/A\",Ref!$B$36,INDEX(Ranks!$1:$1048576,$A133,AO$1))","v":""},{"$f":"IF($A133=\"N/A\",Ref!$B$36,INDEX(Ranks!$1:$1048576,$A133,AP$1))","v":""},{"$f":"IF($A133=\"N/A\",Ref!$B$36,INDEX(Ranks!$1:$1048576,$A133,AQ$1))","v":""},{"$f":"IF($A133=\"N/A\",Ref!$B$36,INDEX(Ranks!$1:$1048576,$A133,AR$1))","v":""},{"$f":"IF($A133=\"N/A\",Ref!$B$36,INDEX(Ranks!$1:$1048576,$A133,AS$1))","v":""},{"$f":"IF($A133=\"N/A\",Ref!$B$36,INDEX(Ranks!$1:$1048576,$A133,AT$1))","v":""},{"$f":"IF($A133=\"N/A\",Ref!$B$36,INDEX(Ranks!$1:$1048576,$A133,AU$1))","v":""},{"$f":"IF($A133=\"N/A\",Ref!$B$36,INDEX(Ranks!$1:$1048576,$A133,AV$1))","v":""},{"$f":"IF($A133=\"N/A\",Ref!$B$36,INDEX(Ranks!$1:$1048576,$A133,AW$1))","v":""},{"$f":"IF($A133=\"N/A\",Ref!$B$36,INDEX(Ranks!$1:$1048576,$A133,AX$1))","v":""},{"$f":"IF($A133=\"N/A\",Ref!$B$36,INDEX(Ranks!$1:$1048576,$A133,AY$1))","v":""},{"$f":"IF($A133=\"N/A\",Ref!$B$36,INDEX(Ranks!$1:$1048576,$A133,AZ$1))","v":""},{"$f":"IF($A133=\"N/A\",Ref!$B$36,INDEX(Ranks!$1:$1048576,$A133,BA$1))","v":""},{"$f":"IF($A133=\"N/A\",Ref!$B$36,INDEX(Ranks!$1:$1048576,$A133,BB$1))","v":""},{"$f":"IF($A133=\"N/A\",Ref!$B$36,INDEX(Ranks!$1:$1048576,$A133,BC$1))","v":""},{"$f":"IF($A133=\"N/A\",Ref!$B$36,INDEX(Ranks!$1:$1048576,$A133,BD$1))","v":""},{"$f":"IF($A133=\"N/A\",Ref!$B$36,INDEX(Ranks!$1:$1048576,$A133,BE$1))","v":""},{"$f":"IF($A133=\"N/A\",Ref!$B$36,INDEX(Ranks!$1:$1048576,$A133,BF$1))","v":""},{"$f":"IF($A133=\"N/A\",Ref!$B$36,INDEX(Ranks!$1:$1048576,$A133,BG$1))","v":""},{"$f":"IF($A133=\"N/A\",Ref!$B$36,INDEX(Ranks!$1:$1048576,$A133,BH$1))","v":""},{"$f":"IF($A133=\"N/A\",Ref!$B$36,INDEX(Ranks!$1:$1048576,$A133,BI$1))","v":""},{"$f":"IF($A133=\"N/A\",Ref!$B$36,INDEX(Ranks!$1:$1048576,$A133,BJ$1))","v":""},{"$f":"IF($A133=\"N/A\",Ref!$B$36,INDEX(Ranks!$1:$1048576,$A133,BK$1))","v":""},{"$f":"IF($A133=\"N/A\",Ref!$B$36,INDEX(Ranks!$1:$1048576,$A133,BL$1))","v":""},{"$f":"IF($A133=\"N/A\",Ref!$B$36,INDEX(Ranks!$1:$1048576,$A133,BM$1))","v":""},{"$f":"IF($A133=\"N/A\",Ref!$B$36,INDEX(Ranks!$1:$1048576,$A133,BN$1))","v":""},{"$f":"IF($A133=\"N/A\",Ref!$B$36,INDEX(Ranks!$1:$1048576,$A133,BO$1))","v":""},{"$f":"IF($A133=\"N/A\",Ref!$B$36,INDEX(Ranks!$1:$1048576,$A133,BP$1))","v":""},{"$f":"IF($A133=\"N/A\",Ref!$B$36,INDEX(Ranks!$1:$1048576,$A133,BQ$1))","v":""},{"$f":"IF($A133=\"N/A\",Ref!$B$36,INDEX(Ranks!$1:$1048576,$A133,BR$1))","v":""},{"$f":"IF($A133=\"N/A\",Ref!$B$36,INDEX(Ranks!$1:$1048576,$A133,BS$1))","v":""},{"$f":"IF($A133=\"N/A\",Ref!$B$36,INDEX(Ranks!$1:$1048576,$A133,BT$1))","v":""},{"$f":"IF($A133=\"N/A\",Ref!$B$36,INDEX(Ranks!$1:$1048576,$A133,BU$1))","v":""},{"$f":"IF($A133=\"N/A\",Ref!$B$36,INDEX(Ranks!$1:$1048576,$A133,BV$1))","v":""},{"$f":"IF($A133=\"N/A\",Ref!$B$36,INDEX(Ranks!$1:$1048576,$A133,BW$1))","v":""},{"$f":"IF($A133=\"N/A\",Ref!$B$36,INDEX(Ranks!$1:$1048576,$A133,BX$1))","v":""},{"$f":"IF($A133=\"N/A\",Ref!$B$36,INDEX(Ranks!$1:$1048576,$A133,BY$1))","v":""},{"$f":"IF($A133=\"N/A\",Ref!$B$36,INDEX(Ranks!$1:$1048576,$A133,BZ$1))","v":""},{"$f":"IF($A133=\"N/A\",Ref!$B$36,INDEX(Ranks!$1:$1048576,$A133,CA$1))","v":""},{"$f":"IF($A133=\"N/A\",Ref!$B$36,INDEX(Ranks!$1:$1048576,$A133,CB$1))","v":""},{"$f":"IF($A133=\"N/A\",Ref!$B$36,INDEX(Ranks!$1:$1048576,$A133,CC$1))","v":""},{"$f":"IF($A133=\"N/A\",Ref!$B$36,INDEX(Ranks!$1:$1048576,$A133,CD$1))","v":""},{"$f":"IF($A133=\"N/A\",Ref!$B$36,INDEX(Ranks!$1:$1048576,$A133,CE$1))","v":""},{"$f":"IF($A133=\"N/A\",Ref!$B$36,INDEX(Ranks!$1:$1048576,$A133,CF$1))","v":""},{"$f":"IF($A133=\"N/A\",Ref!$B$36,INDEX(Ranks!$1:$1048576,$A133,CG$1))","v":""},{"$f":"IF($A133=\"N/A\",Ref!$B$36,INDEX(Ranks!$1:$1048576,$A133,CH$1))","v":""},{"$f":"IF($A133=\"N/A\",Ref!$B$36,INDEX(Ranks!$1:$1048576,$A133,CI$1))","v":""},{"$f":"IF($A133=\"N/A\",Ref!$B$36,INDEX(Ranks!$1:$1048576,$A133,CJ$1))","v":""},{"$f":"IF($A133=\"N/A\",Ref!$B$36,INDEX(Ranks!$1:$1048576,$A133,CK$1))","v":""},{"$f":"IF($A133=\"N/A\",Ref!$B$36,INDEX(Ranks!$1:$1048576,$A133,CL$1))","v":""},{"$f":"IF($A133=\"N/A\",Ref!$B$36,INDEX(Ranks!$1:$1048576,$A133,CM$1))","v":""},{"$f":"IF($A133=\"N/A\",Ref!$B$36,INDEX(Ranks!$1:$1048576,$A133,CN$1))","v":""},{"$f":"IF($A133=\"N/A\",Ref!$B$36,INDEX(Ranks!$1:$1048576,$A133,CO$1))","v":""},{"$f":"IF($A133=\"N/A\",Ref!$B$36,INDEX(Ranks!$1:$1048576,$A133,CP$1))","v":""},{"$f":"IF($A133=\"N/A\",Ref!$B$36,INDEX(Ranks!$1:$1048576,$A133,CQ$1))","v":""},{"$f":"IF($A133=\"N/A\",Ref!$B$36,INDEX(Ranks!$1:$1048576,$A133,CR$1))","v":""},{"$f":"IF($A133=\"N/A\",Ref!$B$36,INDEX(Ranks!$1:$1048576,$A133,CS$1))","v":""},{"$f":"IF($A133=\"N/A\",Ref!$B$36,INDEX(Ranks!$1:$1048576,$A133,CT$1))","v":""},{"$f":"IF($A133=\"N/A\",Ref!$B$36,INDEX(Ranks!$1:$1048576,$A133,CU$1))","v":""},{"$f":"IF($A133=\"N/A\",Ref!$B$36,INDEX(Ranks!$1:$1048576,$A133,CV$1))","v":""},{"$f":"IF($A133=\"N/A\",Ref!$B$36,INDEX(Ranks!$1:$1048576,$A133,CW$1))","v":""},{"$f":"IF($A133=\"N/A\",Ref!$B$36,INDEX(Ranks!$1:$1048576,$A133,CX$1))","v":""},{"$f":"IF($A133=\"N/A\",Ref!$B$36,INDEX(Ranks!$1:$1048576,$A133,CY$1))","v":""},{"$f":"IF($A133=\"N/A\",Ref!$B$36,INDEX(Ranks!$1:$1048576,$A133,CZ$1))","v":""},{"$f":"IF($A133=\"N/A\",Ref!$B$36,INDEX(Ranks!$1:$1048576,$A133,DA$1))","v":""},{"$f":"IF($A133=\"N/A\",Ref!$B$36,INDEX(Ranks!$1:$1048576,$A133,DB$1))","v":""},{"$f":"IF($A133=\"N/A\",Ref!$B$36,INDEX(Ranks!$1:$1048576,$A133,DC$1))","v":""},{"$f":"IF($A133=\"N/A\",Ref!$B$36,INDEX(Ranks!$1:$1048576,$A133,DD$1))","v":""},{"$f":"IF($A133=\"N/A\",Ref!$B$36,INDEX(Ranks!$1:$1048576,$A133,DE$1))","v":""},{"$f":"IF($A133=\"N/A\",Ref!$B$36,INDEX(Ranks!$1:$1048576,$A133,DF$1))","v":""},{"$f":"IF($A133=\"N/A\",Ref!$B$36,INDEX(Ranks!$1:$1048576,$A133,DG$1))","v":""},{"$f":"IF($A133=\"N/A\",Ref!$B$36,INDEX(Ranks!$1:$1048576,$A133,DH$1))","v":""},{"$f":"IF($A133=\"N/A\",Ref!$B$36,INDEX(Ranks!$1:$1048576,$A133,DI$1))","v":""},{"$f":"IF($A133=\"N/A\",Ref!$B$36,INDEX(Ranks!$1:$1048576,$A133,DJ$1))","v":""},{"$f":"IF($A133=\"N/A\",Ref!$B$36,INDEX(Ranks!$1:$1048576,$A133,DK$1))","v":""},{"$f":"IF($A133=\"N/A\",Ref!$B$36,INDEX(Ranks!$1:$1048576,$A133,DL$1))","v":""},{"$f":"IF($A133=\"N/A\",Ref!$B$36,INDEX(Ranks!$1:$1048576,$A133,DM$1))","v":""},{"$f":"IF($A133=\"N/A\",Ref!$B$36,INDEX(Ranks!$1:$1048576,$A133,DN$1))","v":""},{"$f":"IF($A133=\"N/A\",Ref!$B$36,INDEX(Ranks!$1:$1048576,$A133,DO$1))","v":""},{"$f":"IF($A133=\"N/A\",Ref!$B$36,INDEX(Ranks!$1:$1048576,$A133,DP$1))","v":""},{"$f":"IF($A133=\"N/A\",Ref!$B$36,INDEX(Ranks!$1:$1048576,$A133,DQ$1))","v":""},{"$f":"IF($A133=\"N/A\",Ref!$B$36,INDEX(Ranks!$1:$1048576,$A133,DR$1))","v":""},{"$f":"IF($A133=\"N/A\",Ref!$B$36,INDEX(Ranks!$1:$1048576,$A133,DS$1))","v":""},{"$f":"IF($A133=\"N/A\",Ref!$B$36,INDEX(Ranks!$1:$1048576,$A133,DT$1))","v":""},{"$f":"IF($A133=\"N/A\",Ref!$B$36,INDEX(Ranks!$1:$1048576,$A133,DU$1))","v":""},{"$f":"IF($A133=\"N/A\",Ref!$B$36,INDEX(Ranks!$1:$1048576,$A133,DV$1))","v":""},{"$f":"IF($A133=\"N/A\",Ref!$B$36,INDEX(Ranks!$1:$1048576,$A133,DW$1))","v":""},{"$f":"IF($A133=\"N/A\",Ref!$B$36,INDEX(Ranks!$1:$1048576,$A133,DX$1))","v":""},{"$f":"IF($A133=\"N/A\",Ref!$B$36,INDEX(Ranks!$1:$1048576,$A133,DY$1))","v":""},{"$f":"IF($A133=\"N/A\",Ref!$B$36,INDEX(Ranks!$1:$1048576,$A133,DZ$1))","v":""},{"$f":"IF($A133=\"N/A\",Ref!$B$36,INDEX(Ranks!$1:$1048576,$A133,EA$1))","v":""},{"$f":"IF($A133=\"N/A\",Ref!$B$36,INDEX(Ranks!$1:$1048576,$A133,EB$1))","v":""}]
[{"$f":"IFERROR(MATCH('Portfolio Page'!L134,Ranks!L:L,0),\"N/A\")","v":"N/A"},null,{"$f":"IF($A134=\"N/A\",\"\",INDEX(Ranks!$1:$1048576,$A134,C$1))","v":""},{"$f":"IF($A134=\"N/A\",Ref!$B$36,INDEX(Ranks!$1:$1048576,$A134,D$1))","v":""},{"$f":"IF($A134=\"N/A\",Ref!$B$36,INDEX(Ranks!$1:$1048576,$A134,E$1))","v":""},{"$f":"IF($A134=\"N/A\",\"\",INDEX(Ranks!$1:$1048576,$A134,F$1))","v":""},{"$f":"IF($A134=\"N/A\",\"\",INDEX(Ranks!$1:$1048576,$A134,G$1))","v":""},{"$f":"IF($A134=\"N/A\",\"\",INDEX(Ranks!$1:$1048576,$A134,H$1))","v":""},{"$f":"IF($A134=\"N/A\",\"\",INDEX(Ranks!$1:$1048576,$A134,I$1))","v":""},{"$f":"IF($A134=\"N/A\",\"\",INDEX(Ranks!$1:$1048576,$A134,J$1))","v":""},{"$f":"IF($A134=\"N/A\",\"\",INDEX(Ranks!$1:$1048576,$A134,K$1))","v":""},null,{"$f":"IF($A134=\"N/A\",Ref!$B$36,INDEX(Ranks!$1:$1048576,$A134,M$1))","v":""},{"$f":"IF($A134=\"N/A\",Ref!$B$36,INDEX(Ranks!$1:$1048576,$A134,N$1))","v":""},{"$f":"IF($A134=\"N/A\",Ref!$B$36,INDEX(Ranks!$1:$1048576,$A134,O$1))","v":""},{"$f":"IF($A134=\"N/A\",Ref!$B$36,INDEX(Ranks!$1:$1048576,$A134,P$1))","v":""},{"$f":"IF($A134=\"N/A\",Ref!$B$36,INDEX(Ranks!$1:$1048576,$A134,Q$1))","v":""},{"$f":"IF($A134=\"N/A\",Ref!$B$36,INDEX(Ranks!$1:$1048576,$A134,R$1))","v":""},{"$f":"IF($A134=\"N/A\",Ref!$B$36,INDEX(Ranks!$1:$1048576,$A134,S$1))","v":""},{"$f":"IF($A134=\"N/A\",Ref!$B$36,INDEX(Ranks!$1:$1048576,$A134,T$1))","v":""},{"$f":"IF($A134=\"N/A\",Ref!$B$36,INDEX(Ranks!$1:$1048576,$A134,U$1))","v":""},{"$f":"IF($A134=\"N/A\",Ref!$B$36,INDEX(Ranks!$1:$1048576,$A134,V$1))","v":""},{"$f":"IF($A134=\"N/A\",Ref!$B$36,INDEX(Ranks!$1:$1048576,$A134,W$1))","v":""},{"$f":"IF($A134=\"N/A\",Ref!$B$36,INDEX(Ranks!$1:$1048576,$A134,X$1))","v":""},{"$f":"IF($A134=\"N/A\",Ref!$B$36,INDEX(Ranks!$1:$1048576,$A134,Y$1))","v":""},{"$f":"IF($A134=\"N/A\",Ref!$B$36,INDEX(Ranks!$1:$1048576,$A134,Z$1))","v":""},{"$f":"IF($A134=\"N/A\",Ref!$B$36,INDEX(Ranks!$1:$1048576,$A134,AA$1))","v":""},{"$f":"IF($A134=\"N/A\",Ref!$B$36,INDEX(Ranks!$1:$1048576,$A134,AB$1))","v":""},{"$f":"IF($A134=\"N/A\",Ref!$B$36,INDEX(Ranks!$1:$1048576,$A134,AC$1))","v":""},{"$f":"IF($A134=\"N/A\",Ref!$B$36,INDEX(Ranks!$1:$1048576,$A134,AD$1))","v":""},{"$f":"IF($A134=\"N/A\",Ref!$B$36,INDEX(Ranks!$1:$1048576,$A134,AE$1))","v":""},{"$f":"IF($A134=\"N/A\",Ref!$B$36,INDEX(Ranks!$1:$1048576,$A134,AF$1))","v":""},{"$f":"IF($A134=\"N/A\",Ref!$B$36,INDEX(Ranks!$1:$1048576,$A134,AG$1))","v":""},{"$f":"IF($A134=\"N/A\",Ref!$B$36,INDEX(Ranks!$1:$1048576,$A134,AH$1))","v":""},{"$f":"IF($A134=\"N/A\",Ref!$B$36,INDEX(Ranks!$1:$1048576,$A134,AI$1))","v":""},{"$f":"IF($A134=\"N/A\",Ref!$B$36,INDEX(Ranks!$1:$1048576,$A134,AJ$1))","v":""},{"$f":"IF($A134=\"N/A\",Ref!$B$36,INDEX(Ranks!$1:$1048576,$A134,AK$1))","v":""},{"$f":"IF($A134=\"N/A\",Ref!$B$36,INDEX(Ranks!$1:$1048576,$A134,AL$1))","v":""},{"$f":"IF($A134=\"N/A\",Ref!$B$36,INDEX(Ranks!$1:$1048576,$A134,AM$1))","v":""},{"$f":"IF($A134=\"N/A\",Ref!$B$36,INDEX(Ranks!$1:$1048576,$A134,AN$1))","v":""},{"$f":"IF($A134=\"N/A\",Ref!$B$36,INDEX(Ranks!$1:$1048576,$A134,AO$1))","v":""},{"$f":"IF($A134=\"N/A\",Ref!$B$36,INDEX(Ranks!$1:$1048576,$A134,AP$1))","v":""},{"$f":"IF($A134=\"N/A\",Ref!$B$36,INDEX(Ranks!$1:$1048576,$A134,AQ$1))","v":""},{"$f":"IF($A134=\"N/A\",Ref!$B$36,INDEX(Ranks!$1:$1048576,$A134,AR$1))","v":""},{"$f":"IF($A134=\"N/A\",Ref!$B$36,INDEX(Ranks!$1:$1048576,$A134,AS$1))","v":""},{"$f":"IF($A134=\"N/A\",Ref!$B$36,INDEX(Ranks!$1:$1048576,$A134,AT$1))","v":""},{"$f":"IF($A134=\"N/A\",Ref!$B$36,INDEX(Ranks!$1:$1048576,$A134,AU$1))","v":""},{"$f":"IF($A134=\"N/A\",Ref!$B$36,INDEX(Ranks!$1:$1048576,$A134,AV$1))","v":""},{"$f":"IF($A134=\"N/A\",Ref!$B$36,INDEX(Ranks!$1:$1048576,$A134,AW$1))","v":""},{"$f":"IF($A134=\"N/A\",Ref!$B$36,INDEX(Ranks!$1:$1048576,$A134,AX$1))","v":""},{"$f":"IF($A134=\"N/A\",Ref!$B$36,INDEX(Ranks!$1:$1048576,$A134,AY$1))","v":""},{"$f":"IF($A134=\"N/A\",Ref!$B$36,INDEX(Ranks!$1:$1048576,$A134,AZ$1))","v":""},{"$f":"IF($A134=\"N/A\",Ref!$B$36,INDEX(Ranks!$1:$1048576,$A134,BA$1))","v":""},{"$f":"IF($A134=\"N/A\",Ref!$B$36,INDEX(Ranks!$1:$1048576,$A134,BB$1))","v":""},{"$f":"IF($A134=\"N/A\",Ref!$B$36,INDEX(Ranks!$1:$1048576,$A134,BC$1))","v":""},{"$f":"IF($A134=\"N/A\",Ref!$B$36,INDEX(Ranks!$1:$1048576,$A134,BD$1))","v":""},{"$f":"IF($A134=\"N/A\",Ref!$B$36,INDEX(Ranks!$1:$1048576,$A134,BE$1))","v":""},{"$f":"IF($A134=\"N/A\",Ref!$B$36,INDEX(Ranks!$1:$1048576,$A134,BF$1))","v":""},{"$f":"IF($A134=\"N/A\",Ref!$B$36,INDEX(Ranks!$1:$1048576,$A134,BG$1))","v":""},{"$f":"IF($A134=\"N/A\",Ref!$B$36,INDEX(Ranks!$1:$1048576,$A134,BH$1))","v":""},{"$f":"IF($A134=\"N/A\",Ref!$B$36,INDEX(Ranks!$1:$1048576,$A134,BI$1))","v":""},{"$f":"IF($A134=\"N/A\",Ref!$B$36,INDEX(Ranks!$1:$1048576,$A134,BJ$1))","v":""},{"$f":"IF($A134=\"N/A\",Ref!$B$36,INDEX(Ranks!$1:$1048576,$A134,BK$1))","v":""},{"$f":"IF($A134=\"N/A\",Ref!$B$36,INDEX(Ranks!$1:$1048576,$A134,BL$1))","v":""},{"$f":"IF($A134=\"N/A\",Ref!$B$36,INDEX(Ranks!$1:$1048576,$A134,BM$1))","v":""},{"$f":"IF($A134=\"N/A\",Ref!$B$36,INDEX(Ranks!$1:$1048576,$A134,BN$1))","v":""},{"$f":"IF($A134=\"N/A\",Ref!$B$36,INDEX(Ranks!$1:$1048576,$A134,BO$1))","v":""},{"$f":"IF($A134=\"N/A\",Ref!$B$36,INDEX(Ranks!$1:$1048576,$A134,BP$1))","v":""},{"$f":"IF($A134=\"N/A\",Ref!$B$36,INDEX(Ranks!$1:$1048576,$A134,BQ$1))","v":""},{"$f":"IF($A134=\"N/A\",Ref!$B$36,INDEX(Ranks!$1:$1048576,$A134,BR$1))","v":""},{"$f":"IF($A134=\"N/A\",Ref!$B$36,INDEX(Ranks!$1:$1048576,$A134,BS$1))","v":""},{"$f":"IF($A134=\"N/A\",Ref!$B$36,INDEX(Ranks!$1:$1048576,$A134,BT$1))","v":""},{"$f":"IF($A134=\"N/A\",Ref!$B$36,INDEX(Ranks!$1:$1048576,$A134,BU$1))","v":""},{"$f":"IF($A134=\"N/A\",Ref!$B$36,INDEX(Ranks!$1:$1048576,$A134,BV$1))","v":""},{"$f":"IF($A134=\"N/A\",Ref!$B$36,INDEX(Ranks!$1:$1048576,$A134,BW$1))","v":""},{"$f":"IF($A134=\"N/A\",Ref!$B$36,INDEX(Ranks!$1:$1048576,$A134,BX$1))","v":""},{"$f":"IF($A134=\"N/A\",Ref!$B$36,INDEX(Ranks!$1:$1048576,$A134,BY$1))","v":""},{"$f":"IF($A134=\"N/A\",Ref!$B$36,INDEX(Ranks!$1:$1048576,$A134,BZ$1))","v":""},{"$f":"IF($A134=\"N/A\",Ref!$B$36,INDEX(Ranks!$1:$1048576,$A134,CA$1))","v":""},{"$f":"IF($A134=\"N/A\",Ref!$B$36,INDEX(Ranks!$1:$1048576,$A134,CB$1))","v":""},{"$f":"IF($A134=\"N/A\",Ref!$B$36,INDEX(Ranks!$1:$1048576,$A134,CC$1))","v":""},{"$f":"IF($A134=\"N/A\",Ref!$B$36,INDEX(Ranks!$1:$1048576,$A134,CD$1))","v":""},{"$f":"IF($A134=\"N/A\",Ref!$B$36,INDEX(Ranks!$1:$1048576,$A134,CE$1))","v":""},{"$f":"IF($A134=\"N/A\",Ref!$B$36,INDEX(Ranks!$1:$1048576,$A134,CF$1))","v":""},{"$f":"IF($A134=\"N/A\",Ref!$B$36,INDEX(Ranks!$1:$1048576,$A134,CG$1))","v":""},{"$f":"IF($A134=\"N/A\",Ref!$B$36,INDEX(Ranks!$1:$1048576,$A134,CH$1))","v":""},{"$f":"IF($A134=\"N/A\",Ref!$B$36,INDEX(Ranks!$1:$1048576,$A134,CI$1))","v":""},{"$f":"IF($A134=\"N/A\",Ref!$B$36,INDEX(Ranks!$1:$1048576,$A134,CJ$1))","v":""},{"$f":"IF($A134=\"N/A\",Ref!$B$36,INDEX(Ranks!$1:$1048576,$A134,CK$1))","v":""},{"$f":"IF($A134=\"N/A\",Ref!$B$36,INDEX(Ranks!$1:$1048576,$A134,CL$1))","v":""},{"$f":"IF($A134=\"N/A\",Ref!$B$36,INDEX(Ranks!$1:$1048576,$A134,CM$1))","v":""},{"$f":"IF($A134=\"N/A\",Ref!$B$36,INDEX(Ranks!$1:$1048576,$A134,CN$1))","v":""},{"$f":"IF($A134=\"N/A\",Ref!$B$36,INDEX(Ranks!$1:$1048576,$A134,CO$1))","v":""},{"$f":"IF($A134=\"N/A\",Ref!$B$36,INDEX(Ranks!$1:$1048576,$A134,CP$1))","v":""},{"$f":"IF($A134=\"N/A\",Ref!$B$36,INDEX(Ranks!$1:$1048576,$A134,CQ$1))","v":""},{"$f":"IF($A134=\"N/A\",Ref!$B$36,INDEX(Ranks!$1:$1048576,$A134,CR$1))","v":""},{"$f":"IF($A134=\"N/A\",Ref!$B$36,INDEX(Ranks!$1:$1048576,$A134,CS$1))","v":""},{"$f":"IF($A134=\"N/A\",Ref!$B$36,INDEX(Ranks!$1:$1048576,$A134,CT$1))","v":""},{"$f":"IF($A134=\"N/A\",Ref!$B$36,INDEX(Ranks!$1:$1048576,$A134,CU$1))","v":""},{"$f":"IF($A134=\"N/A\",Ref!$B$36,INDEX(Ranks!$1:$1048576,$A134,CV$1))","v":""},{"$f":"IF($A134=\"N/A\",Ref!$B$36,INDEX(Ranks!$1:$1048576,$A134,CW$1))","v":""},{"$f":"IF($A134=\"N/A\",Ref!$B$36,INDEX(Ranks!$1:$1048576,$A134,CX$1))","v":""},{"$f":"IF($A134=\"N/A\",Ref!$B$36,INDEX(Ranks!$1:$1048576,$A134,CY$1))","v":""},{"$f":"IF($A134=\"N/A\",Ref!$B$36,INDEX(Ranks!$1:$1048576,$A134,CZ$1))","v":""},{"$f":"IF($A134=\"N/A\",Ref!$B$36,INDEX(Ranks!$1:$1048576,$A134,DA$1))","v":""},{"$f":"IF($A134=\"N/A\",Ref!$B$36,INDEX(Ranks!$1:$1048576,$A134,DB$1))","v":""},{"$f":"IF($A134=\"N/A\",Ref!$B$36,INDEX(Ranks!$1:$1048576,$A134,DC$1))","v":""},{"$f":"IF($A134=\"N/A\",Ref!$B$36,INDEX(Ranks!$1:$1048576,$A134,DD$1))","v":""},{"$f":"IF($A134=\"N/A\",Ref!$B$36,INDEX(Ranks!$1:$1048576,$A134,DE$1))","v":""},{"$f":"IF($A134=\"N/A\",Ref!$B$36,INDEX(Ranks!$1:$1048576,$A134,DF$1))","v":""},{"$f":"IF($A134=\"N/A\",Ref!$B$36,INDEX(Ranks!$1:$1048576,$A134,DG$1))","v":""},{"$f":"IF($A134=\"N/A\",Ref!$B$36,INDEX(Ranks!$1:$1048576,$A134,DH$1))","v":""},{"$f":"IF($A134=\"N/A\",Ref!$B$36,INDEX(Ranks!$1:$1048576,$A134,DI$1))","v":""},{"$f":"IF($A134=\"N/A\",Ref!$B$36,INDEX(Ranks!$1:$1048576,$A134,DJ$1))","v":""},{"$f":"IF($A134=\"N/A\",Ref!$B$36,INDEX(Ranks!$1:$1048576,$A134,DK$1))","v":""},{"$f":"IF($A134=\"N/A\",Ref!$B$36,INDEX(Ranks!$1:$1048576,$A134,DL$1))","v":""},{"$f":"IF($A134=\"N/A\",Ref!$B$36,INDEX(Ranks!$1:$1048576,$A134,DM$1))","v":""},{"$f":"IF($A134=\"N/A\",Ref!$B$36,INDEX(Ranks!$1:$1048576,$A134,DN$1))","v":""},{"$f":"IF($A134=\"N/A\",Ref!$B$36,INDEX(Ranks!$1:$1048576,$A134,DO$1))","v":""},{"$f":"IF($A134=\"N/A\",Ref!$B$36,INDEX(Ranks!$1:$1048576,$A134,DP$1))","v":""},{"$f":"IF($A134=\"N/A\",Ref!$B$36,INDEX(Ranks!$1:$1048576,$A134,DQ$1))","v":""},{"$f":"IF($A134=\"N/A\",Ref!$B$36,INDEX(Ranks!$1:$1048576,$A134,DR$1))","v":""},{"$f":"IF($A134=\"N/A\",Ref!$B$36,INDEX(Ranks!$1:$1048576,$A134,DS$1))","v":""},{"$f":"IF($A134=\"N/A\",Ref!$B$36,INDEX(Ranks!$1:$1048576,$A134,DT$1))","v":""},{"$f":"IF($A134=\"N/A\",Ref!$B$36,INDEX(Ranks!$1:$1048576,$A134,DU$1))","v":""},{"$f":"IF($A134=\"N/A\",Ref!$B$36,INDEX(Ranks!$1:$1048576,$A134,DV$1))","v":""},{"$f":"IF($A134=\"N/A\",Ref!$B$36,INDEX(Ranks!$1:$1048576,$A134,DW$1))","v":""},{"$f":"IF($A134=\"N/A\",Ref!$B$36,INDEX(Ranks!$1:$1048576,$A134,DX$1))","v":""},{"$f":"IF($A134=\"N/A\",Ref!$B$36,INDEX(Ranks!$1:$1048576,$A134,DY$1))","v":""},{"$f":"IF($A134=\"N/A\",Ref!$B$36,INDEX(Ranks!$1:$1048576,$A134,DZ$1))","v":""},{"$f":"IF($A134=\"N/A\",Ref!$B$36,INDEX(Ranks!$1:$1048576,$A134,EA$1))","v":""},{"$f":"IF($A134=\"N/A\",Ref!$B$36,INDEX(Ranks!$1:$1048576,$A134,EB$1))","v":""}]
[{"$f":"IFERROR(MATCH('Portfolio Page'!L135,Ranks!L:L,0),\"N/A\")","v":"N/A"},null,{"$f":"IF($A135=\"N/A\",\"\",INDEX(Ranks!$1:$1048576,$A135,C$1))","v":""},{"$f":"IF($A135=\"N/A\",Ref!$B$36,INDEX(Ranks!$1:$1048576,$A135,D$1))","v":""},{"$f":"IF($A135=\"N/A\",Ref!$B$36,INDEX(Ranks!$1:$1048576,$A135,E$1))","v":""},{"$f":"IF($A135=\"N/A\",\"\",INDEX(Ranks!$1:$1048576,$A135,F$1))","v":""},{"$f":"IF($A135=\"N/A\",\"\",INDEX(Ranks!$1:$1048576,$A135,G$1))","v":""},{"$f":"IF($A135=\"N/A\",\"\",INDEX(Ranks!$1:$1048576,$A135,H$1))","v":""},{"$f":"IF($A135=\"N/A\",\"\",INDEX(Ranks!$1:$1048576,$A135,I$1))","v":""},{"$f":"IF($A135=\"N/A\",\"\",INDEX(Ranks!$1:$1048576,$A135,J$1))","v":""},{"$f":"IF($A135=\"N/A\",\"\",INDEX(Ranks!$1:$1048576,$A135,K$1))","v":""},null,{"$f":"IF($A135=\"N/A\",Ref!$B$36,INDEX(Ranks!$1:$1048576,$A135,M$1))","v":""},{"$f":"IF($A135=\"N/A\",Ref!$B$36,INDEX(Ranks!$1:$1048576,$A135,N$1))","v":""},{"$f":"IF($A135=\"N/A\",Ref!$B$36,INDEX(Ranks!$1:$1048576,$A135,O$1))","v":""},{"$f":"IF($A135=\"N/A\",Ref!$B$36,INDEX(Ranks!$1:$1048576,$A135,P$1))","v":""},{"$f":"IF($A135=\"N/A\",Ref!$B$36,INDEX(Ranks!$1:$1048576,$A135,Q$1))","v":""},{"$f":"IF($A135=\"N/A\",Ref!$B$36,INDEX(Ranks!$1:$1048576,$A135,R$1))","v":""},{"$f":"IF($A135=\"N/A\",Ref!$B$36,INDEX(Ranks!$1:$1048576,$A135,S$1))","v":""},{"$f":"IF($A135=\"N/A\",Ref!$B$36,INDEX(Ranks!$1:$1048576,$A135,T$1))","v":""},{"$f":"IF($A135=\"N/A\",Ref!$B$36,INDEX(Ranks!$1:$1048576,$A135,U$1))","v":""},{"$f":"IF($A135=\"N/A\",Ref!$B$36,INDEX(Ranks!$1:$1048576,$A135,V$1))","v":""},{"$f":"IF($A135=\"N/A\",Ref!$B$36,INDEX(Ranks!$1:$1048576,$A135,W$1))","v":""},{"$f":"IF($A135=\"N/A\",Ref!$B$36,INDEX(Ranks!$1:$1048576,$A135,X$1))","v":""},{"$f":"IF($A135=\"N/A\",Ref!$B$36,INDEX(Ranks!$1:$1048576,$A135,Y$1))","v":""},{"$f":"IF($A135=\"N/A\",Ref!$B$36,INDEX(Ranks!$1:$1048576,$A135,Z$1))","v":""},{"$f":"IF($A135=\"N/A\",Ref!$B$36,INDEX(Ranks!$1:$1048576,$A135,AA$1))","v":""},{"$f":"IF($A135=\"N/A\",Ref!$B$36,INDEX(Ranks!$1:$1048576,$A135,AB$1))","v":""},{"$f":"IF($A135=\"N/A\",Ref!$B$36,INDEX(Ranks!$1:$1048576,$A135,AC$1))","v":""},{"$f":"IF($A135=\"N/A\",Ref!$B$36,INDEX(Ranks!$1:$1048576,$A135,AD$1))","v":""},{"$f":"IF($A135=\"N/A\",Ref!$B$36,INDEX(Ranks!$1:$1048576,$A135,AE$1))","v":""},{"$f":"IF($A135=\"N/A\",Ref!$B$36,INDEX(Ranks!$1:$1048576,$A135,AF$1))","v":""},{"$f":"IF($A135=\"N/A\",Ref!$B$36,INDEX(Ranks!$1:$1048576,$A135,AG$1))","v":""},{"$f":"IF($A135=\"N/A\",Ref!$B$36,INDEX(Ranks!$1:$1048576,$A135,AH$1))","v":""},{"$f":"IF($A135=\"N/A\",Ref!$B$36,INDEX(Ranks!$1:$1048576,$A135,AI$1))","v":""},{"$f":"IF($A135=\"N/A\",Ref!$B$36,INDEX(Ranks!$1:$1048576,$A135,AJ$1))","v":""},{"$f":"IF($A135=\"N/A\",Ref!$B$36,INDEX(Ranks!$1:$1048576,$A135,AK$1))","v":""},{"$f":"IF($A135=\"N/A\",Ref!$B$36,INDEX(Ranks!$1:$1048576,$A135,AL$1))","v":""},{"$f":"IF($A135=\"N/A\",Ref!$B$36,INDEX(Ranks!$1:$1048576,$A135,AM$1))","v":""},{"$f":"IF($A135=\"N/A\",Ref!$B$36,INDEX(Ranks!$1:$1048576,$A135,AN$1))","v":""},{"$f":"IF($A135=\"N/A\",Ref!$B$36,INDEX(Ranks!$1:$1048576,$A135,AO$1))","v":""},{"$f":"IF($A135=\"N/A\",Ref!$B$36,INDEX(Ranks!$1:$1048576,$A135,AP$1))","v":""},{"$f":"IF($A135=\"N/A\",Ref!$B$36,INDEX(Ranks!$1:$1048576,$A135,AQ$1))","v":""},{"$f":"IF($A135=\"N/A\",Ref!$B$36,INDEX(Ranks!$1:$1048576,$A135,AR$1))","v":""},{"$f":"IF($A135=\"N/A\",Ref!$B$36,INDEX(Ranks!$1:$1048576,$A135,AS$1))","v":""},{"$f":"IF($A135=\"N/A\",Ref!$B$36,INDEX(Ranks!$1:$1048576,$A135,AT$1))","v":""},{"$f":"IF($A135=\"N/A\",Ref!$B$36,INDEX(Ranks!$1:$1048576,$A135,AU$1))","v":""},{"$f":"IF($A135=\"N/A\",Ref!$B$36,INDEX(Ranks!$1:$1048576,$A135,AV$1))","v":""},{"$f":"IF($A135=\"N/A\",Ref!$B$36,INDEX(Ranks!$1:$1048576,$A135,AW$1))","v":""},{"$f":"IF($A135=\"N/A\",Ref!$B$36,INDEX(Ranks!$1:$1048576,$A135,AX$1))","v":""},{"$f":"IF($A135=\"N/A\",Ref!$B$36,INDEX(Ranks!$1:$1048576,$A135,AY$1))","v":""},{"$f":"IF($A135=\"N/A\",Ref!$B$36,INDEX(Ranks!$1:$1048576,$A135,AZ$1))","v":""},{"$f":"IF($A135=\"N/A\",Ref!$B$36,INDEX(Ranks!$1:$1048576,$A135,BA$1))","v":""},{"$f":"IF($A135=\"N/A\",Ref!$B$36,INDEX(Ranks!$1:$1048576,$A135,BB$1))","v":""},{"$f":"IF($A135=\"N/A\",Ref!$B$36,INDEX(Ranks!$1:$1048576,$A135,BC$1))","v":""},{"$f":"IF($A135=\"N/A\",Ref!$B$36,INDEX(Ranks!$1:$1048576,$A135,BD$1))","v":""},{"$f":"IF($A135=\"N/A\",Ref!$B$36,INDEX(Ranks!$1:$1048576,$A135,BE$1))","v":""},{"$f":"IF($A135=\"N/A\",Ref!$B$36,INDEX(Ranks!$1:$1048576,$A135,BF$1))","v":""},{"$f":"IF($A135=\"N/A\",Ref!$B$36,INDEX(Ranks!$1:$1048576,$A135,BG$1))","v":""},{"$f":"IF($A135=\"N/A\",Ref!$B$36,INDEX(Ranks!$1:$1048576,$A135,BH$1))","v":""},{"$f":"IF($A135=\"N/A\",Ref!$B$36,INDEX(Ranks!$1:$1048576,$A135,BI$1))","v":""},{"$f":"IF($A135=\"N/A\",Ref!$B$36,INDEX(Ranks!$1:$1048576,$A135,BJ$1))","v":""},{"$f":"IF($A135=\"N/A\",Ref!$B$36,INDEX(Ranks!$1:$1048576,$A135,BK$1))","v":""},{"$f":"IF($A135=\"N/A\",Ref!$B$36,INDEX(Ranks!$1:$1048576,$A135,BL$1))","v":""},{"$f":"IF($A135=\"N/A\",Ref!$B$36,INDEX(Ranks!$1:$1048576,$A135,BM$1))","v":""},{"$f":"IF($A135=\"N/A\",Ref!$B$36,INDEX(Ranks!$1:$1048576,$A135,BN$1))","v":""},{"$f":"IF($A135=\"N/A\",Ref!$B$36,INDEX(Ranks!$1:$1048576,$A135,BO$1))","v":""},{"$f":"IF($A135=\"N/A\",Ref!$B$36,INDEX(Ranks!$1:$1048576,$A135,BP$1))","v":""},{"$f":"IF($A135=\"N/A\",Ref!$B$36,INDEX(Ranks!$1:$1048576,$A135,BQ$1))","v":""},{"$f":"IF($A135=\"N/A\",Ref!$B$36,INDEX(Ranks!$1:$1048576,$A135,BR$1))","v":""},{"$f":"IF($A135=\"N/A\",Ref!$B$36,INDEX(Ranks!$1:$1048576,$A135,BS$1))","v":""},{"$f":"IF($A135=\"N/A\",Ref!$B$36,INDEX(Ranks!$1:$1048576,$A135,BT$1))","v":""},{"$f":"IF($A135=\"N/A\",Ref!$B$36,INDEX(Ranks!$1:$1048576,$A135,BU$1))","v":""},{"$f":"IF($A135=\"N/A\",Ref!$B$36,INDEX(Ranks!$1:$1048576,$A135,BV$1))","v":""},{"$f":"IF($A135=\"N/A\",Ref!$B$36,INDEX(Ranks!$1:$1048576,$A135,BW$1))","v":""},{"$f":"IF($A135=\"N/A\",Ref!$B$36,INDEX(Ranks!$1:$1048576,$A135,BX$1))","v":""},{"$f":"IF($A135=\"N/A\",Ref!$B$36,INDEX(Ranks!$1:$1048576,$A135,BY$1))","v":""},{"$f":"IF($A135=\"N/A\",Ref!$B$36,INDEX(Ranks!$1:$1048576,$A135,BZ$1))","v":""},{"$f":"IF($A135=\"N/A\",Ref!$B$36,INDEX(Ranks!$1:$1048576,$A135,CA$1))","v":""},{"$f":"IF($A135=\"N/A\",Ref!$B$36,INDEX(Ranks!$1:$1048576,$A135,CB$1))","v":""},{"$f":"IF($A135=\"N/A\",Ref!$B$36,INDEX(Ranks!$1:$1048576,$A135,CC$1))","v":""},{"$f":"IF($A135=\"N/A\",Ref!$B$36,INDEX(Ranks!$1:$1048576,$A135,CD$1))","v":""},{"$f":"IF($A135=\"N/A\",Ref!$B$36,INDEX(Ranks!$1:$1048576,$A135,CE$1))","v":""},{"$f":"IF($A135=\"N/A\",Ref!$B$36,INDEX(Ranks!$1:$1048576,$A135,CF$1))","v":""},{"$f":"IF($A135=\"N/A\",Ref!$B$36,INDEX(Ranks!$1:$1048576,$A135,CG$1))","v":""},{"$f":"IF($A135=\"N/A\",Ref!$B$36,INDEX(Ranks!$1:$1048576,$A135,CH$1))","v":""},{"$f":"IF($A135=\"N/A\",Ref!$B$36,INDEX(Ranks!$1:$1048576,$A135,CI$1))","v":""},{"$f":"IF($A135=\"N/A\",Ref!$B$36,INDEX(Ranks!$1:$1048576,$A135,CJ$1))","v":""},{"$f":"IF($A135=\"N/A\",Ref!$B$36,INDEX(Ranks!$1:$1048576,$A135,CK$1))","v":""},{"$f":"IF($A135=\"N/A\",Ref!$B$36,INDEX(Ranks!$1:$1048576,$A135,CL$1))","v":""},{"$f":"IF($A135=\"N/A\",Ref!$B$36,INDEX(Ranks!$1:$1048576,$A135,CM$1))","v":""},{"$f":"IF($A135=\"N/A\",Ref!$B$36,INDEX(Ranks!$1:$1048576,$A135,CN$1))","v":""},{"$f":"IF($A135=\"N/A\",Ref!$B$36,INDEX(Ranks!$1:$1048576,$A135,CO$1))","v":""},{"$f":"IF($A135=\"N/A\",Ref!$B$36,INDEX(Ranks!$1:$1048576,$A135,CP$1))","v":""},{"$f":"IF($A135=\"N/A\",Ref!$B$36,INDEX(Ranks!$1:$1048576,$A135,CQ$1))","v":""},{"$f":"IF($A135=\"N/A\",Ref!$B$36,INDEX(Ranks!$1:$1048576,$A135,CR$1))","v":""},{"$f":"IF($A135=\"N/A\",Ref!$B$36,INDEX(Ranks!$1:$1048576,$A135,CS$1))","v":""},{"$f":"IF($A135=\"N/A\",Ref!$B$36,INDEX(Ranks!$1:$1048576,$A135,CT$1))","v":""},{"$f":"IF($A135=\"N/A\",Ref!$B$36,INDEX(Ranks!$1:$1048576,$A135,CU$1))","v":""},{"$f":"IF($A135=\"N/A\",Ref!$B$36,INDEX(Ranks!$1:$1048576,$A135,CV$1))","v":""},{"$f":"IF($A135=\"N/A\",Ref!$B$36,INDEX(Ranks!$1:$1048576,$A135,CW$1))","v":""},{"$f":"IF($A135=\"N/A\",Ref!$B$36,INDEX(Ranks!$1:$1048576,$A135,CX$1))","v":""},{"$f":"IF($A135=\"N/A\",Ref!$B$36,INDEX(Ranks!$1:$1048576,$A135,CY$1))","v":""},{"$f":"IF($A135=\"N/A\",Ref!$B$36,INDEX(Ranks!$1:$1048576,$A135,CZ$1))","v":""},{"$f":"IF($A135=\"N/A\",Ref!$B$36,INDEX(Ranks!$1:$1048576,$A135,DA$1))","v":""},{"$f":"IF($A135=\"N/A\",Ref!$B$36,INDEX(Ranks!$1:$1048576,$A135,DB$1))","v":""},{"$f":"IF($A135=\"N/A\",Ref!$B$36,INDEX(Ranks!$1:$1048576,$A135,DC$1))","v":""},{"$f":"IF($A135=\"N/A\",Ref!$B$36,INDEX(Ranks!$1:$1048576,$A135,DD$1))","v":""},{"$f":"IF($A135=\"N/A\",Ref!$B$36,INDEX(Ranks!$1:$1048576,$A135,DE$1))","v":""},{"$f":"IF($A135=\"N/A\",Ref!$B$36,INDEX(Ranks!$1:$1048576,$A135,DF$1))","v":""},{"$f":"IF($A135=\"N/A\",Ref!$B$36,INDEX(Ranks!$1:$1048576,$A135,DG$1))","v":""},{"$f":"IF($A135=\"N/A\",Ref!$B$36,INDEX(Ranks!$1:$1048576,$A135,DH$1))","v":""},{"$f":"IF($A135=\"N/A\",Ref!$B$36,INDEX(Ranks!$1:$1048576,$A135,DI$1))","v":""},{"$f":"IF($A135=\"N/A\",Ref!$B$36,INDEX(Ranks!$1:$1048576,$A135,DJ$1))","v":""},{"$f":"IF($A135=\"N/A\",Ref!$B$36,INDEX(Ranks!$1:$1048576,$A135,DK$1))","v":""},{"$f":"IF($A135=\"N/A\",Ref!$B$36,INDEX(Ranks!$1:$1048576,$A135,DL$1))","v":""},{"$f":"IF($A135=\"N/A\",Ref!$B$36,INDEX(Ranks!$1:$1048576,$A135,DM$1))","v":""},{"$f":"IF($A135=\"N/A\",Ref!$B$36,INDEX(Ranks!$1:$1048576,$A135,DN$1))","v":""},{"$f":"IF($A135=\"N/A\",Ref!$B$36,INDEX(Ranks!$1:$1048576,$A135,DO$1))","v":""},{"$f":"IF($A135=\"N/A\",Ref!$B$36,INDEX(Ranks!$1:$1048576,$A135,DP$1))","v":""},{"$f":"IF($A135=\"N/A\",Ref!$B$36,INDEX(Ranks!$1:$1048576,$A135,DQ$1))","v":""},{"$f":"IF($A135=\"N/A\",Ref!$B$36,INDEX(Ranks!$1:$1048576,$A135,DR$1))","v":""},{"$f":"IF($A135=\"N/A\",Ref!$B$36,INDEX(Ranks!$1:$1048576,$A135,DS$1))","v":""},{"$f":"IF($A135=\"N/A\",Ref!$B$36,INDEX(Ranks!$1:$1048576,$A135,DT$1))","v":""},{"$f":"IF($A135=\"N/A\",Ref!$B$36,INDEX(Ranks!$1:$1048576,$A135,DU$1))","v":""},{"$f":"IF($A135=\"N/A\",Ref!$B$36,INDEX(Ranks!$1:$1048576,$A135,DV$1))","v":""},{"$f":"IF($A135=\"N/A\",Ref!$B$36,INDEX(Ranks!$1:$1048576,$A135,DW$1))","v":""},{"$f":"IF($A135=\"N/A\",Ref!$B$36,INDEX(Ranks!$1:$1048576,$A135,DX$1))","v":""},{"$f":"IF($A135=\"N/A\",Ref!$B$36,INDEX(Ranks!$1:$1048576,$A135,DY$1))","v":""},{"$f":"IF($A135=\"N/A\",Ref!$B$36,INDEX(Ranks!$1:$1048576,$A135,DZ$1))","v":""},{"$f":"IF($A135=\"N/A\",Ref!$B$36,INDEX(Ranks!$1:$1048576,$A135,EA$1))","v":""},{"$f":"IF($A135=\"N/A\",Ref!$B$36,INDEX(Ranks!$1:$1048576,$A135,EB$1))","v":""}]
[{"$f":"IFERROR(MATCH('Portfolio Page'!L136,Ranks!L:L,0),\"N/A\")","v":"N/A"},null,{"$f":"IF($A136=\"N/A\",\"\",INDEX(Ranks!$1:$1048576,$A136,C$1))","v":""},{"$f":"IF($A136=\"N/A\",Ref!$B$36,INDEX(Ranks!$1:$1048576,$A136,D$1))","v":""},{"$f":"IF($A136=\"N/A\",Ref!$B$36,INDEX(Ranks!$1:$1048576,$A136,E$1))","v":""},{"$f":"IF($A136=\"N/A\",\"\",INDEX(Ranks!$1:$1048576,$A136,F$1))","v":""},{"$f":"IF($A136=\"N/A\",\"\",INDEX(Ranks!$1:$1048576,$A136,G$1))","v":""},{"$f":"IF($A136=\"N/A\",\"\",INDEX(Ranks!$1:$1048576,$A136,H$1))","v":""},{"$f":"IF($A136=\"N/A\",\"\",INDEX(Ranks!$1:$1048576,$A136,I$1))","v":""},{"$f":"IF($A136=\"N/A\",\"\",INDEX(Ranks!$1:$1048576,$A136,J$1))","v":""},{"$f":"IF($A136=\"N/A\",\"\",INDEX(Ranks!$1:$1048576,$A136,K$1))","v":""},null,{"$f":"IF($A136=\"N/A\",Ref!$B$36,INDEX(Ranks!$1:$1048576,$A136,M$1))","v":""},{"$f":"IF($A136=\"N/A\",Ref!$B$36,INDEX(Ranks!$1:$1048576,$A136,N$1))","v":""},{"$f":"IF($A136=\"N/A\",Ref!$B$36,INDEX(Ranks!$1:$1048576,$A136,O$1))","v":""},{"$f":"IF($A136=\"N/A\",Ref!$B$36,INDEX(Ranks!$1:$1048576,$A136,P$1))","v":""},{"$f":"IF($A136=\"N/A\",Ref!$B$36,INDEX(Ranks!$1:$1048576,$A136,Q$1))","v":""},{"$f":"IF($A136=\"N/A\",Ref!$B$36,INDEX(Ranks!$1:$1048576,$A136,R$1))","v":""},{"$f":"IF($A136=\"N/A\",Ref!$B$36,INDEX(Ranks!$1:$1048576,$A136,S$1))","v":""},{"$f":"IF($A136=\"N/A\",Ref!$B$36,INDEX(Ranks!$1:$1048576,$A136,T$1))","v":""},{"$f":"IF($A136=\"N/A\",Ref!$B$36,INDEX(Ranks!$1:$1048576,$A136,U$1))","v":""},{"$f":"IF($A136=\"N/A\",Ref!$B$36,INDEX(Ranks!$1:$1048576,$A136,V$1))","v":""},{"$f":"IF($A136=\"N/A\",Ref!$B$36,INDEX(Ranks!$1:$1048576,$A136,W$1))","v":""},{"$f":"IF($A136=\"N/A\",Ref!$B$36,INDEX(Ranks!$1:$1048576,$A136,X$1))","v":""},{"$f":"IF($A136=\"N/A\",Ref!$B$36,INDEX(Ranks!$1:$1048576,$A136,Y$1))","v":""},{"$f":"IF($A136=\"N/A\",Ref!$B$36,INDEX(Ranks!$1:$1048576,$A136,Z$1))","v":""},{"$f":"IF($A136=\"N/A\",Ref!$B$36,INDEX(Ranks!$1:$1048576,$A136,AA$1))","v":""},{"$f":"IF($A136=\"N/A\",Ref!$B$36,INDEX(Ranks!$1:$1048576,$A136,AB$1))","v":""},{"$f":"IF($A136=\"N/A\",Ref!$B$36,INDEX(Ranks!$1:$1048576,$A136,AC$1))","v":""},{"$f":"IF($A136=\"N/A\",Ref!$B$36,INDEX(Ranks!$1:$1048576,$A136,AD$1))","v":""},{"$f":"IF($A136=\"N/A\",Ref!$B$36,INDEX(Ranks!$1:$1048576,$A136,AE$1))","v":""},{"$f":"IF($A136=\"N/A\",Ref!$B$36,INDEX(Ranks!$1:$1048576,$A136,AF$1))","v":""},{"$f":"IF($A136=\"N/A\",Ref!$B$36,INDEX(Ranks!$1:$1048576,$A136,AG$1))","v":""},{"$f":"IF($A136=\"N/A\",Ref!$B$36,INDEX(Ranks!$1:$1048576,$A136,AH$1))","v":""},{"$f":"IF($A136=\"N/A\",Ref!$B$36,INDEX(Ranks!$1:$1048576,$A136,AI$1))","v":""},{"$f":"IF($A136=\"N/A\",Ref!$B$36,INDEX(Ranks!$1:$1048576,$A136,AJ$1))","v":""},{"$f":"IF($A136=\"N/A\",Ref!$B$36,INDEX(Ranks!$1:$1048576,$A136,AK$1))","v":""},{"$f":"IF($A136=\"N/A\",Ref!$B$36,INDEX(Ranks!$1:$1048576,$A136,AL$1))","v":""},{"$f":"IF($A136=\"N/A\",Ref!$B$36,INDEX(Ranks!$1:$1048576,$A136,AM$1))","v":""},{"$f":"IF($A136=\"N/A\",Ref!$B$36,INDEX(Ranks!$1:$1048576,$A136,AN$1))","v":""},{"$f":"IF($A136=\"N/A\",Ref!$B$36,INDEX(Ranks!$1:$1048576,$A136,AO$1))","v":""},{"$f":"IF($A136=\"N/A\",Ref!$B$36,INDEX(Ranks!$1:$1048576,$A136,AP$1))","v":""},{"$f":"IF($A136=\"N/A\",Ref!$B$36,INDEX(Ranks!$1:$1048576,$A136,AQ$1))","v":""},{"$f":"IF($A136=\"N/A\",Ref!$B$36,INDEX(Ranks!$1:$1048576,$A136,AR$1))","v":""},{"$f":"IF($A136=\"N/A\",Ref!$B$36,INDEX(Ranks!$1:$1048576,$A136,AS$1))","v":""},{"$f":"IF($A136=\"N/A\",Ref!$B$36,INDEX(Ranks!$1:$1048576,$A136,AT$1))","v":""},{"$f":"IF($A136=\"N/A\",Ref!$B$36,INDEX(Ranks!$1:$1048576,$A136,AU$1))","v":""},{"$f":"IF($A136=\"N/A\",Ref!$B$36,INDEX(Ranks!$1:$1048576,$A136,AV$1))","v":""},{"$f":"IF($A136=\"N/A\",Ref!$B$36,INDEX(Ranks!$1:$1048576,$A136,AW$1))","v":""},{"$f":"IF($A136=\"N/A\",Ref!$B$36,INDEX(Ranks!$1:$1048576,$A136,AX$1))","v":""},{"$f":"IF($A136=\"N/A\",Ref!$B$36,INDEX(Ranks!$1:$1048576,$A136,AY$1))","v":""},{"$f":"IF($A136=\"N/A\",Ref!$B$36,INDEX(Ranks!$1:$1048576,$A136,AZ$1))","v":""},{"$f":"IF($A136=\"N/A\",Ref!$B$36,INDEX(Ranks!$1:$1048576,$A136,BA$1))","v":""},{"$f":"IF($A136=\"N/A\",Ref!$B$36,INDEX(Ranks!$1:$1048576,$A136,BB$1))","v":""},{"$f":"IF($A136=\"N/A\",Ref!$B$36,INDEX(Ranks!$1:$1048576,$A136,BC$1))","v":""},{"$f":"IF($A136=\"N/A\",Ref!$B$36,INDEX(Ranks!$1:$1048576,$A136,BD$1))","v":""},{"$f":"IF($A136=\"N/A\",Ref!$B$36,INDEX(Ranks!$1:$1048576,$A136,BE$1))","v":""},{"$f":"IF($A136=\"N/A\",Ref!$B$36,INDEX(Ranks!$1:$1048576,$A136,BF$1))","v":""},{"$f":"IF($A136=\"N/A\",Ref!$B$36,INDEX(Ranks!$1:$1048576,$A136,BG$1))","v":""},{"$f":"IF($A136=\"N/A\",Ref!$B$36,INDEX(Ranks!$1:$1048576,$A136,BH$1))","v":""},{"$f":"IF($A136=\"N/A\",Ref!$B$36,INDEX(Ranks!$1:$1048576,$A136,BI$1))","v":""},{"$f":"IF($A136=\"N/A\",Ref!$B$36,INDEX(Ranks!$1:$1048576,$A136,BJ$1))","v":""},{"$f":"IF($A136=\"N/A\",Ref!$B$36,INDEX(Ranks!$1:$1048576,$A136,BK$1))","v":""},{"$f":"IF($A136=\"N/A\",Ref!$B$36,INDEX(Ranks!$1:$1048576,$A136,BL$1))","v":""},{"$f":"IF($A136=\"N/A\",Ref!$B$36,INDEX(Ranks!$1:$1048576,$A136,BM$1))","v":""},{"$f":"IF($A136=\"N/A\",Ref!$B$36,INDEX(Ranks!$1:$1048576,$A136,BN$1))","v":""},{"$f":"IF($A136=\"N/A\",Ref!$B$36,INDEX(Ranks!$1:$1048576,$A136,BO$1))","v":""},{"$f":"IF($A136=\"N/A\",Ref!$B$36,INDEX(Ranks!$1:$1048576,$A136,BP$1))","v":""},{"$f":"IF($A136=\"N/A\",Ref!$B$36,INDEX(Ranks!$1:$1048576,$A136,BQ$1))","v":""},{"$f":"IF($A136=\"N/A\",Ref!$B$36,INDEX(Ranks!$1:$1048576,$A136,BR$1))","v":""},{"$f":"IF($A136=\"N/A\",Ref!$B$36,INDEX(Ranks!$1:$1048576,$A136,BS$1))","v":""},{"$f":"IF($A136=\"N/A\",Ref!$B$36,INDEX(Ranks!$1:$1048576,$A136,BT$1))","v":""},{"$f":"IF($A136=\"N/A\",Ref!$B$36,INDEX(Ranks!$1:$1048576,$A136,BU$1))","v":""},{"$f":"IF($A136=\"N/A\",Ref!$B$36,INDEX(Ranks!$1:$1048576,$A136,BV$1))","v":""},{"$f":"IF($A136=\"N/A\",Ref!$B$36,INDEX(Ranks!$1:$1048576,$A136,BW$1))","v":""},{"$f":"IF($A136=\"N/A\",Ref!$B$36,INDEX(Ranks!$1:$1048576,$A136,BX$1))","v":""},{"$f":"IF($A136=\"N/A\",Ref!$B$36,INDEX(Ranks!$1:$1048576,$A136,BY$1))","v":""},{"$f":"IF($A136=\"N/A\",Ref!$B$36,INDEX(Ranks!$1:$1048576,$A136,BZ$1))","v":""},{"$f":"IF($A136=\"N/A\",Ref!$B$36,INDEX(Ranks!$1:$1048576,$A136,CA$1))","v":""},{"$f":"IF($A136=\"N/A\",Ref!$B$36,INDEX(Ranks!$1:$1048576,$A136,CB$1))","v":""},{"$f":"IF($A136=\"N/A\",Ref!$B$36,INDEX(Ranks!$1:$1048576,$A136,CC$1))","v":""},{"$f":"IF($A136=\"N/A\",Ref!$B$36,INDEX(Ranks!$1:$1048576,$A136,CD$1))","v":""},{"$f":"IF($A136=\"N/A\",Ref!$B$36,INDEX(Ranks!$1:$1048576,$A136,CE$1))","v":""},{"$f":"IF($A136=\"N/A\",Ref!$B$36,INDEX(Ranks!$1:$1048576,$A136,CF$1))","v":""},{"$f":"IF($A136=\"N/A\",Ref!$B$36,INDEX(Ranks!$1:$1048576,$A136,CG$1))","v":""},{"$f":"IF($A136=\"N/A\",Ref!$B$36,INDEX(Ranks!$1:$1048576,$A136,CH$1))","v":""},{"$f":"IF($A136=\"N/A\",Ref!$B$36,INDEX(Ranks!$1:$1048576,$A136,CI$1))","v":""},{"$f":"IF($A136=\"N/A\",Ref!$B$36,INDEX(Ranks!$1:$1048576,$A136,CJ$1))","v":""},{"$f":"IF($A136=\"N/A\",Ref!$B$36,INDEX(Ranks!$1:$1048576,$A136,CK$1))","v":""},{"$f":"IF($A136=\"N/A\",Ref!$B$36,INDEX(Ranks!$1:$1048576,$A136,CL$1))","v":""},{"$f":"IF($A136=\"N/A\",Ref!$B$36,INDEX(Ranks!$1:$1048576,$A136,CM$1))","v":""},{"$f":"IF($A136=\"N/A\",Ref!$B$36,INDEX(Ranks!$1:$1048576,$A136,CN$1))","v":""},{"$f":"IF($A136=\"N/A\",Ref!$B$36,INDEX(Ranks!$1:$1048576,$A136,CO$1))","v":""},{"$f":"IF($A136=\"N/A\",Ref!$B$36,INDEX(Ranks!$1:$1048576,$A136,CP$1))","v":""},{"$f":"IF($A136=\"N/A\",Ref!$B$36,INDEX(Ranks!$1:$1048576,$A136,CQ$1))","v":""},{"$f":"IF($A136=\"N/A\",Ref!$B$36,INDEX(Ranks!$1:$1048576,$A136,CR$1))","v":""},{"$f":"IF($A136=\"N/A\",Ref!$B$36,INDEX(Ranks!$1:$1048576,$A136,CS$1))","v":""},{"$f":"IF($A136=\"N/A\",Ref!$B$36,INDEX(Ranks!$1:$1048576,$A136,CT$1))","v":""},{"$f":"IF($A136=\"N/A\",Ref!$B$36,INDEX(Ranks!$1:$1048576,$A136,CU$1))","v":""},{"$f":"IF($A136=\"N/A\",Ref!$B$36,INDEX(Ranks!$1:$1048576,$A136,CV$1))","v":""},{"$f":"IF($A136=\"N/A\",Ref!$B$36,INDEX(Ranks!$1:$1048576,$A136,CW$1))","v":""},{"$f":"IF($A136=\"N/A\",Ref!$B$36,INDEX(Ranks!$1:$1048576,$A136,CX$1))","v":""},{"$f":"IF($A136=\"N/A\",Ref!$B$36,INDEX(Ranks!$1:$1048576,$A136,CY$1))","v":""},{"$f":"IF($A136=\"N/A\",Ref!$B$36,INDEX(Ranks!$1:$1048576,$A136,CZ$1))","v":""},{"$f":"IF($A136=\"N/A\",Ref!$B$36,INDEX(Ranks!$1:$1048576,$A136,DA$1))","v":""},{"$f":"IF($A136=\"N/A\",Ref!$B$36,INDEX(Ranks!$1:$1048576,$A136,DB$1))","v":""},{"$f":"IF($A136=\"N/A\",Ref!$B$36,INDEX(Ranks!$1:$1048576,$A136,DC$1))","v":""},{"$f":"IF($A136=\"N/A\",Ref!$B$36,INDEX(Ranks!$1:$1048576,$A136,DD$1))","v":""},{"$f":"IF($A136=\"N/A\",Ref!$B$36,INDEX(Ranks!$1:$1048576,$A136,DE$1))","v":""},{"$f":"IF($A136=\"N/A\",Ref!$B$36,INDEX(Ranks!$1:$1048576,$A136,DF$1))","v":""},{"$f":"IF($A136=\"N/A\",Ref!$B$36,INDEX(Ranks!$1:$1048576,$A136,DG$1))","v":""},{"$f":"IF($A136=\"N/A\",Ref!$B$36,INDEX(Ranks!$1:$1048576,$A136,DH$1))","v":""},{"$f":"IF($A136=\"N/A\",Ref!$B$36,INDEX(Ranks!$1:$1048576,$A136,DI$1))","v":""},{"$f":"IF($A136=\"N/A\",Ref!$B$36,INDEX(Ranks!$1:$1048576,$A136,DJ$1))","v":""},{"$f":"IF($A136=\"N/A\",Ref!$B$36,INDEX(Ranks!$1:$1048576,$A136,DK$1))","v":""},{"$f":"IF($A136=\"N/A\",Ref!$B$36,INDEX(Ranks!$1:$1048576,$A136,DL$1))","v":""},{"$f":"IF($A136=\"N/A\",Ref!$B$36,INDEX(Ranks!$1:$1048576,$A136,DM$1))","v":""},{"$f":"IF($A136=\"N/A\",Ref!$B$36,INDEX(Ranks!$1:$1048576,$A136,DN$1))","v":""},{"$f":"IF($A136=\"N/A\",Ref!$B$36,INDEX(Ranks!$1:$1048576,$A136,DO$1))","v":""},{"$f":"IF($A136=\"N/A\",Ref!$B$36,INDEX(Ranks!$1:$1048576,$A136,DP$1))","v":""},{"$f":"IF($A136=\"N/A\",Ref!$B$36,INDEX(Ranks!$1:$1048576,$A136,DQ$1))","v":""},{"$f":"IF($A136=\"N/A\",Ref!$B$36,INDEX(Ranks!$1:$1048576,$A136,DR$1))","v":""},{"$f":"IF($A136=\"N/A\",Ref!$B$36,INDEX(Ranks!$1:$1048576,$A136,DS$1))","v":""},{"$f":"IF($A136=\"N/A\",Ref!$B$36,INDEX(Ranks!$1:$1048576,$A136,DT$1))","v":""},{"$f":"IF($A136=\"N/A\",Ref!$B$36,INDEX(Ranks!$1:$1048576,$A136,DU$1))","v":""},{"$f":"IF($A136=\"N/A\",Ref!$B$36,INDEX(Ranks!$1:$1048576,$A136,DV$1))","v":""},{"$f":"IF($A136=\"N/A\",Ref!$B$36,INDEX(Ranks!$1:$1048576,$A136,DW$1))","v":""},{"$f":"IF($A136=\"N/A\",Ref!$B$36,INDEX(Ranks!$1:$1048576,$A136,DX$1))","v":""},{"$f":"IF($A136=\"N/A\",Ref!$B$36,INDEX(Ranks!$1:$1048576,$A136,DY$1))","v":""},{"$f":"IF($A136=\"N/A\",Ref!$B$36,INDEX(Ranks!$1:$1048576,$A136,DZ$1))","v":""},{"$f":"IF($A136=\"N/A\",Ref!$B$36,INDEX(Ranks!$1:$1048576,$A136,EA$1))","v":""},{"$f":"IF($A136=\"N/A\",Ref!$B$36,INDEX(Ranks!$1:$1048576,$A136,EB$1))","v":""}]
[{"$f":"IFERROR(MATCH('Portfolio Page'!L137,Ranks!L:L,0),\"N/A\")","v":"N/A"},null,{"$f":"IF($A137=\"N/A\",\"\",INDEX(Ranks!$1:$1048576,$A137,C$1))","v":""},{"$f":"IF($A137=\"N/A\",Ref!$B$36,INDEX(Ranks!$1:$1048576,$A137,D$1))","v":""},{"$f":"IF($A137=\"N/A\",Ref!$B$36,INDEX(Ranks!$1:$1048576,$A137,E$1))","v":""},{"$f":"IF($A137=\"N/A\",\"\",INDEX(Ranks!$1:$1048576,$A137,F$1))","v":""},{"$f":"IF($A137=\"N/A\",\"\",INDEX(Ranks!$1:$1048576,$A137,G$1))","v":""},{"$f":"IF($A137=\"N/A\",\"\",INDEX(Ranks!$1:$1048576,$A137,H$1))","v":""},{"$f":"IF($A137=\"N/A\",\"\",INDEX(Ranks!$1:$1048576,$A137,I$1))","v":""},{"$f":"IF($A137=\"N/A\",\"\",INDEX(Ranks!$1:$1048576,$A137,J$1))","v":""},{"$f":"IF($A137=\"N/A\",\"\",INDEX(Ranks!$1:$1048576,$A137,K$1))","v":""},null,{"$f":"IF($A137=\"N/A\",Ref!$B$36,INDEX(Ranks!$1:$1048576,$A137,M$1))","v":""},{"$f":"IF($A137=\"N/A\",Ref!$B$36,INDEX(Ranks!$1:$1048576,$A137,N$1))","v":""},{"$f":"IF($A137=\"N/A\",Ref!$B$36,INDEX(Ranks!$1:$1048576,$A137,O$1))","v":""},{"$f":"IF($A137=\"N/A\",Ref!$B$36,INDEX(Ranks!$1:$1048576,$A137,P$1))","v":""},{"$f":"IF($A137=\"N/A\",Ref!$B$36,INDEX(Ranks!$1:$1048576,$A137,Q$1))","v":""},{"$f":"IF($A137=\"N/A\",Ref!$B$36,INDEX(Ranks!$1:$1048576,$A137,R$1))","v":""},{"$f":"IF($A137=\"N/A\",Ref!$B$36,INDEX(Ranks!$1:$1048576,$A137,S$1))","v":""},{"$f":"IF($A137=\"N/A\",Ref!$B$36,INDEX(Ranks!$1:$1048576,$A137,T$1))","v":""},{"$f":"IF($A137=\"N/A\",Ref!$B$36,INDEX(Ranks!$1:$1048576,$A137,U$1))","v":""},{"$f":"IF($A137=\"N/A\",Ref!$B$36,INDEX(Ranks!$1:$1048576,$A137,V$1))","v":""},{"$f":"IF($A137=\"N/A\",Ref!$B$36,INDEX(Ranks!$1:$1048576,$A137,W$1))","v":""},{"$f":"IF($A137=\"N/A\",Ref!$B$36,INDEX(Ranks!$1:$1048576,$A137,X$1))","v":""},{"$f":"IF($A137=\"N/A\",Ref!$B$36,INDEX(Ranks!$1:$1048576,$A137,Y$1))","v":""},{"$f":"IF($A137=\"N/A\",Ref!$B$36,INDEX(Ranks!$1:$1048576,$A137,Z$1))","v":""},{"$f":"IF($A137=\"N/A\",Ref!$B$36,INDEX(Ranks!$1:$1048576,$A137,AA$1))","v":""},{"$f":"IF($A137=\"N/A\",Ref!$B$36,INDEX(Ranks!$1:$1048576,$A137,AB$1))","v":""},{"$f":"IF($A137=\"N/A\",Ref!$B$36,INDEX(Ranks!$1:$1048576,$A137,AC$1))","v":""},{"$f":"IF($A137=\"N/A\",Ref!$B$36,INDEX(Ranks!$1:$1048576,$A137,AD$1))","v":""},{"$f":"IF($A137=\"N/A\",Ref!$B$36,INDEX(Ranks!$1:$1048576,$A137,AE$1))","v":""},{"$f":"IF($A137=\"N/A\",Ref!$B$36,INDEX(Ranks!$1:$1048576,$A137,AF$1))","v":""},{"$f":"IF($A137=\"N/A\",Ref!$B$36,INDEX(Ranks!$1:$1048576,$A137,AG$1))","v":""},{"$f":"IF($A137=\"N/A\",Ref!$B$36,INDEX(Ranks!$1:$1048576,$A137,AH$1))","v":""},{"$f":"IF($A137=\"N/A\",Ref!$B$36,INDEX(Ranks!$1:$1048576,$A137,AI$1))","v":""},{"$f":"IF($A137=\"N/A\",Ref!$B$36,INDEX(Ranks!$1:$1048576,$A137,AJ$1))","v":""},{"$f":"IF($A137=\"N/A\",Ref!$B$36,INDEX(Ranks!$1:$1048576,$A137,AK$1))","v":""},{"$f":"IF($A137=\"N/A\",Ref!$B$36,INDEX(Ranks!$1:$1048576,$A137,AL$1))","v":""},{"$f":"IF($A137=\"N/A\",Ref!$B$36,INDEX(Ranks!$1:$1048576,$A137,AM$1))","v":""},{"$f":"IF($A137=\"N/A\",Ref!$B$36,INDEX(Ranks!$1:$1048576,$A137,AN$1))","v":""},{"$f":"IF($A137=\"N/A\",Ref!$B$36,INDEX(Ranks!$1:$1048576,$A137,AO$1))","v":""},{"$f":"IF($A137=\"N/A\",Ref!$B$36,INDEX(Ranks!$1:$1048576,$A137,AP$1))","v":""},{"$f":"IF($A137=\"N/A\",Ref!$B$36,INDEX(Ranks!$1:$1048576,$A137,AQ$1))","v":""},{"$f":"IF($A137=\"N/A\",Ref!$B$36,INDEX(Ranks!$1:$1048576,$A137,AR$1))","v":""},{"$f":"IF($A137=\"N/A\",Ref!$B$36,INDEX(Ranks!$1:$1048576,$A137,AS$1))","v":""},{"$f":"IF($A137=\"N/A\",Ref!$B$36,INDEX(Ranks!$1:$1048576,$A137,AT$1))","v":""},{"$f":"IF($A137=\"N/A\",Ref!$B$36,INDEX(Ranks!$1:$1048576,$A137,AU$1))","v":""},{"$f":"IF($A137=\"N/A\",Ref!$B$36,INDEX(Ranks!$1:$1048576,$A137,AV$1))","v":""},{"$f":"IF($A137=\"N/A\",Ref!$B$36,INDEX(Ranks!$1:$1048576,$A137,AW$1))","v":""},{"$f":"IF($A137=\"N/A\",Ref!$B$36,INDEX(Ranks!$1:$1048576,$A137,AX$1))","v":""},{"$f":"IF($A137=\"N/A\",Ref!$B$36,INDEX(Ranks!$1:$1048576,$A137,AY$1))","v":""},{"$f":"IF($A137=\"N/A\",Ref!$B$36,INDEX(Ranks!$1:$1048576,$A137,AZ$1))","v":""},{"$f":"IF($A137=\"N/A\",Ref!$B$36,INDEX(Ranks!$1:$1048576,$A137,BA$1))","v":""},{"$f":"IF($A137=\"N/A\",Ref!$B$36,INDEX(Ranks!$1:$1048576,$A137,BB$1))","v":""},{"$f":"IF($A137=\"N/A\",Ref!$B$36,INDEX(Ranks!$1:$1048576,$A137,BC$1))","v":""},{"$f":"IF($A137=\"N/A\",Ref!$B$36,INDEX(Ranks!$1:$1048576,$A137,BD$1))","v":""},{"$f":"IF($A137=\"N/A\",Ref!$B$36,INDEX(Ranks!$1:$1048576,$A137,BE$1))","v":""},{"$f":"IF($A137=\"N/A\",Ref!$B$36,INDEX(Ranks!$1:$1048576,$A137,BF$1))","v":""},{"$f":"IF($A137=\"N/A\",Ref!$B$36,INDEX(Ranks!$1:$1048576,$A137,BG$1))","v":""},{"$f":"IF($A137=\"N/A\",Ref!$B$36,INDEX(Ranks!$1:$1048576,$A137,BH$1))","v":""},{"$f":"IF($A137=\"N/A\",Ref!$B$36,INDEX(Ranks!$1:$1048576,$A137,BI$1))","v":""},{"$f":"IF($A137=\"N/A\",Ref!$B$36,INDEX(Ranks!$1:$1048576,$A137,BJ$1))","v":""},{"$f":"IF($A137=\"N/A\",Ref!$B$36,INDEX(Ranks!$1:$1048576,$A137,BK$1))","v":""},{"$f":"IF($A137=\"N/A\",Ref!$B$36,INDEX(Ranks!$1:$1048576,$A137,BL$1))","v":""},{"$f":"IF($A137=\"N/A\",Ref!$B$36,INDEX(Ranks!$1:$1048576,$A137,BM$1))","v":""},{"$f":"IF($A137=\"N/A\",Ref!$B$36,INDEX(Ranks!$1:$1048576,$A137,BN$1))","v":""},{"$f":"IF($A137=\"N/A\",Ref!$B$36,INDEX(Ranks!$1:$1048576,$A137,BO$1))","v":""},{"$f":"IF($A137=\"N/A\",Ref!$B$36,INDEX(Ranks!$1:$1048576,$A137,BP$1))","v":""},{"$f":"IF($A137=\"N/A\",Ref!$B$36,INDEX(Ranks!$1:$1048576,$A137,BQ$1))","v":""},{"$f":"IF($A137=\"N/A\",Ref!$B$36,INDEX(Ranks!$1:$1048576,$A137,BR$1))","v":""},{"$f":"IF($A137=\"N/A\",Ref!$B$36,INDEX(Ranks!$1:$1048576,$A137,BS$1))","v":""},{"$f":"IF($A137=\"N/A\",Ref!$B$36,INDEX(Ranks!$1:$1048576,$A137,BT$1))","v":""},{"$f":"IF($A137=\"N/A\",Ref!$B$36,INDEX(Ranks!$1:$1048576,$A137,BU$1))","v":""},{"$f":"IF($A137=\"N/A\",Ref!$B$36,INDEX(Ranks!$1:$1048576,$A137,BV$1))","v":""},{"$f":"IF($A137=\"N/A\",Ref!$B$36,INDEX(Ranks!$1:$1048576,$A137,BW$1))","v":""},{"$f":"IF($A137=\"N/A\",Ref!$B$36,INDEX(Ranks!$1:$1048576,$A137,BX$1))","v":""},{"$f":"IF($A137=\"N/A\",Ref!$B$36,INDEX(Ranks!$1:$1048576,$A137,BY$1))","v":""},{"$f":"IF($A137=\"N/A\",Ref!$B$36,INDEX(Ranks!$1:$1048576,$A137,BZ$1))","v":""},{"$f":"IF($A137=\"N/A\",Ref!$B$36,INDEX(Ranks!$1:$1048576,$A137,CA$1))","v":""},{"$f":"IF($A137=\"N/A\",Ref!$B$36,INDEX(Ranks!$1:$1048576,$A137,CB$1))","v":""},{"$f":"IF($A137=\"N/A\",Ref!$B$36,INDEX(Ranks!$1:$1048576,$A137,CC$1))","v":""},{"$f":"IF($A137=\"N/A\",Ref!$B$36,INDEX(Ranks!$1:$1048576,$A137,CD$1))","v":""},{"$f":"IF($A137=\"N/A\",Ref!$B$36,INDEX(Ranks!$1:$1048576,$A137,CE$1))","v":""},{"$f":"IF($A137=\"N/A\",Ref!$B$36,INDEX(Ranks!$1:$1048576,$A137,CF$1))","v":""},{"$f":"IF($A137=\"N/A\",Ref!$B$36,INDEX(Ranks!$1:$1048576,$A137,CG$1))","v":""},{"$f":"IF($A137=\"N/A\",Ref!$B$36,INDEX(Ranks!$1:$1048576,$A137,CH$1))","v":""},{"$f":"IF($A137=\"N/A\",Ref!$B$36,INDEX(Ranks!$1:$1048576,$A137,CI$1))","v":""},{"$f":"IF($A137=\"N/A\",Ref!$B$36,INDEX(Ranks!$1:$1048576,$A137,CJ$1))","v":""},{"$f":"IF($A137=\"N/A\",Ref!$B$36,INDEX(Ranks!$1:$1048576,$A137,CK$1))","v":""},{"$f":"IF($A137=\"N/A\",Ref!$B$36,INDEX(Ranks!$1:$1048576,$A137,CL$1))","v":""},{"$f":"IF($A137=\"N/A\",Ref!$B$36,INDEX(Ranks!$1:$1048576,$A137,CM$1))","v":""},{"$f":"IF($A137=\"N/A\",Ref!$B$36,INDEX(Ranks!$1:$1048576,$A137,CN$1))","v":""},{"$f":"IF($A137=\"N/A\",Ref!$B$36,INDEX(Ranks!$1:$1048576,$A137,CO$1))","v":""},{"$f":"IF($A137=\"N/A\",Ref!$B$36,INDEX(Ranks!$1:$1048576,$A137,CP$1))","v":""},{"$f":"IF($A137=\"N/A\",Ref!$B$36,INDEX(Ranks!$1:$1048576,$A137,CQ$1))","v":""},{"$f":"IF($A137=\"N/A\",Ref!$B$36,INDEX(Ranks!$1:$1048576,$A137,CR$1))","v":""},{"$f":"IF($A137=\"N/A\",Ref!$B$36,INDEX(Ranks!$1:$1048576,$A137,CS$1))","v":""},{"$f":"IF($A137=\"N/A\",Ref!$B$36,INDEX(Ranks!$1:$1048576,$A137,CT$1))","v":""},{"$f":"IF($A137=\"N/A\",Ref!$B$36,INDEX(Ranks!$1:$1048576,$A137,CU$1))","v":""},{"$f":"IF($A137=\"N/A\",Ref!$B$36,INDEX(Ranks!$1:$1048576,$A137,CV$1))","v":""},{"$f":"IF($A137=\"N/A\",Ref!$B$36,INDEX(Ranks!$1:$1048576,$A137,CW$1))","v":""},{"$f":"IF($A137=\"N/A\",Ref!$B$36,INDEX(Ranks!$1:$1048576,$A137,CX$1))","v":""},{"$f":"IF($A137=\"N/A\",Ref!$B$36,INDEX(Ranks!$1:$1048576,$A137,CY$1))","v":""},{"$f":"IF($A137=\"N/A\",Ref!$B$36,INDEX(Ranks!$1:$1048576,$A137,CZ$1))","v":""},{"$f":"IF($A137=\"N/A\",Ref!$B$36,INDEX(Ranks!$1:$1048576,$A137,DA$1))","v":""},{"$f":"IF($A137=\"N/A\",Ref!$B$36,INDEX(Ranks!$1:$1048576,$A137,DB$1))","v":""},{"$f":"IF($A137=\"N/A\",Ref!$B$36,INDEX(Ranks!$1:$1048576,$A137,DC$1))","v":""},{"$f":"IF($A137=\"N/A\",Ref!$B$36,INDEX(Ranks!$1:$1048576,$A137,DD$1))","v":""},{"$f":"IF($A137=\"N/A\",Ref!$B$36,INDEX(Ranks!$1:$1048576,$A137,DE$1))","v":""},{"$f":"IF($A137=\"N/A\",Ref!$B$36,INDEX(Ranks!$1:$1048576,$A137,DF$1))","v":""},{"$f":"IF($A137=\"N/A\",Ref!$B$36,INDEX(Ranks!$1:$1048576,$A137,DG$1))","v":""},{"$f":"IF($A137=\"N/A\",Ref!$B$36,INDEX(Ranks!$1:$1048576,$A137,DH$1))","v":""},{"$f":"IF($A137=\"N/A\",Ref!$B$36,INDEX(Ranks!$1:$1048576,$A137,DI$1))","v":""},{"$f":"IF($A137=\"N/A\",Ref!$B$36,INDEX(Ranks!$1:$1048576,$A137,DJ$1))","v":""},{"$f":"IF($A137=\"N/A\",Ref!$B$36,INDEX(Ranks!$1:$1048576,$A137,DK$1))","v":""},{"$f":"IF($A137=\"N/A\",Ref!$B$36,INDEX(Ranks!$1:$1048576,$A137,DL$1))","v":""},{"$f":"IF($A137=\"N/A\",Ref!$B$36,INDEX(Ranks!$1:$1048576,$A137,DM$1))","v":""},{"$f":"IF($A137=\"N/A\",Ref!$B$36,INDEX(Ranks!$1:$1048576,$A137,DN$1))","v":""},{"$f":"IF($A137=\"N/A\",Ref!$B$36,INDEX(Ranks!$1:$1048576,$A137,DO$1))","v":""},{"$f":"IF($A137=\"N/A\",Ref!$B$36,INDEX(Ranks!$1:$1048576,$A137,DP$1))","v":""},{"$f":"IF($A137=\"N/A\",Ref!$B$36,INDEX(Ranks!$1:$1048576,$A137,DQ$1))","v":""},{"$f":"IF($A137=\"N/A\",Ref!$B$36,INDEX(Ranks!$1:$1048576,$A137,DR$1))","v":""},{"$f":"IF($A137=\"N/A\",Ref!$B$36,INDEX(Ranks!$1:$1048576,$A137,DS$1))","v":""},{"$f":"IF($A137=\"N/A\",Ref!$B$36,INDEX(Ranks!$1:$1048576,$A137,DT$1))","v":""},{"$f":"IF($A137=\"N/A\",Ref!$B$36,INDEX(Ranks!$1:$1048576,$A137,DU$1))","v":""},{"$f":"IF($A137=\"N/A\",Ref!$B$36,INDEX(Ranks!$1:$1048576,$A137,DV$1))","v":""},{"$f":"IF($A137=\"N/A\",Ref!$B$36,INDEX(Ranks!$1:$1048576,$A137,DW$1))","v":""},{"$f":"IF($A137=\"N/A\",Ref!$B$36,INDEX(Ranks!$1:$1048576,$A137,DX$1))","v":""},{"$f":"IF($A137=\"N/A\",Ref!$B$36,INDEX(Ranks!$1:$1048576,$A137,DY$1))","v":""},{"$f":"IF($A137=\"N/A\",Ref!$B$36,INDEX(Ranks!$1:$1048576,$A137,DZ$1))","v":""},{"$f":"IF($A137=\"N/A\",Ref!$B$36,INDEX(Ranks!$1:$1048576,$A137,EA$1))","v":""},{"$f":"IF($A137=\"N/A\",Ref!$B$36,INDEX(Ranks!$1:$1048576,$A137,EB$1))","v":""}]
[{"$f":"IFERROR(MATCH('Portfolio Page'!L138,Ranks!L:L,0),\"N/A\")","v":"N/A"},null,{"$f":"IF($A138=\"N/A\",\"\",INDEX(Ranks!$1:$1048576,$A138,C$1))","v":""},{"$f":"IF($A138=\"N/A\",Ref!$B$36,INDEX(Ranks!$1:$1048576,$A138,D$1))","v":""},{"$f":"IF($A138=\"N/A\",Ref!$B$36,INDEX(Ranks!$1:$1048576,$A138,E$1))","v":""},{"$f":"IF($A138=\"N/A\",\"\",INDEX(Ranks!$1:$1048576,$A138,F$1))","v":""},{"$f":"IF($A138=\"N/A\",\"\",INDEX(Ranks!$1:$1048576,$A138,G$1))","v":""},{"$f":"IF($A138=\"N/A\",\"\",INDEX(Ranks!$1:$1048576,$A138,H$1))","v":""},{"$f":"IF($A138=\"N/A\",\"\",INDEX(Ranks!$1:$1048576,$A138,I$1))","v":""},{"$f":"IF($A138=\"N/A\",\"\",INDEX(Ranks!$1:$1048576,$A138,J$1))","v":""},{"$f":"IF($A138=\"N/A\",\"\",INDEX(Ranks!$1:$1048576,$A138,K$1))","v":""},null,{"$f":"IF($A138=\"N/A\",Ref!$B$36,INDEX(Ranks!$1:$1048576,$A138,M$1))","v":""},{"$f":"IF($A138=\"N/A\",Ref!$B$36,INDEX(Ranks!$1:$1048576,$A138,N$1))","v":""},{"$f":"IF($A138=\"N/A\",Ref!$B$36,INDEX(Ranks!$1:$1048576,$A138,O$1))","v":""},{"$f":"IF($A138=\"N/A\",Ref!$B$36,INDEX(Ranks!$1:$1048576,$A138,P$1))","v":""},{"$f":"IF($A138=\"N/A\",Ref!$B$36,INDEX(Ranks!$1:$1048576,$A138,Q$1))","v":""},{"$f":"IF($A138=\"N/A\",Ref!$B$36,INDEX(Ranks!$1:$1048576,$A138,R$1))","v":""},{"$f":"IF($A138=\"N/A\",Ref!$B$36,INDEX(Ranks!$1:$1048576,$A138,S$1))","v":""},{"$f":"IF($A138=\"N/A\",Ref!$B$36,INDEX(Ranks!$1:$1048576,$A138,T$1))","v":""},{"$f":"IF($A138=\"N/A\",Ref!$B$36,INDEX(Ranks!$1:$1048576,$A138,U$1))","v":""},{"$f":"IF($A138=\"N/A\",Ref!$B$36,INDEX(Ranks!$1:$1048576,$A138,V$1))","v":""},{"$f":"IF($A138=\"N/A\",Ref!$B$36,INDEX(Ranks!$1:$1048576,$A138,W$1))","v":""},{"$f":"IF($A138=\"N/A\",Ref!$B$36,INDEX(Ranks!$1:$1048576,$A138,X$1))","v":""},{"$f":"IF($A138=\"N/A\",Ref!$B$36,INDEX(Ranks!$1:$1048576,$A138,Y$1))","v":""},{"$f":"IF($A138=\"N/A\",Ref!$B$36,INDEX(Ranks!$1:$1048576,$A138,Z$1))","v":""},{"$f":"IF($A138=\"N/A\",Ref!$B$36,INDEX(Ranks!$1:$1048576,$A138,AA$1))","v":""},{"$f":"IF($A138=\"N/A\",Ref!$B$36,INDEX(Ranks!$1:$1048576,$A138,AB$1))","v":""},{"$f":"IF($A138=\"N/A\",Ref!$B$36,INDEX(Ranks!$1:$1048576,$A138,AC$1))","v":""},{"$f":"IF($A138=\"N/A\",Ref!$B$36,INDEX(Ranks!$1:$1048576,$A138,AD$1))","v":""},{"$f":"IF($A138=\"N/A\",Ref!$B$36,INDEX(Ranks!$1:$1048576,$A138,AE$1))","v":""},{"$f":"IF($A138=\"N/A\",Ref!$B$36,INDEX(Ranks!$1:$1048576,$A138,AF$1))","v":""},{"$f":"IF($A138=\"N/A\",Ref!$B$36,INDEX(Ranks!$1:$1048576,$A138,AG$1))","v":""},{"$f":"IF($A138=\"N/A\",Ref!$B$36,INDEX(Ranks!$1:$1048576,$A138,AH$1))","v":""},{"$f":"IF($A138=\"N/A\",Ref!$B$36,INDEX(Ranks!$1:$1048576,$A138,AI$1))","v":""},{"$f":"IF($A138=\"N/A\",Ref!$B$36,INDEX(Ranks!$1:$1048576,$A138,AJ$1))","v":""},{"$f":"IF($A138=\"N/A\",Ref!$B$36,INDEX(Ranks!$1:$1048576,$A138,AK$1))","v":""},{"$f":"IF($A138=\"N/A\",Ref!$B$36,INDEX(Ranks!$1:$1048576,$A138,AL$1))","v":""},{"$f":"IF($A138=\"N/A\",Ref!$B$36,INDEX(Ranks!$1:$1048576,$A138,AM$1))","v":""},{"$f":"IF($A138=\"N/A\",Ref!$B$36,INDEX(Ranks!$1:$1048576,$A138,AN$1))","v":""},{"$f":"IF($A138=\"N/A\",Ref!$B$36,INDEX(Ranks!$1:$1048576,$A138,AO$1))","v":""},{"$f":"IF($A138=\"N/A\",Ref!$B$36,INDEX(Ranks!$1:$1048576,$A138,AP$1))","v":""},{"$f":"IF($A138=\"N/A\",Ref!$B$36,INDEX(Ranks!$1:$1048576,$A138,AQ$1))","v":""},{"$f":"IF($A138=\"N/A\",Ref!$B$36,INDEX(Ranks!$1:$1048576,$A138,AR$1))","v":""},{"$f":"IF($A138=\"N/A\",Ref!$B$36,INDEX(Ranks!$1:$1048576,$A138,AS$1))","v":""},{"$f":"IF($A138=\"N/A\",Ref!$B$36,INDEX(Ranks!$1:$1048576,$A138,AT$1))","v":""},{"$f":"IF($A138=\"N/A\",Ref!$B$36,INDEX(Ranks!$1:$1048576,$A138,AU$1))","v":""},{"$f":"IF($A138=\"N/A\",Ref!$B$36,INDEX(Ranks!$1:$1048576,$A138,AV$1))","v":""},{"$f":"IF($A138=\"N/A\",Ref!$B$36,INDEX(Ranks!$1:$1048576,$A138,AW$1))","v":""},{"$f":"IF($A138=\"N/A\",Ref!$B$36,INDEX(Ranks!$1:$1048576,$A138,AX$1))","v":""},{"$f":"IF($A138=\"N/A\",Ref!$B$36,INDEX(Ranks!$1:$1048576,$A138,AY$1))","v":""},{"$f":"IF($A138=\"N/A\",Ref!$B$36,INDEX(Ranks!$1:$1048576,$A138,AZ$1))","v":""},{"$f":"IF($A138=\"N/A\",Ref!$B$36,INDEX(Ranks!$1:$1048576,$A138,BA$1))","v":""},{"$f":"IF($A138=\"N/A\",Ref!$B$36,INDEX(Ranks!$1:$1048576,$A138,BB$1))","v":""},{"$f":"IF($A138=\"N/A\",Ref!$B$36,INDEX(Ranks!$1:$1048576,$A138,BC$1))","v":""},{"$f":"IF($A138=\"N/A\",Ref!$B$36,INDEX(Ranks!$1:$1048576,$A138,BD$1))","v":""},{"$f":"IF($A138=\"N/A\",Ref!$B$36,INDEX(Ranks!$1:$1048576,$A138,BE$1))","v":""},{"$f":"IF($A138=\"N/A\",Ref!$B$36,INDEX(Ranks!$1:$1048576,$A138,BF$1))","v":""},{"$f":"IF($A138=\"N/A\",Ref!$B$36,INDEX(Ranks!$1:$1048576,$A138,BG$1))","v":""},{"$f":"IF($A138=\"N/A\",Ref!$B$36,INDEX(Ranks!$1:$1048576,$A138,BH$1))","v":""},{"$f":"IF($A138=\"N/A\",Ref!$B$36,INDEX(Ranks!$1:$1048576,$A138,BI$1))","v":""},{"$f":"IF($A138=\"N/A\",Ref!$B$36,INDEX(Ranks!$1:$1048576,$A138,BJ$1))","v":""},{"$f":"IF($A138=\"N/A\",Ref!$B$36,INDEX(Ranks!$1:$1048576,$A138,BK$1))","v":""},{"$f":"IF($A138=\"N/A\",Ref!$B$36,INDEX(Ranks!$1:$1048576,$A138,BL$1))","v":""},{"$f":"IF($A138=\"N/A\",Ref!$B$36,INDEX(Ranks!$1:$1048576,$A138,BM$1))","v":""},{"$f":"IF($A138=\"N/A\",Ref!$B$36,INDEX(Ranks!$1:$1048576,$A138,BN$1))","v":""},{"$f":"IF($A138=\"N/A\",Ref!$B$36,INDEX(Ranks!$1:$1048576,$A138,BO$1))","v":""},{"$f":"IF($A138=\"N/A\",Ref!$B$36,INDEX(Ranks!$1:$1048576,$A138,BP$1))","v":""},{"$f":"IF($A138=\"N/A\",Ref!$B$36,INDEX(Ranks!$1:$1048576,$A138,BQ$1))","v":""},{"$f":"IF($A138=\"N/A\",Ref!$B$36,INDEX(Ranks!$1:$1048576,$A138,BR$1))","v":""},{"$f":"IF($A138=\"N/A\",Ref!$B$36,INDEX(Ranks!$1:$1048576,$A138,BS$1))","v":""},{"$f":"IF($A138=\"N/A\",Ref!$B$36,INDEX(Ranks!$1:$1048576,$A138,BT$1))","v":""},{"$f":"IF($A138=\"N/A\",Ref!$B$36,INDEX(Ranks!$1:$1048576,$A138,BU$1))","v":""},{"$f":"IF($A138=\"N/A\",Ref!$B$36,INDEX(Ranks!$1:$1048576,$A138,BV$1))","v":""},{"$f":"IF($A138=\"N/A\",Ref!$B$36,INDEX(Ranks!$1:$1048576,$A138,BW$1))","v":""},{"$f":"IF($A138=\"N/A\",Ref!$B$36,INDEX(Ranks!$1:$1048576,$A138,BX$1))","v":""},{"$f":"IF($A138=\"N/A\",Ref!$B$36,INDEX(Ranks!$1:$1048576,$A138,BY$1))","v":""},{"$f":"IF($A138=\"N/A\",Ref!$B$36,INDEX(Ranks!$1:$1048576,$A138,BZ$1))","v":""},{"$f":"IF($A138=\"N/A\",Ref!$B$36,INDEX(Ranks!$1:$1048576,$A138,CA$1))","v":""},{"$f":"IF($A138=\"N/A\",Ref!$B$36,INDEX(Ranks!$1:$1048576,$A138,CB$1))","v":""},{"$f":"IF($A138=\"N/A\",Ref!$B$36,INDEX(Ranks!$1:$1048576,$A138,CC$1))","v":""},{"$f":"IF($A138=\"N/A\",Ref!$B$36,INDEX(Ranks!$1:$1048576,$A138,CD$1))","v":""},{"$f":"IF($A138=\"N/A\",Ref!$B$36,INDEX(Ranks!$1:$1048576,$A138,CE$1))","v":""},{"$f":"IF($A138=\"N/A\",Ref!$B$36,INDEX(Ranks!$1:$1048576,$A138,CF$1))","v":""},{"$f":"IF($A138=\"N/A\",Ref!$B$36,INDEX(Ranks!$1:$1048576,$A138,CG$1))","v":""},{"$f":"IF($A138=\"N/A\",Ref!$B$36,INDEX(Ranks!$1:$1048576,$A138,CH$1))","v":""},{"$f":"IF($A138=\"N/A\",Ref!$B$36,INDEX(Ranks!$1:$1048576,$A138,CI$1))","v":""},{"$f":"IF($A138=\"N/A\",Ref!$B$36,INDEX(Ranks!$1:$1048576,$A138,CJ$1))","v":""},{"$f":"IF($A138=\"N/A\",Ref!$B$36,INDEX(Ranks!$1:$1048576,$A138,CK$1))","v":""},{"$f":"IF($A138=\"N/A\",Ref!$B$36,INDEX(Ranks!$1:$1048576,$A138,CL$1))","v":""},{"$f":"IF($A138=\"N/A\",Ref!$B$36,INDEX(Ranks!$1:$1048576,$A138,CM$1))","v":""},{"$f":"IF($A138=\"N/A\",Ref!$B$36,INDEX(Ranks!$1:$1048576,$A138,CN$1))","v":""},{"$f":"IF($A138=\"N/A\",Ref!$B$36,INDEX(Ranks!$1:$1048576,$A138,CO$1))","v":""},{"$f":"IF($A138=\"N/A\",Ref!$B$36,INDEX(Ranks!$1:$1048576,$A138,CP$1))","v":""},{"$f":"IF($A138=\"N/A\",Ref!$B$36,INDEX(Ranks!$1:$1048576,$A138,CQ$1))","v":""},{"$f":"IF($A138=\"N/A\",Ref!$B$36,INDEX(Ranks!$1:$1048576,$A138,CR$1))","v":""},{"$f":"IF($A138=\"N/A\",Ref!$B$36,INDEX(Ranks!$1:$1048576,$A138,CS$1))","v":""},{"$f":"IF($A138=\"N/A\",Ref!$B$36,INDEX(Ranks!$1:$1048576,$A138,CT$1))","v":""},{"$f":"IF($A138=\"N/A\",Ref!$B$36,INDEX(Ranks!$1:$1048576,$A138,CU$1))","v":""},{"$f":"IF($A138=\"N/A\",Ref!$B$36,INDEX(Ranks!$1:$1048576,$A138,CV$1))","v":""},{"$f":"IF($A138=\"N/A\",Ref!$B$36,INDEX(Ranks!$1:$1048576,$A138,CW$1))","v":""},{"$f":"IF($A138=\"N/A\",Ref!$B$36,INDEX(Ranks!$1:$1048576,$A138,CX$1))","v":""},{"$f":"IF($A138=\"N/A\",Ref!$B$36,INDEX(Ranks!$1:$1048576,$A138,CY$1))","v":""},{"$f":"IF($A138=\"N/A\",Ref!$B$36,INDEX(Ranks!$1:$1048576,$A138,CZ$1))","v":""},{"$f":"IF($A138=\"N/A\",Ref!$B$36,INDEX(Ranks!$1:$1048576,$A138,DA$1))","v":""},{"$f":"IF($A138=\"N/A\",Ref!$B$36,INDEX(Ranks!$1:$1048576,$A138,DB$1))","v":""},{"$f":"IF($A138=\"N/A\",Ref!$B$36,INDEX(Ranks!$1:$1048576,$A138,DC$1))","v":""},{"$f":"IF($A138=\"N/A\",Ref!$B$36,INDEX(Ranks!$1:$1048576,$A138,DD$1))","v":""},{"$f":"IF($A138=\"N/A\",Ref!$B$36,INDEX(Ranks!$1:$1048576,$A138,DE$1))","v":""},{"$f":"IF($A138=\"N/A\",Ref!$B$36,INDEX(Ranks!$1:$1048576,$A138,DF$1))","v":""},{"$f":"IF($A138=\"N/A\",Ref!$B$36,INDEX(Ranks!$1:$1048576,$A138,DG$1))","v":""},{"$f":"IF($A138=\"N/A\",Ref!$B$36,INDEX(Ranks!$1:$1048576,$A138,DH$1))","v":""},{"$f":"IF($A138=\"N/A\",Ref!$B$36,INDEX(Ranks!$1:$1048576,$A138,DI$1))","v":""},{"$f":"IF($A138=\"N/A\",Ref!$B$36,INDEX(Ranks!$1:$1048576,$A138,DJ$1))","v":""},{"$f":"IF($A138=\"N/A\",Ref!$B$36,INDEX(Ranks!$1:$1048576,$A138,DK$1))","v":""},{"$f":"IF($A138=\"N/A\",Ref!$B$36,INDEX(Ranks!$1:$1048576,$A138,DL$1))","v":""},{"$f":"IF($A138=\"N/A\",Ref!$B$36,INDEX(Ranks!$1:$1048576,$A138,DM$1))","v":""},{"$f":"IF($A138=\"N/A\",Ref!$B$36,INDEX(Ranks!$1:$1048576,$A138,DN$1))","v":""},{"$f":"IF($A138=\"N/A\",Ref!$B$36,INDEX(Ranks!$1:$1048576,$A138,DO$1))","v":""},{"$f":"IF($A138=\"N/A\",Ref!$B$36,INDEX(Ranks!$1:$1048576,$A138,DP$1))","v":""},{"$f":"IF($A138=\"N/A\",Ref!$B$36,INDEX(Ranks!$1:$1048576,$A138,DQ$1))","v":""},{"$f":"IF($A138=\"N/A\",Ref!$B$36,INDEX(Ranks!$1:$1048576,$A138,DR$1))","v":""},{"$f":"IF($A138=\"N/A\",Ref!$B$36,INDEX(Ranks!$1:$1048576,$A138,DS$1))","v":""},{"$f":"IF($A138=\"N/A\",Ref!$B$36,INDEX(Ranks!$1:$1048576,$A138,DT$1))","v":""},{"$f":"IF($A138=\"N/A\",Ref!$B$36,INDEX(Ranks!$1:$1048576,$A138,DU$1))","v":""},{"$f":"IF($A138=\"N/A\",Ref!$B$36,INDEX(Ranks!$1:$1048576,$A138,DV$1))","v":""},{"$f":"IF($A138=\"N/A\",Ref!$B$36,INDEX(Ranks!$1:$1048576,$A138,DW$1))","v":""},{"$f":"IF($A138=\"N/A\",Ref!$B$36,INDEX(Ranks!$1:$1048576,$A138,DX$1))","v":""},{"$f":"IF($A138=\"N/A\",Ref!$B$36,INDEX(Ranks!$1:$1048576,$A138,DY$1))","v":""},{"$f":"IF($A138=\"N/A\",Ref!$B$36,INDEX(Ranks!$1:$1048576,$A138,DZ$1))","v":""},{"$f":"IF($A138=\"N/A\",Ref!$B$36,INDEX(Ranks!$1:$1048576,$A138,EA$1))","v":""},{"$f":"IF($A138=\"N/A\",Ref!$B$36,INDEX(Ranks!$1:$1048576,$A138,EB$1))","v":""}]
[{"$f":"IFERROR(MATCH('Portfolio Page'!L139,Ranks!L:L,0),\"N/A\")","v":"N/A"},null,{"$f":"IF($A139=\"N/A\",\"\",INDEX(Ranks!$1:$1048576,$A139,C$1))","v":""},{"$f":"IF($A139=\"N/A\",Ref!$B$36,INDEX(Ranks!$1:$1048576,$A139,D$1))","v":""},{"$f":"IF($A139=\"N/A\",Ref!$B$36,INDEX(Ranks!$1:$1048576,$A139,E$1))","v":""},{"$f":"IF($A139=\"N/A\",\"\",INDEX(Ranks!$1:$1048576,$A139,F$1))","v":""},{"$f":"IF($A139=\"N/A\",\"\",INDEX(Ranks!$1:$1048576,$A139,G$1))","v":""},{"$f":"IF($A139=\"N/A\",\"\",INDEX(Ranks!$1:$1048576,$A139,H$1))","v":""},{"$f":"IF($A139=\"N/A\",\"\",INDEX(Ranks!$1:$1048576,$A139,I$1))","v":""},{"$f":"IF($A139=\"N/A\",\"\",INDEX(Ranks!$1:$1048576,$A139,J$1))","v":""},{"$f":"IF($A139=\"N/A\",\"\",INDEX(Ranks!$1:$1048576,$A139,K$1))","v":""},null,{"$f":"IF($A139=\"N/A\",Ref!$B$36,INDEX(Ranks!$1:$1048576,$A139,M$1))","v":""},{"$f":"IF($A139=\"N/A\",Ref!$B$36,INDEX(Ranks!$1:$1048576,$A139,N$1))","v":""},{"$f":"IF($A139=\"N/A\",Ref!$B$36,INDEX(Ranks!$1:$1048576,$A139,O$1))","v":""},{"$f":"IF($A139=\"N/A\",Ref!$B$36,INDEX(Ranks!$1:$1048576,$A139,P$1))","v":""},{"$f":"IF($A139=\"N/A\",Ref!$B$36,INDEX(Ranks!$1:$1048576,$A139,Q$1))","v":""},{"$f":"IF($A139=\"N/A\",Ref!$B$36,INDEX(Ranks!$1:$1048576,$A139,R$1))","v":""},{"$f":"IF($A139=\"N/A\",Ref!$B$36,INDEX(Ranks!$1:$1048576,$A139,S$1))","v":""},{"$f":"IF($A139=\"N/A\",Ref!$B$36,INDEX(Ranks!$1:$1048576,$A139,T$1))","v":""},{"$f":"IF($A139=\"N/A\",Ref!$B$36,INDEX(Ranks!$1:$1048576,$A139,U$1))","v":""},{"$f":"IF($A139=\"N/A\",Ref!$B$36,INDEX(Ranks!$1:$1048576,$A139,V$1))","v":""},{"$f":"IF($A139=\"N/A\",Ref!$B$36,INDEX(Ranks!$1:$1048576,$A139,W$1))","v":""},{"$f":"IF($A139=\"N/A\",Ref!$B$36,INDEX(Ranks!$1:$1048576,$A139,X$1))","v":""},{"$f":"IF($A139=\"N/A\",Ref!$B$36,INDEX(Ranks!$1:$1048576,$A139,Y$1))","v":""},{"$f":"IF($A139=\"N/A\",Ref!$B$36,INDEX(Ranks!$1:$1048576,$A139,Z$1))","v":""},{"$f":"IF($A139=\"N/A\",Ref!$B$36,INDEX(Ranks!$1:$1048576,$A139,AA$1))","v":""},{"$f":"IF($A139=\"N/A\",Ref!$B$36,INDEX(Ranks!$1:$1048576,$A139,AB$1))","v":""},{"$f":"IF($A139=\"N/A\",Ref!$B$36,INDEX(Ranks!$1:$1048576,$A139,AC$1))","v":""},{"$f":"IF($A139=\"N/A\",Ref!$B$36,INDEX(Ranks!$1:$1048576,$A139,AD$1))","v":""},{"$f":"IF($A139=\"N/A\",Ref!$B$36,INDEX(Ranks!$1:$1048576,$A139,AE$1))","v":""},{"$f":"IF($A139=\"N/A\",Ref!$B$36,INDEX(Ranks!$1:$1048576,$A139,AF$1))","v":""},{"$f":"IF($A139=\"N/A\",Ref!$B$36,INDEX(Ranks!$1:$1048576,$A139,AG$1))","v":""},{"$f":"IF($A139=\"N/A\",Ref!$B$36,INDEX(Ranks!$1:$1048576,$A139,AH$1))","v":""},{"$f":"IF($A139=\"N/A\",Ref!$B$36,INDEX(Ranks!$1:$1048576,$A139,AI$1))","v":""},{"$f":"IF($A139=\"N/A\",Ref!$B$36,INDEX(Ranks!$1:$1048576,$A139,AJ$1))","v":""},{"$f":"IF($A139=\"N/A\",Ref!$B$36,INDEX(Ranks!$1:$1048576,$A139,AK$1))","v":""},{"$f":"IF($A139=\"N/A\",Ref!$B$36,INDEX(Ranks!$1:$1048576,$A139,AL$1))","v":""},{"$f":"IF($A139=\"N/A\",Ref!$B$36,INDEX(Ranks!$1:$1048576,$A139,AM$1))","v":""},{"$f":"IF($A139=\"N/A\",Ref!$B$36,INDEX(Ranks!$1:$1048576,$A139,AN$1))","v":""},{"$f":"IF($A139=\"N/A\",Ref!$B$36,INDEX(Ranks!$1:$1048576,$A139,AO$1))","v":""},{"$f":"IF($A139=\"N/A\",Ref!$B$36,INDEX(Ranks!$1:$1048576,$A139,AP$1))","v":""},{"$f":"IF($A139=\"N/A\",Ref!$B$36,INDEX(Ranks!$1:$1048576,$A139,AQ$1))","v":""},{"$f":"IF($A139=\"N/A\",Ref!$B$36,INDEX(Ranks!$1:$1048576,$A139,AR$1))","v":""},{"$f":"IF($A139=\"N/A\",Ref!$B$36,INDEX(Ranks!$1:$1048576,$A139,AS$1))","v":""},{"$f":"IF($A139=\"N/A\",Ref!$B$36,INDEX(Ranks!$1:$1048576,$A139,AT$1))","v":""},{"$f":"IF($A139=\"N/A\",Ref!$B$36,INDEX(Ranks!$1:$1048576,$A139,AU$1))","v":""},{"$f":"IF($A139=\"N/A\",Ref!$B$36,INDEX(Ranks!$1:$1048576,$A139,AV$1))","v":""},{"$f":"IF($A139=\"N/A\",Ref!$B$36,INDEX(Ranks!$1:$1048576,$A139,AW$1))","v":""},{"$f":"IF($A139=\"N/A\",Ref!$B$36,INDEX(Ranks!$1:$1048576,$A139,AX$1))","v":""},{"$f":"IF($A139=\"N/A\",Ref!$B$36,INDEX(Ranks!$1:$1048576,$A139,AY$1))","v":""},{"$f":"IF($A139=\"N/A\",Ref!$B$36,INDEX(Ranks!$1:$1048576,$A139,AZ$1))","v":""},{"$f":"IF($A139=\"N/A\",Ref!$B$36,INDEX(Ranks!$1:$1048576,$A139,BA$1))","v":""},{"$f":"IF($A139=\"N/A\",Ref!$B$36,INDEX(Ranks!$1:$1048576,$A139,BB$1))","v":""},{"$f":"IF($A139=\"N/A\",Ref!$B$36,INDEX(Ranks!$1:$1048576,$A139,BC$1))","v":""},{"$f":"IF($A139=\"N/A\",Ref!$B$36,INDEX(Ranks!$1:$1048576,$A139,BD$1))","v":""},{"$f":"IF($A139=\"N/A\",Ref!$B$36,INDEX(Ranks!$1:$1048576,$A139,BE$1))","v":""},{"$f":"IF($A139=\"N/A\",Ref!$B$36,INDEX(Ranks!$1:$1048576,$A139,BF$1))","v":""},{"$f":"IF($A139=\"N/A\",Ref!$B$36,INDEX(Ranks!$1:$1048576,$A139,BG$1))","v":""},{"$f":"IF($A139=\"N/A\",Ref!$B$36,INDEX(Ranks!$1:$1048576,$A139,BH$1))","v":""},{"$f":"IF($A139=\"N/A\",Ref!$B$36,INDEX(Ranks!$1:$1048576,$A139,BI$1))","v":""},{"$f":"IF($A139=\"N/A\",Ref!$B$36,INDEX(Ranks!$1:$1048576,$A139,BJ$1))","v":""},{"$f":"IF($A139=\"N/A\",Ref!$B$36,INDEX(Ranks!$1:$1048576,$A139,BK$1))","v":""},{"$f":"IF($A139=\"N/A\",Ref!$B$36,INDEX(Ranks!$1:$1048576,$A139,BL$1))","v":""},{"$f":"IF($A139=\"N/A\",Ref!$B$36,INDEX(Ranks!$1:$1048576,$A139,BM$1))","v":""},{"$f":"IF($A139=\"N/A\",Ref!$B$36,INDEX(Ranks!$1:$1048576,$A139,BN$1))","v":""},{"$f":"IF($A139=\"N/A\",Ref!$B$36,INDEX(Ranks!$1:$1048576,$A139,BO$1))","v":""},{"$f":"IF($A139=\"N/A\",Ref!$B$36,INDEX(Ranks!$1:$1048576,$A139,BP$1))","v":""},{"$f":"IF($A139=\"N/A\",Ref!$B$36,INDEX(Ranks!$1:$1048576,$A139,BQ$1))","v":""},{"$f":"IF($A139=\"N/A\",Ref!$B$36,INDEX(Ranks!$1:$1048576,$A139,BR$1))","v":""},{"$f":"IF($A139=\"N/A\",Ref!$B$36,INDEX(Ranks!$1:$1048576,$A139,BS$1))","v":""},{"$f":"IF($A139=\"N/A\",Ref!$B$36,INDEX(Ranks!$1:$1048576,$A139,BT$1))","v":""},{"$f":"IF($A139=\"N/A\",Ref!$B$36,INDEX(Ranks!$1:$1048576,$A139,BU$1))","v":""},{"$f":"IF($A139=\"N/A\",Ref!$B$36,INDEX(Ranks!$1:$1048576,$A139,BV$1))","v":""},{"$f":"IF($A139=\"N/A\",Ref!$B$36,INDEX(Ranks!$1:$1048576,$A139,BW$1))","v":""},{"$f":"IF($A139=\"N/A\",Ref!$B$36,INDEX(Ranks!$1:$1048576,$A139,BX$1))","v":""},{"$f":"IF($A139=\"N/A\",Ref!$B$36,INDEX(Ranks!$1:$1048576,$A139,BY$1))","v":""},{"$f":"IF($A139=\"N/A\",Ref!$B$36,INDEX(Ranks!$1:$1048576,$A139,BZ$1))","v":""},{"$f":"IF($A139=\"N/A\",Ref!$B$36,INDEX(Ranks!$1:$1048576,$A139,CA$1))","v":""},{"$f":"IF($A139=\"N/A\",Ref!$B$36,INDEX(Ranks!$1:$1048576,$A139,CB$1))","v":""},{"$f":"IF($A139=\"N/A\",Ref!$B$36,INDEX(Ranks!$1:$1048576,$A139,CC$1))","v":""},{"$f":"IF($A139=\"N/A\",Ref!$B$36,INDEX(Ranks!$1:$1048576,$A139,CD$1))","v":""},{"$f":"IF($A139=\"N/A\",Ref!$B$36,INDEX(Ranks!$1:$1048576,$A139,CE$1))","v":""},{"$f":"IF($A139=\"N/A\",Ref!$B$36,INDEX(Ranks!$1:$1048576,$A139,CF$1))","v":""},{"$f":"IF($A139=\"N/A\",Ref!$B$36,INDEX(Ranks!$1:$1048576,$A139,CG$1))","v":""},{"$f":"IF($A139=\"N/A\",Ref!$B$36,INDEX(Ranks!$1:$1048576,$A139,CH$1))","v":""},{"$f":"IF($A139=\"N/A\",Ref!$B$36,INDEX(Ranks!$1:$1048576,$A139,CI$1))","v":""},{"$f":"IF($A139=\"N/A\",Ref!$B$36,INDEX(Ranks!$1:$1048576,$A139,CJ$1))","v":""},{"$f":"IF($A139=\"N/A\",Ref!$B$36,INDEX(Ranks!$1:$1048576,$A139,CK$1))","v":""},{"$f":"IF($A139=\"N/A\",Ref!$B$36,INDEX(Ranks!$1:$1048576,$A139,CL$1))","v":""},{"$f":"IF($A139=\"N/A\",Ref!$B$36,INDEX(Ranks!$1:$1048576,$A139,CM$1))","v":""},{"$f":"IF($A139=\"N/A\",Ref!$B$36,INDEX(Ranks!$1:$1048576,$A139,CN$1))","v":""},{"$f":"IF($A139=\"N/A\",Ref!$B$36,INDEX(Ranks!$1:$1048576,$A139,CO$1))","v":""},{"$f":"IF($A139=\"N/A\",Ref!$B$36,INDEX(Ranks!$1:$1048576,$A139,CP$1))","v":""},{"$f":"IF($A139=\"N/A\",Ref!$B$36,INDEX(Ranks!$1:$1048576,$A139,CQ$1))","v":""},{"$f":"IF($A139=\"N/A\",Ref!$B$36,INDEX(Ranks!$1:$1048576,$A139,CR$1))","v":""},{"$f":"IF($A139=\"N/A\",Ref!$B$36,INDEX(Ranks!$1:$1048576,$A139,CS$1))","v":""},{"$f":"IF($A139=\"N/A\",Ref!$B$36,INDEX(Ranks!$1:$1048576,$A139,CT$1))","v":""},{"$f":"IF($A139=\"N/A\",Ref!$B$36,INDEX(Ranks!$1:$1048576,$A139,CU$1))","v":""},{"$f":"IF($A139=\"N/A\",Ref!$B$36,INDEX(Ranks!$1:$1048576,$A139,CV$1))","v":""},{"$f":"IF($A139=\"N/A\",Ref!$B$36,INDEX(Ranks!$1:$1048576,$A139,CW$1))","v":""},{"$f":"IF($A139=\"N/A\",Ref!$B$36,INDEX(Ranks!$1:$1048576,$A139,CX$1))","v":""},{"$f":"IF($A139=\"N/A\",Ref!$B$36,INDEX(Ranks!$1:$1048576,$A139,CY$1))","v":""},{"$f":"IF($A139=\"N/A\",Ref!$B$36,INDEX(Ranks!$1:$1048576,$A139,CZ$1))","v":""},{"$f":"IF($A139=\"N/A\",Ref!$B$36,INDEX(Ranks!$1:$1048576,$A139,DA$1))","v":""},{"$f":"IF($A139=\"N/A\",Ref!$B$36,INDEX(Ranks!$1:$1048576,$A139,DB$1))","v":""},{"$f":"IF($A139=\"N/A\",Ref!$B$36,INDEX(Ranks!$1:$1048576,$A139,DC$1))","v":""},{"$f":"IF($A139=\"N/A\",Ref!$B$36,INDEX(Ranks!$1:$1048576,$A139,DD$1))","v":""},{"$f":"IF($A139=\"N/A\",Ref!$B$36,INDEX(Ranks!$1:$1048576,$A139,DE$1))","v":""},{"$f":"IF($A139=\"N/A\",Ref!$B$36,INDEX(Ranks!$1:$1048576,$A139,DF$1))","v":""},{"$f":"IF($A139=\"N/A\",Ref!$B$36,INDEX(Ranks!$1:$1048576,$A139,DG$1))","v":""},{"$f":"IF($A139=\"N/A\",Ref!$B$36,INDEX(Ranks!$1:$1048576,$A139,DH$1))","v":""},{"$f":"IF($A139=\"N/A\",Ref!$B$36,INDEX(Ranks!$1:$1048576,$A139,DI$1))","v":""},{"$f":"IF($A139=\"N/A\",Ref!$B$36,INDEX(Ranks!$1:$1048576,$A139,DJ$1))","v":""},{"$f":"IF($A139=\"N/A\",Ref!$B$36,INDEX(Ranks!$1:$1048576,$A139,DK$1))","v":""},{"$f":"IF($A139=\"N/A\",Ref!$B$36,INDEX(Ranks!$1:$1048576,$A139,DL$1))","v":""},{"$f":"IF($A139=\"N/A\",Ref!$B$36,INDEX(Ranks!$1:$1048576,$A139,DM$1))","v":""},{"$f":"IF($A139=\"N/A\",Ref!$B$36,INDEX(Ranks!$1:$1048576,$A139,DN$1))","v":""},{"$f":"IF($A139=\"N/A\",Ref!$B$36,INDEX(Ranks!$1:$1048576,$A139,DO$1))","v":""},{"$f":"IF($A139=\"N/A\",Ref!$B$36,INDEX(Ranks!$1:$1048576,$A139,DP$1))","v":""},{"$f":"IF($A139=\"N/A\",Ref!$B$36,INDEX(Ranks!$1:$1048576,$A139,DQ$1))","v":""},{"$f":"IF($A139=\"N/A\",Ref!$B$36,INDEX(Ranks!$1:$1048576,$A139,DR$1))","v":""},{"$f":"IF($A139=\"N/A\",Ref!$B$36,INDEX(Ranks!$1:$1048576,$A139,DS$1))","v":""},{"$f":"IF($A139=\"N/A\",Ref!$B$36,INDEX(Ranks!$1:$1048576,$A139,DT$1))","v":""},{"$f":"IF($A139=\"N/A\",Ref!$B$36,INDEX(Ranks!$1:$1048576,$A139,DU$1))","v":""},{"$f":"IF($A139=\"N/A\",Ref!$B$36,INDEX(Ranks!$1:$1048576,$A139,DV$1))","v":""},{"$f":"IF($A139=\"N/A\",Ref!$B$36,INDEX(Ranks!$1:$1048576,$A139,DW$1))","v":""},{"$f":"IF($A139=\"N/A\",Ref!$B$36,INDEX(Ranks!$1:$1048576,$A139,DX$1))","v":""},{"$f":"IF($A139=\"N/A\",Ref!$B$36,INDEX(Ranks!$1:$1048576,$A139,DY$1))","v":""},{"$f":"IF($A139=\"N/A\",Ref!$B$36,INDEX(Ranks!$1:$1048576,$A139,DZ$1))","v":""},{"$f":"IF($A139=\"N/A\",Ref!$B$36,INDEX(Ranks!$1:$1048576,$A139,EA$1))","v":""},{"$f":"IF($A139=\"N/A\",Ref!$B$36,INDEX(Ranks!$1:$1048576,$A139,EB$1))","v":""}]
[{"$f":"IFERROR(MATCH('Portfolio Page'!L140,Ranks!L:L,0),\"N/A\")","v":"N/A"},null,{"$f":"IF($A140=\"N/A\",\"\",INDEX(Ranks!$1:$1048576,$A140,C$1))","v":""},{"$f":"IF($A140=\"N/A\",Ref!$B$36,INDEX(Ranks!$1:$1048576,$A140,D$1))","v":""},{"$f":"IF($A140=\"N/A\",Ref!$B$36,INDEX(Ranks!$1:$1048576,$A140,E$1))","v":""},{"$f":"IF($A140=\"N/A\",\"\",INDEX(Ranks!$1:$1048576,$A140,F$1))","v":""},{"$f":"IF($A140=\"N/A\",\"\",INDEX(Ranks!$1:$1048576,$A140,G$1))","v":""},{"$f":"IF($A140=\"N/A\",\"\",INDEX(Ranks!$1:$1048576,$A140,H$1))","v":""},{"$f":"IF($A140=\"N/A\",\"\",INDEX(Ranks!$1:$1048576,$A140,I$1))","v":""},{"$f":"IF($A140=\"N/A\",\"\",INDEX(Ranks!$1:$1048576,$A140,J$1))","v":""},{"$f":"IF($A140=\"N/A\",\"\",INDEX(Ranks!$1:$1048576,$A140,K$1))","v":""},null,{"$f":"IF($A140=\"N/A\",Ref!$B$36,INDEX(Ranks!$1:$1048576,$A140,M$1))","v":""},{"$f":"IF($A140=\"N/A\",Ref!$B$36,INDEX(Ranks!$1:$1048576,$A140,N$1))","v":""},{"$f":"IF($A140=\"N/A\",Ref!$B$36,INDEX(Ranks!$1:$1048576,$A140,O$1))","v":""},{"$f":"IF($A140=\"N/A\",Ref!$B$36,INDEX(Ranks!$1:$1048576,$A140,P$1))","v":""},{"$f":"IF($A140=\"N/A\",Ref!$B$36,INDEX(Ranks!$1:$1048576,$A140,Q$1))","v":""},{"$f":"IF($A140=\"N/A\",Ref!$B$36,INDEX(Ranks!$1:$1048576,$A140,R$1))","v":""},{"$f":"IF($A140=\"N/A\",Ref!$B$36,INDEX(Ranks!$1:$1048576,$A140,S$1))","v":""},{"$f":"IF($A140=\"N/A\",Ref!$B$36,INDEX(Ranks!$1:$1048576,$A140,T$1))","v":""},{"$f":"IF($A140=\"N/A\",Ref!$B$36,INDEX(Ranks!$1:$1048576,$A140,U$1))","v":""},{"$f":"IF($A140=\"N/A\",Ref!$B$36,INDEX(Ranks!$1:$1048576,$A140,V$1))","v":""},{"$f":"IF($A140=\"N/A\",Ref!$B$36,INDEX(Ranks!$1:$1048576,$A140,W$1))","v":""},{"$f":"IF($A140=\"N/A\",Ref!$B$36,INDEX(Ranks!$1:$1048576,$A140,X$1))","v":""},{"$f":"IF($A140=\"N/A\",Ref!$B$36,INDEX(Ranks!$1:$1048576,$A140,Y$1))","v":""},{"$f":"IF($A140=\"N/A\",Ref!$B$36,INDEX(Ranks!$1:$1048576,$A140,Z$1))","v":""},{"$f":"IF($A140=\"N/A\",Ref!$B$36,INDEX(Ranks!$1:$1048576,$A140,AA$1))","v":""},{"$f":"IF($A140=\"N/A\",Ref!$B$36,INDEX(Ranks!$1:$1048576,$A140,AB$1))","v":""},{"$f":"IF($A140=\"N/A\",Ref!$B$36,INDEX(Ranks!$1:$1048576,$A140,AC$1))","v":""},{"$f":"IF($A140=\"N/A\",Ref!$B$36,INDEX(Ranks!$1:$1048576,$A140,AD$1))","v":""},{"$f":"IF($A140=\"N/A\",Ref!$B$36,INDEX(Ranks!$1:$1048576,$A140,AE$1))","v":""},{"$f":"IF($A140=\"N/A\",Ref!$B$36,INDEX(Ranks!$1:$1048576,$A140,AF$1))","v":""},{"$f":"IF($A140=\"N/A\",Ref!$B$36,INDEX(Ranks!$1:$1048576,$A140,AG$1))","v":""},{"$f":"IF($A140=\"N/A\",Ref!$B$36,INDEX(Ranks!$1:$1048576,$A140,AH$1))","v":""},{"$f":"IF($A140=\"N/A\",Ref!$B$36,INDEX(Ranks!$1:$1048576,$A140,AI$1))","v":""},{"$f":"IF($A140=\"N/A\",Ref!$B$36,INDEX(Ranks!$1:$1048576,$A140,AJ$1))","v":""},{"$f":"IF($A140=\"N/A\",Ref!$B$36,INDEX(Ranks!$1:$1048576,$A140,AK$1))","v":""},{"$f":"IF($A140=\"N/A\",Ref!$B$36,INDEX(Ranks!$1:$1048576,$A140,AL$1))","v":""},{"$f":"IF($A140=\"N/A\",Ref!$B$36,INDEX(Ranks!$1:$1048576,$A140,AM$1))","v":""},{"$f":"IF($A140=\"N/A\",Ref!$B$36,INDEX(Ranks!$1:$1048576,$A140,AN$1))","v":""},{"$f":"IF($A140=\"N/A\",Ref!$B$36,INDEX(Ranks!$1:$1048576,$A140,AO$1))","v":""},{"$f":"IF($A140=\"N/A\",Ref!$B$36,INDEX(Ranks!$1:$1048576,$A140,AP$1))","v":""},{"$f":"IF($A140=\"N/A\",Ref!$B$36,INDEX(Ranks!$1:$1048576,$A140,AQ$1))","v":""},{"$f":"IF($A140=\"N/A\",Ref!$B$36,INDEX(Ranks!$1:$1048576,$A140,AR$1))","v":""},{"$f":"IF($A140=\"N/A\",Ref!$B$36,INDEX(Ranks!$1:$1048576,$A140,AS$1))","v":""},{"$f":"IF($A140=\"N/A\",Ref!$B$36,INDEX(Ranks!$1:$1048576,$A140,AT$1))","v":""},{"$f":"IF($A140=\"N/A\",Ref!$B$36,INDEX(Ranks!$1:$1048576,$A140,AU$1))","v":""},{"$f":"IF($A140=\"N/A\",Ref!$B$36,INDEX(Ranks!$1:$1048576,$A140,AV$1))","v":""},{"$f":"IF($A140=\"N/A\",Ref!$B$36,INDEX(Ranks!$1:$1048576,$A140,AW$1))","v":""},{"$f":"IF($A140=\"N/A\",Ref!$B$36,INDEX(Ranks!$1:$1048576,$A140,AX$1))","v":""},{"$f":"IF($A140=\"N/A\",Ref!$B$36,INDEX(Ranks!$1:$1048576,$A140,AY$1))","v":""},{"$f":"IF($A140=\"N/A\",Ref!$B$36,INDEX(Ranks!$1:$1048576,$A140,AZ$1))","v":""},{"$f":"IF($A140=\"N/A\",Ref!$B$36,INDEX(Ranks!$1:$1048576,$A140,BA$1))","v":""},{"$f":"IF($A140=\"N/A\",Ref!$B$36,INDEX(Ranks!$1:$1048576,$A140,BB$1))","v":""},{"$f":"IF($A140=\"N/A\",Ref!$B$36,INDEX(Ranks!$1:$1048576,$A140,BC$1))","v":""},{"$f":"IF($A140=\"N/A\",Ref!$B$36,INDEX(Ranks!$1:$1048576,$A140,BD$1))","v":""},{"$f":"IF($A140=\"N/A\",Ref!$B$36,INDEX(Ranks!$1:$1048576,$A140,BE$1))","v":""},{"$f":"IF($A140=\"N/A\",Ref!$B$36,INDEX(Ranks!$1:$1048576,$A140,BF$1))","v":""},{"$f":"IF($A140=\"N/A\",Ref!$B$36,INDEX(Ranks!$1:$1048576,$A140,BG$1))","v":""},{"$f":"IF($A140=\"N/A\",Ref!$B$36,INDEX(Ranks!$1:$1048576,$A140,BH$1))","v":""},{"$f":"IF($A140=\"N/A\",Ref!$B$36,INDEX(Ranks!$1:$1048576,$A140,BI$1))","v":""},{"$f":"IF($A140=\"N/A\",Ref!$B$36,INDEX(Ranks!$1:$1048576,$A140,BJ$1))","v":""},{"$f":"IF($A140=\"N/A\",Ref!$B$36,INDEX(Ranks!$1:$1048576,$A140,BK$1))","v":""},{"$f":"IF($A140=\"N/A\",Ref!$B$36,INDEX(Ranks!$1:$1048576,$A140,BL$1))","v":""},{"$f":"IF($A140=\"N/A\",Ref!$B$36,INDEX(Ranks!$1:$1048576,$A140,BM$1))","v":""},{"$f":"IF($A140=\"N/A\",Ref!$B$36,INDEX(Ranks!$1:$1048576,$A140,BN$1))","v":""},{"$f":"IF($A140=\"N/A\",Ref!$B$36,INDEX(Ranks!$1:$1048576,$A140,BO$1))","v":""},{"$f":"IF($A140=\"N/A\",Ref!$B$36,INDEX(Ranks!$1:$1048576,$A140,BP$1))","v":""},{"$f":"IF($A140=\"N/A\",Ref!$B$36,INDEX(Ranks!$1:$1048576,$A140,BQ$1))","v":""},{"$f":"IF($A140=\"N/A\",Ref!$B$36,INDEX(Ranks!$1:$1048576,$A140,BR$1))","v":""},{"$f":"IF($A140=\"N/A\",Ref!$B$36,INDEX(Ranks!$1:$1048576,$A140,BS$1))","v":""},{"$f":"IF($A140=\"N/A\",Ref!$B$36,INDEX(Ranks!$1:$1048576,$A140,BT$1))","v":""},{"$f":"IF($A140=\"N/A\",Ref!$B$36,INDEX(Ranks!$1:$1048576,$A140,BU$1))","v":""},{"$f":"IF($A140=\"N/A\",Ref!$B$36,INDEX(Ranks!$1:$1048576,$A140,BV$1))","v":""},{"$f":"IF($A140=\"N/A\",Ref!$B$36,INDEX(Ranks!$1:$1048576,$A140,BW$1))","v":""},{"$f":"IF($A140=\"N/A\",Ref!$B$36,INDEX(Ranks!$1:$1048576,$A140,BX$1))","v":""},{"$f":"IF($A140=\"N/A\",Ref!$B$36,INDEX(Ranks!$1:$1048576,$A140,BY$1))","v":""},{"$f":"IF($A140=\"N/A\",Ref!$B$36,INDEX(Ranks!$1:$1048576,$A140,BZ$1))","v":""},{"$f":"IF($A140=\"N/A\",Ref!$B$36,INDEX(Ranks!$1:$1048576,$A140,CA$1))","v":""},{"$f":"IF($A140=\"N/A\",Ref!$B$36,INDEX(Ranks!$1:$1048576,$A140,CB$1))","v":""},{"$f":"IF($A140=\"N/A\",Ref!$B$36,INDEX(Ranks!$1:$1048576,$A140,CC$1))","v":""},{"$f":"IF($A140=\"N/A\",Ref!$B$36,INDEX(Ranks!$1:$1048576,$A140,CD$1))","v":""},{"$f":"IF($A140=\"N/A\",Ref!$B$36,INDEX(Ranks!$1:$1048576,$A140,CE$1))","v":""},{"$f":"IF($A140=\"N/A\",Ref!$B$36,INDEX(Ranks!$1:$1048576,$A140,CF$1))","v":""},{"$f":"IF($A140=\"N/A\",Ref!$B$36,INDEX(Ranks!$1:$1048576,$A140,CG$1))","v":""},{"$f":"IF($A140=\"N/A\",Ref!$B$36,INDEX(Ranks!$1:$1048576,$A140,CH$1))","v":""},{"$f":"IF($A140=\"N/A\",Ref!$B$36,INDEX(Ranks!$1:$1048576,$A140,CI$1))","v":""},{"$f":"IF($A140=\"N/A\",Ref!$B$36,INDEX(Ranks!$1:$1048576,$A140,CJ$1))","v":""},{"$f":"IF($A140=\"N/A\",Ref!$B$36,INDEX(Ranks!$1:$1048576,$A140,CK$1))","v":""},{"$f":"IF($A140=\"N/A\",Ref!$B$36,INDEX(Ranks!$1:$1048576,$A140,CL$1))","v":""},{"$f":"IF($A140=\"N/A\",Ref!$B$36,INDEX(Ranks!$1:$1048576,$A140,CM$1))","v":""},{"$f":"IF($A140=\"N/A\",Ref!$B$36,INDEX(Ranks!$1:$1048576,$A140,CN$1))","v":""},{"$f":"IF($A140=\"N/A\",Ref!$B$36,INDEX(Ranks!$1:$1048576,$A140,CO$1))","v":""},{"$f":"IF($A140=\"N/A\",Ref!$B$36,INDEX(Ranks!$1:$1048576,$A140,CP$1))","v":""},{"$f":"IF($A140=\"N/A\",Ref!$B$36,INDEX(Ranks!$1:$1048576,$A140,CQ$1))","v":""},{"$f":"IF($A140=\"N/A\",Ref!$B$36,INDEX(Ranks!$1:$1048576,$A140,CR$1))","v":""},{"$f":"IF($A140=\"N/A\",Ref!$B$36,INDEX(Ranks!$1:$1048576,$A140,CS$1))","v":""},{"$f":"IF($A140=\"N/A\",Ref!$B$36,INDEX(Ranks!$1:$1048576,$A140,CT$1))","v":""},{"$f":"IF($A140=\"N/A\",Ref!$B$36,INDEX(Ranks!$1:$1048576,$A140,CU$1))","v":""},{"$f":"IF($A140=\"N/A\",Ref!$B$36,INDEX(Ranks!$1:$1048576,$A140,CV$1))","v":""},{"$f":"IF($A140=\"N/A\",Ref!$B$36,INDEX(Ranks!$1:$1048576,$A140,CW$1))","v":""},{"$f":"IF($A140=\"N/A\",Ref!$B$36,INDEX(Ranks!$1:$1048576,$A140,CX$1))","v":""},{"$f":"IF($A140=\"N/A\",Ref!$B$36,INDEX(Ranks!$1:$1048576,$A140,CY$1))","v":""},{"$f":"IF($A140=\"N/A\",Ref!$B$36,INDEX(Ranks!$1:$1048576,$A140,CZ$1))","v":""},{"$f":"IF($A140=\"N/A\",Ref!$B$36,INDEX(Ranks!$1:$1048576,$A140,DA$1))","v":""},{"$f":"IF($A140=\"N/A\",Ref!$B$36,INDEX(Ranks!$1:$1048576,$A140,DB$1))","v":""},{"$f":"IF($A140=\"N/A\",Ref!$B$36,INDEX(Ranks!$1:$1048576,$A140,DC$1))","v":""},{"$f":"IF($A140=\"N/A\",Ref!$B$36,INDEX(Ranks!$1:$1048576,$A140,DD$1))","v":""},{"$f":"IF($A140=\"N/A\",Ref!$B$36,INDEX(Ranks!$1:$1048576,$A140,DE$1))","v":""},{"$f":"IF($A140=\"N/A\",Ref!$B$36,INDEX(Ranks!$1:$1048576,$A140,DF$1))","v":""},{"$f":"IF($A140=\"N/A\",Ref!$B$36,INDEX(Ranks!$1:$1048576,$A140,DG$1))","v":""},{"$f":"IF($A140=\"N/A\",Ref!$B$36,INDEX(Ranks!$1:$1048576,$A140,DH$1))","v":""},{"$f":"IF($A140=\"N/A\",Ref!$B$36,INDEX(Ranks!$1:$1048576,$A140,DI$1))","v":""},{"$f":"IF($A140=\"N/A\",Ref!$B$36,INDEX(Ranks!$1:$1048576,$A140,DJ$1))","v":""},{"$f":"IF($A140=\"N/A\",Ref!$B$36,INDEX(Ranks!$1:$1048576,$A140,DK$1))","v":""},{"$f":"IF($A140=\"N/A\",Ref!$B$36,INDEX(Ranks!$1:$1048576,$A140,DL$1))","v":""},{"$f":"IF($A140=\"N/A\",Ref!$B$36,INDEX(Ranks!$1:$1048576,$A140,DM$1))","v":""},{"$f":"IF($A140=\"N/A\",Ref!$B$36,INDEX(Ranks!$1:$1048576,$A140,DN$1))","v":""},{"$f":"IF($A140=\"N/A\",Ref!$B$36,INDEX(Ranks!$1:$1048576,$A140,DO$1))","v":""},{"$f":"IF($A140=\"N/A\",Ref!$B$36,INDEX(Ranks!$1:$1048576,$A140,DP$1))","v":""},{"$f":"IF($A140=\"N/A\",Ref!$B$36,INDEX(Ranks!$1:$1048576,$A140,DQ$1))","v":""},{"$f":"IF($A140=\"N/A\",Ref!$B$36,INDEX(Ranks!$1:$1048576,$A140,DR$1))","v":""},{"$f":"IF($A140=\"N/A\",Ref!$B$36,INDEX(Ranks!$1:$1048576,$A140,DS$1))","v":""},{"$f":"IF($A140=\"N/A\",Ref!$B$36,INDEX(Ranks!$1:$1048576,$A140,DT$1))","v":""},{"$f":"IF($A140=\"N/A\",Ref!$B$36,INDEX(Ranks!$1:$1048576,$A140,DU$1))","v":""},{"$f":"IF($A140=\"N/A\",Ref!$B$36,INDEX(Ranks!$1:$1048576,$A140,DV$1))","v":""},{"$f":"IF($A140=\"N/A\",Ref!$B$36,INDEX(Ranks!$1:$1048576,$A140,DW$1))","v":""},{"$f":"IF($A140=\"N/A\",Ref!$B$36,INDEX(Ranks!$1:$1048576,$A140,DX$1))","v":""},{"$f":"IF($A140=\"N/A\",Ref!$B$36,INDEX(Ranks!$1:$1048576,$A140,DY$1))","v":""},{"$f":"IF($A140=\"N/A\",Ref!$B$36,INDEX(Ranks!$1:$1048576,$A140,DZ$1))","v":""},{"$f":"IF($A140=\"N/A\",Ref!$B$36,INDEX(Ranks!$1:$1048576,$A140,EA$1))","v":""},{"$f":"IF($A140=\"N/A\",Ref!$B$36,INDEX(Ranks!$1:$1048576,$A140,EB$1))","v":""}]
[{"$f":"IFERROR(MATCH('Portfolio Page'!L141,Ranks!L:L,0),\"N/A\")","v":"N/A"},null,{"$f":"IF($A141=\"N/A\",\"\",INDEX(Ranks!$1:$1048576,$A141,C$1))","v":""},{"$f":"IF($A141=\"N/A\",Ref!$B$36,INDEX(Ranks!$1:$1048576,$A141,D$1))","v":""},{"$f":"IF($A141=\"N/A\",Ref!$B$36,INDEX(Ranks!$1:$1048576,$A141,E$1))","v":""},{"$f":"IF($A141=\"N/A\",\"\",INDEX(Ranks!$1:$1048576,$A141,F$1))","v":""},{"$f":"IF($A141=\"N/A\",\"\",INDEX(Ranks!$1:$1048576,$A141,G$1))","v":""},{"$f":"IF($A141=\"N/A\",\"\",INDEX(Ranks!$1:$1048576,$A141,H$1))","v":""},{"$f":"IF($A141=\"N/A\",\"\",INDEX(Ranks!$1:$1048576,$A141,I$1))","v":""},{"$f":"IF($A141=\"N/A\",\"\",INDEX(Ranks!$1:$1048576,$A141,J$1))","v":""},{"$f":"IF($A141=\"N/A\",\"\",INDEX(Ranks!$1:$1048576,$A141,K$1))","v":""},null,{"$f":"IF($A141=\"N/A\",Ref!$B$36,INDEX(Ranks!$1:$1048576,$A141,M$1))","v":""},{"$f":"IF($A141=\"N/A\",Ref!$B$36,INDEX(Ranks!$1:$1048576,$A141,N$1))","v":""},{"$f":"IF($A141=\"N/A\",Ref!$B$36,INDEX(Ranks!$1:$1048576,$A141,O$1))","v":""},{"$f":"IF($A141=\"N/A\",Ref!$B$36,INDEX(Ranks!$1:$1048576,$A141,P$1))","v":""},{"$f":"IF($A141=\"N/A\",Ref!$B$36,INDEX(Ranks!$1:$1048576,$A141,Q$1))","v":""},{"$f":"IF($A141=\"N/A\",Ref!$B$36,INDEX(Ranks!$1:$1048576,$A141,R$1))","v":""},{"$f":"IF($A141=\"N/A\",Ref!$B$36,INDEX(Ranks!$1:$1048576,$A141,S$1))","v":""},{"$f":"IF($A141=\"N/A\",Ref!$B$36,INDEX(Ranks!$1:$1048576,$A141,T$1))","v":""},{"$f":"IF($A141=\"N/A\",Ref!$B$36,INDEX(Ranks!$1:$1048576,$A141,U$1))","v":""},{"$f":"IF($A141=\"N/A\",Ref!$B$36,INDEX(Ranks!$1:$1048576,$A141,V$1))","v":""},{"$f":"IF($A141=\"N/A\",Ref!$B$36,INDEX(Ranks!$1:$1048576,$A141,W$1))","v":""},{"$f":"IF($A141=\"N/A\",Ref!$B$36,INDEX(Ranks!$1:$1048576,$A141,X$1))","v":""},{"$f":"IF($A141=\"N/A\",Ref!$B$36,INDEX(Ranks!$1:$1048576,$A141,Y$1))","v":""},{"$f":"IF($A141=\"N/A\",Ref!$B$36,INDEX(Ranks!$1:$1048576,$A141,Z$1))","v":""},{"$f":"IF($A141=\"N/A\",Ref!$B$36,INDEX(Ranks!$1:$1048576,$A141,AA$1))","v":""},{"$f":"IF($A141=\"N/A\",Ref!$B$36,INDEX(Ranks!$1:$1048576,$A141,AB$1))","v":""},{"$f":"IF($A141=\"N/A\",Ref!$B$36,INDEX(Ranks!$1:$1048576,$A141,AC$1))","v":""},{"$f":"IF($A141=\"N/A\",Ref!$B$36,INDEX(Ranks!$1:$1048576,$A141,AD$1))","v":""},{"$f":"IF($A141=\"N/A\",Ref!$B$36,INDEX(Ranks!$1:$1048576,$A141,AE$1))","v":""},{"$f":"IF($A141=\"N/A\",Ref!$B$36,INDEX(Ranks!$1:$1048576,$A141,AF$1))","v":""},{"$f":"IF($A141=\"N/A\",Ref!$B$36,INDEX(Ranks!$1:$1048576,$A141,AG$1))","v":""},{"$f":"IF($A141=\"N/A\",Ref!$B$36,INDEX(Ranks!$1:$1048576,$A141,AH$1))","v":""},{"$f":"IF($A141=\"N/A\",Ref!$B$36,INDEX(Ranks!$1:$1048576,$A141,AI$1))","v":""},{"$f":"IF($A141=\"N/A\",Ref!$B$36,INDEX(Ranks!$1:$1048576,$A141,AJ$1))","v":""},{"$f":"IF($A141=\"N/A\",Ref!$B$36,INDEX(Ranks!$1:$1048576,$A141,AK$1))","v":""},{"$f":"IF($A141=\"N/A\",Ref!$B$36,INDEX(Ranks!$1:$1048576,$A141,AL$1))","v":""},{"$f":"IF($A141=\"N/A\",Ref!$B$36,INDEX(Ranks!$1:$1048576,$A141,AM$1))","v":""},{"$f":"IF($A141=\"N/A\",Ref!$B$36,INDEX(Ranks!$1:$1048576,$A141,AN$1))","v":""},{"$f":"IF($A141=\"N/A\",Ref!$B$36,INDEX(Ranks!$1:$1048576,$A141,AO$1))","v":""},{"$f":"IF($A141=\"N/A\",Ref!$B$36,INDEX(Ranks!$1:$1048576,$A141,AP$1))","v":""},{"$f":"IF($A141=\"N/A\",Ref!$B$36,INDEX(Ranks!$1:$1048576,$A141,AQ$1))","v":""},{"$f":"IF($A141=\"N/A\",Ref!$B$36,INDEX(Ranks!$1:$1048576,$A141,AR$1))","v":""},{"$f":"IF($A141=\"N/A\",Ref!$B$36,INDEX(Ranks!$1:$1048576,$A141,AS$1))","v":""},{"$f":"IF($A141=\"N/A\",Ref!$B$36,INDEX(Ranks!$1:$1048576,$A141,AT$1))","v":""},{"$f":"IF($A141=\"N/A\",Ref!$B$36,INDEX(Ranks!$1:$1048576,$A141,AU$1))","v":""},{"$f":"IF($A141=\"N/A\",Ref!$B$36,INDEX(Ranks!$1:$1048576,$A141,AV$1))","v":""},{"$f":"IF($A141=\"N/A\",Ref!$B$36,INDEX(Ranks!$1:$1048576,$A141,AW$1))","v":""},{"$f":"IF($A141=\"N/A\",Ref!$B$36,INDEX(Ranks!$1:$1048576,$A141,AX$1))","v":""},{"$f":"IF($A141=\"N/A\",Ref!$B$36,INDEX(Ranks!$1:$1048576,$A141,AY$1))","v":""},{"$f":"IF($A141=\"N/A\",Ref!$B$36,INDEX(Ranks!$1:$1048576,$A141,AZ$1))","v":""},{"$f":"IF($A141=\"N/A\",Ref!$B$36,INDEX(Ranks!$1:$1048576,$A141,BA$1))","v":""},{"$f":"IF($A141=\"N/A\",Ref!$B$36,INDEX(Ranks!$1:$1048576,$A141,BB$1))","v":""},{"$f":"IF($A141=\"N/A\",Ref!$B$36,INDEX(Ranks!$1:$1048576,$A141,BC$1))","v":""},{"$f":"IF($A141=\"N/A\",Ref!$B$36,INDEX(Ranks!$1:$1048576,$A141,BD$1))","v":""},{"$f":"IF($A141=\"N/A\",Ref!$B$36,INDEX(Ranks!$1:$1048576,$A141,BE$1))","v":""},{"$f":"IF($A141=\"N/A\",Ref!$B$36,INDEX(Ranks!$1:$1048576,$A141,BF$1))","v":""},{"$f":"IF($A141=\"N/A\",Ref!$B$36,INDEX(Ranks!$1:$1048576,$A141,BG$1))","v":""},{"$f":"IF($A141=\"N/A\",Ref!$B$36,INDEX(Ranks!$1:$1048576,$A141,BH$1))","v":""},{"$f":"IF($A141=\"N/A\",Ref!$B$36,INDEX(Ranks!$1:$1048576,$A141,BI$1))","v":""},{"$f":"IF($A141=\"N/A\",Ref!$B$36,INDEX(Ranks!$1:$1048576,$A141,BJ$1))","v":""},{"$f":"IF($A141=\"N/A\",Ref!$B$36,INDEX(Ranks!$1:$1048576,$A141,BK$1))","v":""},{"$f":"IF($A141=\"N/A\",Ref!$B$36,INDEX(Ranks!$1:$1048576,$A141,BL$1))","v":""},{"$f":"IF($A141=\"N/A\",Ref!$B$36,INDEX(Ranks!$1:$1048576,$A141,BM$1))","v":""},{"$f":"IF($A141=\"N/A\",Ref!$B$36,INDEX(Ranks!$1:$1048576,$A141,BN$1))","v":""},{"$f":"IF($A141=\"N/A\",Ref!$B$36,INDEX(Ranks!$1:$1048576,$A141,BO$1))","v":""},{"$f":"IF($A141=\"N/A\",Ref!$B$36,INDEX(Ranks!$1:$1048576,$A141,BP$1))","v":""},{"$f":"IF($A141=\"N/A\",Ref!$B$36,INDEX(Ranks!$1:$1048576,$A141,BQ$1))","v":""},{"$f":"IF($A141=\"N/A\",Ref!$B$36,INDEX(Ranks!$1:$1048576,$A141,BR$1))","v":""},{"$f":"IF($A141=\"N/A\",Ref!$B$36,INDEX(Ranks!$1:$1048576,$A141,BS$1))","v":""},{"$f":"IF($A141=\"N/A\",Ref!$B$36,INDEX(Ranks!$1:$1048576,$A141,BT$1))","v":""},{"$f":"IF($A141=\"N/A\",Ref!$B$36,INDEX(Ranks!$1:$1048576,$A141,BU$1))","v":""},{"$f":"IF($A141=\"N/A\",Ref!$B$36,INDEX(Ranks!$1:$1048576,$A141,BV$1))","v":""},{"$f":"IF($A141=\"N/A\",Ref!$B$36,INDEX(Ranks!$1:$1048576,$A141,BW$1))","v":""},{"$f":"IF($A141=\"N/A\",Ref!$B$36,INDEX(Ranks!$1:$1048576,$A141,BX$1))","v":""},{"$f":"IF($A141=\"N/A\",Ref!$B$36,INDEX(Ranks!$1:$1048576,$A141,BY$1))","v":""},{"$f":"IF($A141=\"N/A\",Ref!$B$36,INDEX(Ranks!$1:$1048576,$A141,BZ$1))","v":""},{"$f":"IF($A141=\"N/A\",Ref!$B$36,INDEX(Ranks!$1:$1048576,$A141,CA$1))","v":""},{"$f":"IF($A141=\"N/A\",Ref!$B$36,INDEX(Ranks!$1:$1048576,$A141,CB$1))","v":""},{"$f":"IF($A141=\"N/A\",Ref!$B$36,INDEX(Ranks!$1:$1048576,$A141,CC$1))","v":""},{"$f":"IF($A141=\"N/A\",Ref!$B$36,INDEX(Ranks!$1:$1048576,$A141,CD$1))","v":""},{"$f":"IF($A141=\"N/A\",Ref!$B$36,INDEX(Ranks!$1:$1048576,$A141,CE$1))","v":""},{"$f":"IF($A141=\"N/A\",Ref!$B$36,INDEX(Ranks!$1:$1048576,$A141,CF$1))","v":""},{"$f":"IF($A141=\"N/A\",Ref!$B$36,INDEX(Ranks!$1:$1048576,$A141,CG$1))","v":""},{"$f":"IF($A141=\"N/A\",Ref!$B$36,INDEX(Ranks!$1:$1048576,$A141,CH$1))","v":""},{"$f":"IF($A141=\"N/A\",Ref!$B$36,INDEX(Ranks!$1:$1048576,$A141,CI$1))","v":""},{"$f":"IF($A141=\"N/A\",Ref!$B$36,INDEX(Ranks!$1:$1048576,$A141,CJ$1))","v":""},{"$f":"IF($A141=\"N/A\",Ref!$B$36,INDEX(Ranks!$1:$1048576,$A141,CK$1))","v":""},{"$f":"IF($A141=\"N/A\",Ref!$B$36,INDEX(Ranks!$1:$1048576,$A141,CL$1))","v":""},{"$f":"IF($A141=\"N/A\",Ref!$B$36,INDEX(Ranks!$1:$1048576,$A141,CM$1))","v":""},{"$f":"IF($A141=\"N/A\",Ref!$B$36,INDEX(Ranks!$1:$1048576,$A141,CN$1))","v":""},{"$f":"IF($A141=\"N/A\",Ref!$B$36,INDEX(Ranks!$1:$1048576,$A141,CO$1))","v":""},{"$f":"IF($A141=\"N/A\",Ref!$B$36,INDEX(Ranks!$1:$1048576,$A141,CP$1))","v":""},{"$f":"IF($A141=\"N/A\",Ref!$B$36,INDEX(Ranks!$1:$1048576,$A141,CQ$1))","v":""},{"$f":"IF($A141=\"N/A\",Ref!$B$36,INDEX(Ranks!$1:$1048576,$A141,CR$1))","v":""},{"$f":"IF($A141=\"N/A\",Ref!$B$36,INDEX(Ranks!$1:$1048576,$A141,CS$1))","v":""},{"$f":"IF($A141=\"N/A\",Ref!$B$36,INDEX(Ranks!$1:$1048576,$A141,CT$1))","v":""},{"$f":"IF($A141=\"N/A\",Ref!$B$36,INDEX(Ranks!$1:$1048576,$A141,CU$1))","v":""},{"$f":"IF($A141=\"N/A\",Ref!$B$36,INDEX(Ranks!$1:$1048576,$A141,CV$1))","v":""},{"$f":"IF($A141=\"N/A\",Ref!$B$36,INDEX(Ranks!$1:$1048576,$A141,CW$1))","v":""},{"$f":"IF($A141=\"N/A\",Ref!$B$36,INDEX(Ranks!$1:$1048576,$A141,CX$1))","v":""},{"$f":"IF($A141=\"N/A\",Ref!$B$36,INDEX(Ranks!$1:$1048576,$A141,CY$1))","v":""},{"$f":"IF($A141=\"N/A\",Ref!$B$36,INDEX(Ranks!$1:$1048576,$A141,CZ$1))","v":""},{"$f":"IF($A141=\"N/A\",Ref!$B$36,INDEX(Ranks!$1:$1048576,$A141,DA$1))","v":""},{"$f":"IF($A141=\"N/A\",Ref!$B$36,INDEX(Ranks!$1:$1048576,$A141,DB$1))","v":""},{"$f":"IF($A141=\"N/A\",Ref!$B$36,INDEX(Ranks!$1:$1048576,$A141,DC$1))","v":""},{"$f":"IF($A141=\"N/A\",Ref!$B$36,INDEX(Ranks!$1:$1048576,$A141,DD$1))","v":""},{"$f":"IF($A141=\"N/A\",Ref!$B$36,INDEX(Ranks!$1:$1048576,$A141,DE$1))","v":""},{"$f":"IF($A141=\"N/A\",Ref!$B$36,INDEX(Ranks!$1:$1048576,$A141,DF$1))","v":""},{"$f":"IF($A141=\"N/A\",Ref!$B$36,INDEX(Ranks!$1:$1048576,$A141,DG$1))","v":""},{"$f":"IF($A141=\"N/A\",Ref!$B$36,INDEX(Ranks!$1:$1048576,$A141,DH$1))","v":""},{"$f":"IF($A141=\"N/A\",Ref!$B$36,INDEX(Ranks!$1:$1048576,$A141,DI$1))","v":""},{"$f":"IF($A141=\"N/A\",Ref!$B$36,INDEX(Ranks!$1:$1048576,$A141,DJ$1))","v":""},{"$f":"IF($A141=\"N/A\",Ref!$B$36,INDEX(Ranks!$1:$1048576,$A141,DK$1))","v":""},{"$f":"IF($A141=\"N/A\",Ref!$B$36,INDEX(Ranks!$1:$1048576,$A141,DL$1))","v":""},{"$f":"IF($A141=\"N/A\",Ref!$B$36,INDEX(Ranks!$1:$1048576,$A141,DM$1))","v":""},{"$f":"IF($A141=\"N/A\",Ref!$B$36,INDEX(Ranks!$1:$1048576,$A141,DN$1))","v":""},{"$f":"IF($A141=\"N/A\",Ref!$B$36,INDEX(Ranks!$1:$1048576,$A141,DO$1))","v":""},{"$f":"IF($A141=\"N/A\",Ref!$B$36,INDEX(Ranks!$1:$1048576,$A141,DP$1))","v":""},{"$f":"IF($A141=\"N/A\",Ref!$B$36,INDEX(Ranks!$1:$1048576,$A141,DQ$1))","v":""},{"$f":"IF($A141=\"N/A\",Ref!$B$36,INDEX(Ranks!$1:$1048576,$A141,DR$1))","v":""},{"$f":"IF($A141=\"N/A\",Ref!$B$36,INDEX(Ranks!$1:$1048576,$A141,DS$1))","v":""},{"$f":"IF($A141=\"N/A\",Ref!$B$36,INDEX(Ranks!$1:$1048576,$A141,DT$1))","v":""},{"$f":"IF($A141=\"N/A\",Ref!$B$36,INDEX(Ranks!$1:$1048576,$A141,DU$1))","v":""},{"$f":"IF($A141=\"N/A\",Ref!$B$36,INDEX(Ranks!$1:$1048576,$A141,DV$1))","v":""},{"$f":"IF($A141=\"N/A\",Ref!$B$36,INDEX(Ranks!$1:$1048576,$A141,DW$1))","v":""},{"$f":"IF($A141=\"N/A\",Ref!$B$36,INDEX(Ranks!$1:$1048576,$A141,DX$1))","v":""},{"$f":"IF($A141=\"N/A\",Ref!$B$36,INDEX(Ranks!$1:$1048576,$A141,DY$1))","v":""},{"$f":"IF($A141=\"N/A\",Ref!$B$36,INDEX(Ranks!$1:$1048576,$A141,DZ$1))","v":""},{"$f":"IF($A141=\"N/A\",Ref!$B$36,INDEX(Ranks!$1:$1048576,$A141,EA$1))","v":""},{"$f":"IF($A141=\"N/A\",Ref!$B$36,INDEX(Ranks!$1:$1048576,$A141,EB$1))","v":""}]
[{"$f":"IFERROR(MATCH('Portfolio Page'!L142,Ranks!L:L,0),\"N/A\")","v":"N/A"},null,{"$f":"IF($A142=\"N/A\",\"\",INDEX(Ranks!$1:$1048576,$A142,C$1))","v":""},{"$f":"IF($A142=\"N/A\",Ref!$B$36,INDEX(Ranks!$1:$1048576,$A142,D$1))","v":""},{"$f":"IF($A142=\"N/A\",Ref!$B$36,INDEX(Ranks!$1:$1048576,$A142,E$1))","v":""},{"$f":"IF($A142=\"N/A\",\"\",INDEX(Ranks!$1:$1048576,$A142,F$1))","v":""},{"$f":"IF($A142=\"N/A\",\"\",INDEX(Ranks!$1:$1048576,$A142,G$1))","v":""},{"$f":"IF($A142=\"N/A\",\"\",INDEX(Ranks!$1:$1048576,$A142,H$1))","v":""},{"$f":"IF($A142=\"N/A\",\"\",INDEX(Ranks!$1:$1048576,$A142,I$1))","v":""},{"$f":"IF($A142=\"N/A\",\"\",INDEX(Ranks!$1:$1048576,$A142,J$1))","v":""},{"$f":"IF($A142=\"N/A\",\"\",INDEX(Ranks!$1:$1048576,$A142,K$1))","v":""},null,{"$f":"IF($A142=\"N/A\",Ref!$B$36,INDEX(Ranks!$1:$1048576,$A142,M$1))","v":""},{"$f":"IF($A142=\"N/A\",Ref!$B$36,INDEX(Ranks!$1:$1048576,$A142,N$1))","v":""},{"$f":"IF($A142=\"N/A\",Ref!$B$36,INDEX(Ranks!$1:$1048576,$A142,O$1))","v":""},{"$f":"IF($A142=\"N/A\",Ref!$B$36,INDEX(Ranks!$1:$1048576,$A142,P$1))","v":""},{"$f":"IF($A142=\"N/A\",Ref!$B$36,INDEX(Ranks!$1:$1048576,$A142,Q$1))","v":""},{"$f":"IF($A142=\"N/A\",Ref!$B$36,INDEX(Ranks!$1:$1048576,$A142,R$1))","v":""},{"$f":"IF($A142=\"N/A\",Ref!$B$36,INDEX(Ranks!$1:$1048576,$A142,S$1))","v":""},{"$f":"IF($A142=\"N/A\",Ref!$B$36,INDEX(Ranks!$1:$1048576,$A142,T$1))","v":""},{"$f":"IF($A142=\"N/A\",Ref!$B$36,INDEX(Ranks!$1:$1048576,$A142,U$1))","v":""},{"$f":"IF($A142=\"N/A\",Ref!$B$36,INDEX(Ranks!$1:$1048576,$A142,V$1))","v":""},{"$f":"IF($A142=\"N/A\",Ref!$B$36,INDEX(Ranks!$1:$1048576,$A142,W$1))","v":""},{"$f":"IF($A142=\"N/A\",Ref!$B$36,INDEX(Ranks!$1:$1048576,$A142,X$1))","v":""},{"$f":"IF($A142=\"N/A\",Ref!$B$36,INDEX(Ranks!$1:$1048576,$A142,Y$1))","v":""},{"$f":"IF($A142=\"N/A\",Ref!$B$36,INDEX(Ranks!$1:$1048576,$A142,Z$1))","v":""},{"$f":"IF($A142=\"N/A\",Ref!$B$36,INDEX(Ranks!$1:$1048576,$A142,AA$1))","v":""},{"$f":"IF($A142=\"N/A\",Ref!$B$36,INDEX(Ranks!$1:$1048576,$A142,AB$1))","v":""},{"$f":"IF($A142=\"N/A\",Ref!$B$36,INDEX(Ranks!$1:$1048576,$A142,AC$1))","v":""},{"$f":"IF($A142=\"N/A\",Ref!$B$36,INDEX(Ranks!$1:$1048576,$A142,AD$1))","v":""},{"$f":"IF($A142=\"N/A\",Ref!$B$36,INDEX(Ranks!$1:$1048576,$A142,AE$1))","v":""},{"$f":"IF($A142=\"N/A\",Ref!$B$36,INDEX(Ranks!$1:$1048576,$A142,AF$1))","v":""},{"$f":"IF($A142=\"N/A\",Ref!$B$36,INDEX(Ranks!$1:$1048576,$A142,AG$1))","v":""},{"$f":"IF($A142=\"N/A\",Ref!$B$36,INDEX(Ranks!$1:$1048576,$A142,AH$1))","v":""},{"$f":"IF($A142=\"N/A\",Ref!$B$36,INDEX(Ranks!$1:$1048576,$A142,AI$1))","v":""},{"$f":"IF($A142=\"N/A\",Ref!$B$36,INDEX(Ranks!$1:$1048576,$A142,AJ$1))","v":""},{"$f":"IF($A142=\"N/A\",Ref!$B$36,INDEX(Ranks!$1:$1048576,$A142,AK$1))","v":""},{"$f":"IF($A142=\"N/A\",Ref!$B$36,INDEX(Ranks!$1:$1048576,$A142,AL$1))","v":""},{"$f":"IF($A142=\"N/A\",Ref!$B$36,INDEX(Ranks!$1:$1048576,$A142,AM$1))","v":""},{"$f":"IF($A142=\"N/A\",Ref!$B$36,INDEX(Ranks!$1:$1048576,$A142,AN$1))","v":""},{"$f":"IF($A142=\"N/A\",Ref!$B$36,INDEX(Ranks!$1:$1048576,$A142,AO$1))","v":""},{"$f":"IF($A142=\"N/A\",Ref!$B$36,INDEX(Ranks!$1:$1048576,$A142,AP$1))","v":""},{"$f":"IF($A142=\"N/A\",Ref!$B$36,INDEX(Ranks!$1:$1048576,$A142,AQ$1))","v":""},{"$f":"IF($A142=\"N/A\",Ref!$B$36,INDEX(Ranks!$1:$1048576,$A142,AR$1))","v":""},{"$f":"IF($A142=\"N/A\",Ref!$B$36,INDEX(Ranks!$1:$1048576,$A142,AS$1))","v":""},{"$f":"IF($A142=\"N/A\",Ref!$B$36,INDEX(Ranks!$1:$1048576,$A142,AT$1))","v":""},{"$f":"IF($A142=\"N/A\",Ref!$B$36,INDEX(Ranks!$1:$1048576,$A142,AU$1))","v":""},{"$f":"IF($A142=\"N/A\",Ref!$B$36,INDEX(Ranks!$1:$1048576,$A142,AV$1))","v":""},{"$f":"IF($A142=\"N/A\",Ref!$B$36,INDEX(Ranks!$1:$1048576,$A142,AW$1))","v":""},{"$f":"IF($A142=\"N/A\",Ref!$B$36,INDEX(Ranks!$1:$1048576,$A142,AX$1))","v":""},{"$f":"IF($A142=\"N/A\",Ref!$B$36,INDEX(Ranks!$1:$1048576,$A142,AY$1))","v":""},{"$f":"IF($A142=\"N/A\",Ref!$B$36,INDEX(Ranks!$1:$1048576,$A142,AZ$1))","v":""},{"$f":"IF($A142=\"N/A\",Ref!$B$36,INDEX(Ranks!$1:$1048576,$A142,BA$1))","v":""},{"$f":"IF($A142=\"N/A\",Ref!$B$36,INDEX(Ranks!$1:$1048576,$A142,BB$1))","v":""},{"$f":"IF($A142=\"N/A\",Ref!$B$36,INDEX(Ranks!$1:$1048576,$A142,BC$1))","v":""},{"$f":"IF($A142=\"N/A\",Ref!$B$36,INDEX(Ranks!$1:$1048576,$A142,BD$1))","v":""},{"$f":"IF($A142=\"N/A\",Ref!$B$36,INDEX(Ranks!$1:$1048576,$A142,BE$1))","v":""},{"$f":"IF($A142=\"N/A\",Ref!$B$36,INDEX(Ranks!$1:$1048576,$A142,BF$1))","v":""},{"$f":"IF($A142=\"N/A\",Ref!$B$36,INDEX(Ranks!$1:$1048576,$A142,BG$1))","v":""},{"$f":"IF($A142=\"N/A\",Ref!$B$36,INDEX(Ranks!$1:$1048576,$A142,BH$1))","v":""},{"$f":"IF($A142=\"N/A\",Ref!$B$36,INDEX(Ranks!$1:$1048576,$A142,BI$1))","v":""},{"$f":"IF($A142=\"N/A\",Ref!$B$36,INDEX(Ranks!$1:$1048576,$A142,BJ$1))","v":""},{"$f":"IF($A142=\"N/A\",Ref!$B$36,INDEX(Ranks!$1:$1048576,$A142,BK$1))","v":""},{"$f":"IF($A142=\"N/A\",Ref!$B$36,INDEX(Ranks!$1:$1048576,$A142,BL$1))","v":""},{"$f":"IF($A142=\"N/A\",Ref!$B$36,INDEX(Ranks!$1:$1048576,$A142,BM$1))","v":""},{"$f":"IF($A142=\"N/A\",Ref!$B$36,INDEX(Ranks!$1:$1048576,$A142,BN$1))","v":""},{"$f":"IF($A142=\"N/A\",Ref!$B$36,INDEX(Ranks!$1:$1048576,$A142,BO$1))","v":""},{"$f":"IF($A142=\"N/A\",Ref!$B$36,INDEX(Ranks!$1:$1048576,$A142,BP$1))","v":""},{"$f":"IF($A142=\"N/A\",Ref!$B$36,INDEX(Ranks!$1:$1048576,$A142,BQ$1))","v":""},{"$f":"IF($A142=\"N/A\",Ref!$B$36,INDEX(Ranks!$1:$1048576,$A142,BR$1))","v":""},{"$f":"IF($A142=\"N/A\",Ref!$B$36,INDEX(Ranks!$1:$1048576,$A142,BS$1))","v":""},{"$f":"IF($A142=\"N/A\",Ref!$B$36,INDEX(Ranks!$1:$1048576,$A142,BT$1))","v":""},{"$f":"IF($A142=\"N/A\",Ref!$B$36,INDEX(Ranks!$1:$1048576,$A142,BU$1))","v":""},{"$f":"IF($A142=\"N/A\",Ref!$B$36,INDEX(Ranks!$1:$1048576,$A142,BV$1))","v":""},{"$f":"IF($A142=\"N/A\",Ref!$B$36,INDEX(Ranks!$1:$1048576,$A142,BW$1))","v":""},{"$f":"IF($A142=\"N/A\",Ref!$B$36,INDEX(Ranks!$1:$1048576,$A142,BX$1))","v":""},{"$f":"IF($A142=\"N/A\",Ref!$B$36,INDEX(Ranks!$1:$1048576,$A142,BY$1))","v":""},{"$f":"IF($A142=\"N/A\",Ref!$B$36,INDEX(Ranks!$1:$1048576,$A142,BZ$1))","v":""},{"$f":"IF($A142=\"N/A\",Ref!$B$36,INDEX(Ranks!$1:$1048576,$A142,CA$1))","v":""},{"$f":"IF($A142=\"N/A\",Ref!$B$36,INDEX(Ranks!$1:$1048576,$A142,CB$1))","v":""},{"$f":"IF($A142=\"N/A\",Ref!$B$36,INDEX(Ranks!$1:$1048576,$A142,CC$1))","v":""},{"$f":"IF($A142=\"N/A\",Ref!$B$36,INDEX(Ranks!$1:$1048576,$A142,CD$1))","v":""},{"$f":"IF($A142=\"N/A\",Ref!$B$36,INDEX(Ranks!$1:$1048576,$A142,CE$1))","v":""},{"$f":"IF($A142=\"N/A\",Ref!$B$36,INDEX(Ranks!$1:$1048576,$A142,CF$1))","v":""},{"$f":"IF($A142=\"N/A\",Ref!$B$36,INDEX(Ranks!$1:$1048576,$A142,CG$1))","v":""},{"$f":"IF($A142=\"N/A\",Ref!$B$36,INDEX(Ranks!$1:$1048576,$A142,CH$1))","v":""},{"$f":"IF($A142=\"N/A\",Ref!$B$36,INDEX(Ranks!$1:$1048576,$A142,CI$1))","v":""},{"$f":"IF($A142=\"N/A\",Ref!$B$36,INDEX(Ranks!$1:$1048576,$A142,CJ$1))","v":""},{"$f":"IF($A142=\"N/A\",Ref!$B$36,INDEX(Ranks!$1:$1048576,$A142,CK$1))","v":""},{"$f":"IF($A142=\"N/A\",Ref!$B$36,INDEX(Ranks!$1:$1048576,$A142,CL$1))","v":""},{"$f":"IF($A142=\"N/A\",Ref!$B$36,INDEX(Ranks!$1:$1048576,$A142,CM$1))","v":""},{"$f":"IF($A142=\"N/A\",Ref!$B$36,INDEX(Ranks!$1:$1048576,$A142,CN$1))","v":""},{"$f":"IF($A142=\"N/A\",Ref!$B$36,INDEX(Ranks!$1:$1048576,$A142,CO$1))","v":""},{"$f":"IF($A142=\"N/A\",Ref!$B$36,INDEX(Ranks!$1:$1048576,$A142,CP$1))","v":""},{"$f":"IF($A142=\"N/A\",Ref!$B$36,INDEX(Ranks!$1:$1048576,$A142,CQ$1))","v":""},{"$f":"IF($A142=\"N/A\",Ref!$B$36,INDEX(Ranks!$1:$1048576,$A142,CR$1))","v":""},{"$f":"IF($A142=\"N/A\",Ref!$B$36,INDEX(Ranks!$1:$1048576,$A142,CS$1))","v":""},{"$f":"IF($A142=\"N/A\",Ref!$B$36,INDEX(Ranks!$1:$1048576,$A142,CT$1))","v":""},{"$f":"IF($A142=\"N/A\",Ref!$B$36,INDEX(Ranks!$1:$1048576,$A142,CU$1))","v":""},{"$f":"IF($A142=\"N/A\",Ref!$B$36,INDEX(Ranks!$1:$1048576,$A142,CV$1))","v":""},{"$f":"IF($A142=\"N/A\",Ref!$B$36,INDEX(Ranks!$1:$1048576,$A142,CW$1))","v":""},{"$f":"IF($A142=\"N/A\",Ref!$B$36,INDEX(Ranks!$1:$1048576,$A142,CX$1))","v":""},{"$f":"IF($A142=\"N/A\",Ref!$B$36,INDEX(Ranks!$1:$1048576,$A142,CY$1))","v":""},{"$f":"IF($A142=\"N/A\",Ref!$B$36,INDEX(Ranks!$1:$1048576,$A142,CZ$1))","v":""},{"$f":"IF($A142=\"N/A\",Ref!$B$36,INDEX(Ranks!$1:$1048576,$A142,DA$1))","v":""},{"$f":"IF($A142=\"N/A\",Ref!$B$36,INDEX(Ranks!$1:$1048576,$A142,DB$1))","v":""},{"$f":"IF($A142=\"N/A\",Ref!$B$36,INDEX(Ranks!$1:$1048576,$A142,DC$1))","v":""},{"$f":"IF($A142=\"N/A\",Ref!$B$36,INDEX(Ranks!$1:$1048576,$A142,DD$1))","v":""},{"$f":"IF($A142=\"N/A\",Ref!$B$36,INDEX(Ranks!$1:$1048576,$A142,DE$1))","v":""},{"$f":"IF($A142=\"N/A\",Ref!$B$36,INDEX(Ranks!$1:$1048576,$A142,DF$1))","v":""},{"$f":"IF($A142=\"N/A\",Ref!$B$36,INDEX(Ranks!$1:$1048576,$A142,DG$1))","v":""},{"$f":"IF($A142=\"N/A\",Ref!$B$36,INDEX(Ranks!$1:$1048576,$A142,DH$1))","v":""},{"$f":"IF($A142=\"N/A\",Ref!$B$36,INDEX(Ranks!$1:$1048576,$A142,DI$1))","v":""},{"$f":"IF($A142=\"N/A\",Ref!$B$36,INDEX(Ranks!$1:$1048576,$A142,DJ$1))","v":""},{"$f":"IF($A142=\"N/A\",Ref!$B$36,INDEX(Ranks!$1:$1048576,$A142,DK$1))","v":""},{"$f":"IF($A142=\"N/A\",Ref!$B$36,INDEX(Ranks!$1:$1048576,$A142,DL$1))","v":""},{"$f":"IF($A142=\"N/A\",Ref!$B$36,INDEX(Ranks!$1:$1048576,$A142,DM$1))","v":""},{"$f":"IF($A142=\"N/A\",Ref!$B$36,INDEX(Ranks!$1:$1048576,$A142,DN$1))","v":""},{"$f":"IF($A142=\"N/A\",Ref!$B$36,INDEX(Ranks!$1:$1048576,$A142,DO$1))","v":""},{"$f":"IF($A142=\"N/A\",Ref!$B$36,INDEX(Ranks!$1:$1048576,$A142,DP$1))","v":""},{"$f":"IF($A142=\"N/A\",Ref!$B$36,INDEX(Ranks!$1:$1048576,$A142,DQ$1))","v":""},{"$f":"IF($A142=\"N/A\",Ref!$B$36,INDEX(Ranks!$1:$1048576,$A142,DR$1))","v":""},{"$f":"IF($A142=\"N/A\",Ref!$B$36,INDEX(Ranks!$1:$1048576,$A142,DS$1))","v":""},{"$f":"IF($A142=\"N/A\",Ref!$B$36,INDEX(Ranks!$1:$1048576,$A142,DT$1))","v":""},{"$f":"IF($A142=\"N/A\",Ref!$B$36,INDEX(Ranks!$1:$1048576,$A142,DU$1))","v":""},{"$f":"IF($A142=\"N/A\",Ref!$B$36,INDEX(Ranks!$1:$1048576,$A142,DV$1))","v":""},{"$f":"IF($A142=\"N/A\",Ref!$B$36,INDEX(Ranks!$1:$1048576,$A142,DW$1))","v":""},{"$f":"IF($A142=\"N/A\",Ref!$B$36,INDEX(Ranks!$1:$1048576,$A142,DX$1))","v":""},{"$f":"IF($A142=\"N/A\",Ref!$B$36,INDEX(Ranks!$1:$1048576,$A142,DY$1))","v":""},{"$f":"IF($A142=\"N/A\",Ref!$B$36,INDEX(Ranks!$1:$1048576,$A142,DZ$1))","v":""},{"$f":"IF($A142=\"N/A\",Ref!$B$36,INDEX(Ranks!$1:$1048576,$A142,EA$1))","v":""},{"$f":"IF($A142=\"N/A\",Ref!$B$36,INDEX(Ranks!$1:$1048576,$A142,EB$1))","v":""}]
[{"$f":"IFERROR(MATCH('Portfolio Page'!L143,Ranks!L:L,0),\"N/A\")","v":"N/A"},null,{"$f":"IF($A143=\"N/A\",\"\",INDEX(Ranks!$1:$1048576,$A143,C$1))","v":""},{"$f":"IF($A143=\"N/A\",Ref!$B$36,INDEX(Ranks!$1:$1048576,$A143,D$1))","v":""},{"$f":"IF($A143=\"N/A\",Ref!$B$36,INDEX(Ranks!$1:$1048576,$A143,E$1))","v":""},{"$f":"IF($A143=\"N/A\",\"\",INDEX(Ranks!$1:$1048576,$A143,F$1))","v":""},{"$f":"IF($A143=\"N/A\",\"\",INDEX(Ranks!$1:$1048576,$A143,G$1))","v":""},{"$f":"IF($A143=\"N/A\",\"\",INDEX(Ranks!$1:$1048576,$A143,H$1))","v":""},{"$f":"IF($A143=\"N/A\",\"\",INDEX(Ranks!$1:$1048576,$A143,I$1))","v":""},{"$f":"IF($A143=\"N/A\",\"\",INDEX(Ranks!$1:$1048576,$A143,J$1))","v":""},{"$f":"IF($A143=\"N/A\",\"\",INDEX(Ranks!$1:$1048576,$A143,K$1))","v":""},null,{"$f":"IF($A143=\"N/A\",Ref!$B$36,INDEX(Ranks!$1:$1048576,$A143,M$1))","v":""},{"$f":"IF($A143=\"N/A\",Ref!$B$36,INDEX(Ranks!$1:$1048576,$A143,N$1))","v":""},{"$f":"IF($A143=\"N/A\",Ref!$B$36,INDEX(Ranks!$1:$1048576,$A143,O$1))","v":""},{"$f":"IF($A143=\"N/A\",Ref!$B$36,INDEX(Ranks!$1:$1048576,$A143,P$1))","v":""},{"$f":"IF($A143=\"N/A\",Ref!$B$36,INDEX(Ranks!$1:$1048576,$A143,Q$1))","v":""},{"$f":"IF($A143=\"N/A\",Ref!$B$36,INDEX(Ranks!$1:$1048576,$A143,R$1))","v":""},{"$f":"IF($A143=\"N/A\",Ref!$B$36,INDEX(Ranks!$1:$1048576,$A143,S$1))","v":""},{"$f":"IF($A143=\"N/A\",Ref!$B$36,INDEX(Ranks!$1:$1048576,$A143,T$1))","v":""},{"$f":"IF($A143=\"N/A\",Ref!$B$36,INDEX(Ranks!$1:$1048576,$A143,U$1))","v":""},{"$f":"IF($A143=\"N/A\",Ref!$B$36,INDEX(Ranks!$1:$1048576,$A143,V$1))","v":""},{"$f":"IF($A143=\"N/A\",Ref!$B$36,INDEX(Ranks!$1:$1048576,$A143,W$1))","v":""},{"$f":"IF($A143=\"N/A\",Ref!$B$36,INDEX(Ranks!$1:$1048576,$A143,X$1))","v":""},{"$f":"IF($A143=\"N/A\",Ref!$B$36,INDEX(Ranks!$1:$1048576,$A143,Y$1))","v":""},{"$f":"IF($A143=\"N/A\",Ref!$B$36,INDEX(Ranks!$1:$1048576,$A143,Z$1))","v":""},{"$f":"IF($A143=\"N/A\",Ref!$B$36,INDEX(Ranks!$1:$1048576,$A143,AA$1))","v":""},{"$f":"IF($A143=\"N/A\",Ref!$B$36,INDEX(Ranks!$1:$1048576,$A143,AB$1))","v":""},{"$f":"IF($A143=\"N/A\",Ref!$B$36,INDEX(Ranks!$1:$1048576,$A143,AC$1))","v":""},{"$f":"IF($A143=\"N/A\",Ref!$B$36,INDEX(Ranks!$1:$1048576,$A143,AD$1))","v":""},{"$f":"IF($A143=\"N/A\",Ref!$B$36,INDEX(Ranks!$1:$1048576,$A143,AE$1))","v":""},{"$f":"IF($A143=\"N/A\",Ref!$B$36,INDEX(Ranks!$1:$1048576,$A143,AF$1))","v":""},{"$f":"IF($A143=\"N/A\",Ref!$B$36,INDEX(Ranks!$1:$1048576,$A143,AG$1))","v":""},{"$f":"IF($A143=\"N/A\",Ref!$B$36,INDEX(Ranks!$1:$1048576,$A143,AH$1))","v":""},{"$f":"IF($A143=\"N/A\",Ref!$B$36,INDEX(Ranks!$1:$1048576,$A143,AI$1))","v":""},{"$f":"IF($A143=\"N/A\",Ref!$B$36,INDEX(Ranks!$1:$1048576,$A143,AJ$1))","v":""},{"$f":"IF($A143=\"N/A\",Ref!$B$36,INDEX(Ranks!$1:$1048576,$A143,AK$1))","v":""},{"$f":"IF($A143=\"N/A\",Ref!$B$36,INDEX(Ranks!$1:$1048576,$A143,AL$1))","v":""},{"$f":"IF($A143=\"N/A\",Ref!$B$36,INDEX(Ranks!$1:$1048576,$A143,AM$1))","v":""},{"$f":"IF($A143=\"N/A\",Ref!$B$36,INDEX(Ranks!$1:$1048576,$A143,AN$1))","v":""},{"$f":"IF($A143=\"N/A\",Ref!$B$36,INDEX(Ranks!$1:$1048576,$A143,AO$1))","v":""},{"$f":"IF($A143=\"N/A\",Ref!$B$36,INDEX(Ranks!$1:$1048576,$A143,AP$1))","v":""},{"$f":"IF($A143=\"N/A\",Ref!$B$36,INDEX(Ranks!$1:$1048576,$A143,AQ$1))","v":""},{"$f":"IF($A143=\"N/A\",Ref!$B$36,INDEX(Ranks!$1:$1048576,$A143,AR$1))","v":""},{"$f":"IF($A143=\"N/A\",Ref!$B$36,INDEX(Ranks!$1:$1048576,$A143,AS$1))","v":""},{"$f":"IF($A143=\"N/A\",Ref!$B$36,INDEX(Ranks!$1:$1048576,$A143,AT$1))","v":""},{"$f":"IF($A143=\"N/A\",Ref!$B$36,INDEX(Ranks!$1:$1048576,$A143,AU$1))","v":""},{"$f":"IF($A143=\"N/A\",Ref!$B$36,INDEX(Ranks!$1:$1048576,$A143,AV$1))","v":""},{"$f":"IF($A143=\"N/A\",Ref!$B$36,INDEX(Ranks!$1:$1048576,$A143,AW$1))","v":""},{"$f":"IF($A143=\"N/A\",Ref!$B$36,INDEX(Ranks!$1:$1048576,$A143,AX$1))","v":""},{"$f":"IF($A143=\"N/A\",Ref!$B$36,INDEX(Ranks!$1:$1048576,$A143,AY$1))","v":""},{"$f":"IF($A143=\"N/A\",Ref!$B$36,INDEX(Ranks!$1:$1048576,$A143,AZ$1))","v":""},{"$f":"IF($A143=\"N/A\",Ref!$B$36,INDEX(Ranks!$1:$1048576,$A143,BA$1))","v":""},{"$f":"IF($A143=\"N/A\",Ref!$B$36,INDEX(Ranks!$1:$1048576,$A143,BB$1))","v":""},{"$f":"IF($A143=\"N/A\",Ref!$B$36,INDEX(Ranks!$1:$1048576,$A143,BC$1))","v":""},{"$f":"IF($A143=\"N/A\",Ref!$B$36,INDEX(Ranks!$1:$1048576,$A143,BD$1))","v":""},{"$f":"IF($A143=\"N/A\",Ref!$B$36,INDEX(Ranks!$1:$1048576,$A143,BE$1))","v":""},{"$f":"IF($A143=\"N/A\",Ref!$B$36,INDEX(Ranks!$1:$1048576,$A143,BF$1))","v":""},{"$f":"IF($A143=\"N/A\",Ref!$B$36,INDEX(Ranks!$1:$1048576,$A143,BG$1))","v":""},{"$f":"IF($A143=\"N/A\",Ref!$B$36,INDEX(Ranks!$1:$1048576,$A143,BH$1))","v":""},{"$f":"IF($A143=\"N/A\",Ref!$B$36,INDEX(Ranks!$1:$1048576,$A143,BI$1))","v":""},{"$f":"IF($A143=\"N/A\",Ref!$B$36,INDEX(Ranks!$1:$1048576,$A143,BJ$1))","v":""},{"$f":"IF($A143=\"N/A\",Ref!$B$36,INDEX(Ranks!$1:$1048576,$A143,BK$1))","v":""},{"$f":"IF($A143=\"N/A\",Ref!$B$36,INDEX(Ranks!$1:$1048576,$A143,BL$1))","v":""},{"$f":"IF($A143=\"N/A\",Ref!$B$36,INDEX(Ranks!$1:$1048576,$A143,BM$1))","v":""},{"$f":"IF($A143=\"N/A\",Ref!$B$36,INDEX(Ranks!$1:$1048576,$A143,BN$1))","v":""},{"$f":"IF($A143=\"N/A\",Ref!$B$36,INDEX(Ranks!$1:$1048576,$A143,BO$1))","v":""},{"$f":"IF($A143=\"N/A\",Ref!$B$36,INDEX(Ranks!$1:$1048576,$A143,BP$1))","v":""},{"$f":"IF($A143=\"N/A\",Ref!$B$36,INDEX(Ranks!$1:$1048576,$A143,BQ$1))","v":""},{"$f":"IF($A143=\"N/A\",Ref!$B$36,INDEX(Ranks!$1:$1048576,$A143,BR$1))","v":""},{"$f":"IF($A143=\"N/A\",Ref!$B$36,INDEX(Ranks!$1:$1048576,$A143,BS$1))","v":""},{"$f":"IF($A143=\"N/A\",Ref!$B$36,INDEX(Ranks!$1:$1048576,$A143,BT$1))","v":""},{"$f":"IF($A143=\"N/A\",Ref!$B$36,INDEX(Ranks!$1:$1048576,$A143,BU$1))","v":""},{"$f":"IF($A143=\"N/A\",Ref!$B$36,INDEX(Ranks!$1:$1048576,$A143,BV$1))","v":""},{"$f":"IF($A143=\"N/A\",Ref!$B$36,INDEX(Ranks!$1:$1048576,$A143,BW$1))","v":""},{"$f":"IF($A143=\"N/A\",Ref!$B$36,INDEX(Ranks!$1:$1048576,$A143,BX$1))","v":""},{"$f":"IF($A143=\"N/A\",Ref!$B$36,INDEX(Ranks!$1:$1048576,$A143,BY$1))","v":""},{"$f":"IF($A143=\"N/A\",Ref!$B$36,INDEX(Ranks!$1:$1048576,$A143,BZ$1))","v":""},{"$f":"IF($A143=\"N/A\",Ref!$B$36,INDEX(Ranks!$1:$1048576,$A143,CA$1))","v":""},{"$f":"IF($A143=\"N/A\",Ref!$B$36,INDEX(Ranks!$1:$1048576,$A143,CB$1))","v":""},{"$f":"IF($A143=\"N/A\",Ref!$B$36,INDEX(Ranks!$1:$1048576,$A143,CC$1))","v":""},{"$f":"IF($A143=\"N/A\",Ref!$B$36,INDEX(Ranks!$1:$1048576,$A143,CD$1))","v":""},{"$f":"IF($A143=\"N/A\",Ref!$B$36,INDEX(Ranks!$1:$1048576,$A143,CE$1))","v":""},{"$f":"IF($A143=\"N/A\",Ref!$B$36,INDEX(Ranks!$1:$1048576,$A143,CF$1))","v":""},{"$f":"IF($A143=\"N/A\",Ref!$B$36,INDEX(Ranks!$1:$1048576,$A143,CG$1))","v":""},{"$f":"IF($A143=\"N/A\",Ref!$B$36,INDEX(Ranks!$1:$1048576,$A143,CH$1))","v":""},{"$f":"IF($A143=\"N/A\",Ref!$B$36,INDEX(Ranks!$1:$1048576,$A143,CI$1))","v":""},{"$f":"IF($A143=\"N/A\",Ref!$B$36,INDEX(Ranks!$1:$1048576,$A143,CJ$1))","v":""},{"$f":"IF($A143=\"N/A\",Ref!$B$36,INDEX(Ranks!$1:$1048576,$A143,CK$1))","v":""},{"$f":"IF($A143=\"N/A\",Ref!$B$36,INDEX(Ranks!$1:$1048576,$A143,CL$1))","v":""},{"$f":"IF($A143=\"N/A\",Ref!$B$36,INDEX(Ranks!$1:$1048576,$A143,CM$1))","v":""},{"$f":"IF($A143=\"N/A\",Ref!$B$36,INDEX(Ranks!$1:$1048576,$A143,CN$1))","v":""},{"$f":"IF($A143=\"N/A\",Ref!$B$36,INDEX(Ranks!$1:$1048576,$A143,CO$1))","v":""},{"$f":"IF($A143=\"N/A\",Ref!$B$36,INDEX(Ranks!$1:$1048576,$A143,CP$1))","v":""},{"$f":"IF($A143=\"N/A\",Ref!$B$36,INDEX(Ranks!$1:$1048576,$A143,CQ$1))","v":""},{"$f":"IF($A143=\"N/A\",Ref!$B$36,INDEX(Ranks!$1:$1048576,$A143,CR$1))","v":""},{"$f":"IF($A143=\"N/A\",Ref!$B$36,INDEX(Ranks!$1:$1048576,$A143,CS$1))","v":""},{"$f":"IF($A143=\"N/A\",Ref!$B$36,INDEX(Ranks!$1:$1048576,$A143,CT$1))","v":""},{"$f":"IF($A143=\"N/A\",Ref!$B$36,INDEX(Ranks!$1:$1048576,$A143,CU$1))","v":""},{"$f":"IF($A143=\"N/A\",Ref!$B$36,INDEX(Ranks!$1:$1048576,$A143,CV$1))","v":""},{"$f":"IF($A143=\"N/A\",Ref!$B$36,INDEX(Ranks!$1:$1048576,$A143,CW$1))","v":""},{"$f":"IF($A143=\"N/A\",Ref!$B$36,INDEX(Ranks!$1:$1048576,$A143,CX$1))","v":""},{"$f":"IF($A143=\"N/A\",Ref!$B$36,INDEX(Ranks!$1:$1048576,$A143,CY$1))","v":""},{"$f":"IF($A143=\"N/A\",Ref!$B$36,INDEX(Ranks!$1:$1048576,$A143,CZ$1))","v":""},{"$f":"IF($A143=\"N/A\",Ref!$B$36,INDEX(Ranks!$1:$1048576,$A143,DA$1))","v":""},{"$f":"IF($A143=\"N/A\",Ref!$B$36,INDEX(Ranks!$1:$1048576,$A143,DB$1))","v":""},{"$f":"IF($A143=\"N/A\",Ref!$B$36,INDEX(Ranks!$1:$1048576,$A143,DC$1))","v":""},{"$f":"IF($A143=\"N/A\",Ref!$B$36,INDEX(Ranks!$1:$1048576,$A143,DD$1))","v":""},{"$f":"IF($A143=\"N/A\",Ref!$B$36,INDEX(Ranks!$1:$1048576,$A143,DE$1))","v":""},{"$f":"IF($A143=\"N/A\",Ref!$B$36,INDEX(Ranks!$1:$1048576,$A143,DF$1))","v":""},{"$f":"IF($A143=\"N/A\",Ref!$B$36,INDEX(Ranks!$1:$1048576,$A143,DG$1))","v":""},{"$f":"IF($A143=\"N/A\",Ref!$B$36,INDEX(Ranks!$1:$1048576,$A143,DH$1))","v":""},{"$f":"IF($A143=\"N/A\",Ref!$B$36,INDEX(Ranks!$1:$1048576,$A143,DI$1))","v":""},{"$f":"IF($A143=\"N/A\",Ref!$B$36,INDEX(Ranks!$1:$1048576,$A143,DJ$1))","v":""},{"$f":"IF($A143=\"N/A\",Ref!$B$36,INDEX(Ranks!$1:$1048576,$A143,DK$1))","v":""},{"$f":"IF($A143=\"N/A\",Ref!$B$36,INDEX(Ranks!$1:$1048576,$A143,DL$1))","v":""},{"$f":"IF($A143=\"N/A\",Ref!$B$36,INDEX(Ranks!$1:$1048576,$A143,DM$1))","v":""},{"$f":"IF($A143=\"N/A\",Ref!$B$36,INDEX(Ranks!$1:$1048576,$A143,DN$1))","v":""},{"$f":"IF($A143=\"N/A\",Ref!$B$36,INDEX(Ranks!$1:$1048576,$A143,DO$1))","v":""},{"$f":"IF($A143=\"N/A\",Ref!$B$36,INDEX(Ranks!$1:$1048576,$A143,DP$1))","v":""},{"$f":"IF($A143=\"N/A\",Ref!$B$36,INDEX(Ranks!$1:$1048576,$A143,DQ$1))","v":""},{"$f":"IF($A143=\"N/A\",Ref!$B$36,INDEX(Ranks!$1:$1048576,$A143,DR$1))","v":""},{"$f":"IF($A143=\"N/A\",Ref!$B$36,INDEX(Ranks!$1:$1048576,$A143,DS$1))","v":""},{"$f":"IF($A143=\"N/A\",Ref!$B$36,INDEX(Ranks!$1:$1048576,$A143,DT$1))","v":""},{"$f":"IF($A143=\"N/A\",Ref!$B$36,INDEX(Ranks!$1:$1048576,$A143,DU$1))","v":""},{"$f":"IF($A143=\"N/A\",Ref!$B$36,INDEX(Ranks!$1:$1048576,$A143,DV$1))","v":""},{"$f":"IF($A143=\"N/A\",Ref!$B$36,INDEX(Ranks!$1:$1048576,$A143,DW$1))","v":""},{"$f":"IF($A143=\"N/A\",Ref!$B$36,INDEX(Ranks!$1:$1048576,$A143,DX$1))","v":""},{"$f":"IF($A143=\"N/A\",Ref!$B$36,INDEX(Ranks!$1:$1048576,$A143,DY$1))","v":""},{"$f":"IF($A143=\"N/A\",Ref!$B$36,INDEX(Ranks!$1:$1048576,$A143,DZ$1))","v":""},{"$f":"IF($A143=\"N/A\",Ref!$B$36,INDEX(Ranks!$1:$1048576,$A143,EA$1))","v":""},{"$f":"IF($A143=\"N/A\",Ref!$B$36,INDEX(Ranks!$1:$1048576,$A143,EB$1))","v":""}]
[{"$f":"IFERROR(MATCH('Portfolio Page'!L144,Ranks!L:L,0),\"N/A\")","v":"N/A"},null,{"$f":"IF($A144=\"N/A\",\"\",INDEX(Ranks!$1:$1048576,$A144,C$1))","v":""},{"$f":"IF($A144=\"N/A\",Ref!$B$36,INDEX(Ranks!$1:$1048576,$A144,D$1))","v":""},{"$f":"IF($A144=\"N/A\",Ref!$B$36,INDEX(Ranks!$1:$1048576,$A144,E$1))","v":""},{"$f":"IF($A144=\"N/A\",\"\",INDEX(Ranks!$1:$1048576,$A144,F$1))","v":""},{"$f":"IF($A144=\"N/A\",\"\",INDEX(Ranks!$1:$1048576,$A144,G$1))","v":""},{"$f":"IF($A144=\"N/A\",\"\",INDEX(Ranks!$1:$1048576,$A144,H$1))","v":""},{"$f":"IF($A144=\"N/A\",\"\",INDEX(Ranks!$1:$1048576,$A144,I$1))","v":""},{"$f":"IF($A144=\"N/A\",\"\",INDEX(Ranks!$1:$1048576,$A144,J$1))","v":""},{"$f":"IF($A144=\"N/A\",\"\",INDEX(Ranks!$1:$1048576,$A144,K$1))","v":""},null,{"$f":"IF($A144=\"N/A\",Ref!$B$36,INDEX(Ranks!$1:$1048576,$A144,M$1))","v":""},{"$f":"IF($A144=\"N/A\",Ref!$B$36,INDEX(Ranks!$1:$1048576,$A144,N$1))","v":""},{"$f":"IF($A144=\"N/A\",Ref!$B$36,INDEX(Ranks!$1:$1048576,$A144,O$1))","v":""},{"$f":"IF($A144=\"N/A\",Ref!$B$36,INDEX(Ranks!$1:$1048576,$A144,P$1))","v":""},{"$f":"IF($A144=\"N/A\",Ref!$B$36,INDEX(Ranks!$1:$1048576,$A144,Q$1))","v":""},{"$f":"IF($A144=\"N/A\",Ref!$B$36,INDEX(Ranks!$1:$1048576,$A144,R$1))","v":""},{"$f":"IF($A144=\"N/A\",Ref!$B$36,INDEX(Ranks!$1:$1048576,$A144,S$1))","v":""},{"$f":"IF($A144=\"N/A\",Ref!$B$36,INDEX(Ranks!$1:$1048576,$A144,T$1))","v":""},{"$f":"IF($A144=\"N/A\",Ref!$B$36,INDEX(Ranks!$1:$1048576,$A144,U$1))","v":""},{"$f":"IF($A144=\"N/A\",Ref!$B$36,INDEX(Ranks!$1:$1048576,$A144,V$1))","v":""},{"$f":"IF($A144=\"N/A\",Ref!$B$36,INDEX(Ranks!$1:$1048576,$A144,W$1))","v":""},{"$f":"IF($A144=\"N/A\",Ref!$B$36,INDEX(Ranks!$1:$1048576,$A144,X$1))","v":""},{"$f":"IF($A144=\"N/A\",Ref!$B$36,INDEX(Ranks!$1:$1048576,$A144,Y$1))","v":""},{"$f":"IF($A144=\"N/A\",Ref!$B$36,INDEX(Ranks!$1:$1048576,$A144,Z$1))","v":""},{"$f":"IF($A144=\"N/A\",Ref!$B$36,INDEX(Ranks!$1:$1048576,$A144,AA$1))","v":""},{"$f":"IF($A144=\"N/A\",Ref!$B$36,INDEX(Ranks!$1:$1048576,$A144,AB$1))","v":""},{"$f":"IF($A144=\"N/A\",Ref!$B$36,INDEX(Ranks!$1:$1048576,$A144,AC$1))","v":""},{"$f":"IF($A144=\"N/A\",Ref!$B$36,INDEX(Ranks!$1:$1048576,$A144,AD$1))","v":""},{"$f":"IF($A144=\"N/A\",Ref!$B$36,INDEX(Ranks!$1:$1048576,$A144,AE$1))","v":""},{"$f":"IF($A144=\"N/A\",Ref!$B$36,INDEX(Ranks!$1:$1048576,$A144,AF$1))","v":""},{"$f":"IF($A144=\"N/A\",Ref!$B$36,INDEX(Ranks!$1:$1048576,$A144,AG$1))","v":""},{"$f":"IF($A144=\"N/A\",Ref!$B$36,INDEX(Ranks!$1:$1048576,$A144,AH$1))","v":""},{"$f":"IF($A144=\"N/A\",Ref!$B$36,INDEX(Ranks!$1:$1048576,$A144,AI$1))","v":""},{"$f":"IF($A144=\"N/A\",Ref!$B$36,INDEX(Ranks!$1:$1048576,$A144,AJ$1))","v":""},{"$f":"IF($A144=\"N/A\",Ref!$B$36,INDEX(Ranks!$1:$1048576,$A144,AK$1))","v":""},{"$f":"IF($A144=\"N/A\",Ref!$B$36,INDEX(Ranks!$1:$1048576,$A144,AL$1))","v":""},{"$f":"IF($A144=\"N/A\",Ref!$B$36,INDEX(Ranks!$1:$1048576,$A144,AM$1))","v":""},{"$f":"IF($A144=\"N/A\",Ref!$B$36,INDEX(Ranks!$1:$1048576,$A144,AN$1))","v":""},{"$f":"IF($A144=\"N/A\",Ref!$B$36,INDEX(Ranks!$1:$1048576,$A144,AO$1))","v":""},{"$f":"IF($A144=\"N/A\",Ref!$B$36,INDEX(Ranks!$1:$1048576,$A144,AP$1))","v":""},{"$f":"IF($A144=\"N/A\",Ref!$B$36,INDEX(Ranks!$1:$1048576,$A144,AQ$1))","v":""},{"$f":"IF($A144=\"N/A\",Ref!$B$36,INDEX(Ranks!$1:$1048576,$A144,AR$1))","v":""},{"$f":"IF($A144=\"N/A\",Ref!$B$36,INDEX(Ranks!$1:$1048576,$A144,AS$1))","v":""},{"$f":"IF($A144=\"N/A\",Ref!$B$36,INDEX(Ranks!$1:$1048576,$A144,AT$1))","v":""},{"$f":"IF($A144=\"N/A\",Ref!$B$36,INDEX(Ranks!$1:$1048576,$A144,AU$1))","v":""},{"$f":"IF($A144=\"N/A\",Ref!$B$36,INDEX(Ranks!$1:$1048576,$A144,AV$1))","v":""},{"$f":"IF($A144=\"N/A\",Ref!$B$36,INDEX(Ranks!$1:$1048576,$A144,AW$1))","v":""},{"$f":"IF($A144=\"N/A\",Ref!$B$36,INDEX(Ranks!$1:$1048576,$A144,AX$1))","v":""},{"$f":"IF($A144=\"N/A\",Ref!$B$36,INDEX(Ranks!$1:$1048576,$A144,AY$1))","v":""},{"$f":"IF($A144=\"N/A\",Ref!$B$36,INDEX(Ranks!$1:$1048576,$A144,AZ$1))","v":""},{"$f":"IF($A144=\"N/A\",Ref!$B$36,INDEX(Ranks!$1:$1048576,$A144,BA$1))","v":""},{"$f":"IF($A144=\"N/A\",Ref!$B$36,INDEX(Ranks!$1:$1048576,$A144,BB$1))","v":""},{"$f":"IF($A144=\"N/A\",Ref!$B$36,INDEX(Ranks!$1:$1048576,$A144,BC$1))","v":""},{"$f":"IF($A144=\"N/A\",Ref!$B$36,INDEX(Ranks!$1:$1048576,$A144,BD$1))","v":""},{"$f":"IF($A144=\"N/A\",Ref!$B$36,INDEX(Ranks!$1:$1048576,$A144,BE$1))","v":""},{"$f":"IF($A144=\"N/A\",Ref!$B$36,INDEX(Ranks!$1:$1048576,$A144,BF$1))","v":""},{"$f":"IF($A144=\"N/A\",Ref!$B$36,INDEX(Ranks!$1:$1048576,$A144,BG$1))","v":""},{"$f":"IF($A144=\"N/A\",Ref!$B$36,INDEX(Ranks!$1:$1048576,$A144,BH$1))","v":""},{"$f":"IF($A144=\"N/A\",Ref!$B$36,INDEX(Ranks!$1:$1048576,$A144,BI$1))","v":""},{"$f":"IF($A144=\"N/A\",Ref!$B$36,INDEX(Ranks!$1:$1048576,$A144,BJ$1))","v":""},{"$f":"IF($A144=\"N/A\",Ref!$B$36,INDEX(Ranks!$1:$1048576,$A144,BK$1))","v":""},{"$f":"IF($A144=\"N/A\",Ref!$B$36,INDEX(Ranks!$1:$1048576,$A144,BL$1))","v":""},{"$f":"IF($A144=\"N/A\",Ref!$B$36,INDEX(Ranks!$1:$1048576,$A144,BM$1))","v":""},{"$f":"IF($A144=\"N/A\",Ref!$B$36,INDEX(Ranks!$1:$1048576,$A144,BN$1))","v":""},{"$f":"IF($A144=\"N/A\",Ref!$B$36,INDEX(Ranks!$1:$1048576,$A144,BO$1))","v":""},{"$f":"IF($A144=\"N/A\",Ref!$B$36,INDEX(Ranks!$1:$1048576,$A144,BP$1))","v":""},{"$f":"IF($A144=\"N/A\",Ref!$B$36,INDEX(Ranks!$1:$1048576,$A144,BQ$1))","v":""},{"$f":"IF($A144=\"N/A\",Ref!$B$36,INDEX(Ranks!$1:$1048576,$A144,BR$1))","v":""},{"$f":"IF($A144=\"N/A\",Ref!$B$36,INDEX(Ranks!$1:$1048576,$A144,BS$1))","v":""},{"$f":"IF($A144=\"N/A\",Ref!$B$36,INDEX(Ranks!$1:$1048576,$A144,BT$1))","v":""},{"$f":"IF($A144=\"N/A\",Ref!$B$36,INDEX(Ranks!$1:$1048576,$A144,BU$1))","v":""},{"$f":"IF($A144=\"N/A\",Ref!$B$36,INDEX(Ranks!$1:$1048576,$A144,BV$1))","v":""},{"$f":"IF($A144=\"N/A\",Ref!$B$36,INDEX(Ranks!$1:$1048576,$A144,BW$1))","v":""},{"$f":"IF($A144=\"N/A\",Ref!$B$36,INDEX(Ranks!$1:$1048576,$A144,BX$1))","v":""},{"$f":"IF($A144=\"N/A\",Ref!$B$36,INDEX(Ranks!$1:$1048576,$A144,BY$1))","v":""},{"$f":"IF($A144=\"N/A\",Ref!$B$36,INDEX(Ranks!$1:$1048576,$A144,BZ$1))","v":""},{"$f":"IF($A144=\"N/A\",Ref!$B$36,INDEX(Ranks!$1:$1048576,$A144,CA$1))","v":""},{"$f":"IF($A144=\"N/A\",Ref!$B$36,INDEX(Ranks!$1:$1048576,$A144,CB$1))","v":""},{"$f":"IF($A144=\"N/A\",Ref!$B$36,INDEX(Ranks!$1:$1048576,$A144,CC$1))","v":""},{"$f":"IF($A144=\"N/A\",Ref!$B$36,INDEX(Ranks!$1:$1048576,$A144,CD$1))","v":""},{"$f":"IF($A144=\"N/A\",Ref!$B$36,INDEX(Ranks!$1:$1048576,$A144,CE$1))","v":""},{"$f":"IF($A144=\"N/A\",Ref!$B$36,INDEX(Ranks!$1:$1048576,$A144,CF$1))","v":""},{"$f":"IF($A144=\"N/A\",Ref!$B$36,INDEX(Ranks!$1:$1048576,$A144,CG$1))","v":""},{"$f":"IF($A144=\"N/A\",Ref!$B$36,INDEX(Ranks!$1:$1048576,$A144,CH$1))","v":""},{"$f":"IF($A144=\"N/A\",Ref!$B$36,INDEX(Ranks!$1:$1048576,$A144,CI$1))","v":""},{"$f":"IF($A144=\"N/A\",Ref!$B$36,INDEX(Ranks!$1:$1048576,$A144,CJ$1))","v":""},{"$f":"IF($A144=\"N/A\",Ref!$B$36,INDEX(Ranks!$1:$1048576,$A144,CK$1))","v":""},{"$f":"IF($A144=\"N/A\",Ref!$B$36,INDEX(Ranks!$1:$1048576,$A144,CL$1))","v":""},{"$f":"IF($A144=\"N/A\",Ref!$B$36,INDEX(Ranks!$1:$1048576,$A144,CM$1))","v":""},{"$f":"IF($A144=\"N/A\",Ref!$B$36,INDEX(Ranks!$1:$1048576,$A144,CN$1))","v":""},{"$f":"IF($A144=\"N/A\",Ref!$B$36,INDEX(Ranks!$1:$1048576,$A144,CO$1))","v":""},{"$f":"IF($A144=\"N/A\",Ref!$B$36,INDEX(Ranks!$1:$1048576,$A144,CP$1))","v":""},{"$f":"IF($A144=\"N/A\",Ref!$B$36,INDEX(Ranks!$1:$1048576,$A144,CQ$1))","v":""},{"$f":"IF($A144=\"N/A\",Ref!$B$36,INDEX(Ranks!$1:$1048576,$A144,CR$1))","v":""},{"$f":"IF($A144=\"N/A\",Ref!$B$36,INDEX(Ranks!$1:$1048576,$A144,CS$1))","v":""},{"$f":"IF($A144=\"N/A\",Ref!$B$36,INDEX(Ranks!$1:$1048576,$A144,CT$1))","v":""},{"$f":"IF($A144=\"N/A\",Ref!$B$36,INDEX(Ranks!$1:$1048576,$A144,CU$1))","v":""},{"$f":"IF($A144=\"N/A\",Ref!$B$36,INDEX(Ranks!$1:$1048576,$A144,CV$1))","v":""},{"$f":"IF($A144=\"N/A\",Ref!$B$36,INDEX(Ranks!$1:$1048576,$A144,CW$1))","v":""},{"$f":"IF($A144=\"N/A\",Ref!$B$36,INDEX(Ranks!$1:$1048576,$A144,CX$1))","v":""},{"$f":"IF($A144=\"N/A\",Ref!$B$36,INDEX(Ranks!$1:$1048576,$A144,CY$1))","v":""},{"$f":"IF($A144=\"N/A\",Ref!$B$36,INDEX(Ranks!$1:$1048576,$A144,CZ$1))","v":""},{"$f":"IF($A144=\"N/A\",Ref!$B$36,INDEX(Ranks!$1:$1048576,$A144,DA$1))","v":""},{"$f":"IF($A144=\"N/A\",Ref!$B$36,INDEX(Ranks!$1:$1048576,$A144,DB$1))","v":""},{"$f":"IF($A144=\"N/A\",Ref!$B$36,INDEX(Ranks!$1:$1048576,$A144,DC$1))","v":""},{"$f":"IF($A144=\"N/A\",Ref!$B$36,INDEX(Ranks!$1:$1048576,$A144,DD$1))","v":""},{"$f":"IF($A144=\"N/A\",Ref!$B$36,INDEX(Ranks!$1:$1048576,$A144,DE$1))","v":""},{"$f":"IF($A144=\"N/A\",Ref!$B$36,INDEX(Ranks!$1:$1048576,$A144,DF$1))","v":""},{"$f":"IF($A144=\"N/A\",Ref!$B$36,INDEX(Ranks!$1:$1048576,$A144,DG$1))","v":""},{"$f":"IF($A144=\"N/A\",Ref!$B$36,INDEX(Ranks!$1:$1048576,$A144,DH$1))","v":""},{"$f":"IF($A144=\"N/A\",Ref!$B$36,INDEX(Ranks!$1:$1048576,$A144,DI$1))","v":""},{"$f":"IF($A144=\"N/A\",Ref!$B$36,INDEX(Ranks!$1:$1048576,$A144,DJ$1))","v":""},{"$f":"IF($A144=\"N/A\",Ref!$B$36,INDEX(Ranks!$1:$1048576,$A144,DK$1))","v":""},{"$f":"IF($A144=\"N/A\",Ref!$B$36,INDEX(Ranks!$1:$1048576,$A144,DL$1))","v":""},{"$f":"IF($A144=\"N/A\",Ref!$B$36,INDEX(Ranks!$1:$1048576,$A144,DM$1))","v":""},{"$f":"IF($A144=\"N/A\",Ref!$B$36,INDEX(Ranks!$1:$1048576,$A144,DN$1))","v":""},{"$f":"IF($A144=\"N/A\",Ref!$B$36,INDEX(Ranks!$1:$1048576,$A144,DO$1))","v":""},{"$f":"IF($A144=\"N/A\",Ref!$B$36,INDEX(Ranks!$1:$1048576,$A144,DP$1))","v":""},{"$f":"IF($A144=\"N/A\",Ref!$B$36,INDEX(Ranks!$1:$1048576,$A144,DQ$1))","v":""},{"$f":"IF($A144=\"N/A\",Ref!$B$36,INDEX(Ranks!$1:$1048576,$A144,DR$1))","v":""},{"$f":"IF($A144=\"N/A\",Ref!$B$36,INDEX(Ranks!$1:$1048576,$A144,DS$1))","v":""},{"$f":"IF($A144=\"N/A\",Ref!$B$36,INDEX(Ranks!$1:$1048576,$A144,DT$1))","v":""},{"$f":"IF($A144=\"N/A\",Ref!$B$36,INDEX(Ranks!$1:$1048576,$A144,DU$1))","v":""},{"$f":"IF($A144=\"N/A\",Ref!$B$36,INDEX(Ranks!$1:$1048576,$A144,DV$1))","v":""},{"$f":"IF($A144=\"N/A\",Ref!$B$36,INDEX(Ranks!$1:$1048576,$A144,DW$1))","v":""},{"$f":"IF($A144=\"N/A\",Ref!$B$36,INDEX(Ranks!$1:$1048576,$A144,DX$1))","v":""},{"$f":"IF($A144=\"N/A\",Ref!$B$36,INDEX(Ranks!$1:$1048576,$A144,DY$1))","v":""},{"$f":"IF($A144=\"N/A\",Ref!$B$36,INDEX(Ranks!$1:$1048576,$A144,DZ$1))","v":""},{"$f":"IF($A144=\"N/A\",Ref!$B$36,INDEX(Ranks!$1:$1048576,$A144,EA$1))","v":""},{"$f":"IF($A144=\"N/A\",Ref!$B$36,INDEX(Ranks!$1:$1048576,$A144,EB$1))","v":""}]
[{"$f":"IFERROR(MATCH('Portfolio Page'!L145,Ranks!L:L,0),\"N/A\")","v":"N/A"},null,{"$f":"IF($A145=\"N/A\",\"\",INDEX(Ranks!$1:$1048576,$A145,C$1))","v":""},{"$f":"IF($A145=\"N/A\",Ref!$B$36,INDEX(Ranks!$1:$1048576,$A145,D$1))","v":""},{"$f":"IF($A145=\"N/A\",Ref!$B$36,INDEX(Ranks!$1:$1048576,$A145,E$1))","v":""},{"$f":"IF($A145=\"N/A\",\"\",INDEX(Ranks!$1:$1048576,$A145,F$1))","v":""},{"$f":"IF($A145=\"N/A\",\"\",INDEX(Ranks!$1:$1048576,$A145,G$1))","v":""},{"$f":"IF($A145=\"N/A\",\"\",INDEX(Ranks!$1:$1048576,$A145,H$1))","v":""},{"$f":"IF($A145=\"N/A\",\"\",INDEX(Ranks!$1:$1048576,$A145,I$1))","v":""},{"$f":"IF($A145=\"N/A\",\"\",INDEX(Ranks!$1:$1048576,$A145,J$1))","v":""},{"$f":"IF($A145=\"N/A\",\"\",INDEX(Ranks!$1:$1048576,$A145,K$1))","v":""},null,{"$f":"IF($A145=\"N/A\",Ref!$B$36,INDEX(Ranks!$1:$1048576,$A145,M$1))","v":""},{"$f":"IF($A145=\"N/A\",Ref!$B$36,INDEX(Ranks!$1:$1048576,$A145,N$1))","v":""},{"$f":"IF($A145=\"N/A\",Ref!$B$36,INDEX(Ranks!$1:$1048576,$A145,O$1))","v":""},{"$f":"IF($A145=\"N/A\",Ref!$B$36,INDEX(Ranks!$1:$1048576,$A145,P$1))","v":""},{"$f":"IF($A145=\"N/A\",Ref!$B$36,INDEX(Ranks!$1:$1048576,$A145,Q$1))","v":""},{"$f":"IF($A145=\"N/A\",Ref!$B$36,INDEX(Ranks!$1:$1048576,$A145,R$1))","v":""},{"$f":"IF($A145=\"N/A\",Ref!$B$36,INDEX(Ranks!$1:$1048576,$A145,S$1))","v":""},{"$f":"IF($A145=\"N/A\",Ref!$B$36,INDEX(Ranks!$1:$1048576,$A145,T$1))","v":""},{"$f":"IF($A145=\"N/A\",Ref!$B$36,INDEX(Ranks!$1:$1048576,$A145,U$1))","v":""},{"$f":"IF($A145=\"N/A\",Ref!$B$36,INDEX(Ranks!$1:$1048576,$A145,V$1))","v":""},{"$f":"IF($A145=\"N/A\",Ref!$B$36,INDEX(Ranks!$1:$1048576,$A145,W$1))","v":""},{"$f":"IF($A145=\"N/A\",Ref!$B$36,INDEX(Ranks!$1:$1048576,$A145,X$1))","v":""},{"$f":"IF($A145=\"N/A\",Ref!$B$36,INDEX(Ranks!$1:$1048576,$A145,Y$1))","v":""},{"$f":"IF($A145=\"N/A\",Ref!$B$36,INDEX(Ranks!$1:$1048576,$A145,Z$1))","v":""},{"$f":"IF($A145=\"N/A\",Ref!$B$36,INDEX(Ranks!$1:$1048576,$A145,AA$1))","v":""},{"$f":"IF($A145=\"N/A\",Ref!$B$36,INDEX(Ranks!$1:$1048576,$A145,AB$1))","v":""},{"$f":"IF($A145=\"N/A\",Ref!$B$36,INDEX(Ranks!$1:$1048576,$A145,AC$1))","v":""},{"$f":"IF($A145=\"N/A\",Ref!$B$36,INDEX(Ranks!$1:$1048576,$A145,AD$1))","v":""},{"$f":"IF($A145=\"N/A\",Ref!$B$36,INDEX(Ranks!$1:$1048576,$A145,AE$1))","v":""},{"$f":"IF($A145=\"N/A\",Ref!$B$36,INDEX(Ranks!$1:$1048576,$A145,AF$1))","v":""},{"$f":"IF($A145=\"N/A\",Ref!$B$36,INDEX(Ranks!$1:$1048576,$A145,AG$1))","v":""},{"$f":"IF($A145=\"N/A\",Ref!$B$36,INDEX(Ranks!$1:$1048576,$A145,AH$1))","v":""},{"$f":"IF($A145=\"N/A\",Ref!$B$36,INDEX(Ranks!$1:$1048576,$A145,AI$1))","v":""},{"$f":"IF($A145=\"N/A\",Ref!$B$36,INDEX(Ranks!$1:$1048576,$A145,AJ$1))","v":""},{"$f":"IF($A145=\"N/A\",Ref!$B$36,INDEX(Ranks!$1:$1048576,$A145,AK$1))","v":""},{"$f":"IF($A145=\"N/A\",Ref!$B$36,INDEX(Ranks!$1:$1048576,$A145,AL$1))","v":""},{"$f":"IF($A145=\"N/A\",Ref!$B$36,INDEX(Ranks!$1:$1048576,$A145,AM$1))","v":""},{"$f":"IF($A145=\"N/A\",Ref!$B$36,INDEX(Ranks!$1:$1048576,$A145,AN$1))","v":""},{"$f":"IF($A145=\"N/A\",Ref!$B$36,INDEX(Ranks!$1:$1048576,$A145,AO$1))","v":""},{"$f":"IF($A145=\"N/A\",Ref!$B$36,INDEX(Ranks!$1:$1048576,$A145,AP$1))","v":""},{"$f":"IF($A145=\"N/A\",Ref!$B$36,INDEX(Ranks!$1:$1048576,$A145,AQ$1))","v":""},{"$f":"IF($A145=\"N/A\",Ref!$B$36,INDEX(Ranks!$1:$1048576,$A145,AR$1))","v":""},{"$f":"IF($A145=\"N/A\",Ref!$B$36,INDEX(Ranks!$1:$1048576,$A145,AS$1))","v":""},{"$f":"IF($A145=\"N/A\",Ref!$B$36,INDEX(Ranks!$1:$1048576,$A145,AT$1))","v":""},{"$f":"IF($A145=\"N/A\",Ref!$B$36,INDEX(Ranks!$1:$1048576,$A145,AU$1))","v":""},{"$f":"IF($A145=\"N/A\",Ref!$B$36,INDEX(Ranks!$1:$1048576,$A145,AV$1))","v":""},{"$f":"IF($A145=\"N/A\",Ref!$B$36,INDEX(Ranks!$1:$1048576,$A145,AW$1))","v":""},{"$f":"IF($A145=\"N/A\",Ref!$B$36,INDEX(Ranks!$1:$1048576,$A145,AX$1))","v":""},{"$f":"IF($A145=\"N/A\",Ref!$B$36,INDEX(Ranks!$1:$1048576,$A145,AY$1))","v":""},{"$f":"IF($A145=\"N/A\",Ref!$B$36,INDEX(Ranks!$1:$1048576,$A145,AZ$1))","v":""},{"$f":"IF($A145=\"N/A\",Ref!$B$36,INDEX(Ranks!$1:$1048576,$A145,BA$1))","v":""},{"$f":"IF($A145=\"N/A\",Ref!$B$36,INDEX(Ranks!$1:$1048576,$A145,BB$1))","v":""},{"$f":"IF($A145=\"N/A\",Ref!$B$36,INDEX(Ranks!$1:$1048576,$A145,BC$1))","v":""},{"$f":"IF($A145=\"N/A\",Ref!$B$36,INDEX(Ranks!$1:$1048576,$A145,BD$1))","v":""},{"$f":"IF($A145=\"N/A\",Ref!$B$36,INDEX(Ranks!$1:$1048576,$A145,BE$1))","v":""},{"$f":"IF($A145=\"N/A\",Ref!$B$36,INDEX(Ranks!$1:$1048576,$A145,BF$1))","v":""},{"$f":"IF($A145=\"N/A\",Ref!$B$36,INDEX(Ranks!$1:$1048576,$A145,BG$1))","v":""},{"$f":"IF($A145=\"N/A\",Ref!$B$36,INDEX(Ranks!$1:$1048576,$A145,BH$1))","v":""},{"$f":"IF($A145=\"N/A\",Ref!$B$36,INDEX(Ranks!$1:$1048576,$A145,BI$1))","v":""},{"$f":"IF($A145=\"N/A\",Ref!$B$36,INDEX(Ranks!$1:$1048576,$A145,BJ$1))","v":""},{"$f":"IF($A145=\"N/A\",Ref!$B$36,INDEX(Ranks!$1:$1048576,$A145,BK$1))","v":""},{"$f":"IF($A145=\"N/A\",Ref!$B$36,INDEX(Ranks!$1:$1048576,$A145,BL$1))","v":""},{"$f":"IF($A145=\"N/A\",Ref!$B$36,INDEX(Ranks!$1:$1048576,$A145,BM$1))","v":""},{"$f":"IF($A145=\"N/A\",Ref!$B$36,INDEX(Ranks!$1:$1048576,$A145,BN$1))","v":""},{"$f":"IF($A145=\"N/A\",Ref!$B$36,INDEX(Ranks!$1:$1048576,$A145,BO$1))","v":""},{"$f":"IF($A145=\"N/A\",Ref!$B$36,INDEX(Ranks!$1:$1048576,$A145,BP$1))","v":""},{"$f":"IF($A145=\"N/A\",Ref!$B$36,INDEX(Ranks!$1:$1048576,$A145,BQ$1))","v":""},{"$f":"IF($A145=\"N/A\",Ref!$B$36,INDEX(Ranks!$1:$1048576,$A145,BR$1))","v":""},{"$f":"IF($A145=\"N/A\",Ref!$B$36,INDEX(Ranks!$1:$1048576,$A145,BS$1))","v":""},{"$f":"IF($A145=\"N/A\",Ref!$B$36,INDEX(Ranks!$1:$1048576,$A145,BT$1))","v":""},{"$f":"IF($A145=\"N/A\",Ref!$B$36,INDEX(Ranks!$1:$1048576,$A145,BU$1))","v":""},{"$f":"IF($A145=\"N/A\",Ref!$B$36,INDEX(Ranks!$1:$1048576,$A145,BV$1))","v":""},{"$f":"IF($A145=\"N/A\",Ref!$B$36,INDEX(Ranks!$1:$1048576,$A145,BW$1))","v":""},{"$f":"IF($A145=\"N/A\",Ref!$B$36,INDEX(Ranks!$1:$1048576,$A145,BX$1))","v":""},{"$f":"IF($A145=\"N/A\",Ref!$B$36,INDEX(Ranks!$1:$1048576,$A145,BY$1))","v":""},{"$f":"IF($A145=\"N/A\",Ref!$B$36,INDEX(Ranks!$1:$1048576,$A145,BZ$1))","v":""},{"$f":"IF($A145=\"N/A\",Ref!$B$36,INDEX(Ranks!$1:$1048576,$A145,CA$1))","v":""},{"$f":"IF($A145=\"N/A\",Ref!$B$36,INDEX(Ranks!$1:$1048576,$A145,CB$1))","v":""},{"$f":"IF($A145=\"N/A\",Ref!$B$36,INDEX(Ranks!$1:$1048576,$A145,CC$1))","v":""},{"$f":"IF($A145=\"N/A\",Ref!$B$36,INDEX(Ranks!$1:$1048576,$A145,CD$1))","v":""},{"$f":"IF($A145=\"N/A\",Ref!$B$36,INDEX(Ranks!$1:$1048576,$A145,CE$1))","v":""},{"$f":"IF($A145=\"N/A\",Ref!$B$36,INDEX(Ranks!$1:$1048576,$A145,CF$1))","v":""},{"$f":"IF($A145=\"N/A\",Ref!$B$36,INDEX(Ranks!$1:$1048576,$A145,CG$1))","v":""},{"$f":"IF($A145=\"N/A\",Ref!$B$36,INDEX(Ranks!$1:$1048576,$A145,CH$1))","v":""},{"$f":"IF($A145=\"N/A\",Ref!$B$36,INDEX(Ranks!$1:$1048576,$A145,CI$1))","v":""},{"$f":"IF($A145=\"N/A\",Ref!$B$36,INDEX(Ranks!$1:$1048576,$A145,CJ$1))","v":""},{"$f":"IF($A145=\"N/A\",Ref!$B$36,INDEX(Ranks!$1:$1048576,$A145,CK$1))","v":""},{"$f":"IF($A145=\"N/A\",Ref!$B$36,INDEX(Ranks!$1:$1048576,$A145,CL$1))","v":""},{"$f":"IF($A145=\"N/A\",Ref!$B$36,INDEX(Ranks!$1:$1048576,$A145,CM$1))","v":""},{"$f":"IF($A145=\"N/A\",Ref!$B$36,INDEX(Ranks!$1:$1048576,$A145,CN$1))","v":""},{"$f":"IF($A145=\"N/A\",Ref!$B$36,INDEX(Ranks!$1:$1048576,$A145,CO$1))","v":""},{"$f":"IF($A145=\"N/A\",Ref!$B$36,INDEX(Ranks!$1:$1048576,$A145,CP$1))","v":""},{"$f":"IF($A145=\"N/A\",Ref!$B$36,INDEX(Ranks!$1:$1048576,$A145,CQ$1))","v":""},{"$f":"IF($A145=\"N/A\",Ref!$B$36,INDEX(Ranks!$1:$1048576,$A145,CR$1))","v":""},{"$f":"IF($A145=\"N/A\",Ref!$B$36,INDEX(Ranks!$1:$1048576,$A145,CS$1))","v":""},{"$f":"IF($A145=\"N/A\",Ref!$B$36,INDEX(Ranks!$1:$1048576,$A145,CT$1))","v":""},{"$f":"IF($A145=\"N/A\",Ref!$B$36,INDEX(Ranks!$1:$1048576,$A145,CU$1))","v":""},{"$f":"IF($A145=\"N/A\",Ref!$B$36,INDEX(Ranks!$1:$1048576,$A145,CV$1))","v":""},{"$f":"IF($A145=\"N/A\",Ref!$B$36,INDEX(Ranks!$1:$1048576,$A145,CW$1))","v":""},{"$f":"IF($A145=\"N/A\",Ref!$B$36,INDEX(Ranks!$1:$1048576,$A145,CX$1))","v":""},{"$f":"IF($A145=\"N/A\",Ref!$B$36,INDEX(Ranks!$1:$1048576,$A145,CY$1))","v":""},{"$f":"IF($A145=\"N/A\",Ref!$B$36,INDEX(Ranks!$1:$1048576,$A145,CZ$1))","v":""},{"$f":"IF($A145=\"N/A\",Ref!$B$36,INDEX(Ranks!$1:$1048576,$A145,DA$1))","v":""},{"$f":"IF($A145=\"N/A\",Ref!$B$36,INDEX(Ranks!$1:$1048576,$A145,DB$1))","v":""},{"$f":"IF($A145=\"N/A\",Ref!$B$36,INDEX(Ranks!$1:$1048576,$A145,DC$1))","v":""},{"$f":"IF($A145=\"N/A\",Ref!$B$36,INDEX(Ranks!$1:$1048576,$A145,DD$1))","v":""},{"$f":"IF($A145=\"N/A\",Ref!$B$36,INDEX(Ranks!$1:$1048576,$A145,DE$1))","v":""},{"$f":"IF($A145=\"N/A\",Ref!$B$36,INDEX(Ranks!$1:$1048576,$A145,DF$1))","v":""},{"$f":"IF($A145=\"N/A\",Ref!$B$36,INDEX(Ranks!$1:$1048576,$A145,DG$1))","v":""},{"$f":"IF($A145=\"N/A\",Ref!$B$36,INDEX(Ranks!$1:$1048576,$A145,DH$1))","v":""},{"$f":"IF($A145=\"N/A\",Ref!$B$36,INDEX(Ranks!$1:$1048576,$A145,DI$1))","v":""},{"$f":"IF($A145=\"N/A\",Ref!$B$36,INDEX(Ranks!$1:$1048576,$A145,DJ$1))","v":""},{"$f":"IF($A145=\"N/A\",Ref!$B$36,INDEX(Ranks!$1:$1048576,$A145,DK$1))","v":""},{"$f":"IF($A145=\"N/A\",Ref!$B$36,INDEX(Ranks!$1:$1048576,$A145,DL$1))","v":""},{"$f":"IF($A145=\"N/A\",Ref!$B$36,INDEX(Ranks!$1:$1048576,$A145,DM$1))","v":""},{"$f":"IF($A145=\"N/A\",Ref!$B$36,INDEX(Ranks!$1:$1048576,$A145,DN$1))","v":""},{"$f":"IF($A145=\"N/A\",Ref!$B$36,INDEX(Ranks!$1:$1048576,$A145,DO$1))","v":""},{"$f":"IF($A145=\"N/A\",Ref!$B$36,INDEX(Ranks!$1:$1048576,$A145,DP$1))","v":""},{"$f":"IF($A145=\"N/A\",Ref!$B$36,INDEX(Ranks!$1:$1048576,$A145,DQ$1))","v":""},{"$f":"IF($A145=\"N/A\",Ref!$B$36,INDEX(Ranks!$1:$1048576,$A145,DR$1))","v":""},{"$f":"IF($A145=\"N/A\",Ref!$B$36,INDEX(Ranks!$1:$1048576,$A145,DS$1))","v":""},{"$f":"IF($A145=\"N/A\",Ref!$B$36,INDEX(Ranks!$1:$1048576,$A145,DT$1))","v":""},{"$f":"IF($A145=\"N/A\",Ref!$B$36,INDEX(Ranks!$1:$1048576,$A145,DU$1))","v":""},{"$f":"IF($A145=\"N/A\",Ref!$B$36,INDEX(Ranks!$1:$1048576,$A145,DV$1))","v":""},{"$f":"IF($A145=\"N/A\",Ref!$B$36,INDEX(Ranks!$1:$1048576,$A145,DW$1))","v":""},{"$f":"IF($A145=\"N/A\",Ref!$B$36,INDEX(Ranks!$1:$1048576,$A145,DX$1))","v":""},{"$f":"IF($A145=\"N/A\",Ref!$B$36,INDEX(Ranks!$1:$1048576,$A145,DY$1))","v":""},{"$f":"IF($A145=\"N/A\",Ref!$B$36,INDEX(Ranks!$1:$1048576,$A145,DZ$1))","v":""},{"$f":"IF($A145=\"N/A\",Ref!$B$36,INDEX(Ranks!$1:$1048576,$A145,EA$1))","v":""},{"$f":"IF($A145=\"N/A\",Ref!$B$36,INDEX(Ranks!$1:$1048576,$A145,EB$1))","v":""}]
[{"$f":"IFERROR(MATCH('Portfolio Page'!L146,Ranks!L:L,0),\"N/A\")","v":"N/A"},null,{"$f":"IF($A146=\"N/A\",\"\",INDEX(Ranks!$1:$1048576,$A146,C$1))","v":""},{"$f":"IF($A146=\"N/A\",Ref!$B$36,INDEX(Ranks!$1:$1048576,$A146,D$1))","v":""},{"$f":"IF($A146=\"N/A\",Ref!$B$36,INDEX(Ranks!$1:$1048576,$A146,E$1))","v":""},{"$f":"IF($A146=\"N/A\",\"\",INDEX(Ranks!$1:$1048576,$A146,F$1))","v":""},{"$f":"IF($A146=\"N/A\",\"\",INDEX(Ranks!$1:$1048576,$A146,G$1))","v":""},{"$f":"IF($A146=\"N/A\",\"\",INDEX(Ranks!$1:$1048576,$A146,H$1))","v":""},{"$f":"IF($A146=\"N/A\",\"\",INDEX(Ranks!$1:$1048576,$A146,I$1))","v":""},{"$f":"IF($A146=\"N/A\",\"\",INDEX(Ranks!$1:$1048576,$A146,J$1))","v":""},{"$f":"IF($A146=\"N/A\",\"\",INDEX(Ranks!$1:$1048576,$A146,K$1))","v":""},null,{"$f":"IF($A146=\"N/A\",Ref!$B$36,INDEX(Ranks!$1:$1048576,$A146,M$1))","v":""},{"$f":"IF($A146=\"N/A\",Ref!$B$36,INDEX(Ranks!$1:$1048576,$A146,N$1))","v":""},{"$f":"IF($A146=\"N/A\",Ref!$B$36,INDEX(Ranks!$1:$1048576,$A146,O$1))","v":""},{"$f":"IF($A146=\"N/A\",Ref!$B$36,INDEX(Ranks!$1:$1048576,$A146,P$1))","v":""},{"$f":"IF($A146=\"N/A\",Ref!$B$36,INDEX(Ranks!$1:$1048576,$A146,Q$1))","v":""},{"$f":"IF($A146=\"N/A\",Ref!$B$36,INDEX(Ranks!$1:$1048576,$A146,R$1))","v":""},{"$f":"IF($A146=\"N/A\",Ref!$B$36,INDEX(Ranks!$1:$1048576,$A146,S$1))","v":""},{"$f":"IF($A146=\"N/A\",Ref!$B$36,INDEX(Ranks!$1:$1048576,$A146,T$1))","v":""},{"$f":"IF($A146=\"N/A\",Ref!$B$36,INDEX(Ranks!$1:$1048576,$A146,U$1))","v":""},{"$f":"IF($A146=\"N/A\",Ref!$B$36,INDEX(Ranks!$1:$1048576,$A146,V$1))","v":""},{"$f":"IF($A146=\"N/A\",Ref!$B$36,INDEX(Ranks!$1:$1048576,$A146,W$1))","v":""},{"$f":"IF($A146=\"N/A\",Ref!$B$36,INDEX(Ranks!$1:$1048576,$A146,X$1))","v":""},{"$f":"IF($A146=\"N/A\",Ref!$B$36,INDEX(Ranks!$1:$1048576,$A146,Y$1))","v":""},{"$f":"IF($A146=\"N/A\",Ref!$B$36,INDEX(Ranks!$1:$1048576,$A146,Z$1))","v":""},{"$f":"IF($A146=\"N/A\",Ref!$B$36,INDEX(Ranks!$1:$1048576,$A146,AA$1))","v":""},{"$f":"IF($A146=\"N/A\",Ref!$B$36,INDEX(Ranks!$1:$1048576,$A146,AB$1))","v":""},{"$f":"IF($A146=\"N/A\",Ref!$B$36,INDEX(Ranks!$1:$1048576,$A146,AC$1))","v":""},{"$f":"IF($A146=\"N/A\",Ref!$B$36,INDEX(Ranks!$1:$1048576,$A146,AD$1))","v":""},{"$f":"IF($A146=\"N/A\",Ref!$B$36,INDEX(Ranks!$1:$1048576,$A146,AE$1))","v":""},{"$f":"IF($A146=\"N/A\",Ref!$B$36,INDEX(Ranks!$1:$1048576,$A146,AF$1))","v":""},{"$f":"IF($A146=\"N/A\",Ref!$B$36,INDEX(Ranks!$1:$1048576,$A146,AG$1))","v":""},{"$f":"IF($A146=\"N/A\",Ref!$B$36,INDEX(Ranks!$1:$1048576,$A146,AH$1))","v":""},{"$f":"IF($A146=\"N/A\",Ref!$B$36,INDEX(Ranks!$1:$1048576,$A146,AI$1))","v":""},{"$f":"IF($A146=\"N/A\",Ref!$B$36,INDEX(Ranks!$1:$1048576,$A146,AJ$1))","v":""},{"$f":"IF($A146=\"N/A\",Ref!$B$36,INDEX(Ranks!$1:$1048576,$A146,AK$1))","v":""},{"$f":"IF($A146=\"N/A\",Ref!$B$36,INDEX(Ranks!$1:$1048576,$A146,AL$1))","v":""},{"$f":"IF($A146=\"N/A\",Ref!$B$36,INDEX(Ranks!$1:$1048576,$A146,AM$1))","v":""},{"$f":"IF($A146=\"N/A\",Ref!$B$36,INDEX(Ranks!$1:$1048576,$A146,AN$1))","v":""},{"$f":"IF($A146=\"N/A\",Ref!$B$36,INDEX(Ranks!$1:$1048576,$A146,AO$1))","v":""},{"$f":"IF($A146=\"N/A\",Ref!$B$36,INDEX(Ranks!$1:$1048576,$A146,AP$1))","v":""},{"$f":"IF($A146=\"N/A\",Ref!$B$36,INDEX(Ranks!$1:$1048576,$A146,AQ$1))","v":""},{"$f":"IF($A146=\"N/A\",Ref!$B$36,INDEX(Ranks!$1:$1048576,$A146,AR$1))","v":""},{"$f":"IF($A146=\"N/A\",Ref!$B$36,INDEX(Ranks!$1:$1048576,$A146,AS$1))","v":""},{"$f":"IF($A146=\"N/A\",Ref!$B$36,INDEX(Ranks!$1:$1048576,$A146,AT$1))","v":""},{"$f":"IF($A146=\"N/A\",Ref!$B$36,INDEX(Ranks!$1:$1048576,$A146,AU$1))","v":""},{"$f":"IF($A146=\"N/A\",Ref!$B$36,INDEX(Ranks!$1:$1048576,$A146,AV$1))","v":""},{"$f":"IF($A146=\"N/A\",Ref!$B$36,INDEX(Ranks!$1:$1048576,$A146,AW$1))","v":""},{"$f":"IF($A146=\"N/A\",Ref!$B$36,INDEX(Ranks!$1:$1048576,$A146,AX$1))","v":""},{"$f":"IF($A146=\"N/A\",Ref!$B$36,INDEX(Ranks!$1:$1048576,$A146,AY$1))","v":""},{"$f":"IF($A146=\"N/A\",Ref!$B$36,INDEX(Ranks!$1:$1048576,$A146,AZ$1))","v":""},{"$f":"IF($A146=\"N/A\",Ref!$B$36,INDEX(Ranks!$1:$1048576,$A146,BA$1))","v":""},{"$f":"IF($A146=\"N/A\",Ref!$B$36,INDEX(Ranks!$1:$1048576,$A146,BB$1))","v":""},{"$f":"IF($A146=\"N/A\",Ref!$B$36,INDEX(Ranks!$1:$1048576,$A146,BC$1))","v":""},{"$f":"IF($A146=\"N/A\",Ref!$B$36,INDEX(Ranks!$1:$1048576,$A146,BD$1))","v":""},{"$f":"IF($A146=\"N/A\",Ref!$B$36,INDEX(Ranks!$1:$1048576,$A146,BE$1))","v":""},{"$f":"IF($A146=\"N/A\",Ref!$B$36,INDEX(Ranks!$1:$1048576,$A146,BF$1))","v":""},{"$f":"IF($A146=\"N/A\",Ref!$B$36,INDEX(Ranks!$1:$1048576,$A146,BG$1))","v":""},{"$f":"IF($A146=\"N/A\",Ref!$B$36,INDEX(Ranks!$1:$1048576,$A146,BH$1))","v":""},{"$f":"IF($A146=\"N/A\",Ref!$B$36,INDEX(Ranks!$1:$1048576,$A146,BI$1))","v":""},{"$f":"IF($A146=\"N/A\",Ref!$B$36,INDEX(Ranks!$1:$1048576,$A146,BJ$1))","v":""},{"$f":"IF($A146=\"N/A\",Ref!$B$36,INDEX(Ranks!$1:$1048576,$A146,BK$1))","v":""},{"$f":"IF($A146=\"N/A\",Ref!$B$36,INDEX(Ranks!$1:$1048576,$A146,BL$1))","v":""},{"$f":"IF($A146=\"N/A\",Ref!$B$36,INDEX(Ranks!$1:$1048576,$A146,BM$1))","v":""},{"$f":"IF($A146=\"N/A\",Ref!$B$36,INDEX(Ranks!$1:$1048576,$A146,BN$1))","v":""},{"$f":"IF($A146=\"N/A\",Ref!$B$36,INDEX(Ranks!$1:$1048576,$A146,BO$1))","v":""},{"$f":"IF($A146=\"N/A\",Ref!$B$36,INDEX(Ranks!$1:$1048576,$A146,BP$1))","v":""},{"$f":"IF($A146=\"N/A\",Ref!$B$36,INDEX(Ranks!$1:$1048576,$A146,BQ$1))","v":""},{"$f":"IF($A146=\"N/A\",Ref!$B$36,INDEX(Ranks!$1:$1048576,$A146,BR$1))","v":""},{"$f":"IF($A146=\"N/A\",Ref!$B$36,INDEX(Ranks!$1:$1048576,$A146,BS$1))","v":""},{"$f":"IF($A146=\"N/A\",Ref!$B$36,INDEX(Ranks!$1:$1048576,$A146,BT$1))","v":""},{"$f":"IF($A146=\"N/A\",Ref!$B$36,INDEX(Ranks!$1:$1048576,$A146,BU$1))","v":""},{"$f":"IF($A146=\"N/A\",Ref!$B$36,INDEX(Ranks!$1:$1048576,$A146,BV$1))","v":""},{"$f":"IF($A146=\"N/A\",Ref!$B$36,INDEX(Ranks!$1:$1048576,$A146,BW$1))","v":""},{"$f":"IF($A146=\"N/A\",Ref!$B$36,INDEX(Ranks!$1:$1048576,$A146,BX$1))","v":""},{"$f":"IF($A146=\"N/A\",Ref!$B$36,INDEX(Ranks!$1:$1048576,$A146,BY$1))","v":""},{"$f":"IF($A146=\"N/A\",Ref!$B$36,INDEX(Ranks!$1:$1048576,$A146,BZ$1))","v":""},{"$f":"IF($A146=\"N/A\",Ref!$B$36,INDEX(Ranks!$1:$1048576,$A146,CA$1))","v":""},{"$f":"IF($A146=\"N/A\",Ref!$B$36,INDEX(Ranks!$1:$1048576,$A146,CB$1))","v":""},{"$f":"IF($A146=\"N/A\",Ref!$B$36,INDEX(Ranks!$1:$1048576,$A146,CC$1))","v":""},{"$f":"IF($A146=\"N/A\",Ref!$B$36,INDEX(Ranks!$1:$1048576,$A146,CD$1))","v":""},{"$f":"IF($A146=\"N/A\",Ref!$B$36,INDEX(Ranks!$1:$1048576,$A146,CE$1))","v":""},{"$f":"IF($A146=\"N/A\",Ref!$B$36,INDEX(Ranks!$1:$1048576,$A146,CF$1))","v":""},{"$f":"IF($A146=\"N/A\",Ref!$B$36,INDEX(Ranks!$1:$1048576,$A146,CG$1))","v":""},{"$f":"IF($A146=\"N/A\",Ref!$B$36,INDEX(Ranks!$1:$1048576,$A146,CH$1))","v":""},{"$f":"IF($A146=\"N/A\",Ref!$B$36,INDEX(Ranks!$1:$1048576,$A146,CI$1))","v":""},{"$f":"IF($A146=\"N/A\",Ref!$B$36,INDEX(Ranks!$1:$1048576,$A146,CJ$1))","v":""},{"$f":"IF($A146=\"N/A\",Ref!$B$36,INDEX(Ranks!$1:$1048576,$A146,CK$1))","v":""},{"$f":"IF($A146=\"N/A\",Ref!$B$36,INDEX(Ranks!$1:$1048576,$A146,CL$1))","v":""},{"$f":"IF($A146=\"N/A\",Ref!$B$36,INDEX(Ranks!$1:$1048576,$A146,CM$1))","v":""},{"$f":"IF($A146=\"N/A\",Ref!$B$36,INDEX(Ranks!$1:$1048576,$A146,CN$1))","v":""},{"$f":"IF($A146=\"N/A\",Ref!$B$36,INDEX(Ranks!$1:$1048576,$A146,CO$1))","v":""},{"$f":"IF($A146=\"N/A\",Ref!$B$36,INDEX(Ranks!$1:$1048576,$A146,CP$1))","v":""},{"$f":"IF($A146=\"N/A\",Ref!$B$36,INDEX(Ranks!$1:$1048576,$A146,CQ$1))","v":""},{"$f":"IF($A146=\"N/A\",Ref!$B$36,INDEX(Ranks!$1:$1048576,$A146,CR$1))","v":""},{"$f":"IF($A146=\"N/A\",Ref!$B$36,INDEX(Ranks!$1:$1048576,$A146,CS$1))","v":""},{"$f":"IF($A146=\"N/A\",Ref!$B$36,INDEX(Ranks!$1:$1048576,$A146,CT$1))","v":""},{"$f":"IF($A146=\"N/A\",Ref!$B$36,INDEX(Ranks!$1:$1048576,$A146,CU$1))","v":""},{"$f":"IF($A146=\"N/A\",Ref!$B$36,INDEX(Ranks!$1:$1048576,$A146,CV$1))","v":""},{"$f":"IF($A146=\"N/A\",Ref!$B$36,INDEX(Ranks!$1:$1048576,$A146,CW$1))","v":""},{"$f":"IF($A146=\"N/A\",Ref!$B$36,INDEX(Ranks!$1:$1048576,$A146,CX$1))","v":""},{"$f":"IF($A146=\"N/A\",Ref!$B$36,INDEX(Ranks!$1:$1048576,$A146,CY$1))","v":""},{"$f":"IF($A146=\"N/A\",Ref!$B$36,INDEX(Ranks!$1:$1048576,$A146,CZ$1))","v":""},{"$f":"IF($A146=\"N/A\",Ref!$B$36,INDEX(Ranks!$1:$1048576,$A146,DA$1))","v":""},{"$f":"IF($A146=\"N/A\",Ref!$B$36,INDEX(Ranks!$1:$1048576,$A146,DB$1))","v":""},{"$f":"IF($A146=\"N/A\",Ref!$B$36,INDEX(Ranks!$1:$1048576,$A146,DC$1))","v":""},{"$f":"IF($A146=\"N/A\",Ref!$B$36,INDEX(Ranks!$1:$1048576,$A146,DD$1))","v":""},{"$f":"IF($A146=\"N/A\",Ref!$B$36,INDEX(Ranks!$1:$1048576,$A146,DE$1))","v":""},{"$f":"IF($A146=\"N/A\",Ref!$B$36,INDEX(Ranks!$1:$1048576,$A146,DF$1))","v":""},{"$f":"IF($A146=\"N/A\",Ref!$B$36,INDEX(Ranks!$1:$1048576,$A146,DG$1))","v":""},{"$f":"IF($A146=\"N/A\",Ref!$B$36,INDEX(Ranks!$1:$1048576,$A146,DH$1))","v":""},{"$f":"IF($A146=\"N/A\",Ref!$B$36,INDEX(Ranks!$1:$1048576,$A146,DI$1))","v":""},{"$f":"IF($A146=\"N/A\",Ref!$B$36,INDEX(Ranks!$1:$1048576,$A146,DJ$1))","v":""},{"$f":"IF($A146=\"N/A\",Ref!$B$36,INDEX(Ranks!$1:$1048576,$A146,DK$1))","v":""},{"$f":"IF($A146=\"N/A\",Ref!$B$36,INDEX(Ranks!$1:$1048576,$A146,DL$1))","v":""},{"$f":"IF($A146=\"N/A\",Ref!$B$36,INDEX(Ranks!$1:$1048576,$A146,DM$1))","v":""},{"$f":"IF($A146=\"N/A\",Ref!$B$36,INDEX(Ranks!$1:$1048576,$A146,DN$1))","v":""},{"$f":"IF($A146=\"N/A\",Ref!$B$36,INDEX(Ranks!$1:$1048576,$A146,DO$1))","v":""},{"$f":"IF($A146=\"N/A\",Ref!$B$36,INDEX(Ranks!$1:$1048576,$A146,DP$1))","v":""},{"$f":"IF($A146=\"N/A\",Ref!$B$36,INDEX(Ranks!$1:$1048576,$A146,DQ$1))","v":""},{"$f":"IF($A146=\"N/A\",Ref!$B$36,INDEX(Ranks!$1:$1048576,$A146,DR$1))","v":""},{"$f":"IF($A146=\"N/A\",Ref!$B$36,INDEX(Ranks!$1:$1048576,$A146,DS$1))","v":""},{"$f":"IF($A146=\"N/A\",Ref!$B$36,INDEX(Ranks!$1:$1048576,$A146,DT$1))","v":""},{"$f":"IF($A146=\"N/A\",Ref!$B$36,INDEX(Ranks!$1:$1048576,$A146,DU$1))","v":""},{"$f":"IF($A146=\"N/A\",Ref!$B$36,INDEX(Ranks!$1:$1048576,$A146,DV$1))","v":""},{"$f":"IF($A146=\"N/A\",Ref!$B$36,INDEX(Ranks!$1:$1048576,$A146,DW$1))","v":""},{"$f":"IF($A146=\"N/A\",Ref!$B$36,INDEX(Ranks!$1:$1048576,$A146,DX$1))","v":""},{"$f":"IF($A146=\"N/A\",Ref!$B$36,INDEX(Ranks!$1:$1048576,$A146,DY$1))","v":""},{"$f":"IF($A146=\"N/A\",Ref!$B$36,INDEX(Ranks!$1:$1048576,$A146,DZ$1))","v":""},{"$f":"IF($A146=\"N/A\",Ref!$B$36,INDEX(Ranks!$1:$1048576,$A146,EA$1))","v":""},{"$f":"IF($A146=\"N/A\",Ref!$B$36,INDEX(Ranks!$1:$1048576,$A146,EB$1))","v":""}]
[{"$f":"IFERROR(MATCH('Portfolio Page'!L147,Ranks!L:L,0),\"N/A\")","v":"N/A"},null,{"$f":"IF($A147=\"N/A\",\"\",INDEX(Ranks!$1:$1048576,$A147,C$1))","v":""},{"$f":"IF($A147=\"N/A\",Ref!$B$36,INDEX(Ranks!$1:$1048576,$A147,D$1))","v":""},{"$f":"IF($A147=\"N/A\",Ref!$B$36,INDEX(Ranks!$1:$1048576,$A147,E$1))","v":""},{"$f":"IF($A147=\"N/A\",\"\",INDEX(Ranks!$1:$1048576,$A147,F$1))","v":""},{"$f":"IF($A147=\"N/A\",\"\",INDEX(Ranks!$1:$1048576,$A147,G$1))","v":""},{"$f":"IF($A147=\"N/A\",\"\",INDEX(Ranks!$1:$1048576,$A147,H$1))","v":""},{"$f":"IF($A147=\"N/A\",\"\",INDEX(Ranks!$1:$1048576,$A147,I$1))","v":""},{"$f":"IF($A147=\"N/A\",\"\",INDEX(Ranks!$1:$1048576,$A147,J$1))","v":""},{"$f":"IF($A147=\"N/A\",\"\",INDEX(Ranks!$1:$1048576,$A147,K$1))","v":""},null,{"$f":"IF($A147=\"N/A\",Ref!$B$36,INDEX(Ranks!$1:$1048576,$A147,M$1))","v":""},{"$f":"IF($A147=\"N/A\",Ref!$B$36,INDEX(Ranks!$1:$1048576,$A147,N$1))","v":""},{"$f":"IF($A147=\"N/A\",Ref!$B$36,INDEX(Ranks!$1:$1048576,$A147,O$1))","v":""},{"$f":"IF($A147=\"N/A\",Ref!$B$36,INDEX(Ranks!$1:$1048576,$A147,P$1))","v":""},{"$f":"IF($A147=\"N/A\",Ref!$B$36,INDEX(Ranks!$1:$1048576,$A147,Q$1))","v":""},{"$f":"IF($A147=\"N/A\",Ref!$B$36,INDEX(Ranks!$1:$1048576,$A147,R$1))","v":""},{"$f":"IF($A147=\"N/A\",Ref!$B$36,INDEX(Ranks!$1:$1048576,$A147,S$1))","v":""},{"$f":"IF($A147=\"N/A\",Ref!$B$36,INDEX(Ranks!$1:$1048576,$A147,T$1))","v":""},{"$f":"IF($A147=\"N/A\",Ref!$B$36,INDEX(Ranks!$1:$1048576,$A147,U$1))","v":""},{"$f":"IF($A147=\"N/A\",Ref!$B$36,INDEX(Ranks!$1:$1048576,$A147,V$1))","v":""},{"$f":"IF($A147=\"N/A\",Ref!$B$36,INDEX(Ranks!$1:$1048576,$A147,W$1))","v":""},{"$f":"IF($A147=\"N/A\",Ref!$B$36,INDEX(Ranks!$1:$1048576,$A147,X$1))","v":""},{"$f":"IF($A147=\"N/A\",Ref!$B$36,INDEX(Ranks!$1:$1048576,$A147,Y$1))","v":""},{"$f":"IF($A147=\"N/A\",Ref!$B$36,INDEX(Ranks!$1:$1048576,$A147,Z$1))","v":""},{"$f":"IF($A147=\"N/A\",Ref!$B$36,INDEX(Ranks!$1:$1048576,$A147,AA$1))","v":""},{"$f":"IF($A147=\"N/A\",Ref!$B$36,INDEX(Ranks!$1:$1048576,$A147,AB$1))","v":""},{"$f":"IF($A147=\"N/A\",Ref!$B$36,INDEX(Ranks!$1:$1048576,$A147,AC$1))","v":""},{"$f":"IF($A147=\"N/A\",Ref!$B$36,INDEX(Ranks!$1:$1048576,$A147,AD$1))","v":""},{"$f":"IF($A147=\"N/A\",Ref!$B$36,INDEX(Ranks!$1:$1048576,$A147,AE$1))","v":""},{"$f":"IF($A147=\"N/A\",Ref!$B$36,INDEX(Ranks!$1:$1048576,$A147,AF$1))","v":""},{"$f":"IF($A147=\"N/A\",Ref!$B$36,INDEX(Ranks!$1:$1048576,$A147,AG$1))","v":""},{"$f":"IF($A147=\"N/A\",Ref!$B$36,INDEX(Ranks!$1:$1048576,$A147,AH$1))","v":""},{"$f":"IF($A147=\"N/A\",Ref!$B$36,INDEX(Ranks!$1:$1048576,$A147,AI$1))","v":""},{"$f":"IF($A147=\"N/A\",Ref!$B$36,INDEX(Ranks!$1:$1048576,$A147,AJ$1))","v":""},{"$f":"IF($A147=\"N/A\",Ref!$B$36,INDEX(Ranks!$1:$1048576,$A147,AK$1))","v":""},{"$f":"IF($A147=\"N/A\",Ref!$B$36,INDEX(Ranks!$1:$1048576,$A147,AL$1))","v":""},{"$f":"IF($A147=\"N/A\",Ref!$B$36,INDEX(Ranks!$1:$1048576,$A147,AM$1))","v":""},{"$f":"IF($A147=\"N/A\",Ref!$B$36,INDEX(Ranks!$1:$1048576,$A147,AN$1))","v":""},{"$f":"IF($A147=\"N/A\",Ref!$B$36,INDEX(Ranks!$1:$1048576,$A147,AO$1))","v":""},{"$f":"IF($A147=\"N/A\",Ref!$B$36,INDEX(Ranks!$1:$1048576,$A147,AP$1))","v":""},{"$f":"IF($A147=\"N/A\",Ref!$B$36,INDEX(Ranks!$1:$1048576,$A147,AQ$1))","v":""},{"$f":"IF($A147=\"N/A\",Ref!$B$36,INDEX(Ranks!$1:$1048576,$A147,AR$1))","v":""},{"$f":"IF($A147=\"N/A\",Ref!$B$36,INDEX(Ranks!$1:$1048576,$A147,AS$1))","v":""},{"$f":"IF($A147=\"N/A\",Ref!$B$36,INDEX(Ranks!$1:$1048576,$A147,AT$1))","v":""},{"$f":"IF($A147=\"N/A\",Ref!$B$36,INDEX(Ranks!$1:$1048576,$A147,AU$1))","v":""},{"$f":"IF($A147=\"N/A\",Ref!$B$36,INDEX(Ranks!$1:$1048576,$A147,AV$1))","v":""},{"$f":"IF($A147=\"N/A\",Ref!$B$36,INDEX(Ranks!$1:$1048576,$A147,AW$1))","v":""},{"$f":"IF($A147=\"N/A\",Ref!$B$36,INDEX(Ranks!$1:$1048576,$A147,AX$1))","v":""},{"$f":"IF($A147=\"N/A\",Ref!$B$36,INDEX(Ranks!$1:$1048576,$A147,AY$1))","v":""},{"$f":"IF($A147=\"N/A\",Ref!$B$36,INDEX(Ranks!$1:$1048576,$A147,AZ$1))","v":""},{"$f":"IF($A147=\"N/A\",Ref!$B$36,INDEX(Ranks!$1:$1048576,$A147,BA$1))","v":""},{"$f":"IF($A147=\"N/A\",Ref!$B$36,INDEX(Ranks!$1:$1048576,$A147,BB$1))","v":""},{"$f":"IF($A147=\"N/A\",Ref!$B$36,INDEX(Ranks!$1:$1048576,$A147,BC$1))","v":""},{"$f":"IF($A147=\"N/A\",Ref!$B$36,INDEX(Ranks!$1:$1048576,$A147,BD$1))","v":""},{"$f":"IF($A147=\"N/A\",Ref!$B$36,INDEX(Ranks!$1:$1048576,$A147,BE$1))","v":""},{"$f":"IF($A147=\"N/A\",Ref!$B$36,INDEX(Ranks!$1:$1048576,$A147,BF$1))","v":""},{"$f":"IF($A147=\"N/A\",Ref!$B$36,INDEX(Ranks!$1:$1048576,$A147,BG$1))","v":""},{"$f":"IF($A147=\"N/A\",Ref!$B$36,INDEX(Ranks!$1:$1048576,$A147,BH$1))","v":""},{"$f":"IF($A147=\"N/A\",Ref!$B$36,INDEX(Ranks!$1:$1048576,$A147,BI$1))","v":""},{"$f":"IF($A147=\"N/A\",Ref!$B$36,INDEX(Ranks!$1:$1048576,$A147,BJ$1))","v":""},{"$f":"IF($A147=\"N/A\",Ref!$B$36,INDEX(Ranks!$1:$1048576,$A147,BK$1))","v":""},{"$f":"IF($A147=\"N/A\",Ref!$B$36,INDEX(Ranks!$1:$1048576,$A147,BL$1))","v":""},{"$f":"IF($A147=\"N/A\",Ref!$B$36,INDEX(Ranks!$1:$1048576,$A147,BM$1))","v":""},{"$f":"IF($A147=\"N/A\",Ref!$B$36,INDEX(Ranks!$1:$1048576,$A147,BN$1))","v":""},{"$f":"IF($A147=\"N/A\",Ref!$B$36,INDEX(Ranks!$1:$1048576,$A147,BO$1))","v":""},{"$f":"IF($A147=\"N/A\",Ref!$B$36,INDEX(Ranks!$1:$1048576,$A147,BP$1))","v":""},{"$f":"IF($A147=\"N/A\",Ref!$B$36,INDEX(Ranks!$1:$1048576,$A147,BQ$1))","v":""},{"$f":"IF($A147=\"N/A\",Ref!$B$36,INDEX(Ranks!$1:$1048576,$A147,BR$1))","v":""},{"$f":"IF($A147=\"N/A\",Ref!$B$36,INDEX(Ranks!$1:$1048576,$A147,BS$1))","v":""},{"$f":"IF($A147=\"N/A\",Ref!$B$36,INDEX(Ranks!$1:$1048576,$A147,BT$1))","v":""},{"$f":"IF($A147=\"N/A\",Ref!$B$36,INDEX(Ranks!$1:$1048576,$A147,BU$1))","v":""},{"$f":"IF($A147=\"N/A\",Ref!$B$36,INDEX(Ranks!$1:$1048576,$A147,BV$1))","v":""},{"$f":"IF($A147=\"N/A\",Ref!$B$36,INDEX(Ranks!$1:$1048576,$A147,BW$1))","v":""},{"$f":"IF($A147=\"N/A\",Ref!$B$36,INDEX(Ranks!$1:$1048576,$A147,BX$1))","v":""},{"$f":"IF($A147=\"N/A\",Ref!$B$36,INDEX(Ranks!$1:$1048576,$A147,BY$1))","v":""},{"$f":"IF($A147=\"N/A\",Ref!$B$36,INDEX(Ranks!$1:$1048576,$A147,BZ$1))","v":""},{"$f":"IF($A147=\"N/A\",Ref!$B$36,INDEX(Ranks!$1:$1048576,$A147,CA$1))","v":""},{"$f":"IF($A147=\"N/A\",Ref!$B$36,INDEX(Ranks!$1:$1048576,$A147,CB$1))","v":""},{"$f":"IF($A147=\"N/A\",Ref!$B$36,INDEX(Ranks!$1:$1048576,$A147,CC$1))","v":""},{"$f":"IF($A147=\"N/A\",Ref!$B$36,INDEX(Ranks!$1:$1048576,$A147,CD$1))","v":""},{"$f":"IF($A147=\"N/A\",Ref!$B$36,INDEX(Ranks!$1:$1048576,$A147,CE$1))","v":""},{"$f":"IF($A147=\"N/A\",Ref!$B$36,INDEX(Ranks!$1:$1048576,$A147,CF$1))","v":""},{"$f":"IF($A147=\"N/A\",Ref!$B$36,INDEX(Ranks!$1:$1048576,$A147,CG$1))","v":""},{"$f":"IF($A147=\"N/A\",Ref!$B$36,INDEX(Ranks!$1:$1048576,$A147,CH$1))","v":""},{"$f":"IF($A147=\"N/A\",Ref!$B$36,INDEX(Ranks!$1:$1048576,$A147,CI$1))","v":""},{"$f":"IF($A147=\"N/A\",Ref!$B$36,INDEX(Ranks!$1:$1048576,$A147,CJ$1))","v":""},{"$f":"IF($A147=\"N/A\",Ref!$B$36,INDEX(Ranks!$1:$1048576,$A147,CK$1))","v":""},{"$f":"IF($A147=\"N/A\",Ref!$B$36,INDEX(Ranks!$1:$1048576,$A147,CL$1))","v":""},{"$f":"IF($A147=\"N/A\",Ref!$B$36,INDEX(Ranks!$1:$1048576,$A147,CM$1))","v":""},{"$f":"IF($A147=\"N/A\",Ref!$B$36,INDEX(Ranks!$1:$1048576,$A147,CN$1))","v":""},{"$f":"IF($A147=\"N/A\",Ref!$B$36,INDEX(Ranks!$1:$1048576,$A147,CO$1))","v":""},{"$f":"IF($A147=\"N/A\",Ref!$B$36,INDEX(Ranks!$1:$1048576,$A147,CP$1))","v":""},{"$f":"IF($A147=\"N/A\",Ref!$B$36,INDEX(Ranks!$1:$1048576,$A147,CQ$1))","v":""},{"$f":"IF($A147=\"N/A\",Ref!$B$36,INDEX(Ranks!$1:$1048576,$A147,CR$1))","v":""},{"$f":"IF($A147=\"N/A\",Ref!$B$36,INDEX(Ranks!$1:$1048576,$A147,CS$1))","v":""},{"$f":"IF($A147=\"N/A\",Ref!$B$36,INDEX(Ranks!$1:$1048576,$A147,CT$1))","v":""},{"$f":"IF($A147=\"N/A\",Ref!$B$36,INDEX(Ranks!$1:$1048576,$A147,CU$1))","v":""},{"$f":"IF($A147=\"N/A\",Ref!$B$36,INDEX(Ranks!$1:$1048576,$A147,CV$1))","v":""},{"$f":"IF($A147=\"N/A\",Ref!$B$36,INDEX(Ranks!$1:$1048576,$A147,CW$1))","v":""},{"$f":"IF($A147=\"N/A\",Ref!$B$36,INDEX(Ranks!$1:$1048576,$A147,CX$1))","v":""},{"$f":"IF($A147=\"N/A\",Ref!$B$36,INDEX(Ranks!$1:$1048576,$A147,CY$1))","v":""},{"$f":"IF($A147=\"N/A\",Ref!$B$36,INDEX(Ranks!$1:$1048576,$A147,CZ$1))","v":""},{"$f":"IF($A147=\"N/A\",Ref!$B$36,INDEX(Ranks!$1:$1048576,$A147,DA$1))","v":""},{"$f":"IF($A147=\"N/A\",Ref!$B$36,INDEX(Ranks!$1:$1048576,$A147,DB$1))","v":""},{"$f":"IF($A147=\"N/A\",Ref!$B$36,INDEX(Ranks!$1:$1048576,$A147,DC$1))","v":""},{"$f":"IF($A147=\"N/A\",Ref!$B$36,INDEX(Ranks!$1:$1048576,$A147,DD$1))","v":""},{"$f":"IF($A147=\"N/A\",Ref!$B$36,INDEX(Ranks!$1:$1048576,$A147,DE$1))","v":""},{"$f":"IF($A147=\"N/A\",Ref!$B$36,INDEX(Ranks!$1:$1048576,$A147,DF$1))","v":""},{"$f":"IF($A147=\"N/A\",Ref!$B$36,INDEX(Ranks!$1:$1048576,$A147,DG$1))","v":""},{"$f":"IF($A147=\"N/A\",Ref!$B$36,INDEX(Ranks!$1:$1048576,$A147,DH$1))","v":""},{"$f":"IF($A147=\"N/A\",Ref!$B$36,INDEX(Ranks!$1:$1048576,$A147,DI$1))","v":""},{"$f":"IF($A147=\"N/A\",Ref!$B$36,INDEX(Ranks!$1:$1048576,$A147,DJ$1))","v":""},{"$f":"IF($A147=\"N/A\",Ref!$B$36,INDEX(Ranks!$1:$1048576,$A147,DK$1))","v":""},{"$f":"IF($A147=\"N/A\",Ref!$B$36,INDEX(Ranks!$1:$1048576,$A147,DL$1))","v":""},{"$f":"IF($A147=\"N/A\",Ref!$B$36,INDEX(Ranks!$1:$1048576,$A147,DM$1))","v":""},{"$f":"IF($A147=\"N/A\",Ref!$B$36,INDEX(Ranks!$1:$1048576,$A147,DN$1))","v":""},{"$f":"IF($A147=\"N/A\",Ref!$B$36,INDEX(Ranks!$1:$1048576,$A147,DO$1))","v":""},{"$f":"IF($A147=\"N/A\",Ref!$B$36,INDEX(Ranks!$1:$1048576,$A147,DP$1))","v":""},{"$f":"IF($A147=\"N/A\",Ref!$B$36,INDEX(Ranks!$1:$1048576,$A147,DQ$1))","v":""},{"$f":"IF($A147=\"N/A\",Ref!$B$36,INDEX(Ranks!$1:$1048576,$A147,DR$1))","v":""},{"$f":"IF($A147=\"N/A\",Ref!$B$36,INDEX(Ranks!$1:$1048576,$A147,DS$1))","v":""},{"$f":"IF($A147=\"N/A\",Ref!$B$36,INDEX(Ranks!$1:$1048576,$A147,DT$1))","v":""},{"$f":"IF($A147=\"N/A\",Ref!$B$36,INDEX(Ranks!$1:$1048576,$A147,DU$1))","v":""},{"$f":"IF($A147=\"N/A\",Ref!$B$36,INDEX(Ranks!$1:$1048576,$A147,DV$1))","v":""},{"$f":"IF($A147=\"N/A\",Ref!$B$36,INDEX(Ranks!$1:$1048576,$A147,DW$1))","v":""},{"$f":"IF($A147=\"N/A\",Ref!$B$36,INDEX(Ranks!$1:$1048576,$A147,DX$1))","v":""},{"$f":"IF($A147=\"N/A\",Ref!$B$36,INDEX(Ranks!$1:$1048576,$A147,DY$1))","v":""},{"$f":"IF($A147=\"N/A\",Ref!$B$36,INDEX(Ranks!$1:$1048576,$A147,DZ$1))","v":""},{"$f":"IF($A147=\"N/A\",Ref!$B$36,INDEX(Ranks!$1:$1048576,$A147,EA$1))","v":""},{"$f":"IF($A147=\"N/A\",Ref!$B$36,INDEX(Ranks!$1:$1048576,$A147,EB$1))","v":""}]
[{"$f":"IFERROR(MATCH('Portfolio Page'!L148,Ranks!L:L,0),\"N/A\")","v":"N/A"},null,{"$f":"IF($A148=\"N/A\",\"\",INDEX(Ranks!$1:$1048576,$A148,C$1))","v":""},{"$f":"IF($A148=\"N/A\",Ref!$B$36,INDEX(Ranks!$1:$1048576,$A148,D$1))","v":""},{"$f":"IF($A148=\"N/A\",Ref!$B$36,INDEX(Ranks!$1:$1048576,$A148,E$1))","v":""},{"$f":"IF($A148=\"N/A\",\"\",INDEX(Ranks!$1:$1048576,$A148,F$1))","v":""},{"$f":"IF($A148=\"N/A\",\"\",INDEX(Ranks!$1:$1048576,$A148,G$1))","v":""},{"$f":"IF($A148=\"N/A\",\"\",INDEX(Ranks!$1:$1048576,$A148,H$1))","v":""},{"$f":"IF($A148=\"N/A\",\"\",INDEX(Ranks!$1:$1048576,$A148,I$1))","v":""},{"$f":"IF($A148=\"N/A\",\"\",INDEX(Ranks!$1:$1048576,$A148,J$1))","v":""},{"$f":"IF($A148=\"N/A\",\"\",INDEX(Ranks!$1:$1048576,$A148,K$1))","v":""},null,{"$f":"IF($A148=\"N/A\",Ref!$B$36,INDEX(Ranks!$1:$1048576,$A148,M$1))","v":""},{"$f":"IF($A148=\"N/A\",Ref!$B$36,INDEX(Ranks!$1:$1048576,$A148,N$1))","v":""},{"$f":"IF($A148=\"N/A\",Ref!$B$36,INDEX(Ranks!$1:$1048576,$A148,O$1))","v":""},{"$f":"IF($A148=\"N/A\",Ref!$B$36,INDEX(Ranks!$1:$1048576,$A148,P$1))","v":""},{"$f":"IF($A148=\"N/A\",Ref!$B$36,INDEX(Ranks!$1:$1048576,$A148,Q$1))","v":""},{"$f":"IF($A148=\"N/A\",Ref!$B$36,INDEX(Ranks!$1:$1048576,$A148,R$1))","v":""},{"$f":"IF($A148=\"N/A\",Ref!$B$36,INDEX(Ranks!$1:$1048576,$A148,S$1))","v":""},{"$f":"IF($A148=\"N/A\",Ref!$B$36,INDEX(Ranks!$1:$1048576,$A148,T$1))","v":""},{"$f":"IF($A148=\"N/A\",Ref!$B$36,INDEX(Ranks!$1:$1048576,$A148,U$1))","v":""},{"$f":"IF($A148=\"N/A\",Ref!$B$36,INDEX(Ranks!$1:$1048576,$A148,V$1))","v":""},{"$f":"IF($A148=\"N/A\",Ref!$B$36,INDEX(Ranks!$1:$1048576,$A148,W$1))","v":""},{"$f":"IF($A148=\"N/A\",Ref!$B$36,INDEX(Ranks!$1:$1048576,$A148,X$1))","v":""},{"$f":"IF($A148=\"N/A\",Ref!$B$36,INDEX(Ranks!$1:$1048576,$A148,Y$1))","v":""},{"$f":"IF($A148=\"N/A\",Ref!$B$36,INDEX(Ranks!$1:$1048576,$A148,Z$1))","v":""},{"$f":"IF($A148=\"N/A\",Ref!$B$36,INDEX(Ranks!$1:$1048576,$A148,AA$1))","v":""},{"$f":"IF($A148=\"N/A\",Ref!$B$36,INDEX(Ranks!$1:$1048576,$A148,AB$1))","v":""},{"$f":"IF($A148=\"N/A\",Ref!$B$36,INDEX(Ranks!$1:$1048576,$A148,AC$1))","v":""},{"$f":"IF($A148=\"N/A\",Ref!$B$36,INDEX(Ranks!$1:$1048576,$A148,AD$1))","v":""},{"$f":"IF($A148=\"N/A\",Ref!$B$36,INDEX(Ranks!$1:$1048576,$A148,AE$1))","v":""},{"$f":"IF($A148=\"N/A\",Ref!$B$36,INDEX(Ranks!$1:$1048576,$A148,AF$1))","v":""},{"$f":"IF($A148=\"N/A\",Ref!$B$36,INDEX(Ranks!$1:$1048576,$A148,AG$1))","v":""},{"$f":"IF($A148=\"N/A\",Ref!$B$36,INDEX(Ranks!$1:$1048576,$A148,AH$1))","v":""},{"$f":"IF($A148=\"N/A\",Ref!$B$36,INDEX(Ranks!$1:$1048576,$A148,AI$1))","v":""},{"$f":"IF($A148=\"N/A\",Ref!$B$36,INDEX(Ranks!$1:$1048576,$A148,AJ$1))","v":""},{"$f":"IF($A148=\"N/A\",Ref!$B$36,INDEX(Ranks!$1:$1048576,$A148,AK$1))","v":""},{"$f":"IF($A148=\"N/A\",Ref!$B$36,INDEX(Ranks!$1:$1048576,$A148,AL$1))","v":""},{"$f":"IF($A148=\"N/A\",Ref!$B$36,INDEX(Ranks!$1:$1048576,$A148,AM$1))","v":""},{"$f":"IF($A148=\"N/A\",Ref!$B$36,INDEX(Ranks!$1:$1048576,$A148,AN$1))","v":""},{"$f":"IF($A148=\"N/A\",Ref!$B$36,INDEX(Ranks!$1:$1048576,$A148,AO$1))","v":""},{"$f":"IF($A148=\"N/A\",Ref!$B$36,INDEX(Ranks!$1:$1048576,$A148,AP$1))","v":""},{"$f":"IF($A148=\"N/A\",Ref!$B$36,INDEX(Ranks!$1:$1048576,$A148,AQ$1))","v":""},{"$f":"IF($A148=\"N/A\",Ref!$B$36,INDEX(Ranks!$1:$1048576,$A148,AR$1))","v":""},{"$f":"IF($A148=\"N/A\",Ref!$B$36,INDEX(Ranks!$1:$1048576,$A148,AS$1))","v":""},{"$f":"IF($A148=\"N/A\",Ref!$B$36,INDEX(Ranks!$1:$1048576,$A148,AT$1))","v":""},{"$f":"IF($A148=\"N/A\",Ref!$B$36,INDEX(Ranks!$1:$1048576,$A148,AU$1))","v":""},{"$f":"IF($A148=\"N/A\",Ref!$B$36,INDEX(Ranks!$1:$1048576,$A148,AV$1))","v":""},{"$f":"IF($A148=\"N/A\",Ref!$B$36,INDEX(Ranks!$1:$1048576,$A148,AW$1))","v":""},{"$f":"IF($A148=\"N/A\",Ref!$B$36,INDEX(Ranks!$1:$1048576,$A148,AX$1))","v":""},{"$f":"IF($A148=\"N/A\",Ref!$B$36,INDEX(Ranks!$1:$1048576,$A148,AY$1))","v":""},{"$f":"IF($A148=\"N/A\",Ref!$B$36,INDEX(Ranks!$1:$1048576,$A148,AZ$1))","v":""},{"$f":"IF($A148=\"N/A\",Ref!$B$36,INDEX(Ranks!$1:$1048576,$A148,BA$1))","v":""},{"$f":"IF($A148=\"N/A\",Ref!$B$36,INDEX(Ranks!$1:$1048576,$A148,BB$1))","v":""},{"$f":"IF($A148=\"N/A\",Ref!$B$36,INDEX(Ranks!$1:$1048576,$A148,BC$1))","v":""},{"$f":"IF($A148=\"N/A\",Ref!$B$36,INDEX(Ranks!$1:$1048576,$A148,BD$1))","v":""},{"$f":"IF($A148=\"N/A\",Ref!$B$36,INDEX(Ranks!$1:$1048576,$A148,BE$1))","v":""},{"$f":"IF($A148=\"N/A\",Ref!$B$36,INDEX(Ranks!$1:$1048576,$A148,BF$1))","v":""},{"$f":"IF($A148=\"N/A\",Ref!$B$36,INDEX(Ranks!$1:$1048576,$A148,BG$1))","v":""},{"$f":"IF($A148=\"N/A\",Ref!$B$36,INDEX(Ranks!$1:$1048576,$A148,BH$1))","v":""},{"$f":"IF($A148=\"N/A\",Ref!$B$36,INDEX(Ranks!$1:$1048576,$A148,BI$1))","v":""},{"$f":"IF($A148=\"N/A\",Ref!$B$36,INDEX(Ranks!$1:$1048576,$A148,BJ$1))","v":""},{"$f":"IF($A148=\"N/A\",Ref!$B$36,INDEX(Ranks!$1:$1048576,$A148,BK$1))","v":""},{"$f":"IF($A148=\"N/A\",Ref!$B$36,INDEX(Ranks!$1:$1048576,$A148,BL$1))","v":""},{"$f":"IF($A148=\"N/A\",Ref!$B$36,INDEX(Ranks!$1:$1048576,$A148,BM$1))","v":""},{"$f":"IF($A148=\"N/A\",Ref!$B$36,INDEX(Ranks!$1:$1048576,$A148,BN$1))","v":""},{"$f":"IF($A148=\"N/A\",Ref!$B$36,INDEX(Ranks!$1:$1048576,$A148,BO$1))","v":""},{"$f":"IF($A148=\"N/A\",Ref!$B$36,INDEX(Ranks!$1:$1048576,$A148,BP$1))","v":""},{"$f":"IF($A148=\"N/A\",Ref!$B$36,INDEX(Ranks!$1:$1048576,$A148,BQ$1))","v":""},{"$f":"IF($A148=\"N/A\",Ref!$B$36,INDEX(Ranks!$1:$1048576,$A148,BR$1))","v":""},{"$f":"IF($A148=\"N/A\",Ref!$B$36,INDEX(Ranks!$1:$1048576,$A148,BS$1))","v":""},{"$f":"IF($A148=\"N/A\",Ref!$B$36,INDEX(Ranks!$1:$1048576,$A148,BT$1))","v":""},{"$f":"IF($A148=\"N/A\",Ref!$B$36,INDEX(Ranks!$1:$1048576,$A148,BU$1))","v":""},{"$f":"IF($A148=\"N/A\",Ref!$B$36,INDEX(Ranks!$1:$1048576,$A148,BV$1))","v":""},{"$f":"IF($A148=\"N/A\",Ref!$B$36,INDEX(Ranks!$1:$1048576,$A148,BW$1))","v":""},{"$f":"IF($A148=\"N/A\",Ref!$B$36,INDEX(Ranks!$1:$1048576,$A148,BX$1))","v":""},{"$f":"IF($A148=\"N/A\",Ref!$B$36,INDEX(Ranks!$1:$1048576,$A148,BY$1))","v":""},{"$f":"IF($A148=\"N/A\",Ref!$B$36,INDEX(Ranks!$1:$1048576,$A148,BZ$1))","v":""},{"$f":"IF($A148=\"N/A\",Ref!$B$36,INDEX(Ranks!$1:$1048576,$A148,CA$1))","v":""},{"$f":"IF($A148=\"N/A\",Ref!$B$36,INDEX(Ranks!$1:$1048576,$A148,CB$1))","v":""},{"$f":"IF($A148=\"N/A\",Ref!$B$36,INDEX(Ranks!$1:$1048576,$A148,CC$1))","v":""},{"$f":"IF($A148=\"N/A\",Ref!$B$36,INDEX(Ranks!$1:$1048576,$A148,CD$1))","v":""},{"$f":"IF($A148=\"N/A\",Ref!$B$36,INDEX(Ranks!$1:$1048576,$A148,CE$1))","v":""},{"$f":"IF($A148=\"N/A\",Ref!$B$36,INDEX(Ranks!$1:$1048576,$A148,CF$1))","v":""},{"$f":"IF($A148=\"N/A\",Ref!$B$36,INDEX(Ranks!$1:$1048576,$A148,CG$1))","v":""},{"$f":"IF($A148=\"N/A\",Ref!$B$36,INDEX(Ranks!$1:$1048576,$A148,CH$1))","v":""},{"$f":"IF($A148=\"N/A\",Ref!$B$36,INDEX(Ranks!$1:$1048576,$A148,CI$1))","v":""},{"$f":"IF($A148=\"N/A\",Ref!$B$36,INDEX(Ranks!$1:$1048576,$A148,CJ$1))","v":""},{"$f":"IF($A148=\"N/A\",Ref!$B$36,INDEX(Ranks!$1:$1048576,$A148,CK$1))","v":""},{"$f":"IF($A148=\"N/A\",Ref!$B$36,INDEX(Ranks!$1:$1048576,$A148,CL$1))","v":""},{"$f":"IF($A148=\"N/A\",Ref!$B$36,INDEX(Ranks!$1:$1048576,$A148,CM$1))","v":""},{"$f":"IF($A148=\"N/A\",Ref!$B$36,INDEX(Ranks!$1:$1048576,$A148,CN$1))","v":""},{"$f":"IF($A148=\"N/A\",Ref!$B$36,INDEX(Ranks!$1:$1048576,$A148,CO$1))","v":""},{"$f":"IF($A148=\"N/A\",Ref!$B$36,INDEX(Ranks!$1:$1048576,$A148,CP$1))","v":""},{"$f":"IF($A148=\"N/A\",Ref!$B$36,INDEX(Ranks!$1:$1048576,$A148,CQ$1))","v":""},{"$f":"IF($A148=\"N/A\",Ref!$B$36,INDEX(Ranks!$1:$1048576,$A148,CR$1))","v":""},{"$f":"IF($A148=\"N/A\",Ref!$B$36,INDEX(Ranks!$1:$1048576,$A148,CS$1))","v":""},{"$f":"IF($A148=\"N/A\",Ref!$B$36,INDEX(Ranks!$1:$1048576,$A148,CT$1))","v":""},{"$f":"IF($A148=\"N/A\",Ref!$B$36,INDEX(Ranks!$1:$1048576,$A148,CU$1))","v":""},{"$f":"IF($A148=\"N/A\",Ref!$B$36,INDEX(Ranks!$1:$1048576,$A148,CV$1))","v":""},{"$f":"IF($A148=\"N/A\",Ref!$B$36,INDEX(Ranks!$1:$1048576,$A148,CW$1))","v":""},{"$f":"IF($A148=\"N/A\",Ref!$B$36,INDEX(Ranks!$1:$1048576,$A148,CX$1))","v":""},{"$f":"IF($A148=\"N/A\",Ref!$B$36,INDEX(Ranks!$1:$1048576,$A148,CY$1))","v":""},{"$f":"IF($A148=\"N/A\",Ref!$B$36,INDEX(Ranks!$1:$1048576,$A148,CZ$1))","v":""},{"$f":"IF($A148=\"N/A\",Ref!$B$36,INDEX(Ranks!$1:$1048576,$A148,DA$1))","v":""},{"$f":"IF($A148=\"N/A\",Ref!$B$36,INDEX(Ranks!$1:$1048576,$A148,DB$1))","v":""},{"$f":"IF($A148=\"N/A\",Ref!$B$36,INDEX(Ranks!$1:$1048576,$A148,DC$1))","v":""},{"$f":"IF($A148=\"N/A\",Ref!$B$36,INDEX(Ranks!$1:$1048576,$A148,DD$1))","v":""},{"$f":"IF($A148=\"N/A\",Ref!$B$36,INDEX(Ranks!$1:$1048576,$A148,DE$1))","v":""},{"$f":"IF($A148=\"N/A\",Ref!$B$36,INDEX(Ranks!$1:$1048576,$A148,DF$1))","v":""},{"$f":"IF($A148=\"N/A\",Ref!$B$36,INDEX(Ranks!$1:$1048576,$A148,DG$1))","v":""},{"$f":"IF($A148=\"N/A\",Ref!$B$36,INDEX(Ranks!$1:$1048576,$A148,DH$1))","v":""},{"$f":"IF($A148=\"N/A\",Ref!$B$36,INDEX(Ranks!$1:$1048576,$A148,DI$1))","v":""},{"$f":"IF($A148=\"N/A\",Ref!$B$36,INDEX(Ranks!$1:$1048576,$A148,DJ$1))","v":""},{"$f":"IF($A148=\"N/A\",Ref!$B$36,INDEX(Ranks!$1:$1048576,$A148,DK$1))","v":""},{"$f":"IF($A148=\"N/A\",Ref!$B$36,INDEX(Ranks!$1:$1048576,$A148,DL$1))","v":""},{"$f":"IF($A148=\"N/A\",Ref!$B$36,INDEX(Ranks!$1:$1048576,$A148,DM$1))","v":""},{"$f":"IF($A148=\"N/A\",Ref!$B$36,INDEX(Ranks!$1:$1048576,$A148,DN$1))","v":""},{"$f":"IF($A148=\"N/A\",Ref!$B$36,INDEX(Ranks!$1:$1048576,$A148,DO$1))","v":""},{"$f":"IF($A148=\"N/A\",Ref!$B$36,INDEX(Ranks!$1:$1048576,$A148,DP$1))","v":""},{"$f":"IF($A148=\"N/A\",Ref!$B$36,INDEX(Ranks!$1:$1048576,$A148,DQ$1))","v":""},{"$f":"IF($A148=\"N/A\",Ref!$B$36,INDEX(Ranks!$1:$1048576,$A148,DR$1))","v":""},{"$f":"IF($A148=\"N/A\",Ref!$B$36,INDEX(Ranks!$1:$1048576,$A148,DS$1))","v":""},{"$f":"IF($A148=\"N/A\",Ref!$B$36,INDEX(Ranks!$1:$1048576,$A148,DT$1))","v":""},{"$f":"IF($A148=\"N/A\",Ref!$B$36,INDEX(Ranks!$1:$1048576,$A148,DU$1))","v":""},{"$f":"IF($A148=\"N/A\",Ref!$B$36,INDEX(Ranks!$1:$1048576,$A148,DV$1))","v":""},{"$f":"IF($A148=\"N/A\",Ref!$B$36,INDEX(Ranks!$1:$1048576,$A148,DW$1))","v":""},{"$f":"IF($A148=\"N/A\",Ref!$B$36,INDEX(Ranks!$1:$1048576,$A148,DX$1))","v":""},{"$f":"IF($A148=\"N/A\",Ref!$B$36,INDEX(Ranks!$1:$1048576,$A148,DY$1))","v":""},{"$f":"IF($A148=\"N/A\",Ref!$B$36,INDEX(Ranks!$1:$1048576,$A148,DZ$1))","v":""},{"$f":"IF($A148=\"N/A\",Ref!$B$36,INDEX(Ranks!$1:$1048576,$A148,EA$1))","v":""},{"$f":"IF($A148=\"N/A\",Ref!$B$36,INDEX(Ranks!$1:$1048576,$A148,EB$1))","v":""}]
[{"$f":"IFERROR(MATCH('Portfolio Page'!L149,Ranks!L:L,0),\"N/A\")","v":"N/A"},null,{"$f":"IF($A149=\"N/A\",\"\",INDEX(Ranks!$1:$1048576,$A149,C$1))","v":""},{"$f":"IF($A149=\"N/A\",Ref!$B$36,INDEX(Ranks!$1:$1048576,$A149,D$1))","v":""},{"$f":"IF($A149=\"N/A\",Ref!$B$36,INDEX(Ranks!$1:$1048576,$A149,E$1))","v":""},{"$f":"IF($A149=\"N/A\",\"\",INDEX(Ranks!$1:$1048576,$A149,F$1))","v":""},{"$f":"IF($A149=\"N/A\",\"\",INDEX(Ranks!$1:$1048576,$A149,G$1))","v":""},{"$f":"IF($A149=\"N/A\",\"\",INDEX(Ranks!$1:$1048576,$A149,H$1))","v":""},{"$f":"IF($A149=\"N/A\",\"\",INDEX(Ranks!$1:$1048576,$A149,I$1))","v":""},{"$f":"IF($A149=\"N/A\",\"\",INDEX(Ranks!$1:$1048576,$A149,J$1))","v":""},{"$f":"IF($A149=\"N/A\",\"\",INDEX(Ranks!$1:$1048576,$A149,K$1))","v":""},null,{"$f":"IF($A149=\"N/A\",Ref!$B$36,INDEX(Ranks!$1:$1048576,$A149,M$1))","v":""},{"$f":"IF($A149=\"N/A\",Ref!$B$36,INDEX(Ranks!$1:$1048576,$A149,N$1))","v":""},{"$f":"IF($A149=\"N/A\",Ref!$B$36,INDEX(Ranks!$1:$1048576,$A149,O$1))","v":""},{"$f":"IF($A149=\"N/A\",Ref!$B$36,INDEX(Ranks!$1:$1048576,$A149,P$1))","v":""},{"$f":"IF($A149=\"N/A\",Ref!$B$36,INDEX(Ranks!$1:$1048576,$A149,Q$1))","v":""},{"$f":"IF($A149=\"N/A\",Ref!$B$36,INDEX(Ranks!$1:$1048576,$A149,R$1))","v":""},{"$f":"IF($A149=\"N/A\",Ref!$B$36,INDEX(Ranks!$1:$1048576,$A149,S$1))","v":""},{"$f":"IF($A149=\"N/A\",Ref!$B$36,INDEX(Ranks!$1:$1048576,$A149,T$1))","v":""},{"$f":"IF($A149=\"N/A\",Ref!$B$36,INDEX(Ranks!$1:$1048576,$A149,U$1))","v":""},{"$f":"IF($A149=\"N/A\",Ref!$B$36,INDEX(Ranks!$1:$1048576,$A149,V$1))","v":""},{"$f":"IF($A149=\"N/A\",Ref!$B$36,INDEX(Ranks!$1:$1048576,$A149,W$1))","v":""},{"$f":"IF($A149=\"N/A\",Ref!$B$36,INDEX(Ranks!$1:$1048576,$A149,X$1))","v":""},{"$f":"IF($A149=\"N/A\",Ref!$B$36,INDEX(Ranks!$1:$1048576,$A149,Y$1))","v":""},{"$f":"IF($A149=\"N/A\",Ref!$B$36,INDEX(Ranks!$1:$1048576,$A149,Z$1))","v":""},{"$f":"IF($A149=\"N/A\",Ref!$B$36,INDEX(Ranks!$1:$1048576,$A149,AA$1))","v":""},{"$f":"IF($A149=\"N/A\",Ref!$B$36,INDEX(Ranks!$1:$1048576,$A149,AB$1))","v":""},{"$f":"IF($A149=\"N/A\",Ref!$B$36,INDEX(Ranks!$1:$1048576,$A149,AC$1))","v":""},{"$f":"IF($A149=\"N/A\",Ref!$B$36,INDEX(Ranks!$1:$1048576,$A149,AD$1))","v":""},{"$f":"IF($A149=\"N/A\",Ref!$B$36,INDEX(Ranks!$1:$1048576,$A149,AE$1))","v":""},{"$f":"IF($A149=\"N/A\",Ref!$B$36,INDEX(Ranks!$1:$1048576,$A149,AF$1))","v":""},{"$f":"IF($A149=\"N/A\",Ref!$B$36,INDEX(Ranks!$1:$1048576,$A149,AG$1))","v":""},{"$f":"IF($A149=\"N/A\",Ref!$B$36,INDEX(Ranks!$1:$1048576,$A149,AH$1))","v":""},{"$f":"IF($A149=\"N/A\",Ref!$B$36,INDEX(Ranks!$1:$1048576,$A149,AI$1))","v":""},{"$f":"IF($A149=\"N/A\",Ref!$B$36,INDEX(Ranks!$1:$1048576,$A149,AJ$1))","v":""},{"$f":"IF($A149=\"N/A\",Ref!$B$36,INDEX(Ranks!$1:$1048576,$A149,AK$1))","v":""},{"$f":"IF($A149=\"N/A\",Ref!$B$36,INDEX(Ranks!$1:$1048576,$A149,AL$1))","v":""},{"$f":"IF($A149=\"N/A\",Ref!$B$36,INDEX(Ranks!$1:$1048576,$A149,AM$1))","v":""},{"$f":"IF($A149=\"N/A\",Ref!$B$36,INDEX(Ranks!$1:$1048576,$A149,AN$1))","v":""},{"$f":"IF($A149=\"N/A\",Ref!$B$36,INDEX(Ranks!$1:$1048576,$A149,AO$1))","v":""},{"$f":"IF($A149=\"N/A\",Ref!$B$36,INDEX(Ranks!$1:$1048576,$A149,AP$1))","v":""},{"$f":"IF($A149=\"N/A\",Ref!$B$36,INDEX(Ranks!$1:$1048576,$A149,AQ$1))","v":""},{"$f":"IF($A149=\"N/A\",Ref!$B$36,INDEX(Ranks!$1:$1048576,$A149,AR$1))","v":""},{"$f":"IF($A149=\"N/A\",Ref!$B$36,INDEX(Ranks!$1:$1048576,$A149,AS$1))","v":""},{"$f":"IF($A149=\"N/A\",Ref!$B$36,INDEX(Ranks!$1:$1048576,$A149,AT$1))","v":""},{"$f":"IF($A149=\"N/A\",Ref!$B$36,INDEX(Ranks!$1:$1048576,$A149,AU$1))","v":""},{"$f":"IF($A149=\"N/A\",Ref!$B$36,INDEX(Ranks!$1:$1048576,$A149,AV$1))","v":""},{"$f":"IF($A149=\"N/A\",Ref!$B$36,INDEX(Ranks!$1:$1048576,$A149,AW$1))","v":""},{"$f":"IF($A149=\"N/A\",Ref!$B$36,INDEX(Ranks!$1:$1048576,$A149,AX$1))","v":""},{"$f":"IF($A149=\"N/A\",Ref!$B$36,INDEX(Ranks!$1:$1048576,$A149,AY$1))","v":""},{"$f":"IF($A149=\"N/A\",Ref!$B$36,INDEX(Ranks!$1:$1048576,$A149,AZ$1))","v":""},{"$f":"IF($A149=\"N/A\",Ref!$B$36,INDEX(Ranks!$1:$1048576,$A149,BA$1))","v":""},{"$f":"IF($A149=\"N/A\",Ref!$B$36,INDEX(Ranks!$1:$1048576,$A149,BB$1))","v":""},{"$f":"IF($A149=\"N/A\",Ref!$B$36,INDEX(Ranks!$1:$1048576,$A149,BC$1))","v":""},{"$f":"IF($A149=\"N/A\",Ref!$B$36,INDEX(Ranks!$1:$1048576,$A149,BD$1))","v":""},{"$f":"IF($A149=\"N/A\",Ref!$B$36,INDEX(Ranks!$1:$1048576,$A149,BE$1))","v":""},{"$f":"IF($A149=\"N/A\",Ref!$B$36,INDEX(Ranks!$1:$1048576,$A149,BF$1))","v":""},{"$f":"IF($A149=\"N/A\",Ref!$B$36,INDEX(Ranks!$1:$1048576,$A149,BG$1))","v":""},{"$f":"IF($A149=\"N/A\",Ref!$B$36,INDEX(Ranks!$1:$1048576,$A149,BH$1))","v":""},{"$f":"IF($A149=\"N/A\",Ref!$B$36,INDEX(Ranks!$1:$1048576,$A149,BI$1))","v":""},{"$f":"IF($A149=\"N/A\",Ref!$B$36,INDEX(Ranks!$1:$1048576,$A149,BJ$1))","v":""},{"$f":"IF($A149=\"N/A\",Ref!$B$36,INDEX(Ranks!$1:$1048576,$A149,BK$1))","v":""},{"$f":"IF($A149=\"N/A\",Ref!$B$36,INDEX(Ranks!$1:$1048576,$A149,BL$1))","v":""},{"$f":"IF($A149=\"N/A\",Ref!$B$36,INDEX(Ranks!$1:$1048576,$A149,BM$1))","v":""},{"$f":"IF($A149=\"N/A\",Ref!$B$36,INDEX(Ranks!$1:$1048576,$A149,BN$1))","v":""},{"$f":"IF($A149=\"N/A\",Ref!$B$36,INDEX(Ranks!$1:$1048576,$A149,BO$1))","v":""},{"$f":"IF($A149=\"N/A\",Ref!$B$36,INDEX(Ranks!$1:$1048576,$A149,BP$1))","v":""},{"$f":"IF($A149=\"N/A\",Ref!$B$36,INDEX(Ranks!$1:$1048576,$A149,BQ$1))","v":""},{"$f":"IF($A149=\"N/A\",Ref!$B$36,INDEX(Ranks!$1:$1048576,$A149,BR$1))","v":""},{"$f":"IF($A149=\"N/A\",Ref!$B$36,INDEX(Ranks!$1:$1048576,$A149,BS$1))","v":""},{"$f":"IF($A149=\"N/A\",Ref!$B$36,INDEX(Ranks!$1:$1048576,$A149,BT$1))","v":""},{"$f":"IF($A149=\"N/A\",Ref!$B$36,INDEX(Ranks!$1:$1048576,$A149,BU$1))","v":""},{"$f":"IF($A149=\"N/A\",Ref!$B$36,INDEX(Ranks!$1:$1048576,$A149,BV$1))","v":""},{"$f":"IF($A149=\"N/A\",Ref!$B$36,INDEX(Ranks!$1:$1048576,$A149,BW$1))","v":""},{"$f":"IF($A149=\"N/A\",Ref!$B$36,INDEX(Ranks!$1:$1048576,$A149,BX$1))","v":""},{"$f":"IF($A149=\"N/A\",Ref!$B$36,INDEX(Ranks!$1:$1048576,$A149,BY$1))","v":""},{"$f":"IF($A149=\"N/A\",Ref!$B$36,INDEX(Ranks!$1:$1048576,$A149,BZ$1))","v":""},{"$f":"IF($A149=\"N/A\",Ref!$B$36,INDEX(Ranks!$1:$1048576,$A149,CA$1))","v":""},{"$f":"IF($A149=\"N/A\",Ref!$B$36,INDEX(Ranks!$1:$1048576,$A149,CB$1))","v":""},{"$f":"IF($A149=\"N/A\",Ref!$B$36,INDEX(Ranks!$1:$1048576,$A149,CC$1))","v":""},{"$f":"IF($A149=\"N/A\",Ref!$B$36,INDEX(Ranks!$1:$1048576,$A149,CD$1))","v":""},{"$f":"IF($A149=\"N/A\",Ref!$B$36,INDEX(Ranks!$1:$1048576,$A149,CE$1))","v":""},{"$f":"IF($A149=\"N/A\",Ref!$B$36,INDEX(Ranks!$1:$1048576,$A149,CF$1))","v":""},{"$f":"IF($A149=\"N/A\",Ref!$B$36,INDEX(Ranks!$1:$1048576,$A149,CG$1))","v":""},{"$f":"IF($A149=\"N/A\",Ref!$B$36,INDEX(Ranks!$1:$1048576,$A149,CH$1))","v":""},{"$f":"IF($A149=\"N/A\",Ref!$B$36,INDEX(Ranks!$1:$1048576,$A149,CI$1))","v":""},{"$f":"IF($A149=\"N/A\",Ref!$B$36,INDEX(Ranks!$1:$1048576,$A149,CJ$1))","v":""},{"$f":"IF($A149=\"N/A\",Ref!$B$36,INDEX(Ranks!$1:$1048576,$A149,CK$1))","v":""},{"$f":"IF($A149=\"N/A\",Ref!$B$36,INDEX(Ranks!$1:$1048576,$A149,CL$1))","v":""},{"$f":"IF($A149=\"N/A\",Ref!$B$36,INDEX(Ranks!$1:$1048576,$A149,CM$1))","v":""},{"$f":"IF($A149=\"N/A\",Ref!$B$36,INDEX(Ranks!$1:$1048576,$A149,CN$1))","v":""},{"$f":"IF($A149=\"N/A\",Ref!$B$36,INDEX(Ranks!$1:$1048576,$A149,CO$1))","v":""},{"$f":"IF($A149=\"N/A\",Ref!$B$36,INDEX(Ranks!$1:$1048576,$A149,CP$1))","v":""},{"$f":"IF($A149=\"N/A\",Ref!$B$36,INDEX(Ranks!$1:$1048576,$A149,CQ$1))","v":""},{"$f":"IF($A149=\"N/A\",Ref!$B$36,INDEX(Ranks!$1:$1048576,$A149,CR$1))","v":""},{"$f":"IF($A149=\"N/A\",Ref!$B$36,INDEX(Ranks!$1:$1048576,$A149,CS$1))","v":""},{"$f":"IF($A149=\"N/A\",Ref!$B$36,INDEX(Ranks!$1:$1048576,$A149,CT$1))","v":""},{"$f":"IF($A149=\"N/A\",Ref!$B$36,INDEX(Ranks!$1:$1048576,$A149,CU$1))","v":""},{"$f":"IF($A149=\"N/A\",Ref!$B$36,INDEX(Ranks!$1:$1048576,$A149,CV$1))","v":""},{"$f":"IF($A149=\"N/A\",Ref!$B$36,INDEX(Ranks!$1:$1048576,$A149,CW$1))","v":""},{"$f":"IF($A149=\"N/A\",Ref!$B$36,INDEX(Ranks!$1:$1048576,$A149,CX$1))","v":""},{"$f":"IF($A149=\"N/A\",Ref!$B$36,INDEX(Ranks!$1:$1048576,$A149,CY$1))","v":""},{"$f":"IF($A149=\"N/A\",Ref!$B$36,INDEX(Ranks!$1:$1048576,$A149,CZ$1))","v":""},{"$f":"IF($A149=\"N/A\",Ref!$B$36,INDEX(Ranks!$1:$1048576,$A149,DA$1))","v":""},{"$f":"IF($A149=\"N/A\",Ref!$B$36,INDEX(Ranks!$1:$1048576,$A149,DB$1))","v":""},{"$f":"IF($A149=\"N/A\",Ref!$B$36,INDEX(Ranks!$1:$1048576,$A149,DC$1))","v":""},{"$f":"IF($A149=\"N/A\",Ref!$B$36,INDEX(Ranks!$1:$1048576,$A149,DD$1))","v":""},{"$f":"IF($A149=\"N/A\",Ref!$B$36,INDEX(Ranks!$1:$1048576,$A149,DE$1))","v":""},{"$f":"IF($A149=\"N/A\",Ref!$B$36,INDEX(Ranks!$1:$1048576,$A149,DF$1))","v":""},{"$f":"IF($A149=\"N/A\",Ref!$B$36,INDEX(Ranks!$1:$1048576,$A149,DG$1))","v":""},{"$f":"IF($A149=\"N/A\",Ref!$B$36,INDEX(Ranks!$1:$1048576,$A149,DH$1))","v":""},{"$f":"IF($A149=\"N/A\",Ref!$B$36,INDEX(Ranks!$1:$1048576,$A149,DI$1))","v":""},{"$f":"IF($A149=\"N/A\",Ref!$B$36,INDEX(Ranks!$1:$1048576,$A149,DJ$1))","v":""},{"$f":"IF($A149=\"N/A\",Ref!$B$36,INDEX(Ranks!$1:$1048576,$A149,DK$1))","v":""},{"$f":"IF($A149=\"N/A\",Ref!$B$36,INDEX(Ranks!$1:$1048576,$A149,DL$1))","v":""},{"$f":"IF($A149=\"N/A\",Ref!$B$36,INDEX(Ranks!$1:$1048576,$A149,DM$1))","v":""},{"$f":"IF($A149=\"N/A\",Ref!$B$36,INDEX(Ranks!$1:$1048576,$A149,DN$1))","v":""},{"$f":"IF($A149=\"N/A\",Ref!$B$36,INDEX(Ranks!$1:$1048576,$A149,DO$1))","v":""},{"$f":"IF($A149=\"N/A\",Ref!$B$36,INDEX(Ranks!$1:$1048576,$A149,DP$1))","v":""},{"$f":"IF($A149=\"N/A\",Ref!$B$36,INDEX(Ranks!$1:$1048576,$A149,DQ$1))","v":""},{"$f":"IF($A149=\"N/A\",Ref!$B$36,INDEX(Ranks!$1:$1048576,$A149,DR$1))","v":""},{"$f":"IF($A149=\"N/A\",Ref!$B$36,INDEX(Ranks!$1:$1048576,$A149,DS$1))","v":""},{"$f":"IF($A149=\"N/A\",Ref!$B$36,INDEX(Ranks!$1:$1048576,$A149,DT$1))","v":""},{"$f":"IF($A149=\"N/A\",Ref!$B$36,INDEX(Ranks!$1:$1048576,$A149,DU$1))","v":""},{"$f":"IF($A149=\"N/A\",Ref!$B$36,INDEX(Ranks!$1:$1048576,$A149,DV$1))","v":""},{"$f":"IF($A149=\"N/A\",Ref!$B$36,INDEX(Ranks!$1:$1048576,$A149,DW$1))","v":""},{"$f":"IF($A149=\"N/A\",Ref!$B$36,INDEX(Ranks!$1:$1048576,$A149,DX$1))","v":""},{"$f":"IF($A149=\"N/A\",Ref!$B$36,INDEX(Ranks!$1:$1048576,$A149,DY$1))","v":""},{"$f":"IF($A149=\"N/A\",Ref!$B$36,INDEX(Ranks!$1:$1048576,$A149,DZ$1))","v":""},{"$f":"IF($A149=\"N/A\",Ref!$B$36,INDEX(Ranks!$1:$1048576,$A149,EA$1))","v":""},{"$f":"IF($A149=\"N/A\",Ref!$B$36,INDEX(Ranks!$1:$1048576,$A149,EB$1))","v":""}]
[{"$f":"IFERROR(MATCH('Portfolio Page'!L150,Ranks!L:L,0),\"N/A\")","v":"N/A"},null,{"$f":"IF($A150=\"N/A\",\"\",INDEX(Ranks!$1:$1048576,$A150,C$1))","v":""},{"$f":"IF($A150=\"N/A\",Ref!$B$36,INDEX(Ranks!$1:$1048576,$A150,D$1))","v":""},{"$f":"IF($A150=\"N/A\",Ref!$B$36,INDEX(Ranks!$1:$1048576,$A150,E$1))","v":""},{"$f":"IF($A150=\"N/A\",\"\",INDEX(Ranks!$1:$1048576,$A150,F$1))","v":""},{"$f":"IF($A150=\"N/A\",\"\",INDEX(Ranks!$1:$1048576,$A150,G$1))","v":""},{"$f":"IF($A150=\"N/A\",\"\",INDEX(Ranks!$1:$1048576,$A150,H$1))","v":""},{"$f":"IF($A150=\"N/A\",\"\",INDEX(Ranks!$1:$1048576,$A150,I$1))","v":""},{"$f":"IF($A150=\"N/A\",\"\",INDEX(Ranks!$1:$1048576,$A150,J$1))","v":""},{"$f":"IF($A150=\"N/A\",\"\",INDEX(Ranks!$1:$1048576,$A150,K$1))","v":""},null,{"$f":"IF($A150=\"N/A\",Ref!$B$36,INDEX(Ranks!$1:$1048576,$A150,M$1))","v":""},{"$f":"IF($A150=\"N/A\",Ref!$B$36,INDEX(Ranks!$1:$1048576,$A150,N$1))","v":""},{"$f":"IF($A150=\"N/A\",Ref!$B$36,INDEX(Ranks!$1:$1048576,$A150,O$1))","v":""},{"$f":"IF($A150=\"N/A\",Ref!$B$36,INDEX(Ranks!$1:$1048576,$A150,P$1))","v":""},{"$f":"IF($A150=\"N/A\",Ref!$B$36,INDEX(Ranks!$1:$1048576,$A150,Q$1))","v":""},{"$f":"IF($A150=\"N/A\",Ref!$B$36,INDEX(Ranks!$1:$1048576,$A150,R$1))","v":""},{"$f":"IF($A150=\"N/A\",Ref!$B$36,INDEX(Ranks!$1:$1048576,$A150,S$1))","v":""},{"$f":"IF($A150=\"N/A\",Ref!$B$36,INDEX(Ranks!$1:$1048576,$A150,T$1))","v":""},{"$f":"IF($A150=\"N/A\",Ref!$B$36,INDEX(Ranks!$1:$1048576,$A150,U$1))","v":""},{"$f":"IF($A150=\"N/A\",Ref!$B$36,INDEX(Ranks!$1:$1048576,$A150,V$1))","v":""},{"$f":"IF($A150=\"N/A\",Ref!$B$36,INDEX(Ranks!$1:$1048576,$A150,W$1))","v":""},{"$f":"IF($A150=\"N/A\",Ref!$B$36,INDEX(Ranks!$1:$1048576,$A150,X$1))","v":""},{"$f":"IF($A150=\"N/A\",Ref!$B$36,INDEX(Ranks!$1:$1048576,$A150,Y$1))","v":""},{"$f":"IF($A150=\"N/A\",Ref!$B$36,INDEX(Ranks!$1:$1048576,$A150,Z$1))","v":""},{"$f":"IF($A150=\"N/A\",Ref!$B$36,INDEX(Ranks!$1:$1048576,$A150,AA$1))","v":""},{"$f":"IF($A150=\"N/A\",Ref!$B$36,INDEX(Ranks!$1:$1048576,$A150,AB$1))","v":""},{"$f":"IF($A150=\"N/A\",Ref!$B$36,INDEX(Ranks!$1:$1048576,$A150,AC$1))","v":""},{"$f":"IF($A150=\"N/A\",Ref!$B$36,INDEX(Ranks!$1:$1048576,$A150,AD$1))","v":""},{"$f":"IF($A150=\"N/A\",Ref!$B$36,INDEX(Ranks!$1:$1048576,$A150,AE$1))","v":""},{"$f":"IF($A150=\"N/A\",Ref!$B$36,INDEX(Ranks!$1:$1048576,$A150,AF$1))","v":""},{"$f":"IF($A150=\"N/A\",Ref!$B$36,INDEX(Ranks!$1:$1048576,$A150,AG$1))","v":""},{"$f":"IF($A150=\"N/A\",Ref!$B$36,INDEX(Ranks!$1:$1048576,$A150,AH$1))","v":""},{"$f":"IF($A150=\"N/A\",Ref!$B$36,INDEX(Ranks!$1:$1048576,$A150,AI$1))","v":""},{"$f":"IF($A150=\"N/A\",Ref!$B$36,INDEX(Ranks!$1:$1048576,$A150,AJ$1))","v":""},{"$f":"IF($A150=\"N/A\",Ref!$B$36,INDEX(Ranks!$1:$1048576,$A150,AK$1))","v":""},{"$f":"IF($A150=\"N/A\",Ref!$B$36,INDEX(Ranks!$1:$1048576,$A150,AL$1))","v":""},{"$f":"IF($A150=\"N/A\",Ref!$B$36,INDEX(Ranks!$1:$1048576,$A150,AM$1))","v":""},{"$f":"IF($A150=\"N/A\",Ref!$B$36,INDEX(Ranks!$1:$1048576,$A150,AN$1))","v":""},{"$f":"IF($A150=\"N/A\",Ref!$B$36,INDEX(Ranks!$1:$1048576,$A150,AO$1))","v":""},{"$f":"IF($A150=\"N/A\",Ref!$B$36,INDEX(Ranks!$1:$1048576,$A150,AP$1))","v":""},{"$f":"IF($A150=\"N/A\",Ref!$B$36,INDEX(Ranks!$1:$1048576,$A150,AQ$1))","v":""},{"$f":"IF($A150=\"N/A\",Ref!$B$36,INDEX(Ranks!$1:$1048576,$A150,AR$1))","v":""},{"$f":"IF($A150=\"N/A\",Ref!$B$36,INDEX(Ranks!$1:$1048576,$A150,AS$1))","v":""},{"$f":"IF($A150=\"N/A\",Ref!$B$36,INDEX(Ranks!$1:$1048576,$A150,AT$1))","v":""},{"$f":"IF($A150=\"N/A\",Ref!$B$36,INDEX(Ranks!$1:$1048576,$A150,AU$1))","v":""},{"$f":"IF($A150=\"N/A\",Ref!$B$36,INDEX(Ranks!$1:$1048576,$A150,AV$1))","v":""},{"$f":"IF($A150=\"N/A\",Ref!$B$36,INDEX(Ranks!$1:$1048576,$A150,AW$1))","v":""},{"$f":"IF($A150=\"N/A\",Ref!$B$36,INDEX(Ranks!$1:$1048576,$A150,AX$1))","v":""},{"$f":"IF($A150=\"N/A\",Ref!$B$36,INDEX(Ranks!$1:$1048576,$A150,AY$1))","v":""},{"$f":"IF($A150=\"N/A\",Ref!$B$36,INDEX(Ranks!$1:$1048576,$A150,AZ$1))","v":""},{"$f":"IF($A150=\"N/A\",Ref!$B$36,INDEX(Ranks!$1:$1048576,$A150,BA$1))","v":""},{"$f":"IF($A150=\"N/A\",Ref!$B$36,INDEX(Ranks!$1:$1048576,$A150,BB$1))","v":""},{"$f":"IF($A150=\"N/A\",Ref!$B$36,INDEX(Ranks!$1:$1048576,$A150,BC$1))","v":""},{"$f":"IF($A150=\"N/A\",Ref!$B$36,INDEX(Ranks!$1:$1048576,$A150,BD$1))","v":""},{"$f":"IF($A150=\"N/A\",Ref!$B$36,INDEX(Ranks!$1:$1048576,$A150,BE$1))","v":""},{"$f":"IF($A150=\"N/A\",Ref!$B$36,INDEX(Ranks!$1:$1048576,$A150,BF$1))","v":""},{"$f":"IF($A150=\"N/A\",Ref!$B$36,INDEX(Ranks!$1:$1048576,$A150,BG$1))","v":""},{"$f":"IF($A150=\"N/A\",Ref!$B$36,INDEX(Ranks!$1:$1048576,$A150,BH$1))","v":""},{"$f":"IF($A150=\"N/A\",Ref!$B$36,INDEX(Ranks!$1:$1048576,$A150,BI$1))","v":""},{"$f":"IF($A150=\"N/A\",Ref!$B$36,INDEX(Ranks!$1:$1048576,$A150,BJ$1))","v":""},{"$f":"IF($A150=\"N/A\",Ref!$B$36,INDEX(Ranks!$1:$1048576,$A150,BK$1))","v":""},{"$f":"IF($A150=\"N/A\",Ref!$B$36,INDEX(Ranks!$1:$1048576,$A150,BL$1))","v":""},{"$f":"IF($A150=\"N/A\",Ref!$B$36,INDEX(Ranks!$1:$1048576,$A150,BM$1))","v":""},{"$f":"IF($A150=\"N/A\",Ref!$B$36,INDEX(Ranks!$1:$1048576,$A150,BN$1))","v":""},{"$f":"IF($A150=\"N/A\",Ref!$B$36,INDEX(Ranks!$1:$1048576,$A150,BO$1))","v":""},{"$f":"IF($A150=\"N/A\",Ref!$B$36,INDEX(Ranks!$1:$1048576,$A150,BP$1))","v":""},{"$f":"IF($A150=\"N/A\",Ref!$B$36,INDEX(Ranks!$1:$1048576,$A150,BQ$1))","v":""},{"$f":"IF($A150=\"N/A\",Ref!$B$36,INDEX(Ranks!$1:$1048576,$A150,BR$1))","v":""},{"$f":"IF($A150=\"N/A\",Ref!$B$36,INDEX(Ranks!$1:$1048576,$A150,BS$1))","v":""},{"$f":"IF($A150=\"N/A\",Ref!$B$36,INDEX(Ranks!$1:$1048576,$A150,BT$1))","v":""},{"$f":"IF($A150=\"N/A\",Ref!$B$36,INDEX(Ranks!$1:$1048576,$A150,BU$1))","v":""},{"$f":"IF($A150=\"N/A\",Ref!$B$36,INDEX(Ranks!$1:$1048576,$A150,BV$1))","v":""},{"$f":"IF($A150=\"N/A\",Ref!$B$36,INDEX(Ranks!$1:$1048576,$A150,BW$1))","v":""},{"$f":"IF($A150=\"N/A\",Ref!$B$36,INDEX(Ranks!$1:$1048576,$A150,BX$1))","v":""},{"$f":"IF($A150=\"N/A\",Ref!$B$36,INDEX(Ranks!$1:$1048576,$A150,BY$1))","v":""},{"$f":"IF($A150=\"N/A\",Ref!$B$36,INDEX(Ranks!$1:$1048576,$A150,BZ$1))","v":""},{"$f":"IF($A150=\"N/A\",Ref!$B$36,INDEX(Ranks!$1:$1048576,$A150,CA$1))","v":""},{"$f":"IF($A150=\"N/A\",Ref!$B$36,INDEX(Ranks!$1:$1048576,$A150,CB$1))","v":""},{"$f":"IF($A150=\"N/A\",Ref!$B$36,INDEX(Ranks!$1:$1048576,$A150,CC$1))","v":""},{"$f":"IF($A150=\"N/A\",Ref!$B$36,INDEX(Ranks!$1:$1048576,$A150,CD$1))","v":""},{"$f":"IF($A150=\"N/A\",Ref!$B$36,INDEX(Ranks!$1:$1048576,$A150,CE$1))","v":""},{"$f":"IF($A150=\"N/A\",Ref!$B$36,INDEX(Ranks!$1:$1048576,$A150,CF$1))","v":""},{"$f":"IF($A150=\"N/A\",Ref!$B$36,INDEX(Ranks!$1:$1048576,$A150,CG$1))","v":""},{"$f":"IF($A150=\"N/A\",Ref!$B$36,INDEX(Ranks!$1:$1048576,$A150,CH$1))","v":""},{"$f":"IF($A150=\"N/A\",Ref!$B$36,INDEX(Ranks!$1:$1048576,$A150,CI$1))","v":""},{"$f":"IF($A150=\"N/A\",Ref!$B$36,INDEX(Ranks!$1:$1048576,$A150,CJ$1))","v":""},{"$f":"IF($A150=\"N/A\",Ref!$B$36,INDEX(Ranks!$1:$1048576,$A150,CK$1))","v":""},{"$f":"IF($A150=\"N/A\",Ref!$B$36,INDEX(Ranks!$1:$1048576,$A150,CL$1))","v":""},{"$f":"IF($A150=\"N/A\",Ref!$B$36,INDEX(Ranks!$1:$1048576,$A150,CM$1))","v":""},{"$f":"IF($A150=\"N/A\",Ref!$B$36,INDEX(Ranks!$1:$1048576,$A150,CN$1))","v":""},{"$f":"IF($A150=\"N/A\",Ref!$B$36,INDEX(Ranks!$1:$1048576,$A150,CO$1))","v":""},{"$f":"IF($A150=\"N/A\",Ref!$B$36,INDEX(Ranks!$1:$1048576,$A150,CP$1))","v":""},{"$f":"IF($A150=\"N/A\",Ref!$B$36,INDEX(Ranks!$1:$1048576,$A150,CQ$1))","v":""},{"$f":"IF($A150=\"N/A\",Ref!$B$36,INDEX(Ranks!$1:$1048576,$A150,CR$1))","v":""},{"$f":"IF($A150=\"N/A\",Ref!$B$36,INDEX(Ranks!$1:$1048576,$A150,CS$1))","v":""},{"$f":"IF($A150=\"N/A\",Ref!$B$36,INDEX(Ranks!$1:$1048576,$A150,CT$1))","v":""},{"$f":"IF($A150=\"N/A\",Ref!$B$36,INDEX(Ranks!$1:$1048576,$A150,CU$1))","v":""},{"$f":"IF($A150=\"N/A\",Ref!$B$36,INDEX(Ranks!$1:$1048576,$A150,CV$1))","v":""},{"$f":"IF($A150=\"N/A\",Ref!$B$36,INDEX(Ranks!$1:$1048576,$A150,CW$1))","v":""},{"$f":"IF($A150=\"N/A\",Ref!$B$36,INDEX(Ranks!$1:$1048576,$A150,CX$1))","v":""},{"$f":"IF($A150=\"N/A\",Ref!$B$36,INDEX(Ranks!$1:$1048576,$A150,CY$1))","v":""},{"$f":"IF($A150=\"N/A\",Ref!$B$36,INDEX(Ranks!$1:$1048576,$A150,CZ$1))","v":""},{"$f":"IF($A150=\"N/A\",Ref!$B$36,INDEX(Ranks!$1:$1048576,$A150,DA$1))","v":""},{"$f":"IF($A150=\"N/A\",Ref!$B$36,INDEX(Ranks!$1:$1048576,$A150,DB$1))","v":""},{"$f":"IF($A150=\"N/A\",Ref!$B$36,INDEX(Ranks!$1:$1048576,$A150,DC$1))","v":""},{"$f":"IF($A150=\"N/A\",Ref!$B$36,INDEX(Ranks!$1:$1048576,$A150,DD$1))","v":""},{"$f":"IF($A150=\"N/A\",Ref!$B$36,INDEX(Ranks!$1:$1048576,$A150,DE$1))","v":""},{"$f":"IF($A150=\"N/A\",Ref!$B$36,INDEX(Ranks!$1:$1048576,$A150,DF$1))","v":""},{"$f":"IF($A150=\"N/A\",Ref!$B$36,INDEX(Ranks!$1:$1048576,$A150,DG$1))","v":""},{"$f":"IF($A150=\"N/A\",Ref!$B$36,INDEX(Ranks!$1:$1048576,$A150,DH$1))","v":""},{"$f":"IF($A150=\"N/A\",Ref!$B$36,INDEX(Ranks!$1:$1048576,$A150,DI$1))","v":""},{"$f":"IF($A150=\"N/A\",Ref!$B$36,INDEX(Ranks!$1:$1048576,$A150,DJ$1))","v":""},{"$f":"IF($A150=\"N/A\",Ref!$B$36,INDEX(Ranks!$1:$1048576,$A150,DK$1))","v":""},{"$f":"IF($A150=\"N/A\",Ref!$B$36,INDEX(Ranks!$1:$1048576,$A150,DL$1))","v":""},{"$f":"IF($A150=\"N/A\",Ref!$B$36,INDEX(Ranks!$1:$1048576,$A150,DM$1))","v":""},{"$f":"IF($A150=\"N/A\",Ref!$B$36,INDEX(Ranks!$1:$1048576,$A150,DN$1))","v":""},{"$f":"IF($A150=\"N/A\",Ref!$B$36,INDEX(Ranks!$1:$1048576,$A150,DO$1))","v":""},{"$f":"IF($A150=\"N/A\",Ref!$B$36,INDEX(Ranks!$1:$1048576,$A150,DP$1))","v":""},{"$f":"IF($A150=\"N/A\",Ref!$B$36,INDEX(Ranks!$1:$1048576,$A150,DQ$1))","v":""},{"$f":"IF($A150=\"N/A\",Ref!$B$36,INDEX(Ranks!$1:$1048576,$A150,DR$1))","v":""},{"$f":"IF($A150=\"N/A\",Ref!$B$36,INDEX(Ranks!$1:$1048576,$A150,DS$1))","v":""},{"$f":"IF($A150=\"N/A\",Ref!$B$36,INDEX(Ranks!$1:$1048576,$A150,DT$1))","v":""},{"$f":"IF($A150=\"N/A\",Ref!$B$36,INDEX(Ranks!$1:$1048576,$A150,DU$1))","v":""},{"$f":"IF($A150=\"N/A\",Ref!$B$36,INDEX(Ranks!$1:$1048576,$A150,DV$1))","v":""},{"$f":"IF($A150=\"N/A\",Ref!$B$36,INDEX(Ranks!$1:$1048576,$A150,DW$1))","v":""},{"$f":"IF($A150=\"N/A\",Ref!$B$36,INDEX(Ranks!$1:$1048576,$A150,DX$1))","v":""},{"$f":"IF($A150=\"N/A\",Ref!$B$36,INDEX(Ranks!$1:$1048576,$A150,DY$1))","v":""},{"$f":"IF($A150=\"N/A\",Ref!$B$36,INDEX(Ranks!$1:$1048576,$A150,DZ$1))","v":""},{"$f":"IF($A150=\"N/A\",Ref!$B$36,INDEX(Ranks!$1:$1048576,$A150,EA$1))","v":""},{"$f":"IF($A150=\"N/A\",Ref!$B$36,INDEX(Ranks!$1:$1048576,$A150,EB$1))","v":""}]
[{"$f":"IFERROR(MATCH('Portfolio Page'!L151,Ranks!L:L,0),\"N/A\")","v":"N/A"},null,{"$f":"IF($A151=\"N/A\",\"\",INDEX(Ranks!$1:$1048576,$A151,C$1))","v":""},{"$f":"IF($A151=\"N/A\",Ref!$B$36,INDEX(Ranks!$1:$1048576,$A151,D$1))","v":""},{"$f":"IF($A151=\"N/A\",Ref!$B$36,INDEX(Ranks!$1:$1048576,$A151,E$1))","v":""},{"$f":"IF($A151=\"N/A\",\"\",INDEX(Ranks!$1:$1048576,$A151,F$1))","v":""},{"$f":"IF($A151=\"N/A\",\"\",INDEX(Ranks!$1:$1048576,$A151,G$1))","v":""},{"$f":"IF($A151=\"N/A\",\"\",INDEX(Ranks!$1:$1048576,$A151,H$1))","v":""},{"$f":"IF($A151=\"N/A\",\"\",INDEX(Ranks!$1:$1048576,$A151,I$1))","v":""},{"$f":"IF($A151=\"N/A\",\"\",INDEX(Ranks!$1:$1048576,$A151,J$1))","v":""},{"$f":"IF($A151=\"N/A\",\"\",INDEX(Ranks!$1:$1048576,$A151,K$1))","v":""},null,{"$f":"IF($A151=\"N/A\",Ref!$B$36,INDEX(Ranks!$1:$1048576,$A151,M$1))","v":""},{"$f":"IF($A151=\"N/A\",Ref!$B$36,INDEX(Ranks!$1:$1048576,$A151,N$1))","v":""},{"$f":"IF($A151=\"N/A\",Ref!$B$36,INDEX(Ranks!$1:$1048576,$A151,O$1))","v":""},{"$f":"IF($A151=\"N/A\",Ref!$B$36,INDEX(Ranks!$1:$1048576,$A151,P$1))","v":""},{"$f":"IF($A151=\"N/A\",Ref!$B$36,INDEX(Ranks!$1:$1048576,$A151,Q$1))","v":""},{"$f":"IF($A151=\"N/A\",Ref!$B$36,INDEX(Ranks!$1:$1048576,$A151,R$1))","v":""},{"$f":"IF($A151=\"N/A\",Ref!$B$36,INDEX(Ranks!$1:$1048576,$A151,S$1))","v":""},{"$f":"IF($A151=\"N/A\",Ref!$B$36,INDEX(Ranks!$1:$1048576,$A151,T$1))","v":""},{"$f":"IF($A151=\"N/A\",Ref!$B$36,INDEX(Ranks!$1:$1048576,$A151,U$1))","v":""},{"$f":"IF($A151=\"N/A\",Ref!$B$36,INDEX(Ranks!$1:$1048576,$A151,V$1))","v":""},{"$f":"IF($A151=\"N/A\",Ref!$B$36,INDEX(Ranks!$1:$1048576,$A151,W$1))","v":""},{"$f":"IF($A151=\"N/A\",Ref!$B$36,INDEX(Ranks!$1:$1048576,$A151,X$1))","v":""},{"$f":"IF($A151=\"N/A\",Ref!$B$36,INDEX(Ranks!$1:$1048576,$A151,Y$1))","v":""},{"$f":"IF($A151=\"N/A\",Ref!$B$36,INDEX(Ranks!$1:$1048576,$A151,Z$1))","v":""},{"$f":"IF($A151=\"N/A\",Ref!$B$36,INDEX(Ranks!$1:$1048576,$A151,AA$1))","v":""},{"$f":"IF($A151=\"N/A\",Ref!$B$36,INDEX(Ranks!$1:$1048576,$A151,AB$1))","v":""},{"$f":"IF($A151=\"N/A\",Ref!$B$36,INDEX(Ranks!$1:$1048576,$A151,AC$1))","v":""},{"$f":"IF($A151=\"N/A\",Ref!$B$36,INDEX(Ranks!$1:$1048576,$A151,AD$1))","v":""},{"$f":"IF($A151=\"N/A\",Ref!$B$36,INDEX(Ranks!$1:$1048576,$A151,AE$1))","v":""},{"$f":"IF($A151=\"N/A\",Ref!$B$36,INDEX(Ranks!$1:$1048576,$A151,AF$1))","v":""},{"$f":"IF($A151=\"N/A\",Ref!$B$36,INDEX(Ranks!$1:$1048576,$A151,AG$1))","v":""},{"$f":"IF($A151=\"N/A\",Ref!$B$36,INDEX(Ranks!$1:$1048576,$A151,AH$1))","v":""},{"$f":"IF($A151=\"N/A\",Ref!$B$36,INDEX(Ranks!$1:$1048576,$A151,AI$1))","v":""},{"$f":"IF($A151=\"N/A\",Ref!$B$36,INDEX(Ranks!$1:$1048576,$A151,AJ$1))","v":""},{"$f":"IF($A151=\"N/A\",Ref!$B$36,INDEX(Ranks!$1:$1048576,$A151,AK$1))","v":""},{"$f":"IF($A151=\"N/A\",Ref!$B$36,INDEX(Ranks!$1:$1048576,$A151,AL$1))","v":""},{"$f":"IF($A151=\"N/A\",Ref!$B$36,INDEX(Ranks!$1:$1048576,$A151,AM$1))","v":""},{"$f":"IF($A151=\"N/A\",Ref!$B$36,INDEX(Ranks!$1:$1048576,$A151,AN$1))","v":""},{"$f":"IF($A151=\"N/A\",Ref!$B$36,INDEX(Ranks!$1:$1048576,$A151,AO$1))","v":""},{"$f":"IF($A151=\"N/A\",Ref!$B$36,INDEX(Ranks!$1:$1048576,$A151,AP$1))","v":""},{"$f":"IF($A151=\"N/A\",Ref!$B$36,INDEX(Ranks!$1:$1048576,$A151,AQ$1))","v":""},{"$f":"IF($A151=\"N/A\",Ref!$B$36,INDEX(Ranks!$1:$1048576,$A151,AR$1))","v":""},{"$f":"IF($A151=\"N/A\",Ref!$B$36,INDEX(Ranks!$1:$1048576,$A151,AS$1))","v":""},{"$f":"IF($A151=\"N/A\",Ref!$B$36,INDEX(Ranks!$1:$1048576,$A151,AT$1))","v":""},{"$f":"IF($A151=\"N/A\",Ref!$B$36,INDEX(Ranks!$1:$1048576,$A151,AU$1))","v":""},{"$f":"IF($A151=\"N/A\",Ref!$B$36,INDEX(Ranks!$1:$1048576,$A151,AV$1))","v":""},{"$f":"IF($A151=\"N/A\",Ref!$B$36,INDEX(Ranks!$1:$1048576,$A151,AW$1))","v":""},{"$f":"IF($A151=\"N/A\",Ref!$B$36,INDEX(Ranks!$1:$1048576,$A151,AX$1))","v":""},{"$f":"IF($A151=\"N/A\",Ref!$B$36,INDEX(Ranks!$1:$1048576,$A151,AY$1))","v":""},{"$f":"IF($A151=\"N/A\",Ref!$B$36,INDEX(Ranks!$1:$1048576,$A151,AZ$1))","v":""},{"$f":"IF($A151=\"N/A\",Ref!$B$36,INDEX(Ranks!$1:$1048576,$A151,BA$1))","v":""},{"$f":"IF($A151=\"N/A\",Ref!$B$36,INDEX(Ranks!$1:$1048576,$A151,BB$1))","v":""},{"$f":"IF($A151=\"N/A\",Ref!$B$36,INDEX(Ranks!$1:$1048576,$A151,BC$1))","v":""},{"$f":"IF($A151=\"N/A\",Ref!$B$36,INDEX(Ranks!$1:$1048576,$A151,BD$1))","v":""},{"$f":"IF($A151=\"N/A\",Ref!$B$36,INDEX(Ranks!$1:$1048576,$A151,BE$1))","v":""},{"$f":"IF($A151=\"N/A\",Ref!$B$36,INDEX(Ranks!$1:$1048576,$A151,BF$1))","v":""},{"$f":"IF($A151=\"N/A\",Ref!$B$36,INDEX(Ranks!$1:$1048576,$A151,BG$1))","v":""},{"$f":"IF($A151=\"N/A\",Ref!$B$36,INDEX(Ranks!$1:$1048576,$A151,BH$1))","v":""},{"$f":"IF($A151=\"N/A\",Ref!$B$36,INDEX(Ranks!$1:$1048576,$A151,BI$1))","v":""},{"$f":"IF($A151=\"N/A\",Ref!$B$36,INDEX(Ranks!$1:$1048576,$A151,BJ$1))","v":""},{"$f":"IF($A151=\"N/A\",Ref!$B$36,INDEX(Ranks!$1:$1048576,$A151,BK$1))","v":""},{"$f":"IF($A151=\"N/A\",Ref!$B$36,INDEX(Ranks!$1:$1048576,$A151,BL$1))","v":""},{"$f":"IF($A151=\"N/A\",Ref!$B$36,INDEX(Ranks!$1:$1048576,$A151,BM$1))","v":""},{"$f":"IF($A151=\"N/A\",Ref!$B$36,INDEX(Ranks!$1:$1048576,$A151,BN$1))","v":""},{"$f":"IF($A151=\"N/A\",Ref!$B$36,INDEX(Ranks!$1:$1048576,$A151,BO$1))","v":""},{"$f":"IF($A151=\"N/A\",Ref!$B$36,INDEX(Ranks!$1:$1048576,$A151,BP$1))","v":""},{"$f":"IF($A151=\"N/A\",Ref!$B$36,INDEX(Ranks!$1:$1048576,$A151,BQ$1))","v":""},{"$f":"IF($A151=\"N/A\",Ref!$B$36,INDEX(Ranks!$1:$1048576,$A151,BR$1))","v":""},{"$f":"IF($A151=\"N/A\",Ref!$B$36,INDEX(Ranks!$1:$1048576,$A151,BS$1))","v":""},{"$f":"IF($A151=\"N/A\",Ref!$B$36,INDEX(Ranks!$1:$1048576,$A151,BT$1))","v":""},{"$f":"IF($A151=\"N/A\",Ref!$B$36,INDEX(Ranks!$1:$1048576,$A151,BU$1))","v":""},{"$f":"IF($A151=\"N/A\",Ref!$B$36,INDEX(Ranks!$1:$1048576,$A151,BV$1))","v":""},{"$f":"IF($A151=\"N/A\",Ref!$B$36,INDEX(Ranks!$1:$1048576,$A151,BW$1))","v":""},{"$f":"IF($A151=\"N/A\",Ref!$B$36,INDEX(Ranks!$1:$1048576,$A151,BX$1))","v":""},{"$f":"IF($A151=\"N/A\",Ref!$B$36,INDEX(Ranks!$1:$1048576,$A151,BY$1))","v":""},{"$f":"IF($A151=\"N/A\",Ref!$B$36,INDEX(Ranks!$1:$1048576,$A151,BZ$1))","v":""},{"$f":"IF($A151=\"N/A\",Ref!$B$36,INDEX(Ranks!$1:$1048576,$A151,CA$1))","v":""},{"$f":"IF($A151=\"N/A\",Ref!$B$36,INDEX(Ranks!$1:$1048576,$A151,CB$1))","v":""},{"$f":"IF($A151=\"N/A\",Ref!$B$36,INDEX(Ranks!$1:$1048576,$A151,CC$1))","v":""},{"$f":"IF($A151=\"N/A\",Ref!$B$36,INDEX(Ranks!$1:$1048576,$A151,CD$1))","v":""},{"$f":"IF($A151=\"N/A\",Ref!$B$36,INDEX(Ranks!$1:$1048576,$A151,CE$1))","v":""},{"$f":"IF($A151=\"N/A\",Ref!$B$36,INDEX(Ranks!$1:$1048576,$A151,CF$1))","v":""},{"$f":"IF($A151=\"N/A\",Ref!$B$36,INDEX(Ranks!$1:$1048576,$A151,CG$1))","v":""},{"$f":"IF($A151=\"N/A\",Ref!$B$36,INDEX(Ranks!$1:$1048576,$A151,CH$1))","v":""},{"$f":"IF($A151=\"N/A\",Ref!$B$36,INDEX(Ranks!$1:$1048576,$A151,CI$1))","v":""},{"$f":"IF($A151=\"N/A\",Ref!$B$36,INDEX(Ranks!$1:$1048576,$A151,CJ$1))","v":""},{"$f":"IF($A151=\"N/A\",Ref!$B$36,INDEX(Ranks!$1:$1048576,$A151,CK$1))","v":""},{"$f":"IF($A151=\"N/A\",Ref!$B$36,INDEX(Ranks!$1:$1048576,$A151,CL$1))","v":""},{"$f":"IF($A151=\"N/A\",Ref!$B$36,INDEX(Ranks!$1:$1048576,$A151,CM$1))","v":""},{"$f":"IF($A151=\"N/A\",Ref!$B$36,INDEX(Ranks!$1:$1048576,$A151,CN$1))","v":""},{"$f":"IF($A151=\"N/A\",Ref!$B$36,INDEX(Ranks!$1:$1048576,$A151,CO$1))","v":""},{"$f":"IF($A151=\"N/A\",Ref!$B$36,INDEX(Ranks!$1:$1048576,$A151,CP$1))","v":""},{"$f":"IF($A151=\"N/A\",Ref!$B$36,INDEX(Ranks!$1:$1048576,$A151,CQ$1))","v":""},{"$f":"IF($A151=\"N/A\",Ref!$B$36,INDEX(Ranks!$1:$1048576,$A151,CR$1))","v":""},{"$f":"IF($A151=\"N/A\",Ref!$B$36,INDEX(Ranks!$1:$1048576,$A151,CS$1))","v":""},{"$f":"IF($A151=\"N/A\",Ref!$B$36,INDEX(Ranks!$1:$1048576,$A151,CT$1))","v":""},{"$f":"IF($A151=\"N/A\",Ref!$B$36,INDEX(Ranks!$1:$1048576,$A151,CU$1))","v":""},{"$f":"IF($A151=\"N/A\",Ref!$B$36,INDEX(Ranks!$1:$1048576,$A151,CV$1))","v":""},{"$f":"IF($A151=\"N/A\",Ref!$B$36,INDEX(Ranks!$1:$1048576,$A151,CW$1))","v":""},{"$f":"IF($A151=\"N/A\",Ref!$B$36,INDEX(Ranks!$1:$1048576,$A151,CX$1))","v":""},{"$f":"IF($A151=\"N/A\",Ref!$B$36,INDEX(Ranks!$1:$1048576,$A151,CY$1))","v":""},{"$f":"IF($A151=\"N/A\",Ref!$B$36,INDEX(Ranks!$1:$1048576,$A151,CZ$1))","v":""},{"$f":"IF($A151=\"N/A\",Ref!$B$36,INDEX(Ranks!$1:$1048576,$A151,DA$1))","v":""},{"$f":"IF($A151=\"N/A\",Ref!$B$36,INDEX(Ranks!$1:$1048576,$A151,DB$1))","v":""},{"$f":"IF($A151=\"N/A\",Ref!$B$36,INDEX(Ranks!$1:$1048576,$A151,DC$1))","v":""},{"$f":"IF($A151=\"N/A\",Ref!$B$36,INDEX(Ranks!$1:$1048576,$A151,DD$1))","v":""},{"$f":"IF($A151=\"N/A\",Ref!$B$36,INDEX(Ranks!$1:$1048576,$A151,DE$1))","v":""},{"$f":"IF($A151=\"N/A\",Ref!$B$36,INDEX(Ranks!$1:$1048576,$A151,DF$1))","v":""},{"$f":"IF($A151=\"N/A\",Ref!$B$36,INDEX(Ranks!$1:$1048576,$A151,DG$1))","v":""},{"$f":"IF($A151=\"N/A\",Ref!$B$36,INDEX(Ranks!$1:$1048576,$A151,DH$1))","v":""},{"$f":"IF($A151=\"N/A\",Ref!$B$36,INDEX(Ranks!$1:$1048576,$A151,DI$1))","v":""},{"$f":"IF($A151=\"N/A\",Ref!$B$36,INDEX(Ranks!$1:$1048576,$A151,DJ$1))","v":""},{"$f":"IF($A151=\"N/A\",Ref!$B$36,INDEX(Ranks!$1:$1048576,$A151,DK$1))","v":""},{"$f":"IF($A151=\"N/A\",Ref!$B$36,INDEX(Ranks!$1:$1048576,$A151,DL$1))","v":""},{"$f":"IF($A151=\"N/A\",Ref!$B$36,INDEX(Ranks!$1:$1048576,$A151,DM$1))","v":""},{"$f":"IF($A151=\"N/A\",Ref!$B$36,INDEX(Ranks!$1:$1048576,$A151,DN$1))","v":""},{"$f":"IF($A151=\"N/A\",Ref!$B$36,INDEX(Ranks!$1:$1048576,$A151,DO$1))","v":""},{"$f":"IF($A151=\"N/A\",Ref!$B$36,INDEX(Ranks!$1:$1048576,$A151,DP$1))","v":""},{"$f":"IF($A151=\"N/A\",Ref!$B$36,INDEX(Ranks!$1:$1048576,$A151,DQ$1))","v":""},{"$f":"IF($A151=\"N/A\",Ref!$B$36,INDEX(Ranks!$1:$1048576,$A151,DR$1))","v":""},{"$f":"IF($A151=\"N/A\",Ref!$B$36,INDEX(Ranks!$1:$1048576,$A151,DS$1))","v":""},{"$f":"IF($A151=\"N/A\",Ref!$B$36,INDEX(Ranks!$1:$1048576,$A151,DT$1))","v":""},{"$f":"IF($A151=\"N/A\",Ref!$B$36,INDEX(Ranks!$1:$1048576,$A151,DU$1))","v":""},{"$f":"IF($A151=\"N/A\",Ref!$B$36,INDEX(Ranks!$1:$1048576,$A151,DV$1))","v":""},{"$f":"IF($A151=\"N/A\",Ref!$B$36,INDEX(Ranks!$1:$1048576,$A151,DW$1))","v":""},{"$f":"IF($A151=\"N/A\",Ref!$B$36,INDEX(Ranks!$1:$1048576,$A151,DX$1))","v":""},{"$f":"IF($A151=\"N/A\",Ref!$B$36,INDEX(Ranks!$1:$1048576,$A151,DY$1))","v":""},{"$f":"IF($A151=\"N/A\",Ref!$B$36,INDEX(Ranks!$1:$1048576,$A151,DZ$1))","v":""},{"$f":"IF($A151=\"N/A\",Ref!$B$36,INDEX(Ranks!$1:$1048576,$A151,EA$1))","v":""},{"$f":"IF($A151=\"N/A\",Ref!$B$36,INDEX(Ranks!$1:$1048576,$A151,EB$1))","v":""}]
[{"$f":"IFERROR(MATCH('Portfolio Page'!L152,Ranks!L:L,0),\"N/A\")","v":"N/A"},null,{"$f":"IF($A152=\"N/A\",\"\",INDEX(Ranks!$1:$1048576,$A152,C$1))","v":""},{"$f":"IF($A152=\"N/A\",Ref!$B$36,INDEX(Ranks!$1:$1048576,$A152,D$1))","v":""},{"$f":"IF($A152=\"N/A\",Ref!$B$36,INDEX(Ranks!$1:$1048576,$A152,E$1))","v":""},{"$f":"IF($A152=\"N/A\",\"\",INDEX(Ranks!$1:$1048576,$A152,F$1))","v":""},{"$f":"IF($A152=\"N/A\",\"\",INDEX(Ranks!$1:$1048576,$A152,G$1))","v":""},{"$f":"IF($A152=\"N/A\",\"\",INDEX(Ranks!$1:$1048576,$A152,H$1))","v":""},{"$f":"IF($A152=\"N/A\",\"\",INDEX(Ranks!$1:$1048576,$A152,I$1))","v":""},{"$f":"IF($A152=\"N/A\",\"\",INDEX(Ranks!$1:$1048576,$A152,J$1))","v":""},{"$f":"IF($A152=\"N/A\",\"\",INDEX(Ranks!$1:$1048576,$A152,K$1))","v":""},null,{"$f":"IF($A152=\"N/A\",Ref!$B$36,INDEX(Ranks!$1:$1048576,$A152,M$1))","v":""},{"$f":"IF($A152=\"N/A\",Ref!$B$36,INDEX(Ranks!$1:$1048576,$A152,N$1))","v":""},{"$f":"IF($A152=\"N/A\",Ref!$B$36,INDEX(Ranks!$1:$1048576,$A152,O$1))","v":""},{"$f":"IF($A152=\"N/A\",Ref!$B$36,INDEX(Ranks!$1:$1048576,$A152,P$1))","v":""},{"$f":"IF($A152=\"N/A\",Ref!$B$36,INDEX(Ranks!$1:$1048576,$A152,Q$1))","v":""},{"$f":"IF($A152=\"N/A\",Ref!$B$36,INDEX(Ranks!$1:$1048576,$A152,R$1))","v":""},{"$f":"IF($A152=\"N/A\",Ref!$B$36,INDEX(Ranks!$1:$1048576,$A152,S$1))","v":""},{"$f":"IF($A152=\"N/A\",Ref!$B$36,INDEX(Ranks!$1:$1048576,$A152,T$1))","v":""},{"$f":"IF($A152=\"N/A\",Ref!$B$36,INDEX(Ranks!$1:$1048576,$A152,U$1))","v":""},{"$f":"IF($A152=\"N/A\",Ref!$B$36,INDEX(Ranks!$1:$1048576,$A152,V$1))","v":""},{"$f":"IF($A152=\"N/A\",Ref!$B$36,INDEX(Ranks!$1:$1048576,$A152,W$1))","v":""},{"$f":"IF($A152=\"N/A\",Ref!$B$36,INDEX(Ranks!$1:$1048576,$A152,X$1))","v":""},{"$f":"IF($A152=\"N/A\",Ref!$B$36,INDEX(Ranks!$1:$1048576,$A152,Y$1))","v":""},{"$f":"IF($A152=\"N/A\",Ref!$B$36,INDEX(Ranks!$1:$1048576,$A152,Z$1))","v":""},{"$f":"IF($A152=\"N/A\",Ref!$B$36,INDEX(Ranks!$1:$1048576,$A152,AA$1))","v":""},{"$f":"IF($A152=\"N/A\",Ref!$B$36,INDEX(Ranks!$1:$1048576,$A152,AB$1))","v":""},{"$f":"IF($A152=\"N/A\",Ref!$B$36,INDEX(Ranks!$1:$1048576,$A152,AC$1))","v":""},{"$f":"IF($A152=\"N/A\",Ref!$B$36,INDEX(Ranks!$1:$1048576,$A152,AD$1))","v":""},{"$f":"IF($A152=\"N/A\",Ref!$B$36,INDEX(Ranks!$1:$1048576,$A152,AE$1))","v":""},{"$f":"IF($A152=\"N/A\",Ref!$B$36,INDEX(Ranks!$1:$1048576,$A152,AF$1))","v":""},{"$f":"IF($A152=\"N/A\",Ref!$B$36,INDEX(Ranks!$1:$1048576,$A152,AG$1))","v":""},{"$f":"IF($A152=\"N/A\",Ref!$B$36,INDEX(Ranks!$1:$1048576,$A152,AH$1))","v":""},{"$f":"IF($A152=\"N/A\",Ref!$B$36,INDEX(Ranks!$1:$1048576,$A152,AI$1))","v":""},{"$f":"IF($A152=\"N/A\",Ref!$B$36,INDEX(Ranks!$1:$1048576,$A152,AJ$1))","v":""},{"$f":"IF($A152=\"N/A\",Ref!$B$36,INDEX(Ranks!$1:$1048576,$A152,AK$1))","v":""},{"$f":"IF($A152=\"N/A\",Ref!$B$36,INDEX(Ranks!$1:$1048576,$A152,AL$1))","v":""},{"$f":"IF($A152=\"N/A\",Ref!$B$36,INDEX(Ranks!$1:$1048576,$A152,AM$1))","v":""},{"$f":"IF($A152=\"N/A\",Ref!$B$36,INDEX(Ranks!$1:$1048576,$A152,AN$1))","v":""},{"$f":"IF($A152=\"N/A\",Ref!$B$36,INDEX(Ranks!$1:$1048576,$A152,AO$1))","v":""},{"$f":"IF($A152=\"N/A\",Ref!$B$36,INDEX(Ranks!$1:$1048576,$A152,AP$1))","v":""},{"$f":"IF($A152=\"N/A\",Ref!$B$36,INDEX(Ranks!$1:$1048576,$A152,AQ$1))","v":""},{"$f":"IF($A152=\"N/A\",Ref!$B$36,INDEX(Ranks!$1:$1048576,$A152,AR$1))","v":""},{"$f":"IF($A152=\"N/A\",Ref!$B$36,INDEX(Ranks!$1:$1048576,$A152,AS$1))","v":""},{"$f":"IF($A152=\"N/A\",Ref!$B$36,INDEX(Ranks!$1:$1048576,$A152,AT$1))","v":""},{"$f":"IF($A152=\"N/A\",Ref!$B$36,INDEX(Ranks!$1:$1048576,$A152,AU$1))","v":""},{"$f":"IF($A152=\"N/A\",Ref!$B$36,INDEX(Ranks!$1:$1048576,$A152,AV$1))","v":""},{"$f":"IF($A152=\"N/A\",Ref!$B$36,INDEX(Ranks!$1:$1048576,$A152,AW$1))","v":""},{"$f":"IF($A152=\"N/A\",Ref!$B$36,INDEX(Ranks!$1:$1048576,$A152,AX$1))","v":""},{"$f":"IF($A152=\"N/A\",Ref!$B$36,INDEX(Ranks!$1:$1048576,$A152,AY$1))","v":""},{"$f":"IF($A152=\"N/A\",Ref!$B$36,INDEX(Ranks!$1:$1048576,$A152,AZ$1))","v":""},{"$f":"IF($A152=\"N/A\",Ref!$B$36,INDEX(Ranks!$1:$1048576,$A152,BA$1))","v":""},{"$f":"IF($A152=\"N/A\",Ref!$B$36,INDEX(Ranks!$1:$1048576,$A152,BB$1))","v":""},{"$f":"IF($A152=\"N/A\",Ref!$B$36,INDEX(Ranks!$1:$1048576,$A152,BC$1))","v":""},{"$f":"IF($A152=\"N/A\",Ref!$B$36,INDEX(Ranks!$1:$1048576,$A152,BD$1))","v":""},{"$f":"IF($A152=\"N/A\",Ref!$B$36,INDEX(Ranks!$1:$1048576,$A152,BE$1))","v":""},{"$f":"IF($A152=\"N/A\",Ref!$B$36,INDEX(Ranks!$1:$1048576,$A152,BF$1))","v":""},{"$f":"IF($A152=\"N/A\",Ref!$B$36,INDEX(Ranks!$1:$1048576,$A152,BG$1))","v":""},{"$f":"IF($A152=\"N/A\",Ref!$B$36,INDEX(Ranks!$1:$1048576,$A152,BH$1))","v":""},{"$f":"IF($A152=\"N/A\",Ref!$B$36,INDEX(Ranks!$1:$1048576,$A152,BI$1))","v":""},{"$f":"IF($A152=\"N/A\",Ref!$B$36,INDEX(Ranks!$1:$1048576,$A152,BJ$1))","v":""},{"$f":"IF($A152=\"N/A\",Ref!$B$36,INDEX(Ranks!$1:$1048576,$A152,BK$1))","v":""},{"$f":"IF($A152=\"N/A\",Ref!$B$36,INDEX(Ranks!$1:$1048576,$A152,BL$1))","v":""},{"$f":"IF($A152=\"N/A\",Ref!$B$36,INDEX(Ranks!$1:$1048576,$A152,BM$1))","v":""},{"$f":"IF($A152=\"N/A\",Ref!$B$36,INDEX(Ranks!$1:$1048576,$A152,BN$1))","v":""},{"$f":"IF($A152=\"N/A\",Ref!$B$36,INDEX(Ranks!$1:$1048576,$A152,BO$1))","v":""},{"$f":"IF($A152=\"N/A\",Ref!$B$36,INDEX(Ranks!$1:$1048576,$A152,BP$1))","v":""},{"$f":"IF($A152=\"N/A\",Ref!$B$36,INDEX(Ranks!$1:$1048576,$A152,BQ$1))","v":""},{"$f":"IF($A152=\"N/A\",Ref!$B$36,INDEX(Ranks!$1:$1048576,$A152,BR$1))","v":""},{"$f":"IF($A152=\"N/A\",Ref!$B$36,INDEX(Ranks!$1:$1048576,$A152,BS$1))","v":""},{"$f":"IF($A152=\"N/A\",Ref!$B$36,INDEX(Ranks!$1:$1048576,$A152,BT$1))","v":""},{"$f":"IF($A152=\"N/A\",Ref!$B$36,INDEX(Ranks!$1:$1048576,$A152,BU$1))","v":""},{"$f":"IF($A152=\"N/A\",Ref!$B$36,INDEX(Ranks!$1:$1048576,$A152,BV$1))","v":""},{"$f":"IF($A152=\"N/A\",Ref!$B$36,INDEX(Ranks!$1:$1048576,$A152,BW$1))","v":""},{"$f":"IF($A152=\"N/A\",Ref!$B$36,INDEX(Ranks!$1:$1048576,$A152,BX$1))","v":""},{"$f":"IF($A152=\"N/A\",Ref!$B$36,INDEX(Ranks!$1:$1048576,$A152,BY$1))","v":""},{"$f":"IF($A152=\"N/A\",Ref!$B$36,INDEX(Ranks!$1:$1048576,$A152,BZ$1))","v":""},{"$f":"IF($A152=\"N/A\",Ref!$B$36,INDEX(Ranks!$1:$1048576,$A152,CA$1))","v":""},{"$f":"IF($A152=\"N/A\",Ref!$B$36,INDEX(Ranks!$1:$1048576,$A152,CB$1))","v":""},{"$f":"IF($A152=\"N/A\",Ref!$B$36,INDEX(Ranks!$1:$1048576,$A152,CC$1))","v":""},{"$f":"IF($A152=\"N/A\",Ref!$B$36,INDEX(Ranks!$1:$1048576,$A152,CD$1))","v":""},{"$f":"IF($A152=\"N/A\",Ref!$B$36,INDEX(Ranks!$1:$1048576,$A152,CE$1))","v":""},{"$f":"IF($A152=\"N/A\",Ref!$B$36,INDEX(Ranks!$1:$1048576,$A152,CF$1))","v":""},{"$f":"IF($A152=\"N/A\",Ref!$B$36,INDEX(Ranks!$1:$1048576,$A152,CG$1))","v":""},{"$f":"IF($A152=\"N/A\",Ref!$B$36,INDEX(Ranks!$1:$1048576,$A152,CH$1))","v":""},{"$f":"IF($A152=\"N/A\",Ref!$B$36,INDEX(Ranks!$1:$1048576,$A152,CI$1))","v":""},{"$f":"IF($A152=\"N/A\",Ref!$B$36,INDEX(Ranks!$1:$1048576,$A152,CJ$1))","v":""},{"$f":"IF($A152=\"N/A\",Ref!$B$36,INDEX(Ranks!$1:$1048576,$A152,CK$1))","v":""},{"$f":"IF($A152=\"N/A\",Ref!$B$36,INDEX(Ranks!$1:$1048576,$A152,CL$1))","v":""},{"$f":"IF($A152=\"N/A\",Ref!$B$36,INDEX(Ranks!$1:$1048576,$A152,CM$1))","v":""},{"$f":"IF($A152=\"N/A\",Ref!$B$36,INDEX(Ranks!$1:$1048576,$A152,CN$1))","v":""},{"$f":"IF($A152=\"N/A\",Ref!$B$36,INDEX(Ranks!$1:$1048576,$A152,CO$1))","v":""},{"$f":"IF($A152=\"N/A\",Ref!$B$36,INDEX(Ranks!$1:$1048576,$A152,CP$1))","v":""},{"$f":"IF($A152=\"N/A\",Ref!$B$36,INDEX(Ranks!$1:$1048576,$A152,CQ$1))","v":""},{"$f":"IF($A152=\"N/A\",Ref!$B$36,INDEX(Ranks!$1:$1048576,$A152,CR$1))","v":""},{"$f":"IF($A152=\"N/A\",Ref!$B$36,INDEX(Ranks!$1:$1048576,$A152,CS$1))","v":""},{"$f":"IF($A152=\"N/A\",Ref!$B$36,INDEX(Ranks!$1:$1048576,$A152,CT$1))","v":""},{"$f":"IF($A152=\"N/A\",Ref!$B$36,INDEX(Ranks!$1:$1048576,$A152,CU$1))","v":""},{"$f":"IF($A152=\"N/A\",Ref!$B$36,INDEX(Ranks!$1:$1048576,$A152,CV$1))","v":""},{"$f":"IF($A152=\"N/A\",Ref!$B$36,INDEX(Ranks!$1:$1048576,$A152,CW$1))","v":""},{"$f":"IF($A152=\"N/A\",Ref!$B$36,INDEX(Ranks!$1:$1048576,$A152,CX$1))","v":""},{"$f":"IF($A152=\"N/A\",Ref!$B$36,INDEX(Ranks!$1:$1048576,$A152,CY$1))","v":""},{"$f":"IF($A152=\"N/A\",Ref!$B$36,INDEX(Ranks!$1:$1048576,$A152,CZ$1))","v":""},{"$f":"IF($A152=\"N/A\",Ref!$B$36,INDEX(Ranks!$1:$1048576,$A152,DA$1))","v":""},{"$f":"IF($A152=\"N/A\",Ref!$B$36,INDEX(Ranks!$1:$1048576,$A152,DB$1))","v":""},{"$f":"IF($A152=\"N/A\",Ref!$B$36,INDEX(Ranks!$1:$1048576,$A152,DC$1))","v":""},{"$f":"IF($A152=\"N/A\",Ref!$B$36,INDEX(Ranks!$1:$1048576,$A152,DD$1))","v":""},{"$f":"IF($A152=\"N/A\",Ref!$B$36,INDEX(Ranks!$1:$1048576,$A152,DE$1))","v":""},{"$f":"IF($A152=\"N/A\",Ref!$B$36,INDEX(Ranks!$1:$1048576,$A152,DF$1))","v":""},{"$f":"IF($A152=\"N/A\",Ref!$B$36,INDEX(Ranks!$1:$1048576,$A152,DG$1))","v":""},{"$f":"IF($A152=\"N/A\",Ref!$B$36,INDEX(Ranks!$1:$1048576,$A152,DH$1))","v":""},{"$f":"IF($A152=\"N/A\",Ref!$B$36,INDEX(Ranks!$1:$1048576,$A152,DI$1))","v":""},{"$f":"IF($A152=\"N/A\",Ref!$B$36,INDEX(Ranks!$1:$1048576,$A152,DJ$1))","v":""},{"$f":"IF($A152=\"N/A\",Ref!$B$36,INDEX(Ranks!$1:$1048576,$A152,DK$1))","v":""},{"$f":"IF($A152=\"N/A\",Ref!$B$36,INDEX(Ranks!$1:$1048576,$A152,DL$1))","v":""},{"$f":"IF($A152=\"N/A\",Ref!$B$36,INDEX(Ranks!$1:$1048576,$A152,DM$1))","v":""},{"$f":"IF($A152=\"N/A\",Ref!$B$36,INDEX(Ranks!$1:$1048576,$A152,DN$1))","v":""},{"$f":"IF($A152=\"N/A\",Ref!$B$36,INDEX(Ranks!$1:$1048576,$A152,DO$1))","v":""},{"$f":"IF($A152=\"N/A\",Ref!$B$36,INDEX(Ranks!$1:$1048576,$A152,DP$1))","v":""},{"$f":"IF($A152=\"N/A\",Ref!$B$36,INDEX(Ranks!$1:$1048576,$A152,DQ$1))","v":""},{"$f":"IF($A152=\"N/A\",Ref!$B$36,INDEX(Ranks!$1:$1048576,$A152,DR$1))","v":""},{"$f":"IF($A152=\"N/A\",Ref!$B$36,INDEX(Ranks!$1:$1048576,$A152,DS$1))","v":""},{"$f":"IF($A152=\"N/A\",Ref!$B$36,INDEX(Ranks!$1:$1048576,$A152,DT$1))","v":""},{"$f":"IF($A152=\"N/A\",Ref!$B$36,INDEX(Ranks!$1:$1048576,$A152,DU$1))","v":""},{"$f":"IF($A152=\"N/A\",Ref!$B$36,INDEX(Ranks!$1:$1048576,$A152,DV$1))","v":""},{"$f":"IF($A152=\"N/A\",Ref!$B$36,INDEX(Ranks!$1:$1048576,$A152,DW$1))","v":""},{"$f":"IF($A152=\"N/A\",Ref!$B$36,INDEX(Ranks!$1:$1048576,$A152,DX$1))","v":""},{"$f":"IF($A152=\"N/A\",Ref!$B$36,INDEX(Ranks!$1:$1048576,$A152,DY$1))","v":""},{"$f":"IF($A152=\"N/A\",Ref!$B$36,INDEX(Ranks!$1:$1048576,$A152,DZ$1))","v":""},{"$f":"IF($A152=\"N/A\",Ref!$B$36,INDEX(Ranks!$1:$1048576,$A152,EA$1))","v":""},{"$f":"IF($A152=\"N/A\",Ref!$B$36,INDEX(Ranks!$1:$1048576,$A152,EB$1))","v":""}]
[{"$f":"IFERROR(MATCH('Portfolio Page'!L153,Ranks!L:L,0),\"N/A\")","v":"N/A"},null,{"$f":"IF($A153=\"N/A\",\"\",INDEX(Ranks!$1:$1048576,$A153,C$1))","v":""},{"$f":"IF($A153=\"N/A\",Ref!$B$36,INDEX(Ranks!$1:$1048576,$A153,D$1))","v":""},{"$f":"IF($A153=\"N/A\",Ref!$B$36,INDEX(Ranks!$1:$1048576,$A153,E$1))","v":""},{"$f":"IF($A153=\"N/A\",\"\",INDEX(Ranks!$1:$1048576,$A153,F$1))","v":""},{"$f":"IF($A153=\"N/A\",\"\",INDEX(Ranks!$1:$1048576,$A153,G$1))","v":""},{"$f":"IF($A153=\"N/A\",\"\",INDEX(Ranks!$1:$1048576,$A153,H$1))","v":""},{"$f":"IF($A153=\"N/A\",\"\",INDEX(Ranks!$1:$1048576,$A153,I$1))","v":""},{"$f":"IF($A153=\"N/A\",\"\",INDEX(Ranks!$1:$1048576,$A153,J$1))","v":""},{"$f":"IF($A153=\"N/A\",\"\",INDEX(Ranks!$1:$1048576,$A153,K$1))","v":""},null,{"$f":"IF($A153=\"N/A\",Ref!$B$36,INDEX(Ranks!$1:$1048576,$A153,M$1))","v":""},{"$f":"IF($A153=\"N/A\",Ref!$B$36,INDEX(Ranks!$1:$1048576,$A153,N$1))","v":""},{"$f":"IF($A153=\"N/A\",Ref!$B$36,INDEX(Ranks!$1:$1048576,$A153,O$1))","v":""},{"$f":"IF($A153=\"N/A\",Ref!$B$36,INDEX(Ranks!$1:$1048576,$A153,P$1))","v":""},{"$f":"IF($A153=\"N/A\",Ref!$B$36,INDEX(Ranks!$1:$1048576,$A153,Q$1))","v":""},{"$f":"IF($A153=\"N/A\",Ref!$B$36,INDEX(Ranks!$1:$1048576,$A153,R$1))","v":""},{"$f":"IF($A153=\"N/A\",Ref!$B$36,INDEX(Ranks!$1:$1048576,$A153,S$1))","v":""},{"$f":"IF($A153=\"N/A\",Ref!$B$36,INDEX(Ranks!$1:$1048576,$A153,T$1))","v":""},{"$f":"IF($A153=\"N/A\",Ref!$B$36,INDEX(Ranks!$1:$1048576,$A153,U$1))","v":""},{"$f":"IF($A153=\"N/A\",Ref!$B$36,INDEX(Ranks!$1:$1048576,$A153,V$1))","v":""},{"$f":"IF($A153=\"N/A\",Ref!$B$36,INDEX(Ranks!$1:$1048576,$A153,W$1))","v":""},{"$f":"IF($A153=\"N/A\",Ref!$B$36,INDEX(Ranks!$1:$1048576,$A153,X$1))","v":""},{"$f":"IF($A153=\"N/A\",Ref!$B$36,INDEX(Ranks!$1:$1048576,$A153,Y$1))","v":""},{"$f":"IF($A153=\"N/A\",Ref!$B$36,INDEX(Ranks!$1:$1048576,$A153,Z$1))","v":""},{"$f":"IF($A153=\"N/A\",Ref!$B$36,INDEX(Ranks!$1:$1048576,$A153,AA$1))","v":""},{"$f":"IF($A153=\"N/A\",Ref!$B$36,INDEX(Ranks!$1:$1048576,$A153,AB$1))","v":""},{"$f":"IF($A153=\"N/A\",Ref!$B$36,INDEX(Ranks!$1:$1048576,$A153,AC$1))","v":""},{"$f":"IF($A153=\"N/A\",Ref!$B$36,INDEX(Ranks!$1:$1048576,$A153,AD$1))","v":""},{"$f":"IF($A153=\"N/A\",Ref!$B$36,INDEX(Ranks!$1:$1048576,$A153,AE$1))","v":""},{"$f":"IF($A153=\"N/A\",Ref!$B$36,INDEX(Ranks!$1:$1048576,$A153,AF$1))","v":""},{"$f":"IF($A153=\"N/A\",Ref!$B$36,INDEX(Ranks!$1:$1048576,$A153,AG$1))","v":""},{"$f":"IF($A153=\"N/A\",Ref!$B$36,INDEX(Ranks!$1:$1048576,$A153,AH$1))","v":""},{"$f":"IF($A153=\"N/A\",Ref!$B$36,INDEX(Ranks!$1:$1048576,$A153,AI$1))","v":""},{"$f":"IF($A153=\"N/A\",Ref!$B$36,INDEX(Ranks!$1:$1048576,$A153,AJ$1))","v":""},{"$f":"IF($A153=\"N/A\",Ref!$B$36,INDEX(Ranks!$1:$1048576,$A153,AK$1))","v":""},{"$f":"IF($A153=\"N/A\",Ref!$B$36,INDEX(Ranks!$1:$1048576,$A153,AL$1))","v":""},{"$f":"IF($A153=\"N/A\",Ref!$B$36,INDEX(Ranks!$1:$1048576,$A153,AM$1))","v":""},{"$f":"IF($A153=\"N/A\",Ref!$B$36,INDEX(Ranks!$1:$1048576,$A153,AN$1))","v":""},{"$f":"IF($A153=\"N/A\",Ref!$B$36,INDEX(Ranks!$1:$1048576,$A153,AO$1))","v":""},{"$f":"IF($A153=\"N/A\",Ref!$B$36,INDEX(Ranks!$1:$1048576,$A153,AP$1))","v":""},{"$f":"IF($A153=\"N/A\",Ref!$B$36,INDEX(Ranks!$1:$1048576,$A153,AQ$1))","v":""},{"$f":"IF($A153=\"N/A\",Ref!$B$36,INDEX(Ranks!$1:$1048576,$A153,AR$1))","v":""},{"$f":"IF($A153=\"N/A\",Ref!$B$36,INDEX(Ranks!$1:$1048576,$A153,AS$1))","v":""},{"$f":"IF($A153=\"N/A\",Ref!$B$36,INDEX(Ranks!$1:$1048576,$A153,AT$1))","v":""},{"$f":"IF($A153=\"N/A\",Ref!$B$36,INDEX(Ranks!$1:$1048576,$A153,AU$1))","v":""},{"$f":"IF($A153=\"N/A\",Ref!$B$36,INDEX(Ranks!$1:$1048576,$A153,AV$1))","v":""},{"$f":"IF($A153=\"N/A\",Ref!$B$36,INDEX(Ranks!$1:$1048576,$A153,AW$1))","v":""},{"$f":"IF($A153=\"N/A\",Ref!$B$36,INDEX(Ranks!$1:$1048576,$A153,AX$1))","v":""},{"$f":"IF($A153=\"N/A\",Ref!$B$36,INDEX(Ranks!$1:$1048576,$A153,AY$1))","v":""},{"$f":"IF($A153=\"N/A\",Ref!$B$36,INDEX(Ranks!$1:$1048576,$A153,AZ$1))","v":""},{"$f":"IF($A153=\"N/A\",Ref!$B$36,INDEX(Ranks!$1:$1048576,$A153,BA$1))","v":""},{"$f":"IF($A153=\"N/A\",Ref!$B$36,INDEX(Ranks!$1:$1048576,$A153,BB$1))","v":""},{"$f":"IF($A153=\"N/A\",Ref!$B$36,INDEX(Ranks!$1:$1048576,$A153,BC$1))","v":""},{"$f":"IF($A153=\"N/A\",Ref!$B$36,INDEX(Ranks!$1:$1048576,$A153,BD$1))","v":""},{"$f":"IF($A153=\"N/A\",Ref!$B$36,INDEX(Ranks!$1:$1048576,$A153,BE$1))","v":""},{"$f":"IF($A153=\"N/A\",Ref!$B$36,INDEX(Ranks!$1:$1048576,$A153,BF$1))","v":""},{"$f":"IF($A153=\"N/A\",Ref!$B$36,INDEX(Ranks!$1:$1048576,$A153,BG$1))","v":""},{"$f":"IF($A153=\"N/A\",Ref!$B$36,INDEX(Ranks!$1:$1048576,$A153,BH$1))","v":""},{"$f":"IF($A153=\"N/A\",Ref!$B$36,INDEX(Ranks!$1:$1048576,$A153,BI$1))","v":""},{"$f":"IF($A153=\"N/A\",Ref!$B$36,INDEX(Ranks!$1:$1048576,$A153,BJ$1))","v":""},{"$f":"IF($A153=\"N/A\",Ref!$B$36,INDEX(Ranks!$1:$1048576,$A153,BK$1))","v":""},{"$f":"IF($A153=\"N/A\",Ref!$B$36,INDEX(Ranks!$1:$1048576,$A153,BL$1))","v":""},{"$f":"IF($A153=\"N/A\",Ref!$B$36,INDEX(Ranks!$1:$1048576,$A153,BM$1))","v":""},{"$f":"IF($A153=\"N/A\",Ref!$B$36,INDEX(Ranks!$1:$1048576,$A153,BN$1))","v":""},{"$f":"IF($A153=\"N/A\",Ref!$B$36,INDEX(Ranks!$1:$1048576,$A153,BO$1))","v":""},{"$f":"IF($A153=\"N/A\",Ref!$B$36,INDEX(Ranks!$1:$1048576,$A153,BP$1))","v":""},{"$f":"IF($A153=\"N/A\",Ref!$B$36,INDEX(Ranks!$1:$1048576,$A153,BQ$1))","v":""},{"$f":"IF($A153=\"N/A\",Ref!$B$36,INDEX(Ranks!$1:$1048576,$A153,BR$1))","v":""},{"$f":"IF($A153=\"N/A\",Ref!$B$36,INDEX(Ranks!$1:$1048576,$A153,BS$1))","v":""},{"$f":"IF($A153=\"N/A\",Ref!$B$36,INDEX(Ranks!$1:$1048576,$A153,BT$1))","v":""},{"$f":"IF($A153=\"N/A\",Ref!$B$36,INDEX(Ranks!$1:$1048576,$A153,BU$1))","v":""},{"$f":"IF($A153=\"N/A\",Ref!$B$36,INDEX(Ranks!$1:$1048576,$A153,BV$1))","v":""},{"$f":"IF($A153=\"N/A\",Ref!$B$36,INDEX(Ranks!$1:$1048576,$A153,BW$1))","v":""},{"$f":"IF($A153=\"N/A\",Ref!$B$36,INDEX(Ranks!$1:$1048576,$A153,BX$1))","v":""},{"$f":"IF($A153=\"N/A\",Ref!$B$36,INDEX(Ranks!$1:$1048576,$A153,BY$1))","v":""},{"$f":"IF($A153=\"N/A\",Ref!$B$36,INDEX(Ranks!$1:$1048576,$A153,BZ$1))","v":""},{"$f":"IF($A153=\"N/A\",Ref!$B$36,INDEX(Ranks!$1:$1048576,$A153,CA$1))","v":""},{"$f":"IF($A153=\"N/A\",Ref!$B$36,INDEX(Ranks!$1:$1048576,$A153,CB$1))","v":""},{"$f":"IF($A153=\"N/A\",Ref!$B$36,INDEX(Ranks!$1:$1048576,$A153,CC$1))","v":""},{"$f":"IF($A153=\"N/A\",Ref!$B$36,INDEX(Ranks!$1:$1048576,$A153,CD$1))","v":""},{"$f":"IF($A153=\"N/A\",Ref!$B$36,INDEX(Ranks!$1:$1048576,$A153,CE$1))","v":""},{"$f":"IF($A153=\"N/A\",Ref!$B$36,INDEX(Ranks!$1:$1048576,$A153,CF$1))","v":""},{"$f":"IF($A153=\"N/A\",Ref!$B$36,INDEX(Ranks!$1:$1048576,$A153,CG$1))","v":""},{"$f":"IF($A153=\"N/A\",Ref!$B$36,INDEX(Ranks!$1:$1048576,$A153,CH$1))","v":""},{"$f":"IF($A153=\"N/A\",Ref!$B$36,INDEX(Ranks!$1:$1048576,$A153,CI$1))","v":""},{"$f":"IF($A153=\"N/A\",Ref!$B$36,INDEX(Ranks!$1:$1048576,$A153,CJ$1))","v":""},{"$f":"IF($A153=\"N/A\",Ref!$B$36,INDEX(Ranks!$1:$1048576,$A153,CK$1))","v":""},{"$f":"IF($A153=\"N/A\",Ref!$B$36,INDEX(Ranks!$1:$1048576,$A153,CL$1))","v":""},{"$f":"IF($A153=\"N/A\",Ref!$B$36,INDEX(Ranks!$1:$1048576,$A153,CM$1))","v":""},{"$f":"IF($A153=\"N/A\",Ref!$B$36,INDEX(Ranks!$1:$1048576,$A153,CN$1))","v":""},{"$f":"IF($A153=\"N/A\",Ref!$B$36,INDEX(Ranks!$1:$1048576,$A153,CO$1))","v":""},{"$f":"IF($A153=\"N/A\",Ref!$B$36,INDEX(Ranks!$1:$1048576,$A153,CP$1))","v":""},{"$f":"IF($A153=\"N/A\",Ref!$B$36,INDEX(Ranks!$1:$1048576,$A153,CQ$1))","v":""},{"$f":"IF($A153=\"N/A\",Ref!$B$36,INDEX(Ranks!$1:$1048576,$A153,CR$1))","v":""},{"$f":"IF($A153=\"N/A\",Ref!$B$36,INDEX(Ranks!$1:$1048576,$A153,CS$1))","v":""},{"$f":"IF($A153=\"N/A\",Ref!$B$36,INDEX(Ranks!$1:$1048576,$A153,CT$1))","v":""},{"$f":"IF($A153=\"N/A\",Ref!$B$36,INDEX(Ranks!$1:$1048576,$A153,CU$1))","v":""},{"$f":"IF($A153=\"N/A\",Ref!$B$36,INDEX(Ranks!$1:$1048576,$A153,CV$1))","v":""},{"$f":"IF($A153=\"N/A\",Ref!$B$36,INDEX(Ranks!$1:$1048576,$A153,CW$1))","v":""},{"$f":"IF($A153=\"N/A\",Ref!$B$36,INDEX(Ranks!$1:$1048576,$A153,CX$1))","v":""},{"$f":"IF($A153=\"N/A\",Ref!$B$36,INDEX(Ranks!$1:$1048576,$A153,CY$1))","v":""},{"$f":"IF($A153=\"N/A\",Ref!$B$36,INDEX(Ranks!$1:$1048576,$A153,CZ$1))","v":""},{"$f":"IF($A153=\"N/A\",Ref!$B$36,INDEX(Ranks!$1:$1048576,$A153,DA$1))","v":""},{"$f":"IF($A153=\"N/A\",Ref!$B$36,INDEX(Ranks!$1:$1048576,$A153,DB$1))","v":""},{"$f":"IF($A153=\"N/A\",Ref!$B$36,INDEX(Ranks!$1:$1048576,$A153,DC$1))","v":""},{"$f":"IF($A153=\"N/A\",Ref!$B$36,INDEX(Ranks!$1:$1048576,$A153,DD$1))","v":""},{"$f":"IF($A153=\"N/A\",Ref!$B$36,INDEX(Ranks!$1:$1048576,$A153,DE$1))","v":""},{"$f":"IF($A153=\"N/A\",Ref!$B$36,INDEX(Ranks!$1:$1048576,$A153,DF$1))","v":""},{"$f":"IF($A153=\"N/A\",Ref!$B$36,INDEX(Ranks!$1:$1048576,$A153,DG$1))","v":""},{"$f":"IF($A153=\"N/A\",Ref!$B$36,INDEX(Ranks!$1:$1048576,$A153,DH$1))","v":""},{"$f":"IF($A153=\"N/A\",Ref!$B$36,INDEX(Ranks!$1:$1048576,$A153,DI$1))","v":""},{"$f":"IF($A153=\"N/A\",Ref!$B$36,INDEX(Ranks!$1:$1048576,$A153,DJ$1))","v":""},{"$f":"IF($A153=\"N/A\",Ref!$B$36,INDEX(Ranks!$1:$1048576,$A153,DK$1))","v":""},{"$f":"IF($A153=\"N/A\",Ref!$B$36,INDEX(Ranks!$1:$1048576,$A153,DL$1))","v":""},{"$f":"IF($A153=\"N/A\",Ref!$B$36,INDEX(Ranks!$1:$1048576,$A153,DM$1))","v":""},{"$f":"IF($A153=\"N/A\",Ref!$B$36,INDEX(Ranks!$1:$1048576,$A153,DN$1))","v":""},{"$f":"IF($A153=\"N/A\",Ref!$B$36,INDEX(Ranks!$1:$1048576,$A153,DO$1))","v":""},{"$f":"IF($A153=\"N/A\",Ref!$B$36,INDEX(Ranks!$1:$1048576,$A153,DP$1))","v":""},{"$f":"IF($A153=\"N/A\",Ref!$B$36,INDEX(Ranks!$1:$1048576,$A153,DQ$1))","v":""},{"$f":"IF($A153=\"N/A\",Ref!$B$36,INDEX(Ranks!$1:$1048576,$A153,DR$1))","v":""},{"$f":"IF($A153=\"N/A\",Ref!$B$36,INDEX(Ranks!$1:$1048576,$A153,DS$1))","v":""},{"$f":"IF($A153=\"N/A\",Ref!$B$36,INDEX(Ranks!$1:$1048576,$A153,DT$1))","v":""},{"$f":"IF($A153=\"N/A\",Ref!$B$36,INDEX(Ranks!$1:$1048576,$A153,DU$1))","v":""},{"$f":"IF($A153=\"N/A\",Ref!$B$36,INDEX(Ranks!$1:$1048576,$A153,DV$1))","v":""},{"$f":"IF($A153=\"N/A\",Ref!$B$36,INDEX(Ranks!$1:$1048576,$A153,DW$1))","v":""},{"$f":"IF($A153=\"N/A\",Ref!$B$36,INDEX(Ranks!$1:$1048576,$A153,DX$1))","v":""},{"$f":"IF($A153=\"N/A\",Ref!$B$36,INDEX(Ranks!$1:$1048576,$A153,DY$1))","v":""},{"$f":"IF($A153=\"N/A\",Ref!$B$36,INDEX(Ranks!$1:$1048576,$A153,DZ$1))","v":""},{"$f":"IF($A153=\"N/A\",Ref!$B$36,INDEX(Ranks!$1:$1048576,$A153,EA$1))","v":""},{"$f":"IF($A153=\"N/A\",Ref!$B$36,INDEX(Ranks!$1:$1048576,$A153,EB$1))","v":""}]
[{"$f":"IFERROR(MATCH('Portfolio Page'!L154,Ranks!L:L,0),\"N/A\")","v":"N/A"},null,{"$f":"IF($A154=\"N/A\",\"\",INDEX(Ranks!$1:$1048576,$A154,C$1))","v":""},{"$f":"IF($A154=\"N/A\",Ref!$B$36,INDEX(Ranks!$1:$1048576,$A154,D$1))","v":""},{"$f":"IF($A154=\"N/A\",Ref!$B$36,INDEX(Ranks!$1:$1048576,$A154,E$1))","v":""},{"$f":"IF($A154=\"N/A\",\"\",INDEX(Ranks!$1:$1048576,$A154,F$1))","v":""},{"$f":"IF($A154=\"N/A\",\"\",INDEX(Ranks!$1:$1048576,$A154,G$1))","v":""},{"$f":"IF($A154=\"N/A\",\"\",INDEX(Ranks!$1:$1048576,$A154,H$1))","v":""},{"$f":"IF($A154=\"N/A\",\"\",INDEX(Ranks!$1:$1048576,$A154,I$1))","v":""},{"$f":"IF($A154=\"N/A\",\"\",INDEX(Ranks!$1:$1048576,$A154,J$1))","v":""},{"$f":"IF($A154=\"N/A\",\"\",INDEX(Ranks!$1:$1048576,$A154,K$1))","v":""},null,{"$f":"IF($A154=\"N/A\",Ref!$B$36,INDEX(Ranks!$1:$1048576,$A154,M$1))","v":""},{"$f":"IF($A154=\"N/A\",Ref!$B$36,INDEX(Ranks!$1:$1048576,$A154,N$1))","v":""},{"$f":"IF($A154=\"N/A\",Ref!$B$36,INDEX(Ranks!$1:$1048576,$A154,O$1))","v":""},{"$f":"IF($A154=\"N/A\",Ref!$B$36,INDEX(Ranks!$1:$1048576,$A154,P$1))","v":""},{"$f":"IF($A154=\"N/A\",Ref!$B$36,INDEX(Ranks!$1:$1048576,$A154,Q$1))","v":""},{"$f":"IF($A154=\"N/A\",Ref!$B$36,INDEX(Ranks!$1:$1048576,$A154,R$1))","v":""},{"$f":"IF($A154=\"N/A\",Ref!$B$36,INDEX(Ranks!$1:$1048576,$A154,S$1))","v":""},{"$f":"IF($A154=\"N/A\",Ref!$B$36,INDEX(Ranks!$1:$1048576,$A154,T$1))","v":""},{"$f":"IF($A154=\"N/A\",Ref!$B$36,INDEX(Ranks!$1:$1048576,$A154,U$1))","v":""},{"$f":"IF($A154=\"N/A\",Ref!$B$36,INDEX(Ranks!$1:$1048576,$A154,V$1))","v":""},{"$f":"IF($A154=\"N/A\",Ref!$B$36,INDEX(Ranks!$1:$1048576,$A154,W$1))","v":""},{"$f":"IF($A154=\"N/A\",Ref!$B$36,INDEX(Ranks!$1:$1048576,$A154,X$1))","v":""},{"$f":"IF($A154=\"N/A\",Ref!$B$36,INDEX(Ranks!$1:$1048576,$A154,Y$1))","v":""},{"$f":"IF($A154=\"N/A\",Ref!$B$36,INDEX(Ranks!$1:$1048576,$A154,Z$1))","v":""},{"$f":"IF($A154=\"N/A\",Ref!$B$36,INDEX(Ranks!$1:$1048576,$A154,AA$1))","v":""},{"$f":"IF($A154=\"N/A\",Ref!$B$36,INDEX(Ranks!$1:$1048576,$A154,AB$1))","v":""},{"$f":"IF($A154=\"N/A\",Ref!$B$36,INDEX(Ranks!$1:$1048576,$A154,AC$1))","v":""},{"$f":"IF($A154=\"N/A\",Ref!$B$36,INDEX(Ranks!$1:$1048576,$A154,AD$1))","v":""},{"$f":"IF($A154=\"N/A\",Ref!$B$36,INDEX(Ranks!$1:$1048576,$A154,AE$1))","v":""},{"$f":"IF($A154=\"N/A\",Ref!$B$36,INDEX(Ranks!$1:$1048576,$A154,AF$1))","v":""},{"$f":"IF($A154=\"N/A\",Ref!$B$36,INDEX(Ranks!$1:$1048576,$A154,AG$1))","v":""},{"$f":"IF($A154=\"N/A\",Ref!$B$36,INDEX(Ranks!$1:$1048576,$A154,AH$1))","v":""},{"$f":"IF($A154=\"N/A\",Ref!$B$36,INDEX(Ranks!$1:$1048576,$A154,AI$1))","v":""},{"$f":"IF($A154=\"N/A\",Ref!$B$36,INDEX(Ranks!$1:$1048576,$A154,AJ$1))","v":""},{"$f":"IF($A154=\"N/A\",Ref!$B$36,INDEX(Ranks!$1:$1048576,$A154,AK$1))","v":""},{"$f":"IF($A154=\"N/A\",Ref!$B$36,INDEX(Ranks!$1:$1048576,$A154,AL$1))","v":""},{"$f":"IF($A154=\"N/A\",Ref!$B$36,INDEX(Ranks!$1:$1048576,$A154,AM$1))","v":""},{"$f":"IF($A154=\"N/A\",Ref!$B$36,INDEX(Ranks!$1:$1048576,$A154,AN$1))","v":""},{"$f":"IF($A154=\"N/A\",Ref!$B$36,INDEX(Ranks!$1:$1048576,$A154,AO$1))","v":""},{"$f":"IF($A154=\"N/A\",Ref!$B$36,INDEX(Ranks!$1:$1048576,$A154,AP$1))","v":""},{"$f":"IF($A154=\"N/A\",Ref!$B$36,INDEX(Ranks!$1:$1048576,$A154,AQ$1))","v":""},{"$f":"IF($A154=\"N/A\",Ref!$B$36,INDEX(Ranks!$1:$1048576,$A154,AR$1))","v":""},{"$f":"IF($A154=\"N/A\",Ref!$B$36,INDEX(Ranks!$1:$1048576,$A154,AS$1))","v":""},{"$f":"IF($A154=\"N/A\",Ref!$B$36,INDEX(Ranks!$1:$1048576,$A154,AT$1))","v":""},{"$f":"IF($A154=\"N/A\",Ref!$B$36,INDEX(Ranks!$1:$1048576,$A154,AU$1))","v":""},{"$f":"IF($A154=\"N/A\",Ref!$B$36,INDEX(Ranks!$1:$1048576,$A154,AV$1))","v":""},{"$f":"IF($A154=\"N/A\",Ref!$B$36,INDEX(Ranks!$1:$1048576,$A154,AW$1))","v":""},{"$f":"IF($A154=\"N/A\",Ref!$B$36,INDEX(Ranks!$1:$1048576,$A154,AX$1))","v":""},{"$f":"IF($A154=\"N/A\",Ref!$B$36,INDEX(Ranks!$1:$1048576,$A154,AY$1))","v":""},{"$f":"IF($A154=\"N/A\",Ref!$B$36,INDEX(Ranks!$1:$1048576,$A154,AZ$1))","v":""},{"$f":"IF($A154=\"N/A\",Ref!$B$36,INDEX(Ranks!$1:$1048576,$A154,BA$1))","v":""},{"$f":"IF($A154=\"N/A\",Ref!$B$36,INDEX(Ranks!$1:$1048576,$A154,BB$1))","v":""},{"$f":"IF($A154=\"N/A\",Ref!$B$36,INDEX(Ranks!$1:$1048576,$A154,BC$1))","v":""},{"$f":"IF($A154=\"N/A\",Ref!$B$36,INDEX(Ranks!$1:$1048576,$A154,BD$1))","v":""},{"$f":"IF($A154=\"N/A\",Ref!$B$36,INDEX(Ranks!$1:$1048576,$A154,BE$1))","v":""},{"$f":"IF($A154=\"N/A\",Ref!$B$36,INDEX(Ranks!$1:$1048576,$A154,BF$1))","v":""},{"$f":"IF($A154=\"N/A\",Ref!$B$36,INDEX(Ranks!$1:$1048576,$A154,BG$1))","v":""},{"$f":"IF($A154=\"N/A\",Ref!$B$36,INDEX(Ranks!$1:$1048576,$A154,BH$1))","v":""},{"$f":"IF($A154=\"N/A\",Ref!$B$36,INDEX(Ranks!$1:$1048576,$A154,BI$1))","v":""},{"$f":"IF($A154=\"N/A\",Ref!$B$36,INDEX(Ranks!$1:$1048576,$A154,BJ$1))","v":""},{"$f":"IF($A154=\"N/A\",Ref!$B$36,INDEX(Ranks!$1:$1048576,$A154,BK$1))","v":""},{"$f":"IF($A154=\"N/A\",Ref!$B$36,INDEX(Ranks!$1:$1048576,$A154,BL$1))","v":""},{"$f":"IF($A154=\"N/A\",Ref!$B$36,INDEX(Ranks!$1:$1048576,$A154,BM$1))","v":""},{"$f":"IF($A154=\"N/A\",Ref!$B$36,INDEX(Ranks!$1:$1048576,$A154,BN$1))","v":""},{"$f":"IF($A154=\"N/A\",Ref!$B$36,INDEX(Ranks!$1:$1048576,$A154,BO$1))","v":""},{"$f":"IF($A154=\"N/A\",Ref!$B$36,INDEX(Ranks!$1:$1048576,$A154,BP$1))","v":""},{"$f":"IF($A154=\"N/A\",Ref!$B$36,INDEX(Ranks!$1:$1048576,$A154,BQ$1))","v":""},{"$f":"IF($A154=\"N/A\",Ref!$B$36,INDEX(Ranks!$1:$1048576,$A154,BR$1))","v":""},{"$f":"IF($A154=\"N/A\",Ref!$B$36,INDEX(Ranks!$1:$1048576,$A154,BS$1))","v":""},{"$f":"IF($A154=\"N/A\",Ref!$B$36,INDEX(Ranks!$1:$1048576,$A154,BT$1))","v":""},{"$f":"IF($A154=\"N/A\",Ref!$B$36,INDEX(Ranks!$1:$1048576,$A154,BU$1))","v":""},{"$f":"IF($A154=\"N/A\",Ref!$B$36,INDEX(Ranks!$1:$1048576,$A154,BV$1))","v":""},{"$f":"IF($A154=\"N/A\",Ref!$B$36,INDEX(Ranks!$1:$1048576,$A154,BW$1))","v":""},{"$f":"IF($A154=\"N/A\",Ref!$B$36,INDEX(Ranks!$1:$1048576,$A154,BX$1))","v":""},{"$f":"IF($A154=\"N/A\",Ref!$B$36,INDEX(Ranks!$1:$1048576,$A154,BY$1))","v":""},{"$f":"IF($A154=\"N/A\",Ref!$B$36,INDEX(Ranks!$1:$1048576,$A154,BZ$1))","v":""},{"$f":"IF($A154=\"N/A\",Ref!$B$36,INDEX(Ranks!$1:$1048576,$A154,CA$1))","v":""},{"$f":"IF($A154=\"N/A\",Ref!$B$36,INDEX(Ranks!$1:$1048576,$A154,CB$1))","v":""},{"$f":"IF($A154=\"N/A\",Ref!$B$36,INDEX(Ranks!$1:$1048576,$A154,CC$1))","v":""},{"$f":"IF($A154=\"N/A\",Ref!$B$36,INDEX(Ranks!$1:$1048576,$A154,CD$1))","v":""},{"$f":"IF($A154=\"N/A\",Ref!$B$36,INDEX(Ranks!$1:$1048576,$A154,CE$1))","v":""},{"$f":"IF($A154=\"N/A\",Ref!$B$36,INDEX(Ranks!$1:$1048576,$A154,CF$1))","v":""},{"$f":"IF($A154=\"N/A\",Ref!$B$36,INDEX(Ranks!$1:$1048576,$A154,CG$1))","v":""},{"$f":"IF($A154=\"N/A\",Ref!$B$36,INDEX(Ranks!$1:$1048576,$A154,CH$1))","v":""},{"$f":"IF($A154=\"N/A\",Ref!$B$36,INDEX(Ranks!$1:$1048576,$A154,CI$1))","v":""},{"$f":"IF($A154=\"N/A\",Ref!$B$36,INDEX(Ranks!$1:$1048576,$A154,CJ$1))","v":""},{"$f":"IF($A154=\"N/A\",Ref!$B$36,INDEX(Ranks!$1:$1048576,$A154,CK$1))","v":""},{"$f":"IF($A154=\"N/A\",Ref!$B$36,INDEX(Ranks!$1:$1048576,$A154,CL$1))","v":""},{"$f":"IF($A154=\"N/A\",Ref!$B$36,INDEX(Ranks!$1:$1048576,$A154,CM$1))","v":""},{"$f":"IF($A154=\"N/A\",Ref!$B$36,INDEX(Ranks!$1:$1048576,$A154,CN$1))","v":""},{"$f":"IF($A154=\"N/A\",Ref!$B$36,INDEX(Ranks!$1:$1048576,$A154,CO$1))","v":""},{"$f":"IF($A154=\"N/A\",Ref!$B$36,INDEX(Ranks!$1:$1048576,$A154,CP$1))","v":""},{"$f":"IF($A154=\"N/A\",Ref!$B$36,INDEX(Ranks!$1:$1048576,$A154,CQ$1))","v":""},{"$f":"IF($A154=\"N/A\",Ref!$B$36,INDEX(Ranks!$1:$1048576,$A154,CR$1))","v":""},{"$f":"IF($A154=\"N/A\",Ref!$B$36,INDEX(Ranks!$1:$1048576,$A154,CS$1))","v":""},{"$f":"IF($A154=\"N/A\",Ref!$B$36,INDEX(Ranks!$1:$1048576,$A154,CT$1))","v":""},{"$f":"IF($A154=\"N/A\",Ref!$B$36,INDEX(Ranks!$1:$1048576,$A154,CU$1))","v":""},{"$f":"IF($A154=\"N/A\",Ref!$B$36,INDEX(Ranks!$1:$1048576,$A154,CV$1))","v":""},{"$f":"IF($A154=\"N/A\",Ref!$B$36,INDEX(Ranks!$1:$1048576,$A154,CW$1))","v":""},{"$f":"IF($A154=\"N/A\",Ref!$B$36,INDEX(Ranks!$1:$1048576,$A154,CX$1))","v":""},{"$f":"IF($A154=\"N/A\",Ref!$B$36,INDEX(Ranks!$1:$1048576,$A154,CY$1))","v":""},{"$f":"IF($A154=\"N/A\",Ref!$B$36,INDEX(Ranks!$1:$1048576,$A154,CZ$1))","v":""},{"$f":"IF($A154=\"N/A\",Ref!$B$36,INDEX(Ranks!$1:$1048576,$A154,DA$1))","v":""},{"$f":"IF($A154=\"N/A\",Ref!$B$36,INDEX(Ranks!$1:$1048576,$A154,DB$1))","v":""},{"$f":"IF($A154=\"N/A\",Ref!$B$36,INDEX(Ranks!$1:$1048576,$A154,DC$1))","v":""},{"$f":"IF($A154=\"N/A\",Ref!$B$36,INDEX(Ranks!$1:$1048576,$A154,DD$1))","v":""},{"$f":"IF($A154=\"N/A\",Ref!$B$36,INDEX(Ranks!$1:$1048576,$A154,DE$1))","v":""},{"$f":"IF($A154=\"N/A\",Ref!$B$36,INDEX(Ranks!$1:$1048576,$A154,DF$1))","v":""},{"$f":"IF($A154=\"N/A\",Ref!$B$36,INDEX(Ranks!$1:$1048576,$A154,DG$1))","v":""},{"$f":"IF($A154=\"N/A\",Ref!$B$36,INDEX(Ranks!$1:$1048576,$A154,DH$1))","v":""},{"$f":"IF($A154=\"N/A\",Ref!$B$36,INDEX(Ranks!$1:$1048576,$A154,DI$1))","v":""},{"$f":"IF($A154=\"N/A\",Ref!$B$36,INDEX(Ranks!$1:$1048576,$A154,DJ$1))","v":""},{"$f":"IF($A154=\"N/A\",Ref!$B$36,INDEX(Ranks!$1:$1048576,$A154,DK$1))","v":""},{"$f":"IF($A154=\"N/A\",Ref!$B$36,INDEX(Ranks!$1:$1048576,$A154,DL$1))","v":""},{"$f":"IF($A154=\"N/A\",Ref!$B$36,INDEX(Ranks!$1:$1048576,$A154,DM$1))","v":""},{"$f":"IF($A154=\"N/A\",Ref!$B$36,INDEX(Ranks!$1:$1048576,$A154,DN$1))","v":""},{"$f":"IF($A154=\"N/A\",Ref!$B$36,INDEX(Ranks!$1:$1048576,$A154,DO$1))","v":""},{"$f":"IF($A154=\"N/A\",Ref!$B$36,INDEX(Ranks!$1:$1048576,$A154,DP$1))","v":""},{"$f":"IF($A154=\"N/A\",Ref!$B$36,INDEX(Ranks!$1:$1048576,$A154,DQ$1))","v":""},{"$f":"IF($A154=\"N/A\",Ref!$B$36,INDEX(Ranks!$1:$1048576,$A154,DR$1))","v":""},{"$f":"IF($A154=\"N/A\",Ref!$B$36,INDEX(Ranks!$1:$1048576,$A154,DS$1))","v":""},{"$f":"IF($A154=\"N/A\",Ref!$B$36,INDEX(Ranks!$1:$1048576,$A154,DT$1))","v":""},{"$f":"IF($A154=\"N/A\",Ref!$B$36,INDEX(Ranks!$1:$1048576,$A154,DU$1))","v":""},{"$f":"IF($A154=\"N/A\",Ref!$B$36,INDEX(Ranks!$1:$1048576,$A154,DV$1))","v":""},{"$f":"IF($A154=\"N/A\",Ref!$B$36,INDEX(Ranks!$1:$1048576,$A154,DW$1))","v":""},{"$f":"IF($A154=\"N/A\",Ref!$B$36,INDEX(Ranks!$1:$1048576,$A154,DX$1))","v":""},{"$f":"IF($A154=\"N/A\",Ref!$B$36,INDEX(Ranks!$1:$1048576,$A154,DY$1))","v":""},{"$f":"IF($A154=\"N/A\",Ref!$B$36,INDEX(Ranks!$1:$1048576,$A154,DZ$1))","v":""},{"$f":"IF($A154=\"N/A\",Ref!$B$36,INDEX(Ranks!$1:$1048576,$A154,EA$1))","v":""},{"$f":"IF($A154=\"N/A\",Ref!$B$36,INDEX(Ranks!$1:$1048576,$A154,EB$1))","v":""}]
[{"$f":"IFERROR(MATCH('Portfolio Page'!L155,Ranks!L:L,0),\"N/A\")","v":"N/A"},null,{"$f":"IF($A155=\"N/A\",\"\",INDEX(Ranks!$1:$1048576,$A155,C$1))","v":""},{"$f":"IF($A155=\"N/A\",Ref!$B$36,INDEX(Ranks!$1:$1048576,$A155,D$1))","v":""},{"$f":"IF($A155=\"N/A\",Ref!$B$36,INDEX(Ranks!$1:$1048576,$A155,E$1))","v":""},{"$f":"IF($A155=\"N/A\",\"\",INDEX(Ranks!$1:$1048576,$A155,F$1))","v":""},{"$f":"IF($A155=\"N/A\",\"\",INDEX(Ranks!$1:$1048576,$A155,G$1))","v":""},{"$f":"IF($A155=\"N/A\",\"\",INDEX(Ranks!$1:$1048576,$A155,H$1))","v":""},{"$f":"IF($A155=\"N/A\",\"\",INDEX(Ranks!$1:$1048576,$A155,I$1))","v":""},{"$f":"IF($A155=\"N/A\",\"\",INDEX(Ranks!$1:$1048576,$A155,J$1))","v":""},{"$f":"IF($A155=\"N/A\",\"\",INDEX(Ranks!$1:$1048576,$A155,K$1))","v":""},null,{"$f":"IF($A155=\"N/A\",Ref!$B$36,INDEX(Ranks!$1:$1048576,$A155,M$1))","v":""},{"$f":"IF($A155=\"N/A\",Ref!$B$36,INDEX(Ranks!$1:$1048576,$A155,N$1))","v":""},{"$f":"IF($A155=\"N/A\",Ref!$B$36,INDEX(Ranks!$1:$1048576,$A155,O$1))","v":""},{"$f":"IF($A155=\"N/A\",Ref!$B$36,INDEX(Ranks!$1:$1048576,$A155,P$1))","v":""},{"$f":"IF($A155=\"N/A\",Ref!$B$36,INDEX(Ranks!$1:$1048576,$A155,Q$1))","v":""},{"$f":"IF($A155=\"N/A\",Ref!$B$36,INDEX(Ranks!$1:$1048576,$A155,R$1))","v":""},{"$f":"IF($A155=\"N/A\",Ref!$B$36,INDEX(Ranks!$1:$1048576,$A155,S$1))","v":""},{"$f":"IF($A155=\"N/A\",Ref!$B$36,INDEX(Ranks!$1:$1048576,$A155,T$1))","v":""},{"$f":"IF($A155=\"N/A\",Ref!$B$36,INDEX(Ranks!$1:$1048576,$A155,U$1))","v":""},{"$f":"IF($A155=\"N/A\",Ref!$B$36,INDEX(Ranks!$1:$1048576,$A155,V$1))","v":""},{"$f":"IF($A155=\"N/A\",Ref!$B$36,INDEX(Ranks!$1:$1048576,$A155,W$1))","v":""},{"$f":"IF($A155=\"N/A\",Ref!$B$36,INDEX(Ranks!$1:$1048576,$A155,X$1))","v":""},{"$f":"IF($A155=\"N/A\",Ref!$B$36,INDEX(Ranks!$1:$1048576,$A155,Y$1))","v":""},{"$f":"IF($A155=\"N/A\",Ref!$B$36,INDEX(Ranks!$1:$1048576,$A155,Z$1))","v":""},{"$f":"IF($A155=\"N/A\",Ref!$B$36,INDEX(Ranks!$1:$1048576,$A155,AA$1))","v":""},{"$f":"IF($A155=\"N/A\",Ref!$B$36,INDEX(Ranks!$1:$1048576,$A155,AB$1))","v":""},{"$f":"IF($A155=\"N/A\",Ref!$B$36,INDEX(Ranks!$1:$1048576,$A155,AC$1))","v":""},{"$f":"IF($A155=\"N/A\",Ref!$B$36,INDEX(Ranks!$1:$1048576,$A155,AD$1))","v":""},{"$f":"IF($A155=\"N/A\",Ref!$B$36,INDEX(Ranks!$1:$1048576,$A155,AE$1))","v":""},{"$f":"IF($A155=\"N/A\",Ref!$B$36,INDEX(Ranks!$1:$1048576,$A155,AF$1))","v":""},{"$f":"IF($A155=\"N/A\",Ref!$B$36,INDEX(Ranks!$1:$1048576,$A155,AG$1))","v":""},{"$f":"IF($A155=\"N/A\",Ref!$B$36,INDEX(Ranks!$1:$1048576,$A155,AH$1))","v":""},{"$f":"IF($A155=\"N/A\",Ref!$B$36,INDEX(Ranks!$1:$1048576,$A155,AI$1))","v":""},{"$f":"IF($A155=\"N/A\",Ref!$B$36,INDEX(Ranks!$1:$1048576,$A155,AJ$1))","v":""},{"$f":"IF($A155=\"N/A\",Ref!$B$36,INDEX(Ranks!$1:$1048576,$A155,AK$1))","v":""},{"$f":"IF($A155=\"N/A\",Ref!$B$36,INDEX(Ranks!$1:$1048576,$A155,AL$1))","v":""},{"$f":"IF($A155=\"N/A\",Ref!$B$36,INDEX(Ranks!$1:$1048576,$A155,AM$1))","v":""},{"$f":"IF($A155=\"N/A\",Ref!$B$36,INDEX(Ranks!$1:$1048576,$A155,AN$1))","v":""},{"$f":"IF($A155=\"N/A\",Ref!$B$36,INDEX(Ranks!$1:$1048576,$A155,AO$1))","v":""},{"$f":"IF($A155=\"N/A\",Ref!$B$36,INDEX(Ranks!$1:$1048576,$A155,AP$1))","v":""},{"$f":"IF($A155=\"N/A\",Ref!$B$36,INDEX(Ranks!$1:$1048576,$A155,AQ$1))","v":""},{"$f":"IF($A155=\"N/A\",Ref!$B$36,INDEX(Ranks!$1:$1048576,$A155,AR$1))","v":""},{"$f":"IF($A155=\"N/A\",Ref!$B$36,INDEX(Ranks!$1:$1048576,$A155,AS$1))","v":""},{"$f":"IF($A155=\"N/A\",Ref!$B$36,INDEX(Ranks!$1:$1048576,$A155,AT$1))","v":""},{"$f":"IF($A155=\"N/A\",Ref!$B$36,INDEX(Ranks!$1:$1048576,$A155,AU$1))","v":""},{"$f":"IF($A155=\"N/A\",Ref!$B$36,INDEX(Ranks!$1:$1048576,$A155,AV$1))","v":""},{"$f":"IF($A155=\"N/A\",Ref!$B$36,INDEX(Ranks!$1:$1048576,$A155,AW$1))","v":""},{"$f":"IF($A155=\"N/A\",Ref!$B$36,INDEX(Ranks!$1:$1048576,$A155,AX$1))","v":""},{"$f":"IF($A155=\"N/A\",Ref!$B$36,INDEX(Ranks!$1:$1048576,$A155,AY$1))","v":""},{"$f":"IF($A155=\"N/A\",Ref!$B$36,INDEX(Ranks!$1:$1048576,$A155,AZ$1))","v":""},{"$f":"IF($A155=\"N/A\",Ref!$B$36,INDEX(Ranks!$1:$1048576,$A155,BA$1))","v":""},{"$f":"IF($A155=\"N/A\",Ref!$B$36,INDEX(Ranks!$1:$1048576,$A155,BB$1))","v":""},{"$f":"IF($A155=\"N/A\",Ref!$B$36,INDEX(Ranks!$1:$1048576,$A155,BC$1))","v":""},{"$f":"IF($A155=\"N/A\",Ref!$B$36,INDEX(Ranks!$1:$1048576,$A155,BD$1))","v":""},{"$f":"IF($A155=\"N/A\",Ref!$B$36,INDEX(Ranks!$1:$1048576,$A155,BE$1))","v":""},{"$f":"IF($A155=\"N/A\",Ref!$B$36,INDEX(Ranks!$1:$1048576,$A155,BF$1))","v":""},{"$f":"IF($A155=\"N/A\",Ref!$B$36,INDEX(Ranks!$1:$1048576,$A155,BG$1))","v":""},{"$f":"IF($A155=\"N/A\",Ref!$B$36,INDEX(Ranks!$1:$1048576,$A155,BH$1))","v":""},{"$f":"IF($A155=\"N/A\",Ref!$B$36,INDEX(Ranks!$1:$1048576,$A155,BI$1))","v":""},{"$f":"IF($A155=\"N/A\",Ref!$B$36,INDEX(Ranks!$1:$1048576,$A155,BJ$1))","v":""},{"$f":"IF($A155=\"N/A\",Ref!$B$36,INDEX(Ranks!$1:$1048576,$A155,BK$1))","v":""},{"$f":"IF($A155=\"N/A\",Ref!$B$36,INDEX(Ranks!$1:$1048576,$A155,BL$1))","v":""},{"$f":"IF($A155=\"N/A\",Ref!$B$36,INDEX(Ranks!$1:$1048576,$A155,BM$1))","v":""},{"$f":"IF($A155=\"N/A\",Ref!$B$36,INDEX(Ranks!$1:$1048576,$A155,BN$1))","v":""},{"$f":"IF($A155=\"N/A\",Ref!$B$36,INDEX(Ranks!$1:$1048576,$A155,BO$1))","v":""},{"$f":"IF($A155=\"N/A\",Ref!$B$36,INDEX(Ranks!$1:$1048576,$A155,BP$1))","v":""},{"$f":"IF($A155=\"N/A\",Ref!$B$36,INDEX(Ranks!$1:$1048576,$A155,BQ$1))","v":""},{"$f":"IF($A155=\"N/A\",Ref!$B$36,INDEX(Ranks!$1:$1048576,$A155,BR$1))","v":""},{"$f":"IF($A155=\"N/A\",Ref!$B$36,INDEX(Ranks!$1:$1048576,$A155,BS$1))","v":""},{"$f":"IF($A155=\"N/A\",Ref!$B$36,INDEX(Ranks!$1:$1048576,$A155,BT$1))","v":""},{"$f":"IF($A155=\"N/A\",Ref!$B$36,INDEX(Ranks!$1:$1048576,$A155,BU$1))","v":""},{"$f":"IF($A155=\"N/A\",Ref!$B$36,INDEX(Ranks!$1:$1048576,$A155,BV$1))","v":""},{"$f":"IF($A155=\"N/A\",Ref!$B$36,INDEX(Ranks!$1:$1048576,$A155,BW$1))","v":""},{"$f":"IF($A155=\"N/A\",Ref!$B$36,INDEX(Ranks!$1:$1048576,$A155,BX$1))","v":""},{"$f":"IF($A155=\"N/A\",Ref!$B$36,INDEX(Ranks!$1:$1048576,$A155,BY$1))","v":""},{"$f":"IF($A155=\"N/A\",Ref!$B$36,INDEX(Ranks!$1:$1048576,$A155,BZ$1))","v":""},{"$f":"IF($A155=\"N/A\",Ref!$B$36,INDEX(Ranks!$1:$1048576,$A155,CA$1))","v":""},{"$f":"IF($A155=\"N/A\",Ref!$B$36,INDEX(Ranks!$1:$1048576,$A155,CB$1))","v":""},{"$f":"IF($A155=\"N/A\",Ref!$B$36,INDEX(Ranks!$1:$1048576,$A155,CC$1))","v":""},{"$f":"IF($A155=\"N/A\",Ref!$B$36,INDEX(Ranks!$1:$1048576,$A155,CD$1))","v":""},{"$f":"IF($A155=\"N/A\",Ref!$B$36,INDEX(Ranks!$1:$1048576,$A155,CE$1))","v":""},{"$f":"IF($A155=\"N/A\",Ref!$B$36,INDEX(Ranks!$1:$1048576,$A155,CF$1))","v":""},{"$f":"IF($A155=\"N/A\",Ref!$B$36,INDEX(Ranks!$1:$1048576,$A155,CG$1))","v":""},{"$f":"IF($A155=\"N/A\",Ref!$B$36,INDEX(Ranks!$1:$1048576,$A155,CH$1))","v":""},{"$f":"IF($A155=\"N/A\",Ref!$B$36,INDEX(Ranks!$1:$1048576,$A155,CI$1))","v":""},{"$f":"IF($A155=\"N/A\",Ref!$B$36,INDEX(Ranks!$1:$1048576,$A155,CJ$1))","v":""},{"$f":"IF($A155=\"N/A\",Ref!$B$36,INDEX(Ranks!$1:$1048576,$A155,CK$1))","v":""},{"$f":"IF($A155=\"N/A\",Ref!$B$36,INDEX(Ranks!$1:$1048576,$A155,CL$1))","v":""},{"$f":"IF($A155=\"N/A\",Ref!$B$36,INDEX(Ranks!$1:$1048576,$A155,CM$1))","v":""},{"$f":"IF($A155=\"N/A\",Ref!$B$36,INDEX(Ranks!$1:$1048576,$A155,CN$1))","v":""},{"$f":"IF($A155=\"N/A\",Ref!$B$36,INDEX(Ranks!$1:$1048576,$A155,CO$1))","v":""},{"$f":"IF($A155=\"N/A\",Ref!$B$36,INDEX(Ranks!$1:$1048576,$A155,CP$1))","v":""},{"$f":"IF($A155=\"N/A\",Ref!$B$36,INDEX(Ranks!$1:$1048576,$A155,CQ$1))","v":""},{"$f":"IF($A155=\"N/A\",Ref!$B$36,INDEX(Ranks!$1:$1048576,$A155,CR$1))","v":""},{"$f":"IF($A155=\"N/A\",Ref!$B$36,INDEX(Ranks!$1:$1048576,$A155,CS$1))","v":""},{"$f":"IF($A155=\"N/A\",Ref!$B$36,INDEX(Ranks!$1:$1048576,$A155,CT$1))","v":""},{"$f":"IF($A155=\"N/A\",Ref!$B$36,INDEX(Ranks!$1:$1048576,$A155,CU$1))","v":""},{"$f":"IF($A155=\"N/A\",Ref!$B$36,INDEX(Ranks!$1:$1048576,$A155,CV$1))","v":""},{"$f":"IF($A155=\"N/A\",Ref!$B$36,INDEX(Ranks!$1:$1048576,$A155,CW$1))","v":""},{"$f":"IF($A155=\"N/A\",Ref!$B$36,INDEX(Ranks!$1:$1048576,$A155,CX$1))","v":""},{"$f":"IF($A155=\"N/A\",Ref!$B$36,INDEX(Ranks!$1:$1048576,$A155,CY$1))","v":""},{"$f":"IF($A155=\"N/A\",Ref!$B$36,INDEX(Ranks!$1:$1048576,$A155,CZ$1))","v":""},{"$f":"IF($A155=\"N/A\",Ref!$B$36,INDEX(Ranks!$1:$1048576,$A155,DA$1))","v":""},{"$f":"IF($A155=\"N/A\",Ref!$B$36,INDEX(Ranks!$1:$1048576,$A155,DB$1))","v":""},{"$f":"IF($A155=\"N/A\",Ref!$B$36,INDEX(Ranks!$1:$1048576,$A155,DC$1))","v":""},{"$f":"IF($A155=\"N/A\",Ref!$B$36,INDEX(Ranks!$1:$1048576,$A155,DD$1))","v":""},{"$f":"IF($A155=\"N/A\",Ref!$B$36,INDEX(Ranks!$1:$1048576,$A155,DE$1))","v":""},{"$f":"IF($A155=\"N/A\",Ref!$B$36,INDEX(Ranks!$1:$1048576,$A155,DF$1))","v":""},{"$f":"IF($A155=\"N/A\",Ref!$B$36,INDEX(Ranks!$1:$1048576,$A155,DG$1))","v":""},{"$f":"IF($A155=\"N/A\",Ref!$B$36,INDEX(Ranks!$1:$1048576,$A155,DH$1))","v":""},{"$f":"IF($A155=\"N/A\",Ref!$B$36,INDEX(Ranks!$1:$1048576,$A155,DI$1))","v":""},{"$f":"IF($A155=\"N/A\",Ref!$B$36,INDEX(Ranks!$1:$1048576,$A155,DJ$1))","v":""},{"$f":"IF($A155=\"N/A\",Ref!$B$36,INDEX(Ranks!$1:$1048576,$A155,DK$1))","v":""},{"$f":"IF($A155=\"N/A\",Ref!$B$36,INDEX(Ranks!$1:$1048576,$A155,DL$1))","v":""},{"$f":"IF($A155=\"N/A\",Ref!$B$36,INDEX(Ranks!$1:$1048576,$A155,DM$1))","v":""},{"$f":"IF($A155=\"N/A\",Ref!$B$36,INDEX(Ranks!$1:$1048576,$A155,DN$1))","v":""},{"$f":"IF($A155=\"N/A\",Ref!$B$36,INDEX(Ranks!$1:$1048576,$A155,DO$1))","v":""},{"$f":"IF($A155=\"N/A\",Ref!$B$36,INDEX(Ranks!$1:$1048576,$A155,DP$1))","v":""},{"$f":"IF($A155=\"N/A\",Ref!$B$36,INDEX(Ranks!$1:$1048576,$A155,DQ$1))","v":""},{"$f":"IF($A155=\"N/A\",Ref!$B$36,INDEX(Ranks!$1:$1048576,$A155,DR$1))","v":""},{"$f":"IF($A155=\"N/A\",Ref!$B$36,INDEX(Ranks!$1:$1048576,$A155,DS$1))","v":""},{"$f":"IF($A155=\"N/A\",Ref!$B$36,INDEX(Ranks!$1:$1048576,$A155,DT$1))","v":""},{"$f":"IF($A155=\"N/A\",Ref!$B$36,INDEX(Ranks!$1:$1048576,$A155,DU$1))","v":""},{"$f":"IF($A155=\"N/A\",Ref!$B$36,INDEX(Ranks!$1:$1048576,$A155,DV$1))","v":""},{"$f":"IF($A155=\"N/A\",Ref!$B$36,INDEX(Ranks!$1:$1048576,$A155,DW$1))","v":""},{"$f":"IF($A155=\"N/A\",Ref!$B$36,INDEX(Ranks!$1:$1048576,$A155,DX$1))","v":""},{"$f":"IF($A155=\"N/A\",Ref!$B$36,INDEX(Ranks!$1:$1048576,$A155,DY$1))","v":""},{"$f":"IF($A155=\"N/A\",Ref!$B$36,INDEX(Ranks!$1:$1048576,$A155,DZ$1))","v":""},{"$f":"IF($A155=\"N/A\",Ref!$B$36,INDEX(Ranks!$1:$1048576,$A155,EA$1))","v":""},{"$f":"IF($A155=\"N/A\",Ref!$B$36,INDEX(Ranks!$1:$1048576,$A155,EB$1))","v":""}]
[{"$f":"IFERROR(MATCH('Portfolio Page'!L156,Ranks!L:L,0),\"N/A\")","v":"N/A"},null,{"$f":"IF($A156=\"N/A\",\"\",INDEX(Ranks!$1:$1048576,$A156,C$1))","v":""},{"$f":"IF($A156=\"N/A\",Ref!$B$36,INDEX(Ranks!$1:$1048576,$A156,D$1))","v":""},{"$f":"IF($A156=\"N/A\",Ref!$B$36,INDEX(Ranks!$1:$1048576,$A156,E$1))","v":""},{"$f":"IF($A156=\"N/A\",\"\",INDEX(Ranks!$1:$1048576,$A156,F$1))","v":""},{"$f":"IF($A156=\"N/A\",\"\",INDEX(Ranks!$1:$1048576,$A156,G$1))","v":""},{"$f":"IF($A156=\"N/A\",\"\",INDEX(Ranks!$1:$1048576,$A156,H$1))","v":""},{"$f":"IF($A156=\"N/A\",\"\",INDEX(Ranks!$1:$1048576,$A156,I$1))","v":""},{"$f":"IF($A156=\"N/A\",\"\",INDEX(Ranks!$1:$1048576,$A156,J$1))","v":""},{"$f":"IF($A156=\"N/A\",\"\",INDEX(Ranks!$1:$1048576,$A156,K$1))","v":""},null,{"$f":"IF($A156=\"N/A\",Ref!$B$36,INDEX(Ranks!$1:$1048576,$A156,M$1))","v":""},{"$f":"IF($A156=\"N/A\",Ref!$B$36,INDEX(Ranks!$1:$1048576,$A156,N$1))","v":""},{"$f":"IF($A156=\"N/A\",Ref!$B$36,INDEX(Ranks!$1:$1048576,$A156,O$1))","v":""},{"$f":"IF($A156=\"N/A\",Ref!$B$36,INDEX(Ranks!$1:$1048576,$A156,P$1))","v":""},{"$f":"IF($A156=\"N/A\",Ref!$B$36,INDEX(Ranks!$1:$1048576,$A156,Q$1))","v":""},{"$f":"IF($A156=\"N/A\",Ref!$B$36,INDEX(Ranks!$1:$1048576,$A156,R$1))","v":""},{"$f":"IF($A156=\"N/A\",Ref!$B$36,INDEX(Ranks!$1:$1048576,$A156,S$1))","v":""},{"$f":"IF($A156=\"N/A\",Ref!$B$36,INDEX(Ranks!$1:$1048576,$A156,T$1))","v":""},{"$f":"IF($A156=\"N/A\",Ref!$B$36,INDEX(Ranks!$1:$1048576,$A156,U$1))","v":""},{"$f":"IF($A156=\"N/A\",Ref!$B$36,INDEX(Ranks!$1:$1048576,$A156,V$1))","v":""},{"$f":"IF($A156=\"N/A\",Ref!$B$36,INDEX(Ranks!$1:$1048576,$A156,W$1))","v":""},{"$f":"IF($A156=\"N/A\",Ref!$B$36,INDEX(Ranks!$1:$1048576,$A156,X$1))","v":""},{"$f":"IF($A156=\"N/A\",Ref!$B$36,INDEX(Ranks!$1:$1048576,$A156,Y$1))","v":""},{"$f":"IF($A156=\"N/A\",Ref!$B$36,INDEX(Ranks!$1:$1048576,$A156,Z$1))","v":""},{"$f":"IF($A156=\"N/A\",Ref!$B$36,INDEX(Ranks!$1:$1048576,$A156,AA$1))","v":""},{"$f":"IF($A156=\"N/A\",Ref!$B$36,INDEX(Ranks!$1:$1048576,$A156,AB$1))","v":""},{"$f":"IF($A156=\"N/A\",Ref!$B$36,INDEX(Ranks!$1:$1048576,$A156,AC$1))","v":""},{"$f":"IF($A156=\"N/A\",Ref!$B$36,INDEX(Ranks!$1:$1048576,$A156,AD$1))","v":""},{"$f":"IF($A156=\"N/A\",Ref!$B$36,INDEX(Ranks!$1:$1048576,$A156,AE$1))","v":""},{"$f":"IF($A156=\"N/A\",Ref!$B$36,INDEX(Ranks!$1:$1048576,$A156,AF$1))","v":""},{"$f":"IF($A156=\"N/A\",Ref!$B$36,INDEX(Ranks!$1:$1048576,$A156,AG$1))","v":""},{"$f":"IF($A156=\"N/A\",Ref!$B$36,INDEX(Ranks!$1:$1048576,$A156,AH$1))","v":""},{"$f":"IF($A156=\"N/A\",Ref!$B$36,INDEX(Ranks!$1:$1048576,$A156,AI$1))","v":""},{"$f":"IF($A156=\"N/A\",Ref!$B$36,INDEX(Ranks!$1:$1048576,$A156,AJ$1))","v":""},{"$f":"IF($A156=\"N/A\",Ref!$B$36,INDEX(Ranks!$1:$1048576,$A156,AK$1))","v":""},{"$f":"IF($A156=\"N/A\",Ref!$B$36,INDEX(Ranks!$1:$1048576,$A156,AL$1))","v":""},{"$f":"IF($A156=\"N/A\",Ref!$B$36,INDEX(Ranks!$1:$1048576,$A156,AM$1))","v":""},{"$f":"IF($A156=\"N/A\",Ref!$B$36,INDEX(Ranks!$1:$1048576,$A156,AN$1))","v":""},{"$f":"IF($A156=\"N/A\",Ref!$B$36,INDEX(Ranks!$1:$1048576,$A156,AO$1))","v":""},{"$f":"IF($A156=\"N/A\",Ref!$B$36,INDEX(Ranks!$1:$1048576,$A156,AP$1))","v":""},{"$f":"IF($A156=\"N/A\",Ref!$B$36,INDEX(Ranks!$1:$1048576,$A156,AQ$1))","v":""},{"$f":"IF($A156=\"N/A\",Ref!$B$36,INDEX(Ranks!$1:$1048576,$A156,AR$1))","v":""},{"$f":"IF($A156=\"N/A\",Ref!$B$36,INDEX(Ranks!$1:$1048576,$A156,AS$1))","v":""},{"$f":"IF($A156=\"N/A\",Ref!$B$36,INDEX(Ranks!$1:$1048576,$A156,AT$1))","v":""},{"$f":"IF($A156=\"N/A\",Ref!$B$36,INDEX(Ranks!$1:$1048576,$A156,AU$1))","v":""},{"$f":"IF($A156=\"N/A\",Ref!$B$36,INDEX(Ranks!$1:$1048576,$A156,AV$1))","v":""},{"$f":"IF($A156=\"N/A\",Ref!$B$36,INDEX(Ranks!$1:$1048576,$A156,AW$1))","v":""},{"$f":"IF($A156=\"N/A\",Ref!$B$36,INDEX(Ranks!$1:$1048576,$A156,AX$1))","v":""},{"$f":"IF($A156=\"N/A\",Ref!$B$36,INDEX(Ranks!$1:$1048576,$A156,AY$1))","v":""},{"$f":"IF($A156=\"N/A\",Ref!$B$36,INDEX(Ranks!$1:$1048576,$A156,AZ$1))","v":""},{"$f":"IF($A156=\"N/A\",Ref!$B$36,INDEX(Ranks!$1:$1048576,$A156,BA$1))","v":""},{"$f":"IF($A156=\"N/A\",Ref!$B$36,INDEX(Ranks!$1:$1048576,$A156,BB$1))","v":""},{"$f":"IF($A156=\"N/A\",Ref!$B$36,INDEX(Ranks!$1:$1048576,$A156,BC$1))","v":""},{"$f":"IF($A156=\"N/A\",Ref!$B$36,INDEX(Ranks!$1:$1048576,$A156,BD$1))","v":""},{"$f":"IF($A156=\"N/A\",Ref!$B$36,INDEX(Ranks!$1:$1048576,$A156,BE$1))","v":""},{"$f":"IF($A156=\"N/A\",Ref!$B$36,INDEX(Ranks!$1:$1048576,$A156,BF$1))","v":""},{"$f":"IF($A156=\"N/A\",Ref!$B$36,INDEX(Ranks!$1:$1048576,$A156,BG$1))","v":""},{"$f":"IF($A156=\"N/A\",Ref!$B$36,INDEX(Ranks!$1:$1048576,$A156,BH$1))","v":""},{"$f":"IF($A156=\"N/A\",Ref!$B$36,INDEX(Ranks!$1:$1048576,$A156,BI$1))","v":""},{"$f":"IF($A156=\"N/A\",Ref!$B$36,INDEX(Ranks!$1:$1048576,$A156,BJ$1))","v":""},{"$f":"IF($A156=\"N/A\",Ref!$B$36,INDEX(Ranks!$1:$1048576,$A156,BK$1))","v":""},{"$f":"IF($A156=\"N/A\",Ref!$B$36,INDEX(Ranks!$1:$1048576,$A156,BL$1))","v":""},{"$f":"IF($A156=\"N/A\",Ref!$B$36,INDEX(Ranks!$1:$1048576,$A156,BM$1))","v":""},{"$f":"IF($A156=\"N/A\",Ref!$B$36,INDEX(Ranks!$1:$1048576,$A156,BN$1))","v":""},{"$f":"IF($A156=\"N/A\",Ref!$B$36,INDEX(Ranks!$1:$1048576,$A156,BO$1))","v":""},{"$f":"IF($A156=\"N/A\",Ref!$B$36,INDEX(Ranks!$1:$1048576,$A156,BP$1))","v":""},{"$f":"IF($A156=\"N/A\",Ref!$B$36,INDEX(Ranks!$1:$1048576,$A156,BQ$1))","v":""},{"$f":"IF($A156=\"N/A\",Ref!$B$36,INDEX(Ranks!$1:$1048576,$A156,BR$1))","v":""},{"$f":"IF($A156=\"N/A\",Ref!$B$36,INDEX(Ranks!$1:$1048576,$A156,BS$1))","v":""},{"$f":"IF($A156=\"N/A\",Ref!$B$36,INDEX(Ranks!$1:$1048576,$A156,BT$1))","v":""},{"$f":"IF($A156=\"N/A\",Ref!$B$36,INDEX(Ranks!$1:$1048576,$A156,BU$1))","v":""},{"$f":"IF($A156=\"N/A\",Ref!$B$36,INDEX(Ranks!$1:$1048576,$A156,BV$1))","v":""},{"$f":"IF($A156=\"N/A\",Ref!$B$36,INDEX(Ranks!$1:$1048576,$A156,BW$1))","v":""},{"$f":"IF($A156=\"N/A\",Ref!$B$36,INDEX(Ranks!$1:$1048576,$A156,BX$1))","v":""},{"$f":"IF($A156=\"N/A\",Ref!$B$36,INDEX(Ranks!$1:$1048576,$A156,BY$1))","v":""},{"$f":"IF($A156=\"N/A\",Ref!$B$36,INDEX(Ranks!$1:$1048576,$A156,BZ$1))","v":""},{"$f":"IF($A156=\"N/A\",Ref!$B$36,INDEX(Ranks!$1:$1048576,$A156,CA$1))","v":""},{"$f":"IF($A156=\"N/A\",Ref!$B$36,INDEX(Ranks!$1:$1048576,$A156,CB$1))","v":""},{"$f":"IF($A156=\"N/A\",Ref!$B$36,INDEX(Ranks!$1:$1048576,$A156,CC$1))","v":""},{"$f":"IF($A156=\"N/A\",Ref!$B$36,INDEX(Ranks!$1:$1048576,$A156,CD$1))","v":""},{"$f":"IF($A156=\"N/A\",Ref!$B$36,INDEX(Ranks!$1:$1048576,$A156,CE$1))","v":""},{"$f":"IF($A156=\"N/A\",Ref!$B$36,INDEX(Ranks!$1:$1048576,$A156,CF$1))","v":""},{"$f":"IF($A156=\"N/A\",Ref!$B$36,INDEX(Ranks!$1:$1048576,$A156,CG$1))","v":""},{"$f":"IF($A156=\"N/A\",Ref!$B$36,INDEX(Ranks!$1:$1048576,$A156,CH$1))","v":""},{"$f":"IF($A156=\"N/A\",Ref!$B$36,INDEX(Ranks!$1:$1048576,$A156,CI$1))","v":""},{"$f":"IF($A156=\"N/A\",Ref!$B$36,INDEX(Ranks!$1:$1048576,$A156,CJ$1))","v":""},{"$f":"IF($A156=\"N/A\",Ref!$B$36,INDEX(Ranks!$1:$1048576,$A156,CK$1))","v":""},{"$f":"IF($A156=\"N/A\",Ref!$B$36,INDEX(Ranks!$1:$1048576,$A156,CL$1))","v":""},{"$f":"IF($A156=\"N/A\",Ref!$B$36,INDEX(Ranks!$1:$1048576,$A156,CM$1))","v":""},{"$f":"IF($A156=\"N/A\",Ref!$B$36,INDEX(Ranks!$1:$1048576,$A156,CN$1))","v":""},{"$f":"IF($A156=\"N/A\",Ref!$B$36,INDEX(Ranks!$1:$1048576,$A156,CO$1))","v":""},{"$f":"IF($A156=\"N/A\",Ref!$B$36,INDEX(Ranks!$1:$1048576,$A156,CP$1))","v":""},{"$f":"IF($A156=\"N/A\",Ref!$B$36,INDEX(Ranks!$1:$1048576,$A156,CQ$1))","v":""},{"$f":"IF($A156=\"N/A\",Ref!$B$36,INDEX(Ranks!$1:$1048576,$A156,CR$1))","v":""},{"$f":"IF($A156=\"N/A\",Ref!$B$36,INDEX(Ranks!$1:$1048576,$A156,CS$1))","v":""},{"$f":"IF($A156=\"N/A\",Ref!$B$36,INDEX(Ranks!$1:$1048576,$A156,CT$1))","v":""},{"$f":"IF($A156=\"N/A\",Ref!$B$36,INDEX(Ranks!$1:$1048576,$A156,CU$1))","v":""},{"$f":"IF($A156=\"N/A\",Ref!$B$36,INDEX(Ranks!$1:$1048576,$A156,CV$1))","v":""},{"$f":"IF($A156=\"N/A\",Ref!$B$36,INDEX(Ranks!$1:$1048576,$A156,CW$1))","v":""},{"$f":"IF($A156=\"N/A\",Ref!$B$36,INDEX(Ranks!$1:$1048576,$A156,CX$1))","v":""},{"$f":"IF($A156=\"N/A\",Ref!$B$36,INDEX(Ranks!$1:$1048576,$A156,CY$1))","v":""},{"$f":"IF($A156=\"N/A\",Ref!$B$36,INDEX(Ranks!$1:$1048576,$A156,CZ$1))","v":""},{"$f":"IF($A156=\"N/A\",Ref!$B$36,INDEX(Ranks!$1:$1048576,$A156,DA$1))","v":""},{"$f":"IF($A156=\"N/A\",Ref!$B$36,INDEX(Ranks!$1:$1048576,$A156,DB$1))","v":""},{"$f":"IF($A156=\"N/A\",Ref!$B$36,INDEX(Ranks!$1:$1048576,$A156,DC$1))","v":""},{"$f":"IF($A156=\"N/A\",Ref!$B$36,INDEX(Ranks!$1:$1048576,$A156,DD$1))","v":""},{"$f":"IF($A156=\"N/A\",Ref!$B$36,INDEX(Ranks!$1:$1048576,$A156,DE$1))","v":""},{"$f":"IF($A156=\"N/A\",Ref!$B$36,INDEX(Ranks!$1:$1048576,$A156,DF$1))","v":""},{"$f":"IF($A156=\"N/A\",Ref!$B$36,INDEX(Ranks!$1:$1048576,$A156,DG$1))","v":""},{"$f":"IF($A156=\"N/A\",Ref!$B$36,INDEX(Ranks!$1:$1048576,$A156,DH$1))","v":""},{"$f":"IF($A156=\"N/A\",Ref!$B$36,INDEX(Ranks!$1:$1048576,$A156,DI$1))","v":""},{"$f":"IF($A156=\"N/A\",Ref!$B$36,INDEX(Ranks!$1:$1048576,$A156,DJ$1))","v":""},{"$f":"IF($A156=\"N/A\",Ref!$B$36,INDEX(Ranks!$1:$1048576,$A156,DK$1))","v":""},{"$f":"IF($A156=\"N/A\",Ref!$B$36,INDEX(Ranks!$1:$1048576,$A156,DL$1))","v":""},{"$f":"IF($A156=\"N/A\",Ref!$B$36,INDEX(Ranks!$1:$1048576,$A156,DM$1))","v":""},{"$f":"IF($A156=\"N/A\",Ref!$B$36,INDEX(Ranks!$1:$1048576,$A156,DN$1))","v":""},{"$f":"IF($A156=\"N/A\",Ref!$B$36,INDEX(Ranks!$1:$1048576,$A156,DO$1))","v":""},{"$f":"IF($A156=\"N/A\",Ref!$B$36,INDEX(Ranks!$1:$1048576,$A156,DP$1))","v":""},{"$f":"IF($A156=\"N/A\",Ref!$B$36,INDEX(Ranks!$1:$1048576,$A156,DQ$1))","v":""},{"$f":"IF($A156=\"N/A\",Ref!$B$36,INDEX(Ranks!$1:$1048576,$A156,DR$1))","v":""},{"$f":"IF($A156=\"N/A\",Ref!$B$36,INDEX(Ranks!$1:$1048576,$A156,DS$1))","v":""},{"$f":"IF($A156=\"N/A\",Ref!$B$36,INDEX(Ranks!$1:$1048576,$A156,DT$1))","v":""},{"$f":"IF($A156=\"N/A\",Ref!$B$36,INDEX(Ranks!$1:$1048576,$A156,DU$1))","v":""},{"$f":"IF($A156=\"N/A\",Ref!$B$36,INDEX(Ranks!$1:$1048576,$A156,DV$1))","v":""},{"$f":"IF($A156=\"N/A\",Ref!$B$36,INDEX(Ranks!$1:$1048576,$A156,DW$1))","v":""},{"$f":"IF($A156=\"N/A\",Ref!$B$36,INDEX(Ranks!$1:$1048576,$A156,DX$1))","v":""},{"$f":"IF($A156=\"N/A\",Ref!$B$36,INDEX(Ranks!$1:$1048576,$A156,DY$1))","v":""},{"$f":"IF($A156=\"N/A\",Ref!$B$36,INDEX(Ranks!$1:$1048576,$A156,DZ$1))","v":""},{"$f":"IF($A156=\"N/A\",Ref!$B$36,INDEX(Ranks!$1:$1048576,$A156,EA$1))","v":""},{"$f":"IF($A156=\"N/A\",Ref!$B$36,INDEX(Ranks!$1:$1048576,$A156,EB$1))","v":""}]
[{"$f":"IFERROR(MATCH('Portfolio Page'!L157,Ranks!L:L,0),\"N/A\")","v":"N/A"},null,{"$f":"IF($A157=\"N/A\",\"\",INDEX(Ranks!$1:$1048576,$A157,C$1))","v":""},{"$f":"IF($A157=\"N/A\",Ref!$B$36,INDEX(Ranks!$1:$1048576,$A157,D$1))","v":""},{"$f":"IF($A157=\"N/A\",Ref!$B$36,INDEX(Ranks!$1:$1048576,$A157,E$1))","v":""},{"$f":"IF($A157=\"N/A\",\"\",INDEX(Ranks!$1:$1048576,$A157,F$1))","v":""},{"$f":"IF($A157=\"N/A\",\"\",INDEX(Ranks!$1:$1048576,$A157,G$1))","v":""},{"$f":"IF($A157=\"N/A\",\"\",INDEX(Ranks!$1:$1048576,$A157,H$1))","v":""},{"$f":"IF($A157=\"N/A\",\"\",INDEX(Ranks!$1:$1048576,$A157,I$1))","v":""},{"$f":"IF($A157=\"N/A\",\"\",INDEX(Ranks!$1:$1048576,$A157,J$1))","v":""},{"$f":"IF($A157=\"N/A\",\"\",INDEX(Ranks!$1:$1048576,$A157,K$1))","v":""},null,{"$f":"IF($A157=\"N/A\",Ref!$B$36,INDEX(Ranks!$1:$1048576,$A157,M$1))","v":""},{"$f":"IF($A157=\"N/A\",Ref!$B$36,INDEX(Ranks!$1:$1048576,$A157,N$1))","v":""},{"$f":"IF($A157=\"N/A\",Ref!$B$36,INDEX(Ranks!$1:$1048576,$A157,O$1))","v":""},{"$f":"IF($A157=\"N/A\",Ref!$B$36,INDEX(Ranks!$1:$1048576,$A157,P$1))","v":""},{"$f":"IF($A157=\"N/A\",Ref!$B$36,INDEX(Ranks!$1:$1048576,$A157,Q$1))","v":""},{"$f":"IF($A157=\"N/A\",Ref!$B$36,INDEX(Ranks!$1:$1048576,$A157,R$1))","v":""},{"$f":"IF($A157=\"N/A\",Ref!$B$36,INDEX(Ranks!$1:$1048576,$A157,S$1))","v":""},{"$f":"IF($A157=\"N/A\",Ref!$B$36,INDEX(Ranks!$1:$1048576,$A157,T$1))","v":""},{"$f":"IF($A157=\"N/A\",Ref!$B$36,INDEX(Ranks!$1:$1048576,$A157,U$1))","v":""},{"$f":"IF($A157=\"N/A\",Ref!$B$36,INDEX(Ranks!$1:$1048576,$A157,V$1))","v":""},{"$f":"IF($A157=\"N/A\",Ref!$B$36,INDEX(Ranks!$1:$1048576,$A157,W$1))","v":""},{"$f":"IF($A157=\"N/A\",Ref!$B$36,INDEX(Ranks!$1:$1048576,$A157,X$1))","v":""},{"$f":"IF($A157=\"N/A\",Ref!$B$36,INDEX(Ranks!$1:$1048576,$A157,Y$1))","v":""},{"$f":"IF($A157=\"N/A\",Ref!$B$36,INDEX(Ranks!$1:$1048576,$A157,Z$1))","v":""},{"$f":"IF($A157=\"N/A\",Ref!$B$36,INDEX(Ranks!$1:$1048576,$A157,AA$1))","v":""},{"$f":"IF($A157=\"N/A\",Ref!$B$36,INDEX(Ranks!$1:$1048576,$A157,AB$1))","v":""},{"$f":"IF($A157=\"N/A\",Ref!$B$36,INDEX(Ranks!$1:$1048576,$A157,AC$1))","v":""},{"$f":"IF($A157=\"N/A\",Ref!$B$36,INDEX(Ranks!$1:$1048576,$A157,AD$1))","v":""},{"$f":"IF($A157=\"N/A\",Ref!$B$36,INDEX(Ranks!$1:$1048576,$A157,AE$1))","v":""},{"$f":"IF($A157=\"N/A\",Ref!$B$36,INDEX(Ranks!$1:$1048576,$A157,AF$1))","v":""},{"$f":"IF($A157=\"N/A\",Ref!$B$36,INDEX(Ranks!$1:$1048576,$A157,AG$1))","v":""},{"$f":"IF($A157=\"N/A\",Ref!$B$36,INDEX(Ranks!$1:$1048576,$A157,AH$1))","v":""},{"$f":"IF($A157=\"N/A\",Ref!$B$36,INDEX(Ranks!$1:$1048576,$A157,AI$1))","v":""},{"$f":"IF($A157=\"N/A\",Ref!$B$36,INDEX(Ranks!$1:$1048576,$A157,AJ$1))","v":""},{"$f":"IF($A157=\"N/A\",Ref!$B$36,INDEX(Ranks!$1:$1048576,$A157,AK$1))","v":""},{"$f":"IF($A157=\"N/A\",Ref!$B$36,INDEX(Ranks!$1:$1048576,$A157,AL$1))","v":""},{"$f":"IF($A157=\"N/A\",Ref!$B$36,INDEX(Ranks!$1:$1048576,$A157,AM$1))","v":""},{"$f":"IF($A157=\"N/A\",Ref!$B$36,INDEX(Ranks!$1:$1048576,$A157,AN$1))","v":""},{"$f":"IF($A157=\"N/A\",Ref!$B$36,INDEX(Ranks!$1:$1048576,$A157,AO$1))","v":""},{"$f":"IF($A157=\"N/A\",Ref!$B$36,INDEX(Ranks!$1:$1048576,$A157,AP$1))","v":""},{"$f":"IF($A157=\"N/A\",Ref!$B$36,INDEX(Ranks!$1:$1048576,$A157,AQ$1))","v":""},{"$f":"IF($A157=\"N/A\",Ref!$B$36,INDEX(Ranks!$1:$1048576,$A157,AR$1))","v":""},{"$f":"IF($A157=\"N/A\",Ref!$B$36,INDEX(Ranks!$1:$1048576,$A157,AS$1))","v":""},{"$f":"IF($A157=\"N/A\",Ref!$B$36,INDEX(Ranks!$1:$1048576,$A157,AT$1))","v":""},{"$f":"IF($A157=\"N/A\",Ref!$B$36,INDEX(Ranks!$1:$1048576,$A157,AU$1))","v":""},{"$f":"IF($A157=\"N/A\",Ref!$B$36,INDEX(Ranks!$1:$1048576,$A157,AV$1))","v":""},{"$f":"IF($A157=\"N/A\",Ref!$B$36,INDEX(Ranks!$1:$1048576,$A157,AW$1))","v":""},{"$f":"IF($A157=\"N/A\",Ref!$B$36,INDEX(Ranks!$1:$1048576,$A157,AX$1))","v":""},{"$f":"IF($A157=\"N/A\",Ref!$B$36,INDEX(Ranks!$1:$1048576,$A157,AY$1))","v":""},{"$f":"IF($A157=\"N/A\",Ref!$B$36,INDEX(Ranks!$1:$1048576,$A157,AZ$1))","v":""},{"$f":"IF($A157=\"N/A\",Ref!$B$36,INDEX(Ranks!$1:$1048576,$A157,BA$1))","v":""},{"$f":"IF($A157=\"N/A\",Ref!$B$36,INDEX(Ranks!$1:$1048576,$A157,BB$1))","v":""},{"$f":"IF($A157=\"N/A\",Ref!$B$36,INDEX(Ranks!$1:$1048576,$A157,BC$1))","v":""},{"$f":"IF($A157=\"N/A\",Ref!$B$36,INDEX(Ranks!$1:$1048576,$A157,BD$1))","v":""},{"$f":"IF($A157=\"N/A\",Ref!$B$36,INDEX(Ranks!$1:$1048576,$A157,BE$1))","v":""},{"$f":"IF($A157=\"N/A\",Ref!$B$36,INDEX(Ranks!$1:$1048576,$A157,BF$1))","v":""},{"$f":"IF($A157=\"N/A\",Ref!$B$36,INDEX(Ranks!$1:$1048576,$A157,BG$1))","v":""},{"$f":"IF($A157=\"N/A\",Ref!$B$36,INDEX(Ranks!$1:$1048576,$A157,BH$1))","v":""},{"$f":"IF($A157=\"N/A\",Ref!$B$36,INDEX(Ranks!$1:$1048576,$A157,BI$1))","v":""},{"$f":"IF($A157=\"N/A\",Ref!$B$36,INDEX(Ranks!$1:$1048576,$A157,BJ$1))","v":""},{"$f":"IF($A157=\"N/A\",Ref!$B$36,INDEX(Ranks!$1:$1048576,$A157,BK$1))","v":""},{"$f":"IF($A157=\"N/A\",Ref!$B$36,INDEX(Ranks!$1:$1048576,$A157,BL$1))","v":""},{"$f":"IF($A157=\"N/A\",Ref!$B$36,INDEX(Ranks!$1:$1048576,$A157,BM$1))","v":""},{"$f":"IF($A157=\"N/A\",Ref!$B$36,INDEX(Ranks!$1:$1048576,$A157,BN$1))","v":""},{"$f":"IF($A157=\"N/A\",Ref!$B$36,INDEX(Ranks!$1:$1048576,$A157,BO$1))","v":""},{"$f":"IF($A157=\"N/A\",Ref!$B$36,INDEX(Ranks!$1:$1048576,$A157,BP$1))","v":""},{"$f":"IF($A157=\"N/A\",Ref!$B$36,INDEX(Ranks!$1:$1048576,$A157,BQ$1))","v":""},{"$f":"IF($A157=\"N/A\",Ref!$B$36,INDEX(Ranks!$1:$1048576,$A157,BR$1))","v":""},{"$f":"IF($A157=\"N/A\",Ref!$B$36,INDEX(Ranks!$1:$1048576,$A157,BS$1))","v":""},{"$f":"IF($A157=\"N/A\",Ref!$B$36,INDEX(Ranks!$1:$1048576,$A157,BT$1))","v":""},{"$f":"IF($A157=\"N/A\",Ref!$B$36,INDEX(Ranks!$1:$1048576,$A157,BU$1))","v":""},{"$f":"IF($A157=\"N/A\",Ref!$B$36,INDEX(Ranks!$1:$1048576,$A157,BV$1))","v":""},{"$f":"IF($A157=\"N/A\",Ref!$B$36,INDEX(Ranks!$1:$1048576,$A157,BW$1))","v":""},{"$f":"IF($A157=\"N/A\",Ref!$B$36,INDEX(Ranks!$1:$1048576,$A157,BX$1))","v":""},{"$f":"IF($A157=\"N/A\",Ref!$B$36,INDEX(Ranks!$1:$1048576,$A157,BY$1))","v":""},{"$f":"IF($A157=\"N/A\",Ref!$B$36,INDEX(Ranks!$1:$1048576,$A157,BZ$1))","v":""},{"$f":"IF($A157=\"N/A\",Ref!$B$36,INDEX(Ranks!$1:$1048576,$A157,CA$1))","v":""},{"$f":"IF($A157=\"N/A\",Ref!$B$36,INDEX(Ranks!$1:$1048576,$A157,CB$1))","v":""},{"$f":"IF($A157=\"N/A\",Ref!$B$36,INDEX(Ranks!$1:$1048576,$A157,CC$1))","v":""},{"$f":"IF($A157=\"N/A\",Ref!$B$36,INDEX(Ranks!$1:$1048576,$A157,CD$1))","v":""},{"$f":"IF($A157=\"N/A\",Ref!$B$36,INDEX(Ranks!$1:$1048576,$A157,CE$1))","v":""},{"$f":"IF($A157=\"N/A\",Ref!$B$36,INDEX(Ranks!$1:$1048576,$A157,CF$1))","v":""},{"$f":"IF($A157=\"N/A\",Ref!$B$36,INDEX(Ranks!$1:$1048576,$A157,CG$1))","v":""},{"$f":"IF($A157=\"N/A\",Ref!$B$36,INDEX(Ranks!$1:$1048576,$A157,CH$1))","v":""},{"$f":"IF($A157=\"N/A\",Ref!$B$36,INDEX(Ranks!$1:$1048576,$A157,CI$1))","v":""},{"$f":"IF($A157=\"N/A\",Ref!$B$36,INDEX(Ranks!$1:$1048576,$A157,CJ$1))","v":""},{"$f":"IF($A157=\"N/A\",Ref!$B$36,INDEX(Ranks!$1:$1048576,$A157,CK$1))","v":""},{"$f":"IF($A157=\"N/A\",Ref!$B$36,INDEX(Ranks!$1:$1048576,$A157,CL$1))","v":""},{"$f":"IF($A157=\"N/A\",Ref!$B$36,INDEX(Ranks!$1:$1048576,$A157,CM$1))","v":""},{"$f":"IF($A157=\"N/A\",Ref!$B$36,INDEX(Ranks!$1:$1048576,$A157,CN$1))","v":""},{"$f":"IF($A157=\"N/A\",Ref!$B$36,INDEX(Ranks!$1:$1048576,$A157,CO$1))","v":""},{"$f":"IF($A157=\"N/A\",Ref!$B$36,INDEX(Ranks!$1:$1048576,$A157,CP$1))","v":""},{"$f":"IF($A157=\"N/A\",Ref!$B$36,INDEX(Ranks!$1:$1048576,$A157,CQ$1))","v":""},{"$f":"IF($A157=\"N/A\",Ref!$B$36,INDEX(Ranks!$1:$1048576,$A157,CR$1))","v":""},{"$f":"IF($A157=\"N/A\",Ref!$B$36,INDEX(Ranks!$1:$1048576,$A157,CS$1))","v":""},{"$f":"IF($A157=\"N/A\",Ref!$B$36,INDEX(Ranks!$1:$1048576,$A157,CT$1))","v":""},{"$f":"IF($A157=\"N/A\",Ref!$B$36,INDEX(Ranks!$1:$1048576,$A157,CU$1))","v":""},{"$f":"IF($A157=\"N/A\",Ref!$B$36,INDEX(Ranks!$1:$1048576,$A157,CV$1))","v":""},{"$f":"IF($A157=\"N/A\",Ref!$B$36,INDEX(Ranks!$1:$1048576,$A157,CW$1))","v":""},{"$f":"IF($A157=\"N/A\",Ref!$B$36,INDEX(Ranks!$1:$1048576,$A157,CX$1))","v":""},{"$f":"IF($A157=\"N/A\",Ref!$B$36,INDEX(Ranks!$1:$1048576,$A157,CY$1))","v":""},{"$f":"IF($A157=\"N/A\",Ref!$B$36,INDEX(Ranks!$1:$1048576,$A157,CZ$1))","v":""},{"$f":"IF($A157=\"N/A\",Ref!$B$36,INDEX(Ranks!$1:$1048576,$A157,DA$1))","v":""},{"$f":"IF($A157=\"N/A\",Ref!$B$36,INDEX(Ranks!$1:$1048576,$A157,DB$1))","v":""},{"$f":"IF($A157=\"N/A\",Ref!$B$36,INDEX(Ranks!$1:$1048576,$A157,DC$1))","v":""},{"$f":"IF($A157=\"N/A\",Ref!$B$36,INDEX(Ranks!$1:$1048576,$A157,DD$1))","v":""},{"$f":"IF($A157=\"N/A\",Ref!$B$36,INDEX(Ranks!$1:$1048576,$A157,DE$1))","v":""},{"$f":"IF($A157=\"N/A\",Ref!$B$36,INDEX(Ranks!$1:$1048576,$A157,DF$1))","v":""},{"$f":"IF($A157=\"N/A\",Ref!$B$36,INDEX(Ranks!$1:$1048576,$A157,DG$1))","v":""},{"$f":"IF($A157=\"N/A\",Ref!$B$36,INDEX(Ranks!$1:$1048576,$A157,DH$1))","v":""},{"$f":"IF($A157=\"N/A\",Ref!$B$36,INDEX(Ranks!$1:$1048576,$A157,DI$1))","v":""},{"$f":"IF($A157=\"N/A\",Ref!$B$36,INDEX(Ranks!$1:$1048576,$A157,DJ$1))","v":""},{"$f":"IF($A157=\"N/A\",Ref!$B$36,INDEX(Ranks!$1:$1048576,$A157,DK$1))","v":""},{"$f":"IF($A157=\"N/A\",Ref!$B$36,INDEX(Ranks!$1:$1048576,$A157,DL$1))","v":""},{"$f":"IF($A157=\"N/A\",Ref!$B$36,INDEX(Ranks!$1:$1048576,$A157,DM$1))","v":""},{"$f":"IF($A157=\"N/A\",Ref!$B$36,INDEX(Ranks!$1:$1048576,$A157,DN$1))","v":""},{"$f":"IF($A157=\"N/A\",Ref!$B$36,INDEX(Ranks!$1:$1048576,$A157,DO$1))","v":""},{"$f":"IF($A157=\"N/A\",Ref!$B$36,INDEX(Ranks!$1:$1048576,$A157,DP$1))","v":""},{"$f":"IF($A157=\"N/A\",Ref!$B$36,INDEX(Ranks!$1:$1048576,$A157,DQ$1))","v":""},{"$f":"IF($A157=\"N/A\",Ref!$B$36,INDEX(Ranks!$1:$1048576,$A157,DR$1))","v":""},{"$f":"IF($A157=\"N/A\",Ref!$B$36,INDEX(Ranks!$1:$1048576,$A157,DS$1))","v":""},{"$f":"IF($A157=\"N/A\",Ref!$B$36,INDEX(Ranks!$1:$1048576,$A157,DT$1))","v":""},{"$f":"IF($A157=\"N/A\",Ref!$B$36,INDEX(Ranks!$1:$1048576,$A157,DU$1))","v":""},{"$f":"IF($A157=\"N/A\",Ref!$B$36,INDEX(Ranks!$1:$1048576,$A157,DV$1))","v":""},{"$f":"IF($A157=\"N/A\",Ref!$B$36,INDEX(Ranks!$1:$1048576,$A157,DW$1))","v":""},{"$f":"IF($A157=\"N/A\",Ref!$B$36,INDEX(Ranks!$1:$1048576,$A157,DX$1))","v":""},{"$f":"IF($A157=\"N/A\",Ref!$B$36,INDEX(Ranks!$1:$1048576,$A157,DY$1))","v":""},{"$f":"IF($A157=\"N/A\",Ref!$B$36,INDEX(Ranks!$1:$1048576,$A157,DZ$1))","v":""},{"$f":"IF($A157=\"N/A\",Ref!$B$36,INDEX(Ranks!$1:$1048576,$A157,EA$1))","v":""},{"$f":"IF($A157=\"N/A\",Ref!$B$36,INDEX(Ranks!$1:$1048576,$A157,EB$1))","v":""}]
[{"$f":"IFERROR(MATCH('Portfolio Page'!L158,Ranks!L:L,0),\"N/A\")","v":"N/A"},null,{"$f":"IF($A158=\"N/A\",\"\",INDEX(Ranks!$1:$1048576,$A158,C$1))","v":""},{"$f":"IF($A158=\"N/A\",Ref!$B$36,INDEX(Ranks!$1:$1048576,$A158,D$1))","v":""},{"$f":"IF($A158=\"N/A\",Ref!$B$36,INDEX(Ranks!$1:$1048576,$A158,E$1))","v":""},{"$f":"IF($A158=\"N/A\",\"\",INDEX(Ranks!$1:$1048576,$A158,F$1))","v":""},{"$f":"IF($A158=\"N/A\",\"\",INDEX(Ranks!$1:$1048576,$A158,G$1))","v":""},{"$f":"IF($A158=\"N/A\",\"\",INDEX(Ranks!$1:$1048576,$A158,H$1))","v":""},{"$f":"IF($A158=\"N/A\",\"\",INDEX(Ranks!$1:$1048576,$A158,I$1))","v":""},{"$f":"IF($A158=\"N/A\",\"\",INDEX(Ranks!$1:$1048576,$A158,J$1))","v":""},{"$f":"IF($A158=\"N/A\",\"\",INDEX(Ranks!$1:$1048576,$A158,K$1))","v":""},null,{"$f":"IF($A158=\"N/A\",Ref!$B$36,INDEX(Ranks!$1:$1048576,$A158,M$1))","v":""},{"$f":"IF($A158=\"N/A\",Ref!$B$36,INDEX(Ranks!$1:$1048576,$A158,N$1))","v":""},{"$f":"IF($A158=\"N/A\",Ref!$B$36,INDEX(Ranks!$1:$1048576,$A158,O$1))","v":""},{"$f":"IF($A158=\"N/A\",Ref!$B$36,INDEX(Ranks!$1:$1048576,$A158,P$1))","v":""},{"$f":"IF($A158=\"N/A\",Ref!$B$36,INDEX(Ranks!$1:$1048576,$A158,Q$1))","v":""},{"$f":"IF($A158=\"N/A\",Ref!$B$36,INDEX(Ranks!$1:$1048576,$A158,R$1))","v":""},{"$f":"IF($A158=\"N/A\",Ref!$B$36,INDEX(Ranks!$1:$1048576,$A158,S$1))","v":""},{"$f":"IF($A158=\"N/A\",Ref!$B$36,INDEX(Ranks!$1:$1048576,$A158,T$1))","v":""},{"$f":"IF($A158=\"N/A\",Ref!$B$36,INDEX(Ranks!$1:$1048576,$A158,U$1))","v":""},{"$f":"IF($A158=\"N/A\",Ref!$B$36,INDEX(Ranks!$1:$1048576,$A158,V$1))","v":""},{"$f":"IF($A158=\"N/A\",Ref!$B$36,INDEX(Ranks!$1:$1048576,$A158,W$1))","v":""},{"$f":"IF($A158=\"N/A\",Ref!$B$36,INDEX(Ranks!$1:$1048576,$A158,X$1))","v":""},{"$f":"IF($A158=\"N/A\",Ref!$B$36,INDEX(Ranks!$1:$1048576,$A158,Y$1))","v":""},{"$f":"IF($A158=\"N/A\",Ref!$B$36,INDEX(Ranks!$1:$1048576,$A158,Z$1))","v":""},{"$f":"IF($A158=\"N/A\",Ref!$B$36,INDEX(Ranks!$1:$1048576,$A158,AA$1))","v":""},{"$f":"IF($A158=\"N/A\",Ref!$B$36,INDEX(Ranks!$1:$1048576,$A158,AB$1))","v":""},{"$f":"IF($A158=\"N/A\",Ref!$B$36,INDEX(Ranks!$1:$1048576,$A158,AC$1))","v":""},{"$f":"IF($A158=\"N/A\",Ref!$B$36,INDEX(Ranks!$1:$1048576,$A158,AD$1))","v":""},{"$f":"IF($A158=\"N/A\",Ref!$B$36,INDEX(Ranks!$1:$1048576,$A158,AE$1))","v":""},{"$f":"IF($A158=\"N/A\",Ref!$B$36,INDEX(Ranks!$1:$1048576,$A158,AF$1))","v":""},{"$f":"IF($A158=\"N/A\",Ref!$B$36,INDEX(Ranks!$1:$1048576,$A158,AG$1))","v":""},{"$f":"IF($A158=\"N/A\",Ref!$B$36,INDEX(Ranks!$1:$1048576,$A158,AH$1))","v":""},{"$f":"IF($A158=\"N/A\",Ref!$B$36,INDEX(Ranks!$1:$1048576,$A158,AI$1))","v":""},{"$f":"IF($A158=\"N/A\",Ref!$B$36,INDEX(Ranks!$1:$1048576,$A158,AJ$1))","v":""},{"$f":"IF($A158=\"N/A\",Ref!$B$36,INDEX(Ranks!$1:$1048576,$A158,AK$1))","v":""},{"$f":"IF($A158=\"N/A\",Ref!$B$36,INDEX(Ranks!$1:$1048576,$A158,AL$1))","v":""},{"$f":"IF($A158=\"N/A\",Ref!$B$36,INDEX(Ranks!$1:$1048576,$A158,AM$1))","v":""},{"$f":"IF($A158=\"N/A\",Ref!$B$36,INDEX(Ranks!$1:$1048576,$A158,AN$1))","v":""},{"$f":"IF($A158=\"N/A\",Ref!$B$36,INDEX(Ranks!$1:$1048576,$A158,AO$1))","v":""},{"$f":"IF($A158=\"N/A\",Ref!$B$36,INDEX(Ranks!$1:$1048576,$A158,AP$1))","v":""},{"$f":"IF($A158=\"N/A\",Ref!$B$36,INDEX(Ranks!$1:$1048576,$A158,AQ$1))","v":""},{"$f":"IF($A158=\"N/A\",Ref!$B$36,INDEX(Ranks!$1:$1048576,$A158,AR$1))","v":""},{"$f":"IF($A158=\"N/A\",Ref!$B$36,INDEX(Ranks!$1:$1048576,$A158,AS$1))","v":""},{"$f":"IF($A158=\"N/A\",Ref!$B$36,INDEX(Ranks!$1:$1048576,$A158,AT$1))","v":""},{"$f":"IF($A158=\"N/A\",Ref!$B$36,INDEX(Ranks!$1:$1048576,$A158,AU$1))","v":""},{"$f":"IF($A158=\"N/A\",Ref!$B$36,INDEX(Ranks!$1:$1048576,$A158,AV$1))","v":""},{"$f":"IF($A158=\"N/A\",Ref!$B$36,INDEX(Ranks!$1:$1048576,$A158,AW$1))","v":""},{"$f":"IF($A158=\"N/A\",Ref!$B$36,INDEX(Ranks!$1:$1048576,$A158,AX$1))","v":""},{"$f":"IF($A158=\"N/A\",Ref!$B$36,INDEX(Ranks!$1:$1048576,$A158,AY$1))","v":""},{"$f":"IF($A158=\"N/A\",Ref!$B$36,INDEX(Ranks!$1:$1048576,$A158,AZ$1))","v":""},{"$f":"IF($A158=\"N/A\",Ref!$B$36,INDEX(Ranks!$1:$1048576,$A158,BA$1))","v":""},{"$f":"IF($A158=\"N/A\",Ref!$B$36,INDEX(Ranks!$1:$1048576,$A158,BB$1))","v":""},{"$f":"IF($A158=\"N/A\",Ref!$B$36,INDEX(Ranks!$1:$1048576,$A158,BC$1))","v":""},{"$f":"IF($A158=\"N/A\",Ref!$B$36,INDEX(Ranks!$1:$1048576,$A158,BD$1))","v":""},{"$f":"IF($A158=\"N/A\",Ref!$B$36,INDEX(Ranks!$1:$1048576,$A158,BE$1))","v":""},{"$f":"IF($A158=\"N/A\",Ref!$B$36,INDEX(Ranks!$1:$1048576,$A158,BF$1))","v":""},{"$f":"IF($A158=\"N/A\",Ref!$B$36,INDEX(Ranks!$1:$1048576,$A158,BG$1))","v":""},{"$f":"IF($A158=\"N/A\",Ref!$B$36,INDEX(Ranks!$1:$1048576,$A158,BH$1))","v":""},{"$f":"IF($A158=\"N/A\",Ref!$B$36,INDEX(Ranks!$1:$1048576,$A158,BI$1))","v":""},{"$f":"IF($A158=\"N/A\",Ref!$B$36,INDEX(Ranks!$1:$1048576,$A158,BJ$1))","v":""},{"$f":"IF($A158=\"N/A\",Ref!$B$36,INDEX(Ranks!$1:$1048576,$A158,BK$1))","v":""},{"$f":"IF($A158=\"N/A\",Ref!$B$36,INDEX(Ranks!$1:$1048576,$A158,BL$1))","v":""},{"$f":"IF($A158=\"N/A\",Ref!$B$36,INDEX(Ranks!$1:$1048576,$A158,BM$1))","v":""},{"$f":"IF($A158=\"N/A\",Ref!$B$36,INDEX(Ranks!$1:$1048576,$A158,BN$1))","v":""},{"$f":"IF($A158=\"N/A\",Ref!$B$36,INDEX(Ranks!$1:$1048576,$A158,BO$1))","v":""},{"$f":"IF($A158=\"N/A\",Ref!$B$36,INDEX(Ranks!$1:$1048576,$A158,BP$1))","v":""},{"$f":"IF($A158=\"N/A\",Ref!$B$36,INDEX(Ranks!$1:$1048576,$A158,BQ$1))","v":""},{"$f":"IF($A158=\"N/A\",Ref!$B$36,INDEX(Ranks!$1:$1048576,$A158,BR$1))","v":""},{"$f":"IF($A158=\"N/A\",Ref!$B$36,INDEX(Ranks!$1:$1048576,$A158,BS$1))","v":""},{"$f":"IF($A158=\"N/A\",Ref!$B$36,INDEX(Ranks!$1:$1048576,$A158,BT$1))","v":""},{"$f":"IF($A158=\"N/A\",Ref!$B$36,INDEX(Ranks!$1:$1048576,$A158,BU$1))","v":""},{"$f":"IF($A158=\"N/A\",Ref!$B$36,INDEX(Ranks!$1:$1048576,$A158,BV$1))","v":""},{"$f":"IF($A158=\"N/A\",Ref!$B$36,INDEX(Ranks!$1:$1048576,$A158,BW$1))","v":""},{"$f":"IF($A158=\"N/A\",Ref!$B$36,INDEX(Ranks!$1:$1048576,$A158,BX$1))","v":""},{"$f":"IF($A158=\"N/A\",Ref!$B$36,INDEX(Ranks!$1:$1048576,$A158,BY$1))","v":""},{"$f":"IF($A158=\"N/A\",Ref!$B$36,INDEX(Ranks!$1:$1048576,$A158,BZ$1))","v":""},{"$f":"IF($A158=\"N/A\",Ref!$B$36,INDEX(Ranks!$1:$1048576,$A158,CA$1))","v":""},{"$f":"IF($A158=\"N/A\",Ref!$B$36,INDEX(Ranks!$1:$1048576,$A158,CB$1))","v":""},{"$f":"IF($A158=\"N/A\",Ref!$B$36,INDEX(Ranks!$1:$1048576,$A158,CC$1))","v":""},{"$f":"IF($A158=\"N/A\",Ref!$B$36,INDEX(Ranks!$1:$1048576,$A158,CD$1))","v":""},{"$f":"IF($A158=\"N/A\",Ref!$B$36,INDEX(Ranks!$1:$1048576,$A158,CE$1))","v":""},{"$f":"IF($A158=\"N/A\",Ref!$B$36,INDEX(Ranks!$1:$1048576,$A158,CF$1))","v":""},{"$f":"IF($A158=\"N/A\",Ref!$B$36,INDEX(Ranks!$1:$1048576,$A158,CG$1))","v":""},{"$f":"IF($A158=\"N/A\",Ref!$B$36,INDEX(Ranks!$1:$1048576,$A158,CH$1))","v":""},{"$f":"IF($A158=\"N/A\",Ref!$B$36,INDEX(Ranks!$1:$1048576,$A158,CI$1))","v":""},{"$f":"IF($A158=\"N/A\",Ref!$B$36,INDEX(Ranks!$1:$1048576,$A158,CJ$1))","v":""},{"$f":"IF($A158=\"N/A\",Ref!$B$36,INDEX(Ranks!$1:$1048576,$A158,CK$1))","v":""},{"$f":"IF($A158=\"N/A\",Ref!$B$36,INDEX(Ranks!$1:$1048576,$A158,CL$1))","v":""},{"$f":"IF($A158=\"N/A\",Ref!$B$36,INDEX(Ranks!$1:$1048576,$A158,CM$1))","v":""},{"$f":"IF($A158=\"N/A\",Ref!$B$36,INDEX(Ranks!$1:$1048576,$A158,CN$1))","v":""},{"$f":"IF($A158=\"N/A\",Ref!$B$36,INDEX(Ranks!$1:$1048576,$A158,CO$1))","v":""},{"$f":"IF($A158=\"N/A\",Ref!$B$36,INDEX(Ranks!$1:$1048576,$A158,CP$1))","v":""},{"$f":"IF($A158=\"N/A\",Ref!$B$36,INDEX(Ranks!$1:$1048576,$A158,CQ$1))","v":""},{"$f":"IF($A158=\"N/A\",Ref!$B$36,INDEX(Ranks!$1:$1048576,$A158,CR$1))","v":""},{"$f":"IF($A158=\"N/A\",Ref!$B$36,INDEX(Ranks!$1:$1048576,$A158,CS$1))","v":""},{"$f":"IF($A158=\"N/A\",Ref!$B$36,INDEX(Ranks!$1:$1048576,$A158,CT$1))","v":""},{"$f":"IF($A158=\"N/A\",Ref!$B$36,INDEX(Ranks!$1:$1048576,$A158,CU$1))","v":""},{"$f":"IF($A158=\"N/A\",Ref!$B$36,INDEX(Ranks!$1:$1048576,$A158,CV$1))","v":""},{"$f":"IF($A158=\"N/A\",Ref!$B$36,INDEX(Ranks!$1:$1048576,$A158,CW$1))","v":""},{"$f":"IF($A158=\"N/A\",Ref!$B$36,INDEX(Ranks!$1:$1048576,$A158,CX$1))","v":""},{"$f":"IF($A158=\"N/A\",Ref!$B$36,INDEX(Ranks!$1:$1048576,$A158,CY$1))","v":""},{"$f":"IF($A158=\"N/A\",Ref!$B$36,INDEX(Ranks!$1:$1048576,$A158,CZ$1))","v":""},{"$f":"IF($A158=\"N/A\",Ref!$B$36,INDEX(Ranks!$1:$1048576,$A158,DA$1))","v":""},{"$f":"IF($A158=\"N/A\",Ref!$B$36,INDEX(Ranks!$1:$1048576,$A158,DB$1))","v":""},{"$f":"IF($A158=\"N/A\",Ref!$B$36,INDEX(Ranks!$1:$1048576,$A158,DC$1))","v":""},{"$f":"IF($A158=\"N/A\",Ref!$B$36,INDEX(Ranks!$1:$1048576,$A158,DD$1))","v":""},{"$f":"IF($A158=\"N/A\",Ref!$B$36,INDEX(Ranks!$1:$1048576,$A158,DE$1))","v":""},{"$f":"IF($A158=\"N/A\",Ref!$B$36,INDEX(Ranks!$1:$1048576,$A158,DF$1))","v":""},{"$f":"IF($A158=\"N/A\",Ref!$B$36,INDEX(Ranks!$1:$1048576,$A158,DG$1))","v":""},{"$f":"IF($A158=\"N/A\",Ref!$B$36,INDEX(Ranks!$1:$1048576,$A158,DH$1))","v":""},{"$f":"IF($A158=\"N/A\",Ref!$B$36,INDEX(Ranks!$1:$1048576,$A158,DI$1))","v":""},{"$f":"IF($A158=\"N/A\",Ref!$B$36,INDEX(Ranks!$1:$1048576,$A158,DJ$1))","v":""},{"$f":"IF($A158=\"N/A\",Ref!$B$36,INDEX(Ranks!$1:$1048576,$A158,DK$1))","v":""},{"$f":"IF($A158=\"N/A\",Ref!$B$36,INDEX(Ranks!$1:$1048576,$A158,DL$1))","v":""},{"$f":"IF($A158=\"N/A\",Ref!$B$36,INDEX(Ranks!$1:$1048576,$A158,DM$1))","v":""},{"$f":"IF($A158=\"N/A\",Ref!$B$36,INDEX(Ranks!$1:$1048576,$A158,DN$1))","v":""},{"$f":"IF($A158=\"N/A\",Ref!$B$36,INDEX(Ranks!$1:$1048576,$A158,DO$1))","v":""},{"$f":"IF($A158=\"N/A\",Ref!$B$36,INDEX(Ranks!$1:$1048576,$A158,DP$1))","v":""},{"$f":"IF($A158=\"N/A\",Ref!$B$36,INDEX(Ranks!$1:$1048576,$A158,DQ$1))","v":""},{"$f":"IF($A158=\"N/A\",Ref!$B$36,INDEX(Ranks!$1:$1048576,$A158,DR$1))","v":""},{"$f":"IF($A158=\"N/A\",Ref!$B$36,INDEX(Ranks!$1:$1048576,$A158,DS$1))","v":""},{"$f":"IF($A158=\"N/A\",Ref!$B$36,INDEX(Ranks!$1:$1048576,$A158,DT$1))","v":""},{"$f":"IF($A158=\"N/A\",Ref!$B$36,INDEX(Ranks!$1:$1048576,$A158,DU$1))","v":""},{"$f":"IF($A158=\"N/A\",Ref!$B$36,INDEX(Ranks!$1:$1048576,$A158,DV$1))","v":""},{"$f":"IF($A158=\"N/A\",Ref!$B$36,INDEX(Ranks!$1:$1048576,$A158,DW$1))","v":""},{"$f":"IF($A158=\"N/A\",Ref!$B$36,INDEX(Ranks!$1:$1048576,$A158,DX$1))","v":""},{"$f":"IF($A158=\"N/A\",Ref!$B$36,INDEX(Ranks!$1:$1048576,$A158,DY$1))","v":""},{"$f":"IF($A158=\"N/A\",Ref!$B$36,INDEX(Ranks!$1:$1048576,$A158,DZ$1))","v":""},{"$f":"IF($A158=\"N/A\",Ref!$B$36,INDEX(Ranks!$1:$1048576,$A158,EA$1))","v":""},{"$f":"IF($A158=\"N/A\",Ref!$B$36,INDEX(Ranks!$1:$1048576,$A158,EB$1))","v":""}]
[{"$f":"IFERROR(MATCH('Portfolio Page'!L159,Ranks!L:L,0),\"N/A\")","v":"N/A"},null,{"$f":"IF($A159=\"N/A\",\"\",INDEX(Ranks!$1:$1048576,$A159,C$1))","v":""},{"$f":"IF($A159=\"N/A\",Ref!$B$36,INDEX(Ranks!$1:$1048576,$A159,D$1))","v":""},{"$f":"IF($A159=\"N/A\",Ref!$B$36,INDEX(Ranks!$1:$1048576,$A159,E$1))","v":""},{"$f":"IF($A159=\"N/A\",\"\",INDEX(Ranks!$1:$1048576,$A159,F$1))","v":""},{"$f":"IF($A159=\"N/A\",\"\",INDEX(Ranks!$1:$1048576,$A159,G$1))","v":""},{"$f":"IF($A159=\"N/A\",\"\",INDEX(Ranks!$1:$1048576,$A159,H$1))","v":""},{"$f":"IF($A159=\"N/A\",\"\",INDEX(Ranks!$1:$1048576,$A159,I$1))","v":""},{"$f":"IF($A159=\"N/A\",\"\",INDEX(Ranks!$1:$1048576,$A159,J$1))","v":""},{"$f":"IF($A159=\"N/A\",\"\",INDEX(Ranks!$1:$1048576,$A159,K$1))","v":""},null,{"$f":"IF($A159=\"N/A\",Ref!$B$36,INDEX(Ranks!$1:$1048576,$A159,M$1))","v":""},{"$f":"IF($A159=\"N/A\",Ref!$B$36,INDEX(Ranks!$1:$1048576,$A159,N$1))","v":""},{"$f":"IF($A159=\"N/A\",Ref!$B$36,INDEX(Ranks!$1:$1048576,$A159,O$1))","v":""},{"$f":"IF($A159=\"N/A\",Ref!$B$36,INDEX(Ranks!$1:$1048576,$A159,P$1))","v":""},{"$f":"IF($A159=\"N/A\",Ref!$B$36,INDEX(Ranks!$1:$1048576,$A159,Q$1))","v":""},{"$f":"IF($A159=\"N/A\",Ref!$B$36,INDEX(Ranks!$1:$1048576,$A159,R$1))","v":""},{"$f":"IF($A159=\"N/A\",Ref!$B$36,INDEX(Ranks!$1:$1048576,$A159,S$1))","v":""},{"$f":"IF($A159=\"N/A\",Ref!$B$36,INDEX(Ranks!$1:$1048576,$A159,T$1))","v":""},{"$f":"IF($A159=\"N/A\",Ref!$B$36,INDEX(Ranks!$1:$1048576,$A159,U$1))","v":""},{"$f":"IF($A159=\"N/A\",Ref!$B$36,INDEX(Ranks!$1:$1048576,$A159,V$1))","v":""},{"$f":"IF($A159=\"N/A\",Ref!$B$36,INDEX(Ranks!$1:$1048576,$A159,W$1))","v":""},{"$f":"IF($A159=\"N/A\",Ref!$B$36,INDEX(Ranks!$1:$1048576,$A159,X$1))","v":""},{"$f":"IF($A159=\"N/A\",Ref!$B$36,INDEX(Ranks!$1:$1048576,$A159,Y$1))","v":""},{"$f":"IF($A159=\"N/A\",Ref!$B$36,INDEX(Ranks!$1:$1048576,$A159,Z$1))","v":""},{"$f":"IF($A159=\"N/A\",Ref!$B$36,INDEX(Ranks!$1:$1048576,$A159,AA$1))","v":""},{"$f":"IF($A159=\"N/A\",Ref!$B$36,INDEX(Ranks!$1:$1048576,$A159,AB$1))","v":""},{"$f":"IF($A159=\"N/A\",Ref!$B$36,INDEX(Ranks!$1:$1048576,$A159,AC$1))","v":""},{"$f":"IF($A159=\"N/A\",Ref!$B$36,INDEX(Ranks!$1:$1048576,$A159,AD$1))","v":""},{"$f":"IF($A159=\"N/A\",Ref!$B$36,INDEX(Ranks!$1:$1048576,$A159,AE$1))","v":""},{"$f":"IF($A159=\"N/A\",Ref!$B$36,INDEX(Ranks!$1:$1048576,$A159,AF$1))","v":""},{"$f":"IF($A159=\"N/A\",Ref!$B$36,INDEX(Ranks!$1:$1048576,$A159,AG$1))","v":""},{"$f":"IF($A159=\"N/A\",Ref!$B$36,INDEX(Ranks!$1:$1048576,$A159,AH$1))","v":""},{"$f":"IF($A159=\"N/A\",Ref!$B$36,INDEX(Ranks!$1:$1048576,$A159,AI$1))","v":""},{"$f":"IF($A159=\"N/A\",Ref!$B$36,INDEX(Ranks!$1:$1048576,$A159,AJ$1))","v":""},{"$f":"IF($A159=\"N/A\",Ref!$B$36,INDEX(Ranks!$1:$1048576,$A159,AK$1))","v":""},{"$f":"IF($A159=\"N/A\",Ref!$B$36,INDEX(Ranks!$1:$1048576,$A159,AL$1))","v":""},{"$f":"IF($A159=\"N/A\",Ref!$B$36,INDEX(Ranks!$1:$1048576,$A159,AM$1))","v":""},{"$f":"IF($A159=\"N/A\",Ref!$B$36,INDEX(Ranks!$1:$1048576,$A159,AN$1))","v":""},{"$f":"IF($A159=\"N/A\",Ref!$B$36,INDEX(Ranks!$1:$1048576,$A159,AO$1))","v":""},{"$f":"IF($A159=\"N/A\",Ref!$B$36,INDEX(Ranks!$1:$1048576,$A159,AP$1))","v":""},{"$f":"IF($A159=\"N/A\",Ref!$B$36,INDEX(Ranks!$1:$1048576,$A159,AQ$1))","v":""},{"$f":"IF($A159=\"N/A\",Ref!$B$36,INDEX(Ranks!$1:$1048576,$A159,AR$1))","v":""},{"$f":"IF($A159=\"N/A\",Ref!$B$36,INDEX(Ranks!$1:$1048576,$A159,AS$1))","v":""},{"$f":"IF($A159=\"N/A\",Ref!$B$36,INDEX(Ranks!$1:$1048576,$A159,AT$1))","v":""},{"$f":"IF($A159=\"N/A\",Ref!$B$36,INDEX(Ranks!$1:$1048576,$A159,AU$1))","v":""},{"$f":"IF($A159=\"N/A\",Ref!$B$36,INDEX(Ranks!$1:$1048576,$A159,AV$1))","v":""},{"$f":"IF($A159=\"N/A\",Ref!$B$36,INDEX(Ranks!$1:$1048576,$A159,AW$1))","v":""},{"$f":"IF($A159=\"N/A\",Ref!$B$36,INDEX(Ranks!$1:$1048576,$A159,AX$1))","v":""},{"$f":"IF($A159=\"N/A\",Ref!$B$36,INDEX(Ranks!$1:$1048576,$A159,AY$1))","v":""},{"$f":"IF($A159=\"N/A\",Ref!$B$36,INDEX(Ranks!$1:$1048576,$A159,AZ$1))","v":""},{"$f":"IF($A159=\"N/A\",Ref!$B$36,INDEX(Ranks!$1:$1048576,$A159,BA$1))","v":""},{"$f":"IF($A159=\"N/A\",Ref!$B$36,INDEX(Ranks!$1:$1048576,$A159,BB$1))","v":""},{"$f":"IF($A159=\"N/A\",Ref!$B$36,INDEX(Ranks!$1:$1048576,$A159,BC$1))","v":""},{"$f":"IF($A159=\"N/A\",Ref!$B$36,INDEX(Ranks!$1:$1048576,$A159,BD$1))","v":""},{"$f":"IF($A159=\"N/A\",Ref!$B$36,INDEX(Ranks!$1:$1048576,$A159,BE$1))","v":""},{"$f":"IF($A159=\"N/A\",Ref!$B$36,INDEX(Ranks!$1:$1048576,$A159,BF$1))","v":""},{"$f":"IF($A159=\"N/A\",Ref!$B$36,INDEX(Ranks!$1:$1048576,$A159,BG$1))","v":""},{"$f":"IF($A159=\"N/A\",Ref!$B$36,INDEX(Ranks!$1:$1048576,$A159,BH$1))","v":""},{"$f":"IF($A159=\"N/A\",Ref!$B$36,INDEX(Ranks!$1:$1048576,$A159,BI$1))","v":""},{"$f":"IF($A159=\"N/A\",Ref!$B$36,INDEX(Ranks!$1:$1048576,$A159,BJ$1))","v":""},{"$f":"IF($A159=\"N/A\",Ref!$B$36,INDEX(Ranks!$1:$1048576,$A159,BK$1))","v":""},{"$f":"IF($A159=\"N/A\",Ref!$B$36,INDEX(Ranks!$1:$1048576,$A159,BL$1))","v":""},{"$f":"IF($A159=\"N/A\",Ref!$B$36,INDEX(Ranks!$1:$1048576,$A159,BM$1))","v":""},{"$f":"IF($A159=\"N/A\",Ref!$B$36,INDEX(Ranks!$1:$1048576,$A159,BN$1))","v":""},{"$f":"IF($A159=\"N/A\",Ref!$B$36,INDEX(Ranks!$1:$1048576,$A159,BO$1))","v":""},{"$f":"IF($A159=\"N/A\",Ref!$B$36,INDEX(Ranks!$1:$1048576,$A159,BP$1))","v":""},{"$f":"IF($A159=\"N/A\",Ref!$B$36,INDEX(Ranks!$1:$1048576,$A159,BQ$1))","v":""},{"$f":"IF($A159=\"N/A\",Ref!$B$36,INDEX(Ranks!$1:$1048576,$A159,BR$1))","v":""},{"$f":"IF($A159=\"N/A\",Ref!$B$36,INDEX(Ranks!$1:$1048576,$A159,BS$1))","v":""},{"$f":"IF($A159=\"N/A\",Ref!$B$36,INDEX(Ranks!$1:$1048576,$A159,BT$1))","v":""},{"$f":"IF($A159=\"N/A\",Ref!$B$36,INDEX(Ranks!$1:$1048576,$A159,BU$1))","v":""},{"$f":"IF($A159=\"N/A\",Ref!$B$36,INDEX(Ranks!$1:$1048576,$A159,BV$1))","v":""},{"$f":"IF($A159=\"N/A\",Ref!$B$36,INDEX(Ranks!$1:$1048576,$A159,BW$1))","v":""},{"$f":"IF($A159=\"N/A\",Ref!$B$36,INDEX(Ranks!$1:$1048576,$A159,BX$1))","v":""},{"$f":"IF($A159=\"N/A\",Ref!$B$36,INDEX(Ranks!$1:$1048576,$A159,BY$1))","v":""},{"$f":"IF($A159=\"N/A\",Ref!$B$36,INDEX(Ranks!$1:$1048576,$A159,BZ$1))","v":""},{"$f":"IF($A159=\"N/A\",Ref!$B$36,INDEX(Ranks!$1:$1048576,$A159,CA$1))","v":""},{"$f":"IF($A159=\"N/A\",Ref!$B$36,INDEX(Ranks!$1:$1048576,$A159,CB$1))","v":""},{"$f":"IF($A159=\"N/A\",Ref!$B$36,INDEX(Ranks!$1:$1048576,$A159,CC$1))","v":""},{"$f":"IF($A159=\"N/A\",Ref!$B$36,INDEX(Ranks!$1:$1048576,$A159,CD$1))","v":""},{"$f":"IF($A159=\"N/A\",Ref!$B$36,INDEX(Ranks!$1:$1048576,$A159,CE$1))","v":""},{"$f":"IF($A159=\"N/A\",Ref!$B$36,INDEX(Ranks!$1:$1048576,$A159,CF$1))","v":""},{"$f":"IF($A159=\"N/A\",Ref!$B$36,INDEX(Ranks!$1:$1048576,$A159,CG$1))","v":""},{"$f":"IF($A159=\"N/A\",Ref!$B$36,INDEX(Ranks!$1:$1048576,$A159,CH$1))","v":""},{"$f":"IF($A159=\"N/A\",Ref!$B$36,INDEX(Ranks!$1:$1048576,$A159,CI$1))","v":""},{"$f":"IF($A159=\"N/A\",Ref!$B$36,INDEX(Ranks!$1:$1048576,$A159,CJ$1))","v":""},{"$f":"IF($A159=\"N/A\",Ref!$B$36,INDEX(Ranks!$1:$1048576,$A159,CK$1))","v":""},{"$f":"IF($A159=\"N/A\",Ref!$B$36,INDEX(Ranks!$1:$1048576,$A159,CL$1))","v":""},{"$f":"IF($A159=\"N/A\",Ref!$B$36,INDEX(Ranks!$1:$1048576,$A159,CM$1))","v":""},{"$f":"IF($A159=\"N/A\",Ref!$B$36,INDEX(Ranks!$1:$1048576,$A159,CN$1))","v":""},{"$f":"IF($A159=\"N/A\",Ref!$B$36,INDEX(Ranks!$1:$1048576,$A159,CO$1))","v":""},{"$f":"IF($A159=\"N/A\",Ref!$B$36,INDEX(Ranks!$1:$1048576,$A159,CP$1))","v":""},{"$f":"IF($A159=\"N/A\",Ref!$B$36,INDEX(Ranks!$1:$1048576,$A159,CQ$1))","v":""},{"$f":"IF($A159=\"N/A\",Ref!$B$36,INDEX(Ranks!$1:$1048576,$A159,CR$1))","v":""},{"$f":"IF($A159=\"N/A\",Ref!$B$36,INDEX(Ranks!$1:$1048576,$A159,CS$1))","v":""},{"$f":"IF($A159=\"N/A\",Ref!$B$36,INDEX(Ranks!$1:$1048576,$A159,CT$1))","v":""},{"$f":"IF($A159=\"N/A\",Ref!$B$36,INDEX(Ranks!$1:$1048576,$A159,CU$1))","v":""},{"$f":"IF($A159=\"N/A\",Ref!$B$36,INDEX(Ranks!$1:$1048576,$A159,CV$1))","v":""},{"$f":"IF($A159=\"N/A\",Ref!$B$36,INDEX(Ranks!$1:$1048576,$A159,CW$1))","v":""},{"$f":"IF($A159=\"N/A\",Ref!$B$36,INDEX(Ranks!$1:$1048576,$A159,CX$1))","v":""},{"$f":"IF($A159=\"N/A\",Ref!$B$36,INDEX(Ranks!$1:$1048576,$A159,CY$1))","v":""},{"$f":"IF($A159=\"N/A\",Ref!$B$36,INDEX(Ranks!$1:$1048576,$A159,CZ$1))","v":""},{"$f":"IF($A159=\"N/A\",Ref!$B$36,INDEX(Ranks!$1:$1048576,$A159,DA$1))","v":""},{"$f":"IF($A159=\"N/A\",Ref!$B$36,INDEX(Ranks!$1:$1048576,$A159,DB$1))","v":""},{"$f":"IF($A159=\"N/A\",Ref!$B$36,INDEX(Ranks!$1:$1048576,$A159,DC$1))","v":""},{"$f":"IF($A159=\"N/A\",Ref!$B$36,INDEX(Ranks!$1:$1048576,$A159,DD$1))","v":""},{"$f":"IF($A159=\"N/A\",Ref!$B$36,INDEX(Ranks!$1:$1048576,$A159,DE$1))","v":""},{"$f":"IF($A159=\"N/A\",Ref!$B$36,INDEX(Ranks!$1:$1048576,$A159,DF$1))","v":""},{"$f":"IF($A159=\"N/A\",Ref!$B$36,INDEX(Ranks!$1:$1048576,$A159,DG$1))","v":""},{"$f":"IF($A159=\"N/A\",Ref!$B$36,INDEX(Ranks!$1:$1048576,$A159,DH$1))","v":""},{"$f":"IF($A159=\"N/A\",Ref!$B$36,INDEX(Ranks!$1:$1048576,$A159,DI$1))","v":""},{"$f":"IF($A159=\"N/A\",Ref!$B$36,INDEX(Ranks!$1:$1048576,$A159,DJ$1))","v":""},{"$f":"IF($A159=\"N/A\",Ref!$B$36,INDEX(Ranks!$1:$1048576,$A159,DK$1))","v":""},{"$f":"IF($A159=\"N/A\",Ref!$B$36,INDEX(Ranks!$1:$1048576,$A159,DL$1))","v":""},{"$f":"IF($A159=\"N/A\",Ref!$B$36,INDEX(Ranks!$1:$1048576,$A159,DM$1))","v":""},{"$f":"IF($A159=\"N/A\",Ref!$B$36,INDEX(Ranks!$1:$1048576,$A159,DN$1))","v":""},{"$f":"IF($A159=\"N/A\",Ref!$B$36,INDEX(Ranks!$1:$1048576,$A159,DO$1))","v":""},{"$f":"IF($A159=\"N/A\",Ref!$B$36,INDEX(Ranks!$1:$1048576,$A159,DP$1))","v":""},{"$f":"IF($A159=\"N/A\",Ref!$B$36,INDEX(Ranks!$1:$1048576,$A159,DQ$1))","v":""},{"$f":"IF($A159=\"N/A\",Ref!$B$36,INDEX(Ranks!$1:$1048576,$A159,DR$1))","v":""},{"$f":"IF($A159=\"N/A\",Ref!$B$36,INDEX(Ranks!$1:$1048576,$A159,DS$1))","v":""},{"$f":"IF($A159=\"N/A\",Ref!$B$36,INDEX(Ranks!$1:$1048576,$A159,DT$1))","v":""},{"$f":"IF($A159=\"N/A\",Ref!$B$36,INDEX(Ranks!$1:$1048576,$A159,DU$1))","v":""},{"$f":"IF($A159=\"N/A\",Ref!$B$36,INDEX(Ranks!$1:$1048576,$A159,DV$1))","v":""},{"$f":"IF($A159=\"N/A\",Ref!$B$36,INDEX(Ranks!$1:$1048576,$A159,DW$1))","v":""},{"$f":"IF($A159=\"N/A\",Ref!$B$36,INDEX(Ranks!$1:$1048576,$A159,DX$1))","v":""},{"$f":"IF($A159=\"N/A\",Ref!$B$36,INDEX(Ranks!$1:$1048576,$A159,DY$1))","v":""},{"$f":"IF($A159=\"N/A\",Ref!$B$36,INDEX(Ranks!$1:$1048576,$A159,DZ$1))","v":""},{"$f":"IF($A159=\"N/A\",Ref!$B$36,INDEX(Ranks!$1:$1048576,$A159,EA$1))","v":""},{"$f":"IF($A159=\"N/A\",Ref!$B$36,INDEX(Ranks!$1:$1048576,$A159,EB$1))","v":""}]
[{"$f":"IFERROR(MATCH('Portfolio Page'!L160,Ranks!L:L,0),\"N/A\")","v":"N/A"},null,{"$f":"IF($A160=\"N/A\",\"\",INDEX(Ranks!$1:$1048576,$A160,C$1))","v":""},{"$f":"IF($A160=\"N/A\",Ref!$B$36,INDEX(Ranks!$1:$1048576,$A160,D$1))","v":""},{"$f":"IF($A160=\"N/A\",Ref!$B$36,INDEX(Ranks!$1:$1048576,$A160,E$1))","v":""},{"$f":"IF($A160=\"N/A\",\"\",INDEX(Ranks!$1:$1048576,$A160,F$1))","v":""},{"$f":"IF($A160=\"N/A\",\"\",INDEX(Ranks!$1:$1048576,$A160,G$1))","v":""},{"$f":"IF($A160=\"N/A\",\"\",INDEX(Ranks!$1:$1048576,$A160,H$1))","v":""},{"$f":"IF($A160=\"N/A\",\"\",INDEX(Ranks!$1:$1048576,$A160,I$1))","v":""},{"$f":"IF($A160=\"N/A\",\"\",INDEX(Ranks!$1:$1048576,$A160,J$1))","v":""},{"$f":"IF($A160=\"N/A\",\"\",INDEX(Ranks!$1:$1048576,$A160,K$1))","v":""},null,{"$f":"IF($A160=\"N/A\",Ref!$B$36,INDEX(Ranks!$1:$1048576,$A160,M$1))","v":""},{"$f":"IF($A160=\"N/A\",Ref!$B$36,INDEX(Ranks!$1:$1048576,$A160,N$1))","v":""},{"$f":"IF($A160=\"N/A\",Ref!$B$36,INDEX(Ranks!$1:$1048576,$A160,O$1))","v":""},{"$f":"IF($A160=\"N/A\",Ref!$B$36,INDEX(Ranks!$1:$1048576,$A160,P$1))","v":""},{"$f":"IF($A160=\"N/A\",Ref!$B$36,INDEX(Ranks!$1:$1048576,$A160,Q$1))","v":""},{"$f":"IF($A160=\"N/A\",Ref!$B$36,INDEX(Ranks!$1:$1048576,$A160,R$1))","v":""},{"$f":"IF($A160=\"N/A\",Ref!$B$36,INDEX(Ranks!$1:$1048576,$A160,S$1))","v":""},{"$f":"IF($A160=\"N/A\",Ref!$B$36,INDEX(Ranks!$1:$1048576,$A160,T$1))","v":""},{"$f":"IF($A160=\"N/A\",Ref!$B$36,INDEX(Ranks!$1:$1048576,$A160,U$1))","v":""},{"$f":"IF($A160=\"N/A\",Ref!$B$36,INDEX(Ranks!$1:$1048576,$A160,V$1))","v":""},{"$f":"IF($A160=\"N/A\",Ref!$B$36,INDEX(Ranks!$1:$1048576,$A160,W$1))","v":""},{"$f":"IF($A160=\"N/A\",Ref!$B$36,INDEX(Ranks!$1:$1048576,$A160,X$1))","v":""},{"$f":"IF($A160=\"N/A\",Ref!$B$36,INDEX(Ranks!$1:$1048576,$A160,Y$1))","v":""},{"$f":"IF($A160=\"N/A\",Ref!$B$36,INDEX(Ranks!$1:$1048576,$A160,Z$1))","v":""},{"$f":"IF($A160=\"N/A\",Ref!$B$36,INDEX(Ranks!$1:$1048576,$A160,AA$1))","v":""},{"$f":"IF($A160=\"N/A\",Ref!$B$36,INDEX(Ranks!$1:$1048576,$A160,AB$1))","v":""},{"$f":"IF($A160=\"N/A\",Ref!$B$36,INDEX(Ranks!$1:$1048576,$A160,AC$1))","v":""},{"$f":"IF($A160=\"N/A\",Ref!$B$36,INDEX(Ranks!$1:$1048576,$A160,AD$1))","v":""},{"$f":"IF($A160=\"N/A\",Ref!$B$36,INDEX(Ranks!$1:$1048576,$A160,AE$1))","v":""},{"$f":"IF($A160=\"N/A\",Ref!$B$36,INDEX(Ranks!$1:$1048576,$A160,AF$1))","v":""},{"$f":"IF($A160=\"N/A\",Ref!$B$36,INDEX(Ranks!$1:$1048576,$A160,AG$1))","v":""},{"$f":"IF($A160=\"N/A\",Ref!$B$36,INDEX(Ranks!$1:$1048576,$A160,AH$1))","v":""},{"$f":"IF($A160=\"N/A\",Ref!$B$36,INDEX(Ranks!$1:$1048576,$A160,AI$1))","v":""},{"$f":"IF($A160=\"N/A\",Ref!$B$36,INDEX(Ranks!$1:$1048576,$A160,AJ$1))","v":""},{"$f":"IF($A160=\"N/A\",Ref!$B$36,INDEX(Ranks!$1:$1048576,$A160,AK$1))","v":""},{"$f":"IF($A160=\"N/A\",Ref!$B$36,INDEX(Ranks!$1:$1048576,$A160,AL$1))","v":""},{"$f":"IF($A160=\"N/A\",Ref!$B$36,INDEX(Ranks!$1:$1048576,$A160,AM$1))","v":""},{"$f":"IF($A160=\"N/A\",Ref!$B$36,INDEX(Ranks!$1:$1048576,$A160,AN$1))","v":""},{"$f":"IF($A160=\"N/A\",Ref!$B$36,INDEX(Ranks!$1:$1048576,$A160,AO$1))","v":""},{"$f":"IF($A160=\"N/A\",Ref!$B$36,INDEX(Ranks!$1:$1048576,$A160,AP$1))","v":""},{"$f":"IF($A160=\"N/A\",Ref!$B$36,INDEX(Ranks!$1:$1048576,$A160,AQ$1))","v":""},{"$f":"IF($A160=\"N/A\",Ref!$B$36,INDEX(Ranks!$1:$1048576,$A160,AR$1))","v":""},{"$f":"IF($A160=\"N/A\",Ref!$B$36,INDEX(Ranks!$1:$1048576,$A160,AS$1))","v":""},{"$f":"IF($A160=\"N/A\",Ref!$B$36,INDEX(Ranks!$1:$1048576,$A160,AT$1))","v":""},{"$f":"IF($A160=\"N/A\",Ref!$B$36,INDEX(Ranks!$1:$1048576,$A160,AU$1))","v":""},{"$f":"IF($A160=\"N/A\",Ref!$B$36,INDEX(Ranks!$1:$1048576,$A160,AV$1))","v":""},{"$f":"IF($A160=\"N/A\",Ref!$B$36,INDEX(Ranks!$1:$1048576,$A160,AW$1))","v":""},{"$f":"IF($A160=\"N/A\",Ref!$B$36,INDEX(Ranks!$1:$1048576,$A160,AX$1))","v":""},{"$f":"IF($A160=\"N/A\",Ref!$B$36,INDEX(Ranks!$1:$1048576,$A160,AY$1))","v":""},{"$f":"IF($A160=\"N/A\",Ref!$B$36,INDEX(Ranks!$1:$1048576,$A160,AZ$1))","v":""},{"$f":"IF($A160=\"N/A\",Ref!$B$36,INDEX(Ranks!$1:$1048576,$A160,BA$1))","v":""},{"$f":"IF($A160=\"N/A\",Ref!$B$36,INDEX(Ranks!$1:$1048576,$A160,BB$1))","v":""},{"$f":"IF($A160=\"N/A\",Ref!$B$36,INDEX(Ranks!$1:$1048576,$A160,BC$1))","v":""},{"$f":"IF($A160=\"N/A\",Ref!$B$36,INDEX(Ranks!$1:$1048576,$A160,BD$1))","v":""},{"$f":"IF($A160=\"N/A\",Ref!$B$36,INDEX(Ranks!$1:$1048576,$A160,BE$1))","v":""},{"$f":"IF($A160=\"N/A\",Ref!$B$36,INDEX(Ranks!$1:$1048576,$A160,BF$1))","v":""},{"$f":"IF($A160=\"N/A\",Ref!$B$36,INDEX(Ranks!$1:$1048576,$A160,BG$1))","v":""},{"$f":"IF($A160=\"N/A\",Ref!$B$36,INDEX(Ranks!$1:$1048576,$A160,BH$1))","v":""},{"$f":"IF($A160=\"N/A\",Ref!$B$36,INDEX(Ranks!$1:$1048576,$A160,BI$1))","v":""},{"$f":"IF($A160=\"N/A\",Ref!$B$36,INDEX(Ranks!$1:$1048576,$A160,BJ$1))","v":""},{"$f":"IF($A160=\"N/A\",Ref!$B$36,INDEX(Ranks!$1:$1048576,$A160,BK$1))","v":""},{"$f":"IF($A160=\"N/A\",Ref!$B$36,INDEX(Ranks!$1:$1048576,$A160,BL$1))","v":""},{"$f":"IF($A160=\"N/A\",Ref!$B$36,INDEX(Ranks!$1:$1048576,$A160,BM$1))","v":""},{"$f":"IF($A160=\"N/A\",Ref!$B$36,INDEX(Ranks!$1:$1048576,$A160,BN$1))","v":""},{"$f":"IF($A160=\"N/A\",Ref!$B$36,INDEX(Ranks!$1:$1048576,$A160,BO$1))","v":""},{"$f":"IF($A160=\"N/A\",Ref!$B$36,INDEX(Ranks!$1:$1048576,$A160,BP$1))","v":""},{"$f":"IF($A160=\"N/A\",Ref!$B$36,INDEX(Ranks!$1:$1048576,$A160,BQ$1))","v":""},{"$f":"IF($A160=\"N/A\",Ref!$B$36,INDEX(Ranks!$1:$1048576,$A160,BR$1))","v":""},{"$f":"IF($A160=\"N/A\",Ref!$B$36,INDEX(Ranks!$1:$1048576,$A160,BS$1))","v":""},{"$f":"IF($A160=\"N/A\",Ref!$B$36,INDEX(Ranks!$1:$1048576,$A160,BT$1))","v":""},{"$f":"IF($A160=\"N/A\",Ref!$B$36,INDEX(Ranks!$1:$1048576,$A160,BU$1))","v":""},{"$f":"IF($A160=\"N/A\",Ref!$B$36,INDEX(Ranks!$1:$1048576,$A160,BV$1))","v":""},{"$f":"IF($A160=\"N/A\",Ref!$B$36,INDEX(Ranks!$1:$1048576,$A160,BW$1))","v":""},{"$f":"IF($A160=\"N/A\",Ref!$B$36,INDEX(Ranks!$1:$1048576,$A160,BX$1))","v":""},{"$f":"IF($A160=\"N/A\",Ref!$B$36,INDEX(Ranks!$1:$1048576,$A160,BY$1))","v":""},{"$f":"IF($A160=\"N/A\",Ref!$B$36,INDEX(Ranks!$1:$1048576,$A160,BZ$1))","v":""},{"$f":"IF($A160=\"N/A\",Ref!$B$36,INDEX(Ranks!$1:$1048576,$A160,CA$1))","v":""},{"$f":"IF($A160=\"N/A\",Ref!$B$36,INDEX(Ranks!$1:$1048576,$A160,CB$1))","v":""},{"$f":"IF($A160=\"N/A\",Ref!$B$36,INDEX(Ranks!$1:$1048576,$A160,CC$1))","v":""},{"$f":"IF($A160=\"N/A\",Ref!$B$36,INDEX(Ranks!$1:$1048576,$A160,CD$1))","v":""},{"$f":"IF($A160=\"N/A\",Ref!$B$36,INDEX(Ranks!$1:$1048576,$A160,CE$1))","v":""},{"$f":"IF($A160=\"N/A\",Ref!$B$36,INDEX(Ranks!$1:$1048576,$A160,CF$1))","v":""},{"$f":"IF($A160=\"N/A\",Ref!$B$36,INDEX(Ranks!$1:$1048576,$A160,CG$1))","v":""},{"$f":"IF($A160=\"N/A\",Ref!$B$36,INDEX(Ranks!$1:$1048576,$A160,CH$1))","v":""},{"$f":"IF($A160=\"N/A\",Ref!$B$36,INDEX(Ranks!$1:$1048576,$A160,CI$1))","v":""},{"$f":"IF($A160=\"N/A\",Ref!$B$36,INDEX(Ranks!$1:$1048576,$A160,CJ$1))","v":""},{"$f":"IF($A160=\"N/A\",Ref!$B$36,INDEX(Ranks!$1:$1048576,$A160,CK$1))","v":""},{"$f":"IF($A160=\"N/A\",Ref!$B$36,INDEX(Ranks!$1:$1048576,$A160,CL$1))","v":""},{"$f":"IF($A160=\"N/A\",Ref!$B$36,INDEX(Ranks!$1:$1048576,$A160,CM$1))","v":""},{"$f":"IF($A160=\"N/A\",Ref!$B$36,INDEX(Ranks!$1:$1048576,$A160,CN$1))","v":""},{"$f":"IF($A160=\"N/A\",Ref!$B$36,INDEX(Ranks!$1:$1048576,$A160,CO$1))","v":""},{"$f":"IF($A160=\"N/A\",Ref!$B$36,INDEX(Ranks!$1:$1048576,$A160,CP$1))","v":""},{"$f":"IF($A160=\"N/A\",Ref!$B$36,INDEX(Ranks!$1:$1048576,$A160,CQ$1))","v":""},{"$f":"IF($A160=\"N/A\",Ref!$B$36,INDEX(Ranks!$1:$1048576,$A160,CR$1))","v":""},{"$f":"IF($A160=\"N/A\",Ref!$B$36,INDEX(Ranks!$1:$1048576,$A160,CS$1))","v":""},{"$f":"IF($A160=\"N/A\",Ref!$B$36,INDEX(Ranks!$1:$1048576,$A160,CT$1))","v":""},{"$f":"IF($A160=\"N/A\",Ref!$B$36,INDEX(Ranks!$1:$1048576,$A160,CU$1))","v":""},{"$f":"IF($A160=\"N/A\",Ref!$B$36,INDEX(Ranks!$1:$1048576,$A160,CV$1))","v":""},{"$f":"IF($A160=\"N/A\",Ref!$B$36,INDEX(Ranks!$1:$1048576,$A160,CW$1))","v":""},{"$f":"IF($A160=\"N/A\",Ref!$B$36,INDEX(Ranks!$1:$1048576,$A160,CX$1))","v":""},{"$f":"IF($A160=\"N/A\",Ref!$B$36,INDEX(Ranks!$1:$1048576,$A160,CY$1))","v":""},{"$f":"IF($A160=\"N/A\",Ref!$B$36,INDEX(Ranks!$1:$1048576,$A160,CZ$1))","v":""},{"$f":"IF($A160=\"N/A\",Ref!$B$36,INDEX(Ranks!$1:$1048576,$A160,DA$1))","v":""},{"$f":"IF($A160=\"N/A\",Ref!$B$36,INDEX(Ranks!$1:$1048576,$A160,DB$1))","v":""},{"$f":"IF($A160=\"N/A\",Ref!$B$36,INDEX(Ranks!$1:$1048576,$A160,DC$1))","v":""},{"$f":"IF($A160=\"N/A\",Ref!$B$36,INDEX(Ranks!$1:$1048576,$A160,DD$1))","v":""},{"$f":"IF($A160=\"N/A\",Ref!$B$36,INDEX(Ranks!$1:$1048576,$A160,DE$1))","v":""},{"$f":"IF($A160=\"N/A\",Ref!$B$36,INDEX(Ranks!$1:$1048576,$A160,DF$1))","v":""},{"$f":"IF($A160=\"N/A\",Ref!$B$36,INDEX(Ranks!$1:$1048576,$A160,DG$1))","v":""},{"$f":"IF($A160=\"N/A\",Ref!$B$36,INDEX(Ranks!$1:$1048576,$A160,DH$1))","v":""},{"$f":"IF($A160=\"N/A\",Ref!$B$36,INDEX(Ranks!$1:$1048576,$A160,DI$1))","v":""},{"$f":"IF($A160=\"N/A\",Ref!$B$36,INDEX(Ranks!$1:$1048576,$A160,DJ$1))","v":""},{"$f":"IF($A160=\"N/A\",Ref!$B$36,INDEX(Ranks!$1:$1048576,$A160,DK$1))","v":""},{"$f":"IF($A160=\"N/A\",Ref!$B$36,INDEX(Ranks!$1:$1048576,$A160,DL$1))","v":""},{"$f":"IF($A160=\"N/A\",Ref!$B$36,INDEX(Ranks!$1:$1048576,$A160,DM$1))","v":""},{"$f":"IF($A160=\"N/A\",Ref!$B$36,INDEX(Ranks!$1:$1048576,$A160,DN$1))","v":""},{"$f":"IF($A160=\"N/A\",Ref!$B$36,INDEX(Ranks!$1:$1048576,$A160,DO$1))","v":""},{"$f":"IF($A160=\"N/A\",Ref!$B$36,INDEX(Ranks!$1:$1048576,$A160,DP$1))","v":""},{"$f":"IF($A160=\"N/A\",Ref!$B$36,INDEX(Ranks!$1:$1048576,$A160,DQ$1))","v":""},{"$f":"IF($A160=\"N/A\",Ref!$B$36,INDEX(Ranks!$1:$1048576,$A160,DR$1))","v":""},{"$f":"IF($A160=\"N/A\",Ref!$B$36,INDEX(Ranks!$1:$1048576,$A160,DS$1))","v":""},{"$f":"IF($A160=\"N/A\",Ref!$B$36,INDEX(Ranks!$1:$1048576,$A160,DT$1))","v":""},{"$f":"IF($A160=\"N/A\",Ref!$B$36,INDEX(Ranks!$1:$1048576,$A160,DU$1))","v":""},{"$f":"IF($A160=\"N/A\",Ref!$B$36,INDEX(Ranks!$1:$1048576,$A160,DV$1))","v":""},{"$f":"IF($A160=\"N/A\",Ref!$B$36,INDEX(Ranks!$1:$1048576,$A160,DW$1))","v":""},{"$f":"IF($A160=\"N/A\",Ref!$B$36,INDEX(Ranks!$1:$1048576,$A160,DX$1))","v":""},{"$f":"IF($A160=\"N/A\",Ref!$B$36,INDEX(Ranks!$1:$1048576,$A160,DY$1))","v":""},{"$f":"IF($A160=\"N/A\",Ref!$B$36,INDEX(Ranks!$1:$1048576,$A160,DZ$1))","v":""},{"$f":"IF($A160=\"N/A\",Ref!$B$36,INDEX(Ranks!$1:$1048576,$A160,EA$1))","v":""},{"$f":"IF($A160=\"N/A\",Ref!$B$36,INDEX(Ranks!$1:$1048576,$A160,EB$1))","v":""}]
[{"$f":"IFERROR(MATCH('Portfolio Page'!L161,Ranks!L:L,0),\"N/A\")","v":"N/A"},null,{"$f":"IF($A161=\"N/A\",\"\",INDEX(Ranks!$1:$1048576,$A161,C$1))","v":""},{"$f":"IF($A161=\"N/A\",Ref!$B$36,INDEX(Ranks!$1:$1048576,$A161,D$1))","v":""},{"$f":"IF($A161=\"N/A\",Ref!$B$36,INDEX(Ranks!$1:$1048576,$A161,E$1))","v":""},{"$f":"IF($A161=\"N/A\",\"\",INDEX(Ranks!$1:$1048576,$A161,F$1))","v":""},{"$f":"IF($A161=\"N/A\",\"\",INDEX(Ranks!$1:$1048576,$A161,G$1))","v":""},{"$f":"IF($A161=\"N/A\",\"\",INDEX(Ranks!$1:$1048576,$A161,H$1))","v":""},{"$f":"IF($A161=\"N/A\",\"\",INDEX(Ranks!$1:$1048576,$A161,I$1))","v":""},{"$f":"IF($A161=\"N/A\",\"\",INDEX(Ranks!$1:$1048576,$A161,J$1))","v":""},{"$f":"IF($A161=\"N/A\",\"\",INDEX(Ranks!$1:$1048576,$A161,K$1))","v":""},null,{"$f":"IF($A161=\"N/A\",Ref!$B$36,INDEX(Ranks!$1:$1048576,$A161,M$1))","v":""},{"$f":"IF($A161=\"N/A\",Ref!$B$36,INDEX(Ranks!$1:$1048576,$A161,N$1))","v":""},{"$f":"IF($A161=\"N/A\",Ref!$B$36,INDEX(Ranks!$1:$1048576,$A161,O$1))","v":""},{"$f":"IF($A161=\"N/A\",Ref!$B$36,INDEX(Ranks!$1:$1048576,$A161,P$1))","v":""},{"$f":"IF($A161=\"N/A\",Ref!$B$36,INDEX(Ranks!$1:$1048576,$A161,Q$1))","v":""},{"$f":"IF($A161=\"N/A\",Ref!$B$36,INDEX(Ranks!$1:$1048576,$A161,R$1))","v":""},{"$f":"IF($A161=\"N/A\",Ref!$B$36,INDEX(Ranks!$1:$1048576,$A161,S$1))","v":""},{"$f":"IF($A161=\"N/A\",Ref!$B$36,INDEX(Ranks!$1:$1048576,$A161,T$1))","v":""},{"$f":"IF($A161=\"N/A\",Ref!$B$36,INDEX(Ranks!$1:$1048576,$A161,U$1))","v":""},{"$f":"IF($A161=\"N/A\",Ref!$B$36,INDEX(Ranks!$1:$1048576,$A161,V$1))","v":""},{"$f":"IF($A161=\"N/A\",Ref!$B$36,INDEX(Ranks!$1:$1048576,$A161,W$1))","v":""},{"$f":"IF($A161=\"N/A\",Ref!$B$36,INDEX(Ranks!$1:$1048576,$A161,X$1))","v":""},{"$f":"IF($A161=\"N/A\",Ref!$B$36,INDEX(Ranks!$1:$1048576,$A161,Y$1))","v":""},{"$f":"IF($A161=\"N/A\",Ref!$B$36,INDEX(Ranks!$1:$1048576,$A161,Z$1))","v":""},{"$f":"IF($A161=\"N/A\",Ref!$B$36,INDEX(Ranks!$1:$1048576,$A161,AA$1))","v":""},{"$f":"IF($A161=\"N/A\",Ref!$B$36,INDEX(Ranks!$1:$1048576,$A161,AB$1))","v":""},{"$f":"IF($A161=\"N/A\",Ref!$B$36,INDEX(Ranks!$1:$1048576,$A161,AC$1))","v":""},{"$f":"IF($A161=\"N/A\",Ref!$B$36,INDEX(Ranks!$1:$1048576,$A161,AD$1))","v":""},{"$f":"IF($A161=\"N/A\",Ref!$B$36,INDEX(Ranks!$1:$1048576,$A161,AE$1))","v":""},{"$f":"IF($A161=\"N/A\",Ref!$B$36,INDEX(Ranks!$1:$1048576,$A161,AF$1))","v":""},{"$f":"IF($A161=\"N/A\",Ref!$B$36,INDEX(Ranks!$1:$1048576,$A161,AG$1))","v":""},{"$f":"IF($A161=\"N/A\",Ref!$B$36,INDEX(Ranks!$1:$1048576,$A161,AH$1))","v":""},{"$f":"IF($A161=\"N/A\",Ref!$B$36,INDEX(Ranks!$1:$1048576,$A161,AI$1))","v":""},{"$f":"IF($A161=\"N/A\",Ref!$B$36,INDEX(Ranks!$1:$1048576,$A161,AJ$1))","v":""},{"$f":"IF($A161=\"N/A\",Ref!$B$36,INDEX(Ranks!$1:$1048576,$A161,AK$1))","v":""},{"$f":"IF($A161=\"N/A\",Ref!$B$36,INDEX(Ranks!$1:$1048576,$A161,AL$1))","v":""},{"$f":"IF($A161=\"N/A\",Ref!$B$36,INDEX(Ranks!$1:$1048576,$A161,AM$1))","v":""},{"$f":"IF($A161=\"N/A\",Ref!$B$36,INDEX(Ranks!$1:$1048576,$A161,AN$1))","v":""},{"$f":"IF($A161=\"N/A\",Ref!$B$36,INDEX(Ranks!$1:$1048576,$A161,AO$1))","v":""},{"$f":"IF($A161=\"N/A\",Ref!$B$36,INDEX(Ranks!$1:$1048576,$A161,AP$1))","v":""},{"$f":"IF($A161=\"N/A\",Ref!$B$36,INDEX(Ranks!$1:$1048576,$A161,AQ$1))","v":""},{"$f":"IF($A161=\"N/A\",Ref!$B$36,INDEX(Ranks!$1:$1048576,$A161,AR$1))","v":""},{"$f":"IF($A161=\"N/A\",Ref!$B$36,INDEX(Ranks!$1:$1048576,$A161,AS$1))","v":""},{"$f":"IF($A161=\"N/A\",Ref!$B$36,INDEX(Ranks!$1:$1048576,$A161,AT$1))","v":""},{"$f":"IF($A161=\"N/A\",Ref!$B$36,INDEX(Ranks!$1:$1048576,$A161,AU$1))","v":""},{"$f":"IF($A161=\"N/A\",Ref!$B$36,INDEX(Ranks!$1:$1048576,$A161,AV$1))","v":""},{"$f":"IF($A161=\"N/A\",Ref!$B$36,INDEX(Ranks!$1:$1048576,$A161,AW$1))","v":""},{"$f":"IF($A161=\"N/A\",Ref!$B$36,INDEX(Ranks!$1:$1048576,$A161,AX$1))","v":""},{"$f":"IF($A161=\"N/A\",Ref!$B$36,INDEX(Ranks!$1:$1048576,$A161,AY$1))","v":""},{"$f":"IF($A161=\"N/A\",Ref!$B$36,INDEX(Ranks!$1:$1048576,$A161,AZ$1))","v":""},{"$f":"IF($A161=\"N/A\",Ref!$B$36,INDEX(Ranks!$1:$1048576,$A161,BA$1))","v":""},{"$f":"IF($A161=\"N/A\",Ref!$B$36,INDEX(Ranks!$1:$1048576,$A161,BB$1))","v":""},{"$f":"IF($A161=\"N/A\",Ref!$B$36,INDEX(Ranks!$1:$1048576,$A161,BC$1))","v":""},{"$f":"IF($A161=\"N/A\",Ref!$B$36,INDEX(Ranks!$1:$1048576,$A161,BD$1))","v":""},{"$f":"IF($A161=\"N/A\",Ref!$B$36,INDEX(Ranks!$1:$1048576,$A161,BE$1))","v":""},{"$f":"IF($A161=\"N/A\",Ref!$B$36,INDEX(Ranks!$1:$1048576,$A161,BF$1))","v":""},{"$f":"IF($A161=\"N/A\",Ref!$B$36,INDEX(Ranks!$1:$1048576,$A161,BG$1))","v":""},{"$f":"IF($A161=\"N/A\",Ref!$B$36,INDEX(Ranks!$1:$1048576,$A161,BH$1))","v":""},{"$f":"IF($A161=\"N/A\",Ref!$B$36,INDEX(Ranks!$1:$1048576,$A161,BI$1))","v":""},{"$f":"IF($A161=\"N/A\",Ref!$B$36,INDEX(Ranks!$1:$1048576,$A161,BJ$1))","v":""},{"$f":"IF($A161=\"N/A\",Ref!$B$36,INDEX(Ranks!$1:$1048576,$A161,BK$1))","v":""},{"$f":"IF($A161=\"N/A\",Ref!$B$36,INDEX(Ranks!$1:$1048576,$A161,BL$1))","v":""},{"$f":"IF($A161=\"N/A\",Ref!$B$36,INDEX(Ranks!$1:$1048576,$A161,BM$1))","v":""},{"$f":"IF($A161=\"N/A\",Ref!$B$36,INDEX(Ranks!$1:$1048576,$A161,BN$1))","v":""},{"$f":"IF($A161=\"N/A\",Ref!$B$36,INDEX(Ranks!$1:$1048576,$A161,BO$1))","v":""},{"$f":"IF($A161=\"N/A\",Ref!$B$36,INDEX(Ranks!$1:$1048576,$A161,BP$1))","v":""},{"$f":"IF($A161=\"N/A\",Ref!$B$36,INDEX(Ranks!$1:$1048576,$A161,BQ$1))","v":""},{"$f":"IF($A161=\"N/A\",Ref!$B$36,INDEX(Ranks!$1:$1048576,$A161,BR$1))","v":""},{"$f":"IF($A161=\"N/A\",Ref!$B$36,INDEX(Ranks!$1:$1048576,$A161,BS$1))","v":""},{"$f":"IF($A161=\"N/A\",Ref!$B$36,INDEX(Ranks!$1:$1048576,$A161,BT$1))","v":""},{"$f":"IF($A161=\"N/A\",Ref!$B$36,INDEX(Ranks!$1:$1048576,$A161,BU$1))","v":""},{"$f":"IF($A161=\"N/A\",Ref!$B$36,INDEX(Ranks!$1:$1048576,$A161,BV$1))","v":""},{"$f":"IF($A161=\"N/A\",Ref!$B$36,INDEX(Ranks!$1:$1048576,$A161,BW$1))","v":""},{"$f":"IF($A161=\"N/A\",Ref!$B$36,INDEX(Ranks!$1:$1048576,$A161,BX$1))","v":""},{"$f":"IF($A161=\"N/A\",Ref!$B$36,INDEX(Ranks!$1:$1048576,$A161,BY$1))","v":""},{"$f":"IF($A161=\"N/A\",Ref!$B$36,INDEX(Ranks!$1:$1048576,$A161,BZ$1))","v":""},{"$f":"IF($A161=\"N/A\",Ref!$B$36,INDEX(Ranks!$1:$1048576,$A161,CA$1))","v":""},{"$f":"IF($A161=\"N/A\",Ref!$B$36,INDEX(Ranks!$1:$1048576,$A161,CB$1))","v":""},{"$f":"IF($A161=\"N/A\",Ref!$B$36,INDEX(Ranks!$1:$1048576,$A161,CC$1))","v":""},{"$f":"IF($A161=\"N/A\",Ref!$B$36,INDEX(Ranks!$1:$1048576,$A161,CD$1))","v":""},{"$f":"IF($A161=\"N/A\",Ref!$B$36,INDEX(Ranks!$1:$1048576,$A161,CE$1))","v":""},{"$f":"IF($A161=\"N/A\",Ref!$B$36,INDEX(Ranks!$1:$1048576,$A161,CF$1))","v":""},{"$f":"IF($A161=\"N/A\",Ref!$B$36,INDEX(Ranks!$1:$1048576,$A161,CG$1))","v":""},{"$f":"IF($A161=\"N/A\",Ref!$B$36,INDEX(Ranks!$1:$1048576,$A161,CH$1))","v":""},{"$f":"IF($A161=\"N/A\",Ref!$B$36,INDEX(Ranks!$1:$1048576,$A161,CI$1))","v":""},{"$f":"IF($A161=\"N/A\",Ref!$B$36,INDEX(Ranks!$1:$1048576,$A161,CJ$1))","v":""},{"$f":"IF($A161=\"N/A\",Ref!$B$36,INDEX(Ranks!$1:$1048576,$A161,CK$1))","v":""},{"$f":"IF($A161=\"N/A\",Ref!$B$36,INDEX(Ranks!$1:$1048576,$A161,CL$1))","v":""},{"$f":"IF($A161=\"N/A\",Ref!$B$36,INDEX(Ranks!$1:$1048576,$A161,CM$1))","v":""},{"$f":"IF($A161=\"N/A\",Ref!$B$36,INDEX(Ranks!$1:$1048576,$A161,CN$1))","v":""},{"$f":"IF($A161=\"N/A\",Ref!$B$36,INDEX(Ranks!$1:$1048576,$A161,CO$1))","v":""},{"$f":"IF($A161=\"N/A\",Ref!$B$36,INDEX(Ranks!$1:$1048576,$A161,CP$1))","v":""},{"$f":"IF($A161=\"N/A\",Ref!$B$36,INDEX(Ranks!$1:$1048576,$A161,CQ$1))","v":""},{"$f":"IF($A161=\"N/A\",Ref!$B$36,INDEX(Ranks!$1:$1048576,$A161,CR$1))","v":""},{"$f":"IF($A161=\"N/A\",Ref!$B$36,INDEX(Ranks!$1:$1048576,$A161,CS$1))","v":""},{"$f":"IF($A161=\"N/A\",Ref!$B$36,INDEX(Ranks!$1:$1048576,$A161,CT$1))","v":""},{"$f":"IF($A161=\"N/A\",Ref!$B$36,INDEX(Ranks!$1:$1048576,$A161,CU$1))","v":""},{"$f":"IF($A161=\"N/A\",Ref!$B$36,INDEX(Ranks!$1:$1048576,$A161,CV$1))","v":""},{"$f":"IF($A161=\"N/A\",Ref!$B$36,INDEX(Ranks!$1:$1048576,$A161,CW$1))","v":""},{"$f":"IF($A161=\"N/A\",Ref!$B$36,INDEX(Ranks!$1:$1048576,$A161,CX$1))","v":""},{"$f":"IF($A161=\"N/A\",Ref!$B$36,INDEX(Ranks!$1:$1048576,$A161,CY$1))","v":""},{"$f":"IF($A161=\"N/A\",Ref!$B$36,INDEX(Ranks!$1:$1048576,$A161,CZ$1))","v":""},{"$f":"IF($A161=\"N/A\",Ref!$B$36,INDEX(Ranks!$1:$1048576,$A161,DA$1))","v":""},{"$f":"IF($A161=\"N/A\",Ref!$B$36,INDEX(Ranks!$1:$1048576,$A161,DB$1))","v":""},{"$f":"IF($A161=\"N/A\",Ref!$B$36,INDEX(Ranks!$1:$1048576,$A161,DC$1))","v":""},{"$f":"IF($A161=\"N/A\",Ref!$B$36,INDEX(Ranks!$1:$1048576,$A161,DD$1))","v":""},{"$f":"IF($A161=\"N/A\",Ref!$B$36,INDEX(Ranks!$1:$1048576,$A161,DE$1))","v":""},{"$f":"IF($A161=\"N/A\",Ref!$B$36,INDEX(Ranks!$1:$1048576,$A161,DF$1))","v":""},{"$f":"IF($A161=\"N/A\",Ref!$B$36,INDEX(Ranks!$1:$1048576,$A161,DG$1))","v":""},{"$f":"IF($A161=\"N/A\",Ref!$B$36,INDEX(Ranks!$1:$1048576,$A161,DH$1))","v":""},{"$f":"IF($A161=\"N/A\",Ref!$B$36,INDEX(Ranks!$1:$1048576,$A161,DI$1))","v":""},{"$f":"IF($A161=\"N/A\",Ref!$B$36,INDEX(Ranks!$1:$1048576,$A161,DJ$1))","v":""},{"$f":"IF($A161=\"N/A\",Ref!$B$36,INDEX(Ranks!$1:$1048576,$A161,DK$1))","v":""},{"$f":"IF($A161=\"N/A\",Ref!$B$36,INDEX(Ranks!$1:$1048576,$A161,DL$1))","v":""},{"$f":"IF($A161=\"N/A\",Ref!$B$36,INDEX(Ranks!$1:$1048576,$A161,DM$1))","v":""},{"$f":"IF($A161=\"N/A\",Ref!$B$36,INDEX(Ranks!$1:$1048576,$A161,DN$1))","v":""},{"$f":"IF($A161=\"N/A\",Ref!$B$36,INDEX(Ranks!$1:$1048576,$A161,DO$1))","v":""},{"$f":"IF($A161=\"N/A\",Ref!$B$36,INDEX(Ranks!$1:$1048576,$A161,DP$1))","v":""},{"$f":"IF($A161=\"N/A\",Ref!$B$36,INDEX(Ranks!$1:$1048576,$A161,DQ$1))","v":""},{"$f":"IF($A161=\"N/A\",Ref!$B$36,INDEX(Ranks!$1:$1048576,$A161,DR$1))","v":""},{"$f":"IF($A161=\"N/A\",Ref!$B$36,INDEX(Ranks!$1:$1048576,$A161,DS$1))","v":""},{"$f":"IF($A161=\"N/A\",Ref!$B$36,INDEX(Ranks!$1:$1048576,$A161,DT$1))","v":""},{"$f":"IF($A161=\"N/A\",Ref!$B$36,INDEX(Ranks!$1:$1048576,$A161,DU$1))","v":""},{"$f":"IF($A161=\"N/A\",Ref!$B$36,INDEX(Ranks!$1:$1048576,$A161,DV$1))","v":""},{"$f":"IF($A161=\"N/A\",Ref!$B$36,INDEX(Ranks!$1:$1048576,$A161,DW$1))","v":""},{"$f":"IF($A161=\"N/A\",Ref!$B$36,INDEX(Ranks!$1:$1048576,$A161,DX$1))","v":""},{"$f":"IF($A161=\"N/A\",Ref!$B$36,INDEX(Ranks!$1:$1048576,$A161,DY$1))","v":""},{"$f":"IF($A161=\"N/A\",Ref!$B$36,INDEX(Ranks!$1:$1048576,$A161,DZ$1))","v":""},{"$f":"IF($A161=\"N/A\",Ref!$B$36,INDEX(Ranks!$1:$1048576,$A161,EA$1))","v":""},{"$f":"IF($A161=\"N/A\",Ref!$B$36,INDEX(Ranks!$1:$1048576,$A161,EB$1))","v":""}]
[{"$f":"IFERROR(MATCH('Portfolio Page'!L162,Ranks!L:L,0),\"N/A\")","v":"N/A"},null,{"$f":"IF($A162=\"N/A\",\"\",INDEX(Ranks!$1:$1048576,$A162,C$1))","v":""},{"$f":"IF($A162=\"N/A\",Ref!$B$36,INDEX(Ranks!$1:$1048576,$A162,D$1))","v":""},{"$f":"IF($A162=\"N/A\",Ref!$B$36,INDEX(Ranks!$1:$1048576,$A162,E$1))","v":""},{"$f":"IF($A162=\"N/A\",\"\",INDEX(Ranks!$1:$1048576,$A162,F$1))","v":""},{"$f":"IF($A162=\"N/A\",\"\",INDEX(Ranks!$1:$1048576,$A162,G$1))","v":""},{"$f":"IF($A162=\"N/A\",\"\",INDEX(Ranks!$1:$1048576,$A162,H$1))","v":""},{"$f":"IF($A162=\"N/A\",\"\",INDEX(Ranks!$1:$1048576,$A162,I$1))","v":""},{"$f":"IF($A162=\"N/A\",\"\",INDEX(Ranks!$1:$1048576,$A162,J$1))","v":""},{"$f":"IF($A162=\"N/A\",\"\",INDEX(Ranks!$1:$1048576,$A162,K$1))","v":""},null,{"$f":"IF($A162=\"N/A\",Ref!$B$36,INDEX(Ranks!$1:$1048576,$A162,M$1))","v":""},{"$f":"IF($A162=\"N/A\",Ref!$B$36,INDEX(Ranks!$1:$1048576,$A162,N$1))","v":""},{"$f":"IF($A162=\"N/A\",Ref!$B$36,INDEX(Ranks!$1:$1048576,$A162,O$1))","v":""},{"$f":"IF($A162=\"N/A\",Ref!$B$36,INDEX(Ranks!$1:$1048576,$A162,P$1))","v":""},{"$f":"IF($A162=\"N/A\",Ref!$B$36,INDEX(Ranks!$1:$1048576,$A162,Q$1))","v":""},{"$f":"IF($A162=\"N/A\",Ref!$B$36,INDEX(Ranks!$1:$1048576,$A162,R$1))","v":""},{"$f":"IF($A162=\"N/A\",Ref!$B$36,INDEX(Ranks!$1:$1048576,$A162,S$1))","v":""},{"$f":"IF($A162=\"N/A\",Ref!$B$36,INDEX(Ranks!$1:$1048576,$A162,T$1))","v":""},{"$f":"IF($A162=\"N/A\",Ref!$B$36,INDEX(Ranks!$1:$1048576,$A162,U$1))","v":""},{"$f":"IF($A162=\"N/A\",Ref!$B$36,INDEX(Ranks!$1:$1048576,$A162,V$1))","v":""},{"$f":"IF($A162=\"N/A\",Ref!$B$36,INDEX(Ranks!$1:$1048576,$A162,W$1))","v":""},{"$f":"IF($A162=\"N/A\",Ref!$B$36,INDEX(Ranks!$1:$1048576,$A162,X$1))","v":""},{"$f":"IF($A162=\"N/A\",Ref!$B$36,INDEX(Ranks!$1:$1048576,$A162,Y$1))","v":""},{"$f":"IF($A162=\"N/A\",Ref!$B$36,INDEX(Ranks!$1:$1048576,$A162,Z$1))","v":""},{"$f":"IF($A162=\"N/A\",Ref!$B$36,INDEX(Ranks!$1:$1048576,$A162,AA$1))","v":""},{"$f":"IF($A162=\"N/A\",Ref!$B$36,INDEX(Ranks!$1:$1048576,$A162,AB$1))","v":""},{"$f":"IF($A162=\"N/A\",Ref!$B$36,INDEX(Ranks!$1:$1048576,$A162,AC$1))","v":""},{"$f":"IF($A162=\"N/A\",Ref!$B$36,INDEX(Ranks!$1:$1048576,$A162,AD$1))","v":""},{"$f":"IF($A162=\"N/A\",Ref!$B$36,INDEX(Ranks!$1:$1048576,$A162,AE$1))","v":""},{"$f":"IF($A162=\"N/A\",Ref!$B$36,INDEX(Ranks!$1:$1048576,$A162,AF$1))","v":""},{"$f":"IF($A162=\"N/A\",Ref!$B$36,INDEX(Ranks!$1:$1048576,$A162,AG$1))","v":""},{"$f":"IF($A162=\"N/A\",Ref!$B$36,INDEX(Ranks!$1:$1048576,$A162,AH$1))","v":""},{"$f":"IF($A162=\"N/A\",Ref!$B$36,INDEX(Ranks!$1:$1048576,$A162,AI$1))","v":""},{"$f":"IF($A162=\"N/A\",Ref!$B$36,INDEX(Ranks!$1:$1048576,$A162,AJ$1))","v":""},{"$f":"IF($A162=\"N/A\",Ref!$B$36,INDEX(Ranks!$1:$1048576,$A162,AK$1))","v":""},{"$f":"IF($A162=\"N/A\",Ref!$B$36,INDEX(Ranks!$1:$1048576,$A162,AL$1))","v":""},{"$f":"IF($A162=\"N/A\",Ref!$B$36,INDEX(Ranks!$1:$1048576,$A162,AM$1))","v":""},{"$f":"IF($A162=\"N/A\",Ref!$B$36,INDEX(Ranks!$1:$1048576,$A162,AN$1))","v":""},{"$f":"IF($A162=\"N/A\",Ref!$B$36,INDEX(Ranks!$1:$1048576,$A162,AO$1))","v":""},{"$f":"IF($A162=\"N/A\",Ref!$B$36,INDEX(Ranks!$1:$1048576,$A162,AP$1))","v":""},{"$f":"IF($A162=\"N/A\",Ref!$B$36,INDEX(Ranks!$1:$1048576,$A162,AQ$1))","v":""},{"$f":"IF($A162=\"N/A\",Ref!$B$36,INDEX(Ranks!$1:$1048576,$A162,AR$1))","v":""},{"$f":"IF($A162=\"N/A\",Ref!$B$36,INDEX(Ranks!$1:$1048576,$A162,AS$1))","v":""},{"$f":"IF($A162=\"N/A\",Ref!$B$36,INDEX(Ranks!$1:$1048576,$A162,AT$1))","v":""},{"$f":"IF($A162=\"N/A\",Ref!$B$36,INDEX(Ranks!$1:$1048576,$A162,AU$1))","v":""},{"$f":"IF($A162=\"N/A\",Ref!$B$36,INDEX(Ranks!$1:$1048576,$A162,AV$1))","v":""},{"$f":"IF($A162=\"N/A\",Ref!$B$36,INDEX(Ranks!$1:$1048576,$A162,AW$1))","v":""},{"$f":"IF($A162=\"N/A\",Ref!$B$36,INDEX(Ranks!$1:$1048576,$A162,AX$1))","v":""},{"$f":"IF($A162=\"N/A\",Ref!$B$36,INDEX(Ranks!$1:$1048576,$A162,AY$1))","v":""},{"$f":"IF($A162=\"N/A\",Ref!$B$36,INDEX(Ranks!$1:$1048576,$A162,AZ$1))","v":""},{"$f":"IF($A162=\"N/A\",Ref!$B$36,INDEX(Ranks!$1:$1048576,$A162,BA$1))","v":""},{"$f":"IF($A162=\"N/A\",Ref!$B$36,INDEX(Ranks!$1:$1048576,$A162,BB$1))","v":""},{"$f":"IF($A162=\"N/A\",Ref!$B$36,INDEX(Ranks!$1:$1048576,$A162,BC$1))","v":""},{"$f":"IF($A162=\"N/A\",Ref!$B$36,INDEX(Ranks!$1:$1048576,$A162,BD$1))","v":""},{"$f":"IF($A162=\"N/A\",Ref!$B$36,INDEX(Ranks!$1:$1048576,$A162,BE$1))","v":""},{"$f":"IF($A162=\"N/A\",Ref!$B$36,INDEX(Ranks!$1:$1048576,$A162,BF$1))","v":""},{"$f":"IF($A162=\"N/A\",Ref!$B$36,INDEX(Ranks!$1:$1048576,$A162,BG$1))","v":""},{"$f":"IF($A162=\"N/A\",Ref!$B$36,INDEX(Ranks!$1:$1048576,$A162,BH$1))","v":""},{"$f":"IF($A162=\"N/A\",Ref!$B$36,INDEX(Ranks!$1:$1048576,$A162,BI$1))","v":""},{"$f":"IF($A162=\"N/A\",Ref!$B$36,INDEX(Ranks!$1:$1048576,$A162,BJ$1))","v":""},{"$f":"IF($A162=\"N/A\",Ref!$B$36,INDEX(Ranks!$1:$1048576,$A162,BK$1))","v":""},{"$f":"IF($A162=\"N/A\",Ref!$B$36,INDEX(Ranks!$1:$1048576,$A162,BL$1))","v":""},{"$f":"IF($A162=\"N/A\",Ref!$B$36,INDEX(Ranks!$1:$1048576,$A162,BM$1))","v":""},{"$f":"IF($A162=\"N/A\",Ref!$B$36,INDEX(Ranks!$1:$1048576,$A162,BN$1))","v":""},{"$f":"IF($A162=\"N/A\",Ref!$B$36,INDEX(Ranks!$1:$1048576,$A162,BO$1))","v":""},{"$f":"IF($A162=\"N/A\",Ref!$B$36,INDEX(Ranks!$1:$1048576,$A162,BP$1))","v":""},{"$f":"IF($A162=\"N/A\",Ref!$B$36,INDEX(Ranks!$1:$1048576,$A162,BQ$1))","v":""},{"$f":"IF($A162=\"N/A\",Ref!$B$36,INDEX(Ranks!$1:$1048576,$A162,BR$1))","v":""},{"$f":"IF($A162=\"N/A\",Ref!$B$36,INDEX(Ranks!$1:$1048576,$A162,BS$1))","v":""},{"$f":"IF($A162=\"N/A\",Ref!$B$36,INDEX(Ranks!$1:$1048576,$A162,BT$1))","v":""},{"$f":"IF($A162=\"N/A\",Ref!$B$36,INDEX(Ranks!$1:$1048576,$A162,BU$1))","v":""},{"$f":"IF($A162=\"N/A\",Ref!$B$36,INDEX(Ranks!$1:$1048576,$A162,BV$1))","v":""},{"$f":"IF($A162=\"N/A\",Ref!$B$36,INDEX(Ranks!$1:$1048576,$A162,BW$1))","v":""},{"$f":"IF($A162=\"N/A\",Ref!$B$36,INDEX(Ranks!$1:$1048576,$A162,BX$1))","v":""},{"$f":"IF($A162=\"N/A\",Ref!$B$36,INDEX(Ranks!$1:$1048576,$A162,BY$1))","v":""},{"$f":"IF($A162=\"N/A\",Ref!$B$36,INDEX(Ranks!$1:$1048576,$A162,BZ$1))","v":""},{"$f":"IF($A162=\"N/A\",Ref!$B$36,INDEX(Ranks!$1:$1048576,$A162,CA$1))","v":""},{"$f":"IF($A162=\"N/A\",Ref!$B$36,INDEX(Ranks!$1:$1048576,$A162,CB$1))","v":""},{"$f":"IF($A162=\"N/A\",Ref!$B$36,INDEX(Ranks!$1:$1048576,$A162,CC$1))","v":""},{"$f":"IF($A162=\"N/A\",Ref!$B$36,INDEX(Ranks!$1:$1048576,$A162,CD$1))","v":""},{"$f":"IF($A162=\"N/A\",Ref!$B$36,INDEX(Ranks!$1:$1048576,$A162,CE$1))","v":""},{"$f":"IF($A162=\"N/A\",Ref!$B$36,INDEX(Ranks!$1:$1048576,$A162,CF$1))","v":""},{"$f":"IF($A162=\"N/A\",Ref!$B$36,INDEX(Ranks!$1:$1048576,$A162,CG$1))","v":""},{"$f":"IF($A162=\"N/A\",Ref!$B$36,INDEX(Ranks!$1:$1048576,$A162,CH$1))","v":""},{"$f":"IF($A162=\"N/A\",Ref!$B$36,INDEX(Ranks!$1:$1048576,$A162,CI$1))","v":""},{"$f":"IF($A162=\"N/A\",Ref!$B$36,INDEX(Ranks!$1:$1048576,$A162,CJ$1))","v":""},{"$f":"IF($A162=\"N/A\",Ref!$B$36,INDEX(Ranks!$1:$1048576,$A162,CK$1))","v":""},{"$f":"IF($A162=\"N/A\",Ref!$B$36,INDEX(Ranks!$1:$1048576,$A162,CL$1))","v":""},{"$f":"IF($A162=\"N/A\",Ref!$B$36,INDEX(Ranks!$1:$1048576,$A162,CM$1))","v":""},{"$f":"IF($A162=\"N/A\",Ref!$B$36,INDEX(Ranks!$1:$1048576,$A162,CN$1))","v":""},{"$f":"IF($A162=\"N/A\",Ref!$B$36,INDEX(Ranks!$1:$1048576,$A162,CO$1))","v":""},{"$f":"IF($A162=\"N/A\",Ref!$B$36,INDEX(Ranks!$1:$1048576,$A162,CP$1))","v":""},{"$f":"IF($A162=\"N/A\",Ref!$B$36,INDEX(Ranks!$1:$1048576,$A162,CQ$1))","v":""},{"$f":"IF($A162=\"N/A\",Ref!$B$36,INDEX(Ranks!$1:$1048576,$A162,CR$1))","v":""},{"$f":"IF($A162=\"N/A\",Ref!$B$36,INDEX(Ranks!$1:$1048576,$A162,CS$1))","v":""},{"$f":"IF($A162=\"N/A\",Ref!$B$36,INDEX(Ranks!$1:$1048576,$A162,CT$1))","v":""},{"$f":"IF($A162=\"N/A\",Ref!$B$36,INDEX(Ranks!$1:$1048576,$A162,CU$1))","v":""},{"$f":"IF($A162=\"N/A\",Ref!$B$36,INDEX(Ranks!$1:$1048576,$A162,CV$1))","v":""},{"$f":"IF($A162=\"N/A\",Ref!$B$36,INDEX(Ranks!$1:$1048576,$A162,CW$1))","v":""},{"$f":"IF($A162=\"N/A\",Ref!$B$36,INDEX(Ranks!$1:$1048576,$A162,CX$1))","v":""},{"$f":"IF($A162=\"N/A\",Ref!$B$36,INDEX(Ranks!$1:$1048576,$A162,CY$1))","v":""},{"$f":"IF($A162=\"N/A\",Ref!$B$36,INDEX(Ranks!$1:$1048576,$A162,CZ$1))","v":""},{"$f":"IF($A162=\"N/A\",Ref!$B$36,INDEX(Ranks!$1:$1048576,$A162,DA$1))","v":""},{"$f":"IF($A162=\"N/A\",Ref!$B$36,INDEX(Ranks!$1:$1048576,$A162,DB$1))","v":""},{"$f":"IF($A162=\"N/A\",Ref!$B$36,INDEX(Ranks!$1:$1048576,$A162,DC$1))","v":""},{"$f":"IF($A162=\"N/A\",Ref!$B$36,INDEX(Ranks!$1:$1048576,$A162,DD$1))","v":""},{"$f":"IF($A162=\"N/A\",Ref!$B$36,INDEX(Ranks!$1:$1048576,$A162,DE$1))","v":""},{"$f":"IF($A162=\"N/A\",Ref!$B$36,INDEX(Ranks!$1:$1048576,$A162,DF$1))","v":""},{"$f":"IF($A162=\"N/A\",Ref!$B$36,INDEX(Ranks!$1:$1048576,$A162,DG$1))","v":""},{"$f":"IF($A162=\"N/A\",Ref!$B$36,INDEX(Ranks!$1:$1048576,$A162,DH$1))","v":""},{"$f":"IF($A162=\"N/A\",Ref!$B$36,INDEX(Ranks!$1:$1048576,$A162,DI$1))","v":""},{"$f":"IF($A162=\"N/A\",Ref!$B$36,INDEX(Ranks!$1:$1048576,$A162,DJ$1))","v":""},{"$f":"IF($A162=\"N/A\",Ref!$B$36,INDEX(Ranks!$1:$1048576,$A162,DK$1))","v":""},{"$f":"IF($A162=\"N/A\",Ref!$B$36,INDEX(Ranks!$1:$1048576,$A162,DL$1))","v":""},{"$f":"IF($A162=\"N/A\",Ref!$B$36,INDEX(Ranks!$1:$1048576,$A162,DM$1))","v":""},{"$f":"IF($A162=\"N/A\",Ref!$B$36,INDEX(Ranks!$1:$1048576,$A162,DN$1))","v":""},{"$f":"IF($A162=\"N/A\",Ref!$B$36,INDEX(Ranks!$1:$1048576,$A162,DO$1))","v":""},{"$f":"IF($A162=\"N/A\",Ref!$B$36,INDEX(Ranks!$1:$1048576,$A162,DP$1))","v":""},{"$f":"IF($A162=\"N/A\",Ref!$B$36,INDEX(Ranks!$1:$1048576,$A162,DQ$1))","v":""},{"$f":"IF($A162=\"N/A\",Ref!$B$36,INDEX(Ranks!$1:$1048576,$A162,DR$1))","v":""},{"$f":"IF($A162=\"N/A\",Ref!$B$36,INDEX(Ranks!$1:$1048576,$A162,DS$1))","v":""},{"$f":"IF($A162=\"N/A\",Ref!$B$36,INDEX(Ranks!$1:$1048576,$A162,DT$1))","v":""},{"$f":"IF($A162=\"N/A\",Ref!$B$36,INDEX(Ranks!$1:$1048576,$A162,DU$1))","v":""},{"$f":"IF($A162=\"N/A\",Ref!$B$36,INDEX(Ranks!$1:$1048576,$A162,DV$1))","v":""},{"$f":"IF($A162=\"N/A\",Ref!$B$36,INDEX(Ranks!$1:$1048576,$A162,DW$1))","v":""},{"$f":"IF($A162=\"N/A\",Ref!$B$36,INDEX(Ranks!$1:$1048576,$A162,DX$1))","v":""},{"$f":"IF($A162=\"N/A\",Ref!$B$36,INDEX(Ranks!$1:$1048576,$A162,DY$1))","v":""},{"$f":"IF($A162=\"N/A\",Ref!$B$36,INDEX(Ranks!$1:$1048576,$A162,DZ$1))","v":""},{"$f":"IF($A162=\"N/A\",Ref!$B$36,INDEX(Ranks!$1:$1048576,$A162,EA$1))","v":""},{"$f":"IF($A162=\"N/A\",Ref!$B$36,INDEX(Ranks!$1:$1048576,$A162,EB$1))","v":""}]
[{"$f":"IFERROR(MATCH('Portfolio Page'!L163,Ranks!L:L,0),\"N/A\")","v":"N/A"},null,{"$f":"IF($A163=\"N/A\",\"\",INDEX(Ranks!$1:$1048576,$A163,C$1))","v":""},{"$f":"IF($A163=\"N/A\",Ref!$B$36,INDEX(Ranks!$1:$1048576,$A163,D$1))","v":""},{"$f":"IF($A163=\"N/A\",Ref!$B$36,INDEX(Ranks!$1:$1048576,$A163,E$1))","v":""},{"$f":"IF($A163=\"N/A\",\"\",INDEX(Ranks!$1:$1048576,$A163,F$1))","v":""},{"$f":"IF($A163=\"N/A\",\"\",INDEX(Ranks!$1:$1048576,$A163,G$1))","v":""},{"$f":"IF($A163=\"N/A\",\"\",INDEX(Ranks!$1:$1048576,$A163,H$1))","v":""},{"$f":"IF($A163=\"N/A\",\"\",INDEX(Ranks!$1:$1048576,$A163,I$1))","v":""},{"$f":"IF($A163=\"N/A\",\"\",INDEX(Ranks!$1:$1048576,$A163,J$1))","v":""},{"$f":"IF($A163=\"N/A\",\"\",INDEX(Ranks!$1:$1048576,$A163,K$1))","v":""},null,{"$f":"IF($A163=\"N/A\",Ref!$B$36,INDEX(Ranks!$1:$1048576,$A163,M$1))","v":""},{"$f":"IF($A163=\"N/A\",Ref!$B$36,INDEX(Ranks!$1:$1048576,$A163,N$1))","v":""},{"$f":"IF($A163=\"N/A\",Ref!$B$36,INDEX(Ranks!$1:$1048576,$A163,O$1))","v":""},{"$f":"IF($A163=\"N/A\",Ref!$B$36,INDEX(Ranks!$1:$1048576,$A163,P$1))","v":""},{"$f":"IF($A163=\"N/A\",Ref!$B$36,INDEX(Ranks!$1:$1048576,$A163,Q$1))","v":""},{"$f":"IF($A163=\"N/A\",Ref!$B$36,INDEX(Ranks!$1:$1048576,$A163,R$1))","v":""},{"$f":"IF($A163=\"N/A\",Ref!$B$36,INDEX(Ranks!$1:$1048576,$A163,S$1))","v":""},{"$f":"IF($A163=\"N/A\",Ref!$B$36,INDEX(Ranks!$1:$1048576,$A163,T$1))","v":""},{"$f":"IF($A163=\"N/A\",Ref!$B$36,INDEX(Ranks!$1:$1048576,$A163,U$1))","v":""},{"$f":"IF($A163=\"N/A\",Ref!$B$36,INDEX(Ranks!$1:$1048576,$A163,V$1))","v":""},{"$f":"IF($A163=\"N/A\",Ref!$B$36,INDEX(Ranks!$1:$1048576,$A163,W$1))","v":""},{"$f":"IF($A163=\"N/A\",Ref!$B$36,INDEX(Ranks!$1:$1048576,$A163,X$1))","v":""},{"$f":"IF($A163=\"N/A\",Ref!$B$36,INDEX(Ranks!$1:$1048576,$A163,Y$1))","v":""},{"$f":"IF($A163=\"N/A\",Ref!$B$36,INDEX(Ranks!$1:$1048576,$A163,Z$1))","v":""},{"$f":"IF($A163=\"N/A\",Ref!$B$36,INDEX(Ranks!$1:$1048576,$A163,AA$1))","v":""},{"$f":"IF($A163=\"N/A\",Ref!$B$36,INDEX(Ranks!$1:$1048576,$A163,AB$1))","v":""},{"$f":"IF($A163=\"N/A\",Ref!$B$36,INDEX(Ranks!$1:$1048576,$A163,AC$1))","v":""},{"$f":"IF($A163=\"N/A\",Ref!$B$36,INDEX(Ranks!$1:$1048576,$A163,AD$1))","v":""},{"$f":"IF($A163=\"N/A\",Ref!$B$36,INDEX(Ranks!$1:$1048576,$A163,AE$1))","v":""},{"$f":"IF($A163=\"N/A\",Ref!$B$36,INDEX(Ranks!$1:$1048576,$A163,AF$1))","v":""},{"$f":"IF($A163=\"N/A\",Ref!$B$36,INDEX(Ranks!$1:$1048576,$A163,AG$1))","v":""},{"$f":"IF($A163=\"N/A\",Ref!$B$36,INDEX(Ranks!$1:$1048576,$A163,AH$1))","v":""},{"$f":"IF($A163=\"N/A\",Ref!$B$36,INDEX(Ranks!$1:$1048576,$A163,AI$1))","v":""},{"$f":"IF($A163=\"N/A\",Ref!$B$36,INDEX(Ranks!$1:$1048576,$A163,AJ$1))","v":""},{"$f":"IF($A163=\"N/A\",Ref!$B$36,INDEX(Ranks!$1:$1048576,$A163,AK$1))","v":""},{"$f":"IF($A163=\"N/A\",Ref!$B$36,INDEX(Ranks!$1:$1048576,$A163,AL$1))","v":""},{"$f":"IF($A163=\"N/A\",Ref!$B$36,INDEX(Ranks!$1:$1048576,$A163,AM$1))","v":""},{"$f":"IF($A163=\"N/A\",Ref!$B$36,INDEX(Ranks!$1:$1048576,$A163,AN$1))","v":""},{"$f":"IF($A163=\"N/A\",Ref!$B$36,INDEX(Ranks!$1:$1048576,$A163,AO$1))","v":""},{"$f":"IF($A163=\"N/A\",Ref!$B$36,INDEX(Ranks!$1:$1048576,$A163,AP$1))","v":""},{"$f":"IF($A163=\"N/A\",Ref!$B$36,INDEX(Ranks!$1:$1048576,$A163,AQ$1))","v":""},{"$f":"IF($A163=\"N/A\",Ref!$B$36,INDEX(Ranks!$1:$1048576,$A163,AR$1))","v":""},{"$f":"IF($A163=\"N/A\",Ref!$B$36,INDEX(Ranks!$1:$1048576,$A163,AS$1))","v":""},{"$f":"IF($A163=\"N/A\",Ref!$B$36,INDEX(Ranks!$1:$1048576,$A163,AT$1))","v":""},{"$f":"IF($A163=\"N/A\",Ref!$B$36,INDEX(Ranks!$1:$1048576,$A163,AU$1))","v":""},{"$f":"IF($A163=\"N/A\",Ref!$B$36,INDEX(Ranks!$1:$1048576,$A163,AV$1))","v":""},{"$f":"IF($A163=\"N/A\",Ref!$B$36,INDEX(Ranks!$1:$1048576,$A163,AW$1))","v":""},{"$f":"IF($A163=\"N/A\",Ref!$B$36,INDEX(Ranks!$1:$1048576,$A163,AX$1))","v":""},{"$f":"IF($A163=\"N/A\",Ref!$B$36,INDEX(Ranks!$1:$1048576,$A163,AY$1))","v":""},{"$f":"IF($A163=\"N/A\",Ref!$B$36,INDEX(Ranks!$1:$1048576,$A163,AZ$1))","v":""},{"$f":"IF($A163=\"N/A\",Ref!$B$36,INDEX(Ranks!$1:$1048576,$A163,BA$1))","v":""},{"$f":"IF($A163=\"N/A\",Ref!$B$36,INDEX(Ranks!$1:$1048576,$A163,BB$1))","v":""},{"$f":"IF($A163=\"N/A\",Ref!$B$36,INDEX(Ranks!$1:$1048576,$A163,BC$1))","v":""},{"$f":"IF($A163=\"N/A\",Ref!$B$36,INDEX(Ranks!$1:$1048576,$A163,BD$1))","v":""},{"$f":"IF($A163=\"N/A\",Ref!$B$36,INDEX(Ranks!$1:$1048576,$A163,BE$1))","v":""},{"$f":"IF($A163=\"N/A\",Ref!$B$36,INDEX(Ranks!$1:$1048576,$A163,BF$1))","v":""},{"$f":"IF($A163=\"N/A\",Ref!$B$36,INDEX(Ranks!$1:$1048576,$A163,BG$1))","v":""},{"$f":"IF($A163=\"N/A\",Ref!$B$36,INDEX(Ranks!$1:$1048576,$A163,BH$1))","v":""},{"$f":"IF($A163=\"N/A\",Ref!$B$36,INDEX(Ranks!$1:$1048576,$A163,BI$1))","v":""},{"$f":"IF($A163=\"N/A\",Ref!$B$36,INDEX(Ranks!$1:$1048576,$A163,BJ$1))","v":""},{"$f":"IF($A163=\"N/A\",Ref!$B$36,INDEX(Ranks!$1:$1048576,$A163,BK$1))","v":""},{"$f":"IF($A163=\"N/A\",Ref!$B$36,INDEX(Ranks!$1:$1048576,$A163,BL$1))","v":""},{"$f":"IF($A163=\"N/A\",Ref!$B$36,INDEX(Ranks!$1:$1048576,$A163,BM$1))","v":""},{"$f":"IF($A163=\"N/A\",Ref!$B$36,INDEX(Ranks!$1:$1048576,$A163,BN$1))","v":""},{"$f":"IF($A163=\"N/A\",Ref!$B$36,INDEX(Ranks!$1:$1048576,$A163,BO$1))","v":""},{"$f":"IF($A163=\"N/A\",Ref!$B$36,INDEX(Ranks!$1:$1048576,$A163,BP$1))","v":""},{"$f":"IF($A163=\"N/A\",Ref!$B$36,INDEX(Ranks!$1:$1048576,$A163,BQ$1))","v":""},{"$f":"IF($A163=\"N/A\",Ref!$B$36,INDEX(Ranks!$1:$1048576,$A163,BR$1))","v":""},{"$f":"IF($A163=\"N/A\",Ref!$B$36,INDEX(Ranks!$1:$1048576,$A163,BS$1))","v":""},{"$f":"IF($A163=\"N/A\",Ref!$B$36,INDEX(Ranks!$1:$1048576,$A163,BT$1))","v":""},{"$f":"IF($A163=\"N/A\",Ref!$B$36,INDEX(Ranks!$1:$1048576,$A163,BU$1))","v":""},{"$f":"IF($A163=\"N/A\",Ref!$B$36,INDEX(Ranks!$1:$1048576,$A163,BV$1))","v":""},{"$f":"IF($A163=\"N/A\",Ref!$B$36,INDEX(Ranks!$1:$1048576,$A163,BW$1))","v":""},{"$f":"IF($A163=\"N/A\",Ref!$B$36,INDEX(Ranks!$1:$1048576,$A163,BX$1))","v":""},{"$f":"IF($A163=\"N/A\",Ref!$B$36,INDEX(Ranks!$1:$1048576,$A163,BY$1))","v":""},{"$f":"IF($A163=\"N/A\",Ref!$B$36,INDEX(Ranks!$1:$1048576,$A163,BZ$1))","v":""},{"$f":"IF($A163=\"N/A\",Ref!$B$36,INDEX(Ranks!$1:$1048576,$A163,CA$1))","v":""},{"$f":"IF($A163=\"N/A\",Ref!$B$36,INDEX(Ranks!$1:$1048576,$A163,CB$1))","v":""},{"$f":"IF($A163=\"N/A\",Ref!$B$36,INDEX(Ranks!$1:$1048576,$A163,CC$1))","v":""},{"$f":"IF($A163=\"N/A\",Ref!$B$36,INDEX(Ranks!$1:$1048576,$A163,CD$1))","v":""},{"$f":"IF($A163=\"N/A\",Ref!$B$36,INDEX(Ranks!$1:$1048576,$A163,CE$1))","v":""},{"$f":"IF($A163=\"N/A\",Ref!$B$36,INDEX(Ranks!$1:$1048576,$A163,CF$1))","v":""},{"$f":"IF($A163=\"N/A\",Ref!$B$36,INDEX(Ranks!$1:$1048576,$A163,CG$1))","v":""},{"$f":"IF($A163=\"N/A\",Ref!$B$36,INDEX(Ranks!$1:$1048576,$A163,CH$1))","v":""},{"$f":"IF($A163=\"N/A\",Ref!$B$36,INDEX(Ranks!$1:$1048576,$A163,CI$1))","v":""},{"$f":"IF($A163=\"N/A\",Ref!$B$36,INDEX(Ranks!$1:$1048576,$A163,CJ$1))","v":""},{"$f":"IF($A163=\"N/A\",Ref!$B$36,INDEX(Ranks!$1:$1048576,$A163,CK$1))","v":""},{"$f":"IF($A163=\"N/A\",Ref!$B$36,INDEX(Ranks!$1:$1048576,$A163,CL$1))","v":""},{"$f":"IF($A163=\"N/A\",Ref!$B$36,INDEX(Ranks!$1:$1048576,$A163,CM$1))","v":""},{"$f":"IF($A163=\"N/A\",Ref!$B$36,INDEX(Ranks!$1:$1048576,$A163,CN$1))","v":""},{"$f":"IF($A163=\"N/A\",Ref!$B$36,INDEX(Ranks!$1:$1048576,$A163,CO$1))","v":""},{"$f":"IF($A163=\"N/A\",Ref!$B$36,INDEX(Ranks!$1:$1048576,$A163,CP$1))","v":""},{"$f":"IF($A163=\"N/A\",Ref!$B$36,INDEX(Ranks!$1:$1048576,$A163,CQ$1))","v":""},{"$f":"IF($A163=\"N/A\",Ref!$B$36,INDEX(Ranks!$1:$1048576,$A163,CR$1))","v":""},{"$f":"IF($A163=\"N/A\",Ref!$B$36,INDEX(Ranks!$1:$1048576,$A163,CS$1))","v":""},{"$f":"IF($A163=\"N/A\",Ref!$B$36,INDEX(Ranks!$1:$1048576,$A163,CT$1))","v":""},{"$f":"IF($A163=\"N/A\",Ref!$B$36,INDEX(Ranks!$1:$1048576,$A163,CU$1))","v":""},{"$f":"IF($A163=\"N/A\",Ref!$B$36,INDEX(Ranks!$1:$1048576,$A163,CV$1))","v":""},{"$f":"IF($A163=\"N/A\",Ref!$B$36,INDEX(Ranks!$1:$1048576,$A163,CW$1))","v":""},{"$f":"IF($A163=\"N/A\",Ref!$B$36,INDEX(Ranks!$1:$1048576,$A163,CX$1))","v":""},{"$f":"IF($A163=\"N/A\",Ref!$B$36,INDEX(Ranks!$1:$1048576,$A163,CY$1))","v":""},{"$f":"IF($A163=\"N/A\",Ref!$B$36,INDEX(Ranks!$1:$1048576,$A163,CZ$1))","v":""},{"$f":"IF($A163=\"N/A\",Ref!$B$36,INDEX(Ranks!$1:$1048576,$A163,DA$1))","v":""},{"$f":"IF($A163=\"N/A\",Ref!$B$36,INDEX(Ranks!$1:$1048576,$A163,DB$1))","v":""},{"$f":"IF($A163=\"N/A\",Ref!$B$36,INDEX(Ranks!$1:$1048576,$A163,DC$1))","v":""},{"$f":"IF($A163=\"N/A\",Ref!$B$36,INDEX(Ranks!$1:$1048576,$A163,DD$1))","v":""},{"$f":"IF($A163=\"N/A\",Ref!$B$36,INDEX(Ranks!$1:$1048576,$A163,DE$1))","v":""},{"$f":"IF($A163=\"N/A\",Ref!$B$36,INDEX(Ranks!$1:$1048576,$A163,DF$1))","v":""},{"$f":"IF($A163=\"N/A\",Ref!$B$36,INDEX(Ranks!$1:$1048576,$A163,DG$1))","v":""},{"$f":"IF($A163=\"N/A\",Ref!$B$36,INDEX(Ranks!$1:$1048576,$A163,DH$1))","v":""},{"$f":"IF($A163=\"N/A\",Ref!$B$36,INDEX(Ranks!$1:$1048576,$A163,DI$1))","v":""},{"$f":"IF($A163=\"N/A\",Ref!$B$36,INDEX(Ranks!$1:$1048576,$A163,DJ$1))","v":""},{"$f":"IF($A163=\"N/A\",Ref!$B$36,INDEX(Ranks!$1:$1048576,$A163,DK$1))","v":""},{"$f":"IF($A163=\"N/A\",Ref!$B$36,INDEX(Ranks!$1:$1048576,$A163,DL$1))","v":""},{"$f":"IF($A163=\"N/A\",Ref!$B$36,INDEX(Ranks!$1:$1048576,$A163,DM$1))","v":""},{"$f":"IF($A163=\"N/A\",Ref!$B$36,INDEX(Ranks!$1:$1048576,$A163,DN$1))","v":""},{"$f":"IF($A163=\"N/A\",Ref!$B$36,INDEX(Ranks!$1:$1048576,$A163,DO$1))","v":""},{"$f":"IF($A163=\"N/A\",Ref!$B$36,INDEX(Ranks!$1:$1048576,$A163,DP$1))","v":""},{"$f":"IF($A163=\"N/A\",Ref!$B$36,INDEX(Ranks!$1:$1048576,$A163,DQ$1))","v":""},{"$f":"IF($A163=\"N/A\",Ref!$B$36,INDEX(Ranks!$1:$1048576,$A163,DR$1))","v":""},{"$f":"IF($A163=\"N/A\",Ref!$B$36,INDEX(Ranks!$1:$1048576,$A163,DS$1))","v":""},{"$f":"IF($A163=\"N/A\",Ref!$B$36,INDEX(Ranks!$1:$1048576,$A163,DT$1))","v":""},{"$f":"IF($A163=\"N/A\",Ref!$B$36,INDEX(Ranks!$1:$1048576,$A163,DU$1))","v":""},{"$f":"IF($A163=\"N/A\",Ref!$B$36,INDEX(Ranks!$1:$1048576,$A163,DV$1))","v":""},{"$f":"IF($A163=\"N/A\",Ref!$B$36,INDEX(Ranks!$1:$1048576,$A163,DW$1))","v":""},{"$f":"IF($A163=\"N/A\",Ref!$B$36,INDEX(Ranks!$1:$1048576,$A163,DX$1))","v":""},{"$f":"IF($A163=\"N/A\",Ref!$B$36,INDEX(Ranks!$1:$1048576,$A163,DY$1))","v":""},{"$f":"IF($A163=\"N/A\",Ref!$B$36,INDEX(Ranks!$1:$1048576,$A163,DZ$1))","v":""},{"$f":"IF($A163=\"N/A\",Ref!$B$36,INDEX(Ranks!$1:$1048576,$A163,EA$1))","v":""},{"$f":"IF($A163=\"N/A\",Ref!$B$36,INDEX(Ranks!$1:$1048576,$A163,EB$1))","v":""}]
[{"$f":"IFERROR(MATCH('Portfolio Page'!L164,Ranks!L:L,0),\"N/A\")","v":"N/A"},null,{"$f":"IF($A164=\"N/A\",\"\",INDEX(Ranks!$1:$1048576,$A164,C$1))","v":""},{"$f":"IF($A164=\"N/A\",Ref!$B$36,INDEX(Ranks!$1:$1048576,$A164,D$1))","v":""},{"$f":"IF($A164=\"N/A\",Ref!$B$36,INDEX(Ranks!$1:$1048576,$A164,E$1))","v":""},{"$f":"IF($A164=\"N/A\",\"\",INDEX(Ranks!$1:$1048576,$A164,F$1))","v":""},{"$f":"IF($A164=\"N/A\",\"\",INDEX(Ranks!$1:$1048576,$A164,G$1))","v":""},{"$f":"IF($A164=\"N/A\",\"\",INDEX(Ranks!$1:$1048576,$A164,H$1))","v":""},{"$f":"IF($A164=\"N/A\",\"\",INDEX(Ranks!$1:$1048576,$A164,I$1))","v":""},{"$f":"IF($A164=\"N/A\",\"\",INDEX(Ranks!$1:$1048576,$A164,J$1))","v":""},{"$f":"IF($A164=\"N/A\",\"\",INDEX(Ranks!$1:$1048576,$A164,K$1))","v":""},null,{"$f":"IF($A164=\"N/A\",Ref!$B$36,INDEX(Ranks!$1:$1048576,$A164,M$1))","v":""},{"$f":"IF($A164=\"N/A\",Ref!$B$36,INDEX(Ranks!$1:$1048576,$A164,N$1))","v":""},{"$f":"IF($A164=\"N/A\",Ref!$B$36,INDEX(Ranks!$1:$1048576,$A164,O$1))","v":""},{"$f":"IF($A164=\"N/A\",Ref!$B$36,INDEX(Ranks!$1:$1048576,$A164,P$1))","v":""},{"$f":"IF($A164=\"N/A\",Ref!$B$36,INDEX(Ranks!$1:$1048576,$A164,Q$1))","v":""},{"$f":"IF($A164=\"N/A\",Ref!$B$36,INDEX(Ranks!$1:$1048576,$A164,R$1))","v":""},{"$f":"IF($A164=\"N/A\",Ref!$B$36,INDEX(Ranks!$1:$1048576,$A164,S$1))","v":""},{"$f":"IF($A164=\"N/A\",Ref!$B$36,INDEX(Ranks!$1:$1048576,$A164,T$1))","v":""},{"$f":"IF($A164=\"N/A\",Ref!$B$36,INDEX(Ranks!$1:$1048576,$A164,U$1))","v":""},{"$f":"IF($A164=\"N/A\",Ref!$B$36,INDEX(Ranks!$1:$1048576,$A164,V$1))","v":""},{"$f":"IF($A164=\"N/A\",Ref!$B$36,INDEX(Ranks!$1:$1048576,$A164,W$1))","v":""},{"$f":"IF($A164=\"N/A\",Ref!$B$36,INDEX(Ranks!$1:$1048576,$A164,X$1))","v":""},{"$f":"IF($A164=\"N/A\",Ref!$B$36,INDEX(Ranks!$1:$1048576,$A164,Y$1))","v":""},{"$f":"IF($A164=\"N/A\",Ref!$B$36,INDEX(Ranks!$1:$1048576,$A164,Z$1))","v":""},{"$f":"IF($A164=\"N/A\",Ref!$B$36,INDEX(Ranks!$1:$1048576,$A164,AA$1))","v":""},{"$f":"IF($A164=\"N/A\",Ref!$B$36,INDEX(Ranks!$1:$1048576,$A164,AB$1))","v":""},{"$f":"IF($A164=\"N/A\",Ref!$B$36,INDEX(Ranks!$1:$1048576,$A164,AC$1))","v":""},{"$f":"IF($A164=\"N/A\",Ref!$B$36,INDEX(Ranks!$1:$1048576,$A164,AD$1))","v":""},{"$f":"IF($A164=\"N/A\",Ref!$B$36,INDEX(Ranks!$1:$1048576,$A164,AE$1))","v":""},{"$f":"IF($A164=\"N/A\",Ref!$B$36,INDEX(Ranks!$1:$1048576,$A164,AF$1))","v":""},{"$f":"IF($A164=\"N/A\",Ref!$B$36,INDEX(Ranks!$1:$1048576,$A164,AG$1))","v":""},{"$f":"IF($A164=\"N/A\",Ref!$B$36,INDEX(Ranks!$1:$1048576,$A164,AH$1))","v":""},{"$f":"IF($A164=\"N/A\",Ref!$B$36,INDEX(Ranks!$1:$1048576,$A164,AI$1))","v":""},{"$f":"IF($A164=\"N/A\",Ref!$B$36,INDEX(Ranks!$1:$1048576,$A164,AJ$1))","v":""},{"$f":"IF($A164=\"N/A\",Ref!$B$36,INDEX(Ranks!$1:$1048576,$A164,AK$1))","v":""},{"$f":"IF($A164=\"N/A\",Ref!$B$36,INDEX(Ranks!$1:$1048576,$A164,AL$1))","v":""},{"$f":"IF($A164=\"N/A\",Ref!$B$36,INDEX(Ranks!$1:$1048576,$A164,AM$1))","v":""},{"$f":"IF($A164=\"N/A\",Ref!$B$36,INDEX(Ranks!$1:$1048576,$A164,AN$1))","v":""},{"$f":"IF($A164=\"N/A\",Ref!$B$36,INDEX(Ranks!$1:$1048576,$A164,AO$1))","v":""},{"$f":"IF($A164=\"N/A\",Ref!$B$36,INDEX(Ranks!$1:$1048576,$A164,AP$1))","v":""},{"$f":"IF($A164=\"N/A\",Ref!$B$36,INDEX(Ranks!$1:$1048576,$A164,AQ$1))","v":""},{"$f":"IF($A164=\"N/A\",Ref!$B$36,INDEX(Ranks!$1:$1048576,$A164,AR$1))","v":""},{"$f":"IF($A164=\"N/A\",Ref!$B$36,INDEX(Ranks!$1:$1048576,$A164,AS$1))","v":""},{"$f":"IF($A164=\"N/A\",Ref!$B$36,INDEX(Ranks!$1:$1048576,$A164,AT$1))","v":""},{"$f":"IF($A164=\"N/A\",Ref!$B$36,INDEX(Ranks!$1:$1048576,$A164,AU$1))","v":""},{"$f":"IF($A164=\"N/A\",Ref!$B$36,INDEX(Ranks!$1:$1048576,$A164,AV$1))","v":""},{"$f":"IF($A164=\"N/A\",Ref!$B$36,INDEX(Ranks!$1:$1048576,$A164,AW$1))","v":""},{"$f":"IF($A164=\"N/A\",Ref!$B$36,INDEX(Ranks!$1:$1048576,$A164,AX$1))","v":""},{"$f":"IF($A164=\"N/A\",Ref!$B$36,INDEX(Ranks!$1:$1048576,$A164,AY$1))","v":""},{"$f":"IF($A164=\"N/A\",Ref!$B$36,INDEX(Ranks!$1:$1048576,$A164,AZ$1))","v":""},{"$f":"IF($A164=\"N/A\",Ref!$B$36,INDEX(Ranks!$1:$1048576,$A164,BA$1))","v":""},{"$f":"IF($A164=\"N/A\",Ref!$B$36,INDEX(Ranks!$1:$1048576,$A164,BB$1))","v":""},{"$f":"IF($A164=\"N/A\",Ref!$B$36,INDEX(Ranks!$1:$1048576,$A164,BC$1))","v":""},{"$f":"IF($A164=\"N/A\",Ref!$B$36,INDEX(Ranks!$1:$1048576,$A164,BD$1))","v":""},{"$f":"IF($A164=\"N/A\",Ref!$B$36,INDEX(Ranks!$1:$1048576,$A164,BE$1))","v":""},{"$f":"IF($A164=\"N/A\",Ref!$B$36,INDEX(Ranks!$1:$1048576,$A164,BF$1))","v":""},{"$f":"IF($A164=\"N/A\",Ref!$B$36,INDEX(Ranks!$1:$1048576,$A164,BG$1))","v":""},{"$f":"IF($A164=\"N/A\",Ref!$B$36,INDEX(Ranks!$1:$1048576,$A164,BH$1))","v":""},{"$f":"IF($A164=\"N/A\",Ref!$B$36,INDEX(Ranks!$1:$1048576,$A164,BI$1))","v":""},{"$f":"IF($A164=\"N/A\",Ref!$B$36,INDEX(Ranks!$1:$1048576,$A164,BJ$1))","v":""},{"$f":"IF($A164=\"N/A\",Ref!$B$36,INDEX(Ranks!$1:$1048576,$A164,BK$1))","v":""},{"$f":"IF($A164=\"N/A\",Ref!$B$36,INDEX(Ranks!$1:$1048576,$A164,BL$1))","v":""},{"$f":"IF($A164=\"N/A\",Ref!$B$36,INDEX(Ranks!$1:$1048576,$A164,BM$1))","v":""},{"$f":"IF($A164=\"N/A\",Ref!$B$36,INDEX(Ranks!$1:$1048576,$A164,BN$1))","v":""},{"$f":"IF($A164=\"N/A\",Ref!$B$36,INDEX(Ranks!$1:$1048576,$A164,BO$1))","v":""},{"$f":"IF($A164=\"N/A\",Ref!$B$36,INDEX(Ranks!$1:$1048576,$A164,BP$1))","v":""},{"$f":"IF($A164=\"N/A\",Ref!$B$36,INDEX(Ranks!$1:$1048576,$A164,BQ$1))","v":""},{"$f":"IF($A164=\"N/A\",Ref!$B$36,INDEX(Ranks!$1:$1048576,$A164,BR$1))","v":""},{"$f":"IF($A164=\"N/A\",Ref!$B$36,INDEX(Ranks!$1:$1048576,$A164,BS$1))","v":""},{"$f":"IF($A164=\"N/A\",Ref!$B$36,INDEX(Ranks!$1:$1048576,$A164,BT$1))","v":""},{"$f":"IF($A164=\"N/A\",Ref!$B$36,INDEX(Ranks!$1:$1048576,$A164,BU$1))","v":""},{"$f":"IF($A164=\"N/A\",Ref!$B$36,INDEX(Ranks!$1:$1048576,$A164,BV$1))","v":""},{"$f":"IF($A164=\"N/A\",Ref!$B$36,INDEX(Ranks!$1:$1048576,$A164,BW$1))","v":""},{"$f":"IF($A164=\"N/A\",Ref!$B$36,INDEX(Ranks!$1:$1048576,$A164,BX$1))","v":""},{"$f":"IF($A164=\"N/A\",Ref!$B$36,INDEX(Ranks!$1:$1048576,$A164,BY$1))","v":""},{"$f":"IF($A164=\"N/A\",Ref!$B$36,INDEX(Ranks!$1:$1048576,$A164,BZ$1))","v":""},{"$f":"IF($A164=\"N/A\",Ref!$B$36,INDEX(Ranks!$1:$1048576,$A164,CA$1))","v":""},{"$f":"IF($A164=\"N/A\",Ref!$B$36,INDEX(Ranks!$1:$1048576,$A164,CB$1))","v":""},{"$f":"IF($A164=\"N/A\",Ref!$B$36,INDEX(Ranks!$1:$1048576,$A164,CC$1))","v":""},{"$f":"IF($A164=\"N/A\",Ref!$B$36,INDEX(Ranks!$1:$1048576,$A164,CD$1))","v":""},{"$f":"IF($A164=\"N/A\",Ref!$B$36,INDEX(Ranks!$1:$1048576,$A164,CE$1))","v":""},{"$f":"IF($A164=\"N/A\",Ref!$B$36,INDEX(Ranks!$1:$1048576,$A164,CF$1))","v":""},{"$f":"IF($A164=\"N/A\",Ref!$B$36,INDEX(Ranks!$1:$1048576,$A164,CG$1))","v":""},{"$f":"IF($A164=\"N/A\",Ref!$B$36,INDEX(Ranks!$1:$1048576,$A164,CH$1))","v":""},{"$f":"IF($A164=\"N/A\",Ref!$B$36,INDEX(Ranks!$1:$1048576,$A164,CI$1))","v":""},{"$f":"IF($A164=\"N/A\",Ref!$B$36,INDEX(Ranks!$1:$1048576,$A164,CJ$1))","v":""},{"$f":"IF($A164=\"N/A\",Ref!$B$36,INDEX(Ranks!$1:$1048576,$A164,CK$1))","v":""},{"$f":"IF($A164=\"N/A\",Ref!$B$36,INDEX(Ranks!$1:$1048576,$A164,CL$1))","v":""},{"$f":"IF($A164=\"N/A\",Ref!$B$36,INDEX(Ranks!$1:$1048576,$A164,CM$1))","v":""},{"$f":"IF($A164=\"N/A\",Ref!$B$36,INDEX(Ranks!$1:$1048576,$A164,CN$1))","v":""},{"$f":"IF($A164=\"N/A\",Ref!$B$36,INDEX(Ranks!$1:$1048576,$A164,CO$1))","v":""},{"$f":"IF($A164=\"N/A\",Ref!$B$36,INDEX(Ranks!$1:$1048576,$A164,CP$1))","v":""},{"$f":"IF($A164=\"N/A\",Ref!$B$36,INDEX(Ranks!$1:$1048576,$A164,CQ$1))","v":""},{"$f":"IF($A164=\"N/A\",Ref!$B$36,INDEX(Ranks!$1:$1048576,$A164,CR$1))","v":""},{"$f":"IF($A164=\"N/A\",Ref!$B$36,INDEX(Ranks!$1:$1048576,$A164,CS$1))","v":""},{"$f":"IF($A164=\"N/A\",Ref!$B$36,INDEX(Ranks!$1:$1048576,$A164,CT$1))","v":""},{"$f":"IF($A164=\"N/A\",Ref!$B$36,INDEX(Ranks!$1:$1048576,$A164,CU$1))","v":""},{"$f":"IF($A164=\"N/A\",Ref!$B$36,INDEX(Ranks!$1:$1048576,$A164,CV$1))","v":""},{"$f":"IF($A164=\"N/A\",Ref!$B$36,INDEX(Ranks!$1:$1048576,$A164,CW$1))","v":""},{"$f":"IF($A164=\"N/A\",Ref!$B$36,INDEX(Ranks!$1:$1048576,$A164,CX$1))","v":""},{"$f":"IF($A164=\"N/A\",Ref!$B$36,INDEX(Ranks!$1:$1048576,$A164,CY$1))","v":""},{"$f":"IF($A164=\"N/A\",Ref!$B$36,INDEX(Ranks!$1:$1048576,$A164,CZ$1))","v":""},{"$f":"IF($A164=\"N/A\",Ref!$B$36,INDEX(Ranks!$1:$1048576,$A164,DA$1))","v":""},{"$f":"IF($A164=\"N/A\",Ref!$B$36,INDEX(Ranks!$1:$1048576,$A164,DB$1))","v":""},{"$f":"IF($A164=\"N/A\",Ref!$B$36,INDEX(Ranks!$1:$1048576,$A164,DC$1))","v":""},{"$f":"IF($A164=\"N/A\",Ref!$B$36,INDEX(Ranks!$1:$1048576,$A164,DD$1))","v":""},{"$f":"IF($A164=\"N/A\",Ref!$B$36,INDEX(Ranks!$1:$1048576,$A164,DE$1))","v":""},{"$f":"IF($A164=\"N/A\",Ref!$B$36,INDEX(Ranks!$1:$1048576,$A164,DF$1))","v":""},{"$f":"IF($A164=\"N/A\",Ref!$B$36,INDEX(Ranks!$1:$1048576,$A164,DG$1))","v":""},{"$f":"IF($A164=\"N/A\",Ref!$B$36,INDEX(Ranks!$1:$1048576,$A164,DH$1))","v":""},{"$f":"IF($A164=\"N/A\",Ref!$B$36,INDEX(Ranks!$1:$1048576,$A164,DI$1))","v":""},{"$f":"IF($A164=\"N/A\",Ref!$B$36,INDEX(Ranks!$1:$1048576,$A164,DJ$1))","v":""},{"$f":"IF($A164=\"N/A\",Ref!$B$36,INDEX(Ranks!$1:$1048576,$A164,DK$1))","v":""},{"$f":"IF($A164=\"N/A\",Ref!$B$36,INDEX(Ranks!$1:$1048576,$A164,DL$1))","v":""},{"$f":"IF($A164=\"N/A\",Ref!$B$36,INDEX(Ranks!$1:$1048576,$A164,DM$1))","v":""},{"$f":"IF($A164=\"N/A\",Ref!$B$36,INDEX(Ranks!$1:$1048576,$A164,DN$1))","v":""},{"$f":"IF($A164=\"N/A\",Ref!$B$36,INDEX(Ranks!$1:$1048576,$A164,DO$1))","v":""},{"$f":"IF($A164=\"N/A\",Ref!$B$36,INDEX(Ranks!$1:$1048576,$A164,DP$1))","v":""},{"$f":"IF($A164=\"N/A\",Ref!$B$36,INDEX(Ranks!$1:$1048576,$A164,DQ$1))","v":""},{"$f":"IF($A164=\"N/A\",Ref!$B$36,INDEX(Ranks!$1:$1048576,$A164,DR$1))","v":""},{"$f":"IF($A164=\"N/A\",Ref!$B$36,INDEX(Ranks!$1:$1048576,$A164,DS$1))","v":""},{"$f":"IF($A164=\"N/A\",Ref!$B$36,INDEX(Ranks!$1:$1048576,$A164,DT$1))","v":""},{"$f":"IF($A164=\"N/A\",Ref!$B$36,INDEX(Ranks!$1:$1048576,$A164,DU$1))","v":""},{"$f":"IF($A164=\"N/A\",Ref!$B$36,INDEX(Ranks!$1:$1048576,$A164,DV$1))","v":""},{"$f":"IF($A164=\"N/A\",Ref!$B$36,INDEX(Ranks!$1:$1048576,$A164,DW$1))","v":""},{"$f":"IF($A164=\"N/A\",Ref!$B$36,INDEX(Ranks!$1:$1048576,$A164,DX$1))","v":""},{"$f":"IF($A164=\"N/A\",Ref!$B$36,INDEX(Ranks!$1:$1048576,$A164,DY$1))","v":""},{"$f":"IF($A164=\"N/A\",Ref!$B$36,INDEX(Ranks!$1:$1048576,$A164,DZ$1))","v":""},{"$f":"IF($A164=\"N/A\",Ref!$B$36,INDEX(Ranks!$1:$1048576,$A164,EA$1))","v":""},{"$f":"IF($A164=\"N/A\",Ref!$B$36,INDEX(Ranks!$1:$1048576,$A164,EB$1))","v":""}]
[{"$f":"IFERROR(MATCH('Portfolio Page'!L165,Ranks!L:L,0),\"N/A\")","v":"N/A"},null,{"$f":"IF($A165=\"N/A\",\"\",INDEX(Ranks!$1:$1048576,$A165,C$1))","v":""},{"$f":"IF($A165=\"N/A\",Ref!$B$36,INDEX(Ranks!$1:$1048576,$A165,D$1))","v":""},{"$f":"IF($A165=\"N/A\",Ref!$B$36,INDEX(Ranks!$1:$1048576,$A165,E$1))","v":""},{"$f":"IF($A165=\"N/A\",\"\",INDEX(Ranks!$1:$1048576,$A165,F$1))","v":""},{"$f":"IF($A165=\"N/A\",\"\",INDEX(Ranks!$1:$1048576,$A165,G$1))","v":""},{"$f":"IF($A165=\"N/A\",\"\",INDEX(Ranks!$1:$1048576,$A165,H$1))","v":""},{"$f":"IF($A165=\"N/A\",\"\",INDEX(Ranks!$1:$1048576,$A165,I$1))","v":""},{"$f":"IF($A165=\"N/A\",\"\",INDEX(Ranks!$1:$1048576,$A165,J$1))","v":""},{"$f":"IF($A165=\"N/A\",\"\",INDEX(Ranks!$1:$1048576,$A165,K$1))","v":""},null,{"$f":"IF($A165=\"N/A\",Ref!$B$36,INDEX(Ranks!$1:$1048576,$A165,M$1))","v":""},{"$f":"IF($A165=\"N/A\",Ref!$B$36,INDEX(Ranks!$1:$1048576,$A165,N$1))","v":""},{"$f":"IF($A165=\"N/A\",Ref!$B$36,INDEX(Ranks!$1:$1048576,$A165,O$1))","v":""},{"$f":"IF($A165=\"N/A\",Ref!$B$36,INDEX(Ranks!$1:$1048576,$A165,P$1))","v":""},{"$f":"IF($A165=\"N/A\",Ref!$B$36,INDEX(Ranks!$1:$1048576,$A165,Q$1))","v":""},{"$f":"IF($A165=\"N/A\",Ref!$B$36,INDEX(Ranks!$1:$1048576,$A165,R$1))","v":""},{"$f":"IF($A165=\"N/A\",Ref!$B$36,INDEX(Ranks!$1:$1048576,$A165,S$1))","v":""},{"$f":"IF($A165=\"N/A\",Ref!$B$36,INDEX(Ranks!$1:$1048576,$A165,T$1))","v":""},{"$f":"IF($A165=\"N/A\",Ref!$B$36,INDEX(Ranks!$1:$1048576,$A165,U$1))","v":""},{"$f":"IF($A165=\"N/A\",Ref!$B$36,INDEX(Ranks!$1:$1048576,$A165,V$1))","v":""},{"$f":"IF($A165=\"N/A\",Ref!$B$36,INDEX(Ranks!$1:$1048576,$A165,W$1))","v":""},{"$f":"IF($A165=\"N/A\",Ref!$B$36,INDEX(Ranks!$1:$1048576,$A165,X$1))","v":""},{"$f":"IF($A165=\"N/A\",Ref!$B$36,INDEX(Ranks!$1:$1048576,$A165,Y$1))","v":""},{"$f":"IF($A165=\"N/A\",Ref!$B$36,INDEX(Ranks!$1:$1048576,$A165,Z$1))","v":""},{"$f":"IF($A165=\"N/A\",Ref!$B$36,INDEX(Ranks!$1:$1048576,$A165,AA$1))","v":""},{"$f":"IF($A165=\"N/A\",Ref!$B$36,INDEX(Ranks!$1:$1048576,$A165,AB$1))","v":""},{"$f":"IF($A165=\"N/A\",Ref!$B$36,INDEX(Ranks!$1:$1048576,$A165,AC$1))","v":""},{"$f":"IF($A165=\"N/A\",Ref!$B$36,INDEX(Ranks!$1:$1048576,$A165,AD$1))","v":""},{"$f":"IF($A165=\"N/A\",Ref!$B$36,INDEX(Ranks!$1:$1048576,$A165,AE$1))","v":""},{"$f":"IF($A165=\"N/A\",Ref!$B$36,INDEX(Ranks!$1:$1048576,$A165,AF$1))","v":""},{"$f":"IF($A165=\"N/A\",Ref!$B$36,INDEX(Ranks!$1:$1048576,$A165,AG$1))","v":""},{"$f":"IF($A165=\"N/A\",Ref!$B$36,INDEX(Ranks!$1:$1048576,$A165,AH$1))","v":""},{"$f":"IF($A165=\"N/A\",Ref!$B$36,INDEX(Ranks!$1:$1048576,$A165,AI$1))","v":""},{"$f":"IF($A165=\"N/A\",Ref!$B$36,INDEX(Ranks!$1:$1048576,$A165,AJ$1))","v":""},{"$f":"IF($A165=\"N/A\",Ref!$B$36,INDEX(Ranks!$1:$1048576,$A165,AK$1))","v":""},{"$f":"IF($A165=\"N/A\",Ref!$B$36,INDEX(Ranks!$1:$1048576,$A165,AL$1))","v":""},{"$f":"IF($A165=\"N/A\",Ref!$B$36,INDEX(Ranks!$1:$1048576,$A165,AM$1))","v":""},{"$f":"IF($A165=\"N/A\",Ref!$B$36,INDEX(Ranks!$1:$1048576,$A165,AN$1))","v":""},{"$f":"IF($A165=\"N/A\",Ref!$B$36,INDEX(Ranks!$1:$1048576,$A165,AO$1))","v":""},{"$f":"IF($A165=\"N/A\",Ref!$B$36,INDEX(Ranks!$1:$1048576,$A165,AP$1))","v":""},{"$f":"IF($A165=\"N/A\",Ref!$B$36,INDEX(Ranks!$1:$1048576,$A165,AQ$1))","v":""},{"$f":"IF($A165=\"N/A\",Ref!$B$36,INDEX(Ranks!$1:$1048576,$A165,AR$1))","v":""},{"$f":"IF($A165=\"N/A\",Ref!$B$36,INDEX(Ranks!$1:$1048576,$A165,AS$1))","v":""},{"$f":"IF($A165=\"N/A\",Ref!$B$36,INDEX(Ranks!$1:$1048576,$A165,AT$1))","v":""},{"$f":"IF($A165=\"N/A\",Ref!$B$36,INDEX(Ranks!$1:$1048576,$A165,AU$1))","v":""},{"$f":"IF($A165=\"N/A\",Ref!$B$36,INDEX(Ranks!$1:$1048576,$A165,AV$1))","v":""},{"$f":"IF($A165=\"N/A\",Ref!$B$36,INDEX(Ranks!$1:$1048576,$A165,AW$1))","v":""},{"$f":"IF($A165=\"N/A\",Ref!$B$36,INDEX(Ranks!$1:$1048576,$A165,AX$1))","v":""},{"$f":"IF($A165=\"N/A\",Ref!$B$36,INDEX(Ranks!$1:$1048576,$A165,AY$1))","v":""},{"$f":"IF($A165=\"N/A\",Ref!$B$36,INDEX(Ranks!$1:$1048576,$A165,AZ$1))","v":""},{"$f":"IF($A165=\"N/A\",Ref!$B$36,INDEX(Ranks!$1:$1048576,$A165,BA$1))","v":""},{"$f":"IF($A165=\"N/A\",Ref!$B$36,INDEX(Ranks!$1:$1048576,$A165,BB$1))","v":""},{"$f":"IF($A165=\"N/A\",Ref!$B$36,INDEX(Ranks!$1:$1048576,$A165,BC$1))","v":""},{"$f":"IF($A165=\"N/A\",Ref!$B$36,INDEX(Ranks!$1:$1048576,$A165,BD$1))","v":""},{"$f":"IF($A165=\"N/A\",Ref!$B$36,INDEX(Ranks!$1:$1048576,$A165,BE$1))","v":""},{"$f":"IF($A165=\"N/A\",Ref!$B$36,INDEX(Ranks!$1:$1048576,$A165,BF$1))","v":""},{"$f":"IF($A165=\"N/A\",Ref!$B$36,INDEX(Ranks!$1:$1048576,$A165,BG$1))","v":""},{"$f":"IF($A165=\"N/A\",Ref!$B$36,INDEX(Ranks!$1:$1048576,$A165,BH$1))","v":""},{"$f":"IF($A165=\"N/A\",Ref!$B$36,INDEX(Ranks!$1:$1048576,$A165,BI$1))","v":""},{"$f":"IF($A165=\"N/A\",Ref!$B$36,INDEX(Ranks!$1:$1048576,$A165,BJ$1))","v":""},{"$f":"IF($A165=\"N/A\",Ref!$B$36,INDEX(Ranks!$1:$1048576,$A165,BK$1))","v":""},{"$f":"IF($A165=\"N/A\",Ref!$B$36,INDEX(Ranks!$1:$1048576,$A165,BL$1))","v":""},{"$f":"IF($A165=\"N/A\",Ref!$B$36,INDEX(Ranks!$1:$1048576,$A165,BM$1))","v":""},{"$f":"IF($A165=\"N/A\",Ref!$B$36,INDEX(Ranks!$1:$1048576,$A165,BN$1))","v":""},{"$f":"IF($A165=\"N/A\",Ref!$B$36,INDEX(Ranks!$1:$1048576,$A165,BO$1))","v":""},{"$f":"IF($A165=\"N/A\",Ref!$B$36,INDEX(Ranks!$1:$1048576,$A165,BP$1))","v":""},{"$f":"IF($A165=\"N/A\",Ref!$B$36,INDEX(Ranks!$1:$1048576,$A165,BQ$1))","v":""},{"$f":"IF($A165=\"N/A\",Ref!$B$36,INDEX(Ranks!$1:$1048576,$A165,BR$1))","v":""},{"$f":"IF($A165=\"N/A\",Ref!$B$36,INDEX(Ranks!$1:$1048576,$A165,BS$1))","v":""},{"$f":"IF($A165=\"N/A\",Ref!$B$36,INDEX(Ranks!$1:$1048576,$A165,BT$1))","v":""},{"$f":"IF($A165=\"N/A\",Ref!$B$36,INDEX(Ranks!$1:$1048576,$A165,BU$1))","v":""},{"$f":"IF($A165=\"N/A\",Ref!$B$36,INDEX(Ranks!$1:$1048576,$A165,BV$1))","v":""},{"$f":"IF($A165=\"N/A\",Ref!$B$36,INDEX(Ranks!$1:$1048576,$A165,BW$1))","v":""},{"$f":"IF($A165=\"N/A\",Ref!$B$36,INDEX(Ranks!$1:$1048576,$A165,BX$1))","v":""},{"$f":"IF($A165=\"N/A\",Ref!$B$36,INDEX(Ranks!$1:$1048576,$A165,BY$1))","v":""},{"$f":"IF($A165=\"N/A\",Ref!$B$36,INDEX(Ranks!$1:$1048576,$A165,BZ$1))","v":""},{"$f":"IF($A165=\"N/A\",Ref!$B$36,INDEX(Ranks!$1:$1048576,$A165,CA$1))","v":""},{"$f":"IF($A165=\"N/A\",Ref!$B$36,INDEX(Ranks!$1:$1048576,$A165,CB$1))","v":""},{"$f":"IF($A165=\"N/A\",Ref!$B$36,INDEX(Ranks!$1:$1048576,$A165,CC$1))","v":""},{"$f":"IF($A165=\"N/A\",Ref!$B$36,INDEX(Ranks!$1:$1048576,$A165,CD$1))","v":""},{"$f":"IF($A165=\"N/A\",Ref!$B$36,INDEX(Ranks!$1:$1048576,$A165,CE$1))","v":""},{"$f":"IF($A165=\"N/A\",Ref!$B$36,INDEX(Ranks!$1:$1048576,$A165,CF$1))","v":""},{"$f":"IF($A165=\"N/A\",Ref!$B$36,INDEX(Ranks!$1:$1048576,$A165,CG$1))","v":""},{"$f":"IF($A165=\"N/A\",Ref!$B$36,INDEX(Ranks!$1:$1048576,$A165,CH$1))","v":""},{"$f":"IF($A165=\"N/A\",Ref!$B$36,INDEX(Ranks!$1:$1048576,$A165,CI$1))","v":""},{"$f":"IF($A165=\"N/A\",Ref!$B$36,INDEX(Ranks!$1:$1048576,$A165,CJ$1))","v":""},{"$f":"IF($A165=\"N/A\",Ref!$B$36,INDEX(Ranks!$1:$1048576,$A165,CK$1))","v":""},{"$f":"IF($A165=\"N/A\",Ref!$B$36,INDEX(Ranks!$1:$1048576,$A165,CL$1))","v":""},{"$f":"IF($A165=\"N/A\",Ref!$B$36,INDEX(Ranks!$1:$1048576,$A165,CM$1))","v":""},{"$f":"IF($A165=\"N/A\",Ref!$B$36,INDEX(Ranks!$1:$1048576,$A165,CN$1))","v":""},{"$f":"IF($A165=\"N/A\",Ref!$B$36,INDEX(Ranks!$1:$1048576,$A165,CO$1))","v":""},{"$f":"IF($A165=\"N/A\",Ref!$B$36,INDEX(Ranks!$1:$1048576,$A165,CP$1))","v":""},{"$f":"IF($A165=\"N/A\",Ref!$B$36,INDEX(Ranks!$1:$1048576,$A165,CQ$1))","v":""},{"$f":"IF($A165=\"N/A\",Ref!$B$36,INDEX(Ranks!$1:$1048576,$A165,CR$1))","v":""},{"$f":"IF($A165=\"N/A\",Ref!$B$36,INDEX(Ranks!$1:$1048576,$A165,CS$1))","v":""},{"$f":"IF($A165=\"N/A\",Ref!$B$36,INDEX(Ranks!$1:$1048576,$A165,CT$1))","v":""},{"$f":"IF($A165=\"N/A\",Ref!$B$36,INDEX(Ranks!$1:$1048576,$A165,CU$1))","v":""},{"$f":"IF($A165=\"N/A\",Ref!$B$36,INDEX(Ranks!$1:$1048576,$A165,CV$1))","v":""},{"$f":"IF($A165=\"N/A\",Ref!$B$36,INDEX(Ranks!$1:$1048576,$A165,CW$1))","v":""},{"$f":"IF($A165=\"N/A\",Ref!$B$36,INDEX(Ranks!$1:$1048576,$A165,CX$1))","v":""},{"$f":"IF($A165=\"N/A\",Ref!$B$36,INDEX(Ranks!$1:$1048576,$A165,CY$1))","v":""},{"$f":"IF($A165=\"N/A\",Ref!$B$36,INDEX(Ranks!$1:$1048576,$A165,CZ$1))","v":""},{"$f":"IF($A165=\"N/A\",Ref!$B$36,INDEX(Ranks!$1:$1048576,$A165,DA$1))","v":""},{"$f":"IF($A165=\"N/A\",Ref!$B$36,INDEX(Ranks!$1:$1048576,$A165,DB$1))","v":""},{"$f":"IF($A165=\"N/A\",Ref!$B$36,INDEX(Ranks!$1:$1048576,$A165,DC$1))","v":""},{"$f":"IF($A165=\"N/A\",Ref!$B$36,INDEX(Ranks!$1:$1048576,$A165,DD$1))","v":""},{"$f":"IF($A165=\"N/A\",Ref!$B$36,INDEX(Ranks!$1:$1048576,$A165,DE$1))","v":""},{"$f":"IF($A165=\"N/A\",Ref!$B$36,INDEX(Ranks!$1:$1048576,$A165,DF$1))","v":""},{"$f":"IF($A165=\"N/A\",Ref!$B$36,INDEX(Ranks!$1:$1048576,$A165,DG$1))","v":""},{"$f":"IF($A165=\"N/A\",Ref!$B$36,INDEX(Ranks!$1:$1048576,$A165,DH$1))","v":""},{"$f":"IF($A165=\"N/A\",Ref!$B$36,INDEX(Ranks!$1:$1048576,$A165,DI$1))","v":""},{"$f":"IF($A165=\"N/A\",Ref!$B$36,INDEX(Ranks!$1:$1048576,$A165,DJ$1))","v":""},{"$f":"IF($A165=\"N/A\",Ref!$B$36,INDEX(Ranks!$1:$1048576,$A165,DK$1))","v":""},{"$f":"IF($A165=\"N/A\",Ref!$B$36,INDEX(Ranks!$1:$1048576,$A165,DL$1))","v":""},{"$f":"IF($A165=\"N/A\",Ref!$B$36,INDEX(Ranks!$1:$1048576,$A165,DM$1))","v":""},{"$f":"IF($A165=\"N/A\",Ref!$B$36,INDEX(Ranks!$1:$1048576,$A165,DN$1))","v":""},{"$f":"IF($A165=\"N/A\",Ref!$B$36,INDEX(Ranks!$1:$1048576,$A165,DO$1))","v":""},{"$f":"IF($A165=\"N/A\",Ref!$B$36,INDEX(Ranks!$1:$1048576,$A165,DP$1))","v":""},{"$f":"IF($A165=\"N/A\",Ref!$B$36,INDEX(Ranks!$1:$1048576,$A165,DQ$1))","v":""},{"$f":"IF($A165=\"N/A\",Ref!$B$36,INDEX(Ranks!$1:$1048576,$A165,DR$1))","v":""},{"$f":"IF($A165=\"N/A\",Ref!$B$36,INDEX(Ranks!$1:$1048576,$A165,DS$1))","v":""},{"$f":"IF($A165=\"N/A\",Ref!$B$36,INDEX(Ranks!$1:$1048576,$A165,DT$1))","v":""},{"$f":"IF($A165=\"N/A\",Ref!$B$36,INDEX(Ranks!$1:$1048576,$A165,DU$1))","v":""},{"$f":"IF($A165=\"N/A\",Ref!$B$36,INDEX(Ranks!$1:$1048576,$A165,DV$1))","v":""},{"$f":"IF($A165=\"N/A\",Ref!$B$36,INDEX(Ranks!$1:$1048576,$A165,DW$1))","v":""},{"$f":"IF($A165=\"N/A\",Ref!$B$36,INDEX(Ranks!$1:$1048576,$A165,DX$1))","v":""},{"$f":"IF($A165=\"N/A\",Ref!$B$36,INDEX(Ranks!$1:$1048576,$A165,DY$1))","v":""},{"$f":"IF($A165=\"N/A\",Ref!$B$36,INDEX(Ranks!$1:$1048576,$A165,DZ$1))","v":""},{"$f":"IF($A165=\"N/A\",Ref!$B$36,INDEX(Ranks!$1:$1048576,$A165,EA$1))","v":""},{"$f":"IF($A165=\"N/A\",Ref!$B$36,INDEX(Ranks!$1:$1048576,$A165,EB$1))","v":""}]
[{"$f":"IFERROR(MATCH('Portfolio Page'!L166,Ranks!L:L,0),\"N/A\")","v":"N/A"},null,{"$f":"IF($A166=\"N/A\",\"\",INDEX(Ranks!$1:$1048576,$A166,C$1))","v":""},{"$f":"IF($A166=\"N/A\",Ref!$B$36,INDEX(Ranks!$1:$1048576,$A166,D$1))","v":""},{"$f":"IF($A166=\"N/A\",Ref!$B$36,INDEX(Ranks!$1:$1048576,$A166,E$1))","v":""},{"$f":"IF($A166=\"N/A\",\"\",INDEX(Ranks!$1:$1048576,$A166,F$1))","v":""},{"$f":"IF($A166=\"N/A\",\"\",INDEX(Ranks!$1:$1048576,$A166,G$1))","v":""},{"$f":"IF($A166=\"N/A\",\"\",INDEX(Ranks!$1:$1048576,$A166,H$1))","v":""},{"$f":"IF($A166=\"N/A\",\"\",INDEX(Ranks!$1:$1048576,$A166,I$1))","v":""},{"$f":"IF($A166=\"N/A\",\"\",INDEX(Ranks!$1:$1048576,$A166,J$1))","v":""},{"$f":"IF($A166=\"N/A\",\"\",INDEX(Ranks!$1:$1048576,$A166,K$1))","v":""},null,{"$f":"IF($A166=\"N/A\",Ref!$B$36,INDEX(Ranks!$1:$1048576,$A166,M$1))","v":""},{"$f":"IF($A166=\"N/A\",Ref!$B$36,INDEX(Ranks!$1:$1048576,$A166,N$1))","v":""},{"$f":"IF($A166=\"N/A\",Ref!$B$36,INDEX(Ranks!$1:$1048576,$A166,O$1))","v":""},{"$f":"IF($A166=\"N/A\",Ref!$B$36,INDEX(Ranks!$1:$1048576,$A166,P$1))","v":""},{"$f":"IF($A166=\"N/A\",Ref!$B$36,INDEX(Ranks!$1:$1048576,$A166,Q$1))","v":""},{"$f":"IF($A166=\"N/A\",Ref!$B$36,INDEX(Ranks!$1:$1048576,$A166,R$1))","v":""},{"$f":"IF($A166=\"N/A\",Ref!$B$36,INDEX(Ranks!$1:$1048576,$A166,S$1))","v":""},{"$f":"IF($A166=\"N/A\",Ref!$B$36,INDEX(Ranks!$1:$1048576,$A166,T$1))","v":""},{"$f":"IF($A166=\"N/A\",Ref!$B$36,INDEX(Ranks!$1:$1048576,$A166,U$1))","v":""},{"$f":"IF($A166=\"N/A\",Ref!$B$36,INDEX(Ranks!$1:$1048576,$A166,V$1))","v":""},{"$f":"IF($A166=\"N/A\",Ref!$B$36,INDEX(Ranks!$1:$1048576,$A166,W$1))","v":""},{"$f":"IF($A166=\"N/A\",Ref!$B$36,INDEX(Ranks!$1:$1048576,$A166,X$1))","v":""},{"$f":"IF($A166=\"N/A\",Ref!$B$36,INDEX(Ranks!$1:$1048576,$A166,Y$1))","v":""},{"$f":"IF($A166=\"N/A\",Ref!$B$36,INDEX(Ranks!$1:$1048576,$A166,Z$1))","v":""},{"$f":"IF($A166=\"N/A\",Ref!$B$36,INDEX(Ranks!$1:$1048576,$A166,AA$1))","v":""},{"$f":"IF($A166=\"N/A\",Ref!$B$36,INDEX(Ranks!$1:$1048576,$A166,AB$1))","v":""},{"$f":"IF($A166=\"N/A\",Ref!$B$36,INDEX(Ranks!$1:$1048576,$A166,AC$1))","v":""},{"$f":"IF($A166=\"N/A\",Ref!$B$36,INDEX(Ranks!$1:$1048576,$A166,AD$1))","v":""},{"$f":"IF($A166=\"N/A\",Ref!$B$36,INDEX(Ranks!$1:$1048576,$A166,AE$1))","v":""},{"$f":"IF($A166=\"N/A\",Ref!$B$36,INDEX(Ranks!$1:$1048576,$A166,AF$1))","v":""},{"$f":"IF($A166=\"N/A\",Ref!$B$36,INDEX(Ranks!$1:$1048576,$A166,AG$1))","v":""},{"$f":"IF($A166=\"N/A\",Ref!$B$36,INDEX(Ranks!$1:$1048576,$A166,AH$1))","v":""},{"$f":"IF($A166=\"N/A\",Ref!$B$36,INDEX(Ranks!$1:$1048576,$A166,AI$1))","v":""},{"$f":"IF($A166=\"N/A\",Ref!$B$36,INDEX(Ranks!$1:$1048576,$A166,AJ$1))","v":""},{"$f":"IF($A166=\"N/A\",Ref!$B$36,INDEX(Ranks!$1:$1048576,$A166,AK$1))","v":""},{"$f":"IF($A166=\"N/A\",Ref!$B$36,INDEX(Ranks!$1:$1048576,$A166,AL$1))","v":""},{"$f":"IF($A166=\"N/A\",Ref!$B$36,INDEX(Ranks!$1:$1048576,$A166,AM$1))","v":""},{"$f":"IF($A166=\"N/A\",Ref!$B$36,INDEX(Ranks!$1:$1048576,$A166,AN$1))","v":""},{"$f":"IF($A166=\"N/A\",Ref!$B$36,INDEX(Ranks!$1:$1048576,$A166,AO$1))","v":""},{"$f":"IF($A166=\"N/A\",Ref!$B$36,INDEX(Ranks!$1:$1048576,$A166,AP$1))","v":""},{"$f":"IF($A166=\"N/A\",Ref!$B$36,INDEX(Ranks!$1:$1048576,$A166,AQ$1))","v":""},{"$f":"IF($A166=\"N/A\",Ref!$B$36,INDEX(Ranks!$1:$1048576,$A166,AR$1))","v":""},{"$f":"IF($A166=\"N/A\",Ref!$B$36,INDEX(Ranks!$1:$1048576,$A166,AS$1))","v":""},{"$f":"IF($A166=\"N/A\",Ref!$B$36,INDEX(Ranks!$1:$1048576,$A166,AT$1))","v":""},{"$f":"IF($A166=\"N/A\",Ref!$B$36,INDEX(Ranks!$1:$1048576,$A166,AU$1))","v":""},{"$f":"IF($A166=\"N/A\",Ref!$B$36,INDEX(Ranks!$1:$1048576,$A166,AV$1))","v":""},{"$f":"IF($A166=\"N/A\",Ref!$B$36,INDEX(Ranks!$1:$1048576,$A166,AW$1))","v":""},{"$f":"IF($A166=\"N/A\",Ref!$B$36,INDEX(Ranks!$1:$1048576,$A166,AX$1))","v":""},{"$f":"IF($A166=\"N/A\",Ref!$B$36,INDEX(Ranks!$1:$1048576,$A166,AY$1))","v":""},{"$f":"IF($A166=\"N/A\",Ref!$B$36,INDEX(Ranks!$1:$1048576,$A166,AZ$1))","v":""},{"$f":"IF($A166=\"N/A\",Ref!$B$36,INDEX(Ranks!$1:$1048576,$A166,BA$1))","v":""},{"$f":"IF($A166=\"N/A\",Ref!$B$36,INDEX(Ranks!$1:$1048576,$A166,BB$1))","v":""},{"$f":"IF($A166=\"N/A\",Ref!$B$36,INDEX(Ranks!$1:$1048576,$A166,BC$1))","v":""},{"$f":"IF($A166=\"N/A\",Ref!$B$36,INDEX(Ranks!$1:$1048576,$A166,BD$1))","v":""},{"$f":"IF($A166=\"N/A\",Ref!$B$36,INDEX(Ranks!$1:$1048576,$A166,BE$1))","v":""},{"$f":"IF($A166=\"N/A\",Ref!$B$36,INDEX(Ranks!$1:$1048576,$A166,BF$1))","v":""},{"$f":"IF($A166=\"N/A\",Ref!$B$36,INDEX(Ranks!$1:$1048576,$A166,BG$1))","v":""},{"$f":"IF($A166=\"N/A\",Ref!$B$36,INDEX(Ranks!$1:$1048576,$A166,BH$1))","v":""},{"$f":"IF($A166=\"N/A\",Ref!$B$36,INDEX(Ranks!$1:$1048576,$A166,BI$1))","v":""},{"$f":"IF($A166=\"N/A\",Ref!$B$36,INDEX(Ranks!$1:$1048576,$A166,BJ$1))","v":""},{"$f":"IF($A166=\"N/A\",Ref!$B$36,INDEX(Ranks!$1:$1048576,$A166,BK$1))","v":""},{"$f":"IF($A166=\"N/A\",Ref!$B$36,INDEX(Ranks!$1:$1048576,$A166,BL$1))","v":""},{"$f":"IF($A166=\"N/A\",Ref!$B$36,INDEX(Ranks!$1:$1048576,$A166,BM$1))","v":""},{"$f":"IF($A166=\"N/A\",Ref!$B$36,INDEX(Ranks!$1:$1048576,$A166,BN$1))","v":""},{"$f":"IF($A166=\"N/A\",Ref!$B$36,INDEX(Ranks!$1:$1048576,$A166,BO$1))","v":""},{"$f":"IF($A166=\"N/A\",Ref!$B$36,INDEX(Ranks!$1:$1048576,$A166,BP$1))","v":""},{"$f":"IF($A166=\"N/A\",Ref!$B$36,INDEX(Ranks!$1:$1048576,$A166,BQ$1))","v":""},{"$f":"IF($A166=\"N/A\",Ref!$B$36,INDEX(Ranks!$1:$1048576,$A166,BR$1))","v":""},{"$f":"IF($A166=\"N/A\",Ref!$B$36,INDEX(Ranks!$1:$1048576,$A166,BS$1))","v":""},{"$f":"IF($A166=\"N/A\",Ref!$B$36,INDEX(Ranks!$1:$1048576,$A166,BT$1))","v":""},{"$f":"IF($A166=\"N/A\",Ref!$B$36,INDEX(Ranks!$1:$1048576,$A166,BU$1))","v":""},{"$f":"IF($A166=\"N/A\",Ref!$B$36,INDEX(Ranks!$1:$1048576,$A166,BV$1))","v":""},{"$f":"IF($A166=\"N/A\",Ref!$B$36,INDEX(Ranks!$1:$1048576,$A166,BW$1))","v":""},{"$f":"IF($A166=\"N/A\",Ref!$B$36,INDEX(Ranks!$1:$1048576,$A166,BX$1))","v":""},{"$f":"IF($A166=\"N/A\",Ref!$B$36,INDEX(Ranks!$1:$1048576,$A166,BY$1))","v":""},{"$f":"IF($A166=\"N/A\",Ref!$B$36,INDEX(Ranks!$1:$1048576,$A166,BZ$1))","v":""},{"$f":"IF($A166=\"N/A\",Ref!$B$36,INDEX(Ranks!$1:$1048576,$A166,CA$1))","v":""},{"$f":"IF($A166=\"N/A\",Ref!$B$36,INDEX(Ranks!$1:$1048576,$A166,CB$1))","v":""},{"$f":"IF($A166=\"N/A\",Ref!$B$36,INDEX(Ranks!$1:$1048576,$A166,CC$1))","v":""},{"$f":"IF($A166=\"N/A\",Ref!$B$36,INDEX(Ranks!$1:$1048576,$A166,CD$1))","v":""},{"$f":"IF($A166=\"N/A\",Ref!$B$36,INDEX(Ranks!$1:$1048576,$A166,CE$1))","v":""},{"$f":"IF($A166=\"N/A\",Ref!$B$36,INDEX(Ranks!$1:$1048576,$A166,CF$1))","v":""},{"$f":"IF($A166=\"N/A\",Ref!$B$36,INDEX(Ranks!$1:$1048576,$A166,CG$1))","v":""},{"$f":"IF($A166=\"N/A\",Ref!$B$36,INDEX(Ranks!$1:$1048576,$A166,CH$1))","v":""},{"$f":"IF($A166=\"N/A\",Ref!$B$36,INDEX(Ranks!$1:$1048576,$A166,CI$1))","v":""},{"$f":"IF($A166=\"N/A\",Ref!$B$36,INDEX(Ranks!$1:$1048576,$A166,CJ$1))","v":""},{"$f":"IF($A166=\"N/A\",Ref!$B$36,INDEX(Ranks!$1:$1048576,$A166,CK$1))","v":""},{"$f":"IF($A166=\"N/A\",Ref!$B$36,INDEX(Ranks!$1:$1048576,$A166,CL$1))","v":""},{"$f":"IF($A166=\"N/A\",Ref!$B$36,INDEX(Ranks!$1:$1048576,$A166,CM$1))","v":""},{"$f":"IF($A166=\"N/A\",Ref!$B$36,INDEX(Ranks!$1:$1048576,$A166,CN$1))","v":""},{"$f":"IF($A166=\"N/A\",Ref!$B$36,INDEX(Ranks!$1:$1048576,$A166,CO$1))","v":""},{"$f":"IF($A166=\"N/A\",Ref!$B$36,INDEX(Ranks!$1:$1048576,$A166,CP$1))","v":""},{"$f":"IF($A166=\"N/A\",Ref!$B$36,INDEX(Ranks!$1:$1048576,$A166,CQ$1))","v":""},{"$f":"IF($A166=\"N/A\",Ref!$B$36,INDEX(Ranks!$1:$1048576,$A166,CR$1))","v":""},{"$f":"IF($A166=\"N/A\",Ref!$B$36,INDEX(Ranks!$1:$1048576,$A166,CS$1))","v":""},{"$f":"IF($A166=\"N/A\",Ref!$B$36,INDEX(Ranks!$1:$1048576,$A166,CT$1))","v":""},{"$f":"IF($A166=\"N/A\",Ref!$B$36,INDEX(Ranks!$1:$1048576,$A166,CU$1))","v":""},{"$f":"IF($A166=\"N/A\",Ref!$B$36,INDEX(Ranks!$1:$1048576,$A166,CV$1))","v":""},{"$f":"IF($A166=\"N/A\",Ref!$B$36,INDEX(Ranks!$1:$1048576,$A166,CW$1))","v":""},{"$f":"IF($A166=\"N/A\",Ref!$B$36,INDEX(Ranks!$1:$1048576,$A166,CX$1))","v":""},{"$f":"IF($A166=\"N/A\",Ref!$B$36,INDEX(Ranks!$1:$1048576,$A166,CY$1))","v":""},{"$f":"IF($A166=\"N/A\",Ref!$B$36,INDEX(Ranks!$1:$1048576,$A166,CZ$1))","v":""},{"$f":"IF($A166=\"N/A\",Ref!$B$36,INDEX(Ranks!$1:$1048576,$A166,DA$1))","v":""},{"$f":"IF($A166=\"N/A\",Ref!$B$36,INDEX(Ranks!$1:$1048576,$A166,DB$1))","v":""},{"$f":"IF($A166=\"N/A\",Ref!$B$36,INDEX(Ranks!$1:$1048576,$A166,DC$1))","v":""},{"$f":"IF($A166=\"N/A\",Ref!$B$36,INDEX(Ranks!$1:$1048576,$A166,DD$1))","v":""},{"$f":"IF($A166=\"N/A\",Ref!$B$36,INDEX(Ranks!$1:$1048576,$A166,DE$1))","v":""},{"$f":"IF($A166=\"N/A\",Ref!$B$36,INDEX(Ranks!$1:$1048576,$A166,DF$1))","v":""},{"$f":"IF($A166=\"N/A\",Ref!$B$36,INDEX(Ranks!$1:$1048576,$A166,DG$1))","v":""},{"$f":"IF($A166=\"N/A\",Ref!$B$36,INDEX(Ranks!$1:$1048576,$A166,DH$1))","v":""},{"$f":"IF($A166=\"N/A\",Ref!$B$36,INDEX(Ranks!$1:$1048576,$A166,DI$1))","v":""},{"$f":"IF($A166=\"N/A\",Ref!$B$36,INDEX(Ranks!$1:$1048576,$A166,DJ$1))","v":""},{"$f":"IF($A166=\"N/A\",Ref!$B$36,INDEX(Ranks!$1:$1048576,$A166,DK$1))","v":""},{"$f":"IF($A166=\"N/A\",Ref!$B$36,INDEX(Ranks!$1:$1048576,$A166,DL$1))","v":""},{"$f":"IF($A166=\"N/A\",Ref!$B$36,INDEX(Ranks!$1:$1048576,$A166,DM$1))","v":""},{"$f":"IF($A166=\"N/A\",Ref!$B$36,INDEX(Ranks!$1:$1048576,$A166,DN$1))","v":""},{"$f":"IF($A166=\"N/A\",Ref!$B$36,INDEX(Ranks!$1:$1048576,$A166,DO$1))","v":""},{"$f":"IF($A166=\"N/A\",Ref!$B$36,INDEX(Ranks!$1:$1048576,$A166,DP$1))","v":""},{"$f":"IF($A166=\"N/A\",Ref!$B$36,INDEX(Ranks!$1:$1048576,$A166,DQ$1))","v":""},{"$f":"IF($A166=\"N/A\",Ref!$B$36,INDEX(Ranks!$1:$1048576,$A166,DR$1))","v":""},{"$f":"IF($A166=\"N/A\",Ref!$B$36,INDEX(Ranks!$1:$1048576,$A166,DS$1))","v":""},{"$f":"IF($A166=\"N/A\",Ref!$B$36,INDEX(Ranks!$1:$1048576,$A166,DT$1))","v":""},{"$f":"IF($A166=\"N/A\",Ref!$B$36,INDEX(Ranks!$1:$1048576,$A166,DU$1))","v":""},{"$f":"IF($A166=\"N/A\",Ref!$B$36,INDEX(Ranks!$1:$1048576,$A166,DV$1))","v":""},{"$f":"IF($A166=\"N/A\",Ref!$B$36,INDEX(Ranks!$1:$1048576,$A166,DW$1))","v":""},{"$f":"IF($A166=\"N/A\",Ref!$B$36,INDEX(Ranks!$1:$1048576,$A166,DX$1))","v":""},{"$f":"IF($A166=\"N/A\",Ref!$B$36,INDEX(Ranks!$1:$1048576,$A166,DY$1))","v":""},{"$f":"IF($A166=\"N/A\",Ref!$B$36,INDEX(Ranks!$1:$1048576,$A166,DZ$1))","v":""},{"$f":"IF($A166=\"N/A\",Ref!$B$36,INDEX(Ranks!$1:$1048576,$A166,EA$1))","v":""},{"$f":"IF($A166=\"N/A\",Ref!$B$36,INDEX(Ranks!$1:$1048576,$A166,EB$1))","v":""}]
[{"$f":"IFERROR(MATCH('Portfolio Page'!L167,Ranks!L:L,0),\"N/A\")","v":"N/A"},null,{"$f":"IF($A167=\"N/A\",\"\",INDEX(Ranks!$1:$1048576,$A167,C$1))","v":""},{"$f":"IF($A167=\"N/A\",Ref!$B$36,INDEX(Ranks!$1:$1048576,$A167,D$1))","v":""},{"$f":"IF($A167=\"N/A\",Ref!$B$36,INDEX(Ranks!$1:$1048576,$A167,E$1))","v":""},{"$f":"IF($A167=\"N/A\",\"\",INDEX(Ranks!$1:$1048576,$A167,F$1))","v":""},{"$f":"IF($A167=\"N/A\",\"\",INDEX(Ranks!$1:$1048576,$A167,G$1))","v":""},{"$f":"IF($A167=\"N/A\",\"\",INDEX(Ranks!$1:$1048576,$A167,H$1))","v":""},{"$f":"IF($A167=\"N/A\",\"\",INDEX(Ranks!$1:$1048576,$A167,I$1))","v":""},{"$f":"IF($A167=\"N/A\",\"\",INDEX(Ranks!$1:$1048576,$A167,J$1))","v":""},{"$f":"IF($A167=\"N/A\",\"\",INDEX(Ranks!$1:$1048576,$A167,K$1))","v":""},null,{"$f":"IF($A167=\"N/A\",Ref!$B$36,INDEX(Ranks!$1:$1048576,$A167,M$1))","v":""},{"$f":"IF($A167=\"N/A\",Ref!$B$36,INDEX(Ranks!$1:$1048576,$A167,N$1))","v":""},{"$f":"IF($A167=\"N/A\",Ref!$B$36,INDEX(Ranks!$1:$1048576,$A167,O$1))","v":""},{"$f":"IF($A167=\"N/A\",Ref!$B$36,INDEX(Ranks!$1:$1048576,$A167,P$1))","v":""},{"$f":"IF($A167=\"N/A\",Ref!$B$36,INDEX(Ranks!$1:$1048576,$A167,Q$1))","v":""},{"$f":"IF($A167=\"N/A\",Ref!$B$36,INDEX(Ranks!$1:$1048576,$A167,R$1))","v":""},{"$f":"IF($A167=\"N/A\",Ref!$B$36,INDEX(Ranks!$1:$1048576,$A167,S$1))","v":""},{"$f":"IF($A167=\"N/A\",Ref!$B$36,INDEX(Ranks!$1:$1048576,$A167,T$1))","v":""},{"$f":"IF($A167=\"N/A\",Ref!$B$36,INDEX(Ranks!$1:$1048576,$A167,U$1))","v":""},{"$f":"IF($A167=\"N/A\",Ref!$B$36,INDEX(Ranks!$1:$1048576,$A167,V$1))","v":""},{"$f":"IF($A167=\"N/A\",Ref!$B$36,INDEX(Ranks!$1:$1048576,$A167,W$1))","v":""},{"$f":"IF($A167=\"N/A\",Ref!$B$36,INDEX(Ranks!$1:$1048576,$A167,X$1))","v":""},{"$f":"IF($A167=\"N/A\",Ref!$B$36,INDEX(Ranks!$1:$1048576,$A167,Y$1))","v":""},{"$f":"IF($A167=\"N/A\",Ref!$B$36,INDEX(Ranks!$1:$1048576,$A167,Z$1))","v":""},{"$f":"IF($A167=\"N/A\",Ref!$B$36,INDEX(Ranks!$1:$1048576,$A167,AA$1))","v":""},{"$f":"IF($A167=\"N/A\",Ref!$B$36,INDEX(Ranks!$1:$1048576,$A167,AB$1))","v":""},{"$f":"IF($A167=\"N/A\",Ref!$B$36,INDEX(Ranks!$1:$1048576,$A167,AC$1))","v":""},{"$f":"IF($A167=\"N/A\",Ref!$B$36,INDEX(Ranks!$1:$1048576,$A167,AD$1))","v":""},{"$f":"IF($A167=\"N/A\",Ref!$B$36,INDEX(Ranks!$1:$1048576,$A167,AE$1))","v":""},{"$f":"IF($A167=\"N/A\",Ref!$B$36,INDEX(Ranks!$1:$1048576,$A167,AF$1))","v":""},{"$f":"IF($A167=\"N/A\",Ref!$B$36,INDEX(Ranks!$1:$1048576,$A167,AG$1))","v":""},{"$f":"IF($A167=\"N/A\",Ref!$B$36,INDEX(Ranks!$1:$1048576,$A167,AH$1))","v":""},{"$f":"IF($A167=\"N/A\",Ref!$B$36,INDEX(Ranks!$1:$1048576,$A167,AI$1))","v":""},{"$f":"IF($A167=\"N/A\",Ref!$B$36,INDEX(Ranks!$1:$1048576,$A167,AJ$1))","v":""},{"$f":"IF($A167=\"N/A\",Ref!$B$36,INDEX(Ranks!$1:$1048576,$A167,AK$1))","v":""},{"$f":"IF($A167=\"N/A\",Ref!$B$36,INDEX(Ranks!$1:$1048576,$A167,AL$1))","v":""},{"$f":"IF($A167=\"N/A\",Ref!$B$36,INDEX(Ranks!$1:$1048576,$A167,AM$1))","v":""},{"$f":"IF($A167=\"N/A\",Ref!$B$36,INDEX(Ranks!$1:$1048576,$A167,AN$1))","v":""},{"$f":"IF($A167=\"N/A\",Ref!$B$36,INDEX(Ranks!$1:$1048576,$A167,AO$1))","v":""},{"$f":"IF($A167=\"N/A\",Ref!$B$36,INDEX(Ranks!$1:$1048576,$A167,AP$1))","v":""},{"$f":"IF($A167=\"N/A\",Ref!$B$36,INDEX(Ranks!$1:$1048576,$A167,AQ$1))","v":""},{"$f":"IF($A167=\"N/A\",Ref!$B$36,INDEX(Ranks!$1:$1048576,$A167,AR$1))","v":""},{"$f":"IF($A167=\"N/A\",Ref!$B$36,INDEX(Ranks!$1:$1048576,$A167,AS$1))","v":""},{"$f":"IF($A167=\"N/A\",Ref!$B$36,INDEX(Ranks!$1:$1048576,$A167,AT$1))","v":""},{"$f":"IF($A167=\"N/A\",Ref!$B$36,INDEX(Ranks!$1:$1048576,$A167,AU$1))","v":""},{"$f":"IF($A167=\"N/A\",Ref!$B$36,INDEX(Ranks!$1:$1048576,$A167,AV$1))","v":""},{"$f":"IF($A167=\"N/A\",Ref!$B$36,INDEX(Ranks!$1:$1048576,$A167,AW$1))","v":""},{"$f":"IF($A167=\"N/A\",Ref!$B$36,INDEX(Ranks!$1:$1048576,$A167,AX$1))","v":""},{"$f":"IF($A167=\"N/A\",Ref!$B$36,INDEX(Ranks!$1:$1048576,$A167,AY$1))","v":""},{"$f":"IF($A167=\"N/A\",Ref!$B$36,INDEX(Ranks!$1:$1048576,$A167,AZ$1))","v":""},{"$f":"IF($A167=\"N/A\",Ref!$B$36,INDEX(Ranks!$1:$1048576,$A167,BA$1))","v":""},{"$f":"IF($A167=\"N/A\",Ref!$B$36,INDEX(Ranks!$1:$1048576,$A167,BB$1))","v":""},{"$f":"IF($A167=\"N/A\",Ref!$B$36,INDEX(Ranks!$1:$1048576,$A167,BC$1))","v":""},{"$f":"IF($A167=\"N/A\",Ref!$B$36,INDEX(Ranks!$1:$1048576,$A167,BD$1))","v":""},{"$f":"IF($A167=\"N/A\",Ref!$B$36,INDEX(Ranks!$1:$1048576,$A167,BE$1))","v":""},{"$f":"IF($A167=\"N/A\",Ref!$B$36,INDEX(Ranks!$1:$1048576,$A167,BF$1))","v":""},{"$f":"IF($A167=\"N/A\",Ref!$B$36,INDEX(Ranks!$1:$1048576,$A167,BG$1))","v":""},{"$f":"IF($A167=\"N/A\",Ref!$B$36,INDEX(Ranks!$1:$1048576,$A167,BH$1))","v":""},{"$f":"IF($A167=\"N/A\",Ref!$B$36,INDEX(Ranks!$1:$1048576,$A167,BI$1))","v":""},{"$f":"IF($A167=\"N/A\",Ref!$B$36,INDEX(Ranks!$1:$1048576,$A167,BJ$1))","v":""},{"$f":"IF($A167=\"N/A\",Ref!$B$36,INDEX(Ranks!$1:$1048576,$A167,BK$1))","v":""},{"$f":"IF($A167=\"N/A\",Ref!$B$36,INDEX(Ranks!$1:$1048576,$A167,BL$1))","v":""},{"$f":"IF($A167=\"N/A\",Ref!$B$36,INDEX(Ranks!$1:$1048576,$A167,BM$1))","v":""},{"$f":"IF($A167=\"N/A\",Ref!$B$36,INDEX(Ranks!$1:$1048576,$A167,BN$1))","v":""},{"$f":"IF($A167=\"N/A\",Ref!$B$36,INDEX(Ranks!$1:$1048576,$A167,BO$1))","v":""},{"$f":"IF($A167=\"N/A\",Ref!$B$36,INDEX(Ranks!$1:$1048576,$A167,BP$1))","v":""},{"$f":"IF($A167=\"N/A\",Ref!$B$36,INDEX(Ranks!$1:$1048576,$A167,BQ$1))","v":""},{"$f":"IF($A167=\"N/A\",Ref!$B$36,INDEX(Ranks!$1:$1048576,$A167,BR$1))","v":""},{"$f":"IF($A167=\"N/A\",Ref!$B$36,INDEX(Ranks!$1:$1048576,$A167,BS$1))","v":""},{"$f":"IF($A167=\"N/A\",Ref!$B$36,INDEX(Ranks!$1:$1048576,$A167,BT$1))","v":""},{"$f":"IF($A167=\"N/A\",Ref!$B$36,INDEX(Ranks!$1:$1048576,$A167,BU$1))","v":""},{"$f":"IF($A167=\"N/A\",Ref!$B$36,INDEX(Ranks!$1:$1048576,$A167,BV$1))","v":""},{"$f":"IF($A167=\"N/A\",Ref!$B$36,INDEX(Ranks!$1:$1048576,$A167,BW$1))","v":""},{"$f":"IF($A167=\"N/A\",Ref!$B$36,INDEX(Ranks!$1:$1048576,$A167,BX$1))","v":""},{"$f":"IF($A167=\"N/A\",Ref!$B$36,INDEX(Ranks!$1:$1048576,$A167,BY$1))","v":""},{"$f":"IF($A167=\"N/A\",Ref!$B$36,INDEX(Ranks!$1:$1048576,$A167,BZ$1))","v":""},{"$f":"IF($A167=\"N/A\",Ref!$B$36,INDEX(Ranks!$1:$1048576,$A167,CA$1))","v":""},{"$f":"IF($A167=\"N/A\",Ref!$B$36,INDEX(Ranks!$1:$1048576,$A167,CB$1))","v":""},{"$f":"IF($A167=\"N/A\",Ref!$B$36,INDEX(Ranks!$1:$1048576,$A167,CC$1))","v":""},{"$f":"IF($A167=\"N/A\",Ref!$B$36,INDEX(Ranks!$1:$1048576,$A167,CD$1))","v":""},{"$f":"IF($A167=\"N/A\",Ref!$B$36,INDEX(Ranks!$1:$1048576,$A167,CE$1))","v":""},{"$f":"IF($A167=\"N/A\",Ref!$B$36,INDEX(Ranks!$1:$1048576,$A167,CF$1))","v":""},{"$f":"IF($A167=\"N/A\",Ref!$B$36,INDEX(Ranks!$1:$1048576,$A167,CG$1))","v":""},{"$f":"IF($A167=\"N/A\",Ref!$B$36,INDEX(Ranks!$1:$1048576,$A167,CH$1))","v":""},{"$f":"IF($A167=\"N/A\",Ref!$B$36,INDEX(Ranks!$1:$1048576,$A167,CI$1))","v":""},{"$f":"IF($A167=\"N/A\",Ref!$B$36,INDEX(Ranks!$1:$1048576,$A167,CJ$1))","v":""},{"$f":"IF($A167=\"N/A\",Ref!$B$36,INDEX(Ranks!$1:$1048576,$A167,CK$1))","v":""},{"$f":"IF($A167=\"N/A\",Ref!$B$36,INDEX(Ranks!$1:$1048576,$A167,CL$1))","v":""},{"$f":"IF($A167=\"N/A\",Ref!$B$36,INDEX(Ranks!$1:$1048576,$A167,CM$1))","v":""},{"$f":"IF($A167=\"N/A\",Ref!$B$36,INDEX(Ranks!$1:$1048576,$A167,CN$1))","v":""},{"$f":"IF($A167=\"N/A\",Ref!$B$36,INDEX(Ranks!$1:$1048576,$A167,CO$1))","v":""},{"$f":"IF($A167=\"N/A\",Ref!$B$36,INDEX(Ranks!$1:$1048576,$A167,CP$1))","v":""},{"$f":"IF($A167=\"N/A\",Ref!$B$36,INDEX(Ranks!$1:$1048576,$A167,CQ$1))","v":""},{"$f":"IF($A167=\"N/A\",Ref!$B$36,INDEX(Ranks!$1:$1048576,$A167,CR$1))","v":""},{"$f":"IF($A167=\"N/A\",Ref!$B$36,INDEX(Ranks!$1:$1048576,$A167,CS$1))","v":""},{"$f":"IF($A167=\"N/A\",Ref!$B$36,INDEX(Ranks!$1:$1048576,$A167,CT$1))","v":""},{"$f":"IF($A167=\"N/A\",Ref!$B$36,INDEX(Ranks!$1:$1048576,$A167,CU$1))","v":""},{"$f":"IF($A167=\"N/A\",Ref!$B$36,INDEX(Ranks!$1:$1048576,$A167,CV$1))","v":""},{"$f":"IF($A167=\"N/A\",Ref!$B$36,INDEX(Ranks!$1:$1048576,$A167,CW$1))","v":""},{"$f":"IF($A167=\"N/A\",Ref!$B$36,INDEX(Ranks!$1:$1048576,$A167,CX$1))","v":""},{"$f":"IF($A167=\"N/A\",Ref!$B$36,INDEX(Ranks!$1:$1048576,$A167,CY$1))","v":""},{"$f":"IF($A167=\"N/A\",Ref!$B$36,INDEX(Ranks!$1:$1048576,$A167,CZ$1))","v":""},{"$f":"IF($A167=\"N/A\",Ref!$B$36,INDEX(Ranks!$1:$1048576,$A167,DA$1))","v":""},{"$f":"IF($A167=\"N/A\",Ref!$B$36,INDEX(Ranks!$1:$1048576,$A167,DB$1))","v":""},{"$f":"IF($A167=\"N/A\",Ref!$B$36,INDEX(Ranks!$1:$1048576,$A167,DC$1))","v":""},{"$f":"IF($A167=\"N/A\",Ref!$B$36,INDEX(Ranks!$1:$1048576,$A167,DD$1))","v":""},{"$f":"IF($A167=\"N/A\",Ref!$B$36,INDEX(Ranks!$1:$1048576,$A167,DE$1))","v":""},{"$f":"IF($A167=\"N/A\",Ref!$B$36,INDEX(Ranks!$1:$1048576,$A167,DF$1))","v":""},{"$f":"IF($A167=\"N/A\",Ref!$B$36,INDEX(Ranks!$1:$1048576,$A167,DG$1))","v":""},{"$f":"IF($A167=\"N/A\",Ref!$B$36,INDEX(Ranks!$1:$1048576,$A167,DH$1))","v":""},{"$f":"IF($A167=\"N/A\",Ref!$B$36,INDEX(Ranks!$1:$1048576,$A167,DI$1))","v":""},{"$f":"IF($A167=\"N/A\",Ref!$B$36,INDEX(Ranks!$1:$1048576,$A167,DJ$1))","v":""},{"$f":"IF($A167=\"N/A\",Ref!$B$36,INDEX(Ranks!$1:$1048576,$A167,DK$1))","v":""},{"$f":"IF($A167=\"N/A\",Ref!$B$36,INDEX(Ranks!$1:$1048576,$A167,DL$1))","v":""},{"$f":"IF($A167=\"N/A\",Ref!$B$36,INDEX(Ranks!$1:$1048576,$A167,DM$1))","v":""},{"$f":"IF($A167=\"N/A\",Ref!$B$36,INDEX(Ranks!$1:$1048576,$A167,DN$1))","v":""},{"$f":"IF($A167=\"N/A\",Ref!$B$36,INDEX(Ranks!$1:$1048576,$A167,DO$1))","v":""},{"$f":"IF($A167=\"N/A\",Ref!$B$36,INDEX(Ranks!$1:$1048576,$A167,DP$1))","v":""},{"$f":"IF($A167=\"N/A\",Ref!$B$36,INDEX(Ranks!$1:$1048576,$A167,DQ$1))","v":""},{"$f":"IF($A167=\"N/A\",Ref!$B$36,INDEX(Ranks!$1:$1048576,$A167,DR$1))","v":""},{"$f":"IF($A167=\"N/A\",Ref!$B$36,INDEX(Ranks!$1:$1048576,$A167,DS$1))","v":""},{"$f":"IF($A167=\"N/A\",Ref!$B$36,INDEX(Ranks!$1:$1048576,$A167,DT$1))","v":""},{"$f":"IF($A167=\"N/A\",Ref!$B$36,INDEX(Ranks!$1:$1048576,$A167,DU$1))","v":""},{"$f":"IF($A167=\"N/A\",Ref!$B$36,INDEX(Ranks!$1:$1048576,$A167,DV$1))","v":""},{"$f":"IF($A167=\"N/A\",Ref!$B$36,INDEX(Ranks!$1:$1048576,$A167,DW$1))","v":""},{"$f":"IF($A167=\"N/A\",Ref!$B$36,INDEX(Ranks!$1:$1048576,$A167,DX$1))","v":""},{"$f":"IF($A167=\"N/A\",Ref!$B$36,INDEX(Ranks!$1:$1048576,$A167,DY$1))","v":""},{"$f":"IF($A167=\"N/A\",Ref!$B$36,INDEX(Ranks!$1:$1048576,$A167,DZ$1))","v":""},{"$f":"IF($A167=\"N/A\",Ref!$B$36,INDEX(Ranks!$1:$1048576,$A167,EA$1))","v":""},{"$f":"IF($A167=\"N/A\",Ref!$B$36,INDEX(Ranks!$1:$1048576,$A167,EB$1))","v":""}]
[{"$f":"IFERROR(MATCH('Portfolio Page'!L168,Ranks!L:L,0),\"N/A\")","v":"N/A"},null,{"$f":"IF($A168=\"N/A\",\"\",INDEX(Ranks!$1:$1048576,$A168,C$1))","v":""},{"$f":"IF($A168=\"N/A\",Ref!$B$36,INDEX(Ranks!$1:$1048576,$A168,D$1))","v":""},{"$f":"IF($A168=\"N/A\",Ref!$B$36,INDEX(Ranks!$1:$1048576,$A168,E$1))","v":""},{"$f":"IF($A168=\"N/A\",\"\",INDEX(Ranks!$1:$1048576,$A168,F$1))","v":""},{"$f":"IF($A168=\"N/A\",\"\",INDEX(Ranks!$1:$1048576,$A168,G$1))","v":""},{"$f":"IF($A168=\"N/A\",\"\",INDEX(Ranks!$1:$1048576,$A168,H$1))","v":""},{"$f":"IF($A168=\"N/A\",\"\",INDEX(Ranks!$1:$1048576,$A168,I$1))","v":""},{"$f":"IF($A168=\"N/A\",\"\",INDEX(Ranks!$1:$1048576,$A168,J$1))","v":""},{"$f":"IF($A168=\"N/A\",\"\",INDEX(Ranks!$1:$1048576,$A168,K$1))","v":""},null,{"$f":"IF($A168=\"N/A\",Ref!$B$36,INDEX(Ranks!$1:$1048576,$A168,M$1))","v":""},{"$f":"IF($A168=\"N/A\",Ref!$B$36,INDEX(Ranks!$1:$1048576,$A168,N$1))","v":""},{"$f":"IF($A168=\"N/A\",Ref!$B$36,INDEX(Ranks!$1:$1048576,$A168,O$1))","v":""},{"$f":"IF($A168=\"N/A\",Ref!$B$36,INDEX(Ranks!$1:$1048576,$A168,P$1))","v":""},{"$f":"IF($A168=\"N/A\",Ref!$B$36,INDEX(Ranks!$1:$1048576,$A168,Q$1))","v":""},{"$f":"IF($A168=\"N/A\",Ref!$B$36,INDEX(Ranks!$1:$1048576,$A168,R$1))","v":""},{"$f":"IF($A168=\"N/A\",Ref!$B$36,INDEX(Ranks!$1:$1048576,$A168,S$1))","v":""},{"$f":"IF($A168=\"N/A\",Ref!$B$36,INDEX(Ranks!$1:$1048576,$A168,T$1))","v":""},{"$f":"IF($A168=\"N/A\",Ref!$B$36,INDEX(Ranks!$1:$1048576,$A168,U$1))","v":""},{"$f":"IF($A168=\"N/A\",Ref!$B$36,INDEX(Ranks!$1:$1048576,$A168,V$1))","v":""},{"$f":"IF($A168=\"N/A\",Ref!$B$36,INDEX(Ranks!$1:$1048576,$A168,W$1))","v":""},{"$f":"IF($A168=\"N/A\",Ref!$B$36,INDEX(Ranks!$1:$1048576,$A168,X$1))","v":""},{"$f":"IF($A168=\"N/A\",Ref!$B$36,INDEX(Ranks!$1:$1048576,$A168,Y$1))","v":""},{"$f":"IF($A168=\"N/A\",Ref!$B$36,INDEX(Ranks!$1:$1048576,$A168,Z$1))","v":""},{"$f":"IF($A168=\"N/A\",Ref!$B$36,INDEX(Ranks!$1:$1048576,$A168,AA$1))","v":""},{"$f":"IF($A168=\"N/A\",Ref!$B$36,INDEX(Ranks!$1:$1048576,$A168,AB$1))","v":""},{"$f":"IF($A168=\"N/A\",Ref!$B$36,INDEX(Ranks!$1:$1048576,$A168,AC$1))","v":""},{"$f":"IF($A168=\"N/A\",Ref!$B$36,INDEX(Ranks!$1:$1048576,$A168,AD$1))","v":""},{"$f":"IF($A168=\"N/A\",Ref!$B$36,INDEX(Ranks!$1:$1048576,$A168,AE$1))","v":""},{"$f":"IF($A168=\"N/A\",Ref!$B$36,INDEX(Ranks!$1:$1048576,$A168,AF$1))","v":""},{"$f":"IF($A168=\"N/A\",Ref!$B$36,INDEX(Ranks!$1:$1048576,$A168,AG$1))","v":""},{"$f":"IF($A168=\"N/A\",Ref!$B$36,INDEX(Ranks!$1:$1048576,$A168,AH$1))","v":""},{"$f":"IF($A168=\"N/A\",Ref!$B$36,INDEX(Ranks!$1:$1048576,$A168,AI$1))","v":""},{"$f":"IF($A168=\"N/A\",Ref!$B$36,INDEX(Ranks!$1:$1048576,$A168,AJ$1))","v":""},{"$f":"IF($A168=\"N/A\",Ref!$B$36,INDEX(Ranks!$1:$1048576,$A168,AK$1))","v":""},{"$f":"IF($A168=\"N/A\",Ref!$B$36,INDEX(Ranks!$1:$1048576,$A168,AL$1))","v":""},{"$f":"IF($A168=\"N/A\",Ref!$B$36,INDEX(Ranks!$1:$1048576,$A168,AM$1))","v":""},{"$f":"IF($A168=\"N/A\",Ref!$B$36,INDEX(Ranks!$1:$1048576,$A168,AN$1))","v":""},{"$f":"IF($A168=\"N/A\",Ref!$B$36,INDEX(Ranks!$1:$1048576,$A168,AO$1))","v":""},{"$f":"IF($A168=\"N/A\",Ref!$B$36,INDEX(Ranks!$1:$1048576,$A168,AP$1))","v":""},{"$f":"IF($A168=\"N/A\",Ref!$B$36,INDEX(Ranks!$1:$1048576,$A168,AQ$1))","v":""},{"$f":"IF($A168=\"N/A\",Ref!$B$36,INDEX(Ranks!$1:$1048576,$A168,AR$1))","v":""},{"$f":"IF($A168=\"N/A\",Ref!$B$36,INDEX(Ranks!$1:$1048576,$A168,AS$1))","v":""},{"$f":"IF($A168=\"N/A\",Ref!$B$36,INDEX(Ranks!$1:$1048576,$A168,AT$1))","v":""},{"$f":"IF($A168=\"N/A\",Ref!$B$36,INDEX(Ranks!$1:$1048576,$A168,AU$1))","v":""},{"$f":"IF($A168=\"N/A\",Ref!$B$36,INDEX(Ranks!$1:$1048576,$A168,AV$1))","v":""},{"$f":"IF($A168=\"N/A\",Ref!$B$36,INDEX(Ranks!$1:$1048576,$A168,AW$1))","v":""},{"$f":"IF($A168=\"N/A\",Ref!$B$36,INDEX(Ranks!$1:$1048576,$A168,AX$1))","v":""},{"$f":"IF($A168=\"N/A\",Ref!$B$36,INDEX(Ranks!$1:$1048576,$A168,AY$1))","v":""},{"$f":"IF($A168=\"N/A\",Ref!$B$36,INDEX(Ranks!$1:$1048576,$A168,AZ$1))","v":""},{"$f":"IF($A168=\"N/A\",Ref!$B$36,INDEX(Ranks!$1:$1048576,$A168,BA$1))","v":""},{"$f":"IF($A168=\"N/A\",Ref!$B$36,INDEX(Ranks!$1:$1048576,$A168,BB$1))","v":""},{"$f":"IF($A168=\"N/A\",Ref!$B$36,INDEX(Ranks!$1:$1048576,$A168,BC$1))","v":""},{"$f":"IF($A168=\"N/A\",Ref!$B$36,INDEX(Ranks!$1:$1048576,$A168,BD$1))","v":""},{"$f":"IF($A168=\"N/A\",Ref!$B$36,INDEX(Ranks!$1:$1048576,$A168,BE$1))","v":""},{"$f":"IF($A168=\"N/A\",Ref!$B$36,INDEX(Ranks!$1:$1048576,$A168,BF$1))","v":""},{"$f":"IF($A168=\"N/A\",Ref!$B$36,INDEX(Ranks!$1:$1048576,$A168,BG$1))","v":""},{"$f":"IF($A168=\"N/A\",Ref!$B$36,INDEX(Ranks!$1:$1048576,$A168,BH$1))","v":""},{"$f":"IF($A168=\"N/A\",Ref!$B$36,INDEX(Ranks!$1:$1048576,$A168,BI$1))","v":""},{"$f":"IF($A168=\"N/A\",Ref!$B$36,INDEX(Ranks!$1:$1048576,$A168,BJ$1))","v":""},{"$f":"IF($A168=\"N/A\",Ref!$B$36,INDEX(Ranks!$1:$1048576,$A168,BK$1))","v":""},{"$f":"IF($A168=\"N/A\",Ref!$B$36,INDEX(Ranks!$1:$1048576,$A168,BL$1))","v":""},{"$f":"IF($A168=\"N/A\",Ref!$B$36,INDEX(Ranks!$1:$1048576,$A168,BM$1))","v":""},{"$f":"IF($A168=\"N/A\",Ref!$B$36,INDEX(Ranks!$1:$1048576,$A168,BN$1))","v":""},{"$f":"IF($A168=\"N/A\",Ref!$B$36,INDEX(Ranks!$1:$1048576,$A168,BO$1))","v":""},{"$f":"IF($A168=\"N/A\",Ref!$B$36,INDEX(Ranks!$1:$1048576,$A168,BP$1))","v":""},{"$f":"IF($A168=\"N/A\",Ref!$B$36,INDEX(Ranks!$1:$1048576,$A168,BQ$1))","v":""},{"$f":"IF($A168=\"N/A\",Ref!$B$36,INDEX(Ranks!$1:$1048576,$A168,BR$1))","v":""},{"$f":"IF($A168=\"N/A\",Ref!$B$36,INDEX(Ranks!$1:$1048576,$A168,BS$1))","v":""},{"$f":"IF($A168=\"N/A\",Ref!$B$36,INDEX(Ranks!$1:$1048576,$A168,BT$1))","v":""},{"$f":"IF($A168=\"N/A\",Ref!$B$36,INDEX(Ranks!$1:$1048576,$A168,BU$1))","v":""},{"$f":"IF($A168=\"N/A\",Ref!$B$36,INDEX(Ranks!$1:$1048576,$A168,BV$1))","v":""},{"$f":"IF($A168=\"N/A\",Ref!$B$36,INDEX(Ranks!$1:$1048576,$A168,BW$1))","v":""},{"$f":"IF($A168=\"N/A\",Ref!$B$36,INDEX(Ranks!$1:$1048576,$A168,BX$1))","v":""},{"$f":"IF($A168=\"N/A\",Ref!$B$36,INDEX(Ranks!$1:$1048576,$A168,BY$1))","v":""},{"$f":"IF($A168=\"N/A\",Ref!$B$36,INDEX(Ranks!$1:$1048576,$A168,BZ$1))","v":""},{"$f":"IF($A168=\"N/A\",Ref!$B$36,INDEX(Ranks!$1:$1048576,$A168,CA$1))","v":""},{"$f":"IF($A168=\"N/A\",Ref!$B$36,INDEX(Ranks!$1:$1048576,$A168,CB$1))","v":""},{"$f":"IF($A168=\"N/A\",Ref!$B$36,INDEX(Ranks!$1:$1048576,$A168,CC$1))","v":""},{"$f":"IF($A168=\"N/A\",Ref!$B$36,INDEX(Ranks!$1:$1048576,$A168,CD$1))","v":""},{"$f":"IF($A168=\"N/A\",Ref!$B$36,INDEX(Ranks!$1:$1048576,$A168,CE$1))","v":""},{"$f":"IF($A168=\"N/A\",Ref!$B$36,INDEX(Ranks!$1:$1048576,$A168,CF$1))","v":""},{"$f":"IF($A168=\"N/A\",Ref!$B$36,INDEX(Ranks!$1:$1048576,$A168,CG$1))","v":""},{"$f":"IF($A168=\"N/A\",Ref!$B$36,INDEX(Ranks!$1:$1048576,$A168,CH$1))","v":""},{"$f":"IF($A168=\"N/A\",Ref!$B$36,INDEX(Ranks!$1:$1048576,$A168,CI$1))","v":""},{"$f":"IF($A168=\"N/A\",Ref!$B$36,INDEX(Ranks!$1:$1048576,$A168,CJ$1))","v":""},{"$f":"IF($A168=\"N/A\",Ref!$B$36,INDEX(Ranks!$1:$1048576,$A168,CK$1))","v":""},{"$f":"IF($A168=\"N/A\",Ref!$B$36,INDEX(Ranks!$1:$1048576,$A168,CL$1))","v":""},{"$f":"IF($A168=\"N/A\",Ref!$B$36,INDEX(Ranks!$1:$1048576,$A168,CM$1))","v":""},{"$f":"IF($A168=\"N/A\",Ref!$B$36,INDEX(Ranks!$1:$1048576,$A168,CN$1))","v":""},{"$f":"IF($A168=\"N/A\",Ref!$B$36,INDEX(Ranks!$1:$1048576,$A168,CO$1))","v":""},{"$f":"IF($A168=\"N/A\",Ref!$B$36,INDEX(Ranks!$1:$1048576,$A168,CP$1))","v":""},{"$f":"IF($A168=\"N/A\",Ref!$B$36,INDEX(Ranks!$1:$1048576,$A168,CQ$1))","v":""},{"$f":"IF($A168=\"N/A\",Ref!$B$36,INDEX(Ranks!$1:$1048576,$A168,CR$1))","v":""},{"$f":"IF($A168=\"N/A\",Ref!$B$36,INDEX(Ranks!$1:$1048576,$A168,CS$1))","v":""},{"$f":"IF($A168=\"N/A\",Ref!$B$36,INDEX(Ranks!$1:$1048576,$A168,CT$1))","v":""},{"$f":"IF($A168=\"N/A\",Ref!$B$36,INDEX(Ranks!$1:$1048576,$A168,CU$1))","v":""},{"$f":"IF($A168=\"N/A\",Ref!$B$36,INDEX(Ranks!$1:$1048576,$A168,CV$1))","v":""},{"$f":"IF($A168=\"N/A\",Ref!$B$36,INDEX(Ranks!$1:$1048576,$A168,CW$1))","v":""},{"$f":"IF($A168=\"N/A\",Ref!$B$36,INDEX(Ranks!$1:$1048576,$A168,CX$1))","v":""},{"$f":"IF($A168=\"N/A\",Ref!$B$36,INDEX(Ranks!$1:$1048576,$A168,CY$1))","v":""},{"$f":"IF($A168=\"N/A\",Ref!$B$36,INDEX(Ranks!$1:$1048576,$A168,CZ$1))","v":""},{"$f":"IF($A168=\"N/A\",Ref!$B$36,INDEX(Ranks!$1:$1048576,$A168,DA$1))","v":""},{"$f":"IF($A168=\"N/A\",Ref!$B$36,INDEX(Ranks!$1:$1048576,$A168,DB$1))","v":""},{"$f":"IF($A168=\"N/A\",Ref!$B$36,INDEX(Ranks!$1:$1048576,$A168,DC$1))","v":""},{"$f":"IF($A168=\"N/A\",Ref!$B$36,INDEX(Ranks!$1:$1048576,$A168,DD$1))","v":""},{"$f":"IF($A168=\"N/A\",Ref!$B$36,INDEX(Ranks!$1:$1048576,$A168,DE$1))","v":""},{"$f":"IF($A168=\"N/A\",Ref!$B$36,INDEX(Ranks!$1:$1048576,$A168,DF$1))","v":""},{"$f":"IF($A168=\"N/A\",Ref!$B$36,INDEX(Ranks!$1:$1048576,$A168,DG$1))","v":""},{"$f":"IF($A168=\"N/A\",Ref!$B$36,INDEX(Ranks!$1:$1048576,$A168,DH$1))","v":""},{"$f":"IF($A168=\"N/A\",Ref!$B$36,INDEX(Ranks!$1:$1048576,$A168,DI$1))","v":""},{"$f":"IF($A168=\"N/A\",Ref!$B$36,INDEX(Ranks!$1:$1048576,$A168,DJ$1))","v":""},{"$f":"IF($A168=\"N/A\",Ref!$B$36,INDEX(Ranks!$1:$1048576,$A168,DK$1))","v":""},{"$f":"IF($A168=\"N/A\",Ref!$B$36,INDEX(Ranks!$1:$1048576,$A168,DL$1))","v":""},{"$f":"IF($A168=\"N/A\",Ref!$B$36,INDEX(Ranks!$1:$1048576,$A168,DM$1))","v":""},{"$f":"IF($A168=\"N/A\",Ref!$B$36,INDEX(Ranks!$1:$1048576,$A168,DN$1))","v":""},{"$f":"IF($A168=\"N/A\",Ref!$B$36,INDEX(Ranks!$1:$1048576,$A168,DO$1))","v":""},{"$f":"IF($A168=\"N/A\",Ref!$B$36,INDEX(Ranks!$1:$1048576,$A168,DP$1))","v":""},{"$f":"IF($A168=\"N/A\",Ref!$B$36,INDEX(Ranks!$1:$1048576,$A168,DQ$1))","v":""},{"$f":"IF($A168=\"N/A\",Ref!$B$36,INDEX(Ranks!$1:$1048576,$A168,DR$1))","v":""},{"$f":"IF($A168=\"N/A\",Ref!$B$36,INDEX(Ranks!$1:$1048576,$A168,DS$1))","v":""},{"$f":"IF($A168=\"N/A\",Ref!$B$36,INDEX(Ranks!$1:$1048576,$A168,DT$1))","v":""},{"$f":"IF($A168=\"N/A\",Ref!$B$36,INDEX(Ranks!$1:$1048576,$A168,DU$1))","v":""},{"$f":"IF($A168=\"N/A\",Ref!$B$36,INDEX(Ranks!$1:$1048576,$A168,DV$1))","v":""},{"$f":"IF($A168=\"N/A\",Ref!$B$36,INDEX(Ranks!$1:$1048576,$A168,DW$1))","v":""},{"$f":"IF($A168=\"N/A\",Ref!$B$36,INDEX(Ranks!$1:$1048576,$A168,DX$1))","v":""},{"$f":"IF($A168=\"N/A\",Ref!$B$36,INDEX(Ranks!$1:$1048576,$A168,DY$1))","v":""},{"$f":"IF($A168=\"N/A\",Ref!$B$36,INDEX(Ranks!$1:$1048576,$A168,DZ$1))","v":""},{"$f":"IF($A168=\"N/A\",Ref!$B$36,INDEX(Ranks!$1:$1048576,$A168,EA$1))","v":""},{"$f":"IF($A168=\"N/A\",Ref!$B$36,INDEX(Ranks!$1:$1048576,$A168,EB$1))","v":""}]
[{"$f":"IFERROR(MATCH('Portfolio Page'!L169,Ranks!L:L,0),\"N/A\")","v":"N/A"},null,{"$f":"IF($A169=\"N/A\",\"\",INDEX(Ranks!$1:$1048576,$A169,C$1))","v":""},{"$f":"IF($A169=\"N/A\",Ref!$B$36,INDEX(Ranks!$1:$1048576,$A169,D$1))","v":""},{"$f":"IF($A169=\"N/A\",Ref!$B$36,INDEX(Ranks!$1:$1048576,$A169,E$1))","v":""},{"$f":"IF($A169=\"N/A\",\"\",INDEX(Ranks!$1:$1048576,$A169,F$1))","v":""},{"$f":"IF($A169=\"N/A\",\"\",INDEX(Ranks!$1:$1048576,$A169,G$1))","v":""},{"$f":"IF($A169=\"N/A\",\"\",INDEX(Ranks!$1:$1048576,$A169,H$1))","v":""},{"$f":"IF($A169=\"N/A\",\"\",INDEX(Ranks!$1:$1048576,$A169,I$1))","v":""},{"$f":"IF($A169=\"N/A\",\"\",INDEX(Ranks!$1:$1048576,$A169,J$1))","v":""},{"$f":"IF($A169=\"N/A\",\"\",INDEX(Ranks!$1:$1048576,$A169,K$1))","v":""},null,{"$f":"IF($A169=\"N/A\",Ref!$B$36,INDEX(Ranks!$1:$1048576,$A169,M$1))","v":""},{"$f":"IF($A169=\"N/A\",Ref!$B$36,INDEX(Ranks!$1:$1048576,$A169,N$1))","v":""},{"$f":"IF($A169=\"N/A\",Ref!$B$36,INDEX(Ranks!$1:$1048576,$A169,O$1))","v":""},{"$f":"IF($A169=\"N/A\",Ref!$B$36,INDEX(Ranks!$1:$1048576,$A169,P$1))","v":""},{"$f":"IF($A169=\"N/A\",Ref!$B$36,INDEX(Ranks!$1:$1048576,$A169,Q$1))","v":""},{"$f":"IF($A169=\"N/A\",Ref!$B$36,INDEX(Ranks!$1:$1048576,$A169,R$1))","v":""},{"$f":"IF($A169=\"N/A\",Ref!$B$36,INDEX(Ranks!$1:$1048576,$A169,S$1))","v":""},{"$f":"IF($A169=\"N/A\",Ref!$B$36,INDEX(Ranks!$1:$1048576,$A169,T$1))","v":""},{"$f":"IF($A169=\"N/A\",Ref!$B$36,INDEX(Ranks!$1:$1048576,$A169,U$1))","v":""},{"$f":"IF($A169=\"N/A\",Ref!$B$36,INDEX(Ranks!$1:$1048576,$A169,V$1))","v":""},{"$f":"IF($A169=\"N/A\",Ref!$B$36,INDEX(Ranks!$1:$1048576,$A169,W$1))","v":""},{"$f":"IF($A169=\"N/A\",Ref!$B$36,INDEX(Ranks!$1:$1048576,$A169,X$1))","v":""},{"$f":"IF($A169=\"N/A\",Ref!$B$36,INDEX(Ranks!$1:$1048576,$A169,Y$1))","v":""},{"$f":"IF($A169=\"N/A\",Ref!$B$36,INDEX(Ranks!$1:$1048576,$A169,Z$1))","v":""},{"$f":"IF($A169=\"N/A\",Ref!$B$36,INDEX(Ranks!$1:$1048576,$A169,AA$1))","v":""},{"$f":"IF($A169=\"N/A\",Ref!$B$36,INDEX(Ranks!$1:$1048576,$A169,AB$1))","v":""},{"$f":"IF($A169=\"N/A\",Ref!$B$36,INDEX(Ranks!$1:$1048576,$A169,AC$1))","v":""},{"$f":"IF($A169=\"N/A\",Ref!$B$36,INDEX(Ranks!$1:$1048576,$A169,AD$1))","v":""},{"$f":"IF($A169=\"N/A\",Ref!$B$36,INDEX(Ranks!$1:$1048576,$A169,AE$1))","v":""},{"$f":"IF($A169=\"N/A\",Ref!$B$36,INDEX(Ranks!$1:$1048576,$A169,AF$1))","v":""},{"$f":"IF($A169=\"N/A\",Ref!$B$36,INDEX(Ranks!$1:$1048576,$A169,AG$1))","v":""},{"$f":"IF($A169=\"N/A\",Ref!$B$36,INDEX(Ranks!$1:$1048576,$A169,AH$1))","v":""},{"$f":"IF($A169=\"N/A\",Ref!$B$36,INDEX(Ranks!$1:$1048576,$A169,AI$1))","v":""},{"$f":"IF($A169=\"N/A\",Ref!$B$36,INDEX(Ranks!$1:$1048576,$A169,AJ$1))","v":""},{"$f":"IF($A169=\"N/A\",Ref!$B$36,INDEX(Ranks!$1:$1048576,$A169,AK$1))","v":""},{"$f":"IF($A169=\"N/A\",Ref!$B$36,INDEX(Ranks!$1:$1048576,$A169,AL$1))","v":""},{"$f":"IF($A169=\"N/A\",Ref!$B$36,INDEX(Ranks!$1:$1048576,$A169,AM$1))","v":""},{"$f":"IF($A169=\"N/A\",Ref!$B$36,INDEX(Ranks!$1:$1048576,$A169,AN$1))","v":""},{"$f":"IF($A169=\"N/A\",Ref!$B$36,INDEX(Ranks!$1:$1048576,$A169,AO$1))","v":""},{"$f":"IF($A169=\"N/A\",Ref!$B$36,INDEX(Ranks!$1:$1048576,$A169,AP$1))","v":""},{"$f":"IF($A169=\"N/A\",Ref!$B$36,INDEX(Ranks!$1:$1048576,$A169,AQ$1))","v":""},{"$f":"IF($A169=\"N/A\",Ref!$B$36,INDEX(Ranks!$1:$1048576,$A169,AR$1))","v":""},{"$f":"IF($A169=\"N/A\",Ref!$B$36,INDEX(Ranks!$1:$1048576,$A169,AS$1))","v":""},{"$f":"IF($A169=\"N/A\",Ref!$B$36,INDEX(Ranks!$1:$1048576,$A169,AT$1))","v":""},{"$f":"IF($A169=\"N/A\",Ref!$B$36,INDEX(Ranks!$1:$1048576,$A169,AU$1))","v":""},{"$f":"IF($A169=\"N/A\",Ref!$B$36,INDEX(Ranks!$1:$1048576,$A169,AV$1))","v":""},{"$f":"IF($A169=\"N/A\",Ref!$B$36,INDEX(Ranks!$1:$1048576,$A169,AW$1))","v":""},{"$f":"IF($A169=\"N/A\",Ref!$B$36,INDEX(Ranks!$1:$1048576,$A169,AX$1))","v":""},{"$f":"IF($A169=\"N/A\",Ref!$B$36,INDEX(Ranks!$1:$1048576,$A169,AY$1))","v":""},{"$f":"IF($A169=\"N/A\",Ref!$B$36,INDEX(Ranks!$1:$1048576,$A169,AZ$1))","v":""},{"$f":"IF($A169=\"N/A\",Ref!$B$36,INDEX(Ranks!$1:$1048576,$A169,BA$1))","v":""},{"$f":"IF($A169=\"N/A\",Ref!$B$36,INDEX(Ranks!$1:$1048576,$A169,BB$1))","v":""},{"$f":"IF($A169=\"N/A\",Ref!$B$36,INDEX(Ranks!$1:$1048576,$A169,BC$1))","v":""},{"$f":"IF($A169=\"N/A\",Ref!$B$36,INDEX(Ranks!$1:$1048576,$A169,BD$1))","v":""},{"$f":"IF($A169=\"N/A\",Ref!$B$36,INDEX(Ranks!$1:$1048576,$A169,BE$1))","v":""},{"$f":"IF($A169=\"N/A\",Ref!$B$36,INDEX(Ranks!$1:$1048576,$A169,BF$1))","v":""},{"$f":"IF($A169=\"N/A\",Ref!$B$36,INDEX(Ranks!$1:$1048576,$A169,BG$1))","v":""},{"$f":"IF($A169=\"N/A\",Ref!$B$36,INDEX(Ranks!$1:$1048576,$A169,BH$1))","v":""},{"$f":"IF($A169=\"N/A\",Ref!$B$36,INDEX(Ranks!$1:$1048576,$A169,BI$1))","v":""},{"$f":"IF($A169=\"N/A\",Ref!$B$36,INDEX(Ranks!$1:$1048576,$A169,BJ$1))","v":""},{"$f":"IF($A169=\"N/A\",Ref!$B$36,INDEX(Ranks!$1:$1048576,$A169,BK$1))","v":""},{"$f":"IF($A169=\"N/A\",Ref!$B$36,INDEX(Ranks!$1:$1048576,$A169,BL$1))","v":""},{"$f":"IF($A169=\"N/A\",Ref!$B$36,INDEX(Ranks!$1:$1048576,$A169,BM$1))","v":""},{"$f":"IF($A169=\"N/A\",Ref!$B$36,INDEX(Ranks!$1:$1048576,$A169,BN$1))","v":""},{"$f":"IF($A169=\"N/A\",Ref!$B$36,INDEX(Ranks!$1:$1048576,$A169,BO$1))","v":""},{"$f":"IF($A169=\"N/A\",Ref!$B$36,INDEX(Ranks!$1:$1048576,$A169,BP$1))","v":""},{"$f":"IF($A169=\"N/A\",Ref!$B$36,INDEX(Ranks!$1:$1048576,$A169,BQ$1))","v":""},{"$f":"IF($A169=\"N/A\",Ref!$B$36,INDEX(Ranks!$1:$1048576,$A169,BR$1))","v":""},{"$f":"IF($A169=\"N/A\",Ref!$B$36,INDEX(Ranks!$1:$1048576,$A169,BS$1))","v":""},{"$f":"IF($A169=\"N/A\",Ref!$B$36,INDEX(Ranks!$1:$1048576,$A169,BT$1))","v":""},{"$f":"IF($A169=\"N/A\",Ref!$B$36,INDEX(Ranks!$1:$1048576,$A169,BU$1))","v":""},{"$f":"IF($A169=\"N/A\",Ref!$B$36,INDEX(Ranks!$1:$1048576,$A169,BV$1))","v":""},{"$f":"IF($A169=\"N/A\",Ref!$B$36,INDEX(Ranks!$1:$1048576,$A169,BW$1))","v":""},{"$f":"IF($A169=\"N/A\",Ref!$B$36,INDEX(Ranks!$1:$1048576,$A169,BX$1))","v":""},{"$f":"IF($A169=\"N/A\",Ref!$B$36,INDEX(Ranks!$1:$1048576,$A169,BY$1))","v":""},{"$f":"IF($A169=\"N/A\",Ref!$B$36,INDEX(Ranks!$1:$1048576,$A169,BZ$1))","v":""},{"$f":"IF($A169=\"N/A\",Ref!$B$36,INDEX(Ranks!$1:$1048576,$A169,CA$1))","v":""},{"$f":"IF($A169=\"N/A\",Ref!$B$36,INDEX(Ranks!$1:$1048576,$A169,CB$1))","v":""},{"$f":"IF($A169=\"N/A\",Ref!$B$36,INDEX(Ranks!$1:$1048576,$A169,CC$1))","v":""},{"$f":"IF($A169=\"N/A\",Ref!$B$36,INDEX(Ranks!$1:$1048576,$A169,CD$1))","v":""},{"$f":"IF($A169=\"N/A\",Ref!$B$36,INDEX(Ranks!$1:$1048576,$A169,CE$1))","v":""},{"$f":"IF($A169=\"N/A\",Ref!$B$36,INDEX(Ranks!$1:$1048576,$A169,CF$1))","v":""},{"$f":"IF($A169=\"N/A\",Ref!$B$36,INDEX(Ranks!$1:$1048576,$A169,CG$1))","v":""},{"$f":"IF($A169=\"N/A\",Ref!$B$36,INDEX(Ranks!$1:$1048576,$A169,CH$1))","v":""},{"$f":"IF($A169=\"N/A\",Ref!$B$36,INDEX(Ranks!$1:$1048576,$A169,CI$1))","v":""},{"$f":"IF($A169=\"N/A\",Ref!$B$36,INDEX(Ranks!$1:$1048576,$A169,CJ$1))","v":""},{"$f":"IF($A169=\"N/A\",Ref!$B$36,INDEX(Ranks!$1:$1048576,$A169,CK$1))","v":""},{"$f":"IF($A169=\"N/A\",Ref!$B$36,INDEX(Ranks!$1:$1048576,$A169,CL$1))","v":""},{"$f":"IF($A169=\"N/A\",Ref!$B$36,INDEX(Ranks!$1:$1048576,$A169,CM$1))","v":""},{"$f":"IF($A169=\"N/A\",Ref!$B$36,INDEX(Ranks!$1:$1048576,$A169,CN$1))","v":""},{"$f":"IF($A169=\"N/A\",Ref!$B$36,INDEX(Ranks!$1:$1048576,$A169,CO$1))","v":""},{"$f":"IF($A169=\"N/A\",Ref!$B$36,INDEX(Ranks!$1:$1048576,$A169,CP$1))","v":""},{"$f":"IF($A169=\"N/A\",Ref!$B$36,INDEX(Ranks!$1:$1048576,$A169,CQ$1))","v":""},{"$f":"IF($A169=\"N/A\",Ref!$B$36,INDEX(Ranks!$1:$1048576,$A169,CR$1))","v":""},{"$f":"IF($A169=\"N/A\",Ref!$B$36,INDEX(Ranks!$1:$1048576,$A169,CS$1))","v":""},{"$f":"IF($A169=\"N/A\",Ref!$B$36,INDEX(Ranks!$1:$1048576,$A169,CT$1))","v":""},{"$f":"IF($A169=\"N/A\",Ref!$B$36,INDEX(Ranks!$1:$1048576,$A169,CU$1))","v":""},{"$f":"IF($A169=\"N/A\",Ref!$B$36,INDEX(Ranks!$1:$1048576,$A169,CV$1))","v":""},{"$f":"IF($A169=\"N/A\",Ref!$B$36,INDEX(Ranks!$1:$1048576,$A169,CW$1))","v":""},{"$f":"IF($A169=\"N/A\",Ref!$B$36,INDEX(Ranks!$1:$1048576,$A169,CX$1))","v":""},{"$f":"IF($A169=\"N/A\",Ref!$B$36,INDEX(Ranks!$1:$1048576,$A169,CY$1))","v":""},{"$f":"IF($A169=\"N/A\",Ref!$B$36,INDEX(Ranks!$1:$1048576,$A169,CZ$1))","v":""},{"$f":"IF($A169=\"N/A\",Ref!$B$36,INDEX(Ranks!$1:$1048576,$A169,DA$1))","v":""},{"$f":"IF($A169=\"N/A\",Ref!$B$36,INDEX(Ranks!$1:$1048576,$A169,DB$1))","v":""},{"$f":"IF($A169=\"N/A\",Ref!$B$36,INDEX(Ranks!$1:$1048576,$A169,DC$1))","v":""},{"$f":"IF($A169=\"N/A\",Ref!$B$36,INDEX(Ranks!$1:$1048576,$A169,DD$1))","v":""},{"$f":"IF($A169=\"N/A\",Ref!$B$36,INDEX(Ranks!$1:$1048576,$A169,DE$1))","v":""},{"$f":"IF($A169=\"N/A\",Ref!$B$36,INDEX(Ranks!$1:$1048576,$A169,DF$1))","v":""},{"$f":"IF($A169=\"N/A\",Ref!$B$36,INDEX(Ranks!$1:$1048576,$A169,DG$1))","v":""},{"$f":"IF($A169=\"N/A\",Ref!$B$36,INDEX(Ranks!$1:$1048576,$A169,DH$1))","v":""},{"$f":"IF($A169=\"N/A\",Ref!$B$36,INDEX(Ranks!$1:$1048576,$A169,DI$1))","v":""},{"$f":"IF($A169=\"N/A\",Ref!$B$36,INDEX(Ranks!$1:$1048576,$A169,DJ$1))","v":""},{"$f":"IF($A169=\"N/A\",Ref!$B$36,INDEX(Ranks!$1:$1048576,$A169,DK$1))","v":""},{"$f":"IF($A169=\"N/A\",Ref!$B$36,INDEX(Ranks!$1:$1048576,$A169,DL$1))","v":""},{"$f":"IF($A169=\"N/A\",Ref!$B$36,INDEX(Ranks!$1:$1048576,$A169,DM$1))","v":""},{"$f":"IF($A169=\"N/A\",Ref!$B$36,INDEX(Ranks!$1:$1048576,$A169,DN$1))","v":""},{"$f":"IF($A169=\"N/A\",Ref!$B$36,INDEX(Ranks!$1:$1048576,$A169,DO$1))","v":""},{"$f":"IF($A169=\"N/A\",Ref!$B$36,INDEX(Ranks!$1:$1048576,$A169,DP$1))","v":""},{"$f":"IF($A169=\"N/A\",Ref!$B$36,INDEX(Ranks!$1:$1048576,$A169,DQ$1))","v":""},{"$f":"IF($A169=\"N/A\",Ref!$B$36,INDEX(Ranks!$1:$1048576,$A169,DR$1))","v":""},{"$f":"IF($A169=\"N/A\",Ref!$B$36,INDEX(Ranks!$1:$1048576,$A169,DS$1))","v":""},{"$f":"IF($A169=\"N/A\",Ref!$B$36,INDEX(Ranks!$1:$1048576,$A169,DT$1))","v":""},{"$f":"IF($A169=\"N/A\",Ref!$B$36,INDEX(Ranks!$1:$1048576,$A169,DU$1))","v":""},{"$f":"IF($A169=\"N/A\",Ref!$B$36,INDEX(Ranks!$1:$1048576,$A169,DV$1))","v":""},{"$f":"IF($A169=\"N/A\",Ref!$B$36,INDEX(Ranks!$1:$1048576,$A169,DW$1))","v":""},{"$f":"IF($A169=\"N/A\",Ref!$B$36,INDEX(Ranks!$1:$1048576,$A169,DX$1))","v":""},{"$f":"IF($A169=\"N/A\",Ref!$B$36,INDEX(Ranks!$1:$1048576,$A169,DY$1))","v":""},{"$f":"IF($A169=\"N/A\",Ref!$B$36,INDEX(Ranks!$1:$1048576,$A169,DZ$1))","v":""},{"$f":"IF($A169=\"N/A\",Ref!$B$36,INDEX(Ranks!$1:$1048576,$A169,EA$1))","v":""},{"$f":"IF($A169=\"N/A\",Ref!$B$36,INDEX(Ranks!$1:$1048576,$A169,EB$1))","v":""}]
[{"$f":"IFERROR(MATCH('Portfolio Page'!L170,Ranks!L:L,0),\"N/A\")","v":"N/A"},null,{"$f":"IF($A170=\"N/A\",\"\",INDEX(Ranks!$1:$1048576,$A170,C$1))","v":""},{"$f":"IF($A170=\"N/A\",Ref!$B$36,INDEX(Ranks!$1:$1048576,$A170,D$1))","v":""},{"$f":"IF($A170=\"N/A\",Ref!$B$36,INDEX(Ranks!$1:$1048576,$A170,E$1))","v":""},{"$f":"IF($A170=\"N/A\",\"\",INDEX(Ranks!$1:$1048576,$A170,F$1))","v":""},{"$f":"IF($A170=\"N/A\",\"\",INDEX(Ranks!$1:$1048576,$A170,G$1))","v":""},{"$f":"IF($A170=\"N/A\",\"\",INDEX(Ranks!$1:$1048576,$A170,H$1))","v":""},{"$f":"IF($A170=\"N/A\",\"\",INDEX(Ranks!$1:$1048576,$A170,I$1))","v":""},{"$f":"IF($A170=\"N/A\",\"\",INDEX(Ranks!$1:$1048576,$A170,J$1))","v":""},{"$f":"IF($A170=\"N/A\",\"\",INDEX(Ranks!$1:$1048576,$A170,K$1))","v":""},null,{"$f":"IF($A170=\"N/A\",Ref!$B$36,INDEX(Ranks!$1:$1048576,$A170,M$1))","v":""},{"$f":"IF($A170=\"N/A\",Ref!$B$36,INDEX(Ranks!$1:$1048576,$A170,N$1))","v":""},{"$f":"IF($A170=\"N/A\",Ref!$B$36,INDEX(Ranks!$1:$1048576,$A170,O$1))","v":""},{"$f":"IF($A170=\"N/A\",Ref!$B$36,INDEX(Ranks!$1:$1048576,$A170,P$1))","v":""},{"$f":"IF($A170=\"N/A\",Ref!$B$36,INDEX(Ranks!$1:$1048576,$A170,Q$1))","v":""},{"$f":"IF($A170=\"N/A\",Ref!$B$36,INDEX(Ranks!$1:$1048576,$A170,R$1))","v":""},{"$f":"IF($A170=\"N/A\",Ref!$B$36,INDEX(Ranks!$1:$1048576,$A170,S$1))","v":""},{"$f":"IF($A170=\"N/A\",Ref!$B$36,INDEX(Ranks!$1:$1048576,$A170,T$1))","v":""},{"$f":"IF($A170=\"N/A\",Ref!$B$36,INDEX(Ranks!$1:$1048576,$A170,U$1))","v":""},{"$f":"IF($A170=\"N/A\",Ref!$B$36,INDEX(Ranks!$1:$1048576,$A170,V$1))","v":""},{"$f":"IF($A170=\"N/A\",Ref!$B$36,INDEX(Ranks!$1:$1048576,$A170,W$1))","v":""},{"$f":"IF($A170=\"N/A\",Ref!$B$36,INDEX(Ranks!$1:$1048576,$A170,X$1))","v":""},{"$f":"IF($A170=\"N/A\",Ref!$B$36,INDEX(Ranks!$1:$1048576,$A170,Y$1))","v":""},{"$f":"IF($A170=\"N/A\",Ref!$B$36,INDEX(Ranks!$1:$1048576,$A170,Z$1))","v":""},{"$f":"IF($A170=\"N/A\",Ref!$B$36,INDEX(Ranks!$1:$1048576,$A170,AA$1))","v":""},{"$f":"IF($A170=\"N/A\",Ref!$B$36,INDEX(Ranks!$1:$1048576,$A170,AB$1))","v":""},{"$f":"IF($A170=\"N/A\",Ref!$B$36,INDEX(Ranks!$1:$1048576,$A170,AC$1))","v":""},{"$f":"IF($A170=\"N/A\",Ref!$B$36,INDEX(Ranks!$1:$1048576,$A170,AD$1))","v":""},{"$f":"IF($A170=\"N/A\",Ref!$B$36,INDEX(Ranks!$1:$1048576,$A170,AE$1))","v":""},{"$f":"IF($A170=\"N/A\",Ref!$B$36,INDEX(Ranks!$1:$1048576,$A170,AF$1))","v":""},{"$f":"IF($A170=\"N/A\",Ref!$B$36,INDEX(Ranks!$1:$1048576,$A170,AG$1))","v":""},{"$f":"IF($A170=\"N/A\",Ref!$B$36,INDEX(Ranks!$1:$1048576,$A170,AH$1))","v":""},{"$f":"IF($A170=\"N/A\",Ref!$B$36,INDEX(Ranks!$1:$1048576,$A170,AI$1))","v":""},{"$f":"IF($A170=\"N/A\",Ref!$B$36,INDEX(Ranks!$1:$1048576,$A170,AJ$1))","v":""},{"$f":"IF($A170=\"N/A\",Ref!$B$36,INDEX(Ranks!$1:$1048576,$A170,AK$1))","v":""},{"$f":"IF($A170=\"N/A\",Ref!$B$36,INDEX(Ranks!$1:$1048576,$A170,AL$1))","v":""},{"$f":"IF($A170=\"N/A\",Ref!$B$36,INDEX(Ranks!$1:$1048576,$A170,AM$1))","v":""},{"$f":"IF($A170=\"N/A\",Ref!$B$36,INDEX(Ranks!$1:$1048576,$A170,AN$1))","v":""},{"$f":"IF($A170=\"N/A\",Ref!$B$36,INDEX(Ranks!$1:$1048576,$A170,AO$1))","v":""},{"$f":"IF($A170=\"N/A\",Ref!$B$36,INDEX(Ranks!$1:$1048576,$A170,AP$1))","v":""},{"$f":"IF($A170=\"N/A\",Ref!$B$36,INDEX(Ranks!$1:$1048576,$A170,AQ$1))","v":""},{"$f":"IF($A170=\"N/A\",Ref!$B$36,INDEX(Ranks!$1:$1048576,$A170,AR$1))","v":""},{"$f":"IF($A170=\"N/A\",Ref!$B$36,INDEX(Ranks!$1:$1048576,$A170,AS$1))","v":""},{"$f":"IF($A170=\"N/A\",Ref!$B$36,INDEX(Ranks!$1:$1048576,$A170,AT$1))","v":""},{"$f":"IF($A170=\"N/A\",Ref!$B$36,INDEX(Ranks!$1:$1048576,$A170,AU$1))","v":""},{"$f":"IF($A170=\"N/A\",Ref!$B$36,INDEX(Ranks!$1:$1048576,$A170,AV$1))","v":""},{"$f":"IF($A170=\"N/A\",Ref!$B$36,INDEX(Ranks!$1:$1048576,$A170,AW$1))","v":""},{"$f":"IF($A170=\"N/A\",Ref!$B$36,INDEX(Ranks!$1:$1048576,$A170,AX$1))","v":""},{"$f":"IF($A170=\"N/A\",Ref!$B$36,INDEX(Ranks!$1:$1048576,$A170,AY$1))","v":""},{"$f":"IF($A170=\"N/A\",Ref!$B$36,INDEX(Ranks!$1:$1048576,$A170,AZ$1))","v":""},{"$f":"IF($A170=\"N/A\",Ref!$B$36,INDEX(Ranks!$1:$1048576,$A170,BA$1))","v":""},{"$f":"IF($A170=\"N/A\",Ref!$B$36,INDEX(Ranks!$1:$1048576,$A170,BB$1))","v":""},{"$f":"IF($A170=\"N/A\",Ref!$B$36,INDEX(Ranks!$1:$1048576,$A170,BC$1))","v":""},{"$f":"IF($A170=\"N/A\",Ref!$B$36,INDEX(Ranks!$1:$1048576,$A170,BD$1))","v":""},{"$f":"IF($A170=\"N/A\",Ref!$B$36,INDEX(Ranks!$1:$1048576,$A170,BE$1))","v":""},{"$f":"IF($A170=\"N/A\",Ref!$B$36,INDEX(Ranks!$1:$1048576,$A170,BF$1))","v":""},{"$f":"IF($A170=\"N/A\",Ref!$B$36,INDEX(Ranks!$1:$1048576,$A170,BG$1))","v":""},{"$f":"IF($A170=\"N/A\",Ref!$B$36,INDEX(Ranks!$1:$1048576,$A170,BH$1))","v":""},{"$f":"IF($A170=\"N/A\",Ref!$B$36,INDEX(Ranks!$1:$1048576,$A170,BI$1))","v":""},{"$f":"IF($A170=\"N/A\",Ref!$B$36,INDEX(Ranks!$1:$1048576,$A170,BJ$1))","v":""},{"$f":"IF($A170=\"N/A\",Ref!$B$36,INDEX(Ranks!$1:$1048576,$A170,BK$1))","v":""},{"$f":"IF($A170=\"N/A\",Ref!$B$36,INDEX(Ranks!$1:$1048576,$A170,BL$1))","v":""},{"$f":"IF($A170=\"N/A\",Ref!$B$36,INDEX(Ranks!$1:$1048576,$A170,BM$1))","v":""},{"$f":"IF($A170=\"N/A\",Ref!$B$36,INDEX(Ranks!$1:$1048576,$A170,BN$1))","v":""},{"$f":"IF($A170=\"N/A\",Ref!$B$36,INDEX(Ranks!$1:$1048576,$A170,BO$1))","v":""},{"$f":"IF($A170=\"N/A\",Ref!$B$36,INDEX(Ranks!$1:$1048576,$A170,BP$1))","v":""},{"$f":"IF($A170=\"N/A\",Ref!$B$36,INDEX(Ranks!$1:$1048576,$A170,BQ$1))","v":""},{"$f":"IF($A170=\"N/A\",Ref!$B$36,INDEX(Ranks!$1:$1048576,$A170,BR$1))","v":""},{"$f":"IF($A170=\"N/A\",Ref!$B$36,INDEX(Ranks!$1:$1048576,$A170,BS$1))","v":""},{"$f":"IF($A170=\"N/A\",Ref!$B$36,INDEX(Ranks!$1:$1048576,$A170,BT$1))","v":""},{"$f":"IF($A170=\"N/A\",Ref!$B$36,INDEX(Ranks!$1:$1048576,$A170,BU$1))","v":""},{"$f":"IF($A170=\"N/A\",Ref!$B$36,INDEX(Ranks!$1:$1048576,$A170,BV$1))","v":""},{"$f":"IF($A170=\"N/A\",Ref!$B$36,INDEX(Ranks!$1:$1048576,$A170,BW$1))","v":""},{"$f":"IF($A170=\"N/A\",Ref!$B$36,INDEX(Ranks!$1:$1048576,$A170,BX$1))","v":""},{"$f":"IF($A170=\"N/A\",Ref!$B$36,INDEX(Ranks!$1:$1048576,$A170,BY$1))","v":""},{"$f":"IF($A170=\"N/A\",Ref!$B$36,INDEX(Ranks!$1:$1048576,$A170,BZ$1))","v":""},{"$f":"IF($A170=\"N/A\",Ref!$B$36,INDEX(Ranks!$1:$1048576,$A170,CA$1))","v":""},{"$f":"IF($A170=\"N/A\",Ref!$B$36,INDEX(Ranks!$1:$1048576,$A170,CB$1))","v":""},{"$f":"IF($A170=\"N/A\",Ref!$B$36,INDEX(Ranks!$1:$1048576,$A170,CC$1))","v":""},{"$f":"IF($A170=\"N/A\",Ref!$B$36,INDEX(Ranks!$1:$1048576,$A170,CD$1))","v":""},{"$f":"IF($A170=\"N/A\",Ref!$B$36,INDEX(Ranks!$1:$1048576,$A170,CE$1))","v":""},{"$f":"IF($A170=\"N/A\",Ref!$B$36,INDEX(Ranks!$1:$1048576,$A170,CF$1))","v":""},{"$f":"IF($A170=\"N/A\",Ref!$B$36,INDEX(Ranks!$1:$1048576,$A170,CG$1))","v":""},{"$f":"IF($A170=\"N/A\",Ref!$B$36,INDEX(Ranks!$1:$1048576,$A170,CH$1))","v":""},{"$f":"IF($A170=\"N/A\",Ref!$B$36,INDEX(Ranks!$1:$1048576,$A170,CI$1))","v":""},{"$f":"IF($A170=\"N/A\",Ref!$B$36,INDEX(Ranks!$1:$1048576,$A170,CJ$1))","v":""},{"$f":"IF($A170=\"N/A\",Ref!$B$36,INDEX(Ranks!$1:$1048576,$A170,CK$1))","v":""},{"$f":"IF($A170=\"N/A\",Ref!$B$36,INDEX(Ranks!$1:$1048576,$A170,CL$1))","v":""},{"$f":"IF($A170=\"N/A\",Ref!$B$36,INDEX(Ranks!$1:$1048576,$A170,CM$1))","v":""},{"$f":"IF($A170=\"N/A\",Ref!$B$36,INDEX(Ranks!$1:$1048576,$A170,CN$1))","v":""},{"$f":"IF($A170=\"N/A\",Ref!$B$36,INDEX(Ranks!$1:$1048576,$A170,CO$1))","v":""},{"$f":"IF($A170=\"N/A\",Ref!$B$36,INDEX(Ranks!$1:$1048576,$A170,CP$1))","v":""},{"$f":"IF($A170=\"N/A\",Ref!$B$36,INDEX(Ranks!$1:$1048576,$A170,CQ$1))","v":""},{"$f":"IF($A170=\"N/A\",Ref!$B$36,INDEX(Ranks!$1:$1048576,$A170,CR$1))","v":""},{"$f":"IF($A170=\"N/A\",Ref!$B$36,INDEX(Ranks!$1:$1048576,$A170,CS$1))","v":""},{"$f":"IF($A170=\"N/A\",Ref!$B$36,INDEX(Ranks!$1:$1048576,$A170,CT$1))","v":""},{"$f":"IF($A170=\"N/A\",Ref!$B$36,INDEX(Ranks!$1:$1048576,$A170,CU$1))","v":""},{"$f":"IF($A170=\"N/A\",Ref!$B$36,INDEX(Ranks!$1:$1048576,$A170,CV$1))","v":""},{"$f":"IF($A170=\"N/A\",Ref!$B$36,INDEX(Ranks!$1:$1048576,$A170,CW$1))","v":""},{"$f":"IF($A170=\"N/A\",Ref!$B$36,INDEX(Ranks!$1:$1048576,$A170,CX$1))","v":""},{"$f":"IF($A170=\"N/A\",Ref!$B$36,INDEX(Ranks!$1:$1048576,$A170,CY$1))","v":""},{"$f":"IF($A170=\"N/A\",Ref!$B$36,INDEX(Ranks!$1:$1048576,$A170,CZ$1))","v":""},{"$f":"IF($A170=\"N/A\",Ref!$B$36,INDEX(Ranks!$1:$1048576,$A170,DA$1))","v":""},{"$f":"IF($A170=\"N/A\",Ref!$B$36,INDEX(Ranks!$1:$1048576,$A170,DB$1))","v":""},{"$f":"IF($A170=\"N/A\",Ref!$B$36,INDEX(Ranks!$1:$1048576,$A170,DC$1))","v":""},{"$f":"IF($A170=\"N/A\",Ref!$B$36,INDEX(Ranks!$1:$1048576,$A170,DD$1))","v":""},{"$f":"IF($A170=\"N/A\",Ref!$B$36,INDEX(Ranks!$1:$1048576,$A170,DE$1))","v":""},{"$f":"IF($A170=\"N/A\",Ref!$B$36,INDEX(Ranks!$1:$1048576,$A170,DF$1))","v":""},{"$f":"IF($A170=\"N/A\",Ref!$B$36,INDEX(Ranks!$1:$1048576,$A170,DG$1))","v":""},{"$f":"IF($A170=\"N/A\",Ref!$B$36,INDEX(Ranks!$1:$1048576,$A170,DH$1))","v":""},{"$f":"IF($A170=\"N/A\",Ref!$B$36,INDEX(Ranks!$1:$1048576,$A170,DI$1))","v":""},{"$f":"IF($A170=\"N/A\",Ref!$B$36,INDEX(Ranks!$1:$1048576,$A170,DJ$1))","v":""},{"$f":"IF($A170=\"N/A\",Ref!$B$36,INDEX(Ranks!$1:$1048576,$A170,DK$1))","v":""},{"$f":"IF($A170=\"N/A\",Ref!$B$36,INDEX(Ranks!$1:$1048576,$A170,DL$1))","v":""},{"$f":"IF($A170=\"N/A\",Ref!$B$36,INDEX(Ranks!$1:$1048576,$A170,DM$1))","v":""},{"$f":"IF($A170=\"N/A\",Ref!$B$36,INDEX(Ranks!$1:$1048576,$A170,DN$1))","v":""},{"$f":"IF($A170=\"N/A\",Ref!$B$36,INDEX(Ranks!$1:$1048576,$A170,DO$1))","v":""},{"$f":"IF($A170=\"N/A\",Ref!$B$36,INDEX(Ranks!$1:$1048576,$A170,DP$1))","v":""},{"$f":"IF($A170=\"N/A\",Ref!$B$36,INDEX(Ranks!$1:$1048576,$A170,DQ$1))","v":""},{"$f":"IF($A170=\"N/A\",Ref!$B$36,INDEX(Ranks!$1:$1048576,$A170,DR$1))","v":""},{"$f":"IF($A170=\"N/A\",Ref!$B$36,INDEX(Ranks!$1:$1048576,$A170,DS$1))","v":""},{"$f":"IF($A170=\"N/A\",Ref!$B$36,INDEX(Ranks!$1:$1048576,$A170,DT$1))","v":""},{"$f":"IF($A170=\"N/A\",Ref!$B$36,INDEX(Ranks!$1:$1048576,$A170,DU$1))","v":""},{"$f":"IF($A170=\"N/A\",Ref!$B$36,INDEX(Ranks!$1:$1048576,$A170,DV$1))","v":""},{"$f":"IF($A170=\"N/A\",Ref!$B$36,INDEX(Ranks!$1:$1048576,$A170,DW$1))","v":""},{"$f":"IF($A170=\"N/A\",Ref!$B$36,INDEX(Ranks!$1:$1048576,$A170,DX$1))","v":""},{"$f":"IF($A170=\"N/A\",Ref!$B$36,INDEX(Ranks!$1:$1048576,$A170,DY$1))","v":""},{"$f":"IF($A170=\"N/A\",Ref!$B$36,INDEX(Ranks!$1:$1048576,$A170,DZ$1))","v":""},{"$f":"IF($A170=\"N/A\",Ref!$B$36,INDEX(Ranks!$1:$1048576,$A170,EA$1))","v":""},{"$f":"IF($A170=\"N/A\",Ref!$B$36,INDEX(Ranks!$1:$1048576,$A170,EB$1))","v":""}]
[{"$f":"IFERROR(MATCH('Portfolio Page'!L171,Ranks!L:L,0),\"N/A\")","v":"N/A"},null,{"$f":"IF($A171=\"N/A\",\"\",INDEX(Ranks!$1:$1048576,$A171,C$1))","v":""},{"$f":"IF($A171=\"N/A\",Ref!$B$36,INDEX(Ranks!$1:$1048576,$A171,D$1))","v":""},{"$f":"IF($A171=\"N/A\",Ref!$B$36,INDEX(Ranks!$1:$1048576,$A171,E$1))","v":""},{"$f":"IF($A171=\"N/A\",\"\",INDEX(Ranks!$1:$1048576,$A171,F$1))","v":""},{"$f":"IF($A171=\"N/A\",\"\",INDEX(Ranks!$1:$1048576,$A171,G$1))","v":""},{"$f":"IF($A171=\"N/A\",\"\",INDEX(Ranks!$1:$1048576,$A171,H$1))","v":""},{"$f":"IF($A171=\"N/A\",\"\",INDEX(Ranks!$1:$1048576,$A171,I$1))","v":""},{"$f":"IF($A171=\"N/A\",\"\",INDEX(Ranks!$1:$1048576,$A171,J$1))","v":""},{"$f":"IF($A171=\"N/A\",\"\",INDEX(Ranks!$1:$1048576,$A171,K$1))","v":""},null,{"$f":"IF($A171=\"N/A\",Ref!$B$36,INDEX(Ranks!$1:$1048576,$A171,M$1))","v":""},{"$f":"IF($A171=\"N/A\",Ref!$B$36,INDEX(Ranks!$1:$1048576,$A171,N$1))","v":""},{"$f":"IF($A171=\"N/A\",Ref!$B$36,INDEX(Ranks!$1:$1048576,$A171,O$1))","v":""},{"$f":"IF($A171=\"N/A\",Ref!$B$36,INDEX(Ranks!$1:$1048576,$A171,P$1))","v":""},{"$f":"IF($A171=\"N/A\",Ref!$B$36,INDEX(Ranks!$1:$1048576,$A171,Q$1))","v":""},{"$f":"IF($A171=\"N/A\",Ref!$B$36,INDEX(Ranks!$1:$1048576,$A171,R$1))","v":""},{"$f":"IF($A171=\"N/A\",Ref!$B$36,INDEX(Ranks!$1:$1048576,$A171,S$1))","v":""},{"$f":"IF($A171=\"N/A\",Ref!$B$36,INDEX(Ranks!$1:$1048576,$A171,T$1))","v":""},{"$f":"IF($A171=\"N/A\",Ref!$B$36,INDEX(Ranks!$1:$1048576,$A171,U$1))","v":""},{"$f":"IF($A171=\"N/A\",Ref!$B$36,INDEX(Ranks!$1:$1048576,$A171,V$1))","v":""},{"$f":"IF($A171=\"N/A\",Ref!$B$36,INDEX(Ranks!$1:$1048576,$A171,W$1))","v":""},{"$f":"IF($A171=\"N/A\",Ref!$B$36,INDEX(Ranks!$1:$1048576,$A171,X$1))","v":""},{"$f":"IF($A171=\"N/A\",Ref!$B$36,INDEX(Ranks!$1:$1048576,$A171,Y$1))","v":""},{"$f":"IF($A171=\"N/A\",Ref!$B$36,INDEX(Ranks!$1:$1048576,$A171,Z$1))","v":""},{"$f":"IF($A171=\"N/A\",Ref!$B$36,INDEX(Ranks!$1:$1048576,$A171,AA$1))","v":""},{"$f":"IF($A171=\"N/A\",Ref!$B$36,INDEX(Ranks!$1:$1048576,$A171,AB$1))","v":""},{"$f":"IF($A171=\"N/A\",Ref!$B$36,INDEX(Ranks!$1:$1048576,$A171,AC$1))","v":""},{"$f":"IF($A171=\"N/A\",Ref!$B$36,INDEX(Ranks!$1:$1048576,$A171,AD$1))","v":""},{"$f":"IF($A171=\"N/A\",Ref!$B$36,INDEX(Ranks!$1:$1048576,$A171,AE$1))","v":""},{"$f":"IF($A171=\"N/A\",Ref!$B$36,INDEX(Ranks!$1:$1048576,$A171,AF$1))","v":""},{"$f":"IF($A171=\"N/A\",Ref!$B$36,INDEX(Ranks!$1:$1048576,$A171,AG$1))","v":""},{"$f":"IF($A171=\"N/A\",Ref!$B$36,INDEX(Ranks!$1:$1048576,$A171,AH$1))","v":""},{"$f":"IF($A171=\"N/A\",Ref!$B$36,INDEX(Ranks!$1:$1048576,$A171,AI$1))","v":""},{"$f":"IF($A171=\"N/A\",Ref!$B$36,INDEX(Ranks!$1:$1048576,$A171,AJ$1))","v":""},{"$f":"IF($A171=\"N/A\",Ref!$B$36,INDEX(Ranks!$1:$1048576,$A171,AK$1))","v":""},{"$f":"IF($A171=\"N/A\",Ref!$B$36,INDEX(Ranks!$1:$1048576,$A171,AL$1))","v":""},{"$f":"IF($A171=\"N/A\",Ref!$B$36,INDEX(Ranks!$1:$1048576,$A171,AM$1))","v":""},{"$f":"IF($A171=\"N/A\",Ref!$B$36,INDEX(Ranks!$1:$1048576,$A171,AN$1))","v":""},{"$f":"IF($A171=\"N/A\",Ref!$B$36,INDEX(Ranks!$1:$1048576,$A171,AO$1))","v":""},{"$f":"IF($A171=\"N/A\",Ref!$B$36,INDEX(Ranks!$1:$1048576,$A171,AP$1))","v":""},{"$f":"IF($A171=\"N/A\",Ref!$B$36,INDEX(Ranks!$1:$1048576,$A171,AQ$1))","v":""},{"$f":"IF($A171=\"N/A\",Ref!$B$36,INDEX(Ranks!$1:$1048576,$A171,AR$1))","v":""},{"$f":"IF($A171=\"N/A\",Ref!$B$36,INDEX(Ranks!$1:$1048576,$A171,AS$1))","v":""},{"$f":"IF($A171=\"N/A\",Ref!$B$36,INDEX(Ranks!$1:$1048576,$A171,AT$1))","v":""},{"$f":"IF($A171=\"N/A\",Ref!$B$36,INDEX(Ranks!$1:$1048576,$A171,AU$1))","v":""},{"$f":"IF($A171=\"N/A\",Ref!$B$36,INDEX(Ranks!$1:$1048576,$A171,AV$1))","v":""},{"$f":"IF($A171=\"N/A\",Ref!$B$36,INDEX(Ranks!$1:$1048576,$A171,AW$1))","v":""},{"$f":"IF($A171=\"N/A\",Ref!$B$36,INDEX(Ranks!$1:$1048576,$A171,AX$1))","v":""},{"$f":"IF($A171=\"N/A\",Ref!$B$36,INDEX(Ranks!$1:$1048576,$A171,AY$1))","v":""},{"$f":"IF($A171=\"N/A\",Ref!$B$36,INDEX(Ranks!$1:$1048576,$A171,AZ$1))","v":""},{"$f":"IF($A171=\"N/A\",Ref!$B$36,INDEX(Ranks!$1:$1048576,$A171,BA$1))","v":""},{"$f":"IF($A171=\"N/A\",Ref!$B$36,INDEX(Ranks!$1:$1048576,$A171,BB$1))","v":""},{"$f":"IF($A171=\"N/A\",Ref!$B$36,INDEX(Ranks!$1:$1048576,$A171,BC$1))","v":""},{"$f":"IF($A171=\"N/A\",Ref!$B$36,INDEX(Ranks!$1:$1048576,$A171,BD$1))","v":""},{"$f":"IF($A171=\"N/A\",Ref!$B$36,INDEX(Ranks!$1:$1048576,$A171,BE$1))","v":""},{"$f":"IF($A171=\"N/A\",Ref!$B$36,INDEX(Ranks!$1:$1048576,$A171,BF$1))","v":""},{"$f":"IF($A171=\"N/A\",Ref!$B$36,INDEX(Ranks!$1:$1048576,$A171,BG$1))","v":""},{"$f":"IF($A171=\"N/A\",Ref!$B$36,INDEX(Ranks!$1:$1048576,$A171,BH$1))","v":""},{"$f":"IF($A171=\"N/A\",Ref!$B$36,INDEX(Ranks!$1:$1048576,$A171,BI$1))","v":""},{"$f":"IF($A171=\"N/A\",Ref!$B$36,INDEX(Ranks!$1:$1048576,$A171,BJ$1))","v":""},{"$f":"IF($A171=\"N/A\",Ref!$B$36,INDEX(Ranks!$1:$1048576,$A171,BK$1))","v":""},{"$f":"IF($A171=\"N/A\",Ref!$B$36,INDEX(Ranks!$1:$1048576,$A171,BL$1))","v":""},{"$f":"IF($A171=\"N/A\",Ref!$B$36,INDEX(Ranks!$1:$1048576,$A171,BM$1))","v":""},{"$f":"IF($A171=\"N/A\",Ref!$B$36,INDEX(Ranks!$1:$1048576,$A171,BN$1))","v":""},{"$f":"IF($A171=\"N/A\",Ref!$B$36,INDEX(Ranks!$1:$1048576,$A171,BO$1))","v":""},{"$f":"IF($A171=\"N/A\",Ref!$B$36,INDEX(Ranks!$1:$1048576,$A171,BP$1))","v":""},{"$f":"IF($A171=\"N/A\",Ref!$B$36,INDEX(Ranks!$1:$1048576,$A171,BQ$1))","v":""},{"$f":"IF($A171=\"N/A\",Ref!$B$36,INDEX(Ranks!$1:$1048576,$A171,BR$1))","v":""},{"$f":"IF($A171=\"N/A\",Ref!$B$36,INDEX(Ranks!$1:$1048576,$A171,BS$1))","v":""},{"$f":"IF($A171=\"N/A\",Ref!$B$36,INDEX(Ranks!$1:$1048576,$A171,BT$1))","v":""},{"$f":"IF($A171=\"N/A\",Ref!$B$36,INDEX(Ranks!$1:$1048576,$A171,BU$1))","v":""},{"$f":"IF($A171=\"N/A\",Ref!$B$36,INDEX(Ranks!$1:$1048576,$A171,BV$1))","v":""},{"$f":"IF($A171=\"N/A\",Ref!$B$36,INDEX(Ranks!$1:$1048576,$A171,BW$1))","v":""},{"$f":"IF($A171=\"N/A\",Ref!$B$36,INDEX(Ranks!$1:$1048576,$A171,BX$1))","v":""},{"$f":"IF($A171=\"N/A\",Ref!$B$36,INDEX(Ranks!$1:$1048576,$A171,BY$1))","v":""},{"$f":"IF($A171=\"N/A\",Ref!$B$36,INDEX(Ranks!$1:$1048576,$A171,BZ$1))","v":""},{"$f":"IF($A171=\"N/A\",Ref!$B$36,INDEX(Ranks!$1:$1048576,$A171,CA$1))","v":""},{"$f":"IF($A171=\"N/A\",Ref!$B$36,INDEX(Ranks!$1:$1048576,$A171,CB$1))","v":""},{"$f":"IF($A171=\"N/A\",Ref!$B$36,INDEX(Ranks!$1:$1048576,$A171,CC$1))","v":""},{"$f":"IF($A171=\"N/A\",Ref!$B$36,INDEX(Ranks!$1:$1048576,$A171,CD$1))","v":""},{"$f":"IF($A171=\"N/A\",Ref!$B$36,INDEX(Ranks!$1:$1048576,$A171,CE$1))","v":""},{"$f":"IF($A171=\"N/A\",Ref!$B$36,INDEX(Ranks!$1:$1048576,$A171,CF$1))","v":""},{"$f":"IF($A171=\"N/A\",Ref!$B$36,INDEX(Ranks!$1:$1048576,$A171,CG$1))","v":""},{"$f":"IF($A171=\"N/A\",Ref!$B$36,INDEX(Ranks!$1:$1048576,$A171,CH$1))","v":""},{"$f":"IF($A171=\"N/A\",Ref!$B$36,INDEX(Ranks!$1:$1048576,$A171,CI$1))","v":""},{"$f":"IF($A171=\"N/A\",Ref!$B$36,INDEX(Ranks!$1:$1048576,$A171,CJ$1))","v":""},{"$f":"IF($A171=\"N/A\",Ref!$B$36,INDEX(Ranks!$1:$1048576,$A171,CK$1))","v":""},{"$f":"IF($A171=\"N/A\",Ref!$B$36,INDEX(Ranks!$1:$1048576,$A171,CL$1))","v":""},{"$f":"IF($A171=\"N/A\",Ref!$B$36,INDEX(Ranks!$1:$1048576,$A171,CM$1))","v":""},{"$f":"IF($A171=\"N/A\",Ref!$B$36,INDEX(Ranks!$1:$1048576,$A171,CN$1))","v":""},{"$f":"IF($A171=\"N/A\",Ref!$B$36,INDEX(Ranks!$1:$1048576,$A171,CO$1))","v":""},{"$f":"IF($A171=\"N/A\",Ref!$B$36,INDEX(Ranks!$1:$1048576,$A171,CP$1))","v":""},{"$f":"IF($A171=\"N/A\",Ref!$B$36,INDEX(Ranks!$1:$1048576,$A171,CQ$1))","v":""},{"$f":"IF($A171=\"N/A\",Ref!$B$36,INDEX(Ranks!$1:$1048576,$A171,CR$1))","v":""},{"$f":"IF($A171=\"N/A\",Ref!$B$36,INDEX(Ranks!$1:$1048576,$A171,CS$1))","v":""},{"$f":"IF($A171=\"N/A\",Ref!$B$36,INDEX(Ranks!$1:$1048576,$A171,CT$1))","v":""},{"$f":"IF($A171=\"N/A\",Ref!$B$36,INDEX(Ranks!$1:$1048576,$A171,CU$1))","v":""},{"$f":"IF($A171=\"N/A\",Ref!$B$36,INDEX(Ranks!$1:$1048576,$A171,CV$1))","v":""},{"$f":"IF($A171=\"N/A\",Ref!$B$36,INDEX(Ranks!$1:$1048576,$A171,CW$1))","v":""},{"$f":"IF($A171=\"N/A\",Ref!$B$36,INDEX(Ranks!$1:$1048576,$A171,CX$1))","v":""},{"$f":"IF($A171=\"N/A\",Ref!$B$36,INDEX(Ranks!$1:$1048576,$A171,CY$1))","v":""},{"$f":"IF($A171=\"N/A\",Ref!$B$36,INDEX(Ranks!$1:$1048576,$A171,CZ$1))","v":""},{"$f":"IF($A171=\"N/A\",Ref!$B$36,INDEX(Ranks!$1:$1048576,$A171,DA$1))","v":""},{"$f":"IF($A171=\"N/A\",Ref!$B$36,INDEX(Ranks!$1:$1048576,$A171,DB$1))","v":""},{"$f":"IF($A171=\"N/A\",Ref!$B$36,INDEX(Ranks!$1:$1048576,$A171,DC$1))","v":""},{"$f":"IF($A171=\"N/A\",Ref!$B$36,INDEX(Ranks!$1:$1048576,$A171,DD$1))","v":""},{"$f":"IF($A171=\"N/A\",Ref!$B$36,INDEX(Ranks!$1:$1048576,$A171,DE$1))","v":""},{"$f":"IF($A171=\"N/A\",Ref!$B$36,INDEX(Ranks!$1:$1048576,$A171,DF$1))","v":""},{"$f":"IF($A171=\"N/A\",Ref!$B$36,INDEX(Ranks!$1:$1048576,$A171,DG$1))","v":""},{"$f":"IF($A171=\"N/A\",Ref!$B$36,INDEX(Ranks!$1:$1048576,$A171,DH$1))","v":""},{"$f":"IF($A171=\"N/A\",Ref!$B$36,INDEX(Ranks!$1:$1048576,$A171,DI$1))","v":""},{"$f":"IF($A171=\"N/A\",Ref!$B$36,INDEX(Ranks!$1:$1048576,$A171,DJ$1))","v":""},{"$f":"IF($A171=\"N/A\",Ref!$B$36,INDEX(Ranks!$1:$1048576,$A171,DK$1))","v":""},{"$f":"IF($A171=\"N/A\",Ref!$B$36,INDEX(Ranks!$1:$1048576,$A171,DL$1))","v":""},{"$f":"IF($A171=\"N/A\",Ref!$B$36,INDEX(Ranks!$1:$1048576,$A171,DM$1))","v":""},{"$f":"IF($A171=\"N/A\",Ref!$B$36,INDEX(Ranks!$1:$1048576,$A171,DN$1))","v":""},{"$f":"IF($A171=\"N/A\",Ref!$B$36,INDEX(Ranks!$1:$1048576,$A171,DO$1))","v":""},{"$f":"IF($A171=\"N/A\",Ref!$B$36,INDEX(Ranks!$1:$1048576,$A171,DP$1))","v":""},{"$f":"IF($A171=\"N/A\",Ref!$B$36,INDEX(Ranks!$1:$1048576,$A171,DQ$1))","v":""},{"$f":"IF($A171=\"N/A\",Ref!$B$36,INDEX(Ranks!$1:$1048576,$A171,DR$1))","v":""},{"$f":"IF($A171=\"N/A\",Ref!$B$36,INDEX(Ranks!$1:$1048576,$A171,DS$1))","v":""},{"$f":"IF($A171=\"N/A\",Ref!$B$36,INDEX(Ranks!$1:$1048576,$A171,DT$1))","v":""},{"$f":"IF($A171=\"N/A\",Ref!$B$36,INDEX(Ranks!$1:$1048576,$A171,DU$1))","v":""},{"$f":"IF($A171=\"N/A\",Ref!$B$36,INDEX(Ranks!$1:$1048576,$A171,DV$1))","v":""},{"$f":"IF($A171=\"N/A\",Ref!$B$36,INDEX(Ranks!$1:$1048576,$A171,DW$1))","v":""},{"$f":"IF($A171=\"N/A\",Ref!$B$36,INDEX(Ranks!$1:$1048576,$A171,DX$1))","v":""},{"$f":"IF($A171=\"N/A\",Ref!$B$36,INDEX(Ranks!$1:$1048576,$A171,DY$1))","v":""},{"$f":"IF($A171=\"N/A\",Ref!$B$36,INDEX(Ranks!$1:$1048576,$A171,DZ$1))","v":""},{"$f":"IF($A171=\"N/A\",Ref!$B$36,INDEX(Ranks!$1:$1048576,$A171,EA$1))","v":""},{"$f":"IF($A171=\"N/A\",Ref!$B$36,INDEX(Ranks!$1:$1048576,$A171,EB$1))","v":""}]
[{"$f":"IFERROR(MATCH('Portfolio Page'!L172,Ranks!L:L,0),\"N/A\")","v":"N/A"},null,{"$f":"IF($A172=\"N/A\",\"\",INDEX(Ranks!$1:$1048576,$A172,C$1))","v":""},{"$f":"IF($A172=\"N/A\",Ref!$B$36,INDEX(Ranks!$1:$1048576,$A172,D$1))","v":""},{"$f":"IF($A172=\"N/A\",Ref!$B$36,INDEX(Ranks!$1:$1048576,$A172,E$1))","v":""},{"$f":"IF($A172=\"N/A\",\"\",INDEX(Ranks!$1:$1048576,$A172,F$1))","v":""},{"$f":"IF($A172=\"N/A\",\"\",INDEX(Ranks!$1:$1048576,$A172,G$1))","v":""},{"$f":"IF($A172=\"N/A\",\"\",INDEX(Ranks!$1:$1048576,$A172,H$1))","v":""},{"$f":"IF($A172=\"N/A\",\"\",INDEX(Ranks!$1:$1048576,$A172,I$1))","v":""},{"$f":"IF($A172=\"N/A\",\"\",INDEX(Ranks!$1:$1048576,$A172,J$1))","v":""},{"$f":"IF($A172=\"N/A\",\"\",INDEX(Ranks!$1:$1048576,$A172,K$1))","v":""},null,{"$f":"IF($A172=\"N/A\",Ref!$B$36,INDEX(Ranks!$1:$1048576,$A172,M$1))","v":""},{"$f":"IF($A172=\"N/A\",Ref!$B$36,INDEX(Ranks!$1:$1048576,$A172,N$1))","v":""},{"$f":"IF($A172=\"N/A\",Ref!$B$36,INDEX(Ranks!$1:$1048576,$A172,O$1))","v":""},{"$f":"IF($A172=\"N/A\",Ref!$B$36,INDEX(Ranks!$1:$1048576,$A172,P$1))","v":""},{"$f":"IF($A172=\"N/A\",Ref!$B$36,INDEX(Ranks!$1:$1048576,$A172,Q$1))","v":""},{"$f":"IF($A172=\"N/A\",Ref!$B$36,INDEX(Ranks!$1:$1048576,$A172,R$1))","v":""},{"$f":"IF($A172=\"N/A\",Ref!$B$36,INDEX(Ranks!$1:$1048576,$A172,S$1))","v":""},{"$f":"IF($A172=\"N/A\",Ref!$B$36,INDEX(Ranks!$1:$1048576,$A172,T$1))","v":""},{"$f":"IF($A172=\"N/A\",Ref!$B$36,INDEX(Ranks!$1:$1048576,$A172,U$1))","v":""},{"$f":"IF($A172=\"N/A\",Ref!$B$36,INDEX(Ranks!$1:$1048576,$A172,V$1))","v":""},{"$f":"IF($A172=\"N/A\",Ref!$B$36,INDEX(Ranks!$1:$1048576,$A172,W$1))","v":""},{"$f":"IF($A172=\"N/A\",Ref!$B$36,INDEX(Ranks!$1:$1048576,$A172,X$1))","v":""},{"$f":"IF($A172=\"N/A\",Ref!$B$36,INDEX(Ranks!$1:$1048576,$A172,Y$1))","v":""},{"$f":"IF($A172=\"N/A\",Ref!$B$36,INDEX(Ranks!$1:$1048576,$A172,Z$1))","v":""},{"$f":"IF($A172=\"N/A\",Ref!$B$36,INDEX(Ranks!$1:$1048576,$A172,AA$1))","v":""},{"$f":"IF($A172=\"N/A\",Ref!$B$36,INDEX(Ranks!$1:$1048576,$A172,AB$1))","v":""},{"$f":"IF($A172=\"N/A\",Ref!$B$36,INDEX(Ranks!$1:$1048576,$A172,AC$1))","v":""},{"$f":"IF($A172=\"N/A\",Ref!$B$36,INDEX(Ranks!$1:$1048576,$A172,AD$1))","v":""},{"$f":"IF($A172=\"N/A\",Ref!$B$36,INDEX(Ranks!$1:$1048576,$A172,AE$1))","v":""},{"$f":"IF($A172=\"N/A\",Ref!$B$36,INDEX(Ranks!$1:$1048576,$A172,AF$1))","v":""},{"$f":"IF($A172=\"N/A\",Ref!$B$36,INDEX(Ranks!$1:$1048576,$A172,AG$1))","v":""},{"$f":"IF($A172=\"N/A\",Ref!$B$36,INDEX(Ranks!$1:$1048576,$A172,AH$1))","v":""},{"$f":"IF($A172=\"N/A\",Ref!$B$36,INDEX(Ranks!$1:$1048576,$A172,AI$1))","v":""},{"$f":"IF($A172=\"N/A\",Ref!$B$36,INDEX(Ranks!$1:$1048576,$A172,AJ$1))","v":""},{"$f":"IF($A172=\"N/A\",Ref!$B$36,INDEX(Ranks!$1:$1048576,$A172,AK$1))","v":""},{"$f":"IF($A172=\"N/A\",Ref!$B$36,INDEX(Ranks!$1:$1048576,$A172,AL$1))","v":""},{"$f":"IF($A172=\"N/A\",Ref!$B$36,INDEX(Ranks!$1:$1048576,$A172,AM$1))","v":""},{"$f":"IF($A172=\"N/A\",Ref!$B$36,INDEX(Ranks!$1:$1048576,$A172,AN$1))","v":""},{"$f":"IF($A172=\"N/A\",Ref!$B$36,INDEX(Ranks!$1:$1048576,$A172,AO$1))","v":""},{"$f":"IF($A172=\"N/A\",Ref!$B$36,INDEX(Ranks!$1:$1048576,$A172,AP$1))","v":""},{"$f":"IF($A172=\"N/A\",Ref!$B$36,INDEX(Ranks!$1:$1048576,$A172,AQ$1))","v":""},{"$f":"IF($A172=\"N/A\",Ref!$B$36,INDEX(Ranks!$1:$1048576,$A172,AR$1))","v":""},{"$f":"IF($A172=\"N/A\",Ref!$B$36,INDEX(Ranks!$1:$1048576,$A172,AS$1))","v":""},{"$f":"IF($A172=\"N/A\",Ref!$B$36,INDEX(Ranks!$1:$1048576,$A172,AT$1))","v":""},{"$f":"IF($A172=\"N/A\",Ref!$B$36,INDEX(Ranks!$1:$1048576,$A172,AU$1))","v":""},{"$f":"IF($A172=\"N/A\",Ref!$B$36,INDEX(Ranks!$1:$1048576,$A172,AV$1))","v":""},{"$f":"IF($A172=\"N/A\",Ref!$B$36,INDEX(Ranks!$1:$1048576,$A172,AW$1))","v":""},{"$f":"IF($A172=\"N/A\",Ref!$B$36,INDEX(Ranks!$1:$1048576,$A172,AX$1))","v":""},{"$f":"IF($A172=\"N/A\",Ref!$B$36,INDEX(Ranks!$1:$1048576,$A172,AY$1))","v":""},{"$f":"IF($A172=\"N/A\",Ref!$B$36,INDEX(Ranks!$1:$1048576,$A172,AZ$1))","v":""},{"$f":"IF($A172=\"N/A\",Ref!$B$36,INDEX(Ranks!$1:$1048576,$A172,BA$1))","v":""},{"$f":"IF($A172=\"N/A\",Ref!$B$36,INDEX(Ranks!$1:$1048576,$A172,BB$1))","v":""},{"$f":"IF($A172=\"N/A\",Ref!$B$36,INDEX(Ranks!$1:$1048576,$A172,BC$1))","v":""},{"$f":"IF($A172=\"N/A\",Ref!$B$36,INDEX(Ranks!$1:$1048576,$A172,BD$1))","v":""},{"$f":"IF($A172=\"N/A\",Ref!$B$36,INDEX(Ranks!$1:$1048576,$A172,BE$1))","v":""},{"$f":"IF($A172=\"N/A\",Ref!$B$36,INDEX(Ranks!$1:$1048576,$A172,BF$1))","v":""},{"$f":"IF($A172=\"N/A\",Ref!$B$36,INDEX(Ranks!$1:$1048576,$A172,BG$1))","v":""},{"$f":"IF($A172=\"N/A\",Ref!$B$36,INDEX(Ranks!$1:$1048576,$A172,BH$1))","v":""},{"$f":"IF($A172=\"N/A\",Ref!$B$36,INDEX(Ranks!$1:$1048576,$A172,BI$1))","v":""},{"$f":"IF($A172=\"N/A\",Ref!$B$36,INDEX(Ranks!$1:$1048576,$A172,BJ$1))","v":""},{"$f":"IF($A172=\"N/A\",Ref!$B$36,INDEX(Ranks!$1:$1048576,$A172,BK$1))","v":""},{"$f":"IF($A172=\"N/A\",Ref!$B$36,INDEX(Ranks!$1:$1048576,$A172,BL$1))","v":""},{"$f":"IF($A172=\"N/A\",Ref!$B$36,INDEX(Ranks!$1:$1048576,$A172,BM$1))","v":""},{"$f":"IF($A172=\"N/A\",Ref!$B$36,INDEX(Ranks!$1:$1048576,$A172,BN$1))","v":""},{"$f":"IF($A172=\"N/A\",Ref!$B$36,INDEX(Ranks!$1:$1048576,$A172,BO$1))","v":""},{"$f":"IF($A172=\"N/A\",Ref!$B$36,INDEX(Ranks!$1:$1048576,$A172,BP$1))","v":""},{"$f":"IF($A172=\"N/A\",Ref!$B$36,INDEX(Ranks!$1:$1048576,$A172,BQ$1))","v":""},{"$f":"IF($A172=\"N/A\",Ref!$B$36,INDEX(Ranks!$1:$1048576,$A172,BR$1))","v":""},{"$f":"IF($A172=\"N/A\",Ref!$B$36,INDEX(Ranks!$1:$1048576,$A172,BS$1))","v":""},{"$f":"IF($A172=\"N/A\",Ref!$B$36,INDEX(Ranks!$1:$1048576,$A172,BT$1))","v":""},{"$f":"IF($A172=\"N/A\",Ref!$B$36,INDEX(Ranks!$1:$1048576,$A172,BU$1))","v":""},{"$f":"IF($A172=\"N/A\",Ref!$B$36,INDEX(Ranks!$1:$1048576,$A172,BV$1))","v":""},{"$f":"IF($A172=\"N/A\",Ref!$B$36,INDEX(Ranks!$1:$1048576,$A172,BW$1))","v":""},{"$f":"IF($A172=\"N/A\",Ref!$B$36,INDEX(Ranks!$1:$1048576,$A172,BX$1))","v":""},{"$f":"IF($A172=\"N/A\",Ref!$B$36,INDEX(Ranks!$1:$1048576,$A172,BY$1))","v":""},{"$f":"IF($A172=\"N/A\",Ref!$B$36,INDEX(Ranks!$1:$1048576,$A172,BZ$1))","v":""},{"$f":"IF($A172=\"N/A\",Ref!$B$36,INDEX(Ranks!$1:$1048576,$A172,CA$1))","v":""},{"$f":"IF($A172=\"N/A\",Ref!$B$36,INDEX(Ranks!$1:$1048576,$A172,CB$1))","v":""},{"$f":"IF($A172=\"N/A\",Ref!$B$36,INDEX(Ranks!$1:$1048576,$A172,CC$1))","v":""},{"$f":"IF($A172=\"N/A\",Ref!$B$36,INDEX(Ranks!$1:$1048576,$A172,CD$1))","v":""},{"$f":"IF($A172=\"N/A\",Ref!$B$36,INDEX(Ranks!$1:$1048576,$A172,CE$1))","v":""},{"$f":"IF($A172=\"N/A\",Ref!$B$36,INDEX(Ranks!$1:$1048576,$A172,CF$1))","v":""},{"$f":"IF($A172=\"N/A\",Ref!$B$36,INDEX(Ranks!$1:$1048576,$A172,CG$1))","v":""},{"$f":"IF($A172=\"N/A\",Ref!$B$36,INDEX(Ranks!$1:$1048576,$A172,CH$1))","v":""},{"$f":"IF($A172=\"N/A\",Ref!$B$36,INDEX(Ranks!$1:$1048576,$A172,CI$1))","v":""},{"$f":"IF($A172=\"N/A\",Ref!$B$36,INDEX(Ranks!$1:$1048576,$A172,CJ$1))","v":""},{"$f":"IF($A172=\"N/A\",Ref!$B$36,INDEX(Ranks!$1:$1048576,$A172,CK$1))","v":""},{"$f":"IF($A172=\"N/A\",Ref!$B$36,INDEX(Ranks!$1:$1048576,$A172,CL$1))","v":""},{"$f":"IF($A172=\"N/A\",Ref!$B$36,INDEX(Ranks!$1:$1048576,$A172,CM$1))","v":""},{"$f":"IF($A172=\"N/A\",Ref!$B$36,INDEX(Ranks!$1:$1048576,$A172,CN$1))","v":""},{"$f":"IF($A172=\"N/A\",Ref!$B$36,INDEX(Ranks!$1:$1048576,$A172,CO$1))","v":""},{"$f":"IF($A172=\"N/A\",Ref!$B$36,INDEX(Ranks!$1:$1048576,$A172,CP$1))","v":""},{"$f":"IF($A172=\"N/A\",Ref!$B$36,INDEX(Ranks!$1:$1048576,$A172,CQ$1))","v":""},{"$f":"IF($A172=\"N/A\",Ref!$B$36,INDEX(Ranks!$1:$1048576,$A172,CR$1))","v":""},{"$f":"IF($A172=\"N/A\",Ref!$B$36,INDEX(Ranks!$1:$1048576,$A172,CS$1))","v":""},{"$f":"IF($A172=\"N/A\",Ref!$B$36,INDEX(Ranks!$1:$1048576,$A172,CT$1))","v":""},{"$f":"IF($A172=\"N/A\",Ref!$B$36,INDEX(Ranks!$1:$1048576,$A172,CU$1))","v":""},{"$f":"IF($A172=\"N/A\",Ref!$B$36,INDEX(Ranks!$1:$1048576,$A172,CV$1))","v":""},{"$f":"IF($A172=\"N/A\",Ref!$B$36,INDEX(Ranks!$1:$1048576,$A172,CW$1))","v":""},{"$f":"IF($A172=\"N/A\",Ref!$B$36,INDEX(Ranks!$1:$1048576,$A172,CX$1))","v":""},{"$f":"IF($A172=\"N/A\",Ref!$B$36,INDEX(Ranks!$1:$1048576,$A172,CY$1))","v":""},{"$f":"IF($A172=\"N/A\",Ref!$B$36,INDEX(Ranks!$1:$1048576,$A172,CZ$1))","v":""},{"$f":"IF($A172=\"N/A\",Ref!$B$36,INDEX(Ranks!$1:$1048576,$A172,DA$1))","v":""},{"$f":"IF($A172=\"N/A\",Ref!$B$36,INDEX(Ranks!$1:$1048576,$A172,DB$1))","v":""},{"$f":"IF($A172=\"N/A\",Ref!$B$36,INDEX(Ranks!$1:$1048576,$A172,DC$1))","v":""},{"$f":"IF($A172=\"N/A\",Ref!$B$36,INDEX(Ranks!$1:$1048576,$A172,DD$1))","v":""},{"$f":"IF($A172=\"N/A\",Ref!$B$36,INDEX(Ranks!$1:$1048576,$A172,DE$1))","v":""},{"$f":"IF($A172=\"N/A\",Ref!$B$36,INDEX(Ranks!$1:$1048576,$A172,DF$1))","v":""},{"$f":"IF($A172=\"N/A\",Ref!$B$36,INDEX(Ranks!$1:$1048576,$A172,DG$1))","v":""},{"$f":"IF($A172=\"N/A\",Ref!$B$36,INDEX(Ranks!$1:$1048576,$A172,DH$1))","v":""},{"$f":"IF($A172=\"N/A\",Ref!$B$36,INDEX(Ranks!$1:$1048576,$A172,DI$1))","v":""},{"$f":"IF($A172=\"N/A\",Ref!$B$36,INDEX(Ranks!$1:$1048576,$A172,DJ$1))","v":""},{"$f":"IF($A172=\"N/A\",Ref!$B$36,INDEX(Ranks!$1:$1048576,$A172,DK$1))","v":""},{"$f":"IF($A172=\"N/A\",Ref!$B$36,INDEX(Ranks!$1:$1048576,$A172,DL$1))","v":""},{"$f":"IF($A172=\"N/A\",Ref!$B$36,INDEX(Ranks!$1:$1048576,$A172,DM$1))","v":""},{"$f":"IF($A172=\"N/A\",Ref!$B$36,INDEX(Ranks!$1:$1048576,$A172,DN$1))","v":""},{"$f":"IF($A172=\"N/A\",Ref!$B$36,INDEX(Ranks!$1:$1048576,$A172,DO$1))","v":""},{"$f":"IF($A172=\"N/A\",Ref!$B$36,INDEX(Ranks!$1:$1048576,$A172,DP$1))","v":""},{"$f":"IF($A172=\"N/A\",Ref!$B$36,INDEX(Ranks!$1:$1048576,$A172,DQ$1))","v":""},{"$f":"IF($A172=\"N/A\",Ref!$B$36,INDEX(Ranks!$1:$1048576,$A172,DR$1))","v":""},{"$f":"IF($A172=\"N/A\",Ref!$B$36,INDEX(Ranks!$1:$1048576,$A172,DS$1))","v":""},{"$f":"IF($A172=\"N/A\",Ref!$B$36,INDEX(Ranks!$1:$1048576,$A172,DT$1))","v":""},{"$f":"IF($A172=\"N/A\",Ref!$B$36,INDEX(Ranks!$1:$1048576,$A172,DU$1))","v":""},{"$f":"IF($A172=\"N/A\",Ref!$B$36,INDEX(Ranks!$1:$1048576,$A172,DV$1))","v":""},{"$f":"IF($A172=\"N/A\",Ref!$B$36,INDEX(Ranks!$1:$1048576,$A172,DW$1))","v":""},{"$f":"IF($A172=\"N/A\",Ref!$B$36,INDEX(Ranks!$1:$1048576,$A172,DX$1))","v":""},{"$f":"IF($A172=\"N/A\",Ref!$B$36,INDEX(Ranks!$1:$1048576,$A172,DY$1))","v":""},{"$f":"IF($A172=\"N/A\",Ref!$B$36,INDEX(Ranks!$1:$1048576,$A172,DZ$1))","v":""},{"$f":"IF($A172=\"N/A\",Ref!$B$36,INDEX(Ranks!$1:$1048576,$A172,EA$1))","v":""},{"$f":"IF($A172=\"N/A\",Ref!$B$36,INDEX(Ranks!$1:$1048576,$A172,EB$1))","v":""}]
[{"$f":"IFERROR(MATCH('Portfolio Page'!L173,Ranks!L:L,0),\"N/A\")","v":"N/A"},null,{"$f":"IF($A173=\"N/A\",\"\",INDEX(Ranks!$1:$1048576,$A173,C$1))","v":""},{"$f":"IF($A173=\"N/A\",Ref!$B$36,INDEX(Ranks!$1:$1048576,$A173,D$1))","v":""},{"$f":"IF($A173=\"N/A\",Ref!$B$36,INDEX(Ranks!$1:$1048576,$A173,E$1))","v":""},{"$f":"IF($A173=\"N/A\",\"\",INDEX(Ranks!$1:$1048576,$A173,F$1))","v":""},{"$f":"IF($A173=\"N/A\",\"\",INDEX(Ranks!$1:$1048576,$A173,G$1))","v":""},{"$f":"IF($A173=\"N/A\",\"\",INDEX(Ranks!$1:$1048576,$A173,H$1))","v":""},{"$f":"IF($A173=\"N/A\",\"\",INDEX(Ranks!$1:$1048576,$A173,I$1))","v":""},{"$f":"IF($A173=\"N/A\",\"\",INDEX(Ranks!$1:$1048576,$A173,J$1))","v":""},{"$f":"IF($A173=\"N/A\",\"\",INDEX(Ranks!$1:$1048576,$A173,K$1))","v":""},null,{"$f":"IF($A173=\"N/A\",Ref!$B$36,INDEX(Ranks!$1:$1048576,$A173,M$1))","v":""},{"$f":"IF($A173=\"N/A\",Ref!$B$36,INDEX(Ranks!$1:$1048576,$A173,N$1))","v":""},{"$f":"IF($A173=\"N/A\",Ref!$B$36,INDEX(Ranks!$1:$1048576,$A173,O$1))","v":""},{"$f":"IF($A173=\"N/A\",Ref!$B$36,INDEX(Ranks!$1:$1048576,$A173,P$1))","v":""},{"$f":"IF($A173=\"N/A\",Ref!$B$36,INDEX(Ranks!$1:$1048576,$A173,Q$1))","v":""},{"$f":"IF($A173=\"N/A\",Ref!$B$36,INDEX(Ranks!$1:$1048576,$A173,R$1))","v":""},{"$f":"IF($A173=\"N/A\",Ref!$B$36,INDEX(Ranks!$1:$1048576,$A173,S$1))","v":""},{"$f":"IF($A173=\"N/A\",Ref!$B$36,INDEX(Ranks!$1:$1048576,$A173,T$1))","v":""},{"$f":"IF($A173=\"N/A\",Ref!$B$36,INDEX(Ranks!$1:$1048576,$A173,U$1))","v":""},{"$f":"IF($A173=\"N/A\",Ref!$B$36,INDEX(Ranks!$1:$1048576,$A173,V$1))","v":""},{"$f":"IF($A173=\"N/A\",Ref!$B$36,INDEX(Ranks!$1:$1048576,$A173,W$1))","v":""},{"$f":"IF($A173=\"N/A\",Ref!$B$36,INDEX(Ranks!$1:$1048576,$A173,X$1))","v":""},{"$f":"IF($A173=\"N/A\",Ref!$B$36,INDEX(Ranks!$1:$1048576,$A173,Y$1))","v":""},{"$f":"IF($A173=\"N/A\",Ref!$B$36,INDEX(Ranks!$1:$1048576,$A173,Z$1))","v":""},{"$f":"IF($A173=\"N/A\",Ref!$B$36,INDEX(Ranks!$1:$1048576,$A173,AA$1))","v":""},{"$f":"IF($A173=\"N/A\",Ref!$B$36,INDEX(Ranks!$1:$1048576,$A173,AB$1))","v":""},{"$f":"IF($A173=\"N/A\",Ref!$B$36,INDEX(Ranks!$1:$1048576,$A173,AC$1))","v":""},{"$f":"IF($A173=\"N/A\",Ref!$B$36,INDEX(Ranks!$1:$1048576,$A173,AD$1))","v":""},{"$f":"IF($A173=\"N/A\",Ref!$B$36,INDEX(Ranks!$1:$1048576,$A173,AE$1))","v":""},{"$f":"IF($A173=\"N/A\",Ref!$B$36,INDEX(Ranks!$1:$1048576,$A173,AF$1))","v":""},{"$f":"IF($A173=\"N/A\",Ref!$B$36,INDEX(Ranks!$1:$1048576,$A173,AG$1))","v":""},{"$f":"IF($A173=\"N/A\",Ref!$B$36,INDEX(Ranks!$1:$1048576,$A173,AH$1))","v":""},{"$f":"IF($A173=\"N/A\",Ref!$B$36,INDEX(Ranks!$1:$1048576,$A173,AI$1))","v":""},{"$f":"IF($A173=\"N/A\",Ref!$B$36,INDEX(Ranks!$1:$1048576,$A173,AJ$1))","v":""},{"$f":"IF($A173=\"N/A\",Ref!$B$36,INDEX(Ranks!$1:$1048576,$A173,AK$1))","v":""},{"$f":"IF($A173=\"N/A\",Ref!$B$36,INDEX(Ranks!$1:$1048576,$A173,AL$1))","v":""},{"$f":"IF($A173=\"N/A\",Ref!$B$36,INDEX(Ranks!$1:$1048576,$A173,AM$1))","v":""},{"$f":"IF($A173=\"N/A\",Ref!$B$36,INDEX(Ranks!$1:$1048576,$A173,AN$1))","v":""},{"$f":"IF($A173=\"N/A\",Ref!$B$36,INDEX(Ranks!$1:$1048576,$A173,AO$1))","v":""},{"$f":"IF($A173=\"N/A\",Ref!$B$36,INDEX(Ranks!$1:$1048576,$A173,AP$1))","v":""},{"$f":"IF($A173=\"N/A\",Ref!$B$36,INDEX(Ranks!$1:$1048576,$A173,AQ$1))","v":""},{"$f":"IF($A173=\"N/A\",Ref!$B$36,INDEX(Ranks!$1:$1048576,$A173,AR$1))","v":""},{"$f":"IF($A173=\"N/A\",Ref!$B$36,INDEX(Ranks!$1:$1048576,$A173,AS$1))","v":""},{"$f":"IF($A173=\"N/A\",Ref!$B$36,INDEX(Ranks!$1:$1048576,$A173,AT$1))","v":""},{"$f":"IF($A173=\"N/A\",Ref!$B$36,INDEX(Ranks!$1:$1048576,$A173,AU$1))","v":""},{"$f":"IF($A173=\"N/A\",Ref!$B$36,INDEX(Ranks!$1:$1048576,$A173,AV$1))","v":""},{"$f":"IF($A173=\"N/A\",Ref!$B$36,INDEX(Ranks!$1:$1048576,$A173,AW$1))","v":""},{"$f":"IF($A173=\"N/A\",Ref!$B$36,INDEX(Ranks!$1:$1048576,$A173,AX$1))","v":""},{"$f":"IF($A173=\"N/A\",Ref!$B$36,INDEX(Ranks!$1:$1048576,$A173,AY$1))","v":""},{"$f":"IF($A173=\"N/A\",Ref!$B$36,INDEX(Ranks!$1:$1048576,$A173,AZ$1))","v":""},{"$f":"IF($A173=\"N/A\",Ref!$B$36,INDEX(Ranks!$1:$1048576,$A173,BA$1))","v":""},{"$f":"IF($A173=\"N/A\",Ref!$B$36,INDEX(Ranks!$1:$1048576,$A173,BB$1))","v":""},{"$f":"IF($A173=\"N/A\",Ref!$B$36,INDEX(Ranks!$1:$1048576,$A173,BC$1))","v":""},{"$f":"IF($A173=\"N/A\",Ref!$B$36,INDEX(Ranks!$1:$1048576,$A173,BD$1))","v":""},{"$f":"IF($A173=\"N/A\",Ref!$B$36,INDEX(Ranks!$1:$1048576,$A173,BE$1))","v":""},{"$f":"IF($A173=\"N/A\",Ref!$B$36,INDEX(Ranks!$1:$1048576,$A173,BF$1))","v":""},{"$f":"IF($A173=\"N/A\",Ref!$B$36,INDEX(Ranks!$1:$1048576,$A173,BG$1))","v":""},{"$f":"IF($A173=\"N/A\",Ref!$B$36,INDEX(Ranks!$1:$1048576,$A173,BH$1))","v":""},{"$f":"IF($A173=\"N/A\",Ref!$B$36,INDEX(Ranks!$1:$1048576,$A173,BI$1))","v":""},{"$f":"IF($A173=\"N/A\",Ref!$B$36,INDEX(Ranks!$1:$1048576,$A173,BJ$1))","v":""},{"$f":"IF($A173=\"N/A\",Ref!$B$36,INDEX(Ranks!$1:$1048576,$A173,BK$1))","v":""},{"$f":"IF($A173=\"N/A\",Ref!$B$36,INDEX(Ranks!$1:$1048576,$A173,BL$1))","v":""},{"$f":"IF($A173=\"N/A\",Ref!$B$36,INDEX(Ranks!$1:$1048576,$A173,BM$1))","v":""},{"$f":"IF($A173=\"N/A\",Ref!$B$36,INDEX(Ranks!$1:$1048576,$A173,BN$1))","v":""},{"$f":"IF($A173=\"N/A\",Ref!$B$36,INDEX(Ranks!$1:$1048576,$A173,BO$1))","v":""},{"$f":"IF($A173=\"N/A\",Ref!$B$36,INDEX(Ranks!$1:$1048576,$A173,BP$1))","v":""},{"$f":"IF($A173=\"N/A\",Ref!$B$36,INDEX(Ranks!$1:$1048576,$A173,BQ$1))","v":""},{"$f":"IF($A173=\"N/A\",Ref!$B$36,INDEX(Ranks!$1:$1048576,$A173,BR$1))","v":""},{"$f":"IF($A173=\"N/A\",Ref!$B$36,INDEX(Ranks!$1:$1048576,$A173,BS$1))","v":""},{"$f":"IF($A173=\"N/A\",Ref!$B$36,INDEX(Ranks!$1:$1048576,$A173,BT$1))","v":""},{"$f":"IF($A173=\"N/A\",Ref!$B$36,INDEX(Ranks!$1:$1048576,$A173,BU$1))","v":""},{"$f":"IF($A173=\"N/A\",Ref!$B$36,INDEX(Ranks!$1:$1048576,$A173,BV$1))","v":""},{"$f":"IF($A173=\"N/A\",Ref!$B$36,INDEX(Ranks!$1:$1048576,$A173,BW$1))","v":""},{"$f":"IF($A173=\"N/A\",Ref!$B$36,INDEX(Ranks!$1:$1048576,$A173,BX$1))","v":""},{"$f":"IF($A173=\"N/A\",Ref!$B$36,INDEX(Ranks!$1:$1048576,$A173,BY$1))","v":""},{"$f":"IF($A173=\"N/A\",Ref!$B$36,INDEX(Ranks!$1:$1048576,$A173,BZ$1))","v":""},{"$f":"IF($A173=\"N/A\",Ref!$B$36,INDEX(Ranks!$1:$1048576,$A173,CA$1))","v":""},{"$f":"IF($A173=\"N/A\",Ref!$B$36,INDEX(Ranks!$1:$1048576,$A173,CB$1))","v":""},{"$f":"IF($A173=\"N/A\",Ref!$B$36,INDEX(Ranks!$1:$1048576,$A173,CC$1))","v":""},{"$f":"IF($A173=\"N/A\",Ref!$B$36,INDEX(Ranks!$1:$1048576,$A173,CD$1))","v":""},{"$f":"IF($A173=\"N/A\",Ref!$B$36,INDEX(Ranks!$1:$1048576,$A173,CE$1))","v":""},{"$f":"IF($A173=\"N/A\",Ref!$B$36,INDEX(Ranks!$1:$1048576,$A173,CF$1))","v":""},{"$f":"IF($A173=\"N/A\",Ref!$B$36,INDEX(Ranks!$1:$1048576,$A173,CG$1))","v":""},{"$f":"IF($A173=\"N/A\",Ref!$B$36,INDEX(Ranks!$1:$1048576,$A173,CH$1))","v":""},{"$f":"IF($A173=\"N/A\",Ref!$B$36,INDEX(Ranks!$1:$1048576,$A173,CI$1))","v":""},{"$f":"IF($A173=\"N/A\",Ref!$B$36,INDEX(Ranks!$1:$1048576,$A173,CJ$1))","v":""},{"$f":"IF($A173=\"N/A\",Ref!$B$36,INDEX(Ranks!$1:$1048576,$A173,CK$1))","v":""},{"$f":"IF($A173=\"N/A\",Ref!$B$36,INDEX(Ranks!$1:$1048576,$A173,CL$1))","v":""},{"$f":"IF($A173=\"N/A\",Ref!$B$36,INDEX(Ranks!$1:$1048576,$A173,CM$1))","v":""},{"$f":"IF($A173=\"N/A\",Ref!$B$36,INDEX(Ranks!$1:$1048576,$A173,CN$1))","v":""},{"$f":"IF($A173=\"N/A\",Ref!$B$36,INDEX(Ranks!$1:$1048576,$A173,CO$1))","v":""},{"$f":"IF($A173=\"N/A\",Ref!$B$36,INDEX(Ranks!$1:$1048576,$A173,CP$1))","v":""},{"$f":"IF($A173=\"N/A\",Ref!$B$36,INDEX(Ranks!$1:$1048576,$A173,CQ$1))","v":""},{"$f":"IF($A173=\"N/A\",Ref!$B$36,INDEX(Ranks!$1:$1048576,$A173,CR$1))","v":""},{"$f":"IF($A173=\"N/A\",Ref!$B$36,INDEX(Ranks!$1:$1048576,$A173,CS$1))","v":""},{"$f":"IF($A173=\"N/A\",Ref!$B$36,INDEX(Ranks!$1:$1048576,$A173,CT$1))","v":""},{"$f":"IF($A173=\"N/A\",Ref!$B$36,INDEX(Ranks!$1:$1048576,$A173,CU$1))","v":""},{"$f":"IF($A173=\"N/A\",Ref!$B$36,INDEX(Ranks!$1:$1048576,$A173,CV$1))","v":""},{"$f":"IF($A173=\"N/A\",Ref!$B$36,INDEX(Ranks!$1:$1048576,$A173,CW$1))","v":""},{"$f":"IF($A173=\"N/A\",Ref!$B$36,INDEX(Ranks!$1:$1048576,$A173,CX$1))","v":""},{"$f":"IF($A173=\"N/A\",Ref!$B$36,INDEX(Ranks!$1:$1048576,$A173,CY$1))","v":""},{"$f":"IF($A173=\"N/A\",Ref!$B$36,INDEX(Ranks!$1:$1048576,$A173,CZ$1))","v":""},{"$f":"IF($A173=\"N/A\",Ref!$B$36,INDEX(Ranks!$1:$1048576,$A173,DA$1))","v":""},{"$f":"IF($A173=\"N/A\",Ref!$B$36,INDEX(Ranks!$1:$1048576,$A173,DB$1))","v":""},{"$f":"IF($A173=\"N/A\",Ref!$B$36,INDEX(Ranks!$1:$1048576,$A173,DC$1))","v":""},{"$f":"IF($A173=\"N/A\",Ref!$B$36,INDEX(Ranks!$1:$1048576,$A173,DD$1))","v":""},{"$f":"IF($A173=\"N/A\",Ref!$B$36,INDEX(Ranks!$1:$1048576,$A173,DE$1))","v":""},{"$f":"IF($A173=\"N/A\",Ref!$B$36,INDEX(Ranks!$1:$1048576,$A173,DF$1))","v":""},{"$f":"IF($A173=\"N/A\",Ref!$B$36,INDEX(Ranks!$1:$1048576,$A173,DG$1))","v":""},{"$f":"IF($A173=\"N/A\",Ref!$B$36,INDEX(Ranks!$1:$1048576,$A173,DH$1))","v":""},{"$f":"IF($A173=\"N/A\",Ref!$B$36,INDEX(Ranks!$1:$1048576,$A173,DI$1))","v":""},{"$f":"IF($A173=\"N/A\",Ref!$B$36,INDEX(Ranks!$1:$1048576,$A173,DJ$1))","v":""},{"$f":"IF($A173=\"N/A\",Ref!$B$36,INDEX(Ranks!$1:$1048576,$A173,DK$1))","v":""},{"$f":"IF($A173=\"N/A\",Ref!$B$36,INDEX(Ranks!$1:$1048576,$A173,DL$1))","v":""},{"$f":"IF($A173=\"N/A\",Ref!$B$36,INDEX(Ranks!$1:$1048576,$A173,DM$1))","v":""},{"$f":"IF($A173=\"N/A\",Ref!$B$36,INDEX(Ranks!$1:$1048576,$A173,DN$1))","v":""},{"$f":"IF($A173=\"N/A\",Ref!$B$36,INDEX(Ranks!$1:$1048576,$A173,DO$1))","v":""},{"$f":"IF($A173=\"N/A\",Ref!$B$36,INDEX(Ranks!$1:$1048576,$A173,DP$1))","v":""},{"$f":"IF($A173=\"N/A\",Ref!$B$36,INDEX(Ranks!$1:$1048576,$A173,DQ$1))","v":""},{"$f":"IF($A173=\"N/A\",Ref!$B$36,INDEX(Ranks!$1:$1048576,$A173,DR$1))","v":""},{"$f":"IF($A173=\"N/A\",Ref!$B$36,INDEX(Ranks!$1:$1048576,$A173,DS$1))","v":""},{"$f":"IF($A173=\"N/A\",Ref!$B$36,INDEX(Ranks!$1:$1048576,$A173,DT$1))","v":""},{"$f":"IF($A173=\"N/A\",Ref!$B$36,INDEX(Ranks!$1:$1048576,$A173,DU$1))","v":""},{"$f":"IF($A173=\"N/A\",Ref!$B$36,INDEX(Ranks!$1:$1048576,$A173,DV$1))","v":""},{"$f":"IF($A173=\"N/A\",Ref!$B$36,INDEX(Ranks!$1:$1048576,$A173,DW$1))","v":""},{"$f":"IF($A173=\"N/A\",Ref!$B$36,INDEX(Ranks!$1:$1048576,$A173,DX$1))","v":""},{"$f":"IF($A173=\"N/A\",Ref!$B$36,INDEX(Ranks!$1:$1048576,$A173,DY$1))","v":""},{"$f":"IF($A173=\"N/A\",Ref!$B$36,INDEX(Ranks!$1:$1048576,$A173,DZ$1))","v":""},{"$f":"IF($A173=\"N/A\",Ref!$B$36,INDEX(Ranks!$1:$1048576,$A173,EA$1))","v":""},{"$f":"IF($A173=\"N/A\",Ref!$B$36,INDEX(Ranks!$1:$1048576,$A173,EB$1))","v":""}]
[{"$f":"IFERROR(MATCH('Portfolio Page'!L174,Ranks!L:L,0),\"N/A\")","v":"N/A"},null,{"$f":"IF($A174=\"N/A\",\"\",INDEX(Ranks!$1:$1048576,$A174,C$1))","v":""},{"$f":"IF($A174=\"N/A\",Ref!$B$36,INDEX(Ranks!$1:$1048576,$A174,D$1))","v":""},{"$f":"IF($A174=\"N/A\",Ref!$B$36,INDEX(Ranks!$1:$1048576,$A174,E$1))","v":""},{"$f":"IF($A174=\"N/A\",\"\",INDEX(Ranks!$1:$1048576,$A174,F$1))","v":""},{"$f":"IF($A174=\"N/A\",\"\",INDEX(Ranks!$1:$1048576,$A174,G$1))","v":""},{"$f":"IF($A174=\"N/A\",\"\",INDEX(Ranks!$1:$1048576,$A174,H$1))","v":""},{"$f":"IF($A174=\"N/A\",\"\",INDEX(Ranks!$1:$1048576,$A174,I$1))","v":""},{"$f":"IF($A174=\"N/A\",\"\",INDEX(Ranks!$1:$1048576,$A174,J$1))","v":""},{"$f":"IF($A174=\"N/A\",\"\",INDEX(Ranks!$1:$1048576,$A174,K$1))","v":""},null,{"$f":"IF($A174=\"N/A\",Ref!$B$36,INDEX(Ranks!$1:$1048576,$A174,M$1))","v":""},{"$f":"IF($A174=\"N/A\",Ref!$B$36,INDEX(Ranks!$1:$1048576,$A174,N$1))","v":""},{"$f":"IF($A174=\"N/A\",Ref!$B$36,INDEX(Ranks!$1:$1048576,$A174,O$1))","v":""},{"$f":"IF($A174=\"N/A\",Ref!$B$36,INDEX(Ranks!$1:$1048576,$A174,P$1))","v":""},{"$f":"IF($A174=\"N/A\",Ref!$B$36,INDEX(Ranks!$1:$1048576,$A174,Q$1))","v":""},{"$f":"IF($A174=\"N/A\",Ref!$B$36,INDEX(Ranks!$1:$1048576,$A174,R$1))","v":""},{"$f":"IF($A174=\"N/A\",Ref!$B$36,INDEX(Ranks!$1:$1048576,$A174,S$1))","v":""},{"$f":"IF($A174=\"N/A\",Ref!$B$36,INDEX(Ranks!$1:$1048576,$A174,T$1))","v":""},{"$f":"IF($A174=\"N/A\",Ref!$B$36,INDEX(Ranks!$1:$1048576,$A174,U$1))","v":""},{"$f":"IF($A174=\"N/A\",Ref!$B$36,INDEX(Ranks!$1:$1048576,$A174,V$1))","v":""},{"$f":"IF($A174=\"N/A\",Ref!$B$36,INDEX(Ranks!$1:$1048576,$A174,W$1))","v":""},{"$f":"IF($A174=\"N/A\",Ref!$B$36,INDEX(Ranks!$1:$1048576,$A174,X$1))","v":""},{"$f":"IF($A174=\"N/A\",Ref!$B$36,INDEX(Ranks!$1:$1048576,$A174,Y$1))","v":""},{"$f":"IF($A174=\"N/A\",Ref!$B$36,INDEX(Ranks!$1:$1048576,$A174,Z$1))","v":""},{"$f":"IF($A174=\"N/A\",Ref!$B$36,INDEX(Ranks!$1:$1048576,$A174,AA$1))","v":""},{"$f":"IF($A174=\"N/A\",Ref!$B$36,INDEX(Ranks!$1:$1048576,$A174,AB$1))","v":""},{"$f":"IF($A174=\"N/A\",Ref!$B$36,INDEX(Ranks!$1:$1048576,$A174,AC$1))","v":""},{"$f":"IF($A174=\"N/A\",Ref!$B$36,INDEX(Ranks!$1:$1048576,$A174,AD$1))","v":""},{"$f":"IF($A174=\"N/A\",Ref!$B$36,INDEX(Ranks!$1:$1048576,$A174,AE$1))","v":""},{"$f":"IF($A174=\"N/A\",Ref!$B$36,INDEX(Ranks!$1:$1048576,$A174,AF$1))","v":""},{"$f":"IF($A174=\"N/A\",Ref!$B$36,INDEX(Ranks!$1:$1048576,$A174,AG$1))","v":""},{"$f":"IF($A174=\"N/A\",Ref!$B$36,INDEX(Ranks!$1:$1048576,$A174,AH$1))","v":""},{"$f":"IF($A174=\"N/A\",Ref!$B$36,INDEX(Ranks!$1:$1048576,$A174,AI$1))","v":""},{"$f":"IF($A174=\"N/A\",Ref!$B$36,INDEX(Ranks!$1:$1048576,$A174,AJ$1))","v":""},{"$f":"IF($A174=\"N/A\",Ref!$B$36,INDEX(Ranks!$1:$1048576,$A174,AK$1))","v":""},{"$f":"IF($A174=\"N/A\",Ref!$B$36,INDEX(Ranks!$1:$1048576,$A174,AL$1))","v":""},{"$f":"IF($A174=\"N/A\",Ref!$B$36,INDEX(Ranks!$1:$1048576,$A174,AM$1))","v":""},{"$f":"IF($A174=\"N/A\",Ref!$B$36,INDEX(Ranks!$1:$1048576,$A174,AN$1))","v":""},{"$f":"IF($A174=\"N/A\",Ref!$B$36,INDEX(Ranks!$1:$1048576,$A174,AO$1))","v":""},{"$f":"IF($A174=\"N/A\",Ref!$B$36,INDEX(Ranks!$1:$1048576,$A174,AP$1))","v":""},{"$f":"IF($A174=\"N/A\",Ref!$B$36,INDEX(Ranks!$1:$1048576,$A174,AQ$1))","v":""},{"$f":"IF($A174=\"N/A\",Ref!$B$36,INDEX(Ranks!$1:$1048576,$A174,AR$1))","v":""},{"$f":"IF($A174=\"N/A\",Ref!$B$36,INDEX(Ranks!$1:$1048576,$A174,AS$1))","v":""},{"$f":"IF($A174=\"N/A\",Ref!$B$36,INDEX(Ranks!$1:$1048576,$A174,AT$1))","v":""},{"$f":"IF($A174=\"N/A\",Ref!$B$36,INDEX(Ranks!$1:$1048576,$A174,AU$1))","v":""},{"$f":"IF($A174=\"N/A\",Ref!$B$36,INDEX(Ranks!$1:$1048576,$A174,AV$1))","v":""},{"$f":"IF($A174=\"N/A\",Ref!$B$36,INDEX(Ranks!$1:$1048576,$A174,AW$1))","v":""},{"$f":"IF($A174=\"N/A\",Ref!$B$36,INDEX(Ranks!$1:$1048576,$A174,AX$1))","v":""},{"$f":"IF($A174=\"N/A\",Ref!$B$36,INDEX(Ranks!$1:$1048576,$A174,AY$1))","v":""},{"$f":"IF($A174=\"N/A\",Ref!$B$36,INDEX(Ranks!$1:$1048576,$A174,AZ$1))","v":""},{"$f":"IF($A174=\"N/A\",Ref!$B$36,INDEX(Ranks!$1:$1048576,$A174,BA$1))","v":""},{"$f":"IF($A174=\"N/A\",Ref!$B$36,INDEX(Ranks!$1:$1048576,$A174,BB$1))","v":""},{"$f":"IF($A174=\"N/A\",Ref!$B$36,INDEX(Ranks!$1:$1048576,$A174,BC$1))","v":""},{"$f":"IF($A174=\"N/A\",Ref!$B$36,INDEX(Ranks!$1:$1048576,$A174,BD$1))","v":""},{"$f":"IF($A174=\"N/A\",Ref!$B$36,INDEX(Ranks!$1:$1048576,$A174,BE$1))","v":""},{"$f":"IF($A174=\"N/A\",Ref!$B$36,INDEX(Ranks!$1:$1048576,$A174,BF$1))","v":""},{"$f":"IF($A174=\"N/A\",Ref!$B$36,INDEX(Ranks!$1:$1048576,$A174,BG$1))","v":""},{"$f":"IF($A174=\"N/A\",Ref!$B$36,INDEX(Ranks!$1:$1048576,$A174,BH$1))","v":""},{"$f":"IF($A174=\"N/A\",Ref!$B$36,INDEX(Ranks!$1:$1048576,$A174,BI$1))","v":""},{"$f":"IF($A174=\"N/A\",Ref!$B$36,INDEX(Ranks!$1:$1048576,$A174,BJ$1))","v":""},{"$f":"IF($A174=\"N/A\",Ref!$B$36,INDEX(Ranks!$1:$1048576,$A174,BK$1))","v":""},{"$f":"IF($A174=\"N/A\",Ref!$B$36,INDEX(Ranks!$1:$1048576,$A174,BL$1))","v":""},{"$f":"IF($A174=\"N/A\",Ref!$B$36,INDEX(Ranks!$1:$1048576,$A174,BM$1))","v":""},{"$f":"IF($A174=\"N/A\",Ref!$B$36,INDEX(Ranks!$1:$1048576,$A174,BN$1))","v":""},{"$f":"IF($A174=\"N/A\",Ref!$B$36,INDEX(Ranks!$1:$1048576,$A174,BO$1))","v":""},{"$f":"IF($A174=\"N/A\",Ref!$B$36,INDEX(Ranks!$1:$1048576,$A174,BP$1))","v":""},{"$f":"IF($A174=\"N/A\",Ref!$B$36,INDEX(Ranks!$1:$1048576,$A174,BQ$1))","v":""},{"$f":"IF($A174=\"N/A\",Ref!$B$36,INDEX(Ranks!$1:$1048576,$A174,BR$1))","v":""},{"$f":"IF($A174=\"N/A\",Ref!$B$36,INDEX(Ranks!$1:$1048576,$A174,BS$1))","v":""},{"$f":"IF($A174=\"N/A\",Ref!$B$36,INDEX(Ranks!$1:$1048576,$A174,BT$1))","v":""},{"$f":"IF($A174=\"N/A\",Ref!$B$36,INDEX(Ranks!$1:$1048576,$A174,BU$1))","v":""},{"$f":"IF($A174=\"N/A\",Ref!$B$36,INDEX(Ranks!$1:$1048576,$A174,BV$1))","v":""},{"$f":"IF($A174=\"N/A\",Ref!$B$36,INDEX(Ranks!$1:$1048576,$A174,BW$1))","v":""},{"$f":"IF($A174=\"N/A\",Ref!$B$36,INDEX(Ranks!$1:$1048576,$A174,BX$1))","v":""},{"$f":"IF($A174=\"N/A\",Ref!$B$36,INDEX(Ranks!$1:$1048576,$A174,BY$1))","v":""},{"$f":"IF($A174=\"N/A\",Ref!$B$36,INDEX(Ranks!$1:$1048576,$A174,BZ$1))","v":""},{"$f":"IF($A174=\"N/A\",Ref!$B$36,INDEX(Ranks!$1:$1048576,$A174,CA$1))","v":""},{"$f":"IF($A174=\"N/A\",Ref!$B$36,INDEX(Ranks!$1:$1048576,$A174,CB$1))","v":""},{"$f":"IF($A174=\"N/A\",Ref!$B$36,INDEX(Ranks!$1:$1048576,$A174,CC$1))","v":""},{"$f":"IF($A174=\"N/A\",Ref!$B$36,INDEX(Ranks!$1:$1048576,$A174,CD$1))","v":""},{"$f":"IF($A174=\"N/A\",Ref!$B$36,INDEX(Ranks!$1:$1048576,$A174,CE$1))","v":""},{"$f":"IF($A174=\"N/A\",Ref!$B$36,INDEX(Ranks!$1:$1048576,$A174,CF$1))","v":""},{"$f":"IF($A174=\"N/A\",Ref!$B$36,INDEX(Ranks!$1:$1048576,$A174,CG$1))","v":""},{"$f":"IF($A174=\"N/A\",Ref!$B$36,INDEX(Ranks!$1:$1048576,$A174,CH$1))","v":""},{"$f":"IF($A174=\"N/A\",Ref!$B$36,INDEX(Ranks!$1:$1048576,$A174,CI$1))","v":""},{"$f":"IF($A174=\"N/A\",Ref!$B$36,INDEX(Ranks!$1:$1048576,$A174,CJ$1))","v":""},{"$f":"IF($A174=\"N/A\",Ref!$B$36,INDEX(Ranks!$1:$1048576,$A174,CK$1))","v":""},{"$f":"IF($A174=\"N/A\",Ref!$B$36,INDEX(Ranks!$1:$1048576,$A174,CL$1))","v":""},{"$f":"IF($A174=\"N/A\",Ref!$B$36,INDEX(Ranks!$1:$1048576,$A174,CM$1))","v":""},{"$f":"IF($A174=\"N/A\",Ref!$B$36,INDEX(Ranks!$1:$1048576,$A174,CN$1))","v":""},{"$f":"IF($A174=\"N/A\",Ref!$B$36,INDEX(Ranks!$1:$1048576,$A174,CO$1))","v":""},{"$f":"IF($A174=\"N/A\",Ref!$B$36,INDEX(Ranks!$1:$1048576,$A174,CP$1))","v":""},{"$f":"IF($A174=\"N/A\",Ref!$B$36,INDEX(Ranks!$1:$1048576,$A174,CQ$1))","v":""},{"$f":"IF($A174=\"N/A\",Ref!$B$36,INDEX(Ranks!$1:$1048576,$A174,CR$1))","v":""},{"$f":"IF($A174=\"N/A\",Ref!$B$36,INDEX(Ranks!$1:$1048576,$A174,CS$1))","v":""},{"$f":"IF($A174=\"N/A\",Ref!$B$36,INDEX(Ranks!$1:$1048576,$A174,CT$1))","v":""},{"$f":"IF($A174=\"N/A\",Ref!$B$36,INDEX(Ranks!$1:$1048576,$A174,CU$1))","v":""},{"$f":"IF($A174=\"N/A\",Ref!$B$36,INDEX(Ranks!$1:$1048576,$A174,CV$1))","v":""},{"$f":"IF($A174=\"N/A\",Ref!$B$36,INDEX(Ranks!$1:$1048576,$A174,CW$1))","v":""},{"$f":"IF($A174=\"N/A\",Ref!$B$36,INDEX(Ranks!$1:$1048576,$A174,CX$1))","v":""},{"$f":"IF($A174=\"N/A\",Ref!$B$36,INDEX(Ranks!$1:$1048576,$A174,CY$1))","v":""},{"$f":"IF($A174=\"N/A\",Ref!$B$36,INDEX(Ranks!$1:$1048576,$A174,CZ$1))","v":""},{"$f":"IF($A174=\"N/A\",Ref!$B$36,INDEX(Ranks!$1:$1048576,$A174,DA$1))","v":""},{"$f":"IF($A174=\"N/A\",Ref!$B$36,INDEX(Ranks!$1:$1048576,$A174,DB$1))","v":""},{"$f":"IF($A174=\"N/A\",Ref!$B$36,INDEX(Ranks!$1:$1048576,$A174,DC$1))","v":""},{"$f":"IF($A174=\"N/A\",Ref!$B$36,INDEX(Ranks!$1:$1048576,$A174,DD$1))","v":""},{"$f":"IF($A174=\"N/A\",Ref!$B$36,INDEX(Ranks!$1:$1048576,$A174,DE$1))","v":""},{"$f":"IF($A174=\"N/A\",Ref!$B$36,INDEX(Ranks!$1:$1048576,$A174,DF$1))","v":""},{"$f":"IF($A174=\"N/A\",Ref!$B$36,INDEX(Ranks!$1:$1048576,$A174,DG$1))","v":""},{"$f":"IF($A174=\"N/A\",Ref!$B$36,INDEX(Ranks!$1:$1048576,$A174,DH$1))","v":""},{"$f":"IF($A174=\"N/A\",Ref!$B$36,INDEX(Ranks!$1:$1048576,$A174,DI$1))","v":""},{"$f":"IF($A174=\"N/A\",Ref!$B$36,INDEX(Ranks!$1:$1048576,$A174,DJ$1))","v":""},{"$f":"IF($A174=\"N/A\",Ref!$B$36,INDEX(Ranks!$1:$1048576,$A174,DK$1))","v":""},{"$f":"IF($A174=\"N/A\",Ref!$B$36,INDEX(Ranks!$1:$1048576,$A174,DL$1))","v":""},{"$f":"IF($A174=\"N/A\",Ref!$B$36,INDEX(Ranks!$1:$1048576,$A174,DM$1))","v":""},{"$f":"IF($A174=\"N/A\",Ref!$B$36,INDEX(Ranks!$1:$1048576,$A174,DN$1))","v":""},{"$f":"IF($A174=\"N/A\",Ref!$B$36,INDEX(Ranks!$1:$1048576,$A174,DO$1))","v":""},{"$f":"IF($A174=\"N/A\",Ref!$B$36,INDEX(Ranks!$1:$1048576,$A174,DP$1))","v":""},{"$f":"IF($A174=\"N/A\",Ref!$B$36,INDEX(Ranks!$1:$1048576,$A174,DQ$1))","v":""},{"$f":"IF($A174=\"N/A\",Ref!$B$36,INDEX(Ranks!$1:$1048576,$A174,DR$1))","v":""},{"$f":"IF($A174=\"N/A\",Ref!$B$36,INDEX(Ranks!$1:$1048576,$A174,DS$1))","v":""},{"$f":"IF($A174=\"N/A\",Ref!$B$36,INDEX(Ranks!$1:$1048576,$A174,DT$1))","v":""},{"$f":"IF($A174=\"N/A\",Ref!$B$36,INDEX(Ranks!$1:$1048576,$A174,DU$1))","v":""},{"$f":"IF($A174=\"N/A\",Ref!$B$36,INDEX(Ranks!$1:$1048576,$A174,DV$1))","v":""},{"$f":"IF($A174=\"N/A\",Ref!$B$36,INDEX(Ranks!$1:$1048576,$A174,DW$1))","v":""},{"$f":"IF($A174=\"N/A\",Ref!$B$36,INDEX(Ranks!$1:$1048576,$A174,DX$1))","v":""},{"$f":"IF($A174=\"N/A\",Ref!$B$36,INDEX(Ranks!$1:$1048576,$A174,DY$1))","v":""},{"$f":"IF($A174=\"N/A\",Ref!$B$36,INDEX(Ranks!$1:$1048576,$A174,DZ$1))","v":""},{"$f":"IF($A174=\"N/A\",Ref!$B$36,INDEX(Ranks!$1:$1048576,$A174,EA$1))","v":""},{"$f":"IF($A174=\"N/A\",Ref!$B$36,INDEX(Ranks!$1:$1048576,$A174,EB$1))","v":""}]
[{"$f":"IFERROR(MATCH('Portfolio Page'!L175,Ranks!L:L,0),\"N/A\")","v":"N/A"},null,{"$f":"IF($A175=\"N/A\",\"\",INDEX(Ranks!$1:$1048576,$A175,C$1))","v":""},{"$f":"IF($A175=\"N/A\",Ref!$B$36,INDEX(Ranks!$1:$1048576,$A175,D$1))","v":""},{"$f":"IF($A175=\"N/A\",Ref!$B$36,INDEX(Ranks!$1:$1048576,$A175,E$1))","v":""},{"$f":"IF($A175=\"N/A\",\"\",INDEX(Ranks!$1:$1048576,$A175,F$1))","v":""},{"$f":"IF($A175=\"N/A\",\"\",INDEX(Ranks!$1:$1048576,$A175,G$1))","v":""},{"$f":"IF($A175=\"N/A\",\"\",INDEX(Ranks!$1:$1048576,$A175,H$1))","v":""},{"$f":"IF($A175=\"N/A\",\"\",INDEX(Ranks!$1:$1048576,$A175,I$1))","v":""},{"$f":"IF($A175=\"N/A\",\"\",INDEX(Ranks!$1:$1048576,$A175,J$1))","v":""},{"$f":"IF($A175=\"N/A\",\"\",INDEX(Ranks!$1:$1048576,$A175,K$1))","v":""},null,{"$f":"IF($A175=\"N/A\",Ref!$B$36,INDEX(Ranks!$1:$1048576,$A175,M$1))","v":""},{"$f":"IF($A175=\"N/A\",Ref!$B$36,INDEX(Ranks!$1:$1048576,$A175,N$1))","v":""},{"$f":"IF($A175=\"N/A\",Ref!$B$36,INDEX(Ranks!$1:$1048576,$A175,O$1))","v":""},{"$f":"IF($A175=\"N/A\",Ref!$B$36,INDEX(Ranks!$1:$1048576,$A175,P$1))","v":""},{"$f":"IF($A175=\"N/A\",Ref!$B$36,INDEX(Ranks!$1:$1048576,$A175,Q$1))","v":""},{"$f":"IF($A175=\"N/A\",Ref!$B$36,INDEX(Ranks!$1:$1048576,$A175,R$1))","v":""},{"$f":"IF($A175=\"N/A\",Ref!$B$36,INDEX(Ranks!$1:$1048576,$A175,S$1))","v":""},{"$f":"IF($A175=\"N/A\",Ref!$B$36,INDEX(Ranks!$1:$1048576,$A175,T$1))","v":""},{"$f":"IF($A175=\"N/A\",Ref!$B$36,INDEX(Ranks!$1:$1048576,$A175,U$1))","v":""},{"$f":"IF($A175=\"N/A\",Ref!$B$36,INDEX(Ranks!$1:$1048576,$A175,V$1))","v":""},{"$f":"IF($A175=\"N/A\",Ref!$B$36,INDEX(Ranks!$1:$1048576,$A175,W$1))","v":""},{"$f":"IF($A175=\"N/A\",Ref!$B$36,INDEX(Ranks!$1:$1048576,$A175,X$1))","v":""},{"$f":"IF($A175=\"N/A\",Ref!$B$36,INDEX(Ranks!$1:$1048576,$A175,Y$1))","v":""},{"$f":"IF($A175=\"N/A\",Ref!$B$36,INDEX(Ranks!$1:$1048576,$A175,Z$1))","v":""},{"$f":"IF($A175=\"N/A\",Ref!$B$36,INDEX(Ranks!$1:$1048576,$A175,AA$1))","v":""},{"$f":"IF($A175=\"N/A\",Ref!$B$36,INDEX(Ranks!$1:$1048576,$A175,AB$1))","v":""},{"$f":"IF($A175=\"N/A\",Ref!$B$36,INDEX(Ranks!$1:$1048576,$A175,AC$1))","v":""},{"$f":"IF($A175=\"N/A\",Ref!$B$36,INDEX(Ranks!$1:$1048576,$A175,AD$1))","v":""},{"$f":"IF($A175=\"N/A\",Ref!$B$36,INDEX(Ranks!$1:$1048576,$A175,AE$1))","v":""},{"$f":"IF($A175=\"N/A\",Ref!$B$36,INDEX(Ranks!$1:$1048576,$A175,AF$1))","v":""},{"$f":"IF($A175=\"N/A\",Ref!$B$36,INDEX(Ranks!$1:$1048576,$A175,AG$1))","v":""},{"$f":"IF($A175=\"N/A\",Ref!$B$36,INDEX(Ranks!$1:$1048576,$A175,AH$1))","v":""},{"$f":"IF($A175=\"N/A\",Ref!$B$36,INDEX(Ranks!$1:$1048576,$A175,AI$1))","v":""},{"$f":"IF($A175=\"N/A\",Ref!$B$36,INDEX(Ranks!$1:$1048576,$A175,AJ$1))","v":""},{"$f":"IF($A175=\"N/A\",Ref!$B$36,INDEX(Ranks!$1:$1048576,$A175,AK$1))","v":""},{"$f":"IF($A175=\"N/A\",Ref!$B$36,INDEX(Ranks!$1:$1048576,$A175,AL$1))","v":""},{"$f":"IF($A175=\"N/A\",Ref!$B$36,INDEX(Ranks!$1:$1048576,$A175,AM$1))","v":""},{"$f":"IF($A175=\"N/A\",Ref!$B$36,INDEX(Ranks!$1:$1048576,$A175,AN$1))","v":""},{"$f":"IF($A175=\"N/A\",Ref!$B$36,INDEX(Ranks!$1:$1048576,$A175,AO$1))","v":""},{"$f":"IF($A175=\"N/A\",Ref!$B$36,INDEX(Ranks!$1:$1048576,$A175,AP$1))","v":""},{"$f":"IF($A175=\"N/A\",Ref!$B$36,INDEX(Ranks!$1:$1048576,$A175,AQ$1))","v":""},{"$f":"IF($A175=\"N/A\",Ref!$B$36,INDEX(Ranks!$1:$1048576,$A175,AR$1))","v":""},{"$f":"IF($A175=\"N/A\",Ref!$B$36,INDEX(Ranks!$1:$1048576,$A175,AS$1))","v":""},{"$f":"IF($A175=\"N/A\",Ref!$B$36,INDEX(Ranks!$1:$1048576,$A175,AT$1))","v":""},{"$f":"IF($A175=\"N/A\",Ref!$B$36,INDEX(Ranks!$1:$1048576,$A175,AU$1))","v":""},{"$f":"IF($A175=\"N/A\",Ref!$B$36,INDEX(Ranks!$1:$1048576,$A175,AV$1))","v":""},{"$f":"IF($A175=\"N/A\",Ref!$B$36,INDEX(Ranks!$1:$1048576,$A175,AW$1))","v":""},{"$f":"IF($A175=\"N/A\",Ref!$B$36,INDEX(Ranks!$1:$1048576,$A175,AX$1))","v":""},{"$f":"IF($A175=\"N/A\",Ref!$B$36,INDEX(Ranks!$1:$1048576,$A175,AY$1))","v":""},{"$f":"IF($A175=\"N/A\",Ref!$B$36,INDEX(Ranks!$1:$1048576,$A175,AZ$1))","v":""},{"$f":"IF($A175=\"N/A\",Ref!$B$36,INDEX(Ranks!$1:$1048576,$A175,BA$1))","v":""},{"$f":"IF($A175=\"N/A\",Ref!$B$36,INDEX(Ranks!$1:$1048576,$A175,BB$1))","v":""},{"$f":"IF($A175=\"N/A\",Ref!$B$36,INDEX(Ranks!$1:$1048576,$A175,BC$1))","v":""},{"$f":"IF($A175=\"N/A\",Ref!$B$36,INDEX(Ranks!$1:$1048576,$A175,BD$1))","v":""},{"$f":"IF($A175=\"N/A\",Ref!$B$36,INDEX(Ranks!$1:$1048576,$A175,BE$1))","v":""},{"$f":"IF($A175=\"N/A\",Ref!$B$36,INDEX(Ranks!$1:$1048576,$A175,BF$1))","v":""},{"$f":"IF($A175=\"N/A\",Ref!$B$36,INDEX(Ranks!$1:$1048576,$A175,BG$1))","v":""},{"$f":"IF($A175=\"N/A\",Ref!$B$36,INDEX(Ranks!$1:$1048576,$A175,BH$1))","v":""},{"$f":"IF($A175=\"N/A\",Ref!$B$36,INDEX(Ranks!$1:$1048576,$A175,BI$1))","v":""},{"$f":"IF($A175=\"N/A\",Ref!$B$36,INDEX(Ranks!$1:$1048576,$A175,BJ$1))","v":""},{"$f":"IF($A175=\"N/A\",Ref!$B$36,INDEX(Ranks!$1:$1048576,$A175,BK$1))","v":""},{"$f":"IF($A175=\"N/A\",Ref!$B$36,INDEX(Ranks!$1:$1048576,$A175,BL$1))","v":""},{"$f":"IF($A175=\"N/A\",Ref!$B$36,INDEX(Ranks!$1:$1048576,$A175,BM$1))","v":""},{"$f":"IF($A175=\"N/A\",Ref!$B$36,INDEX(Ranks!$1:$1048576,$A175,BN$1))","v":""},{"$f":"IF($A175=\"N/A\",Ref!$B$36,INDEX(Ranks!$1:$1048576,$A175,BO$1))","v":""},{"$f":"IF($A175=\"N/A\",Ref!$B$36,INDEX(Ranks!$1:$1048576,$A175,BP$1))","v":""},{"$f":"IF($A175=\"N/A\",Ref!$B$36,INDEX(Ranks!$1:$1048576,$A175,BQ$1))","v":""},{"$f":"IF($A175=\"N/A\",Ref!$B$36,INDEX(Ranks!$1:$1048576,$A175,BR$1))","v":""},{"$f":"IF($A175=\"N/A\",Ref!$B$36,INDEX(Ranks!$1:$1048576,$A175,BS$1))","v":""},{"$f":"IF($A175=\"N/A\",Ref!$B$36,INDEX(Ranks!$1:$1048576,$A175,BT$1))","v":""},{"$f":"IF($A175=\"N/A\",Ref!$B$36,INDEX(Ranks!$1:$1048576,$A175,BU$1))","v":""},{"$f":"IF($A175=\"N/A\",Ref!$B$36,INDEX(Ranks!$1:$1048576,$A175,BV$1))","v":""},{"$f":"IF($A175=\"N/A\",Ref!$B$36,INDEX(Ranks!$1:$1048576,$A175,BW$1))","v":""},{"$f":"IF($A175=\"N/A\",Ref!$B$36,INDEX(Ranks!$1:$1048576,$A175,BX$1))","v":""},{"$f":"IF($A175=\"N/A\",Ref!$B$36,INDEX(Ranks!$1:$1048576,$A175,BY$1))","v":""},{"$f":"IF($A175=\"N/A\",Ref!$B$36,INDEX(Ranks!$1:$1048576,$A175,BZ$1))","v":""},{"$f":"IF($A175=\"N/A\",Ref!$B$36,INDEX(Ranks!$1:$1048576,$A175,CA$1))","v":""},{"$f":"IF($A175=\"N/A\",Ref!$B$36,INDEX(Ranks!$1:$1048576,$A175,CB$1))","v":""},{"$f":"IF($A175=\"N/A\",Ref!$B$36,INDEX(Ranks!$1:$1048576,$A175,CC$1))","v":""},{"$f":"IF($A175=\"N/A\",Ref!$B$36,INDEX(Ranks!$1:$1048576,$A175,CD$1))","v":""},{"$f":"IF($A175=\"N/A\",Ref!$B$36,INDEX(Ranks!$1:$1048576,$A175,CE$1))","v":""},{"$f":"IF($A175=\"N/A\",Ref!$B$36,INDEX(Ranks!$1:$1048576,$A175,CF$1))","v":""},{"$f":"IF($A175=\"N/A\",Ref!$B$36,INDEX(Ranks!$1:$1048576,$A175,CG$1))","v":""},{"$f":"IF($A175=\"N/A\",Ref!$B$36,INDEX(Ranks!$1:$1048576,$A175,CH$1))","v":""},{"$f":"IF($A175=\"N/A\",Ref!$B$36,INDEX(Ranks!$1:$1048576,$A175,CI$1))","v":""},{"$f":"IF($A175=\"N/A\",Ref!$B$36,INDEX(Ranks!$1:$1048576,$A175,CJ$1))","v":""},{"$f":"IF($A175=\"N/A\",Ref!$B$36,INDEX(Ranks!$1:$1048576,$A175,CK$1))","v":""},{"$f":"IF($A175=\"N/A\",Ref!$B$36,INDEX(Ranks!$1:$1048576,$A175,CL$1))","v":""},{"$f":"IF($A175=\"N/A\",Ref!$B$36,INDEX(Ranks!$1:$1048576,$A175,CM$1))","v":""},{"$f":"IF($A175=\"N/A\",Ref!$B$36,INDEX(Ranks!$1:$1048576,$A175,CN$1))","v":""},{"$f":"IF($A175=\"N/A\",Ref!$B$36,INDEX(Ranks!$1:$1048576,$A175,CO$1))","v":""},{"$f":"IF($A175=\"N/A\",Ref!$B$36,INDEX(Ranks!$1:$1048576,$A175,CP$1))","v":""},{"$f":"IF($A175=\"N/A\",Ref!$B$36,INDEX(Ranks!$1:$1048576,$A175,CQ$1))","v":""},{"$f":"IF($A175=\"N/A\",Ref!$B$36,INDEX(Ranks!$1:$1048576,$A175,CR$1))","v":""},{"$f":"IF($A175=\"N/A\",Ref!$B$36,INDEX(Ranks!$1:$1048576,$A175,CS$1))","v":""},{"$f":"IF($A175=\"N/A\",Ref!$B$36,INDEX(Ranks!$1:$1048576,$A175,CT$1))","v":""},{"$f":"IF($A175=\"N/A\",Ref!$B$36,INDEX(Ranks!$1:$1048576,$A175,CU$1))","v":""},{"$f":"IF($A175=\"N/A\",Ref!$B$36,INDEX(Ranks!$1:$1048576,$A175,CV$1))","v":""},{"$f":"IF($A175=\"N/A\",Ref!$B$36,INDEX(Ranks!$1:$1048576,$A175,CW$1))","v":""},{"$f":"IF($A175=\"N/A\",Ref!$B$36,INDEX(Ranks!$1:$1048576,$A175,CX$1))","v":""},{"$f":"IF($A175=\"N/A\",Ref!$B$36,INDEX(Ranks!$1:$1048576,$A175,CY$1))","v":""},{"$f":"IF($A175=\"N/A\",Ref!$B$36,INDEX(Ranks!$1:$1048576,$A175,CZ$1))","v":""},{"$f":"IF($A175=\"N/A\",Ref!$B$36,INDEX(Ranks!$1:$1048576,$A175,DA$1))","v":""},{"$f":"IF($A175=\"N/A\",Ref!$B$36,INDEX(Ranks!$1:$1048576,$A175,DB$1))","v":""},{"$f":"IF($A175=\"N/A\",Ref!$B$36,INDEX(Ranks!$1:$1048576,$A175,DC$1))","v":""},{"$f":"IF($A175=\"N/A\",Ref!$B$36,INDEX(Ranks!$1:$1048576,$A175,DD$1))","v":""},{"$f":"IF($A175=\"N/A\",Ref!$B$36,INDEX(Ranks!$1:$1048576,$A175,DE$1))","v":""},{"$f":"IF($A175=\"N/A\",Ref!$B$36,INDEX(Ranks!$1:$1048576,$A175,DF$1))","v":""},{"$f":"IF($A175=\"N/A\",Ref!$B$36,INDEX(Ranks!$1:$1048576,$A175,DG$1))","v":""},{"$f":"IF($A175=\"N/A\",Ref!$B$36,INDEX(Ranks!$1:$1048576,$A175,DH$1))","v":""},{"$f":"IF($A175=\"N/A\",Ref!$B$36,INDEX(Ranks!$1:$1048576,$A175,DI$1))","v":""},{"$f":"IF($A175=\"N/A\",Ref!$B$36,INDEX(Ranks!$1:$1048576,$A175,DJ$1))","v":""},{"$f":"IF($A175=\"N/A\",Ref!$B$36,INDEX(Ranks!$1:$1048576,$A175,DK$1))","v":""},{"$f":"IF($A175=\"N/A\",Ref!$B$36,INDEX(Ranks!$1:$1048576,$A175,DL$1))","v":""},{"$f":"IF($A175=\"N/A\",Ref!$B$36,INDEX(Ranks!$1:$1048576,$A175,DM$1))","v":""},{"$f":"IF($A175=\"N/A\",Ref!$B$36,INDEX(Ranks!$1:$1048576,$A175,DN$1))","v":""},{"$f":"IF($A175=\"N/A\",Ref!$B$36,INDEX(Ranks!$1:$1048576,$A175,DO$1))","v":""},{"$f":"IF($A175=\"N/A\",Ref!$B$36,INDEX(Ranks!$1:$1048576,$A175,DP$1))","v":""},{"$f":"IF($A175=\"N/A\",Ref!$B$36,INDEX(Ranks!$1:$1048576,$A175,DQ$1))","v":""},{"$f":"IF($A175=\"N/A\",Ref!$B$36,INDEX(Ranks!$1:$1048576,$A175,DR$1))","v":""},{"$f":"IF($A175=\"N/A\",Ref!$B$36,INDEX(Ranks!$1:$1048576,$A175,DS$1))","v":""},{"$f":"IF($A175=\"N/A\",Ref!$B$36,INDEX(Ranks!$1:$1048576,$A175,DT$1))","v":""},{"$f":"IF($A175=\"N/A\",Ref!$B$36,INDEX(Ranks!$1:$1048576,$A175,DU$1))","v":""},{"$f":"IF($A175=\"N/A\",Ref!$B$36,INDEX(Ranks!$1:$1048576,$A175,DV$1))","v":""},{"$f":"IF($A175=\"N/A\",Ref!$B$36,INDEX(Ranks!$1:$1048576,$A175,DW$1))","v":""},{"$f":"IF($A175=\"N/A\",Ref!$B$36,INDEX(Ranks!$1:$1048576,$A175,DX$1))","v":""},{"$f":"IF($A175=\"N/A\",Ref!$B$36,INDEX(Ranks!$1:$1048576,$A175,DY$1))","v":""},{"$f":"IF($A175=\"N/A\",Ref!$B$36,INDEX(Ranks!$1:$1048576,$A175,DZ$1))","v":""},{"$f":"IF($A175=\"N/A\",Ref!$B$36,INDEX(Ranks!$1:$1048576,$A175,EA$1))","v":""},{"$f":"IF($A175=\"N/A\",Ref!$B$36,INDEX(Ranks!$1:$1048576,$A175,EB$1))","v":""}]
[{"$f":"IFERROR(MATCH('Portfolio Page'!L176,Ranks!L:L,0),\"N/A\")","v":"N/A"},null,{"$f":"IF($A176=\"N/A\",\"\",INDEX(Ranks!$1:$1048576,$A176,C$1))","v":""},{"$f":"IF($A176=\"N/A\",Ref!$B$36,INDEX(Ranks!$1:$1048576,$A176,D$1))","v":""},{"$f":"IF($A176=\"N/A\",Ref!$B$36,INDEX(Ranks!$1:$1048576,$A176,E$1))","v":""},{"$f":"IF($A176=\"N/A\",\"\",INDEX(Ranks!$1:$1048576,$A176,F$1))","v":""},{"$f":"IF($A176=\"N/A\",\"\",INDEX(Ranks!$1:$1048576,$A176,G$1))","v":""},{"$f":"IF($A176=\"N/A\",\"\",INDEX(Ranks!$1:$1048576,$A176,H$1))","v":""},{"$f":"IF($A176=\"N/A\",\"\",INDEX(Ranks!$1:$1048576,$A176,I$1))","v":""},{"$f":"IF($A176=\"N/A\",\"\",INDEX(Ranks!$1:$1048576,$A176,J$1))","v":""},{"$f":"IF($A176=\"N/A\",\"\",INDEX(Ranks!$1:$1048576,$A176,K$1))","v":""},null,{"$f":"IF($A176=\"N/A\",Ref!$B$36,INDEX(Ranks!$1:$1048576,$A176,M$1))","v":""},{"$f":"IF($A176=\"N/A\",Ref!$B$36,INDEX(Ranks!$1:$1048576,$A176,N$1))","v":""},{"$f":"IF($A176=\"N/A\",Ref!$B$36,INDEX(Ranks!$1:$1048576,$A176,O$1))","v":""},{"$f":"IF($A176=\"N/A\",Ref!$B$36,INDEX(Ranks!$1:$1048576,$A176,P$1))","v":""},{"$f":"IF($A176=\"N/A\",Ref!$B$36,INDEX(Ranks!$1:$1048576,$A176,Q$1))","v":""},{"$f":"IF($A176=\"N/A\",Ref!$B$36,INDEX(Ranks!$1:$1048576,$A176,R$1))","v":""},{"$f":"IF($A176=\"N/A\",Ref!$B$36,INDEX(Ranks!$1:$1048576,$A176,S$1))","v":""},{"$f":"IF($A176=\"N/A\",Ref!$B$36,INDEX(Ranks!$1:$1048576,$A176,T$1))","v":""},{"$f":"IF($A176=\"N/A\",Ref!$B$36,INDEX(Ranks!$1:$1048576,$A176,U$1))","v":""},{"$f":"IF($A176=\"N/A\",Ref!$B$36,INDEX(Ranks!$1:$1048576,$A176,V$1))","v":""},{"$f":"IF($A176=\"N/A\",Ref!$B$36,INDEX(Ranks!$1:$1048576,$A176,W$1))","v":""},{"$f":"IF($A176=\"N/A\",Ref!$B$36,INDEX(Ranks!$1:$1048576,$A176,X$1))","v":""},{"$f":"IF($A176=\"N/A\",Ref!$B$36,INDEX(Ranks!$1:$1048576,$A176,Y$1))","v":""},{"$f":"IF($A176=\"N/A\",Ref!$B$36,INDEX(Ranks!$1:$1048576,$A176,Z$1))","v":""},{"$f":"IF($A176=\"N/A\",Ref!$B$36,INDEX(Ranks!$1:$1048576,$A176,AA$1))","v":""},{"$f":"IF($A176=\"N/A\",Ref!$B$36,INDEX(Ranks!$1:$1048576,$A176,AB$1))","v":""},{"$f":"IF($A176=\"N/A\",Ref!$B$36,INDEX(Ranks!$1:$1048576,$A176,AC$1))","v":""},{"$f":"IF($A176=\"N/A\",Ref!$B$36,INDEX(Ranks!$1:$1048576,$A176,AD$1))","v":""},{"$f":"IF($A176=\"N/A\",Ref!$B$36,INDEX(Ranks!$1:$1048576,$A176,AE$1))","v":""},{"$f":"IF($A176=\"N/A\",Ref!$B$36,INDEX(Ranks!$1:$1048576,$A176,AF$1))","v":""},{"$f":"IF($A176=\"N/A\",Ref!$B$36,INDEX(Ranks!$1:$1048576,$A176,AG$1))","v":""},{"$f":"IF($A176=\"N/A\",Ref!$B$36,INDEX(Ranks!$1:$1048576,$A176,AH$1))","v":""},{"$f":"IF($A176=\"N/A\",Ref!$B$36,INDEX(Ranks!$1:$1048576,$A176,AI$1))","v":""},{"$f":"IF($A176=\"N/A\",Ref!$B$36,INDEX(Ranks!$1:$1048576,$A176,AJ$1))","v":""},{"$f":"IF($A176=\"N/A\",Ref!$B$36,INDEX(Ranks!$1:$1048576,$A176,AK$1))","v":""},{"$f":"IF($A176=\"N/A\",Ref!$B$36,INDEX(Ranks!$1:$1048576,$A176,AL$1))","v":""},{"$f":"IF($A176=\"N/A\",Ref!$B$36,INDEX(Ranks!$1:$1048576,$A176,AM$1))","v":""},{"$f":"IF($A176=\"N/A\",Ref!$B$36,INDEX(Ranks!$1:$1048576,$A176,AN$1))","v":""},{"$f":"IF($A176=\"N/A\",Ref!$B$36,INDEX(Ranks!$1:$1048576,$A176,AO$1))","v":""},{"$f":"IF($A176=\"N/A\",Ref!$B$36,INDEX(Ranks!$1:$1048576,$A176,AP$1))","v":""},{"$f":"IF($A176=\"N/A\",Ref!$B$36,INDEX(Ranks!$1:$1048576,$A176,AQ$1))","v":""},{"$f":"IF($A176=\"N/A\",Ref!$B$36,INDEX(Ranks!$1:$1048576,$A176,AR$1))","v":""},{"$f":"IF($A176=\"N/A\",Ref!$B$36,INDEX(Ranks!$1:$1048576,$A176,AS$1))","v":""},{"$f":"IF($A176=\"N/A\",Ref!$B$36,INDEX(Ranks!$1:$1048576,$A176,AT$1))","v":""},{"$f":"IF($A176=\"N/A\",Ref!$B$36,INDEX(Ranks!$1:$1048576,$A176,AU$1))","v":""},{"$f":"IF($A176=\"N/A\",Ref!$B$36,INDEX(Ranks!$1:$1048576,$A176,AV$1))","v":""},{"$f":"IF($A176=\"N/A\",Ref!$B$36,INDEX(Ranks!$1:$1048576,$A176,AW$1))","v":""},{"$f":"IF($A176=\"N/A\",Ref!$B$36,INDEX(Ranks!$1:$1048576,$A176,AX$1))","v":""},{"$f":"IF($A176=\"N/A\",Ref!$B$36,INDEX(Ranks!$1:$1048576,$A176,AY$1))","v":""},{"$f":"IF($A176=\"N/A\",Ref!$B$36,INDEX(Ranks!$1:$1048576,$A176,AZ$1))","v":""},{"$f":"IF($A176=\"N/A\",Ref!$B$36,INDEX(Ranks!$1:$1048576,$A176,BA$1))","v":""},{"$f":"IF($A176=\"N/A\",Ref!$B$36,INDEX(Ranks!$1:$1048576,$A176,BB$1))","v":""},{"$f":"IF($A176=\"N/A\",Ref!$B$36,INDEX(Ranks!$1:$1048576,$A176,BC$1))","v":""},{"$f":"IF($A176=\"N/A\",Ref!$B$36,INDEX(Ranks!$1:$1048576,$A176,BD$1))","v":""},{"$f":"IF($A176=\"N/A\",Ref!$B$36,INDEX(Ranks!$1:$1048576,$A176,BE$1))","v":""},{"$f":"IF($A176=\"N/A\",Ref!$B$36,INDEX(Ranks!$1:$1048576,$A176,BF$1))","v":""},{"$f":"IF($A176=\"N/A\",Ref!$B$36,INDEX(Ranks!$1:$1048576,$A176,BG$1))","v":""},{"$f":"IF($A176=\"N/A\",Ref!$B$36,INDEX(Ranks!$1:$1048576,$A176,BH$1))","v":""},{"$f":"IF($A176=\"N/A\",Ref!$B$36,INDEX(Ranks!$1:$1048576,$A176,BI$1))","v":""},{"$f":"IF($A176=\"N/A\",Ref!$B$36,INDEX(Ranks!$1:$1048576,$A176,BJ$1))","v":""},{"$f":"IF($A176=\"N/A\",Ref!$B$36,INDEX(Ranks!$1:$1048576,$A176,BK$1))","v":""},{"$f":"IF($A176=\"N/A\",Ref!$B$36,INDEX(Ranks!$1:$1048576,$A176,BL$1))","v":""},{"$f":"IF($A176=\"N/A\",Ref!$B$36,INDEX(Ranks!$1:$1048576,$A176,BM$1))","v":""},{"$f":"IF($A176=\"N/A\",Ref!$B$36,INDEX(Ranks!$1:$1048576,$A176,BN$1))","v":""},{"$f":"IF($A176=\"N/A\",Ref!$B$36,INDEX(Ranks!$1:$1048576,$A176,BO$1))","v":""},{"$f":"IF($A176=\"N/A\",Ref!$B$36,INDEX(Ranks!$1:$1048576,$A176,BP$1))","v":""},{"$f":"IF($A176=\"N/A\",Ref!$B$36,INDEX(Ranks!$1:$1048576,$A176,BQ$1))","v":""},{"$f":"IF($A176=\"N/A\",Ref!$B$36,INDEX(Ranks!$1:$1048576,$A176,BR$1))","v":""},{"$f":"IF($A176=\"N/A\",Ref!$B$36,INDEX(Ranks!$1:$1048576,$A176,BS$1))","v":""},{"$f":"IF($A176=\"N/A\",Ref!$B$36,INDEX(Ranks!$1:$1048576,$A176,BT$1))","v":""},{"$f":"IF($A176=\"N/A\",Ref!$B$36,INDEX(Ranks!$1:$1048576,$A176,BU$1))","v":""},{"$f":"IF($A176=\"N/A\",Ref!$B$36,INDEX(Ranks!$1:$1048576,$A176,BV$1))","v":""},{"$f":"IF($A176=\"N/A\",Ref!$B$36,INDEX(Ranks!$1:$1048576,$A176,BW$1))","v":""},{"$f":"IF($A176=\"N/A\",Ref!$B$36,INDEX(Ranks!$1:$1048576,$A176,BX$1))","v":""},{"$f":"IF($A176=\"N/A\",Ref!$B$36,INDEX(Ranks!$1:$1048576,$A176,BY$1))","v":""},{"$f":"IF($A176=\"N/A\",Ref!$B$36,INDEX(Ranks!$1:$1048576,$A176,BZ$1))","v":""},{"$f":"IF($A176=\"N/A\",Ref!$B$36,INDEX(Ranks!$1:$1048576,$A176,CA$1))","v":""},{"$f":"IF($A176=\"N/A\",Ref!$B$36,INDEX(Ranks!$1:$1048576,$A176,CB$1))","v":""},{"$f":"IF($A176=\"N/A\",Ref!$B$36,INDEX(Ranks!$1:$1048576,$A176,CC$1))","v":""},{"$f":"IF($A176=\"N/A\",Ref!$B$36,INDEX(Ranks!$1:$1048576,$A176,CD$1))","v":""},{"$f":"IF($A176=\"N/A\",Ref!$B$36,INDEX(Ranks!$1:$1048576,$A176,CE$1))","v":""},{"$f":"IF($A176=\"N/A\",Ref!$B$36,INDEX(Ranks!$1:$1048576,$A176,CF$1))","v":""},{"$f":"IF($A176=\"N/A\",Ref!$B$36,INDEX(Ranks!$1:$1048576,$A176,CG$1))","v":""},{"$f":"IF($A176=\"N/A\",Ref!$B$36,INDEX(Ranks!$1:$1048576,$A176,CH$1))","v":""},{"$f":"IF($A176=\"N/A\",Ref!$B$36,INDEX(Ranks!$1:$1048576,$A176,CI$1))","v":""},{"$f":"IF($A176=\"N/A\",Ref!$B$36,INDEX(Ranks!$1:$1048576,$A176,CJ$1))","v":""},{"$f":"IF($A176=\"N/A\",Ref!$B$36,INDEX(Ranks!$1:$1048576,$A176,CK$1))","v":""},{"$f":"IF($A176=\"N/A\",Ref!$B$36,INDEX(Ranks!$1:$1048576,$A176,CL$1))","v":""},{"$f":"IF($A176=\"N/A\",Ref!$B$36,INDEX(Ranks!$1:$1048576,$A176,CM$1))","v":""},{"$f":"IF($A176=\"N/A\",Ref!$B$36,INDEX(Ranks!$1:$1048576,$A176,CN$1))","v":""},{"$f":"IF($A176=\"N/A\",Ref!$B$36,INDEX(Ranks!$1:$1048576,$A176,CO$1))","v":""},{"$f":"IF($A176=\"N/A\",Ref!$B$36,INDEX(Ranks!$1:$1048576,$A176,CP$1))","v":""},{"$f":"IF($A176=\"N/A\",Ref!$B$36,INDEX(Ranks!$1:$1048576,$A176,CQ$1))","v":""},{"$f":"IF($A176=\"N/A\",Ref!$B$36,INDEX(Ranks!$1:$1048576,$A176,CR$1))","v":""},{"$f":"IF($A176=\"N/A\",Ref!$B$36,INDEX(Ranks!$1:$1048576,$A176,CS$1))","v":""},{"$f":"IF($A176=\"N/A\",Ref!$B$36,INDEX(Ranks!$1:$1048576,$A176,CT$1))","v":""},{"$f":"IF($A176=\"N/A\",Ref!$B$36,INDEX(Ranks!$1:$1048576,$A176,CU$1))","v":""},{"$f":"IF($A176=\"N/A\",Ref!$B$36,INDEX(Ranks!$1:$1048576,$A176,CV$1))","v":""},{"$f":"IF($A176=\"N/A\",Ref!$B$36,INDEX(Ranks!$1:$1048576,$A176,CW$1))","v":""},{"$f":"IF($A176=\"N/A\",Ref!$B$36,INDEX(Ranks!$1:$1048576,$A176,CX$1))","v":""},{"$f":"IF($A176=\"N/A\",Ref!$B$36,INDEX(Ranks!$1:$1048576,$A176,CY$1))","v":""},{"$f":"IF($A176=\"N/A\",Ref!$B$36,INDEX(Ranks!$1:$1048576,$A176,CZ$1))","v":""},{"$f":"IF($A176=\"N/A\",Ref!$B$36,INDEX(Ranks!$1:$1048576,$A176,DA$1))","v":""},{"$f":"IF($A176=\"N/A\",Ref!$B$36,INDEX(Ranks!$1:$1048576,$A176,DB$1))","v":""},{"$f":"IF($A176=\"N/A\",Ref!$B$36,INDEX(Ranks!$1:$1048576,$A176,DC$1))","v":""},{"$f":"IF($A176=\"N/A\",Ref!$B$36,INDEX(Ranks!$1:$1048576,$A176,DD$1))","v":""},{"$f":"IF($A176=\"N/A\",Ref!$B$36,INDEX(Ranks!$1:$1048576,$A176,DE$1))","v":""},{"$f":"IF($A176=\"N/A\",Ref!$B$36,INDEX(Ranks!$1:$1048576,$A176,DF$1))","v":""},{"$f":"IF($A176=\"N/A\",Ref!$B$36,INDEX(Ranks!$1:$1048576,$A176,DG$1))","v":""},{"$f":"IF($A176=\"N/A\",Ref!$B$36,INDEX(Ranks!$1:$1048576,$A176,DH$1))","v":""},{"$f":"IF($A176=\"N/A\",Ref!$B$36,INDEX(Ranks!$1:$1048576,$A176,DI$1))","v":""},{"$f":"IF($A176=\"N/A\",Ref!$B$36,INDEX(Ranks!$1:$1048576,$A176,DJ$1))","v":""},{"$f":"IF($A176=\"N/A\",Ref!$B$36,INDEX(Ranks!$1:$1048576,$A176,DK$1))","v":""},{"$f":"IF($A176=\"N/A\",Ref!$B$36,INDEX(Ranks!$1:$1048576,$A176,DL$1))","v":""},{"$f":"IF($A176=\"N/A\",Ref!$B$36,INDEX(Ranks!$1:$1048576,$A176,DM$1))","v":""},{"$f":"IF($A176=\"N/A\",Ref!$B$36,INDEX(Ranks!$1:$1048576,$A176,DN$1))","v":""},{"$f":"IF($A176=\"N/A\",Ref!$B$36,INDEX(Ranks!$1:$1048576,$A176,DO$1))","v":""},{"$f":"IF($A176=\"N/A\",Ref!$B$36,INDEX(Ranks!$1:$1048576,$A176,DP$1))","v":""},{"$f":"IF($A176=\"N/A\",Ref!$B$36,INDEX(Ranks!$1:$1048576,$A176,DQ$1))","v":""},{"$f":"IF($A176=\"N/A\",Ref!$B$36,INDEX(Ranks!$1:$1048576,$A176,DR$1))","v":""},{"$f":"IF($A176=\"N/A\",Ref!$B$36,INDEX(Ranks!$1:$1048576,$A176,DS$1))","v":""},{"$f":"IF($A176=\"N/A\",Ref!$B$36,INDEX(Ranks!$1:$1048576,$A176,DT$1))","v":""},{"$f":"IF($A176=\"N/A\",Ref!$B$36,INDEX(Ranks!$1:$1048576,$A176,DU$1))","v":""},{"$f":"IF($A176=\"N/A\",Ref!$B$36,INDEX(Ranks!$1:$1048576,$A176,DV$1))","v":""},{"$f":"IF($A176=\"N/A\",Ref!$B$36,INDEX(Ranks!$1:$1048576,$A176,DW$1))","v":""},{"$f":"IF($A176=\"N/A\",Ref!$B$36,INDEX(Ranks!$1:$1048576,$A176,DX$1))","v":""},{"$f":"IF($A176=\"N/A\",Ref!$B$36,INDEX(Ranks!$1:$1048576,$A176,DY$1))","v":""},{"$f":"IF($A176=\"N/A\",Ref!$B$36,INDEX(Ranks!$1:$1048576,$A176,DZ$1))","v":""},{"$f":"IF($A176=\"N/A\",Ref!$B$36,INDEX(Ranks!$1:$1048576,$A176,EA$1))","v":""},{"$f":"IF($A176=\"N/A\",Ref!$B$36,INDEX(Ranks!$1:$1048576,$A176,EB$1))","v":""}]
[{"$f":"IFERROR(MATCH('Portfolio Page'!L177,Ranks!L:L,0),\"N/A\")","v":"N/A"},null,{"$f":"IF($A177=\"N/A\",\"\",INDEX(Ranks!$1:$1048576,$A177,C$1))","v":""},{"$f":"IF($A177=\"N/A\",Ref!$B$36,INDEX(Ranks!$1:$1048576,$A177,D$1))","v":""},{"$f":"IF($A177=\"N/A\",Ref!$B$36,INDEX(Ranks!$1:$1048576,$A177,E$1))","v":""},{"$f":"IF($A177=\"N/A\",\"\",INDEX(Ranks!$1:$1048576,$A177,F$1))","v":""},{"$f":"IF($A177=\"N/A\",\"\",INDEX(Ranks!$1:$1048576,$A177,G$1))","v":""},{"$f":"IF($A177=\"N/A\",\"\",INDEX(Ranks!$1:$1048576,$A177,H$1))","v":""},{"$f":"IF($A177=\"N/A\",\"\",INDEX(Ranks!$1:$1048576,$A177,I$1))","v":""},{"$f":"IF($A177=\"N/A\",\"\",INDEX(Ranks!$1:$1048576,$A177,J$1))","v":""},{"$f":"IF($A177=\"N/A\",\"\",INDEX(Ranks!$1:$1048576,$A177,K$1))","v":""},null,{"$f":"IF($A177=\"N/A\",Ref!$B$36,INDEX(Ranks!$1:$1048576,$A177,M$1))","v":""},{"$f":"IF($A177=\"N/A\",Ref!$B$36,INDEX(Ranks!$1:$1048576,$A177,N$1))","v":""},{"$f":"IF($A177=\"N/A\",Ref!$B$36,INDEX(Ranks!$1:$1048576,$A177,O$1))","v":""},{"$f":"IF($A177=\"N/A\",Ref!$B$36,INDEX(Ranks!$1:$1048576,$A177,P$1))","v":""},{"$f":"IF($A177=\"N/A\",Ref!$B$36,INDEX(Ranks!$1:$1048576,$A177,Q$1))","v":""},{"$f":"IF($A177=\"N/A\",Ref!$B$36,INDEX(Ranks!$1:$1048576,$A177,R$1))","v":""},{"$f":"IF($A177=\"N/A\",Ref!$B$36,INDEX(Ranks!$1:$1048576,$A177,S$1))","v":""},{"$f":"IF($A177=\"N/A\",Ref!$B$36,INDEX(Ranks!$1:$1048576,$A177,T$1))","v":""},{"$f":"IF($A177=\"N/A\",Ref!$B$36,INDEX(Ranks!$1:$1048576,$A177,U$1))","v":""},{"$f":"IF($A177=\"N/A\",Ref!$B$36,INDEX(Ranks!$1:$1048576,$A177,V$1))","v":""},{"$f":"IF($A177=\"N/A\",Ref!$B$36,INDEX(Ranks!$1:$1048576,$A177,W$1))","v":""},{"$f":"IF($A177=\"N/A\",Ref!$B$36,INDEX(Ranks!$1:$1048576,$A177,X$1))","v":""},{"$f":"IF($A177=\"N/A\",Ref!$B$36,INDEX(Ranks!$1:$1048576,$A177,Y$1))","v":""},{"$f":"IF($A177=\"N/A\",Ref!$B$36,INDEX(Ranks!$1:$1048576,$A177,Z$1))","v":""},{"$f":"IF($A177=\"N/A\",Ref!$B$36,INDEX(Ranks!$1:$1048576,$A177,AA$1))","v":""},{"$f":"IF($A177=\"N/A\",Ref!$B$36,INDEX(Ranks!$1:$1048576,$A177,AB$1))","v":""},{"$f":"IF($A177=\"N/A\",Ref!$B$36,INDEX(Ranks!$1:$1048576,$A177,AC$1))","v":""},{"$f":"IF($A177=\"N/A\",Ref!$B$36,INDEX(Ranks!$1:$1048576,$A177,AD$1))","v":""},{"$f":"IF($A177=\"N/A\",Ref!$B$36,INDEX(Ranks!$1:$1048576,$A177,AE$1))","v":""},{"$f":"IF($A177=\"N/A\",Ref!$B$36,INDEX(Ranks!$1:$1048576,$A177,AF$1))","v":""},{"$f":"IF($A177=\"N/A\",Ref!$B$36,INDEX(Ranks!$1:$1048576,$A177,AG$1))","v":""},{"$f":"IF($A177=\"N/A\",Ref!$B$36,INDEX(Ranks!$1:$1048576,$A177,AH$1))","v":""},{"$f":"IF($A177=\"N/A\",Ref!$B$36,INDEX(Ranks!$1:$1048576,$A177,AI$1))","v":""},{"$f":"IF($A177=\"N/A\",Ref!$B$36,INDEX(Ranks!$1:$1048576,$A177,AJ$1))","v":""},{"$f":"IF($A177=\"N/A\",Ref!$B$36,INDEX(Ranks!$1:$1048576,$A177,AK$1))","v":""},{"$f":"IF($A177=\"N/A\",Ref!$B$36,INDEX(Ranks!$1:$1048576,$A177,AL$1))","v":""},{"$f":"IF($A177=\"N/A\",Ref!$B$36,INDEX(Ranks!$1:$1048576,$A177,AM$1))","v":""},{"$f":"IF($A177=\"N/A\",Ref!$B$36,INDEX(Ranks!$1:$1048576,$A177,AN$1))","v":""},{"$f":"IF($A177=\"N/A\",Ref!$B$36,INDEX(Ranks!$1:$1048576,$A177,AO$1))","v":""},{"$f":"IF($A177=\"N/A\",Ref!$B$36,INDEX(Ranks!$1:$1048576,$A177,AP$1))","v":""},{"$f":"IF($A177=\"N/A\",Ref!$B$36,INDEX(Ranks!$1:$1048576,$A177,AQ$1))","v":""},{"$f":"IF($A177=\"N/A\",Ref!$B$36,INDEX(Ranks!$1:$1048576,$A177,AR$1))","v":""},{"$f":"IF($A177=\"N/A\",Ref!$B$36,INDEX(Ranks!$1:$1048576,$A177,AS$1))","v":""},{"$f":"IF($A177=\"N/A\",Ref!$B$36,INDEX(Ranks!$1:$1048576,$A177,AT$1))","v":""},{"$f":"IF($A177=\"N/A\",Ref!$B$36,INDEX(Ranks!$1:$1048576,$A177,AU$1))","v":""},{"$f":"IF($A177=\"N/A\",Ref!$B$36,INDEX(Ranks!$1:$1048576,$A177,AV$1))","v":""},{"$f":"IF($A177=\"N/A\",Ref!$B$36,INDEX(Ranks!$1:$1048576,$A177,AW$1))","v":""},{"$f":"IF($A177=\"N/A\",Ref!$B$36,INDEX(Ranks!$1:$1048576,$A177,AX$1))","v":""},{"$f":"IF($A177=\"N/A\",Ref!$B$36,INDEX(Ranks!$1:$1048576,$A177,AY$1))","v":""},{"$f":"IF($A177=\"N/A\",Ref!$B$36,INDEX(Ranks!$1:$1048576,$A177,AZ$1))","v":""},{"$f":"IF($A177=\"N/A\",Ref!$B$36,INDEX(Ranks!$1:$1048576,$A177,BA$1))","v":""},{"$f":"IF($A177=\"N/A\",Ref!$B$36,INDEX(Ranks!$1:$1048576,$A177,BB$1))","v":""},{"$f":"IF($A177=\"N/A\",Ref!$B$36,INDEX(Ranks!$1:$1048576,$A177,BC$1))","v":""},{"$f":"IF($A177=\"N/A\",Ref!$B$36,INDEX(Ranks!$1:$1048576,$A177,BD$1))","v":""},{"$f":"IF($A177=\"N/A\",Ref!$B$36,INDEX(Ranks!$1:$1048576,$A177,BE$1))","v":""},{"$f":"IF($A177=\"N/A\",Ref!$B$36,INDEX(Ranks!$1:$1048576,$A177,BF$1))","v":""},{"$f":"IF($A177=\"N/A\",Ref!$B$36,INDEX(Ranks!$1:$1048576,$A177,BG$1))","v":""},{"$f":"IF($A177=\"N/A\",Ref!$B$36,INDEX(Ranks!$1:$1048576,$A177,BH$1))","v":""},{"$f":"IF($A177=\"N/A\",Ref!$B$36,INDEX(Ranks!$1:$1048576,$A177,BI$1))","v":""},{"$f":"IF($A177=\"N/A\",Ref!$B$36,INDEX(Ranks!$1:$1048576,$A177,BJ$1))","v":""},{"$f":"IF($A177=\"N/A\",Ref!$B$36,INDEX(Ranks!$1:$1048576,$A177,BK$1))","v":""},{"$f":"IF($A177=\"N/A\",Ref!$B$36,INDEX(Ranks!$1:$1048576,$A177,BL$1))","v":""},{"$f":"IF($A177=\"N/A\",Ref!$B$36,INDEX(Ranks!$1:$1048576,$A177,BM$1))","v":""},{"$f":"IF($A177=\"N/A\",Ref!$B$36,INDEX(Ranks!$1:$1048576,$A177,BN$1))","v":""},{"$f":"IF($A177=\"N/A\",Ref!$B$36,INDEX(Ranks!$1:$1048576,$A177,BO$1))","v":""},{"$f":"IF($A177=\"N/A\",Ref!$B$36,INDEX(Ranks!$1:$1048576,$A177,BP$1))","v":""},{"$f":"IF($A177=\"N/A\",Ref!$B$36,INDEX(Ranks!$1:$1048576,$A177,BQ$1))","v":""},{"$f":"IF($A177=\"N/A\",Ref!$B$36,INDEX(Ranks!$1:$1048576,$A177,BR$1))","v":""},{"$f":"IF($A177=\"N/A\",Ref!$B$36,INDEX(Ranks!$1:$1048576,$A177,BS$1))","v":""},{"$f":"IF($A177=\"N/A\",Ref!$B$36,INDEX(Ranks!$1:$1048576,$A177,BT$1))","v":""},{"$f":"IF($A177=\"N/A\",Ref!$B$36,INDEX(Ranks!$1:$1048576,$A177,BU$1))","v":""},{"$f":"IF($A177=\"N/A\",Ref!$B$36,INDEX(Ranks!$1:$1048576,$A177,BV$1))","v":""},{"$f":"IF($A177=\"N/A\",Ref!$B$36,INDEX(Ranks!$1:$1048576,$A177,BW$1))","v":""},{"$f":"IF($A177=\"N/A\",Ref!$B$36,INDEX(Ranks!$1:$1048576,$A177,BX$1))","v":""},{"$f":"IF($A177=\"N/A\",Ref!$B$36,INDEX(Ranks!$1:$1048576,$A177,BY$1))","v":""},{"$f":"IF($A177=\"N/A\",Ref!$B$36,INDEX(Ranks!$1:$1048576,$A177,BZ$1))","v":""},{"$f":"IF($A177=\"N/A\",Ref!$B$36,INDEX(Ranks!$1:$1048576,$A177,CA$1))","v":""},{"$f":"IF($A177=\"N/A\",Ref!$B$36,INDEX(Ranks!$1:$1048576,$A177,CB$1))","v":""},{"$f":"IF($A177=\"N/A\",Ref!$B$36,INDEX(Ranks!$1:$1048576,$A177,CC$1))","v":""},{"$f":"IF($A177=\"N/A\",Ref!$B$36,INDEX(Ranks!$1:$1048576,$A177,CD$1))","v":""},{"$f":"IF($A177=\"N/A\",Ref!$B$36,INDEX(Ranks!$1:$1048576,$A177,CE$1))","v":""},{"$f":"IF($A177=\"N/A\",Ref!$B$36,INDEX(Ranks!$1:$1048576,$A177,CF$1))","v":""},{"$f":"IF($A177=\"N/A\",Ref!$B$36,INDEX(Ranks!$1:$1048576,$A177,CG$1))","v":""},{"$f":"IF($A177=\"N/A\",Ref!$B$36,INDEX(Ranks!$1:$1048576,$A177,CH$1))","v":""},{"$f":"IF($A177=\"N/A\",Ref!$B$36,INDEX(Ranks!$1:$1048576,$A177,CI$1))","v":""},{"$f":"IF($A177=\"N/A\",Ref!$B$36,INDEX(Ranks!$1:$1048576,$A177,CJ$1))","v":""},{"$f":"IF($A177=\"N/A\",Ref!$B$36,INDEX(Ranks!$1:$1048576,$A177,CK$1))","v":""},{"$f":"IF($A177=\"N/A\",Ref!$B$36,INDEX(Ranks!$1:$1048576,$A177,CL$1))","v":""},{"$f":"IF($A177=\"N/A\",Ref!$B$36,INDEX(Ranks!$1:$1048576,$A177,CM$1))","v":""},{"$f":"IF($A177=\"N/A\",Ref!$B$36,INDEX(Ranks!$1:$1048576,$A177,CN$1))","v":""},{"$f":"IF($A177=\"N/A\",Ref!$B$36,INDEX(Ranks!$1:$1048576,$A177,CO$1))","v":""},{"$f":"IF($A177=\"N/A\",Ref!$B$36,INDEX(Ranks!$1:$1048576,$A177,CP$1))","v":""},{"$f":"IF($A177=\"N/A\",Ref!$B$36,INDEX(Ranks!$1:$1048576,$A177,CQ$1))","v":""},{"$f":"IF($A177=\"N/A\",Ref!$B$36,INDEX(Ranks!$1:$1048576,$A177,CR$1))","v":""},{"$f":"IF($A177=\"N/A\",Ref!$B$36,INDEX(Ranks!$1:$1048576,$A177,CS$1))","v":""},{"$f":"IF($A177=\"N/A\",Ref!$B$36,INDEX(Ranks!$1:$1048576,$A177,CT$1))","v":""},{"$f":"IF($A177=\"N/A\",Ref!$B$36,INDEX(Ranks!$1:$1048576,$A177,CU$1))","v":""},{"$f":"IF($A177=\"N/A\",Ref!$B$36,INDEX(Ranks!$1:$1048576,$A177,CV$1))","v":""},{"$f":"IF($A177=\"N/A\",Ref!$B$36,INDEX(Ranks!$1:$1048576,$A177,CW$1))","v":""},{"$f":"IF($A177=\"N/A\",Ref!$B$36,INDEX(Ranks!$1:$1048576,$A177,CX$1))","v":""},{"$f":"IF($A177=\"N/A\",Ref!$B$36,INDEX(Ranks!$1:$1048576,$A177,CY$1))","v":""},{"$f":"IF($A177=\"N/A\",Ref!$B$36,INDEX(Ranks!$1:$1048576,$A177,CZ$1))","v":""},{"$f":"IF($A177=\"N/A\",Ref!$B$36,INDEX(Ranks!$1:$1048576,$A177,DA$1))","v":""},{"$f":"IF($A177=\"N/A\",Ref!$B$36,INDEX(Ranks!$1:$1048576,$A177,DB$1))","v":""},{"$f":"IF($A177=\"N/A\",Ref!$B$36,INDEX(Ranks!$1:$1048576,$A177,DC$1))","v":""},{"$f":"IF($A177=\"N/A\",Ref!$B$36,INDEX(Ranks!$1:$1048576,$A177,DD$1))","v":""},{"$f":"IF($A177=\"N/A\",Ref!$B$36,INDEX(Ranks!$1:$1048576,$A177,DE$1))","v":""},{"$f":"IF($A177=\"N/A\",Ref!$B$36,INDEX(Ranks!$1:$1048576,$A177,DF$1))","v":""},{"$f":"IF($A177=\"N/A\",Ref!$B$36,INDEX(Ranks!$1:$1048576,$A177,DG$1))","v":""},{"$f":"IF($A177=\"N/A\",Ref!$B$36,INDEX(Ranks!$1:$1048576,$A177,DH$1))","v":""},{"$f":"IF($A177=\"N/A\",Ref!$B$36,INDEX(Ranks!$1:$1048576,$A177,DI$1))","v":""},{"$f":"IF($A177=\"N/A\",Ref!$B$36,INDEX(Ranks!$1:$1048576,$A177,DJ$1))","v":""},{"$f":"IF($A177=\"N/A\",Ref!$B$36,INDEX(Ranks!$1:$1048576,$A177,DK$1))","v":""},{"$f":"IF($A177=\"N/A\",Ref!$B$36,INDEX(Ranks!$1:$1048576,$A177,DL$1))","v":""},{"$f":"IF($A177=\"N/A\",Ref!$B$36,INDEX(Ranks!$1:$1048576,$A177,DM$1))","v":""},{"$f":"IF($A177=\"N/A\",Ref!$B$36,INDEX(Ranks!$1:$1048576,$A177,DN$1))","v":""},{"$f":"IF($A177=\"N/A\",Ref!$B$36,INDEX(Ranks!$1:$1048576,$A177,DO$1))","v":""},{"$f":"IF($A177=\"N/A\",Ref!$B$36,INDEX(Ranks!$1:$1048576,$A177,DP$1))","v":""},{"$f":"IF($A177=\"N/A\",Ref!$B$36,INDEX(Ranks!$1:$1048576,$A177,DQ$1))","v":""},{"$f":"IF($A177=\"N/A\",Ref!$B$36,INDEX(Ranks!$1:$1048576,$A177,DR$1))","v":""},{"$f":"IF($A177=\"N/A\",Ref!$B$36,INDEX(Ranks!$1:$1048576,$A177,DS$1))","v":""},{"$f":"IF($A177=\"N/A\",Ref!$B$36,INDEX(Ranks!$1:$1048576,$A177,DT$1))","v":""},{"$f":"IF($A177=\"N/A\",Ref!$B$36,INDEX(Ranks!$1:$1048576,$A177,DU$1))","v":""},{"$f":"IF($A177=\"N/A\",Ref!$B$36,INDEX(Ranks!$1:$1048576,$A177,DV$1))","v":""},{"$f":"IF($A177=\"N/A\",Ref!$B$36,INDEX(Ranks!$1:$1048576,$A177,DW$1))","v":""},{"$f":"IF($A177=\"N/A\",Ref!$B$36,INDEX(Ranks!$1:$1048576,$A177,DX$1))","v":""},{"$f":"IF($A177=\"N/A\",Ref!$B$36,INDEX(Ranks!$1:$1048576,$A177,DY$1))","v":""},{"$f":"IF($A177=\"N/A\",Ref!$B$36,INDEX(Ranks!$1:$1048576,$A177,DZ$1))","v":""},{"$f":"IF($A177=\"N/A\",Ref!$B$36,INDEX(Ranks!$1:$1048576,$A177,EA$1))","v":""},{"$f":"IF($A177=\"N/A\",Ref!$B$36,INDEX(Ranks!$1:$1048576,$A177,EB$1))","v":""}]
[{"$f":"IFERROR(MATCH('Portfolio Page'!L178,Ranks!L:L,0),\"N/A\")","v":"N/A"},null,{"$f":"IF($A178=\"N/A\",\"\",INDEX(Ranks!$1:$1048576,$A178,C$1))","v":""},{"$f":"IF($A178=\"N/A\",Ref!$B$36,INDEX(Ranks!$1:$1048576,$A178,D$1))","v":""},{"$f":"IF($A178=\"N/A\",Ref!$B$36,INDEX(Ranks!$1:$1048576,$A178,E$1))","v":""},{"$f":"IF($A178=\"N/A\",\"\",INDEX(Ranks!$1:$1048576,$A178,F$1))","v":""},{"$f":"IF($A178=\"N/A\",\"\",INDEX(Ranks!$1:$1048576,$A178,G$1))","v":""},{"$f":"IF($A178=\"N/A\",\"\",INDEX(Ranks!$1:$1048576,$A178,H$1))","v":""},{"$f":"IF($A178=\"N/A\",\"\",INDEX(Ranks!$1:$1048576,$A178,I$1))","v":""},{"$f":"IF($A178=\"N/A\",\"\",INDEX(Ranks!$1:$1048576,$A178,J$1))","v":""},{"$f":"IF($A178=\"N/A\",\"\",INDEX(Ranks!$1:$1048576,$A178,K$1))","v":""},null,{"$f":"IF($A178=\"N/A\",Ref!$B$36,INDEX(Ranks!$1:$1048576,$A178,M$1))","v":""},{"$f":"IF($A178=\"N/A\",Ref!$B$36,INDEX(Ranks!$1:$1048576,$A178,N$1))","v":""},{"$f":"IF($A178=\"N/A\",Ref!$B$36,INDEX(Ranks!$1:$1048576,$A178,O$1))","v":""},{"$f":"IF($A178=\"N/A\",Ref!$B$36,INDEX(Ranks!$1:$1048576,$A178,P$1))","v":""},{"$f":"IF($A178=\"N/A\",Ref!$B$36,INDEX(Ranks!$1:$1048576,$A178,Q$1))","v":""},{"$f":"IF($A178=\"N/A\",Ref!$B$36,INDEX(Ranks!$1:$1048576,$A178,R$1))","v":""},{"$f":"IF($A178=\"N/A\",Ref!$B$36,INDEX(Ranks!$1:$1048576,$A178,S$1))","v":""},{"$f":"IF($A178=\"N/A\",Ref!$B$36,INDEX(Ranks!$1:$1048576,$A178,T$1))","v":""},{"$f":"IF($A178=\"N/A\",Ref!$B$36,INDEX(Ranks!$1:$1048576,$A178,U$1))","v":""},{"$f":"IF($A178=\"N/A\",Ref!$B$36,INDEX(Ranks!$1:$1048576,$A178,V$1))","v":""},{"$f":"IF($A178=\"N/A\",Ref!$B$36,INDEX(Ranks!$1:$1048576,$A178,W$1))","v":""},{"$f":"IF($A178=\"N/A\",Ref!$B$36,INDEX(Ranks!$1:$1048576,$A178,X$1))","v":""},{"$f":"IF($A178=\"N/A\",Ref!$B$36,INDEX(Ranks!$1:$1048576,$A178,Y$1))","v":""},{"$f":"IF($A178=\"N/A\",Ref!$B$36,INDEX(Ranks!$1:$1048576,$A178,Z$1))","v":""},{"$f":"IF($A178=\"N/A\",Ref!$B$36,INDEX(Ranks!$1:$1048576,$A178,AA$1))","v":""},{"$f":"IF($A178=\"N/A\",Ref!$B$36,INDEX(Ranks!$1:$1048576,$A178,AB$1))","v":""},{"$f":"IF($A178=\"N/A\",Ref!$B$36,INDEX(Ranks!$1:$1048576,$A178,AC$1))","v":""},{"$f":"IF($A178=\"N/A\",Ref!$B$36,INDEX(Ranks!$1:$1048576,$A178,AD$1))","v":""},{"$f":"IF($A178=\"N/A\",Ref!$B$36,INDEX(Ranks!$1:$1048576,$A178,AE$1))","v":""},{"$f":"IF($A178=\"N/A\",Ref!$B$36,INDEX(Ranks!$1:$1048576,$A178,AF$1))","v":""},{"$f":"IF($A178=\"N/A\",Ref!$B$36,INDEX(Ranks!$1:$1048576,$A178,AG$1))","v":""},{"$f":"IF($A178=\"N/A\",Ref!$B$36,INDEX(Ranks!$1:$1048576,$A178,AH$1))","v":""},{"$f":"IF($A178=\"N/A\",Ref!$B$36,INDEX(Ranks!$1:$1048576,$A178,AI$1))","v":""},{"$f":"IF($A178=\"N/A\",Ref!$B$36,INDEX(Ranks!$1:$1048576,$A178,AJ$1))","v":""},{"$f":"IF($A178=\"N/A\",Ref!$B$36,INDEX(Ranks!$1:$1048576,$A178,AK$1))","v":""},{"$f":"IF($A178=\"N/A\",Ref!$B$36,INDEX(Ranks!$1:$1048576,$A178,AL$1))","v":""},{"$f":"IF($A178=\"N/A\",Ref!$B$36,INDEX(Ranks!$1:$1048576,$A178,AM$1))","v":""},{"$f":"IF($A178=\"N/A\",Ref!$B$36,INDEX(Ranks!$1:$1048576,$A178,AN$1))","v":""},{"$f":"IF($A178=\"N/A\",Ref!$B$36,INDEX(Ranks!$1:$1048576,$A178,AO$1))","v":""},{"$f":"IF($A178=\"N/A\",Ref!$B$36,INDEX(Ranks!$1:$1048576,$A178,AP$1))","v":""},{"$f":"IF($A178=\"N/A\",Ref!$B$36,INDEX(Ranks!$1:$1048576,$A178,AQ$1))","v":""},{"$f":"IF($A178=\"N/A\",Ref!$B$36,INDEX(Ranks!$1:$1048576,$A178,AR$1))","v":""},{"$f":"IF($A178=\"N/A\",Ref!$B$36,INDEX(Ranks!$1:$1048576,$A178,AS$1))","v":""},{"$f":"IF($A178=\"N/A\",Ref!$B$36,INDEX(Ranks!$1:$1048576,$A178,AT$1))","v":""},{"$f":"IF($A178=\"N/A\",Ref!$B$36,INDEX(Ranks!$1:$1048576,$A178,AU$1))","v":""},{"$f":"IF($A178=\"N/A\",Ref!$B$36,INDEX(Ranks!$1:$1048576,$A178,AV$1))","v":""},{"$f":"IF($A178=\"N/A\",Ref!$B$36,INDEX(Ranks!$1:$1048576,$A178,AW$1))","v":""},{"$f":"IF($A178=\"N/A\",Ref!$B$36,INDEX(Ranks!$1:$1048576,$A178,AX$1))","v":""},{"$f":"IF($A178=\"N/A\",Ref!$B$36,INDEX(Ranks!$1:$1048576,$A178,AY$1))","v":""},{"$f":"IF($A178=\"N/A\",Ref!$B$36,INDEX(Ranks!$1:$1048576,$A178,AZ$1))","v":""},{"$f":"IF($A178=\"N/A\",Ref!$B$36,INDEX(Ranks!$1:$1048576,$A178,BA$1))","v":""},{"$f":"IF($A178=\"N/A\",Ref!$B$36,INDEX(Ranks!$1:$1048576,$A178,BB$1))","v":""},{"$f":"IF($A178=\"N/A\",Ref!$B$36,INDEX(Ranks!$1:$1048576,$A178,BC$1))","v":""},{"$f":"IF($A178=\"N/A\",Ref!$B$36,INDEX(Ranks!$1:$1048576,$A178,BD$1))","v":""},{"$f":"IF($A178=\"N/A\",Ref!$B$36,INDEX(Ranks!$1:$1048576,$A178,BE$1))","v":""},{"$f":"IF($A178=\"N/A\",Ref!$B$36,INDEX(Ranks!$1:$1048576,$A178,BF$1))","v":""},{"$f":"IF($A178=\"N/A\",Ref!$B$36,INDEX(Ranks!$1:$1048576,$A178,BG$1))","v":""},{"$f":"IF($A178=\"N/A\",Ref!$B$36,INDEX(Ranks!$1:$1048576,$A178,BH$1))","v":""},{"$f":"IF($A178=\"N/A\",Ref!$B$36,INDEX(Ranks!$1:$1048576,$A178,BI$1))","v":""},{"$f":"IF($A178=\"N/A\",Ref!$B$36,INDEX(Ranks!$1:$1048576,$A178,BJ$1))","v":""},{"$f":"IF($A178=\"N/A\",Ref!$B$36,INDEX(Ranks!$1:$1048576,$A178,BK$1))","v":""},{"$f":"IF($A178=\"N/A\",Ref!$B$36,INDEX(Ranks!$1:$1048576,$A178,BL$1))","v":""},{"$f":"IF($A178=\"N/A\",Ref!$B$36,INDEX(Ranks!$1:$1048576,$A178,BM$1))","v":""},{"$f":"IF($A178=\"N/A\",Ref!$B$36,INDEX(Ranks!$1:$1048576,$A178,BN$1))","v":""},{"$f":"IF($A178=\"N/A\",Ref!$B$36,INDEX(Ranks!$1:$1048576,$A178,BO$1))","v":""},{"$f":"IF($A178=\"N/A\",Ref!$B$36,INDEX(Ranks!$1:$1048576,$A178,BP$1))","v":""},{"$f":"IF($A178=\"N/A\",Ref!$B$36,INDEX(Ranks!$1:$1048576,$A178,BQ$1))","v":""},{"$f":"IF($A178=\"N/A\",Ref!$B$36,INDEX(Ranks!$1:$1048576,$A178,BR$1))","v":""},{"$f":"IF($A178=\"N/A\",Ref!$B$36,INDEX(Ranks!$1:$1048576,$A178,BS$1))","v":""},{"$f":"IF($A178=\"N/A\",Ref!$B$36,INDEX(Ranks!$1:$1048576,$A178,BT$1))","v":""},{"$f":"IF($A178=\"N/A\",Ref!$B$36,INDEX(Ranks!$1:$1048576,$A178,BU$1))","v":""},{"$f":"IF($A178=\"N/A\",Ref!$B$36,INDEX(Ranks!$1:$1048576,$A178,BV$1))","v":""},{"$f":"IF($A178=\"N/A\",Ref!$B$36,INDEX(Ranks!$1:$1048576,$A178,BW$1))","v":""},{"$f":"IF($A178=\"N/A\",Ref!$B$36,INDEX(Ranks!$1:$1048576,$A178,BX$1))","v":""},{"$f":"IF($A178=\"N/A\",Ref!$B$36,INDEX(Ranks!$1:$1048576,$A178,BY$1))","v":""},{"$f":"IF($A178=\"N/A\",Ref!$B$36,INDEX(Ranks!$1:$1048576,$A178,BZ$1))","v":""},{"$f":"IF($A178=\"N/A\",Ref!$B$36,INDEX(Ranks!$1:$1048576,$A178,CA$1))","v":""},{"$f":"IF($A178=\"N/A\",Ref!$B$36,INDEX(Ranks!$1:$1048576,$A178,CB$1))","v":""},{"$f":"IF($A178=\"N/A\",Ref!$B$36,INDEX(Ranks!$1:$1048576,$A178,CC$1))","v":""},{"$f":"IF($A178=\"N/A\",Ref!$B$36,INDEX(Ranks!$1:$1048576,$A178,CD$1))","v":""},{"$f":"IF($A178=\"N/A\",Ref!$B$36,INDEX(Ranks!$1:$1048576,$A178,CE$1))","v":""},{"$f":"IF($A178=\"N/A\",Ref!$B$36,INDEX(Ranks!$1:$1048576,$A178,CF$1))","v":""},{"$f":"IF($A178=\"N/A\",Ref!$B$36,INDEX(Ranks!$1:$1048576,$A178,CG$1))","v":""},{"$f":"IF($A178=\"N/A\",Ref!$B$36,INDEX(Ranks!$1:$1048576,$A178,CH$1))","v":""},{"$f":"IF($A178=\"N/A\",Ref!$B$36,INDEX(Ranks!$1:$1048576,$A178,CI$1))","v":""},{"$f":"IF($A178=\"N/A\",Ref!$B$36,INDEX(Ranks!$1:$1048576,$A178,CJ$1))","v":""},{"$f":"IF($A178=\"N/A\",Ref!$B$36,INDEX(Ranks!$1:$1048576,$A178,CK$1))","v":""},{"$f":"IF($A178=\"N/A\",Ref!$B$36,INDEX(Ranks!$1:$1048576,$A178,CL$1))","v":""},{"$f":"IF($A178=\"N/A\",Ref!$B$36,INDEX(Ranks!$1:$1048576,$A178,CM$1))","v":""},{"$f":"IF($A178=\"N/A\",Ref!$B$36,INDEX(Ranks!$1:$1048576,$A178,CN$1))","v":""},{"$f":"IF($A178=\"N/A\",Ref!$B$36,INDEX(Ranks!$1:$1048576,$A178,CO$1))","v":""},{"$f":"IF($A178=\"N/A\",Ref!$B$36,INDEX(Ranks!$1:$1048576,$A178,CP$1))","v":""},{"$f":"IF($A178=\"N/A\",Ref!$B$36,INDEX(Ranks!$1:$1048576,$A178,CQ$1))","v":""},{"$f":"IF($A178=\"N/A\",Ref!$B$36,INDEX(Ranks!$1:$1048576,$A178,CR$1))","v":""},{"$f":"IF($A178=\"N/A\",Ref!$B$36,INDEX(Ranks!$1:$1048576,$A178,CS$1))","v":""},{"$f":"IF($A178=\"N/A\",Ref!$B$36,INDEX(Ranks!$1:$1048576,$A178,CT$1))","v":""},{"$f":"IF($A178=\"N/A\",Ref!$B$36,INDEX(Ranks!$1:$1048576,$A178,CU$1))","v":""},{"$f":"IF($A178=\"N/A\",Ref!$B$36,INDEX(Ranks!$1:$1048576,$A178,CV$1))","v":""},{"$f":"IF($A178=\"N/A\",Ref!$B$36,INDEX(Ranks!$1:$1048576,$A178,CW$1))","v":""},{"$f":"IF($A178=\"N/A\",Ref!$B$36,INDEX(Ranks!$1:$1048576,$A178,CX$1))","v":""},{"$f":"IF($A178=\"N/A\",Ref!$B$36,INDEX(Ranks!$1:$1048576,$A178,CY$1))","v":""},{"$f":"IF($A178=\"N/A\",Ref!$B$36,INDEX(Ranks!$1:$1048576,$A178,CZ$1))","v":""},{"$f":"IF($A178=\"N/A\",Ref!$B$36,INDEX(Ranks!$1:$1048576,$A178,DA$1))","v":""},{"$f":"IF($A178=\"N/A\",Ref!$B$36,INDEX(Ranks!$1:$1048576,$A178,DB$1))","v":""},{"$f":"IF($A178=\"N/A\",Ref!$B$36,INDEX(Ranks!$1:$1048576,$A178,DC$1))","v":""},{"$f":"IF($A178=\"N/A\",Ref!$B$36,INDEX(Ranks!$1:$1048576,$A178,DD$1))","v":""},{"$f":"IF($A178=\"N/A\",Ref!$B$36,INDEX(Ranks!$1:$1048576,$A178,DE$1))","v":""},{"$f":"IF($A178=\"N/A\",Ref!$B$36,INDEX(Ranks!$1:$1048576,$A178,DF$1))","v":""},{"$f":"IF($A178=\"N/A\",Ref!$B$36,INDEX(Ranks!$1:$1048576,$A178,DG$1))","v":""},{"$f":"IF($A178=\"N/A\",Ref!$B$36,INDEX(Ranks!$1:$1048576,$A178,DH$1))","v":""},{"$f":"IF($A178=\"N/A\",Ref!$B$36,INDEX(Ranks!$1:$1048576,$A178,DI$1))","v":""},{"$f":"IF($A178=\"N/A\",Ref!$B$36,INDEX(Ranks!$1:$1048576,$A178,DJ$1))","v":""},{"$f":"IF($A178=\"N/A\",Ref!$B$36,INDEX(Ranks!$1:$1048576,$A178,DK$1))","v":""},{"$f":"IF($A178=\"N/A\",Ref!$B$36,INDEX(Ranks!$1:$1048576,$A178,DL$1))","v":""},{"$f":"IF($A178=\"N/A\",Ref!$B$36,INDEX(Ranks!$1:$1048576,$A178,DM$1))","v":""},{"$f":"IF($A178=\"N/A\",Ref!$B$36,INDEX(Ranks!$1:$1048576,$A178,DN$1))","v":""},{"$f":"IF($A178=\"N/A\",Ref!$B$36,INDEX(Ranks!$1:$1048576,$A178,DO$1))","v":""},{"$f":"IF($A178=\"N/A\",Ref!$B$36,INDEX(Ranks!$1:$1048576,$A178,DP$1))","v":""},{"$f":"IF($A178=\"N/A\",Ref!$B$36,INDEX(Ranks!$1:$1048576,$A178,DQ$1))","v":""},{"$f":"IF($A178=\"N/A\",Ref!$B$36,INDEX(Ranks!$1:$1048576,$A178,DR$1))","v":""},{"$f":"IF($A178=\"N/A\",Ref!$B$36,INDEX(Ranks!$1:$1048576,$A178,DS$1))","v":""},{"$f":"IF($A178=\"N/A\",Ref!$B$36,INDEX(Ranks!$1:$1048576,$A178,DT$1))","v":""},{"$f":"IF($A178=\"N/A\",Ref!$B$36,INDEX(Ranks!$1:$1048576,$A178,DU$1))","v":""},{"$f":"IF($A178=\"N/A\",Ref!$B$36,INDEX(Ranks!$1:$1048576,$A178,DV$1))","v":""},{"$f":"IF($A178=\"N/A\",Ref!$B$36,INDEX(Ranks!$1:$1048576,$A178,DW$1))","v":""},{"$f":"IF($A178=\"N/A\",Ref!$B$36,INDEX(Ranks!$1:$1048576,$A178,DX$1))","v":""},{"$f":"IF($A178=\"N/A\",Ref!$B$36,INDEX(Ranks!$1:$1048576,$A178,DY$1))","v":""},{"$f":"IF($A178=\"N/A\",Ref!$B$36,INDEX(Ranks!$1:$1048576,$A178,DZ$1))","v":""},{"$f":"IF($A178=\"N/A\",Ref!$B$36,INDEX(Ranks!$1:$1048576,$A178,EA$1))","v":""},{"$f":"IF($A178=\"N/A\",Ref!$B$36,INDEX(Ranks!$1:$1048576,$A178,EB$1))","v":""}]
[{"$f":"IFERROR(MATCH('Portfolio Page'!L179,Ranks!L:L,0),\"N/A\")","v":"N/A"},null,{"$f":"IF($A179=\"N/A\",\"\",INDEX(Ranks!$1:$1048576,$A179,C$1))","v":""},{"$f":"IF($A179=\"N/A\",Ref!$B$36,INDEX(Ranks!$1:$1048576,$A179,D$1))","v":""},{"$f":"IF($A179=\"N/A\",Ref!$B$36,INDEX(Ranks!$1:$1048576,$A179,E$1))","v":""},{"$f":"IF($A179=\"N/A\",\"\",INDEX(Ranks!$1:$1048576,$A179,F$1))","v":""},{"$f":"IF($A179=\"N/A\",\"\",INDEX(Ranks!$1:$1048576,$A179,G$1))","v":""},{"$f":"IF($A179=\"N/A\",\"\",INDEX(Ranks!$1:$1048576,$A179,H$1))","v":""},{"$f":"IF($A179=\"N/A\",\"\",INDEX(Ranks!$1:$1048576,$A179,I$1))","v":""},{"$f":"IF($A179=\"N/A\",\"\",INDEX(Ranks!$1:$1048576,$A179,J$1))","v":""},{"$f":"IF($A179=\"N/A\",\"\",INDEX(Ranks!$1:$1048576,$A179,K$1))","v":""},null,{"$f":"IF($A179=\"N/A\",Ref!$B$36,INDEX(Ranks!$1:$1048576,$A179,M$1))","v":""},{"$f":"IF($A179=\"N/A\",Ref!$B$36,INDEX(Ranks!$1:$1048576,$A179,N$1))","v":""},{"$f":"IF($A179=\"N/A\",Ref!$B$36,INDEX(Ranks!$1:$1048576,$A179,O$1))","v":""},{"$f":"IF($A179=\"N/A\",Ref!$B$36,INDEX(Ranks!$1:$1048576,$A179,P$1))","v":""},{"$f":"IF($A179=\"N/A\",Ref!$B$36,INDEX(Ranks!$1:$1048576,$A179,Q$1))","v":""},{"$f":"IF($A179=\"N/A\",Ref!$B$36,INDEX(Ranks!$1:$1048576,$A179,R$1))","v":""},{"$f":"IF($A179=\"N/A\",Ref!$B$36,INDEX(Ranks!$1:$1048576,$A179,S$1))","v":""},{"$f":"IF($A179=\"N/A\",Ref!$B$36,INDEX(Ranks!$1:$1048576,$A179,T$1))","v":""},{"$f":"IF($A179=\"N/A\",Ref!$B$36,INDEX(Ranks!$1:$1048576,$A179,U$1))","v":""},{"$f":"IF($A179=\"N/A\",Ref!$B$36,INDEX(Ranks!$1:$1048576,$A179,V$1))","v":""},{"$f":"IF($A179=\"N/A\",Ref!$B$36,INDEX(Ranks!$1:$1048576,$A179,W$1))","v":""},{"$f":"IF($A179=\"N/A\",Ref!$B$36,INDEX(Ranks!$1:$1048576,$A179,X$1))","v":""},{"$f":"IF($A179=\"N/A\",Ref!$B$36,INDEX(Ranks!$1:$1048576,$A179,Y$1))","v":""},{"$f":"IF($A179=\"N/A\",Ref!$B$36,INDEX(Ranks!$1:$1048576,$A179,Z$1))","v":""},{"$f":"IF($A179=\"N/A\",Ref!$B$36,INDEX(Ranks!$1:$1048576,$A179,AA$1))","v":""},{"$f":"IF($A179=\"N/A\",Ref!$B$36,INDEX(Ranks!$1:$1048576,$A179,AB$1))","v":""},{"$f":"IF($A179=\"N/A\",Ref!$B$36,INDEX(Ranks!$1:$1048576,$A179,AC$1))","v":""},{"$f":"IF($A179=\"N/A\",Ref!$B$36,INDEX(Ranks!$1:$1048576,$A179,AD$1))","v":""},{"$f":"IF($A179=\"N/A\",Ref!$B$36,INDEX(Ranks!$1:$1048576,$A179,AE$1))","v":""},{"$f":"IF($A179=\"N/A\",Ref!$B$36,INDEX(Ranks!$1:$1048576,$A179,AF$1))","v":""},{"$f":"IF($A179=\"N/A\",Ref!$B$36,INDEX(Ranks!$1:$1048576,$A179,AG$1))","v":""},{"$f":"IF($A179=\"N/A\",Ref!$B$36,INDEX(Ranks!$1:$1048576,$A179,AH$1))","v":""},{"$f":"IF($A179=\"N/A\",Ref!$B$36,INDEX(Ranks!$1:$1048576,$A179,AI$1))","v":""},{"$f":"IF($A179=\"N/A\",Ref!$B$36,INDEX(Ranks!$1:$1048576,$A179,AJ$1))","v":""},{"$f":"IF($A179=\"N/A\",Ref!$B$36,INDEX(Ranks!$1:$1048576,$A179,AK$1))","v":""},{"$f":"IF($A179=\"N/A\",Ref!$B$36,INDEX(Ranks!$1:$1048576,$A179,AL$1))","v":""},{"$f":"IF($A179=\"N/A\",Ref!$B$36,INDEX(Ranks!$1:$1048576,$A179,AM$1))","v":""},{"$f":"IF($A179=\"N/A\",Ref!$B$36,INDEX(Ranks!$1:$1048576,$A179,AN$1))","v":""},{"$f":"IF($A179=\"N/A\",Ref!$B$36,INDEX(Ranks!$1:$1048576,$A179,AO$1))","v":""},{"$f":"IF($A179=\"N/A\",Ref!$B$36,INDEX(Ranks!$1:$1048576,$A179,AP$1))","v":""},{"$f":"IF($A179=\"N/A\",Ref!$B$36,INDEX(Ranks!$1:$1048576,$A179,AQ$1))","v":""},{"$f":"IF($A179=\"N/A\",Ref!$B$36,INDEX(Ranks!$1:$1048576,$A179,AR$1))","v":""},{"$f":"IF($A179=\"N/A\",Ref!$B$36,INDEX(Ranks!$1:$1048576,$A179,AS$1))","v":""},{"$f":"IF($A179=\"N/A\",Ref!$B$36,INDEX(Ranks!$1:$1048576,$A179,AT$1))","v":""},{"$f":"IF($A179=\"N/A\",Ref!$B$36,INDEX(Ranks!$1:$1048576,$A179,AU$1))","v":""},{"$f":"IF($A179=\"N/A\",Ref!$B$36,INDEX(Ranks!$1:$1048576,$A179,AV$1))","v":""},{"$f":"IF($A179=\"N/A\",Ref!$B$36,INDEX(Ranks!$1:$1048576,$A179,AW$1))","v":""},{"$f":"IF($A179=\"N/A\",Ref!$B$36,INDEX(Ranks!$1:$1048576,$A179,AX$1))","v":""},{"$f":"IF($A179=\"N/A\",Ref!$B$36,INDEX(Ranks!$1:$1048576,$A179,AY$1))","v":""},{"$f":"IF($A179=\"N/A\",Ref!$B$36,INDEX(Ranks!$1:$1048576,$A179,AZ$1))","v":""},{"$f":"IF($A179=\"N/A\",Ref!$B$36,INDEX(Ranks!$1:$1048576,$A179,BA$1))","v":""},{"$f":"IF($A179=\"N/A\",Ref!$B$36,INDEX(Ranks!$1:$1048576,$A179,BB$1))","v":""},{"$f":"IF($A179=\"N/A\",Ref!$B$36,INDEX(Ranks!$1:$1048576,$A179,BC$1))","v":""},{"$f":"IF($A179=\"N/A\",Ref!$B$36,INDEX(Ranks!$1:$1048576,$A179,BD$1))","v":""},{"$f":"IF($A179=\"N/A\",Ref!$B$36,INDEX(Ranks!$1:$1048576,$A179,BE$1))","v":""},{"$f":"IF($A179=\"N/A\",Ref!$B$36,INDEX(Ranks!$1:$1048576,$A179,BF$1))","v":""},{"$f":"IF($A179=\"N/A\",Ref!$B$36,INDEX(Ranks!$1:$1048576,$A179,BG$1))","v":""},{"$f":"IF($A179=\"N/A\",Ref!$B$36,INDEX(Ranks!$1:$1048576,$A179,BH$1))","v":""},{"$f":"IF($A179=\"N/A\",Ref!$B$36,INDEX(Ranks!$1:$1048576,$A179,BI$1))","v":""},{"$f":"IF($A179=\"N/A\",Ref!$B$36,INDEX(Ranks!$1:$1048576,$A179,BJ$1))","v":""},{"$f":"IF($A179=\"N/A\",Ref!$B$36,INDEX(Ranks!$1:$1048576,$A179,BK$1))","v":""},{"$f":"IF($A179=\"N/A\",Ref!$B$36,INDEX(Ranks!$1:$1048576,$A179,BL$1))","v":""},{"$f":"IF($A179=\"N/A\",Ref!$B$36,INDEX(Ranks!$1:$1048576,$A179,BM$1))","v":""},{"$f":"IF($A179=\"N/A\",Ref!$B$36,INDEX(Ranks!$1:$1048576,$A179,BN$1))","v":""},{"$f":"IF($A179=\"N/A\",Ref!$B$36,INDEX(Ranks!$1:$1048576,$A179,BO$1))","v":""},{"$f":"IF($A179=\"N/A\",Ref!$B$36,INDEX(Ranks!$1:$1048576,$A179,BP$1))","v":""},{"$f":"IF($A179=\"N/A\",Ref!$B$36,INDEX(Ranks!$1:$1048576,$A179,BQ$1))","v":""},{"$f":"IF($A179=\"N/A\",Ref!$B$36,INDEX(Ranks!$1:$1048576,$A179,BR$1))","v":""},{"$f":"IF($A179=\"N/A\",Ref!$B$36,INDEX(Ranks!$1:$1048576,$A179,BS$1))","v":""},{"$f":"IF($A179=\"N/A\",Ref!$B$36,INDEX(Ranks!$1:$1048576,$A179,BT$1))","v":""},{"$f":"IF($A179=\"N/A\",Ref!$B$36,INDEX(Ranks!$1:$1048576,$A179,BU$1))","v":""},{"$f":"IF($A179=\"N/A\",Ref!$B$36,INDEX(Ranks!$1:$1048576,$A179,BV$1))","v":""},{"$f":"IF($A179=\"N/A\",Ref!$B$36,INDEX(Ranks!$1:$1048576,$A179,BW$1))","v":""},{"$f":"IF($A179=\"N/A\",Ref!$B$36,INDEX(Ranks!$1:$1048576,$A179,BX$1))","v":""},{"$f":"IF($A179=\"N/A\",Ref!$B$36,INDEX(Ranks!$1:$1048576,$A179,BY$1))","v":""},{"$f":"IF($A179=\"N/A\",Ref!$B$36,INDEX(Ranks!$1:$1048576,$A179,BZ$1))","v":""},{"$f":"IF($A179=\"N/A\",Ref!$B$36,INDEX(Ranks!$1:$1048576,$A179,CA$1))","v":""},{"$f":"IF($A179=\"N/A\",Ref!$B$36,INDEX(Ranks!$1:$1048576,$A179,CB$1))","v":""},{"$f":"IF($A179=\"N/A\",Ref!$B$36,INDEX(Ranks!$1:$1048576,$A179,CC$1))","v":""},{"$f":"IF($A179=\"N/A\",Ref!$B$36,INDEX(Ranks!$1:$1048576,$A179,CD$1))","v":""},{"$f":"IF($A179=\"N/A\",Ref!$B$36,INDEX(Ranks!$1:$1048576,$A179,CE$1))","v":""},{"$f":"IF($A179=\"N/A\",Ref!$B$36,INDEX(Ranks!$1:$1048576,$A179,CF$1))","v":""},{"$f":"IF($A179=\"N/A\",Ref!$B$36,INDEX(Ranks!$1:$1048576,$A179,CG$1))","v":""},{"$f":"IF($A179=\"N/A\",Ref!$B$36,INDEX(Ranks!$1:$1048576,$A179,CH$1))","v":""},{"$f":"IF($A179=\"N/A\",Ref!$B$36,INDEX(Ranks!$1:$1048576,$A179,CI$1))","v":""},{"$f":"IF($A179=\"N/A\",Ref!$B$36,INDEX(Ranks!$1:$1048576,$A179,CJ$1))","v":""},{"$f":"IF($A179=\"N/A\",Ref!$B$36,INDEX(Ranks!$1:$1048576,$A179,CK$1))","v":""},{"$f":"IF($A179=\"N/A\",Ref!$B$36,INDEX(Ranks!$1:$1048576,$A179,CL$1))","v":""},{"$f":"IF($A179=\"N/A\",Ref!$B$36,INDEX(Ranks!$1:$1048576,$A179,CM$1))","v":""},{"$f":"IF($A179=\"N/A\",Ref!$B$36,INDEX(Ranks!$1:$1048576,$A179,CN$1))","v":""},{"$f":"IF($A179=\"N/A\",Ref!$B$36,INDEX(Ranks!$1:$1048576,$A179,CO$1))","v":""},{"$f":"IF($A179=\"N/A\",Ref!$B$36,INDEX(Ranks!$1:$1048576,$A179,CP$1))","v":""},{"$f":"IF($A179=\"N/A\",Ref!$B$36,INDEX(Ranks!$1:$1048576,$A179,CQ$1))","v":""},{"$f":"IF($A179=\"N/A\",Ref!$B$36,INDEX(Ranks!$1:$1048576,$A179,CR$1))","v":""},{"$f":"IF($A179=\"N/A\",Ref!$B$36,INDEX(Ranks!$1:$1048576,$A179,CS$1))","v":""},{"$f":"IF($A179=\"N/A\",Ref!$B$36,INDEX(Ranks!$1:$1048576,$A179,CT$1))","v":""},{"$f":"IF($A179=\"N/A\",Ref!$B$36,INDEX(Ranks!$1:$1048576,$A179,CU$1))","v":""},{"$f":"IF($A179=\"N/A\",Ref!$B$36,INDEX(Ranks!$1:$1048576,$A179,CV$1))","v":""},{"$f":"IF($A179=\"N/A\",Ref!$B$36,INDEX(Ranks!$1:$1048576,$A179,CW$1))","v":""},{"$f":"IF($A179=\"N/A\",Ref!$B$36,INDEX(Ranks!$1:$1048576,$A179,CX$1))","v":""},{"$f":"IF($A179=\"N/A\",Ref!$B$36,INDEX(Ranks!$1:$1048576,$A179,CY$1))","v":""},{"$f":"IF($A179=\"N/A\",Ref!$B$36,INDEX(Ranks!$1:$1048576,$A179,CZ$1))","v":""},{"$f":"IF($A179=\"N/A\",Ref!$B$36,INDEX(Ranks!$1:$1048576,$A179,DA$1))","v":""},{"$f":"IF($A179=\"N/A\",Ref!$B$36,INDEX(Ranks!$1:$1048576,$A179,DB$1))","v":""},{"$f":"IF($A179=\"N/A\",Ref!$B$36,INDEX(Ranks!$1:$1048576,$A179,DC$1))","v":""},{"$f":"IF($A179=\"N/A\",Ref!$B$36,INDEX(Ranks!$1:$1048576,$A179,DD$1))","v":""},{"$f":"IF($A179=\"N/A\",Ref!$B$36,INDEX(Ranks!$1:$1048576,$A179,DE$1))","v":""},{"$f":"IF($A179=\"N/A\",Ref!$B$36,INDEX(Ranks!$1:$1048576,$A179,DF$1))","v":""},{"$f":"IF($A179=\"N/A\",Ref!$B$36,INDEX(Ranks!$1:$1048576,$A179,DG$1))","v":""},{"$f":"IF($A179=\"N/A\",Ref!$B$36,INDEX(Ranks!$1:$1048576,$A179,DH$1))","v":""},{"$f":"IF($A179=\"N/A\",Ref!$B$36,INDEX(Ranks!$1:$1048576,$A179,DI$1))","v":""},{"$f":"IF($A179=\"N/A\",Ref!$B$36,INDEX(Ranks!$1:$1048576,$A179,DJ$1))","v":""},{"$f":"IF($A179=\"N/A\",Ref!$B$36,INDEX(Ranks!$1:$1048576,$A179,DK$1))","v":""},{"$f":"IF($A179=\"N/A\",Ref!$B$36,INDEX(Ranks!$1:$1048576,$A179,DL$1))","v":""},{"$f":"IF($A179=\"N/A\",Ref!$B$36,INDEX(Ranks!$1:$1048576,$A179,DM$1))","v":""},{"$f":"IF($A179=\"N/A\",Ref!$B$36,INDEX(Ranks!$1:$1048576,$A179,DN$1))","v":""},{"$f":"IF($A179=\"N/A\",Ref!$B$36,INDEX(Ranks!$1:$1048576,$A179,DO$1))","v":""},{"$f":"IF($A179=\"N/A\",Ref!$B$36,INDEX(Ranks!$1:$1048576,$A179,DP$1))","v":""},{"$f":"IF($A179=\"N/A\",Ref!$B$36,INDEX(Ranks!$1:$1048576,$A179,DQ$1))","v":""},{"$f":"IF($A179=\"N/A\",Ref!$B$36,INDEX(Ranks!$1:$1048576,$A179,DR$1))","v":""},{"$f":"IF($A179=\"N/A\",Ref!$B$36,INDEX(Ranks!$1:$1048576,$A179,DS$1))","v":""},{"$f":"IF($A179=\"N/A\",Ref!$B$36,INDEX(Ranks!$1:$1048576,$A179,DT$1))","v":""},{"$f":"IF($A179=\"N/A\",Ref!$B$36,INDEX(Ranks!$1:$1048576,$A179,DU$1))","v":""},{"$f":"IF($A179=\"N/A\",Ref!$B$36,INDEX(Ranks!$1:$1048576,$A179,DV$1))","v":""},{"$f":"IF($A179=\"N/A\",Ref!$B$36,INDEX(Ranks!$1:$1048576,$A179,DW$1))","v":""},{"$f":"IF($A179=\"N/A\",Ref!$B$36,INDEX(Ranks!$1:$1048576,$A179,DX$1))","v":""},{"$f":"IF($A179=\"N/A\",Ref!$B$36,INDEX(Ranks!$1:$1048576,$A179,DY$1))","v":""},{"$f":"IF($A179=\"N/A\",Ref!$B$36,INDEX(Ranks!$1:$1048576,$A179,DZ$1))","v":""},{"$f":"IF($A179=\"N/A\",Ref!$B$36,INDEX(Ranks!$1:$1048576,$A179,EA$1))","v":""},{"$f":"IF($A179=\"N/A\",Ref!$B$36,INDEX(Ranks!$1:$1048576,$A179,EB$1))","v":""}]
[{"$f":"IFERROR(MATCH('Portfolio Page'!L180,Ranks!L:L,0),\"N/A\")","v":"N/A"},null,{"$f":"IF($A180=\"N/A\",\"\",INDEX(Ranks!$1:$1048576,$A180,C$1))","v":""},{"$f":"IF($A180=\"N/A\",Ref!$B$36,INDEX(Ranks!$1:$1048576,$A180,D$1))","v":""},{"$f":"IF($A180=\"N/A\",Ref!$B$36,INDEX(Ranks!$1:$1048576,$A180,E$1))","v":""},{"$f":"IF($A180=\"N/A\",\"\",INDEX(Ranks!$1:$1048576,$A180,F$1))","v":""},{"$f":"IF($A180=\"N/A\",\"\",INDEX(Ranks!$1:$1048576,$A180,G$1))","v":""},{"$f":"IF($A180=\"N/A\",\"\",INDEX(Ranks!$1:$1048576,$A180,H$1))","v":""},{"$f":"IF($A180=\"N/A\",\"\",INDEX(Ranks!$1:$1048576,$A180,I$1))","v":""},{"$f":"IF($A180=\"N/A\",\"\",INDEX(Ranks!$1:$1048576,$A180,J$1))","v":""},{"$f":"IF($A180=\"N/A\",\"\",INDEX(Ranks!$1:$1048576,$A180,K$1))","v":""},null,{"$f":"IF($A180=\"N/A\",Ref!$B$36,INDEX(Ranks!$1:$1048576,$A180,M$1))","v":""},{"$f":"IF($A180=\"N/A\",Ref!$B$36,INDEX(Ranks!$1:$1048576,$A180,N$1))","v":""},{"$f":"IF($A180=\"N/A\",Ref!$B$36,INDEX(Ranks!$1:$1048576,$A180,O$1))","v":""},{"$f":"IF($A180=\"N/A\",Ref!$B$36,INDEX(Ranks!$1:$1048576,$A180,P$1))","v":""},{"$f":"IF($A180=\"N/A\",Ref!$B$36,INDEX(Ranks!$1:$1048576,$A180,Q$1))","v":""},{"$f":"IF($A180=\"N/A\",Ref!$B$36,INDEX(Ranks!$1:$1048576,$A180,R$1))","v":""},{"$f":"IF($A180=\"N/A\",Ref!$B$36,INDEX(Ranks!$1:$1048576,$A180,S$1))","v":""},{"$f":"IF($A180=\"N/A\",Ref!$B$36,INDEX(Ranks!$1:$1048576,$A180,T$1))","v":""},{"$f":"IF($A180=\"N/A\",Ref!$B$36,INDEX(Ranks!$1:$1048576,$A180,U$1))","v":""},{"$f":"IF($A180=\"N/A\",Ref!$B$36,INDEX(Ranks!$1:$1048576,$A180,V$1))","v":""},{"$f":"IF($A180=\"N/A\",Ref!$B$36,INDEX(Ranks!$1:$1048576,$A180,W$1))","v":""},{"$f":"IF($A180=\"N/A\",Ref!$B$36,INDEX(Ranks!$1:$1048576,$A180,X$1))","v":""},{"$f":"IF($A180=\"N/A\",Ref!$B$36,INDEX(Ranks!$1:$1048576,$A180,Y$1))","v":""},{"$f":"IF($A180=\"N/A\",Ref!$B$36,INDEX(Ranks!$1:$1048576,$A180,Z$1))","v":""},{"$f":"IF($A180=\"N/A\",Ref!$B$36,INDEX(Ranks!$1:$1048576,$A180,AA$1))","v":""},{"$f":"IF($A180=\"N/A\",Ref!$B$36,INDEX(Ranks!$1:$1048576,$A180,AB$1))","v":""},{"$f":"IF($A180=\"N/A\",Ref!$B$36,INDEX(Ranks!$1:$1048576,$A180,AC$1))","v":""},{"$f":"IF($A180=\"N/A\",Ref!$B$36,INDEX(Ranks!$1:$1048576,$A180,AD$1))","v":""},{"$f":"IF($A180=\"N/A\",Ref!$B$36,INDEX(Ranks!$1:$1048576,$A180,AE$1))","v":""},{"$f":"IF($A180=\"N/A\",Ref!$B$36,INDEX(Ranks!$1:$1048576,$A180,AF$1))","v":""},{"$f":"IF($A180=\"N/A\",Ref!$B$36,INDEX(Ranks!$1:$1048576,$A180,AG$1))","v":""},{"$f":"IF($A180=\"N/A\",Ref!$B$36,INDEX(Ranks!$1:$1048576,$A180,AH$1))","v":""},{"$f":"IF($A180=\"N/A\",Ref!$B$36,INDEX(Ranks!$1:$1048576,$A180,AI$1))","v":""},{"$f":"IF($A180=\"N/A\",Ref!$B$36,INDEX(Ranks!$1:$1048576,$A180,AJ$1))","v":""},{"$f":"IF($A180=\"N/A\",Ref!$B$36,INDEX(Ranks!$1:$1048576,$A180,AK$1))","v":""},{"$f":"IF($A180=\"N/A\",Ref!$B$36,INDEX(Ranks!$1:$1048576,$A180,AL$1))","v":""},{"$f":"IF($A180=\"N/A\",Ref!$B$36,INDEX(Ranks!$1:$1048576,$A180,AM$1))","v":""},{"$f":"IF($A180=\"N/A\",Ref!$B$36,INDEX(Ranks!$1:$1048576,$A180,AN$1))","v":""},{"$f":"IF($A180=\"N/A\",Ref!$B$36,INDEX(Ranks!$1:$1048576,$A180,AO$1))","v":""},{"$f":"IF($A180=\"N/A\",Ref!$B$36,INDEX(Ranks!$1:$1048576,$A180,AP$1))","v":""},{"$f":"IF($A180=\"N/A\",Ref!$B$36,INDEX(Ranks!$1:$1048576,$A180,AQ$1))","v":""},{"$f":"IF($A180=\"N/A\",Ref!$B$36,INDEX(Ranks!$1:$1048576,$A180,AR$1))","v":""},{"$f":"IF($A180=\"N/A\",Ref!$B$36,INDEX(Ranks!$1:$1048576,$A180,AS$1))","v":""},{"$f":"IF($A180=\"N/A\",Ref!$B$36,INDEX(Ranks!$1:$1048576,$A180,AT$1))","v":""},{"$f":"IF($A180=\"N/A\",Ref!$B$36,INDEX(Ranks!$1:$1048576,$A180,AU$1))","v":""},{"$f":"IF($A180=\"N/A\",Ref!$B$36,INDEX(Ranks!$1:$1048576,$A180,AV$1))","v":""},{"$f":"IF($A180=\"N/A\",Ref!$B$36,INDEX(Ranks!$1:$1048576,$A180,AW$1))","v":""},{"$f":"IF($A180=\"N/A\",Ref!$B$36,INDEX(Ranks!$1:$1048576,$A180,AX$1))","v":""},{"$f":"IF($A180=\"N/A\",Ref!$B$36,INDEX(Ranks!$1:$1048576,$A180,AY$1))","v":""},{"$f":"IF($A180=\"N/A\",Ref!$B$36,INDEX(Ranks!$1:$1048576,$A180,AZ$1))","v":""},{"$f":"IF($A180=\"N/A\",Ref!$B$36,INDEX(Ranks!$1:$1048576,$A180,BA$1))","v":""},{"$f":"IF($A180=\"N/A\",Ref!$B$36,INDEX(Ranks!$1:$1048576,$A180,BB$1))","v":""},{"$f":"IF($A180=\"N/A\",Ref!$B$36,INDEX(Ranks!$1:$1048576,$A180,BC$1))","v":""},{"$f":"IF($A180=\"N/A\",Ref!$B$36,INDEX(Ranks!$1:$1048576,$A180,BD$1))","v":""},{"$f":"IF($A180=\"N/A\",Ref!$B$36,INDEX(Ranks!$1:$1048576,$A180,BE$1))","v":""},{"$f":"IF($A180=\"N/A\",Ref!$B$36,INDEX(Ranks!$1:$1048576,$A180,BF$1))","v":""},{"$f":"IF($A180=\"N/A\",Ref!$B$36,INDEX(Ranks!$1:$1048576,$A180,BG$1))","v":""},{"$f":"IF($A180=\"N/A\",Ref!$B$36,INDEX(Ranks!$1:$1048576,$A180,BH$1))","v":""},{"$f":"IF($A180=\"N/A\",Ref!$B$36,INDEX(Ranks!$1:$1048576,$A180,BI$1))","v":""},{"$f":"IF($A180=\"N/A\",Ref!$B$36,INDEX(Ranks!$1:$1048576,$A180,BJ$1))","v":""},{"$f":"IF($A180=\"N/A\",Ref!$B$36,INDEX(Ranks!$1:$1048576,$A180,BK$1))","v":""},{"$f":"IF($A180=\"N/A\",Ref!$B$36,INDEX(Ranks!$1:$1048576,$A180,BL$1))","v":""},{"$f":"IF($A180=\"N/A\",Ref!$B$36,INDEX(Ranks!$1:$1048576,$A180,BM$1))","v":""},{"$f":"IF($A180=\"N/A\",Ref!$B$36,INDEX(Ranks!$1:$1048576,$A180,BN$1))","v":""},{"$f":"IF($A180=\"N/A\",Ref!$B$36,INDEX(Ranks!$1:$1048576,$A180,BO$1))","v":""},{"$f":"IF($A180=\"N/A\",Ref!$B$36,INDEX(Ranks!$1:$1048576,$A180,BP$1))","v":""},{"$f":"IF($A180=\"N/A\",Ref!$B$36,INDEX(Ranks!$1:$1048576,$A180,BQ$1))","v":""},{"$f":"IF($A180=\"N/A\",Ref!$B$36,INDEX(Ranks!$1:$1048576,$A180,BR$1))","v":""},{"$f":"IF($A180=\"N/A\",Ref!$B$36,INDEX(Ranks!$1:$1048576,$A180,BS$1))","v":""},{"$f":"IF($A180=\"N/A\",Ref!$B$36,INDEX(Ranks!$1:$1048576,$A180,BT$1))","v":""},{"$f":"IF($A180=\"N/A\",Ref!$B$36,INDEX(Ranks!$1:$1048576,$A180,BU$1))","v":""},{"$f":"IF($A180=\"N/A\",Ref!$B$36,INDEX(Ranks!$1:$1048576,$A180,BV$1))","v":""},{"$f":"IF($A180=\"N/A\",Ref!$B$36,INDEX(Ranks!$1:$1048576,$A180,BW$1))","v":""},{"$f":"IF($A180=\"N/A\",Ref!$B$36,INDEX(Ranks!$1:$1048576,$A180,BX$1))","v":""},{"$f":"IF($A180=\"N/A\",Ref!$B$36,INDEX(Ranks!$1:$1048576,$A180,BY$1))","v":""},{"$f":"IF($A180=\"N/A\",Ref!$B$36,INDEX(Ranks!$1:$1048576,$A180,BZ$1))","v":""},{"$f":"IF($A180=\"N/A\",Ref!$B$36,INDEX(Ranks!$1:$1048576,$A180,CA$1))","v":""},{"$f":"IF($A180=\"N/A\",Ref!$B$36,INDEX(Ranks!$1:$1048576,$A180,CB$1))","v":""},{"$f":"IF($A180=\"N/A\",Ref!$B$36,INDEX(Ranks!$1:$1048576,$A180,CC$1))","v":""},{"$f":"IF($A180=\"N/A\",Ref!$B$36,INDEX(Ranks!$1:$1048576,$A180,CD$1))","v":""},{"$f":"IF($A180=\"N/A\",Ref!$B$36,INDEX(Ranks!$1:$1048576,$A180,CE$1))","v":""},{"$f":"IF($A180=\"N/A\",Ref!$B$36,INDEX(Ranks!$1:$1048576,$A180,CF$1))","v":""},{"$f":"IF($A180=\"N/A\",Ref!$B$36,INDEX(Ranks!$1:$1048576,$A180,CG$1))","v":""},{"$f":"IF($A180=\"N/A\",Ref!$B$36,INDEX(Ranks!$1:$1048576,$A180,CH$1))","v":""},{"$f":"IF($A180=\"N/A\",Ref!$B$36,INDEX(Ranks!$1:$1048576,$A180,CI$1))","v":""},{"$f":"IF($A180=\"N/A\",Ref!$B$36,INDEX(Ranks!$1:$1048576,$A180,CJ$1))","v":""},{"$f":"IF($A180=\"N/A\",Ref!$B$36,INDEX(Ranks!$1:$1048576,$A180,CK$1))","v":""},{"$f":"IF($A180=\"N/A\",Ref!$B$36,INDEX(Ranks!$1:$1048576,$A180,CL$1))","v":""},{"$f":"IF($A180=\"N/A\",Ref!$B$36,INDEX(Ranks!$1:$1048576,$A180,CM$1))","v":""},{"$f":"IF($A180=\"N/A\",Ref!$B$36,INDEX(Ranks!$1:$1048576,$A180,CN$1))","v":""},{"$f":"IF($A180=\"N/A\",Ref!$B$36,INDEX(Ranks!$1:$1048576,$A180,CO$1))","v":""},{"$f":"IF($A180=\"N/A\",Ref!$B$36,INDEX(Ranks!$1:$1048576,$A180,CP$1))","v":""},{"$f":"IF($A180=\"N/A\",Ref!$B$36,INDEX(Ranks!$1:$1048576,$A180,CQ$1))","v":""},{"$f":"IF($A180=\"N/A\",Ref!$B$36,INDEX(Ranks!$1:$1048576,$A180,CR$1))","v":""},{"$f":"IF($A180=\"N/A\",Ref!$B$36,INDEX(Ranks!$1:$1048576,$A180,CS$1))","v":""},{"$f":"IF($A180=\"N/A\",Ref!$B$36,INDEX(Ranks!$1:$1048576,$A180,CT$1))","v":""},{"$f":"IF($A180=\"N/A\",Ref!$B$36,INDEX(Ranks!$1:$1048576,$A180,CU$1))","v":""},{"$f":"IF($A180=\"N/A\",Ref!$B$36,INDEX(Ranks!$1:$1048576,$A180,CV$1))","v":""},{"$f":"IF($A180=\"N/A\",Ref!$B$36,INDEX(Ranks!$1:$1048576,$A180,CW$1))","v":""},{"$f":"IF($A180=\"N/A\",Ref!$B$36,INDEX(Ranks!$1:$1048576,$A180,CX$1))","v":""},{"$f":"IF($A180=\"N/A\",Ref!$B$36,INDEX(Ranks!$1:$1048576,$A180,CY$1))","v":""},{"$f":"IF($A180=\"N/A\",Ref!$B$36,INDEX(Ranks!$1:$1048576,$A180,CZ$1))","v":""},{"$f":"IF($A180=\"N/A\",Ref!$B$36,INDEX(Ranks!$1:$1048576,$A180,DA$1))","v":""},{"$f":"IF($A180=\"N/A\",Ref!$B$36,INDEX(Ranks!$1:$1048576,$A180,DB$1))","v":""},{"$f":"IF($A180=\"N/A\",Ref!$B$36,INDEX(Ranks!$1:$1048576,$A180,DC$1))","v":""},{"$f":"IF($A180=\"N/A\",Ref!$B$36,INDEX(Ranks!$1:$1048576,$A180,DD$1))","v":""},{"$f":"IF($A180=\"N/A\",Ref!$B$36,INDEX(Ranks!$1:$1048576,$A180,DE$1))","v":""},{"$f":"IF($A180=\"N/A\",Ref!$B$36,INDEX(Ranks!$1:$1048576,$A180,DF$1))","v":""},{"$f":"IF($A180=\"N/A\",Ref!$B$36,INDEX(Ranks!$1:$1048576,$A180,DG$1))","v":""},{"$f":"IF($A180=\"N/A\",Ref!$B$36,INDEX(Ranks!$1:$1048576,$A180,DH$1))","v":""},{"$f":"IF($A180=\"N/A\",Ref!$B$36,INDEX(Ranks!$1:$1048576,$A180,DI$1))","v":""},{"$f":"IF($A180=\"N/A\",Ref!$B$36,INDEX(Ranks!$1:$1048576,$A180,DJ$1))","v":""},{"$f":"IF($A180=\"N/A\",Ref!$B$36,INDEX(Ranks!$1:$1048576,$A180,DK$1))","v":""},{"$f":"IF($A180=\"N/A\",Ref!$B$36,INDEX(Ranks!$1:$1048576,$A180,DL$1))","v":""},{"$f":"IF($A180=\"N/A\",Ref!$B$36,INDEX(Ranks!$1:$1048576,$A180,DM$1))","v":""},{"$f":"IF($A180=\"N/A\",Ref!$B$36,INDEX(Ranks!$1:$1048576,$A180,DN$1))","v":""},{"$f":"IF($A180=\"N/A\",Ref!$B$36,INDEX(Ranks!$1:$1048576,$A180,DO$1))","v":""},{"$f":"IF($A180=\"N/A\",Ref!$B$36,INDEX(Ranks!$1:$1048576,$A180,DP$1))","v":""},{"$f":"IF($A180=\"N/A\",Ref!$B$36,INDEX(Ranks!$1:$1048576,$A180,DQ$1))","v":""},{"$f":"IF($A180=\"N/A\",Ref!$B$36,INDEX(Ranks!$1:$1048576,$A180,DR$1))","v":""},{"$f":"IF($A180=\"N/A\",Ref!$B$36,INDEX(Ranks!$1:$1048576,$A180,DS$1))","v":""},{"$f":"IF($A180=\"N/A\",Ref!$B$36,INDEX(Ranks!$1:$1048576,$A180,DT$1))","v":""},{"$f":"IF($A180=\"N/A\",Ref!$B$36,INDEX(Ranks!$1:$1048576,$A180,DU$1))","v":""},{"$f":"IF($A180=\"N/A\",Ref!$B$36,INDEX(Ranks!$1:$1048576,$A180,DV$1))","v":""},{"$f":"IF($A180=\"N/A\",Ref!$B$36,INDEX(Ranks!$1:$1048576,$A180,DW$1))","v":""},{"$f":"IF($A180=\"N/A\",Ref!$B$36,INDEX(Ranks!$1:$1048576,$A180,DX$1))","v":""},{"$f":"IF($A180=\"N/A\",Ref!$B$36,INDEX(Ranks!$1:$1048576,$A180,DY$1))","v":""},{"$f":"IF($A180=\"N/A\",Ref!$B$36,INDEX(Ranks!$1:$1048576,$A180,DZ$1))","v":""},{"$f":"IF($A180=\"N/A\",Ref!$B$36,INDEX(Ranks!$1:$1048576,$A180,EA$1))","v":""},{"$f":"IF($A180=\"N/A\",Ref!$B$36,INDEX(Ranks!$1:$1048576,$A180,EB$1))","v":""}]
[{"$f":"IFERROR(MATCH('Portfolio Page'!L181,Ranks!L:L,0),\"N/A\")","v":"N/A"},null,{"$f":"IF($A181=\"N/A\",\"\",INDEX(Ranks!$1:$1048576,$A181,C$1))","v":""},{"$f":"IF($A181=\"N/A\",Ref!$B$36,INDEX(Ranks!$1:$1048576,$A181,D$1))","v":""},{"$f":"IF($A181=\"N/A\",Ref!$B$36,INDEX(Ranks!$1:$1048576,$A181,E$1))","v":""},{"$f":"IF($A181=\"N/A\",\"\",INDEX(Ranks!$1:$1048576,$A181,F$1))","v":""},{"$f":"IF($A181=\"N/A\",\"\",INDEX(Ranks!$1:$1048576,$A181,G$1))","v":""},{"$f":"IF($A181=\"N/A\",\"\",INDEX(Ranks!$1:$1048576,$A181,H$1))","v":""},{"$f":"IF($A181=\"N/A\",\"\",INDEX(Ranks!$1:$1048576,$A181,I$1))","v":""},{"$f":"IF($A181=\"N/A\",\"\",INDEX(Ranks!$1:$1048576,$A181,J$1))","v":""},{"$f":"IF($A181=\"N/A\",\"\",INDEX(Ranks!$1:$1048576,$A181,K$1))","v":""},null,{"$f":"IF($A181=\"N/A\",Ref!$B$36,INDEX(Ranks!$1:$1048576,$A181,M$1))","v":""},{"$f":"IF($A181=\"N/A\",Ref!$B$36,INDEX(Ranks!$1:$1048576,$A181,N$1))","v":""},{"$f":"IF($A181=\"N/A\",Ref!$B$36,INDEX(Ranks!$1:$1048576,$A181,O$1))","v":""},{"$f":"IF($A181=\"N/A\",Ref!$B$36,INDEX(Ranks!$1:$1048576,$A181,P$1))","v":""},{"$f":"IF($A181=\"N/A\",Ref!$B$36,INDEX(Ranks!$1:$1048576,$A181,Q$1))","v":""},{"$f":"IF($A181=\"N/A\",Ref!$B$36,INDEX(Ranks!$1:$1048576,$A181,R$1))","v":""},{"$f":"IF($A181=\"N/A\",Ref!$B$36,INDEX(Ranks!$1:$1048576,$A181,S$1))","v":""},{"$f":"IF($A181=\"N/A\",Ref!$B$36,INDEX(Ranks!$1:$1048576,$A181,T$1))","v":""},{"$f":"IF($A181=\"N/A\",Ref!$B$36,INDEX(Ranks!$1:$1048576,$A181,U$1))","v":""},{"$f":"IF($A181=\"N/A\",Ref!$B$36,INDEX(Ranks!$1:$1048576,$A181,V$1))","v":""},{"$f":"IF($A181=\"N/A\",Ref!$B$36,INDEX(Ranks!$1:$1048576,$A181,W$1))","v":""},{"$f":"IF($A181=\"N/A\",Ref!$B$36,INDEX(Ranks!$1:$1048576,$A181,X$1))","v":""},{"$f":"IF($A181=\"N/A\",Ref!$B$36,INDEX(Ranks!$1:$1048576,$A181,Y$1))","v":""},{"$f":"IF($A181=\"N/A\",Ref!$B$36,INDEX(Ranks!$1:$1048576,$A181,Z$1))","v":""},{"$f":"IF($A181=\"N/A\",Ref!$B$36,INDEX(Ranks!$1:$1048576,$A181,AA$1))","v":""},{"$f":"IF($A181=\"N/A\",Ref!$B$36,INDEX(Ranks!$1:$1048576,$A181,AB$1))","v":""},{"$f":"IF($A181=\"N/A\",Ref!$B$36,INDEX(Ranks!$1:$1048576,$A181,AC$1))","v":""},{"$f":"IF($A181=\"N/A\",Ref!$B$36,INDEX(Ranks!$1:$1048576,$A181,AD$1))","v":""},{"$f":"IF($A181=\"N/A\",Ref!$B$36,INDEX(Ranks!$1:$1048576,$A181,AE$1))","v":""},{"$f":"IF($A181=\"N/A\",Ref!$B$36,INDEX(Ranks!$1:$1048576,$A181,AF$1))","v":""},{"$f":"IF($A181=\"N/A\",Ref!$B$36,INDEX(Ranks!$1:$1048576,$A181,AG$1))","v":""},{"$f":"IF($A181=\"N/A\",Ref!$B$36,INDEX(Ranks!$1:$1048576,$A181,AH$1))","v":""},{"$f":"IF($A181=\"N/A\",Ref!$B$36,INDEX(Ranks!$1:$1048576,$A181,AI$1))","v":""},{"$f":"IF($A181=\"N/A\",Ref!$B$36,INDEX(Ranks!$1:$1048576,$A181,AJ$1))","v":""},{"$f":"IF($A181=\"N/A\",Ref!$B$36,INDEX(Ranks!$1:$1048576,$A181,AK$1))","v":""},{"$f":"IF($A181=\"N/A\",Ref!$B$36,INDEX(Ranks!$1:$1048576,$A181,AL$1))","v":""},{"$f":"IF($A181=\"N/A\",Ref!$B$36,INDEX(Ranks!$1:$1048576,$A181,AM$1))","v":""},{"$f":"IF($A181=\"N/A\",Ref!$B$36,INDEX(Ranks!$1:$1048576,$A181,AN$1))","v":""},{"$f":"IF($A181=\"N/A\",Ref!$B$36,INDEX(Ranks!$1:$1048576,$A181,AO$1))","v":""},{"$f":"IF($A181=\"N/A\",Ref!$B$36,INDEX(Ranks!$1:$1048576,$A181,AP$1))","v":""},{"$f":"IF($A181=\"N/A\",Ref!$B$36,INDEX(Ranks!$1:$1048576,$A181,AQ$1))","v":""},{"$f":"IF($A181=\"N/A\",Ref!$B$36,INDEX(Ranks!$1:$1048576,$A181,AR$1))","v":""},{"$f":"IF($A181=\"N/A\",Ref!$B$36,INDEX(Ranks!$1:$1048576,$A181,AS$1))","v":""},{"$f":"IF($A181=\"N/A\",Ref!$B$36,INDEX(Ranks!$1:$1048576,$A181,AT$1))","v":""},{"$f":"IF($A181=\"N/A\",Ref!$B$36,INDEX(Ranks!$1:$1048576,$A181,AU$1))","v":""},{"$f":"IF($A181=\"N/A\",Ref!$B$36,INDEX(Ranks!$1:$1048576,$A181,AV$1))","v":""},{"$f":"IF($A181=\"N/A\",Ref!$B$36,INDEX(Ranks!$1:$1048576,$A181,AW$1))","v":""},{"$f":"IF($A181=\"N/A\",Ref!$B$36,INDEX(Ranks!$1:$1048576,$A181,AX$1))","v":""},{"$f":"IF($A181=\"N/A\",Ref!$B$36,INDEX(Ranks!$1:$1048576,$A181,AY$1))","v":""},{"$f":"IF($A181=\"N/A\",Ref!$B$36,INDEX(Ranks!$1:$1048576,$A181,AZ$1))","v":""},{"$f":"IF($A181=\"N/A\",Ref!$B$36,INDEX(Ranks!$1:$1048576,$A181,BA$1))","v":""},{"$f":"IF($A181=\"N/A\",Ref!$B$36,INDEX(Ranks!$1:$1048576,$A181,BB$1))","v":""},{"$f":"IF($A181=\"N/A\",Ref!$B$36,INDEX(Ranks!$1:$1048576,$A181,BC$1))","v":""},{"$f":"IF($A181=\"N/A\",Ref!$B$36,INDEX(Ranks!$1:$1048576,$A181,BD$1))","v":""},{"$f":"IF($A181=\"N/A\",Ref!$B$36,INDEX(Ranks!$1:$1048576,$A181,BE$1))","v":""},{"$f":"IF($A181=\"N/A\",Ref!$B$36,INDEX(Ranks!$1:$1048576,$A181,BF$1))","v":""},{"$f":"IF($A181=\"N/A\",Ref!$B$36,INDEX(Ranks!$1:$1048576,$A181,BG$1))","v":""},{"$f":"IF($A181=\"N/A\",Ref!$B$36,INDEX(Ranks!$1:$1048576,$A181,BH$1))","v":""},{"$f":"IF($A181=\"N/A\",Ref!$B$36,INDEX(Ranks!$1:$1048576,$A181,BI$1))","v":""},{"$f":"IF($A181=\"N/A\",Ref!$B$36,INDEX(Ranks!$1:$1048576,$A181,BJ$1))","v":""},{"$f":"IF($A181=\"N/A\",Ref!$B$36,INDEX(Ranks!$1:$1048576,$A181,BK$1))","v":""},{"$f":"IF($A181=\"N/A\",Ref!$B$36,INDEX(Ranks!$1:$1048576,$A181,BL$1))","v":""},{"$f":"IF($A181=\"N/A\",Ref!$B$36,INDEX(Ranks!$1:$1048576,$A181,BM$1))","v":""},{"$f":"IF($A181=\"N/A\",Ref!$B$36,INDEX(Ranks!$1:$1048576,$A181,BN$1))","v":""},{"$f":"IF($A181=\"N/A\",Ref!$B$36,INDEX(Ranks!$1:$1048576,$A181,BO$1))","v":""},{"$f":"IF($A181=\"N/A\",Ref!$B$36,INDEX(Ranks!$1:$1048576,$A181,BP$1))","v":""},{"$f":"IF($A181=\"N/A\",Ref!$B$36,INDEX(Ranks!$1:$1048576,$A181,BQ$1))","v":""},{"$f":"IF($A181=\"N/A\",Ref!$B$36,INDEX(Ranks!$1:$1048576,$A181,BR$1))","v":""},{"$f":"IF($A181=\"N/A\",Ref!$B$36,INDEX(Ranks!$1:$1048576,$A181,BS$1))","v":""},{"$f":"IF($A181=\"N/A\",Ref!$B$36,INDEX(Ranks!$1:$1048576,$A181,BT$1))","v":""},{"$f":"IF($A181=\"N/A\",Ref!$B$36,INDEX(Ranks!$1:$1048576,$A181,BU$1))","v":""},{"$f":"IF($A181=\"N/A\",Ref!$B$36,INDEX(Ranks!$1:$1048576,$A181,BV$1))","v":""},{"$f":"IF($A181=\"N/A\",Ref!$B$36,INDEX(Ranks!$1:$1048576,$A181,BW$1))","v":""},{"$f":"IF($A181=\"N/A\",Ref!$B$36,INDEX(Ranks!$1:$1048576,$A181,BX$1))","v":""},{"$f":"IF($A181=\"N/A\",Ref!$B$36,INDEX(Ranks!$1:$1048576,$A181,BY$1))","v":""},{"$f":"IF($A181=\"N/A\",Ref!$B$36,INDEX(Ranks!$1:$1048576,$A181,BZ$1))","v":""},{"$f":"IF($A181=\"N/A\",Ref!$B$36,INDEX(Ranks!$1:$1048576,$A181,CA$1))","v":""},{"$f":"IF($A181=\"N/A\",Ref!$B$36,INDEX(Ranks!$1:$1048576,$A181,CB$1))","v":""},{"$f":"IF($A181=\"N/A\",Ref!$B$36,INDEX(Ranks!$1:$1048576,$A181,CC$1))","v":""},{"$f":"IF($A181=\"N/A\",Ref!$B$36,INDEX(Ranks!$1:$1048576,$A181,CD$1))","v":""},{"$f":"IF($A181=\"N/A\",Ref!$B$36,INDEX(Ranks!$1:$1048576,$A181,CE$1))","v":""},{"$f":"IF($A181=\"N/A\",Ref!$B$36,INDEX(Ranks!$1:$1048576,$A181,CF$1))","v":""},{"$f":"IF($A181=\"N/A\",Ref!$B$36,INDEX(Ranks!$1:$1048576,$A181,CG$1))","v":""},{"$f":"IF($A181=\"N/A\",Ref!$B$36,INDEX(Ranks!$1:$1048576,$A181,CH$1))","v":""},{"$f":"IF($A181=\"N/A\",Ref!$B$36,INDEX(Ranks!$1:$1048576,$A181,CI$1))","v":""},{"$f":"IF($A181=\"N/A\",Ref!$B$36,INDEX(Ranks!$1:$1048576,$A181,CJ$1))","v":""},{"$f":"IF($A181=\"N/A\",Ref!$B$36,INDEX(Ranks!$1:$1048576,$A181,CK$1))","v":""},{"$f":"IF($A181=\"N/A\",Ref!$B$36,INDEX(Ranks!$1:$1048576,$A181,CL$1))","v":""},{"$f":"IF($A181=\"N/A\",Ref!$B$36,INDEX(Ranks!$1:$1048576,$A181,CM$1))","v":""},{"$f":"IF($A181=\"N/A\",Ref!$B$36,INDEX(Ranks!$1:$1048576,$A181,CN$1))","v":""},{"$f":"IF($A181=\"N/A\",Ref!$B$36,INDEX(Ranks!$1:$1048576,$A181,CO$1))","v":""},{"$f":"IF($A181=\"N/A\",Ref!$B$36,INDEX(Ranks!$1:$1048576,$A181,CP$1))","v":""},{"$f":"IF($A181=\"N/A\",Ref!$B$36,INDEX(Ranks!$1:$1048576,$A181,CQ$1))","v":""},{"$f":"IF($A181=\"N/A\",Ref!$B$36,INDEX(Ranks!$1:$1048576,$A181,CR$1))","v":""},{"$f":"IF($A181=\"N/A\",Ref!$B$36,INDEX(Ranks!$1:$1048576,$A181,CS$1))","v":""},{"$f":"IF($A181=\"N/A\",Ref!$B$36,INDEX(Ranks!$1:$1048576,$A181,CT$1))","v":""},{"$f":"IF($A181=\"N/A\",Ref!$B$36,INDEX(Ranks!$1:$1048576,$A181,CU$1))","v":""},{"$f":"IF($A181=\"N/A\",Ref!$B$36,INDEX(Ranks!$1:$1048576,$A181,CV$1))","v":""},{"$f":"IF($A181=\"N/A\",Ref!$B$36,INDEX(Ranks!$1:$1048576,$A181,CW$1))","v":""},{"$f":"IF($A181=\"N/A\",Ref!$B$36,INDEX(Ranks!$1:$1048576,$A181,CX$1))","v":""},{"$f":"IF($A181=\"N/A\",Ref!$B$36,INDEX(Ranks!$1:$1048576,$A181,CY$1))","v":""},{"$f":"IF($A181=\"N/A\",Ref!$B$36,INDEX(Ranks!$1:$1048576,$A181,CZ$1))","v":""},{"$f":"IF($A181=\"N/A\",Ref!$B$36,INDEX(Ranks!$1:$1048576,$A181,DA$1))","v":""},{"$f":"IF($A181=\"N/A\",Ref!$B$36,INDEX(Ranks!$1:$1048576,$A181,DB$1))","v":""},{"$f":"IF($A181=\"N/A\",Ref!$B$36,INDEX(Ranks!$1:$1048576,$A181,DC$1))","v":""},{"$f":"IF($A181=\"N/A\",Ref!$B$36,INDEX(Ranks!$1:$1048576,$A181,DD$1))","v":""},{"$f":"IF($A181=\"N/A\",Ref!$B$36,INDEX(Ranks!$1:$1048576,$A181,DE$1))","v":""},{"$f":"IF($A181=\"N/A\",Ref!$B$36,INDEX(Ranks!$1:$1048576,$A181,DF$1))","v":""},{"$f":"IF($A181=\"N/A\",Ref!$B$36,INDEX(Ranks!$1:$1048576,$A181,DG$1))","v":""},{"$f":"IF($A181=\"N/A\",Ref!$B$36,INDEX(Ranks!$1:$1048576,$A181,DH$1))","v":""},{"$f":"IF($A181=\"N/A\",Ref!$B$36,INDEX(Ranks!$1:$1048576,$A181,DI$1))","v":""},{"$f":"IF($A181=\"N/A\",Ref!$B$36,INDEX(Ranks!$1:$1048576,$A181,DJ$1))","v":""},{"$f":"IF($A181=\"N/A\",Ref!$B$36,INDEX(Ranks!$1:$1048576,$A181,DK$1))","v":""},{"$f":"IF($A181=\"N/A\",Ref!$B$36,INDEX(Ranks!$1:$1048576,$A181,DL$1))","v":""},{"$f":"IF($A181=\"N/A\",Ref!$B$36,INDEX(Ranks!$1:$1048576,$A181,DM$1))","v":""},{"$f":"IF($A181=\"N/A\",Ref!$B$36,INDEX(Ranks!$1:$1048576,$A181,DN$1))","v":""},{"$f":"IF($A181=\"N/A\",Ref!$B$36,INDEX(Ranks!$1:$1048576,$A181,DO$1))","v":""},{"$f":"IF($A181=\"N/A\",Ref!$B$36,INDEX(Ranks!$1:$1048576,$A181,DP$1))","v":""},{"$f":"IF($A181=\"N/A\",Ref!$B$36,INDEX(Ranks!$1:$1048576,$A181,DQ$1))","v":""},{"$f":"IF($A181=\"N/A\",Ref!$B$36,INDEX(Ranks!$1:$1048576,$A181,DR$1))","v":""},{"$f":"IF($A181=\"N/A\",Ref!$B$36,INDEX(Ranks!$1:$1048576,$A181,DS$1))","v":""},{"$f":"IF($A181=\"N/A\",Ref!$B$36,INDEX(Ranks!$1:$1048576,$A181,DT$1))","v":""},{"$f":"IF($A181=\"N/A\",Ref!$B$36,INDEX(Ranks!$1:$1048576,$A181,DU$1))","v":""},{"$f":"IF($A181=\"N/A\",Ref!$B$36,INDEX(Ranks!$1:$1048576,$A181,DV$1))","v":""},{"$f":"IF($A181=\"N/A\",Ref!$B$36,INDEX(Ranks!$1:$1048576,$A181,DW$1))","v":""},{"$f":"IF($A181=\"N/A\",Ref!$B$36,INDEX(Ranks!$1:$1048576,$A181,DX$1))","v":""},{"$f":"IF($A181=\"N/A\",Ref!$B$36,INDEX(Ranks!$1:$1048576,$A181,DY$1))","v":""},{"$f":"IF($A181=\"N/A\",Ref!$B$36,INDEX(Ranks!$1:$1048576,$A181,DZ$1))","v":""},{"$f":"IF($A181=\"N/A\",Ref!$B$36,INDEX(Ranks!$1:$1048576,$A181,EA$1))","v":""},{"$f":"IF($A181=\"N/A\",Ref!$B$36,INDEX(Ranks!$1:$1048576,$A181,EB$1))","v":""}]
[{"$f":"IFERROR(MATCH('Portfolio Page'!L182,Ranks!L:L,0),\"N/A\")","v":"N/A"},null,{"$f":"IF($A182=\"N/A\",\"\",INDEX(Ranks!$1:$1048576,$A182,C$1))","v":""},{"$f":"IF($A182=\"N/A\",Ref!$B$36,INDEX(Ranks!$1:$1048576,$A182,D$1))","v":""},{"$f":"IF($A182=\"N/A\",Ref!$B$36,INDEX(Ranks!$1:$1048576,$A182,E$1))","v":""},{"$f":"IF($A182=\"N/A\",\"\",INDEX(Ranks!$1:$1048576,$A182,F$1))","v":""},{"$f":"IF($A182=\"N/A\",\"\",INDEX(Ranks!$1:$1048576,$A182,G$1))","v":""},{"$f":"IF($A182=\"N/A\",\"\",INDEX(Ranks!$1:$1048576,$A182,H$1))","v":""},{"$f":"IF($A182=\"N/A\",\"\",INDEX(Ranks!$1:$1048576,$A182,I$1))","v":""},{"$f":"IF($A182=\"N/A\",\"\",INDEX(Ranks!$1:$1048576,$A182,J$1))","v":""},{"$f":"IF($A182=\"N/A\",\"\",INDEX(Ranks!$1:$1048576,$A182,K$1))","v":""},null,{"$f":"IF($A182=\"N/A\",Ref!$B$36,INDEX(Ranks!$1:$1048576,$A182,M$1))","v":""},{"$f":"IF($A182=\"N/A\",Ref!$B$36,INDEX(Ranks!$1:$1048576,$A182,N$1))","v":""},{"$f":"IF($A182=\"N/A\",Ref!$B$36,INDEX(Ranks!$1:$1048576,$A182,O$1))","v":""},{"$f":"IF($A182=\"N/A\",Ref!$B$36,INDEX(Ranks!$1:$1048576,$A182,P$1))","v":""},{"$f":"IF($A182=\"N/A\",Ref!$B$36,INDEX(Ranks!$1:$1048576,$A182,Q$1))","v":""},{"$f":"IF($A182=\"N/A\",Ref!$B$36,INDEX(Ranks!$1:$1048576,$A182,R$1))","v":""},{"$f":"IF($A182=\"N/A\",Ref!$B$36,INDEX(Ranks!$1:$1048576,$A182,S$1))","v":""},{"$f":"IF($A182=\"N/A\",Ref!$B$36,INDEX(Ranks!$1:$1048576,$A182,T$1))","v":""},{"$f":"IF($A182=\"N/A\",Ref!$B$36,INDEX(Ranks!$1:$1048576,$A182,U$1))","v":""},{"$f":"IF($A182=\"N/A\",Ref!$B$36,INDEX(Ranks!$1:$1048576,$A182,V$1))","v":""},{"$f":"IF($A182=\"N/A\",Ref!$B$36,INDEX(Ranks!$1:$1048576,$A182,W$1))","v":""},{"$f":"IF($A182=\"N/A\",Ref!$B$36,INDEX(Ranks!$1:$1048576,$A182,X$1))","v":""},{"$f":"IF($A182=\"N/A\",Ref!$B$36,INDEX(Ranks!$1:$1048576,$A182,Y$1))","v":""},{"$f":"IF($A182=\"N/A\",Ref!$B$36,INDEX(Ranks!$1:$1048576,$A182,Z$1))","v":""},{"$f":"IF($A182=\"N/A\",Ref!$B$36,INDEX(Ranks!$1:$1048576,$A182,AA$1))","v":""},{"$f":"IF($A182=\"N/A\",Ref!$B$36,INDEX(Ranks!$1:$1048576,$A182,AB$1))","v":""},{"$f":"IF($A182=\"N/A\",Ref!$B$36,INDEX(Ranks!$1:$1048576,$A182,AC$1))","v":""},{"$f":"IF($A182=\"N/A\",Ref!$B$36,INDEX(Ranks!$1:$1048576,$A182,AD$1))","v":""},{"$f":"IF($A182=\"N/A\",Ref!$B$36,INDEX(Ranks!$1:$1048576,$A182,AE$1))","v":""},{"$f":"IF($A182=\"N/A\",Ref!$B$36,INDEX(Ranks!$1:$1048576,$A182,AF$1))","v":""},{"$f":"IF($A182=\"N/A\",Ref!$B$36,INDEX(Ranks!$1:$1048576,$A182,AG$1))","v":""},{"$f":"IF($A182=\"N/A\",Ref!$B$36,INDEX(Ranks!$1:$1048576,$A182,AH$1))","v":""},{"$f":"IF($A182=\"N/A\",Ref!$B$36,INDEX(Ranks!$1:$1048576,$A182,AI$1))","v":""},{"$f":"IF($A182=\"N/A\",Ref!$B$36,INDEX(Ranks!$1:$1048576,$A182,AJ$1))","v":""},{"$f":"IF($A182=\"N/A\",Ref!$B$36,INDEX(Ranks!$1:$1048576,$A182,AK$1))","v":""},{"$f":"IF($A182=\"N/A\",Ref!$B$36,INDEX(Ranks!$1:$1048576,$A182,AL$1))","v":""},{"$f":"IF($A182=\"N/A\",Ref!$B$36,INDEX(Ranks!$1:$1048576,$A182,AM$1))","v":""},{"$f":"IF($A182=\"N/A\",Ref!$B$36,INDEX(Ranks!$1:$1048576,$A182,AN$1))","v":""},{"$f":"IF($A182=\"N/A\",Ref!$B$36,INDEX(Ranks!$1:$1048576,$A182,AO$1))","v":""},{"$f":"IF($A182=\"N/A\",Ref!$B$36,INDEX(Ranks!$1:$1048576,$A182,AP$1))","v":""},{"$f":"IF($A182=\"N/A\",Ref!$B$36,INDEX(Ranks!$1:$1048576,$A182,AQ$1))","v":""},{"$f":"IF($A182=\"N/A\",Ref!$B$36,INDEX(Ranks!$1:$1048576,$A182,AR$1))","v":""},{"$f":"IF($A182=\"N/A\",Ref!$B$36,INDEX(Ranks!$1:$1048576,$A182,AS$1))","v":""},{"$f":"IF($A182=\"N/A\",Ref!$B$36,INDEX(Ranks!$1:$1048576,$A182,AT$1))","v":""},{"$f":"IF($A182=\"N/A\",Ref!$B$36,INDEX(Ranks!$1:$1048576,$A182,AU$1))","v":""},{"$f":"IF($A182=\"N/A\",Ref!$B$36,INDEX(Ranks!$1:$1048576,$A182,AV$1))","v":""},{"$f":"IF($A182=\"N/A\",Ref!$B$36,INDEX(Ranks!$1:$1048576,$A182,AW$1))","v":""},{"$f":"IF($A182=\"N/A\",Ref!$B$36,INDEX(Ranks!$1:$1048576,$A182,AX$1))","v":""},{"$f":"IF($A182=\"N/A\",Ref!$B$36,INDEX(Ranks!$1:$1048576,$A182,AY$1))","v":""},{"$f":"IF($A182=\"N/A\",Ref!$B$36,INDEX(Ranks!$1:$1048576,$A182,AZ$1))","v":""},{"$f":"IF($A182=\"N/A\",Ref!$B$36,INDEX(Ranks!$1:$1048576,$A182,BA$1))","v":""},{"$f":"IF($A182=\"N/A\",Ref!$B$36,INDEX(Ranks!$1:$1048576,$A182,BB$1))","v":""},{"$f":"IF($A182=\"N/A\",Ref!$B$36,INDEX(Ranks!$1:$1048576,$A182,BC$1))","v":""},{"$f":"IF($A182=\"N/A\",Ref!$B$36,INDEX(Ranks!$1:$1048576,$A182,BD$1))","v":""},{"$f":"IF($A182=\"N/A\",Ref!$B$36,INDEX(Ranks!$1:$1048576,$A182,BE$1))","v":""},{"$f":"IF($A182=\"N/A\",Ref!$B$36,INDEX(Ranks!$1:$1048576,$A182,BF$1))","v":""},{"$f":"IF($A182=\"N/A\",Ref!$B$36,INDEX(Ranks!$1:$1048576,$A182,BG$1))","v":""},{"$f":"IF($A182=\"N/A\",Ref!$B$36,INDEX(Ranks!$1:$1048576,$A182,BH$1))","v":""},{"$f":"IF($A182=\"N/A\",Ref!$B$36,INDEX(Ranks!$1:$1048576,$A182,BI$1))","v":""},{"$f":"IF($A182=\"N/A\",Ref!$B$36,INDEX(Ranks!$1:$1048576,$A182,BJ$1))","v":""},{"$f":"IF($A182=\"N/A\",Ref!$B$36,INDEX(Ranks!$1:$1048576,$A182,BK$1))","v":""},{"$f":"IF($A182=\"N/A\",Ref!$B$36,INDEX(Ranks!$1:$1048576,$A182,BL$1))","v":""},{"$f":"IF($A182=\"N/A\",Ref!$B$36,INDEX(Ranks!$1:$1048576,$A182,BM$1))","v":""},{"$f":"IF($A182=\"N/A\",Ref!$B$36,INDEX(Ranks!$1:$1048576,$A182,BN$1))","v":""},{"$f":"IF($A182=\"N/A\",Ref!$B$36,INDEX(Ranks!$1:$1048576,$A182,BO$1))","v":""},{"$f":"IF($A182=\"N/A\",Ref!$B$36,INDEX(Ranks!$1:$1048576,$A182,BP$1))","v":""},{"$f":"IF($A182=\"N/A\",Ref!$B$36,INDEX(Ranks!$1:$1048576,$A182,BQ$1))","v":""},{"$f":"IF($A182=\"N/A\",Ref!$B$36,INDEX(Ranks!$1:$1048576,$A182,BR$1))","v":""},{"$f":"IF($A182=\"N/A\",Ref!$B$36,INDEX(Ranks!$1:$1048576,$A182,BS$1))","v":""},{"$f":"IF($A182=\"N/A\",Ref!$B$36,INDEX(Ranks!$1:$1048576,$A182,BT$1))","v":""},{"$f":"IF($A182=\"N/A\",Ref!$B$36,INDEX(Ranks!$1:$1048576,$A182,BU$1))","v":""},{"$f":"IF($A182=\"N/A\",Ref!$B$36,INDEX(Ranks!$1:$1048576,$A182,BV$1))","v":""},{"$f":"IF($A182=\"N/A\",Ref!$B$36,INDEX(Ranks!$1:$1048576,$A182,BW$1))","v":""},{"$f":"IF($A182=\"N/A\",Ref!$B$36,INDEX(Ranks!$1:$1048576,$A182,BX$1))","v":""},{"$f":"IF($A182=\"N/A\",Ref!$B$36,INDEX(Ranks!$1:$1048576,$A182,BY$1))","v":""},{"$f":"IF($A182=\"N/A\",Ref!$B$36,INDEX(Ranks!$1:$1048576,$A182,BZ$1))","v":""},{"$f":"IF($A182=\"N/A\",Ref!$B$36,INDEX(Ranks!$1:$1048576,$A182,CA$1))","v":""},{"$f":"IF($A182=\"N/A\",Ref!$B$36,INDEX(Ranks!$1:$1048576,$A182,CB$1))","v":""},{"$f":"IF($A182=\"N/A\",Ref!$B$36,INDEX(Ranks!$1:$1048576,$A182,CC$1))","v":""},{"$f":"IF($A182=\"N/A\",Ref!$B$36,INDEX(Ranks!$1:$1048576,$A182,CD$1))","v":""},{"$f":"IF($A182=\"N/A\",Ref!$B$36,INDEX(Ranks!$1:$1048576,$A182,CE$1))","v":""},{"$f":"IF($A182=\"N/A\",Ref!$B$36,INDEX(Ranks!$1:$1048576,$A182,CF$1))","v":""},{"$f":"IF($A182=\"N/A\",Ref!$B$36,INDEX(Ranks!$1:$1048576,$A182,CG$1))","v":""},{"$f":"IF($A182=\"N/A\",Ref!$B$36,INDEX(Ranks!$1:$1048576,$A182,CH$1))","v":""},{"$f":"IF($A182=\"N/A\",Ref!$B$36,INDEX(Ranks!$1:$1048576,$A182,CI$1))","v":""},{"$f":"IF($A182=\"N/A\",Ref!$B$36,INDEX(Ranks!$1:$1048576,$A182,CJ$1))","v":""},{"$f":"IF($A182=\"N/A\",Ref!$B$36,INDEX(Ranks!$1:$1048576,$A182,CK$1))","v":""},{"$f":"IF($A182=\"N/A\",Ref!$B$36,INDEX(Ranks!$1:$1048576,$A182,CL$1))","v":""},{"$f":"IF($A182=\"N/A\",Ref!$B$36,INDEX(Ranks!$1:$1048576,$A182,CM$1))","v":""},{"$f":"IF($A182=\"N/A\",Ref!$B$36,INDEX(Ranks!$1:$1048576,$A182,CN$1))","v":""},{"$f":"IF($A182=\"N/A\",Ref!$B$36,INDEX(Ranks!$1:$1048576,$A182,CO$1))","v":""},{"$f":"IF($A182=\"N/A\",Ref!$B$36,INDEX(Ranks!$1:$1048576,$A182,CP$1))","v":""},{"$f":"IF($A182=\"N/A\",Ref!$B$36,INDEX(Ranks!$1:$1048576,$A182,CQ$1))","v":""},{"$f":"IF($A182=\"N/A\",Ref!$B$36,INDEX(Ranks!$1:$1048576,$A182,CR$1))","v":""},{"$f":"IF($A182=\"N/A\",Ref!$B$36,INDEX(Ranks!$1:$1048576,$A182,CS$1))","v":""},{"$f":"IF($A182=\"N/A\",Ref!$B$36,INDEX(Ranks!$1:$1048576,$A182,CT$1))","v":""},{"$f":"IF($A182=\"N/A\",Ref!$B$36,INDEX(Ranks!$1:$1048576,$A182,CU$1))","v":""},{"$f":"IF($A182=\"N/A\",Ref!$B$36,INDEX(Ranks!$1:$1048576,$A182,CV$1))","v":""},{"$f":"IF($A182=\"N/A\",Ref!$B$36,INDEX(Ranks!$1:$1048576,$A182,CW$1))","v":""},{"$f":"IF($A182=\"N/A\",Ref!$B$36,INDEX(Ranks!$1:$1048576,$A182,CX$1))","v":""},{"$f":"IF($A182=\"N/A\",Ref!$B$36,INDEX(Ranks!$1:$1048576,$A182,CY$1))","v":""},{"$f":"IF($A182=\"N/A\",Ref!$B$36,INDEX(Ranks!$1:$1048576,$A182,CZ$1))","v":""},{"$f":"IF($A182=\"N/A\",Ref!$B$36,INDEX(Ranks!$1:$1048576,$A182,DA$1))","v":""},{"$f":"IF($A182=\"N/A\",Ref!$B$36,INDEX(Ranks!$1:$1048576,$A182,DB$1))","v":""},{"$f":"IF($A182=\"N/A\",Ref!$B$36,INDEX(Ranks!$1:$1048576,$A182,DC$1))","v":""},{"$f":"IF($A182=\"N/A\",Ref!$B$36,INDEX(Ranks!$1:$1048576,$A182,DD$1))","v":""},{"$f":"IF($A182=\"N/A\",Ref!$B$36,INDEX(Ranks!$1:$1048576,$A182,DE$1))","v":""},{"$f":"IF($A182=\"N/A\",Ref!$B$36,INDEX(Ranks!$1:$1048576,$A182,DF$1))","v":""},{"$f":"IF($A182=\"N/A\",Ref!$B$36,INDEX(Ranks!$1:$1048576,$A182,DG$1))","v":""},{"$f":"IF($A182=\"N/A\",Ref!$B$36,INDEX(Ranks!$1:$1048576,$A182,DH$1))","v":""},{"$f":"IF($A182=\"N/A\",Ref!$B$36,INDEX(Ranks!$1:$1048576,$A182,DI$1))","v":""},{"$f":"IF($A182=\"N/A\",Ref!$B$36,INDEX(Ranks!$1:$1048576,$A182,DJ$1))","v":""},{"$f":"IF($A182=\"N/A\",Ref!$B$36,INDEX(Ranks!$1:$1048576,$A182,DK$1))","v":""},{"$f":"IF($A182=\"N/A\",Ref!$B$36,INDEX(Ranks!$1:$1048576,$A182,DL$1))","v":""},{"$f":"IF($A182=\"N/A\",Ref!$B$36,INDEX(Ranks!$1:$1048576,$A182,DM$1))","v":""},{"$f":"IF($A182=\"N/A\",Ref!$B$36,INDEX(Ranks!$1:$1048576,$A182,DN$1))","v":""},{"$f":"IF($A182=\"N/A\",Ref!$B$36,INDEX(Ranks!$1:$1048576,$A182,DO$1))","v":""},{"$f":"IF($A182=\"N/A\",Ref!$B$36,INDEX(Ranks!$1:$1048576,$A182,DP$1))","v":""},{"$f":"IF($A182=\"N/A\",Ref!$B$36,INDEX(Ranks!$1:$1048576,$A182,DQ$1))","v":""},{"$f":"IF($A182=\"N/A\",Ref!$B$36,INDEX(Ranks!$1:$1048576,$A182,DR$1))","v":""},{"$f":"IF($A182=\"N/A\",Ref!$B$36,INDEX(Ranks!$1:$1048576,$A182,DS$1))","v":""},{"$f":"IF($A182=\"N/A\",Ref!$B$36,INDEX(Ranks!$1:$1048576,$A182,DT$1))","v":""},{"$f":"IF($A182=\"N/A\",Ref!$B$36,INDEX(Ranks!$1:$1048576,$A182,DU$1))","v":""},{"$f":"IF($A182=\"N/A\",Ref!$B$36,INDEX(Ranks!$1:$1048576,$A182,DV$1))","v":""},{"$f":"IF($A182=\"N/A\",Ref!$B$36,INDEX(Ranks!$1:$1048576,$A182,DW$1))","v":""},{"$f":"IF($A182=\"N/A\",Ref!$B$36,INDEX(Ranks!$1:$1048576,$A182,DX$1))","v":""},{"$f":"IF($A182=\"N/A\",Ref!$B$36,INDEX(Ranks!$1:$1048576,$A182,DY$1))","v":""},{"$f":"IF($A182=\"N/A\",Ref!$B$36,INDEX(Ranks!$1:$1048576,$A182,DZ$1))","v":""},{"$f":"IF($A182=\"N/A\",Ref!$B$36,INDEX(Ranks!$1:$1048576,$A182,EA$1))","v":""},{"$f":"IF($A182=\"N/A\",Ref!$B$36,INDEX(Ranks!$1:$1048576,$A182,EB$1))","v":""}]
[{"$f":"IFERROR(MATCH('Portfolio Page'!L183,Ranks!L:L,0),\"N/A\")","v":"N/A"},null,{"$f":"IF($A183=\"N/A\",\"\",INDEX(Ranks!$1:$1048576,$A183,C$1))","v":""},{"$f":"IF($A183=\"N/A\",Ref!$B$36,INDEX(Ranks!$1:$1048576,$A183,D$1))","v":""},{"$f":"IF($A183=\"N/A\",Ref!$B$36,INDEX(Ranks!$1:$1048576,$A183,E$1))","v":""},{"$f":"IF($A183=\"N/A\",\"\",INDEX(Ranks!$1:$1048576,$A183,F$1))","v":""},{"$f":"IF($A183=\"N/A\",\"\",INDEX(Ranks!$1:$1048576,$A183,G$1))","v":""},{"$f":"IF($A183=\"N/A\",\"\",INDEX(Ranks!$1:$1048576,$A183,H$1))","v":""},{"$f":"IF($A183=\"N/A\",\"\",INDEX(Ranks!$1:$1048576,$A183,I$1))","v":""},{"$f":"IF($A183=\"N/A\",\"\",INDEX(Ranks!$1:$1048576,$A183,J$1))","v":""},{"$f":"IF($A183=\"N/A\",\"\",INDEX(Ranks!$1:$1048576,$A183,K$1))","v":""},null,{"$f":"IF($A183=\"N/A\",Ref!$B$36,INDEX(Ranks!$1:$1048576,$A183,M$1))","v":""},{"$f":"IF($A183=\"N/A\",Ref!$B$36,INDEX(Ranks!$1:$1048576,$A183,N$1))","v":""},{"$f":"IF($A183=\"N/A\",Ref!$B$36,INDEX(Ranks!$1:$1048576,$A183,O$1))","v":""},{"$f":"IF($A183=\"N/A\",Ref!$B$36,INDEX(Ranks!$1:$1048576,$A183,P$1))","v":""},{"$f":"IF($A183=\"N/A\",Ref!$B$36,INDEX(Ranks!$1:$1048576,$A183,Q$1))","v":""},{"$f":"IF($A183=\"N/A\",Ref!$B$36,INDEX(Ranks!$1:$1048576,$A183,R$1))","v":""},{"$f":"IF($A183=\"N/A\",Ref!$B$36,INDEX(Ranks!$1:$1048576,$A183,S$1))","v":""},{"$f":"IF($A183=\"N/A\",Ref!$B$36,INDEX(Ranks!$1:$1048576,$A183,T$1))","v":""},{"$f":"IF($A183=\"N/A\",Ref!$B$36,INDEX(Ranks!$1:$1048576,$A183,U$1))","v":""},{"$f":"IF($A183=\"N/A\",Ref!$B$36,INDEX(Ranks!$1:$1048576,$A183,V$1))","v":""},{"$f":"IF($A183=\"N/A\",Ref!$B$36,INDEX(Ranks!$1:$1048576,$A183,W$1))","v":""},{"$f":"IF($A183=\"N/A\",Ref!$B$36,INDEX(Ranks!$1:$1048576,$A183,X$1))","v":""},{"$f":"IF($A183=\"N/A\",Ref!$B$36,INDEX(Ranks!$1:$1048576,$A183,Y$1))","v":""},{"$f":"IF($A183=\"N/A\",Ref!$B$36,INDEX(Ranks!$1:$1048576,$A183,Z$1))","v":""},{"$f":"IF($A183=\"N/A\",Ref!$B$36,INDEX(Ranks!$1:$1048576,$A183,AA$1))","v":""},{"$f":"IF($A183=\"N/A\",Ref!$B$36,INDEX(Ranks!$1:$1048576,$A183,AB$1))","v":""},{"$f":"IF($A183=\"N/A\",Ref!$B$36,INDEX(Ranks!$1:$1048576,$A183,AC$1))","v":""},{"$f":"IF($A183=\"N/A\",Ref!$B$36,INDEX(Ranks!$1:$1048576,$A183,AD$1))","v":""},{"$f":"IF($A183=\"N/A\",Ref!$B$36,INDEX(Ranks!$1:$1048576,$A183,AE$1))","v":""},{"$f":"IF($A183=\"N/A\",Ref!$B$36,INDEX(Ranks!$1:$1048576,$A183,AF$1))","v":""},{"$f":"IF($A183=\"N/A\",Ref!$B$36,INDEX(Ranks!$1:$1048576,$A183,AG$1))","v":""},{"$f":"IF($A183=\"N/A\",Ref!$B$36,INDEX(Ranks!$1:$1048576,$A183,AH$1))","v":""},{"$f":"IF($A183=\"N/A\",Ref!$B$36,INDEX(Ranks!$1:$1048576,$A183,AI$1))","v":""},{"$f":"IF($A183=\"N/A\",Ref!$B$36,INDEX(Ranks!$1:$1048576,$A183,AJ$1))","v":""},{"$f":"IF($A183=\"N/A\",Ref!$B$36,INDEX(Ranks!$1:$1048576,$A183,AK$1))","v":""},{"$f":"IF($A183=\"N/A\",Ref!$B$36,INDEX(Ranks!$1:$1048576,$A183,AL$1))","v":""},{"$f":"IF($A183=\"N/A\",Ref!$B$36,INDEX(Ranks!$1:$1048576,$A183,AM$1))","v":""},{"$f":"IF($A183=\"N/A\",Ref!$B$36,INDEX(Ranks!$1:$1048576,$A183,AN$1))","v":""},{"$f":"IF($A183=\"N/A\",Ref!$B$36,INDEX(Ranks!$1:$1048576,$A183,AO$1))","v":""},{"$f":"IF($A183=\"N/A\",Ref!$B$36,INDEX(Ranks!$1:$1048576,$A183,AP$1))","v":""},{"$f":"IF($A183=\"N/A\",Ref!$B$36,INDEX(Ranks!$1:$1048576,$A183,AQ$1))","v":""},{"$f":"IF($A183=\"N/A\",Ref!$B$36,INDEX(Ranks!$1:$1048576,$A183,AR$1))","v":""},{"$f":"IF($A183=\"N/A\",Ref!$B$36,INDEX(Ranks!$1:$1048576,$A183,AS$1))","v":""},{"$f":"IF($A183=\"N/A\",Ref!$B$36,INDEX(Ranks!$1:$1048576,$A183,AT$1))","v":""},{"$f":"IF($A183=\"N/A\",Ref!$B$36,INDEX(Ranks!$1:$1048576,$A183,AU$1))","v":""},{"$f":"IF($A183=\"N/A\",Ref!$B$36,INDEX(Ranks!$1:$1048576,$A183,AV$1))","v":""},{"$f":"IF($A183=\"N/A\",Ref!$B$36,INDEX(Ranks!$1:$1048576,$A183,AW$1))","v":""},{"$f":"IF($A183=\"N/A\",Ref!$B$36,INDEX(Ranks!$1:$1048576,$A183,AX$1))","v":""},{"$f":"IF($A183=\"N/A\",Ref!$B$36,INDEX(Ranks!$1:$1048576,$A183,AY$1))","v":""},{"$f":"IF($A183=\"N/A\",Ref!$B$36,INDEX(Ranks!$1:$1048576,$A183,AZ$1))","v":""},{"$f":"IF($A183=\"N/A\",Ref!$B$36,INDEX(Ranks!$1:$1048576,$A183,BA$1))","v":""},{"$f":"IF($A183=\"N/A\",Ref!$B$36,INDEX(Ranks!$1:$1048576,$A183,BB$1))","v":""},{"$f":"IF($A183=\"N/A\",Ref!$B$36,INDEX(Ranks!$1:$1048576,$A183,BC$1))","v":""},{"$f":"IF($A183=\"N/A\",Ref!$B$36,INDEX(Ranks!$1:$1048576,$A183,BD$1))","v":""},{"$f":"IF($A183=\"N/A\",Ref!$B$36,INDEX(Ranks!$1:$1048576,$A183,BE$1))","v":""},{"$f":"IF($A183=\"N/A\",Ref!$B$36,INDEX(Ranks!$1:$1048576,$A183,BF$1))","v":""},{"$f":"IF($A183=\"N/A\",Ref!$B$36,INDEX(Ranks!$1:$1048576,$A183,BG$1))","v":""},{"$f":"IF($A183=\"N/A\",Ref!$B$36,INDEX(Ranks!$1:$1048576,$A183,BH$1))","v":""},{"$f":"IF($A183=\"N/A\",Ref!$B$36,INDEX(Ranks!$1:$1048576,$A183,BI$1))","v":""},{"$f":"IF($A183=\"N/A\",Ref!$B$36,INDEX(Ranks!$1:$1048576,$A183,BJ$1))","v":""},{"$f":"IF($A183=\"N/A\",Ref!$B$36,INDEX(Ranks!$1:$1048576,$A183,BK$1))","v":""},{"$f":"IF($A183=\"N/A\",Ref!$B$36,INDEX(Ranks!$1:$1048576,$A183,BL$1))","v":""},{"$f":"IF($A183=\"N/A\",Ref!$B$36,INDEX(Ranks!$1:$1048576,$A183,BM$1))","v":""},{"$f":"IF($A183=\"N/A\",Ref!$B$36,INDEX(Ranks!$1:$1048576,$A183,BN$1))","v":""},{"$f":"IF($A183=\"N/A\",Ref!$B$36,INDEX(Ranks!$1:$1048576,$A183,BO$1))","v":""},{"$f":"IF($A183=\"N/A\",Ref!$B$36,INDEX(Ranks!$1:$1048576,$A183,BP$1))","v":""},{"$f":"IF($A183=\"N/A\",Ref!$B$36,INDEX(Ranks!$1:$1048576,$A183,BQ$1))","v":""},{"$f":"IF($A183=\"N/A\",Ref!$B$36,INDEX(Ranks!$1:$1048576,$A183,BR$1))","v":""},{"$f":"IF($A183=\"N/A\",Ref!$B$36,INDEX(Ranks!$1:$1048576,$A183,BS$1))","v":""},{"$f":"IF($A183=\"N/A\",Ref!$B$36,INDEX(Ranks!$1:$1048576,$A183,BT$1))","v":""},{"$f":"IF($A183=\"N/A\",Ref!$B$36,INDEX(Ranks!$1:$1048576,$A183,BU$1))","v":""},{"$f":"IF($A183=\"N/A\",Ref!$B$36,INDEX(Ranks!$1:$1048576,$A183,BV$1))","v":""},{"$f":"IF($A183=\"N/A\",Ref!$B$36,INDEX(Ranks!$1:$1048576,$A183,BW$1))","v":""},{"$f":"IF($A183=\"N/A\",Ref!$B$36,INDEX(Ranks!$1:$1048576,$A183,BX$1))","v":""},{"$f":"IF($A183=\"N/A\",Ref!$B$36,INDEX(Ranks!$1:$1048576,$A183,BY$1))","v":""},{"$f":"IF($A183=\"N/A\",Ref!$B$36,INDEX(Ranks!$1:$1048576,$A183,BZ$1))","v":""},{"$f":"IF($A183=\"N/A\",Ref!$B$36,INDEX(Ranks!$1:$1048576,$A183,CA$1))","v":""},{"$f":"IF($A183=\"N/A\",Ref!$B$36,INDEX(Ranks!$1:$1048576,$A183,CB$1))","v":""},{"$f":"IF($A183=\"N/A\",Ref!$B$36,INDEX(Ranks!$1:$1048576,$A183,CC$1))","v":""},{"$f":"IF($A183=\"N/A\",Ref!$B$36,INDEX(Ranks!$1:$1048576,$A183,CD$1))","v":""},{"$f":"IF($A183=\"N/A\",Ref!$B$36,INDEX(Ranks!$1:$1048576,$A183,CE$1))","v":""},{"$f":"IF($A183=\"N/A\",Ref!$B$36,INDEX(Ranks!$1:$1048576,$A183,CF$1))","v":""},{"$f":"IF($A183=\"N/A\",Ref!$B$36,INDEX(Ranks!$1:$1048576,$A183,CG$1))","v":""},{"$f":"IF($A183=\"N/A\",Ref!$B$36,INDEX(Ranks!$1:$1048576,$A183,CH$1))","v":""},{"$f":"IF($A183=\"N/A\",Ref!$B$36,INDEX(Ranks!$1:$1048576,$A183,CI$1))","v":""},{"$f":"IF($A183=\"N/A\",Ref!$B$36,INDEX(Ranks!$1:$1048576,$A183,CJ$1))","v":""},{"$f":"IF($A183=\"N/A\",Ref!$B$36,INDEX(Ranks!$1:$1048576,$A183,CK$1))","v":""},{"$f":"IF($A183=\"N/A\",Ref!$B$36,INDEX(Ranks!$1:$1048576,$A183,CL$1))","v":""},{"$f":"IF($A183=\"N/A\",Ref!$B$36,INDEX(Ranks!$1:$1048576,$A183,CM$1))","v":""},{"$f":"IF($A183=\"N/A\",Ref!$B$36,INDEX(Ranks!$1:$1048576,$A183,CN$1))","v":""},{"$f":"IF($A183=\"N/A\",Ref!$B$36,INDEX(Ranks!$1:$1048576,$A183,CO$1))","v":""},{"$f":"IF($A183=\"N/A\",Ref!$B$36,INDEX(Ranks!$1:$1048576,$A183,CP$1))","v":""},{"$f":"IF($A183=\"N/A\",Ref!$B$36,INDEX(Ranks!$1:$1048576,$A183,CQ$1))","v":""},{"$f":"IF($A183=\"N/A\",Ref!$B$36,INDEX(Ranks!$1:$1048576,$A183,CR$1))","v":""},{"$f":"IF($A183=\"N/A\",Ref!$B$36,INDEX(Ranks!$1:$1048576,$A183,CS$1))","v":""},{"$f":"IF($A183=\"N/A\",Ref!$B$36,INDEX(Ranks!$1:$1048576,$A183,CT$1))","v":""},{"$f":"IF($A183=\"N/A\",Ref!$B$36,INDEX(Ranks!$1:$1048576,$A183,CU$1))","v":""},{"$f":"IF($A183=\"N/A\",Ref!$B$36,INDEX(Ranks!$1:$1048576,$A183,CV$1))","v":""},{"$f":"IF($A183=\"N/A\",Ref!$B$36,INDEX(Ranks!$1:$1048576,$A183,CW$1))","v":""},{"$f":"IF($A183=\"N/A\",Ref!$B$36,INDEX(Ranks!$1:$1048576,$A183,CX$1))","v":""},{"$f":"IF($A183=\"N/A\",Ref!$B$36,INDEX(Ranks!$1:$1048576,$A183,CY$1))","v":""},{"$f":"IF($A183=\"N/A\",Ref!$B$36,INDEX(Ranks!$1:$1048576,$A183,CZ$1))","v":""},{"$f":"IF($A183=\"N/A\",Ref!$B$36,INDEX(Ranks!$1:$1048576,$A183,DA$1))","v":""},{"$f":"IF($A183=\"N/A\",Ref!$B$36,INDEX(Ranks!$1:$1048576,$A183,DB$1))","v":""},{"$f":"IF($A183=\"N/A\",Ref!$B$36,INDEX(Ranks!$1:$1048576,$A183,DC$1))","v":""},{"$f":"IF($A183=\"N/A\",Ref!$B$36,INDEX(Ranks!$1:$1048576,$A183,DD$1))","v":""},{"$f":"IF($A183=\"N/A\",Ref!$B$36,INDEX(Ranks!$1:$1048576,$A183,DE$1))","v":""},{"$f":"IF($A183=\"N/A\",Ref!$B$36,INDEX(Ranks!$1:$1048576,$A183,DF$1))","v":""},{"$f":"IF($A183=\"N/A\",Ref!$B$36,INDEX(Ranks!$1:$1048576,$A183,DG$1))","v":""},{"$f":"IF($A183=\"N/A\",Ref!$B$36,INDEX(Ranks!$1:$1048576,$A183,DH$1))","v":""},{"$f":"IF($A183=\"N/A\",Ref!$B$36,INDEX(Ranks!$1:$1048576,$A183,DI$1))","v":""},{"$f":"IF($A183=\"N/A\",Ref!$B$36,INDEX(Ranks!$1:$1048576,$A183,DJ$1))","v":""},{"$f":"IF($A183=\"N/A\",Ref!$B$36,INDEX(Ranks!$1:$1048576,$A183,DK$1))","v":""},{"$f":"IF($A183=\"N/A\",Ref!$B$36,INDEX(Ranks!$1:$1048576,$A183,DL$1))","v":""},{"$f":"IF($A183=\"N/A\",Ref!$B$36,INDEX(Ranks!$1:$1048576,$A183,DM$1))","v":""},{"$f":"IF($A183=\"N/A\",Ref!$B$36,INDEX(Ranks!$1:$1048576,$A183,DN$1))","v":""},{"$f":"IF($A183=\"N/A\",Ref!$B$36,INDEX(Ranks!$1:$1048576,$A183,DO$1))","v":""},{"$f":"IF($A183=\"N/A\",Ref!$B$36,INDEX(Ranks!$1:$1048576,$A183,DP$1))","v":""},{"$f":"IF($A183=\"N/A\",Ref!$B$36,INDEX(Ranks!$1:$1048576,$A183,DQ$1))","v":""},{"$f":"IF($A183=\"N/A\",Ref!$B$36,INDEX(Ranks!$1:$1048576,$A183,DR$1))","v":""},{"$f":"IF($A183=\"N/A\",Ref!$B$36,INDEX(Ranks!$1:$1048576,$A183,DS$1))","v":""},{"$f":"IF($A183=\"N/A\",Ref!$B$36,INDEX(Ranks!$1:$1048576,$A183,DT$1))","v":""},{"$f":"IF($A183=\"N/A\",Ref!$B$36,INDEX(Ranks!$1:$1048576,$A183,DU$1))","v":""},{"$f":"IF($A183=\"N/A\",Ref!$B$36,INDEX(Ranks!$1:$1048576,$A183,DV$1))","v":""},{"$f":"IF($A183=\"N/A\",Ref!$B$36,INDEX(Ranks!$1:$1048576,$A183,DW$1))","v":""},{"$f":"IF($A183=\"N/A\",Ref!$B$36,INDEX(Ranks!$1:$1048576,$A183,DX$1))","v":""},{"$f":"IF($A183=\"N/A\",Ref!$B$36,INDEX(Ranks!$1:$1048576,$A183,DY$1))","v":""},{"$f":"IF($A183=\"N/A\",Ref!$B$36,INDEX(Ranks!$1:$1048576,$A183,DZ$1))","v":""},{"$f":"IF($A183=\"N/A\",Ref!$B$36,INDEX(Ranks!$1:$1048576,$A183,EA$1))","v":""},{"$f":"IF($A183=\"N/A\",Ref!$B$36,INDEX(Ranks!$1:$1048576,$A183,EB$1))","v":""}]
[{"$f":"IFERROR(MATCH('Portfolio Page'!L184,Ranks!L:L,0),\"N/A\")","v":"N/A"},null,{"$f":"IF($A184=\"N/A\",\"\",INDEX(Ranks!$1:$1048576,$A184,C$1))","v":""},{"$f":"IF($A184=\"N/A\",Ref!$B$36,INDEX(Ranks!$1:$1048576,$A184,D$1))","v":""},{"$f":"IF($A184=\"N/A\",Ref!$B$36,INDEX(Ranks!$1:$1048576,$A184,E$1))","v":""},{"$f":"IF($A184=\"N/A\",\"\",INDEX(Ranks!$1:$1048576,$A184,F$1))","v":""},{"$f":"IF($A184=\"N/A\",\"\",INDEX(Ranks!$1:$1048576,$A184,G$1))","v":""},{"$f":"IF($A184=\"N/A\",\"\",INDEX(Ranks!$1:$1048576,$A184,H$1))","v":""},{"$f":"IF($A184=\"N/A\",\"\",INDEX(Ranks!$1:$1048576,$A184,I$1))","v":""},{"$f":"IF($A184=\"N/A\",\"\",INDEX(Ranks!$1:$1048576,$A184,J$1))","v":""},{"$f":"IF($A184=\"N/A\",\"\",INDEX(Ranks!$1:$1048576,$A184,K$1))","v":""},null,{"$f":"IF($A184=\"N/A\",Ref!$B$36,INDEX(Ranks!$1:$1048576,$A184,M$1))","v":""},{"$f":"IF($A184=\"N/A\",Ref!$B$36,INDEX(Ranks!$1:$1048576,$A184,N$1))","v":""},{"$f":"IF($A184=\"N/A\",Ref!$B$36,INDEX(Ranks!$1:$1048576,$A184,O$1))","v":""},{"$f":"IF($A184=\"N/A\",Ref!$B$36,INDEX(Ranks!$1:$1048576,$A184,P$1))","v":""},{"$f":"IF($A184=\"N/A\",Ref!$B$36,INDEX(Ranks!$1:$1048576,$A184,Q$1))","v":""},{"$f":"IF($A184=\"N/A\",Ref!$B$36,INDEX(Ranks!$1:$1048576,$A184,R$1))","v":""},{"$f":"IF($A184=\"N/A\",Ref!$B$36,INDEX(Ranks!$1:$1048576,$A184,S$1))","v":""},{"$f":"IF($A184=\"N/A\",Ref!$B$36,INDEX(Ranks!$1:$1048576,$A184,T$1))","v":""},{"$f":"IF($A184=\"N/A\",Ref!$B$36,INDEX(Ranks!$1:$1048576,$A184,U$1))","v":""},{"$f":"IF($A184=\"N/A\",Ref!$B$36,INDEX(Ranks!$1:$1048576,$A184,V$1))","v":""},{"$f":"IF($A184=\"N/A\",Ref!$B$36,INDEX(Ranks!$1:$1048576,$A184,W$1))","v":""},{"$f":"IF($A184=\"N/A\",Ref!$B$36,INDEX(Ranks!$1:$1048576,$A184,X$1))","v":""},{"$f":"IF($A184=\"N/A\",Ref!$B$36,INDEX(Ranks!$1:$1048576,$A184,Y$1))","v":""},{"$f":"IF($A184=\"N/A\",Ref!$B$36,INDEX(Ranks!$1:$1048576,$A184,Z$1))","v":""},{"$f":"IF($A184=\"N/A\",Ref!$B$36,INDEX(Ranks!$1:$1048576,$A184,AA$1))","v":""},{"$f":"IF($A184=\"N/A\",Ref!$B$36,INDEX(Ranks!$1:$1048576,$A184,AB$1))","v":""},{"$f":"IF($A184=\"N/A\",Ref!$B$36,INDEX(Ranks!$1:$1048576,$A184,AC$1))","v":""},{"$f":"IF($A184=\"N/A\",Ref!$B$36,INDEX(Ranks!$1:$1048576,$A184,AD$1))","v":""},{"$f":"IF($A184=\"N/A\",Ref!$B$36,INDEX(Ranks!$1:$1048576,$A184,AE$1))","v":""},{"$f":"IF($A184=\"N/A\",Ref!$B$36,INDEX(Ranks!$1:$1048576,$A184,AF$1))","v":""},{"$f":"IF($A184=\"N/A\",Ref!$B$36,INDEX(Ranks!$1:$1048576,$A184,AG$1))","v":""},{"$f":"IF($A184=\"N/A\",Ref!$B$36,INDEX(Ranks!$1:$1048576,$A184,AH$1))","v":""},{"$f":"IF($A184=\"N/A\",Ref!$B$36,INDEX(Ranks!$1:$1048576,$A184,AI$1))","v":""},{"$f":"IF($A184=\"N/A\",Ref!$B$36,INDEX(Ranks!$1:$1048576,$A184,AJ$1))","v":""},{"$f":"IF($A184=\"N/A\",Ref!$B$36,INDEX(Ranks!$1:$1048576,$A184,AK$1))","v":""},{"$f":"IF($A184=\"N/A\",Ref!$B$36,INDEX(Ranks!$1:$1048576,$A184,AL$1))","v":""},{"$f":"IF($A184=\"N/A\",Ref!$B$36,INDEX(Ranks!$1:$1048576,$A184,AM$1))","v":""},{"$f":"IF($A184=\"N/A\",Ref!$B$36,INDEX(Ranks!$1:$1048576,$A184,AN$1))","v":""},{"$f":"IF($A184=\"N/A\",Ref!$B$36,INDEX(Ranks!$1:$1048576,$A184,AO$1))","v":""},{"$f":"IF($A184=\"N/A\",Ref!$B$36,INDEX(Ranks!$1:$1048576,$A184,AP$1))","v":""},{"$f":"IF($A184=\"N/A\",Ref!$B$36,INDEX(Ranks!$1:$1048576,$A184,AQ$1))","v":""},{"$f":"IF($A184=\"N/A\",Ref!$B$36,INDEX(Ranks!$1:$1048576,$A184,AR$1))","v":""},{"$f":"IF($A184=\"N/A\",Ref!$B$36,INDEX(Ranks!$1:$1048576,$A184,AS$1))","v":""},{"$f":"IF($A184=\"N/A\",Ref!$B$36,INDEX(Ranks!$1:$1048576,$A184,AT$1))","v":""},{"$f":"IF($A184=\"N/A\",Ref!$B$36,INDEX(Ranks!$1:$1048576,$A184,AU$1))","v":""},{"$f":"IF($A184=\"N/A\",Ref!$B$36,INDEX(Ranks!$1:$1048576,$A184,AV$1))","v":""},{"$f":"IF($A184=\"N/A\",Ref!$B$36,INDEX(Ranks!$1:$1048576,$A184,AW$1))","v":""},{"$f":"IF($A184=\"N/A\",Ref!$B$36,INDEX(Ranks!$1:$1048576,$A184,AX$1))","v":""},{"$f":"IF($A184=\"N/A\",Ref!$B$36,INDEX(Ranks!$1:$1048576,$A184,AY$1))","v":""},{"$f":"IF($A184=\"N/A\",Ref!$B$36,INDEX(Ranks!$1:$1048576,$A184,AZ$1))","v":""},{"$f":"IF($A184=\"N/A\",Ref!$B$36,INDEX(Ranks!$1:$1048576,$A184,BA$1))","v":""},{"$f":"IF($A184=\"N/A\",Ref!$B$36,INDEX(Ranks!$1:$1048576,$A184,BB$1))","v":""},{"$f":"IF($A184=\"N/A\",Ref!$B$36,INDEX(Ranks!$1:$1048576,$A184,BC$1))","v":""},{"$f":"IF($A184=\"N/A\",Ref!$B$36,INDEX(Ranks!$1:$1048576,$A184,BD$1))","v":""},{"$f":"IF($A184=\"N/A\",Ref!$B$36,INDEX(Ranks!$1:$1048576,$A184,BE$1))","v":""},{"$f":"IF($A184=\"N/A\",Ref!$B$36,INDEX(Ranks!$1:$1048576,$A184,BF$1))","v":""},{"$f":"IF($A184=\"N/A\",Ref!$B$36,INDEX(Ranks!$1:$1048576,$A184,BG$1))","v":""},{"$f":"IF($A184=\"N/A\",Ref!$B$36,INDEX(Ranks!$1:$1048576,$A184,BH$1))","v":""},{"$f":"IF($A184=\"N/A\",Ref!$B$36,INDEX(Ranks!$1:$1048576,$A184,BI$1))","v":""},{"$f":"IF($A184=\"N/A\",Ref!$B$36,INDEX(Ranks!$1:$1048576,$A184,BJ$1))","v":""},{"$f":"IF($A184=\"N/A\",Ref!$B$36,INDEX(Ranks!$1:$1048576,$A184,BK$1))","v":""},{"$f":"IF($A184=\"N/A\",Ref!$B$36,INDEX(Ranks!$1:$1048576,$A184,BL$1))","v":""},{"$f":"IF($A184=\"N/A\",Ref!$B$36,INDEX(Ranks!$1:$1048576,$A184,BM$1))","v":""},{"$f":"IF($A184=\"N/A\",Ref!$B$36,INDEX(Ranks!$1:$1048576,$A184,BN$1))","v":""},{"$f":"IF($A184=\"N/A\",Ref!$B$36,INDEX(Ranks!$1:$1048576,$A184,BO$1))","v":""},{"$f":"IF($A184=\"N/A\",Ref!$B$36,INDEX(Ranks!$1:$1048576,$A184,BP$1))","v":""},{"$f":"IF($A184=\"N/A\",Ref!$B$36,INDEX(Ranks!$1:$1048576,$A184,BQ$1))","v":""},{"$f":"IF($A184=\"N/A\",Ref!$B$36,INDEX(Ranks!$1:$1048576,$A184,BR$1))","v":""},{"$f":"IF($A184=\"N/A\",Ref!$B$36,INDEX(Ranks!$1:$1048576,$A184,BS$1))","v":""},{"$f":"IF($A184=\"N/A\",Ref!$B$36,INDEX(Ranks!$1:$1048576,$A184,BT$1))","v":""},{"$f":"IF($A184=\"N/A\",Ref!$B$36,INDEX(Ranks!$1:$1048576,$A184,BU$1))","v":""},{"$f":"IF($A184=\"N/A\",Ref!$B$36,INDEX(Ranks!$1:$1048576,$A184,BV$1))","v":""},{"$f":"IF($A184=\"N/A\",Ref!$B$36,INDEX(Ranks!$1:$1048576,$A184,BW$1))","v":""},{"$f":"IF($A184=\"N/A\",Ref!$B$36,INDEX(Ranks!$1:$1048576,$A184,BX$1))","v":""},{"$f":"IF($A184=\"N/A\",Ref!$B$36,INDEX(Ranks!$1:$1048576,$A184,BY$1))","v":""},{"$f":"IF($A184=\"N/A\",Ref!$B$36,INDEX(Ranks!$1:$1048576,$A184,BZ$1))","v":""},{"$f":"IF($A184=\"N/A\",Ref!$B$36,INDEX(Ranks!$1:$1048576,$A184,CA$1))","v":""},{"$f":"IF($A184=\"N/A\",Ref!$B$36,INDEX(Ranks!$1:$1048576,$A184,CB$1))","v":""},{"$f":"IF($A184=\"N/A\",Ref!$B$36,INDEX(Ranks!$1:$1048576,$A184,CC$1))","v":""},{"$f":"IF($A184=\"N/A\",Ref!$B$36,INDEX(Ranks!$1:$1048576,$A184,CD$1))","v":""},{"$f":"IF($A184=\"N/A\",Ref!$B$36,INDEX(Ranks!$1:$1048576,$A184,CE$1))","v":""},{"$f":"IF($A184=\"N/A\",Ref!$B$36,INDEX(Ranks!$1:$1048576,$A184,CF$1))","v":""},{"$f":"IF($A184=\"N/A\",Ref!$B$36,INDEX(Ranks!$1:$1048576,$A184,CG$1))","v":""},{"$f":"IF($A184=\"N/A\",Ref!$B$36,INDEX(Ranks!$1:$1048576,$A184,CH$1))","v":""},{"$f":"IF($A184=\"N/A\",Ref!$B$36,INDEX(Ranks!$1:$1048576,$A184,CI$1))","v":""},{"$f":"IF($A184=\"N/A\",Ref!$B$36,INDEX(Ranks!$1:$1048576,$A184,CJ$1))","v":""},{"$f":"IF($A184=\"N/A\",Ref!$B$36,INDEX(Ranks!$1:$1048576,$A184,CK$1))","v":""},{"$f":"IF($A184=\"N/A\",Ref!$B$36,INDEX(Ranks!$1:$1048576,$A184,CL$1))","v":""},{"$f":"IF($A184=\"N/A\",Ref!$B$36,INDEX(Ranks!$1:$1048576,$A184,CM$1))","v":""},{"$f":"IF($A184=\"N/A\",Ref!$B$36,INDEX(Ranks!$1:$1048576,$A184,CN$1))","v":""},{"$f":"IF($A184=\"N/A\",Ref!$B$36,INDEX(Ranks!$1:$1048576,$A184,CO$1))","v":""},{"$f":"IF($A184=\"N/A\",Ref!$B$36,INDEX(Ranks!$1:$1048576,$A184,CP$1))","v":""},{"$f":"IF($A184=\"N/A\",Ref!$B$36,INDEX(Ranks!$1:$1048576,$A184,CQ$1))","v":""},{"$f":"IF($A184=\"N/A\",Ref!$B$36,INDEX(Ranks!$1:$1048576,$A184,CR$1))","v":""},{"$f":"IF($A184=\"N/A\",Ref!$B$36,INDEX(Ranks!$1:$1048576,$A184,CS$1))","v":""},{"$f":"IF($A184=\"N/A\",Ref!$B$36,INDEX(Ranks!$1:$1048576,$A184,CT$1))","v":""},{"$f":"IF($A184=\"N/A\",Ref!$B$36,INDEX(Ranks!$1:$1048576,$A184,CU$1))","v":""},{"$f":"IF($A184=\"N/A\",Ref!$B$36,INDEX(Ranks!$1:$1048576,$A184,CV$1))","v":""},{"$f":"IF($A184=\"N/A\",Ref!$B$36,INDEX(Ranks!$1:$1048576,$A184,CW$1))","v":""},{"$f":"IF($A184=\"N/A\",Ref!$B$36,INDEX(Ranks!$1:$1048576,$A184,CX$1))","v":""},{"$f":"IF($A184=\"N/A\",Ref!$B$36,INDEX(Ranks!$1:$1048576,$A184,CY$1))","v":""},{"$f":"IF($A184=\"N/A\",Ref!$B$36,INDEX(Ranks!$1:$1048576,$A184,CZ$1))","v":""},{"$f":"IF($A184=\"N/A\",Ref!$B$36,INDEX(Ranks!$1:$1048576,$A184,DA$1))","v":""},{"$f":"IF($A184=\"N/A\",Ref!$B$36,INDEX(Ranks!$1:$1048576,$A184,DB$1))","v":""},{"$f":"IF($A184=\"N/A\",Ref!$B$36,INDEX(Ranks!$1:$1048576,$A184,DC$1))","v":""},{"$f":"IF($A184=\"N/A\",Ref!$B$36,INDEX(Ranks!$1:$1048576,$A184,DD$1))","v":""},{"$f":"IF($A184=\"N/A\",Ref!$B$36,INDEX(Ranks!$1:$1048576,$A184,DE$1))","v":""},{"$f":"IF($A184=\"N/A\",Ref!$B$36,INDEX(Ranks!$1:$1048576,$A184,DF$1))","v":""},{"$f":"IF($A184=\"N/A\",Ref!$B$36,INDEX(Ranks!$1:$1048576,$A184,DG$1))","v":""},{"$f":"IF($A184=\"N/A\",Ref!$B$36,INDEX(Ranks!$1:$1048576,$A184,DH$1))","v":""},{"$f":"IF($A184=\"N/A\",Ref!$B$36,INDEX(Ranks!$1:$1048576,$A184,DI$1))","v":""},{"$f":"IF($A184=\"N/A\",Ref!$B$36,INDEX(Ranks!$1:$1048576,$A184,DJ$1))","v":""},{"$f":"IF($A184=\"N/A\",Ref!$B$36,INDEX(Ranks!$1:$1048576,$A184,DK$1))","v":""},{"$f":"IF($A184=\"N/A\",Ref!$B$36,INDEX(Ranks!$1:$1048576,$A184,DL$1))","v":""},{"$f":"IF($A184=\"N/A\",Ref!$B$36,INDEX(Ranks!$1:$1048576,$A184,DM$1))","v":""},{"$f":"IF($A184=\"N/A\",Ref!$B$36,INDEX(Ranks!$1:$1048576,$A184,DN$1))","v":""},{"$f":"IF($A184=\"N/A\",Ref!$B$36,INDEX(Ranks!$1:$1048576,$A184,DO$1))","v":""},{"$f":"IF($A184=\"N/A\",Ref!$B$36,INDEX(Ranks!$1:$1048576,$A184,DP$1))","v":""},{"$f":"IF($A184=\"N/A\",Ref!$B$36,INDEX(Ranks!$1:$1048576,$A184,DQ$1))","v":""},{"$f":"IF($A184=\"N/A\",Ref!$B$36,INDEX(Ranks!$1:$1048576,$A184,DR$1))","v":""},{"$f":"IF($A184=\"N/A\",Ref!$B$36,INDEX(Ranks!$1:$1048576,$A184,DS$1))","v":""},{"$f":"IF($A184=\"N/A\",Ref!$B$36,INDEX(Ranks!$1:$1048576,$A184,DT$1))","v":""},{"$f":"IF($A184=\"N/A\",Ref!$B$36,INDEX(Ranks!$1:$1048576,$A184,DU$1))","v":""},{"$f":"IF($A184=\"N/A\",Ref!$B$36,INDEX(Ranks!$1:$1048576,$A184,DV$1))","v":""},{"$f":"IF($A184=\"N/A\",Ref!$B$36,INDEX(Ranks!$1:$1048576,$A184,DW$1))","v":""},{"$f":"IF($A184=\"N/A\",Ref!$B$36,INDEX(Ranks!$1:$1048576,$A184,DX$1))","v":""},{"$f":"IF($A184=\"N/A\",Ref!$B$36,INDEX(Ranks!$1:$1048576,$A184,DY$1))","v":""},{"$f":"IF($A184=\"N/A\",Ref!$B$36,INDEX(Ranks!$1:$1048576,$A184,DZ$1))","v":""},{"$f":"IF($A184=\"N/A\",Ref!$B$36,INDEX(Ranks!$1:$1048576,$A184,EA$1))","v":""},{"$f":"IF($A184=\"N/A\",Ref!$B$36,INDEX(Ranks!$1:$1048576,$A184,EB$1))","v":""}]
[{"$f":"IFERROR(MATCH('Portfolio Page'!L185,Ranks!L:L,0),\"N/A\")","v":"N/A"},null,{"$f":"IF($A185=\"N/A\",\"\",INDEX(Ranks!$1:$1048576,$A185,C$1))","v":""},{"$f":"IF($A185=\"N/A\",Ref!$B$36,INDEX(Ranks!$1:$1048576,$A185,D$1))","v":""},{"$f":"IF($A185=\"N/A\",Ref!$B$36,INDEX(Ranks!$1:$1048576,$A185,E$1))","v":""},{"$f":"IF($A185=\"N/A\",\"\",INDEX(Ranks!$1:$1048576,$A185,F$1))","v":""},{"$f":"IF($A185=\"N/A\",\"\",INDEX(Ranks!$1:$1048576,$A185,G$1))","v":""},{"$f":"IF($A185=\"N/A\",\"\",INDEX(Ranks!$1:$1048576,$A185,H$1))","v":""},{"$f":"IF($A185=\"N/A\",\"\",INDEX(Ranks!$1:$1048576,$A185,I$1))","v":""},{"$f":"IF($A185=\"N/A\",\"\",INDEX(Ranks!$1:$1048576,$A185,J$1))","v":""},{"$f":"IF($A185=\"N/A\",\"\",INDEX(Ranks!$1:$1048576,$A185,K$1))","v":""},null,{"$f":"IF($A185=\"N/A\",Ref!$B$36,INDEX(Ranks!$1:$1048576,$A185,M$1))","v":""},{"$f":"IF($A185=\"N/A\",Ref!$B$36,INDEX(Ranks!$1:$1048576,$A185,N$1))","v":""},{"$f":"IF($A185=\"N/A\",Ref!$B$36,INDEX(Ranks!$1:$1048576,$A185,O$1))","v":""},{"$f":"IF($A185=\"N/A\",Ref!$B$36,INDEX(Ranks!$1:$1048576,$A185,P$1))","v":""},{"$f":"IF($A185=\"N/A\",Ref!$B$36,INDEX(Ranks!$1:$1048576,$A185,Q$1))","v":""},{"$f":"IF($A185=\"N/A\",Ref!$B$36,INDEX(Ranks!$1:$1048576,$A185,R$1))","v":""},{"$f":"IF($A185=\"N/A\",Ref!$B$36,INDEX(Ranks!$1:$1048576,$A185,S$1))","v":""},{"$f":"IF($A185=\"N/A\",Ref!$B$36,INDEX(Ranks!$1:$1048576,$A185,T$1))","v":""},{"$f":"IF($A185=\"N/A\",Ref!$B$36,INDEX(Ranks!$1:$1048576,$A185,U$1))","v":""},{"$f":"IF($A185=\"N/A\",Ref!$B$36,INDEX(Ranks!$1:$1048576,$A185,V$1))","v":""},{"$f":"IF($A185=\"N/A\",Ref!$B$36,INDEX(Ranks!$1:$1048576,$A185,W$1))","v":""},{"$f":"IF($A185=\"N/A\",Ref!$B$36,INDEX(Ranks!$1:$1048576,$A185,X$1))","v":""},{"$f":"IF($A185=\"N/A\",Ref!$B$36,INDEX(Ranks!$1:$1048576,$A185,Y$1))","v":""},{"$f":"IF($A185=\"N/A\",Ref!$B$36,INDEX(Ranks!$1:$1048576,$A185,Z$1))","v":""},{"$f":"IF($A185=\"N/A\",Ref!$B$36,INDEX(Ranks!$1:$1048576,$A185,AA$1))","v":""},{"$f":"IF($A185=\"N/A\",Ref!$B$36,INDEX(Ranks!$1:$1048576,$A185,AB$1))","v":""},{"$f":"IF($A185=\"N/A\",Ref!$B$36,INDEX(Ranks!$1:$1048576,$A185,AC$1))","v":""},{"$f":"IF($A185=\"N/A\",Ref!$B$36,INDEX(Ranks!$1:$1048576,$A185,AD$1))","v":""},{"$f":"IF($A185=\"N/A\",Ref!$B$36,INDEX(Ranks!$1:$1048576,$A185,AE$1))","v":""},{"$f":"IF($A185=\"N/A\",Ref!$B$36,INDEX(Ranks!$1:$1048576,$A185,AF$1))","v":""},{"$f":"IF($A185=\"N/A\",Ref!$B$36,INDEX(Ranks!$1:$1048576,$A185,AG$1))","v":""},{"$f":"IF($A185=\"N/A\",Ref!$B$36,INDEX(Ranks!$1:$1048576,$A185,AH$1))","v":""},{"$f":"IF($A185=\"N/A\",Ref!$B$36,INDEX(Ranks!$1:$1048576,$A185,AI$1))","v":""},{"$f":"IF($A185=\"N/A\",Ref!$B$36,INDEX(Ranks!$1:$1048576,$A185,AJ$1))","v":""},{"$f":"IF($A185=\"N/A\",Ref!$B$36,INDEX(Ranks!$1:$1048576,$A185,AK$1))","v":""},{"$f":"IF($A185=\"N/A\",Ref!$B$36,INDEX(Ranks!$1:$1048576,$A185,AL$1))","v":""},{"$f":"IF($A185=\"N/A\",Ref!$B$36,INDEX(Ranks!$1:$1048576,$A185,AM$1))","v":""},{"$f":"IF($A185=\"N/A\",Ref!$B$36,INDEX(Ranks!$1:$1048576,$A185,AN$1))","v":""},{"$f":"IF($A185=\"N/A\",Ref!$B$36,INDEX(Ranks!$1:$1048576,$A185,AO$1))","v":""},{"$f":"IF($A185=\"N/A\",Ref!$B$36,INDEX(Ranks!$1:$1048576,$A185,AP$1))","v":""},{"$f":"IF($A185=\"N/A\",Ref!$B$36,INDEX(Ranks!$1:$1048576,$A185,AQ$1))","v":""},{"$f":"IF($A185=\"N/A\",Ref!$B$36,INDEX(Ranks!$1:$1048576,$A185,AR$1))","v":""},{"$f":"IF($A185=\"N/A\",Ref!$B$36,INDEX(Ranks!$1:$1048576,$A185,AS$1))","v":""},{"$f":"IF($A185=\"N/A\",Ref!$B$36,INDEX(Ranks!$1:$1048576,$A185,AT$1))","v":""},{"$f":"IF($A185=\"N/A\",Ref!$B$36,INDEX(Ranks!$1:$1048576,$A185,AU$1))","v":""},{"$f":"IF($A185=\"N/A\",Ref!$B$36,INDEX(Ranks!$1:$1048576,$A185,AV$1))","v":""},{"$f":"IF($A185=\"N/A\",Ref!$B$36,INDEX(Ranks!$1:$1048576,$A185,AW$1))","v":""},{"$f":"IF($A185=\"N/A\",Ref!$B$36,INDEX(Ranks!$1:$1048576,$A185,AX$1))","v":""},{"$f":"IF($A185=\"N/A\",Ref!$B$36,INDEX(Ranks!$1:$1048576,$A185,AY$1))","v":""},{"$f":"IF($A185=\"N/A\",Ref!$B$36,INDEX(Ranks!$1:$1048576,$A185,AZ$1))","v":""},{"$f":"IF($A185=\"N/A\",Ref!$B$36,INDEX(Ranks!$1:$1048576,$A185,BA$1))","v":""},{"$f":"IF($A185=\"N/A\",Ref!$B$36,INDEX(Ranks!$1:$1048576,$A185,BB$1))","v":""},{"$f":"IF($A185=\"N/A\",Ref!$B$36,INDEX(Ranks!$1:$1048576,$A185,BC$1))","v":""},{"$f":"IF($A185=\"N/A\",Ref!$B$36,INDEX(Ranks!$1:$1048576,$A185,BD$1))","v":""},{"$f":"IF($A185=\"N/A\",Ref!$B$36,INDEX(Ranks!$1:$1048576,$A185,BE$1))","v":""},{"$f":"IF($A185=\"N/A\",Ref!$B$36,INDEX(Ranks!$1:$1048576,$A185,BF$1))","v":""},{"$f":"IF($A185=\"N/A\",Ref!$B$36,INDEX(Ranks!$1:$1048576,$A185,BG$1))","v":""},{"$f":"IF($A185=\"N/A\",Ref!$B$36,INDEX(Ranks!$1:$1048576,$A185,BH$1))","v":""},{"$f":"IF($A185=\"N/A\",Ref!$B$36,INDEX(Ranks!$1:$1048576,$A185,BI$1))","v":""},{"$f":"IF($A185=\"N/A\",Ref!$B$36,INDEX(Ranks!$1:$1048576,$A185,BJ$1))","v":""},{"$f":"IF($A185=\"N/A\",Ref!$B$36,INDEX(Ranks!$1:$1048576,$A185,BK$1))","v":""},{"$f":"IF($A185=\"N/A\",Ref!$B$36,INDEX(Ranks!$1:$1048576,$A185,BL$1))","v":""},{"$f":"IF($A185=\"N/A\",Ref!$B$36,INDEX(Ranks!$1:$1048576,$A185,BM$1))","v":""},{"$f":"IF($A185=\"N/A\",Ref!$B$36,INDEX(Ranks!$1:$1048576,$A185,BN$1))","v":""},{"$f":"IF($A185=\"N/A\",Ref!$B$36,INDEX(Ranks!$1:$1048576,$A185,BO$1))","v":""},{"$f":"IF($A185=\"N/A\",Ref!$B$36,INDEX(Ranks!$1:$1048576,$A185,BP$1))","v":""},{"$f":"IF($A185=\"N/A\",Ref!$B$36,INDEX(Ranks!$1:$1048576,$A185,BQ$1))","v":""},{"$f":"IF($A185=\"N/A\",Ref!$B$36,INDEX(Ranks!$1:$1048576,$A185,BR$1))","v":""},{"$f":"IF($A185=\"N/A\",Ref!$B$36,INDEX(Ranks!$1:$1048576,$A185,BS$1))","v":""},{"$f":"IF($A185=\"N/A\",Ref!$B$36,INDEX(Ranks!$1:$1048576,$A185,BT$1))","v":""},{"$f":"IF($A185=\"N/A\",Ref!$B$36,INDEX(Ranks!$1:$1048576,$A185,BU$1))","v":""},{"$f":"IF($A185=\"N/A\",Ref!$B$36,INDEX(Ranks!$1:$1048576,$A185,BV$1))","v":""},{"$f":"IF($A185=\"N/A\",Ref!$B$36,INDEX(Ranks!$1:$1048576,$A185,BW$1))","v":""},{"$f":"IF($A185=\"N/A\",Ref!$B$36,INDEX(Ranks!$1:$1048576,$A185,BX$1))","v":""},{"$f":"IF($A185=\"N/A\",Ref!$B$36,INDEX(Ranks!$1:$1048576,$A185,BY$1))","v":""},{"$f":"IF($A185=\"N/A\",Ref!$B$36,INDEX(Ranks!$1:$1048576,$A185,BZ$1))","v":""},{"$f":"IF($A185=\"N/A\",Ref!$B$36,INDEX(Ranks!$1:$1048576,$A185,CA$1))","v":""},{"$f":"IF($A185=\"N/A\",Ref!$B$36,INDEX(Ranks!$1:$1048576,$A185,CB$1))","v":""},{"$f":"IF($A185=\"N/A\",Ref!$B$36,INDEX(Ranks!$1:$1048576,$A185,CC$1))","v":""},{"$f":"IF($A185=\"N/A\",Ref!$B$36,INDEX(Ranks!$1:$1048576,$A185,CD$1))","v":""},{"$f":"IF($A185=\"N/A\",Ref!$B$36,INDEX(Ranks!$1:$1048576,$A185,CE$1))","v":""},{"$f":"IF($A185=\"N/A\",Ref!$B$36,INDEX(Ranks!$1:$1048576,$A185,CF$1))","v":""},{"$f":"IF($A185=\"N/A\",Ref!$B$36,INDEX(Ranks!$1:$1048576,$A185,CG$1))","v":""},{"$f":"IF($A185=\"N/A\",Ref!$B$36,INDEX(Ranks!$1:$1048576,$A185,CH$1))","v":""},{"$f":"IF($A185=\"N/A\",Ref!$B$36,INDEX(Ranks!$1:$1048576,$A185,CI$1))","v":""},{"$f":"IF($A185=\"N/A\",Ref!$B$36,INDEX(Ranks!$1:$1048576,$A185,CJ$1))","v":""},{"$f":"IF($A185=\"N/A\",Ref!$B$36,INDEX(Ranks!$1:$1048576,$A185,CK$1))","v":""},{"$f":"IF($A185=\"N/A\",Ref!$B$36,INDEX(Ranks!$1:$1048576,$A185,CL$1))","v":""},{"$f":"IF($A185=\"N/A\",Ref!$B$36,INDEX(Ranks!$1:$1048576,$A185,CM$1))","v":""},{"$f":"IF($A185=\"N/A\",Ref!$B$36,INDEX(Ranks!$1:$1048576,$A185,CN$1))","v":""},{"$f":"IF($A185=\"N/A\",Ref!$B$36,INDEX(Ranks!$1:$1048576,$A185,CO$1))","v":""},{"$f":"IF($A185=\"N/A\",Ref!$B$36,INDEX(Ranks!$1:$1048576,$A185,CP$1))","v":""},{"$f":"IF($A185=\"N/A\",Ref!$B$36,INDEX(Ranks!$1:$1048576,$A185,CQ$1))","v":""},{"$f":"IF($A185=\"N/A\",Ref!$B$36,INDEX(Ranks!$1:$1048576,$A185,CR$1))","v":""},{"$f":"IF($A185=\"N/A\",Ref!$B$36,INDEX(Ranks!$1:$1048576,$A185,CS$1))","v":""},{"$f":"IF($A185=\"N/A\",Ref!$B$36,INDEX(Ranks!$1:$1048576,$A185,CT$1))","v":""},{"$f":"IF($A185=\"N/A\",Ref!$B$36,INDEX(Ranks!$1:$1048576,$A185,CU$1))","v":""},{"$f":"IF($A185=\"N/A\",Ref!$B$36,INDEX(Ranks!$1:$1048576,$A185,CV$1))","v":""},{"$f":"IF($A185=\"N/A\",Ref!$B$36,INDEX(Ranks!$1:$1048576,$A185,CW$1))","v":""},{"$f":"IF($A185=\"N/A\",Ref!$B$36,INDEX(Ranks!$1:$1048576,$A185,CX$1))","v":""},{"$f":"IF($A185=\"N/A\",Ref!$B$36,INDEX(Ranks!$1:$1048576,$A185,CY$1))","v":""},{"$f":"IF($A185=\"N/A\",Ref!$B$36,INDEX(Ranks!$1:$1048576,$A185,CZ$1))","v":""},{"$f":"IF($A185=\"N/A\",Ref!$B$36,INDEX(Ranks!$1:$1048576,$A185,DA$1))","v":""},{"$f":"IF($A185=\"N/A\",Ref!$B$36,INDEX(Ranks!$1:$1048576,$A185,DB$1))","v":""},{"$f":"IF($A185=\"N/A\",Ref!$B$36,INDEX(Ranks!$1:$1048576,$A185,DC$1))","v":""},{"$f":"IF($A185=\"N/A\",Ref!$B$36,INDEX(Ranks!$1:$1048576,$A185,DD$1))","v":""},{"$f":"IF($A185=\"N/A\",Ref!$B$36,INDEX(Ranks!$1:$1048576,$A185,DE$1))","v":""},{"$f":"IF($A185=\"N/A\",Ref!$B$36,INDEX(Ranks!$1:$1048576,$A185,DF$1))","v":""},{"$f":"IF($A185=\"N/A\",Ref!$B$36,INDEX(Ranks!$1:$1048576,$A185,DG$1))","v":""},{"$f":"IF($A185=\"N/A\",Ref!$B$36,INDEX(Ranks!$1:$1048576,$A185,DH$1))","v":""},{"$f":"IF($A185=\"N/A\",Ref!$B$36,INDEX(Ranks!$1:$1048576,$A185,DI$1))","v":""},{"$f":"IF($A185=\"N/A\",Ref!$B$36,INDEX(Ranks!$1:$1048576,$A185,DJ$1))","v":""},{"$f":"IF($A185=\"N/A\",Ref!$B$36,INDEX(Ranks!$1:$1048576,$A185,DK$1))","v":""},{"$f":"IF($A185=\"N/A\",Ref!$B$36,INDEX(Ranks!$1:$1048576,$A185,DL$1))","v":""},{"$f":"IF($A185=\"N/A\",Ref!$B$36,INDEX(Ranks!$1:$1048576,$A185,DM$1))","v":""},{"$f":"IF($A185=\"N/A\",Ref!$B$36,INDEX(Ranks!$1:$1048576,$A185,DN$1))","v":""},{"$f":"IF($A185=\"N/A\",Ref!$B$36,INDEX(Ranks!$1:$1048576,$A185,DO$1))","v":""},{"$f":"IF($A185=\"N/A\",Ref!$B$36,INDEX(Ranks!$1:$1048576,$A185,DP$1))","v":""},{"$f":"IF($A185=\"N/A\",Ref!$B$36,INDEX(Ranks!$1:$1048576,$A185,DQ$1))","v":""},{"$f":"IF($A185=\"N/A\",Ref!$B$36,INDEX(Ranks!$1:$1048576,$A185,DR$1))","v":""},{"$f":"IF($A185=\"N/A\",Ref!$B$36,INDEX(Ranks!$1:$1048576,$A185,DS$1))","v":""},{"$f":"IF($A185=\"N/A\",Ref!$B$36,INDEX(Ranks!$1:$1048576,$A185,DT$1))","v":""},{"$f":"IF($A185=\"N/A\",Ref!$B$36,INDEX(Ranks!$1:$1048576,$A185,DU$1))","v":""},{"$f":"IF($A185=\"N/A\",Ref!$B$36,INDEX(Ranks!$1:$1048576,$A185,DV$1))","v":""},{"$f":"IF($A185=\"N/A\",Ref!$B$36,INDEX(Ranks!$1:$1048576,$A185,DW$1))","v":""},{"$f":"IF($A185=\"N/A\",Ref!$B$36,INDEX(Ranks!$1:$1048576,$A185,DX$1))","v":""},{"$f":"IF($A185=\"N/A\",Ref!$B$36,INDEX(Ranks!$1:$1048576,$A185,DY$1))","v":""},{"$f":"IF($A185=\"N/A\",Ref!$B$36,INDEX(Ranks!$1:$1048576,$A185,DZ$1))","v":""},{"$f":"IF($A185=\"N/A\",Ref!$B$36,INDEX(Ranks!$1:$1048576,$A185,EA$1))","v":""},{"$f":"IF($A185=\"N/A\",Ref!$B$36,INDEX(Ranks!$1:$1048576,$A185,EB$1))","v":""}]
[{"$f":"IFERROR(MATCH('Portfolio Page'!L186,Ranks!L:L,0),\"N/A\")","v":"N/A"},null,{"$f":"IF($A186=\"N/A\",\"\",INDEX(Ranks!$1:$1048576,$A186,C$1))","v":""},{"$f":"IF($A186=\"N/A\",Ref!$B$36,INDEX(Ranks!$1:$1048576,$A186,D$1))","v":""},{"$f":"IF($A186=\"N/A\",Ref!$B$36,INDEX(Ranks!$1:$1048576,$A186,E$1))","v":""},{"$f":"IF($A186=\"N/A\",\"\",INDEX(Ranks!$1:$1048576,$A186,F$1))","v":""},{"$f":"IF($A186=\"N/A\",\"\",INDEX(Ranks!$1:$1048576,$A186,G$1))","v":""},{"$f":"IF($A186=\"N/A\",\"\",INDEX(Ranks!$1:$1048576,$A186,H$1))","v":""},{"$f":"IF($A186=\"N/A\",\"\",INDEX(Ranks!$1:$1048576,$A186,I$1))","v":""},{"$f":"IF($A186=\"N/A\",\"\",INDEX(Ranks!$1:$1048576,$A186,J$1))","v":""},{"$f":"IF($A186=\"N/A\",\"\",INDEX(Ranks!$1:$1048576,$A186,K$1))","v":""},null,{"$f":"IF($A186=\"N/A\",Ref!$B$36,INDEX(Ranks!$1:$1048576,$A186,M$1))","v":""},{"$f":"IF($A186=\"N/A\",Ref!$B$36,INDEX(Ranks!$1:$1048576,$A186,N$1))","v":""},{"$f":"IF($A186=\"N/A\",Ref!$B$36,INDEX(Ranks!$1:$1048576,$A186,O$1))","v":""},{"$f":"IF($A186=\"N/A\",Ref!$B$36,INDEX(Ranks!$1:$1048576,$A186,P$1))","v":""},{"$f":"IF($A186=\"N/A\",Ref!$B$36,INDEX(Ranks!$1:$1048576,$A186,Q$1))","v":""},{"$f":"IF($A186=\"N/A\",Ref!$B$36,INDEX(Ranks!$1:$1048576,$A186,R$1))","v":""},{"$f":"IF($A186=\"N/A\",Ref!$B$36,INDEX(Ranks!$1:$1048576,$A186,S$1))","v":""},{"$f":"IF($A186=\"N/A\",Ref!$B$36,INDEX(Ranks!$1:$1048576,$A186,T$1))","v":""},{"$f":"IF($A186=\"N/A\",Ref!$B$36,INDEX(Ranks!$1:$1048576,$A186,U$1))","v":""},{"$f":"IF($A186=\"N/A\",Ref!$B$36,INDEX(Ranks!$1:$1048576,$A186,V$1))","v":""},{"$f":"IF($A186=\"N/A\",Ref!$B$36,INDEX(Ranks!$1:$1048576,$A186,W$1))","v":""},{"$f":"IF($A186=\"N/A\",Ref!$B$36,INDEX(Ranks!$1:$1048576,$A186,X$1))","v":""},{"$f":"IF($A186=\"N/A\",Ref!$B$36,INDEX(Ranks!$1:$1048576,$A186,Y$1))","v":""},{"$f":"IF($A186=\"N/A\",Ref!$B$36,INDEX(Ranks!$1:$1048576,$A186,Z$1))","v":""},{"$f":"IF($A186=\"N/A\",Ref!$B$36,INDEX(Ranks!$1:$1048576,$A186,AA$1))","v":""},{"$f":"IF($A186=\"N/A\",Ref!$B$36,INDEX(Ranks!$1:$1048576,$A186,AB$1))","v":""},{"$f":"IF($A186=\"N/A\",Ref!$B$36,INDEX(Ranks!$1:$1048576,$A186,AC$1))","v":""},{"$f":"IF($A186=\"N/A\",Ref!$B$36,INDEX(Ranks!$1:$1048576,$A186,AD$1))","v":""},{"$f":"IF($A186=\"N/A\",Ref!$B$36,INDEX(Ranks!$1:$1048576,$A186,AE$1))","v":""},{"$f":"IF($A186=\"N/A\",Ref!$B$36,INDEX(Ranks!$1:$1048576,$A186,AF$1))","v":""},{"$f":"IF($A186=\"N/A\",Ref!$B$36,INDEX(Ranks!$1:$1048576,$A186,AG$1))","v":""},{"$f":"IF($A186=\"N/A\",Ref!$B$36,INDEX(Ranks!$1:$1048576,$A186,AH$1))","v":""},{"$f":"IF($A186=\"N/A\",Ref!$B$36,INDEX(Ranks!$1:$1048576,$A186,AI$1))","v":""},{"$f":"IF($A186=\"N/A\",Ref!$B$36,INDEX(Ranks!$1:$1048576,$A186,AJ$1))","v":""},{"$f":"IF($A186=\"N/A\",Ref!$B$36,INDEX(Ranks!$1:$1048576,$A186,AK$1))","v":""},{"$f":"IF($A186=\"N/A\",Ref!$B$36,INDEX(Ranks!$1:$1048576,$A186,AL$1))","v":""},{"$f":"IF($A186=\"N/A\",Ref!$B$36,INDEX(Ranks!$1:$1048576,$A186,AM$1))","v":""},{"$f":"IF($A186=\"N/A\",Ref!$B$36,INDEX(Ranks!$1:$1048576,$A186,AN$1))","v":""},{"$f":"IF($A186=\"N/A\",Ref!$B$36,INDEX(Ranks!$1:$1048576,$A186,AO$1))","v":""},{"$f":"IF($A186=\"N/A\",Ref!$B$36,INDEX(Ranks!$1:$1048576,$A186,AP$1))","v":""},{"$f":"IF($A186=\"N/A\",Ref!$B$36,INDEX(Ranks!$1:$1048576,$A186,AQ$1))","v":""},{"$f":"IF($A186=\"N/A\",Ref!$B$36,INDEX(Ranks!$1:$1048576,$A186,AR$1))","v":""},{"$f":"IF($A186=\"N/A\",Ref!$B$36,INDEX(Ranks!$1:$1048576,$A186,AS$1))","v":""},{"$f":"IF($A186=\"N/A\",Ref!$B$36,INDEX(Ranks!$1:$1048576,$A186,AT$1))","v":""},{"$f":"IF($A186=\"N/A\",Ref!$B$36,INDEX(Ranks!$1:$1048576,$A186,AU$1))","v":""},{"$f":"IF($A186=\"N/A\",Ref!$B$36,INDEX(Ranks!$1:$1048576,$A186,AV$1))","v":""},{"$f":"IF($A186=\"N/A\",Ref!$B$36,INDEX(Ranks!$1:$1048576,$A186,AW$1))","v":""},{"$f":"IF($A186=\"N/A\",Ref!$B$36,INDEX(Ranks!$1:$1048576,$A186,AX$1))","v":""},{"$f":"IF($A186=\"N/A\",Ref!$B$36,INDEX(Ranks!$1:$1048576,$A186,AY$1))","v":""},{"$f":"IF($A186=\"N/A\",Ref!$B$36,INDEX(Ranks!$1:$1048576,$A186,AZ$1))","v":""},{"$f":"IF($A186=\"N/A\",Ref!$B$36,INDEX(Ranks!$1:$1048576,$A186,BA$1))","v":""},{"$f":"IF($A186=\"N/A\",Ref!$B$36,INDEX(Ranks!$1:$1048576,$A186,BB$1))","v":""},{"$f":"IF($A186=\"N/A\",Ref!$B$36,INDEX(Ranks!$1:$1048576,$A186,BC$1))","v":""},{"$f":"IF($A186=\"N/A\",Ref!$B$36,INDEX(Ranks!$1:$1048576,$A186,BD$1))","v":""},{"$f":"IF($A186=\"N/A\",Ref!$B$36,INDEX(Ranks!$1:$1048576,$A186,BE$1))","v":""},{"$f":"IF($A186=\"N/A\",Ref!$B$36,INDEX(Ranks!$1:$1048576,$A186,BF$1))","v":""},{"$f":"IF($A186=\"N/A\",Ref!$B$36,INDEX(Ranks!$1:$1048576,$A186,BG$1))","v":""},{"$f":"IF($A186=\"N/A\",Ref!$B$36,INDEX(Ranks!$1:$1048576,$A186,BH$1))","v":""},{"$f":"IF($A186=\"N/A\",Ref!$B$36,INDEX(Ranks!$1:$1048576,$A186,BI$1))","v":""},{"$f":"IF($A186=\"N/A\",Ref!$B$36,INDEX(Ranks!$1:$1048576,$A186,BJ$1))","v":""},{"$f":"IF($A186=\"N/A\",Ref!$B$36,INDEX(Ranks!$1:$1048576,$A186,BK$1))","v":""},{"$f":"IF($A186=\"N/A\",Ref!$B$36,INDEX(Ranks!$1:$1048576,$A186,BL$1))","v":""},{"$f":"IF($A186=\"N/A\",Ref!$B$36,INDEX(Ranks!$1:$1048576,$A186,BM$1))","v":""},{"$f":"IF($A186=\"N/A\",Ref!$B$36,INDEX(Ranks!$1:$1048576,$A186,BN$1))","v":""},{"$f":"IF($A186=\"N/A\",Ref!$B$36,INDEX(Ranks!$1:$1048576,$A186,BO$1))","v":""},{"$f":"IF($A186=\"N/A\",Ref!$B$36,INDEX(Ranks!$1:$1048576,$A186,BP$1))","v":""},{"$f":"IF($A186=\"N/A\",Ref!$B$36,INDEX(Ranks!$1:$1048576,$A186,BQ$1))","v":""},{"$f":"IF($A186=\"N/A\",Ref!$B$36,INDEX(Ranks!$1:$1048576,$A186,BR$1))","v":""},{"$f":"IF($A186=\"N/A\",Ref!$B$36,INDEX(Ranks!$1:$1048576,$A186,BS$1))","v":""},{"$f":"IF($A186=\"N/A\",Ref!$B$36,INDEX(Ranks!$1:$1048576,$A186,BT$1))","v":""},{"$f":"IF($A186=\"N/A\",Ref!$B$36,INDEX(Ranks!$1:$1048576,$A186,BU$1))","v":""},{"$f":"IF($A186=\"N/A\",Ref!$B$36,INDEX(Ranks!$1:$1048576,$A186,BV$1))","v":""},{"$f":"IF($A186=\"N/A\",Ref!$B$36,INDEX(Ranks!$1:$1048576,$A186,BW$1))","v":""},{"$f":"IF($A186=\"N/A\",Ref!$B$36,INDEX(Ranks!$1:$1048576,$A186,BX$1))","v":""},{"$f":"IF($A186=\"N/A\",Ref!$B$36,INDEX(Ranks!$1:$1048576,$A186,BY$1))","v":""},{"$f":"IF($A186=\"N/A\",Ref!$B$36,INDEX(Ranks!$1:$1048576,$A186,BZ$1))","v":""},{"$f":"IF($A186=\"N/A\",Ref!$B$36,INDEX(Ranks!$1:$1048576,$A186,CA$1))","v":""},{"$f":"IF($A186=\"N/A\",Ref!$B$36,INDEX(Ranks!$1:$1048576,$A186,CB$1))","v":""},{"$f":"IF($A186=\"N/A\",Ref!$B$36,INDEX(Ranks!$1:$1048576,$A186,CC$1))","v":""},{"$f":"IF($A186=\"N/A\",Ref!$B$36,INDEX(Ranks!$1:$1048576,$A186,CD$1))","v":""},{"$f":"IF($A186=\"N/A\",Ref!$B$36,INDEX(Ranks!$1:$1048576,$A186,CE$1))","v":""},{"$f":"IF($A186=\"N/A\",Ref!$B$36,INDEX(Ranks!$1:$1048576,$A186,CF$1))","v":""},{"$f":"IF($A186=\"N/A\",Ref!$B$36,INDEX(Ranks!$1:$1048576,$A186,CG$1))","v":""},{"$f":"IF($A186=\"N/A\",Ref!$B$36,INDEX(Ranks!$1:$1048576,$A186,CH$1))","v":""},{"$f":"IF($A186=\"N/A\",Ref!$B$36,INDEX(Ranks!$1:$1048576,$A186,CI$1))","v":""},{"$f":"IF($A186=\"N/A\",Ref!$B$36,INDEX(Ranks!$1:$1048576,$A186,CJ$1))","v":""},{"$f":"IF($A186=\"N/A\",Ref!$B$36,INDEX(Ranks!$1:$1048576,$A186,CK$1))","v":""},{"$f":"IF($A186=\"N/A\",Ref!$B$36,INDEX(Ranks!$1:$1048576,$A186,CL$1))","v":""},{"$f":"IF($A186=\"N/A\",Ref!$B$36,INDEX(Ranks!$1:$1048576,$A186,CM$1))","v":""},{"$f":"IF($A186=\"N/A\",Ref!$B$36,INDEX(Ranks!$1:$1048576,$A186,CN$1))","v":""},{"$f":"IF($A186=\"N/A\",Ref!$B$36,INDEX(Ranks!$1:$1048576,$A186,CO$1))","v":""},{"$f":"IF($A186=\"N/A\",Ref!$B$36,INDEX(Ranks!$1:$1048576,$A186,CP$1))","v":""},{"$f":"IF($A186=\"N/A\",Ref!$B$36,INDEX(Ranks!$1:$1048576,$A186,CQ$1))","v":""},{"$f":"IF($A186=\"N/A\",Ref!$B$36,INDEX(Ranks!$1:$1048576,$A186,CR$1))","v":""},{"$f":"IF($A186=\"N/A\",Ref!$B$36,INDEX(Ranks!$1:$1048576,$A186,CS$1))","v":""},{"$f":"IF($A186=\"N/A\",Ref!$B$36,INDEX(Ranks!$1:$1048576,$A186,CT$1))","v":""},{"$f":"IF($A186=\"N/A\",Ref!$B$36,INDEX(Ranks!$1:$1048576,$A186,CU$1))","v":""},{"$f":"IF($A186=\"N/A\",Ref!$B$36,INDEX(Ranks!$1:$1048576,$A186,CV$1))","v":""},{"$f":"IF($A186=\"N/A\",Ref!$B$36,INDEX(Ranks!$1:$1048576,$A186,CW$1))","v":""},{"$f":"IF($A186=\"N/A\",Ref!$B$36,INDEX(Ranks!$1:$1048576,$A186,CX$1))","v":""},{"$f":"IF($A186=\"N/A\",Ref!$B$36,INDEX(Ranks!$1:$1048576,$A186,CY$1))","v":""},{"$f":"IF($A186=\"N/A\",Ref!$B$36,INDEX(Ranks!$1:$1048576,$A186,CZ$1))","v":""},{"$f":"IF($A186=\"N/A\",Ref!$B$36,INDEX(Ranks!$1:$1048576,$A186,DA$1))","v":""},{"$f":"IF($A186=\"N/A\",Ref!$B$36,INDEX(Ranks!$1:$1048576,$A186,DB$1))","v":""},{"$f":"IF($A186=\"N/A\",Ref!$B$36,INDEX(Ranks!$1:$1048576,$A186,DC$1))","v":""},{"$f":"IF($A186=\"N/A\",Ref!$B$36,INDEX(Ranks!$1:$1048576,$A186,DD$1))","v":""},{"$f":"IF($A186=\"N/A\",Ref!$B$36,INDEX(Ranks!$1:$1048576,$A186,DE$1))","v":""},{"$f":"IF($A186=\"N/A\",Ref!$B$36,INDEX(Ranks!$1:$1048576,$A186,DF$1))","v":""},{"$f":"IF($A186=\"N/A\",Ref!$B$36,INDEX(Ranks!$1:$1048576,$A186,DG$1))","v":""},{"$f":"IF($A186=\"N/A\",Ref!$B$36,INDEX(Ranks!$1:$1048576,$A186,DH$1))","v":""},{"$f":"IF($A186=\"N/A\",Ref!$B$36,INDEX(Ranks!$1:$1048576,$A186,DI$1))","v":""},{"$f":"IF($A186=\"N/A\",Ref!$B$36,INDEX(Ranks!$1:$1048576,$A186,DJ$1))","v":""},{"$f":"IF($A186=\"N/A\",Ref!$B$36,INDEX(Ranks!$1:$1048576,$A186,DK$1))","v":""},{"$f":"IF($A186=\"N/A\",Ref!$B$36,INDEX(Ranks!$1:$1048576,$A186,DL$1))","v":""},{"$f":"IF($A186=\"N/A\",Ref!$B$36,INDEX(Ranks!$1:$1048576,$A186,DM$1))","v":""},{"$f":"IF($A186=\"N/A\",Ref!$B$36,INDEX(Ranks!$1:$1048576,$A186,DN$1))","v":""},{"$f":"IF($A186=\"N/A\",Ref!$B$36,INDEX(Ranks!$1:$1048576,$A186,DO$1))","v":""},{"$f":"IF($A186=\"N/A\",Ref!$B$36,INDEX(Ranks!$1:$1048576,$A186,DP$1))","v":""},{"$f":"IF($A186=\"N/A\",Ref!$B$36,INDEX(Ranks!$1:$1048576,$A186,DQ$1))","v":""},{"$f":"IF($A186=\"N/A\",Ref!$B$36,INDEX(Ranks!$1:$1048576,$A186,DR$1))","v":""},{"$f":"IF($A186=\"N/A\",Ref!$B$36,INDEX(Ranks!$1:$1048576,$A186,DS$1))","v":""},{"$f":"IF($A186=\"N/A\",Ref!$B$36,INDEX(Ranks!$1:$1048576,$A186,DT$1))","v":""},{"$f":"IF($A186=\"N/A\",Ref!$B$36,INDEX(Ranks!$1:$1048576,$A186,DU$1))","v":""},{"$f":"IF($A186=\"N/A\",Ref!$B$36,INDEX(Ranks!$1:$1048576,$A186,DV$1))","v":""},{"$f":"IF($A186=\"N/A\",Ref!$B$36,INDEX(Ranks!$1:$1048576,$A186,DW$1))","v":""},{"$f":"IF($A186=\"N/A\",Ref!$B$36,INDEX(Ranks!$1:$1048576,$A186,DX$1))","v":""},{"$f":"IF($A186=\"N/A\",Ref!$B$36,INDEX(Ranks!$1:$1048576,$A186,DY$1))","v":""},{"$f":"IF($A186=\"N/A\",Ref!$B$36,INDEX(Ranks!$1:$1048576,$A186,DZ$1))","v":""},{"$f":"IF($A186=\"N/A\",Ref!$B$36,INDEX(Ranks!$1:$1048576,$A186,EA$1))","v":""},{"$f":"IF($A186=\"N/A\",Ref!$B$36,INDEX(Ranks!$1:$1048576,$A186,EB$1))","v":""}]
[{"$f":"IFERROR(MATCH('Portfolio Page'!L187,Ranks!L:L,0),\"N/A\")","v":"N/A"},null,{"$f":"IF($A187=\"N/A\",\"\",INDEX(Ranks!$1:$1048576,$A187,C$1))","v":""},{"$f":"IF($A187=\"N/A\",Ref!$B$36,INDEX(Ranks!$1:$1048576,$A187,D$1))","v":""},{"$f":"IF($A187=\"N/A\",Ref!$B$36,INDEX(Ranks!$1:$1048576,$A187,E$1))","v":""},{"$f":"IF($A187=\"N/A\",\"\",INDEX(Ranks!$1:$1048576,$A187,F$1))","v":""},{"$f":"IF($A187=\"N/A\",\"\",INDEX(Ranks!$1:$1048576,$A187,G$1))","v":""},{"$f":"IF($A187=\"N/A\",\"\",INDEX(Ranks!$1:$1048576,$A187,H$1))","v":""},{"$f":"IF($A187=\"N/A\",\"\",INDEX(Ranks!$1:$1048576,$A187,I$1))","v":""},{"$f":"IF($A187=\"N/A\",\"\",INDEX(Ranks!$1:$1048576,$A187,J$1))","v":""},{"$f":"IF($A187=\"N/A\",\"\",INDEX(Ranks!$1:$1048576,$A187,K$1))","v":""},null,{"$f":"IF($A187=\"N/A\",Ref!$B$36,INDEX(Ranks!$1:$1048576,$A187,M$1))","v":""},{"$f":"IF($A187=\"N/A\",Ref!$B$36,INDEX(Ranks!$1:$1048576,$A187,N$1))","v":""},{"$f":"IF($A187=\"N/A\",Ref!$B$36,INDEX(Ranks!$1:$1048576,$A187,O$1))","v":""},{"$f":"IF($A187=\"N/A\",Ref!$B$36,INDEX(Ranks!$1:$1048576,$A187,P$1))","v":""},{"$f":"IF($A187=\"N/A\",Ref!$B$36,INDEX(Ranks!$1:$1048576,$A187,Q$1))","v":""},{"$f":"IF($A187=\"N/A\",Ref!$B$36,INDEX(Ranks!$1:$1048576,$A187,R$1))","v":""},{"$f":"IF($A187=\"N/A\",Ref!$B$36,INDEX(Ranks!$1:$1048576,$A187,S$1))","v":""},{"$f":"IF($A187=\"N/A\",Ref!$B$36,INDEX(Ranks!$1:$1048576,$A187,T$1))","v":""},{"$f":"IF($A187=\"N/A\",Ref!$B$36,INDEX(Ranks!$1:$1048576,$A187,U$1))","v":""},{"$f":"IF($A187=\"N/A\",Ref!$B$36,INDEX(Ranks!$1:$1048576,$A187,V$1))","v":""},{"$f":"IF($A187=\"N/A\",Ref!$B$36,INDEX(Ranks!$1:$1048576,$A187,W$1))","v":""},{"$f":"IF($A187=\"N/A\",Ref!$B$36,INDEX(Ranks!$1:$1048576,$A187,X$1))","v":""},{"$f":"IF($A187=\"N/A\",Ref!$B$36,INDEX(Ranks!$1:$1048576,$A187,Y$1))","v":""},{"$f":"IF($A187=\"N/A\",Ref!$B$36,INDEX(Ranks!$1:$1048576,$A187,Z$1))","v":""},{"$f":"IF($A187=\"N/A\",Ref!$B$36,INDEX(Ranks!$1:$1048576,$A187,AA$1))","v":""},{"$f":"IF($A187=\"N/A\",Ref!$B$36,INDEX(Ranks!$1:$1048576,$A187,AB$1))","v":""},{"$f":"IF($A187=\"N/A\",Ref!$B$36,INDEX(Ranks!$1:$1048576,$A187,AC$1))","v":""},{"$f":"IF($A187=\"N/A\",Ref!$B$36,INDEX(Ranks!$1:$1048576,$A187,AD$1))","v":""},{"$f":"IF($A187=\"N/A\",Ref!$B$36,INDEX(Ranks!$1:$1048576,$A187,AE$1))","v":""},{"$f":"IF($A187=\"N/A\",Ref!$B$36,INDEX(Ranks!$1:$1048576,$A187,AF$1))","v":""},{"$f":"IF($A187=\"N/A\",Ref!$B$36,INDEX(Ranks!$1:$1048576,$A187,AG$1))","v":""},{"$f":"IF($A187=\"N/A\",Ref!$B$36,INDEX(Ranks!$1:$1048576,$A187,AH$1))","v":""},{"$f":"IF($A187=\"N/A\",Ref!$B$36,INDEX(Ranks!$1:$1048576,$A187,AI$1))","v":""},{"$f":"IF($A187=\"N/A\",Ref!$B$36,INDEX(Ranks!$1:$1048576,$A187,AJ$1))","v":""},{"$f":"IF($A187=\"N/A\",Ref!$B$36,INDEX(Ranks!$1:$1048576,$A187,AK$1))","v":""},{"$f":"IF($A187=\"N/A\",Ref!$B$36,INDEX(Ranks!$1:$1048576,$A187,AL$1))","v":""},{"$f":"IF($A187=\"N/A\",Ref!$B$36,INDEX(Ranks!$1:$1048576,$A187,AM$1))","v":""},{"$f":"IF($A187=\"N/A\",Ref!$B$36,INDEX(Ranks!$1:$1048576,$A187,AN$1))","v":""},{"$f":"IF($A187=\"N/A\",Ref!$B$36,INDEX(Ranks!$1:$1048576,$A187,AO$1))","v":""},{"$f":"IF($A187=\"N/A\",Ref!$B$36,INDEX(Ranks!$1:$1048576,$A187,AP$1))","v":""},{"$f":"IF($A187=\"N/A\",Ref!$B$36,INDEX(Ranks!$1:$1048576,$A187,AQ$1))","v":""},{"$f":"IF($A187=\"N/A\",Ref!$B$36,INDEX(Ranks!$1:$1048576,$A187,AR$1))","v":""},{"$f":"IF($A187=\"N/A\",Ref!$B$36,INDEX(Ranks!$1:$1048576,$A187,AS$1))","v":""},{"$f":"IF($A187=\"N/A\",Ref!$B$36,INDEX(Ranks!$1:$1048576,$A187,AT$1))","v":""},{"$f":"IF($A187=\"N/A\",Ref!$B$36,INDEX(Ranks!$1:$1048576,$A187,AU$1))","v":""},{"$f":"IF($A187=\"N/A\",Ref!$B$36,INDEX(Ranks!$1:$1048576,$A187,AV$1))","v":""},{"$f":"IF($A187=\"N/A\",Ref!$B$36,INDEX(Ranks!$1:$1048576,$A187,AW$1))","v":""},{"$f":"IF($A187=\"N/A\",Ref!$B$36,INDEX(Ranks!$1:$1048576,$A187,AX$1))","v":""},{"$f":"IF($A187=\"N/A\",Ref!$B$36,INDEX(Ranks!$1:$1048576,$A187,AY$1))","v":""},{"$f":"IF($A187=\"N/A\",Ref!$B$36,INDEX(Ranks!$1:$1048576,$A187,AZ$1))","v":""},{"$f":"IF($A187=\"N/A\",Ref!$B$36,INDEX(Ranks!$1:$1048576,$A187,BA$1))","v":""},{"$f":"IF($A187=\"N/A\",Ref!$B$36,INDEX(Ranks!$1:$1048576,$A187,BB$1))","v":""},{"$f":"IF($A187=\"N/A\",Ref!$B$36,INDEX(Ranks!$1:$1048576,$A187,BC$1))","v":""},{"$f":"IF($A187=\"N/A\",Ref!$B$36,INDEX(Ranks!$1:$1048576,$A187,BD$1))","v":""},{"$f":"IF($A187=\"N/A\",Ref!$B$36,INDEX(Ranks!$1:$1048576,$A187,BE$1))","v":""},{"$f":"IF($A187=\"N/A\",Ref!$B$36,INDEX(Ranks!$1:$1048576,$A187,BF$1))","v":""},{"$f":"IF($A187=\"N/A\",Ref!$B$36,INDEX(Ranks!$1:$1048576,$A187,BG$1))","v":""},{"$f":"IF($A187=\"N/A\",Ref!$B$36,INDEX(Ranks!$1:$1048576,$A187,BH$1))","v":""},{"$f":"IF($A187=\"N/A\",Ref!$B$36,INDEX(Ranks!$1:$1048576,$A187,BI$1))","v":""},{"$f":"IF($A187=\"N/A\",Ref!$B$36,INDEX(Ranks!$1:$1048576,$A187,BJ$1))","v":""},{"$f":"IF($A187=\"N/A\",Ref!$B$36,INDEX(Ranks!$1:$1048576,$A187,BK$1))","v":""},{"$f":"IF($A187=\"N/A\",Ref!$B$36,INDEX(Ranks!$1:$1048576,$A187,BL$1))","v":""},{"$f":"IF($A187=\"N/A\",Ref!$B$36,INDEX(Ranks!$1:$1048576,$A187,BM$1))","v":""},{"$f":"IF($A187=\"N/A\",Ref!$B$36,INDEX(Ranks!$1:$1048576,$A187,BN$1))","v":""},{"$f":"IF($A187=\"N/A\",Ref!$B$36,INDEX(Ranks!$1:$1048576,$A187,BO$1))","v":""},{"$f":"IF($A187=\"N/A\",Ref!$B$36,INDEX(Ranks!$1:$1048576,$A187,BP$1))","v":""},{"$f":"IF($A187=\"N/A\",Ref!$B$36,INDEX(Ranks!$1:$1048576,$A187,BQ$1))","v":""},{"$f":"IF($A187=\"N/A\",Ref!$B$36,INDEX(Ranks!$1:$1048576,$A187,BR$1))","v":""},{"$f":"IF($A187=\"N/A\",Ref!$B$36,INDEX(Ranks!$1:$1048576,$A187,BS$1))","v":""},{"$f":"IF($A187=\"N/A\",Ref!$B$36,INDEX(Ranks!$1:$1048576,$A187,BT$1))","v":""},{"$f":"IF($A187=\"N/A\",Ref!$B$36,INDEX(Ranks!$1:$1048576,$A187,BU$1))","v":""},{"$f":"IF($A187=\"N/A\",Ref!$B$36,INDEX(Ranks!$1:$1048576,$A187,BV$1))","v":""},{"$f":"IF($A187=\"N/A\",Ref!$B$36,INDEX(Ranks!$1:$1048576,$A187,BW$1))","v":""},{"$f":"IF($A187=\"N/A\",Ref!$B$36,INDEX(Ranks!$1:$1048576,$A187,BX$1))","v":""},{"$f":"IF($A187=\"N/A\",Ref!$B$36,INDEX(Ranks!$1:$1048576,$A187,BY$1))","v":""},{"$f":"IF($A187=\"N/A\",Ref!$B$36,INDEX(Ranks!$1:$1048576,$A187,BZ$1))","v":""},{"$f":"IF($A187=\"N/A\",Ref!$B$36,INDEX(Ranks!$1:$1048576,$A187,CA$1))","v":""},{"$f":"IF($A187=\"N/A\",Ref!$B$36,INDEX(Ranks!$1:$1048576,$A187,CB$1))","v":""},{"$f":"IF($A187=\"N/A\",Ref!$B$36,INDEX(Ranks!$1:$1048576,$A187,CC$1))","v":""},{"$f":"IF($A187=\"N/A\",Ref!$B$36,INDEX(Ranks!$1:$1048576,$A187,CD$1))","v":""},{"$f":"IF($A187=\"N/A\",Ref!$B$36,INDEX(Ranks!$1:$1048576,$A187,CE$1))","v":""},{"$f":"IF($A187=\"N/A\",Ref!$B$36,INDEX(Ranks!$1:$1048576,$A187,CF$1))","v":""},{"$f":"IF($A187=\"N/A\",Ref!$B$36,INDEX(Ranks!$1:$1048576,$A187,CG$1))","v":""},{"$f":"IF($A187=\"N/A\",Ref!$B$36,INDEX(Ranks!$1:$1048576,$A187,CH$1))","v":""},{"$f":"IF($A187=\"N/A\",Ref!$B$36,INDEX(Ranks!$1:$1048576,$A187,CI$1))","v":""},{"$f":"IF($A187=\"N/A\",Ref!$B$36,INDEX(Ranks!$1:$1048576,$A187,CJ$1))","v":""},{"$f":"IF($A187=\"N/A\",Ref!$B$36,INDEX(Ranks!$1:$1048576,$A187,CK$1))","v":""},{"$f":"IF($A187=\"N/A\",Ref!$B$36,INDEX(Ranks!$1:$1048576,$A187,CL$1))","v":""},{"$f":"IF($A187=\"N/A\",Ref!$B$36,INDEX(Ranks!$1:$1048576,$A187,CM$1))","v":""},{"$f":"IF($A187=\"N/A\",Ref!$B$36,INDEX(Ranks!$1:$1048576,$A187,CN$1))","v":""},{"$f":"IF($A187=\"N/A\",Ref!$B$36,INDEX(Ranks!$1:$1048576,$A187,CO$1))","v":""},{"$f":"IF($A187=\"N/A\",Ref!$B$36,INDEX(Ranks!$1:$1048576,$A187,CP$1))","v":""},{"$f":"IF($A187=\"N/A\",Ref!$B$36,INDEX(Ranks!$1:$1048576,$A187,CQ$1))","v":""},{"$f":"IF($A187=\"N/A\",Ref!$B$36,INDEX(Ranks!$1:$1048576,$A187,CR$1))","v":""},{"$f":"IF($A187=\"N/A\",Ref!$B$36,INDEX(Ranks!$1:$1048576,$A187,CS$1))","v":""},{"$f":"IF($A187=\"N/A\",Ref!$B$36,INDEX(Ranks!$1:$1048576,$A187,CT$1))","v":""},{"$f":"IF($A187=\"N/A\",Ref!$B$36,INDEX(Ranks!$1:$1048576,$A187,CU$1))","v":""},{"$f":"IF($A187=\"N/A\",Ref!$B$36,INDEX(Ranks!$1:$1048576,$A187,CV$1))","v":""},{"$f":"IF($A187=\"N/A\",Ref!$B$36,INDEX(Ranks!$1:$1048576,$A187,CW$1))","v":""},{"$f":"IF($A187=\"N/A\",Ref!$B$36,INDEX(Ranks!$1:$1048576,$A187,CX$1))","v":""},{"$f":"IF($A187=\"N/A\",Ref!$B$36,INDEX(Ranks!$1:$1048576,$A187,CY$1))","v":""},{"$f":"IF($A187=\"N/A\",Ref!$B$36,INDEX(Ranks!$1:$1048576,$A187,CZ$1))","v":""},{"$f":"IF($A187=\"N/A\",Ref!$B$36,INDEX(Ranks!$1:$1048576,$A187,DA$1))","v":""},{"$f":"IF($A187=\"N/A\",Ref!$B$36,INDEX(Ranks!$1:$1048576,$A187,DB$1))","v":""},{"$f":"IF($A187=\"N/A\",Ref!$B$36,INDEX(Ranks!$1:$1048576,$A187,DC$1))","v":""},{"$f":"IF($A187=\"N/A\",Ref!$B$36,INDEX(Ranks!$1:$1048576,$A187,DD$1))","v":""},{"$f":"IF($A187=\"N/A\",Ref!$B$36,INDEX(Ranks!$1:$1048576,$A187,DE$1))","v":""},{"$f":"IF($A187=\"N/A\",Ref!$B$36,INDEX(Ranks!$1:$1048576,$A187,DF$1))","v":""},{"$f":"IF($A187=\"N/A\",Ref!$B$36,INDEX(Ranks!$1:$1048576,$A187,DG$1))","v":""},{"$f":"IF($A187=\"N/A\",Ref!$B$36,INDEX(Ranks!$1:$1048576,$A187,DH$1))","v":""},{"$f":"IF($A187=\"N/A\",Ref!$B$36,INDEX(Ranks!$1:$1048576,$A187,DI$1))","v":""},{"$f":"IF($A187=\"N/A\",Ref!$B$36,INDEX(Ranks!$1:$1048576,$A187,DJ$1))","v":""},{"$f":"IF($A187=\"N/A\",Ref!$B$36,INDEX(Ranks!$1:$1048576,$A187,DK$1))","v":""},{"$f":"IF($A187=\"N/A\",Ref!$B$36,INDEX(Ranks!$1:$1048576,$A187,DL$1))","v":""},{"$f":"IF($A187=\"N/A\",Ref!$B$36,INDEX(Ranks!$1:$1048576,$A187,DM$1))","v":""},{"$f":"IF($A187=\"N/A\",Ref!$B$36,INDEX(Ranks!$1:$1048576,$A187,DN$1))","v":""},{"$f":"IF($A187=\"N/A\",Ref!$B$36,INDEX(Ranks!$1:$1048576,$A187,DO$1))","v":""},{"$f":"IF($A187=\"N/A\",Ref!$B$36,INDEX(Ranks!$1:$1048576,$A187,DP$1))","v":""},{"$f":"IF($A187=\"N/A\",Ref!$B$36,INDEX(Ranks!$1:$1048576,$A187,DQ$1))","v":""},{"$f":"IF($A187=\"N/A\",Ref!$B$36,INDEX(Ranks!$1:$1048576,$A187,DR$1))","v":""},{"$f":"IF($A187=\"N/A\",Ref!$B$36,INDEX(Ranks!$1:$1048576,$A187,DS$1))","v":""},{"$f":"IF($A187=\"N/A\",Ref!$B$36,INDEX(Ranks!$1:$1048576,$A187,DT$1))","v":""},{"$f":"IF($A187=\"N/A\",Ref!$B$36,INDEX(Ranks!$1:$1048576,$A187,DU$1))","v":""},{"$f":"IF($A187=\"N/A\",Ref!$B$36,INDEX(Ranks!$1:$1048576,$A187,DV$1))","v":""},{"$f":"IF($A187=\"N/A\",Ref!$B$36,INDEX(Ranks!$1:$1048576,$A187,DW$1))","v":""},{"$f":"IF($A187=\"N/A\",Ref!$B$36,INDEX(Ranks!$1:$1048576,$A187,DX$1))","v":""},{"$f":"IF($A187=\"N/A\",Ref!$B$36,INDEX(Ranks!$1:$1048576,$A187,DY$1))","v":""},{"$f":"IF($A187=\"N/A\",Ref!$B$36,INDEX(Ranks!$1:$1048576,$A187,DZ$1))","v":""},{"$f":"IF($A187=\"N/A\",Ref!$B$36,INDEX(Ranks!$1:$1048576,$A187,EA$1))","v":""},{"$f":"IF($A187=\"N/A\",Ref!$B$36,INDEX(Ranks!$1:$1048576,$A187,EB$1))","v":""}]
[{"$f":"IFERROR(MATCH('Portfolio Page'!L188,Ranks!L:L,0),\"N/A\")","v":"N/A"},null,{"$f":"IF($A188=\"N/A\",\"\",INDEX(Ranks!$1:$1048576,$A188,C$1))","v":""},{"$f":"IF($A188=\"N/A\",Ref!$B$36,INDEX(Ranks!$1:$1048576,$A188,D$1))","v":""},{"$f":"IF($A188=\"N/A\",Ref!$B$36,INDEX(Ranks!$1:$1048576,$A188,E$1))","v":""},{"$f":"IF($A188=\"N/A\",\"\",INDEX(Ranks!$1:$1048576,$A188,F$1))","v":""},{"$f":"IF($A188=\"N/A\",\"\",INDEX(Ranks!$1:$1048576,$A188,G$1))","v":""},{"$f":"IF($A188=\"N/A\",\"\",INDEX(Ranks!$1:$1048576,$A188,H$1))","v":""},{"$f":"IF($A188=\"N/A\",\"\",INDEX(Ranks!$1:$1048576,$A188,I$1))","v":""},{"$f":"IF($A188=\"N/A\",\"\",INDEX(Ranks!$1:$1048576,$A188,J$1))","v":""},{"$f":"IF($A188=\"N/A\",\"\",INDEX(Ranks!$1:$1048576,$A188,K$1))","v":""},null,{"$f":"IF($A188=\"N/A\",Ref!$B$36,INDEX(Ranks!$1:$1048576,$A188,M$1))","v":""},{"$f":"IF($A188=\"N/A\",Ref!$B$36,INDEX(Ranks!$1:$1048576,$A188,N$1))","v":""},{"$f":"IF($A188=\"N/A\",Ref!$B$36,INDEX(Ranks!$1:$1048576,$A188,O$1))","v":""},{"$f":"IF($A188=\"N/A\",Ref!$B$36,INDEX(Ranks!$1:$1048576,$A188,P$1))","v":""},{"$f":"IF($A188=\"N/A\",Ref!$B$36,INDEX(Ranks!$1:$1048576,$A188,Q$1))","v":""},{"$f":"IF($A188=\"N/A\",Ref!$B$36,INDEX(Ranks!$1:$1048576,$A188,R$1))","v":""},{"$f":"IF($A188=\"N/A\",Ref!$B$36,INDEX(Ranks!$1:$1048576,$A188,S$1))","v":""},{"$f":"IF($A188=\"N/A\",Ref!$B$36,INDEX(Ranks!$1:$1048576,$A188,T$1))","v":""},{"$f":"IF($A188=\"N/A\",Ref!$B$36,INDEX(Ranks!$1:$1048576,$A188,U$1))","v":""},{"$f":"IF($A188=\"N/A\",Ref!$B$36,INDEX(Ranks!$1:$1048576,$A188,V$1))","v":""},{"$f":"IF($A188=\"N/A\",Ref!$B$36,INDEX(Ranks!$1:$1048576,$A188,W$1))","v":""},{"$f":"IF($A188=\"N/A\",Ref!$B$36,INDEX(Ranks!$1:$1048576,$A188,X$1))","v":""},{"$f":"IF($A188=\"N/A\",Ref!$B$36,INDEX(Ranks!$1:$1048576,$A188,Y$1))","v":""},{"$f":"IF($A188=\"N/A\",Ref!$B$36,INDEX(Ranks!$1:$1048576,$A188,Z$1))","v":""},{"$f":"IF($A188=\"N/A\",Ref!$B$36,INDEX(Ranks!$1:$1048576,$A188,AA$1))","v":""},{"$f":"IF($A188=\"N/A\",Ref!$B$36,INDEX(Ranks!$1:$1048576,$A188,AB$1))","v":""},{"$f":"IF($A188=\"N/A\",Ref!$B$36,INDEX(Ranks!$1:$1048576,$A188,AC$1))","v":""},{"$f":"IF($A188=\"N/A\",Ref!$B$36,INDEX(Ranks!$1:$1048576,$A188,AD$1))","v":""},{"$f":"IF($A188=\"N/A\",Ref!$B$36,INDEX(Ranks!$1:$1048576,$A188,AE$1))","v":""},{"$f":"IF($A188=\"N/A\",Ref!$B$36,INDEX(Ranks!$1:$1048576,$A188,AF$1))","v":""},{"$f":"IF($A188=\"N/A\",Ref!$B$36,INDEX(Ranks!$1:$1048576,$A188,AG$1))","v":""},{"$f":"IF($A188=\"N/A\",Ref!$B$36,INDEX(Ranks!$1:$1048576,$A188,AH$1))","v":""},{"$f":"IF($A188=\"N/A\",Ref!$B$36,INDEX(Ranks!$1:$1048576,$A188,AI$1))","v":""},{"$f":"IF($A188=\"N/A\",Ref!$B$36,INDEX(Ranks!$1:$1048576,$A188,AJ$1))","v":""},{"$f":"IF($A188=\"N/A\",Ref!$B$36,INDEX(Ranks!$1:$1048576,$A188,AK$1))","v":""},{"$f":"IF($A188=\"N/A\",Ref!$B$36,INDEX(Ranks!$1:$1048576,$A188,AL$1))","v":""},{"$f":"IF($A188=\"N/A\",Ref!$B$36,INDEX(Ranks!$1:$1048576,$A188,AM$1))","v":""},{"$f":"IF($A188=\"N/A\",Ref!$B$36,INDEX(Ranks!$1:$1048576,$A188,AN$1))","v":""},{"$f":"IF($A188=\"N/A\",Ref!$B$36,INDEX(Ranks!$1:$1048576,$A188,AO$1))","v":""},{"$f":"IF($A188=\"N/A\",Ref!$B$36,INDEX(Ranks!$1:$1048576,$A188,AP$1))","v":""},{"$f":"IF($A188=\"N/A\",Ref!$B$36,INDEX(Ranks!$1:$1048576,$A188,AQ$1))","v":""},{"$f":"IF($A188=\"N/A\",Ref!$B$36,INDEX(Ranks!$1:$1048576,$A188,AR$1))","v":""},{"$f":"IF($A188=\"N/A\",Ref!$B$36,INDEX(Ranks!$1:$1048576,$A188,AS$1))","v":""},{"$f":"IF($A188=\"N/A\",Ref!$B$36,INDEX(Ranks!$1:$1048576,$A188,AT$1))","v":""},{"$f":"IF($A188=\"N/A\",Ref!$B$36,INDEX(Ranks!$1:$1048576,$A188,AU$1))","v":""},{"$f":"IF($A188=\"N/A\",Ref!$B$36,INDEX(Ranks!$1:$1048576,$A188,AV$1))","v":""},{"$f":"IF($A188=\"N/A\",Ref!$B$36,INDEX(Ranks!$1:$1048576,$A188,AW$1))","v":""},{"$f":"IF($A188=\"N/A\",Ref!$B$36,INDEX(Ranks!$1:$1048576,$A188,AX$1))","v":""},{"$f":"IF($A188=\"N/A\",Ref!$B$36,INDEX(Ranks!$1:$1048576,$A188,AY$1))","v":""},{"$f":"IF($A188=\"N/A\",Ref!$B$36,INDEX(Ranks!$1:$1048576,$A188,AZ$1))","v":""},{"$f":"IF($A188=\"N/A\",Ref!$B$36,INDEX(Ranks!$1:$1048576,$A188,BA$1))","v":""},{"$f":"IF($A188=\"N/A\",Ref!$B$36,INDEX(Ranks!$1:$1048576,$A188,BB$1))","v":""},{"$f":"IF($A188=\"N/A\",Ref!$B$36,INDEX(Ranks!$1:$1048576,$A188,BC$1))","v":""},{"$f":"IF($A188=\"N/A\",Ref!$B$36,INDEX(Ranks!$1:$1048576,$A188,BD$1))","v":""},{"$f":"IF($A188=\"N/A\",Ref!$B$36,INDEX(Ranks!$1:$1048576,$A188,BE$1))","v":""},{"$f":"IF($A188=\"N/A\",Ref!$B$36,INDEX(Ranks!$1:$1048576,$A188,BF$1))","v":""},{"$f":"IF($A188=\"N/A\",Ref!$B$36,INDEX(Ranks!$1:$1048576,$A188,BG$1))","v":""},{"$f":"IF($A188=\"N/A\",Ref!$B$36,INDEX(Ranks!$1:$1048576,$A188,BH$1))","v":""},{"$f":"IF($A188=\"N/A\",Ref!$B$36,INDEX(Ranks!$1:$1048576,$A188,BI$1))","v":""},{"$f":"IF($A188=\"N/A\",Ref!$B$36,INDEX(Ranks!$1:$1048576,$A188,BJ$1))","v":""},{"$f":"IF($A188=\"N/A\",Ref!$B$36,INDEX(Ranks!$1:$1048576,$A188,BK$1))","v":""},{"$f":"IF($A188=\"N/A\",Ref!$B$36,INDEX(Ranks!$1:$1048576,$A188,BL$1))","v":""},{"$f":"IF($A188=\"N/A\",Ref!$B$36,INDEX(Ranks!$1:$1048576,$A188,BM$1))","v":""},{"$f":"IF($A188=\"N/A\",Ref!$B$36,INDEX(Ranks!$1:$1048576,$A188,BN$1))","v":""},{"$f":"IF($A188=\"N/A\",Ref!$B$36,INDEX(Ranks!$1:$1048576,$A188,BO$1))","v":""},{"$f":"IF($A188=\"N/A\",Ref!$B$36,INDEX(Ranks!$1:$1048576,$A188,BP$1))","v":""},{"$f":"IF($A188=\"N/A\",Ref!$B$36,INDEX(Ranks!$1:$1048576,$A188,BQ$1))","v":""},{"$f":"IF($A188=\"N/A\",Ref!$B$36,INDEX(Ranks!$1:$1048576,$A188,BR$1))","v":""},{"$f":"IF($A188=\"N/A\",Ref!$B$36,INDEX(Ranks!$1:$1048576,$A188,BS$1))","v":""},{"$f":"IF($A188=\"N/A\",Ref!$B$36,INDEX(Ranks!$1:$1048576,$A188,BT$1))","v":""},{"$f":"IF($A188=\"N/A\",Ref!$B$36,INDEX(Ranks!$1:$1048576,$A188,BU$1))","v":""},{"$f":"IF($A188=\"N/A\",Ref!$B$36,INDEX(Ranks!$1:$1048576,$A188,BV$1))","v":""},{"$f":"IF($A188=\"N/A\",Ref!$B$36,INDEX(Ranks!$1:$1048576,$A188,BW$1))","v":""},{"$f":"IF($A188=\"N/A\",Ref!$B$36,INDEX(Ranks!$1:$1048576,$A188,BX$1))","v":""},{"$f":"IF($A188=\"N/A\",Ref!$B$36,INDEX(Ranks!$1:$1048576,$A188,BY$1))","v":""},{"$f":"IF($A188=\"N/A\",Ref!$B$36,INDEX(Ranks!$1:$1048576,$A188,BZ$1))","v":""},{"$f":"IF($A188=\"N/A\",Ref!$B$36,INDEX(Ranks!$1:$1048576,$A188,CA$1))","v":""},{"$f":"IF($A188=\"N/A\",Ref!$B$36,INDEX(Ranks!$1:$1048576,$A188,CB$1))","v":""},{"$f":"IF($A188=\"N/A\",Ref!$B$36,INDEX(Ranks!$1:$1048576,$A188,CC$1))","v":""},{"$f":"IF($A188=\"N/A\",Ref!$B$36,INDEX(Ranks!$1:$1048576,$A188,CD$1))","v":""},{"$f":"IF($A188=\"N/A\",Ref!$B$36,INDEX(Ranks!$1:$1048576,$A188,CE$1))","v":""},{"$f":"IF($A188=\"N/A\",Ref!$B$36,INDEX(Ranks!$1:$1048576,$A188,CF$1))","v":""},{"$f":"IF($A188=\"N/A\",Ref!$B$36,INDEX(Ranks!$1:$1048576,$A188,CG$1))","v":""},{"$f":"IF($A188=\"N/A\",Ref!$B$36,INDEX(Ranks!$1:$1048576,$A188,CH$1))","v":""},{"$f":"IF($A188=\"N/A\",Ref!$B$36,INDEX(Ranks!$1:$1048576,$A188,CI$1))","v":""},{"$f":"IF($A188=\"N/A\",Ref!$B$36,INDEX(Ranks!$1:$1048576,$A188,CJ$1))","v":""},{"$f":"IF($A188=\"N/A\",Ref!$B$36,INDEX(Ranks!$1:$1048576,$A188,CK$1))","v":""},{"$f":"IF($A188=\"N/A\",Ref!$B$36,INDEX(Ranks!$1:$1048576,$A188,CL$1))","v":""},{"$f":"IF($A188=\"N/A\",Ref!$B$36,INDEX(Ranks!$1:$1048576,$A188,CM$1))","v":""},{"$f":"IF($A188=\"N/A\",Ref!$B$36,INDEX(Ranks!$1:$1048576,$A188,CN$1))","v":""},{"$f":"IF($A188=\"N/A\",Ref!$B$36,INDEX(Ranks!$1:$1048576,$A188,CO$1))","v":""},{"$f":"IF($A188=\"N/A\",Ref!$B$36,INDEX(Ranks!$1:$1048576,$A188,CP$1))","v":""},{"$f":"IF($A188=\"N/A\",Ref!$B$36,INDEX(Ranks!$1:$1048576,$A188,CQ$1))","v":""},{"$f":"IF($A188=\"N/A\",Ref!$B$36,INDEX(Ranks!$1:$1048576,$A188,CR$1))","v":""},{"$f":"IF($A188=\"N/A\",Ref!$B$36,INDEX(Ranks!$1:$1048576,$A188,CS$1))","v":""},{"$f":"IF($A188=\"N/A\",Ref!$B$36,INDEX(Ranks!$1:$1048576,$A188,CT$1))","v":""},{"$f":"IF($A188=\"N/A\",Ref!$B$36,INDEX(Ranks!$1:$1048576,$A188,CU$1))","v":""},{"$f":"IF($A188=\"N/A\",Ref!$B$36,INDEX(Ranks!$1:$1048576,$A188,CV$1))","v":""},{"$f":"IF($A188=\"N/A\",Ref!$B$36,INDEX(Ranks!$1:$1048576,$A188,CW$1))","v":""},{"$f":"IF($A188=\"N/A\",Ref!$B$36,INDEX(Ranks!$1:$1048576,$A188,CX$1))","v":""},{"$f":"IF($A188=\"N/A\",Ref!$B$36,INDEX(Ranks!$1:$1048576,$A188,CY$1))","v":""},{"$f":"IF($A188=\"N/A\",Ref!$B$36,INDEX(Ranks!$1:$1048576,$A188,CZ$1))","v":""},{"$f":"IF($A188=\"N/A\",Ref!$B$36,INDEX(Ranks!$1:$1048576,$A188,DA$1))","v":""},{"$f":"IF($A188=\"N/A\",Ref!$B$36,INDEX(Ranks!$1:$1048576,$A188,DB$1))","v":""},{"$f":"IF($A188=\"N/A\",Ref!$B$36,INDEX(Ranks!$1:$1048576,$A188,DC$1))","v":""},{"$f":"IF($A188=\"N/A\",Ref!$B$36,INDEX(Ranks!$1:$1048576,$A188,DD$1))","v":""},{"$f":"IF($A188=\"N/A\",Ref!$B$36,INDEX(Ranks!$1:$1048576,$A188,DE$1))","v":""},{"$f":"IF($A188=\"N/A\",Ref!$B$36,INDEX(Ranks!$1:$1048576,$A188,DF$1))","v":""},{"$f":"IF($A188=\"N/A\",Ref!$B$36,INDEX(Ranks!$1:$1048576,$A188,DG$1))","v":""},{"$f":"IF($A188=\"N/A\",Ref!$B$36,INDEX(Ranks!$1:$1048576,$A188,DH$1))","v":""},{"$f":"IF($A188=\"N/A\",Ref!$B$36,INDEX(Ranks!$1:$1048576,$A188,DI$1))","v":""},{"$f":"IF($A188=\"N/A\",Ref!$B$36,INDEX(Ranks!$1:$1048576,$A188,DJ$1))","v":""},{"$f":"IF($A188=\"N/A\",Ref!$B$36,INDEX(Ranks!$1:$1048576,$A188,DK$1))","v":""},{"$f":"IF($A188=\"N/A\",Ref!$B$36,INDEX(Ranks!$1:$1048576,$A188,DL$1))","v":""},{"$f":"IF($A188=\"N/A\",Ref!$B$36,INDEX(Ranks!$1:$1048576,$A188,DM$1))","v":""},{"$f":"IF($A188=\"N/A\",Ref!$B$36,INDEX(Ranks!$1:$1048576,$A188,DN$1))","v":""},{"$f":"IF($A188=\"N/A\",Ref!$B$36,INDEX(Ranks!$1:$1048576,$A188,DO$1))","v":""},{"$f":"IF($A188=\"N/A\",Ref!$B$36,INDEX(Ranks!$1:$1048576,$A188,DP$1))","v":""},{"$f":"IF($A188=\"N/A\",Ref!$B$36,INDEX(Ranks!$1:$1048576,$A188,DQ$1))","v":""},{"$f":"IF($A188=\"N/A\",Ref!$B$36,INDEX(Ranks!$1:$1048576,$A188,DR$1))","v":""},{"$f":"IF($A188=\"N/A\",Ref!$B$36,INDEX(Ranks!$1:$1048576,$A188,DS$1))","v":""},{"$f":"IF($A188=\"N/A\",Ref!$B$36,INDEX(Ranks!$1:$1048576,$A188,DT$1))","v":""},{"$f":"IF($A188=\"N/A\",Ref!$B$36,INDEX(Ranks!$1:$1048576,$A188,DU$1))","v":""},{"$f":"IF($A188=\"N/A\",Ref!$B$36,INDEX(Ranks!$1:$1048576,$A188,DV$1))","v":""},{"$f":"IF($A188=\"N/A\",Ref!$B$36,INDEX(Ranks!$1:$1048576,$A188,DW$1))","v":""},{"$f":"IF($A188=\"N/A\",Ref!$B$36,INDEX(Ranks!$1:$1048576,$A188,DX$1))","v":""},{"$f":"IF($A188=\"N/A\",Ref!$B$36,INDEX(Ranks!$1:$1048576,$A188,DY$1))","v":""},{"$f":"IF($A188=\"N/A\",Ref!$B$36,INDEX(Ranks!$1:$1048576,$A188,DZ$1))","v":""},{"$f":"IF($A188=\"N/A\",Ref!$B$36,INDEX(Ranks!$1:$1048576,$A188,EA$1))","v":""},{"$f":"IF($A188=\"N/A\",Ref!$B$36,INDEX(Ranks!$1:$1048576,$A188,EB$1))","v":""}]
[{"$f":"IFERROR(MATCH('Portfolio Page'!L189,Ranks!L:L,0),\"N/A\")","v":"N/A"},null,{"$f":"IF($A189=\"N/A\",\"\",INDEX(Ranks!$1:$1048576,$A189,C$1))","v":""},{"$f":"IF($A189=\"N/A\",Ref!$B$36,INDEX(Ranks!$1:$1048576,$A189,D$1))","v":""},{"$f":"IF($A189=\"N/A\",Ref!$B$36,INDEX(Ranks!$1:$1048576,$A189,E$1))","v":""},{"$f":"IF($A189=\"N/A\",\"\",INDEX(Ranks!$1:$1048576,$A189,F$1))","v":""},{"$f":"IF($A189=\"N/A\",\"\",INDEX(Ranks!$1:$1048576,$A189,G$1))","v":""},{"$f":"IF($A189=\"N/A\",\"\",INDEX(Ranks!$1:$1048576,$A189,H$1))","v":""},{"$f":"IF($A189=\"N/A\",\"\",INDEX(Ranks!$1:$1048576,$A189,I$1))","v":""},{"$f":"IF($A189=\"N/A\",\"\",INDEX(Ranks!$1:$1048576,$A189,J$1))","v":""},{"$f":"IF($A189=\"N/A\",\"\",INDEX(Ranks!$1:$1048576,$A189,K$1))","v":""},null,{"$f":"IF($A189=\"N/A\",Ref!$B$36,INDEX(Ranks!$1:$1048576,$A189,M$1))","v":""},{"$f":"IF($A189=\"N/A\",Ref!$B$36,INDEX(Ranks!$1:$1048576,$A189,N$1))","v":""},{"$f":"IF($A189=\"N/A\",Ref!$B$36,INDEX(Ranks!$1:$1048576,$A189,O$1))","v":""},{"$f":"IF($A189=\"N/A\",Ref!$B$36,INDEX(Ranks!$1:$1048576,$A189,P$1))","v":""},{"$f":"IF($A189=\"N/A\",Ref!$B$36,INDEX(Ranks!$1:$1048576,$A189,Q$1))","v":""},{"$f":"IF($A189=\"N/A\",Ref!$B$36,INDEX(Ranks!$1:$1048576,$A189,R$1))","v":""},{"$f":"IF($A189=\"N/A\",Ref!$B$36,INDEX(Ranks!$1:$1048576,$A189,S$1))","v":""},{"$f":"IF($A189=\"N/A\",Ref!$B$36,INDEX(Ranks!$1:$1048576,$A189,T$1))","v":""},{"$f":"IF($A189=\"N/A\",Ref!$B$36,INDEX(Ranks!$1:$1048576,$A189,U$1))","v":""},{"$f":"IF($A189=\"N/A\",Ref!$B$36,INDEX(Ranks!$1:$1048576,$A189,V$1))","v":""},{"$f":"IF($A189=\"N/A\",Ref!$B$36,INDEX(Ranks!$1:$1048576,$A189,W$1))","v":""},{"$f":"IF($A189=\"N/A\",Ref!$B$36,INDEX(Ranks!$1:$1048576,$A189,X$1))","v":""},{"$f":"IF($A189=\"N/A\",Ref!$B$36,INDEX(Ranks!$1:$1048576,$A189,Y$1))","v":""},{"$f":"IF($A189=\"N/A\",Ref!$B$36,INDEX(Ranks!$1:$1048576,$A189,Z$1))","v":""},{"$f":"IF($A189=\"N/A\",Ref!$B$36,INDEX(Ranks!$1:$1048576,$A189,AA$1))","v":""},{"$f":"IF($A189=\"N/A\",Ref!$B$36,INDEX(Ranks!$1:$1048576,$A189,AB$1))","v":""},{"$f":"IF($A189=\"N/A\",Ref!$B$36,INDEX(Ranks!$1:$1048576,$A189,AC$1))","v":""},{"$f":"IF($A189=\"N/A\",Ref!$B$36,INDEX(Ranks!$1:$1048576,$A189,AD$1))","v":""},{"$f":"IF($A189=\"N/A\",Ref!$B$36,INDEX(Ranks!$1:$1048576,$A189,AE$1))","v":""},{"$f":"IF($A189=\"N/A\",Ref!$B$36,INDEX(Ranks!$1:$1048576,$A189,AF$1))","v":""},{"$f":"IF($A189=\"N/A\",Ref!$B$36,INDEX(Ranks!$1:$1048576,$A189,AG$1))","v":""},{"$f":"IF($A189=\"N/A\",Ref!$B$36,INDEX(Ranks!$1:$1048576,$A189,AH$1))","v":""},{"$f":"IF($A189=\"N/A\",Ref!$B$36,INDEX(Ranks!$1:$1048576,$A189,AI$1))","v":""},{"$f":"IF($A189=\"N/A\",Ref!$B$36,INDEX(Ranks!$1:$1048576,$A189,AJ$1))","v":""},{"$f":"IF($A189=\"N/A\",Ref!$B$36,INDEX(Ranks!$1:$1048576,$A189,AK$1))","v":""},{"$f":"IF($A189=\"N/A\",Ref!$B$36,INDEX(Ranks!$1:$1048576,$A189,AL$1))","v":""},{"$f":"IF($A189=\"N/A\",Ref!$B$36,INDEX(Ranks!$1:$1048576,$A189,AM$1))","v":""},{"$f":"IF($A189=\"N/A\",Ref!$B$36,INDEX(Ranks!$1:$1048576,$A189,AN$1))","v":""},{"$f":"IF($A189=\"N/A\",Ref!$B$36,INDEX(Ranks!$1:$1048576,$A189,AO$1))","v":""},{"$f":"IF($A189=\"N/A\",Ref!$B$36,INDEX(Ranks!$1:$1048576,$A189,AP$1))","v":""},{"$f":"IF($A189=\"N/A\",Ref!$B$36,INDEX(Ranks!$1:$1048576,$A189,AQ$1))","v":""},{"$f":"IF($A189=\"N/A\",Ref!$B$36,INDEX(Ranks!$1:$1048576,$A189,AR$1))","v":""},{"$f":"IF($A189=\"N/A\",Ref!$B$36,INDEX(Ranks!$1:$1048576,$A189,AS$1))","v":""},{"$f":"IF($A189=\"N/A\",Ref!$B$36,INDEX(Ranks!$1:$1048576,$A189,AT$1))","v":""},{"$f":"IF($A189=\"N/A\",Ref!$B$36,INDEX(Ranks!$1:$1048576,$A189,AU$1))","v":""},{"$f":"IF($A189=\"N/A\",Ref!$B$36,INDEX(Ranks!$1:$1048576,$A189,AV$1))","v":""},{"$f":"IF($A189=\"N/A\",Ref!$B$36,INDEX(Ranks!$1:$1048576,$A189,AW$1))","v":""},{"$f":"IF($A189=\"N/A\",Ref!$B$36,INDEX(Ranks!$1:$1048576,$A189,AX$1))","v":""},{"$f":"IF($A189=\"N/A\",Ref!$B$36,INDEX(Ranks!$1:$1048576,$A189,AY$1))","v":""},{"$f":"IF($A189=\"N/A\",Ref!$B$36,INDEX(Ranks!$1:$1048576,$A189,AZ$1))","v":""},{"$f":"IF($A189=\"N/A\",Ref!$B$36,INDEX(Ranks!$1:$1048576,$A189,BA$1))","v":""},{"$f":"IF($A189=\"N/A\",Ref!$B$36,INDEX(Ranks!$1:$1048576,$A189,BB$1))","v":""},{"$f":"IF($A189=\"N/A\",Ref!$B$36,INDEX(Ranks!$1:$1048576,$A189,BC$1))","v":""},{"$f":"IF($A189=\"N/A\",Ref!$B$36,INDEX(Ranks!$1:$1048576,$A189,BD$1))","v":""},{"$f":"IF($A189=\"N/A\",Ref!$B$36,INDEX(Ranks!$1:$1048576,$A189,BE$1))","v":""},{"$f":"IF($A189=\"N/A\",Ref!$B$36,INDEX(Ranks!$1:$1048576,$A189,BF$1))","v":""},{"$f":"IF($A189=\"N/A\",Ref!$B$36,INDEX(Ranks!$1:$1048576,$A189,BG$1))","v":""},{"$f":"IF($A189=\"N/A\",Ref!$B$36,INDEX(Ranks!$1:$1048576,$A189,BH$1))","v":""},{"$f":"IF($A189=\"N/A\",Ref!$B$36,INDEX(Ranks!$1:$1048576,$A189,BI$1))","v":""},{"$f":"IF($A189=\"N/A\",Ref!$B$36,INDEX(Ranks!$1:$1048576,$A189,BJ$1))","v":""},{"$f":"IF($A189=\"N/A\",Ref!$B$36,INDEX(Ranks!$1:$1048576,$A189,BK$1))","v":""},{"$f":"IF($A189=\"N/A\",Ref!$B$36,INDEX(Ranks!$1:$1048576,$A189,BL$1))","v":""},{"$f":"IF($A189=\"N/A\",Ref!$B$36,INDEX(Ranks!$1:$1048576,$A189,BM$1))","v":""},{"$f":"IF($A189=\"N/A\",Ref!$B$36,INDEX(Ranks!$1:$1048576,$A189,BN$1))","v":""},{"$f":"IF($A189=\"N/A\",Ref!$B$36,INDEX(Ranks!$1:$1048576,$A189,BO$1))","v":""},{"$f":"IF($A189=\"N/A\",Ref!$B$36,INDEX(Ranks!$1:$1048576,$A189,BP$1))","v":""},{"$f":"IF($A189=\"N/A\",Ref!$B$36,INDEX(Ranks!$1:$1048576,$A189,BQ$1))","v":""},{"$f":"IF($A189=\"N/A\",Ref!$B$36,INDEX(Ranks!$1:$1048576,$A189,BR$1))","v":""},{"$f":"IF($A189=\"N/A\",Ref!$B$36,INDEX(Ranks!$1:$1048576,$A189,BS$1))","v":""},{"$f":"IF($A189=\"N/A\",Ref!$B$36,INDEX(Ranks!$1:$1048576,$A189,BT$1))","v":""},{"$f":"IF($A189=\"N/A\",Ref!$B$36,INDEX(Ranks!$1:$1048576,$A189,BU$1))","v":""},{"$f":"IF($A189=\"N/A\",Ref!$B$36,INDEX(Ranks!$1:$1048576,$A189,BV$1))","v":""},{"$f":"IF($A189=\"N/A\",Ref!$B$36,INDEX(Ranks!$1:$1048576,$A189,BW$1))","v":""},{"$f":"IF($A189=\"N/A\",Ref!$B$36,INDEX(Ranks!$1:$1048576,$A189,BX$1))","v":""},{"$f":"IF($A189=\"N/A\",Ref!$B$36,INDEX(Ranks!$1:$1048576,$A189,BY$1))","v":""},{"$f":"IF($A189=\"N/A\",Ref!$B$36,INDEX(Ranks!$1:$1048576,$A189,BZ$1))","v":""},{"$f":"IF($A189=\"N/A\",Ref!$B$36,INDEX(Ranks!$1:$1048576,$A189,CA$1))","v":""},{"$f":"IF($A189=\"N/A\",Ref!$B$36,INDEX(Ranks!$1:$1048576,$A189,CB$1))","v":""},{"$f":"IF($A189=\"N/A\",Ref!$B$36,INDEX(Ranks!$1:$1048576,$A189,CC$1))","v":""},{"$f":"IF($A189=\"N/A\",Ref!$B$36,INDEX(Ranks!$1:$1048576,$A189,CD$1))","v":""},{"$f":"IF($A189=\"N/A\",Ref!$B$36,INDEX(Ranks!$1:$1048576,$A189,CE$1))","v":""},{"$f":"IF($A189=\"N/A\",Ref!$B$36,INDEX(Ranks!$1:$1048576,$A189,CF$1))","v":""},{"$f":"IF($A189=\"N/A\",Ref!$B$36,INDEX(Ranks!$1:$1048576,$A189,CG$1))","v":""},{"$f":"IF($A189=\"N/A\",Ref!$B$36,INDEX(Ranks!$1:$1048576,$A189,CH$1))","v":""},{"$f":"IF($A189=\"N/A\",Ref!$B$36,INDEX(Ranks!$1:$1048576,$A189,CI$1))","v":""},{"$f":"IF($A189=\"N/A\",Ref!$B$36,INDEX(Ranks!$1:$1048576,$A189,CJ$1))","v":""},{"$f":"IF($A189=\"N/A\",Ref!$B$36,INDEX(Ranks!$1:$1048576,$A189,CK$1))","v":""},{"$f":"IF($A189=\"N/A\",Ref!$B$36,INDEX(Ranks!$1:$1048576,$A189,CL$1))","v":""},{"$f":"IF($A189=\"N/A\",Ref!$B$36,INDEX(Ranks!$1:$1048576,$A189,CM$1))","v":""},{"$f":"IF($A189=\"N/A\",Ref!$B$36,INDEX(Ranks!$1:$1048576,$A189,CN$1))","v":""},{"$f":"IF($A189=\"N/A\",Ref!$B$36,INDEX(Ranks!$1:$1048576,$A189,CO$1))","v":""},{"$f":"IF($A189=\"N/A\",Ref!$B$36,INDEX(Ranks!$1:$1048576,$A189,CP$1))","v":""},{"$f":"IF($A189=\"N/A\",Ref!$B$36,INDEX(Ranks!$1:$1048576,$A189,CQ$1))","v":""},{"$f":"IF($A189=\"N/A\",Ref!$B$36,INDEX(Ranks!$1:$1048576,$A189,CR$1))","v":""},{"$f":"IF($A189=\"N/A\",Ref!$B$36,INDEX(Ranks!$1:$1048576,$A189,CS$1))","v":""},{"$f":"IF($A189=\"N/A\",Ref!$B$36,INDEX(Ranks!$1:$1048576,$A189,CT$1))","v":""},{"$f":"IF($A189=\"N/A\",Ref!$B$36,INDEX(Ranks!$1:$1048576,$A189,CU$1))","v":""},{"$f":"IF($A189=\"N/A\",Ref!$B$36,INDEX(Ranks!$1:$1048576,$A189,CV$1))","v":""},{"$f":"IF($A189=\"N/A\",Ref!$B$36,INDEX(Ranks!$1:$1048576,$A189,CW$1))","v":""},{"$f":"IF($A189=\"N/A\",Ref!$B$36,INDEX(Ranks!$1:$1048576,$A189,CX$1))","v":""},{"$f":"IF($A189=\"N/A\",Ref!$B$36,INDEX(Ranks!$1:$1048576,$A189,CY$1))","v":""},{"$f":"IF($A189=\"N/A\",Ref!$B$36,INDEX(Ranks!$1:$1048576,$A189,CZ$1))","v":""},{"$f":"IF($A189=\"N/A\",Ref!$B$36,INDEX(Ranks!$1:$1048576,$A189,DA$1))","v":""},{"$f":"IF($A189=\"N/A\",Ref!$B$36,INDEX(Ranks!$1:$1048576,$A189,DB$1))","v":""},{"$f":"IF($A189=\"N/A\",Ref!$B$36,INDEX(Ranks!$1:$1048576,$A189,DC$1))","v":""},{"$f":"IF($A189=\"N/A\",Ref!$B$36,INDEX(Ranks!$1:$1048576,$A189,DD$1))","v":""},{"$f":"IF($A189=\"N/A\",Ref!$B$36,INDEX(Ranks!$1:$1048576,$A189,DE$1))","v":""},{"$f":"IF($A189=\"N/A\",Ref!$B$36,INDEX(Ranks!$1:$1048576,$A189,DF$1))","v":""},{"$f":"IF($A189=\"N/A\",Ref!$B$36,INDEX(Ranks!$1:$1048576,$A189,DG$1))","v":""},{"$f":"IF($A189=\"N/A\",Ref!$B$36,INDEX(Ranks!$1:$1048576,$A189,DH$1))","v":""},{"$f":"IF($A189=\"N/A\",Ref!$B$36,INDEX(Ranks!$1:$1048576,$A189,DI$1))","v":""},{"$f":"IF($A189=\"N/A\",Ref!$B$36,INDEX(Ranks!$1:$1048576,$A189,DJ$1))","v":""},{"$f":"IF($A189=\"N/A\",Ref!$B$36,INDEX(Ranks!$1:$1048576,$A189,DK$1))","v":""},{"$f":"IF($A189=\"N/A\",Ref!$B$36,INDEX(Ranks!$1:$1048576,$A189,DL$1))","v":""},{"$f":"IF($A189=\"N/A\",Ref!$B$36,INDEX(Ranks!$1:$1048576,$A189,DM$1))","v":""},{"$f":"IF($A189=\"N/A\",Ref!$B$36,INDEX(Ranks!$1:$1048576,$A189,DN$1))","v":""},{"$f":"IF($A189=\"N/A\",Ref!$B$36,INDEX(Ranks!$1:$1048576,$A189,DO$1))","v":""},{"$f":"IF($A189=\"N/A\",Ref!$B$36,INDEX(Ranks!$1:$1048576,$A189,DP$1))","v":""},{"$f":"IF($A189=\"N/A\",Ref!$B$36,INDEX(Ranks!$1:$1048576,$A189,DQ$1))","v":""},{"$f":"IF($A189=\"N/A\",Ref!$B$36,INDEX(Ranks!$1:$1048576,$A189,DR$1))","v":""},{"$f":"IF($A189=\"N/A\",Ref!$B$36,INDEX(Ranks!$1:$1048576,$A189,DS$1))","v":""},{"$f":"IF($A189=\"N/A\",Ref!$B$36,INDEX(Ranks!$1:$1048576,$A189,DT$1))","v":""},{"$f":"IF($A189=\"N/A\",Ref!$B$36,INDEX(Ranks!$1:$1048576,$A189,DU$1))","v":""},{"$f":"IF($A189=\"N/A\",Ref!$B$36,INDEX(Ranks!$1:$1048576,$A189,DV$1))","v":""},{"$f":"IF($A189=\"N/A\",Ref!$B$36,INDEX(Ranks!$1:$1048576,$A189,DW$1))","v":""},{"$f":"IF($A189=\"N/A\",Ref!$B$36,INDEX(Ranks!$1:$1048576,$A189,DX$1))","v":""},{"$f":"IF($A189=\"N/A\",Ref!$B$36,INDEX(Ranks!$1:$1048576,$A189,DY$1))","v":""},{"$f":"IF($A189=\"N/A\",Ref!$B$36,INDEX(Ranks!$1:$1048576,$A189,DZ$1))","v":""},{"$f":"IF($A189=\"N/A\",Ref!$B$36,INDEX(Ranks!$1:$1048576,$A189,EA$1))","v":""},{"$f":"IF($A189=\"N/A\",Ref!$B$36,INDEX(Ranks!$1:$1048576,$A189,EB$1))","v":""}]
[{"$f":"IFERROR(MATCH('Portfolio Page'!L190,Ranks!L:L,0),\"N/A\")","v":"N/A"},null,{"$f":"IF($A190=\"N/A\",\"\",INDEX(Ranks!$1:$1048576,$A190,C$1))","v":""},{"$f":"IF($A190=\"N/A\",Ref!$B$36,INDEX(Ranks!$1:$1048576,$A190,D$1))","v":""},{"$f":"IF($A190=\"N/A\",Ref!$B$36,INDEX(Ranks!$1:$1048576,$A190,E$1))","v":""},{"$f":"IF($A190=\"N/A\",\"\",INDEX(Ranks!$1:$1048576,$A190,F$1))","v":""},{"$f":"IF($A190=\"N/A\",\"\",INDEX(Ranks!$1:$1048576,$A190,G$1))","v":""},{"$f":"IF($A190=\"N/A\",\"\",INDEX(Ranks!$1:$1048576,$A190,H$1))","v":""},{"$f":"IF($A190=\"N/A\",\"\",INDEX(Ranks!$1:$1048576,$A190,I$1))","v":""},{"$f":"IF($A190=\"N/A\",\"\",INDEX(Ranks!$1:$1048576,$A190,J$1))","v":""},{"$f":"IF($A190=\"N/A\",\"\",INDEX(Ranks!$1:$1048576,$A190,K$1))","v":""},null,{"$f":"IF($A190=\"N/A\",Ref!$B$36,INDEX(Ranks!$1:$1048576,$A190,M$1))","v":""},{"$f":"IF($A190=\"N/A\",Ref!$B$36,INDEX(Ranks!$1:$1048576,$A190,N$1))","v":""},{"$f":"IF($A190=\"N/A\",Ref!$B$36,INDEX(Ranks!$1:$1048576,$A190,O$1))","v":""},{"$f":"IF($A190=\"N/A\",Ref!$B$36,INDEX(Ranks!$1:$1048576,$A190,P$1))","v":""},{"$f":"IF($A190=\"N/A\",Ref!$B$36,INDEX(Ranks!$1:$1048576,$A190,Q$1))","v":""},{"$f":"IF($A190=\"N/A\",Ref!$B$36,INDEX(Ranks!$1:$1048576,$A190,R$1))","v":""},{"$f":"IF($A190=\"N/A\",Ref!$B$36,INDEX(Ranks!$1:$1048576,$A190,S$1))","v":""},{"$f":"IF($A190=\"N/A\",Ref!$B$36,INDEX(Ranks!$1:$1048576,$A190,T$1))","v":""},{"$f":"IF($A190=\"N/A\",Ref!$B$36,INDEX(Ranks!$1:$1048576,$A190,U$1))","v":""},{"$f":"IF($A190=\"N/A\",Ref!$B$36,INDEX(Ranks!$1:$1048576,$A190,V$1))","v":""},{"$f":"IF($A190=\"N/A\",Ref!$B$36,INDEX(Ranks!$1:$1048576,$A190,W$1))","v":""},{"$f":"IF($A190=\"N/A\",Ref!$B$36,INDEX(Ranks!$1:$1048576,$A190,X$1))","v":""},{"$f":"IF($A190=\"N/A\",Ref!$B$36,INDEX(Ranks!$1:$1048576,$A190,Y$1))","v":""},{"$f":"IF($A190=\"N/A\",Ref!$B$36,INDEX(Ranks!$1:$1048576,$A190,Z$1))","v":""},{"$f":"IF($A190=\"N/A\",Ref!$B$36,INDEX(Ranks!$1:$1048576,$A190,AA$1))","v":""},{"$f":"IF($A190=\"N/A\",Ref!$B$36,INDEX(Ranks!$1:$1048576,$A190,AB$1))","v":""},{"$f":"IF($A190=\"N/A\",Ref!$B$36,INDEX(Ranks!$1:$1048576,$A190,AC$1))","v":""},{"$f":"IF($A190=\"N/A\",Ref!$B$36,INDEX(Ranks!$1:$1048576,$A190,AD$1))","v":""},{"$f":"IF($A190=\"N/A\",Ref!$B$36,INDEX(Ranks!$1:$1048576,$A190,AE$1))","v":""},{"$f":"IF($A190=\"N/A\",Ref!$B$36,INDEX(Ranks!$1:$1048576,$A190,AF$1))","v":""},{"$f":"IF($A190=\"N/A\",Ref!$B$36,INDEX(Ranks!$1:$1048576,$A190,AG$1))","v":""},{"$f":"IF($A190=\"N/A\",Ref!$B$36,INDEX(Ranks!$1:$1048576,$A190,AH$1))","v":""},{"$f":"IF($A190=\"N/A\",Ref!$B$36,INDEX(Ranks!$1:$1048576,$A190,AI$1))","v":""},{"$f":"IF($A190=\"N/A\",Ref!$B$36,INDEX(Ranks!$1:$1048576,$A190,AJ$1))","v":""},{"$f":"IF($A190=\"N/A\",Ref!$B$36,INDEX(Ranks!$1:$1048576,$A190,AK$1))","v":""},{"$f":"IF($A190=\"N/A\",Ref!$B$36,INDEX(Ranks!$1:$1048576,$A190,AL$1))","v":""},{"$f":"IF($A190=\"N/A\",Ref!$B$36,INDEX(Ranks!$1:$1048576,$A190,AM$1))","v":""},{"$f":"IF($A190=\"N/A\",Ref!$B$36,INDEX(Ranks!$1:$1048576,$A190,AN$1))","v":""},{"$f":"IF($A190=\"N/A\",Ref!$B$36,INDEX(Ranks!$1:$1048576,$A190,AO$1))","v":""},{"$f":"IF($A190=\"N/A\",Ref!$B$36,INDEX(Ranks!$1:$1048576,$A190,AP$1))","v":""},{"$f":"IF($A190=\"N/A\",Ref!$B$36,INDEX(Ranks!$1:$1048576,$A190,AQ$1))","v":""},{"$f":"IF($A190=\"N/A\",Ref!$B$36,INDEX(Ranks!$1:$1048576,$A190,AR$1))","v":""},{"$f":"IF($A190=\"N/A\",Ref!$B$36,INDEX(Ranks!$1:$1048576,$A190,AS$1))","v":""},{"$f":"IF($A190=\"N/A\",Ref!$B$36,INDEX(Ranks!$1:$1048576,$A190,AT$1))","v":""},{"$f":"IF($A190=\"N/A\",Ref!$B$36,INDEX(Ranks!$1:$1048576,$A190,AU$1))","v":""},{"$f":"IF($A190=\"N/A\",Ref!$B$36,INDEX(Ranks!$1:$1048576,$A190,AV$1))","v":""},{"$f":"IF($A190=\"N/A\",Ref!$B$36,INDEX(Ranks!$1:$1048576,$A190,AW$1))","v":""},{"$f":"IF($A190=\"N/A\",Ref!$B$36,INDEX(Ranks!$1:$1048576,$A190,AX$1))","v":""},{"$f":"IF($A190=\"N/A\",Ref!$B$36,INDEX(Ranks!$1:$1048576,$A190,AY$1))","v":""},{"$f":"IF($A190=\"N/A\",Ref!$B$36,INDEX(Ranks!$1:$1048576,$A190,AZ$1))","v":""},{"$f":"IF($A190=\"N/A\",Ref!$B$36,INDEX(Ranks!$1:$1048576,$A190,BA$1))","v":""},{"$f":"IF($A190=\"N/A\",Ref!$B$36,INDEX(Ranks!$1:$1048576,$A190,BB$1))","v":""},{"$f":"IF($A190=\"N/A\",Ref!$B$36,INDEX(Ranks!$1:$1048576,$A190,BC$1))","v":""},{"$f":"IF($A190=\"N/A\",Ref!$B$36,INDEX(Ranks!$1:$1048576,$A190,BD$1))","v":""},{"$f":"IF($A190=\"N/A\",Ref!$B$36,INDEX(Ranks!$1:$1048576,$A190,BE$1))","v":""},{"$f":"IF($A190=\"N/A\",Ref!$B$36,INDEX(Ranks!$1:$1048576,$A190,BF$1))","v":""},{"$f":"IF($A190=\"N/A\",Ref!$B$36,INDEX(Ranks!$1:$1048576,$A190,BG$1))","v":""},{"$f":"IF($A190=\"N/A\",Ref!$B$36,INDEX(Ranks!$1:$1048576,$A190,BH$1))","v":""},{"$f":"IF($A190=\"N/A\",Ref!$B$36,INDEX(Ranks!$1:$1048576,$A190,BI$1))","v":""},{"$f":"IF($A190=\"N/A\",Ref!$B$36,INDEX(Ranks!$1:$1048576,$A190,BJ$1))","v":""},{"$f":"IF($A190=\"N/A\",Ref!$B$36,INDEX(Ranks!$1:$1048576,$A190,BK$1))","v":""},{"$f":"IF($A190=\"N/A\",Ref!$B$36,INDEX(Ranks!$1:$1048576,$A190,BL$1))","v":""},{"$f":"IF($A190=\"N/A\",Ref!$B$36,INDEX(Ranks!$1:$1048576,$A190,BM$1))","v":""},{"$f":"IF($A190=\"N/A\",Ref!$B$36,INDEX(Ranks!$1:$1048576,$A190,BN$1))","v":""},{"$f":"IF($A190=\"N/A\",Ref!$B$36,INDEX(Ranks!$1:$1048576,$A190,BO$1))","v":""},{"$f":"IF($A190=\"N/A\",Ref!$B$36,INDEX(Ranks!$1:$1048576,$A190,BP$1))","v":""},{"$f":"IF($A190=\"N/A\",Ref!$B$36,INDEX(Ranks!$1:$1048576,$A190,BQ$1))","v":""},{"$f":"IF($A190=\"N/A\",Ref!$B$36,INDEX(Ranks!$1:$1048576,$A190,BR$1))","v":""},{"$f":"IF($A190=\"N/A\",Ref!$B$36,INDEX(Ranks!$1:$1048576,$A190,BS$1))","v":""},{"$f":"IF($A190=\"N/A\",Ref!$B$36,INDEX(Ranks!$1:$1048576,$A190,BT$1))","v":""},{"$f":"IF($A190=\"N/A\",Ref!$B$36,INDEX(Ranks!$1:$1048576,$A190,BU$1))","v":""},{"$f":"IF($A190=\"N/A\",Ref!$B$36,INDEX(Ranks!$1:$1048576,$A190,BV$1))","v":""},{"$f":"IF($A190=\"N/A\",Ref!$B$36,INDEX(Ranks!$1:$1048576,$A190,BW$1))","v":""},{"$f":"IF($A190=\"N/A\",Ref!$B$36,INDEX(Ranks!$1:$1048576,$A190,BX$1))","v":""},{"$f":"IF($A190=\"N/A\",Ref!$B$36,INDEX(Ranks!$1:$1048576,$A190,BY$1))","v":""},{"$f":"IF($A190=\"N/A\",Ref!$B$36,INDEX(Ranks!$1:$1048576,$A190,BZ$1))","v":""},{"$f":"IF($A190=\"N/A\",Ref!$B$36,INDEX(Ranks!$1:$1048576,$A190,CA$1))","v":""},{"$f":"IF($A190=\"N/A\",Ref!$B$36,INDEX(Ranks!$1:$1048576,$A190,CB$1))","v":""},{"$f":"IF($A190=\"N/A\",Ref!$B$36,INDEX(Ranks!$1:$1048576,$A190,CC$1))","v":""},{"$f":"IF($A190=\"N/A\",Ref!$B$36,INDEX(Ranks!$1:$1048576,$A190,CD$1))","v":""},{"$f":"IF($A190=\"N/A\",Ref!$B$36,INDEX(Ranks!$1:$1048576,$A190,CE$1))","v":""},{"$f":"IF($A190=\"N/A\",Ref!$B$36,INDEX(Ranks!$1:$1048576,$A190,CF$1))","v":""},{"$f":"IF($A190=\"N/A\",Ref!$B$36,INDEX(Ranks!$1:$1048576,$A190,CG$1))","v":""},{"$f":"IF($A190=\"N/A\",Ref!$B$36,INDEX(Ranks!$1:$1048576,$A190,CH$1))","v":""},{"$f":"IF($A190=\"N/A\",Ref!$B$36,INDEX(Ranks!$1:$1048576,$A190,CI$1))","v":""},{"$f":"IF($A190=\"N/A\",Ref!$B$36,INDEX(Ranks!$1:$1048576,$A190,CJ$1))","v":""},{"$f":"IF($A190=\"N/A\",Ref!$B$36,INDEX(Ranks!$1:$1048576,$A190,CK$1))","v":""},{"$f":"IF($A190=\"N/A\",Ref!$B$36,INDEX(Ranks!$1:$1048576,$A190,CL$1))","v":""},{"$f":"IF($A190=\"N/A\",Ref!$B$36,INDEX(Ranks!$1:$1048576,$A190,CM$1))","v":""},{"$f":"IF($A190=\"N/A\",Ref!$B$36,INDEX(Ranks!$1:$1048576,$A190,CN$1))","v":""},{"$f":"IF($A190=\"N/A\",Ref!$B$36,INDEX(Ranks!$1:$1048576,$A190,CO$1))","v":""},{"$f":"IF($A190=\"N/A\",Ref!$B$36,INDEX(Ranks!$1:$1048576,$A190,CP$1))","v":""},{"$f":"IF($A190=\"N/A\",Ref!$B$36,INDEX(Ranks!$1:$1048576,$A190,CQ$1))","v":""},{"$f":"IF($A190=\"N/A\",Ref!$B$36,INDEX(Ranks!$1:$1048576,$A190,CR$1))","v":""},{"$f":"IF($A190=\"N/A\",Ref!$B$36,INDEX(Ranks!$1:$1048576,$A190,CS$1))","v":""},{"$f":"IF($A190=\"N/A\",Ref!$B$36,INDEX(Ranks!$1:$1048576,$A190,CT$1))","v":""},{"$f":"IF($A190=\"N/A\",Ref!$B$36,INDEX(Ranks!$1:$1048576,$A190,CU$1))","v":""},{"$f":"IF($A190=\"N/A\",Ref!$B$36,INDEX(Ranks!$1:$1048576,$A190,CV$1))","v":""},{"$f":"IF($A190=\"N/A\",Ref!$B$36,INDEX(Ranks!$1:$1048576,$A190,CW$1))","v":""},{"$f":"IF($A190=\"N/A\",Ref!$B$36,INDEX(Ranks!$1:$1048576,$A190,CX$1))","v":""},{"$f":"IF($A190=\"N/A\",Ref!$B$36,INDEX(Ranks!$1:$1048576,$A190,CY$1))","v":""},{"$f":"IF($A190=\"N/A\",Ref!$B$36,INDEX(Ranks!$1:$1048576,$A190,CZ$1))","v":""},{"$f":"IF($A190=\"N/A\",Ref!$B$36,INDEX(Ranks!$1:$1048576,$A190,DA$1))","v":""},{"$f":"IF($A190=\"N/A\",Ref!$B$36,INDEX(Ranks!$1:$1048576,$A190,DB$1))","v":""},{"$f":"IF($A190=\"N/A\",Ref!$B$36,INDEX(Ranks!$1:$1048576,$A190,DC$1))","v":""},{"$f":"IF($A190=\"N/A\",Ref!$B$36,INDEX(Ranks!$1:$1048576,$A190,DD$1))","v":""},{"$f":"IF($A190=\"N/A\",Ref!$B$36,INDEX(Ranks!$1:$1048576,$A190,DE$1))","v":""},{"$f":"IF($A190=\"N/A\",Ref!$B$36,INDEX(Ranks!$1:$1048576,$A190,DF$1))","v":""},{"$f":"IF($A190=\"N/A\",Ref!$B$36,INDEX(Ranks!$1:$1048576,$A190,DG$1))","v":""},{"$f":"IF($A190=\"N/A\",Ref!$B$36,INDEX(Ranks!$1:$1048576,$A190,DH$1))","v":""},{"$f":"IF($A190=\"N/A\",Ref!$B$36,INDEX(Ranks!$1:$1048576,$A190,DI$1))","v":""},{"$f":"IF($A190=\"N/A\",Ref!$B$36,INDEX(Ranks!$1:$1048576,$A190,DJ$1))","v":""},{"$f":"IF($A190=\"N/A\",Ref!$B$36,INDEX(Ranks!$1:$1048576,$A190,DK$1))","v":""},{"$f":"IF($A190=\"N/A\",Ref!$B$36,INDEX(Ranks!$1:$1048576,$A190,DL$1))","v":""},{"$f":"IF($A190=\"N/A\",Ref!$B$36,INDEX(Ranks!$1:$1048576,$A190,DM$1))","v":""},{"$f":"IF($A190=\"N/A\",Ref!$B$36,INDEX(Ranks!$1:$1048576,$A190,DN$1))","v":""},{"$f":"IF($A190=\"N/A\",Ref!$B$36,INDEX(Ranks!$1:$1048576,$A190,DO$1))","v":""},{"$f":"IF($A190=\"N/A\",Ref!$B$36,INDEX(Ranks!$1:$1048576,$A190,DP$1))","v":""},{"$f":"IF($A190=\"N/A\",Ref!$B$36,INDEX(Ranks!$1:$1048576,$A190,DQ$1))","v":""},{"$f":"IF($A190=\"N/A\",Ref!$B$36,INDEX(Ranks!$1:$1048576,$A190,DR$1))","v":""},{"$f":"IF($A190=\"N/A\",Ref!$B$36,INDEX(Ranks!$1:$1048576,$A190,DS$1))","v":""},{"$f":"IF($A190=\"N/A\",Ref!$B$36,INDEX(Ranks!$1:$1048576,$A190,DT$1))","v":""},{"$f":"IF($A190=\"N/A\",Ref!$B$36,INDEX(Ranks!$1:$1048576,$A190,DU$1))","v":""},{"$f":"IF($A190=\"N/A\",Ref!$B$36,INDEX(Ranks!$1:$1048576,$A190,DV$1))","v":""},{"$f":"IF($A190=\"N/A\",Ref!$B$36,INDEX(Ranks!$1:$1048576,$A190,DW$1))","v":""},{"$f":"IF($A190=\"N/A\",Ref!$B$36,INDEX(Ranks!$1:$1048576,$A190,DX$1))","v":""},{"$f":"IF($A190=\"N/A\",Ref!$B$36,INDEX(Ranks!$1:$1048576,$A190,DY$1))","v":""},{"$f":"IF($A190=\"N/A\",Ref!$B$36,INDEX(Ranks!$1:$1048576,$A190,DZ$1))","v":""},{"$f":"IF($A190=\"N/A\",Ref!$B$36,INDEX(Ranks!$1:$1048576,$A190,EA$1))","v":""},{"$f":"IF($A190=\"N/A\",Ref!$B$36,INDEX(Ranks!$1:$1048576,$A190,EB$1))","v":""}]
[{"$f":"IFERROR(MATCH('Portfolio Page'!L191,Ranks!L:L,0),\"N/A\")","v":"N/A"},null,{"$f":"IF($A191=\"N/A\",\"\",INDEX(Ranks!$1:$1048576,$A191,C$1))","v":""},{"$f":"IF($A191=\"N/A\",Ref!$B$36,INDEX(Ranks!$1:$1048576,$A191,D$1))","v":""},{"$f":"IF($A191=\"N/A\",Ref!$B$36,INDEX(Ranks!$1:$1048576,$A191,E$1))","v":""},{"$f":"IF($A191=\"N/A\",\"\",INDEX(Ranks!$1:$1048576,$A191,F$1))","v":""},{"$f":"IF($A191=\"N/A\",\"\",INDEX(Ranks!$1:$1048576,$A191,G$1))","v":""},{"$f":"IF($A191=\"N/A\",\"\",INDEX(Ranks!$1:$1048576,$A191,H$1))","v":""},{"$f":"IF($A191=\"N/A\",\"\",INDEX(Ranks!$1:$1048576,$A191,I$1))","v":""},{"$f":"IF($A191=\"N/A\",\"\",INDEX(Ranks!$1:$1048576,$A191,J$1))","v":""},{"$f":"IF($A191=\"N/A\",\"\",INDEX(Ranks!$1:$1048576,$A191,K$1))","v":""},null,{"$f":"IF($A191=\"N/A\",Ref!$B$36,INDEX(Ranks!$1:$1048576,$A191,M$1))","v":""},{"$f":"IF($A191=\"N/A\",Ref!$B$36,INDEX(Ranks!$1:$1048576,$A191,N$1))","v":""},{"$f":"IF($A191=\"N/A\",Ref!$B$36,INDEX(Ranks!$1:$1048576,$A191,O$1))","v":""},{"$f":"IF($A191=\"N/A\",Ref!$B$36,INDEX(Ranks!$1:$1048576,$A191,P$1))","v":""},{"$f":"IF($A191=\"N/A\",Ref!$B$36,INDEX(Ranks!$1:$1048576,$A191,Q$1))","v":""},{"$f":"IF($A191=\"N/A\",Ref!$B$36,INDEX(Ranks!$1:$1048576,$A191,R$1))","v":""},{"$f":"IF($A191=\"N/A\",Ref!$B$36,INDEX(Ranks!$1:$1048576,$A191,S$1))","v":""},{"$f":"IF($A191=\"N/A\",Ref!$B$36,INDEX(Ranks!$1:$1048576,$A191,T$1))","v":""},{"$f":"IF($A191=\"N/A\",Ref!$B$36,INDEX(Ranks!$1:$1048576,$A191,U$1))","v":""},{"$f":"IF($A191=\"N/A\",Ref!$B$36,INDEX(Ranks!$1:$1048576,$A191,V$1))","v":""},{"$f":"IF($A191=\"N/A\",Ref!$B$36,INDEX(Ranks!$1:$1048576,$A191,W$1))","v":""},{"$f":"IF($A191=\"N/A\",Ref!$B$36,INDEX(Ranks!$1:$1048576,$A191,X$1))","v":""},{"$f":"IF($A191=\"N/A\",Ref!$B$36,INDEX(Ranks!$1:$1048576,$A191,Y$1))","v":""},{"$f":"IF($A191=\"N/A\",Ref!$B$36,INDEX(Ranks!$1:$1048576,$A191,Z$1))","v":""},{"$f":"IF($A191=\"N/A\",Ref!$B$36,INDEX(Ranks!$1:$1048576,$A191,AA$1))","v":""},{"$f":"IF($A191=\"N/A\",Ref!$B$36,INDEX(Ranks!$1:$1048576,$A191,AB$1))","v":""},{"$f":"IF($A191=\"N/A\",Ref!$B$36,INDEX(Ranks!$1:$1048576,$A191,AC$1))","v":""},{"$f":"IF($A191=\"N/A\",Ref!$B$36,INDEX(Ranks!$1:$1048576,$A191,AD$1))","v":""},{"$f":"IF($A191=\"N/A\",Ref!$B$36,INDEX(Ranks!$1:$1048576,$A191,AE$1))","v":""},{"$f":"IF($A191=\"N/A\",Ref!$B$36,INDEX(Ranks!$1:$1048576,$A191,AF$1))","v":""},{"$f":"IF($A191=\"N/A\",Ref!$B$36,INDEX(Ranks!$1:$1048576,$A191,AG$1))","v":""},{"$f":"IF($A191=\"N/A\",Ref!$B$36,INDEX(Ranks!$1:$1048576,$A191,AH$1))","v":""},{"$f":"IF($A191=\"N/A\",Ref!$B$36,INDEX(Ranks!$1:$1048576,$A191,AI$1))","v":""},{"$f":"IF($A191=\"N/A\",Ref!$B$36,INDEX(Ranks!$1:$1048576,$A191,AJ$1))","v":""},{"$f":"IF($A191=\"N/A\",Ref!$B$36,INDEX(Ranks!$1:$1048576,$A191,AK$1))","v":""},{"$f":"IF($A191=\"N/A\",Ref!$B$36,INDEX(Ranks!$1:$1048576,$A191,AL$1))","v":""},{"$f":"IF($A191=\"N/A\",Ref!$B$36,INDEX(Ranks!$1:$1048576,$A191,AM$1))","v":""},{"$f":"IF($A191=\"N/A\",Ref!$B$36,INDEX(Ranks!$1:$1048576,$A191,AN$1))","v":""},{"$f":"IF($A191=\"N/A\",Ref!$B$36,INDEX(Ranks!$1:$1048576,$A191,AO$1))","v":""},{"$f":"IF($A191=\"N/A\",Ref!$B$36,INDEX(Ranks!$1:$1048576,$A191,AP$1))","v":""},{"$f":"IF($A191=\"N/A\",Ref!$B$36,INDEX(Ranks!$1:$1048576,$A191,AQ$1))","v":""},{"$f":"IF($A191=\"N/A\",Ref!$B$36,INDEX(Ranks!$1:$1048576,$A191,AR$1))","v":""},{"$f":"IF($A191=\"N/A\",Ref!$B$36,INDEX(Ranks!$1:$1048576,$A191,AS$1))","v":""},{"$f":"IF($A191=\"N/A\",Ref!$B$36,INDEX(Ranks!$1:$1048576,$A191,AT$1))","v":""},{"$f":"IF($A191=\"N/A\",Ref!$B$36,INDEX(Ranks!$1:$1048576,$A191,AU$1))","v":""},{"$f":"IF($A191=\"N/A\",Ref!$B$36,INDEX(Ranks!$1:$1048576,$A191,AV$1))","v":""},{"$f":"IF($A191=\"N/A\",Ref!$B$36,INDEX(Ranks!$1:$1048576,$A191,AW$1))","v":""},{"$f":"IF($A191=\"N/A\",Ref!$B$36,INDEX(Ranks!$1:$1048576,$A191,AX$1))","v":""},{"$f":"IF($A191=\"N/A\",Ref!$B$36,INDEX(Ranks!$1:$1048576,$A191,AY$1))","v":""},{"$f":"IF($A191=\"N/A\",Ref!$B$36,INDEX(Ranks!$1:$1048576,$A191,AZ$1))","v":""},{"$f":"IF($A191=\"N/A\",Ref!$B$36,INDEX(Ranks!$1:$1048576,$A191,BA$1))","v":""},{"$f":"IF($A191=\"N/A\",Ref!$B$36,INDEX(Ranks!$1:$1048576,$A191,BB$1))","v":""},{"$f":"IF($A191=\"N/A\",Ref!$B$36,INDEX(Ranks!$1:$1048576,$A191,BC$1))","v":""},{"$f":"IF($A191=\"N/A\",Ref!$B$36,INDEX(Ranks!$1:$1048576,$A191,BD$1))","v":""},{"$f":"IF($A191=\"N/A\",Ref!$B$36,INDEX(Ranks!$1:$1048576,$A191,BE$1))","v":""},{"$f":"IF($A191=\"N/A\",Ref!$B$36,INDEX(Ranks!$1:$1048576,$A191,BF$1))","v":""},{"$f":"IF($A191=\"N/A\",Ref!$B$36,INDEX(Ranks!$1:$1048576,$A191,BG$1))","v":""},{"$f":"IF($A191=\"N/A\",Ref!$B$36,INDEX(Ranks!$1:$1048576,$A191,BH$1))","v":""},{"$f":"IF($A191=\"N/A\",Ref!$B$36,INDEX(Ranks!$1:$1048576,$A191,BI$1))","v":""},{"$f":"IF($A191=\"N/A\",Ref!$B$36,INDEX(Ranks!$1:$1048576,$A191,BJ$1))","v":""},{"$f":"IF($A191=\"N/A\",Ref!$B$36,INDEX(Ranks!$1:$1048576,$A191,BK$1))","v":""},{"$f":"IF($A191=\"N/A\",Ref!$B$36,INDEX(Ranks!$1:$1048576,$A191,BL$1))","v":""},{"$f":"IF($A191=\"N/A\",Ref!$B$36,INDEX(Ranks!$1:$1048576,$A191,BM$1))","v":""},{"$f":"IF($A191=\"N/A\",Ref!$B$36,INDEX(Ranks!$1:$1048576,$A191,BN$1))","v":""},{"$f":"IF($A191=\"N/A\",Ref!$B$36,INDEX(Ranks!$1:$1048576,$A191,BO$1))","v":""},{"$f":"IF($A191=\"N/A\",Ref!$B$36,INDEX(Ranks!$1:$1048576,$A191,BP$1))","v":""},{"$f":"IF($A191=\"N/A\",Ref!$B$36,INDEX(Ranks!$1:$1048576,$A191,BQ$1))","v":""},{"$f":"IF($A191=\"N/A\",Ref!$B$36,INDEX(Ranks!$1:$1048576,$A191,BR$1))","v":""},{"$f":"IF($A191=\"N/A\",Ref!$B$36,INDEX(Ranks!$1:$1048576,$A191,BS$1))","v":""},{"$f":"IF($A191=\"N/A\",Ref!$B$36,INDEX(Ranks!$1:$1048576,$A191,BT$1))","v":""},{"$f":"IF($A191=\"N/A\",Ref!$B$36,INDEX(Ranks!$1:$1048576,$A191,BU$1))","v":""},{"$f":"IF($A191=\"N/A\",Ref!$B$36,INDEX(Ranks!$1:$1048576,$A191,BV$1))","v":""},{"$f":"IF($A191=\"N/A\",Ref!$B$36,INDEX(Ranks!$1:$1048576,$A191,BW$1))","v":""},{"$f":"IF($A191=\"N/A\",Ref!$B$36,INDEX(Ranks!$1:$1048576,$A191,BX$1))","v":""},{"$f":"IF($A191=\"N/A\",Ref!$B$36,INDEX(Ranks!$1:$1048576,$A191,BY$1))","v":""},{"$f":"IF($A191=\"N/A\",Ref!$B$36,INDEX(Ranks!$1:$1048576,$A191,BZ$1))","v":""},{"$f":"IF($A191=\"N/A\",Ref!$B$36,INDEX(Ranks!$1:$1048576,$A191,CA$1))","v":""},{"$f":"IF($A191=\"N/A\",Ref!$B$36,INDEX(Ranks!$1:$1048576,$A191,CB$1))","v":""},{"$f":"IF($A191=\"N/A\",Ref!$B$36,INDEX(Ranks!$1:$1048576,$A191,CC$1))","v":""},{"$f":"IF($A191=\"N/A\",Ref!$B$36,INDEX(Ranks!$1:$1048576,$A191,CD$1))","v":""},{"$f":"IF($A191=\"N/A\",Ref!$B$36,INDEX(Ranks!$1:$1048576,$A191,CE$1))","v":""},{"$f":"IF($A191=\"N/A\",Ref!$B$36,INDEX(Ranks!$1:$1048576,$A191,CF$1))","v":""},{"$f":"IF($A191=\"N/A\",Ref!$B$36,INDEX(Ranks!$1:$1048576,$A191,CG$1))","v":""},{"$f":"IF($A191=\"N/A\",Ref!$B$36,INDEX(Ranks!$1:$1048576,$A191,CH$1))","v":""},{"$f":"IF($A191=\"N/A\",Ref!$B$36,INDEX(Ranks!$1:$1048576,$A191,CI$1))","v":""},{"$f":"IF($A191=\"N/A\",Ref!$B$36,INDEX(Ranks!$1:$1048576,$A191,CJ$1))","v":""},{"$f":"IF($A191=\"N/A\",Ref!$B$36,INDEX(Ranks!$1:$1048576,$A191,CK$1))","v":""},{"$f":"IF($A191=\"N/A\",Ref!$B$36,INDEX(Ranks!$1:$1048576,$A191,CL$1))","v":""},{"$f":"IF($A191=\"N/A\",Ref!$B$36,INDEX(Ranks!$1:$1048576,$A191,CM$1))","v":""},{"$f":"IF($A191=\"N/A\",Ref!$B$36,INDEX(Ranks!$1:$1048576,$A191,CN$1))","v":""},{"$f":"IF($A191=\"N/A\",Ref!$B$36,INDEX(Ranks!$1:$1048576,$A191,CO$1))","v":""},{"$f":"IF($A191=\"N/A\",Ref!$B$36,INDEX(Ranks!$1:$1048576,$A191,CP$1))","v":""},{"$f":"IF($A191=\"N/A\",Ref!$B$36,INDEX(Ranks!$1:$1048576,$A191,CQ$1))","v":""},{"$f":"IF($A191=\"N/A\",Ref!$B$36,INDEX(Ranks!$1:$1048576,$A191,CR$1))","v":""},{"$f":"IF($A191=\"N/A\",Ref!$B$36,INDEX(Ranks!$1:$1048576,$A191,CS$1))","v":""},{"$f":"IF($A191=\"N/A\",Ref!$B$36,INDEX(Ranks!$1:$1048576,$A191,CT$1))","v":""},{"$f":"IF($A191=\"N/A\",Ref!$B$36,INDEX(Ranks!$1:$1048576,$A191,CU$1))","v":""},{"$f":"IF($A191=\"N/A\",Ref!$B$36,INDEX(Ranks!$1:$1048576,$A191,CV$1))","v":""},{"$f":"IF($A191=\"N/A\",Ref!$B$36,INDEX(Ranks!$1:$1048576,$A191,CW$1))","v":""},{"$f":"IF($A191=\"N/A\",Ref!$B$36,INDEX(Ranks!$1:$1048576,$A191,CX$1))","v":""},{"$f":"IF($A191=\"N/A\",Ref!$B$36,INDEX(Ranks!$1:$1048576,$A191,CY$1))","v":""},{"$f":"IF($A191=\"N/A\",Ref!$B$36,INDEX(Ranks!$1:$1048576,$A191,CZ$1))","v":""},{"$f":"IF($A191=\"N/A\",Ref!$B$36,INDEX(Ranks!$1:$1048576,$A191,DA$1))","v":""},{"$f":"IF($A191=\"N/A\",Ref!$B$36,INDEX(Ranks!$1:$1048576,$A191,DB$1))","v":""},{"$f":"IF($A191=\"N/A\",Ref!$B$36,INDEX(Ranks!$1:$1048576,$A191,DC$1))","v":""},{"$f":"IF($A191=\"N/A\",Ref!$B$36,INDEX(Ranks!$1:$1048576,$A191,DD$1))","v":""},{"$f":"IF($A191=\"N/A\",Ref!$B$36,INDEX(Ranks!$1:$1048576,$A191,DE$1))","v":""},{"$f":"IF($A191=\"N/A\",Ref!$B$36,INDEX(Ranks!$1:$1048576,$A191,DF$1))","v":""},{"$f":"IF($A191=\"N/A\",Ref!$B$36,INDEX(Ranks!$1:$1048576,$A191,DG$1))","v":""},{"$f":"IF($A191=\"N/A\",Ref!$B$36,INDEX(Ranks!$1:$1048576,$A191,DH$1))","v":""},{"$f":"IF($A191=\"N/A\",Ref!$B$36,INDEX(Ranks!$1:$1048576,$A191,DI$1))","v":""},{"$f":"IF($A191=\"N/A\",Ref!$B$36,INDEX(Ranks!$1:$1048576,$A191,DJ$1))","v":""},{"$f":"IF($A191=\"N/A\",Ref!$B$36,INDEX(Ranks!$1:$1048576,$A191,DK$1))","v":""},{"$f":"IF($A191=\"N/A\",Ref!$B$36,INDEX(Ranks!$1:$1048576,$A191,DL$1))","v":""},{"$f":"IF($A191=\"N/A\",Ref!$B$36,INDEX(Ranks!$1:$1048576,$A191,DM$1))","v":""},{"$f":"IF($A191=\"N/A\",Ref!$B$36,INDEX(Ranks!$1:$1048576,$A191,DN$1))","v":""},{"$f":"IF($A191=\"N/A\",Ref!$B$36,INDEX(Ranks!$1:$1048576,$A191,DO$1))","v":""},{"$f":"IF($A191=\"N/A\",Ref!$B$36,INDEX(Ranks!$1:$1048576,$A191,DP$1))","v":""},{"$f":"IF($A191=\"N/A\",Ref!$B$36,INDEX(Ranks!$1:$1048576,$A191,DQ$1))","v":""},{"$f":"IF($A191=\"N/A\",Ref!$B$36,INDEX(Ranks!$1:$1048576,$A191,DR$1))","v":""},{"$f":"IF($A191=\"N/A\",Ref!$B$36,INDEX(Ranks!$1:$1048576,$A191,DS$1))","v":""},{"$f":"IF($A191=\"N/A\",Ref!$B$36,INDEX(Ranks!$1:$1048576,$A191,DT$1))","v":""},{"$f":"IF($A191=\"N/A\",Ref!$B$36,INDEX(Ranks!$1:$1048576,$A191,DU$1))","v":""},{"$f":"IF($A191=\"N/A\",Ref!$B$36,INDEX(Ranks!$1:$1048576,$A191,DV$1))","v":""},{"$f":"IF($A191=\"N/A\",Ref!$B$36,INDEX(Ranks!$1:$1048576,$A191,DW$1))","v":""},{"$f":"IF($A191=\"N/A\",Ref!$B$36,INDEX(Ranks!$1:$1048576,$A191,DX$1))","v":""},{"$f":"IF($A191=\"N/A\",Ref!$B$36,INDEX(Ranks!$1:$1048576,$A191,DY$1))","v":""},{"$f":"IF($A191=\"N/A\",Ref!$B$36,INDEX(Ranks!$1:$1048576,$A191,DZ$1))","v":""},{"$f":"IF($A191=\"N/A\",Ref!$B$36,INDEX(Ranks!$1:$1048576,$A191,EA$1))","v":""},{"$f":"IF($A191=\"N/A\",Ref!$B$36,INDEX(Ranks!$1:$1048576,$A191,EB$1))","v":""}]
[{"$f":"IFERROR(MATCH('Portfolio Page'!L192,Ranks!L:L,0),\"N/A\")","v":"N/A"},null,{"$f":"IF($A192=\"N/A\",\"\",INDEX(Ranks!$1:$1048576,$A192,C$1))","v":""},{"$f":"IF($A192=\"N/A\",Ref!$B$36,INDEX(Ranks!$1:$1048576,$A192,D$1))","v":""},{"$f":"IF($A192=\"N/A\",Ref!$B$36,INDEX(Ranks!$1:$1048576,$A192,E$1))","v":""},{"$f":"IF($A192=\"N/A\",\"\",INDEX(Ranks!$1:$1048576,$A192,F$1))","v":""},{"$f":"IF($A192=\"N/A\",\"\",INDEX(Ranks!$1:$1048576,$A192,G$1))","v":""},{"$f":"IF($A192=\"N/A\",\"\",INDEX(Ranks!$1:$1048576,$A192,H$1))","v":""},{"$f":"IF($A192=\"N/A\",\"\",INDEX(Ranks!$1:$1048576,$A192,I$1))","v":""},{"$f":"IF($A192=\"N/A\",\"\",INDEX(Ranks!$1:$1048576,$A192,J$1))","v":""},{"$f":"IF($A192=\"N/A\",\"\",INDEX(Ranks!$1:$1048576,$A192,K$1))","v":""},null,{"$f":"IF($A192=\"N/A\",Ref!$B$36,INDEX(Ranks!$1:$1048576,$A192,M$1))","v":""},{"$f":"IF($A192=\"N/A\",Ref!$B$36,INDEX(Ranks!$1:$1048576,$A192,N$1))","v":""},{"$f":"IF($A192=\"N/A\",Ref!$B$36,INDEX(Ranks!$1:$1048576,$A192,O$1))","v":""},{"$f":"IF($A192=\"N/A\",Ref!$B$36,INDEX(Ranks!$1:$1048576,$A192,P$1))","v":""},{"$f":"IF($A192=\"N/A\",Ref!$B$36,INDEX(Ranks!$1:$1048576,$A192,Q$1))","v":""},{"$f":"IF($A192=\"N/A\",Ref!$B$36,INDEX(Ranks!$1:$1048576,$A192,R$1))","v":""},{"$f":"IF($A192=\"N/A\",Ref!$B$36,INDEX(Ranks!$1:$1048576,$A192,S$1))","v":""},{"$f":"IF($A192=\"N/A\",Ref!$B$36,INDEX(Ranks!$1:$1048576,$A192,T$1))","v":""},{"$f":"IF($A192=\"N/A\",Ref!$B$36,INDEX(Ranks!$1:$1048576,$A192,U$1))","v":""},{"$f":"IF($A192=\"N/A\",Ref!$B$36,INDEX(Ranks!$1:$1048576,$A192,V$1))","v":""},{"$f":"IF($A192=\"N/A\",Ref!$B$36,INDEX(Ranks!$1:$1048576,$A192,W$1))","v":""},{"$f":"IF($A192=\"N/A\",Ref!$B$36,INDEX(Ranks!$1:$1048576,$A192,X$1))","v":""},{"$f":"IF($A192=\"N/A\",Ref!$B$36,INDEX(Ranks!$1:$1048576,$A192,Y$1))","v":""},{"$f":"IF($A192=\"N/A\",Ref!$B$36,INDEX(Ranks!$1:$1048576,$A192,Z$1))","v":""},{"$f":"IF($A192=\"N/A\",Ref!$B$36,INDEX(Ranks!$1:$1048576,$A192,AA$1))","v":""},{"$f":"IF($A192=\"N/A\",Ref!$B$36,INDEX(Ranks!$1:$1048576,$A192,AB$1))","v":""},{"$f":"IF($A192=\"N/A\",Ref!$B$36,INDEX(Ranks!$1:$1048576,$A192,AC$1))","v":""},{"$f":"IF($A192=\"N/A\",Ref!$B$36,INDEX(Ranks!$1:$1048576,$A192,AD$1))","v":""},{"$f":"IF($A192=\"N/A\",Ref!$B$36,INDEX(Ranks!$1:$1048576,$A192,AE$1))","v":""},{"$f":"IF($A192=\"N/A\",Ref!$B$36,INDEX(Ranks!$1:$1048576,$A192,AF$1))","v":""},{"$f":"IF($A192=\"N/A\",Ref!$B$36,INDEX(Ranks!$1:$1048576,$A192,AG$1))","v":""},{"$f":"IF($A192=\"N/A\",Ref!$B$36,INDEX(Ranks!$1:$1048576,$A192,AH$1))","v":""},{"$f":"IF($A192=\"N/A\",Ref!$B$36,INDEX(Ranks!$1:$1048576,$A192,AI$1))","v":""},{"$f":"IF($A192=\"N/A\",Ref!$B$36,INDEX(Ranks!$1:$1048576,$A192,AJ$1))","v":""},{"$f":"IF($A192=\"N/A\",Ref!$B$36,INDEX(Ranks!$1:$1048576,$A192,AK$1))","v":""},{"$f":"IF($A192=\"N/A\",Ref!$B$36,INDEX(Ranks!$1:$1048576,$A192,AL$1))","v":""},{"$f":"IF($A192=\"N/A\",Ref!$B$36,INDEX(Ranks!$1:$1048576,$A192,AM$1))","v":""},{"$f":"IF($A192=\"N/A\",Ref!$B$36,INDEX(Ranks!$1:$1048576,$A192,AN$1))","v":""},{"$f":"IF($A192=\"N/A\",Ref!$B$36,INDEX(Ranks!$1:$1048576,$A192,AO$1))","v":""},{"$f":"IF($A192=\"N/A\",Ref!$B$36,INDEX(Ranks!$1:$1048576,$A192,AP$1))","v":""},{"$f":"IF($A192=\"N/A\",Ref!$B$36,INDEX(Ranks!$1:$1048576,$A192,AQ$1))","v":""},{"$f":"IF($A192=\"N/A\",Ref!$B$36,INDEX(Ranks!$1:$1048576,$A192,AR$1))","v":""},{"$f":"IF($A192=\"N/A\",Ref!$B$36,INDEX(Ranks!$1:$1048576,$A192,AS$1))","v":""},{"$f":"IF($A192=\"N/A\",Ref!$B$36,INDEX(Ranks!$1:$1048576,$A192,AT$1))","v":""},{"$f":"IF($A192=\"N/A\",Ref!$B$36,INDEX(Ranks!$1:$1048576,$A192,AU$1))","v":""},{"$f":"IF($A192=\"N/A\",Ref!$B$36,INDEX(Ranks!$1:$1048576,$A192,AV$1))","v":""},{"$f":"IF($A192=\"N/A\",Ref!$B$36,INDEX(Ranks!$1:$1048576,$A192,AW$1))","v":""},{"$f":"IF($A192=\"N/A\",Ref!$B$36,INDEX(Ranks!$1:$1048576,$A192,AX$1))","v":""},{"$f":"IF($A192=\"N/A\",Ref!$B$36,INDEX(Ranks!$1:$1048576,$A192,AY$1))","v":""},{"$f":"IF($A192=\"N/A\",Ref!$B$36,INDEX(Ranks!$1:$1048576,$A192,AZ$1))","v":""},{"$f":"IF($A192=\"N/A\",Ref!$B$36,INDEX(Ranks!$1:$1048576,$A192,BA$1))","v":""},{"$f":"IF($A192=\"N/A\",Ref!$B$36,INDEX(Ranks!$1:$1048576,$A192,BB$1))","v":""},{"$f":"IF($A192=\"N/A\",Ref!$B$36,INDEX(Ranks!$1:$1048576,$A192,BC$1))","v":""},{"$f":"IF($A192=\"N/A\",Ref!$B$36,INDEX(Ranks!$1:$1048576,$A192,BD$1))","v":""},{"$f":"IF($A192=\"N/A\",Ref!$B$36,INDEX(Ranks!$1:$1048576,$A192,BE$1))","v":""},{"$f":"IF($A192=\"N/A\",Ref!$B$36,INDEX(Ranks!$1:$1048576,$A192,BF$1))","v":""},{"$f":"IF($A192=\"N/A\",Ref!$B$36,INDEX(Ranks!$1:$1048576,$A192,BG$1))","v":""},{"$f":"IF($A192=\"N/A\",Ref!$B$36,INDEX(Ranks!$1:$1048576,$A192,BH$1))","v":""},{"$f":"IF($A192=\"N/A\",Ref!$B$36,INDEX(Ranks!$1:$1048576,$A192,BI$1))","v":""},{"$f":"IF($A192=\"N/A\",Ref!$B$36,INDEX(Ranks!$1:$1048576,$A192,BJ$1))","v":""},{"$f":"IF($A192=\"N/A\",Ref!$B$36,INDEX(Ranks!$1:$1048576,$A192,BK$1))","v":""},{"$f":"IF($A192=\"N/A\",Ref!$B$36,INDEX(Ranks!$1:$1048576,$A192,BL$1))","v":""},{"$f":"IF($A192=\"N/A\",Ref!$B$36,INDEX(Ranks!$1:$1048576,$A192,BM$1))","v":""},{"$f":"IF($A192=\"N/A\",Ref!$B$36,INDEX(Ranks!$1:$1048576,$A192,BN$1))","v":""},{"$f":"IF($A192=\"N/A\",Ref!$B$36,INDEX(Ranks!$1:$1048576,$A192,BO$1))","v":""},{"$f":"IF($A192=\"N/A\",Ref!$B$36,INDEX(Ranks!$1:$1048576,$A192,BP$1))","v":""},{"$f":"IF($A192=\"N/A\",Ref!$B$36,INDEX(Ranks!$1:$1048576,$A192,BQ$1))","v":""},{"$f":"IF($A192=\"N/A\",Ref!$B$36,INDEX(Ranks!$1:$1048576,$A192,BR$1))","v":""},{"$f":"IF($A192=\"N/A\",Ref!$B$36,INDEX(Ranks!$1:$1048576,$A192,BS$1))","v":""},{"$f":"IF($A192=\"N/A\",Ref!$B$36,INDEX(Ranks!$1:$1048576,$A192,BT$1))","v":""},{"$f":"IF($A192=\"N/A\",Ref!$B$36,INDEX(Ranks!$1:$1048576,$A192,BU$1))","v":""},{"$f":"IF($A192=\"N/A\",Ref!$B$36,INDEX(Ranks!$1:$1048576,$A192,BV$1))","v":""},{"$f":"IF($A192=\"N/A\",Ref!$B$36,INDEX(Ranks!$1:$1048576,$A192,BW$1))","v":""},{"$f":"IF($A192=\"N/A\",Ref!$B$36,INDEX(Ranks!$1:$1048576,$A192,BX$1))","v":""},{"$f":"IF($A192=\"N/A\",Ref!$B$36,INDEX(Ranks!$1:$1048576,$A192,BY$1))","v":""},{"$f":"IF($A192=\"N/A\",Ref!$B$36,INDEX(Ranks!$1:$1048576,$A192,BZ$1))","v":""},{"$f":"IF($A192=\"N/A\",Ref!$B$36,INDEX(Ranks!$1:$1048576,$A192,CA$1))","v":""},{"$f":"IF($A192=\"N/A\",Ref!$B$36,INDEX(Ranks!$1:$1048576,$A192,CB$1))","v":""},{"$f":"IF($A192=\"N/A\",Ref!$B$36,INDEX(Ranks!$1:$1048576,$A192,CC$1))","v":""},{"$f":"IF($A192=\"N/A\",Ref!$B$36,INDEX(Ranks!$1:$1048576,$A192,CD$1))","v":""},{"$f":"IF($A192=\"N/A\",Ref!$B$36,INDEX(Ranks!$1:$1048576,$A192,CE$1))","v":""},{"$f":"IF($A192=\"N/A\",Ref!$B$36,INDEX(Ranks!$1:$1048576,$A192,CF$1))","v":""},{"$f":"IF($A192=\"N/A\",Ref!$B$36,INDEX(Ranks!$1:$1048576,$A192,CG$1))","v":""},{"$f":"IF($A192=\"N/A\",Ref!$B$36,INDEX(Ranks!$1:$1048576,$A192,CH$1))","v":""},{"$f":"IF($A192=\"N/A\",Ref!$B$36,INDEX(Ranks!$1:$1048576,$A192,CI$1))","v":""},{"$f":"IF($A192=\"N/A\",Ref!$B$36,INDEX(Ranks!$1:$1048576,$A192,CJ$1))","v":""},{"$f":"IF($A192=\"N/A\",Ref!$B$36,INDEX(Ranks!$1:$1048576,$A192,CK$1))","v":""},{"$f":"IF($A192=\"N/A\",Ref!$B$36,INDEX(Ranks!$1:$1048576,$A192,CL$1))","v":""},{"$f":"IF($A192=\"N/A\",Ref!$B$36,INDEX(Ranks!$1:$1048576,$A192,CM$1))","v":""},{"$f":"IF($A192=\"N/A\",Ref!$B$36,INDEX(Ranks!$1:$1048576,$A192,CN$1))","v":""},{"$f":"IF($A192=\"N/A\",Ref!$B$36,INDEX(Ranks!$1:$1048576,$A192,CO$1))","v":""},{"$f":"IF($A192=\"N/A\",Ref!$B$36,INDEX(Ranks!$1:$1048576,$A192,CP$1))","v":""},{"$f":"IF($A192=\"N/A\",Ref!$B$36,INDEX(Ranks!$1:$1048576,$A192,CQ$1))","v":""},{"$f":"IF($A192=\"N/A\",Ref!$B$36,INDEX(Ranks!$1:$1048576,$A192,CR$1))","v":""},{"$f":"IF($A192=\"N/A\",Ref!$B$36,INDEX(Ranks!$1:$1048576,$A192,CS$1))","v":""},{"$f":"IF($A192=\"N/A\",Ref!$B$36,INDEX(Ranks!$1:$1048576,$A192,CT$1))","v":""},{"$f":"IF($A192=\"N/A\",Ref!$B$36,INDEX(Ranks!$1:$1048576,$A192,CU$1))","v":""},{"$f":"IF($A192=\"N/A\",Ref!$B$36,INDEX(Ranks!$1:$1048576,$A192,CV$1))","v":""},{"$f":"IF($A192=\"N/A\",Ref!$B$36,INDEX(Ranks!$1:$1048576,$A192,CW$1))","v":""},{"$f":"IF($A192=\"N/A\",Ref!$B$36,INDEX(Ranks!$1:$1048576,$A192,CX$1))","v":""},{"$f":"IF($A192=\"N/A\",Ref!$B$36,INDEX(Ranks!$1:$1048576,$A192,CY$1))","v":""},{"$f":"IF($A192=\"N/A\",Ref!$B$36,INDEX(Ranks!$1:$1048576,$A192,CZ$1))","v":""},{"$f":"IF($A192=\"N/A\",Ref!$B$36,INDEX(Ranks!$1:$1048576,$A192,DA$1))","v":""},{"$f":"IF($A192=\"N/A\",Ref!$B$36,INDEX(Ranks!$1:$1048576,$A192,DB$1))","v":""},{"$f":"IF($A192=\"N/A\",Ref!$B$36,INDEX(Ranks!$1:$1048576,$A192,DC$1))","v":""},{"$f":"IF($A192=\"N/A\",Ref!$B$36,INDEX(Ranks!$1:$1048576,$A192,DD$1))","v":""},{"$f":"IF($A192=\"N/A\",Ref!$B$36,INDEX(Ranks!$1:$1048576,$A192,DE$1))","v":""},{"$f":"IF($A192=\"N/A\",Ref!$B$36,INDEX(Ranks!$1:$1048576,$A192,DF$1))","v":""},{"$f":"IF($A192=\"N/A\",Ref!$B$36,INDEX(Ranks!$1:$1048576,$A192,DG$1))","v":""},{"$f":"IF($A192=\"N/A\",Ref!$B$36,INDEX(Ranks!$1:$1048576,$A192,DH$1))","v":""},{"$f":"IF($A192=\"N/A\",Ref!$B$36,INDEX(Ranks!$1:$1048576,$A192,DI$1))","v":""},{"$f":"IF($A192=\"N/A\",Ref!$B$36,INDEX(Ranks!$1:$1048576,$A192,DJ$1))","v":""},{"$f":"IF($A192=\"N/A\",Ref!$B$36,INDEX(Ranks!$1:$1048576,$A192,DK$1))","v":""},{"$f":"IF($A192=\"N/A\",Ref!$B$36,INDEX(Ranks!$1:$1048576,$A192,DL$1))","v":""},{"$f":"IF($A192=\"N/A\",Ref!$B$36,INDEX(Ranks!$1:$1048576,$A192,DM$1))","v":""},{"$f":"IF($A192=\"N/A\",Ref!$B$36,INDEX(Ranks!$1:$1048576,$A192,DN$1))","v":""},{"$f":"IF($A192=\"N/A\",Ref!$B$36,INDEX(Ranks!$1:$1048576,$A192,DO$1))","v":""},{"$f":"IF($A192=\"N/A\",Ref!$B$36,INDEX(Ranks!$1:$1048576,$A192,DP$1))","v":""},{"$f":"IF($A192=\"N/A\",Ref!$B$36,INDEX(Ranks!$1:$1048576,$A192,DQ$1))","v":""},{"$f":"IF($A192=\"N/A\",Ref!$B$36,INDEX(Ranks!$1:$1048576,$A192,DR$1))","v":""},{"$f":"IF($A192=\"N/A\",Ref!$B$36,INDEX(Ranks!$1:$1048576,$A192,DS$1))","v":""},{"$f":"IF($A192=\"N/A\",Ref!$B$36,INDEX(Ranks!$1:$1048576,$A192,DT$1))","v":""},{"$f":"IF($A192=\"N/A\",Ref!$B$36,INDEX(Ranks!$1:$1048576,$A192,DU$1))","v":""},{"$f":"IF($A192=\"N/A\",Ref!$B$36,INDEX(Ranks!$1:$1048576,$A192,DV$1))","v":""},{"$f":"IF($A192=\"N/A\",Ref!$B$36,INDEX(Ranks!$1:$1048576,$A192,DW$1))","v":""},{"$f":"IF($A192=\"N/A\",Ref!$B$36,INDEX(Ranks!$1:$1048576,$A192,DX$1))","v":""},{"$f":"IF($A192=\"N/A\",Ref!$B$36,INDEX(Ranks!$1:$1048576,$A192,DY$1))","v":""},{"$f":"IF($A192=\"N/A\",Ref!$B$36,INDEX(Ranks!$1:$1048576,$A192,DZ$1))","v":""},{"$f":"IF($A192=\"N/A\",Ref!$B$36,INDEX(Ranks!$1:$1048576,$A192,EA$1))","v":""},{"$f":"IF($A192=\"N/A\",Ref!$B$36,INDEX(Ranks!$1:$1048576,$A192,EB$1))","v":""}]
[{"$f":"IFERROR(MATCH('Portfolio Page'!L193,Ranks!L:L,0),\"N/A\")","v":"N/A"},null,{"$f":"IF($A193=\"N/A\",\"\",INDEX(Ranks!$1:$1048576,$A193,C$1))","v":""},{"$f":"IF($A193=\"N/A\",Ref!$B$36,INDEX(Ranks!$1:$1048576,$A193,D$1))","v":""},{"$f":"IF($A193=\"N/A\",Ref!$B$36,INDEX(Ranks!$1:$1048576,$A193,E$1))","v":""},{"$f":"IF($A193=\"N/A\",\"\",INDEX(Ranks!$1:$1048576,$A193,F$1))","v":""},{"$f":"IF($A193=\"N/A\",\"\",INDEX(Ranks!$1:$1048576,$A193,G$1))","v":""},{"$f":"IF($A193=\"N/A\",\"\",INDEX(Ranks!$1:$1048576,$A193,H$1))","v":""},{"$f":"IF($A193=\"N/A\",\"\",INDEX(Ranks!$1:$1048576,$A193,I$1))","v":""},{"$f":"IF($A193=\"N/A\",\"\",INDEX(Ranks!$1:$1048576,$A193,J$1))","v":""},{"$f":"IF($A193=\"N/A\",\"\",INDEX(Ranks!$1:$1048576,$A193,K$1))","v":""},null,{"$f":"IF($A193=\"N/A\",Ref!$B$36,INDEX(Ranks!$1:$1048576,$A193,M$1))","v":""},{"$f":"IF($A193=\"N/A\",Ref!$B$36,INDEX(Ranks!$1:$1048576,$A193,N$1))","v":""},{"$f":"IF($A193=\"N/A\",Ref!$B$36,INDEX(Ranks!$1:$1048576,$A193,O$1))","v":""},{"$f":"IF($A193=\"N/A\",Ref!$B$36,INDEX(Ranks!$1:$1048576,$A193,P$1))","v":""},{"$f":"IF($A193=\"N/A\",Ref!$B$36,INDEX(Ranks!$1:$1048576,$A193,Q$1))","v":""},{"$f":"IF($A193=\"N/A\",Ref!$B$36,INDEX(Ranks!$1:$1048576,$A193,R$1))","v":""},{"$f":"IF($A193=\"N/A\",Ref!$B$36,INDEX(Ranks!$1:$1048576,$A193,S$1))","v":""},{"$f":"IF($A193=\"N/A\",Ref!$B$36,INDEX(Ranks!$1:$1048576,$A193,T$1))","v":""},{"$f":"IF($A193=\"N/A\",Ref!$B$36,INDEX(Ranks!$1:$1048576,$A193,U$1))","v":""},{"$f":"IF($A193=\"N/A\",Ref!$B$36,INDEX(Ranks!$1:$1048576,$A193,V$1))","v":""},{"$f":"IF($A193=\"N/A\",Ref!$B$36,INDEX(Ranks!$1:$1048576,$A193,W$1))","v":""},{"$f":"IF($A193=\"N/A\",Ref!$B$36,INDEX(Ranks!$1:$1048576,$A193,X$1))","v":""},{"$f":"IF($A193=\"N/A\",Ref!$B$36,INDEX(Ranks!$1:$1048576,$A193,Y$1))","v":""},{"$f":"IF($A193=\"N/A\",Ref!$B$36,INDEX(Ranks!$1:$1048576,$A193,Z$1))","v":""},{"$f":"IF($A193=\"N/A\",Ref!$B$36,INDEX(Ranks!$1:$1048576,$A193,AA$1))","v":""},{"$f":"IF($A193=\"N/A\",Ref!$B$36,INDEX(Ranks!$1:$1048576,$A193,AB$1))","v":""},{"$f":"IF($A193=\"N/A\",Ref!$B$36,INDEX(Ranks!$1:$1048576,$A193,AC$1))","v":""},{"$f":"IF($A193=\"N/A\",Ref!$B$36,INDEX(Ranks!$1:$1048576,$A193,AD$1))","v":""},{"$f":"IF($A193=\"N/A\",Ref!$B$36,INDEX(Ranks!$1:$1048576,$A193,AE$1))","v":""},{"$f":"IF($A193=\"N/A\",Ref!$B$36,INDEX(Ranks!$1:$1048576,$A193,AF$1))","v":""},{"$f":"IF($A193=\"N/A\",Ref!$B$36,INDEX(Ranks!$1:$1048576,$A193,AG$1))","v":""},{"$f":"IF($A193=\"N/A\",Ref!$B$36,INDEX(Ranks!$1:$1048576,$A193,AH$1))","v":""},{"$f":"IF($A193=\"N/A\",Ref!$B$36,INDEX(Ranks!$1:$1048576,$A193,AI$1))","v":""},{"$f":"IF($A193=\"N/A\",Ref!$B$36,INDEX(Ranks!$1:$1048576,$A193,AJ$1))","v":""},{"$f":"IF($A193=\"N/A\",Ref!$B$36,INDEX(Ranks!$1:$1048576,$A193,AK$1))","v":""},{"$f":"IF($A193=\"N/A\",Ref!$B$36,INDEX(Ranks!$1:$1048576,$A193,AL$1))","v":""},{"$f":"IF($A193=\"N/A\",Ref!$B$36,INDEX(Ranks!$1:$1048576,$A193,AM$1))","v":""},{"$f":"IF($A193=\"N/A\",Ref!$B$36,INDEX(Ranks!$1:$1048576,$A193,AN$1))","v":""},{"$f":"IF($A193=\"N/A\",Ref!$B$36,INDEX(Ranks!$1:$1048576,$A193,AO$1))","v":""},{"$f":"IF($A193=\"N/A\",Ref!$B$36,INDEX(Ranks!$1:$1048576,$A193,AP$1))","v":""},{"$f":"IF($A193=\"N/A\",Ref!$B$36,INDEX(Ranks!$1:$1048576,$A193,AQ$1))","v":""},{"$f":"IF($A193=\"N/A\",Ref!$B$36,INDEX(Ranks!$1:$1048576,$A193,AR$1))","v":""},{"$f":"IF($A193=\"N/A\",Ref!$B$36,INDEX(Ranks!$1:$1048576,$A193,AS$1))","v":""},{"$f":"IF($A193=\"N/A\",Ref!$B$36,INDEX(Ranks!$1:$1048576,$A193,AT$1))","v":""},{"$f":"IF($A193=\"N/A\",Ref!$B$36,INDEX(Ranks!$1:$1048576,$A193,AU$1))","v":""},{"$f":"IF($A193=\"N/A\",Ref!$B$36,INDEX(Ranks!$1:$1048576,$A193,AV$1))","v":""},{"$f":"IF($A193=\"N/A\",Ref!$B$36,INDEX(Ranks!$1:$1048576,$A193,AW$1))","v":""},{"$f":"IF($A193=\"N/A\",Ref!$B$36,INDEX(Ranks!$1:$1048576,$A193,AX$1))","v":""},{"$f":"IF($A193=\"N/A\",Ref!$B$36,INDEX(Ranks!$1:$1048576,$A193,AY$1))","v":""},{"$f":"IF($A193=\"N/A\",Ref!$B$36,INDEX(Ranks!$1:$1048576,$A193,AZ$1))","v":""},{"$f":"IF($A193=\"N/A\",Ref!$B$36,INDEX(Ranks!$1:$1048576,$A193,BA$1))","v":""},{"$f":"IF($A193=\"N/A\",Ref!$B$36,INDEX(Ranks!$1:$1048576,$A193,BB$1))","v":""},{"$f":"IF($A193=\"N/A\",Ref!$B$36,INDEX(Ranks!$1:$1048576,$A193,BC$1))","v":""},{"$f":"IF($A193=\"N/A\",Ref!$B$36,INDEX(Ranks!$1:$1048576,$A193,BD$1))","v":""},{"$f":"IF($A193=\"N/A\",Ref!$B$36,INDEX(Ranks!$1:$1048576,$A193,BE$1))","v":""},{"$f":"IF($A193=\"N/A\",Ref!$B$36,INDEX(Ranks!$1:$1048576,$A193,BF$1))","v":""},{"$f":"IF($A193=\"N/A\",Ref!$B$36,INDEX(Ranks!$1:$1048576,$A193,BG$1))","v":""},{"$f":"IF($A193=\"N/A\",Ref!$B$36,INDEX(Ranks!$1:$1048576,$A193,BH$1))","v":""},{"$f":"IF($A193=\"N/A\",Ref!$B$36,INDEX(Ranks!$1:$1048576,$A193,BI$1))","v":""},{"$f":"IF($A193=\"N/A\",Ref!$B$36,INDEX(Ranks!$1:$1048576,$A193,BJ$1))","v":""},{"$f":"IF($A193=\"N/A\",Ref!$B$36,INDEX(Ranks!$1:$1048576,$A193,BK$1))","v":""},{"$f":"IF($A193=\"N/A\",Ref!$B$36,INDEX(Ranks!$1:$1048576,$A193,BL$1))","v":""},{"$f":"IF($A193=\"N/A\",Ref!$B$36,INDEX(Ranks!$1:$1048576,$A193,BM$1))","v":""},{"$f":"IF($A193=\"N/A\",Ref!$B$36,INDEX(Ranks!$1:$1048576,$A193,BN$1))","v":""},{"$f":"IF($A193=\"N/A\",Ref!$B$36,INDEX(Ranks!$1:$1048576,$A193,BO$1))","v":""},{"$f":"IF($A193=\"N/A\",Ref!$B$36,INDEX(Ranks!$1:$1048576,$A193,BP$1))","v":""},{"$f":"IF($A193=\"N/A\",Ref!$B$36,INDEX(Ranks!$1:$1048576,$A193,BQ$1))","v":""},{"$f":"IF($A193=\"N/A\",Ref!$B$36,INDEX(Ranks!$1:$1048576,$A193,BR$1))","v":""},{"$f":"IF($A193=\"N/A\",Ref!$B$36,INDEX(Ranks!$1:$1048576,$A193,BS$1))","v":""},{"$f":"IF($A193=\"N/A\",Ref!$B$36,INDEX(Ranks!$1:$1048576,$A193,BT$1))","v":""},{"$f":"IF($A193=\"N/A\",Ref!$B$36,INDEX(Ranks!$1:$1048576,$A193,BU$1))","v":""},{"$f":"IF($A193=\"N/A\",Ref!$B$36,INDEX(Ranks!$1:$1048576,$A193,BV$1))","v":""},{"$f":"IF($A193=\"N/A\",Ref!$B$36,INDEX(Ranks!$1:$1048576,$A193,BW$1))","v":""},{"$f":"IF($A193=\"N/A\",Ref!$B$36,INDEX(Ranks!$1:$1048576,$A193,BX$1))","v":""},{"$f":"IF($A193=\"N/A\",Ref!$B$36,INDEX(Ranks!$1:$1048576,$A193,BY$1))","v":""},{"$f":"IF($A193=\"N/A\",Ref!$B$36,INDEX(Ranks!$1:$1048576,$A193,BZ$1))","v":""},{"$f":"IF($A193=\"N/A\",Ref!$B$36,INDEX(Ranks!$1:$1048576,$A193,CA$1))","v":""},{"$f":"IF($A193=\"N/A\",Ref!$B$36,INDEX(Ranks!$1:$1048576,$A193,CB$1))","v":""},{"$f":"IF($A193=\"N/A\",Ref!$B$36,INDEX(Ranks!$1:$1048576,$A193,CC$1))","v":""},{"$f":"IF($A193=\"N/A\",Ref!$B$36,INDEX(Ranks!$1:$1048576,$A193,CD$1))","v":""},{"$f":"IF($A193=\"N/A\",Ref!$B$36,INDEX(Ranks!$1:$1048576,$A193,CE$1))","v":""},{"$f":"IF($A193=\"N/A\",Ref!$B$36,INDEX(Ranks!$1:$1048576,$A193,CF$1))","v":""},{"$f":"IF($A193=\"N/A\",Ref!$B$36,INDEX(Ranks!$1:$1048576,$A193,CG$1))","v":""},{"$f":"IF($A193=\"N/A\",Ref!$B$36,INDEX(Ranks!$1:$1048576,$A193,CH$1))","v":""},{"$f":"IF($A193=\"N/A\",Ref!$B$36,INDEX(Ranks!$1:$1048576,$A193,CI$1))","v":""},{"$f":"IF($A193=\"N/A\",Ref!$B$36,INDEX(Ranks!$1:$1048576,$A193,CJ$1))","v":""},{"$f":"IF($A193=\"N/A\",Ref!$B$36,INDEX(Ranks!$1:$1048576,$A193,CK$1))","v":""},{"$f":"IF($A193=\"N/A\",Ref!$B$36,INDEX(Ranks!$1:$1048576,$A193,CL$1))","v":""},{"$f":"IF($A193=\"N/A\",Ref!$B$36,INDEX(Ranks!$1:$1048576,$A193,CM$1))","v":""},{"$f":"IF($A193=\"N/A\",Ref!$B$36,INDEX(Ranks!$1:$1048576,$A193,CN$1))","v":""},{"$f":"IF($A193=\"N/A\",Ref!$B$36,INDEX(Ranks!$1:$1048576,$A193,CO$1))","v":""},{"$f":"IF($A193=\"N/A\",Ref!$B$36,INDEX(Ranks!$1:$1048576,$A193,CP$1))","v":""},{"$f":"IF($A193=\"N/A\",Ref!$B$36,INDEX(Ranks!$1:$1048576,$A193,CQ$1))","v":""},{"$f":"IF($A193=\"N/A\",Ref!$B$36,INDEX(Ranks!$1:$1048576,$A193,CR$1))","v":""},{"$f":"IF($A193=\"N/A\",Ref!$B$36,INDEX(Ranks!$1:$1048576,$A193,CS$1))","v":""},{"$f":"IF($A193=\"N/A\",Ref!$B$36,INDEX(Ranks!$1:$1048576,$A193,CT$1))","v":""},{"$f":"IF($A193=\"N/A\",Ref!$B$36,INDEX(Ranks!$1:$1048576,$A193,CU$1))","v":""},{"$f":"IF($A193=\"N/A\",Ref!$B$36,INDEX(Ranks!$1:$1048576,$A193,CV$1))","v":""},{"$f":"IF($A193=\"N/A\",Ref!$B$36,INDEX(Ranks!$1:$1048576,$A193,CW$1))","v":""},{"$f":"IF($A193=\"N/A\",Ref!$B$36,INDEX(Ranks!$1:$1048576,$A193,CX$1))","v":""},{"$f":"IF($A193=\"N/A\",Ref!$B$36,INDEX(Ranks!$1:$1048576,$A193,CY$1))","v":""},{"$f":"IF($A193=\"N/A\",Ref!$B$36,INDEX(Ranks!$1:$1048576,$A193,CZ$1))","v":""},{"$f":"IF($A193=\"N/A\",Ref!$B$36,INDEX(Ranks!$1:$1048576,$A193,DA$1))","v":""},{"$f":"IF($A193=\"N/A\",Ref!$B$36,INDEX(Ranks!$1:$1048576,$A193,DB$1))","v":""},{"$f":"IF($A193=\"N/A\",Ref!$B$36,INDEX(Ranks!$1:$1048576,$A193,DC$1))","v":""},{"$f":"IF($A193=\"N/A\",Ref!$B$36,INDEX(Ranks!$1:$1048576,$A193,DD$1))","v":""},{"$f":"IF($A193=\"N/A\",Ref!$B$36,INDEX(Ranks!$1:$1048576,$A193,DE$1))","v":""},{"$f":"IF($A193=\"N/A\",Ref!$B$36,INDEX(Ranks!$1:$1048576,$A193,DF$1))","v":""},{"$f":"IF($A193=\"N/A\",Ref!$B$36,INDEX(Ranks!$1:$1048576,$A193,DG$1))","v":""},{"$f":"IF($A193=\"N/A\",Ref!$B$36,INDEX(Ranks!$1:$1048576,$A193,DH$1))","v":""},{"$f":"IF($A193=\"N/A\",Ref!$B$36,INDEX(Ranks!$1:$1048576,$A193,DI$1))","v":""},{"$f":"IF($A193=\"N/A\",Ref!$B$36,INDEX(Ranks!$1:$1048576,$A193,DJ$1))","v":""},{"$f":"IF($A193=\"N/A\",Ref!$B$36,INDEX(Ranks!$1:$1048576,$A193,DK$1))","v":""},{"$f":"IF($A193=\"N/A\",Ref!$B$36,INDEX(Ranks!$1:$1048576,$A193,DL$1))","v":""},{"$f":"IF($A193=\"N/A\",Ref!$B$36,INDEX(Ranks!$1:$1048576,$A193,DM$1))","v":""},{"$f":"IF($A193=\"N/A\",Ref!$B$36,INDEX(Ranks!$1:$1048576,$A193,DN$1))","v":""},{"$f":"IF($A193=\"N/A\",Ref!$B$36,INDEX(Ranks!$1:$1048576,$A193,DO$1))","v":""},{"$f":"IF($A193=\"N/A\",Ref!$B$36,INDEX(Ranks!$1:$1048576,$A193,DP$1))","v":""},{"$f":"IF($A193=\"N/A\",Ref!$B$36,INDEX(Ranks!$1:$1048576,$A193,DQ$1))","v":""},{"$f":"IF($A193=\"N/A\",Ref!$B$36,INDEX(Ranks!$1:$1048576,$A193,DR$1))","v":""},{"$f":"IF($A193=\"N/A\",Ref!$B$36,INDEX(Ranks!$1:$1048576,$A193,DS$1))","v":""},{"$f":"IF($A193=\"N/A\",Ref!$B$36,INDEX(Ranks!$1:$1048576,$A193,DT$1))","v":""},{"$f":"IF($A193=\"N/A\",Ref!$B$36,INDEX(Ranks!$1:$1048576,$A193,DU$1))","v":""},{"$f":"IF($A193=\"N/A\",Ref!$B$36,INDEX(Ranks!$1:$1048576,$A193,DV$1))","v":""},{"$f":"IF($A193=\"N/A\",Ref!$B$36,INDEX(Ranks!$1:$1048576,$A193,DW$1))","v":""},{"$f":"IF($A193=\"N/A\",Ref!$B$36,INDEX(Ranks!$1:$1048576,$A193,DX$1))","v":""},{"$f":"IF($A193=\"N/A\",Ref!$B$36,INDEX(Ranks!$1:$1048576,$A193,DY$1))","v":""},{"$f":"IF($A193=\"N/A\",Ref!$B$36,INDEX(Ranks!$1:$1048576,$A193,DZ$1))","v":""},{"$f":"IF($A193=\"N/A\",Ref!$B$36,INDEX(Ranks!$1:$1048576,$A193,EA$1))","v":""},{"$f":"IF($A193=\"N/A\",Ref!$B$36,INDEX(Ranks!$1:$1048576,$A193,EB$1))","v":""}]
[{"$f":"IFERROR(MATCH('Portfolio Page'!L194,Ranks!L:L,0),\"N/A\")","v":"N/A"},null,{"$f":"IF($A194=\"N/A\",\"\",INDEX(Ranks!$1:$1048576,$A194,C$1))","v":""},{"$f":"IF($A194=\"N/A\",Ref!$B$36,INDEX(Ranks!$1:$1048576,$A194,D$1))","v":""},{"$f":"IF($A194=\"N/A\",Ref!$B$36,INDEX(Ranks!$1:$1048576,$A194,E$1))","v":""},{"$f":"IF($A194=\"N/A\",\"\",INDEX(Ranks!$1:$1048576,$A194,F$1))","v":""},{"$f":"IF($A194=\"N/A\",\"\",INDEX(Ranks!$1:$1048576,$A194,G$1))","v":""},{"$f":"IF($A194=\"N/A\",\"\",INDEX(Ranks!$1:$1048576,$A194,H$1))","v":""},{"$f":"IF($A194=\"N/A\",\"\",INDEX(Ranks!$1:$1048576,$A194,I$1))","v":""},{"$f":"IF($A194=\"N/A\",\"\",INDEX(Ranks!$1:$1048576,$A194,J$1))","v":""},{"$f":"IF($A194=\"N/A\",\"\",INDEX(Ranks!$1:$1048576,$A194,K$1))","v":""},null,{"$f":"IF($A194=\"N/A\",Ref!$B$36,INDEX(Ranks!$1:$1048576,$A194,M$1))","v":""},{"$f":"IF($A194=\"N/A\",Ref!$B$36,INDEX(Ranks!$1:$1048576,$A194,N$1))","v":""},{"$f":"IF($A194=\"N/A\",Ref!$B$36,INDEX(Ranks!$1:$1048576,$A194,O$1))","v":""},{"$f":"IF($A194=\"N/A\",Ref!$B$36,INDEX(Ranks!$1:$1048576,$A194,P$1))","v":""},{"$f":"IF($A194=\"N/A\",Ref!$B$36,INDEX(Ranks!$1:$1048576,$A194,Q$1))","v":""},{"$f":"IF($A194=\"N/A\",Ref!$B$36,INDEX(Ranks!$1:$1048576,$A194,R$1))","v":""},{"$f":"IF($A194=\"N/A\",Ref!$B$36,INDEX(Ranks!$1:$1048576,$A194,S$1))","v":""},{"$f":"IF($A194=\"N/A\",Ref!$B$36,INDEX(Ranks!$1:$1048576,$A194,T$1))","v":""},{"$f":"IF($A194=\"N/A\",Ref!$B$36,INDEX(Ranks!$1:$1048576,$A194,U$1))","v":""},{"$f":"IF($A194=\"N/A\",Ref!$B$36,INDEX(Ranks!$1:$1048576,$A194,V$1))","v":""},{"$f":"IF($A194=\"N/A\",Ref!$B$36,INDEX(Ranks!$1:$1048576,$A194,W$1))","v":""},{"$f":"IF($A194=\"N/A\",Ref!$B$36,INDEX(Ranks!$1:$1048576,$A194,X$1))","v":""},{"$f":"IF($A194=\"N/A\",Ref!$B$36,INDEX(Ranks!$1:$1048576,$A194,Y$1))","v":""},{"$f":"IF($A194=\"N/A\",Ref!$B$36,INDEX(Ranks!$1:$1048576,$A194,Z$1))","v":""},{"$f":"IF($A194=\"N/A\",Ref!$B$36,INDEX(Ranks!$1:$1048576,$A194,AA$1))","v":""},{"$f":"IF($A194=\"N/A\",Ref!$B$36,INDEX(Ranks!$1:$1048576,$A194,AB$1))","v":""},{"$f":"IF($A194=\"N/A\",Ref!$B$36,INDEX(Ranks!$1:$1048576,$A194,AC$1))","v":""},{"$f":"IF($A194=\"N/A\",Ref!$B$36,INDEX(Ranks!$1:$1048576,$A194,AD$1))","v":""},{"$f":"IF($A194=\"N/A\",Ref!$B$36,INDEX(Ranks!$1:$1048576,$A194,AE$1))","v":""},{"$f":"IF($A194=\"N/A\",Ref!$B$36,INDEX(Ranks!$1:$1048576,$A194,AF$1))","v":""},{"$f":"IF($A194=\"N/A\",Ref!$B$36,INDEX(Ranks!$1:$1048576,$A194,AG$1))","v":""},{"$f":"IF($A194=\"N/A\",Ref!$B$36,INDEX(Ranks!$1:$1048576,$A194,AH$1))","v":""},{"$f":"IF($A194=\"N/A\",Ref!$B$36,INDEX(Ranks!$1:$1048576,$A194,AI$1))","v":""},{"$f":"IF($A194=\"N/A\",Ref!$B$36,INDEX(Ranks!$1:$1048576,$A194,AJ$1))","v":""},{"$f":"IF($A194=\"N/A\",Ref!$B$36,INDEX(Ranks!$1:$1048576,$A194,AK$1))","v":""},{"$f":"IF($A194=\"N/A\",Ref!$B$36,INDEX(Ranks!$1:$1048576,$A194,AL$1))","v":""},{"$f":"IF($A194=\"N/A\",Ref!$B$36,INDEX(Ranks!$1:$1048576,$A194,AM$1))","v":""},{"$f":"IF($A194=\"N/A\",Ref!$B$36,INDEX(Ranks!$1:$1048576,$A194,AN$1))","v":""},{"$f":"IF($A194=\"N/A\",Ref!$B$36,INDEX(Ranks!$1:$1048576,$A194,AO$1))","v":""},{"$f":"IF($A194=\"N/A\",Ref!$B$36,INDEX(Ranks!$1:$1048576,$A194,AP$1))","v":""},{"$f":"IF($A194=\"N/A\",Ref!$B$36,INDEX(Ranks!$1:$1048576,$A194,AQ$1))","v":""},{"$f":"IF($A194=\"N/A\",Ref!$B$36,INDEX(Ranks!$1:$1048576,$A194,AR$1))","v":""},{"$f":"IF($A194=\"N/A\",Ref!$B$36,INDEX(Ranks!$1:$1048576,$A194,AS$1))","v":""},{"$f":"IF($A194=\"N/A\",Ref!$B$36,INDEX(Ranks!$1:$1048576,$A194,AT$1))","v":""},{"$f":"IF($A194=\"N/A\",Ref!$B$36,INDEX(Ranks!$1:$1048576,$A194,AU$1))","v":""},{"$f":"IF($A194=\"N/A\",Ref!$B$36,INDEX(Ranks!$1:$1048576,$A194,AV$1))","v":""},{"$f":"IF($A194=\"N/A\",Ref!$B$36,INDEX(Ranks!$1:$1048576,$A194,AW$1))","v":""},{"$f":"IF($A194=\"N/A\",Ref!$B$36,INDEX(Ranks!$1:$1048576,$A194,AX$1))","v":""},{"$f":"IF($A194=\"N/A\",Ref!$B$36,INDEX(Ranks!$1:$1048576,$A194,AY$1))","v":""},{"$f":"IF($A194=\"N/A\",Ref!$B$36,INDEX(Ranks!$1:$1048576,$A194,AZ$1))","v":""},{"$f":"IF($A194=\"N/A\",Ref!$B$36,INDEX(Ranks!$1:$1048576,$A194,BA$1))","v":""},{"$f":"IF($A194=\"N/A\",Ref!$B$36,INDEX(Ranks!$1:$1048576,$A194,BB$1))","v":""},{"$f":"IF($A194=\"N/A\",Ref!$B$36,INDEX(Ranks!$1:$1048576,$A194,BC$1))","v":""},{"$f":"IF($A194=\"N/A\",Ref!$B$36,INDEX(Ranks!$1:$1048576,$A194,BD$1))","v":""},{"$f":"IF($A194=\"N/A\",Ref!$B$36,INDEX(Ranks!$1:$1048576,$A194,BE$1))","v":""},{"$f":"IF($A194=\"N/A\",Ref!$B$36,INDEX(Ranks!$1:$1048576,$A194,BF$1))","v":""},{"$f":"IF($A194=\"N/A\",Ref!$B$36,INDEX(Ranks!$1:$1048576,$A194,BG$1))","v":""},{"$f":"IF($A194=\"N/A\",Ref!$B$36,INDEX(Ranks!$1:$1048576,$A194,BH$1))","v":""},{"$f":"IF($A194=\"N/A\",Ref!$B$36,INDEX(Ranks!$1:$1048576,$A194,BI$1))","v":""},{"$f":"IF($A194=\"N/A\",Ref!$B$36,INDEX(Ranks!$1:$1048576,$A194,BJ$1))","v":""},{"$f":"IF($A194=\"N/A\",Ref!$B$36,INDEX(Ranks!$1:$1048576,$A194,BK$1))","v":""},{"$f":"IF($A194=\"N/A\",Ref!$B$36,INDEX(Ranks!$1:$1048576,$A194,BL$1))","v":""},{"$f":"IF($A194=\"N/A\",Ref!$B$36,INDEX(Ranks!$1:$1048576,$A194,BM$1))","v":""},{"$f":"IF($A194=\"N/A\",Ref!$B$36,INDEX(Ranks!$1:$1048576,$A194,BN$1))","v":""},{"$f":"IF($A194=\"N/A\",Ref!$B$36,INDEX(Ranks!$1:$1048576,$A194,BO$1))","v":""},{"$f":"IF($A194=\"N/A\",Ref!$B$36,INDEX(Ranks!$1:$1048576,$A194,BP$1))","v":""},{"$f":"IF($A194=\"N/A\",Ref!$B$36,INDEX(Ranks!$1:$1048576,$A194,BQ$1))","v":""},{"$f":"IF($A194=\"N/A\",Ref!$B$36,INDEX(Ranks!$1:$1048576,$A194,BR$1))","v":""},{"$f":"IF($A194=\"N/A\",Ref!$B$36,INDEX(Ranks!$1:$1048576,$A194,BS$1))","v":""},{"$f":"IF($A194=\"N/A\",Ref!$B$36,INDEX(Ranks!$1:$1048576,$A194,BT$1))","v":""},{"$f":"IF($A194=\"N/A\",Ref!$B$36,INDEX(Ranks!$1:$1048576,$A194,BU$1))","v":""},{"$f":"IF($A194=\"N/A\",Ref!$B$36,INDEX(Ranks!$1:$1048576,$A194,BV$1))","v":""},{"$f":"IF($A194=\"N/A\",Ref!$B$36,INDEX(Ranks!$1:$1048576,$A194,BW$1))","v":""},{"$f":"IF($A194=\"N/A\",Ref!$B$36,INDEX(Ranks!$1:$1048576,$A194,BX$1))","v":""},{"$f":"IF($A194=\"N/A\",Ref!$B$36,INDEX(Ranks!$1:$1048576,$A194,BY$1))","v":""},{"$f":"IF($A194=\"N/A\",Ref!$B$36,INDEX(Ranks!$1:$1048576,$A194,BZ$1))","v":""},{"$f":"IF($A194=\"N/A\",Ref!$B$36,INDEX(Ranks!$1:$1048576,$A194,CA$1))","v":""},{"$f":"IF($A194=\"N/A\",Ref!$B$36,INDEX(Ranks!$1:$1048576,$A194,CB$1))","v":""},{"$f":"IF($A194=\"N/A\",Ref!$B$36,INDEX(Ranks!$1:$1048576,$A194,CC$1))","v":""},{"$f":"IF($A194=\"N/A\",Ref!$B$36,INDEX(Ranks!$1:$1048576,$A194,CD$1))","v":""},{"$f":"IF($A194=\"N/A\",Ref!$B$36,INDEX(Ranks!$1:$1048576,$A194,CE$1))","v":""},{"$f":"IF($A194=\"N/A\",Ref!$B$36,INDEX(Ranks!$1:$1048576,$A194,CF$1))","v":""},{"$f":"IF($A194=\"N/A\",Ref!$B$36,INDEX(Ranks!$1:$1048576,$A194,CG$1))","v":""},{"$f":"IF($A194=\"N/A\",Ref!$B$36,INDEX(Ranks!$1:$1048576,$A194,CH$1))","v":""},{"$f":"IF($A194=\"N/A\",Ref!$B$36,INDEX(Ranks!$1:$1048576,$A194,CI$1))","v":""},{"$f":"IF($A194=\"N/A\",Ref!$B$36,INDEX(Ranks!$1:$1048576,$A194,CJ$1))","v":""},{"$f":"IF($A194=\"N/A\",Ref!$B$36,INDEX(Ranks!$1:$1048576,$A194,CK$1))","v":""},{"$f":"IF($A194=\"N/A\",Ref!$B$36,INDEX(Ranks!$1:$1048576,$A194,CL$1))","v":""},{"$f":"IF($A194=\"N/A\",Ref!$B$36,INDEX(Ranks!$1:$1048576,$A194,CM$1))","v":""},{"$f":"IF($A194=\"N/A\",Ref!$B$36,INDEX(Ranks!$1:$1048576,$A194,CN$1))","v":""},{"$f":"IF($A194=\"N/A\",Ref!$B$36,INDEX(Ranks!$1:$1048576,$A194,CO$1))","v":""},{"$f":"IF($A194=\"N/A\",Ref!$B$36,INDEX(Ranks!$1:$1048576,$A194,CP$1))","v":""},{"$f":"IF($A194=\"N/A\",Ref!$B$36,INDEX(Ranks!$1:$1048576,$A194,CQ$1))","v":""},{"$f":"IF($A194=\"N/A\",Ref!$B$36,INDEX(Ranks!$1:$1048576,$A194,CR$1))","v":""},{"$f":"IF($A194=\"N/A\",Ref!$B$36,INDEX(Ranks!$1:$1048576,$A194,CS$1))","v":""},{"$f":"IF($A194=\"N/A\",Ref!$B$36,INDEX(Ranks!$1:$1048576,$A194,CT$1))","v":""},{"$f":"IF($A194=\"N/A\",Ref!$B$36,INDEX(Ranks!$1:$1048576,$A194,CU$1))","v":""},{"$f":"IF($A194=\"N/A\",Ref!$B$36,INDEX(Ranks!$1:$1048576,$A194,CV$1))","v":""},{"$f":"IF($A194=\"N/A\",Ref!$B$36,INDEX(Ranks!$1:$1048576,$A194,CW$1))","v":""},{"$f":"IF($A194=\"N/A\",Ref!$B$36,INDEX(Ranks!$1:$1048576,$A194,CX$1))","v":""},{"$f":"IF($A194=\"N/A\",Ref!$B$36,INDEX(Ranks!$1:$1048576,$A194,CY$1))","v":""},{"$f":"IF($A194=\"N/A\",Ref!$B$36,INDEX(Ranks!$1:$1048576,$A194,CZ$1))","v":""},{"$f":"IF($A194=\"N/A\",Ref!$B$36,INDEX(Ranks!$1:$1048576,$A194,DA$1))","v":""},{"$f":"IF($A194=\"N/A\",Ref!$B$36,INDEX(Ranks!$1:$1048576,$A194,DB$1))","v":""},{"$f":"IF($A194=\"N/A\",Ref!$B$36,INDEX(Ranks!$1:$1048576,$A194,DC$1))","v":""},{"$f":"IF($A194=\"N/A\",Ref!$B$36,INDEX(Ranks!$1:$1048576,$A194,DD$1))","v":""},{"$f":"IF($A194=\"N/A\",Ref!$B$36,INDEX(Ranks!$1:$1048576,$A194,DE$1))","v":""},{"$f":"IF($A194=\"N/A\",Ref!$B$36,INDEX(Ranks!$1:$1048576,$A194,DF$1))","v":""},{"$f":"IF($A194=\"N/A\",Ref!$B$36,INDEX(Ranks!$1:$1048576,$A194,DG$1))","v":""},{"$f":"IF($A194=\"N/A\",Ref!$B$36,INDEX(Ranks!$1:$1048576,$A194,DH$1))","v":""},{"$f":"IF($A194=\"N/A\",Ref!$B$36,INDEX(Ranks!$1:$1048576,$A194,DI$1))","v":""},{"$f":"IF($A194=\"N/A\",Ref!$B$36,INDEX(Ranks!$1:$1048576,$A194,DJ$1))","v":""},{"$f":"IF($A194=\"N/A\",Ref!$B$36,INDEX(Ranks!$1:$1048576,$A194,DK$1))","v":""},{"$f":"IF($A194=\"N/A\",Ref!$B$36,INDEX(Ranks!$1:$1048576,$A194,DL$1))","v":""},{"$f":"IF($A194=\"N/A\",Ref!$B$36,INDEX(Ranks!$1:$1048576,$A194,DM$1))","v":""},{"$f":"IF($A194=\"N/A\",Ref!$B$36,INDEX(Ranks!$1:$1048576,$A194,DN$1))","v":""},{"$f":"IF($A194=\"N/A\",Ref!$B$36,INDEX(Ranks!$1:$1048576,$A194,DO$1))","v":""},{"$f":"IF($A194=\"N/A\",Ref!$B$36,INDEX(Ranks!$1:$1048576,$A194,DP$1))","v":""},{"$f":"IF($A194=\"N/A\",Ref!$B$36,INDEX(Ranks!$1:$1048576,$A194,DQ$1))","v":""},{"$f":"IF($A194=\"N/A\",Ref!$B$36,INDEX(Ranks!$1:$1048576,$A194,DR$1))","v":""},{"$f":"IF($A194=\"N/A\",Ref!$B$36,INDEX(Ranks!$1:$1048576,$A194,DS$1))","v":""},{"$f":"IF($A194=\"N/A\",Ref!$B$36,INDEX(Ranks!$1:$1048576,$A194,DT$1))","v":""},{"$f":"IF($A194=\"N/A\",Ref!$B$36,INDEX(Ranks!$1:$1048576,$A194,DU$1))","v":""},{"$f":"IF($A194=\"N/A\",Ref!$B$36,INDEX(Ranks!$1:$1048576,$A194,DV$1))","v":""},{"$f":"IF($A194=\"N/A\",Ref!$B$36,INDEX(Ranks!$1:$1048576,$A194,DW$1))","v":""},{"$f":"IF($A194=\"N/A\",Ref!$B$36,INDEX(Ranks!$1:$1048576,$A194,DX$1))","v":""},{"$f":"IF($A194=\"N/A\",Ref!$B$36,INDEX(Ranks!$1:$1048576,$A194,DY$1))","v":""},{"$f":"IF($A194=\"N/A\",Ref!$B$36,INDEX(Ranks!$1:$1048576,$A194,DZ$1))","v":""},{"$f":"IF($A194=\"N/A\",Ref!$B$36,INDEX(Ranks!$1:$1048576,$A194,EA$1))","v":""},{"$f":"IF($A194=\"N/A\",Ref!$B$36,INDEX(Ranks!$1:$1048576,$A194,EB$1))","v":""}]
[{"$f":"IFERROR(MATCH('Portfolio Page'!L195,Ranks!L:L,0),\"N/A\")","v":"N/A"},null,{"$f":"IF($A195=\"N/A\",\"\",INDEX(Ranks!$1:$1048576,$A195,C$1))","v":""},{"$f":"IF($A195=\"N/A\",Ref!$B$36,INDEX(Ranks!$1:$1048576,$A195,D$1))","v":""},{"$f":"IF($A195=\"N/A\",Ref!$B$36,INDEX(Ranks!$1:$1048576,$A195,E$1))","v":""},{"$f":"IF($A195=\"N/A\",\"\",INDEX(Ranks!$1:$1048576,$A195,F$1))","v":""},{"$f":"IF($A195=\"N/A\",\"\",INDEX(Ranks!$1:$1048576,$A195,G$1))","v":""},{"$f":"IF($A195=\"N/A\",\"\",INDEX(Ranks!$1:$1048576,$A195,H$1))","v":""},{"$f":"IF($A195=\"N/A\",\"\",INDEX(Ranks!$1:$1048576,$A195,I$1))","v":""},{"$f":"IF($A195=\"N/A\",\"\",INDEX(Ranks!$1:$1048576,$A195,J$1))","v":""},{"$f":"IF($A195=\"N/A\",\"\",INDEX(Ranks!$1:$1048576,$A195,K$1))","v":""},null,{"$f":"IF($A195=\"N/A\",Ref!$B$36,INDEX(Ranks!$1:$1048576,$A195,M$1))","v":""},{"$f":"IF($A195=\"N/A\",Ref!$B$36,INDEX(Ranks!$1:$1048576,$A195,N$1))","v":""},{"$f":"IF($A195=\"N/A\",Ref!$B$36,INDEX(Ranks!$1:$1048576,$A195,O$1))","v":""},{"$f":"IF($A195=\"N/A\",Ref!$B$36,INDEX(Ranks!$1:$1048576,$A195,P$1))","v":""},{"$f":"IF($A195=\"N/A\",Ref!$B$36,INDEX(Ranks!$1:$1048576,$A195,Q$1))","v":""},{"$f":"IF($A195=\"N/A\",Ref!$B$36,INDEX(Ranks!$1:$1048576,$A195,R$1))","v":""},{"$f":"IF($A195=\"N/A\",Ref!$B$36,INDEX(Ranks!$1:$1048576,$A195,S$1))","v":""},{"$f":"IF($A195=\"N/A\",Ref!$B$36,INDEX(Ranks!$1:$1048576,$A195,T$1))","v":""},{"$f":"IF($A195=\"N/A\",Ref!$B$36,INDEX(Ranks!$1:$1048576,$A195,U$1))","v":""},{"$f":"IF($A195=\"N/A\",Ref!$B$36,INDEX(Ranks!$1:$1048576,$A195,V$1))","v":""},{"$f":"IF($A195=\"N/A\",Ref!$B$36,INDEX(Ranks!$1:$1048576,$A195,W$1))","v":""},{"$f":"IF($A195=\"N/A\",Ref!$B$36,INDEX(Ranks!$1:$1048576,$A195,X$1))","v":""},{"$f":"IF($A195=\"N/A\",Ref!$B$36,INDEX(Ranks!$1:$1048576,$A195,Y$1))","v":""},{"$f":"IF($A195=\"N/A\",Ref!$B$36,INDEX(Ranks!$1:$1048576,$A195,Z$1))","v":""},{"$f":"IF($A195=\"N/A\",Ref!$B$36,INDEX(Ranks!$1:$1048576,$A195,AA$1))","v":""},{"$f":"IF($A195=\"N/A\",Ref!$B$36,INDEX(Ranks!$1:$1048576,$A195,AB$1))","v":""},{"$f":"IF($A195=\"N/A\",Ref!$B$36,INDEX(Ranks!$1:$1048576,$A195,AC$1))","v":""},{"$f":"IF($A195=\"N/A\",Ref!$B$36,INDEX(Ranks!$1:$1048576,$A195,AD$1))","v":""},{"$f":"IF($A195=\"N/A\",Ref!$B$36,INDEX(Ranks!$1:$1048576,$A195,AE$1))","v":""},{"$f":"IF($A195=\"N/A\",Ref!$B$36,INDEX(Ranks!$1:$1048576,$A195,AF$1))","v":""},{"$f":"IF($A195=\"N/A\",Ref!$B$36,INDEX(Ranks!$1:$1048576,$A195,AG$1))","v":""},{"$f":"IF($A195=\"N/A\",Ref!$B$36,INDEX(Ranks!$1:$1048576,$A195,AH$1))","v":""},{"$f":"IF($A195=\"N/A\",Ref!$B$36,INDEX(Ranks!$1:$1048576,$A195,AI$1))","v":""},{"$f":"IF($A195=\"N/A\",Ref!$B$36,INDEX(Ranks!$1:$1048576,$A195,AJ$1))","v":""},{"$f":"IF($A195=\"N/A\",Ref!$B$36,INDEX(Ranks!$1:$1048576,$A195,AK$1))","v":""},{"$f":"IF($A195=\"N/A\",Ref!$B$36,INDEX(Ranks!$1:$1048576,$A195,AL$1))","v":""},{"$f":"IF($A195=\"N/A\",Ref!$B$36,INDEX(Ranks!$1:$1048576,$A195,AM$1))","v":""},{"$f":"IF($A195=\"N/A\",Ref!$B$36,INDEX(Ranks!$1:$1048576,$A195,AN$1))","v":""},{"$f":"IF($A195=\"N/A\",Ref!$B$36,INDEX(Ranks!$1:$1048576,$A195,AO$1))","v":""},{"$f":"IF($A195=\"N/A\",Ref!$B$36,INDEX(Ranks!$1:$1048576,$A195,AP$1))","v":""},{"$f":"IF($A195=\"N/A\",Ref!$B$36,INDEX(Ranks!$1:$1048576,$A195,AQ$1))","v":""},{"$f":"IF($A195=\"N/A\",Ref!$B$36,INDEX(Ranks!$1:$1048576,$A195,AR$1))","v":""},{"$f":"IF($A195=\"N/A\",Ref!$B$36,INDEX(Ranks!$1:$1048576,$A195,AS$1))","v":""},{"$f":"IF($A195=\"N/A\",Ref!$B$36,INDEX(Ranks!$1:$1048576,$A195,AT$1))","v":""},{"$f":"IF($A195=\"N/A\",Ref!$B$36,INDEX(Ranks!$1:$1048576,$A195,AU$1))","v":""},{"$f":"IF($A195=\"N/A\",Ref!$B$36,INDEX(Ranks!$1:$1048576,$A195,AV$1))","v":""},{"$f":"IF($A195=\"N/A\",Ref!$B$36,INDEX(Ranks!$1:$1048576,$A195,AW$1))","v":""},{"$f":"IF($A195=\"N/A\",Ref!$B$36,INDEX(Ranks!$1:$1048576,$A195,AX$1))","v":""},{"$f":"IF($A195=\"N/A\",Ref!$B$36,INDEX(Ranks!$1:$1048576,$A195,AY$1))","v":""},{"$f":"IF($A195=\"N/A\",Ref!$B$36,INDEX(Ranks!$1:$1048576,$A195,AZ$1))","v":""},{"$f":"IF($A195=\"N/A\",Ref!$B$36,INDEX(Ranks!$1:$1048576,$A195,BA$1))","v":""},{"$f":"IF($A195=\"N/A\",Ref!$B$36,INDEX(Ranks!$1:$1048576,$A195,BB$1))","v":""},{"$f":"IF($A195=\"N/A\",Ref!$B$36,INDEX(Ranks!$1:$1048576,$A195,BC$1))","v":""},{"$f":"IF($A195=\"N/A\",Ref!$B$36,INDEX(Ranks!$1:$1048576,$A195,BD$1))","v":""},{"$f":"IF($A195=\"N/A\",Ref!$B$36,INDEX(Ranks!$1:$1048576,$A195,BE$1))","v":""},{"$f":"IF($A195=\"N/A\",Ref!$B$36,INDEX(Ranks!$1:$1048576,$A195,BF$1))","v":""},{"$f":"IF($A195=\"N/A\",Ref!$B$36,INDEX(Ranks!$1:$1048576,$A195,BG$1))","v":""},{"$f":"IF($A195=\"N/A\",Ref!$B$36,INDEX(Ranks!$1:$1048576,$A195,BH$1))","v":""},{"$f":"IF($A195=\"N/A\",Ref!$B$36,INDEX(Ranks!$1:$1048576,$A195,BI$1))","v":""},{"$f":"IF($A195=\"N/A\",Ref!$B$36,INDEX(Ranks!$1:$1048576,$A195,BJ$1))","v":""},{"$f":"IF($A195=\"N/A\",Ref!$B$36,INDEX(Ranks!$1:$1048576,$A195,BK$1))","v":""},{"$f":"IF($A195=\"N/A\",Ref!$B$36,INDEX(Ranks!$1:$1048576,$A195,BL$1))","v":""},{"$f":"IF($A195=\"N/A\",Ref!$B$36,INDEX(Ranks!$1:$1048576,$A195,BM$1))","v":""},{"$f":"IF($A195=\"N/A\",Ref!$B$36,INDEX(Ranks!$1:$1048576,$A195,BN$1))","v":""},{"$f":"IF($A195=\"N/A\",Ref!$B$36,INDEX(Ranks!$1:$1048576,$A195,BO$1))","v":""},{"$f":"IF($A195=\"N/A\",Ref!$B$36,INDEX(Ranks!$1:$1048576,$A195,BP$1))","v":""},{"$f":"IF($A195=\"N/A\",Ref!$B$36,INDEX(Ranks!$1:$1048576,$A195,BQ$1))","v":""},{"$f":"IF($A195=\"N/A\",Ref!$B$36,INDEX(Ranks!$1:$1048576,$A195,BR$1))","v":""},{"$f":"IF($A195=\"N/A\",Ref!$B$36,INDEX(Ranks!$1:$1048576,$A195,BS$1))","v":""},{"$f":"IF($A195=\"N/A\",Ref!$B$36,INDEX(Ranks!$1:$1048576,$A195,BT$1))","v":""},{"$f":"IF($A195=\"N/A\",Ref!$B$36,INDEX(Ranks!$1:$1048576,$A195,BU$1))","v":""},{"$f":"IF($A195=\"N/A\",Ref!$B$36,INDEX(Ranks!$1:$1048576,$A195,BV$1))","v":""},{"$f":"IF($A195=\"N/A\",Ref!$B$36,INDEX(Ranks!$1:$1048576,$A195,BW$1))","v":""},{"$f":"IF($A195=\"N/A\",Ref!$B$36,INDEX(Ranks!$1:$1048576,$A195,BX$1))","v":""},{"$f":"IF($A195=\"N/A\",Ref!$B$36,INDEX(Ranks!$1:$1048576,$A195,BY$1))","v":""},{"$f":"IF($A195=\"N/A\",Ref!$B$36,INDEX(Ranks!$1:$1048576,$A195,BZ$1))","v":""},{"$f":"IF($A195=\"N/A\",Ref!$B$36,INDEX(Ranks!$1:$1048576,$A195,CA$1))","v":""},{"$f":"IF($A195=\"N/A\",Ref!$B$36,INDEX(Ranks!$1:$1048576,$A195,CB$1))","v":""},{"$f":"IF($A195=\"N/A\",Ref!$B$36,INDEX(Ranks!$1:$1048576,$A195,CC$1))","v":""},{"$f":"IF($A195=\"N/A\",Ref!$B$36,INDEX(Ranks!$1:$1048576,$A195,CD$1))","v":""},{"$f":"IF($A195=\"N/A\",Ref!$B$36,INDEX(Ranks!$1:$1048576,$A195,CE$1))","v":""},{"$f":"IF($A195=\"N/A\",Ref!$B$36,INDEX(Ranks!$1:$1048576,$A195,CF$1))","v":""},{"$f":"IF($A195=\"N/A\",Ref!$B$36,INDEX(Ranks!$1:$1048576,$A195,CG$1))","v":""},{"$f":"IF($A195=\"N/A\",Ref!$B$36,INDEX(Ranks!$1:$1048576,$A195,CH$1))","v":""},{"$f":"IF($A195=\"N/A\",Ref!$B$36,INDEX(Ranks!$1:$1048576,$A195,CI$1))","v":""},{"$f":"IF($A195=\"N/A\",Ref!$B$36,INDEX(Ranks!$1:$1048576,$A195,CJ$1))","v":""},{"$f":"IF($A195=\"N/A\",Ref!$B$36,INDEX(Ranks!$1:$1048576,$A195,CK$1))","v":""},{"$f":"IF($A195=\"N/A\",Ref!$B$36,INDEX(Ranks!$1:$1048576,$A195,CL$1))","v":""},{"$f":"IF($A195=\"N/A\",Ref!$B$36,INDEX(Ranks!$1:$1048576,$A195,CM$1))","v":""},{"$f":"IF($A195=\"N/A\",Ref!$B$36,INDEX(Ranks!$1:$1048576,$A195,CN$1))","v":""},{"$f":"IF($A195=\"N/A\",Ref!$B$36,INDEX(Ranks!$1:$1048576,$A195,CO$1))","v":""},{"$f":"IF($A195=\"N/A\",Ref!$B$36,INDEX(Ranks!$1:$1048576,$A195,CP$1))","v":""},{"$f":"IF($A195=\"N/A\",Ref!$B$36,INDEX(Ranks!$1:$1048576,$A195,CQ$1))","v":""},{"$f":"IF($A195=\"N/A\",Ref!$B$36,INDEX(Ranks!$1:$1048576,$A195,CR$1))","v":""},{"$f":"IF($A195=\"N/A\",Ref!$B$36,INDEX(Ranks!$1:$1048576,$A195,CS$1))","v":""},{"$f":"IF($A195=\"N/A\",Ref!$B$36,INDEX(Ranks!$1:$1048576,$A195,CT$1))","v":""},{"$f":"IF($A195=\"N/A\",Ref!$B$36,INDEX(Ranks!$1:$1048576,$A195,CU$1))","v":""},{"$f":"IF($A195=\"N/A\",Ref!$B$36,INDEX(Ranks!$1:$1048576,$A195,CV$1))","v":""},{"$f":"IF($A195=\"N/A\",Ref!$B$36,INDEX(Ranks!$1:$1048576,$A195,CW$1))","v":""},{"$f":"IF($A195=\"N/A\",Ref!$B$36,INDEX(Ranks!$1:$1048576,$A195,CX$1))","v":""},{"$f":"IF($A195=\"N/A\",Ref!$B$36,INDEX(Ranks!$1:$1048576,$A195,CY$1))","v":""},{"$f":"IF($A195=\"N/A\",Ref!$B$36,INDEX(Ranks!$1:$1048576,$A195,CZ$1))","v":""},{"$f":"IF($A195=\"N/A\",Ref!$B$36,INDEX(Ranks!$1:$1048576,$A195,DA$1))","v":""},{"$f":"IF($A195=\"N/A\",Ref!$B$36,INDEX(Ranks!$1:$1048576,$A195,DB$1))","v":""},{"$f":"IF($A195=\"N/A\",Ref!$B$36,INDEX(Ranks!$1:$1048576,$A195,DC$1))","v":""},{"$f":"IF($A195=\"N/A\",Ref!$B$36,INDEX(Ranks!$1:$1048576,$A195,DD$1))","v":""},{"$f":"IF($A195=\"N/A\",Ref!$B$36,INDEX(Ranks!$1:$1048576,$A195,DE$1))","v":""},{"$f":"IF($A195=\"N/A\",Ref!$B$36,INDEX(Ranks!$1:$1048576,$A195,DF$1))","v":""},{"$f":"IF($A195=\"N/A\",Ref!$B$36,INDEX(Ranks!$1:$1048576,$A195,DG$1))","v":""},{"$f":"IF($A195=\"N/A\",Ref!$B$36,INDEX(Ranks!$1:$1048576,$A195,DH$1))","v":""},{"$f":"IF($A195=\"N/A\",Ref!$B$36,INDEX(Ranks!$1:$1048576,$A195,DI$1))","v":""},{"$f":"IF($A195=\"N/A\",Ref!$B$36,INDEX(Ranks!$1:$1048576,$A195,DJ$1))","v":""},{"$f":"IF($A195=\"N/A\",Ref!$B$36,INDEX(Ranks!$1:$1048576,$A195,DK$1))","v":""},{"$f":"IF($A195=\"N/A\",Ref!$B$36,INDEX(Ranks!$1:$1048576,$A195,DL$1))","v":""},{"$f":"IF($A195=\"N/A\",Ref!$B$36,INDEX(Ranks!$1:$1048576,$A195,DM$1))","v":""},{"$f":"IF($A195=\"N/A\",Ref!$B$36,INDEX(Ranks!$1:$1048576,$A195,DN$1))","v":""},{"$f":"IF($A195=\"N/A\",Ref!$B$36,INDEX(Ranks!$1:$1048576,$A195,DO$1))","v":""},{"$f":"IF($A195=\"N/A\",Ref!$B$36,INDEX(Ranks!$1:$1048576,$A195,DP$1))","v":""},{"$f":"IF($A195=\"N/A\",Ref!$B$36,INDEX(Ranks!$1:$1048576,$A195,DQ$1))","v":""},{"$f":"IF($A195=\"N/A\",Ref!$B$36,INDEX(Ranks!$1:$1048576,$A195,DR$1))","v":""},{"$f":"IF($A195=\"N/A\",Ref!$B$36,INDEX(Ranks!$1:$1048576,$A195,DS$1))","v":""},{"$f":"IF($A195=\"N/A\",Ref!$B$36,INDEX(Ranks!$1:$1048576,$A195,DT$1))","v":""},{"$f":"IF($A195=\"N/A\",Ref!$B$36,INDEX(Ranks!$1:$1048576,$A195,DU$1))","v":""},{"$f":"IF($A195=\"N/A\",Ref!$B$36,INDEX(Ranks!$1:$1048576,$A195,DV$1))","v":""},{"$f":"IF($A195=\"N/A\",Ref!$B$36,INDEX(Ranks!$1:$1048576,$A195,DW$1))","v":""},{"$f":"IF($A195=\"N/A\",Ref!$B$36,INDEX(Ranks!$1:$1048576,$A195,DX$1))","v":""},{"$f":"IF($A195=\"N/A\",Ref!$B$36,INDEX(Ranks!$1:$1048576,$A195,DY$1))","v":""},{"$f":"IF($A195=\"N/A\",Ref!$B$36,INDEX(Ranks!$1:$1048576,$A195,DZ$1))","v":""},{"$f":"IF($A195=\"N/A\",Ref!$B$36,INDEX(Ranks!$1:$1048576,$A195,EA$1))","v":""},{"$f":"IF($A195=\"N/A\",Ref!$B$36,INDEX(Ranks!$1:$1048576,$A195,EB$1))","v":""}]
[{"$f":"IFERROR(MATCH('Portfolio Page'!L196,Ranks!L:L,0),\"N/A\")","v":"N/A"},null,{"$f":"IF($A196=\"N/A\",\"\",INDEX(Ranks!$1:$1048576,$A196,C$1))","v":""},{"$f":"IF($A196=\"N/A\",Ref!$B$36,INDEX(Ranks!$1:$1048576,$A196,D$1))","v":""},{"$f":"IF($A196=\"N/A\",Ref!$B$36,INDEX(Ranks!$1:$1048576,$A196,E$1))","v":""},{"$f":"IF($A196=\"N/A\",\"\",INDEX(Ranks!$1:$1048576,$A196,F$1))","v":""},{"$f":"IF($A196=\"N/A\",\"\",INDEX(Ranks!$1:$1048576,$A196,G$1))","v":""},{"$f":"IF($A196=\"N/A\",\"\",INDEX(Ranks!$1:$1048576,$A196,H$1))","v":""},{"$f":"IF($A196=\"N/A\",\"\",INDEX(Ranks!$1:$1048576,$A196,I$1))","v":""},{"$f":"IF($A196=\"N/A\",\"\",INDEX(Ranks!$1:$1048576,$A196,J$1))","v":""},{"$f":"IF($A196=\"N/A\",\"\",INDEX(Ranks!$1:$1048576,$A196,K$1))","v":""},null,{"$f":"IF($A196=\"N/A\",Ref!$B$36,INDEX(Ranks!$1:$1048576,$A196,M$1))","v":""},{"$f":"IF($A196=\"N/A\",Ref!$B$36,INDEX(Ranks!$1:$1048576,$A196,N$1))","v":""},{"$f":"IF($A196=\"N/A\",Ref!$B$36,INDEX(Ranks!$1:$1048576,$A196,O$1))","v":""},{"$f":"IF($A196=\"N/A\",Ref!$B$36,INDEX(Ranks!$1:$1048576,$A196,P$1))","v":""},{"$f":"IF($A196=\"N/A\",Ref!$B$36,INDEX(Ranks!$1:$1048576,$A196,Q$1))","v":""},{"$f":"IF($A196=\"N/A\",Ref!$B$36,INDEX(Ranks!$1:$1048576,$A196,R$1))","v":""},{"$f":"IF($A196=\"N/A\",Ref!$B$36,INDEX(Ranks!$1:$1048576,$A196,S$1))","v":""},{"$f":"IF($A196=\"N/A\",Ref!$B$36,INDEX(Ranks!$1:$1048576,$A196,T$1))","v":""},{"$f":"IF($A196=\"N/A\",Ref!$B$36,INDEX(Ranks!$1:$1048576,$A196,U$1))","v":""},{"$f":"IF($A196=\"N/A\",Ref!$B$36,INDEX(Ranks!$1:$1048576,$A196,V$1))","v":""},{"$f":"IF($A196=\"N/A\",Ref!$B$36,INDEX(Ranks!$1:$1048576,$A196,W$1))","v":""},{"$f":"IF($A196=\"N/A\",Ref!$B$36,INDEX(Ranks!$1:$1048576,$A196,X$1))","v":""},{"$f":"IF($A196=\"N/A\",Ref!$B$36,INDEX(Ranks!$1:$1048576,$A196,Y$1))","v":""},{"$f":"IF($A196=\"N/A\",Ref!$B$36,INDEX(Ranks!$1:$1048576,$A196,Z$1))","v":""},{"$f":"IF($A196=\"N/A\",Ref!$B$36,INDEX(Ranks!$1:$1048576,$A196,AA$1))","v":""},{"$f":"IF($A196=\"N/A\",Ref!$B$36,INDEX(Ranks!$1:$1048576,$A196,AB$1))","v":""},{"$f":"IF($A196=\"N/A\",Ref!$B$36,INDEX(Ranks!$1:$1048576,$A196,AC$1))","v":""},{"$f":"IF($A196=\"N/A\",Ref!$B$36,INDEX(Ranks!$1:$1048576,$A196,AD$1))","v":""},{"$f":"IF($A196=\"N/A\",Ref!$B$36,INDEX(Ranks!$1:$1048576,$A196,AE$1))","v":""},{"$f":"IF($A196=\"N/A\",Ref!$B$36,INDEX(Ranks!$1:$1048576,$A196,AF$1))","v":""},{"$f":"IF($A196=\"N/A\",Ref!$B$36,INDEX(Ranks!$1:$1048576,$A196,AG$1))","v":""},{"$f":"IF($A196=\"N/A\",Ref!$B$36,INDEX(Ranks!$1:$1048576,$A196,AH$1))","v":""},{"$f":"IF($A196=\"N/A\",Ref!$B$36,INDEX(Ranks!$1:$1048576,$A196,AI$1))","v":""},{"$f":"IF($A196=\"N/A\",Ref!$B$36,INDEX(Ranks!$1:$1048576,$A196,AJ$1))","v":""},{"$f":"IF($A196=\"N/A\",Ref!$B$36,INDEX(Ranks!$1:$1048576,$A196,AK$1))","v":""},{"$f":"IF($A196=\"N/A\",Ref!$B$36,INDEX(Ranks!$1:$1048576,$A196,AL$1))","v":""},{"$f":"IF($A196=\"N/A\",Ref!$B$36,INDEX(Ranks!$1:$1048576,$A196,AM$1))","v":""},{"$f":"IF($A196=\"N/A\",Ref!$B$36,INDEX(Ranks!$1:$1048576,$A196,AN$1))","v":""},{"$f":"IF($A196=\"N/A\",Ref!$B$36,INDEX(Ranks!$1:$1048576,$A196,AO$1))","v":""},{"$f":"IF($A196=\"N/A\",Ref!$B$36,INDEX(Ranks!$1:$1048576,$A196,AP$1))","v":""},{"$f":"IF($A196=\"N/A\",Ref!$B$36,INDEX(Ranks!$1:$1048576,$A196,AQ$1))","v":""},{"$f":"IF($A196=\"N/A\",Ref!$B$36,INDEX(Ranks!$1:$1048576,$A196,AR$1))","v":""},{"$f":"IF($A196=\"N/A\",Ref!$B$36,INDEX(Ranks!$1:$1048576,$A196,AS$1))","v":""},{"$f":"IF($A196=\"N/A\",Ref!$B$36,INDEX(Ranks!$1:$1048576,$A196,AT$1))","v":""},{"$f":"IF($A196=\"N/A\",Ref!$B$36,INDEX(Ranks!$1:$1048576,$A196,AU$1))","v":""},{"$f":"IF($A196=\"N/A\",Ref!$B$36,INDEX(Ranks!$1:$1048576,$A196,AV$1))","v":""},{"$f":"IF($A196=\"N/A\",Ref!$B$36,INDEX(Ranks!$1:$1048576,$A196,AW$1))","v":""},{"$f":"IF($A196=\"N/A\",Ref!$B$36,INDEX(Ranks!$1:$1048576,$A196,AX$1))","v":""},{"$f":"IF($A196=\"N/A\",Ref!$B$36,INDEX(Ranks!$1:$1048576,$A196,AY$1))","v":""},{"$f":"IF($A196=\"N/A\",Ref!$B$36,INDEX(Ranks!$1:$1048576,$A196,AZ$1))","v":""},{"$f":"IF($A196=\"N/A\",Ref!$B$36,INDEX(Ranks!$1:$1048576,$A196,BA$1))","v":""},{"$f":"IF($A196=\"N/A\",Ref!$B$36,INDEX(Ranks!$1:$1048576,$A196,BB$1))","v":""},{"$f":"IF($A196=\"N/A\",Ref!$B$36,INDEX(Ranks!$1:$1048576,$A196,BC$1))","v":""},{"$f":"IF($A196=\"N/A\",Ref!$B$36,INDEX(Ranks!$1:$1048576,$A196,BD$1))","v":""},{"$f":"IF($A196=\"N/A\",Ref!$B$36,INDEX(Ranks!$1:$1048576,$A196,BE$1))","v":""},{"$f":"IF($A196=\"N/A\",Ref!$B$36,INDEX(Ranks!$1:$1048576,$A196,BF$1))","v":""},{"$f":"IF($A196=\"N/A\",Ref!$B$36,INDEX(Ranks!$1:$1048576,$A196,BG$1))","v":""},{"$f":"IF($A196=\"N/A\",Ref!$B$36,INDEX(Ranks!$1:$1048576,$A196,BH$1))","v":""},{"$f":"IF($A196=\"N/A\",Ref!$B$36,INDEX(Ranks!$1:$1048576,$A196,BI$1))","v":""},{"$f":"IF($A196=\"N/A\",Ref!$B$36,INDEX(Ranks!$1:$1048576,$A196,BJ$1))","v":""},{"$f":"IF($A196=\"N/A\",Ref!$B$36,INDEX(Ranks!$1:$1048576,$A196,BK$1))","v":""},{"$f":"IF($A196=\"N/A\",Ref!$B$36,INDEX(Ranks!$1:$1048576,$A196,BL$1))","v":""},{"$f":"IF($A196=\"N/A\",Ref!$B$36,INDEX(Ranks!$1:$1048576,$A196,BM$1))","v":""},{"$f":"IF($A196=\"N/A\",Ref!$B$36,INDEX(Ranks!$1:$1048576,$A196,BN$1))","v":""},{"$f":"IF($A196=\"N/A\",Ref!$B$36,INDEX(Ranks!$1:$1048576,$A196,BO$1))","v":""},{"$f":"IF($A196=\"N/A\",Ref!$B$36,INDEX(Ranks!$1:$1048576,$A196,BP$1))","v":""},{"$f":"IF($A196=\"N/A\",Ref!$B$36,INDEX(Ranks!$1:$1048576,$A196,BQ$1))","v":""},{"$f":"IF($A196=\"N/A\",Ref!$B$36,INDEX(Ranks!$1:$1048576,$A196,BR$1))","v":""},{"$f":"IF($A196=\"N/A\",Ref!$B$36,INDEX(Ranks!$1:$1048576,$A196,BS$1))","v":""},{"$f":"IF($A196=\"N/A\",Ref!$B$36,INDEX(Ranks!$1:$1048576,$A196,BT$1))","v":""},{"$f":"IF($A196=\"N/A\",Ref!$B$36,INDEX(Ranks!$1:$1048576,$A196,BU$1))","v":""},{"$f":"IF($A196=\"N/A\",Ref!$B$36,INDEX(Ranks!$1:$1048576,$A196,BV$1))","v":""},{"$f":"IF($A196=\"N/A\",Ref!$B$36,INDEX(Ranks!$1:$1048576,$A196,BW$1))","v":""},{"$f":"IF($A196=\"N/A\",Ref!$B$36,INDEX(Ranks!$1:$1048576,$A196,BX$1))","v":""},{"$f":"IF($A196=\"N/A\",Ref!$B$36,INDEX(Ranks!$1:$1048576,$A196,BY$1))","v":""},{"$f":"IF($A196=\"N/A\",Ref!$B$36,INDEX(Ranks!$1:$1048576,$A196,BZ$1))","v":""},{"$f":"IF($A196=\"N/A\",Ref!$B$36,INDEX(Ranks!$1:$1048576,$A196,CA$1))","v":""},{"$f":"IF($A196=\"N/A\",Ref!$B$36,INDEX(Ranks!$1:$1048576,$A196,CB$1))","v":""},{"$f":"IF($A196=\"N/A\",Ref!$B$36,INDEX(Ranks!$1:$1048576,$A196,CC$1))","v":""},{"$f":"IF($A196=\"N/A\",Ref!$B$36,INDEX(Ranks!$1:$1048576,$A196,CD$1))","v":""},{"$f":"IF($A196=\"N/A\",Ref!$B$36,INDEX(Ranks!$1:$1048576,$A196,CE$1))","v":""},{"$f":"IF($A196=\"N/A\",Ref!$B$36,INDEX(Ranks!$1:$1048576,$A196,CF$1))","v":""},{"$f":"IF($A196=\"N/A\",Ref!$B$36,INDEX(Ranks!$1:$1048576,$A196,CG$1))","v":""},{"$f":"IF($A196=\"N/A\",Ref!$B$36,INDEX(Ranks!$1:$1048576,$A196,CH$1))","v":""},{"$f":"IF($A196=\"N/A\",Ref!$B$36,INDEX(Ranks!$1:$1048576,$A196,CI$1))","v":""},{"$f":"IF($A196=\"N/A\",Ref!$B$36,INDEX(Ranks!$1:$1048576,$A196,CJ$1))","v":""},{"$f":"IF($A196=\"N/A\",Ref!$B$36,INDEX(Ranks!$1:$1048576,$A196,CK$1))","v":""},{"$f":"IF($A196=\"N/A\",Ref!$B$36,INDEX(Ranks!$1:$1048576,$A196,CL$1))","v":""},{"$f":"IF($A196=\"N/A\",Ref!$B$36,INDEX(Ranks!$1:$1048576,$A196,CM$1))","v":""},{"$f":"IF($A196=\"N/A\",Ref!$B$36,INDEX(Ranks!$1:$1048576,$A196,CN$1))","v":""},{"$f":"IF($A196=\"N/A\",Ref!$B$36,INDEX(Ranks!$1:$1048576,$A196,CO$1))","v":""},{"$f":"IF($A196=\"N/A\",Ref!$B$36,INDEX(Ranks!$1:$1048576,$A196,CP$1))","v":""},{"$f":"IF($A196=\"N/A\",Ref!$B$36,INDEX(Ranks!$1:$1048576,$A196,CQ$1))","v":""},{"$f":"IF($A196=\"N/A\",Ref!$B$36,INDEX(Ranks!$1:$1048576,$A196,CR$1))","v":""},{"$f":"IF($A196=\"N/A\",Ref!$B$36,INDEX(Ranks!$1:$1048576,$A196,CS$1))","v":""},{"$f":"IF($A196=\"N/A\",Ref!$B$36,INDEX(Ranks!$1:$1048576,$A196,CT$1))","v":""},{"$f":"IF($A196=\"N/A\",Ref!$B$36,INDEX(Ranks!$1:$1048576,$A196,CU$1))","v":""},{"$f":"IF($A196=\"N/A\",Ref!$B$36,INDEX(Ranks!$1:$1048576,$A196,CV$1))","v":""},{"$f":"IF($A196=\"N/A\",Ref!$B$36,INDEX(Ranks!$1:$1048576,$A196,CW$1))","v":""},{"$f":"IF($A196=\"N/A\",Ref!$B$36,INDEX(Ranks!$1:$1048576,$A196,CX$1))","v":""},{"$f":"IF($A196=\"N/A\",Ref!$B$36,INDEX(Ranks!$1:$1048576,$A196,CY$1))","v":""},{"$f":"IF($A196=\"N/A\",Ref!$B$36,INDEX(Ranks!$1:$1048576,$A196,CZ$1))","v":""},{"$f":"IF($A196=\"N/A\",Ref!$B$36,INDEX(Ranks!$1:$1048576,$A196,DA$1))","v":""},{"$f":"IF($A196=\"N/A\",Ref!$B$36,INDEX(Ranks!$1:$1048576,$A196,DB$1))","v":""},{"$f":"IF($A196=\"N/A\",Ref!$B$36,INDEX(Ranks!$1:$1048576,$A196,DC$1))","v":""},{"$f":"IF($A196=\"N/A\",Ref!$B$36,INDEX(Ranks!$1:$1048576,$A196,DD$1))","v":""},{"$f":"IF($A196=\"N/A\",Ref!$B$36,INDEX(Ranks!$1:$1048576,$A196,DE$1))","v":""},{"$f":"IF($A196=\"N/A\",Ref!$B$36,INDEX(Ranks!$1:$1048576,$A196,DF$1))","v":""},{"$f":"IF($A196=\"N/A\",Ref!$B$36,INDEX(Ranks!$1:$1048576,$A196,DG$1))","v":""},{"$f":"IF($A196=\"N/A\",Ref!$B$36,INDEX(Ranks!$1:$1048576,$A196,DH$1))","v":""},{"$f":"IF($A196=\"N/A\",Ref!$B$36,INDEX(Ranks!$1:$1048576,$A196,DI$1))","v":""},{"$f":"IF($A196=\"N/A\",Ref!$B$36,INDEX(Ranks!$1:$1048576,$A196,DJ$1))","v":""},{"$f":"IF($A196=\"N/A\",Ref!$B$36,INDEX(Ranks!$1:$1048576,$A196,DK$1))","v":""},{"$f":"IF($A196=\"N/A\",Ref!$B$36,INDEX(Ranks!$1:$1048576,$A196,DL$1))","v":""},{"$f":"IF($A196=\"N/A\",Ref!$B$36,INDEX(Ranks!$1:$1048576,$A196,DM$1))","v":""},{"$f":"IF($A196=\"N/A\",Ref!$B$36,INDEX(Ranks!$1:$1048576,$A196,DN$1))","v":""},{"$f":"IF($A196=\"N/A\",Ref!$B$36,INDEX(Ranks!$1:$1048576,$A196,DO$1))","v":""},{"$f":"IF($A196=\"N/A\",Ref!$B$36,INDEX(Ranks!$1:$1048576,$A196,DP$1))","v":""},{"$f":"IF($A196=\"N/A\",Ref!$B$36,INDEX(Ranks!$1:$1048576,$A196,DQ$1))","v":""},{"$f":"IF($A196=\"N/A\",Ref!$B$36,INDEX(Ranks!$1:$1048576,$A196,DR$1))","v":""},{"$f":"IF($A196=\"N/A\",Ref!$B$36,INDEX(Ranks!$1:$1048576,$A196,DS$1))","v":""},{"$f":"IF($A196=\"N/A\",Ref!$B$36,INDEX(Ranks!$1:$1048576,$A196,DT$1))","v":""},{"$f":"IF($A196=\"N/A\",Ref!$B$36,INDEX(Ranks!$1:$1048576,$A196,DU$1))","v":""},{"$f":"IF($A196=\"N/A\",Ref!$B$36,INDEX(Ranks!$1:$1048576,$A196,DV$1))","v":""},{"$f":"IF($A196=\"N/A\",Ref!$B$36,INDEX(Ranks!$1:$1048576,$A196,DW$1))","v":""},{"$f":"IF($A196=\"N/A\",Ref!$B$36,INDEX(Ranks!$1:$1048576,$A196,DX$1))","v":""},{"$f":"IF($A196=\"N/A\",Ref!$B$36,INDEX(Ranks!$1:$1048576,$A196,DY$1))","v":""},{"$f":"IF($A196=\"N/A\",Ref!$B$36,INDEX(Ranks!$1:$1048576,$A196,DZ$1))","v":""},{"$f":"IF($A196=\"N/A\",Ref!$B$36,INDEX(Ranks!$1:$1048576,$A196,EA$1))","v":""},{"$f":"IF($A196=\"N/A\",Ref!$B$36,INDEX(Ranks!$1:$1048576,$A196,EB$1))","v":""}]
[{"$f":"IFERROR(MATCH('Portfolio Page'!L197,Ranks!L:L,0),\"N/A\")","v":"N/A"},null,{"$f":"IF($A197=\"N/A\",\"\",INDEX(Ranks!$1:$1048576,$A197,C$1))","v":""},{"$f":"IF($A197=\"N/A\",Ref!$B$36,INDEX(Ranks!$1:$1048576,$A197,D$1))","v":""},{"$f":"IF($A197=\"N/A\",Ref!$B$36,INDEX(Ranks!$1:$1048576,$A197,E$1))","v":""},{"$f":"IF($A197=\"N/A\",\"\",INDEX(Ranks!$1:$1048576,$A197,F$1))","v":""},{"$f":"IF($A197=\"N/A\",\"\",INDEX(Ranks!$1:$1048576,$A197,G$1))","v":""},{"$f":"IF($A197=\"N/A\",\"\",INDEX(Ranks!$1:$1048576,$A197,H$1))","v":""},{"$f":"IF($A197=\"N/A\",\"\",INDEX(Ranks!$1:$1048576,$A197,I$1))","v":""},{"$f":"IF($A197=\"N/A\",\"\",INDEX(Ranks!$1:$1048576,$A197,J$1))","v":""},{"$f":"IF($A197=\"N/A\",\"\",INDEX(Ranks!$1:$1048576,$A197,K$1))","v":""},null,{"$f":"IF($A197=\"N/A\",Ref!$B$36,INDEX(Ranks!$1:$1048576,$A197,M$1))","v":""},{"$f":"IF($A197=\"N/A\",Ref!$B$36,INDEX(Ranks!$1:$1048576,$A197,N$1))","v":""},{"$f":"IF($A197=\"N/A\",Ref!$B$36,INDEX(Ranks!$1:$1048576,$A197,O$1))","v":""},{"$f":"IF($A197=\"N/A\",Ref!$B$36,INDEX(Ranks!$1:$1048576,$A197,P$1))","v":""},{"$f":"IF($A197=\"N/A\",Ref!$B$36,INDEX(Ranks!$1:$1048576,$A197,Q$1))","v":""},{"$f":"IF($A197=\"N/A\",Ref!$B$36,INDEX(Ranks!$1:$1048576,$A197,R$1))","v":""},{"$f":"IF($A197=\"N/A\",Ref!$B$36,INDEX(Ranks!$1:$1048576,$A197,S$1))","v":""},{"$f":"IF($A197=\"N/A\",Ref!$B$36,INDEX(Ranks!$1:$1048576,$A197,T$1))","v":""},{"$f":"IF($A197=\"N/A\",Ref!$B$36,INDEX(Ranks!$1:$1048576,$A197,U$1))","v":""},{"$f":"IF($A197=\"N/A\",Ref!$B$36,INDEX(Ranks!$1:$1048576,$A197,V$1))","v":""},{"$f":"IF($A197=\"N/A\",Ref!$B$36,INDEX(Ranks!$1:$1048576,$A197,W$1))","v":""},{"$f":"IF($A197=\"N/A\",Ref!$B$36,INDEX(Ranks!$1:$1048576,$A197,X$1))","v":""},{"$f":"IF($A197=\"N/A\",Ref!$B$36,INDEX(Ranks!$1:$1048576,$A197,Y$1))","v":""},{"$f":"IF($A197=\"N/A\",Ref!$B$36,INDEX(Ranks!$1:$1048576,$A197,Z$1))","v":""},{"$f":"IF($A197=\"N/A\",Ref!$B$36,INDEX(Ranks!$1:$1048576,$A197,AA$1))","v":""},{"$f":"IF($A197=\"N/A\",Ref!$B$36,INDEX(Ranks!$1:$1048576,$A197,AB$1))","v":""},{"$f":"IF($A197=\"N/A\",Ref!$B$36,INDEX(Ranks!$1:$1048576,$A197,AC$1))","v":""},{"$f":"IF($A197=\"N/A\",Ref!$B$36,INDEX(Ranks!$1:$1048576,$A197,AD$1))","v":""},{"$f":"IF($A197=\"N/A\",Ref!$B$36,INDEX(Ranks!$1:$1048576,$A197,AE$1))","v":""},{"$f":"IF($A197=\"N/A\",Ref!$B$36,INDEX(Ranks!$1:$1048576,$A197,AF$1))","v":""},{"$f":"IF($A197=\"N/A\",Ref!$B$36,INDEX(Ranks!$1:$1048576,$A197,AG$1))","v":""},{"$f":"IF($A197=\"N/A\",Ref!$B$36,INDEX(Ranks!$1:$1048576,$A197,AH$1))","v":""},{"$f":"IF($A197=\"N/A\",Ref!$B$36,INDEX(Ranks!$1:$1048576,$A197,AI$1))","v":""},{"$f":"IF($A197=\"N/A\",Ref!$B$36,INDEX(Ranks!$1:$1048576,$A197,AJ$1))","v":""},{"$f":"IF($A197=\"N/A\",Ref!$B$36,INDEX(Ranks!$1:$1048576,$A197,AK$1))","v":""},{"$f":"IF($A197=\"N/A\",Ref!$B$36,INDEX(Ranks!$1:$1048576,$A197,AL$1))","v":""},{"$f":"IF($A197=\"N/A\",Ref!$B$36,INDEX(Ranks!$1:$1048576,$A197,AM$1))","v":""},{"$f":"IF($A197=\"N/A\",Ref!$B$36,INDEX(Ranks!$1:$1048576,$A197,AN$1))","v":""},{"$f":"IF($A197=\"N/A\",Ref!$B$36,INDEX(Ranks!$1:$1048576,$A197,AO$1))","v":""},{"$f":"IF($A197=\"N/A\",Ref!$B$36,INDEX(Ranks!$1:$1048576,$A197,AP$1))","v":""},{"$f":"IF($A197=\"N/A\",Ref!$B$36,INDEX(Ranks!$1:$1048576,$A197,AQ$1))","v":""},{"$f":"IF($A197=\"N/A\",Ref!$B$36,INDEX(Ranks!$1:$1048576,$A197,AR$1))","v":""},{"$f":"IF($A197=\"N/A\",Ref!$B$36,INDEX(Ranks!$1:$1048576,$A197,AS$1))","v":""},{"$f":"IF($A197=\"N/A\",Ref!$B$36,INDEX(Ranks!$1:$1048576,$A197,AT$1))","v":""},{"$f":"IF($A197=\"N/A\",Ref!$B$36,INDEX(Ranks!$1:$1048576,$A197,AU$1))","v":""},{"$f":"IF($A197=\"N/A\",Ref!$B$36,INDEX(Ranks!$1:$1048576,$A197,AV$1))","v":""},{"$f":"IF($A197=\"N/A\",Ref!$B$36,INDEX(Ranks!$1:$1048576,$A197,AW$1))","v":""},{"$f":"IF($A197=\"N/A\",Ref!$B$36,INDEX(Ranks!$1:$1048576,$A197,AX$1))","v":""},{"$f":"IF($A197=\"N/A\",Ref!$B$36,INDEX(Ranks!$1:$1048576,$A197,AY$1))","v":""},{"$f":"IF($A197=\"N/A\",Ref!$B$36,INDEX(Ranks!$1:$1048576,$A197,AZ$1))","v":""},{"$f":"IF($A197=\"N/A\",Ref!$B$36,INDEX(Ranks!$1:$1048576,$A197,BA$1))","v":""},{"$f":"IF($A197=\"N/A\",Ref!$B$36,INDEX(Ranks!$1:$1048576,$A197,BB$1))","v":""},{"$f":"IF($A197=\"N/A\",Ref!$B$36,INDEX(Ranks!$1:$1048576,$A197,BC$1))","v":""},{"$f":"IF($A197=\"N/A\",Ref!$B$36,INDEX(Ranks!$1:$1048576,$A197,BD$1))","v":""},{"$f":"IF($A197=\"N/A\",Ref!$B$36,INDEX(Ranks!$1:$1048576,$A197,BE$1))","v":""},{"$f":"IF($A197=\"N/A\",Ref!$B$36,INDEX(Ranks!$1:$1048576,$A197,BF$1))","v":""},{"$f":"IF($A197=\"N/A\",Ref!$B$36,INDEX(Ranks!$1:$1048576,$A197,BG$1))","v":""},{"$f":"IF($A197=\"N/A\",Ref!$B$36,INDEX(Ranks!$1:$1048576,$A197,BH$1))","v":""},{"$f":"IF($A197=\"N/A\",Ref!$B$36,INDEX(Ranks!$1:$1048576,$A197,BI$1))","v":""},{"$f":"IF($A197=\"N/A\",Ref!$B$36,INDEX(Ranks!$1:$1048576,$A197,BJ$1))","v":""},{"$f":"IF($A197=\"N/A\",Ref!$B$36,INDEX(Ranks!$1:$1048576,$A197,BK$1))","v":""},{"$f":"IF($A197=\"N/A\",Ref!$B$36,INDEX(Ranks!$1:$1048576,$A197,BL$1))","v":""},{"$f":"IF($A197=\"N/A\",Ref!$B$36,INDEX(Ranks!$1:$1048576,$A197,BM$1))","v":""},{"$f":"IF($A197=\"N/A\",Ref!$B$36,INDEX(Ranks!$1:$1048576,$A197,BN$1))","v":""},{"$f":"IF($A197=\"N/A\",Ref!$B$36,INDEX(Ranks!$1:$1048576,$A197,BO$1))","v":""},{"$f":"IF($A197=\"N/A\",Ref!$B$36,INDEX(Ranks!$1:$1048576,$A197,BP$1))","v":""},{"$f":"IF($A197=\"N/A\",Ref!$B$36,INDEX(Ranks!$1:$1048576,$A197,BQ$1))","v":""},{"$f":"IF($A197=\"N/A\",Ref!$B$36,INDEX(Ranks!$1:$1048576,$A197,BR$1))","v":""},{"$f":"IF($A197=\"N/A\",Ref!$B$36,INDEX(Ranks!$1:$1048576,$A197,BS$1))","v":""},{"$f":"IF($A197=\"N/A\",Ref!$B$36,INDEX(Ranks!$1:$1048576,$A197,BT$1))","v":""},{"$f":"IF($A197=\"N/A\",Ref!$B$36,INDEX(Ranks!$1:$1048576,$A197,BU$1))","v":""},{"$f":"IF($A197=\"N/A\",Ref!$B$36,INDEX(Ranks!$1:$1048576,$A197,BV$1))","v":""},{"$f":"IF($A197=\"N/A\",Ref!$B$36,INDEX(Ranks!$1:$1048576,$A197,BW$1))","v":""},{"$f":"IF($A197=\"N/A\",Ref!$B$36,INDEX(Ranks!$1:$1048576,$A197,BX$1))","v":""},{"$f":"IF($A197=\"N/A\",Ref!$B$36,INDEX(Ranks!$1:$1048576,$A197,BY$1))","v":""},{"$f":"IF($A197=\"N/A\",Ref!$B$36,INDEX(Ranks!$1:$1048576,$A197,BZ$1))","v":""},{"$f":"IF($A197=\"N/A\",Ref!$B$36,INDEX(Ranks!$1:$1048576,$A197,CA$1))","v":""},{"$f":"IF($A197=\"N/A\",Ref!$B$36,INDEX(Ranks!$1:$1048576,$A197,CB$1))","v":""},{"$f":"IF($A197=\"N/A\",Ref!$B$36,INDEX(Ranks!$1:$1048576,$A197,CC$1))","v":""},{"$f":"IF($A197=\"N/A\",Ref!$B$36,INDEX(Ranks!$1:$1048576,$A197,CD$1))","v":""},{"$f":"IF($A197=\"N/A\",Ref!$B$36,INDEX(Ranks!$1:$1048576,$A197,CE$1))","v":""},{"$f":"IF($A197=\"N/A\",Ref!$B$36,INDEX(Ranks!$1:$1048576,$A197,CF$1))","v":""},{"$f":"IF($A197=\"N/A\",Ref!$B$36,INDEX(Ranks!$1:$1048576,$A197,CG$1))","v":""},{"$f":"IF($A197=\"N/A\",Ref!$B$36,INDEX(Ranks!$1:$1048576,$A197,CH$1))","v":""},{"$f":"IF($A197=\"N/A\",Ref!$B$36,INDEX(Ranks!$1:$1048576,$A197,CI$1))","v":""},{"$f":"IF($A197=\"N/A\",Ref!$B$36,INDEX(Ranks!$1:$1048576,$A197,CJ$1))","v":""},{"$f":"IF($A197=\"N/A\",Ref!$B$36,INDEX(Ranks!$1:$1048576,$A197,CK$1))","v":""},{"$f":"IF($A197=\"N/A\",Ref!$B$36,INDEX(Ranks!$1:$1048576,$A197,CL$1))","v":""},{"$f":"IF($A197=\"N/A\",Ref!$B$36,INDEX(Ranks!$1:$1048576,$A197,CM$1))","v":""},{"$f":"IF($A197=\"N/A\",Ref!$B$36,INDEX(Ranks!$1:$1048576,$A197,CN$1))","v":""},{"$f":"IF($A197=\"N/A\",Ref!$B$36,INDEX(Ranks!$1:$1048576,$A197,CO$1))","v":""},{"$f":"IF($A197=\"N/A\",Ref!$B$36,INDEX(Ranks!$1:$1048576,$A197,CP$1))","v":""},{"$f":"IF($A197=\"N/A\",Ref!$B$36,INDEX(Ranks!$1:$1048576,$A197,CQ$1))","v":""},{"$f":"IF($A197=\"N/A\",Ref!$B$36,INDEX(Ranks!$1:$1048576,$A197,CR$1))","v":""},{"$f":"IF($A197=\"N/A\",Ref!$B$36,INDEX(Ranks!$1:$1048576,$A197,CS$1))","v":""},{"$f":"IF($A197=\"N/A\",Ref!$B$36,INDEX(Ranks!$1:$1048576,$A197,CT$1))","v":""},{"$f":"IF($A197=\"N/A\",Ref!$B$36,INDEX(Ranks!$1:$1048576,$A197,CU$1))","v":""},{"$f":"IF($A197=\"N/A\",Ref!$B$36,INDEX(Ranks!$1:$1048576,$A197,CV$1))","v":""},{"$f":"IF($A197=\"N/A\",Ref!$B$36,INDEX(Ranks!$1:$1048576,$A197,CW$1))","v":""},{"$f":"IF($A197=\"N/A\",Ref!$B$36,INDEX(Ranks!$1:$1048576,$A197,CX$1))","v":""},{"$f":"IF($A197=\"N/A\",Ref!$B$36,INDEX(Ranks!$1:$1048576,$A197,CY$1))","v":""},{"$f":"IF($A197=\"N/A\",Ref!$B$36,INDEX(Ranks!$1:$1048576,$A197,CZ$1))","v":""},{"$f":"IF($A197=\"N/A\",Ref!$B$36,INDEX(Ranks!$1:$1048576,$A197,DA$1))","v":""},{"$f":"IF($A197=\"N/A\",Ref!$B$36,INDEX(Ranks!$1:$1048576,$A197,DB$1))","v":""},{"$f":"IF($A197=\"N/A\",Ref!$B$36,INDEX(Ranks!$1:$1048576,$A197,DC$1))","v":""},{"$f":"IF($A197=\"N/A\",Ref!$B$36,INDEX(Ranks!$1:$1048576,$A197,DD$1))","v":""},{"$f":"IF($A197=\"N/A\",Ref!$B$36,INDEX(Ranks!$1:$1048576,$A197,DE$1))","v":""},{"$f":"IF($A197=\"N/A\",Ref!$B$36,INDEX(Ranks!$1:$1048576,$A197,DF$1))","v":""},{"$f":"IF($A197=\"N/A\",Ref!$B$36,INDEX(Ranks!$1:$1048576,$A197,DG$1))","v":""},{"$f":"IF($A197=\"N/A\",Ref!$B$36,INDEX(Ranks!$1:$1048576,$A197,DH$1))","v":""},{"$f":"IF($A197=\"N/A\",Ref!$B$36,INDEX(Ranks!$1:$1048576,$A197,DI$1))","v":""},{"$f":"IF($A197=\"N/A\",Ref!$B$36,INDEX(Ranks!$1:$1048576,$A197,DJ$1))","v":""},{"$f":"IF($A197=\"N/A\",Ref!$B$36,INDEX(Ranks!$1:$1048576,$A197,DK$1))","v":""},{"$f":"IF($A197=\"N/A\",Ref!$B$36,INDEX(Ranks!$1:$1048576,$A197,DL$1))","v":""},{"$f":"IF($A197=\"N/A\",Ref!$B$36,INDEX(Ranks!$1:$1048576,$A197,DM$1))","v":""},{"$f":"IF($A197=\"N/A\",Ref!$B$36,INDEX(Ranks!$1:$1048576,$A197,DN$1))","v":""},{"$f":"IF($A197=\"N/A\",Ref!$B$36,INDEX(Ranks!$1:$1048576,$A197,DO$1))","v":""},{"$f":"IF($A197=\"N/A\",Ref!$B$36,INDEX(Ranks!$1:$1048576,$A197,DP$1))","v":""},{"$f":"IF($A197=\"N/A\",Ref!$B$36,INDEX(Ranks!$1:$1048576,$A197,DQ$1))","v":""},{"$f":"IF($A197=\"N/A\",Ref!$B$36,INDEX(Ranks!$1:$1048576,$A197,DR$1))","v":""},{"$f":"IF($A197=\"N/A\",Ref!$B$36,INDEX(Ranks!$1:$1048576,$A197,DS$1))","v":""},{"$f":"IF($A197=\"N/A\",Ref!$B$36,INDEX(Ranks!$1:$1048576,$A197,DT$1))","v":""},{"$f":"IF($A197=\"N/A\",Ref!$B$36,INDEX(Ranks!$1:$1048576,$A197,DU$1))","v":""},{"$f":"IF($A197=\"N/A\",Ref!$B$36,INDEX(Ranks!$1:$1048576,$A197,DV$1))","v":""},{"$f":"IF($A197=\"N/A\",Ref!$B$36,INDEX(Ranks!$1:$1048576,$A197,DW$1))","v":""},{"$f":"IF($A197=\"N/A\",Ref!$B$36,INDEX(Ranks!$1:$1048576,$A197,DX$1))","v":""},{"$f":"IF($A197=\"N/A\",Ref!$B$36,INDEX(Ranks!$1:$1048576,$A197,DY$1))","v":""},{"$f":"IF($A197=\"N/A\",Ref!$B$36,INDEX(Ranks!$1:$1048576,$A197,DZ$1))","v":""},{"$f":"IF($A197=\"N/A\",Ref!$B$36,INDEX(Ranks!$1:$1048576,$A197,EA$1))","v":""},{"$f":"IF($A197=\"N/A\",Ref!$B$36,INDEX(Ranks!$1:$1048576,$A197,EB$1))","v":""}]
[{"$f":"IFERROR(MATCH('Portfolio Page'!L198,Ranks!L:L,0),\"N/A\")","v":"N/A"},null,{"$f":"IF($A198=\"N/A\",\"\",INDEX(Ranks!$1:$1048576,$A198,C$1))","v":""},{"$f":"IF($A198=\"N/A\",Ref!$B$36,INDEX(Ranks!$1:$1048576,$A198,D$1))","v":""},{"$f":"IF($A198=\"N/A\",Ref!$B$36,INDEX(Ranks!$1:$1048576,$A198,E$1))","v":""},{"$f":"IF($A198=\"N/A\",\"\",INDEX(Ranks!$1:$1048576,$A198,F$1))","v":""},{"$f":"IF($A198=\"N/A\",\"\",INDEX(Ranks!$1:$1048576,$A198,G$1))","v":""},{"$f":"IF($A198=\"N/A\",\"\",INDEX(Ranks!$1:$1048576,$A198,H$1))","v":""},{"$f":"IF($A198=\"N/A\",\"\",INDEX(Ranks!$1:$1048576,$A198,I$1))","v":""},{"$f":"IF($A198=\"N/A\",\"\",INDEX(Ranks!$1:$1048576,$A198,J$1))","v":""},{"$f":"IF($A198=\"N/A\",\"\",INDEX(Ranks!$1:$1048576,$A198,K$1))","v":""},null,{"$f":"IF($A198=\"N/A\",Ref!$B$36,INDEX(Ranks!$1:$1048576,$A198,M$1))","v":""},{"$f":"IF($A198=\"N/A\",Ref!$B$36,INDEX(Ranks!$1:$1048576,$A198,N$1))","v":""},{"$f":"IF($A198=\"N/A\",Ref!$B$36,INDEX(Ranks!$1:$1048576,$A198,O$1))","v":""},{"$f":"IF($A198=\"N/A\",Ref!$B$36,INDEX(Ranks!$1:$1048576,$A198,P$1))","v":""},{"$f":"IF($A198=\"N/A\",Ref!$B$36,INDEX(Ranks!$1:$1048576,$A198,Q$1))","v":""},{"$f":"IF($A198=\"N/A\",Ref!$B$36,INDEX(Ranks!$1:$1048576,$A198,R$1))","v":""},{"$f":"IF($A198=\"N/A\",Ref!$B$36,INDEX(Ranks!$1:$1048576,$A198,S$1))","v":""},{"$f":"IF($A198=\"N/A\",Ref!$B$36,INDEX(Ranks!$1:$1048576,$A198,T$1))","v":""},{"$f":"IF($A198=\"N/A\",Ref!$B$36,INDEX(Ranks!$1:$1048576,$A198,U$1))","v":""},{"$f":"IF($A198=\"N/A\",Ref!$B$36,INDEX(Ranks!$1:$1048576,$A198,V$1))","v":""},{"$f":"IF($A198=\"N/A\",Ref!$B$36,INDEX(Ranks!$1:$1048576,$A198,W$1))","v":""},{"$f":"IF($A198=\"N/A\",Ref!$B$36,INDEX(Ranks!$1:$1048576,$A198,X$1))","v":""},{"$f":"IF($A198=\"N/A\",Ref!$B$36,INDEX(Ranks!$1:$1048576,$A198,Y$1))","v":""},{"$f":"IF($A198=\"N/A\",Ref!$B$36,INDEX(Ranks!$1:$1048576,$A198,Z$1))","v":""},{"$f":"IF($A198=\"N/A\",Ref!$B$36,INDEX(Ranks!$1:$1048576,$A198,AA$1))","v":""},{"$f":"IF($A198=\"N/A\",Ref!$B$36,INDEX(Ranks!$1:$1048576,$A198,AB$1))","v":""},{"$f":"IF($A198=\"N/A\",Ref!$B$36,INDEX(Ranks!$1:$1048576,$A198,AC$1))","v":""},{"$f":"IF($A198=\"N/A\",Ref!$B$36,INDEX(Ranks!$1:$1048576,$A198,AD$1))","v":""},{"$f":"IF($A198=\"N/A\",Ref!$B$36,INDEX(Ranks!$1:$1048576,$A198,AE$1))","v":""},{"$f":"IF($A198=\"N/A\",Ref!$B$36,INDEX(Ranks!$1:$1048576,$A198,AF$1))","v":""},{"$f":"IF($A198=\"N/A\",Ref!$B$36,INDEX(Ranks!$1:$1048576,$A198,AG$1))","v":""},{"$f":"IF($A198=\"N/A\",Ref!$B$36,INDEX(Ranks!$1:$1048576,$A198,AH$1))","v":""},{"$f":"IF($A198=\"N/A\",Ref!$B$36,INDEX(Ranks!$1:$1048576,$A198,AI$1))","v":""},{"$f":"IF($A198=\"N/A\",Ref!$B$36,INDEX(Ranks!$1:$1048576,$A198,AJ$1))","v":""},{"$f":"IF($A198=\"N/A\",Ref!$B$36,INDEX(Ranks!$1:$1048576,$A198,AK$1))","v":""},{"$f":"IF($A198=\"N/A\",Ref!$B$36,INDEX(Ranks!$1:$1048576,$A198,AL$1))","v":""},{"$f":"IF($A198=\"N/A\",Ref!$B$36,INDEX(Ranks!$1:$1048576,$A198,AM$1))","v":""},{"$f":"IF($A198=\"N/A\",Ref!$B$36,INDEX(Ranks!$1:$1048576,$A198,AN$1))","v":""},{"$f":"IF($A198=\"N/A\",Ref!$B$36,INDEX(Ranks!$1:$1048576,$A198,AO$1))","v":""},{"$f":"IF($A198=\"N/A\",Ref!$B$36,INDEX(Ranks!$1:$1048576,$A198,AP$1))","v":""},{"$f":"IF($A198=\"N/A\",Ref!$B$36,INDEX(Ranks!$1:$1048576,$A198,AQ$1))","v":""},{"$f":"IF($A198=\"N/A\",Ref!$B$36,INDEX(Ranks!$1:$1048576,$A198,AR$1))","v":""},{"$f":"IF($A198=\"N/A\",Ref!$B$36,INDEX(Ranks!$1:$1048576,$A198,AS$1))","v":""},{"$f":"IF($A198=\"N/A\",Ref!$B$36,INDEX(Ranks!$1:$1048576,$A198,AT$1))","v":""},{"$f":"IF($A198=\"N/A\",Ref!$B$36,INDEX(Ranks!$1:$1048576,$A198,AU$1))","v":""},{"$f":"IF($A198=\"N/A\",Ref!$B$36,INDEX(Ranks!$1:$1048576,$A198,AV$1))","v":""},{"$f":"IF($A198=\"N/A\",Ref!$B$36,INDEX(Ranks!$1:$1048576,$A198,AW$1))","v":""},{"$f":"IF($A198=\"N/A\",Ref!$B$36,INDEX(Ranks!$1:$1048576,$A198,AX$1))","v":""},{"$f":"IF($A198=\"N/A\",Ref!$B$36,INDEX(Ranks!$1:$1048576,$A198,AY$1))","v":""},{"$f":"IF($A198=\"N/A\",Ref!$B$36,INDEX(Ranks!$1:$1048576,$A198,AZ$1))","v":""},{"$f":"IF($A198=\"N/A\",Ref!$B$36,INDEX(Ranks!$1:$1048576,$A198,BA$1))","v":""},{"$f":"IF($A198=\"N/A\",Ref!$B$36,INDEX(Ranks!$1:$1048576,$A198,BB$1))","v":""},{"$f":"IF($A198=\"N/A\",Ref!$B$36,INDEX(Ranks!$1:$1048576,$A198,BC$1))","v":""},{"$f":"IF($A198=\"N/A\",Ref!$B$36,INDEX(Ranks!$1:$1048576,$A198,BD$1))","v":""},{"$f":"IF($A198=\"N/A\",Ref!$B$36,INDEX(Ranks!$1:$1048576,$A198,BE$1))","v":""},{"$f":"IF($A198=\"N/A\",Ref!$B$36,INDEX(Ranks!$1:$1048576,$A198,BF$1))","v":""},{"$f":"IF($A198=\"N/A\",Ref!$B$36,INDEX(Ranks!$1:$1048576,$A198,BG$1))","v":""},{"$f":"IF($A198=\"N/A\",Ref!$B$36,INDEX(Ranks!$1:$1048576,$A198,BH$1))","v":""},{"$f":"IF($A198=\"N/A\",Ref!$B$36,INDEX(Ranks!$1:$1048576,$A198,BI$1))","v":""},{"$f":"IF($A198=\"N/A\",Ref!$B$36,INDEX(Ranks!$1:$1048576,$A198,BJ$1))","v":""},{"$f":"IF($A198=\"N/A\",Ref!$B$36,INDEX(Ranks!$1:$1048576,$A198,BK$1))","v":""},{"$f":"IF($A198=\"N/A\",Ref!$B$36,INDEX(Ranks!$1:$1048576,$A198,BL$1))","v":""},{"$f":"IF($A198=\"N/A\",Ref!$B$36,INDEX(Ranks!$1:$1048576,$A198,BM$1))","v":""},{"$f":"IF($A198=\"N/A\",Ref!$B$36,INDEX(Ranks!$1:$1048576,$A198,BN$1))","v":""},{"$f":"IF($A198=\"N/A\",Ref!$B$36,INDEX(Ranks!$1:$1048576,$A198,BO$1))","v":""},{"$f":"IF($A198=\"N/A\",Ref!$B$36,INDEX(Ranks!$1:$1048576,$A198,BP$1))","v":""},{"$f":"IF($A198=\"N/A\",Ref!$B$36,INDEX(Ranks!$1:$1048576,$A198,BQ$1))","v":""},{"$f":"IF($A198=\"N/A\",Ref!$B$36,INDEX(Ranks!$1:$1048576,$A198,BR$1))","v":""},{"$f":"IF($A198=\"N/A\",Ref!$B$36,INDEX(Ranks!$1:$1048576,$A198,BS$1))","v":""},{"$f":"IF($A198=\"N/A\",Ref!$B$36,INDEX(Ranks!$1:$1048576,$A198,BT$1))","v":""},{"$f":"IF($A198=\"N/A\",Ref!$B$36,INDEX(Ranks!$1:$1048576,$A198,BU$1))","v":""},{"$f":"IF($A198=\"N/A\",Ref!$B$36,INDEX(Ranks!$1:$1048576,$A198,BV$1))","v":""},{"$f":"IF($A198=\"N/A\",Ref!$B$36,INDEX(Ranks!$1:$1048576,$A198,BW$1))","v":""},{"$f":"IF($A198=\"N/A\",Ref!$B$36,INDEX(Ranks!$1:$1048576,$A198,BX$1))","v":""},{"$f":"IF($A198=\"N/A\",Ref!$B$36,INDEX(Ranks!$1:$1048576,$A198,BY$1))","v":""},{"$f":"IF($A198=\"N/A\",Ref!$B$36,INDEX(Ranks!$1:$1048576,$A198,BZ$1))","v":""},{"$f":"IF($A198=\"N/A\",Ref!$B$36,INDEX(Ranks!$1:$1048576,$A198,CA$1))","v":""},{"$f":"IF($A198=\"N/A\",Ref!$B$36,INDEX(Ranks!$1:$1048576,$A198,CB$1))","v":""},{"$f":"IF($A198=\"N/A\",Ref!$B$36,INDEX(Ranks!$1:$1048576,$A198,CC$1))","v":""},{"$f":"IF($A198=\"N/A\",Ref!$B$36,INDEX(Ranks!$1:$1048576,$A198,CD$1))","v":""},{"$f":"IF($A198=\"N/A\",Ref!$B$36,INDEX(Ranks!$1:$1048576,$A198,CE$1))","v":""},{"$f":"IF($A198=\"N/A\",Ref!$B$36,INDEX(Ranks!$1:$1048576,$A198,CF$1))","v":""},{"$f":"IF($A198=\"N/A\",Ref!$B$36,INDEX(Ranks!$1:$1048576,$A198,CG$1))","v":""},{"$f":"IF($A198=\"N/A\",Ref!$B$36,INDEX(Ranks!$1:$1048576,$A198,CH$1))","v":""},{"$f":"IF($A198=\"N/A\",Ref!$B$36,INDEX(Ranks!$1:$1048576,$A198,CI$1))","v":""},{"$f":"IF($A198=\"N/A\",Ref!$B$36,INDEX(Ranks!$1:$1048576,$A198,CJ$1))","v":""},{"$f":"IF($A198=\"N/A\",Ref!$B$36,INDEX(Ranks!$1:$1048576,$A198,CK$1))","v":""},{"$f":"IF($A198=\"N/A\",Ref!$B$36,INDEX(Ranks!$1:$1048576,$A198,CL$1))","v":""},{"$f":"IF($A198=\"N/A\",Ref!$B$36,INDEX(Ranks!$1:$1048576,$A198,CM$1))","v":""},{"$f":"IF($A198=\"N/A\",Ref!$B$36,INDEX(Ranks!$1:$1048576,$A198,CN$1))","v":""},{"$f":"IF($A198=\"N/A\",Ref!$B$36,INDEX(Ranks!$1:$1048576,$A198,CO$1))","v":""},{"$f":"IF($A198=\"N/A\",Ref!$B$36,INDEX(Ranks!$1:$1048576,$A198,CP$1))","v":""},{"$f":"IF($A198=\"N/A\",Ref!$B$36,INDEX(Ranks!$1:$1048576,$A198,CQ$1))","v":""},{"$f":"IF($A198=\"N/A\",Ref!$B$36,INDEX(Ranks!$1:$1048576,$A198,CR$1))","v":""},{"$f":"IF($A198=\"N/A\",Ref!$B$36,INDEX(Ranks!$1:$1048576,$A198,CS$1))","v":""},{"$f":"IF($A198=\"N/A\",Ref!$B$36,INDEX(Ranks!$1:$1048576,$A198,CT$1))","v":""},{"$f":"IF($A198=\"N/A\",Ref!$B$36,INDEX(Ranks!$1:$1048576,$A198,CU$1))","v":""},{"$f":"IF($A198=\"N/A\",Ref!$B$36,INDEX(Ranks!$1:$1048576,$A198,CV$1))","v":""},{"$f":"IF($A198=\"N/A\",Ref!$B$36,INDEX(Ranks!$1:$1048576,$A198,CW$1))","v":""},{"$f":"IF($A198=\"N/A\",Ref!$B$36,INDEX(Ranks!$1:$1048576,$A198,CX$1))","v":""},{"$f":"IF($A198=\"N/A\",Ref!$B$36,INDEX(Ranks!$1:$1048576,$A198,CY$1))","v":""},{"$f":"IF($A198=\"N/A\",Ref!$B$36,INDEX(Ranks!$1:$1048576,$A198,CZ$1))","v":""},{"$f":"IF($A198=\"N/A\",Ref!$B$36,INDEX(Ranks!$1:$1048576,$A198,DA$1))","v":""},{"$f":"IF($A198=\"N/A\",Ref!$B$36,INDEX(Ranks!$1:$1048576,$A198,DB$1))","v":""},{"$f":"IF($A198=\"N/A\",Ref!$B$36,INDEX(Ranks!$1:$1048576,$A198,DC$1))","v":""},{"$f":"IF($A198=\"N/A\",Ref!$B$36,INDEX(Ranks!$1:$1048576,$A198,DD$1))","v":""},{"$f":"IF($A198=\"N/A\",Ref!$B$36,INDEX(Ranks!$1:$1048576,$A198,DE$1))","v":""},{"$f":"IF($A198=\"N/A\",Ref!$B$36,INDEX(Ranks!$1:$1048576,$A198,DF$1))","v":""},{"$f":"IF($A198=\"N/A\",Ref!$B$36,INDEX(Ranks!$1:$1048576,$A198,DG$1))","v":""},{"$f":"IF($A198=\"N/A\",Ref!$B$36,INDEX(Ranks!$1:$1048576,$A198,DH$1))","v":""},{"$f":"IF($A198=\"N/A\",Ref!$B$36,INDEX(Ranks!$1:$1048576,$A198,DI$1))","v":""},{"$f":"IF($A198=\"N/A\",Ref!$B$36,INDEX(Ranks!$1:$1048576,$A198,DJ$1))","v":""},{"$f":"IF($A198=\"N/A\",Ref!$B$36,INDEX(Ranks!$1:$1048576,$A198,DK$1))","v":""},{"$f":"IF($A198=\"N/A\",Ref!$B$36,INDEX(Ranks!$1:$1048576,$A198,DL$1))","v":""},{"$f":"IF($A198=\"N/A\",Ref!$B$36,INDEX(Ranks!$1:$1048576,$A198,DM$1))","v":""},{"$f":"IF($A198=\"N/A\",Ref!$B$36,INDEX(Ranks!$1:$1048576,$A198,DN$1))","v":""},{"$f":"IF($A198=\"N/A\",Ref!$B$36,INDEX(Ranks!$1:$1048576,$A198,DO$1))","v":""},{"$f":"IF($A198=\"N/A\",Ref!$B$36,INDEX(Ranks!$1:$1048576,$A198,DP$1))","v":""},{"$f":"IF($A198=\"N/A\",Ref!$B$36,INDEX(Ranks!$1:$1048576,$A198,DQ$1))","v":""},{"$f":"IF($A198=\"N/A\",Ref!$B$36,INDEX(Ranks!$1:$1048576,$A198,DR$1))","v":""},{"$f":"IF($A198=\"N/A\",Ref!$B$36,INDEX(Ranks!$1:$1048576,$A198,DS$1))","v":""},{"$f":"IF($A198=\"N/A\",Ref!$B$36,INDEX(Ranks!$1:$1048576,$A198,DT$1))","v":""},{"$f":"IF($A198=\"N/A\",Ref!$B$36,INDEX(Ranks!$1:$1048576,$A198,DU$1))","v":""},{"$f":"IF($A198=\"N/A\",Ref!$B$36,INDEX(Ranks!$1:$1048576,$A198,DV$1))","v":""},{"$f":"IF($A198=\"N/A\",Ref!$B$36,INDEX(Ranks!$1:$1048576,$A198,DW$1))","v":""},{"$f":"IF($A198=\"N/A\",Ref!$B$36,INDEX(Ranks!$1:$1048576,$A198,DX$1))","v":""},{"$f":"IF($A198=\"N/A\",Ref!$B$36,INDEX(Ranks!$1:$1048576,$A198,DY$1))","v":""},{"$f":"IF($A198=\"N/A\",Ref!$B$36,INDEX(Ranks!$1:$1048576,$A198,DZ$1))","v":""},{"$f":"IF($A198=\"N/A\",Ref!$B$36,INDEX(Ranks!$1:$1048576,$A198,EA$1))","v":""},{"$f":"IF($A198=\"N/A\",Ref!$B$36,INDEX(Ranks!$1:$1048576,$A198,EB$1))","v":""}]
[{"$f":"IFERROR(MATCH('Portfolio Page'!L199,Ranks!L:L,0),\"N/A\")","v":"N/A"},null,{"$f":"IF($A199=\"N/A\",\"\",INDEX(Ranks!$1:$1048576,$A199,C$1))","v":""},{"$f":"IF($A199=\"N/A\",Ref!$B$36,INDEX(Ranks!$1:$1048576,$A199,D$1))","v":""},{"$f":"IF($A199=\"N/A\",Ref!$B$36,INDEX(Ranks!$1:$1048576,$A199,E$1))","v":""},{"$f":"IF($A199=\"N/A\",\"\",INDEX(Ranks!$1:$1048576,$A199,F$1))","v":""},{"$f":"IF($A199=\"N/A\",\"\",INDEX(Ranks!$1:$1048576,$A199,G$1))","v":""},{"$f":"IF($A199=\"N/A\",\"\",INDEX(Ranks!$1:$1048576,$A199,H$1))","v":""},{"$f":"IF($A199=\"N/A\",\"\",INDEX(Ranks!$1:$1048576,$A199,I$1))","v":""},{"$f":"IF($A199=\"N/A\",\"\",INDEX(Ranks!$1:$1048576,$A199,J$1))","v":""},{"$f":"IF($A199=\"N/A\",\"\",INDEX(Ranks!$1:$1048576,$A199,K$1))","v":""},null,{"$f":"IF($A199=\"N/A\",Ref!$B$36,INDEX(Ranks!$1:$1048576,$A199,M$1))","v":""},{"$f":"IF($A199=\"N/A\",Ref!$B$36,INDEX(Ranks!$1:$1048576,$A199,N$1))","v":""},{"$f":"IF($A199=\"N/A\",Ref!$B$36,INDEX(Ranks!$1:$1048576,$A199,O$1))","v":""},{"$f":"IF($A199=\"N/A\",Ref!$B$36,INDEX(Ranks!$1:$1048576,$A199,P$1))","v":""},{"$f":"IF($A199=\"N/A\",Ref!$B$36,INDEX(Ranks!$1:$1048576,$A199,Q$1))","v":""},{"$f":"IF($A199=\"N/A\",Ref!$B$36,INDEX(Ranks!$1:$1048576,$A199,R$1))","v":""},{"$f":"IF($A199=\"N/A\",Ref!$B$36,INDEX(Ranks!$1:$1048576,$A199,S$1))","v":""},{"$f":"IF($A199=\"N/A\",Ref!$B$36,INDEX(Ranks!$1:$1048576,$A199,T$1))","v":""},{"$f":"IF($A199=\"N/A\",Ref!$B$36,INDEX(Ranks!$1:$1048576,$A199,U$1))","v":""},{"$f":"IF($A199=\"N/A\",Ref!$B$36,INDEX(Ranks!$1:$1048576,$A199,V$1))","v":""},{"$f":"IF($A199=\"N/A\",Ref!$B$36,INDEX(Ranks!$1:$1048576,$A199,W$1))","v":""},{"$f":"IF($A199=\"N/A\",Ref!$B$36,INDEX(Ranks!$1:$1048576,$A199,X$1))","v":""},{"$f":"IF($A199=\"N/A\",Ref!$B$36,INDEX(Ranks!$1:$1048576,$A199,Y$1))","v":""},{"$f":"IF($A199=\"N/A\",Ref!$B$36,INDEX(Ranks!$1:$1048576,$A199,Z$1))","v":""},{"$f":"IF($A199=\"N/A\",Ref!$B$36,INDEX(Ranks!$1:$1048576,$A199,AA$1))","v":""},{"$f":"IF($A199=\"N/A\",Ref!$B$36,INDEX(Ranks!$1:$1048576,$A199,AB$1))","v":""},{"$f":"IF($A199=\"N/A\",Ref!$B$36,INDEX(Ranks!$1:$1048576,$A199,AC$1))","v":""},{"$f":"IF($A199=\"N/A\",Ref!$B$36,INDEX(Ranks!$1:$1048576,$A199,AD$1))","v":""},{"$f":"IF($A199=\"N/A\",Ref!$B$36,INDEX(Ranks!$1:$1048576,$A199,AE$1))","v":""},{"$f":"IF($A199=\"N/A\",Ref!$B$36,INDEX(Ranks!$1:$1048576,$A199,AF$1))","v":""},{"$f":"IF($A199=\"N/A\",Ref!$B$36,INDEX(Ranks!$1:$1048576,$A199,AG$1))","v":""},{"$f":"IF($A199=\"N/A\",Ref!$B$36,INDEX(Ranks!$1:$1048576,$A199,AH$1))","v":""},{"$f":"IF($A199=\"N/A\",Ref!$B$36,INDEX(Ranks!$1:$1048576,$A199,AI$1))","v":""},{"$f":"IF($A199=\"N/A\",Ref!$B$36,INDEX(Ranks!$1:$1048576,$A199,AJ$1))","v":""},{"$f":"IF($A199=\"N/A\",Ref!$B$36,INDEX(Ranks!$1:$1048576,$A199,AK$1))","v":""},{"$f":"IF($A199=\"N/A\",Ref!$B$36,INDEX(Ranks!$1:$1048576,$A199,AL$1))","v":""},{"$f":"IF($A199=\"N/A\",Ref!$B$36,INDEX(Ranks!$1:$1048576,$A199,AM$1))","v":""},{"$f":"IF($A199=\"N/A\",Ref!$B$36,INDEX(Ranks!$1:$1048576,$A199,AN$1))","v":""},{"$f":"IF($A199=\"N/A\",Ref!$B$36,INDEX(Ranks!$1:$1048576,$A199,AO$1))","v":""},{"$f":"IF($A199=\"N/A\",Ref!$B$36,INDEX(Ranks!$1:$1048576,$A199,AP$1))","v":""},{"$f":"IF($A199=\"N/A\",Ref!$B$36,INDEX(Ranks!$1:$1048576,$A199,AQ$1))","v":""},{"$f":"IF($A199=\"N/A\",Ref!$B$36,INDEX(Ranks!$1:$1048576,$A199,AR$1))","v":""},{"$f":"IF($A199=\"N/A\",Ref!$B$36,INDEX(Ranks!$1:$1048576,$A199,AS$1))","v":""},{"$f":"IF($A199=\"N/A\",Ref!$B$36,INDEX(Ranks!$1:$1048576,$A199,AT$1))","v":""},{"$f":"IF($A199=\"N/A\",Ref!$B$36,INDEX(Ranks!$1:$1048576,$A199,AU$1))","v":""},{"$f":"IF($A199=\"N/A\",Ref!$B$36,INDEX(Ranks!$1:$1048576,$A199,AV$1))","v":""},{"$f":"IF($A199=\"N/A\",Ref!$B$36,INDEX(Ranks!$1:$1048576,$A199,AW$1))","v":""},{"$f":"IF($A199=\"N/A\",Ref!$B$36,INDEX(Ranks!$1:$1048576,$A199,AX$1))","v":""},{"$f":"IF($A199=\"N/A\",Ref!$B$36,INDEX(Ranks!$1:$1048576,$A199,AY$1))","v":""},{"$f":"IF($A199=\"N/A\",Ref!$B$36,INDEX(Ranks!$1:$1048576,$A199,AZ$1))","v":""},{"$f":"IF($A199=\"N/A\",Ref!$B$36,INDEX(Ranks!$1:$1048576,$A199,BA$1))","v":""},{"$f":"IF($A199=\"N/A\",Ref!$B$36,INDEX(Ranks!$1:$1048576,$A199,BB$1))","v":""},{"$f":"IF($A199=\"N/A\",Ref!$B$36,INDEX(Ranks!$1:$1048576,$A199,BC$1))","v":""},{"$f":"IF($A199=\"N/A\",Ref!$B$36,INDEX(Ranks!$1:$1048576,$A199,BD$1))","v":""},{"$f":"IF($A199=\"N/A\",Ref!$B$36,INDEX(Ranks!$1:$1048576,$A199,BE$1))","v":""},{"$f":"IF($A199=\"N/A\",Ref!$B$36,INDEX(Ranks!$1:$1048576,$A199,BF$1))","v":""},{"$f":"IF($A199=\"N/A\",Ref!$B$36,INDEX(Ranks!$1:$1048576,$A199,BG$1))","v":""},{"$f":"IF($A199=\"N/A\",Ref!$B$36,INDEX(Ranks!$1:$1048576,$A199,BH$1))","v":""},{"$f":"IF($A199=\"N/A\",Ref!$B$36,INDEX(Ranks!$1:$1048576,$A199,BI$1))","v":""},{"$f":"IF($A199=\"N/A\",Ref!$B$36,INDEX(Ranks!$1:$1048576,$A199,BJ$1))","v":""},{"$f":"IF($A199=\"N/A\",Ref!$B$36,INDEX(Ranks!$1:$1048576,$A199,BK$1))","v":""},{"$f":"IF($A199=\"N/A\",Ref!$B$36,INDEX(Ranks!$1:$1048576,$A199,BL$1))","v":""},{"$f":"IF($A199=\"N/A\",Ref!$B$36,INDEX(Ranks!$1:$1048576,$A199,BM$1))","v":""},{"$f":"IF($A199=\"N/A\",Ref!$B$36,INDEX(Ranks!$1:$1048576,$A199,BN$1))","v":""},{"$f":"IF($A199=\"N/A\",Ref!$B$36,INDEX(Ranks!$1:$1048576,$A199,BO$1))","v":""},{"$f":"IF($A199=\"N/A\",Ref!$B$36,INDEX(Ranks!$1:$1048576,$A199,BP$1))","v":""},{"$f":"IF($A199=\"N/A\",Ref!$B$36,INDEX(Ranks!$1:$1048576,$A199,BQ$1))","v":""},{"$f":"IF($A199=\"N/A\",Ref!$B$36,INDEX(Ranks!$1:$1048576,$A199,BR$1))","v":""},{"$f":"IF($A199=\"N/A\",Ref!$B$36,INDEX(Ranks!$1:$1048576,$A199,BS$1))","v":""},{"$f":"IF($A199=\"N/A\",Ref!$B$36,INDEX(Ranks!$1:$1048576,$A199,BT$1))","v":""},{"$f":"IF($A199=\"N/A\",Ref!$B$36,INDEX(Ranks!$1:$1048576,$A199,BU$1))","v":""},{"$f":"IF($A199=\"N/A\",Ref!$B$36,INDEX(Ranks!$1:$1048576,$A199,BV$1))","v":""},{"$f":"IF($A199=\"N/A\",Ref!$B$36,INDEX(Ranks!$1:$1048576,$A199,BW$1))","v":""},{"$f":"IF($A199=\"N/A\",Ref!$B$36,INDEX(Ranks!$1:$1048576,$A199,BX$1))","v":""},{"$f":"IF($A199=\"N/A\",Ref!$B$36,INDEX(Ranks!$1:$1048576,$A199,BY$1))","v":""},{"$f":"IF($A199=\"N/A\",Ref!$B$36,INDEX(Ranks!$1:$1048576,$A199,BZ$1))","v":""},{"$f":"IF($A199=\"N/A\",Ref!$B$36,INDEX(Ranks!$1:$1048576,$A199,CA$1))","v":""},{"$f":"IF($A199=\"N/A\",Ref!$B$36,INDEX(Ranks!$1:$1048576,$A199,CB$1))","v":""},{"$f":"IF($A199=\"N/A\",Ref!$B$36,INDEX(Ranks!$1:$1048576,$A199,CC$1))","v":""},{"$f":"IF($A199=\"N/A\",Ref!$B$36,INDEX(Ranks!$1:$1048576,$A199,CD$1))","v":""},{"$f":"IF($A199=\"N/A\",Ref!$B$36,INDEX(Ranks!$1:$1048576,$A199,CE$1))","v":""},{"$f":"IF($A199=\"N/A\",Ref!$B$36,INDEX(Ranks!$1:$1048576,$A199,CF$1))","v":""},{"$f":"IF($A199=\"N/A\",Ref!$B$36,INDEX(Ranks!$1:$1048576,$A199,CG$1))","v":""},{"$f":"IF($A199=\"N/A\",Ref!$B$36,INDEX(Ranks!$1:$1048576,$A199,CH$1))","v":""},{"$f":"IF($A199=\"N/A\",Ref!$B$36,INDEX(Ranks!$1:$1048576,$A199,CI$1))","v":""},{"$f":"IF($A199=\"N/A\",Ref!$B$36,INDEX(Ranks!$1:$1048576,$A199,CJ$1))","v":""},{"$f":"IF($A199=\"N/A\",Ref!$B$36,INDEX(Ranks!$1:$1048576,$A199,CK$1))","v":""},{"$f":"IF($A199=\"N/A\",Ref!$B$36,INDEX(Ranks!$1:$1048576,$A199,CL$1))","v":""},{"$f":"IF($A199=\"N/A\",Ref!$B$36,INDEX(Ranks!$1:$1048576,$A199,CM$1))","v":""},{"$f":"IF($A199=\"N/A\",Ref!$B$36,INDEX(Ranks!$1:$1048576,$A199,CN$1))","v":""},{"$f":"IF($A199=\"N/A\",Ref!$B$36,INDEX(Ranks!$1:$1048576,$A199,CO$1))","v":""},{"$f":"IF($A199=\"N/A\",Ref!$B$36,INDEX(Ranks!$1:$1048576,$A199,CP$1))","v":""},{"$f":"IF($A199=\"N/A\",Ref!$B$36,INDEX(Ranks!$1:$1048576,$A199,CQ$1))","v":""},{"$f":"IF($A199=\"N/A\",Ref!$B$36,INDEX(Ranks!$1:$1048576,$A199,CR$1))","v":""},{"$f":"IF($A199=\"N/A\",Ref!$B$36,INDEX(Ranks!$1:$1048576,$A199,CS$1))","v":""},{"$f":"IF($A199=\"N/A\",Ref!$B$36,INDEX(Ranks!$1:$1048576,$A199,CT$1))","v":""},{"$f":"IF($A199=\"N/A\",Ref!$B$36,INDEX(Ranks!$1:$1048576,$A199,CU$1))","v":""},{"$f":"IF($A199=\"N/A\",Ref!$B$36,INDEX(Ranks!$1:$1048576,$A199,CV$1))","v":""},{"$f":"IF($A199=\"N/A\",Ref!$B$36,INDEX(Ranks!$1:$1048576,$A199,CW$1))","v":""},{"$f":"IF($A199=\"N/A\",Ref!$B$36,INDEX(Ranks!$1:$1048576,$A199,CX$1))","v":""},{"$f":"IF($A199=\"N/A\",Ref!$B$36,INDEX(Ranks!$1:$1048576,$A199,CY$1))","v":""},{"$f":"IF($A199=\"N/A\",Ref!$B$36,INDEX(Ranks!$1:$1048576,$A199,CZ$1))","v":""},{"$f":"IF($A199=\"N/A\",Ref!$B$36,INDEX(Ranks!$1:$1048576,$A199,DA$1))","v":""},{"$f":"IF($A199=\"N/A\",Ref!$B$36,INDEX(Ranks!$1:$1048576,$A199,DB$1))","v":""},{"$f":"IF($A199=\"N/A\",Ref!$B$36,INDEX(Ranks!$1:$1048576,$A199,DC$1))","v":""},{"$f":"IF($A199=\"N/A\",Ref!$B$36,INDEX(Ranks!$1:$1048576,$A199,DD$1))","v":""},{"$f":"IF($A199=\"N/A\",Ref!$B$36,INDEX(Ranks!$1:$1048576,$A199,DE$1))","v":""},{"$f":"IF($A199=\"N/A\",Ref!$B$36,INDEX(Ranks!$1:$1048576,$A199,DF$1))","v":""},{"$f":"IF($A199=\"N/A\",Ref!$B$36,INDEX(Ranks!$1:$1048576,$A199,DG$1))","v":""},{"$f":"IF($A199=\"N/A\",Ref!$B$36,INDEX(Ranks!$1:$1048576,$A199,DH$1))","v":""},{"$f":"IF($A199=\"N/A\",Ref!$B$36,INDEX(Ranks!$1:$1048576,$A199,DI$1))","v":""},{"$f":"IF($A199=\"N/A\",Ref!$B$36,INDEX(Ranks!$1:$1048576,$A199,DJ$1))","v":""},{"$f":"IF($A199=\"N/A\",Ref!$B$36,INDEX(Ranks!$1:$1048576,$A199,DK$1))","v":""},{"$f":"IF($A199=\"N/A\",Ref!$B$36,INDEX(Ranks!$1:$1048576,$A199,DL$1))","v":""},{"$f":"IF($A199=\"N/A\",Ref!$B$36,INDEX(Ranks!$1:$1048576,$A199,DM$1))","v":""},{"$f":"IF($A199=\"N/A\",Ref!$B$36,INDEX(Ranks!$1:$1048576,$A199,DN$1))","v":""},{"$f":"IF($A199=\"N/A\",Ref!$B$36,INDEX(Ranks!$1:$1048576,$A199,DO$1))","v":""},{"$f":"IF($A199=\"N/A\",Ref!$B$36,INDEX(Ranks!$1:$1048576,$A199,DP$1))","v":""},{"$f":"IF($A199=\"N/A\",Ref!$B$36,INDEX(Ranks!$1:$1048576,$A199,DQ$1))","v":""},{"$f":"IF($A199=\"N/A\",Ref!$B$36,INDEX(Ranks!$1:$1048576,$A199,DR$1))","v":""},{"$f":"IF($A199=\"N/A\",Ref!$B$36,INDEX(Ranks!$1:$1048576,$A199,DS$1))","v":""},{"$f":"IF($A199=\"N/A\",Ref!$B$36,INDEX(Ranks!$1:$1048576,$A199,DT$1))","v":""},{"$f":"IF($A199=\"N/A\",Ref!$B$36,INDEX(Ranks!$1:$1048576,$A199,DU$1))","v":""},{"$f":"IF($A199=\"N/A\",Ref!$B$36,INDEX(Ranks!$1:$1048576,$A199,DV$1))","v":""},{"$f":"IF($A199=\"N/A\",Ref!$B$36,INDEX(Ranks!$1:$1048576,$A199,DW$1))","v":""},{"$f":"IF($A199=\"N/A\",Ref!$B$36,INDEX(Ranks!$1:$1048576,$A199,DX$1))","v":""},{"$f":"IF($A199=\"N/A\",Ref!$B$36,INDEX(Ranks!$1:$1048576,$A199,DY$1))","v":""},{"$f":"IF($A199=\"N/A\",Ref!$B$36,INDEX(Ranks!$1:$1048576,$A199,DZ$1))","v":""},{"$f":"IF($A199=\"N/A\",Ref!$B$36,INDEX(Ranks!$1:$1048576,$A199,EA$1))","v":""},{"$f":"IF($A199=\"N/A\",Ref!$B$36,INDEX(Ranks!$1:$1048576,$A199,EB$1))","v":""}]
[{"$f":"IFERROR(MATCH('Portfolio Page'!L200,Ranks!L:L,0),\"N/A\")","v":"N/A"},null,{"$f":"IF($A200=\"N/A\",\"\",INDEX(Ranks!$1:$1048576,$A200,C$1))","v":""},{"$f":"IF($A200=\"N/A\",Ref!$B$36,INDEX(Ranks!$1:$1048576,$A200,D$1))","v":""},{"$f":"IF($A200=\"N/A\",Ref!$B$36,INDEX(Ranks!$1:$1048576,$A200,E$1))","v":""},{"$f":"IF($A200=\"N/A\",\"\",INDEX(Ranks!$1:$1048576,$A200,F$1))","v":""},{"$f":"IF($A200=\"N/A\",\"\",INDEX(Ranks!$1:$1048576,$A200,G$1))","v":""},{"$f":"IF($A200=\"N/A\",\"\",INDEX(Ranks!$1:$1048576,$A200,H$1))","v":""},{"$f":"IF($A200=\"N/A\",\"\",INDEX(Ranks!$1:$1048576,$A200,I$1))","v":""},{"$f":"IF($A200=\"N/A\",\"\",INDEX(Ranks!$1:$1048576,$A200,J$1))","v":""},{"$f":"IF($A200=\"N/A\",\"\",INDEX(Ranks!$1:$1048576,$A200,K$1))","v":""},null,{"$f":"IF($A200=\"N/A\",Ref!$B$36,INDEX(Ranks!$1:$1048576,$A200,M$1))","v":""},{"$f":"IF($A200=\"N/A\",Ref!$B$36,INDEX(Ranks!$1:$1048576,$A200,N$1))","v":""},{"$f":"IF($A200=\"N/A\",Ref!$B$36,INDEX(Ranks!$1:$1048576,$A200,O$1))","v":""},{"$f":"IF($A200=\"N/A\",Ref!$B$36,INDEX(Ranks!$1:$1048576,$A200,P$1))","v":""},{"$f":"IF($A200=\"N/A\",Ref!$B$36,INDEX(Ranks!$1:$1048576,$A200,Q$1))","v":""},{"$f":"IF($A200=\"N/A\",Ref!$B$36,INDEX(Ranks!$1:$1048576,$A200,R$1))","v":""},{"$f":"IF($A200=\"N/A\",Ref!$B$36,INDEX(Ranks!$1:$1048576,$A200,S$1))","v":""},{"$f":"IF($A200=\"N/A\",Ref!$B$36,INDEX(Ranks!$1:$1048576,$A200,T$1))","v":""},{"$f":"IF($A200=\"N/A\",Ref!$B$36,INDEX(Ranks!$1:$1048576,$A200,U$1))","v":""},{"$f":"IF($A200=\"N/A\",Ref!$B$36,INDEX(Ranks!$1:$1048576,$A200,V$1))","v":""},{"$f":"IF($A200=\"N/A\",Ref!$B$36,INDEX(Ranks!$1:$1048576,$A200,W$1))","v":""},{"$f":"IF($A200=\"N/A\",Ref!$B$36,INDEX(Ranks!$1:$1048576,$A200,X$1))","v":""},{"$f":"IF($A200=\"N/A\",Ref!$B$36,INDEX(Ranks!$1:$1048576,$A200,Y$1))","v":""},{"$f":"IF($A200=\"N/A\",Ref!$B$36,INDEX(Ranks!$1:$1048576,$A200,Z$1))","v":""},{"$f":"IF($A200=\"N/A\",Ref!$B$36,INDEX(Ranks!$1:$1048576,$A200,AA$1))","v":""},{"$f":"IF($A200=\"N/A\",Ref!$B$36,INDEX(Ranks!$1:$1048576,$A200,AB$1))","v":""},{"$f":"IF($A200=\"N/A\",Ref!$B$36,INDEX(Ranks!$1:$1048576,$A200,AC$1))","v":""},{"$f":"IF($A200=\"N/A\",Ref!$B$36,INDEX(Ranks!$1:$1048576,$A200,AD$1))","v":""},{"$f":"IF($A200=\"N/A\",Ref!$B$36,INDEX(Ranks!$1:$1048576,$A200,AE$1))","v":""},{"$f":"IF($A200=\"N/A\",Ref!$B$36,INDEX(Ranks!$1:$1048576,$A200,AF$1))","v":""},{"$f":"IF($A200=\"N/A\",Ref!$B$36,INDEX(Ranks!$1:$1048576,$A200,AG$1))","v":""},{"$f":"IF($A200=\"N/A\",Ref!$B$36,INDEX(Ranks!$1:$1048576,$A200,AH$1))","v":""},{"$f":"IF($A200=\"N/A\",Ref!$B$36,INDEX(Ranks!$1:$1048576,$A200,AI$1))","v":""},{"$f":"IF($A200=\"N/A\",Ref!$B$36,INDEX(Ranks!$1:$1048576,$A200,AJ$1))","v":""},{"$f":"IF($A200=\"N/A\",Ref!$B$36,INDEX(Ranks!$1:$1048576,$A200,AK$1))","v":""},{"$f":"IF($A200=\"N/A\",Ref!$B$36,INDEX(Ranks!$1:$1048576,$A200,AL$1))","v":""},{"$f":"IF($A200=\"N/A\",Ref!$B$36,INDEX(Ranks!$1:$1048576,$A200,AM$1))","v":""},{"$f":"IF($A200=\"N/A\",Ref!$B$36,INDEX(Ranks!$1:$1048576,$A200,AN$1))","v":""},{"$f":"IF($A200=\"N/A\",Ref!$B$36,INDEX(Ranks!$1:$1048576,$A200,AO$1))","v":""},{"$f":"IF($A200=\"N/A\",Ref!$B$36,INDEX(Ranks!$1:$1048576,$A200,AP$1))","v":""},{"$f":"IF($A200=\"N/A\",Ref!$B$36,INDEX(Ranks!$1:$1048576,$A200,AQ$1))","v":""},{"$f":"IF($A200=\"N/A\",Ref!$B$36,INDEX(Ranks!$1:$1048576,$A200,AR$1))","v":""},{"$f":"IF($A200=\"N/A\",Ref!$B$36,INDEX(Ranks!$1:$1048576,$A200,AS$1))","v":""},{"$f":"IF($A200=\"N/A\",Ref!$B$36,INDEX(Ranks!$1:$1048576,$A200,AT$1))","v":""},{"$f":"IF($A200=\"N/A\",Ref!$B$36,INDEX(Ranks!$1:$1048576,$A200,AU$1))","v":""},{"$f":"IF($A200=\"N/A\",Ref!$B$36,INDEX(Ranks!$1:$1048576,$A200,AV$1))","v":""},{"$f":"IF($A200=\"N/A\",Ref!$B$36,INDEX(Ranks!$1:$1048576,$A200,AW$1))","v":""},{"$f":"IF($A200=\"N/A\",Ref!$B$36,INDEX(Ranks!$1:$1048576,$A200,AX$1))","v":""},{"$f":"IF($A200=\"N/A\",Ref!$B$36,INDEX(Ranks!$1:$1048576,$A200,AY$1))","v":""},{"$f":"IF($A200=\"N/A\",Ref!$B$36,INDEX(Ranks!$1:$1048576,$A200,AZ$1))","v":""},{"$f":"IF($A200=\"N/A\",Ref!$B$36,INDEX(Ranks!$1:$1048576,$A200,BA$1))","v":""},{"$f":"IF($A200=\"N/A\",Ref!$B$36,INDEX(Ranks!$1:$1048576,$A200,BB$1))","v":""},{"$f":"IF($A200=\"N/A\",Ref!$B$36,INDEX(Ranks!$1:$1048576,$A200,BC$1))","v":""},{"$f":"IF($A200=\"N/A\",Ref!$B$36,INDEX(Ranks!$1:$1048576,$A200,BD$1))","v":""},{"$f":"IF($A200=\"N/A\",Ref!$B$36,INDEX(Ranks!$1:$1048576,$A200,BE$1))","v":""},{"$f":"IF($A200=\"N/A\",Ref!$B$36,INDEX(Ranks!$1:$1048576,$A200,BF$1))","v":""},{"$f":"IF($A200=\"N/A\",Ref!$B$36,INDEX(Ranks!$1:$1048576,$A200,BG$1))","v":""},{"$f":"IF($A200=\"N/A\",Ref!$B$36,INDEX(Ranks!$1:$1048576,$A200,BH$1))","v":""},{"$f":"IF($A200=\"N/A\",Ref!$B$36,INDEX(Ranks!$1:$1048576,$A200,BI$1))","v":""},{"$f":"IF($A200=\"N/A\",Ref!$B$36,INDEX(Ranks!$1:$1048576,$A200,BJ$1))","v":""},{"$f":"IF($A200=\"N/A\",Ref!$B$36,INDEX(Ranks!$1:$1048576,$A200,BK$1))","v":""},{"$f":"IF($A200=\"N/A\",Ref!$B$36,INDEX(Ranks!$1:$1048576,$A200,BL$1))","v":""},{"$f":"IF($A200=\"N/A\",Ref!$B$36,INDEX(Ranks!$1:$1048576,$A200,BM$1))","v":""},{"$f":"IF($A200=\"N/A\",Ref!$B$36,INDEX(Ranks!$1:$1048576,$A200,BN$1))","v":""},{"$f":"IF($A200=\"N/A\",Ref!$B$36,INDEX(Ranks!$1:$1048576,$A200,BO$1))","v":""},{"$f":"IF($A200=\"N/A\",Ref!$B$36,INDEX(Ranks!$1:$1048576,$A200,BP$1))","v":""},{"$f":"IF($A200=\"N/A\",Ref!$B$36,INDEX(Ranks!$1:$1048576,$A200,BQ$1))","v":""},{"$f":"IF($A200=\"N/A\",Ref!$B$36,INDEX(Ranks!$1:$1048576,$A200,BR$1))","v":""},{"$f":"IF($A200=\"N/A\",Ref!$B$36,INDEX(Ranks!$1:$1048576,$A200,BS$1))","v":""},{"$f":"IF($A200=\"N/A\",Ref!$B$36,INDEX(Ranks!$1:$1048576,$A200,BT$1))","v":""},{"$f":"IF($A200=\"N/A\",Ref!$B$36,INDEX(Ranks!$1:$1048576,$A200,BU$1))","v":""},{"$f":"IF($A200=\"N/A\",Ref!$B$36,INDEX(Ranks!$1:$1048576,$A200,BV$1))","v":""},{"$f":"IF($A200=\"N/A\",Ref!$B$36,INDEX(Ranks!$1:$1048576,$A200,BW$1))","v":""},{"$f":"IF($A200=\"N/A\",Ref!$B$36,INDEX(Ranks!$1:$1048576,$A200,BX$1))","v":""},{"$f":"IF($A200=\"N/A\",Ref!$B$36,INDEX(Ranks!$1:$1048576,$A200,BY$1))","v":""},{"$f":"IF($A200=\"N/A\",Ref!$B$36,INDEX(Ranks!$1:$1048576,$A200,BZ$1))","v":""},{"$f":"IF($A200=\"N/A\",Ref!$B$36,INDEX(Ranks!$1:$1048576,$A200,CA$1))","v":""},{"$f":"IF($A200=\"N/A\",Ref!$B$36,INDEX(Ranks!$1:$1048576,$A200,CB$1))","v":""},{"$f":"IF($A200=\"N/A\",Ref!$B$36,INDEX(Ranks!$1:$1048576,$A200,CC$1))","v":""},{"$f":"IF($A200=\"N/A\",Ref!$B$36,INDEX(Ranks!$1:$1048576,$A200,CD$1))","v":""},{"$f":"IF($A200=\"N/A\",Ref!$B$36,INDEX(Ranks!$1:$1048576,$A200,CE$1))","v":""},{"$f":"IF($A200=\"N/A\",Ref!$B$36,INDEX(Ranks!$1:$1048576,$A200,CF$1))","v":""},{"$f":"IF($A200=\"N/A\",Ref!$B$36,INDEX(Ranks!$1:$1048576,$A200,CG$1))","v":""},{"$f":"IF($A200=\"N/A\",Ref!$B$36,INDEX(Ranks!$1:$1048576,$A200,CH$1))","v":""},{"$f":"IF($A200=\"N/A\",Ref!$B$36,INDEX(Ranks!$1:$1048576,$A200,CI$1))","v":""},{"$f":"IF($A200=\"N/A\",Ref!$B$36,INDEX(Ranks!$1:$1048576,$A200,CJ$1))","v":""},{"$f":"IF($A200=\"N/A\",Ref!$B$36,INDEX(Ranks!$1:$1048576,$A200,CK$1))","v":""},{"$f":"IF($A200=\"N/A\",Ref!$B$36,INDEX(Ranks!$1:$1048576,$A200,CL$1))","v":""},{"$f":"IF($A200=\"N/A\",Ref!$B$36,INDEX(Ranks!$1:$1048576,$A200,CM$1))","v":""},{"$f":"IF($A200=\"N/A\",Ref!$B$36,INDEX(Ranks!$1:$1048576,$A200,CN$1))","v":""},{"$f":"IF($A200=\"N/A\",Ref!$B$36,INDEX(Ranks!$1:$1048576,$A200,CO$1))","v":""},{"$f":"IF($A200=\"N/A\",Ref!$B$36,INDEX(Ranks!$1:$1048576,$A200,CP$1))","v":""},{"$f":"IF($A200=\"N/A\",Ref!$B$36,INDEX(Ranks!$1:$1048576,$A200,CQ$1))","v":""},{"$f":"IF($A200=\"N/A\",Ref!$B$36,INDEX(Ranks!$1:$1048576,$A200,CR$1))","v":""},{"$f":"IF($A200=\"N/A\",Ref!$B$36,INDEX(Ranks!$1:$1048576,$A200,CS$1))","v":""},{"$f":"IF($A200=\"N/A\",Ref!$B$36,INDEX(Ranks!$1:$1048576,$A200,CT$1))","v":""},{"$f":"IF($A200=\"N/A\",Ref!$B$36,INDEX(Ranks!$1:$1048576,$A200,CU$1))","v":""},{"$f":"IF($A200=\"N/A\",Ref!$B$36,INDEX(Ranks!$1:$1048576,$A200,CV$1))","v":""},{"$f":"IF($A200=\"N/A\",Ref!$B$36,INDEX(Ranks!$1:$1048576,$A200,CW$1))","v":""},{"$f":"IF($A200=\"N/A\",Ref!$B$36,INDEX(Ranks!$1:$1048576,$A200,CX$1))","v":""},{"$f":"IF($A200=\"N/A\",Ref!$B$36,INDEX(Ranks!$1:$1048576,$A200,CY$1))","v":""},{"$f":"IF($A200=\"N/A\",Ref!$B$36,INDEX(Ranks!$1:$1048576,$A200,CZ$1))","v":""},{"$f":"IF($A200=\"N/A\",Ref!$B$36,INDEX(Ranks!$1:$1048576,$A200,DA$1))","v":""},{"$f":"IF($A200=\"N/A\",Ref!$B$36,INDEX(Ranks!$1:$1048576,$A200,DB$1))","v":""},{"$f":"IF($A200=\"N/A\",Ref!$B$36,INDEX(Ranks!$1:$1048576,$A200,DC$1))","v":""},{"$f":"IF($A200=\"N/A\",Ref!$B$36,INDEX(Ranks!$1:$1048576,$A200,DD$1))","v":""},{"$f":"IF($A200=\"N/A\",Ref!$B$36,INDEX(Ranks!$1:$1048576,$A200,DE$1))","v":""},{"$f":"IF($A200=\"N/A\",Ref!$B$36,INDEX(Ranks!$1:$1048576,$A200,DF$1))","v":""},{"$f":"IF($A200=\"N/A\",Ref!$B$36,INDEX(Ranks!$1:$1048576,$A200,DG$1))","v":""},{"$f":"IF($A200=\"N/A\",Ref!$B$36,INDEX(Ranks!$1:$1048576,$A200,DH$1))","v":""},{"$f":"IF($A200=\"N/A\",Ref!$B$36,INDEX(Ranks!$1:$1048576,$A200,DI$1))","v":""},{"$f":"IF($A200=\"N/A\",Ref!$B$36,INDEX(Ranks!$1:$1048576,$A200,DJ$1))","v":""},{"$f":"IF($A200=\"N/A\",Ref!$B$36,INDEX(Ranks!$1:$1048576,$A200,DK$1))","v":""},{"$f":"IF($A200=\"N/A\",Ref!$B$36,INDEX(Ranks!$1:$1048576,$A200,DL$1))","v":""},{"$f":"IF($A200=\"N/A\",Ref!$B$36,INDEX(Ranks!$1:$1048576,$A200,DM$1))","v":""},{"$f":"IF($A200=\"N/A\",Ref!$B$36,INDEX(Ranks!$1:$1048576,$A200,DN$1))","v":""},{"$f":"IF($A200=\"N/A\",Ref!$B$36,INDEX(Ranks!$1:$1048576,$A200,DO$1))","v":""},{"$f":"IF($A200=\"N/A\",Ref!$B$36,INDEX(Ranks!$1:$1048576,$A200,DP$1))","v":""},{"$f":"IF($A200=\"N/A\",Ref!$B$36,INDEX(Ranks!$1:$1048576,$A200,DQ$1))","v":""},{"$f":"IF($A200=\"N/A\",Ref!$B$36,INDEX(Ranks!$1:$1048576,$A200,DR$1))","v":""},{"$f":"IF($A200=\"N/A\",Ref!$B$36,INDEX(Ranks!$1:$1048576,$A200,DS$1))","v":""},{"$f":"IF($A200=\"N/A\",Ref!$B$36,INDEX(Ranks!$1:$1048576,$A200,DT$1))","v":""},{"$f":"IF($A200=\"N/A\",Ref!$B$36,INDEX(Ranks!$1:$1048576,$A200,DU$1))","v":""},{"$f":"IF($A200=\"N/A\",Ref!$B$36,INDEX(Ranks!$1:$1048576,$A200,DV$1))","v":""},{"$f":"IF($A200=\"N/A\",Ref!$B$36,INDEX(Ranks!$1:$1048576,$A200,DW$1))","v":""},{"$f":"IF($A200=\"N/A\",Ref!$B$36,INDEX(Ranks!$1:$1048576,$A200,DX$1))","v":""},{"$f":"IF($A200=\"N/A\",Ref!$B$36,INDEX(Ranks!$1:$1048576,$A200,DY$1))","v":""},{"$f":"IF($A200=\"N/A\",Ref!$B$36,INDEX(Ranks!$1:$1048576,$A200,DZ$1))","v":""},{"$f":"IF($A200=\"N/A\",Ref!$B$36,INDEX(Ranks!$1:$1048576,$A200,EA$1))","v":""},{"$f":"IF($A200=\"N/A\",Ref!$B$36,INDEX(Ranks!$1:$1048576,$A200,EB$1))","v":""}]
[{"$f":"IFERROR(MATCH('Portfolio Page'!L201,Ranks!L:L,0),\"N/A\")","v":"N/A"},null,{"$f":"IF($A201=\"N/A\",\"\",INDEX(Ranks!$1:$1048576,$A201,C$1))","v":""},{"$f":"IF($A201=\"N/A\",Ref!$B$36,INDEX(Ranks!$1:$1048576,$A201,D$1))","v":""},{"$f":"IF($A201=\"N/A\",Ref!$B$36,INDEX(Ranks!$1:$1048576,$A201,E$1))","v":""},{"$f":"IF($A201=\"N/A\",\"\",INDEX(Ranks!$1:$1048576,$A201,F$1))","v":""},{"$f":"IF($A201=\"N/A\",\"\",INDEX(Ranks!$1:$1048576,$A201,G$1))","v":""},{"$f":"IF($A201=\"N/A\",\"\",INDEX(Ranks!$1:$1048576,$A201,H$1))","v":""},{"$f":"IF($A201=\"N/A\",\"\",INDEX(Ranks!$1:$1048576,$A201,I$1))","v":""},{"$f":"IF($A201=\"N/A\",\"\",INDEX(Ranks!$1:$1048576,$A201,J$1))","v":""},{"$f":"IF($A201=\"N/A\",\"\",INDEX(Ranks!$1:$1048576,$A201,K$1))","v":""},null,{"$f":"IF($A201=\"N/A\",Ref!$B$36,INDEX(Ranks!$1:$1048576,$A201,M$1))","v":""},{"$f":"IF($A201=\"N/A\",Ref!$B$36,INDEX(Ranks!$1:$1048576,$A201,N$1))","v":""},{"$f":"IF($A201=\"N/A\",Ref!$B$36,INDEX(Ranks!$1:$1048576,$A201,O$1))","v":""},{"$f":"IF($A201=\"N/A\",Ref!$B$36,INDEX(Ranks!$1:$1048576,$A201,P$1))","v":""},{"$f":"IF($A201=\"N/A\",Ref!$B$36,INDEX(Ranks!$1:$1048576,$A201,Q$1))","v":""},{"$f":"IF($A201=\"N/A\",Ref!$B$36,INDEX(Ranks!$1:$1048576,$A201,R$1))","v":""},{"$f":"IF($A201=\"N/A\",Ref!$B$36,INDEX(Ranks!$1:$1048576,$A201,S$1))","v":""},{"$f":"IF($A201=\"N/A\",Ref!$B$36,INDEX(Ranks!$1:$1048576,$A201,T$1))","v":""},{"$f":"IF($A201=\"N/A\",Ref!$B$36,INDEX(Ranks!$1:$1048576,$A201,U$1))","v":""},{"$f":"IF($A201=\"N/A\",Ref!$B$36,INDEX(Ranks!$1:$1048576,$A201,V$1))","v":""},{"$f":"IF($A201=\"N/A\",Ref!$B$36,INDEX(Ranks!$1:$1048576,$A201,W$1))","v":""},{"$f":"IF($A201=\"N/A\",Ref!$B$36,INDEX(Ranks!$1:$1048576,$A201,X$1))","v":""},{"$f":"IF($A201=\"N/A\",Ref!$B$36,INDEX(Ranks!$1:$1048576,$A201,Y$1))","v":""},{"$f":"IF($A201=\"N/A\",Ref!$B$36,INDEX(Ranks!$1:$1048576,$A201,Z$1))","v":""},{"$f":"IF($A201=\"N/A\",Ref!$B$36,INDEX(Ranks!$1:$1048576,$A201,AA$1))","v":""},{"$f":"IF($A201=\"N/A\",Ref!$B$36,INDEX(Ranks!$1:$1048576,$A201,AB$1))","v":""},{"$f":"IF($A201=\"N/A\",Ref!$B$36,INDEX(Ranks!$1:$1048576,$A201,AC$1))","v":""},{"$f":"IF($A201=\"N/A\",Ref!$B$36,INDEX(Ranks!$1:$1048576,$A201,AD$1))","v":""},{"$f":"IF($A201=\"N/A\",Ref!$B$36,INDEX(Ranks!$1:$1048576,$A201,AE$1))","v":""},{"$f":"IF($A201=\"N/A\",Ref!$B$36,INDEX(Ranks!$1:$1048576,$A201,AF$1))","v":""},{"$f":"IF($A201=\"N/A\",Ref!$B$36,INDEX(Ranks!$1:$1048576,$A201,AG$1))","v":""},{"$f":"IF($A201=\"N/A\",Ref!$B$36,INDEX(Ranks!$1:$1048576,$A201,AH$1))","v":""},{"$f":"IF($A201=\"N/A\",Ref!$B$36,INDEX(Ranks!$1:$1048576,$A201,AI$1))","v":""},{"$f":"IF($A201=\"N/A\",Ref!$B$36,INDEX(Ranks!$1:$1048576,$A201,AJ$1))","v":""},{"$f":"IF($A201=\"N/A\",Ref!$B$36,INDEX(Ranks!$1:$1048576,$A201,AK$1))","v":""},{"$f":"IF($A201=\"N/A\",Ref!$B$36,INDEX(Ranks!$1:$1048576,$A201,AL$1))","v":""},{"$f":"IF($A201=\"N/A\",Ref!$B$36,INDEX(Ranks!$1:$1048576,$A201,AM$1))","v":""},{"$f":"IF($A201=\"N/A\",Ref!$B$36,INDEX(Ranks!$1:$1048576,$A201,AN$1))","v":""},{"$f":"IF($A201=\"N/A\",Ref!$B$36,INDEX(Ranks!$1:$1048576,$A201,AO$1))","v":""},{"$f":"IF($A201=\"N/A\",Ref!$B$36,INDEX(Ranks!$1:$1048576,$A201,AP$1))","v":""},{"$f":"IF($A201=\"N/A\",Ref!$B$36,INDEX(Ranks!$1:$1048576,$A201,AQ$1))","v":""},{"$f":"IF($A201=\"N/A\",Ref!$B$36,INDEX(Ranks!$1:$1048576,$A201,AR$1))","v":""},{"$f":"IF($A201=\"N/A\",Ref!$B$36,INDEX(Ranks!$1:$1048576,$A201,AS$1))","v":""},{"$f":"IF($A201=\"N/A\",Ref!$B$36,INDEX(Ranks!$1:$1048576,$A201,AT$1))","v":""},{"$f":"IF($A201=\"N/A\",Ref!$B$36,INDEX(Ranks!$1:$1048576,$A201,AU$1))","v":""},{"$f":"IF($A201=\"N/A\",Ref!$B$36,INDEX(Ranks!$1:$1048576,$A201,AV$1))","v":""},{"$f":"IF($A201=\"N/A\",Ref!$B$36,INDEX(Ranks!$1:$1048576,$A201,AW$1))","v":""},{"$f":"IF($A201=\"N/A\",Ref!$B$36,INDEX(Ranks!$1:$1048576,$A201,AX$1))","v":""},{"$f":"IF($A201=\"N/A\",Ref!$B$36,INDEX(Ranks!$1:$1048576,$A201,AY$1))","v":""},{"$f":"IF($A201=\"N/A\",Ref!$B$36,INDEX(Ranks!$1:$1048576,$A201,AZ$1))","v":""},{"$f":"IF($A201=\"N/A\",Ref!$B$36,INDEX(Ranks!$1:$1048576,$A201,BA$1))","v":""},{"$f":"IF($A201=\"N/A\",Ref!$B$36,INDEX(Ranks!$1:$1048576,$A201,BB$1))","v":""},{"$f":"IF($A201=\"N/A\",Ref!$B$36,INDEX(Ranks!$1:$1048576,$A201,BC$1))","v":""},{"$f":"IF($A201=\"N/A\",Ref!$B$36,INDEX(Ranks!$1:$1048576,$A201,BD$1))","v":""},{"$f":"IF($A201=\"N/A\",Ref!$B$36,INDEX(Ranks!$1:$1048576,$A201,BE$1))","v":""},{"$f":"IF($A201=\"N/A\",Ref!$B$36,INDEX(Ranks!$1:$1048576,$A201,BF$1))","v":""},{"$f":"IF($A201=\"N/A\",Ref!$B$36,INDEX(Ranks!$1:$1048576,$A201,BG$1))","v":""},{"$f":"IF($A201=\"N/A\",Ref!$B$36,INDEX(Ranks!$1:$1048576,$A201,BH$1))","v":""},{"$f":"IF($A201=\"N/A\",Ref!$B$36,INDEX(Ranks!$1:$1048576,$A201,BI$1))","v":""},{"$f":"IF($A201=\"N/A\",Ref!$B$36,INDEX(Ranks!$1:$1048576,$A201,BJ$1))","v":""},{"$f":"IF($A201=\"N/A\",Ref!$B$36,INDEX(Ranks!$1:$1048576,$A201,BK$1))","v":""},{"$f":"IF($A201=\"N/A\",Ref!$B$36,INDEX(Ranks!$1:$1048576,$A201,BL$1))","v":""},{"$f":"IF($A201=\"N/A\",Ref!$B$36,INDEX(Ranks!$1:$1048576,$A201,BM$1))","v":""},{"$f":"IF($A201=\"N/A\",Ref!$B$36,INDEX(Ranks!$1:$1048576,$A201,BN$1))","v":""},{"$f":"IF($A201=\"N/A\",Ref!$B$36,INDEX(Ranks!$1:$1048576,$A201,BO$1))","v":""},{"$f":"IF($A201=\"N/A\",Ref!$B$36,INDEX(Ranks!$1:$1048576,$A201,BP$1))","v":""},{"$f":"IF($A201=\"N/A\",Ref!$B$36,INDEX(Ranks!$1:$1048576,$A201,BQ$1))","v":""},{"$f":"IF($A201=\"N/A\",Ref!$B$36,INDEX(Ranks!$1:$1048576,$A201,BR$1))","v":""},{"$f":"IF($A201=\"N/A\",Ref!$B$36,INDEX(Ranks!$1:$1048576,$A201,BS$1))","v":""},{"$f":"IF($A201=\"N/A\",Ref!$B$36,INDEX(Ranks!$1:$1048576,$A201,BT$1))","v":""},{"$f":"IF($A201=\"N/A\",Ref!$B$36,INDEX(Ranks!$1:$1048576,$A201,BU$1))","v":""},{"$f":"IF($A201=\"N/A\",Ref!$B$36,INDEX(Ranks!$1:$1048576,$A201,BV$1))","v":""},{"$f":"IF($A201=\"N/A\",Ref!$B$36,INDEX(Ranks!$1:$1048576,$A201,BW$1))","v":""},{"$f":"IF($A201=\"N/A\",Ref!$B$36,INDEX(Ranks!$1:$1048576,$A201,BX$1))","v":""},{"$f":"IF($A201=\"N/A\",Ref!$B$36,INDEX(Ranks!$1:$1048576,$A201,BY$1))","v":""},{"$f":"IF($A201=\"N/A\",Ref!$B$36,INDEX(Ranks!$1:$1048576,$A201,BZ$1))","v":""},{"$f":"IF($A201=\"N/A\",Ref!$B$36,INDEX(Ranks!$1:$1048576,$A201,CA$1))","v":""},{"$f":"IF($A201=\"N/A\",Ref!$B$36,INDEX(Ranks!$1:$1048576,$A201,CB$1))","v":""},{"$f":"IF($A201=\"N/A\",Ref!$B$36,INDEX(Ranks!$1:$1048576,$A201,CC$1))","v":""},{"$f":"IF($A201=\"N/A\",Ref!$B$36,INDEX(Ranks!$1:$1048576,$A201,CD$1))","v":""},{"$f":"IF($A201=\"N/A\",Ref!$B$36,INDEX(Ranks!$1:$1048576,$A201,CE$1))","v":""},{"$f":"IF($A201=\"N/A\",Ref!$B$36,INDEX(Ranks!$1:$1048576,$A201,CF$1))","v":""},{"$f":"IF($A201=\"N/A\",Ref!$B$36,INDEX(Ranks!$1:$1048576,$A201,CG$1))","v":""},{"$f":"IF($A201=\"N/A\",Ref!$B$36,INDEX(Ranks!$1:$1048576,$A201,CH$1))","v":""},{"$f":"IF($A201=\"N/A\",Ref!$B$36,INDEX(Ranks!$1:$1048576,$A201,CI$1))","v":""},{"$f":"IF($A201=\"N/A\",Ref!$B$36,INDEX(Ranks!$1:$1048576,$A201,CJ$1))","v":""},{"$f":"IF($A201=\"N/A\",Ref!$B$36,INDEX(Ranks!$1:$1048576,$A201,CK$1))","v":""},{"$f":"IF($A201=\"N/A\",Ref!$B$36,INDEX(Ranks!$1:$1048576,$A201,CL$1))","v":""},{"$f":"IF($A201=\"N/A\",Ref!$B$36,INDEX(Ranks!$1:$1048576,$A201,CM$1))","v":""},{"$f":"IF($A201=\"N/A\",Ref!$B$36,INDEX(Ranks!$1:$1048576,$A201,CN$1))","v":""},{"$f":"IF($A201=\"N/A\",Ref!$B$36,INDEX(Ranks!$1:$1048576,$A201,CO$1))","v":""},{"$f":"IF($A201=\"N/A\",Ref!$B$36,INDEX(Ranks!$1:$1048576,$A201,CP$1))","v":""},{"$f":"IF($A201=\"N/A\",Ref!$B$36,INDEX(Ranks!$1:$1048576,$A201,CQ$1))","v":""},{"$f":"IF($A201=\"N/A\",Ref!$B$36,INDEX(Ranks!$1:$1048576,$A201,CR$1))","v":""},{"$f":"IF($A201=\"N/A\",Ref!$B$36,INDEX(Ranks!$1:$1048576,$A201,CS$1))","v":""},{"$f":"IF($A201=\"N/A\",Ref!$B$36,INDEX(Ranks!$1:$1048576,$A201,CT$1))","v":""},{"$f":"IF($A201=\"N/A\",Ref!$B$36,INDEX(Ranks!$1:$1048576,$A201,CU$1))","v":""},{"$f":"IF($A201=\"N/A\",Ref!$B$36,INDEX(Ranks!$1:$1048576,$A201,CV$1))","v":""},{"$f":"IF($A201=\"N/A\",Ref!$B$36,INDEX(Ranks!$1:$1048576,$A201,CW$1))","v":""},{"$f":"IF($A201=\"N/A\",Ref!$B$36,INDEX(Ranks!$1:$1048576,$A201,CX$1))","v":""},{"$f":"IF($A201=\"N/A\",Ref!$B$36,INDEX(Ranks!$1:$1048576,$A201,CY$1))","v":""},{"$f":"IF($A201=\"N/A\",Ref!$B$36,INDEX(Ranks!$1:$1048576,$A201,CZ$1))","v":""},{"$f":"IF($A201=\"N/A\",Ref!$B$36,INDEX(Ranks!$1:$1048576,$A201,DA$1))","v":""},{"$f":"IF($A201=\"N/A\",Ref!$B$36,INDEX(Ranks!$1:$1048576,$A201,DB$1))","v":""},{"$f":"IF($A201=\"N/A\",Ref!$B$36,INDEX(Ranks!$1:$1048576,$A201,DC$1))","v":""},{"$f":"IF($A201=\"N/A\",Ref!$B$36,INDEX(Ranks!$1:$1048576,$A201,DD$1))","v":""},{"$f":"IF($A201=\"N/A\",Ref!$B$36,INDEX(Ranks!$1:$1048576,$A201,DE$1))","v":""},{"$f":"IF($A201=\"N/A\",Ref!$B$36,INDEX(Ranks!$1:$1048576,$A201,DF$1))","v":""},{"$f":"IF($A201=\"N/A\",Ref!$B$36,INDEX(Ranks!$1:$1048576,$A201,DG$1))","v":""},{"$f":"IF($A201=\"N/A\",Ref!$B$36,INDEX(Ranks!$1:$1048576,$A201,DH$1))","v":""},{"$f":"IF($A201=\"N/A\",Ref!$B$36,INDEX(Ranks!$1:$1048576,$A201,DI$1))","v":""},{"$f":"IF($A201=\"N/A\",Ref!$B$36,INDEX(Ranks!$1:$1048576,$A201,DJ$1))","v":""},{"$f":"IF($A201=\"N/A\",Ref!$B$36,INDEX(Ranks!$1:$1048576,$A201,DK$1))","v":""},{"$f":"IF($A201=\"N/A\",Ref!$B$36,INDEX(Ranks!$1:$1048576,$A201,DL$1))","v":""},{"$f":"IF($A201=\"N/A\",Ref!$B$36,INDEX(Ranks!$1:$1048576,$A201,DM$1))","v":""},{"$f":"IF($A201=\"N/A\",Ref!$B$36,INDEX(Ranks!$1:$1048576,$A201,DN$1))","v":""},{"$f":"IF($A201=\"N/A\",Ref!$B$36,INDEX(Ranks!$1:$1048576,$A201,DO$1))","v":""},{"$f":"IF($A201=\"N/A\",Ref!$B$36,INDEX(Ranks!$1:$1048576,$A201,DP$1))","v":""},{"$f":"IF($A201=\"N/A\",Ref!$B$36,INDEX(Ranks!$1:$1048576,$A201,DQ$1))","v":""},{"$f":"IF($A201=\"N/A\",Ref!$B$36,INDEX(Ranks!$1:$1048576,$A201,DR$1))","v":""},{"$f":"IF($A201=\"N/A\",Ref!$B$36,INDEX(Ranks!$1:$1048576,$A201,DS$1))","v":""},{"$f":"IF($A201=\"N/A\",Ref!$B$36,INDEX(Ranks!$1:$1048576,$A201,DT$1))","v":""},{"$f":"IF($A201=\"N/A\",Ref!$B$36,INDEX(Ranks!$1:$1048576,$A201,DU$1))","v":""},{"$f":"IF($A201=\"N/A\",Ref!$B$36,INDEX(Ranks!$1:$1048576,$A201,DV$1))","v":""},{"$f":"IF($A201=\"N/A\",Ref!$B$36,INDEX(Ranks!$1:$1048576,$A201,DW$1))","v":""},{"$f":"IF($A201=\"N/A\",Ref!$B$36,INDEX(Ranks!$1:$1048576,$A201,DX$1))","v":""},{"$f":"IF($A201=\"N/A\",Ref!$B$36,INDEX(Ranks!$1:$1048576,$A201,DY$1))","v":""},{"$f":"IF($A201=\"N/A\",Ref!$B$36,INDEX(Ranks!$1:$1048576,$A201,DZ$1))","v":""},{"$f":"IF($A201=\"N/A\",Ref!$B$36,INDEX(Ranks!$1:$1048576,$A201,EA$1))","v":""},{"$f":"IF($A201=\"N/A\",Ref!$B$36,INDEX(Ranks!$1:$1048576,$A201,EB$1))","v":""}]
[{"$f":"IFERROR(MATCH('Portfolio Page'!L202,Ranks!L:L,0),\"N/A\")","v":"N/A"},null,{"$f":"IF($A202=\"N/A\",\"\",INDEX(Ranks!$1:$1048576,$A202,C$1))","v":""},{"$f":"IF($A202=\"N/A\",Ref!$B$36,INDEX(Ranks!$1:$1048576,$A202,D$1))","v":""},{"$f":"IF($A202=\"N/A\",Ref!$B$36,INDEX(Ranks!$1:$1048576,$A202,E$1))","v":""},{"$f":"IF($A202=\"N/A\",\"\",INDEX(Ranks!$1:$1048576,$A202,F$1))","v":""},{"$f":"IF($A202=\"N/A\",\"\",INDEX(Ranks!$1:$1048576,$A202,G$1))","v":""},{"$f":"IF($A202=\"N/A\",\"\",INDEX(Ranks!$1:$1048576,$A202,H$1))","v":""},{"$f":"IF($A202=\"N/A\",\"\",INDEX(Ranks!$1:$1048576,$A202,I$1))","v":""},{"$f":"IF($A202=\"N/A\",\"\",INDEX(Ranks!$1:$1048576,$A202,J$1))","v":""},{"$f":"IF($A202=\"N/A\",\"\",INDEX(Ranks!$1:$1048576,$A202,K$1))","v":""},null,{"$f":"IF($A202=\"N/A\",Ref!$B$36,INDEX(Ranks!$1:$1048576,$A202,M$1))","v":""},{"$f":"IF($A202=\"N/A\",Ref!$B$36,INDEX(Ranks!$1:$1048576,$A202,N$1))","v":""},{"$f":"IF($A202=\"N/A\",Ref!$B$36,INDEX(Ranks!$1:$1048576,$A202,O$1))","v":""},{"$f":"IF($A202=\"N/A\",Ref!$B$36,INDEX(Ranks!$1:$1048576,$A202,P$1))","v":""},{"$f":"IF($A202=\"N/A\",Ref!$B$36,INDEX(Ranks!$1:$1048576,$A202,Q$1))","v":""},{"$f":"IF($A202=\"N/A\",Ref!$B$36,INDEX(Ranks!$1:$1048576,$A202,R$1))","v":""},{"$f":"IF($A202=\"N/A\",Ref!$B$36,INDEX(Ranks!$1:$1048576,$A202,S$1))","v":""},{"$f":"IF($A202=\"N/A\",Ref!$B$36,INDEX(Ranks!$1:$1048576,$A202,T$1))","v":""},{"$f":"IF($A202=\"N/A\",Ref!$B$36,INDEX(Ranks!$1:$1048576,$A202,U$1))","v":""},{"$f":"IF($A202=\"N/A\",Ref!$B$36,INDEX(Ranks!$1:$1048576,$A202,V$1))","v":""},{"$f":"IF($A202=\"N/A\",Ref!$B$36,INDEX(Ranks!$1:$1048576,$A202,W$1))","v":""},{"$f":"IF($A202=\"N/A\",Ref!$B$36,INDEX(Ranks!$1:$1048576,$A202,X$1))","v":""},{"$f":"IF($A202=\"N/A\",Ref!$B$36,INDEX(Ranks!$1:$1048576,$A202,Y$1))","v":""},{"$f":"IF($A202=\"N/A\",Ref!$B$36,INDEX(Ranks!$1:$1048576,$A202,Z$1))","v":""},{"$f":"IF($A202=\"N/A\",Ref!$B$36,INDEX(Ranks!$1:$1048576,$A202,AA$1))","v":""},{"$f":"IF($A202=\"N/A\",Ref!$B$36,INDEX(Ranks!$1:$1048576,$A202,AB$1))","v":""},{"$f":"IF($A202=\"N/A\",Ref!$B$36,INDEX(Ranks!$1:$1048576,$A202,AC$1))","v":""},{"$f":"IF($A202=\"N/A\",Ref!$B$36,INDEX(Ranks!$1:$1048576,$A202,AD$1))","v":""},{"$f":"IF($A202=\"N/A\",Ref!$B$36,INDEX(Ranks!$1:$1048576,$A202,AE$1))","v":""},{"$f":"IF($A202=\"N/A\",Ref!$B$36,INDEX(Ranks!$1:$1048576,$A202,AF$1))","v":""},{"$f":"IF($A202=\"N/A\",Ref!$B$36,INDEX(Ranks!$1:$1048576,$A202,AG$1))","v":""},{"$f":"IF($A202=\"N/A\",Ref!$B$36,INDEX(Ranks!$1:$1048576,$A202,AH$1))","v":""},{"$f":"IF($A202=\"N/A\",Ref!$B$36,INDEX(Ranks!$1:$1048576,$A202,AI$1))","v":""},{"$f":"IF($A202=\"N/A\",Ref!$B$36,INDEX(Ranks!$1:$1048576,$A202,AJ$1))","v":""},{"$f":"IF($A202=\"N/A\",Ref!$B$36,INDEX(Ranks!$1:$1048576,$A202,AK$1))","v":""},{"$f":"IF($A202=\"N/A\",Ref!$B$36,INDEX(Ranks!$1:$1048576,$A202,AL$1))","v":""},{"$f":"IF($A202=\"N/A\",Ref!$B$36,INDEX(Ranks!$1:$1048576,$A202,AM$1))","v":""},{"$f":"IF($A202=\"N/A\",Ref!$B$36,INDEX(Ranks!$1:$1048576,$A202,AN$1))","v":""},{"$f":"IF($A202=\"N/A\",Ref!$B$36,INDEX(Ranks!$1:$1048576,$A202,AO$1))","v":""},{"$f":"IF($A202=\"N/A\",Ref!$B$36,INDEX(Ranks!$1:$1048576,$A202,AP$1))","v":""},{"$f":"IF($A202=\"N/A\",Ref!$B$36,INDEX(Ranks!$1:$1048576,$A202,AQ$1))","v":""},{"$f":"IF($A202=\"N/A\",Ref!$B$36,INDEX(Ranks!$1:$1048576,$A202,AR$1))","v":""},{"$f":"IF($A202=\"N/A\",Ref!$B$36,INDEX(Ranks!$1:$1048576,$A202,AS$1))","v":""},{"$f":"IF($A202=\"N/A\",Ref!$B$36,INDEX(Ranks!$1:$1048576,$A202,AT$1))","v":""},{"$f":"IF($A202=\"N/A\",Ref!$B$36,INDEX(Ranks!$1:$1048576,$A202,AU$1))","v":""},{"$f":"IF($A202=\"N/A\",Ref!$B$36,INDEX(Ranks!$1:$1048576,$A202,AV$1))","v":""},{"$f":"IF($A202=\"N/A\",Ref!$B$36,INDEX(Ranks!$1:$1048576,$A202,AW$1))","v":""},{"$f":"IF($A202=\"N/A\",Ref!$B$36,INDEX(Ranks!$1:$1048576,$A202,AX$1))","v":""},{"$f":"IF($A202=\"N/A\",Ref!$B$36,INDEX(Ranks!$1:$1048576,$A202,AY$1))","v":""},{"$f":"IF($A202=\"N/A\",Ref!$B$36,INDEX(Ranks!$1:$1048576,$A202,AZ$1))","v":""},{"$f":"IF($A202=\"N/A\",Ref!$B$36,INDEX(Ranks!$1:$1048576,$A202,BA$1))","v":""},{"$f":"IF($A202=\"N/A\",Ref!$B$36,INDEX(Ranks!$1:$1048576,$A202,BB$1))","v":""},{"$f":"IF($A202=\"N/A\",Ref!$B$36,INDEX(Ranks!$1:$1048576,$A202,BC$1))","v":""},{"$f":"IF($A202=\"N/A\",Ref!$B$36,INDEX(Ranks!$1:$1048576,$A202,BD$1))","v":""},{"$f":"IF($A202=\"N/A\",Ref!$B$36,INDEX(Ranks!$1:$1048576,$A202,BE$1))","v":""},{"$f":"IF($A202=\"N/A\",Ref!$B$36,INDEX(Ranks!$1:$1048576,$A202,BF$1))","v":""},{"$f":"IF($A202=\"N/A\",Ref!$B$36,INDEX(Ranks!$1:$1048576,$A202,BG$1))","v":""},{"$f":"IF($A202=\"N/A\",Ref!$B$36,INDEX(Ranks!$1:$1048576,$A202,BH$1))","v":""},{"$f":"IF($A202=\"N/A\",Ref!$B$36,INDEX(Ranks!$1:$1048576,$A202,BI$1))","v":""},{"$f":"IF($A202=\"N/A\",Ref!$B$36,INDEX(Ranks!$1:$1048576,$A202,BJ$1))","v":""},{"$f":"IF($A202=\"N/A\",Ref!$B$36,INDEX(Ranks!$1:$1048576,$A202,BK$1))","v":""},{"$f":"IF($A202=\"N/A\",Ref!$B$36,INDEX(Ranks!$1:$1048576,$A202,BL$1))","v":""},{"$f":"IF($A202=\"N/A\",Ref!$B$36,INDEX(Ranks!$1:$1048576,$A202,BM$1))","v":""},{"$f":"IF($A202=\"N/A\",Ref!$B$36,INDEX(Ranks!$1:$1048576,$A202,BN$1))","v":""},{"$f":"IF($A202=\"N/A\",Ref!$B$36,INDEX(Ranks!$1:$1048576,$A202,BO$1))","v":""},{"$f":"IF($A202=\"N/A\",Ref!$B$36,INDEX(Ranks!$1:$1048576,$A202,BP$1))","v":""},{"$f":"IF($A202=\"N/A\",Ref!$B$36,INDEX(Ranks!$1:$1048576,$A202,BQ$1))","v":""},{"$f":"IF($A202=\"N/A\",Ref!$B$36,INDEX(Ranks!$1:$1048576,$A202,BR$1))","v":""},{"$f":"IF($A202=\"N/A\",Ref!$B$36,INDEX(Ranks!$1:$1048576,$A202,BS$1))","v":""},{"$f":"IF($A202=\"N/A\",Ref!$B$36,INDEX(Ranks!$1:$1048576,$A202,BT$1))","v":""},{"$f":"IF($A202=\"N/A\",Ref!$B$36,INDEX(Ranks!$1:$1048576,$A202,BU$1))","v":""},{"$f":"IF($A202=\"N/A\",Ref!$B$36,INDEX(Ranks!$1:$1048576,$A202,BV$1))","v":""},{"$f":"IF($A202=\"N/A\",Ref!$B$36,INDEX(Ranks!$1:$1048576,$A202,BW$1))","v":""},{"$f":"IF($A202=\"N/A\",Ref!$B$36,INDEX(Ranks!$1:$1048576,$A202,BX$1))","v":""},{"$f":"IF($A202=\"N/A\",Ref!$B$36,INDEX(Ranks!$1:$1048576,$A202,BY$1))","v":""},{"$f":"IF($A202=\"N/A\",Ref!$B$36,INDEX(Ranks!$1:$1048576,$A202,BZ$1))","v":""},{"$f":"IF($A202=\"N/A\",Ref!$B$36,INDEX(Ranks!$1:$1048576,$A202,CA$1))","v":""},{"$f":"IF($A202=\"N/A\",Ref!$B$36,INDEX(Ranks!$1:$1048576,$A202,CB$1))","v":""},{"$f":"IF($A202=\"N/A\",Ref!$B$36,INDEX(Ranks!$1:$1048576,$A202,CC$1))","v":""},{"$f":"IF($A202=\"N/A\",Ref!$B$36,INDEX(Ranks!$1:$1048576,$A202,CD$1))","v":""},{"$f":"IF($A202=\"N/A\",Ref!$B$36,INDEX(Ranks!$1:$1048576,$A202,CE$1))","v":""},{"$f":"IF($A202=\"N/A\",Ref!$B$36,INDEX(Ranks!$1:$1048576,$A202,CF$1))","v":""},{"$f":"IF($A202=\"N/A\",Ref!$B$36,INDEX(Ranks!$1:$1048576,$A202,CG$1))","v":""},{"$f":"IF($A202=\"N/A\",Ref!$B$36,INDEX(Ranks!$1:$1048576,$A202,CH$1))","v":""},{"$f":"IF($A202=\"N/A\",Ref!$B$36,INDEX(Ranks!$1:$1048576,$A202,CI$1))","v":""},{"$f":"IF($A202=\"N/A\",Ref!$B$36,INDEX(Ranks!$1:$1048576,$A202,CJ$1))","v":""},{"$f":"IF($A202=\"N/A\",Ref!$B$36,INDEX(Ranks!$1:$1048576,$A202,CK$1))","v":""},{"$f":"IF($A202=\"N/A\",Ref!$B$36,INDEX(Ranks!$1:$1048576,$A202,CL$1))","v":""},{"$f":"IF($A202=\"N/A\",Ref!$B$36,INDEX(Ranks!$1:$1048576,$A202,CM$1))","v":""},{"$f":"IF($A202=\"N/A\",Ref!$B$36,INDEX(Ranks!$1:$1048576,$A202,CN$1))","v":""},{"$f":"IF($A202=\"N/A\",Ref!$B$36,INDEX(Ranks!$1:$1048576,$A202,CO$1))","v":""},{"$f":"IF($A202=\"N/A\",Ref!$B$36,INDEX(Ranks!$1:$1048576,$A202,CP$1))","v":""},{"$f":"IF($A202=\"N/A\",Ref!$B$36,INDEX(Ranks!$1:$1048576,$A202,CQ$1))","v":""},{"$f":"IF($A202=\"N/A\",Ref!$B$36,INDEX(Ranks!$1:$1048576,$A202,CR$1))","v":""},{"$f":"IF($A202=\"N/A\",Ref!$B$36,INDEX(Ranks!$1:$1048576,$A202,CS$1))","v":""},{"$f":"IF($A202=\"N/A\",Ref!$B$36,INDEX(Ranks!$1:$1048576,$A202,CT$1))","v":""},{"$f":"IF($A202=\"N/A\",Ref!$B$36,INDEX(Ranks!$1:$1048576,$A202,CU$1))","v":""},{"$f":"IF($A202=\"N/A\",Ref!$B$36,INDEX(Ranks!$1:$1048576,$A202,CV$1))","v":""},{"$f":"IF($A202=\"N/A\",Ref!$B$36,INDEX(Ranks!$1:$1048576,$A202,CW$1))","v":""},{"$f":"IF($A202=\"N/A\",Ref!$B$36,INDEX(Ranks!$1:$1048576,$A202,CX$1))","v":""},{"$f":"IF($A202=\"N/A\",Ref!$B$36,INDEX(Ranks!$1:$1048576,$A202,CY$1))","v":""},{"$f":"IF($A202=\"N/A\",Ref!$B$36,INDEX(Ranks!$1:$1048576,$A202,CZ$1))","v":""},{"$f":"IF($A202=\"N/A\",Ref!$B$36,INDEX(Ranks!$1:$1048576,$A202,DA$1))","v":""},{"$f":"IF($A202=\"N/A\",Ref!$B$36,INDEX(Ranks!$1:$1048576,$A202,DB$1))","v":""},{"$f":"IF($A202=\"N/A\",Ref!$B$36,INDEX(Ranks!$1:$1048576,$A202,DC$1))","v":""},{"$f":"IF($A202=\"N/A\",Ref!$B$36,INDEX(Ranks!$1:$1048576,$A202,DD$1))","v":""},{"$f":"IF($A202=\"N/A\",Ref!$B$36,INDEX(Ranks!$1:$1048576,$A202,DE$1))","v":""},{"$f":"IF($A202=\"N/A\",Ref!$B$36,INDEX(Ranks!$1:$1048576,$A202,DF$1))","v":""},{"$f":"IF($A202=\"N/A\",Ref!$B$36,INDEX(Ranks!$1:$1048576,$A202,DG$1))","v":""},{"$f":"IF($A202=\"N/A\",Ref!$B$36,INDEX(Ranks!$1:$1048576,$A202,DH$1))","v":""},{"$f":"IF($A202=\"N/A\",Ref!$B$36,INDEX(Ranks!$1:$1048576,$A202,DI$1))","v":""},{"$f":"IF($A202=\"N/A\",Ref!$B$36,INDEX(Ranks!$1:$1048576,$A202,DJ$1))","v":""},{"$f":"IF($A202=\"N/A\",Ref!$B$36,INDEX(Ranks!$1:$1048576,$A202,DK$1))","v":""},{"$f":"IF($A202=\"N/A\",Ref!$B$36,INDEX(Ranks!$1:$1048576,$A202,DL$1))","v":""},{"$f":"IF($A202=\"N/A\",Ref!$B$36,INDEX(Ranks!$1:$1048576,$A202,DM$1))","v":""},{"$f":"IF($A202=\"N/A\",Ref!$B$36,INDEX(Ranks!$1:$1048576,$A202,DN$1))","v":""},{"$f":"IF($A202=\"N/A\",Ref!$B$36,INDEX(Ranks!$1:$1048576,$A202,DO$1))","v":""},{"$f":"IF($A202=\"N/A\",Ref!$B$36,INDEX(Ranks!$1:$1048576,$A202,DP$1))","v":""},{"$f":"IF($A202=\"N/A\",Ref!$B$36,INDEX(Ranks!$1:$1048576,$A202,DQ$1))","v":""},{"$f":"IF($A202=\"N/A\",Ref!$B$36,INDEX(Ranks!$1:$1048576,$A202,DR$1))","v":""},{"$f":"IF($A202=\"N/A\",Ref!$B$36,INDEX(Ranks!$1:$1048576,$A202,DS$1))","v":""},{"$f":"IF($A202=\"N/A\",Ref!$B$36,INDEX(Ranks!$1:$1048576,$A202,DT$1))","v":""},{"$f":"IF($A202=\"N/A\",Ref!$B$36,INDEX(Ranks!$1:$1048576,$A202,DU$1))","v":""},{"$f":"IF($A202=\"N/A\",Ref!$B$36,INDEX(Ranks!$1:$1048576,$A202,DV$1))","v":""},{"$f":"IF($A202=\"N/A\",Ref!$B$36,INDEX(Ranks!$1:$1048576,$A202,DW$1))","v":""},{"$f":"IF($A202=\"N/A\",Ref!$B$36,INDEX(Ranks!$1:$1048576,$A202,DX$1))","v":""},{"$f":"IF($A202=\"N/A\",Ref!$B$36,INDEX(Ranks!$1:$1048576,$A202,DY$1))","v":""},{"$f":"IF($A202=\"N/A\",Ref!$B$36,INDEX(Ranks!$1:$1048576,$A202,DZ$1))","v":""},{"$f":"IF($A202=\"N/A\",Ref!$B$36,INDEX(Ranks!$1:$1048576,$A202,EA$1))","v":""},{"$f":"IF($A202=\"N/A\",Ref!$B$36,INDEX(Ranks!$1:$1048576,$A202,EB$1))","v":""}]
[{"$f":"IFERROR(MATCH('Portfolio Page'!L203,Ranks!L:L,0),\"N/A\")","v":"N/A"},null,{"$f":"IF($A203=\"N/A\",\"\",INDEX(Ranks!$1:$1048576,$A203,C$1))","v":""},{"$f":"IF($A203=\"N/A\",Ref!$B$36,INDEX(Ranks!$1:$1048576,$A203,D$1))","v":""},{"$f":"IF($A203=\"N/A\",Ref!$B$36,INDEX(Ranks!$1:$1048576,$A203,E$1))","v":""},{"$f":"IF($A203=\"N/A\",\"\",INDEX(Ranks!$1:$1048576,$A203,F$1))","v":""},{"$f":"IF($A203=\"N/A\",\"\",INDEX(Ranks!$1:$1048576,$A203,G$1))","v":""},{"$f":"IF($A203=\"N/A\",\"\",INDEX(Ranks!$1:$1048576,$A203,H$1))","v":""},{"$f":"IF($A203=\"N/A\",\"\",INDEX(Ranks!$1:$1048576,$A203,I$1))","v":""},{"$f":"IF($A203=\"N/A\",\"\",INDEX(Ranks!$1:$1048576,$A203,J$1))","v":""},{"$f":"IF($A203=\"N/A\",\"\",INDEX(Ranks!$1:$1048576,$A203,K$1))","v":""},null,{"$f":"IF($A203=\"N/A\",Ref!$B$36,INDEX(Ranks!$1:$1048576,$A203,M$1))","v":""},{"$f":"IF($A203=\"N/A\",Ref!$B$36,INDEX(Ranks!$1:$1048576,$A203,N$1))","v":""},{"$f":"IF($A203=\"N/A\",Ref!$B$36,INDEX(Ranks!$1:$1048576,$A203,O$1))","v":""},{"$f":"IF($A203=\"N/A\",Ref!$B$36,INDEX(Ranks!$1:$1048576,$A203,P$1))","v":""},{"$f":"IF($A203=\"N/A\",Ref!$B$36,INDEX(Ranks!$1:$1048576,$A203,Q$1))","v":""},{"$f":"IF($A203=\"N/A\",Ref!$B$36,INDEX(Ranks!$1:$1048576,$A203,R$1))","v":""},{"$f":"IF($A203=\"N/A\",Ref!$B$36,INDEX(Ranks!$1:$1048576,$A203,S$1))","v":""},{"$f":"IF($A203=\"N/A\",Ref!$B$36,INDEX(Ranks!$1:$1048576,$A203,T$1))","v":""},{"$f":"IF($A203=\"N/A\",Ref!$B$36,INDEX(Ranks!$1:$1048576,$A203,U$1))","v":""},{"$f":"IF($A203=\"N/A\",Ref!$B$36,INDEX(Ranks!$1:$1048576,$A203,V$1))","v":""},{"$f":"IF($A203=\"N/A\",Ref!$B$36,INDEX(Ranks!$1:$1048576,$A203,W$1))","v":""},{"$f":"IF($A203=\"N/A\",Ref!$B$36,INDEX(Ranks!$1:$1048576,$A203,X$1))","v":""},{"$f":"IF($A203=\"N/A\",Ref!$B$36,INDEX(Ranks!$1:$1048576,$A203,Y$1))","v":""},{"$f":"IF($A203=\"N/A\",Ref!$B$36,INDEX(Ranks!$1:$1048576,$A203,Z$1))","v":""},{"$f":"IF($A203=\"N/A\",Ref!$B$36,INDEX(Ranks!$1:$1048576,$A203,AA$1))","v":""},{"$f":"IF($A203=\"N/A\",Ref!$B$36,INDEX(Ranks!$1:$1048576,$A203,AB$1))","v":""},{"$f":"IF($A203=\"N/A\",Ref!$B$36,INDEX(Ranks!$1:$1048576,$A203,AC$1))","v":""},{"$f":"IF($A203=\"N/A\",Ref!$B$36,INDEX(Ranks!$1:$1048576,$A203,AD$1))","v":""},{"$f":"IF($A203=\"N/A\",Ref!$B$36,INDEX(Ranks!$1:$1048576,$A203,AE$1))","v":""},{"$f":"IF($A203=\"N/A\",Ref!$B$36,INDEX(Ranks!$1:$1048576,$A203,AF$1))","v":""},{"$f":"IF($A203=\"N/A\",Ref!$B$36,INDEX(Ranks!$1:$1048576,$A203,AG$1))","v":""},{"$f":"IF($A203=\"N/A\",Ref!$B$36,INDEX(Ranks!$1:$1048576,$A203,AH$1))","v":""},{"$f":"IF($A203=\"N/A\",Ref!$B$36,INDEX(Ranks!$1:$1048576,$A203,AI$1))","v":""},{"$f":"IF($A203=\"N/A\",Ref!$B$36,INDEX(Ranks!$1:$1048576,$A203,AJ$1))","v":""},{"$f":"IF($A203=\"N/A\",Ref!$B$36,INDEX(Ranks!$1:$1048576,$A203,AK$1))","v":""},{"$f":"IF($A203=\"N/A\",Ref!$B$36,INDEX(Ranks!$1:$1048576,$A203,AL$1))","v":""},{"$f":"IF($A203=\"N/A\",Ref!$B$36,INDEX(Ranks!$1:$1048576,$A203,AM$1))","v":""},{"$f":"IF($A203=\"N/A\",Ref!$B$36,INDEX(Ranks!$1:$1048576,$A203,AN$1))","v":""},{"$f":"IF($A203=\"N/A\",Ref!$B$36,INDEX(Ranks!$1:$1048576,$A203,AO$1))","v":""},{"$f":"IF($A203=\"N/A\",Ref!$B$36,INDEX(Ranks!$1:$1048576,$A203,AP$1))","v":""},{"$f":"IF($A203=\"N/A\",Ref!$B$36,INDEX(Ranks!$1:$1048576,$A203,AQ$1))","v":""},{"$f":"IF($A203=\"N/A\",Ref!$B$36,INDEX(Ranks!$1:$1048576,$A203,AR$1))","v":""},{"$f":"IF($A203=\"N/A\",Ref!$B$36,INDEX(Ranks!$1:$1048576,$A203,AS$1))","v":""},{"$f":"IF($A203=\"N/A\",Ref!$B$36,INDEX(Ranks!$1:$1048576,$A203,AT$1))","v":""},{"$f":"IF($A203=\"N/A\",Ref!$B$36,INDEX(Ranks!$1:$1048576,$A203,AU$1))","v":""},{"$f":"IF($A203=\"N/A\",Ref!$B$36,INDEX(Ranks!$1:$1048576,$A203,AV$1))","v":""},{"$f":"IF($A203=\"N/A\",Ref!$B$36,INDEX(Ranks!$1:$1048576,$A203,AW$1))","v":""},{"$f":"IF($A203=\"N/A\",Ref!$B$36,INDEX(Ranks!$1:$1048576,$A203,AX$1))","v":""},{"$f":"IF($A203=\"N/A\",Ref!$B$36,INDEX(Ranks!$1:$1048576,$A203,AY$1))","v":""},{"$f":"IF($A203=\"N/A\",Ref!$B$36,INDEX(Ranks!$1:$1048576,$A203,AZ$1))","v":""},{"$f":"IF($A203=\"N/A\",Ref!$B$36,INDEX(Ranks!$1:$1048576,$A203,BA$1))","v":""},{"$f":"IF($A203=\"N/A\",Ref!$B$36,INDEX(Ranks!$1:$1048576,$A203,BB$1))","v":""},{"$f":"IF($A203=\"N/A\",Ref!$B$36,INDEX(Ranks!$1:$1048576,$A203,BC$1))","v":""},{"$f":"IF($A203=\"N/A\",Ref!$B$36,INDEX(Ranks!$1:$1048576,$A203,BD$1))","v":""},{"$f":"IF($A203=\"N/A\",Ref!$B$36,INDEX(Ranks!$1:$1048576,$A203,BE$1))","v":""},{"$f":"IF($A203=\"N/A\",Ref!$B$36,INDEX(Ranks!$1:$1048576,$A203,BF$1))","v":""},{"$f":"IF($A203=\"N/A\",Ref!$B$36,INDEX(Ranks!$1:$1048576,$A203,BG$1))","v":""},{"$f":"IF($A203=\"N/A\",Ref!$B$36,INDEX(Ranks!$1:$1048576,$A203,BH$1))","v":""},{"$f":"IF($A203=\"N/A\",Ref!$B$36,INDEX(Ranks!$1:$1048576,$A203,BI$1))","v":""},{"$f":"IF($A203=\"N/A\",Ref!$B$36,INDEX(Ranks!$1:$1048576,$A203,BJ$1))","v":""},{"$f":"IF($A203=\"N/A\",Ref!$B$36,INDEX(Ranks!$1:$1048576,$A203,BK$1))","v":""},{"$f":"IF($A203=\"N/A\",Ref!$B$36,INDEX(Ranks!$1:$1048576,$A203,BL$1))","v":""},{"$f":"IF($A203=\"N/A\",Ref!$B$36,INDEX(Ranks!$1:$1048576,$A203,BM$1))","v":""},{"$f":"IF($A203=\"N/A\",Ref!$B$36,INDEX(Ranks!$1:$1048576,$A203,BN$1))","v":""},{"$f":"IF($A203=\"N/A\",Ref!$B$36,INDEX(Ranks!$1:$1048576,$A203,BO$1))","v":""},{"$f":"IF($A203=\"N/A\",Ref!$B$36,INDEX(Ranks!$1:$1048576,$A203,BP$1))","v":""},{"$f":"IF($A203=\"N/A\",Ref!$B$36,INDEX(Ranks!$1:$1048576,$A203,BQ$1))","v":""},{"$f":"IF($A203=\"N/A\",Ref!$B$36,INDEX(Ranks!$1:$1048576,$A203,BR$1))","v":""},{"$f":"IF($A203=\"N/A\",Ref!$B$36,INDEX(Ranks!$1:$1048576,$A203,BS$1))","v":""},{"$f":"IF($A203=\"N/A\",Ref!$B$36,INDEX(Ranks!$1:$1048576,$A203,BT$1))","v":""},{"$f":"IF($A203=\"N/A\",Ref!$B$36,INDEX(Ranks!$1:$1048576,$A203,BU$1))","v":""},{"$f":"IF($A203=\"N/A\",Ref!$B$36,INDEX(Ranks!$1:$1048576,$A203,BV$1))","v":""},{"$f":"IF($A203=\"N/A\",Ref!$B$36,INDEX(Ranks!$1:$1048576,$A203,BW$1))","v":""},{"$f":"IF($A203=\"N/A\",Ref!$B$36,INDEX(Ranks!$1:$1048576,$A203,BX$1))","v":""},{"$f":"IF($A203=\"N/A\",Ref!$B$36,INDEX(Ranks!$1:$1048576,$A203,BY$1))","v":""},{"$f":"IF($A203=\"N/A\",Ref!$B$36,INDEX(Ranks!$1:$1048576,$A203,BZ$1))","v":""},{"$f":"IF($A203=\"N/A\",Ref!$B$36,INDEX(Ranks!$1:$1048576,$A203,CA$1))","v":""},{"$f":"IF($A203=\"N/A\",Ref!$B$36,INDEX(Ranks!$1:$1048576,$A203,CB$1))","v":""},{"$f":"IF($A203=\"N/A\",Ref!$B$36,INDEX(Ranks!$1:$1048576,$A203,CC$1))","v":""},{"$f":"IF($A203=\"N/A\",Ref!$B$36,INDEX(Ranks!$1:$1048576,$A203,CD$1))","v":""},{"$f":"IF($A203=\"N/A\",Ref!$B$36,INDEX(Ranks!$1:$1048576,$A203,CE$1))","v":""},{"$f":"IF($A203=\"N/A\",Ref!$B$36,INDEX(Ranks!$1:$1048576,$A203,CF$1))","v":""},{"$f":"IF($A203=\"N/A\",Ref!$B$36,INDEX(Ranks!$1:$1048576,$A203,CG$1))","v":""},{"$f":"IF($A203=\"N/A\",Ref!$B$36,INDEX(Ranks!$1:$1048576,$A203,CH$1))","v":""},{"$f":"IF($A203=\"N/A\",Ref!$B$36,INDEX(Ranks!$1:$1048576,$A203,CI$1))","v":""},{"$f":"IF($A203=\"N/A\",Ref!$B$36,INDEX(Ranks!$1:$1048576,$A203,CJ$1))","v":""},{"$f":"IF($A203=\"N/A\",Ref!$B$36,INDEX(Ranks!$1:$1048576,$A203,CK$1))","v":""},{"$f":"IF($A203=\"N/A\",Ref!$B$36,INDEX(Ranks!$1:$1048576,$A203,CL$1))","v":""},{"$f":"IF($A203=\"N/A\",Ref!$B$36,INDEX(Ranks!$1:$1048576,$A203,CM$1))","v":""},{"$f":"IF($A203=\"N/A\",Ref!$B$36,INDEX(Ranks!$1:$1048576,$A203,CN$1))","v":""},{"$f":"IF($A203=\"N/A\",Ref!$B$36,INDEX(Ranks!$1:$1048576,$A203,CO$1))","v":""},{"$f":"IF($A203=\"N/A\",Ref!$B$36,INDEX(Ranks!$1:$1048576,$A203,CP$1))","v":""},{"$f":"IF($A203=\"N/A\",Ref!$B$36,INDEX(Ranks!$1:$1048576,$A203,CQ$1))","v":""},{"$f":"IF($A203=\"N/A\",Ref!$B$36,INDEX(Ranks!$1:$1048576,$A203,CR$1))","v":""},{"$f":"IF($A203=\"N/A\",Ref!$B$36,INDEX(Ranks!$1:$1048576,$A203,CS$1))","v":""},{"$f":"IF($A203=\"N/A\",Ref!$B$36,INDEX(Ranks!$1:$1048576,$A203,CT$1))","v":""},{"$f":"IF($A203=\"N/A\",Ref!$B$36,INDEX(Ranks!$1:$1048576,$A203,CU$1))","v":""},{"$f":"IF($A203=\"N/A\",Ref!$B$36,INDEX(Ranks!$1:$1048576,$A203,CV$1))","v":""},{"$f":"IF($A203=\"N/A\",Ref!$B$36,INDEX(Ranks!$1:$1048576,$A203,CW$1))","v":""},{"$f":"IF($A203=\"N/A\",Ref!$B$36,INDEX(Ranks!$1:$1048576,$A203,CX$1))","v":""},{"$f":"IF($A203=\"N/A\",Ref!$B$36,INDEX(Ranks!$1:$1048576,$A203,CY$1))","v":""},{"$f":"IF($A203=\"N/A\",Ref!$B$36,INDEX(Ranks!$1:$1048576,$A203,CZ$1))","v":""},{"$f":"IF($A203=\"N/A\",Ref!$B$36,INDEX(Ranks!$1:$1048576,$A203,DA$1))","v":""},{"$f":"IF($A203=\"N/A\",Ref!$B$36,INDEX(Ranks!$1:$1048576,$A203,DB$1))","v":""},{"$f":"IF($A203=\"N/A\",Ref!$B$36,INDEX(Ranks!$1:$1048576,$A203,DC$1))","v":""},{"$f":"IF($A203=\"N/A\",Ref!$B$36,INDEX(Ranks!$1:$1048576,$A203,DD$1))","v":""},{"$f":"IF($A203=\"N/A\",Ref!$B$36,INDEX(Ranks!$1:$1048576,$A203,DE$1))","v":""},{"$f":"IF($A203=\"N/A\",Ref!$B$36,INDEX(Ranks!$1:$1048576,$A203,DF$1))","v":""},{"$f":"IF($A203=\"N/A\",Ref!$B$36,INDEX(Ranks!$1:$1048576,$A203,DG$1))","v":""},{"$f":"IF($A203=\"N/A\",Ref!$B$36,INDEX(Ranks!$1:$1048576,$A203,DH$1))","v":""},{"$f":"IF($A203=\"N/A\",Ref!$B$36,INDEX(Ranks!$1:$1048576,$A203,DI$1))","v":""},{"$f":"IF($A203=\"N/A\",Ref!$B$36,INDEX(Ranks!$1:$1048576,$A203,DJ$1))","v":""},{"$f":"IF($A203=\"N/A\",Ref!$B$36,INDEX(Ranks!$1:$1048576,$A203,DK$1))","v":""},{"$f":"IF($A203=\"N/A\",Ref!$B$36,INDEX(Ranks!$1:$1048576,$A203,DL$1))","v":""},{"$f":"IF($A203=\"N/A\",Ref!$B$36,INDEX(Ranks!$1:$1048576,$A203,DM$1))","v":""},{"$f":"IF($A203=\"N/A\",Ref!$B$36,INDEX(Ranks!$1:$1048576,$A203,DN$1))","v":""},{"$f":"IF($A203=\"N/A\",Ref!$B$36,INDEX(Ranks!$1:$1048576,$A203,DO$1))","v":""},{"$f":"IF($A203=\"N/A\",Ref!$B$36,INDEX(Ranks!$1:$1048576,$A203,DP$1))","v":""},{"$f":"IF($A203=\"N/A\",Ref!$B$36,INDEX(Ranks!$1:$1048576,$A203,DQ$1))","v":""},{"$f":"IF($A203=\"N/A\",Ref!$B$36,INDEX(Ranks!$1:$1048576,$A203,DR$1))","v":""},{"$f":"IF($A203=\"N/A\",Ref!$B$36,INDEX(Ranks!$1:$1048576,$A203,DS$1))","v":""},{"$f":"IF($A203=\"N/A\",Ref!$B$36,INDEX(Ranks!$1:$1048576,$A203,DT$1))","v":""},{"$f":"IF($A203=\"N/A\",Ref!$B$36,INDEX(Ranks!$1:$1048576,$A203,DU$1))","v":""},{"$f":"IF($A203=\"N/A\",Ref!$B$36,INDEX(Ranks!$1:$1048576,$A203,DV$1))","v":""},{"$f":"IF($A203=\"N/A\",Ref!$B$36,INDEX(Ranks!$1:$1048576,$A203,DW$1))","v":""},{"$f":"IF($A203=\"N/A\",Ref!$B$36,INDEX(Ranks!$1:$1048576,$A203,DX$1))","v":""},{"$f":"IF($A203=\"N/A\",Ref!$B$36,INDEX(Ranks!$1:$1048576,$A203,DY$1))","v":""},{"$f":"IF($A203=\"N/A\",Ref!$B$36,INDEX(Ranks!$1:$1048576,$A203,DZ$1))","v":""},{"$f":"IF($A203=\"N/A\",Ref!$B$36,INDEX(Ranks!$1:$1048576,$A203,EA$1))","v":""},{"$f":"IF($A203=\"N/A\",Ref!$B$36,INDEX(Ranks!$1:$1048576,$A203,EB$1))","v":""}]
[{"$f":"IFERROR(MATCH('Portfolio Page'!L204,Ranks!L:L,0),\"N/A\")","v":"N/A"},null,{"$f":"IF($A204=\"N/A\",\"\",INDEX(Ranks!$1:$1048576,$A204,C$1))","v":""},{"$f":"IF($A204=\"N/A\",Ref!$B$36,INDEX(Ranks!$1:$1048576,$A204,D$1))","v":""},{"$f":"IF($A204=\"N/A\",Ref!$B$36,INDEX(Ranks!$1:$1048576,$A204,E$1))","v":""},{"$f":"IF($A204=\"N/A\",\"\",INDEX(Ranks!$1:$1048576,$A204,F$1))","v":""},{"$f":"IF($A204=\"N/A\",\"\",INDEX(Ranks!$1:$1048576,$A204,G$1))","v":""},{"$f":"IF($A204=\"N/A\",\"\",INDEX(Ranks!$1:$1048576,$A204,H$1))","v":""},{"$f":"IF($A204=\"N/A\",\"\",INDEX(Ranks!$1:$1048576,$A204,I$1))","v":""},{"$f":"IF($A204=\"N/A\",\"\",INDEX(Ranks!$1:$1048576,$A204,J$1))","v":""},{"$f":"IF($A204=\"N/A\",\"\",INDEX(Ranks!$1:$1048576,$A204,K$1))","v":""},null,{"$f":"IF($A204=\"N/A\",Ref!$B$36,INDEX(Ranks!$1:$1048576,$A204,M$1))","v":""},{"$f":"IF($A204=\"N/A\",Ref!$B$36,INDEX(Ranks!$1:$1048576,$A204,N$1))","v":""},{"$f":"IF($A204=\"N/A\",Ref!$B$36,INDEX(Ranks!$1:$1048576,$A204,O$1))","v":""},{"$f":"IF($A204=\"N/A\",Ref!$B$36,INDEX(Ranks!$1:$1048576,$A204,P$1))","v":""},{"$f":"IF($A204=\"N/A\",Ref!$B$36,INDEX(Ranks!$1:$1048576,$A204,Q$1))","v":""},{"$f":"IF($A204=\"N/A\",Ref!$B$36,INDEX(Ranks!$1:$1048576,$A204,R$1))","v":""},{"$f":"IF($A204=\"N/A\",Ref!$B$36,INDEX(Ranks!$1:$1048576,$A204,S$1))","v":""},{"$f":"IF($A204=\"N/A\",Ref!$B$36,INDEX(Ranks!$1:$1048576,$A204,T$1))","v":""},{"$f":"IF($A204=\"N/A\",Ref!$B$36,INDEX(Ranks!$1:$1048576,$A204,U$1))","v":""},{"$f":"IF($A204=\"N/A\",Ref!$B$36,INDEX(Ranks!$1:$1048576,$A204,V$1))","v":""},{"$f":"IF($A204=\"N/A\",Ref!$B$36,INDEX(Ranks!$1:$1048576,$A204,W$1))","v":""},{"$f":"IF($A204=\"N/A\",Ref!$B$36,INDEX(Ranks!$1:$1048576,$A204,X$1))","v":""},{"$f":"IF($A204=\"N/A\",Ref!$B$36,INDEX(Ranks!$1:$1048576,$A204,Y$1))","v":""},{"$f":"IF($A204=\"N/A\",Ref!$B$36,INDEX(Ranks!$1:$1048576,$A204,Z$1))","v":""},{"$f":"IF($A204=\"N/A\",Ref!$B$36,INDEX(Ranks!$1:$1048576,$A204,AA$1))","v":""},{"$f":"IF($A204=\"N/A\",Ref!$B$36,INDEX(Ranks!$1:$1048576,$A204,AB$1))","v":""},{"$f":"IF($A204=\"N/A\",Ref!$B$36,INDEX(Ranks!$1:$1048576,$A204,AC$1))","v":""},{"$f":"IF($A204=\"N/A\",Ref!$B$36,INDEX(Ranks!$1:$1048576,$A204,AD$1))","v":""},{"$f":"IF($A204=\"N/A\",Ref!$B$36,INDEX(Ranks!$1:$1048576,$A204,AE$1))","v":""},{"$f":"IF($A204=\"N/A\",Ref!$B$36,INDEX(Ranks!$1:$1048576,$A204,AF$1))","v":""},{"$f":"IF($A204=\"N/A\",Ref!$B$36,INDEX(Ranks!$1:$1048576,$A204,AG$1))","v":""},{"$f":"IF($A204=\"N/A\",Ref!$B$36,INDEX(Ranks!$1:$1048576,$A204,AH$1))","v":""},{"$f":"IF($A204=\"N/A\",Ref!$B$36,INDEX(Ranks!$1:$1048576,$A204,AI$1))","v":""},{"$f":"IF($A204=\"N/A\",Ref!$B$36,INDEX(Ranks!$1:$1048576,$A204,AJ$1))","v":""},{"$f":"IF($A204=\"N/A\",Ref!$B$36,INDEX(Ranks!$1:$1048576,$A204,AK$1))","v":""},{"$f":"IF($A204=\"N/A\",Ref!$B$36,INDEX(Ranks!$1:$1048576,$A204,AL$1))","v":""},{"$f":"IF($A204=\"N/A\",Ref!$B$36,INDEX(Ranks!$1:$1048576,$A204,AM$1))","v":""},{"$f":"IF($A204=\"N/A\",Ref!$B$36,INDEX(Ranks!$1:$1048576,$A204,AN$1))","v":""},{"$f":"IF($A204=\"N/A\",Ref!$B$36,INDEX(Ranks!$1:$1048576,$A204,AO$1))","v":""},{"$f":"IF($A204=\"N/A\",Ref!$B$36,INDEX(Ranks!$1:$1048576,$A204,AP$1))","v":""},{"$f":"IF($A204=\"N/A\",Ref!$B$36,INDEX(Ranks!$1:$1048576,$A204,AQ$1))","v":""},{"$f":"IF($A204=\"N/A\",Ref!$B$36,INDEX(Ranks!$1:$1048576,$A204,AR$1))","v":""},{"$f":"IF($A204=\"N/A\",Ref!$B$36,INDEX(Ranks!$1:$1048576,$A204,AS$1))","v":""},{"$f":"IF($A204=\"N/A\",Ref!$B$36,INDEX(Ranks!$1:$1048576,$A204,AT$1))","v":""},{"$f":"IF($A204=\"N/A\",Ref!$B$36,INDEX(Ranks!$1:$1048576,$A204,AU$1))","v":""},{"$f":"IF($A204=\"N/A\",Ref!$B$36,INDEX(Ranks!$1:$1048576,$A204,AV$1))","v":""},{"$f":"IF($A204=\"N/A\",Ref!$B$36,INDEX(Ranks!$1:$1048576,$A204,AW$1))","v":""},{"$f":"IF($A204=\"N/A\",Ref!$B$36,INDEX(Ranks!$1:$1048576,$A204,AX$1))","v":""},{"$f":"IF($A204=\"N/A\",Ref!$B$36,INDEX(Ranks!$1:$1048576,$A204,AY$1))","v":""},{"$f":"IF($A204=\"N/A\",Ref!$B$36,INDEX(Ranks!$1:$1048576,$A204,AZ$1))","v":""},{"$f":"IF($A204=\"N/A\",Ref!$B$36,INDEX(Ranks!$1:$1048576,$A204,BA$1))","v":""},{"$f":"IF($A204=\"N/A\",Ref!$B$36,INDEX(Ranks!$1:$1048576,$A204,BB$1))","v":""},{"$f":"IF($A204=\"N/A\",Ref!$B$36,INDEX(Ranks!$1:$1048576,$A204,BC$1))","v":""},{"$f":"IF($A204=\"N/A\",Ref!$B$36,INDEX(Ranks!$1:$1048576,$A204,BD$1))","v":""},{"$f":"IF($A204=\"N/A\",Ref!$B$36,INDEX(Ranks!$1:$1048576,$A204,BE$1))","v":""},{"$f":"IF($A204=\"N/A\",Ref!$B$36,INDEX(Ranks!$1:$1048576,$A204,BF$1))","v":""},{"$f":"IF($A204=\"N/A\",Ref!$B$36,INDEX(Ranks!$1:$1048576,$A204,BG$1))","v":""},{"$f":"IF($A204=\"N/A\",Ref!$B$36,INDEX(Ranks!$1:$1048576,$A204,BH$1))","v":""},{"$f":"IF($A204=\"N/A\",Ref!$B$36,INDEX(Ranks!$1:$1048576,$A204,BI$1))","v":""},{"$f":"IF($A204=\"N/A\",Ref!$B$36,INDEX(Ranks!$1:$1048576,$A204,BJ$1))","v":""},{"$f":"IF($A204=\"N/A\",Ref!$B$36,INDEX(Ranks!$1:$1048576,$A204,BK$1))","v":""},{"$f":"IF($A204=\"N/A\",Ref!$B$36,INDEX(Ranks!$1:$1048576,$A204,BL$1))","v":""},{"$f":"IF($A204=\"N/A\",Ref!$B$36,INDEX(Ranks!$1:$1048576,$A204,BM$1))","v":""},{"$f":"IF($A204=\"N/A\",Ref!$B$36,INDEX(Ranks!$1:$1048576,$A204,BN$1))","v":""},{"$f":"IF($A204=\"N/A\",Ref!$B$36,INDEX(Ranks!$1:$1048576,$A204,BO$1))","v":""},{"$f":"IF($A204=\"N/A\",Ref!$B$36,INDEX(Ranks!$1:$1048576,$A204,BP$1))","v":""},{"$f":"IF($A204=\"N/A\",Ref!$B$36,INDEX(Ranks!$1:$1048576,$A204,BQ$1))","v":""},{"$f":"IF($A204=\"N/A\",Ref!$B$36,INDEX(Ranks!$1:$1048576,$A204,BR$1))","v":""},{"$f":"IF($A204=\"N/A\",Ref!$B$36,INDEX(Ranks!$1:$1048576,$A204,BS$1))","v":""},{"$f":"IF($A204=\"N/A\",Ref!$B$36,INDEX(Ranks!$1:$1048576,$A204,BT$1))","v":""},{"$f":"IF($A204=\"N/A\",Ref!$B$36,INDEX(Ranks!$1:$1048576,$A204,BU$1))","v":""},{"$f":"IF($A204=\"N/A\",Ref!$B$36,INDEX(Ranks!$1:$1048576,$A204,BV$1))","v":""},{"$f":"IF($A204=\"N/A\",Ref!$B$36,INDEX(Ranks!$1:$1048576,$A204,BW$1))","v":""},{"$f":"IF($A204=\"N/A\",Ref!$B$36,INDEX(Ranks!$1:$1048576,$A204,BX$1))","v":""},{"$f":"IF($A204=\"N/A\",Ref!$B$36,INDEX(Ranks!$1:$1048576,$A204,BY$1))","v":""},{"$f":"IF($A204=\"N/A\",Ref!$B$36,INDEX(Ranks!$1:$1048576,$A204,BZ$1))","v":""},{"$f":"IF($A204=\"N/A\",Ref!$B$36,INDEX(Ranks!$1:$1048576,$A204,CA$1))","v":""},{"$f":"IF($A204=\"N/A\",Ref!$B$36,INDEX(Ranks!$1:$1048576,$A204,CB$1))","v":""},{"$f":"IF($A204=\"N/A\",Ref!$B$36,INDEX(Ranks!$1:$1048576,$A204,CC$1))","v":""},{"$f":"IF($A204=\"N/A\",Ref!$B$36,INDEX(Ranks!$1:$1048576,$A204,CD$1))","v":""},{"$f":"IF($A204=\"N/A\",Ref!$B$36,INDEX(Ranks!$1:$1048576,$A204,CE$1))","v":""},{"$f":"IF($A204=\"N/A\",Ref!$B$36,INDEX(Ranks!$1:$1048576,$A204,CF$1))","v":""},{"$f":"IF($A204=\"N/A\",Ref!$B$36,INDEX(Ranks!$1:$1048576,$A204,CG$1))","v":""},{"$f":"IF($A204=\"N/A\",Ref!$B$36,INDEX(Ranks!$1:$1048576,$A204,CH$1))","v":""},{"$f":"IF($A204=\"N/A\",Ref!$B$36,INDEX(Ranks!$1:$1048576,$A204,CI$1))","v":""},{"$f":"IF($A204=\"N/A\",Ref!$B$36,INDEX(Ranks!$1:$1048576,$A204,CJ$1))","v":""},{"$f":"IF($A204=\"N/A\",Ref!$B$36,INDEX(Ranks!$1:$1048576,$A204,CK$1))","v":""},{"$f":"IF($A204=\"N/A\",Ref!$B$36,INDEX(Ranks!$1:$1048576,$A204,CL$1))","v":""},{"$f":"IF($A204=\"N/A\",Ref!$B$36,INDEX(Ranks!$1:$1048576,$A204,CM$1))","v":""},{"$f":"IF($A204=\"N/A\",Ref!$B$36,INDEX(Ranks!$1:$1048576,$A204,CN$1))","v":""},{"$f":"IF($A204=\"N/A\",Ref!$B$36,INDEX(Ranks!$1:$1048576,$A204,CO$1))","v":""},{"$f":"IF($A204=\"N/A\",Ref!$B$36,INDEX(Ranks!$1:$1048576,$A204,CP$1))","v":""},{"$f":"IF($A204=\"N/A\",Ref!$B$36,INDEX(Ranks!$1:$1048576,$A204,CQ$1))","v":""},{"$f":"IF($A204=\"N/A\",Ref!$B$36,INDEX(Ranks!$1:$1048576,$A204,CR$1))","v":""},{"$f":"IF($A204=\"N/A\",Ref!$B$36,INDEX(Ranks!$1:$1048576,$A204,CS$1))","v":""},{"$f":"IF($A204=\"N/A\",Ref!$B$36,INDEX(Ranks!$1:$1048576,$A204,CT$1))","v":""},{"$f":"IF($A204=\"N/A\",Ref!$B$36,INDEX(Ranks!$1:$1048576,$A204,CU$1))","v":""},{"$f":"IF($A204=\"N/A\",Ref!$B$36,INDEX(Ranks!$1:$1048576,$A204,CV$1))","v":""},{"$f":"IF($A204=\"N/A\",Ref!$B$36,INDEX(Ranks!$1:$1048576,$A204,CW$1))","v":""},{"$f":"IF($A204=\"N/A\",Ref!$B$36,INDEX(Ranks!$1:$1048576,$A204,CX$1))","v":""},{"$f":"IF($A204=\"N/A\",Ref!$B$36,INDEX(Ranks!$1:$1048576,$A204,CY$1))","v":""},{"$f":"IF($A204=\"N/A\",Ref!$B$36,INDEX(Ranks!$1:$1048576,$A204,CZ$1))","v":""},{"$f":"IF($A204=\"N/A\",Ref!$B$36,INDEX(Ranks!$1:$1048576,$A204,DA$1))","v":""},{"$f":"IF($A204=\"N/A\",Ref!$B$36,INDEX(Ranks!$1:$1048576,$A204,DB$1))","v":""},{"$f":"IF($A204=\"N/A\",Ref!$B$36,INDEX(Ranks!$1:$1048576,$A204,DC$1))","v":""},{"$f":"IF($A204=\"N/A\",Ref!$B$36,INDEX(Ranks!$1:$1048576,$A204,DD$1))","v":""},{"$f":"IF($A204=\"N/A\",Ref!$B$36,INDEX(Ranks!$1:$1048576,$A204,DE$1))","v":""},{"$f":"IF($A204=\"N/A\",Ref!$B$36,INDEX(Ranks!$1:$1048576,$A204,DF$1))","v":""},{"$f":"IF($A204=\"N/A\",Ref!$B$36,INDEX(Ranks!$1:$1048576,$A204,DG$1))","v":""},{"$f":"IF($A204=\"N/A\",Ref!$B$36,INDEX(Ranks!$1:$1048576,$A204,DH$1))","v":""},{"$f":"IF($A204=\"N/A\",Ref!$B$36,INDEX(Ranks!$1:$1048576,$A204,DI$1))","v":""},{"$f":"IF($A204=\"N/A\",Ref!$B$36,INDEX(Ranks!$1:$1048576,$A204,DJ$1))","v":""},{"$f":"IF($A204=\"N/A\",Ref!$B$36,INDEX(Ranks!$1:$1048576,$A204,DK$1))","v":""},{"$f":"IF($A204=\"N/A\",Ref!$B$36,INDEX(Ranks!$1:$1048576,$A204,DL$1))","v":""},{"$f":"IF($A204=\"N/A\",Ref!$B$36,INDEX(Ranks!$1:$1048576,$A204,DM$1))","v":""},{"$f":"IF($A204=\"N/A\",Ref!$B$36,INDEX(Ranks!$1:$1048576,$A204,DN$1))","v":""},{"$f":"IF($A204=\"N/A\",Ref!$B$36,INDEX(Ranks!$1:$1048576,$A204,DO$1))","v":""},{"$f":"IF($A204=\"N/A\",Ref!$B$36,INDEX(Ranks!$1:$1048576,$A204,DP$1))","v":""},{"$f":"IF($A204=\"N/A\",Ref!$B$36,INDEX(Ranks!$1:$1048576,$A204,DQ$1))","v":""},{"$f":"IF($A204=\"N/A\",Ref!$B$36,INDEX(Ranks!$1:$1048576,$A204,DR$1))","v":""},{"$f":"IF($A204=\"N/A\",Ref!$B$36,INDEX(Ranks!$1:$1048576,$A204,DS$1))","v":""},{"$f":"IF($A204=\"N/A\",Ref!$B$36,INDEX(Ranks!$1:$1048576,$A204,DT$1))","v":""},{"$f":"IF($A204=\"N/A\",Ref!$B$36,INDEX(Ranks!$1:$1048576,$A204,DU$1))","v":""},{"$f":"IF($A204=\"N/A\",Ref!$B$36,INDEX(Ranks!$1:$1048576,$A204,DV$1))","v":""},{"$f":"IF($A204=\"N/A\",Ref!$B$36,INDEX(Ranks!$1:$1048576,$A204,DW$1))","v":""},{"$f":"IF($A204=\"N/A\",Ref!$B$36,INDEX(Ranks!$1:$1048576,$A204,DX$1))","v":""},{"$f":"IF($A204=\"N/A\",Ref!$B$36,INDEX(Ranks!$1:$1048576,$A204,DY$1))","v":""},{"$f":"IF($A204=\"N/A\",Ref!$B$36,INDEX(Ranks!$1:$1048576,$A204,DZ$1))","v":""},{"$f":"IF($A204=\"N/A\",Ref!$B$36,INDEX(Ranks!$1:$1048576,$A204,EA$1))","v":""},{"$f":"IF($A204=\"N/A\",Ref!$B$36,INDEX(Ranks!$1:$1048576,$A204,EB$1))","v":""}]
[{"$f":"IFERROR(MATCH('Portfolio Page'!L205,Ranks!L:L,0),\"N/A\")","v":"N/A"},null,{"$f":"IF($A205=\"N/A\",\"\",INDEX(Ranks!$1:$1048576,$A205,C$1))","v":""},{"$f":"IF($A205=\"N/A\",Ref!$B$36,INDEX(Ranks!$1:$1048576,$A205,D$1))","v":""},{"$f":"IF($A205=\"N/A\",Ref!$B$36,INDEX(Ranks!$1:$1048576,$A205,E$1))","v":""},{"$f":"IF($A205=\"N/A\",\"\",INDEX(Ranks!$1:$1048576,$A205,F$1))","v":""},{"$f":"IF($A205=\"N/A\",\"\",INDEX(Ranks!$1:$1048576,$A205,G$1))","v":""},{"$f":"IF($A205=\"N/A\",\"\",INDEX(Ranks!$1:$1048576,$A205,H$1))","v":""},{"$f":"IF($A205=\"N/A\",\"\",INDEX(Ranks!$1:$1048576,$A205,I$1))","v":""},{"$f":"IF($A205=\"N/A\",\"\",INDEX(Ranks!$1:$1048576,$A205,J$1))","v":""},{"$f":"IF($A205=\"N/A\",\"\",INDEX(Ranks!$1:$1048576,$A205,K$1))","v":""},null,{"$f":"IF($A205=\"N/A\",Ref!$B$36,INDEX(Ranks!$1:$1048576,$A205,M$1))","v":""},{"$f":"IF($A205=\"N/A\",Ref!$B$36,INDEX(Ranks!$1:$1048576,$A205,N$1))","v":""},{"$f":"IF($A205=\"N/A\",Ref!$B$36,INDEX(Ranks!$1:$1048576,$A205,O$1))","v":""},{"$f":"IF($A205=\"N/A\",Ref!$B$36,INDEX(Ranks!$1:$1048576,$A205,P$1))","v":""},{"$f":"IF($A205=\"N/A\",Ref!$B$36,INDEX(Ranks!$1:$1048576,$A205,Q$1))","v":""},{"$f":"IF($A205=\"N/A\",Ref!$B$36,INDEX(Ranks!$1:$1048576,$A205,R$1))","v":""},{"$f":"IF($A205=\"N/A\",Ref!$B$36,INDEX(Ranks!$1:$1048576,$A205,S$1))","v":""},{"$f":"IF($A205=\"N/A\",Ref!$B$36,INDEX(Ranks!$1:$1048576,$A205,T$1))","v":""},{"$f":"IF($A205=\"N/A\",Ref!$B$36,INDEX(Ranks!$1:$1048576,$A205,U$1))","v":""},{"$f":"IF($A205=\"N/A\",Ref!$B$36,INDEX(Ranks!$1:$1048576,$A205,V$1))","v":""},{"$f":"IF($A205=\"N/A\",Ref!$B$36,INDEX(Ranks!$1:$1048576,$A205,W$1))","v":""},{"$f":"IF($A205=\"N/A\",Ref!$B$36,INDEX(Ranks!$1:$1048576,$A205,X$1))","v":""},{"$f":"IF($A205=\"N/A\",Ref!$B$36,INDEX(Ranks!$1:$1048576,$A205,Y$1))","v":""},{"$f":"IF($A205=\"N/A\",Ref!$B$36,INDEX(Ranks!$1:$1048576,$A205,Z$1))","v":""},{"$f":"IF($A205=\"N/A\",Ref!$B$36,INDEX(Ranks!$1:$1048576,$A205,AA$1))","v":""},{"$f":"IF($A205=\"N/A\",Ref!$B$36,INDEX(Ranks!$1:$1048576,$A205,AB$1))","v":""},{"$f":"IF($A205=\"N/A\",Ref!$B$36,INDEX(Ranks!$1:$1048576,$A205,AC$1))","v":""},{"$f":"IF($A205=\"N/A\",Ref!$B$36,INDEX(Ranks!$1:$1048576,$A205,AD$1))","v":""},{"$f":"IF($A205=\"N/A\",Ref!$B$36,INDEX(Ranks!$1:$1048576,$A205,AE$1))","v":""},{"$f":"IF($A205=\"N/A\",Ref!$B$36,INDEX(Ranks!$1:$1048576,$A205,AF$1))","v":""},{"$f":"IF($A205=\"N/A\",Ref!$B$36,INDEX(Ranks!$1:$1048576,$A205,AG$1))","v":""},{"$f":"IF($A205=\"N/A\",Ref!$B$36,INDEX(Ranks!$1:$1048576,$A205,AH$1))","v":""},{"$f":"IF($A205=\"N/A\",Ref!$B$36,INDEX(Ranks!$1:$1048576,$A205,AI$1))","v":""},{"$f":"IF($A205=\"N/A\",Ref!$B$36,INDEX(Ranks!$1:$1048576,$A205,AJ$1))","v":""},{"$f":"IF($A205=\"N/A\",Ref!$B$36,INDEX(Ranks!$1:$1048576,$A205,AK$1))","v":""},{"$f":"IF($A205=\"N/A\",Ref!$B$36,INDEX(Ranks!$1:$1048576,$A205,AL$1))","v":""},{"$f":"IF($A205=\"N/A\",Ref!$B$36,INDEX(Ranks!$1:$1048576,$A205,AM$1))","v":""},{"$f":"IF($A205=\"N/A\",Ref!$B$36,INDEX(Ranks!$1:$1048576,$A205,AN$1))","v":""},{"$f":"IF($A205=\"N/A\",Ref!$B$36,INDEX(Ranks!$1:$1048576,$A205,AO$1))","v":""},{"$f":"IF($A205=\"N/A\",Ref!$B$36,INDEX(Ranks!$1:$1048576,$A205,AP$1))","v":""},{"$f":"IF($A205=\"N/A\",Ref!$B$36,INDEX(Ranks!$1:$1048576,$A205,AQ$1))","v":""},{"$f":"IF($A205=\"N/A\",Ref!$B$36,INDEX(Ranks!$1:$1048576,$A205,AR$1))","v":""},{"$f":"IF($A205=\"N/A\",Ref!$B$36,INDEX(Ranks!$1:$1048576,$A205,AS$1))","v":""},{"$f":"IF($A205=\"N/A\",Ref!$B$36,INDEX(Ranks!$1:$1048576,$A205,AT$1))","v":""},{"$f":"IF($A205=\"N/A\",Ref!$B$36,INDEX(Ranks!$1:$1048576,$A205,AU$1))","v":""},{"$f":"IF($A205=\"N/A\",Ref!$B$36,INDEX(Ranks!$1:$1048576,$A205,AV$1))","v":""},{"$f":"IF($A205=\"N/A\",Ref!$B$36,INDEX(Ranks!$1:$1048576,$A205,AW$1))","v":""},{"$f":"IF($A205=\"N/A\",Ref!$B$36,INDEX(Ranks!$1:$1048576,$A205,AX$1))","v":""},{"$f":"IF($A205=\"N/A\",Ref!$B$36,INDEX(Ranks!$1:$1048576,$A205,AY$1))","v":""},{"$f":"IF($A205=\"N/A\",Ref!$B$36,INDEX(Ranks!$1:$1048576,$A205,AZ$1))","v":""},{"$f":"IF($A205=\"N/A\",Ref!$B$36,INDEX(Ranks!$1:$1048576,$A205,BA$1))","v":""},{"$f":"IF($A205=\"N/A\",Ref!$B$36,INDEX(Ranks!$1:$1048576,$A205,BB$1))","v":""},{"$f":"IF($A205=\"N/A\",Ref!$B$36,INDEX(Ranks!$1:$1048576,$A205,BC$1))","v":""},{"$f":"IF($A205=\"N/A\",Ref!$B$36,INDEX(Ranks!$1:$1048576,$A205,BD$1))","v":""},{"$f":"IF($A205=\"N/A\",Ref!$B$36,INDEX(Ranks!$1:$1048576,$A205,BE$1))","v":""},{"$f":"IF($A205=\"N/A\",Ref!$B$36,INDEX(Ranks!$1:$1048576,$A205,BF$1))","v":""},{"$f":"IF($A205=\"N/A\",Ref!$B$36,INDEX(Ranks!$1:$1048576,$A205,BG$1))","v":""},{"$f":"IF($A205=\"N/A\",Ref!$B$36,INDEX(Ranks!$1:$1048576,$A205,BH$1))","v":""},{"$f":"IF($A205=\"N/A\",Ref!$B$36,INDEX(Ranks!$1:$1048576,$A205,BI$1))","v":""},{"$f":"IF($A205=\"N/A\",Ref!$B$36,INDEX(Ranks!$1:$1048576,$A205,BJ$1))","v":""},{"$f":"IF($A205=\"N/A\",Ref!$B$36,INDEX(Ranks!$1:$1048576,$A205,BK$1))","v":""},{"$f":"IF($A205=\"N/A\",Ref!$B$36,INDEX(Ranks!$1:$1048576,$A205,BL$1))","v":""},{"$f":"IF($A205=\"N/A\",Ref!$B$36,INDEX(Ranks!$1:$1048576,$A205,BM$1))","v":""},{"$f":"IF($A205=\"N/A\",Ref!$B$36,INDEX(Ranks!$1:$1048576,$A205,BN$1))","v":""},{"$f":"IF($A205=\"N/A\",Ref!$B$36,INDEX(Ranks!$1:$1048576,$A205,BO$1))","v":""},{"$f":"IF($A205=\"N/A\",Ref!$B$36,INDEX(Ranks!$1:$1048576,$A205,BP$1))","v":""},{"$f":"IF($A205=\"N/A\",Ref!$B$36,INDEX(Ranks!$1:$1048576,$A205,BQ$1))","v":""},{"$f":"IF($A205=\"N/A\",Ref!$B$36,INDEX(Ranks!$1:$1048576,$A205,BR$1))","v":""},{"$f":"IF($A205=\"N/A\",Ref!$B$36,INDEX(Ranks!$1:$1048576,$A205,BS$1))","v":""},{"$f":"IF($A205=\"N/A\",Ref!$B$36,INDEX(Ranks!$1:$1048576,$A205,BT$1))","v":""},{"$f":"IF($A205=\"N/A\",Ref!$B$36,INDEX(Ranks!$1:$1048576,$A205,BU$1))","v":""},{"$f":"IF($A205=\"N/A\",Ref!$B$36,INDEX(Ranks!$1:$1048576,$A205,BV$1))","v":""},{"$f":"IF($A205=\"N/A\",Ref!$B$36,INDEX(Ranks!$1:$1048576,$A205,BW$1))","v":""},{"$f":"IF($A205=\"N/A\",Ref!$B$36,INDEX(Ranks!$1:$1048576,$A205,BX$1))","v":""},{"$f":"IF($A205=\"N/A\",Ref!$B$36,INDEX(Ranks!$1:$1048576,$A205,BY$1))","v":""},{"$f":"IF($A205=\"N/A\",Ref!$B$36,INDEX(Ranks!$1:$1048576,$A205,BZ$1))","v":""},{"$f":"IF($A205=\"N/A\",Ref!$B$36,INDEX(Ranks!$1:$1048576,$A205,CA$1))","v":""},{"$f":"IF($A205=\"N/A\",Ref!$B$36,INDEX(Ranks!$1:$1048576,$A205,CB$1))","v":""},{"$f":"IF($A205=\"N/A\",Ref!$B$36,INDEX(Ranks!$1:$1048576,$A205,CC$1))","v":""},{"$f":"IF($A205=\"N/A\",Ref!$B$36,INDEX(Ranks!$1:$1048576,$A205,CD$1))","v":""},{"$f":"IF($A205=\"N/A\",Ref!$B$36,INDEX(Ranks!$1:$1048576,$A205,CE$1))","v":""},{"$f":"IF($A205=\"N/A\",Ref!$B$36,INDEX(Ranks!$1:$1048576,$A205,CF$1))","v":""},{"$f":"IF($A205=\"N/A\",Ref!$B$36,INDEX(Ranks!$1:$1048576,$A205,CG$1))","v":""},{"$f":"IF($A205=\"N/A\",Ref!$B$36,INDEX(Ranks!$1:$1048576,$A205,CH$1))","v":""},{"$f":"IF($A205=\"N/A\",Ref!$B$36,INDEX(Ranks!$1:$1048576,$A205,CI$1))","v":""},{"$f":"IF($A205=\"N/A\",Ref!$B$36,INDEX(Ranks!$1:$1048576,$A205,CJ$1))","v":""},{"$f":"IF($A205=\"N/A\",Ref!$B$36,INDEX(Ranks!$1:$1048576,$A205,CK$1))","v":""},{"$f":"IF($A205=\"N/A\",Ref!$B$36,INDEX(Ranks!$1:$1048576,$A205,CL$1))","v":""},{"$f":"IF($A205=\"N/A\",Ref!$B$36,INDEX(Ranks!$1:$1048576,$A205,CM$1))","v":""},{"$f":"IF($A205=\"N/A\",Ref!$B$36,INDEX(Ranks!$1:$1048576,$A205,CN$1))","v":""},{"$f":"IF($A205=\"N/A\",Ref!$B$36,INDEX(Ranks!$1:$1048576,$A205,CO$1))","v":""},{"$f":"IF($A205=\"N/A\",Ref!$B$36,INDEX(Ranks!$1:$1048576,$A205,CP$1))","v":""},{"$f":"IF($A205=\"N/A\",Ref!$B$36,INDEX(Ranks!$1:$1048576,$A205,CQ$1))","v":""},{"$f":"IF($A205=\"N/A\",Ref!$B$36,INDEX(Ranks!$1:$1048576,$A205,CR$1))","v":""},{"$f":"IF($A205=\"N/A\",Ref!$B$36,INDEX(Ranks!$1:$1048576,$A205,CS$1))","v":""},{"$f":"IF($A205=\"N/A\",Ref!$B$36,INDEX(Ranks!$1:$1048576,$A205,CT$1))","v":""},{"$f":"IF($A205=\"N/A\",Ref!$B$36,INDEX(Ranks!$1:$1048576,$A205,CU$1))","v":""},{"$f":"IF($A205=\"N/A\",Ref!$B$36,INDEX(Ranks!$1:$1048576,$A205,CV$1))","v":""},{"$f":"IF($A205=\"N/A\",Ref!$B$36,INDEX(Ranks!$1:$1048576,$A205,CW$1))","v":""},{"$f":"IF($A205=\"N/A\",Ref!$B$36,INDEX(Ranks!$1:$1048576,$A205,CX$1))","v":""},{"$f":"IF($A205=\"N/A\",Ref!$B$36,INDEX(Ranks!$1:$1048576,$A205,CY$1))","v":""},{"$f":"IF($A205=\"N/A\",Ref!$B$36,INDEX(Ranks!$1:$1048576,$A205,CZ$1))","v":""},{"$f":"IF($A205=\"N/A\",Ref!$B$36,INDEX(Ranks!$1:$1048576,$A205,DA$1))","v":""},{"$f":"IF($A205=\"N/A\",Ref!$B$36,INDEX(Ranks!$1:$1048576,$A205,DB$1))","v":""},{"$f":"IF($A205=\"N/A\",Ref!$B$36,INDEX(Ranks!$1:$1048576,$A205,DC$1))","v":""},{"$f":"IF($A205=\"N/A\",Ref!$B$36,INDEX(Ranks!$1:$1048576,$A205,DD$1))","v":""},{"$f":"IF($A205=\"N/A\",Ref!$B$36,INDEX(Ranks!$1:$1048576,$A205,DE$1))","v":""},{"$f":"IF($A205=\"N/A\",Ref!$B$36,INDEX(Ranks!$1:$1048576,$A205,DF$1))","v":""},{"$f":"IF($A205=\"N/A\",Ref!$B$36,INDEX(Ranks!$1:$1048576,$A205,DG$1))","v":""},{"$f":"IF($A205=\"N/A\",Ref!$B$36,INDEX(Ranks!$1:$1048576,$A205,DH$1))","v":""},{"$f":"IF($A205=\"N/A\",Ref!$B$36,INDEX(Ranks!$1:$1048576,$A205,DI$1))","v":""},{"$f":"IF($A205=\"N/A\",Ref!$B$36,INDEX(Ranks!$1:$1048576,$A205,DJ$1))","v":""},{"$f":"IF($A205=\"N/A\",Ref!$B$36,INDEX(Ranks!$1:$1048576,$A205,DK$1))","v":""},{"$f":"IF($A205=\"N/A\",Ref!$B$36,INDEX(Ranks!$1:$1048576,$A205,DL$1))","v":""},{"$f":"IF($A205=\"N/A\",Ref!$B$36,INDEX(Ranks!$1:$1048576,$A205,DM$1))","v":""},{"$f":"IF($A205=\"N/A\",Ref!$B$36,INDEX(Ranks!$1:$1048576,$A205,DN$1))","v":""},{"$f":"IF($A205=\"N/A\",Ref!$B$36,INDEX(Ranks!$1:$1048576,$A205,DO$1))","v":""},{"$f":"IF($A205=\"N/A\",Ref!$B$36,INDEX(Ranks!$1:$1048576,$A205,DP$1))","v":""},{"$f":"IF($A205=\"N/A\",Ref!$B$36,INDEX(Ranks!$1:$1048576,$A205,DQ$1))","v":""},{"$f":"IF($A205=\"N/A\",Ref!$B$36,INDEX(Ranks!$1:$1048576,$A205,DR$1))","v":""},{"$f":"IF($A205=\"N/A\",Ref!$B$36,INDEX(Ranks!$1:$1048576,$A205,DS$1))","v":""},{"$f":"IF($A205=\"N/A\",Ref!$B$36,INDEX(Ranks!$1:$1048576,$A205,DT$1))","v":""},{"$f":"IF($A205=\"N/A\",Ref!$B$36,INDEX(Ranks!$1:$1048576,$A205,DU$1))","v":""},{"$f":"IF($A205=\"N/A\",Ref!$B$36,INDEX(Ranks!$1:$1048576,$A205,DV$1))","v":""},{"$f":"IF($A205=\"N/A\",Ref!$B$36,INDEX(Ranks!$1:$1048576,$A205,DW$1))","v":""},{"$f":"IF($A205=\"N/A\",Ref!$B$36,INDEX(Ranks!$1:$1048576,$A205,DX$1))","v":""},{"$f":"IF($A205=\"N/A\",Ref!$B$36,INDEX(Ranks!$1:$1048576,$A205,DY$1))","v":""},{"$f":"IF($A205=\"N/A\",Ref!$B$36,INDEX(Ranks!$1:$1048576,$A205,DZ$1))","v":""},{"$f":"IF($A205=\"N/A\",Ref!$B$36,INDEX(Ranks!$1:$1048576,$A205,EA$1))","v":""},{"$f":"IF($A205=\"N/A\",Ref!$B$36,INDEX(Ranks!$1:$1048576,$A205,EB$1))","v":""}]
[{"$f":"IFERROR(MATCH('Portfolio Page'!L206,Ranks!L:L,0),\"N/A\")","v":"N/A"},null,{"$f":"IF($A206=\"N/A\",\"\",INDEX(Ranks!$1:$1048576,$A206,C$1))","v":""},{"$f":"IF($A206=\"N/A\",Ref!$B$36,INDEX(Ranks!$1:$1048576,$A206,D$1))","v":""},{"$f":"IF($A206=\"N/A\",Ref!$B$36,INDEX(Ranks!$1:$1048576,$A206,E$1))","v":""},{"$f":"IF($A206=\"N/A\",\"\",INDEX(Ranks!$1:$1048576,$A206,F$1))","v":""},{"$f":"IF($A206=\"N/A\",\"\",INDEX(Ranks!$1:$1048576,$A206,G$1))","v":""},{"$f":"IF($A206=\"N/A\",\"\",INDEX(Ranks!$1:$1048576,$A206,H$1))","v":""},{"$f":"IF($A206=\"N/A\",\"\",INDEX(Ranks!$1:$1048576,$A206,I$1))","v":""},{"$f":"IF($A206=\"N/A\",\"\",INDEX(Ranks!$1:$1048576,$A206,J$1))","v":""},{"$f":"IF($A206=\"N/A\",\"\",INDEX(Ranks!$1:$1048576,$A206,K$1))","v":""},null,{"$f":"IF($A206=\"N/A\",Ref!$B$36,INDEX(Ranks!$1:$1048576,$A206,M$1))","v":""},{"$f":"IF($A206=\"N/A\",Ref!$B$36,INDEX(Ranks!$1:$1048576,$A206,N$1))","v":""},{"$f":"IF($A206=\"N/A\",Ref!$B$36,INDEX(Ranks!$1:$1048576,$A206,O$1))","v":""},{"$f":"IF($A206=\"N/A\",Ref!$B$36,INDEX(Ranks!$1:$1048576,$A206,P$1))","v":""},{"$f":"IF($A206=\"N/A\",Ref!$B$36,INDEX(Ranks!$1:$1048576,$A206,Q$1))","v":""},{"$f":"IF($A206=\"N/A\",Ref!$B$36,INDEX(Ranks!$1:$1048576,$A206,R$1))","v":""},{"$f":"IF($A206=\"N/A\",Ref!$B$36,INDEX(Ranks!$1:$1048576,$A206,S$1))","v":""},{"$f":"IF($A206=\"N/A\",Ref!$B$36,INDEX(Ranks!$1:$1048576,$A206,T$1))","v":""},{"$f":"IF($A206=\"N/A\",Ref!$B$36,INDEX(Ranks!$1:$1048576,$A206,U$1))","v":""},{"$f":"IF($A206=\"N/A\",Ref!$B$36,INDEX(Ranks!$1:$1048576,$A206,V$1))","v":""},{"$f":"IF($A206=\"N/A\",Ref!$B$36,INDEX(Ranks!$1:$1048576,$A206,W$1))","v":""},{"$f":"IF($A206=\"N/A\",Ref!$B$36,INDEX(Ranks!$1:$1048576,$A206,X$1))","v":""},{"$f":"IF($A206=\"N/A\",Ref!$B$36,INDEX(Ranks!$1:$1048576,$A206,Y$1))","v":""},{"$f":"IF($A206=\"N/A\",Ref!$B$36,INDEX(Ranks!$1:$1048576,$A206,Z$1))","v":""},{"$f":"IF($A206=\"N/A\",Ref!$B$36,INDEX(Ranks!$1:$1048576,$A206,AA$1))","v":""},{"$f":"IF($A206=\"N/A\",Ref!$B$36,INDEX(Ranks!$1:$1048576,$A206,AB$1))","v":""},{"$f":"IF($A206=\"N/A\",Ref!$B$36,INDEX(Ranks!$1:$1048576,$A206,AC$1))","v":""},{"$f":"IF($A206=\"N/A\",Ref!$B$36,INDEX(Ranks!$1:$1048576,$A206,AD$1))","v":""},{"$f":"IF($A206=\"N/A\",Ref!$B$36,INDEX(Ranks!$1:$1048576,$A206,AE$1))","v":""},{"$f":"IF($A206=\"N/A\",Ref!$B$36,INDEX(Ranks!$1:$1048576,$A206,AF$1))","v":""},{"$f":"IF($A206=\"N/A\",Ref!$B$36,INDEX(Ranks!$1:$1048576,$A206,AG$1))","v":""},{"$f":"IF($A206=\"N/A\",Ref!$B$36,INDEX(Ranks!$1:$1048576,$A206,AH$1))","v":""},{"$f":"IF($A206=\"N/A\",Ref!$B$36,INDEX(Ranks!$1:$1048576,$A206,AI$1))","v":""},{"$f":"IF($A206=\"N/A\",Ref!$B$36,INDEX(Ranks!$1:$1048576,$A206,AJ$1))","v":""},{"$f":"IF($A206=\"N/A\",Ref!$B$36,INDEX(Ranks!$1:$1048576,$A206,AK$1))","v":""},{"$f":"IF($A206=\"N/A\",Ref!$B$36,INDEX(Ranks!$1:$1048576,$A206,AL$1))","v":""},{"$f":"IF($A206=\"N/A\",Ref!$B$36,INDEX(Ranks!$1:$1048576,$A206,AM$1))","v":""},{"$f":"IF($A206=\"N/A\",Ref!$B$36,INDEX(Ranks!$1:$1048576,$A206,AN$1))","v":""},{"$f":"IF($A206=\"N/A\",Ref!$B$36,INDEX(Ranks!$1:$1048576,$A206,AO$1))","v":""},{"$f":"IF($A206=\"N/A\",Ref!$B$36,INDEX(Ranks!$1:$1048576,$A206,AP$1))","v":""},{"$f":"IF($A206=\"N/A\",Ref!$B$36,INDEX(Ranks!$1:$1048576,$A206,AQ$1))","v":""},{"$f":"IF($A206=\"N/A\",Ref!$B$36,INDEX(Ranks!$1:$1048576,$A206,AR$1))","v":""},{"$f":"IF($A206=\"N/A\",Ref!$B$36,INDEX(Ranks!$1:$1048576,$A206,AS$1))","v":""},{"$f":"IF($A206=\"N/A\",Ref!$B$36,INDEX(Ranks!$1:$1048576,$A206,AT$1))","v":""},{"$f":"IF($A206=\"N/A\",Ref!$B$36,INDEX(Ranks!$1:$1048576,$A206,AU$1))","v":""},{"$f":"IF($A206=\"N/A\",Ref!$B$36,INDEX(Ranks!$1:$1048576,$A206,AV$1))","v":""},{"$f":"IF($A206=\"N/A\",Ref!$B$36,INDEX(Ranks!$1:$1048576,$A206,AW$1))","v":""},{"$f":"IF($A206=\"N/A\",Ref!$B$36,INDEX(Ranks!$1:$1048576,$A206,AX$1))","v":""},{"$f":"IF($A206=\"N/A\",Ref!$B$36,INDEX(Ranks!$1:$1048576,$A206,AY$1))","v":""},{"$f":"IF($A206=\"N/A\",Ref!$B$36,INDEX(Ranks!$1:$1048576,$A206,AZ$1))","v":""},{"$f":"IF($A206=\"N/A\",Ref!$B$36,INDEX(Ranks!$1:$1048576,$A206,BA$1))","v":""},{"$f":"IF($A206=\"N/A\",Ref!$B$36,INDEX(Ranks!$1:$1048576,$A206,BB$1))","v":""},{"$f":"IF($A206=\"N/A\",Ref!$B$36,INDEX(Ranks!$1:$1048576,$A206,BC$1))","v":""},{"$f":"IF($A206=\"N/A\",Ref!$B$36,INDEX(Ranks!$1:$1048576,$A206,BD$1))","v":""},{"$f":"IF($A206=\"N/A\",Ref!$B$36,INDEX(Ranks!$1:$1048576,$A206,BE$1))","v":""},{"$f":"IF($A206=\"N/A\",Ref!$B$36,INDEX(Ranks!$1:$1048576,$A206,BF$1))","v":""},{"$f":"IF($A206=\"N/A\",Ref!$B$36,INDEX(Ranks!$1:$1048576,$A206,BG$1))","v":""},{"$f":"IF($A206=\"N/A\",Ref!$B$36,INDEX(Ranks!$1:$1048576,$A206,BH$1))","v":""},{"$f":"IF($A206=\"N/A\",Ref!$B$36,INDEX(Ranks!$1:$1048576,$A206,BI$1))","v":""},{"$f":"IF($A206=\"N/A\",Ref!$B$36,INDEX(Ranks!$1:$1048576,$A206,BJ$1))","v":""},{"$f":"IF($A206=\"N/A\",Ref!$B$36,INDEX(Ranks!$1:$1048576,$A206,BK$1))","v":""},{"$f":"IF($A206=\"N/A\",Ref!$B$36,INDEX(Ranks!$1:$1048576,$A206,BL$1))","v":""},{"$f":"IF($A206=\"N/A\",Ref!$B$36,INDEX(Ranks!$1:$1048576,$A206,BM$1))","v":""},{"$f":"IF($A206=\"N/A\",Ref!$B$36,INDEX(Ranks!$1:$1048576,$A206,BN$1))","v":""},{"$f":"IF($A206=\"N/A\",Ref!$B$36,INDEX(Ranks!$1:$1048576,$A206,BO$1))","v":""},{"$f":"IF($A206=\"N/A\",Ref!$B$36,INDEX(Ranks!$1:$1048576,$A206,BP$1))","v":""},{"$f":"IF($A206=\"N/A\",Ref!$B$36,INDEX(Ranks!$1:$1048576,$A206,BQ$1))","v":""},{"$f":"IF($A206=\"N/A\",Ref!$B$36,INDEX(Ranks!$1:$1048576,$A206,BR$1))","v":""},{"$f":"IF($A206=\"N/A\",Ref!$B$36,INDEX(Ranks!$1:$1048576,$A206,BS$1))","v":""},{"$f":"IF($A206=\"N/A\",Ref!$B$36,INDEX(Ranks!$1:$1048576,$A206,BT$1))","v":""},{"$f":"IF($A206=\"N/A\",Ref!$B$36,INDEX(Ranks!$1:$1048576,$A206,BU$1))","v":""},{"$f":"IF($A206=\"N/A\",Ref!$B$36,INDEX(Ranks!$1:$1048576,$A206,BV$1))","v":""},{"$f":"IF($A206=\"N/A\",Ref!$B$36,INDEX(Ranks!$1:$1048576,$A206,BW$1))","v":""},{"$f":"IF($A206=\"N/A\",Ref!$B$36,INDEX(Ranks!$1:$1048576,$A206,BX$1))","v":""},{"$f":"IF($A206=\"N/A\",Ref!$B$36,INDEX(Ranks!$1:$1048576,$A206,BY$1))","v":""},{"$f":"IF($A206=\"N/A\",Ref!$B$36,INDEX(Ranks!$1:$1048576,$A206,BZ$1))","v":""},{"$f":"IF($A206=\"N/A\",Ref!$B$36,INDEX(Ranks!$1:$1048576,$A206,CA$1))","v":""},{"$f":"IF($A206=\"N/A\",Ref!$B$36,INDEX(Ranks!$1:$1048576,$A206,CB$1))","v":""},{"$f":"IF($A206=\"N/A\",Ref!$B$36,INDEX(Ranks!$1:$1048576,$A206,CC$1))","v":""},{"$f":"IF($A206=\"N/A\",Ref!$B$36,INDEX(Ranks!$1:$1048576,$A206,CD$1))","v":""},{"$f":"IF($A206=\"N/A\",Ref!$B$36,INDEX(Ranks!$1:$1048576,$A206,CE$1))","v":""},{"$f":"IF($A206=\"N/A\",Ref!$B$36,INDEX(Ranks!$1:$1048576,$A206,CF$1))","v":""},{"$f":"IF($A206=\"N/A\",Ref!$B$36,INDEX(Ranks!$1:$1048576,$A206,CG$1))","v":""},{"$f":"IF($A206=\"N/A\",Ref!$B$36,INDEX(Ranks!$1:$1048576,$A206,CH$1))","v":""},{"$f":"IF($A206=\"N/A\",Ref!$B$36,INDEX(Ranks!$1:$1048576,$A206,CI$1))","v":""},{"$f":"IF($A206=\"N/A\",Ref!$B$36,INDEX(Ranks!$1:$1048576,$A206,CJ$1))","v":""},{"$f":"IF($A206=\"N/A\",Ref!$B$36,INDEX(Ranks!$1:$1048576,$A206,CK$1))","v":""},{"$f":"IF($A206=\"N/A\",Ref!$B$36,INDEX(Ranks!$1:$1048576,$A206,CL$1))","v":""},{"$f":"IF($A206=\"N/A\",Ref!$B$36,INDEX(Ranks!$1:$1048576,$A206,CM$1))","v":""},{"$f":"IF($A206=\"N/A\",Ref!$B$36,INDEX(Ranks!$1:$1048576,$A206,CN$1))","v":""},{"$f":"IF($A206=\"N/A\",Ref!$B$36,INDEX(Ranks!$1:$1048576,$A206,CO$1))","v":""},{"$f":"IF($A206=\"N/A\",Ref!$B$36,INDEX(Ranks!$1:$1048576,$A206,CP$1))","v":""},{"$f":"IF($A206=\"N/A\",Ref!$B$36,INDEX(Ranks!$1:$1048576,$A206,CQ$1))","v":""},{"$f":"IF($A206=\"N/A\",Ref!$B$36,INDEX(Ranks!$1:$1048576,$A206,CR$1))","v":""},{"$f":"IF($A206=\"N/A\",Ref!$B$36,INDEX(Ranks!$1:$1048576,$A206,CS$1))","v":""},{"$f":"IF($A206=\"N/A\",Ref!$B$36,INDEX(Ranks!$1:$1048576,$A206,CT$1))","v":""},{"$f":"IF($A206=\"N/A\",Ref!$B$36,INDEX(Ranks!$1:$1048576,$A206,CU$1))","v":""},{"$f":"IF($A206=\"N/A\",Ref!$B$36,INDEX(Ranks!$1:$1048576,$A206,CV$1))","v":""},{"$f":"IF($A206=\"N/A\",Ref!$B$36,INDEX(Ranks!$1:$1048576,$A206,CW$1))","v":""},{"$f":"IF($A206=\"N/A\",Ref!$B$36,INDEX(Ranks!$1:$1048576,$A206,CX$1))","v":""},{"$f":"IF($A206=\"N/A\",Ref!$B$36,INDEX(Ranks!$1:$1048576,$A206,CY$1))","v":""},{"$f":"IF($A206=\"N/A\",Ref!$B$36,INDEX(Ranks!$1:$1048576,$A206,CZ$1))","v":""},{"$f":"IF($A206=\"N/A\",Ref!$B$36,INDEX(Ranks!$1:$1048576,$A206,DA$1))","v":""},{"$f":"IF($A206=\"N/A\",Ref!$B$36,INDEX(Ranks!$1:$1048576,$A206,DB$1))","v":""},{"$f":"IF($A206=\"N/A\",Ref!$B$36,INDEX(Ranks!$1:$1048576,$A206,DC$1))","v":""},{"$f":"IF($A206=\"N/A\",Ref!$B$36,INDEX(Ranks!$1:$1048576,$A206,DD$1))","v":""},{"$f":"IF($A206=\"N/A\",Ref!$B$36,INDEX(Ranks!$1:$1048576,$A206,DE$1))","v":""},{"$f":"IF($A206=\"N/A\",Ref!$B$36,INDEX(Ranks!$1:$1048576,$A206,DF$1))","v":""},{"$f":"IF($A206=\"N/A\",Ref!$B$36,INDEX(Ranks!$1:$1048576,$A206,DG$1))","v":""},{"$f":"IF($A206=\"N/A\",Ref!$B$36,INDEX(Ranks!$1:$1048576,$A206,DH$1))","v":""},{"$f":"IF($A206=\"N/A\",Ref!$B$36,INDEX(Ranks!$1:$1048576,$A206,DI$1))","v":""},{"$f":"IF($A206=\"N/A\",Ref!$B$36,INDEX(Ranks!$1:$1048576,$A206,DJ$1))","v":""},{"$f":"IF($A206=\"N/A\",Ref!$B$36,INDEX(Ranks!$1:$1048576,$A206,DK$1))","v":""},{"$f":"IF($A206=\"N/A\",Ref!$B$36,INDEX(Ranks!$1:$1048576,$A206,DL$1))","v":""},{"$f":"IF($A206=\"N/A\",Ref!$B$36,INDEX(Ranks!$1:$1048576,$A206,DM$1))","v":""},{"$f":"IF($A206=\"N/A\",Ref!$B$36,INDEX(Ranks!$1:$1048576,$A206,DN$1))","v":""},{"$f":"IF($A206=\"N/A\",Ref!$B$36,INDEX(Ranks!$1:$1048576,$A206,DO$1))","v":""},{"$f":"IF($A206=\"N/A\",Ref!$B$36,INDEX(Ranks!$1:$1048576,$A206,DP$1))","v":""},{"$f":"IF($A206=\"N/A\",Ref!$B$36,INDEX(Ranks!$1:$1048576,$A206,DQ$1))","v":""},{"$f":"IF($A206=\"N/A\",Ref!$B$36,INDEX(Ranks!$1:$1048576,$A206,DR$1))","v":""},{"$f":"IF($A206=\"N/A\",Ref!$B$36,INDEX(Ranks!$1:$1048576,$A206,DS$1))","v":""},{"$f":"IF($A206=\"N/A\",Ref!$B$36,INDEX(Ranks!$1:$1048576,$A206,DT$1))","v":""},{"$f":"IF($A206=\"N/A\",Ref!$B$36,INDEX(Ranks!$1:$1048576,$A206,DU$1))","v":""},{"$f":"IF($A206=\"N/A\",Ref!$B$36,INDEX(Ranks!$1:$1048576,$A206,DV$1))","v":""},{"$f":"IF($A206=\"N/A\",Ref!$B$36,INDEX(Ranks!$1:$1048576,$A206,DW$1))","v":""},{"$f":"IF($A206=\"N/A\",Ref!$B$36,INDEX(Ranks!$1:$1048576,$A206,DX$1))","v":""},{"$f":"IF($A206=\"N/A\",Ref!$B$36,INDEX(Ranks!$1:$1048576,$A206,DY$1))","v":""},{"$f":"IF($A206=\"N/A\",Ref!$B$36,INDEX(Ranks!$1:$1048576,$A206,DZ$1))","v":""},{"$f":"IF($A206=\"N/A\",Ref!$B$36,INDEX(Ranks!$1:$1048576,$A206,EA$1))","v":""},{"$f":"IF($A206=\"N/A\",Ref!$B$36,INDEX(Ranks!$1:$1048576,$A206,EB$1))","v":""}]
[{"$f":"IFERROR(MATCH('Portfolio Page'!L207,Ranks!L:L,0),\"N/A\")","v":"N/A"},null,{"$f":"IF($A207=\"N/A\",\"\",INDEX(Ranks!$1:$1048576,$A207,C$1))","v":""},{"$f":"IF($A207=\"N/A\",Ref!$B$36,INDEX(Ranks!$1:$1048576,$A207,D$1))","v":""},{"$f":"IF($A207=\"N/A\",Ref!$B$36,INDEX(Ranks!$1:$1048576,$A207,E$1))","v":""},{"$f":"IF($A207=\"N/A\",\"\",INDEX(Ranks!$1:$1048576,$A207,F$1))","v":""},{"$f":"IF($A207=\"N/A\",\"\",INDEX(Ranks!$1:$1048576,$A207,G$1))","v":""},{"$f":"IF($A207=\"N/A\",\"\",INDEX(Ranks!$1:$1048576,$A207,H$1))","v":""},{"$f":"IF($A207=\"N/A\",\"\",INDEX(Ranks!$1:$1048576,$A207,I$1))","v":""},{"$f":"IF($A207=\"N/A\",\"\",INDEX(Ranks!$1:$1048576,$A207,J$1))","v":""},{"$f":"IF($A207=\"N/A\",\"\",INDEX(Ranks!$1:$1048576,$A207,K$1))","v":""},null,{"$f":"IF($A207=\"N/A\",Ref!$B$36,INDEX(Ranks!$1:$1048576,$A207,M$1))","v":""},{"$f":"IF($A207=\"N/A\",Ref!$B$36,INDEX(Ranks!$1:$1048576,$A207,N$1))","v":""},{"$f":"IF($A207=\"N/A\",Ref!$B$36,INDEX(Ranks!$1:$1048576,$A207,O$1))","v":""},{"$f":"IF($A207=\"N/A\",Ref!$B$36,INDEX(Ranks!$1:$1048576,$A207,P$1))","v":""},{"$f":"IF($A207=\"N/A\",Ref!$B$36,INDEX(Ranks!$1:$1048576,$A207,Q$1))","v":""},{"$f":"IF($A207=\"N/A\",Ref!$B$36,INDEX(Ranks!$1:$1048576,$A207,R$1))","v":""},{"$f":"IF($A207=\"N/A\",Ref!$B$36,INDEX(Ranks!$1:$1048576,$A207,S$1))","v":""},{"$f":"IF($A207=\"N/A\",Ref!$B$36,INDEX(Ranks!$1:$1048576,$A207,T$1))","v":""},{"$f":"IF($A207=\"N/A\",Ref!$B$36,INDEX(Ranks!$1:$1048576,$A207,U$1))","v":""},{"$f":"IF($A207=\"N/A\",Ref!$B$36,INDEX(Ranks!$1:$1048576,$A207,V$1))","v":""},{"$f":"IF($A207=\"N/A\",Ref!$B$36,INDEX(Ranks!$1:$1048576,$A207,W$1))","v":""},{"$f":"IF($A207=\"N/A\",Ref!$B$36,INDEX(Ranks!$1:$1048576,$A207,X$1))","v":""},{"$f":"IF($A207=\"N/A\",Ref!$B$36,INDEX(Ranks!$1:$1048576,$A207,Y$1))","v":""},{"$f":"IF($A207=\"N/A\",Ref!$B$36,INDEX(Ranks!$1:$1048576,$A207,Z$1))","v":""},{"$f":"IF($A207=\"N/A\",Ref!$B$36,INDEX(Ranks!$1:$1048576,$A207,AA$1))","v":""},{"$f":"IF($A207=\"N/A\",Ref!$B$36,INDEX(Ranks!$1:$1048576,$A207,AB$1))","v":""},{"$f":"IF($A207=\"N/A\",Ref!$B$36,INDEX(Ranks!$1:$1048576,$A207,AC$1))","v":""},{"$f":"IF($A207=\"N/A\",Ref!$B$36,INDEX(Ranks!$1:$1048576,$A207,AD$1))","v":""},{"$f":"IF($A207=\"N/A\",Ref!$B$36,INDEX(Ranks!$1:$1048576,$A207,AE$1))","v":""},{"$f":"IF($A207=\"N/A\",Ref!$B$36,INDEX(Ranks!$1:$1048576,$A207,AF$1))","v":""},{"$f":"IF($A207=\"N/A\",Ref!$B$36,INDEX(Ranks!$1:$1048576,$A207,AG$1))","v":""},{"$f":"IF($A207=\"N/A\",Ref!$B$36,INDEX(Ranks!$1:$1048576,$A207,AH$1))","v":""},{"$f":"IF($A207=\"N/A\",Ref!$B$36,INDEX(Ranks!$1:$1048576,$A207,AI$1))","v":""},{"$f":"IF($A207=\"N/A\",Ref!$B$36,INDEX(Ranks!$1:$1048576,$A207,AJ$1))","v":""},{"$f":"IF($A207=\"N/A\",Ref!$B$36,INDEX(Ranks!$1:$1048576,$A207,AK$1))","v":""},{"$f":"IF($A207=\"N/A\",Ref!$B$36,INDEX(Ranks!$1:$1048576,$A207,AL$1))","v":""},{"$f":"IF($A207=\"N/A\",Ref!$B$36,INDEX(Ranks!$1:$1048576,$A207,AM$1))","v":""},{"$f":"IF($A207=\"N/A\",Ref!$B$36,INDEX(Ranks!$1:$1048576,$A207,AN$1))","v":""},{"$f":"IF($A207=\"N/A\",Ref!$B$36,INDEX(Ranks!$1:$1048576,$A207,AO$1))","v":""},{"$f":"IF($A207=\"N/A\",Ref!$B$36,INDEX(Ranks!$1:$1048576,$A207,AP$1))","v":""},{"$f":"IF($A207=\"N/A\",Ref!$B$36,INDEX(Ranks!$1:$1048576,$A207,AQ$1))","v":""},{"$f":"IF($A207=\"N/A\",Ref!$B$36,INDEX(Ranks!$1:$1048576,$A207,AR$1))","v":""},{"$f":"IF($A207=\"N/A\",Ref!$B$36,INDEX(Ranks!$1:$1048576,$A207,AS$1))","v":""},{"$f":"IF($A207=\"N/A\",Ref!$B$36,INDEX(Ranks!$1:$1048576,$A207,AT$1))","v":""},{"$f":"IF($A207=\"N/A\",Ref!$B$36,INDEX(Ranks!$1:$1048576,$A207,AU$1))","v":""},{"$f":"IF($A207=\"N/A\",Ref!$B$36,INDEX(Ranks!$1:$1048576,$A207,AV$1))","v":""},{"$f":"IF($A207=\"N/A\",Ref!$B$36,INDEX(Ranks!$1:$1048576,$A207,AW$1))","v":""},{"$f":"IF($A207=\"N/A\",Ref!$B$36,INDEX(Ranks!$1:$1048576,$A207,AX$1))","v":""},{"$f":"IF($A207=\"N/A\",Ref!$B$36,INDEX(Ranks!$1:$1048576,$A207,AY$1))","v":""},{"$f":"IF($A207=\"N/A\",Ref!$B$36,INDEX(Ranks!$1:$1048576,$A207,AZ$1))","v":""},{"$f":"IF($A207=\"N/A\",Ref!$B$36,INDEX(Ranks!$1:$1048576,$A207,BA$1))","v":""},{"$f":"IF($A207=\"N/A\",Ref!$B$36,INDEX(Ranks!$1:$1048576,$A207,BB$1))","v":""},{"$f":"IF($A207=\"N/A\",Ref!$B$36,INDEX(Ranks!$1:$1048576,$A207,BC$1))","v":""},{"$f":"IF($A207=\"N/A\",Ref!$B$36,INDEX(Ranks!$1:$1048576,$A207,BD$1))","v":""},{"$f":"IF($A207=\"N/A\",Ref!$B$36,INDEX(Ranks!$1:$1048576,$A207,BE$1))","v":""},{"$f":"IF($A207=\"N/A\",Ref!$B$36,INDEX(Ranks!$1:$1048576,$A207,BF$1))","v":""},{"$f":"IF($A207=\"N/A\",Ref!$B$36,INDEX(Ranks!$1:$1048576,$A207,BG$1))","v":""},{"$f":"IF($A207=\"N/A\",Ref!$B$36,INDEX(Ranks!$1:$1048576,$A207,BH$1))","v":""},{"$f":"IF($A207=\"N/A\",Ref!$B$36,INDEX(Ranks!$1:$1048576,$A207,BI$1))","v":""},{"$f":"IF($A207=\"N/A\",Ref!$B$36,INDEX(Ranks!$1:$1048576,$A207,BJ$1))","v":""},{"$f":"IF($A207=\"N/A\",Ref!$B$36,INDEX(Ranks!$1:$1048576,$A207,BK$1))","v":""},{"$f":"IF($A207=\"N/A\",Ref!$B$36,INDEX(Ranks!$1:$1048576,$A207,BL$1))","v":""},{"$f":"IF($A207=\"N/A\",Ref!$B$36,INDEX(Ranks!$1:$1048576,$A207,BM$1))","v":""},{"$f":"IF($A207=\"N/A\",Ref!$B$36,INDEX(Ranks!$1:$1048576,$A207,BN$1))","v":""},{"$f":"IF($A207=\"N/A\",Ref!$B$36,INDEX(Ranks!$1:$1048576,$A207,BO$1))","v":""},{"$f":"IF($A207=\"N/A\",Ref!$B$36,INDEX(Ranks!$1:$1048576,$A207,BP$1))","v":""},{"$f":"IF($A207=\"N/A\",Ref!$B$36,INDEX(Ranks!$1:$1048576,$A207,BQ$1))","v":""},{"$f":"IF($A207=\"N/A\",Ref!$B$36,INDEX(Ranks!$1:$1048576,$A207,BR$1))","v":""},{"$f":"IF($A207=\"N/A\",Ref!$B$36,INDEX(Ranks!$1:$1048576,$A207,BS$1))","v":""},{"$f":"IF($A207=\"N/A\",Ref!$B$36,INDEX(Ranks!$1:$1048576,$A207,BT$1))","v":""},{"$f":"IF($A207=\"N/A\",Ref!$B$36,INDEX(Ranks!$1:$1048576,$A207,BU$1))","v":""},{"$f":"IF($A207=\"N/A\",Ref!$B$36,INDEX(Ranks!$1:$1048576,$A207,BV$1))","v":""},{"$f":"IF($A207=\"N/A\",Ref!$B$36,INDEX(Ranks!$1:$1048576,$A207,BW$1))","v":""},{"$f":"IF($A207=\"N/A\",Ref!$B$36,INDEX(Ranks!$1:$1048576,$A207,BX$1))","v":""},{"$f":"IF($A207=\"N/A\",Ref!$B$36,INDEX(Ranks!$1:$1048576,$A207,BY$1))","v":""},{"$f":"IF($A207=\"N/A\",Ref!$B$36,INDEX(Ranks!$1:$1048576,$A207,BZ$1))","v":""},{"$f":"IF($A207=\"N/A\",Ref!$B$36,INDEX(Ranks!$1:$1048576,$A207,CA$1))","v":""},{"$f":"IF($A207=\"N/A\",Ref!$B$36,INDEX(Ranks!$1:$1048576,$A207,CB$1))","v":""},{"$f":"IF($A207=\"N/A\",Ref!$B$36,INDEX(Ranks!$1:$1048576,$A207,CC$1))","v":""},{"$f":"IF($A207=\"N/A\",Ref!$B$36,INDEX(Ranks!$1:$1048576,$A207,CD$1))","v":""},{"$f":"IF($A207=\"N/A\",Ref!$B$36,INDEX(Ranks!$1:$1048576,$A207,CE$1))","v":""},{"$f":"IF($A207=\"N/A\",Ref!$B$36,INDEX(Ranks!$1:$1048576,$A207,CF$1))","v":""},{"$f":"IF($A207=\"N/A\",Ref!$B$36,INDEX(Ranks!$1:$1048576,$A207,CG$1))","v":""},{"$f":"IF($A207=\"N/A\",Ref!$B$36,INDEX(Ranks!$1:$1048576,$A207,CH$1))","v":""},{"$f":"IF($A207=\"N/A\",Ref!$B$36,INDEX(Ranks!$1:$1048576,$A207,CI$1))","v":""},{"$f":"IF($A207=\"N/A\",Ref!$B$36,INDEX(Ranks!$1:$1048576,$A207,CJ$1))","v":""},{"$f":"IF($A207=\"N/A\",Ref!$B$36,INDEX(Ranks!$1:$1048576,$A207,CK$1))","v":""},{"$f":"IF($A207=\"N/A\",Ref!$B$36,INDEX(Ranks!$1:$1048576,$A207,CL$1))","v":""},{"$f":"IF($A207=\"N/A\",Ref!$B$36,INDEX(Ranks!$1:$1048576,$A207,CM$1))","v":""},{"$f":"IF($A207=\"N/A\",Ref!$B$36,INDEX(Ranks!$1:$1048576,$A207,CN$1))","v":""},{"$f":"IF($A207=\"N/A\",Ref!$B$36,INDEX(Ranks!$1:$1048576,$A207,CO$1))","v":""},{"$f":"IF($A207=\"N/A\",Ref!$B$36,INDEX(Ranks!$1:$1048576,$A207,CP$1))","v":""},{"$f":"IF($A207=\"N/A\",Ref!$B$36,INDEX(Ranks!$1:$1048576,$A207,CQ$1))","v":""},{"$f":"IF($A207=\"N/A\",Ref!$B$36,INDEX(Ranks!$1:$1048576,$A207,CR$1))","v":""},{"$f":"IF($A207=\"N/A\",Ref!$B$36,INDEX(Ranks!$1:$1048576,$A207,CS$1))","v":""},{"$f":"IF($A207=\"N/A\",Ref!$B$36,INDEX(Ranks!$1:$1048576,$A207,CT$1))","v":""},{"$f":"IF($A207=\"N/A\",Ref!$B$36,INDEX(Ranks!$1:$1048576,$A207,CU$1))","v":""},{"$f":"IF($A207=\"N/A\",Ref!$B$36,INDEX(Ranks!$1:$1048576,$A207,CV$1))","v":""},{"$f":"IF($A207=\"N/A\",Ref!$B$36,INDEX(Ranks!$1:$1048576,$A207,CW$1))","v":""},{"$f":"IF($A207=\"N/A\",Ref!$B$36,INDEX(Ranks!$1:$1048576,$A207,CX$1))","v":""},{"$f":"IF($A207=\"N/A\",Ref!$B$36,INDEX(Ranks!$1:$1048576,$A207,CY$1))","v":""},{"$f":"IF($A207=\"N/A\",Ref!$B$36,INDEX(Ranks!$1:$1048576,$A207,CZ$1))","v":""},{"$f":"IF($A207=\"N/A\",Ref!$B$36,INDEX(Ranks!$1:$1048576,$A207,DA$1))","v":""},{"$f":"IF($A207=\"N/A\",Ref!$B$36,INDEX(Ranks!$1:$1048576,$A207,DB$1))","v":""},{"$f":"IF($A207=\"N/A\",Ref!$B$36,INDEX(Ranks!$1:$1048576,$A207,DC$1))","v":""},{"$f":"IF($A207=\"N/A\",Ref!$B$36,INDEX(Ranks!$1:$1048576,$A207,DD$1))","v":""},{"$f":"IF($A207=\"N/A\",Ref!$B$36,INDEX(Ranks!$1:$1048576,$A207,DE$1))","v":""},{"$f":"IF($A207=\"N/A\",Ref!$B$36,INDEX(Ranks!$1:$1048576,$A207,DF$1))","v":""},{"$f":"IF($A207=\"N/A\",Ref!$B$36,INDEX(Ranks!$1:$1048576,$A207,DG$1))","v":""},{"$f":"IF($A207=\"N/A\",Ref!$B$36,INDEX(Ranks!$1:$1048576,$A207,DH$1))","v":""},{"$f":"IF($A207=\"N/A\",Ref!$B$36,INDEX(Ranks!$1:$1048576,$A207,DI$1))","v":""},{"$f":"IF($A207=\"N/A\",Ref!$B$36,INDEX(Ranks!$1:$1048576,$A207,DJ$1))","v":""},{"$f":"IF($A207=\"N/A\",Ref!$B$36,INDEX(Ranks!$1:$1048576,$A207,DK$1))","v":""},{"$f":"IF($A207=\"N/A\",Ref!$B$36,INDEX(Ranks!$1:$1048576,$A207,DL$1))","v":""},{"$f":"IF($A207=\"N/A\",Ref!$B$36,INDEX(Ranks!$1:$1048576,$A207,DM$1))","v":""},{"$f":"IF($A207=\"N/A\",Ref!$B$36,INDEX(Ranks!$1:$1048576,$A207,DN$1))","v":""},{"$f":"IF($A207=\"N/A\",Ref!$B$36,INDEX(Ranks!$1:$1048576,$A207,DO$1))","v":""},{"$f":"IF($A207=\"N/A\",Ref!$B$36,INDEX(Ranks!$1:$1048576,$A207,DP$1))","v":""},{"$f":"IF($A207=\"N/A\",Ref!$B$36,INDEX(Ranks!$1:$1048576,$A207,DQ$1))","v":""},{"$f":"IF($A207=\"N/A\",Ref!$B$36,INDEX(Ranks!$1:$1048576,$A207,DR$1))","v":""},{"$f":"IF($A207=\"N/A\",Ref!$B$36,INDEX(Ranks!$1:$1048576,$A207,DS$1))","v":""},{"$f":"IF($A207=\"N/A\",Ref!$B$36,INDEX(Ranks!$1:$1048576,$A207,DT$1))","v":""},{"$f":"IF($A207=\"N/A\",Ref!$B$36,INDEX(Ranks!$1:$1048576,$A207,DU$1))","v":""},{"$f":"IF($A207=\"N/A\",Ref!$B$36,INDEX(Ranks!$1:$1048576,$A207,DV$1))","v":""},{"$f":"IF($A207=\"N/A\",Ref!$B$36,INDEX(Ranks!$1:$1048576,$A207,DW$1))","v":""},{"$f":"IF($A207=\"N/A\",Ref!$B$36,INDEX(Ranks!$1:$1048576,$A207,DX$1))","v":""},{"$f":"IF($A207=\"N/A\",Ref!$B$36,INDEX(Ranks!$1:$1048576,$A207,DY$1))","v":""},{"$f":"IF($A207=\"N/A\",Ref!$B$36,INDEX(Ranks!$1:$1048576,$A207,DZ$1))","v":""},{"$f":"IF($A207=\"N/A\",Ref!$B$36,INDEX(Ranks!$1:$1048576,$A207,EA$1))","v":""},{"$f":"IF($A207=\"N/A\",Ref!$B$36,INDEX(Ranks!$1:$1048576,$A207,EB$1))","v":""}]
[{"$f":"IFERROR(MATCH('Portfolio Page'!L208,Ranks!L:L,0),\"N/A\")","v":"N/A"},null,{"$f":"IF($A208=\"N/A\",\"\",INDEX(Ranks!$1:$1048576,$A208,C$1))","v":""},{"$f":"IF($A208=\"N/A\",Ref!$B$36,INDEX(Ranks!$1:$1048576,$A208,D$1))","v":""},{"$f":"IF($A208=\"N/A\",Ref!$B$36,INDEX(Ranks!$1:$1048576,$A208,E$1))","v":""},{"$f":"IF($A208=\"N/A\",\"\",INDEX(Ranks!$1:$1048576,$A208,F$1))","v":""},{"$f":"IF($A208=\"N/A\",\"\",INDEX(Ranks!$1:$1048576,$A208,G$1))","v":""},{"$f":"IF($A208=\"N/A\",\"\",INDEX(Ranks!$1:$1048576,$A208,H$1))","v":""},{"$f":"IF($A208=\"N/A\",\"\",INDEX(Ranks!$1:$1048576,$A208,I$1))","v":""},{"$f":"IF($A208=\"N/A\",\"\",INDEX(Ranks!$1:$1048576,$A208,J$1))","v":""},{"$f":"IF($A208=\"N/A\",\"\",INDEX(Ranks!$1:$1048576,$A208,K$1))","v":""},null,{"$f":"IF($A208=\"N/A\",Ref!$B$36,INDEX(Ranks!$1:$1048576,$A208,M$1))","v":""},{"$f":"IF($A208=\"N/A\",Ref!$B$36,INDEX(Ranks!$1:$1048576,$A208,N$1))","v":""},{"$f":"IF($A208=\"N/A\",Ref!$B$36,INDEX(Ranks!$1:$1048576,$A208,O$1))","v":""},{"$f":"IF($A208=\"N/A\",Ref!$B$36,INDEX(Ranks!$1:$1048576,$A208,P$1))","v":""},{"$f":"IF($A208=\"N/A\",Ref!$B$36,INDEX(Ranks!$1:$1048576,$A208,Q$1))","v":""},{"$f":"IF($A208=\"N/A\",Ref!$B$36,INDEX(Ranks!$1:$1048576,$A208,R$1))","v":""},{"$f":"IF($A208=\"N/A\",Ref!$B$36,INDEX(Ranks!$1:$1048576,$A208,S$1))","v":""},{"$f":"IF($A208=\"N/A\",Ref!$B$36,INDEX(Ranks!$1:$1048576,$A208,T$1))","v":""},{"$f":"IF($A208=\"N/A\",Ref!$B$36,INDEX(Ranks!$1:$1048576,$A208,U$1))","v":""},{"$f":"IF($A208=\"N/A\",Ref!$B$36,INDEX(Ranks!$1:$1048576,$A208,V$1))","v":""},{"$f":"IF($A208=\"N/A\",Ref!$B$36,INDEX(Ranks!$1:$1048576,$A208,W$1))","v":""},{"$f":"IF($A208=\"N/A\",Ref!$B$36,INDEX(Ranks!$1:$1048576,$A208,X$1))","v":""},{"$f":"IF($A208=\"N/A\",Ref!$B$36,INDEX(Ranks!$1:$1048576,$A208,Y$1))","v":""},{"$f":"IF($A208=\"N/A\",Ref!$B$36,INDEX(Ranks!$1:$1048576,$A208,Z$1))","v":""},{"$f":"IF($A208=\"N/A\",Ref!$B$36,INDEX(Ranks!$1:$1048576,$A208,AA$1))","v":""},{"$f":"IF($A208=\"N/A\",Ref!$B$36,INDEX(Ranks!$1:$1048576,$A208,AB$1))","v":""},{"$f":"IF($A208=\"N/A\",Ref!$B$36,INDEX(Ranks!$1:$1048576,$A208,AC$1))","v":""},{"$f":"IF($A208=\"N/A\",Ref!$B$36,INDEX(Ranks!$1:$1048576,$A208,AD$1))","v":""},{"$f":"IF($A208=\"N/A\",Ref!$B$36,INDEX(Ranks!$1:$1048576,$A208,AE$1))","v":""},{"$f":"IF($A208=\"N/A\",Ref!$B$36,INDEX(Ranks!$1:$1048576,$A208,AF$1))","v":""},{"$f":"IF($A208=\"N/A\",Ref!$B$36,INDEX(Ranks!$1:$1048576,$A208,AG$1))","v":""},{"$f":"IF($A208=\"N/A\",Ref!$B$36,INDEX(Ranks!$1:$1048576,$A208,AH$1))","v":""},{"$f":"IF($A208=\"N/A\",Ref!$B$36,INDEX(Ranks!$1:$1048576,$A208,AI$1))","v":""},{"$f":"IF($A208=\"N/A\",Ref!$B$36,INDEX(Ranks!$1:$1048576,$A208,AJ$1))","v":""},{"$f":"IF($A208=\"N/A\",Ref!$B$36,INDEX(Ranks!$1:$1048576,$A208,AK$1))","v":""},{"$f":"IF($A208=\"N/A\",Ref!$B$36,INDEX(Ranks!$1:$1048576,$A208,AL$1))","v":""},{"$f":"IF($A208=\"N/A\",Ref!$B$36,INDEX(Ranks!$1:$1048576,$A208,AM$1))","v":""},{"$f":"IF($A208=\"N/A\",Ref!$B$36,INDEX(Ranks!$1:$1048576,$A208,AN$1))","v":""},{"$f":"IF($A208=\"N/A\",Ref!$B$36,INDEX(Ranks!$1:$1048576,$A208,AO$1))","v":""},{"$f":"IF($A208=\"N/A\",Ref!$B$36,INDEX(Ranks!$1:$1048576,$A208,AP$1))","v":""},{"$f":"IF($A208=\"N/A\",Ref!$B$36,INDEX(Ranks!$1:$1048576,$A208,AQ$1))","v":""},{"$f":"IF($A208=\"N/A\",Ref!$B$36,INDEX(Ranks!$1:$1048576,$A208,AR$1))","v":""},{"$f":"IF($A208=\"N/A\",Ref!$B$36,INDEX(Ranks!$1:$1048576,$A208,AS$1))","v":""},{"$f":"IF($A208=\"N/A\",Ref!$B$36,INDEX(Ranks!$1:$1048576,$A208,AT$1))","v":""},{"$f":"IF($A208=\"N/A\",Ref!$B$36,INDEX(Ranks!$1:$1048576,$A208,AU$1))","v":""},{"$f":"IF($A208=\"N/A\",Ref!$B$36,INDEX(Ranks!$1:$1048576,$A208,AV$1))","v":""},{"$f":"IF($A208=\"N/A\",Ref!$B$36,INDEX(Ranks!$1:$1048576,$A208,AW$1))","v":""},{"$f":"IF($A208=\"N/A\",Ref!$B$36,INDEX(Ranks!$1:$1048576,$A208,AX$1))","v":""},{"$f":"IF($A208=\"N/A\",Ref!$B$36,INDEX(Ranks!$1:$1048576,$A208,AY$1))","v":""},{"$f":"IF($A208=\"N/A\",Ref!$B$36,INDEX(Ranks!$1:$1048576,$A208,AZ$1))","v":""},{"$f":"IF($A208=\"N/A\",Ref!$B$36,INDEX(Ranks!$1:$1048576,$A208,BA$1))","v":""},{"$f":"IF($A208=\"N/A\",Ref!$B$36,INDEX(Ranks!$1:$1048576,$A208,BB$1))","v":""},{"$f":"IF($A208=\"N/A\",Ref!$B$36,INDEX(Ranks!$1:$1048576,$A208,BC$1))","v":""},{"$f":"IF($A208=\"N/A\",Ref!$B$36,INDEX(Ranks!$1:$1048576,$A208,BD$1))","v":""},{"$f":"IF($A208=\"N/A\",Ref!$B$36,INDEX(Ranks!$1:$1048576,$A208,BE$1))","v":""},{"$f":"IF($A208=\"N/A\",Ref!$B$36,INDEX(Ranks!$1:$1048576,$A208,BF$1))","v":""},{"$f":"IF($A208=\"N/A\",Ref!$B$36,INDEX(Ranks!$1:$1048576,$A208,BG$1))","v":""},{"$f":"IF($A208=\"N/A\",Ref!$B$36,INDEX(Ranks!$1:$1048576,$A208,BH$1))","v":""},{"$f":"IF($A208=\"N/A\",Ref!$B$36,INDEX(Ranks!$1:$1048576,$A208,BI$1))","v":""},{"$f":"IF($A208=\"N/A\",Ref!$B$36,INDEX(Ranks!$1:$1048576,$A208,BJ$1))","v":""},{"$f":"IF($A208=\"N/A\",Ref!$B$36,INDEX(Ranks!$1:$1048576,$A208,BK$1))","v":""},{"$f":"IF($A208=\"N/A\",Ref!$B$36,INDEX(Ranks!$1:$1048576,$A208,BL$1))","v":""},{"$f":"IF($A208=\"N/A\",Ref!$B$36,INDEX(Ranks!$1:$1048576,$A208,BM$1))","v":""},{"$f":"IF($A208=\"N/A\",Ref!$B$36,INDEX(Ranks!$1:$1048576,$A208,BN$1))","v":""},{"$f":"IF($A208=\"N/A\",Ref!$B$36,INDEX(Ranks!$1:$1048576,$A208,BO$1))","v":""},{"$f":"IF($A208=\"N/A\",Ref!$B$36,INDEX(Ranks!$1:$1048576,$A208,BP$1))","v":""},{"$f":"IF($A208=\"N/A\",Ref!$B$36,INDEX(Ranks!$1:$1048576,$A208,BQ$1))","v":""},{"$f":"IF($A208=\"N/A\",Ref!$B$36,INDEX(Ranks!$1:$1048576,$A208,BR$1))","v":""},{"$f":"IF($A208=\"N/A\",Ref!$B$36,INDEX(Ranks!$1:$1048576,$A208,BS$1))","v":""},{"$f":"IF($A208=\"N/A\",Ref!$B$36,INDEX(Ranks!$1:$1048576,$A208,BT$1))","v":""},{"$f":"IF($A208=\"N/A\",Ref!$B$36,INDEX(Ranks!$1:$1048576,$A208,BU$1))","v":""},{"$f":"IF($A208=\"N/A\",Ref!$B$36,INDEX(Ranks!$1:$1048576,$A208,BV$1))","v":""},{"$f":"IF($A208=\"N/A\",Ref!$B$36,INDEX(Ranks!$1:$1048576,$A208,BW$1))","v":""},{"$f":"IF($A208=\"N/A\",Ref!$B$36,INDEX(Ranks!$1:$1048576,$A208,BX$1))","v":""},{"$f":"IF($A208=\"N/A\",Ref!$B$36,INDEX(Ranks!$1:$1048576,$A208,BY$1))","v":""},{"$f":"IF($A208=\"N/A\",Ref!$B$36,INDEX(Ranks!$1:$1048576,$A208,BZ$1))","v":""},{"$f":"IF($A208=\"N/A\",Ref!$B$36,INDEX(Ranks!$1:$1048576,$A208,CA$1))","v":""},{"$f":"IF($A208=\"N/A\",Ref!$B$36,INDEX(Ranks!$1:$1048576,$A208,CB$1))","v":""},{"$f":"IF($A208=\"N/A\",Ref!$B$36,INDEX(Ranks!$1:$1048576,$A208,CC$1))","v":""},{"$f":"IF($A208=\"N/A\",Ref!$B$36,INDEX(Ranks!$1:$1048576,$A208,CD$1))","v":""},{"$f":"IF($A208=\"N/A\",Ref!$B$36,INDEX(Ranks!$1:$1048576,$A208,CE$1))","v":""},{"$f":"IF($A208=\"N/A\",Ref!$B$36,INDEX(Ranks!$1:$1048576,$A208,CF$1))","v":""},{"$f":"IF($A208=\"N/A\",Ref!$B$36,INDEX(Ranks!$1:$1048576,$A208,CG$1))","v":""},{"$f":"IF($A208=\"N/A\",Ref!$B$36,INDEX(Ranks!$1:$1048576,$A208,CH$1))","v":""},{"$f":"IF($A208=\"N/A\",Ref!$B$36,INDEX(Ranks!$1:$1048576,$A208,CI$1))","v":""},{"$f":"IF($A208=\"N/A\",Ref!$B$36,INDEX(Ranks!$1:$1048576,$A208,CJ$1))","v":""},{"$f":"IF($A208=\"N/A\",Ref!$B$36,INDEX(Ranks!$1:$1048576,$A208,CK$1))","v":""},{"$f":"IF($A208=\"N/A\",Ref!$B$36,INDEX(Ranks!$1:$1048576,$A208,CL$1))","v":""},{"$f":"IF($A208=\"N/A\",Ref!$B$36,INDEX(Ranks!$1:$1048576,$A208,CM$1))","v":""},{"$f":"IF($A208=\"N/A\",Ref!$B$36,INDEX(Ranks!$1:$1048576,$A208,CN$1))","v":""},{"$f":"IF($A208=\"N/A\",Ref!$B$36,INDEX(Ranks!$1:$1048576,$A208,CO$1))","v":""},{"$f":"IF($A208=\"N/A\",Ref!$B$36,INDEX(Ranks!$1:$1048576,$A208,CP$1))","v":""},{"$f":"IF($A208=\"N/A\",Ref!$B$36,INDEX(Ranks!$1:$1048576,$A208,CQ$1))","v":""},{"$f":"IF($A208=\"N/A\",Ref!$B$36,INDEX(Ranks!$1:$1048576,$A208,CR$1))","v":""},{"$f":"IF($A208=\"N/A\",Ref!$B$36,INDEX(Ranks!$1:$1048576,$A208,CS$1))","v":""},{"$f":"IF($A208=\"N/A\",Ref!$B$36,INDEX(Ranks!$1:$1048576,$A208,CT$1))","v":""},{"$f":"IF($A208=\"N/A\",Ref!$B$36,INDEX(Ranks!$1:$1048576,$A208,CU$1))","v":""},{"$f":"IF($A208=\"N/A\",Ref!$B$36,INDEX(Ranks!$1:$1048576,$A208,CV$1))","v":""},{"$f":"IF($A208=\"N/A\",Ref!$B$36,INDEX(Ranks!$1:$1048576,$A208,CW$1))","v":""},{"$f":"IF($A208=\"N/A\",Ref!$B$36,INDEX(Ranks!$1:$1048576,$A208,CX$1))","v":""},{"$f":"IF($A208=\"N/A\",Ref!$B$36,INDEX(Ranks!$1:$1048576,$A208,CY$1))","v":""},{"$f":"IF($A208=\"N/A\",Ref!$B$36,INDEX(Ranks!$1:$1048576,$A208,CZ$1))","v":""},{"$f":"IF($A208=\"N/A\",Ref!$B$36,INDEX(Ranks!$1:$1048576,$A208,DA$1))","v":""},{"$f":"IF($A208=\"N/A\",Ref!$B$36,INDEX(Ranks!$1:$1048576,$A208,DB$1))","v":""},{"$f":"IF($A208=\"N/A\",Ref!$B$36,INDEX(Ranks!$1:$1048576,$A208,DC$1))","v":""},{"$f":"IF($A208=\"N/A\",Ref!$B$36,INDEX(Ranks!$1:$1048576,$A208,DD$1))","v":""},{"$f":"IF($A208=\"N/A\",Ref!$B$36,INDEX(Ranks!$1:$1048576,$A208,DE$1))","v":""},{"$f":"IF($A208=\"N/A\",Ref!$B$36,INDEX(Ranks!$1:$1048576,$A208,DF$1))","v":""},{"$f":"IF($A208=\"N/A\",Ref!$B$36,INDEX(Ranks!$1:$1048576,$A208,DG$1))","v":""},{"$f":"IF($A208=\"N/A\",Ref!$B$36,INDEX(Ranks!$1:$1048576,$A208,DH$1))","v":""},{"$f":"IF($A208=\"N/A\",Ref!$B$36,INDEX(Ranks!$1:$1048576,$A208,DI$1))","v":""},{"$f":"IF($A208=\"N/A\",Ref!$B$36,INDEX(Ranks!$1:$1048576,$A208,DJ$1))","v":""},{"$f":"IF($A208=\"N/A\",Ref!$B$36,INDEX(Ranks!$1:$1048576,$A208,DK$1))","v":""},{"$f":"IF($A208=\"N/A\",Ref!$B$36,INDEX(Ranks!$1:$1048576,$A208,DL$1))","v":""},{"$f":"IF($A208=\"N/A\",Ref!$B$36,INDEX(Ranks!$1:$1048576,$A208,DM$1))","v":""},{"$f":"IF($A208=\"N/A\",Ref!$B$36,INDEX(Ranks!$1:$1048576,$A208,DN$1))","v":""},{"$f":"IF($A208=\"N/A\",Ref!$B$36,INDEX(Ranks!$1:$1048576,$A208,DO$1))","v":""},{"$f":"IF($A208=\"N/A\",Ref!$B$36,INDEX(Ranks!$1:$1048576,$A208,DP$1))","v":""},{"$f":"IF($A208=\"N/A\",Ref!$B$36,INDEX(Ranks!$1:$1048576,$A208,DQ$1))","v":""},{"$f":"IF($A208=\"N/A\",Ref!$B$36,INDEX(Ranks!$1:$1048576,$A208,DR$1))","v":""},{"$f":"IF($A208=\"N/A\",Ref!$B$36,INDEX(Ranks!$1:$1048576,$A208,DS$1))","v":""},{"$f":"IF($A208=\"N/A\",Ref!$B$36,INDEX(Ranks!$1:$1048576,$A208,DT$1))","v":""},{"$f":"IF($A208=\"N/A\",Ref!$B$36,INDEX(Ranks!$1:$1048576,$A208,DU$1))","v":""},{"$f":"IF($A208=\"N/A\",Ref!$B$36,INDEX(Ranks!$1:$1048576,$A208,DV$1))","v":""},{"$f":"IF($A208=\"N/A\",Ref!$B$36,INDEX(Ranks!$1:$1048576,$A208,DW$1))","v":""},{"$f":"IF($A208=\"N/A\",Ref!$B$36,INDEX(Ranks!$1:$1048576,$A208,DX$1))","v":""},{"$f":"IF($A208=\"N/A\",Ref!$B$36,INDEX(Ranks!$1:$1048576,$A208,DY$1))","v":""},{"$f":"IF($A208=\"N/A\",Ref!$B$36,INDEX(Ranks!$1:$1048576,$A208,DZ$1))","v":""},{"$f":"IF($A208=\"N/A\",Ref!$B$36,INDEX(Ranks!$1:$1048576,$A208,EA$1))","v":""},{"$f":"IF($A208=\"N/A\",Ref!$B$36,INDEX(Ranks!$1:$1048576,$A208,EB$1))","v":""}]
[{"$f":"IFERROR(MATCH('Portfolio Page'!L209,Ranks!L:L,0),\"N/A\")","v":"N/A"},null,{"$f":"IF($A209=\"N/A\",\"\",INDEX(Ranks!$1:$1048576,$A209,C$1))","v":""},{"$f":"IF($A209=\"N/A\",Ref!$B$36,INDEX(Ranks!$1:$1048576,$A209,D$1))","v":""},{"$f":"IF($A209=\"N/A\",Ref!$B$36,INDEX(Ranks!$1:$1048576,$A209,E$1))","v":""},{"$f":"IF($A209=\"N/A\",\"\",INDEX(Ranks!$1:$1048576,$A209,F$1))","v":""},{"$f":"IF($A209=\"N/A\",\"\",INDEX(Ranks!$1:$1048576,$A209,G$1))","v":""},{"$f":"IF($A209=\"N/A\",\"\",INDEX(Ranks!$1:$1048576,$A209,H$1))","v":""},{"$f":"IF($A209=\"N/A\",\"\",INDEX(Ranks!$1:$1048576,$A209,I$1))","v":""},{"$f":"IF($A209=\"N/A\",\"\",INDEX(Ranks!$1:$1048576,$A209,J$1))","v":""},{"$f":"IF($A209=\"N/A\",\"\",INDEX(Ranks!$1:$1048576,$A209,K$1))","v":""},null,{"$f":"IF($A209=\"N/A\",Ref!$B$36,INDEX(Ranks!$1:$1048576,$A209,M$1))","v":""},{"$f":"IF($A209=\"N/A\",Ref!$B$36,INDEX(Ranks!$1:$1048576,$A209,N$1))","v":""},{"$f":"IF($A209=\"N/A\",Ref!$B$36,INDEX(Ranks!$1:$1048576,$A209,O$1))","v":""},{"$f":"IF($A209=\"N/A\",Ref!$B$36,INDEX(Ranks!$1:$1048576,$A209,P$1))","v":""},{"$f":"IF($A209=\"N/A\",Ref!$B$36,INDEX(Ranks!$1:$1048576,$A209,Q$1))","v":""},{"$f":"IF($A209=\"N/A\",Ref!$B$36,INDEX(Ranks!$1:$1048576,$A209,R$1))","v":""},{"$f":"IF($A209=\"N/A\",Ref!$B$36,INDEX(Ranks!$1:$1048576,$A209,S$1))","v":""},{"$f":"IF($A209=\"N/A\",Ref!$B$36,INDEX(Ranks!$1:$1048576,$A209,T$1))","v":""},{"$f":"IF($A209=\"N/A\",Ref!$B$36,INDEX(Ranks!$1:$1048576,$A209,U$1))","v":""},{"$f":"IF($A209=\"N/A\",Ref!$B$36,INDEX(Ranks!$1:$1048576,$A209,V$1))","v":""},{"$f":"IF($A209=\"N/A\",Ref!$B$36,INDEX(Ranks!$1:$1048576,$A209,W$1))","v":""},{"$f":"IF($A209=\"N/A\",Ref!$B$36,INDEX(Ranks!$1:$1048576,$A209,X$1))","v":""},{"$f":"IF($A209=\"N/A\",Ref!$B$36,INDEX(Ranks!$1:$1048576,$A209,Y$1))","v":""},{"$f":"IF($A209=\"N/A\",Ref!$B$36,INDEX(Ranks!$1:$1048576,$A209,Z$1))","v":""},{"$f":"IF($A209=\"N/A\",Ref!$B$36,INDEX(Ranks!$1:$1048576,$A209,AA$1))","v":""},{"$f":"IF($A209=\"N/A\",Ref!$B$36,INDEX(Ranks!$1:$1048576,$A209,AB$1))","v":""},{"$f":"IF($A209=\"N/A\",Ref!$B$36,INDEX(Ranks!$1:$1048576,$A209,AC$1))","v":""},{"$f":"IF($A209=\"N/A\",Ref!$B$36,INDEX(Ranks!$1:$1048576,$A209,AD$1))","v":""},{"$f":"IF($A209=\"N/A\",Ref!$B$36,INDEX(Ranks!$1:$1048576,$A209,AE$1))","v":""},{"$f":"IF($A209=\"N/A\",Ref!$B$36,INDEX(Ranks!$1:$1048576,$A209,AF$1))","v":""},{"$f":"IF($A209=\"N/A\",Ref!$B$36,INDEX(Ranks!$1:$1048576,$A209,AG$1))","v":""},{"$f":"IF($A209=\"N/A\",Ref!$B$36,INDEX(Ranks!$1:$1048576,$A209,AH$1))","v":""},{"$f":"IF($A209=\"N/A\",Ref!$B$36,INDEX(Ranks!$1:$1048576,$A209,AI$1))","v":""},{"$f":"IF($A209=\"N/A\",Ref!$B$36,INDEX(Ranks!$1:$1048576,$A209,AJ$1))","v":""},{"$f":"IF($A209=\"N/A\",Ref!$B$36,INDEX(Ranks!$1:$1048576,$A209,AK$1))","v":""},{"$f":"IF($A209=\"N/A\",Ref!$B$36,INDEX(Ranks!$1:$1048576,$A209,AL$1))","v":""},{"$f":"IF($A209=\"N/A\",Ref!$B$36,INDEX(Ranks!$1:$1048576,$A209,AM$1))","v":""},{"$f":"IF($A209=\"N/A\",Ref!$B$36,INDEX(Ranks!$1:$1048576,$A209,AN$1))","v":""},{"$f":"IF($A209=\"N/A\",Ref!$B$36,INDEX(Ranks!$1:$1048576,$A209,AO$1))","v":""},{"$f":"IF($A209=\"N/A\",Ref!$B$36,INDEX(Ranks!$1:$1048576,$A209,AP$1))","v":""},{"$f":"IF($A209=\"N/A\",Ref!$B$36,INDEX(Ranks!$1:$1048576,$A209,AQ$1))","v":""},{"$f":"IF($A209=\"N/A\",Ref!$B$36,INDEX(Ranks!$1:$1048576,$A209,AR$1))","v":""},{"$f":"IF($A209=\"N/A\",Ref!$B$36,INDEX(Ranks!$1:$1048576,$A209,AS$1))","v":""},{"$f":"IF($A209=\"N/A\",Ref!$B$36,INDEX(Ranks!$1:$1048576,$A209,AT$1))","v":""},{"$f":"IF($A209=\"N/A\",Ref!$B$36,INDEX(Ranks!$1:$1048576,$A209,AU$1))","v":""},{"$f":"IF($A209=\"N/A\",Ref!$B$36,INDEX(Ranks!$1:$1048576,$A209,AV$1))","v":""},{"$f":"IF($A209=\"N/A\",Ref!$B$36,INDEX(Ranks!$1:$1048576,$A209,AW$1))","v":""},{"$f":"IF($A209=\"N/A\",Ref!$B$36,INDEX(Ranks!$1:$1048576,$A209,AX$1))","v":""},{"$f":"IF($A209=\"N/A\",Ref!$B$36,INDEX(Ranks!$1:$1048576,$A209,AY$1))","v":""},{"$f":"IF($A209=\"N/A\",Ref!$B$36,INDEX(Ranks!$1:$1048576,$A209,AZ$1))","v":""},{"$f":"IF($A209=\"N/A\",Ref!$B$36,INDEX(Ranks!$1:$1048576,$A209,BA$1))","v":""},{"$f":"IF($A209=\"N/A\",Ref!$B$36,INDEX(Ranks!$1:$1048576,$A209,BB$1))","v":""},{"$f":"IF($A209=\"N/A\",Ref!$B$36,INDEX(Ranks!$1:$1048576,$A209,BC$1))","v":""},{"$f":"IF($A209=\"N/A\",Ref!$B$36,INDEX(Ranks!$1:$1048576,$A209,BD$1))","v":""},{"$f":"IF($A209=\"N/A\",Ref!$B$36,INDEX(Ranks!$1:$1048576,$A209,BE$1))","v":""},{"$f":"IF($A209=\"N/A\",Ref!$B$36,INDEX(Ranks!$1:$1048576,$A209,BF$1))","v":""},{"$f":"IF($A209=\"N/A\",Ref!$B$36,INDEX(Ranks!$1:$1048576,$A209,BG$1))","v":""},{"$f":"IF($A209=\"N/A\",Ref!$B$36,INDEX(Ranks!$1:$1048576,$A209,BH$1))","v":""},{"$f":"IF($A209=\"N/A\",Ref!$B$36,INDEX(Ranks!$1:$1048576,$A209,BI$1))","v":""},{"$f":"IF($A209=\"N/A\",Ref!$B$36,INDEX(Ranks!$1:$1048576,$A209,BJ$1))","v":""},{"$f":"IF($A209=\"N/A\",Ref!$B$36,INDEX(Ranks!$1:$1048576,$A209,BK$1))","v":""},{"$f":"IF($A209=\"N/A\",Ref!$B$36,INDEX(Ranks!$1:$1048576,$A209,BL$1))","v":""},{"$f":"IF($A209=\"N/A\",Ref!$B$36,INDEX(Ranks!$1:$1048576,$A209,BM$1))","v":""},{"$f":"IF($A209=\"N/A\",Ref!$B$36,INDEX(Ranks!$1:$1048576,$A209,BN$1))","v":""},{"$f":"IF($A209=\"N/A\",Ref!$B$36,INDEX(Ranks!$1:$1048576,$A209,BO$1))","v":""},{"$f":"IF($A209=\"N/A\",Ref!$B$36,INDEX(Ranks!$1:$1048576,$A209,BP$1))","v":""},{"$f":"IF($A209=\"N/A\",Ref!$B$36,INDEX(Ranks!$1:$1048576,$A209,BQ$1))","v":""},{"$f":"IF($A209=\"N/A\",Ref!$B$36,INDEX(Ranks!$1:$1048576,$A209,BR$1))","v":""},{"$f":"IF($A209=\"N/A\",Ref!$B$36,INDEX(Ranks!$1:$1048576,$A209,BS$1))","v":""},{"$f":"IF($A209=\"N/A\",Ref!$B$36,INDEX(Ranks!$1:$1048576,$A209,BT$1))","v":""},{"$f":"IF($A209=\"N/A\",Ref!$B$36,INDEX(Ranks!$1:$1048576,$A209,BU$1))","v":""},{"$f":"IF($A209=\"N/A\",Ref!$B$36,INDEX(Ranks!$1:$1048576,$A209,BV$1))","v":""},{"$f":"IF($A209=\"N/A\",Ref!$B$36,INDEX(Ranks!$1:$1048576,$A209,BW$1))","v":""},{"$f":"IF($A209=\"N/A\",Ref!$B$36,INDEX(Ranks!$1:$1048576,$A209,BX$1))","v":""},{"$f":"IF($A209=\"N/A\",Ref!$B$36,INDEX(Ranks!$1:$1048576,$A209,BY$1))","v":""},{"$f":"IF($A209=\"N/A\",Ref!$B$36,INDEX(Ranks!$1:$1048576,$A209,BZ$1))","v":""},{"$f":"IF($A209=\"N/A\",Ref!$B$36,INDEX(Ranks!$1:$1048576,$A209,CA$1))","v":""},{"$f":"IF($A209=\"N/A\",Ref!$B$36,INDEX(Ranks!$1:$1048576,$A209,CB$1))","v":""},{"$f":"IF($A209=\"N/A\",Ref!$B$36,INDEX(Ranks!$1:$1048576,$A209,CC$1))","v":""},{"$f":"IF($A209=\"N/A\",Ref!$B$36,INDEX(Ranks!$1:$1048576,$A209,CD$1))","v":""},{"$f":"IF($A209=\"N/A\",Ref!$B$36,INDEX(Ranks!$1:$1048576,$A209,CE$1))","v":""},{"$f":"IF($A209=\"N/A\",Ref!$B$36,INDEX(Ranks!$1:$1048576,$A209,CF$1))","v":""},{"$f":"IF($A209=\"N/A\",Ref!$B$36,INDEX(Ranks!$1:$1048576,$A209,CG$1))","v":""},{"$f":"IF($A209=\"N/A\",Ref!$B$36,INDEX(Ranks!$1:$1048576,$A209,CH$1))","v":""},{"$f":"IF($A209=\"N/A\",Ref!$B$36,INDEX(Ranks!$1:$1048576,$A209,CI$1))","v":""},{"$f":"IF($A209=\"N/A\",Ref!$B$36,INDEX(Ranks!$1:$1048576,$A209,CJ$1))","v":""},{"$f":"IF($A209=\"N/A\",Ref!$B$36,INDEX(Ranks!$1:$1048576,$A209,CK$1))","v":""},{"$f":"IF($A209=\"N/A\",Ref!$B$36,INDEX(Ranks!$1:$1048576,$A209,CL$1))","v":""},{"$f":"IF($A209=\"N/A\",Ref!$B$36,INDEX(Ranks!$1:$1048576,$A209,CM$1))","v":""},{"$f":"IF($A209=\"N/A\",Ref!$B$36,INDEX(Ranks!$1:$1048576,$A209,CN$1))","v":""},{"$f":"IF($A209=\"N/A\",Ref!$B$36,INDEX(Ranks!$1:$1048576,$A209,CO$1))","v":""},{"$f":"IF($A209=\"N/A\",Ref!$B$36,INDEX(Ranks!$1:$1048576,$A209,CP$1))","v":""},{"$f":"IF($A209=\"N/A\",Ref!$B$36,INDEX(Ranks!$1:$1048576,$A209,CQ$1))","v":""},{"$f":"IF($A209=\"N/A\",Ref!$B$36,INDEX(Ranks!$1:$1048576,$A209,CR$1))","v":""},{"$f":"IF($A209=\"N/A\",Ref!$B$36,INDEX(Ranks!$1:$1048576,$A209,CS$1))","v":""},{"$f":"IF($A209=\"N/A\",Ref!$B$36,INDEX(Ranks!$1:$1048576,$A209,CT$1))","v":""},{"$f":"IF($A209=\"N/A\",Ref!$B$36,INDEX(Ranks!$1:$1048576,$A209,CU$1))","v":""},{"$f":"IF($A209=\"N/A\",Ref!$B$36,INDEX(Ranks!$1:$1048576,$A209,CV$1))","v":""},{"$f":"IF($A209=\"N/A\",Ref!$B$36,INDEX(Ranks!$1:$1048576,$A209,CW$1))","v":""},{"$f":"IF($A209=\"N/A\",Ref!$B$36,INDEX(Ranks!$1:$1048576,$A209,CX$1))","v":""},{"$f":"IF($A209=\"N/A\",Ref!$B$36,INDEX(Ranks!$1:$1048576,$A209,CY$1))","v":""},{"$f":"IF($A209=\"N/A\",Ref!$B$36,INDEX(Ranks!$1:$1048576,$A209,CZ$1))","v":""},{"$f":"IF($A209=\"N/A\",Ref!$B$36,INDEX(Ranks!$1:$1048576,$A209,DA$1))","v":""},{"$f":"IF($A209=\"N/A\",Ref!$B$36,INDEX(Ranks!$1:$1048576,$A209,DB$1))","v":""},{"$f":"IF($A209=\"N/A\",Ref!$B$36,INDEX(Ranks!$1:$1048576,$A209,DC$1))","v":""},{"$f":"IF($A209=\"N/A\",Ref!$B$36,INDEX(Ranks!$1:$1048576,$A209,DD$1))","v":""},{"$f":"IF($A209=\"N/A\",Ref!$B$36,INDEX(Ranks!$1:$1048576,$A209,DE$1))","v":""},{"$f":"IF($A209=\"N/A\",Ref!$B$36,INDEX(Ranks!$1:$1048576,$A209,DF$1))","v":""},{"$f":"IF($A209=\"N/A\",Ref!$B$36,INDEX(Ranks!$1:$1048576,$A209,DG$1))","v":""},{"$f":"IF($A209=\"N/A\",Ref!$B$36,INDEX(Ranks!$1:$1048576,$A209,DH$1))","v":""},{"$f":"IF($A209=\"N/A\",Ref!$B$36,INDEX(Ranks!$1:$1048576,$A209,DI$1))","v":""},{"$f":"IF($A209=\"N/A\",Ref!$B$36,INDEX(Ranks!$1:$1048576,$A209,DJ$1))","v":""},{"$f":"IF($A209=\"N/A\",Ref!$B$36,INDEX(Ranks!$1:$1048576,$A209,DK$1))","v":""},{"$f":"IF($A209=\"N/A\",Ref!$B$36,INDEX(Ranks!$1:$1048576,$A209,DL$1))","v":""},{"$f":"IF($A209=\"N/A\",Ref!$B$36,INDEX(Ranks!$1:$1048576,$A209,DM$1))","v":""},{"$f":"IF($A209=\"N/A\",Ref!$B$36,INDEX(Ranks!$1:$1048576,$A209,DN$1))","v":""},{"$f":"IF($A209=\"N/A\",Ref!$B$36,INDEX(Ranks!$1:$1048576,$A209,DO$1))","v":""},{"$f":"IF($A209=\"N/A\",Ref!$B$36,INDEX(Ranks!$1:$1048576,$A209,DP$1))","v":""},{"$f":"IF($A209=\"N/A\",Ref!$B$36,INDEX(Ranks!$1:$1048576,$A209,DQ$1))","v":""},{"$f":"IF($A209=\"N/A\",Ref!$B$36,INDEX(Ranks!$1:$1048576,$A209,DR$1))","v":""},{"$f":"IF($A209=\"N/A\",Ref!$B$36,INDEX(Ranks!$1:$1048576,$A209,DS$1))","v":""},{"$f":"IF($A209=\"N/A\",Ref!$B$36,INDEX(Ranks!$1:$1048576,$A209,DT$1))","v":""},{"$f":"IF($A209=\"N/A\",Ref!$B$36,INDEX(Ranks!$1:$1048576,$A209,DU$1))","v":""},{"$f":"IF($A209=\"N/A\",Ref!$B$36,INDEX(Ranks!$1:$1048576,$A209,DV$1))","v":""},{"$f":"IF($A209=\"N/A\",Ref!$B$36,INDEX(Ranks!$1:$1048576,$A209,DW$1))","v":""},{"$f":"IF($A209=\"N/A\",Ref!$B$36,INDEX(Ranks!$1:$1048576,$A209,DX$1))","v":""},{"$f":"IF($A209=\"N/A\",Ref!$B$36,INDEX(Ranks!$1:$1048576,$A209,DY$1))","v":""},{"$f":"IF($A209=\"N/A\",Ref!$B$36,INDEX(Ranks!$1:$1048576,$A209,DZ$1))","v":""},{"$f":"IF($A209=\"N/A\",Ref!$B$36,INDEX(Ranks!$1:$1048576,$A209,EA$1))","v":""},{"$f":"IF($A209=\"N/A\",Ref!$B$36,INDEX(Ranks!$1:$1048576,$A209,EB$1))","v":""}]
[{"$f":"IFERROR(MATCH('Portfolio Page'!L210,Ranks!L:L,0),\"N/A\")","v":"N/A"},null,{"$f":"IF($A210=\"N/A\",\"\",INDEX(Ranks!$1:$1048576,$A210,C$1))","v":""},{"$f":"IF($A210=\"N/A\",Ref!$B$36,INDEX(Ranks!$1:$1048576,$A210,D$1))","v":""},{"$f":"IF($A210=\"N/A\",Ref!$B$36,INDEX(Ranks!$1:$1048576,$A210,E$1))","v":""},{"$f":"IF($A210=\"N/A\",\"\",INDEX(Ranks!$1:$1048576,$A210,F$1))","v":""},{"$f":"IF($A210=\"N/A\",\"\",INDEX(Ranks!$1:$1048576,$A210,G$1))","v":""},{"$f":"IF($A210=\"N/A\",\"\",INDEX(Ranks!$1:$1048576,$A210,H$1))","v":""},{"$f":"IF($A210=\"N/A\",\"\",INDEX(Ranks!$1:$1048576,$A210,I$1))","v":""},{"$f":"IF($A210=\"N/A\",\"\",INDEX(Ranks!$1:$1048576,$A210,J$1))","v":""},{"$f":"IF($A210=\"N/A\",\"\",INDEX(Ranks!$1:$1048576,$A210,K$1))","v":""},null,{"$f":"IF($A210=\"N/A\",Ref!$B$36,INDEX(Ranks!$1:$1048576,$A210,M$1))","v":""},{"$f":"IF($A210=\"N/A\",Ref!$B$36,INDEX(Ranks!$1:$1048576,$A210,N$1))","v":""},{"$f":"IF($A210=\"N/A\",Ref!$B$36,INDEX(Ranks!$1:$1048576,$A210,O$1))","v":""},{"$f":"IF($A210=\"N/A\",Ref!$B$36,INDEX(Ranks!$1:$1048576,$A210,P$1))","v":""},{"$f":"IF($A210=\"N/A\",Ref!$B$36,INDEX(Ranks!$1:$1048576,$A210,Q$1))","v":""},{"$f":"IF($A210=\"N/A\",Ref!$B$36,INDEX(Ranks!$1:$1048576,$A210,R$1))","v":""},{"$f":"IF($A210=\"N/A\",Ref!$B$36,INDEX(Ranks!$1:$1048576,$A210,S$1))","v":""},{"$f":"IF($A210=\"N/A\",Ref!$B$36,INDEX(Ranks!$1:$1048576,$A210,T$1))","v":""},{"$f":"IF($A210=\"N/A\",Ref!$B$36,INDEX(Ranks!$1:$1048576,$A210,U$1))","v":""},{"$f":"IF($A210=\"N/A\",Ref!$B$36,INDEX(Ranks!$1:$1048576,$A210,V$1))","v":""},{"$f":"IF($A210=\"N/A\",Ref!$B$36,INDEX(Ranks!$1:$1048576,$A210,W$1))","v":""},{"$f":"IF($A210=\"N/A\",Ref!$B$36,INDEX(Ranks!$1:$1048576,$A210,X$1))","v":""},{"$f":"IF($A210=\"N/A\",Ref!$B$36,INDEX(Ranks!$1:$1048576,$A210,Y$1))","v":""},{"$f":"IF($A210=\"N/A\",Ref!$B$36,INDEX(Ranks!$1:$1048576,$A210,Z$1))","v":""},{"$f":"IF($A210=\"N/A\",Ref!$B$36,INDEX(Ranks!$1:$1048576,$A210,AA$1))","v":""},{"$f":"IF($A210=\"N/A\",Ref!$B$36,INDEX(Ranks!$1:$1048576,$A210,AB$1))","v":""},{"$f":"IF($A210=\"N/A\",Ref!$B$36,INDEX(Ranks!$1:$1048576,$A210,AC$1))","v":""},{"$f":"IF($A210=\"N/A\",Ref!$B$36,INDEX(Ranks!$1:$1048576,$A210,AD$1))","v":""},{"$f":"IF($A210=\"N/A\",Ref!$B$36,INDEX(Ranks!$1:$1048576,$A210,AE$1))","v":""},{"$f":"IF($A210=\"N/A\",Ref!$B$36,INDEX(Ranks!$1:$1048576,$A210,AF$1))","v":""},{"$f":"IF($A210=\"N/A\",Ref!$B$36,INDEX(Ranks!$1:$1048576,$A210,AG$1))","v":""},{"$f":"IF($A210=\"N/A\",Ref!$B$36,INDEX(Ranks!$1:$1048576,$A210,AH$1))","v":""},{"$f":"IF($A210=\"N/A\",Ref!$B$36,INDEX(Ranks!$1:$1048576,$A210,AI$1))","v":""},{"$f":"IF($A210=\"N/A\",Ref!$B$36,INDEX(Ranks!$1:$1048576,$A210,AJ$1))","v":""},{"$f":"IF($A210=\"N/A\",Ref!$B$36,INDEX(Ranks!$1:$1048576,$A210,AK$1))","v":""},{"$f":"IF($A210=\"N/A\",Ref!$B$36,INDEX(Ranks!$1:$1048576,$A210,AL$1))","v":""},{"$f":"IF($A210=\"N/A\",Ref!$B$36,INDEX(Ranks!$1:$1048576,$A210,AM$1))","v":""},{"$f":"IF($A210=\"N/A\",Ref!$B$36,INDEX(Ranks!$1:$1048576,$A210,AN$1))","v":""},{"$f":"IF($A210=\"N/A\",Ref!$B$36,INDEX(Ranks!$1:$1048576,$A210,AO$1))","v":""},{"$f":"IF($A210=\"N/A\",Ref!$B$36,INDEX(Ranks!$1:$1048576,$A210,AP$1))","v":""},{"$f":"IF($A210=\"N/A\",Ref!$B$36,INDEX(Ranks!$1:$1048576,$A210,AQ$1))","v":""},{"$f":"IF($A210=\"N/A\",Ref!$B$36,INDEX(Ranks!$1:$1048576,$A210,AR$1))","v":""},{"$f":"IF($A210=\"N/A\",Ref!$B$36,INDEX(Ranks!$1:$1048576,$A210,AS$1))","v":""},{"$f":"IF($A210=\"N/A\",Ref!$B$36,INDEX(Ranks!$1:$1048576,$A210,AT$1))","v":""},{"$f":"IF($A210=\"N/A\",Ref!$B$36,INDEX(Ranks!$1:$1048576,$A210,AU$1))","v":""},{"$f":"IF($A210=\"N/A\",Ref!$B$36,INDEX(Ranks!$1:$1048576,$A210,AV$1))","v":""},{"$f":"IF($A210=\"N/A\",Ref!$B$36,INDEX(Ranks!$1:$1048576,$A210,AW$1))","v":""},{"$f":"IF($A210=\"N/A\",Ref!$B$36,INDEX(Ranks!$1:$1048576,$A210,AX$1))","v":""},{"$f":"IF($A210=\"N/A\",Ref!$B$36,INDEX(Ranks!$1:$1048576,$A210,AY$1))","v":""},{"$f":"IF($A210=\"N/A\",Ref!$B$36,INDEX(Ranks!$1:$1048576,$A210,AZ$1))","v":""},{"$f":"IF($A210=\"N/A\",Ref!$B$36,INDEX(Ranks!$1:$1048576,$A210,BA$1))","v":""},{"$f":"IF($A210=\"N/A\",Ref!$B$36,INDEX(Ranks!$1:$1048576,$A210,BB$1))","v":""},{"$f":"IF($A210=\"N/A\",Ref!$B$36,INDEX(Ranks!$1:$1048576,$A210,BC$1))","v":""},{"$f":"IF($A210=\"N/A\",Ref!$B$36,INDEX(Ranks!$1:$1048576,$A210,BD$1))","v":""},{"$f":"IF($A210=\"N/A\",Ref!$B$36,INDEX(Ranks!$1:$1048576,$A210,BE$1))","v":""},{"$f":"IF($A210=\"N/A\",Ref!$B$36,INDEX(Ranks!$1:$1048576,$A210,BF$1))","v":""},{"$f":"IF($A210=\"N/A\",Ref!$B$36,INDEX(Ranks!$1:$1048576,$A210,BG$1))","v":""},{"$f":"IF($A210=\"N/A\",Ref!$B$36,INDEX(Ranks!$1:$1048576,$A210,BH$1))","v":""},{"$f":"IF($A210=\"N/A\",Ref!$B$36,INDEX(Ranks!$1:$1048576,$A210,BI$1))","v":""},{"$f":"IF($A210=\"N/A\",Ref!$B$36,INDEX(Ranks!$1:$1048576,$A210,BJ$1))","v":""},{"$f":"IF($A210=\"N/A\",Ref!$B$36,INDEX(Ranks!$1:$1048576,$A210,BK$1))","v":""},{"$f":"IF($A210=\"N/A\",Ref!$B$36,INDEX(Ranks!$1:$1048576,$A210,BL$1))","v":""},{"$f":"IF($A210=\"N/A\",Ref!$B$36,INDEX(Ranks!$1:$1048576,$A210,BM$1))","v":""},{"$f":"IF($A210=\"N/A\",Ref!$B$36,INDEX(Ranks!$1:$1048576,$A210,BN$1))","v":""},{"$f":"IF($A210=\"N/A\",Ref!$B$36,INDEX(Ranks!$1:$1048576,$A210,BO$1))","v":""},{"$f":"IF($A210=\"N/A\",Ref!$B$36,INDEX(Ranks!$1:$1048576,$A210,BP$1))","v":""},{"$f":"IF($A210=\"N/A\",Ref!$B$36,INDEX(Ranks!$1:$1048576,$A210,BQ$1))","v":""},{"$f":"IF($A210=\"N/A\",Ref!$B$36,INDEX(Ranks!$1:$1048576,$A210,BR$1))","v":""},{"$f":"IF($A210=\"N/A\",Ref!$B$36,INDEX(Ranks!$1:$1048576,$A210,BS$1))","v":""},{"$f":"IF($A210=\"N/A\",Ref!$B$36,INDEX(Ranks!$1:$1048576,$A210,BT$1))","v":""},{"$f":"IF($A210=\"N/A\",Ref!$B$36,INDEX(Ranks!$1:$1048576,$A210,BU$1))","v":""},{"$f":"IF($A210=\"N/A\",Ref!$B$36,INDEX(Ranks!$1:$1048576,$A210,BV$1))","v":""},{"$f":"IF($A210=\"N/A\",Ref!$B$36,INDEX(Ranks!$1:$1048576,$A210,BW$1))","v":""},{"$f":"IF($A210=\"N/A\",Ref!$B$36,INDEX(Ranks!$1:$1048576,$A210,BX$1))","v":""},{"$f":"IF($A210=\"N/A\",Ref!$B$36,INDEX(Ranks!$1:$1048576,$A210,BY$1))","v":""},{"$f":"IF($A210=\"N/A\",Ref!$B$36,INDEX(Ranks!$1:$1048576,$A210,BZ$1))","v":""},{"$f":"IF($A210=\"N/A\",Ref!$B$36,INDEX(Ranks!$1:$1048576,$A210,CA$1))","v":""},{"$f":"IF($A210=\"N/A\",Ref!$B$36,INDEX(Ranks!$1:$1048576,$A210,CB$1))","v":""},{"$f":"IF($A210=\"N/A\",Ref!$B$36,INDEX(Ranks!$1:$1048576,$A210,CC$1))","v":""},{"$f":"IF($A210=\"N/A\",Ref!$B$36,INDEX(Ranks!$1:$1048576,$A210,CD$1))","v":""},{"$f":"IF($A210=\"N/A\",Ref!$B$36,INDEX(Ranks!$1:$1048576,$A210,CE$1))","v":""},{"$f":"IF($A210=\"N/A\",Ref!$B$36,INDEX(Ranks!$1:$1048576,$A210,CF$1))","v":""},{"$f":"IF($A210=\"N/A\",Ref!$B$36,INDEX(Ranks!$1:$1048576,$A210,CG$1))","v":""},{"$f":"IF($A210=\"N/A\",Ref!$B$36,INDEX(Ranks!$1:$1048576,$A210,CH$1))","v":""},{"$f":"IF($A210=\"N/A\",Ref!$B$36,INDEX(Ranks!$1:$1048576,$A210,CI$1))","v":""},{"$f":"IF($A210=\"N/A\",Ref!$B$36,INDEX(Ranks!$1:$1048576,$A210,CJ$1))","v":""},{"$f":"IF($A210=\"N/A\",Ref!$B$36,INDEX(Ranks!$1:$1048576,$A210,CK$1))","v":""},{"$f":"IF($A210=\"N/A\",Ref!$B$36,INDEX(Ranks!$1:$1048576,$A210,CL$1))","v":""},{"$f":"IF($A210=\"N/A\",Ref!$B$36,INDEX(Ranks!$1:$1048576,$A210,CM$1))","v":""},{"$f":"IF($A210=\"N/A\",Ref!$B$36,INDEX(Ranks!$1:$1048576,$A210,CN$1))","v":""},{"$f":"IF($A210=\"N/A\",Ref!$B$36,INDEX(Ranks!$1:$1048576,$A210,CO$1))","v":""},{"$f":"IF($A210=\"N/A\",Ref!$B$36,INDEX(Ranks!$1:$1048576,$A210,CP$1))","v":""},{"$f":"IF($A210=\"N/A\",Ref!$B$36,INDEX(Ranks!$1:$1048576,$A210,CQ$1))","v":""},{"$f":"IF($A210=\"N/A\",Ref!$B$36,INDEX(Ranks!$1:$1048576,$A210,CR$1))","v":""},{"$f":"IF($A210=\"N/A\",Ref!$B$36,INDEX(Ranks!$1:$1048576,$A210,CS$1))","v":""},{"$f":"IF($A210=\"N/A\",Ref!$B$36,INDEX(Ranks!$1:$1048576,$A210,CT$1))","v":""},{"$f":"IF($A210=\"N/A\",Ref!$B$36,INDEX(Ranks!$1:$1048576,$A210,CU$1))","v":""},{"$f":"IF($A210=\"N/A\",Ref!$B$36,INDEX(Ranks!$1:$1048576,$A210,CV$1))","v":""},{"$f":"IF($A210=\"N/A\",Ref!$B$36,INDEX(Ranks!$1:$1048576,$A210,CW$1))","v":""},{"$f":"IF($A210=\"N/A\",Ref!$B$36,INDEX(Ranks!$1:$1048576,$A210,CX$1))","v":""},{"$f":"IF($A210=\"N/A\",Ref!$B$36,INDEX(Ranks!$1:$1048576,$A210,CY$1))","v":""},{"$f":"IF($A210=\"N/A\",Ref!$B$36,INDEX(Ranks!$1:$1048576,$A210,CZ$1))","v":""},{"$f":"IF($A210=\"N/A\",Ref!$B$36,INDEX(Ranks!$1:$1048576,$A210,DA$1))","v":""},{"$f":"IF($A210=\"N/A\",Ref!$B$36,INDEX(Ranks!$1:$1048576,$A210,DB$1))","v":""},{"$f":"IF($A210=\"N/A\",Ref!$B$36,INDEX(Ranks!$1:$1048576,$A210,DC$1))","v":""},{"$f":"IF($A210=\"N/A\",Ref!$B$36,INDEX(Ranks!$1:$1048576,$A210,DD$1))","v":""},{"$f":"IF($A210=\"N/A\",Ref!$B$36,INDEX(Ranks!$1:$1048576,$A210,DE$1))","v":""},{"$f":"IF($A210=\"N/A\",Ref!$B$36,INDEX(Ranks!$1:$1048576,$A210,DF$1))","v":""},{"$f":"IF($A210=\"N/A\",Ref!$B$36,INDEX(Ranks!$1:$1048576,$A210,DG$1))","v":""},{"$f":"IF($A210=\"N/A\",Ref!$B$36,INDEX(Ranks!$1:$1048576,$A210,DH$1))","v":""},{"$f":"IF($A210=\"N/A\",Ref!$B$36,INDEX(Ranks!$1:$1048576,$A210,DI$1))","v":""},{"$f":"IF($A210=\"N/A\",Ref!$B$36,INDEX(Ranks!$1:$1048576,$A210,DJ$1))","v":""},{"$f":"IF($A210=\"N/A\",Ref!$B$36,INDEX(Ranks!$1:$1048576,$A210,DK$1))","v":""},{"$f":"IF($A210=\"N/A\",Ref!$B$36,INDEX(Ranks!$1:$1048576,$A210,DL$1))","v":""},{"$f":"IF($A210=\"N/A\",Ref!$B$36,INDEX(Ranks!$1:$1048576,$A210,DM$1))","v":""},{"$f":"IF($A210=\"N/A\",Ref!$B$36,INDEX(Ranks!$1:$1048576,$A210,DN$1))","v":""},{"$f":"IF($A210=\"N/A\",Ref!$B$36,INDEX(Ranks!$1:$1048576,$A210,DO$1))","v":""},{"$f":"IF($A210=\"N/A\",Ref!$B$36,INDEX(Ranks!$1:$1048576,$A210,DP$1))","v":""},{"$f":"IF($A210=\"N/A\",Ref!$B$36,INDEX(Ranks!$1:$1048576,$A210,DQ$1))","v":""},{"$f":"IF($A210=\"N/A\",Ref!$B$36,INDEX(Ranks!$1:$1048576,$A210,DR$1))","v":""},{"$f":"IF($A210=\"N/A\",Ref!$B$36,INDEX(Ranks!$1:$1048576,$A210,DS$1))","v":""},{"$f":"IF($A210=\"N/A\",Ref!$B$36,INDEX(Ranks!$1:$1048576,$A210,DT$1))","v":""},{"$f":"IF($A210=\"N/A\",Ref!$B$36,INDEX(Ranks!$1:$1048576,$A210,DU$1))","v":""},{"$f":"IF($A210=\"N/A\",Ref!$B$36,INDEX(Ranks!$1:$1048576,$A210,DV$1))","v":""},{"$f":"IF($A210=\"N/A\",Ref!$B$36,INDEX(Ranks!$1:$1048576,$A210,DW$1))","v":""},{"$f":"IF($A210=\"N/A\",Ref!$B$36,INDEX(Ranks!$1:$1048576,$A210,DX$1))","v":""},{"$f":"IF($A210=\"N/A\",Ref!$B$36,INDEX(Ranks!$1:$1048576,$A210,DY$1))","v":""},{"$f":"IF($A210=\"N/A\",Ref!$B$36,INDEX(Ranks!$1:$1048576,$A210,DZ$1))","v":""},{"$f":"IF($A210=\"N/A\",Ref!$B$36,INDEX(Ranks!$1:$1048576,$A210,EA$1))","v":""},{"$f":"IF($A210=\"N/A\",Ref!$B$36,INDEX(Ranks!$1:$1048576,$A210,EB$1))","v":""}]
[{"$f":"IFERROR(MATCH('Portfolio Page'!L211,Ranks!L:L,0),\"N/A\")","v":"N/A"},null,{"$f":"IF($A211=\"N/A\",\"\",INDEX(Ranks!$1:$1048576,$A211,C$1))","v":""},{"$f":"IF($A211=\"N/A\",Ref!$B$36,INDEX(Ranks!$1:$1048576,$A211,D$1))","v":""},{"$f":"IF($A211=\"N/A\",Ref!$B$36,INDEX(Ranks!$1:$1048576,$A211,E$1))","v":""},{"$f":"IF($A211=\"N/A\",\"\",INDEX(Ranks!$1:$1048576,$A211,F$1))","v":""},{"$f":"IF($A211=\"N/A\",\"\",INDEX(Ranks!$1:$1048576,$A211,G$1))","v":""},{"$f":"IF($A211=\"N/A\",\"\",INDEX(Ranks!$1:$1048576,$A211,H$1))","v":""},{"$f":"IF($A211=\"N/A\",\"\",INDEX(Ranks!$1:$1048576,$A211,I$1))","v":""},{"$f":"IF($A211=\"N/A\",\"\",INDEX(Ranks!$1:$1048576,$A211,J$1))","v":""},{"$f":"IF($A211=\"N/A\",\"\",INDEX(Ranks!$1:$1048576,$A211,K$1))","v":""},null,{"$f":"IF($A211=\"N/A\",Ref!$B$36,INDEX(Ranks!$1:$1048576,$A211,M$1))","v":""},{"$f":"IF($A211=\"N/A\",Ref!$B$36,INDEX(Ranks!$1:$1048576,$A211,N$1))","v":""},{"$f":"IF($A211=\"N/A\",Ref!$B$36,INDEX(Ranks!$1:$1048576,$A211,O$1))","v":""},{"$f":"IF($A211=\"N/A\",Ref!$B$36,INDEX(Ranks!$1:$1048576,$A211,P$1))","v":""},{"$f":"IF($A211=\"N/A\",Ref!$B$36,INDEX(Ranks!$1:$1048576,$A211,Q$1))","v":""},{"$f":"IF($A211=\"N/A\",Ref!$B$36,INDEX(Ranks!$1:$1048576,$A211,R$1))","v":""},{"$f":"IF($A211=\"N/A\",Ref!$B$36,INDEX(Ranks!$1:$1048576,$A211,S$1))","v":""},{"$f":"IF($A211=\"N/A\",Ref!$B$36,INDEX(Ranks!$1:$1048576,$A211,T$1))","v":""},{"$f":"IF($A211=\"N/A\",Ref!$B$36,INDEX(Ranks!$1:$1048576,$A211,U$1))","v":""},{"$f":"IF($A211=\"N/A\",Ref!$B$36,INDEX(Ranks!$1:$1048576,$A211,V$1))","v":""},{"$f":"IF($A211=\"N/A\",Ref!$B$36,INDEX(Ranks!$1:$1048576,$A211,W$1))","v":""},{"$f":"IF($A211=\"N/A\",Ref!$B$36,INDEX(Ranks!$1:$1048576,$A211,X$1))","v":""},{"$f":"IF($A211=\"N/A\",Ref!$B$36,INDEX(Ranks!$1:$1048576,$A211,Y$1))","v":""},{"$f":"IF($A211=\"N/A\",Ref!$B$36,INDEX(Ranks!$1:$1048576,$A211,Z$1))","v":""},{"$f":"IF($A211=\"N/A\",Ref!$B$36,INDEX(Ranks!$1:$1048576,$A211,AA$1))","v":""},{"$f":"IF($A211=\"N/A\",Ref!$B$36,INDEX(Ranks!$1:$1048576,$A211,AB$1))","v":""},{"$f":"IF($A211=\"N/A\",Ref!$B$36,INDEX(Ranks!$1:$1048576,$A211,AC$1))","v":""},{"$f":"IF($A211=\"N/A\",Ref!$B$36,INDEX(Ranks!$1:$1048576,$A211,AD$1))","v":""},{"$f":"IF($A211=\"N/A\",Ref!$B$36,INDEX(Ranks!$1:$1048576,$A211,AE$1))","v":""},{"$f":"IF($A211=\"N/A\",Ref!$B$36,INDEX(Ranks!$1:$1048576,$A211,AF$1))","v":""},{"$f":"IF($A211=\"N/A\",Ref!$B$36,INDEX(Ranks!$1:$1048576,$A211,AG$1))","v":""},{"$f":"IF($A211=\"N/A\",Ref!$B$36,INDEX(Ranks!$1:$1048576,$A211,AH$1))","v":""},{"$f":"IF($A211=\"N/A\",Ref!$B$36,INDEX(Ranks!$1:$1048576,$A211,AI$1))","v":""},{"$f":"IF($A211=\"N/A\",Ref!$B$36,INDEX(Ranks!$1:$1048576,$A211,AJ$1))","v":""},{"$f":"IF($A211=\"N/A\",Ref!$B$36,INDEX(Ranks!$1:$1048576,$A211,AK$1))","v":""},{"$f":"IF($A211=\"N/A\",Ref!$B$36,INDEX(Ranks!$1:$1048576,$A211,AL$1))","v":""},{"$f":"IF($A211=\"N/A\",Ref!$B$36,INDEX(Ranks!$1:$1048576,$A211,AM$1))","v":""},{"$f":"IF($A211=\"N/A\",Ref!$B$36,INDEX(Ranks!$1:$1048576,$A211,AN$1))","v":""},{"$f":"IF($A211=\"N/A\",Ref!$B$36,INDEX(Ranks!$1:$1048576,$A211,AO$1))","v":""},{"$f":"IF($A211=\"N/A\",Ref!$B$36,INDEX(Ranks!$1:$1048576,$A211,AP$1))","v":""},{"$f":"IF($A211=\"N/A\",Ref!$B$36,INDEX(Ranks!$1:$1048576,$A211,AQ$1))","v":""},{"$f":"IF($A211=\"N/A\",Ref!$B$36,INDEX(Ranks!$1:$1048576,$A211,AR$1))","v":""},{"$f":"IF($A211=\"N/A\",Ref!$B$36,INDEX(Ranks!$1:$1048576,$A211,AS$1))","v":""},{"$f":"IF($A211=\"N/A\",Ref!$B$36,INDEX(Ranks!$1:$1048576,$A211,AT$1))","v":""},{"$f":"IF($A211=\"N/A\",Ref!$B$36,INDEX(Ranks!$1:$1048576,$A211,AU$1))","v":""},{"$f":"IF($A211=\"N/A\",Ref!$B$36,INDEX(Ranks!$1:$1048576,$A211,AV$1))","v":""},{"$f":"IF($A211=\"N/A\",Ref!$B$36,INDEX(Ranks!$1:$1048576,$A211,AW$1))","v":""},{"$f":"IF($A211=\"N/A\",Ref!$B$36,INDEX(Ranks!$1:$1048576,$A211,AX$1))","v":""},{"$f":"IF($A211=\"N/A\",Ref!$B$36,INDEX(Ranks!$1:$1048576,$A211,AY$1))","v":""},{"$f":"IF($A211=\"N/A\",Ref!$B$36,INDEX(Ranks!$1:$1048576,$A211,AZ$1))","v":""},{"$f":"IF($A211=\"N/A\",Ref!$B$36,INDEX(Ranks!$1:$1048576,$A211,BA$1))","v":""},{"$f":"IF($A211=\"N/A\",Ref!$B$36,INDEX(Ranks!$1:$1048576,$A211,BB$1))","v":""},{"$f":"IF($A211=\"N/A\",Ref!$B$36,INDEX(Ranks!$1:$1048576,$A211,BC$1))","v":""},{"$f":"IF($A211=\"N/A\",Ref!$B$36,INDEX(Ranks!$1:$1048576,$A211,BD$1))","v":""},{"$f":"IF($A211=\"N/A\",Ref!$B$36,INDEX(Ranks!$1:$1048576,$A211,BE$1))","v":""},{"$f":"IF($A211=\"N/A\",Ref!$B$36,INDEX(Ranks!$1:$1048576,$A211,BF$1))","v":""},{"$f":"IF($A211=\"N/A\",Ref!$B$36,INDEX(Ranks!$1:$1048576,$A211,BG$1))","v":""},{"$f":"IF($A211=\"N/A\",Ref!$B$36,INDEX(Ranks!$1:$1048576,$A211,BH$1))","v":""},{"$f":"IF($A211=\"N/A\",Ref!$B$36,INDEX(Ranks!$1:$1048576,$A211,BI$1))","v":""},{"$f":"IF($A211=\"N/A\",Ref!$B$36,INDEX(Ranks!$1:$1048576,$A211,BJ$1))","v":""},{"$f":"IF($A211=\"N/A\",Ref!$B$36,INDEX(Ranks!$1:$1048576,$A211,BK$1))","v":""},{"$f":"IF($A211=\"N/A\",Ref!$B$36,INDEX(Ranks!$1:$1048576,$A211,BL$1))","v":""},{"$f":"IF($A211=\"N/A\",Ref!$B$36,INDEX(Ranks!$1:$1048576,$A211,BM$1))","v":""},{"$f":"IF($A211=\"N/A\",Ref!$B$36,INDEX(Ranks!$1:$1048576,$A211,BN$1))","v":""},{"$f":"IF($A211=\"N/A\",Ref!$B$36,INDEX(Ranks!$1:$1048576,$A211,BO$1))","v":""},{"$f":"IF($A211=\"N/A\",Ref!$B$36,INDEX(Ranks!$1:$1048576,$A211,BP$1))","v":""},{"$f":"IF($A211=\"N/A\",Ref!$B$36,INDEX(Ranks!$1:$1048576,$A211,BQ$1))","v":""},{"$f":"IF($A211=\"N/A\",Ref!$B$36,INDEX(Ranks!$1:$1048576,$A211,BR$1))","v":""},{"$f":"IF($A211=\"N/A\",Ref!$B$36,INDEX(Ranks!$1:$1048576,$A211,BS$1))","v":""},{"$f":"IF($A211=\"N/A\",Ref!$B$36,INDEX(Ranks!$1:$1048576,$A211,BT$1))","v":""},{"$f":"IF($A211=\"N/A\",Ref!$B$36,INDEX(Ranks!$1:$1048576,$A211,BU$1))","v":""},{"$f":"IF($A211=\"N/A\",Ref!$B$36,INDEX(Ranks!$1:$1048576,$A211,BV$1))","v":""},{"$f":"IF($A211=\"N/A\",Ref!$B$36,INDEX(Ranks!$1:$1048576,$A211,BW$1))","v":""},{"$f":"IF($A211=\"N/A\",Ref!$B$36,INDEX(Ranks!$1:$1048576,$A211,BX$1))","v":""},{"$f":"IF($A211=\"N/A\",Ref!$B$36,INDEX(Ranks!$1:$1048576,$A211,BY$1))","v":""},{"$f":"IF($A211=\"N/A\",Ref!$B$36,INDEX(Ranks!$1:$1048576,$A211,BZ$1))","v":""},{"$f":"IF($A211=\"N/A\",Ref!$B$36,INDEX(Ranks!$1:$1048576,$A211,CA$1))","v":""},{"$f":"IF($A211=\"N/A\",Ref!$B$36,INDEX(Ranks!$1:$1048576,$A211,CB$1))","v":""},{"$f":"IF($A211=\"N/A\",Ref!$B$36,INDEX(Ranks!$1:$1048576,$A211,CC$1))","v":""},{"$f":"IF($A211=\"N/A\",Ref!$B$36,INDEX(Ranks!$1:$1048576,$A211,CD$1))","v":""},{"$f":"IF($A211=\"N/A\",Ref!$B$36,INDEX(Ranks!$1:$1048576,$A211,CE$1))","v":""},{"$f":"IF($A211=\"N/A\",Ref!$B$36,INDEX(Ranks!$1:$1048576,$A211,CF$1))","v":""},{"$f":"IF($A211=\"N/A\",Ref!$B$36,INDEX(Ranks!$1:$1048576,$A211,CG$1))","v":""},{"$f":"IF($A211=\"N/A\",Ref!$B$36,INDEX(Ranks!$1:$1048576,$A211,CH$1))","v":""},{"$f":"IF($A211=\"N/A\",Ref!$B$36,INDEX(Ranks!$1:$1048576,$A211,CI$1))","v":""},{"$f":"IF($A211=\"N/A\",Ref!$B$36,INDEX(Ranks!$1:$1048576,$A211,CJ$1))","v":""},{"$f":"IF($A211=\"N/A\",Ref!$B$36,INDEX(Ranks!$1:$1048576,$A211,CK$1))","v":""},{"$f":"IF($A211=\"N/A\",Ref!$B$36,INDEX(Ranks!$1:$1048576,$A211,CL$1))","v":""},{"$f":"IF($A211=\"N/A\",Ref!$B$36,INDEX(Ranks!$1:$1048576,$A211,CM$1))","v":""},{"$f":"IF($A211=\"N/A\",Ref!$B$36,INDEX(Ranks!$1:$1048576,$A211,CN$1))","v":""},{"$f":"IF($A211=\"N/A\",Ref!$B$36,INDEX(Ranks!$1:$1048576,$A211,CO$1))","v":""},{"$f":"IF($A211=\"N/A\",Ref!$B$36,INDEX(Ranks!$1:$1048576,$A211,CP$1))","v":""},{"$f":"IF($A211=\"N/A\",Ref!$B$36,INDEX(Ranks!$1:$1048576,$A211,CQ$1))","v":""},{"$f":"IF($A211=\"N/A\",Ref!$B$36,INDEX(Ranks!$1:$1048576,$A211,CR$1))","v":""},{"$f":"IF($A211=\"N/A\",Ref!$B$36,INDEX(Ranks!$1:$1048576,$A211,CS$1))","v":""},{"$f":"IF($A211=\"N/A\",Ref!$B$36,INDEX(Ranks!$1:$1048576,$A211,CT$1))","v":""},{"$f":"IF($A211=\"N/A\",Ref!$B$36,INDEX(Ranks!$1:$1048576,$A211,CU$1))","v":""},{"$f":"IF($A211=\"N/A\",Ref!$B$36,INDEX(Ranks!$1:$1048576,$A211,CV$1))","v":""},{"$f":"IF($A211=\"N/A\",Ref!$B$36,INDEX(Ranks!$1:$1048576,$A211,CW$1))","v":""},{"$f":"IF($A211=\"N/A\",Ref!$B$36,INDEX(Ranks!$1:$1048576,$A211,CX$1))","v":""},{"$f":"IF($A211=\"N/A\",Ref!$B$36,INDEX(Ranks!$1:$1048576,$A211,CY$1))","v":""},{"$f":"IF($A211=\"N/A\",Ref!$B$36,INDEX(Ranks!$1:$1048576,$A211,CZ$1))","v":""},{"$f":"IF($A211=\"N/A\",Ref!$B$36,INDEX(Ranks!$1:$1048576,$A211,DA$1))","v":""},{"$f":"IF($A211=\"N/A\",Ref!$B$36,INDEX(Ranks!$1:$1048576,$A211,DB$1))","v":""},{"$f":"IF($A211=\"N/A\",Ref!$B$36,INDEX(Ranks!$1:$1048576,$A211,DC$1))","v":""},{"$f":"IF($A211=\"N/A\",Ref!$B$36,INDEX(Ranks!$1:$1048576,$A211,DD$1))","v":""},{"$f":"IF($A211=\"N/A\",Ref!$B$36,INDEX(Ranks!$1:$1048576,$A211,DE$1))","v":""},{"$f":"IF($A211=\"N/A\",Ref!$B$36,INDEX(Ranks!$1:$1048576,$A211,DF$1))","v":""},{"$f":"IF($A211=\"N/A\",Ref!$B$36,INDEX(Ranks!$1:$1048576,$A211,DG$1))","v":""},{"$f":"IF($A211=\"N/A\",Ref!$B$36,INDEX(Ranks!$1:$1048576,$A211,DH$1))","v":""},{"$f":"IF($A211=\"N/A\",Ref!$B$36,INDEX(Ranks!$1:$1048576,$A211,DI$1))","v":""},{"$f":"IF($A211=\"N/A\",Ref!$B$36,INDEX(Ranks!$1:$1048576,$A211,DJ$1))","v":""},{"$f":"IF($A211=\"N/A\",Ref!$B$36,INDEX(Ranks!$1:$1048576,$A211,DK$1))","v":""},{"$f":"IF($A211=\"N/A\",Ref!$B$36,INDEX(Ranks!$1:$1048576,$A211,DL$1))","v":""},{"$f":"IF($A211=\"N/A\",Ref!$B$36,INDEX(Ranks!$1:$1048576,$A211,DM$1))","v":""},{"$f":"IF($A211=\"N/A\",Ref!$B$36,INDEX(Ranks!$1:$1048576,$A211,DN$1))","v":""},{"$f":"IF($A211=\"N/A\",Ref!$B$36,INDEX(Ranks!$1:$1048576,$A211,DO$1))","v":""},{"$f":"IF($A211=\"N/A\",Ref!$B$36,INDEX(Ranks!$1:$1048576,$A211,DP$1))","v":""},{"$f":"IF($A211=\"N/A\",Ref!$B$36,INDEX(Ranks!$1:$1048576,$A211,DQ$1))","v":""},{"$f":"IF($A211=\"N/A\",Ref!$B$36,INDEX(Ranks!$1:$1048576,$A211,DR$1))","v":""},{"$f":"IF($A211=\"N/A\",Ref!$B$36,INDEX(Ranks!$1:$1048576,$A211,DS$1))","v":""},{"$f":"IF($A211=\"N/A\",Ref!$B$36,INDEX(Ranks!$1:$1048576,$A211,DT$1))","v":""},{"$f":"IF($A211=\"N/A\",Ref!$B$36,INDEX(Ranks!$1:$1048576,$A211,DU$1))","v":""},{"$f":"IF($A211=\"N/A\",Ref!$B$36,INDEX(Ranks!$1:$1048576,$A211,DV$1))","v":""},{"$f":"IF($A211=\"N/A\",Ref!$B$36,INDEX(Ranks!$1:$1048576,$A211,DW$1))","v":""},{"$f":"IF($A211=\"N/A\",Ref!$B$36,INDEX(Ranks!$1:$1048576,$A211,DX$1))","v":""},{"$f":"IF($A211=\"N/A\",Ref!$B$36,INDEX(Ranks!$1:$1048576,$A211,DY$1))","v":""},{"$f":"IF($A211=\"N/A\",Ref!$B$36,INDEX(Ranks!$1:$1048576,$A211,DZ$1))","v":""},{"$f":"IF($A211=\"N/A\",Ref!$B$36,INDEX(Ranks!$1:$1048576,$A211,EA$1))","v":""},{"$f":"IF($A211=\"N/A\",Ref!$B$36,INDEX(Ranks!$1:$1048576,$A211,EB$1))","v":""}]
[{"$f":"IFERROR(MATCH('Portfolio Page'!L212,Ranks!L:L,0),\"N/A\")","v":"N/A"},null,{"$f":"IF($A212=\"N/A\",\"\",INDEX(Ranks!$1:$1048576,$A212,C$1))","v":""},{"$f":"IF($A212=\"N/A\",Ref!$B$36,INDEX(Ranks!$1:$1048576,$A212,D$1))","v":""},{"$f":"IF($A212=\"N/A\",Ref!$B$36,INDEX(Ranks!$1:$1048576,$A212,E$1))","v":""},{"$f":"IF($A212=\"N/A\",\"\",INDEX(Ranks!$1:$1048576,$A212,F$1))","v":""},{"$f":"IF($A212=\"N/A\",\"\",INDEX(Ranks!$1:$1048576,$A212,G$1))","v":""},{"$f":"IF($A212=\"N/A\",\"\",INDEX(Ranks!$1:$1048576,$A212,H$1))","v":""},{"$f":"IF($A212=\"N/A\",\"\",INDEX(Ranks!$1:$1048576,$A212,I$1))","v":""},{"$f":"IF($A212=\"N/A\",\"\",INDEX(Ranks!$1:$1048576,$A212,J$1))","v":""},{"$f":"IF($A212=\"N/A\",\"\",INDEX(Ranks!$1:$1048576,$A212,K$1))","v":""},null,{"$f":"IF($A212=\"N/A\",Ref!$B$36,INDEX(Ranks!$1:$1048576,$A212,M$1))","v":""},{"$f":"IF($A212=\"N/A\",Ref!$B$36,INDEX(Ranks!$1:$1048576,$A212,N$1))","v":""},{"$f":"IF($A212=\"N/A\",Ref!$B$36,INDEX(Ranks!$1:$1048576,$A212,O$1))","v":""},{"$f":"IF($A212=\"N/A\",Ref!$B$36,INDEX(Ranks!$1:$1048576,$A212,P$1))","v":""},{"$f":"IF($A212=\"N/A\",Ref!$B$36,INDEX(Ranks!$1:$1048576,$A212,Q$1))","v":""},{"$f":"IF($A212=\"N/A\",Ref!$B$36,INDEX(Ranks!$1:$1048576,$A212,R$1))","v":""},{"$f":"IF($A212=\"N/A\",Ref!$B$36,INDEX(Ranks!$1:$1048576,$A212,S$1))","v":""},{"$f":"IF($A212=\"N/A\",Ref!$B$36,INDEX(Ranks!$1:$1048576,$A212,T$1))","v":""},{"$f":"IF($A212=\"N/A\",Ref!$B$36,INDEX(Ranks!$1:$1048576,$A212,U$1))","v":""},{"$f":"IF($A212=\"N/A\",Ref!$B$36,INDEX(Ranks!$1:$1048576,$A212,V$1))","v":""},{"$f":"IF($A212=\"N/A\",Ref!$B$36,INDEX(Ranks!$1:$1048576,$A212,W$1))","v":""},{"$f":"IF($A212=\"N/A\",Ref!$B$36,INDEX(Ranks!$1:$1048576,$A212,X$1))","v":""},{"$f":"IF($A212=\"N/A\",Ref!$B$36,INDEX(Ranks!$1:$1048576,$A212,Y$1))","v":""},{"$f":"IF($A212=\"N/A\",Ref!$B$36,INDEX(Ranks!$1:$1048576,$A212,Z$1))","v":""},{"$f":"IF($A212=\"N/A\",Ref!$B$36,INDEX(Ranks!$1:$1048576,$A212,AA$1))","v":""},{"$f":"IF($A212=\"N/A\",Ref!$B$36,INDEX(Ranks!$1:$1048576,$A212,AB$1))","v":""},{"$f":"IF($A212=\"N/A\",Ref!$B$36,INDEX(Ranks!$1:$1048576,$A212,AC$1))","v":""},{"$f":"IF($A212=\"N/A\",Ref!$B$36,INDEX(Ranks!$1:$1048576,$A212,AD$1))","v":""},{"$f":"IF($A212=\"N/A\",Ref!$B$36,INDEX(Ranks!$1:$1048576,$A212,AE$1))","v":""},{"$f":"IF($A212=\"N/A\",Ref!$B$36,INDEX(Ranks!$1:$1048576,$A212,AF$1))","v":""},{"$f":"IF($A212=\"N/A\",Ref!$B$36,INDEX(Ranks!$1:$1048576,$A212,AG$1))","v":""},{"$f":"IF($A212=\"N/A\",Ref!$B$36,INDEX(Ranks!$1:$1048576,$A212,AH$1))","v":""},{"$f":"IF($A212=\"N/A\",Ref!$B$36,INDEX(Ranks!$1:$1048576,$A212,AI$1))","v":""},{"$f":"IF($A212=\"N/A\",Ref!$B$36,INDEX(Ranks!$1:$1048576,$A212,AJ$1))","v":""},{"$f":"IF($A212=\"N/A\",Ref!$B$36,INDEX(Ranks!$1:$1048576,$A212,AK$1))","v":""},{"$f":"IF($A212=\"N/A\",Ref!$B$36,INDEX(Ranks!$1:$1048576,$A212,AL$1))","v":""},{"$f":"IF($A212=\"N/A\",Ref!$B$36,INDEX(Ranks!$1:$1048576,$A212,AM$1))","v":""},{"$f":"IF($A212=\"N/A\",Ref!$B$36,INDEX(Ranks!$1:$1048576,$A212,AN$1))","v":""},{"$f":"IF($A212=\"N/A\",Ref!$B$36,INDEX(Ranks!$1:$1048576,$A212,AO$1))","v":""},{"$f":"IF($A212=\"N/A\",Ref!$B$36,INDEX(Ranks!$1:$1048576,$A212,AP$1))","v":""},{"$f":"IF($A212=\"N/A\",Ref!$B$36,INDEX(Ranks!$1:$1048576,$A212,AQ$1))","v":""},{"$f":"IF($A212=\"N/A\",Ref!$B$36,INDEX(Ranks!$1:$1048576,$A212,AR$1))","v":""},{"$f":"IF($A212=\"N/A\",Ref!$B$36,INDEX(Ranks!$1:$1048576,$A212,AS$1))","v":""},{"$f":"IF($A212=\"N/A\",Ref!$B$36,INDEX(Ranks!$1:$1048576,$A212,AT$1))","v":""},{"$f":"IF($A212=\"N/A\",Ref!$B$36,INDEX(Ranks!$1:$1048576,$A212,AU$1))","v":""},{"$f":"IF($A212=\"N/A\",Ref!$B$36,INDEX(Ranks!$1:$1048576,$A212,AV$1))","v":""},{"$f":"IF($A212=\"N/A\",Ref!$B$36,INDEX(Ranks!$1:$1048576,$A212,AW$1))","v":""},{"$f":"IF($A212=\"N/A\",Ref!$B$36,INDEX(Ranks!$1:$1048576,$A212,AX$1))","v":""},{"$f":"IF($A212=\"N/A\",Ref!$B$36,INDEX(Ranks!$1:$1048576,$A212,AY$1))","v":""},{"$f":"IF($A212=\"N/A\",Ref!$B$36,INDEX(Ranks!$1:$1048576,$A212,AZ$1))","v":""},{"$f":"IF($A212=\"N/A\",Ref!$B$36,INDEX(Ranks!$1:$1048576,$A212,BA$1))","v":""},{"$f":"IF($A212=\"N/A\",Ref!$B$36,INDEX(Ranks!$1:$1048576,$A212,BB$1))","v":""},{"$f":"IF($A212=\"N/A\",Ref!$B$36,INDEX(Ranks!$1:$1048576,$A212,BC$1))","v":""},{"$f":"IF($A212=\"N/A\",Ref!$B$36,INDEX(Ranks!$1:$1048576,$A212,BD$1))","v":""},{"$f":"IF($A212=\"N/A\",Ref!$B$36,INDEX(Ranks!$1:$1048576,$A212,BE$1))","v":""},{"$f":"IF($A212=\"N/A\",Ref!$B$36,INDEX(Ranks!$1:$1048576,$A212,BF$1))","v":""},{"$f":"IF($A212=\"N/A\",Ref!$B$36,INDEX(Ranks!$1:$1048576,$A212,BG$1))","v":""},{"$f":"IF($A212=\"N/A\",Ref!$B$36,INDEX(Ranks!$1:$1048576,$A212,BH$1))","v":""},{"$f":"IF($A212=\"N/A\",Ref!$B$36,INDEX(Ranks!$1:$1048576,$A212,BI$1))","v":""},{"$f":"IF($A212=\"N/A\",Ref!$B$36,INDEX(Ranks!$1:$1048576,$A212,BJ$1))","v":""},{"$f":"IF($A212=\"N/A\",Ref!$B$36,INDEX(Ranks!$1:$1048576,$A212,BK$1))","v":""},{"$f":"IF($A212=\"N/A\",Ref!$B$36,INDEX(Ranks!$1:$1048576,$A212,BL$1))","v":""},{"$f":"IF($A212=\"N/A\",Ref!$B$36,INDEX(Ranks!$1:$1048576,$A212,BM$1))","v":""},{"$f":"IF($A212=\"N/A\",Ref!$B$36,INDEX(Ranks!$1:$1048576,$A212,BN$1))","v":""},{"$f":"IF($A212=\"N/A\",Ref!$B$36,INDEX(Ranks!$1:$1048576,$A212,BO$1))","v":""},{"$f":"IF($A212=\"N/A\",Ref!$B$36,INDEX(Ranks!$1:$1048576,$A212,BP$1))","v":""},{"$f":"IF($A212=\"N/A\",Ref!$B$36,INDEX(Ranks!$1:$1048576,$A212,BQ$1))","v":""},{"$f":"IF($A212=\"N/A\",Ref!$B$36,INDEX(Ranks!$1:$1048576,$A212,BR$1))","v":""},{"$f":"IF($A212=\"N/A\",Ref!$B$36,INDEX(Ranks!$1:$1048576,$A212,BS$1))","v":""},{"$f":"IF($A212=\"N/A\",Ref!$B$36,INDEX(Ranks!$1:$1048576,$A212,BT$1))","v":""},{"$f":"IF($A212=\"N/A\",Ref!$B$36,INDEX(Ranks!$1:$1048576,$A212,BU$1))","v":""},{"$f":"IF($A212=\"N/A\",Ref!$B$36,INDEX(Ranks!$1:$1048576,$A212,BV$1))","v":""},{"$f":"IF($A212=\"N/A\",Ref!$B$36,INDEX(Ranks!$1:$1048576,$A212,BW$1))","v":""},{"$f":"IF($A212=\"N/A\",Ref!$B$36,INDEX(Ranks!$1:$1048576,$A212,BX$1))","v":""},{"$f":"IF($A212=\"N/A\",Ref!$B$36,INDEX(Ranks!$1:$1048576,$A212,BY$1))","v":""},{"$f":"IF($A212=\"N/A\",Ref!$B$36,INDEX(Ranks!$1:$1048576,$A212,BZ$1))","v":""},{"$f":"IF($A212=\"N/A\",Ref!$B$36,INDEX(Ranks!$1:$1048576,$A212,CA$1))","v":""},{"$f":"IF($A212=\"N/A\",Ref!$B$36,INDEX(Ranks!$1:$1048576,$A212,CB$1))","v":""},{"$f":"IF($A212=\"N/A\",Ref!$B$36,INDEX(Ranks!$1:$1048576,$A212,CC$1))","v":""},{"$f":"IF($A212=\"N/A\",Ref!$B$36,INDEX(Ranks!$1:$1048576,$A212,CD$1))","v":""},{"$f":"IF($A212=\"N/A\",Ref!$B$36,INDEX(Ranks!$1:$1048576,$A212,CE$1))","v":""},{"$f":"IF($A212=\"N/A\",Ref!$B$36,INDEX(Ranks!$1:$1048576,$A212,CF$1))","v":""},{"$f":"IF($A212=\"N/A\",Ref!$B$36,INDEX(Ranks!$1:$1048576,$A212,CG$1))","v":""},{"$f":"IF($A212=\"N/A\",Ref!$B$36,INDEX(Ranks!$1:$1048576,$A212,CH$1))","v":""},{"$f":"IF($A212=\"N/A\",Ref!$B$36,INDEX(Ranks!$1:$1048576,$A212,CI$1))","v":""},{"$f":"IF($A212=\"N/A\",Ref!$B$36,INDEX(Ranks!$1:$1048576,$A212,CJ$1))","v":""},{"$f":"IF($A212=\"N/A\",Ref!$B$36,INDEX(Ranks!$1:$1048576,$A212,CK$1))","v":""},{"$f":"IF($A212=\"N/A\",Ref!$B$36,INDEX(Ranks!$1:$1048576,$A212,CL$1))","v":""},{"$f":"IF($A212=\"N/A\",Ref!$B$36,INDEX(Ranks!$1:$1048576,$A212,CM$1))","v":""},{"$f":"IF($A212=\"N/A\",Ref!$B$36,INDEX(Ranks!$1:$1048576,$A212,CN$1))","v":""},{"$f":"IF($A212=\"N/A\",Ref!$B$36,INDEX(Ranks!$1:$1048576,$A212,CO$1))","v":""},{"$f":"IF($A212=\"N/A\",Ref!$B$36,INDEX(Ranks!$1:$1048576,$A212,CP$1))","v":""},{"$f":"IF($A212=\"N/A\",Ref!$B$36,INDEX(Ranks!$1:$1048576,$A212,CQ$1))","v":""},{"$f":"IF($A212=\"N/A\",Ref!$B$36,INDEX(Ranks!$1:$1048576,$A212,CR$1))","v":""},{"$f":"IF($A212=\"N/A\",Ref!$B$36,INDEX(Ranks!$1:$1048576,$A212,CS$1))","v":""},{"$f":"IF($A212=\"N/A\",Ref!$B$36,INDEX(Ranks!$1:$1048576,$A212,CT$1))","v":""},{"$f":"IF($A212=\"N/A\",Ref!$B$36,INDEX(Ranks!$1:$1048576,$A212,CU$1))","v":""},{"$f":"IF($A212=\"N/A\",Ref!$B$36,INDEX(Ranks!$1:$1048576,$A212,CV$1))","v":""},{"$f":"IF($A212=\"N/A\",Ref!$B$36,INDEX(Ranks!$1:$1048576,$A212,CW$1))","v":""},{"$f":"IF($A212=\"N/A\",Ref!$B$36,INDEX(Ranks!$1:$1048576,$A212,CX$1))","v":""},{"$f":"IF($A212=\"N/A\",Ref!$B$36,INDEX(Ranks!$1:$1048576,$A212,CY$1))","v":""},{"$f":"IF($A212=\"N/A\",Ref!$B$36,INDEX(Ranks!$1:$1048576,$A212,CZ$1))","v":""},{"$f":"IF($A212=\"N/A\",Ref!$B$36,INDEX(Ranks!$1:$1048576,$A212,DA$1))","v":""},{"$f":"IF($A212=\"N/A\",Ref!$B$36,INDEX(Ranks!$1:$1048576,$A212,DB$1))","v":""},{"$f":"IF($A212=\"N/A\",Ref!$B$36,INDEX(Ranks!$1:$1048576,$A212,DC$1))","v":""},{"$f":"IF($A212=\"N/A\",Ref!$B$36,INDEX(Ranks!$1:$1048576,$A212,DD$1))","v":""},{"$f":"IF($A212=\"N/A\",Ref!$B$36,INDEX(Ranks!$1:$1048576,$A212,DE$1))","v":""},{"$f":"IF($A212=\"N/A\",Ref!$B$36,INDEX(Ranks!$1:$1048576,$A212,DF$1))","v":""},{"$f":"IF($A212=\"N/A\",Ref!$B$36,INDEX(Ranks!$1:$1048576,$A212,DG$1))","v":""},{"$f":"IF($A212=\"N/A\",Ref!$B$36,INDEX(Ranks!$1:$1048576,$A212,DH$1))","v":""},{"$f":"IF($A212=\"N/A\",Ref!$B$36,INDEX(Ranks!$1:$1048576,$A212,DI$1))","v":""},{"$f":"IF($A212=\"N/A\",Ref!$B$36,INDEX(Ranks!$1:$1048576,$A212,DJ$1))","v":""},{"$f":"IF($A212=\"N/A\",Ref!$B$36,INDEX(Ranks!$1:$1048576,$A212,DK$1))","v":""},{"$f":"IF($A212=\"N/A\",Ref!$B$36,INDEX(Ranks!$1:$1048576,$A212,DL$1))","v":""},{"$f":"IF($A212=\"N/A\",Ref!$B$36,INDEX(Ranks!$1:$1048576,$A212,DM$1))","v":""},{"$f":"IF($A212=\"N/A\",Ref!$B$36,INDEX(Ranks!$1:$1048576,$A212,DN$1))","v":""},{"$f":"IF($A212=\"N/A\",Ref!$B$36,INDEX(Ranks!$1:$1048576,$A212,DO$1))","v":""},{"$f":"IF($A212=\"N/A\",Ref!$B$36,INDEX(Ranks!$1:$1048576,$A212,DP$1))","v":""},{"$f":"IF($A212=\"N/A\",Ref!$B$36,INDEX(Ranks!$1:$1048576,$A212,DQ$1))","v":""},{"$f":"IF($A212=\"N/A\",Ref!$B$36,INDEX(Ranks!$1:$1048576,$A212,DR$1))","v":""},{"$f":"IF($A212=\"N/A\",Ref!$B$36,INDEX(Ranks!$1:$1048576,$A212,DS$1))","v":""},{"$f":"IF($A212=\"N/A\",Ref!$B$36,INDEX(Ranks!$1:$1048576,$A212,DT$1))","v":""},{"$f":"IF($A212=\"N/A\",Ref!$B$36,INDEX(Ranks!$1:$1048576,$A212,DU$1))","v":""},{"$f":"IF($A212=\"N/A\",Ref!$B$36,INDEX(Ranks!$1:$1048576,$A212,DV$1))","v":""},{"$f":"IF($A212=\"N/A\",Ref!$B$36,INDEX(Ranks!$1:$1048576,$A212,DW$1))","v":""},{"$f":"IF($A212=\"N/A\",Ref!$B$36,INDEX(Ranks!$1:$1048576,$A212,DX$1))","v":""},{"$f":"IF($A212=\"N/A\",Ref!$B$36,INDEX(Ranks!$1:$1048576,$A212,DY$1))","v":""},{"$f":"IF($A212=\"N/A\",Ref!$B$36,INDEX(Ranks!$1:$1048576,$A212,DZ$1))","v":""},{"$f":"IF($A212=\"N/A\",Ref!$B$36,INDEX(Ranks!$1:$1048576,$A212,EA$1))","v":""},{"$f":"IF($A212=\"N/A\",Ref!$B$36,INDEX(Ranks!$1:$1048576,$A212,EB$1))","v":""}]
[{"$f":"IFERROR(MATCH('Portfolio Page'!L213,Ranks!L:L,0),\"N/A\")","v":"N/A"},null,{"$f":"IF($A213=\"N/A\",\"\",INDEX(Ranks!$1:$1048576,$A213,C$1))","v":""},{"$f":"IF($A213=\"N/A\",Ref!$B$36,INDEX(Ranks!$1:$1048576,$A213,D$1))","v":""},{"$f":"IF($A213=\"N/A\",Ref!$B$36,INDEX(Ranks!$1:$1048576,$A213,E$1))","v":""},{"$f":"IF($A213=\"N/A\",\"\",INDEX(Ranks!$1:$1048576,$A213,F$1))","v":""},{"$f":"IF($A213=\"N/A\",\"\",INDEX(Ranks!$1:$1048576,$A213,G$1))","v":""},{"$f":"IF($A213=\"N/A\",\"\",INDEX(Ranks!$1:$1048576,$A213,H$1))","v":""},{"$f":"IF($A213=\"N/A\",\"\",INDEX(Ranks!$1:$1048576,$A213,I$1))","v":""},{"$f":"IF($A213=\"N/A\",\"\",INDEX(Ranks!$1:$1048576,$A213,J$1))","v":""},{"$f":"IF($A213=\"N/A\",\"\",INDEX(Ranks!$1:$1048576,$A213,K$1))","v":""},null,{"$f":"IF($A213=\"N/A\",Ref!$B$36,INDEX(Ranks!$1:$1048576,$A213,M$1))","v":""},{"$f":"IF($A213=\"N/A\",Ref!$B$36,INDEX(Ranks!$1:$1048576,$A213,N$1))","v":""},{"$f":"IF($A213=\"N/A\",Ref!$B$36,INDEX(Ranks!$1:$1048576,$A213,O$1))","v":""},{"$f":"IF($A213=\"N/A\",Ref!$B$36,INDEX(Ranks!$1:$1048576,$A213,P$1))","v":""},{"$f":"IF($A213=\"N/A\",Ref!$B$36,INDEX(Ranks!$1:$1048576,$A213,Q$1))","v":""},{"$f":"IF($A213=\"N/A\",Ref!$B$36,INDEX(Ranks!$1:$1048576,$A213,R$1))","v":""},{"$f":"IF($A213=\"N/A\",Ref!$B$36,INDEX(Ranks!$1:$1048576,$A213,S$1))","v":""},{"$f":"IF($A213=\"N/A\",Ref!$B$36,INDEX(Ranks!$1:$1048576,$A213,T$1))","v":""},{"$f":"IF($A213=\"N/A\",Ref!$B$36,INDEX(Ranks!$1:$1048576,$A213,U$1))","v":""},{"$f":"IF($A213=\"N/A\",Ref!$B$36,INDEX(Ranks!$1:$1048576,$A213,V$1))","v":""},{"$f":"IF($A213=\"N/A\",Ref!$B$36,INDEX(Ranks!$1:$1048576,$A213,W$1))","v":""},{"$f":"IF($A213=\"N/A\",Ref!$B$36,INDEX(Ranks!$1:$1048576,$A213,X$1))","v":""},{"$f":"IF($A213=\"N/A\",Ref!$B$36,INDEX(Ranks!$1:$1048576,$A213,Y$1))","v":""},{"$f":"IF($A213=\"N/A\",Ref!$B$36,INDEX(Ranks!$1:$1048576,$A213,Z$1))","v":""},{"$f":"IF($A213=\"N/A\",Ref!$B$36,INDEX(Ranks!$1:$1048576,$A213,AA$1))","v":""},{"$f":"IF($A213=\"N/A\",Ref!$B$36,INDEX(Ranks!$1:$1048576,$A213,AB$1))","v":""},{"$f":"IF($A213=\"N/A\",Ref!$B$36,INDEX(Ranks!$1:$1048576,$A213,AC$1))","v":""},{"$f":"IF($A213=\"N/A\",Ref!$B$36,INDEX(Ranks!$1:$1048576,$A213,AD$1))","v":""},{"$f":"IF($A213=\"N/A\",Ref!$B$36,INDEX(Ranks!$1:$1048576,$A213,AE$1))","v":""},{"$f":"IF($A213=\"N/A\",Ref!$B$36,INDEX(Ranks!$1:$1048576,$A213,AF$1))","v":""},{"$f":"IF($A213=\"N/A\",Ref!$B$36,INDEX(Ranks!$1:$1048576,$A213,AG$1))","v":""},{"$f":"IF($A213=\"N/A\",Ref!$B$36,INDEX(Ranks!$1:$1048576,$A213,AH$1))","v":""},{"$f":"IF($A213=\"N/A\",Ref!$B$36,INDEX(Ranks!$1:$1048576,$A213,AI$1))","v":""},{"$f":"IF($A213=\"N/A\",Ref!$B$36,INDEX(Ranks!$1:$1048576,$A213,AJ$1))","v":""},{"$f":"IF($A213=\"N/A\",Ref!$B$36,INDEX(Ranks!$1:$1048576,$A213,AK$1))","v":""},{"$f":"IF($A213=\"N/A\",Ref!$B$36,INDEX(Ranks!$1:$1048576,$A213,AL$1))","v":""},{"$f":"IF($A213=\"N/A\",Ref!$B$36,INDEX(Ranks!$1:$1048576,$A213,AM$1))","v":""},{"$f":"IF($A213=\"N/A\",Ref!$B$36,INDEX(Ranks!$1:$1048576,$A213,AN$1))","v":""},{"$f":"IF($A213=\"N/A\",Ref!$B$36,INDEX(Ranks!$1:$1048576,$A213,AO$1))","v":""},{"$f":"IF($A213=\"N/A\",Ref!$B$36,INDEX(Ranks!$1:$1048576,$A213,AP$1))","v":""},{"$f":"IF($A213=\"N/A\",Ref!$B$36,INDEX(Ranks!$1:$1048576,$A213,AQ$1))","v":""},{"$f":"IF($A213=\"N/A\",Ref!$B$36,INDEX(Ranks!$1:$1048576,$A213,AR$1))","v":""},{"$f":"IF($A213=\"N/A\",Ref!$B$36,INDEX(Ranks!$1:$1048576,$A213,AS$1))","v":""},{"$f":"IF($A213=\"N/A\",Ref!$B$36,INDEX(Ranks!$1:$1048576,$A213,AT$1))","v":""},{"$f":"IF($A213=\"N/A\",Ref!$B$36,INDEX(Ranks!$1:$1048576,$A213,AU$1))","v":""},{"$f":"IF($A213=\"N/A\",Ref!$B$36,INDEX(Ranks!$1:$1048576,$A213,AV$1))","v":""},{"$f":"IF($A213=\"N/A\",Ref!$B$36,INDEX(Ranks!$1:$1048576,$A213,AW$1))","v":""},{"$f":"IF($A213=\"N/A\",Ref!$B$36,INDEX(Ranks!$1:$1048576,$A213,AX$1))","v":""},{"$f":"IF($A213=\"N/A\",Ref!$B$36,INDEX(Ranks!$1:$1048576,$A213,AY$1))","v":""},{"$f":"IF($A213=\"N/A\",Ref!$B$36,INDEX(Ranks!$1:$1048576,$A213,AZ$1))","v":""},{"$f":"IF($A213=\"N/A\",Ref!$B$36,INDEX(Ranks!$1:$1048576,$A213,BA$1))","v":""},{"$f":"IF($A213=\"N/A\",Ref!$B$36,INDEX(Ranks!$1:$1048576,$A213,BB$1))","v":""},{"$f":"IF($A213=\"N/A\",Ref!$B$36,INDEX(Ranks!$1:$1048576,$A213,BC$1))","v":""},{"$f":"IF($A213=\"N/A\",Ref!$B$36,INDEX(Ranks!$1:$1048576,$A213,BD$1))","v":""},{"$f":"IF($A213=\"N/A\",Ref!$B$36,INDEX(Ranks!$1:$1048576,$A213,BE$1))","v":""},{"$f":"IF($A213=\"N/A\",Ref!$B$36,INDEX(Ranks!$1:$1048576,$A213,BF$1))","v":""},{"$f":"IF($A213=\"N/A\",Ref!$B$36,INDEX(Ranks!$1:$1048576,$A213,BG$1))","v":""},{"$f":"IF($A213=\"N/A\",Ref!$B$36,INDEX(Ranks!$1:$1048576,$A213,BH$1))","v":""},{"$f":"IF($A213=\"N/A\",Ref!$B$36,INDEX(Ranks!$1:$1048576,$A213,BI$1))","v":""},{"$f":"IF($A213=\"N/A\",Ref!$B$36,INDEX(Ranks!$1:$1048576,$A213,BJ$1))","v":""},{"$f":"IF($A213=\"N/A\",Ref!$B$36,INDEX(Ranks!$1:$1048576,$A213,BK$1))","v":""},{"$f":"IF($A213=\"N/A\",Ref!$B$36,INDEX(Ranks!$1:$1048576,$A213,BL$1))","v":""},{"$f":"IF($A213=\"N/A\",Ref!$B$36,INDEX(Ranks!$1:$1048576,$A213,BM$1))","v":""},{"$f":"IF($A213=\"N/A\",Ref!$B$36,INDEX(Ranks!$1:$1048576,$A213,BN$1))","v":""},{"$f":"IF($A213=\"N/A\",Ref!$B$36,INDEX(Ranks!$1:$1048576,$A213,BO$1))","v":""},{"$f":"IF($A213=\"N/A\",Ref!$B$36,INDEX(Ranks!$1:$1048576,$A213,BP$1))","v":""},{"$f":"IF($A213=\"N/A\",Ref!$B$36,INDEX(Ranks!$1:$1048576,$A213,BQ$1))","v":""},{"$f":"IF($A213=\"N/A\",Ref!$B$36,INDEX(Ranks!$1:$1048576,$A213,BR$1))","v":""},{"$f":"IF($A213=\"N/A\",Ref!$B$36,INDEX(Ranks!$1:$1048576,$A213,BS$1))","v":""},{"$f":"IF($A213=\"N/A\",Ref!$B$36,INDEX(Ranks!$1:$1048576,$A213,BT$1))","v":""},{"$f":"IF($A213=\"N/A\",Ref!$B$36,INDEX(Ranks!$1:$1048576,$A213,BU$1))","v":""},{"$f":"IF($A213=\"N/A\",Ref!$B$36,INDEX(Ranks!$1:$1048576,$A213,BV$1))","v":""},{"$f":"IF($A213=\"N/A\",Ref!$B$36,INDEX(Ranks!$1:$1048576,$A213,BW$1))","v":""},{"$f":"IF($A213=\"N/A\",Ref!$B$36,INDEX(Ranks!$1:$1048576,$A213,BX$1))","v":""},{"$f":"IF($A213=\"N/A\",Ref!$B$36,INDEX(Ranks!$1:$1048576,$A213,BY$1))","v":""},{"$f":"IF($A213=\"N/A\",Ref!$B$36,INDEX(Ranks!$1:$1048576,$A213,BZ$1))","v":""},{"$f":"IF($A213=\"N/A\",Ref!$B$36,INDEX(Ranks!$1:$1048576,$A213,CA$1))","v":""},{"$f":"IF($A213=\"N/A\",Ref!$B$36,INDEX(Ranks!$1:$1048576,$A213,CB$1))","v":""},{"$f":"IF($A213=\"N/A\",Ref!$B$36,INDEX(Ranks!$1:$1048576,$A213,CC$1))","v":""},{"$f":"IF($A213=\"N/A\",Ref!$B$36,INDEX(Ranks!$1:$1048576,$A213,CD$1))","v":""},{"$f":"IF($A213=\"N/A\",Ref!$B$36,INDEX(Ranks!$1:$1048576,$A213,CE$1))","v":""},{"$f":"IF($A213=\"N/A\",Ref!$B$36,INDEX(Ranks!$1:$1048576,$A213,CF$1))","v":""},{"$f":"IF($A213=\"N/A\",Ref!$B$36,INDEX(Ranks!$1:$1048576,$A213,CG$1))","v":""},{"$f":"IF($A213=\"N/A\",Ref!$B$36,INDEX(Ranks!$1:$1048576,$A213,CH$1))","v":""},{"$f":"IF($A213=\"N/A\",Ref!$B$36,INDEX(Ranks!$1:$1048576,$A213,CI$1))","v":""},{"$f":"IF($A213=\"N/A\",Ref!$B$36,INDEX(Ranks!$1:$1048576,$A213,CJ$1))","v":""},{"$f":"IF($A213=\"N/A\",Ref!$B$36,INDEX(Ranks!$1:$1048576,$A213,CK$1))","v":""},{"$f":"IF($A213=\"N/A\",Ref!$B$36,INDEX(Ranks!$1:$1048576,$A213,CL$1))","v":""},{"$f":"IF($A213=\"N/A\",Ref!$B$36,INDEX(Ranks!$1:$1048576,$A213,CM$1))","v":""},{"$f":"IF($A213=\"N/A\",Ref!$B$36,INDEX(Ranks!$1:$1048576,$A213,CN$1))","v":""},{"$f":"IF($A213=\"N/A\",Ref!$B$36,INDEX(Ranks!$1:$1048576,$A213,CO$1))","v":""},{"$f":"IF($A213=\"N/A\",Ref!$B$36,INDEX(Ranks!$1:$1048576,$A213,CP$1))","v":""},{"$f":"IF($A213=\"N/A\",Ref!$B$36,INDEX(Ranks!$1:$1048576,$A213,CQ$1))","v":""},{"$f":"IF($A213=\"N/A\",Ref!$B$36,INDEX(Ranks!$1:$1048576,$A213,CR$1))","v":""},{"$f":"IF($A213=\"N/A\",Ref!$B$36,INDEX(Ranks!$1:$1048576,$A213,CS$1))","v":""},{"$f":"IF($A213=\"N/A\",Ref!$B$36,INDEX(Ranks!$1:$1048576,$A213,CT$1))","v":""},{"$f":"IF($A213=\"N/A\",Ref!$B$36,INDEX(Ranks!$1:$1048576,$A213,CU$1))","v":""},{"$f":"IF($A213=\"N/A\",Ref!$B$36,INDEX(Ranks!$1:$1048576,$A213,CV$1))","v":""},{"$f":"IF($A213=\"N/A\",Ref!$B$36,INDEX(Ranks!$1:$1048576,$A213,CW$1))","v":""},{"$f":"IF($A213=\"N/A\",Ref!$B$36,INDEX(Ranks!$1:$1048576,$A213,CX$1))","v":""},{"$f":"IF($A213=\"N/A\",Ref!$B$36,INDEX(Ranks!$1:$1048576,$A213,CY$1))","v":""},{"$f":"IF($A213=\"N/A\",Ref!$B$36,INDEX(Ranks!$1:$1048576,$A213,CZ$1))","v":""},{"$f":"IF($A213=\"N/A\",Ref!$B$36,INDEX(Ranks!$1:$1048576,$A213,DA$1))","v":""},{"$f":"IF($A213=\"N/A\",Ref!$B$36,INDEX(Ranks!$1:$1048576,$A213,DB$1))","v":""},{"$f":"IF($A213=\"N/A\",Ref!$B$36,INDEX(Ranks!$1:$1048576,$A213,DC$1))","v":""},{"$f":"IF($A213=\"N/A\",Ref!$B$36,INDEX(Ranks!$1:$1048576,$A213,DD$1))","v":""},{"$f":"IF($A213=\"N/A\",Ref!$B$36,INDEX(Ranks!$1:$1048576,$A213,DE$1))","v":""},{"$f":"IF($A213=\"N/A\",Ref!$B$36,INDEX(Ranks!$1:$1048576,$A213,DF$1))","v":""},{"$f":"IF($A213=\"N/A\",Ref!$B$36,INDEX(Ranks!$1:$1048576,$A213,DG$1))","v":""},{"$f":"IF($A213=\"N/A\",Ref!$B$36,INDEX(Ranks!$1:$1048576,$A213,DH$1))","v":""},{"$f":"IF($A213=\"N/A\",Ref!$B$36,INDEX(Ranks!$1:$1048576,$A213,DI$1))","v":""},{"$f":"IF($A213=\"N/A\",Ref!$B$36,INDEX(Ranks!$1:$1048576,$A213,DJ$1))","v":""},{"$f":"IF($A213=\"N/A\",Ref!$B$36,INDEX(Ranks!$1:$1048576,$A213,DK$1))","v":""},{"$f":"IF($A213=\"N/A\",Ref!$B$36,INDEX(Ranks!$1:$1048576,$A213,DL$1))","v":""},{"$f":"IF($A213=\"N/A\",Ref!$B$36,INDEX(Ranks!$1:$1048576,$A213,DM$1))","v":""},{"$f":"IF($A213=\"N/A\",Ref!$B$36,INDEX(Ranks!$1:$1048576,$A213,DN$1))","v":""},{"$f":"IF($A213=\"N/A\",Ref!$B$36,INDEX(Ranks!$1:$1048576,$A213,DO$1))","v":""},{"$f":"IF($A213=\"N/A\",Ref!$B$36,INDEX(Ranks!$1:$1048576,$A213,DP$1))","v":""},{"$f":"IF($A213=\"N/A\",Ref!$B$36,INDEX(Ranks!$1:$1048576,$A213,DQ$1))","v":""},{"$f":"IF($A213=\"N/A\",Ref!$B$36,INDEX(Ranks!$1:$1048576,$A213,DR$1))","v":""},{"$f":"IF($A213=\"N/A\",Ref!$B$36,INDEX(Ranks!$1:$1048576,$A213,DS$1))","v":""},{"$f":"IF($A213=\"N/A\",Ref!$B$36,INDEX(Ranks!$1:$1048576,$A213,DT$1))","v":""},{"$f":"IF($A213=\"N/A\",Ref!$B$36,INDEX(Ranks!$1:$1048576,$A213,DU$1))","v":""},{"$f":"IF($A213=\"N/A\",Ref!$B$36,INDEX(Ranks!$1:$1048576,$A213,DV$1))","v":""},{"$f":"IF($A213=\"N/A\",Ref!$B$36,INDEX(Ranks!$1:$1048576,$A213,DW$1))","v":""},{"$f":"IF($A213=\"N/A\",Ref!$B$36,INDEX(Ranks!$1:$1048576,$A213,DX$1))","v":""},{"$f":"IF($A213=\"N/A\",Ref!$B$36,INDEX(Ranks!$1:$1048576,$A213,DY$1))","v":""},{"$f":"IF($A213=\"N/A\",Ref!$B$36,INDEX(Ranks!$1:$1048576,$A213,DZ$1))","v":""},{"$f":"IF($A213=\"N/A\",Ref!$B$36,INDEX(Ranks!$1:$1048576,$A213,EA$1))","v":""},{"$f":"IF($A213=\"N/A\",Ref!$B$36,INDEX(Ranks!$1:$1048576,$A213,EB$1))","v":""}]
[{"$f":"IFERROR(MATCH('Portfolio Page'!L214,Ranks!L:L,0),\"N/A\")","v":"N/A"},null,{"$f":"IF($A214=\"N/A\",\"\",INDEX(Ranks!$1:$1048576,$A214,C$1))","v":""},{"$f":"IF($A214=\"N/A\",Ref!$B$36,INDEX(Ranks!$1:$1048576,$A214,D$1))","v":""},{"$f":"IF($A214=\"N/A\",Ref!$B$36,INDEX(Ranks!$1:$1048576,$A214,E$1))","v":""},{"$f":"IF($A214=\"N/A\",\"\",INDEX(Ranks!$1:$1048576,$A214,F$1))","v":""},{"$f":"IF($A214=\"N/A\",\"\",INDEX(Ranks!$1:$1048576,$A214,G$1))","v":""},{"$f":"IF($A214=\"N/A\",\"\",INDEX(Ranks!$1:$1048576,$A214,H$1))","v":""},{"$f":"IF($A214=\"N/A\",\"\",INDEX(Ranks!$1:$1048576,$A214,I$1))","v":""},{"$f":"IF($A214=\"N/A\",\"\",INDEX(Ranks!$1:$1048576,$A214,J$1))","v":""},{"$f":"IF($A214=\"N/A\",\"\",INDEX(Ranks!$1:$1048576,$A214,K$1))","v":""},null,{"$f":"IF($A214=\"N/A\",Ref!$B$36,INDEX(Ranks!$1:$1048576,$A214,M$1))","v":""},{"$f":"IF($A214=\"N/A\",Ref!$B$36,INDEX(Ranks!$1:$1048576,$A214,N$1))","v":""},{"$f":"IF($A214=\"N/A\",Ref!$B$36,INDEX(Ranks!$1:$1048576,$A214,O$1))","v":""},{"$f":"IF($A214=\"N/A\",Ref!$B$36,INDEX(Ranks!$1:$1048576,$A214,P$1))","v":""},{"$f":"IF($A214=\"N/A\",Ref!$B$36,INDEX(Ranks!$1:$1048576,$A214,Q$1))","v":""},{"$f":"IF($A214=\"N/A\",Ref!$B$36,INDEX(Ranks!$1:$1048576,$A214,R$1))","v":""},{"$f":"IF($A214=\"N/A\",Ref!$B$36,INDEX(Ranks!$1:$1048576,$A214,S$1))","v":""},{"$f":"IF($A214=\"N/A\",Ref!$B$36,INDEX(Ranks!$1:$1048576,$A214,T$1))","v":""},{"$f":"IF($A214=\"N/A\",Ref!$B$36,INDEX(Ranks!$1:$1048576,$A214,U$1))","v":""},{"$f":"IF($A214=\"N/A\",Ref!$B$36,INDEX(Ranks!$1:$1048576,$A214,V$1))","v":""},{"$f":"IF($A214=\"N/A\",Ref!$B$36,INDEX(Ranks!$1:$1048576,$A214,W$1))","v":""},{"$f":"IF($A214=\"N/A\",Ref!$B$36,INDEX(Ranks!$1:$1048576,$A214,X$1))","v":""},{"$f":"IF($A214=\"N/A\",Ref!$B$36,INDEX(Ranks!$1:$1048576,$A214,Y$1))","v":""},{"$f":"IF($A214=\"N/A\",Ref!$B$36,INDEX(Ranks!$1:$1048576,$A214,Z$1))","v":""},{"$f":"IF($A214=\"N/A\",Ref!$B$36,INDEX(Ranks!$1:$1048576,$A214,AA$1))","v":""},{"$f":"IF($A214=\"N/A\",Ref!$B$36,INDEX(Ranks!$1:$1048576,$A214,AB$1))","v":""},{"$f":"IF($A214=\"N/A\",Ref!$B$36,INDEX(Ranks!$1:$1048576,$A214,AC$1))","v":""},{"$f":"IF($A214=\"N/A\",Ref!$B$36,INDEX(Ranks!$1:$1048576,$A214,AD$1))","v":""},{"$f":"IF($A214=\"N/A\",Ref!$B$36,INDEX(Ranks!$1:$1048576,$A214,AE$1))","v":""},{"$f":"IF($A214=\"N/A\",Ref!$B$36,INDEX(Ranks!$1:$1048576,$A214,AF$1))","v":""},{"$f":"IF($A214=\"N/A\",Ref!$B$36,INDEX(Ranks!$1:$1048576,$A214,AG$1))","v":""},{"$f":"IF($A214=\"N/A\",Ref!$B$36,INDEX(Ranks!$1:$1048576,$A214,AH$1))","v":""},{"$f":"IF($A214=\"N/A\",Ref!$B$36,INDEX(Ranks!$1:$1048576,$A214,AI$1))","v":""},{"$f":"IF($A214=\"N/A\",Ref!$B$36,INDEX(Ranks!$1:$1048576,$A214,AJ$1))","v":""},{"$f":"IF($A214=\"N/A\",Ref!$B$36,INDEX(Ranks!$1:$1048576,$A214,AK$1))","v":""},{"$f":"IF($A214=\"N/A\",Ref!$B$36,INDEX(Ranks!$1:$1048576,$A214,AL$1))","v":""},{"$f":"IF($A214=\"N/A\",Ref!$B$36,INDEX(Ranks!$1:$1048576,$A214,AM$1))","v":""},{"$f":"IF($A214=\"N/A\",Ref!$B$36,INDEX(Ranks!$1:$1048576,$A214,AN$1))","v":""},{"$f":"IF($A214=\"N/A\",Ref!$B$36,INDEX(Ranks!$1:$1048576,$A214,AO$1))","v":""},{"$f":"IF($A214=\"N/A\",Ref!$B$36,INDEX(Ranks!$1:$1048576,$A214,AP$1))","v":""},{"$f":"IF($A214=\"N/A\",Ref!$B$36,INDEX(Ranks!$1:$1048576,$A214,AQ$1))","v":""},{"$f":"IF($A214=\"N/A\",Ref!$B$36,INDEX(Ranks!$1:$1048576,$A214,AR$1))","v":""},{"$f":"IF($A214=\"N/A\",Ref!$B$36,INDEX(Ranks!$1:$1048576,$A214,AS$1))","v":""},{"$f":"IF($A214=\"N/A\",Ref!$B$36,INDEX(Ranks!$1:$1048576,$A214,AT$1))","v":""},{"$f":"IF($A214=\"N/A\",Ref!$B$36,INDEX(Ranks!$1:$1048576,$A214,AU$1))","v":""},{"$f":"IF($A214=\"N/A\",Ref!$B$36,INDEX(Ranks!$1:$1048576,$A214,AV$1))","v":""},{"$f":"IF($A214=\"N/A\",Ref!$B$36,INDEX(Ranks!$1:$1048576,$A214,AW$1))","v":""},{"$f":"IF($A214=\"N/A\",Ref!$B$36,INDEX(Ranks!$1:$1048576,$A214,AX$1))","v":""},{"$f":"IF($A214=\"N/A\",Ref!$B$36,INDEX(Ranks!$1:$1048576,$A214,AY$1))","v":""},{"$f":"IF($A214=\"N/A\",Ref!$B$36,INDEX(Ranks!$1:$1048576,$A214,AZ$1))","v":""},{"$f":"IF($A214=\"N/A\",Ref!$B$36,INDEX(Ranks!$1:$1048576,$A214,BA$1))","v":""},{"$f":"IF($A214=\"N/A\",Ref!$B$36,INDEX(Ranks!$1:$1048576,$A214,BB$1))","v":""},{"$f":"IF($A214=\"N/A\",Ref!$B$36,INDEX(Ranks!$1:$1048576,$A214,BC$1))","v":""},{"$f":"IF($A214=\"N/A\",Ref!$B$36,INDEX(Ranks!$1:$1048576,$A214,BD$1))","v":""},{"$f":"IF($A214=\"N/A\",Ref!$B$36,INDEX(Ranks!$1:$1048576,$A214,BE$1))","v":""},{"$f":"IF($A214=\"N/A\",Ref!$B$36,INDEX(Ranks!$1:$1048576,$A214,BF$1))","v":""},{"$f":"IF($A214=\"N/A\",Ref!$B$36,INDEX(Ranks!$1:$1048576,$A214,BG$1))","v":""},{"$f":"IF($A214=\"N/A\",Ref!$B$36,INDEX(Ranks!$1:$1048576,$A214,BH$1))","v":""},{"$f":"IF($A214=\"N/A\",Ref!$B$36,INDEX(Ranks!$1:$1048576,$A214,BI$1))","v":""},{"$f":"IF($A214=\"N/A\",Ref!$B$36,INDEX(Ranks!$1:$1048576,$A214,BJ$1))","v":""},{"$f":"IF($A214=\"N/A\",Ref!$B$36,INDEX(Ranks!$1:$1048576,$A214,BK$1))","v":""},{"$f":"IF($A214=\"N/A\",Ref!$B$36,INDEX(Ranks!$1:$1048576,$A214,BL$1))","v":""},{"$f":"IF($A214=\"N/A\",Ref!$B$36,INDEX(Ranks!$1:$1048576,$A214,BM$1))","v":""},{"$f":"IF($A214=\"N/A\",Ref!$B$36,INDEX(Ranks!$1:$1048576,$A214,BN$1))","v":""},{"$f":"IF($A214=\"N/A\",Ref!$B$36,INDEX(Ranks!$1:$1048576,$A214,BO$1))","v":""},{"$f":"IF($A214=\"N/A\",Ref!$B$36,INDEX(Ranks!$1:$1048576,$A214,BP$1))","v":""},{"$f":"IF($A214=\"N/A\",Ref!$B$36,INDEX(Ranks!$1:$1048576,$A214,BQ$1))","v":""},{"$f":"IF($A214=\"N/A\",Ref!$B$36,INDEX(Ranks!$1:$1048576,$A214,BR$1))","v":""},{"$f":"IF($A214=\"N/A\",Ref!$B$36,INDEX(Ranks!$1:$1048576,$A214,BS$1))","v":""},{"$f":"IF($A214=\"N/A\",Ref!$B$36,INDEX(Ranks!$1:$1048576,$A214,BT$1))","v":""},{"$f":"IF($A214=\"N/A\",Ref!$B$36,INDEX(Ranks!$1:$1048576,$A214,BU$1))","v":""},{"$f":"IF($A214=\"N/A\",Ref!$B$36,INDEX(Ranks!$1:$1048576,$A214,BV$1))","v":""},{"$f":"IF($A214=\"N/A\",Ref!$B$36,INDEX(Ranks!$1:$1048576,$A214,BW$1))","v":""},{"$f":"IF($A214=\"N/A\",Ref!$B$36,INDEX(Ranks!$1:$1048576,$A214,BX$1))","v":""},{"$f":"IF($A214=\"N/A\",Ref!$B$36,INDEX(Ranks!$1:$1048576,$A214,BY$1))","v":""},{"$f":"IF($A214=\"N/A\",Ref!$B$36,INDEX(Ranks!$1:$1048576,$A214,BZ$1))","v":""},{"$f":"IF($A214=\"N/A\",Ref!$B$36,INDEX(Ranks!$1:$1048576,$A214,CA$1))","v":""},{"$f":"IF($A214=\"N/A\",Ref!$B$36,INDEX(Ranks!$1:$1048576,$A214,CB$1))","v":""},{"$f":"IF($A214=\"N/A\",Ref!$B$36,INDEX(Ranks!$1:$1048576,$A214,CC$1))","v":""},{"$f":"IF($A214=\"N/A\",Ref!$B$36,INDEX(Ranks!$1:$1048576,$A214,CD$1))","v":""},{"$f":"IF($A214=\"N/A\",Ref!$B$36,INDEX(Ranks!$1:$1048576,$A214,CE$1))","v":""},{"$f":"IF($A214=\"N/A\",Ref!$B$36,INDEX(Ranks!$1:$1048576,$A214,CF$1))","v":""},{"$f":"IF($A214=\"N/A\",Ref!$B$36,INDEX(Ranks!$1:$1048576,$A214,CG$1))","v":""},{"$f":"IF($A214=\"N/A\",Ref!$B$36,INDEX(Ranks!$1:$1048576,$A214,CH$1))","v":""},{"$f":"IF($A214=\"N/A\",Ref!$B$36,INDEX(Ranks!$1:$1048576,$A214,CI$1))","v":""},{"$f":"IF($A214=\"N/A\",Ref!$B$36,INDEX(Ranks!$1:$1048576,$A214,CJ$1))","v":""},{"$f":"IF($A214=\"N/A\",Ref!$B$36,INDEX(Ranks!$1:$1048576,$A214,CK$1))","v":""},{"$f":"IF($A214=\"N/A\",Ref!$B$36,INDEX(Ranks!$1:$1048576,$A214,CL$1))","v":""},{"$f":"IF($A214=\"N/A\",Ref!$B$36,INDEX(Ranks!$1:$1048576,$A214,CM$1))","v":""},{"$f":"IF($A214=\"N/A\",Ref!$B$36,INDEX(Ranks!$1:$1048576,$A214,CN$1))","v":""},{"$f":"IF($A214=\"N/A\",Ref!$B$36,INDEX(Ranks!$1:$1048576,$A214,CO$1))","v":""},{"$f":"IF($A214=\"N/A\",Ref!$B$36,INDEX(Ranks!$1:$1048576,$A214,CP$1))","v":""},{"$f":"IF($A214=\"N/A\",Ref!$B$36,INDEX(Ranks!$1:$1048576,$A214,CQ$1))","v":""},{"$f":"IF($A214=\"N/A\",Ref!$B$36,INDEX(Ranks!$1:$1048576,$A214,CR$1))","v":""},{"$f":"IF($A214=\"N/A\",Ref!$B$36,INDEX(Ranks!$1:$1048576,$A214,CS$1))","v":""},{"$f":"IF($A214=\"N/A\",Ref!$B$36,INDEX(Ranks!$1:$1048576,$A214,CT$1))","v":""},{"$f":"IF($A214=\"N/A\",Ref!$B$36,INDEX(Ranks!$1:$1048576,$A214,CU$1))","v":""},{"$f":"IF($A214=\"N/A\",Ref!$B$36,INDEX(Ranks!$1:$1048576,$A214,CV$1))","v":""},{"$f":"IF($A214=\"N/A\",Ref!$B$36,INDEX(Ranks!$1:$1048576,$A214,CW$1))","v":""},{"$f":"IF($A214=\"N/A\",Ref!$B$36,INDEX(Ranks!$1:$1048576,$A214,CX$1))","v":""},{"$f":"IF($A214=\"N/A\",Ref!$B$36,INDEX(Ranks!$1:$1048576,$A214,CY$1))","v":""},{"$f":"IF($A214=\"N/A\",Ref!$B$36,INDEX(Ranks!$1:$1048576,$A214,CZ$1))","v":""},{"$f":"IF($A214=\"N/A\",Ref!$B$36,INDEX(Ranks!$1:$1048576,$A214,DA$1))","v":""},{"$f":"IF($A214=\"N/A\",Ref!$B$36,INDEX(Ranks!$1:$1048576,$A214,DB$1))","v":""},{"$f":"IF($A214=\"N/A\",Ref!$B$36,INDEX(Ranks!$1:$1048576,$A214,DC$1))","v":""},{"$f":"IF($A214=\"N/A\",Ref!$B$36,INDEX(Ranks!$1:$1048576,$A214,DD$1))","v":""},{"$f":"IF($A214=\"N/A\",Ref!$B$36,INDEX(Ranks!$1:$1048576,$A214,DE$1))","v":""},{"$f":"IF($A214=\"N/A\",Ref!$B$36,INDEX(Ranks!$1:$1048576,$A214,DF$1))","v":""},{"$f":"IF($A214=\"N/A\",Ref!$B$36,INDEX(Ranks!$1:$1048576,$A214,DG$1))","v":""},{"$f":"IF($A214=\"N/A\",Ref!$B$36,INDEX(Ranks!$1:$1048576,$A214,DH$1))","v":""},{"$f":"IF($A214=\"N/A\",Ref!$B$36,INDEX(Ranks!$1:$1048576,$A214,DI$1))","v":""},{"$f":"IF($A214=\"N/A\",Ref!$B$36,INDEX(Ranks!$1:$1048576,$A214,DJ$1))","v":""},{"$f":"IF($A214=\"N/A\",Ref!$B$36,INDEX(Ranks!$1:$1048576,$A214,DK$1))","v":""},{"$f":"IF($A214=\"N/A\",Ref!$B$36,INDEX(Ranks!$1:$1048576,$A214,DL$1))","v":""},{"$f":"IF($A214=\"N/A\",Ref!$B$36,INDEX(Ranks!$1:$1048576,$A214,DM$1))","v":""},{"$f":"IF($A214=\"N/A\",Ref!$B$36,INDEX(Ranks!$1:$1048576,$A214,DN$1))","v":""},{"$f":"IF($A214=\"N/A\",Ref!$B$36,INDEX(Ranks!$1:$1048576,$A214,DO$1))","v":""},{"$f":"IF($A214=\"N/A\",Ref!$B$36,INDEX(Ranks!$1:$1048576,$A214,DP$1))","v":""},{"$f":"IF($A214=\"N/A\",Ref!$B$36,INDEX(Ranks!$1:$1048576,$A214,DQ$1))","v":""},{"$f":"IF($A214=\"N/A\",Ref!$B$36,INDEX(Ranks!$1:$1048576,$A214,DR$1))","v":""},{"$f":"IF($A214=\"N/A\",Ref!$B$36,INDEX(Ranks!$1:$1048576,$A214,DS$1))","v":""},{"$f":"IF($A214=\"N/A\",Ref!$B$36,INDEX(Ranks!$1:$1048576,$A214,DT$1))","v":""},{"$f":"IF($A214=\"N/A\",Ref!$B$36,INDEX(Ranks!$1:$1048576,$A214,DU$1))","v":""},{"$f":"IF($A214=\"N/A\",Ref!$B$36,INDEX(Ranks!$1:$1048576,$A214,DV$1))","v":""},{"$f":"IF($A214=\"N/A\",Ref!$B$36,INDEX(Ranks!$1:$1048576,$A214,DW$1))","v":""},{"$f":"IF($A214=\"N/A\",Ref!$B$36,INDEX(Ranks!$1:$1048576,$A214,DX$1))","v":""},{"$f":"IF($A214=\"N/A\",Ref!$B$36,INDEX(Ranks!$1:$1048576,$A214,DY$1))","v":""},{"$f":"IF($A214=\"N/A\",Ref!$B$36,INDEX(Ranks!$1:$1048576,$A214,DZ$1))","v":""},{"$f":"IF($A214=\"N/A\",Ref!$B$36,INDEX(Ranks!$1:$1048576,$A214,EA$1))","v":""},{"$f":"IF($A214=\"N/A\",Ref!$B$36,INDEX(Ranks!$1:$1048576,$A214,EB$1))","v":""}]
[{"$f":"IFERROR(MATCH('Portfolio Page'!L215,Ranks!L:L,0),\"N/A\")","v":"N/A"},null,{"$f":"IF($A215=\"N/A\",\"\",INDEX(Ranks!$1:$1048576,$A215,C$1))","v":""},{"$f":"IF($A215=\"N/A\",Ref!$B$36,INDEX(Ranks!$1:$1048576,$A215,D$1))","v":""},{"$f":"IF($A215=\"N/A\",Ref!$B$36,INDEX(Ranks!$1:$1048576,$A215,E$1))","v":""},{"$f":"IF($A215=\"N/A\",\"\",INDEX(Ranks!$1:$1048576,$A215,F$1))","v":""},{"$f":"IF($A215=\"N/A\",\"\",INDEX(Ranks!$1:$1048576,$A215,G$1))","v":""},{"$f":"IF($A215=\"N/A\",\"\",INDEX(Ranks!$1:$1048576,$A215,H$1))","v":""},{"$f":"IF($A215=\"N/A\",\"\",INDEX(Ranks!$1:$1048576,$A215,I$1))","v":""},{"$f":"IF($A215=\"N/A\",\"\",INDEX(Ranks!$1:$1048576,$A215,J$1))","v":""},{"$f":"IF($A215=\"N/A\",\"\",INDEX(Ranks!$1:$1048576,$A215,K$1))","v":""},null,{"$f":"IF($A215=\"N/A\",Ref!$B$36,INDEX(Ranks!$1:$1048576,$A215,M$1))","v":""},{"$f":"IF($A215=\"N/A\",Ref!$B$36,INDEX(Ranks!$1:$1048576,$A215,N$1))","v":""},{"$f":"IF($A215=\"N/A\",Ref!$B$36,INDEX(Ranks!$1:$1048576,$A215,O$1))","v":""},{"$f":"IF($A215=\"N/A\",Ref!$B$36,INDEX(Ranks!$1:$1048576,$A215,P$1))","v":""},{"$f":"IF($A215=\"N/A\",Ref!$B$36,INDEX(Ranks!$1:$1048576,$A215,Q$1))","v":""},{"$f":"IF($A215=\"N/A\",Ref!$B$36,INDEX(Ranks!$1:$1048576,$A215,R$1))","v":""},{"$f":"IF($A215=\"N/A\",Ref!$B$36,INDEX(Ranks!$1:$1048576,$A215,S$1))","v":""},{"$f":"IF($A215=\"N/A\",Ref!$B$36,INDEX(Ranks!$1:$1048576,$A215,T$1))","v":""},{"$f":"IF($A215=\"N/A\",Ref!$B$36,INDEX(Ranks!$1:$1048576,$A215,U$1))","v":""},{"$f":"IF($A215=\"N/A\",Ref!$B$36,INDEX(Ranks!$1:$1048576,$A215,V$1))","v":""},{"$f":"IF($A215=\"N/A\",Ref!$B$36,INDEX(Ranks!$1:$1048576,$A215,W$1))","v":""},{"$f":"IF($A215=\"N/A\",Ref!$B$36,INDEX(Ranks!$1:$1048576,$A215,X$1))","v":""},{"$f":"IF($A215=\"N/A\",Ref!$B$36,INDEX(Ranks!$1:$1048576,$A215,Y$1))","v":""},{"$f":"IF($A215=\"N/A\",Ref!$B$36,INDEX(Ranks!$1:$1048576,$A215,Z$1))","v":""},{"$f":"IF($A215=\"N/A\",Ref!$B$36,INDEX(Ranks!$1:$1048576,$A215,AA$1))","v":""},{"$f":"IF($A215=\"N/A\",Ref!$B$36,INDEX(Ranks!$1:$1048576,$A215,AB$1))","v":""},{"$f":"IF($A215=\"N/A\",Ref!$B$36,INDEX(Ranks!$1:$1048576,$A215,AC$1))","v":""},{"$f":"IF($A215=\"N/A\",Ref!$B$36,INDEX(Ranks!$1:$1048576,$A215,AD$1))","v":""},{"$f":"IF($A215=\"N/A\",Ref!$B$36,INDEX(Ranks!$1:$1048576,$A215,AE$1))","v":""},{"$f":"IF($A215=\"N/A\",Ref!$B$36,INDEX(Ranks!$1:$1048576,$A215,AF$1))","v":""},{"$f":"IF($A215=\"N/A\",Ref!$B$36,INDEX(Ranks!$1:$1048576,$A215,AG$1))","v":""},{"$f":"IF($A215=\"N/A\",Ref!$B$36,INDEX(Ranks!$1:$1048576,$A215,AH$1))","v":""},{"$f":"IF($A215=\"N/A\",Ref!$B$36,INDEX(Ranks!$1:$1048576,$A215,AI$1))","v":""},{"$f":"IF($A215=\"N/A\",Ref!$B$36,INDEX(Ranks!$1:$1048576,$A215,AJ$1))","v":""},{"$f":"IF($A215=\"N/A\",Ref!$B$36,INDEX(Ranks!$1:$1048576,$A215,AK$1))","v":""},{"$f":"IF($A215=\"N/A\",Ref!$B$36,INDEX(Ranks!$1:$1048576,$A215,AL$1))","v":""},{"$f":"IF($A215=\"N/A\",Ref!$B$36,INDEX(Ranks!$1:$1048576,$A215,AM$1))","v":""},{"$f":"IF($A215=\"N/A\",Ref!$B$36,INDEX(Ranks!$1:$1048576,$A215,AN$1))","v":""},{"$f":"IF($A215=\"N/A\",Ref!$B$36,INDEX(Ranks!$1:$1048576,$A215,AO$1))","v":""},{"$f":"IF($A215=\"N/A\",Ref!$B$36,INDEX(Ranks!$1:$1048576,$A215,AP$1))","v":""},{"$f":"IF($A215=\"N/A\",Ref!$B$36,INDEX(Ranks!$1:$1048576,$A215,AQ$1))","v":""},{"$f":"IF($A215=\"N/A\",Ref!$B$36,INDEX(Ranks!$1:$1048576,$A215,AR$1))","v":""},{"$f":"IF($A215=\"N/A\",Ref!$B$36,INDEX(Ranks!$1:$1048576,$A215,AS$1))","v":""},{"$f":"IF($A215=\"N/A\",Ref!$B$36,INDEX(Ranks!$1:$1048576,$A215,AT$1))","v":""},{"$f":"IF($A215=\"N/A\",Ref!$B$36,INDEX(Ranks!$1:$1048576,$A215,AU$1))","v":""},{"$f":"IF($A215=\"N/A\",Ref!$B$36,INDEX(Ranks!$1:$1048576,$A215,AV$1))","v":""},{"$f":"IF($A215=\"N/A\",Ref!$B$36,INDEX(Ranks!$1:$1048576,$A215,AW$1))","v":""},{"$f":"IF($A215=\"N/A\",Ref!$B$36,INDEX(Ranks!$1:$1048576,$A215,AX$1))","v":""},{"$f":"IF($A215=\"N/A\",Ref!$B$36,INDEX(Ranks!$1:$1048576,$A215,AY$1))","v":""},{"$f":"IF($A215=\"N/A\",Ref!$B$36,INDEX(Ranks!$1:$1048576,$A215,AZ$1))","v":""},{"$f":"IF($A215=\"N/A\",Ref!$B$36,INDEX(Ranks!$1:$1048576,$A215,BA$1))","v":""},{"$f":"IF($A215=\"N/A\",Ref!$B$36,INDEX(Ranks!$1:$1048576,$A215,BB$1))","v":""},{"$f":"IF($A215=\"N/A\",Ref!$B$36,INDEX(Ranks!$1:$1048576,$A215,BC$1))","v":""},{"$f":"IF($A215=\"N/A\",Ref!$B$36,INDEX(Ranks!$1:$1048576,$A215,BD$1))","v":""},{"$f":"IF($A215=\"N/A\",Ref!$B$36,INDEX(Ranks!$1:$1048576,$A215,BE$1))","v":""},{"$f":"IF($A215=\"N/A\",Ref!$B$36,INDEX(Ranks!$1:$1048576,$A215,BF$1))","v":""},{"$f":"IF($A215=\"N/A\",Ref!$B$36,INDEX(Ranks!$1:$1048576,$A215,BG$1))","v":""},{"$f":"IF($A215=\"N/A\",Ref!$B$36,INDEX(Ranks!$1:$1048576,$A215,BH$1))","v":""},{"$f":"IF($A215=\"N/A\",Ref!$B$36,INDEX(Ranks!$1:$1048576,$A215,BI$1))","v":""},{"$f":"IF($A215=\"N/A\",Ref!$B$36,INDEX(Ranks!$1:$1048576,$A215,BJ$1))","v":""},{"$f":"IF($A215=\"N/A\",Ref!$B$36,INDEX(Ranks!$1:$1048576,$A215,BK$1))","v":""},{"$f":"IF($A215=\"N/A\",Ref!$B$36,INDEX(Ranks!$1:$1048576,$A215,BL$1))","v":""},{"$f":"IF($A215=\"N/A\",Ref!$B$36,INDEX(Ranks!$1:$1048576,$A215,BM$1))","v":""},{"$f":"IF($A215=\"N/A\",Ref!$B$36,INDEX(Ranks!$1:$1048576,$A215,BN$1))","v":""},{"$f":"IF($A215=\"N/A\",Ref!$B$36,INDEX(Ranks!$1:$1048576,$A215,BO$1))","v":""},{"$f":"IF($A215=\"N/A\",Ref!$B$36,INDEX(Ranks!$1:$1048576,$A215,BP$1))","v":""},{"$f":"IF($A215=\"N/A\",Ref!$B$36,INDEX(Ranks!$1:$1048576,$A215,BQ$1))","v":""},{"$f":"IF($A215=\"N/A\",Ref!$B$36,INDEX(Ranks!$1:$1048576,$A215,BR$1))","v":""},{"$f":"IF($A215=\"N/A\",Ref!$B$36,INDEX(Ranks!$1:$1048576,$A215,BS$1))","v":""},{"$f":"IF($A215=\"N/A\",Ref!$B$36,INDEX(Ranks!$1:$1048576,$A215,BT$1))","v":""},{"$f":"IF($A215=\"N/A\",Ref!$B$36,INDEX(Ranks!$1:$1048576,$A215,BU$1))","v":""},{"$f":"IF($A215=\"N/A\",Ref!$B$36,INDEX(Ranks!$1:$1048576,$A215,BV$1))","v":""},{"$f":"IF($A215=\"N/A\",Ref!$B$36,INDEX(Ranks!$1:$1048576,$A215,BW$1))","v":""},{"$f":"IF($A215=\"N/A\",Ref!$B$36,INDEX(Ranks!$1:$1048576,$A215,BX$1))","v":""},{"$f":"IF($A215=\"N/A\",Ref!$B$36,INDEX(Ranks!$1:$1048576,$A215,BY$1))","v":""},{"$f":"IF($A215=\"N/A\",Ref!$B$36,INDEX(Ranks!$1:$1048576,$A215,BZ$1))","v":""},{"$f":"IF($A215=\"N/A\",Ref!$B$36,INDEX(Ranks!$1:$1048576,$A215,CA$1))","v":""},{"$f":"IF($A215=\"N/A\",Ref!$B$36,INDEX(Ranks!$1:$1048576,$A215,CB$1))","v":""},{"$f":"IF($A215=\"N/A\",Ref!$B$36,INDEX(Ranks!$1:$1048576,$A215,CC$1))","v":""},{"$f":"IF($A215=\"N/A\",Ref!$B$36,INDEX(Ranks!$1:$1048576,$A215,CD$1))","v":""},{"$f":"IF($A215=\"N/A\",Ref!$B$36,INDEX(Ranks!$1:$1048576,$A215,CE$1))","v":""},{"$f":"IF($A215=\"N/A\",Ref!$B$36,INDEX(Ranks!$1:$1048576,$A215,CF$1))","v":""},{"$f":"IF($A215=\"N/A\",Ref!$B$36,INDEX(Ranks!$1:$1048576,$A215,CG$1))","v":""},{"$f":"IF($A215=\"N/A\",Ref!$B$36,INDEX(Ranks!$1:$1048576,$A215,CH$1))","v":""},{"$f":"IF($A215=\"N/A\",Ref!$B$36,INDEX(Ranks!$1:$1048576,$A215,CI$1))","v":""},{"$f":"IF($A215=\"N/A\",Ref!$B$36,INDEX(Ranks!$1:$1048576,$A215,CJ$1))","v":""},{"$f":"IF($A215=\"N/A\",Ref!$B$36,INDEX(Ranks!$1:$1048576,$A215,CK$1))","v":""},{"$f":"IF($A215=\"N/A\",Ref!$B$36,INDEX(Ranks!$1:$1048576,$A215,CL$1))","v":""},{"$f":"IF($A215=\"N/A\",Ref!$B$36,INDEX(Ranks!$1:$1048576,$A215,CM$1))","v":""},{"$f":"IF($A215=\"N/A\",Ref!$B$36,INDEX(Ranks!$1:$1048576,$A215,CN$1))","v":""},{"$f":"IF($A215=\"N/A\",Ref!$B$36,INDEX(Ranks!$1:$1048576,$A215,CO$1))","v":""},{"$f":"IF($A215=\"N/A\",Ref!$B$36,INDEX(Ranks!$1:$1048576,$A215,CP$1))","v":""},{"$f":"IF($A215=\"N/A\",Ref!$B$36,INDEX(Ranks!$1:$1048576,$A215,CQ$1))","v":""},{"$f":"IF($A215=\"N/A\",Ref!$B$36,INDEX(Ranks!$1:$1048576,$A215,CR$1))","v":""},{"$f":"IF($A215=\"N/A\",Ref!$B$36,INDEX(Ranks!$1:$1048576,$A215,CS$1))","v":""},{"$f":"IF($A215=\"N/A\",Ref!$B$36,INDEX(Ranks!$1:$1048576,$A215,CT$1))","v":""},{"$f":"IF($A215=\"N/A\",Ref!$B$36,INDEX(Ranks!$1:$1048576,$A215,CU$1))","v":""},{"$f":"IF($A215=\"N/A\",Ref!$B$36,INDEX(Ranks!$1:$1048576,$A215,CV$1))","v":""},{"$f":"IF($A215=\"N/A\",Ref!$B$36,INDEX(Ranks!$1:$1048576,$A215,CW$1))","v":""},{"$f":"IF($A215=\"N/A\",Ref!$B$36,INDEX(Ranks!$1:$1048576,$A215,CX$1))","v":""},{"$f":"IF($A215=\"N/A\",Ref!$B$36,INDEX(Ranks!$1:$1048576,$A215,CY$1))","v":""},{"$f":"IF($A215=\"N/A\",Ref!$B$36,INDEX(Ranks!$1:$1048576,$A215,CZ$1))","v":""},{"$f":"IF($A215=\"N/A\",Ref!$B$36,INDEX(Ranks!$1:$1048576,$A215,DA$1))","v":""},{"$f":"IF($A215=\"N/A\",Ref!$B$36,INDEX(Ranks!$1:$1048576,$A215,DB$1))","v":""},{"$f":"IF($A215=\"N/A\",Ref!$B$36,INDEX(Ranks!$1:$1048576,$A215,DC$1))","v":""},{"$f":"IF($A215=\"N/A\",Ref!$B$36,INDEX(Ranks!$1:$1048576,$A215,DD$1))","v":""},{"$f":"IF($A215=\"N/A\",Ref!$B$36,INDEX(Ranks!$1:$1048576,$A215,DE$1))","v":""},{"$f":"IF($A215=\"N/A\",Ref!$B$36,INDEX(Ranks!$1:$1048576,$A215,DF$1))","v":""},{"$f":"IF($A215=\"N/A\",Ref!$B$36,INDEX(Ranks!$1:$1048576,$A215,DG$1))","v":""},{"$f":"IF($A215=\"N/A\",Ref!$B$36,INDEX(Ranks!$1:$1048576,$A215,DH$1))","v":""},{"$f":"IF($A215=\"N/A\",Ref!$B$36,INDEX(Ranks!$1:$1048576,$A215,DI$1))","v":""},{"$f":"IF($A215=\"N/A\",Ref!$B$36,INDEX(Ranks!$1:$1048576,$A215,DJ$1))","v":""},{"$f":"IF($A215=\"N/A\",Ref!$B$36,INDEX(Ranks!$1:$1048576,$A215,DK$1))","v":""},{"$f":"IF($A215=\"N/A\",Ref!$B$36,INDEX(Ranks!$1:$1048576,$A215,DL$1))","v":""},{"$f":"IF($A215=\"N/A\",Ref!$B$36,INDEX(Ranks!$1:$1048576,$A215,DM$1))","v":""},{"$f":"IF($A215=\"N/A\",Ref!$B$36,INDEX(Ranks!$1:$1048576,$A215,DN$1))","v":""},{"$f":"IF($A215=\"N/A\",Ref!$B$36,INDEX(Ranks!$1:$1048576,$A215,DO$1))","v":""},{"$f":"IF($A215=\"N/A\",Ref!$B$36,INDEX(Ranks!$1:$1048576,$A215,DP$1))","v":""},{"$f":"IF($A215=\"N/A\",Ref!$B$36,INDEX(Ranks!$1:$1048576,$A215,DQ$1))","v":""},{"$f":"IF($A215=\"N/A\",Ref!$B$36,INDEX(Ranks!$1:$1048576,$A215,DR$1))","v":""},{"$f":"IF($A215=\"N/A\",Ref!$B$36,INDEX(Ranks!$1:$1048576,$A215,DS$1))","v":""},{"$f":"IF($A215=\"N/A\",Ref!$B$36,INDEX(Ranks!$1:$1048576,$A215,DT$1))","v":""},{"$f":"IF($A215=\"N/A\",Ref!$B$36,INDEX(Ranks!$1:$1048576,$A215,DU$1))","v":""},{"$f":"IF($A215=\"N/A\",Ref!$B$36,INDEX(Ranks!$1:$1048576,$A215,DV$1))","v":""},{"$f":"IF($A215=\"N/A\",Ref!$B$36,INDEX(Ranks!$1:$1048576,$A215,DW$1))","v":""},{"$f":"IF($A215=\"N/A\",Ref!$B$36,INDEX(Ranks!$1:$1048576,$A215,DX$1))","v":""},{"$f":"IF($A215=\"N/A\",Ref!$B$36,INDEX(Ranks!$1:$1048576,$A215,DY$1))","v":""},{"$f":"IF($A215=\"N/A\",Ref!$B$36,INDEX(Ranks!$1:$1048576,$A215,DZ$1))","v":""},{"$f":"IF($A215=\"N/A\",Ref!$B$36,INDEX(Ranks!$1:$1048576,$A215,EA$1))","v":""},{"$f":"IF($A215=\"N/A\",Ref!$B$36,INDEX(Ranks!$1:$1048576,$A215,EB$1))","v":""}]
[{"$f":"IFERROR(MATCH('Portfolio Page'!L216,Ranks!L:L,0),\"N/A\")","v":"N/A"},null,{"$f":"IF($A216=\"N/A\",\"\",INDEX(Ranks!$1:$1048576,$A216,C$1))","v":""},{"$f":"IF($A216=\"N/A\",Ref!$B$36,INDEX(Ranks!$1:$1048576,$A216,D$1))","v":""},{"$f":"IF($A216=\"N/A\",Ref!$B$36,INDEX(Ranks!$1:$1048576,$A216,E$1))","v":""},{"$f":"IF($A216=\"N/A\",\"\",INDEX(Ranks!$1:$1048576,$A216,F$1))","v":""},{"$f":"IF($A216=\"N/A\",\"\",INDEX(Ranks!$1:$1048576,$A216,G$1))","v":""},{"$f":"IF($A216=\"N/A\",\"\",INDEX(Ranks!$1:$1048576,$A216,H$1))","v":""},{"$f":"IF($A216=\"N/A\",\"\",INDEX(Ranks!$1:$1048576,$A216,I$1))","v":""},{"$f":"IF($A216=\"N/A\",\"\",INDEX(Ranks!$1:$1048576,$A216,J$1))","v":""},{"$f":"IF($A216=\"N/A\",\"\",INDEX(Ranks!$1:$1048576,$A216,K$1))","v":""},null,{"$f":"IF($A216=\"N/A\",Ref!$B$36,INDEX(Ranks!$1:$1048576,$A216,M$1))","v":""},{"$f":"IF($A216=\"N/A\",Ref!$B$36,INDEX(Ranks!$1:$1048576,$A216,N$1))","v":""},{"$f":"IF($A216=\"N/A\",Ref!$B$36,INDEX(Ranks!$1:$1048576,$A216,O$1))","v":""},{"$f":"IF($A216=\"N/A\",Ref!$B$36,INDEX(Ranks!$1:$1048576,$A216,P$1))","v":""},{"$f":"IF($A216=\"N/A\",Ref!$B$36,INDEX(Ranks!$1:$1048576,$A216,Q$1))","v":""},{"$f":"IF($A216=\"N/A\",Ref!$B$36,INDEX(Ranks!$1:$1048576,$A216,R$1))","v":""},{"$f":"IF($A216=\"N/A\",Ref!$B$36,INDEX(Ranks!$1:$1048576,$A216,S$1))","v":""},{"$f":"IF($A216=\"N/A\",Ref!$B$36,INDEX(Ranks!$1:$1048576,$A216,T$1))","v":""},{"$f":"IF($A216=\"N/A\",Ref!$B$36,INDEX(Ranks!$1:$1048576,$A216,U$1))","v":""},{"$f":"IF($A216=\"N/A\",Ref!$B$36,INDEX(Ranks!$1:$1048576,$A216,V$1))","v":""},{"$f":"IF($A216=\"N/A\",Ref!$B$36,INDEX(Ranks!$1:$1048576,$A216,W$1))","v":""},{"$f":"IF($A216=\"N/A\",Ref!$B$36,INDEX(Ranks!$1:$1048576,$A216,X$1))","v":""},{"$f":"IF($A216=\"N/A\",Ref!$B$36,INDEX(Ranks!$1:$1048576,$A216,Y$1))","v":""},{"$f":"IF($A216=\"N/A\",Ref!$B$36,INDEX(Ranks!$1:$1048576,$A216,Z$1))","v":""},{"$f":"IF($A216=\"N/A\",Ref!$B$36,INDEX(Ranks!$1:$1048576,$A216,AA$1))","v":""},{"$f":"IF($A216=\"N/A\",Ref!$B$36,INDEX(Ranks!$1:$1048576,$A216,AB$1))","v":""},{"$f":"IF($A216=\"N/A\",Ref!$B$36,INDEX(Ranks!$1:$1048576,$A216,AC$1))","v":""},{"$f":"IF($A216=\"N/A\",Ref!$B$36,INDEX(Ranks!$1:$1048576,$A216,AD$1))","v":""},{"$f":"IF($A216=\"N/A\",Ref!$B$36,INDEX(Ranks!$1:$1048576,$A216,AE$1))","v":""},{"$f":"IF($A216=\"N/A\",Ref!$B$36,INDEX(Ranks!$1:$1048576,$A216,AF$1))","v":""},{"$f":"IF($A216=\"N/A\",Ref!$B$36,INDEX(Ranks!$1:$1048576,$A216,AG$1))","v":""},{"$f":"IF($A216=\"N/A\",Ref!$B$36,INDEX(Ranks!$1:$1048576,$A216,AH$1))","v":""},{"$f":"IF($A216=\"N/A\",Ref!$B$36,INDEX(Ranks!$1:$1048576,$A216,AI$1))","v":""},{"$f":"IF($A216=\"N/A\",Ref!$B$36,INDEX(Ranks!$1:$1048576,$A216,AJ$1))","v":""},{"$f":"IF($A216=\"N/A\",Ref!$B$36,INDEX(Ranks!$1:$1048576,$A216,AK$1))","v":""},{"$f":"IF($A216=\"N/A\",Ref!$B$36,INDEX(Ranks!$1:$1048576,$A216,AL$1))","v":""},{"$f":"IF($A216=\"N/A\",Ref!$B$36,INDEX(Ranks!$1:$1048576,$A216,AM$1))","v":""},{"$f":"IF($A216=\"N/A\",Ref!$B$36,INDEX(Ranks!$1:$1048576,$A216,AN$1))","v":""},{"$f":"IF($A216=\"N/A\",Ref!$B$36,INDEX(Ranks!$1:$1048576,$A216,AO$1))","v":""},{"$f":"IF($A216=\"N/A\",Ref!$B$36,INDEX(Ranks!$1:$1048576,$A216,AP$1))","v":""},{"$f":"IF($A216=\"N/A\",Ref!$B$36,INDEX(Ranks!$1:$1048576,$A216,AQ$1))","v":""},{"$f":"IF($A216=\"N/A\",Ref!$B$36,INDEX(Ranks!$1:$1048576,$A216,AR$1))","v":""},{"$f":"IF($A216=\"N/A\",Ref!$B$36,INDEX(Ranks!$1:$1048576,$A216,AS$1))","v":""},{"$f":"IF($A216=\"N/A\",Ref!$B$36,INDEX(Ranks!$1:$1048576,$A216,AT$1))","v":""},{"$f":"IF($A216=\"N/A\",Ref!$B$36,INDEX(Ranks!$1:$1048576,$A216,AU$1))","v":""},{"$f":"IF($A216=\"N/A\",Ref!$B$36,INDEX(Ranks!$1:$1048576,$A216,AV$1))","v":""},{"$f":"IF($A216=\"N/A\",Ref!$B$36,INDEX(Ranks!$1:$1048576,$A216,AW$1))","v":""},{"$f":"IF($A216=\"N/A\",Ref!$B$36,INDEX(Ranks!$1:$1048576,$A216,AX$1))","v":""},{"$f":"IF($A216=\"N/A\",Ref!$B$36,INDEX(Ranks!$1:$1048576,$A216,AY$1))","v":""},{"$f":"IF($A216=\"N/A\",Ref!$B$36,INDEX(Ranks!$1:$1048576,$A216,AZ$1))","v":""},{"$f":"IF($A216=\"N/A\",Ref!$B$36,INDEX(Ranks!$1:$1048576,$A216,BA$1))","v":""},{"$f":"IF($A216=\"N/A\",Ref!$B$36,INDEX(Ranks!$1:$1048576,$A216,BB$1))","v":""},{"$f":"IF($A216=\"N/A\",Ref!$B$36,INDEX(Ranks!$1:$1048576,$A216,BC$1))","v":""},{"$f":"IF($A216=\"N/A\",Ref!$B$36,INDEX(Ranks!$1:$1048576,$A216,BD$1))","v":""},{"$f":"IF($A216=\"N/A\",Ref!$B$36,INDEX(Ranks!$1:$1048576,$A216,BE$1))","v":""},{"$f":"IF($A216=\"N/A\",Ref!$B$36,INDEX(Ranks!$1:$1048576,$A216,BF$1))","v":""},{"$f":"IF($A216=\"N/A\",Ref!$B$36,INDEX(Ranks!$1:$1048576,$A216,BG$1))","v":""},{"$f":"IF($A216=\"N/A\",Ref!$B$36,INDEX(Ranks!$1:$1048576,$A216,BH$1))","v":""},{"$f":"IF($A216=\"N/A\",Ref!$B$36,INDEX(Ranks!$1:$1048576,$A216,BI$1))","v":""},{"$f":"IF($A216=\"N/A\",Ref!$B$36,INDEX(Ranks!$1:$1048576,$A216,BJ$1))","v":""},{"$f":"IF($A216=\"N/A\",Ref!$B$36,INDEX(Ranks!$1:$1048576,$A216,BK$1))","v":""},{"$f":"IF($A216=\"N/A\",Ref!$B$36,INDEX(Ranks!$1:$1048576,$A216,BL$1))","v":""},{"$f":"IF($A216=\"N/A\",Ref!$B$36,INDEX(Ranks!$1:$1048576,$A216,BM$1))","v":""},{"$f":"IF($A216=\"N/A\",Ref!$B$36,INDEX(Ranks!$1:$1048576,$A216,BN$1))","v":""},{"$f":"IF($A216=\"N/A\",Ref!$B$36,INDEX(Ranks!$1:$1048576,$A216,BO$1))","v":""},{"$f":"IF($A216=\"N/A\",Ref!$B$36,INDEX(Ranks!$1:$1048576,$A216,BP$1))","v":""},{"$f":"IF($A216=\"N/A\",Ref!$B$36,INDEX(Ranks!$1:$1048576,$A216,BQ$1))","v":""},{"$f":"IF($A216=\"N/A\",Ref!$B$36,INDEX(Ranks!$1:$1048576,$A216,BR$1))","v":""},{"$f":"IF($A216=\"N/A\",Ref!$B$36,INDEX(Ranks!$1:$1048576,$A216,BS$1))","v":""},{"$f":"IF($A216=\"N/A\",Ref!$B$36,INDEX(Ranks!$1:$1048576,$A216,BT$1))","v":""},{"$f":"IF($A216=\"N/A\",Ref!$B$36,INDEX(Ranks!$1:$1048576,$A216,BU$1))","v":""},{"$f":"IF($A216=\"N/A\",Ref!$B$36,INDEX(Ranks!$1:$1048576,$A216,BV$1))","v":""},{"$f":"IF($A216=\"N/A\",Ref!$B$36,INDEX(Ranks!$1:$1048576,$A216,BW$1))","v":""},{"$f":"IF($A216=\"N/A\",Ref!$B$36,INDEX(Ranks!$1:$1048576,$A216,BX$1))","v":""},{"$f":"IF($A216=\"N/A\",Ref!$B$36,INDEX(Ranks!$1:$1048576,$A216,BY$1))","v":""},{"$f":"IF($A216=\"N/A\",Ref!$B$36,INDEX(Ranks!$1:$1048576,$A216,BZ$1))","v":""},{"$f":"IF($A216=\"N/A\",Ref!$B$36,INDEX(Ranks!$1:$1048576,$A216,CA$1))","v":""},{"$f":"IF($A216=\"N/A\",Ref!$B$36,INDEX(Ranks!$1:$1048576,$A216,CB$1))","v":""},{"$f":"IF($A216=\"N/A\",Ref!$B$36,INDEX(Ranks!$1:$1048576,$A216,CC$1))","v":""},{"$f":"IF($A216=\"N/A\",Ref!$B$36,INDEX(Ranks!$1:$1048576,$A216,CD$1))","v":""},{"$f":"IF($A216=\"N/A\",Ref!$B$36,INDEX(Ranks!$1:$1048576,$A216,CE$1))","v":""},{"$f":"IF($A216=\"N/A\",Ref!$B$36,INDEX(Ranks!$1:$1048576,$A216,CF$1))","v":""},{"$f":"IF($A216=\"N/A\",Ref!$B$36,INDEX(Ranks!$1:$1048576,$A216,CG$1))","v":""},{"$f":"IF($A216=\"N/A\",Ref!$B$36,INDEX(Ranks!$1:$1048576,$A216,CH$1))","v":""},{"$f":"IF($A216=\"N/A\",Ref!$B$36,INDEX(Ranks!$1:$1048576,$A216,CI$1))","v":""},{"$f":"IF($A216=\"N/A\",Ref!$B$36,INDEX(Ranks!$1:$1048576,$A216,CJ$1))","v":""},{"$f":"IF($A216=\"N/A\",Ref!$B$36,INDEX(Ranks!$1:$1048576,$A216,CK$1))","v":""},{"$f":"IF($A216=\"N/A\",Ref!$B$36,INDEX(Ranks!$1:$1048576,$A216,CL$1))","v":""},{"$f":"IF($A216=\"N/A\",Ref!$B$36,INDEX(Ranks!$1:$1048576,$A216,CM$1))","v":""},{"$f":"IF($A216=\"N/A\",Ref!$B$36,INDEX(Ranks!$1:$1048576,$A216,CN$1))","v":""},{"$f":"IF($A216=\"N/A\",Ref!$B$36,INDEX(Ranks!$1:$1048576,$A216,CO$1))","v":""},{"$f":"IF($A216=\"N/A\",Ref!$B$36,INDEX(Ranks!$1:$1048576,$A216,CP$1))","v":""},{"$f":"IF($A216=\"N/A\",Ref!$B$36,INDEX(Ranks!$1:$1048576,$A216,CQ$1))","v":""},{"$f":"IF($A216=\"N/A\",Ref!$B$36,INDEX(Ranks!$1:$1048576,$A216,CR$1))","v":""},{"$f":"IF($A216=\"N/A\",Ref!$B$36,INDEX(Ranks!$1:$1048576,$A216,CS$1))","v":""},{"$f":"IF($A216=\"N/A\",Ref!$B$36,INDEX(Ranks!$1:$1048576,$A216,CT$1))","v":""},{"$f":"IF($A216=\"N/A\",Ref!$B$36,INDEX(Ranks!$1:$1048576,$A216,CU$1))","v":""},{"$f":"IF($A216=\"N/A\",Ref!$B$36,INDEX(Ranks!$1:$1048576,$A216,CV$1))","v":""},{"$f":"IF($A216=\"N/A\",Ref!$B$36,INDEX(Ranks!$1:$1048576,$A216,CW$1))","v":""},{"$f":"IF($A216=\"N/A\",Ref!$B$36,INDEX(Ranks!$1:$1048576,$A216,CX$1))","v":""},{"$f":"IF($A216=\"N/A\",Ref!$B$36,INDEX(Ranks!$1:$1048576,$A216,CY$1))","v":""},{"$f":"IF($A216=\"N/A\",Ref!$B$36,INDEX(Ranks!$1:$1048576,$A216,CZ$1))","v":""},{"$f":"IF($A216=\"N/A\",Ref!$B$36,INDEX(Ranks!$1:$1048576,$A216,DA$1))","v":""},{"$f":"IF($A216=\"N/A\",Ref!$B$36,INDEX(Ranks!$1:$1048576,$A216,DB$1))","v":""},{"$f":"IF($A216=\"N/A\",Ref!$B$36,INDEX(Ranks!$1:$1048576,$A216,DC$1))","v":""},{"$f":"IF($A216=\"N/A\",Ref!$B$36,INDEX(Ranks!$1:$1048576,$A216,DD$1))","v":""},{"$f":"IF($A216=\"N/A\",Ref!$B$36,INDEX(Ranks!$1:$1048576,$A216,DE$1))","v":""},{"$f":"IF($A216=\"N/A\",Ref!$B$36,INDEX(Ranks!$1:$1048576,$A216,DF$1))","v":""},{"$f":"IF($A216=\"N/A\",Ref!$B$36,INDEX(Ranks!$1:$1048576,$A216,DG$1))","v":""},{"$f":"IF($A216=\"N/A\",Ref!$B$36,INDEX(Ranks!$1:$1048576,$A216,DH$1))","v":""},{"$f":"IF($A216=\"N/A\",Ref!$B$36,INDEX(Ranks!$1:$1048576,$A216,DI$1))","v":""},{"$f":"IF($A216=\"N/A\",Ref!$B$36,INDEX(Ranks!$1:$1048576,$A216,DJ$1))","v":""},{"$f":"IF($A216=\"N/A\",Ref!$B$36,INDEX(Ranks!$1:$1048576,$A216,DK$1))","v":""},{"$f":"IF($A216=\"N/A\",Ref!$B$36,INDEX(Ranks!$1:$1048576,$A216,DL$1))","v":""},{"$f":"IF($A216=\"N/A\",Ref!$B$36,INDEX(Ranks!$1:$1048576,$A216,DM$1))","v":""},{"$f":"IF($A216=\"N/A\",Ref!$B$36,INDEX(Ranks!$1:$1048576,$A216,DN$1))","v":""},{"$f":"IF($A216=\"N/A\",Ref!$B$36,INDEX(Ranks!$1:$1048576,$A216,DO$1))","v":""},{"$f":"IF($A216=\"N/A\",Ref!$B$36,INDEX(Ranks!$1:$1048576,$A216,DP$1))","v":""},{"$f":"IF($A216=\"N/A\",Ref!$B$36,INDEX(Ranks!$1:$1048576,$A216,DQ$1))","v":""},{"$f":"IF($A216=\"N/A\",Ref!$B$36,INDEX(Ranks!$1:$1048576,$A216,DR$1))","v":""},{"$f":"IF($A216=\"N/A\",Ref!$B$36,INDEX(Ranks!$1:$1048576,$A216,DS$1))","v":""},{"$f":"IF($A216=\"N/A\",Ref!$B$36,INDEX(Ranks!$1:$1048576,$A216,DT$1))","v":""},{"$f":"IF($A216=\"N/A\",Ref!$B$36,INDEX(Ranks!$1:$1048576,$A216,DU$1))","v":""},{"$f":"IF($A216=\"N/A\",Ref!$B$36,INDEX(Ranks!$1:$1048576,$A216,DV$1))","v":""},{"$f":"IF($A216=\"N/A\",Ref!$B$36,INDEX(Ranks!$1:$1048576,$A216,DW$1))","v":""},{"$f":"IF($A216=\"N/A\",Ref!$B$36,INDEX(Ranks!$1:$1048576,$A216,DX$1))","v":""},{"$f":"IF($A216=\"N/A\",Ref!$B$36,INDEX(Ranks!$1:$1048576,$A216,DY$1))","v":""},{"$f":"IF($A216=\"N/A\",Ref!$B$36,INDEX(Ranks!$1:$1048576,$A216,DZ$1))","v":""},{"$f":"IF($A216=\"N/A\",Ref!$B$36,INDEX(Ranks!$1:$1048576,$A216,EA$1))","v":""},{"$f":"IF($A216=\"N/A\",Ref!$B$36,INDEX(Ranks!$1:$1048576,$A216,EB$1))","v":""}]
[{"$f":"IFERROR(MATCH('Portfolio Page'!L217,Ranks!L:L,0),\"N/A\")","v":"N/A"},null,{"$f":"IF($A217=\"N/A\",\"\",INDEX(Ranks!$1:$1048576,$A217,C$1))","v":""},{"$f":"IF($A217=\"N/A\",Ref!$B$36,INDEX(Ranks!$1:$1048576,$A217,D$1))","v":""},{"$f":"IF($A217=\"N/A\",Ref!$B$36,INDEX(Ranks!$1:$1048576,$A217,E$1))","v":""},{"$f":"IF($A217=\"N/A\",\"\",INDEX(Ranks!$1:$1048576,$A217,F$1))","v":""},{"$f":"IF($A217=\"N/A\",\"\",INDEX(Ranks!$1:$1048576,$A217,G$1))","v":""},{"$f":"IF($A217=\"N/A\",\"\",INDEX(Ranks!$1:$1048576,$A217,H$1))","v":""},{"$f":"IF($A217=\"N/A\",\"\",INDEX(Ranks!$1:$1048576,$A217,I$1))","v":""},{"$f":"IF($A217=\"N/A\",\"\",INDEX(Ranks!$1:$1048576,$A217,J$1))","v":""},{"$f":"IF($A217=\"N/A\",\"\",INDEX(Ranks!$1:$1048576,$A217,K$1))","v":""},null,{"$f":"IF($A217=\"N/A\",Ref!$B$36,INDEX(Ranks!$1:$1048576,$A217,M$1))","v":""},{"$f":"IF($A217=\"N/A\",Ref!$B$36,INDEX(Ranks!$1:$1048576,$A217,N$1))","v":""},{"$f":"IF($A217=\"N/A\",Ref!$B$36,INDEX(Ranks!$1:$1048576,$A217,O$1))","v":""},{"$f":"IF($A217=\"N/A\",Ref!$B$36,INDEX(Ranks!$1:$1048576,$A217,P$1))","v":""},{"$f":"IF($A217=\"N/A\",Ref!$B$36,INDEX(Ranks!$1:$1048576,$A217,Q$1))","v":""},{"$f":"IF($A217=\"N/A\",Ref!$B$36,INDEX(Ranks!$1:$1048576,$A217,R$1))","v":""},{"$f":"IF($A217=\"N/A\",Ref!$B$36,INDEX(Ranks!$1:$1048576,$A217,S$1))","v":""},{"$f":"IF($A217=\"N/A\",Ref!$B$36,INDEX(Ranks!$1:$1048576,$A217,T$1))","v":""},{"$f":"IF($A217=\"N/A\",Ref!$B$36,INDEX(Ranks!$1:$1048576,$A217,U$1))","v":""},{"$f":"IF($A217=\"N/A\",Ref!$B$36,INDEX(Ranks!$1:$1048576,$A217,V$1))","v":""},{"$f":"IF($A217=\"N/A\",Ref!$B$36,INDEX(Ranks!$1:$1048576,$A217,W$1))","v":""},{"$f":"IF($A217=\"N/A\",Ref!$B$36,INDEX(Ranks!$1:$1048576,$A217,X$1))","v":""},{"$f":"IF($A217=\"N/A\",Ref!$B$36,INDEX(Ranks!$1:$1048576,$A217,Y$1))","v":""},{"$f":"IF($A217=\"N/A\",Ref!$B$36,INDEX(Ranks!$1:$1048576,$A217,Z$1))","v":""},{"$f":"IF($A217=\"N/A\",Ref!$B$36,INDEX(Ranks!$1:$1048576,$A217,AA$1))","v":""},{"$f":"IF($A217=\"N/A\",Ref!$B$36,INDEX(Ranks!$1:$1048576,$A217,AB$1))","v":""},{"$f":"IF($A217=\"N/A\",Ref!$B$36,INDEX(Ranks!$1:$1048576,$A217,AC$1))","v":""},{"$f":"IF($A217=\"N/A\",Ref!$B$36,INDEX(Ranks!$1:$1048576,$A217,AD$1))","v":""},{"$f":"IF($A217=\"N/A\",Ref!$B$36,INDEX(Ranks!$1:$1048576,$A217,AE$1))","v":""},{"$f":"IF($A217=\"N/A\",Ref!$B$36,INDEX(Ranks!$1:$1048576,$A217,AF$1))","v":""},{"$f":"IF($A217=\"N/A\",Ref!$B$36,INDEX(Ranks!$1:$1048576,$A217,AG$1))","v":""},{"$f":"IF($A217=\"N/A\",Ref!$B$36,INDEX(Ranks!$1:$1048576,$A217,AH$1))","v":""},{"$f":"IF($A217=\"N/A\",Ref!$B$36,INDEX(Ranks!$1:$1048576,$A217,AI$1))","v":""},{"$f":"IF($A217=\"N/A\",Ref!$B$36,INDEX(Ranks!$1:$1048576,$A217,AJ$1))","v":""},{"$f":"IF($A217=\"N/A\",Ref!$B$36,INDEX(Ranks!$1:$1048576,$A217,AK$1))","v":""},{"$f":"IF($A217=\"N/A\",Ref!$B$36,INDEX(Ranks!$1:$1048576,$A217,AL$1))","v":""},{"$f":"IF($A217=\"N/A\",Ref!$B$36,INDEX(Ranks!$1:$1048576,$A217,AM$1))","v":""},{"$f":"IF($A217=\"N/A\",Ref!$B$36,INDEX(Ranks!$1:$1048576,$A217,AN$1))","v":""},{"$f":"IF($A217=\"N/A\",Ref!$B$36,INDEX(Ranks!$1:$1048576,$A217,AO$1))","v":""},{"$f":"IF($A217=\"N/A\",Ref!$B$36,INDEX(Ranks!$1:$1048576,$A217,AP$1))","v":""},{"$f":"IF($A217=\"N/A\",Ref!$B$36,INDEX(Ranks!$1:$1048576,$A217,AQ$1))","v":""},{"$f":"IF($A217=\"N/A\",Ref!$B$36,INDEX(Ranks!$1:$1048576,$A217,AR$1))","v":""},{"$f":"IF($A217=\"N/A\",Ref!$B$36,INDEX(Ranks!$1:$1048576,$A217,AS$1))","v":""},{"$f":"IF($A217=\"N/A\",Ref!$B$36,INDEX(Ranks!$1:$1048576,$A217,AT$1))","v":""},{"$f":"IF($A217=\"N/A\",Ref!$B$36,INDEX(Ranks!$1:$1048576,$A217,AU$1))","v":""},{"$f":"IF($A217=\"N/A\",Ref!$B$36,INDEX(Ranks!$1:$1048576,$A217,AV$1))","v":""},{"$f":"IF($A217=\"N/A\",Ref!$B$36,INDEX(Ranks!$1:$1048576,$A217,AW$1))","v":""},{"$f":"IF($A217=\"N/A\",Ref!$B$36,INDEX(Ranks!$1:$1048576,$A217,AX$1))","v":""},{"$f":"IF($A217=\"N/A\",Ref!$B$36,INDEX(Ranks!$1:$1048576,$A217,AY$1))","v":""},{"$f":"IF($A217=\"N/A\",Ref!$B$36,INDEX(Ranks!$1:$1048576,$A217,AZ$1))","v":""},{"$f":"IF($A217=\"N/A\",Ref!$B$36,INDEX(Ranks!$1:$1048576,$A217,BA$1))","v":""},{"$f":"IF($A217=\"N/A\",Ref!$B$36,INDEX(Ranks!$1:$1048576,$A217,BB$1))","v":""},{"$f":"IF($A217=\"N/A\",Ref!$B$36,INDEX(Ranks!$1:$1048576,$A217,BC$1))","v":""},{"$f":"IF($A217=\"N/A\",Ref!$B$36,INDEX(Ranks!$1:$1048576,$A217,BD$1))","v":""},{"$f":"IF($A217=\"N/A\",Ref!$B$36,INDEX(Ranks!$1:$1048576,$A217,BE$1))","v":""},{"$f":"IF($A217=\"N/A\",Ref!$B$36,INDEX(Ranks!$1:$1048576,$A217,BF$1))","v":""},{"$f":"IF($A217=\"N/A\",Ref!$B$36,INDEX(Ranks!$1:$1048576,$A217,BG$1))","v":""},{"$f":"IF($A217=\"N/A\",Ref!$B$36,INDEX(Ranks!$1:$1048576,$A217,BH$1))","v":""},{"$f":"IF($A217=\"N/A\",Ref!$B$36,INDEX(Ranks!$1:$1048576,$A217,BI$1))","v":""},{"$f":"IF($A217=\"N/A\",Ref!$B$36,INDEX(Ranks!$1:$1048576,$A217,BJ$1))","v":""},{"$f":"IF($A217=\"N/A\",Ref!$B$36,INDEX(Ranks!$1:$1048576,$A217,BK$1))","v":""},{"$f":"IF($A217=\"N/A\",Ref!$B$36,INDEX(Ranks!$1:$1048576,$A217,BL$1))","v":""},{"$f":"IF($A217=\"N/A\",Ref!$B$36,INDEX(Ranks!$1:$1048576,$A217,BM$1))","v":""},{"$f":"IF($A217=\"N/A\",Ref!$B$36,INDEX(Ranks!$1:$1048576,$A217,BN$1))","v":""},{"$f":"IF($A217=\"N/A\",Ref!$B$36,INDEX(Ranks!$1:$1048576,$A217,BO$1))","v":""},{"$f":"IF($A217=\"N/A\",Ref!$B$36,INDEX(Ranks!$1:$1048576,$A217,BP$1))","v":""},{"$f":"IF($A217=\"N/A\",Ref!$B$36,INDEX(Ranks!$1:$1048576,$A217,BQ$1))","v":""},{"$f":"IF($A217=\"N/A\",Ref!$B$36,INDEX(Ranks!$1:$1048576,$A217,BR$1))","v":""},{"$f":"IF($A217=\"N/A\",Ref!$B$36,INDEX(Ranks!$1:$1048576,$A217,BS$1))","v":""},{"$f":"IF($A217=\"N/A\",Ref!$B$36,INDEX(Ranks!$1:$1048576,$A217,BT$1))","v":""},{"$f":"IF($A217=\"N/A\",Ref!$B$36,INDEX(Ranks!$1:$1048576,$A217,BU$1))","v":""},{"$f":"IF($A217=\"N/A\",Ref!$B$36,INDEX(Ranks!$1:$1048576,$A217,BV$1))","v":""},{"$f":"IF($A217=\"N/A\",Ref!$B$36,INDEX(Ranks!$1:$1048576,$A217,BW$1))","v":""},{"$f":"IF($A217=\"N/A\",Ref!$B$36,INDEX(Ranks!$1:$1048576,$A217,BX$1))","v":""},{"$f":"IF($A217=\"N/A\",Ref!$B$36,INDEX(Ranks!$1:$1048576,$A217,BY$1))","v":""},{"$f":"IF($A217=\"N/A\",Ref!$B$36,INDEX(Ranks!$1:$1048576,$A217,BZ$1))","v":""},{"$f":"IF($A217=\"N/A\",Ref!$B$36,INDEX(Ranks!$1:$1048576,$A217,CA$1))","v":""},{"$f":"IF($A217=\"N/A\",Ref!$B$36,INDEX(Ranks!$1:$1048576,$A217,CB$1))","v":""},{"$f":"IF($A217=\"N/A\",Ref!$B$36,INDEX(Ranks!$1:$1048576,$A217,CC$1))","v":""},{"$f":"IF($A217=\"N/A\",Ref!$B$36,INDEX(Ranks!$1:$1048576,$A217,CD$1))","v":""},{"$f":"IF($A217=\"N/A\",Ref!$B$36,INDEX(Ranks!$1:$1048576,$A217,CE$1))","v":""},{"$f":"IF($A217=\"N/A\",Ref!$B$36,INDEX(Ranks!$1:$1048576,$A217,CF$1))","v":""},{"$f":"IF($A217=\"N/A\",Ref!$B$36,INDEX(Ranks!$1:$1048576,$A217,CG$1))","v":""},{"$f":"IF($A217=\"N/A\",Ref!$B$36,INDEX(Ranks!$1:$1048576,$A217,CH$1))","v":""},{"$f":"IF($A217=\"N/A\",Ref!$B$36,INDEX(Ranks!$1:$1048576,$A217,CI$1))","v":""},{"$f":"IF($A217=\"N/A\",Ref!$B$36,INDEX(Ranks!$1:$1048576,$A217,CJ$1))","v":""},{"$f":"IF($A217=\"N/A\",Ref!$B$36,INDEX(Ranks!$1:$1048576,$A217,CK$1))","v":""},{"$f":"IF($A217=\"N/A\",Ref!$B$36,INDEX(Ranks!$1:$1048576,$A217,CL$1))","v":""},{"$f":"IF($A217=\"N/A\",Ref!$B$36,INDEX(Ranks!$1:$1048576,$A217,CM$1))","v":""},{"$f":"IF($A217=\"N/A\",Ref!$B$36,INDEX(Ranks!$1:$1048576,$A217,CN$1))","v":""},{"$f":"IF($A217=\"N/A\",Ref!$B$36,INDEX(Ranks!$1:$1048576,$A217,CO$1))","v":""},{"$f":"IF($A217=\"N/A\",Ref!$B$36,INDEX(Ranks!$1:$1048576,$A217,CP$1))","v":""},{"$f":"IF($A217=\"N/A\",Ref!$B$36,INDEX(Ranks!$1:$1048576,$A217,CQ$1))","v":""},{"$f":"IF($A217=\"N/A\",Ref!$B$36,INDEX(Ranks!$1:$1048576,$A217,CR$1))","v":""},{"$f":"IF($A217=\"N/A\",Ref!$B$36,INDEX(Ranks!$1:$1048576,$A217,CS$1))","v":""},{"$f":"IF($A217=\"N/A\",Ref!$B$36,INDEX(Ranks!$1:$1048576,$A217,CT$1))","v":""},{"$f":"IF($A217=\"N/A\",Ref!$B$36,INDEX(Ranks!$1:$1048576,$A217,CU$1))","v":""},{"$f":"IF($A217=\"N/A\",Ref!$B$36,INDEX(Ranks!$1:$1048576,$A217,CV$1))","v":""},{"$f":"IF($A217=\"N/A\",Ref!$B$36,INDEX(Ranks!$1:$1048576,$A217,CW$1))","v":""},{"$f":"IF($A217=\"N/A\",Ref!$B$36,INDEX(Ranks!$1:$1048576,$A217,CX$1))","v":""},{"$f":"IF($A217=\"N/A\",Ref!$B$36,INDEX(Ranks!$1:$1048576,$A217,CY$1))","v":""},{"$f":"IF($A217=\"N/A\",Ref!$B$36,INDEX(Ranks!$1:$1048576,$A217,CZ$1))","v":""},{"$f":"IF($A217=\"N/A\",Ref!$B$36,INDEX(Ranks!$1:$1048576,$A217,DA$1))","v":""},{"$f":"IF($A217=\"N/A\",Ref!$B$36,INDEX(Ranks!$1:$1048576,$A217,DB$1))","v":""},{"$f":"IF($A217=\"N/A\",Ref!$B$36,INDEX(Ranks!$1:$1048576,$A217,DC$1))","v":""},{"$f":"IF($A217=\"N/A\",Ref!$B$36,INDEX(Ranks!$1:$1048576,$A217,DD$1))","v":""},{"$f":"IF($A217=\"N/A\",Ref!$B$36,INDEX(Ranks!$1:$1048576,$A217,DE$1))","v":""},{"$f":"IF($A217=\"N/A\",Ref!$B$36,INDEX(Ranks!$1:$1048576,$A217,DF$1))","v":""},{"$f":"IF($A217=\"N/A\",Ref!$B$36,INDEX(Ranks!$1:$1048576,$A217,DG$1))","v":""},{"$f":"IF($A217=\"N/A\",Ref!$B$36,INDEX(Ranks!$1:$1048576,$A217,DH$1))","v":""},{"$f":"IF($A217=\"N/A\",Ref!$B$36,INDEX(Ranks!$1:$1048576,$A217,DI$1))","v":""},{"$f":"IF($A217=\"N/A\",Ref!$B$36,INDEX(Ranks!$1:$1048576,$A217,DJ$1))","v":""},{"$f":"IF($A217=\"N/A\",Ref!$B$36,INDEX(Ranks!$1:$1048576,$A217,DK$1))","v":""},{"$f":"IF($A217=\"N/A\",Ref!$B$36,INDEX(Ranks!$1:$1048576,$A217,DL$1))","v":""},{"$f":"IF($A217=\"N/A\",Ref!$B$36,INDEX(Ranks!$1:$1048576,$A217,DM$1))","v":""},{"$f":"IF($A217=\"N/A\",Ref!$B$36,INDEX(Ranks!$1:$1048576,$A217,DN$1))","v":""},{"$f":"IF($A217=\"N/A\",Ref!$B$36,INDEX(Ranks!$1:$1048576,$A217,DO$1))","v":""},{"$f":"IF($A217=\"N/A\",Ref!$B$36,INDEX(Ranks!$1:$1048576,$A217,DP$1))","v":""},{"$f":"IF($A217=\"N/A\",Ref!$B$36,INDEX(Ranks!$1:$1048576,$A217,DQ$1))","v":""},{"$f":"IF($A217=\"N/A\",Ref!$B$36,INDEX(Ranks!$1:$1048576,$A217,DR$1))","v":""},{"$f":"IF($A217=\"N/A\",Ref!$B$36,INDEX(Ranks!$1:$1048576,$A217,DS$1))","v":""},{"$f":"IF($A217=\"N/A\",Ref!$B$36,INDEX(Ranks!$1:$1048576,$A217,DT$1))","v":""},{"$f":"IF($A217=\"N/A\",Ref!$B$36,INDEX(Ranks!$1:$1048576,$A217,DU$1))","v":""},{"$f":"IF($A217=\"N/A\",Ref!$B$36,INDEX(Ranks!$1:$1048576,$A217,DV$1))","v":""},{"$f":"IF($A217=\"N/A\",Ref!$B$36,INDEX(Ranks!$1:$1048576,$A217,DW$1))","v":""},{"$f":"IF($A217=\"N/A\",Ref!$B$36,INDEX(Ranks!$1:$1048576,$A217,DX$1))","v":""},{"$f":"IF($A217=\"N/A\",Ref!$B$36,INDEX(Ranks!$1:$1048576,$A217,DY$1))","v":""},{"$f":"IF($A217=\"N/A\",Ref!$B$36,INDEX(Ranks!$1:$1048576,$A217,DZ$1))","v":""},{"$f":"IF($A217=\"N/A\",Ref!$B$36,INDEX(Ranks!$1:$1048576,$A217,EA$1))","v":""},{"$f":"IF($A217=\"N/A\",Ref!$B$36,INDEX(Ranks!$1:$1048576,$A217,EB$1))","v":""}]
[{"$f":"IFERROR(MATCH('Portfolio Page'!L218,Ranks!L:L,0),\"N/A\")","v":"N/A"},null,{"$f":"IF($A218=\"N/A\",\"\",INDEX(Ranks!$1:$1048576,$A218,C$1))","v":""},{"$f":"IF($A218=\"N/A\",Ref!$B$36,INDEX(Ranks!$1:$1048576,$A218,D$1))","v":""},{"$f":"IF($A218=\"N/A\",Ref!$B$36,INDEX(Ranks!$1:$1048576,$A218,E$1))","v":""},{"$f":"IF($A218=\"N/A\",\"\",INDEX(Ranks!$1:$1048576,$A218,F$1))","v":""},{"$f":"IF($A218=\"N/A\",\"\",INDEX(Ranks!$1:$1048576,$A218,G$1))","v":""},{"$f":"IF($A218=\"N/A\",\"\",INDEX(Ranks!$1:$1048576,$A218,H$1))","v":""},{"$f":"IF($A218=\"N/A\",\"\",INDEX(Ranks!$1:$1048576,$A218,I$1))","v":""},{"$f":"IF($A218=\"N/A\",\"\",INDEX(Ranks!$1:$1048576,$A218,J$1))","v":""},{"$f":"IF($A218=\"N/A\",\"\",INDEX(Ranks!$1:$1048576,$A218,K$1))","v":""},null,{"$f":"IF($A218=\"N/A\",Ref!$B$36,INDEX(Ranks!$1:$1048576,$A218,M$1))","v":""},{"$f":"IF($A218=\"N/A\",Ref!$B$36,INDEX(Ranks!$1:$1048576,$A218,N$1))","v":""},{"$f":"IF($A218=\"N/A\",Ref!$B$36,INDEX(Ranks!$1:$1048576,$A218,O$1))","v":""},{"$f":"IF($A218=\"N/A\",Ref!$B$36,INDEX(Ranks!$1:$1048576,$A218,P$1))","v":""},{"$f":"IF($A218=\"N/A\",Ref!$B$36,INDEX(Ranks!$1:$1048576,$A218,Q$1))","v":""},{"$f":"IF($A218=\"N/A\",Ref!$B$36,INDEX(Ranks!$1:$1048576,$A218,R$1))","v":""},{"$f":"IF($A218=\"N/A\",Ref!$B$36,INDEX(Ranks!$1:$1048576,$A218,S$1))","v":""},{"$f":"IF($A218=\"N/A\",Ref!$B$36,INDEX(Ranks!$1:$1048576,$A218,T$1))","v":""},{"$f":"IF($A218=\"N/A\",Ref!$B$36,INDEX(Ranks!$1:$1048576,$A218,U$1))","v":""},{"$f":"IF($A218=\"N/A\",Ref!$B$36,INDEX(Ranks!$1:$1048576,$A218,V$1))","v":""},{"$f":"IF($A218=\"N/A\",Ref!$B$36,INDEX(Ranks!$1:$1048576,$A218,W$1))","v":""},{"$f":"IF($A218=\"N/A\",Ref!$B$36,INDEX(Ranks!$1:$1048576,$A218,X$1))","v":""},{"$f":"IF($A218=\"N/A\",Ref!$B$36,INDEX(Ranks!$1:$1048576,$A218,Y$1))","v":""},{"$f":"IF($A218=\"N/A\",Ref!$B$36,INDEX(Ranks!$1:$1048576,$A218,Z$1))","v":""},{"$f":"IF($A218=\"N/A\",Ref!$B$36,INDEX(Ranks!$1:$1048576,$A218,AA$1))","v":""},{"$f":"IF($A218=\"N/A\",Ref!$B$36,INDEX(Ranks!$1:$1048576,$A218,AB$1))","v":""},{"$f":"IF($A218=\"N/A\",Ref!$B$36,INDEX(Ranks!$1:$1048576,$A218,AC$1))","v":""},{"$f":"IF($A218=\"N/A\",Ref!$B$36,INDEX(Ranks!$1:$1048576,$A218,AD$1))","v":""},{"$f":"IF($A218=\"N/A\",Ref!$B$36,INDEX(Ranks!$1:$1048576,$A218,AE$1))","v":""},{"$f":"IF($A218=\"N/A\",Ref!$B$36,INDEX(Ranks!$1:$1048576,$A218,AF$1))","v":""},{"$f":"IF($A218=\"N/A\",Ref!$B$36,INDEX(Ranks!$1:$1048576,$A218,AG$1))","v":""},{"$f":"IF($A218=\"N/A\",Ref!$B$36,INDEX(Ranks!$1:$1048576,$A218,AH$1))","v":""},{"$f":"IF($A218=\"N/A\",Ref!$B$36,INDEX(Ranks!$1:$1048576,$A218,AI$1))","v":""},{"$f":"IF($A218=\"N/A\",Ref!$B$36,INDEX(Ranks!$1:$1048576,$A218,AJ$1))","v":""},{"$f":"IF($A218=\"N/A\",Ref!$B$36,INDEX(Ranks!$1:$1048576,$A218,AK$1))","v":""},{"$f":"IF($A218=\"N/A\",Ref!$B$36,INDEX(Ranks!$1:$1048576,$A218,AL$1))","v":""},{"$f":"IF($A218=\"N/A\",Ref!$B$36,INDEX(Ranks!$1:$1048576,$A218,AM$1))","v":""},{"$f":"IF($A218=\"N/A\",Ref!$B$36,INDEX(Ranks!$1:$1048576,$A218,AN$1))","v":""},{"$f":"IF($A218=\"N/A\",Ref!$B$36,INDEX(Ranks!$1:$1048576,$A218,AO$1))","v":""},{"$f":"IF($A218=\"N/A\",Ref!$B$36,INDEX(Ranks!$1:$1048576,$A218,AP$1))","v":""},{"$f":"IF($A218=\"N/A\",Ref!$B$36,INDEX(Ranks!$1:$1048576,$A218,AQ$1))","v":""},{"$f":"IF($A218=\"N/A\",Ref!$B$36,INDEX(Ranks!$1:$1048576,$A218,AR$1))","v":""},{"$f":"IF($A218=\"N/A\",Ref!$B$36,INDEX(Ranks!$1:$1048576,$A218,AS$1))","v":""},{"$f":"IF($A218=\"N/A\",Ref!$B$36,INDEX(Ranks!$1:$1048576,$A218,AT$1))","v":""},{"$f":"IF($A218=\"N/A\",Ref!$B$36,INDEX(Ranks!$1:$1048576,$A218,AU$1))","v":""},{"$f":"IF($A218=\"N/A\",Ref!$B$36,INDEX(Ranks!$1:$1048576,$A218,AV$1))","v":""},{"$f":"IF($A218=\"N/A\",Ref!$B$36,INDEX(Ranks!$1:$1048576,$A218,AW$1))","v":""},{"$f":"IF($A218=\"N/A\",Ref!$B$36,INDEX(Ranks!$1:$1048576,$A218,AX$1))","v":""},{"$f":"IF($A218=\"N/A\",Ref!$B$36,INDEX(Ranks!$1:$1048576,$A218,AY$1))","v":""},{"$f":"IF($A218=\"N/A\",Ref!$B$36,INDEX(Ranks!$1:$1048576,$A218,AZ$1))","v":""},{"$f":"IF($A218=\"N/A\",Ref!$B$36,INDEX(Ranks!$1:$1048576,$A218,BA$1))","v":""},{"$f":"IF($A218=\"N/A\",Ref!$B$36,INDEX(Ranks!$1:$1048576,$A218,BB$1))","v":""},{"$f":"IF($A218=\"N/A\",Ref!$B$36,INDEX(Ranks!$1:$1048576,$A218,BC$1))","v":""},{"$f":"IF($A218=\"N/A\",Ref!$B$36,INDEX(Ranks!$1:$1048576,$A218,BD$1))","v":""},{"$f":"IF($A218=\"N/A\",Ref!$B$36,INDEX(Ranks!$1:$1048576,$A218,BE$1))","v":""},{"$f":"IF($A218=\"N/A\",Ref!$B$36,INDEX(Ranks!$1:$1048576,$A218,BF$1))","v":""},{"$f":"IF($A218=\"N/A\",Ref!$B$36,INDEX(Ranks!$1:$1048576,$A218,BG$1))","v":""},{"$f":"IF($A218=\"N/A\",Ref!$B$36,INDEX(Ranks!$1:$1048576,$A218,BH$1))","v":""},{"$f":"IF($A218=\"N/A\",Ref!$B$36,INDEX(Ranks!$1:$1048576,$A218,BI$1))","v":""},{"$f":"IF($A218=\"N/A\",Ref!$B$36,INDEX(Ranks!$1:$1048576,$A218,BJ$1))","v":""},{"$f":"IF($A218=\"N/A\",Ref!$B$36,INDEX(Ranks!$1:$1048576,$A218,BK$1))","v":""},{"$f":"IF($A218=\"N/A\",Ref!$B$36,INDEX(Ranks!$1:$1048576,$A218,BL$1))","v":""},{"$f":"IF($A218=\"N/A\",Ref!$B$36,INDEX(Ranks!$1:$1048576,$A218,BM$1))","v":""},{"$f":"IF($A218=\"N/A\",Ref!$B$36,INDEX(Ranks!$1:$1048576,$A218,BN$1))","v":""},{"$f":"IF($A218=\"N/A\",Ref!$B$36,INDEX(Ranks!$1:$1048576,$A218,BO$1))","v":""},{"$f":"IF($A218=\"N/A\",Ref!$B$36,INDEX(Ranks!$1:$1048576,$A218,BP$1))","v":""},{"$f":"IF($A218=\"N/A\",Ref!$B$36,INDEX(Ranks!$1:$1048576,$A218,BQ$1))","v":""},{"$f":"IF($A218=\"N/A\",Ref!$B$36,INDEX(Ranks!$1:$1048576,$A218,BR$1))","v":""},{"$f":"IF($A218=\"N/A\",Ref!$B$36,INDEX(Ranks!$1:$1048576,$A218,BS$1))","v":""},{"$f":"IF($A218=\"N/A\",Ref!$B$36,INDEX(Ranks!$1:$1048576,$A218,BT$1))","v":""},{"$f":"IF($A218=\"N/A\",Ref!$B$36,INDEX(Ranks!$1:$1048576,$A218,BU$1))","v":""},{"$f":"IF($A218=\"N/A\",Ref!$B$36,INDEX(Ranks!$1:$1048576,$A218,BV$1))","v":""},{"$f":"IF($A218=\"N/A\",Ref!$B$36,INDEX(Ranks!$1:$1048576,$A218,BW$1))","v":""},{"$f":"IF($A218=\"N/A\",Ref!$B$36,INDEX(Ranks!$1:$1048576,$A218,BX$1))","v":""},{"$f":"IF($A218=\"N/A\",Ref!$B$36,INDEX(Ranks!$1:$1048576,$A218,BY$1))","v":""},{"$f":"IF($A218=\"N/A\",Ref!$B$36,INDEX(Ranks!$1:$1048576,$A218,BZ$1))","v":""},{"$f":"IF($A218=\"N/A\",Ref!$B$36,INDEX(Ranks!$1:$1048576,$A218,CA$1))","v":""},{"$f":"IF($A218=\"N/A\",Ref!$B$36,INDEX(Ranks!$1:$1048576,$A218,CB$1))","v":""},{"$f":"IF($A218=\"N/A\",Ref!$B$36,INDEX(Ranks!$1:$1048576,$A218,CC$1))","v":""},{"$f":"IF($A218=\"N/A\",Ref!$B$36,INDEX(Ranks!$1:$1048576,$A218,CD$1))","v":""},{"$f":"IF($A218=\"N/A\",Ref!$B$36,INDEX(Ranks!$1:$1048576,$A218,CE$1))","v":""},{"$f":"IF($A218=\"N/A\",Ref!$B$36,INDEX(Ranks!$1:$1048576,$A218,CF$1))","v":""},{"$f":"IF($A218=\"N/A\",Ref!$B$36,INDEX(Ranks!$1:$1048576,$A218,CG$1))","v":""},{"$f":"IF($A218=\"N/A\",Ref!$B$36,INDEX(Ranks!$1:$1048576,$A218,CH$1))","v":""},{"$f":"IF($A218=\"N/A\",Ref!$B$36,INDEX(Ranks!$1:$1048576,$A218,CI$1))","v":""},{"$f":"IF($A218=\"N/A\",Ref!$B$36,INDEX(Ranks!$1:$1048576,$A218,CJ$1))","v":""},{"$f":"IF($A218=\"N/A\",Ref!$B$36,INDEX(Ranks!$1:$1048576,$A218,CK$1))","v":""},{"$f":"IF($A218=\"N/A\",Ref!$B$36,INDEX(Ranks!$1:$1048576,$A218,CL$1))","v":""},{"$f":"IF($A218=\"N/A\",Ref!$B$36,INDEX(Ranks!$1:$1048576,$A218,CM$1))","v":""},{"$f":"IF($A218=\"N/A\",Ref!$B$36,INDEX(Ranks!$1:$1048576,$A218,CN$1))","v":""},{"$f":"IF($A218=\"N/A\",Ref!$B$36,INDEX(Ranks!$1:$1048576,$A218,CO$1))","v":""},{"$f":"IF($A218=\"N/A\",Ref!$B$36,INDEX(Ranks!$1:$1048576,$A218,CP$1))","v":""},{"$f":"IF($A218=\"N/A\",Ref!$B$36,INDEX(Ranks!$1:$1048576,$A218,CQ$1))","v":""},{"$f":"IF($A218=\"N/A\",Ref!$B$36,INDEX(Ranks!$1:$1048576,$A218,CR$1))","v":""},{"$f":"IF($A218=\"N/A\",Ref!$B$36,INDEX(Ranks!$1:$1048576,$A218,CS$1))","v":""},{"$f":"IF($A218=\"N/A\",Ref!$B$36,INDEX(Ranks!$1:$1048576,$A218,CT$1))","v":""},{"$f":"IF($A218=\"N/A\",Ref!$B$36,INDEX(Ranks!$1:$1048576,$A218,CU$1))","v":""},{"$f":"IF($A218=\"N/A\",Ref!$B$36,INDEX(Ranks!$1:$1048576,$A218,CV$1))","v":""},{"$f":"IF($A218=\"N/A\",Ref!$B$36,INDEX(Ranks!$1:$1048576,$A218,CW$1))","v":""},{"$f":"IF($A218=\"N/A\",Ref!$B$36,INDEX(Ranks!$1:$1048576,$A218,CX$1))","v":""},{"$f":"IF($A218=\"N/A\",Ref!$B$36,INDEX(Ranks!$1:$1048576,$A218,CY$1))","v":""},{"$f":"IF($A218=\"N/A\",Ref!$B$36,INDEX(Ranks!$1:$1048576,$A218,CZ$1))","v":""},{"$f":"IF($A218=\"N/A\",Ref!$B$36,INDEX(Ranks!$1:$1048576,$A218,DA$1))","v":""},{"$f":"IF($A218=\"N/A\",Ref!$B$36,INDEX(Ranks!$1:$1048576,$A218,DB$1))","v":""},{"$f":"IF($A218=\"N/A\",Ref!$B$36,INDEX(Ranks!$1:$1048576,$A218,DC$1))","v":""},{"$f":"IF($A218=\"N/A\",Ref!$B$36,INDEX(Ranks!$1:$1048576,$A218,DD$1))","v":""},{"$f":"IF($A218=\"N/A\",Ref!$B$36,INDEX(Ranks!$1:$1048576,$A218,DE$1))","v":""},{"$f":"IF($A218=\"N/A\",Ref!$B$36,INDEX(Ranks!$1:$1048576,$A218,DF$1))","v":""},{"$f":"IF($A218=\"N/A\",Ref!$B$36,INDEX(Ranks!$1:$1048576,$A218,DG$1))","v":""},{"$f":"IF($A218=\"N/A\",Ref!$B$36,INDEX(Ranks!$1:$1048576,$A218,DH$1))","v":""},{"$f":"IF($A218=\"N/A\",Ref!$B$36,INDEX(Ranks!$1:$1048576,$A218,DI$1))","v":""},{"$f":"IF($A218=\"N/A\",Ref!$B$36,INDEX(Ranks!$1:$1048576,$A218,DJ$1))","v":""},{"$f":"IF($A218=\"N/A\",Ref!$B$36,INDEX(Ranks!$1:$1048576,$A218,DK$1))","v":""},{"$f":"IF($A218=\"N/A\",Ref!$B$36,INDEX(Ranks!$1:$1048576,$A218,DL$1))","v":""},{"$f":"IF($A218=\"N/A\",Ref!$B$36,INDEX(Ranks!$1:$1048576,$A218,DM$1))","v":""},{"$f":"IF($A218=\"N/A\",Ref!$B$36,INDEX(Ranks!$1:$1048576,$A218,DN$1))","v":""},{"$f":"IF($A218=\"N/A\",Ref!$B$36,INDEX(Ranks!$1:$1048576,$A218,DO$1))","v":""},{"$f":"IF($A218=\"N/A\",Ref!$B$36,INDEX(Ranks!$1:$1048576,$A218,DP$1))","v":""},{"$f":"IF($A218=\"N/A\",Ref!$B$36,INDEX(Ranks!$1:$1048576,$A218,DQ$1))","v":""},{"$f":"IF($A218=\"N/A\",Ref!$B$36,INDEX(Ranks!$1:$1048576,$A218,DR$1))","v":""},{"$f":"IF($A218=\"N/A\",Ref!$B$36,INDEX(Ranks!$1:$1048576,$A218,DS$1))","v":""},{"$f":"IF($A218=\"N/A\",Ref!$B$36,INDEX(Ranks!$1:$1048576,$A218,DT$1))","v":""},{"$f":"IF($A218=\"N/A\",Ref!$B$36,INDEX(Ranks!$1:$1048576,$A218,DU$1))","v":""},{"$f":"IF($A218=\"N/A\",Ref!$B$36,INDEX(Ranks!$1:$1048576,$A218,DV$1))","v":""},{"$f":"IF($A218=\"N/A\",Ref!$B$36,INDEX(Ranks!$1:$1048576,$A218,DW$1))","v":""},{"$f":"IF($A218=\"N/A\",Ref!$B$36,INDEX(Ranks!$1:$1048576,$A218,DX$1))","v":""},{"$f":"IF($A218=\"N/A\",Ref!$B$36,INDEX(Ranks!$1:$1048576,$A218,DY$1))","v":""},{"$f":"IF($A218=\"N/A\",Ref!$B$36,INDEX(Ranks!$1:$1048576,$A218,DZ$1))","v":""},{"$f":"IF($A218=\"N/A\",Ref!$B$36,INDEX(Ranks!$1:$1048576,$A218,EA$1))","v":""},{"$f":"IF($A218=\"N/A\",Ref!$B$36,INDEX(Ranks!$1:$1048576,$A218,EB$1))","v":""}]
[{"$f":"IFERROR(MATCH('Portfolio Page'!L219,Ranks!L:L,0),\"N/A\")","v":"N/A"},null,{"$f":"IF($A219=\"N/A\",\"\",INDEX(Ranks!$1:$1048576,$A219,C$1))","v":""},{"$f":"IF($A219=\"N/A\",Ref!$B$36,INDEX(Ranks!$1:$1048576,$A219,D$1))","v":""},{"$f":"IF($A219=\"N/A\",Ref!$B$36,INDEX(Ranks!$1:$1048576,$A219,E$1))","v":""},{"$f":"IF($A219=\"N/A\",\"\",INDEX(Ranks!$1:$1048576,$A219,F$1))","v":""},{"$f":"IF($A219=\"N/A\",\"\",INDEX(Ranks!$1:$1048576,$A219,G$1))","v":""},{"$f":"IF($A219=\"N/A\",\"\",INDEX(Ranks!$1:$1048576,$A219,H$1))","v":""},{"$f":"IF($A219=\"N/A\",\"\",INDEX(Ranks!$1:$1048576,$A219,I$1))","v":""},{"$f":"IF($A219=\"N/A\",\"\",INDEX(Ranks!$1:$1048576,$A219,J$1))","v":""},{"$f":"IF($A219=\"N/A\",\"\",INDEX(Ranks!$1:$1048576,$A219,K$1))","v":""},null,{"$f":"IF($A219=\"N/A\",Ref!$B$36,INDEX(Ranks!$1:$1048576,$A219,M$1))","v":""},{"$f":"IF($A219=\"N/A\",Ref!$B$36,INDEX(Ranks!$1:$1048576,$A219,N$1))","v":""},{"$f":"IF($A219=\"N/A\",Ref!$B$36,INDEX(Ranks!$1:$1048576,$A219,O$1))","v":""},{"$f":"IF($A219=\"N/A\",Ref!$B$36,INDEX(Ranks!$1:$1048576,$A219,P$1))","v":""},{"$f":"IF($A219=\"N/A\",Ref!$B$36,INDEX(Ranks!$1:$1048576,$A219,Q$1))","v":""},{"$f":"IF($A219=\"N/A\",Ref!$B$36,INDEX(Ranks!$1:$1048576,$A219,R$1))","v":""},{"$f":"IF($A219=\"N/A\",Ref!$B$36,INDEX(Ranks!$1:$1048576,$A219,S$1))","v":""},{"$f":"IF($A219=\"N/A\",Ref!$B$36,INDEX(Ranks!$1:$1048576,$A219,T$1))","v":""},{"$f":"IF($A219=\"N/A\",Ref!$B$36,INDEX(Ranks!$1:$1048576,$A219,U$1))","v":""},{"$f":"IF($A219=\"N/A\",Ref!$B$36,INDEX(Ranks!$1:$1048576,$A219,V$1))","v":""},{"$f":"IF($A219=\"N/A\",Ref!$B$36,INDEX(Ranks!$1:$1048576,$A219,W$1))","v":""},{"$f":"IF($A219=\"N/A\",Ref!$B$36,INDEX(Ranks!$1:$1048576,$A219,X$1))","v":""},{"$f":"IF($A219=\"N/A\",Ref!$B$36,INDEX(Ranks!$1:$1048576,$A219,Y$1))","v":""},{"$f":"IF($A219=\"N/A\",Ref!$B$36,INDEX(Ranks!$1:$1048576,$A219,Z$1))","v":""},{"$f":"IF($A219=\"N/A\",Ref!$B$36,INDEX(Ranks!$1:$1048576,$A219,AA$1))","v":""},{"$f":"IF($A219=\"N/A\",Ref!$B$36,INDEX(Ranks!$1:$1048576,$A219,AB$1))","v":""},{"$f":"IF($A219=\"N/A\",Ref!$B$36,INDEX(Ranks!$1:$1048576,$A219,AC$1))","v":""},{"$f":"IF($A219=\"N/A\",Ref!$B$36,INDEX(Ranks!$1:$1048576,$A219,AD$1))","v":""},{"$f":"IF($A219=\"N/A\",Ref!$B$36,INDEX(Ranks!$1:$1048576,$A219,AE$1))","v":""},{"$f":"IF($A219=\"N/A\",Ref!$B$36,INDEX(Ranks!$1:$1048576,$A219,AF$1))","v":""},{"$f":"IF($A219=\"N/A\",Ref!$B$36,INDEX(Ranks!$1:$1048576,$A219,AG$1))","v":""},{"$f":"IF($A219=\"N/A\",Ref!$B$36,INDEX(Ranks!$1:$1048576,$A219,AH$1))","v":""},{"$f":"IF($A219=\"N/A\",Ref!$B$36,INDEX(Ranks!$1:$1048576,$A219,AI$1))","v":""},{"$f":"IF($A219=\"N/A\",Ref!$B$36,INDEX(Ranks!$1:$1048576,$A219,AJ$1))","v":""},{"$f":"IF($A219=\"N/A\",Ref!$B$36,INDEX(Ranks!$1:$1048576,$A219,AK$1))","v":""},{"$f":"IF($A219=\"N/A\",Ref!$B$36,INDEX(Ranks!$1:$1048576,$A219,AL$1))","v":""},{"$f":"IF($A219=\"N/A\",Ref!$B$36,INDEX(Ranks!$1:$1048576,$A219,AM$1))","v":""},{"$f":"IF($A219=\"N/A\",Ref!$B$36,INDEX(Ranks!$1:$1048576,$A219,AN$1))","v":""},{"$f":"IF($A219=\"N/A\",Ref!$B$36,INDEX(Ranks!$1:$1048576,$A219,AO$1))","v":""},{"$f":"IF($A219=\"N/A\",Ref!$B$36,INDEX(Ranks!$1:$1048576,$A219,AP$1))","v":""},{"$f":"IF($A219=\"N/A\",Ref!$B$36,INDEX(Ranks!$1:$1048576,$A219,AQ$1))","v":""},{"$f":"IF($A219=\"N/A\",Ref!$B$36,INDEX(Ranks!$1:$1048576,$A219,AR$1))","v":""},{"$f":"IF($A219=\"N/A\",Ref!$B$36,INDEX(Ranks!$1:$1048576,$A219,AS$1))","v":""},{"$f":"IF($A219=\"N/A\",Ref!$B$36,INDEX(Ranks!$1:$1048576,$A219,AT$1))","v":""},{"$f":"IF($A219=\"N/A\",Ref!$B$36,INDEX(Ranks!$1:$1048576,$A219,AU$1))","v":""},{"$f":"IF($A219=\"N/A\",Ref!$B$36,INDEX(Ranks!$1:$1048576,$A219,AV$1))","v":""},{"$f":"IF($A219=\"N/A\",Ref!$B$36,INDEX(Ranks!$1:$1048576,$A219,AW$1))","v":""},{"$f":"IF($A219=\"N/A\",Ref!$B$36,INDEX(Ranks!$1:$1048576,$A219,AX$1))","v":""},{"$f":"IF($A219=\"N/A\",Ref!$B$36,INDEX(Ranks!$1:$1048576,$A219,AY$1))","v":""},{"$f":"IF($A219=\"N/A\",Ref!$B$36,INDEX(Ranks!$1:$1048576,$A219,AZ$1))","v":""},{"$f":"IF($A219=\"N/A\",Ref!$B$36,INDEX(Ranks!$1:$1048576,$A219,BA$1))","v":""},{"$f":"IF($A219=\"N/A\",Ref!$B$36,INDEX(Ranks!$1:$1048576,$A219,BB$1))","v":""},{"$f":"IF($A219=\"N/A\",Ref!$B$36,INDEX(Ranks!$1:$1048576,$A219,BC$1))","v":""},{"$f":"IF($A219=\"N/A\",Ref!$B$36,INDEX(Ranks!$1:$1048576,$A219,BD$1))","v":""},{"$f":"IF($A219=\"N/A\",Ref!$B$36,INDEX(Ranks!$1:$1048576,$A219,BE$1))","v":""},{"$f":"IF($A219=\"N/A\",Ref!$B$36,INDEX(Ranks!$1:$1048576,$A219,BF$1))","v":""},{"$f":"IF($A219=\"N/A\",Ref!$B$36,INDEX(Ranks!$1:$1048576,$A219,BG$1))","v":""},{"$f":"IF($A219=\"N/A\",Ref!$B$36,INDEX(Ranks!$1:$1048576,$A219,BH$1))","v":""},{"$f":"IF($A219=\"N/A\",Ref!$B$36,INDEX(Ranks!$1:$1048576,$A219,BI$1))","v":""},{"$f":"IF($A219=\"N/A\",Ref!$B$36,INDEX(Ranks!$1:$1048576,$A219,BJ$1))","v":""},{"$f":"IF($A219=\"N/A\",Ref!$B$36,INDEX(Ranks!$1:$1048576,$A219,BK$1))","v":""},{"$f":"IF($A219=\"N/A\",Ref!$B$36,INDEX(Ranks!$1:$1048576,$A219,BL$1))","v":""},{"$f":"IF($A219=\"N/A\",Ref!$B$36,INDEX(Ranks!$1:$1048576,$A219,BM$1))","v":""},{"$f":"IF($A219=\"N/A\",Ref!$B$36,INDEX(Ranks!$1:$1048576,$A219,BN$1))","v":""},{"$f":"IF($A219=\"N/A\",Ref!$B$36,INDEX(Ranks!$1:$1048576,$A219,BO$1))","v":""},{"$f":"IF($A219=\"N/A\",Ref!$B$36,INDEX(Ranks!$1:$1048576,$A219,BP$1))","v":""},{"$f":"IF($A219=\"N/A\",Ref!$B$36,INDEX(Ranks!$1:$1048576,$A219,BQ$1))","v":""},{"$f":"IF($A219=\"N/A\",Ref!$B$36,INDEX(Ranks!$1:$1048576,$A219,BR$1))","v":""},{"$f":"IF($A219=\"N/A\",Ref!$B$36,INDEX(Ranks!$1:$1048576,$A219,BS$1))","v":""},{"$f":"IF($A219=\"N/A\",Ref!$B$36,INDEX(Ranks!$1:$1048576,$A219,BT$1))","v":""},{"$f":"IF($A219=\"N/A\",Ref!$B$36,INDEX(Ranks!$1:$1048576,$A219,BU$1))","v":""},{"$f":"IF($A219=\"N/A\",Ref!$B$36,INDEX(Ranks!$1:$1048576,$A219,BV$1))","v":""},{"$f":"IF($A219=\"N/A\",Ref!$B$36,INDEX(Ranks!$1:$1048576,$A219,BW$1))","v":""},{"$f":"IF($A219=\"N/A\",Ref!$B$36,INDEX(Ranks!$1:$1048576,$A219,BX$1))","v":""},{"$f":"IF($A219=\"N/A\",Ref!$B$36,INDEX(Ranks!$1:$1048576,$A219,BY$1))","v":""},{"$f":"IF($A219=\"N/A\",Ref!$B$36,INDEX(Ranks!$1:$1048576,$A219,BZ$1))","v":""},{"$f":"IF($A219=\"N/A\",Ref!$B$36,INDEX(Ranks!$1:$1048576,$A219,CA$1))","v":""},{"$f":"IF($A219=\"N/A\",Ref!$B$36,INDEX(Ranks!$1:$1048576,$A219,CB$1))","v":""},{"$f":"IF($A219=\"N/A\",Ref!$B$36,INDEX(Ranks!$1:$1048576,$A219,CC$1))","v":""},{"$f":"IF($A219=\"N/A\",Ref!$B$36,INDEX(Ranks!$1:$1048576,$A219,CD$1))","v":""},{"$f":"IF($A219=\"N/A\",Ref!$B$36,INDEX(Ranks!$1:$1048576,$A219,CE$1))","v":""},{"$f":"IF($A219=\"N/A\",Ref!$B$36,INDEX(Ranks!$1:$1048576,$A219,CF$1))","v":""},{"$f":"IF($A219=\"N/A\",Ref!$B$36,INDEX(Ranks!$1:$1048576,$A219,CG$1))","v":""},{"$f":"IF($A219=\"N/A\",Ref!$B$36,INDEX(Ranks!$1:$1048576,$A219,CH$1))","v":""},{"$f":"IF($A219=\"N/A\",Ref!$B$36,INDEX(Ranks!$1:$1048576,$A219,CI$1))","v":""},{"$f":"IF($A219=\"N/A\",Ref!$B$36,INDEX(Ranks!$1:$1048576,$A219,CJ$1))","v":""},{"$f":"IF($A219=\"N/A\",Ref!$B$36,INDEX(Ranks!$1:$1048576,$A219,CK$1))","v":""},{"$f":"IF($A219=\"N/A\",Ref!$B$36,INDEX(Ranks!$1:$1048576,$A219,CL$1))","v":""},{"$f":"IF($A219=\"N/A\",Ref!$B$36,INDEX(Ranks!$1:$1048576,$A219,CM$1))","v":""},{"$f":"IF($A219=\"N/A\",Ref!$B$36,INDEX(Ranks!$1:$1048576,$A219,CN$1))","v":""},{"$f":"IF($A219=\"N/A\",Ref!$B$36,INDEX(Ranks!$1:$1048576,$A219,CO$1))","v":""},{"$f":"IF($A219=\"N/A\",Ref!$B$36,INDEX(Ranks!$1:$1048576,$A219,CP$1))","v":""},{"$f":"IF($A219=\"N/A\",Ref!$B$36,INDEX(Ranks!$1:$1048576,$A219,CQ$1))","v":""},{"$f":"IF($A219=\"N/A\",Ref!$B$36,INDEX(Ranks!$1:$1048576,$A219,CR$1))","v":""},{"$f":"IF($A219=\"N/A\",Ref!$B$36,INDEX(Ranks!$1:$1048576,$A219,CS$1))","v":""},{"$f":"IF($A219=\"N/A\",Ref!$B$36,INDEX(Ranks!$1:$1048576,$A219,CT$1))","v":""},{"$f":"IF($A219=\"N/A\",Ref!$B$36,INDEX(Ranks!$1:$1048576,$A219,CU$1))","v":""},{"$f":"IF($A219=\"N/A\",Ref!$B$36,INDEX(Ranks!$1:$1048576,$A219,CV$1))","v":""},{"$f":"IF($A219=\"N/A\",Ref!$B$36,INDEX(Ranks!$1:$1048576,$A219,CW$1))","v":""},{"$f":"IF($A219=\"N/A\",Ref!$B$36,INDEX(Ranks!$1:$1048576,$A219,CX$1))","v":""},{"$f":"IF($A219=\"N/A\",Ref!$B$36,INDEX(Ranks!$1:$1048576,$A219,CY$1))","v":""},{"$f":"IF($A219=\"N/A\",Ref!$B$36,INDEX(Ranks!$1:$1048576,$A219,CZ$1))","v":""},{"$f":"IF($A219=\"N/A\",Ref!$B$36,INDEX(Ranks!$1:$1048576,$A219,DA$1))","v":""},{"$f":"IF($A219=\"N/A\",Ref!$B$36,INDEX(Ranks!$1:$1048576,$A219,DB$1))","v":""},{"$f":"IF($A219=\"N/A\",Ref!$B$36,INDEX(Ranks!$1:$1048576,$A219,DC$1))","v":""},{"$f":"IF($A219=\"N/A\",Ref!$B$36,INDEX(Ranks!$1:$1048576,$A219,DD$1))","v":""},{"$f":"IF($A219=\"N/A\",Ref!$B$36,INDEX(Ranks!$1:$1048576,$A219,DE$1))","v":""},{"$f":"IF($A219=\"N/A\",Ref!$B$36,INDEX(Ranks!$1:$1048576,$A219,DF$1))","v":""},{"$f":"IF($A219=\"N/A\",Ref!$B$36,INDEX(Ranks!$1:$1048576,$A219,DG$1))","v":""},{"$f":"IF($A219=\"N/A\",Ref!$B$36,INDEX(Ranks!$1:$1048576,$A219,DH$1))","v":""},{"$f":"IF($A219=\"N/A\",Ref!$B$36,INDEX(Ranks!$1:$1048576,$A219,DI$1))","v":""},{"$f":"IF($A219=\"N/A\",Ref!$B$36,INDEX(Ranks!$1:$1048576,$A219,DJ$1))","v":""},{"$f":"IF($A219=\"N/A\",Ref!$B$36,INDEX(Ranks!$1:$1048576,$A219,DK$1))","v":""},{"$f":"IF($A219=\"N/A\",Ref!$B$36,INDEX(Ranks!$1:$1048576,$A219,DL$1))","v":""},{"$f":"IF($A219=\"N/A\",Ref!$B$36,INDEX(Ranks!$1:$1048576,$A219,DM$1))","v":""},{"$f":"IF($A219=\"N/A\",Ref!$B$36,INDEX(Ranks!$1:$1048576,$A219,DN$1))","v":""},{"$f":"IF($A219=\"N/A\",Ref!$B$36,INDEX(Ranks!$1:$1048576,$A219,DO$1))","v":""},{"$f":"IF($A219=\"N/A\",Ref!$B$36,INDEX(Ranks!$1:$1048576,$A219,DP$1))","v":""},{"$f":"IF($A219=\"N/A\",Ref!$B$36,INDEX(Ranks!$1:$1048576,$A219,DQ$1))","v":""},{"$f":"IF($A219=\"N/A\",Ref!$B$36,INDEX(Ranks!$1:$1048576,$A219,DR$1))","v":""},{"$f":"IF($A219=\"N/A\",Ref!$B$36,INDEX(Ranks!$1:$1048576,$A219,DS$1))","v":""},{"$f":"IF($A219=\"N/A\",Ref!$B$36,INDEX(Ranks!$1:$1048576,$A219,DT$1))","v":""},{"$f":"IF($A219=\"N/A\",Ref!$B$36,INDEX(Ranks!$1:$1048576,$A219,DU$1))","v":""},{"$f":"IF($A219=\"N/A\",Ref!$B$36,INDEX(Ranks!$1:$1048576,$A219,DV$1))","v":""},{"$f":"IF($A219=\"N/A\",Ref!$B$36,INDEX(Ranks!$1:$1048576,$A219,DW$1))","v":""},{"$f":"IF($A219=\"N/A\",Ref!$B$36,INDEX(Ranks!$1:$1048576,$A219,DX$1))","v":""},{"$f":"IF($A219=\"N/A\",Ref!$B$36,INDEX(Ranks!$1:$1048576,$A219,DY$1))","v":""},{"$f":"IF($A219=\"N/A\",Ref!$B$36,INDEX(Ranks!$1:$1048576,$A219,DZ$1))","v":""},{"$f":"IF($A219=\"N/A\",Ref!$B$36,INDEX(Ranks!$1:$1048576,$A219,EA$1))","v":""},{"$f":"IF($A219=\"N/A\",Ref!$B$36,INDEX(Ranks!$1:$1048576,$A219,EB$1))","v":""}]
[{"$f":"IFERROR(MATCH('Portfolio Page'!L220,Ranks!L:L,0),\"N/A\")","v":"N/A"},null,{"$f":"IF($A220=\"N/A\",\"\",INDEX(Ranks!$1:$1048576,$A220,C$1))","v":""},{"$f":"IF($A220=\"N/A\",Ref!$B$36,INDEX(Ranks!$1:$1048576,$A220,D$1))","v":""},{"$f":"IF($A220=\"N/A\",Ref!$B$36,INDEX(Ranks!$1:$1048576,$A220,E$1))","v":""},{"$f":"IF($A220=\"N/A\",\"\",INDEX(Ranks!$1:$1048576,$A220,F$1))","v":""},{"$f":"IF($A220=\"N/A\",\"\",INDEX(Ranks!$1:$1048576,$A220,G$1))","v":""},{"$f":"IF($A220=\"N/A\",\"\",INDEX(Ranks!$1:$1048576,$A220,H$1))","v":""},{"$f":"IF($A220=\"N/A\",\"\",INDEX(Ranks!$1:$1048576,$A220,I$1))","v":""},{"$f":"IF($A220=\"N/A\",\"\",INDEX(Ranks!$1:$1048576,$A220,J$1))","v":""},{"$f":"IF($A220=\"N/A\",\"\",INDEX(Ranks!$1:$1048576,$A220,K$1))","v":""},null,{"$f":"IF($A220=\"N/A\",Ref!$B$36,INDEX(Ranks!$1:$1048576,$A220,M$1))","v":""},{"$f":"IF($A220=\"N/A\",Ref!$B$36,INDEX(Ranks!$1:$1048576,$A220,N$1))","v":""},{"$f":"IF($A220=\"N/A\",Ref!$B$36,INDEX(Ranks!$1:$1048576,$A220,O$1))","v":""},{"$f":"IF($A220=\"N/A\",Ref!$B$36,INDEX(Ranks!$1:$1048576,$A220,P$1))","v":""},{"$f":"IF($A220=\"N/A\",Ref!$B$36,INDEX(Ranks!$1:$1048576,$A220,Q$1))","v":""},{"$f":"IF($A220=\"N/A\",Ref!$B$36,INDEX(Ranks!$1:$1048576,$A220,R$1))","v":""},{"$f":"IF($A220=\"N/A\",Ref!$B$36,INDEX(Ranks!$1:$1048576,$A220,S$1))","v":""},{"$f":"IF($A220=\"N/A\",Ref!$B$36,INDEX(Ranks!$1:$1048576,$A220,T$1))","v":""},{"$f":"IF($A220=\"N/A\",Ref!$B$36,INDEX(Ranks!$1:$1048576,$A220,U$1))","v":""},{"$f":"IF($A220=\"N/A\",Ref!$B$36,INDEX(Ranks!$1:$1048576,$A220,V$1))","v":""},{"$f":"IF($A220=\"N/A\",Ref!$B$36,INDEX(Ranks!$1:$1048576,$A220,W$1))","v":""},{"$f":"IF($A220=\"N/A\",Ref!$B$36,INDEX(Ranks!$1:$1048576,$A220,X$1))","v":""},{"$f":"IF($A220=\"N/A\",Ref!$B$36,INDEX(Ranks!$1:$1048576,$A220,Y$1))","v":""},{"$f":"IF($A220=\"N/A\",Ref!$B$36,INDEX(Ranks!$1:$1048576,$A220,Z$1))","v":""},{"$f":"IF($A220=\"N/A\",Ref!$B$36,INDEX(Ranks!$1:$1048576,$A220,AA$1))","v":""},{"$f":"IF($A220=\"N/A\",Ref!$B$36,INDEX(Ranks!$1:$1048576,$A220,AB$1))","v":""},{"$f":"IF($A220=\"N/A\",Ref!$B$36,INDEX(Ranks!$1:$1048576,$A220,AC$1))","v":""},{"$f":"IF($A220=\"N/A\",Ref!$B$36,INDEX(Ranks!$1:$1048576,$A220,AD$1))","v":""},{"$f":"IF($A220=\"N/A\",Ref!$B$36,INDEX(Ranks!$1:$1048576,$A220,AE$1))","v":""},{"$f":"IF($A220=\"N/A\",Ref!$B$36,INDEX(Ranks!$1:$1048576,$A220,AF$1))","v":""},{"$f":"IF($A220=\"N/A\",Ref!$B$36,INDEX(Ranks!$1:$1048576,$A220,AG$1))","v":""},{"$f":"IF($A220=\"N/A\",Ref!$B$36,INDEX(Ranks!$1:$1048576,$A220,AH$1))","v":""},{"$f":"IF($A220=\"N/A\",Ref!$B$36,INDEX(Ranks!$1:$1048576,$A220,AI$1))","v":""},{"$f":"IF($A220=\"N/A\",Ref!$B$36,INDEX(Ranks!$1:$1048576,$A220,AJ$1))","v":""},{"$f":"IF($A220=\"N/A\",Ref!$B$36,INDEX(Ranks!$1:$1048576,$A220,AK$1))","v":""},{"$f":"IF($A220=\"N/A\",Ref!$B$36,INDEX(Ranks!$1:$1048576,$A220,AL$1))","v":""},{"$f":"IF($A220=\"N/A\",Ref!$B$36,INDEX(Ranks!$1:$1048576,$A220,AM$1))","v":""},{"$f":"IF($A220=\"N/A\",Ref!$B$36,INDEX(Ranks!$1:$1048576,$A220,AN$1))","v":""},{"$f":"IF($A220=\"N/A\",Ref!$B$36,INDEX(Ranks!$1:$1048576,$A220,AO$1))","v":""},{"$f":"IF($A220=\"N/A\",Ref!$B$36,INDEX(Ranks!$1:$1048576,$A220,AP$1))","v":""},{"$f":"IF($A220=\"N/A\",Ref!$B$36,INDEX(Ranks!$1:$1048576,$A220,AQ$1))","v":""},{"$f":"IF($A220=\"N/A\",Ref!$B$36,INDEX(Ranks!$1:$1048576,$A220,AR$1))","v":""},{"$f":"IF($A220=\"N/A\",Ref!$B$36,INDEX(Ranks!$1:$1048576,$A220,AS$1))","v":""},{"$f":"IF($A220=\"N/A\",Ref!$B$36,INDEX(Ranks!$1:$1048576,$A220,AT$1))","v":""},{"$f":"IF($A220=\"N/A\",Ref!$B$36,INDEX(Ranks!$1:$1048576,$A220,AU$1))","v":""},{"$f":"IF($A220=\"N/A\",Ref!$B$36,INDEX(Ranks!$1:$1048576,$A220,AV$1))","v":""},{"$f":"IF($A220=\"N/A\",Ref!$B$36,INDEX(Ranks!$1:$1048576,$A220,AW$1))","v":""},{"$f":"IF($A220=\"N/A\",Ref!$B$36,INDEX(Ranks!$1:$1048576,$A220,AX$1))","v":""},{"$f":"IF($A220=\"N/A\",Ref!$B$36,INDEX(Ranks!$1:$1048576,$A220,AY$1))","v":""},{"$f":"IF($A220=\"N/A\",Ref!$B$36,INDEX(Ranks!$1:$1048576,$A220,AZ$1))","v":""},{"$f":"IF($A220=\"N/A\",Ref!$B$36,INDEX(Ranks!$1:$1048576,$A220,BA$1))","v":""},{"$f":"IF($A220=\"N/A\",Ref!$B$36,INDEX(Ranks!$1:$1048576,$A220,BB$1))","v":""},{"$f":"IF($A220=\"N/A\",Ref!$B$36,INDEX(Ranks!$1:$1048576,$A220,BC$1))","v":""},{"$f":"IF($A220=\"N/A\",Ref!$B$36,INDEX(Ranks!$1:$1048576,$A220,BD$1))","v":""},{"$f":"IF($A220=\"N/A\",Ref!$B$36,INDEX(Ranks!$1:$1048576,$A220,BE$1))","v":""},{"$f":"IF($A220=\"N/A\",Ref!$B$36,INDEX(Ranks!$1:$1048576,$A220,BF$1))","v":""},{"$f":"IF($A220=\"N/A\",Ref!$B$36,INDEX(Ranks!$1:$1048576,$A220,BG$1))","v":""},{"$f":"IF($A220=\"N/A\",Ref!$B$36,INDEX(Ranks!$1:$1048576,$A220,BH$1))","v":""},{"$f":"IF($A220=\"N/A\",Ref!$B$36,INDEX(Ranks!$1:$1048576,$A220,BI$1))","v":""},{"$f":"IF($A220=\"N/A\",Ref!$B$36,INDEX(Ranks!$1:$1048576,$A220,BJ$1))","v":""},{"$f":"IF($A220=\"N/A\",Ref!$B$36,INDEX(Ranks!$1:$1048576,$A220,BK$1))","v":""},{"$f":"IF($A220=\"N/A\",Ref!$B$36,INDEX(Ranks!$1:$1048576,$A220,BL$1))","v":""},{"$f":"IF($A220=\"N/A\",Ref!$B$36,INDEX(Ranks!$1:$1048576,$A220,BM$1))","v":""},{"$f":"IF($A220=\"N/A\",Ref!$B$36,INDEX(Ranks!$1:$1048576,$A220,BN$1))","v":""},{"$f":"IF($A220=\"N/A\",Ref!$B$36,INDEX(Ranks!$1:$1048576,$A220,BO$1))","v":""},{"$f":"IF($A220=\"N/A\",Ref!$B$36,INDEX(Ranks!$1:$1048576,$A220,BP$1))","v":""},{"$f":"IF($A220=\"N/A\",Ref!$B$36,INDEX(Ranks!$1:$1048576,$A220,BQ$1))","v":""},{"$f":"IF($A220=\"N/A\",Ref!$B$36,INDEX(Ranks!$1:$1048576,$A220,BR$1))","v":""},{"$f":"IF($A220=\"N/A\",Ref!$B$36,INDEX(Ranks!$1:$1048576,$A220,BS$1))","v":""},{"$f":"IF($A220=\"N/A\",Ref!$B$36,INDEX(Ranks!$1:$1048576,$A220,BT$1))","v":""},{"$f":"IF($A220=\"N/A\",Ref!$B$36,INDEX(Ranks!$1:$1048576,$A220,BU$1))","v":""},{"$f":"IF($A220=\"N/A\",Ref!$B$36,INDEX(Ranks!$1:$1048576,$A220,BV$1))","v":""},{"$f":"IF($A220=\"N/A\",Ref!$B$36,INDEX(Ranks!$1:$1048576,$A220,BW$1))","v":""},{"$f":"IF($A220=\"N/A\",Ref!$B$36,INDEX(Ranks!$1:$1048576,$A220,BX$1))","v":""},{"$f":"IF($A220=\"N/A\",Ref!$B$36,INDEX(Ranks!$1:$1048576,$A220,BY$1))","v":""},{"$f":"IF($A220=\"N/A\",Ref!$B$36,INDEX(Ranks!$1:$1048576,$A220,BZ$1))","v":""},{"$f":"IF($A220=\"N/A\",Ref!$B$36,INDEX(Ranks!$1:$1048576,$A220,CA$1))","v":""},{"$f":"IF($A220=\"N/A\",Ref!$B$36,INDEX(Ranks!$1:$1048576,$A220,CB$1))","v":""},{"$f":"IF($A220=\"N/A\",Ref!$B$36,INDEX(Ranks!$1:$1048576,$A220,CC$1))","v":""},{"$f":"IF($A220=\"N/A\",Ref!$B$36,INDEX(Ranks!$1:$1048576,$A220,CD$1))","v":""},{"$f":"IF($A220=\"N/A\",Ref!$B$36,INDEX(Ranks!$1:$1048576,$A220,CE$1))","v":""},{"$f":"IF($A220=\"N/A\",Ref!$B$36,INDEX(Ranks!$1:$1048576,$A220,CF$1))","v":""},{"$f":"IF($A220=\"N/A\",Ref!$B$36,INDEX(Ranks!$1:$1048576,$A220,CG$1))","v":""},{"$f":"IF($A220=\"N/A\",Ref!$B$36,INDEX(Ranks!$1:$1048576,$A220,CH$1))","v":""},{"$f":"IF($A220=\"N/A\",Ref!$B$36,INDEX(Ranks!$1:$1048576,$A220,CI$1))","v":""},{"$f":"IF($A220=\"N/A\",Ref!$B$36,INDEX(Ranks!$1:$1048576,$A220,CJ$1))","v":""},{"$f":"IF($A220=\"N/A\",Ref!$B$36,INDEX(Ranks!$1:$1048576,$A220,CK$1))","v":""},{"$f":"IF($A220=\"N/A\",Ref!$B$36,INDEX(Ranks!$1:$1048576,$A220,CL$1))","v":""},{"$f":"IF($A220=\"N/A\",Ref!$B$36,INDEX(Ranks!$1:$1048576,$A220,CM$1))","v":""},{"$f":"IF($A220=\"N/A\",Ref!$B$36,INDEX(Ranks!$1:$1048576,$A220,CN$1))","v":""},{"$f":"IF($A220=\"N/A\",Ref!$B$36,INDEX(Ranks!$1:$1048576,$A220,CO$1))","v":""},{"$f":"IF($A220=\"N/A\",Ref!$B$36,INDEX(Ranks!$1:$1048576,$A220,CP$1))","v":""},{"$f":"IF($A220=\"N/A\",Ref!$B$36,INDEX(Ranks!$1:$1048576,$A220,CQ$1))","v":""},{"$f":"IF($A220=\"N/A\",Ref!$B$36,INDEX(Ranks!$1:$1048576,$A220,CR$1))","v":""},{"$f":"IF($A220=\"N/A\",Ref!$B$36,INDEX(Ranks!$1:$1048576,$A220,CS$1))","v":""},{"$f":"IF($A220=\"N/A\",Ref!$B$36,INDEX(Ranks!$1:$1048576,$A220,CT$1))","v":""},{"$f":"IF($A220=\"N/A\",Ref!$B$36,INDEX(Ranks!$1:$1048576,$A220,CU$1))","v":""},{"$f":"IF($A220=\"N/A\",Ref!$B$36,INDEX(Ranks!$1:$1048576,$A220,CV$1))","v":""},{"$f":"IF($A220=\"N/A\",Ref!$B$36,INDEX(Ranks!$1:$1048576,$A220,CW$1))","v":""},{"$f":"IF($A220=\"N/A\",Ref!$B$36,INDEX(Ranks!$1:$1048576,$A220,CX$1))","v":""},{"$f":"IF($A220=\"N/A\",Ref!$B$36,INDEX(Ranks!$1:$1048576,$A220,CY$1))","v":""},{"$f":"IF($A220=\"N/A\",Ref!$B$36,INDEX(Ranks!$1:$1048576,$A220,CZ$1))","v":""},{"$f":"IF($A220=\"N/A\",Ref!$B$36,INDEX(Ranks!$1:$1048576,$A220,DA$1))","v":""},{"$f":"IF($A220=\"N/A\",Ref!$B$36,INDEX(Ranks!$1:$1048576,$A220,DB$1))","v":""},{"$f":"IF($A220=\"N/A\",Ref!$B$36,INDEX(Ranks!$1:$1048576,$A220,DC$1))","v":""},{"$f":"IF($A220=\"N/A\",Ref!$B$36,INDEX(Ranks!$1:$1048576,$A220,DD$1))","v":""},{"$f":"IF($A220=\"N/A\",Ref!$B$36,INDEX(Ranks!$1:$1048576,$A220,DE$1))","v":""},{"$f":"IF($A220=\"N/A\",Ref!$B$36,INDEX(Ranks!$1:$1048576,$A220,DF$1))","v":""},{"$f":"IF($A220=\"N/A\",Ref!$B$36,INDEX(Ranks!$1:$1048576,$A220,DG$1))","v":""},{"$f":"IF($A220=\"N/A\",Ref!$B$36,INDEX(Ranks!$1:$1048576,$A220,DH$1))","v":""},{"$f":"IF($A220=\"N/A\",Ref!$B$36,INDEX(Ranks!$1:$1048576,$A220,DI$1))","v":""},{"$f":"IF($A220=\"N/A\",Ref!$B$36,INDEX(Ranks!$1:$1048576,$A220,DJ$1))","v":""},{"$f":"IF($A220=\"N/A\",Ref!$B$36,INDEX(Ranks!$1:$1048576,$A220,DK$1))","v":""},{"$f":"IF($A220=\"N/A\",Ref!$B$36,INDEX(Ranks!$1:$1048576,$A220,DL$1))","v":""},{"$f":"IF($A220=\"N/A\",Ref!$B$36,INDEX(Ranks!$1:$1048576,$A220,DM$1))","v":""},{"$f":"IF($A220=\"N/A\",Ref!$B$36,INDEX(Ranks!$1:$1048576,$A220,DN$1))","v":""},{"$f":"IF($A220=\"N/A\",Ref!$B$36,INDEX(Ranks!$1:$1048576,$A220,DO$1))","v":""},{"$f":"IF($A220=\"N/A\",Ref!$B$36,INDEX(Ranks!$1:$1048576,$A220,DP$1))","v":""},{"$f":"IF($A220=\"N/A\",Ref!$B$36,INDEX(Ranks!$1:$1048576,$A220,DQ$1))","v":""},{"$f":"IF($A220=\"N/A\",Ref!$B$36,INDEX(Ranks!$1:$1048576,$A220,DR$1))","v":""},{"$f":"IF($A220=\"N/A\",Ref!$B$36,INDEX(Ranks!$1:$1048576,$A220,DS$1))","v":""},{"$f":"IF($A220=\"N/A\",Ref!$B$36,INDEX(Ranks!$1:$1048576,$A220,DT$1))","v":""},{"$f":"IF($A220=\"N/A\",Ref!$B$36,INDEX(Ranks!$1:$1048576,$A220,DU$1))","v":""},{"$f":"IF($A220=\"N/A\",Ref!$B$36,INDEX(Ranks!$1:$1048576,$A220,DV$1))","v":""},{"$f":"IF($A220=\"N/A\",Ref!$B$36,INDEX(Ranks!$1:$1048576,$A220,DW$1))","v":""},{"$f":"IF($A220=\"N/A\",Ref!$B$36,INDEX(Ranks!$1:$1048576,$A220,DX$1))","v":""},{"$f":"IF($A220=\"N/A\",Ref!$B$36,INDEX(Ranks!$1:$1048576,$A220,DY$1))","v":""},{"$f":"IF($A220=\"N/A\",Ref!$B$36,INDEX(Ranks!$1:$1048576,$A220,DZ$1))","v":""},{"$f":"IF($A220=\"N/A\",Ref!$B$36,INDEX(Ranks!$1:$1048576,$A220,EA$1))","v":""},{"$f":"IF($A220=\"N/A\",Ref!$B$36,INDEX(Ranks!$1:$1048576,$A220,EB$1))","v":""}]
[{"$f":"IFERROR(MATCH('Portfolio Page'!L221,Ranks!L:L,0),\"N/A\")","v":"N/A"},null,{"$f":"IF($A221=\"N/A\",\"\",INDEX(Ranks!$1:$1048576,$A221,C$1))","v":""},{"$f":"IF($A221=\"N/A\",Ref!$B$36,INDEX(Ranks!$1:$1048576,$A221,D$1))","v":""},{"$f":"IF($A221=\"N/A\",Ref!$B$36,INDEX(Ranks!$1:$1048576,$A221,E$1))","v":""},{"$f":"IF($A221=\"N/A\",\"\",INDEX(Ranks!$1:$1048576,$A221,F$1))","v":""},{"$f":"IF($A221=\"N/A\",\"\",INDEX(Ranks!$1:$1048576,$A221,G$1))","v":""},{"$f":"IF($A221=\"N/A\",\"\",INDEX(Ranks!$1:$1048576,$A221,H$1))","v":""},{"$f":"IF($A221=\"N/A\",\"\",INDEX(Ranks!$1:$1048576,$A221,I$1))","v":""},{"$f":"IF($A221=\"N/A\",\"\",INDEX(Ranks!$1:$1048576,$A221,J$1))","v":""},{"$f":"IF($A221=\"N/A\",\"\",INDEX(Ranks!$1:$1048576,$A221,K$1))","v":""},null,{"$f":"IF($A221=\"N/A\",Ref!$B$36,INDEX(Ranks!$1:$1048576,$A221,M$1))","v":""},{"$f":"IF($A221=\"N/A\",Ref!$B$36,INDEX(Ranks!$1:$1048576,$A221,N$1))","v":""},{"$f":"IF($A221=\"N/A\",Ref!$B$36,INDEX(Ranks!$1:$1048576,$A221,O$1))","v":""},{"$f":"IF($A221=\"N/A\",Ref!$B$36,INDEX(Ranks!$1:$1048576,$A221,P$1))","v":""},{"$f":"IF($A221=\"N/A\",Ref!$B$36,INDEX(Ranks!$1:$1048576,$A221,Q$1))","v":""},{"$f":"IF($A221=\"N/A\",Ref!$B$36,INDEX(Ranks!$1:$1048576,$A221,R$1))","v":""},{"$f":"IF($A221=\"N/A\",Ref!$B$36,INDEX(Ranks!$1:$1048576,$A221,S$1))","v":""},{"$f":"IF($A221=\"N/A\",Ref!$B$36,INDEX(Ranks!$1:$1048576,$A221,T$1))","v":""},{"$f":"IF($A221=\"N/A\",Ref!$B$36,INDEX(Ranks!$1:$1048576,$A221,U$1))","v":""},{"$f":"IF($A221=\"N/A\",Ref!$B$36,INDEX(Ranks!$1:$1048576,$A221,V$1))","v":""},{"$f":"IF($A221=\"N/A\",Ref!$B$36,INDEX(Ranks!$1:$1048576,$A221,W$1))","v":""},{"$f":"IF($A221=\"N/A\",Ref!$B$36,INDEX(Ranks!$1:$1048576,$A221,X$1))","v":""},{"$f":"IF($A221=\"N/A\",Ref!$B$36,INDEX(Ranks!$1:$1048576,$A221,Y$1))","v":""},{"$f":"IF($A221=\"N/A\",Ref!$B$36,INDEX(Ranks!$1:$1048576,$A221,Z$1))","v":""},{"$f":"IF($A221=\"N/A\",Ref!$B$36,INDEX(Ranks!$1:$1048576,$A221,AA$1))","v":""},{"$f":"IF($A221=\"N/A\",Ref!$B$36,INDEX(Ranks!$1:$1048576,$A221,AB$1))","v":""},{"$f":"IF($A221=\"N/A\",Ref!$B$36,INDEX(Ranks!$1:$1048576,$A221,AC$1))","v":""},{"$f":"IF($A221=\"N/A\",Ref!$B$36,INDEX(Ranks!$1:$1048576,$A221,AD$1))","v":""},{"$f":"IF($A221=\"N/A\",Ref!$B$36,INDEX(Ranks!$1:$1048576,$A221,AE$1))","v":""},{"$f":"IF($A221=\"N/A\",Ref!$B$36,INDEX(Ranks!$1:$1048576,$A221,AF$1))","v":""},{"$f":"IF($A221=\"N/A\",Ref!$B$36,INDEX(Ranks!$1:$1048576,$A221,AG$1))","v":""},{"$f":"IF($A221=\"N/A\",Ref!$B$36,INDEX(Ranks!$1:$1048576,$A221,AH$1))","v":""},{"$f":"IF($A221=\"N/A\",Ref!$B$36,INDEX(Ranks!$1:$1048576,$A221,AI$1))","v":""},{"$f":"IF($A221=\"N/A\",Ref!$B$36,INDEX(Ranks!$1:$1048576,$A221,AJ$1))","v":""},{"$f":"IF($A221=\"N/A\",Ref!$B$36,INDEX(Ranks!$1:$1048576,$A221,AK$1))","v":""},{"$f":"IF($A221=\"N/A\",Ref!$B$36,INDEX(Ranks!$1:$1048576,$A221,AL$1))","v":""},{"$f":"IF($A221=\"N/A\",Ref!$B$36,INDEX(Ranks!$1:$1048576,$A221,AM$1))","v":""},{"$f":"IF($A221=\"N/A\",Ref!$B$36,INDEX(Ranks!$1:$1048576,$A221,AN$1))","v":""},{"$f":"IF($A221=\"N/A\",Ref!$B$36,INDEX(Ranks!$1:$1048576,$A221,AO$1))","v":""},{"$f":"IF($A221=\"N/A\",Ref!$B$36,INDEX(Ranks!$1:$1048576,$A221,AP$1))","v":""},{"$f":"IF($A221=\"N/A\",Ref!$B$36,INDEX(Ranks!$1:$1048576,$A221,AQ$1))","v":""},{"$f":"IF($A221=\"N/A\",Ref!$B$36,INDEX(Ranks!$1:$1048576,$A221,AR$1))","v":""},{"$f":"IF($A221=\"N/A\",Ref!$B$36,INDEX(Ranks!$1:$1048576,$A221,AS$1))","v":""},{"$f":"IF($A221=\"N/A\",Ref!$B$36,INDEX(Ranks!$1:$1048576,$A221,AT$1))","v":""},{"$f":"IF($A221=\"N/A\",Ref!$B$36,INDEX(Ranks!$1:$1048576,$A221,AU$1))","v":""},{"$f":"IF($A221=\"N/A\",Ref!$B$36,INDEX(Ranks!$1:$1048576,$A221,AV$1))","v":""},{"$f":"IF($A221=\"N/A\",Ref!$B$36,INDEX(Ranks!$1:$1048576,$A221,AW$1))","v":""},{"$f":"IF($A221=\"N/A\",Ref!$B$36,INDEX(Ranks!$1:$1048576,$A221,AX$1))","v":""},{"$f":"IF($A221=\"N/A\",Ref!$B$36,INDEX(Ranks!$1:$1048576,$A221,AY$1))","v":""},{"$f":"IF($A221=\"N/A\",Ref!$B$36,INDEX(Ranks!$1:$1048576,$A221,AZ$1))","v":""},{"$f":"IF($A221=\"N/A\",Ref!$B$36,INDEX(Ranks!$1:$1048576,$A221,BA$1))","v":""},{"$f":"IF($A221=\"N/A\",Ref!$B$36,INDEX(Ranks!$1:$1048576,$A221,BB$1))","v":""},{"$f":"IF($A221=\"N/A\",Ref!$B$36,INDEX(Ranks!$1:$1048576,$A221,BC$1))","v":""},{"$f":"IF($A221=\"N/A\",Ref!$B$36,INDEX(Ranks!$1:$1048576,$A221,BD$1))","v":""},{"$f":"IF($A221=\"N/A\",Ref!$B$36,INDEX(Ranks!$1:$1048576,$A221,BE$1))","v":""},{"$f":"IF($A221=\"N/A\",Ref!$B$36,INDEX(Ranks!$1:$1048576,$A221,BF$1))","v":""},{"$f":"IF($A221=\"N/A\",Ref!$B$36,INDEX(Ranks!$1:$1048576,$A221,BG$1))","v":""},{"$f":"IF($A221=\"N/A\",Ref!$B$36,INDEX(Ranks!$1:$1048576,$A221,BH$1))","v":""},{"$f":"IF($A221=\"N/A\",Ref!$B$36,INDEX(Ranks!$1:$1048576,$A221,BI$1))","v":""},{"$f":"IF($A221=\"N/A\",Ref!$B$36,INDEX(Ranks!$1:$1048576,$A221,BJ$1))","v":""},{"$f":"IF($A221=\"N/A\",Ref!$B$36,INDEX(Ranks!$1:$1048576,$A221,BK$1))","v":""},{"$f":"IF($A221=\"N/A\",Ref!$B$36,INDEX(Ranks!$1:$1048576,$A221,BL$1))","v":""},{"$f":"IF($A221=\"N/A\",Ref!$B$36,INDEX(Ranks!$1:$1048576,$A221,BM$1))","v":""},{"$f":"IF($A221=\"N/A\",Ref!$B$36,INDEX(Ranks!$1:$1048576,$A221,BN$1))","v":""},{"$f":"IF($A221=\"N/A\",Ref!$B$36,INDEX(Ranks!$1:$1048576,$A221,BO$1))","v":""},{"$f":"IF($A221=\"N/A\",Ref!$B$36,INDEX(Ranks!$1:$1048576,$A221,BP$1))","v":""},{"$f":"IF($A221=\"N/A\",Ref!$B$36,INDEX(Ranks!$1:$1048576,$A221,BQ$1))","v":""},{"$f":"IF($A221=\"N/A\",Ref!$B$36,INDEX(Ranks!$1:$1048576,$A221,BR$1))","v":""},{"$f":"IF($A221=\"N/A\",Ref!$B$36,INDEX(Ranks!$1:$1048576,$A221,BS$1))","v":""},{"$f":"IF($A221=\"N/A\",Ref!$B$36,INDEX(Ranks!$1:$1048576,$A221,BT$1))","v":""},{"$f":"IF($A221=\"N/A\",Ref!$B$36,INDEX(Ranks!$1:$1048576,$A221,BU$1))","v":""},{"$f":"IF($A221=\"N/A\",Ref!$B$36,INDEX(Ranks!$1:$1048576,$A221,BV$1))","v":""},{"$f":"IF($A221=\"N/A\",Ref!$B$36,INDEX(Ranks!$1:$1048576,$A221,BW$1))","v":""},{"$f":"IF($A221=\"N/A\",Ref!$B$36,INDEX(Ranks!$1:$1048576,$A221,BX$1))","v":""},{"$f":"IF($A221=\"N/A\",Ref!$B$36,INDEX(Ranks!$1:$1048576,$A221,BY$1))","v":""},{"$f":"IF($A221=\"N/A\",Ref!$B$36,INDEX(Ranks!$1:$1048576,$A221,BZ$1))","v":""},{"$f":"IF($A221=\"N/A\",Ref!$B$36,INDEX(Ranks!$1:$1048576,$A221,CA$1))","v":""},{"$f":"IF($A221=\"N/A\",Ref!$B$36,INDEX(Ranks!$1:$1048576,$A221,CB$1))","v":""},{"$f":"IF($A221=\"N/A\",Ref!$B$36,INDEX(Ranks!$1:$1048576,$A221,CC$1))","v":""},{"$f":"IF($A221=\"N/A\",Ref!$B$36,INDEX(Ranks!$1:$1048576,$A221,CD$1))","v":""},{"$f":"IF($A221=\"N/A\",Ref!$B$36,INDEX(Ranks!$1:$1048576,$A221,CE$1))","v":""},{"$f":"IF($A221=\"N/A\",Ref!$B$36,INDEX(Ranks!$1:$1048576,$A221,CF$1))","v":""},{"$f":"IF($A221=\"N/A\",Ref!$B$36,INDEX(Ranks!$1:$1048576,$A221,CG$1))","v":""},{"$f":"IF($A221=\"N/A\",Ref!$B$36,INDEX(Ranks!$1:$1048576,$A221,CH$1))","v":""},{"$f":"IF($A221=\"N/A\",Ref!$B$36,INDEX(Ranks!$1:$1048576,$A221,CI$1))","v":""},{"$f":"IF($A221=\"N/A\",Ref!$B$36,INDEX(Ranks!$1:$1048576,$A221,CJ$1))","v":""},{"$f":"IF($A221=\"N/A\",Ref!$B$36,INDEX(Ranks!$1:$1048576,$A221,CK$1))","v":""},{"$f":"IF($A221=\"N/A\",Ref!$B$36,INDEX(Ranks!$1:$1048576,$A221,CL$1))","v":""},{"$f":"IF($A221=\"N/A\",Ref!$B$36,INDEX(Ranks!$1:$1048576,$A221,CM$1))","v":""},{"$f":"IF($A221=\"N/A\",Ref!$B$36,INDEX(Ranks!$1:$1048576,$A221,CN$1))","v":""},{"$f":"IF($A221=\"N/A\",Ref!$B$36,INDEX(Ranks!$1:$1048576,$A221,CO$1))","v":""},{"$f":"IF($A221=\"N/A\",Ref!$B$36,INDEX(Ranks!$1:$1048576,$A221,CP$1))","v":""},{"$f":"IF($A221=\"N/A\",Ref!$B$36,INDEX(Ranks!$1:$1048576,$A221,CQ$1))","v":""},{"$f":"IF($A221=\"N/A\",Ref!$B$36,INDEX(Ranks!$1:$1048576,$A221,CR$1))","v":""},{"$f":"IF($A221=\"N/A\",Ref!$B$36,INDEX(Ranks!$1:$1048576,$A221,CS$1))","v":""},{"$f":"IF($A221=\"N/A\",Ref!$B$36,INDEX(Ranks!$1:$1048576,$A221,CT$1))","v":""},{"$f":"IF($A221=\"N/A\",Ref!$B$36,INDEX(Ranks!$1:$1048576,$A221,CU$1))","v":""},{"$f":"IF($A221=\"N/A\",Ref!$B$36,INDEX(Ranks!$1:$1048576,$A221,CV$1))","v":""},{"$f":"IF($A221=\"N/A\",Ref!$B$36,INDEX(Ranks!$1:$1048576,$A221,CW$1))","v":""},{"$f":"IF($A221=\"N/A\",Ref!$B$36,INDEX(Ranks!$1:$1048576,$A221,CX$1))","v":""},{"$f":"IF($A221=\"N/A\",Ref!$B$36,INDEX(Ranks!$1:$1048576,$A221,CY$1))","v":""},{"$f":"IF($A221=\"N/A\",Ref!$B$36,INDEX(Ranks!$1:$1048576,$A221,CZ$1))","v":""},{"$f":"IF($A221=\"N/A\",Ref!$B$36,INDEX(Ranks!$1:$1048576,$A221,DA$1))","v":""},{"$f":"IF($A221=\"N/A\",Ref!$B$36,INDEX(Ranks!$1:$1048576,$A221,DB$1))","v":""},{"$f":"IF($A221=\"N/A\",Ref!$B$36,INDEX(Ranks!$1:$1048576,$A221,DC$1))","v":""},{"$f":"IF($A221=\"N/A\",Ref!$B$36,INDEX(Ranks!$1:$1048576,$A221,DD$1))","v":""},{"$f":"IF($A221=\"N/A\",Ref!$B$36,INDEX(Ranks!$1:$1048576,$A221,DE$1))","v":""},{"$f":"IF($A221=\"N/A\",Ref!$B$36,INDEX(Ranks!$1:$1048576,$A221,DF$1))","v":""},{"$f":"IF($A221=\"N/A\",Ref!$B$36,INDEX(Ranks!$1:$1048576,$A221,DG$1))","v":""},{"$f":"IF($A221=\"N/A\",Ref!$B$36,INDEX(Ranks!$1:$1048576,$A221,DH$1))","v":""},{"$f":"IF($A221=\"N/A\",Ref!$B$36,INDEX(Ranks!$1:$1048576,$A221,DI$1))","v":""},{"$f":"IF($A221=\"N/A\",Ref!$B$36,INDEX(Ranks!$1:$1048576,$A221,DJ$1))","v":""},{"$f":"IF($A221=\"N/A\",Ref!$B$36,INDEX(Ranks!$1:$1048576,$A221,DK$1))","v":""},{"$f":"IF($A221=\"N/A\",Ref!$B$36,INDEX(Ranks!$1:$1048576,$A221,DL$1))","v":""},{"$f":"IF($A221=\"N/A\",Ref!$B$36,INDEX(Ranks!$1:$1048576,$A221,DM$1))","v":""},{"$f":"IF($A221=\"N/A\",Ref!$B$36,INDEX(Ranks!$1:$1048576,$A221,DN$1))","v":""},{"$f":"IF($A221=\"N/A\",Ref!$B$36,INDEX(Ranks!$1:$1048576,$A221,DO$1))","v":""},{"$f":"IF($A221=\"N/A\",Ref!$B$36,INDEX(Ranks!$1:$1048576,$A221,DP$1))","v":""},{"$f":"IF($A221=\"N/A\",Ref!$B$36,INDEX(Ranks!$1:$1048576,$A221,DQ$1))","v":""},{"$f":"IF($A221=\"N/A\",Ref!$B$36,INDEX(Ranks!$1:$1048576,$A221,DR$1))","v":""},{"$f":"IF($A221=\"N/A\",Ref!$B$36,INDEX(Ranks!$1:$1048576,$A221,DS$1))","v":""},{"$f":"IF($A221=\"N/A\",Ref!$B$36,INDEX(Ranks!$1:$1048576,$A221,DT$1))","v":""},{"$f":"IF($A221=\"N/A\",Ref!$B$36,INDEX(Ranks!$1:$1048576,$A221,DU$1))","v":""},{"$f":"IF($A221=\"N/A\",Ref!$B$36,INDEX(Ranks!$1:$1048576,$A221,DV$1))","v":""},{"$f":"IF($A221=\"N/A\",Ref!$B$36,INDEX(Ranks!$1:$1048576,$A221,DW$1))","v":""},{"$f":"IF($A221=\"N/A\",Ref!$B$36,INDEX(Ranks!$1:$1048576,$A221,DX$1))","v":""},{"$f":"IF($A221=\"N/A\",Ref!$B$36,INDEX(Ranks!$1:$1048576,$A221,DY$1))","v":""},{"$f":"IF($A221=\"N/A\",Ref!$B$36,INDEX(Ranks!$1:$1048576,$A221,DZ$1))","v":""},{"$f":"IF($A221=\"N/A\",Ref!$B$36,INDEX(Ranks!$1:$1048576,$A221,EA$1))","v":""},{"$f":"IF($A221=\"N/A\",Ref!$B$36,INDEX(Ranks!$1:$1048576,$A221,EB$1))","v":""}]
[{"$f":"IFERROR(MATCH('Portfolio Page'!L222,Ranks!L:L,0),\"N/A\")","v":"N/A"},null,{"$f":"IF($A222=\"N/A\",\"\",INDEX(Ranks!$1:$1048576,$A222,C$1))","v":""},{"$f":"IF($A222=\"N/A\",Ref!$B$36,INDEX(Ranks!$1:$1048576,$A222,D$1))","v":""},{"$f":"IF($A222=\"N/A\",Ref!$B$36,INDEX(Ranks!$1:$1048576,$A222,E$1))","v":""},{"$f":"IF($A222=\"N/A\",\"\",INDEX(Ranks!$1:$1048576,$A222,F$1))","v":""},{"$f":"IF($A222=\"N/A\",\"\",INDEX(Ranks!$1:$1048576,$A222,G$1))","v":""},{"$f":"IF($A222=\"N/A\",\"\",INDEX(Ranks!$1:$1048576,$A222,H$1))","v":""},{"$f":"IF($A222=\"N/A\",\"\",INDEX(Ranks!$1:$1048576,$A222,I$1))","v":""},{"$f":"IF($A222=\"N/A\",\"\",INDEX(Ranks!$1:$1048576,$A222,J$1))","v":""},{"$f":"IF($A222=\"N/A\",\"\",INDEX(Ranks!$1:$1048576,$A222,K$1))","v":""},null,{"$f":"IF($A222=\"N/A\",Ref!$B$36,INDEX(Ranks!$1:$1048576,$A222,M$1))","v":""},{"$f":"IF($A222=\"N/A\",Ref!$B$36,INDEX(Ranks!$1:$1048576,$A222,N$1))","v":""},{"$f":"IF($A222=\"N/A\",Ref!$B$36,INDEX(Ranks!$1:$1048576,$A222,O$1))","v":""},{"$f":"IF($A222=\"N/A\",Ref!$B$36,INDEX(Ranks!$1:$1048576,$A222,P$1))","v":""},{"$f":"IF($A222=\"N/A\",Ref!$B$36,INDEX(Ranks!$1:$1048576,$A222,Q$1))","v":""},{"$f":"IF($A222=\"N/A\",Ref!$B$36,INDEX(Ranks!$1:$1048576,$A222,R$1))","v":""},{"$f":"IF($A222=\"N/A\",Ref!$B$36,INDEX(Ranks!$1:$1048576,$A222,S$1))","v":""},{"$f":"IF($A222=\"N/A\",Ref!$B$36,INDEX(Ranks!$1:$1048576,$A222,T$1))","v":""},{"$f":"IF($A222=\"N/A\",Ref!$B$36,INDEX(Ranks!$1:$1048576,$A222,U$1))","v":""},{"$f":"IF($A222=\"N/A\",Ref!$B$36,INDEX(Ranks!$1:$1048576,$A222,V$1))","v":""},{"$f":"IF($A222=\"N/A\",Ref!$B$36,INDEX(Ranks!$1:$1048576,$A222,W$1))","v":""},{"$f":"IF($A222=\"N/A\",Ref!$B$36,INDEX(Ranks!$1:$1048576,$A222,X$1))","v":""},{"$f":"IF($A222=\"N/A\",Ref!$B$36,INDEX(Ranks!$1:$1048576,$A222,Y$1))","v":""},{"$f":"IF($A222=\"N/A\",Ref!$B$36,INDEX(Ranks!$1:$1048576,$A222,Z$1))","v":""},{"$f":"IF($A222=\"N/A\",Ref!$B$36,INDEX(Ranks!$1:$1048576,$A222,AA$1))","v":""},{"$f":"IF($A222=\"N/A\",Ref!$B$36,INDEX(Ranks!$1:$1048576,$A222,AB$1))","v":""},{"$f":"IF($A222=\"N/A\",Ref!$B$36,INDEX(Ranks!$1:$1048576,$A222,AC$1))","v":""},{"$f":"IF($A222=\"N/A\",Ref!$B$36,INDEX(Ranks!$1:$1048576,$A222,AD$1))","v":""},{"$f":"IF($A222=\"N/A\",Ref!$B$36,INDEX(Ranks!$1:$1048576,$A222,AE$1))","v":""},{"$f":"IF($A222=\"N/A\",Ref!$B$36,INDEX(Ranks!$1:$1048576,$A222,AF$1))","v":""},{"$f":"IF($A222=\"N/A\",Ref!$B$36,INDEX(Ranks!$1:$1048576,$A222,AG$1))","v":""},{"$f":"IF($A222=\"N/A\",Ref!$B$36,INDEX(Ranks!$1:$1048576,$A222,AH$1))","v":""},{"$f":"IF($A222=\"N/A\",Ref!$B$36,INDEX(Ranks!$1:$1048576,$A222,AI$1))","v":""},{"$f":"IF($A222=\"N/A\",Ref!$B$36,INDEX(Ranks!$1:$1048576,$A222,AJ$1))","v":""},{"$f":"IF($A222=\"N/A\",Ref!$B$36,INDEX(Ranks!$1:$1048576,$A222,AK$1))","v":""},{"$f":"IF($A222=\"N/A\",Ref!$B$36,INDEX(Ranks!$1:$1048576,$A222,AL$1))","v":""},{"$f":"IF($A222=\"N/A\",Ref!$B$36,INDEX(Ranks!$1:$1048576,$A222,AM$1))","v":""},{"$f":"IF($A222=\"N/A\",Ref!$B$36,INDEX(Ranks!$1:$1048576,$A222,AN$1))","v":""},{"$f":"IF($A222=\"N/A\",Ref!$B$36,INDEX(Ranks!$1:$1048576,$A222,AO$1))","v":""},{"$f":"IF($A222=\"N/A\",Ref!$B$36,INDEX(Ranks!$1:$1048576,$A222,AP$1))","v":""},{"$f":"IF($A222=\"N/A\",Ref!$B$36,INDEX(Ranks!$1:$1048576,$A222,AQ$1))","v":""},{"$f":"IF($A222=\"N/A\",Ref!$B$36,INDEX(Ranks!$1:$1048576,$A222,AR$1))","v":""},{"$f":"IF($A222=\"N/A\",Ref!$B$36,INDEX(Ranks!$1:$1048576,$A222,AS$1))","v":""},{"$f":"IF($A222=\"N/A\",Ref!$B$36,INDEX(Ranks!$1:$1048576,$A222,AT$1))","v":""},{"$f":"IF($A222=\"N/A\",Ref!$B$36,INDEX(Ranks!$1:$1048576,$A222,AU$1))","v":""},{"$f":"IF($A222=\"N/A\",Ref!$B$36,INDEX(Ranks!$1:$1048576,$A222,AV$1))","v":""},{"$f":"IF($A222=\"N/A\",Ref!$B$36,INDEX(Ranks!$1:$1048576,$A222,AW$1))","v":""},{"$f":"IF($A222=\"N/A\",Ref!$B$36,INDEX(Ranks!$1:$1048576,$A222,AX$1))","v":""},{"$f":"IF($A222=\"N/A\",Ref!$B$36,INDEX(Ranks!$1:$1048576,$A222,AY$1))","v":""},{"$f":"IF($A222=\"N/A\",Ref!$B$36,INDEX(Ranks!$1:$1048576,$A222,AZ$1))","v":""},{"$f":"IF($A222=\"N/A\",Ref!$B$36,INDEX(Ranks!$1:$1048576,$A222,BA$1))","v":""},{"$f":"IF($A222=\"N/A\",Ref!$B$36,INDEX(Ranks!$1:$1048576,$A222,BB$1))","v":""},{"$f":"IF($A222=\"N/A\",Ref!$B$36,INDEX(Ranks!$1:$1048576,$A222,BC$1))","v":""},{"$f":"IF($A222=\"N/A\",Ref!$B$36,INDEX(Ranks!$1:$1048576,$A222,BD$1))","v":""},{"$f":"IF($A222=\"N/A\",Ref!$B$36,INDEX(Ranks!$1:$1048576,$A222,BE$1))","v":""},{"$f":"IF($A222=\"N/A\",Ref!$B$36,INDEX(Ranks!$1:$1048576,$A222,BF$1))","v":""},{"$f":"IF($A222=\"N/A\",Ref!$B$36,INDEX(Ranks!$1:$1048576,$A222,BG$1))","v":""},{"$f":"IF($A222=\"N/A\",Ref!$B$36,INDEX(Ranks!$1:$1048576,$A222,BH$1))","v":""},{"$f":"IF($A222=\"N/A\",Ref!$B$36,INDEX(Ranks!$1:$1048576,$A222,BI$1))","v":""},{"$f":"IF($A222=\"N/A\",Ref!$B$36,INDEX(Ranks!$1:$1048576,$A222,BJ$1))","v":""},{"$f":"IF($A222=\"N/A\",Ref!$B$36,INDEX(Ranks!$1:$1048576,$A222,BK$1))","v":""},{"$f":"IF($A222=\"N/A\",Ref!$B$36,INDEX(Ranks!$1:$1048576,$A222,BL$1))","v":""},{"$f":"IF($A222=\"N/A\",Ref!$B$36,INDEX(Ranks!$1:$1048576,$A222,BM$1))","v":""},{"$f":"IF($A222=\"N/A\",Ref!$B$36,INDEX(Ranks!$1:$1048576,$A222,BN$1))","v":""},{"$f":"IF($A222=\"N/A\",Ref!$B$36,INDEX(Ranks!$1:$1048576,$A222,BO$1))","v":""},{"$f":"IF($A222=\"N/A\",Ref!$B$36,INDEX(Ranks!$1:$1048576,$A222,BP$1))","v":""},{"$f":"IF($A222=\"N/A\",Ref!$B$36,INDEX(Ranks!$1:$1048576,$A222,BQ$1))","v":""},{"$f":"IF($A222=\"N/A\",Ref!$B$36,INDEX(Ranks!$1:$1048576,$A222,BR$1))","v":""},{"$f":"IF($A222=\"N/A\",Ref!$B$36,INDEX(Ranks!$1:$1048576,$A222,BS$1))","v":""},{"$f":"IF($A222=\"N/A\",Ref!$B$36,INDEX(Ranks!$1:$1048576,$A222,BT$1))","v":""},{"$f":"IF($A222=\"N/A\",Ref!$B$36,INDEX(Ranks!$1:$1048576,$A222,BU$1))","v":""},{"$f":"IF($A222=\"N/A\",Ref!$B$36,INDEX(Ranks!$1:$1048576,$A222,BV$1))","v":""},{"$f":"IF($A222=\"N/A\",Ref!$B$36,INDEX(Ranks!$1:$1048576,$A222,BW$1))","v":""},{"$f":"IF($A222=\"N/A\",Ref!$B$36,INDEX(Ranks!$1:$1048576,$A222,BX$1))","v":""},{"$f":"IF($A222=\"N/A\",Ref!$B$36,INDEX(Ranks!$1:$1048576,$A222,BY$1))","v":""},{"$f":"IF($A222=\"N/A\",Ref!$B$36,INDEX(Ranks!$1:$1048576,$A222,BZ$1))","v":""},{"$f":"IF($A222=\"N/A\",Ref!$B$36,INDEX(Ranks!$1:$1048576,$A222,CA$1))","v":""},{"$f":"IF($A222=\"N/A\",Ref!$B$36,INDEX(Ranks!$1:$1048576,$A222,CB$1))","v":""},{"$f":"IF($A222=\"N/A\",Ref!$B$36,INDEX(Ranks!$1:$1048576,$A222,CC$1))","v":""},{"$f":"IF($A222=\"N/A\",Ref!$B$36,INDEX(Ranks!$1:$1048576,$A222,CD$1))","v":""},{"$f":"IF($A222=\"N/A\",Ref!$B$36,INDEX(Ranks!$1:$1048576,$A222,CE$1))","v":""},{"$f":"IF($A222=\"N/A\",Ref!$B$36,INDEX(Ranks!$1:$1048576,$A222,CF$1))","v":""},{"$f":"IF($A222=\"N/A\",Ref!$B$36,INDEX(Ranks!$1:$1048576,$A222,CG$1))","v":""},{"$f":"IF($A222=\"N/A\",Ref!$B$36,INDEX(Ranks!$1:$1048576,$A222,CH$1))","v":""},{"$f":"IF($A222=\"N/A\",Ref!$B$36,INDEX(Ranks!$1:$1048576,$A222,CI$1))","v":""},{"$f":"IF($A222=\"N/A\",Ref!$B$36,INDEX(Ranks!$1:$1048576,$A222,CJ$1))","v":""},{"$f":"IF($A222=\"N/A\",Ref!$B$36,INDEX(Ranks!$1:$1048576,$A222,CK$1))","v":""},{"$f":"IF($A222=\"N/A\",Ref!$B$36,INDEX(Ranks!$1:$1048576,$A222,CL$1))","v":""},{"$f":"IF($A222=\"N/A\",Ref!$B$36,INDEX(Ranks!$1:$1048576,$A222,CM$1))","v":""},{"$f":"IF($A222=\"N/A\",Ref!$B$36,INDEX(Ranks!$1:$1048576,$A222,CN$1))","v":""},{"$f":"IF($A222=\"N/A\",Ref!$B$36,INDEX(Ranks!$1:$1048576,$A222,CO$1))","v":""},{"$f":"IF($A222=\"N/A\",Ref!$B$36,INDEX(Ranks!$1:$1048576,$A222,CP$1))","v":""},{"$f":"IF($A222=\"N/A\",Ref!$B$36,INDEX(Ranks!$1:$1048576,$A222,CQ$1))","v":""},{"$f":"IF($A222=\"N/A\",Ref!$B$36,INDEX(Ranks!$1:$1048576,$A222,CR$1))","v":""},{"$f":"IF($A222=\"N/A\",Ref!$B$36,INDEX(Ranks!$1:$1048576,$A222,CS$1))","v":""},{"$f":"IF($A222=\"N/A\",Ref!$B$36,INDEX(Ranks!$1:$1048576,$A222,CT$1))","v":""},{"$f":"IF($A222=\"N/A\",Ref!$B$36,INDEX(Ranks!$1:$1048576,$A222,CU$1))","v":""},{"$f":"IF($A222=\"N/A\",Ref!$B$36,INDEX(Ranks!$1:$1048576,$A222,CV$1))","v":""},{"$f":"IF($A222=\"N/A\",Ref!$B$36,INDEX(Ranks!$1:$1048576,$A222,CW$1))","v":""},{"$f":"IF($A222=\"N/A\",Ref!$B$36,INDEX(Ranks!$1:$1048576,$A222,CX$1))","v":""},{"$f":"IF($A222=\"N/A\",Ref!$B$36,INDEX(Ranks!$1:$1048576,$A222,CY$1))","v":""},{"$f":"IF($A222=\"N/A\",Ref!$B$36,INDEX(Ranks!$1:$1048576,$A222,CZ$1))","v":""},{"$f":"IF($A222=\"N/A\",Ref!$B$36,INDEX(Ranks!$1:$1048576,$A222,DA$1))","v":""},{"$f":"IF($A222=\"N/A\",Ref!$B$36,INDEX(Ranks!$1:$1048576,$A222,DB$1))","v":""},{"$f":"IF($A222=\"N/A\",Ref!$B$36,INDEX(Ranks!$1:$1048576,$A222,DC$1))","v":""},{"$f":"IF($A222=\"N/A\",Ref!$B$36,INDEX(Ranks!$1:$1048576,$A222,DD$1))","v":""},{"$f":"IF($A222=\"N/A\",Ref!$B$36,INDEX(Ranks!$1:$1048576,$A222,DE$1))","v":""},{"$f":"IF($A222=\"N/A\",Ref!$B$36,INDEX(Ranks!$1:$1048576,$A222,DF$1))","v":""},{"$f":"IF($A222=\"N/A\",Ref!$B$36,INDEX(Ranks!$1:$1048576,$A222,DG$1))","v":""},{"$f":"IF($A222=\"N/A\",Ref!$B$36,INDEX(Ranks!$1:$1048576,$A222,DH$1))","v":""},{"$f":"IF($A222=\"N/A\",Ref!$B$36,INDEX(Ranks!$1:$1048576,$A222,DI$1))","v":""},{"$f":"IF($A222=\"N/A\",Ref!$B$36,INDEX(Ranks!$1:$1048576,$A222,DJ$1))","v":""},{"$f":"IF($A222=\"N/A\",Ref!$B$36,INDEX(Ranks!$1:$1048576,$A222,DK$1))","v":""},{"$f":"IF($A222=\"N/A\",Ref!$B$36,INDEX(Ranks!$1:$1048576,$A222,DL$1))","v":""},{"$f":"IF($A222=\"N/A\",Ref!$B$36,INDEX(Ranks!$1:$1048576,$A222,DM$1))","v":""},{"$f":"IF($A222=\"N/A\",Ref!$B$36,INDEX(Ranks!$1:$1048576,$A222,DN$1))","v":""},{"$f":"IF($A222=\"N/A\",Ref!$B$36,INDEX(Ranks!$1:$1048576,$A222,DO$1))","v":""},{"$f":"IF($A222=\"N/A\",Ref!$B$36,INDEX(Ranks!$1:$1048576,$A222,DP$1))","v":""},{"$f":"IF($A222=\"N/A\",Ref!$B$36,INDEX(Ranks!$1:$1048576,$A222,DQ$1))","v":""},{"$f":"IF($A222=\"N/A\",Ref!$B$36,INDEX(Ranks!$1:$1048576,$A222,DR$1))","v":""},{"$f":"IF($A222=\"N/A\",Ref!$B$36,INDEX(Ranks!$1:$1048576,$A222,DS$1))","v":""},{"$f":"IF($A222=\"N/A\",Ref!$B$36,INDEX(Ranks!$1:$1048576,$A222,DT$1))","v":""},{"$f":"IF($A222=\"N/A\",Ref!$B$36,INDEX(Ranks!$1:$1048576,$A222,DU$1))","v":""},{"$f":"IF($A222=\"N/A\",Ref!$B$36,INDEX(Ranks!$1:$1048576,$A222,DV$1))","v":""},{"$f":"IF($A222=\"N/A\",Ref!$B$36,INDEX(Ranks!$1:$1048576,$A222,DW$1))","v":""},{"$f":"IF($A222=\"N/A\",Ref!$B$36,INDEX(Ranks!$1:$1048576,$A222,DX$1))","v":""},{"$f":"IF($A222=\"N/A\",Ref!$B$36,INDEX(Ranks!$1:$1048576,$A222,DY$1))","v":""},{"$f":"IF($A222=\"N/A\",Ref!$B$36,INDEX(Ranks!$1:$1048576,$A222,DZ$1))","v":""},{"$f":"IF($A222=\"N/A\",Ref!$B$36,INDEX(Ranks!$1:$1048576,$A222,EA$1))","v":""},{"$f":"IF($A222=\"N/A\",Ref!$B$36,INDEX(Ranks!$1:$1048576,$A222,EB$1))","v":""}]
[{"$f":"IFERROR(MATCH('Portfolio Page'!L223,Ranks!L:L,0),\"N/A\")","v":"N/A"},null,{"$f":"IF($A223=\"N/A\",\"\",INDEX(Ranks!$1:$1048576,$A223,C$1))","v":""},{"$f":"IF($A223=\"N/A\",Ref!$B$36,INDEX(Ranks!$1:$1048576,$A223,D$1))","v":""},{"$f":"IF($A223=\"N/A\",Ref!$B$36,INDEX(Ranks!$1:$1048576,$A223,E$1))","v":""},{"$f":"IF($A223=\"N/A\",\"\",INDEX(Ranks!$1:$1048576,$A223,F$1))","v":""},{"$f":"IF($A223=\"N/A\",\"\",INDEX(Ranks!$1:$1048576,$A223,G$1))","v":""},{"$f":"IF($A223=\"N/A\",\"\",INDEX(Ranks!$1:$1048576,$A223,H$1))","v":""},{"$f":"IF($A223=\"N/A\",\"\",INDEX(Ranks!$1:$1048576,$A223,I$1))","v":""},{"$f":"IF($A223=\"N/A\",\"\",INDEX(Ranks!$1:$1048576,$A223,J$1))","v":""},{"$f":"IF($A223=\"N/A\",\"\",INDEX(Ranks!$1:$1048576,$A223,K$1))","v":""},null,{"$f":"IF($A223=\"N/A\",Ref!$B$36,INDEX(Ranks!$1:$1048576,$A223,M$1))","v":""},{"$f":"IF($A223=\"N/A\",Ref!$B$36,INDEX(Ranks!$1:$1048576,$A223,N$1))","v":""},{"$f":"IF($A223=\"N/A\",Ref!$B$36,INDEX(Ranks!$1:$1048576,$A223,O$1))","v":""},{"$f":"IF($A223=\"N/A\",Ref!$B$36,INDEX(Ranks!$1:$1048576,$A223,P$1))","v":""},{"$f":"IF($A223=\"N/A\",Ref!$B$36,INDEX(Ranks!$1:$1048576,$A223,Q$1))","v":""},{"$f":"IF($A223=\"N/A\",Ref!$B$36,INDEX(Ranks!$1:$1048576,$A223,R$1))","v":""},{"$f":"IF($A223=\"N/A\",Ref!$B$36,INDEX(Ranks!$1:$1048576,$A223,S$1))","v":""},{"$f":"IF($A223=\"N/A\",Ref!$B$36,INDEX(Ranks!$1:$1048576,$A223,T$1))","v":""},{"$f":"IF($A223=\"N/A\",Ref!$B$36,INDEX(Ranks!$1:$1048576,$A223,U$1))","v":""},{"$f":"IF($A223=\"N/A\",Ref!$B$36,INDEX(Ranks!$1:$1048576,$A223,V$1))","v":""},{"$f":"IF($A223=\"N/A\",Ref!$B$36,INDEX(Ranks!$1:$1048576,$A223,W$1))","v":""},{"$f":"IF($A223=\"N/A\",Ref!$B$36,INDEX(Ranks!$1:$1048576,$A223,X$1))","v":""},{"$f":"IF($A223=\"N/A\",Ref!$B$36,INDEX(Ranks!$1:$1048576,$A223,Y$1))","v":""},{"$f":"IF($A223=\"N/A\",Ref!$B$36,INDEX(Ranks!$1:$1048576,$A223,Z$1))","v":""},{"$f":"IF($A223=\"N/A\",Ref!$B$36,INDEX(Ranks!$1:$1048576,$A223,AA$1))","v":""},{"$f":"IF($A223=\"N/A\",Ref!$B$36,INDEX(Ranks!$1:$1048576,$A223,AB$1))","v":""},{"$f":"IF($A223=\"N/A\",Ref!$B$36,INDEX(Ranks!$1:$1048576,$A223,AC$1))","v":""},{"$f":"IF($A223=\"N/A\",Ref!$B$36,INDEX(Ranks!$1:$1048576,$A223,AD$1))","v":""},{"$f":"IF($A223=\"N/A\",Ref!$B$36,INDEX(Ranks!$1:$1048576,$A223,AE$1))","v":""},{"$f":"IF($A223=\"N/A\",Ref!$B$36,INDEX(Ranks!$1:$1048576,$A223,AF$1))","v":""},{"$f":"IF($A223=\"N/A\",Ref!$B$36,INDEX(Ranks!$1:$1048576,$A223,AG$1))","v":""},{"$f":"IF($A223=\"N/A\",Ref!$B$36,INDEX(Ranks!$1:$1048576,$A223,AH$1))","v":""},{"$f":"IF($A223=\"N/A\",Ref!$B$36,INDEX(Ranks!$1:$1048576,$A223,AI$1))","v":""},{"$f":"IF($A223=\"N/A\",Ref!$B$36,INDEX(Ranks!$1:$1048576,$A223,AJ$1))","v":""},{"$f":"IF($A223=\"N/A\",Ref!$B$36,INDEX(Ranks!$1:$1048576,$A223,AK$1))","v":""},{"$f":"IF($A223=\"N/A\",Ref!$B$36,INDEX(Ranks!$1:$1048576,$A223,AL$1))","v":""},{"$f":"IF($A223=\"N/A\",Ref!$B$36,INDEX(Ranks!$1:$1048576,$A223,AM$1))","v":""},{"$f":"IF($A223=\"N/A\",Ref!$B$36,INDEX(Ranks!$1:$1048576,$A223,AN$1))","v":""},{"$f":"IF($A223=\"N/A\",Ref!$B$36,INDEX(Ranks!$1:$1048576,$A223,AO$1))","v":""},{"$f":"IF($A223=\"N/A\",Ref!$B$36,INDEX(Ranks!$1:$1048576,$A223,AP$1))","v":""},{"$f":"IF($A223=\"N/A\",Ref!$B$36,INDEX(Ranks!$1:$1048576,$A223,AQ$1))","v":""},{"$f":"IF($A223=\"N/A\",Ref!$B$36,INDEX(Ranks!$1:$1048576,$A223,AR$1))","v":""},{"$f":"IF($A223=\"N/A\",Ref!$B$36,INDEX(Ranks!$1:$1048576,$A223,AS$1))","v":""},{"$f":"IF($A223=\"N/A\",Ref!$B$36,INDEX(Ranks!$1:$1048576,$A223,AT$1))","v":""},{"$f":"IF($A223=\"N/A\",Ref!$B$36,INDEX(Ranks!$1:$1048576,$A223,AU$1))","v":""},{"$f":"IF($A223=\"N/A\",Ref!$B$36,INDEX(Ranks!$1:$1048576,$A223,AV$1))","v":""},{"$f":"IF($A223=\"N/A\",Ref!$B$36,INDEX(Ranks!$1:$1048576,$A223,AW$1))","v":""},{"$f":"IF($A223=\"N/A\",Ref!$B$36,INDEX(Ranks!$1:$1048576,$A223,AX$1))","v":""},{"$f":"IF($A223=\"N/A\",Ref!$B$36,INDEX(Ranks!$1:$1048576,$A223,AY$1))","v":""},{"$f":"IF($A223=\"N/A\",Ref!$B$36,INDEX(Ranks!$1:$1048576,$A223,AZ$1))","v":""},{"$f":"IF($A223=\"N/A\",Ref!$B$36,INDEX(Ranks!$1:$1048576,$A223,BA$1))","v":""},{"$f":"IF($A223=\"N/A\",Ref!$B$36,INDEX(Ranks!$1:$1048576,$A223,BB$1))","v":""},{"$f":"IF($A223=\"N/A\",Ref!$B$36,INDEX(Ranks!$1:$1048576,$A223,BC$1))","v":""},{"$f":"IF($A223=\"N/A\",Ref!$B$36,INDEX(Ranks!$1:$1048576,$A223,BD$1))","v":""},{"$f":"IF($A223=\"N/A\",Ref!$B$36,INDEX(Ranks!$1:$1048576,$A223,BE$1))","v":""},{"$f":"IF($A223=\"N/A\",Ref!$B$36,INDEX(Ranks!$1:$1048576,$A223,BF$1))","v":""},{"$f":"IF($A223=\"N/A\",Ref!$B$36,INDEX(Ranks!$1:$1048576,$A223,BG$1))","v":""},{"$f":"IF($A223=\"N/A\",Ref!$B$36,INDEX(Ranks!$1:$1048576,$A223,BH$1))","v":""},{"$f":"IF($A223=\"N/A\",Ref!$B$36,INDEX(Ranks!$1:$1048576,$A223,BI$1))","v":""},{"$f":"IF($A223=\"N/A\",Ref!$B$36,INDEX(Ranks!$1:$1048576,$A223,BJ$1))","v":""},{"$f":"IF($A223=\"N/A\",Ref!$B$36,INDEX(Ranks!$1:$1048576,$A223,BK$1))","v":""},{"$f":"IF($A223=\"N/A\",Ref!$B$36,INDEX(Ranks!$1:$1048576,$A223,BL$1))","v":""},{"$f":"IF($A223=\"N/A\",Ref!$B$36,INDEX(Ranks!$1:$1048576,$A223,BM$1))","v":""},{"$f":"IF($A223=\"N/A\",Ref!$B$36,INDEX(Ranks!$1:$1048576,$A223,BN$1))","v":""},{"$f":"IF($A223=\"N/A\",Ref!$B$36,INDEX(Ranks!$1:$1048576,$A223,BO$1))","v":""},{"$f":"IF($A223=\"N/A\",Ref!$B$36,INDEX(Ranks!$1:$1048576,$A223,BP$1))","v":""},{"$f":"IF($A223=\"N/A\",Ref!$B$36,INDEX(Ranks!$1:$1048576,$A223,BQ$1))","v":""},{"$f":"IF($A223=\"N/A\",Ref!$B$36,INDEX(Ranks!$1:$1048576,$A223,BR$1))","v":""},{"$f":"IF($A223=\"N/A\",Ref!$B$36,INDEX(Ranks!$1:$1048576,$A223,BS$1))","v":""},{"$f":"IF($A223=\"N/A\",Ref!$B$36,INDEX(Ranks!$1:$1048576,$A223,BT$1))","v":""},{"$f":"IF($A223=\"N/A\",Ref!$B$36,INDEX(Ranks!$1:$1048576,$A223,BU$1))","v":""},{"$f":"IF($A223=\"N/A\",Ref!$B$36,INDEX(Ranks!$1:$1048576,$A223,BV$1))","v":""},{"$f":"IF($A223=\"N/A\",Ref!$B$36,INDEX(Ranks!$1:$1048576,$A223,BW$1))","v":""},{"$f":"IF($A223=\"N/A\",Ref!$B$36,INDEX(Ranks!$1:$1048576,$A223,BX$1))","v":""},{"$f":"IF($A223=\"N/A\",Ref!$B$36,INDEX(Ranks!$1:$1048576,$A223,BY$1))","v":""},{"$f":"IF($A223=\"N/A\",Ref!$B$36,INDEX(Ranks!$1:$1048576,$A223,BZ$1))","v":""},{"$f":"IF($A223=\"N/A\",Ref!$B$36,INDEX(Ranks!$1:$1048576,$A223,CA$1))","v":""},{"$f":"IF($A223=\"N/A\",Ref!$B$36,INDEX(Ranks!$1:$1048576,$A223,CB$1))","v":""},{"$f":"IF($A223=\"N/A\",Ref!$B$36,INDEX(Ranks!$1:$1048576,$A223,CC$1))","v":""},{"$f":"IF($A223=\"N/A\",Ref!$B$36,INDEX(Ranks!$1:$1048576,$A223,CD$1))","v":""},{"$f":"IF($A223=\"N/A\",Ref!$B$36,INDEX(Ranks!$1:$1048576,$A223,CE$1))","v":""},{"$f":"IF($A223=\"N/A\",Ref!$B$36,INDEX(Ranks!$1:$1048576,$A223,CF$1))","v":""},{"$f":"IF($A223=\"N/A\",Ref!$B$36,INDEX(Ranks!$1:$1048576,$A223,CG$1))","v":""},{"$f":"IF($A223=\"N/A\",Ref!$B$36,INDEX(Ranks!$1:$1048576,$A223,CH$1))","v":""},{"$f":"IF($A223=\"N/A\",Ref!$B$36,INDEX(Ranks!$1:$1048576,$A223,CI$1))","v":""},{"$f":"IF($A223=\"N/A\",Ref!$B$36,INDEX(Ranks!$1:$1048576,$A223,CJ$1))","v":""},{"$f":"IF($A223=\"N/A\",Ref!$B$36,INDEX(Ranks!$1:$1048576,$A223,CK$1))","v":""},{"$f":"IF($A223=\"N/A\",Ref!$B$36,INDEX(Ranks!$1:$1048576,$A223,CL$1))","v":""},{"$f":"IF($A223=\"N/A\",Ref!$B$36,INDEX(Ranks!$1:$1048576,$A223,CM$1))","v":""},{"$f":"IF($A223=\"N/A\",Ref!$B$36,INDEX(Ranks!$1:$1048576,$A223,CN$1))","v":""},{"$f":"IF($A223=\"N/A\",Ref!$B$36,INDEX(Ranks!$1:$1048576,$A223,CO$1))","v":""},{"$f":"IF($A223=\"N/A\",Ref!$B$36,INDEX(Ranks!$1:$1048576,$A223,CP$1))","v":""},{"$f":"IF($A223=\"N/A\",Ref!$B$36,INDEX(Ranks!$1:$1048576,$A223,CQ$1))","v":""},{"$f":"IF($A223=\"N/A\",Ref!$B$36,INDEX(Ranks!$1:$1048576,$A223,CR$1))","v":""},{"$f":"IF($A223=\"N/A\",Ref!$B$36,INDEX(Ranks!$1:$1048576,$A223,CS$1))","v":""},{"$f":"IF($A223=\"N/A\",Ref!$B$36,INDEX(Ranks!$1:$1048576,$A223,CT$1))","v":""},{"$f":"IF($A223=\"N/A\",Ref!$B$36,INDEX(Ranks!$1:$1048576,$A223,CU$1))","v":""},{"$f":"IF($A223=\"N/A\",Ref!$B$36,INDEX(Ranks!$1:$1048576,$A223,CV$1))","v":""},{"$f":"IF($A223=\"N/A\",Ref!$B$36,INDEX(Ranks!$1:$1048576,$A223,CW$1))","v":""},{"$f":"IF($A223=\"N/A\",Ref!$B$36,INDEX(Ranks!$1:$1048576,$A223,CX$1))","v":""},{"$f":"IF($A223=\"N/A\",Ref!$B$36,INDEX(Ranks!$1:$1048576,$A223,CY$1))","v":""},{"$f":"IF($A223=\"N/A\",Ref!$B$36,INDEX(Ranks!$1:$1048576,$A223,CZ$1))","v":""},{"$f":"IF($A223=\"N/A\",Ref!$B$36,INDEX(Ranks!$1:$1048576,$A223,DA$1))","v":""},{"$f":"IF($A223=\"N/A\",Ref!$B$36,INDEX(Ranks!$1:$1048576,$A223,DB$1))","v":""},{"$f":"IF($A223=\"N/A\",Ref!$B$36,INDEX(Ranks!$1:$1048576,$A223,DC$1))","v":""},{"$f":"IF($A223=\"N/A\",Ref!$B$36,INDEX(Ranks!$1:$1048576,$A223,DD$1))","v":""},{"$f":"IF($A223=\"N/A\",Ref!$B$36,INDEX(Ranks!$1:$1048576,$A223,DE$1))","v":""},{"$f":"IF($A223=\"N/A\",Ref!$B$36,INDEX(Ranks!$1:$1048576,$A223,DF$1))","v":""},{"$f":"IF($A223=\"N/A\",Ref!$B$36,INDEX(Ranks!$1:$1048576,$A223,DG$1))","v":""},{"$f":"IF($A223=\"N/A\",Ref!$B$36,INDEX(Ranks!$1:$1048576,$A223,DH$1))","v":""},{"$f":"IF($A223=\"N/A\",Ref!$B$36,INDEX(Ranks!$1:$1048576,$A223,DI$1))","v":""},{"$f":"IF($A223=\"N/A\",Ref!$B$36,INDEX(Ranks!$1:$1048576,$A223,DJ$1))","v":""},{"$f":"IF($A223=\"N/A\",Ref!$B$36,INDEX(Ranks!$1:$1048576,$A223,DK$1))","v":""},{"$f":"IF($A223=\"N/A\",Ref!$B$36,INDEX(Ranks!$1:$1048576,$A223,DL$1))","v":""},{"$f":"IF($A223=\"N/A\",Ref!$B$36,INDEX(Ranks!$1:$1048576,$A223,DM$1))","v":""},{"$f":"IF($A223=\"N/A\",Ref!$B$36,INDEX(Ranks!$1:$1048576,$A223,DN$1))","v":""},{"$f":"IF($A223=\"N/A\",Ref!$B$36,INDEX(Ranks!$1:$1048576,$A223,DO$1))","v":""},{"$f":"IF($A223=\"N/A\",Ref!$B$36,INDEX(Ranks!$1:$1048576,$A223,DP$1))","v":""},{"$f":"IF($A223=\"N/A\",Ref!$B$36,INDEX(Ranks!$1:$1048576,$A223,DQ$1))","v":""},{"$f":"IF($A223=\"N/A\",Ref!$B$36,INDEX(Ranks!$1:$1048576,$A223,DR$1))","v":""},{"$f":"IF($A223=\"N/A\",Ref!$B$36,INDEX(Ranks!$1:$1048576,$A223,DS$1))","v":""},{"$f":"IF($A223=\"N/A\",Ref!$B$36,INDEX(Ranks!$1:$1048576,$A223,DT$1))","v":""},{"$f":"IF($A223=\"N/A\",Ref!$B$36,INDEX(Ranks!$1:$1048576,$A223,DU$1))","v":""},{"$f":"IF($A223=\"N/A\",Ref!$B$36,INDEX(Ranks!$1:$1048576,$A223,DV$1))","v":""},{"$f":"IF($A223=\"N/A\",Ref!$B$36,INDEX(Ranks!$1:$1048576,$A223,DW$1))","v":""},{"$f":"IF($A223=\"N/A\",Ref!$B$36,INDEX(Ranks!$1:$1048576,$A223,DX$1))","v":""},{"$f":"IF($A223=\"N/A\",Ref!$B$36,INDEX(Ranks!$1:$1048576,$A223,DY$1))","v":""},{"$f":"IF($A223=\"N/A\",Ref!$B$36,INDEX(Ranks!$1:$1048576,$A223,DZ$1))","v":""},{"$f":"IF($A223=\"N/A\",Ref!$B$36,INDEX(Ranks!$1:$1048576,$A223,EA$1))","v":""},{"$f":"IF($A223=\"N/A\",Ref!$B$36,INDEX(Ranks!$1:$1048576,$A223,EB$1))","v":""}]
[{"$f":"IFERROR(MATCH('Portfolio Page'!L224,Ranks!L:L,0),\"N/A\")","v":"N/A"},null,{"$f":"IF($A224=\"N/A\",\"\",INDEX(Ranks!$1:$1048576,$A224,C$1))","v":""},{"$f":"IF($A224=\"N/A\",Ref!$B$36,INDEX(Ranks!$1:$1048576,$A224,D$1))","v":""},{"$f":"IF($A224=\"N/A\",Ref!$B$36,INDEX(Ranks!$1:$1048576,$A224,E$1))","v":""},{"$f":"IF($A224=\"N/A\",\"\",INDEX(Ranks!$1:$1048576,$A224,F$1))","v":""},{"$f":"IF($A224=\"N/A\",\"\",INDEX(Ranks!$1:$1048576,$A224,G$1))","v":""},{"$f":"IF($A224=\"N/A\",\"\",INDEX(Ranks!$1:$1048576,$A224,H$1))","v":""},{"$f":"IF($A224=\"N/A\",\"\",INDEX(Ranks!$1:$1048576,$A224,I$1))","v":""},{"$f":"IF($A224=\"N/A\",\"\",INDEX(Ranks!$1:$1048576,$A224,J$1))","v":""},{"$f":"IF($A224=\"N/A\",\"\",INDEX(Ranks!$1:$1048576,$A224,K$1))","v":""},null,{"$f":"IF($A224=\"N/A\",Ref!$B$36,INDEX(Ranks!$1:$1048576,$A224,M$1))","v":""},{"$f":"IF($A224=\"N/A\",Ref!$B$36,INDEX(Ranks!$1:$1048576,$A224,N$1))","v":""},{"$f":"IF($A224=\"N/A\",Ref!$B$36,INDEX(Ranks!$1:$1048576,$A224,O$1))","v":""},{"$f":"IF($A224=\"N/A\",Ref!$B$36,INDEX(Ranks!$1:$1048576,$A224,P$1))","v":""},{"$f":"IF($A224=\"N/A\",Ref!$B$36,INDEX(Ranks!$1:$1048576,$A224,Q$1))","v":""},{"$f":"IF($A224=\"N/A\",Ref!$B$36,INDEX(Ranks!$1:$1048576,$A224,R$1))","v":""},{"$f":"IF($A224=\"N/A\",Ref!$B$36,INDEX(Ranks!$1:$1048576,$A224,S$1))","v":""},{"$f":"IF($A224=\"N/A\",Ref!$B$36,INDEX(Ranks!$1:$1048576,$A224,T$1))","v":""},{"$f":"IF($A224=\"N/A\",Ref!$B$36,INDEX(Ranks!$1:$1048576,$A224,U$1))","v":""},{"$f":"IF($A224=\"N/A\",Ref!$B$36,INDEX(Ranks!$1:$1048576,$A224,V$1))","v":""},{"$f":"IF($A224=\"N/A\",Ref!$B$36,INDEX(Ranks!$1:$1048576,$A224,W$1))","v":""},{"$f":"IF($A224=\"N/A\",Ref!$B$36,INDEX(Ranks!$1:$1048576,$A224,X$1))","v":""},{"$f":"IF($A224=\"N/A\",Ref!$B$36,INDEX(Ranks!$1:$1048576,$A224,Y$1))","v":""},{"$f":"IF($A224=\"N/A\",Ref!$B$36,INDEX(Ranks!$1:$1048576,$A224,Z$1))","v":""},{"$f":"IF($A224=\"N/A\",Ref!$B$36,INDEX(Ranks!$1:$1048576,$A224,AA$1))","v":""},{"$f":"IF($A224=\"N/A\",Ref!$B$36,INDEX(Ranks!$1:$1048576,$A224,AB$1))","v":""},{"$f":"IF($A224=\"N/A\",Ref!$B$36,INDEX(Ranks!$1:$1048576,$A224,AC$1))","v":""},{"$f":"IF($A224=\"N/A\",Ref!$B$36,INDEX(Ranks!$1:$1048576,$A224,AD$1))","v":""},{"$f":"IF($A224=\"N/A\",Ref!$B$36,INDEX(Ranks!$1:$1048576,$A224,AE$1))","v":""},{"$f":"IF($A224=\"N/A\",Ref!$B$36,INDEX(Ranks!$1:$1048576,$A224,AF$1))","v":""},{"$f":"IF($A224=\"N/A\",Ref!$B$36,INDEX(Ranks!$1:$1048576,$A224,AG$1))","v":""},{"$f":"IF($A224=\"N/A\",Ref!$B$36,INDEX(Ranks!$1:$1048576,$A224,AH$1))","v":""},{"$f":"IF($A224=\"N/A\",Ref!$B$36,INDEX(Ranks!$1:$1048576,$A224,AI$1))","v":""},{"$f":"IF($A224=\"N/A\",Ref!$B$36,INDEX(Ranks!$1:$1048576,$A224,AJ$1))","v":""},{"$f":"IF($A224=\"N/A\",Ref!$B$36,INDEX(Ranks!$1:$1048576,$A224,AK$1))","v":""},{"$f":"IF($A224=\"N/A\",Ref!$B$36,INDEX(Ranks!$1:$1048576,$A224,AL$1))","v":""},{"$f":"IF($A224=\"N/A\",Ref!$B$36,INDEX(Ranks!$1:$1048576,$A224,AM$1))","v":""},{"$f":"IF($A224=\"N/A\",Ref!$B$36,INDEX(Ranks!$1:$1048576,$A224,AN$1))","v":""},{"$f":"IF($A224=\"N/A\",Ref!$B$36,INDEX(Ranks!$1:$1048576,$A224,AO$1))","v":""},{"$f":"IF($A224=\"N/A\",Ref!$B$36,INDEX(Ranks!$1:$1048576,$A224,AP$1))","v":""},{"$f":"IF($A224=\"N/A\",Ref!$B$36,INDEX(Ranks!$1:$1048576,$A224,AQ$1))","v":""},{"$f":"IF($A224=\"N/A\",Ref!$B$36,INDEX(Ranks!$1:$1048576,$A224,AR$1))","v":""},{"$f":"IF($A224=\"N/A\",Ref!$B$36,INDEX(Ranks!$1:$1048576,$A224,AS$1))","v":""},{"$f":"IF($A224=\"N/A\",Ref!$B$36,INDEX(Ranks!$1:$1048576,$A224,AT$1))","v":""},{"$f":"IF($A224=\"N/A\",Ref!$B$36,INDEX(Ranks!$1:$1048576,$A224,AU$1))","v":""},{"$f":"IF($A224=\"N/A\",Ref!$B$36,INDEX(Ranks!$1:$1048576,$A224,AV$1))","v":""},{"$f":"IF($A224=\"N/A\",Ref!$B$36,INDEX(Ranks!$1:$1048576,$A224,AW$1))","v":""},{"$f":"IF($A224=\"N/A\",Ref!$B$36,INDEX(Ranks!$1:$1048576,$A224,AX$1))","v":""},{"$f":"IF($A224=\"N/A\",Ref!$B$36,INDEX(Ranks!$1:$1048576,$A224,AY$1))","v":""},{"$f":"IF($A224=\"N/A\",Ref!$B$36,INDEX(Ranks!$1:$1048576,$A224,AZ$1))","v":""},{"$f":"IF($A224=\"N/A\",Ref!$B$36,INDEX(Ranks!$1:$1048576,$A224,BA$1))","v":""},{"$f":"IF($A224=\"N/A\",Ref!$B$36,INDEX(Ranks!$1:$1048576,$A224,BB$1))","v":""},{"$f":"IF($A224=\"N/A\",Ref!$B$36,INDEX(Ranks!$1:$1048576,$A224,BC$1))","v":""},{"$f":"IF($A224=\"N/A\",Ref!$B$36,INDEX(Ranks!$1:$1048576,$A224,BD$1))","v":""},{"$f":"IF($A224=\"N/A\",Ref!$B$36,INDEX(Ranks!$1:$1048576,$A224,BE$1))","v":""},{"$f":"IF($A224=\"N/A\",Ref!$B$36,INDEX(Ranks!$1:$1048576,$A224,BF$1))","v":""},{"$f":"IF($A224=\"N/A\",Ref!$B$36,INDEX(Ranks!$1:$1048576,$A224,BG$1))","v":""},{"$f":"IF($A224=\"N/A\",Ref!$B$36,INDEX(Ranks!$1:$1048576,$A224,BH$1))","v":""},{"$f":"IF($A224=\"N/A\",Ref!$B$36,INDEX(Ranks!$1:$1048576,$A224,BI$1))","v":""},{"$f":"IF($A224=\"N/A\",Ref!$B$36,INDEX(Ranks!$1:$1048576,$A224,BJ$1))","v":""},{"$f":"IF($A224=\"N/A\",Ref!$B$36,INDEX(Ranks!$1:$1048576,$A224,BK$1))","v":""},{"$f":"IF($A224=\"N/A\",Ref!$B$36,INDEX(Ranks!$1:$1048576,$A224,BL$1))","v":""},{"$f":"IF($A224=\"N/A\",Ref!$B$36,INDEX(Ranks!$1:$1048576,$A224,BM$1))","v":""},{"$f":"IF($A224=\"N/A\",Ref!$B$36,INDEX(Ranks!$1:$1048576,$A224,BN$1))","v":""},{"$f":"IF($A224=\"N/A\",Ref!$B$36,INDEX(Ranks!$1:$1048576,$A224,BO$1))","v":""},{"$f":"IF($A224=\"N/A\",Ref!$B$36,INDEX(Ranks!$1:$1048576,$A224,BP$1))","v":""},{"$f":"IF($A224=\"N/A\",Ref!$B$36,INDEX(Ranks!$1:$1048576,$A224,BQ$1))","v":""},{"$f":"IF($A224=\"N/A\",Ref!$B$36,INDEX(Ranks!$1:$1048576,$A224,BR$1))","v":""},{"$f":"IF($A224=\"N/A\",Ref!$B$36,INDEX(Ranks!$1:$1048576,$A224,BS$1))","v":""},{"$f":"IF($A224=\"N/A\",Ref!$B$36,INDEX(Ranks!$1:$1048576,$A224,BT$1))","v":""},{"$f":"IF($A224=\"N/A\",Ref!$B$36,INDEX(Ranks!$1:$1048576,$A224,BU$1))","v":""},{"$f":"IF($A224=\"N/A\",Ref!$B$36,INDEX(Ranks!$1:$1048576,$A224,BV$1))","v":""},{"$f":"IF($A224=\"N/A\",Ref!$B$36,INDEX(Ranks!$1:$1048576,$A224,BW$1))","v":""},{"$f":"IF($A224=\"N/A\",Ref!$B$36,INDEX(Ranks!$1:$1048576,$A224,BX$1))","v":""},{"$f":"IF($A224=\"N/A\",Ref!$B$36,INDEX(Ranks!$1:$1048576,$A224,BY$1))","v":""},{"$f":"IF($A224=\"N/A\",Ref!$B$36,INDEX(Ranks!$1:$1048576,$A224,BZ$1))","v":""},{"$f":"IF($A224=\"N/A\",Ref!$B$36,INDEX(Ranks!$1:$1048576,$A224,CA$1))","v":""},{"$f":"IF($A224=\"N/A\",Ref!$B$36,INDEX(Ranks!$1:$1048576,$A224,CB$1))","v":""},{"$f":"IF($A224=\"N/A\",Ref!$B$36,INDEX(Ranks!$1:$1048576,$A224,CC$1))","v":""},{"$f":"IF($A224=\"N/A\",Ref!$B$36,INDEX(Ranks!$1:$1048576,$A224,CD$1))","v":""},{"$f":"IF($A224=\"N/A\",Ref!$B$36,INDEX(Ranks!$1:$1048576,$A224,CE$1))","v":""},{"$f":"IF($A224=\"N/A\",Ref!$B$36,INDEX(Ranks!$1:$1048576,$A224,CF$1))","v":""},{"$f":"IF($A224=\"N/A\",Ref!$B$36,INDEX(Ranks!$1:$1048576,$A224,CG$1))","v":""},{"$f":"IF($A224=\"N/A\",Ref!$B$36,INDEX(Ranks!$1:$1048576,$A224,CH$1))","v":""},{"$f":"IF($A224=\"N/A\",Ref!$B$36,INDEX(Ranks!$1:$1048576,$A224,CI$1))","v":""},{"$f":"IF($A224=\"N/A\",Ref!$B$36,INDEX(Ranks!$1:$1048576,$A224,CJ$1))","v":""},{"$f":"IF($A224=\"N/A\",Ref!$B$36,INDEX(Ranks!$1:$1048576,$A224,CK$1))","v":""},{"$f":"IF($A224=\"N/A\",Ref!$B$36,INDEX(Ranks!$1:$1048576,$A224,CL$1))","v":""},{"$f":"IF($A224=\"N/A\",Ref!$B$36,INDEX(Ranks!$1:$1048576,$A224,CM$1))","v":""},{"$f":"IF($A224=\"N/A\",Ref!$B$36,INDEX(Ranks!$1:$1048576,$A224,CN$1))","v":""},{"$f":"IF($A224=\"N/A\",Ref!$B$36,INDEX(Ranks!$1:$1048576,$A224,CO$1))","v":""},{"$f":"IF($A224=\"N/A\",Ref!$B$36,INDEX(Ranks!$1:$1048576,$A224,CP$1))","v":""},{"$f":"IF($A224=\"N/A\",Ref!$B$36,INDEX(Ranks!$1:$1048576,$A224,CQ$1))","v":""},{"$f":"IF($A224=\"N/A\",Ref!$B$36,INDEX(Ranks!$1:$1048576,$A224,CR$1))","v":""},{"$f":"IF($A224=\"N/A\",Ref!$B$36,INDEX(Ranks!$1:$1048576,$A224,CS$1))","v":""},{"$f":"IF($A224=\"N/A\",Ref!$B$36,INDEX(Ranks!$1:$1048576,$A224,CT$1))","v":""},{"$f":"IF($A224=\"N/A\",Ref!$B$36,INDEX(Ranks!$1:$1048576,$A224,CU$1))","v":""},{"$f":"IF($A224=\"N/A\",Ref!$B$36,INDEX(Ranks!$1:$1048576,$A224,CV$1))","v":""},{"$f":"IF($A224=\"N/A\",Ref!$B$36,INDEX(Ranks!$1:$1048576,$A224,CW$1))","v":""},{"$f":"IF($A224=\"N/A\",Ref!$B$36,INDEX(Ranks!$1:$1048576,$A224,CX$1))","v":""},{"$f":"IF($A224=\"N/A\",Ref!$B$36,INDEX(Ranks!$1:$1048576,$A224,CY$1))","v":""},{"$f":"IF($A224=\"N/A\",Ref!$B$36,INDEX(Ranks!$1:$1048576,$A224,CZ$1))","v":""},{"$f":"IF($A224=\"N/A\",Ref!$B$36,INDEX(Ranks!$1:$1048576,$A224,DA$1))","v":""},{"$f":"IF($A224=\"N/A\",Ref!$B$36,INDEX(Ranks!$1:$1048576,$A224,DB$1))","v":""},{"$f":"IF($A224=\"N/A\",Ref!$B$36,INDEX(Ranks!$1:$1048576,$A224,DC$1))","v":""},{"$f":"IF($A224=\"N/A\",Ref!$B$36,INDEX(Ranks!$1:$1048576,$A224,DD$1))","v":""},{"$f":"IF($A224=\"N/A\",Ref!$B$36,INDEX(Ranks!$1:$1048576,$A224,DE$1))","v":""},{"$f":"IF($A224=\"N/A\",Ref!$B$36,INDEX(Ranks!$1:$1048576,$A224,DF$1))","v":""},{"$f":"IF($A224=\"N/A\",Ref!$B$36,INDEX(Ranks!$1:$1048576,$A224,DG$1))","v":""},{"$f":"IF($A224=\"N/A\",Ref!$B$36,INDEX(Ranks!$1:$1048576,$A224,DH$1))","v":""},{"$f":"IF($A224=\"N/A\",Ref!$B$36,INDEX(Ranks!$1:$1048576,$A224,DI$1))","v":""},{"$f":"IF($A224=\"N/A\",Ref!$B$36,INDEX(Ranks!$1:$1048576,$A224,DJ$1))","v":""},{"$f":"IF($A224=\"N/A\",Ref!$B$36,INDEX(Ranks!$1:$1048576,$A224,DK$1))","v":""},{"$f":"IF($A224=\"N/A\",Ref!$B$36,INDEX(Ranks!$1:$1048576,$A224,DL$1))","v":""},{"$f":"IF($A224=\"N/A\",Ref!$B$36,INDEX(Ranks!$1:$1048576,$A224,DM$1))","v":""},{"$f":"IF($A224=\"N/A\",Ref!$B$36,INDEX(Ranks!$1:$1048576,$A224,DN$1))","v":""},{"$f":"IF($A224=\"N/A\",Ref!$B$36,INDEX(Ranks!$1:$1048576,$A224,DO$1))","v":""},{"$f":"IF($A224=\"N/A\",Ref!$B$36,INDEX(Ranks!$1:$1048576,$A224,DP$1))","v":""},{"$f":"IF($A224=\"N/A\",Ref!$B$36,INDEX(Ranks!$1:$1048576,$A224,DQ$1))","v":""},{"$f":"IF($A224=\"N/A\",Ref!$B$36,INDEX(Ranks!$1:$1048576,$A224,DR$1))","v":""},{"$f":"IF($A224=\"N/A\",Ref!$B$36,INDEX(Ranks!$1:$1048576,$A224,DS$1))","v":""},{"$f":"IF($A224=\"N/A\",Ref!$B$36,INDEX(Ranks!$1:$1048576,$A224,DT$1))","v":""},{"$f":"IF($A224=\"N/A\",Ref!$B$36,INDEX(Ranks!$1:$1048576,$A224,DU$1))","v":""},{"$f":"IF($A224=\"N/A\",Ref!$B$36,INDEX(Ranks!$1:$1048576,$A224,DV$1))","v":""},{"$f":"IF($A224=\"N/A\",Ref!$B$36,INDEX(Ranks!$1:$1048576,$A224,DW$1))","v":""},{"$f":"IF($A224=\"N/A\",Ref!$B$36,INDEX(Ranks!$1:$1048576,$A224,DX$1))","v":""},{"$f":"IF($A224=\"N/A\",Ref!$B$36,INDEX(Ranks!$1:$1048576,$A224,DY$1))","v":""},{"$f":"IF($A224=\"N/A\",Ref!$B$36,INDEX(Ranks!$1:$1048576,$A224,DZ$1))","v":""},{"$f":"IF($A224=\"N/A\",Ref!$B$36,INDEX(Ranks!$1:$1048576,$A224,EA$1))","v":""},{"$f":"IF($A224=\"N/A\",Ref!$B$36,INDEX(Ranks!$1:$1048576,$A224,EB$1))","v":""}]
[{"$f":"IFERROR(MATCH('Portfolio Page'!L225,Ranks!L:L,0),\"N/A\")","v":"N/A"},null,{"$f":"IF($A225=\"N/A\",\"\",INDEX(Ranks!$1:$1048576,$A225,C$1))","v":""},{"$f":"IF($A225=\"N/A\",Ref!$B$36,INDEX(Ranks!$1:$1048576,$A225,D$1))","v":""},{"$f":"IF($A225=\"N/A\",Ref!$B$36,INDEX(Ranks!$1:$1048576,$A225,E$1))","v":""},{"$f":"IF($A225=\"N/A\",\"\",INDEX(Ranks!$1:$1048576,$A225,F$1))","v":""},{"$f":"IF($A225=\"N/A\",\"\",INDEX(Ranks!$1:$1048576,$A225,G$1))","v":""},{"$f":"IF($A225=\"N/A\",\"\",INDEX(Ranks!$1:$1048576,$A225,H$1))","v":""},{"$f":"IF($A225=\"N/A\",\"\",INDEX(Ranks!$1:$1048576,$A225,I$1))","v":""},{"$f":"IF($A225=\"N/A\",\"\",INDEX(Ranks!$1:$1048576,$A225,J$1))","v":""},{"$f":"IF($A225=\"N/A\",\"\",INDEX(Ranks!$1:$1048576,$A225,K$1))","v":""},null,{"$f":"IF($A225=\"N/A\",Ref!$B$36,INDEX(Ranks!$1:$1048576,$A225,M$1))","v":""},{"$f":"IF($A225=\"N/A\",Ref!$B$36,INDEX(Ranks!$1:$1048576,$A225,N$1))","v":""},{"$f":"IF($A225=\"N/A\",Ref!$B$36,INDEX(Ranks!$1:$1048576,$A225,O$1))","v":""},{"$f":"IF($A225=\"N/A\",Ref!$B$36,INDEX(Ranks!$1:$1048576,$A225,P$1))","v":""},{"$f":"IF($A225=\"N/A\",Ref!$B$36,INDEX(Ranks!$1:$1048576,$A225,Q$1))","v":""},{"$f":"IF($A225=\"N/A\",Ref!$B$36,INDEX(Ranks!$1:$1048576,$A225,R$1))","v":""},{"$f":"IF($A225=\"N/A\",Ref!$B$36,INDEX(Ranks!$1:$1048576,$A225,S$1))","v":""},{"$f":"IF($A225=\"N/A\",Ref!$B$36,INDEX(Ranks!$1:$1048576,$A225,T$1))","v":""},{"$f":"IF($A225=\"N/A\",Ref!$B$36,INDEX(Ranks!$1:$1048576,$A225,U$1))","v":""},{"$f":"IF($A225=\"N/A\",Ref!$B$36,INDEX(Ranks!$1:$1048576,$A225,V$1))","v":""},{"$f":"IF($A225=\"N/A\",Ref!$B$36,INDEX(Ranks!$1:$1048576,$A225,W$1))","v":""},{"$f":"IF($A225=\"N/A\",Ref!$B$36,INDEX(Ranks!$1:$1048576,$A225,X$1))","v":""},{"$f":"IF($A225=\"N/A\",Ref!$B$36,INDEX(Ranks!$1:$1048576,$A225,Y$1))","v":""},{"$f":"IF($A225=\"N/A\",Ref!$B$36,INDEX(Ranks!$1:$1048576,$A225,Z$1))","v":""},{"$f":"IF($A225=\"N/A\",Ref!$B$36,INDEX(Ranks!$1:$1048576,$A225,AA$1))","v":""},{"$f":"IF($A225=\"N/A\",Ref!$B$36,INDEX(Ranks!$1:$1048576,$A225,AB$1))","v":""},{"$f":"IF($A225=\"N/A\",Ref!$B$36,INDEX(Ranks!$1:$1048576,$A225,AC$1))","v":""},{"$f":"IF($A225=\"N/A\",Ref!$B$36,INDEX(Ranks!$1:$1048576,$A225,AD$1))","v":""},{"$f":"IF($A225=\"N/A\",Ref!$B$36,INDEX(Ranks!$1:$1048576,$A225,AE$1))","v":""},{"$f":"IF($A225=\"N/A\",Ref!$B$36,INDEX(Ranks!$1:$1048576,$A225,AF$1))","v":""},{"$f":"IF($A225=\"N/A\",Ref!$B$36,INDEX(Ranks!$1:$1048576,$A225,AG$1))","v":""},{"$f":"IF($A225=\"N/A\",Ref!$B$36,INDEX(Ranks!$1:$1048576,$A225,AH$1))","v":""},{"$f":"IF($A225=\"N/A\",Ref!$B$36,INDEX(Ranks!$1:$1048576,$A225,AI$1))","v":""},{"$f":"IF($A225=\"N/A\",Ref!$B$36,INDEX(Ranks!$1:$1048576,$A225,AJ$1))","v":""},{"$f":"IF($A225=\"N/A\",Ref!$B$36,INDEX(Ranks!$1:$1048576,$A225,AK$1))","v":""},{"$f":"IF($A225=\"N/A\",Ref!$B$36,INDEX(Ranks!$1:$1048576,$A225,AL$1))","v":""},{"$f":"IF($A225=\"N/A\",Ref!$B$36,INDEX(Ranks!$1:$1048576,$A225,AM$1))","v":""},{"$f":"IF($A225=\"N/A\",Ref!$B$36,INDEX(Ranks!$1:$1048576,$A225,AN$1))","v":""},{"$f":"IF($A225=\"N/A\",Ref!$B$36,INDEX(Ranks!$1:$1048576,$A225,AO$1))","v":""},{"$f":"IF($A225=\"N/A\",Ref!$B$36,INDEX(Ranks!$1:$1048576,$A225,AP$1))","v":""},{"$f":"IF($A225=\"N/A\",Ref!$B$36,INDEX(Ranks!$1:$1048576,$A225,AQ$1))","v":""},{"$f":"IF($A225=\"N/A\",Ref!$B$36,INDEX(Ranks!$1:$1048576,$A225,AR$1))","v":""},{"$f":"IF($A225=\"N/A\",Ref!$B$36,INDEX(Ranks!$1:$1048576,$A225,AS$1))","v":""},{"$f":"IF($A225=\"N/A\",Ref!$B$36,INDEX(Ranks!$1:$1048576,$A225,AT$1))","v":""},{"$f":"IF($A225=\"N/A\",Ref!$B$36,INDEX(Ranks!$1:$1048576,$A225,AU$1))","v":""},{"$f":"IF($A225=\"N/A\",Ref!$B$36,INDEX(Ranks!$1:$1048576,$A225,AV$1))","v":""},{"$f":"IF($A225=\"N/A\",Ref!$B$36,INDEX(Ranks!$1:$1048576,$A225,AW$1))","v":""},{"$f":"IF($A225=\"N/A\",Ref!$B$36,INDEX(Ranks!$1:$1048576,$A225,AX$1))","v":""},{"$f":"IF($A225=\"N/A\",Ref!$B$36,INDEX(Ranks!$1:$1048576,$A225,AY$1))","v":""},{"$f":"IF($A225=\"N/A\",Ref!$B$36,INDEX(Ranks!$1:$1048576,$A225,AZ$1))","v":""},{"$f":"IF($A225=\"N/A\",Ref!$B$36,INDEX(Ranks!$1:$1048576,$A225,BA$1))","v":""},{"$f":"IF($A225=\"N/A\",Ref!$B$36,INDEX(Ranks!$1:$1048576,$A225,BB$1))","v":""},{"$f":"IF($A225=\"N/A\",Ref!$B$36,INDEX(Ranks!$1:$1048576,$A225,BC$1))","v":""},{"$f":"IF($A225=\"N/A\",Ref!$B$36,INDEX(Ranks!$1:$1048576,$A225,BD$1))","v":""},{"$f":"IF($A225=\"N/A\",Ref!$B$36,INDEX(Ranks!$1:$1048576,$A225,BE$1))","v":""},{"$f":"IF($A225=\"N/A\",Ref!$B$36,INDEX(Ranks!$1:$1048576,$A225,BF$1))","v":""},{"$f":"IF($A225=\"N/A\",Ref!$B$36,INDEX(Ranks!$1:$1048576,$A225,BG$1))","v":""},{"$f":"IF($A225=\"N/A\",Ref!$B$36,INDEX(Ranks!$1:$1048576,$A225,BH$1))","v":""},{"$f":"IF($A225=\"N/A\",Ref!$B$36,INDEX(Ranks!$1:$1048576,$A225,BI$1))","v":""},{"$f":"IF($A225=\"N/A\",Ref!$B$36,INDEX(Ranks!$1:$1048576,$A225,BJ$1))","v":""},{"$f":"IF($A225=\"N/A\",Ref!$B$36,INDEX(Ranks!$1:$1048576,$A225,BK$1))","v":""},{"$f":"IF($A225=\"N/A\",Ref!$B$36,INDEX(Ranks!$1:$1048576,$A225,BL$1))","v":""},{"$f":"IF($A225=\"N/A\",Ref!$B$36,INDEX(Ranks!$1:$1048576,$A225,BM$1))","v":""},{"$f":"IF($A225=\"N/A\",Ref!$B$36,INDEX(Ranks!$1:$1048576,$A225,BN$1))","v":""},{"$f":"IF($A225=\"N/A\",Ref!$B$36,INDEX(Ranks!$1:$1048576,$A225,BO$1))","v":""},{"$f":"IF($A225=\"N/A\",Ref!$B$36,INDEX(Ranks!$1:$1048576,$A225,BP$1))","v":""},{"$f":"IF($A225=\"N/A\",Ref!$B$36,INDEX(Ranks!$1:$1048576,$A225,BQ$1))","v":""},{"$f":"IF($A225=\"N/A\",Ref!$B$36,INDEX(Ranks!$1:$1048576,$A225,BR$1))","v":""},{"$f":"IF($A225=\"N/A\",Ref!$B$36,INDEX(Ranks!$1:$1048576,$A225,BS$1))","v":""},{"$f":"IF($A225=\"N/A\",Ref!$B$36,INDEX(Ranks!$1:$1048576,$A225,BT$1))","v":""},{"$f":"IF($A225=\"N/A\",Ref!$B$36,INDEX(Ranks!$1:$1048576,$A225,BU$1))","v":""},{"$f":"IF($A225=\"N/A\",Ref!$B$36,INDEX(Ranks!$1:$1048576,$A225,BV$1))","v":""},{"$f":"IF($A225=\"N/A\",Ref!$B$36,INDEX(Ranks!$1:$1048576,$A225,BW$1))","v":""},{"$f":"IF($A225=\"N/A\",Ref!$B$36,INDEX(Ranks!$1:$1048576,$A225,BX$1))","v":""},{"$f":"IF($A225=\"N/A\",Ref!$B$36,INDEX(Ranks!$1:$1048576,$A225,BY$1))","v":""},{"$f":"IF($A225=\"N/A\",Ref!$B$36,INDEX(Ranks!$1:$1048576,$A225,BZ$1))","v":""},{"$f":"IF($A225=\"N/A\",Ref!$B$36,INDEX(Ranks!$1:$1048576,$A225,CA$1))","v":""},{"$f":"IF($A225=\"N/A\",Ref!$B$36,INDEX(Ranks!$1:$1048576,$A225,CB$1))","v":""},{"$f":"IF($A225=\"N/A\",Ref!$B$36,INDEX(Ranks!$1:$1048576,$A225,CC$1))","v":""},{"$f":"IF($A225=\"N/A\",Ref!$B$36,INDEX(Ranks!$1:$1048576,$A225,CD$1))","v":""},{"$f":"IF($A225=\"N/A\",Ref!$B$36,INDEX(Ranks!$1:$1048576,$A225,CE$1))","v":""},{"$f":"IF($A225=\"N/A\",Ref!$B$36,INDEX(Ranks!$1:$1048576,$A225,CF$1))","v":""},{"$f":"IF($A225=\"N/A\",Ref!$B$36,INDEX(Ranks!$1:$1048576,$A225,CG$1))","v":""},{"$f":"IF($A225=\"N/A\",Ref!$B$36,INDEX(Ranks!$1:$1048576,$A225,CH$1))","v":""},{"$f":"IF($A225=\"N/A\",Ref!$B$36,INDEX(Ranks!$1:$1048576,$A225,CI$1))","v":""},{"$f":"IF($A225=\"N/A\",Ref!$B$36,INDEX(Ranks!$1:$1048576,$A225,CJ$1))","v":""},{"$f":"IF($A225=\"N/A\",Ref!$B$36,INDEX(Ranks!$1:$1048576,$A225,CK$1))","v":""},{"$f":"IF($A225=\"N/A\",Ref!$B$36,INDEX(Ranks!$1:$1048576,$A225,CL$1))","v":""},{"$f":"IF($A225=\"N/A\",Ref!$B$36,INDEX(Ranks!$1:$1048576,$A225,CM$1))","v":""},{"$f":"IF($A225=\"N/A\",Ref!$B$36,INDEX(Ranks!$1:$1048576,$A225,CN$1))","v":""},{"$f":"IF($A225=\"N/A\",Ref!$B$36,INDEX(Ranks!$1:$1048576,$A225,CO$1))","v":""},{"$f":"IF($A225=\"N/A\",Ref!$B$36,INDEX(Ranks!$1:$1048576,$A225,CP$1))","v":""},{"$f":"IF($A225=\"N/A\",Ref!$B$36,INDEX(Ranks!$1:$1048576,$A225,CQ$1))","v":""},{"$f":"IF($A225=\"N/A\",Ref!$B$36,INDEX(Ranks!$1:$1048576,$A225,CR$1))","v":""},{"$f":"IF($A225=\"N/A\",Ref!$B$36,INDEX(Ranks!$1:$1048576,$A225,CS$1))","v":""},{"$f":"IF($A225=\"N/A\",Ref!$B$36,INDEX(Ranks!$1:$1048576,$A225,CT$1))","v":""},{"$f":"IF($A225=\"N/A\",Ref!$B$36,INDEX(Ranks!$1:$1048576,$A225,CU$1))","v":""},{"$f":"IF($A225=\"N/A\",Ref!$B$36,INDEX(Ranks!$1:$1048576,$A225,CV$1))","v":""},{"$f":"IF($A225=\"N/A\",Ref!$B$36,INDEX(Ranks!$1:$1048576,$A225,CW$1))","v":""},{"$f":"IF($A225=\"N/A\",Ref!$B$36,INDEX(Ranks!$1:$1048576,$A225,CX$1))","v":""},{"$f":"IF($A225=\"N/A\",Ref!$B$36,INDEX(Ranks!$1:$1048576,$A225,CY$1))","v":""},{"$f":"IF($A225=\"N/A\",Ref!$B$36,INDEX(Ranks!$1:$1048576,$A225,CZ$1))","v":""},{"$f":"IF($A225=\"N/A\",Ref!$B$36,INDEX(Ranks!$1:$1048576,$A225,DA$1))","v":""},{"$f":"IF($A225=\"N/A\",Ref!$B$36,INDEX(Ranks!$1:$1048576,$A225,DB$1))","v":""},{"$f":"IF($A225=\"N/A\",Ref!$B$36,INDEX(Ranks!$1:$1048576,$A225,DC$1))","v":""},{"$f":"IF($A225=\"N/A\",Ref!$B$36,INDEX(Ranks!$1:$1048576,$A225,DD$1))","v":""},{"$f":"IF($A225=\"N/A\",Ref!$B$36,INDEX(Ranks!$1:$1048576,$A225,DE$1))","v":""},{"$f":"IF($A225=\"N/A\",Ref!$B$36,INDEX(Ranks!$1:$1048576,$A225,DF$1))","v":""},{"$f":"IF($A225=\"N/A\",Ref!$B$36,INDEX(Ranks!$1:$1048576,$A225,DG$1))","v":""},{"$f":"IF($A225=\"N/A\",Ref!$B$36,INDEX(Ranks!$1:$1048576,$A225,DH$1))","v":""},{"$f":"IF($A225=\"N/A\",Ref!$B$36,INDEX(Ranks!$1:$1048576,$A225,DI$1))","v":""},{"$f":"IF($A225=\"N/A\",Ref!$B$36,INDEX(Ranks!$1:$1048576,$A225,DJ$1))","v":""},{"$f":"IF($A225=\"N/A\",Ref!$B$36,INDEX(Ranks!$1:$1048576,$A225,DK$1))","v":""},{"$f":"IF($A225=\"N/A\",Ref!$B$36,INDEX(Ranks!$1:$1048576,$A225,DL$1))","v":""},{"$f":"IF($A225=\"N/A\",Ref!$B$36,INDEX(Ranks!$1:$1048576,$A225,DM$1))","v":""},{"$f":"IF($A225=\"N/A\",Ref!$B$36,INDEX(Ranks!$1:$1048576,$A225,DN$1))","v":""},{"$f":"IF($A225=\"N/A\",Ref!$B$36,INDEX(Ranks!$1:$1048576,$A225,DO$1))","v":""},{"$f":"IF($A225=\"N/A\",Ref!$B$36,INDEX(Ranks!$1:$1048576,$A225,DP$1))","v":""},{"$f":"IF($A225=\"N/A\",Ref!$B$36,INDEX(Ranks!$1:$1048576,$A225,DQ$1))","v":""},{"$f":"IF($A225=\"N/A\",Ref!$B$36,INDEX(Ranks!$1:$1048576,$A225,DR$1))","v":""},{"$f":"IF($A225=\"N/A\",Ref!$B$36,INDEX(Ranks!$1:$1048576,$A225,DS$1))","v":""},{"$f":"IF($A225=\"N/A\",Ref!$B$36,INDEX(Ranks!$1:$1048576,$A225,DT$1))","v":""},{"$f":"IF($A225=\"N/A\",Ref!$B$36,INDEX(Ranks!$1:$1048576,$A225,DU$1))","v":""},{"$f":"IF($A225=\"N/A\",Ref!$B$36,INDEX(Ranks!$1:$1048576,$A225,DV$1))","v":""},{"$f":"IF($A225=\"N/A\",Ref!$B$36,INDEX(Ranks!$1:$1048576,$A225,DW$1))","v":""},{"$f":"IF($A225=\"N/A\",Ref!$B$36,INDEX(Ranks!$1:$1048576,$A225,DX$1))","v":""},{"$f":"IF($A225=\"N/A\",Ref!$B$36,INDEX(Ranks!$1:$1048576,$A225,DY$1))","v":""},{"$f":"IF($A225=\"N/A\",Ref!$B$36,INDEX(Ranks!$1:$1048576,$A225,DZ$1))","v":""},{"$f":"IF($A225=\"N/A\",Ref!$B$36,INDEX(Ranks!$1:$1048576,$A225,EA$1))","v":""},{"$f":"IF($A225=\"N/A\",Ref!$B$36,INDEX(Ranks!$1:$1048576,$A225,EB$1))","v":""}]
[{"$f":"IFERROR(MATCH('Portfolio Page'!L226,Ranks!L:L,0),\"N/A\")","v":"N/A"},null,{"$f":"IF($A226=\"N/A\",\"\",INDEX(Ranks!$1:$1048576,$A226,C$1))","v":""},{"$f":"IF($A226=\"N/A\",Ref!$B$36,INDEX(Ranks!$1:$1048576,$A226,D$1))","v":""},{"$f":"IF($A226=\"N/A\",Ref!$B$36,INDEX(Ranks!$1:$1048576,$A226,E$1))","v":""},{"$f":"IF($A226=\"N/A\",\"\",INDEX(Ranks!$1:$1048576,$A226,F$1))","v":""},{"$f":"IF($A226=\"N/A\",\"\",INDEX(Ranks!$1:$1048576,$A226,G$1))","v":""},{"$f":"IF($A226=\"N/A\",\"\",INDEX(Ranks!$1:$1048576,$A226,H$1))","v":""},{"$f":"IF($A226=\"N/A\",\"\",INDEX(Ranks!$1:$1048576,$A226,I$1))","v":""},{"$f":"IF($A226=\"N/A\",\"\",INDEX(Ranks!$1:$1048576,$A226,J$1))","v":""},{"$f":"IF($A226=\"N/A\",\"\",INDEX(Ranks!$1:$1048576,$A226,K$1))","v":""},null,{"$f":"IF($A226=\"N/A\",Ref!$B$36,INDEX(Ranks!$1:$1048576,$A226,M$1))","v":""},{"$f":"IF($A226=\"N/A\",Ref!$B$36,INDEX(Ranks!$1:$1048576,$A226,N$1))","v":""},{"$f":"IF($A226=\"N/A\",Ref!$B$36,INDEX(Ranks!$1:$1048576,$A226,O$1))","v":""},{"$f":"IF($A226=\"N/A\",Ref!$B$36,INDEX(Ranks!$1:$1048576,$A226,P$1))","v":""},{"$f":"IF($A226=\"N/A\",Ref!$B$36,INDEX(Ranks!$1:$1048576,$A226,Q$1))","v":""},{"$f":"IF($A226=\"N/A\",Ref!$B$36,INDEX(Ranks!$1:$1048576,$A226,R$1))","v":""},{"$f":"IF($A226=\"N/A\",Ref!$B$36,INDEX(Ranks!$1:$1048576,$A226,S$1))","v":""},{"$f":"IF($A226=\"N/A\",Ref!$B$36,INDEX(Ranks!$1:$1048576,$A226,T$1))","v":""},{"$f":"IF($A226=\"N/A\",Ref!$B$36,INDEX(Ranks!$1:$1048576,$A226,U$1))","v":""},{"$f":"IF($A226=\"N/A\",Ref!$B$36,INDEX(Ranks!$1:$1048576,$A226,V$1))","v":""},{"$f":"IF($A226=\"N/A\",Ref!$B$36,INDEX(Ranks!$1:$1048576,$A226,W$1))","v":""},{"$f":"IF($A226=\"N/A\",Ref!$B$36,INDEX(Ranks!$1:$1048576,$A226,X$1))","v":""},{"$f":"IF($A226=\"N/A\",Ref!$B$36,INDEX(Ranks!$1:$1048576,$A226,Y$1))","v":""},{"$f":"IF($A226=\"N/A\",Ref!$B$36,INDEX(Ranks!$1:$1048576,$A226,Z$1))","v":""},{"$f":"IF($A226=\"N/A\",Ref!$B$36,INDEX(Ranks!$1:$1048576,$A226,AA$1))","v":""},{"$f":"IF($A226=\"N/A\",Ref!$B$36,INDEX(Ranks!$1:$1048576,$A226,AB$1))","v":""},{"$f":"IF($A226=\"N/A\",Ref!$B$36,INDEX(Ranks!$1:$1048576,$A226,AC$1))","v":""},{"$f":"IF($A226=\"N/A\",Ref!$B$36,INDEX(Ranks!$1:$1048576,$A226,AD$1))","v":""},{"$f":"IF($A226=\"N/A\",Ref!$B$36,INDEX(Ranks!$1:$1048576,$A226,AE$1))","v":""},{"$f":"IF($A226=\"N/A\",Ref!$B$36,INDEX(Ranks!$1:$1048576,$A226,AF$1))","v":""},{"$f":"IF($A226=\"N/A\",Ref!$B$36,INDEX(Ranks!$1:$1048576,$A226,AG$1))","v":""},{"$f":"IF($A226=\"N/A\",Ref!$B$36,INDEX(Ranks!$1:$1048576,$A226,AH$1))","v":""},{"$f":"IF($A226=\"N/A\",Ref!$B$36,INDEX(Ranks!$1:$1048576,$A226,AI$1))","v":""},{"$f":"IF($A226=\"N/A\",Ref!$B$36,INDEX(Ranks!$1:$1048576,$A226,AJ$1))","v":""},{"$f":"IF($A226=\"N/A\",Ref!$B$36,INDEX(Ranks!$1:$1048576,$A226,AK$1))","v":""},{"$f":"IF($A226=\"N/A\",Ref!$B$36,INDEX(Ranks!$1:$1048576,$A226,AL$1))","v":""},{"$f":"IF($A226=\"N/A\",Ref!$B$36,INDEX(Ranks!$1:$1048576,$A226,AM$1))","v":""},{"$f":"IF($A226=\"N/A\",Ref!$B$36,INDEX(Ranks!$1:$1048576,$A226,AN$1))","v":""},{"$f":"IF($A226=\"N/A\",Ref!$B$36,INDEX(Ranks!$1:$1048576,$A226,AO$1))","v":""},{"$f":"IF($A226=\"N/A\",Ref!$B$36,INDEX(Ranks!$1:$1048576,$A226,AP$1))","v":""},{"$f":"IF($A226=\"N/A\",Ref!$B$36,INDEX(Ranks!$1:$1048576,$A226,AQ$1))","v":""},{"$f":"IF($A226=\"N/A\",Ref!$B$36,INDEX(Ranks!$1:$1048576,$A226,AR$1))","v":""},{"$f":"IF($A226=\"N/A\",Ref!$B$36,INDEX(Ranks!$1:$1048576,$A226,AS$1))","v":""},{"$f":"IF($A226=\"N/A\",Ref!$B$36,INDEX(Ranks!$1:$1048576,$A226,AT$1))","v":""},{"$f":"IF($A226=\"N/A\",Ref!$B$36,INDEX(Ranks!$1:$1048576,$A226,AU$1))","v":""},{"$f":"IF($A226=\"N/A\",Ref!$B$36,INDEX(Ranks!$1:$1048576,$A226,AV$1))","v":""},{"$f":"IF($A226=\"N/A\",Ref!$B$36,INDEX(Ranks!$1:$1048576,$A226,AW$1))","v":""},{"$f":"IF($A226=\"N/A\",Ref!$B$36,INDEX(Ranks!$1:$1048576,$A226,AX$1))","v":""},{"$f":"IF($A226=\"N/A\",Ref!$B$36,INDEX(Ranks!$1:$1048576,$A226,AY$1))","v":""},{"$f":"IF($A226=\"N/A\",Ref!$B$36,INDEX(Ranks!$1:$1048576,$A226,AZ$1))","v":""},{"$f":"IF($A226=\"N/A\",Ref!$B$36,INDEX(Ranks!$1:$1048576,$A226,BA$1))","v":""},{"$f":"IF($A226=\"N/A\",Ref!$B$36,INDEX(Ranks!$1:$1048576,$A226,BB$1))","v":""},{"$f":"IF($A226=\"N/A\",Ref!$B$36,INDEX(Ranks!$1:$1048576,$A226,BC$1))","v":""},{"$f":"IF($A226=\"N/A\",Ref!$B$36,INDEX(Ranks!$1:$1048576,$A226,BD$1))","v":""},{"$f":"IF($A226=\"N/A\",Ref!$B$36,INDEX(Ranks!$1:$1048576,$A226,BE$1))","v":""},{"$f":"IF($A226=\"N/A\",Ref!$B$36,INDEX(Ranks!$1:$1048576,$A226,BF$1))","v":""},{"$f":"IF($A226=\"N/A\",Ref!$B$36,INDEX(Ranks!$1:$1048576,$A226,BG$1))","v":""},{"$f":"IF($A226=\"N/A\",Ref!$B$36,INDEX(Ranks!$1:$1048576,$A226,BH$1))","v":""},{"$f":"IF($A226=\"N/A\",Ref!$B$36,INDEX(Ranks!$1:$1048576,$A226,BI$1))","v":""},{"$f":"IF($A226=\"N/A\",Ref!$B$36,INDEX(Ranks!$1:$1048576,$A226,BJ$1))","v":""},{"$f":"IF($A226=\"N/A\",Ref!$B$36,INDEX(Ranks!$1:$1048576,$A226,BK$1))","v":""},{"$f":"IF($A226=\"N/A\",Ref!$B$36,INDEX(Ranks!$1:$1048576,$A226,BL$1))","v":""},{"$f":"IF($A226=\"N/A\",Ref!$B$36,INDEX(Ranks!$1:$1048576,$A226,BM$1))","v":""},{"$f":"IF($A226=\"N/A\",Ref!$B$36,INDEX(Ranks!$1:$1048576,$A226,BN$1))","v":""},{"$f":"IF($A226=\"N/A\",Ref!$B$36,INDEX(Ranks!$1:$1048576,$A226,BO$1))","v":""},{"$f":"IF($A226=\"N/A\",Ref!$B$36,INDEX(Ranks!$1:$1048576,$A226,BP$1))","v":""},{"$f":"IF($A226=\"N/A\",Ref!$B$36,INDEX(Ranks!$1:$1048576,$A226,BQ$1))","v":""},{"$f":"IF($A226=\"N/A\",Ref!$B$36,INDEX(Ranks!$1:$1048576,$A226,BR$1))","v":""},{"$f":"IF($A226=\"N/A\",Ref!$B$36,INDEX(Ranks!$1:$1048576,$A226,BS$1))","v":""},{"$f":"IF($A226=\"N/A\",Ref!$B$36,INDEX(Ranks!$1:$1048576,$A226,BT$1))","v":""},{"$f":"IF($A226=\"N/A\",Ref!$B$36,INDEX(Ranks!$1:$1048576,$A226,BU$1))","v":""},{"$f":"IF($A226=\"N/A\",Ref!$B$36,INDEX(Ranks!$1:$1048576,$A226,BV$1))","v":""},{"$f":"IF($A226=\"N/A\",Ref!$B$36,INDEX(Ranks!$1:$1048576,$A226,BW$1))","v":""},{"$f":"IF($A226=\"N/A\",Ref!$B$36,INDEX(Ranks!$1:$1048576,$A226,BX$1))","v":""},{"$f":"IF($A226=\"N/A\",Ref!$B$36,INDEX(Ranks!$1:$1048576,$A226,BY$1))","v":""},{"$f":"IF($A226=\"N/A\",Ref!$B$36,INDEX(Ranks!$1:$1048576,$A226,BZ$1))","v":""},{"$f":"IF($A226=\"N/A\",Ref!$B$36,INDEX(Ranks!$1:$1048576,$A226,CA$1))","v":""},{"$f":"IF($A226=\"N/A\",Ref!$B$36,INDEX(Ranks!$1:$1048576,$A226,CB$1))","v":""},{"$f":"IF($A226=\"N/A\",Ref!$B$36,INDEX(Ranks!$1:$1048576,$A226,CC$1))","v":""},{"$f":"IF($A226=\"N/A\",Ref!$B$36,INDEX(Ranks!$1:$1048576,$A226,CD$1))","v":""},{"$f":"IF($A226=\"N/A\",Ref!$B$36,INDEX(Ranks!$1:$1048576,$A226,CE$1))","v":""},{"$f":"IF($A226=\"N/A\",Ref!$B$36,INDEX(Ranks!$1:$1048576,$A226,CF$1))","v":""},{"$f":"IF($A226=\"N/A\",Ref!$B$36,INDEX(Ranks!$1:$1048576,$A226,CG$1))","v":""},{"$f":"IF($A226=\"N/A\",Ref!$B$36,INDEX(Ranks!$1:$1048576,$A226,CH$1))","v":""},{"$f":"IF($A226=\"N/A\",Ref!$B$36,INDEX(Ranks!$1:$1048576,$A226,CI$1))","v":""},{"$f":"IF($A226=\"N/A\",Ref!$B$36,INDEX(Ranks!$1:$1048576,$A226,CJ$1))","v":""},{"$f":"IF($A226=\"N/A\",Ref!$B$36,INDEX(Ranks!$1:$1048576,$A226,CK$1))","v":""},{"$f":"IF($A226=\"N/A\",Ref!$B$36,INDEX(Ranks!$1:$1048576,$A226,CL$1))","v":""},{"$f":"IF($A226=\"N/A\",Ref!$B$36,INDEX(Ranks!$1:$1048576,$A226,CM$1))","v":""},{"$f":"IF($A226=\"N/A\",Ref!$B$36,INDEX(Ranks!$1:$1048576,$A226,CN$1))","v":""},{"$f":"IF($A226=\"N/A\",Ref!$B$36,INDEX(Ranks!$1:$1048576,$A226,CO$1))","v":""},{"$f":"IF($A226=\"N/A\",Ref!$B$36,INDEX(Ranks!$1:$1048576,$A226,CP$1))","v":""},{"$f":"IF($A226=\"N/A\",Ref!$B$36,INDEX(Ranks!$1:$1048576,$A226,CQ$1))","v":""},{"$f":"IF($A226=\"N/A\",Ref!$B$36,INDEX(Ranks!$1:$1048576,$A226,CR$1))","v":""},{"$f":"IF($A226=\"N/A\",Ref!$B$36,INDEX(Ranks!$1:$1048576,$A226,CS$1))","v":""},{"$f":"IF($A226=\"N/A\",Ref!$B$36,INDEX(Ranks!$1:$1048576,$A226,CT$1))","v":""},{"$f":"IF($A226=\"N/A\",Ref!$B$36,INDEX(Ranks!$1:$1048576,$A226,CU$1))","v":""},{"$f":"IF($A226=\"N/A\",Ref!$B$36,INDEX(Ranks!$1:$1048576,$A226,CV$1))","v":""},{"$f":"IF($A226=\"N/A\",Ref!$B$36,INDEX(Ranks!$1:$1048576,$A226,CW$1))","v":""},{"$f":"IF($A226=\"N/A\",Ref!$B$36,INDEX(Ranks!$1:$1048576,$A226,CX$1))","v":""},{"$f":"IF($A226=\"N/A\",Ref!$B$36,INDEX(Ranks!$1:$1048576,$A226,CY$1))","v":""},{"$f":"IF($A226=\"N/A\",Ref!$B$36,INDEX(Ranks!$1:$1048576,$A226,CZ$1))","v":""},{"$f":"IF($A226=\"N/A\",Ref!$B$36,INDEX(Ranks!$1:$1048576,$A226,DA$1))","v":""},{"$f":"IF($A226=\"N/A\",Ref!$B$36,INDEX(Ranks!$1:$1048576,$A226,DB$1))","v":""},{"$f":"IF($A226=\"N/A\",Ref!$B$36,INDEX(Ranks!$1:$1048576,$A226,DC$1))","v":""},{"$f":"IF($A226=\"N/A\",Ref!$B$36,INDEX(Ranks!$1:$1048576,$A226,DD$1))","v":""},{"$f":"IF($A226=\"N/A\",Ref!$B$36,INDEX(Ranks!$1:$1048576,$A226,DE$1))","v":""},{"$f":"IF($A226=\"N/A\",Ref!$B$36,INDEX(Ranks!$1:$1048576,$A226,DF$1))","v":""},{"$f":"IF($A226=\"N/A\",Ref!$B$36,INDEX(Ranks!$1:$1048576,$A226,DG$1))","v":""},{"$f":"IF($A226=\"N/A\",Ref!$B$36,INDEX(Ranks!$1:$1048576,$A226,DH$1))","v":""},{"$f":"IF($A226=\"N/A\",Ref!$B$36,INDEX(Ranks!$1:$1048576,$A226,DI$1))","v":""},{"$f":"IF($A226=\"N/A\",Ref!$B$36,INDEX(Ranks!$1:$1048576,$A226,DJ$1))","v":""},{"$f":"IF($A226=\"N/A\",Ref!$B$36,INDEX(Ranks!$1:$1048576,$A226,DK$1))","v":""},{"$f":"IF($A226=\"N/A\",Ref!$B$36,INDEX(Ranks!$1:$1048576,$A226,DL$1))","v":""},{"$f":"IF($A226=\"N/A\",Ref!$B$36,INDEX(Ranks!$1:$1048576,$A226,DM$1))","v":""},{"$f":"IF($A226=\"N/A\",Ref!$B$36,INDEX(Ranks!$1:$1048576,$A226,DN$1))","v":""},{"$f":"IF($A226=\"N/A\",Ref!$B$36,INDEX(Ranks!$1:$1048576,$A226,DO$1))","v":""},{"$f":"IF($A226=\"N/A\",Ref!$B$36,INDEX(Ranks!$1:$1048576,$A226,DP$1))","v":""},{"$f":"IF($A226=\"N/A\",Ref!$B$36,INDEX(Ranks!$1:$1048576,$A226,DQ$1))","v":""},{"$f":"IF($A226=\"N/A\",Ref!$B$36,INDEX(Ranks!$1:$1048576,$A226,DR$1))","v":""},{"$f":"IF($A226=\"N/A\",Ref!$B$36,INDEX(Ranks!$1:$1048576,$A226,DS$1))","v":""},{"$f":"IF($A226=\"N/A\",Ref!$B$36,INDEX(Ranks!$1:$1048576,$A226,DT$1))","v":""},{"$f":"IF($A226=\"N/A\",Ref!$B$36,INDEX(Ranks!$1:$1048576,$A226,DU$1))","v":""},{"$f":"IF($A226=\"N/A\",Ref!$B$36,INDEX(Ranks!$1:$1048576,$A226,DV$1))","v":""},{"$f":"IF($A226=\"N/A\",Ref!$B$36,INDEX(Ranks!$1:$1048576,$A226,DW$1))","v":""},{"$f":"IF($A226=\"N/A\",Ref!$B$36,INDEX(Ranks!$1:$1048576,$A226,DX$1))","v":""},{"$f":"IF($A226=\"N/A\",Ref!$B$36,INDEX(Ranks!$1:$1048576,$A226,DY$1))","v":""},{"$f":"IF($A226=\"N/A\",Ref!$B$36,INDEX(Ranks!$1:$1048576,$A226,DZ$1))","v":""},{"$f":"IF($A226=\"N/A\",Ref!$B$36,INDEX(Ranks!$1:$1048576,$A226,EA$1))","v":""},{"$f":"IF($A226=\"N/A\",Ref!$B$36,INDEX(Ranks!$1:$1048576,$A226,EB$1))","v":""}]
[{"$f":"IFERROR(MATCH('Portfolio Page'!L227,Ranks!L:L,0),\"N/A\")","v":"N/A"},null,{"$f":"IF($A227=\"N/A\",\"\",INDEX(Ranks!$1:$1048576,$A227,C$1))","v":""},{"$f":"IF($A227=\"N/A\",Ref!$B$36,INDEX(Ranks!$1:$1048576,$A227,D$1))","v":""},{"$f":"IF($A227=\"N/A\",Ref!$B$36,INDEX(Ranks!$1:$1048576,$A227,E$1))","v":""},{"$f":"IF($A227=\"N/A\",\"\",INDEX(Ranks!$1:$1048576,$A227,F$1))","v":""},{"$f":"IF($A227=\"N/A\",\"\",INDEX(Ranks!$1:$1048576,$A227,G$1))","v":""},{"$f":"IF($A227=\"N/A\",\"\",INDEX(Ranks!$1:$1048576,$A227,H$1))","v":""},{"$f":"IF($A227=\"N/A\",\"\",INDEX(Ranks!$1:$1048576,$A227,I$1))","v":""},{"$f":"IF($A227=\"N/A\",\"\",INDEX(Ranks!$1:$1048576,$A227,J$1))","v":""},{"$f":"IF($A227=\"N/A\",\"\",INDEX(Ranks!$1:$1048576,$A227,K$1))","v":""},null,{"$f":"IF($A227=\"N/A\",Ref!$B$36,INDEX(Ranks!$1:$1048576,$A227,M$1))","v":""},{"$f":"IF($A227=\"N/A\",Ref!$B$36,INDEX(Ranks!$1:$1048576,$A227,N$1))","v":""},{"$f":"IF($A227=\"N/A\",Ref!$B$36,INDEX(Ranks!$1:$1048576,$A227,O$1))","v":""},{"$f":"IF($A227=\"N/A\",Ref!$B$36,INDEX(Ranks!$1:$1048576,$A227,P$1))","v":""},{"$f":"IF($A227=\"N/A\",Ref!$B$36,INDEX(Ranks!$1:$1048576,$A227,Q$1))","v":""},{"$f":"IF($A227=\"N/A\",Ref!$B$36,INDEX(Ranks!$1:$1048576,$A227,R$1))","v":""},{"$f":"IF($A227=\"N/A\",Ref!$B$36,INDEX(Ranks!$1:$1048576,$A227,S$1))","v":""},{"$f":"IF($A227=\"N/A\",Ref!$B$36,INDEX(Ranks!$1:$1048576,$A227,T$1))","v":""},{"$f":"IF($A227=\"N/A\",Ref!$B$36,INDEX(Ranks!$1:$1048576,$A227,U$1))","v":""},{"$f":"IF($A227=\"N/A\",Ref!$B$36,INDEX(Ranks!$1:$1048576,$A227,V$1))","v":""},{"$f":"IF($A227=\"N/A\",Ref!$B$36,INDEX(Ranks!$1:$1048576,$A227,W$1))","v":""},{"$f":"IF($A227=\"N/A\",Ref!$B$36,INDEX(Ranks!$1:$1048576,$A227,X$1))","v":""},{"$f":"IF($A227=\"N/A\",Ref!$B$36,INDEX(Ranks!$1:$1048576,$A227,Y$1))","v":""},{"$f":"IF($A227=\"N/A\",Ref!$B$36,INDEX(Ranks!$1:$1048576,$A227,Z$1))","v":""},{"$f":"IF($A227=\"N/A\",Ref!$B$36,INDEX(Ranks!$1:$1048576,$A227,AA$1))","v":""},{"$f":"IF($A227=\"N/A\",Ref!$B$36,INDEX(Ranks!$1:$1048576,$A227,AB$1))","v":""},{"$f":"IF($A227=\"N/A\",Ref!$B$36,INDEX(Ranks!$1:$1048576,$A227,AC$1))","v":""},{"$f":"IF($A227=\"N/A\",Ref!$B$36,INDEX(Ranks!$1:$1048576,$A227,AD$1))","v":""},{"$f":"IF($A227=\"N/A\",Ref!$B$36,INDEX(Ranks!$1:$1048576,$A227,AE$1))","v":""},{"$f":"IF($A227=\"N/A\",Ref!$B$36,INDEX(Ranks!$1:$1048576,$A227,AF$1))","v":""},{"$f":"IF($A227=\"N/A\",Ref!$B$36,INDEX(Ranks!$1:$1048576,$A227,AG$1))","v":""},{"$f":"IF($A227=\"N/A\",Ref!$B$36,INDEX(Ranks!$1:$1048576,$A227,AH$1))","v":""},{"$f":"IF($A227=\"N/A\",Ref!$B$36,INDEX(Ranks!$1:$1048576,$A227,AI$1))","v":""},{"$f":"IF($A227=\"N/A\",Ref!$B$36,INDEX(Ranks!$1:$1048576,$A227,AJ$1))","v":""},{"$f":"IF($A227=\"N/A\",Ref!$B$36,INDEX(Ranks!$1:$1048576,$A227,AK$1))","v":""},{"$f":"IF($A227=\"N/A\",Ref!$B$36,INDEX(Ranks!$1:$1048576,$A227,AL$1))","v":""},{"$f":"IF($A227=\"N/A\",Ref!$B$36,INDEX(Ranks!$1:$1048576,$A227,AM$1))","v":""},{"$f":"IF($A227=\"N/A\",Ref!$B$36,INDEX(Ranks!$1:$1048576,$A227,AN$1))","v":""},{"$f":"IF($A227=\"N/A\",Ref!$B$36,INDEX(Ranks!$1:$1048576,$A227,AO$1))","v":""},{"$f":"IF($A227=\"N/A\",Ref!$B$36,INDEX(Ranks!$1:$1048576,$A227,AP$1))","v":""},{"$f":"IF($A227=\"N/A\",Ref!$B$36,INDEX(Ranks!$1:$1048576,$A227,AQ$1))","v":""},{"$f":"IF($A227=\"N/A\",Ref!$B$36,INDEX(Ranks!$1:$1048576,$A227,AR$1))","v":""},{"$f":"IF($A227=\"N/A\",Ref!$B$36,INDEX(Ranks!$1:$1048576,$A227,AS$1))","v":""},{"$f":"IF($A227=\"N/A\",Ref!$B$36,INDEX(Ranks!$1:$1048576,$A227,AT$1))","v":""},{"$f":"IF($A227=\"N/A\",Ref!$B$36,INDEX(Ranks!$1:$1048576,$A227,AU$1))","v":""},{"$f":"IF($A227=\"N/A\",Ref!$B$36,INDEX(Ranks!$1:$1048576,$A227,AV$1))","v":""},{"$f":"IF($A227=\"N/A\",Ref!$B$36,INDEX(Ranks!$1:$1048576,$A227,AW$1))","v":""},{"$f":"IF($A227=\"N/A\",Ref!$B$36,INDEX(Ranks!$1:$1048576,$A227,AX$1))","v":""},{"$f":"IF($A227=\"N/A\",Ref!$B$36,INDEX(Ranks!$1:$1048576,$A227,AY$1))","v":""},{"$f":"IF($A227=\"N/A\",Ref!$B$36,INDEX(Ranks!$1:$1048576,$A227,AZ$1))","v":""},{"$f":"IF($A227=\"N/A\",Ref!$B$36,INDEX(Ranks!$1:$1048576,$A227,BA$1))","v":""},{"$f":"IF($A227=\"N/A\",Ref!$B$36,INDEX(Ranks!$1:$1048576,$A227,BB$1))","v":""},{"$f":"IF($A227=\"N/A\",Ref!$B$36,INDEX(Ranks!$1:$1048576,$A227,BC$1))","v":""},{"$f":"IF($A227=\"N/A\",Ref!$B$36,INDEX(Ranks!$1:$1048576,$A227,BD$1))","v":""},{"$f":"IF($A227=\"N/A\",Ref!$B$36,INDEX(Ranks!$1:$1048576,$A227,BE$1))","v":""},{"$f":"IF($A227=\"N/A\",Ref!$B$36,INDEX(Ranks!$1:$1048576,$A227,BF$1))","v":""},{"$f":"IF($A227=\"N/A\",Ref!$B$36,INDEX(Ranks!$1:$1048576,$A227,BG$1))","v":""},{"$f":"IF($A227=\"N/A\",Ref!$B$36,INDEX(Ranks!$1:$1048576,$A227,BH$1))","v":""},{"$f":"IF($A227=\"N/A\",Ref!$B$36,INDEX(Ranks!$1:$1048576,$A227,BI$1))","v":""},{"$f":"IF($A227=\"N/A\",Ref!$B$36,INDEX(Ranks!$1:$1048576,$A227,BJ$1))","v":""},{"$f":"IF($A227=\"N/A\",Ref!$B$36,INDEX(Ranks!$1:$1048576,$A227,BK$1))","v":""},{"$f":"IF($A227=\"N/A\",Ref!$B$36,INDEX(Ranks!$1:$1048576,$A227,BL$1))","v":""},{"$f":"IF($A227=\"N/A\",Ref!$B$36,INDEX(Ranks!$1:$1048576,$A227,BM$1))","v":""},{"$f":"IF($A227=\"N/A\",Ref!$B$36,INDEX(Ranks!$1:$1048576,$A227,BN$1))","v":""},{"$f":"IF($A227=\"N/A\",Ref!$B$36,INDEX(Ranks!$1:$1048576,$A227,BO$1))","v":""},{"$f":"IF($A227=\"N/A\",Ref!$B$36,INDEX(Ranks!$1:$1048576,$A227,BP$1))","v":""},{"$f":"IF($A227=\"N/A\",Ref!$B$36,INDEX(Ranks!$1:$1048576,$A227,BQ$1))","v":""},{"$f":"IF($A227=\"N/A\",Ref!$B$36,INDEX(Ranks!$1:$1048576,$A227,BR$1))","v":""},{"$f":"IF($A227=\"N/A\",Ref!$B$36,INDEX(Ranks!$1:$1048576,$A227,BS$1))","v":""},{"$f":"IF($A227=\"N/A\",Ref!$B$36,INDEX(Ranks!$1:$1048576,$A227,BT$1))","v":""},{"$f":"IF($A227=\"N/A\",Ref!$B$36,INDEX(Ranks!$1:$1048576,$A227,BU$1))","v":""},{"$f":"IF($A227=\"N/A\",Ref!$B$36,INDEX(Ranks!$1:$1048576,$A227,BV$1))","v":""},{"$f":"IF($A227=\"N/A\",Ref!$B$36,INDEX(Ranks!$1:$1048576,$A227,BW$1))","v":""},{"$f":"IF($A227=\"N/A\",Ref!$B$36,INDEX(Ranks!$1:$1048576,$A227,BX$1))","v":""},{"$f":"IF($A227=\"N/A\",Ref!$B$36,INDEX(Ranks!$1:$1048576,$A227,BY$1))","v":""},{"$f":"IF($A227=\"N/A\",Ref!$B$36,INDEX(Ranks!$1:$1048576,$A227,BZ$1))","v":""},{"$f":"IF($A227=\"N/A\",Ref!$B$36,INDEX(Ranks!$1:$1048576,$A227,CA$1))","v":""},{"$f":"IF($A227=\"N/A\",Ref!$B$36,INDEX(Ranks!$1:$1048576,$A227,CB$1))","v":""},{"$f":"IF($A227=\"N/A\",Ref!$B$36,INDEX(Ranks!$1:$1048576,$A227,CC$1))","v":""},{"$f":"IF($A227=\"N/A\",Ref!$B$36,INDEX(Ranks!$1:$1048576,$A227,CD$1))","v":""},{"$f":"IF($A227=\"N/A\",Ref!$B$36,INDEX(Ranks!$1:$1048576,$A227,CE$1))","v":""},{"$f":"IF($A227=\"N/A\",Ref!$B$36,INDEX(Ranks!$1:$1048576,$A227,CF$1))","v":""},{"$f":"IF($A227=\"N/A\",Ref!$B$36,INDEX(Ranks!$1:$1048576,$A227,CG$1))","v":""},{"$f":"IF($A227=\"N/A\",Ref!$B$36,INDEX(Ranks!$1:$1048576,$A227,CH$1))","v":""},{"$f":"IF($A227=\"N/A\",Ref!$B$36,INDEX(Ranks!$1:$1048576,$A227,CI$1))","v":""},{"$f":"IF($A227=\"N/A\",Ref!$B$36,INDEX(Ranks!$1:$1048576,$A227,CJ$1))","v":""},{"$f":"IF($A227=\"N/A\",Ref!$B$36,INDEX(Ranks!$1:$1048576,$A227,CK$1))","v":""},{"$f":"IF($A227=\"N/A\",Ref!$B$36,INDEX(Ranks!$1:$1048576,$A227,CL$1))","v":""},{"$f":"IF($A227=\"N/A\",Ref!$B$36,INDEX(Ranks!$1:$1048576,$A227,CM$1))","v":""},{"$f":"IF($A227=\"N/A\",Ref!$B$36,INDEX(Ranks!$1:$1048576,$A227,CN$1))","v":""},{"$f":"IF($A227=\"N/A\",Ref!$B$36,INDEX(Ranks!$1:$1048576,$A227,CO$1))","v":""},{"$f":"IF($A227=\"N/A\",Ref!$B$36,INDEX(Ranks!$1:$1048576,$A227,CP$1))","v":""},{"$f":"IF($A227=\"N/A\",Ref!$B$36,INDEX(Ranks!$1:$1048576,$A227,CQ$1))","v":""},{"$f":"IF($A227=\"N/A\",Ref!$B$36,INDEX(Ranks!$1:$1048576,$A227,CR$1))","v":""},{"$f":"IF($A227=\"N/A\",Ref!$B$36,INDEX(Ranks!$1:$1048576,$A227,CS$1))","v":""},{"$f":"IF($A227=\"N/A\",Ref!$B$36,INDEX(Ranks!$1:$1048576,$A227,CT$1))","v":""},{"$f":"IF($A227=\"N/A\",Ref!$B$36,INDEX(Ranks!$1:$1048576,$A227,CU$1))","v":""},{"$f":"IF($A227=\"N/A\",Ref!$B$36,INDEX(Ranks!$1:$1048576,$A227,CV$1))","v":""},{"$f":"IF($A227=\"N/A\",Ref!$B$36,INDEX(Ranks!$1:$1048576,$A227,CW$1))","v":""},{"$f":"IF($A227=\"N/A\",Ref!$B$36,INDEX(Ranks!$1:$1048576,$A227,CX$1))","v":""},{"$f":"IF($A227=\"N/A\",Ref!$B$36,INDEX(Ranks!$1:$1048576,$A227,CY$1))","v":""},{"$f":"IF($A227=\"N/A\",Ref!$B$36,INDEX(Ranks!$1:$1048576,$A227,CZ$1))","v":""},{"$f":"IF($A227=\"N/A\",Ref!$B$36,INDEX(Ranks!$1:$1048576,$A227,DA$1))","v":""},{"$f":"IF($A227=\"N/A\",Ref!$B$36,INDEX(Ranks!$1:$1048576,$A227,DB$1))","v":""},{"$f":"IF($A227=\"N/A\",Ref!$B$36,INDEX(Ranks!$1:$1048576,$A227,DC$1))","v":""},{"$f":"IF($A227=\"N/A\",Ref!$B$36,INDEX(Ranks!$1:$1048576,$A227,DD$1))","v":""},{"$f":"IF($A227=\"N/A\",Ref!$B$36,INDEX(Ranks!$1:$1048576,$A227,DE$1))","v":""},{"$f":"IF($A227=\"N/A\",Ref!$B$36,INDEX(Ranks!$1:$1048576,$A227,DF$1))","v":""},{"$f":"IF($A227=\"N/A\",Ref!$B$36,INDEX(Ranks!$1:$1048576,$A227,DG$1))","v":""},{"$f":"IF($A227=\"N/A\",Ref!$B$36,INDEX(Ranks!$1:$1048576,$A227,DH$1))","v":""},{"$f":"IF($A227=\"N/A\",Ref!$B$36,INDEX(Ranks!$1:$1048576,$A227,DI$1))","v":""},{"$f":"IF($A227=\"N/A\",Ref!$B$36,INDEX(Ranks!$1:$1048576,$A227,DJ$1))","v":""},{"$f":"IF($A227=\"N/A\",Ref!$B$36,INDEX(Ranks!$1:$1048576,$A227,DK$1))","v":""},{"$f":"IF($A227=\"N/A\",Ref!$B$36,INDEX(Ranks!$1:$1048576,$A227,DL$1))","v":""},{"$f":"IF($A227=\"N/A\",Ref!$B$36,INDEX(Ranks!$1:$1048576,$A227,DM$1))","v":""},{"$f":"IF($A227=\"N/A\",Ref!$B$36,INDEX(Ranks!$1:$1048576,$A227,DN$1))","v":""},{"$f":"IF($A227=\"N/A\",Ref!$B$36,INDEX(Ranks!$1:$1048576,$A227,DO$1))","v":""},{"$f":"IF($A227=\"N/A\",Ref!$B$36,INDEX(Ranks!$1:$1048576,$A227,DP$1))","v":""},{"$f":"IF($A227=\"N/A\",Ref!$B$36,INDEX(Ranks!$1:$1048576,$A227,DQ$1))","v":""},{"$f":"IF($A227=\"N/A\",Ref!$B$36,INDEX(Ranks!$1:$1048576,$A227,DR$1))","v":""},{"$f":"IF($A227=\"N/A\",Ref!$B$36,INDEX(Ranks!$1:$1048576,$A227,DS$1))","v":""},{"$f":"IF($A227=\"N/A\",Ref!$B$36,INDEX(Ranks!$1:$1048576,$A227,DT$1))","v":""},{"$f":"IF($A227=\"N/A\",Ref!$B$36,INDEX(Ranks!$1:$1048576,$A227,DU$1))","v":""},{"$f":"IF($A227=\"N/A\",Ref!$B$36,INDEX(Ranks!$1:$1048576,$A227,DV$1))","v":""},{"$f":"IF($A227=\"N/A\",Ref!$B$36,INDEX(Ranks!$1:$1048576,$A227,DW$1))","v":""},{"$f":"IF($A227=\"N/A\",Ref!$B$36,INDEX(Ranks!$1:$1048576,$A227,DX$1))","v":""},{"$f":"IF($A227=\"N/A\",Ref!$B$36,INDEX(Ranks!$1:$1048576,$A227,DY$1))","v":""},{"$f":"IF($A227=\"N/A\",Ref!$B$36,INDEX(Ranks!$1:$1048576,$A227,DZ$1))","v":""},{"$f":"IF($A227=\"N/A\",Ref!$B$36,INDEX(Ranks!$1:$1048576,$A227,EA$1))","v":""},{"$f":"IF($A227=\"N/A\",Ref!$B$36,INDEX(Ranks!$1:$1048576,$A227,EB$1))","v":""}]
[{"$f":"IFERROR(MATCH('Portfolio Page'!L228,Ranks!L:L,0),\"N/A\")","v":"N/A"},null,{"$f":"IF($A228=\"N/A\",\"\",INDEX(Ranks!$1:$1048576,$A228,C$1))","v":""},{"$f":"IF($A228=\"N/A\",Ref!$B$36,INDEX(Ranks!$1:$1048576,$A228,D$1))","v":""},{"$f":"IF($A228=\"N/A\",Ref!$B$36,INDEX(Ranks!$1:$1048576,$A228,E$1))","v":""},{"$f":"IF($A228=\"N/A\",\"\",INDEX(Ranks!$1:$1048576,$A228,F$1))","v":""},{"$f":"IF($A228=\"N/A\",\"\",INDEX(Ranks!$1:$1048576,$A228,G$1))","v":""},{"$f":"IF($A228=\"N/A\",\"\",INDEX(Ranks!$1:$1048576,$A228,H$1))","v":""},{"$f":"IF($A228=\"N/A\",\"\",INDEX(Ranks!$1:$1048576,$A228,I$1))","v":""},{"$f":"IF($A228=\"N/A\",\"\",INDEX(Ranks!$1:$1048576,$A228,J$1))","v":""},{"$f":"IF($A228=\"N/A\",\"\",INDEX(Ranks!$1:$1048576,$A228,K$1))","v":""},null,{"$f":"IF($A228=\"N/A\",Ref!$B$36,INDEX(Ranks!$1:$1048576,$A228,M$1))","v":""},{"$f":"IF($A228=\"N/A\",Ref!$B$36,INDEX(Ranks!$1:$1048576,$A228,N$1))","v":""},{"$f":"IF($A228=\"N/A\",Ref!$B$36,INDEX(Ranks!$1:$1048576,$A228,O$1))","v":""},{"$f":"IF($A228=\"N/A\",Ref!$B$36,INDEX(Ranks!$1:$1048576,$A228,P$1))","v":""},{"$f":"IF($A228=\"N/A\",Ref!$B$36,INDEX(Ranks!$1:$1048576,$A228,Q$1))","v":""},{"$f":"IF($A228=\"N/A\",Ref!$B$36,INDEX(Ranks!$1:$1048576,$A228,R$1))","v":""},{"$f":"IF($A228=\"N/A\",Ref!$B$36,INDEX(Ranks!$1:$1048576,$A228,S$1))","v":""},{"$f":"IF($A228=\"N/A\",Ref!$B$36,INDEX(Ranks!$1:$1048576,$A228,T$1))","v":""},{"$f":"IF($A228=\"N/A\",Ref!$B$36,INDEX(Ranks!$1:$1048576,$A228,U$1))","v":""},{"$f":"IF($A228=\"N/A\",Ref!$B$36,INDEX(Ranks!$1:$1048576,$A228,V$1))","v":""},{"$f":"IF($A228=\"N/A\",Ref!$B$36,INDEX(Ranks!$1:$1048576,$A228,W$1))","v":""},{"$f":"IF($A228=\"N/A\",Ref!$B$36,INDEX(Ranks!$1:$1048576,$A228,X$1))","v":""},{"$f":"IF($A228=\"N/A\",Ref!$B$36,INDEX(Ranks!$1:$1048576,$A228,Y$1))","v":""},{"$f":"IF($A228=\"N/A\",Ref!$B$36,INDEX(Ranks!$1:$1048576,$A228,Z$1))","v":""},{"$f":"IF($A228=\"N/A\",Ref!$B$36,INDEX(Ranks!$1:$1048576,$A228,AA$1))","v":""},{"$f":"IF($A228=\"N/A\",Ref!$B$36,INDEX(Ranks!$1:$1048576,$A228,AB$1))","v":""},{"$f":"IF($A228=\"N/A\",Ref!$B$36,INDEX(Ranks!$1:$1048576,$A228,AC$1))","v":""},{"$f":"IF($A228=\"N/A\",Ref!$B$36,INDEX(Ranks!$1:$1048576,$A228,AD$1))","v":""},{"$f":"IF($A228=\"N/A\",Ref!$B$36,INDEX(Ranks!$1:$1048576,$A228,AE$1))","v":""},{"$f":"IF($A228=\"N/A\",Ref!$B$36,INDEX(Ranks!$1:$1048576,$A228,AF$1))","v":""},{"$f":"IF($A228=\"N/A\",Ref!$B$36,INDEX(Ranks!$1:$1048576,$A228,AG$1))","v":""},{"$f":"IF($A228=\"N/A\",Ref!$B$36,INDEX(Ranks!$1:$1048576,$A228,AH$1))","v":""},{"$f":"IF($A228=\"N/A\",Ref!$B$36,INDEX(Ranks!$1:$1048576,$A228,AI$1))","v":""},{"$f":"IF($A228=\"N/A\",Ref!$B$36,INDEX(Ranks!$1:$1048576,$A228,AJ$1))","v":""},{"$f":"IF($A228=\"N/A\",Ref!$B$36,INDEX(Ranks!$1:$1048576,$A228,AK$1))","v":""},{"$f":"IF($A228=\"N/A\",Ref!$B$36,INDEX(Ranks!$1:$1048576,$A228,AL$1))","v":""},{"$f":"IF($A228=\"N/A\",Ref!$B$36,INDEX(Ranks!$1:$1048576,$A228,AM$1))","v":""},{"$f":"IF($A228=\"N/A\",Ref!$B$36,INDEX(Ranks!$1:$1048576,$A228,AN$1))","v":""},{"$f":"IF($A228=\"N/A\",Ref!$B$36,INDEX(Ranks!$1:$1048576,$A228,AO$1))","v":""},{"$f":"IF($A228=\"N/A\",Ref!$B$36,INDEX(Ranks!$1:$1048576,$A228,AP$1))","v":""},{"$f":"IF($A228=\"N/A\",Ref!$B$36,INDEX(Ranks!$1:$1048576,$A228,AQ$1))","v":""},{"$f":"IF($A228=\"N/A\",Ref!$B$36,INDEX(Ranks!$1:$1048576,$A228,AR$1))","v":""},{"$f":"IF($A228=\"N/A\",Ref!$B$36,INDEX(Ranks!$1:$1048576,$A228,AS$1))","v":""},{"$f":"IF($A228=\"N/A\",Ref!$B$36,INDEX(Ranks!$1:$1048576,$A228,AT$1))","v":""},{"$f":"IF($A228=\"N/A\",Ref!$B$36,INDEX(Ranks!$1:$1048576,$A228,AU$1))","v":""},{"$f":"IF($A228=\"N/A\",Ref!$B$36,INDEX(Ranks!$1:$1048576,$A228,AV$1))","v":""},{"$f":"IF($A228=\"N/A\",Ref!$B$36,INDEX(Ranks!$1:$1048576,$A228,AW$1))","v":""},{"$f":"IF($A228=\"N/A\",Ref!$B$36,INDEX(Ranks!$1:$1048576,$A228,AX$1))","v":""},{"$f":"IF($A228=\"N/A\",Ref!$B$36,INDEX(Ranks!$1:$1048576,$A228,AY$1))","v":""},{"$f":"IF($A228=\"N/A\",Ref!$B$36,INDEX(Ranks!$1:$1048576,$A228,AZ$1))","v":""},{"$f":"IF($A228=\"N/A\",Ref!$B$36,INDEX(Ranks!$1:$1048576,$A228,BA$1))","v":""},{"$f":"IF($A228=\"N/A\",Ref!$B$36,INDEX(Ranks!$1:$1048576,$A228,BB$1))","v":""},{"$f":"IF($A228=\"N/A\",Ref!$B$36,INDEX(Ranks!$1:$1048576,$A228,BC$1))","v":""},{"$f":"IF($A228=\"N/A\",Ref!$B$36,INDEX(Ranks!$1:$1048576,$A228,BD$1))","v":""},{"$f":"IF($A228=\"N/A\",Ref!$B$36,INDEX(Ranks!$1:$1048576,$A228,BE$1))","v":""},{"$f":"IF($A228=\"N/A\",Ref!$B$36,INDEX(Ranks!$1:$1048576,$A228,BF$1))","v":""},{"$f":"IF($A228=\"N/A\",Ref!$B$36,INDEX(Ranks!$1:$1048576,$A228,BG$1))","v":""},{"$f":"IF($A228=\"N/A\",Ref!$B$36,INDEX(Ranks!$1:$1048576,$A228,BH$1))","v":""},{"$f":"IF($A228=\"N/A\",Ref!$B$36,INDEX(Ranks!$1:$1048576,$A228,BI$1))","v":""},{"$f":"IF($A228=\"N/A\",Ref!$B$36,INDEX(Ranks!$1:$1048576,$A228,BJ$1))","v":""},{"$f":"IF($A228=\"N/A\",Ref!$B$36,INDEX(Ranks!$1:$1048576,$A228,BK$1))","v":""},{"$f":"IF($A228=\"N/A\",Ref!$B$36,INDEX(Ranks!$1:$1048576,$A228,BL$1))","v":""},{"$f":"IF($A228=\"N/A\",Ref!$B$36,INDEX(Ranks!$1:$1048576,$A228,BM$1))","v":""},{"$f":"IF($A228=\"N/A\",Ref!$B$36,INDEX(Ranks!$1:$1048576,$A228,BN$1))","v":""},{"$f":"IF($A228=\"N/A\",Ref!$B$36,INDEX(Ranks!$1:$1048576,$A228,BO$1))","v":""},{"$f":"IF($A228=\"N/A\",Ref!$B$36,INDEX(Ranks!$1:$1048576,$A228,BP$1))","v":""},{"$f":"IF($A228=\"N/A\",Ref!$B$36,INDEX(Ranks!$1:$1048576,$A228,BQ$1))","v":""},{"$f":"IF($A228=\"N/A\",Ref!$B$36,INDEX(Ranks!$1:$1048576,$A228,BR$1))","v":""},{"$f":"IF($A228=\"N/A\",Ref!$B$36,INDEX(Ranks!$1:$1048576,$A228,BS$1))","v":""},{"$f":"IF($A228=\"N/A\",Ref!$B$36,INDEX(Ranks!$1:$1048576,$A228,BT$1))","v":""},{"$f":"IF($A228=\"N/A\",Ref!$B$36,INDEX(Ranks!$1:$1048576,$A228,BU$1))","v":""},{"$f":"IF($A228=\"N/A\",Ref!$B$36,INDEX(Ranks!$1:$1048576,$A228,BV$1))","v":""},{"$f":"IF($A228=\"N/A\",Ref!$B$36,INDEX(Ranks!$1:$1048576,$A228,BW$1))","v":""},{"$f":"IF($A228=\"N/A\",Ref!$B$36,INDEX(Ranks!$1:$1048576,$A228,BX$1))","v":""},{"$f":"IF($A228=\"N/A\",Ref!$B$36,INDEX(Ranks!$1:$1048576,$A228,BY$1))","v":""},{"$f":"IF($A228=\"N/A\",Ref!$B$36,INDEX(Ranks!$1:$1048576,$A228,BZ$1))","v":""},{"$f":"IF($A228=\"N/A\",Ref!$B$36,INDEX(Ranks!$1:$1048576,$A228,CA$1))","v":""},{"$f":"IF($A228=\"N/A\",Ref!$B$36,INDEX(Ranks!$1:$1048576,$A228,CB$1))","v":""},{"$f":"IF($A228=\"N/A\",Ref!$B$36,INDEX(Ranks!$1:$1048576,$A228,CC$1))","v":""},{"$f":"IF($A228=\"N/A\",Ref!$B$36,INDEX(Ranks!$1:$1048576,$A228,CD$1))","v":""},{"$f":"IF($A228=\"N/A\",Ref!$B$36,INDEX(Ranks!$1:$1048576,$A228,CE$1))","v":""},{"$f":"IF($A228=\"N/A\",Ref!$B$36,INDEX(Ranks!$1:$1048576,$A228,CF$1))","v":""},{"$f":"IF($A228=\"N/A\",Ref!$B$36,INDEX(Ranks!$1:$1048576,$A228,CG$1))","v":""},{"$f":"IF($A228=\"N/A\",Ref!$B$36,INDEX(Ranks!$1:$1048576,$A228,CH$1))","v":""},{"$f":"IF($A228=\"N/A\",Ref!$B$36,INDEX(Ranks!$1:$1048576,$A228,CI$1))","v":""},{"$f":"IF($A228=\"N/A\",Ref!$B$36,INDEX(Ranks!$1:$1048576,$A228,CJ$1))","v":""},{"$f":"IF($A228=\"N/A\",Ref!$B$36,INDEX(Ranks!$1:$1048576,$A228,CK$1))","v":""},{"$f":"IF($A228=\"N/A\",Ref!$B$36,INDEX(Ranks!$1:$1048576,$A228,CL$1))","v":""},{"$f":"IF($A228=\"N/A\",Ref!$B$36,INDEX(Ranks!$1:$1048576,$A228,CM$1))","v":""},{"$f":"IF($A228=\"N/A\",Ref!$B$36,INDEX(Ranks!$1:$1048576,$A228,CN$1))","v":""},{"$f":"IF($A228=\"N/A\",Ref!$B$36,INDEX(Ranks!$1:$1048576,$A228,CO$1))","v":""},{"$f":"IF($A228=\"N/A\",Ref!$B$36,INDEX(Ranks!$1:$1048576,$A228,CP$1))","v":""},{"$f":"IF($A228=\"N/A\",Ref!$B$36,INDEX(Ranks!$1:$1048576,$A228,CQ$1))","v":""},{"$f":"IF($A228=\"N/A\",Ref!$B$36,INDEX(Ranks!$1:$1048576,$A228,CR$1))","v":""},{"$f":"IF($A228=\"N/A\",Ref!$B$36,INDEX(Ranks!$1:$1048576,$A228,CS$1))","v":""},{"$f":"IF($A228=\"N/A\",Ref!$B$36,INDEX(Ranks!$1:$1048576,$A228,CT$1))","v":""},{"$f":"IF($A228=\"N/A\",Ref!$B$36,INDEX(Ranks!$1:$1048576,$A228,CU$1))","v":""},{"$f":"IF($A228=\"N/A\",Ref!$B$36,INDEX(Ranks!$1:$1048576,$A228,CV$1))","v":""},{"$f":"IF($A228=\"N/A\",Ref!$B$36,INDEX(Ranks!$1:$1048576,$A228,CW$1))","v":""},{"$f":"IF($A228=\"N/A\",Ref!$B$36,INDEX(Ranks!$1:$1048576,$A228,CX$1))","v":""},{"$f":"IF($A228=\"N/A\",Ref!$B$36,INDEX(Ranks!$1:$1048576,$A228,CY$1))","v":""},{"$f":"IF($A228=\"N/A\",Ref!$B$36,INDEX(Ranks!$1:$1048576,$A228,CZ$1))","v":""},{"$f":"IF($A228=\"N/A\",Ref!$B$36,INDEX(Ranks!$1:$1048576,$A228,DA$1))","v":""},{"$f":"IF($A228=\"N/A\",Ref!$B$36,INDEX(Ranks!$1:$1048576,$A228,DB$1))","v":""},{"$f":"IF($A228=\"N/A\",Ref!$B$36,INDEX(Ranks!$1:$1048576,$A228,DC$1))","v":""},{"$f":"IF($A228=\"N/A\",Ref!$B$36,INDEX(Ranks!$1:$1048576,$A228,DD$1))","v":""},{"$f":"IF($A228=\"N/A\",Ref!$B$36,INDEX(Ranks!$1:$1048576,$A228,DE$1))","v":""},{"$f":"IF($A228=\"N/A\",Ref!$B$36,INDEX(Ranks!$1:$1048576,$A228,DF$1))","v":""},{"$f":"IF($A228=\"N/A\",Ref!$B$36,INDEX(Ranks!$1:$1048576,$A228,DG$1))","v":""},{"$f":"IF($A228=\"N/A\",Ref!$B$36,INDEX(Ranks!$1:$1048576,$A228,DH$1))","v":""},{"$f":"IF($A228=\"N/A\",Ref!$B$36,INDEX(Ranks!$1:$1048576,$A228,DI$1))","v":""},{"$f":"IF($A228=\"N/A\",Ref!$B$36,INDEX(Ranks!$1:$1048576,$A228,DJ$1))","v":""},{"$f":"IF($A228=\"N/A\",Ref!$B$36,INDEX(Ranks!$1:$1048576,$A228,DK$1))","v":""},{"$f":"IF($A228=\"N/A\",Ref!$B$36,INDEX(Ranks!$1:$1048576,$A228,DL$1))","v":""},{"$f":"IF($A228=\"N/A\",Ref!$B$36,INDEX(Ranks!$1:$1048576,$A228,DM$1))","v":""},{"$f":"IF($A228=\"N/A\",Ref!$B$36,INDEX(Ranks!$1:$1048576,$A228,DN$1))","v":""},{"$f":"IF($A228=\"N/A\",Ref!$B$36,INDEX(Ranks!$1:$1048576,$A228,DO$1))","v":""},{"$f":"IF($A228=\"N/A\",Ref!$B$36,INDEX(Ranks!$1:$1048576,$A228,DP$1))","v":""},{"$f":"IF($A228=\"N/A\",Ref!$B$36,INDEX(Ranks!$1:$1048576,$A228,DQ$1))","v":""},{"$f":"IF($A228=\"N/A\",Ref!$B$36,INDEX(Ranks!$1:$1048576,$A228,DR$1))","v":""},{"$f":"IF($A228=\"N/A\",Ref!$B$36,INDEX(Ranks!$1:$1048576,$A228,DS$1))","v":""},{"$f":"IF($A228=\"N/A\",Ref!$B$36,INDEX(Ranks!$1:$1048576,$A228,DT$1))","v":""},{"$f":"IF($A228=\"N/A\",Ref!$B$36,INDEX(Ranks!$1:$1048576,$A228,DU$1))","v":""},{"$f":"IF($A228=\"N/A\",Ref!$B$36,INDEX(Ranks!$1:$1048576,$A228,DV$1))","v":""},{"$f":"IF($A228=\"N/A\",Ref!$B$36,INDEX(Ranks!$1:$1048576,$A228,DW$1))","v":""},{"$f":"IF($A228=\"N/A\",Ref!$B$36,INDEX(Ranks!$1:$1048576,$A228,DX$1))","v":""},{"$f":"IF($A228=\"N/A\",Ref!$B$36,INDEX(Ranks!$1:$1048576,$A228,DY$1))","v":""},{"$f":"IF($A228=\"N/A\",Ref!$B$36,INDEX(Ranks!$1:$1048576,$A228,DZ$1))","v":""},{"$f":"IF($A228=\"N/A\",Ref!$B$36,INDEX(Ranks!$1:$1048576,$A228,EA$1))","v":""},{"$f":"IF($A228=\"N/A\",Ref!$B$36,INDEX(Ranks!$1:$1048576,$A228,EB$1))","v":""}]
[{"$f":"IFERROR(MATCH('Portfolio Page'!L229,Ranks!L:L,0),\"N/A\")","v":"N/A"},null,{"$f":"IF($A229=\"N/A\",\"\",INDEX(Ranks!$1:$1048576,$A229,C$1))","v":""},{"$f":"IF($A229=\"N/A\",Ref!$B$36,INDEX(Ranks!$1:$1048576,$A229,D$1))","v":""},{"$f":"IF($A229=\"N/A\",Ref!$B$36,INDEX(Ranks!$1:$1048576,$A229,E$1))","v":""},{"$f":"IF($A229=\"N/A\",\"\",INDEX(Ranks!$1:$1048576,$A229,F$1))","v":""},{"$f":"IF($A229=\"N/A\",\"\",INDEX(Ranks!$1:$1048576,$A229,G$1))","v":""},{"$f":"IF($A229=\"N/A\",\"\",INDEX(Ranks!$1:$1048576,$A229,H$1))","v":""},{"$f":"IF($A229=\"N/A\",\"\",INDEX(Ranks!$1:$1048576,$A229,I$1))","v":""},{"$f":"IF($A229=\"N/A\",\"\",INDEX(Ranks!$1:$1048576,$A229,J$1))","v":""},{"$f":"IF($A229=\"N/A\",\"\",INDEX(Ranks!$1:$1048576,$A229,K$1))","v":""},null,{"$f":"IF($A229=\"N/A\",Ref!$B$36,INDEX(Ranks!$1:$1048576,$A229,M$1))","v":""},{"$f":"IF($A229=\"N/A\",Ref!$B$36,INDEX(Ranks!$1:$1048576,$A229,N$1))","v":""},{"$f":"IF($A229=\"N/A\",Ref!$B$36,INDEX(Ranks!$1:$1048576,$A229,O$1))","v":""},{"$f":"IF($A229=\"N/A\",Ref!$B$36,INDEX(Ranks!$1:$1048576,$A229,P$1))","v":""},{"$f":"IF($A229=\"N/A\",Ref!$B$36,INDEX(Ranks!$1:$1048576,$A229,Q$1))","v":""},{"$f":"IF($A229=\"N/A\",Ref!$B$36,INDEX(Ranks!$1:$1048576,$A229,R$1))","v":""},{"$f":"IF($A229=\"N/A\",Ref!$B$36,INDEX(Ranks!$1:$1048576,$A229,S$1))","v":""},{"$f":"IF($A229=\"N/A\",Ref!$B$36,INDEX(Ranks!$1:$1048576,$A229,T$1))","v":""},{"$f":"IF($A229=\"N/A\",Ref!$B$36,INDEX(Ranks!$1:$1048576,$A229,U$1))","v":""},{"$f":"IF($A229=\"N/A\",Ref!$B$36,INDEX(Ranks!$1:$1048576,$A229,V$1))","v":""},{"$f":"IF($A229=\"N/A\",Ref!$B$36,INDEX(Ranks!$1:$1048576,$A229,W$1))","v":""},{"$f":"IF($A229=\"N/A\",Ref!$B$36,INDEX(Ranks!$1:$1048576,$A229,X$1))","v":""},{"$f":"IF($A229=\"N/A\",Ref!$B$36,INDEX(Ranks!$1:$1048576,$A229,Y$1))","v":""},{"$f":"IF($A229=\"N/A\",Ref!$B$36,INDEX(Ranks!$1:$1048576,$A229,Z$1))","v":""},{"$f":"IF($A229=\"N/A\",Ref!$B$36,INDEX(Ranks!$1:$1048576,$A229,AA$1))","v":""},{"$f":"IF($A229=\"N/A\",Ref!$B$36,INDEX(Ranks!$1:$1048576,$A229,AB$1))","v":""},{"$f":"IF($A229=\"N/A\",Ref!$B$36,INDEX(Ranks!$1:$1048576,$A229,AC$1))","v":""},{"$f":"IF($A229=\"N/A\",Ref!$B$36,INDEX(Ranks!$1:$1048576,$A229,AD$1))","v":""},{"$f":"IF($A229=\"N/A\",Ref!$B$36,INDEX(Ranks!$1:$1048576,$A229,AE$1))","v":""},{"$f":"IF($A229=\"N/A\",Ref!$B$36,INDEX(Ranks!$1:$1048576,$A229,AF$1))","v":""},{"$f":"IF($A229=\"N/A\",Ref!$B$36,INDEX(Ranks!$1:$1048576,$A229,AG$1))","v":""},{"$f":"IF($A229=\"N/A\",Ref!$B$36,INDEX(Ranks!$1:$1048576,$A229,AH$1))","v":""},{"$f":"IF($A229=\"N/A\",Ref!$B$36,INDEX(Ranks!$1:$1048576,$A229,AI$1))","v":""},{"$f":"IF($A229=\"N/A\",Ref!$B$36,INDEX(Ranks!$1:$1048576,$A229,AJ$1))","v":""},{"$f":"IF($A229=\"N/A\",Ref!$B$36,INDEX(Ranks!$1:$1048576,$A229,AK$1))","v":""},{"$f":"IF($A229=\"N/A\",Ref!$B$36,INDEX(Ranks!$1:$1048576,$A229,AL$1))","v":""},{"$f":"IF($A229=\"N/A\",Ref!$B$36,INDEX(Ranks!$1:$1048576,$A229,AM$1))","v":""},{"$f":"IF($A229=\"N/A\",Ref!$B$36,INDEX(Ranks!$1:$1048576,$A229,AN$1))","v":""},{"$f":"IF($A229=\"N/A\",Ref!$B$36,INDEX(Ranks!$1:$1048576,$A229,AO$1))","v":""},{"$f":"IF($A229=\"N/A\",Ref!$B$36,INDEX(Ranks!$1:$1048576,$A229,AP$1))","v":""},{"$f":"IF($A229=\"N/A\",Ref!$B$36,INDEX(Ranks!$1:$1048576,$A229,AQ$1))","v":""},{"$f":"IF($A229=\"N/A\",Ref!$B$36,INDEX(Ranks!$1:$1048576,$A229,AR$1))","v":""},{"$f":"IF($A229=\"N/A\",Ref!$B$36,INDEX(Ranks!$1:$1048576,$A229,AS$1))","v":""},{"$f":"IF($A229=\"N/A\",Ref!$B$36,INDEX(Ranks!$1:$1048576,$A229,AT$1))","v":""},{"$f":"IF($A229=\"N/A\",Ref!$B$36,INDEX(Ranks!$1:$1048576,$A229,AU$1))","v":""},{"$f":"IF($A229=\"N/A\",Ref!$B$36,INDEX(Ranks!$1:$1048576,$A229,AV$1))","v":""},{"$f":"IF($A229=\"N/A\",Ref!$B$36,INDEX(Ranks!$1:$1048576,$A229,AW$1))","v":""},{"$f":"IF($A229=\"N/A\",Ref!$B$36,INDEX(Ranks!$1:$1048576,$A229,AX$1))","v":""},{"$f":"IF($A229=\"N/A\",Ref!$B$36,INDEX(Ranks!$1:$1048576,$A229,AY$1))","v":""},{"$f":"IF($A229=\"N/A\",Ref!$B$36,INDEX(Ranks!$1:$1048576,$A229,AZ$1))","v":""},{"$f":"IF($A229=\"N/A\",Ref!$B$36,INDEX(Ranks!$1:$1048576,$A229,BA$1))","v":""},{"$f":"IF($A229=\"N/A\",Ref!$B$36,INDEX(Ranks!$1:$1048576,$A229,BB$1))","v":""},{"$f":"IF($A229=\"N/A\",Ref!$B$36,INDEX(Ranks!$1:$1048576,$A229,BC$1))","v":""},{"$f":"IF($A229=\"N/A\",Ref!$B$36,INDEX(Ranks!$1:$1048576,$A229,BD$1))","v":""},{"$f":"IF($A229=\"N/A\",Ref!$B$36,INDEX(Ranks!$1:$1048576,$A229,BE$1))","v":""},{"$f":"IF($A229=\"N/A\",Ref!$B$36,INDEX(Ranks!$1:$1048576,$A229,BF$1))","v":""},{"$f":"IF($A229=\"N/A\",Ref!$B$36,INDEX(Ranks!$1:$1048576,$A229,BG$1))","v":""},{"$f":"IF($A229=\"N/A\",Ref!$B$36,INDEX(Ranks!$1:$1048576,$A229,BH$1))","v":""},{"$f":"IF($A229=\"N/A\",Ref!$B$36,INDEX(Ranks!$1:$1048576,$A229,BI$1))","v":""},{"$f":"IF($A229=\"N/A\",Ref!$B$36,INDEX(Ranks!$1:$1048576,$A229,BJ$1))","v":""},{"$f":"IF($A229=\"N/A\",Ref!$B$36,INDEX(Ranks!$1:$1048576,$A229,BK$1))","v":""},{"$f":"IF($A229=\"N/A\",Ref!$B$36,INDEX(Ranks!$1:$1048576,$A229,BL$1))","v":""},{"$f":"IF($A229=\"N/A\",Ref!$B$36,INDEX(Ranks!$1:$1048576,$A229,BM$1))","v":""},{"$f":"IF($A229=\"N/A\",Ref!$B$36,INDEX(Ranks!$1:$1048576,$A229,BN$1))","v":""},{"$f":"IF($A229=\"N/A\",Ref!$B$36,INDEX(Ranks!$1:$1048576,$A229,BO$1))","v":""},{"$f":"IF($A229=\"N/A\",Ref!$B$36,INDEX(Ranks!$1:$1048576,$A229,BP$1))","v":""},{"$f":"IF($A229=\"N/A\",Ref!$B$36,INDEX(Ranks!$1:$1048576,$A229,BQ$1))","v":""},{"$f":"IF($A229=\"N/A\",Ref!$B$36,INDEX(Ranks!$1:$1048576,$A229,BR$1))","v":""},{"$f":"IF($A229=\"N/A\",Ref!$B$36,INDEX(Ranks!$1:$1048576,$A229,BS$1))","v":""},{"$f":"IF($A229=\"N/A\",Ref!$B$36,INDEX(Ranks!$1:$1048576,$A229,BT$1))","v":""},{"$f":"IF($A229=\"N/A\",Ref!$B$36,INDEX(Ranks!$1:$1048576,$A229,BU$1))","v":""},{"$f":"IF($A229=\"N/A\",Ref!$B$36,INDEX(Ranks!$1:$1048576,$A229,BV$1))","v":""},{"$f":"IF($A229=\"N/A\",Ref!$B$36,INDEX(Ranks!$1:$1048576,$A229,BW$1))","v":""},{"$f":"IF($A229=\"N/A\",Ref!$B$36,INDEX(Ranks!$1:$1048576,$A229,BX$1))","v":""},{"$f":"IF($A229=\"N/A\",Ref!$B$36,INDEX(Ranks!$1:$1048576,$A229,BY$1))","v":""},{"$f":"IF($A229=\"N/A\",Ref!$B$36,INDEX(Ranks!$1:$1048576,$A229,BZ$1))","v":""},{"$f":"IF($A229=\"N/A\",Ref!$B$36,INDEX(Ranks!$1:$1048576,$A229,CA$1))","v":""},{"$f":"IF($A229=\"N/A\",Ref!$B$36,INDEX(Ranks!$1:$1048576,$A229,CB$1))","v":""},{"$f":"IF($A229=\"N/A\",Ref!$B$36,INDEX(Ranks!$1:$1048576,$A229,CC$1))","v":""},{"$f":"IF($A229=\"N/A\",Ref!$B$36,INDEX(Ranks!$1:$1048576,$A229,CD$1))","v":""},{"$f":"IF($A229=\"N/A\",Ref!$B$36,INDEX(Ranks!$1:$1048576,$A229,CE$1))","v":""},{"$f":"IF($A229=\"N/A\",Ref!$B$36,INDEX(Ranks!$1:$1048576,$A229,CF$1))","v":""},{"$f":"IF($A229=\"N/A\",Ref!$B$36,INDEX(Ranks!$1:$1048576,$A229,CG$1))","v":""},{"$f":"IF($A229=\"N/A\",Ref!$B$36,INDEX(Ranks!$1:$1048576,$A229,CH$1))","v":""},{"$f":"IF($A229=\"N/A\",Ref!$B$36,INDEX(Ranks!$1:$1048576,$A229,CI$1))","v":""},{"$f":"IF($A229=\"N/A\",Ref!$B$36,INDEX(Ranks!$1:$1048576,$A229,CJ$1))","v":""},{"$f":"IF($A229=\"N/A\",Ref!$B$36,INDEX(Ranks!$1:$1048576,$A229,CK$1))","v":""},{"$f":"IF($A229=\"N/A\",Ref!$B$36,INDEX(Ranks!$1:$1048576,$A229,CL$1))","v":""},{"$f":"IF($A229=\"N/A\",Ref!$B$36,INDEX(Ranks!$1:$1048576,$A229,CM$1))","v":""},{"$f":"IF($A229=\"N/A\",Ref!$B$36,INDEX(Ranks!$1:$1048576,$A229,CN$1))","v":""},{"$f":"IF($A229=\"N/A\",Ref!$B$36,INDEX(Ranks!$1:$1048576,$A229,CO$1))","v":""},{"$f":"IF($A229=\"N/A\",Ref!$B$36,INDEX(Ranks!$1:$1048576,$A229,CP$1))","v":""},{"$f":"IF($A229=\"N/A\",Ref!$B$36,INDEX(Ranks!$1:$1048576,$A229,CQ$1))","v":""},{"$f":"IF($A229=\"N/A\",Ref!$B$36,INDEX(Ranks!$1:$1048576,$A229,CR$1))","v":""},{"$f":"IF($A229=\"N/A\",Ref!$B$36,INDEX(Ranks!$1:$1048576,$A229,CS$1))","v":""},{"$f":"IF($A229=\"N/A\",Ref!$B$36,INDEX(Ranks!$1:$1048576,$A229,CT$1))","v":""},{"$f":"IF($A229=\"N/A\",Ref!$B$36,INDEX(Ranks!$1:$1048576,$A229,CU$1))","v":""},{"$f":"IF($A229=\"N/A\",Ref!$B$36,INDEX(Ranks!$1:$1048576,$A229,CV$1))","v":""},{"$f":"IF($A229=\"N/A\",Ref!$B$36,INDEX(Ranks!$1:$1048576,$A229,CW$1))","v":""},{"$f":"IF($A229=\"N/A\",Ref!$B$36,INDEX(Ranks!$1:$1048576,$A229,CX$1))","v":""},{"$f":"IF($A229=\"N/A\",Ref!$B$36,INDEX(Ranks!$1:$1048576,$A229,CY$1))","v":""},{"$f":"IF($A229=\"N/A\",Ref!$B$36,INDEX(Ranks!$1:$1048576,$A229,CZ$1))","v":""},{"$f":"IF($A229=\"N/A\",Ref!$B$36,INDEX(Ranks!$1:$1048576,$A229,DA$1))","v":""},{"$f":"IF($A229=\"N/A\",Ref!$B$36,INDEX(Ranks!$1:$1048576,$A229,DB$1))","v":""},{"$f":"IF($A229=\"N/A\",Ref!$B$36,INDEX(Ranks!$1:$1048576,$A229,DC$1))","v":""},{"$f":"IF($A229=\"N/A\",Ref!$B$36,INDEX(Ranks!$1:$1048576,$A229,DD$1))","v":""},{"$f":"IF($A229=\"N/A\",Ref!$B$36,INDEX(Ranks!$1:$1048576,$A229,DE$1))","v":""},{"$f":"IF($A229=\"N/A\",Ref!$B$36,INDEX(Ranks!$1:$1048576,$A229,DF$1))","v":""},{"$f":"IF($A229=\"N/A\",Ref!$B$36,INDEX(Ranks!$1:$1048576,$A229,DG$1))","v":""},{"$f":"IF($A229=\"N/A\",Ref!$B$36,INDEX(Ranks!$1:$1048576,$A229,DH$1))","v":""},{"$f":"IF($A229=\"N/A\",Ref!$B$36,INDEX(Ranks!$1:$1048576,$A229,DI$1))","v":""},{"$f":"IF($A229=\"N/A\",Ref!$B$36,INDEX(Ranks!$1:$1048576,$A229,DJ$1))","v":""},{"$f":"IF($A229=\"N/A\",Ref!$B$36,INDEX(Ranks!$1:$1048576,$A229,DK$1))","v":""},{"$f":"IF($A229=\"N/A\",Ref!$B$36,INDEX(Ranks!$1:$1048576,$A229,DL$1))","v":""},{"$f":"IF($A229=\"N/A\",Ref!$B$36,INDEX(Ranks!$1:$1048576,$A229,DM$1))","v":""},{"$f":"IF($A229=\"N/A\",Ref!$B$36,INDEX(Ranks!$1:$1048576,$A229,DN$1))","v":""},{"$f":"IF($A229=\"N/A\",Ref!$B$36,INDEX(Ranks!$1:$1048576,$A229,DO$1))","v":""},{"$f":"IF($A229=\"N/A\",Ref!$B$36,INDEX(Ranks!$1:$1048576,$A229,DP$1))","v":""},{"$f":"IF($A229=\"N/A\",Ref!$B$36,INDEX(Ranks!$1:$1048576,$A229,DQ$1))","v":""},{"$f":"IF($A229=\"N/A\",Ref!$B$36,INDEX(Ranks!$1:$1048576,$A229,DR$1))","v":""},{"$f":"IF($A229=\"N/A\",Ref!$B$36,INDEX(Ranks!$1:$1048576,$A229,DS$1))","v":""},{"$f":"IF($A229=\"N/A\",Ref!$B$36,INDEX(Ranks!$1:$1048576,$A229,DT$1))","v":""},{"$f":"IF($A229=\"N/A\",Ref!$B$36,INDEX(Ranks!$1:$1048576,$A229,DU$1))","v":""},{"$f":"IF($A229=\"N/A\",Ref!$B$36,INDEX(Ranks!$1:$1048576,$A229,DV$1))","v":""},{"$f":"IF($A229=\"N/A\",Ref!$B$36,INDEX(Ranks!$1:$1048576,$A229,DW$1))","v":""},{"$f":"IF($A229=\"N/A\",Ref!$B$36,INDEX(Ranks!$1:$1048576,$A229,DX$1))","v":""},{"$f":"IF($A229=\"N/A\",Ref!$B$36,INDEX(Ranks!$1:$1048576,$A229,DY$1))","v":""},{"$f":"IF($A229=\"N/A\",Ref!$B$36,INDEX(Ranks!$1:$1048576,$A229,DZ$1))","v":""},{"$f":"IF($A229=\"N/A\",Ref!$B$36,INDEX(Ranks!$1:$1048576,$A229,EA$1))","v":""},{"$f":"IF($A229=\"N/A\",Ref!$B$36,INDEX(Ranks!$1:$1048576,$A229,EB$1))","v":""}]
[{"$f":"IFERROR(MATCH('Portfolio Page'!L230,Ranks!L:L,0),\"N/A\")","v":"N/A"},null,{"$f":"IF($A230=\"N/A\",\"\",INDEX(Ranks!$1:$1048576,$A230,C$1))","v":""},{"$f":"IF($A230=\"N/A\",Ref!$B$36,INDEX(Ranks!$1:$1048576,$A230,D$1))","v":""},{"$f":"IF($A230=\"N/A\",Ref!$B$36,INDEX(Ranks!$1:$1048576,$A230,E$1))","v":""},{"$f":"IF($A230=\"N/A\",\"\",INDEX(Ranks!$1:$1048576,$A230,F$1))","v":""},{"$f":"IF($A230=\"N/A\",\"\",INDEX(Ranks!$1:$1048576,$A230,G$1))","v":""},{"$f":"IF($A230=\"N/A\",\"\",INDEX(Ranks!$1:$1048576,$A230,H$1))","v":""},{"$f":"IF($A230=\"N/A\",\"\",INDEX(Ranks!$1:$1048576,$A230,I$1))","v":""},{"$f":"IF($A230=\"N/A\",\"\",INDEX(Ranks!$1:$1048576,$A230,J$1))","v":""},{"$f":"IF($A230=\"N/A\",\"\",INDEX(Ranks!$1:$1048576,$A230,K$1))","v":""},null,{"$f":"IF($A230=\"N/A\",Ref!$B$36,INDEX(Ranks!$1:$1048576,$A230,M$1))","v":""},{"$f":"IF($A230=\"N/A\",Ref!$B$36,INDEX(Ranks!$1:$1048576,$A230,N$1))","v":""},{"$f":"IF($A230=\"N/A\",Ref!$B$36,INDEX(Ranks!$1:$1048576,$A230,O$1))","v":""},{"$f":"IF($A230=\"N/A\",Ref!$B$36,INDEX(Ranks!$1:$1048576,$A230,P$1))","v":""},{"$f":"IF($A230=\"N/A\",Ref!$B$36,INDEX(Ranks!$1:$1048576,$A230,Q$1))","v":""},{"$f":"IF($A230=\"N/A\",Ref!$B$36,INDEX(Ranks!$1:$1048576,$A230,R$1))","v":""},{"$f":"IF($A230=\"N/A\",Ref!$B$36,INDEX(Ranks!$1:$1048576,$A230,S$1))","v":""},{"$f":"IF($A230=\"N/A\",Ref!$B$36,INDEX(Ranks!$1:$1048576,$A230,T$1))","v":""},{"$f":"IF($A230=\"N/A\",Ref!$B$36,INDEX(Ranks!$1:$1048576,$A230,U$1))","v":""},{"$f":"IF($A230=\"N/A\",Ref!$B$36,INDEX(Ranks!$1:$1048576,$A230,V$1))","v":""},{"$f":"IF($A230=\"N/A\",Ref!$B$36,INDEX(Ranks!$1:$1048576,$A230,W$1))","v":""},{"$f":"IF($A230=\"N/A\",Ref!$B$36,INDEX(Ranks!$1:$1048576,$A230,X$1))","v":""},{"$f":"IF($A230=\"N/A\",Ref!$B$36,INDEX(Ranks!$1:$1048576,$A230,Y$1))","v":""},{"$f":"IF($A230=\"N/A\",Ref!$B$36,INDEX(Ranks!$1:$1048576,$A230,Z$1))","v":""},{"$f":"IF($A230=\"N/A\",Ref!$B$36,INDEX(Ranks!$1:$1048576,$A230,AA$1))","v":""},{"$f":"IF($A230=\"N/A\",Ref!$B$36,INDEX(Ranks!$1:$1048576,$A230,AB$1))","v":""},{"$f":"IF($A230=\"N/A\",Ref!$B$36,INDEX(Ranks!$1:$1048576,$A230,AC$1))","v":""},{"$f":"IF($A230=\"N/A\",Ref!$B$36,INDEX(Ranks!$1:$1048576,$A230,AD$1))","v":""},{"$f":"IF($A230=\"N/A\",Ref!$B$36,INDEX(Ranks!$1:$1048576,$A230,AE$1))","v":""},{"$f":"IF($A230=\"N/A\",Ref!$B$36,INDEX(Ranks!$1:$1048576,$A230,AF$1))","v":""},{"$f":"IF($A230=\"N/A\",Ref!$B$36,INDEX(Ranks!$1:$1048576,$A230,AG$1))","v":""},{"$f":"IF($A230=\"N/A\",Ref!$B$36,INDEX(Ranks!$1:$1048576,$A230,AH$1))","v":""},{"$f":"IF($A230=\"N/A\",Ref!$B$36,INDEX(Ranks!$1:$1048576,$A230,AI$1))","v":""},{"$f":"IF($A230=\"N/A\",Ref!$B$36,INDEX(Ranks!$1:$1048576,$A230,AJ$1))","v":""},{"$f":"IF($A230=\"N/A\",Ref!$B$36,INDEX(Ranks!$1:$1048576,$A230,AK$1))","v":""},{"$f":"IF($A230=\"N/A\",Ref!$B$36,INDEX(Ranks!$1:$1048576,$A230,AL$1))","v":""},{"$f":"IF($A230=\"N/A\",Ref!$B$36,INDEX(Ranks!$1:$1048576,$A230,AM$1))","v":""},{"$f":"IF($A230=\"N/A\",Ref!$B$36,INDEX(Ranks!$1:$1048576,$A230,AN$1))","v":""},{"$f":"IF($A230=\"N/A\",Ref!$B$36,INDEX(Ranks!$1:$1048576,$A230,AO$1))","v":""},{"$f":"IF($A230=\"N/A\",Ref!$B$36,INDEX(Ranks!$1:$1048576,$A230,AP$1))","v":""},{"$f":"IF($A230=\"N/A\",Ref!$B$36,INDEX(Ranks!$1:$1048576,$A230,AQ$1))","v":""},{"$f":"IF($A230=\"N/A\",Ref!$B$36,INDEX(Ranks!$1:$1048576,$A230,AR$1))","v":""},{"$f":"IF($A230=\"N/A\",Ref!$B$36,INDEX(Ranks!$1:$1048576,$A230,AS$1))","v":""},{"$f":"IF($A230=\"N/A\",Ref!$B$36,INDEX(Ranks!$1:$1048576,$A230,AT$1))","v":""},{"$f":"IF($A230=\"N/A\",Ref!$B$36,INDEX(Ranks!$1:$1048576,$A230,AU$1))","v":""},{"$f":"IF($A230=\"N/A\",Ref!$B$36,INDEX(Ranks!$1:$1048576,$A230,AV$1))","v":""},{"$f":"IF($A230=\"N/A\",Ref!$B$36,INDEX(Ranks!$1:$1048576,$A230,AW$1))","v":""},{"$f":"IF($A230=\"N/A\",Ref!$B$36,INDEX(Ranks!$1:$1048576,$A230,AX$1))","v":""},{"$f":"IF($A230=\"N/A\",Ref!$B$36,INDEX(Ranks!$1:$1048576,$A230,AY$1))","v":""},{"$f":"IF($A230=\"N/A\",Ref!$B$36,INDEX(Ranks!$1:$1048576,$A230,AZ$1))","v":""},{"$f":"IF($A230=\"N/A\",Ref!$B$36,INDEX(Ranks!$1:$1048576,$A230,BA$1))","v":""},{"$f":"IF($A230=\"N/A\",Ref!$B$36,INDEX(Ranks!$1:$1048576,$A230,BB$1))","v":""},{"$f":"IF($A230=\"N/A\",Ref!$B$36,INDEX(Ranks!$1:$1048576,$A230,BC$1))","v":""},{"$f":"IF($A230=\"N/A\",Ref!$B$36,INDEX(Ranks!$1:$1048576,$A230,BD$1))","v":""},{"$f":"IF($A230=\"N/A\",Ref!$B$36,INDEX(Ranks!$1:$1048576,$A230,BE$1))","v":""},{"$f":"IF($A230=\"N/A\",Ref!$B$36,INDEX(Ranks!$1:$1048576,$A230,BF$1))","v":""},{"$f":"IF($A230=\"N/A\",Ref!$B$36,INDEX(Ranks!$1:$1048576,$A230,BG$1))","v":""},{"$f":"IF($A230=\"N/A\",Ref!$B$36,INDEX(Ranks!$1:$1048576,$A230,BH$1))","v":""},{"$f":"IF($A230=\"N/A\",Ref!$B$36,INDEX(Ranks!$1:$1048576,$A230,BI$1))","v":""},{"$f":"IF($A230=\"N/A\",Ref!$B$36,INDEX(Ranks!$1:$1048576,$A230,BJ$1))","v":""},{"$f":"IF($A230=\"N/A\",Ref!$B$36,INDEX(Ranks!$1:$1048576,$A230,BK$1))","v":""},{"$f":"IF($A230=\"N/A\",Ref!$B$36,INDEX(Ranks!$1:$1048576,$A230,BL$1))","v":""},{"$f":"IF($A230=\"N/A\",Ref!$B$36,INDEX(Ranks!$1:$1048576,$A230,BM$1))","v":""},{"$f":"IF($A230=\"N/A\",Ref!$B$36,INDEX(Ranks!$1:$1048576,$A230,BN$1))","v":""},{"$f":"IF($A230=\"N/A\",Ref!$B$36,INDEX(Ranks!$1:$1048576,$A230,BO$1))","v":""},{"$f":"IF($A230=\"N/A\",Ref!$B$36,INDEX(Ranks!$1:$1048576,$A230,BP$1))","v":""},{"$f":"IF($A230=\"N/A\",Ref!$B$36,INDEX(Ranks!$1:$1048576,$A230,BQ$1))","v":""},{"$f":"IF($A230=\"N/A\",Ref!$B$36,INDEX(Ranks!$1:$1048576,$A230,BR$1))","v":""},{"$f":"IF($A230=\"N/A\",Ref!$B$36,INDEX(Ranks!$1:$1048576,$A230,BS$1))","v":""},{"$f":"IF($A230=\"N/A\",Ref!$B$36,INDEX(Ranks!$1:$1048576,$A230,BT$1))","v":""},{"$f":"IF($A230=\"N/A\",Ref!$B$36,INDEX(Ranks!$1:$1048576,$A230,BU$1))","v":""},{"$f":"IF($A230=\"N/A\",Ref!$B$36,INDEX(Ranks!$1:$1048576,$A230,BV$1))","v":""},{"$f":"IF($A230=\"N/A\",Ref!$B$36,INDEX(Ranks!$1:$1048576,$A230,BW$1))","v":""},{"$f":"IF($A230=\"N/A\",Ref!$B$36,INDEX(Ranks!$1:$1048576,$A230,BX$1))","v":""},{"$f":"IF($A230=\"N/A\",Ref!$B$36,INDEX(Ranks!$1:$1048576,$A230,BY$1))","v":""},{"$f":"IF($A230=\"N/A\",Ref!$B$36,INDEX(Ranks!$1:$1048576,$A230,BZ$1))","v":""},{"$f":"IF($A230=\"N/A\",Ref!$B$36,INDEX(Ranks!$1:$1048576,$A230,CA$1))","v":""},{"$f":"IF($A230=\"N/A\",Ref!$B$36,INDEX(Ranks!$1:$1048576,$A230,CB$1))","v":""},{"$f":"IF($A230=\"N/A\",Ref!$B$36,INDEX(Ranks!$1:$1048576,$A230,CC$1))","v":""},{"$f":"IF($A230=\"N/A\",Ref!$B$36,INDEX(Ranks!$1:$1048576,$A230,CD$1))","v":""},{"$f":"IF($A230=\"N/A\",Ref!$B$36,INDEX(Ranks!$1:$1048576,$A230,CE$1))","v":""},{"$f":"IF($A230=\"N/A\",Ref!$B$36,INDEX(Ranks!$1:$1048576,$A230,CF$1))","v":""},{"$f":"IF($A230=\"N/A\",Ref!$B$36,INDEX(Ranks!$1:$1048576,$A230,CG$1))","v":""},{"$f":"IF($A230=\"N/A\",Ref!$B$36,INDEX(Ranks!$1:$1048576,$A230,CH$1))","v":""},{"$f":"IF($A230=\"N/A\",Ref!$B$36,INDEX(Ranks!$1:$1048576,$A230,CI$1))","v":""},{"$f":"IF($A230=\"N/A\",Ref!$B$36,INDEX(Ranks!$1:$1048576,$A230,CJ$1))","v":""},{"$f":"IF($A230=\"N/A\",Ref!$B$36,INDEX(Ranks!$1:$1048576,$A230,CK$1))","v":""},{"$f":"IF($A230=\"N/A\",Ref!$B$36,INDEX(Ranks!$1:$1048576,$A230,CL$1))","v":""},{"$f":"IF($A230=\"N/A\",Ref!$B$36,INDEX(Ranks!$1:$1048576,$A230,CM$1))","v":""},{"$f":"IF($A230=\"N/A\",Ref!$B$36,INDEX(Ranks!$1:$1048576,$A230,CN$1))","v":""},{"$f":"IF($A230=\"N/A\",Ref!$B$36,INDEX(Ranks!$1:$1048576,$A230,CO$1))","v":""},{"$f":"IF($A230=\"N/A\",Ref!$B$36,INDEX(Ranks!$1:$1048576,$A230,CP$1))","v":""},{"$f":"IF($A230=\"N/A\",Ref!$B$36,INDEX(Ranks!$1:$1048576,$A230,CQ$1))","v":""},{"$f":"IF($A230=\"N/A\",Ref!$B$36,INDEX(Ranks!$1:$1048576,$A230,CR$1))","v":""},{"$f":"IF($A230=\"N/A\",Ref!$B$36,INDEX(Ranks!$1:$1048576,$A230,CS$1))","v":""},{"$f":"IF($A230=\"N/A\",Ref!$B$36,INDEX(Ranks!$1:$1048576,$A230,CT$1))","v":""},{"$f":"IF($A230=\"N/A\",Ref!$B$36,INDEX(Ranks!$1:$1048576,$A230,CU$1))","v":""},{"$f":"IF($A230=\"N/A\",Ref!$B$36,INDEX(Ranks!$1:$1048576,$A230,CV$1))","v":""},{"$f":"IF($A230=\"N/A\",Ref!$B$36,INDEX(Ranks!$1:$1048576,$A230,CW$1))","v":""},{"$f":"IF($A230=\"N/A\",Ref!$B$36,INDEX(Ranks!$1:$1048576,$A230,CX$1))","v":""},{"$f":"IF($A230=\"N/A\",Ref!$B$36,INDEX(Ranks!$1:$1048576,$A230,CY$1))","v":""},{"$f":"IF($A230=\"N/A\",Ref!$B$36,INDEX(Ranks!$1:$1048576,$A230,CZ$1))","v":""},{"$f":"IF($A230=\"N/A\",Ref!$B$36,INDEX(Ranks!$1:$1048576,$A230,DA$1))","v":""},{"$f":"IF($A230=\"N/A\",Ref!$B$36,INDEX(Ranks!$1:$1048576,$A230,DB$1))","v":""},{"$f":"IF($A230=\"N/A\",Ref!$B$36,INDEX(Ranks!$1:$1048576,$A230,DC$1))","v":""},{"$f":"IF($A230=\"N/A\",Ref!$B$36,INDEX(Ranks!$1:$1048576,$A230,DD$1))","v":""},{"$f":"IF($A230=\"N/A\",Ref!$B$36,INDEX(Ranks!$1:$1048576,$A230,DE$1))","v":""},{"$f":"IF($A230=\"N/A\",Ref!$B$36,INDEX(Ranks!$1:$1048576,$A230,DF$1))","v":""},{"$f":"IF($A230=\"N/A\",Ref!$B$36,INDEX(Ranks!$1:$1048576,$A230,DG$1))","v":""},{"$f":"IF($A230=\"N/A\",Ref!$B$36,INDEX(Ranks!$1:$1048576,$A230,DH$1))","v":""},{"$f":"IF($A230=\"N/A\",Ref!$B$36,INDEX(Ranks!$1:$1048576,$A230,DI$1))","v":""},{"$f":"IF($A230=\"N/A\",Ref!$B$36,INDEX(Ranks!$1:$1048576,$A230,DJ$1))","v":""},{"$f":"IF($A230=\"N/A\",Ref!$B$36,INDEX(Ranks!$1:$1048576,$A230,DK$1))","v":""},{"$f":"IF($A230=\"N/A\",Ref!$B$36,INDEX(Ranks!$1:$1048576,$A230,DL$1))","v":""},{"$f":"IF($A230=\"N/A\",Ref!$B$36,INDEX(Ranks!$1:$1048576,$A230,DM$1))","v":""},{"$f":"IF($A230=\"N/A\",Ref!$B$36,INDEX(Ranks!$1:$1048576,$A230,DN$1))","v":""},{"$f":"IF($A230=\"N/A\",Ref!$B$36,INDEX(Ranks!$1:$1048576,$A230,DO$1))","v":""},{"$f":"IF($A230=\"N/A\",Ref!$B$36,INDEX(Ranks!$1:$1048576,$A230,DP$1))","v":""},{"$f":"IF($A230=\"N/A\",Ref!$B$36,INDEX(Ranks!$1:$1048576,$A230,DQ$1))","v":""},{"$f":"IF($A230=\"N/A\",Ref!$B$36,INDEX(Ranks!$1:$1048576,$A230,DR$1))","v":""},{"$f":"IF($A230=\"N/A\",Ref!$B$36,INDEX(Ranks!$1:$1048576,$A230,DS$1))","v":""},{"$f":"IF($A230=\"N/A\",Ref!$B$36,INDEX(Ranks!$1:$1048576,$A230,DT$1))","v":""},{"$f":"IF($A230=\"N/A\",Ref!$B$36,INDEX(Ranks!$1:$1048576,$A230,DU$1))","v":""},{"$f":"IF($A230=\"N/A\",Ref!$B$36,INDEX(Ranks!$1:$1048576,$A230,DV$1))","v":""},{"$f":"IF($A230=\"N/A\",Ref!$B$36,INDEX(Ranks!$1:$1048576,$A230,DW$1))","v":""},{"$f":"IF($A230=\"N/A\",Ref!$B$36,INDEX(Ranks!$1:$1048576,$A230,DX$1))","v":""},{"$f":"IF($A230=\"N/A\",Ref!$B$36,INDEX(Ranks!$1:$1048576,$A230,DY$1))","v":""},{"$f":"IF($A230=\"N/A\",Ref!$B$36,INDEX(Ranks!$1:$1048576,$A230,DZ$1))","v":""},{"$f":"IF($A230=\"N/A\",Ref!$B$36,INDEX(Ranks!$1:$1048576,$A230,EA$1))","v":""},{"$f":"IF($A230=\"N/A\",Ref!$B$36,INDEX(Ranks!$1:$1048576,$A230,EB$1))","v":""}]
[{"$f":"IFERROR(MATCH('Portfolio Page'!L231,Ranks!L:L,0),\"N/A\")","v":"N/A"},null,{"$f":"IF($A231=\"N/A\",\"\",INDEX(Ranks!$1:$1048576,$A231,C$1))","v":""},{"$f":"IF($A231=\"N/A\",Ref!$B$36,INDEX(Ranks!$1:$1048576,$A231,D$1))","v":""},{"$f":"IF($A231=\"N/A\",Ref!$B$36,INDEX(Ranks!$1:$1048576,$A231,E$1))","v":""},{"$f":"IF($A231=\"N/A\",\"\",INDEX(Ranks!$1:$1048576,$A231,F$1))","v":""},{"$f":"IF($A231=\"N/A\",\"\",INDEX(Ranks!$1:$1048576,$A231,G$1))","v":""},{"$f":"IF($A231=\"N/A\",\"\",INDEX(Ranks!$1:$1048576,$A231,H$1))","v":""},{"$f":"IF($A231=\"N/A\",\"\",INDEX(Ranks!$1:$1048576,$A231,I$1))","v":""},{"$f":"IF($A231=\"N/A\",\"\",INDEX(Ranks!$1:$1048576,$A231,J$1))","v":""},{"$f":"IF($A231=\"N/A\",\"\",INDEX(Ranks!$1:$1048576,$A231,K$1))","v":""},null,{"$f":"IF($A231=\"N/A\",Ref!$B$36,INDEX(Ranks!$1:$1048576,$A231,M$1))","v":""},{"$f":"IF($A231=\"N/A\",Ref!$B$36,INDEX(Ranks!$1:$1048576,$A231,N$1))","v":""},{"$f":"IF($A231=\"N/A\",Ref!$B$36,INDEX(Ranks!$1:$1048576,$A231,O$1))","v":""},{"$f":"IF($A231=\"N/A\",Ref!$B$36,INDEX(Ranks!$1:$1048576,$A231,P$1))","v":""},{"$f":"IF($A231=\"N/A\",Ref!$B$36,INDEX(Ranks!$1:$1048576,$A231,Q$1))","v":""},{"$f":"IF($A231=\"N/A\",Ref!$B$36,INDEX(Ranks!$1:$1048576,$A231,R$1))","v":""},{"$f":"IF($A231=\"N/A\",Ref!$B$36,INDEX(Ranks!$1:$1048576,$A231,S$1))","v":""},{"$f":"IF($A231=\"N/A\",Ref!$B$36,INDEX(Ranks!$1:$1048576,$A231,T$1))","v":""},{"$f":"IF($A231=\"N/A\",Ref!$B$36,INDEX(Ranks!$1:$1048576,$A231,U$1))","v":""},{"$f":"IF($A231=\"N/A\",Ref!$B$36,INDEX(Ranks!$1:$1048576,$A231,V$1))","v":""},{"$f":"IF($A231=\"N/A\",Ref!$B$36,INDEX(Ranks!$1:$1048576,$A231,W$1))","v":""},{"$f":"IF($A231=\"N/A\",Ref!$B$36,INDEX(Ranks!$1:$1048576,$A231,X$1))","v":""},{"$f":"IF($A231=\"N/A\",Ref!$B$36,INDEX(Ranks!$1:$1048576,$A231,Y$1))","v":""},{"$f":"IF($A231=\"N/A\",Ref!$B$36,INDEX(Ranks!$1:$1048576,$A231,Z$1))","v":""},{"$f":"IF($A231=\"N/A\",Ref!$B$36,INDEX(Ranks!$1:$1048576,$A231,AA$1))","v":""},{"$f":"IF($A231=\"N/A\",Ref!$B$36,INDEX(Ranks!$1:$1048576,$A231,AB$1))","v":""},{"$f":"IF($A231=\"N/A\",Ref!$B$36,INDEX(Ranks!$1:$1048576,$A231,AC$1))","v":""},{"$f":"IF($A231=\"N/A\",Ref!$B$36,INDEX(Ranks!$1:$1048576,$A231,AD$1))","v":""},{"$f":"IF($A231=\"N/A\",Ref!$B$36,INDEX(Ranks!$1:$1048576,$A231,AE$1))","v":""},{"$f":"IF($A231=\"N/A\",Ref!$B$36,INDEX(Ranks!$1:$1048576,$A231,AF$1))","v":""},{"$f":"IF($A231=\"N/A\",Ref!$B$36,INDEX(Ranks!$1:$1048576,$A231,AG$1))","v":""},{"$f":"IF($A231=\"N/A\",Ref!$B$36,INDEX(Ranks!$1:$1048576,$A231,AH$1))","v":""},{"$f":"IF($A231=\"N/A\",Ref!$B$36,INDEX(Ranks!$1:$1048576,$A231,AI$1))","v":""},{"$f":"IF($A231=\"N/A\",Ref!$B$36,INDEX(Ranks!$1:$1048576,$A231,AJ$1))","v":""},{"$f":"IF($A231=\"N/A\",Ref!$B$36,INDEX(Ranks!$1:$1048576,$A231,AK$1))","v":""},{"$f":"IF($A231=\"N/A\",Ref!$B$36,INDEX(Ranks!$1:$1048576,$A231,AL$1))","v":""},{"$f":"IF($A231=\"N/A\",Ref!$B$36,INDEX(Ranks!$1:$1048576,$A231,AM$1))","v":""},{"$f":"IF($A231=\"N/A\",Ref!$B$36,INDEX(Ranks!$1:$1048576,$A231,AN$1))","v":""},{"$f":"IF($A231=\"N/A\",Ref!$B$36,INDEX(Ranks!$1:$1048576,$A231,AO$1))","v":""},{"$f":"IF($A231=\"N/A\",Ref!$B$36,INDEX(Ranks!$1:$1048576,$A231,AP$1))","v":""},{"$f":"IF($A231=\"N/A\",Ref!$B$36,INDEX(Ranks!$1:$1048576,$A231,AQ$1))","v":""},{"$f":"IF($A231=\"N/A\",Ref!$B$36,INDEX(Ranks!$1:$1048576,$A231,AR$1))","v":""},{"$f":"IF($A231=\"N/A\",Ref!$B$36,INDEX(Ranks!$1:$1048576,$A231,AS$1))","v":""},{"$f":"IF($A231=\"N/A\",Ref!$B$36,INDEX(Ranks!$1:$1048576,$A231,AT$1))","v":""},{"$f":"IF($A231=\"N/A\",Ref!$B$36,INDEX(Ranks!$1:$1048576,$A231,AU$1))","v":""},{"$f":"IF($A231=\"N/A\",Ref!$B$36,INDEX(Ranks!$1:$1048576,$A231,AV$1))","v":""},{"$f":"IF($A231=\"N/A\",Ref!$B$36,INDEX(Ranks!$1:$1048576,$A231,AW$1))","v":""},{"$f":"IF($A231=\"N/A\",Ref!$B$36,INDEX(Ranks!$1:$1048576,$A231,AX$1))","v":""},{"$f":"IF($A231=\"N/A\",Ref!$B$36,INDEX(Ranks!$1:$1048576,$A231,AY$1))","v":""},{"$f":"IF($A231=\"N/A\",Ref!$B$36,INDEX(Ranks!$1:$1048576,$A231,AZ$1))","v":""},{"$f":"IF($A231=\"N/A\",Ref!$B$36,INDEX(Ranks!$1:$1048576,$A231,BA$1))","v":""},{"$f":"IF($A231=\"N/A\",Ref!$B$36,INDEX(Ranks!$1:$1048576,$A231,BB$1))","v":""},{"$f":"IF($A231=\"N/A\",Ref!$B$36,INDEX(Ranks!$1:$1048576,$A231,BC$1))","v":""},{"$f":"IF($A231=\"N/A\",Ref!$B$36,INDEX(Ranks!$1:$1048576,$A231,BD$1))","v":""},{"$f":"IF($A231=\"N/A\",Ref!$B$36,INDEX(Ranks!$1:$1048576,$A231,BE$1))","v":""},{"$f":"IF($A231=\"N/A\",Ref!$B$36,INDEX(Ranks!$1:$1048576,$A231,BF$1))","v":""},{"$f":"IF($A231=\"N/A\",Ref!$B$36,INDEX(Ranks!$1:$1048576,$A231,BG$1))","v":""},{"$f":"IF($A231=\"N/A\",Ref!$B$36,INDEX(Ranks!$1:$1048576,$A231,BH$1))","v":""},{"$f":"IF($A231=\"N/A\",Ref!$B$36,INDEX(Ranks!$1:$1048576,$A231,BI$1))","v":""},{"$f":"IF($A231=\"N/A\",Ref!$B$36,INDEX(Ranks!$1:$1048576,$A231,BJ$1))","v":""},{"$f":"IF($A231=\"N/A\",Ref!$B$36,INDEX(Ranks!$1:$1048576,$A231,BK$1))","v":""},{"$f":"IF($A231=\"N/A\",Ref!$B$36,INDEX(Ranks!$1:$1048576,$A231,BL$1))","v":""},{"$f":"IF($A231=\"N/A\",Ref!$B$36,INDEX(Ranks!$1:$1048576,$A231,BM$1))","v":""},{"$f":"IF($A231=\"N/A\",Ref!$B$36,INDEX(Ranks!$1:$1048576,$A231,BN$1))","v":""},{"$f":"IF($A231=\"N/A\",Ref!$B$36,INDEX(Ranks!$1:$1048576,$A231,BO$1))","v":""},{"$f":"IF($A231=\"N/A\",Ref!$B$36,INDEX(Ranks!$1:$1048576,$A231,BP$1))","v":""},{"$f":"IF($A231=\"N/A\",Ref!$B$36,INDEX(Ranks!$1:$1048576,$A231,BQ$1))","v":""},{"$f":"IF($A231=\"N/A\",Ref!$B$36,INDEX(Ranks!$1:$1048576,$A231,BR$1))","v":""},{"$f":"IF($A231=\"N/A\",Ref!$B$36,INDEX(Ranks!$1:$1048576,$A231,BS$1))","v":""},{"$f":"IF($A231=\"N/A\",Ref!$B$36,INDEX(Ranks!$1:$1048576,$A231,BT$1))","v":""},{"$f":"IF($A231=\"N/A\",Ref!$B$36,INDEX(Ranks!$1:$1048576,$A231,BU$1))","v":""},{"$f":"IF($A231=\"N/A\",Ref!$B$36,INDEX(Ranks!$1:$1048576,$A231,BV$1))","v":""},{"$f":"IF($A231=\"N/A\",Ref!$B$36,INDEX(Ranks!$1:$1048576,$A231,BW$1))","v":""},{"$f":"IF($A231=\"N/A\",Ref!$B$36,INDEX(Ranks!$1:$1048576,$A231,BX$1))","v":""},{"$f":"IF($A231=\"N/A\",Ref!$B$36,INDEX(Ranks!$1:$1048576,$A231,BY$1))","v":""},{"$f":"IF($A231=\"N/A\",Ref!$B$36,INDEX(Ranks!$1:$1048576,$A231,BZ$1))","v":""},{"$f":"IF($A231=\"N/A\",Ref!$B$36,INDEX(Ranks!$1:$1048576,$A231,CA$1))","v":""},{"$f":"IF($A231=\"N/A\",Ref!$B$36,INDEX(Ranks!$1:$1048576,$A231,CB$1))","v":""},{"$f":"IF($A231=\"N/A\",Ref!$B$36,INDEX(Ranks!$1:$1048576,$A231,CC$1))","v":""},{"$f":"IF($A231=\"N/A\",Ref!$B$36,INDEX(Ranks!$1:$1048576,$A231,CD$1))","v":""},{"$f":"IF($A231=\"N/A\",Ref!$B$36,INDEX(Ranks!$1:$1048576,$A231,CE$1))","v":""},{"$f":"IF($A231=\"N/A\",Ref!$B$36,INDEX(Ranks!$1:$1048576,$A231,CF$1))","v":""},{"$f":"IF($A231=\"N/A\",Ref!$B$36,INDEX(Ranks!$1:$1048576,$A231,CG$1))","v":""},{"$f":"IF($A231=\"N/A\",Ref!$B$36,INDEX(Ranks!$1:$1048576,$A231,CH$1))","v":""},{"$f":"IF($A231=\"N/A\",Ref!$B$36,INDEX(Ranks!$1:$1048576,$A231,CI$1))","v":""},{"$f":"IF($A231=\"N/A\",Ref!$B$36,INDEX(Ranks!$1:$1048576,$A231,CJ$1))","v":""},{"$f":"IF($A231=\"N/A\",Ref!$B$36,INDEX(Ranks!$1:$1048576,$A231,CK$1))","v":""},{"$f":"IF($A231=\"N/A\",Ref!$B$36,INDEX(Ranks!$1:$1048576,$A231,CL$1))","v":""},{"$f":"IF($A231=\"N/A\",Ref!$B$36,INDEX(Ranks!$1:$1048576,$A231,CM$1))","v":""},{"$f":"IF($A231=\"N/A\",Ref!$B$36,INDEX(Ranks!$1:$1048576,$A231,CN$1))","v":""},{"$f":"IF($A231=\"N/A\",Ref!$B$36,INDEX(Ranks!$1:$1048576,$A231,CO$1))","v":""},{"$f":"IF($A231=\"N/A\",Ref!$B$36,INDEX(Ranks!$1:$1048576,$A231,CP$1))","v":""},{"$f":"IF($A231=\"N/A\",Ref!$B$36,INDEX(Ranks!$1:$1048576,$A231,CQ$1))","v":""},{"$f":"IF($A231=\"N/A\",Ref!$B$36,INDEX(Ranks!$1:$1048576,$A231,CR$1))","v":""},{"$f":"IF($A231=\"N/A\",Ref!$B$36,INDEX(Ranks!$1:$1048576,$A231,CS$1))","v":""},{"$f":"IF($A231=\"N/A\",Ref!$B$36,INDEX(Ranks!$1:$1048576,$A231,CT$1))","v":""},{"$f":"IF($A231=\"N/A\",Ref!$B$36,INDEX(Ranks!$1:$1048576,$A231,CU$1))","v":""},{"$f":"IF($A231=\"N/A\",Ref!$B$36,INDEX(Ranks!$1:$1048576,$A231,CV$1))","v":""},{"$f":"IF($A231=\"N/A\",Ref!$B$36,INDEX(Ranks!$1:$1048576,$A231,CW$1))","v":""},{"$f":"IF($A231=\"N/A\",Ref!$B$36,INDEX(Ranks!$1:$1048576,$A231,CX$1))","v":""},{"$f":"IF($A231=\"N/A\",Ref!$B$36,INDEX(Ranks!$1:$1048576,$A231,CY$1))","v":""},{"$f":"IF($A231=\"N/A\",Ref!$B$36,INDEX(Ranks!$1:$1048576,$A231,CZ$1))","v":""},{"$f":"IF($A231=\"N/A\",Ref!$B$36,INDEX(Ranks!$1:$1048576,$A231,DA$1))","v":""},{"$f":"IF($A231=\"N/A\",Ref!$B$36,INDEX(Ranks!$1:$1048576,$A231,DB$1))","v":""},{"$f":"IF($A231=\"N/A\",Ref!$B$36,INDEX(Ranks!$1:$1048576,$A231,DC$1))","v":""},{"$f":"IF($A231=\"N/A\",Ref!$B$36,INDEX(Ranks!$1:$1048576,$A231,DD$1))","v":""},{"$f":"IF($A231=\"N/A\",Ref!$B$36,INDEX(Ranks!$1:$1048576,$A231,DE$1))","v":""},{"$f":"IF($A231=\"N/A\",Ref!$B$36,INDEX(Ranks!$1:$1048576,$A231,DF$1))","v":""},{"$f":"IF($A231=\"N/A\",Ref!$B$36,INDEX(Ranks!$1:$1048576,$A231,DG$1))","v":""},{"$f":"IF($A231=\"N/A\",Ref!$B$36,INDEX(Ranks!$1:$1048576,$A231,DH$1))","v":""},{"$f":"IF($A231=\"N/A\",Ref!$B$36,INDEX(Ranks!$1:$1048576,$A231,DI$1))","v":""},{"$f":"IF($A231=\"N/A\",Ref!$B$36,INDEX(Ranks!$1:$1048576,$A231,DJ$1))","v":""},{"$f":"IF($A231=\"N/A\",Ref!$B$36,INDEX(Ranks!$1:$1048576,$A231,DK$1))","v":""},{"$f":"IF($A231=\"N/A\",Ref!$B$36,INDEX(Ranks!$1:$1048576,$A231,DL$1))","v":""},{"$f":"IF($A231=\"N/A\",Ref!$B$36,INDEX(Ranks!$1:$1048576,$A231,DM$1))","v":""},{"$f":"IF($A231=\"N/A\",Ref!$B$36,INDEX(Ranks!$1:$1048576,$A231,DN$1))","v":""},{"$f":"IF($A231=\"N/A\",Ref!$B$36,INDEX(Ranks!$1:$1048576,$A231,DO$1))","v":""},{"$f":"IF($A231=\"N/A\",Ref!$B$36,INDEX(Ranks!$1:$1048576,$A231,DP$1))","v":""},{"$f":"IF($A231=\"N/A\",Ref!$B$36,INDEX(Ranks!$1:$1048576,$A231,DQ$1))","v":""},{"$f":"IF($A231=\"N/A\",Ref!$B$36,INDEX(Ranks!$1:$1048576,$A231,DR$1))","v":""},{"$f":"IF($A231=\"N/A\",Ref!$B$36,INDEX(Ranks!$1:$1048576,$A231,DS$1))","v":""},{"$f":"IF($A231=\"N/A\",Ref!$B$36,INDEX(Ranks!$1:$1048576,$A231,DT$1))","v":""},{"$f":"IF($A231=\"N/A\",Ref!$B$36,INDEX(Ranks!$1:$1048576,$A231,DU$1))","v":""},{"$f":"IF($A231=\"N/A\",Ref!$B$36,INDEX(Ranks!$1:$1048576,$A231,DV$1))","v":""},{"$f":"IF($A231=\"N/A\",Ref!$B$36,INDEX(Ranks!$1:$1048576,$A231,DW$1))","v":""},{"$f":"IF($A231=\"N/A\",Ref!$B$36,INDEX(Ranks!$1:$1048576,$A231,DX$1))","v":""},{"$f":"IF($A231=\"N/A\",Ref!$B$36,INDEX(Ranks!$1:$1048576,$A231,DY$1))","v":""},{"$f":"IF($A231=\"N/A\",Ref!$B$36,INDEX(Ranks!$1:$1048576,$A231,DZ$1))","v":""},{"$f":"IF($A231=\"N/A\",Ref!$B$36,INDEX(Ranks!$1:$1048576,$A231,EA$1))","v":""},{"$f":"IF($A231=\"N/A\",Ref!$B$36,INDEX(Ranks!$1:$1048576,$A231,EB$1))","v":""}]
[{"$f":"IFERROR(MATCH('Portfolio Page'!L232,Ranks!L:L,0),\"N/A\")","v":"N/A"},null,{"$f":"IF($A232=\"N/A\",\"\",INDEX(Ranks!$1:$1048576,$A232,C$1))","v":""},{"$f":"IF($A232=\"N/A\",Ref!$B$36,INDEX(Ranks!$1:$1048576,$A232,D$1))","v":""},{"$f":"IF($A232=\"N/A\",Ref!$B$36,INDEX(Ranks!$1:$1048576,$A232,E$1))","v":""},{"$f":"IF($A232=\"N/A\",\"\",INDEX(Ranks!$1:$1048576,$A232,F$1))","v":""},{"$f":"IF($A232=\"N/A\",\"\",INDEX(Ranks!$1:$1048576,$A232,G$1))","v":""},{"$f":"IF($A232=\"N/A\",\"\",INDEX(Ranks!$1:$1048576,$A232,H$1))","v":""},{"$f":"IF($A232=\"N/A\",\"\",INDEX(Ranks!$1:$1048576,$A232,I$1))","v":""},{"$f":"IF($A232=\"N/A\",\"\",INDEX(Ranks!$1:$1048576,$A232,J$1))","v":""},{"$f":"IF($A232=\"N/A\",\"\",INDEX(Ranks!$1:$1048576,$A232,K$1))","v":""},null,{"$f":"IF($A232=\"N/A\",Ref!$B$36,INDEX(Ranks!$1:$1048576,$A232,M$1))","v":""},{"$f":"IF($A232=\"N/A\",Ref!$B$36,INDEX(Ranks!$1:$1048576,$A232,N$1))","v":""},{"$f":"IF($A232=\"N/A\",Ref!$B$36,INDEX(Ranks!$1:$1048576,$A232,O$1))","v":""},{"$f":"IF($A232=\"N/A\",Ref!$B$36,INDEX(Ranks!$1:$1048576,$A232,P$1))","v":""},{"$f":"IF($A232=\"N/A\",Ref!$B$36,INDEX(Ranks!$1:$1048576,$A232,Q$1))","v":""},{"$f":"IF($A232=\"N/A\",Ref!$B$36,INDEX(Ranks!$1:$1048576,$A232,R$1))","v":""},{"$f":"IF($A232=\"N/A\",Ref!$B$36,INDEX(Ranks!$1:$1048576,$A232,S$1))","v":""},{"$f":"IF($A232=\"N/A\",Ref!$B$36,INDEX(Ranks!$1:$1048576,$A232,T$1))","v":""},{"$f":"IF($A232=\"N/A\",Ref!$B$36,INDEX(Ranks!$1:$1048576,$A232,U$1))","v":""},{"$f":"IF($A232=\"N/A\",Ref!$B$36,INDEX(Ranks!$1:$1048576,$A232,V$1))","v":""},{"$f":"IF($A232=\"N/A\",Ref!$B$36,INDEX(Ranks!$1:$1048576,$A232,W$1))","v":""},{"$f":"IF($A232=\"N/A\",Ref!$B$36,INDEX(Ranks!$1:$1048576,$A232,X$1))","v":""},{"$f":"IF($A232=\"N/A\",Ref!$B$36,INDEX(Ranks!$1:$1048576,$A232,Y$1))","v":""},{"$f":"IF($A232=\"N/A\",Ref!$B$36,INDEX(Ranks!$1:$1048576,$A232,Z$1))","v":""},{"$f":"IF($A232=\"N/A\",Ref!$B$36,INDEX(Ranks!$1:$1048576,$A232,AA$1))","v":""},{"$f":"IF($A232=\"N/A\",Ref!$B$36,INDEX(Ranks!$1:$1048576,$A232,AB$1))","v":""},{"$f":"IF($A232=\"N/A\",Ref!$B$36,INDEX(Ranks!$1:$1048576,$A232,AC$1))","v":""},{"$f":"IF($A232=\"N/A\",Ref!$B$36,INDEX(Ranks!$1:$1048576,$A232,AD$1))","v":""},{"$f":"IF($A232=\"N/A\",Ref!$B$36,INDEX(Ranks!$1:$1048576,$A232,AE$1))","v":""},{"$f":"IF($A232=\"N/A\",Ref!$B$36,INDEX(Ranks!$1:$1048576,$A232,AF$1))","v":""},{"$f":"IF($A232=\"N/A\",Ref!$B$36,INDEX(Ranks!$1:$1048576,$A232,AG$1))","v":""},{"$f":"IF($A232=\"N/A\",Ref!$B$36,INDEX(Ranks!$1:$1048576,$A232,AH$1))","v":""},{"$f":"IF($A232=\"N/A\",Ref!$B$36,INDEX(Ranks!$1:$1048576,$A232,AI$1))","v":""},{"$f":"IF($A232=\"N/A\",Ref!$B$36,INDEX(Ranks!$1:$1048576,$A232,AJ$1))","v":""},{"$f":"IF($A232=\"N/A\",Ref!$B$36,INDEX(Ranks!$1:$1048576,$A232,AK$1))","v":""},{"$f":"IF($A232=\"N/A\",Ref!$B$36,INDEX(Ranks!$1:$1048576,$A232,AL$1))","v":""},{"$f":"IF($A232=\"N/A\",Ref!$B$36,INDEX(Ranks!$1:$1048576,$A232,AM$1))","v":""},{"$f":"IF($A232=\"N/A\",Ref!$B$36,INDEX(Ranks!$1:$1048576,$A232,AN$1))","v":""},{"$f":"IF($A232=\"N/A\",Ref!$B$36,INDEX(Ranks!$1:$1048576,$A232,AO$1))","v":""},{"$f":"IF($A232=\"N/A\",Ref!$B$36,INDEX(Ranks!$1:$1048576,$A232,AP$1))","v":""},{"$f":"IF($A232=\"N/A\",Ref!$B$36,INDEX(Ranks!$1:$1048576,$A232,AQ$1))","v":""},{"$f":"IF($A232=\"N/A\",Ref!$B$36,INDEX(Ranks!$1:$1048576,$A232,AR$1))","v":""},{"$f":"IF($A232=\"N/A\",Ref!$B$36,INDEX(Ranks!$1:$1048576,$A232,AS$1))","v":""},{"$f":"IF($A232=\"N/A\",Ref!$B$36,INDEX(Ranks!$1:$1048576,$A232,AT$1))","v":""},{"$f":"IF($A232=\"N/A\",Ref!$B$36,INDEX(Ranks!$1:$1048576,$A232,AU$1))","v":""},{"$f":"IF($A232=\"N/A\",Ref!$B$36,INDEX(Ranks!$1:$1048576,$A232,AV$1))","v":""},{"$f":"IF($A232=\"N/A\",Ref!$B$36,INDEX(Ranks!$1:$1048576,$A232,AW$1))","v":""},{"$f":"IF($A232=\"N/A\",Ref!$B$36,INDEX(Ranks!$1:$1048576,$A232,AX$1))","v":""},{"$f":"IF($A232=\"N/A\",Ref!$B$36,INDEX(Ranks!$1:$1048576,$A232,AY$1))","v":""},{"$f":"IF($A232=\"N/A\",Ref!$B$36,INDEX(Ranks!$1:$1048576,$A232,AZ$1))","v":""},{"$f":"IF($A232=\"N/A\",Ref!$B$36,INDEX(Ranks!$1:$1048576,$A232,BA$1))","v":""},{"$f":"IF($A232=\"N/A\",Ref!$B$36,INDEX(Ranks!$1:$1048576,$A232,BB$1))","v":""},{"$f":"IF($A232=\"N/A\",Ref!$B$36,INDEX(Ranks!$1:$1048576,$A232,BC$1))","v":""},{"$f":"IF($A232=\"N/A\",Ref!$B$36,INDEX(Ranks!$1:$1048576,$A232,BD$1))","v":""},{"$f":"IF($A232=\"N/A\",Ref!$B$36,INDEX(Ranks!$1:$1048576,$A232,BE$1))","v":""},{"$f":"IF($A232=\"N/A\",Ref!$B$36,INDEX(Ranks!$1:$1048576,$A232,BF$1))","v":""},{"$f":"IF($A232=\"N/A\",Ref!$B$36,INDEX(Ranks!$1:$1048576,$A232,BG$1))","v":""},{"$f":"IF($A232=\"N/A\",Ref!$B$36,INDEX(Ranks!$1:$1048576,$A232,BH$1))","v":""},{"$f":"IF($A232=\"N/A\",Ref!$B$36,INDEX(Ranks!$1:$1048576,$A232,BI$1))","v":""},{"$f":"IF($A232=\"N/A\",Ref!$B$36,INDEX(Ranks!$1:$1048576,$A232,BJ$1))","v":""},{"$f":"IF($A232=\"N/A\",Ref!$B$36,INDEX(Ranks!$1:$1048576,$A232,BK$1))","v":""},{"$f":"IF($A232=\"N/A\",Ref!$B$36,INDEX(Ranks!$1:$1048576,$A232,BL$1))","v":""},{"$f":"IF($A232=\"N/A\",Ref!$B$36,INDEX(Ranks!$1:$1048576,$A232,BM$1))","v":""},{"$f":"IF($A232=\"N/A\",Ref!$B$36,INDEX(Ranks!$1:$1048576,$A232,BN$1))","v":""},{"$f":"IF($A232=\"N/A\",Ref!$B$36,INDEX(Ranks!$1:$1048576,$A232,BO$1))","v":""},{"$f":"IF($A232=\"N/A\",Ref!$B$36,INDEX(Ranks!$1:$1048576,$A232,BP$1))","v":""},{"$f":"IF($A232=\"N/A\",Ref!$B$36,INDEX(Ranks!$1:$1048576,$A232,BQ$1))","v":""},{"$f":"IF($A232=\"N/A\",Ref!$B$36,INDEX(Ranks!$1:$1048576,$A232,BR$1))","v":""},{"$f":"IF($A232=\"N/A\",Ref!$B$36,INDEX(Ranks!$1:$1048576,$A232,BS$1))","v":""},{"$f":"IF($A232=\"N/A\",Ref!$B$36,INDEX(Ranks!$1:$1048576,$A232,BT$1))","v":""},{"$f":"IF($A232=\"N/A\",Ref!$B$36,INDEX(Ranks!$1:$1048576,$A232,BU$1))","v":""},{"$f":"IF($A232=\"N/A\",Ref!$B$36,INDEX(Ranks!$1:$1048576,$A232,BV$1))","v":""},{"$f":"IF($A232=\"N/A\",Ref!$B$36,INDEX(Ranks!$1:$1048576,$A232,BW$1))","v":""},{"$f":"IF($A232=\"N/A\",Ref!$B$36,INDEX(Ranks!$1:$1048576,$A232,BX$1))","v":""},{"$f":"IF($A232=\"N/A\",Ref!$B$36,INDEX(Ranks!$1:$1048576,$A232,BY$1))","v":""},{"$f":"IF($A232=\"N/A\",Ref!$B$36,INDEX(Ranks!$1:$1048576,$A232,BZ$1))","v":""},{"$f":"IF($A232=\"N/A\",Ref!$B$36,INDEX(Ranks!$1:$1048576,$A232,CA$1))","v":""},{"$f":"IF($A232=\"N/A\",Ref!$B$36,INDEX(Ranks!$1:$1048576,$A232,CB$1))","v":""},{"$f":"IF($A232=\"N/A\",Ref!$B$36,INDEX(Ranks!$1:$1048576,$A232,CC$1))","v":""},{"$f":"IF($A232=\"N/A\",Ref!$B$36,INDEX(Ranks!$1:$1048576,$A232,CD$1))","v":""},{"$f":"IF($A232=\"N/A\",Ref!$B$36,INDEX(Ranks!$1:$1048576,$A232,CE$1))","v":""},{"$f":"IF($A232=\"N/A\",Ref!$B$36,INDEX(Ranks!$1:$1048576,$A232,CF$1))","v":""},{"$f":"IF($A232=\"N/A\",Ref!$B$36,INDEX(Ranks!$1:$1048576,$A232,CG$1))","v":""},{"$f":"IF($A232=\"N/A\",Ref!$B$36,INDEX(Ranks!$1:$1048576,$A232,CH$1))","v":""},{"$f":"IF($A232=\"N/A\",Ref!$B$36,INDEX(Ranks!$1:$1048576,$A232,CI$1))","v":""},{"$f":"IF($A232=\"N/A\",Ref!$B$36,INDEX(Ranks!$1:$1048576,$A232,CJ$1))","v":""},{"$f":"IF($A232=\"N/A\",Ref!$B$36,INDEX(Ranks!$1:$1048576,$A232,CK$1))","v":""},{"$f":"IF($A232=\"N/A\",Ref!$B$36,INDEX(Ranks!$1:$1048576,$A232,CL$1))","v":""},{"$f":"IF($A232=\"N/A\",Ref!$B$36,INDEX(Ranks!$1:$1048576,$A232,CM$1))","v":""},{"$f":"IF($A232=\"N/A\",Ref!$B$36,INDEX(Ranks!$1:$1048576,$A232,CN$1))","v":""},{"$f":"IF($A232=\"N/A\",Ref!$B$36,INDEX(Ranks!$1:$1048576,$A232,CO$1))","v":""},{"$f":"IF($A232=\"N/A\",Ref!$B$36,INDEX(Ranks!$1:$1048576,$A232,CP$1))","v":""},{"$f":"IF($A232=\"N/A\",Ref!$B$36,INDEX(Ranks!$1:$1048576,$A232,CQ$1))","v":""},{"$f":"IF($A232=\"N/A\",Ref!$B$36,INDEX(Ranks!$1:$1048576,$A232,CR$1))","v":""},{"$f":"IF($A232=\"N/A\",Ref!$B$36,INDEX(Ranks!$1:$1048576,$A232,CS$1))","v":""},{"$f":"IF($A232=\"N/A\",Ref!$B$36,INDEX(Ranks!$1:$1048576,$A232,CT$1))","v":""},{"$f":"IF($A232=\"N/A\",Ref!$B$36,INDEX(Ranks!$1:$1048576,$A232,CU$1))","v":""},{"$f":"IF($A232=\"N/A\",Ref!$B$36,INDEX(Ranks!$1:$1048576,$A232,CV$1))","v":""},{"$f":"IF($A232=\"N/A\",Ref!$B$36,INDEX(Ranks!$1:$1048576,$A232,CW$1))","v":""},{"$f":"IF($A232=\"N/A\",Ref!$B$36,INDEX(Ranks!$1:$1048576,$A232,CX$1))","v":""},{"$f":"IF($A232=\"N/A\",Ref!$B$36,INDEX(Ranks!$1:$1048576,$A232,CY$1))","v":""},{"$f":"IF($A232=\"N/A\",Ref!$B$36,INDEX(Ranks!$1:$1048576,$A232,CZ$1))","v":""},{"$f":"IF($A232=\"N/A\",Ref!$B$36,INDEX(Ranks!$1:$1048576,$A232,DA$1))","v":""},{"$f":"IF($A232=\"N/A\",Ref!$B$36,INDEX(Ranks!$1:$1048576,$A232,DB$1))","v":""},{"$f":"IF($A232=\"N/A\",Ref!$B$36,INDEX(Ranks!$1:$1048576,$A232,DC$1))","v":""},{"$f":"IF($A232=\"N/A\",Ref!$B$36,INDEX(Ranks!$1:$1048576,$A232,DD$1))","v":""},{"$f":"IF($A232=\"N/A\",Ref!$B$36,INDEX(Ranks!$1:$1048576,$A232,DE$1))","v":""},{"$f":"IF($A232=\"N/A\",Ref!$B$36,INDEX(Ranks!$1:$1048576,$A232,DF$1))","v":""},{"$f":"IF($A232=\"N/A\",Ref!$B$36,INDEX(Ranks!$1:$1048576,$A232,DG$1))","v":""},{"$f":"IF($A232=\"N/A\",Ref!$B$36,INDEX(Ranks!$1:$1048576,$A232,DH$1))","v":""},{"$f":"IF($A232=\"N/A\",Ref!$B$36,INDEX(Ranks!$1:$1048576,$A232,DI$1))","v":""},{"$f":"IF($A232=\"N/A\",Ref!$B$36,INDEX(Ranks!$1:$1048576,$A232,DJ$1))","v":""},{"$f":"IF($A232=\"N/A\",Ref!$B$36,INDEX(Ranks!$1:$1048576,$A232,DK$1))","v":""},{"$f":"IF($A232=\"N/A\",Ref!$B$36,INDEX(Ranks!$1:$1048576,$A232,DL$1))","v":""},{"$f":"IF($A232=\"N/A\",Ref!$B$36,INDEX(Ranks!$1:$1048576,$A232,DM$1))","v":""},{"$f":"IF($A232=\"N/A\",Ref!$B$36,INDEX(Ranks!$1:$1048576,$A232,DN$1))","v":""},{"$f":"IF($A232=\"N/A\",Ref!$B$36,INDEX(Ranks!$1:$1048576,$A232,DO$1))","v":""},{"$f":"IF($A232=\"N/A\",Ref!$B$36,INDEX(Ranks!$1:$1048576,$A232,DP$1))","v":""},{"$f":"IF($A232=\"N/A\",Ref!$B$36,INDEX(Ranks!$1:$1048576,$A232,DQ$1))","v":""},{"$f":"IF($A232=\"N/A\",Ref!$B$36,INDEX(Ranks!$1:$1048576,$A232,DR$1))","v":""},{"$f":"IF($A232=\"N/A\",Ref!$B$36,INDEX(Ranks!$1:$1048576,$A232,DS$1))","v":""},{"$f":"IF($A232=\"N/A\",Ref!$B$36,INDEX(Ranks!$1:$1048576,$A232,DT$1))","v":""},{"$f":"IF($A232=\"N/A\",Ref!$B$36,INDEX(Ranks!$1:$1048576,$A232,DU$1))","v":""},{"$f":"IF($A232=\"N/A\",Ref!$B$36,INDEX(Ranks!$1:$1048576,$A232,DV$1))","v":""},{"$f":"IF($A232=\"N/A\",Ref!$B$36,INDEX(Ranks!$1:$1048576,$A232,DW$1))","v":""},{"$f":"IF($A232=\"N/A\",Ref!$B$36,INDEX(Ranks!$1:$1048576,$A232,DX$1))","v":""},{"$f":"IF($A232=\"N/A\",Ref!$B$36,INDEX(Ranks!$1:$1048576,$A232,DY$1))","v":""},{"$f":"IF($A232=\"N/A\",Ref!$B$36,INDEX(Ranks!$1:$1048576,$A232,DZ$1))","v":""},{"$f":"IF($A232=\"N/A\",Ref!$B$36,INDEX(Ranks!$1:$1048576,$A232,EA$1))","v":""},{"$f":"IF($A232=\"N/A\",Ref!$B$36,INDEX(Ranks!$1:$1048576,$A232,EB$1))","v":""}]
[{"$f":"IFERROR(MATCH('Portfolio Page'!L233,Ranks!L:L,0),\"N/A\")","v":"N/A"},null,{"$f":"IF($A233=\"N/A\",\"\",INDEX(Ranks!$1:$1048576,$A233,C$1))","v":""},{"$f":"IF($A233=\"N/A\",Ref!$B$36,INDEX(Ranks!$1:$1048576,$A233,D$1))","v":""},{"$f":"IF($A233=\"N/A\",Ref!$B$36,INDEX(Ranks!$1:$1048576,$A233,E$1))","v":""},{"$f":"IF($A233=\"N/A\",\"\",INDEX(Ranks!$1:$1048576,$A233,F$1))","v":""},{"$f":"IF($A233=\"N/A\",\"\",INDEX(Ranks!$1:$1048576,$A233,G$1))","v":""},{"$f":"IF($A233=\"N/A\",\"\",INDEX(Ranks!$1:$1048576,$A233,H$1))","v":""},{"$f":"IF($A233=\"N/A\",\"\",INDEX(Ranks!$1:$1048576,$A233,I$1))","v":""},{"$f":"IF($A233=\"N/A\",\"\",INDEX(Ranks!$1:$1048576,$A233,J$1))","v":""},{"$f":"IF($A233=\"N/A\",\"\",INDEX(Ranks!$1:$1048576,$A233,K$1))","v":""},null,{"$f":"IF($A233=\"N/A\",Ref!$B$36,INDEX(Ranks!$1:$1048576,$A233,M$1))","v":""},{"$f":"IF($A233=\"N/A\",Ref!$B$36,INDEX(Ranks!$1:$1048576,$A233,N$1))","v":""},{"$f":"IF($A233=\"N/A\",Ref!$B$36,INDEX(Ranks!$1:$1048576,$A233,O$1))","v":""},{"$f":"IF($A233=\"N/A\",Ref!$B$36,INDEX(Ranks!$1:$1048576,$A233,P$1))","v":""},{"$f":"IF($A233=\"N/A\",Ref!$B$36,INDEX(Ranks!$1:$1048576,$A233,Q$1))","v":""},{"$f":"IF($A233=\"N/A\",Ref!$B$36,INDEX(Ranks!$1:$1048576,$A233,R$1))","v":""},{"$f":"IF($A233=\"N/A\",Ref!$B$36,INDEX(Ranks!$1:$1048576,$A233,S$1))","v":""},{"$f":"IF($A233=\"N/A\",Ref!$B$36,INDEX(Ranks!$1:$1048576,$A233,T$1))","v":""},{"$f":"IF($A233=\"N/A\",Ref!$B$36,INDEX(Ranks!$1:$1048576,$A233,U$1))","v":""},{"$f":"IF($A233=\"N/A\",Ref!$B$36,INDEX(Ranks!$1:$1048576,$A233,V$1))","v":""},{"$f":"IF($A233=\"N/A\",Ref!$B$36,INDEX(Ranks!$1:$1048576,$A233,W$1))","v":""},{"$f":"IF($A233=\"N/A\",Ref!$B$36,INDEX(Ranks!$1:$1048576,$A233,X$1))","v":""},{"$f":"IF($A233=\"N/A\",Ref!$B$36,INDEX(Ranks!$1:$1048576,$A233,Y$1))","v":""},{"$f":"IF($A233=\"N/A\",Ref!$B$36,INDEX(Ranks!$1:$1048576,$A233,Z$1))","v":""},{"$f":"IF($A233=\"N/A\",Ref!$B$36,INDEX(Ranks!$1:$1048576,$A233,AA$1))","v":""},{"$f":"IF($A233=\"N/A\",Ref!$B$36,INDEX(Ranks!$1:$1048576,$A233,AB$1))","v":""},{"$f":"IF($A233=\"N/A\",Ref!$B$36,INDEX(Ranks!$1:$1048576,$A233,AC$1))","v":""},{"$f":"IF($A233=\"N/A\",Ref!$B$36,INDEX(Ranks!$1:$1048576,$A233,AD$1))","v":""},{"$f":"IF($A233=\"N/A\",Ref!$B$36,INDEX(Ranks!$1:$1048576,$A233,AE$1))","v":""},{"$f":"IF($A233=\"N/A\",Ref!$B$36,INDEX(Ranks!$1:$1048576,$A233,AF$1))","v":""},{"$f":"IF($A233=\"N/A\",Ref!$B$36,INDEX(Ranks!$1:$1048576,$A233,AG$1))","v":""},{"$f":"IF($A233=\"N/A\",Ref!$B$36,INDEX(Ranks!$1:$1048576,$A233,AH$1))","v":""},{"$f":"IF($A233=\"N/A\",Ref!$B$36,INDEX(Ranks!$1:$1048576,$A233,AI$1))","v":""},{"$f":"IF($A233=\"N/A\",Ref!$B$36,INDEX(Ranks!$1:$1048576,$A233,AJ$1))","v":""},{"$f":"IF($A233=\"N/A\",Ref!$B$36,INDEX(Ranks!$1:$1048576,$A233,AK$1))","v":""},{"$f":"IF($A233=\"N/A\",Ref!$B$36,INDEX(Ranks!$1:$1048576,$A233,AL$1))","v":""},{"$f":"IF($A233=\"N/A\",Ref!$B$36,INDEX(Ranks!$1:$1048576,$A233,AM$1))","v":""},{"$f":"IF($A233=\"N/A\",Ref!$B$36,INDEX(Ranks!$1:$1048576,$A233,AN$1))","v":""},{"$f":"IF($A233=\"N/A\",Ref!$B$36,INDEX(Ranks!$1:$1048576,$A233,AO$1))","v":""},{"$f":"IF($A233=\"N/A\",Ref!$B$36,INDEX(Ranks!$1:$1048576,$A233,AP$1))","v":""},{"$f":"IF($A233=\"N/A\",Ref!$B$36,INDEX(Ranks!$1:$1048576,$A233,AQ$1))","v":""},{"$f":"IF($A233=\"N/A\",Ref!$B$36,INDEX(Ranks!$1:$1048576,$A233,AR$1))","v":""},{"$f":"IF($A233=\"N/A\",Ref!$B$36,INDEX(Ranks!$1:$1048576,$A233,AS$1))","v":""},{"$f":"IF($A233=\"N/A\",Ref!$B$36,INDEX(Ranks!$1:$1048576,$A233,AT$1))","v":""},{"$f":"IF($A233=\"N/A\",Ref!$B$36,INDEX(Ranks!$1:$1048576,$A233,AU$1))","v":""},{"$f":"IF($A233=\"N/A\",Ref!$B$36,INDEX(Ranks!$1:$1048576,$A233,AV$1))","v":""},{"$f":"IF($A233=\"N/A\",Ref!$B$36,INDEX(Ranks!$1:$1048576,$A233,AW$1))","v":""},{"$f":"IF($A233=\"N/A\",Ref!$B$36,INDEX(Ranks!$1:$1048576,$A233,AX$1))","v":""},{"$f":"IF($A233=\"N/A\",Ref!$B$36,INDEX(Ranks!$1:$1048576,$A233,AY$1))","v":""},{"$f":"IF($A233=\"N/A\",Ref!$B$36,INDEX(Ranks!$1:$1048576,$A233,AZ$1))","v":""},{"$f":"IF($A233=\"N/A\",Ref!$B$36,INDEX(Ranks!$1:$1048576,$A233,BA$1))","v":""},{"$f":"IF($A233=\"N/A\",Ref!$B$36,INDEX(Ranks!$1:$1048576,$A233,BB$1))","v":""},{"$f":"IF($A233=\"N/A\",Ref!$B$36,INDEX(Ranks!$1:$1048576,$A233,BC$1))","v":""},{"$f":"IF($A233=\"N/A\",Ref!$B$36,INDEX(Ranks!$1:$1048576,$A233,BD$1))","v":""},{"$f":"IF($A233=\"N/A\",Ref!$B$36,INDEX(Ranks!$1:$1048576,$A233,BE$1))","v":""},{"$f":"IF($A233=\"N/A\",Ref!$B$36,INDEX(Ranks!$1:$1048576,$A233,BF$1))","v":""},{"$f":"IF($A233=\"N/A\",Ref!$B$36,INDEX(Ranks!$1:$1048576,$A233,BG$1))","v":""},{"$f":"IF($A233=\"N/A\",Ref!$B$36,INDEX(Ranks!$1:$1048576,$A233,BH$1))","v":""},{"$f":"IF($A233=\"N/A\",Ref!$B$36,INDEX(Ranks!$1:$1048576,$A233,BI$1))","v":""},{"$f":"IF($A233=\"N/A\",Ref!$B$36,INDEX(Ranks!$1:$1048576,$A233,BJ$1))","v":""},{"$f":"IF($A233=\"N/A\",Ref!$B$36,INDEX(Ranks!$1:$1048576,$A233,BK$1))","v":""},{"$f":"IF($A233=\"N/A\",Ref!$B$36,INDEX(Ranks!$1:$1048576,$A233,BL$1))","v":""},{"$f":"IF($A233=\"N/A\",Ref!$B$36,INDEX(Ranks!$1:$1048576,$A233,BM$1))","v":""},{"$f":"IF($A233=\"N/A\",Ref!$B$36,INDEX(Ranks!$1:$1048576,$A233,BN$1))","v":""},{"$f":"IF($A233=\"N/A\",Ref!$B$36,INDEX(Ranks!$1:$1048576,$A233,BO$1))","v":""},{"$f":"IF($A233=\"N/A\",Ref!$B$36,INDEX(Ranks!$1:$1048576,$A233,BP$1))","v":""},{"$f":"IF($A233=\"N/A\",Ref!$B$36,INDEX(Ranks!$1:$1048576,$A233,BQ$1))","v":""},{"$f":"IF($A233=\"N/A\",Ref!$B$36,INDEX(Ranks!$1:$1048576,$A233,BR$1))","v":""},{"$f":"IF($A233=\"N/A\",Ref!$B$36,INDEX(Ranks!$1:$1048576,$A233,BS$1))","v":""},{"$f":"IF($A233=\"N/A\",Ref!$B$36,INDEX(Ranks!$1:$1048576,$A233,BT$1))","v":""},{"$f":"IF($A233=\"N/A\",Ref!$B$36,INDEX(Ranks!$1:$1048576,$A233,BU$1))","v":""},{"$f":"IF($A233=\"N/A\",Ref!$B$36,INDEX(Ranks!$1:$1048576,$A233,BV$1))","v":""},{"$f":"IF($A233=\"N/A\",Ref!$B$36,INDEX(Ranks!$1:$1048576,$A233,BW$1))","v":""},{"$f":"IF($A233=\"N/A\",Ref!$B$36,INDEX(Ranks!$1:$1048576,$A233,BX$1))","v":""},{"$f":"IF($A233=\"N/A\",Ref!$B$36,INDEX(Ranks!$1:$1048576,$A233,BY$1))","v":""},{"$f":"IF($A233=\"N/A\",Ref!$B$36,INDEX(Ranks!$1:$1048576,$A233,BZ$1))","v":""},{"$f":"IF($A233=\"N/A\",Ref!$B$36,INDEX(Ranks!$1:$1048576,$A233,CA$1))","v":""},{"$f":"IF($A233=\"N/A\",Ref!$B$36,INDEX(Ranks!$1:$1048576,$A233,CB$1))","v":""},{"$f":"IF($A233=\"N/A\",Ref!$B$36,INDEX(Ranks!$1:$1048576,$A233,CC$1))","v":""},{"$f":"IF($A233=\"N/A\",Ref!$B$36,INDEX(Ranks!$1:$1048576,$A233,CD$1))","v":""},{"$f":"IF($A233=\"N/A\",Ref!$B$36,INDEX(Ranks!$1:$1048576,$A233,CE$1))","v":""},{"$f":"IF($A233=\"N/A\",Ref!$B$36,INDEX(Ranks!$1:$1048576,$A233,CF$1))","v":""},{"$f":"IF($A233=\"N/A\",Ref!$B$36,INDEX(Ranks!$1:$1048576,$A233,CG$1))","v":""},{"$f":"IF($A233=\"N/A\",Ref!$B$36,INDEX(Ranks!$1:$1048576,$A233,CH$1))","v":""},{"$f":"IF($A233=\"N/A\",Ref!$B$36,INDEX(Ranks!$1:$1048576,$A233,CI$1))","v":""},{"$f":"IF($A233=\"N/A\",Ref!$B$36,INDEX(Ranks!$1:$1048576,$A233,CJ$1))","v":""},{"$f":"IF($A233=\"N/A\",Ref!$B$36,INDEX(Ranks!$1:$1048576,$A233,CK$1))","v":""},{"$f":"IF($A233=\"N/A\",Ref!$B$36,INDEX(Ranks!$1:$1048576,$A233,CL$1))","v":""},{"$f":"IF($A233=\"N/A\",Ref!$B$36,INDEX(Ranks!$1:$1048576,$A233,CM$1))","v":""},{"$f":"IF($A233=\"N/A\",Ref!$B$36,INDEX(Ranks!$1:$1048576,$A233,CN$1))","v":""},{"$f":"IF($A233=\"N/A\",Ref!$B$36,INDEX(Ranks!$1:$1048576,$A233,CO$1))","v":""},{"$f":"IF($A233=\"N/A\",Ref!$B$36,INDEX(Ranks!$1:$1048576,$A233,CP$1))","v":""},{"$f":"IF($A233=\"N/A\",Ref!$B$36,INDEX(Ranks!$1:$1048576,$A233,CQ$1))","v":""},{"$f":"IF($A233=\"N/A\",Ref!$B$36,INDEX(Ranks!$1:$1048576,$A233,CR$1))","v":""},{"$f":"IF($A233=\"N/A\",Ref!$B$36,INDEX(Ranks!$1:$1048576,$A233,CS$1))","v":""},{"$f":"IF($A233=\"N/A\",Ref!$B$36,INDEX(Ranks!$1:$1048576,$A233,CT$1))","v":""},{"$f":"IF($A233=\"N/A\",Ref!$B$36,INDEX(Ranks!$1:$1048576,$A233,CU$1))","v":""},{"$f":"IF($A233=\"N/A\",Ref!$B$36,INDEX(Ranks!$1:$1048576,$A233,CV$1))","v":""},{"$f":"IF($A233=\"N/A\",Ref!$B$36,INDEX(Ranks!$1:$1048576,$A233,CW$1))","v":""},{"$f":"IF($A233=\"N/A\",Ref!$B$36,INDEX(Ranks!$1:$1048576,$A233,CX$1))","v":""},{"$f":"IF($A233=\"N/A\",Ref!$B$36,INDEX(Ranks!$1:$1048576,$A233,CY$1))","v":""},{"$f":"IF($A233=\"N/A\",Ref!$B$36,INDEX(Ranks!$1:$1048576,$A233,CZ$1))","v":""},{"$f":"IF($A233=\"N/A\",Ref!$B$36,INDEX(Ranks!$1:$1048576,$A233,DA$1))","v":""},{"$f":"IF($A233=\"N/A\",Ref!$B$36,INDEX(Ranks!$1:$1048576,$A233,DB$1))","v":""},{"$f":"IF($A233=\"N/A\",Ref!$B$36,INDEX(Ranks!$1:$1048576,$A233,DC$1))","v":""},{"$f":"IF($A233=\"N/A\",Ref!$B$36,INDEX(Ranks!$1:$1048576,$A233,DD$1))","v":""},{"$f":"IF($A233=\"N/A\",Ref!$B$36,INDEX(Ranks!$1:$1048576,$A233,DE$1))","v":""},{"$f":"IF($A233=\"N/A\",Ref!$B$36,INDEX(Ranks!$1:$1048576,$A233,DF$1))","v":""},{"$f":"IF($A233=\"N/A\",Ref!$B$36,INDEX(Ranks!$1:$1048576,$A233,DG$1))","v":""},{"$f":"IF($A233=\"N/A\",Ref!$B$36,INDEX(Ranks!$1:$1048576,$A233,DH$1))","v":""},{"$f":"IF($A233=\"N/A\",Ref!$B$36,INDEX(Ranks!$1:$1048576,$A233,DI$1))","v":""},{"$f":"IF($A233=\"N/A\",Ref!$B$36,INDEX(Ranks!$1:$1048576,$A233,DJ$1))","v":""},{"$f":"IF($A233=\"N/A\",Ref!$B$36,INDEX(Ranks!$1:$1048576,$A233,DK$1))","v":""},{"$f":"IF($A233=\"N/A\",Ref!$B$36,INDEX(Ranks!$1:$1048576,$A233,DL$1))","v":""},{"$f":"IF($A233=\"N/A\",Ref!$B$36,INDEX(Ranks!$1:$1048576,$A233,DM$1))","v":""},{"$f":"IF($A233=\"N/A\",Ref!$B$36,INDEX(Ranks!$1:$1048576,$A233,DN$1))","v":""},{"$f":"IF($A233=\"N/A\",Ref!$B$36,INDEX(Ranks!$1:$1048576,$A233,DO$1))","v":""},{"$f":"IF($A233=\"N/A\",Ref!$B$36,INDEX(Ranks!$1:$1048576,$A233,DP$1))","v":""},{"$f":"IF($A233=\"N/A\",Ref!$B$36,INDEX(Ranks!$1:$1048576,$A233,DQ$1))","v":""},{"$f":"IF($A233=\"N/A\",Ref!$B$36,INDEX(Ranks!$1:$1048576,$A233,DR$1))","v":""},{"$f":"IF($A233=\"N/A\",Ref!$B$36,INDEX(Ranks!$1:$1048576,$A233,DS$1))","v":""},{"$f":"IF($A233=\"N/A\",Ref!$B$36,INDEX(Ranks!$1:$1048576,$A233,DT$1))","v":""},{"$f":"IF($A233=\"N/A\",Ref!$B$36,INDEX(Ranks!$1:$1048576,$A233,DU$1))","v":""},{"$f":"IF($A233=\"N/A\",Ref!$B$36,INDEX(Ranks!$1:$1048576,$A233,DV$1))","v":""},{"$f":"IF($A233=\"N/A\",Ref!$B$36,INDEX(Ranks!$1:$1048576,$A233,DW$1))","v":""},{"$f":"IF($A233=\"N/A\",Ref!$B$36,INDEX(Ranks!$1:$1048576,$A233,DX$1))","v":""},{"$f":"IF($A233=\"N/A\",Ref!$B$36,INDEX(Ranks!$1:$1048576,$A233,DY$1))","v":""},{"$f":"IF($A233=\"N/A\",Ref!$B$36,INDEX(Ranks!$1:$1048576,$A233,DZ$1))","v":""},{"$f":"IF($A233=\"N/A\",Ref!$B$36,INDEX(Ranks!$1:$1048576,$A233,EA$1))","v":""},{"$f":"IF($A233=\"N/A\",Ref!$B$36,INDEX(Ranks!$1:$1048576,$A233,EB$1))","v":""}]
[{"$f":"IFERROR(MATCH('Portfolio Page'!L234,Ranks!L:L,0),\"N/A\")","v":"N/A"},null,{"$f":"IF($A234=\"N/A\",\"\",INDEX(Ranks!$1:$1048576,$A234,C$1))","v":""},{"$f":"IF($A234=\"N/A\",Ref!$B$36,INDEX(Ranks!$1:$1048576,$A234,D$1))","v":""},{"$f":"IF($A234=\"N/A\",Ref!$B$36,INDEX(Ranks!$1:$1048576,$A234,E$1))","v":""},{"$f":"IF($A234=\"N/A\",\"\",INDEX(Ranks!$1:$1048576,$A234,F$1))","v":""},{"$f":"IF($A234=\"N/A\",\"\",INDEX(Ranks!$1:$1048576,$A234,G$1))","v":""},{"$f":"IF($A234=\"N/A\",\"\",INDEX(Ranks!$1:$1048576,$A234,H$1))","v":""},{"$f":"IF($A234=\"N/A\",\"\",INDEX(Ranks!$1:$1048576,$A234,I$1))","v":""},{"$f":"IF($A234=\"N/A\",\"\",INDEX(Ranks!$1:$1048576,$A234,J$1))","v":""},{"$f":"IF($A234=\"N/A\",\"\",INDEX(Ranks!$1:$1048576,$A234,K$1))","v":""},null,{"$f":"IF($A234=\"N/A\",Ref!$B$36,INDEX(Ranks!$1:$1048576,$A234,M$1))","v":""},{"$f":"IF($A234=\"N/A\",Ref!$B$36,INDEX(Ranks!$1:$1048576,$A234,N$1))","v":""},{"$f":"IF($A234=\"N/A\",Ref!$B$36,INDEX(Ranks!$1:$1048576,$A234,O$1))","v":""},{"$f":"IF($A234=\"N/A\",Ref!$B$36,INDEX(Ranks!$1:$1048576,$A234,P$1))","v":""},{"$f":"IF($A234=\"N/A\",Ref!$B$36,INDEX(Ranks!$1:$1048576,$A234,Q$1))","v":""},{"$f":"IF($A234=\"N/A\",Ref!$B$36,INDEX(Ranks!$1:$1048576,$A234,R$1))","v":""},{"$f":"IF($A234=\"N/A\",Ref!$B$36,INDEX(Ranks!$1:$1048576,$A234,S$1))","v":""},{"$f":"IF($A234=\"N/A\",Ref!$B$36,INDEX(Ranks!$1:$1048576,$A234,T$1))","v":""},{"$f":"IF($A234=\"N/A\",Ref!$B$36,INDEX(Ranks!$1:$1048576,$A234,U$1))","v":""},{"$f":"IF($A234=\"N/A\",Ref!$B$36,INDEX(Ranks!$1:$1048576,$A234,V$1))","v":""},{"$f":"IF($A234=\"N/A\",Ref!$B$36,INDEX(Ranks!$1:$1048576,$A234,W$1))","v":""},{"$f":"IF($A234=\"N/A\",Ref!$B$36,INDEX(Ranks!$1:$1048576,$A234,X$1))","v":""},{"$f":"IF($A234=\"N/A\",Ref!$B$36,INDEX(Ranks!$1:$1048576,$A234,Y$1))","v":""},{"$f":"IF($A234=\"N/A\",Ref!$B$36,INDEX(Ranks!$1:$1048576,$A234,Z$1))","v":""},{"$f":"IF($A234=\"N/A\",Ref!$B$36,INDEX(Ranks!$1:$1048576,$A234,AA$1))","v":""},{"$f":"IF($A234=\"N/A\",Ref!$B$36,INDEX(Ranks!$1:$1048576,$A234,AB$1))","v":""},{"$f":"IF($A234=\"N/A\",Ref!$B$36,INDEX(Ranks!$1:$1048576,$A234,AC$1))","v":""},{"$f":"IF($A234=\"N/A\",Ref!$B$36,INDEX(Ranks!$1:$1048576,$A234,AD$1))","v":""},{"$f":"IF($A234=\"N/A\",Ref!$B$36,INDEX(Ranks!$1:$1048576,$A234,AE$1))","v":""},{"$f":"IF($A234=\"N/A\",Ref!$B$36,INDEX(Ranks!$1:$1048576,$A234,AF$1))","v":""},{"$f":"IF($A234=\"N/A\",Ref!$B$36,INDEX(Ranks!$1:$1048576,$A234,AG$1))","v":""},{"$f":"IF($A234=\"N/A\",Ref!$B$36,INDEX(Ranks!$1:$1048576,$A234,AH$1))","v":""},{"$f":"IF($A234=\"N/A\",Ref!$B$36,INDEX(Ranks!$1:$1048576,$A234,AI$1))","v":""},{"$f":"IF($A234=\"N/A\",Ref!$B$36,INDEX(Ranks!$1:$1048576,$A234,AJ$1))","v":""},{"$f":"IF($A234=\"N/A\",Ref!$B$36,INDEX(Ranks!$1:$1048576,$A234,AK$1))","v":""},{"$f":"IF($A234=\"N/A\",Ref!$B$36,INDEX(Ranks!$1:$1048576,$A234,AL$1))","v":""},{"$f":"IF($A234=\"N/A\",Ref!$B$36,INDEX(Ranks!$1:$1048576,$A234,AM$1))","v":""},{"$f":"IF($A234=\"N/A\",Ref!$B$36,INDEX(Ranks!$1:$1048576,$A234,AN$1))","v":""},{"$f":"IF($A234=\"N/A\",Ref!$B$36,INDEX(Ranks!$1:$1048576,$A234,AO$1))","v":""},{"$f":"IF($A234=\"N/A\",Ref!$B$36,INDEX(Ranks!$1:$1048576,$A234,AP$1))","v":""},{"$f":"IF($A234=\"N/A\",Ref!$B$36,INDEX(Ranks!$1:$1048576,$A234,AQ$1))","v":""},{"$f":"IF($A234=\"N/A\",Ref!$B$36,INDEX(Ranks!$1:$1048576,$A234,AR$1))","v":""},{"$f":"IF($A234=\"N/A\",Ref!$B$36,INDEX(Ranks!$1:$1048576,$A234,AS$1))","v":""},{"$f":"IF($A234=\"N/A\",Ref!$B$36,INDEX(Ranks!$1:$1048576,$A234,AT$1))","v":""},{"$f":"IF($A234=\"N/A\",Ref!$B$36,INDEX(Ranks!$1:$1048576,$A234,AU$1))","v":""},{"$f":"IF($A234=\"N/A\",Ref!$B$36,INDEX(Ranks!$1:$1048576,$A234,AV$1))","v":""},{"$f":"IF($A234=\"N/A\",Ref!$B$36,INDEX(Ranks!$1:$1048576,$A234,AW$1))","v":""},{"$f":"IF($A234=\"N/A\",Ref!$B$36,INDEX(Ranks!$1:$1048576,$A234,AX$1))","v":""},{"$f":"IF($A234=\"N/A\",Ref!$B$36,INDEX(Ranks!$1:$1048576,$A234,AY$1))","v":""},{"$f":"IF($A234=\"N/A\",Ref!$B$36,INDEX(Ranks!$1:$1048576,$A234,AZ$1))","v":""},{"$f":"IF($A234=\"N/A\",Ref!$B$36,INDEX(Ranks!$1:$1048576,$A234,BA$1))","v":""},{"$f":"IF($A234=\"N/A\",Ref!$B$36,INDEX(Ranks!$1:$1048576,$A234,BB$1))","v":""},{"$f":"IF($A234=\"N/A\",Ref!$B$36,INDEX(Ranks!$1:$1048576,$A234,BC$1))","v":""},{"$f":"IF($A234=\"N/A\",Ref!$B$36,INDEX(Ranks!$1:$1048576,$A234,BD$1))","v":""},{"$f":"IF($A234=\"N/A\",Ref!$B$36,INDEX(Ranks!$1:$1048576,$A234,BE$1))","v":""},{"$f":"IF($A234=\"N/A\",Ref!$B$36,INDEX(Ranks!$1:$1048576,$A234,BF$1))","v":""},{"$f":"IF($A234=\"N/A\",Ref!$B$36,INDEX(Ranks!$1:$1048576,$A234,BG$1))","v":""},{"$f":"IF($A234=\"N/A\",Ref!$B$36,INDEX(Ranks!$1:$1048576,$A234,BH$1))","v":""},{"$f":"IF($A234=\"N/A\",Ref!$B$36,INDEX(Ranks!$1:$1048576,$A234,BI$1))","v":""},{"$f":"IF($A234=\"N/A\",Ref!$B$36,INDEX(Ranks!$1:$1048576,$A234,BJ$1))","v":""},{"$f":"IF($A234=\"N/A\",Ref!$B$36,INDEX(Ranks!$1:$1048576,$A234,BK$1))","v":""},{"$f":"IF($A234=\"N/A\",Ref!$B$36,INDEX(Ranks!$1:$1048576,$A234,BL$1))","v":""},{"$f":"IF($A234=\"N/A\",Ref!$B$36,INDEX(Ranks!$1:$1048576,$A234,BM$1))","v":""},{"$f":"IF($A234=\"N/A\",Ref!$B$36,INDEX(Ranks!$1:$1048576,$A234,BN$1))","v":""},{"$f":"IF($A234=\"N/A\",Ref!$B$36,INDEX(Ranks!$1:$1048576,$A234,BO$1))","v":""},{"$f":"IF($A234=\"N/A\",Ref!$B$36,INDEX(Ranks!$1:$1048576,$A234,BP$1))","v":""},{"$f":"IF($A234=\"N/A\",Ref!$B$36,INDEX(Ranks!$1:$1048576,$A234,BQ$1))","v":""},{"$f":"IF($A234=\"N/A\",Ref!$B$36,INDEX(Ranks!$1:$1048576,$A234,BR$1))","v":""},{"$f":"IF($A234=\"N/A\",Ref!$B$36,INDEX(Ranks!$1:$1048576,$A234,BS$1))","v":""},{"$f":"IF($A234=\"N/A\",Ref!$B$36,INDEX(Ranks!$1:$1048576,$A234,BT$1))","v":""},{"$f":"IF($A234=\"N/A\",Ref!$B$36,INDEX(Ranks!$1:$1048576,$A234,BU$1))","v":""},{"$f":"IF($A234=\"N/A\",Ref!$B$36,INDEX(Ranks!$1:$1048576,$A234,BV$1))","v":""},{"$f":"IF($A234=\"N/A\",Ref!$B$36,INDEX(Ranks!$1:$1048576,$A234,BW$1))","v":""},{"$f":"IF($A234=\"N/A\",Ref!$B$36,INDEX(Ranks!$1:$1048576,$A234,BX$1))","v":""},{"$f":"IF($A234=\"N/A\",Ref!$B$36,INDEX(Ranks!$1:$1048576,$A234,BY$1))","v":""},{"$f":"IF($A234=\"N/A\",Ref!$B$36,INDEX(Ranks!$1:$1048576,$A234,BZ$1))","v":""},{"$f":"IF($A234=\"N/A\",Ref!$B$36,INDEX(Ranks!$1:$1048576,$A234,CA$1))","v":""},{"$f":"IF($A234=\"N/A\",Ref!$B$36,INDEX(Ranks!$1:$1048576,$A234,CB$1))","v":""},{"$f":"IF($A234=\"N/A\",Ref!$B$36,INDEX(Ranks!$1:$1048576,$A234,CC$1))","v":""},{"$f":"IF($A234=\"N/A\",Ref!$B$36,INDEX(Ranks!$1:$1048576,$A234,CD$1))","v":""},{"$f":"IF($A234=\"N/A\",Ref!$B$36,INDEX(Ranks!$1:$1048576,$A234,CE$1))","v":""},{"$f":"IF($A234=\"N/A\",Ref!$B$36,INDEX(Ranks!$1:$1048576,$A234,CF$1))","v":""},{"$f":"IF($A234=\"N/A\",Ref!$B$36,INDEX(Ranks!$1:$1048576,$A234,CG$1))","v":""},{"$f":"IF($A234=\"N/A\",Ref!$B$36,INDEX(Ranks!$1:$1048576,$A234,CH$1))","v":""},{"$f":"IF($A234=\"N/A\",Ref!$B$36,INDEX(Ranks!$1:$1048576,$A234,CI$1))","v":""},{"$f":"IF($A234=\"N/A\",Ref!$B$36,INDEX(Ranks!$1:$1048576,$A234,CJ$1))","v":""},{"$f":"IF($A234=\"N/A\",Ref!$B$36,INDEX(Ranks!$1:$1048576,$A234,CK$1))","v":""},{"$f":"IF($A234=\"N/A\",Ref!$B$36,INDEX(Ranks!$1:$1048576,$A234,CL$1))","v":""},{"$f":"IF($A234=\"N/A\",Ref!$B$36,INDEX(Ranks!$1:$1048576,$A234,CM$1))","v":""},{"$f":"IF($A234=\"N/A\",Ref!$B$36,INDEX(Ranks!$1:$1048576,$A234,CN$1))","v":""},{"$f":"IF($A234=\"N/A\",Ref!$B$36,INDEX(Ranks!$1:$1048576,$A234,CO$1))","v":""},{"$f":"IF($A234=\"N/A\",Ref!$B$36,INDEX(Ranks!$1:$1048576,$A234,CP$1))","v":""},{"$f":"IF($A234=\"N/A\",Ref!$B$36,INDEX(Ranks!$1:$1048576,$A234,CQ$1))","v":""},{"$f":"IF($A234=\"N/A\",Ref!$B$36,INDEX(Ranks!$1:$1048576,$A234,CR$1))","v":""},{"$f":"IF($A234=\"N/A\",Ref!$B$36,INDEX(Ranks!$1:$1048576,$A234,CS$1))","v":""},{"$f":"IF($A234=\"N/A\",Ref!$B$36,INDEX(Ranks!$1:$1048576,$A234,CT$1))","v":""},{"$f":"IF($A234=\"N/A\",Ref!$B$36,INDEX(Ranks!$1:$1048576,$A234,CU$1))","v":""},{"$f":"IF($A234=\"N/A\",Ref!$B$36,INDEX(Ranks!$1:$1048576,$A234,CV$1))","v":""},{"$f":"IF($A234=\"N/A\",Ref!$B$36,INDEX(Ranks!$1:$1048576,$A234,CW$1))","v":""},{"$f":"IF($A234=\"N/A\",Ref!$B$36,INDEX(Ranks!$1:$1048576,$A234,CX$1))","v":""},{"$f":"IF($A234=\"N/A\",Ref!$B$36,INDEX(Ranks!$1:$1048576,$A234,CY$1))","v":""},{"$f":"IF($A234=\"N/A\",Ref!$B$36,INDEX(Ranks!$1:$1048576,$A234,CZ$1))","v":""},{"$f":"IF($A234=\"N/A\",Ref!$B$36,INDEX(Ranks!$1:$1048576,$A234,DA$1))","v":""},{"$f":"IF($A234=\"N/A\",Ref!$B$36,INDEX(Ranks!$1:$1048576,$A234,DB$1))","v":""},{"$f":"IF($A234=\"N/A\",Ref!$B$36,INDEX(Ranks!$1:$1048576,$A234,DC$1))","v":""},{"$f":"IF($A234=\"N/A\",Ref!$B$36,INDEX(Ranks!$1:$1048576,$A234,DD$1))","v":""},{"$f":"IF($A234=\"N/A\",Ref!$B$36,INDEX(Ranks!$1:$1048576,$A234,DE$1))","v":""},{"$f":"IF($A234=\"N/A\",Ref!$B$36,INDEX(Ranks!$1:$1048576,$A234,DF$1))","v":""},{"$f":"IF($A234=\"N/A\",Ref!$B$36,INDEX(Ranks!$1:$1048576,$A234,DG$1))","v":""},{"$f":"IF($A234=\"N/A\",Ref!$B$36,INDEX(Ranks!$1:$1048576,$A234,DH$1))","v":""},{"$f":"IF($A234=\"N/A\",Ref!$B$36,INDEX(Ranks!$1:$1048576,$A234,DI$1))","v":""},{"$f":"IF($A234=\"N/A\",Ref!$B$36,INDEX(Ranks!$1:$1048576,$A234,DJ$1))","v":""},{"$f":"IF($A234=\"N/A\",Ref!$B$36,INDEX(Ranks!$1:$1048576,$A234,DK$1))","v":""},{"$f":"IF($A234=\"N/A\",Ref!$B$36,INDEX(Ranks!$1:$1048576,$A234,DL$1))","v":""},{"$f":"IF($A234=\"N/A\",Ref!$B$36,INDEX(Ranks!$1:$1048576,$A234,DM$1))","v":""},{"$f":"IF($A234=\"N/A\",Ref!$B$36,INDEX(Ranks!$1:$1048576,$A234,DN$1))","v":""},{"$f":"IF($A234=\"N/A\",Ref!$B$36,INDEX(Ranks!$1:$1048576,$A234,DO$1))","v":""},{"$f":"IF($A234=\"N/A\",Ref!$B$36,INDEX(Ranks!$1:$1048576,$A234,DP$1))","v":""},{"$f":"IF($A234=\"N/A\",Ref!$B$36,INDEX(Ranks!$1:$1048576,$A234,DQ$1))","v":""},{"$f":"IF($A234=\"N/A\",Ref!$B$36,INDEX(Ranks!$1:$1048576,$A234,DR$1))","v":""},{"$f":"IF($A234=\"N/A\",Ref!$B$36,INDEX(Ranks!$1:$1048576,$A234,DS$1))","v":""},{"$f":"IF($A234=\"N/A\",Ref!$B$36,INDEX(Ranks!$1:$1048576,$A234,DT$1))","v":""},{"$f":"IF($A234=\"N/A\",Ref!$B$36,INDEX(Ranks!$1:$1048576,$A234,DU$1))","v":""},{"$f":"IF($A234=\"N/A\",Ref!$B$36,INDEX(Ranks!$1:$1048576,$A234,DV$1))","v":""},{"$f":"IF($A234=\"N/A\",Ref!$B$36,INDEX(Ranks!$1:$1048576,$A234,DW$1))","v":""},{"$f":"IF($A234=\"N/A\",Ref!$B$36,INDEX(Ranks!$1:$1048576,$A234,DX$1))","v":""},{"$f":"IF($A234=\"N/A\",Ref!$B$36,INDEX(Ranks!$1:$1048576,$A234,DY$1))","v":""},{"$f":"IF($A234=\"N/A\",Ref!$B$36,INDEX(Ranks!$1:$1048576,$A234,DZ$1))","v":""},{"$f":"IF($A234=\"N/A\",Ref!$B$36,INDEX(Ranks!$1:$1048576,$A234,EA$1))","v":""},{"$f":"IF($A234=\"N/A\",Ref!$B$36,INDEX(Ranks!$1:$1048576,$A234,EB$1))","v":""}]
[{"$f":"IFERROR(MATCH('Portfolio Page'!L235,Ranks!L:L,0),\"N/A\")","v":"N/A"},null,{"$f":"IF($A235=\"N/A\",\"\",INDEX(Ranks!$1:$1048576,$A235,C$1))","v":""},{"$f":"IF($A235=\"N/A\",Ref!$B$36,INDEX(Ranks!$1:$1048576,$A235,D$1))","v":""},{"$f":"IF($A235=\"N/A\",Ref!$B$36,INDEX(Ranks!$1:$1048576,$A235,E$1))","v":""},{"$f":"IF($A235=\"N/A\",\"\",INDEX(Ranks!$1:$1048576,$A235,F$1))","v":""},{"$f":"IF($A235=\"N/A\",\"\",INDEX(Ranks!$1:$1048576,$A235,G$1))","v":""},{"$f":"IF($A235=\"N/A\",\"\",INDEX(Ranks!$1:$1048576,$A235,H$1))","v":""},{"$f":"IF($A235=\"N/A\",\"\",INDEX(Ranks!$1:$1048576,$A235,I$1))","v":""},{"$f":"IF($A235=\"N/A\",\"\",INDEX(Ranks!$1:$1048576,$A235,J$1))","v":""},{"$f":"IF($A235=\"N/A\",\"\",INDEX(Ranks!$1:$1048576,$A235,K$1))","v":""},null,{"$f":"IF($A235=\"N/A\",Ref!$B$36,INDEX(Ranks!$1:$1048576,$A235,M$1))","v":""},{"$f":"IF($A235=\"N/A\",Ref!$B$36,INDEX(Ranks!$1:$1048576,$A235,N$1))","v":""},{"$f":"IF($A235=\"N/A\",Ref!$B$36,INDEX(Ranks!$1:$1048576,$A235,O$1))","v":""},{"$f":"IF($A235=\"N/A\",Ref!$B$36,INDEX(Ranks!$1:$1048576,$A235,P$1))","v":""},{"$f":"IF($A235=\"N/A\",Ref!$B$36,INDEX(Ranks!$1:$1048576,$A235,Q$1))","v":""},{"$f":"IF($A235=\"N/A\",Ref!$B$36,INDEX(Ranks!$1:$1048576,$A235,R$1))","v":""},{"$f":"IF($A235=\"N/A\",Ref!$B$36,INDEX(Ranks!$1:$1048576,$A235,S$1))","v":""},{"$f":"IF($A235=\"N/A\",Ref!$B$36,INDEX(Ranks!$1:$1048576,$A235,T$1))","v":""},{"$f":"IF($A235=\"N/A\",Ref!$B$36,INDEX(Ranks!$1:$1048576,$A235,U$1))","v":""},{"$f":"IF($A235=\"N/A\",Ref!$B$36,INDEX(Ranks!$1:$1048576,$A235,V$1))","v":""},{"$f":"IF($A235=\"N/A\",Ref!$B$36,INDEX(Ranks!$1:$1048576,$A235,W$1))","v":""},{"$f":"IF($A235=\"N/A\",Ref!$B$36,INDEX(Ranks!$1:$1048576,$A235,X$1))","v":""},{"$f":"IF($A235=\"N/A\",Ref!$B$36,INDEX(Ranks!$1:$1048576,$A235,Y$1))","v":""},{"$f":"IF($A235=\"N/A\",Ref!$B$36,INDEX(Ranks!$1:$1048576,$A235,Z$1))","v":""},{"$f":"IF($A235=\"N/A\",Ref!$B$36,INDEX(Ranks!$1:$1048576,$A235,AA$1))","v":""},{"$f":"IF($A235=\"N/A\",Ref!$B$36,INDEX(Ranks!$1:$1048576,$A235,AB$1))","v":""},{"$f":"IF($A235=\"N/A\",Ref!$B$36,INDEX(Ranks!$1:$1048576,$A235,AC$1))","v":""},{"$f":"IF($A235=\"N/A\",Ref!$B$36,INDEX(Ranks!$1:$1048576,$A235,AD$1))","v":""},{"$f":"IF($A235=\"N/A\",Ref!$B$36,INDEX(Ranks!$1:$1048576,$A235,AE$1))","v":""},{"$f":"IF($A235=\"N/A\",Ref!$B$36,INDEX(Ranks!$1:$1048576,$A235,AF$1))","v":""},{"$f":"IF($A235=\"N/A\",Ref!$B$36,INDEX(Ranks!$1:$1048576,$A235,AG$1))","v":""},{"$f":"IF($A235=\"N/A\",Ref!$B$36,INDEX(Ranks!$1:$1048576,$A235,AH$1))","v":""},{"$f":"IF($A235=\"N/A\",Ref!$B$36,INDEX(Ranks!$1:$1048576,$A235,AI$1))","v":""},{"$f":"IF($A235=\"N/A\",Ref!$B$36,INDEX(Ranks!$1:$1048576,$A235,AJ$1))","v":""},{"$f":"IF($A235=\"N/A\",Ref!$B$36,INDEX(Ranks!$1:$1048576,$A235,AK$1))","v":""},{"$f":"IF($A235=\"N/A\",Ref!$B$36,INDEX(Ranks!$1:$1048576,$A235,AL$1))","v":""},{"$f":"IF($A235=\"N/A\",Ref!$B$36,INDEX(Ranks!$1:$1048576,$A235,AM$1))","v":""},{"$f":"IF($A235=\"N/A\",Ref!$B$36,INDEX(Ranks!$1:$1048576,$A235,AN$1))","v":""},{"$f":"IF($A235=\"N/A\",Ref!$B$36,INDEX(Ranks!$1:$1048576,$A235,AO$1))","v":""},{"$f":"IF($A235=\"N/A\",Ref!$B$36,INDEX(Ranks!$1:$1048576,$A235,AP$1))","v":""},{"$f":"IF($A235=\"N/A\",Ref!$B$36,INDEX(Ranks!$1:$1048576,$A235,AQ$1))","v":""},{"$f":"IF($A235=\"N/A\",Ref!$B$36,INDEX(Ranks!$1:$1048576,$A235,AR$1))","v":""},{"$f":"IF($A235=\"N/A\",Ref!$B$36,INDEX(Ranks!$1:$1048576,$A235,AS$1))","v":""},{"$f":"IF($A235=\"N/A\",Ref!$B$36,INDEX(Ranks!$1:$1048576,$A235,AT$1))","v":""},{"$f":"IF($A235=\"N/A\",Ref!$B$36,INDEX(Ranks!$1:$1048576,$A235,AU$1))","v":""},{"$f":"IF($A235=\"N/A\",Ref!$B$36,INDEX(Ranks!$1:$1048576,$A235,AV$1))","v":""},{"$f":"IF($A235=\"N/A\",Ref!$B$36,INDEX(Ranks!$1:$1048576,$A235,AW$1))","v":""},{"$f":"IF($A235=\"N/A\",Ref!$B$36,INDEX(Ranks!$1:$1048576,$A235,AX$1))","v":""},{"$f":"IF($A235=\"N/A\",Ref!$B$36,INDEX(Ranks!$1:$1048576,$A235,AY$1))","v":""},{"$f":"IF($A235=\"N/A\",Ref!$B$36,INDEX(Ranks!$1:$1048576,$A235,AZ$1))","v":""},{"$f":"IF($A235=\"N/A\",Ref!$B$36,INDEX(Ranks!$1:$1048576,$A235,BA$1))","v":""},{"$f":"IF($A235=\"N/A\",Ref!$B$36,INDEX(Ranks!$1:$1048576,$A235,BB$1))","v":""},{"$f":"IF($A235=\"N/A\",Ref!$B$36,INDEX(Ranks!$1:$1048576,$A235,BC$1))","v":""},{"$f":"IF($A235=\"N/A\",Ref!$B$36,INDEX(Ranks!$1:$1048576,$A235,BD$1))","v":""},{"$f":"IF($A235=\"N/A\",Ref!$B$36,INDEX(Ranks!$1:$1048576,$A235,BE$1))","v":""},{"$f":"IF($A235=\"N/A\",Ref!$B$36,INDEX(Ranks!$1:$1048576,$A235,BF$1))","v":""},{"$f":"IF($A235=\"N/A\",Ref!$B$36,INDEX(Ranks!$1:$1048576,$A235,BG$1))","v":""},{"$f":"IF($A235=\"N/A\",Ref!$B$36,INDEX(Ranks!$1:$1048576,$A235,BH$1))","v":""},{"$f":"IF($A235=\"N/A\",Ref!$B$36,INDEX(Ranks!$1:$1048576,$A235,BI$1))","v":""},{"$f":"IF($A235=\"N/A\",Ref!$B$36,INDEX(Ranks!$1:$1048576,$A235,BJ$1))","v":""},{"$f":"IF($A235=\"N/A\",Ref!$B$36,INDEX(Ranks!$1:$1048576,$A235,BK$1))","v":""},{"$f":"IF($A235=\"N/A\",Ref!$B$36,INDEX(Ranks!$1:$1048576,$A235,BL$1))","v":""},{"$f":"IF($A235=\"N/A\",Ref!$B$36,INDEX(Ranks!$1:$1048576,$A235,BM$1))","v":""},{"$f":"IF($A235=\"N/A\",Ref!$B$36,INDEX(Ranks!$1:$1048576,$A235,BN$1))","v":""},{"$f":"IF($A235=\"N/A\",Ref!$B$36,INDEX(Ranks!$1:$1048576,$A235,BO$1))","v":""},{"$f":"IF($A235=\"N/A\",Ref!$B$36,INDEX(Ranks!$1:$1048576,$A235,BP$1))","v":""},{"$f":"IF($A235=\"N/A\",Ref!$B$36,INDEX(Ranks!$1:$1048576,$A235,BQ$1))","v":""},{"$f":"IF($A235=\"N/A\",Ref!$B$36,INDEX(Ranks!$1:$1048576,$A235,BR$1))","v":""},{"$f":"IF($A235=\"N/A\",Ref!$B$36,INDEX(Ranks!$1:$1048576,$A235,BS$1))","v":""},{"$f":"IF($A235=\"N/A\",Ref!$B$36,INDEX(Ranks!$1:$1048576,$A235,BT$1))","v":""},{"$f":"IF($A235=\"N/A\",Ref!$B$36,INDEX(Ranks!$1:$1048576,$A235,BU$1))","v":""},{"$f":"IF($A235=\"N/A\",Ref!$B$36,INDEX(Ranks!$1:$1048576,$A235,BV$1))","v":""},{"$f":"IF($A235=\"N/A\",Ref!$B$36,INDEX(Ranks!$1:$1048576,$A235,BW$1))","v":""},{"$f":"IF($A235=\"N/A\",Ref!$B$36,INDEX(Ranks!$1:$1048576,$A235,BX$1))","v":""},{"$f":"IF($A235=\"N/A\",Ref!$B$36,INDEX(Ranks!$1:$1048576,$A235,BY$1))","v":""},{"$f":"IF($A235=\"N/A\",Ref!$B$36,INDEX(Ranks!$1:$1048576,$A235,BZ$1))","v":""},{"$f":"IF($A235=\"N/A\",Ref!$B$36,INDEX(Ranks!$1:$1048576,$A235,CA$1))","v":""},{"$f":"IF($A235=\"N/A\",Ref!$B$36,INDEX(Ranks!$1:$1048576,$A235,CB$1))","v":""},{"$f":"IF($A235=\"N/A\",Ref!$B$36,INDEX(Ranks!$1:$1048576,$A235,CC$1))","v":""},{"$f":"IF($A235=\"N/A\",Ref!$B$36,INDEX(Ranks!$1:$1048576,$A235,CD$1))","v":""},{"$f":"IF($A235=\"N/A\",Ref!$B$36,INDEX(Ranks!$1:$1048576,$A235,CE$1))","v":""},{"$f":"IF($A235=\"N/A\",Ref!$B$36,INDEX(Ranks!$1:$1048576,$A235,CF$1))","v":""},{"$f":"IF($A235=\"N/A\",Ref!$B$36,INDEX(Ranks!$1:$1048576,$A235,CG$1))","v":""},{"$f":"IF($A235=\"N/A\",Ref!$B$36,INDEX(Ranks!$1:$1048576,$A235,CH$1))","v":""},{"$f":"IF($A235=\"N/A\",Ref!$B$36,INDEX(Ranks!$1:$1048576,$A235,CI$1))","v":""},{"$f":"IF($A235=\"N/A\",Ref!$B$36,INDEX(Ranks!$1:$1048576,$A235,CJ$1))","v":""},{"$f":"IF($A235=\"N/A\",Ref!$B$36,INDEX(Ranks!$1:$1048576,$A235,CK$1))","v":""},{"$f":"IF($A235=\"N/A\",Ref!$B$36,INDEX(Ranks!$1:$1048576,$A235,CL$1))","v":""},{"$f":"IF($A235=\"N/A\",Ref!$B$36,INDEX(Ranks!$1:$1048576,$A235,CM$1))","v":""},{"$f":"IF($A235=\"N/A\",Ref!$B$36,INDEX(Ranks!$1:$1048576,$A235,CN$1))","v":""},{"$f":"IF($A235=\"N/A\",Ref!$B$36,INDEX(Ranks!$1:$1048576,$A235,CO$1))","v":""},{"$f":"IF($A235=\"N/A\",Ref!$B$36,INDEX(Ranks!$1:$1048576,$A235,CP$1))","v":""},{"$f":"IF($A235=\"N/A\",Ref!$B$36,INDEX(Ranks!$1:$1048576,$A235,CQ$1))","v":""},{"$f":"IF($A235=\"N/A\",Ref!$B$36,INDEX(Ranks!$1:$1048576,$A235,CR$1))","v":""},{"$f":"IF($A235=\"N/A\",Ref!$B$36,INDEX(Ranks!$1:$1048576,$A235,CS$1))","v":""},{"$f":"IF($A235=\"N/A\",Ref!$B$36,INDEX(Ranks!$1:$1048576,$A235,CT$1))","v":""},{"$f":"IF($A235=\"N/A\",Ref!$B$36,INDEX(Ranks!$1:$1048576,$A235,CU$1))","v":""},{"$f":"IF($A235=\"N/A\",Ref!$B$36,INDEX(Ranks!$1:$1048576,$A235,CV$1))","v":""},{"$f":"IF($A235=\"N/A\",Ref!$B$36,INDEX(Ranks!$1:$1048576,$A235,CW$1))","v":""},{"$f":"IF($A235=\"N/A\",Ref!$B$36,INDEX(Ranks!$1:$1048576,$A235,CX$1))","v":""},{"$f":"IF($A235=\"N/A\",Ref!$B$36,INDEX(Ranks!$1:$1048576,$A235,CY$1))","v":""},{"$f":"IF($A235=\"N/A\",Ref!$B$36,INDEX(Ranks!$1:$1048576,$A235,CZ$1))","v":""},{"$f":"IF($A235=\"N/A\",Ref!$B$36,INDEX(Ranks!$1:$1048576,$A235,DA$1))","v":""},{"$f":"IF($A235=\"N/A\",Ref!$B$36,INDEX(Ranks!$1:$1048576,$A235,DB$1))","v":""},{"$f":"IF($A235=\"N/A\",Ref!$B$36,INDEX(Ranks!$1:$1048576,$A235,DC$1))","v":""},{"$f":"IF($A235=\"N/A\",Ref!$B$36,INDEX(Ranks!$1:$1048576,$A235,DD$1))","v":""},{"$f":"IF($A235=\"N/A\",Ref!$B$36,INDEX(Ranks!$1:$1048576,$A235,DE$1))","v":""},{"$f":"IF($A235=\"N/A\",Ref!$B$36,INDEX(Ranks!$1:$1048576,$A235,DF$1))","v":""},{"$f":"IF($A235=\"N/A\",Ref!$B$36,INDEX(Ranks!$1:$1048576,$A235,DG$1))","v":""},{"$f":"IF($A235=\"N/A\",Ref!$B$36,INDEX(Ranks!$1:$1048576,$A235,DH$1))","v":""},{"$f":"IF($A235=\"N/A\",Ref!$B$36,INDEX(Ranks!$1:$1048576,$A235,DI$1))","v":""},{"$f":"IF($A235=\"N/A\",Ref!$B$36,INDEX(Ranks!$1:$1048576,$A235,DJ$1))","v":""},{"$f":"IF($A235=\"N/A\",Ref!$B$36,INDEX(Ranks!$1:$1048576,$A235,DK$1))","v":""},{"$f":"IF($A235=\"N/A\",Ref!$B$36,INDEX(Ranks!$1:$1048576,$A235,DL$1))","v":""},{"$f":"IF($A235=\"N/A\",Ref!$B$36,INDEX(Ranks!$1:$1048576,$A235,DM$1))","v":""},{"$f":"IF($A235=\"N/A\",Ref!$B$36,INDEX(Ranks!$1:$1048576,$A235,DN$1))","v":""},{"$f":"IF($A235=\"N/A\",Ref!$B$36,INDEX(Ranks!$1:$1048576,$A235,DO$1))","v":""},{"$f":"IF($A235=\"N/A\",Ref!$B$36,INDEX(Ranks!$1:$1048576,$A235,DP$1))","v":""},{"$f":"IF($A235=\"N/A\",Ref!$B$36,INDEX(Ranks!$1:$1048576,$A235,DQ$1))","v":""},{"$f":"IF($A235=\"N/A\",Ref!$B$36,INDEX(Ranks!$1:$1048576,$A235,DR$1))","v":""},{"$f":"IF($A235=\"N/A\",Ref!$B$36,INDEX(Ranks!$1:$1048576,$A235,DS$1))","v":""},{"$f":"IF($A235=\"N/A\",Ref!$B$36,INDEX(Ranks!$1:$1048576,$A235,DT$1))","v":""},{"$f":"IF($A235=\"N/A\",Ref!$B$36,INDEX(Ranks!$1:$1048576,$A235,DU$1))","v":""},{"$f":"IF($A235=\"N/A\",Ref!$B$36,INDEX(Ranks!$1:$1048576,$A235,DV$1))","v":""},{"$f":"IF($A235=\"N/A\",Ref!$B$36,INDEX(Ranks!$1:$1048576,$A235,DW$1))","v":""},{"$f":"IF($A235=\"N/A\",Ref!$B$36,INDEX(Ranks!$1:$1048576,$A235,DX$1))","v":""},{"$f":"IF($A235=\"N/A\",Ref!$B$36,INDEX(Ranks!$1:$1048576,$A235,DY$1))","v":""},{"$f":"IF($A235=\"N/A\",Ref!$B$36,INDEX(Ranks!$1:$1048576,$A235,DZ$1))","v":""},{"$f":"IF($A235=\"N/A\",Ref!$B$36,INDEX(Ranks!$1:$1048576,$A235,EA$1))","v":""},{"$f":"IF($A235=\"N/A\",Ref!$B$36,INDEX(Ranks!$1:$1048576,$A235,EB$1))","v":""}]
[{"$f":"IFERROR(MATCH('Portfolio Page'!L236,Ranks!L:L,0),\"N/A\")","v":"N/A"},null,{"$f":"IF($A236=\"N/A\",\"\",INDEX(Ranks!$1:$1048576,$A236,C$1))","v":""},{"$f":"IF($A236=\"N/A\",Ref!$B$36,INDEX(Ranks!$1:$1048576,$A236,D$1))","v":""},{"$f":"IF($A236=\"N/A\",Ref!$B$36,INDEX(Ranks!$1:$1048576,$A236,E$1))","v":""},{"$f":"IF($A236=\"N/A\",\"\",INDEX(Ranks!$1:$1048576,$A236,F$1))","v":""},{"$f":"IF($A236=\"N/A\",\"\",INDEX(Ranks!$1:$1048576,$A236,G$1))","v":""},{"$f":"IF($A236=\"N/A\",\"\",INDEX(Ranks!$1:$1048576,$A236,H$1))","v":""},{"$f":"IF($A236=\"N/A\",\"\",INDEX(Ranks!$1:$1048576,$A236,I$1))","v":""},{"$f":"IF($A236=\"N/A\",\"\",INDEX(Ranks!$1:$1048576,$A236,J$1))","v":""},{"$f":"IF($A236=\"N/A\",\"\",INDEX(Ranks!$1:$1048576,$A236,K$1))","v":""},null,{"$f":"IF($A236=\"N/A\",Ref!$B$36,INDEX(Ranks!$1:$1048576,$A236,M$1))","v":""},{"$f":"IF($A236=\"N/A\",Ref!$B$36,INDEX(Ranks!$1:$1048576,$A236,N$1))","v":""},{"$f":"IF($A236=\"N/A\",Ref!$B$36,INDEX(Ranks!$1:$1048576,$A236,O$1))","v":""},{"$f":"IF($A236=\"N/A\",Ref!$B$36,INDEX(Ranks!$1:$1048576,$A236,P$1))","v":""},{"$f":"IF($A236=\"N/A\",Ref!$B$36,INDEX(Ranks!$1:$1048576,$A236,Q$1))","v":""},{"$f":"IF($A236=\"N/A\",Ref!$B$36,INDEX(Ranks!$1:$1048576,$A236,R$1))","v":""},{"$f":"IF($A236=\"N/A\",Ref!$B$36,INDEX(Ranks!$1:$1048576,$A236,S$1))","v":""},{"$f":"IF($A236=\"N/A\",Ref!$B$36,INDEX(Ranks!$1:$1048576,$A236,T$1))","v":""},{"$f":"IF($A236=\"N/A\",Ref!$B$36,INDEX(Ranks!$1:$1048576,$A236,U$1))","v":""},{"$f":"IF($A236=\"N/A\",Ref!$B$36,INDEX(Ranks!$1:$1048576,$A236,V$1))","v":""},{"$f":"IF($A236=\"N/A\",Ref!$B$36,INDEX(Ranks!$1:$1048576,$A236,W$1))","v":""},{"$f":"IF($A236=\"N/A\",Ref!$B$36,INDEX(Ranks!$1:$1048576,$A236,X$1))","v":""},{"$f":"IF($A236=\"N/A\",Ref!$B$36,INDEX(Ranks!$1:$1048576,$A236,Y$1))","v":""},{"$f":"IF($A236=\"N/A\",Ref!$B$36,INDEX(Ranks!$1:$1048576,$A236,Z$1))","v":""},{"$f":"IF($A236=\"N/A\",Ref!$B$36,INDEX(Ranks!$1:$1048576,$A236,AA$1))","v":""},{"$f":"IF($A236=\"N/A\",Ref!$B$36,INDEX(Ranks!$1:$1048576,$A236,AB$1))","v":""},{"$f":"IF($A236=\"N/A\",Ref!$B$36,INDEX(Ranks!$1:$1048576,$A236,AC$1))","v":""},{"$f":"IF($A236=\"N/A\",Ref!$B$36,INDEX(Ranks!$1:$1048576,$A236,AD$1))","v":""},{"$f":"IF($A236=\"N/A\",Ref!$B$36,INDEX(Ranks!$1:$1048576,$A236,AE$1))","v":""},{"$f":"IF($A236=\"N/A\",Ref!$B$36,INDEX(Ranks!$1:$1048576,$A236,AF$1))","v":""},{"$f":"IF($A236=\"N/A\",Ref!$B$36,INDEX(Ranks!$1:$1048576,$A236,AG$1))","v":""},{"$f":"IF($A236=\"N/A\",Ref!$B$36,INDEX(Ranks!$1:$1048576,$A236,AH$1))","v":""},{"$f":"IF($A236=\"N/A\",Ref!$B$36,INDEX(Ranks!$1:$1048576,$A236,AI$1))","v":""},{"$f":"IF($A236=\"N/A\",Ref!$B$36,INDEX(Ranks!$1:$1048576,$A236,AJ$1))","v":""},{"$f":"IF($A236=\"N/A\",Ref!$B$36,INDEX(Ranks!$1:$1048576,$A236,AK$1))","v":""},{"$f":"IF($A236=\"N/A\",Ref!$B$36,INDEX(Ranks!$1:$1048576,$A236,AL$1))","v":""},{"$f":"IF($A236=\"N/A\",Ref!$B$36,INDEX(Ranks!$1:$1048576,$A236,AM$1))","v":""},{"$f":"IF($A236=\"N/A\",Ref!$B$36,INDEX(Ranks!$1:$1048576,$A236,AN$1))","v":""},{"$f":"IF($A236=\"N/A\",Ref!$B$36,INDEX(Ranks!$1:$1048576,$A236,AO$1))","v":""},{"$f":"IF($A236=\"N/A\",Ref!$B$36,INDEX(Ranks!$1:$1048576,$A236,AP$1))","v":""},{"$f":"IF($A236=\"N/A\",Ref!$B$36,INDEX(Ranks!$1:$1048576,$A236,AQ$1))","v":""},{"$f":"IF($A236=\"N/A\",Ref!$B$36,INDEX(Ranks!$1:$1048576,$A236,AR$1))","v":""},{"$f":"IF($A236=\"N/A\",Ref!$B$36,INDEX(Ranks!$1:$1048576,$A236,AS$1))","v":""},{"$f":"IF($A236=\"N/A\",Ref!$B$36,INDEX(Ranks!$1:$1048576,$A236,AT$1))","v":""},{"$f":"IF($A236=\"N/A\",Ref!$B$36,INDEX(Ranks!$1:$1048576,$A236,AU$1))","v":""},{"$f":"IF($A236=\"N/A\",Ref!$B$36,INDEX(Ranks!$1:$1048576,$A236,AV$1))","v":""},{"$f":"IF($A236=\"N/A\",Ref!$B$36,INDEX(Ranks!$1:$1048576,$A236,AW$1))","v":""},{"$f":"IF($A236=\"N/A\",Ref!$B$36,INDEX(Ranks!$1:$1048576,$A236,AX$1))","v":""},{"$f":"IF($A236=\"N/A\",Ref!$B$36,INDEX(Ranks!$1:$1048576,$A236,AY$1))","v":""},{"$f":"IF($A236=\"N/A\",Ref!$B$36,INDEX(Ranks!$1:$1048576,$A236,AZ$1))","v":""},{"$f":"IF($A236=\"N/A\",Ref!$B$36,INDEX(Ranks!$1:$1048576,$A236,BA$1))","v":""},{"$f":"IF($A236=\"N/A\",Ref!$B$36,INDEX(Ranks!$1:$1048576,$A236,BB$1))","v":""},{"$f":"IF($A236=\"N/A\",Ref!$B$36,INDEX(Ranks!$1:$1048576,$A236,BC$1))","v":""},{"$f":"IF($A236=\"N/A\",Ref!$B$36,INDEX(Ranks!$1:$1048576,$A236,BD$1))","v":""},{"$f":"IF($A236=\"N/A\",Ref!$B$36,INDEX(Ranks!$1:$1048576,$A236,BE$1))","v":""},{"$f":"IF($A236=\"N/A\",Ref!$B$36,INDEX(Ranks!$1:$1048576,$A236,BF$1))","v":""},{"$f":"IF($A236=\"N/A\",Ref!$B$36,INDEX(Ranks!$1:$1048576,$A236,BG$1))","v":""},{"$f":"IF($A236=\"N/A\",Ref!$B$36,INDEX(Ranks!$1:$1048576,$A236,BH$1))","v":""},{"$f":"IF($A236=\"N/A\",Ref!$B$36,INDEX(Ranks!$1:$1048576,$A236,BI$1))","v":""},{"$f":"IF($A236=\"N/A\",Ref!$B$36,INDEX(Ranks!$1:$1048576,$A236,BJ$1))","v":""},{"$f":"IF($A236=\"N/A\",Ref!$B$36,INDEX(Ranks!$1:$1048576,$A236,BK$1))","v":""},{"$f":"IF($A236=\"N/A\",Ref!$B$36,INDEX(Ranks!$1:$1048576,$A236,BL$1))","v":""},{"$f":"IF($A236=\"N/A\",Ref!$B$36,INDEX(Ranks!$1:$1048576,$A236,BM$1))","v":""},{"$f":"IF($A236=\"N/A\",Ref!$B$36,INDEX(Ranks!$1:$1048576,$A236,BN$1))","v":""},{"$f":"IF($A236=\"N/A\",Ref!$B$36,INDEX(Ranks!$1:$1048576,$A236,BO$1))","v":""},{"$f":"IF($A236=\"N/A\",Ref!$B$36,INDEX(Ranks!$1:$1048576,$A236,BP$1))","v":""},{"$f":"IF($A236=\"N/A\",Ref!$B$36,INDEX(Ranks!$1:$1048576,$A236,BQ$1))","v":""},{"$f":"IF($A236=\"N/A\",Ref!$B$36,INDEX(Ranks!$1:$1048576,$A236,BR$1))","v":""},{"$f":"IF($A236=\"N/A\",Ref!$B$36,INDEX(Ranks!$1:$1048576,$A236,BS$1))","v":""},{"$f":"IF($A236=\"N/A\",Ref!$B$36,INDEX(Ranks!$1:$1048576,$A236,BT$1))","v":""},{"$f":"IF($A236=\"N/A\",Ref!$B$36,INDEX(Ranks!$1:$1048576,$A236,BU$1))","v":""},{"$f":"IF($A236=\"N/A\",Ref!$B$36,INDEX(Ranks!$1:$1048576,$A236,BV$1))","v":""},{"$f":"IF($A236=\"N/A\",Ref!$B$36,INDEX(Ranks!$1:$1048576,$A236,BW$1))","v":""},{"$f":"IF($A236=\"N/A\",Ref!$B$36,INDEX(Ranks!$1:$1048576,$A236,BX$1))","v":""},{"$f":"IF($A236=\"N/A\",Ref!$B$36,INDEX(Ranks!$1:$1048576,$A236,BY$1))","v":""},{"$f":"IF($A236=\"N/A\",Ref!$B$36,INDEX(Ranks!$1:$1048576,$A236,BZ$1))","v":""},{"$f":"IF($A236=\"N/A\",Ref!$B$36,INDEX(Ranks!$1:$1048576,$A236,CA$1))","v":""},{"$f":"IF($A236=\"N/A\",Ref!$B$36,INDEX(Ranks!$1:$1048576,$A236,CB$1))","v":""},{"$f":"IF($A236=\"N/A\",Ref!$B$36,INDEX(Ranks!$1:$1048576,$A236,CC$1))","v":""},{"$f":"IF($A236=\"N/A\",Ref!$B$36,INDEX(Ranks!$1:$1048576,$A236,CD$1))","v":""},{"$f":"IF($A236=\"N/A\",Ref!$B$36,INDEX(Ranks!$1:$1048576,$A236,CE$1))","v":""},{"$f":"IF($A236=\"N/A\",Ref!$B$36,INDEX(Ranks!$1:$1048576,$A236,CF$1))","v":""},{"$f":"IF($A236=\"N/A\",Ref!$B$36,INDEX(Ranks!$1:$1048576,$A236,CG$1))","v":""},{"$f":"IF($A236=\"N/A\",Ref!$B$36,INDEX(Ranks!$1:$1048576,$A236,CH$1))","v":""},{"$f":"IF($A236=\"N/A\",Ref!$B$36,INDEX(Ranks!$1:$1048576,$A236,CI$1))","v":""},{"$f":"IF($A236=\"N/A\",Ref!$B$36,INDEX(Ranks!$1:$1048576,$A236,CJ$1))","v":""},{"$f":"IF($A236=\"N/A\",Ref!$B$36,INDEX(Ranks!$1:$1048576,$A236,CK$1))","v":""},{"$f":"IF($A236=\"N/A\",Ref!$B$36,INDEX(Ranks!$1:$1048576,$A236,CL$1))","v":""},{"$f":"IF($A236=\"N/A\",Ref!$B$36,INDEX(Ranks!$1:$1048576,$A236,CM$1))","v":""},{"$f":"IF($A236=\"N/A\",Ref!$B$36,INDEX(Ranks!$1:$1048576,$A236,CN$1))","v":""},{"$f":"IF($A236=\"N/A\",Ref!$B$36,INDEX(Ranks!$1:$1048576,$A236,CO$1))","v":""},{"$f":"IF($A236=\"N/A\",Ref!$B$36,INDEX(Ranks!$1:$1048576,$A236,CP$1))","v":""},{"$f":"IF($A236=\"N/A\",Ref!$B$36,INDEX(Ranks!$1:$1048576,$A236,CQ$1))","v":""},{"$f":"IF($A236=\"N/A\",Ref!$B$36,INDEX(Ranks!$1:$1048576,$A236,CR$1))","v":""},{"$f":"IF($A236=\"N/A\",Ref!$B$36,INDEX(Ranks!$1:$1048576,$A236,CS$1))","v":""},{"$f":"IF($A236=\"N/A\",Ref!$B$36,INDEX(Ranks!$1:$1048576,$A236,CT$1))","v":""},{"$f":"IF($A236=\"N/A\",Ref!$B$36,INDEX(Ranks!$1:$1048576,$A236,CU$1))","v":""},{"$f":"IF($A236=\"N/A\",Ref!$B$36,INDEX(Ranks!$1:$1048576,$A236,CV$1))","v":""},{"$f":"IF($A236=\"N/A\",Ref!$B$36,INDEX(Ranks!$1:$1048576,$A236,CW$1))","v":""},{"$f":"IF($A236=\"N/A\",Ref!$B$36,INDEX(Ranks!$1:$1048576,$A236,CX$1))","v":""},{"$f":"IF($A236=\"N/A\",Ref!$B$36,INDEX(Ranks!$1:$1048576,$A236,CY$1))","v":""},{"$f":"IF($A236=\"N/A\",Ref!$B$36,INDEX(Ranks!$1:$1048576,$A236,CZ$1))","v":""},{"$f":"IF($A236=\"N/A\",Ref!$B$36,INDEX(Ranks!$1:$1048576,$A236,DA$1))","v":""},{"$f":"IF($A236=\"N/A\",Ref!$B$36,INDEX(Ranks!$1:$1048576,$A236,DB$1))","v":""},{"$f":"IF($A236=\"N/A\",Ref!$B$36,INDEX(Ranks!$1:$1048576,$A236,DC$1))","v":""},{"$f":"IF($A236=\"N/A\",Ref!$B$36,INDEX(Ranks!$1:$1048576,$A236,DD$1))","v":""},{"$f":"IF($A236=\"N/A\",Ref!$B$36,INDEX(Ranks!$1:$1048576,$A236,DE$1))","v":""},{"$f":"IF($A236=\"N/A\",Ref!$B$36,INDEX(Ranks!$1:$1048576,$A236,DF$1))","v":""},{"$f":"IF($A236=\"N/A\",Ref!$B$36,INDEX(Ranks!$1:$1048576,$A236,DG$1))","v":""},{"$f":"IF($A236=\"N/A\",Ref!$B$36,INDEX(Ranks!$1:$1048576,$A236,DH$1))","v":""},{"$f":"IF($A236=\"N/A\",Ref!$B$36,INDEX(Ranks!$1:$1048576,$A236,DI$1))","v":""},{"$f":"IF($A236=\"N/A\",Ref!$B$36,INDEX(Ranks!$1:$1048576,$A236,DJ$1))","v":""},{"$f":"IF($A236=\"N/A\",Ref!$B$36,INDEX(Ranks!$1:$1048576,$A236,DK$1))","v":""},{"$f":"IF($A236=\"N/A\",Ref!$B$36,INDEX(Ranks!$1:$1048576,$A236,DL$1))","v":""},{"$f":"IF($A236=\"N/A\",Ref!$B$36,INDEX(Ranks!$1:$1048576,$A236,DM$1))","v":""},{"$f":"IF($A236=\"N/A\",Ref!$B$36,INDEX(Ranks!$1:$1048576,$A236,DN$1))","v":""},{"$f":"IF($A236=\"N/A\",Ref!$B$36,INDEX(Ranks!$1:$1048576,$A236,DO$1))","v":""},{"$f":"IF($A236=\"N/A\",Ref!$B$36,INDEX(Ranks!$1:$1048576,$A236,DP$1))","v":""},{"$f":"IF($A236=\"N/A\",Ref!$B$36,INDEX(Ranks!$1:$1048576,$A236,DQ$1))","v":""},{"$f":"IF($A236=\"N/A\",Ref!$B$36,INDEX(Ranks!$1:$1048576,$A236,DR$1))","v":""},{"$f":"IF($A236=\"N/A\",Ref!$B$36,INDEX(Ranks!$1:$1048576,$A236,DS$1))","v":""},{"$f":"IF($A236=\"N/A\",Ref!$B$36,INDEX(Ranks!$1:$1048576,$A236,DT$1))","v":""},{"$f":"IF($A236=\"N/A\",Ref!$B$36,INDEX(Ranks!$1:$1048576,$A236,DU$1))","v":""},{"$f":"IF($A236=\"N/A\",Ref!$B$36,INDEX(Ranks!$1:$1048576,$A236,DV$1))","v":""},{"$f":"IF($A236=\"N/A\",Ref!$B$36,INDEX(Ranks!$1:$1048576,$A236,DW$1))","v":""},{"$f":"IF($A236=\"N/A\",Ref!$B$36,INDEX(Ranks!$1:$1048576,$A236,DX$1))","v":""},{"$f":"IF($A236=\"N/A\",Ref!$B$36,INDEX(Ranks!$1:$1048576,$A236,DY$1))","v":""},{"$f":"IF($A236=\"N/A\",Ref!$B$36,INDEX(Ranks!$1:$1048576,$A236,DZ$1))","v":""},{"$f":"IF($A236=\"N/A\",Ref!$B$36,INDEX(Ranks!$1:$1048576,$A236,EA$1))","v":""},{"$f":"IF($A236=\"N/A\",Ref!$B$36,INDEX(Ranks!$1:$1048576,$A236,EB$1))","v":""}]
[{"$f":"IFERROR(MATCH('Portfolio Page'!L237,Ranks!L:L,0),\"N/A\")","v":"N/A"},null,{"$f":"IF($A237=\"N/A\",\"\",INDEX(Ranks!$1:$1048576,$A237,C$1))","v":""},{"$f":"IF($A237=\"N/A\",Ref!$B$36,INDEX(Ranks!$1:$1048576,$A237,D$1))","v":""},{"$f":"IF($A237=\"N/A\",Ref!$B$36,INDEX(Ranks!$1:$1048576,$A237,E$1))","v":""},{"$f":"IF($A237=\"N/A\",\"\",INDEX(Ranks!$1:$1048576,$A237,F$1))","v":""},{"$f":"IF($A237=\"N/A\",\"\",INDEX(Ranks!$1:$1048576,$A237,G$1))","v":""},{"$f":"IF($A237=\"N/A\",\"\",INDEX(Ranks!$1:$1048576,$A237,H$1))","v":""},{"$f":"IF($A237=\"N/A\",\"\",INDEX(Ranks!$1:$1048576,$A237,I$1))","v":""},{"$f":"IF($A237=\"N/A\",\"\",INDEX(Ranks!$1:$1048576,$A237,J$1))","v":""},{"$f":"IF($A237=\"N/A\",\"\",INDEX(Ranks!$1:$1048576,$A237,K$1))","v":""},null,{"$f":"IF($A237=\"N/A\",Ref!$B$36,INDEX(Ranks!$1:$1048576,$A237,M$1))","v":""},{"$f":"IF($A237=\"N/A\",Ref!$B$36,INDEX(Ranks!$1:$1048576,$A237,N$1))","v":""},{"$f":"IF($A237=\"N/A\",Ref!$B$36,INDEX(Ranks!$1:$1048576,$A237,O$1))","v":""},{"$f":"IF($A237=\"N/A\",Ref!$B$36,INDEX(Ranks!$1:$1048576,$A237,P$1))","v":""},{"$f":"IF($A237=\"N/A\",Ref!$B$36,INDEX(Ranks!$1:$1048576,$A237,Q$1))","v":""},{"$f":"IF($A237=\"N/A\",Ref!$B$36,INDEX(Ranks!$1:$1048576,$A237,R$1))","v":""},{"$f":"IF($A237=\"N/A\",Ref!$B$36,INDEX(Ranks!$1:$1048576,$A237,S$1))","v":""},{"$f":"IF($A237=\"N/A\",Ref!$B$36,INDEX(Ranks!$1:$1048576,$A237,T$1))","v":""},{"$f":"IF($A237=\"N/A\",Ref!$B$36,INDEX(Ranks!$1:$1048576,$A237,U$1))","v":""},{"$f":"IF($A237=\"N/A\",Ref!$B$36,INDEX(Ranks!$1:$1048576,$A237,V$1))","v":""},{"$f":"IF($A237=\"N/A\",Ref!$B$36,INDEX(Ranks!$1:$1048576,$A237,W$1))","v":""},{"$f":"IF($A237=\"N/A\",Ref!$B$36,INDEX(Ranks!$1:$1048576,$A237,X$1))","v":""},{"$f":"IF($A237=\"N/A\",Ref!$B$36,INDEX(Ranks!$1:$1048576,$A237,Y$1))","v":""},{"$f":"IF($A237=\"N/A\",Ref!$B$36,INDEX(Ranks!$1:$1048576,$A237,Z$1))","v":""},{"$f":"IF($A237=\"N/A\",Ref!$B$36,INDEX(Ranks!$1:$1048576,$A237,AA$1))","v":""},{"$f":"IF($A237=\"N/A\",Ref!$B$36,INDEX(Ranks!$1:$1048576,$A237,AB$1))","v":""},{"$f":"IF($A237=\"N/A\",Ref!$B$36,INDEX(Ranks!$1:$1048576,$A237,AC$1))","v":""},{"$f":"IF($A237=\"N/A\",Ref!$B$36,INDEX(Ranks!$1:$1048576,$A237,AD$1))","v":""},{"$f":"IF($A237=\"N/A\",Ref!$B$36,INDEX(Ranks!$1:$1048576,$A237,AE$1))","v":""},{"$f":"IF($A237=\"N/A\",Ref!$B$36,INDEX(Ranks!$1:$1048576,$A237,AF$1))","v":""},{"$f":"IF($A237=\"N/A\",Ref!$B$36,INDEX(Ranks!$1:$1048576,$A237,AG$1))","v":""},{"$f":"IF($A237=\"N/A\",Ref!$B$36,INDEX(Ranks!$1:$1048576,$A237,AH$1))","v":""},{"$f":"IF($A237=\"N/A\",Ref!$B$36,INDEX(Ranks!$1:$1048576,$A237,AI$1))","v":""},{"$f":"IF($A237=\"N/A\",Ref!$B$36,INDEX(Ranks!$1:$1048576,$A237,AJ$1))","v":""},{"$f":"IF($A237=\"N/A\",Ref!$B$36,INDEX(Ranks!$1:$1048576,$A237,AK$1))","v":""},{"$f":"IF($A237=\"N/A\",Ref!$B$36,INDEX(Ranks!$1:$1048576,$A237,AL$1))","v":""},{"$f":"IF($A237=\"N/A\",Ref!$B$36,INDEX(Ranks!$1:$1048576,$A237,AM$1))","v":""},{"$f":"IF($A237=\"N/A\",Ref!$B$36,INDEX(Ranks!$1:$1048576,$A237,AN$1))","v":""},{"$f":"IF($A237=\"N/A\",Ref!$B$36,INDEX(Ranks!$1:$1048576,$A237,AO$1))","v":""},{"$f":"IF($A237=\"N/A\",Ref!$B$36,INDEX(Ranks!$1:$1048576,$A237,AP$1))","v":""},{"$f":"IF($A237=\"N/A\",Ref!$B$36,INDEX(Ranks!$1:$1048576,$A237,AQ$1))","v":""},{"$f":"IF($A237=\"N/A\",Ref!$B$36,INDEX(Ranks!$1:$1048576,$A237,AR$1))","v":""},{"$f":"IF($A237=\"N/A\",Ref!$B$36,INDEX(Ranks!$1:$1048576,$A237,AS$1))","v":""},{"$f":"IF($A237=\"N/A\",Ref!$B$36,INDEX(Ranks!$1:$1048576,$A237,AT$1))","v":""},{"$f":"IF($A237=\"N/A\",Ref!$B$36,INDEX(Ranks!$1:$1048576,$A237,AU$1))","v":""},{"$f":"IF($A237=\"N/A\",Ref!$B$36,INDEX(Ranks!$1:$1048576,$A237,AV$1))","v":""},{"$f":"IF($A237=\"N/A\",Ref!$B$36,INDEX(Ranks!$1:$1048576,$A237,AW$1))","v":""},{"$f":"IF($A237=\"N/A\",Ref!$B$36,INDEX(Ranks!$1:$1048576,$A237,AX$1))","v":""},{"$f":"IF($A237=\"N/A\",Ref!$B$36,INDEX(Ranks!$1:$1048576,$A237,AY$1))","v":""},{"$f":"IF($A237=\"N/A\",Ref!$B$36,INDEX(Ranks!$1:$1048576,$A237,AZ$1))","v":""},{"$f":"IF($A237=\"N/A\",Ref!$B$36,INDEX(Ranks!$1:$1048576,$A237,BA$1))","v":""},{"$f":"IF($A237=\"N/A\",Ref!$B$36,INDEX(Ranks!$1:$1048576,$A237,BB$1))","v":""},{"$f":"IF($A237=\"N/A\",Ref!$B$36,INDEX(Ranks!$1:$1048576,$A237,BC$1))","v":""},{"$f":"IF($A237=\"N/A\",Ref!$B$36,INDEX(Ranks!$1:$1048576,$A237,BD$1))","v":""},{"$f":"IF($A237=\"N/A\",Ref!$B$36,INDEX(Ranks!$1:$1048576,$A237,BE$1))","v":""},{"$f":"IF($A237=\"N/A\",Ref!$B$36,INDEX(Ranks!$1:$1048576,$A237,BF$1))","v":""},{"$f":"IF($A237=\"N/A\",Ref!$B$36,INDEX(Ranks!$1:$1048576,$A237,BG$1))","v":""},{"$f":"IF($A237=\"N/A\",Ref!$B$36,INDEX(Ranks!$1:$1048576,$A237,BH$1))","v":""},{"$f":"IF($A237=\"N/A\",Ref!$B$36,INDEX(Ranks!$1:$1048576,$A237,BI$1))","v":""},{"$f":"IF($A237=\"N/A\",Ref!$B$36,INDEX(Ranks!$1:$1048576,$A237,BJ$1))","v":""},{"$f":"IF($A237=\"N/A\",Ref!$B$36,INDEX(Ranks!$1:$1048576,$A237,BK$1))","v":""},{"$f":"IF($A237=\"N/A\",Ref!$B$36,INDEX(Ranks!$1:$1048576,$A237,BL$1))","v":""},{"$f":"IF($A237=\"N/A\",Ref!$B$36,INDEX(Ranks!$1:$1048576,$A237,BM$1))","v":""},{"$f":"IF($A237=\"N/A\",Ref!$B$36,INDEX(Ranks!$1:$1048576,$A237,BN$1))","v":""},{"$f":"IF($A237=\"N/A\",Ref!$B$36,INDEX(Ranks!$1:$1048576,$A237,BO$1))","v":""},{"$f":"IF($A237=\"N/A\",Ref!$B$36,INDEX(Ranks!$1:$1048576,$A237,BP$1))","v":""},{"$f":"IF($A237=\"N/A\",Ref!$B$36,INDEX(Ranks!$1:$1048576,$A237,BQ$1))","v":""},{"$f":"IF($A237=\"N/A\",Ref!$B$36,INDEX(Ranks!$1:$1048576,$A237,BR$1))","v":""},{"$f":"IF($A237=\"N/A\",Ref!$B$36,INDEX(Ranks!$1:$1048576,$A237,BS$1))","v":""},{"$f":"IF($A237=\"N/A\",Ref!$B$36,INDEX(Ranks!$1:$1048576,$A237,BT$1))","v":""},{"$f":"IF($A237=\"N/A\",Ref!$B$36,INDEX(Ranks!$1:$1048576,$A237,BU$1))","v":""},{"$f":"IF($A237=\"N/A\",Ref!$B$36,INDEX(Ranks!$1:$1048576,$A237,BV$1))","v":""},{"$f":"IF($A237=\"N/A\",Ref!$B$36,INDEX(Ranks!$1:$1048576,$A237,BW$1))","v":""},{"$f":"IF($A237=\"N/A\",Ref!$B$36,INDEX(Ranks!$1:$1048576,$A237,BX$1))","v":""},{"$f":"IF($A237=\"N/A\",Ref!$B$36,INDEX(Ranks!$1:$1048576,$A237,BY$1))","v":""},{"$f":"IF($A237=\"N/A\",Ref!$B$36,INDEX(Ranks!$1:$1048576,$A237,BZ$1))","v":""},{"$f":"IF($A237=\"N/A\",Ref!$B$36,INDEX(Ranks!$1:$1048576,$A237,CA$1))","v":""},{"$f":"IF($A237=\"N/A\",Ref!$B$36,INDEX(Ranks!$1:$1048576,$A237,CB$1))","v":""},{"$f":"IF($A237=\"N/A\",Ref!$B$36,INDEX(Ranks!$1:$1048576,$A237,CC$1))","v":""},{"$f":"IF($A237=\"N/A\",Ref!$B$36,INDEX(Ranks!$1:$1048576,$A237,CD$1))","v":""},{"$f":"IF($A237=\"N/A\",Ref!$B$36,INDEX(Ranks!$1:$1048576,$A237,CE$1))","v":""},{"$f":"IF($A237=\"N/A\",Ref!$B$36,INDEX(Ranks!$1:$1048576,$A237,CF$1))","v":""},{"$f":"IF($A237=\"N/A\",Ref!$B$36,INDEX(Ranks!$1:$1048576,$A237,CG$1))","v":""},{"$f":"IF($A237=\"N/A\",Ref!$B$36,INDEX(Ranks!$1:$1048576,$A237,CH$1))","v":""},{"$f":"IF($A237=\"N/A\",Ref!$B$36,INDEX(Ranks!$1:$1048576,$A237,CI$1))","v":""},{"$f":"IF($A237=\"N/A\",Ref!$B$36,INDEX(Ranks!$1:$1048576,$A237,CJ$1))","v":""},{"$f":"IF($A237=\"N/A\",Ref!$B$36,INDEX(Ranks!$1:$1048576,$A237,CK$1))","v":""},{"$f":"IF($A237=\"N/A\",Ref!$B$36,INDEX(Ranks!$1:$1048576,$A237,CL$1))","v":""},{"$f":"IF($A237=\"N/A\",Ref!$B$36,INDEX(Ranks!$1:$1048576,$A237,CM$1))","v":""},{"$f":"IF($A237=\"N/A\",Ref!$B$36,INDEX(Ranks!$1:$1048576,$A237,CN$1))","v":""},{"$f":"IF($A237=\"N/A\",Ref!$B$36,INDEX(Ranks!$1:$1048576,$A237,CO$1))","v":""},{"$f":"IF($A237=\"N/A\",Ref!$B$36,INDEX(Ranks!$1:$1048576,$A237,CP$1))","v":""},{"$f":"IF($A237=\"N/A\",Ref!$B$36,INDEX(Ranks!$1:$1048576,$A237,CQ$1))","v":""},{"$f":"IF($A237=\"N/A\",Ref!$B$36,INDEX(Ranks!$1:$1048576,$A237,CR$1))","v":""},{"$f":"IF($A237=\"N/A\",Ref!$B$36,INDEX(Ranks!$1:$1048576,$A237,CS$1))","v":""},{"$f":"IF($A237=\"N/A\",Ref!$B$36,INDEX(Ranks!$1:$1048576,$A237,CT$1))","v":""},{"$f":"IF($A237=\"N/A\",Ref!$B$36,INDEX(Ranks!$1:$1048576,$A237,CU$1))","v":""},{"$f":"IF($A237=\"N/A\",Ref!$B$36,INDEX(Ranks!$1:$1048576,$A237,CV$1))","v":""},{"$f":"IF($A237=\"N/A\",Ref!$B$36,INDEX(Ranks!$1:$1048576,$A237,CW$1))","v":""},{"$f":"IF($A237=\"N/A\",Ref!$B$36,INDEX(Ranks!$1:$1048576,$A237,CX$1))","v":""},{"$f":"IF($A237=\"N/A\",Ref!$B$36,INDEX(Ranks!$1:$1048576,$A237,CY$1))","v":""},{"$f":"IF($A237=\"N/A\",Ref!$B$36,INDEX(Ranks!$1:$1048576,$A237,CZ$1))","v":""},{"$f":"IF($A237=\"N/A\",Ref!$B$36,INDEX(Ranks!$1:$1048576,$A237,DA$1))","v":""},{"$f":"IF($A237=\"N/A\",Ref!$B$36,INDEX(Ranks!$1:$1048576,$A237,DB$1))","v":""},{"$f":"IF($A237=\"N/A\",Ref!$B$36,INDEX(Ranks!$1:$1048576,$A237,DC$1))","v":""},{"$f":"IF($A237=\"N/A\",Ref!$B$36,INDEX(Ranks!$1:$1048576,$A237,DD$1))","v":""},{"$f":"IF($A237=\"N/A\",Ref!$B$36,INDEX(Ranks!$1:$1048576,$A237,DE$1))","v":""},{"$f":"IF($A237=\"N/A\",Ref!$B$36,INDEX(Ranks!$1:$1048576,$A237,DF$1))","v":""},{"$f":"IF($A237=\"N/A\",Ref!$B$36,INDEX(Ranks!$1:$1048576,$A237,DG$1))","v":""},{"$f":"IF($A237=\"N/A\",Ref!$B$36,INDEX(Ranks!$1:$1048576,$A237,DH$1))","v":""},{"$f":"IF($A237=\"N/A\",Ref!$B$36,INDEX(Ranks!$1:$1048576,$A237,DI$1))","v":""},{"$f":"IF($A237=\"N/A\",Ref!$B$36,INDEX(Ranks!$1:$1048576,$A237,DJ$1))","v":""},{"$f":"IF($A237=\"N/A\",Ref!$B$36,INDEX(Ranks!$1:$1048576,$A237,DK$1))","v":""},{"$f":"IF($A237=\"N/A\",Ref!$B$36,INDEX(Ranks!$1:$1048576,$A237,DL$1))","v":""},{"$f":"IF($A237=\"N/A\",Ref!$B$36,INDEX(Ranks!$1:$1048576,$A237,DM$1))","v":""},{"$f":"IF($A237=\"N/A\",Ref!$B$36,INDEX(Ranks!$1:$1048576,$A237,DN$1))","v":""},{"$f":"IF($A237=\"N/A\",Ref!$B$36,INDEX(Ranks!$1:$1048576,$A237,DO$1))","v":""},{"$f":"IF($A237=\"N/A\",Ref!$B$36,INDEX(Ranks!$1:$1048576,$A237,DP$1))","v":""},{"$f":"IF($A237=\"N/A\",Ref!$B$36,INDEX(Ranks!$1:$1048576,$A237,DQ$1))","v":""},{"$f":"IF($A237=\"N/A\",Ref!$B$36,INDEX(Ranks!$1:$1048576,$A237,DR$1))","v":""},{"$f":"IF($A237=\"N/A\",Ref!$B$36,INDEX(Ranks!$1:$1048576,$A237,DS$1))","v":""},{"$f":"IF($A237=\"N/A\",Ref!$B$36,INDEX(Ranks!$1:$1048576,$A237,DT$1))","v":""},{"$f":"IF($A237=\"N/A\",Ref!$B$36,INDEX(Ranks!$1:$1048576,$A237,DU$1))","v":""},{"$f":"IF($A237=\"N/A\",Ref!$B$36,INDEX(Ranks!$1:$1048576,$A237,DV$1))","v":""},{"$f":"IF($A237=\"N/A\",Ref!$B$36,INDEX(Ranks!$1:$1048576,$A237,DW$1))","v":""},{"$f":"IF($A237=\"N/A\",Ref!$B$36,INDEX(Ranks!$1:$1048576,$A237,DX$1))","v":""},{"$f":"IF($A237=\"N/A\",Ref!$B$36,INDEX(Ranks!$1:$1048576,$A237,DY$1))","v":""},{"$f":"IF($A237=\"N/A\",Ref!$B$36,INDEX(Ranks!$1:$1048576,$A237,DZ$1))","v":""},{"$f":"IF($A237=\"N/A\",Ref!$B$36,INDEX(Ranks!$1:$1048576,$A237,EA$1))","v":""},{"$f":"IF($A237=\"N/A\",Ref!$B$36,INDEX(Ranks!$1:$1048576,$A237,EB$1))","v":""}]
[{"$f":"IFERROR(MATCH('Portfolio Page'!L238,Ranks!L:L,0),\"N/A\")","v":"N/A"},null,{"$f":"IF($A238=\"N/A\",\"\",INDEX(Ranks!$1:$1048576,$A238,C$1))","v":""},{"$f":"IF($A238=\"N/A\",Ref!$B$36,INDEX(Ranks!$1:$1048576,$A238,D$1))","v":""},{"$f":"IF($A238=\"N/A\",Ref!$B$36,INDEX(Ranks!$1:$1048576,$A238,E$1))","v":""},{"$f":"IF($A238=\"N/A\",\"\",INDEX(Ranks!$1:$1048576,$A238,F$1))","v":""},{"$f":"IF($A238=\"N/A\",\"\",INDEX(Ranks!$1:$1048576,$A238,G$1))","v":""},{"$f":"IF($A238=\"N/A\",\"\",INDEX(Ranks!$1:$1048576,$A238,H$1))","v":""},{"$f":"IF($A238=\"N/A\",\"\",INDEX(Ranks!$1:$1048576,$A238,I$1))","v":""},{"$f":"IF($A238=\"N/A\",\"\",INDEX(Ranks!$1:$1048576,$A238,J$1))","v":""},{"$f":"IF($A238=\"N/A\",\"\",INDEX(Ranks!$1:$1048576,$A238,K$1))","v":""},null,{"$f":"IF($A238=\"N/A\",Ref!$B$36,INDEX(Ranks!$1:$1048576,$A238,M$1))","v":""},{"$f":"IF($A238=\"N/A\",Ref!$B$36,INDEX(Ranks!$1:$1048576,$A238,N$1))","v":""},{"$f":"IF($A238=\"N/A\",Ref!$B$36,INDEX(Ranks!$1:$1048576,$A238,O$1))","v":""},{"$f":"IF($A238=\"N/A\",Ref!$B$36,INDEX(Ranks!$1:$1048576,$A238,P$1))","v":""},{"$f":"IF($A238=\"N/A\",Ref!$B$36,INDEX(Ranks!$1:$1048576,$A238,Q$1))","v":""},{"$f":"IF($A238=\"N/A\",Ref!$B$36,INDEX(Ranks!$1:$1048576,$A238,R$1))","v":""},{"$f":"IF($A238=\"N/A\",Ref!$B$36,INDEX(Ranks!$1:$1048576,$A238,S$1))","v":""},{"$f":"IF($A238=\"N/A\",Ref!$B$36,INDEX(Ranks!$1:$1048576,$A238,T$1))","v":""},{"$f":"IF($A238=\"N/A\",Ref!$B$36,INDEX(Ranks!$1:$1048576,$A238,U$1))","v":""},{"$f":"IF($A238=\"N/A\",Ref!$B$36,INDEX(Ranks!$1:$1048576,$A238,V$1))","v":""},{"$f":"IF($A238=\"N/A\",Ref!$B$36,INDEX(Ranks!$1:$1048576,$A238,W$1))","v":""},{"$f":"IF($A238=\"N/A\",Ref!$B$36,INDEX(Ranks!$1:$1048576,$A238,X$1))","v":""},{"$f":"IF($A238=\"N/A\",Ref!$B$36,INDEX(Ranks!$1:$1048576,$A238,Y$1))","v":""},{"$f":"IF($A238=\"N/A\",Ref!$B$36,INDEX(Ranks!$1:$1048576,$A238,Z$1))","v":""},{"$f":"IF($A238=\"N/A\",Ref!$B$36,INDEX(Ranks!$1:$1048576,$A238,AA$1))","v":""},{"$f":"IF($A238=\"N/A\",Ref!$B$36,INDEX(Ranks!$1:$1048576,$A238,AB$1))","v":""},{"$f":"IF($A238=\"N/A\",Ref!$B$36,INDEX(Ranks!$1:$1048576,$A238,AC$1))","v":""},{"$f":"IF($A238=\"N/A\",Ref!$B$36,INDEX(Ranks!$1:$1048576,$A238,AD$1))","v":""},{"$f":"IF($A238=\"N/A\",Ref!$B$36,INDEX(Ranks!$1:$1048576,$A238,AE$1))","v":""},{"$f":"IF($A238=\"N/A\",Ref!$B$36,INDEX(Ranks!$1:$1048576,$A238,AF$1))","v":""},{"$f":"IF($A238=\"N/A\",Ref!$B$36,INDEX(Ranks!$1:$1048576,$A238,AG$1))","v":""},{"$f":"IF($A238=\"N/A\",Ref!$B$36,INDEX(Ranks!$1:$1048576,$A238,AH$1))","v":""},{"$f":"IF($A238=\"N/A\",Ref!$B$36,INDEX(Ranks!$1:$1048576,$A238,AI$1))","v":""},{"$f":"IF($A238=\"N/A\",Ref!$B$36,INDEX(Ranks!$1:$1048576,$A238,AJ$1))","v":""},{"$f":"IF($A238=\"N/A\",Ref!$B$36,INDEX(Ranks!$1:$1048576,$A238,AK$1))","v":""},{"$f":"IF($A238=\"N/A\",Ref!$B$36,INDEX(Ranks!$1:$1048576,$A238,AL$1))","v":""},{"$f":"IF($A238=\"N/A\",Ref!$B$36,INDEX(Ranks!$1:$1048576,$A238,AM$1))","v":""},{"$f":"IF($A238=\"N/A\",Ref!$B$36,INDEX(Ranks!$1:$1048576,$A238,AN$1))","v":""},{"$f":"IF($A238=\"N/A\",Ref!$B$36,INDEX(Ranks!$1:$1048576,$A238,AO$1))","v":""},{"$f":"IF($A238=\"N/A\",Ref!$B$36,INDEX(Ranks!$1:$1048576,$A238,AP$1))","v":""},{"$f":"IF($A238=\"N/A\",Ref!$B$36,INDEX(Ranks!$1:$1048576,$A238,AQ$1))","v":""},{"$f":"IF($A238=\"N/A\",Ref!$B$36,INDEX(Ranks!$1:$1048576,$A238,AR$1))","v":""},{"$f":"IF($A238=\"N/A\",Ref!$B$36,INDEX(Ranks!$1:$1048576,$A238,AS$1))","v":""},{"$f":"IF($A238=\"N/A\",Ref!$B$36,INDEX(Ranks!$1:$1048576,$A238,AT$1))","v":""},{"$f":"IF($A238=\"N/A\",Ref!$B$36,INDEX(Ranks!$1:$1048576,$A238,AU$1))","v":""},{"$f":"IF($A238=\"N/A\",Ref!$B$36,INDEX(Ranks!$1:$1048576,$A238,AV$1))","v":""},{"$f":"IF($A238=\"N/A\",Ref!$B$36,INDEX(Ranks!$1:$1048576,$A238,AW$1))","v":""},{"$f":"IF($A238=\"N/A\",Ref!$B$36,INDEX(Ranks!$1:$1048576,$A238,AX$1))","v":""},{"$f":"IF($A238=\"N/A\",Ref!$B$36,INDEX(Ranks!$1:$1048576,$A238,AY$1))","v":""},{"$f":"IF($A238=\"N/A\",Ref!$B$36,INDEX(Ranks!$1:$1048576,$A238,AZ$1))","v":""},{"$f":"IF($A238=\"N/A\",Ref!$B$36,INDEX(Ranks!$1:$1048576,$A238,BA$1))","v":""},{"$f":"IF($A238=\"N/A\",Ref!$B$36,INDEX(Ranks!$1:$1048576,$A238,BB$1))","v":""},{"$f":"IF($A238=\"N/A\",Ref!$B$36,INDEX(Ranks!$1:$1048576,$A238,BC$1))","v":""},{"$f":"IF($A238=\"N/A\",Ref!$B$36,INDEX(Ranks!$1:$1048576,$A238,BD$1))","v":""},{"$f":"IF($A238=\"N/A\",Ref!$B$36,INDEX(Ranks!$1:$1048576,$A238,BE$1))","v":""},{"$f":"IF($A238=\"N/A\",Ref!$B$36,INDEX(Ranks!$1:$1048576,$A238,BF$1))","v":""},{"$f":"IF($A238=\"N/A\",Ref!$B$36,INDEX(Ranks!$1:$1048576,$A238,BG$1))","v":""},{"$f":"IF($A238=\"N/A\",Ref!$B$36,INDEX(Ranks!$1:$1048576,$A238,BH$1))","v":""},{"$f":"IF($A238=\"N/A\",Ref!$B$36,INDEX(Ranks!$1:$1048576,$A238,BI$1))","v":""},{"$f":"IF($A238=\"N/A\",Ref!$B$36,INDEX(Ranks!$1:$1048576,$A238,BJ$1))","v":""},{"$f":"IF($A238=\"N/A\",Ref!$B$36,INDEX(Ranks!$1:$1048576,$A238,BK$1))","v":""},{"$f":"IF($A238=\"N/A\",Ref!$B$36,INDEX(Ranks!$1:$1048576,$A238,BL$1))","v":""},{"$f":"IF($A238=\"N/A\",Ref!$B$36,INDEX(Ranks!$1:$1048576,$A238,BM$1))","v":""},{"$f":"IF($A238=\"N/A\",Ref!$B$36,INDEX(Ranks!$1:$1048576,$A238,BN$1))","v":""},{"$f":"IF($A238=\"N/A\",Ref!$B$36,INDEX(Ranks!$1:$1048576,$A238,BO$1))","v":""},{"$f":"IF($A238=\"N/A\",Ref!$B$36,INDEX(Ranks!$1:$1048576,$A238,BP$1))","v":""},{"$f":"IF($A238=\"N/A\",Ref!$B$36,INDEX(Ranks!$1:$1048576,$A238,BQ$1))","v":""},{"$f":"IF($A238=\"N/A\",Ref!$B$36,INDEX(Ranks!$1:$1048576,$A238,BR$1))","v":""},{"$f":"IF($A238=\"N/A\",Ref!$B$36,INDEX(Ranks!$1:$1048576,$A238,BS$1))","v":""},{"$f":"IF($A238=\"N/A\",Ref!$B$36,INDEX(Ranks!$1:$1048576,$A238,BT$1))","v":""},{"$f":"IF($A238=\"N/A\",Ref!$B$36,INDEX(Ranks!$1:$1048576,$A238,BU$1))","v":""},{"$f":"IF($A238=\"N/A\",Ref!$B$36,INDEX(Ranks!$1:$1048576,$A238,BV$1))","v":""},{"$f":"IF($A238=\"N/A\",Ref!$B$36,INDEX(Ranks!$1:$1048576,$A238,BW$1))","v":""},{"$f":"IF($A238=\"N/A\",Ref!$B$36,INDEX(Ranks!$1:$1048576,$A238,BX$1))","v":""},{"$f":"IF($A238=\"N/A\",Ref!$B$36,INDEX(Ranks!$1:$1048576,$A238,BY$1))","v":""},{"$f":"IF($A238=\"N/A\",Ref!$B$36,INDEX(Ranks!$1:$1048576,$A238,BZ$1))","v":""},{"$f":"IF($A238=\"N/A\",Ref!$B$36,INDEX(Ranks!$1:$1048576,$A238,CA$1))","v":""},{"$f":"IF($A238=\"N/A\",Ref!$B$36,INDEX(Ranks!$1:$1048576,$A238,CB$1))","v":""},{"$f":"IF($A238=\"N/A\",Ref!$B$36,INDEX(Ranks!$1:$1048576,$A238,CC$1))","v":""},{"$f":"IF($A238=\"N/A\",Ref!$B$36,INDEX(Ranks!$1:$1048576,$A238,CD$1))","v":""},{"$f":"IF($A238=\"N/A\",Ref!$B$36,INDEX(Ranks!$1:$1048576,$A238,CE$1))","v":""},{"$f":"IF($A238=\"N/A\",Ref!$B$36,INDEX(Ranks!$1:$1048576,$A238,CF$1))","v":""},{"$f":"IF($A238=\"N/A\",Ref!$B$36,INDEX(Ranks!$1:$1048576,$A238,CG$1))","v":""},{"$f":"IF($A238=\"N/A\",Ref!$B$36,INDEX(Ranks!$1:$1048576,$A238,CH$1))","v":""},{"$f":"IF($A238=\"N/A\",Ref!$B$36,INDEX(Ranks!$1:$1048576,$A238,CI$1))","v":""},{"$f":"IF($A238=\"N/A\",Ref!$B$36,INDEX(Ranks!$1:$1048576,$A238,CJ$1))","v":""},{"$f":"IF($A238=\"N/A\",Ref!$B$36,INDEX(Ranks!$1:$1048576,$A238,CK$1))","v":""},{"$f":"IF($A238=\"N/A\",Ref!$B$36,INDEX(Ranks!$1:$1048576,$A238,CL$1))","v":""},{"$f":"IF($A238=\"N/A\",Ref!$B$36,INDEX(Ranks!$1:$1048576,$A238,CM$1))","v":""},{"$f":"IF($A238=\"N/A\",Ref!$B$36,INDEX(Ranks!$1:$1048576,$A238,CN$1))","v":""},{"$f":"IF($A238=\"N/A\",Ref!$B$36,INDEX(Ranks!$1:$1048576,$A238,CO$1))","v":""},{"$f":"IF($A238=\"N/A\",Ref!$B$36,INDEX(Ranks!$1:$1048576,$A238,CP$1))","v":""},{"$f":"IF($A238=\"N/A\",Ref!$B$36,INDEX(Ranks!$1:$1048576,$A238,CQ$1))","v":""},{"$f":"IF($A238=\"N/A\",Ref!$B$36,INDEX(Ranks!$1:$1048576,$A238,CR$1))","v":""},{"$f":"IF($A238=\"N/A\",Ref!$B$36,INDEX(Ranks!$1:$1048576,$A238,CS$1))","v":""},{"$f":"IF($A238=\"N/A\",Ref!$B$36,INDEX(Ranks!$1:$1048576,$A238,CT$1))","v":""},{"$f":"IF($A238=\"N/A\",Ref!$B$36,INDEX(Ranks!$1:$1048576,$A238,CU$1))","v":""},{"$f":"IF($A238=\"N/A\",Ref!$B$36,INDEX(Ranks!$1:$1048576,$A238,CV$1))","v":""},{"$f":"IF($A238=\"N/A\",Ref!$B$36,INDEX(Ranks!$1:$1048576,$A238,CW$1))","v":""},{"$f":"IF($A238=\"N/A\",Ref!$B$36,INDEX(Ranks!$1:$1048576,$A238,CX$1))","v":""},{"$f":"IF($A238=\"N/A\",Ref!$B$36,INDEX(Ranks!$1:$1048576,$A238,CY$1))","v":""},{"$f":"IF($A238=\"N/A\",Ref!$B$36,INDEX(Ranks!$1:$1048576,$A238,CZ$1))","v":""},{"$f":"IF($A238=\"N/A\",Ref!$B$36,INDEX(Ranks!$1:$1048576,$A238,DA$1))","v":""},{"$f":"IF($A238=\"N/A\",Ref!$B$36,INDEX(Ranks!$1:$1048576,$A238,DB$1))","v":""},{"$f":"IF($A238=\"N/A\",Ref!$B$36,INDEX(Ranks!$1:$1048576,$A238,DC$1))","v":""},{"$f":"IF($A238=\"N/A\",Ref!$B$36,INDEX(Ranks!$1:$1048576,$A238,DD$1))","v":""},{"$f":"IF($A238=\"N/A\",Ref!$B$36,INDEX(Ranks!$1:$1048576,$A238,DE$1))","v":""},{"$f":"IF($A238=\"N/A\",Ref!$B$36,INDEX(Ranks!$1:$1048576,$A238,DF$1))","v":""},{"$f":"IF($A238=\"N/A\",Ref!$B$36,INDEX(Ranks!$1:$1048576,$A238,DG$1))","v":""},{"$f":"IF($A238=\"N/A\",Ref!$B$36,INDEX(Ranks!$1:$1048576,$A238,DH$1))","v":""},{"$f":"IF($A238=\"N/A\",Ref!$B$36,INDEX(Ranks!$1:$1048576,$A238,DI$1))","v":""},{"$f":"IF($A238=\"N/A\",Ref!$B$36,INDEX(Ranks!$1:$1048576,$A238,DJ$1))","v":""},{"$f":"IF($A238=\"N/A\",Ref!$B$36,INDEX(Ranks!$1:$1048576,$A238,DK$1))","v":""},{"$f":"IF($A238=\"N/A\",Ref!$B$36,INDEX(Ranks!$1:$1048576,$A238,DL$1))","v":""},{"$f":"IF($A238=\"N/A\",Ref!$B$36,INDEX(Ranks!$1:$1048576,$A238,DM$1))","v":""},{"$f":"IF($A238=\"N/A\",Ref!$B$36,INDEX(Ranks!$1:$1048576,$A238,DN$1))","v":""},{"$f":"IF($A238=\"N/A\",Ref!$B$36,INDEX(Ranks!$1:$1048576,$A238,DO$1))","v":""},{"$f":"IF($A238=\"N/A\",Ref!$B$36,INDEX(Ranks!$1:$1048576,$A238,DP$1))","v":""},{"$f":"IF($A238=\"N/A\",Ref!$B$36,INDEX(Ranks!$1:$1048576,$A238,DQ$1))","v":""},{"$f":"IF($A238=\"N/A\",Ref!$B$36,INDEX(Ranks!$1:$1048576,$A238,DR$1))","v":""},{"$f":"IF($A238=\"N/A\",Ref!$B$36,INDEX(Ranks!$1:$1048576,$A238,DS$1))","v":""},{"$f":"IF($A238=\"N/A\",Ref!$B$36,INDEX(Ranks!$1:$1048576,$A238,DT$1))","v":""},{"$f":"IF($A238=\"N/A\",Ref!$B$36,INDEX(Ranks!$1:$1048576,$A238,DU$1))","v":""},{"$f":"IF($A238=\"N/A\",Ref!$B$36,INDEX(Ranks!$1:$1048576,$A238,DV$1))","v":""},{"$f":"IF($A238=\"N/A\",Ref!$B$36,INDEX(Ranks!$1:$1048576,$A238,DW$1))","v":""},{"$f":"IF($A238=\"N/A\",Ref!$B$36,INDEX(Ranks!$1:$1048576,$A238,DX$1))","v":""},{"$f":"IF($A238=\"N/A\",Ref!$B$36,INDEX(Ranks!$1:$1048576,$A238,DY$1))","v":""},{"$f":"IF($A238=\"N/A\",Ref!$B$36,INDEX(Ranks!$1:$1048576,$A238,DZ$1))","v":""},{"$f":"IF($A238=\"N/A\",Ref!$B$36,INDEX(Ranks!$1:$1048576,$A238,EA$1))","v":""},{"$f":"IF($A238=\"N/A\",Ref!$B$36,INDEX(Ranks!$1:$1048576,$A238,EB$1))","v":""}]
[{"$f":"IFERROR(MATCH('Portfolio Page'!L239,Ranks!L:L,0),\"N/A\")","v":"N/A"},null,{"$f":"IF($A239=\"N/A\",\"\",INDEX(Ranks!$1:$1048576,$A239,C$1))","v":""},{"$f":"IF($A239=\"N/A\",Ref!$B$36,INDEX(Ranks!$1:$1048576,$A239,D$1))","v":""},{"$f":"IF($A239=\"N/A\",Ref!$B$36,INDEX(Ranks!$1:$1048576,$A239,E$1))","v":""},{"$f":"IF($A239=\"N/A\",\"\",INDEX(Ranks!$1:$1048576,$A239,F$1))","v":""},{"$f":"IF($A239=\"N/A\",\"\",INDEX(Ranks!$1:$1048576,$A239,G$1))","v":""},{"$f":"IF($A239=\"N/A\",\"\",INDEX(Ranks!$1:$1048576,$A239,H$1))","v":""},{"$f":"IF($A239=\"N/A\",\"\",INDEX(Ranks!$1:$1048576,$A239,I$1))","v":""},{"$f":"IF($A239=\"N/A\",\"\",INDEX(Ranks!$1:$1048576,$A239,J$1))","v":""},{"$f":"IF($A239=\"N/A\",\"\",INDEX(Ranks!$1:$1048576,$A239,K$1))","v":""},null,{"$f":"IF($A239=\"N/A\",Ref!$B$36,INDEX(Ranks!$1:$1048576,$A239,M$1))","v":""},{"$f":"IF($A239=\"N/A\",Ref!$B$36,INDEX(Ranks!$1:$1048576,$A239,N$1))","v":""},{"$f":"IF($A239=\"N/A\",Ref!$B$36,INDEX(Ranks!$1:$1048576,$A239,O$1))","v":""},{"$f":"IF($A239=\"N/A\",Ref!$B$36,INDEX(Ranks!$1:$1048576,$A239,P$1))","v":""},{"$f":"IF($A239=\"N/A\",Ref!$B$36,INDEX(Ranks!$1:$1048576,$A239,Q$1))","v":""},{"$f":"IF($A239=\"N/A\",Ref!$B$36,INDEX(Ranks!$1:$1048576,$A239,R$1))","v":""},{"$f":"IF($A239=\"N/A\",Ref!$B$36,INDEX(Ranks!$1:$1048576,$A239,S$1))","v":""},{"$f":"IF($A239=\"N/A\",Ref!$B$36,INDEX(Ranks!$1:$1048576,$A239,T$1))","v":""},{"$f":"IF($A239=\"N/A\",Ref!$B$36,INDEX(Ranks!$1:$1048576,$A239,U$1))","v":""},{"$f":"IF($A239=\"N/A\",Ref!$B$36,INDEX(Ranks!$1:$1048576,$A239,V$1))","v":""},{"$f":"IF($A239=\"N/A\",Ref!$B$36,INDEX(Ranks!$1:$1048576,$A239,W$1))","v":""},{"$f":"IF($A239=\"N/A\",Ref!$B$36,INDEX(Ranks!$1:$1048576,$A239,X$1))","v":""},{"$f":"IF($A239=\"N/A\",Ref!$B$36,INDEX(Ranks!$1:$1048576,$A239,Y$1))","v":""},{"$f":"IF($A239=\"N/A\",Ref!$B$36,INDEX(Ranks!$1:$1048576,$A239,Z$1))","v":""},{"$f":"IF($A239=\"N/A\",Ref!$B$36,INDEX(Ranks!$1:$1048576,$A239,AA$1))","v":""},{"$f":"IF($A239=\"N/A\",Ref!$B$36,INDEX(Ranks!$1:$1048576,$A239,AB$1))","v":""},{"$f":"IF($A239=\"N/A\",Ref!$B$36,INDEX(Ranks!$1:$1048576,$A239,AC$1))","v":""},{"$f":"IF($A239=\"N/A\",Ref!$B$36,INDEX(Ranks!$1:$1048576,$A239,AD$1))","v":""},{"$f":"IF($A239=\"N/A\",Ref!$B$36,INDEX(Ranks!$1:$1048576,$A239,AE$1))","v":""},{"$f":"IF($A239=\"N/A\",Ref!$B$36,INDEX(Ranks!$1:$1048576,$A239,AF$1))","v":""},{"$f":"IF($A239=\"N/A\",Ref!$B$36,INDEX(Ranks!$1:$1048576,$A239,AG$1))","v":""},{"$f":"IF($A239=\"N/A\",Ref!$B$36,INDEX(Ranks!$1:$1048576,$A239,AH$1))","v":""},{"$f":"IF($A239=\"N/A\",Ref!$B$36,INDEX(Ranks!$1:$1048576,$A239,AI$1))","v":""},{"$f":"IF($A239=\"N/A\",Ref!$B$36,INDEX(Ranks!$1:$1048576,$A239,AJ$1))","v":""},{"$f":"IF($A239=\"N/A\",Ref!$B$36,INDEX(Ranks!$1:$1048576,$A239,AK$1))","v":""},{"$f":"IF($A239=\"N/A\",Ref!$B$36,INDEX(Ranks!$1:$1048576,$A239,AL$1))","v":""},{"$f":"IF($A239=\"N/A\",Ref!$B$36,INDEX(Ranks!$1:$1048576,$A239,AM$1))","v":""},{"$f":"IF($A239=\"N/A\",Ref!$B$36,INDEX(Ranks!$1:$1048576,$A239,AN$1))","v":""},{"$f":"IF($A239=\"N/A\",Ref!$B$36,INDEX(Ranks!$1:$1048576,$A239,AO$1))","v":""},{"$f":"IF($A239=\"N/A\",Ref!$B$36,INDEX(Ranks!$1:$1048576,$A239,AP$1))","v":""},{"$f":"IF($A239=\"N/A\",Ref!$B$36,INDEX(Ranks!$1:$1048576,$A239,AQ$1))","v":""},{"$f":"IF($A239=\"N/A\",Ref!$B$36,INDEX(Ranks!$1:$1048576,$A239,AR$1))","v":""},{"$f":"IF($A239=\"N/A\",Ref!$B$36,INDEX(Ranks!$1:$1048576,$A239,AS$1))","v":""},{"$f":"IF($A239=\"N/A\",Ref!$B$36,INDEX(Ranks!$1:$1048576,$A239,AT$1))","v":""},{"$f":"IF($A239=\"N/A\",Ref!$B$36,INDEX(Ranks!$1:$1048576,$A239,AU$1))","v":""},{"$f":"IF($A239=\"N/A\",Ref!$B$36,INDEX(Ranks!$1:$1048576,$A239,AV$1))","v":""},{"$f":"IF($A239=\"N/A\",Ref!$B$36,INDEX(Ranks!$1:$1048576,$A239,AW$1))","v":""},{"$f":"IF($A239=\"N/A\",Ref!$B$36,INDEX(Ranks!$1:$1048576,$A239,AX$1))","v":""},{"$f":"IF($A239=\"N/A\",Ref!$B$36,INDEX(Ranks!$1:$1048576,$A239,AY$1))","v":""},{"$f":"IF($A239=\"N/A\",Ref!$B$36,INDEX(Ranks!$1:$1048576,$A239,AZ$1))","v":""},{"$f":"IF($A239=\"N/A\",Ref!$B$36,INDEX(Ranks!$1:$1048576,$A239,BA$1))","v":""},{"$f":"IF($A239=\"N/A\",Ref!$B$36,INDEX(Ranks!$1:$1048576,$A239,BB$1))","v":""},{"$f":"IF($A239=\"N/A\",Ref!$B$36,INDEX(Ranks!$1:$1048576,$A239,BC$1))","v":""},{"$f":"IF($A239=\"N/A\",Ref!$B$36,INDEX(Ranks!$1:$1048576,$A239,BD$1))","v":""},{"$f":"IF($A239=\"N/A\",Ref!$B$36,INDEX(Ranks!$1:$1048576,$A239,BE$1))","v":""},{"$f":"IF($A239=\"N/A\",Ref!$B$36,INDEX(Ranks!$1:$1048576,$A239,BF$1))","v":""},{"$f":"IF($A239=\"N/A\",Ref!$B$36,INDEX(Ranks!$1:$1048576,$A239,BG$1))","v":""},{"$f":"IF($A239=\"N/A\",Ref!$B$36,INDEX(Ranks!$1:$1048576,$A239,BH$1))","v":""},{"$f":"IF($A239=\"N/A\",Ref!$B$36,INDEX(Ranks!$1:$1048576,$A239,BI$1))","v":""},{"$f":"IF($A239=\"N/A\",Ref!$B$36,INDEX(Ranks!$1:$1048576,$A239,BJ$1))","v":""},{"$f":"IF($A239=\"N/A\",Ref!$B$36,INDEX(Ranks!$1:$1048576,$A239,BK$1))","v":""},{"$f":"IF($A239=\"N/A\",Ref!$B$36,INDEX(Ranks!$1:$1048576,$A239,BL$1))","v":""},{"$f":"IF($A239=\"N/A\",Ref!$B$36,INDEX(Ranks!$1:$1048576,$A239,BM$1))","v":""},{"$f":"IF($A239=\"N/A\",Ref!$B$36,INDEX(Ranks!$1:$1048576,$A239,BN$1))","v":""},{"$f":"IF($A239=\"N/A\",Ref!$B$36,INDEX(Ranks!$1:$1048576,$A239,BO$1))","v":""},{"$f":"IF($A239=\"N/A\",Ref!$B$36,INDEX(Ranks!$1:$1048576,$A239,BP$1))","v":""},{"$f":"IF($A239=\"N/A\",Ref!$B$36,INDEX(Ranks!$1:$1048576,$A239,BQ$1))","v":""},{"$f":"IF($A239=\"N/A\",Ref!$B$36,INDEX(Ranks!$1:$1048576,$A239,BR$1))","v":""},{"$f":"IF($A239=\"N/A\",Ref!$B$36,INDEX(Ranks!$1:$1048576,$A239,BS$1))","v":""},{"$f":"IF($A239=\"N/A\",Ref!$B$36,INDEX(Ranks!$1:$1048576,$A239,BT$1))","v":""},{"$f":"IF($A239=\"N/A\",Ref!$B$36,INDEX(Ranks!$1:$1048576,$A239,BU$1))","v":""},{"$f":"IF($A239=\"N/A\",Ref!$B$36,INDEX(Ranks!$1:$1048576,$A239,BV$1))","v":""},{"$f":"IF($A239=\"N/A\",Ref!$B$36,INDEX(Ranks!$1:$1048576,$A239,BW$1))","v":""},{"$f":"IF($A239=\"N/A\",Ref!$B$36,INDEX(Ranks!$1:$1048576,$A239,BX$1))","v":""},{"$f":"IF($A239=\"N/A\",Ref!$B$36,INDEX(Ranks!$1:$1048576,$A239,BY$1))","v":""},{"$f":"IF($A239=\"N/A\",Ref!$B$36,INDEX(Ranks!$1:$1048576,$A239,BZ$1))","v":""},{"$f":"IF($A239=\"N/A\",Ref!$B$36,INDEX(Ranks!$1:$1048576,$A239,CA$1))","v":""},{"$f":"IF($A239=\"N/A\",Ref!$B$36,INDEX(Ranks!$1:$1048576,$A239,CB$1))","v":""},{"$f":"IF($A239=\"N/A\",Ref!$B$36,INDEX(Ranks!$1:$1048576,$A239,CC$1))","v":""},{"$f":"IF($A239=\"N/A\",Ref!$B$36,INDEX(Ranks!$1:$1048576,$A239,CD$1))","v":""},{"$f":"IF($A239=\"N/A\",Ref!$B$36,INDEX(Ranks!$1:$1048576,$A239,CE$1))","v":""},{"$f":"IF($A239=\"N/A\",Ref!$B$36,INDEX(Ranks!$1:$1048576,$A239,CF$1))","v":""},{"$f":"IF($A239=\"N/A\",Ref!$B$36,INDEX(Ranks!$1:$1048576,$A239,CG$1))","v":""},{"$f":"IF($A239=\"N/A\",Ref!$B$36,INDEX(Ranks!$1:$1048576,$A239,CH$1))","v":""},{"$f":"IF($A239=\"N/A\",Ref!$B$36,INDEX(Ranks!$1:$1048576,$A239,CI$1))","v":""},{"$f":"IF($A239=\"N/A\",Ref!$B$36,INDEX(Ranks!$1:$1048576,$A239,CJ$1))","v":""},{"$f":"IF($A239=\"N/A\",Ref!$B$36,INDEX(Ranks!$1:$1048576,$A239,CK$1))","v":""},{"$f":"IF($A239=\"N/A\",Ref!$B$36,INDEX(Ranks!$1:$1048576,$A239,CL$1))","v":""},{"$f":"IF($A239=\"N/A\",Ref!$B$36,INDEX(Ranks!$1:$1048576,$A239,CM$1))","v":""},{"$f":"IF($A239=\"N/A\",Ref!$B$36,INDEX(Ranks!$1:$1048576,$A239,CN$1))","v":""},{"$f":"IF($A239=\"N/A\",Ref!$B$36,INDEX(Ranks!$1:$1048576,$A239,CO$1))","v":""},{"$f":"IF($A239=\"N/A\",Ref!$B$36,INDEX(Ranks!$1:$1048576,$A239,CP$1))","v":""},{"$f":"IF($A239=\"N/A\",Ref!$B$36,INDEX(Ranks!$1:$1048576,$A239,CQ$1))","v":""},{"$f":"IF($A239=\"N/A\",Ref!$B$36,INDEX(Ranks!$1:$1048576,$A239,CR$1))","v":""},{"$f":"IF($A239=\"N/A\",Ref!$B$36,INDEX(Ranks!$1:$1048576,$A239,CS$1))","v":""},{"$f":"IF($A239=\"N/A\",Ref!$B$36,INDEX(Ranks!$1:$1048576,$A239,CT$1))","v":""},{"$f":"IF($A239=\"N/A\",Ref!$B$36,INDEX(Ranks!$1:$1048576,$A239,CU$1))","v":""},{"$f":"IF($A239=\"N/A\",Ref!$B$36,INDEX(Ranks!$1:$1048576,$A239,CV$1))","v":""},{"$f":"IF($A239=\"N/A\",Ref!$B$36,INDEX(Ranks!$1:$1048576,$A239,CW$1))","v":""},{"$f":"IF($A239=\"N/A\",Ref!$B$36,INDEX(Ranks!$1:$1048576,$A239,CX$1))","v":""},{"$f":"IF($A239=\"N/A\",Ref!$B$36,INDEX(Ranks!$1:$1048576,$A239,CY$1))","v":""},{"$f":"IF($A239=\"N/A\",Ref!$B$36,INDEX(Ranks!$1:$1048576,$A239,CZ$1))","v":""},{"$f":"IF($A239=\"N/A\",Ref!$B$36,INDEX(Ranks!$1:$1048576,$A239,DA$1))","v":""},{"$f":"IF($A239=\"N/A\",Ref!$B$36,INDEX(Ranks!$1:$1048576,$A239,DB$1))","v":""},{"$f":"IF($A239=\"N/A\",Ref!$B$36,INDEX(Ranks!$1:$1048576,$A239,DC$1))","v":""},{"$f":"IF($A239=\"N/A\",Ref!$B$36,INDEX(Ranks!$1:$1048576,$A239,DD$1))","v":""},{"$f":"IF($A239=\"N/A\",Ref!$B$36,INDEX(Ranks!$1:$1048576,$A239,DE$1))","v":""},{"$f":"IF($A239=\"N/A\",Ref!$B$36,INDEX(Ranks!$1:$1048576,$A239,DF$1))","v":""},{"$f":"IF($A239=\"N/A\",Ref!$B$36,INDEX(Ranks!$1:$1048576,$A239,DG$1))","v":""},{"$f":"IF($A239=\"N/A\",Ref!$B$36,INDEX(Ranks!$1:$1048576,$A239,DH$1))","v":""},{"$f":"IF($A239=\"N/A\",Ref!$B$36,INDEX(Ranks!$1:$1048576,$A239,DI$1))","v":""},{"$f":"IF($A239=\"N/A\",Ref!$B$36,INDEX(Ranks!$1:$1048576,$A239,DJ$1))","v":""},{"$f":"IF($A239=\"N/A\",Ref!$B$36,INDEX(Ranks!$1:$1048576,$A239,DK$1))","v":""},{"$f":"IF($A239=\"N/A\",Ref!$B$36,INDEX(Ranks!$1:$1048576,$A239,DL$1))","v":""},{"$f":"IF($A239=\"N/A\",Ref!$B$36,INDEX(Ranks!$1:$1048576,$A239,DM$1))","v":""},{"$f":"IF($A239=\"N/A\",Ref!$B$36,INDEX(Ranks!$1:$1048576,$A239,DN$1))","v":""},{"$f":"IF($A239=\"N/A\",Ref!$B$36,INDEX(Ranks!$1:$1048576,$A239,DO$1))","v":""},{"$f":"IF($A239=\"N/A\",Ref!$B$36,INDEX(Ranks!$1:$1048576,$A239,DP$1))","v":""},{"$f":"IF($A239=\"N/A\",Ref!$B$36,INDEX(Ranks!$1:$1048576,$A239,DQ$1))","v":""},{"$f":"IF($A239=\"N/A\",Ref!$B$36,INDEX(Ranks!$1:$1048576,$A239,DR$1))","v":""},{"$f":"IF($A239=\"N/A\",Ref!$B$36,INDEX(Ranks!$1:$1048576,$A239,DS$1))","v":""},{"$f":"IF($A239=\"N/A\",Ref!$B$36,INDEX(Ranks!$1:$1048576,$A239,DT$1))","v":""},{"$f":"IF($A239=\"N/A\",Ref!$B$36,INDEX(Ranks!$1:$1048576,$A239,DU$1))","v":""},{"$f":"IF($A239=\"N/A\",Ref!$B$36,INDEX(Ranks!$1:$1048576,$A239,DV$1))","v":""},{"$f":"IF($A239=\"N/A\",Ref!$B$36,INDEX(Ranks!$1:$1048576,$A239,DW$1))","v":""},{"$f":"IF($A239=\"N/A\",Ref!$B$36,INDEX(Ranks!$1:$1048576,$A239,DX$1))","v":""},{"$f":"IF($A239=\"N/A\",Ref!$B$36,INDEX(Ranks!$1:$1048576,$A239,DY$1))","v":""},{"$f":"IF($A239=\"N/A\",Ref!$B$36,INDEX(Ranks!$1:$1048576,$A239,DZ$1))","v":""},{"$f":"IF($A239=\"N/A\",Ref!$B$36,INDEX(Ranks!$1:$1048576,$A239,EA$1))","v":""},{"$f":"IF($A239=\"N/A\",Ref!$B$36,INDEX(Ranks!$1:$1048576,$A239,EB$1))","v":""}]
[{"$f":"IFERROR(MATCH('Portfolio Page'!L240,Ranks!L:L,0),\"N/A\")","v":"N/A"},null,{"$f":"IF($A240=\"N/A\",\"\",INDEX(Ranks!$1:$1048576,$A240,C$1))","v":""},{"$f":"IF($A240=\"N/A\",Ref!$B$36,INDEX(Ranks!$1:$1048576,$A240,D$1))","v":""},{"$f":"IF($A240=\"N/A\",Ref!$B$36,INDEX(Ranks!$1:$1048576,$A240,E$1))","v":""},{"$f":"IF($A240=\"N/A\",\"\",INDEX(Ranks!$1:$1048576,$A240,F$1))","v":""},{"$f":"IF($A240=\"N/A\",\"\",INDEX(Ranks!$1:$1048576,$A240,G$1))","v":""},{"$f":"IF($A240=\"N/A\",\"\",INDEX(Ranks!$1:$1048576,$A240,H$1))","v":""},{"$f":"IF($A240=\"N/A\",\"\",INDEX(Ranks!$1:$1048576,$A240,I$1))","v":""},{"$f":"IF($A240=\"N/A\",\"\",INDEX(Ranks!$1:$1048576,$A240,J$1))","v":""},{"$f":"IF($A240=\"N/A\",\"\",INDEX(Ranks!$1:$1048576,$A240,K$1))","v":""},null,{"$f":"IF($A240=\"N/A\",Ref!$B$36,INDEX(Ranks!$1:$1048576,$A240,M$1))","v":""},{"$f":"IF($A240=\"N/A\",Ref!$B$36,INDEX(Ranks!$1:$1048576,$A240,N$1))","v":""},{"$f":"IF($A240=\"N/A\",Ref!$B$36,INDEX(Ranks!$1:$1048576,$A240,O$1))","v":""},{"$f":"IF($A240=\"N/A\",Ref!$B$36,INDEX(Ranks!$1:$1048576,$A240,P$1))","v":""},{"$f":"IF($A240=\"N/A\",Ref!$B$36,INDEX(Ranks!$1:$1048576,$A240,Q$1))","v":""},{"$f":"IF($A240=\"N/A\",Ref!$B$36,INDEX(Ranks!$1:$1048576,$A240,R$1))","v":""},{"$f":"IF($A240=\"N/A\",Ref!$B$36,INDEX(Ranks!$1:$1048576,$A240,S$1))","v":""},{"$f":"IF($A240=\"N/A\",Ref!$B$36,INDEX(Ranks!$1:$1048576,$A240,T$1))","v":""},{"$f":"IF($A240=\"N/A\",Ref!$B$36,INDEX(Ranks!$1:$1048576,$A240,U$1))","v":""},{"$f":"IF($A240=\"N/A\",Ref!$B$36,INDEX(Ranks!$1:$1048576,$A240,V$1))","v":""},{"$f":"IF($A240=\"N/A\",Ref!$B$36,INDEX(Ranks!$1:$1048576,$A240,W$1))","v":""},{"$f":"IF($A240=\"N/A\",Ref!$B$36,INDEX(Ranks!$1:$1048576,$A240,X$1))","v":""},{"$f":"IF($A240=\"N/A\",Ref!$B$36,INDEX(Ranks!$1:$1048576,$A240,Y$1))","v":""},{"$f":"IF($A240=\"N/A\",Ref!$B$36,INDEX(Ranks!$1:$1048576,$A240,Z$1))","v":""},{"$f":"IF($A240=\"N/A\",Ref!$B$36,INDEX(Ranks!$1:$1048576,$A240,AA$1))","v":""},{"$f":"IF($A240=\"N/A\",Ref!$B$36,INDEX(Ranks!$1:$1048576,$A240,AB$1))","v":""},{"$f":"IF($A240=\"N/A\",Ref!$B$36,INDEX(Ranks!$1:$1048576,$A240,AC$1))","v":""},{"$f":"IF($A240=\"N/A\",Ref!$B$36,INDEX(Ranks!$1:$1048576,$A240,AD$1))","v":""},{"$f":"IF($A240=\"N/A\",Ref!$B$36,INDEX(Ranks!$1:$1048576,$A240,AE$1))","v":""},{"$f":"IF($A240=\"N/A\",Ref!$B$36,INDEX(Ranks!$1:$1048576,$A240,AF$1))","v":""},{"$f":"IF($A240=\"N/A\",Ref!$B$36,INDEX(Ranks!$1:$1048576,$A240,AG$1))","v":""},{"$f":"IF($A240=\"N/A\",Ref!$B$36,INDEX(Ranks!$1:$1048576,$A240,AH$1))","v":""},{"$f":"IF($A240=\"N/A\",Ref!$B$36,INDEX(Ranks!$1:$1048576,$A240,AI$1))","v":""},{"$f":"IF($A240=\"N/A\",Ref!$B$36,INDEX(Ranks!$1:$1048576,$A240,AJ$1))","v":""},{"$f":"IF($A240=\"N/A\",Ref!$B$36,INDEX(Ranks!$1:$1048576,$A240,AK$1))","v":""},{"$f":"IF($A240=\"N/A\",Ref!$B$36,INDEX(Ranks!$1:$1048576,$A240,AL$1))","v":""},{"$f":"IF($A240=\"N/A\",Ref!$B$36,INDEX(Ranks!$1:$1048576,$A240,AM$1))","v":""},{"$f":"IF($A240=\"N/A\",Ref!$B$36,INDEX(Ranks!$1:$1048576,$A240,AN$1))","v":""},{"$f":"IF($A240=\"N/A\",Ref!$B$36,INDEX(Ranks!$1:$1048576,$A240,AO$1))","v":""},{"$f":"IF($A240=\"N/A\",Ref!$B$36,INDEX(Ranks!$1:$1048576,$A240,AP$1))","v":""},{"$f":"IF($A240=\"N/A\",Ref!$B$36,INDEX(Ranks!$1:$1048576,$A240,AQ$1))","v":""},{"$f":"IF($A240=\"N/A\",Ref!$B$36,INDEX(Ranks!$1:$1048576,$A240,AR$1))","v":""},{"$f":"IF($A240=\"N/A\",Ref!$B$36,INDEX(Ranks!$1:$1048576,$A240,AS$1))","v":""},{"$f":"IF($A240=\"N/A\",Ref!$B$36,INDEX(Ranks!$1:$1048576,$A240,AT$1))","v":""},{"$f":"IF($A240=\"N/A\",Ref!$B$36,INDEX(Ranks!$1:$1048576,$A240,AU$1))","v":""},{"$f":"IF($A240=\"N/A\",Ref!$B$36,INDEX(Ranks!$1:$1048576,$A240,AV$1))","v":""},{"$f":"IF($A240=\"N/A\",Ref!$B$36,INDEX(Ranks!$1:$1048576,$A240,AW$1))","v":""},{"$f":"IF($A240=\"N/A\",Ref!$B$36,INDEX(Ranks!$1:$1048576,$A240,AX$1))","v":""},{"$f":"IF($A240=\"N/A\",Ref!$B$36,INDEX(Ranks!$1:$1048576,$A240,AY$1))","v":""},{"$f":"IF($A240=\"N/A\",Ref!$B$36,INDEX(Ranks!$1:$1048576,$A240,AZ$1))","v":""},{"$f":"IF($A240=\"N/A\",Ref!$B$36,INDEX(Ranks!$1:$1048576,$A240,BA$1))","v":""},{"$f":"IF($A240=\"N/A\",Ref!$B$36,INDEX(Ranks!$1:$1048576,$A240,BB$1))","v":""},{"$f":"IF($A240=\"N/A\",Ref!$B$36,INDEX(Ranks!$1:$1048576,$A240,BC$1))","v":""},{"$f":"IF($A240=\"N/A\",Ref!$B$36,INDEX(Ranks!$1:$1048576,$A240,BD$1))","v":""},{"$f":"IF($A240=\"N/A\",Ref!$B$36,INDEX(Ranks!$1:$1048576,$A240,BE$1))","v":""},{"$f":"IF($A240=\"N/A\",Ref!$B$36,INDEX(Ranks!$1:$1048576,$A240,BF$1))","v":""},{"$f":"IF($A240=\"N/A\",Ref!$B$36,INDEX(Ranks!$1:$1048576,$A240,BG$1))","v":""},{"$f":"IF($A240=\"N/A\",Ref!$B$36,INDEX(Ranks!$1:$1048576,$A240,BH$1))","v":""},{"$f":"IF($A240=\"N/A\",Ref!$B$36,INDEX(Ranks!$1:$1048576,$A240,BI$1))","v":""},{"$f":"IF($A240=\"N/A\",Ref!$B$36,INDEX(Ranks!$1:$1048576,$A240,BJ$1))","v":""},{"$f":"IF($A240=\"N/A\",Ref!$B$36,INDEX(Ranks!$1:$1048576,$A240,BK$1))","v":""},{"$f":"IF($A240=\"N/A\",Ref!$B$36,INDEX(Ranks!$1:$1048576,$A240,BL$1))","v":""},{"$f":"IF($A240=\"N/A\",Ref!$B$36,INDEX(Ranks!$1:$1048576,$A240,BM$1))","v":""},{"$f":"IF($A240=\"N/A\",Ref!$B$36,INDEX(Ranks!$1:$1048576,$A240,BN$1))","v":""},{"$f":"IF($A240=\"N/A\",Ref!$B$36,INDEX(Ranks!$1:$1048576,$A240,BO$1))","v":""},{"$f":"IF($A240=\"N/A\",Ref!$B$36,INDEX(Ranks!$1:$1048576,$A240,BP$1))","v":""},{"$f":"IF($A240=\"N/A\",Ref!$B$36,INDEX(Ranks!$1:$1048576,$A240,BQ$1))","v":""},{"$f":"IF($A240=\"N/A\",Ref!$B$36,INDEX(Ranks!$1:$1048576,$A240,BR$1))","v":""},{"$f":"IF($A240=\"N/A\",Ref!$B$36,INDEX(Ranks!$1:$1048576,$A240,BS$1))","v":""},{"$f":"IF($A240=\"N/A\",Ref!$B$36,INDEX(Ranks!$1:$1048576,$A240,BT$1))","v":""},{"$f":"IF($A240=\"N/A\",Ref!$B$36,INDEX(Ranks!$1:$1048576,$A240,BU$1))","v":""},{"$f":"IF($A240=\"N/A\",Ref!$B$36,INDEX(Ranks!$1:$1048576,$A240,BV$1))","v":""},{"$f":"IF($A240=\"N/A\",Ref!$B$36,INDEX(Ranks!$1:$1048576,$A240,BW$1))","v":""},{"$f":"IF($A240=\"N/A\",Ref!$B$36,INDEX(Ranks!$1:$1048576,$A240,BX$1))","v":""},{"$f":"IF($A240=\"N/A\",Ref!$B$36,INDEX(Ranks!$1:$1048576,$A240,BY$1))","v":""},{"$f":"IF($A240=\"N/A\",Ref!$B$36,INDEX(Ranks!$1:$1048576,$A240,BZ$1))","v":""},{"$f":"IF($A240=\"N/A\",Ref!$B$36,INDEX(Ranks!$1:$1048576,$A240,CA$1))","v":""},{"$f":"IF($A240=\"N/A\",Ref!$B$36,INDEX(Ranks!$1:$1048576,$A240,CB$1))","v":""},{"$f":"IF($A240=\"N/A\",Ref!$B$36,INDEX(Ranks!$1:$1048576,$A240,CC$1))","v":""},{"$f":"IF($A240=\"N/A\",Ref!$B$36,INDEX(Ranks!$1:$1048576,$A240,CD$1))","v":""},{"$f":"IF($A240=\"N/A\",Ref!$B$36,INDEX(Ranks!$1:$1048576,$A240,CE$1))","v":""},{"$f":"IF($A240=\"N/A\",Ref!$B$36,INDEX(Ranks!$1:$1048576,$A240,CF$1))","v":""},{"$f":"IF($A240=\"N/A\",Ref!$B$36,INDEX(Ranks!$1:$1048576,$A240,CG$1))","v":""},{"$f":"IF($A240=\"N/A\",Ref!$B$36,INDEX(Ranks!$1:$1048576,$A240,CH$1))","v":""},{"$f":"IF($A240=\"N/A\",Ref!$B$36,INDEX(Ranks!$1:$1048576,$A240,CI$1))","v":""},{"$f":"IF($A240=\"N/A\",Ref!$B$36,INDEX(Ranks!$1:$1048576,$A240,CJ$1))","v":""},{"$f":"IF($A240=\"N/A\",Ref!$B$36,INDEX(Ranks!$1:$1048576,$A240,CK$1))","v":""},{"$f":"IF($A240=\"N/A\",Ref!$B$36,INDEX(Ranks!$1:$1048576,$A240,CL$1))","v":""},{"$f":"IF($A240=\"N/A\",Ref!$B$36,INDEX(Ranks!$1:$1048576,$A240,CM$1))","v":""},{"$f":"IF($A240=\"N/A\",Ref!$B$36,INDEX(Ranks!$1:$1048576,$A240,CN$1))","v":""},{"$f":"IF($A240=\"N/A\",Ref!$B$36,INDEX(Ranks!$1:$1048576,$A240,CO$1))","v":""},{"$f":"IF($A240=\"N/A\",Ref!$B$36,INDEX(Ranks!$1:$1048576,$A240,CP$1))","v":""},{"$f":"IF($A240=\"N/A\",Ref!$B$36,INDEX(Ranks!$1:$1048576,$A240,CQ$1))","v":""},{"$f":"IF($A240=\"N/A\",Ref!$B$36,INDEX(Ranks!$1:$1048576,$A240,CR$1))","v":""},{"$f":"IF($A240=\"N/A\",Ref!$B$36,INDEX(Ranks!$1:$1048576,$A240,CS$1))","v":""},{"$f":"IF($A240=\"N/A\",Ref!$B$36,INDEX(Ranks!$1:$1048576,$A240,CT$1))","v":""},{"$f":"IF($A240=\"N/A\",Ref!$B$36,INDEX(Ranks!$1:$1048576,$A240,CU$1))","v":""},{"$f":"IF($A240=\"N/A\",Ref!$B$36,INDEX(Ranks!$1:$1048576,$A240,CV$1))","v":""},{"$f":"IF($A240=\"N/A\",Ref!$B$36,INDEX(Ranks!$1:$1048576,$A240,CW$1))","v":""},{"$f":"IF($A240=\"N/A\",Ref!$B$36,INDEX(Ranks!$1:$1048576,$A240,CX$1))","v":""},{"$f":"IF($A240=\"N/A\",Ref!$B$36,INDEX(Ranks!$1:$1048576,$A240,CY$1))","v":""},{"$f":"IF($A240=\"N/A\",Ref!$B$36,INDEX(Ranks!$1:$1048576,$A240,CZ$1))","v":""},{"$f":"IF($A240=\"N/A\",Ref!$B$36,INDEX(Ranks!$1:$1048576,$A240,DA$1))","v":""},{"$f":"IF($A240=\"N/A\",Ref!$B$36,INDEX(Ranks!$1:$1048576,$A240,DB$1))","v":""},{"$f":"IF($A240=\"N/A\",Ref!$B$36,INDEX(Ranks!$1:$1048576,$A240,DC$1))","v":""},{"$f":"IF($A240=\"N/A\",Ref!$B$36,INDEX(Ranks!$1:$1048576,$A240,DD$1))","v":""},{"$f":"IF($A240=\"N/A\",Ref!$B$36,INDEX(Ranks!$1:$1048576,$A240,DE$1))","v":""},{"$f":"IF($A240=\"N/A\",Ref!$B$36,INDEX(Ranks!$1:$1048576,$A240,DF$1))","v":""},{"$f":"IF($A240=\"N/A\",Ref!$B$36,INDEX(Ranks!$1:$1048576,$A240,DG$1))","v":""},{"$f":"IF($A240=\"N/A\",Ref!$B$36,INDEX(Ranks!$1:$1048576,$A240,DH$1))","v":""},{"$f":"IF($A240=\"N/A\",Ref!$B$36,INDEX(Ranks!$1:$1048576,$A240,DI$1))","v":""},{"$f":"IF($A240=\"N/A\",Ref!$B$36,INDEX(Ranks!$1:$1048576,$A240,DJ$1))","v":""},{"$f":"IF($A240=\"N/A\",Ref!$B$36,INDEX(Ranks!$1:$1048576,$A240,DK$1))","v":""},{"$f":"IF($A240=\"N/A\",Ref!$B$36,INDEX(Ranks!$1:$1048576,$A240,DL$1))","v":""},{"$f":"IF($A240=\"N/A\",Ref!$B$36,INDEX(Ranks!$1:$1048576,$A240,DM$1))","v":""},{"$f":"IF($A240=\"N/A\",Ref!$B$36,INDEX(Ranks!$1:$1048576,$A240,DN$1))","v":""},{"$f":"IF($A240=\"N/A\",Ref!$B$36,INDEX(Ranks!$1:$1048576,$A240,DO$1))","v":""},{"$f":"IF($A240=\"N/A\",Ref!$B$36,INDEX(Ranks!$1:$1048576,$A240,DP$1))","v":""},{"$f":"IF($A240=\"N/A\",Ref!$B$36,INDEX(Ranks!$1:$1048576,$A240,DQ$1))","v":""},{"$f":"IF($A240=\"N/A\",Ref!$B$36,INDEX(Ranks!$1:$1048576,$A240,DR$1))","v":""},{"$f":"IF($A240=\"N/A\",Ref!$B$36,INDEX(Ranks!$1:$1048576,$A240,DS$1))","v":""},{"$f":"IF($A240=\"N/A\",Ref!$B$36,INDEX(Ranks!$1:$1048576,$A240,DT$1))","v":""},{"$f":"IF($A240=\"N/A\",Ref!$B$36,INDEX(Ranks!$1:$1048576,$A240,DU$1))","v":""},{"$f":"IF($A240=\"N/A\",Ref!$B$36,INDEX(Ranks!$1:$1048576,$A240,DV$1))","v":""},{"$f":"IF($A240=\"N/A\",Ref!$B$36,INDEX(Ranks!$1:$1048576,$A240,DW$1))","v":""},{"$f":"IF($A240=\"N/A\",Ref!$B$36,INDEX(Ranks!$1:$1048576,$A240,DX$1))","v":""},{"$f":"IF($A240=\"N/A\",Ref!$B$36,INDEX(Ranks!$1:$1048576,$A240,DY$1))","v":""},{"$f":"IF($A240=\"N/A\",Ref!$B$36,INDEX(Ranks!$1:$1048576,$A240,DZ$1))","v":""},{"$f":"IF($A240=\"N/A\",Ref!$B$36,INDEX(Ranks!$1:$1048576,$A240,EA$1))","v":""},{"$f":"IF($A240=\"N/A\",Ref!$B$36,INDEX(Ranks!$1:$1048576,$A240,EB$1))","v":""}]
[{"$f":"IFERROR(MATCH('Portfolio Page'!L241,Ranks!L:L,0),\"N/A\")","v":"N/A"},null,{"$f":"IF($A241=\"N/A\",\"\",INDEX(Ranks!$1:$1048576,$A241,C$1))","v":""},{"$f":"IF($A241=\"N/A\",Ref!$B$36,INDEX(Ranks!$1:$1048576,$A241,D$1))","v":""},{"$f":"IF($A241=\"N/A\",Ref!$B$36,INDEX(Ranks!$1:$1048576,$A241,E$1))","v":""},{"$f":"IF($A241=\"N/A\",\"\",INDEX(Ranks!$1:$1048576,$A241,F$1))","v":""},{"$f":"IF($A241=\"N/A\",\"\",INDEX(Ranks!$1:$1048576,$A241,G$1))","v":""},{"$f":"IF($A241=\"N/A\",\"\",INDEX(Ranks!$1:$1048576,$A241,H$1))","v":""},{"$f":"IF($A241=\"N/A\",\"\",INDEX(Ranks!$1:$1048576,$A241,I$1))","v":""},{"$f":"IF($A241=\"N/A\",\"\",INDEX(Ranks!$1:$1048576,$A241,J$1))","v":""},{"$f":"IF($A241=\"N/A\",\"\",INDEX(Ranks!$1:$1048576,$A241,K$1))","v":""},null,{"$f":"IF($A241=\"N/A\",Ref!$B$36,INDEX(Ranks!$1:$1048576,$A241,M$1))","v":""},{"$f":"IF($A241=\"N/A\",Ref!$B$36,INDEX(Ranks!$1:$1048576,$A241,N$1))","v":""},{"$f":"IF($A241=\"N/A\",Ref!$B$36,INDEX(Ranks!$1:$1048576,$A241,O$1))","v":""},{"$f":"IF($A241=\"N/A\",Ref!$B$36,INDEX(Ranks!$1:$1048576,$A241,P$1))","v":""},{"$f":"IF($A241=\"N/A\",Ref!$B$36,INDEX(Ranks!$1:$1048576,$A241,Q$1))","v":""},{"$f":"IF($A241=\"N/A\",Ref!$B$36,INDEX(Ranks!$1:$1048576,$A241,R$1))","v":""},{"$f":"IF($A241=\"N/A\",Ref!$B$36,INDEX(Ranks!$1:$1048576,$A241,S$1))","v":""},{"$f":"IF($A241=\"N/A\",Ref!$B$36,INDEX(Ranks!$1:$1048576,$A241,T$1))","v":""},{"$f":"IF($A241=\"N/A\",Ref!$B$36,INDEX(Ranks!$1:$1048576,$A241,U$1))","v":""},{"$f":"IF($A241=\"N/A\",Ref!$B$36,INDEX(Ranks!$1:$1048576,$A241,V$1))","v":""},{"$f":"IF($A241=\"N/A\",Ref!$B$36,INDEX(Ranks!$1:$1048576,$A241,W$1))","v":""},{"$f":"IF($A241=\"N/A\",Ref!$B$36,INDEX(Ranks!$1:$1048576,$A241,X$1))","v":""},{"$f":"IF($A241=\"N/A\",Ref!$B$36,INDEX(Ranks!$1:$1048576,$A241,Y$1))","v":""},{"$f":"IF($A241=\"N/A\",Ref!$B$36,INDEX(Ranks!$1:$1048576,$A241,Z$1))","v":""},{"$f":"IF($A241=\"N/A\",Ref!$B$36,INDEX(Ranks!$1:$1048576,$A241,AA$1))","v":""},{"$f":"IF($A241=\"N/A\",Ref!$B$36,INDEX(Ranks!$1:$1048576,$A241,AB$1))","v":""},{"$f":"IF($A241=\"N/A\",Ref!$B$36,INDEX(Ranks!$1:$1048576,$A241,AC$1))","v":""},{"$f":"IF($A241=\"N/A\",Ref!$B$36,INDEX(Ranks!$1:$1048576,$A241,AD$1))","v":""},{"$f":"IF($A241=\"N/A\",Ref!$B$36,INDEX(Ranks!$1:$1048576,$A241,AE$1))","v":""},{"$f":"IF($A241=\"N/A\",Ref!$B$36,INDEX(Ranks!$1:$1048576,$A241,AF$1))","v":""},{"$f":"IF($A241=\"N/A\",Ref!$B$36,INDEX(Ranks!$1:$1048576,$A241,AG$1))","v":""},{"$f":"IF($A241=\"N/A\",Ref!$B$36,INDEX(Ranks!$1:$1048576,$A241,AH$1))","v":""},{"$f":"IF($A241=\"N/A\",Ref!$B$36,INDEX(Ranks!$1:$1048576,$A241,AI$1))","v":""},{"$f":"IF($A241=\"N/A\",Ref!$B$36,INDEX(Ranks!$1:$1048576,$A241,AJ$1))","v":""},{"$f":"IF($A241=\"N/A\",Ref!$B$36,INDEX(Ranks!$1:$1048576,$A241,AK$1))","v":""},{"$f":"IF($A241=\"N/A\",Ref!$B$36,INDEX(Ranks!$1:$1048576,$A241,AL$1))","v":""},{"$f":"IF($A241=\"N/A\",Ref!$B$36,INDEX(Ranks!$1:$1048576,$A241,AM$1))","v":""},{"$f":"IF($A241=\"N/A\",Ref!$B$36,INDEX(Ranks!$1:$1048576,$A241,AN$1))","v":""},{"$f":"IF($A241=\"N/A\",Ref!$B$36,INDEX(Ranks!$1:$1048576,$A241,AO$1))","v":""},{"$f":"IF($A241=\"N/A\",Ref!$B$36,INDEX(Ranks!$1:$1048576,$A241,AP$1))","v":""},{"$f":"IF($A241=\"N/A\",Ref!$B$36,INDEX(Ranks!$1:$1048576,$A241,AQ$1))","v":""},{"$f":"IF($A241=\"N/A\",Ref!$B$36,INDEX(Ranks!$1:$1048576,$A241,AR$1))","v":""},{"$f":"IF($A241=\"N/A\",Ref!$B$36,INDEX(Ranks!$1:$1048576,$A241,AS$1))","v":""},{"$f":"IF($A241=\"N/A\",Ref!$B$36,INDEX(Ranks!$1:$1048576,$A241,AT$1))","v":""},{"$f":"IF($A241=\"N/A\",Ref!$B$36,INDEX(Ranks!$1:$1048576,$A241,AU$1))","v":""},{"$f":"IF($A241=\"N/A\",Ref!$B$36,INDEX(Ranks!$1:$1048576,$A241,AV$1))","v":""},{"$f":"IF($A241=\"N/A\",Ref!$B$36,INDEX(Ranks!$1:$1048576,$A241,AW$1))","v":""},{"$f":"IF($A241=\"N/A\",Ref!$B$36,INDEX(Ranks!$1:$1048576,$A241,AX$1))","v":""},{"$f":"IF($A241=\"N/A\",Ref!$B$36,INDEX(Ranks!$1:$1048576,$A241,AY$1))","v":""},{"$f":"IF($A241=\"N/A\",Ref!$B$36,INDEX(Ranks!$1:$1048576,$A241,AZ$1))","v":""},{"$f":"IF($A241=\"N/A\",Ref!$B$36,INDEX(Ranks!$1:$1048576,$A241,BA$1))","v":""},{"$f":"IF($A241=\"N/A\",Ref!$B$36,INDEX(Ranks!$1:$1048576,$A241,BB$1))","v":""},{"$f":"IF($A241=\"N/A\",Ref!$B$36,INDEX(Ranks!$1:$1048576,$A241,BC$1))","v":""},{"$f":"IF($A241=\"N/A\",Ref!$B$36,INDEX(Ranks!$1:$1048576,$A241,BD$1))","v":""},{"$f":"IF($A241=\"N/A\",Ref!$B$36,INDEX(Ranks!$1:$1048576,$A241,BE$1))","v":""},{"$f":"IF($A241=\"N/A\",Ref!$B$36,INDEX(Ranks!$1:$1048576,$A241,BF$1))","v":""},{"$f":"IF($A241=\"N/A\",Ref!$B$36,INDEX(Ranks!$1:$1048576,$A241,BG$1))","v":""},{"$f":"IF($A241=\"N/A\",Ref!$B$36,INDEX(Ranks!$1:$1048576,$A241,BH$1))","v":""},{"$f":"IF($A241=\"N/A\",Ref!$B$36,INDEX(Ranks!$1:$1048576,$A241,BI$1))","v":""},{"$f":"IF($A241=\"N/A\",Ref!$B$36,INDEX(Ranks!$1:$1048576,$A241,BJ$1))","v":""},{"$f":"IF($A241=\"N/A\",Ref!$B$36,INDEX(Ranks!$1:$1048576,$A241,BK$1))","v":""},{"$f":"IF($A241=\"N/A\",Ref!$B$36,INDEX(Ranks!$1:$1048576,$A241,BL$1))","v":""},{"$f":"IF($A241=\"N/A\",Ref!$B$36,INDEX(Ranks!$1:$1048576,$A241,BM$1))","v":""},{"$f":"IF($A241=\"N/A\",Ref!$B$36,INDEX(Ranks!$1:$1048576,$A241,BN$1))","v":""},{"$f":"IF($A241=\"N/A\",Ref!$B$36,INDEX(Ranks!$1:$1048576,$A241,BO$1))","v":""},{"$f":"IF($A241=\"N/A\",Ref!$B$36,INDEX(Ranks!$1:$1048576,$A241,BP$1))","v":""},{"$f":"IF($A241=\"N/A\",Ref!$B$36,INDEX(Ranks!$1:$1048576,$A241,BQ$1))","v":""},{"$f":"IF($A241=\"N/A\",Ref!$B$36,INDEX(Ranks!$1:$1048576,$A241,BR$1))","v":""},{"$f":"IF($A241=\"N/A\",Ref!$B$36,INDEX(Ranks!$1:$1048576,$A241,BS$1))","v":""},{"$f":"IF($A241=\"N/A\",Ref!$B$36,INDEX(Ranks!$1:$1048576,$A241,BT$1))","v":""},{"$f":"IF($A241=\"N/A\",Ref!$B$36,INDEX(Ranks!$1:$1048576,$A241,BU$1))","v":""},{"$f":"IF($A241=\"N/A\",Ref!$B$36,INDEX(Ranks!$1:$1048576,$A241,BV$1))","v":""},{"$f":"IF($A241=\"N/A\",Ref!$B$36,INDEX(Ranks!$1:$1048576,$A241,BW$1))","v":""},{"$f":"IF($A241=\"N/A\",Ref!$B$36,INDEX(Ranks!$1:$1048576,$A241,BX$1))","v":""},{"$f":"IF($A241=\"N/A\",Ref!$B$36,INDEX(Ranks!$1:$1048576,$A241,BY$1))","v":""},{"$f":"IF($A241=\"N/A\",Ref!$B$36,INDEX(Ranks!$1:$1048576,$A241,BZ$1))","v":""},{"$f":"IF($A241=\"N/A\",Ref!$B$36,INDEX(Ranks!$1:$1048576,$A241,CA$1))","v":""},{"$f":"IF($A241=\"N/A\",Ref!$B$36,INDEX(Ranks!$1:$1048576,$A241,CB$1))","v":""},{"$f":"IF($A241=\"N/A\",Ref!$B$36,INDEX(Ranks!$1:$1048576,$A241,CC$1))","v":""},{"$f":"IF($A241=\"N/A\",Ref!$B$36,INDEX(Ranks!$1:$1048576,$A241,CD$1))","v":""},{"$f":"IF($A241=\"N/A\",Ref!$B$36,INDEX(Ranks!$1:$1048576,$A241,CE$1))","v":""},{"$f":"IF($A241=\"N/A\",Ref!$B$36,INDEX(Ranks!$1:$1048576,$A241,CF$1))","v":""},{"$f":"IF($A241=\"N/A\",Ref!$B$36,INDEX(Ranks!$1:$1048576,$A241,CG$1))","v":""},{"$f":"IF($A241=\"N/A\",Ref!$B$36,INDEX(Ranks!$1:$1048576,$A241,CH$1))","v":""},{"$f":"IF($A241=\"N/A\",Ref!$B$36,INDEX(Ranks!$1:$1048576,$A241,CI$1))","v":""},{"$f":"IF($A241=\"N/A\",Ref!$B$36,INDEX(Ranks!$1:$1048576,$A241,CJ$1))","v":""},{"$f":"IF($A241=\"N/A\",Ref!$B$36,INDEX(Ranks!$1:$1048576,$A241,CK$1))","v":""},{"$f":"IF($A241=\"N/A\",Ref!$B$36,INDEX(Ranks!$1:$1048576,$A241,CL$1))","v":""},{"$f":"IF($A241=\"N/A\",Ref!$B$36,INDEX(Ranks!$1:$1048576,$A241,CM$1))","v":""},{"$f":"IF($A241=\"N/A\",Ref!$B$36,INDEX(Ranks!$1:$1048576,$A241,CN$1))","v":""},{"$f":"IF($A241=\"N/A\",Ref!$B$36,INDEX(Ranks!$1:$1048576,$A241,CO$1))","v":""},{"$f":"IF($A241=\"N/A\",Ref!$B$36,INDEX(Ranks!$1:$1048576,$A241,CP$1))","v":""},{"$f":"IF($A241=\"N/A\",Ref!$B$36,INDEX(Ranks!$1:$1048576,$A241,CQ$1))","v":""},{"$f":"IF($A241=\"N/A\",Ref!$B$36,INDEX(Ranks!$1:$1048576,$A241,CR$1))","v":""},{"$f":"IF($A241=\"N/A\",Ref!$B$36,INDEX(Ranks!$1:$1048576,$A241,CS$1))","v":""},{"$f":"IF($A241=\"N/A\",Ref!$B$36,INDEX(Ranks!$1:$1048576,$A241,CT$1))","v":""},{"$f":"IF($A241=\"N/A\",Ref!$B$36,INDEX(Ranks!$1:$1048576,$A241,CU$1))","v":""},{"$f":"IF($A241=\"N/A\",Ref!$B$36,INDEX(Ranks!$1:$1048576,$A241,CV$1))","v":""},{"$f":"IF($A241=\"N/A\",Ref!$B$36,INDEX(Ranks!$1:$1048576,$A241,CW$1))","v":""},{"$f":"IF($A241=\"N/A\",Ref!$B$36,INDEX(Ranks!$1:$1048576,$A241,CX$1))","v":""},{"$f":"IF($A241=\"N/A\",Ref!$B$36,INDEX(Ranks!$1:$1048576,$A241,CY$1))","v":""},{"$f":"IF($A241=\"N/A\",Ref!$B$36,INDEX(Ranks!$1:$1048576,$A241,CZ$1))","v":""},{"$f":"IF($A241=\"N/A\",Ref!$B$36,INDEX(Ranks!$1:$1048576,$A241,DA$1))","v":""},{"$f":"IF($A241=\"N/A\",Ref!$B$36,INDEX(Ranks!$1:$1048576,$A241,DB$1))","v":""},{"$f":"IF($A241=\"N/A\",Ref!$B$36,INDEX(Ranks!$1:$1048576,$A241,DC$1))","v":""},{"$f":"IF($A241=\"N/A\",Ref!$B$36,INDEX(Ranks!$1:$1048576,$A241,DD$1))","v":""},{"$f":"IF($A241=\"N/A\",Ref!$B$36,INDEX(Ranks!$1:$1048576,$A241,DE$1))","v":""},{"$f":"IF($A241=\"N/A\",Ref!$B$36,INDEX(Ranks!$1:$1048576,$A241,DF$1))","v":""},{"$f":"IF($A241=\"N/A\",Ref!$B$36,INDEX(Ranks!$1:$1048576,$A241,DG$1))","v":""},{"$f":"IF($A241=\"N/A\",Ref!$B$36,INDEX(Ranks!$1:$1048576,$A241,DH$1))","v":""},{"$f":"IF($A241=\"N/A\",Ref!$B$36,INDEX(Ranks!$1:$1048576,$A241,DI$1))","v":""},{"$f":"IF($A241=\"N/A\",Ref!$B$36,INDEX(Ranks!$1:$1048576,$A241,DJ$1))","v":""},{"$f":"IF($A241=\"N/A\",Ref!$B$36,INDEX(Ranks!$1:$1048576,$A241,DK$1))","v":""},{"$f":"IF($A241=\"N/A\",Ref!$B$36,INDEX(Ranks!$1:$1048576,$A241,DL$1))","v":""},{"$f":"IF($A241=\"N/A\",Ref!$B$36,INDEX(Ranks!$1:$1048576,$A241,DM$1))","v":""},{"$f":"IF($A241=\"N/A\",Ref!$B$36,INDEX(Ranks!$1:$1048576,$A241,DN$1))","v":""},{"$f":"IF($A241=\"N/A\",Ref!$B$36,INDEX(Ranks!$1:$1048576,$A241,DO$1))","v":""},{"$f":"IF($A241=\"N/A\",Ref!$B$36,INDEX(Ranks!$1:$1048576,$A241,DP$1))","v":""},{"$f":"IF($A241=\"N/A\",Ref!$B$36,INDEX(Ranks!$1:$1048576,$A241,DQ$1))","v":""},{"$f":"IF($A241=\"N/A\",Ref!$B$36,INDEX(Ranks!$1:$1048576,$A241,DR$1))","v":""},{"$f":"IF($A241=\"N/A\",Ref!$B$36,INDEX(Ranks!$1:$1048576,$A241,DS$1))","v":""},{"$f":"IF($A241=\"N/A\",Ref!$B$36,INDEX(Ranks!$1:$1048576,$A241,DT$1))","v":""},{"$f":"IF($A241=\"N/A\",Ref!$B$36,INDEX(Ranks!$1:$1048576,$A241,DU$1))","v":""},{"$f":"IF($A241=\"N/A\",Ref!$B$36,INDEX(Ranks!$1:$1048576,$A241,DV$1))","v":""},{"$f":"IF($A241=\"N/A\",Ref!$B$36,INDEX(Ranks!$1:$1048576,$A241,DW$1))","v":""},{"$f":"IF($A241=\"N/A\",Ref!$B$36,INDEX(Ranks!$1:$1048576,$A241,DX$1))","v":""},{"$f":"IF($A241=\"N/A\",Ref!$B$36,INDEX(Ranks!$1:$1048576,$A241,DY$1))","v":""},{"$f":"IF($A241=\"N/A\",Ref!$B$36,INDEX(Ranks!$1:$1048576,$A241,DZ$1))","v":""},{"$f":"IF($A241=\"N/A\",Ref!$B$36,INDEX(Ranks!$1:$1048576,$A241,EA$1))","v":""},{"$f":"IF($A241=\"N/A\",Ref!$B$36,INDEX(Ranks!$1:$1048576,$A241,EB$1))","v":""}]
[{"$f":"IFERROR(MATCH('Portfolio Page'!L242,Ranks!L:L,0),\"N/A\")","v":"N/A"},null,{"$f":"IF($A242=\"N/A\",\"\",INDEX(Ranks!$1:$1048576,$A242,C$1))","v":""},{"$f":"IF($A242=\"N/A\",Ref!$B$36,INDEX(Ranks!$1:$1048576,$A242,D$1))","v":""},{"$f":"IF($A242=\"N/A\",Ref!$B$36,INDEX(Ranks!$1:$1048576,$A242,E$1))","v":""},{"$f":"IF($A242=\"N/A\",\"\",INDEX(Ranks!$1:$1048576,$A242,F$1))","v":""},{"$f":"IF($A242=\"N/A\",\"\",INDEX(Ranks!$1:$1048576,$A242,G$1))","v":""},{"$f":"IF($A242=\"N/A\",\"\",INDEX(Ranks!$1:$1048576,$A242,H$1))","v":""},{"$f":"IF($A242=\"N/A\",\"\",INDEX(Ranks!$1:$1048576,$A242,I$1))","v":""},{"$f":"IF($A242=\"N/A\",\"\",INDEX(Ranks!$1:$1048576,$A242,J$1))","v":""},{"$f":"IF($A242=\"N/A\",\"\",INDEX(Ranks!$1:$1048576,$A242,K$1))","v":""},null,{"$f":"IF($A242=\"N/A\",Ref!$B$36,INDEX(Ranks!$1:$1048576,$A242,M$1))","v":""},{"$f":"IF($A242=\"N/A\",Ref!$B$36,INDEX(Ranks!$1:$1048576,$A242,N$1))","v":""},{"$f":"IF($A242=\"N/A\",Ref!$B$36,INDEX(Ranks!$1:$1048576,$A242,O$1))","v":""},{"$f":"IF($A242=\"N/A\",Ref!$B$36,INDEX(Ranks!$1:$1048576,$A242,P$1))","v":""},{"$f":"IF($A242=\"N/A\",Ref!$B$36,INDEX(Ranks!$1:$1048576,$A242,Q$1))","v":""},{"$f":"IF($A242=\"N/A\",Ref!$B$36,INDEX(Ranks!$1:$1048576,$A242,R$1))","v":""},{"$f":"IF($A242=\"N/A\",Ref!$B$36,INDEX(Ranks!$1:$1048576,$A242,S$1))","v":""},{"$f":"IF($A242=\"N/A\",Ref!$B$36,INDEX(Ranks!$1:$1048576,$A242,T$1))","v":""},{"$f":"IF($A242=\"N/A\",Ref!$B$36,INDEX(Ranks!$1:$1048576,$A242,U$1))","v":""},{"$f":"IF($A242=\"N/A\",Ref!$B$36,INDEX(Ranks!$1:$1048576,$A242,V$1))","v":""},{"$f":"IF($A242=\"N/A\",Ref!$B$36,INDEX(Ranks!$1:$1048576,$A242,W$1))","v":""},{"$f":"IF($A242=\"N/A\",Ref!$B$36,INDEX(Ranks!$1:$1048576,$A242,X$1))","v":""},{"$f":"IF($A242=\"N/A\",Ref!$B$36,INDEX(Ranks!$1:$1048576,$A242,Y$1))","v":""},{"$f":"IF($A242=\"N/A\",Ref!$B$36,INDEX(Ranks!$1:$1048576,$A242,Z$1))","v":""},{"$f":"IF($A242=\"N/A\",Ref!$B$36,INDEX(Ranks!$1:$1048576,$A242,AA$1))","v":""},{"$f":"IF($A242=\"N/A\",Ref!$B$36,INDEX(Ranks!$1:$1048576,$A242,AB$1))","v":""},{"$f":"IF($A242=\"N/A\",Ref!$B$36,INDEX(Ranks!$1:$1048576,$A242,AC$1))","v":""},{"$f":"IF($A242=\"N/A\",Ref!$B$36,INDEX(Ranks!$1:$1048576,$A242,AD$1))","v":""},{"$f":"IF($A242=\"N/A\",Ref!$B$36,INDEX(Ranks!$1:$1048576,$A242,AE$1))","v":""},{"$f":"IF($A242=\"N/A\",Ref!$B$36,INDEX(Ranks!$1:$1048576,$A242,AF$1))","v":""},{"$f":"IF($A242=\"N/A\",Ref!$B$36,INDEX(Ranks!$1:$1048576,$A242,AG$1))","v":""},{"$f":"IF($A242=\"N/A\",Ref!$B$36,INDEX(Ranks!$1:$1048576,$A242,AH$1))","v":""},{"$f":"IF($A242=\"N/A\",Ref!$B$36,INDEX(Ranks!$1:$1048576,$A242,AI$1))","v":""},{"$f":"IF($A242=\"N/A\",Ref!$B$36,INDEX(Ranks!$1:$1048576,$A242,AJ$1))","v":""},{"$f":"IF($A242=\"N/A\",Ref!$B$36,INDEX(Ranks!$1:$1048576,$A242,AK$1))","v":""},{"$f":"IF($A242=\"N/A\",Ref!$B$36,INDEX(Ranks!$1:$1048576,$A242,AL$1))","v":""},{"$f":"IF($A242=\"N/A\",Ref!$B$36,INDEX(Ranks!$1:$1048576,$A242,AM$1))","v":""},{"$f":"IF($A242=\"N/A\",Ref!$B$36,INDEX(Ranks!$1:$1048576,$A242,AN$1))","v":""},{"$f":"IF($A242=\"N/A\",Ref!$B$36,INDEX(Ranks!$1:$1048576,$A242,AO$1))","v":""},{"$f":"IF($A242=\"N/A\",Ref!$B$36,INDEX(Ranks!$1:$1048576,$A242,AP$1))","v":""},{"$f":"IF($A242=\"N/A\",Ref!$B$36,INDEX(Ranks!$1:$1048576,$A242,AQ$1))","v":""},{"$f":"IF($A242=\"N/A\",Ref!$B$36,INDEX(Ranks!$1:$1048576,$A242,AR$1))","v":""},{"$f":"IF($A242=\"N/A\",Ref!$B$36,INDEX(Ranks!$1:$1048576,$A242,AS$1))","v":""},{"$f":"IF($A242=\"N/A\",Ref!$B$36,INDEX(Ranks!$1:$1048576,$A242,AT$1))","v":""},{"$f":"IF($A242=\"N/A\",Ref!$B$36,INDEX(Ranks!$1:$1048576,$A242,AU$1))","v":""},{"$f":"IF($A242=\"N/A\",Ref!$B$36,INDEX(Ranks!$1:$1048576,$A242,AV$1))","v":""},{"$f":"IF($A242=\"N/A\",Ref!$B$36,INDEX(Ranks!$1:$1048576,$A242,AW$1))","v":""},{"$f":"IF($A242=\"N/A\",Ref!$B$36,INDEX(Ranks!$1:$1048576,$A242,AX$1))","v":""},{"$f":"IF($A242=\"N/A\",Ref!$B$36,INDEX(Ranks!$1:$1048576,$A242,AY$1))","v":""},{"$f":"IF($A242=\"N/A\",Ref!$B$36,INDEX(Ranks!$1:$1048576,$A242,AZ$1))","v":""},{"$f":"IF($A242=\"N/A\",Ref!$B$36,INDEX(Ranks!$1:$1048576,$A242,BA$1))","v":""},{"$f":"IF($A242=\"N/A\",Ref!$B$36,INDEX(Ranks!$1:$1048576,$A242,BB$1))","v":""},{"$f":"IF($A242=\"N/A\",Ref!$B$36,INDEX(Ranks!$1:$1048576,$A242,BC$1))","v":""},{"$f":"IF($A242=\"N/A\",Ref!$B$36,INDEX(Ranks!$1:$1048576,$A242,BD$1))","v":""},{"$f":"IF($A242=\"N/A\",Ref!$B$36,INDEX(Ranks!$1:$1048576,$A242,BE$1))","v":""},{"$f":"IF($A242=\"N/A\",Ref!$B$36,INDEX(Ranks!$1:$1048576,$A242,BF$1))","v":""},{"$f":"IF($A242=\"N/A\",Ref!$B$36,INDEX(Ranks!$1:$1048576,$A242,BG$1))","v":""},{"$f":"IF($A242=\"N/A\",Ref!$B$36,INDEX(Ranks!$1:$1048576,$A242,BH$1))","v":""},{"$f":"IF($A242=\"N/A\",Ref!$B$36,INDEX(Ranks!$1:$1048576,$A242,BI$1))","v":""},{"$f":"IF($A242=\"N/A\",Ref!$B$36,INDEX(Ranks!$1:$1048576,$A242,BJ$1))","v":""},{"$f":"IF($A242=\"N/A\",Ref!$B$36,INDEX(Ranks!$1:$1048576,$A242,BK$1))","v":""},{"$f":"IF($A242=\"N/A\",Ref!$B$36,INDEX(Ranks!$1:$1048576,$A242,BL$1))","v":""},{"$f":"IF($A242=\"N/A\",Ref!$B$36,INDEX(Ranks!$1:$1048576,$A242,BM$1))","v":""},{"$f":"IF($A242=\"N/A\",Ref!$B$36,INDEX(Ranks!$1:$1048576,$A242,BN$1))","v":""},{"$f":"IF($A242=\"N/A\",Ref!$B$36,INDEX(Ranks!$1:$1048576,$A242,BO$1))","v":""},{"$f":"IF($A242=\"N/A\",Ref!$B$36,INDEX(Ranks!$1:$1048576,$A242,BP$1))","v":""},{"$f":"IF($A242=\"N/A\",Ref!$B$36,INDEX(Ranks!$1:$1048576,$A242,BQ$1))","v":""},{"$f":"IF($A242=\"N/A\",Ref!$B$36,INDEX(Ranks!$1:$1048576,$A242,BR$1))","v":""},{"$f":"IF($A242=\"N/A\",Ref!$B$36,INDEX(Ranks!$1:$1048576,$A242,BS$1))","v":""},{"$f":"IF($A242=\"N/A\",Ref!$B$36,INDEX(Ranks!$1:$1048576,$A242,BT$1))","v":""},{"$f":"IF($A242=\"N/A\",Ref!$B$36,INDEX(Ranks!$1:$1048576,$A242,BU$1))","v":""},{"$f":"IF($A242=\"N/A\",Ref!$B$36,INDEX(Ranks!$1:$1048576,$A242,BV$1))","v":""},{"$f":"IF($A242=\"N/A\",Ref!$B$36,INDEX(Ranks!$1:$1048576,$A242,BW$1))","v":""},{"$f":"IF($A242=\"N/A\",Ref!$B$36,INDEX(Ranks!$1:$1048576,$A242,BX$1))","v":""},{"$f":"IF($A242=\"N/A\",Ref!$B$36,INDEX(Ranks!$1:$1048576,$A242,BY$1))","v":""},{"$f":"IF($A242=\"N/A\",Ref!$B$36,INDEX(Ranks!$1:$1048576,$A242,BZ$1))","v":""},{"$f":"IF($A242=\"N/A\",Ref!$B$36,INDEX(Ranks!$1:$1048576,$A242,CA$1))","v":""},{"$f":"IF($A242=\"N/A\",Ref!$B$36,INDEX(Ranks!$1:$1048576,$A242,CB$1))","v":""},{"$f":"IF($A242=\"N/A\",Ref!$B$36,INDEX(Ranks!$1:$1048576,$A242,CC$1))","v":""},{"$f":"IF($A242=\"N/A\",Ref!$B$36,INDEX(Ranks!$1:$1048576,$A242,CD$1))","v":""},{"$f":"IF($A242=\"N/A\",Ref!$B$36,INDEX(Ranks!$1:$1048576,$A242,CE$1))","v":""},{"$f":"IF($A242=\"N/A\",Ref!$B$36,INDEX(Ranks!$1:$1048576,$A242,CF$1))","v":""},{"$f":"IF($A242=\"N/A\",Ref!$B$36,INDEX(Ranks!$1:$1048576,$A242,CG$1))","v":""},{"$f":"IF($A242=\"N/A\",Ref!$B$36,INDEX(Ranks!$1:$1048576,$A242,CH$1))","v":""},{"$f":"IF($A242=\"N/A\",Ref!$B$36,INDEX(Ranks!$1:$1048576,$A242,CI$1))","v":""},{"$f":"IF($A242=\"N/A\",Ref!$B$36,INDEX(Ranks!$1:$1048576,$A242,CJ$1))","v":""},{"$f":"IF($A242=\"N/A\",Ref!$B$36,INDEX(Ranks!$1:$1048576,$A242,CK$1))","v":""},{"$f":"IF($A242=\"N/A\",Ref!$B$36,INDEX(Ranks!$1:$1048576,$A242,CL$1))","v":""},{"$f":"IF($A242=\"N/A\",Ref!$B$36,INDEX(Ranks!$1:$1048576,$A242,CM$1))","v":""},{"$f":"IF($A242=\"N/A\",Ref!$B$36,INDEX(Ranks!$1:$1048576,$A242,CN$1))","v":""},{"$f":"IF($A242=\"N/A\",Ref!$B$36,INDEX(Ranks!$1:$1048576,$A242,CO$1))","v":""},{"$f":"IF($A242=\"N/A\",Ref!$B$36,INDEX(Ranks!$1:$1048576,$A242,CP$1))","v":""},{"$f":"IF($A242=\"N/A\",Ref!$B$36,INDEX(Ranks!$1:$1048576,$A242,CQ$1))","v":""},{"$f":"IF($A242=\"N/A\",Ref!$B$36,INDEX(Ranks!$1:$1048576,$A242,CR$1))","v":""},{"$f":"IF($A242=\"N/A\",Ref!$B$36,INDEX(Ranks!$1:$1048576,$A242,CS$1))","v":""},{"$f":"IF($A242=\"N/A\",Ref!$B$36,INDEX(Ranks!$1:$1048576,$A242,CT$1))","v":""},{"$f":"IF($A242=\"N/A\",Ref!$B$36,INDEX(Ranks!$1:$1048576,$A242,CU$1))","v":""},{"$f":"IF($A242=\"N/A\",Ref!$B$36,INDEX(Ranks!$1:$1048576,$A242,CV$1))","v":""},{"$f":"IF($A242=\"N/A\",Ref!$B$36,INDEX(Ranks!$1:$1048576,$A242,CW$1))","v":""},{"$f":"IF($A242=\"N/A\",Ref!$B$36,INDEX(Ranks!$1:$1048576,$A242,CX$1))","v":""},{"$f":"IF($A242=\"N/A\",Ref!$B$36,INDEX(Ranks!$1:$1048576,$A242,CY$1))","v":""},{"$f":"IF($A242=\"N/A\",Ref!$B$36,INDEX(Ranks!$1:$1048576,$A242,CZ$1))","v":""},{"$f":"IF($A242=\"N/A\",Ref!$B$36,INDEX(Ranks!$1:$1048576,$A242,DA$1))","v":""},{"$f":"IF($A242=\"N/A\",Ref!$B$36,INDEX(Ranks!$1:$1048576,$A242,DB$1))","v":""},{"$f":"IF($A242=\"N/A\",Ref!$B$36,INDEX(Ranks!$1:$1048576,$A242,DC$1))","v":""},{"$f":"IF($A242=\"N/A\",Ref!$B$36,INDEX(Ranks!$1:$1048576,$A242,DD$1))","v":""},{"$f":"IF($A242=\"N/A\",Ref!$B$36,INDEX(Ranks!$1:$1048576,$A242,DE$1))","v":""},{"$f":"IF($A242=\"N/A\",Ref!$B$36,INDEX(Ranks!$1:$1048576,$A242,DF$1))","v":""},{"$f":"IF($A242=\"N/A\",Ref!$B$36,INDEX(Ranks!$1:$1048576,$A242,DG$1))","v":""},{"$f":"IF($A242=\"N/A\",Ref!$B$36,INDEX(Ranks!$1:$1048576,$A242,DH$1))","v":""},{"$f":"IF($A242=\"N/A\",Ref!$B$36,INDEX(Ranks!$1:$1048576,$A242,DI$1))","v":""},{"$f":"IF($A242=\"N/A\",Ref!$B$36,INDEX(Ranks!$1:$1048576,$A242,DJ$1))","v":""},{"$f":"IF($A242=\"N/A\",Ref!$B$36,INDEX(Ranks!$1:$1048576,$A242,DK$1))","v":""},{"$f":"IF($A242=\"N/A\",Ref!$B$36,INDEX(Ranks!$1:$1048576,$A242,DL$1))","v":""},{"$f":"IF($A242=\"N/A\",Ref!$B$36,INDEX(Ranks!$1:$1048576,$A242,DM$1))","v":""},{"$f":"IF($A242=\"N/A\",Ref!$B$36,INDEX(Ranks!$1:$1048576,$A242,DN$1))","v":""},{"$f":"IF($A242=\"N/A\",Ref!$B$36,INDEX(Ranks!$1:$1048576,$A242,DO$1))","v":""},{"$f":"IF($A242=\"N/A\",Ref!$B$36,INDEX(Ranks!$1:$1048576,$A242,DP$1))","v":""},{"$f":"IF($A242=\"N/A\",Ref!$B$36,INDEX(Ranks!$1:$1048576,$A242,DQ$1))","v":""},{"$f":"IF($A242=\"N/A\",Ref!$B$36,INDEX(Ranks!$1:$1048576,$A242,DR$1))","v":""},{"$f":"IF($A242=\"N/A\",Ref!$B$36,INDEX(Ranks!$1:$1048576,$A242,DS$1))","v":""},{"$f":"IF($A242=\"N/A\",Ref!$B$36,INDEX(Ranks!$1:$1048576,$A242,DT$1))","v":""},{"$f":"IF($A242=\"N/A\",Ref!$B$36,INDEX(Ranks!$1:$1048576,$A242,DU$1))","v":""},{"$f":"IF($A242=\"N/A\",Ref!$B$36,INDEX(Ranks!$1:$1048576,$A242,DV$1))","v":""},{"$f":"IF($A242=\"N/A\",Ref!$B$36,INDEX(Ranks!$1:$1048576,$A242,DW$1))","v":""},{"$f":"IF($A242=\"N/A\",Ref!$B$36,INDEX(Ranks!$1:$1048576,$A242,DX$1))","v":""},{"$f":"IF($A242=\"N/A\",Ref!$B$36,INDEX(Ranks!$1:$1048576,$A242,DY$1))","v":""},{"$f":"IF($A242=\"N/A\",Ref!$B$36,INDEX(Ranks!$1:$1048576,$A242,DZ$1))","v":""},{"$f":"IF($A242=\"N/A\",Ref!$B$36,INDEX(Ranks!$1:$1048576,$A242,EA$1))","v":""},{"$f":"IF($A242=\"N/A\",Ref!$B$36,INDEX(Ranks!$1:$1048576,$A242,EB$1))","v":""}]
[{"$f":"IFERROR(MATCH('Portfolio Page'!L243,Ranks!L:L,0),\"N/A\")","v":"N/A"},null,{"$f":"IF($A243=\"N/A\",\"\",INDEX(Ranks!$1:$1048576,$A243,C$1))","v":""},{"$f":"IF($A243=\"N/A\",Ref!$B$36,INDEX(Ranks!$1:$1048576,$A243,D$1))","v":""},{"$f":"IF($A243=\"N/A\",Ref!$B$36,INDEX(Ranks!$1:$1048576,$A243,E$1))","v":""},{"$f":"IF($A243=\"N/A\",\"\",INDEX(Ranks!$1:$1048576,$A243,F$1))","v":""},{"$f":"IF($A243=\"N/A\",\"\",INDEX(Ranks!$1:$1048576,$A243,G$1))","v":""},{"$f":"IF($A243=\"N/A\",\"\",INDEX(Ranks!$1:$1048576,$A243,H$1))","v":""},{"$f":"IF($A243=\"N/A\",\"\",INDEX(Ranks!$1:$1048576,$A243,I$1))","v":""},{"$f":"IF($A243=\"N/A\",\"\",INDEX(Ranks!$1:$1048576,$A243,J$1))","v":""},{"$f":"IF($A243=\"N/A\",\"\",INDEX(Ranks!$1:$1048576,$A243,K$1))","v":""},null,{"$f":"IF($A243=\"N/A\",Ref!$B$36,INDEX(Ranks!$1:$1048576,$A243,M$1))","v":""},{"$f":"IF($A243=\"N/A\",Ref!$B$36,INDEX(Ranks!$1:$1048576,$A243,N$1))","v":""},{"$f":"IF($A243=\"N/A\",Ref!$B$36,INDEX(Ranks!$1:$1048576,$A243,O$1))","v":""},{"$f":"IF($A243=\"N/A\",Ref!$B$36,INDEX(Ranks!$1:$1048576,$A243,P$1))","v":""},{"$f":"IF($A243=\"N/A\",Ref!$B$36,INDEX(Ranks!$1:$1048576,$A243,Q$1))","v":""},{"$f":"IF($A243=\"N/A\",Ref!$B$36,INDEX(Ranks!$1:$1048576,$A243,R$1))","v":""},{"$f":"IF($A243=\"N/A\",Ref!$B$36,INDEX(Ranks!$1:$1048576,$A243,S$1))","v":""},{"$f":"IF($A243=\"N/A\",Ref!$B$36,INDEX(Ranks!$1:$1048576,$A243,T$1))","v":""},{"$f":"IF($A243=\"N/A\",Ref!$B$36,INDEX(Ranks!$1:$1048576,$A243,U$1))","v":""},{"$f":"IF($A243=\"N/A\",Ref!$B$36,INDEX(Ranks!$1:$1048576,$A243,V$1))","v":""},{"$f":"IF($A243=\"N/A\",Ref!$B$36,INDEX(Ranks!$1:$1048576,$A243,W$1))","v":""},{"$f":"IF($A243=\"N/A\",Ref!$B$36,INDEX(Ranks!$1:$1048576,$A243,X$1))","v":""},{"$f":"IF($A243=\"N/A\",Ref!$B$36,INDEX(Ranks!$1:$1048576,$A243,Y$1))","v":""},{"$f":"IF($A243=\"N/A\",Ref!$B$36,INDEX(Ranks!$1:$1048576,$A243,Z$1))","v":""},{"$f":"IF($A243=\"N/A\",Ref!$B$36,INDEX(Ranks!$1:$1048576,$A243,AA$1))","v":""},{"$f":"IF($A243=\"N/A\",Ref!$B$36,INDEX(Ranks!$1:$1048576,$A243,AB$1))","v":""},{"$f":"IF($A243=\"N/A\",Ref!$B$36,INDEX(Ranks!$1:$1048576,$A243,AC$1))","v":""},{"$f":"IF($A243=\"N/A\",Ref!$B$36,INDEX(Ranks!$1:$1048576,$A243,AD$1))","v":""},{"$f":"IF($A243=\"N/A\",Ref!$B$36,INDEX(Ranks!$1:$1048576,$A243,AE$1))","v":""},{"$f":"IF($A243=\"N/A\",Ref!$B$36,INDEX(Ranks!$1:$1048576,$A243,AF$1))","v":""},{"$f":"IF($A243=\"N/A\",Ref!$B$36,INDEX(Ranks!$1:$1048576,$A243,AG$1))","v":""},{"$f":"IF($A243=\"N/A\",Ref!$B$36,INDEX(Ranks!$1:$1048576,$A243,AH$1))","v":""},{"$f":"IF($A243=\"N/A\",Ref!$B$36,INDEX(Ranks!$1:$1048576,$A243,AI$1))","v":""},{"$f":"IF($A243=\"N/A\",Ref!$B$36,INDEX(Ranks!$1:$1048576,$A243,AJ$1))","v":""},{"$f":"IF($A243=\"N/A\",Ref!$B$36,INDEX(Ranks!$1:$1048576,$A243,AK$1))","v":""},{"$f":"IF($A243=\"N/A\",Ref!$B$36,INDEX(Ranks!$1:$1048576,$A243,AL$1))","v":""},{"$f":"IF($A243=\"N/A\",Ref!$B$36,INDEX(Ranks!$1:$1048576,$A243,AM$1))","v":""},{"$f":"IF($A243=\"N/A\",Ref!$B$36,INDEX(Ranks!$1:$1048576,$A243,AN$1))","v":""},{"$f":"IF($A243=\"N/A\",Ref!$B$36,INDEX(Ranks!$1:$1048576,$A243,AO$1))","v":""},{"$f":"IF($A243=\"N/A\",Ref!$B$36,INDEX(Ranks!$1:$1048576,$A243,AP$1))","v":""},{"$f":"IF($A243=\"N/A\",Ref!$B$36,INDEX(Ranks!$1:$1048576,$A243,AQ$1))","v":""},{"$f":"IF($A243=\"N/A\",Ref!$B$36,INDEX(Ranks!$1:$1048576,$A243,AR$1))","v":""},{"$f":"IF($A243=\"N/A\",Ref!$B$36,INDEX(Ranks!$1:$1048576,$A243,AS$1))","v":""},{"$f":"IF($A243=\"N/A\",Ref!$B$36,INDEX(Ranks!$1:$1048576,$A243,AT$1))","v":""},{"$f":"IF($A243=\"N/A\",Ref!$B$36,INDEX(Ranks!$1:$1048576,$A243,AU$1))","v":""},{"$f":"IF($A243=\"N/A\",Ref!$B$36,INDEX(Ranks!$1:$1048576,$A243,AV$1))","v":""},{"$f":"IF($A243=\"N/A\",Ref!$B$36,INDEX(Ranks!$1:$1048576,$A243,AW$1))","v":""},{"$f":"IF($A243=\"N/A\",Ref!$B$36,INDEX(Ranks!$1:$1048576,$A243,AX$1))","v":""},{"$f":"IF($A243=\"N/A\",Ref!$B$36,INDEX(Ranks!$1:$1048576,$A243,AY$1))","v":""},{"$f":"IF($A243=\"N/A\",Ref!$B$36,INDEX(Ranks!$1:$1048576,$A243,AZ$1))","v":""},{"$f":"IF($A243=\"N/A\",Ref!$B$36,INDEX(Ranks!$1:$1048576,$A243,BA$1))","v":""},{"$f":"IF($A243=\"N/A\",Ref!$B$36,INDEX(Ranks!$1:$1048576,$A243,BB$1))","v":""},{"$f":"IF($A243=\"N/A\",Ref!$B$36,INDEX(Ranks!$1:$1048576,$A243,BC$1))","v":""},{"$f":"IF($A243=\"N/A\",Ref!$B$36,INDEX(Ranks!$1:$1048576,$A243,BD$1))","v":""},{"$f":"IF($A243=\"N/A\",Ref!$B$36,INDEX(Ranks!$1:$1048576,$A243,BE$1))","v":""},{"$f":"IF($A243=\"N/A\",Ref!$B$36,INDEX(Ranks!$1:$1048576,$A243,BF$1))","v":""},{"$f":"IF($A243=\"N/A\",Ref!$B$36,INDEX(Ranks!$1:$1048576,$A243,BG$1))","v":""},{"$f":"IF($A243=\"N/A\",Ref!$B$36,INDEX(Ranks!$1:$1048576,$A243,BH$1))","v":""},{"$f":"IF($A243=\"N/A\",Ref!$B$36,INDEX(Ranks!$1:$1048576,$A243,BI$1))","v":""},{"$f":"IF($A243=\"N/A\",Ref!$B$36,INDEX(Ranks!$1:$1048576,$A243,BJ$1))","v":""},{"$f":"IF($A243=\"N/A\",Ref!$B$36,INDEX(Ranks!$1:$1048576,$A243,BK$1))","v":""},{"$f":"IF($A243=\"N/A\",Ref!$B$36,INDEX(Ranks!$1:$1048576,$A243,BL$1))","v":""},{"$f":"IF($A243=\"N/A\",Ref!$B$36,INDEX(Ranks!$1:$1048576,$A243,BM$1))","v":""},{"$f":"IF($A243=\"N/A\",Ref!$B$36,INDEX(Ranks!$1:$1048576,$A243,BN$1))","v":""},{"$f":"IF($A243=\"N/A\",Ref!$B$36,INDEX(Ranks!$1:$1048576,$A243,BO$1))","v":""},{"$f":"IF($A243=\"N/A\",Ref!$B$36,INDEX(Ranks!$1:$1048576,$A243,BP$1))","v":""},{"$f":"IF($A243=\"N/A\",Ref!$B$36,INDEX(Ranks!$1:$1048576,$A243,BQ$1))","v":""},{"$f":"IF($A243=\"N/A\",Ref!$B$36,INDEX(Ranks!$1:$1048576,$A243,BR$1))","v":""},{"$f":"IF($A243=\"N/A\",Ref!$B$36,INDEX(Ranks!$1:$1048576,$A243,BS$1))","v":""},{"$f":"IF($A243=\"N/A\",Ref!$B$36,INDEX(Ranks!$1:$1048576,$A243,BT$1))","v":""},{"$f":"IF($A243=\"N/A\",Ref!$B$36,INDEX(Ranks!$1:$1048576,$A243,BU$1))","v":""},{"$f":"IF($A243=\"N/A\",Ref!$B$36,INDEX(Ranks!$1:$1048576,$A243,BV$1))","v":""},{"$f":"IF($A243=\"N/A\",Ref!$B$36,INDEX(Ranks!$1:$1048576,$A243,BW$1))","v":""},{"$f":"IF($A243=\"N/A\",Ref!$B$36,INDEX(Ranks!$1:$1048576,$A243,BX$1))","v":""},{"$f":"IF($A243=\"N/A\",Ref!$B$36,INDEX(Ranks!$1:$1048576,$A243,BY$1))","v":""},{"$f":"IF($A243=\"N/A\",Ref!$B$36,INDEX(Ranks!$1:$1048576,$A243,BZ$1))","v":""},{"$f":"IF($A243=\"N/A\",Ref!$B$36,INDEX(Ranks!$1:$1048576,$A243,CA$1))","v":""},{"$f":"IF($A243=\"N/A\",Ref!$B$36,INDEX(Ranks!$1:$1048576,$A243,CB$1))","v":""},{"$f":"IF($A243=\"N/A\",Ref!$B$36,INDEX(Ranks!$1:$1048576,$A243,CC$1))","v":""},{"$f":"IF($A243=\"N/A\",Ref!$B$36,INDEX(Ranks!$1:$1048576,$A243,CD$1))","v":""},{"$f":"IF($A243=\"N/A\",Ref!$B$36,INDEX(Ranks!$1:$1048576,$A243,CE$1))","v":""},{"$f":"IF($A243=\"N/A\",Ref!$B$36,INDEX(Ranks!$1:$1048576,$A243,CF$1))","v":""},{"$f":"IF($A243=\"N/A\",Ref!$B$36,INDEX(Ranks!$1:$1048576,$A243,CG$1))","v":""},{"$f":"IF($A243=\"N/A\",Ref!$B$36,INDEX(Ranks!$1:$1048576,$A243,CH$1))","v":""},{"$f":"IF($A243=\"N/A\",Ref!$B$36,INDEX(Ranks!$1:$1048576,$A243,CI$1))","v":""},{"$f":"IF($A243=\"N/A\",Ref!$B$36,INDEX(Ranks!$1:$1048576,$A243,CJ$1))","v":""},{"$f":"IF($A243=\"N/A\",Ref!$B$36,INDEX(Ranks!$1:$1048576,$A243,CK$1))","v":""},{"$f":"IF($A243=\"N/A\",Ref!$B$36,INDEX(Ranks!$1:$1048576,$A243,CL$1))","v":""},{"$f":"IF($A243=\"N/A\",Ref!$B$36,INDEX(Ranks!$1:$1048576,$A243,CM$1))","v":""},{"$f":"IF($A243=\"N/A\",Ref!$B$36,INDEX(Ranks!$1:$1048576,$A243,CN$1))","v":""},{"$f":"IF($A243=\"N/A\",Ref!$B$36,INDEX(Ranks!$1:$1048576,$A243,CO$1))","v":""},{"$f":"IF($A243=\"N/A\",Ref!$B$36,INDEX(Ranks!$1:$1048576,$A243,CP$1))","v":""},{"$f":"IF($A243=\"N/A\",Ref!$B$36,INDEX(Ranks!$1:$1048576,$A243,CQ$1))","v":""},{"$f":"IF($A243=\"N/A\",Ref!$B$36,INDEX(Ranks!$1:$1048576,$A243,CR$1))","v":""},{"$f":"IF($A243=\"N/A\",Ref!$B$36,INDEX(Ranks!$1:$1048576,$A243,CS$1))","v":""},{"$f":"IF($A243=\"N/A\",Ref!$B$36,INDEX(Ranks!$1:$1048576,$A243,CT$1))","v":""},{"$f":"IF($A243=\"N/A\",Ref!$B$36,INDEX(Ranks!$1:$1048576,$A243,CU$1))","v":""},{"$f":"IF($A243=\"N/A\",Ref!$B$36,INDEX(Ranks!$1:$1048576,$A243,CV$1))","v":""},{"$f":"IF($A243=\"N/A\",Ref!$B$36,INDEX(Ranks!$1:$1048576,$A243,CW$1))","v":""},{"$f":"IF($A243=\"N/A\",Ref!$B$36,INDEX(Ranks!$1:$1048576,$A243,CX$1))","v":""},{"$f":"IF($A243=\"N/A\",Ref!$B$36,INDEX(Ranks!$1:$1048576,$A243,CY$1))","v":""},{"$f":"IF($A243=\"N/A\",Ref!$B$36,INDEX(Ranks!$1:$1048576,$A243,CZ$1))","v":""},{"$f":"IF($A243=\"N/A\",Ref!$B$36,INDEX(Ranks!$1:$1048576,$A243,DA$1))","v":""},{"$f":"IF($A243=\"N/A\",Ref!$B$36,INDEX(Ranks!$1:$1048576,$A243,DB$1))","v":""},{"$f":"IF($A243=\"N/A\",Ref!$B$36,INDEX(Ranks!$1:$1048576,$A243,DC$1))","v":""},{"$f":"IF($A243=\"N/A\",Ref!$B$36,INDEX(Ranks!$1:$1048576,$A243,DD$1))","v":""},{"$f":"IF($A243=\"N/A\",Ref!$B$36,INDEX(Ranks!$1:$1048576,$A243,DE$1))","v":""},{"$f":"IF($A243=\"N/A\",Ref!$B$36,INDEX(Ranks!$1:$1048576,$A243,DF$1))","v":""},{"$f":"IF($A243=\"N/A\",Ref!$B$36,INDEX(Ranks!$1:$1048576,$A243,DG$1))","v":""},{"$f":"IF($A243=\"N/A\",Ref!$B$36,INDEX(Ranks!$1:$1048576,$A243,DH$1))","v":""},{"$f":"IF($A243=\"N/A\",Ref!$B$36,INDEX(Ranks!$1:$1048576,$A243,DI$1))","v":""},{"$f":"IF($A243=\"N/A\",Ref!$B$36,INDEX(Ranks!$1:$1048576,$A243,DJ$1))","v":""},{"$f":"IF($A243=\"N/A\",Ref!$B$36,INDEX(Ranks!$1:$1048576,$A243,DK$1))","v":""},{"$f":"IF($A243=\"N/A\",Ref!$B$36,INDEX(Ranks!$1:$1048576,$A243,DL$1))","v":""},{"$f":"IF($A243=\"N/A\",Ref!$B$36,INDEX(Ranks!$1:$1048576,$A243,DM$1))","v":""},{"$f":"IF($A243=\"N/A\",Ref!$B$36,INDEX(Ranks!$1:$1048576,$A243,DN$1))","v":""},{"$f":"IF($A243=\"N/A\",Ref!$B$36,INDEX(Ranks!$1:$1048576,$A243,DO$1))","v":""},{"$f":"IF($A243=\"N/A\",Ref!$B$36,INDEX(Ranks!$1:$1048576,$A243,DP$1))","v":""},{"$f":"IF($A243=\"N/A\",Ref!$B$36,INDEX(Ranks!$1:$1048576,$A243,DQ$1))","v":""},{"$f":"IF($A243=\"N/A\",Ref!$B$36,INDEX(Ranks!$1:$1048576,$A243,DR$1))","v":""},{"$f":"IF($A243=\"N/A\",Ref!$B$36,INDEX(Ranks!$1:$1048576,$A243,DS$1))","v":""},{"$f":"IF($A243=\"N/A\",Ref!$B$36,INDEX(Ranks!$1:$1048576,$A243,DT$1))","v":""},{"$f":"IF($A243=\"N/A\",Ref!$B$36,INDEX(Ranks!$1:$1048576,$A243,DU$1))","v":""},{"$f":"IF($A243=\"N/A\",Ref!$B$36,INDEX(Ranks!$1:$1048576,$A243,DV$1))","v":""},{"$f":"IF($A243=\"N/A\",Ref!$B$36,INDEX(Ranks!$1:$1048576,$A243,DW$1))","v":""},{"$f":"IF($A243=\"N/A\",Ref!$B$36,INDEX(Ranks!$1:$1048576,$A243,DX$1))","v":""},{"$f":"IF($A243=\"N/A\",Ref!$B$36,INDEX(Ranks!$1:$1048576,$A243,DY$1))","v":""},{"$f":"IF($A243=\"N/A\",Ref!$B$36,INDEX(Ranks!$1:$1048576,$A243,DZ$1))","v":""},{"$f":"IF($A243=\"N/A\",Ref!$B$36,INDEX(Ranks!$1:$1048576,$A243,EA$1))","v":""},{"$f":"IF($A243=\"N/A\",Ref!$B$36,INDEX(Ranks!$1:$1048576,$A243,EB$1))","v":""}]
[{"$f":"IFERROR(MATCH('Portfolio Page'!L244,Ranks!L:L,0),\"N/A\")","v":"N/A"},null,{"$f":"IF($A244=\"N/A\",\"\",INDEX(Ranks!$1:$1048576,$A244,C$1))","v":""},{"$f":"IF($A244=\"N/A\",Ref!$B$36,INDEX(Ranks!$1:$1048576,$A244,D$1))","v":""},{"$f":"IF($A244=\"N/A\",Ref!$B$36,INDEX(Ranks!$1:$1048576,$A244,E$1))","v":""},{"$f":"IF($A244=\"N/A\",\"\",INDEX(Ranks!$1:$1048576,$A244,F$1))","v":""},{"$f":"IF($A244=\"N/A\",\"\",INDEX(Ranks!$1:$1048576,$A244,G$1))","v":""},{"$f":"IF($A244=\"N/A\",\"\",INDEX(Ranks!$1:$1048576,$A244,H$1))","v":""},{"$f":"IF($A244=\"N/A\",\"\",INDEX(Ranks!$1:$1048576,$A244,I$1))","v":""},{"$f":"IF($A244=\"N/A\",\"\",INDEX(Ranks!$1:$1048576,$A244,J$1))","v":""},{"$f":"IF($A244=\"N/A\",\"\",INDEX(Ranks!$1:$1048576,$A244,K$1))","v":""},null,{"$f":"IF($A244=\"N/A\",Ref!$B$36,INDEX(Ranks!$1:$1048576,$A244,M$1))","v":""},{"$f":"IF($A244=\"N/A\",Ref!$B$36,INDEX(Ranks!$1:$1048576,$A244,N$1))","v":""},{"$f":"IF($A244=\"N/A\",Ref!$B$36,INDEX(Ranks!$1:$1048576,$A244,O$1))","v":""},{"$f":"IF($A244=\"N/A\",Ref!$B$36,INDEX(Ranks!$1:$1048576,$A244,P$1))","v":""},{"$f":"IF($A244=\"N/A\",Ref!$B$36,INDEX(Ranks!$1:$1048576,$A244,Q$1))","v":""},{"$f":"IF($A244=\"N/A\",Ref!$B$36,INDEX(Ranks!$1:$1048576,$A244,R$1))","v":""},{"$f":"IF($A244=\"N/A\",Ref!$B$36,INDEX(Ranks!$1:$1048576,$A244,S$1))","v":""},{"$f":"IF($A244=\"N/A\",Ref!$B$36,INDEX(Ranks!$1:$1048576,$A244,T$1))","v":""},{"$f":"IF($A244=\"N/A\",Ref!$B$36,INDEX(Ranks!$1:$1048576,$A244,U$1))","v":""},{"$f":"IF($A244=\"N/A\",Ref!$B$36,INDEX(Ranks!$1:$1048576,$A244,V$1))","v":""},{"$f":"IF($A244=\"N/A\",Ref!$B$36,INDEX(Ranks!$1:$1048576,$A244,W$1))","v":""},{"$f":"IF($A244=\"N/A\",Ref!$B$36,INDEX(Ranks!$1:$1048576,$A244,X$1))","v":""},{"$f":"IF($A244=\"N/A\",Ref!$B$36,INDEX(Ranks!$1:$1048576,$A244,Y$1))","v":""},{"$f":"IF($A244=\"N/A\",Ref!$B$36,INDEX(Ranks!$1:$1048576,$A244,Z$1))","v":""},{"$f":"IF($A244=\"N/A\",Ref!$B$36,INDEX(Ranks!$1:$1048576,$A244,AA$1))","v":""},{"$f":"IF($A244=\"N/A\",Ref!$B$36,INDEX(Ranks!$1:$1048576,$A244,AB$1))","v":""},{"$f":"IF($A244=\"N/A\",Ref!$B$36,INDEX(Ranks!$1:$1048576,$A244,AC$1))","v":""},{"$f":"IF($A244=\"N/A\",Ref!$B$36,INDEX(Ranks!$1:$1048576,$A244,AD$1))","v":""},{"$f":"IF($A244=\"N/A\",Ref!$B$36,INDEX(Ranks!$1:$1048576,$A244,AE$1))","v":""},{"$f":"IF($A244=\"N/A\",Ref!$B$36,INDEX(Ranks!$1:$1048576,$A244,AF$1))","v":""},{"$f":"IF($A244=\"N/A\",Ref!$B$36,INDEX(Ranks!$1:$1048576,$A244,AG$1))","v":""},{"$f":"IF($A244=\"N/A\",Ref!$B$36,INDEX(Ranks!$1:$1048576,$A244,AH$1))","v":""},{"$f":"IF($A244=\"N/A\",Ref!$B$36,INDEX(Ranks!$1:$1048576,$A244,AI$1))","v":""},{"$f":"IF($A244=\"N/A\",Ref!$B$36,INDEX(Ranks!$1:$1048576,$A244,AJ$1))","v":""},{"$f":"IF($A244=\"N/A\",Ref!$B$36,INDEX(Ranks!$1:$1048576,$A244,AK$1))","v":""},{"$f":"IF($A244=\"N/A\",Ref!$B$36,INDEX(Ranks!$1:$1048576,$A244,AL$1))","v":""},{"$f":"IF($A244=\"N/A\",Ref!$B$36,INDEX(Ranks!$1:$1048576,$A244,AM$1))","v":""},{"$f":"IF($A244=\"N/A\",Ref!$B$36,INDEX(Ranks!$1:$1048576,$A244,AN$1))","v":""},{"$f":"IF($A244=\"N/A\",Ref!$B$36,INDEX(Ranks!$1:$1048576,$A244,AO$1))","v":""},{"$f":"IF($A244=\"N/A\",Ref!$B$36,INDEX(Ranks!$1:$1048576,$A244,AP$1))","v":""},{"$f":"IF($A244=\"N/A\",Ref!$B$36,INDEX(Ranks!$1:$1048576,$A244,AQ$1))","v":""},{"$f":"IF($A244=\"N/A\",Ref!$B$36,INDEX(Ranks!$1:$1048576,$A244,AR$1))","v":""},{"$f":"IF($A244=\"N/A\",Ref!$B$36,INDEX(Ranks!$1:$1048576,$A244,AS$1))","v":""},{"$f":"IF($A244=\"N/A\",Ref!$B$36,INDEX(Ranks!$1:$1048576,$A244,AT$1))","v":""},{"$f":"IF($A244=\"N/A\",Ref!$B$36,INDEX(Ranks!$1:$1048576,$A244,AU$1))","v":""},{"$f":"IF($A244=\"N/A\",Ref!$B$36,INDEX(Ranks!$1:$1048576,$A244,AV$1))","v":""},{"$f":"IF($A244=\"N/A\",Ref!$B$36,INDEX(Ranks!$1:$1048576,$A244,AW$1))","v":""},{"$f":"IF($A244=\"N/A\",Ref!$B$36,INDEX(Ranks!$1:$1048576,$A244,AX$1))","v":""},{"$f":"IF($A244=\"N/A\",Ref!$B$36,INDEX(Ranks!$1:$1048576,$A244,AY$1))","v":""},{"$f":"IF($A244=\"N/A\",Ref!$B$36,INDEX(Ranks!$1:$1048576,$A244,AZ$1))","v":""},{"$f":"IF($A244=\"N/A\",Ref!$B$36,INDEX(Ranks!$1:$1048576,$A244,BA$1))","v":""},{"$f":"IF($A244=\"N/A\",Ref!$B$36,INDEX(Ranks!$1:$1048576,$A244,BB$1))","v":""},{"$f":"IF($A244=\"N/A\",Ref!$B$36,INDEX(Ranks!$1:$1048576,$A244,BC$1))","v":""},{"$f":"IF($A244=\"N/A\",Ref!$B$36,INDEX(Ranks!$1:$1048576,$A244,BD$1))","v":""},{"$f":"IF($A244=\"N/A\",Ref!$B$36,INDEX(Ranks!$1:$1048576,$A244,BE$1))","v":""},{"$f":"IF($A244=\"N/A\",Ref!$B$36,INDEX(Ranks!$1:$1048576,$A244,BF$1))","v":""},{"$f":"IF($A244=\"N/A\",Ref!$B$36,INDEX(Ranks!$1:$1048576,$A244,BG$1))","v":""},{"$f":"IF($A244=\"N/A\",Ref!$B$36,INDEX(Ranks!$1:$1048576,$A244,BH$1))","v":""},{"$f":"IF($A244=\"N/A\",Ref!$B$36,INDEX(Ranks!$1:$1048576,$A244,BI$1))","v":""},{"$f":"IF($A244=\"N/A\",Ref!$B$36,INDEX(Ranks!$1:$1048576,$A244,BJ$1))","v":""},{"$f":"IF($A244=\"N/A\",Ref!$B$36,INDEX(Ranks!$1:$1048576,$A244,BK$1))","v":""},{"$f":"IF($A244=\"N/A\",Ref!$B$36,INDEX(Ranks!$1:$1048576,$A244,BL$1))","v":""},{"$f":"IF($A244=\"N/A\",Ref!$B$36,INDEX(Ranks!$1:$1048576,$A244,BM$1))","v":""},{"$f":"IF($A244=\"N/A\",Ref!$B$36,INDEX(Ranks!$1:$1048576,$A244,BN$1))","v":""},{"$f":"IF($A244=\"N/A\",Ref!$B$36,INDEX(Ranks!$1:$1048576,$A244,BO$1))","v":""},{"$f":"IF($A244=\"N/A\",Ref!$B$36,INDEX(Ranks!$1:$1048576,$A244,BP$1))","v":""},{"$f":"IF($A244=\"N/A\",Ref!$B$36,INDEX(Ranks!$1:$1048576,$A244,BQ$1))","v":""},{"$f":"IF($A244=\"N/A\",Ref!$B$36,INDEX(Ranks!$1:$1048576,$A244,BR$1))","v":""},{"$f":"IF($A244=\"N/A\",Ref!$B$36,INDEX(Ranks!$1:$1048576,$A244,BS$1))","v":""},{"$f":"IF($A244=\"N/A\",Ref!$B$36,INDEX(Ranks!$1:$1048576,$A244,BT$1))","v":""},{"$f":"IF($A244=\"N/A\",Ref!$B$36,INDEX(Ranks!$1:$1048576,$A244,BU$1))","v":""},{"$f":"IF($A244=\"N/A\",Ref!$B$36,INDEX(Ranks!$1:$1048576,$A244,BV$1))","v":""},{"$f":"IF($A244=\"N/A\",Ref!$B$36,INDEX(Ranks!$1:$1048576,$A244,BW$1))","v":""},{"$f":"IF($A244=\"N/A\",Ref!$B$36,INDEX(Ranks!$1:$1048576,$A244,BX$1))","v":""},{"$f":"IF($A244=\"N/A\",Ref!$B$36,INDEX(Ranks!$1:$1048576,$A244,BY$1))","v":""},{"$f":"IF($A244=\"N/A\",Ref!$B$36,INDEX(Ranks!$1:$1048576,$A244,BZ$1))","v":""},{"$f":"IF($A244=\"N/A\",Ref!$B$36,INDEX(Ranks!$1:$1048576,$A244,CA$1))","v":""},{"$f":"IF($A244=\"N/A\",Ref!$B$36,INDEX(Ranks!$1:$1048576,$A244,CB$1))","v":""},{"$f":"IF($A244=\"N/A\",Ref!$B$36,INDEX(Ranks!$1:$1048576,$A244,CC$1))","v":""},{"$f":"IF($A244=\"N/A\",Ref!$B$36,INDEX(Ranks!$1:$1048576,$A244,CD$1))","v":""},{"$f":"IF($A244=\"N/A\",Ref!$B$36,INDEX(Ranks!$1:$1048576,$A244,CE$1))","v":""},{"$f":"IF($A244=\"N/A\",Ref!$B$36,INDEX(Ranks!$1:$1048576,$A244,CF$1))","v":""},{"$f":"IF($A244=\"N/A\",Ref!$B$36,INDEX(Ranks!$1:$1048576,$A244,CG$1))","v":""},{"$f":"IF($A244=\"N/A\",Ref!$B$36,INDEX(Ranks!$1:$1048576,$A244,CH$1))","v":""},{"$f":"IF($A244=\"N/A\",Ref!$B$36,INDEX(Ranks!$1:$1048576,$A244,CI$1))","v":""},{"$f":"IF($A244=\"N/A\",Ref!$B$36,INDEX(Ranks!$1:$1048576,$A244,CJ$1))","v":""},{"$f":"IF($A244=\"N/A\",Ref!$B$36,INDEX(Ranks!$1:$1048576,$A244,CK$1))","v":""},{"$f":"IF($A244=\"N/A\",Ref!$B$36,INDEX(Ranks!$1:$1048576,$A244,CL$1))","v":""},{"$f":"IF($A244=\"N/A\",Ref!$B$36,INDEX(Ranks!$1:$1048576,$A244,CM$1))","v":""},{"$f":"IF($A244=\"N/A\",Ref!$B$36,INDEX(Ranks!$1:$1048576,$A244,CN$1))","v":""},{"$f":"IF($A244=\"N/A\",Ref!$B$36,INDEX(Ranks!$1:$1048576,$A244,CO$1))","v":""},{"$f":"IF($A244=\"N/A\",Ref!$B$36,INDEX(Ranks!$1:$1048576,$A244,CP$1))","v":""},{"$f":"IF($A244=\"N/A\",Ref!$B$36,INDEX(Ranks!$1:$1048576,$A244,CQ$1))","v":""},{"$f":"IF($A244=\"N/A\",Ref!$B$36,INDEX(Ranks!$1:$1048576,$A244,CR$1))","v":""},{"$f":"IF($A244=\"N/A\",Ref!$B$36,INDEX(Ranks!$1:$1048576,$A244,CS$1))","v":""},{"$f":"IF($A244=\"N/A\",Ref!$B$36,INDEX(Ranks!$1:$1048576,$A244,CT$1))","v":""},{"$f":"IF($A244=\"N/A\",Ref!$B$36,INDEX(Ranks!$1:$1048576,$A244,CU$1))","v":""},{"$f":"IF($A244=\"N/A\",Ref!$B$36,INDEX(Ranks!$1:$1048576,$A244,CV$1))","v":""},{"$f":"IF($A244=\"N/A\",Ref!$B$36,INDEX(Ranks!$1:$1048576,$A244,CW$1))","v":""},{"$f":"IF($A244=\"N/A\",Ref!$B$36,INDEX(Ranks!$1:$1048576,$A244,CX$1))","v":""},{"$f":"IF($A244=\"N/A\",Ref!$B$36,INDEX(Ranks!$1:$1048576,$A244,CY$1))","v":""},{"$f":"IF($A244=\"N/A\",Ref!$B$36,INDEX(Ranks!$1:$1048576,$A244,CZ$1))","v":""},{"$f":"IF($A244=\"N/A\",Ref!$B$36,INDEX(Ranks!$1:$1048576,$A244,DA$1))","v":""},{"$f":"IF($A244=\"N/A\",Ref!$B$36,INDEX(Ranks!$1:$1048576,$A244,DB$1))","v":""},{"$f":"IF($A244=\"N/A\",Ref!$B$36,INDEX(Ranks!$1:$1048576,$A244,DC$1))","v":""},{"$f":"IF($A244=\"N/A\",Ref!$B$36,INDEX(Ranks!$1:$1048576,$A244,DD$1))","v":""},{"$f":"IF($A244=\"N/A\",Ref!$B$36,INDEX(Ranks!$1:$1048576,$A244,DE$1))","v":""},{"$f":"IF($A244=\"N/A\",Ref!$B$36,INDEX(Ranks!$1:$1048576,$A244,DF$1))","v":""},{"$f":"IF($A244=\"N/A\",Ref!$B$36,INDEX(Ranks!$1:$1048576,$A244,DG$1))","v":""},{"$f":"IF($A244=\"N/A\",Ref!$B$36,INDEX(Ranks!$1:$1048576,$A244,DH$1))","v":""},{"$f":"IF($A244=\"N/A\",Ref!$B$36,INDEX(Ranks!$1:$1048576,$A244,DI$1))","v":""},{"$f":"IF($A244=\"N/A\",Ref!$B$36,INDEX(Ranks!$1:$1048576,$A244,DJ$1))","v":""},{"$f":"IF($A244=\"N/A\",Ref!$B$36,INDEX(Ranks!$1:$1048576,$A244,DK$1))","v":""},{"$f":"IF($A244=\"N/A\",Ref!$B$36,INDEX(Ranks!$1:$1048576,$A244,DL$1))","v":""},{"$f":"IF($A244=\"N/A\",Ref!$B$36,INDEX(Ranks!$1:$1048576,$A244,DM$1))","v":""},{"$f":"IF($A244=\"N/A\",Ref!$B$36,INDEX(Ranks!$1:$1048576,$A244,DN$1))","v":""},{"$f":"IF($A244=\"N/A\",Ref!$B$36,INDEX(Ranks!$1:$1048576,$A244,DO$1))","v":""},{"$f":"IF($A244=\"N/A\",Ref!$B$36,INDEX(Ranks!$1:$1048576,$A244,DP$1))","v":""},{"$f":"IF($A244=\"N/A\",Ref!$B$36,INDEX(Ranks!$1:$1048576,$A244,DQ$1))","v":""},{"$f":"IF($A244=\"N/A\",Ref!$B$36,INDEX(Ranks!$1:$1048576,$A244,DR$1))","v":""},{"$f":"IF($A244=\"N/A\",Ref!$B$36,INDEX(Ranks!$1:$1048576,$A244,DS$1))","v":""},{"$f":"IF($A244=\"N/A\",Ref!$B$36,INDEX(Ranks!$1:$1048576,$A244,DT$1))","v":""},{"$f":"IF($A244=\"N/A\",Ref!$B$36,INDEX(Ranks!$1:$1048576,$A244,DU$1))","v":""},{"$f":"IF($A244=\"N/A\",Ref!$B$36,INDEX(Ranks!$1:$1048576,$A244,DV$1))","v":""},{"$f":"IF($A244=\"N/A\",Ref!$B$36,INDEX(Ranks!$1:$1048576,$A244,DW$1))","v":""},{"$f":"IF($A244=\"N/A\",Ref!$B$36,INDEX(Ranks!$1:$1048576,$A244,DX$1))","v":""},{"$f":"IF($A244=\"N/A\",Ref!$B$36,INDEX(Ranks!$1:$1048576,$A244,DY$1))","v":""},{"$f":"IF($A244=\"N/A\",Ref!$B$36,INDEX(Ranks!$1:$1048576,$A244,DZ$1))","v":""},{"$f":"IF($A244=\"N/A\",Ref!$B$36,INDEX(Ranks!$1:$1048576,$A244,EA$1))","v":""},{"$f":"IF($A244=\"N/A\",Ref!$B$36,INDEX(Ranks!$1:$1048576,$A244,EB$1))","v":""}]
[{"$f":"IFERROR(MATCH('Portfolio Page'!L245,Ranks!L:L,0),\"N/A\")","v":"N/A"},null,{"$f":"IF($A245=\"N/A\",\"\",INDEX(Ranks!$1:$1048576,$A245,C$1))","v":""},{"$f":"IF($A245=\"N/A\",Ref!$B$36,INDEX(Ranks!$1:$1048576,$A245,D$1))","v":""},{"$f":"IF($A245=\"N/A\",Ref!$B$36,INDEX(Ranks!$1:$1048576,$A245,E$1))","v":""},{"$f":"IF($A245=\"N/A\",\"\",INDEX(Ranks!$1:$1048576,$A245,F$1))","v":""},{"$f":"IF($A245=\"N/A\",\"\",INDEX(Ranks!$1:$1048576,$A245,G$1))","v":""},{"$f":"IF($A245=\"N/A\",\"\",INDEX(Ranks!$1:$1048576,$A245,H$1))","v":""},{"$f":"IF($A245=\"N/A\",\"\",INDEX(Ranks!$1:$1048576,$A245,I$1))","v":""},{"$f":"IF($A245=\"N/A\",\"\",INDEX(Ranks!$1:$1048576,$A245,J$1))","v":""},{"$f":"IF($A245=\"N/A\",\"\",INDEX(Ranks!$1:$1048576,$A245,K$1))","v":""},null,{"$f":"IF($A245=\"N/A\",Ref!$B$36,INDEX(Ranks!$1:$1048576,$A245,M$1))","v":""},{"$f":"IF($A245=\"N/A\",Ref!$B$36,INDEX(Ranks!$1:$1048576,$A245,N$1))","v":""},{"$f":"IF($A245=\"N/A\",Ref!$B$36,INDEX(Ranks!$1:$1048576,$A245,O$1))","v":""},{"$f":"IF($A245=\"N/A\",Ref!$B$36,INDEX(Ranks!$1:$1048576,$A245,P$1))","v":""},{"$f":"IF($A245=\"N/A\",Ref!$B$36,INDEX(Ranks!$1:$1048576,$A245,Q$1))","v":""},{"$f":"IF($A245=\"N/A\",Ref!$B$36,INDEX(Ranks!$1:$1048576,$A245,R$1))","v":""},{"$f":"IF($A245=\"N/A\",Ref!$B$36,INDEX(Ranks!$1:$1048576,$A245,S$1))","v":""},{"$f":"IF($A245=\"N/A\",Ref!$B$36,INDEX(Ranks!$1:$1048576,$A245,T$1))","v":""},{"$f":"IF($A245=\"N/A\",Ref!$B$36,INDEX(Ranks!$1:$1048576,$A245,U$1))","v":""},{"$f":"IF($A245=\"N/A\",Ref!$B$36,INDEX(Ranks!$1:$1048576,$A245,V$1))","v":""},{"$f":"IF($A245=\"N/A\",Ref!$B$36,INDEX(Ranks!$1:$1048576,$A245,W$1))","v":""},{"$f":"IF($A245=\"N/A\",Ref!$B$36,INDEX(Ranks!$1:$1048576,$A245,X$1))","v":""},{"$f":"IF($A245=\"N/A\",Ref!$B$36,INDEX(Ranks!$1:$1048576,$A245,Y$1))","v":""},{"$f":"IF($A245=\"N/A\",Ref!$B$36,INDEX(Ranks!$1:$1048576,$A245,Z$1))","v":""},{"$f":"IF($A245=\"N/A\",Ref!$B$36,INDEX(Ranks!$1:$1048576,$A245,AA$1))","v":""},{"$f":"IF($A245=\"N/A\",Ref!$B$36,INDEX(Ranks!$1:$1048576,$A245,AB$1))","v":""},{"$f":"IF($A245=\"N/A\",Ref!$B$36,INDEX(Ranks!$1:$1048576,$A245,AC$1))","v":""},{"$f":"IF($A245=\"N/A\",Ref!$B$36,INDEX(Ranks!$1:$1048576,$A245,AD$1))","v":""},{"$f":"IF($A245=\"N/A\",Ref!$B$36,INDEX(Ranks!$1:$1048576,$A245,AE$1))","v":""},{"$f":"IF($A245=\"N/A\",Ref!$B$36,INDEX(Ranks!$1:$1048576,$A245,AF$1))","v":""},{"$f":"IF($A245=\"N/A\",Ref!$B$36,INDEX(Ranks!$1:$1048576,$A245,AG$1))","v":""},{"$f":"IF($A245=\"N/A\",Ref!$B$36,INDEX(Ranks!$1:$1048576,$A245,AH$1))","v":""},{"$f":"IF($A245=\"N/A\",Ref!$B$36,INDEX(Ranks!$1:$1048576,$A245,AI$1))","v":""},{"$f":"IF($A245=\"N/A\",Ref!$B$36,INDEX(Ranks!$1:$1048576,$A245,AJ$1))","v":""},{"$f":"IF($A245=\"N/A\",Ref!$B$36,INDEX(Ranks!$1:$1048576,$A245,AK$1))","v":""},{"$f":"IF($A245=\"N/A\",Ref!$B$36,INDEX(Ranks!$1:$1048576,$A245,AL$1))","v":""},{"$f":"IF($A245=\"N/A\",Ref!$B$36,INDEX(Ranks!$1:$1048576,$A245,AM$1))","v":""},{"$f":"IF($A245=\"N/A\",Ref!$B$36,INDEX(Ranks!$1:$1048576,$A245,AN$1))","v":""},{"$f":"IF($A245=\"N/A\",Ref!$B$36,INDEX(Ranks!$1:$1048576,$A245,AO$1))","v":""},{"$f":"IF($A245=\"N/A\",Ref!$B$36,INDEX(Ranks!$1:$1048576,$A245,AP$1))","v":""},{"$f":"IF($A245=\"N/A\",Ref!$B$36,INDEX(Ranks!$1:$1048576,$A245,AQ$1))","v":""},{"$f":"IF($A245=\"N/A\",Ref!$B$36,INDEX(Ranks!$1:$1048576,$A245,AR$1))","v":""},{"$f":"IF($A245=\"N/A\",Ref!$B$36,INDEX(Ranks!$1:$1048576,$A245,AS$1))","v":""},{"$f":"IF($A245=\"N/A\",Ref!$B$36,INDEX(Ranks!$1:$1048576,$A245,AT$1))","v":""},{"$f":"IF($A245=\"N/A\",Ref!$B$36,INDEX(Ranks!$1:$1048576,$A245,AU$1))","v":""},{"$f":"IF($A245=\"N/A\",Ref!$B$36,INDEX(Ranks!$1:$1048576,$A245,AV$1))","v":""},{"$f":"IF($A245=\"N/A\",Ref!$B$36,INDEX(Ranks!$1:$1048576,$A245,AW$1))","v":""},{"$f":"IF($A245=\"N/A\",Ref!$B$36,INDEX(Ranks!$1:$1048576,$A245,AX$1))","v":""},{"$f":"IF($A245=\"N/A\",Ref!$B$36,INDEX(Ranks!$1:$1048576,$A245,AY$1))","v":""},{"$f":"IF($A245=\"N/A\",Ref!$B$36,INDEX(Ranks!$1:$1048576,$A245,AZ$1))","v":""},{"$f":"IF($A245=\"N/A\",Ref!$B$36,INDEX(Ranks!$1:$1048576,$A245,BA$1))","v":""},{"$f":"IF($A245=\"N/A\",Ref!$B$36,INDEX(Ranks!$1:$1048576,$A245,BB$1))","v":""},{"$f":"IF($A245=\"N/A\",Ref!$B$36,INDEX(Ranks!$1:$1048576,$A245,BC$1))","v":""},{"$f":"IF($A245=\"N/A\",Ref!$B$36,INDEX(Ranks!$1:$1048576,$A245,BD$1))","v":""},{"$f":"IF($A245=\"N/A\",Ref!$B$36,INDEX(Ranks!$1:$1048576,$A245,BE$1))","v":""},{"$f":"IF($A245=\"N/A\",Ref!$B$36,INDEX(Ranks!$1:$1048576,$A245,BF$1))","v":""},{"$f":"IF($A245=\"N/A\",Ref!$B$36,INDEX(Ranks!$1:$1048576,$A245,BG$1))","v":""},{"$f":"IF($A245=\"N/A\",Ref!$B$36,INDEX(Ranks!$1:$1048576,$A245,BH$1))","v":""},{"$f":"IF($A245=\"N/A\",Ref!$B$36,INDEX(Ranks!$1:$1048576,$A245,BI$1))","v":""},{"$f":"IF($A245=\"N/A\",Ref!$B$36,INDEX(Ranks!$1:$1048576,$A245,BJ$1))","v":""},{"$f":"IF($A245=\"N/A\",Ref!$B$36,INDEX(Ranks!$1:$1048576,$A245,BK$1))","v":""},{"$f":"IF($A245=\"N/A\",Ref!$B$36,INDEX(Ranks!$1:$1048576,$A245,BL$1))","v":""},{"$f":"IF($A245=\"N/A\",Ref!$B$36,INDEX(Ranks!$1:$1048576,$A245,BM$1))","v":""},{"$f":"IF($A245=\"N/A\",Ref!$B$36,INDEX(Ranks!$1:$1048576,$A245,BN$1))","v":""},{"$f":"IF($A245=\"N/A\",Ref!$B$36,INDEX(Ranks!$1:$1048576,$A245,BO$1))","v":""},{"$f":"IF($A245=\"N/A\",Ref!$B$36,INDEX(Ranks!$1:$1048576,$A245,BP$1))","v":""},{"$f":"IF($A245=\"N/A\",Ref!$B$36,INDEX(Ranks!$1:$1048576,$A245,BQ$1))","v":""},{"$f":"IF($A245=\"N/A\",Ref!$B$36,INDEX(Ranks!$1:$1048576,$A245,BR$1))","v":""},{"$f":"IF($A245=\"N/A\",Ref!$B$36,INDEX(Ranks!$1:$1048576,$A245,BS$1))","v":""},{"$f":"IF($A245=\"N/A\",Ref!$B$36,INDEX(Ranks!$1:$1048576,$A245,BT$1))","v":""},{"$f":"IF($A245=\"N/A\",Ref!$B$36,INDEX(Ranks!$1:$1048576,$A245,BU$1))","v":""},{"$f":"IF($A245=\"N/A\",Ref!$B$36,INDEX(Ranks!$1:$1048576,$A245,BV$1))","v":""},{"$f":"IF($A245=\"N/A\",Ref!$B$36,INDEX(Ranks!$1:$1048576,$A245,BW$1))","v":""},{"$f":"IF($A245=\"N/A\",Ref!$B$36,INDEX(Ranks!$1:$1048576,$A245,BX$1))","v":""},{"$f":"IF($A245=\"N/A\",Ref!$B$36,INDEX(Ranks!$1:$1048576,$A245,BY$1))","v":""},{"$f":"IF($A245=\"N/A\",Ref!$B$36,INDEX(Ranks!$1:$1048576,$A245,BZ$1))","v":""},{"$f":"IF($A245=\"N/A\",Ref!$B$36,INDEX(Ranks!$1:$1048576,$A245,CA$1))","v":""},{"$f":"IF($A245=\"N/A\",Ref!$B$36,INDEX(Ranks!$1:$1048576,$A245,CB$1))","v":""},{"$f":"IF($A245=\"N/A\",Ref!$B$36,INDEX(Ranks!$1:$1048576,$A245,CC$1))","v":""},{"$f":"IF($A245=\"N/A\",Ref!$B$36,INDEX(Ranks!$1:$1048576,$A245,CD$1))","v":""},{"$f":"IF($A245=\"N/A\",Ref!$B$36,INDEX(Ranks!$1:$1048576,$A245,CE$1))","v":""},{"$f":"IF($A245=\"N/A\",Ref!$B$36,INDEX(Ranks!$1:$1048576,$A245,CF$1))","v":""},{"$f":"IF($A245=\"N/A\",Ref!$B$36,INDEX(Ranks!$1:$1048576,$A245,CG$1))","v":""},{"$f":"IF($A245=\"N/A\",Ref!$B$36,INDEX(Ranks!$1:$1048576,$A245,CH$1))","v":""},{"$f":"IF($A245=\"N/A\",Ref!$B$36,INDEX(Ranks!$1:$1048576,$A245,CI$1))","v":""},{"$f":"IF($A245=\"N/A\",Ref!$B$36,INDEX(Ranks!$1:$1048576,$A245,CJ$1))","v":""},{"$f":"IF($A245=\"N/A\",Ref!$B$36,INDEX(Ranks!$1:$1048576,$A245,CK$1))","v":""},{"$f":"IF($A245=\"N/A\",Ref!$B$36,INDEX(Ranks!$1:$1048576,$A245,CL$1))","v":""},{"$f":"IF($A245=\"N/A\",Ref!$B$36,INDEX(Ranks!$1:$1048576,$A245,CM$1))","v":""},{"$f":"IF($A245=\"N/A\",Ref!$B$36,INDEX(Ranks!$1:$1048576,$A245,CN$1))","v":""},{"$f":"IF($A245=\"N/A\",Ref!$B$36,INDEX(Ranks!$1:$1048576,$A245,CO$1))","v":""},{"$f":"IF($A245=\"N/A\",Ref!$B$36,INDEX(Ranks!$1:$1048576,$A245,CP$1))","v":""},{"$f":"IF($A245=\"N/A\",Ref!$B$36,INDEX(Ranks!$1:$1048576,$A245,CQ$1))","v":""},{"$f":"IF($A245=\"N/A\",Ref!$B$36,INDEX(Ranks!$1:$1048576,$A245,CR$1))","v":""},{"$f":"IF($A245=\"N/A\",Ref!$B$36,INDEX(Ranks!$1:$1048576,$A245,CS$1))","v":""},{"$f":"IF($A245=\"N/A\",Ref!$B$36,INDEX(Ranks!$1:$1048576,$A245,CT$1))","v":""},{"$f":"IF($A245=\"N/A\",Ref!$B$36,INDEX(Ranks!$1:$1048576,$A245,CU$1))","v":""},{"$f":"IF($A245=\"N/A\",Ref!$B$36,INDEX(Ranks!$1:$1048576,$A245,CV$1))","v":""},{"$f":"IF($A245=\"N/A\",Ref!$B$36,INDEX(Ranks!$1:$1048576,$A245,CW$1))","v":""},{"$f":"IF($A245=\"N/A\",Ref!$B$36,INDEX(Ranks!$1:$1048576,$A245,CX$1))","v":""},{"$f":"IF($A245=\"N/A\",Ref!$B$36,INDEX(Ranks!$1:$1048576,$A245,CY$1))","v":""},{"$f":"IF($A245=\"N/A\",Ref!$B$36,INDEX(Ranks!$1:$1048576,$A245,CZ$1))","v":""},{"$f":"IF($A245=\"N/A\",Ref!$B$36,INDEX(Ranks!$1:$1048576,$A245,DA$1))","v":""},{"$f":"IF($A245=\"N/A\",Ref!$B$36,INDEX(Ranks!$1:$1048576,$A245,DB$1))","v":""},{"$f":"IF($A245=\"N/A\",Ref!$B$36,INDEX(Ranks!$1:$1048576,$A245,DC$1))","v":""},{"$f":"IF($A245=\"N/A\",Ref!$B$36,INDEX(Ranks!$1:$1048576,$A245,DD$1))","v":""},{"$f":"IF($A245=\"N/A\",Ref!$B$36,INDEX(Ranks!$1:$1048576,$A245,DE$1))","v":""},{"$f":"IF($A245=\"N/A\",Ref!$B$36,INDEX(Ranks!$1:$1048576,$A245,DF$1))","v":""},{"$f":"IF($A245=\"N/A\",Ref!$B$36,INDEX(Ranks!$1:$1048576,$A245,DG$1))","v":""},{"$f":"IF($A245=\"N/A\",Ref!$B$36,INDEX(Ranks!$1:$1048576,$A245,DH$1))","v":""},{"$f":"IF($A245=\"N/A\",Ref!$B$36,INDEX(Ranks!$1:$1048576,$A245,DI$1))","v":""},{"$f":"IF($A245=\"N/A\",Ref!$B$36,INDEX(Ranks!$1:$1048576,$A245,DJ$1))","v":""},{"$f":"IF($A245=\"N/A\",Ref!$B$36,INDEX(Ranks!$1:$1048576,$A245,DK$1))","v":""},{"$f":"IF($A245=\"N/A\",Ref!$B$36,INDEX(Ranks!$1:$1048576,$A245,DL$1))","v":""},{"$f":"IF($A245=\"N/A\",Ref!$B$36,INDEX(Ranks!$1:$1048576,$A245,DM$1))","v":""},{"$f":"IF($A245=\"N/A\",Ref!$B$36,INDEX(Ranks!$1:$1048576,$A245,DN$1))","v":""},{"$f":"IF($A245=\"N/A\",Ref!$B$36,INDEX(Ranks!$1:$1048576,$A245,DO$1))","v":""},{"$f":"IF($A245=\"N/A\",Ref!$B$36,INDEX(Ranks!$1:$1048576,$A245,DP$1))","v":""},{"$f":"IF($A245=\"N/A\",Ref!$B$36,INDEX(Ranks!$1:$1048576,$A245,DQ$1))","v":""},{"$f":"IF($A245=\"N/A\",Ref!$B$36,INDEX(Ranks!$1:$1048576,$A245,DR$1))","v":""},{"$f":"IF($A245=\"N/A\",Ref!$B$36,INDEX(Ranks!$1:$1048576,$A245,DS$1))","v":""},{"$f":"IF($A245=\"N/A\",Ref!$B$36,INDEX(Ranks!$1:$1048576,$A245,DT$1))","v":""},{"$f":"IF($A245=\"N/A\",Ref!$B$36,INDEX(Ranks!$1:$1048576,$A245,DU$1))","v":""},{"$f":"IF($A245=\"N/A\",Ref!$B$36,INDEX(Ranks!$1:$1048576,$A245,DV$1))","v":""},{"$f":"IF($A245=\"N/A\",Ref!$B$36,INDEX(Ranks!$1:$1048576,$A245,DW$1))","v":""},{"$f":"IF($A245=\"N/A\",Ref!$B$36,INDEX(Ranks!$1:$1048576,$A245,DX$1))","v":""},{"$f":"IF($A245=\"N/A\",Ref!$B$36,INDEX(Ranks!$1:$1048576,$A245,DY$1))","v":""},{"$f":"IF($A245=\"N/A\",Ref!$B$36,INDEX(Ranks!$1:$1048576,$A245,DZ$1))","v":""},{"$f":"IF($A245=\"N/A\",Ref!$B$36,INDEX(Ranks!$1:$1048576,$A245,EA$1))","v":""},{"$f":"IF($A245=\"N/A\",Ref!$B$36,INDEX(Ranks!$1:$1048576,$A245,EB$1))","v":""}]
[{"$f":"IFERROR(MATCH('Portfolio Page'!L246,Ranks!L:L,0),\"N/A\")","v":"N/A"},null,{"$f":"IF($A246=\"N/A\",\"\",INDEX(Ranks!$1:$1048576,$A246,C$1))","v":""},{"$f":"IF($A246=\"N/A\",Ref!$B$36,INDEX(Ranks!$1:$1048576,$A246,D$1))","v":""},{"$f":"IF($A246=\"N/A\",Ref!$B$36,INDEX(Ranks!$1:$1048576,$A246,E$1))","v":""},{"$f":"IF($A246=\"N/A\",\"\",INDEX(Ranks!$1:$1048576,$A246,F$1))","v":""},{"$f":"IF($A246=\"N/A\",\"\",INDEX(Ranks!$1:$1048576,$A246,G$1))","v":""},{"$f":"IF($A246=\"N/A\",\"\",INDEX(Ranks!$1:$1048576,$A246,H$1))","v":""},{"$f":"IF($A246=\"N/A\",\"\",INDEX(Ranks!$1:$1048576,$A246,I$1))","v":""},{"$f":"IF($A246=\"N/A\",\"\",INDEX(Ranks!$1:$1048576,$A246,J$1))","v":""},{"$f":"IF($A246=\"N/A\",\"\",INDEX(Ranks!$1:$1048576,$A246,K$1))","v":""},null,{"$f":"IF($A246=\"N/A\",Ref!$B$36,INDEX(Ranks!$1:$1048576,$A246,M$1))","v":""},{"$f":"IF($A246=\"N/A\",Ref!$B$36,INDEX(Ranks!$1:$1048576,$A246,N$1))","v":""},{"$f":"IF($A246=\"N/A\",Ref!$B$36,INDEX(Ranks!$1:$1048576,$A246,O$1))","v":""},{"$f":"IF($A246=\"N/A\",Ref!$B$36,INDEX(Ranks!$1:$1048576,$A246,P$1))","v":""},{"$f":"IF($A246=\"N/A\",Ref!$B$36,INDEX(Ranks!$1:$1048576,$A246,Q$1))","v":""},{"$f":"IF($A246=\"N/A\",Ref!$B$36,INDEX(Ranks!$1:$1048576,$A246,R$1))","v":""},{"$f":"IF($A246=\"N/A\",Ref!$B$36,INDEX(Ranks!$1:$1048576,$A246,S$1))","v":""},{"$f":"IF($A246=\"N/A\",Ref!$B$36,INDEX(Ranks!$1:$1048576,$A246,T$1))","v":""},{"$f":"IF($A246=\"N/A\",Ref!$B$36,INDEX(Ranks!$1:$1048576,$A246,U$1))","v":""},{"$f":"IF($A246=\"N/A\",Ref!$B$36,INDEX(Ranks!$1:$1048576,$A246,V$1))","v":""},{"$f":"IF($A246=\"N/A\",Ref!$B$36,INDEX(Ranks!$1:$1048576,$A246,W$1))","v":""},{"$f":"IF($A246=\"N/A\",Ref!$B$36,INDEX(Ranks!$1:$1048576,$A246,X$1))","v":""},{"$f":"IF($A246=\"N/A\",Ref!$B$36,INDEX(Ranks!$1:$1048576,$A246,Y$1))","v":""},{"$f":"IF($A246=\"N/A\",Ref!$B$36,INDEX(Ranks!$1:$1048576,$A246,Z$1))","v":""},{"$f":"IF($A246=\"N/A\",Ref!$B$36,INDEX(Ranks!$1:$1048576,$A246,AA$1))","v":""},{"$f":"IF($A246=\"N/A\",Ref!$B$36,INDEX(Ranks!$1:$1048576,$A246,AB$1))","v":""},{"$f":"IF($A246=\"N/A\",Ref!$B$36,INDEX(Ranks!$1:$1048576,$A246,AC$1))","v":""},{"$f":"IF($A246=\"N/A\",Ref!$B$36,INDEX(Ranks!$1:$1048576,$A246,AD$1))","v":""},{"$f":"IF($A246=\"N/A\",Ref!$B$36,INDEX(Ranks!$1:$1048576,$A246,AE$1))","v":""},{"$f":"IF($A246=\"N/A\",Ref!$B$36,INDEX(Ranks!$1:$1048576,$A246,AF$1))","v":""},{"$f":"IF($A246=\"N/A\",Ref!$B$36,INDEX(Ranks!$1:$1048576,$A246,AG$1))","v":""},{"$f":"IF($A246=\"N/A\",Ref!$B$36,INDEX(Ranks!$1:$1048576,$A246,AH$1))","v":""},{"$f":"IF($A246=\"N/A\",Ref!$B$36,INDEX(Ranks!$1:$1048576,$A246,AI$1))","v":""},{"$f":"IF($A246=\"N/A\",Ref!$B$36,INDEX(Ranks!$1:$1048576,$A246,AJ$1))","v":""},{"$f":"IF($A246=\"N/A\",Ref!$B$36,INDEX(Ranks!$1:$1048576,$A246,AK$1))","v":""},{"$f":"IF($A246=\"N/A\",Ref!$B$36,INDEX(Ranks!$1:$1048576,$A246,AL$1))","v":""},{"$f":"IF($A246=\"N/A\",Ref!$B$36,INDEX(Ranks!$1:$1048576,$A246,AM$1))","v":""},{"$f":"IF($A246=\"N/A\",Ref!$B$36,INDEX(Ranks!$1:$1048576,$A246,AN$1))","v":""},{"$f":"IF($A246=\"N/A\",Ref!$B$36,INDEX(Ranks!$1:$1048576,$A246,AO$1))","v":""},{"$f":"IF($A246=\"N/A\",Ref!$B$36,INDEX(Ranks!$1:$1048576,$A246,AP$1))","v":""},{"$f":"IF($A246=\"N/A\",Ref!$B$36,INDEX(Ranks!$1:$1048576,$A246,AQ$1))","v":""},{"$f":"IF($A246=\"N/A\",Ref!$B$36,INDEX(Ranks!$1:$1048576,$A246,AR$1))","v":""},{"$f":"IF($A246=\"N/A\",Ref!$B$36,INDEX(Ranks!$1:$1048576,$A246,AS$1))","v":""},{"$f":"IF($A246=\"N/A\",Ref!$B$36,INDEX(Ranks!$1:$1048576,$A246,AT$1))","v":""},{"$f":"IF($A246=\"N/A\",Ref!$B$36,INDEX(Ranks!$1:$1048576,$A246,AU$1))","v":""},{"$f":"IF($A246=\"N/A\",Ref!$B$36,INDEX(Ranks!$1:$1048576,$A246,AV$1))","v":""},{"$f":"IF($A246=\"N/A\",Ref!$B$36,INDEX(Ranks!$1:$1048576,$A246,AW$1))","v":""},{"$f":"IF($A246=\"N/A\",Ref!$B$36,INDEX(Ranks!$1:$1048576,$A246,AX$1))","v":""},{"$f":"IF($A246=\"N/A\",Ref!$B$36,INDEX(Ranks!$1:$1048576,$A246,AY$1))","v":""},{"$f":"IF($A246=\"N/A\",Ref!$B$36,INDEX(Ranks!$1:$1048576,$A246,AZ$1))","v":""},{"$f":"IF($A246=\"N/A\",Ref!$B$36,INDEX(Ranks!$1:$1048576,$A246,BA$1))","v":""},{"$f":"IF($A246=\"N/A\",Ref!$B$36,INDEX(Ranks!$1:$1048576,$A246,BB$1))","v":""},{"$f":"IF($A246=\"N/A\",Ref!$B$36,INDEX(Ranks!$1:$1048576,$A246,BC$1))","v":""},{"$f":"IF($A246=\"N/A\",Ref!$B$36,INDEX(Ranks!$1:$1048576,$A246,BD$1))","v":""},{"$f":"IF($A246=\"N/A\",Ref!$B$36,INDEX(Ranks!$1:$1048576,$A246,BE$1))","v":""},{"$f":"IF($A246=\"N/A\",Ref!$B$36,INDEX(Ranks!$1:$1048576,$A246,BF$1))","v":""},{"$f":"IF($A246=\"N/A\",Ref!$B$36,INDEX(Ranks!$1:$1048576,$A246,BG$1))","v":""},{"$f":"IF($A246=\"N/A\",Ref!$B$36,INDEX(Ranks!$1:$1048576,$A246,BH$1))","v":""},{"$f":"IF($A246=\"N/A\",Ref!$B$36,INDEX(Ranks!$1:$1048576,$A246,BI$1))","v":""},{"$f":"IF($A246=\"N/A\",Ref!$B$36,INDEX(Ranks!$1:$1048576,$A246,BJ$1))","v":""},{"$f":"IF($A246=\"N/A\",Ref!$B$36,INDEX(Ranks!$1:$1048576,$A246,BK$1))","v":""},{"$f":"IF($A246=\"N/A\",Ref!$B$36,INDEX(Ranks!$1:$1048576,$A246,BL$1))","v":""},{"$f":"IF($A246=\"N/A\",Ref!$B$36,INDEX(Ranks!$1:$1048576,$A246,BM$1))","v":""},{"$f":"IF($A246=\"N/A\",Ref!$B$36,INDEX(Ranks!$1:$1048576,$A246,BN$1))","v":""},{"$f":"IF($A246=\"N/A\",Ref!$B$36,INDEX(Ranks!$1:$1048576,$A246,BO$1))","v":""},{"$f":"IF($A246=\"N/A\",Ref!$B$36,INDEX(Ranks!$1:$1048576,$A246,BP$1))","v":""},{"$f":"IF($A246=\"N/A\",Ref!$B$36,INDEX(Ranks!$1:$1048576,$A246,BQ$1))","v":""},{"$f":"IF($A246=\"N/A\",Ref!$B$36,INDEX(Ranks!$1:$1048576,$A246,BR$1))","v":""},{"$f":"IF($A246=\"N/A\",Ref!$B$36,INDEX(Ranks!$1:$1048576,$A246,BS$1))","v":""},{"$f":"IF($A246=\"N/A\",Ref!$B$36,INDEX(Ranks!$1:$1048576,$A246,BT$1))","v":""},{"$f":"IF($A246=\"N/A\",Ref!$B$36,INDEX(Ranks!$1:$1048576,$A246,BU$1))","v":""},{"$f":"IF($A246=\"N/A\",Ref!$B$36,INDEX(Ranks!$1:$1048576,$A246,BV$1))","v":""},{"$f":"IF($A246=\"N/A\",Ref!$B$36,INDEX(Ranks!$1:$1048576,$A246,BW$1))","v":""},{"$f":"IF($A246=\"N/A\",Ref!$B$36,INDEX(Ranks!$1:$1048576,$A246,BX$1))","v":""},{"$f":"IF($A246=\"N/A\",Ref!$B$36,INDEX(Ranks!$1:$1048576,$A246,BY$1))","v":""},{"$f":"IF($A246=\"N/A\",Ref!$B$36,INDEX(Ranks!$1:$1048576,$A246,BZ$1))","v":""},{"$f":"IF($A246=\"N/A\",Ref!$B$36,INDEX(Ranks!$1:$1048576,$A246,CA$1))","v":""},{"$f":"IF($A246=\"N/A\",Ref!$B$36,INDEX(Ranks!$1:$1048576,$A246,CB$1))","v":""},{"$f":"IF($A246=\"N/A\",Ref!$B$36,INDEX(Ranks!$1:$1048576,$A246,CC$1))","v":""},{"$f":"IF($A246=\"N/A\",Ref!$B$36,INDEX(Ranks!$1:$1048576,$A246,CD$1))","v":""},{"$f":"IF($A246=\"N/A\",Ref!$B$36,INDEX(Ranks!$1:$1048576,$A246,CE$1))","v":""},{"$f":"IF($A246=\"N/A\",Ref!$B$36,INDEX(Ranks!$1:$1048576,$A246,CF$1))","v":""},{"$f":"IF($A246=\"N/A\",Ref!$B$36,INDEX(Ranks!$1:$1048576,$A246,CG$1))","v":""},{"$f":"IF($A246=\"N/A\",Ref!$B$36,INDEX(Ranks!$1:$1048576,$A246,CH$1))","v":""},{"$f":"IF($A246=\"N/A\",Ref!$B$36,INDEX(Ranks!$1:$1048576,$A246,CI$1))","v":""},{"$f":"IF($A246=\"N/A\",Ref!$B$36,INDEX(Ranks!$1:$1048576,$A246,CJ$1))","v":""},{"$f":"IF($A246=\"N/A\",Ref!$B$36,INDEX(Ranks!$1:$1048576,$A246,CK$1))","v":""},{"$f":"IF($A246=\"N/A\",Ref!$B$36,INDEX(Ranks!$1:$1048576,$A246,CL$1))","v":""},{"$f":"IF($A246=\"N/A\",Ref!$B$36,INDEX(Ranks!$1:$1048576,$A246,CM$1))","v":""},{"$f":"IF($A246=\"N/A\",Ref!$B$36,INDEX(Ranks!$1:$1048576,$A246,CN$1))","v":""},{"$f":"IF($A246=\"N/A\",Ref!$B$36,INDEX(Ranks!$1:$1048576,$A246,CO$1))","v":""},{"$f":"IF($A246=\"N/A\",Ref!$B$36,INDEX(Ranks!$1:$1048576,$A246,CP$1))","v":""},{"$f":"IF($A246=\"N/A\",Ref!$B$36,INDEX(Ranks!$1:$1048576,$A246,CQ$1))","v":""},{"$f":"IF($A246=\"N/A\",Ref!$B$36,INDEX(Ranks!$1:$1048576,$A246,CR$1))","v":""},{"$f":"IF($A246=\"N/A\",Ref!$B$36,INDEX(Ranks!$1:$1048576,$A246,CS$1))","v":""},{"$f":"IF($A246=\"N/A\",Ref!$B$36,INDEX(Ranks!$1:$1048576,$A246,CT$1))","v":""},{"$f":"IF($A246=\"N/A\",Ref!$B$36,INDEX(Ranks!$1:$1048576,$A246,CU$1))","v":""},{"$f":"IF($A246=\"N/A\",Ref!$B$36,INDEX(Ranks!$1:$1048576,$A246,CV$1))","v":""},{"$f":"IF($A246=\"N/A\",Ref!$B$36,INDEX(Ranks!$1:$1048576,$A246,CW$1))","v":""},{"$f":"IF($A246=\"N/A\",Ref!$B$36,INDEX(Ranks!$1:$1048576,$A246,CX$1))","v":""},{"$f":"IF($A246=\"N/A\",Ref!$B$36,INDEX(Ranks!$1:$1048576,$A246,CY$1))","v":""},{"$f":"IF($A246=\"N/A\",Ref!$B$36,INDEX(Ranks!$1:$1048576,$A246,CZ$1))","v":""},{"$f":"IF($A246=\"N/A\",Ref!$B$36,INDEX(Ranks!$1:$1048576,$A246,DA$1))","v":""},{"$f":"IF($A246=\"N/A\",Ref!$B$36,INDEX(Ranks!$1:$1048576,$A246,DB$1))","v":""},{"$f":"IF($A246=\"N/A\",Ref!$B$36,INDEX(Ranks!$1:$1048576,$A246,DC$1))","v":""},{"$f":"IF($A246=\"N/A\",Ref!$B$36,INDEX(Ranks!$1:$1048576,$A246,DD$1))","v":""},{"$f":"IF($A246=\"N/A\",Ref!$B$36,INDEX(Ranks!$1:$1048576,$A246,DE$1))","v":""},{"$f":"IF($A246=\"N/A\",Ref!$B$36,INDEX(Ranks!$1:$1048576,$A246,DF$1))","v":""},{"$f":"IF($A246=\"N/A\",Ref!$B$36,INDEX(Ranks!$1:$1048576,$A246,DG$1))","v":""},{"$f":"IF($A246=\"N/A\",Ref!$B$36,INDEX(Ranks!$1:$1048576,$A246,DH$1))","v":""},{"$f":"IF($A246=\"N/A\",Ref!$B$36,INDEX(Ranks!$1:$1048576,$A246,DI$1))","v":""},{"$f":"IF($A246=\"N/A\",Ref!$B$36,INDEX(Ranks!$1:$1048576,$A246,DJ$1))","v":""},{"$f":"IF($A246=\"N/A\",Ref!$B$36,INDEX(Ranks!$1:$1048576,$A246,DK$1))","v":""},{"$f":"IF($A246=\"N/A\",Ref!$B$36,INDEX(Ranks!$1:$1048576,$A246,DL$1))","v":""},{"$f":"IF($A246=\"N/A\",Ref!$B$36,INDEX(Ranks!$1:$1048576,$A246,DM$1))","v":""},{"$f":"IF($A246=\"N/A\",Ref!$B$36,INDEX(Ranks!$1:$1048576,$A246,DN$1))","v":""},{"$f":"IF($A246=\"N/A\",Ref!$B$36,INDEX(Ranks!$1:$1048576,$A246,DO$1))","v":""},{"$f":"IF($A246=\"N/A\",Ref!$B$36,INDEX(Ranks!$1:$1048576,$A246,DP$1))","v":""},{"$f":"IF($A246=\"N/A\",Ref!$B$36,INDEX(Ranks!$1:$1048576,$A246,DQ$1))","v":""},{"$f":"IF($A246=\"N/A\",Ref!$B$36,INDEX(Ranks!$1:$1048576,$A246,DR$1))","v":""},{"$f":"IF($A246=\"N/A\",Ref!$B$36,INDEX(Ranks!$1:$1048576,$A246,DS$1))","v":""},{"$f":"IF($A246=\"N/A\",Ref!$B$36,INDEX(Ranks!$1:$1048576,$A246,DT$1))","v":""},{"$f":"IF($A246=\"N/A\",Ref!$B$36,INDEX(Ranks!$1:$1048576,$A246,DU$1))","v":""},{"$f":"IF($A246=\"N/A\",Ref!$B$36,INDEX(Ranks!$1:$1048576,$A246,DV$1))","v":""},{"$f":"IF($A246=\"N/A\",Ref!$B$36,INDEX(Ranks!$1:$1048576,$A246,DW$1))","v":""},{"$f":"IF($A246=\"N/A\",Ref!$B$36,INDEX(Ranks!$1:$1048576,$A246,DX$1))","v":""},{"$f":"IF($A246=\"N/A\",Ref!$B$36,INDEX(Ranks!$1:$1048576,$A246,DY$1))","v":""},{"$f":"IF($A246=\"N/A\",Ref!$B$36,INDEX(Ranks!$1:$1048576,$A246,DZ$1))","v":""},{"$f":"IF($A246=\"N/A\",Ref!$B$36,INDEX(Ranks!$1:$1048576,$A246,EA$1))","v":""},{"$f":"IF($A246=\"N/A\",Ref!$B$36,INDEX(Ranks!$1:$1048576,$A246,EB$1))","v":""}]
[{"$f":"IFERROR(MATCH('Portfolio Page'!L247,Ranks!L:L,0),\"N/A\")","v":"N/A"},null,{"$f":"IF($A247=\"N/A\",\"\",INDEX(Ranks!$1:$1048576,$A247,C$1))","v":""},{"$f":"IF($A247=\"N/A\",Ref!$B$36,INDEX(Ranks!$1:$1048576,$A247,D$1))","v":""},{"$f":"IF($A247=\"N/A\",Ref!$B$36,INDEX(Ranks!$1:$1048576,$A247,E$1))","v":""},{"$f":"IF($A247=\"N/A\",\"\",INDEX(Ranks!$1:$1048576,$A247,F$1))","v":""},{"$f":"IF($A247=\"N/A\",\"\",INDEX(Ranks!$1:$1048576,$A247,G$1))","v":""},{"$f":"IF($A247=\"N/A\",\"\",INDEX(Ranks!$1:$1048576,$A247,H$1))","v":""},{"$f":"IF($A247=\"N/A\",\"\",INDEX(Ranks!$1:$1048576,$A247,I$1))","v":""},{"$f":"IF($A247=\"N/A\",\"\",INDEX(Ranks!$1:$1048576,$A247,J$1))","v":""},{"$f":"IF($A247=\"N/A\",\"\",INDEX(Ranks!$1:$1048576,$A247,K$1))","v":""},null,{"$f":"IF($A247=\"N/A\",Ref!$B$36,INDEX(Ranks!$1:$1048576,$A247,M$1))","v":""},{"$f":"IF($A247=\"N/A\",Ref!$B$36,INDEX(Ranks!$1:$1048576,$A247,N$1))","v":""},{"$f":"IF($A247=\"N/A\",Ref!$B$36,INDEX(Ranks!$1:$1048576,$A247,O$1))","v":""},{"$f":"IF($A247=\"N/A\",Ref!$B$36,INDEX(Ranks!$1:$1048576,$A247,P$1))","v":""},{"$f":"IF($A247=\"N/A\",Ref!$B$36,INDEX(Ranks!$1:$1048576,$A247,Q$1))","v":""},{"$f":"IF($A247=\"N/A\",Ref!$B$36,INDEX(Ranks!$1:$1048576,$A247,R$1))","v":""},{"$f":"IF($A247=\"N/A\",Ref!$B$36,INDEX(Ranks!$1:$1048576,$A247,S$1))","v":""},{"$f":"IF($A247=\"N/A\",Ref!$B$36,INDEX(Ranks!$1:$1048576,$A247,T$1))","v":""},{"$f":"IF($A247=\"N/A\",Ref!$B$36,INDEX(Ranks!$1:$1048576,$A247,U$1))","v":""},{"$f":"IF($A247=\"N/A\",Ref!$B$36,INDEX(Ranks!$1:$1048576,$A247,V$1))","v":""},{"$f":"IF($A247=\"N/A\",Ref!$B$36,INDEX(Ranks!$1:$1048576,$A247,W$1))","v":""},{"$f":"IF($A247=\"N/A\",Ref!$B$36,INDEX(Ranks!$1:$1048576,$A247,X$1))","v":""},{"$f":"IF($A247=\"N/A\",Ref!$B$36,INDEX(Ranks!$1:$1048576,$A247,Y$1))","v":""},{"$f":"IF($A247=\"N/A\",Ref!$B$36,INDEX(Ranks!$1:$1048576,$A247,Z$1))","v":""},{"$f":"IF($A247=\"N/A\",Ref!$B$36,INDEX(Ranks!$1:$1048576,$A247,AA$1))","v":""},{"$f":"IF($A247=\"N/A\",Ref!$B$36,INDEX(Ranks!$1:$1048576,$A247,AB$1))","v":""},{"$f":"IF($A247=\"N/A\",Ref!$B$36,INDEX(Ranks!$1:$1048576,$A247,AC$1))","v":""},{"$f":"IF($A247=\"N/A\",Ref!$B$36,INDEX(Ranks!$1:$1048576,$A247,AD$1))","v":""},{"$f":"IF($A247=\"N/A\",Ref!$B$36,INDEX(Ranks!$1:$1048576,$A247,AE$1))","v":""},{"$f":"IF($A247=\"N/A\",Ref!$B$36,INDEX(Ranks!$1:$1048576,$A247,AF$1))","v":""},{"$f":"IF($A247=\"N/A\",Ref!$B$36,INDEX(Ranks!$1:$1048576,$A247,AG$1))","v":""},{"$f":"IF($A247=\"N/A\",Ref!$B$36,INDEX(Ranks!$1:$1048576,$A247,AH$1))","v":""},{"$f":"IF($A247=\"N/A\",Ref!$B$36,INDEX(Ranks!$1:$1048576,$A247,AI$1))","v":""},{"$f":"IF($A247=\"N/A\",Ref!$B$36,INDEX(Ranks!$1:$1048576,$A247,AJ$1))","v":""},{"$f":"IF($A247=\"N/A\",Ref!$B$36,INDEX(Ranks!$1:$1048576,$A247,AK$1))","v":""},{"$f":"IF($A247=\"N/A\",Ref!$B$36,INDEX(Ranks!$1:$1048576,$A247,AL$1))","v":""},{"$f":"IF($A247=\"N/A\",Ref!$B$36,INDEX(Ranks!$1:$1048576,$A247,AM$1))","v":""},{"$f":"IF($A247=\"N/A\",Ref!$B$36,INDEX(Ranks!$1:$1048576,$A247,AN$1))","v":""},{"$f":"IF($A247=\"N/A\",Ref!$B$36,INDEX(Ranks!$1:$1048576,$A247,AO$1))","v":""},{"$f":"IF($A247=\"N/A\",Ref!$B$36,INDEX(Ranks!$1:$1048576,$A247,AP$1))","v":""},{"$f":"IF($A247=\"N/A\",Ref!$B$36,INDEX(Ranks!$1:$1048576,$A247,AQ$1))","v":""},{"$f":"IF($A247=\"N/A\",Ref!$B$36,INDEX(Ranks!$1:$1048576,$A247,AR$1))","v":""},{"$f":"IF($A247=\"N/A\",Ref!$B$36,INDEX(Ranks!$1:$1048576,$A247,AS$1))","v":""},{"$f":"IF($A247=\"N/A\",Ref!$B$36,INDEX(Ranks!$1:$1048576,$A247,AT$1))","v":""},{"$f":"IF($A247=\"N/A\",Ref!$B$36,INDEX(Ranks!$1:$1048576,$A247,AU$1))","v":""},{"$f":"IF($A247=\"N/A\",Ref!$B$36,INDEX(Ranks!$1:$1048576,$A247,AV$1))","v":""},{"$f":"IF($A247=\"N/A\",Ref!$B$36,INDEX(Ranks!$1:$1048576,$A247,AW$1))","v":""},{"$f":"IF($A247=\"N/A\",Ref!$B$36,INDEX(Ranks!$1:$1048576,$A247,AX$1))","v":""},{"$f":"IF($A247=\"N/A\",Ref!$B$36,INDEX(Ranks!$1:$1048576,$A247,AY$1))","v":""},{"$f":"IF($A247=\"N/A\",Ref!$B$36,INDEX(Ranks!$1:$1048576,$A247,AZ$1))","v":""},{"$f":"IF($A247=\"N/A\",Ref!$B$36,INDEX(Ranks!$1:$1048576,$A247,BA$1))","v":""},{"$f":"IF($A247=\"N/A\",Ref!$B$36,INDEX(Ranks!$1:$1048576,$A247,BB$1))","v":""},{"$f":"IF($A247=\"N/A\",Ref!$B$36,INDEX(Ranks!$1:$1048576,$A247,BC$1))","v":""},{"$f":"IF($A247=\"N/A\",Ref!$B$36,INDEX(Ranks!$1:$1048576,$A247,BD$1))","v":""},{"$f":"IF($A247=\"N/A\",Ref!$B$36,INDEX(Ranks!$1:$1048576,$A247,BE$1))","v":""},{"$f":"IF($A247=\"N/A\",Ref!$B$36,INDEX(Ranks!$1:$1048576,$A247,BF$1))","v":""},{"$f":"IF($A247=\"N/A\",Ref!$B$36,INDEX(Ranks!$1:$1048576,$A247,BG$1))","v":""},{"$f":"IF($A247=\"N/A\",Ref!$B$36,INDEX(Ranks!$1:$1048576,$A247,BH$1))","v":""},{"$f":"IF($A247=\"N/A\",Ref!$B$36,INDEX(Ranks!$1:$1048576,$A247,BI$1))","v":""},{"$f":"IF($A247=\"N/A\",Ref!$B$36,INDEX(Ranks!$1:$1048576,$A247,BJ$1))","v":""},{"$f":"IF($A247=\"N/A\",Ref!$B$36,INDEX(Ranks!$1:$1048576,$A247,BK$1))","v":""},{"$f":"IF($A247=\"N/A\",Ref!$B$36,INDEX(Ranks!$1:$1048576,$A247,BL$1))","v":""},{"$f":"IF($A247=\"N/A\",Ref!$B$36,INDEX(Ranks!$1:$1048576,$A247,BM$1))","v":""},{"$f":"IF($A247=\"N/A\",Ref!$B$36,INDEX(Ranks!$1:$1048576,$A247,BN$1))","v":""},{"$f":"IF($A247=\"N/A\",Ref!$B$36,INDEX(Ranks!$1:$1048576,$A247,BO$1))","v":""},{"$f":"IF($A247=\"N/A\",Ref!$B$36,INDEX(Ranks!$1:$1048576,$A247,BP$1))","v":""},{"$f":"IF($A247=\"N/A\",Ref!$B$36,INDEX(Ranks!$1:$1048576,$A247,BQ$1))","v":""},{"$f":"IF($A247=\"N/A\",Ref!$B$36,INDEX(Ranks!$1:$1048576,$A247,BR$1))","v":""},{"$f":"IF($A247=\"N/A\",Ref!$B$36,INDEX(Ranks!$1:$1048576,$A247,BS$1))","v":""},{"$f":"IF($A247=\"N/A\",Ref!$B$36,INDEX(Ranks!$1:$1048576,$A247,BT$1))","v":""},{"$f":"IF($A247=\"N/A\",Ref!$B$36,INDEX(Ranks!$1:$1048576,$A247,BU$1))","v":""},{"$f":"IF($A247=\"N/A\",Ref!$B$36,INDEX(Ranks!$1:$1048576,$A247,BV$1))","v":""},{"$f":"IF($A247=\"N/A\",Ref!$B$36,INDEX(Ranks!$1:$1048576,$A247,BW$1))","v":""},{"$f":"IF($A247=\"N/A\",Ref!$B$36,INDEX(Ranks!$1:$1048576,$A247,BX$1))","v":""},{"$f":"IF($A247=\"N/A\",Ref!$B$36,INDEX(Ranks!$1:$1048576,$A247,BY$1))","v":""},{"$f":"IF($A247=\"N/A\",Ref!$B$36,INDEX(Ranks!$1:$1048576,$A247,BZ$1))","v":""},{"$f":"IF($A247=\"N/A\",Ref!$B$36,INDEX(Ranks!$1:$1048576,$A247,CA$1))","v":""},{"$f":"IF($A247=\"N/A\",Ref!$B$36,INDEX(Ranks!$1:$1048576,$A247,CB$1))","v":""},{"$f":"IF($A247=\"N/A\",Ref!$B$36,INDEX(Ranks!$1:$1048576,$A247,CC$1))","v":""},{"$f":"IF($A247=\"N/A\",Ref!$B$36,INDEX(Ranks!$1:$1048576,$A247,CD$1))","v":""},{"$f":"IF($A247=\"N/A\",Ref!$B$36,INDEX(Ranks!$1:$1048576,$A247,CE$1))","v":""},{"$f":"IF($A247=\"N/A\",Ref!$B$36,INDEX(Ranks!$1:$1048576,$A247,CF$1))","v":""},{"$f":"IF($A247=\"N/A\",Ref!$B$36,INDEX(Ranks!$1:$1048576,$A247,CG$1))","v":""},{"$f":"IF($A247=\"N/A\",Ref!$B$36,INDEX(Ranks!$1:$1048576,$A247,CH$1))","v":""},{"$f":"IF($A247=\"N/A\",Ref!$B$36,INDEX(Ranks!$1:$1048576,$A247,CI$1))","v":""},{"$f":"IF($A247=\"N/A\",Ref!$B$36,INDEX(Ranks!$1:$1048576,$A247,CJ$1))","v":""},{"$f":"IF($A247=\"N/A\",Ref!$B$36,INDEX(Ranks!$1:$1048576,$A247,CK$1))","v":""},{"$f":"IF($A247=\"N/A\",Ref!$B$36,INDEX(Ranks!$1:$1048576,$A247,CL$1))","v":""},{"$f":"IF($A247=\"N/A\",Ref!$B$36,INDEX(Ranks!$1:$1048576,$A247,CM$1))","v":""},{"$f":"IF($A247=\"N/A\",Ref!$B$36,INDEX(Ranks!$1:$1048576,$A247,CN$1))","v":""},{"$f":"IF($A247=\"N/A\",Ref!$B$36,INDEX(Ranks!$1:$1048576,$A247,CO$1))","v":""},{"$f":"IF($A247=\"N/A\",Ref!$B$36,INDEX(Ranks!$1:$1048576,$A247,CP$1))","v":""},{"$f":"IF($A247=\"N/A\",Ref!$B$36,INDEX(Ranks!$1:$1048576,$A247,CQ$1))","v":""},{"$f":"IF($A247=\"N/A\",Ref!$B$36,INDEX(Ranks!$1:$1048576,$A247,CR$1))","v":""},{"$f":"IF($A247=\"N/A\",Ref!$B$36,INDEX(Ranks!$1:$1048576,$A247,CS$1))","v":""},{"$f":"IF($A247=\"N/A\",Ref!$B$36,INDEX(Ranks!$1:$1048576,$A247,CT$1))","v":""},{"$f":"IF($A247=\"N/A\",Ref!$B$36,INDEX(Ranks!$1:$1048576,$A247,CU$1))","v":""},{"$f":"IF($A247=\"N/A\",Ref!$B$36,INDEX(Ranks!$1:$1048576,$A247,CV$1))","v":""},{"$f":"IF($A247=\"N/A\",Ref!$B$36,INDEX(Ranks!$1:$1048576,$A247,CW$1))","v":""},{"$f":"IF($A247=\"N/A\",Ref!$B$36,INDEX(Ranks!$1:$1048576,$A247,CX$1))","v":""},{"$f":"IF($A247=\"N/A\",Ref!$B$36,INDEX(Ranks!$1:$1048576,$A247,CY$1))","v":""},{"$f":"IF($A247=\"N/A\",Ref!$B$36,INDEX(Ranks!$1:$1048576,$A247,CZ$1))","v":""},{"$f":"IF($A247=\"N/A\",Ref!$B$36,INDEX(Ranks!$1:$1048576,$A247,DA$1))","v":""},{"$f":"IF($A247=\"N/A\",Ref!$B$36,INDEX(Ranks!$1:$1048576,$A247,DB$1))","v":""},{"$f":"IF($A247=\"N/A\",Ref!$B$36,INDEX(Ranks!$1:$1048576,$A247,DC$1))","v":""},{"$f":"IF($A247=\"N/A\",Ref!$B$36,INDEX(Ranks!$1:$1048576,$A247,DD$1))","v":""},{"$f":"IF($A247=\"N/A\",Ref!$B$36,INDEX(Ranks!$1:$1048576,$A247,DE$1))","v":""},{"$f":"IF($A247=\"N/A\",Ref!$B$36,INDEX(Ranks!$1:$1048576,$A247,DF$1))","v":""},{"$f":"IF($A247=\"N/A\",Ref!$B$36,INDEX(Ranks!$1:$1048576,$A247,DG$1))","v":""},{"$f":"IF($A247=\"N/A\",Ref!$B$36,INDEX(Ranks!$1:$1048576,$A247,DH$1))","v":""},{"$f":"IF($A247=\"N/A\",Ref!$B$36,INDEX(Ranks!$1:$1048576,$A247,DI$1))","v":""},{"$f":"IF($A247=\"N/A\",Ref!$B$36,INDEX(Ranks!$1:$1048576,$A247,DJ$1))","v":""},{"$f":"IF($A247=\"N/A\",Ref!$B$36,INDEX(Ranks!$1:$1048576,$A247,DK$1))","v":""},{"$f":"IF($A247=\"N/A\",Ref!$B$36,INDEX(Ranks!$1:$1048576,$A247,DL$1))","v":""},{"$f":"IF($A247=\"N/A\",Ref!$B$36,INDEX(Ranks!$1:$1048576,$A247,DM$1))","v":""},{"$f":"IF($A247=\"N/A\",Ref!$B$36,INDEX(Ranks!$1:$1048576,$A247,DN$1))","v":""},{"$f":"IF($A247=\"N/A\",Ref!$B$36,INDEX(Ranks!$1:$1048576,$A247,DO$1))","v":""},{"$f":"IF($A247=\"N/A\",Ref!$B$36,INDEX(Ranks!$1:$1048576,$A247,DP$1))","v":""},{"$f":"IF($A247=\"N/A\",Ref!$B$36,INDEX(Ranks!$1:$1048576,$A247,DQ$1))","v":""},{"$f":"IF($A247=\"N/A\",Ref!$B$36,INDEX(Ranks!$1:$1048576,$A247,DR$1))","v":""},{"$f":"IF($A247=\"N/A\",Ref!$B$36,INDEX(Ranks!$1:$1048576,$A247,DS$1))","v":""},{"$f":"IF($A247=\"N/A\",Ref!$B$36,INDEX(Ranks!$1:$1048576,$A247,DT$1))","v":""},{"$f":"IF($A247=\"N/A\",Ref!$B$36,INDEX(Ranks!$1:$1048576,$A247,DU$1))","v":""},{"$f":"IF($A247=\"N/A\",Ref!$B$36,INDEX(Ranks!$1:$1048576,$A247,DV$1))","v":""},{"$f":"IF($A247=\"N/A\",Ref!$B$36,INDEX(Ranks!$1:$1048576,$A247,DW$1))","v":""},{"$f":"IF($A247=\"N/A\",Ref!$B$36,INDEX(Ranks!$1:$1048576,$A247,DX$1))","v":""},{"$f":"IF($A247=\"N/A\",Ref!$B$36,INDEX(Ranks!$1:$1048576,$A247,DY$1))","v":""},{"$f":"IF($A247=\"N/A\",Ref!$B$36,INDEX(Ranks!$1:$1048576,$A247,DZ$1))","v":""},{"$f":"IF($A247=\"N/A\",Ref!$B$36,INDEX(Ranks!$1:$1048576,$A247,EA$1))","v":""},{"$f":"IF($A247=\"N/A\",Ref!$B$36,INDEX(Ranks!$1:$1048576,$A247,EB$1))","v":""}]
[{"$f":"IFERROR(MATCH('Portfolio Page'!L248,Ranks!L:L,0),\"N/A\")","v":"N/A"},null,{"$f":"IF($A248=\"N/A\",\"\",INDEX(Ranks!$1:$1048576,$A248,C$1))","v":""},{"$f":"IF($A248=\"N/A\",Ref!$B$36,INDEX(Ranks!$1:$1048576,$A248,D$1))","v":""},{"$f":"IF($A248=\"N/A\",Ref!$B$36,INDEX(Ranks!$1:$1048576,$A248,E$1))","v":""},{"$f":"IF($A248=\"N/A\",\"\",INDEX(Ranks!$1:$1048576,$A248,F$1))","v":""},{"$f":"IF($A248=\"N/A\",\"\",INDEX(Ranks!$1:$1048576,$A248,G$1))","v":""},{"$f":"IF($A248=\"N/A\",\"\",INDEX(Ranks!$1:$1048576,$A248,H$1))","v":""},{"$f":"IF($A248=\"N/A\",\"\",INDEX(Ranks!$1:$1048576,$A248,I$1))","v":""},{"$f":"IF($A248=\"N/A\",\"\",INDEX(Ranks!$1:$1048576,$A248,J$1))","v":""},{"$f":"IF($A248=\"N/A\",\"\",INDEX(Ranks!$1:$1048576,$A248,K$1))","v":""},null,{"$f":"IF($A248=\"N/A\",Ref!$B$36,INDEX(Ranks!$1:$1048576,$A248,M$1))","v":""},{"$f":"IF($A248=\"N/A\",Ref!$B$36,INDEX(Ranks!$1:$1048576,$A248,N$1))","v":""},{"$f":"IF($A248=\"N/A\",Ref!$B$36,INDEX(Ranks!$1:$1048576,$A248,O$1))","v":""},{"$f":"IF($A248=\"N/A\",Ref!$B$36,INDEX(Ranks!$1:$1048576,$A248,P$1))","v":""},{"$f":"IF($A248=\"N/A\",Ref!$B$36,INDEX(Ranks!$1:$1048576,$A248,Q$1))","v":""},{"$f":"IF($A248=\"N/A\",Ref!$B$36,INDEX(Ranks!$1:$1048576,$A248,R$1))","v":""},{"$f":"IF($A248=\"N/A\",Ref!$B$36,INDEX(Ranks!$1:$1048576,$A248,S$1))","v":""},{"$f":"IF($A248=\"N/A\",Ref!$B$36,INDEX(Ranks!$1:$1048576,$A248,T$1))","v":""},{"$f":"IF($A248=\"N/A\",Ref!$B$36,INDEX(Ranks!$1:$1048576,$A248,U$1))","v":""},{"$f":"IF($A248=\"N/A\",Ref!$B$36,INDEX(Ranks!$1:$1048576,$A248,V$1))","v":""},{"$f":"IF($A248=\"N/A\",Ref!$B$36,INDEX(Ranks!$1:$1048576,$A248,W$1))","v":""},{"$f":"IF($A248=\"N/A\",Ref!$B$36,INDEX(Ranks!$1:$1048576,$A248,X$1))","v":""},{"$f":"IF($A248=\"N/A\",Ref!$B$36,INDEX(Ranks!$1:$1048576,$A248,Y$1))","v":""},{"$f":"IF($A248=\"N/A\",Ref!$B$36,INDEX(Ranks!$1:$1048576,$A248,Z$1))","v":""},{"$f":"IF($A248=\"N/A\",Ref!$B$36,INDEX(Ranks!$1:$1048576,$A248,AA$1))","v":""},{"$f":"IF($A248=\"N/A\",Ref!$B$36,INDEX(Ranks!$1:$1048576,$A248,AB$1))","v":""},{"$f":"IF($A248=\"N/A\",Ref!$B$36,INDEX(Ranks!$1:$1048576,$A248,AC$1))","v":""},{"$f":"IF($A248=\"N/A\",Ref!$B$36,INDEX(Ranks!$1:$1048576,$A248,AD$1))","v":""},{"$f":"IF($A248=\"N/A\",Ref!$B$36,INDEX(Ranks!$1:$1048576,$A248,AE$1))","v":""},{"$f":"IF($A248=\"N/A\",Ref!$B$36,INDEX(Ranks!$1:$1048576,$A248,AF$1))","v":""},{"$f":"IF($A248=\"N/A\",Ref!$B$36,INDEX(Ranks!$1:$1048576,$A248,AG$1))","v":""},{"$f":"IF($A248=\"N/A\",Ref!$B$36,INDEX(Ranks!$1:$1048576,$A248,AH$1))","v":""},{"$f":"IF($A248=\"N/A\",Ref!$B$36,INDEX(Ranks!$1:$1048576,$A248,AI$1))","v":""},{"$f":"IF($A248=\"N/A\",Ref!$B$36,INDEX(Ranks!$1:$1048576,$A248,AJ$1))","v":""},{"$f":"IF($A248=\"N/A\",Ref!$B$36,INDEX(Ranks!$1:$1048576,$A248,AK$1))","v":""},{"$f":"IF($A248=\"N/A\",Ref!$B$36,INDEX(Ranks!$1:$1048576,$A248,AL$1))","v":""},{"$f":"IF($A248=\"N/A\",Ref!$B$36,INDEX(Ranks!$1:$1048576,$A248,AM$1))","v":""},{"$f":"IF($A248=\"N/A\",Ref!$B$36,INDEX(Ranks!$1:$1048576,$A248,AN$1))","v":""},{"$f":"IF($A248=\"N/A\",Ref!$B$36,INDEX(Ranks!$1:$1048576,$A248,AO$1))","v":""},{"$f":"IF($A248=\"N/A\",Ref!$B$36,INDEX(Ranks!$1:$1048576,$A248,AP$1))","v":""},{"$f":"IF($A248=\"N/A\",Ref!$B$36,INDEX(Ranks!$1:$1048576,$A248,AQ$1))","v":""},{"$f":"IF($A248=\"N/A\",Ref!$B$36,INDEX(Ranks!$1:$1048576,$A248,AR$1))","v":""},{"$f":"IF($A248=\"N/A\",Ref!$B$36,INDEX(Ranks!$1:$1048576,$A248,AS$1))","v":""},{"$f":"IF($A248=\"N/A\",Ref!$B$36,INDEX(Ranks!$1:$1048576,$A248,AT$1))","v":""},{"$f":"IF($A248=\"N/A\",Ref!$B$36,INDEX(Ranks!$1:$1048576,$A248,AU$1))","v":""},{"$f":"IF($A248=\"N/A\",Ref!$B$36,INDEX(Ranks!$1:$1048576,$A248,AV$1))","v":""},{"$f":"IF($A248=\"N/A\",Ref!$B$36,INDEX(Ranks!$1:$1048576,$A248,AW$1))","v":""},{"$f":"IF($A248=\"N/A\",Ref!$B$36,INDEX(Ranks!$1:$1048576,$A248,AX$1))","v":""},{"$f":"IF($A248=\"N/A\",Ref!$B$36,INDEX(Ranks!$1:$1048576,$A248,AY$1))","v":""},{"$f":"IF($A248=\"N/A\",Ref!$B$36,INDEX(Ranks!$1:$1048576,$A248,AZ$1))","v":""},{"$f":"IF($A248=\"N/A\",Ref!$B$36,INDEX(Ranks!$1:$1048576,$A248,BA$1))","v":""},{"$f":"IF($A248=\"N/A\",Ref!$B$36,INDEX(Ranks!$1:$1048576,$A248,BB$1))","v":""},{"$f":"IF($A248=\"N/A\",Ref!$B$36,INDEX(Ranks!$1:$1048576,$A248,BC$1))","v":""},{"$f":"IF($A248=\"N/A\",Ref!$B$36,INDEX(Ranks!$1:$1048576,$A248,BD$1))","v":""},{"$f":"IF($A248=\"N/A\",Ref!$B$36,INDEX(Ranks!$1:$1048576,$A248,BE$1))","v":""},{"$f":"IF($A248=\"N/A\",Ref!$B$36,INDEX(Ranks!$1:$1048576,$A248,BF$1))","v":""},{"$f":"IF($A248=\"N/A\",Ref!$B$36,INDEX(Ranks!$1:$1048576,$A248,BG$1))","v":""},{"$f":"IF($A248=\"N/A\",Ref!$B$36,INDEX(Ranks!$1:$1048576,$A248,BH$1))","v":""},{"$f":"IF($A248=\"N/A\",Ref!$B$36,INDEX(Ranks!$1:$1048576,$A248,BI$1))","v":""},{"$f":"IF($A248=\"N/A\",Ref!$B$36,INDEX(Ranks!$1:$1048576,$A248,BJ$1))","v":""},{"$f":"IF($A248=\"N/A\",Ref!$B$36,INDEX(Ranks!$1:$1048576,$A248,BK$1))","v":""},{"$f":"IF($A248=\"N/A\",Ref!$B$36,INDEX(Ranks!$1:$1048576,$A248,BL$1))","v":""},{"$f":"IF($A248=\"N/A\",Ref!$B$36,INDEX(Ranks!$1:$1048576,$A248,BM$1))","v":""},{"$f":"IF($A248=\"N/A\",Ref!$B$36,INDEX(Ranks!$1:$1048576,$A248,BN$1))","v":""},{"$f":"IF($A248=\"N/A\",Ref!$B$36,INDEX(Ranks!$1:$1048576,$A248,BO$1))","v":""},{"$f":"IF($A248=\"N/A\",Ref!$B$36,INDEX(Ranks!$1:$1048576,$A248,BP$1))","v":""},{"$f":"IF($A248=\"N/A\",Ref!$B$36,INDEX(Ranks!$1:$1048576,$A248,BQ$1))","v":""},{"$f":"IF($A248=\"N/A\",Ref!$B$36,INDEX(Ranks!$1:$1048576,$A248,BR$1))","v":""},{"$f":"IF($A248=\"N/A\",Ref!$B$36,INDEX(Ranks!$1:$1048576,$A248,BS$1))","v":""},{"$f":"IF($A248=\"N/A\",Ref!$B$36,INDEX(Ranks!$1:$1048576,$A248,BT$1))","v":""},{"$f":"IF($A248=\"N/A\",Ref!$B$36,INDEX(Ranks!$1:$1048576,$A248,BU$1))","v":""},{"$f":"IF($A248=\"N/A\",Ref!$B$36,INDEX(Ranks!$1:$1048576,$A248,BV$1))","v":""},{"$f":"IF($A248=\"N/A\",Ref!$B$36,INDEX(Ranks!$1:$1048576,$A248,BW$1))","v":""},{"$f":"IF($A248=\"N/A\",Ref!$B$36,INDEX(Ranks!$1:$1048576,$A248,BX$1))","v":""},{"$f":"IF($A248=\"N/A\",Ref!$B$36,INDEX(Ranks!$1:$1048576,$A248,BY$1))","v":""},{"$f":"IF($A248=\"N/A\",Ref!$B$36,INDEX(Ranks!$1:$1048576,$A248,BZ$1))","v":""},{"$f":"IF($A248=\"N/A\",Ref!$B$36,INDEX(Ranks!$1:$1048576,$A248,CA$1))","v":""},{"$f":"IF($A248=\"N/A\",Ref!$B$36,INDEX(Ranks!$1:$1048576,$A248,CB$1))","v":""},{"$f":"IF($A248=\"N/A\",Ref!$B$36,INDEX(Ranks!$1:$1048576,$A248,CC$1))","v":""},{"$f":"IF($A248=\"N/A\",Ref!$B$36,INDEX(Ranks!$1:$1048576,$A248,CD$1))","v":""},{"$f":"IF($A248=\"N/A\",Ref!$B$36,INDEX(Ranks!$1:$1048576,$A248,CE$1))","v":""},{"$f":"IF($A248=\"N/A\",Ref!$B$36,INDEX(Ranks!$1:$1048576,$A248,CF$1))","v":""},{"$f":"IF($A248=\"N/A\",Ref!$B$36,INDEX(Ranks!$1:$1048576,$A248,CG$1))","v":""},{"$f":"IF($A248=\"N/A\",Ref!$B$36,INDEX(Ranks!$1:$1048576,$A248,CH$1))","v":""},{"$f":"IF($A248=\"N/A\",Ref!$B$36,INDEX(Ranks!$1:$1048576,$A248,CI$1))","v":""},{"$f":"IF($A248=\"N/A\",Ref!$B$36,INDEX(Ranks!$1:$1048576,$A248,CJ$1))","v":""},{"$f":"IF($A248=\"N/A\",Ref!$B$36,INDEX(Ranks!$1:$1048576,$A248,CK$1))","v":""},{"$f":"IF($A248=\"N/A\",Ref!$B$36,INDEX(Ranks!$1:$1048576,$A248,CL$1))","v":""},{"$f":"IF($A248=\"N/A\",Ref!$B$36,INDEX(Ranks!$1:$1048576,$A248,CM$1))","v":""},{"$f":"IF($A248=\"N/A\",Ref!$B$36,INDEX(Ranks!$1:$1048576,$A248,CN$1))","v":""},{"$f":"IF($A248=\"N/A\",Ref!$B$36,INDEX(Ranks!$1:$1048576,$A248,CO$1))","v":""},{"$f":"IF($A248=\"N/A\",Ref!$B$36,INDEX(Ranks!$1:$1048576,$A248,CP$1))","v":""},{"$f":"IF($A248=\"N/A\",Ref!$B$36,INDEX(Ranks!$1:$1048576,$A248,CQ$1))","v":""},{"$f":"IF($A248=\"N/A\",Ref!$B$36,INDEX(Ranks!$1:$1048576,$A248,CR$1))","v":""},{"$f":"IF($A248=\"N/A\",Ref!$B$36,INDEX(Ranks!$1:$1048576,$A248,CS$1))","v":""},{"$f":"IF($A248=\"N/A\",Ref!$B$36,INDEX(Ranks!$1:$1048576,$A248,CT$1))","v":""},{"$f":"IF($A248=\"N/A\",Ref!$B$36,INDEX(Ranks!$1:$1048576,$A248,CU$1))","v":""},{"$f":"IF($A248=\"N/A\",Ref!$B$36,INDEX(Ranks!$1:$1048576,$A248,CV$1))","v":""},{"$f":"IF($A248=\"N/A\",Ref!$B$36,INDEX(Ranks!$1:$1048576,$A248,CW$1))","v":""},{"$f":"IF($A248=\"N/A\",Ref!$B$36,INDEX(Ranks!$1:$1048576,$A248,CX$1))","v":""},{"$f":"IF($A248=\"N/A\",Ref!$B$36,INDEX(Ranks!$1:$1048576,$A248,CY$1))","v":""},{"$f":"IF($A248=\"N/A\",Ref!$B$36,INDEX(Ranks!$1:$1048576,$A248,CZ$1))","v":""},{"$f":"IF($A248=\"N/A\",Ref!$B$36,INDEX(Ranks!$1:$1048576,$A248,DA$1))","v":""},{"$f":"IF($A248=\"N/A\",Ref!$B$36,INDEX(Ranks!$1:$1048576,$A248,DB$1))","v":""},{"$f":"IF($A248=\"N/A\",Ref!$B$36,INDEX(Ranks!$1:$1048576,$A248,DC$1))","v":""},{"$f":"IF($A248=\"N/A\",Ref!$B$36,INDEX(Ranks!$1:$1048576,$A248,DD$1))","v":""},{"$f":"IF($A248=\"N/A\",Ref!$B$36,INDEX(Ranks!$1:$1048576,$A248,DE$1))","v":""},{"$f":"IF($A248=\"N/A\",Ref!$B$36,INDEX(Ranks!$1:$1048576,$A248,DF$1))","v":""},{"$f":"IF($A248=\"N/A\",Ref!$B$36,INDEX(Ranks!$1:$1048576,$A248,DG$1))","v":""},{"$f":"IF($A248=\"N/A\",Ref!$B$36,INDEX(Ranks!$1:$1048576,$A248,DH$1))","v":""},{"$f":"IF($A248=\"N/A\",Ref!$B$36,INDEX(Ranks!$1:$1048576,$A248,DI$1))","v":""},{"$f":"IF($A248=\"N/A\",Ref!$B$36,INDEX(Ranks!$1:$1048576,$A248,DJ$1))","v":""},{"$f":"IF($A248=\"N/A\",Ref!$B$36,INDEX(Ranks!$1:$1048576,$A248,DK$1))","v":""},{"$f":"IF($A248=\"N/A\",Ref!$B$36,INDEX(Ranks!$1:$1048576,$A248,DL$1))","v":""},{"$f":"IF($A248=\"N/A\",Ref!$B$36,INDEX(Ranks!$1:$1048576,$A248,DM$1))","v":""},{"$f":"IF($A248=\"N/A\",Ref!$B$36,INDEX(Ranks!$1:$1048576,$A248,DN$1))","v":""},{"$f":"IF($A248=\"N/A\",Ref!$B$36,INDEX(Ranks!$1:$1048576,$A248,DO$1))","v":""},{"$f":"IF($A248=\"N/A\",Ref!$B$36,INDEX(Ranks!$1:$1048576,$A248,DP$1))","v":""},{"$f":"IF($A248=\"N/A\",Ref!$B$36,INDEX(Ranks!$1:$1048576,$A248,DQ$1))","v":""},{"$f":"IF($A248=\"N/A\",Ref!$B$36,INDEX(Ranks!$1:$1048576,$A248,DR$1))","v":""},{"$f":"IF($A248=\"N/A\",Ref!$B$36,INDEX(Ranks!$1:$1048576,$A248,DS$1))","v":""},{"$f":"IF($A248=\"N/A\",Ref!$B$36,INDEX(Ranks!$1:$1048576,$A248,DT$1))","v":""},{"$f":"IF($A248=\"N/A\",Ref!$B$36,INDEX(Ranks!$1:$1048576,$A248,DU$1))","v":""},{"$f":"IF($A248=\"N/A\",Ref!$B$36,INDEX(Ranks!$1:$1048576,$A248,DV$1))","v":""},{"$f":"IF($A248=\"N/A\",Ref!$B$36,INDEX(Ranks!$1:$1048576,$A248,DW$1))","v":""},{"$f":"IF($A248=\"N/A\",Ref!$B$36,INDEX(Ranks!$1:$1048576,$A248,DX$1))","v":""},{"$f":"IF($A248=\"N/A\",Ref!$B$36,INDEX(Ranks!$1:$1048576,$A248,DY$1))","v":""},{"$f":"IF($A248=\"N/A\",Ref!$B$36,INDEX(Ranks!$1:$1048576,$A248,DZ$1))","v":""},{"$f":"IF($A248=\"N/A\",Ref!$B$36,INDEX(Ranks!$1:$1048576,$A248,EA$1))","v":""},{"$f":"IF($A248=\"N/A\",Ref!$B$36,INDEX(Ranks!$1:$1048576,$A248,EB$1))","v":""}]
[{"$f":"IFERROR(MATCH('Portfolio Page'!L249,Ranks!L:L,0),\"N/A\")","v":"N/A"},null,{"$f":"IF($A249=\"N/A\",\"\",INDEX(Ranks!$1:$1048576,$A249,C$1))","v":""},{"$f":"IF($A249=\"N/A\",Ref!$B$36,INDEX(Ranks!$1:$1048576,$A249,D$1))","v":""},{"$f":"IF($A249=\"N/A\",Ref!$B$36,INDEX(Ranks!$1:$1048576,$A249,E$1))","v":""},{"$f":"IF($A249=\"N/A\",\"\",INDEX(Ranks!$1:$1048576,$A249,F$1))","v":""},{"$f":"IF($A249=\"N/A\",\"\",INDEX(Ranks!$1:$1048576,$A249,G$1))","v":""},{"$f":"IF($A249=\"N/A\",\"\",INDEX(Ranks!$1:$1048576,$A249,H$1))","v":""},{"$f":"IF($A249=\"N/A\",\"\",INDEX(Ranks!$1:$1048576,$A249,I$1))","v":""},{"$f":"IF($A249=\"N/A\",\"\",INDEX(Ranks!$1:$1048576,$A249,J$1))","v":""},{"$f":"IF($A249=\"N/A\",\"\",INDEX(Ranks!$1:$1048576,$A249,K$1))","v":""},null,{"$f":"IF($A249=\"N/A\",Ref!$B$36,INDEX(Ranks!$1:$1048576,$A249,M$1))","v":""},{"$f":"IF($A249=\"N/A\",Ref!$B$36,INDEX(Ranks!$1:$1048576,$A249,N$1))","v":""},{"$f":"IF($A249=\"N/A\",Ref!$B$36,INDEX(Ranks!$1:$1048576,$A249,O$1))","v":""},{"$f":"IF($A249=\"N/A\",Ref!$B$36,INDEX(Ranks!$1:$1048576,$A249,P$1))","v":""},{"$f":"IF($A249=\"N/A\",Ref!$B$36,INDEX(Ranks!$1:$1048576,$A249,Q$1))","v":""},{"$f":"IF($A249=\"N/A\",Ref!$B$36,INDEX(Ranks!$1:$1048576,$A249,R$1))","v":""},{"$f":"IF($A249=\"N/A\",Ref!$B$36,INDEX(Ranks!$1:$1048576,$A249,S$1))","v":""},{"$f":"IF($A249=\"N/A\",Ref!$B$36,INDEX(Ranks!$1:$1048576,$A249,T$1))","v":""},{"$f":"IF($A249=\"N/A\",Ref!$B$36,INDEX(Ranks!$1:$1048576,$A249,U$1))","v":""},{"$f":"IF($A249=\"N/A\",Ref!$B$36,INDEX(Ranks!$1:$1048576,$A249,V$1))","v":""},{"$f":"IF($A249=\"N/A\",Ref!$B$36,INDEX(Ranks!$1:$1048576,$A249,W$1))","v":""},{"$f":"IF($A249=\"N/A\",Ref!$B$36,INDEX(Ranks!$1:$1048576,$A249,X$1))","v":""},{"$f":"IF($A249=\"N/A\",Ref!$B$36,INDEX(Ranks!$1:$1048576,$A249,Y$1))","v":""},{"$f":"IF($A249=\"N/A\",Ref!$B$36,INDEX(Ranks!$1:$1048576,$A249,Z$1))","v":""},{"$f":"IF($A249=\"N/A\",Ref!$B$36,INDEX(Ranks!$1:$1048576,$A249,AA$1))","v":""},{"$f":"IF($A249=\"N/A\",Ref!$B$36,INDEX(Ranks!$1:$1048576,$A249,AB$1))","v":""},{"$f":"IF($A249=\"N/A\",Ref!$B$36,INDEX(Ranks!$1:$1048576,$A249,AC$1))","v":""},{"$f":"IF($A249=\"N/A\",Ref!$B$36,INDEX(Ranks!$1:$1048576,$A249,AD$1))","v":""},{"$f":"IF($A249=\"N/A\",Ref!$B$36,INDEX(Ranks!$1:$1048576,$A249,AE$1))","v":""},{"$f":"IF($A249=\"N/A\",Ref!$B$36,INDEX(Ranks!$1:$1048576,$A249,AF$1))","v":""},{"$f":"IF($A249=\"N/A\",Ref!$B$36,INDEX(Ranks!$1:$1048576,$A249,AG$1))","v":""},{"$f":"IF($A249=\"N/A\",Ref!$B$36,INDEX(Ranks!$1:$1048576,$A249,AH$1))","v":""},{"$f":"IF($A249=\"N/A\",Ref!$B$36,INDEX(Ranks!$1:$1048576,$A249,AI$1))","v":""},{"$f":"IF($A249=\"N/A\",Ref!$B$36,INDEX(Ranks!$1:$1048576,$A249,AJ$1))","v":""},{"$f":"IF($A249=\"N/A\",Ref!$B$36,INDEX(Ranks!$1:$1048576,$A249,AK$1))","v":""},{"$f":"IF($A249=\"N/A\",Ref!$B$36,INDEX(Ranks!$1:$1048576,$A249,AL$1))","v":""},{"$f":"IF($A249=\"N/A\",Ref!$B$36,INDEX(Ranks!$1:$1048576,$A249,AM$1))","v":""},{"$f":"IF($A249=\"N/A\",Ref!$B$36,INDEX(Ranks!$1:$1048576,$A249,AN$1))","v":""},{"$f":"IF($A249=\"N/A\",Ref!$B$36,INDEX(Ranks!$1:$1048576,$A249,AO$1))","v":""},{"$f":"IF($A249=\"N/A\",Ref!$B$36,INDEX(Ranks!$1:$1048576,$A249,AP$1))","v":""},{"$f":"IF($A249=\"N/A\",Ref!$B$36,INDEX(Ranks!$1:$1048576,$A249,AQ$1))","v":""},{"$f":"IF($A249=\"N/A\",Ref!$B$36,INDEX(Ranks!$1:$1048576,$A249,AR$1))","v":""},{"$f":"IF($A249=\"N/A\",Ref!$B$36,INDEX(Ranks!$1:$1048576,$A249,AS$1))","v":""},{"$f":"IF($A249=\"N/A\",Ref!$B$36,INDEX(Ranks!$1:$1048576,$A249,AT$1))","v":""},{"$f":"IF($A249=\"N/A\",Ref!$B$36,INDEX(Ranks!$1:$1048576,$A249,AU$1))","v":""},{"$f":"IF($A249=\"N/A\",Ref!$B$36,INDEX(Ranks!$1:$1048576,$A249,AV$1))","v":""},{"$f":"IF($A249=\"N/A\",Ref!$B$36,INDEX(Ranks!$1:$1048576,$A249,AW$1))","v":""},{"$f":"IF($A249=\"N/A\",Ref!$B$36,INDEX(Ranks!$1:$1048576,$A249,AX$1))","v":""},{"$f":"IF($A249=\"N/A\",Ref!$B$36,INDEX(Ranks!$1:$1048576,$A249,AY$1))","v":""},{"$f":"IF($A249=\"N/A\",Ref!$B$36,INDEX(Ranks!$1:$1048576,$A249,AZ$1))","v":""},{"$f":"IF($A249=\"N/A\",Ref!$B$36,INDEX(Ranks!$1:$1048576,$A249,BA$1))","v":""},{"$f":"IF($A249=\"N/A\",Ref!$B$36,INDEX(Ranks!$1:$1048576,$A249,BB$1))","v":""},{"$f":"IF($A249=\"N/A\",Ref!$B$36,INDEX(Ranks!$1:$1048576,$A249,BC$1))","v":""},{"$f":"IF($A249=\"N/A\",Ref!$B$36,INDEX(Ranks!$1:$1048576,$A249,BD$1))","v":""},{"$f":"IF($A249=\"N/A\",Ref!$B$36,INDEX(Ranks!$1:$1048576,$A249,BE$1))","v":""},{"$f":"IF($A249=\"N/A\",Ref!$B$36,INDEX(Ranks!$1:$1048576,$A249,BF$1))","v":""},{"$f":"IF($A249=\"N/A\",Ref!$B$36,INDEX(Ranks!$1:$1048576,$A249,BG$1))","v":""},{"$f":"IF($A249=\"N/A\",Ref!$B$36,INDEX(Ranks!$1:$1048576,$A249,BH$1))","v":""},{"$f":"IF($A249=\"N/A\",Ref!$B$36,INDEX(Ranks!$1:$1048576,$A249,BI$1))","v":""},{"$f":"IF($A249=\"N/A\",Ref!$B$36,INDEX(Ranks!$1:$1048576,$A249,BJ$1))","v":""},{"$f":"IF($A249=\"N/A\",Ref!$B$36,INDEX(Ranks!$1:$1048576,$A249,BK$1))","v":""},{"$f":"IF($A249=\"N/A\",Ref!$B$36,INDEX(Ranks!$1:$1048576,$A249,BL$1))","v":""},{"$f":"IF($A249=\"N/A\",Ref!$B$36,INDEX(Ranks!$1:$1048576,$A249,BM$1))","v":""},{"$f":"IF($A249=\"N/A\",Ref!$B$36,INDEX(Ranks!$1:$1048576,$A249,BN$1))","v":""},{"$f":"IF($A249=\"N/A\",Ref!$B$36,INDEX(Ranks!$1:$1048576,$A249,BO$1))","v":""},{"$f":"IF($A249=\"N/A\",Ref!$B$36,INDEX(Ranks!$1:$1048576,$A249,BP$1))","v":""},{"$f":"IF($A249=\"N/A\",Ref!$B$36,INDEX(Ranks!$1:$1048576,$A249,BQ$1))","v":""},{"$f":"IF($A249=\"N/A\",Ref!$B$36,INDEX(Ranks!$1:$1048576,$A249,BR$1))","v":""},{"$f":"IF($A249=\"N/A\",Ref!$B$36,INDEX(Ranks!$1:$1048576,$A249,BS$1))","v":""},{"$f":"IF($A249=\"N/A\",Ref!$B$36,INDEX(Ranks!$1:$1048576,$A249,BT$1))","v":""},{"$f":"IF($A249=\"N/A\",Ref!$B$36,INDEX(Ranks!$1:$1048576,$A249,BU$1))","v":""},{"$f":"IF($A249=\"N/A\",Ref!$B$36,INDEX(Ranks!$1:$1048576,$A249,BV$1))","v":""},{"$f":"IF($A249=\"N/A\",Ref!$B$36,INDEX(Ranks!$1:$1048576,$A249,BW$1))","v":""},{"$f":"IF($A249=\"N/A\",Ref!$B$36,INDEX(Ranks!$1:$1048576,$A249,BX$1))","v":""},{"$f":"IF($A249=\"N/A\",Ref!$B$36,INDEX(Ranks!$1:$1048576,$A249,BY$1))","v":""},{"$f":"IF($A249=\"N/A\",Ref!$B$36,INDEX(Ranks!$1:$1048576,$A249,BZ$1))","v":""},{"$f":"IF($A249=\"N/A\",Ref!$B$36,INDEX(Ranks!$1:$1048576,$A249,CA$1))","v":""},{"$f":"IF($A249=\"N/A\",Ref!$B$36,INDEX(Ranks!$1:$1048576,$A249,CB$1))","v":""},{"$f":"IF($A249=\"N/A\",Ref!$B$36,INDEX(Ranks!$1:$1048576,$A249,CC$1))","v":""},{"$f":"IF($A249=\"N/A\",Ref!$B$36,INDEX(Ranks!$1:$1048576,$A249,CD$1))","v":""},{"$f":"IF($A249=\"N/A\",Ref!$B$36,INDEX(Ranks!$1:$1048576,$A249,CE$1))","v":""},{"$f":"IF($A249=\"N/A\",Ref!$B$36,INDEX(Ranks!$1:$1048576,$A249,CF$1))","v":""},{"$f":"IF($A249=\"N/A\",Ref!$B$36,INDEX(Ranks!$1:$1048576,$A249,CG$1))","v":""},{"$f":"IF($A249=\"N/A\",Ref!$B$36,INDEX(Ranks!$1:$1048576,$A249,CH$1))","v":""},{"$f":"IF($A249=\"N/A\",Ref!$B$36,INDEX(Ranks!$1:$1048576,$A249,CI$1))","v":""},{"$f":"IF($A249=\"N/A\",Ref!$B$36,INDEX(Ranks!$1:$1048576,$A249,CJ$1))","v":""},{"$f":"IF($A249=\"N/A\",Ref!$B$36,INDEX(Ranks!$1:$1048576,$A249,CK$1))","v":""},{"$f":"IF($A249=\"N/A\",Ref!$B$36,INDEX(Ranks!$1:$1048576,$A249,CL$1))","v":""},{"$f":"IF($A249=\"N/A\",Ref!$B$36,INDEX(Ranks!$1:$1048576,$A249,CM$1))","v":""},{"$f":"IF($A249=\"N/A\",Ref!$B$36,INDEX(Ranks!$1:$1048576,$A249,CN$1))","v":""},{"$f":"IF($A249=\"N/A\",Ref!$B$36,INDEX(Ranks!$1:$1048576,$A249,CO$1))","v":""},{"$f":"IF($A249=\"N/A\",Ref!$B$36,INDEX(Ranks!$1:$1048576,$A249,CP$1))","v":""},{"$f":"IF($A249=\"N/A\",Ref!$B$36,INDEX(Ranks!$1:$1048576,$A249,CQ$1))","v":""},{"$f":"IF($A249=\"N/A\",Ref!$B$36,INDEX(Ranks!$1:$1048576,$A249,CR$1))","v":""},{"$f":"IF($A249=\"N/A\",Ref!$B$36,INDEX(Ranks!$1:$1048576,$A249,CS$1))","v":""},{"$f":"IF($A249=\"N/A\",Ref!$B$36,INDEX(Ranks!$1:$1048576,$A249,CT$1))","v":""},{"$f":"IF($A249=\"N/A\",Ref!$B$36,INDEX(Ranks!$1:$1048576,$A249,CU$1))","v":""},{"$f":"IF($A249=\"N/A\",Ref!$B$36,INDEX(Ranks!$1:$1048576,$A249,CV$1))","v":""},{"$f":"IF($A249=\"N/A\",Ref!$B$36,INDEX(Ranks!$1:$1048576,$A249,CW$1))","v":""},{"$f":"IF($A249=\"N/A\",Ref!$B$36,INDEX(Ranks!$1:$1048576,$A249,CX$1))","v":""},{"$f":"IF($A249=\"N/A\",Ref!$B$36,INDEX(Ranks!$1:$1048576,$A249,CY$1))","v":""},{"$f":"IF($A249=\"N/A\",Ref!$B$36,INDEX(Ranks!$1:$1048576,$A249,CZ$1))","v":""},{"$f":"IF($A249=\"N/A\",Ref!$B$36,INDEX(Ranks!$1:$1048576,$A249,DA$1))","v":""},{"$f":"IF($A249=\"N/A\",Ref!$B$36,INDEX(Ranks!$1:$1048576,$A249,DB$1))","v":""},{"$f":"IF($A249=\"N/A\",Ref!$B$36,INDEX(Ranks!$1:$1048576,$A249,DC$1))","v":""},{"$f":"IF($A249=\"N/A\",Ref!$B$36,INDEX(Ranks!$1:$1048576,$A249,DD$1))","v":""},{"$f":"IF($A249=\"N/A\",Ref!$B$36,INDEX(Ranks!$1:$1048576,$A249,DE$1))","v":""},{"$f":"IF($A249=\"N/A\",Ref!$B$36,INDEX(Ranks!$1:$1048576,$A249,DF$1))","v":""},{"$f":"IF($A249=\"N/A\",Ref!$B$36,INDEX(Ranks!$1:$1048576,$A249,DG$1))","v":""},{"$f":"IF($A249=\"N/A\",Ref!$B$36,INDEX(Ranks!$1:$1048576,$A249,DH$1))","v":""},{"$f":"IF($A249=\"N/A\",Ref!$B$36,INDEX(Ranks!$1:$1048576,$A249,DI$1))","v":""},{"$f":"IF($A249=\"N/A\",Ref!$B$36,INDEX(Ranks!$1:$1048576,$A249,DJ$1))","v":""},{"$f":"IF($A249=\"N/A\",Ref!$B$36,INDEX(Ranks!$1:$1048576,$A249,DK$1))","v":""},{"$f":"IF($A249=\"N/A\",Ref!$B$36,INDEX(Ranks!$1:$1048576,$A249,DL$1))","v":""},{"$f":"IF($A249=\"N/A\",Ref!$B$36,INDEX(Ranks!$1:$1048576,$A249,DM$1))","v":""},{"$f":"IF($A249=\"N/A\",Ref!$B$36,INDEX(Ranks!$1:$1048576,$A249,DN$1))","v":""},{"$f":"IF($A249=\"N/A\",Ref!$B$36,INDEX(Ranks!$1:$1048576,$A249,DO$1))","v":""},{"$f":"IF($A249=\"N/A\",Ref!$B$36,INDEX(Ranks!$1:$1048576,$A249,DP$1))","v":""},{"$f":"IF($A249=\"N/A\",Ref!$B$36,INDEX(Ranks!$1:$1048576,$A249,DQ$1))","v":""},{"$f":"IF($A249=\"N/A\",Ref!$B$36,INDEX(Ranks!$1:$1048576,$A249,DR$1))","v":""},{"$f":"IF($A249=\"N/A\",Ref!$B$36,INDEX(Ranks!$1:$1048576,$A249,DS$1))","v":""},{"$f":"IF($A249=\"N/A\",Ref!$B$36,INDEX(Ranks!$1:$1048576,$A249,DT$1))","v":""},{"$f":"IF($A249=\"N/A\",Ref!$B$36,INDEX(Ranks!$1:$1048576,$A249,DU$1))","v":""},{"$f":"IF($A249=\"N/A\",Ref!$B$36,INDEX(Ranks!$1:$1048576,$A249,DV$1))","v":""},{"$f":"IF($A249=\"N/A\",Ref!$B$36,INDEX(Ranks!$1:$1048576,$A249,DW$1))","v":""},{"$f":"IF($A249=\"N/A\",Ref!$B$36,INDEX(Ranks!$1:$1048576,$A249,DX$1))","v":""},{"$f":"IF($A249=\"N/A\",Ref!$B$36,INDEX(Ranks!$1:$1048576,$A249,DY$1))","v":""},{"$f":"IF($A249=\"N/A\",Ref!$B$36,INDEX(Ranks!$1:$1048576,$A249,DZ$1))","v":""},{"$f":"IF($A249=\"N/A\",Ref!$B$36,INDEX(Ranks!$1:$1048576,$A249,EA$1))","v":""},{"$f":"IF($A249=\"N/A\",Ref!$B$36,INDEX(Ranks!$1:$1048576,$A249,EB$1))","v":""}]
[{"$f":"IFERROR(MATCH('Portfolio Page'!L250,Ranks!L:L,0),\"N/A\")","v":"N/A"},null,{"$f":"IF($A250=\"N/A\",\"\",INDEX(Ranks!$1:$1048576,$A250,C$1))","v":""},{"$f":"IF($A250=\"N/A\",Ref!$B$36,INDEX(Ranks!$1:$1048576,$A250,D$1))","v":""},{"$f":"IF($A250=\"N/A\",Ref!$B$36,INDEX(Ranks!$1:$1048576,$A250,E$1))","v":""},{"$f":"IF($A250=\"N/A\",\"\",INDEX(Ranks!$1:$1048576,$A250,F$1))","v":""},{"$f":"IF($A250=\"N/A\",\"\",INDEX(Ranks!$1:$1048576,$A250,G$1))","v":""},{"$f":"IF($A250=\"N/A\",\"\",INDEX(Ranks!$1:$1048576,$A250,H$1))","v":""},{"$f":"IF($A250=\"N/A\",\"\",INDEX(Ranks!$1:$1048576,$A250,I$1))","v":""},{"$f":"IF($A250=\"N/A\",\"\",INDEX(Ranks!$1:$1048576,$A250,J$1))","v":""},{"$f":"IF($A250=\"N/A\",\"\",INDEX(Ranks!$1:$1048576,$A250,K$1))","v":""},null,{"$f":"IF($A250=\"N/A\",Ref!$B$36,INDEX(Ranks!$1:$1048576,$A250,M$1))","v":""},{"$f":"IF($A250=\"N/A\",Ref!$B$36,INDEX(Ranks!$1:$1048576,$A250,N$1))","v":""},{"$f":"IF($A250=\"N/A\",Ref!$B$36,INDEX(Ranks!$1:$1048576,$A250,O$1))","v":""},{"$f":"IF($A250=\"N/A\",Ref!$B$36,INDEX(Ranks!$1:$1048576,$A250,P$1))","v":""},{"$f":"IF($A250=\"N/A\",Ref!$B$36,INDEX(Ranks!$1:$1048576,$A250,Q$1))","v":""},{"$f":"IF($A250=\"N/A\",Ref!$B$36,INDEX(Ranks!$1:$1048576,$A250,R$1))","v":""},{"$f":"IF($A250=\"N/A\",Ref!$B$36,INDEX(Ranks!$1:$1048576,$A250,S$1))","v":""},{"$f":"IF($A250=\"N/A\",Ref!$B$36,INDEX(Ranks!$1:$1048576,$A250,T$1))","v":""},{"$f":"IF($A250=\"N/A\",Ref!$B$36,INDEX(Ranks!$1:$1048576,$A250,U$1))","v":""},{"$f":"IF($A250=\"N/A\",Ref!$B$36,INDEX(Ranks!$1:$1048576,$A250,V$1))","v":""},{"$f":"IF($A250=\"N/A\",Ref!$B$36,INDEX(Ranks!$1:$1048576,$A250,W$1))","v":""},{"$f":"IF($A250=\"N/A\",Ref!$B$36,INDEX(Ranks!$1:$1048576,$A250,X$1))","v":""},{"$f":"IF($A250=\"N/A\",Ref!$B$36,INDEX(Ranks!$1:$1048576,$A250,Y$1))","v":""},{"$f":"IF($A250=\"N/A\",Ref!$B$36,INDEX(Ranks!$1:$1048576,$A250,Z$1))","v":""},{"$f":"IF($A250=\"N/A\",Ref!$B$36,INDEX(Ranks!$1:$1048576,$A250,AA$1))","v":""},{"$f":"IF($A250=\"N/A\",Ref!$B$36,INDEX(Ranks!$1:$1048576,$A250,AB$1))","v":""},{"$f":"IF($A250=\"N/A\",Ref!$B$36,INDEX(Ranks!$1:$1048576,$A250,AC$1))","v":""},{"$f":"IF($A250=\"N/A\",Ref!$B$36,INDEX(Ranks!$1:$1048576,$A250,AD$1))","v":""},{"$f":"IF($A250=\"N/A\",Ref!$B$36,INDEX(Ranks!$1:$1048576,$A250,AE$1))","v":""},{"$f":"IF($A250=\"N/A\",Ref!$B$36,INDEX(Ranks!$1:$1048576,$A250,AF$1))","v":""},{"$f":"IF($A250=\"N/A\",Ref!$B$36,INDEX(Ranks!$1:$1048576,$A250,AG$1))","v":""},{"$f":"IF($A250=\"N/A\",Ref!$B$36,INDEX(Ranks!$1:$1048576,$A250,AH$1))","v":""},{"$f":"IF($A250=\"N/A\",Ref!$B$36,INDEX(Ranks!$1:$1048576,$A250,AI$1))","v":""},{"$f":"IF($A250=\"N/A\",Ref!$B$36,INDEX(Ranks!$1:$1048576,$A250,AJ$1))","v":""},{"$f":"IF($A250=\"N/A\",Ref!$B$36,INDEX(Ranks!$1:$1048576,$A250,AK$1))","v":""},{"$f":"IF($A250=\"N/A\",Ref!$B$36,INDEX(Ranks!$1:$1048576,$A250,AL$1))","v":""},{"$f":"IF($A250=\"N/A\",Ref!$B$36,INDEX(Ranks!$1:$1048576,$A250,AM$1))","v":""},{"$f":"IF($A250=\"N/A\",Ref!$B$36,INDEX(Ranks!$1:$1048576,$A250,AN$1))","v":""},{"$f":"IF($A250=\"N/A\",Ref!$B$36,INDEX(Ranks!$1:$1048576,$A250,AO$1))","v":""},{"$f":"IF($A250=\"N/A\",Ref!$B$36,INDEX(Ranks!$1:$1048576,$A250,AP$1))","v":""},{"$f":"IF($A250=\"N/A\",Ref!$B$36,INDEX(Ranks!$1:$1048576,$A250,AQ$1))","v":""},{"$f":"IF($A250=\"N/A\",Ref!$B$36,INDEX(Ranks!$1:$1048576,$A250,AR$1))","v":""},{"$f":"IF($A250=\"N/A\",Ref!$B$36,INDEX(Ranks!$1:$1048576,$A250,AS$1))","v":""},{"$f":"IF($A250=\"N/A\",Ref!$B$36,INDEX(Ranks!$1:$1048576,$A250,AT$1))","v":""},{"$f":"IF($A250=\"N/A\",Ref!$B$36,INDEX(Ranks!$1:$1048576,$A250,AU$1))","v":""},{"$f":"IF($A250=\"N/A\",Ref!$B$36,INDEX(Ranks!$1:$1048576,$A250,AV$1))","v":""},{"$f":"IF($A250=\"N/A\",Ref!$B$36,INDEX(Ranks!$1:$1048576,$A250,AW$1))","v":""},{"$f":"IF($A250=\"N/A\",Ref!$B$36,INDEX(Ranks!$1:$1048576,$A250,AX$1))","v":""},{"$f":"IF($A250=\"N/A\",Ref!$B$36,INDEX(Ranks!$1:$1048576,$A250,AY$1))","v":""},{"$f":"IF($A250=\"N/A\",Ref!$B$36,INDEX(Ranks!$1:$1048576,$A250,AZ$1))","v":""},{"$f":"IF($A250=\"N/A\",Ref!$B$36,INDEX(Ranks!$1:$1048576,$A250,BA$1))","v":""},{"$f":"IF($A250=\"N/A\",Ref!$B$36,INDEX(Ranks!$1:$1048576,$A250,BB$1))","v":""},{"$f":"IF($A250=\"N/A\",Ref!$B$36,INDEX(Ranks!$1:$1048576,$A250,BC$1))","v":""},{"$f":"IF($A250=\"N/A\",Ref!$B$36,INDEX(Ranks!$1:$1048576,$A250,BD$1))","v":""},{"$f":"IF($A250=\"N/A\",Ref!$B$36,INDEX(Ranks!$1:$1048576,$A250,BE$1))","v":""},{"$f":"IF($A250=\"N/A\",Ref!$B$36,INDEX(Ranks!$1:$1048576,$A250,BF$1))","v":""},{"$f":"IF($A250=\"N/A\",Ref!$B$36,INDEX(Ranks!$1:$1048576,$A250,BG$1))","v":""},{"$f":"IF($A250=\"N/A\",Ref!$B$36,INDEX(Ranks!$1:$1048576,$A250,BH$1))","v":""},{"$f":"IF($A250=\"N/A\",Ref!$B$36,INDEX(Ranks!$1:$1048576,$A250,BI$1))","v":""},{"$f":"IF($A250=\"N/A\",Ref!$B$36,INDEX(Ranks!$1:$1048576,$A250,BJ$1))","v":""},{"$f":"IF($A250=\"N/A\",Ref!$B$36,INDEX(Ranks!$1:$1048576,$A250,BK$1))","v":""},{"$f":"IF($A250=\"N/A\",Ref!$B$36,INDEX(Ranks!$1:$1048576,$A250,BL$1))","v":""},{"$f":"IF($A250=\"N/A\",Ref!$B$36,INDEX(Ranks!$1:$1048576,$A250,BM$1))","v":""},{"$f":"IF($A250=\"N/A\",Ref!$B$36,INDEX(Ranks!$1:$1048576,$A250,BN$1))","v":""},{"$f":"IF($A250=\"N/A\",Ref!$B$36,INDEX(Ranks!$1:$1048576,$A250,BO$1))","v":""},{"$f":"IF($A250=\"N/A\",Ref!$B$36,INDEX(Ranks!$1:$1048576,$A250,BP$1))","v":""},{"$f":"IF($A250=\"N/A\",Ref!$B$36,INDEX(Ranks!$1:$1048576,$A250,BQ$1))","v":""},{"$f":"IF($A250=\"N/A\",Ref!$B$36,INDEX(Ranks!$1:$1048576,$A250,BR$1))","v":""},{"$f":"IF($A250=\"N/A\",Ref!$B$36,INDEX(Ranks!$1:$1048576,$A250,BS$1))","v":""},{"$f":"IF($A250=\"N/A\",Ref!$B$36,INDEX(Ranks!$1:$1048576,$A250,BT$1))","v":""},{"$f":"IF($A250=\"N/A\",Ref!$B$36,INDEX(Ranks!$1:$1048576,$A250,BU$1))","v":""},{"$f":"IF($A250=\"N/A\",Ref!$B$36,INDEX(Ranks!$1:$1048576,$A250,BV$1))","v":""},{"$f":"IF($A250=\"N/A\",Ref!$B$36,INDEX(Ranks!$1:$1048576,$A250,BW$1))","v":""},{"$f":"IF($A250=\"N/A\",Ref!$B$36,INDEX(Ranks!$1:$1048576,$A250,BX$1))","v":""},{"$f":"IF($A250=\"N/A\",Ref!$B$36,INDEX(Ranks!$1:$1048576,$A250,BY$1))","v":""},{"$f":"IF($A250=\"N/A\",Ref!$B$36,INDEX(Ranks!$1:$1048576,$A250,BZ$1))","v":""},{"$f":"IF($A250=\"N/A\",Ref!$B$36,INDEX(Ranks!$1:$1048576,$A250,CA$1))","v":""},{"$f":"IF($A250=\"N/A\",Ref!$B$36,INDEX(Ranks!$1:$1048576,$A250,CB$1))","v":""},{"$f":"IF($A250=\"N/A\",Ref!$B$36,INDEX(Ranks!$1:$1048576,$A250,CC$1))","v":""},{"$f":"IF($A250=\"N/A\",Ref!$B$36,INDEX(Ranks!$1:$1048576,$A250,CD$1))","v":""},{"$f":"IF($A250=\"N/A\",Ref!$B$36,INDEX(Ranks!$1:$1048576,$A250,CE$1))","v":""},{"$f":"IF($A250=\"N/A\",Ref!$B$36,INDEX(Ranks!$1:$1048576,$A250,CF$1))","v":""},{"$f":"IF($A250=\"N/A\",Ref!$B$36,INDEX(Ranks!$1:$1048576,$A250,CG$1))","v":""},{"$f":"IF($A250=\"N/A\",Ref!$B$36,INDEX(Ranks!$1:$1048576,$A250,CH$1))","v":""},{"$f":"IF($A250=\"N/A\",Ref!$B$36,INDEX(Ranks!$1:$1048576,$A250,CI$1))","v":""},{"$f":"IF($A250=\"N/A\",Ref!$B$36,INDEX(Ranks!$1:$1048576,$A250,CJ$1))","v":""},{"$f":"IF($A250=\"N/A\",Ref!$B$36,INDEX(Ranks!$1:$1048576,$A250,CK$1))","v":""},{"$f":"IF($A250=\"N/A\",Ref!$B$36,INDEX(Ranks!$1:$1048576,$A250,CL$1))","v":""},{"$f":"IF($A250=\"N/A\",Ref!$B$36,INDEX(Ranks!$1:$1048576,$A250,CM$1))","v":""},{"$f":"IF($A250=\"N/A\",Ref!$B$36,INDEX(Ranks!$1:$1048576,$A250,CN$1))","v":""},{"$f":"IF($A250=\"N/A\",Ref!$B$36,INDEX(Ranks!$1:$1048576,$A250,CO$1))","v":""},{"$f":"IF($A250=\"N/A\",Ref!$B$36,INDEX(Ranks!$1:$1048576,$A250,CP$1))","v":""},{"$f":"IF($A250=\"N/A\",Ref!$B$36,INDEX(Ranks!$1:$1048576,$A250,CQ$1))","v":""},{"$f":"IF($A250=\"N/A\",Ref!$B$36,INDEX(Ranks!$1:$1048576,$A250,CR$1))","v":""},{"$f":"IF($A250=\"N/A\",Ref!$B$36,INDEX(Ranks!$1:$1048576,$A250,CS$1))","v":""},{"$f":"IF($A250=\"N/A\",Ref!$B$36,INDEX(Ranks!$1:$1048576,$A250,CT$1))","v":""},{"$f":"IF($A250=\"N/A\",Ref!$B$36,INDEX(Ranks!$1:$1048576,$A250,CU$1))","v":""},{"$f":"IF($A250=\"N/A\",Ref!$B$36,INDEX(Ranks!$1:$1048576,$A250,CV$1))","v":""},{"$f":"IF($A250=\"N/A\",Ref!$B$36,INDEX(Ranks!$1:$1048576,$A250,CW$1))","v":""},{"$f":"IF($A250=\"N/A\",Ref!$B$36,INDEX(Ranks!$1:$1048576,$A250,CX$1))","v":""},{"$f":"IF($A250=\"N/A\",Ref!$B$36,INDEX(Ranks!$1:$1048576,$A250,CY$1))","v":""},{"$f":"IF($A250=\"N/A\",Ref!$B$36,INDEX(Ranks!$1:$1048576,$A250,CZ$1))","v":""},{"$f":"IF($A250=\"N/A\",Ref!$B$36,INDEX(Ranks!$1:$1048576,$A250,DA$1))","v":""},{"$f":"IF($A250=\"N/A\",Ref!$B$36,INDEX(Ranks!$1:$1048576,$A250,DB$1))","v":""},{"$f":"IF($A250=\"N/A\",Ref!$B$36,INDEX(Ranks!$1:$1048576,$A250,DC$1))","v":""},{"$f":"IF($A250=\"N/A\",Ref!$B$36,INDEX(Ranks!$1:$1048576,$A250,DD$1))","v":""},{"$f":"IF($A250=\"N/A\",Ref!$B$36,INDEX(Ranks!$1:$1048576,$A250,DE$1))","v":""},{"$f":"IF($A250=\"N/A\",Ref!$B$36,INDEX(Ranks!$1:$1048576,$A250,DF$1))","v":""},{"$f":"IF($A250=\"N/A\",Ref!$B$36,INDEX(Ranks!$1:$1048576,$A250,DG$1))","v":""},{"$f":"IF($A250=\"N/A\",Ref!$B$36,INDEX(Ranks!$1:$1048576,$A250,DH$1))","v":""},{"$f":"IF($A250=\"N/A\",Ref!$B$36,INDEX(Ranks!$1:$1048576,$A250,DI$1))","v":""},{"$f":"IF($A250=\"N/A\",Ref!$B$36,INDEX(Ranks!$1:$1048576,$A250,DJ$1))","v":""},{"$f":"IF($A250=\"N/A\",Ref!$B$36,INDEX(Ranks!$1:$1048576,$A250,DK$1))","v":""},{"$f":"IF($A250=\"N/A\",Ref!$B$36,INDEX(Ranks!$1:$1048576,$A250,DL$1))","v":""},{"$f":"IF($A250=\"N/A\",Ref!$B$36,INDEX(Ranks!$1:$1048576,$A250,DM$1))","v":""},{"$f":"IF($A250=\"N/A\",Ref!$B$36,INDEX(Ranks!$1:$1048576,$A250,DN$1))","v":""},{"$f":"IF($A250=\"N/A\",Ref!$B$36,INDEX(Ranks!$1:$1048576,$A250,DO$1))","v":""},{"$f":"IF($A250=\"N/A\",Ref!$B$36,INDEX(Ranks!$1:$1048576,$A250,DP$1))","v":""},{"$f":"IF($A250=\"N/A\",Ref!$B$36,INDEX(Ranks!$1:$1048576,$A250,DQ$1))","v":""},{"$f":"IF($A250=\"N/A\",Ref!$B$36,INDEX(Ranks!$1:$1048576,$A250,DR$1))","v":""},{"$f":"IF($A250=\"N/A\",Ref!$B$36,INDEX(Ranks!$1:$1048576,$A250,DS$1))","v":""},{"$f":"IF($A250=\"N/A\",Ref!$B$36,INDEX(Ranks!$1:$1048576,$A250,DT$1))","v":""},{"$f":"IF($A250=\"N/A\",Ref!$B$36,INDEX(Ranks!$1:$1048576,$A250,DU$1))","v":""},{"$f":"IF($A250=\"N/A\",Ref!$B$36,INDEX(Ranks!$1:$1048576,$A250,DV$1))","v":""},{"$f":"IF($A250=\"N/A\",Ref!$B$36,INDEX(Ranks!$1:$1048576,$A250,DW$1))","v":""},{"$f":"IF($A250=\"N/A\",Ref!$B$36,INDEX(Ranks!$1:$1048576,$A250,DX$1))","v":""},{"$f":"IF($A250=\"N/A\",Ref!$B$36,INDEX(Ranks!$1:$1048576,$A250,DY$1))","v":""},{"$f":"IF($A250=\"N/A\",Ref!$B$36,INDEX(Ranks!$1:$1048576,$A250,DZ$1))","v":""},{"$f":"IF($A250=\"N/A\",Ref!$B$36,INDEX(Ranks!$1:$1048576,$A250,EA$1))","v":""},{"$f":"IF($A250=\"N/A\",Ref!$B$36,INDEX(Ranks!$1:$1048576,$A250,EB$1))","v":""}]
[{"$f":"IFERROR(MATCH('Portfolio Page'!L251,Ranks!L:L,0),\"N/A\")","v":"N/A"},null,{"$f":"IF($A251=\"N/A\",\"\",INDEX(Ranks!$1:$1048576,$A251,C$1))","v":""},{"$f":"IF($A251=\"N/A\",Ref!$B$36,INDEX(Ranks!$1:$1048576,$A251,D$1))","v":""},{"$f":"IF($A251=\"N/A\",Ref!$B$36,INDEX(Ranks!$1:$1048576,$A251,E$1))","v":""},{"$f":"IF($A251=\"N/A\",\"\",INDEX(Ranks!$1:$1048576,$A251,F$1))","v":""},{"$f":"IF($A251=\"N/A\",\"\",INDEX(Ranks!$1:$1048576,$A251,G$1))","v":""},{"$f":"IF($A251=\"N/A\",\"\",INDEX(Ranks!$1:$1048576,$A251,H$1))","v":""},{"$f":"IF($A251=\"N/A\",\"\",INDEX(Ranks!$1:$1048576,$A251,I$1))","v":""},{"$f":"IF($A251=\"N/A\",\"\",INDEX(Ranks!$1:$1048576,$A251,J$1))","v":""},{"$f":"IF($A251=\"N/A\",\"\",INDEX(Ranks!$1:$1048576,$A251,K$1))","v":""},null,{"$f":"IF($A251=\"N/A\",Ref!$B$36,INDEX(Ranks!$1:$1048576,$A251,M$1))","v":""},{"$f":"IF($A251=\"N/A\",Ref!$B$36,INDEX(Ranks!$1:$1048576,$A251,N$1))","v":""},{"$f":"IF($A251=\"N/A\",Ref!$B$36,INDEX(Ranks!$1:$1048576,$A251,O$1))","v":""},{"$f":"IF($A251=\"N/A\",Ref!$B$36,INDEX(Ranks!$1:$1048576,$A251,P$1))","v":""},{"$f":"IF($A251=\"N/A\",Ref!$B$36,INDEX(Ranks!$1:$1048576,$A251,Q$1))","v":""},{"$f":"IF($A251=\"N/A\",Ref!$B$36,INDEX(Ranks!$1:$1048576,$A251,R$1))","v":""},{"$f":"IF($A251=\"N/A\",Ref!$B$36,INDEX(Ranks!$1:$1048576,$A251,S$1))","v":""},{"$f":"IF($A251=\"N/A\",Ref!$B$36,INDEX(Ranks!$1:$1048576,$A251,T$1))","v":""},{"$f":"IF($A251=\"N/A\",Ref!$B$36,INDEX(Ranks!$1:$1048576,$A251,U$1))","v":""},{"$f":"IF($A251=\"N/A\",Ref!$B$36,INDEX(Ranks!$1:$1048576,$A251,V$1))","v":""},{"$f":"IF($A251=\"N/A\",Ref!$B$36,INDEX(Ranks!$1:$1048576,$A251,W$1))","v":""},{"$f":"IF($A251=\"N/A\",Ref!$B$36,INDEX(Ranks!$1:$1048576,$A251,X$1))","v":""},{"$f":"IF($A251=\"N/A\",Ref!$B$36,INDEX(Ranks!$1:$1048576,$A251,Y$1))","v":""},{"$f":"IF($A251=\"N/A\",Ref!$B$36,INDEX(Ranks!$1:$1048576,$A251,Z$1))","v":""},{"$f":"IF($A251=\"N/A\",Ref!$B$36,INDEX(Ranks!$1:$1048576,$A251,AA$1))","v":""},{"$f":"IF($A251=\"N/A\",Ref!$B$36,INDEX(Ranks!$1:$1048576,$A251,AB$1))","v":""},{"$f":"IF($A251=\"N/A\",Ref!$B$36,INDEX(Ranks!$1:$1048576,$A251,AC$1))","v":""},{"$f":"IF($A251=\"N/A\",Ref!$B$36,INDEX(Ranks!$1:$1048576,$A251,AD$1))","v":""},{"$f":"IF($A251=\"N/A\",Ref!$B$36,INDEX(Ranks!$1:$1048576,$A251,AE$1))","v":""},{"$f":"IF($A251=\"N/A\",Ref!$B$36,INDEX(Ranks!$1:$1048576,$A251,AF$1))","v":""},{"$f":"IF($A251=\"N/A\",Ref!$B$36,INDEX(Ranks!$1:$1048576,$A251,AG$1))","v":""},{"$f":"IF($A251=\"N/A\",Ref!$B$36,INDEX(Ranks!$1:$1048576,$A251,AH$1))","v":""},{"$f":"IF($A251=\"N/A\",Ref!$B$36,INDEX(Ranks!$1:$1048576,$A251,AI$1))","v":""},{"$f":"IF($A251=\"N/A\",Ref!$B$36,INDEX(Ranks!$1:$1048576,$A251,AJ$1))","v":""},{"$f":"IF($A251=\"N/A\",Ref!$B$36,INDEX(Ranks!$1:$1048576,$A251,AK$1))","v":""},{"$f":"IF($A251=\"N/A\",Ref!$B$36,INDEX(Ranks!$1:$1048576,$A251,AL$1))","v":""},{"$f":"IF($A251=\"N/A\",Ref!$B$36,INDEX(Ranks!$1:$1048576,$A251,AM$1))","v":""},{"$f":"IF($A251=\"N/A\",Ref!$B$36,INDEX(Ranks!$1:$1048576,$A251,AN$1))","v":""},{"$f":"IF($A251=\"N/A\",Ref!$B$36,INDEX(Ranks!$1:$1048576,$A251,AO$1))","v":""},{"$f":"IF($A251=\"N/A\",Ref!$B$36,INDEX(Ranks!$1:$1048576,$A251,AP$1))","v":""},{"$f":"IF($A251=\"N/A\",Ref!$B$36,INDEX(Ranks!$1:$1048576,$A251,AQ$1))","v":""},{"$f":"IF($A251=\"N/A\",Ref!$B$36,INDEX(Ranks!$1:$1048576,$A251,AR$1))","v":""},{"$f":"IF($A251=\"N/A\",Ref!$B$36,INDEX(Ranks!$1:$1048576,$A251,AS$1))","v":""},{"$f":"IF($A251=\"N/A\",Ref!$B$36,INDEX(Ranks!$1:$1048576,$A251,AT$1))","v":""},{"$f":"IF($A251=\"N/A\",Ref!$B$36,INDEX(Ranks!$1:$1048576,$A251,AU$1))","v":""},{"$f":"IF($A251=\"N/A\",Ref!$B$36,INDEX(Ranks!$1:$1048576,$A251,AV$1))","v":""},{"$f":"IF($A251=\"N/A\",Ref!$B$36,INDEX(Ranks!$1:$1048576,$A251,AW$1))","v":""},{"$f":"IF($A251=\"N/A\",Ref!$B$36,INDEX(Ranks!$1:$1048576,$A251,AX$1))","v":""},{"$f":"IF($A251=\"N/A\",Ref!$B$36,INDEX(Ranks!$1:$1048576,$A251,AY$1))","v":""},{"$f":"IF($A251=\"N/A\",Ref!$B$36,INDEX(Ranks!$1:$1048576,$A251,AZ$1))","v":""},{"$f":"IF($A251=\"N/A\",Ref!$B$36,INDEX(Ranks!$1:$1048576,$A251,BA$1))","v":""},{"$f":"IF($A251=\"N/A\",Ref!$B$36,INDEX(Ranks!$1:$1048576,$A251,BB$1))","v":""},{"$f":"IF($A251=\"N/A\",Ref!$B$36,INDEX(Ranks!$1:$1048576,$A251,BC$1))","v":""},{"$f":"IF($A251=\"N/A\",Ref!$B$36,INDEX(Ranks!$1:$1048576,$A251,BD$1))","v":""},{"$f":"IF($A251=\"N/A\",Ref!$B$36,INDEX(Ranks!$1:$1048576,$A251,BE$1))","v":""},{"$f":"IF($A251=\"N/A\",Ref!$B$36,INDEX(Ranks!$1:$1048576,$A251,BF$1))","v":""},{"$f":"IF($A251=\"N/A\",Ref!$B$36,INDEX(Ranks!$1:$1048576,$A251,BG$1))","v":""},{"$f":"IF($A251=\"N/A\",Ref!$B$36,INDEX(Ranks!$1:$1048576,$A251,BH$1))","v":""},{"$f":"IF($A251=\"N/A\",Ref!$B$36,INDEX(Ranks!$1:$1048576,$A251,BI$1))","v":""},{"$f":"IF($A251=\"N/A\",Ref!$B$36,INDEX(Ranks!$1:$1048576,$A251,BJ$1))","v":""},{"$f":"IF($A251=\"N/A\",Ref!$B$36,INDEX(Ranks!$1:$1048576,$A251,BK$1))","v":""},{"$f":"IF($A251=\"N/A\",Ref!$B$36,INDEX(Ranks!$1:$1048576,$A251,BL$1))","v":""},{"$f":"IF($A251=\"N/A\",Ref!$B$36,INDEX(Ranks!$1:$1048576,$A251,BM$1))","v":""},{"$f":"IF($A251=\"N/A\",Ref!$B$36,INDEX(Ranks!$1:$1048576,$A251,BN$1))","v":""},{"$f":"IF($A251=\"N/A\",Ref!$B$36,INDEX(Ranks!$1:$1048576,$A251,BO$1))","v":""},{"$f":"IF($A251=\"N/A\",Ref!$B$36,INDEX(Ranks!$1:$1048576,$A251,BP$1))","v":""},{"$f":"IF($A251=\"N/A\",Ref!$B$36,INDEX(Ranks!$1:$1048576,$A251,BQ$1))","v":""},{"$f":"IF($A251=\"N/A\",Ref!$B$36,INDEX(Ranks!$1:$1048576,$A251,BR$1))","v":""},{"$f":"IF($A251=\"N/A\",Ref!$B$36,INDEX(Ranks!$1:$1048576,$A251,BS$1))","v":""},{"$f":"IF($A251=\"N/A\",Ref!$B$36,INDEX(Ranks!$1:$1048576,$A251,BT$1))","v":""},{"$f":"IF($A251=\"N/A\",Ref!$B$36,INDEX(Ranks!$1:$1048576,$A251,BU$1))","v":""},{"$f":"IF($A251=\"N/A\",Ref!$B$36,INDEX(Ranks!$1:$1048576,$A251,BV$1))","v":""},{"$f":"IF($A251=\"N/A\",Ref!$B$36,INDEX(Ranks!$1:$1048576,$A251,BW$1))","v":""},{"$f":"IF($A251=\"N/A\",Ref!$B$36,INDEX(Ranks!$1:$1048576,$A251,BX$1))","v":""},{"$f":"IF($A251=\"N/A\",Ref!$B$36,INDEX(Ranks!$1:$1048576,$A251,BY$1))","v":""},{"$f":"IF($A251=\"N/A\",Ref!$B$36,INDEX(Ranks!$1:$1048576,$A251,BZ$1))","v":""},{"$f":"IF($A251=\"N/A\",Ref!$B$36,INDEX(Ranks!$1:$1048576,$A251,CA$1))","v":""},{"$f":"IF($A251=\"N/A\",Ref!$B$36,INDEX(Ranks!$1:$1048576,$A251,CB$1))","v":""},{"$f":"IF($A251=\"N/A\",Ref!$B$36,INDEX(Ranks!$1:$1048576,$A251,CC$1))","v":""},{"$f":"IF($A251=\"N/A\",Ref!$B$36,INDEX(Ranks!$1:$1048576,$A251,CD$1))","v":""},{"$f":"IF($A251=\"N/A\",Ref!$B$36,INDEX(Ranks!$1:$1048576,$A251,CE$1))","v":""},{"$f":"IF($A251=\"N/A\",Ref!$B$36,INDEX(Ranks!$1:$1048576,$A251,CF$1))","v":""},{"$f":"IF($A251=\"N/A\",Ref!$B$36,INDEX(Ranks!$1:$1048576,$A251,CG$1))","v":""},{"$f":"IF($A251=\"N/A\",Ref!$B$36,INDEX(Ranks!$1:$1048576,$A251,CH$1))","v":""},{"$f":"IF($A251=\"N/A\",Ref!$B$36,INDEX(Ranks!$1:$1048576,$A251,CI$1))","v":""},{"$f":"IF($A251=\"N/A\",Ref!$B$36,INDEX(Ranks!$1:$1048576,$A251,CJ$1))","v":""},{"$f":"IF($A251=\"N/A\",Ref!$B$36,INDEX(Ranks!$1:$1048576,$A251,CK$1))","v":""},{"$f":"IF($A251=\"N/A\",Ref!$B$36,INDEX(Ranks!$1:$1048576,$A251,CL$1))","v":""},{"$f":"IF($A251=\"N/A\",Ref!$B$36,INDEX(Ranks!$1:$1048576,$A251,CM$1))","v":""},{"$f":"IF($A251=\"N/A\",Ref!$B$36,INDEX(Ranks!$1:$1048576,$A251,CN$1))","v":""},{"$f":"IF($A251=\"N/A\",Ref!$B$36,INDEX(Ranks!$1:$1048576,$A251,CO$1))","v":""},{"$f":"IF($A251=\"N/A\",Ref!$B$36,INDEX(Ranks!$1:$1048576,$A251,CP$1))","v":""},{"$f":"IF($A251=\"N/A\",Ref!$B$36,INDEX(Ranks!$1:$1048576,$A251,CQ$1))","v":""},{"$f":"IF($A251=\"N/A\",Ref!$B$36,INDEX(Ranks!$1:$1048576,$A251,CR$1))","v":""},{"$f":"IF($A251=\"N/A\",Ref!$B$36,INDEX(Ranks!$1:$1048576,$A251,CS$1))","v":""},{"$f":"IF($A251=\"N/A\",Ref!$B$36,INDEX(Ranks!$1:$1048576,$A251,CT$1))","v":""},{"$f":"IF($A251=\"N/A\",Ref!$B$36,INDEX(Ranks!$1:$1048576,$A251,CU$1))","v":""},{"$f":"IF($A251=\"N/A\",Ref!$B$36,INDEX(Ranks!$1:$1048576,$A251,CV$1))","v":""},{"$f":"IF($A251=\"N/A\",Ref!$B$36,INDEX(Ranks!$1:$1048576,$A251,CW$1))","v":""},{"$f":"IF($A251=\"N/A\",Ref!$B$36,INDEX(Ranks!$1:$1048576,$A251,CX$1))","v":""},{"$f":"IF($A251=\"N/A\",Ref!$B$36,INDEX(Ranks!$1:$1048576,$A251,CY$1))","v":""},{"$f":"IF($A251=\"N/A\",Ref!$B$36,INDEX(Ranks!$1:$1048576,$A251,CZ$1))","v":""},{"$f":"IF($A251=\"N/A\",Ref!$B$36,INDEX(Ranks!$1:$1048576,$A251,DA$1))","v":""},{"$f":"IF($A251=\"N/A\",Ref!$B$36,INDEX(Ranks!$1:$1048576,$A251,DB$1))","v":""},{"$f":"IF($A251=\"N/A\",Ref!$B$36,INDEX(Ranks!$1:$1048576,$A251,DC$1))","v":""},{"$f":"IF($A251=\"N/A\",Ref!$B$36,INDEX(Ranks!$1:$1048576,$A251,DD$1))","v":""},{"$f":"IF($A251=\"N/A\",Ref!$B$36,INDEX(Ranks!$1:$1048576,$A251,DE$1))","v":""},{"$f":"IF($A251=\"N/A\",Ref!$B$36,INDEX(Ranks!$1:$1048576,$A251,DF$1))","v":""},{"$f":"IF($A251=\"N/A\",Ref!$B$36,INDEX(Ranks!$1:$1048576,$A251,DG$1))","v":""},{"$f":"IF($A251=\"N/A\",Ref!$B$36,INDEX(Ranks!$1:$1048576,$A251,DH$1))","v":""},{"$f":"IF($A251=\"N/A\",Ref!$B$36,INDEX(Ranks!$1:$1048576,$A251,DI$1))","v":""},{"$f":"IF($A251=\"N/A\",Ref!$B$36,INDEX(Ranks!$1:$1048576,$A251,DJ$1))","v":""},{"$f":"IF($A251=\"N/A\",Ref!$B$36,INDEX(Ranks!$1:$1048576,$A251,DK$1))","v":""},{"$f":"IF($A251=\"N/A\",Ref!$B$36,INDEX(Ranks!$1:$1048576,$A251,DL$1))","v":""},{"$f":"IF($A251=\"N/A\",Ref!$B$36,INDEX(Ranks!$1:$1048576,$A251,DM$1))","v":""},{"$f":"IF($A251=\"N/A\",Ref!$B$36,INDEX(Ranks!$1:$1048576,$A251,DN$1))","v":""},{"$f":"IF($A251=\"N/A\",Ref!$B$36,INDEX(Ranks!$1:$1048576,$A251,DO$1))","v":""},{"$f":"IF($A251=\"N/A\",Ref!$B$36,INDEX(Ranks!$1:$1048576,$A251,DP$1))","v":""},{"$f":"IF($A251=\"N/A\",Ref!$B$36,INDEX(Ranks!$1:$1048576,$A251,DQ$1))","v":""},{"$f":"IF($A251=\"N/A\",Ref!$B$36,INDEX(Ranks!$1:$1048576,$A251,DR$1))","v":""},{"$f":"IF($A251=\"N/A\",Ref!$B$36,INDEX(Ranks!$1:$1048576,$A251,DS$1))","v":""},{"$f":"IF($A251=\"N/A\",Ref!$B$36,INDEX(Ranks!$1:$1048576,$A251,DT$1))","v":""},{"$f":"IF($A251=\"N/A\",Ref!$B$36,INDEX(Ranks!$1:$1048576,$A251,DU$1))","v":""},{"$f":"IF($A251=\"N/A\",Ref!$B$36,INDEX(Ranks!$1:$1048576,$A251,DV$1))","v":""},{"$f":"IF($A251=\"N/A\",Ref!$B$36,INDEX(Ranks!$1:$1048576,$A251,DW$1))","v":""},{"$f":"IF($A251=\"N/A\",Ref!$B$36,INDEX(Ranks!$1:$1048576,$A251,DX$1))","v":""},{"$f":"IF($A251=\"N/A\",Ref!$B$36,INDEX(Ranks!$1:$1048576,$A251,DY$1))","v":""},{"$f":"IF($A251=\"N/A\",Ref!$B$36,INDEX(Ranks!$1:$1048576,$A251,DZ$1))","v":""},{"$f":"IF($A251=\"N/A\",Ref!$B$36,INDEX(Ranks!$1:$1048576,$A251,EA$1))","v":""},{"$f":"IF($A251=\"N/A\",Ref!$B$36,INDEX(Ranks!$1:$1048576,$A251,EB$1))","v":""}]
[{"$f":"IFERROR(MATCH('Portfolio Page'!L252,Ranks!L:L,0),\"N/A\")","v":"N/A"},null,{"$f":"IF($A252=\"N/A\",\"\",INDEX(Ranks!$1:$1048576,$A252,C$1))","v":""},{"$f":"IF($A252=\"N/A\",Ref!$B$36,INDEX(Ranks!$1:$1048576,$A252,D$1))","v":""},{"$f":"IF($A252=\"N/A\",Ref!$B$36,INDEX(Ranks!$1:$1048576,$A252,E$1))","v":""},{"$f":"IF($A252=\"N/A\",\"\",INDEX(Ranks!$1:$1048576,$A252,F$1))","v":""},{"$f":"IF($A252=\"N/A\",\"\",INDEX(Ranks!$1:$1048576,$A252,G$1))","v":""},{"$f":"IF($A252=\"N/A\",\"\",INDEX(Ranks!$1:$1048576,$A252,H$1))","v":""},{"$f":"IF($A252=\"N/A\",\"\",INDEX(Ranks!$1:$1048576,$A252,I$1))","v":""},{"$f":"IF($A252=\"N/A\",\"\",INDEX(Ranks!$1:$1048576,$A252,J$1))","v":""},{"$f":"IF($A252=\"N/A\",\"\",INDEX(Ranks!$1:$1048576,$A252,K$1))","v":""},null,{"$f":"IF($A252=\"N/A\",Ref!$B$36,INDEX(Ranks!$1:$1048576,$A252,M$1))","v":""},{"$f":"IF($A252=\"N/A\",Ref!$B$36,INDEX(Ranks!$1:$1048576,$A252,N$1))","v":""},{"$f":"IF($A252=\"N/A\",Ref!$B$36,INDEX(Ranks!$1:$1048576,$A252,O$1))","v":""},{"$f":"IF($A252=\"N/A\",Ref!$B$36,INDEX(Ranks!$1:$1048576,$A252,P$1))","v":""},{"$f":"IF($A252=\"N/A\",Ref!$B$36,INDEX(Ranks!$1:$1048576,$A252,Q$1))","v":""},{"$f":"IF($A252=\"N/A\",Ref!$B$36,INDEX(Ranks!$1:$1048576,$A252,R$1))","v":""},{"$f":"IF($A252=\"N/A\",Ref!$B$36,INDEX(Ranks!$1:$1048576,$A252,S$1))","v":""},{"$f":"IF($A252=\"N/A\",Ref!$B$36,INDEX(Ranks!$1:$1048576,$A252,T$1))","v":""},{"$f":"IF($A252=\"N/A\",Ref!$B$36,INDEX(Ranks!$1:$1048576,$A252,U$1))","v":""},{"$f":"IF($A252=\"N/A\",Ref!$B$36,INDEX(Ranks!$1:$1048576,$A252,V$1))","v":""},{"$f":"IF($A252=\"N/A\",Ref!$B$36,INDEX(Ranks!$1:$1048576,$A252,W$1))","v":""},{"$f":"IF($A252=\"N/A\",Ref!$B$36,INDEX(Ranks!$1:$1048576,$A252,X$1))","v":""},{"$f":"IF($A252=\"N/A\",Ref!$B$36,INDEX(Ranks!$1:$1048576,$A252,Y$1))","v":""},{"$f":"IF($A252=\"N/A\",Ref!$B$36,INDEX(Ranks!$1:$1048576,$A252,Z$1))","v":""},{"$f":"IF($A252=\"N/A\",Ref!$B$36,INDEX(Ranks!$1:$1048576,$A252,AA$1))","v":""},{"$f":"IF($A252=\"N/A\",Ref!$B$36,INDEX(Ranks!$1:$1048576,$A252,AB$1))","v":""},{"$f":"IF($A252=\"N/A\",Ref!$B$36,INDEX(Ranks!$1:$1048576,$A252,AC$1))","v":""},{"$f":"IF($A252=\"N/A\",Ref!$B$36,INDEX(Ranks!$1:$1048576,$A252,AD$1))","v":""},{"$f":"IF($A252=\"N/A\",Ref!$B$36,INDEX(Ranks!$1:$1048576,$A252,AE$1))","v":""},{"$f":"IF($A252=\"N/A\",Ref!$B$36,INDEX(Ranks!$1:$1048576,$A252,AF$1))","v":""},{"$f":"IF($A252=\"N/A\",Ref!$B$36,INDEX(Ranks!$1:$1048576,$A252,AG$1))","v":""},{"$f":"IF($A252=\"N/A\",Ref!$B$36,INDEX(Ranks!$1:$1048576,$A252,AH$1))","v":""},{"$f":"IF($A252=\"N/A\",Ref!$B$36,INDEX(Ranks!$1:$1048576,$A252,AI$1))","v":""},{"$f":"IF($A252=\"N/A\",Ref!$B$36,INDEX(Ranks!$1:$1048576,$A252,AJ$1))","v":""},{"$f":"IF($A252=\"N/A\",Ref!$B$36,INDEX(Ranks!$1:$1048576,$A252,AK$1))","v":""},{"$f":"IF($A252=\"N/A\",Ref!$B$36,INDEX(Ranks!$1:$1048576,$A252,AL$1))","v":""},{"$f":"IF($A252=\"N/A\",Ref!$B$36,INDEX(Ranks!$1:$1048576,$A252,AM$1))","v":""},{"$f":"IF($A252=\"N/A\",Ref!$B$36,INDEX(Ranks!$1:$1048576,$A252,AN$1))","v":""},{"$f":"IF($A252=\"N/A\",Ref!$B$36,INDEX(Ranks!$1:$1048576,$A252,AO$1))","v":""},{"$f":"IF($A252=\"N/A\",Ref!$B$36,INDEX(Ranks!$1:$1048576,$A252,AP$1))","v":""},{"$f":"IF($A252=\"N/A\",Ref!$B$36,INDEX(Ranks!$1:$1048576,$A252,AQ$1))","v":""},{"$f":"IF($A252=\"N/A\",Ref!$B$36,INDEX(Ranks!$1:$1048576,$A252,AR$1))","v":""},{"$f":"IF($A252=\"N/A\",Ref!$B$36,INDEX(Ranks!$1:$1048576,$A252,AS$1))","v":""},{"$f":"IF($A252=\"N/A\",Ref!$B$36,INDEX(Ranks!$1:$1048576,$A252,AT$1))","v":""},{"$f":"IF($A252=\"N/A\",Ref!$B$36,INDEX(Ranks!$1:$1048576,$A252,AU$1))","v":""},{"$f":"IF($A252=\"N/A\",Ref!$B$36,INDEX(Ranks!$1:$1048576,$A252,AV$1))","v":""},{"$f":"IF($A252=\"N/A\",Ref!$B$36,INDEX(Ranks!$1:$1048576,$A252,AW$1))","v":""},{"$f":"IF($A252=\"N/A\",Ref!$B$36,INDEX(Ranks!$1:$1048576,$A252,AX$1))","v":""},{"$f":"IF($A252=\"N/A\",Ref!$B$36,INDEX(Ranks!$1:$1048576,$A252,AY$1))","v":""},{"$f":"IF($A252=\"N/A\",Ref!$B$36,INDEX(Ranks!$1:$1048576,$A252,AZ$1))","v":""},{"$f":"IF($A252=\"N/A\",Ref!$B$36,INDEX(Ranks!$1:$1048576,$A252,BA$1))","v":""},{"$f":"IF($A252=\"N/A\",Ref!$B$36,INDEX(Ranks!$1:$1048576,$A252,BB$1))","v":""},{"$f":"IF($A252=\"N/A\",Ref!$B$36,INDEX(Ranks!$1:$1048576,$A252,BC$1))","v":""},{"$f":"IF($A252=\"N/A\",Ref!$B$36,INDEX(Ranks!$1:$1048576,$A252,BD$1))","v":""},{"$f":"IF($A252=\"N/A\",Ref!$B$36,INDEX(Ranks!$1:$1048576,$A252,BE$1))","v":""},{"$f":"IF($A252=\"N/A\",Ref!$B$36,INDEX(Ranks!$1:$1048576,$A252,BF$1))","v":""},{"$f":"IF($A252=\"N/A\",Ref!$B$36,INDEX(Ranks!$1:$1048576,$A252,BG$1))","v":""},{"$f":"IF($A252=\"N/A\",Ref!$B$36,INDEX(Ranks!$1:$1048576,$A252,BH$1))","v":""},{"$f":"IF($A252=\"N/A\",Ref!$B$36,INDEX(Ranks!$1:$1048576,$A252,BI$1))","v":""},{"$f":"IF($A252=\"N/A\",Ref!$B$36,INDEX(Ranks!$1:$1048576,$A252,BJ$1))","v":""},{"$f":"IF($A252=\"N/A\",Ref!$B$36,INDEX(Ranks!$1:$1048576,$A252,BK$1))","v":""},{"$f":"IF($A252=\"N/A\",Ref!$B$36,INDEX(Ranks!$1:$1048576,$A252,BL$1))","v":""},{"$f":"IF($A252=\"N/A\",Ref!$B$36,INDEX(Ranks!$1:$1048576,$A252,BM$1))","v":""},{"$f":"IF($A252=\"N/A\",Ref!$B$36,INDEX(Ranks!$1:$1048576,$A252,BN$1))","v":""},{"$f":"IF($A252=\"N/A\",Ref!$B$36,INDEX(Ranks!$1:$1048576,$A252,BO$1))","v":""},{"$f":"IF($A252=\"N/A\",Ref!$B$36,INDEX(Ranks!$1:$1048576,$A252,BP$1))","v":""},{"$f":"IF($A252=\"N/A\",Ref!$B$36,INDEX(Ranks!$1:$1048576,$A252,BQ$1))","v":""},{"$f":"IF($A252=\"N/A\",Ref!$B$36,INDEX(Ranks!$1:$1048576,$A252,BR$1))","v":""},{"$f":"IF($A252=\"N/A\",Ref!$B$36,INDEX(Ranks!$1:$1048576,$A252,BS$1))","v":""},{"$f":"IF($A252=\"N/A\",Ref!$B$36,INDEX(Ranks!$1:$1048576,$A252,BT$1))","v":""},{"$f":"IF($A252=\"N/A\",Ref!$B$36,INDEX(Ranks!$1:$1048576,$A252,BU$1))","v":""},{"$f":"IF($A252=\"N/A\",Ref!$B$36,INDEX(Ranks!$1:$1048576,$A252,BV$1))","v":""},{"$f":"IF($A252=\"N/A\",Ref!$B$36,INDEX(Ranks!$1:$1048576,$A252,BW$1))","v":""},{"$f":"IF($A252=\"N/A\",Ref!$B$36,INDEX(Ranks!$1:$1048576,$A252,BX$1))","v":""},{"$f":"IF($A252=\"N/A\",Ref!$B$36,INDEX(Ranks!$1:$1048576,$A252,BY$1))","v":""},{"$f":"IF($A252=\"N/A\",Ref!$B$36,INDEX(Ranks!$1:$1048576,$A252,BZ$1))","v":""},{"$f":"IF($A252=\"N/A\",Ref!$B$36,INDEX(Ranks!$1:$1048576,$A252,CA$1))","v":""},{"$f":"IF($A252=\"N/A\",Ref!$B$36,INDEX(Ranks!$1:$1048576,$A252,CB$1))","v":""},{"$f":"IF($A252=\"N/A\",Ref!$B$36,INDEX(Ranks!$1:$1048576,$A252,CC$1))","v":""},{"$f":"IF($A252=\"N/A\",Ref!$B$36,INDEX(Ranks!$1:$1048576,$A252,CD$1))","v":""},{"$f":"IF($A252=\"N/A\",Ref!$B$36,INDEX(Ranks!$1:$1048576,$A252,CE$1))","v":""},{"$f":"IF($A252=\"N/A\",Ref!$B$36,INDEX(Ranks!$1:$1048576,$A252,CF$1))","v":""},{"$f":"IF($A252=\"N/A\",Ref!$B$36,INDEX(Ranks!$1:$1048576,$A252,CG$1))","v":""},{"$f":"IF($A252=\"N/A\",Ref!$B$36,INDEX(Ranks!$1:$1048576,$A252,CH$1))","v":""},{"$f":"IF($A252=\"N/A\",Ref!$B$36,INDEX(Ranks!$1:$1048576,$A252,CI$1))","v":""},{"$f":"IF($A252=\"N/A\",Ref!$B$36,INDEX(Ranks!$1:$1048576,$A252,CJ$1))","v":""},{"$f":"IF($A252=\"N/A\",Ref!$B$36,INDEX(Ranks!$1:$1048576,$A252,CK$1))","v":""},{"$f":"IF($A252=\"N/A\",Ref!$B$36,INDEX(Ranks!$1:$1048576,$A252,CL$1))","v":""},{"$f":"IF($A252=\"N/A\",Ref!$B$36,INDEX(Ranks!$1:$1048576,$A252,CM$1))","v":""},{"$f":"IF($A252=\"N/A\",Ref!$B$36,INDEX(Ranks!$1:$1048576,$A252,CN$1))","v":""},{"$f":"IF($A252=\"N/A\",Ref!$B$36,INDEX(Ranks!$1:$1048576,$A252,CO$1))","v":""},{"$f":"IF($A252=\"N/A\",Ref!$B$36,INDEX(Ranks!$1:$1048576,$A252,CP$1))","v":""},{"$f":"IF($A252=\"N/A\",Ref!$B$36,INDEX(Ranks!$1:$1048576,$A252,CQ$1))","v":""},{"$f":"IF($A252=\"N/A\",Ref!$B$36,INDEX(Ranks!$1:$1048576,$A252,CR$1))","v":""},{"$f":"IF($A252=\"N/A\",Ref!$B$36,INDEX(Ranks!$1:$1048576,$A252,CS$1))","v":""},{"$f":"IF($A252=\"N/A\",Ref!$B$36,INDEX(Ranks!$1:$1048576,$A252,CT$1))","v":""},{"$f":"IF($A252=\"N/A\",Ref!$B$36,INDEX(Ranks!$1:$1048576,$A252,CU$1))","v":""},{"$f":"IF($A252=\"N/A\",Ref!$B$36,INDEX(Ranks!$1:$1048576,$A252,CV$1))","v":""},{"$f":"IF($A252=\"N/A\",Ref!$B$36,INDEX(Ranks!$1:$1048576,$A252,CW$1))","v":""},{"$f":"IF($A252=\"N/A\",Ref!$B$36,INDEX(Ranks!$1:$1048576,$A252,CX$1))","v":""},{"$f":"IF($A252=\"N/A\",Ref!$B$36,INDEX(Ranks!$1:$1048576,$A252,CY$1))","v":""},{"$f":"IF($A252=\"N/A\",Ref!$B$36,INDEX(Ranks!$1:$1048576,$A252,CZ$1))","v":""},{"$f":"IF($A252=\"N/A\",Ref!$B$36,INDEX(Ranks!$1:$1048576,$A252,DA$1))","v":""},{"$f":"IF($A252=\"N/A\",Ref!$B$36,INDEX(Ranks!$1:$1048576,$A252,DB$1))","v":""},{"$f":"IF($A252=\"N/A\",Ref!$B$36,INDEX(Ranks!$1:$1048576,$A252,DC$1))","v":""},{"$f":"IF($A252=\"N/A\",Ref!$B$36,INDEX(Ranks!$1:$1048576,$A252,DD$1))","v":""},{"$f":"IF($A252=\"N/A\",Ref!$B$36,INDEX(Ranks!$1:$1048576,$A252,DE$1))","v":""},{"$f":"IF($A252=\"N/A\",Ref!$B$36,INDEX(Ranks!$1:$1048576,$A252,DF$1))","v":""},{"$f":"IF($A252=\"N/A\",Ref!$B$36,INDEX(Ranks!$1:$1048576,$A252,DG$1))","v":""},{"$f":"IF($A252=\"N/A\",Ref!$B$36,INDEX(Ranks!$1:$1048576,$A252,DH$1))","v":""},{"$f":"IF($A252=\"N/A\",Ref!$B$36,INDEX(Ranks!$1:$1048576,$A252,DI$1))","v":""},{"$f":"IF($A252=\"N/A\",Ref!$B$36,INDEX(Ranks!$1:$1048576,$A252,DJ$1))","v":""},{"$f":"IF($A252=\"N/A\",Ref!$B$36,INDEX(Ranks!$1:$1048576,$A252,DK$1))","v":""},{"$f":"IF($A252=\"N/A\",Ref!$B$36,INDEX(Ranks!$1:$1048576,$A252,DL$1))","v":""},{"$f":"IF($A252=\"N/A\",Ref!$B$36,INDEX(Ranks!$1:$1048576,$A252,DM$1))","v":""},{"$f":"IF($A252=\"N/A\",Ref!$B$36,INDEX(Ranks!$1:$1048576,$A252,DN$1))","v":""},{"$f":"IF($A252=\"N/A\",Ref!$B$36,INDEX(Ranks!$1:$1048576,$A252,DO$1))","v":""},{"$f":"IF($A252=\"N/A\",Ref!$B$36,INDEX(Ranks!$1:$1048576,$A252,DP$1))","v":""},{"$f":"IF($A252=\"N/A\",Ref!$B$36,INDEX(Ranks!$1:$1048576,$A252,DQ$1))","v":""},{"$f":"IF($A252=\"N/A\",Ref!$B$36,INDEX(Ranks!$1:$1048576,$A252,DR$1))","v":""},{"$f":"IF($A252=\"N/A\",Ref!$B$36,INDEX(Ranks!$1:$1048576,$A252,DS$1))","v":""},{"$f":"IF($A252=\"N/A\",Ref!$B$36,INDEX(Ranks!$1:$1048576,$A252,DT$1))","v":""},{"$f":"IF($A252=\"N/A\",Ref!$B$36,INDEX(Ranks!$1:$1048576,$A252,DU$1))","v":""},{"$f":"IF($A252=\"N/A\",Ref!$B$36,INDEX(Ranks!$1:$1048576,$A252,DV$1))","v":""},{"$f":"IF($A252=\"N/A\",Ref!$B$36,INDEX(Ranks!$1:$1048576,$A252,DW$1))","v":""},{"$f":"IF($A252=\"N/A\",Ref!$B$36,INDEX(Ranks!$1:$1048576,$A252,DX$1))","v":""},{"$f":"IF($A252=\"N/A\",Ref!$B$36,INDEX(Ranks!$1:$1048576,$A252,DY$1))","v":""},{"$f":"IF($A252=\"N/A\",Ref!$B$36,INDEX(Ranks!$1:$1048576,$A252,DZ$1))","v":""},{"$f":"IF($A252=\"N/A\",Ref!$B$36,INDEX(Ranks!$1:$1048576,$A252,EA$1))","v":""},{"$f":"IF($A252=\"N/A\",Ref!$B$36,INDEX(Ranks!$1:$1048576,$A252,EB$1))","v":""}]
[{"$f":"IFERROR(MATCH('Portfolio Page'!L253,Ranks!L:L,0),\"N/A\")","v":"N/A"},null,{"$f":"IF($A253=\"N/A\",\"\",INDEX(Ranks!$1:$1048576,$A253,C$1))","v":""},{"$f":"IF($A253=\"N/A\",Ref!$B$36,INDEX(Ranks!$1:$1048576,$A253,D$1))","v":""},{"$f":"IF($A253=\"N/A\",Ref!$B$36,INDEX(Ranks!$1:$1048576,$A253,E$1))","v":""},{"$f":"IF($A253=\"N/A\",\"\",INDEX(Ranks!$1:$1048576,$A253,F$1))","v":""},{"$f":"IF($A253=\"N/A\",\"\",INDEX(Ranks!$1:$1048576,$A253,G$1))","v":""},{"$f":"IF($A253=\"N/A\",\"\",INDEX(Ranks!$1:$1048576,$A253,H$1))","v":""},{"$f":"IF($A253=\"N/A\",\"\",INDEX(Ranks!$1:$1048576,$A253,I$1))","v":""},{"$f":"IF($A253=\"N/A\",\"\",INDEX(Ranks!$1:$1048576,$A253,J$1))","v":""},{"$f":"IF($A253=\"N/A\",\"\",INDEX(Ranks!$1:$1048576,$A253,K$1))","v":""},null,{"$f":"IF($A253=\"N/A\",Ref!$B$36,INDEX(Ranks!$1:$1048576,$A253,M$1))","v":""},{"$f":"IF($A253=\"N/A\",Ref!$B$36,INDEX(Ranks!$1:$1048576,$A253,N$1))","v":""},{"$f":"IF($A253=\"N/A\",Ref!$B$36,INDEX(Ranks!$1:$1048576,$A253,O$1))","v":""},{"$f":"IF($A253=\"N/A\",Ref!$B$36,INDEX(Ranks!$1:$1048576,$A253,P$1))","v":""},{"$f":"IF($A253=\"N/A\",Ref!$B$36,INDEX(Ranks!$1:$1048576,$A253,Q$1))","v":""},{"$f":"IF($A253=\"N/A\",Ref!$B$36,INDEX(Ranks!$1:$1048576,$A253,R$1))","v":""},{"$f":"IF($A253=\"N/A\",Ref!$B$36,INDEX(Ranks!$1:$1048576,$A253,S$1))","v":""},{"$f":"IF($A253=\"N/A\",Ref!$B$36,INDEX(Ranks!$1:$1048576,$A253,T$1))","v":""},{"$f":"IF($A253=\"N/A\",Ref!$B$36,INDEX(Ranks!$1:$1048576,$A253,U$1))","v":""},{"$f":"IF($A253=\"N/A\",Ref!$B$36,INDEX(Ranks!$1:$1048576,$A253,V$1))","v":""},{"$f":"IF($A253=\"N/A\",Ref!$B$36,INDEX(Ranks!$1:$1048576,$A253,W$1))","v":""},{"$f":"IF($A253=\"N/A\",Ref!$B$36,INDEX(Ranks!$1:$1048576,$A253,X$1))","v":""},{"$f":"IF($A253=\"N/A\",Ref!$B$36,INDEX(Ranks!$1:$1048576,$A253,Y$1))","v":""},{"$f":"IF($A253=\"N/A\",Ref!$B$36,INDEX(Ranks!$1:$1048576,$A253,Z$1))","v":""},{"$f":"IF($A253=\"N/A\",Ref!$B$36,INDEX(Ranks!$1:$1048576,$A253,AA$1))","v":""},{"$f":"IF($A253=\"N/A\",Ref!$B$36,INDEX(Ranks!$1:$1048576,$A253,AB$1))","v":""},{"$f":"IF($A253=\"N/A\",Ref!$B$36,INDEX(Ranks!$1:$1048576,$A253,AC$1))","v":""},{"$f":"IF($A253=\"N/A\",Ref!$B$36,INDEX(Ranks!$1:$1048576,$A253,AD$1))","v":""},{"$f":"IF($A253=\"N/A\",Ref!$B$36,INDEX(Ranks!$1:$1048576,$A253,AE$1))","v":""},{"$f":"IF($A253=\"N/A\",Ref!$B$36,INDEX(Ranks!$1:$1048576,$A253,AF$1))","v":""},{"$f":"IF($A253=\"N/A\",Ref!$B$36,INDEX(Ranks!$1:$1048576,$A253,AG$1))","v":""},{"$f":"IF($A253=\"N/A\",Ref!$B$36,INDEX(Ranks!$1:$1048576,$A253,AH$1))","v":""},{"$f":"IF($A253=\"N/A\",Ref!$B$36,INDEX(Ranks!$1:$1048576,$A253,AI$1))","v":""},{"$f":"IF($A253=\"N/A\",Ref!$B$36,INDEX(Ranks!$1:$1048576,$A253,AJ$1))","v":""},{"$f":"IF($A253=\"N/A\",Ref!$B$36,INDEX(Ranks!$1:$1048576,$A253,AK$1))","v":""},{"$f":"IF($A253=\"N/A\",Ref!$B$36,INDEX(Ranks!$1:$1048576,$A253,AL$1))","v":""},{"$f":"IF($A253=\"N/A\",Ref!$B$36,INDEX(Ranks!$1:$1048576,$A253,AM$1))","v":""},{"$f":"IF($A253=\"N/A\",Ref!$B$36,INDEX(Ranks!$1:$1048576,$A253,AN$1))","v":""},{"$f":"IF($A253=\"N/A\",Ref!$B$36,INDEX(Ranks!$1:$1048576,$A253,AO$1))","v":""},{"$f":"IF($A253=\"N/A\",Ref!$B$36,INDEX(Ranks!$1:$1048576,$A253,AP$1))","v":""},{"$f":"IF($A253=\"N/A\",Ref!$B$36,INDEX(Ranks!$1:$1048576,$A253,AQ$1))","v":""},{"$f":"IF($A253=\"N/A\",Ref!$B$36,INDEX(Ranks!$1:$1048576,$A253,AR$1))","v":""},{"$f":"IF($A253=\"N/A\",Ref!$B$36,INDEX(Ranks!$1:$1048576,$A253,AS$1))","v":""},{"$f":"IF($A253=\"N/A\",Ref!$B$36,INDEX(Ranks!$1:$1048576,$A253,AT$1))","v":""},{"$f":"IF($A253=\"N/A\",Ref!$B$36,INDEX(Ranks!$1:$1048576,$A253,AU$1))","v":""},{"$f":"IF($A253=\"N/A\",Ref!$B$36,INDEX(Ranks!$1:$1048576,$A253,AV$1))","v":""},{"$f":"IF($A253=\"N/A\",Ref!$B$36,INDEX(Ranks!$1:$1048576,$A253,AW$1))","v":""},{"$f":"IF($A253=\"N/A\",Ref!$B$36,INDEX(Ranks!$1:$1048576,$A253,AX$1))","v":""},{"$f":"IF($A253=\"N/A\",Ref!$B$36,INDEX(Ranks!$1:$1048576,$A253,AY$1))","v":""},{"$f":"IF($A253=\"N/A\",Ref!$B$36,INDEX(Ranks!$1:$1048576,$A253,AZ$1))","v":""},{"$f":"IF($A253=\"N/A\",Ref!$B$36,INDEX(Ranks!$1:$1048576,$A253,BA$1))","v":""},{"$f":"IF($A253=\"N/A\",Ref!$B$36,INDEX(Ranks!$1:$1048576,$A253,BB$1))","v":""},{"$f":"IF($A253=\"N/A\",Ref!$B$36,INDEX(Ranks!$1:$1048576,$A253,BC$1))","v":""},{"$f":"IF($A253=\"N/A\",Ref!$B$36,INDEX(Ranks!$1:$1048576,$A253,BD$1))","v":""},{"$f":"IF($A253=\"N/A\",Ref!$B$36,INDEX(Ranks!$1:$1048576,$A253,BE$1))","v":""},{"$f":"IF($A253=\"N/A\",Ref!$B$36,INDEX(Ranks!$1:$1048576,$A253,BF$1))","v":""},{"$f":"IF($A253=\"N/A\",Ref!$B$36,INDEX(Ranks!$1:$1048576,$A253,BG$1))","v":""},{"$f":"IF($A253=\"N/A\",Ref!$B$36,INDEX(Ranks!$1:$1048576,$A253,BH$1))","v":""},{"$f":"IF($A253=\"N/A\",Ref!$B$36,INDEX(Ranks!$1:$1048576,$A253,BI$1))","v":""},{"$f":"IF($A253=\"N/A\",Ref!$B$36,INDEX(Ranks!$1:$1048576,$A253,BJ$1))","v":""},{"$f":"IF($A253=\"N/A\",Ref!$B$36,INDEX(Ranks!$1:$1048576,$A253,BK$1))","v":""},{"$f":"IF($A253=\"N/A\",Ref!$B$36,INDEX(Ranks!$1:$1048576,$A253,BL$1))","v":""},{"$f":"IF($A253=\"N/A\",Ref!$B$36,INDEX(Ranks!$1:$1048576,$A253,BM$1))","v":""},{"$f":"IF($A253=\"N/A\",Ref!$B$36,INDEX(Ranks!$1:$1048576,$A253,BN$1))","v":""},{"$f":"IF($A253=\"N/A\",Ref!$B$36,INDEX(Ranks!$1:$1048576,$A253,BO$1))","v":""},{"$f":"IF($A253=\"N/A\",Ref!$B$36,INDEX(Ranks!$1:$1048576,$A253,BP$1))","v":""},{"$f":"IF($A253=\"N/A\",Ref!$B$36,INDEX(Ranks!$1:$1048576,$A253,BQ$1))","v":""},{"$f":"IF($A253=\"N/A\",Ref!$B$36,INDEX(Ranks!$1:$1048576,$A253,BR$1))","v":""},{"$f":"IF($A253=\"N/A\",Ref!$B$36,INDEX(Ranks!$1:$1048576,$A253,BS$1))","v":""},{"$f":"IF($A253=\"N/A\",Ref!$B$36,INDEX(Ranks!$1:$1048576,$A253,BT$1))","v":""},{"$f":"IF($A253=\"N/A\",Ref!$B$36,INDEX(Ranks!$1:$1048576,$A253,BU$1))","v":""},{"$f":"IF($A253=\"N/A\",Ref!$B$36,INDEX(Ranks!$1:$1048576,$A253,BV$1))","v":""},{"$f":"IF($A253=\"N/A\",Ref!$B$36,INDEX(Ranks!$1:$1048576,$A253,BW$1))","v":""},{"$f":"IF($A253=\"N/A\",Ref!$B$36,INDEX(Ranks!$1:$1048576,$A253,BX$1))","v":""},{"$f":"IF($A253=\"N/A\",Ref!$B$36,INDEX(Ranks!$1:$1048576,$A253,BY$1))","v":""},{"$f":"IF($A253=\"N/A\",Ref!$B$36,INDEX(Ranks!$1:$1048576,$A253,BZ$1))","v":""},{"$f":"IF($A253=\"N/A\",Ref!$B$36,INDEX(Ranks!$1:$1048576,$A253,CA$1))","v":""},{"$f":"IF($A253=\"N/A\",Ref!$B$36,INDEX(Ranks!$1:$1048576,$A253,CB$1))","v":""},{"$f":"IF($A253=\"N/A\",Ref!$B$36,INDEX(Ranks!$1:$1048576,$A253,CC$1))","v":""},{"$f":"IF($A253=\"N/A\",Ref!$B$36,INDEX(Ranks!$1:$1048576,$A253,CD$1))","v":""},{"$f":"IF($A253=\"N/A\",Ref!$B$36,INDEX(Ranks!$1:$1048576,$A253,CE$1))","v":""},{"$f":"IF($A253=\"N/A\",Ref!$B$36,INDEX(Ranks!$1:$1048576,$A253,CF$1))","v":""},{"$f":"IF($A253=\"N/A\",Ref!$B$36,INDEX(Ranks!$1:$1048576,$A253,CG$1))","v":""},{"$f":"IF($A253=\"N/A\",Ref!$B$36,INDEX(Ranks!$1:$1048576,$A253,CH$1))","v":""},{"$f":"IF($A253=\"N/A\",Ref!$B$36,INDEX(Ranks!$1:$1048576,$A253,CI$1))","v":""},{"$f":"IF($A253=\"N/A\",Ref!$B$36,INDEX(Ranks!$1:$1048576,$A253,CJ$1))","v":""},{"$f":"IF($A253=\"N/A\",Ref!$B$36,INDEX(Ranks!$1:$1048576,$A253,CK$1))","v":""},{"$f":"IF($A253=\"N/A\",Ref!$B$36,INDEX(Ranks!$1:$1048576,$A253,CL$1))","v":""},{"$f":"IF($A253=\"N/A\",Ref!$B$36,INDEX(Ranks!$1:$1048576,$A253,CM$1))","v":""},{"$f":"IF($A253=\"N/A\",Ref!$B$36,INDEX(Ranks!$1:$1048576,$A253,CN$1))","v":""},{"$f":"IF($A253=\"N/A\",Ref!$B$36,INDEX(Ranks!$1:$1048576,$A253,CO$1))","v":""},{"$f":"IF($A253=\"N/A\",Ref!$B$36,INDEX(Ranks!$1:$1048576,$A253,CP$1))","v":""},{"$f":"IF($A253=\"N/A\",Ref!$B$36,INDEX(Ranks!$1:$1048576,$A253,CQ$1))","v":""},{"$f":"IF($A253=\"N/A\",Ref!$B$36,INDEX(Ranks!$1:$1048576,$A253,CR$1))","v":""},{"$f":"IF($A253=\"N/A\",Ref!$B$36,INDEX(Ranks!$1:$1048576,$A253,CS$1))","v":""},{"$f":"IF($A253=\"N/A\",Ref!$B$36,INDEX(Ranks!$1:$1048576,$A253,CT$1))","v":""},{"$f":"IF($A253=\"N/A\",Ref!$B$36,INDEX(Ranks!$1:$1048576,$A253,CU$1))","v":""},{"$f":"IF($A253=\"N/A\",Ref!$B$36,INDEX(Ranks!$1:$1048576,$A253,CV$1))","v":""},{"$f":"IF($A253=\"N/A\",Ref!$B$36,INDEX(Ranks!$1:$1048576,$A253,CW$1))","v":""},{"$f":"IF($A253=\"N/A\",Ref!$B$36,INDEX(Ranks!$1:$1048576,$A253,CX$1))","v":""},{"$f":"IF($A253=\"N/A\",Ref!$B$36,INDEX(Ranks!$1:$1048576,$A253,CY$1))","v":""},{"$f":"IF($A253=\"N/A\",Ref!$B$36,INDEX(Ranks!$1:$1048576,$A253,CZ$1))","v":""},{"$f":"IF($A253=\"N/A\",Ref!$B$36,INDEX(Ranks!$1:$1048576,$A253,DA$1))","v":""},{"$f":"IF($A253=\"N/A\",Ref!$B$36,INDEX(Ranks!$1:$1048576,$A253,DB$1))","v":""},{"$f":"IF($A253=\"N/A\",Ref!$B$36,INDEX(Ranks!$1:$1048576,$A253,DC$1))","v":""},{"$f":"IF($A253=\"N/A\",Ref!$B$36,INDEX(Ranks!$1:$1048576,$A253,DD$1))","v":""},{"$f":"IF($A253=\"N/A\",Ref!$B$36,INDEX(Ranks!$1:$1048576,$A253,DE$1))","v":""},{"$f":"IF($A253=\"N/A\",Ref!$B$36,INDEX(Ranks!$1:$1048576,$A253,DF$1))","v":""},{"$f":"IF($A253=\"N/A\",Ref!$B$36,INDEX(Ranks!$1:$1048576,$A253,DG$1))","v":""},{"$f":"IF($A253=\"N/A\",Ref!$B$36,INDEX(Ranks!$1:$1048576,$A253,DH$1))","v":""},{"$f":"IF($A253=\"N/A\",Ref!$B$36,INDEX(Ranks!$1:$1048576,$A253,DI$1))","v":""},{"$f":"IF($A253=\"N/A\",Ref!$B$36,INDEX(Ranks!$1:$1048576,$A253,DJ$1))","v":""},{"$f":"IF($A253=\"N/A\",Ref!$B$36,INDEX(Ranks!$1:$1048576,$A253,DK$1))","v":""},{"$f":"IF($A253=\"N/A\",Ref!$B$36,INDEX(Ranks!$1:$1048576,$A253,DL$1))","v":""},{"$f":"IF($A253=\"N/A\",Ref!$B$36,INDEX(Ranks!$1:$1048576,$A253,DM$1))","v":""},{"$f":"IF($A253=\"N/A\",Ref!$B$36,INDEX(Ranks!$1:$1048576,$A253,DN$1))","v":""},{"$f":"IF($A253=\"N/A\",Ref!$B$36,INDEX(Ranks!$1:$1048576,$A253,DO$1))","v":""},{"$f":"IF($A253=\"N/A\",Ref!$B$36,INDEX(Ranks!$1:$1048576,$A253,DP$1))","v":""},{"$f":"IF($A253=\"N/A\",Ref!$B$36,INDEX(Ranks!$1:$1048576,$A253,DQ$1))","v":""},{"$f":"IF($A253=\"N/A\",Ref!$B$36,INDEX(Ranks!$1:$1048576,$A253,DR$1))","v":""},{"$f":"IF($A253=\"N/A\",Ref!$B$36,INDEX(Ranks!$1:$1048576,$A253,DS$1))","v":""},{"$f":"IF($A253=\"N/A\",Ref!$B$36,INDEX(Ranks!$1:$1048576,$A253,DT$1))","v":""},{"$f":"IF($A253=\"N/A\",Ref!$B$36,INDEX(Ranks!$1:$1048576,$A253,DU$1))","v":""},{"$f":"IF($A253=\"N/A\",Ref!$B$36,INDEX(Ranks!$1:$1048576,$A253,DV$1))","v":""},{"$f":"IF($A253=\"N/A\",Ref!$B$36,INDEX(Ranks!$1:$1048576,$A253,DW$1))","v":""},{"$f":"IF($A253=\"N/A\",Ref!$B$36,INDEX(Ranks!$1:$1048576,$A253,DX$1))","v":""},{"$f":"IF($A253=\"N/A\",Ref!$B$36,INDEX(Ranks!$1:$1048576,$A253,DY$1))","v":""},{"$f":"IF($A253=\"N/A\",Ref!$B$36,INDEX(Ranks!$1:$1048576,$A253,DZ$1))","v":""},{"$f":"IF($A253=\"N/A\",Ref!$B$36,INDEX(Ranks!$1:$1048576,$A253,EA$1))","v":""},{"$f":"IF($A253=\"N/A\",Ref!$B$36,INDEX(Ranks!$1:$1048576,$A253,EB$1))","v":""}]
[{"$f":"IFERROR(MATCH('Portfolio Page'!L254,Ranks!L:L,0),\"N/A\")","v":"N/A"},null,{"$f":"IF($A254=\"N/A\",\"\",INDEX(Ranks!$1:$1048576,$A254,C$1))","v":""},{"$f":"IF($A254=\"N/A\",Ref!$B$36,INDEX(Ranks!$1:$1048576,$A254,D$1))","v":""},{"$f":"IF($A254=\"N/A\",Ref!$B$36,INDEX(Ranks!$1:$1048576,$A254,E$1))","v":""},{"$f":"IF($A254=\"N/A\",\"\",INDEX(Ranks!$1:$1048576,$A254,F$1))","v":""},{"$f":"IF($A254=\"N/A\",\"\",INDEX(Ranks!$1:$1048576,$A254,G$1))","v":""},{"$f":"IF($A254=\"N/A\",\"\",INDEX(Ranks!$1:$1048576,$A254,H$1))","v":""},{"$f":"IF($A254=\"N/A\",\"\",INDEX(Ranks!$1:$1048576,$A254,I$1))","v":""},{"$f":"IF($A254=\"N/A\",\"\",INDEX(Ranks!$1:$1048576,$A254,J$1))","v":""},{"$f":"IF($A254=\"N/A\",\"\",INDEX(Ranks!$1:$1048576,$A254,K$1))","v":""},null,{"$f":"IF($A254=\"N/A\",Ref!$B$36,INDEX(Ranks!$1:$1048576,$A254,M$1))","v":""},{"$f":"IF($A254=\"N/A\",Ref!$B$36,INDEX(Ranks!$1:$1048576,$A254,N$1))","v":""},{"$f":"IF($A254=\"N/A\",Ref!$B$36,INDEX(Ranks!$1:$1048576,$A254,O$1))","v":""},{"$f":"IF($A254=\"N/A\",Ref!$B$36,INDEX(Ranks!$1:$1048576,$A254,P$1))","v":""},{"$f":"IF($A254=\"N/A\",Ref!$B$36,INDEX(Ranks!$1:$1048576,$A254,Q$1))","v":""},{"$f":"IF($A254=\"N/A\",Ref!$B$36,INDEX(Ranks!$1:$1048576,$A254,R$1))","v":""},{"$f":"IF($A254=\"N/A\",Ref!$B$36,INDEX(Ranks!$1:$1048576,$A254,S$1))","v":""},{"$f":"IF($A254=\"N/A\",Ref!$B$36,INDEX(Ranks!$1:$1048576,$A254,T$1))","v":""},{"$f":"IF($A254=\"N/A\",Ref!$B$36,INDEX(Ranks!$1:$1048576,$A254,U$1))","v":""},{"$f":"IF($A254=\"N/A\",Ref!$B$36,INDEX(Ranks!$1:$1048576,$A254,V$1))","v":""},{"$f":"IF($A254=\"N/A\",Ref!$B$36,INDEX(Ranks!$1:$1048576,$A254,W$1))","v":""},{"$f":"IF($A254=\"N/A\",Ref!$B$36,INDEX(Ranks!$1:$1048576,$A254,X$1))","v":""},{"$f":"IF($A254=\"N/A\",Ref!$B$36,INDEX(Ranks!$1:$1048576,$A254,Y$1))","v":""},{"$f":"IF($A254=\"N/A\",Ref!$B$36,INDEX(Ranks!$1:$1048576,$A254,Z$1))","v":""},{"$f":"IF($A254=\"N/A\",Ref!$B$36,INDEX(Ranks!$1:$1048576,$A254,AA$1))","v":""},{"$f":"IF($A254=\"N/A\",Ref!$B$36,INDEX(Ranks!$1:$1048576,$A254,AB$1))","v":""},{"$f":"IF($A254=\"N/A\",Ref!$B$36,INDEX(Ranks!$1:$1048576,$A254,AC$1))","v":""},{"$f":"IF($A254=\"N/A\",Ref!$B$36,INDEX(Ranks!$1:$1048576,$A254,AD$1))","v":""},{"$f":"IF($A254=\"N/A\",Ref!$B$36,INDEX(Ranks!$1:$1048576,$A254,AE$1))","v":""},{"$f":"IF($A254=\"N/A\",Ref!$B$36,INDEX(Ranks!$1:$1048576,$A254,AF$1))","v":""},{"$f":"IF($A254=\"N/A\",Ref!$B$36,INDEX(Ranks!$1:$1048576,$A254,AG$1))","v":""},{"$f":"IF($A254=\"N/A\",Ref!$B$36,INDEX(Ranks!$1:$1048576,$A254,AH$1))","v":""},{"$f":"IF($A254=\"N/A\",Ref!$B$36,INDEX(Ranks!$1:$1048576,$A254,AI$1))","v":""},{"$f":"IF($A254=\"N/A\",Ref!$B$36,INDEX(Ranks!$1:$1048576,$A254,AJ$1))","v":""},{"$f":"IF($A254=\"N/A\",Ref!$B$36,INDEX(Ranks!$1:$1048576,$A254,AK$1))","v":""},{"$f":"IF($A254=\"N/A\",Ref!$B$36,INDEX(Ranks!$1:$1048576,$A254,AL$1))","v":""},{"$f":"IF($A254=\"N/A\",Ref!$B$36,INDEX(Ranks!$1:$1048576,$A254,AM$1))","v":""},{"$f":"IF($A254=\"N/A\",Ref!$B$36,INDEX(Ranks!$1:$1048576,$A254,AN$1))","v":""},{"$f":"IF($A254=\"N/A\",Ref!$B$36,INDEX(Ranks!$1:$1048576,$A254,AO$1))","v":""},{"$f":"IF($A254=\"N/A\",Ref!$B$36,INDEX(Ranks!$1:$1048576,$A254,AP$1))","v":""},{"$f":"IF($A254=\"N/A\",Ref!$B$36,INDEX(Ranks!$1:$1048576,$A254,AQ$1))","v":""},{"$f":"IF($A254=\"N/A\",Ref!$B$36,INDEX(Ranks!$1:$1048576,$A254,AR$1))","v":""},{"$f":"IF($A254=\"N/A\",Ref!$B$36,INDEX(Ranks!$1:$1048576,$A254,AS$1))","v":""},{"$f":"IF($A254=\"N/A\",Ref!$B$36,INDEX(Ranks!$1:$1048576,$A254,AT$1))","v":""},{"$f":"IF($A254=\"N/A\",Ref!$B$36,INDEX(Ranks!$1:$1048576,$A254,AU$1))","v":""},{"$f":"IF($A254=\"N/A\",Ref!$B$36,INDEX(Ranks!$1:$1048576,$A254,AV$1))","v":""},{"$f":"IF($A254=\"N/A\",Ref!$B$36,INDEX(Ranks!$1:$1048576,$A254,AW$1))","v":""},{"$f":"IF($A254=\"N/A\",Ref!$B$36,INDEX(Ranks!$1:$1048576,$A254,AX$1))","v":""},{"$f":"IF($A254=\"N/A\",Ref!$B$36,INDEX(Ranks!$1:$1048576,$A254,AY$1))","v":""},{"$f":"IF($A254=\"N/A\",Ref!$B$36,INDEX(Ranks!$1:$1048576,$A254,AZ$1))","v":""},{"$f":"IF($A254=\"N/A\",Ref!$B$36,INDEX(Ranks!$1:$1048576,$A254,BA$1))","v":""},{"$f":"IF($A254=\"N/A\",Ref!$B$36,INDEX(Ranks!$1:$1048576,$A254,BB$1))","v":""},{"$f":"IF($A254=\"N/A\",Ref!$B$36,INDEX(Ranks!$1:$1048576,$A254,BC$1))","v":""},{"$f":"IF($A254=\"N/A\",Ref!$B$36,INDEX(Ranks!$1:$1048576,$A254,BD$1))","v":""},{"$f":"IF($A254=\"N/A\",Ref!$B$36,INDEX(Ranks!$1:$1048576,$A254,BE$1))","v":""},{"$f":"IF($A254=\"N/A\",Ref!$B$36,INDEX(Ranks!$1:$1048576,$A254,BF$1))","v":""},{"$f":"IF($A254=\"N/A\",Ref!$B$36,INDEX(Ranks!$1:$1048576,$A254,BG$1))","v":""},{"$f":"IF($A254=\"N/A\",Ref!$B$36,INDEX(Ranks!$1:$1048576,$A254,BH$1))","v":""},{"$f":"IF($A254=\"N/A\",Ref!$B$36,INDEX(Ranks!$1:$1048576,$A254,BI$1))","v":""},{"$f":"IF($A254=\"N/A\",Ref!$B$36,INDEX(Ranks!$1:$1048576,$A254,BJ$1))","v":""},{"$f":"IF($A254=\"N/A\",Ref!$B$36,INDEX(Ranks!$1:$1048576,$A254,BK$1))","v":""},{"$f":"IF($A254=\"N/A\",Ref!$B$36,INDEX(Ranks!$1:$1048576,$A254,BL$1))","v":""},{"$f":"IF($A254=\"N/A\",Ref!$B$36,INDEX(Ranks!$1:$1048576,$A254,BM$1))","v":""},{"$f":"IF($A254=\"N/A\",Ref!$B$36,INDEX(Ranks!$1:$1048576,$A254,BN$1))","v":""},{"$f":"IF($A254=\"N/A\",Ref!$B$36,INDEX(Ranks!$1:$1048576,$A254,BO$1))","v":""},{"$f":"IF($A254=\"N/A\",Ref!$B$36,INDEX(Ranks!$1:$1048576,$A254,BP$1))","v":""},{"$f":"IF($A254=\"N/A\",Ref!$B$36,INDEX(Ranks!$1:$1048576,$A254,BQ$1))","v":""},{"$f":"IF($A254=\"N/A\",Ref!$B$36,INDEX(Ranks!$1:$1048576,$A254,BR$1))","v":""},{"$f":"IF($A254=\"N/A\",Ref!$B$36,INDEX(Ranks!$1:$1048576,$A254,BS$1))","v":""},{"$f":"IF($A254=\"N/A\",Ref!$B$36,INDEX(Ranks!$1:$1048576,$A254,BT$1))","v":""},{"$f":"IF($A254=\"N/A\",Ref!$B$36,INDEX(Ranks!$1:$1048576,$A254,BU$1))","v":""},{"$f":"IF($A254=\"N/A\",Ref!$B$36,INDEX(Ranks!$1:$1048576,$A254,BV$1))","v":""},{"$f":"IF($A254=\"N/A\",Ref!$B$36,INDEX(Ranks!$1:$1048576,$A254,BW$1))","v":""},{"$f":"IF($A254=\"N/A\",Ref!$B$36,INDEX(Ranks!$1:$1048576,$A254,BX$1))","v":""},{"$f":"IF($A254=\"N/A\",Ref!$B$36,INDEX(Ranks!$1:$1048576,$A254,BY$1))","v":""},{"$f":"IF($A254=\"N/A\",Ref!$B$36,INDEX(Ranks!$1:$1048576,$A254,BZ$1))","v":""},{"$f":"IF($A254=\"N/A\",Ref!$B$36,INDEX(Ranks!$1:$1048576,$A254,CA$1))","v":""},{"$f":"IF($A254=\"N/A\",Ref!$B$36,INDEX(Ranks!$1:$1048576,$A254,CB$1))","v":""},{"$f":"IF($A254=\"N/A\",Ref!$B$36,INDEX(Ranks!$1:$1048576,$A254,CC$1))","v":""},{"$f":"IF($A254=\"N/A\",Ref!$B$36,INDEX(Ranks!$1:$1048576,$A254,CD$1))","v":""},{"$f":"IF($A254=\"N/A\",Ref!$B$36,INDEX(Ranks!$1:$1048576,$A254,CE$1))","v":""},{"$f":"IF($A254=\"N/A\",Ref!$B$36,INDEX(Ranks!$1:$1048576,$A254,CF$1))","v":""},{"$f":"IF($A254=\"N/A\",Ref!$B$36,INDEX(Ranks!$1:$1048576,$A254,CG$1))","v":""},{"$f":"IF($A254=\"N/A\",Ref!$B$36,INDEX(Ranks!$1:$1048576,$A254,CH$1))","v":""},{"$f":"IF($A254=\"N/A\",Ref!$B$36,INDEX(Ranks!$1:$1048576,$A254,CI$1))","v":""},{"$f":"IF($A254=\"N/A\",Ref!$B$36,INDEX(Ranks!$1:$1048576,$A254,CJ$1))","v":""},{"$f":"IF($A254=\"N/A\",Ref!$B$36,INDEX(Ranks!$1:$1048576,$A254,CK$1))","v":""},{"$f":"IF($A254=\"N/A\",Ref!$B$36,INDEX(Ranks!$1:$1048576,$A254,CL$1))","v":""},{"$f":"IF($A254=\"N/A\",Ref!$B$36,INDEX(Ranks!$1:$1048576,$A254,CM$1))","v":""},{"$f":"IF($A254=\"N/A\",Ref!$B$36,INDEX(Ranks!$1:$1048576,$A254,CN$1))","v":""},{"$f":"IF($A254=\"N/A\",Ref!$B$36,INDEX(Ranks!$1:$1048576,$A254,CO$1))","v":""},{"$f":"IF($A254=\"N/A\",Ref!$B$36,INDEX(Ranks!$1:$1048576,$A254,CP$1))","v":""},{"$f":"IF($A254=\"N/A\",Ref!$B$36,INDEX(Ranks!$1:$1048576,$A254,CQ$1))","v":""},{"$f":"IF($A254=\"N/A\",Ref!$B$36,INDEX(Ranks!$1:$1048576,$A254,CR$1))","v":""},{"$f":"IF($A254=\"N/A\",Ref!$B$36,INDEX(Ranks!$1:$1048576,$A254,CS$1))","v":""},{"$f":"IF($A254=\"N/A\",Ref!$B$36,INDEX(Ranks!$1:$1048576,$A254,CT$1))","v":""},{"$f":"IF($A254=\"N/A\",Ref!$B$36,INDEX(Ranks!$1:$1048576,$A254,CU$1))","v":""},{"$f":"IF($A254=\"N/A\",Ref!$B$36,INDEX(Ranks!$1:$1048576,$A254,CV$1))","v":""},{"$f":"IF($A254=\"N/A\",Ref!$B$36,INDEX(Ranks!$1:$1048576,$A254,CW$1))","v":""},{"$f":"IF($A254=\"N/A\",Ref!$B$36,INDEX(Ranks!$1:$1048576,$A254,CX$1))","v":""},{"$f":"IF($A254=\"N/A\",Ref!$B$36,INDEX(Ranks!$1:$1048576,$A254,CY$1))","v":""},{"$f":"IF($A254=\"N/A\",Ref!$B$36,INDEX(Ranks!$1:$1048576,$A254,CZ$1))","v":""},{"$f":"IF($A254=\"N/A\",Ref!$B$36,INDEX(Ranks!$1:$1048576,$A254,DA$1))","v":""},{"$f":"IF($A254=\"N/A\",Ref!$B$36,INDEX(Ranks!$1:$1048576,$A254,DB$1))","v":""},{"$f":"IF($A254=\"N/A\",Ref!$B$36,INDEX(Ranks!$1:$1048576,$A254,DC$1))","v":""},{"$f":"IF($A254=\"N/A\",Ref!$B$36,INDEX(Ranks!$1:$1048576,$A254,DD$1))","v":""},{"$f":"IF($A254=\"N/A\",Ref!$B$36,INDEX(Ranks!$1:$1048576,$A254,DE$1))","v":""},{"$f":"IF($A254=\"N/A\",Ref!$B$36,INDEX(Ranks!$1:$1048576,$A254,DF$1))","v":""},{"$f":"IF($A254=\"N/A\",Ref!$B$36,INDEX(Ranks!$1:$1048576,$A254,DG$1))","v":""},{"$f":"IF($A254=\"N/A\",Ref!$B$36,INDEX(Ranks!$1:$1048576,$A254,DH$1))","v":""},{"$f":"IF($A254=\"N/A\",Ref!$B$36,INDEX(Ranks!$1:$1048576,$A254,DI$1))","v":""},{"$f":"IF($A254=\"N/A\",Ref!$B$36,INDEX(Ranks!$1:$1048576,$A254,DJ$1))","v":""},{"$f":"IF($A254=\"N/A\",Ref!$B$36,INDEX(Ranks!$1:$1048576,$A254,DK$1))","v":""},{"$f":"IF($A254=\"N/A\",Ref!$B$36,INDEX(Ranks!$1:$1048576,$A254,DL$1))","v":""},{"$f":"IF($A254=\"N/A\",Ref!$B$36,INDEX(Ranks!$1:$1048576,$A254,DM$1))","v":""},{"$f":"IF($A254=\"N/A\",Ref!$B$36,INDEX(Ranks!$1:$1048576,$A254,DN$1))","v":""},{"$f":"IF($A254=\"N/A\",Ref!$B$36,INDEX(Ranks!$1:$1048576,$A254,DO$1))","v":""},{"$f":"IF($A254=\"N/A\",Ref!$B$36,INDEX(Ranks!$1:$1048576,$A254,DP$1))","v":""},{"$f":"IF($A254=\"N/A\",Ref!$B$36,INDEX(Ranks!$1:$1048576,$A254,DQ$1))","v":""},{"$f":"IF($A254=\"N/A\",Ref!$B$36,INDEX(Ranks!$1:$1048576,$A254,DR$1))","v":""},{"$f":"IF($A254=\"N/A\",Ref!$B$36,INDEX(Ranks!$1:$1048576,$A254,DS$1))","v":""},{"$f":"IF($A254=\"N/A\",Ref!$B$36,INDEX(Ranks!$1:$1048576,$A254,DT$1))","v":""},{"$f":"IF($A254=\"N/A\",Ref!$B$36,INDEX(Ranks!$1:$1048576,$A254,DU$1))","v":""},{"$f":"IF($A254=\"N/A\",Ref!$B$36,INDEX(Ranks!$1:$1048576,$A254,DV$1))","v":""},{"$f":"IF($A254=\"N/A\",Ref!$B$36,INDEX(Ranks!$1:$1048576,$A254,DW$1))","v":""},{"$f":"IF($A254=\"N/A\",Ref!$B$36,INDEX(Ranks!$1:$1048576,$A254,DX$1))","v":""},{"$f":"IF($A254=\"N/A\",Ref!$B$36,INDEX(Ranks!$1:$1048576,$A254,DY$1))","v":""},{"$f":"IF($A254=\"N/A\",Ref!$B$36,INDEX(Ranks!$1:$1048576,$A254,DZ$1))","v":""},{"$f":"IF($A254=\"N/A\",Ref!$B$36,INDEX(Ranks!$1:$1048576,$A254,EA$1))","v":""},{"$f":"IF($A254=\"N/A\",Ref!$B$36,INDEX(Ranks!$1:$1048576,$A254,EB$1))","v":""}]
[{"$f":"IFERROR(MATCH('Portfolio Page'!L255,Ranks!L:L,0),\"N/A\")","v":"N/A"},null,{"$f":"IF($A255=\"N/A\",\"\",INDEX(Ranks!$1:$1048576,$A255,C$1))","v":""},{"$f":"IF($A255=\"N/A\",Ref!$B$36,INDEX(Ranks!$1:$1048576,$A255,D$1))","v":""},{"$f":"IF($A255=\"N/A\",Ref!$B$36,INDEX(Ranks!$1:$1048576,$A255,E$1))","v":""},{"$f":"IF($A255=\"N/A\",\"\",INDEX(Ranks!$1:$1048576,$A255,F$1))","v":""},{"$f":"IF($A255=\"N/A\",\"\",INDEX(Ranks!$1:$1048576,$A255,G$1))","v":""},{"$f":"IF($A255=\"N/A\",\"\",INDEX(Ranks!$1:$1048576,$A255,H$1))","v":""},{"$f":"IF($A255=\"N/A\",\"\",INDEX(Ranks!$1:$1048576,$A255,I$1))","v":""},{"$f":"IF($A255=\"N/A\",\"\",INDEX(Ranks!$1:$1048576,$A255,J$1))","v":""},{"$f":"IF($A255=\"N/A\",\"\",INDEX(Ranks!$1:$1048576,$A255,K$1))","v":""},null,{"$f":"IF($A255=\"N/A\",Ref!$B$36,INDEX(Ranks!$1:$1048576,$A255,M$1))","v":""},{"$f":"IF($A255=\"N/A\",Ref!$B$36,INDEX(Ranks!$1:$1048576,$A255,N$1))","v":""},{"$f":"IF($A255=\"N/A\",Ref!$B$36,INDEX(Ranks!$1:$1048576,$A255,O$1))","v":""},{"$f":"IF($A255=\"N/A\",Ref!$B$36,INDEX(Ranks!$1:$1048576,$A255,P$1))","v":""},{"$f":"IF($A255=\"N/A\",Ref!$B$36,INDEX(Ranks!$1:$1048576,$A255,Q$1))","v":""},{"$f":"IF($A255=\"N/A\",Ref!$B$36,INDEX(Ranks!$1:$1048576,$A255,R$1))","v":""},{"$f":"IF($A255=\"N/A\",Ref!$B$36,INDEX(Ranks!$1:$1048576,$A255,S$1))","v":""},{"$f":"IF($A255=\"N/A\",Ref!$B$36,INDEX(Ranks!$1:$1048576,$A255,T$1))","v":""},{"$f":"IF($A255=\"N/A\",Ref!$B$36,INDEX(Ranks!$1:$1048576,$A255,U$1))","v":""},{"$f":"IF($A255=\"N/A\",Ref!$B$36,INDEX(Ranks!$1:$1048576,$A255,V$1))","v":""},{"$f":"IF($A255=\"N/A\",Ref!$B$36,INDEX(Ranks!$1:$1048576,$A255,W$1))","v":""},{"$f":"IF($A255=\"N/A\",Ref!$B$36,INDEX(Ranks!$1:$1048576,$A255,X$1))","v":""},{"$f":"IF($A255=\"N/A\",Ref!$B$36,INDEX(Ranks!$1:$1048576,$A255,Y$1))","v":""},{"$f":"IF($A255=\"N/A\",Ref!$B$36,INDEX(Ranks!$1:$1048576,$A255,Z$1))","v":""},{"$f":"IF($A255=\"N/A\",Ref!$B$36,INDEX(Ranks!$1:$1048576,$A255,AA$1))","v":""},{"$f":"IF($A255=\"N/A\",Ref!$B$36,INDEX(Ranks!$1:$1048576,$A255,AB$1))","v":""},{"$f":"IF($A255=\"N/A\",Ref!$B$36,INDEX(Ranks!$1:$1048576,$A255,AC$1))","v":""},{"$f":"IF($A255=\"N/A\",Ref!$B$36,INDEX(Ranks!$1:$1048576,$A255,AD$1))","v":""},{"$f":"IF($A255=\"N/A\",Ref!$B$36,INDEX(Ranks!$1:$1048576,$A255,AE$1))","v":""},{"$f":"IF($A255=\"N/A\",Ref!$B$36,INDEX(Ranks!$1:$1048576,$A255,AF$1))","v":""},{"$f":"IF($A255=\"N/A\",Ref!$B$36,INDEX(Ranks!$1:$1048576,$A255,AG$1))","v":""},{"$f":"IF($A255=\"N/A\",Ref!$B$36,INDEX(Ranks!$1:$1048576,$A255,AH$1))","v":""},{"$f":"IF($A255=\"N/A\",Ref!$B$36,INDEX(Ranks!$1:$1048576,$A255,AI$1))","v":""},{"$f":"IF($A255=\"N/A\",Ref!$B$36,INDEX(Ranks!$1:$1048576,$A255,AJ$1))","v":""},{"$f":"IF($A255=\"N/A\",Ref!$B$36,INDEX(Ranks!$1:$1048576,$A255,AK$1))","v":""},{"$f":"IF($A255=\"N/A\",Ref!$B$36,INDEX(Ranks!$1:$1048576,$A255,AL$1))","v":""},{"$f":"IF($A255=\"N/A\",Ref!$B$36,INDEX(Ranks!$1:$1048576,$A255,AM$1))","v":""},{"$f":"IF($A255=\"N/A\",Ref!$B$36,INDEX(Ranks!$1:$1048576,$A255,AN$1))","v":""},{"$f":"IF($A255=\"N/A\",Ref!$B$36,INDEX(Ranks!$1:$1048576,$A255,AO$1))","v":""},{"$f":"IF($A255=\"N/A\",Ref!$B$36,INDEX(Ranks!$1:$1048576,$A255,AP$1))","v":""},{"$f":"IF($A255=\"N/A\",Ref!$B$36,INDEX(Ranks!$1:$1048576,$A255,AQ$1))","v":""},{"$f":"IF($A255=\"N/A\",Ref!$B$36,INDEX(Ranks!$1:$1048576,$A255,AR$1))","v":""},{"$f":"IF($A255=\"N/A\",Ref!$B$36,INDEX(Ranks!$1:$1048576,$A255,AS$1))","v":""},{"$f":"IF($A255=\"N/A\",Ref!$B$36,INDEX(Ranks!$1:$1048576,$A255,AT$1))","v":""},{"$f":"IF($A255=\"N/A\",Ref!$B$36,INDEX(Ranks!$1:$1048576,$A255,AU$1))","v":""},{"$f":"IF($A255=\"N/A\",Ref!$B$36,INDEX(Ranks!$1:$1048576,$A255,AV$1))","v":""},{"$f":"IF($A255=\"N/A\",Ref!$B$36,INDEX(Ranks!$1:$1048576,$A255,AW$1))","v":""},{"$f":"IF($A255=\"N/A\",Ref!$B$36,INDEX(Ranks!$1:$1048576,$A255,AX$1))","v":""},{"$f":"IF($A255=\"N/A\",Ref!$B$36,INDEX(Ranks!$1:$1048576,$A255,AY$1))","v":""},{"$f":"IF($A255=\"N/A\",Ref!$B$36,INDEX(Ranks!$1:$1048576,$A255,AZ$1))","v":""},{"$f":"IF($A255=\"N/A\",Ref!$B$36,INDEX(Ranks!$1:$1048576,$A255,BA$1))","v":""},{"$f":"IF($A255=\"N/A\",Ref!$B$36,INDEX(Ranks!$1:$1048576,$A255,BB$1))","v":""},{"$f":"IF($A255=\"N/A\",Ref!$B$36,INDEX(Ranks!$1:$1048576,$A255,BC$1))","v":""},{"$f":"IF($A255=\"N/A\",Ref!$B$36,INDEX(Ranks!$1:$1048576,$A255,BD$1))","v":""},{"$f":"IF($A255=\"N/A\",Ref!$B$36,INDEX(Ranks!$1:$1048576,$A255,BE$1))","v":""},{"$f":"IF($A255=\"N/A\",Ref!$B$36,INDEX(Ranks!$1:$1048576,$A255,BF$1))","v":""},{"$f":"IF($A255=\"N/A\",Ref!$B$36,INDEX(Ranks!$1:$1048576,$A255,BG$1))","v":""},{"$f":"IF($A255=\"N/A\",Ref!$B$36,INDEX(Ranks!$1:$1048576,$A255,BH$1))","v":""},{"$f":"IF($A255=\"N/A\",Ref!$B$36,INDEX(Ranks!$1:$1048576,$A255,BI$1))","v":""},{"$f":"IF($A255=\"N/A\",Ref!$B$36,INDEX(Ranks!$1:$1048576,$A255,BJ$1))","v":""},{"$f":"IF($A255=\"N/A\",Ref!$B$36,INDEX(Ranks!$1:$1048576,$A255,BK$1))","v":""},{"$f":"IF($A255=\"N/A\",Ref!$B$36,INDEX(Ranks!$1:$1048576,$A255,BL$1))","v":""},{"$f":"IF($A255=\"N/A\",Ref!$B$36,INDEX(Ranks!$1:$1048576,$A255,BM$1))","v":""},{"$f":"IF($A255=\"N/A\",Ref!$B$36,INDEX(Ranks!$1:$1048576,$A255,BN$1))","v":""},{"$f":"IF($A255=\"N/A\",Ref!$B$36,INDEX(Ranks!$1:$1048576,$A255,BO$1))","v":""},{"$f":"IF($A255=\"N/A\",Ref!$B$36,INDEX(Ranks!$1:$1048576,$A255,BP$1))","v":""},{"$f":"IF($A255=\"N/A\",Ref!$B$36,INDEX(Ranks!$1:$1048576,$A255,BQ$1))","v":""},{"$f":"IF($A255=\"N/A\",Ref!$B$36,INDEX(Ranks!$1:$1048576,$A255,BR$1))","v":""},{"$f":"IF($A255=\"N/A\",Ref!$B$36,INDEX(Ranks!$1:$1048576,$A255,BS$1))","v":""},{"$f":"IF($A255=\"N/A\",Ref!$B$36,INDEX(Ranks!$1:$1048576,$A255,BT$1))","v":""},{"$f":"IF($A255=\"N/A\",Ref!$B$36,INDEX(Ranks!$1:$1048576,$A255,BU$1))","v":""},{"$f":"IF($A255=\"N/A\",Ref!$B$36,INDEX(Ranks!$1:$1048576,$A255,BV$1))","v":""},{"$f":"IF($A255=\"N/A\",Ref!$B$36,INDEX(Ranks!$1:$1048576,$A255,BW$1))","v":""},{"$f":"IF($A255=\"N/A\",Ref!$B$36,INDEX(Ranks!$1:$1048576,$A255,BX$1))","v":""},{"$f":"IF($A255=\"N/A\",Ref!$B$36,INDEX(Ranks!$1:$1048576,$A255,BY$1))","v":""},{"$f":"IF($A255=\"N/A\",Ref!$B$36,INDEX(Ranks!$1:$1048576,$A255,BZ$1))","v":""},{"$f":"IF($A255=\"N/A\",Ref!$B$36,INDEX(Ranks!$1:$1048576,$A255,CA$1))","v":""},{"$f":"IF($A255=\"N/A\",Ref!$B$36,INDEX(Ranks!$1:$1048576,$A255,CB$1))","v":""},{"$f":"IF($A255=\"N/A\",Ref!$B$36,INDEX(Ranks!$1:$1048576,$A255,CC$1))","v":""},{"$f":"IF($A255=\"N/A\",Ref!$B$36,INDEX(Ranks!$1:$1048576,$A255,CD$1))","v":""},{"$f":"IF($A255=\"N/A\",Ref!$B$36,INDEX(Ranks!$1:$1048576,$A255,CE$1))","v":""},{"$f":"IF($A255=\"N/A\",Ref!$B$36,INDEX(Ranks!$1:$1048576,$A255,CF$1))","v":""},{"$f":"IF($A255=\"N/A\",Ref!$B$36,INDEX(Ranks!$1:$1048576,$A255,CG$1))","v":""},{"$f":"IF($A255=\"N/A\",Ref!$B$36,INDEX(Ranks!$1:$1048576,$A255,CH$1))","v":""},{"$f":"IF($A255=\"N/A\",Ref!$B$36,INDEX(Ranks!$1:$1048576,$A255,CI$1))","v":""},{"$f":"IF($A255=\"N/A\",Ref!$B$36,INDEX(Ranks!$1:$1048576,$A255,CJ$1))","v":""},{"$f":"IF($A255=\"N/A\",Ref!$B$36,INDEX(Ranks!$1:$1048576,$A255,CK$1))","v":""},{"$f":"IF($A255=\"N/A\",Ref!$B$36,INDEX(Ranks!$1:$1048576,$A255,CL$1))","v":""},{"$f":"IF($A255=\"N/A\",Ref!$B$36,INDEX(Ranks!$1:$1048576,$A255,CM$1))","v":""},{"$f":"IF($A255=\"N/A\",Ref!$B$36,INDEX(Ranks!$1:$1048576,$A255,CN$1))","v":""},{"$f":"IF($A255=\"N/A\",Ref!$B$36,INDEX(Ranks!$1:$1048576,$A255,CO$1))","v":""},{"$f":"IF($A255=\"N/A\",Ref!$B$36,INDEX(Ranks!$1:$1048576,$A255,CP$1))","v":""},{"$f":"IF($A255=\"N/A\",Ref!$B$36,INDEX(Ranks!$1:$1048576,$A255,CQ$1))","v":""},{"$f":"IF($A255=\"N/A\",Ref!$B$36,INDEX(Ranks!$1:$1048576,$A255,CR$1))","v":""},{"$f":"IF($A255=\"N/A\",Ref!$B$36,INDEX(Ranks!$1:$1048576,$A255,CS$1))","v":""},{"$f":"IF($A255=\"N/A\",Ref!$B$36,INDEX(Ranks!$1:$1048576,$A255,CT$1))","v":""},{"$f":"IF($A255=\"N/A\",Ref!$B$36,INDEX(Ranks!$1:$1048576,$A255,CU$1))","v":""},{"$f":"IF($A255=\"N/A\",Ref!$B$36,INDEX(Ranks!$1:$1048576,$A255,CV$1))","v":""},{"$f":"IF($A255=\"N/A\",Ref!$B$36,INDEX(Ranks!$1:$1048576,$A255,CW$1))","v":""},{"$f":"IF($A255=\"N/A\",Ref!$B$36,INDEX(Ranks!$1:$1048576,$A255,CX$1))","v":""},{"$f":"IF($A255=\"N/A\",Ref!$B$36,INDEX(Ranks!$1:$1048576,$A255,CY$1))","v":""},{"$f":"IF($A255=\"N/A\",Ref!$B$36,INDEX(Ranks!$1:$1048576,$A255,CZ$1))","v":""},{"$f":"IF($A255=\"N/A\",Ref!$B$36,INDEX(Ranks!$1:$1048576,$A255,DA$1))","v":""},{"$f":"IF($A255=\"N/A\",Ref!$B$36,INDEX(Ranks!$1:$1048576,$A255,DB$1))","v":""},{"$f":"IF($A255=\"N/A\",Ref!$B$36,INDEX(Ranks!$1:$1048576,$A255,DC$1))","v":""},{"$f":"IF($A255=\"N/A\",Ref!$B$36,INDEX(Ranks!$1:$1048576,$A255,DD$1))","v":""},{"$f":"IF($A255=\"N/A\",Ref!$B$36,INDEX(Ranks!$1:$1048576,$A255,DE$1))","v":""},{"$f":"IF($A255=\"N/A\",Ref!$B$36,INDEX(Ranks!$1:$1048576,$A255,DF$1))","v":""},{"$f":"IF($A255=\"N/A\",Ref!$B$36,INDEX(Ranks!$1:$1048576,$A255,DG$1))","v":""},{"$f":"IF($A255=\"N/A\",Ref!$B$36,INDEX(Ranks!$1:$1048576,$A255,DH$1))","v":""},{"$f":"IF($A255=\"N/A\",Ref!$B$36,INDEX(Ranks!$1:$1048576,$A255,DI$1))","v":""},{"$f":"IF($A255=\"N/A\",Ref!$B$36,INDEX(Ranks!$1:$1048576,$A255,DJ$1))","v":""},{"$f":"IF($A255=\"N/A\",Ref!$B$36,INDEX(Ranks!$1:$1048576,$A255,DK$1))","v":""},{"$f":"IF($A255=\"N/A\",Ref!$B$36,INDEX(Ranks!$1:$1048576,$A255,DL$1))","v":""},{"$f":"IF($A255=\"N/A\",Ref!$B$36,INDEX(Ranks!$1:$1048576,$A255,DM$1))","v":""},{"$f":"IF($A255=\"N/A\",Ref!$B$36,INDEX(Ranks!$1:$1048576,$A255,DN$1))","v":""},{"$f":"IF($A255=\"N/A\",Ref!$B$36,INDEX(Ranks!$1:$1048576,$A255,DO$1))","v":""},{"$f":"IF($A255=\"N/A\",Ref!$B$36,INDEX(Ranks!$1:$1048576,$A255,DP$1))","v":""},{"$f":"IF($A255=\"N/A\",Ref!$B$36,INDEX(Ranks!$1:$1048576,$A255,DQ$1))","v":""},{"$f":"IF($A255=\"N/A\",Ref!$B$36,INDEX(Ranks!$1:$1048576,$A255,DR$1))","v":""},{"$f":"IF($A255=\"N/A\",Ref!$B$36,INDEX(Ranks!$1:$1048576,$A255,DS$1))","v":""},{"$f":"IF($A255=\"N/A\",Ref!$B$36,INDEX(Ranks!$1:$1048576,$A255,DT$1))","v":""},{"$f":"IF($A255=\"N/A\",Ref!$B$36,INDEX(Ranks!$1:$1048576,$A255,DU$1))","v":""},{"$f":"IF($A255=\"N/A\",Ref!$B$36,INDEX(Ranks!$1:$1048576,$A255,DV$1))","v":""},{"$f":"IF($A255=\"N/A\",Ref!$B$36,INDEX(Ranks!$1:$1048576,$A255,DW$1))","v":""},{"$f":"IF($A255=\"N/A\",Ref!$B$36,INDEX(Ranks!$1:$1048576,$A255,DX$1))","v":""},{"$f":"IF($A255=\"N/A\",Ref!$B$36,INDEX(Ranks!$1:$1048576,$A255,DY$1))","v":""},{"$f":"IF($A255=\"N/A\",Ref!$B$36,INDEX(Ranks!$1:$1048576,$A255,DZ$1))","v":""},{"$f":"IF($A255=\"N/A\",Ref!$B$36,INDEX(Ranks!$1:$1048576,$A255,EA$1))","v":""},{"$f":"IF($A255=\"N/A\",Ref!$B$36,INDEX(Ranks!$1:$1048576,$A255,EB$1))","v":""}]
[{"$f":"IFERROR(MATCH('Portfolio Page'!L256,Ranks!L:L,0),\"N/A\")","v":"N/A"},null,{"$f":"IF($A256=\"N/A\",\"\",INDEX(Ranks!$1:$1048576,$A256,C$1))","v":""},{"$f":"IF($A256=\"N/A\",Ref!$B$36,INDEX(Ranks!$1:$1048576,$A256,D$1))","v":""},{"$f":"IF($A256=\"N/A\",Ref!$B$36,INDEX(Ranks!$1:$1048576,$A256,E$1))","v":""},{"$f":"IF($A256=\"N/A\",\"\",INDEX(Ranks!$1:$1048576,$A256,F$1))","v":""},{"$f":"IF($A256=\"N/A\",\"\",INDEX(Ranks!$1:$1048576,$A256,G$1))","v":""},{"$f":"IF($A256=\"N/A\",\"\",INDEX(Ranks!$1:$1048576,$A256,H$1))","v":""},{"$f":"IF($A256=\"N/A\",\"\",INDEX(Ranks!$1:$1048576,$A256,I$1))","v":""},{"$f":"IF($A256=\"N/A\",\"\",INDEX(Ranks!$1:$1048576,$A256,J$1))","v":""},{"$f":"IF($A256=\"N/A\",\"\",INDEX(Ranks!$1:$1048576,$A256,K$1))","v":""},null,{"$f":"IF($A256=\"N/A\",Ref!$B$36,INDEX(Ranks!$1:$1048576,$A256,M$1))","v":""},{"$f":"IF($A256=\"N/A\",Ref!$B$36,INDEX(Ranks!$1:$1048576,$A256,N$1))","v":""},{"$f":"IF($A256=\"N/A\",Ref!$B$36,INDEX(Ranks!$1:$1048576,$A256,O$1))","v":""},{"$f":"IF($A256=\"N/A\",Ref!$B$36,INDEX(Ranks!$1:$1048576,$A256,P$1))","v":""},{"$f":"IF($A256=\"N/A\",Ref!$B$36,INDEX(Ranks!$1:$1048576,$A256,Q$1))","v":""},{"$f":"IF($A256=\"N/A\",Ref!$B$36,INDEX(Ranks!$1:$1048576,$A256,R$1))","v":""},{"$f":"IF($A256=\"N/A\",Ref!$B$36,INDEX(Ranks!$1:$1048576,$A256,S$1))","v":""},{"$f":"IF($A256=\"N/A\",Ref!$B$36,INDEX(Ranks!$1:$1048576,$A256,T$1))","v":""},{"$f":"IF($A256=\"N/A\",Ref!$B$36,INDEX(Ranks!$1:$1048576,$A256,U$1))","v":""},{"$f":"IF($A256=\"N/A\",Ref!$B$36,INDEX(Ranks!$1:$1048576,$A256,V$1))","v":""},{"$f":"IF($A256=\"N/A\",Ref!$B$36,INDEX(Ranks!$1:$1048576,$A256,W$1))","v":""},{"$f":"IF($A256=\"N/A\",Ref!$B$36,INDEX(Ranks!$1:$1048576,$A256,X$1))","v":""},{"$f":"IF($A256=\"N/A\",Ref!$B$36,INDEX(Ranks!$1:$1048576,$A256,Y$1))","v":""},{"$f":"IF($A256=\"N/A\",Ref!$B$36,INDEX(Ranks!$1:$1048576,$A256,Z$1))","v":""},{"$f":"IF($A256=\"N/A\",Ref!$B$36,INDEX(Ranks!$1:$1048576,$A256,AA$1))","v":""},{"$f":"IF($A256=\"N/A\",Ref!$B$36,INDEX(Ranks!$1:$1048576,$A256,AB$1))","v":""},{"$f":"IF($A256=\"N/A\",Ref!$B$36,INDEX(Ranks!$1:$1048576,$A256,AC$1))","v":""},{"$f":"IF($A256=\"N/A\",Ref!$B$36,INDEX(Ranks!$1:$1048576,$A256,AD$1))","v":""},{"$f":"IF($A256=\"N/A\",Ref!$B$36,INDEX(Ranks!$1:$1048576,$A256,AE$1))","v":""},{"$f":"IF($A256=\"N/A\",Ref!$B$36,INDEX(Ranks!$1:$1048576,$A256,AF$1))","v":""},{"$f":"IF($A256=\"N/A\",Ref!$B$36,INDEX(Ranks!$1:$1048576,$A256,AG$1))","v":""},{"$f":"IF($A256=\"N/A\",Ref!$B$36,INDEX(Ranks!$1:$1048576,$A256,AH$1))","v":""},{"$f":"IF($A256=\"N/A\",Ref!$B$36,INDEX(Ranks!$1:$1048576,$A256,AI$1))","v":""},{"$f":"IF($A256=\"N/A\",Ref!$B$36,INDEX(Ranks!$1:$1048576,$A256,AJ$1))","v":""},{"$f":"IF($A256=\"N/A\",Ref!$B$36,INDEX(Ranks!$1:$1048576,$A256,AK$1))","v":""},{"$f":"IF($A256=\"N/A\",Ref!$B$36,INDEX(Ranks!$1:$1048576,$A256,AL$1))","v":""},{"$f":"IF($A256=\"N/A\",Ref!$B$36,INDEX(Ranks!$1:$1048576,$A256,AM$1))","v":""},{"$f":"IF($A256=\"N/A\",Ref!$B$36,INDEX(Ranks!$1:$1048576,$A256,AN$1))","v":""},{"$f":"IF($A256=\"N/A\",Ref!$B$36,INDEX(Ranks!$1:$1048576,$A256,AO$1))","v":""},{"$f":"IF($A256=\"N/A\",Ref!$B$36,INDEX(Ranks!$1:$1048576,$A256,AP$1))","v":""},{"$f":"IF($A256=\"N/A\",Ref!$B$36,INDEX(Ranks!$1:$1048576,$A256,AQ$1))","v":""},{"$f":"IF($A256=\"N/A\",Ref!$B$36,INDEX(Ranks!$1:$1048576,$A256,AR$1))","v":""},{"$f":"IF($A256=\"N/A\",Ref!$B$36,INDEX(Ranks!$1:$1048576,$A256,AS$1))","v":""},{"$f":"IF($A256=\"N/A\",Ref!$B$36,INDEX(Ranks!$1:$1048576,$A256,AT$1))","v":""},{"$f":"IF($A256=\"N/A\",Ref!$B$36,INDEX(Ranks!$1:$1048576,$A256,AU$1))","v":""},{"$f":"IF($A256=\"N/A\",Ref!$B$36,INDEX(Ranks!$1:$1048576,$A256,AV$1))","v":""},{"$f":"IF($A256=\"N/A\",Ref!$B$36,INDEX(Ranks!$1:$1048576,$A256,AW$1))","v":""},{"$f":"IF($A256=\"N/A\",Ref!$B$36,INDEX(Ranks!$1:$1048576,$A256,AX$1))","v":""},{"$f":"IF($A256=\"N/A\",Ref!$B$36,INDEX(Ranks!$1:$1048576,$A256,AY$1))","v":""},{"$f":"IF($A256=\"N/A\",Ref!$B$36,INDEX(Ranks!$1:$1048576,$A256,AZ$1))","v":""},{"$f":"IF($A256=\"N/A\",Ref!$B$36,INDEX(Ranks!$1:$1048576,$A256,BA$1))","v":""},{"$f":"IF($A256=\"N/A\",Ref!$B$36,INDEX(Ranks!$1:$1048576,$A256,BB$1))","v":""},{"$f":"IF($A256=\"N/A\",Ref!$B$36,INDEX(Ranks!$1:$1048576,$A256,BC$1))","v":""},{"$f":"IF($A256=\"N/A\",Ref!$B$36,INDEX(Ranks!$1:$1048576,$A256,BD$1))","v":""},{"$f":"IF($A256=\"N/A\",Ref!$B$36,INDEX(Ranks!$1:$1048576,$A256,BE$1))","v":""},{"$f":"IF($A256=\"N/A\",Ref!$B$36,INDEX(Ranks!$1:$1048576,$A256,BF$1))","v":""},{"$f":"IF($A256=\"N/A\",Ref!$B$36,INDEX(Ranks!$1:$1048576,$A256,BG$1))","v":""},{"$f":"IF($A256=\"N/A\",Ref!$B$36,INDEX(Ranks!$1:$1048576,$A256,BH$1))","v":""},{"$f":"IF($A256=\"N/A\",Ref!$B$36,INDEX(Ranks!$1:$1048576,$A256,BI$1))","v":""},{"$f":"IF($A256=\"N/A\",Ref!$B$36,INDEX(Ranks!$1:$1048576,$A256,BJ$1))","v":""},{"$f":"IF($A256=\"N/A\",Ref!$B$36,INDEX(Ranks!$1:$1048576,$A256,BK$1))","v":""},{"$f":"IF($A256=\"N/A\",Ref!$B$36,INDEX(Ranks!$1:$1048576,$A256,BL$1))","v":""},{"$f":"IF($A256=\"N/A\",Ref!$B$36,INDEX(Ranks!$1:$1048576,$A256,BM$1))","v":""},{"$f":"IF($A256=\"N/A\",Ref!$B$36,INDEX(Ranks!$1:$1048576,$A256,BN$1))","v":""},{"$f":"IF($A256=\"N/A\",Ref!$B$36,INDEX(Ranks!$1:$1048576,$A256,BO$1))","v":""},{"$f":"IF($A256=\"N/A\",Ref!$B$36,INDEX(Ranks!$1:$1048576,$A256,BP$1))","v":""},{"$f":"IF($A256=\"N/A\",Ref!$B$36,INDEX(Ranks!$1:$1048576,$A256,BQ$1))","v":""},{"$f":"IF($A256=\"N/A\",Ref!$B$36,INDEX(Ranks!$1:$1048576,$A256,BR$1))","v":""},{"$f":"IF($A256=\"N/A\",Ref!$B$36,INDEX(Ranks!$1:$1048576,$A256,BS$1))","v":""},{"$f":"IF($A256=\"N/A\",Ref!$B$36,INDEX(Ranks!$1:$1048576,$A256,BT$1))","v":""},{"$f":"IF($A256=\"N/A\",Ref!$B$36,INDEX(Ranks!$1:$1048576,$A256,BU$1))","v":""},{"$f":"IF($A256=\"N/A\",Ref!$B$36,INDEX(Ranks!$1:$1048576,$A256,BV$1))","v":""},{"$f":"IF($A256=\"N/A\",Ref!$B$36,INDEX(Ranks!$1:$1048576,$A256,BW$1))","v":""},{"$f":"IF($A256=\"N/A\",Ref!$B$36,INDEX(Ranks!$1:$1048576,$A256,BX$1))","v":""},{"$f":"IF($A256=\"N/A\",Ref!$B$36,INDEX(Ranks!$1:$1048576,$A256,BY$1))","v":""},{"$f":"IF($A256=\"N/A\",Ref!$B$36,INDEX(Ranks!$1:$1048576,$A256,BZ$1))","v":""},{"$f":"IF($A256=\"N/A\",Ref!$B$36,INDEX(Ranks!$1:$1048576,$A256,CA$1))","v":""},{"$f":"IF($A256=\"N/A\",Ref!$B$36,INDEX(Ranks!$1:$1048576,$A256,CB$1))","v":""},{"$f":"IF($A256=\"N/A\",Ref!$B$36,INDEX(Ranks!$1:$1048576,$A256,CC$1))","v":""},{"$f":"IF($A256=\"N/A\",Ref!$B$36,INDEX(Ranks!$1:$1048576,$A256,CD$1))","v":""},{"$f":"IF($A256=\"N/A\",Ref!$B$36,INDEX(Ranks!$1:$1048576,$A256,CE$1))","v":""},{"$f":"IF($A256=\"N/A\",Ref!$B$36,INDEX(Ranks!$1:$1048576,$A256,CF$1))","v":""},{"$f":"IF($A256=\"N/A\",Ref!$B$36,INDEX(Ranks!$1:$1048576,$A256,CG$1))","v":""},{"$f":"IF($A256=\"N/A\",Ref!$B$36,INDEX(Ranks!$1:$1048576,$A256,CH$1))","v":""},{"$f":"IF($A256=\"N/A\",Ref!$B$36,INDEX(Ranks!$1:$1048576,$A256,CI$1))","v":""},{"$f":"IF($A256=\"N/A\",Ref!$B$36,INDEX(Ranks!$1:$1048576,$A256,CJ$1))","v":""},{"$f":"IF($A256=\"N/A\",Ref!$B$36,INDEX(Ranks!$1:$1048576,$A256,CK$1))","v":""},{"$f":"IF($A256=\"N/A\",Ref!$B$36,INDEX(Ranks!$1:$1048576,$A256,CL$1))","v":""},{"$f":"IF($A256=\"N/A\",Ref!$B$36,INDEX(Ranks!$1:$1048576,$A256,CM$1))","v":""},{"$f":"IF($A256=\"N/A\",Ref!$B$36,INDEX(Ranks!$1:$1048576,$A256,CN$1))","v":""},{"$f":"IF($A256=\"N/A\",Ref!$B$36,INDEX(Ranks!$1:$1048576,$A256,CO$1))","v":""},{"$f":"IF($A256=\"N/A\",Ref!$B$36,INDEX(Ranks!$1:$1048576,$A256,CP$1))","v":""},{"$f":"IF($A256=\"N/A\",Ref!$B$36,INDEX(Ranks!$1:$1048576,$A256,CQ$1))","v":""},{"$f":"IF($A256=\"N/A\",Ref!$B$36,INDEX(Ranks!$1:$1048576,$A256,CR$1))","v":""},{"$f":"IF($A256=\"N/A\",Ref!$B$36,INDEX(Ranks!$1:$1048576,$A256,CS$1))","v":""},{"$f":"IF($A256=\"N/A\",Ref!$B$36,INDEX(Ranks!$1:$1048576,$A256,CT$1))","v":""},{"$f":"IF($A256=\"N/A\",Ref!$B$36,INDEX(Ranks!$1:$1048576,$A256,CU$1))","v":""},{"$f":"IF($A256=\"N/A\",Ref!$B$36,INDEX(Ranks!$1:$1048576,$A256,CV$1))","v":""},{"$f":"IF($A256=\"N/A\",Ref!$B$36,INDEX(Ranks!$1:$1048576,$A256,CW$1))","v":""},{"$f":"IF($A256=\"N/A\",Ref!$B$36,INDEX(Ranks!$1:$1048576,$A256,CX$1))","v":""},{"$f":"IF($A256=\"N/A\",Ref!$B$36,INDEX(Ranks!$1:$1048576,$A256,CY$1))","v":""},{"$f":"IF($A256=\"N/A\",Ref!$B$36,INDEX(Ranks!$1:$1048576,$A256,CZ$1))","v":""},{"$f":"IF($A256=\"N/A\",Ref!$B$36,INDEX(Ranks!$1:$1048576,$A256,DA$1))","v":""},{"$f":"IF($A256=\"N/A\",Ref!$B$36,INDEX(Ranks!$1:$1048576,$A256,DB$1))","v":""},{"$f":"IF($A256=\"N/A\",Ref!$B$36,INDEX(Ranks!$1:$1048576,$A256,DC$1))","v":""},{"$f":"IF($A256=\"N/A\",Ref!$B$36,INDEX(Ranks!$1:$1048576,$A256,DD$1))","v":""},{"$f":"IF($A256=\"N/A\",Ref!$B$36,INDEX(Ranks!$1:$1048576,$A256,DE$1))","v":""},{"$f":"IF($A256=\"N/A\",Ref!$B$36,INDEX(Ranks!$1:$1048576,$A256,DF$1))","v":""},{"$f":"IF($A256=\"N/A\",Ref!$B$36,INDEX(Ranks!$1:$1048576,$A256,DG$1))","v":""},{"$f":"IF($A256=\"N/A\",Ref!$B$36,INDEX(Ranks!$1:$1048576,$A256,DH$1))","v":""},{"$f":"IF($A256=\"N/A\",Ref!$B$36,INDEX(Ranks!$1:$1048576,$A256,DI$1))","v":""},{"$f":"IF($A256=\"N/A\",Ref!$B$36,INDEX(Ranks!$1:$1048576,$A256,DJ$1))","v":""},{"$f":"IF($A256=\"N/A\",Ref!$B$36,INDEX(Ranks!$1:$1048576,$A256,DK$1))","v":""},{"$f":"IF($A256=\"N/A\",Ref!$B$36,INDEX(Ranks!$1:$1048576,$A256,DL$1))","v":""},{"$f":"IF($A256=\"N/A\",Ref!$B$36,INDEX(Ranks!$1:$1048576,$A256,DM$1))","v":""},{"$f":"IF($A256=\"N/A\",Ref!$B$36,INDEX(Ranks!$1:$1048576,$A256,DN$1))","v":""},{"$f":"IF($A256=\"N/A\",Ref!$B$36,INDEX(Ranks!$1:$1048576,$A256,DO$1))","v":""},{"$f":"IF($A256=\"N/A\",Ref!$B$36,INDEX(Ranks!$1:$1048576,$A256,DP$1))","v":""},{"$f":"IF($A256=\"N/A\",Ref!$B$36,INDEX(Ranks!$1:$1048576,$A256,DQ$1))","v":""},{"$f":"IF($A256=\"N/A\",Ref!$B$36,INDEX(Ranks!$1:$1048576,$A256,DR$1))","v":""},{"$f":"IF($A256=\"N/A\",Ref!$B$36,INDEX(Ranks!$1:$1048576,$A256,DS$1))","v":""},{"$f":"IF($A256=\"N/A\",Ref!$B$36,INDEX(Ranks!$1:$1048576,$A256,DT$1))","v":""},{"$f":"IF($A256=\"N/A\",Ref!$B$36,INDEX(Ranks!$1:$1048576,$A256,DU$1))","v":""},{"$f":"IF($A256=\"N/A\",Ref!$B$36,INDEX(Ranks!$1:$1048576,$A256,DV$1))","v":""},{"$f":"IF($A256=\"N/A\",Ref!$B$36,INDEX(Ranks!$1:$1048576,$A256,DW$1))","v":""},{"$f":"IF($A256=\"N/A\",Ref!$B$36,INDEX(Ranks!$1:$1048576,$A256,DX$1))","v":""},{"$f":"IF($A256=\"N/A\",Ref!$B$36,INDEX(Ranks!$1:$1048576,$A256,DY$1))","v":""},{"$f":"IF($A256=\"N/A\",Ref!$B$36,INDEX(Ranks!$1:$1048576,$A256,DZ$1))","v":""},{"$f":"IF($A256=\"N/A\",Ref!$B$36,INDEX(Ranks!$1:$1048576,$A256,EA$1))","v":""},{"$f":"IF($A256=\"N/A\",Ref!$B$36,INDEX(Ranks!$1:$1048576,$A256,EB$1))","v":""}]
[{"$f":"IFERROR(MATCH('Portfolio Page'!L257,Ranks!L:L,0),\"N/A\")","v":"N/A"},null,{"$f":"IF($A257=\"N/A\",\"\",INDEX(Ranks!$1:$1048576,$A257,C$1))","v":""},{"$f":"IF($A257=\"N/A\",Ref!$B$36,INDEX(Ranks!$1:$1048576,$A257,D$1))","v":""},{"$f":"IF($A257=\"N/A\",Ref!$B$36,INDEX(Ranks!$1:$1048576,$A257,E$1))","v":""},{"$f":"IF($A257=\"N/A\",\"\",INDEX(Ranks!$1:$1048576,$A257,F$1))","v":""},{"$f":"IF($A257=\"N/A\",\"\",INDEX(Ranks!$1:$1048576,$A257,G$1))","v":""},{"$f":"IF($A257=\"N/A\",\"\",INDEX(Ranks!$1:$1048576,$A257,H$1))","v":""},{"$f":"IF($A257=\"N/A\",\"\",INDEX(Ranks!$1:$1048576,$A257,I$1))","v":""},{"$f":"IF($A257=\"N/A\",\"\",INDEX(Ranks!$1:$1048576,$A257,J$1))","v":""},{"$f":"IF($A257=\"N/A\",\"\",INDEX(Ranks!$1:$1048576,$A257,K$1))","v":""},null,{"$f":"IF($A257=\"N/A\",Ref!$B$36,INDEX(Ranks!$1:$1048576,$A257,M$1))","v":""},{"$f":"IF($A257=\"N/A\",Ref!$B$36,INDEX(Ranks!$1:$1048576,$A257,N$1))","v":""},{"$f":"IF($A257=\"N/A\",Ref!$B$36,INDEX(Ranks!$1:$1048576,$A257,O$1))","v":""},{"$f":"IF($A257=\"N/A\",Ref!$B$36,INDEX(Ranks!$1:$1048576,$A257,P$1))","v":""},{"$f":"IF($A257=\"N/A\",Ref!$B$36,INDEX(Ranks!$1:$1048576,$A257,Q$1))","v":""},{"$f":"IF($A257=\"N/A\",Ref!$B$36,INDEX(Ranks!$1:$1048576,$A257,R$1))","v":""},{"$f":"IF($A257=\"N/A\",Ref!$B$36,INDEX(Ranks!$1:$1048576,$A257,S$1))","v":""},{"$f":"IF($A257=\"N/A\",Ref!$B$36,INDEX(Ranks!$1:$1048576,$A257,T$1))","v":""},{"$f":"IF($A257=\"N/A\",Ref!$B$36,INDEX(Ranks!$1:$1048576,$A257,U$1))","v":""},{"$f":"IF($A257=\"N/A\",Ref!$B$36,INDEX(Ranks!$1:$1048576,$A257,V$1))","v":""},{"$f":"IF($A257=\"N/A\",Ref!$B$36,INDEX(Ranks!$1:$1048576,$A257,W$1))","v":""},{"$f":"IF($A257=\"N/A\",Ref!$B$36,INDEX(Ranks!$1:$1048576,$A257,X$1))","v":""},{"$f":"IF($A257=\"N/A\",Ref!$B$36,INDEX(Ranks!$1:$1048576,$A257,Y$1))","v":""},{"$f":"IF($A257=\"N/A\",Ref!$B$36,INDEX(Ranks!$1:$1048576,$A257,Z$1))","v":""},{"$f":"IF($A257=\"N/A\",Ref!$B$36,INDEX(Ranks!$1:$1048576,$A257,AA$1))","v":""},{"$f":"IF($A257=\"N/A\",Ref!$B$36,INDEX(Ranks!$1:$1048576,$A257,AB$1))","v":""},{"$f":"IF($A257=\"N/A\",Ref!$B$36,INDEX(Ranks!$1:$1048576,$A257,AC$1))","v":""},{"$f":"IF($A257=\"N/A\",Ref!$B$36,INDEX(Ranks!$1:$1048576,$A257,AD$1))","v":""},{"$f":"IF($A257=\"N/A\",Ref!$B$36,INDEX(Ranks!$1:$1048576,$A257,AE$1))","v":""},{"$f":"IF($A257=\"N/A\",Ref!$B$36,INDEX(Ranks!$1:$1048576,$A257,AF$1))","v":""},{"$f":"IF($A257=\"N/A\",Ref!$B$36,INDEX(Ranks!$1:$1048576,$A257,AG$1))","v":""},{"$f":"IF($A257=\"N/A\",Ref!$B$36,INDEX(Ranks!$1:$1048576,$A257,AH$1))","v":""},{"$f":"IF($A257=\"N/A\",Ref!$B$36,INDEX(Ranks!$1:$1048576,$A257,AI$1))","v":""},{"$f":"IF($A257=\"N/A\",Ref!$B$36,INDEX(Ranks!$1:$1048576,$A257,AJ$1))","v":""},{"$f":"IF($A257=\"N/A\",Ref!$B$36,INDEX(Ranks!$1:$1048576,$A257,AK$1))","v":""},{"$f":"IF($A257=\"N/A\",Ref!$B$36,INDEX(Ranks!$1:$1048576,$A257,AL$1))","v":""},{"$f":"IF($A257=\"N/A\",Ref!$B$36,INDEX(Ranks!$1:$1048576,$A257,AM$1))","v":""},{"$f":"IF($A257=\"N/A\",Ref!$B$36,INDEX(Ranks!$1:$1048576,$A257,AN$1))","v":""},{"$f":"IF($A257=\"N/A\",Ref!$B$36,INDEX(Ranks!$1:$1048576,$A257,AO$1))","v":""},{"$f":"IF($A257=\"N/A\",Ref!$B$36,INDEX(Ranks!$1:$1048576,$A257,AP$1))","v":""},{"$f":"IF($A257=\"N/A\",Ref!$B$36,INDEX(Ranks!$1:$1048576,$A257,AQ$1))","v":""},{"$f":"IF($A257=\"N/A\",Ref!$B$36,INDEX(Ranks!$1:$1048576,$A257,AR$1))","v":""},{"$f":"IF($A257=\"N/A\",Ref!$B$36,INDEX(Ranks!$1:$1048576,$A257,AS$1))","v":""},{"$f":"IF($A257=\"N/A\",Ref!$B$36,INDEX(Ranks!$1:$1048576,$A257,AT$1))","v":""},{"$f":"IF($A257=\"N/A\",Ref!$B$36,INDEX(Ranks!$1:$1048576,$A257,AU$1))","v":""},{"$f":"IF($A257=\"N/A\",Ref!$B$36,INDEX(Ranks!$1:$1048576,$A257,AV$1))","v":""},{"$f":"IF($A257=\"N/A\",Ref!$B$36,INDEX(Ranks!$1:$1048576,$A257,AW$1))","v":""},{"$f":"IF($A257=\"N/A\",Ref!$B$36,INDEX(Ranks!$1:$1048576,$A257,AX$1))","v":""},{"$f":"IF($A257=\"N/A\",Ref!$B$36,INDEX(Ranks!$1:$1048576,$A257,AY$1))","v":""},{"$f":"IF($A257=\"N/A\",Ref!$B$36,INDEX(Ranks!$1:$1048576,$A257,AZ$1))","v":""},{"$f":"IF($A257=\"N/A\",Ref!$B$36,INDEX(Ranks!$1:$1048576,$A257,BA$1))","v":""},{"$f":"IF($A257=\"N/A\",Ref!$B$36,INDEX(Ranks!$1:$1048576,$A257,BB$1))","v":""},{"$f":"IF($A257=\"N/A\",Ref!$B$36,INDEX(Ranks!$1:$1048576,$A257,BC$1))","v":""},{"$f":"IF($A257=\"N/A\",Ref!$B$36,INDEX(Ranks!$1:$1048576,$A257,BD$1))","v":""},{"$f":"IF($A257=\"N/A\",Ref!$B$36,INDEX(Ranks!$1:$1048576,$A257,BE$1))","v":""},{"$f":"IF($A257=\"N/A\",Ref!$B$36,INDEX(Ranks!$1:$1048576,$A257,BF$1))","v":""},{"$f":"IF($A257=\"N/A\",Ref!$B$36,INDEX(Ranks!$1:$1048576,$A257,BG$1))","v":""},{"$f":"IF($A257=\"N/A\",Ref!$B$36,INDEX(Ranks!$1:$1048576,$A257,BH$1))","v":""},{"$f":"IF($A257=\"N/A\",Ref!$B$36,INDEX(Ranks!$1:$1048576,$A257,BI$1))","v":""},{"$f":"IF($A257=\"N/A\",Ref!$B$36,INDEX(Ranks!$1:$1048576,$A257,BJ$1))","v":""},{"$f":"IF($A257=\"N/A\",Ref!$B$36,INDEX(Ranks!$1:$1048576,$A257,BK$1))","v":""},{"$f":"IF($A257=\"N/A\",Ref!$B$36,INDEX(Ranks!$1:$1048576,$A257,BL$1))","v":""},{"$f":"IF($A257=\"N/A\",Ref!$B$36,INDEX(Ranks!$1:$1048576,$A257,BM$1))","v":""},{"$f":"IF($A257=\"N/A\",Ref!$B$36,INDEX(Ranks!$1:$1048576,$A257,BN$1))","v":""},{"$f":"IF($A257=\"N/A\",Ref!$B$36,INDEX(Ranks!$1:$1048576,$A257,BO$1))","v":""},{"$f":"IF($A257=\"N/A\",Ref!$B$36,INDEX(Ranks!$1:$1048576,$A257,BP$1))","v":""},{"$f":"IF($A257=\"N/A\",Ref!$B$36,INDEX(Ranks!$1:$1048576,$A257,BQ$1))","v":""},{"$f":"IF($A257=\"N/A\",Ref!$B$36,INDEX(Ranks!$1:$1048576,$A257,BR$1))","v":""},{"$f":"IF($A257=\"N/A\",Ref!$B$36,INDEX(Ranks!$1:$1048576,$A257,BS$1))","v":""},{"$f":"IF($A257=\"N/A\",Ref!$B$36,INDEX(Ranks!$1:$1048576,$A257,BT$1))","v":""},{"$f":"IF($A257=\"N/A\",Ref!$B$36,INDEX(Ranks!$1:$1048576,$A257,BU$1))","v":""},{"$f":"IF($A257=\"N/A\",Ref!$B$36,INDEX(Ranks!$1:$1048576,$A257,BV$1))","v":""},{"$f":"IF($A257=\"N/A\",Ref!$B$36,INDEX(Ranks!$1:$1048576,$A257,BW$1))","v":""},{"$f":"IF($A257=\"N/A\",Ref!$B$36,INDEX(Ranks!$1:$1048576,$A257,BX$1))","v":""},{"$f":"IF($A257=\"N/A\",Ref!$B$36,INDEX(Ranks!$1:$1048576,$A257,BY$1))","v":""},{"$f":"IF($A257=\"N/A\",Ref!$B$36,INDEX(Ranks!$1:$1048576,$A257,BZ$1))","v":""},{"$f":"IF($A257=\"N/A\",Ref!$B$36,INDEX(Ranks!$1:$1048576,$A257,CA$1))","v":""},{"$f":"IF($A257=\"N/A\",Ref!$B$36,INDEX(Ranks!$1:$1048576,$A257,CB$1))","v":""},{"$f":"IF($A257=\"N/A\",Ref!$B$36,INDEX(Ranks!$1:$1048576,$A257,CC$1))","v":""},{"$f":"IF($A257=\"N/A\",Ref!$B$36,INDEX(Ranks!$1:$1048576,$A257,CD$1))","v":""},{"$f":"IF($A257=\"N/A\",Ref!$B$36,INDEX(Ranks!$1:$1048576,$A257,CE$1))","v":""},{"$f":"IF($A257=\"N/A\",Ref!$B$36,INDEX(Ranks!$1:$1048576,$A257,CF$1))","v":""},{"$f":"IF($A257=\"N/A\",Ref!$B$36,INDEX(Ranks!$1:$1048576,$A257,CG$1))","v":""},{"$f":"IF($A257=\"N/A\",Ref!$B$36,INDEX(Ranks!$1:$1048576,$A257,CH$1))","v":""},{"$f":"IF($A257=\"N/A\",Ref!$B$36,INDEX(Ranks!$1:$1048576,$A257,CI$1))","v":""},{"$f":"IF($A257=\"N/A\",Ref!$B$36,INDEX(Ranks!$1:$1048576,$A257,CJ$1))","v":""},{"$f":"IF($A257=\"N/A\",Ref!$B$36,INDEX(Ranks!$1:$1048576,$A257,CK$1))","v":""},{"$f":"IF($A257=\"N/A\",Ref!$B$36,INDEX(Ranks!$1:$1048576,$A257,CL$1))","v":""},{"$f":"IF($A257=\"N/A\",Ref!$B$36,INDEX(Ranks!$1:$1048576,$A257,CM$1))","v":""},{"$f":"IF($A257=\"N/A\",Ref!$B$36,INDEX(Ranks!$1:$1048576,$A257,CN$1))","v":""},{"$f":"IF($A257=\"N/A\",Ref!$B$36,INDEX(Ranks!$1:$1048576,$A257,CO$1))","v":""},{"$f":"IF($A257=\"N/A\",Ref!$B$36,INDEX(Ranks!$1:$1048576,$A257,CP$1))","v":""},{"$f":"IF($A257=\"N/A\",Ref!$B$36,INDEX(Ranks!$1:$1048576,$A257,CQ$1))","v":""},{"$f":"IF($A257=\"N/A\",Ref!$B$36,INDEX(Ranks!$1:$1048576,$A257,CR$1))","v":""},{"$f":"IF($A257=\"N/A\",Ref!$B$36,INDEX(Ranks!$1:$1048576,$A257,CS$1))","v":""},{"$f":"IF($A257=\"N/A\",Ref!$B$36,INDEX(Ranks!$1:$1048576,$A257,CT$1))","v":""},{"$f":"IF($A257=\"N/A\",Ref!$B$36,INDEX(Ranks!$1:$1048576,$A257,CU$1))","v":""},{"$f":"IF($A257=\"N/A\",Ref!$B$36,INDEX(Ranks!$1:$1048576,$A257,CV$1))","v":""},{"$f":"IF($A257=\"N/A\",Ref!$B$36,INDEX(Ranks!$1:$1048576,$A257,CW$1))","v":""},{"$f":"IF($A257=\"N/A\",Ref!$B$36,INDEX(Ranks!$1:$1048576,$A257,CX$1))","v":""},{"$f":"IF($A257=\"N/A\",Ref!$B$36,INDEX(Ranks!$1:$1048576,$A257,CY$1))","v":""},{"$f":"IF($A257=\"N/A\",Ref!$B$36,INDEX(Ranks!$1:$1048576,$A257,CZ$1))","v":""},{"$f":"IF($A257=\"N/A\",Ref!$B$36,INDEX(Ranks!$1:$1048576,$A257,DA$1))","v":""},{"$f":"IF($A257=\"N/A\",Ref!$B$36,INDEX(Ranks!$1:$1048576,$A257,DB$1))","v":""},{"$f":"IF($A257=\"N/A\",Ref!$B$36,INDEX(Ranks!$1:$1048576,$A257,DC$1))","v":""},{"$f":"IF($A257=\"N/A\",Ref!$B$36,INDEX(Ranks!$1:$1048576,$A257,DD$1))","v":""},{"$f":"IF($A257=\"N/A\",Ref!$B$36,INDEX(Ranks!$1:$1048576,$A257,DE$1))","v":""},{"$f":"IF($A257=\"N/A\",Ref!$B$36,INDEX(Ranks!$1:$1048576,$A257,DF$1))","v":""},{"$f":"IF($A257=\"N/A\",Ref!$B$36,INDEX(Ranks!$1:$1048576,$A257,DG$1))","v":""},{"$f":"IF($A257=\"N/A\",Ref!$B$36,INDEX(Ranks!$1:$1048576,$A257,DH$1))","v":""},{"$f":"IF($A257=\"N/A\",Ref!$B$36,INDEX(Ranks!$1:$1048576,$A257,DI$1))","v":""},{"$f":"IF($A257=\"N/A\",Ref!$B$36,INDEX(Ranks!$1:$1048576,$A257,DJ$1))","v":""},{"$f":"IF($A257=\"N/A\",Ref!$B$36,INDEX(Ranks!$1:$1048576,$A257,DK$1))","v":""},{"$f":"IF($A257=\"N/A\",Ref!$B$36,INDEX(Ranks!$1:$1048576,$A257,DL$1))","v":""},{"$f":"IF($A257=\"N/A\",Ref!$B$36,INDEX(Ranks!$1:$1048576,$A257,DM$1))","v":""},{"$f":"IF($A257=\"N/A\",Ref!$B$36,INDEX(Ranks!$1:$1048576,$A257,DN$1))","v":""},{"$f":"IF($A257=\"N/A\",Ref!$B$36,INDEX(Ranks!$1:$1048576,$A257,DO$1))","v":""},{"$f":"IF($A257=\"N/A\",Ref!$B$36,INDEX(Ranks!$1:$1048576,$A257,DP$1))","v":""},{"$f":"IF($A257=\"N/A\",Ref!$B$36,INDEX(Ranks!$1:$1048576,$A257,DQ$1))","v":""},{"$f":"IF($A257=\"N/A\",Ref!$B$36,INDEX(Ranks!$1:$1048576,$A257,DR$1))","v":""},{"$f":"IF($A257=\"N/A\",Ref!$B$36,INDEX(Ranks!$1:$1048576,$A257,DS$1))","v":""},{"$f":"IF($A257=\"N/A\",Ref!$B$36,INDEX(Ranks!$1:$1048576,$A257,DT$1))","v":""},{"$f":"IF($A257=\"N/A\",Ref!$B$36,INDEX(Ranks!$1:$1048576,$A257,DU$1))","v":""},{"$f":"IF($A257=\"N/A\",Ref!$B$36,INDEX(Ranks!$1:$1048576,$A257,DV$1))","v":""},{"$f":"IF($A257=\"N/A\",Ref!$B$36,INDEX(Ranks!$1:$1048576,$A257,DW$1))","v":""},{"$f":"IF($A257=\"N/A\",Ref!$B$36,INDEX(Ranks!$1:$1048576,$A257,DX$1))","v":""},{"$f":"IF($A257=\"N/A\",Ref!$B$36,INDEX(Ranks!$1:$1048576,$A257,DY$1))","v":""},{"$f":"IF($A257=\"N/A\",Ref!$B$36,INDEX(Ranks!$1:$1048576,$A257,DZ$1))","v":""},{"$f":"IF($A257=\"N/A\",Ref!$B$36,INDEX(Ranks!$1:$1048576,$A257,EA$1))","v":""},{"$f":"IF($A257=\"N/A\",Ref!$B$36,INDEX(Ranks!$1:$1048576,$A257,EB$1))","v":""}]
[{"$f":"IFERROR(MATCH('Portfolio Page'!L258,Ranks!L:L,0),\"N/A\")","v":"N/A"},null,{"$f":"IF($A258=\"N/A\",\"\",INDEX(Ranks!$1:$1048576,$A258,C$1))","v":""},{"$f":"IF($A258=\"N/A\",Ref!$B$36,INDEX(Ranks!$1:$1048576,$A258,D$1))","v":""},{"$f":"IF($A258=\"N/A\",Ref!$B$36,INDEX(Ranks!$1:$1048576,$A258,E$1))","v":""},{"$f":"IF($A258=\"N/A\",\"\",INDEX(Ranks!$1:$1048576,$A258,F$1))","v":""},{"$f":"IF($A258=\"N/A\",\"\",INDEX(Ranks!$1:$1048576,$A258,G$1))","v":""},{"$f":"IF($A258=\"N/A\",\"\",INDEX(Ranks!$1:$1048576,$A258,H$1))","v":""},{"$f":"IF($A258=\"N/A\",\"\",INDEX(Ranks!$1:$1048576,$A258,I$1))","v":""},{"$f":"IF($A258=\"N/A\",\"\",INDEX(Ranks!$1:$1048576,$A258,J$1))","v":""},{"$f":"IF($A258=\"N/A\",\"\",INDEX(Ranks!$1:$1048576,$A258,K$1))","v":""},null,{"$f":"IF($A258=\"N/A\",Ref!$B$36,INDEX(Ranks!$1:$1048576,$A258,M$1))","v":""},{"$f":"IF($A258=\"N/A\",Ref!$B$36,INDEX(Ranks!$1:$1048576,$A258,N$1))","v":""},{"$f":"IF($A258=\"N/A\",Ref!$B$36,INDEX(Ranks!$1:$1048576,$A258,O$1))","v":""},{"$f":"IF($A258=\"N/A\",Ref!$B$36,INDEX(Ranks!$1:$1048576,$A258,P$1))","v":""},{"$f":"IF($A258=\"N/A\",Ref!$B$36,INDEX(Ranks!$1:$1048576,$A258,Q$1))","v":""},{"$f":"IF($A258=\"N/A\",Ref!$B$36,INDEX(Ranks!$1:$1048576,$A258,R$1))","v":""},{"$f":"IF($A258=\"N/A\",Ref!$B$36,INDEX(Ranks!$1:$1048576,$A258,S$1))","v":""},{"$f":"IF($A258=\"N/A\",Ref!$B$36,INDEX(Ranks!$1:$1048576,$A258,T$1))","v":""},{"$f":"IF($A258=\"N/A\",Ref!$B$36,INDEX(Ranks!$1:$1048576,$A258,U$1))","v":""},{"$f":"IF($A258=\"N/A\",Ref!$B$36,INDEX(Ranks!$1:$1048576,$A258,V$1))","v":""},{"$f":"IF($A258=\"N/A\",Ref!$B$36,INDEX(Ranks!$1:$1048576,$A258,W$1))","v":""},{"$f":"IF($A258=\"N/A\",Ref!$B$36,INDEX(Ranks!$1:$1048576,$A258,X$1))","v":""},{"$f":"IF($A258=\"N/A\",Ref!$B$36,INDEX(Ranks!$1:$1048576,$A258,Y$1))","v":""},{"$f":"IF($A258=\"N/A\",Ref!$B$36,INDEX(Ranks!$1:$1048576,$A258,Z$1))","v":""},{"$f":"IF($A258=\"N/A\",Ref!$B$36,INDEX(Ranks!$1:$1048576,$A258,AA$1))","v":""},{"$f":"IF($A258=\"N/A\",Ref!$B$36,INDEX(Ranks!$1:$1048576,$A258,AB$1))","v":""},{"$f":"IF($A258=\"N/A\",Ref!$B$36,INDEX(Ranks!$1:$1048576,$A258,AC$1))","v":""},{"$f":"IF($A258=\"N/A\",Ref!$B$36,INDEX(Ranks!$1:$1048576,$A258,AD$1))","v":""},{"$f":"IF($A258=\"N/A\",Ref!$B$36,INDEX(Ranks!$1:$1048576,$A258,AE$1))","v":""},{"$f":"IF($A258=\"N/A\",Ref!$B$36,INDEX(Ranks!$1:$1048576,$A258,AF$1))","v":""},{"$f":"IF($A258=\"N/A\",Ref!$B$36,INDEX(Ranks!$1:$1048576,$A258,AG$1))","v":""},{"$f":"IF($A258=\"N/A\",Ref!$B$36,INDEX(Ranks!$1:$1048576,$A258,AH$1))","v":""},{"$f":"IF($A258=\"N/A\",Ref!$B$36,INDEX(Ranks!$1:$1048576,$A258,AI$1))","v":""},{"$f":"IF($A258=\"N/A\",Ref!$B$36,INDEX(Ranks!$1:$1048576,$A258,AJ$1))","v":""},{"$f":"IF($A258=\"N/A\",Ref!$B$36,INDEX(Ranks!$1:$1048576,$A258,AK$1))","v":""},{"$f":"IF($A258=\"N/A\",Ref!$B$36,INDEX(Ranks!$1:$1048576,$A258,AL$1))","v":""},{"$f":"IF($A258=\"N/A\",Ref!$B$36,INDEX(Ranks!$1:$1048576,$A258,AM$1))","v":""},{"$f":"IF($A258=\"N/A\",Ref!$B$36,INDEX(Ranks!$1:$1048576,$A258,AN$1))","v":""},{"$f":"IF($A258=\"N/A\",Ref!$B$36,INDEX(Ranks!$1:$1048576,$A258,AO$1))","v":""},{"$f":"IF($A258=\"N/A\",Ref!$B$36,INDEX(Ranks!$1:$1048576,$A258,AP$1))","v":""},{"$f":"IF($A258=\"N/A\",Ref!$B$36,INDEX(Ranks!$1:$1048576,$A258,AQ$1))","v":""},{"$f":"IF($A258=\"N/A\",Ref!$B$36,INDEX(Ranks!$1:$1048576,$A258,AR$1))","v":""},{"$f":"IF($A258=\"N/A\",Ref!$B$36,INDEX(Ranks!$1:$1048576,$A258,AS$1))","v":""},{"$f":"IF($A258=\"N/A\",Ref!$B$36,INDEX(Ranks!$1:$1048576,$A258,AT$1))","v":""},{"$f":"IF($A258=\"N/A\",Ref!$B$36,INDEX(Ranks!$1:$1048576,$A258,AU$1))","v":""},{"$f":"IF($A258=\"N/A\",Ref!$B$36,INDEX(Ranks!$1:$1048576,$A258,AV$1))","v":""},{"$f":"IF($A258=\"N/A\",Ref!$B$36,INDEX(Ranks!$1:$1048576,$A258,AW$1))","v":""},{"$f":"IF($A258=\"N/A\",Ref!$B$36,INDEX(Ranks!$1:$1048576,$A258,AX$1))","v":""},{"$f":"IF($A258=\"N/A\",Ref!$B$36,INDEX(Ranks!$1:$1048576,$A258,AY$1))","v":""},{"$f":"IF($A258=\"N/A\",Ref!$B$36,INDEX(Ranks!$1:$1048576,$A258,AZ$1))","v":""},{"$f":"IF($A258=\"N/A\",Ref!$B$36,INDEX(Ranks!$1:$1048576,$A258,BA$1))","v":""},{"$f":"IF($A258=\"N/A\",Ref!$B$36,INDEX(Ranks!$1:$1048576,$A258,BB$1))","v":""},{"$f":"IF($A258=\"N/A\",Ref!$B$36,INDEX(Ranks!$1:$1048576,$A258,BC$1))","v":""},{"$f":"IF($A258=\"N/A\",Ref!$B$36,INDEX(Ranks!$1:$1048576,$A258,BD$1))","v":""},{"$f":"IF($A258=\"N/A\",Ref!$B$36,INDEX(Ranks!$1:$1048576,$A258,BE$1))","v":""},{"$f":"IF($A258=\"N/A\",Ref!$B$36,INDEX(Ranks!$1:$1048576,$A258,BF$1))","v":""},{"$f":"IF($A258=\"N/A\",Ref!$B$36,INDEX(Ranks!$1:$1048576,$A258,BG$1))","v":""},{"$f":"IF($A258=\"N/A\",Ref!$B$36,INDEX(Ranks!$1:$1048576,$A258,BH$1))","v":""},{"$f":"IF($A258=\"N/A\",Ref!$B$36,INDEX(Ranks!$1:$1048576,$A258,BI$1))","v":""},{"$f":"IF($A258=\"N/A\",Ref!$B$36,INDEX(Ranks!$1:$1048576,$A258,BJ$1))","v":""},{"$f":"IF($A258=\"N/A\",Ref!$B$36,INDEX(Ranks!$1:$1048576,$A258,BK$1))","v":""},{"$f":"IF($A258=\"N/A\",Ref!$B$36,INDEX(Ranks!$1:$1048576,$A258,BL$1))","v":""},{"$f":"IF($A258=\"N/A\",Ref!$B$36,INDEX(Ranks!$1:$1048576,$A258,BM$1))","v":""},{"$f":"IF($A258=\"N/A\",Ref!$B$36,INDEX(Ranks!$1:$1048576,$A258,BN$1))","v":""},{"$f":"IF($A258=\"N/A\",Ref!$B$36,INDEX(Ranks!$1:$1048576,$A258,BO$1))","v":""},{"$f":"IF($A258=\"N/A\",Ref!$B$36,INDEX(Ranks!$1:$1048576,$A258,BP$1))","v":""},{"$f":"IF($A258=\"N/A\",Ref!$B$36,INDEX(Ranks!$1:$1048576,$A258,BQ$1))","v":""},{"$f":"IF($A258=\"N/A\",Ref!$B$36,INDEX(Ranks!$1:$1048576,$A258,BR$1))","v":""},{"$f":"IF($A258=\"N/A\",Ref!$B$36,INDEX(Ranks!$1:$1048576,$A258,BS$1))","v":""},{"$f":"IF($A258=\"N/A\",Ref!$B$36,INDEX(Ranks!$1:$1048576,$A258,BT$1))","v":""},{"$f":"IF($A258=\"N/A\",Ref!$B$36,INDEX(Ranks!$1:$1048576,$A258,BU$1))","v":""},{"$f":"IF($A258=\"N/A\",Ref!$B$36,INDEX(Ranks!$1:$1048576,$A258,BV$1))","v":""},{"$f":"IF($A258=\"N/A\",Ref!$B$36,INDEX(Ranks!$1:$1048576,$A258,BW$1))","v":""},{"$f":"IF($A258=\"N/A\",Ref!$B$36,INDEX(Ranks!$1:$1048576,$A258,BX$1))","v":""},{"$f":"IF($A258=\"N/A\",Ref!$B$36,INDEX(Ranks!$1:$1048576,$A258,BY$1))","v":""},{"$f":"IF($A258=\"N/A\",Ref!$B$36,INDEX(Ranks!$1:$1048576,$A258,BZ$1))","v":""},{"$f":"IF($A258=\"N/A\",Ref!$B$36,INDEX(Ranks!$1:$1048576,$A258,CA$1))","v":""},{"$f":"IF($A258=\"N/A\",Ref!$B$36,INDEX(Ranks!$1:$1048576,$A258,CB$1))","v":""},{"$f":"IF($A258=\"N/A\",Ref!$B$36,INDEX(Ranks!$1:$1048576,$A258,CC$1))","v":""},{"$f":"IF($A258=\"N/A\",Ref!$B$36,INDEX(Ranks!$1:$1048576,$A258,CD$1))","v":""},{"$f":"IF($A258=\"N/A\",Ref!$B$36,INDEX(Ranks!$1:$1048576,$A258,CE$1))","v":""},{"$f":"IF($A258=\"N/A\",Ref!$B$36,INDEX(Ranks!$1:$1048576,$A258,CF$1))","v":""},{"$f":"IF($A258=\"N/A\",Ref!$B$36,INDEX(Ranks!$1:$1048576,$A258,CG$1))","v":""},{"$f":"IF($A258=\"N/A\",Ref!$B$36,INDEX(Ranks!$1:$1048576,$A258,CH$1))","v":""},{"$f":"IF($A258=\"N/A\",Ref!$B$36,INDEX(Ranks!$1:$1048576,$A258,CI$1))","v":""},{"$f":"IF($A258=\"N/A\",Ref!$B$36,INDEX(Ranks!$1:$1048576,$A258,CJ$1))","v":""},{"$f":"IF($A258=\"N/A\",Ref!$B$36,INDEX(Ranks!$1:$1048576,$A258,CK$1))","v":""},{"$f":"IF($A258=\"N/A\",Ref!$B$36,INDEX(Ranks!$1:$1048576,$A258,CL$1))","v":""},{"$f":"IF($A258=\"N/A\",Ref!$B$36,INDEX(Ranks!$1:$1048576,$A258,CM$1))","v":""},{"$f":"IF($A258=\"N/A\",Ref!$B$36,INDEX(Ranks!$1:$1048576,$A258,CN$1))","v":""},{"$f":"IF($A258=\"N/A\",Ref!$B$36,INDEX(Ranks!$1:$1048576,$A258,CO$1))","v":""},{"$f":"IF($A258=\"N/A\",Ref!$B$36,INDEX(Ranks!$1:$1048576,$A258,CP$1))","v":""},{"$f":"IF($A258=\"N/A\",Ref!$B$36,INDEX(Ranks!$1:$1048576,$A258,CQ$1))","v":""},{"$f":"IF($A258=\"N/A\",Ref!$B$36,INDEX(Ranks!$1:$1048576,$A258,CR$1))","v":""},{"$f":"IF($A258=\"N/A\",Ref!$B$36,INDEX(Ranks!$1:$1048576,$A258,CS$1))","v":""},{"$f":"IF($A258=\"N/A\",Ref!$B$36,INDEX(Ranks!$1:$1048576,$A258,CT$1))","v":""},{"$f":"IF($A258=\"N/A\",Ref!$B$36,INDEX(Ranks!$1:$1048576,$A258,CU$1))","v":""},{"$f":"IF($A258=\"N/A\",Ref!$B$36,INDEX(Ranks!$1:$1048576,$A258,CV$1))","v":""},{"$f":"IF($A258=\"N/A\",Ref!$B$36,INDEX(Ranks!$1:$1048576,$A258,CW$1))","v":""},{"$f":"IF($A258=\"N/A\",Ref!$B$36,INDEX(Ranks!$1:$1048576,$A258,CX$1))","v":""},{"$f":"IF($A258=\"N/A\",Ref!$B$36,INDEX(Ranks!$1:$1048576,$A258,CY$1))","v":""},{"$f":"IF($A258=\"N/A\",Ref!$B$36,INDEX(Ranks!$1:$1048576,$A258,CZ$1))","v":""},{"$f":"IF($A258=\"N/A\",Ref!$B$36,INDEX(Ranks!$1:$1048576,$A258,DA$1))","v":""},{"$f":"IF($A258=\"N/A\",Ref!$B$36,INDEX(Ranks!$1:$1048576,$A258,DB$1))","v":""},{"$f":"IF($A258=\"N/A\",Ref!$B$36,INDEX(Ranks!$1:$1048576,$A258,DC$1))","v":""},{"$f":"IF($A258=\"N/A\",Ref!$B$36,INDEX(Ranks!$1:$1048576,$A258,DD$1))","v":""},{"$f":"IF($A258=\"N/A\",Ref!$B$36,INDEX(Ranks!$1:$1048576,$A258,DE$1))","v":""},{"$f":"IF($A258=\"N/A\",Ref!$B$36,INDEX(Ranks!$1:$1048576,$A258,DF$1))","v":""},{"$f":"IF($A258=\"N/A\",Ref!$B$36,INDEX(Ranks!$1:$1048576,$A258,DG$1))","v":""},{"$f":"IF($A258=\"N/A\",Ref!$B$36,INDEX(Ranks!$1:$1048576,$A258,DH$1))","v":""},{"$f":"IF($A258=\"N/A\",Ref!$B$36,INDEX(Ranks!$1:$1048576,$A258,DI$1))","v":""},{"$f":"IF($A258=\"N/A\",Ref!$B$36,INDEX(Ranks!$1:$1048576,$A258,DJ$1))","v":""},{"$f":"IF($A258=\"N/A\",Ref!$B$36,INDEX(Ranks!$1:$1048576,$A258,DK$1))","v":""},{"$f":"IF($A258=\"N/A\",Ref!$B$36,INDEX(Ranks!$1:$1048576,$A258,DL$1))","v":""},{"$f":"IF($A258=\"N/A\",Ref!$B$36,INDEX(Ranks!$1:$1048576,$A258,DM$1))","v":""},{"$f":"IF($A258=\"N/A\",Ref!$B$36,INDEX(Ranks!$1:$1048576,$A258,DN$1))","v":""},{"$f":"IF($A258=\"N/A\",Ref!$B$36,INDEX(Ranks!$1:$1048576,$A258,DO$1))","v":""},{"$f":"IF($A258=\"N/A\",Ref!$B$36,INDEX(Ranks!$1:$1048576,$A258,DP$1))","v":""},{"$f":"IF($A258=\"N/A\",Ref!$B$36,INDEX(Ranks!$1:$1048576,$A258,DQ$1))","v":""},{"$f":"IF($A258=\"N/A\",Ref!$B$36,INDEX(Ranks!$1:$1048576,$A258,DR$1))","v":""},{"$f":"IF($A258=\"N/A\",Ref!$B$36,INDEX(Ranks!$1:$1048576,$A258,DS$1))","v":""},{"$f":"IF($A258=\"N/A\",Ref!$B$36,INDEX(Ranks!$1:$1048576,$A258,DT$1))","v":""},{"$f":"IF($A258=\"N/A\",Ref!$B$36,INDEX(Ranks!$1:$1048576,$A258,DU$1))","v":""},{"$f":"IF($A258=\"N/A\",Ref!$B$36,INDEX(Ranks!$1:$1048576,$A258,DV$1))","v":""},{"$f":"IF($A258=\"N/A\",Ref!$B$36,INDEX(Ranks!$1:$1048576,$A258,DW$1))","v":""},{"$f":"IF($A258=\"N/A\",Ref!$B$36,INDEX(Ranks!$1:$1048576,$A258,DX$1))","v":""},{"$f":"IF($A258=\"N/A\",Ref!$B$36,INDEX(Ranks!$1:$1048576,$A258,DY$1))","v":""},{"$f":"IF($A258=\"N/A\",Ref!$B$36,INDEX(Ranks!$1:$1048576,$A258,DZ$1))","v":""},{"$f":"IF($A258=\"N/A\",Ref!$B$36,INDEX(Ranks!$1:$1048576,$A258,EA$1))","v":""},{"$f":"IF($A258=\"N/A\",Ref!$B$36,INDEX(Ranks!$1:$1048576,$A258,EB$1))","v":""}]
[{"$f":"IFERROR(MATCH('Portfolio Page'!L259,Ranks!L:L,0),\"N/A\")","v":"N/A"},null,{"$f":"IF($A259=\"N/A\",\"\",INDEX(Ranks!$1:$1048576,$A259,C$1))","v":""},{"$f":"IF($A259=\"N/A\",Ref!$B$36,INDEX(Ranks!$1:$1048576,$A259,D$1))","v":""},{"$f":"IF($A259=\"N/A\",Ref!$B$36,INDEX(Ranks!$1:$1048576,$A259,E$1))","v":""},{"$f":"IF($A259=\"N/A\",\"\",INDEX(Ranks!$1:$1048576,$A259,F$1))","v":""},{"$f":"IF($A259=\"N/A\",\"\",INDEX(Ranks!$1:$1048576,$A259,G$1))","v":""},{"$f":"IF($A259=\"N/A\",\"\",INDEX(Ranks!$1:$1048576,$A259,H$1))","v":""},{"$f":"IF($A259=\"N/A\",\"\",INDEX(Ranks!$1:$1048576,$A259,I$1))","v":""},{"$f":"IF($A259=\"N/A\",\"\",INDEX(Ranks!$1:$1048576,$A259,J$1))","v":""},{"$f":"IF($A259=\"N/A\",\"\",INDEX(Ranks!$1:$1048576,$A259,K$1))","v":""},null,{"$f":"IF($A259=\"N/A\",Ref!$B$36,INDEX(Ranks!$1:$1048576,$A259,M$1))","v":""},{"$f":"IF($A259=\"N/A\",Ref!$B$36,INDEX(Ranks!$1:$1048576,$A259,N$1))","v":""},{"$f":"IF($A259=\"N/A\",Ref!$B$36,INDEX(Ranks!$1:$1048576,$A259,O$1))","v":""},{"$f":"IF($A259=\"N/A\",Ref!$B$36,INDEX(Ranks!$1:$1048576,$A259,P$1))","v":""},{"$f":"IF($A259=\"N/A\",Ref!$B$36,INDEX(Ranks!$1:$1048576,$A259,Q$1))","v":""},{"$f":"IF($A259=\"N/A\",Ref!$B$36,INDEX(Ranks!$1:$1048576,$A259,R$1))","v":""},{"$f":"IF($A259=\"N/A\",Ref!$B$36,INDEX(Ranks!$1:$1048576,$A259,S$1))","v":""},{"$f":"IF($A259=\"N/A\",Ref!$B$36,INDEX(Ranks!$1:$1048576,$A259,T$1))","v":""},{"$f":"IF($A259=\"N/A\",Ref!$B$36,INDEX(Ranks!$1:$1048576,$A259,U$1))","v":""},{"$f":"IF($A259=\"N/A\",Ref!$B$36,INDEX(Ranks!$1:$1048576,$A259,V$1))","v":""},{"$f":"IF($A259=\"N/A\",Ref!$B$36,INDEX(Ranks!$1:$1048576,$A259,W$1))","v":""},{"$f":"IF($A259=\"N/A\",Ref!$B$36,INDEX(Ranks!$1:$1048576,$A259,X$1))","v":""},{"$f":"IF($A259=\"N/A\",Ref!$B$36,INDEX(Ranks!$1:$1048576,$A259,Y$1))","v":""},{"$f":"IF($A259=\"N/A\",Ref!$B$36,INDEX(Ranks!$1:$1048576,$A259,Z$1))","v":""},{"$f":"IF($A259=\"N/A\",Ref!$B$36,INDEX(Ranks!$1:$1048576,$A259,AA$1))","v":""},{"$f":"IF($A259=\"N/A\",Ref!$B$36,INDEX(Ranks!$1:$1048576,$A259,AB$1))","v":""},{"$f":"IF($A259=\"N/A\",Ref!$B$36,INDEX(Ranks!$1:$1048576,$A259,AC$1))","v":""},{"$f":"IF($A259=\"N/A\",Ref!$B$36,INDEX(Ranks!$1:$1048576,$A259,AD$1))","v":""},{"$f":"IF($A259=\"N/A\",Ref!$B$36,INDEX(Ranks!$1:$1048576,$A259,AE$1))","v":""},{"$f":"IF($A259=\"N/A\",Ref!$B$36,INDEX(Ranks!$1:$1048576,$A259,AF$1))","v":""},{"$f":"IF($A259=\"N/A\",Ref!$B$36,INDEX(Ranks!$1:$1048576,$A259,AG$1))","v":""},{"$f":"IF($A259=\"N/A\",Ref!$B$36,INDEX(Ranks!$1:$1048576,$A259,AH$1))","v":""},{"$f":"IF($A259=\"N/A\",Ref!$B$36,INDEX(Ranks!$1:$1048576,$A259,AI$1))","v":""},{"$f":"IF($A259=\"N/A\",Ref!$B$36,INDEX(Ranks!$1:$1048576,$A259,AJ$1))","v":""},{"$f":"IF($A259=\"N/A\",Ref!$B$36,INDEX(Ranks!$1:$1048576,$A259,AK$1))","v":""},{"$f":"IF($A259=\"N/A\",Ref!$B$36,INDEX(Ranks!$1:$1048576,$A259,AL$1))","v":""},{"$f":"IF($A259=\"N/A\",Ref!$B$36,INDEX(Ranks!$1:$1048576,$A259,AM$1))","v":""},{"$f":"IF($A259=\"N/A\",Ref!$B$36,INDEX(Ranks!$1:$1048576,$A259,AN$1))","v":""},{"$f":"IF($A259=\"N/A\",Ref!$B$36,INDEX(Ranks!$1:$1048576,$A259,AO$1))","v":""},{"$f":"IF($A259=\"N/A\",Ref!$B$36,INDEX(Ranks!$1:$1048576,$A259,AP$1))","v":""},{"$f":"IF($A259=\"N/A\",Ref!$B$36,INDEX(Ranks!$1:$1048576,$A259,AQ$1))","v":""},{"$f":"IF($A259=\"N/A\",Ref!$B$36,INDEX(Ranks!$1:$1048576,$A259,AR$1))","v":""},{"$f":"IF($A259=\"N/A\",Ref!$B$36,INDEX(Ranks!$1:$1048576,$A259,AS$1))","v":""},{"$f":"IF($A259=\"N/A\",Ref!$B$36,INDEX(Ranks!$1:$1048576,$A259,AT$1))","v":""},{"$f":"IF($A259=\"N/A\",Ref!$B$36,INDEX(Ranks!$1:$1048576,$A259,AU$1))","v":""},{"$f":"IF($A259=\"N/A\",Ref!$B$36,INDEX(Ranks!$1:$1048576,$A259,AV$1))","v":""},{"$f":"IF($A259=\"N/A\",Ref!$B$36,INDEX(Ranks!$1:$1048576,$A259,AW$1))","v":""},{"$f":"IF($A259=\"N/A\",Ref!$B$36,INDEX(Ranks!$1:$1048576,$A259,AX$1))","v":""},{"$f":"IF($A259=\"N/A\",Ref!$B$36,INDEX(Ranks!$1:$1048576,$A259,AY$1))","v":""},{"$f":"IF($A259=\"N/A\",Ref!$B$36,INDEX(Ranks!$1:$1048576,$A259,AZ$1))","v":""},{"$f":"IF($A259=\"N/A\",Ref!$B$36,INDEX(Ranks!$1:$1048576,$A259,BA$1))","v":""},{"$f":"IF($A259=\"N/A\",Ref!$B$36,INDEX(Ranks!$1:$1048576,$A259,BB$1))","v":""},{"$f":"IF($A259=\"N/A\",Ref!$B$36,INDEX(Ranks!$1:$1048576,$A259,BC$1))","v":""},{"$f":"IF($A259=\"N/A\",Ref!$B$36,INDEX(Ranks!$1:$1048576,$A259,BD$1))","v":""},{"$f":"IF($A259=\"N/A\",Ref!$B$36,INDEX(Ranks!$1:$1048576,$A259,BE$1))","v":""},{"$f":"IF($A259=\"N/A\",Ref!$B$36,INDEX(Ranks!$1:$1048576,$A259,BF$1))","v":""},{"$f":"IF($A259=\"N/A\",Ref!$B$36,INDEX(Ranks!$1:$1048576,$A259,BG$1))","v":""},{"$f":"IF($A259=\"N/A\",Ref!$B$36,INDEX(Ranks!$1:$1048576,$A259,BH$1))","v":""},{"$f":"IF($A259=\"N/A\",Ref!$B$36,INDEX(Ranks!$1:$1048576,$A259,BI$1))","v":""},{"$f":"IF($A259=\"N/A\",Ref!$B$36,INDEX(Ranks!$1:$1048576,$A259,BJ$1))","v":""},{"$f":"IF($A259=\"N/A\",Ref!$B$36,INDEX(Ranks!$1:$1048576,$A259,BK$1))","v":""},{"$f":"IF($A259=\"N/A\",Ref!$B$36,INDEX(Ranks!$1:$1048576,$A259,BL$1))","v":""},{"$f":"IF($A259=\"N/A\",Ref!$B$36,INDEX(Ranks!$1:$1048576,$A259,BM$1))","v":""},{"$f":"IF($A259=\"N/A\",Ref!$B$36,INDEX(Ranks!$1:$1048576,$A259,BN$1))","v":""},{"$f":"IF($A259=\"N/A\",Ref!$B$36,INDEX(Ranks!$1:$1048576,$A259,BO$1))","v":""},{"$f":"IF($A259=\"N/A\",Ref!$B$36,INDEX(Ranks!$1:$1048576,$A259,BP$1))","v":""},{"$f":"IF($A259=\"N/A\",Ref!$B$36,INDEX(Ranks!$1:$1048576,$A259,BQ$1))","v":""},{"$f":"IF($A259=\"N/A\",Ref!$B$36,INDEX(Ranks!$1:$1048576,$A259,BR$1))","v":""},{"$f":"IF($A259=\"N/A\",Ref!$B$36,INDEX(Ranks!$1:$1048576,$A259,BS$1))","v":""},{"$f":"IF($A259=\"N/A\",Ref!$B$36,INDEX(Ranks!$1:$1048576,$A259,BT$1))","v":""},{"$f":"IF($A259=\"N/A\",Ref!$B$36,INDEX(Ranks!$1:$1048576,$A259,BU$1))","v":""},{"$f":"IF($A259=\"N/A\",Ref!$B$36,INDEX(Ranks!$1:$1048576,$A259,BV$1))","v":""},{"$f":"IF($A259=\"N/A\",Ref!$B$36,INDEX(Ranks!$1:$1048576,$A259,BW$1))","v":""},{"$f":"IF($A259=\"N/A\",Ref!$B$36,INDEX(Ranks!$1:$1048576,$A259,BX$1))","v":""},{"$f":"IF($A259=\"N/A\",Ref!$B$36,INDEX(Ranks!$1:$1048576,$A259,BY$1))","v":""},{"$f":"IF($A259=\"N/A\",Ref!$B$36,INDEX(Ranks!$1:$1048576,$A259,BZ$1))","v":""},{"$f":"IF($A259=\"N/A\",Ref!$B$36,INDEX(Ranks!$1:$1048576,$A259,CA$1))","v":""},{"$f":"IF($A259=\"N/A\",Ref!$B$36,INDEX(Ranks!$1:$1048576,$A259,CB$1))","v":""},{"$f":"IF($A259=\"N/A\",Ref!$B$36,INDEX(Ranks!$1:$1048576,$A259,CC$1))","v":""},{"$f":"IF($A259=\"N/A\",Ref!$B$36,INDEX(Ranks!$1:$1048576,$A259,CD$1))","v":""},{"$f":"IF($A259=\"N/A\",Ref!$B$36,INDEX(Ranks!$1:$1048576,$A259,CE$1))","v":""},{"$f":"IF($A259=\"N/A\",Ref!$B$36,INDEX(Ranks!$1:$1048576,$A259,CF$1))","v":""},{"$f":"IF($A259=\"N/A\",Ref!$B$36,INDEX(Ranks!$1:$1048576,$A259,CG$1))","v":""},{"$f":"IF($A259=\"N/A\",Ref!$B$36,INDEX(Ranks!$1:$1048576,$A259,CH$1))","v":""},{"$f":"IF($A259=\"N/A\",Ref!$B$36,INDEX(Ranks!$1:$1048576,$A259,CI$1))","v":""},{"$f":"IF($A259=\"N/A\",Ref!$B$36,INDEX(Ranks!$1:$1048576,$A259,CJ$1))","v":""},{"$f":"IF($A259=\"N/A\",Ref!$B$36,INDEX(Ranks!$1:$1048576,$A259,CK$1))","v":""},{"$f":"IF($A259=\"N/A\",Ref!$B$36,INDEX(Ranks!$1:$1048576,$A259,CL$1))","v":""},{"$f":"IF($A259=\"N/A\",Ref!$B$36,INDEX(Ranks!$1:$1048576,$A259,CM$1))","v":""},{"$f":"IF($A259=\"N/A\",Ref!$B$36,INDEX(Ranks!$1:$1048576,$A259,CN$1))","v":""},{"$f":"IF($A259=\"N/A\",Ref!$B$36,INDEX(Ranks!$1:$1048576,$A259,CO$1))","v":""},{"$f":"IF($A259=\"N/A\",Ref!$B$36,INDEX(Ranks!$1:$1048576,$A259,CP$1))","v":""},{"$f":"IF($A259=\"N/A\",Ref!$B$36,INDEX(Ranks!$1:$1048576,$A259,CQ$1))","v":""},{"$f":"IF($A259=\"N/A\",Ref!$B$36,INDEX(Ranks!$1:$1048576,$A259,CR$1))","v":""},{"$f":"IF($A259=\"N/A\",Ref!$B$36,INDEX(Ranks!$1:$1048576,$A259,CS$1))","v":""},{"$f":"IF($A259=\"N/A\",Ref!$B$36,INDEX(Ranks!$1:$1048576,$A259,CT$1))","v":""},{"$f":"IF($A259=\"N/A\",Ref!$B$36,INDEX(Ranks!$1:$1048576,$A259,CU$1))","v":""},{"$f":"IF($A259=\"N/A\",Ref!$B$36,INDEX(Ranks!$1:$1048576,$A259,CV$1))","v":""},{"$f":"IF($A259=\"N/A\",Ref!$B$36,INDEX(Ranks!$1:$1048576,$A259,CW$1))","v":""},{"$f":"IF($A259=\"N/A\",Ref!$B$36,INDEX(Ranks!$1:$1048576,$A259,CX$1))","v":""},{"$f":"IF($A259=\"N/A\",Ref!$B$36,INDEX(Ranks!$1:$1048576,$A259,CY$1))","v":""},{"$f":"IF($A259=\"N/A\",Ref!$B$36,INDEX(Ranks!$1:$1048576,$A259,CZ$1))","v":""},{"$f":"IF($A259=\"N/A\",Ref!$B$36,INDEX(Ranks!$1:$1048576,$A259,DA$1))","v":""},{"$f":"IF($A259=\"N/A\",Ref!$B$36,INDEX(Ranks!$1:$1048576,$A259,DB$1))","v":""},{"$f":"IF($A259=\"N/A\",Ref!$B$36,INDEX(Ranks!$1:$1048576,$A259,DC$1))","v":""},{"$f":"IF($A259=\"N/A\",Ref!$B$36,INDEX(Ranks!$1:$1048576,$A259,DD$1))","v":""},{"$f":"IF($A259=\"N/A\",Ref!$B$36,INDEX(Ranks!$1:$1048576,$A259,DE$1))","v":""},{"$f":"IF($A259=\"N/A\",Ref!$B$36,INDEX(Ranks!$1:$1048576,$A259,DF$1))","v":""},{"$f":"IF($A259=\"N/A\",Ref!$B$36,INDEX(Ranks!$1:$1048576,$A259,DG$1))","v":""},{"$f":"IF($A259=\"N/A\",Ref!$B$36,INDEX(Ranks!$1:$1048576,$A259,DH$1))","v":""},{"$f":"IF($A259=\"N/A\",Ref!$B$36,INDEX(Ranks!$1:$1048576,$A259,DI$1))","v":""},{"$f":"IF($A259=\"N/A\",Ref!$B$36,INDEX(Ranks!$1:$1048576,$A259,DJ$1))","v":""},{"$f":"IF($A259=\"N/A\",Ref!$B$36,INDEX(Ranks!$1:$1048576,$A259,DK$1))","v":""},{"$f":"IF($A259=\"N/A\",Ref!$B$36,INDEX(Ranks!$1:$1048576,$A259,DL$1))","v":""},{"$f":"IF($A259=\"N/A\",Ref!$B$36,INDEX(Ranks!$1:$1048576,$A259,DM$1))","v":""},{"$f":"IF($A259=\"N/A\",Ref!$B$36,INDEX(Ranks!$1:$1048576,$A259,DN$1))","v":""},{"$f":"IF($A259=\"N/A\",Ref!$B$36,INDEX(Ranks!$1:$1048576,$A259,DO$1))","v":""},{"$f":"IF($A259=\"N/A\",Ref!$B$36,INDEX(Ranks!$1:$1048576,$A259,DP$1))","v":""},{"$f":"IF($A259=\"N/A\",Ref!$B$36,INDEX(Ranks!$1:$1048576,$A259,DQ$1))","v":""},{"$f":"IF($A259=\"N/A\",Ref!$B$36,INDEX(Ranks!$1:$1048576,$A259,DR$1))","v":""},{"$f":"IF($A259=\"N/A\",Ref!$B$36,INDEX(Ranks!$1:$1048576,$A259,DS$1))","v":""},{"$f":"IF($A259=\"N/A\",Ref!$B$36,INDEX(Ranks!$1:$1048576,$A259,DT$1))","v":""},{"$f":"IF($A259=\"N/A\",Ref!$B$36,INDEX(Ranks!$1:$1048576,$A259,DU$1))","v":""},{"$f":"IF($A259=\"N/A\",Ref!$B$36,INDEX(Ranks!$1:$1048576,$A259,DV$1))","v":""},{"$f":"IF($A259=\"N/A\",Ref!$B$36,INDEX(Ranks!$1:$1048576,$A259,DW$1))","v":""},{"$f":"IF($A259=\"N/A\",Ref!$B$36,INDEX(Ranks!$1:$1048576,$A259,DX$1))","v":""},{"$f":"IF($A259=\"N/A\",Ref!$B$36,INDEX(Ranks!$1:$1048576,$A259,DY$1))","v":""},{"$f":"IF($A259=\"N/A\",Ref!$B$36,INDEX(Ranks!$1:$1048576,$A259,DZ$1))","v":""},{"$f":"IF($A259=\"N/A\",Ref!$B$36,INDEX(Ranks!$1:$1048576,$A259,EA$1))","v":""},{"$f":"IF($A259=\"N/A\",Ref!$B$36,INDEX(Ranks!$1:$1048576,$A259,EB$1))","v":""}]
[{"$f":"IFERROR(MATCH('Portfolio Page'!L260,Ranks!L:L,0),\"N/A\")","v":"N/A"},null,{"$f":"IF($A260=\"N/A\",\"\",INDEX(Ranks!$1:$1048576,$A260,C$1))","v":""},{"$f":"IF($A260=\"N/A\",Ref!$B$36,INDEX(Ranks!$1:$1048576,$A260,D$1))","v":""},{"$f":"IF($A260=\"N/A\",Ref!$B$36,INDEX(Ranks!$1:$1048576,$A260,E$1))","v":""},{"$f":"IF($A260=\"N/A\",\"\",INDEX(Ranks!$1:$1048576,$A260,F$1))","v":""},{"$f":"IF($A260=\"N/A\",\"\",INDEX(Ranks!$1:$1048576,$A260,G$1))","v":""},{"$f":"IF($A260=\"N/A\",\"\",INDEX(Ranks!$1:$1048576,$A260,H$1))","v":""},{"$f":"IF($A260=\"N/A\",\"\",INDEX(Ranks!$1:$1048576,$A260,I$1))","v":""},{"$f":"IF($A260=\"N/A\",\"\",INDEX(Ranks!$1:$1048576,$A260,J$1))","v":""},{"$f":"IF($A260=\"N/A\",\"\",INDEX(Ranks!$1:$1048576,$A260,K$1))","v":""},null,{"$f":"IF($A260=\"N/A\",Ref!$B$36,INDEX(Ranks!$1:$1048576,$A260,M$1))","v":""},{"$f":"IF($A260=\"N/A\",Ref!$B$36,INDEX(Ranks!$1:$1048576,$A260,N$1))","v":""},{"$f":"IF($A260=\"N/A\",Ref!$B$36,INDEX(Ranks!$1:$1048576,$A260,O$1))","v":""},{"$f":"IF($A260=\"N/A\",Ref!$B$36,INDEX(Ranks!$1:$1048576,$A260,P$1))","v":""},{"$f":"IF($A260=\"N/A\",Ref!$B$36,INDEX(Ranks!$1:$1048576,$A260,Q$1))","v":""},{"$f":"IF($A260=\"N/A\",Ref!$B$36,INDEX(Ranks!$1:$1048576,$A260,R$1))","v":""},{"$f":"IF($A260=\"N/A\",Ref!$B$36,INDEX(Ranks!$1:$1048576,$A260,S$1))","v":""},{"$f":"IF($A260=\"N/A\",Ref!$B$36,INDEX(Ranks!$1:$1048576,$A260,T$1))","v":""},{"$f":"IF($A260=\"N/A\",Ref!$B$36,INDEX(Ranks!$1:$1048576,$A260,U$1))","v":""},{"$f":"IF($A260=\"N/A\",Ref!$B$36,INDEX(Ranks!$1:$1048576,$A260,V$1))","v":""},{"$f":"IF($A260=\"N/A\",Ref!$B$36,INDEX(Ranks!$1:$1048576,$A260,W$1))","v":""},{"$f":"IF($A260=\"N/A\",Ref!$B$36,INDEX(Ranks!$1:$1048576,$A260,X$1))","v":""},{"$f":"IF($A260=\"N/A\",Ref!$B$36,INDEX(Ranks!$1:$1048576,$A260,Y$1))","v":""},{"$f":"IF($A260=\"N/A\",Ref!$B$36,INDEX(Ranks!$1:$1048576,$A260,Z$1))","v":""},{"$f":"IF($A260=\"N/A\",Ref!$B$36,INDEX(Ranks!$1:$1048576,$A260,AA$1))","v":""},{"$f":"IF($A260=\"N/A\",Ref!$B$36,INDEX(Ranks!$1:$1048576,$A260,AB$1))","v":""},{"$f":"IF($A260=\"N/A\",Ref!$B$36,INDEX(Ranks!$1:$1048576,$A260,AC$1))","v":""},{"$f":"IF($A260=\"N/A\",Ref!$B$36,INDEX(Ranks!$1:$1048576,$A260,AD$1))","v":""},{"$f":"IF($A260=\"N/A\",Ref!$B$36,INDEX(Ranks!$1:$1048576,$A260,AE$1))","v":""},{"$f":"IF($A260=\"N/A\",Ref!$B$36,INDEX(Ranks!$1:$1048576,$A260,AF$1))","v":""},{"$f":"IF($A260=\"N/A\",Ref!$B$36,INDEX(Ranks!$1:$1048576,$A260,AG$1))","v":""},{"$f":"IF($A260=\"N/A\",Ref!$B$36,INDEX(Ranks!$1:$1048576,$A260,AH$1))","v":""},{"$f":"IF($A260=\"N/A\",Ref!$B$36,INDEX(Ranks!$1:$1048576,$A260,AI$1))","v":""},{"$f":"IF($A260=\"N/A\",Ref!$B$36,INDEX(Ranks!$1:$1048576,$A260,AJ$1))","v":""},{"$f":"IF($A260=\"N/A\",Ref!$B$36,INDEX(Ranks!$1:$1048576,$A260,AK$1))","v":""},{"$f":"IF($A260=\"N/A\",Ref!$B$36,INDEX(Ranks!$1:$1048576,$A260,AL$1))","v":""},{"$f":"IF($A260=\"N/A\",Ref!$B$36,INDEX(Ranks!$1:$1048576,$A260,AM$1))","v":""},{"$f":"IF($A260=\"N/A\",Ref!$B$36,INDEX(Ranks!$1:$1048576,$A260,AN$1))","v":""},{"$f":"IF($A260=\"N/A\",Ref!$B$36,INDEX(Ranks!$1:$1048576,$A260,AO$1))","v":""},{"$f":"IF($A260=\"N/A\",Ref!$B$36,INDEX(Ranks!$1:$1048576,$A260,AP$1))","v":""},{"$f":"IF($A260=\"N/A\",Ref!$B$36,INDEX(Ranks!$1:$1048576,$A260,AQ$1))","v":""},{"$f":"IF($A260=\"N/A\",Ref!$B$36,INDEX(Ranks!$1:$1048576,$A260,AR$1))","v":""},{"$f":"IF($A260=\"N/A\",Ref!$B$36,INDEX(Ranks!$1:$1048576,$A260,AS$1))","v":""},{"$f":"IF($A260=\"N/A\",Ref!$B$36,INDEX(Ranks!$1:$1048576,$A260,AT$1))","v":""},{"$f":"IF($A260=\"N/A\",Ref!$B$36,INDEX(Ranks!$1:$1048576,$A260,AU$1))","v":""},{"$f":"IF($A260=\"N/A\",Ref!$B$36,INDEX(Ranks!$1:$1048576,$A260,AV$1))","v":""},{"$f":"IF($A260=\"N/A\",Ref!$B$36,INDEX(Ranks!$1:$1048576,$A260,AW$1))","v":""},{"$f":"IF($A260=\"N/A\",Ref!$B$36,INDEX(Ranks!$1:$1048576,$A260,AX$1))","v":""},{"$f":"IF($A260=\"N/A\",Ref!$B$36,INDEX(Ranks!$1:$1048576,$A260,AY$1))","v":""},{"$f":"IF($A260=\"N/A\",Ref!$B$36,INDEX(Ranks!$1:$1048576,$A260,AZ$1))","v":""},{"$f":"IF($A260=\"N/A\",Ref!$B$36,INDEX(Ranks!$1:$1048576,$A260,BA$1))","v":""},{"$f":"IF($A260=\"N/A\",Ref!$B$36,INDEX(Ranks!$1:$1048576,$A260,BB$1))","v":""},{"$f":"IF($A260=\"N/A\",Ref!$B$36,INDEX(Ranks!$1:$1048576,$A260,BC$1))","v":""},{"$f":"IF($A260=\"N/A\",Ref!$B$36,INDEX(Ranks!$1:$1048576,$A260,BD$1))","v":""},{"$f":"IF($A260=\"N/A\",Ref!$B$36,INDEX(Ranks!$1:$1048576,$A260,BE$1))","v":""},{"$f":"IF($A260=\"N/A\",Ref!$B$36,INDEX(Ranks!$1:$1048576,$A260,BF$1))","v":""},{"$f":"IF($A260=\"N/A\",Ref!$B$36,INDEX(Ranks!$1:$1048576,$A260,BG$1))","v":""},{"$f":"IF($A260=\"N/A\",Ref!$B$36,INDEX(Ranks!$1:$1048576,$A260,BH$1))","v":""},{"$f":"IF($A260=\"N/A\",Ref!$B$36,INDEX(Ranks!$1:$1048576,$A260,BI$1))","v":""},{"$f":"IF($A260=\"N/A\",Ref!$B$36,INDEX(Ranks!$1:$1048576,$A260,BJ$1))","v":""},{"$f":"IF($A260=\"N/A\",Ref!$B$36,INDEX(Ranks!$1:$1048576,$A260,BK$1))","v":""},{"$f":"IF($A260=\"N/A\",Ref!$B$36,INDEX(Ranks!$1:$1048576,$A260,BL$1))","v":""},{"$f":"IF($A260=\"N/A\",Ref!$B$36,INDEX(Ranks!$1:$1048576,$A260,BM$1))","v":""},{"$f":"IF($A260=\"N/A\",Ref!$B$36,INDEX(Ranks!$1:$1048576,$A260,BN$1))","v":""},{"$f":"IF($A260=\"N/A\",Ref!$B$36,INDEX(Ranks!$1:$1048576,$A260,BO$1))","v":""},{"$f":"IF($A260=\"N/A\",Ref!$B$36,INDEX(Ranks!$1:$1048576,$A260,BP$1))","v":""},{"$f":"IF($A260=\"N/A\",Ref!$B$36,INDEX(Ranks!$1:$1048576,$A260,BQ$1))","v":""},{"$f":"IF($A260=\"N/A\",Ref!$B$36,INDEX(Ranks!$1:$1048576,$A260,BR$1))","v":""},{"$f":"IF($A260=\"N/A\",Ref!$B$36,INDEX(Ranks!$1:$1048576,$A260,BS$1))","v":""},{"$f":"IF($A260=\"N/A\",Ref!$B$36,INDEX(Ranks!$1:$1048576,$A260,BT$1))","v":""},{"$f":"IF($A260=\"N/A\",Ref!$B$36,INDEX(Ranks!$1:$1048576,$A260,BU$1))","v":""},{"$f":"IF($A260=\"N/A\",Ref!$B$36,INDEX(Ranks!$1:$1048576,$A260,BV$1))","v":""},{"$f":"IF($A260=\"N/A\",Ref!$B$36,INDEX(Ranks!$1:$1048576,$A260,BW$1))","v":""},{"$f":"IF($A260=\"N/A\",Ref!$B$36,INDEX(Ranks!$1:$1048576,$A260,BX$1))","v":""},{"$f":"IF($A260=\"N/A\",Ref!$B$36,INDEX(Ranks!$1:$1048576,$A260,BY$1))","v":""},{"$f":"IF($A260=\"N/A\",Ref!$B$36,INDEX(Ranks!$1:$1048576,$A260,BZ$1))","v":""},{"$f":"IF($A260=\"N/A\",Ref!$B$36,INDEX(Ranks!$1:$1048576,$A260,CA$1))","v":""},{"$f":"IF($A260=\"N/A\",Ref!$B$36,INDEX(Ranks!$1:$1048576,$A260,CB$1))","v":""},{"$f":"IF($A260=\"N/A\",Ref!$B$36,INDEX(Ranks!$1:$1048576,$A260,CC$1))","v":""},{"$f":"IF($A260=\"N/A\",Ref!$B$36,INDEX(Ranks!$1:$1048576,$A260,CD$1))","v":""},{"$f":"IF($A260=\"N/A\",Ref!$B$36,INDEX(Ranks!$1:$1048576,$A260,CE$1))","v":""},{"$f":"IF($A260=\"N/A\",Ref!$B$36,INDEX(Ranks!$1:$1048576,$A260,CF$1))","v":""},{"$f":"IF($A260=\"N/A\",Ref!$B$36,INDEX(Ranks!$1:$1048576,$A260,CG$1))","v":""},{"$f":"IF($A260=\"N/A\",Ref!$B$36,INDEX(Ranks!$1:$1048576,$A260,CH$1))","v":""},{"$f":"IF($A260=\"N/A\",Ref!$B$36,INDEX(Ranks!$1:$1048576,$A260,CI$1))","v":""},{"$f":"IF($A260=\"N/A\",Ref!$B$36,INDEX(Ranks!$1:$1048576,$A260,CJ$1))","v":""},{"$f":"IF($A260=\"N/A\",Ref!$B$36,INDEX(Ranks!$1:$1048576,$A260,CK$1))","v":""},{"$f":"IF($A260=\"N/A\",Ref!$B$36,INDEX(Ranks!$1:$1048576,$A260,CL$1))","v":""},{"$f":"IF($A260=\"N/A\",Ref!$B$36,INDEX(Ranks!$1:$1048576,$A260,CM$1))","v":""},{"$f":"IF($A260=\"N/A\",Ref!$B$36,INDEX(Ranks!$1:$1048576,$A260,CN$1))","v":""},{"$f":"IF($A260=\"N/A\",Ref!$B$36,INDEX(Ranks!$1:$1048576,$A260,CO$1))","v":""},{"$f":"IF($A260=\"N/A\",Ref!$B$36,INDEX(Ranks!$1:$1048576,$A260,CP$1))","v":""},{"$f":"IF($A260=\"N/A\",Ref!$B$36,INDEX(Ranks!$1:$1048576,$A260,CQ$1))","v":""},{"$f":"IF($A260=\"N/A\",Ref!$B$36,INDEX(Ranks!$1:$1048576,$A260,CR$1))","v":""},{"$f":"IF($A260=\"N/A\",Ref!$B$36,INDEX(Ranks!$1:$1048576,$A260,CS$1))","v":""},{"$f":"IF($A260=\"N/A\",Ref!$B$36,INDEX(Ranks!$1:$1048576,$A260,CT$1))","v":""},{"$f":"IF($A260=\"N/A\",Ref!$B$36,INDEX(Ranks!$1:$1048576,$A260,CU$1))","v":""},{"$f":"IF($A260=\"N/A\",Ref!$B$36,INDEX(Ranks!$1:$1048576,$A260,CV$1))","v":""},{"$f":"IF($A260=\"N/A\",Ref!$B$36,INDEX(Ranks!$1:$1048576,$A260,CW$1))","v":""},{"$f":"IF($A260=\"N/A\",Ref!$B$36,INDEX(Ranks!$1:$1048576,$A260,CX$1))","v":""},{"$f":"IF($A260=\"N/A\",Ref!$B$36,INDEX(Ranks!$1:$1048576,$A260,CY$1))","v":""},{"$f":"IF($A260=\"N/A\",Ref!$B$36,INDEX(Ranks!$1:$1048576,$A260,CZ$1))","v":""},{"$f":"IF($A260=\"N/A\",Ref!$B$36,INDEX(Ranks!$1:$1048576,$A260,DA$1))","v":""},{"$f":"IF($A260=\"N/A\",Ref!$B$36,INDEX(Ranks!$1:$1048576,$A260,DB$1))","v":""},{"$f":"IF($A260=\"N/A\",Ref!$B$36,INDEX(Ranks!$1:$1048576,$A260,DC$1))","v":""},{"$f":"IF($A260=\"N/A\",Ref!$B$36,INDEX(Ranks!$1:$1048576,$A260,DD$1))","v":""},{"$f":"IF($A260=\"N/A\",Ref!$B$36,INDEX(Ranks!$1:$1048576,$A260,DE$1))","v":""},{"$f":"IF($A260=\"N/A\",Ref!$B$36,INDEX(Ranks!$1:$1048576,$A260,DF$1))","v":""},{"$f":"IF($A260=\"N/A\",Ref!$B$36,INDEX(Ranks!$1:$1048576,$A260,DG$1))","v":""},{"$f":"IF($A260=\"N/A\",Ref!$B$36,INDEX(Ranks!$1:$1048576,$A260,DH$1))","v":""},{"$f":"IF($A260=\"N/A\",Ref!$B$36,INDEX(Ranks!$1:$1048576,$A260,DI$1))","v":""},{"$f":"IF($A260=\"N/A\",Ref!$B$36,INDEX(Ranks!$1:$1048576,$A260,DJ$1))","v":""},{"$f":"IF($A260=\"N/A\",Ref!$B$36,INDEX(Ranks!$1:$1048576,$A260,DK$1))","v":""},{"$f":"IF($A260=\"N/A\",Ref!$B$36,INDEX(Ranks!$1:$1048576,$A260,DL$1))","v":""},{"$f":"IF($A260=\"N/A\",Ref!$B$36,INDEX(Ranks!$1:$1048576,$A260,DM$1))","v":""},{"$f":"IF($A260=\"N/A\",Ref!$B$36,INDEX(Ranks!$1:$1048576,$A260,DN$1))","v":""},{"$f":"IF($A260=\"N/A\",Ref!$B$36,INDEX(Ranks!$1:$1048576,$A260,DO$1))","v":""},{"$f":"IF($A260=\"N/A\",Ref!$B$36,INDEX(Ranks!$1:$1048576,$A260,DP$1))","v":""},{"$f":"IF($A260=\"N/A\",Ref!$B$36,INDEX(Ranks!$1:$1048576,$A260,DQ$1))","v":""},{"$f":"IF($A260=\"N/A\",Ref!$B$36,INDEX(Ranks!$1:$1048576,$A260,DR$1))","v":""},{"$f":"IF($A260=\"N/A\",Ref!$B$36,INDEX(Ranks!$1:$1048576,$A260,DS$1))","v":""},{"$f":"IF($A260=\"N/A\",Ref!$B$36,INDEX(Ranks!$1:$1048576,$A260,DT$1))","v":""},{"$f":"IF($A260=\"N/A\",Ref!$B$36,INDEX(Ranks!$1:$1048576,$A260,DU$1))","v":""},{"$f":"IF($A260=\"N/A\",Ref!$B$36,INDEX(Ranks!$1:$1048576,$A260,DV$1))","v":""},{"$f":"IF($A260=\"N/A\",Ref!$B$36,INDEX(Ranks!$1:$1048576,$A260,DW$1))","v":""},{"$f":"IF($A260=\"N/A\",Ref!$B$36,INDEX(Ranks!$1:$1048576,$A260,DX$1))","v":""},{"$f":"IF($A260=\"N/A\",Ref!$B$36,INDEX(Ranks!$1:$1048576,$A260,DY$1))","v":""},{"$f":"IF($A260=\"N/A\",Ref!$B$36,INDEX(Ranks!$1:$1048576,$A260,DZ$1))","v":""},{"$f":"IF($A260=\"N/A\",Ref!$B$36,INDEX(Ranks!$1:$1048576,$A260,EA$1))","v":""},{"$f":"IF($A260=\"N/A\",Ref!$B$36,INDEX(Ranks!$1:$1048576,$A260,EB$1))","v":""}]
[{"$f":"IFERROR(MATCH('Portfolio Page'!L261,Ranks!L:L,0),\"N/A\")","v":"N/A"},null,{"$f":"IF($A261=\"N/A\",\"\",INDEX(Ranks!$1:$1048576,$A261,C$1))","v":""},{"$f":"IF($A261=\"N/A\",Ref!$B$36,INDEX(Ranks!$1:$1048576,$A261,D$1))","v":""},{"$f":"IF($A261=\"N/A\",Ref!$B$36,INDEX(Ranks!$1:$1048576,$A261,E$1))","v":""},{"$f":"IF($A261=\"N/A\",\"\",INDEX(Ranks!$1:$1048576,$A261,F$1))","v":""},{"$f":"IF($A261=\"N/A\",\"\",INDEX(Ranks!$1:$1048576,$A261,G$1))","v":""},{"$f":"IF($A261=\"N/A\",\"\",INDEX(Ranks!$1:$1048576,$A261,H$1))","v":""},{"$f":"IF($A261=\"N/A\",\"\",INDEX(Ranks!$1:$1048576,$A261,I$1))","v":""},{"$f":"IF($A261=\"N/A\",\"\",INDEX(Ranks!$1:$1048576,$A261,J$1))","v":""},{"$f":"IF($A261=\"N/A\",\"\",INDEX(Ranks!$1:$1048576,$A261,K$1))","v":""},null,{"$f":"IF($A261=\"N/A\",Ref!$B$36,INDEX(Ranks!$1:$1048576,$A261,M$1))","v":""},{"$f":"IF($A261=\"N/A\",Ref!$B$36,INDEX(Ranks!$1:$1048576,$A261,N$1))","v":""},{"$f":"IF($A261=\"N/A\",Ref!$B$36,INDEX(Ranks!$1:$1048576,$A261,O$1))","v":""},{"$f":"IF($A261=\"N/A\",Ref!$B$36,INDEX(Ranks!$1:$1048576,$A261,P$1))","v":""},{"$f":"IF($A261=\"N/A\",Ref!$B$36,INDEX(Ranks!$1:$1048576,$A261,Q$1))","v":""},{"$f":"IF($A261=\"N/A\",Ref!$B$36,INDEX(Ranks!$1:$1048576,$A261,R$1))","v":""},{"$f":"IF($A261=\"N/A\",Ref!$B$36,INDEX(Ranks!$1:$1048576,$A261,S$1))","v":""},{"$f":"IF($A261=\"N/A\",Ref!$B$36,INDEX(Ranks!$1:$1048576,$A261,T$1))","v":""},{"$f":"IF($A261=\"N/A\",Ref!$B$36,INDEX(Ranks!$1:$1048576,$A261,U$1))","v":""},{"$f":"IF($A261=\"N/A\",Ref!$B$36,INDEX(Ranks!$1:$1048576,$A261,V$1))","v":""},{"$f":"IF($A261=\"N/A\",Ref!$B$36,INDEX(Ranks!$1:$1048576,$A261,W$1))","v":""},{"$f":"IF($A261=\"N/A\",Ref!$B$36,INDEX(Ranks!$1:$1048576,$A261,X$1))","v":""},{"$f":"IF($A261=\"N/A\",Ref!$B$36,INDEX(Ranks!$1:$1048576,$A261,Y$1))","v":""},{"$f":"IF($A261=\"N/A\",Ref!$B$36,INDEX(Ranks!$1:$1048576,$A261,Z$1))","v":""},{"$f":"IF($A261=\"N/A\",Ref!$B$36,INDEX(Ranks!$1:$1048576,$A261,AA$1))","v":""},{"$f":"IF($A261=\"N/A\",Ref!$B$36,INDEX(Ranks!$1:$1048576,$A261,AB$1))","v":""},{"$f":"IF($A261=\"N/A\",Ref!$B$36,INDEX(Ranks!$1:$1048576,$A261,AC$1))","v":""},{"$f":"IF($A261=\"N/A\",Ref!$B$36,INDEX(Ranks!$1:$1048576,$A261,AD$1))","v":""},{"$f":"IF($A261=\"N/A\",Ref!$B$36,INDEX(Ranks!$1:$1048576,$A261,AE$1))","v":""},{"$f":"IF($A261=\"N/A\",Ref!$B$36,INDEX(Ranks!$1:$1048576,$A261,AF$1))","v":""},{"$f":"IF($A261=\"N/A\",Ref!$B$36,INDEX(Ranks!$1:$1048576,$A261,AG$1))","v":""},{"$f":"IF($A261=\"N/A\",Ref!$B$36,INDEX(Ranks!$1:$1048576,$A261,AH$1))","v":""},{"$f":"IF($A261=\"N/A\",Ref!$B$36,INDEX(Ranks!$1:$1048576,$A261,AI$1))","v":""},{"$f":"IF($A261=\"N/A\",Ref!$B$36,INDEX(Ranks!$1:$1048576,$A261,AJ$1))","v":""},{"$f":"IF($A261=\"N/A\",Ref!$B$36,INDEX(Ranks!$1:$1048576,$A261,AK$1))","v":""},{"$f":"IF($A261=\"N/A\",Ref!$B$36,INDEX(Ranks!$1:$1048576,$A261,AL$1))","v":""},{"$f":"IF($A261=\"N/A\",Ref!$B$36,INDEX(Ranks!$1:$1048576,$A261,AM$1))","v":""},{"$f":"IF($A261=\"N/A\",Ref!$B$36,INDEX(Ranks!$1:$1048576,$A261,AN$1))","v":""},{"$f":"IF($A261=\"N/A\",Ref!$B$36,INDEX(Ranks!$1:$1048576,$A261,AO$1))","v":""},{"$f":"IF($A261=\"N/A\",Ref!$B$36,INDEX(Ranks!$1:$1048576,$A261,AP$1))","v":""},{"$f":"IF($A261=\"N/A\",Ref!$B$36,INDEX(Ranks!$1:$1048576,$A261,AQ$1))","v":""},{"$f":"IF($A261=\"N/A\",Ref!$B$36,INDEX(Ranks!$1:$1048576,$A261,AR$1))","v":""},{"$f":"IF($A261=\"N/A\",Ref!$B$36,INDEX(Ranks!$1:$1048576,$A261,AS$1))","v":""},{"$f":"IF($A261=\"N/A\",Ref!$B$36,INDEX(Ranks!$1:$1048576,$A261,AT$1))","v":""},{"$f":"IF($A261=\"N/A\",Ref!$B$36,INDEX(Ranks!$1:$1048576,$A261,AU$1))","v":""},{"$f":"IF($A261=\"N/A\",Ref!$B$36,INDEX(Ranks!$1:$1048576,$A261,AV$1))","v":""},{"$f":"IF($A261=\"N/A\",Ref!$B$36,INDEX(Ranks!$1:$1048576,$A261,AW$1))","v":""},{"$f":"IF($A261=\"N/A\",Ref!$B$36,INDEX(Ranks!$1:$1048576,$A261,AX$1))","v":""},{"$f":"IF($A261=\"N/A\",Ref!$B$36,INDEX(Ranks!$1:$1048576,$A261,AY$1))","v":""},{"$f":"IF($A261=\"N/A\",Ref!$B$36,INDEX(Ranks!$1:$1048576,$A261,AZ$1))","v":""},{"$f":"IF($A261=\"N/A\",Ref!$B$36,INDEX(Ranks!$1:$1048576,$A261,BA$1))","v":""},{"$f":"IF($A261=\"N/A\",Ref!$B$36,INDEX(Ranks!$1:$1048576,$A261,BB$1))","v":""},{"$f":"IF($A261=\"N/A\",Ref!$B$36,INDEX(Ranks!$1:$1048576,$A261,BC$1))","v":""},{"$f":"IF($A261=\"N/A\",Ref!$B$36,INDEX(Ranks!$1:$1048576,$A261,BD$1))","v":""},{"$f":"IF($A261=\"N/A\",Ref!$B$36,INDEX(Ranks!$1:$1048576,$A261,BE$1))","v":""},{"$f":"IF($A261=\"N/A\",Ref!$B$36,INDEX(Ranks!$1:$1048576,$A261,BF$1))","v":""},{"$f":"IF($A261=\"N/A\",Ref!$B$36,INDEX(Ranks!$1:$1048576,$A261,BG$1))","v":""},{"$f":"IF($A261=\"N/A\",Ref!$B$36,INDEX(Ranks!$1:$1048576,$A261,BH$1))","v":""},{"$f":"IF($A261=\"N/A\",Ref!$B$36,INDEX(Ranks!$1:$1048576,$A261,BI$1))","v":""},{"$f":"IF($A261=\"N/A\",Ref!$B$36,INDEX(Ranks!$1:$1048576,$A261,BJ$1))","v":""},{"$f":"IF($A261=\"N/A\",Ref!$B$36,INDEX(Ranks!$1:$1048576,$A261,BK$1))","v":""},{"$f":"IF($A261=\"N/A\",Ref!$B$36,INDEX(Ranks!$1:$1048576,$A261,BL$1))","v":""},{"$f":"IF($A261=\"N/A\",Ref!$B$36,INDEX(Ranks!$1:$1048576,$A261,BM$1))","v":""},{"$f":"IF($A261=\"N/A\",Ref!$B$36,INDEX(Ranks!$1:$1048576,$A261,BN$1))","v":""},{"$f":"IF($A261=\"N/A\",Ref!$B$36,INDEX(Ranks!$1:$1048576,$A261,BO$1))","v":""},{"$f":"IF($A261=\"N/A\",Ref!$B$36,INDEX(Ranks!$1:$1048576,$A261,BP$1))","v":""},{"$f":"IF($A261=\"N/A\",Ref!$B$36,INDEX(Ranks!$1:$1048576,$A261,BQ$1))","v":""},{"$f":"IF($A261=\"N/A\",Ref!$B$36,INDEX(Ranks!$1:$1048576,$A261,BR$1))","v":""},{"$f":"IF($A261=\"N/A\",Ref!$B$36,INDEX(Ranks!$1:$1048576,$A261,BS$1))","v":""},{"$f":"IF($A261=\"N/A\",Ref!$B$36,INDEX(Ranks!$1:$1048576,$A261,BT$1))","v":""},{"$f":"IF($A261=\"N/A\",Ref!$B$36,INDEX(Ranks!$1:$1048576,$A261,BU$1))","v":""},{"$f":"IF($A261=\"N/A\",Ref!$B$36,INDEX(Ranks!$1:$1048576,$A261,BV$1))","v":""},{"$f":"IF($A261=\"N/A\",Ref!$B$36,INDEX(Ranks!$1:$1048576,$A261,BW$1))","v":""},{"$f":"IF($A261=\"N/A\",Ref!$B$36,INDEX(Ranks!$1:$1048576,$A261,BX$1))","v":""},{"$f":"IF($A261=\"N/A\",Ref!$B$36,INDEX(Ranks!$1:$1048576,$A261,BY$1))","v":""},{"$f":"IF($A261=\"N/A\",Ref!$B$36,INDEX(Ranks!$1:$1048576,$A261,BZ$1))","v":""},{"$f":"IF($A261=\"N/A\",Ref!$B$36,INDEX(Ranks!$1:$1048576,$A261,CA$1))","v":""},{"$f":"IF($A261=\"N/A\",Ref!$B$36,INDEX(Ranks!$1:$1048576,$A261,CB$1))","v":""},{"$f":"IF($A261=\"N/A\",Ref!$B$36,INDEX(Ranks!$1:$1048576,$A261,CC$1))","v":""},{"$f":"IF($A261=\"N/A\",Ref!$B$36,INDEX(Ranks!$1:$1048576,$A261,CD$1))","v":""},{"$f":"IF($A261=\"N/A\",Ref!$B$36,INDEX(Ranks!$1:$1048576,$A261,CE$1))","v":""},{"$f":"IF($A261=\"N/A\",Ref!$B$36,INDEX(Ranks!$1:$1048576,$A261,CF$1))","v":""},{"$f":"IF($A261=\"N/A\",Ref!$B$36,INDEX(Ranks!$1:$1048576,$A261,CG$1))","v":""},{"$f":"IF($A261=\"N/A\",Ref!$B$36,INDEX(Ranks!$1:$1048576,$A261,CH$1))","v":""},{"$f":"IF($A261=\"N/A\",Ref!$B$36,INDEX(Ranks!$1:$1048576,$A261,CI$1))","v":""},{"$f":"IF($A261=\"N/A\",Ref!$B$36,INDEX(Ranks!$1:$1048576,$A261,CJ$1))","v":""},{"$f":"IF($A261=\"N/A\",Ref!$B$36,INDEX(Ranks!$1:$1048576,$A261,CK$1))","v":""},{"$f":"IF($A261=\"N/A\",Ref!$B$36,INDEX(Ranks!$1:$1048576,$A261,CL$1))","v":""},{"$f":"IF($A261=\"N/A\",Ref!$B$36,INDEX(Ranks!$1:$1048576,$A261,CM$1))","v":""},{"$f":"IF($A261=\"N/A\",Ref!$B$36,INDEX(Ranks!$1:$1048576,$A261,CN$1))","v":""},{"$f":"IF($A261=\"N/A\",Ref!$B$36,INDEX(Ranks!$1:$1048576,$A261,CO$1))","v":""},{"$f":"IF($A261=\"N/A\",Ref!$B$36,INDEX(Ranks!$1:$1048576,$A261,CP$1))","v":""},{"$f":"IF($A261=\"N/A\",Ref!$B$36,INDEX(Ranks!$1:$1048576,$A261,CQ$1))","v":""},{"$f":"IF($A261=\"N/A\",Ref!$B$36,INDEX(Ranks!$1:$1048576,$A261,CR$1))","v":""},{"$f":"IF($A261=\"N/A\",Ref!$B$36,INDEX(Ranks!$1:$1048576,$A261,CS$1))","v":""},{"$f":"IF($A261=\"N/A\",Ref!$B$36,INDEX(Ranks!$1:$1048576,$A261,CT$1))","v":""},{"$f":"IF($A261=\"N/A\",Ref!$B$36,INDEX(Ranks!$1:$1048576,$A261,CU$1))","v":""},{"$f":"IF($A261=\"N/A\",Ref!$B$36,INDEX(Ranks!$1:$1048576,$A261,CV$1))","v":""},{"$f":"IF($A261=\"N/A\",Ref!$B$36,INDEX(Ranks!$1:$1048576,$A261,CW$1))","v":""},{"$f":"IF($A261=\"N/A\",Ref!$B$36,INDEX(Ranks!$1:$1048576,$A261,CX$1))","v":""},{"$f":"IF($A261=\"N/A\",Ref!$B$36,INDEX(Ranks!$1:$1048576,$A261,CY$1))","v":""},{"$f":"IF($A261=\"N/A\",Ref!$B$36,INDEX(Ranks!$1:$1048576,$A261,CZ$1))","v":""},{"$f":"IF($A261=\"N/A\",Ref!$B$36,INDEX(Ranks!$1:$1048576,$A261,DA$1))","v":""},{"$f":"IF($A261=\"N/A\",Ref!$B$36,INDEX(Ranks!$1:$1048576,$A261,DB$1))","v":""},{"$f":"IF($A261=\"N/A\",Ref!$B$36,INDEX(Ranks!$1:$1048576,$A261,DC$1))","v":""},{"$f":"IF($A261=\"N/A\",Ref!$B$36,INDEX(Ranks!$1:$1048576,$A261,DD$1))","v":""},{"$f":"IF($A261=\"N/A\",Ref!$B$36,INDEX(Ranks!$1:$1048576,$A261,DE$1))","v":""},{"$f":"IF($A261=\"N/A\",Ref!$B$36,INDEX(Ranks!$1:$1048576,$A261,DF$1))","v":""},{"$f":"IF($A261=\"N/A\",Ref!$B$36,INDEX(Ranks!$1:$1048576,$A261,DG$1))","v":""},{"$f":"IF($A261=\"N/A\",Ref!$B$36,INDEX(Ranks!$1:$1048576,$A261,DH$1))","v":""},{"$f":"IF($A261=\"N/A\",Ref!$B$36,INDEX(Ranks!$1:$1048576,$A261,DI$1))","v":""},{"$f":"IF($A261=\"N/A\",Ref!$B$36,INDEX(Ranks!$1:$1048576,$A261,DJ$1))","v":""},{"$f":"IF($A261=\"N/A\",Ref!$B$36,INDEX(Ranks!$1:$1048576,$A261,DK$1))","v":""},{"$f":"IF($A261=\"N/A\",Ref!$B$36,INDEX(Ranks!$1:$1048576,$A261,DL$1))","v":""},{"$f":"IF($A261=\"N/A\",Ref!$B$36,INDEX(Ranks!$1:$1048576,$A261,DM$1))","v":""},{"$f":"IF($A261=\"N/A\",Ref!$B$36,INDEX(Ranks!$1:$1048576,$A261,DN$1))","v":""},{"$f":"IF($A261=\"N/A\",Ref!$B$36,INDEX(Ranks!$1:$1048576,$A261,DO$1))","v":""},{"$f":"IF($A261=\"N/A\",Ref!$B$36,INDEX(Ranks!$1:$1048576,$A261,DP$1))","v":""},{"$f":"IF($A261=\"N/A\",Ref!$B$36,INDEX(Ranks!$1:$1048576,$A261,DQ$1))","v":""},{"$f":"IF($A261=\"N/A\",Ref!$B$36,INDEX(Ranks!$1:$1048576,$A261,DR$1))","v":""},{"$f":"IF($A261=\"N/A\",Ref!$B$36,INDEX(Ranks!$1:$1048576,$A261,DS$1))","v":""},{"$f":"IF($A261=\"N/A\",Ref!$B$36,INDEX(Ranks!$1:$1048576,$A261,DT$1))","v":""},{"$f":"IF($A261=\"N/A\",Ref!$B$36,INDEX(Ranks!$1:$1048576,$A261,DU$1))","v":""},{"$f":"IF($A261=\"N/A\",Ref!$B$36,INDEX(Ranks!$1:$1048576,$A261,DV$1))","v":""},{"$f":"IF($A261=\"N/A\",Ref!$B$36,INDEX(Ranks!$1:$1048576,$A261,DW$1))","v":""},{"$f":"IF($A261=\"N/A\",Ref!$B$36,INDEX(Ranks!$1:$1048576,$A261,DX$1))","v":""},{"$f":"IF($A261=\"N/A\",Ref!$B$36,INDEX(Ranks!$1:$1048576,$A261,DY$1))","v":""},{"$f":"IF($A261=\"N/A\",Ref!$B$36,INDEX(Ranks!$1:$1048576,$A261,DZ$1))","v":""},{"$f":"IF($A261=\"N/A\",Ref!$B$36,INDEX(Ranks!$1:$1048576,$A261,EA$1))","v":""},{"$f":"IF($A261=\"N/A\",Ref!$B$36,INDEX(Ranks!$1:$1048576,$A261,EB$1))","v":""}]
[{"$f":"IFERROR(MATCH('Portfolio Page'!L262,Ranks!L:L,0),\"N/A\")","v":"N/A"},null,{"$f":"IF($A262=\"N/A\",\"\",INDEX(Ranks!$1:$1048576,$A262,C$1))","v":""},{"$f":"IF($A262=\"N/A\",Ref!$B$36,INDEX(Ranks!$1:$1048576,$A262,D$1))","v":""},{"$f":"IF($A262=\"N/A\",Ref!$B$36,INDEX(Ranks!$1:$1048576,$A262,E$1))","v":""},{"$f":"IF($A262=\"N/A\",\"\",INDEX(Ranks!$1:$1048576,$A262,F$1))","v":""},{"$f":"IF($A262=\"N/A\",\"\",INDEX(Ranks!$1:$1048576,$A262,G$1))","v":""},{"$f":"IF($A262=\"N/A\",\"\",INDEX(Ranks!$1:$1048576,$A262,H$1))","v":""},{"$f":"IF($A262=\"N/A\",\"\",INDEX(Ranks!$1:$1048576,$A262,I$1))","v":""},{"$f":"IF($A262=\"N/A\",\"\",INDEX(Ranks!$1:$1048576,$A262,J$1))","v":""},{"$f":"IF($A262=\"N/A\",\"\",INDEX(Ranks!$1:$1048576,$A262,K$1))","v":""},null,{"$f":"IF($A262=\"N/A\",Ref!$B$36,INDEX(Ranks!$1:$1048576,$A262,M$1))","v":""},{"$f":"IF($A262=\"N/A\",Ref!$B$36,INDEX(Ranks!$1:$1048576,$A262,N$1))","v":""},{"$f":"IF($A262=\"N/A\",Ref!$B$36,INDEX(Ranks!$1:$1048576,$A262,O$1))","v":""},{"$f":"IF($A262=\"N/A\",Ref!$B$36,INDEX(Ranks!$1:$1048576,$A262,P$1))","v":""},{"$f":"IF($A262=\"N/A\",Ref!$B$36,INDEX(Ranks!$1:$1048576,$A262,Q$1))","v":""},{"$f":"IF($A262=\"N/A\",Ref!$B$36,INDEX(Ranks!$1:$1048576,$A262,R$1))","v":""},{"$f":"IF($A262=\"N/A\",Ref!$B$36,INDEX(Ranks!$1:$1048576,$A262,S$1))","v":""},{"$f":"IF($A262=\"N/A\",Ref!$B$36,INDEX(Ranks!$1:$1048576,$A262,T$1))","v":""},{"$f":"IF($A262=\"N/A\",Ref!$B$36,INDEX(Ranks!$1:$1048576,$A262,U$1))","v":""},{"$f":"IF($A262=\"N/A\",Ref!$B$36,INDEX(Ranks!$1:$1048576,$A262,V$1))","v":""},{"$f":"IF($A262=\"N/A\",Ref!$B$36,INDEX(Ranks!$1:$1048576,$A262,W$1))","v":""},{"$f":"IF($A262=\"N/A\",Ref!$B$36,INDEX(Ranks!$1:$1048576,$A262,X$1))","v":""},{"$f":"IF($A262=\"N/A\",Ref!$B$36,INDEX(Ranks!$1:$1048576,$A262,Y$1))","v":""},{"$f":"IF($A262=\"N/A\",Ref!$B$36,INDEX(Ranks!$1:$1048576,$A262,Z$1))","v":""},{"$f":"IF($A262=\"N/A\",Ref!$B$36,INDEX(Ranks!$1:$1048576,$A262,AA$1))","v":""},{"$f":"IF($A262=\"N/A\",Ref!$B$36,INDEX(Ranks!$1:$1048576,$A262,AB$1))","v":""},{"$f":"IF($A262=\"N/A\",Ref!$B$36,INDEX(Ranks!$1:$1048576,$A262,AC$1))","v":""},{"$f":"IF($A262=\"N/A\",Ref!$B$36,INDEX(Ranks!$1:$1048576,$A262,AD$1))","v":""},{"$f":"IF($A262=\"N/A\",Ref!$B$36,INDEX(Ranks!$1:$1048576,$A262,AE$1))","v":""},{"$f":"IF($A262=\"N/A\",Ref!$B$36,INDEX(Ranks!$1:$1048576,$A262,AF$1))","v":""},{"$f":"IF($A262=\"N/A\",Ref!$B$36,INDEX(Ranks!$1:$1048576,$A262,AG$1))","v":""},{"$f":"IF($A262=\"N/A\",Ref!$B$36,INDEX(Ranks!$1:$1048576,$A262,AH$1))","v":""},{"$f":"IF($A262=\"N/A\",Ref!$B$36,INDEX(Ranks!$1:$1048576,$A262,AI$1))","v":""},{"$f":"IF($A262=\"N/A\",Ref!$B$36,INDEX(Ranks!$1:$1048576,$A262,AJ$1))","v":""},{"$f":"IF($A262=\"N/A\",Ref!$B$36,INDEX(Ranks!$1:$1048576,$A262,AK$1))","v":""},{"$f":"IF($A262=\"N/A\",Ref!$B$36,INDEX(Ranks!$1:$1048576,$A262,AL$1))","v":""},{"$f":"IF($A262=\"N/A\",Ref!$B$36,INDEX(Ranks!$1:$1048576,$A262,AM$1))","v":""},{"$f":"IF($A262=\"N/A\",Ref!$B$36,INDEX(Ranks!$1:$1048576,$A262,AN$1))","v":""},{"$f":"IF($A262=\"N/A\",Ref!$B$36,INDEX(Ranks!$1:$1048576,$A262,AO$1))","v":""},{"$f":"IF($A262=\"N/A\",Ref!$B$36,INDEX(Ranks!$1:$1048576,$A262,AP$1))","v":""},{"$f":"IF($A262=\"N/A\",Ref!$B$36,INDEX(Ranks!$1:$1048576,$A262,AQ$1))","v":""},{"$f":"IF($A262=\"N/A\",Ref!$B$36,INDEX(Ranks!$1:$1048576,$A262,AR$1))","v":""},{"$f":"IF($A262=\"N/A\",Ref!$B$36,INDEX(Ranks!$1:$1048576,$A262,AS$1))","v":""},{"$f":"IF($A262=\"N/A\",Ref!$B$36,INDEX(Ranks!$1:$1048576,$A262,AT$1))","v":""},{"$f":"IF($A262=\"N/A\",Ref!$B$36,INDEX(Ranks!$1:$1048576,$A262,AU$1))","v":""},{"$f":"IF($A262=\"N/A\",Ref!$B$36,INDEX(Ranks!$1:$1048576,$A262,AV$1))","v":""},{"$f":"IF($A262=\"N/A\",Ref!$B$36,INDEX(Ranks!$1:$1048576,$A262,AW$1))","v":""},{"$f":"IF($A262=\"N/A\",Ref!$B$36,INDEX(Ranks!$1:$1048576,$A262,AX$1))","v":""},{"$f":"IF($A262=\"N/A\",Ref!$B$36,INDEX(Ranks!$1:$1048576,$A262,AY$1))","v":""},{"$f":"IF($A262=\"N/A\",Ref!$B$36,INDEX(Ranks!$1:$1048576,$A262,AZ$1))","v":""},{"$f":"IF($A262=\"N/A\",Ref!$B$36,INDEX(Ranks!$1:$1048576,$A262,BA$1))","v":""},{"$f":"IF($A262=\"N/A\",Ref!$B$36,INDEX(Ranks!$1:$1048576,$A262,BB$1))","v":""},{"$f":"IF($A262=\"N/A\",Ref!$B$36,INDEX(Ranks!$1:$1048576,$A262,BC$1))","v":""},{"$f":"IF($A262=\"N/A\",Ref!$B$36,INDEX(Ranks!$1:$1048576,$A262,BD$1))","v":""},{"$f":"IF($A262=\"N/A\",Ref!$B$36,INDEX(Ranks!$1:$1048576,$A262,BE$1))","v":""},{"$f":"IF($A262=\"N/A\",Ref!$B$36,INDEX(Ranks!$1:$1048576,$A262,BF$1))","v":""},{"$f":"IF($A262=\"N/A\",Ref!$B$36,INDEX(Ranks!$1:$1048576,$A262,BG$1))","v":""},{"$f":"IF($A262=\"N/A\",Ref!$B$36,INDEX(Ranks!$1:$1048576,$A262,BH$1))","v":""},{"$f":"IF($A262=\"N/A\",Ref!$B$36,INDEX(Ranks!$1:$1048576,$A262,BI$1))","v":""},{"$f":"IF($A262=\"N/A\",Ref!$B$36,INDEX(Ranks!$1:$1048576,$A262,BJ$1))","v":""},{"$f":"IF($A262=\"N/A\",Ref!$B$36,INDEX(Ranks!$1:$1048576,$A262,BK$1))","v":""},{"$f":"IF($A262=\"N/A\",Ref!$B$36,INDEX(Ranks!$1:$1048576,$A262,BL$1))","v":""},{"$f":"IF($A262=\"N/A\",Ref!$B$36,INDEX(Ranks!$1:$1048576,$A262,BM$1))","v":""},{"$f":"IF($A262=\"N/A\",Ref!$B$36,INDEX(Ranks!$1:$1048576,$A262,BN$1))","v":""},{"$f":"IF($A262=\"N/A\",Ref!$B$36,INDEX(Ranks!$1:$1048576,$A262,BO$1))","v":""},{"$f":"IF($A262=\"N/A\",Ref!$B$36,INDEX(Ranks!$1:$1048576,$A262,BP$1))","v":""},{"$f":"IF($A262=\"N/A\",Ref!$B$36,INDEX(Ranks!$1:$1048576,$A262,BQ$1))","v":""},{"$f":"IF($A262=\"N/A\",Ref!$B$36,INDEX(Ranks!$1:$1048576,$A262,BR$1))","v":""},{"$f":"IF($A262=\"N/A\",Ref!$B$36,INDEX(Ranks!$1:$1048576,$A262,BS$1))","v":""},{"$f":"IF($A262=\"N/A\",Ref!$B$36,INDEX(Ranks!$1:$1048576,$A262,BT$1))","v":""},{"$f":"IF($A262=\"N/A\",Ref!$B$36,INDEX(Ranks!$1:$1048576,$A262,BU$1))","v":""},{"$f":"IF($A262=\"N/A\",Ref!$B$36,INDEX(Ranks!$1:$1048576,$A262,BV$1))","v":""},{"$f":"IF($A262=\"N/A\",Ref!$B$36,INDEX(Ranks!$1:$1048576,$A262,BW$1))","v":""},{"$f":"IF($A262=\"N/A\",Ref!$B$36,INDEX(Ranks!$1:$1048576,$A262,BX$1))","v":""},{"$f":"IF($A262=\"N/A\",Ref!$B$36,INDEX(Ranks!$1:$1048576,$A262,BY$1))","v":""},{"$f":"IF($A262=\"N/A\",Ref!$B$36,INDEX(Ranks!$1:$1048576,$A262,BZ$1))","v":""},{"$f":"IF($A262=\"N/A\",Ref!$B$36,INDEX(Ranks!$1:$1048576,$A262,CA$1))","v":""},{"$f":"IF($A262=\"N/A\",Ref!$B$36,INDEX(Ranks!$1:$1048576,$A262,CB$1))","v":""},{"$f":"IF($A262=\"N/A\",Ref!$B$36,INDEX(Ranks!$1:$1048576,$A262,CC$1))","v":""},{"$f":"IF($A262=\"N/A\",Ref!$B$36,INDEX(Ranks!$1:$1048576,$A262,CD$1))","v":""},{"$f":"IF($A262=\"N/A\",Ref!$B$36,INDEX(Ranks!$1:$1048576,$A262,CE$1))","v":""},{"$f":"IF($A262=\"N/A\",Ref!$B$36,INDEX(Ranks!$1:$1048576,$A262,CF$1))","v":""},{"$f":"IF($A262=\"N/A\",Ref!$B$36,INDEX(Ranks!$1:$1048576,$A262,CG$1))","v":""},{"$f":"IF($A262=\"N/A\",Ref!$B$36,INDEX(Ranks!$1:$1048576,$A262,CH$1))","v":""},{"$f":"IF($A262=\"N/A\",Ref!$B$36,INDEX(Ranks!$1:$1048576,$A262,CI$1))","v":""},{"$f":"IF($A262=\"N/A\",Ref!$B$36,INDEX(Ranks!$1:$1048576,$A262,CJ$1))","v":""},{"$f":"IF($A262=\"N/A\",Ref!$B$36,INDEX(Ranks!$1:$1048576,$A262,CK$1))","v":""},{"$f":"IF($A262=\"N/A\",Ref!$B$36,INDEX(Ranks!$1:$1048576,$A262,CL$1))","v":""},{"$f":"IF($A262=\"N/A\",Ref!$B$36,INDEX(Ranks!$1:$1048576,$A262,CM$1))","v":""},{"$f":"IF($A262=\"N/A\",Ref!$B$36,INDEX(Ranks!$1:$1048576,$A262,CN$1))","v":""},{"$f":"IF($A262=\"N/A\",Ref!$B$36,INDEX(Ranks!$1:$1048576,$A262,CO$1))","v":""},{"$f":"IF($A262=\"N/A\",Ref!$B$36,INDEX(Ranks!$1:$1048576,$A262,CP$1))","v":""},{"$f":"IF($A262=\"N/A\",Ref!$B$36,INDEX(Ranks!$1:$1048576,$A262,CQ$1))","v":""},{"$f":"IF($A262=\"N/A\",Ref!$B$36,INDEX(Ranks!$1:$1048576,$A262,CR$1))","v":""},{"$f":"IF($A262=\"N/A\",Ref!$B$36,INDEX(Ranks!$1:$1048576,$A262,CS$1))","v":""},{"$f":"IF($A262=\"N/A\",Ref!$B$36,INDEX(Ranks!$1:$1048576,$A262,CT$1))","v":""},{"$f":"IF($A262=\"N/A\",Ref!$B$36,INDEX(Ranks!$1:$1048576,$A262,CU$1))","v":""},{"$f":"IF($A262=\"N/A\",Ref!$B$36,INDEX(Ranks!$1:$1048576,$A262,CV$1))","v":""},{"$f":"IF($A262=\"N/A\",Ref!$B$36,INDEX(Ranks!$1:$1048576,$A262,CW$1))","v":""},{"$f":"IF($A262=\"N/A\",Ref!$B$36,INDEX(Ranks!$1:$1048576,$A262,CX$1))","v":""},{"$f":"IF($A262=\"N/A\",Ref!$B$36,INDEX(Ranks!$1:$1048576,$A262,CY$1))","v":""},{"$f":"IF($A262=\"N/A\",Ref!$B$36,INDEX(Ranks!$1:$1048576,$A262,CZ$1))","v":""},{"$f":"IF($A262=\"N/A\",Ref!$B$36,INDEX(Ranks!$1:$1048576,$A262,DA$1))","v":""},{"$f":"IF($A262=\"N/A\",Ref!$B$36,INDEX(Ranks!$1:$1048576,$A262,DB$1))","v":""},{"$f":"IF($A262=\"N/A\",Ref!$B$36,INDEX(Ranks!$1:$1048576,$A262,DC$1))","v":""},{"$f":"IF($A262=\"N/A\",Ref!$B$36,INDEX(Ranks!$1:$1048576,$A262,DD$1))","v":""},{"$f":"IF($A262=\"N/A\",Ref!$B$36,INDEX(Ranks!$1:$1048576,$A262,DE$1))","v":""},{"$f":"IF($A262=\"N/A\",Ref!$B$36,INDEX(Ranks!$1:$1048576,$A262,DF$1))","v":""},{"$f":"IF($A262=\"N/A\",Ref!$B$36,INDEX(Ranks!$1:$1048576,$A262,DG$1))","v":""},{"$f":"IF($A262=\"N/A\",Ref!$B$36,INDEX(Ranks!$1:$1048576,$A262,DH$1))","v":""},{"$f":"IF($A262=\"N/A\",Ref!$B$36,INDEX(Ranks!$1:$1048576,$A262,DI$1))","v":""},{"$f":"IF($A262=\"N/A\",Ref!$B$36,INDEX(Ranks!$1:$1048576,$A262,DJ$1))","v":""},{"$f":"IF($A262=\"N/A\",Ref!$B$36,INDEX(Ranks!$1:$1048576,$A262,DK$1))","v":""},{"$f":"IF($A262=\"N/A\",Ref!$B$36,INDEX(Ranks!$1:$1048576,$A262,DL$1))","v":""},{"$f":"IF($A262=\"N/A\",Ref!$B$36,INDEX(Ranks!$1:$1048576,$A262,DM$1))","v":""},{"$f":"IF($A262=\"N/A\",Ref!$B$36,INDEX(Ranks!$1:$1048576,$A262,DN$1))","v":""},{"$f":"IF($A262=\"N/A\",Ref!$B$36,INDEX(Ranks!$1:$1048576,$A262,DO$1))","v":""},{"$f":"IF($A262=\"N/A\",Ref!$B$36,INDEX(Ranks!$1:$1048576,$A262,DP$1))","v":""},{"$f":"IF($A262=\"N/A\",Ref!$B$36,INDEX(Ranks!$1:$1048576,$A262,DQ$1))","v":""},{"$f":"IF($A262=\"N/A\",Ref!$B$36,INDEX(Ranks!$1:$1048576,$A262,DR$1))","v":""},{"$f":"IF($A262=\"N/A\",Ref!$B$36,INDEX(Ranks!$1:$1048576,$A262,DS$1))","v":""},{"$f":"IF($A262=\"N/A\",Ref!$B$36,INDEX(Ranks!$1:$1048576,$A262,DT$1))","v":""},{"$f":"IF($A262=\"N/A\",Ref!$B$36,INDEX(Ranks!$1:$1048576,$A262,DU$1))","v":""},{"$f":"IF($A262=\"N/A\",Ref!$B$36,INDEX(Ranks!$1:$1048576,$A262,DV$1))","v":""},{"$f":"IF($A262=\"N/A\",Ref!$B$36,INDEX(Ranks!$1:$1048576,$A262,DW$1))","v":""},{"$f":"IF($A262=\"N/A\",Ref!$B$36,INDEX(Ranks!$1:$1048576,$A262,DX$1))","v":""},{"$f":"IF($A262=\"N/A\",Ref!$B$36,INDEX(Ranks!$1:$1048576,$A262,DY$1))","v":""},{"$f":"IF($A262=\"N/A\",Ref!$B$36,INDEX(Ranks!$1:$1048576,$A262,DZ$1))","v":""},{"$f":"IF($A262=\"N/A\",Ref!$B$36,INDEX(Ranks!$1:$1048576,$A262,EA$1))","v":""},{"$f":"IF($A262=\"N/A\",Ref!$B$36,INDEX(Ranks!$1:$1048576,$A262,EB$1))","v":""}]
[{"$f":"IFERROR(MATCH('Portfolio Page'!L263,Ranks!L:L,0),\"N/A\")","v":"N/A"},null,{"$f":"IF($A263=\"N/A\",\"\",INDEX(Ranks!$1:$1048576,$A263,C$1))","v":""},{"$f":"IF($A263=\"N/A\",Ref!$B$36,INDEX(Ranks!$1:$1048576,$A263,D$1))","v":""},{"$f":"IF($A263=\"N/A\",Ref!$B$36,INDEX(Ranks!$1:$1048576,$A263,E$1))","v":""},{"$f":"IF($A263=\"N/A\",\"\",INDEX(Ranks!$1:$1048576,$A263,F$1))","v":""},{"$f":"IF($A263=\"N/A\",\"\",INDEX(Ranks!$1:$1048576,$A263,G$1))","v":""},{"$f":"IF($A263=\"N/A\",\"\",INDEX(Ranks!$1:$1048576,$A263,H$1))","v":""},{"$f":"IF($A263=\"N/A\",\"\",INDEX(Ranks!$1:$1048576,$A263,I$1))","v":""},{"$f":"IF($A263=\"N/A\",\"\",INDEX(Ranks!$1:$1048576,$A263,J$1))","v":""},{"$f":"IF($A263=\"N/A\",\"\",INDEX(Ranks!$1:$1048576,$A263,K$1))","v":""},null,{"$f":"IF($A263=\"N/A\",Ref!$B$36,INDEX(Ranks!$1:$1048576,$A263,M$1))","v":""},{"$f":"IF($A263=\"N/A\",Ref!$B$36,INDEX(Ranks!$1:$1048576,$A263,N$1))","v":""},{"$f":"IF($A263=\"N/A\",Ref!$B$36,INDEX(Ranks!$1:$1048576,$A263,O$1))","v":""},{"$f":"IF($A263=\"N/A\",Ref!$B$36,INDEX(Ranks!$1:$1048576,$A263,P$1))","v":""},{"$f":"IF($A263=\"N/A\",Ref!$B$36,INDEX(Ranks!$1:$1048576,$A263,Q$1))","v":""},{"$f":"IF($A263=\"N/A\",Ref!$B$36,INDEX(Ranks!$1:$1048576,$A263,R$1))","v":""},{"$f":"IF($A263=\"N/A\",Ref!$B$36,INDEX(Ranks!$1:$1048576,$A263,S$1))","v":""},{"$f":"IF($A263=\"N/A\",Ref!$B$36,INDEX(Ranks!$1:$1048576,$A263,T$1))","v":""},{"$f":"IF($A263=\"N/A\",Ref!$B$36,INDEX(Ranks!$1:$1048576,$A263,U$1))","v":""},{"$f":"IF($A263=\"N/A\",Ref!$B$36,INDEX(Ranks!$1:$1048576,$A263,V$1))","v":""},{"$f":"IF($A263=\"N/A\",Ref!$B$36,INDEX(Ranks!$1:$1048576,$A263,W$1))","v":""},{"$f":"IF($A263=\"N/A\",Ref!$B$36,INDEX(Ranks!$1:$1048576,$A263,X$1))","v":""},{"$f":"IF($A263=\"N/A\",Ref!$B$36,INDEX(Ranks!$1:$1048576,$A263,Y$1))","v":""},{"$f":"IF($A263=\"N/A\",Ref!$B$36,INDEX(Ranks!$1:$1048576,$A263,Z$1))","v":""},{"$f":"IF($A263=\"N/A\",Ref!$B$36,INDEX(Ranks!$1:$1048576,$A263,AA$1))","v":""},{"$f":"IF($A263=\"N/A\",Ref!$B$36,INDEX(Ranks!$1:$1048576,$A263,AB$1))","v":""},{"$f":"IF($A263=\"N/A\",Ref!$B$36,INDEX(Ranks!$1:$1048576,$A263,AC$1))","v":""},{"$f":"IF($A263=\"N/A\",Ref!$B$36,INDEX(Ranks!$1:$1048576,$A263,AD$1))","v":""},{"$f":"IF($A263=\"N/A\",Ref!$B$36,INDEX(Ranks!$1:$1048576,$A263,AE$1))","v":""},{"$f":"IF($A263=\"N/A\",Ref!$B$36,INDEX(Ranks!$1:$1048576,$A263,AF$1))","v":""},{"$f":"IF($A263=\"N/A\",Ref!$B$36,INDEX(Ranks!$1:$1048576,$A263,AG$1))","v":""},{"$f":"IF($A263=\"N/A\",Ref!$B$36,INDEX(Ranks!$1:$1048576,$A263,AH$1))","v":""},{"$f":"IF($A263=\"N/A\",Ref!$B$36,INDEX(Ranks!$1:$1048576,$A263,AI$1))","v":""},{"$f":"IF($A263=\"N/A\",Ref!$B$36,INDEX(Ranks!$1:$1048576,$A263,AJ$1))","v":""},{"$f":"IF($A263=\"N/A\",Ref!$B$36,INDEX(Ranks!$1:$1048576,$A263,AK$1))","v":""},{"$f":"IF($A263=\"N/A\",Ref!$B$36,INDEX(Ranks!$1:$1048576,$A263,AL$1))","v":""},{"$f":"IF($A263=\"N/A\",Ref!$B$36,INDEX(Ranks!$1:$1048576,$A263,AM$1))","v":""},{"$f":"IF($A263=\"N/A\",Ref!$B$36,INDEX(Ranks!$1:$1048576,$A263,AN$1))","v":""},{"$f":"IF($A263=\"N/A\",Ref!$B$36,INDEX(Ranks!$1:$1048576,$A263,AO$1))","v":""},{"$f":"IF($A263=\"N/A\",Ref!$B$36,INDEX(Ranks!$1:$1048576,$A263,AP$1))","v":""},{"$f":"IF($A263=\"N/A\",Ref!$B$36,INDEX(Ranks!$1:$1048576,$A263,AQ$1))","v":""},{"$f":"IF($A263=\"N/A\",Ref!$B$36,INDEX(Ranks!$1:$1048576,$A263,AR$1))","v":""},{"$f":"IF($A263=\"N/A\",Ref!$B$36,INDEX(Ranks!$1:$1048576,$A263,AS$1))","v":""},{"$f":"IF($A263=\"N/A\",Ref!$B$36,INDEX(Ranks!$1:$1048576,$A263,AT$1))","v":""},{"$f":"IF($A263=\"N/A\",Ref!$B$36,INDEX(Ranks!$1:$1048576,$A263,AU$1))","v":""},{"$f":"IF($A263=\"N/A\",Ref!$B$36,INDEX(Ranks!$1:$1048576,$A263,AV$1))","v":""},{"$f":"IF($A263=\"N/A\",Ref!$B$36,INDEX(Ranks!$1:$1048576,$A263,AW$1))","v":""},{"$f":"IF($A263=\"N/A\",Ref!$B$36,INDEX(Ranks!$1:$1048576,$A263,AX$1))","v":""},{"$f":"IF($A263=\"N/A\",Ref!$B$36,INDEX(Ranks!$1:$1048576,$A263,AY$1))","v":""},{"$f":"IF($A263=\"N/A\",Ref!$B$36,INDEX(Ranks!$1:$1048576,$A263,AZ$1))","v":""},{"$f":"IF($A263=\"N/A\",Ref!$B$36,INDEX(Ranks!$1:$1048576,$A263,BA$1))","v":""},{"$f":"IF($A263=\"N/A\",Ref!$B$36,INDEX(Ranks!$1:$1048576,$A263,BB$1))","v":""},{"$f":"IF($A263=\"N/A\",Ref!$B$36,INDEX(Ranks!$1:$1048576,$A263,BC$1))","v":""},{"$f":"IF($A263=\"N/A\",Ref!$B$36,INDEX(Ranks!$1:$1048576,$A263,BD$1))","v":""},{"$f":"IF($A263=\"N/A\",Ref!$B$36,INDEX(Ranks!$1:$1048576,$A263,BE$1))","v":""},{"$f":"IF($A263=\"N/A\",Ref!$B$36,INDEX(Ranks!$1:$1048576,$A263,BF$1))","v":""},{"$f":"IF($A263=\"N/A\",Ref!$B$36,INDEX(Ranks!$1:$1048576,$A263,BG$1))","v":""},{"$f":"IF($A263=\"N/A\",Ref!$B$36,INDEX(Ranks!$1:$1048576,$A263,BH$1))","v":""},{"$f":"IF($A263=\"N/A\",Ref!$B$36,INDEX(Ranks!$1:$1048576,$A263,BI$1))","v":""},{"$f":"IF($A263=\"N/A\",Ref!$B$36,INDEX(Ranks!$1:$1048576,$A263,BJ$1))","v":""},{"$f":"IF($A263=\"N/A\",Ref!$B$36,INDEX(Ranks!$1:$1048576,$A263,BK$1))","v":""},{"$f":"IF($A263=\"N/A\",Ref!$B$36,INDEX(Ranks!$1:$1048576,$A263,BL$1))","v":""},{"$f":"IF($A263=\"N/A\",Ref!$B$36,INDEX(Ranks!$1:$1048576,$A263,BM$1))","v":""},{"$f":"IF($A263=\"N/A\",Ref!$B$36,INDEX(Ranks!$1:$1048576,$A263,BN$1))","v":""},{"$f":"IF($A263=\"N/A\",Ref!$B$36,INDEX(Ranks!$1:$1048576,$A263,BO$1))","v":""},{"$f":"IF($A263=\"N/A\",Ref!$B$36,INDEX(Ranks!$1:$1048576,$A263,BP$1))","v":""},{"$f":"IF($A263=\"N/A\",Ref!$B$36,INDEX(Ranks!$1:$1048576,$A263,BQ$1))","v":""},{"$f":"IF($A263=\"N/A\",Ref!$B$36,INDEX(Ranks!$1:$1048576,$A263,BR$1))","v":""},{"$f":"IF($A263=\"N/A\",Ref!$B$36,INDEX(Ranks!$1:$1048576,$A263,BS$1))","v":""},{"$f":"IF($A263=\"N/A\",Ref!$B$36,INDEX(Ranks!$1:$1048576,$A263,BT$1))","v":""},{"$f":"IF($A263=\"N/A\",Ref!$B$36,INDEX(Ranks!$1:$1048576,$A263,BU$1))","v":""},{"$f":"IF($A263=\"N/A\",Ref!$B$36,INDEX(Ranks!$1:$1048576,$A263,BV$1))","v":""},{"$f":"IF($A263=\"N/A\",Ref!$B$36,INDEX(Ranks!$1:$1048576,$A263,BW$1))","v":""},{"$f":"IF($A263=\"N/A\",Ref!$B$36,INDEX(Ranks!$1:$1048576,$A263,BX$1))","v":""},{"$f":"IF($A263=\"N/A\",Ref!$B$36,INDEX(Ranks!$1:$1048576,$A263,BY$1))","v":""},{"$f":"IF($A263=\"N/A\",Ref!$B$36,INDEX(Ranks!$1:$1048576,$A263,BZ$1))","v":""},{"$f":"IF($A263=\"N/A\",Ref!$B$36,INDEX(Ranks!$1:$1048576,$A263,CA$1))","v":""},{"$f":"IF($A263=\"N/A\",Ref!$B$36,INDEX(Ranks!$1:$1048576,$A263,CB$1))","v":""},{"$f":"IF($A263=\"N/A\",Ref!$B$36,INDEX(Ranks!$1:$1048576,$A263,CC$1))","v":""},{"$f":"IF($A263=\"N/A\",Ref!$B$36,INDEX(Ranks!$1:$1048576,$A263,CD$1))","v":""},{"$f":"IF($A263=\"N/A\",Ref!$B$36,INDEX(Ranks!$1:$1048576,$A263,CE$1))","v":""},{"$f":"IF($A263=\"N/A\",Ref!$B$36,INDEX(Ranks!$1:$1048576,$A263,CF$1))","v":""},{"$f":"IF($A263=\"N/A\",Ref!$B$36,INDEX(Ranks!$1:$1048576,$A263,CG$1))","v":""},{"$f":"IF($A263=\"N/A\",Ref!$B$36,INDEX(Ranks!$1:$1048576,$A263,CH$1))","v":""},{"$f":"IF($A263=\"N/A\",Ref!$B$36,INDEX(Ranks!$1:$1048576,$A263,CI$1))","v":""},{"$f":"IF($A263=\"N/A\",Ref!$B$36,INDEX(Ranks!$1:$1048576,$A263,CJ$1))","v":""},{"$f":"IF($A263=\"N/A\",Ref!$B$36,INDEX(Ranks!$1:$1048576,$A263,CK$1))","v":""},{"$f":"IF($A263=\"N/A\",Ref!$B$36,INDEX(Ranks!$1:$1048576,$A263,CL$1))","v":""},{"$f":"IF($A263=\"N/A\",Ref!$B$36,INDEX(Ranks!$1:$1048576,$A263,CM$1))","v":""},{"$f":"IF($A263=\"N/A\",Ref!$B$36,INDEX(Ranks!$1:$1048576,$A263,CN$1))","v":""},{"$f":"IF($A263=\"N/A\",Ref!$B$36,INDEX(Ranks!$1:$1048576,$A263,CO$1))","v":""},{"$f":"IF($A263=\"N/A\",Ref!$B$36,INDEX(Ranks!$1:$1048576,$A263,CP$1))","v":""},{"$f":"IF($A263=\"N/A\",Ref!$B$36,INDEX(Ranks!$1:$1048576,$A263,CQ$1))","v":""},{"$f":"IF($A263=\"N/A\",Ref!$B$36,INDEX(Ranks!$1:$1048576,$A263,CR$1))","v":""},{"$f":"IF($A263=\"N/A\",Ref!$B$36,INDEX(Ranks!$1:$1048576,$A263,CS$1))","v":""},{"$f":"IF($A263=\"N/A\",Ref!$B$36,INDEX(Ranks!$1:$1048576,$A263,CT$1))","v":""},{"$f":"IF($A263=\"N/A\",Ref!$B$36,INDEX(Ranks!$1:$1048576,$A263,CU$1))","v":""},{"$f":"IF($A263=\"N/A\",Ref!$B$36,INDEX(Ranks!$1:$1048576,$A263,CV$1))","v":""},{"$f":"IF($A263=\"N/A\",Ref!$B$36,INDEX(Ranks!$1:$1048576,$A263,CW$1))","v":""},{"$f":"IF($A263=\"N/A\",Ref!$B$36,INDEX(Ranks!$1:$1048576,$A263,CX$1))","v":""},{"$f":"IF($A263=\"N/A\",Ref!$B$36,INDEX(Ranks!$1:$1048576,$A263,CY$1))","v":""},{"$f":"IF($A263=\"N/A\",Ref!$B$36,INDEX(Ranks!$1:$1048576,$A263,CZ$1))","v":""},{"$f":"IF($A263=\"N/A\",Ref!$B$36,INDEX(Ranks!$1:$1048576,$A263,DA$1))","v":""},{"$f":"IF($A263=\"N/A\",Ref!$B$36,INDEX(Ranks!$1:$1048576,$A263,DB$1))","v":""},{"$f":"IF($A263=\"N/A\",Ref!$B$36,INDEX(Ranks!$1:$1048576,$A263,DC$1))","v":""},{"$f":"IF($A263=\"N/A\",Ref!$B$36,INDEX(Ranks!$1:$1048576,$A263,DD$1))","v":""},{"$f":"IF($A263=\"N/A\",Ref!$B$36,INDEX(Ranks!$1:$1048576,$A263,DE$1))","v":""},{"$f":"IF($A263=\"N/A\",Ref!$B$36,INDEX(Ranks!$1:$1048576,$A263,DF$1))","v":""},{"$f":"IF($A263=\"N/A\",Ref!$B$36,INDEX(Ranks!$1:$1048576,$A263,DG$1))","v":""},{"$f":"IF($A263=\"N/A\",Ref!$B$36,INDEX(Ranks!$1:$1048576,$A263,DH$1))","v":""},{"$f":"IF($A263=\"N/A\",Ref!$B$36,INDEX(Ranks!$1:$1048576,$A263,DI$1))","v":""},{"$f":"IF($A263=\"N/A\",Ref!$B$36,INDEX(Ranks!$1:$1048576,$A263,DJ$1))","v":""},{"$f":"IF($A263=\"N/A\",Ref!$B$36,INDEX(Ranks!$1:$1048576,$A263,DK$1))","v":""},{"$f":"IF($A263=\"N/A\",Ref!$B$36,INDEX(Ranks!$1:$1048576,$A263,DL$1))","v":""},{"$f":"IF($A263=\"N/A\",Ref!$B$36,INDEX(Ranks!$1:$1048576,$A263,DM$1))","v":""},{"$f":"IF($A263=\"N/A\",Ref!$B$36,INDEX(Ranks!$1:$1048576,$A263,DN$1))","v":""},{"$f":"IF($A263=\"N/A\",Ref!$B$36,INDEX(Ranks!$1:$1048576,$A263,DO$1))","v":""},{"$f":"IF($A263=\"N/A\",Ref!$B$36,INDEX(Ranks!$1:$1048576,$A263,DP$1))","v":""},{"$f":"IF($A263=\"N/A\",Ref!$B$36,INDEX(Ranks!$1:$1048576,$A263,DQ$1))","v":""},{"$f":"IF($A263=\"N/A\",Ref!$B$36,INDEX(Ranks!$1:$1048576,$A263,DR$1))","v":""},{"$f":"IF($A263=\"N/A\",Ref!$B$36,INDEX(Ranks!$1:$1048576,$A263,DS$1))","v":""},{"$f":"IF($A263=\"N/A\",Ref!$B$36,INDEX(Ranks!$1:$1048576,$A263,DT$1))","v":""},{"$f":"IF($A263=\"N/A\",Ref!$B$36,INDEX(Ranks!$1:$1048576,$A263,DU$1))","v":""},{"$f":"IF($A263=\"N/A\",Ref!$B$36,INDEX(Ranks!$1:$1048576,$A263,DV$1))","v":""},{"$f":"IF($A263=\"N/A\",Ref!$B$36,INDEX(Ranks!$1:$1048576,$A263,DW$1))","v":""},{"$f":"IF($A263=\"N/A\",Ref!$B$36,INDEX(Ranks!$1:$1048576,$A263,DX$1))","v":""},{"$f":"IF($A263=\"N/A\",Ref!$B$36,INDEX(Ranks!$1:$1048576,$A263,DY$1))","v":""},{"$f":"IF($A263=\"N/A\",Ref!$B$36,INDEX(Ranks!$1:$1048576,$A263,DZ$1))","v":""},{"$f":"IF($A263=\"N/A\",Ref!$B$36,INDEX(Ranks!$1:$1048576,$A263,EA$1))","v":""},{"$f":"IF($A263=\"N/A\",Ref!$B$36,INDEX(Ranks!$1:$1048576,$A263,EB$1))","v":""}]
[{"$f":"IFERROR(MATCH('Portfolio Page'!L264,Ranks!L:L,0),\"N/A\")","v":"N/A"},null,{"$f":"IF($A264=\"N/A\",\"\",INDEX(Ranks!$1:$1048576,$A264,C$1))","v":""},{"$f":"IF($A264=\"N/A\",Ref!$B$36,INDEX(Ranks!$1:$1048576,$A264,D$1))","v":""},{"$f":"IF($A264=\"N/A\",Ref!$B$36,INDEX(Ranks!$1:$1048576,$A264,E$1))","v":""},{"$f":"IF($A264=\"N/A\",\"\",INDEX(Ranks!$1:$1048576,$A264,F$1))","v":""},{"$f":"IF($A264=\"N/A\",\"\",INDEX(Ranks!$1:$1048576,$A264,G$1))","v":""},{"$f":"IF($A264=\"N/A\",\"\",INDEX(Ranks!$1:$1048576,$A264,H$1))","v":""},{"$f":"IF($A264=\"N/A\",\"\",INDEX(Ranks!$1:$1048576,$A264,I$1))","v":""},{"$f":"IF($A264=\"N/A\",\"\",INDEX(Ranks!$1:$1048576,$A264,J$1))","v":""},{"$f":"IF($A264=\"N/A\",\"\",INDEX(Ranks!$1:$1048576,$A264,K$1))","v":""},null,{"$f":"IF($A264=\"N/A\",Ref!$B$36,INDEX(Ranks!$1:$1048576,$A264,M$1))","v":""},{"$f":"IF($A264=\"N/A\",Ref!$B$36,INDEX(Ranks!$1:$1048576,$A264,N$1))","v":""},{"$f":"IF($A264=\"N/A\",Ref!$B$36,INDEX(Ranks!$1:$1048576,$A264,O$1))","v":""},{"$f":"IF($A264=\"N/A\",Ref!$B$36,INDEX(Ranks!$1:$1048576,$A264,P$1))","v":""},{"$f":"IF($A264=\"N/A\",Ref!$B$36,INDEX(Ranks!$1:$1048576,$A264,Q$1))","v":""},{"$f":"IF($A264=\"N/A\",Ref!$B$36,INDEX(Ranks!$1:$1048576,$A264,R$1))","v":""},{"$f":"IF($A264=\"N/A\",Ref!$B$36,INDEX(Ranks!$1:$1048576,$A264,S$1))","v":""},{"$f":"IF($A264=\"N/A\",Ref!$B$36,INDEX(Ranks!$1:$1048576,$A264,T$1))","v":""},{"$f":"IF($A264=\"N/A\",Ref!$B$36,INDEX(Ranks!$1:$1048576,$A264,U$1))","v":""},{"$f":"IF($A264=\"N/A\",Ref!$B$36,INDEX(Ranks!$1:$1048576,$A264,V$1))","v":""},{"$f":"IF($A264=\"N/A\",Ref!$B$36,INDEX(Ranks!$1:$1048576,$A264,W$1))","v":""},{"$f":"IF($A264=\"N/A\",Ref!$B$36,INDEX(Ranks!$1:$1048576,$A264,X$1))","v":""},{"$f":"IF($A264=\"N/A\",Ref!$B$36,INDEX(Ranks!$1:$1048576,$A264,Y$1))","v":""},{"$f":"IF($A264=\"N/A\",Ref!$B$36,INDEX(Ranks!$1:$1048576,$A264,Z$1))","v":""},{"$f":"IF($A264=\"N/A\",Ref!$B$36,INDEX(Ranks!$1:$1048576,$A264,AA$1))","v":""},{"$f":"IF($A264=\"N/A\",Ref!$B$36,INDEX(Ranks!$1:$1048576,$A264,AB$1))","v":""},{"$f":"IF($A264=\"N/A\",Ref!$B$36,INDEX(Ranks!$1:$1048576,$A264,AC$1))","v":""},{"$f":"IF($A264=\"N/A\",Ref!$B$36,INDEX(Ranks!$1:$1048576,$A264,AD$1))","v":""},{"$f":"IF($A264=\"N/A\",Ref!$B$36,INDEX(Ranks!$1:$1048576,$A264,AE$1))","v":""},{"$f":"IF($A264=\"N/A\",Ref!$B$36,INDEX(Ranks!$1:$1048576,$A264,AF$1))","v":""},{"$f":"IF($A264=\"N/A\",Ref!$B$36,INDEX(Ranks!$1:$1048576,$A264,AG$1))","v":""},{"$f":"IF($A264=\"N/A\",Ref!$B$36,INDEX(Ranks!$1:$1048576,$A264,AH$1))","v":""},{"$f":"IF($A264=\"N/A\",Ref!$B$36,INDEX(Ranks!$1:$1048576,$A264,AI$1))","v":""},{"$f":"IF($A264=\"N/A\",Ref!$B$36,INDEX(Ranks!$1:$1048576,$A264,AJ$1))","v":""},{"$f":"IF($A264=\"N/A\",Ref!$B$36,INDEX(Ranks!$1:$1048576,$A264,AK$1))","v":""},{"$f":"IF($A264=\"N/A\",Ref!$B$36,INDEX(Ranks!$1:$1048576,$A264,AL$1))","v":""},{"$f":"IF($A264=\"N/A\",Ref!$B$36,INDEX(Ranks!$1:$1048576,$A264,AM$1))","v":""},{"$f":"IF($A264=\"N/A\",Ref!$B$36,INDEX(Ranks!$1:$1048576,$A264,AN$1))","v":""},{"$f":"IF($A264=\"N/A\",Ref!$B$36,INDEX(Ranks!$1:$1048576,$A264,AO$1))","v":""},{"$f":"IF($A264=\"N/A\",Ref!$B$36,INDEX(Ranks!$1:$1048576,$A264,AP$1))","v":""},{"$f":"IF($A264=\"N/A\",Ref!$B$36,INDEX(Ranks!$1:$1048576,$A264,AQ$1))","v":""},{"$f":"IF($A264=\"N/A\",Ref!$B$36,INDEX(Ranks!$1:$1048576,$A264,AR$1))","v":""},{"$f":"IF($A264=\"N/A\",Ref!$B$36,INDEX(Ranks!$1:$1048576,$A264,AS$1))","v":""},{"$f":"IF($A264=\"N/A\",Ref!$B$36,INDEX(Ranks!$1:$1048576,$A264,AT$1))","v":""},{"$f":"IF($A264=\"N/A\",Ref!$B$36,INDEX(Ranks!$1:$1048576,$A264,AU$1))","v":""},{"$f":"IF($A264=\"N/A\",Ref!$B$36,INDEX(Ranks!$1:$1048576,$A264,AV$1))","v":""},{"$f":"IF($A264=\"N/A\",Ref!$B$36,INDEX(Ranks!$1:$1048576,$A264,AW$1))","v":""},{"$f":"IF($A264=\"N/A\",Ref!$B$36,INDEX(Ranks!$1:$1048576,$A264,AX$1))","v":""},{"$f":"IF($A264=\"N/A\",Ref!$B$36,INDEX(Ranks!$1:$1048576,$A264,AY$1))","v":""},{"$f":"IF($A264=\"N/A\",Ref!$B$36,INDEX(Ranks!$1:$1048576,$A264,AZ$1))","v":""},{"$f":"IF($A264=\"N/A\",Ref!$B$36,INDEX(Ranks!$1:$1048576,$A264,BA$1))","v":""},{"$f":"IF($A264=\"N/A\",Ref!$B$36,INDEX(Ranks!$1:$1048576,$A264,BB$1))","v":""},{"$f":"IF($A264=\"N/A\",Ref!$B$36,INDEX(Ranks!$1:$1048576,$A264,BC$1))","v":""},{"$f":"IF($A264=\"N/A\",Ref!$B$36,INDEX(Ranks!$1:$1048576,$A264,BD$1))","v":""},{"$f":"IF($A264=\"N/A\",Ref!$B$36,INDEX(Ranks!$1:$1048576,$A264,BE$1))","v":""},{"$f":"IF($A264=\"N/A\",Ref!$B$36,INDEX(Ranks!$1:$1048576,$A264,BF$1))","v":""},{"$f":"IF($A264=\"N/A\",Ref!$B$36,INDEX(Ranks!$1:$1048576,$A264,BG$1))","v":""},{"$f":"IF($A264=\"N/A\",Ref!$B$36,INDEX(Ranks!$1:$1048576,$A264,BH$1))","v":""},{"$f":"IF($A264=\"N/A\",Ref!$B$36,INDEX(Ranks!$1:$1048576,$A264,BI$1))","v":""},{"$f":"IF($A264=\"N/A\",Ref!$B$36,INDEX(Ranks!$1:$1048576,$A264,BJ$1))","v":""},{"$f":"IF($A264=\"N/A\",Ref!$B$36,INDEX(Ranks!$1:$1048576,$A264,BK$1))","v":""},{"$f":"IF($A264=\"N/A\",Ref!$B$36,INDEX(Ranks!$1:$1048576,$A264,BL$1))","v":""},{"$f":"IF($A264=\"N/A\",Ref!$B$36,INDEX(Ranks!$1:$1048576,$A264,BM$1))","v":""},{"$f":"IF($A264=\"N/A\",Ref!$B$36,INDEX(Ranks!$1:$1048576,$A264,BN$1))","v":""},{"$f":"IF($A264=\"N/A\",Ref!$B$36,INDEX(Ranks!$1:$1048576,$A264,BO$1))","v":""},{"$f":"IF($A264=\"N/A\",Ref!$B$36,INDEX(Ranks!$1:$1048576,$A264,BP$1))","v":""},{"$f":"IF($A264=\"N/A\",Ref!$B$36,INDEX(Ranks!$1:$1048576,$A264,BQ$1))","v":""},{"$f":"IF($A264=\"N/A\",Ref!$B$36,INDEX(Ranks!$1:$1048576,$A264,BR$1))","v":""},{"$f":"IF($A264=\"N/A\",Ref!$B$36,INDEX(Ranks!$1:$1048576,$A264,BS$1))","v":""},{"$f":"IF($A264=\"N/A\",Ref!$B$36,INDEX(Ranks!$1:$1048576,$A264,BT$1))","v":""},{"$f":"IF($A264=\"N/A\",Ref!$B$36,INDEX(Ranks!$1:$1048576,$A264,BU$1))","v":""},{"$f":"IF($A264=\"N/A\",Ref!$B$36,INDEX(Ranks!$1:$1048576,$A264,BV$1))","v":""},{"$f":"IF($A264=\"N/A\",Ref!$B$36,INDEX(Ranks!$1:$1048576,$A264,BW$1))","v":""},{"$f":"IF($A264=\"N/A\",Ref!$B$36,INDEX(Ranks!$1:$1048576,$A264,BX$1))","v":""},{"$f":"IF($A264=\"N/A\",Ref!$B$36,INDEX(Ranks!$1:$1048576,$A264,BY$1))","v":""},{"$f":"IF($A264=\"N/A\",Ref!$B$36,INDEX(Ranks!$1:$1048576,$A264,BZ$1))","v":""},{"$f":"IF($A264=\"N/A\",Ref!$B$36,INDEX(Ranks!$1:$1048576,$A264,CA$1))","v":""},{"$f":"IF($A264=\"N/A\",Ref!$B$36,INDEX(Ranks!$1:$1048576,$A264,CB$1))","v":""},{"$f":"IF($A264=\"N/A\",Ref!$B$36,INDEX(Ranks!$1:$1048576,$A264,CC$1))","v":""},{"$f":"IF($A264=\"N/A\",Ref!$B$36,INDEX(Ranks!$1:$1048576,$A264,CD$1))","v":""},{"$f":"IF($A264=\"N/A\",Ref!$B$36,INDEX(Ranks!$1:$1048576,$A264,CE$1))","v":""},{"$f":"IF($A264=\"N/A\",Ref!$B$36,INDEX(Ranks!$1:$1048576,$A264,CF$1))","v":""},{"$f":"IF($A264=\"N/A\",Ref!$B$36,INDEX(Ranks!$1:$1048576,$A264,CG$1))","v":""},{"$f":"IF($A264=\"N/A\",Ref!$B$36,INDEX(Ranks!$1:$1048576,$A264,CH$1))","v":""},{"$f":"IF($A264=\"N/A\",Ref!$B$36,INDEX(Ranks!$1:$1048576,$A264,CI$1))","v":""},{"$f":"IF($A264=\"N/A\",Ref!$B$36,INDEX(Ranks!$1:$1048576,$A264,CJ$1))","v":""},{"$f":"IF($A264=\"N/A\",Ref!$B$36,INDEX(Ranks!$1:$1048576,$A264,CK$1))","v":""},{"$f":"IF($A264=\"N/A\",Ref!$B$36,INDEX(Ranks!$1:$1048576,$A264,CL$1))","v":""},{"$f":"IF($A264=\"N/A\",Ref!$B$36,INDEX(Ranks!$1:$1048576,$A264,CM$1))","v":""},{"$f":"IF($A264=\"N/A\",Ref!$B$36,INDEX(Ranks!$1:$1048576,$A264,CN$1))","v":""},{"$f":"IF($A264=\"N/A\",Ref!$B$36,INDEX(Ranks!$1:$1048576,$A264,CO$1))","v":""},{"$f":"IF($A264=\"N/A\",Ref!$B$36,INDEX(Ranks!$1:$1048576,$A264,CP$1))","v":""},{"$f":"IF($A264=\"N/A\",Ref!$B$36,INDEX(Ranks!$1:$1048576,$A264,CQ$1))","v":""},{"$f":"IF($A264=\"N/A\",Ref!$B$36,INDEX(Ranks!$1:$1048576,$A264,CR$1))","v":""},{"$f":"IF($A264=\"N/A\",Ref!$B$36,INDEX(Ranks!$1:$1048576,$A264,CS$1))","v":""},{"$f":"IF($A264=\"N/A\",Ref!$B$36,INDEX(Ranks!$1:$1048576,$A264,CT$1))","v":""},{"$f":"IF($A264=\"N/A\",Ref!$B$36,INDEX(Ranks!$1:$1048576,$A264,CU$1))","v":""},{"$f":"IF($A264=\"N/A\",Ref!$B$36,INDEX(Ranks!$1:$1048576,$A264,CV$1))","v":""},{"$f":"IF($A264=\"N/A\",Ref!$B$36,INDEX(Ranks!$1:$1048576,$A264,CW$1))","v":""},{"$f":"IF($A264=\"N/A\",Ref!$B$36,INDEX(Ranks!$1:$1048576,$A264,CX$1))","v":""},{"$f":"IF($A264=\"N/A\",Ref!$B$36,INDEX(Ranks!$1:$1048576,$A264,CY$1))","v":""},{"$f":"IF($A264=\"N/A\",Ref!$B$36,INDEX(Ranks!$1:$1048576,$A264,CZ$1))","v":""},{"$f":"IF($A264=\"N/A\",Ref!$B$36,INDEX(Ranks!$1:$1048576,$A264,DA$1))","v":""},{"$f":"IF($A264=\"N/A\",Ref!$B$36,INDEX(Ranks!$1:$1048576,$A264,DB$1))","v":""},{"$f":"IF($A264=\"N/A\",Ref!$B$36,INDEX(Ranks!$1:$1048576,$A264,DC$1))","v":""},{"$f":"IF($A264=\"N/A\",Ref!$B$36,INDEX(Ranks!$1:$1048576,$A264,DD$1))","v":""},{"$f":"IF($A264=\"N/A\",Ref!$B$36,INDEX(Ranks!$1:$1048576,$A264,DE$1))","v":""},{"$f":"IF($A264=\"N/A\",Ref!$B$36,INDEX(Ranks!$1:$1048576,$A264,DF$1))","v":""},{"$f":"IF($A264=\"N/A\",Ref!$B$36,INDEX(Ranks!$1:$1048576,$A264,DG$1))","v":""},{"$f":"IF($A264=\"N/A\",Ref!$B$36,INDEX(Ranks!$1:$1048576,$A264,DH$1))","v":""},{"$f":"IF($A264=\"N/A\",Ref!$B$36,INDEX(Ranks!$1:$1048576,$A264,DI$1))","v":""},{"$f":"IF($A264=\"N/A\",Ref!$B$36,INDEX(Ranks!$1:$1048576,$A264,DJ$1))","v":""},{"$f":"IF($A264=\"N/A\",Ref!$B$36,INDEX(Ranks!$1:$1048576,$A264,DK$1))","v":""},{"$f":"IF($A264=\"N/A\",Ref!$B$36,INDEX(Ranks!$1:$1048576,$A264,DL$1))","v":""},{"$f":"IF($A264=\"N/A\",Ref!$B$36,INDEX(Ranks!$1:$1048576,$A264,DM$1))","v":""},{"$f":"IF($A264=\"N/A\",Ref!$B$36,INDEX(Ranks!$1:$1048576,$A264,DN$1))","v":""},{"$f":"IF($A264=\"N/A\",Ref!$B$36,INDEX(Ranks!$1:$1048576,$A264,DO$1))","v":""},{"$f":"IF($A264=\"N/A\",Ref!$B$36,INDEX(Ranks!$1:$1048576,$A264,DP$1))","v":""},{"$f":"IF($A264=\"N/A\",Ref!$B$36,INDEX(Ranks!$1:$1048576,$A264,DQ$1))","v":""},{"$f":"IF($A264=\"N/A\",Ref!$B$36,INDEX(Ranks!$1:$1048576,$A264,DR$1))","v":""},{"$f":"IF($A264=\"N/A\",Ref!$B$36,INDEX(Ranks!$1:$1048576,$A264,DS$1))","v":""},{"$f":"IF($A264=\"N/A\",Ref!$B$36,INDEX(Ranks!$1:$1048576,$A264,DT$1))","v":""},{"$f":"IF($A264=\"N/A\",Ref!$B$36,INDEX(Ranks!$1:$1048576,$A264,DU$1))","v":""},{"$f":"IF($A264=\"N/A\",Ref!$B$36,INDEX(Ranks!$1:$1048576,$A264,DV$1))","v":""},{"$f":"IF($A264=\"N/A\",Ref!$B$36,INDEX(Ranks!$1:$1048576,$A264,DW$1))","v":""},{"$f":"IF($A264=\"N/A\",Ref!$B$36,INDEX(Ranks!$1:$1048576,$A264,DX$1))","v":""},{"$f":"IF($A264=\"N/A\",Ref!$B$36,INDEX(Ranks!$1:$1048576,$A264,DY$1))","v":""},{"$f":"IF($A264=\"N/A\",Ref!$B$36,INDEX(Ranks!$1:$1048576,$A264,DZ$1))","v":""},{"$f":"IF($A264=\"N/A\",Ref!$B$36,INDEX(Ranks!$1:$1048576,$A264,EA$1))","v":""},{"$f":"IF($A264=\"N/A\",Ref!$B$36,INDEX(Ranks!$1:$1048576,$A264,EB$1))","v":""}]
[{"$f":"IFERROR(MATCH('Portfolio Page'!L265,Ranks!L:L,0),\"N/A\")","v":"N/A"},null,{"$f":"IF($A265=\"N/A\",\"\",INDEX(Ranks!$1:$1048576,$A265,C$1))","v":""},{"$f":"IF($A265=\"N/A\",Ref!$B$36,INDEX(Ranks!$1:$1048576,$A265,D$1))","v":""},{"$f":"IF($A265=\"N/A\",Ref!$B$36,INDEX(Ranks!$1:$1048576,$A265,E$1))","v":""},{"$f":"IF($A265=\"N/A\",\"\",INDEX(Ranks!$1:$1048576,$A265,F$1))","v":""},{"$f":"IF($A265=\"N/A\",\"\",INDEX(Ranks!$1:$1048576,$A265,G$1))","v":""},{"$f":"IF($A265=\"N/A\",\"\",INDEX(Ranks!$1:$1048576,$A265,H$1))","v":""},{"$f":"IF($A265=\"N/A\",\"\",INDEX(Ranks!$1:$1048576,$A265,I$1))","v":""},{"$f":"IF($A265=\"N/A\",\"\",INDEX(Ranks!$1:$1048576,$A265,J$1))","v":""},{"$f":"IF($A265=\"N/A\",\"\",INDEX(Ranks!$1:$1048576,$A265,K$1))","v":""},null,{"$f":"IF($A265=\"N/A\",Ref!$B$36,INDEX(Ranks!$1:$1048576,$A265,M$1))","v":""},{"$f":"IF($A265=\"N/A\",Ref!$B$36,INDEX(Ranks!$1:$1048576,$A265,N$1))","v":""},{"$f":"IF($A265=\"N/A\",Ref!$B$36,INDEX(Ranks!$1:$1048576,$A265,O$1))","v":""},{"$f":"IF($A265=\"N/A\",Ref!$B$36,INDEX(Ranks!$1:$1048576,$A265,P$1))","v":""},{"$f":"IF($A265=\"N/A\",Ref!$B$36,INDEX(Ranks!$1:$1048576,$A265,Q$1))","v":""},{"$f":"IF($A265=\"N/A\",Ref!$B$36,INDEX(Ranks!$1:$1048576,$A265,R$1))","v":""},{"$f":"IF($A265=\"N/A\",Ref!$B$36,INDEX(Ranks!$1:$1048576,$A265,S$1))","v":""},{"$f":"IF($A265=\"N/A\",Ref!$B$36,INDEX(Ranks!$1:$1048576,$A265,T$1))","v":""},{"$f":"IF($A265=\"N/A\",Ref!$B$36,INDEX(Ranks!$1:$1048576,$A265,U$1))","v":""},{"$f":"IF($A265=\"N/A\",Ref!$B$36,INDEX(Ranks!$1:$1048576,$A265,V$1))","v":""},{"$f":"IF($A265=\"N/A\",Ref!$B$36,INDEX(Ranks!$1:$1048576,$A265,W$1))","v":""},{"$f":"IF($A265=\"N/A\",Ref!$B$36,INDEX(Ranks!$1:$1048576,$A265,X$1))","v":""},{"$f":"IF($A265=\"N/A\",Ref!$B$36,INDEX(Ranks!$1:$1048576,$A265,Y$1))","v":""},{"$f":"IF($A265=\"N/A\",Ref!$B$36,INDEX(Ranks!$1:$1048576,$A265,Z$1))","v":""},{"$f":"IF($A265=\"N/A\",Ref!$B$36,INDEX(Ranks!$1:$1048576,$A265,AA$1))","v":""},{"$f":"IF($A265=\"N/A\",Ref!$B$36,INDEX(Ranks!$1:$1048576,$A265,AB$1))","v":""},{"$f":"IF($A265=\"N/A\",Ref!$B$36,INDEX(Ranks!$1:$1048576,$A265,AC$1))","v":""},{"$f":"IF($A265=\"N/A\",Ref!$B$36,INDEX(Ranks!$1:$1048576,$A265,AD$1))","v":""},{"$f":"IF($A265=\"N/A\",Ref!$B$36,INDEX(Ranks!$1:$1048576,$A265,AE$1))","v":""},{"$f":"IF($A265=\"N/A\",Ref!$B$36,INDEX(Ranks!$1:$1048576,$A265,AF$1))","v":""},{"$f":"IF($A265=\"N/A\",Ref!$B$36,INDEX(Ranks!$1:$1048576,$A265,AG$1))","v":""},{"$f":"IF($A265=\"N/A\",Ref!$B$36,INDEX(Ranks!$1:$1048576,$A265,AH$1))","v":""},{"$f":"IF($A265=\"N/A\",Ref!$B$36,INDEX(Ranks!$1:$1048576,$A265,AI$1))","v":""},{"$f":"IF($A265=\"N/A\",Ref!$B$36,INDEX(Ranks!$1:$1048576,$A265,AJ$1))","v":""},{"$f":"IF($A265=\"N/A\",Ref!$B$36,INDEX(Ranks!$1:$1048576,$A265,AK$1))","v":""},{"$f":"IF($A265=\"N/A\",Ref!$B$36,INDEX(Ranks!$1:$1048576,$A265,AL$1))","v":""},{"$f":"IF($A265=\"N/A\",Ref!$B$36,INDEX(Ranks!$1:$1048576,$A265,AM$1))","v":""},{"$f":"IF($A265=\"N/A\",Ref!$B$36,INDEX(Ranks!$1:$1048576,$A265,AN$1))","v":""},{"$f":"IF($A265=\"N/A\",Ref!$B$36,INDEX(Ranks!$1:$1048576,$A265,AO$1))","v":""},{"$f":"IF($A265=\"N/A\",Ref!$B$36,INDEX(Ranks!$1:$1048576,$A265,AP$1))","v":""},{"$f":"IF($A265=\"N/A\",Ref!$B$36,INDEX(Ranks!$1:$1048576,$A265,AQ$1))","v":""},{"$f":"IF($A265=\"N/A\",Ref!$B$36,INDEX(Ranks!$1:$1048576,$A265,AR$1))","v":""},{"$f":"IF($A265=\"N/A\",Ref!$B$36,INDEX(Ranks!$1:$1048576,$A265,AS$1))","v":""},{"$f":"IF($A265=\"N/A\",Ref!$B$36,INDEX(Ranks!$1:$1048576,$A265,AT$1))","v":""},{"$f":"IF($A265=\"N/A\",Ref!$B$36,INDEX(Ranks!$1:$1048576,$A265,AU$1))","v":""},{"$f":"IF($A265=\"N/A\",Ref!$B$36,INDEX(Ranks!$1:$1048576,$A265,AV$1))","v":""},{"$f":"IF($A265=\"N/A\",Ref!$B$36,INDEX(Ranks!$1:$1048576,$A265,AW$1))","v":""},{"$f":"IF($A265=\"N/A\",Ref!$B$36,INDEX(Ranks!$1:$1048576,$A265,AX$1))","v":""},{"$f":"IF($A265=\"N/A\",Ref!$B$36,INDEX(Ranks!$1:$1048576,$A265,AY$1))","v":""},{"$f":"IF($A265=\"N/A\",Ref!$B$36,INDEX(Ranks!$1:$1048576,$A265,AZ$1))","v":""},{"$f":"IF($A265=\"N/A\",Ref!$B$36,INDEX(Ranks!$1:$1048576,$A265,BA$1))","v":""},{"$f":"IF($A265=\"N/A\",Ref!$B$36,INDEX(Ranks!$1:$1048576,$A265,BB$1))","v":""},{"$f":"IF($A265=\"N/A\",Ref!$B$36,INDEX(Ranks!$1:$1048576,$A265,BC$1))","v":""},{"$f":"IF($A265=\"N/A\",Ref!$B$36,INDEX(Ranks!$1:$1048576,$A265,BD$1))","v":""},{"$f":"IF($A265=\"N/A\",Ref!$B$36,INDEX(Ranks!$1:$1048576,$A265,BE$1))","v":""},{"$f":"IF($A265=\"N/A\",Ref!$B$36,INDEX(Ranks!$1:$1048576,$A265,BF$1))","v":""},{"$f":"IF($A265=\"N/A\",Ref!$B$36,INDEX(Ranks!$1:$1048576,$A265,BG$1))","v":""},{"$f":"IF($A265=\"N/A\",Ref!$B$36,INDEX(Ranks!$1:$1048576,$A265,BH$1))","v":""},{"$f":"IF($A265=\"N/A\",Ref!$B$36,INDEX(Ranks!$1:$1048576,$A265,BI$1))","v":""},{"$f":"IF($A265=\"N/A\",Ref!$B$36,INDEX(Ranks!$1:$1048576,$A265,BJ$1))","v":""},{"$f":"IF($A265=\"N/A\",Ref!$B$36,INDEX(Ranks!$1:$1048576,$A265,BK$1))","v":""},{"$f":"IF($A265=\"N/A\",Ref!$B$36,INDEX(Ranks!$1:$1048576,$A265,BL$1))","v":""},{"$f":"IF($A265=\"N/A\",Ref!$B$36,INDEX(Ranks!$1:$1048576,$A265,BM$1))","v":""},{"$f":"IF($A265=\"N/A\",Ref!$B$36,INDEX(Ranks!$1:$1048576,$A265,BN$1))","v":""},{"$f":"IF($A265=\"N/A\",Ref!$B$36,INDEX(Ranks!$1:$1048576,$A265,BO$1))","v":""},{"$f":"IF($A265=\"N/A\",Ref!$B$36,INDEX(Ranks!$1:$1048576,$A265,BP$1))","v":""},{"$f":"IF($A265=\"N/A\",Ref!$B$36,INDEX(Ranks!$1:$1048576,$A265,BQ$1))","v":""},{"$f":"IF($A265=\"N/A\",Ref!$B$36,INDEX(Ranks!$1:$1048576,$A265,BR$1))","v":""},{"$f":"IF($A265=\"N/A\",Ref!$B$36,INDEX(Ranks!$1:$1048576,$A265,BS$1))","v":""},{"$f":"IF($A265=\"N/A\",Ref!$B$36,INDEX(Ranks!$1:$1048576,$A265,BT$1))","v":""},{"$f":"IF($A265=\"N/A\",Ref!$B$36,INDEX(Ranks!$1:$1048576,$A265,BU$1))","v":""},{"$f":"IF($A265=\"N/A\",Ref!$B$36,INDEX(Ranks!$1:$1048576,$A265,BV$1))","v":""},{"$f":"IF($A265=\"N/A\",Ref!$B$36,INDEX(Ranks!$1:$1048576,$A265,BW$1))","v":""},{"$f":"IF($A265=\"N/A\",Ref!$B$36,INDEX(Ranks!$1:$1048576,$A265,BX$1))","v":""},{"$f":"IF($A265=\"N/A\",Ref!$B$36,INDEX(Ranks!$1:$1048576,$A265,BY$1))","v":""},{"$f":"IF($A265=\"N/A\",Ref!$B$36,INDEX(Ranks!$1:$1048576,$A265,BZ$1))","v":""},{"$f":"IF($A265=\"N/A\",Ref!$B$36,INDEX(Ranks!$1:$1048576,$A265,CA$1))","v":""},{"$f":"IF($A265=\"N/A\",Ref!$B$36,INDEX(Ranks!$1:$1048576,$A265,CB$1))","v":""},{"$f":"IF($A265=\"N/A\",Ref!$B$36,INDEX(Ranks!$1:$1048576,$A265,CC$1))","v":""},{"$f":"IF($A265=\"N/A\",Ref!$B$36,INDEX(Ranks!$1:$1048576,$A265,CD$1))","v":""},{"$f":"IF($A265=\"N/A\",Ref!$B$36,INDEX(Ranks!$1:$1048576,$A265,CE$1))","v":""},{"$f":"IF($A265=\"N/A\",Ref!$B$36,INDEX(Ranks!$1:$1048576,$A265,CF$1))","v":""},{"$f":"IF($A265=\"N/A\",Ref!$B$36,INDEX(Ranks!$1:$1048576,$A265,CG$1))","v":""},{"$f":"IF($A265=\"N/A\",Ref!$B$36,INDEX(Ranks!$1:$1048576,$A265,CH$1))","v":""},{"$f":"IF($A265=\"N/A\",Ref!$B$36,INDEX(Ranks!$1:$1048576,$A265,CI$1))","v":""},{"$f":"IF($A265=\"N/A\",Ref!$B$36,INDEX(Ranks!$1:$1048576,$A265,CJ$1))","v":""},{"$f":"IF($A265=\"N/A\",Ref!$B$36,INDEX(Ranks!$1:$1048576,$A265,CK$1))","v":""},{"$f":"IF($A265=\"N/A\",Ref!$B$36,INDEX(Ranks!$1:$1048576,$A265,CL$1))","v":""},{"$f":"IF($A265=\"N/A\",Ref!$B$36,INDEX(Ranks!$1:$1048576,$A265,CM$1))","v":""},{"$f":"IF($A265=\"N/A\",Ref!$B$36,INDEX(Ranks!$1:$1048576,$A265,CN$1))","v":""},{"$f":"IF($A265=\"N/A\",Ref!$B$36,INDEX(Ranks!$1:$1048576,$A265,CO$1))","v":""},{"$f":"IF($A265=\"N/A\",Ref!$B$36,INDEX(Ranks!$1:$1048576,$A265,CP$1))","v":""},{"$f":"IF($A265=\"N/A\",Ref!$B$36,INDEX(Ranks!$1:$1048576,$A265,CQ$1))","v":""},{"$f":"IF($A265=\"N/A\",Ref!$B$36,INDEX(Ranks!$1:$1048576,$A265,CR$1))","v":""},{"$f":"IF($A265=\"N/A\",Ref!$B$36,INDEX(Ranks!$1:$1048576,$A265,CS$1))","v":""},{"$f":"IF($A265=\"N/A\",Ref!$B$36,INDEX(Ranks!$1:$1048576,$A265,CT$1))","v":""},{"$f":"IF($A265=\"N/A\",Ref!$B$36,INDEX(Ranks!$1:$1048576,$A265,CU$1))","v":""},{"$f":"IF($A265=\"N/A\",Ref!$B$36,INDEX(Ranks!$1:$1048576,$A265,CV$1))","v":""},{"$f":"IF($A265=\"N/A\",Ref!$B$36,INDEX(Ranks!$1:$1048576,$A265,CW$1))","v":""},{"$f":"IF($A265=\"N/A\",Ref!$B$36,INDEX(Ranks!$1:$1048576,$A265,CX$1))","v":""},{"$f":"IF($A265=\"N/A\",Ref!$B$36,INDEX(Ranks!$1:$1048576,$A265,CY$1))","v":""},{"$f":"IF($A265=\"N/A\",Ref!$B$36,INDEX(Ranks!$1:$1048576,$A265,CZ$1))","v":""},{"$f":"IF($A265=\"N/A\",Ref!$B$36,INDEX(Ranks!$1:$1048576,$A265,DA$1))","v":""},{"$f":"IF($A265=\"N/A\",Ref!$B$36,INDEX(Ranks!$1:$1048576,$A265,DB$1))","v":""},{"$f":"IF($A265=\"N/A\",Ref!$B$36,INDEX(Ranks!$1:$1048576,$A265,DC$1))","v":""},{"$f":"IF($A265=\"N/A\",Ref!$B$36,INDEX(Ranks!$1:$1048576,$A265,DD$1))","v":""},{"$f":"IF($A265=\"N/A\",Ref!$B$36,INDEX(Ranks!$1:$1048576,$A265,DE$1))","v":""},{"$f":"IF($A265=\"N/A\",Ref!$B$36,INDEX(Ranks!$1:$1048576,$A265,DF$1))","v":""},{"$f":"IF($A265=\"N/A\",Ref!$B$36,INDEX(Ranks!$1:$1048576,$A265,DG$1))","v":""},{"$f":"IF($A265=\"N/A\",Ref!$B$36,INDEX(Ranks!$1:$1048576,$A265,DH$1))","v":""},{"$f":"IF($A265=\"N/A\",Ref!$B$36,INDEX(Ranks!$1:$1048576,$A265,DI$1))","v":""},{"$f":"IF($A265=\"N/A\",Ref!$B$36,INDEX(Ranks!$1:$1048576,$A265,DJ$1))","v":""},{"$f":"IF($A265=\"N/A\",Ref!$B$36,INDEX(Ranks!$1:$1048576,$A265,DK$1))","v":""},{"$f":"IF($A265=\"N/A\",Ref!$B$36,INDEX(Ranks!$1:$1048576,$A265,DL$1))","v":""},{"$f":"IF($A265=\"N/A\",Ref!$B$36,INDEX(Ranks!$1:$1048576,$A265,DM$1))","v":""},{"$f":"IF($A265=\"N/A\",Ref!$B$36,INDEX(Ranks!$1:$1048576,$A265,DN$1))","v":""},{"$f":"IF($A265=\"N/A\",Ref!$B$36,INDEX(Ranks!$1:$1048576,$A265,DO$1))","v":""},{"$f":"IF($A265=\"N/A\",Ref!$B$36,INDEX(Ranks!$1:$1048576,$A265,DP$1))","v":""},{"$f":"IF($A265=\"N/A\",Ref!$B$36,INDEX(Ranks!$1:$1048576,$A265,DQ$1))","v":""},{"$f":"IF($A265=\"N/A\",Ref!$B$36,INDEX(Ranks!$1:$1048576,$A265,DR$1))","v":""},{"$f":"IF($A265=\"N/A\",Ref!$B$36,INDEX(Ranks!$1:$1048576,$A265,DS$1))","v":""},{"$f":"IF($A265=\"N/A\",Ref!$B$36,INDEX(Ranks!$1:$1048576,$A265,DT$1))","v":""},{"$f":"IF($A265=\"N/A\",Ref!$B$36,INDEX(Ranks!$1:$1048576,$A265,DU$1))","v":""},{"$f":"IF($A265=\"N/A\",Ref!$B$36,INDEX(Ranks!$1:$1048576,$A265,DV$1))","v":""},{"$f":"IF($A265=\"N/A\",Ref!$B$36,INDEX(Ranks!$1:$1048576,$A265,DW$1))","v":""},{"$f":"IF($A265=\"N/A\",Ref!$B$36,INDEX(Ranks!$1:$1048576,$A265,DX$1))","v":""},{"$f":"IF($A265=\"N/A\",Ref!$B$36,INDEX(Ranks!$1:$1048576,$A265,DY$1))","v":""},{"$f":"IF($A265=\"N/A\",Ref!$B$36,INDEX(Ranks!$1:$1048576,$A265,DZ$1))","v":""},{"$f":"IF($A265=\"N/A\",Ref!$B$36,INDEX(Ranks!$1:$1048576,$A265,EA$1))","v":""},{"$f":"IF($A265=\"N/A\",Ref!$B$36,INDEX(Ranks!$1:$1048576,$A265,EB$1))","v":""}]
[{"$f":"IFERROR(MATCH('Portfolio Page'!L266,Ranks!L:L,0),\"N/A\")","v":"N/A"},null,{"$f":"IF($A266=\"N/A\",\"\",INDEX(Ranks!$1:$1048576,$A266,C$1))","v":""},{"$f":"IF($A266=\"N/A\",Ref!$B$36,INDEX(Ranks!$1:$1048576,$A266,D$1))","v":""},{"$f":"IF($A266=\"N/A\",Ref!$B$36,INDEX(Ranks!$1:$1048576,$A266,E$1))","v":""},{"$f":"IF($A266=\"N/A\",\"\",INDEX(Ranks!$1:$1048576,$A266,F$1))","v":""},{"$f":"IF($A266=\"N/A\",\"\",INDEX(Ranks!$1:$1048576,$A266,G$1))","v":""},{"$f":"IF($A266=\"N/A\",\"\",INDEX(Ranks!$1:$1048576,$A266,H$1))","v":""},{"$f":"IF($A266=\"N/A\",\"\",INDEX(Ranks!$1:$1048576,$A266,I$1))","v":""},{"$f":"IF($A266=\"N/A\",\"\",INDEX(Ranks!$1:$1048576,$A266,J$1))","v":""},{"$f":"IF($A266=\"N/A\",\"\",INDEX(Ranks!$1:$1048576,$A266,K$1))","v":""},null,{"$f":"IF($A266=\"N/A\",Ref!$B$36,INDEX(Ranks!$1:$1048576,$A266,M$1))","v":""},{"$f":"IF($A266=\"N/A\",Ref!$B$36,INDEX(Ranks!$1:$1048576,$A266,N$1))","v":""},{"$f":"IF($A266=\"N/A\",Ref!$B$36,INDEX(Ranks!$1:$1048576,$A266,O$1))","v":""},{"$f":"IF($A266=\"N/A\",Ref!$B$36,INDEX(Ranks!$1:$1048576,$A266,P$1))","v":""},{"$f":"IF($A266=\"N/A\",Ref!$B$36,INDEX(Ranks!$1:$1048576,$A266,Q$1))","v":""},{"$f":"IF($A266=\"N/A\",Ref!$B$36,INDEX(Ranks!$1:$1048576,$A266,R$1))","v":""},{"$f":"IF($A266=\"N/A\",Ref!$B$36,INDEX(Ranks!$1:$1048576,$A266,S$1))","v":""},{"$f":"IF($A266=\"N/A\",Ref!$B$36,INDEX(Ranks!$1:$1048576,$A266,T$1))","v":""},{"$f":"IF($A266=\"N/A\",Ref!$B$36,INDEX(Ranks!$1:$1048576,$A266,U$1))","v":""},{"$f":"IF($A266=\"N/A\",Ref!$B$36,INDEX(Ranks!$1:$1048576,$A266,V$1))","v":""},{"$f":"IF($A266=\"N/A\",Ref!$B$36,INDEX(Ranks!$1:$1048576,$A266,W$1))","v":""},{"$f":"IF($A266=\"N/A\",Ref!$B$36,INDEX(Ranks!$1:$1048576,$A266,X$1))","v":""},{"$f":"IF($A266=\"N/A\",Ref!$B$36,INDEX(Ranks!$1:$1048576,$A266,Y$1))","v":""},{"$f":"IF($A266=\"N/A\",Ref!$B$36,INDEX(Ranks!$1:$1048576,$A266,Z$1))","v":""},{"$f":"IF($A266=\"N/A\",Ref!$B$36,INDEX(Ranks!$1:$1048576,$A266,AA$1))","v":""},{"$f":"IF($A266=\"N/A\",Ref!$B$36,INDEX(Ranks!$1:$1048576,$A266,AB$1))","v":""},{"$f":"IF($A266=\"N/A\",Ref!$B$36,INDEX(Ranks!$1:$1048576,$A266,AC$1))","v":""},{"$f":"IF($A266=\"N/A\",Ref!$B$36,INDEX(Ranks!$1:$1048576,$A266,AD$1))","v":""},{"$f":"IF($A266=\"N/A\",Ref!$B$36,INDEX(Ranks!$1:$1048576,$A266,AE$1))","v":""},{"$f":"IF($A266=\"N/A\",Ref!$B$36,INDEX(Ranks!$1:$1048576,$A266,AF$1))","v":""},{"$f":"IF($A266=\"N/A\",Ref!$B$36,INDEX(Ranks!$1:$1048576,$A266,AG$1))","v":""},{"$f":"IF($A266=\"N/A\",Ref!$B$36,INDEX(Ranks!$1:$1048576,$A266,AH$1))","v":""},{"$f":"IF($A266=\"N/A\",Ref!$B$36,INDEX(Ranks!$1:$1048576,$A266,AI$1))","v":""},{"$f":"IF($A266=\"N/A\",Ref!$B$36,INDEX(Ranks!$1:$1048576,$A266,AJ$1))","v":""},{"$f":"IF($A266=\"N/A\",Ref!$B$36,INDEX(Ranks!$1:$1048576,$A266,AK$1))","v":""},{"$f":"IF($A266=\"N/A\",Ref!$B$36,INDEX(Ranks!$1:$1048576,$A266,AL$1))","v":""},{"$f":"IF($A266=\"N/A\",Ref!$B$36,INDEX(Ranks!$1:$1048576,$A266,AM$1))","v":""},{"$f":"IF($A266=\"N/A\",Ref!$B$36,INDEX(Ranks!$1:$1048576,$A266,AN$1))","v":""},{"$f":"IF($A266=\"N/A\",Ref!$B$36,INDEX(Ranks!$1:$1048576,$A266,AO$1))","v":""},{"$f":"IF($A266=\"N/A\",Ref!$B$36,INDEX(Ranks!$1:$1048576,$A266,AP$1))","v":""},{"$f":"IF($A266=\"N/A\",Ref!$B$36,INDEX(Ranks!$1:$1048576,$A266,AQ$1))","v":""},{"$f":"IF($A266=\"N/A\",Ref!$B$36,INDEX(Ranks!$1:$1048576,$A266,AR$1))","v":""},{"$f":"IF($A266=\"N/A\",Ref!$B$36,INDEX(Ranks!$1:$1048576,$A266,AS$1))","v":""},{"$f":"IF($A266=\"N/A\",Ref!$B$36,INDEX(Ranks!$1:$1048576,$A266,AT$1))","v":""},{"$f":"IF($A266=\"N/A\",Ref!$B$36,INDEX(Ranks!$1:$1048576,$A266,AU$1))","v":""},{"$f":"IF($A266=\"N/A\",Ref!$B$36,INDEX(Ranks!$1:$1048576,$A266,AV$1))","v":""},{"$f":"IF($A266=\"N/A\",Ref!$B$36,INDEX(Ranks!$1:$1048576,$A266,AW$1))","v":""},{"$f":"IF($A266=\"N/A\",Ref!$B$36,INDEX(Ranks!$1:$1048576,$A266,AX$1))","v":""},{"$f":"IF($A266=\"N/A\",Ref!$B$36,INDEX(Ranks!$1:$1048576,$A266,AY$1))","v":""},{"$f":"IF($A266=\"N/A\",Ref!$B$36,INDEX(Ranks!$1:$1048576,$A266,AZ$1))","v":""},{"$f":"IF($A266=\"N/A\",Ref!$B$36,INDEX(Ranks!$1:$1048576,$A266,BA$1))","v":""},{"$f":"IF($A266=\"N/A\",Ref!$B$36,INDEX(Ranks!$1:$1048576,$A266,BB$1))","v":""},{"$f":"IF($A266=\"N/A\",Ref!$B$36,INDEX(Ranks!$1:$1048576,$A266,BC$1))","v":""},{"$f":"IF($A266=\"N/A\",Ref!$B$36,INDEX(Ranks!$1:$1048576,$A266,BD$1))","v":""},{"$f":"IF($A266=\"N/A\",Ref!$B$36,INDEX(Ranks!$1:$1048576,$A266,BE$1))","v":""},{"$f":"IF($A266=\"N/A\",Ref!$B$36,INDEX(Ranks!$1:$1048576,$A266,BF$1))","v":""},{"$f":"IF($A266=\"N/A\",Ref!$B$36,INDEX(Ranks!$1:$1048576,$A266,BG$1))","v":""},{"$f":"IF($A266=\"N/A\",Ref!$B$36,INDEX(Ranks!$1:$1048576,$A266,BH$1))","v":""},{"$f":"IF($A266=\"N/A\",Ref!$B$36,INDEX(Ranks!$1:$1048576,$A266,BI$1))","v":""},{"$f":"IF($A266=\"N/A\",Ref!$B$36,INDEX(Ranks!$1:$1048576,$A266,BJ$1))","v":""},{"$f":"IF($A266=\"N/A\",Ref!$B$36,INDEX(Ranks!$1:$1048576,$A266,BK$1))","v":""},{"$f":"IF($A266=\"N/A\",Ref!$B$36,INDEX(Ranks!$1:$1048576,$A266,BL$1))","v":""},{"$f":"IF($A266=\"N/A\",Ref!$B$36,INDEX(Ranks!$1:$1048576,$A266,BM$1))","v":""},{"$f":"IF($A266=\"N/A\",Ref!$B$36,INDEX(Ranks!$1:$1048576,$A266,BN$1))","v":""},{"$f":"IF($A266=\"N/A\",Ref!$B$36,INDEX(Ranks!$1:$1048576,$A266,BO$1))","v":""},{"$f":"IF($A266=\"N/A\",Ref!$B$36,INDEX(Ranks!$1:$1048576,$A266,BP$1))","v":""},{"$f":"IF($A266=\"N/A\",Ref!$B$36,INDEX(Ranks!$1:$1048576,$A266,BQ$1))","v":""},{"$f":"IF($A266=\"N/A\",Ref!$B$36,INDEX(Ranks!$1:$1048576,$A266,BR$1))","v":""},{"$f":"IF($A266=\"N/A\",Ref!$B$36,INDEX(Ranks!$1:$1048576,$A266,BS$1))","v":""},{"$f":"IF($A266=\"N/A\",Ref!$B$36,INDEX(Ranks!$1:$1048576,$A266,BT$1))","v":""},{"$f":"IF($A266=\"N/A\",Ref!$B$36,INDEX(Ranks!$1:$1048576,$A266,BU$1))","v":""},{"$f":"IF($A266=\"N/A\",Ref!$B$36,INDEX(Ranks!$1:$1048576,$A266,BV$1))","v":""},{"$f":"IF($A266=\"N/A\",Ref!$B$36,INDEX(Ranks!$1:$1048576,$A266,BW$1))","v":""},{"$f":"IF($A266=\"N/A\",Ref!$B$36,INDEX(Ranks!$1:$1048576,$A266,BX$1))","v":""},{"$f":"IF($A266=\"N/A\",Ref!$B$36,INDEX(Ranks!$1:$1048576,$A266,BY$1))","v":""},{"$f":"IF($A266=\"N/A\",Ref!$B$36,INDEX(Ranks!$1:$1048576,$A266,BZ$1))","v":""},{"$f":"IF($A266=\"N/A\",Ref!$B$36,INDEX(Ranks!$1:$1048576,$A266,CA$1))","v":""},{"$f":"IF($A266=\"N/A\",Ref!$B$36,INDEX(Ranks!$1:$1048576,$A266,CB$1))","v":""},{"$f":"IF($A266=\"N/A\",Ref!$B$36,INDEX(Ranks!$1:$1048576,$A266,CC$1))","v":""},{"$f":"IF($A266=\"N/A\",Ref!$B$36,INDEX(Ranks!$1:$1048576,$A266,CD$1))","v":""},{"$f":"IF($A266=\"N/A\",Ref!$B$36,INDEX(Ranks!$1:$1048576,$A266,CE$1))","v":""},{"$f":"IF($A266=\"N/A\",Ref!$B$36,INDEX(Ranks!$1:$1048576,$A266,CF$1))","v":""},{"$f":"IF($A266=\"N/A\",Ref!$B$36,INDEX(Ranks!$1:$1048576,$A266,CG$1))","v":""},{"$f":"IF($A266=\"N/A\",Ref!$B$36,INDEX(Ranks!$1:$1048576,$A266,CH$1))","v":""},{"$f":"IF($A266=\"N/A\",Ref!$B$36,INDEX(Ranks!$1:$1048576,$A266,CI$1))","v":""},{"$f":"IF($A266=\"N/A\",Ref!$B$36,INDEX(Ranks!$1:$1048576,$A266,CJ$1))","v":""},{"$f":"IF($A266=\"N/A\",Ref!$B$36,INDEX(Ranks!$1:$1048576,$A266,CK$1))","v":""},{"$f":"IF($A266=\"N/A\",Ref!$B$36,INDEX(Ranks!$1:$1048576,$A266,CL$1))","v":""},{"$f":"IF($A266=\"N/A\",Ref!$B$36,INDEX(Ranks!$1:$1048576,$A266,CM$1))","v":""},{"$f":"IF($A266=\"N/A\",Ref!$B$36,INDEX(Ranks!$1:$1048576,$A266,CN$1))","v":""},{"$f":"IF($A266=\"N/A\",Ref!$B$36,INDEX(Ranks!$1:$1048576,$A266,CO$1))","v":""},{"$f":"IF($A266=\"N/A\",Ref!$B$36,INDEX(Ranks!$1:$1048576,$A266,CP$1))","v":""},{"$f":"IF($A266=\"N/A\",Ref!$B$36,INDEX(Ranks!$1:$1048576,$A266,CQ$1))","v":""},{"$f":"IF($A266=\"N/A\",Ref!$B$36,INDEX(Ranks!$1:$1048576,$A266,CR$1))","v":""},{"$f":"IF($A266=\"N/A\",Ref!$B$36,INDEX(Ranks!$1:$1048576,$A266,CS$1))","v":""},{"$f":"IF($A266=\"N/A\",Ref!$B$36,INDEX(Ranks!$1:$1048576,$A266,CT$1))","v":""},{"$f":"IF($A266=\"N/A\",Ref!$B$36,INDEX(Ranks!$1:$1048576,$A266,CU$1))","v":""},{"$f":"IF($A266=\"N/A\",Ref!$B$36,INDEX(Ranks!$1:$1048576,$A266,CV$1))","v":""},{"$f":"IF($A266=\"N/A\",Ref!$B$36,INDEX(Ranks!$1:$1048576,$A266,CW$1))","v":""},{"$f":"IF($A266=\"N/A\",Ref!$B$36,INDEX(Ranks!$1:$1048576,$A266,CX$1))","v":""},{"$f":"IF($A266=\"N/A\",Ref!$B$36,INDEX(Ranks!$1:$1048576,$A266,CY$1))","v":""},{"$f":"IF($A266=\"N/A\",Ref!$B$36,INDEX(Ranks!$1:$1048576,$A266,CZ$1))","v":""},{"$f":"IF($A266=\"N/A\",Ref!$B$36,INDEX(Ranks!$1:$1048576,$A266,DA$1))","v":""},{"$f":"IF($A266=\"N/A\",Ref!$B$36,INDEX(Ranks!$1:$1048576,$A266,DB$1))","v":""},{"$f":"IF($A266=\"N/A\",Ref!$B$36,INDEX(Ranks!$1:$1048576,$A266,DC$1))","v":""},{"$f":"IF($A266=\"N/A\",Ref!$B$36,INDEX(Ranks!$1:$1048576,$A266,DD$1))","v":""},{"$f":"IF($A266=\"N/A\",Ref!$B$36,INDEX(Ranks!$1:$1048576,$A266,DE$1))","v":""},{"$f":"IF($A266=\"N/A\",Ref!$B$36,INDEX(Ranks!$1:$1048576,$A266,DF$1))","v":""},{"$f":"IF($A266=\"N/A\",Ref!$B$36,INDEX(Ranks!$1:$1048576,$A266,DG$1))","v":""},{"$f":"IF($A266=\"N/A\",Ref!$B$36,INDEX(Ranks!$1:$1048576,$A266,DH$1))","v":""},{"$f":"IF($A266=\"N/A\",Ref!$B$36,INDEX(Ranks!$1:$1048576,$A266,DI$1))","v":""},{"$f":"IF($A266=\"N/A\",Ref!$B$36,INDEX(Ranks!$1:$1048576,$A266,DJ$1))","v":""},{"$f":"IF($A266=\"N/A\",Ref!$B$36,INDEX(Ranks!$1:$1048576,$A266,DK$1))","v":""},{"$f":"IF($A266=\"N/A\",Ref!$B$36,INDEX(Ranks!$1:$1048576,$A266,DL$1))","v":""},{"$f":"IF($A266=\"N/A\",Ref!$B$36,INDEX(Ranks!$1:$1048576,$A266,DM$1))","v":""},{"$f":"IF($A266=\"N/A\",Ref!$B$36,INDEX(Ranks!$1:$1048576,$A266,DN$1))","v":""},{"$f":"IF($A266=\"N/A\",Ref!$B$36,INDEX(Ranks!$1:$1048576,$A266,DO$1))","v":""},{"$f":"IF($A266=\"N/A\",Ref!$B$36,INDEX(Ranks!$1:$1048576,$A266,DP$1))","v":""},{"$f":"IF($A266=\"N/A\",Ref!$B$36,INDEX(Ranks!$1:$1048576,$A266,DQ$1))","v":""},{"$f":"IF($A266=\"N/A\",Ref!$B$36,INDEX(Ranks!$1:$1048576,$A266,DR$1))","v":""},{"$f":"IF($A266=\"N/A\",Ref!$B$36,INDEX(Ranks!$1:$1048576,$A266,DS$1))","v":""},{"$f":"IF($A266=\"N/A\",Ref!$B$36,INDEX(Ranks!$1:$1048576,$A266,DT$1))","v":""},{"$f":"IF($A266=\"N/A\",Ref!$B$36,INDEX(Ranks!$1:$1048576,$A266,DU$1))","v":""},{"$f":"IF($A266=\"N/A\",Ref!$B$36,INDEX(Ranks!$1:$1048576,$A266,DV$1))","v":""},{"$f":"IF($A266=\"N/A\",Ref!$B$36,INDEX(Ranks!$1:$1048576,$A266,DW$1))","v":""},{"$f":"IF($A266=\"N/A\",Ref!$B$36,INDEX(Ranks!$1:$1048576,$A266,DX$1))","v":""},{"$f":"IF($A266=\"N/A\",Ref!$B$36,INDEX(Ranks!$1:$1048576,$A266,DY$1))","v":""},{"$f":"IF($A266=\"N/A\",Ref!$B$36,INDEX(Ranks!$1:$1048576,$A266,DZ$1))","v":""},{"$f":"IF($A266=\"N/A\",Ref!$B$36,INDEX(Ranks!$1:$1048576,$A266,EA$1))","v":""},{"$f":"IF($A266=\"N/A\",Ref!$B$36,INDEX(Ranks!$1:$1048576,$A266,EB$1))","v":""}]
[{"$f":"IFERROR(MATCH('Portfolio Page'!L267,Ranks!L:L,0),\"N/A\")","v":"N/A"},null,{"$f":"IF($A267=\"N/A\",\"\",INDEX(Ranks!$1:$1048576,$A267,C$1))","v":""},{"$f":"IF($A267=\"N/A\",Ref!$B$36,INDEX(Ranks!$1:$1048576,$A267,D$1))","v":""},{"$f":"IF($A267=\"N/A\",Ref!$B$36,INDEX(Ranks!$1:$1048576,$A267,E$1))","v":""},{"$f":"IF($A267=\"N/A\",\"\",INDEX(Ranks!$1:$1048576,$A267,F$1))","v":""},{"$f":"IF($A267=\"N/A\",\"\",INDEX(Ranks!$1:$1048576,$A267,G$1))","v":""},{"$f":"IF($A267=\"N/A\",\"\",INDEX(Ranks!$1:$1048576,$A267,H$1))","v":""},{"$f":"IF($A267=\"N/A\",\"\",INDEX(Ranks!$1:$1048576,$A267,I$1))","v":""},{"$f":"IF($A267=\"N/A\",\"\",INDEX(Ranks!$1:$1048576,$A267,J$1))","v":""},{"$f":"IF($A267=\"N/A\",\"\",INDEX(Ranks!$1:$1048576,$A267,K$1))","v":""},null,{"$f":"IF($A267=\"N/A\",Ref!$B$36,INDEX(Ranks!$1:$1048576,$A267,M$1))","v":""},{"$f":"IF($A267=\"N/A\",Ref!$B$36,INDEX(Ranks!$1:$1048576,$A267,N$1))","v":""},{"$f":"IF($A267=\"N/A\",Ref!$B$36,INDEX(Ranks!$1:$1048576,$A267,O$1))","v":""},{"$f":"IF($A267=\"N/A\",Ref!$B$36,INDEX(Ranks!$1:$1048576,$A267,P$1))","v":""},{"$f":"IF($A267=\"N/A\",Ref!$B$36,INDEX(Ranks!$1:$1048576,$A267,Q$1))","v":""},{"$f":"IF($A267=\"N/A\",Ref!$B$36,INDEX(Ranks!$1:$1048576,$A267,R$1))","v":""},{"$f":"IF($A267=\"N/A\",Ref!$B$36,INDEX(Ranks!$1:$1048576,$A267,S$1))","v":""},{"$f":"IF($A267=\"N/A\",Ref!$B$36,INDEX(Ranks!$1:$1048576,$A267,T$1))","v":""},{"$f":"IF($A267=\"N/A\",Ref!$B$36,INDEX(Ranks!$1:$1048576,$A267,U$1))","v":""},{"$f":"IF($A267=\"N/A\",Ref!$B$36,INDEX(Ranks!$1:$1048576,$A267,V$1))","v":""},{"$f":"IF($A267=\"N/A\",Ref!$B$36,INDEX(Ranks!$1:$1048576,$A267,W$1))","v":""},{"$f":"IF($A267=\"N/A\",Ref!$B$36,INDEX(Ranks!$1:$1048576,$A267,X$1))","v":""},{"$f":"IF($A267=\"N/A\",Ref!$B$36,INDEX(Ranks!$1:$1048576,$A267,Y$1))","v":""},{"$f":"IF($A267=\"N/A\",Ref!$B$36,INDEX(Ranks!$1:$1048576,$A267,Z$1))","v":""},{"$f":"IF($A267=\"N/A\",Ref!$B$36,INDEX(Ranks!$1:$1048576,$A267,AA$1))","v":""},{"$f":"IF($A267=\"N/A\",Ref!$B$36,INDEX(Ranks!$1:$1048576,$A267,AB$1))","v":""},{"$f":"IF($A267=\"N/A\",Ref!$B$36,INDEX(Ranks!$1:$1048576,$A267,AC$1))","v":""},{"$f":"IF($A267=\"N/A\",Ref!$B$36,INDEX(Ranks!$1:$1048576,$A267,AD$1))","v":""},{"$f":"IF($A267=\"N/A\",Ref!$B$36,INDEX(Ranks!$1:$1048576,$A267,AE$1))","v":""},{"$f":"IF($A267=\"N/A\",Ref!$B$36,INDEX(Ranks!$1:$1048576,$A267,AF$1))","v":""},{"$f":"IF($A267=\"N/A\",Ref!$B$36,INDEX(Ranks!$1:$1048576,$A267,AG$1))","v":""},{"$f":"IF($A267=\"N/A\",Ref!$B$36,INDEX(Ranks!$1:$1048576,$A267,AH$1))","v":""},{"$f":"IF($A267=\"N/A\",Ref!$B$36,INDEX(Ranks!$1:$1048576,$A267,AI$1))","v":""},{"$f":"IF($A267=\"N/A\",Ref!$B$36,INDEX(Ranks!$1:$1048576,$A267,AJ$1))","v":""},{"$f":"IF($A267=\"N/A\",Ref!$B$36,INDEX(Ranks!$1:$1048576,$A267,AK$1))","v":""},{"$f":"IF($A267=\"N/A\",Ref!$B$36,INDEX(Ranks!$1:$1048576,$A267,AL$1))","v":""},{"$f":"IF($A267=\"N/A\",Ref!$B$36,INDEX(Ranks!$1:$1048576,$A267,AM$1))","v":""},{"$f":"IF($A267=\"N/A\",Ref!$B$36,INDEX(Ranks!$1:$1048576,$A267,AN$1))","v":""},{"$f":"IF($A267=\"N/A\",Ref!$B$36,INDEX(Ranks!$1:$1048576,$A267,AO$1))","v":""},{"$f":"IF($A267=\"N/A\",Ref!$B$36,INDEX(Ranks!$1:$1048576,$A267,AP$1))","v":""},{"$f":"IF($A267=\"N/A\",Ref!$B$36,INDEX(Ranks!$1:$1048576,$A267,AQ$1))","v":""},{"$f":"IF($A267=\"N/A\",Ref!$B$36,INDEX(Ranks!$1:$1048576,$A267,AR$1))","v":""},{"$f":"IF($A267=\"N/A\",Ref!$B$36,INDEX(Ranks!$1:$1048576,$A267,AS$1))","v":""},{"$f":"IF($A267=\"N/A\",Ref!$B$36,INDEX(Ranks!$1:$1048576,$A267,AT$1))","v":""},{"$f":"IF($A267=\"N/A\",Ref!$B$36,INDEX(Ranks!$1:$1048576,$A267,AU$1))","v":""},{"$f":"IF($A267=\"N/A\",Ref!$B$36,INDEX(Ranks!$1:$1048576,$A267,AV$1))","v":""},{"$f":"IF($A267=\"N/A\",Ref!$B$36,INDEX(Ranks!$1:$1048576,$A267,AW$1))","v":""},{"$f":"IF($A267=\"N/A\",Ref!$B$36,INDEX(Ranks!$1:$1048576,$A267,AX$1))","v":""},{"$f":"IF($A267=\"N/A\",Ref!$B$36,INDEX(Ranks!$1:$1048576,$A267,AY$1))","v":""},{"$f":"IF($A267=\"N/A\",Ref!$B$36,INDEX(Ranks!$1:$1048576,$A267,AZ$1))","v":""},{"$f":"IF($A267=\"N/A\",Ref!$B$36,INDEX(Ranks!$1:$1048576,$A267,BA$1))","v":""},{"$f":"IF($A267=\"N/A\",Ref!$B$36,INDEX(Ranks!$1:$1048576,$A267,BB$1))","v":""},{"$f":"IF($A267=\"N/A\",Ref!$B$36,INDEX(Ranks!$1:$1048576,$A267,BC$1))","v":""},{"$f":"IF($A267=\"N/A\",Ref!$B$36,INDEX(Ranks!$1:$1048576,$A267,BD$1))","v":""},{"$f":"IF($A267=\"N/A\",Ref!$B$36,INDEX(Ranks!$1:$1048576,$A267,BE$1))","v":""},{"$f":"IF($A267=\"N/A\",Ref!$B$36,INDEX(Ranks!$1:$1048576,$A267,BF$1))","v":""},{"$f":"IF($A267=\"N/A\",Ref!$B$36,INDEX(Ranks!$1:$1048576,$A267,BG$1))","v":""},{"$f":"IF($A267=\"N/A\",Ref!$B$36,INDEX(Ranks!$1:$1048576,$A267,BH$1))","v":""},{"$f":"IF($A267=\"N/A\",Ref!$B$36,INDEX(Ranks!$1:$1048576,$A267,BI$1))","v":""},{"$f":"IF($A267=\"N/A\",Ref!$B$36,INDEX(Ranks!$1:$1048576,$A267,BJ$1))","v":""},{"$f":"IF($A267=\"N/A\",Ref!$B$36,INDEX(Ranks!$1:$1048576,$A267,BK$1))","v":""},{"$f":"IF($A267=\"N/A\",Ref!$B$36,INDEX(Ranks!$1:$1048576,$A267,BL$1))","v":""},{"$f":"IF($A267=\"N/A\",Ref!$B$36,INDEX(Ranks!$1:$1048576,$A267,BM$1))","v":""},{"$f":"IF($A267=\"N/A\",Ref!$B$36,INDEX(Ranks!$1:$1048576,$A267,BN$1))","v":""},{"$f":"IF($A267=\"N/A\",Ref!$B$36,INDEX(Ranks!$1:$1048576,$A267,BO$1))","v":""},{"$f":"IF($A267=\"N/A\",Ref!$B$36,INDEX(Ranks!$1:$1048576,$A267,BP$1))","v":""},{"$f":"IF($A267=\"N/A\",Ref!$B$36,INDEX(Ranks!$1:$1048576,$A267,BQ$1))","v":""},{"$f":"IF($A267=\"N/A\",Ref!$B$36,INDEX(Ranks!$1:$1048576,$A267,BR$1))","v":""},{"$f":"IF($A267=\"N/A\",Ref!$B$36,INDEX(Ranks!$1:$1048576,$A267,BS$1))","v":""},{"$f":"IF($A267=\"N/A\",Ref!$B$36,INDEX(Ranks!$1:$1048576,$A267,BT$1))","v":""},{"$f":"IF($A267=\"N/A\",Ref!$B$36,INDEX(Ranks!$1:$1048576,$A267,BU$1))","v":""},{"$f":"IF($A267=\"N/A\",Ref!$B$36,INDEX(Ranks!$1:$1048576,$A267,BV$1))","v":""},{"$f":"IF($A267=\"N/A\",Ref!$B$36,INDEX(Ranks!$1:$1048576,$A267,BW$1))","v":""},{"$f":"IF($A267=\"N/A\",Ref!$B$36,INDEX(Ranks!$1:$1048576,$A267,BX$1))","v":""},{"$f":"IF($A267=\"N/A\",Ref!$B$36,INDEX(Ranks!$1:$1048576,$A267,BY$1))","v":""},{"$f":"IF($A267=\"N/A\",Ref!$B$36,INDEX(Ranks!$1:$1048576,$A267,BZ$1))","v":""},{"$f":"IF($A267=\"N/A\",Ref!$B$36,INDEX(Ranks!$1:$1048576,$A267,CA$1))","v":""},{"$f":"IF($A267=\"N/A\",Ref!$B$36,INDEX(Ranks!$1:$1048576,$A267,CB$1))","v":""},{"$f":"IF($A267=\"N/A\",Ref!$B$36,INDEX(Ranks!$1:$1048576,$A267,CC$1))","v":""},{"$f":"IF($A267=\"N/A\",Ref!$B$36,INDEX(Ranks!$1:$1048576,$A267,CD$1))","v":""},{"$f":"IF($A267=\"N/A\",Ref!$B$36,INDEX(Ranks!$1:$1048576,$A267,CE$1))","v":""},{"$f":"IF($A267=\"N/A\",Ref!$B$36,INDEX(Ranks!$1:$1048576,$A267,CF$1))","v":""},{"$f":"IF($A267=\"N/A\",Ref!$B$36,INDEX(Ranks!$1:$1048576,$A267,CG$1))","v":""},{"$f":"IF($A267=\"N/A\",Ref!$B$36,INDEX(Ranks!$1:$1048576,$A267,CH$1))","v":""},{"$f":"IF($A267=\"N/A\",Ref!$B$36,INDEX(Ranks!$1:$1048576,$A267,CI$1))","v":""},{"$f":"IF($A267=\"N/A\",Ref!$B$36,INDEX(Ranks!$1:$1048576,$A267,CJ$1))","v":""},{"$f":"IF($A267=\"N/A\",Ref!$B$36,INDEX(Ranks!$1:$1048576,$A267,CK$1))","v":""},{"$f":"IF($A267=\"N/A\",Ref!$B$36,INDEX(Ranks!$1:$1048576,$A267,CL$1))","v":""},{"$f":"IF($A267=\"N/A\",Ref!$B$36,INDEX(Ranks!$1:$1048576,$A267,CM$1))","v":""},{"$f":"IF($A267=\"N/A\",Ref!$B$36,INDEX(Ranks!$1:$1048576,$A267,CN$1))","v":""},{"$f":"IF($A267=\"N/A\",Ref!$B$36,INDEX(Ranks!$1:$1048576,$A267,CO$1))","v":""},{"$f":"IF($A267=\"N/A\",Ref!$B$36,INDEX(Ranks!$1:$1048576,$A267,CP$1))","v":""},{"$f":"IF($A267=\"N/A\",Ref!$B$36,INDEX(Ranks!$1:$1048576,$A267,CQ$1))","v":""},{"$f":"IF($A267=\"N/A\",Ref!$B$36,INDEX(Ranks!$1:$1048576,$A267,CR$1))","v":""},{"$f":"IF($A267=\"N/A\",Ref!$B$36,INDEX(Ranks!$1:$1048576,$A267,CS$1))","v":""},{"$f":"IF($A267=\"N/A\",Ref!$B$36,INDEX(Ranks!$1:$1048576,$A267,CT$1))","v":""},{"$f":"IF($A267=\"N/A\",Ref!$B$36,INDEX(Ranks!$1:$1048576,$A267,CU$1))","v":""},{"$f":"IF($A267=\"N/A\",Ref!$B$36,INDEX(Ranks!$1:$1048576,$A267,CV$1))","v":""},{"$f":"IF($A267=\"N/A\",Ref!$B$36,INDEX(Ranks!$1:$1048576,$A267,CW$1))","v":""},{"$f":"IF($A267=\"N/A\",Ref!$B$36,INDEX(Ranks!$1:$1048576,$A267,CX$1))","v":""},{"$f":"IF($A267=\"N/A\",Ref!$B$36,INDEX(Ranks!$1:$1048576,$A267,CY$1))","v":""},{"$f":"IF($A267=\"N/A\",Ref!$B$36,INDEX(Ranks!$1:$1048576,$A267,CZ$1))","v":""},{"$f":"IF($A267=\"N/A\",Ref!$B$36,INDEX(Ranks!$1:$1048576,$A267,DA$1))","v":""},{"$f":"IF($A267=\"N/A\",Ref!$B$36,INDEX(Ranks!$1:$1048576,$A267,DB$1))","v":""},{"$f":"IF($A267=\"N/A\",Ref!$B$36,INDEX(Ranks!$1:$1048576,$A267,DC$1))","v":""},{"$f":"IF($A267=\"N/A\",Ref!$B$36,INDEX(Ranks!$1:$1048576,$A267,DD$1))","v":""},{"$f":"IF($A267=\"N/A\",Ref!$B$36,INDEX(Ranks!$1:$1048576,$A267,DE$1))","v":""},{"$f":"IF($A267=\"N/A\",Ref!$B$36,INDEX(Ranks!$1:$1048576,$A267,DF$1))","v":""},{"$f":"IF($A267=\"N/A\",Ref!$B$36,INDEX(Ranks!$1:$1048576,$A267,DG$1))","v":""},{"$f":"IF($A267=\"N/A\",Ref!$B$36,INDEX(Ranks!$1:$1048576,$A267,DH$1))","v":""},{"$f":"IF($A267=\"N/A\",Ref!$B$36,INDEX(Ranks!$1:$1048576,$A267,DI$1))","v":""},{"$f":"IF($A267=\"N/A\",Ref!$B$36,INDEX(Ranks!$1:$1048576,$A267,DJ$1))","v":""},{"$f":"IF($A267=\"N/A\",Ref!$B$36,INDEX(Ranks!$1:$1048576,$A267,DK$1))","v":""},{"$f":"IF($A267=\"N/A\",Ref!$B$36,INDEX(Ranks!$1:$1048576,$A267,DL$1))","v":""},{"$f":"IF($A267=\"N/A\",Ref!$B$36,INDEX(Ranks!$1:$1048576,$A267,DM$1))","v":""},{"$f":"IF($A267=\"N/A\",Ref!$B$36,INDEX(Ranks!$1:$1048576,$A267,DN$1))","v":""},{"$f":"IF($A267=\"N/A\",Ref!$B$36,INDEX(Ranks!$1:$1048576,$A267,DO$1))","v":""},{"$f":"IF($A267=\"N/A\",Ref!$B$36,INDEX(Ranks!$1:$1048576,$A267,DP$1))","v":""},{"$f":"IF($A267=\"N/A\",Ref!$B$36,INDEX(Ranks!$1:$1048576,$A267,DQ$1))","v":""},{"$f":"IF($A267=\"N/A\",Ref!$B$36,INDEX(Ranks!$1:$1048576,$A267,DR$1))","v":""},{"$f":"IF($A267=\"N/A\",Ref!$B$36,INDEX(Ranks!$1:$1048576,$A267,DS$1))","v":""},{"$f":"IF($A267=\"N/A\",Ref!$B$36,INDEX(Ranks!$1:$1048576,$A267,DT$1))","v":""},{"$f":"IF($A267=\"N/A\",Ref!$B$36,INDEX(Ranks!$1:$1048576,$A267,DU$1))","v":""},{"$f":"IF($A267=\"N/A\",Ref!$B$36,INDEX(Ranks!$1:$1048576,$A267,DV$1))","v":""},{"$f":"IF($A267=\"N/A\",Ref!$B$36,INDEX(Ranks!$1:$1048576,$A267,DW$1))","v":""},{"$f":"IF($A267=\"N/A\",Ref!$B$36,INDEX(Ranks!$1:$1048576,$A267,DX$1))","v":""},{"$f":"IF($A267=\"N/A\",Ref!$B$36,INDEX(Ranks!$1:$1048576,$A267,DY$1))","v":""},{"$f":"IF($A267=\"N/A\",Ref!$B$36,INDEX(Ranks!$1:$1048576,$A267,DZ$1))","v":""},{"$f":"IF($A267=\"N/A\",Ref!$B$36,INDEX(Ranks!$1:$1048576,$A267,EA$1))","v":""},{"$f":"IF($A267=\"N/A\",Ref!$B$36,INDEX(Ranks!$1:$1048576,$A267,EB$1))","v":""}]
[{"$f":"IFERROR(MATCH('Portfolio Page'!L268,Ranks!L:L,0),\"N/A\")","v":"N/A"},null,{"$f":"IF($A268=\"N/A\",\"\",INDEX(Ranks!$1:$1048576,$A268,C$1))","v":""},{"$f":"IF($A268=\"N/A\",Ref!$B$36,INDEX(Ranks!$1:$1048576,$A268,D$1))","v":""},{"$f":"IF($A268=\"N/A\",Ref!$B$36,INDEX(Ranks!$1:$1048576,$A268,E$1))","v":""},{"$f":"IF($A268=\"N/A\",\"\",INDEX(Ranks!$1:$1048576,$A268,F$1))","v":""},{"$f":"IF($A268=\"N/A\",\"\",INDEX(Ranks!$1:$1048576,$A268,G$1))","v":""},{"$f":"IF($A268=\"N/A\",\"\",INDEX(Ranks!$1:$1048576,$A268,H$1))","v":""},{"$f":"IF($A268=\"N/A\",\"\",INDEX(Ranks!$1:$1048576,$A268,I$1))","v":""},{"$f":"IF($A268=\"N/A\",\"\",INDEX(Ranks!$1:$1048576,$A268,J$1))","v":""},{"$f":"IF($A268=\"N/A\",\"\",INDEX(Ranks!$1:$1048576,$A268,K$1))","v":""},null,{"$f":"IF($A268=\"N/A\",Ref!$B$36,INDEX(Ranks!$1:$1048576,$A268,M$1))","v":""},{"$f":"IF($A268=\"N/A\",Ref!$B$36,INDEX(Ranks!$1:$1048576,$A268,N$1))","v":""},{"$f":"IF($A268=\"N/A\",Ref!$B$36,INDEX(Ranks!$1:$1048576,$A268,O$1))","v":""},{"$f":"IF($A268=\"N/A\",Ref!$B$36,INDEX(Ranks!$1:$1048576,$A268,P$1))","v":""},{"$f":"IF($A268=\"N/A\",Ref!$B$36,INDEX(Ranks!$1:$1048576,$A268,Q$1))","v":""},{"$f":"IF($A268=\"N/A\",Ref!$B$36,INDEX(Ranks!$1:$1048576,$A268,R$1))","v":""},{"$f":"IF($A268=\"N/A\",Ref!$B$36,INDEX(Ranks!$1:$1048576,$A268,S$1))","v":""},{"$f":"IF($A268=\"N/A\",Ref!$B$36,INDEX(Ranks!$1:$1048576,$A268,T$1))","v":""},{"$f":"IF($A268=\"N/A\",Ref!$B$36,INDEX(Ranks!$1:$1048576,$A268,U$1))","v":""},{"$f":"IF($A268=\"N/A\",Ref!$B$36,INDEX(Ranks!$1:$1048576,$A268,V$1))","v":""},{"$f":"IF($A268=\"N/A\",Ref!$B$36,INDEX(Ranks!$1:$1048576,$A268,W$1))","v":""},{"$f":"IF($A268=\"N/A\",Ref!$B$36,INDEX(Ranks!$1:$1048576,$A268,X$1))","v":""},{"$f":"IF($A268=\"N/A\",Ref!$B$36,INDEX(Ranks!$1:$1048576,$A268,Y$1))","v":""},{"$f":"IF($A268=\"N/A\",Ref!$B$36,INDEX(Ranks!$1:$1048576,$A268,Z$1))","v":""},{"$f":"IF($A268=\"N/A\",Ref!$B$36,INDEX(Ranks!$1:$1048576,$A268,AA$1))","v":""},{"$f":"IF($A268=\"N/A\",Ref!$B$36,INDEX(Ranks!$1:$1048576,$A268,AB$1))","v":""},{"$f":"IF($A268=\"N/A\",Ref!$B$36,INDEX(Ranks!$1:$1048576,$A268,AC$1))","v":""},{"$f":"IF($A268=\"N/A\",Ref!$B$36,INDEX(Ranks!$1:$1048576,$A268,AD$1))","v":""},{"$f":"IF($A268=\"N/A\",Ref!$B$36,INDEX(Ranks!$1:$1048576,$A268,AE$1))","v":""},{"$f":"IF($A268=\"N/A\",Ref!$B$36,INDEX(Ranks!$1:$1048576,$A268,AF$1))","v":""},{"$f":"IF($A268=\"N/A\",Ref!$B$36,INDEX(Ranks!$1:$1048576,$A268,AG$1))","v":""},{"$f":"IF($A268=\"N/A\",Ref!$B$36,INDEX(Ranks!$1:$1048576,$A268,AH$1))","v":""},{"$f":"IF($A268=\"N/A\",Ref!$B$36,INDEX(Ranks!$1:$1048576,$A268,AI$1))","v":""},{"$f":"IF($A268=\"N/A\",Ref!$B$36,INDEX(Ranks!$1:$1048576,$A268,AJ$1))","v":""},{"$f":"IF($A268=\"N/A\",Ref!$B$36,INDEX(Ranks!$1:$1048576,$A268,AK$1))","v":""},{"$f":"IF($A268=\"N/A\",Ref!$B$36,INDEX(Ranks!$1:$1048576,$A268,AL$1))","v":""},{"$f":"IF($A268=\"N/A\",Ref!$B$36,INDEX(Ranks!$1:$1048576,$A268,AM$1))","v":""},{"$f":"IF($A268=\"N/A\",Ref!$B$36,INDEX(Ranks!$1:$1048576,$A268,AN$1))","v":""},{"$f":"IF($A268=\"N/A\",Ref!$B$36,INDEX(Ranks!$1:$1048576,$A268,AO$1))","v":""},{"$f":"IF($A268=\"N/A\",Ref!$B$36,INDEX(Ranks!$1:$1048576,$A268,AP$1))","v":""},{"$f":"IF($A268=\"N/A\",Ref!$B$36,INDEX(Ranks!$1:$1048576,$A268,AQ$1))","v":""},{"$f":"IF($A268=\"N/A\",Ref!$B$36,INDEX(Ranks!$1:$1048576,$A268,AR$1))","v":""},{"$f":"IF($A268=\"N/A\",Ref!$B$36,INDEX(Ranks!$1:$1048576,$A268,AS$1))","v":""},{"$f":"IF($A268=\"N/A\",Ref!$B$36,INDEX(Ranks!$1:$1048576,$A268,AT$1))","v":""},{"$f":"IF($A268=\"N/A\",Ref!$B$36,INDEX(Ranks!$1:$1048576,$A268,AU$1))","v":""},{"$f":"IF($A268=\"N/A\",Ref!$B$36,INDEX(Ranks!$1:$1048576,$A268,AV$1))","v":""},{"$f":"IF($A268=\"N/A\",Ref!$B$36,INDEX(Ranks!$1:$1048576,$A268,AW$1))","v":""},{"$f":"IF($A268=\"N/A\",Ref!$B$36,INDEX(Ranks!$1:$1048576,$A268,AX$1))","v":""},{"$f":"IF($A268=\"N/A\",Ref!$B$36,INDEX(Ranks!$1:$1048576,$A268,AY$1))","v":""},{"$f":"IF($A268=\"N/A\",Ref!$B$36,INDEX(Ranks!$1:$1048576,$A268,AZ$1))","v":""},{"$f":"IF($A268=\"N/A\",Ref!$B$36,INDEX(Ranks!$1:$1048576,$A268,BA$1))","v":""},{"$f":"IF($A268=\"N/A\",Ref!$B$36,INDEX(Ranks!$1:$1048576,$A268,BB$1))","v":""},{"$f":"IF($A268=\"N/A\",Ref!$B$36,INDEX(Ranks!$1:$1048576,$A268,BC$1))","v":""},{"$f":"IF($A268=\"N/A\",Ref!$B$36,INDEX(Ranks!$1:$1048576,$A268,BD$1))","v":""},{"$f":"IF($A268=\"N/A\",Ref!$B$36,INDEX(Ranks!$1:$1048576,$A268,BE$1))","v":""},{"$f":"IF($A268=\"N/A\",Ref!$B$36,INDEX(Ranks!$1:$1048576,$A268,BF$1))","v":""},{"$f":"IF($A268=\"N/A\",Ref!$B$36,INDEX(Ranks!$1:$1048576,$A268,BG$1))","v":""},{"$f":"IF($A268=\"N/A\",Ref!$B$36,INDEX(Ranks!$1:$1048576,$A268,BH$1))","v":""},{"$f":"IF($A268=\"N/A\",Ref!$B$36,INDEX(Ranks!$1:$1048576,$A268,BI$1))","v":""},{"$f":"IF($A268=\"N/A\",Ref!$B$36,INDEX(Ranks!$1:$1048576,$A268,BJ$1))","v":""},{"$f":"IF($A268=\"N/A\",Ref!$B$36,INDEX(Ranks!$1:$1048576,$A268,BK$1))","v":""},{"$f":"IF($A268=\"N/A\",Ref!$B$36,INDEX(Ranks!$1:$1048576,$A268,BL$1))","v":""},{"$f":"IF($A268=\"N/A\",Ref!$B$36,INDEX(Ranks!$1:$1048576,$A268,BM$1))","v":""},{"$f":"IF($A268=\"N/A\",Ref!$B$36,INDEX(Ranks!$1:$1048576,$A268,BN$1))","v":""},{"$f":"IF($A268=\"N/A\",Ref!$B$36,INDEX(Ranks!$1:$1048576,$A268,BO$1))","v":""},{"$f":"IF($A268=\"N/A\",Ref!$B$36,INDEX(Ranks!$1:$1048576,$A268,BP$1))","v":""},{"$f":"IF($A268=\"N/A\",Ref!$B$36,INDEX(Ranks!$1:$1048576,$A268,BQ$1))","v":""},{"$f":"IF($A268=\"N/A\",Ref!$B$36,INDEX(Ranks!$1:$1048576,$A268,BR$1))","v":""},{"$f":"IF($A268=\"N/A\",Ref!$B$36,INDEX(Ranks!$1:$1048576,$A268,BS$1))","v":""},{"$f":"IF($A268=\"N/A\",Ref!$B$36,INDEX(Ranks!$1:$1048576,$A268,BT$1))","v":""},{"$f":"IF($A268=\"N/A\",Ref!$B$36,INDEX(Ranks!$1:$1048576,$A268,BU$1))","v":""},{"$f":"IF($A268=\"N/A\",Ref!$B$36,INDEX(Ranks!$1:$1048576,$A268,BV$1))","v":""},{"$f":"IF($A268=\"N/A\",Ref!$B$36,INDEX(Ranks!$1:$1048576,$A268,BW$1))","v":""},{"$f":"IF($A268=\"N/A\",Ref!$B$36,INDEX(Ranks!$1:$1048576,$A268,BX$1))","v":""},{"$f":"IF($A268=\"N/A\",Ref!$B$36,INDEX(Ranks!$1:$1048576,$A268,BY$1))","v":""},{"$f":"IF($A268=\"N/A\",Ref!$B$36,INDEX(Ranks!$1:$1048576,$A268,BZ$1))","v":""},{"$f":"IF($A268=\"N/A\",Ref!$B$36,INDEX(Ranks!$1:$1048576,$A268,CA$1))","v":""},{"$f":"IF($A268=\"N/A\",Ref!$B$36,INDEX(Ranks!$1:$1048576,$A268,CB$1))","v":""},{"$f":"IF($A268=\"N/A\",Ref!$B$36,INDEX(Ranks!$1:$1048576,$A268,CC$1))","v":""},{"$f":"IF($A268=\"N/A\",Ref!$B$36,INDEX(Ranks!$1:$1048576,$A268,CD$1))","v":""},{"$f":"IF($A268=\"N/A\",Ref!$B$36,INDEX(Ranks!$1:$1048576,$A268,CE$1))","v":""},{"$f":"IF($A268=\"N/A\",Ref!$B$36,INDEX(Ranks!$1:$1048576,$A268,CF$1))","v":""},{"$f":"IF($A268=\"N/A\",Ref!$B$36,INDEX(Ranks!$1:$1048576,$A268,CG$1))","v":""},{"$f":"IF($A268=\"N/A\",Ref!$B$36,INDEX(Ranks!$1:$1048576,$A268,CH$1))","v":""},{"$f":"IF($A268=\"N/A\",Ref!$B$36,INDEX(Ranks!$1:$1048576,$A268,CI$1))","v":""},{"$f":"IF($A268=\"N/A\",Ref!$B$36,INDEX(Ranks!$1:$1048576,$A268,CJ$1))","v":""},{"$f":"IF($A268=\"N/A\",Ref!$B$36,INDEX(Ranks!$1:$1048576,$A268,CK$1))","v":""},{"$f":"IF($A268=\"N/A\",Ref!$B$36,INDEX(Ranks!$1:$1048576,$A268,CL$1))","v":""},{"$f":"IF($A268=\"N/A\",Ref!$B$36,INDEX(Ranks!$1:$1048576,$A268,CM$1))","v":""},{"$f":"IF($A268=\"N/A\",Ref!$B$36,INDEX(Ranks!$1:$1048576,$A268,CN$1))","v":""},{"$f":"IF($A268=\"N/A\",Ref!$B$36,INDEX(Ranks!$1:$1048576,$A268,CO$1))","v":""},{"$f":"IF($A268=\"N/A\",Ref!$B$36,INDEX(Ranks!$1:$1048576,$A268,CP$1))","v":""},{"$f":"IF($A268=\"N/A\",Ref!$B$36,INDEX(Ranks!$1:$1048576,$A268,CQ$1))","v":""},{"$f":"IF($A268=\"N/A\",Ref!$B$36,INDEX(Ranks!$1:$1048576,$A268,CR$1))","v":""},{"$f":"IF($A268=\"N/A\",Ref!$B$36,INDEX(Ranks!$1:$1048576,$A268,CS$1))","v":""},{"$f":"IF($A268=\"N/A\",Ref!$B$36,INDEX(Ranks!$1:$1048576,$A268,CT$1))","v":""},{"$f":"IF($A268=\"N/A\",Ref!$B$36,INDEX(Ranks!$1:$1048576,$A268,CU$1))","v":""},{"$f":"IF($A268=\"N/A\",Ref!$B$36,INDEX(Ranks!$1:$1048576,$A268,CV$1))","v":""},{"$f":"IF($A268=\"N/A\",Ref!$B$36,INDEX(Ranks!$1:$1048576,$A268,CW$1))","v":""},{"$f":"IF($A268=\"N/A\",Ref!$B$36,INDEX(Ranks!$1:$1048576,$A268,CX$1))","v":""},{"$f":"IF($A268=\"N/A\",Ref!$B$36,INDEX(Ranks!$1:$1048576,$A268,CY$1))","v":""},{"$f":"IF($A268=\"N/A\",Ref!$B$36,INDEX(Ranks!$1:$1048576,$A268,CZ$1))","v":""},{"$f":"IF($A268=\"N/A\",Ref!$B$36,INDEX(Ranks!$1:$1048576,$A268,DA$1))","v":""},{"$f":"IF($A268=\"N/A\",Ref!$B$36,INDEX(Ranks!$1:$1048576,$A268,DB$1))","v":""},{"$f":"IF($A268=\"N/A\",Ref!$B$36,INDEX(Ranks!$1:$1048576,$A268,DC$1))","v":""},{"$f":"IF($A268=\"N/A\",Ref!$B$36,INDEX(Ranks!$1:$1048576,$A268,DD$1))","v":""},{"$f":"IF($A268=\"N/A\",Ref!$B$36,INDEX(Ranks!$1:$1048576,$A268,DE$1))","v":""},{"$f":"IF($A268=\"N/A\",Ref!$B$36,INDEX(Ranks!$1:$1048576,$A268,DF$1))","v":""},{"$f":"IF($A268=\"N/A\",Ref!$B$36,INDEX(Ranks!$1:$1048576,$A268,DG$1))","v":""},{"$f":"IF($A268=\"N/A\",Ref!$B$36,INDEX(Ranks!$1:$1048576,$A268,DH$1))","v":""},{"$f":"IF($A268=\"N/A\",Ref!$B$36,INDEX(Ranks!$1:$1048576,$A268,DI$1))","v":""},{"$f":"IF($A268=\"N/A\",Ref!$B$36,INDEX(Ranks!$1:$1048576,$A268,DJ$1))","v":""},{"$f":"IF($A268=\"N/A\",Ref!$B$36,INDEX(Ranks!$1:$1048576,$A268,DK$1))","v":""},{"$f":"IF($A268=\"N/A\",Ref!$B$36,INDEX(Ranks!$1:$1048576,$A268,DL$1))","v":""},{"$f":"IF($A268=\"N/A\",Ref!$B$36,INDEX(Ranks!$1:$1048576,$A268,DM$1))","v":""},{"$f":"IF($A268=\"N/A\",Ref!$B$36,INDEX(Ranks!$1:$1048576,$A268,DN$1))","v":""},{"$f":"IF($A268=\"N/A\",Ref!$B$36,INDEX(Ranks!$1:$1048576,$A268,DO$1))","v":""},{"$f":"IF($A268=\"N/A\",Ref!$B$36,INDEX(Ranks!$1:$1048576,$A268,DP$1))","v":""},{"$f":"IF($A268=\"N/A\",Ref!$B$36,INDEX(Ranks!$1:$1048576,$A268,DQ$1))","v":""},{"$f":"IF($A268=\"N/A\",Ref!$B$36,INDEX(Ranks!$1:$1048576,$A268,DR$1))","v":""},{"$f":"IF($A268=\"N/A\",Ref!$B$36,INDEX(Ranks!$1:$1048576,$A268,DS$1))","v":""},{"$f":"IF($A268=\"N/A\",Ref!$B$36,INDEX(Ranks!$1:$1048576,$A268,DT$1))","v":""},{"$f":"IF($A268=\"N/A\",Ref!$B$36,INDEX(Ranks!$1:$1048576,$A268,DU$1))","v":""},{"$f":"IF($A268=\"N/A\",Ref!$B$36,INDEX(Ranks!$1:$1048576,$A268,DV$1))","v":""},{"$f":"IF($A268=\"N/A\",Ref!$B$36,INDEX(Ranks!$1:$1048576,$A268,DW$1))","v":""},{"$f":"IF($A268=\"N/A\",Ref!$B$36,INDEX(Ranks!$1:$1048576,$A268,DX$1))","v":""},{"$f":"IF($A268=\"N/A\",Ref!$B$36,INDEX(Ranks!$1:$1048576,$A268,DY$1))","v":""},{"$f":"IF($A268=\"N/A\",Ref!$B$36,INDEX(Ranks!$1:$1048576,$A268,DZ$1))","v":""},{"$f":"IF($A268=\"N/A\",Ref!$B$36,INDEX(Ranks!$1:$1048576,$A268,EA$1))","v":""},{"$f":"IF($A268=\"N/A\",Ref!$B$36,INDEX(Ranks!$1:$1048576,$A268,EB$1))","v":""}]
[{"$f":"IFERROR(MATCH('Portfolio Page'!L269,Ranks!L:L,0),\"N/A\")","v":"N/A"},null,{"$f":"IF($A269=\"N/A\",\"\",INDEX(Ranks!$1:$1048576,$A269,C$1))","v":""},{"$f":"IF($A269=\"N/A\",Ref!$B$36,INDEX(Ranks!$1:$1048576,$A269,D$1))","v":""},{"$f":"IF($A269=\"N/A\",Ref!$B$36,INDEX(Ranks!$1:$1048576,$A269,E$1))","v":""},{"$f":"IF($A269=\"N/A\",\"\",INDEX(Ranks!$1:$1048576,$A269,F$1))","v":""},{"$f":"IF($A269=\"N/A\",\"\",INDEX(Ranks!$1:$1048576,$A269,G$1))","v":""},{"$f":"IF($A269=\"N/A\",\"\",INDEX(Ranks!$1:$1048576,$A269,H$1))","v":""},{"$f":"IF($A269=\"N/A\",\"\",INDEX(Ranks!$1:$1048576,$A269,I$1))","v":""},{"$f":"IF($A269=\"N/A\",\"\",INDEX(Ranks!$1:$1048576,$A269,J$1))","v":""},{"$f":"IF($A269=\"N/A\",\"\",INDEX(Ranks!$1:$1048576,$A269,K$1))","v":""},null,{"$f":"IF($A269=\"N/A\",Ref!$B$36,INDEX(Ranks!$1:$1048576,$A269,M$1))","v":""},{"$f":"IF($A269=\"N/A\",Ref!$B$36,INDEX(Ranks!$1:$1048576,$A269,N$1))","v":""},{"$f":"IF($A269=\"N/A\",Ref!$B$36,INDEX(Ranks!$1:$1048576,$A269,O$1))","v":""},{"$f":"IF($A269=\"N/A\",Ref!$B$36,INDEX(Ranks!$1:$1048576,$A269,P$1))","v":""},{"$f":"IF($A269=\"N/A\",Ref!$B$36,INDEX(Ranks!$1:$1048576,$A269,Q$1))","v":""},{"$f":"IF($A269=\"N/A\",Ref!$B$36,INDEX(Ranks!$1:$1048576,$A269,R$1))","v":""},{"$f":"IF($A269=\"N/A\",Ref!$B$36,INDEX(Ranks!$1:$1048576,$A269,S$1))","v":""},{"$f":"IF($A269=\"N/A\",Ref!$B$36,INDEX(Ranks!$1:$1048576,$A269,T$1))","v":""},{"$f":"IF($A269=\"N/A\",Ref!$B$36,INDEX(Ranks!$1:$1048576,$A269,U$1))","v":""},{"$f":"IF($A269=\"N/A\",Ref!$B$36,INDEX(Ranks!$1:$1048576,$A269,V$1))","v":""},{"$f":"IF($A269=\"N/A\",Ref!$B$36,INDEX(Ranks!$1:$1048576,$A269,W$1))","v":""},{"$f":"IF($A269=\"N/A\",Ref!$B$36,INDEX(Ranks!$1:$1048576,$A269,X$1))","v":""},{"$f":"IF($A269=\"N/A\",Ref!$B$36,INDEX(Ranks!$1:$1048576,$A269,Y$1))","v":""},{"$f":"IF($A269=\"N/A\",Ref!$B$36,INDEX(Ranks!$1:$1048576,$A269,Z$1))","v":""},{"$f":"IF($A269=\"N/A\",Ref!$B$36,INDEX(Ranks!$1:$1048576,$A269,AA$1))","v":""},{"$f":"IF($A269=\"N/A\",Ref!$B$36,INDEX(Ranks!$1:$1048576,$A269,AB$1))","v":""},{"$f":"IF($A269=\"N/A\",Ref!$B$36,INDEX(Ranks!$1:$1048576,$A269,AC$1))","v":""},{"$f":"IF($A269=\"N/A\",Ref!$B$36,INDEX(Ranks!$1:$1048576,$A269,AD$1))","v":""},{"$f":"IF($A269=\"N/A\",Ref!$B$36,INDEX(Ranks!$1:$1048576,$A269,AE$1))","v":""},{"$f":"IF($A269=\"N/A\",Ref!$B$36,INDEX(Ranks!$1:$1048576,$A269,AF$1))","v":""},{"$f":"IF($A269=\"N/A\",Ref!$B$36,INDEX(Ranks!$1:$1048576,$A269,AG$1))","v":""},{"$f":"IF($A269=\"N/A\",Ref!$B$36,INDEX(Ranks!$1:$1048576,$A269,AH$1))","v":""},{"$f":"IF($A269=\"N/A\",Ref!$B$36,INDEX(Ranks!$1:$1048576,$A269,AI$1))","v":""},{"$f":"IF($A269=\"N/A\",Ref!$B$36,INDEX(Ranks!$1:$1048576,$A269,AJ$1))","v":""},{"$f":"IF($A269=\"N/A\",Ref!$B$36,INDEX(Ranks!$1:$1048576,$A269,AK$1))","v":""},{"$f":"IF($A269=\"N/A\",Ref!$B$36,INDEX(Ranks!$1:$1048576,$A269,AL$1))","v":""},{"$f":"IF($A269=\"N/A\",Ref!$B$36,INDEX(Ranks!$1:$1048576,$A269,AM$1))","v":""},{"$f":"IF($A269=\"N/A\",Ref!$B$36,INDEX(Ranks!$1:$1048576,$A269,AN$1))","v":""},{"$f":"IF($A269=\"N/A\",Ref!$B$36,INDEX(Ranks!$1:$1048576,$A269,AO$1))","v":""},{"$f":"IF($A269=\"N/A\",Ref!$B$36,INDEX(Ranks!$1:$1048576,$A269,AP$1))","v":""},{"$f":"IF($A269=\"N/A\",Ref!$B$36,INDEX(Ranks!$1:$1048576,$A269,AQ$1))","v":""},{"$f":"IF($A269=\"N/A\",Ref!$B$36,INDEX(Ranks!$1:$1048576,$A269,AR$1))","v":""},{"$f":"IF($A269=\"N/A\",Ref!$B$36,INDEX(Ranks!$1:$1048576,$A269,AS$1))","v":""},{"$f":"IF($A269=\"N/A\",Ref!$B$36,INDEX(Ranks!$1:$1048576,$A269,AT$1))","v":""},{"$f":"IF($A269=\"N/A\",Ref!$B$36,INDEX(Ranks!$1:$1048576,$A269,AU$1))","v":""},{"$f":"IF($A269=\"N/A\",Ref!$B$36,INDEX(Ranks!$1:$1048576,$A269,AV$1))","v":""},{"$f":"IF($A269=\"N/A\",Ref!$B$36,INDEX(Ranks!$1:$1048576,$A269,AW$1))","v":""},{"$f":"IF($A269=\"N/A\",Ref!$B$36,INDEX(Ranks!$1:$1048576,$A269,AX$1))","v":""},{"$f":"IF($A269=\"N/A\",Ref!$B$36,INDEX(Ranks!$1:$1048576,$A269,AY$1))","v":""},{"$f":"IF($A269=\"N/A\",Ref!$B$36,INDEX(Ranks!$1:$1048576,$A269,AZ$1))","v":""},{"$f":"IF($A269=\"N/A\",Ref!$B$36,INDEX(Ranks!$1:$1048576,$A269,BA$1))","v":""},{"$f":"IF($A269=\"N/A\",Ref!$B$36,INDEX(Ranks!$1:$1048576,$A269,BB$1))","v":""},{"$f":"IF($A269=\"N/A\",Ref!$B$36,INDEX(Ranks!$1:$1048576,$A269,BC$1))","v":""},{"$f":"IF($A269=\"N/A\",Ref!$B$36,INDEX(Ranks!$1:$1048576,$A269,BD$1))","v":""},{"$f":"IF($A269=\"N/A\",Ref!$B$36,INDEX(Ranks!$1:$1048576,$A269,BE$1))","v":""},{"$f":"IF($A269=\"N/A\",Ref!$B$36,INDEX(Ranks!$1:$1048576,$A269,BF$1))","v":""},{"$f":"IF($A269=\"N/A\",Ref!$B$36,INDEX(Ranks!$1:$1048576,$A269,BG$1))","v":""},{"$f":"IF($A269=\"N/A\",Ref!$B$36,INDEX(Ranks!$1:$1048576,$A269,BH$1))","v":""},{"$f":"IF($A269=\"N/A\",Ref!$B$36,INDEX(Ranks!$1:$1048576,$A269,BI$1))","v":""},{"$f":"IF($A269=\"N/A\",Ref!$B$36,INDEX(Ranks!$1:$1048576,$A269,BJ$1))","v":""},{"$f":"IF($A269=\"N/A\",Ref!$B$36,INDEX(Ranks!$1:$1048576,$A269,BK$1))","v":""},{"$f":"IF($A269=\"N/A\",Ref!$B$36,INDEX(Ranks!$1:$1048576,$A269,BL$1))","v":""},{"$f":"IF($A269=\"N/A\",Ref!$B$36,INDEX(Ranks!$1:$1048576,$A269,BM$1))","v":""},{"$f":"IF($A269=\"N/A\",Ref!$B$36,INDEX(Ranks!$1:$1048576,$A269,BN$1))","v":""},{"$f":"IF($A269=\"N/A\",Ref!$B$36,INDEX(Ranks!$1:$1048576,$A269,BO$1))","v":""},{"$f":"IF($A269=\"N/A\",Ref!$B$36,INDEX(Ranks!$1:$1048576,$A269,BP$1))","v":""},{"$f":"IF($A269=\"N/A\",Ref!$B$36,INDEX(Ranks!$1:$1048576,$A269,BQ$1))","v":""},{"$f":"IF($A269=\"N/A\",Ref!$B$36,INDEX(Ranks!$1:$1048576,$A269,BR$1))","v":""},{"$f":"IF($A269=\"N/A\",Ref!$B$36,INDEX(Ranks!$1:$1048576,$A269,BS$1))","v":""},{"$f":"IF($A269=\"N/A\",Ref!$B$36,INDEX(Ranks!$1:$1048576,$A269,BT$1))","v":""},{"$f":"IF($A269=\"N/A\",Ref!$B$36,INDEX(Ranks!$1:$1048576,$A269,BU$1))","v":""},{"$f":"IF($A269=\"N/A\",Ref!$B$36,INDEX(Ranks!$1:$1048576,$A269,BV$1))","v":""},{"$f":"IF($A269=\"N/A\",Ref!$B$36,INDEX(Ranks!$1:$1048576,$A269,BW$1))","v":""},{"$f":"IF($A269=\"N/A\",Ref!$B$36,INDEX(Ranks!$1:$1048576,$A269,BX$1))","v":""},{"$f":"IF($A269=\"N/A\",Ref!$B$36,INDEX(Ranks!$1:$1048576,$A269,BY$1))","v":""},{"$f":"IF($A269=\"N/A\",Ref!$B$36,INDEX(Ranks!$1:$1048576,$A269,BZ$1))","v":""},{"$f":"IF($A269=\"N/A\",Ref!$B$36,INDEX(Ranks!$1:$1048576,$A269,CA$1))","v":""},{"$f":"IF($A269=\"N/A\",Ref!$B$36,INDEX(Ranks!$1:$1048576,$A269,CB$1))","v":""},{"$f":"IF($A269=\"N/A\",Ref!$B$36,INDEX(Ranks!$1:$1048576,$A269,CC$1))","v":""},{"$f":"IF($A269=\"N/A\",Ref!$B$36,INDEX(Ranks!$1:$1048576,$A269,CD$1))","v":""},{"$f":"IF($A269=\"N/A\",Ref!$B$36,INDEX(Ranks!$1:$1048576,$A269,CE$1))","v":""},{"$f":"IF($A269=\"N/A\",Ref!$B$36,INDEX(Ranks!$1:$1048576,$A269,CF$1))","v":""},{"$f":"IF($A269=\"N/A\",Ref!$B$36,INDEX(Ranks!$1:$1048576,$A269,CG$1))","v":""},{"$f":"IF($A269=\"N/A\",Ref!$B$36,INDEX(Ranks!$1:$1048576,$A269,CH$1))","v":""},{"$f":"IF($A269=\"N/A\",Ref!$B$36,INDEX(Ranks!$1:$1048576,$A269,CI$1))","v":""},{"$f":"IF($A269=\"N/A\",Ref!$B$36,INDEX(Ranks!$1:$1048576,$A269,CJ$1))","v":""},{"$f":"IF($A269=\"N/A\",Ref!$B$36,INDEX(Ranks!$1:$1048576,$A269,CK$1))","v":""},{"$f":"IF($A269=\"N/A\",Ref!$B$36,INDEX(Ranks!$1:$1048576,$A269,CL$1))","v":""},{"$f":"IF($A269=\"N/A\",Ref!$B$36,INDEX(Ranks!$1:$1048576,$A269,CM$1))","v":""},{"$f":"IF($A269=\"N/A\",Ref!$B$36,INDEX(Ranks!$1:$1048576,$A269,CN$1))","v":""},{"$f":"IF($A269=\"N/A\",Ref!$B$36,INDEX(Ranks!$1:$1048576,$A269,CO$1))","v":""},{"$f":"IF($A269=\"N/A\",Ref!$B$36,INDEX(Ranks!$1:$1048576,$A269,CP$1))","v":""},{"$f":"IF($A269=\"N/A\",Ref!$B$36,INDEX(Ranks!$1:$1048576,$A269,CQ$1))","v":""},{"$f":"IF($A269=\"N/A\",Ref!$B$36,INDEX(Ranks!$1:$1048576,$A269,CR$1))","v":""},{"$f":"IF($A269=\"N/A\",Ref!$B$36,INDEX(Ranks!$1:$1048576,$A269,CS$1))","v":""},{"$f":"IF($A269=\"N/A\",Ref!$B$36,INDEX(Ranks!$1:$1048576,$A269,CT$1))","v":""},{"$f":"IF($A269=\"N/A\",Ref!$B$36,INDEX(Ranks!$1:$1048576,$A269,CU$1))","v":""},{"$f":"IF($A269=\"N/A\",Ref!$B$36,INDEX(Ranks!$1:$1048576,$A269,CV$1))","v":""},{"$f":"IF($A269=\"N/A\",Ref!$B$36,INDEX(Ranks!$1:$1048576,$A269,CW$1))","v":""},{"$f":"IF($A269=\"N/A\",Ref!$B$36,INDEX(Ranks!$1:$1048576,$A269,CX$1))","v":""},{"$f":"IF($A269=\"N/A\",Ref!$B$36,INDEX(Ranks!$1:$1048576,$A269,CY$1))","v":""},{"$f":"IF($A269=\"N/A\",Ref!$B$36,INDEX(Ranks!$1:$1048576,$A269,CZ$1))","v":""},{"$f":"IF($A269=\"N/A\",Ref!$B$36,INDEX(Ranks!$1:$1048576,$A269,DA$1))","v":""},{"$f":"IF($A269=\"N/A\",Ref!$B$36,INDEX(Ranks!$1:$1048576,$A269,DB$1))","v":""},{"$f":"IF($A269=\"N/A\",Ref!$B$36,INDEX(Ranks!$1:$1048576,$A269,DC$1))","v":""},{"$f":"IF($A269=\"N/A\",Ref!$B$36,INDEX(Ranks!$1:$1048576,$A269,DD$1))","v":""},{"$f":"IF($A269=\"N/A\",Ref!$B$36,INDEX(Ranks!$1:$1048576,$A269,DE$1))","v":""},{"$f":"IF($A269=\"N/A\",Ref!$B$36,INDEX(Ranks!$1:$1048576,$A269,DF$1))","v":""},{"$f":"IF($A269=\"N/A\",Ref!$B$36,INDEX(Ranks!$1:$1048576,$A269,DG$1))","v":""},{"$f":"IF($A269=\"N/A\",Ref!$B$36,INDEX(Ranks!$1:$1048576,$A269,DH$1))","v":""},{"$f":"IF($A269=\"N/A\",Ref!$B$36,INDEX(Ranks!$1:$1048576,$A269,DI$1))","v":""},{"$f":"IF($A269=\"N/A\",Ref!$B$36,INDEX(Ranks!$1:$1048576,$A269,DJ$1))","v":""},{"$f":"IF($A269=\"N/A\",Ref!$B$36,INDEX(Ranks!$1:$1048576,$A269,DK$1))","v":""},{"$f":"IF($A269=\"N/A\",Ref!$B$36,INDEX(Ranks!$1:$1048576,$A269,DL$1))","v":""},{"$f":"IF($A269=\"N/A\",Ref!$B$36,INDEX(Ranks!$1:$1048576,$A269,DM$1))","v":""},{"$f":"IF($A269=\"N/A\",Ref!$B$36,INDEX(Ranks!$1:$1048576,$A269,DN$1))","v":""},{"$f":"IF($A269=\"N/A\",Ref!$B$36,INDEX(Ranks!$1:$1048576,$A269,DO$1))","v":""},{"$f":"IF($A269=\"N/A\",Ref!$B$36,INDEX(Ranks!$1:$1048576,$A269,DP$1))","v":""},{"$f":"IF($A269=\"N/A\",Ref!$B$36,INDEX(Ranks!$1:$1048576,$A269,DQ$1))","v":""},{"$f":"IF($A269=\"N/A\",Ref!$B$36,INDEX(Ranks!$1:$1048576,$A269,DR$1))","v":""},{"$f":"IF($A269=\"N/A\",Ref!$B$36,INDEX(Ranks!$1:$1048576,$A269,DS$1))","v":""},{"$f":"IF($A269=\"N/A\",Ref!$B$36,INDEX(Ranks!$1:$1048576,$A269,DT$1))","v":""},{"$f":"IF($A269=\"N/A\",Ref!$B$36,INDEX(Ranks!$1:$1048576,$A269,DU$1))","v":""},{"$f":"IF($A269=\"N/A\",Ref!$B$36,INDEX(Ranks!$1:$1048576,$A269,DV$1))","v":""},{"$f":"IF($A269=\"N/A\",Ref!$B$36,INDEX(Ranks!$1:$1048576,$A269,DW$1))","v":""},{"$f":"IF($A269=\"N/A\",Ref!$B$36,INDEX(Ranks!$1:$1048576,$A269,DX$1))","v":""},{"$f":"IF($A269=\"N/A\",Ref!$B$36,INDEX(Ranks!$1:$1048576,$A269,DY$1))","v":""},{"$f":"IF($A269=\"N/A\",Ref!$B$36,INDEX(Ranks!$1:$1048576,$A269,DZ$1))","v":""},{"$f":"IF($A269=\"N/A\",Ref!$B$36,INDEX(Ranks!$1:$1048576,$A269,EA$1))","v":""},{"$f":"IF($A269=\"N/A\",Ref!$B$36,INDEX(Ranks!$1:$1048576,$A269,EB$1))","v":""}]
[{"$f":"IFERROR(MATCH('Portfolio Page'!L270,Ranks!L:L,0),\"N/A\")","v":"N/A"},null,{"$f":"IF($A270=\"N/A\",\"\",INDEX(Ranks!$1:$1048576,$A270,C$1))","v":""},{"$f":"IF($A270=\"N/A\",Ref!$B$36,INDEX(Ranks!$1:$1048576,$A270,D$1))","v":""},{"$f":"IF($A270=\"N/A\",Ref!$B$36,INDEX(Ranks!$1:$1048576,$A270,E$1))","v":""},{"$f":"IF($A270=\"N/A\",\"\",INDEX(Ranks!$1:$1048576,$A270,F$1))","v":""},{"$f":"IF($A270=\"N/A\",\"\",INDEX(Ranks!$1:$1048576,$A270,G$1))","v":""},{"$f":"IF($A270=\"N/A\",\"\",INDEX(Ranks!$1:$1048576,$A270,H$1))","v":""},{"$f":"IF($A270=\"N/A\",\"\",INDEX(Ranks!$1:$1048576,$A270,I$1))","v":""},{"$f":"IF($A270=\"N/A\",\"\",INDEX(Ranks!$1:$1048576,$A270,J$1))","v":""},{"$f":"IF($A270=\"N/A\",\"\",INDEX(Ranks!$1:$1048576,$A270,K$1))","v":""},null,{"$f":"IF($A270=\"N/A\",Ref!$B$36,INDEX(Ranks!$1:$1048576,$A270,M$1))","v":""},{"$f":"IF($A270=\"N/A\",Ref!$B$36,INDEX(Ranks!$1:$1048576,$A270,N$1))","v":""},{"$f":"IF($A270=\"N/A\",Ref!$B$36,INDEX(Ranks!$1:$1048576,$A270,O$1))","v":""},{"$f":"IF($A270=\"N/A\",Ref!$B$36,INDEX(Ranks!$1:$1048576,$A270,P$1))","v":""},{"$f":"IF($A270=\"N/A\",Ref!$B$36,INDEX(Ranks!$1:$1048576,$A270,Q$1))","v":""},{"$f":"IF($A270=\"N/A\",Ref!$B$36,INDEX(Ranks!$1:$1048576,$A270,R$1))","v":""},{"$f":"IF($A270=\"N/A\",Ref!$B$36,INDEX(Ranks!$1:$1048576,$A270,S$1))","v":""},{"$f":"IF($A270=\"N/A\",Ref!$B$36,INDEX(Ranks!$1:$1048576,$A270,T$1))","v":""},{"$f":"IF($A270=\"N/A\",Ref!$B$36,INDEX(Ranks!$1:$1048576,$A270,U$1))","v":""},{"$f":"IF($A270=\"N/A\",Ref!$B$36,INDEX(Ranks!$1:$1048576,$A270,V$1))","v":""},{"$f":"IF($A270=\"N/A\",Ref!$B$36,INDEX(Ranks!$1:$1048576,$A270,W$1))","v":""},{"$f":"IF($A270=\"N/A\",Ref!$B$36,INDEX(Ranks!$1:$1048576,$A270,X$1))","v":""},{"$f":"IF($A270=\"N/A\",Ref!$B$36,INDEX(Ranks!$1:$1048576,$A270,Y$1))","v":""},{"$f":"IF($A270=\"N/A\",Ref!$B$36,INDEX(Ranks!$1:$1048576,$A270,Z$1))","v":""},{"$f":"IF($A270=\"N/A\",Ref!$B$36,INDEX(Ranks!$1:$1048576,$A270,AA$1))","v":""},{"$f":"IF($A270=\"N/A\",Ref!$B$36,INDEX(Ranks!$1:$1048576,$A270,AB$1))","v":""},{"$f":"IF($A270=\"N/A\",Ref!$B$36,INDEX(Ranks!$1:$1048576,$A270,AC$1))","v":""},{"$f":"IF($A270=\"N/A\",Ref!$B$36,INDEX(Ranks!$1:$1048576,$A270,AD$1))","v":""},{"$f":"IF($A270=\"N/A\",Ref!$B$36,INDEX(Ranks!$1:$1048576,$A270,AE$1))","v":""},{"$f":"IF($A270=\"N/A\",Ref!$B$36,INDEX(Ranks!$1:$1048576,$A270,AF$1))","v":""},{"$f":"IF($A270=\"N/A\",Ref!$B$36,INDEX(Ranks!$1:$1048576,$A270,AG$1))","v":""},{"$f":"IF($A270=\"N/A\",Ref!$B$36,INDEX(Ranks!$1:$1048576,$A270,AH$1))","v":""},{"$f":"IF($A270=\"N/A\",Ref!$B$36,INDEX(Ranks!$1:$1048576,$A270,AI$1))","v":""},{"$f":"IF($A270=\"N/A\",Ref!$B$36,INDEX(Ranks!$1:$1048576,$A270,AJ$1))","v":""},{"$f":"IF($A270=\"N/A\",Ref!$B$36,INDEX(Ranks!$1:$1048576,$A270,AK$1))","v":""},{"$f":"IF($A270=\"N/A\",Ref!$B$36,INDEX(Ranks!$1:$1048576,$A270,AL$1))","v":""},{"$f":"IF($A270=\"N/A\",Ref!$B$36,INDEX(Ranks!$1:$1048576,$A270,AM$1))","v":""},{"$f":"IF($A270=\"N/A\",Ref!$B$36,INDEX(Ranks!$1:$1048576,$A270,AN$1))","v":""},{"$f":"IF($A270=\"N/A\",Ref!$B$36,INDEX(Ranks!$1:$1048576,$A270,AO$1))","v":""},{"$f":"IF($A270=\"N/A\",Ref!$B$36,INDEX(Ranks!$1:$1048576,$A270,AP$1))","v":""},{"$f":"IF($A270=\"N/A\",Ref!$B$36,INDEX(Ranks!$1:$1048576,$A270,AQ$1))","v":""},{"$f":"IF($A270=\"N/A\",Ref!$B$36,INDEX(Ranks!$1:$1048576,$A270,AR$1))","v":""},{"$f":"IF($A270=\"N/A\",Ref!$B$36,INDEX(Ranks!$1:$1048576,$A270,AS$1))","v":""},{"$f":"IF($A270=\"N/A\",Ref!$B$36,INDEX(Ranks!$1:$1048576,$A270,AT$1))","v":""},{"$f":"IF($A270=\"N/A\",Ref!$B$36,INDEX(Ranks!$1:$1048576,$A270,AU$1))","v":""},{"$f":"IF($A270=\"N/A\",Ref!$B$36,INDEX(Ranks!$1:$1048576,$A270,AV$1))","v":""},{"$f":"IF($A270=\"N/A\",Ref!$B$36,INDEX(Ranks!$1:$1048576,$A270,AW$1))","v":""},{"$f":"IF($A270=\"N/A\",Ref!$B$36,INDEX(Ranks!$1:$1048576,$A270,AX$1))","v":""},{"$f":"IF($A270=\"N/A\",Ref!$B$36,INDEX(Ranks!$1:$1048576,$A270,AY$1))","v":""},{"$f":"IF($A270=\"N/A\",Ref!$B$36,INDEX(Ranks!$1:$1048576,$A270,AZ$1))","v":""},{"$f":"IF($A270=\"N/A\",Ref!$B$36,INDEX(Ranks!$1:$1048576,$A270,BA$1))","v":""},{"$f":"IF($A270=\"N/A\",Ref!$B$36,INDEX(Ranks!$1:$1048576,$A270,BB$1))","v":""},{"$f":"IF($A270=\"N/A\",Ref!$B$36,INDEX(Ranks!$1:$1048576,$A270,BC$1))","v":""},{"$f":"IF($A270=\"N/A\",Ref!$B$36,INDEX(Ranks!$1:$1048576,$A270,BD$1))","v":""},{"$f":"IF($A270=\"N/A\",Ref!$B$36,INDEX(Ranks!$1:$1048576,$A270,BE$1))","v":""},{"$f":"IF($A270=\"N/A\",Ref!$B$36,INDEX(Ranks!$1:$1048576,$A270,BF$1))","v":""},{"$f":"IF($A270=\"N/A\",Ref!$B$36,INDEX(Ranks!$1:$1048576,$A270,BG$1))","v":""},{"$f":"IF($A270=\"N/A\",Ref!$B$36,INDEX(Ranks!$1:$1048576,$A270,BH$1))","v":""},{"$f":"IF($A270=\"N/A\",Ref!$B$36,INDEX(Ranks!$1:$1048576,$A270,BI$1))","v":""},{"$f":"IF($A270=\"N/A\",Ref!$B$36,INDEX(Ranks!$1:$1048576,$A270,BJ$1))","v":""},{"$f":"IF($A270=\"N/A\",Ref!$B$36,INDEX(Ranks!$1:$1048576,$A270,BK$1))","v":""},{"$f":"IF($A270=\"N/A\",Ref!$B$36,INDEX(Ranks!$1:$1048576,$A270,BL$1))","v":""},{"$f":"IF($A270=\"N/A\",Ref!$B$36,INDEX(Ranks!$1:$1048576,$A270,BM$1))","v":""},{"$f":"IF($A270=\"N/A\",Ref!$B$36,INDEX(Ranks!$1:$1048576,$A270,BN$1))","v":""},{"$f":"IF($A270=\"N/A\",Ref!$B$36,INDEX(Ranks!$1:$1048576,$A270,BO$1))","v":""},{"$f":"IF($A270=\"N/A\",Ref!$B$36,INDEX(Ranks!$1:$1048576,$A270,BP$1))","v":""},{"$f":"IF($A270=\"N/A\",Ref!$B$36,INDEX(Ranks!$1:$1048576,$A270,BQ$1))","v":""},{"$f":"IF($A270=\"N/A\",Ref!$B$36,INDEX(Ranks!$1:$1048576,$A270,BR$1))","v":""},{"$f":"IF($A270=\"N/A\",Ref!$B$36,INDEX(Ranks!$1:$1048576,$A270,BS$1))","v":""},{"$f":"IF($A270=\"N/A\",Ref!$B$36,INDEX(Ranks!$1:$1048576,$A270,BT$1))","v":""},{"$f":"IF($A270=\"N/A\",Ref!$B$36,INDEX(Ranks!$1:$1048576,$A270,BU$1))","v":""},{"$f":"IF($A270=\"N/A\",Ref!$B$36,INDEX(Ranks!$1:$1048576,$A270,BV$1))","v":""},{"$f":"IF($A270=\"N/A\",Ref!$B$36,INDEX(Ranks!$1:$1048576,$A270,BW$1))","v":""},{"$f":"IF($A270=\"N/A\",Ref!$B$36,INDEX(Ranks!$1:$1048576,$A270,BX$1))","v":""},{"$f":"IF($A270=\"N/A\",Ref!$B$36,INDEX(Ranks!$1:$1048576,$A270,BY$1))","v":""},{"$f":"IF($A270=\"N/A\",Ref!$B$36,INDEX(Ranks!$1:$1048576,$A270,BZ$1))","v":""},{"$f":"IF($A270=\"N/A\",Ref!$B$36,INDEX(Ranks!$1:$1048576,$A270,CA$1))","v":""},{"$f":"IF($A270=\"N/A\",Ref!$B$36,INDEX(Ranks!$1:$1048576,$A270,CB$1))","v":""},{"$f":"IF($A270=\"N/A\",Ref!$B$36,INDEX(Ranks!$1:$1048576,$A270,CC$1))","v":""},{"$f":"IF($A270=\"N/A\",Ref!$B$36,INDEX(Ranks!$1:$1048576,$A270,CD$1))","v":""},{"$f":"IF($A270=\"N/A\",Ref!$B$36,INDEX(Ranks!$1:$1048576,$A270,CE$1))","v":""},{"$f":"IF($A270=\"N/A\",Ref!$B$36,INDEX(Ranks!$1:$1048576,$A270,CF$1))","v":""},{"$f":"IF($A270=\"N/A\",Ref!$B$36,INDEX(Ranks!$1:$1048576,$A270,CG$1))","v":""},{"$f":"IF($A270=\"N/A\",Ref!$B$36,INDEX(Ranks!$1:$1048576,$A270,CH$1))","v":""},{"$f":"IF($A270=\"N/A\",Ref!$B$36,INDEX(Ranks!$1:$1048576,$A270,CI$1))","v":""},{"$f":"IF($A270=\"N/A\",Ref!$B$36,INDEX(Ranks!$1:$1048576,$A270,CJ$1))","v":""},{"$f":"IF($A270=\"N/A\",Ref!$B$36,INDEX(Ranks!$1:$1048576,$A270,CK$1))","v":""},{"$f":"IF($A270=\"N/A\",Ref!$B$36,INDEX(Ranks!$1:$1048576,$A270,CL$1))","v":""},{"$f":"IF($A270=\"N/A\",Ref!$B$36,INDEX(Ranks!$1:$1048576,$A270,CM$1))","v":""},{"$f":"IF($A270=\"N/A\",Ref!$B$36,INDEX(Ranks!$1:$1048576,$A270,CN$1))","v":""},{"$f":"IF($A270=\"N/A\",Ref!$B$36,INDEX(Ranks!$1:$1048576,$A270,CO$1))","v":""},{"$f":"IF($A270=\"N/A\",Ref!$B$36,INDEX(Ranks!$1:$1048576,$A270,CP$1))","v":""},{"$f":"IF($A270=\"N/A\",Ref!$B$36,INDEX(Ranks!$1:$1048576,$A270,CQ$1))","v":""},{"$f":"IF($A270=\"N/A\",Ref!$B$36,INDEX(Ranks!$1:$1048576,$A270,CR$1))","v":""},{"$f":"IF($A270=\"N/A\",Ref!$B$36,INDEX(Ranks!$1:$1048576,$A270,CS$1))","v":""},{"$f":"IF($A270=\"N/A\",Ref!$B$36,INDEX(Ranks!$1:$1048576,$A270,CT$1))","v":""},{"$f":"IF($A270=\"N/A\",Ref!$B$36,INDEX(Ranks!$1:$1048576,$A270,CU$1))","v":""},{"$f":"IF($A270=\"N/A\",Ref!$B$36,INDEX(Ranks!$1:$1048576,$A270,CV$1))","v":""},{"$f":"IF($A270=\"N/A\",Ref!$B$36,INDEX(Ranks!$1:$1048576,$A270,CW$1))","v":""},{"$f":"IF($A270=\"N/A\",Ref!$B$36,INDEX(Ranks!$1:$1048576,$A270,CX$1))","v":""},{"$f":"IF($A270=\"N/A\",Ref!$B$36,INDEX(Ranks!$1:$1048576,$A270,CY$1))","v":""},{"$f":"IF($A270=\"N/A\",Ref!$B$36,INDEX(Ranks!$1:$1048576,$A270,CZ$1))","v":""},{"$f":"IF($A270=\"N/A\",Ref!$B$36,INDEX(Ranks!$1:$1048576,$A270,DA$1))","v":""},{"$f":"IF($A270=\"N/A\",Ref!$B$36,INDEX(Ranks!$1:$1048576,$A270,DB$1))","v":""},{"$f":"IF($A270=\"N/A\",Ref!$B$36,INDEX(Ranks!$1:$1048576,$A270,DC$1))","v":""},{"$f":"IF($A270=\"N/A\",Ref!$B$36,INDEX(Ranks!$1:$1048576,$A270,DD$1))","v":""},{"$f":"IF($A270=\"N/A\",Ref!$B$36,INDEX(Ranks!$1:$1048576,$A270,DE$1))","v":""},{"$f":"IF($A270=\"N/A\",Ref!$B$36,INDEX(Ranks!$1:$1048576,$A270,DF$1))","v":""},{"$f":"IF($A270=\"N/A\",Ref!$B$36,INDEX(Ranks!$1:$1048576,$A270,DG$1))","v":""},{"$f":"IF($A270=\"N/A\",Ref!$B$36,INDEX(Ranks!$1:$1048576,$A270,DH$1))","v":""},{"$f":"IF($A270=\"N/A\",Ref!$B$36,INDEX(Ranks!$1:$1048576,$A270,DI$1))","v":""},{"$f":"IF($A270=\"N/A\",Ref!$B$36,INDEX(Ranks!$1:$1048576,$A270,DJ$1))","v":""},{"$f":"IF($A270=\"N/A\",Ref!$B$36,INDEX(Ranks!$1:$1048576,$A270,DK$1))","v":""},{"$f":"IF($A270=\"N/A\",Ref!$B$36,INDEX(Ranks!$1:$1048576,$A270,DL$1))","v":""},{"$f":"IF($A270=\"N/A\",Ref!$B$36,INDEX(Ranks!$1:$1048576,$A270,DM$1))","v":""},{"$f":"IF($A270=\"N/A\",Ref!$B$36,INDEX(Ranks!$1:$1048576,$A270,DN$1))","v":""},{"$f":"IF($A270=\"N/A\",Ref!$B$36,INDEX(Ranks!$1:$1048576,$A270,DO$1))","v":""},{"$f":"IF($A270=\"N/A\",Ref!$B$36,INDEX(Ranks!$1:$1048576,$A270,DP$1))","v":""},{"$f":"IF($A270=\"N/A\",Ref!$B$36,INDEX(Ranks!$1:$1048576,$A270,DQ$1))","v":""},{"$f":"IF($A270=\"N/A\",Ref!$B$36,INDEX(Ranks!$1:$1048576,$A270,DR$1))","v":""},{"$f":"IF($A270=\"N/A\",Ref!$B$36,INDEX(Ranks!$1:$1048576,$A270,DS$1))","v":""},{"$f":"IF($A270=\"N/A\",Ref!$B$36,INDEX(Ranks!$1:$1048576,$A270,DT$1))","v":""},{"$f":"IF($A270=\"N/A\",Ref!$B$36,INDEX(Ranks!$1:$1048576,$A270,DU$1))","v":""},{"$f":"IF($A270=\"N/A\",Ref!$B$36,INDEX(Ranks!$1:$1048576,$A270,DV$1))","v":""},{"$f":"IF($A270=\"N/A\",Ref!$B$36,INDEX(Ranks!$1:$1048576,$A270,DW$1))","v":""},{"$f":"IF($A270=\"N/A\",Ref!$B$36,INDEX(Ranks!$1:$1048576,$A270,DX$1))","v":""},{"$f":"IF($A270=\"N/A\",Ref!$B$36,INDEX(Ranks!$1:$1048576,$A270,DY$1))","v":""},{"$f":"IF($A270=\"N/A\",Ref!$B$36,INDEX(Ranks!$1:$1048576,$A270,DZ$1))","v":""},{"$f":"IF($A270=\"N/A\",Ref!$B$36,INDEX(Ranks!$1:$1048576,$A270,EA$1))","v":""},{"$f":"IF($A270=\"N/A\",Ref!$B$36,INDEX(Ranks!$1:$1048576,$A270,EB$1))","v":""}]
[{"$f":"IFERROR(MATCH('Portfolio Page'!L271,Ranks!L:L,0),\"N/A\")","v":"N/A"},null,{"$f":"IF($A271=\"N/A\",\"\",INDEX(Ranks!$1:$1048576,$A271,C$1))","v":""},{"$f":"IF($A271=\"N/A\",Ref!$B$36,INDEX(Ranks!$1:$1048576,$A271,D$1))","v":""},{"$f":"IF($A271=\"N/A\",Ref!$B$36,INDEX(Ranks!$1:$1048576,$A271,E$1))","v":""},{"$f":"IF($A271=\"N/A\",\"\",INDEX(Ranks!$1:$1048576,$A271,F$1))","v":""},{"$f":"IF($A271=\"N/A\",\"\",INDEX(Ranks!$1:$1048576,$A271,G$1))","v":""},{"$f":"IF($A271=\"N/A\",\"\",INDEX(Ranks!$1:$1048576,$A271,H$1))","v":""},{"$f":"IF($A271=\"N/A\",\"\",INDEX(Ranks!$1:$1048576,$A271,I$1))","v":""},{"$f":"IF($A271=\"N/A\",\"\",INDEX(Ranks!$1:$1048576,$A271,J$1))","v":""},{"$f":"IF($A271=\"N/A\",\"\",INDEX(Ranks!$1:$1048576,$A271,K$1))","v":""},null,{"$f":"IF($A271=\"N/A\",Ref!$B$36,INDEX(Ranks!$1:$1048576,$A271,M$1))","v":""},{"$f":"IF($A271=\"N/A\",Ref!$B$36,INDEX(Ranks!$1:$1048576,$A271,N$1))","v":""},{"$f":"IF($A271=\"N/A\",Ref!$B$36,INDEX(Ranks!$1:$1048576,$A271,O$1))","v":""},{"$f":"IF($A271=\"N/A\",Ref!$B$36,INDEX(Ranks!$1:$1048576,$A271,P$1))","v":""},{"$f":"IF($A271=\"N/A\",Ref!$B$36,INDEX(Ranks!$1:$1048576,$A271,Q$1))","v":""},{"$f":"IF($A271=\"N/A\",Ref!$B$36,INDEX(Ranks!$1:$1048576,$A271,R$1))","v":""},{"$f":"IF($A271=\"N/A\",Ref!$B$36,INDEX(Ranks!$1:$1048576,$A271,S$1))","v":""},{"$f":"IF($A271=\"N/A\",Ref!$B$36,INDEX(Ranks!$1:$1048576,$A271,T$1))","v":""},{"$f":"IF($A271=\"N/A\",Ref!$B$36,INDEX(Ranks!$1:$1048576,$A271,U$1))","v":""},{"$f":"IF($A271=\"N/A\",Ref!$B$36,INDEX(Ranks!$1:$1048576,$A271,V$1))","v":""},{"$f":"IF($A271=\"N/A\",Ref!$B$36,INDEX(Ranks!$1:$1048576,$A271,W$1))","v":""},{"$f":"IF($A271=\"N/A\",Ref!$B$36,INDEX(Ranks!$1:$1048576,$A271,X$1))","v":""},{"$f":"IF($A271=\"N/A\",Ref!$B$36,INDEX(Ranks!$1:$1048576,$A271,Y$1))","v":""},{"$f":"IF($A271=\"N/A\",Ref!$B$36,INDEX(Ranks!$1:$1048576,$A271,Z$1))","v":""},{"$f":"IF($A271=\"N/A\",Ref!$B$36,INDEX(Ranks!$1:$1048576,$A271,AA$1))","v":""},{"$f":"IF($A271=\"N/A\",Ref!$B$36,INDEX(Ranks!$1:$1048576,$A271,AB$1))","v":""},{"$f":"IF($A271=\"N/A\",Ref!$B$36,INDEX(Ranks!$1:$1048576,$A271,AC$1))","v":""},{"$f":"IF($A271=\"N/A\",Ref!$B$36,INDEX(Ranks!$1:$1048576,$A271,AD$1))","v":""},{"$f":"IF($A271=\"N/A\",Ref!$B$36,INDEX(Ranks!$1:$1048576,$A271,AE$1))","v":""},{"$f":"IF($A271=\"N/A\",Ref!$B$36,INDEX(Ranks!$1:$1048576,$A271,AF$1))","v":""},{"$f":"IF($A271=\"N/A\",Ref!$B$36,INDEX(Ranks!$1:$1048576,$A271,AG$1))","v":""},{"$f":"IF($A271=\"N/A\",Ref!$B$36,INDEX(Ranks!$1:$1048576,$A271,AH$1))","v":""},{"$f":"IF($A271=\"N/A\",Ref!$B$36,INDEX(Ranks!$1:$1048576,$A271,AI$1))","v":""},{"$f":"IF($A271=\"N/A\",Ref!$B$36,INDEX(Ranks!$1:$1048576,$A271,AJ$1))","v":""},{"$f":"IF($A271=\"N/A\",Ref!$B$36,INDEX(Ranks!$1:$1048576,$A271,AK$1))","v":""},{"$f":"IF($A271=\"N/A\",Ref!$B$36,INDEX(Ranks!$1:$1048576,$A271,AL$1))","v":""},{"$f":"IF($A271=\"N/A\",Ref!$B$36,INDEX(Ranks!$1:$1048576,$A271,AM$1))","v":""},{"$f":"IF($A271=\"N/A\",Ref!$B$36,INDEX(Ranks!$1:$1048576,$A271,AN$1))","v":""},{"$f":"IF($A271=\"N/A\",Ref!$B$36,INDEX(Ranks!$1:$1048576,$A271,AO$1))","v":""},{"$f":"IF($A271=\"N/A\",Ref!$B$36,INDEX(Ranks!$1:$1048576,$A271,AP$1))","v":""},{"$f":"IF($A271=\"N/A\",Ref!$B$36,INDEX(Ranks!$1:$1048576,$A271,AQ$1))","v":""},{"$f":"IF($A271=\"N/A\",Ref!$B$36,INDEX(Ranks!$1:$1048576,$A271,AR$1))","v":""},{"$f":"IF($A271=\"N/A\",Ref!$B$36,INDEX(Ranks!$1:$1048576,$A271,AS$1))","v":""},{"$f":"IF($A271=\"N/A\",Ref!$B$36,INDEX(Ranks!$1:$1048576,$A271,AT$1))","v":""},{"$f":"IF($A271=\"N/A\",Ref!$B$36,INDEX(Ranks!$1:$1048576,$A271,AU$1))","v":""},{"$f":"IF($A271=\"N/A\",Ref!$B$36,INDEX(Ranks!$1:$1048576,$A271,AV$1))","v":""},{"$f":"IF($A271=\"N/A\",Ref!$B$36,INDEX(Ranks!$1:$1048576,$A271,AW$1))","v":""},{"$f":"IF($A271=\"N/A\",Ref!$B$36,INDEX(Ranks!$1:$1048576,$A271,AX$1))","v":""},{"$f":"IF($A271=\"N/A\",Ref!$B$36,INDEX(Ranks!$1:$1048576,$A271,AY$1))","v":""},{"$f":"IF($A271=\"N/A\",Ref!$B$36,INDEX(Ranks!$1:$1048576,$A271,AZ$1))","v":""},{"$f":"IF($A271=\"N/A\",Ref!$B$36,INDEX(Ranks!$1:$1048576,$A271,BA$1))","v":""},{"$f":"IF($A271=\"N/A\",Ref!$B$36,INDEX(Ranks!$1:$1048576,$A271,BB$1))","v":""},{"$f":"IF($A271=\"N/A\",Ref!$B$36,INDEX(Ranks!$1:$1048576,$A271,BC$1))","v":""},{"$f":"IF($A271=\"N/A\",Ref!$B$36,INDEX(Ranks!$1:$1048576,$A271,BD$1))","v":""},{"$f":"IF($A271=\"N/A\",Ref!$B$36,INDEX(Ranks!$1:$1048576,$A271,BE$1))","v":""},{"$f":"IF($A271=\"N/A\",Ref!$B$36,INDEX(Ranks!$1:$1048576,$A271,BF$1))","v":""},{"$f":"IF($A271=\"N/A\",Ref!$B$36,INDEX(Ranks!$1:$1048576,$A271,BG$1))","v":""},{"$f":"IF($A271=\"N/A\",Ref!$B$36,INDEX(Ranks!$1:$1048576,$A271,BH$1))","v":""},{"$f":"IF($A271=\"N/A\",Ref!$B$36,INDEX(Ranks!$1:$1048576,$A271,BI$1))","v":""},{"$f":"IF($A271=\"N/A\",Ref!$B$36,INDEX(Ranks!$1:$1048576,$A271,BJ$1))","v":""},{"$f":"IF($A271=\"N/A\",Ref!$B$36,INDEX(Ranks!$1:$1048576,$A271,BK$1))","v":""},{"$f":"IF($A271=\"N/A\",Ref!$B$36,INDEX(Ranks!$1:$1048576,$A271,BL$1))","v":""},{"$f":"IF($A271=\"N/A\",Ref!$B$36,INDEX(Ranks!$1:$1048576,$A271,BM$1))","v":""},{"$f":"IF($A271=\"N/A\",Ref!$B$36,INDEX(Ranks!$1:$1048576,$A271,BN$1))","v":""},{"$f":"IF($A271=\"N/A\",Ref!$B$36,INDEX(Ranks!$1:$1048576,$A271,BO$1))","v":""},{"$f":"IF($A271=\"N/A\",Ref!$B$36,INDEX(Ranks!$1:$1048576,$A271,BP$1))","v":""},{"$f":"IF($A271=\"N/A\",Ref!$B$36,INDEX(Ranks!$1:$1048576,$A271,BQ$1))","v":""},{"$f":"IF($A271=\"N/A\",Ref!$B$36,INDEX(Ranks!$1:$1048576,$A271,BR$1))","v":""},{"$f":"IF($A271=\"N/A\",Ref!$B$36,INDEX(Ranks!$1:$1048576,$A271,BS$1))","v":""},{"$f":"IF($A271=\"N/A\",Ref!$B$36,INDEX(Ranks!$1:$1048576,$A271,BT$1))","v":""},{"$f":"IF($A271=\"N/A\",Ref!$B$36,INDEX(Ranks!$1:$1048576,$A271,BU$1))","v":""},{"$f":"IF($A271=\"N/A\",Ref!$B$36,INDEX(Ranks!$1:$1048576,$A271,BV$1))","v":""},{"$f":"IF($A271=\"N/A\",Ref!$B$36,INDEX(Ranks!$1:$1048576,$A271,BW$1))","v":""},{"$f":"IF($A271=\"N/A\",Ref!$B$36,INDEX(Ranks!$1:$1048576,$A271,BX$1))","v":""},{"$f":"IF($A271=\"N/A\",Ref!$B$36,INDEX(Ranks!$1:$1048576,$A271,BY$1))","v":""},{"$f":"IF($A271=\"N/A\",Ref!$B$36,INDEX(Ranks!$1:$1048576,$A271,BZ$1))","v":""},{"$f":"IF($A271=\"N/A\",Ref!$B$36,INDEX(Ranks!$1:$1048576,$A271,CA$1))","v":""},{"$f":"IF($A271=\"N/A\",Ref!$B$36,INDEX(Ranks!$1:$1048576,$A271,CB$1))","v":""},{"$f":"IF($A271=\"N/A\",Ref!$B$36,INDEX(Ranks!$1:$1048576,$A271,CC$1))","v":""},{"$f":"IF($A271=\"N/A\",Ref!$B$36,INDEX(Ranks!$1:$1048576,$A271,CD$1))","v":""},{"$f":"IF($A271=\"N/A\",Ref!$B$36,INDEX(Ranks!$1:$1048576,$A271,CE$1))","v":""},{"$f":"IF($A271=\"N/A\",Ref!$B$36,INDEX(Ranks!$1:$1048576,$A271,CF$1))","v":""},{"$f":"IF($A271=\"N/A\",Ref!$B$36,INDEX(Ranks!$1:$1048576,$A271,CG$1))","v":""},{"$f":"IF($A271=\"N/A\",Ref!$B$36,INDEX(Ranks!$1:$1048576,$A271,CH$1))","v":""},{"$f":"IF($A271=\"N/A\",Ref!$B$36,INDEX(Ranks!$1:$1048576,$A271,CI$1))","v":""},{"$f":"IF($A271=\"N/A\",Ref!$B$36,INDEX(Ranks!$1:$1048576,$A271,CJ$1))","v":""},{"$f":"IF($A271=\"N/A\",Ref!$B$36,INDEX(Ranks!$1:$1048576,$A271,CK$1))","v":""},{"$f":"IF($A271=\"N/A\",Ref!$B$36,INDEX(Ranks!$1:$1048576,$A271,CL$1))","v":""},{"$f":"IF($A271=\"N/A\",Ref!$B$36,INDEX(Ranks!$1:$1048576,$A271,CM$1))","v":""},{"$f":"IF($A271=\"N/A\",Ref!$B$36,INDEX(Ranks!$1:$1048576,$A271,CN$1))","v":""},{"$f":"IF($A271=\"N/A\",Ref!$B$36,INDEX(Ranks!$1:$1048576,$A271,CO$1))","v":""},{"$f":"IF($A271=\"N/A\",Ref!$B$36,INDEX(Ranks!$1:$1048576,$A271,CP$1))","v":""},{"$f":"IF($A271=\"N/A\",Ref!$B$36,INDEX(Ranks!$1:$1048576,$A271,CQ$1))","v":""},{"$f":"IF($A271=\"N/A\",Ref!$B$36,INDEX(Ranks!$1:$1048576,$A271,CR$1))","v":""},{"$f":"IF($A271=\"N/A\",Ref!$B$36,INDEX(Ranks!$1:$1048576,$A271,CS$1))","v":""},{"$f":"IF($A271=\"N/A\",Ref!$B$36,INDEX(Ranks!$1:$1048576,$A271,CT$1))","v":""},{"$f":"IF($A271=\"N/A\",Ref!$B$36,INDEX(Ranks!$1:$1048576,$A271,CU$1))","v":""},{"$f":"IF($A271=\"N/A\",Ref!$B$36,INDEX(Ranks!$1:$1048576,$A271,CV$1))","v":""},{"$f":"IF($A271=\"N/A\",Ref!$B$36,INDEX(Ranks!$1:$1048576,$A271,CW$1))","v":""},{"$f":"IF($A271=\"N/A\",Ref!$B$36,INDEX(Ranks!$1:$1048576,$A271,CX$1))","v":""},{"$f":"IF($A271=\"N/A\",Ref!$B$36,INDEX(Ranks!$1:$1048576,$A271,CY$1))","v":""},{"$f":"IF($A271=\"N/A\",Ref!$B$36,INDEX(Ranks!$1:$1048576,$A271,CZ$1))","v":""},{"$f":"IF($A271=\"N/A\",Ref!$B$36,INDEX(Ranks!$1:$1048576,$A271,DA$1))","v":""},{"$f":"IF($A271=\"N/A\",Ref!$B$36,INDEX(Ranks!$1:$1048576,$A271,DB$1))","v":""},{"$f":"IF($A271=\"N/A\",Ref!$B$36,INDEX(Ranks!$1:$1048576,$A271,DC$1))","v":""},{"$f":"IF($A271=\"N/A\",Ref!$B$36,INDEX(Ranks!$1:$1048576,$A271,DD$1))","v":""},{"$f":"IF($A271=\"N/A\",Ref!$B$36,INDEX(Ranks!$1:$1048576,$A271,DE$1))","v":""},{"$f":"IF($A271=\"N/A\",Ref!$B$36,INDEX(Ranks!$1:$1048576,$A271,DF$1))","v":""},{"$f":"IF($A271=\"N/A\",Ref!$B$36,INDEX(Ranks!$1:$1048576,$A271,DG$1))","v":""},{"$f":"IF($A271=\"N/A\",Ref!$B$36,INDEX(Ranks!$1:$1048576,$A271,DH$1))","v":""},{"$f":"IF($A271=\"N/A\",Ref!$B$36,INDEX(Ranks!$1:$1048576,$A271,DI$1))","v":""},{"$f":"IF($A271=\"N/A\",Ref!$B$36,INDEX(Ranks!$1:$1048576,$A271,DJ$1))","v":""},{"$f":"IF($A271=\"N/A\",Ref!$B$36,INDEX(Ranks!$1:$1048576,$A271,DK$1))","v":""},{"$f":"IF($A271=\"N/A\",Ref!$B$36,INDEX(Ranks!$1:$1048576,$A271,DL$1))","v":""},{"$f":"IF($A271=\"N/A\",Ref!$B$36,INDEX(Ranks!$1:$1048576,$A271,DM$1))","v":""},{"$f":"IF($A271=\"N/A\",Ref!$B$36,INDEX(Ranks!$1:$1048576,$A271,DN$1))","v":""},{"$f":"IF($A271=\"N/A\",Ref!$B$36,INDEX(Ranks!$1:$1048576,$A271,DO$1))","v":""},{"$f":"IF($A271=\"N/A\",Ref!$B$36,INDEX(Ranks!$1:$1048576,$A271,DP$1))","v":""},{"$f":"IF($A271=\"N/A\",Ref!$B$36,INDEX(Ranks!$1:$1048576,$A271,DQ$1))","v":""},{"$f":"IF($A271=\"N/A\",Ref!$B$36,INDEX(Ranks!$1:$1048576,$A271,DR$1))","v":""},{"$f":"IF($A271=\"N/A\",Ref!$B$36,INDEX(Ranks!$1:$1048576,$A271,DS$1))","v":""},{"$f":"IF($A271=\"N/A\",Ref!$B$36,INDEX(Ranks!$1:$1048576,$A271,DT$1))","v":""},{"$f":"IF($A271=\"N/A\",Ref!$B$36,INDEX(Ranks!$1:$1048576,$A271,DU$1))","v":""},{"$f":"IF($A271=\"N/A\",Ref!$B$36,INDEX(Ranks!$1:$1048576,$A271,DV$1))","v":""},{"$f":"IF($A271=\"N/A\",Ref!$B$36,INDEX(Ranks!$1:$1048576,$A271,DW$1))","v":""},{"$f":"IF($A271=\"N/A\",Ref!$B$36,INDEX(Ranks!$1:$1048576,$A271,DX$1))","v":""},{"$f":"IF($A271=\"N/A\",Ref!$B$36,INDEX(Ranks!$1:$1048576,$A271,DY$1))","v":""},{"$f":"IF($A271=\"N/A\",Ref!$B$36,INDEX(Ranks!$1:$1048576,$A271,DZ$1))","v":""},{"$f":"IF($A271=\"N/A\",Ref!$B$36,INDEX(Ranks!$1:$1048576,$A271,EA$1))","v":""},{"$f":"IF($A271=\"N/A\",Ref!$B$36,INDEX(Ranks!$1:$1048576,$A271,EB$1))","v":""}]
[{"$f":"IFERROR(MATCH('Portfolio Page'!L272,Ranks!L:L,0),\"N/A\")","v":"N/A"},null,{"$f":"IF($A272=\"N/A\",\"\",INDEX(Ranks!$1:$1048576,$A272,C$1))","v":""},{"$f":"IF($A272=\"N/A\",Ref!$B$36,INDEX(Ranks!$1:$1048576,$A272,D$1))","v":""},{"$f":"IF($A272=\"N/A\",Ref!$B$36,INDEX(Ranks!$1:$1048576,$A272,E$1))","v":""},{"$f":"IF($A272=\"N/A\",\"\",INDEX(Ranks!$1:$1048576,$A272,F$1))","v":""},{"$f":"IF($A272=\"N/A\",\"\",INDEX(Ranks!$1:$1048576,$A272,G$1))","v":""},{"$f":"IF($A272=\"N/A\",\"\",INDEX(Ranks!$1:$1048576,$A272,H$1))","v":""},{"$f":"IF($A272=\"N/A\",\"\",INDEX(Ranks!$1:$1048576,$A272,I$1))","v":""},{"$f":"IF($A272=\"N/A\",\"\",INDEX(Ranks!$1:$1048576,$A272,J$1))","v":""},{"$f":"IF($A272=\"N/A\",\"\",INDEX(Ranks!$1:$1048576,$A272,K$1))","v":""},null,{"$f":"IF($A272=\"N/A\",Ref!$B$36,INDEX(Ranks!$1:$1048576,$A272,M$1))","v":""},{"$f":"IF($A272=\"N/A\",Ref!$B$36,INDEX(Ranks!$1:$1048576,$A272,N$1))","v":""},{"$f":"IF($A272=\"N/A\",Ref!$B$36,INDEX(Ranks!$1:$1048576,$A272,O$1))","v":""},{"$f":"IF($A272=\"N/A\",Ref!$B$36,INDEX(Ranks!$1:$1048576,$A272,P$1))","v":""},{"$f":"IF($A272=\"N/A\",Ref!$B$36,INDEX(Ranks!$1:$1048576,$A272,Q$1))","v":""},{"$f":"IF($A272=\"N/A\",Ref!$B$36,INDEX(Ranks!$1:$1048576,$A272,R$1))","v":""},{"$f":"IF($A272=\"N/A\",Ref!$B$36,INDEX(Ranks!$1:$1048576,$A272,S$1))","v":""},{"$f":"IF($A272=\"N/A\",Ref!$B$36,INDEX(Ranks!$1:$1048576,$A272,T$1))","v":""},{"$f":"IF($A272=\"N/A\",Ref!$B$36,INDEX(Ranks!$1:$1048576,$A272,U$1))","v":""},{"$f":"IF($A272=\"N/A\",Ref!$B$36,INDEX(Ranks!$1:$1048576,$A272,V$1))","v":""},{"$f":"IF($A272=\"N/A\",Ref!$B$36,INDEX(Ranks!$1:$1048576,$A272,W$1))","v":""},{"$f":"IF($A272=\"N/A\",Ref!$B$36,INDEX(Ranks!$1:$1048576,$A272,X$1))","v":""},{"$f":"IF($A272=\"N/A\",Ref!$B$36,INDEX(Ranks!$1:$1048576,$A272,Y$1))","v":""},{"$f":"IF($A272=\"N/A\",Ref!$B$36,INDEX(Ranks!$1:$1048576,$A272,Z$1))","v":""},{"$f":"IF($A272=\"N/A\",Ref!$B$36,INDEX(Ranks!$1:$1048576,$A272,AA$1))","v":""},{"$f":"IF($A272=\"N/A\",Ref!$B$36,INDEX(Ranks!$1:$1048576,$A272,AB$1))","v":""},{"$f":"IF($A272=\"N/A\",Ref!$B$36,INDEX(Ranks!$1:$1048576,$A272,AC$1))","v":""},{"$f":"IF($A272=\"N/A\",Ref!$B$36,INDEX(Ranks!$1:$1048576,$A272,AD$1))","v":""},{"$f":"IF($A272=\"N/A\",Ref!$B$36,INDEX(Ranks!$1:$1048576,$A272,AE$1))","v":""},{"$f":"IF($A272=\"N/A\",Ref!$B$36,INDEX(Ranks!$1:$1048576,$A272,AF$1))","v":""},{"$f":"IF($A272=\"N/A\",Ref!$B$36,INDEX(Ranks!$1:$1048576,$A272,AG$1))","v":""},{"$f":"IF($A272=\"N/A\",Ref!$B$36,INDEX(Ranks!$1:$1048576,$A272,AH$1))","v":""},{"$f":"IF($A272=\"N/A\",Ref!$B$36,INDEX(Ranks!$1:$1048576,$A272,AI$1))","v":""},{"$f":"IF($A272=\"N/A\",Ref!$B$36,INDEX(Ranks!$1:$1048576,$A272,AJ$1))","v":""},{"$f":"IF($A272=\"N/A\",Ref!$B$36,INDEX(Ranks!$1:$1048576,$A272,AK$1))","v":""},{"$f":"IF($A272=\"N/A\",Ref!$B$36,INDEX(Ranks!$1:$1048576,$A272,AL$1))","v":""},{"$f":"IF($A272=\"N/A\",Ref!$B$36,INDEX(Ranks!$1:$1048576,$A272,AM$1))","v":""},{"$f":"IF($A272=\"N/A\",Ref!$B$36,INDEX(Ranks!$1:$1048576,$A272,AN$1))","v":""},{"$f":"IF($A272=\"N/A\",Ref!$B$36,INDEX(Ranks!$1:$1048576,$A272,AO$1))","v":""},{"$f":"IF($A272=\"N/A\",Ref!$B$36,INDEX(Ranks!$1:$1048576,$A272,AP$1))","v":""},{"$f":"IF($A272=\"N/A\",Ref!$B$36,INDEX(Ranks!$1:$1048576,$A272,AQ$1))","v":""},{"$f":"IF($A272=\"N/A\",Ref!$B$36,INDEX(Ranks!$1:$1048576,$A272,AR$1))","v":""},{"$f":"IF($A272=\"N/A\",Ref!$B$36,INDEX(Ranks!$1:$1048576,$A272,AS$1))","v":""},{"$f":"IF($A272=\"N/A\",Ref!$B$36,INDEX(Ranks!$1:$1048576,$A272,AT$1))","v":""},{"$f":"IF($A272=\"N/A\",Ref!$B$36,INDEX(Ranks!$1:$1048576,$A272,AU$1))","v":""},{"$f":"IF($A272=\"N/A\",Ref!$B$36,INDEX(Ranks!$1:$1048576,$A272,AV$1))","v":""},{"$f":"IF($A272=\"N/A\",Ref!$B$36,INDEX(Ranks!$1:$1048576,$A272,AW$1))","v":""},{"$f":"IF($A272=\"N/A\",Ref!$B$36,INDEX(Ranks!$1:$1048576,$A272,AX$1))","v":""},{"$f":"IF($A272=\"N/A\",Ref!$B$36,INDEX(Ranks!$1:$1048576,$A272,AY$1))","v":""},{"$f":"IF($A272=\"N/A\",Ref!$B$36,INDEX(Ranks!$1:$1048576,$A272,AZ$1))","v":""},{"$f":"IF($A272=\"N/A\",Ref!$B$36,INDEX(Ranks!$1:$1048576,$A272,BA$1))","v":""},{"$f":"IF($A272=\"N/A\",Ref!$B$36,INDEX(Ranks!$1:$1048576,$A272,BB$1))","v":""},{"$f":"IF($A272=\"N/A\",Ref!$B$36,INDEX(Ranks!$1:$1048576,$A272,BC$1))","v":""},{"$f":"IF($A272=\"N/A\",Ref!$B$36,INDEX(Ranks!$1:$1048576,$A272,BD$1))","v":""},{"$f":"IF($A272=\"N/A\",Ref!$B$36,INDEX(Ranks!$1:$1048576,$A272,BE$1))","v":""},{"$f":"IF($A272=\"N/A\",Ref!$B$36,INDEX(Ranks!$1:$1048576,$A272,BF$1))","v":""},{"$f":"IF($A272=\"N/A\",Ref!$B$36,INDEX(Ranks!$1:$1048576,$A272,BG$1))","v":""},{"$f":"IF($A272=\"N/A\",Ref!$B$36,INDEX(Ranks!$1:$1048576,$A272,BH$1))","v":""},{"$f":"IF($A272=\"N/A\",Ref!$B$36,INDEX(Ranks!$1:$1048576,$A272,BI$1))","v":""},{"$f":"IF($A272=\"N/A\",Ref!$B$36,INDEX(Ranks!$1:$1048576,$A272,BJ$1))","v":""},{"$f":"IF($A272=\"N/A\",Ref!$B$36,INDEX(Ranks!$1:$1048576,$A272,BK$1))","v":""},{"$f":"IF($A272=\"N/A\",Ref!$B$36,INDEX(Ranks!$1:$1048576,$A272,BL$1))","v":""},{"$f":"IF($A272=\"N/A\",Ref!$B$36,INDEX(Ranks!$1:$1048576,$A272,BM$1))","v":""},{"$f":"IF($A272=\"N/A\",Ref!$B$36,INDEX(Ranks!$1:$1048576,$A272,BN$1))","v":""},{"$f":"IF($A272=\"N/A\",Ref!$B$36,INDEX(Ranks!$1:$1048576,$A272,BO$1))","v":""},{"$f":"IF($A272=\"N/A\",Ref!$B$36,INDEX(Ranks!$1:$1048576,$A272,BP$1))","v":""},{"$f":"IF($A272=\"N/A\",Ref!$B$36,INDEX(Ranks!$1:$1048576,$A272,BQ$1))","v":""},{"$f":"IF($A272=\"N/A\",Ref!$B$36,INDEX(Ranks!$1:$1048576,$A272,BR$1))","v":""},{"$f":"IF($A272=\"N/A\",Ref!$B$36,INDEX(Ranks!$1:$1048576,$A272,BS$1))","v":""},{"$f":"IF($A272=\"N/A\",Ref!$B$36,INDEX(Ranks!$1:$1048576,$A272,BT$1))","v":""},{"$f":"IF($A272=\"N/A\",Ref!$B$36,INDEX(Ranks!$1:$1048576,$A272,BU$1))","v":""},{"$f":"IF($A272=\"N/A\",Ref!$B$36,INDEX(Ranks!$1:$1048576,$A272,BV$1))","v":""},{"$f":"IF($A272=\"N/A\",Ref!$B$36,INDEX(Ranks!$1:$1048576,$A272,BW$1))","v":""},{"$f":"IF($A272=\"N/A\",Ref!$B$36,INDEX(Ranks!$1:$1048576,$A272,BX$1))","v":""},{"$f":"IF($A272=\"N/A\",Ref!$B$36,INDEX(Ranks!$1:$1048576,$A272,BY$1))","v":""},{"$f":"IF($A272=\"N/A\",Ref!$B$36,INDEX(Ranks!$1:$1048576,$A272,BZ$1))","v":""},{"$f":"IF($A272=\"N/A\",Ref!$B$36,INDEX(Ranks!$1:$1048576,$A272,CA$1))","v":""},{"$f":"IF($A272=\"N/A\",Ref!$B$36,INDEX(Ranks!$1:$1048576,$A272,CB$1))","v":""},{"$f":"IF($A272=\"N/A\",Ref!$B$36,INDEX(Ranks!$1:$1048576,$A272,CC$1))","v":""},{"$f":"IF($A272=\"N/A\",Ref!$B$36,INDEX(Ranks!$1:$1048576,$A272,CD$1))","v":""},{"$f":"IF($A272=\"N/A\",Ref!$B$36,INDEX(Ranks!$1:$1048576,$A272,CE$1))","v":""},{"$f":"IF($A272=\"N/A\",Ref!$B$36,INDEX(Ranks!$1:$1048576,$A272,CF$1))","v":""},{"$f":"IF($A272=\"N/A\",Ref!$B$36,INDEX(Ranks!$1:$1048576,$A272,CG$1))","v":""},{"$f":"IF($A272=\"N/A\",Ref!$B$36,INDEX(Ranks!$1:$1048576,$A272,CH$1))","v":""},{"$f":"IF($A272=\"N/A\",Ref!$B$36,INDEX(Ranks!$1:$1048576,$A272,CI$1))","v":""},{"$f":"IF($A272=\"N/A\",Ref!$B$36,INDEX(Ranks!$1:$1048576,$A272,CJ$1))","v":""},{"$f":"IF($A272=\"N/A\",Ref!$B$36,INDEX(Ranks!$1:$1048576,$A272,CK$1))","v":""},{"$f":"IF($A272=\"N/A\",Ref!$B$36,INDEX(Ranks!$1:$1048576,$A272,CL$1))","v":""},{"$f":"IF($A272=\"N/A\",Ref!$B$36,INDEX(Ranks!$1:$1048576,$A272,CM$1))","v":""},{"$f":"IF($A272=\"N/A\",Ref!$B$36,INDEX(Ranks!$1:$1048576,$A272,CN$1))","v":""},{"$f":"IF($A272=\"N/A\",Ref!$B$36,INDEX(Ranks!$1:$1048576,$A272,CO$1))","v":""},{"$f":"IF($A272=\"N/A\",Ref!$B$36,INDEX(Ranks!$1:$1048576,$A272,CP$1))","v":""},{"$f":"IF($A272=\"N/A\",Ref!$B$36,INDEX(Ranks!$1:$1048576,$A272,CQ$1))","v":""},{"$f":"IF($A272=\"N/A\",Ref!$B$36,INDEX(Ranks!$1:$1048576,$A272,CR$1))","v":""},{"$f":"IF($A272=\"N/A\",Ref!$B$36,INDEX(Ranks!$1:$1048576,$A272,CS$1))","v":""},{"$f":"IF($A272=\"N/A\",Ref!$B$36,INDEX(Ranks!$1:$1048576,$A272,CT$1))","v":""},{"$f":"IF($A272=\"N/A\",Ref!$B$36,INDEX(Ranks!$1:$1048576,$A272,CU$1))","v":""},{"$f":"IF($A272=\"N/A\",Ref!$B$36,INDEX(Ranks!$1:$1048576,$A272,CV$1))","v":""},{"$f":"IF($A272=\"N/A\",Ref!$B$36,INDEX(Ranks!$1:$1048576,$A272,CW$1))","v":""},{"$f":"IF($A272=\"N/A\",Ref!$B$36,INDEX(Ranks!$1:$1048576,$A272,CX$1))","v":""},{"$f":"IF($A272=\"N/A\",Ref!$B$36,INDEX(Ranks!$1:$1048576,$A272,CY$1))","v":""},{"$f":"IF($A272=\"N/A\",Ref!$B$36,INDEX(Ranks!$1:$1048576,$A272,CZ$1))","v":""},{"$f":"IF($A272=\"N/A\",Ref!$B$36,INDEX(Ranks!$1:$1048576,$A272,DA$1))","v":""},{"$f":"IF($A272=\"N/A\",Ref!$B$36,INDEX(Ranks!$1:$1048576,$A272,DB$1))","v":""},{"$f":"IF($A272=\"N/A\",Ref!$B$36,INDEX(Ranks!$1:$1048576,$A272,DC$1))","v":""},{"$f":"IF($A272=\"N/A\",Ref!$B$36,INDEX(Ranks!$1:$1048576,$A272,DD$1))","v":""},{"$f":"IF($A272=\"N/A\",Ref!$B$36,INDEX(Ranks!$1:$1048576,$A272,DE$1))","v":""},{"$f":"IF($A272=\"N/A\",Ref!$B$36,INDEX(Ranks!$1:$1048576,$A272,DF$1))","v":""},{"$f":"IF($A272=\"N/A\",Ref!$B$36,INDEX(Ranks!$1:$1048576,$A272,DG$1))","v":""},{"$f":"IF($A272=\"N/A\",Ref!$B$36,INDEX(Ranks!$1:$1048576,$A272,DH$1))","v":""},{"$f":"IF($A272=\"N/A\",Ref!$B$36,INDEX(Ranks!$1:$1048576,$A272,DI$1))","v":""},{"$f":"IF($A272=\"N/A\",Ref!$B$36,INDEX(Ranks!$1:$1048576,$A272,DJ$1))","v":""},{"$f":"IF($A272=\"N/A\",Ref!$B$36,INDEX(Ranks!$1:$1048576,$A272,DK$1))","v":""},{"$f":"IF($A272=\"N/A\",Ref!$B$36,INDEX(Ranks!$1:$1048576,$A272,DL$1))","v":""},{"$f":"IF($A272=\"N/A\",Ref!$B$36,INDEX(Ranks!$1:$1048576,$A272,DM$1))","v":""},{"$f":"IF($A272=\"N/A\",Ref!$B$36,INDEX(Ranks!$1:$1048576,$A272,DN$1))","v":""},{"$f":"IF($A272=\"N/A\",Ref!$B$36,INDEX(Ranks!$1:$1048576,$A272,DO$1))","v":""},{"$f":"IF($A272=\"N/A\",Ref!$B$36,INDEX(Ranks!$1:$1048576,$A272,DP$1))","v":""},{"$f":"IF($A272=\"N/A\",Ref!$B$36,INDEX(Ranks!$1:$1048576,$A272,DQ$1))","v":""},{"$f":"IF($A272=\"N/A\",Ref!$B$36,INDEX(Ranks!$1:$1048576,$A272,DR$1))","v":""},{"$f":"IF($A272=\"N/A\",Ref!$B$36,INDEX(Ranks!$1:$1048576,$A272,DS$1))","v":""},{"$f":"IF($A272=\"N/A\",Ref!$B$36,INDEX(Ranks!$1:$1048576,$A272,DT$1))","v":""},{"$f":"IF($A272=\"N/A\",Ref!$B$36,INDEX(Ranks!$1:$1048576,$A272,DU$1))","v":""},{"$f":"IF($A272=\"N/A\",Ref!$B$36,INDEX(Ranks!$1:$1048576,$A272,DV$1))","v":""},{"$f":"IF($A272=\"N/A\",Ref!$B$36,INDEX(Ranks!$1:$1048576,$A272,DW$1))","v":""},{"$f":"IF($A272=\"N/A\",Ref!$B$36,INDEX(Ranks!$1:$1048576,$A272,DX$1))","v":""},{"$f":"IF($A272=\"N/A\",Ref!$B$36,INDEX(Ranks!$1:$1048576,$A272,DY$1))","v":""},{"$f":"IF($A272=\"N/A\",Ref!$B$36,INDEX(Ranks!$1:$1048576,$A272,DZ$1))","v":""},{"$f":"IF($A272=\"N/A\",Ref!$B$36,INDEX(Ranks!$1:$1048576,$A272,EA$1))","v":""},{"$f":"IF($A272=\"N/A\",Ref!$B$36,INDEX(Ranks!$1:$1048576,$A272,EB$1))","v":""}]
[{"$f":"IFERROR(MATCH('Portfolio Page'!L273,Ranks!L:L,0),\"N/A\")","v":"N/A"},null,{"$f":"IF($A273=\"N/A\",\"\",INDEX(Ranks!$1:$1048576,$A273,C$1))","v":""},{"$f":"IF($A273=\"N/A\",Ref!$B$36,INDEX(Ranks!$1:$1048576,$A273,D$1))","v":""},{"$f":"IF($A273=\"N/A\",Ref!$B$36,INDEX(Ranks!$1:$1048576,$A273,E$1))","v":""},{"$f":"IF($A273=\"N/A\",\"\",INDEX(Ranks!$1:$1048576,$A273,F$1))","v":""},{"$f":"IF($A273=\"N/A\",\"\",INDEX(Ranks!$1:$1048576,$A273,G$1))","v":""},{"$f":"IF($A273=\"N/A\",\"\",INDEX(Ranks!$1:$1048576,$A273,H$1))","v":""},{"$f":"IF($A273=\"N/A\",\"\",INDEX(Ranks!$1:$1048576,$A273,I$1))","v":""},{"$f":"IF($A273=\"N/A\",\"\",INDEX(Ranks!$1:$1048576,$A273,J$1))","v":""},{"$f":"IF($A273=\"N/A\",\"\",INDEX(Ranks!$1:$1048576,$A273,K$1))","v":""},null,{"$f":"IF($A273=\"N/A\",Ref!$B$36,INDEX(Ranks!$1:$1048576,$A273,M$1))","v":""},{"$f":"IF($A273=\"N/A\",Ref!$B$36,INDEX(Ranks!$1:$1048576,$A273,N$1))","v":""},{"$f":"IF($A273=\"N/A\",Ref!$B$36,INDEX(Ranks!$1:$1048576,$A273,O$1))","v":""},{"$f":"IF($A273=\"N/A\",Ref!$B$36,INDEX(Ranks!$1:$1048576,$A273,P$1))","v":""},{"$f":"IF($A273=\"N/A\",Ref!$B$36,INDEX(Ranks!$1:$1048576,$A273,Q$1))","v":""},{"$f":"IF($A273=\"N/A\",Ref!$B$36,INDEX(Ranks!$1:$1048576,$A273,R$1))","v":""},{"$f":"IF($A273=\"N/A\",Ref!$B$36,INDEX(Ranks!$1:$1048576,$A273,S$1))","v":""},{"$f":"IF($A273=\"N/A\",Ref!$B$36,INDEX(Ranks!$1:$1048576,$A273,T$1))","v":""},{"$f":"IF($A273=\"N/A\",Ref!$B$36,INDEX(Ranks!$1:$1048576,$A273,U$1))","v":""},{"$f":"IF($A273=\"N/A\",Ref!$B$36,INDEX(Ranks!$1:$1048576,$A273,V$1))","v":""},{"$f":"IF($A273=\"N/A\",Ref!$B$36,INDEX(Ranks!$1:$1048576,$A273,W$1))","v":""},{"$f":"IF($A273=\"N/A\",Ref!$B$36,INDEX(Ranks!$1:$1048576,$A273,X$1))","v":""},{"$f":"IF($A273=\"N/A\",Ref!$B$36,INDEX(Ranks!$1:$1048576,$A273,Y$1))","v":""},{"$f":"IF($A273=\"N/A\",Ref!$B$36,INDEX(Ranks!$1:$1048576,$A273,Z$1))","v":""},{"$f":"IF($A273=\"N/A\",Ref!$B$36,INDEX(Ranks!$1:$1048576,$A273,AA$1))","v":""},{"$f":"IF($A273=\"N/A\",Ref!$B$36,INDEX(Ranks!$1:$1048576,$A273,AB$1))","v":""},{"$f":"IF($A273=\"N/A\",Ref!$B$36,INDEX(Ranks!$1:$1048576,$A273,AC$1))","v":""},{"$f":"IF($A273=\"N/A\",Ref!$B$36,INDEX(Ranks!$1:$1048576,$A273,AD$1))","v":""},{"$f":"IF($A273=\"N/A\",Ref!$B$36,INDEX(Ranks!$1:$1048576,$A273,AE$1))","v":""},{"$f":"IF($A273=\"N/A\",Ref!$B$36,INDEX(Ranks!$1:$1048576,$A273,AF$1))","v":""},{"$f":"IF($A273=\"N/A\",Ref!$B$36,INDEX(Ranks!$1:$1048576,$A273,AG$1))","v":""},{"$f":"IF($A273=\"N/A\",Ref!$B$36,INDEX(Ranks!$1:$1048576,$A273,AH$1))","v":""},{"$f":"IF($A273=\"N/A\",Ref!$B$36,INDEX(Ranks!$1:$1048576,$A273,AI$1))","v":""},{"$f":"IF($A273=\"N/A\",Ref!$B$36,INDEX(Ranks!$1:$1048576,$A273,AJ$1))","v":""},{"$f":"IF($A273=\"N/A\",Ref!$B$36,INDEX(Ranks!$1:$1048576,$A273,AK$1))","v":""},{"$f":"IF($A273=\"N/A\",Ref!$B$36,INDEX(Ranks!$1:$1048576,$A273,AL$1))","v":""},{"$f":"IF($A273=\"N/A\",Ref!$B$36,INDEX(Ranks!$1:$1048576,$A273,AM$1))","v":""},{"$f":"IF($A273=\"N/A\",Ref!$B$36,INDEX(Ranks!$1:$1048576,$A273,AN$1))","v":""},{"$f":"IF($A273=\"N/A\",Ref!$B$36,INDEX(Ranks!$1:$1048576,$A273,AO$1))","v":""},{"$f":"IF($A273=\"N/A\",Ref!$B$36,INDEX(Ranks!$1:$1048576,$A273,AP$1))","v":""},{"$f":"IF($A273=\"N/A\",Ref!$B$36,INDEX(Ranks!$1:$1048576,$A273,AQ$1))","v":""},{"$f":"IF($A273=\"N/A\",Ref!$B$36,INDEX(Ranks!$1:$1048576,$A273,AR$1))","v":""},{"$f":"IF($A273=\"N/A\",Ref!$B$36,INDEX(Ranks!$1:$1048576,$A273,AS$1))","v":""},{"$f":"IF($A273=\"N/A\",Ref!$B$36,INDEX(Ranks!$1:$1048576,$A273,AT$1))","v":""},{"$f":"IF($A273=\"N/A\",Ref!$B$36,INDEX(Ranks!$1:$1048576,$A273,AU$1))","v":""},{"$f":"IF($A273=\"N/A\",Ref!$B$36,INDEX(Ranks!$1:$1048576,$A273,AV$1))","v":""},{"$f":"IF($A273=\"N/A\",Ref!$B$36,INDEX(Ranks!$1:$1048576,$A273,AW$1))","v":""},{"$f":"IF($A273=\"N/A\",Ref!$B$36,INDEX(Ranks!$1:$1048576,$A273,AX$1))","v":""},{"$f":"IF($A273=\"N/A\",Ref!$B$36,INDEX(Ranks!$1:$1048576,$A273,AY$1))","v":""},{"$f":"IF($A273=\"N/A\",Ref!$B$36,INDEX(Ranks!$1:$1048576,$A273,AZ$1))","v":""},{"$f":"IF($A273=\"N/A\",Ref!$B$36,INDEX(Ranks!$1:$1048576,$A273,BA$1))","v":""},{"$f":"IF($A273=\"N/A\",Ref!$B$36,INDEX(Ranks!$1:$1048576,$A273,BB$1))","v":""},{"$f":"IF($A273=\"N/A\",Ref!$B$36,INDEX(Ranks!$1:$1048576,$A273,BC$1))","v":""},{"$f":"IF($A273=\"N/A\",Ref!$B$36,INDEX(Ranks!$1:$1048576,$A273,BD$1))","v":""},{"$f":"IF($A273=\"N/A\",Ref!$B$36,INDEX(Ranks!$1:$1048576,$A273,BE$1))","v":""},{"$f":"IF($A273=\"N/A\",Ref!$B$36,INDEX(Ranks!$1:$1048576,$A273,BF$1))","v":""},{"$f":"IF($A273=\"N/A\",Ref!$B$36,INDEX(Ranks!$1:$1048576,$A273,BG$1))","v":""},{"$f":"IF($A273=\"N/A\",Ref!$B$36,INDEX(Ranks!$1:$1048576,$A273,BH$1))","v":""},{"$f":"IF($A273=\"N/A\",Ref!$B$36,INDEX(Ranks!$1:$1048576,$A273,BI$1))","v":""},{"$f":"IF($A273=\"N/A\",Ref!$B$36,INDEX(Ranks!$1:$1048576,$A273,BJ$1))","v":""},{"$f":"IF($A273=\"N/A\",Ref!$B$36,INDEX(Ranks!$1:$1048576,$A273,BK$1))","v":""},{"$f":"IF($A273=\"N/A\",Ref!$B$36,INDEX(Ranks!$1:$1048576,$A273,BL$1))","v":""},{"$f":"IF($A273=\"N/A\",Ref!$B$36,INDEX(Ranks!$1:$1048576,$A273,BM$1))","v":""},{"$f":"IF($A273=\"N/A\",Ref!$B$36,INDEX(Ranks!$1:$1048576,$A273,BN$1))","v":""},{"$f":"IF($A273=\"N/A\",Ref!$B$36,INDEX(Ranks!$1:$1048576,$A273,BO$1))","v":""},{"$f":"IF($A273=\"N/A\",Ref!$B$36,INDEX(Ranks!$1:$1048576,$A273,BP$1))","v":""},{"$f":"IF($A273=\"N/A\",Ref!$B$36,INDEX(Ranks!$1:$1048576,$A273,BQ$1))","v":""},{"$f":"IF($A273=\"N/A\",Ref!$B$36,INDEX(Ranks!$1:$1048576,$A273,BR$1))","v":""},{"$f":"IF($A273=\"N/A\",Ref!$B$36,INDEX(Ranks!$1:$1048576,$A273,BS$1))","v":""},{"$f":"IF($A273=\"N/A\",Ref!$B$36,INDEX(Ranks!$1:$1048576,$A273,BT$1))","v":""},{"$f":"IF($A273=\"N/A\",Ref!$B$36,INDEX(Ranks!$1:$1048576,$A273,BU$1))","v":""},{"$f":"IF($A273=\"N/A\",Ref!$B$36,INDEX(Ranks!$1:$1048576,$A273,BV$1))","v":""},{"$f":"IF($A273=\"N/A\",Ref!$B$36,INDEX(Ranks!$1:$1048576,$A273,BW$1))","v":""},{"$f":"IF($A273=\"N/A\",Ref!$B$36,INDEX(Ranks!$1:$1048576,$A273,BX$1))","v":""},{"$f":"IF($A273=\"N/A\",Ref!$B$36,INDEX(Ranks!$1:$1048576,$A273,BY$1))","v":""},{"$f":"IF($A273=\"N/A\",Ref!$B$36,INDEX(Ranks!$1:$1048576,$A273,BZ$1))","v":""},{"$f":"IF($A273=\"N/A\",Ref!$B$36,INDEX(Ranks!$1:$1048576,$A273,CA$1))","v":""},{"$f":"IF($A273=\"N/A\",Ref!$B$36,INDEX(Ranks!$1:$1048576,$A273,CB$1))","v":""},{"$f":"IF($A273=\"N/A\",Ref!$B$36,INDEX(Ranks!$1:$1048576,$A273,CC$1))","v":""},{"$f":"IF($A273=\"N/A\",Ref!$B$36,INDEX(Ranks!$1:$1048576,$A273,CD$1))","v":""},{"$f":"IF($A273=\"N/A\",Ref!$B$36,INDEX(Ranks!$1:$1048576,$A273,CE$1))","v":""},{"$f":"IF($A273=\"N/A\",Ref!$B$36,INDEX(Ranks!$1:$1048576,$A273,CF$1))","v":""},{"$f":"IF($A273=\"N/A\",Ref!$B$36,INDEX(Ranks!$1:$1048576,$A273,CG$1))","v":""},{"$f":"IF($A273=\"N/A\",Ref!$B$36,INDEX(Ranks!$1:$1048576,$A273,CH$1))","v":""},{"$f":"IF($A273=\"N/A\",Ref!$B$36,INDEX(Ranks!$1:$1048576,$A273,CI$1))","v":""},{"$f":"IF($A273=\"N/A\",Ref!$B$36,INDEX(Ranks!$1:$1048576,$A273,CJ$1))","v":""},{"$f":"IF($A273=\"N/A\",Ref!$B$36,INDEX(Ranks!$1:$1048576,$A273,CK$1))","v":""},{"$f":"IF($A273=\"N/A\",Ref!$B$36,INDEX(Ranks!$1:$1048576,$A273,CL$1))","v":""},{"$f":"IF($A273=\"N/A\",Ref!$B$36,INDEX(Ranks!$1:$1048576,$A273,CM$1))","v":""},{"$f":"IF($A273=\"N/A\",Ref!$B$36,INDEX(Ranks!$1:$1048576,$A273,CN$1))","v":""},{"$f":"IF($A273=\"N/A\",Ref!$B$36,INDEX(Ranks!$1:$1048576,$A273,CO$1))","v":""},{"$f":"IF($A273=\"N/A\",Ref!$B$36,INDEX(Ranks!$1:$1048576,$A273,CP$1))","v":""},{"$f":"IF($A273=\"N/A\",Ref!$B$36,INDEX(Ranks!$1:$1048576,$A273,CQ$1))","v":""},{"$f":"IF($A273=\"N/A\",Ref!$B$36,INDEX(Ranks!$1:$1048576,$A273,CR$1))","v":""},{"$f":"IF($A273=\"N/A\",Ref!$B$36,INDEX(Ranks!$1:$1048576,$A273,CS$1))","v":""},{"$f":"IF($A273=\"N/A\",Ref!$B$36,INDEX(Ranks!$1:$1048576,$A273,CT$1))","v":""},{"$f":"IF($A273=\"N/A\",Ref!$B$36,INDEX(Ranks!$1:$1048576,$A273,CU$1))","v":""},{"$f":"IF($A273=\"N/A\",Ref!$B$36,INDEX(Ranks!$1:$1048576,$A273,CV$1))","v":""},{"$f":"IF($A273=\"N/A\",Ref!$B$36,INDEX(Ranks!$1:$1048576,$A273,CW$1))","v":""},{"$f":"IF($A273=\"N/A\",Ref!$B$36,INDEX(Ranks!$1:$1048576,$A273,CX$1))","v":""},{"$f":"IF($A273=\"N/A\",Ref!$B$36,INDEX(Ranks!$1:$1048576,$A273,CY$1))","v":""},{"$f":"IF($A273=\"N/A\",Ref!$B$36,INDEX(Ranks!$1:$1048576,$A273,CZ$1))","v":""},{"$f":"IF($A273=\"N/A\",Ref!$B$36,INDEX(Ranks!$1:$1048576,$A273,DA$1))","v":""},{"$f":"IF($A273=\"N/A\",Ref!$B$36,INDEX(Ranks!$1:$1048576,$A273,DB$1))","v":""},{"$f":"IF($A273=\"N/A\",Ref!$B$36,INDEX(Ranks!$1:$1048576,$A273,DC$1))","v":""},{"$f":"IF($A273=\"N/A\",Ref!$B$36,INDEX(Ranks!$1:$1048576,$A273,DD$1))","v":""},{"$f":"IF($A273=\"N/A\",Ref!$B$36,INDEX(Ranks!$1:$1048576,$A273,DE$1))","v":""},{"$f":"IF($A273=\"N/A\",Ref!$B$36,INDEX(Ranks!$1:$1048576,$A273,DF$1))","v":""},{"$f":"IF($A273=\"N/A\",Ref!$B$36,INDEX(Ranks!$1:$1048576,$A273,DG$1))","v":""},{"$f":"IF($A273=\"N/A\",Ref!$B$36,INDEX(Ranks!$1:$1048576,$A273,DH$1))","v":""},{"$f":"IF($A273=\"N/A\",Ref!$B$36,INDEX(Ranks!$1:$1048576,$A273,DI$1))","v":""},{"$f":"IF($A273=\"N/A\",Ref!$B$36,INDEX(Ranks!$1:$1048576,$A273,DJ$1))","v":""},{"$f":"IF($A273=\"N/A\",Ref!$B$36,INDEX(Ranks!$1:$1048576,$A273,DK$1))","v":""},{"$f":"IF($A273=\"N/A\",Ref!$B$36,INDEX(Ranks!$1:$1048576,$A273,DL$1))","v":""},{"$f":"IF($A273=\"N/A\",Ref!$B$36,INDEX(Ranks!$1:$1048576,$A273,DM$1))","v":""},{"$f":"IF($A273=\"N/A\",Ref!$B$36,INDEX(Ranks!$1:$1048576,$A273,DN$1))","v":""},{"$f":"IF($A273=\"N/A\",Ref!$B$36,INDEX(Ranks!$1:$1048576,$A273,DO$1))","v":""},{"$f":"IF($A273=\"N/A\",Ref!$B$36,INDEX(Ranks!$1:$1048576,$A273,DP$1))","v":""},{"$f":"IF($A273=\"N/A\",Ref!$B$36,INDEX(Ranks!$1:$1048576,$A273,DQ$1))","v":""},{"$f":"IF($A273=\"N/A\",Ref!$B$36,INDEX(Ranks!$1:$1048576,$A273,DR$1))","v":""},{"$f":"IF($A273=\"N/A\",Ref!$B$36,INDEX(Ranks!$1:$1048576,$A273,DS$1))","v":""},{"$f":"IF($A273=\"N/A\",Ref!$B$36,INDEX(Ranks!$1:$1048576,$A273,DT$1))","v":""},{"$f":"IF($A273=\"N/A\",Ref!$B$36,INDEX(Ranks!$1:$1048576,$A273,DU$1))","v":""},{"$f":"IF($A273=\"N/A\",Ref!$B$36,INDEX(Ranks!$1:$1048576,$A273,DV$1))","v":""},{"$f":"IF($A273=\"N/A\",Ref!$B$36,INDEX(Ranks!$1:$1048576,$A273,DW$1))","v":""},{"$f":"IF($A273=\"N/A\",Ref!$B$36,INDEX(Ranks!$1:$1048576,$A273,DX$1))","v":""},{"$f":"IF($A273=\"N/A\",Ref!$B$36,INDEX(Ranks!$1:$1048576,$A273,DY$1))","v":""},{"$f":"IF($A273=\"N/A\",Ref!$B$36,INDEX(Ranks!$1:$1048576,$A273,DZ$1))","v":""},{"$f":"IF($A273=\"N/A\",Ref!$B$36,INDEX(Ranks!$1:$1048576,$A273,EA$1))","v":""},{"$f":"IF($A273=\"N/A\",Ref!$B$36,INDEX(Ranks!$1:$1048576,$A273,EB$1))","v":""}]
[{"$f":"IFERROR(MATCH('Portfolio Page'!L274,Ranks!L:L,0),\"N/A\")","v":"N/A"},null,{"$f":"IF($A274=\"N/A\",\"\",INDEX(Ranks!$1:$1048576,$A274,C$1))","v":""},{"$f":"IF($A274=\"N/A\",Ref!$B$36,INDEX(Ranks!$1:$1048576,$A274,D$1))","v":""},{"$f":"IF($A274=\"N/A\",Ref!$B$36,INDEX(Ranks!$1:$1048576,$A274,E$1))","v":""},{"$f":"IF($A274=\"N/A\",\"\",INDEX(Ranks!$1:$1048576,$A274,F$1))","v":""},{"$f":"IF($A274=\"N/A\",\"\",INDEX(Ranks!$1:$1048576,$A274,G$1))","v":""},{"$f":"IF($A274=\"N/A\",\"\",INDEX(Ranks!$1:$1048576,$A274,H$1))","v":""},{"$f":"IF($A274=\"N/A\",\"\",INDEX(Ranks!$1:$1048576,$A274,I$1))","v":""},{"$f":"IF($A274=\"N/A\",\"\",INDEX(Ranks!$1:$1048576,$A274,J$1))","v":""},{"$f":"IF($A274=\"N/A\",\"\",INDEX(Ranks!$1:$1048576,$A274,K$1))","v":""},null,{"$f":"IF($A274=\"N/A\",Ref!$B$36,INDEX(Ranks!$1:$1048576,$A274,M$1))","v":""},{"$f":"IF($A274=\"N/A\",Ref!$B$36,INDEX(Ranks!$1:$1048576,$A274,N$1))","v":""},{"$f":"IF($A274=\"N/A\",Ref!$B$36,INDEX(Ranks!$1:$1048576,$A274,O$1))","v":""},{"$f":"IF($A274=\"N/A\",Ref!$B$36,INDEX(Ranks!$1:$1048576,$A274,P$1))","v":""},{"$f":"IF($A274=\"N/A\",Ref!$B$36,INDEX(Ranks!$1:$1048576,$A274,Q$1))","v":""},{"$f":"IF($A274=\"N/A\",Ref!$B$36,INDEX(Ranks!$1:$1048576,$A274,R$1))","v":""},{"$f":"IF($A274=\"N/A\",Ref!$B$36,INDEX(Ranks!$1:$1048576,$A274,S$1))","v":""},{"$f":"IF($A274=\"N/A\",Ref!$B$36,INDEX(Ranks!$1:$1048576,$A274,T$1))","v":""},{"$f":"IF($A274=\"N/A\",Ref!$B$36,INDEX(Ranks!$1:$1048576,$A274,U$1))","v":""},{"$f":"IF($A274=\"N/A\",Ref!$B$36,INDEX(Ranks!$1:$1048576,$A274,V$1))","v":""},{"$f":"IF($A274=\"N/A\",Ref!$B$36,INDEX(Ranks!$1:$1048576,$A274,W$1))","v":""},{"$f":"IF($A274=\"N/A\",Ref!$B$36,INDEX(Ranks!$1:$1048576,$A274,X$1))","v":""},{"$f":"IF($A274=\"N/A\",Ref!$B$36,INDEX(Ranks!$1:$1048576,$A274,Y$1))","v":""},{"$f":"IF($A274=\"N/A\",Ref!$B$36,INDEX(Ranks!$1:$1048576,$A274,Z$1))","v":""},{"$f":"IF($A274=\"N/A\",Ref!$B$36,INDEX(Ranks!$1:$1048576,$A274,AA$1))","v":""},{"$f":"IF($A274=\"N/A\",Ref!$B$36,INDEX(Ranks!$1:$1048576,$A274,AB$1))","v":""},{"$f":"IF($A274=\"N/A\",Ref!$B$36,INDEX(Ranks!$1:$1048576,$A274,AC$1))","v":""},{"$f":"IF($A274=\"N/A\",Ref!$B$36,INDEX(Ranks!$1:$1048576,$A274,AD$1))","v":""},{"$f":"IF($A274=\"N/A\",Ref!$B$36,INDEX(Ranks!$1:$1048576,$A274,AE$1))","v":""},{"$f":"IF($A274=\"N/A\",Ref!$B$36,INDEX(Ranks!$1:$1048576,$A274,AF$1))","v":""},{"$f":"IF($A274=\"N/A\",Ref!$B$36,INDEX(Ranks!$1:$1048576,$A274,AG$1))","v":""},{"$f":"IF($A274=\"N/A\",Ref!$B$36,INDEX(Ranks!$1:$1048576,$A274,AH$1))","v":""},{"$f":"IF($A274=\"N/A\",Ref!$B$36,INDEX(Ranks!$1:$1048576,$A274,AI$1))","v":""},{"$f":"IF($A274=\"N/A\",Ref!$B$36,INDEX(Ranks!$1:$1048576,$A274,AJ$1))","v":""},{"$f":"IF($A274=\"N/A\",Ref!$B$36,INDEX(Ranks!$1:$1048576,$A274,AK$1))","v":""},{"$f":"IF($A274=\"N/A\",Ref!$B$36,INDEX(Ranks!$1:$1048576,$A274,AL$1))","v":""},{"$f":"IF($A274=\"N/A\",Ref!$B$36,INDEX(Ranks!$1:$1048576,$A274,AM$1))","v":""},{"$f":"IF($A274=\"N/A\",Ref!$B$36,INDEX(Ranks!$1:$1048576,$A274,AN$1))","v":""},{"$f":"IF($A274=\"N/A\",Ref!$B$36,INDEX(Ranks!$1:$1048576,$A274,AO$1))","v":""},{"$f":"IF($A274=\"N/A\",Ref!$B$36,INDEX(Ranks!$1:$1048576,$A274,AP$1))","v":""},{"$f":"IF($A274=\"N/A\",Ref!$B$36,INDEX(Ranks!$1:$1048576,$A274,AQ$1))","v":""},{"$f":"IF($A274=\"N/A\",Ref!$B$36,INDEX(Ranks!$1:$1048576,$A274,AR$1))","v":""},{"$f":"IF($A274=\"N/A\",Ref!$B$36,INDEX(Ranks!$1:$1048576,$A274,AS$1))","v":""},{"$f":"IF($A274=\"N/A\",Ref!$B$36,INDEX(Ranks!$1:$1048576,$A274,AT$1))","v":""},{"$f":"IF($A274=\"N/A\",Ref!$B$36,INDEX(Ranks!$1:$1048576,$A274,AU$1))","v":""},{"$f":"IF($A274=\"N/A\",Ref!$B$36,INDEX(Ranks!$1:$1048576,$A274,AV$1))","v":""},{"$f":"IF($A274=\"N/A\",Ref!$B$36,INDEX(Ranks!$1:$1048576,$A274,AW$1))","v":""},{"$f":"IF($A274=\"N/A\",Ref!$B$36,INDEX(Ranks!$1:$1048576,$A274,AX$1))","v":""},{"$f":"IF($A274=\"N/A\",Ref!$B$36,INDEX(Ranks!$1:$1048576,$A274,AY$1))","v":""},{"$f":"IF($A274=\"N/A\",Ref!$B$36,INDEX(Ranks!$1:$1048576,$A274,AZ$1))","v":""},{"$f":"IF($A274=\"N/A\",Ref!$B$36,INDEX(Ranks!$1:$1048576,$A274,BA$1))","v":""},{"$f":"IF($A274=\"N/A\",Ref!$B$36,INDEX(Ranks!$1:$1048576,$A274,BB$1))","v":""},{"$f":"IF($A274=\"N/A\",Ref!$B$36,INDEX(Ranks!$1:$1048576,$A274,BC$1))","v":""},{"$f":"IF($A274=\"N/A\",Ref!$B$36,INDEX(Ranks!$1:$1048576,$A274,BD$1))","v":""},{"$f":"IF($A274=\"N/A\",Ref!$B$36,INDEX(Ranks!$1:$1048576,$A274,BE$1))","v":""},{"$f":"IF($A274=\"N/A\",Ref!$B$36,INDEX(Ranks!$1:$1048576,$A274,BF$1))","v":""},{"$f":"IF($A274=\"N/A\",Ref!$B$36,INDEX(Ranks!$1:$1048576,$A274,BG$1))","v":""},{"$f":"IF($A274=\"N/A\",Ref!$B$36,INDEX(Ranks!$1:$1048576,$A274,BH$1))","v":""},{"$f":"IF($A274=\"N/A\",Ref!$B$36,INDEX(Ranks!$1:$1048576,$A274,BI$1))","v":""},{"$f":"IF($A274=\"N/A\",Ref!$B$36,INDEX(Ranks!$1:$1048576,$A274,BJ$1))","v":""},{"$f":"IF($A274=\"N/A\",Ref!$B$36,INDEX(Ranks!$1:$1048576,$A274,BK$1))","v":""},{"$f":"IF($A274=\"N/A\",Ref!$B$36,INDEX(Ranks!$1:$1048576,$A274,BL$1))","v":""},{"$f":"IF($A274=\"N/A\",Ref!$B$36,INDEX(Ranks!$1:$1048576,$A274,BM$1))","v":""},{"$f":"IF($A274=\"N/A\",Ref!$B$36,INDEX(Ranks!$1:$1048576,$A274,BN$1))","v":""},{"$f":"IF($A274=\"N/A\",Ref!$B$36,INDEX(Ranks!$1:$1048576,$A274,BO$1))","v":""},{"$f":"IF($A274=\"N/A\",Ref!$B$36,INDEX(Ranks!$1:$1048576,$A274,BP$1))","v":""},{"$f":"IF($A274=\"N/A\",Ref!$B$36,INDEX(Ranks!$1:$1048576,$A274,BQ$1))","v":""},{"$f":"IF($A274=\"N/A\",Ref!$B$36,INDEX(Ranks!$1:$1048576,$A274,BR$1))","v":""},{"$f":"IF($A274=\"N/A\",Ref!$B$36,INDEX(Ranks!$1:$1048576,$A274,BS$1))","v":""},{"$f":"IF($A274=\"N/A\",Ref!$B$36,INDEX(Ranks!$1:$1048576,$A274,BT$1))","v":""},{"$f":"IF($A274=\"N/A\",Ref!$B$36,INDEX(Ranks!$1:$1048576,$A274,BU$1))","v":""},{"$f":"IF($A274=\"N/A\",Ref!$B$36,INDEX(Ranks!$1:$1048576,$A274,BV$1))","v":""},{"$f":"IF($A274=\"N/A\",Ref!$B$36,INDEX(Ranks!$1:$1048576,$A274,BW$1))","v":""},{"$f":"IF($A274=\"N/A\",Ref!$B$36,INDEX(Ranks!$1:$1048576,$A274,BX$1))","v":""},{"$f":"IF($A274=\"N/A\",Ref!$B$36,INDEX(Ranks!$1:$1048576,$A274,BY$1))","v":""},{"$f":"IF($A274=\"N/A\",Ref!$B$36,INDEX(Ranks!$1:$1048576,$A274,BZ$1))","v":""},{"$f":"IF($A274=\"N/A\",Ref!$B$36,INDEX(Ranks!$1:$1048576,$A274,CA$1))","v":""},{"$f":"IF($A274=\"N/A\",Ref!$B$36,INDEX(Ranks!$1:$1048576,$A274,CB$1))","v":""},{"$f":"IF($A274=\"N/A\",Ref!$B$36,INDEX(Ranks!$1:$1048576,$A274,CC$1))","v":""},{"$f":"IF($A274=\"N/A\",Ref!$B$36,INDEX(Ranks!$1:$1048576,$A274,CD$1))","v":""},{"$f":"IF($A274=\"N/A\",Ref!$B$36,INDEX(Ranks!$1:$1048576,$A274,CE$1))","v":""},{"$f":"IF($A274=\"N/A\",Ref!$B$36,INDEX(Ranks!$1:$1048576,$A274,CF$1))","v":""},{"$f":"IF($A274=\"N/A\",Ref!$B$36,INDEX(Ranks!$1:$1048576,$A274,CG$1))","v":""},{"$f":"IF($A274=\"N/A\",Ref!$B$36,INDEX(Ranks!$1:$1048576,$A274,CH$1))","v":""},{"$f":"IF($A274=\"N/A\",Ref!$B$36,INDEX(Ranks!$1:$1048576,$A274,CI$1))","v":""},{"$f":"IF($A274=\"N/A\",Ref!$B$36,INDEX(Ranks!$1:$1048576,$A274,CJ$1))","v":""},{"$f":"IF($A274=\"N/A\",Ref!$B$36,INDEX(Ranks!$1:$1048576,$A274,CK$1))","v":""},{"$f":"IF($A274=\"N/A\",Ref!$B$36,INDEX(Ranks!$1:$1048576,$A274,CL$1))","v":""},{"$f":"IF($A274=\"N/A\",Ref!$B$36,INDEX(Ranks!$1:$1048576,$A274,CM$1))","v":""},{"$f":"IF($A274=\"N/A\",Ref!$B$36,INDEX(Ranks!$1:$1048576,$A274,CN$1))","v":""},{"$f":"IF($A274=\"N/A\",Ref!$B$36,INDEX(Ranks!$1:$1048576,$A274,CO$1))","v":""},{"$f":"IF($A274=\"N/A\",Ref!$B$36,INDEX(Ranks!$1:$1048576,$A274,CP$1))","v":""},{"$f":"IF($A274=\"N/A\",Ref!$B$36,INDEX(Ranks!$1:$1048576,$A274,CQ$1))","v":""},{"$f":"IF($A274=\"N/A\",Ref!$B$36,INDEX(Ranks!$1:$1048576,$A274,CR$1))","v":""},{"$f":"IF($A274=\"N/A\",Ref!$B$36,INDEX(Ranks!$1:$1048576,$A274,CS$1))","v":""},{"$f":"IF($A274=\"N/A\",Ref!$B$36,INDEX(Ranks!$1:$1048576,$A274,CT$1))","v":""},{"$f":"IF($A274=\"N/A\",Ref!$B$36,INDEX(Ranks!$1:$1048576,$A274,CU$1))","v":""},{"$f":"IF($A274=\"N/A\",Ref!$B$36,INDEX(Ranks!$1:$1048576,$A274,CV$1))","v":""},{"$f":"IF($A274=\"N/A\",Ref!$B$36,INDEX(Ranks!$1:$1048576,$A274,CW$1))","v":""},{"$f":"IF($A274=\"N/A\",Ref!$B$36,INDEX(Ranks!$1:$1048576,$A274,CX$1))","v":""},{"$f":"IF($A274=\"N/A\",Ref!$B$36,INDEX(Ranks!$1:$1048576,$A274,CY$1))","v":""},{"$f":"IF($A274=\"N/A\",Ref!$B$36,INDEX(Ranks!$1:$1048576,$A274,CZ$1))","v":""},{"$f":"IF($A274=\"N/A\",Ref!$B$36,INDEX(Ranks!$1:$1048576,$A274,DA$1))","v":""},{"$f":"IF($A274=\"N/A\",Ref!$B$36,INDEX(Ranks!$1:$1048576,$A274,DB$1))","v":""},{"$f":"IF($A274=\"N/A\",Ref!$B$36,INDEX(Ranks!$1:$1048576,$A274,DC$1))","v":""},{"$f":"IF($A274=\"N/A\",Ref!$B$36,INDEX(Ranks!$1:$1048576,$A274,DD$1))","v":""},{"$f":"IF($A274=\"N/A\",Ref!$B$36,INDEX(Ranks!$1:$1048576,$A274,DE$1))","v":""},{"$f":"IF($A274=\"N/A\",Ref!$B$36,INDEX(Ranks!$1:$1048576,$A274,DF$1))","v":""},{"$f":"IF($A274=\"N/A\",Ref!$B$36,INDEX(Ranks!$1:$1048576,$A274,DG$1))","v":""},{"$f":"IF($A274=\"N/A\",Ref!$B$36,INDEX(Ranks!$1:$1048576,$A274,DH$1))","v":""},{"$f":"IF($A274=\"N/A\",Ref!$B$36,INDEX(Ranks!$1:$1048576,$A274,DI$1))","v":""},{"$f":"IF($A274=\"N/A\",Ref!$B$36,INDEX(Ranks!$1:$1048576,$A274,DJ$1))","v":""},{"$f":"IF($A274=\"N/A\",Ref!$B$36,INDEX(Ranks!$1:$1048576,$A274,DK$1))","v":""},{"$f":"IF($A274=\"N/A\",Ref!$B$36,INDEX(Ranks!$1:$1048576,$A274,DL$1))","v":""},{"$f":"IF($A274=\"N/A\",Ref!$B$36,INDEX(Ranks!$1:$1048576,$A274,DM$1))","v":""},{"$f":"IF($A274=\"N/A\",Ref!$B$36,INDEX(Ranks!$1:$1048576,$A274,DN$1))","v":""},{"$f":"IF($A274=\"N/A\",Ref!$B$36,INDEX(Ranks!$1:$1048576,$A274,DO$1))","v":""},{"$f":"IF($A274=\"N/A\",Ref!$B$36,INDEX(Ranks!$1:$1048576,$A274,DP$1))","v":""},{"$f":"IF($A274=\"N/A\",Ref!$B$36,INDEX(Ranks!$1:$1048576,$A274,DQ$1))","v":""},{"$f":"IF($A274=\"N/A\",Ref!$B$36,INDEX(Ranks!$1:$1048576,$A274,DR$1))","v":""},{"$f":"IF($A274=\"N/A\",Ref!$B$36,INDEX(Ranks!$1:$1048576,$A274,DS$1))","v":""},{"$f":"IF($A274=\"N/A\",Ref!$B$36,INDEX(Ranks!$1:$1048576,$A274,DT$1))","v":""},{"$f":"IF($A274=\"N/A\",Ref!$B$36,INDEX(Ranks!$1:$1048576,$A274,DU$1))","v":""},{"$f":"IF($A274=\"N/A\",Ref!$B$36,INDEX(Ranks!$1:$1048576,$A274,DV$1))","v":""},{"$f":"IF($A274=\"N/A\",Ref!$B$36,INDEX(Ranks!$1:$1048576,$A274,DW$1))","v":""},{"$f":"IF($A274=\"N/A\",Ref!$B$36,INDEX(Ranks!$1:$1048576,$A274,DX$1))","v":""},{"$f":"IF($A274=\"N/A\",Ref!$B$36,INDEX(Ranks!$1:$1048576,$A274,DY$1))","v":""},{"$f":"IF($A274=\"N/A\",Ref!$B$36,INDEX(Ranks!$1:$1048576,$A274,DZ$1))","v":""},{"$f":"IF($A274=\"N/A\",Ref!$B$36,INDEX(Ranks!$1:$1048576,$A274,EA$1))","v":""},{"$f":"IF($A274=\"N/A\",Ref!$B$36,INDEX(Ranks!$1:$1048576,$A274,EB$1))","v":""}]
[{"$f":"IFERROR(MATCH('Portfolio Page'!L275,Ranks!L:L,0),\"N/A\")","v":"N/A"},null,{"$f":"IF($A275=\"N/A\",\"\",INDEX(Ranks!$1:$1048576,$A275,C$1))","v":""},{"$f":"IF($A275=\"N/A\",Ref!$B$36,INDEX(Ranks!$1:$1048576,$A275,D$1))","v":""},{"$f":"IF($A275=\"N/A\",Ref!$B$36,INDEX(Ranks!$1:$1048576,$A275,E$1))","v":""},{"$f":"IF($A275=\"N/A\",\"\",INDEX(Ranks!$1:$1048576,$A275,F$1))","v":""},{"$f":"IF($A275=\"N/A\",\"\",INDEX(Ranks!$1:$1048576,$A275,G$1))","v":""},{"$f":"IF($A275=\"N/A\",\"\",INDEX(Ranks!$1:$1048576,$A275,H$1))","v":""},{"$f":"IF($A275=\"N/A\",\"\",INDEX(Ranks!$1:$1048576,$A275,I$1))","v":""},{"$f":"IF($A275=\"N/A\",\"\",INDEX(Ranks!$1:$1048576,$A275,J$1))","v":""},{"$f":"IF($A275=\"N/A\",\"\",INDEX(Ranks!$1:$1048576,$A275,K$1))","v":""},null,{"$f":"IF($A275=\"N/A\",Ref!$B$36,INDEX(Ranks!$1:$1048576,$A275,M$1))","v":""},{"$f":"IF($A275=\"N/A\",Ref!$B$36,INDEX(Ranks!$1:$1048576,$A275,N$1))","v":""},{"$f":"IF($A275=\"N/A\",Ref!$B$36,INDEX(Ranks!$1:$1048576,$A275,O$1))","v":""},{"$f":"IF($A275=\"N/A\",Ref!$B$36,INDEX(Ranks!$1:$1048576,$A275,P$1))","v":""},{"$f":"IF($A275=\"N/A\",Ref!$B$36,INDEX(Ranks!$1:$1048576,$A275,Q$1))","v":""},{"$f":"IF($A275=\"N/A\",Ref!$B$36,INDEX(Ranks!$1:$1048576,$A275,R$1))","v":""},{"$f":"IF($A275=\"N/A\",Ref!$B$36,INDEX(Ranks!$1:$1048576,$A275,S$1))","v":""},{"$f":"IF($A275=\"N/A\",Ref!$B$36,INDEX(Ranks!$1:$1048576,$A275,T$1))","v":""},{"$f":"IF($A275=\"N/A\",Ref!$B$36,INDEX(Ranks!$1:$1048576,$A275,U$1))","v":""},{"$f":"IF($A275=\"N/A\",Ref!$B$36,INDEX(Ranks!$1:$1048576,$A275,V$1))","v":""},{"$f":"IF($A275=\"N/A\",Ref!$B$36,INDEX(Ranks!$1:$1048576,$A275,W$1))","v":""},{"$f":"IF($A275=\"N/A\",Ref!$B$36,INDEX(Ranks!$1:$1048576,$A275,X$1))","v":""},{"$f":"IF($A275=\"N/A\",Ref!$B$36,INDEX(Ranks!$1:$1048576,$A275,Y$1))","v":""},{"$f":"IF($A275=\"N/A\",Ref!$B$36,INDEX(Ranks!$1:$1048576,$A275,Z$1))","v":""},{"$f":"IF($A275=\"N/A\",Ref!$B$36,INDEX(Ranks!$1:$1048576,$A275,AA$1))","v":""},{"$f":"IF($A275=\"N/A\",Ref!$B$36,INDEX(Ranks!$1:$1048576,$A275,AB$1))","v":""},{"$f":"IF($A275=\"N/A\",Ref!$B$36,INDEX(Ranks!$1:$1048576,$A275,AC$1))","v":""},{"$f":"IF($A275=\"N/A\",Ref!$B$36,INDEX(Ranks!$1:$1048576,$A275,AD$1))","v":""},{"$f":"IF($A275=\"N/A\",Ref!$B$36,INDEX(Ranks!$1:$1048576,$A275,AE$1))","v":""},{"$f":"IF($A275=\"N/A\",Ref!$B$36,INDEX(Ranks!$1:$1048576,$A275,AF$1))","v":""},{"$f":"IF($A275=\"N/A\",Ref!$B$36,INDEX(Ranks!$1:$1048576,$A275,AG$1))","v":""},{"$f":"IF($A275=\"N/A\",Ref!$B$36,INDEX(Ranks!$1:$1048576,$A275,AH$1))","v":""},{"$f":"IF($A275=\"N/A\",Ref!$B$36,INDEX(Ranks!$1:$1048576,$A275,AI$1))","v":""},{"$f":"IF($A275=\"N/A\",Ref!$B$36,INDEX(Ranks!$1:$1048576,$A275,AJ$1))","v":""},{"$f":"IF($A275=\"N/A\",Ref!$B$36,INDEX(Ranks!$1:$1048576,$A275,AK$1))","v":""},{"$f":"IF($A275=\"N/A\",Ref!$B$36,INDEX(Ranks!$1:$1048576,$A275,AL$1))","v":""},{"$f":"IF($A275=\"N/A\",Ref!$B$36,INDEX(Ranks!$1:$1048576,$A275,AM$1))","v":""},{"$f":"IF($A275=\"N/A\",Ref!$B$36,INDEX(Ranks!$1:$1048576,$A275,AN$1))","v":""},{"$f":"IF($A275=\"N/A\",Ref!$B$36,INDEX(Ranks!$1:$1048576,$A275,AO$1))","v":""},{"$f":"IF($A275=\"N/A\",Ref!$B$36,INDEX(Ranks!$1:$1048576,$A275,AP$1))","v":""},{"$f":"IF($A275=\"N/A\",Ref!$B$36,INDEX(Ranks!$1:$1048576,$A275,AQ$1))","v":""},{"$f":"IF($A275=\"N/A\",Ref!$B$36,INDEX(Ranks!$1:$1048576,$A275,AR$1))","v":""},{"$f":"IF($A275=\"N/A\",Ref!$B$36,INDEX(Ranks!$1:$1048576,$A275,AS$1))","v":""},{"$f":"IF($A275=\"N/A\",Ref!$B$36,INDEX(Ranks!$1:$1048576,$A275,AT$1))","v":""},{"$f":"IF($A275=\"N/A\",Ref!$B$36,INDEX(Ranks!$1:$1048576,$A275,AU$1))","v":""},{"$f":"IF($A275=\"N/A\",Ref!$B$36,INDEX(Ranks!$1:$1048576,$A275,AV$1))","v":""},{"$f":"IF($A275=\"N/A\",Ref!$B$36,INDEX(Ranks!$1:$1048576,$A275,AW$1))","v":""},{"$f":"IF($A275=\"N/A\",Ref!$B$36,INDEX(Ranks!$1:$1048576,$A275,AX$1))","v":""},{"$f":"IF($A275=\"N/A\",Ref!$B$36,INDEX(Ranks!$1:$1048576,$A275,AY$1))","v":""},{"$f":"IF($A275=\"N/A\",Ref!$B$36,INDEX(Ranks!$1:$1048576,$A275,AZ$1))","v":""},{"$f":"IF($A275=\"N/A\",Ref!$B$36,INDEX(Ranks!$1:$1048576,$A275,BA$1))","v":""},{"$f":"IF($A275=\"N/A\",Ref!$B$36,INDEX(Ranks!$1:$1048576,$A275,BB$1))","v":""},{"$f":"IF($A275=\"N/A\",Ref!$B$36,INDEX(Ranks!$1:$1048576,$A275,BC$1))","v":""},{"$f":"IF($A275=\"N/A\",Ref!$B$36,INDEX(Ranks!$1:$1048576,$A275,BD$1))","v":""},{"$f":"IF($A275=\"N/A\",Ref!$B$36,INDEX(Ranks!$1:$1048576,$A275,BE$1))","v":""},{"$f":"IF($A275=\"N/A\",Ref!$B$36,INDEX(Ranks!$1:$1048576,$A275,BF$1))","v":""},{"$f":"IF($A275=\"N/A\",Ref!$B$36,INDEX(Ranks!$1:$1048576,$A275,BG$1))","v":""},{"$f":"IF($A275=\"N/A\",Ref!$B$36,INDEX(Ranks!$1:$1048576,$A275,BH$1))","v":""},{"$f":"IF($A275=\"N/A\",Ref!$B$36,INDEX(Ranks!$1:$1048576,$A275,BI$1))","v":""},{"$f":"IF($A275=\"N/A\",Ref!$B$36,INDEX(Ranks!$1:$1048576,$A275,BJ$1))","v":""},{"$f":"IF($A275=\"N/A\",Ref!$B$36,INDEX(Ranks!$1:$1048576,$A275,BK$1))","v":""},{"$f":"IF($A275=\"N/A\",Ref!$B$36,INDEX(Ranks!$1:$1048576,$A275,BL$1))","v":""},{"$f":"IF($A275=\"N/A\",Ref!$B$36,INDEX(Ranks!$1:$1048576,$A275,BM$1))","v":""},{"$f":"IF($A275=\"N/A\",Ref!$B$36,INDEX(Ranks!$1:$1048576,$A275,BN$1))","v":""},{"$f":"IF($A275=\"N/A\",Ref!$B$36,INDEX(Ranks!$1:$1048576,$A275,BO$1))","v":""},{"$f":"IF($A275=\"N/A\",Ref!$B$36,INDEX(Ranks!$1:$1048576,$A275,BP$1))","v":""},{"$f":"IF($A275=\"N/A\",Ref!$B$36,INDEX(Ranks!$1:$1048576,$A275,BQ$1))","v":""},{"$f":"IF($A275=\"N/A\",Ref!$B$36,INDEX(Ranks!$1:$1048576,$A275,BR$1))","v":""},{"$f":"IF($A275=\"N/A\",Ref!$B$36,INDEX(Ranks!$1:$1048576,$A275,BS$1))","v":""},{"$f":"IF($A275=\"N/A\",Ref!$B$36,INDEX(Ranks!$1:$1048576,$A275,BT$1))","v":""},{"$f":"IF($A275=\"N/A\",Ref!$B$36,INDEX(Ranks!$1:$1048576,$A275,BU$1))","v":""},{"$f":"IF($A275=\"N/A\",Ref!$B$36,INDEX(Ranks!$1:$1048576,$A275,BV$1))","v":""},{"$f":"IF($A275=\"N/A\",Ref!$B$36,INDEX(Ranks!$1:$1048576,$A275,BW$1))","v":""},{"$f":"IF($A275=\"N/A\",Ref!$B$36,INDEX(Ranks!$1:$1048576,$A275,BX$1))","v":""},{"$f":"IF($A275=\"N/A\",Ref!$B$36,INDEX(Ranks!$1:$1048576,$A275,BY$1))","v":""},{"$f":"IF($A275=\"N/A\",Ref!$B$36,INDEX(Ranks!$1:$1048576,$A275,BZ$1))","v":""},{"$f":"IF($A275=\"N/A\",Ref!$B$36,INDEX(Ranks!$1:$1048576,$A275,CA$1))","v":""},{"$f":"IF($A275=\"N/A\",Ref!$B$36,INDEX(Ranks!$1:$1048576,$A275,CB$1))","v":""},{"$f":"IF($A275=\"N/A\",Ref!$B$36,INDEX(Ranks!$1:$1048576,$A275,CC$1))","v":""},{"$f":"IF($A275=\"N/A\",Ref!$B$36,INDEX(Ranks!$1:$1048576,$A275,CD$1))","v":""},{"$f":"IF($A275=\"N/A\",Ref!$B$36,INDEX(Ranks!$1:$1048576,$A275,CE$1))","v":""},{"$f":"IF($A275=\"N/A\",Ref!$B$36,INDEX(Ranks!$1:$1048576,$A275,CF$1))","v":""},{"$f":"IF($A275=\"N/A\",Ref!$B$36,INDEX(Ranks!$1:$1048576,$A275,CG$1))","v":""},{"$f":"IF($A275=\"N/A\",Ref!$B$36,INDEX(Ranks!$1:$1048576,$A275,CH$1))","v":""},{"$f":"IF($A275=\"N/A\",Ref!$B$36,INDEX(Ranks!$1:$1048576,$A275,CI$1))","v":""},{"$f":"IF($A275=\"N/A\",Ref!$B$36,INDEX(Ranks!$1:$1048576,$A275,CJ$1))","v":""},{"$f":"IF($A275=\"N/A\",Ref!$B$36,INDEX(Ranks!$1:$1048576,$A275,CK$1))","v":""},{"$f":"IF($A275=\"N/A\",Ref!$B$36,INDEX(Ranks!$1:$1048576,$A275,CL$1))","v":""},{"$f":"IF($A275=\"N/A\",Ref!$B$36,INDEX(Ranks!$1:$1048576,$A275,CM$1))","v":""},{"$f":"IF($A275=\"N/A\",Ref!$B$36,INDEX(Ranks!$1:$1048576,$A275,CN$1))","v":""},{"$f":"IF($A275=\"N/A\",Ref!$B$36,INDEX(Ranks!$1:$1048576,$A275,CO$1))","v":""},{"$f":"IF($A275=\"N/A\",Ref!$B$36,INDEX(Ranks!$1:$1048576,$A275,CP$1))","v":""},{"$f":"IF($A275=\"N/A\",Ref!$B$36,INDEX(Ranks!$1:$1048576,$A275,CQ$1))","v":""},{"$f":"IF($A275=\"N/A\",Ref!$B$36,INDEX(Ranks!$1:$1048576,$A275,CR$1))","v":""},{"$f":"IF($A275=\"N/A\",Ref!$B$36,INDEX(Ranks!$1:$1048576,$A275,CS$1))","v":""},{"$f":"IF($A275=\"N/A\",Ref!$B$36,INDEX(Ranks!$1:$1048576,$A275,CT$1))","v":""},{"$f":"IF($A275=\"N/A\",Ref!$B$36,INDEX(Ranks!$1:$1048576,$A275,CU$1))","v":""},{"$f":"IF($A275=\"N/A\",Ref!$B$36,INDEX(Ranks!$1:$1048576,$A275,CV$1))","v":""},{"$f":"IF($A275=\"N/A\",Ref!$B$36,INDEX(Ranks!$1:$1048576,$A275,CW$1))","v":""},{"$f":"IF($A275=\"N/A\",Ref!$B$36,INDEX(Ranks!$1:$1048576,$A275,CX$1))","v":""},{"$f":"IF($A275=\"N/A\",Ref!$B$36,INDEX(Ranks!$1:$1048576,$A275,CY$1))","v":""},{"$f":"IF($A275=\"N/A\",Ref!$B$36,INDEX(Ranks!$1:$1048576,$A275,CZ$1))","v":""},{"$f":"IF($A275=\"N/A\",Ref!$B$36,INDEX(Ranks!$1:$1048576,$A275,DA$1))","v":""},{"$f":"IF($A275=\"N/A\",Ref!$B$36,INDEX(Ranks!$1:$1048576,$A275,DB$1))","v":""},{"$f":"IF($A275=\"N/A\",Ref!$B$36,INDEX(Ranks!$1:$1048576,$A275,DC$1))","v":""},{"$f":"IF($A275=\"N/A\",Ref!$B$36,INDEX(Ranks!$1:$1048576,$A275,DD$1))","v":""},{"$f":"IF($A275=\"N/A\",Ref!$B$36,INDEX(Ranks!$1:$1048576,$A275,DE$1))","v":""},{"$f":"IF($A275=\"N/A\",Ref!$B$36,INDEX(Ranks!$1:$1048576,$A275,DF$1))","v":""},{"$f":"IF($A275=\"N/A\",Ref!$B$36,INDEX(Ranks!$1:$1048576,$A275,DG$1))","v":""},{"$f":"IF($A275=\"N/A\",Ref!$B$36,INDEX(Ranks!$1:$1048576,$A275,DH$1))","v":""},{"$f":"IF($A275=\"N/A\",Ref!$B$36,INDEX(Ranks!$1:$1048576,$A275,DI$1))","v":""},{"$f":"IF($A275=\"N/A\",Ref!$B$36,INDEX(Ranks!$1:$1048576,$A275,DJ$1))","v":""},{"$f":"IF($A275=\"N/A\",Ref!$B$36,INDEX(Ranks!$1:$1048576,$A275,DK$1))","v":""},{"$f":"IF($A275=\"N/A\",Ref!$B$36,INDEX(Ranks!$1:$1048576,$A275,DL$1))","v":""},{"$f":"IF($A275=\"N/A\",Ref!$B$36,INDEX(Ranks!$1:$1048576,$A275,DM$1))","v":""},{"$f":"IF($A275=\"N/A\",Ref!$B$36,INDEX(Ranks!$1:$1048576,$A275,DN$1))","v":""},{"$f":"IF($A275=\"N/A\",Ref!$B$36,INDEX(Ranks!$1:$1048576,$A275,DO$1))","v":""},{"$f":"IF($A275=\"N/A\",Ref!$B$36,INDEX(Ranks!$1:$1048576,$A275,DP$1))","v":""},{"$f":"IF($A275=\"N/A\",Ref!$B$36,INDEX(Ranks!$1:$1048576,$A275,DQ$1))","v":""},{"$f":"IF($A275=\"N/A\",Ref!$B$36,INDEX(Ranks!$1:$1048576,$A275,DR$1))","v":""},{"$f":"IF($A275=\"N/A\",Ref!$B$36,INDEX(Ranks!$1:$1048576,$A275,DS$1))","v":""},{"$f":"IF($A275=\"N/A\",Ref!$B$36,INDEX(Ranks!$1:$1048576,$A275,DT$1))","v":""},{"$f":"IF($A275=\"N/A\",Ref!$B$36,INDEX(Ranks!$1:$1048576,$A275,DU$1))","v":""},{"$f":"IF($A275=\"N/A\",Ref!$B$36,INDEX(Ranks!$1:$1048576,$A275,DV$1))","v":""},{"$f":"IF($A275=\"N/A\",Ref!$B$36,INDEX(Ranks!$1:$1048576,$A275,DW$1))","v":""},{"$f":"IF($A275=\"N/A\",Ref!$B$36,INDEX(Ranks!$1:$1048576,$A275,DX$1))","v":""},{"$f":"IF($A275=\"N/A\",Ref!$B$36,INDEX(Ranks!$1:$1048576,$A275,DY$1))","v":""},{"$f":"IF($A275=\"N/A\",Ref!$B$36,INDEX(Ranks!$1:$1048576,$A275,DZ$1))","v":""},{"$f":"IF($A275=\"N/A\",Ref!$B$36,INDEX(Ranks!$1:$1048576,$A275,EA$1))","v":""},{"$f":"IF($A275=\"N/A\",Ref!$B$36,INDEX(Ranks!$1:$1048576,$A275,EB$1))","v":""}]
[{"$f":"IFERROR(MATCH('Portfolio Page'!L276,Ranks!L:L,0),\"N/A\")","v":"N/A"},null,{"$f":"IF($A276=\"N/A\",\"\",INDEX(Ranks!$1:$1048576,$A276,C$1))","v":""},{"$f":"IF($A276=\"N/A\",Ref!$B$36,INDEX(Ranks!$1:$1048576,$A276,D$1))","v":""},{"$f":"IF($A276=\"N/A\",Ref!$B$36,INDEX(Ranks!$1:$1048576,$A276,E$1))","v":""},{"$f":"IF($A276=\"N/A\",\"\",INDEX(Ranks!$1:$1048576,$A276,F$1))","v":""},{"$f":"IF($A276=\"N/A\",\"\",INDEX(Ranks!$1:$1048576,$A276,G$1))","v":""},{"$f":"IF($A276=\"N/A\",\"\",INDEX(Ranks!$1:$1048576,$A276,H$1))","v":""},{"$f":"IF($A276=\"N/A\",\"\",INDEX(Ranks!$1:$1048576,$A276,I$1))","v":""},{"$f":"IF($A276=\"N/A\",\"\",INDEX(Ranks!$1:$1048576,$A276,J$1))","v":""},{"$f":"IF($A276=\"N/A\",\"\",INDEX(Ranks!$1:$1048576,$A276,K$1))","v":""},null,{"$f":"IF($A276=\"N/A\",Ref!$B$36,INDEX(Ranks!$1:$1048576,$A276,M$1))","v":""},{"$f":"IF($A276=\"N/A\",Ref!$B$36,INDEX(Ranks!$1:$1048576,$A276,N$1))","v":""},{"$f":"IF($A276=\"N/A\",Ref!$B$36,INDEX(Ranks!$1:$1048576,$A276,O$1))","v":""},{"$f":"IF($A276=\"N/A\",Ref!$B$36,INDEX(Ranks!$1:$1048576,$A276,P$1))","v":""},{"$f":"IF($A276=\"N/A\",Ref!$B$36,INDEX(Ranks!$1:$1048576,$A276,Q$1))","v":""},{"$f":"IF($A276=\"N/A\",Ref!$B$36,INDEX(Ranks!$1:$1048576,$A276,R$1))","v":""},{"$f":"IF($A276=\"N/A\",Ref!$B$36,INDEX(Ranks!$1:$1048576,$A276,S$1))","v":""},{"$f":"IF($A276=\"N/A\",Ref!$B$36,INDEX(Ranks!$1:$1048576,$A276,T$1))","v":""},{"$f":"IF($A276=\"N/A\",Ref!$B$36,INDEX(Ranks!$1:$1048576,$A276,U$1))","v":""},{"$f":"IF($A276=\"N/A\",Ref!$B$36,INDEX(Ranks!$1:$1048576,$A276,V$1))","v":""},{"$f":"IF($A276=\"N/A\",Ref!$B$36,INDEX(Ranks!$1:$1048576,$A276,W$1))","v":""},{"$f":"IF($A276=\"N/A\",Ref!$B$36,INDEX(Ranks!$1:$1048576,$A276,X$1))","v":""},{"$f":"IF($A276=\"N/A\",Ref!$B$36,INDEX(Ranks!$1:$1048576,$A276,Y$1))","v":""},{"$f":"IF($A276=\"N/A\",Ref!$B$36,INDEX(Ranks!$1:$1048576,$A276,Z$1))","v":""},{"$f":"IF($A276=\"N/A\",Ref!$B$36,INDEX(Ranks!$1:$1048576,$A276,AA$1))","v":""},{"$f":"IF($A276=\"N/A\",Ref!$B$36,INDEX(Ranks!$1:$1048576,$A276,AB$1))","v":""},{"$f":"IF($A276=\"N/A\",Ref!$B$36,INDEX(Ranks!$1:$1048576,$A276,AC$1))","v":""},{"$f":"IF($A276=\"N/A\",Ref!$B$36,INDEX(Ranks!$1:$1048576,$A276,AD$1))","v":""},{"$f":"IF($A276=\"N/A\",Ref!$B$36,INDEX(Ranks!$1:$1048576,$A276,AE$1))","v":""},{"$f":"IF($A276=\"N/A\",Ref!$B$36,INDEX(Ranks!$1:$1048576,$A276,AF$1))","v":""},{"$f":"IF($A276=\"N/A\",Ref!$B$36,INDEX(Ranks!$1:$1048576,$A276,AG$1))","v":""},{"$f":"IF($A276=\"N/A\",Ref!$B$36,INDEX(Ranks!$1:$1048576,$A276,AH$1))","v":""},{"$f":"IF($A276=\"N/A\",Ref!$B$36,INDEX(Ranks!$1:$1048576,$A276,AI$1))","v":""},{"$f":"IF($A276=\"N/A\",Ref!$B$36,INDEX(Ranks!$1:$1048576,$A276,AJ$1))","v":""},{"$f":"IF($A276=\"N/A\",Ref!$B$36,INDEX(Ranks!$1:$1048576,$A276,AK$1))","v":""},{"$f":"IF($A276=\"N/A\",Ref!$B$36,INDEX(Ranks!$1:$1048576,$A276,AL$1))","v":""},{"$f":"IF($A276=\"N/A\",Ref!$B$36,INDEX(Ranks!$1:$1048576,$A276,AM$1))","v":""},{"$f":"IF($A276=\"N/A\",Ref!$B$36,INDEX(Ranks!$1:$1048576,$A276,AN$1))","v":""},{"$f":"IF($A276=\"N/A\",Ref!$B$36,INDEX(Ranks!$1:$1048576,$A276,AO$1))","v":""},{"$f":"IF($A276=\"N/A\",Ref!$B$36,INDEX(Ranks!$1:$1048576,$A276,AP$1))","v":""},{"$f":"IF($A276=\"N/A\",Ref!$B$36,INDEX(Ranks!$1:$1048576,$A276,AQ$1))","v":""},{"$f":"IF($A276=\"N/A\",Ref!$B$36,INDEX(Ranks!$1:$1048576,$A276,AR$1))","v":""},{"$f":"IF($A276=\"N/A\",Ref!$B$36,INDEX(Ranks!$1:$1048576,$A276,AS$1))","v":""},{"$f":"IF($A276=\"N/A\",Ref!$B$36,INDEX(Ranks!$1:$1048576,$A276,AT$1))","v":""},{"$f":"IF($A276=\"N/A\",Ref!$B$36,INDEX(Ranks!$1:$1048576,$A276,AU$1))","v":""},{"$f":"IF($A276=\"N/A\",Ref!$B$36,INDEX(Ranks!$1:$1048576,$A276,AV$1))","v":""},{"$f":"IF($A276=\"N/A\",Ref!$B$36,INDEX(Ranks!$1:$1048576,$A276,AW$1))","v":""},{"$f":"IF($A276=\"N/A\",Ref!$B$36,INDEX(Ranks!$1:$1048576,$A276,AX$1))","v":""},{"$f":"IF($A276=\"N/A\",Ref!$B$36,INDEX(Ranks!$1:$1048576,$A276,AY$1))","v":""},{"$f":"IF($A276=\"N/A\",Ref!$B$36,INDEX(Ranks!$1:$1048576,$A276,AZ$1))","v":""},{"$f":"IF($A276=\"N/A\",Ref!$B$36,INDEX(Ranks!$1:$1048576,$A276,BA$1))","v":""},{"$f":"IF($A276=\"N/A\",Ref!$B$36,INDEX(Ranks!$1:$1048576,$A276,BB$1))","v":""},{"$f":"IF($A276=\"N/A\",Ref!$B$36,INDEX(Ranks!$1:$1048576,$A276,BC$1))","v":""},{"$f":"IF($A276=\"N/A\",Ref!$B$36,INDEX(Ranks!$1:$1048576,$A276,BD$1))","v":""},{"$f":"IF($A276=\"N/A\",Ref!$B$36,INDEX(Ranks!$1:$1048576,$A276,BE$1))","v":""},{"$f":"IF($A276=\"N/A\",Ref!$B$36,INDEX(Ranks!$1:$1048576,$A276,BF$1))","v":""},{"$f":"IF($A276=\"N/A\",Ref!$B$36,INDEX(Ranks!$1:$1048576,$A276,BG$1))","v":""},{"$f":"IF($A276=\"N/A\",Ref!$B$36,INDEX(Ranks!$1:$1048576,$A276,BH$1))","v":""},{"$f":"IF($A276=\"N/A\",Ref!$B$36,INDEX(Ranks!$1:$1048576,$A276,BI$1))","v":""},{"$f":"IF($A276=\"N/A\",Ref!$B$36,INDEX(Ranks!$1:$1048576,$A276,BJ$1))","v":""},{"$f":"IF($A276=\"N/A\",Ref!$B$36,INDEX(Ranks!$1:$1048576,$A276,BK$1))","v":""},{"$f":"IF($A276=\"N/A\",Ref!$B$36,INDEX(Ranks!$1:$1048576,$A276,BL$1))","v":""},{"$f":"IF($A276=\"N/A\",Ref!$B$36,INDEX(Ranks!$1:$1048576,$A276,BM$1))","v":""},{"$f":"IF($A276=\"N/A\",Ref!$B$36,INDEX(Ranks!$1:$1048576,$A276,BN$1))","v":""},{"$f":"IF($A276=\"N/A\",Ref!$B$36,INDEX(Ranks!$1:$1048576,$A276,BO$1))","v":""},{"$f":"IF($A276=\"N/A\",Ref!$B$36,INDEX(Ranks!$1:$1048576,$A276,BP$1))","v":""},{"$f":"IF($A276=\"N/A\",Ref!$B$36,INDEX(Ranks!$1:$1048576,$A276,BQ$1))","v":""},{"$f":"IF($A276=\"N/A\",Ref!$B$36,INDEX(Ranks!$1:$1048576,$A276,BR$1))","v":""},{"$f":"IF($A276=\"N/A\",Ref!$B$36,INDEX(Ranks!$1:$1048576,$A276,BS$1))","v":""},{"$f":"IF($A276=\"N/A\",Ref!$B$36,INDEX(Ranks!$1:$1048576,$A276,BT$1))","v":""},{"$f":"IF($A276=\"N/A\",Ref!$B$36,INDEX(Ranks!$1:$1048576,$A276,BU$1))","v":""},{"$f":"IF($A276=\"N/A\",Ref!$B$36,INDEX(Ranks!$1:$1048576,$A276,BV$1))","v":""},{"$f":"IF($A276=\"N/A\",Ref!$B$36,INDEX(Ranks!$1:$1048576,$A276,BW$1))","v":""},{"$f":"IF($A276=\"N/A\",Ref!$B$36,INDEX(Ranks!$1:$1048576,$A276,BX$1))","v":""},{"$f":"IF($A276=\"N/A\",Ref!$B$36,INDEX(Ranks!$1:$1048576,$A276,BY$1))","v":""},{"$f":"IF($A276=\"N/A\",Ref!$B$36,INDEX(Ranks!$1:$1048576,$A276,BZ$1))","v":""},{"$f":"IF($A276=\"N/A\",Ref!$B$36,INDEX(Ranks!$1:$1048576,$A276,CA$1))","v":""},{"$f":"IF($A276=\"N/A\",Ref!$B$36,INDEX(Ranks!$1:$1048576,$A276,CB$1))","v":""},{"$f":"IF($A276=\"N/A\",Ref!$B$36,INDEX(Ranks!$1:$1048576,$A276,CC$1))","v":""},{"$f":"IF($A276=\"N/A\",Ref!$B$36,INDEX(Ranks!$1:$1048576,$A276,CD$1))","v":""},{"$f":"IF($A276=\"N/A\",Ref!$B$36,INDEX(Ranks!$1:$1048576,$A276,CE$1))","v":""},{"$f":"IF($A276=\"N/A\",Ref!$B$36,INDEX(Ranks!$1:$1048576,$A276,CF$1))","v":""},{"$f":"IF($A276=\"N/A\",Ref!$B$36,INDEX(Ranks!$1:$1048576,$A276,CG$1))","v":""},{"$f":"IF($A276=\"N/A\",Ref!$B$36,INDEX(Ranks!$1:$1048576,$A276,CH$1))","v":""},{"$f":"IF($A276=\"N/A\",Ref!$B$36,INDEX(Ranks!$1:$1048576,$A276,CI$1))","v":""},{"$f":"IF($A276=\"N/A\",Ref!$B$36,INDEX(Ranks!$1:$1048576,$A276,CJ$1))","v":""},{"$f":"IF($A276=\"N/A\",Ref!$B$36,INDEX(Ranks!$1:$1048576,$A276,CK$1))","v":""},{"$f":"IF($A276=\"N/A\",Ref!$B$36,INDEX(Ranks!$1:$1048576,$A276,CL$1))","v":""},{"$f":"IF($A276=\"N/A\",Ref!$B$36,INDEX(Ranks!$1:$1048576,$A276,CM$1))","v":""},{"$f":"IF($A276=\"N/A\",Ref!$B$36,INDEX(Ranks!$1:$1048576,$A276,CN$1))","v":""},{"$f":"IF($A276=\"N/A\",Ref!$B$36,INDEX(Ranks!$1:$1048576,$A276,CO$1))","v":""},{"$f":"IF($A276=\"N/A\",Ref!$B$36,INDEX(Ranks!$1:$1048576,$A276,CP$1))","v":""},{"$f":"IF($A276=\"N/A\",Ref!$B$36,INDEX(Ranks!$1:$1048576,$A276,CQ$1))","v":""},{"$f":"IF($A276=\"N/A\",Ref!$B$36,INDEX(Ranks!$1:$1048576,$A276,CR$1))","v":""},{"$f":"IF($A276=\"N/A\",Ref!$B$36,INDEX(Ranks!$1:$1048576,$A276,CS$1))","v":""},{"$f":"IF($A276=\"N/A\",Ref!$B$36,INDEX(Ranks!$1:$1048576,$A276,CT$1))","v":""},{"$f":"IF($A276=\"N/A\",Ref!$B$36,INDEX(Ranks!$1:$1048576,$A276,CU$1))","v":""},{"$f":"IF($A276=\"N/A\",Ref!$B$36,INDEX(Ranks!$1:$1048576,$A276,CV$1))","v":""},{"$f":"IF($A276=\"N/A\",Ref!$B$36,INDEX(Ranks!$1:$1048576,$A276,CW$1))","v":""},{"$f":"IF($A276=\"N/A\",Ref!$B$36,INDEX(Ranks!$1:$1048576,$A276,CX$1))","v":""},{"$f":"IF($A276=\"N/A\",Ref!$B$36,INDEX(Ranks!$1:$1048576,$A276,CY$1))","v":""},{"$f":"IF($A276=\"N/A\",Ref!$B$36,INDEX(Ranks!$1:$1048576,$A276,CZ$1))","v":""},{"$f":"IF($A276=\"N/A\",Ref!$B$36,INDEX(Ranks!$1:$1048576,$A276,DA$1))","v":""},{"$f":"IF($A276=\"N/A\",Ref!$B$36,INDEX(Ranks!$1:$1048576,$A276,DB$1))","v":""},{"$f":"IF($A276=\"N/A\",Ref!$B$36,INDEX(Ranks!$1:$1048576,$A276,DC$1))","v":""},{"$f":"IF($A276=\"N/A\",Ref!$B$36,INDEX(Ranks!$1:$1048576,$A276,DD$1))","v":""},{"$f":"IF($A276=\"N/A\",Ref!$B$36,INDEX(Ranks!$1:$1048576,$A276,DE$1))","v":""},{"$f":"IF($A276=\"N/A\",Ref!$B$36,INDEX(Ranks!$1:$1048576,$A276,DF$1))","v":""},{"$f":"IF($A276=\"N/A\",Ref!$B$36,INDEX(Ranks!$1:$1048576,$A276,DG$1))","v":""},{"$f":"IF($A276=\"N/A\",Ref!$B$36,INDEX(Ranks!$1:$1048576,$A276,DH$1))","v":""},{"$f":"IF($A276=\"N/A\",Ref!$B$36,INDEX(Ranks!$1:$1048576,$A276,DI$1))","v":""},{"$f":"IF($A276=\"N/A\",Ref!$B$36,INDEX(Ranks!$1:$1048576,$A276,DJ$1))","v":""},{"$f":"IF($A276=\"N/A\",Ref!$B$36,INDEX(Ranks!$1:$1048576,$A276,DK$1))","v":""},{"$f":"IF($A276=\"N/A\",Ref!$B$36,INDEX(Ranks!$1:$1048576,$A276,DL$1))","v":""},{"$f":"IF($A276=\"N/A\",Ref!$B$36,INDEX(Ranks!$1:$1048576,$A276,DM$1))","v":""},{"$f":"IF($A276=\"N/A\",Ref!$B$36,INDEX(Ranks!$1:$1048576,$A276,DN$1))","v":""},{"$f":"IF($A276=\"N/A\",Ref!$B$36,INDEX(Ranks!$1:$1048576,$A276,DO$1))","v":""},{"$f":"IF($A276=\"N/A\",Ref!$B$36,INDEX(Ranks!$1:$1048576,$A276,DP$1))","v":""},{"$f":"IF($A276=\"N/A\",Ref!$B$36,INDEX(Ranks!$1:$1048576,$A276,DQ$1))","v":""},{"$f":"IF($A276=\"N/A\",Ref!$B$36,INDEX(Ranks!$1:$1048576,$A276,DR$1))","v":""},{"$f":"IF($A276=\"N/A\",Ref!$B$36,INDEX(Ranks!$1:$1048576,$A276,DS$1))","v":""},{"$f":"IF($A276=\"N/A\",Ref!$B$36,INDEX(Ranks!$1:$1048576,$A276,DT$1))","v":""},{"$f":"IF($A276=\"N/A\",Ref!$B$36,INDEX(Ranks!$1:$1048576,$A276,DU$1))","v":""},{"$f":"IF($A276=\"N/A\",Ref!$B$36,INDEX(Ranks!$1:$1048576,$A276,DV$1))","v":""},{"$f":"IF($A276=\"N/A\",Ref!$B$36,INDEX(Ranks!$1:$1048576,$A276,DW$1))","v":""},{"$f":"IF($A276=\"N/A\",Ref!$B$36,INDEX(Ranks!$1:$1048576,$A276,DX$1))","v":""},{"$f":"IF($A276=\"N/A\",Ref!$B$36,INDEX(Ranks!$1:$1048576,$A276,DY$1))","v":""},{"$f":"IF($A276=\"N/A\",Ref!$B$36,INDEX(Ranks!$1:$1048576,$A276,DZ$1))","v":""},{"$f":"IF($A276=\"N/A\",Ref!$B$36,INDEX(Ranks!$1:$1048576,$A276,EA$1))","v":""},{"$f":"IF($A276=\"N/A\",Ref!$B$36,INDEX(Ranks!$1:$1048576,$A276,EB$1))","v":""}]
[{"$f":"IFERROR(MATCH('Portfolio Page'!L277,Ranks!L:L,0),\"N/A\")","v":"N/A"},null,{"$f":"IF($A277=\"N/A\",\"\",INDEX(Ranks!$1:$1048576,$A277,C$1))","v":""},{"$f":"IF($A277=\"N/A\",Ref!$B$36,INDEX(Ranks!$1:$1048576,$A277,D$1))","v":""},{"$f":"IF($A277=\"N/A\",Ref!$B$36,INDEX(Ranks!$1:$1048576,$A277,E$1))","v":""},{"$f":"IF($A277=\"N/A\",\"\",INDEX(Ranks!$1:$1048576,$A277,F$1))","v":""},{"$f":"IF($A277=\"N/A\",\"\",INDEX(Ranks!$1:$1048576,$A277,G$1))","v":""},{"$f":"IF($A277=\"N/A\",\"\",INDEX(Ranks!$1:$1048576,$A277,H$1))","v":""},{"$f":"IF($A277=\"N/A\",\"\",INDEX(Ranks!$1:$1048576,$A277,I$1))","v":""},{"$f":"IF($A277=\"N/A\",\"\",INDEX(Ranks!$1:$1048576,$A277,J$1))","v":""},{"$f":"IF($A277=\"N/A\",\"\",INDEX(Ranks!$1:$1048576,$A277,K$1))","v":""},null,{"$f":"IF($A277=\"N/A\",Ref!$B$36,INDEX(Ranks!$1:$1048576,$A277,M$1))","v":""},{"$f":"IF($A277=\"N/A\",Ref!$B$36,INDEX(Ranks!$1:$1048576,$A277,N$1))","v":""},{"$f":"IF($A277=\"N/A\",Ref!$B$36,INDEX(Ranks!$1:$1048576,$A277,O$1))","v":""},{"$f":"IF($A277=\"N/A\",Ref!$B$36,INDEX(Ranks!$1:$1048576,$A277,P$1))","v":""},{"$f":"IF($A277=\"N/A\",Ref!$B$36,INDEX(Ranks!$1:$1048576,$A277,Q$1))","v":""},{"$f":"IF($A277=\"N/A\",Ref!$B$36,INDEX(Ranks!$1:$1048576,$A277,R$1))","v":""},{"$f":"IF($A277=\"N/A\",Ref!$B$36,INDEX(Ranks!$1:$1048576,$A277,S$1))","v":""},{"$f":"IF($A277=\"N/A\",Ref!$B$36,INDEX(Ranks!$1:$1048576,$A277,T$1))","v":""},{"$f":"IF($A277=\"N/A\",Ref!$B$36,INDEX(Ranks!$1:$1048576,$A277,U$1))","v":""},{"$f":"IF($A277=\"N/A\",Ref!$B$36,INDEX(Ranks!$1:$1048576,$A277,V$1))","v":""},{"$f":"IF($A277=\"N/A\",Ref!$B$36,INDEX(Ranks!$1:$1048576,$A277,W$1))","v":""},{"$f":"IF($A277=\"N/A\",Ref!$B$36,INDEX(Ranks!$1:$1048576,$A277,X$1))","v":""},{"$f":"IF($A277=\"N/A\",Ref!$B$36,INDEX(Ranks!$1:$1048576,$A277,Y$1))","v":""},{"$f":"IF($A277=\"N/A\",Ref!$B$36,INDEX(Ranks!$1:$1048576,$A277,Z$1))","v":""},{"$f":"IF($A277=\"N/A\",Ref!$B$36,INDEX(Ranks!$1:$1048576,$A277,AA$1))","v":""},{"$f":"IF($A277=\"N/A\",Ref!$B$36,INDEX(Ranks!$1:$1048576,$A277,AB$1))","v":""},{"$f":"IF($A277=\"N/A\",Ref!$B$36,INDEX(Ranks!$1:$1048576,$A277,AC$1))","v":""},{"$f":"IF($A277=\"N/A\",Ref!$B$36,INDEX(Ranks!$1:$1048576,$A277,AD$1))","v":""},{"$f":"IF($A277=\"N/A\",Ref!$B$36,INDEX(Ranks!$1:$1048576,$A277,AE$1))","v":""},{"$f":"IF($A277=\"N/A\",Ref!$B$36,INDEX(Ranks!$1:$1048576,$A277,AF$1))","v":""},{"$f":"IF($A277=\"N/A\",Ref!$B$36,INDEX(Ranks!$1:$1048576,$A277,AG$1))","v":""},{"$f":"IF($A277=\"N/A\",Ref!$B$36,INDEX(Ranks!$1:$1048576,$A277,AH$1))","v":""},{"$f":"IF($A277=\"N/A\",Ref!$B$36,INDEX(Ranks!$1:$1048576,$A277,AI$1))","v":""},{"$f":"IF($A277=\"N/A\",Ref!$B$36,INDEX(Ranks!$1:$1048576,$A277,AJ$1))","v":""},{"$f":"IF($A277=\"N/A\",Ref!$B$36,INDEX(Ranks!$1:$1048576,$A277,AK$1))","v":""},{"$f":"IF($A277=\"N/A\",Ref!$B$36,INDEX(Ranks!$1:$1048576,$A277,AL$1))","v":""},{"$f":"IF($A277=\"N/A\",Ref!$B$36,INDEX(Ranks!$1:$1048576,$A277,AM$1))","v":""},{"$f":"IF($A277=\"N/A\",Ref!$B$36,INDEX(Ranks!$1:$1048576,$A277,AN$1))","v":""},{"$f":"IF($A277=\"N/A\",Ref!$B$36,INDEX(Ranks!$1:$1048576,$A277,AO$1))","v":""},{"$f":"IF($A277=\"N/A\",Ref!$B$36,INDEX(Ranks!$1:$1048576,$A277,AP$1))","v":""},{"$f":"IF($A277=\"N/A\",Ref!$B$36,INDEX(Ranks!$1:$1048576,$A277,AQ$1))","v":""},{"$f":"IF($A277=\"N/A\",Ref!$B$36,INDEX(Ranks!$1:$1048576,$A277,AR$1))","v":""},{"$f":"IF($A277=\"N/A\",Ref!$B$36,INDEX(Ranks!$1:$1048576,$A277,AS$1))","v":""},{"$f":"IF($A277=\"N/A\",Ref!$B$36,INDEX(Ranks!$1:$1048576,$A277,AT$1))","v":""},{"$f":"IF($A277=\"N/A\",Ref!$B$36,INDEX(Ranks!$1:$1048576,$A277,AU$1))","v":""},{"$f":"IF($A277=\"N/A\",Ref!$B$36,INDEX(Ranks!$1:$1048576,$A277,AV$1))","v":""},{"$f":"IF($A277=\"N/A\",Ref!$B$36,INDEX(Ranks!$1:$1048576,$A277,AW$1))","v":""},{"$f":"IF($A277=\"N/A\",Ref!$B$36,INDEX(Ranks!$1:$1048576,$A277,AX$1))","v":""},{"$f":"IF($A277=\"N/A\",Ref!$B$36,INDEX(Ranks!$1:$1048576,$A277,AY$1))","v":""},{"$f":"IF($A277=\"N/A\",Ref!$B$36,INDEX(Ranks!$1:$1048576,$A277,AZ$1))","v":""},{"$f":"IF($A277=\"N/A\",Ref!$B$36,INDEX(Ranks!$1:$1048576,$A277,BA$1))","v":""},{"$f":"IF($A277=\"N/A\",Ref!$B$36,INDEX(Ranks!$1:$1048576,$A277,BB$1))","v":""},{"$f":"IF($A277=\"N/A\",Ref!$B$36,INDEX(Ranks!$1:$1048576,$A277,BC$1))","v":""},{"$f":"IF($A277=\"N/A\",Ref!$B$36,INDEX(Ranks!$1:$1048576,$A277,BD$1))","v":""},{"$f":"IF($A277=\"N/A\",Ref!$B$36,INDEX(Ranks!$1:$1048576,$A277,BE$1))","v":""},{"$f":"IF($A277=\"N/A\",Ref!$B$36,INDEX(Ranks!$1:$1048576,$A277,BF$1))","v":""},{"$f":"IF($A277=\"N/A\",Ref!$B$36,INDEX(Ranks!$1:$1048576,$A277,BG$1))","v":""},{"$f":"IF($A277=\"N/A\",Ref!$B$36,INDEX(Ranks!$1:$1048576,$A277,BH$1))","v":""},{"$f":"IF($A277=\"N/A\",Ref!$B$36,INDEX(Ranks!$1:$1048576,$A277,BI$1))","v":""},{"$f":"IF($A277=\"N/A\",Ref!$B$36,INDEX(Ranks!$1:$1048576,$A277,BJ$1))","v":""},{"$f":"IF($A277=\"N/A\",Ref!$B$36,INDEX(Ranks!$1:$1048576,$A277,BK$1))","v":""},{"$f":"IF($A277=\"N/A\",Ref!$B$36,INDEX(Ranks!$1:$1048576,$A277,BL$1))","v":""},{"$f":"IF($A277=\"N/A\",Ref!$B$36,INDEX(Ranks!$1:$1048576,$A277,BM$1))","v":""},{"$f":"IF($A277=\"N/A\",Ref!$B$36,INDEX(Ranks!$1:$1048576,$A277,BN$1))","v":""},{"$f":"IF($A277=\"N/A\",Ref!$B$36,INDEX(Ranks!$1:$1048576,$A277,BO$1))","v":""},{"$f":"IF($A277=\"N/A\",Ref!$B$36,INDEX(Ranks!$1:$1048576,$A277,BP$1))","v":""},{"$f":"IF($A277=\"N/A\",Ref!$B$36,INDEX(Ranks!$1:$1048576,$A277,BQ$1))","v":""},{"$f":"IF($A277=\"N/A\",Ref!$B$36,INDEX(Ranks!$1:$1048576,$A277,BR$1))","v":""},{"$f":"IF($A277=\"N/A\",Ref!$B$36,INDEX(Ranks!$1:$1048576,$A277,BS$1))","v":""},{"$f":"IF($A277=\"N/A\",Ref!$B$36,INDEX(Ranks!$1:$1048576,$A277,BT$1))","v":""},{"$f":"IF($A277=\"N/A\",Ref!$B$36,INDEX(Ranks!$1:$1048576,$A277,BU$1))","v":""},{"$f":"IF($A277=\"N/A\",Ref!$B$36,INDEX(Ranks!$1:$1048576,$A277,BV$1))","v":""},{"$f":"IF($A277=\"N/A\",Ref!$B$36,INDEX(Ranks!$1:$1048576,$A277,BW$1))","v":""},{"$f":"IF($A277=\"N/A\",Ref!$B$36,INDEX(Ranks!$1:$1048576,$A277,BX$1))","v":""},{"$f":"IF($A277=\"N/A\",Ref!$B$36,INDEX(Ranks!$1:$1048576,$A277,BY$1))","v":""},{"$f":"IF($A277=\"N/A\",Ref!$B$36,INDEX(Ranks!$1:$1048576,$A277,BZ$1))","v":""},{"$f":"IF($A277=\"N/A\",Ref!$B$36,INDEX(Ranks!$1:$1048576,$A277,CA$1))","v":""},{"$f":"IF($A277=\"N/A\",Ref!$B$36,INDEX(Ranks!$1:$1048576,$A277,CB$1))","v":""},{"$f":"IF($A277=\"N/A\",Ref!$B$36,INDEX(Ranks!$1:$1048576,$A277,CC$1))","v":""},{"$f":"IF($A277=\"N/A\",Ref!$B$36,INDEX(Ranks!$1:$1048576,$A277,CD$1))","v":""},{"$f":"IF($A277=\"N/A\",Ref!$B$36,INDEX(Ranks!$1:$1048576,$A277,CE$1))","v":""},{"$f":"IF($A277=\"N/A\",Ref!$B$36,INDEX(Ranks!$1:$1048576,$A277,CF$1))","v":""},{"$f":"IF($A277=\"N/A\",Ref!$B$36,INDEX(Ranks!$1:$1048576,$A277,CG$1))","v":""},{"$f":"IF($A277=\"N/A\",Ref!$B$36,INDEX(Ranks!$1:$1048576,$A277,CH$1))","v":""},{"$f":"IF($A277=\"N/A\",Ref!$B$36,INDEX(Ranks!$1:$1048576,$A277,CI$1))","v":""},{"$f":"IF($A277=\"N/A\",Ref!$B$36,INDEX(Ranks!$1:$1048576,$A277,CJ$1))","v":""},{"$f":"IF($A277=\"N/A\",Ref!$B$36,INDEX(Ranks!$1:$1048576,$A277,CK$1))","v":""},{"$f":"IF($A277=\"N/A\",Ref!$B$36,INDEX(Ranks!$1:$1048576,$A277,CL$1))","v":""},{"$f":"IF($A277=\"N/A\",Ref!$B$36,INDEX(Ranks!$1:$1048576,$A277,CM$1))","v":""},{"$f":"IF($A277=\"N/A\",Ref!$B$36,INDEX(Ranks!$1:$1048576,$A277,CN$1))","v":""},{"$f":"IF($A277=\"N/A\",Ref!$B$36,INDEX(Ranks!$1:$1048576,$A277,CO$1))","v":""},{"$f":"IF($A277=\"N/A\",Ref!$B$36,INDEX(Ranks!$1:$1048576,$A277,CP$1))","v":""},{"$f":"IF($A277=\"N/A\",Ref!$B$36,INDEX(Ranks!$1:$1048576,$A277,CQ$1))","v":""},{"$f":"IF($A277=\"N/A\",Ref!$B$36,INDEX(Ranks!$1:$1048576,$A277,CR$1))","v":""},{"$f":"IF($A277=\"N/A\",Ref!$B$36,INDEX(Ranks!$1:$1048576,$A277,CS$1))","v":""},{"$f":"IF($A277=\"N/A\",Ref!$B$36,INDEX(Ranks!$1:$1048576,$A277,CT$1))","v":""},{"$f":"IF($A277=\"N/A\",Ref!$B$36,INDEX(Ranks!$1:$1048576,$A277,CU$1))","v":""},{"$f":"IF($A277=\"N/A\",Ref!$B$36,INDEX(Ranks!$1:$1048576,$A277,CV$1))","v":""},{"$f":"IF($A277=\"N/A\",Ref!$B$36,INDEX(Ranks!$1:$1048576,$A277,CW$1))","v":""},{"$f":"IF($A277=\"N/A\",Ref!$B$36,INDEX(Ranks!$1:$1048576,$A277,CX$1))","v":""},{"$f":"IF($A277=\"N/A\",Ref!$B$36,INDEX(Ranks!$1:$1048576,$A277,CY$1))","v":""},{"$f":"IF($A277=\"N/A\",Ref!$B$36,INDEX(Ranks!$1:$1048576,$A277,CZ$1))","v":""},{"$f":"IF($A277=\"N/A\",Ref!$B$36,INDEX(Ranks!$1:$1048576,$A277,DA$1))","v":""},{"$f":"IF($A277=\"N/A\",Ref!$B$36,INDEX(Ranks!$1:$1048576,$A277,DB$1))","v":""},{"$f":"IF($A277=\"N/A\",Ref!$B$36,INDEX(Ranks!$1:$1048576,$A277,DC$1))","v":""},{"$f":"IF($A277=\"N/A\",Ref!$B$36,INDEX(Ranks!$1:$1048576,$A277,DD$1))","v":""},{"$f":"IF($A277=\"N/A\",Ref!$B$36,INDEX(Ranks!$1:$1048576,$A277,DE$1))","v":""},{"$f":"IF($A277=\"N/A\",Ref!$B$36,INDEX(Ranks!$1:$1048576,$A277,DF$1))","v":""},{"$f":"IF($A277=\"N/A\",Ref!$B$36,INDEX(Ranks!$1:$1048576,$A277,DG$1))","v":""},{"$f":"IF($A277=\"N/A\",Ref!$B$36,INDEX(Ranks!$1:$1048576,$A277,DH$1))","v":""},{"$f":"IF($A277=\"N/A\",Ref!$B$36,INDEX(Ranks!$1:$1048576,$A277,DI$1))","v":""},{"$f":"IF($A277=\"N/A\",Ref!$B$36,INDEX(Ranks!$1:$1048576,$A277,DJ$1))","v":""},{"$f":"IF($A277=\"N/A\",Ref!$B$36,INDEX(Ranks!$1:$1048576,$A277,DK$1))","v":""},{"$f":"IF($A277=\"N/A\",Ref!$B$36,INDEX(Ranks!$1:$1048576,$A277,DL$1))","v":""},{"$f":"IF($A277=\"N/A\",Ref!$B$36,INDEX(Ranks!$1:$1048576,$A277,DM$1))","v":""},{"$f":"IF($A277=\"N/A\",Ref!$B$36,INDEX(Ranks!$1:$1048576,$A277,DN$1))","v":""},{"$f":"IF($A277=\"N/A\",Ref!$B$36,INDEX(Ranks!$1:$1048576,$A277,DO$1))","v":""},{"$f":"IF($A277=\"N/A\",Ref!$B$36,INDEX(Ranks!$1:$1048576,$A277,DP$1))","v":""},{"$f":"IF($A277=\"N/A\",Ref!$B$36,INDEX(Ranks!$1:$1048576,$A277,DQ$1))","v":""},{"$f":"IF($A277=\"N/A\",Ref!$B$36,INDEX(Ranks!$1:$1048576,$A277,DR$1))","v":""},{"$f":"IF($A277=\"N/A\",Ref!$B$36,INDEX(Ranks!$1:$1048576,$A277,DS$1))","v":""},{"$f":"IF($A277=\"N/A\",Ref!$B$36,INDEX(Ranks!$1:$1048576,$A277,DT$1))","v":""},{"$f":"IF($A277=\"N/A\",Ref!$B$36,INDEX(Ranks!$1:$1048576,$A277,DU$1))","v":""},{"$f":"IF($A277=\"N/A\",Ref!$B$36,INDEX(Ranks!$1:$1048576,$A277,DV$1))","v":""},{"$f":"IF($A277=\"N/A\",Ref!$B$36,INDEX(Ranks!$1:$1048576,$A277,DW$1))","v":""},{"$f":"IF($A277=\"N/A\",Ref!$B$36,INDEX(Ranks!$1:$1048576,$A277,DX$1))","v":""},{"$f":"IF($A277=\"N/A\",Ref!$B$36,INDEX(Ranks!$1:$1048576,$A277,DY$1))","v":""},{"$f":"IF($A277=\"N/A\",Ref!$B$36,INDEX(Ranks!$1:$1048576,$A277,DZ$1))","v":""},{"$f":"IF($A277=\"N/A\",Ref!$B$36,INDEX(Ranks!$1:$1048576,$A277,EA$1))","v":""},{"$f":"IF($A277=\"N/A\",Ref!$B$36,INDEX(Ranks!$1:$1048576,$A277,EB$1))","v":""}]
[{"$f":"IFERROR(MATCH('Portfolio Page'!L278,Ranks!L:L,0),\"N/A\")","v":"N/A"},null,{"$f":"IF($A278=\"N/A\",\"\",INDEX(Ranks!$1:$1048576,$A278,C$1))","v":""},{"$f":"IF($A278=\"N/A\",Ref!$B$36,INDEX(Ranks!$1:$1048576,$A278,D$1))","v":""},{"$f":"IF($A278=\"N/A\",Ref!$B$36,INDEX(Ranks!$1:$1048576,$A278,E$1))","v":""},{"$f":"IF($A278=\"N/A\",\"\",INDEX(Ranks!$1:$1048576,$A278,F$1))","v":""},{"$f":"IF($A278=\"N/A\",\"\",INDEX(Ranks!$1:$1048576,$A278,G$1))","v":""},{"$f":"IF($A278=\"N/A\",\"\",INDEX(Ranks!$1:$1048576,$A278,H$1))","v":""},{"$f":"IF($A278=\"N/A\",\"\",INDEX(Ranks!$1:$1048576,$A278,I$1))","v":""},{"$f":"IF($A278=\"N/A\",\"\",INDEX(Ranks!$1:$1048576,$A278,J$1))","v":""},{"$f":"IF($A278=\"N/A\",\"\",INDEX(Ranks!$1:$1048576,$A278,K$1))","v":""},null,{"$f":"IF($A278=\"N/A\",Ref!$B$36,INDEX(Ranks!$1:$1048576,$A278,M$1))","v":""},{"$f":"IF($A278=\"N/A\",Ref!$B$36,INDEX(Ranks!$1:$1048576,$A278,N$1))","v":""},{"$f":"IF($A278=\"N/A\",Ref!$B$36,INDEX(Ranks!$1:$1048576,$A278,O$1))","v":""},{"$f":"IF($A278=\"N/A\",Ref!$B$36,INDEX(Ranks!$1:$1048576,$A278,P$1))","v":""},{"$f":"IF($A278=\"N/A\",Ref!$B$36,INDEX(Ranks!$1:$1048576,$A278,Q$1))","v":""},{"$f":"IF($A278=\"N/A\",Ref!$B$36,INDEX(Ranks!$1:$1048576,$A278,R$1))","v":""},{"$f":"IF($A278=\"N/A\",Ref!$B$36,INDEX(Ranks!$1:$1048576,$A278,S$1))","v":""},{"$f":"IF($A278=\"N/A\",Ref!$B$36,INDEX(Ranks!$1:$1048576,$A278,T$1))","v":""},{"$f":"IF($A278=\"N/A\",Ref!$B$36,INDEX(Ranks!$1:$1048576,$A278,U$1))","v":""},{"$f":"IF($A278=\"N/A\",Ref!$B$36,INDEX(Ranks!$1:$1048576,$A278,V$1))","v":""},{"$f":"IF($A278=\"N/A\",Ref!$B$36,INDEX(Ranks!$1:$1048576,$A278,W$1))","v":""},{"$f":"IF($A278=\"N/A\",Ref!$B$36,INDEX(Ranks!$1:$1048576,$A278,X$1))","v":""},{"$f":"IF($A278=\"N/A\",Ref!$B$36,INDEX(Ranks!$1:$1048576,$A278,Y$1))","v":""},{"$f":"IF($A278=\"N/A\",Ref!$B$36,INDEX(Ranks!$1:$1048576,$A278,Z$1))","v":""},{"$f":"IF($A278=\"N/A\",Ref!$B$36,INDEX(Ranks!$1:$1048576,$A278,AA$1))","v":""},{"$f":"IF($A278=\"N/A\",Ref!$B$36,INDEX(Ranks!$1:$1048576,$A278,AB$1))","v":""},{"$f":"IF($A278=\"N/A\",Ref!$B$36,INDEX(Ranks!$1:$1048576,$A278,AC$1))","v":""},{"$f":"IF($A278=\"N/A\",Ref!$B$36,INDEX(Ranks!$1:$1048576,$A278,AD$1))","v":""},{"$f":"IF($A278=\"N/A\",Ref!$B$36,INDEX(Ranks!$1:$1048576,$A278,AE$1))","v":""},{"$f":"IF($A278=\"N/A\",Ref!$B$36,INDEX(Ranks!$1:$1048576,$A278,AF$1))","v":""},{"$f":"IF($A278=\"N/A\",Ref!$B$36,INDEX(Ranks!$1:$1048576,$A278,AG$1))","v":""},{"$f":"IF($A278=\"N/A\",Ref!$B$36,INDEX(Ranks!$1:$1048576,$A278,AH$1))","v":""},{"$f":"IF($A278=\"N/A\",Ref!$B$36,INDEX(Ranks!$1:$1048576,$A278,AI$1))","v":""},{"$f":"IF($A278=\"N/A\",Ref!$B$36,INDEX(Ranks!$1:$1048576,$A278,AJ$1))","v":""},{"$f":"IF($A278=\"N/A\",Ref!$B$36,INDEX(Ranks!$1:$1048576,$A278,AK$1))","v":""},{"$f":"IF($A278=\"N/A\",Ref!$B$36,INDEX(Ranks!$1:$1048576,$A278,AL$1))","v":""},{"$f":"IF($A278=\"N/A\",Ref!$B$36,INDEX(Ranks!$1:$1048576,$A278,AM$1))","v":""},{"$f":"IF($A278=\"N/A\",Ref!$B$36,INDEX(Ranks!$1:$1048576,$A278,AN$1))","v":""},{"$f":"IF($A278=\"N/A\",Ref!$B$36,INDEX(Ranks!$1:$1048576,$A278,AO$1))","v":""},{"$f":"IF($A278=\"N/A\",Ref!$B$36,INDEX(Ranks!$1:$1048576,$A278,AP$1))","v":""},{"$f":"IF($A278=\"N/A\",Ref!$B$36,INDEX(Ranks!$1:$1048576,$A278,AQ$1))","v":""},{"$f":"IF($A278=\"N/A\",Ref!$B$36,INDEX(Ranks!$1:$1048576,$A278,AR$1))","v":""},{"$f":"IF($A278=\"N/A\",Ref!$B$36,INDEX(Ranks!$1:$1048576,$A278,AS$1))","v":""},{"$f":"IF($A278=\"N/A\",Ref!$B$36,INDEX(Ranks!$1:$1048576,$A278,AT$1))","v":""},{"$f":"IF($A278=\"N/A\",Ref!$B$36,INDEX(Ranks!$1:$1048576,$A278,AU$1))","v":""},{"$f":"IF($A278=\"N/A\",Ref!$B$36,INDEX(Ranks!$1:$1048576,$A278,AV$1))","v":""},{"$f":"IF($A278=\"N/A\",Ref!$B$36,INDEX(Ranks!$1:$1048576,$A278,AW$1))","v":""},{"$f":"IF($A278=\"N/A\",Ref!$B$36,INDEX(Ranks!$1:$1048576,$A278,AX$1))","v":""},{"$f":"IF($A278=\"N/A\",Ref!$B$36,INDEX(Ranks!$1:$1048576,$A278,AY$1))","v":""},{"$f":"IF($A278=\"N/A\",Ref!$B$36,INDEX(Ranks!$1:$1048576,$A278,AZ$1))","v":""},{"$f":"IF($A278=\"N/A\",Ref!$B$36,INDEX(Ranks!$1:$1048576,$A278,BA$1))","v":""},{"$f":"IF($A278=\"N/A\",Ref!$B$36,INDEX(Ranks!$1:$1048576,$A278,BB$1))","v":""},{"$f":"IF($A278=\"N/A\",Ref!$B$36,INDEX(Ranks!$1:$1048576,$A278,BC$1))","v":""},{"$f":"IF($A278=\"N/A\",Ref!$B$36,INDEX(Ranks!$1:$1048576,$A278,BD$1))","v":""},{"$f":"IF($A278=\"N/A\",Ref!$B$36,INDEX(Ranks!$1:$1048576,$A278,BE$1))","v":""},{"$f":"IF($A278=\"N/A\",Ref!$B$36,INDEX(Ranks!$1:$1048576,$A278,BF$1))","v":""},{"$f":"IF($A278=\"N/A\",Ref!$B$36,INDEX(Ranks!$1:$1048576,$A278,BG$1))","v":""},{"$f":"IF($A278=\"N/A\",Ref!$B$36,INDEX(Ranks!$1:$1048576,$A278,BH$1))","v":""},{"$f":"IF($A278=\"N/A\",Ref!$B$36,INDEX(Ranks!$1:$1048576,$A278,BI$1))","v":""},{"$f":"IF($A278=\"N/A\",Ref!$B$36,INDEX(Ranks!$1:$1048576,$A278,BJ$1))","v":""},{"$f":"IF($A278=\"N/A\",Ref!$B$36,INDEX(Ranks!$1:$1048576,$A278,BK$1))","v":""},{"$f":"IF($A278=\"N/A\",Ref!$B$36,INDEX(Ranks!$1:$1048576,$A278,BL$1))","v":""},{"$f":"IF($A278=\"N/A\",Ref!$B$36,INDEX(Ranks!$1:$1048576,$A278,BM$1))","v":""},{"$f":"IF($A278=\"N/A\",Ref!$B$36,INDEX(Ranks!$1:$1048576,$A278,BN$1))","v":""},{"$f":"IF($A278=\"N/A\",Ref!$B$36,INDEX(Ranks!$1:$1048576,$A278,BO$1))","v":""},{"$f":"IF($A278=\"N/A\",Ref!$B$36,INDEX(Ranks!$1:$1048576,$A278,BP$1))","v":""},{"$f":"IF($A278=\"N/A\",Ref!$B$36,INDEX(Ranks!$1:$1048576,$A278,BQ$1))","v":""},{"$f":"IF($A278=\"N/A\",Ref!$B$36,INDEX(Ranks!$1:$1048576,$A278,BR$1))","v":""},{"$f":"IF($A278=\"N/A\",Ref!$B$36,INDEX(Ranks!$1:$1048576,$A278,BS$1))","v":""},{"$f":"IF($A278=\"N/A\",Ref!$B$36,INDEX(Ranks!$1:$1048576,$A278,BT$1))","v":""},{"$f":"IF($A278=\"N/A\",Ref!$B$36,INDEX(Ranks!$1:$1048576,$A278,BU$1))","v":""},{"$f":"IF($A278=\"N/A\",Ref!$B$36,INDEX(Ranks!$1:$1048576,$A278,BV$1))","v":""},{"$f":"IF($A278=\"N/A\",Ref!$B$36,INDEX(Ranks!$1:$1048576,$A278,BW$1))","v":""},{"$f":"IF($A278=\"N/A\",Ref!$B$36,INDEX(Ranks!$1:$1048576,$A278,BX$1))","v":""},{"$f":"IF($A278=\"N/A\",Ref!$B$36,INDEX(Ranks!$1:$1048576,$A278,BY$1))","v":""},{"$f":"IF($A278=\"N/A\",Ref!$B$36,INDEX(Ranks!$1:$1048576,$A278,BZ$1))","v":""},{"$f":"IF($A278=\"N/A\",Ref!$B$36,INDEX(Ranks!$1:$1048576,$A278,CA$1))","v":""},{"$f":"IF($A278=\"N/A\",Ref!$B$36,INDEX(Ranks!$1:$1048576,$A278,CB$1))","v":""},{"$f":"IF($A278=\"N/A\",Ref!$B$36,INDEX(Ranks!$1:$1048576,$A278,CC$1))","v":""},{"$f":"IF($A278=\"N/A\",Ref!$B$36,INDEX(Ranks!$1:$1048576,$A278,CD$1))","v":""},{"$f":"IF($A278=\"N/A\",Ref!$B$36,INDEX(Ranks!$1:$1048576,$A278,CE$1))","v":""},{"$f":"IF($A278=\"N/A\",Ref!$B$36,INDEX(Ranks!$1:$1048576,$A278,CF$1))","v":""},{"$f":"IF($A278=\"N/A\",Ref!$B$36,INDEX(Ranks!$1:$1048576,$A278,CG$1))","v":""},{"$f":"IF($A278=\"N/A\",Ref!$B$36,INDEX(Ranks!$1:$1048576,$A278,CH$1))","v":""},{"$f":"IF($A278=\"N/A\",Ref!$B$36,INDEX(Ranks!$1:$1048576,$A278,CI$1))","v":""},{"$f":"IF($A278=\"N/A\",Ref!$B$36,INDEX(Ranks!$1:$1048576,$A278,CJ$1))","v":""},{"$f":"IF($A278=\"N/A\",Ref!$B$36,INDEX(Ranks!$1:$1048576,$A278,CK$1))","v":""},{"$f":"IF($A278=\"N/A\",Ref!$B$36,INDEX(Ranks!$1:$1048576,$A278,CL$1))","v":""},{"$f":"IF($A278=\"N/A\",Ref!$B$36,INDEX(Ranks!$1:$1048576,$A278,CM$1))","v":""},{"$f":"IF($A278=\"N/A\",Ref!$B$36,INDEX(Ranks!$1:$1048576,$A278,CN$1))","v":""},{"$f":"IF($A278=\"N/A\",Ref!$B$36,INDEX(Ranks!$1:$1048576,$A278,CO$1))","v":""},{"$f":"IF($A278=\"N/A\",Ref!$B$36,INDEX(Ranks!$1:$1048576,$A278,CP$1))","v":""},{"$f":"IF($A278=\"N/A\",Ref!$B$36,INDEX(Ranks!$1:$1048576,$A278,CQ$1))","v":""},{"$f":"IF($A278=\"N/A\",Ref!$B$36,INDEX(Ranks!$1:$1048576,$A278,CR$1))","v":""},{"$f":"IF($A278=\"N/A\",Ref!$B$36,INDEX(Ranks!$1:$1048576,$A278,CS$1))","v":""},{"$f":"IF($A278=\"N/A\",Ref!$B$36,INDEX(Ranks!$1:$1048576,$A278,CT$1))","v":""},{"$f":"IF($A278=\"N/A\",Ref!$B$36,INDEX(Ranks!$1:$1048576,$A278,CU$1))","v":""},{"$f":"IF($A278=\"N/A\",Ref!$B$36,INDEX(Ranks!$1:$1048576,$A278,CV$1))","v":""},{"$f":"IF($A278=\"N/A\",Ref!$B$36,INDEX(Ranks!$1:$1048576,$A278,CW$1))","v":""},{"$f":"IF($A278=\"N/A\",Ref!$B$36,INDEX(Ranks!$1:$1048576,$A278,CX$1))","v":""},{"$f":"IF($A278=\"N/A\",Ref!$B$36,INDEX(Ranks!$1:$1048576,$A278,CY$1))","v":""},{"$f":"IF($A278=\"N/A\",Ref!$B$36,INDEX(Ranks!$1:$1048576,$A278,CZ$1))","v":""},{"$f":"IF($A278=\"N/A\",Ref!$B$36,INDEX(Ranks!$1:$1048576,$A278,DA$1))","v":""},{"$f":"IF($A278=\"N/A\",Ref!$B$36,INDEX(Ranks!$1:$1048576,$A278,DB$1))","v":""},{"$f":"IF($A278=\"N/A\",Ref!$B$36,INDEX(Ranks!$1:$1048576,$A278,DC$1))","v":""},{"$f":"IF($A278=\"N/A\",Ref!$B$36,INDEX(Ranks!$1:$1048576,$A278,DD$1))","v":""},{"$f":"IF($A278=\"N/A\",Ref!$B$36,INDEX(Ranks!$1:$1048576,$A278,DE$1))","v":""},{"$f":"IF($A278=\"N/A\",Ref!$B$36,INDEX(Ranks!$1:$1048576,$A278,DF$1))","v":""},{"$f":"IF($A278=\"N/A\",Ref!$B$36,INDEX(Ranks!$1:$1048576,$A278,DG$1))","v":""},{"$f":"IF($A278=\"N/A\",Ref!$B$36,INDEX(Ranks!$1:$1048576,$A278,DH$1))","v":""},{"$f":"IF($A278=\"N/A\",Ref!$B$36,INDEX(Ranks!$1:$1048576,$A278,DI$1))","v":""},{"$f":"IF($A278=\"N/A\",Ref!$B$36,INDEX(Ranks!$1:$1048576,$A278,DJ$1))","v":""},{"$f":"IF($A278=\"N/A\",Ref!$B$36,INDEX(Ranks!$1:$1048576,$A278,DK$1))","v":""},{"$f":"IF($A278=\"N/A\",Ref!$B$36,INDEX(Ranks!$1:$1048576,$A278,DL$1))","v":""},{"$f":"IF($A278=\"N/A\",Ref!$B$36,INDEX(Ranks!$1:$1048576,$A278,DM$1))","v":""},{"$f":"IF($A278=\"N/A\",Ref!$B$36,INDEX(Ranks!$1:$1048576,$A278,DN$1))","v":""},{"$f":"IF($A278=\"N/A\",Ref!$B$36,INDEX(Ranks!$1:$1048576,$A278,DO$1))","v":""},{"$f":"IF($A278=\"N/A\",Ref!$B$36,INDEX(Ranks!$1:$1048576,$A278,DP$1))","v":""},{"$f":"IF($A278=\"N/A\",Ref!$B$36,INDEX(Ranks!$1:$1048576,$A278,DQ$1))","v":""},{"$f":"IF($A278=\"N/A\",Ref!$B$36,INDEX(Ranks!$1:$1048576,$A278,DR$1))","v":""},{"$f":"IF($A278=\"N/A\",Ref!$B$36,INDEX(Ranks!$1:$1048576,$A278,DS$1))","v":""},{"$f":"IF($A278=\"N/A\",Ref!$B$36,INDEX(Ranks!$1:$1048576,$A278,DT$1))","v":""},{"$f":"IF($A278=\"N/A\",Ref!$B$36,INDEX(Ranks!$1:$1048576,$A278,DU$1))","v":""},{"$f":"IF($A278=\"N/A\",Ref!$B$36,INDEX(Ranks!$1:$1048576,$A278,DV$1))","v":""},{"$f":"IF($A278=\"N/A\",Ref!$B$36,INDEX(Ranks!$1:$1048576,$A278,DW$1))","v":""},{"$f":"IF($A278=\"N/A\",Ref!$B$36,INDEX(Ranks!$1:$1048576,$A278,DX$1))","v":""},{"$f":"IF($A278=\"N/A\",Ref!$B$36,INDEX(Ranks!$1:$1048576,$A278,DY$1))","v":""},{"$f":"IF($A278=\"N/A\",Ref!$B$36,INDEX(Ranks!$1:$1048576,$A278,DZ$1))","v":""},{"$f":"IF($A278=\"N/A\",Ref!$B$36,INDEX(Ranks!$1:$1048576,$A278,EA$1))","v":""},{"$f":"IF($A278=\"N/A\",Ref!$B$36,INDEX(Ranks!$1:$1048576,$A278,EB$1))","v":""}]
[{"$f":"IFERROR(MATCH('Portfolio Page'!L279,Ranks!L:L,0),\"N/A\")","v":"N/A"},null,{"$f":"IF($A279=\"N/A\",\"\",INDEX(Ranks!$1:$1048576,$A279,C$1))","v":""},{"$f":"IF($A279=\"N/A\",Ref!$B$36,INDEX(Ranks!$1:$1048576,$A279,D$1))","v":""},{"$f":"IF($A279=\"N/A\",Ref!$B$36,INDEX(Ranks!$1:$1048576,$A279,E$1))","v":""},{"$f":"IF($A279=\"N/A\",\"\",INDEX(Ranks!$1:$1048576,$A279,F$1))","v":""},{"$f":"IF($A279=\"N/A\",\"\",INDEX(Ranks!$1:$1048576,$A279,G$1))","v":""},{"$f":"IF($A279=\"N/A\",\"\",INDEX(Ranks!$1:$1048576,$A279,H$1))","v":""},{"$f":"IF($A279=\"N/A\",\"\",INDEX(Ranks!$1:$1048576,$A279,I$1))","v":""},{"$f":"IF($A279=\"N/A\",\"\",INDEX(Ranks!$1:$1048576,$A279,J$1))","v":""},{"$f":"IF($A279=\"N/A\",\"\",INDEX(Ranks!$1:$1048576,$A279,K$1))","v":""},null,{"$f":"IF($A279=\"N/A\",Ref!$B$36,INDEX(Ranks!$1:$1048576,$A279,M$1))","v":""},{"$f":"IF($A279=\"N/A\",Ref!$B$36,INDEX(Ranks!$1:$1048576,$A279,N$1))","v":""},{"$f":"IF($A279=\"N/A\",Ref!$B$36,INDEX(Ranks!$1:$1048576,$A279,O$1))","v":""},{"$f":"IF($A279=\"N/A\",Ref!$B$36,INDEX(Ranks!$1:$1048576,$A279,P$1))","v":""},{"$f":"IF($A279=\"N/A\",Ref!$B$36,INDEX(Ranks!$1:$1048576,$A279,Q$1))","v":""},{"$f":"IF($A279=\"N/A\",Ref!$B$36,INDEX(Ranks!$1:$1048576,$A279,R$1))","v":""},{"$f":"IF($A279=\"N/A\",Ref!$B$36,INDEX(Ranks!$1:$1048576,$A279,S$1))","v":""},{"$f":"IF($A279=\"N/A\",Ref!$B$36,INDEX(Ranks!$1:$1048576,$A279,T$1))","v":""},{"$f":"IF($A279=\"N/A\",Ref!$B$36,INDEX(Ranks!$1:$1048576,$A279,U$1))","v":""},{"$f":"IF($A279=\"N/A\",Ref!$B$36,INDEX(Ranks!$1:$1048576,$A279,V$1))","v":""},{"$f":"IF($A279=\"N/A\",Ref!$B$36,INDEX(Ranks!$1:$1048576,$A279,W$1))","v":""},{"$f":"IF($A279=\"N/A\",Ref!$B$36,INDEX(Ranks!$1:$1048576,$A279,X$1))","v":""},{"$f":"IF($A279=\"N/A\",Ref!$B$36,INDEX(Ranks!$1:$1048576,$A279,Y$1))","v":""},{"$f":"IF($A279=\"N/A\",Ref!$B$36,INDEX(Ranks!$1:$1048576,$A279,Z$1))","v":""},{"$f":"IF($A279=\"N/A\",Ref!$B$36,INDEX(Ranks!$1:$1048576,$A279,AA$1))","v":""},{"$f":"IF($A279=\"N/A\",Ref!$B$36,INDEX(Ranks!$1:$1048576,$A279,AB$1))","v":""},{"$f":"IF($A279=\"N/A\",Ref!$B$36,INDEX(Ranks!$1:$1048576,$A279,AC$1))","v":""},{"$f":"IF($A279=\"N/A\",Ref!$B$36,INDEX(Ranks!$1:$1048576,$A279,AD$1))","v":""},{"$f":"IF($A279=\"N/A\",Ref!$B$36,INDEX(Ranks!$1:$1048576,$A279,AE$1))","v":""},{"$f":"IF($A279=\"N/A\",Ref!$B$36,INDEX(Ranks!$1:$1048576,$A279,AF$1))","v":""},{"$f":"IF($A279=\"N/A\",Ref!$B$36,INDEX(Ranks!$1:$1048576,$A279,AG$1))","v":""},{"$f":"IF($A279=\"N/A\",Ref!$B$36,INDEX(Ranks!$1:$1048576,$A279,AH$1))","v":""},{"$f":"IF($A279=\"N/A\",Ref!$B$36,INDEX(Ranks!$1:$1048576,$A279,AI$1))","v":""},{"$f":"IF($A279=\"N/A\",Ref!$B$36,INDEX(Ranks!$1:$1048576,$A279,AJ$1))","v":""},{"$f":"IF($A279=\"N/A\",Ref!$B$36,INDEX(Ranks!$1:$1048576,$A279,AK$1))","v":""},{"$f":"IF($A279=\"N/A\",Ref!$B$36,INDEX(Ranks!$1:$1048576,$A279,AL$1))","v":""},{"$f":"IF($A279=\"N/A\",Ref!$B$36,INDEX(Ranks!$1:$1048576,$A279,AM$1))","v":""},{"$f":"IF($A279=\"N/A\",Ref!$B$36,INDEX(Ranks!$1:$1048576,$A279,AN$1))","v":""},{"$f":"IF($A279=\"N/A\",Ref!$B$36,INDEX(Ranks!$1:$1048576,$A279,AO$1))","v":""},{"$f":"IF($A279=\"N/A\",Ref!$B$36,INDEX(Ranks!$1:$1048576,$A279,AP$1))","v":""},{"$f":"IF($A279=\"N/A\",Ref!$B$36,INDEX(Ranks!$1:$1048576,$A279,AQ$1))","v":""},{"$f":"IF($A279=\"N/A\",Ref!$B$36,INDEX(Ranks!$1:$1048576,$A279,AR$1))","v":""},{"$f":"IF($A279=\"N/A\",Ref!$B$36,INDEX(Ranks!$1:$1048576,$A279,AS$1))","v":""},{"$f":"IF($A279=\"N/A\",Ref!$B$36,INDEX(Ranks!$1:$1048576,$A279,AT$1))","v":""},{"$f":"IF($A279=\"N/A\",Ref!$B$36,INDEX(Ranks!$1:$1048576,$A279,AU$1))","v":""},{"$f":"IF($A279=\"N/A\",Ref!$B$36,INDEX(Ranks!$1:$1048576,$A279,AV$1))","v":""},{"$f":"IF($A279=\"N/A\",Ref!$B$36,INDEX(Ranks!$1:$1048576,$A279,AW$1))","v":""},{"$f":"IF($A279=\"N/A\",Ref!$B$36,INDEX(Ranks!$1:$1048576,$A279,AX$1))","v":""},{"$f":"IF($A279=\"N/A\",Ref!$B$36,INDEX(Ranks!$1:$1048576,$A279,AY$1))","v":""},{"$f":"IF($A279=\"N/A\",Ref!$B$36,INDEX(Ranks!$1:$1048576,$A279,AZ$1))","v":""},{"$f":"IF($A279=\"N/A\",Ref!$B$36,INDEX(Ranks!$1:$1048576,$A279,BA$1))","v":""},{"$f":"IF($A279=\"N/A\",Ref!$B$36,INDEX(Ranks!$1:$1048576,$A279,BB$1))","v":""},{"$f":"IF($A279=\"N/A\",Ref!$B$36,INDEX(Ranks!$1:$1048576,$A279,BC$1))","v":""},{"$f":"IF($A279=\"N/A\",Ref!$B$36,INDEX(Ranks!$1:$1048576,$A279,BD$1))","v":""},{"$f":"IF($A279=\"N/A\",Ref!$B$36,INDEX(Ranks!$1:$1048576,$A279,BE$1))","v":""},{"$f":"IF($A279=\"N/A\",Ref!$B$36,INDEX(Ranks!$1:$1048576,$A279,BF$1))","v":""},{"$f":"IF($A279=\"N/A\",Ref!$B$36,INDEX(Ranks!$1:$1048576,$A279,BG$1))","v":""},{"$f":"IF($A279=\"N/A\",Ref!$B$36,INDEX(Ranks!$1:$1048576,$A279,BH$1))","v":""},{"$f":"IF($A279=\"N/A\",Ref!$B$36,INDEX(Ranks!$1:$1048576,$A279,BI$1))","v":""},{"$f":"IF($A279=\"N/A\",Ref!$B$36,INDEX(Ranks!$1:$1048576,$A279,BJ$1))","v":""},{"$f":"IF($A279=\"N/A\",Ref!$B$36,INDEX(Ranks!$1:$1048576,$A279,BK$1))","v":""},{"$f":"IF($A279=\"N/A\",Ref!$B$36,INDEX(Ranks!$1:$1048576,$A279,BL$1))","v":""},{"$f":"IF($A279=\"N/A\",Ref!$B$36,INDEX(Ranks!$1:$1048576,$A279,BM$1))","v":""},{"$f":"IF($A279=\"N/A\",Ref!$B$36,INDEX(Ranks!$1:$1048576,$A279,BN$1))","v":""},{"$f":"IF($A279=\"N/A\",Ref!$B$36,INDEX(Ranks!$1:$1048576,$A279,BO$1))","v":""},{"$f":"IF($A279=\"N/A\",Ref!$B$36,INDEX(Ranks!$1:$1048576,$A279,BP$1))","v":""},{"$f":"IF($A279=\"N/A\",Ref!$B$36,INDEX(Ranks!$1:$1048576,$A279,BQ$1))","v":""},{"$f":"IF($A279=\"N/A\",Ref!$B$36,INDEX(Ranks!$1:$1048576,$A279,BR$1))","v":""},{"$f":"IF($A279=\"N/A\",Ref!$B$36,INDEX(Ranks!$1:$1048576,$A279,BS$1))","v":""},{"$f":"IF($A279=\"N/A\",Ref!$B$36,INDEX(Ranks!$1:$1048576,$A279,BT$1))","v":""},{"$f":"IF($A279=\"N/A\",Ref!$B$36,INDEX(Ranks!$1:$1048576,$A279,BU$1))","v":""},{"$f":"IF($A279=\"N/A\",Ref!$B$36,INDEX(Ranks!$1:$1048576,$A279,BV$1))","v":""},{"$f":"IF($A279=\"N/A\",Ref!$B$36,INDEX(Ranks!$1:$1048576,$A279,BW$1))","v":""},{"$f":"IF($A279=\"N/A\",Ref!$B$36,INDEX(Ranks!$1:$1048576,$A279,BX$1))","v":""},{"$f":"IF($A279=\"N/A\",Ref!$B$36,INDEX(Ranks!$1:$1048576,$A279,BY$1))","v":""},{"$f":"IF($A279=\"N/A\",Ref!$B$36,INDEX(Ranks!$1:$1048576,$A279,BZ$1))","v":""},{"$f":"IF($A279=\"N/A\",Ref!$B$36,INDEX(Ranks!$1:$1048576,$A279,CA$1))","v":""},{"$f":"IF($A279=\"N/A\",Ref!$B$36,INDEX(Ranks!$1:$1048576,$A279,CB$1))","v":""},{"$f":"IF($A279=\"N/A\",Ref!$B$36,INDEX(Ranks!$1:$1048576,$A279,CC$1))","v":""},{"$f":"IF($A279=\"N/A\",Ref!$B$36,INDEX(Ranks!$1:$1048576,$A279,CD$1))","v":""},{"$f":"IF($A279=\"N/A\",Ref!$B$36,INDEX(Ranks!$1:$1048576,$A279,CE$1))","v":""},{"$f":"IF($A279=\"N/A\",Ref!$B$36,INDEX(Ranks!$1:$1048576,$A279,CF$1))","v":""},{"$f":"IF($A279=\"N/A\",Ref!$B$36,INDEX(Ranks!$1:$1048576,$A279,CG$1))","v":""},{"$f":"IF($A279=\"N/A\",Ref!$B$36,INDEX(Ranks!$1:$1048576,$A279,CH$1))","v":""},{"$f":"IF($A279=\"N/A\",Ref!$B$36,INDEX(Ranks!$1:$1048576,$A279,CI$1))","v":""},{"$f":"IF($A279=\"N/A\",Ref!$B$36,INDEX(Ranks!$1:$1048576,$A279,CJ$1))","v":""},{"$f":"IF($A279=\"N/A\",Ref!$B$36,INDEX(Ranks!$1:$1048576,$A279,CK$1))","v":""},{"$f":"IF($A279=\"N/A\",Ref!$B$36,INDEX(Ranks!$1:$1048576,$A279,CL$1))","v":""},{"$f":"IF($A279=\"N/A\",Ref!$B$36,INDEX(Ranks!$1:$1048576,$A279,CM$1))","v":""},{"$f":"IF($A279=\"N/A\",Ref!$B$36,INDEX(Ranks!$1:$1048576,$A279,CN$1))","v":""},{"$f":"IF($A279=\"N/A\",Ref!$B$36,INDEX(Ranks!$1:$1048576,$A279,CO$1))","v":""},{"$f":"IF($A279=\"N/A\",Ref!$B$36,INDEX(Ranks!$1:$1048576,$A279,CP$1))","v":""},{"$f":"IF($A279=\"N/A\",Ref!$B$36,INDEX(Ranks!$1:$1048576,$A279,CQ$1))","v":""},{"$f":"IF($A279=\"N/A\",Ref!$B$36,INDEX(Ranks!$1:$1048576,$A279,CR$1))","v":""},{"$f":"IF($A279=\"N/A\",Ref!$B$36,INDEX(Ranks!$1:$1048576,$A279,CS$1))","v":""},{"$f":"IF($A279=\"N/A\",Ref!$B$36,INDEX(Ranks!$1:$1048576,$A279,CT$1))","v":""},{"$f":"IF($A279=\"N/A\",Ref!$B$36,INDEX(Ranks!$1:$1048576,$A279,CU$1))","v":""},{"$f":"IF($A279=\"N/A\",Ref!$B$36,INDEX(Ranks!$1:$1048576,$A279,CV$1))","v":""},{"$f":"IF($A279=\"N/A\",Ref!$B$36,INDEX(Ranks!$1:$1048576,$A279,CW$1))","v":""},{"$f":"IF($A279=\"N/A\",Ref!$B$36,INDEX(Ranks!$1:$1048576,$A279,CX$1))","v":""},{"$f":"IF($A279=\"N/A\",Ref!$B$36,INDEX(Ranks!$1:$1048576,$A279,CY$1))","v":""},{"$f":"IF($A279=\"N/A\",Ref!$B$36,INDEX(Ranks!$1:$1048576,$A279,CZ$1))","v":""},{"$f":"IF($A279=\"N/A\",Ref!$B$36,INDEX(Ranks!$1:$1048576,$A279,DA$1))","v":""},{"$f":"IF($A279=\"N/A\",Ref!$B$36,INDEX(Ranks!$1:$1048576,$A279,DB$1))","v":""},{"$f":"IF($A279=\"N/A\",Ref!$B$36,INDEX(Ranks!$1:$1048576,$A279,DC$1))","v":""},{"$f":"IF($A279=\"N/A\",Ref!$B$36,INDEX(Ranks!$1:$1048576,$A279,DD$1))","v":""},{"$f":"IF($A279=\"N/A\",Ref!$B$36,INDEX(Ranks!$1:$1048576,$A279,DE$1))","v":""},{"$f":"IF($A279=\"N/A\",Ref!$B$36,INDEX(Ranks!$1:$1048576,$A279,DF$1))","v":""},{"$f":"IF($A279=\"N/A\",Ref!$B$36,INDEX(Ranks!$1:$1048576,$A279,DG$1))","v":""},{"$f":"IF($A279=\"N/A\",Ref!$B$36,INDEX(Ranks!$1:$1048576,$A279,DH$1))","v":""},{"$f":"IF($A279=\"N/A\",Ref!$B$36,INDEX(Ranks!$1:$1048576,$A279,DI$1))","v":""},{"$f":"IF($A279=\"N/A\",Ref!$B$36,INDEX(Ranks!$1:$1048576,$A279,DJ$1))","v":""},{"$f":"IF($A279=\"N/A\",Ref!$B$36,INDEX(Ranks!$1:$1048576,$A279,DK$1))","v":""},{"$f":"IF($A279=\"N/A\",Ref!$B$36,INDEX(Ranks!$1:$1048576,$A279,DL$1))","v":""},{"$f":"IF($A279=\"N/A\",Ref!$B$36,INDEX(Ranks!$1:$1048576,$A279,DM$1))","v":""},{"$f":"IF($A279=\"N/A\",Ref!$B$36,INDEX(Ranks!$1:$1048576,$A279,DN$1))","v":""},{"$f":"IF($A279=\"N/A\",Ref!$B$36,INDEX(Ranks!$1:$1048576,$A279,DO$1))","v":""},{"$f":"IF($A279=\"N/A\",Ref!$B$36,INDEX(Ranks!$1:$1048576,$A279,DP$1))","v":""},{"$f":"IF($A279=\"N/A\",Ref!$B$36,INDEX(Ranks!$1:$1048576,$A279,DQ$1))","v":""},{"$f":"IF($A279=\"N/A\",Ref!$B$36,INDEX(Ranks!$1:$1048576,$A279,DR$1))","v":""},{"$f":"IF($A279=\"N/A\",Ref!$B$36,INDEX(Ranks!$1:$1048576,$A279,DS$1))","v":""},{"$f":"IF($A279=\"N/A\",Ref!$B$36,INDEX(Ranks!$1:$1048576,$A279,DT$1))","v":""},{"$f":"IF($A279=\"N/A\",Ref!$B$36,INDEX(Ranks!$1:$1048576,$A279,DU$1))","v":""},{"$f":"IF($A279=\"N/A\",Ref!$B$36,INDEX(Ranks!$1:$1048576,$A279,DV$1))","v":""},{"$f":"IF($A279=\"N/A\",Ref!$B$36,INDEX(Ranks!$1:$1048576,$A279,DW$1))","v":""},{"$f":"IF($A279=\"N/A\",Ref!$B$36,INDEX(Ranks!$1:$1048576,$A279,DX$1))","v":""},{"$f":"IF($A279=\"N/A\",Ref!$B$36,INDEX(Ranks!$1:$1048576,$A279,DY$1))","v":""},{"$f":"IF($A279=\"N/A\",Ref!$B$36,INDEX(Ranks!$1:$1048576,$A279,DZ$1))","v":""},{"$f":"IF($A279=\"N/A\",Ref!$B$36,INDEX(Ranks!$1:$1048576,$A279,EA$1))","v":""},{"$f":"IF($A279=\"N/A\",Ref!$B$36,INDEX(Ranks!$1:$1048576,$A279,EB$1))","v":""}]
[{"$f":"IFERROR(MATCH('Portfolio Page'!L280,Ranks!L:L,0),\"N/A\")","v":"N/A"},null,{"$f":"IF($A280=\"N/A\",\"\",INDEX(Ranks!$1:$1048576,$A280,C$1))","v":""},{"$f":"IF($A280=\"N/A\",Ref!$B$36,INDEX(Ranks!$1:$1048576,$A280,D$1))","v":""},{"$f":"IF($A280=\"N/A\",Ref!$B$36,INDEX(Ranks!$1:$1048576,$A280,E$1))","v":""},{"$f":"IF($A280=\"N/A\",\"\",INDEX(Ranks!$1:$1048576,$A280,F$1))","v":""},{"$f":"IF($A280=\"N/A\",\"\",INDEX(Ranks!$1:$1048576,$A280,G$1))","v":""},{"$f":"IF($A280=\"N/A\",\"\",INDEX(Ranks!$1:$1048576,$A280,H$1))","v":""},{"$f":"IF($A280=\"N/A\",\"\",INDEX(Ranks!$1:$1048576,$A280,I$1))","v":""},{"$f":"IF($A280=\"N/A\",\"\",INDEX(Ranks!$1:$1048576,$A280,J$1))","v":""},{"$f":"IF($A280=\"N/A\",\"\",INDEX(Ranks!$1:$1048576,$A280,K$1))","v":""},null,{"$f":"IF($A280=\"N/A\",Ref!$B$36,INDEX(Ranks!$1:$1048576,$A280,M$1))","v":""},{"$f":"IF($A280=\"N/A\",Ref!$B$36,INDEX(Ranks!$1:$1048576,$A280,N$1))","v":""},{"$f":"IF($A280=\"N/A\",Ref!$B$36,INDEX(Ranks!$1:$1048576,$A280,O$1))","v":""},{"$f":"IF($A280=\"N/A\",Ref!$B$36,INDEX(Ranks!$1:$1048576,$A280,P$1))","v":""},{"$f":"IF($A280=\"N/A\",Ref!$B$36,INDEX(Ranks!$1:$1048576,$A280,Q$1))","v":""},{"$f":"IF($A280=\"N/A\",Ref!$B$36,INDEX(Ranks!$1:$1048576,$A280,R$1))","v":""},{"$f":"IF($A280=\"N/A\",Ref!$B$36,INDEX(Ranks!$1:$1048576,$A280,S$1))","v":""},{"$f":"IF($A280=\"N/A\",Ref!$B$36,INDEX(Ranks!$1:$1048576,$A280,T$1))","v":""},{"$f":"IF($A280=\"N/A\",Ref!$B$36,INDEX(Ranks!$1:$1048576,$A280,U$1))","v":""},{"$f":"IF($A280=\"N/A\",Ref!$B$36,INDEX(Ranks!$1:$1048576,$A280,V$1))","v":""},{"$f":"IF($A280=\"N/A\",Ref!$B$36,INDEX(Ranks!$1:$1048576,$A280,W$1))","v":""},{"$f":"IF($A280=\"N/A\",Ref!$B$36,INDEX(Ranks!$1:$1048576,$A280,X$1))","v":""},{"$f":"IF($A280=\"N/A\",Ref!$B$36,INDEX(Ranks!$1:$1048576,$A280,Y$1))","v":""},{"$f":"IF($A280=\"N/A\",Ref!$B$36,INDEX(Ranks!$1:$1048576,$A280,Z$1))","v":""},{"$f":"IF($A280=\"N/A\",Ref!$B$36,INDEX(Ranks!$1:$1048576,$A280,AA$1))","v":""},{"$f":"IF($A280=\"N/A\",Ref!$B$36,INDEX(Ranks!$1:$1048576,$A280,AB$1))","v":""},{"$f":"IF($A280=\"N/A\",Ref!$B$36,INDEX(Ranks!$1:$1048576,$A280,AC$1))","v":""},{"$f":"IF($A280=\"N/A\",Ref!$B$36,INDEX(Ranks!$1:$1048576,$A280,AD$1))","v":""},{"$f":"IF($A280=\"N/A\",Ref!$B$36,INDEX(Ranks!$1:$1048576,$A280,AE$1))","v":""},{"$f":"IF($A280=\"N/A\",Ref!$B$36,INDEX(Ranks!$1:$1048576,$A280,AF$1))","v":""},{"$f":"IF($A280=\"N/A\",Ref!$B$36,INDEX(Ranks!$1:$1048576,$A280,AG$1))","v":""},{"$f":"IF($A280=\"N/A\",Ref!$B$36,INDEX(Ranks!$1:$1048576,$A280,AH$1))","v":""},{"$f":"IF($A280=\"N/A\",Ref!$B$36,INDEX(Ranks!$1:$1048576,$A280,AI$1))","v":""},{"$f":"IF($A280=\"N/A\",Ref!$B$36,INDEX(Ranks!$1:$1048576,$A280,AJ$1))","v":""},{"$f":"IF($A280=\"N/A\",Ref!$B$36,INDEX(Ranks!$1:$1048576,$A280,AK$1))","v":""},{"$f":"IF($A280=\"N/A\",Ref!$B$36,INDEX(Ranks!$1:$1048576,$A280,AL$1))","v":""},{"$f":"IF($A280=\"N/A\",Ref!$B$36,INDEX(Ranks!$1:$1048576,$A280,AM$1))","v":""},{"$f":"IF($A280=\"N/A\",Ref!$B$36,INDEX(Ranks!$1:$1048576,$A280,AN$1))","v":""},{"$f":"IF($A280=\"N/A\",Ref!$B$36,INDEX(Ranks!$1:$1048576,$A280,AO$1))","v":""},{"$f":"IF($A280=\"N/A\",Ref!$B$36,INDEX(Ranks!$1:$1048576,$A280,AP$1))","v":""},{"$f":"IF($A280=\"N/A\",Ref!$B$36,INDEX(Ranks!$1:$1048576,$A280,AQ$1))","v":""},{"$f":"IF($A280=\"N/A\",Ref!$B$36,INDEX(Ranks!$1:$1048576,$A280,AR$1))","v":""},{"$f":"IF($A280=\"N/A\",Ref!$B$36,INDEX(Ranks!$1:$1048576,$A280,AS$1))","v":""},{"$f":"IF($A280=\"N/A\",Ref!$B$36,INDEX(Ranks!$1:$1048576,$A280,AT$1))","v":""},{"$f":"IF($A280=\"N/A\",Ref!$B$36,INDEX(Ranks!$1:$1048576,$A280,AU$1))","v":""},{"$f":"IF($A280=\"N/A\",Ref!$B$36,INDEX(Ranks!$1:$1048576,$A280,AV$1))","v":""},{"$f":"IF($A280=\"N/A\",Ref!$B$36,INDEX(Ranks!$1:$1048576,$A280,AW$1))","v":""},{"$f":"IF($A280=\"N/A\",Ref!$B$36,INDEX(Ranks!$1:$1048576,$A280,AX$1))","v":""},{"$f":"IF($A280=\"N/A\",Ref!$B$36,INDEX(Ranks!$1:$1048576,$A280,AY$1))","v":""},{"$f":"IF($A280=\"N/A\",Ref!$B$36,INDEX(Ranks!$1:$1048576,$A280,AZ$1))","v":""},{"$f":"IF($A280=\"N/A\",Ref!$B$36,INDEX(Ranks!$1:$1048576,$A280,BA$1))","v":""},{"$f":"IF($A280=\"N/A\",Ref!$B$36,INDEX(Ranks!$1:$1048576,$A280,BB$1))","v":""},{"$f":"IF($A280=\"N/A\",Ref!$B$36,INDEX(Ranks!$1:$1048576,$A280,BC$1))","v":""},{"$f":"IF($A280=\"N/A\",Ref!$B$36,INDEX(Ranks!$1:$1048576,$A280,BD$1))","v":""},{"$f":"IF($A280=\"N/A\",Ref!$B$36,INDEX(Ranks!$1:$1048576,$A280,BE$1))","v":""},{"$f":"IF($A280=\"N/A\",Ref!$B$36,INDEX(Ranks!$1:$1048576,$A280,BF$1))","v":""},{"$f":"IF($A280=\"N/A\",Ref!$B$36,INDEX(Ranks!$1:$1048576,$A280,BG$1))","v":""},{"$f":"IF($A280=\"N/A\",Ref!$B$36,INDEX(Ranks!$1:$1048576,$A280,BH$1))","v":""},{"$f":"IF($A280=\"N/A\",Ref!$B$36,INDEX(Ranks!$1:$1048576,$A280,BI$1))","v":""},{"$f":"IF($A280=\"N/A\",Ref!$B$36,INDEX(Ranks!$1:$1048576,$A280,BJ$1))","v":""},{"$f":"IF($A280=\"N/A\",Ref!$B$36,INDEX(Ranks!$1:$1048576,$A280,BK$1))","v":""},{"$f":"IF($A280=\"N/A\",Ref!$B$36,INDEX(Ranks!$1:$1048576,$A280,BL$1))","v":""},{"$f":"IF($A280=\"N/A\",Ref!$B$36,INDEX(Ranks!$1:$1048576,$A280,BM$1))","v":""},{"$f":"IF($A280=\"N/A\",Ref!$B$36,INDEX(Ranks!$1:$1048576,$A280,BN$1))","v":""},{"$f":"IF($A280=\"N/A\",Ref!$B$36,INDEX(Ranks!$1:$1048576,$A280,BO$1))","v":""},{"$f":"IF($A280=\"N/A\",Ref!$B$36,INDEX(Ranks!$1:$1048576,$A280,BP$1))","v":""},{"$f":"IF($A280=\"N/A\",Ref!$B$36,INDEX(Ranks!$1:$1048576,$A280,BQ$1))","v":""},{"$f":"IF($A280=\"N/A\",Ref!$B$36,INDEX(Ranks!$1:$1048576,$A280,BR$1))","v":""},{"$f":"IF($A280=\"N/A\",Ref!$B$36,INDEX(Ranks!$1:$1048576,$A280,BS$1))","v":""},{"$f":"IF($A280=\"N/A\",Ref!$B$36,INDEX(Ranks!$1:$1048576,$A280,BT$1))","v":""},{"$f":"IF($A280=\"N/A\",Ref!$B$36,INDEX(Ranks!$1:$1048576,$A280,BU$1))","v":""},{"$f":"IF($A280=\"N/A\",Ref!$B$36,INDEX(Ranks!$1:$1048576,$A280,BV$1))","v":""},{"$f":"IF($A280=\"N/A\",Ref!$B$36,INDEX(Ranks!$1:$1048576,$A280,BW$1))","v":""},{"$f":"IF($A280=\"N/A\",Ref!$B$36,INDEX(Ranks!$1:$1048576,$A280,BX$1))","v":""},{"$f":"IF($A280=\"N/A\",Ref!$B$36,INDEX(Ranks!$1:$1048576,$A280,BY$1))","v":""},{"$f":"IF($A280=\"N/A\",Ref!$B$36,INDEX(Ranks!$1:$1048576,$A280,BZ$1))","v":""},{"$f":"IF($A280=\"N/A\",Ref!$B$36,INDEX(Ranks!$1:$1048576,$A280,CA$1))","v":""},{"$f":"IF($A280=\"N/A\",Ref!$B$36,INDEX(Ranks!$1:$1048576,$A280,CB$1))","v":""},{"$f":"IF($A280=\"N/A\",Ref!$B$36,INDEX(Ranks!$1:$1048576,$A280,CC$1))","v":""},{"$f":"IF($A280=\"N/A\",Ref!$B$36,INDEX(Ranks!$1:$1048576,$A280,CD$1))","v":""},{"$f":"IF($A280=\"N/A\",Ref!$B$36,INDEX(Ranks!$1:$1048576,$A280,CE$1))","v":""},{"$f":"IF($A280=\"N/A\",Ref!$B$36,INDEX(Ranks!$1:$1048576,$A280,CF$1))","v":""},{"$f":"IF($A280=\"N/A\",Ref!$B$36,INDEX(Ranks!$1:$1048576,$A280,CG$1))","v":""},{"$f":"IF($A280=\"N/A\",Ref!$B$36,INDEX(Ranks!$1:$1048576,$A280,CH$1))","v":""},{"$f":"IF($A280=\"N/A\",Ref!$B$36,INDEX(Ranks!$1:$1048576,$A280,CI$1))","v":""},{"$f":"IF($A280=\"N/A\",Ref!$B$36,INDEX(Ranks!$1:$1048576,$A280,CJ$1))","v":""},{"$f":"IF($A280=\"N/A\",Ref!$B$36,INDEX(Ranks!$1:$1048576,$A280,CK$1))","v":""},{"$f":"IF($A280=\"N/A\",Ref!$B$36,INDEX(Ranks!$1:$1048576,$A280,CL$1))","v":""},{"$f":"IF($A280=\"N/A\",Ref!$B$36,INDEX(Ranks!$1:$1048576,$A280,CM$1))","v":""},{"$f":"IF($A280=\"N/A\",Ref!$B$36,INDEX(Ranks!$1:$1048576,$A280,CN$1))","v":""},{"$f":"IF($A280=\"N/A\",Ref!$B$36,INDEX(Ranks!$1:$1048576,$A280,CO$1))","v":""},{"$f":"IF($A280=\"N/A\",Ref!$B$36,INDEX(Ranks!$1:$1048576,$A280,CP$1))","v":""},{"$f":"IF($A280=\"N/A\",Ref!$B$36,INDEX(Ranks!$1:$1048576,$A280,CQ$1))","v":""},{"$f":"IF($A280=\"N/A\",Ref!$B$36,INDEX(Ranks!$1:$1048576,$A280,CR$1))","v":""},{"$f":"IF($A280=\"N/A\",Ref!$B$36,INDEX(Ranks!$1:$1048576,$A280,CS$1))","v":""},{"$f":"IF($A280=\"N/A\",Ref!$B$36,INDEX(Ranks!$1:$1048576,$A280,CT$1))","v":""},{"$f":"IF($A280=\"N/A\",Ref!$B$36,INDEX(Ranks!$1:$1048576,$A280,CU$1))","v":""},{"$f":"IF($A280=\"N/A\",Ref!$B$36,INDEX(Ranks!$1:$1048576,$A280,CV$1))","v":""},{"$f":"IF($A280=\"N/A\",Ref!$B$36,INDEX(Ranks!$1:$1048576,$A280,CW$1))","v":""},{"$f":"IF($A280=\"N/A\",Ref!$B$36,INDEX(Ranks!$1:$1048576,$A280,CX$1))","v":""},{"$f":"IF($A280=\"N/A\",Ref!$B$36,INDEX(Ranks!$1:$1048576,$A280,CY$1))","v":""},{"$f":"IF($A280=\"N/A\",Ref!$B$36,INDEX(Ranks!$1:$1048576,$A280,CZ$1))","v":""},{"$f":"IF($A280=\"N/A\",Ref!$B$36,INDEX(Ranks!$1:$1048576,$A280,DA$1))","v":""},{"$f":"IF($A280=\"N/A\",Ref!$B$36,INDEX(Ranks!$1:$1048576,$A280,DB$1))","v":""},{"$f":"IF($A280=\"N/A\",Ref!$B$36,INDEX(Ranks!$1:$1048576,$A280,DC$1))","v":""},{"$f":"IF($A280=\"N/A\",Ref!$B$36,INDEX(Ranks!$1:$1048576,$A280,DD$1))","v":""},{"$f":"IF($A280=\"N/A\",Ref!$B$36,INDEX(Ranks!$1:$1048576,$A280,DE$1))","v":""},{"$f":"IF($A280=\"N/A\",Ref!$B$36,INDEX(Ranks!$1:$1048576,$A280,DF$1))","v":""},{"$f":"IF($A280=\"N/A\",Ref!$B$36,INDEX(Ranks!$1:$1048576,$A280,DG$1))","v":""},{"$f":"IF($A280=\"N/A\",Ref!$B$36,INDEX(Ranks!$1:$1048576,$A280,DH$1))","v":""},{"$f":"IF($A280=\"N/A\",Ref!$B$36,INDEX(Ranks!$1:$1048576,$A280,DI$1))","v":""},{"$f":"IF($A280=\"N/A\",Ref!$B$36,INDEX(Ranks!$1:$1048576,$A280,DJ$1))","v":""},{"$f":"IF($A280=\"N/A\",Ref!$B$36,INDEX(Ranks!$1:$1048576,$A280,DK$1))","v":""},{"$f":"IF($A280=\"N/A\",Ref!$B$36,INDEX(Ranks!$1:$1048576,$A280,DL$1))","v":""},{"$f":"IF($A280=\"N/A\",Ref!$B$36,INDEX(Ranks!$1:$1048576,$A280,DM$1))","v":""},{"$f":"IF($A280=\"N/A\",Ref!$B$36,INDEX(Ranks!$1:$1048576,$A280,DN$1))","v":""},{"$f":"IF($A280=\"N/A\",Ref!$B$36,INDEX(Ranks!$1:$1048576,$A280,DO$1))","v":""},{"$f":"IF($A280=\"N/A\",Ref!$B$36,INDEX(Ranks!$1:$1048576,$A280,DP$1))","v":""},{"$f":"IF($A280=\"N/A\",Ref!$B$36,INDEX(Ranks!$1:$1048576,$A280,DQ$1))","v":""},{"$f":"IF($A280=\"N/A\",Ref!$B$36,INDEX(Ranks!$1:$1048576,$A280,DR$1))","v":""},{"$f":"IF($A280=\"N/A\",Ref!$B$36,INDEX(Ranks!$1:$1048576,$A280,DS$1))","v":""},{"$f":"IF($A280=\"N/A\",Ref!$B$36,INDEX(Ranks!$1:$1048576,$A280,DT$1))","v":""},{"$f":"IF($A280=\"N/A\",Ref!$B$36,INDEX(Ranks!$1:$1048576,$A280,DU$1))","v":""},{"$f":"IF($A280=\"N/A\",Ref!$B$36,INDEX(Ranks!$1:$1048576,$A280,DV$1))","v":""},{"$f":"IF($A280=\"N/A\",Ref!$B$36,INDEX(Ranks!$1:$1048576,$A280,DW$1))","v":""},{"$f":"IF($A280=\"N/A\",Ref!$B$36,INDEX(Ranks!$1:$1048576,$A280,DX$1))","v":""},{"$f":"IF($A280=\"N/A\",Ref!$B$36,INDEX(Ranks!$1:$1048576,$A280,DY$1))","v":""},{"$f":"IF($A280=\"N/A\",Ref!$B$36,INDEX(Ranks!$1:$1048576,$A280,DZ$1))","v":""},{"$f":"IF($A280=\"N/A\",Ref!$B$36,INDEX(Ranks!$1:$1048576,$A280,EA$1))","v":""},{"$f":"IF($A280=\"N/A\",Ref!$B$36,INDEX(Ranks!$1:$1048576,$A280,EB$1))","v":""}]
[{"$f":"IFERROR(MATCH('Portfolio Page'!L281,Ranks!L:L,0),\"N/A\")","v":"N/A"},null,{"$f":"IF($A281=\"N/A\",\"\",INDEX(Ranks!$1:$1048576,$A281,C$1))","v":""},{"$f":"IF($A281=\"N/A\",Ref!$B$36,INDEX(Ranks!$1:$1048576,$A281,D$1))","v":""},{"$f":"IF($A281=\"N/A\",Ref!$B$36,INDEX(Ranks!$1:$1048576,$A281,E$1))","v":""},{"$f":"IF($A281=\"N/A\",\"\",INDEX(Ranks!$1:$1048576,$A281,F$1))","v":""},{"$f":"IF($A281=\"N/A\",\"\",INDEX(Ranks!$1:$1048576,$A281,G$1))","v":""},{"$f":"IF($A281=\"N/A\",\"\",INDEX(Ranks!$1:$1048576,$A281,H$1))","v":""},{"$f":"IF($A281=\"N/A\",\"\",INDEX(Ranks!$1:$1048576,$A281,I$1))","v":""},{"$f":"IF($A281=\"N/A\",\"\",INDEX(Ranks!$1:$1048576,$A281,J$1))","v":""},{"$f":"IF($A281=\"N/A\",\"\",INDEX(Ranks!$1:$1048576,$A281,K$1))","v":""},null,{"$f":"IF($A281=\"N/A\",Ref!$B$36,INDEX(Ranks!$1:$1048576,$A281,M$1))","v":""},{"$f":"IF($A281=\"N/A\",Ref!$B$36,INDEX(Ranks!$1:$1048576,$A281,N$1))","v":""},{"$f":"IF($A281=\"N/A\",Ref!$B$36,INDEX(Ranks!$1:$1048576,$A281,O$1))","v":""},{"$f":"IF($A281=\"N/A\",Ref!$B$36,INDEX(Ranks!$1:$1048576,$A281,P$1))","v":""},{"$f":"IF($A281=\"N/A\",Ref!$B$36,INDEX(Ranks!$1:$1048576,$A281,Q$1))","v":""},{"$f":"IF($A281=\"N/A\",Ref!$B$36,INDEX(Ranks!$1:$1048576,$A281,R$1))","v":""},{"$f":"IF($A281=\"N/A\",Ref!$B$36,INDEX(Ranks!$1:$1048576,$A281,S$1))","v":""},{"$f":"IF($A281=\"N/A\",Ref!$B$36,INDEX(Ranks!$1:$1048576,$A281,T$1))","v":""},{"$f":"IF($A281=\"N/A\",Ref!$B$36,INDEX(Ranks!$1:$1048576,$A281,U$1))","v":""},{"$f":"IF($A281=\"N/A\",Ref!$B$36,INDEX(Ranks!$1:$1048576,$A281,V$1))","v":""},{"$f":"IF($A281=\"N/A\",Ref!$B$36,INDEX(Ranks!$1:$1048576,$A281,W$1))","v":""},{"$f":"IF($A281=\"N/A\",Ref!$B$36,INDEX(Ranks!$1:$1048576,$A281,X$1))","v":""},{"$f":"IF($A281=\"N/A\",Ref!$B$36,INDEX(Ranks!$1:$1048576,$A281,Y$1))","v":""},{"$f":"IF($A281=\"N/A\",Ref!$B$36,INDEX(Ranks!$1:$1048576,$A281,Z$1))","v":""},{"$f":"IF($A281=\"N/A\",Ref!$B$36,INDEX(Ranks!$1:$1048576,$A281,AA$1))","v":""},{"$f":"IF($A281=\"N/A\",Ref!$B$36,INDEX(Ranks!$1:$1048576,$A281,AB$1))","v":""},{"$f":"IF($A281=\"N/A\",Ref!$B$36,INDEX(Ranks!$1:$1048576,$A281,AC$1))","v":""},{"$f":"IF($A281=\"N/A\",Ref!$B$36,INDEX(Ranks!$1:$1048576,$A281,AD$1))","v":""},{"$f":"IF($A281=\"N/A\",Ref!$B$36,INDEX(Ranks!$1:$1048576,$A281,AE$1))","v":""},{"$f":"IF($A281=\"N/A\",Ref!$B$36,INDEX(Ranks!$1:$1048576,$A281,AF$1))","v":""},{"$f":"IF($A281=\"N/A\",Ref!$B$36,INDEX(Ranks!$1:$1048576,$A281,AG$1))","v":""},{"$f":"IF($A281=\"N/A\",Ref!$B$36,INDEX(Ranks!$1:$1048576,$A281,AH$1))","v":""},{"$f":"IF($A281=\"N/A\",Ref!$B$36,INDEX(Ranks!$1:$1048576,$A281,AI$1))","v":""},{"$f":"IF($A281=\"N/A\",Ref!$B$36,INDEX(Ranks!$1:$1048576,$A281,AJ$1))","v":""},{"$f":"IF($A281=\"N/A\",Ref!$B$36,INDEX(Ranks!$1:$1048576,$A281,AK$1))","v":""},{"$f":"IF($A281=\"N/A\",Ref!$B$36,INDEX(Ranks!$1:$1048576,$A281,AL$1))","v":""},{"$f":"IF($A281=\"N/A\",Ref!$B$36,INDEX(Ranks!$1:$1048576,$A281,AM$1))","v":""},{"$f":"IF($A281=\"N/A\",Ref!$B$36,INDEX(Ranks!$1:$1048576,$A281,AN$1))","v":""},{"$f":"IF($A281=\"N/A\",Ref!$B$36,INDEX(Ranks!$1:$1048576,$A281,AO$1))","v":""},{"$f":"IF($A281=\"N/A\",Ref!$B$36,INDEX(Ranks!$1:$1048576,$A281,AP$1))","v":""},{"$f":"IF($A281=\"N/A\",Ref!$B$36,INDEX(Ranks!$1:$1048576,$A281,AQ$1))","v":""},{"$f":"IF($A281=\"N/A\",Ref!$B$36,INDEX(Ranks!$1:$1048576,$A281,AR$1))","v":""},{"$f":"IF($A281=\"N/A\",Ref!$B$36,INDEX(Ranks!$1:$1048576,$A281,AS$1))","v":""},{"$f":"IF($A281=\"N/A\",Ref!$B$36,INDEX(Ranks!$1:$1048576,$A281,AT$1))","v":""},{"$f":"IF($A281=\"N/A\",Ref!$B$36,INDEX(Ranks!$1:$1048576,$A281,AU$1))","v":""},{"$f":"IF($A281=\"N/A\",Ref!$B$36,INDEX(Ranks!$1:$1048576,$A281,AV$1))","v":""},{"$f":"IF($A281=\"N/A\",Ref!$B$36,INDEX(Ranks!$1:$1048576,$A281,AW$1))","v":""},{"$f":"IF($A281=\"N/A\",Ref!$B$36,INDEX(Ranks!$1:$1048576,$A281,AX$1))","v":""},{"$f":"IF($A281=\"N/A\",Ref!$B$36,INDEX(Ranks!$1:$1048576,$A281,AY$1))","v":""},{"$f":"IF($A281=\"N/A\",Ref!$B$36,INDEX(Ranks!$1:$1048576,$A281,AZ$1))","v":""},{"$f":"IF($A281=\"N/A\",Ref!$B$36,INDEX(Ranks!$1:$1048576,$A281,BA$1))","v":""},{"$f":"IF($A281=\"N/A\",Ref!$B$36,INDEX(Ranks!$1:$1048576,$A281,BB$1))","v":""},{"$f":"IF($A281=\"N/A\",Ref!$B$36,INDEX(Ranks!$1:$1048576,$A281,BC$1))","v":""},{"$f":"IF($A281=\"N/A\",Ref!$B$36,INDEX(Ranks!$1:$1048576,$A281,BD$1))","v":""},{"$f":"IF($A281=\"N/A\",Ref!$B$36,INDEX(Ranks!$1:$1048576,$A281,BE$1))","v":""},{"$f":"IF($A281=\"N/A\",Ref!$B$36,INDEX(Ranks!$1:$1048576,$A281,BF$1))","v":""},{"$f":"IF($A281=\"N/A\",Ref!$B$36,INDEX(Ranks!$1:$1048576,$A281,BG$1))","v":""},{"$f":"IF($A281=\"N/A\",Ref!$B$36,INDEX(Ranks!$1:$1048576,$A281,BH$1))","v":""},{"$f":"IF($A281=\"N/A\",Ref!$B$36,INDEX(Ranks!$1:$1048576,$A281,BI$1))","v":""},{"$f":"IF($A281=\"N/A\",Ref!$B$36,INDEX(Ranks!$1:$1048576,$A281,BJ$1))","v":""},{"$f":"IF($A281=\"N/A\",Ref!$B$36,INDEX(Ranks!$1:$1048576,$A281,BK$1))","v":""},{"$f":"IF($A281=\"N/A\",Ref!$B$36,INDEX(Ranks!$1:$1048576,$A281,BL$1))","v":""},{"$f":"IF($A281=\"N/A\",Ref!$B$36,INDEX(Ranks!$1:$1048576,$A281,BM$1))","v":""},{"$f":"IF($A281=\"N/A\",Ref!$B$36,INDEX(Ranks!$1:$1048576,$A281,BN$1))","v":""},{"$f":"IF($A281=\"N/A\",Ref!$B$36,INDEX(Ranks!$1:$1048576,$A281,BO$1))","v":""},{"$f":"IF($A281=\"N/A\",Ref!$B$36,INDEX(Ranks!$1:$1048576,$A281,BP$1))","v":""},{"$f":"IF($A281=\"N/A\",Ref!$B$36,INDEX(Ranks!$1:$1048576,$A281,BQ$1))","v":""},{"$f":"IF($A281=\"N/A\",Ref!$B$36,INDEX(Ranks!$1:$1048576,$A281,BR$1))","v":""},{"$f":"IF($A281=\"N/A\",Ref!$B$36,INDEX(Ranks!$1:$1048576,$A281,BS$1))","v":""},{"$f":"IF($A281=\"N/A\",Ref!$B$36,INDEX(Ranks!$1:$1048576,$A281,BT$1))","v":""},{"$f":"IF($A281=\"N/A\",Ref!$B$36,INDEX(Ranks!$1:$1048576,$A281,BU$1))","v":""},{"$f":"IF($A281=\"N/A\",Ref!$B$36,INDEX(Ranks!$1:$1048576,$A281,BV$1))","v":""},{"$f":"IF($A281=\"N/A\",Ref!$B$36,INDEX(Ranks!$1:$1048576,$A281,BW$1))","v":""},{"$f":"IF($A281=\"N/A\",Ref!$B$36,INDEX(Ranks!$1:$1048576,$A281,BX$1))","v":""},{"$f":"IF($A281=\"N/A\",Ref!$B$36,INDEX(Ranks!$1:$1048576,$A281,BY$1))","v":""},{"$f":"IF($A281=\"N/A\",Ref!$B$36,INDEX(Ranks!$1:$1048576,$A281,BZ$1))","v":""},{"$f":"IF($A281=\"N/A\",Ref!$B$36,INDEX(Ranks!$1:$1048576,$A281,CA$1))","v":""},{"$f":"IF($A281=\"N/A\",Ref!$B$36,INDEX(Ranks!$1:$1048576,$A281,CB$1))","v":""},{"$f":"IF($A281=\"N/A\",Ref!$B$36,INDEX(Ranks!$1:$1048576,$A281,CC$1))","v":""},{"$f":"IF($A281=\"N/A\",Ref!$B$36,INDEX(Ranks!$1:$1048576,$A281,CD$1))","v":""},{"$f":"IF($A281=\"N/A\",Ref!$B$36,INDEX(Ranks!$1:$1048576,$A281,CE$1))","v":""},{"$f":"IF($A281=\"N/A\",Ref!$B$36,INDEX(Ranks!$1:$1048576,$A281,CF$1))","v":""},{"$f":"IF($A281=\"N/A\",Ref!$B$36,INDEX(Ranks!$1:$1048576,$A281,CG$1))","v":""},{"$f":"IF($A281=\"N/A\",Ref!$B$36,INDEX(Ranks!$1:$1048576,$A281,CH$1))","v":""},{"$f":"IF($A281=\"N/A\",Ref!$B$36,INDEX(Ranks!$1:$1048576,$A281,CI$1))","v":""},{"$f":"IF($A281=\"N/A\",Ref!$B$36,INDEX(Ranks!$1:$1048576,$A281,CJ$1))","v":""},{"$f":"IF($A281=\"N/A\",Ref!$B$36,INDEX(Ranks!$1:$1048576,$A281,CK$1))","v":""},{"$f":"IF($A281=\"N/A\",Ref!$B$36,INDEX(Ranks!$1:$1048576,$A281,CL$1))","v":""},{"$f":"IF($A281=\"N/A\",Ref!$B$36,INDEX(Ranks!$1:$1048576,$A281,CM$1))","v":""},{"$f":"IF($A281=\"N/A\",Ref!$B$36,INDEX(Ranks!$1:$1048576,$A281,CN$1))","v":""},{"$f":"IF($A281=\"N/A\",Ref!$B$36,INDEX(Ranks!$1:$1048576,$A281,CO$1))","v":""},{"$f":"IF($A281=\"N/A\",Ref!$B$36,INDEX(Ranks!$1:$1048576,$A281,CP$1))","v":""},{"$f":"IF($A281=\"N/A\",Ref!$B$36,INDEX(Ranks!$1:$1048576,$A281,CQ$1))","v":""},{"$f":"IF($A281=\"N/A\",Ref!$B$36,INDEX(Ranks!$1:$1048576,$A281,CR$1))","v":""},{"$f":"IF($A281=\"N/A\",Ref!$B$36,INDEX(Ranks!$1:$1048576,$A281,CS$1))","v":""},{"$f":"IF($A281=\"N/A\",Ref!$B$36,INDEX(Ranks!$1:$1048576,$A281,CT$1))","v":""},{"$f":"IF($A281=\"N/A\",Ref!$B$36,INDEX(Ranks!$1:$1048576,$A281,CU$1))","v":""},{"$f":"IF($A281=\"N/A\",Ref!$B$36,INDEX(Ranks!$1:$1048576,$A281,CV$1))","v":""},{"$f":"IF($A281=\"N/A\",Ref!$B$36,INDEX(Ranks!$1:$1048576,$A281,CW$1))","v":""},{"$f":"IF($A281=\"N/A\",Ref!$B$36,INDEX(Ranks!$1:$1048576,$A281,CX$1))","v":""},{"$f":"IF($A281=\"N/A\",Ref!$B$36,INDEX(Ranks!$1:$1048576,$A281,CY$1))","v":""},{"$f":"IF($A281=\"N/A\",Ref!$B$36,INDEX(Ranks!$1:$1048576,$A281,CZ$1))","v":""},{"$f":"IF($A281=\"N/A\",Ref!$B$36,INDEX(Ranks!$1:$1048576,$A281,DA$1))","v":""},{"$f":"IF($A281=\"N/A\",Ref!$B$36,INDEX(Ranks!$1:$1048576,$A281,DB$1))","v":""},{"$f":"IF($A281=\"N/A\",Ref!$B$36,INDEX(Ranks!$1:$1048576,$A281,DC$1))","v":""},{"$f":"IF($A281=\"N/A\",Ref!$B$36,INDEX(Ranks!$1:$1048576,$A281,DD$1))","v":""},{"$f":"IF($A281=\"N/A\",Ref!$B$36,INDEX(Ranks!$1:$1048576,$A281,DE$1))","v":""},{"$f":"IF($A281=\"N/A\",Ref!$B$36,INDEX(Ranks!$1:$1048576,$A281,DF$1))","v":""},{"$f":"IF($A281=\"N/A\",Ref!$B$36,INDEX(Ranks!$1:$1048576,$A281,DG$1))","v":""},{"$f":"IF($A281=\"N/A\",Ref!$B$36,INDEX(Ranks!$1:$1048576,$A281,DH$1))","v":""},{"$f":"IF($A281=\"N/A\",Ref!$B$36,INDEX(Ranks!$1:$1048576,$A281,DI$1))","v":""},{"$f":"IF($A281=\"N/A\",Ref!$B$36,INDEX(Ranks!$1:$1048576,$A281,DJ$1))","v":""},{"$f":"IF($A281=\"N/A\",Ref!$B$36,INDEX(Ranks!$1:$1048576,$A281,DK$1))","v":""},{"$f":"IF($A281=\"N/A\",Ref!$B$36,INDEX(Ranks!$1:$1048576,$A281,DL$1))","v":""},{"$f":"IF($A281=\"N/A\",Ref!$B$36,INDEX(Ranks!$1:$1048576,$A281,DM$1))","v":""},{"$f":"IF($A281=\"N/A\",Ref!$B$36,INDEX(Ranks!$1:$1048576,$A281,DN$1))","v":""},{"$f":"IF($A281=\"N/A\",Ref!$B$36,INDEX(Ranks!$1:$1048576,$A281,DO$1))","v":""},{"$f":"IF($A281=\"N/A\",Ref!$B$36,INDEX(Ranks!$1:$1048576,$A281,DP$1))","v":""},{"$f":"IF($A281=\"N/A\",Ref!$B$36,INDEX(Ranks!$1:$1048576,$A281,DQ$1))","v":""},{"$f":"IF($A281=\"N/A\",Ref!$B$36,INDEX(Ranks!$1:$1048576,$A281,DR$1))","v":""},{"$f":"IF($A281=\"N/A\",Ref!$B$36,INDEX(Ranks!$1:$1048576,$A281,DS$1))","v":""},{"$f":"IF($A281=\"N/A\",Ref!$B$36,INDEX(Ranks!$1:$1048576,$A281,DT$1))","v":""},{"$f":"IF($A281=\"N/A\",Ref!$B$36,INDEX(Ranks!$1:$1048576,$A281,DU$1))","v":""},{"$f":"IF($A281=\"N/A\",Ref!$B$36,INDEX(Ranks!$1:$1048576,$A281,DV$1))","v":""},{"$f":"IF($A281=\"N/A\",Ref!$B$36,INDEX(Ranks!$1:$1048576,$A281,DW$1))","v":""},{"$f":"IF($A281=\"N/A\",Ref!$B$36,INDEX(Ranks!$1:$1048576,$A281,DX$1))","v":""},{"$f":"IF($A281=\"N/A\",Ref!$B$36,INDEX(Ranks!$1:$1048576,$A281,DY$1))","v":""},{"$f":"IF($A281=\"N/A\",Ref!$B$36,INDEX(Ranks!$1:$1048576,$A281,DZ$1))","v":""},{"$f":"IF($A281=\"N/A\",Ref!$B$36,INDEX(Ranks!$1:$1048576,$A281,EA$1))","v":""},{"$f":"IF($A281=\"N/A\",Ref!$B$36,INDEX(Ranks!$1:$1048576,$A281,EB$1))","v":""}]
[{"$f":"IFERROR(MATCH('Portfolio Page'!L282,Ranks!L:L,0),\"N/A\")","v":"N/A"},null,{"$f":"IF($A282=\"N/A\",\"\",INDEX(Ranks!$1:$1048576,$A282,C$1))","v":""},{"$f":"IF($A282=\"N/A\",Ref!$B$36,INDEX(Ranks!$1:$1048576,$A282,D$1))","v":""},{"$f":"IF($A282=\"N/A\",Ref!$B$36,INDEX(Ranks!$1:$1048576,$A282,E$1))","v":""},{"$f":"IF($A282=\"N/A\",\"\",INDEX(Ranks!$1:$1048576,$A282,F$1))","v":""},{"$f":"IF($A282=\"N/A\",\"\",INDEX(Ranks!$1:$1048576,$A282,G$1))","v":""},{"$f":"IF($A282=\"N/A\",\"\",INDEX(Ranks!$1:$1048576,$A282,H$1))","v":""},{"$f":"IF($A282=\"N/A\",\"\",INDEX(Ranks!$1:$1048576,$A282,I$1))","v":""},{"$f":"IF($A282=\"N/A\",\"\",INDEX(Ranks!$1:$1048576,$A282,J$1))","v":""},{"$f":"IF($A282=\"N/A\",\"\",INDEX(Ranks!$1:$1048576,$A282,K$1))","v":""},null,{"$f":"IF($A282=\"N/A\",Ref!$B$36,INDEX(Ranks!$1:$1048576,$A282,M$1))","v":""},{"$f":"IF($A282=\"N/A\",Ref!$B$36,INDEX(Ranks!$1:$1048576,$A282,N$1))","v":""},{"$f":"IF($A282=\"N/A\",Ref!$B$36,INDEX(Ranks!$1:$1048576,$A282,O$1))","v":""},{"$f":"IF($A282=\"N/A\",Ref!$B$36,INDEX(Ranks!$1:$1048576,$A282,P$1))","v":""},{"$f":"IF($A282=\"N/A\",Ref!$B$36,INDEX(Ranks!$1:$1048576,$A282,Q$1))","v":""},{"$f":"IF($A282=\"N/A\",Ref!$B$36,INDEX(Ranks!$1:$1048576,$A282,R$1))","v":""},{"$f":"IF($A282=\"N/A\",Ref!$B$36,INDEX(Ranks!$1:$1048576,$A282,S$1))","v":""},{"$f":"IF($A282=\"N/A\",Ref!$B$36,INDEX(Ranks!$1:$1048576,$A282,T$1))","v":""},{"$f":"IF($A282=\"N/A\",Ref!$B$36,INDEX(Ranks!$1:$1048576,$A282,U$1))","v":""},{"$f":"IF($A282=\"N/A\",Ref!$B$36,INDEX(Ranks!$1:$1048576,$A282,V$1))","v":""},{"$f":"IF($A282=\"N/A\",Ref!$B$36,INDEX(Ranks!$1:$1048576,$A282,W$1))","v":""},{"$f":"IF($A282=\"N/A\",Ref!$B$36,INDEX(Ranks!$1:$1048576,$A282,X$1))","v":""},{"$f":"IF($A282=\"N/A\",Ref!$B$36,INDEX(Ranks!$1:$1048576,$A282,Y$1))","v":""},{"$f":"IF($A282=\"N/A\",Ref!$B$36,INDEX(Ranks!$1:$1048576,$A282,Z$1))","v":""},{"$f":"IF($A282=\"N/A\",Ref!$B$36,INDEX(Ranks!$1:$1048576,$A282,AA$1))","v":""},{"$f":"IF($A282=\"N/A\",Ref!$B$36,INDEX(Ranks!$1:$1048576,$A282,AB$1))","v":""},{"$f":"IF($A282=\"N/A\",Ref!$B$36,INDEX(Ranks!$1:$1048576,$A282,AC$1))","v":""},{"$f":"IF($A282=\"N/A\",Ref!$B$36,INDEX(Ranks!$1:$1048576,$A282,AD$1))","v":""},{"$f":"IF($A282=\"N/A\",Ref!$B$36,INDEX(Ranks!$1:$1048576,$A282,AE$1))","v":""},{"$f":"IF($A282=\"N/A\",Ref!$B$36,INDEX(Ranks!$1:$1048576,$A282,AF$1))","v":""},{"$f":"IF($A282=\"N/A\",Ref!$B$36,INDEX(Ranks!$1:$1048576,$A282,AG$1))","v":""},{"$f":"IF($A282=\"N/A\",Ref!$B$36,INDEX(Ranks!$1:$1048576,$A282,AH$1))","v":""},{"$f":"IF($A282=\"N/A\",Ref!$B$36,INDEX(Ranks!$1:$1048576,$A282,AI$1))","v":""},{"$f":"IF($A282=\"N/A\",Ref!$B$36,INDEX(Ranks!$1:$1048576,$A282,AJ$1))","v":""},{"$f":"IF($A282=\"N/A\",Ref!$B$36,INDEX(Ranks!$1:$1048576,$A282,AK$1))","v":""},{"$f":"IF($A282=\"N/A\",Ref!$B$36,INDEX(Ranks!$1:$1048576,$A282,AL$1))","v":""},{"$f":"IF($A282=\"N/A\",Ref!$B$36,INDEX(Ranks!$1:$1048576,$A282,AM$1))","v":""},{"$f":"IF($A282=\"N/A\",Ref!$B$36,INDEX(Ranks!$1:$1048576,$A282,AN$1))","v":""},{"$f":"IF($A282=\"N/A\",Ref!$B$36,INDEX(Ranks!$1:$1048576,$A282,AO$1))","v":""},{"$f":"IF($A282=\"N/A\",Ref!$B$36,INDEX(Ranks!$1:$1048576,$A282,AP$1))","v":""},{"$f":"IF($A282=\"N/A\",Ref!$B$36,INDEX(Ranks!$1:$1048576,$A282,AQ$1))","v":""},{"$f":"IF($A282=\"N/A\",Ref!$B$36,INDEX(Ranks!$1:$1048576,$A282,AR$1))","v":""},{"$f":"IF($A282=\"N/A\",Ref!$B$36,INDEX(Ranks!$1:$1048576,$A282,AS$1))","v":""},{"$f":"IF($A282=\"N/A\",Ref!$B$36,INDEX(Ranks!$1:$1048576,$A282,AT$1))","v":""},{"$f":"IF($A282=\"N/A\",Ref!$B$36,INDEX(Ranks!$1:$1048576,$A282,AU$1))","v":""},{"$f":"IF($A282=\"N/A\",Ref!$B$36,INDEX(Ranks!$1:$1048576,$A282,AV$1))","v":""},{"$f":"IF($A282=\"N/A\",Ref!$B$36,INDEX(Ranks!$1:$1048576,$A282,AW$1))","v":""},{"$f":"IF($A282=\"N/A\",Ref!$B$36,INDEX(Ranks!$1:$1048576,$A282,AX$1))","v":""},{"$f":"IF($A282=\"N/A\",Ref!$B$36,INDEX(Ranks!$1:$1048576,$A282,AY$1))","v":""},{"$f":"IF($A282=\"N/A\",Ref!$B$36,INDEX(Ranks!$1:$1048576,$A282,AZ$1))","v":""},{"$f":"IF($A282=\"N/A\",Ref!$B$36,INDEX(Ranks!$1:$1048576,$A282,BA$1))","v":""},{"$f":"IF($A282=\"N/A\",Ref!$B$36,INDEX(Ranks!$1:$1048576,$A282,BB$1))","v":""},{"$f":"IF($A282=\"N/A\",Ref!$B$36,INDEX(Ranks!$1:$1048576,$A282,BC$1))","v":""},{"$f":"IF($A282=\"N/A\",Ref!$B$36,INDEX(Ranks!$1:$1048576,$A282,BD$1))","v":""},{"$f":"IF($A282=\"N/A\",Ref!$B$36,INDEX(Ranks!$1:$1048576,$A282,BE$1))","v":""},{"$f":"IF($A282=\"N/A\",Ref!$B$36,INDEX(Ranks!$1:$1048576,$A282,BF$1))","v":""},{"$f":"IF($A282=\"N/A\",Ref!$B$36,INDEX(Ranks!$1:$1048576,$A282,BG$1))","v":""},{"$f":"IF($A282=\"N/A\",Ref!$B$36,INDEX(Ranks!$1:$1048576,$A282,BH$1))","v":""},{"$f":"IF($A282=\"N/A\",Ref!$B$36,INDEX(Ranks!$1:$1048576,$A282,BI$1))","v":""},{"$f":"IF($A282=\"N/A\",Ref!$B$36,INDEX(Ranks!$1:$1048576,$A282,BJ$1))","v":""},{"$f":"IF($A282=\"N/A\",Ref!$B$36,INDEX(Ranks!$1:$1048576,$A282,BK$1))","v":""},{"$f":"IF($A282=\"N/A\",Ref!$B$36,INDEX(Ranks!$1:$1048576,$A282,BL$1))","v":""},{"$f":"IF($A282=\"N/A\",Ref!$B$36,INDEX(Ranks!$1:$1048576,$A282,BM$1))","v":""},{"$f":"IF($A282=\"N/A\",Ref!$B$36,INDEX(Ranks!$1:$1048576,$A282,BN$1))","v":""},{"$f":"IF($A282=\"N/A\",Ref!$B$36,INDEX(Ranks!$1:$1048576,$A282,BO$1))","v":""},{"$f":"IF($A282=\"N/A\",Ref!$B$36,INDEX(Ranks!$1:$1048576,$A282,BP$1))","v":""},{"$f":"IF($A282=\"N/A\",Ref!$B$36,INDEX(Ranks!$1:$1048576,$A282,BQ$1))","v":""},{"$f":"IF($A282=\"N/A\",Ref!$B$36,INDEX(Ranks!$1:$1048576,$A282,BR$1))","v":""},{"$f":"IF($A282=\"N/A\",Ref!$B$36,INDEX(Ranks!$1:$1048576,$A282,BS$1))","v":""},{"$f":"IF($A282=\"N/A\",Ref!$B$36,INDEX(Ranks!$1:$1048576,$A282,BT$1))","v":""},{"$f":"IF($A282=\"N/A\",Ref!$B$36,INDEX(Ranks!$1:$1048576,$A282,BU$1))","v":""},{"$f":"IF($A282=\"N/A\",Ref!$B$36,INDEX(Ranks!$1:$1048576,$A282,BV$1))","v":""},{"$f":"IF($A282=\"N/A\",Ref!$B$36,INDEX(Ranks!$1:$1048576,$A282,BW$1))","v":""},{"$f":"IF($A282=\"N/A\",Ref!$B$36,INDEX(Ranks!$1:$1048576,$A282,BX$1))","v":""},{"$f":"IF($A282=\"N/A\",Ref!$B$36,INDEX(Ranks!$1:$1048576,$A282,BY$1))","v":""},{"$f":"IF($A282=\"N/A\",Ref!$B$36,INDEX(Ranks!$1:$1048576,$A282,BZ$1))","v":""},{"$f":"IF($A282=\"N/A\",Ref!$B$36,INDEX(Ranks!$1:$1048576,$A282,CA$1))","v":""},{"$f":"IF($A282=\"N/A\",Ref!$B$36,INDEX(Ranks!$1:$1048576,$A282,CB$1))","v":""},{"$f":"IF($A282=\"N/A\",Ref!$B$36,INDEX(Ranks!$1:$1048576,$A282,CC$1))","v":""},{"$f":"IF($A282=\"N/A\",Ref!$B$36,INDEX(Ranks!$1:$1048576,$A282,CD$1))","v":""},{"$f":"IF($A282=\"N/A\",Ref!$B$36,INDEX(Ranks!$1:$1048576,$A282,CE$1))","v":""},{"$f":"IF($A282=\"N/A\",Ref!$B$36,INDEX(Ranks!$1:$1048576,$A282,CF$1))","v":""},{"$f":"IF($A282=\"N/A\",Ref!$B$36,INDEX(Ranks!$1:$1048576,$A282,CG$1))","v":""},{"$f":"IF($A282=\"N/A\",Ref!$B$36,INDEX(Ranks!$1:$1048576,$A282,CH$1))","v":""},{"$f":"IF($A282=\"N/A\",Ref!$B$36,INDEX(Ranks!$1:$1048576,$A282,CI$1))","v":""},{"$f":"IF($A282=\"N/A\",Ref!$B$36,INDEX(Ranks!$1:$1048576,$A282,CJ$1))","v":""},{"$f":"IF($A282=\"N/A\",Ref!$B$36,INDEX(Ranks!$1:$1048576,$A282,CK$1))","v":""},{"$f":"IF($A282=\"N/A\",Ref!$B$36,INDEX(Ranks!$1:$1048576,$A282,CL$1))","v":""},{"$f":"IF($A282=\"N/A\",Ref!$B$36,INDEX(Ranks!$1:$1048576,$A282,CM$1))","v":""},{"$f":"IF($A282=\"N/A\",Ref!$B$36,INDEX(Ranks!$1:$1048576,$A282,CN$1))","v":""},{"$f":"IF($A282=\"N/A\",Ref!$B$36,INDEX(Ranks!$1:$1048576,$A282,CO$1))","v":""},{"$f":"IF($A282=\"N/A\",Ref!$B$36,INDEX(Ranks!$1:$1048576,$A282,CP$1))","v":""},{"$f":"IF($A282=\"N/A\",Ref!$B$36,INDEX(Ranks!$1:$1048576,$A282,CQ$1))","v":""},{"$f":"IF($A282=\"N/A\",Ref!$B$36,INDEX(Ranks!$1:$1048576,$A282,CR$1))","v":""},{"$f":"IF($A282=\"N/A\",Ref!$B$36,INDEX(Ranks!$1:$1048576,$A282,CS$1))","v":""},{"$f":"IF($A282=\"N/A\",Ref!$B$36,INDEX(Ranks!$1:$1048576,$A282,CT$1))","v":""},{"$f":"IF($A282=\"N/A\",Ref!$B$36,INDEX(Ranks!$1:$1048576,$A282,CU$1))","v":""},{"$f":"IF($A282=\"N/A\",Ref!$B$36,INDEX(Ranks!$1:$1048576,$A282,CV$1))","v":""},{"$f":"IF($A282=\"N/A\",Ref!$B$36,INDEX(Ranks!$1:$1048576,$A282,CW$1))","v":""},{"$f":"IF($A282=\"N/A\",Ref!$B$36,INDEX(Ranks!$1:$1048576,$A282,CX$1))","v":""},{"$f":"IF($A282=\"N/A\",Ref!$B$36,INDEX(Ranks!$1:$1048576,$A282,CY$1))","v":""},{"$f":"IF($A282=\"N/A\",Ref!$B$36,INDEX(Ranks!$1:$1048576,$A282,CZ$1))","v":""},{"$f":"IF($A282=\"N/A\",Ref!$B$36,INDEX(Ranks!$1:$1048576,$A282,DA$1))","v":""},{"$f":"IF($A282=\"N/A\",Ref!$B$36,INDEX(Ranks!$1:$1048576,$A282,DB$1))","v":""},{"$f":"IF($A282=\"N/A\",Ref!$B$36,INDEX(Ranks!$1:$1048576,$A282,DC$1))","v":""},{"$f":"IF($A282=\"N/A\",Ref!$B$36,INDEX(Ranks!$1:$1048576,$A282,DD$1))","v":""},{"$f":"IF($A282=\"N/A\",Ref!$B$36,INDEX(Ranks!$1:$1048576,$A282,DE$1))","v":""},{"$f":"IF($A282=\"N/A\",Ref!$B$36,INDEX(Ranks!$1:$1048576,$A282,DF$1))","v":""},{"$f":"IF($A282=\"N/A\",Ref!$B$36,INDEX(Ranks!$1:$1048576,$A282,DG$1))","v":""},{"$f":"IF($A282=\"N/A\",Ref!$B$36,INDEX(Ranks!$1:$1048576,$A282,DH$1))","v":""},{"$f":"IF($A282=\"N/A\",Ref!$B$36,INDEX(Ranks!$1:$1048576,$A282,DI$1))","v":""},{"$f":"IF($A282=\"N/A\",Ref!$B$36,INDEX(Ranks!$1:$1048576,$A282,DJ$1))","v":""},{"$f":"IF($A282=\"N/A\",Ref!$B$36,INDEX(Ranks!$1:$1048576,$A282,DK$1))","v":""},{"$f":"IF($A282=\"N/A\",Ref!$B$36,INDEX(Ranks!$1:$1048576,$A282,DL$1))","v":""},{"$f":"IF($A282=\"N/A\",Ref!$B$36,INDEX(Ranks!$1:$1048576,$A282,DM$1))","v":""},{"$f":"IF($A282=\"N/A\",Ref!$B$36,INDEX(Ranks!$1:$1048576,$A282,DN$1))","v":""},{"$f":"IF($A282=\"N/A\",Ref!$B$36,INDEX(Ranks!$1:$1048576,$A282,DO$1))","v":""},{"$f":"IF($A282=\"N/A\",Ref!$B$36,INDEX(Ranks!$1:$1048576,$A282,DP$1))","v":""},{"$f":"IF($A282=\"N/A\",Ref!$B$36,INDEX(Ranks!$1:$1048576,$A282,DQ$1))","v":""},{"$f":"IF($A282=\"N/A\",Ref!$B$36,INDEX(Ranks!$1:$1048576,$A282,DR$1))","v":""},{"$f":"IF($A282=\"N/A\",Ref!$B$36,INDEX(Ranks!$1:$1048576,$A282,DS$1))","v":""},{"$f":"IF($A282=\"N/A\",Ref!$B$36,INDEX(Ranks!$1:$1048576,$A282,DT$1))","v":""},{"$f":"IF($A282=\"N/A\",Ref!$B$36,INDEX(Ranks!$1:$1048576,$A282,DU$1))","v":""},{"$f":"IF($A282=\"N/A\",Ref!$B$36,INDEX(Ranks!$1:$1048576,$A282,DV$1))","v":""},{"$f":"IF($A282=\"N/A\",Ref!$B$36,INDEX(Ranks!$1:$1048576,$A282,DW$1))","v":""},{"$f":"IF($A282=\"N/A\",Ref!$B$36,INDEX(Ranks!$1:$1048576,$A282,DX$1))","v":""},{"$f":"IF($A282=\"N/A\",Ref!$B$36,INDEX(Ranks!$1:$1048576,$A282,DY$1))","v":""},{"$f":"IF($A282=\"N/A\",Ref!$B$36,INDEX(Ranks!$1:$1048576,$A282,DZ$1))","v":""},{"$f":"IF($A282=\"N/A\",Ref!$B$36,INDEX(Ranks!$1:$1048576,$A282,EA$1))","v":""},{"$f":"IF($A282=\"N/A\",Ref!$B$36,INDEX(Ranks!$1:$1048576,$A282,EB$1))","v":""}]
[{"$f":"IFERROR(MATCH('Portfolio Page'!L283,Ranks!L:L,0),\"N/A\")","v":"N/A"},null,{"$f":"IF($A283=\"N/A\",\"\",INDEX(Ranks!$1:$1048576,$A283,C$1))","v":""},{"$f":"IF($A283=\"N/A\",Ref!$B$36,INDEX(Ranks!$1:$1048576,$A283,D$1))","v":""},{"$f":"IF($A283=\"N/A\",Ref!$B$36,INDEX(Ranks!$1:$1048576,$A283,E$1))","v":""},{"$f":"IF($A283=\"N/A\",\"\",INDEX(Ranks!$1:$1048576,$A283,F$1))","v":""},{"$f":"IF($A283=\"N/A\",\"\",INDEX(Ranks!$1:$1048576,$A283,G$1))","v":""},{"$f":"IF($A283=\"N/A\",\"\",INDEX(Ranks!$1:$1048576,$A283,H$1))","v":""},{"$f":"IF($A283=\"N/A\",\"\",INDEX(Ranks!$1:$1048576,$A283,I$1))","v":""},{"$f":"IF($A283=\"N/A\",\"\",INDEX(Ranks!$1:$1048576,$A283,J$1))","v":""},{"$f":"IF($A283=\"N/A\",\"\",INDEX(Ranks!$1:$1048576,$A283,K$1))","v":""},null,{"$f":"IF($A283=\"N/A\",Ref!$B$36,INDEX(Ranks!$1:$1048576,$A283,M$1))","v":""},{"$f":"IF($A283=\"N/A\",Ref!$B$36,INDEX(Ranks!$1:$1048576,$A283,N$1))","v":""},{"$f":"IF($A283=\"N/A\",Ref!$B$36,INDEX(Ranks!$1:$1048576,$A283,O$1))","v":""},{"$f":"IF($A283=\"N/A\",Ref!$B$36,INDEX(Ranks!$1:$1048576,$A283,P$1))","v":""},{"$f":"IF($A283=\"N/A\",Ref!$B$36,INDEX(Ranks!$1:$1048576,$A283,Q$1))","v":""},{"$f":"IF($A283=\"N/A\",Ref!$B$36,INDEX(Ranks!$1:$1048576,$A283,R$1))","v":""},{"$f":"IF($A283=\"N/A\",Ref!$B$36,INDEX(Ranks!$1:$1048576,$A283,S$1))","v":""},{"$f":"IF($A283=\"N/A\",Ref!$B$36,INDEX(Ranks!$1:$1048576,$A283,T$1))","v":""},{"$f":"IF($A283=\"N/A\",Ref!$B$36,INDEX(Ranks!$1:$1048576,$A283,U$1))","v":""},{"$f":"IF($A283=\"N/A\",Ref!$B$36,INDEX(Ranks!$1:$1048576,$A283,V$1))","v":""},{"$f":"IF($A283=\"N/A\",Ref!$B$36,INDEX(Ranks!$1:$1048576,$A283,W$1))","v":""},{"$f":"IF($A283=\"N/A\",Ref!$B$36,INDEX(Ranks!$1:$1048576,$A283,X$1))","v":""},{"$f":"IF($A283=\"N/A\",Ref!$B$36,INDEX(Ranks!$1:$1048576,$A283,Y$1))","v":""},{"$f":"IF($A283=\"N/A\",Ref!$B$36,INDEX(Ranks!$1:$1048576,$A283,Z$1))","v":""},{"$f":"IF($A283=\"N/A\",Ref!$B$36,INDEX(Ranks!$1:$1048576,$A283,AA$1))","v":""},{"$f":"IF($A283=\"N/A\",Ref!$B$36,INDEX(Ranks!$1:$1048576,$A283,AB$1))","v":""},{"$f":"IF($A283=\"N/A\",Ref!$B$36,INDEX(Ranks!$1:$1048576,$A283,AC$1))","v":""},{"$f":"IF($A283=\"N/A\",Ref!$B$36,INDEX(Ranks!$1:$1048576,$A283,AD$1))","v":""},{"$f":"IF($A283=\"N/A\",Ref!$B$36,INDEX(Ranks!$1:$1048576,$A283,AE$1))","v":""},{"$f":"IF($A283=\"N/A\",Ref!$B$36,INDEX(Ranks!$1:$1048576,$A283,AF$1))","v":""},{"$f":"IF($A283=\"N/A\",Ref!$B$36,INDEX(Ranks!$1:$1048576,$A283,AG$1))","v":""},{"$f":"IF($A283=\"N/A\",Ref!$B$36,INDEX(Ranks!$1:$1048576,$A283,AH$1))","v":""},{"$f":"IF($A283=\"N/A\",Ref!$B$36,INDEX(Ranks!$1:$1048576,$A283,AI$1))","v":""},{"$f":"IF($A283=\"N/A\",Ref!$B$36,INDEX(Ranks!$1:$1048576,$A283,AJ$1))","v":""},{"$f":"IF($A283=\"N/A\",Ref!$B$36,INDEX(Ranks!$1:$1048576,$A283,AK$1))","v":""},{"$f":"IF($A283=\"N/A\",Ref!$B$36,INDEX(Ranks!$1:$1048576,$A283,AL$1))","v":""},{"$f":"IF($A283=\"N/A\",Ref!$B$36,INDEX(Ranks!$1:$1048576,$A283,AM$1))","v":""},{"$f":"IF($A283=\"N/A\",Ref!$B$36,INDEX(Ranks!$1:$1048576,$A283,AN$1))","v":""},{"$f":"IF($A283=\"N/A\",Ref!$B$36,INDEX(Ranks!$1:$1048576,$A283,AO$1))","v":""},{"$f":"IF($A283=\"N/A\",Ref!$B$36,INDEX(Ranks!$1:$1048576,$A283,AP$1))","v":""},{"$f":"IF($A283=\"N/A\",Ref!$B$36,INDEX(Ranks!$1:$1048576,$A283,AQ$1))","v":""},{"$f":"IF($A283=\"N/A\",Ref!$B$36,INDEX(Ranks!$1:$1048576,$A283,AR$1))","v":""},{"$f":"IF($A283=\"N/A\",Ref!$B$36,INDEX(Ranks!$1:$1048576,$A283,AS$1))","v":""},{"$f":"IF($A283=\"N/A\",Ref!$B$36,INDEX(Ranks!$1:$1048576,$A283,AT$1))","v":""},{"$f":"IF($A283=\"N/A\",Ref!$B$36,INDEX(Ranks!$1:$1048576,$A283,AU$1))","v":""},{"$f":"IF($A283=\"N/A\",Ref!$B$36,INDEX(Ranks!$1:$1048576,$A283,AV$1))","v":""},{"$f":"IF($A283=\"N/A\",Ref!$B$36,INDEX(Ranks!$1:$1048576,$A283,AW$1))","v":""},{"$f":"IF($A283=\"N/A\",Ref!$B$36,INDEX(Ranks!$1:$1048576,$A283,AX$1))","v":""},{"$f":"IF($A283=\"N/A\",Ref!$B$36,INDEX(Ranks!$1:$1048576,$A283,AY$1))","v":""},{"$f":"IF($A283=\"N/A\",Ref!$B$36,INDEX(Ranks!$1:$1048576,$A283,AZ$1))","v":""},{"$f":"IF($A283=\"N/A\",Ref!$B$36,INDEX(Ranks!$1:$1048576,$A283,BA$1))","v":""},{"$f":"IF($A283=\"N/A\",Ref!$B$36,INDEX(Ranks!$1:$1048576,$A283,BB$1))","v":""},{"$f":"IF($A283=\"N/A\",Ref!$B$36,INDEX(Ranks!$1:$1048576,$A283,BC$1))","v":""},{"$f":"IF($A283=\"N/A\",Ref!$B$36,INDEX(Ranks!$1:$1048576,$A283,BD$1))","v":""},{"$f":"IF($A283=\"N/A\",Ref!$B$36,INDEX(Ranks!$1:$1048576,$A283,BE$1))","v":""},{"$f":"IF($A283=\"N/A\",Ref!$B$36,INDEX(Ranks!$1:$1048576,$A283,BF$1))","v":""},{"$f":"IF($A283=\"N/A\",Ref!$B$36,INDEX(Ranks!$1:$1048576,$A283,BG$1))","v":""},{"$f":"IF($A283=\"N/A\",Ref!$B$36,INDEX(Ranks!$1:$1048576,$A283,BH$1))","v":""},{"$f":"IF($A283=\"N/A\",Ref!$B$36,INDEX(Ranks!$1:$1048576,$A283,BI$1))","v":""},{"$f":"IF($A283=\"N/A\",Ref!$B$36,INDEX(Ranks!$1:$1048576,$A283,BJ$1))","v":""},{"$f":"IF($A283=\"N/A\",Ref!$B$36,INDEX(Ranks!$1:$1048576,$A283,BK$1))","v":""},{"$f":"IF($A283=\"N/A\",Ref!$B$36,INDEX(Ranks!$1:$1048576,$A283,BL$1))","v":""},{"$f":"IF($A283=\"N/A\",Ref!$B$36,INDEX(Ranks!$1:$1048576,$A283,BM$1))","v":""},{"$f":"IF($A283=\"N/A\",Ref!$B$36,INDEX(Ranks!$1:$1048576,$A283,BN$1))","v":""},{"$f":"IF($A283=\"N/A\",Ref!$B$36,INDEX(Ranks!$1:$1048576,$A283,BO$1))","v":""},{"$f":"IF($A283=\"N/A\",Ref!$B$36,INDEX(Ranks!$1:$1048576,$A283,BP$1))","v":""},{"$f":"IF($A283=\"N/A\",Ref!$B$36,INDEX(Ranks!$1:$1048576,$A283,BQ$1))","v":""},{"$f":"IF($A283=\"N/A\",Ref!$B$36,INDEX(Ranks!$1:$1048576,$A283,BR$1))","v":""},{"$f":"IF($A283=\"N/A\",Ref!$B$36,INDEX(Ranks!$1:$1048576,$A283,BS$1))","v":""},{"$f":"IF($A283=\"N/A\",Ref!$B$36,INDEX(Ranks!$1:$1048576,$A283,BT$1))","v":""},{"$f":"IF($A283=\"N/A\",Ref!$B$36,INDEX(Ranks!$1:$1048576,$A283,BU$1))","v":""},{"$f":"IF($A283=\"N/A\",Ref!$B$36,INDEX(Ranks!$1:$1048576,$A283,BV$1))","v":""},{"$f":"IF($A283=\"N/A\",Ref!$B$36,INDEX(Ranks!$1:$1048576,$A283,BW$1))","v":""},{"$f":"IF($A283=\"N/A\",Ref!$B$36,INDEX(Ranks!$1:$1048576,$A283,BX$1))","v":""},{"$f":"IF($A283=\"N/A\",Ref!$B$36,INDEX(Ranks!$1:$1048576,$A283,BY$1))","v":""},{"$f":"IF($A283=\"N/A\",Ref!$B$36,INDEX(Ranks!$1:$1048576,$A283,BZ$1))","v":""},{"$f":"IF($A283=\"N/A\",Ref!$B$36,INDEX(Ranks!$1:$1048576,$A283,CA$1))","v":""},{"$f":"IF($A283=\"N/A\",Ref!$B$36,INDEX(Ranks!$1:$1048576,$A283,CB$1))","v":""},{"$f":"IF($A283=\"N/A\",Ref!$B$36,INDEX(Ranks!$1:$1048576,$A283,CC$1))","v":""},{"$f":"IF($A283=\"N/A\",Ref!$B$36,INDEX(Ranks!$1:$1048576,$A283,CD$1))","v":""},{"$f":"IF($A283=\"N/A\",Ref!$B$36,INDEX(Ranks!$1:$1048576,$A283,CE$1))","v":""},{"$f":"IF($A283=\"N/A\",Ref!$B$36,INDEX(Ranks!$1:$1048576,$A283,CF$1))","v":""},{"$f":"IF($A283=\"N/A\",Ref!$B$36,INDEX(Ranks!$1:$1048576,$A283,CG$1))","v":""},{"$f":"IF($A283=\"N/A\",Ref!$B$36,INDEX(Ranks!$1:$1048576,$A283,CH$1))","v":""},{"$f":"IF($A283=\"N/A\",Ref!$B$36,INDEX(Ranks!$1:$1048576,$A283,CI$1))","v":""},{"$f":"IF($A283=\"N/A\",Ref!$B$36,INDEX(Ranks!$1:$1048576,$A283,CJ$1))","v":""},{"$f":"IF($A283=\"N/A\",Ref!$B$36,INDEX(Ranks!$1:$1048576,$A283,CK$1))","v":""},{"$f":"IF($A283=\"N/A\",Ref!$B$36,INDEX(Ranks!$1:$1048576,$A283,CL$1))","v":""},{"$f":"IF($A283=\"N/A\",Ref!$B$36,INDEX(Ranks!$1:$1048576,$A283,CM$1))","v":""},{"$f":"IF($A283=\"N/A\",Ref!$B$36,INDEX(Ranks!$1:$1048576,$A283,CN$1))","v":""},{"$f":"IF($A283=\"N/A\",Ref!$B$36,INDEX(Ranks!$1:$1048576,$A283,CO$1))","v":""},{"$f":"IF($A283=\"N/A\",Ref!$B$36,INDEX(Ranks!$1:$1048576,$A283,CP$1))","v":""},{"$f":"IF($A283=\"N/A\",Ref!$B$36,INDEX(Ranks!$1:$1048576,$A283,CQ$1))","v":""},{"$f":"IF($A283=\"N/A\",Ref!$B$36,INDEX(Ranks!$1:$1048576,$A283,CR$1))","v":""},{"$f":"IF($A283=\"N/A\",Ref!$B$36,INDEX(Ranks!$1:$1048576,$A283,CS$1))","v":""},{"$f":"IF($A283=\"N/A\",Ref!$B$36,INDEX(Ranks!$1:$1048576,$A283,CT$1))","v":""},{"$f":"IF($A283=\"N/A\",Ref!$B$36,INDEX(Ranks!$1:$1048576,$A283,CU$1))","v":""},{"$f":"IF($A283=\"N/A\",Ref!$B$36,INDEX(Ranks!$1:$1048576,$A283,CV$1))","v":""},{"$f":"IF($A283=\"N/A\",Ref!$B$36,INDEX(Ranks!$1:$1048576,$A283,CW$1))","v":""},{"$f":"IF($A283=\"N/A\",Ref!$B$36,INDEX(Ranks!$1:$1048576,$A283,CX$1))","v":""},{"$f":"IF($A283=\"N/A\",Ref!$B$36,INDEX(Ranks!$1:$1048576,$A283,CY$1))","v":""},{"$f":"IF($A283=\"N/A\",Ref!$B$36,INDEX(Ranks!$1:$1048576,$A283,CZ$1))","v":""},{"$f":"IF($A283=\"N/A\",Ref!$B$36,INDEX(Ranks!$1:$1048576,$A283,DA$1))","v":""},{"$f":"IF($A283=\"N/A\",Ref!$B$36,INDEX(Ranks!$1:$1048576,$A283,DB$1))","v":""},{"$f":"IF($A283=\"N/A\",Ref!$B$36,INDEX(Ranks!$1:$1048576,$A283,DC$1))","v":""},{"$f":"IF($A283=\"N/A\",Ref!$B$36,INDEX(Ranks!$1:$1048576,$A283,DD$1))","v":""},{"$f":"IF($A283=\"N/A\",Ref!$B$36,INDEX(Ranks!$1:$1048576,$A283,DE$1))","v":""},{"$f":"IF($A283=\"N/A\",Ref!$B$36,INDEX(Ranks!$1:$1048576,$A283,DF$1))","v":""},{"$f":"IF($A283=\"N/A\",Ref!$B$36,INDEX(Ranks!$1:$1048576,$A283,DG$1))","v":""},{"$f":"IF($A283=\"N/A\",Ref!$B$36,INDEX(Ranks!$1:$1048576,$A283,DH$1))","v":""},{"$f":"IF($A283=\"N/A\",Ref!$B$36,INDEX(Ranks!$1:$1048576,$A283,DI$1))","v":""},{"$f":"IF($A283=\"N/A\",Ref!$B$36,INDEX(Ranks!$1:$1048576,$A283,DJ$1))","v":""},{"$f":"IF($A283=\"N/A\",Ref!$B$36,INDEX(Ranks!$1:$1048576,$A283,DK$1))","v":""},{"$f":"IF($A283=\"N/A\",Ref!$B$36,INDEX(Ranks!$1:$1048576,$A283,DL$1))","v":""},{"$f":"IF($A283=\"N/A\",Ref!$B$36,INDEX(Ranks!$1:$1048576,$A283,DM$1))","v":""},{"$f":"IF($A283=\"N/A\",Ref!$B$36,INDEX(Ranks!$1:$1048576,$A283,DN$1))","v":""},{"$f":"IF($A283=\"N/A\",Ref!$B$36,INDEX(Ranks!$1:$1048576,$A283,DO$1))","v":""},{"$f":"IF($A283=\"N/A\",Ref!$B$36,INDEX(Ranks!$1:$1048576,$A283,DP$1))","v":""},{"$f":"IF($A283=\"N/A\",Ref!$B$36,INDEX(Ranks!$1:$1048576,$A283,DQ$1))","v":""},{"$f":"IF($A283=\"N/A\",Ref!$B$36,INDEX(Ranks!$1:$1048576,$A283,DR$1))","v":""},{"$f":"IF($A283=\"N/A\",Ref!$B$36,INDEX(Ranks!$1:$1048576,$A283,DS$1))","v":""},{"$f":"IF($A283=\"N/A\",Ref!$B$36,INDEX(Ranks!$1:$1048576,$A283,DT$1))","v":""},{"$f":"IF($A283=\"N/A\",Ref!$B$36,INDEX(Ranks!$1:$1048576,$A283,DU$1))","v":""},{"$f":"IF($A283=\"N/A\",Ref!$B$36,INDEX(Ranks!$1:$1048576,$A283,DV$1))","v":""},{"$f":"IF($A283=\"N/A\",Ref!$B$36,INDEX(Ranks!$1:$1048576,$A283,DW$1))","v":""},{"$f":"IF($A283=\"N/A\",Ref!$B$36,INDEX(Ranks!$1:$1048576,$A283,DX$1))","v":""},{"$f":"IF($A283=\"N/A\",Ref!$B$36,INDEX(Ranks!$1:$1048576,$A283,DY$1))","v":""},{"$f":"IF($A283=\"N/A\",Ref!$B$36,INDEX(Ranks!$1:$1048576,$A283,DZ$1))","v":""},{"$f":"IF($A283=\"N/A\",Ref!$B$36,INDEX(Ranks!$1:$1048576,$A283,EA$1))","v":""},{"$f":"IF($A283=\"N/A\",Ref!$B$36,INDEX(Ranks!$1:$1048576,$A283,EB$1))","v":""}]
[{"$f":"IFERROR(MATCH('Portfolio Page'!L284,Ranks!L:L,0),\"N/A\")","v":"N/A"},null,{"$f":"IF($A284=\"N/A\",\"\",INDEX(Ranks!$1:$1048576,$A284,C$1))","v":""},{"$f":"IF($A284=\"N/A\",Ref!$B$36,INDEX(Ranks!$1:$1048576,$A284,D$1))","v":""},{"$f":"IF($A284=\"N/A\",Ref!$B$36,INDEX(Ranks!$1:$1048576,$A284,E$1))","v":""},{"$f":"IF($A284=\"N/A\",\"\",INDEX(Ranks!$1:$1048576,$A284,F$1))","v":""},{"$f":"IF($A284=\"N/A\",\"\",INDEX(Ranks!$1:$1048576,$A284,G$1))","v":""},{"$f":"IF($A284=\"N/A\",\"\",INDEX(Ranks!$1:$1048576,$A284,H$1))","v":""},{"$f":"IF($A284=\"N/A\",\"\",INDEX(Ranks!$1:$1048576,$A284,I$1))","v":""},{"$f":"IF($A284=\"N/A\",\"\",INDEX(Ranks!$1:$1048576,$A284,J$1))","v":""},{"$f":"IF($A284=\"N/A\",\"\",INDEX(Ranks!$1:$1048576,$A284,K$1))","v":""},null,{"$f":"IF($A284=\"N/A\",Ref!$B$36,INDEX(Ranks!$1:$1048576,$A284,M$1))","v":""},{"$f":"IF($A284=\"N/A\",Ref!$B$36,INDEX(Ranks!$1:$1048576,$A284,N$1))","v":""},{"$f":"IF($A284=\"N/A\",Ref!$B$36,INDEX(Ranks!$1:$1048576,$A284,O$1))","v":""},{"$f":"IF($A284=\"N/A\",Ref!$B$36,INDEX(Ranks!$1:$1048576,$A284,P$1))","v":""},{"$f":"IF($A284=\"N/A\",Ref!$B$36,INDEX(Ranks!$1:$1048576,$A284,Q$1))","v":""},{"$f":"IF($A284=\"N/A\",Ref!$B$36,INDEX(Ranks!$1:$1048576,$A284,R$1))","v":""},{"$f":"IF($A284=\"N/A\",Ref!$B$36,INDEX(Ranks!$1:$1048576,$A284,S$1))","v":""},{"$f":"IF($A284=\"N/A\",Ref!$B$36,INDEX(Ranks!$1:$1048576,$A284,T$1))","v":""},{"$f":"IF($A284=\"N/A\",Ref!$B$36,INDEX(Ranks!$1:$1048576,$A284,U$1))","v":""},{"$f":"IF($A284=\"N/A\",Ref!$B$36,INDEX(Ranks!$1:$1048576,$A284,V$1))","v":""},{"$f":"IF($A284=\"N/A\",Ref!$B$36,INDEX(Ranks!$1:$1048576,$A284,W$1))","v":""},{"$f":"IF($A284=\"N/A\",Ref!$B$36,INDEX(Ranks!$1:$1048576,$A284,X$1))","v":""},{"$f":"IF($A284=\"N/A\",Ref!$B$36,INDEX(Ranks!$1:$1048576,$A284,Y$1))","v":""},{"$f":"IF($A284=\"N/A\",Ref!$B$36,INDEX(Ranks!$1:$1048576,$A284,Z$1))","v":""},{"$f":"IF($A284=\"N/A\",Ref!$B$36,INDEX(Ranks!$1:$1048576,$A284,AA$1))","v":""},{"$f":"IF($A284=\"N/A\",Ref!$B$36,INDEX(Ranks!$1:$1048576,$A284,AB$1))","v":""},{"$f":"IF($A284=\"N/A\",Ref!$B$36,INDEX(Ranks!$1:$1048576,$A284,AC$1))","v":""},{"$f":"IF($A284=\"N/A\",Ref!$B$36,INDEX(Ranks!$1:$1048576,$A284,AD$1))","v":""},{"$f":"IF($A284=\"N/A\",Ref!$B$36,INDEX(Ranks!$1:$1048576,$A284,AE$1))","v":""},{"$f":"IF($A284=\"N/A\",Ref!$B$36,INDEX(Ranks!$1:$1048576,$A284,AF$1))","v":""},{"$f":"IF($A284=\"N/A\",Ref!$B$36,INDEX(Ranks!$1:$1048576,$A284,AG$1))","v":""},{"$f":"IF($A284=\"N/A\",Ref!$B$36,INDEX(Ranks!$1:$1048576,$A284,AH$1))","v":""},{"$f":"IF($A284=\"N/A\",Ref!$B$36,INDEX(Ranks!$1:$1048576,$A284,AI$1))","v":""},{"$f":"IF($A284=\"N/A\",Ref!$B$36,INDEX(Ranks!$1:$1048576,$A284,AJ$1))","v":""},{"$f":"IF($A284=\"N/A\",Ref!$B$36,INDEX(Ranks!$1:$1048576,$A284,AK$1))","v":""},{"$f":"IF($A284=\"N/A\",Ref!$B$36,INDEX(Ranks!$1:$1048576,$A284,AL$1))","v":""},{"$f":"IF($A284=\"N/A\",Ref!$B$36,INDEX(Ranks!$1:$1048576,$A284,AM$1))","v":""},{"$f":"IF($A284=\"N/A\",Ref!$B$36,INDEX(Ranks!$1:$1048576,$A284,AN$1))","v":""},{"$f":"IF($A284=\"N/A\",Ref!$B$36,INDEX(Ranks!$1:$1048576,$A284,AO$1))","v":""},{"$f":"IF($A284=\"N/A\",Ref!$B$36,INDEX(Ranks!$1:$1048576,$A284,AP$1))","v":""},{"$f":"IF($A284=\"N/A\",Ref!$B$36,INDEX(Ranks!$1:$1048576,$A284,AQ$1))","v":""},{"$f":"IF($A284=\"N/A\",Ref!$B$36,INDEX(Ranks!$1:$1048576,$A284,AR$1))","v":""},{"$f":"IF($A284=\"N/A\",Ref!$B$36,INDEX(Ranks!$1:$1048576,$A284,AS$1))","v":""},{"$f":"IF($A284=\"N/A\",Ref!$B$36,INDEX(Ranks!$1:$1048576,$A284,AT$1))","v":""},{"$f":"IF($A284=\"N/A\",Ref!$B$36,INDEX(Ranks!$1:$1048576,$A284,AU$1))","v":""},{"$f":"IF($A284=\"N/A\",Ref!$B$36,INDEX(Ranks!$1:$1048576,$A284,AV$1))","v":""},{"$f":"IF($A284=\"N/A\",Ref!$B$36,INDEX(Ranks!$1:$1048576,$A284,AW$1))","v":""},{"$f":"IF($A284=\"N/A\",Ref!$B$36,INDEX(Ranks!$1:$1048576,$A284,AX$1))","v":""},{"$f":"IF($A284=\"N/A\",Ref!$B$36,INDEX(Ranks!$1:$1048576,$A284,AY$1))","v":""},{"$f":"IF($A284=\"N/A\",Ref!$B$36,INDEX(Ranks!$1:$1048576,$A284,AZ$1))","v":""},{"$f":"IF($A284=\"N/A\",Ref!$B$36,INDEX(Ranks!$1:$1048576,$A284,BA$1))","v":""},{"$f":"IF($A284=\"N/A\",Ref!$B$36,INDEX(Ranks!$1:$1048576,$A284,BB$1))","v":""},{"$f":"IF($A284=\"N/A\",Ref!$B$36,INDEX(Ranks!$1:$1048576,$A284,BC$1))","v":""},{"$f":"IF($A284=\"N/A\",Ref!$B$36,INDEX(Ranks!$1:$1048576,$A284,BD$1))","v":""},{"$f":"IF($A284=\"N/A\",Ref!$B$36,INDEX(Ranks!$1:$1048576,$A284,BE$1))","v":""},{"$f":"IF($A284=\"N/A\",Ref!$B$36,INDEX(Ranks!$1:$1048576,$A284,BF$1))","v":""},{"$f":"IF($A284=\"N/A\",Ref!$B$36,INDEX(Ranks!$1:$1048576,$A284,BG$1))","v":""},{"$f":"IF($A284=\"N/A\",Ref!$B$36,INDEX(Ranks!$1:$1048576,$A284,BH$1))","v":""},{"$f":"IF($A284=\"N/A\",Ref!$B$36,INDEX(Ranks!$1:$1048576,$A284,BI$1))","v":""},{"$f":"IF($A284=\"N/A\",Ref!$B$36,INDEX(Ranks!$1:$1048576,$A284,BJ$1))","v":""},{"$f":"IF($A284=\"N/A\",Ref!$B$36,INDEX(Ranks!$1:$1048576,$A284,BK$1))","v":""},{"$f":"IF($A284=\"N/A\",Ref!$B$36,INDEX(Ranks!$1:$1048576,$A284,BL$1))","v":""},{"$f":"IF($A284=\"N/A\",Ref!$B$36,INDEX(Ranks!$1:$1048576,$A284,BM$1))","v":""},{"$f":"IF($A284=\"N/A\",Ref!$B$36,INDEX(Ranks!$1:$1048576,$A284,BN$1))","v":""},{"$f":"IF($A284=\"N/A\",Ref!$B$36,INDEX(Ranks!$1:$1048576,$A284,BO$1))","v":""},{"$f":"IF($A284=\"N/A\",Ref!$B$36,INDEX(Ranks!$1:$1048576,$A284,BP$1))","v":""},{"$f":"IF($A284=\"N/A\",Ref!$B$36,INDEX(Ranks!$1:$1048576,$A284,BQ$1))","v":""},{"$f":"IF($A284=\"N/A\",Ref!$B$36,INDEX(Ranks!$1:$1048576,$A284,BR$1))","v":""},{"$f":"IF($A284=\"N/A\",Ref!$B$36,INDEX(Ranks!$1:$1048576,$A284,BS$1))","v":""},{"$f":"IF($A284=\"N/A\",Ref!$B$36,INDEX(Ranks!$1:$1048576,$A284,BT$1))","v":""},{"$f":"IF($A284=\"N/A\",Ref!$B$36,INDEX(Ranks!$1:$1048576,$A284,BU$1))","v":""},{"$f":"IF($A284=\"N/A\",Ref!$B$36,INDEX(Ranks!$1:$1048576,$A284,BV$1))","v":""},{"$f":"IF($A284=\"N/A\",Ref!$B$36,INDEX(Ranks!$1:$1048576,$A284,BW$1))","v":""},{"$f":"IF($A284=\"N/A\",Ref!$B$36,INDEX(Ranks!$1:$1048576,$A284,BX$1))","v":""},{"$f":"IF($A284=\"N/A\",Ref!$B$36,INDEX(Ranks!$1:$1048576,$A284,BY$1))","v":""},{"$f":"IF($A284=\"N/A\",Ref!$B$36,INDEX(Ranks!$1:$1048576,$A284,BZ$1))","v":""},{"$f":"IF($A284=\"N/A\",Ref!$B$36,INDEX(Ranks!$1:$1048576,$A284,CA$1))","v":""},{"$f":"IF($A284=\"N/A\",Ref!$B$36,INDEX(Ranks!$1:$1048576,$A284,CB$1))","v":""},{"$f":"IF($A284=\"N/A\",Ref!$B$36,INDEX(Ranks!$1:$1048576,$A284,CC$1))","v":""},{"$f":"IF($A284=\"N/A\",Ref!$B$36,INDEX(Ranks!$1:$1048576,$A284,CD$1))","v":""},{"$f":"IF($A284=\"N/A\",Ref!$B$36,INDEX(Ranks!$1:$1048576,$A284,CE$1))","v":""},{"$f":"IF($A284=\"N/A\",Ref!$B$36,INDEX(Ranks!$1:$1048576,$A284,CF$1))","v":""},{"$f":"IF($A284=\"N/A\",Ref!$B$36,INDEX(Ranks!$1:$1048576,$A284,CG$1))","v":""},{"$f":"IF($A284=\"N/A\",Ref!$B$36,INDEX(Ranks!$1:$1048576,$A284,CH$1))","v":""},{"$f":"IF($A284=\"N/A\",Ref!$B$36,INDEX(Ranks!$1:$1048576,$A284,CI$1))","v":""},{"$f":"IF($A284=\"N/A\",Ref!$B$36,INDEX(Ranks!$1:$1048576,$A284,CJ$1))","v":""},{"$f":"IF($A284=\"N/A\",Ref!$B$36,INDEX(Ranks!$1:$1048576,$A284,CK$1))","v":""},{"$f":"IF($A284=\"N/A\",Ref!$B$36,INDEX(Ranks!$1:$1048576,$A284,CL$1))","v":""},{"$f":"IF($A284=\"N/A\",Ref!$B$36,INDEX(Ranks!$1:$1048576,$A284,CM$1))","v":""},{"$f":"IF($A284=\"N/A\",Ref!$B$36,INDEX(Ranks!$1:$1048576,$A284,CN$1))","v":""},{"$f":"IF($A284=\"N/A\",Ref!$B$36,INDEX(Ranks!$1:$1048576,$A284,CO$1))","v":""},{"$f":"IF($A284=\"N/A\",Ref!$B$36,INDEX(Ranks!$1:$1048576,$A284,CP$1))","v":""},{"$f":"IF($A284=\"N/A\",Ref!$B$36,INDEX(Ranks!$1:$1048576,$A284,CQ$1))","v":""},{"$f":"IF($A284=\"N/A\",Ref!$B$36,INDEX(Ranks!$1:$1048576,$A284,CR$1))","v":""},{"$f":"IF($A284=\"N/A\",Ref!$B$36,INDEX(Ranks!$1:$1048576,$A284,CS$1))","v":""},{"$f":"IF($A284=\"N/A\",Ref!$B$36,INDEX(Ranks!$1:$1048576,$A284,CT$1))","v":""},{"$f":"IF($A284=\"N/A\",Ref!$B$36,INDEX(Ranks!$1:$1048576,$A284,CU$1))","v":""},{"$f":"IF($A284=\"N/A\",Ref!$B$36,INDEX(Ranks!$1:$1048576,$A284,CV$1))","v":""},{"$f":"IF($A284=\"N/A\",Ref!$B$36,INDEX(Ranks!$1:$1048576,$A284,CW$1))","v":""},{"$f":"IF($A284=\"N/A\",Ref!$B$36,INDEX(Ranks!$1:$1048576,$A284,CX$1))","v":""},{"$f":"IF($A284=\"N/A\",Ref!$B$36,INDEX(Ranks!$1:$1048576,$A284,CY$1))","v":""},{"$f":"IF($A284=\"N/A\",Ref!$B$36,INDEX(Ranks!$1:$1048576,$A284,CZ$1))","v":""},{"$f":"IF($A284=\"N/A\",Ref!$B$36,INDEX(Ranks!$1:$1048576,$A284,DA$1))","v":""},{"$f":"IF($A284=\"N/A\",Ref!$B$36,INDEX(Ranks!$1:$1048576,$A284,DB$1))","v":""},{"$f":"IF($A284=\"N/A\",Ref!$B$36,INDEX(Ranks!$1:$1048576,$A284,DC$1))","v":""},{"$f":"IF($A284=\"N/A\",Ref!$B$36,INDEX(Ranks!$1:$1048576,$A284,DD$1))","v":""},{"$f":"IF($A284=\"N/A\",Ref!$B$36,INDEX(Ranks!$1:$1048576,$A284,DE$1))","v":""},{"$f":"IF($A284=\"N/A\",Ref!$B$36,INDEX(Ranks!$1:$1048576,$A284,DF$1))","v":""},{"$f":"IF($A284=\"N/A\",Ref!$B$36,INDEX(Ranks!$1:$1048576,$A284,DG$1))","v":""},{"$f":"IF($A284=\"N/A\",Ref!$B$36,INDEX(Ranks!$1:$1048576,$A284,DH$1))","v":""},{"$f":"IF($A284=\"N/A\",Ref!$B$36,INDEX(Ranks!$1:$1048576,$A284,DI$1))","v":""},{"$f":"IF($A284=\"N/A\",Ref!$B$36,INDEX(Ranks!$1:$1048576,$A284,DJ$1))","v":""},{"$f":"IF($A284=\"N/A\",Ref!$B$36,INDEX(Ranks!$1:$1048576,$A284,DK$1))","v":""},{"$f":"IF($A284=\"N/A\",Ref!$B$36,INDEX(Ranks!$1:$1048576,$A284,DL$1))","v":""},{"$f":"IF($A284=\"N/A\",Ref!$B$36,INDEX(Ranks!$1:$1048576,$A284,DM$1))","v":""},{"$f":"IF($A284=\"N/A\",Ref!$B$36,INDEX(Ranks!$1:$1048576,$A284,DN$1))","v":""},{"$f":"IF($A284=\"N/A\",Ref!$B$36,INDEX(Ranks!$1:$1048576,$A284,DO$1))","v":""},{"$f":"IF($A284=\"N/A\",Ref!$B$36,INDEX(Ranks!$1:$1048576,$A284,DP$1))","v":""},{"$f":"IF($A284=\"N/A\",Ref!$B$36,INDEX(Ranks!$1:$1048576,$A284,DQ$1))","v":""},{"$f":"IF($A284=\"N/A\",Ref!$B$36,INDEX(Ranks!$1:$1048576,$A284,DR$1))","v":""},{"$f":"IF($A284=\"N/A\",Ref!$B$36,INDEX(Ranks!$1:$1048576,$A284,DS$1))","v":""},{"$f":"IF($A284=\"N/A\",Ref!$B$36,INDEX(Ranks!$1:$1048576,$A284,DT$1))","v":""},{"$f":"IF($A284=\"N/A\",Ref!$B$36,INDEX(Ranks!$1:$1048576,$A284,DU$1))","v":""},{"$f":"IF($A284=\"N/A\",Ref!$B$36,INDEX(Ranks!$1:$1048576,$A284,DV$1))","v":""},{"$f":"IF($A284=\"N/A\",Ref!$B$36,INDEX(Ranks!$1:$1048576,$A284,DW$1))","v":""},{"$f":"IF($A284=\"N/A\",Ref!$B$36,INDEX(Ranks!$1:$1048576,$A284,DX$1))","v":""},{"$f":"IF($A284=\"N/A\",Ref!$B$36,INDEX(Ranks!$1:$1048576,$A284,DY$1))","v":""},{"$f":"IF($A284=\"N/A\",Ref!$B$36,INDEX(Ranks!$1:$1048576,$A284,DZ$1))","v":""},{"$f":"IF($A284=\"N/A\",Ref!$B$36,INDEX(Ranks!$1:$1048576,$A284,EA$1))","v":""},{"$f":"IF($A284=\"N/A\",Ref!$B$36,INDEX(Ranks!$1:$1048576,$A284,EB$1))","v":""}]
[{"$f":"IFERROR(MATCH('Portfolio Page'!L285,Ranks!L:L,0),\"N/A\")","v":"N/A"},null,{"$f":"IF($A285=\"N/A\",\"\",INDEX(Ranks!$1:$1048576,$A285,C$1))","v":""},{"$f":"IF($A285=\"N/A\",Ref!$B$36,INDEX(Ranks!$1:$1048576,$A285,D$1))","v":""},{"$f":"IF($A285=\"N/A\",Ref!$B$36,INDEX(Ranks!$1:$1048576,$A285,E$1))","v":""},{"$f":"IF($A285=\"N/A\",\"\",INDEX(Ranks!$1:$1048576,$A285,F$1))","v":""},{"$f":"IF($A285=\"N/A\",\"\",INDEX(Ranks!$1:$1048576,$A285,G$1))","v":""},{"$f":"IF($A285=\"N/A\",\"\",INDEX(Ranks!$1:$1048576,$A285,H$1))","v":""},{"$f":"IF($A285=\"N/A\",\"\",INDEX(Ranks!$1:$1048576,$A285,I$1))","v":""},{"$f":"IF($A285=\"N/A\",\"\",INDEX(Ranks!$1:$1048576,$A285,J$1))","v":""},{"$f":"IF($A285=\"N/A\",\"\",INDEX(Ranks!$1:$1048576,$A285,K$1))","v":""},null,{"$f":"IF($A285=\"N/A\",Ref!$B$36,INDEX(Ranks!$1:$1048576,$A285,M$1))","v":""},{"$f":"IF($A285=\"N/A\",Ref!$B$36,INDEX(Ranks!$1:$1048576,$A285,N$1))","v":""},{"$f":"IF($A285=\"N/A\",Ref!$B$36,INDEX(Ranks!$1:$1048576,$A285,O$1))","v":""},{"$f":"IF($A285=\"N/A\",Ref!$B$36,INDEX(Ranks!$1:$1048576,$A285,P$1))","v":""},{"$f":"IF($A285=\"N/A\",Ref!$B$36,INDEX(Ranks!$1:$1048576,$A285,Q$1))","v":""},{"$f":"IF($A285=\"N/A\",Ref!$B$36,INDEX(Ranks!$1:$1048576,$A285,R$1))","v":""},{"$f":"IF($A285=\"N/A\",Ref!$B$36,INDEX(Ranks!$1:$1048576,$A285,S$1))","v":""},{"$f":"IF($A285=\"N/A\",Ref!$B$36,INDEX(Ranks!$1:$1048576,$A285,T$1))","v":""},{"$f":"IF($A285=\"N/A\",Ref!$B$36,INDEX(Ranks!$1:$1048576,$A285,U$1))","v":""},{"$f":"IF($A285=\"N/A\",Ref!$B$36,INDEX(Ranks!$1:$1048576,$A285,V$1))","v":""},{"$f":"IF($A285=\"N/A\",Ref!$B$36,INDEX(Ranks!$1:$1048576,$A285,W$1))","v":""},{"$f":"IF($A285=\"N/A\",Ref!$B$36,INDEX(Ranks!$1:$1048576,$A285,X$1))","v":""},{"$f":"IF($A285=\"N/A\",Ref!$B$36,INDEX(Ranks!$1:$1048576,$A285,Y$1))","v":""},{"$f":"IF($A285=\"N/A\",Ref!$B$36,INDEX(Ranks!$1:$1048576,$A285,Z$1))","v":""},{"$f":"IF($A285=\"N/A\",Ref!$B$36,INDEX(Ranks!$1:$1048576,$A285,AA$1))","v":""},{"$f":"IF($A285=\"N/A\",Ref!$B$36,INDEX(Ranks!$1:$1048576,$A285,AB$1))","v":""},{"$f":"IF($A285=\"N/A\",Ref!$B$36,INDEX(Ranks!$1:$1048576,$A285,AC$1))","v":""},{"$f":"IF($A285=\"N/A\",Ref!$B$36,INDEX(Ranks!$1:$1048576,$A285,AD$1))","v":""},{"$f":"IF($A285=\"N/A\",Ref!$B$36,INDEX(Ranks!$1:$1048576,$A285,AE$1))","v":""},{"$f":"IF($A285=\"N/A\",Ref!$B$36,INDEX(Ranks!$1:$1048576,$A285,AF$1))","v":""},{"$f":"IF($A285=\"N/A\",Ref!$B$36,INDEX(Ranks!$1:$1048576,$A285,AG$1))","v":""},{"$f":"IF($A285=\"N/A\",Ref!$B$36,INDEX(Ranks!$1:$1048576,$A285,AH$1))","v":""},{"$f":"IF($A285=\"N/A\",Ref!$B$36,INDEX(Ranks!$1:$1048576,$A285,AI$1))","v":""},{"$f":"IF($A285=\"N/A\",Ref!$B$36,INDEX(Ranks!$1:$1048576,$A285,AJ$1))","v":""},{"$f":"IF($A285=\"N/A\",Ref!$B$36,INDEX(Ranks!$1:$1048576,$A285,AK$1))","v":""},{"$f":"IF($A285=\"N/A\",Ref!$B$36,INDEX(Ranks!$1:$1048576,$A285,AL$1))","v":""},{"$f":"IF($A285=\"N/A\",Ref!$B$36,INDEX(Ranks!$1:$1048576,$A285,AM$1))","v":""},{"$f":"IF($A285=\"N/A\",Ref!$B$36,INDEX(Ranks!$1:$1048576,$A285,AN$1))","v":""},{"$f":"IF($A285=\"N/A\",Ref!$B$36,INDEX(Ranks!$1:$1048576,$A285,AO$1))","v":""},{"$f":"IF($A285=\"N/A\",Ref!$B$36,INDEX(Ranks!$1:$1048576,$A285,AP$1))","v":""},{"$f":"IF($A285=\"N/A\",Ref!$B$36,INDEX(Ranks!$1:$1048576,$A285,AQ$1))","v":""},{"$f":"IF($A285=\"N/A\",Ref!$B$36,INDEX(Ranks!$1:$1048576,$A285,AR$1))","v":""},{"$f":"IF($A285=\"N/A\",Ref!$B$36,INDEX(Ranks!$1:$1048576,$A285,AS$1))","v":""},{"$f":"IF($A285=\"N/A\",Ref!$B$36,INDEX(Ranks!$1:$1048576,$A285,AT$1))","v":""},{"$f":"IF($A285=\"N/A\",Ref!$B$36,INDEX(Ranks!$1:$1048576,$A285,AU$1))","v":""},{"$f":"IF($A285=\"N/A\",Ref!$B$36,INDEX(Ranks!$1:$1048576,$A285,AV$1))","v":""},{"$f":"IF($A285=\"N/A\",Ref!$B$36,INDEX(Ranks!$1:$1048576,$A285,AW$1))","v":""},{"$f":"IF($A285=\"N/A\",Ref!$B$36,INDEX(Ranks!$1:$1048576,$A285,AX$1))","v":""},{"$f":"IF($A285=\"N/A\",Ref!$B$36,INDEX(Ranks!$1:$1048576,$A285,AY$1))","v":""},{"$f":"IF($A285=\"N/A\",Ref!$B$36,INDEX(Ranks!$1:$1048576,$A285,AZ$1))","v":""},{"$f":"IF($A285=\"N/A\",Ref!$B$36,INDEX(Ranks!$1:$1048576,$A285,BA$1))","v":""},{"$f":"IF($A285=\"N/A\",Ref!$B$36,INDEX(Ranks!$1:$1048576,$A285,BB$1))","v":""},{"$f":"IF($A285=\"N/A\",Ref!$B$36,INDEX(Ranks!$1:$1048576,$A285,BC$1))","v":""},{"$f":"IF($A285=\"N/A\",Ref!$B$36,INDEX(Ranks!$1:$1048576,$A285,BD$1))","v":""},{"$f":"IF($A285=\"N/A\",Ref!$B$36,INDEX(Ranks!$1:$1048576,$A285,BE$1))","v":""},{"$f":"IF($A285=\"N/A\",Ref!$B$36,INDEX(Ranks!$1:$1048576,$A285,BF$1))","v":""},{"$f":"IF($A285=\"N/A\",Ref!$B$36,INDEX(Ranks!$1:$1048576,$A285,BG$1))","v":""},{"$f":"IF($A285=\"N/A\",Ref!$B$36,INDEX(Ranks!$1:$1048576,$A285,BH$1))","v":""},{"$f":"IF($A285=\"N/A\",Ref!$B$36,INDEX(Ranks!$1:$1048576,$A285,BI$1))","v":""},{"$f":"IF($A285=\"N/A\",Ref!$B$36,INDEX(Ranks!$1:$1048576,$A285,BJ$1))","v":""},{"$f":"IF($A285=\"N/A\",Ref!$B$36,INDEX(Ranks!$1:$1048576,$A285,BK$1))","v":""},{"$f":"IF($A285=\"N/A\",Ref!$B$36,INDEX(Ranks!$1:$1048576,$A285,BL$1))","v":""},{"$f":"IF($A285=\"N/A\",Ref!$B$36,INDEX(Ranks!$1:$1048576,$A285,BM$1))","v":""},{"$f":"IF($A285=\"N/A\",Ref!$B$36,INDEX(Ranks!$1:$1048576,$A285,BN$1))","v":""},{"$f":"IF($A285=\"N/A\",Ref!$B$36,INDEX(Ranks!$1:$1048576,$A285,BO$1))","v":""},{"$f":"IF($A285=\"N/A\",Ref!$B$36,INDEX(Ranks!$1:$1048576,$A285,BP$1))","v":""},{"$f":"IF($A285=\"N/A\",Ref!$B$36,INDEX(Ranks!$1:$1048576,$A285,BQ$1))","v":""},{"$f":"IF($A285=\"N/A\",Ref!$B$36,INDEX(Ranks!$1:$1048576,$A285,BR$1))","v":""},{"$f":"IF($A285=\"N/A\",Ref!$B$36,INDEX(Ranks!$1:$1048576,$A285,BS$1))","v":""},{"$f":"IF($A285=\"N/A\",Ref!$B$36,INDEX(Ranks!$1:$1048576,$A285,BT$1))","v":""},{"$f":"IF($A285=\"N/A\",Ref!$B$36,INDEX(Ranks!$1:$1048576,$A285,BU$1))","v":""},{"$f":"IF($A285=\"N/A\",Ref!$B$36,INDEX(Ranks!$1:$1048576,$A285,BV$1))","v":""},{"$f":"IF($A285=\"N/A\",Ref!$B$36,INDEX(Ranks!$1:$1048576,$A285,BW$1))","v":""},{"$f":"IF($A285=\"N/A\",Ref!$B$36,INDEX(Ranks!$1:$1048576,$A285,BX$1))","v":""},{"$f":"IF($A285=\"N/A\",Ref!$B$36,INDEX(Ranks!$1:$1048576,$A285,BY$1))","v":""},{"$f":"IF($A285=\"N/A\",Ref!$B$36,INDEX(Ranks!$1:$1048576,$A285,BZ$1))","v":""},{"$f":"IF($A285=\"N/A\",Ref!$B$36,INDEX(Ranks!$1:$1048576,$A285,CA$1))","v":""},{"$f":"IF($A285=\"N/A\",Ref!$B$36,INDEX(Ranks!$1:$1048576,$A285,CB$1))","v":""},{"$f":"IF($A285=\"N/A\",Ref!$B$36,INDEX(Ranks!$1:$1048576,$A285,CC$1))","v":""},{"$f":"IF($A285=\"N/A\",Ref!$B$36,INDEX(Ranks!$1:$1048576,$A285,CD$1))","v":""},{"$f":"IF($A285=\"N/A\",Ref!$B$36,INDEX(Ranks!$1:$1048576,$A285,CE$1))","v":""},{"$f":"IF($A285=\"N/A\",Ref!$B$36,INDEX(Ranks!$1:$1048576,$A285,CF$1))","v":""},{"$f":"IF($A285=\"N/A\",Ref!$B$36,INDEX(Ranks!$1:$1048576,$A285,CG$1))","v":""},{"$f":"IF($A285=\"N/A\",Ref!$B$36,INDEX(Ranks!$1:$1048576,$A285,CH$1))","v":""},{"$f":"IF($A285=\"N/A\",Ref!$B$36,INDEX(Ranks!$1:$1048576,$A285,CI$1))","v":""},{"$f":"IF($A285=\"N/A\",Ref!$B$36,INDEX(Ranks!$1:$1048576,$A285,CJ$1))","v":""},{"$f":"IF($A285=\"N/A\",Ref!$B$36,INDEX(Ranks!$1:$1048576,$A285,CK$1))","v":""},{"$f":"IF($A285=\"N/A\",Ref!$B$36,INDEX(Ranks!$1:$1048576,$A285,CL$1))","v":""},{"$f":"IF($A285=\"N/A\",Ref!$B$36,INDEX(Ranks!$1:$1048576,$A285,CM$1))","v":""},{"$f":"IF($A285=\"N/A\",Ref!$B$36,INDEX(Ranks!$1:$1048576,$A285,CN$1))","v":""},{"$f":"IF($A285=\"N/A\",Ref!$B$36,INDEX(Ranks!$1:$1048576,$A285,CO$1))","v":""},{"$f":"IF($A285=\"N/A\",Ref!$B$36,INDEX(Ranks!$1:$1048576,$A285,CP$1))","v":""},{"$f":"IF($A285=\"N/A\",Ref!$B$36,INDEX(Ranks!$1:$1048576,$A285,CQ$1))","v":""},{"$f":"IF($A285=\"N/A\",Ref!$B$36,INDEX(Ranks!$1:$1048576,$A285,CR$1))","v":""},{"$f":"IF($A285=\"N/A\",Ref!$B$36,INDEX(Ranks!$1:$1048576,$A285,CS$1))","v":""},{"$f":"IF($A285=\"N/A\",Ref!$B$36,INDEX(Ranks!$1:$1048576,$A285,CT$1))","v":""},{"$f":"IF($A285=\"N/A\",Ref!$B$36,INDEX(Ranks!$1:$1048576,$A285,CU$1))","v":""},{"$f":"IF($A285=\"N/A\",Ref!$B$36,INDEX(Ranks!$1:$1048576,$A285,CV$1))","v":""},{"$f":"IF($A285=\"N/A\",Ref!$B$36,INDEX(Ranks!$1:$1048576,$A285,CW$1))","v":""},{"$f":"IF($A285=\"N/A\",Ref!$B$36,INDEX(Ranks!$1:$1048576,$A285,CX$1))","v":""},{"$f":"IF($A285=\"N/A\",Ref!$B$36,INDEX(Ranks!$1:$1048576,$A285,CY$1))","v":""},{"$f":"IF($A285=\"N/A\",Ref!$B$36,INDEX(Ranks!$1:$1048576,$A285,CZ$1))","v":""},{"$f":"IF($A285=\"N/A\",Ref!$B$36,INDEX(Ranks!$1:$1048576,$A285,DA$1))","v":""},{"$f":"IF($A285=\"N/A\",Ref!$B$36,INDEX(Ranks!$1:$1048576,$A285,DB$1))","v":""},{"$f":"IF($A285=\"N/A\",Ref!$B$36,INDEX(Ranks!$1:$1048576,$A285,DC$1))","v":""},{"$f":"IF($A285=\"N/A\",Ref!$B$36,INDEX(Ranks!$1:$1048576,$A285,DD$1))","v":""},{"$f":"IF($A285=\"N/A\",Ref!$B$36,INDEX(Ranks!$1:$1048576,$A285,DE$1))","v":""},{"$f":"IF($A285=\"N/A\",Ref!$B$36,INDEX(Ranks!$1:$1048576,$A285,DF$1))","v":""},{"$f":"IF($A285=\"N/A\",Ref!$B$36,INDEX(Ranks!$1:$1048576,$A285,DG$1))","v":""},{"$f":"IF($A285=\"N/A\",Ref!$B$36,INDEX(Ranks!$1:$1048576,$A285,DH$1))","v":""},{"$f":"IF($A285=\"N/A\",Ref!$B$36,INDEX(Ranks!$1:$1048576,$A285,DI$1))","v":""},{"$f":"IF($A285=\"N/A\",Ref!$B$36,INDEX(Ranks!$1:$1048576,$A285,DJ$1))","v":""},{"$f":"IF($A285=\"N/A\",Ref!$B$36,INDEX(Ranks!$1:$1048576,$A285,DK$1))","v":""},{"$f":"IF($A285=\"N/A\",Ref!$B$36,INDEX(Ranks!$1:$1048576,$A285,DL$1))","v":""},{"$f":"IF($A285=\"N/A\",Ref!$B$36,INDEX(Ranks!$1:$1048576,$A285,DM$1))","v":""},{"$f":"IF($A285=\"N/A\",Ref!$B$36,INDEX(Ranks!$1:$1048576,$A285,DN$1))","v":""},{"$f":"IF($A285=\"N/A\",Ref!$B$36,INDEX(Ranks!$1:$1048576,$A285,DO$1))","v":""},{"$f":"IF($A285=\"N/A\",Ref!$B$36,INDEX(Ranks!$1:$1048576,$A285,DP$1))","v":""},{"$f":"IF($A285=\"N/A\",Ref!$B$36,INDEX(Ranks!$1:$1048576,$A285,DQ$1))","v":""},{"$f":"IF($A285=\"N/A\",Ref!$B$36,INDEX(Ranks!$1:$1048576,$A285,DR$1))","v":""},{"$f":"IF($A285=\"N/A\",Ref!$B$36,INDEX(Ranks!$1:$1048576,$A285,DS$1))","v":""},{"$f":"IF($A285=\"N/A\",Ref!$B$36,INDEX(Ranks!$1:$1048576,$A285,DT$1))","v":""},{"$f":"IF($A285=\"N/A\",Ref!$B$36,INDEX(Ranks!$1:$1048576,$A285,DU$1))","v":""},{"$f":"IF($A285=\"N/A\",Ref!$B$36,INDEX(Ranks!$1:$1048576,$A285,DV$1))","v":""},{"$f":"IF($A285=\"N/A\",Ref!$B$36,INDEX(Ranks!$1:$1048576,$A285,DW$1))","v":""},{"$f":"IF($A285=\"N/A\",Ref!$B$36,INDEX(Ranks!$1:$1048576,$A285,DX$1))","v":""},{"$f":"IF($A285=\"N/A\",Ref!$B$36,INDEX(Ranks!$1:$1048576,$A285,DY$1))","v":""},{"$f":"IF($A285=\"N/A\",Ref!$B$36,INDEX(Ranks!$1:$1048576,$A285,DZ$1))","v":""},{"$f":"IF($A285=\"N/A\",Ref!$B$36,INDEX(Ranks!$1:$1048576,$A285,EA$1))","v":""},{"$f":"IF($A285=\"N/A\",Ref!$B$36,INDEX(Ranks!$1:$1048576,$A285,EB$1))","v":""}]
[{"$f":"IFERROR(MATCH('Portfolio Page'!L286,Ranks!L:L,0),\"N/A\")","v":"N/A"},null,{"$f":"IF($A286=\"N/A\",\"\",INDEX(Ranks!$1:$1048576,$A286,C$1))","v":""},{"$f":"IF($A286=\"N/A\",Ref!$B$36,INDEX(Ranks!$1:$1048576,$A286,D$1))","v":""},{"$f":"IF($A286=\"N/A\",Ref!$B$36,INDEX(Ranks!$1:$1048576,$A286,E$1))","v":""},{"$f":"IF($A286=\"N/A\",\"\",INDEX(Ranks!$1:$1048576,$A286,F$1))","v":""},{"$f":"IF($A286=\"N/A\",\"\",INDEX(Ranks!$1:$1048576,$A286,G$1))","v":""},{"$f":"IF($A286=\"N/A\",\"\",INDEX(Ranks!$1:$1048576,$A286,H$1))","v":""},{"$f":"IF($A286=\"N/A\",\"\",INDEX(Ranks!$1:$1048576,$A286,I$1))","v":""},{"$f":"IF($A286=\"N/A\",\"\",INDEX(Ranks!$1:$1048576,$A286,J$1))","v":""},{"$f":"IF($A286=\"N/A\",\"\",INDEX(Ranks!$1:$1048576,$A286,K$1))","v":""},null,{"$f":"IF($A286=\"N/A\",Ref!$B$36,INDEX(Ranks!$1:$1048576,$A286,M$1))","v":""},{"$f":"IF($A286=\"N/A\",Ref!$B$36,INDEX(Ranks!$1:$1048576,$A286,N$1))","v":""},{"$f":"IF($A286=\"N/A\",Ref!$B$36,INDEX(Ranks!$1:$1048576,$A286,O$1))","v":""},{"$f":"IF($A286=\"N/A\",Ref!$B$36,INDEX(Ranks!$1:$1048576,$A286,P$1))","v":""},{"$f":"IF($A286=\"N/A\",Ref!$B$36,INDEX(Ranks!$1:$1048576,$A286,Q$1))","v":""},{"$f":"IF($A286=\"N/A\",Ref!$B$36,INDEX(Ranks!$1:$1048576,$A286,R$1))","v":""},{"$f":"IF($A286=\"N/A\",Ref!$B$36,INDEX(Ranks!$1:$1048576,$A286,S$1))","v":""},{"$f":"IF($A286=\"N/A\",Ref!$B$36,INDEX(Ranks!$1:$1048576,$A286,T$1))","v":""},{"$f":"IF($A286=\"N/A\",Ref!$B$36,INDEX(Ranks!$1:$1048576,$A286,U$1))","v":""},{"$f":"IF($A286=\"N/A\",Ref!$B$36,INDEX(Ranks!$1:$1048576,$A286,V$1))","v":""},{"$f":"IF($A286=\"N/A\",Ref!$B$36,INDEX(Ranks!$1:$1048576,$A286,W$1))","v":""},{"$f":"IF($A286=\"N/A\",Ref!$B$36,INDEX(Ranks!$1:$1048576,$A286,X$1))","v":""},{"$f":"IF($A286=\"N/A\",Ref!$B$36,INDEX(Ranks!$1:$1048576,$A286,Y$1))","v":""},{"$f":"IF($A286=\"N/A\",Ref!$B$36,INDEX(Ranks!$1:$1048576,$A286,Z$1))","v":""},{"$f":"IF($A286=\"N/A\",Ref!$B$36,INDEX(Ranks!$1:$1048576,$A286,AA$1))","v":""},{"$f":"IF($A286=\"N/A\",Ref!$B$36,INDEX(Ranks!$1:$1048576,$A286,AB$1))","v":""},{"$f":"IF($A286=\"N/A\",Ref!$B$36,INDEX(Ranks!$1:$1048576,$A286,AC$1))","v":""},{"$f":"IF($A286=\"N/A\",Ref!$B$36,INDEX(Ranks!$1:$1048576,$A286,AD$1))","v":""},{"$f":"IF($A286=\"N/A\",Ref!$B$36,INDEX(Ranks!$1:$1048576,$A286,AE$1))","v":""},{"$f":"IF($A286=\"N/A\",Ref!$B$36,INDEX(Ranks!$1:$1048576,$A286,AF$1))","v":""},{"$f":"IF($A286=\"N/A\",Ref!$B$36,INDEX(Ranks!$1:$1048576,$A286,AG$1))","v":""},{"$f":"IF($A286=\"N/A\",Ref!$B$36,INDEX(Ranks!$1:$1048576,$A286,AH$1))","v":""},{"$f":"IF($A286=\"N/A\",Ref!$B$36,INDEX(Ranks!$1:$1048576,$A286,AI$1))","v":""},{"$f":"IF($A286=\"N/A\",Ref!$B$36,INDEX(Ranks!$1:$1048576,$A286,AJ$1))","v":""},{"$f":"IF($A286=\"N/A\",Ref!$B$36,INDEX(Ranks!$1:$1048576,$A286,AK$1))","v":""},{"$f":"IF($A286=\"N/A\",Ref!$B$36,INDEX(Ranks!$1:$1048576,$A286,AL$1))","v":""},{"$f":"IF($A286=\"N/A\",Ref!$B$36,INDEX(Ranks!$1:$1048576,$A286,AM$1))","v":""},{"$f":"IF($A286=\"N/A\",Ref!$B$36,INDEX(Ranks!$1:$1048576,$A286,AN$1))","v":""},{"$f":"IF($A286=\"N/A\",Ref!$B$36,INDEX(Ranks!$1:$1048576,$A286,AO$1))","v":""},{"$f":"IF($A286=\"N/A\",Ref!$B$36,INDEX(Ranks!$1:$1048576,$A286,AP$1))","v":""},{"$f":"IF($A286=\"N/A\",Ref!$B$36,INDEX(Ranks!$1:$1048576,$A286,AQ$1))","v":""},{"$f":"IF($A286=\"N/A\",Ref!$B$36,INDEX(Ranks!$1:$1048576,$A286,AR$1))","v":""},{"$f":"IF($A286=\"N/A\",Ref!$B$36,INDEX(Ranks!$1:$1048576,$A286,AS$1))","v":""},{"$f":"IF($A286=\"N/A\",Ref!$B$36,INDEX(Ranks!$1:$1048576,$A286,AT$1))","v":""},{"$f":"IF($A286=\"N/A\",Ref!$B$36,INDEX(Ranks!$1:$1048576,$A286,AU$1))","v":""},{"$f":"IF($A286=\"N/A\",Ref!$B$36,INDEX(Ranks!$1:$1048576,$A286,AV$1))","v":""},{"$f":"IF($A286=\"N/A\",Ref!$B$36,INDEX(Ranks!$1:$1048576,$A286,AW$1))","v":""},{"$f":"IF($A286=\"N/A\",Ref!$B$36,INDEX(Ranks!$1:$1048576,$A286,AX$1))","v":""},{"$f":"IF($A286=\"N/A\",Ref!$B$36,INDEX(Ranks!$1:$1048576,$A286,AY$1))","v":""},{"$f":"IF($A286=\"N/A\",Ref!$B$36,INDEX(Ranks!$1:$1048576,$A286,AZ$1))","v":""},{"$f":"IF($A286=\"N/A\",Ref!$B$36,INDEX(Ranks!$1:$1048576,$A286,BA$1))","v":""},{"$f":"IF($A286=\"N/A\",Ref!$B$36,INDEX(Ranks!$1:$1048576,$A286,BB$1))","v":""},{"$f":"IF($A286=\"N/A\",Ref!$B$36,INDEX(Ranks!$1:$1048576,$A286,BC$1))","v":""},{"$f":"IF($A286=\"N/A\",Ref!$B$36,INDEX(Ranks!$1:$1048576,$A286,BD$1))","v":""},{"$f":"IF($A286=\"N/A\",Ref!$B$36,INDEX(Ranks!$1:$1048576,$A286,BE$1))","v":""},{"$f":"IF($A286=\"N/A\",Ref!$B$36,INDEX(Ranks!$1:$1048576,$A286,BF$1))","v":""},{"$f":"IF($A286=\"N/A\",Ref!$B$36,INDEX(Ranks!$1:$1048576,$A286,BG$1))","v":""},{"$f":"IF($A286=\"N/A\",Ref!$B$36,INDEX(Ranks!$1:$1048576,$A286,BH$1))","v":""},{"$f":"IF($A286=\"N/A\",Ref!$B$36,INDEX(Ranks!$1:$1048576,$A286,BI$1))","v":""},{"$f":"IF($A286=\"N/A\",Ref!$B$36,INDEX(Ranks!$1:$1048576,$A286,BJ$1))","v":""},{"$f":"IF($A286=\"N/A\",Ref!$B$36,INDEX(Ranks!$1:$1048576,$A286,BK$1))","v":""},{"$f":"IF($A286=\"N/A\",Ref!$B$36,INDEX(Ranks!$1:$1048576,$A286,BL$1))","v":""},{"$f":"IF($A286=\"N/A\",Ref!$B$36,INDEX(Ranks!$1:$1048576,$A286,BM$1))","v":""},{"$f":"IF($A286=\"N/A\",Ref!$B$36,INDEX(Ranks!$1:$1048576,$A286,BN$1))","v":""},{"$f":"IF($A286=\"N/A\",Ref!$B$36,INDEX(Ranks!$1:$1048576,$A286,BO$1))","v":""},{"$f":"IF($A286=\"N/A\",Ref!$B$36,INDEX(Ranks!$1:$1048576,$A286,BP$1))","v":""},{"$f":"IF($A286=\"N/A\",Ref!$B$36,INDEX(Ranks!$1:$1048576,$A286,BQ$1))","v":""},{"$f":"IF($A286=\"N/A\",Ref!$B$36,INDEX(Ranks!$1:$1048576,$A286,BR$1))","v":""},{"$f":"IF($A286=\"N/A\",Ref!$B$36,INDEX(Ranks!$1:$1048576,$A286,BS$1))","v":""},{"$f":"IF($A286=\"N/A\",Ref!$B$36,INDEX(Ranks!$1:$1048576,$A286,BT$1))","v":""},{"$f":"IF($A286=\"N/A\",Ref!$B$36,INDEX(Ranks!$1:$1048576,$A286,BU$1))","v":""},{"$f":"IF($A286=\"N/A\",Ref!$B$36,INDEX(Ranks!$1:$1048576,$A286,BV$1))","v":""},{"$f":"IF($A286=\"N/A\",Ref!$B$36,INDEX(Ranks!$1:$1048576,$A286,BW$1))","v":""},{"$f":"IF($A286=\"N/A\",Ref!$B$36,INDEX(Ranks!$1:$1048576,$A286,BX$1))","v":""},{"$f":"IF($A286=\"N/A\",Ref!$B$36,INDEX(Ranks!$1:$1048576,$A286,BY$1))","v":""},{"$f":"IF($A286=\"N/A\",Ref!$B$36,INDEX(Ranks!$1:$1048576,$A286,BZ$1))","v":""},{"$f":"IF($A286=\"N/A\",Ref!$B$36,INDEX(Ranks!$1:$1048576,$A286,CA$1))","v":""},{"$f":"IF($A286=\"N/A\",Ref!$B$36,INDEX(Ranks!$1:$1048576,$A286,CB$1))","v":""},{"$f":"IF($A286=\"N/A\",Ref!$B$36,INDEX(Ranks!$1:$1048576,$A286,CC$1))","v":""},{"$f":"IF($A286=\"N/A\",Ref!$B$36,INDEX(Ranks!$1:$1048576,$A286,CD$1))","v":""},{"$f":"IF($A286=\"N/A\",Ref!$B$36,INDEX(Ranks!$1:$1048576,$A286,CE$1))","v":""},{"$f":"IF($A286=\"N/A\",Ref!$B$36,INDEX(Ranks!$1:$1048576,$A286,CF$1))","v":""},{"$f":"IF($A286=\"N/A\",Ref!$B$36,INDEX(Ranks!$1:$1048576,$A286,CG$1))","v":""},{"$f":"IF($A286=\"N/A\",Ref!$B$36,INDEX(Ranks!$1:$1048576,$A286,CH$1))","v":""},{"$f":"IF($A286=\"N/A\",Ref!$B$36,INDEX(Ranks!$1:$1048576,$A286,CI$1))","v":""},{"$f":"IF($A286=\"N/A\",Ref!$B$36,INDEX(Ranks!$1:$1048576,$A286,CJ$1))","v":""},{"$f":"IF($A286=\"N/A\",Ref!$B$36,INDEX(Ranks!$1:$1048576,$A286,CK$1))","v":""},{"$f":"IF($A286=\"N/A\",Ref!$B$36,INDEX(Ranks!$1:$1048576,$A286,CL$1))","v":""},{"$f":"IF($A286=\"N/A\",Ref!$B$36,INDEX(Ranks!$1:$1048576,$A286,CM$1))","v":""},{"$f":"IF($A286=\"N/A\",Ref!$B$36,INDEX(Ranks!$1:$1048576,$A286,CN$1))","v":""},{"$f":"IF($A286=\"N/A\",Ref!$B$36,INDEX(Ranks!$1:$1048576,$A286,CO$1))","v":""},{"$f":"IF($A286=\"N/A\",Ref!$B$36,INDEX(Ranks!$1:$1048576,$A286,CP$1))","v":""},{"$f":"IF($A286=\"N/A\",Ref!$B$36,INDEX(Ranks!$1:$1048576,$A286,CQ$1))","v":""},{"$f":"IF($A286=\"N/A\",Ref!$B$36,INDEX(Ranks!$1:$1048576,$A286,CR$1))","v":""},{"$f":"IF($A286=\"N/A\",Ref!$B$36,INDEX(Ranks!$1:$1048576,$A286,CS$1))","v":""},{"$f":"IF($A286=\"N/A\",Ref!$B$36,INDEX(Ranks!$1:$1048576,$A286,CT$1))","v":""},{"$f":"IF($A286=\"N/A\",Ref!$B$36,INDEX(Ranks!$1:$1048576,$A286,CU$1))","v":""},{"$f":"IF($A286=\"N/A\",Ref!$B$36,INDEX(Ranks!$1:$1048576,$A286,CV$1))","v":""},{"$f":"IF($A286=\"N/A\",Ref!$B$36,INDEX(Ranks!$1:$1048576,$A286,CW$1))","v":""},{"$f":"IF($A286=\"N/A\",Ref!$B$36,INDEX(Ranks!$1:$1048576,$A286,CX$1))","v":""},{"$f":"IF($A286=\"N/A\",Ref!$B$36,INDEX(Ranks!$1:$1048576,$A286,CY$1))","v":""},{"$f":"IF($A286=\"N/A\",Ref!$B$36,INDEX(Ranks!$1:$1048576,$A286,CZ$1))","v":""},{"$f":"IF($A286=\"N/A\",Ref!$B$36,INDEX(Ranks!$1:$1048576,$A286,DA$1))","v":""},{"$f":"IF($A286=\"N/A\",Ref!$B$36,INDEX(Ranks!$1:$1048576,$A286,DB$1))","v":""},{"$f":"IF($A286=\"N/A\",Ref!$B$36,INDEX(Ranks!$1:$1048576,$A286,DC$1))","v":""},{"$f":"IF($A286=\"N/A\",Ref!$B$36,INDEX(Ranks!$1:$1048576,$A286,DD$1))","v":""},{"$f":"IF($A286=\"N/A\",Ref!$B$36,INDEX(Ranks!$1:$1048576,$A286,DE$1))","v":""},{"$f":"IF($A286=\"N/A\",Ref!$B$36,INDEX(Ranks!$1:$1048576,$A286,DF$1))","v":""},{"$f":"IF($A286=\"N/A\",Ref!$B$36,INDEX(Ranks!$1:$1048576,$A286,DG$1))","v":""},{"$f":"IF($A286=\"N/A\",Ref!$B$36,INDEX(Ranks!$1:$1048576,$A286,DH$1))","v":""},{"$f":"IF($A286=\"N/A\",Ref!$B$36,INDEX(Ranks!$1:$1048576,$A286,DI$1))","v":""},{"$f":"IF($A286=\"N/A\",Ref!$B$36,INDEX(Ranks!$1:$1048576,$A286,DJ$1))","v":""},{"$f":"IF($A286=\"N/A\",Ref!$B$36,INDEX(Ranks!$1:$1048576,$A286,DK$1))","v":""},{"$f":"IF($A286=\"N/A\",Ref!$B$36,INDEX(Ranks!$1:$1048576,$A286,DL$1))","v":""},{"$f":"IF($A286=\"N/A\",Ref!$B$36,INDEX(Ranks!$1:$1048576,$A286,DM$1))","v":""},{"$f":"IF($A286=\"N/A\",Ref!$B$36,INDEX(Ranks!$1:$1048576,$A286,DN$1))","v":""},{"$f":"IF($A286=\"N/A\",Ref!$B$36,INDEX(Ranks!$1:$1048576,$A286,DO$1))","v":""},{"$f":"IF($A286=\"N/A\",Ref!$B$36,INDEX(Ranks!$1:$1048576,$A286,DP$1))","v":""},{"$f":"IF($A286=\"N/A\",Ref!$B$36,INDEX(Ranks!$1:$1048576,$A286,DQ$1))","v":""},{"$f":"IF($A286=\"N/A\",Ref!$B$36,INDEX(Ranks!$1:$1048576,$A286,DR$1))","v":""},{"$f":"IF($A286=\"N/A\",Ref!$B$36,INDEX(Ranks!$1:$1048576,$A286,DS$1))","v":""},{"$f":"IF($A286=\"N/A\",Ref!$B$36,INDEX(Ranks!$1:$1048576,$A286,DT$1))","v":""},{"$f":"IF($A286=\"N/A\",Ref!$B$36,INDEX(Ranks!$1:$1048576,$A286,DU$1))","v":""},{"$f":"IF($A286=\"N/A\",Ref!$B$36,INDEX(Ranks!$1:$1048576,$A286,DV$1))","v":""},{"$f":"IF($A286=\"N/A\",Ref!$B$36,INDEX(Ranks!$1:$1048576,$A286,DW$1))","v":""},{"$f":"IF($A286=\"N/A\",Ref!$B$36,INDEX(Ranks!$1:$1048576,$A286,DX$1))","v":""},{"$f":"IF($A286=\"N/A\",Ref!$B$36,INDEX(Ranks!$1:$1048576,$A286,DY$1))","v":""},{"$f":"IF($A286=\"N/A\",Ref!$B$36,INDEX(Ranks!$1:$1048576,$A286,DZ$1))","v":""},{"$f":"IF($A286=\"N/A\",Ref!$B$36,INDEX(Ranks!$1:$1048576,$A286,EA$1))","v":""},{"$f":"IF($A286=\"N/A\",Ref!$B$36,INDEX(Ranks!$1:$1048576,$A286,EB$1))","v":""}]
[{"$f":"IFERROR(MATCH('Portfolio Page'!L287,Ranks!L:L,0),\"N/A\")","v":"N/A"},null,{"$f":"IF($A287=\"N/A\",\"\",INDEX(Ranks!$1:$1048576,$A287,C$1))","v":""},{"$f":"IF($A287=\"N/A\",Ref!$B$36,INDEX(Ranks!$1:$1048576,$A287,D$1))","v":""},{"$f":"IF($A287=\"N/A\",Ref!$B$36,INDEX(Ranks!$1:$1048576,$A287,E$1))","v":""},{"$f":"IF($A287=\"N/A\",\"\",INDEX(Ranks!$1:$1048576,$A287,F$1))","v":""},{"$f":"IF($A287=\"N/A\",\"\",INDEX(Ranks!$1:$1048576,$A287,G$1))","v":""},{"$f":"IF($A287=\"N/A\",\"\",INDEX(Ranks!$1:$1048576,$A287,H$1))","v":""},{"$f":"IF($A287=\"N/A\",\"\",INDEX(Ranks!$1:$1048576,$A287,I$1))","v":""},{"$f":"IF($A287=\"N/A\",\"\",INDEX(Ranks!$1:$1048576,$A287,J$1))","v":""},{"$f":"IF($A287=\"N/A\",\"\",INDEX(Ranks!$1:$1048576,$A287,K$1))","v":""},null,{"$f":"IF($A287=\"N/A\",Ref!$B$36,INDEX(Ranks!$1:$1048576,$A287,M$1))","v":""},{"$f":"IF($A287=\"N/A\",Ref!$B$36,INDEX(Ranks!$1:$1048576,$A287,N$1))","v":""},{"$f":"IF($A287=\"N/A\",Ref!$B$36,INDEX(Ranks!$1:$1048576,$A287,O$1))","v":""},{"$f":"IF($A287=\"N/A\",Ref!$B$36,INDEX(Ranks!$1:$1048576,$A287,P$1))","v":""},{"$f":"IF($A287=\"N/A\",Ref!$B$36,INDEX(Ranks!$1:$1048576,$A287,Q$1))","v":""},{"$f":"IF($A287=\"N/A\",Ref!$B$36,INDEX(Ranks!$1:$1048576,$A287,R$1))","v":""},{"$f":"IF($A287=\"N/A\",Ref!$B$36,INDEX(Ranks!$1:$1048576,$A287,S$1))","v":""},{"$f":"IF($A287=\"N/A\",Ref!$B$36,INDEX(Ranks!$1:$1048576,$A287,T$1))","v":""},{"$f":"IF($A287=\"N/A\",Ref!$B$36,INDEX(Ranks!$1:$1048576,$A287,U$1))","v":""},{"$f":"IF($A287=\"N/A\",Ref!$B$36,INDEX(Ranks!$1:$1048576,$A287,V$1))","v":""},{"$f":"IF($A287=\"N/A\",Ref!$B$36,INDEX(Ranks!$1:$1048576,$A287,W$1))","v":""},{"$f":"IF($A287=\"N/A\",Ref!$B$36,INDEX(Ranks!$1:$1048576,$A287,X$1))","v":""},{"$f":"IF($A287=\"N/A\",Ref!$B$36,INDEX(Ranks!$1:$1048576,$A287,Y$1))","v":""},{"$f":"IF($A287=\"N/A\",Ref!$B$36,INDEX(Ranks!$1:$1048576,$A287,Z$1))","v":""},{"$f":"IF($A287=\"N/A\",Ref!$B$36,INDEX(Ranks!$1:$1048576,$A287,AA$1))","v":""},{"$f":"IF($A287=\"N/A\",Ref!$B$36,INDEX(Ranks!$1:$1048576,$A287,AB$1))","v":""},{"$f":"IF($A287=\"N/A\",Ref!$B$36,INDEX(Ranks!$1:$1048576,$A287,AC$1))","v":""},{"$f":"IF($A287=\"N/A\",Ref!$B$36,INDEX(Ranks!$1:$1048576,$A287,AD$1))","v":""},{"$f":"IF($A287=\"N/A\",Ref!$B$36,INDEX(Ranks!$1:$1048576,$A287,AE$1))","v":""},{"$f":"IF($A287=\"N/A\",Ref!$B$36,INDEX(Ranks!$1:$1048576,$A287,AF$1))","v":""},{"$f":"IF($A287=\"N/A\",Ref!$B$36,INDEX(Ranks!$1:$1048576,$A287,AG$1))","v":""},{"$f":"IF($A287=\"N/A\",Ref!$B$36,INDEX(Ranks!$1:$1048576,$A287,AH$1))","v":""},{"$f":"IF($A287=\"N/A\",Ref!$B$36,INDEX(Ranks!$1:$1048576,$A287,AI$1))","v":""},{"$f":"IF($A287=\"N/A\",Ref!$B$36,INDEX(Ranks!$1:$1048576,$A287,AJ$1))","v":""},{"$f":"IF($A287=\"N/A\",Ref!$B$36,INDEX(Ranks!$1:$1048576,$A287,AK$1))","v":""},{"$f":"IF($A287=\"N/A\",Ref!$B$36,INDEX(Ranks!$1:$1048576,$A287,AL$1))","v":""},{"$f":"IF($A287=\"N/A\",Ref!$B$36,INDEX(Ranks!$1:$1048576,$A287,AM$1))","v":""},{"$f":"IF($A287=\"N/A\",Ref!$B$36,INDEX(Ranks!$1:$1048576,$A287,AN$1))","v":""},{"$f":"IF($A287=\"N/A\",Ref!$B$36,INDEX(Ranks!$1:$1048576,$A287,AO$1))","v":""},{"$f":"IF($A287=\"N/A\",Ref!$B$36,INDEX(Ranks!$1:$1048576,$A287,AP$1))","v":""},{"$f":"IF($A287=\"N/A\",Ref!$B$36,INDEX(Ranks!$1:$1048576,$A287,AQ$1))","v":""},{"$f":"IF($A287=\"N/A\",Ref!$B$36,INDEX(Ranks!$1:$1048576,$A287,AR$1))","v":""},{"$f":"IF($A287=\"N/A\",Ref!$B$36,INDEX(Ranks!$1:$1048576,$A287,AS$1))","v":""},{"$f":"IF($A287=\"N/A\",Ref!$B$36,INDEX(Ranks!$1:$1048576,$A287,AT$1))","v":""},{"$f":"IF($A287=\"N/A\",Ref!$B$36,INDEX(Ranks!$1:$1048576,$A287,AU$1))","v":""},{"$f":"IF($A287=\"N/A\",Ref!$B$36,INDEX(Ranks!$1:$1048576,$A287,AV$1))","v":""},{"$f":"IF($A287=\"N/A\",Ref!$B$36,INDEX(Ranks!$1:$1048576,$A287,AW$1))","v":""},{"$f":"IF($A287=\"N/A\",Ref!$B$36,INDEX(Ranks!$1:$1048576,$A287,AX$1))","v":""},{"$f":"IF($A287=\"N/A\",Ref!$B$36,INDEX(Ranks!$1:$1048576,$A287,AY$1))","v":""},{"$f":"IF($A287=\"N/A\",Ref!$B$36,INDEX(Ranks!$1:$1048576,$A287,AZ$1))","v":""},{"$f":"IF($A287=\"N/A\",Ref!$B$36,INDEX(Ranks!$1:$1048576,$A287,BA$1))","v":""},{"$f":"IF($A287=\"N/A\",Ref!$B$36,INDEX(Ranks!$1:$1048576,$A287,BB$1))","v":""},{"$f":"IF($A287=\"N/A\",Ref!$B$36,INDEX(Ranks!$1:$1048576,$A287,BC$1))","v":""},{"$f":"IF($A287=\"N/A\",Ref!$B$36,INDEX(Ranks!$1:$1048576,$A287,BD$1))","v":""},{"$f":"IF($A287=\"N/A\",Ref!$B$36,INDEX(Ranks!$1:$1048576,$A287,BE$1))","v":""},{"$f":"IF($A287=\"N/A\",Ref!$B$36,INDEX(Ranks!$1:$1048576,$A287,BF$1))","v":""},{"$f":"IF($A287=\"N/A\",Ref!$B$36,INDEX(Ranks!$1:$1048576,$A287,BG$1))","v":""},{"$f":"IF($A287=\"N/A\",Ref!$B$36,INDEX(Ranks!$1:$1048576,$A287,BH$1))","v":""},{"$f":"IF($A287=\"N/A\",Ref!$B$36,INDEX(Ranks!$1:$1048576,$A287,BI$1))","v":""},{"$f":"IF($A287=\"N/A\",Ref!$B$36,INDEX(Ranks!$1:$1048576,$A287,BJ$1))","v":""},{"$f":"IF($A287=\"N/A\",Ref!$B$36,INDEX(Ranks!$1:$1048576,$A287,BK$1))","v":""},{"$f":"IF($A287=\"N/A\",Ref!$B$36,INDEX(Ranks!$1:$1048576,$A287,BL$1))","v":""},{"$f":"IF($A287=\"N/A\",Ref!$B$36,INDEX(Ranks!$1:$1048576,$A287,BM$1))","v":""},{"$f":"IF($A287=\"N/A\",Ref!$B$36,INDEX(Ranks!$1:$1048576,$A287,BN$1))","v":""},{"$f":"IF($A287=\"N/A\",Ref!$B$36,INDEX(Ranks!$1:$1048576,$A287,BO$1))","v":""},{"$f":"IF($A287=\"N/A\",Ref!$B$36,INDEX(Ranks!$1:$1048576,$A287,BP$1))","v":""},{"$f":"IF($A287=\"N/A\",Ref!$B$36,INDEX(Ranks!$1:$1048576,$A287,BQ$1))","v":""},{"$f":"IF($A287=\"N/A\",Ref!$B$36,INDEX(Ranks!$1:$1048576,$A287,BR$1))","v":""},{"$f":"IF($A287=\"N/A\",Ref!$B$36,INDEX(Ranks!$1:$1048576,$A287,BS$1))","v":""},{"$f":"IF($A287=\"N/A\",Ref!$B$36,INDEX(Ranks!$1:$1048576,$A287,BT$1))","v":""},{"$f":"IF($A287=\"N/A\",Ref!$B$36,INDEX(Ranks!$1:$1048576,$A287,BU$1))","v":""},{"$f":"IF($A287=\"N/A\",Ref!$B$36,INDEX(Ranks!$1:$1048576,$A287,BV$1))","v":""},{"$f":"IF($A287=\"N/A\",Ref!$B$36,INDEX(Ranks!$1:$1048576,$A287,BW$1))","v":""},{"$f":"IF($A287=\"N/A\",Ref!$B$36,INDEX(Ranks!$1:$1048576,$A287,BX$1))","v":""},{"$f":"IF($A287=\"N/A\",Ref!$B$36,INDEX(Ranks!$1:$1048576,$A287,BY$1))","v":""},{"$f":"IF($A287=\"N/A\",Ref!$B$36,INDEX(Ranks!$1:$1048576,$A287,BZ$1))","v":""},{"$f":"IF($A287=\"N/A\",Ref!$B$36,INDEX(Ranks!$1:$1048576,$A287,CA$1))","v":""},{"$f":"IF($A287=\"N/A\",Ref!$B$36,INDEX(Ranks!$1:$1048576,$A287,CB$1))","v":""},{"$f":"IF($A287=\"N/A\",Ref!$B$36,INDEX(Ranks!$1:$1048576,$A287,CC$1))","v":""},{"$f":"IF($A287=\"N/A\",Ref!$B$36,INDEX(Ranks!$1:$1048576,$A287,CD$1))","v":""},{"$f":"IF($A287=\"N/A\",Ref!$B$36,INDEX(Ranks!$1:$1048576,$A287,CE$1))","v":""},{"$f":"IF($A287=\"N/A\",Ref!$B$36,INDEX(Ranks!$1:$1048576,$A287,CF$1))","v":""},{"$f":"IF($A287=\"N/A\",Ref!$B$36,INDEX(Ranks!$1:$1048576,$A287,CG$1))","v":""},{"$f":"IF($A287=\"N/A\",Ref!$B$36,INDEX(Ranks!$1:$1048576,$A287,CH$1))","v":""},{"$f":"IF($A287=\"N/A\",Ref!$B$36,INDEX(Ranks!$1:$1048576,$A287,CI$1))","v":""},{"$f":"IF($A287=\"N/A\",Ref!$B$36,INDEX(Ranks!$1:$1048576,$A287,CJ$1))","v":""},{"$f":"IF($A287=\"N/A\",Ref!$B$36,INDEX(Ranks!$1:$1048576,$A287,CK$1))","v":""},{"$f":"IF($A287=\"N/A\",Ref!$B$36,INDEX(Ranks!$1:$1048576,$A287,CL$1))","v":""},{"$f":"IF($A287=\"N/A\",Ref!$B$36,INDEX(Ranks!$1:$1048576,$A287,CM$1))","v":""},{"$f":"IF($A287=\"N/A\",Ref!$B$36,INDEX(Ranks!$1:$1048576,$A287,CN$1))","v":""},{"$f":"IF($A287=\"N/A\",Ref!$B$36,INDEX(Ranks!$1:$1048576,$A287,CO$1))","v":""},{"$f":"IF($A287=\"N/A\",Ref!$B$36,INDEX(Ranks!$1:$1048576,$A287,CP$1))","v":""},{"$f":"IF($A287=\"N/A\",Ref!$B$36,INDEX(Ranks!$1:$1048576,$A287,CQ$1))","v":""},{"$f":"IF($A287=\"N/A\",Ref!$B$36,INDEX(Ranks!$1:$1048576,$A287,CR$1))","v":""},{"$f":"IF($A287=\"N/A\",Ref!$B$36,INDEX(Ranks!$1:$1048576,$A287,CS$1))","v":""},{"$f":"IF($A287=\"N/A\",Ref!$B$36,INDEX(Ranks!$1:$1048576,$A287,CT$1))","v":""},{"$f":"IF($A287=\"N/A\",Ref!$B$36,INDEX(Ranks!$1:$1048576,$A287,CU$1))","v":""},{"$f":"IF($A287=\"N/A\",Ref!$B$36,INDEX(Ranks!$1:$1048576,$A287,CV$1))","v":""},{"$f":"IF($A287=\"N/A\",Ref!$B$36,INDEX(Ranks!$1:$1048576,$A287,CW$1))","v":""},{"$f":"IF($A287=\"N/A\",Ref!$B$36,INDEX(Ranks!$1:$1048576,$A287,CX$1))","v":""},{"$f":"IF($A287=\"N/A\",Ref!$B$36,INDEX(Ranks!$1:$1048576,$A287,CY$1))","v":""},{"$f":"IF($A287=\"N/A\",Ref!$B$36,INDEX(Ranks!$1:$1048576,$A287,CZ$1))","v":""},{"$f":"IF($A287=\"N/A\",Ref!$B$36,INDEX(Ranks!$1:$1048576,$A287,DA$1))","v":""},{"$f":"IF($A287=\"N/A\",Ref!$B$36,INDEX(Ranks!$1:$1048576,$A287,DB$1))","v":""},{"$f":"IF($A287=\"N/A\",Ref!$B$36,INDEX(Ranks!$1:$1048576,$A287,DC$1))","v":""},{"$f":"IF($A287=\"N/A\",Ref!$B$36,INDEX(Ranks!$1:$1048576,$A287,DD$1))","v":""},{"$f":"IF($A287=\"N/A\",Ref!$B$36,INDEX(Ranks!$1:$1048576,$A287,DE$1))","v":""},{"$f":"IF($A287=\"N/A\",Ref!$B$36,INDEX(Ranks!$1:$1048576,$A287,DF$1))","v":""},{"$f":"IF($A287=\"N/A\",Ref!$B$36,INDEX(Ranks!$1:$1048576,$A287,DG$1))","v":""},{"$f":"IF($A287=\"N/A\",Ref!$B$36,INDEX(Ranks!$1:$1048576,$A287,DH$1))","v":""},{"$f":"IF($A287=\"N/A\",Ref!$B$36,INDEX(Ranks!$1:$1048576,$A287,DI$1))","v":""},{"$f":"IF($A287=\"N/A\",Ref!$B$36,INDEX(Ranks!$1:$1048576,$A287,DJ$1))","v":""},{"$f":"IF($A287=\"N/A\",Ref!$B$36,INDEX(Ranks!$1:$1048576,$A287,DK$1))","v":""},{"$f":"IF($A287=\"N/A\",Ref!$B$36,INDEX(Ranks!$1:$1048576,$A287,DL$1))","v":""},{"$f":"IF($A287=\"N/A\",Ref!$B$36,INDEX(Ranks!$1:$1048576,$A287,DM$1))","v":""},{"$f":"IF($A287=\"N/A\",Ref!$B$36,INDEX(Ranks!$1:$1048576,$A287,DN$1))","v":""},{"$f":"IF($A287=\"N/A\",Ref!$B$36,INDEX(Ranks!$1:$1048576,$A287,DO$1))","v":""},{"$f":"IF($A287=\"N/A\",Ref!$B$36,INDEX(Ranks!$1:$1048576,$A287,DP$1))","v":""},{"$f":"IF($A287=\"N/A\",Ref!$B$36,INDEX(Ranks!$1:$1048576,$A287,DQ$1))","v":""},{"$f":"IF($A287=\"N/A\",Ref!$B$36,INDEX(Ranks!$1:$1048576,$A287,DR$1))","v":""},{"$f":"IF($A287=\"N/A\",Ref!$B$36,INDEX(Ranks!$1:$1048576,$A287,DS$1))","v":""},{"$f":"IF($A287=\"N/A\",Ref!$B$36,INDEX(Ranks!$1:$1048576,$A287,DT$1))","v":""},{"$f":"IF($A287=\"N/A\",Ref!$B$36,INDEX(Ranks!$1:$1048576,$A287,DU$1))","v":""},{"$f":"IF($A287=\"N/A\",Ref!$B$36,INDEX(Ranks!$1:$1048576,$A287,DV$1))","v":""},{"$f":"IF($A287=\"N/A\",Ref!$B$36,INDEX(Ranks!$1:$1048576,$A287,DW$1))","v":""},{"$f":"IF($A287=\"N/A\",Ref!$B$36,INDEX(Ranks!$1:$1048576,$A287,DX$1))","v":""},{"$f":"IF($A287=\"N/A\",Ref!$B$36,INDEX(Ranks!$1:$1048576,$A287,DY$1))","v":""},{"$f":"IF($A287=\"N/A\",Ref!$B$36,INDEX(Ranks!$1:$1048576,$A287,DZ$1))","v":""},{"$f":"IF($A287=\"N/A\",Ref!$B$36,INDEX(Ranks!$1:$1048576,$A287,EA$1))","v":""},{"$f":"IF($A287=\"N/A\",Ref!$B$36,INDEX(Ranks!$1:$1048576,$A287,EB$1))","v":""}]
[{"$f":"IFERROR(MATCH('Portfolio Page'!L288,Ranks!L:L,0),\"N/A\")","v":"N/A"},null,{"$f":"IF($A288=\"N/A\",\"\",INDEX(Ranks!$1:$1048576,$A288,C$1))","v":""},{"$f":"IF($A288=\"N/A\",Ref!$B$36,INDEX(Ranks!$1:$1048576,$A288,D$1))","v":""},{"$f":"IF($A288=\"N/A\",Ref!$B$36,INDEX(Ranks!$1:$1048576,$A288,E$1))","v":""},{"$f":"IF($A288=\"N/A\",\"\",INDEX(Ranks!$1:$1048576,$A288,F$1))","v":""},{"$f":"IF($A288=\"N/A\",\"\",INDEX(Ranks!$1:$1048576,$A288,G$1))","v":""},{"$f":"IF($A288=\"N/A\",\"\",INDEX(Ranks!$1:$1048576,$A288,H$1))","v":""},{"$f":"IF($A288=\"N/A\",\"\",INDEX(Ranks!$1:$1048576,$A288,I$1))","v":""},{"$f":"IF($A288=\"N/A\",\"\",INDEX(Ranks!$1:$1048576,$A288,J$1))","v":""},{"$f":"IF($A288=\"N/A\",\"\",INDEX(Ranks!$1:$1048576,$A288,K$1))","v":""},null,{"$f":"IF($A288=\"N/A\",Ref!$B$36,INDEX(Ranks!$1:$1048576,$A288,M$1))","v":""},{"$f":"IF($A288=\"N/A\",Ref!$B$36,INDEX(Ranks!$1:$1048576,$A288,N$1))","v":""},{"$f":"IF($A288=\"N/A\",Ref!$B$36,INDEX(Ranks!$1:$1048576,$A288,O$1))","v":""},{"$f":"IF($A288=\"N/A\",Ref!$B$36,INDEX(Ranks!$1:$1048576,$A288,P$1))","v":""},{"$f":"IF($A288=\"N/A\",Ref!$B$36,INDEX(Ranks!$1:$1048576,$A288,Q$1))","v":""},{"$f":"IF($A288=\"N/A\",Ref!$B$36,INDEX(Ranks!$1:$1048576,$A288,R$1))","v":""},{"$f":"IF($A288=\"N/A\",Ref!$B$36,INDEX(Ranks!$1:$1048576,$A288,S$1))","v":""},{"$f":"IF($A288=\"N/A\",Ref!$B$36,INDEX(Ranks!$1:$1048576,$A288,T$1))","v":""},{"$f":"IF($A288=\"N/A\",Ref!$B$36,INDEX(Ranks!$1:$1048576,$A288,U$1))","v":""},{"$f":"IF($A288=\"N/A\",Ref!$B$36,INDEX(Ranks!$1:$1048576,$A288,V$1))","v":""},{"$f":"IF($A288=\"N/A\",Ref!$B$36,INDEX(Ranks!$1:$1048576,$A288,W$1))","v":""},{"$f":"IF($A288=\"N/A\",Ref!$B$36,INDEX(Ranks!$1:$1048576,$A288,X$1))","v":""},{"$f":"IF($A288=\"N/A\",Ref!$B$36,INDEX(Ranks!$1:$1048576,$A288,Y$1))","v":""},{"$f":"IF($A288=\"N/A\",Ref!$B$36,INDEX(Ranks!$1:$1048576,$A288,Z$1))","v":""},{"$f":"IF($A288=\"N/A\",Ref!$B$36,INDEX(Ranks!$1:$1048576,$A288,AA$1))","v":""},{"$f":"IF($A288=\"N/A\",Ref!$B$36,INDEX(Ranks!$1:$1048576,$A288,AB$1))","v":""},{"$f":"IF($A288=\"N/A\",Ref!$B$36,INDEX(Ranks!$1:$1048576,$A288,AC$1))","v":""},{"$f":"IF($A288=\"N/A\",Ref!$B$36,INDEX(Ranks!$1:$1048576,$A288,AD$1))","v":""},{"$f":"IF($A288=\"N/A\",Ref!$B$36,INDEX(Ranks!$1:$1048576,$A288,AE$1))","v":""},{"$f":"IF($A288=\"N/A\",Ref!$B$36,INDEX(Ranks!$1:$1048576,$A288,AF$1))","v":""},{"$f":"IF($A288=\"N/A\",Ref!$B$36,INDEX(Ranks!$1:$1048576,$A288,AG$1))","v":""},{"$f":"IF($A288=\"N/A\",Ref!$B$36,INDEX(Ranks!$1:$1048576,$A288,AH$1))","v":""},{"$f":"IF($A288=\"N/A\",Ref!$B$36,INDEX(Ranks!$1:$1048576,$A288,AI$1))","v":""},{"$f":"IF($A288=\"N/A\",Ref!$B$36,INDEX(Ranks!$1:$1048576,$A288,AJ$1))","v":""},{"$f":"IF($A288=\"N/A\",Ref!$B$36,INDEX(Ranks!$1:$1048576,$A288,AK$1))","v":""},{"$f":"IF($A288=\"N/A\",Ref!$B$36,INDEX(Ranks!$1:$1048576,$A288,AL$1))","v":""},{"$f":"IF($A288=\"N/A\",Ref!$B$36,INDEX(Ranks!$1:$1048576,$A288,AM$1))","v":""},{"$f":"IF($A288=\"N/A\",Ref!$B$36,INDEX(Ranks!$1:$1048576,$A288,AN$1))","v":""},{"$f":"IF($A288=\"N/A\",Ref!$B$36,INDEX(Ranks!$1:$1048576,$A288,AO$1))","v":""},{"$f":"IF($A288=\"N/A\",Ref!$B$36,INDEX(Ranks!$1:$1048576,$A288,AP$1))","v":""},{"$f":"IF($A288=\"N/A\",Ref!$B$36,INDEX(Ranks!$1:$1048576,$A288,AQ$1))","v":""},{"$f":"IF($A288=\"N/A\",Ref!$B$36,INDEX(Ranks!$1:$1048576,$A288,AR$1))","v":""},{"$f":"IF($A288=\"N/A\",Ref!$B$36,INDEX(Ranks!$1:$1048576,$A288,AS$1))","v":""},{"$f":"IF($A288=\"N/A\",Ref!$B$36,INDEX(Ranks!$1:$1048576,$A288,AT$1))","v":""},{"$f":"IF($A288=\"N/A\",Ref!$B$36,INDEX(Ranks!$1:$1048576,$A288,AU$1))","v":""},{"$f":"IF($A288=\"N/A\",Ref!$B$36,INDEX(Ranks!$1:$1048576,$A288,AV$1))","v":""},{"$f":"IF($A288=\"N/A\",Ref!$B$36,INDEX(Ranks!$1:$1048576,$A288,AW$1))","v":""},{"$f":"IF($A288=\"N/A\",Ref!$B$36,INDEX(Ranks!$1:$1048576,$A288,AX$1))","v":""},{"$f":"IF($A288=\"N/A\",Ref!$B$36,INDEX(Ranks!$1:$1048576,$A288,AY$1))","v":""},{"$f":"IF($A288=\"N/A\",Ref!$B$36,INDEX(Ranks!$1:$1048576,$A288,AZ$1))","v":""},{"$f":"IF($A288=\"N/A\",Ref!$B$36,INDEX(Ranks!$1:$1048576,$A288,BA$1))","v":""},{"$f":"IF($A288=\"N/A\",Ref!$B$36,INDEX(Ranks!$1:$1048576,$A288,BB$1))","v":""},{"$f":"IF($A288=\"N/A\",Ref!$B$36,INDEX(Ranks!$1:$1048576,$A288,BC$1))","v":""},{"$f":"IF($A288=\"N/A\",Ref!$B$36,INDEX(Ranks!$1:$1048576,$A288,BD$1))","v":""},{"$f":"IF($A288=\"N/A\",Ref!$B$36,INDEX(Ranks!$1:$1048576,$A288,BE$1))","v":""},{"$f":"IF($A288=\"N/A\",Ref!$B$36,INDEX(Ranks!$1:$1048576,$A288,BF$1))","v":""},{"$f":"IF($A288=\"N/A\",Ref!$B$36,INDEX(Ranks!$1:$1048576,$A288,BG$1))","v":""},{"$f":"IF($A288=\"N/A\",Ref!$B$36,INDEX(Ranks!$1:$1048576,$A288,BH$1))","v":""},{"$f":"IF($A288=\"N/A\",Ref!$B$36,INDEX(Ranks!$1:$1048576,$A288,BI$1))","v":""},{"$f":"IF($A288=\"N/A\",Ref!$B$36,INDEX(Ranks!$1:$1048576,$A288,BJ$1))","v":""},{"$f":"IF($A288=\"N/A\",Ref!$B$36,INDEX(Ranks!$1:$1048576,$A288,BK$1))","v":""},{"$f":"IF($A288=\"N/A\",Ref!$B$36,INDEX(Ranks!$1:$1048576,$A288,BL$1))","v":""},{"$f":"IF($A288=\"N/A\",Ref!$B$36,INDEX(Ranks!$1:$1048576,$A288,BM$1))","v":""},{"$f":"IF($A288=\"N/A\",Ref!$B$36,INDEX(Ranks!$1:$1048576,$A288,BN$1))","v":""},{"$f":"IF($A288=\"N/A\",Ref!$B$36,INDEX(Ranks!$1:$1048576,$A288,BO$1))","v":""},{"$f":"IF($A288=\"N/A\",Ref!$B$36,INDEX(Ranks!$1:$1048576,$A288,BP$1))","v":""},{"$f":"IF($A288=\"N/A\",Ref!$B$36,INDEX(Ranks!$1:$1048576,$A288,BQ$1))","v":""},{"$f":"IF($A288=\"N/A\",Ref!$B$36,INDEX(Ranks!$1:$1048576,$A288,BR$1))","v":""},{"$f":"IF($A288=\"N/A\",Ref!$B$36,INDEX(Ranks!$1:$1048576,$A288,BS$1))","v":""},{"$f":"IF($A288=\"N/A\",Ref!$B$36,INDEX(Ranks!$1:$1048576,$A288,BT$1))","v":""},{"$f":"IF($A288=\"N/A\",Ref!$B$36,INDEX(Ranks!$1:$1048576,$A288,BU$1))","v":""},{"$f":"IF($A288=\"N/A\",Ref!$B$36,INDEX(Ranks!$1:$1048576,$A288,BV$1))","v":""},{"$f":"IF($A288=\"N/A\",Ref!$B$36,INDEX(Ranks!$1:$1048576,$A288,BW$1))","v":""},{"$f":"IF($A288=\"N/A\",Ref!$B$36,INDEX(Ranks!$1:$1048576,$A288,BX$1))","v":""},{"$f":"IF($A288=\"N/A\",Ref!$B$36,INDEX(Ranks!$1:$1048576,$A288,BY$1))","v":""},{"$f":"IF($A288=\"N/A\",Ref!$B$36,INDEX(Ranks!$1:$1048576,$A288,BZ$1))","v":""},{"$f":"IF($A288=\"N/A\",Ref!$B$36,INDEX(Ranks!$1:$1048576,$A288,CA$1))","v":""},{"$f":"IF($A288=\"N/A\",Ref!$B$36,INDEX(Ranks!$1:$1048576,$A288,CB$1))","v":""},{"$f":"IF($A288=\"N/A\",Ref!$B$36,INDEX(Ranks!$1:$1048576,$A288,CC$1))","v":""},{"$f":"IF($A288=\"N/A\",Ref!$B$36,INDEX(Ranks!$1:$1048576,$A288,CD$1))","v":""},{"$f":"IF($A288=\"N/A\",Ref!$B$36,INDEX(Ranks!$1:$1048576,$A288,CE$1))","v":""},{"$f":"IF($A288=\"N/A\",Ref!$B$36,INDEX(Ranks!$1:$1048576,$A288,CF$1))","v":""},{"$f":"IF($A288=\"N/A\",Ref!$B$36,INDEX(Ranks!$1:$1048576,$A288,CG$1))","v":""},{"$f":"IF($A288=\"N/A\",Ref!$B$36,INDEX(Ranks!$1:$1048576,$A288,CH$1))","v":""},{"$f":"IF($A288=\"N/A\",Ref!$B$36,INDEX(Ranks!$1:$1048576,$A288,CI$1))","v":""},{"$f":"IF($A288=\"N/A\",Ref!$B$36,INDEX(Ranks!$1:$1048576,$A288,CJ$1))","v":""},{"$f":"IF($A288=\"N/A\",Ref!$B$36,INDEX(Ranks!$1:$1048576,$A288,CK$1))","v":""},{"$f":"IF($A288=\"N/A\",Ref!$B$36,INDEX(Ranks!$1:$1048576,$A288,CL$1))","v":""},{"$f":"IF($A288=\"N/A\",Ref!$B$36,INDEX(Ranks!$1:$1048576,$A288,CM$1))","v":""},{"$f":"IF($A288=\"N/A\",Ref!$B$36,INDEX(Ranks!$1:$1048576,$A288,CN$1))","v":""},{"$f":"IF($A288=\"N/A\",Ref!$B$36,INDEX(Ranks!$1:$1048576,$A288,CO$1))","v":""},{"$f":"IF($A288=\"N/A\",Ref!$B$36,INDEX(Ranks!$1:$1048576,$A288,CP$1))","v":""},{"$f":"IF($A288=\"N/A\",Ref!$B$36,INDEX(Ranks!$1:$1048576,$A288,CQ$1))","v":""},{"$f":"IF($A288=\"N/A\",Ref!$B$36,INDEX(Ranks!$1:$1048576,$A288,CR$1))","v":""},{"$f":"IF($A288=\"N/A\",Ref!$B$36,INDEX(Ranks!$1:$1048576,$A288,CS$1))","v":""},{"$f":"IF($A288=\"N/A\",Ref!$B$36,INDEX(Ranks!$1:$1048576,$A288,CT$1))","v":""},{"$f":"IF($A288=\"N/A\",Ref!$B$36,INDEX(Ranks!$1:$1048576,$A288,CU$1))","v":""},{"$f":"IF($A288=\"N/A\",Ref!$B$36,INDEX(Ranks!$1:$1048576,$A288,CV$1))","v":""},{"$f":"IF($A288=\"N/A\",Ref!$B$36,INDEX(Ranks!$1:$1048576,$A288,CW$1))","v":""},{"$f":"IF($A288=\"N/A\",Ref!$B$36,INDEX(Ranks!$1:$1048576,$A288,CX$1))","v":""},{"$f":"IF($A288=\"N/A\",Ref!$B$36,INDEX(Ranks!$1:$1048576,$A288,CY$1))","v":""},{"$f":"IF($A288=\"N/A\",Ref!$B$36,INDEX(Ranks!$1:$1048576,$A288,CZ$1))","v":""},{"$f":"IF($A288=\"N/A\",Ref!$B$36,INDEX(Ranks!$1:$1048576,$A288,DA$1))","v":""},{"$f":"IF($A288=\"N/A\",Ref!$B$36,INDEX(Ranks!$1:$1048576,$A288,DB$1))","v":""},{"$f":"IF($A288=\"N/A\",Ref!$B$36,INDEX(Ranks!$1:$1048576,$A288,DC$1))","v":""},{"$f":"IF($A288=\"N/A\",Ref!$B$36,INDEX(Ranks!$1:$1048576,$A288,DD$1))","v":""},{"$f":"IF($A288=\"N/A\",Ref!$B$36,INDEX(Ranks!$1:$1048576,$A288,DE$1))","v":""},{"$f":"IF($A288=\"N/A\",Ref!$B$36,INDEX(Ranks!$1:$1048576,$A288,DF$1))","v":""},{"$f":"IF($A288=\"N/A\",Ref!$B$36,INDEX(Ranks!$1:$1048576,$A288,DG$1))","v":""},{"$f":"IF($A288=\"N/A\",Ref!$B$36,INDEX(Ranks!$1:$1048576,$A288,DH$1))","v":""},{"$f":"IF($A288=\"N/A\",Ref!$B$36,INDEX(Ranks!$1:$1048576,$A288,DI$1))","v":""},{"$f":"IF($A288=\"N/A\",Ref!$B$36,INDEX(Ranks!$1:$1048576,$A288,DJ$1))","v":""},{"$f":"IF($A288=\"N/A\",Ref!$B$36,INDEX(Ranks!$1:$1048576,$A288,DK$1))","v":""},{"$f":"IF($A288=\"N/A\",Ref!$B$36,INDEX(Ranks!$1:$1048576,$A288,DL$1))","v":""},{"$f":"IF($A288=\"N/A\",Ref!$B$36,INDEX(Ranks!$1:$1048576,$A288,DM$1))","v":""},{"$f":"IF($A288=\"N/A\",Ref!$B$36,INDEX(Ranks!$1:$1048576,$A288,DN$1))","v":""},{"$f":"IF($A288=\"N/A\",Ref!$B$36,INDEX(Ranks!$1:$1048576,$A288,DO$1))","v":""},{"$f":"IF($A288=\"N/A\",Ref!$B$36,INDEX(Ranks!$1:$1048576,$A288,DP$1))","v":""},{"$f":"IF($A288=\"N/A\",Ref!$B$36,INDEX(Ranks!$1:$1048576,$A288,DQ$1))","v":""},{"$f":"IF($A288=\"N/A\",Ref!$B$36,INDEX(Ranks!$1:$1048576,$A288,DR$1))","v":""},{"$f":"IF($A288=\"N/A\",Ref!$B$36,INDEX(Ranks!$1:$1048576,$A288,DS$1))","v":""},{"$f":"IF($A288=\"N/A\",Ref!$B$36,INDEX(Ranks!$1:$1048576,$A288,DT$1))","v":""},{"$f":"IF($A288=\"N/A\",Ref!$B$36,INDEX(Ranks!$1:$1048576,$A288,DU$1))","v":""},{"$f":"IF($A288=\"N/A\",Ref!$B$36,INDEX(Ranks!$1:$1048576,$A288,DV$1))","v":""},{"$f":"IF($A288=\"N/A\",Ref!$B$36,INDEX(Ranks!$1:$1048576,$A288,DW$1))","v":""},{"$f":"IF($A288=\"N/A\",Ref!$B$36,INDEX(Ranks!$1:$1048576,$A288,DX$1))","v":""},{"$f":"IF($A288=\"N/A\",Ref!$B$36,INDEX(Ranks!$1:$1048576,$A288,DY$1))","v":""},{"$f":"IF($A288=\"N/A\",Ref!$B$36,INDEX(Ranks!$1:$1048576,$A288,DZ$1))","v":""},{"$f":"IF($A288=\"N/A\",Ref!$B$36,INDEX(Ranks!$1:$1048576,$A288,EA$1))","v":""},{"$f":"IF($A288=\"N/A\",Ref!$B$36,INDEX(Ranks!$1:$1048576,$A288,EB$1))","v":""}]
[{"$f":"IFERROR(MATCH('Portfolio Page'!L289,Ranks!L:L,0),\"N/A\")","v":"N/A"},null,{"$f":"IF($A289=\"N/A\",\"\",INDEX(Ranks!$1:$1048576,$A289,C$1))","v":""},{"$f":"IF($A289=\"N/A\",Ref!$B$36,INDEX(Ranks!$1:$1048576,$A289,D$1))","v":""},{"$f":"IF($A289=\"N/A\",Ref!$B$36,INDEX(Ranks!$1:$1048576,$A289,E$1))","v":""},{"$f":"IF($A289=\"N/A\",\"\",INDEX(Ranks!$1:$1048576,$A289,F$1))","v":""},{"$f":"IF($A289=\"N/A\",\"\",INDEX(Ranks!$1:$1048576,$A289,G$1))","v":""},{"$f":"IF($A289=\"N/A\",\"\",INDEX(Ranks!$1:$1048576,$A289,H$1))","v":""},{"$f":"IF($A289=\"N/A\",\"\",INDEX(Ranks!$1:$1048576,$A289,I$1))","v":""},{"$f":"IF($A289=\"N/A\",\"\",INDEX(Ranks!$1:$1048576,$A289,J$1))","v":""},{"$f":"IF($A289=\"N/A\",\"\",INDEX(Ranks!$1:$1048576,$A289,K$1))","v":""},null,{"$f":"IF($A289=\"N/A\",Ref!$B$36,INDEX(Ranks!$1:$1048576,$A289,M$1))","v":""},{"$f":"IF($A289=\"N/A\",Ref!$B$36,INDEX(Ranks!$1:$1048576,$A289,N$1))","v":""},{"$f":"IF($A289=\"N/A\",Ref!$B$36,INDEX(Ranks!$1:$1048576,$A289,O$1))","v":""},{"$f":"IF($A289=\"N/A\",Ref!$B$36,INDEX(Ranks!$1:$1048576,$A289,P$1))","v":""},{"$f":"IF($A289=\"N/A\",Ref!$B$36,INDEX(Ranks!$1:$1048576,$A289,Q$1))","v":""},{"$f":"IF($A289=\"N/A\",Ref!$B$36,INDEX(Ranks!$1:$1048576,$A289,R$1))","v":""},{"$f":"IF($A289=\"N/A\",Ref!$B$36,INDEX(Ranks!$1:$1048576,$A289,S$1))","v":""},{"$f":"IF($A289=\"N/A\",Ref!$B$36,INDEX(Ranks!$1:$1048576,$A289,T$1))","v":""},{"$f":"IF($A289=\"N/A\",Ref!$B$36,INDEX(Ranks!$1:$1048576,$A289,U$1))","v":""},{"$f":"IF($A289=\"N/A\",Ref!$B$36,INDEX(Ranks!$1:$1048576,$A289,V$1))","v":""},{"$f":"IF($A289=\"N/A\",Ref!$B$36,INDEX(Ranks!$1:$1048576,$A289,W$1))","v":""},{"$f":"IF($A289=\"N/A\",Ref!$B$36,INDEX(Ranks!$1:$1048576,$A289,X$1))","v":""},{"$f":"IF($A289=\"N/A\",Ref!$B$36,INDEX(Ranks!$1:$1048576,$A289,Y$1))","v":""},{"$f":"IF($A289=\"N/A\",Ref!$B$36,INDEX(Ranks!$1:$1048576,$A289,Z$1))","v":""},{"$f":"IF($A289=\"N/A\",Ref!$B$36,INDEX(Ranks!$1:$1048576,$A289,AA$1))","v":""},{"$f":"IF($A289=\"N/A\",Ref!$B$36,INDEX(Ranks!$1:$1048576,$A289,AB$1))","v":""},{"$f":"IF($A289=\"N/A\",Ref!$B$36,INDEX(Ranks!$1:$1048576,$A289,AC$1))","v":""},{"$f":"IF($A289=\"N/A\",Ref!$B$36,INDEX(Ranks!$1:$1048576,$A289,AD$1))","v":""},{"$f":"IF($A289=\"N/A\",Ref!$B$36,INDEX(Ranks!$1:$1048576,$A289,AE$1))","v":""},{"$f":"IF($A289=\"N/A\",Ref!$B$36,INDEX(Ranks!$1:$1048576,$A289,AF$1))","v":""},{"$f":"IF($A289=\"N/A\",Ref!$B$36,INDEX(Ranks!$1:$1048576,$A289,AG$1))","v":""},{"$f":"IF($A289=\"N/A\",Ref!$B$36,INDEX(Ranks!$1:$1048576,$A289,AH$1))","v":""},{"$f":"IF($A289=\"N/A\",Ref!$B$36,INDEX(Ranks!$1:$1048576,$A289,AI$1))","v":""},{"$f":"IF($A289=\"N/A\",Ref!$B$36,INDEX(Ranks!$1:$1048576,$A289,AJ$1))","v":""},{"$f":"IF($A289=\"N/A\",Ref!$B$36,INDEX(Ranks!$1:$1048576,$A289,AK$1))","v":""},{"$f":"IF($A289=\"N/A\",Ref!$B$36,INDEX(Ranks!$1:$1048576,$A289,AL$1))","v":""},{"$f":"IF($A289=\"N/A\",Ref!$B$36,INDEX(Ranks!$1:$1048576,$A289,AM$1))","v":""},{"$f":"IF($A289=\"N/A\",Ref!$B$36,INDEX(Ranks!$1:$1048576,$A289,AN$1))","v":""},{"$f":"IF($A289=\"N/A\",Ref!$B$36,INDEX(Ranks!$1:$1048576,$A289,AO$1))","v":""},{"$f":"IF($A289=\"N/A\",Ref!$B$36,INDEX(Ranks!$1:$1048576,$A289,AP$1))","v":""},{"$f":"IF($A289=\"N/A\",Ref!$B$36,INDEX(Ranks!$1:$1048576,$A289,AQ$1))","v":""},{"$f":"IF($A289=\"N/A\",Ref!$B$36,INDEX(Ranks!$1:$1048576,$A289,AR$1))","v":""},{"$f":"IF($A289=\"N/A\",Ref!$B$36,INDEX(Ranks!$1:$1048576,$A289,AS$1))","v":""},{"$f":"IF($A289=\"N/A\",Ref!$B$36,INDEX(Ranks!$1:$1048576,$A289,AT$1))","v":""},{"$f":"IF($A289=\"N/A\",Ref!$B$36,INDEX(Ranks!$1:$1048576,$A289,AU$1))","v":""},{"$f":"IF($A289=\"N/A\",Ref!$B$36,INDEX(Ranks!$1:$1048576,$A289,AV$1))","v":""},{"$f":"IF($A289=\"N/A\",Ref!$B$36,INDEX(Ranks!$1:$1048576,$A289,AW$1))","v":""},{"$f":"IF($A289=\"N/A\",Ref!$B$36,INDEX(Ranks!$1:$1048576,$A289,AX$1))","v":""},{"$f":"IF($A289=\"N/A\",Ref!$B$36,INDEX(Ranks!$1:$1048576,$A289,AY$1))","v":""},{"$f":"IF($A289=\"N/A\",Ref!$B$36,INDEX(Ranks!$1:$1048576,$A289,AZ$1))","v":""},{"$f":"IF($A289=\"N/A\",Ref!$B$36,INDEX(Ranks!$1:$1048576,$A289,BA$1))","v":""},{"$f":"IF($A289=\"N/A\",Ref!$B$36,INDEX(Ranks!$1:$1048576,$A289,BB$1))","v":""},{"$f":"IF($A289=\"N/A\",Ref!$B$36,INDEX(Ranks!$1:$1048576,$A289,BC$1))","v":""},{"$f":"IF($A289=\"N/A\",Ref!$B$36,INDEX(Ranks!$1:$1048576,$A289,BD$1))","v":""},{"$f":"IF($A289=\"N/A\",Ref!$B$36,INDEX(Ranks!$1:$1048576,$A289,BE$1))","v":""},{"$f":"IF($A289=\"N/A\",Ref!$B$36,INDEX(Ranks!$1:$1048576,$A289,BF$1))","v":""},{"$f":"IF($A289=\"N/A\",Ref!$B$36,INDEX(Ranks!$1:$1048576,$A289,BG$1))","v":""},{"$f":"IF($A289=\"N/A\",Ref!$B$36,INDEX(Ranks!$1:$1048576,$A289,BH$1))","v":""},{"$f":"IF($A289=\"N/A\",Ref!$B$36,INDEX(Ranks!$1:$1048576,$A289,BI$1))","v":""},{"$f":"IF($A289=\"N/A\",Ref!$B$36,INDEX(Ranks!$1:$1048576,$A289,BJ$1))","v":""},{"$f":"IF($A289=\"N/A\",Ref!$B$36,INDEX(Ranks!$1:$1048576,$A289,BK$1))","v":""},{"$f":"IF($A289=\"N/A\",Ref!$B$36,INDEX(Ranks!$1:$1048576,$A289,BL$1))","v":""},{"$f":"IF($A289=\"N/A\",Ref!$B$36,INDEX(Ranks!$1:$1048576,$A289,BM$1))","v":""},{"$f":"IF($A289=\"N/A\",Ref!$B$36,INDEX(Ranks!$1:$1048576,$A289,BN$1))","v":""},{"$f":"IF($A289=\"N/A\",Ref!$B$36,INDEX(Ranks!$1:$1048576,$A289,BO$1))","v":""},{"$f":"IF($A289=\"N/A\",Ref!$B$36,INDEX(Ranks!$1:$1048576,$A289,BP$1))","v":""},{"$f":"IF($A289=\"N/A\",Ref!$B$36,INDEX(Ranks!$1:$1048576,$A289,BQ$1))","v":""},{"$f":"IF($A289=\"N/A\",Ref!$B$36,INDEX(Ranks!$1:$1048576,$A289,BR$1))","v":""},{"$f":"IF($A289=\"N/A\",Ref!$B$36,INDEX(Ranks!$1:$1048576,$A289,BS$1))","v":""},{"$f":"IF($A289=\"N/A\",Ref!$B$36,INDEX(Ranks!$1:$1048576,$A289,BT$1))","v":""},{"$f":"IF($A289=\"N/A\",Ref!$B$36,INDEX(Ranks!$1:$1048576,$A289,BU$1))","v":""},{"$f":"IF($A289=\"N/A\",Ref!$B$36,INDEX(Ranks!$1:$1048576,$A289,BV$1))","v":""},{"$f":"IF($A289=\"N/A\",Ref!$B$36,INDEX(Ranks!$1:$1048576,$A289,BW$1))","v":""},{"$f":"IF($A289=\"N/A\",Ref!$B$36,INDEX(Ranks!$1:$1048576,$A289,BX$1))","v":""},{"$f":"IF($A289=\"N/A\",Ref!$B$36,INDEX(Ranks!$1:$1048576,$A289,BY$1))","v":""},{"$f":"IF($A289=\"N/A\",Ref!$B$36,INDEX(Ranks!$1:$1048576,$A289,BZ$1))","v":""},{"$f":"IF($A289=\"N/A\",Ref!$B$36,INDEX(Ranks!$1:$1048576,$A289,CA$1))","v":""},{"$f":"IF($A289=\"N/A\",Ref!$B$36,INDEX(Ranks!$1:$1048576,$A289,CB$1))","v":""},{"$f":"IF($A289=\"N/A\",Ref!$B$36,INDEX(Ranks!$1:$1048576,$A289,CC$1))","v":""},{"$f":"IF($A289=\"N/A\",Ref!$B$36,INDEX(Ranks!$1:$1048576,$A289,CD$1))","v":""},{"$f":"IF($A289=\"N/A\",Ref!$B$36,INDEX(Ranks!$1:$1048576,$A289,CE$1))","v":""},{"$f":"IF($A289=\"N/A\",Ref!$B$36,INDEX(Ranks!$1:$1048576,$A289,CF$1))","v":""},{"$f":"IF($A289=\"N/A\",Ref!$B$36,INDEX(Ranks!$1:$1048576,$A289,CG$1))","v":""},{"$f":"IF($A289=\"N/A\",Ref!$B$36,INDEX(Ranks!$1:$1048576,$A289,CH$1))","v":""},{"$f":"IF($A289=\"N/A\",Ref!$B$36,INDEX(Ranks!$1:$1048576,$A289,CI$1))","v":""},{"$f":"IF($A289=\"N/A\",Ref!$B$36,INDEX(Ranks!$1:$1048576,$A289,CJ$1))","v":""},{"$f":"IF($A289=\"N/A\",Ref!$B$36,INDEX(Ranks!$1:$1048576,$A289,CK$1))","v":""},{"$f":"IF($A289=\"N/A\",Ref!$B$36,INDEX(Ranks!$1:$1048576,$A289,CL$1))","v":""},{"$f":"IF($A289=\"N/A\",Ref!$B$36,INDEX(Ranks!$1:$1048576,$A289,CM$1))","v":""},{"$f":"IF($A289=\"N/A\",Ref!$B$36,INDEX(Ranks!$1:$1048576,$A289,CN$1))","v":""},{"$f":"IF($A289=\"N/A\",Ref!$B$36,INDEX(Ranks!$1:$1048576,$A289,CO$1))","v":""},{"$f":"IF($A289=\"N/A\",Ref!$B$36,INDEX(Ranks!$1:$1048576,$A289,CP$1))","v":""},{"$f":"IF($A289=\"N/A\",Ref!$B$36,INDEX(Ranks!$1:$1048576,$A289,CQ$1))","v":""},{"$f":"IF($A289=\"N/A\",Ref!$B$36,INDEX(Ranks!$1:$1048576,$A289,CR$1))","v":""},{"$f":"IF($A289=\"N/A\",Ref!$B$36,INDEX(Ranks!$1:$1048576,$A289,CS$1))","v":""},{"$f":"IF($A289=\"N/A\",Ref!$B$36,INDEX(Ranks!$1:$1048576,$A289,CT$1))","v":""},{"$f":"IF($A289=\"N/A\",Ref!$B$36,INDEX(Ranks!$1:$1048576,$A289,CU$1))","v":""},{"$f":"IF($A289=\"N/A\",Ref!$B$36,INDEX(Ranks!$1:$1048576,$A289,CV$1))","v":""},{"$f":"IF($A289=\"N/A\",Ref!$B$36,INDEX(Ranks!$1:$1048576,$A289,CW$1))","v":""},{"$f":"IF($A289=\"N/A\",Ref!$B$36,INDEX(Ranks!$1:$1048576,$A289,CX$1))","v":""},{"$f":"IF($A289=\"N/A\",Ref!$B$36,INDEX(Ranks!$1:$1048576,$A289,CY$1))","v":""},{"$f":"IF($A289=\"N/A\",Ref!$B$36,INDEX(Ranks!$1:$1048576,$A289,CZ$1))","v":""},{"$f":"IF($A289=\"N/A\",Ref!$B$36,INDEX(Ranks!$1:$1048576,$A289,DA$1))","v":""},{"$f":"IF($A289=\"N/A\",Ref!$B$36,INDEX(Ranks!$1:$1048576,$A289,DB$1))","v":""},{"$f":"IF($A289=\"N/A\",Ref!$B$36,INDEX(Ranks!$1:$1048576,$A289,DC$1))","v":""},{"$f":"IF($A289=\"N/A\",Ref!$B$36,INDEX(Ranks!$1:$1048576,$A289,DD$1))","v":""},{"$f":"IF($A289=\"N/A\",Ref!$B$36,INDEX(Ranks!$1:$1048576,$A289,DE$1))","v":""},{"$f":"IF($A289=\"N/A\",Ref!$B$36,INDEX(Ranks!$1:$1048576,$A289,DF$1))","v":""},{"$f":"IF($A289=\"N/A\",Ref!$B$36,INDEX(Ranks!$1:$1048576,$A289,DG$1))","v":""},{"$f":"IF($A289=\"N/A\",Ref!$B$36,INDEX(Ranks!$1:$1048576,$A289,DH$1))","v":""},{"$f":"IF($A289=\"N/A\",Ref!$B$36,INDEX(Ranks!$1:$1048576,$A289,DI$1))","v":""},{"$f":"IF($A289=\"N/A\",Ref!$B$36,INDEX(Ranks!$1:$1048576,$A289,DJ$1))","v":""},{"$f":"IF($A289=\"N/A\",Ref!$B$36,INDEX(Ranks!$1:$1048576,$A289,DK$1))","v":""},{"$f":"IF($A289=\"N/A\",Ref!$B$36,INDEX(Ranks!$1:$1048576,$A289,DL$1))","v":""},{"$f":"IF($A289=\"N/A\",Ref!$B$36,INDEX(Ranks!$1:$1048576,$A289,DM$1))","v":""},{"$f":"IF($A289=\"N/A\",Ref!$B$36,INDEX(Ranks!$1:$1048576,$A289,DN$1))","v":""},{"$f":"IF($A289=\"N/A\",Ref!$B$36,INDEX(Ranks!$1:$1048576,$A289,DO$1))","v":""},{"$f":"IF($A289=\"N/A\",Ref!$B$36,INDEX(Ranks!$1:$1048576,$A289,DP$1))","v":""},{"$f":"IF($A289=\"N/A\",Ref!$B$36,INDEX(Ranks!$1:$1048576,$A289,DQ$1))","v":""},{"$f":"IF($A289=\"N/A\",Ref!$B$36,INDEX(Ranks!$1:$1048576,$A289,DR$1))","v":""},{"$f":"IF($A289=\"N/A\",Ref!$B$36,INDEX(Ranks!$1:$1048576,$A289,DS$1))","v":""},{"$f":"IF($A289=\"N/A\",Ref!$B$36,INDEX(Ranks!$1:$1048576,$A289,DT$1))","v":""},{"$f":"IF($A289=\"N/A\",Ref!$B$36,INDEX(Ranks!$1:$1048576,$A289,DU$1))","v":""},{"$f":"IF($A289=\"N/A\",Ref!$B$36,INDEX(Ranks!$1:$1048576,$A289,DV$1))","v":""},{"$f":"IF($A289=\"N/A\",Ref!$B$36,INDEX(Ranks!$1:$1048576,$A289,DW$1))","v":""},{"$f":"IF($A289=\"N/A\",Ref!$B$36,INDEX(Ranks!$1:$1048576,$A289,DX$1))","v":""},{"$f":"IF($A289=\"N/A\",Ref!$B$36,INDEX(Ranks!$1:$1048576,$A289,DY$1))","v":""},{"$f":"IF($A289=\"N/A\",Ref!$B$36,INDEX(Ranks!$1:$1048576,$A289,DZ$1))","v":""},{"$f":"IF($A289=\"N/A\",Ref!$B$36,INDEX(Ranks!$1:$1048576,$A289,EA$1))","v":""},{"$f":"IF($A289=\"N/A\",Ref!$B$36,INDEX(Ranks!$1:$1048576,$A289,EB$1))","v":""}]
[{"$f":"IFERROR(MATCH('Portfolio Page'!L290,Ranks!L:L,0),\"N/A\")","v":"N/A"},null,{"$f":"IF($A290=\"N/A\",\"\",INDEX(Ranks!$1:$1048576,$A290,C$1))","v":""},{"$f":"IF($A290=\"N/A\",Ref!$B$36,INDEX(Ranks!$1:$1048576,$A290,D$1))","v":""},{"$f":"IF($A290=\"N/A\",Ref!$B$36,INDEX(Ranks!$1:$1048576,$A290,E$1))","v":""},{"$f":"IF($A290=\"N/A\",\"\",INDEX(Ranks!$1:$1048576,$A290,F$1))","v":""},{"$f":"IF($A290=\"N/A\",\"\",INDEX(Ranks!$1:$1048576,$A290,G$1))","v":""},{"$f":"IF($A290=\"N/A\",\"\",INDEX(Ranks!$1:$1048576,$A290,H$1))","v":""},{"$f":"IF($A290=\"N/A\",\"\",INDEX(Ranks!$1:$1048576,$A290,I$1))","v":""},{"$f":"IF($A290=\"N/A\",\"\",INDEX(Ranks!$1:$1048576,$A290,J$1))","v":""},{"$f":"IF($A290=\"N/A\",\"\",INDEX(Ranks!$1:$1048576,$A290,K$1))","v":""},null,{"$f":"IF($A290=\"N/A\",Ref!$B$36,INDEX(Ranks!$1:$1048576,$A290,M$1))","v":""},{"$f":"IF($A290=\"N/A\",Ref!$B$36,INDEX(Ranks!$1:$1048576,$A290,N$1))","v":""},{"$f":"IF($A290=\"N/A\",Ref!$B$36,INDEX(Ranks!$1:$1048576,$A290,O$1))","v":""},{"$f":"IF($A290=\"N/A\",Ref!$B$36,INDEX(Ranks!$1:$1048576,$A290,P$1))","v":""},{"$f":"IF($A290=\"N/A\",Ref!$B$36,INDEX(Ranks!$1:$1048576,$A290,Q$1))","v":""},{"$f":"IF($A290=\"N/A\",Ref!$B$36,INDEX(Ranks!$1:$1048576,$A290,R$1))","v":""},{"$f":"IF($A290=\"N/A\",Ref!$B$36,INDEX(Ranks!$1:$1048576,$A290,S$1))","v":""},{"$f":"IF($A290=\"N/A\",Ref!$B$36,INDEX(Ranks!$1:$1048576,$A290,T$1))","v":""},{"$f":"IF($A290=\"N/A\",Ref!$B$36,INDEX(Ranks!$1:$1048576,$A290,U$1))","v":""},{"$f":"IF($A290=\"N/A\",Ref!$B$36,INDEX(Ranks!$1:$1048576,$A290,V$1))","v":""},{"$f":"IF($A290=\"N/A\",Ref!$B$36,INDEX(Ranks!$1:$1048576,$A290,W$1))","v":""},{"$f":"IF($A290=\"N/A\",Ref!$B$36,INDEX(Ranks!$1:$1048576,$A290,X$1))","v":""},{"$f":"IF($A290=\"N/A\",Ref!$B$36,INDEX(Ranks!$1:$1048576,$A290,Y$1))","v":""},{"$f":"IF($A290=\"N/A\",Ref!$B$36,INDEX(Ranks!$1:$1048576,$A290,Z$1))","v":""},{"$f":"IF($A290=\"N/A\",Ref!$B$36,INDEX(Ranks!$1:$1048576,$A290,AA$1))","v":""},{"$f":"IF($A290=\"N/A\",Ref!$B$36,INDEX(Ranks!$1:$1048576,$A290,AB$1))","v":""},{"$f":"IF($A290=\"N/A\",Ref!$B$36,INDEX(Ranks!$1:$1048576,$A290,AC$1))","v":""},{"$f":"IF($A290=\"N/A\",Ref!$B$36,INDEX(Ranks!$1:$1048576,$A290,AD$1))","v":""},{"$f":"IF($A290=\"N/A\",Ref!$B$36,INDEX(Ranks!$1:$1048576,$A290,AE$1))","v":""},{"$f":"IF($A290=\"N/A\",Ref!$B$36,INDEX(Ranks!$1:$1048576,$A290,AF$1))","v":""},{"$f":"IF($A290=\"N/A\",Ref!$B$36,INDEX(Ranks!$1:$1048576,$A290,AG$1))","v":""},{"$f":"IF($A290=\"N/A\",Ref!$B$36,INDEX(Ranks!$1:$1048576,$A290,AH$1))","v":""},{"$f":"IF($A290=\"N/A\",Ref!$B$36,INDEX(Ranks!$1:$1048576,$A290,AI$1))","v":""},{"$f":"IF($A290=\"N/A\",Ref!$B$36,INDEX(Ranks!$1:$1048576,$A290,AJ$1))","v":""},{"$f":"IF($A290=\"N/A\",Ref!$B$36,INDEX(Ranks!$1:$1048576,$A290,AK$1))","v":""},{"$f":"IF($A290=\"N/A\",Ref!$B$36,INDEX(Ranks!$1:$1048576,$A290,AL$1))","v":""},{"$f":"IF($A290=\"N/A\",Ref!$B$36,INDEX(Ranks!$1:$1048576,$A290,AM$1))","v":""},{"$f":"IF($A290=\"N/A\",Ref!$B$36,INDEX(Ranks!$1:$1048576,$A290,AN$1))","v":""},{"$f":"IF($A290=\"N/A\",Ref!$B$36,INDEX(Ranks!$1:$1048576,$A290,AO$1))","v":""},{"$f":"IF($A290=\"N/A\",Ref!$B$36,INDEX(Ranks!$1:$1048576,$A290,AP$1))","v":""},{"$f":"IF($A290=\"N/A\",Ref!$B$36,INDEX(Ranks!$1:$1048576,$A290,AQ$1))","v":""},{"$f":"IF($A290=\"N/A\",Ref!$B$36,INDEX(Ranks!$1:$1048576,$A290,AR$1))","v":""},{"$f":"IF($A290=\"N/A\",Ref!$B$36,INDEX(Ranks!$1:$1048576,$A290,AS$1))","v":""},{"$f":"IF($A290=\"N/A\",Ref!$B$36,INDEX(Ranks!$1:$1048576,$A290,AT$1))","v":""},{"$f":"IF($A290=\"N/A\",Ref!$B$36,INDEX(Ranks!$1:$1048576,$A290,AU$1))","v":""},{"$f":"IF($A290=\"N/A\",Ref!$B$36,INDEX(Ranks!$1:$1048576,$A290,AV$1))","v":""},{"$f":"IF($A290=\"N/A\",Ref!$B$36,INDEX(Ranks!$1:$1048576,$A290,AW$1))","v":""},{"$f":"IF($A290=\"N/A\",Ref!$B$36,INDEX(Ranks!$1:$1048576,$A290,AX$1))","v":""},{"$f":"IF($A290=\"N/A\",Ref!$B$36,INDEX(Ranks!$1:$1048576,$A290,AY$1))","v":""},{"$f":"IF($A290=\"N/A\",Ref!$B$36,INDEX(Ranks!$1:$1048576,$A290,AZ$1))","v":""},{"$f":"IF($A290=\"N/A\",Ref!$B$36,INDEX(Ranks!$1:$1048576,$A290,BA$1))","v":""},{"$f":"IF($A290=\"N/A\",Ref!$B$36,INDEX(Ranks!$1:$1048576,$A290,BB$1))","v":""},{"$f":"IF($A290=\"N/A\",Ref!$B$36,INDEX(Ranks!$1:$1048576,$A290,BC$1))","v":""},{"$f":"IF($A290=\"N/A\",Ref!$B$36,INDEX(Ranks!$1:$1048576,$A290,BD$1))","v":""},{"$f":"IF($A290=\"N/A\",Ref!$B$36,INDEX(Ranks!$1:$1048576,$A290,BE$1))","v":""},{"$f":"IF($A290=\"N/A\",Ref!$B$36,INDEX(Ranks!$1:$1048576,$A290,BF$1))","v":""},{"$f":"IF($A290=\"N/A\",Ref!$B$36,INDEX(Ranks!$1:$1048576,$A290,BG$1))","v":""},{"$f":"IF($A290=\"N/A\",Ref!$B$36,INDEX(Ranks!$1:$1048576,$A290,BH$1))","v":""},{"$f":"IF($A290=\"N/A\",Ref!$B$36,INDEX(Ranks!$1:$1048576,$A290,BI$1))","v":""},{"$f":"IF($A290=\"N/A\",Ref!$B$36,INDEX(Ranks!$1:$1048576,$A290,BJ$1))","v":""},{"$f":"IF($A290=\"N/A\",Ref!$B$36,INDEX(Ranks!$1:$1048576,$A290,BK$1))","v":""},{"$f":"IF($A290=\"N/A\",Ref!$B$36,INDEX(Ranks!$1:$1048576,$A290,BL$1))","v":""},{"$f":"IF($A290=\"N/A\",Ref!$B$36,INDEX(Ranks!$1:$1048576,$A290,BM$1))","v":""},{"$f":"IF($A290=\"N/A\",Ref!$B$36,INDEX(Ranks!$1:$1048576,$A290,BN$1))","v":""},{"$f":"IF($A290=\"N/A\",Ref!$B$36,INDEX(Ranks!$1:$1048576,$A290,BO$1))","v":""},{"$f":"IF($A290=\"N/A\",Ref!$B$36,INDEX(Ranks!$1:$1048576,$A290,BP$1))","v":""},{"$f":"IF($A290=\"N/A\",Ref!$B$36,INDEX(Ranks!$1:$1048576,$A290,BQ$1))","v":""},{"$f":"IF($A290=\"N/A\",Ref!$B$36,INDEX(Ranks!$1:$1048576,$A290,BR$1))","v":""},{"$f":"IF($A290=\"N/A\",Ref!$B$36,INDEX(Ranks!$1:$1048576,$A290,BS$1))","v":""},{"$f":"IF($A290=\"N/A\",Ref!$B$36,INDEX(Ranks!$1:$1048576,$A290,BT$1))","v":""},{"$f":"IF($A290=\"N/A\",Ref!$B$36,INDEX(Ranks!$1:$1048576,$A290,BU$1))","v":""},{"$f":"IF($A290=\"N/A\",Ref!$B$36,INDEX(Ranks!$1:$1048576,$A290,BV$1))","v":""},{"$f":"IF($A290=\"N/A\",Ref!$B$36,INDEX(Ranks!$1:$1048576,$A290,BW$1))","v":""},{"$f":"IF($A290=\"N/A\",Ref!$B$36,INDEX(Ranks!$1:$1048576,$A290,BX$1))","v":""},{"$f":"IF($A290=\"N/A\",Ref!$B$36,INDEX(Ranks!$1:$1048576,$A290,BY$1))","v":""},{"$f":"IF($A290=\"N/A\",Ref!$B$36,INDEX(Ranks!$1:$1048576,$A290,BZ$1))","v":""},{"$f":"IF($A290=\"N/A\",Ref!$B$36,INDEX(Ranks!$1:$1048576,$A290,CA$1))","v":""},{"$f":"IF($A290=\"N/A\",Ref!$B$36,INDEX(Ranks!$1:$1048576,$A290,CB$1))","v":""},{"$f":"IF($A290=\"N/A\",Ref!$B$36,INDEX(Ranks!$1:$1048576,$A290,CC$1))","v":""},{"$f":"IF($A290=\"N/A\",Ref!$B$36,INDEX(Ranks!$1:$1048576,$A290,CD$1))","v":""},{"$f":"IF($A290=\"N/A\",Ref!$B$36,INDEX(Ranks!$1:$1048576,$A290,CE$1))","v":""},{"$f":"IF($A290=\"N/A\",Ref!$B$36,INDEX(Ranks!$1:$1048576,$A290,CF$1))","v":""},{"$f":"IF($A290=\"N/A\",Ref!$B$36,INDEX(Ranks!$1:$1048576,$A290,CG$1))","v":""},{"$f":"IF($A290=\"N/A\",Ref!$B$36,INDEX(Ranks!$1:$1048576,$A290,CH$1))","v":""},{"$f":"IF($A290=\"N/A\",Ref!$B$36,INDEX(Ranks!$1:$1048576,$A290,CI$1))","v":""},{"$f":"IF($A290=\"N/A\",Ref!$B$36,INDEX(Ranks!$1:$1048576,$A290,CJ$1))","v":""},{"$f":"IF($A290=\"N/A\",Ref!$B$36,INDEX(Ranks!$1:$1048576,$A290,CK$1))","v":""},{"$f":"IF($A290=\"N/A\",Ref!$B$36,INDEX(Ranks!$1:$1048576,$A290,CL$1))","v":""},{"$f":"IF($A290=\"N/A\",Ref!$B$36,INDEX(Ranks!$1:$1048576,$A290,CM$1))","v":""},{"$f":"IF($A290=\"N/A\",Ref!$B$36,INDEX(Ranks!$1:$1048576,$A290,CN$1))","v":""},{"$f":"IF($A290=\"N/A\",Ref!$B$36,INDEX(Ranks!$1:$1048576,$A290,CO$1))","v":""},{"$f":"IF($A290=\"N/A\",Ref!$B$36,INDEX(Ranks!$1:$1048576,$A290,CP$1))","v":""},{"$f":"IF($A290=\"N/A\",Ref!$B$36,INDEX(Ranks!$1:$1048576,$A290,CQ$1))","v":""},{"$f":"IF($A290=\"N/A\",Ref!$B$36,INDEX(Ranks!$1:$1048576,$A290,CR$1))","v":""},{"$f":"IF($A290=\"N/A\",Ref!$B$36,INDEX(Ranks!$1:$1048576,$A290,CS$1))","v":""},{"$f":"IF($A290=\"N/A\",Ref!$B$36,INDEX(Ranks!$1:$1048576,$A290,CT$1))","v":""},{"$f":"IF($A290=\"N/A\",Ref!$B$36,INDEX(Ranks!$1:$1048576,$A290,CU$1))","v":""},{"$f":"IF($A290=\"N/A\",Ref!$B$36,INDEX(Ranks!$1:$1048576,$A290,CV$1))","v":""},{"$f":"IF($A290=\"N/A\",Ref!$B$36,INDEX(Ranks!$1:$1048576,$A290,CW$1))","v":""},{"$f":"IF($A290=\"N/A\",Ref!$B$36,INDEX(Ranks!$1:$1048576,$A290,CX$1))","v":""},{"$f":"IF($A290=\"N/A\",Ref!$B$36,INDEX(Ranks!$1:$1048576,$A290,CY$1))","v":""},{"$f":"IF($A290=\"N/A\",Ref!$B$36,INDEX(Ranks!$1:$1048576,$A290,CZ$1))","v":""},{"$f":"IF($A290=\"N/A\",Ref!$B$36,INDEX(Ranks!$1:$1048576,$A290,DA$1))","v":""},{"$f":"IF($A290=\"N/A\",Ref!$B$36,INDEX(Ranks!$1:$1048576,$A290,DB$1))","v":""},{"$f":"IF($A290=\"N/A\",Ref!$B$36,INDEX(Ranks!$1:$1048576,$A290,DC$1))","v":""},{"$f":"IF($A290=\"N/A\",Ref!$B$36,INDEX(Ranks!$1:$1048576,$A290,DD$1))","v":""},{"$f":"IF($A290=\"N/A\",Ref!$B$36,INDEX(Ranks!$1:$1048576,$A290,DE$1))","v":""},{"$f":"IF($A290=\"N/A\",Ref!$B$36,INDEX(Ranks!$1:$1048576,$A290,DF$1))","v":""},{"$f":"IF($A290=\"N/A\",Ref!$B$36,INDEX(Ranks!$1:$1048576,$A290,DG$1))","v":""},{"$f":"IF($A290=\"N/A\",Ref!$B$36,INDEX(Ranks!$1:$1048576,$A290,DH$1))","v":""},{"$f":"IF($A290=\"N/A\",Ref!$B$36,INDEX(Ranks!$1:$1048576,$A290,DI$1))","v":""},{"$f":"IF($A290=\"N/A\",Ref!$B$36,INDEX(Ranks!$1:$1048576,$A290,DJ$1))","v":""},{"$f":"IF($A290=\"N/A\",Ref!$B$36,INDEX(Ranks!$1:$1048576,$A290,DK$1))","v":""},{"$f":"IF($A290=\"N/A\",Ref!$B$36,INDEX(Ranks!$1:$1048576,$A290,DL$1))","v":""},{"$f":"IF($A290=\"N/A\",Ref!$B$36,INDEX(Ranks!$1:$1048576,$A290,DM$1))","v":""},{"$f":"IF($A290=\"N/A\",Ref!$B$36,INDEX(Ranks!$1:$1048576,$A290,DN$1))","v":""},{"$f":"IF($A290=\"N/A\",Ref!$B$36,INDEX(Ranks!$1:$1048576,$A290,DO$1))","v":""},{"$f":"IF($A290=\"N/A\",Ref!$B$36,INDEX(Ranks!$1:$1048576,$A290,DP$1))","v":""},{"$f":"IF($A290=\"N/A\",Ref!$B$36,INDEX(Ranks!$1:$1048576,$A290,DQ$1))","v":""},{"$f":"IF($A290=\"N/A\",Ref!$B$36,INDEX(Ranks!$1:$1048576,$A290,DR$1))","v":""},{"$f":"IF($A290=\"N/A\",Ref!$B$36,INDEX(Ranks!$1:$1048576,$A290,DS$1))","v":""},{"$f":"IF($A290=\"N/A\",Ref!$B$36,INDEX(Ranks!$1:$1048576,$A290,DT$1))","v":""},{"$f":"IF($A290=\"N/A\",Ref!$B$36,INDEX(Ranks!$1:$1048576,$A290,DU$1))","v":""},{"$f":"IF($A290=\"N/A\",Ref!$B$36,INDEX(Ranks!$1:$1048576,$A290,DV$1))","v":""},{"$f":"IF($A290=\"N/A\",Ref!$B$36,INDEX(Ranks!$1:$1048576,$A290,DW$1))","v":""},{"$f":"IF($A290=\"N/A\",Ref!$B$36,INDEX(Ranks!$1:$1048576,$A290,DX$1))","v":""},{"$f":"IF($A290=\"N/A\",Ref!$B$36,INDEX(Ranks!$1:$1048576,$A290,DY$1))","v":""},{"$f":"IF($A290=\"N/A\",Ref!$B$36,INDEX(Ranks!$1:$1048576,$A290,DZ$1))","v":""},{"$f":"IF($A290=\"N/A\",Ref!$B$36,INDEX(Ranks!$1:$1048576,$A290,EA$1))","v":""},{"$f":"IF($A290=\"N/A\",Ref!$B$36,INDEX(Ranks!$1:$1048576,$A290,EB$1))","v":""}]
[{"$f":"IFERROR(MATCH('Portfolio Page'!L291,Ranks!L:L,0),\"N/A\")","v":"N/A"},null,{"$f":"IF($A291=\"N/A\",\"\",INDEX(Ranks!$1:$1048576,$A291,C$1))","v":""},{"$f":"IF($A291=\"N/A\",Ref!$B$36,INDEX(Ranks!$1:$1048576,$A291,D$1))","v":""},{"$f":"IF($A291=\"N/A\",Ref!$B$36,INDEX(Ranks!$1:$1048576,$A291,E$1))","v":""},{"$f":"IF($A291=\"N/A\",\"\",INDEX(Ranks!$1:$1048576,$A291,F$1))","v":""},{"$f":"IF($A291=\"N/A\",\"\",INDEX(Ranks!$1:$1048576,$A291,G$1))","v":""},{"$f":"IF($A291=\"N/A\",\"\",INDEX(Ranks!$1:$1048576,$A291,H$1))","v":""},{"$f":"IF($A291=\"N/A\",\"\",INDEX(Ranks!$1:$1048576,$A291,I$1))","v":""},{"$f":"IF($A291=\"N/A\",\"\",INDEX(Ranks!$1:$1048576,$A291,J$1))","v":""},{"$f":"IF($A291=\"N/A\",\"\",INDEX(Ranks!$1:$1048576,$A291,K$1))","v":""},null,{"$f":"IF($A291=\"N/A\",Ref!$B$36,INDEX(Ranks!$1:$1048576,$A291,M$1))","v":""},{"$f":"IF($A291=\"N/A\",Ref!$B$36,INDEX(Ranks!$1:$1048576,$A291,N$1))","v":""},{"$f":"IF($A291=\"N/A\",Ref!$B$36,INDEX(Ranks!$1:$1048576,$A291,O$1))","v":""},{"$f":"IF($A291=\"N/A\",Ref!$B$36,INDEX(Ranks!$1:$1048576,$A291,P$1))","v":""},{"$f":"IF($A291=\"N/A\",Ref!$B$36,INDEX(Ranks!$1:$1048576,$A291,Q$1))","v":""},{"$f":"IF($A291=\"N/A\",Ref!$B$36,INDEX(Ranks!$1:$1048576,$A291,R$1))","v":""},{"$f":"IF($A291=\"N/A\",Ref!$B$36,INDEX(Ranks!$1:$1048576,$A291,S$1))","v":""},{"$f":"IF($A291=\"N/A\",Ref!$B$36,INDEX(Ranks!$1:$1048576,$A291,T$1))","v":""},{"$f":"IF($A291=\"N/A\",Ref!$B$36,INDEX(Ranks!$1:$1048576,$A291,U$1))","v":""},{"$f":"IF($A291=\"N/A\",Ref!$B$36,INDEX(Ranks!$1:$1048576,$A291,V$1))","v":""},{"$f":"IF($A291=\"N/A\",Ref!$B$36,INDEX(Ranks!$1:$1048576,$A291,W$1))","v":""},{"$f":"IF($A291=\"N/A\",Ref!$B$36,INDEX(Ranks!$1:$1048576,$A291,X$1))","v":""},{"$f":"IF($A291=\"N/A\",Ref!$B$36,INDEX(Ranks!$1:$1048576,$A291,Y$1))","v":""},{"$f":"IF($A291=\"N/A\",Ref!$B$36,INDEX(Ranks!$1:$1048576,$A291,Z$1))","v":""},{"$f":"IF($A291=\"N/A\",Ref!$B$36,INDEX(Ranks!$1:$1048576,$A291,AA$1))","v":""},{"$f":"IF($A291=\"N/A\",Ref!$B$36,INDEX(Ranks!$1:$1048576,$A291,AB$1))","v":""},{"$f":"IF($A291=\"N/A\",Ref!$B$36,INDEX(Ranks!$1:$1048576,$A291,AC$1))","v":""},{"$f":"IF($A291=\"N/A\",Ref!$B$36,INDEX(Ranks!$1:$1048576,$A291,AD$1))","v":""},{"$f":"IF($A291=\"N/A\",Ref!$B$36,INDEX(Ranks!$1:$1048576,$A291,AE$1))","v":""},{"$f":"IF($A291=\"N/A\",Ref!$B$36,INDEX(Ranks!$1:$1048576,$A291,AF$1))","v":""},{"$f":"IF($A291=\"N/A\",Ref!$B$36,INDEX(Ranks!$1:$1048576,$A291,AG$1))","v":""},{"$f":"IF($A291=\"N/A\",Ref!$B$36,INDEX(Ranks!$1:$1048576,$A291,AH$1))","v":""},{"$f":"IF($A291=\"N/A\",Ref!$B$36,INDEX(Ranks!$1:$1048576,$A291,AI$1))","v":""},{"$f":"IF($A291=\"N/A\",Ref!$B$36,INDEX(Ranks!$1:$1048576,$A291,AJ$1))","v":""},{"$f":"IF($A291=\"N/A\",Ref!$B$36,INDEX(Ranks!$1:$1048576,$A291,AK$1))","v":""},{"$f":"IF($A291=\"N/A\",Ref!$B$36,INDEX(Ranks!$1:$1048576,$A291,AL$1))","v":""},{"$f":"IF($A291=\"N/A\",Ref!$B$36,INDEX(Ranks!$1:$1048576,$A291,AM$1))","v":""},{"$f":"IF($A291=\"N/A\",Ref!$B$36,INDEX(Ranks!$1:$1048576,$A291,AN$1))","v":""},{"$f":"IF($A291=\"N/A\",Ref!$B$36,INDEX(Ranks!$1:$1048576,$A291,AO$1))","v":""},{"$f":"IF($A291=\"N/A\",Ref!$B$36,INDEX(Ranks!$1:$1048576,$A291,AP$1))","v":""},{"$f":"IF($A291=\"N/A\",Ref!$B$36,INDEX(Ranks!$1:$1048576,$A291,AQ$1))","v":""},{"$f":"IF($A291=\"N/A\",Ref!$B$36,INDEX(Ranks!$1:$1048576,$A291,AR$1))","v":""},{"$f":"IF($A291=\"N/A\",Ref!$B$36,INDEX(Ranks!$1:$1048576,$A291,AS$1))","v":""},{"$f":"IF($A291=\"N/A\",Ref!$B$36,INDEX(Ranks!$1:$1048576,$A291,AT$1))","v":""},{"$f":"IF($A291=\"N/A\",Ref!$B$36,INDEX(Ranks!$1:$1048576,$A291,AU$1))","v":""},{"$f":"IF($A291=\"N/A\",Ref!$B$36,INDEX(Ranks!$1:$1048576,$A291,AV$1))","v":""},{"$f":"IF($A291=\"N/A\",Ref!$B$36,INDEX(Ranks!$1:$1048576,$A291,AW$1))","v":""},{"$f":"IF($A291=\"N/A\",Ref!$B$36,INDEX(Ranks!$1:$1048576,$A291,AX$1))","v":""},{"$f":"IF($A291=\"N/A\",Ref!$B$36,INDEX(Ranks!$1:$1048576,$A291,AY$1))","v":""},{"$f":"IF($A291=\"N/A\",Ref!$B$36,INDEX(Ranks!$1:$1048576,$A291,AZ$1))","v":""},{"$f":"IF($A291=\"N/A\",Ref!$B$36,INDEX(Ranks!$1:$1048576,$A291,BA$1))","v":""},{"$f":"IF($A291=\"N/A\",Ref!$B$36,INDEX(Ranks!$1:$1048576,$A291,BB$1))","v":""},{"$f":"IF($A291=\"N/A\",Ref!$B$36,INDEX(Ranks!$1:$1048576,$A291,BC$1))","v":""},{"$f":"IF($A291=\"N/A\",Ref!$B$36,INDEX(Ranks!$1:$1048576,$A291,BD$1))","v":""},{"$f":"IF($A291=\"N/A\",Ref!$B$36,INDEX(Ranks!$1:$1048576,$A291,BE$1))","v":""},{"$f":"IF($A291=\"N/A\",Ref!$B$36,INDEX(Ranks!$1:$1048576,$A291,BF$1))","v":""},{"$f":"IF($A291=\"N/A\",Ref!$B$36,INDEX(Ranks!$1:$1048576,$A291,BG$1))","v":""},{"$f":"IF($A291=\"N/A\",Ref!$B$36,INDEX(Ranks!$1:$1048576,$A291,BH$1))","v":""},{"$f":"IF($A291=\"N/A\",Ref!$B$36,INDEX(Ranks!$1:$1048576,$A291,BI$1))","v":""},{"$f":"IF($A291=\"N/A\",Ref!$B$36,INDEX(Ranks!$1:$1048576,$A291,BJ$1))","v":""},{"$f":"IF($A291=\"N/A\",Ref!$B$36,INDEX(Ranks!$1:$1048576,$A291,BK$1))","v":""},{"$f":"IF($A291=\"N/A\",Ref!$B$36,INDEX(Ranks!$1:$1048576,$A291,BL$1))","v":""},{"$f":"IF($A291=\"N/A\",Ref!$B$36,INDEX(Ranks!$1:$1048576,$A291,BM$1))","v":""},{"$f":"IF($A291=\"N/A\",Ref!$B$36,INDEX(Ranks!$1:$1048576,$A291,BN$1))","v":""},{"$f":"IF($A291=\"N/A\",Ref!$B$36,INDEX(Ranks!$1:$1048576,$A291,BO$1))","v":""},{"$f":"IF($A291=\"N/A\",Ref!$B$36,INDEX(Ranks!$1:$1048576,$A291,BP$1))","v":""},{"$f":"IF($A291=\"N/A\",Ref!$B$36,INDEX(Ranks!$1:$1048576,$A291,BQ$1))","v":""},{"$f":"IF($A291=\"N/A\",Ref!$B$36,INDEX(Ranks!$1:$1048576,$A291,BR$1))","v":""},{"$f":"IF($A291=\"N/A\",Ref!$B$36,INDEX(Ranks!$1:$1048576,$A291,BS$1))","v":""},{"$f":"IF($A291=\"N/A\",Ref!$B$36,INDEX(Ranks!$1:$1048576,$A291,BT$1))","v":""},{"$f":"IF($A291=\"N/A\",Ref!$B$36,INDEX(Ranks!$1:$1048576,$A291,BU$1))","v":""},{"$f":"IF($A291=\"N/A\",Ref!$B$36,INDEX(Ranks!$1:$1048576,$A291,BV$1))","v":""},{"$f":"IF($A291=\"N/A\",Ref!$B$36,INDEX(Ranks!$1:$1048576,$A291,BW$1))","v":""},{"$f":"IF($A291=\"N/A\",Ref!$B$36,INDEX(Ranks!$1:$1048576,$A291,BX$1))","v":""},{"$f":"IF($A291=\"N/A\",Ref!$B$36,INDEX(Ranks!$1:$1048576,$A291,BY$1))","v":""},{"$f":"IF($A291=\"N/A\",Ref!$B$36,INDEX(Ranks!$1:$1048576,$A291,BZ$1))","v":""},{"$f":"IF($A291=\"N/A\",Ref!$B$36,INDEX(Ranks!$1:$1048576,$A291,CA$1))","v":""},{"$f":"IF($A291=\"N/A\",Ref!$B$36,INDEX(Ranks!$1:$1048576,$A291,CB$1))","v":""},{"$f":"IF($A291=\"N/A\",Ref!$B$36,INDEX(Ranks!$1:$1048576,$A291,CC$1))","v":""},{"$f":"IF($A291=\"N/A\",Ref!$B$36,INDEX(Ranks!$1:$1048576,$A291,CD$1))","v":""},{"$f":"IF($A291=\"N/A\",Ref!$B$36,INDEX(Ranks!$1:$1048576,$A291,CE$1))","v":""},{"$f":"IF($A291=\"N/A\",Ref!$B$36,INDEX(Ranks!$1:$1048576,$A291,CF$1))","v":""},{"$f":"IF($A291=\"N/A\",Ref!$B$36,INDEX(Ranks!$1:$1048576,$A291,CG$1))","v":""},{"$f":"IF($A291=\"N/A\",Ref!$B$36,INDEX(Ranks!$1:$1048576,$A291,CH$1))","v":""},{"$f":"IF($A291=\"N/A\",Ref!$B$36,INDEX(Ranks!$1:$1048576,$A291,CI$1))","v":""},{"$f":"IF($A291=\"N/A\",Ref!$B$36,INDEX(Ranks!$1:$1048576,$A291,CJ$1))","v":""},{"$f":"IF($A291=\"N/A\",Ref!$B$36,INDEX(Ranks!$1:$1048576,$A291,CK$1))","v":""},{"$f":"IF($A291=\"N/A\",Ref!$B$36,INDEX(Ranks!$1:$1048576,$A291,CL$1))","v":""},{"$f":"IF($A291=\"N/A\",Ref!$B$36,INDEX(Ranks!$1:$1048576,$A291,CM$1))","v":""},{"$f":"IF($A291=\"N/A\",Ref!$B$36,INDEX(Ranks!$1:$1048576,$A291,CN$1))","v":""},{"$f":"IF($A291=\"N/A\",Ref!$B$36,INDEX(Ranks!$1:$1048576,$A291,CO$1))","v":""},{"$f":"IF($A291=\"N/A\",Ref!$B$36,INDEX(Ranks!$1:$1048576,$A291,CP$1))","v":""},{"$f":"IF($A291=\"N/A\",Ref!$B$36,INDEX(Ranks!$1:$1048576,$A291,CQ$1))","v":""},{"$f":"IF($A291=\"N/A\",Ref!$B$36,INDEX(Ranks!$1:$1048576,$A291,CR$1))","v":""},{"$f":"IF($A291=\"N/A\",Ref!$B$36,INDEX(Ranks!$1:$1048576,$A291,CS$1))","v":""},{"$f":"IF($A291=\"N/A\",Ref!$B$36,INDEX(Ranks!$1:$1048576,$A291,CT$1))","v":""},{"$f":"IF($A291=\"N/A\",Ref!$B$36,INDEX(Ranks!$1:$1048576,$A291,CU$1))","v":""},{"$f":"IF($A291=\"N/A\",Ref!$B$36,INDEX(Ranks!$1:$1048576,$A291,CV$1))","v":""},{"$f":"IF($A291=\"N/A\",Ref!$B$36,INDEX(Ranks!$1:$1048576,$A291,CW$1))","v":""},{"$f":"IF($A291=\"N/A\",Ref!$B$36,INDEX(Ranks!$1:$1048576,$A291,CX$1))","v":""},{"$f":"IF($A291=\"N/A\",Ref!$B$36,INDEX(Ranks!$1:$1048576,$A291,CY$1))","v":""},{"$f":"IF($A291=\"N/A\",Ref!$B$36,INDEX(Ranks!$1:$1048576,$A291,CZ$1))","v":""},{"$f":"IF($A291=\"N/A\",Ref!$B$36,INDEX(Ranks!$1:$1048576,$A291,DA$1))","v":""},{"$f":"IF($A291=\"N/A\",Ref!$B$36,INDEX(Ranks!$1:$1048576,$A291,DB$1))","v":""},{"$f":"IF($A291=\"N/A\",Ref!$B$36,INDEX(Ranks!$1:$1048576,$A291,DC$1))","v":""},{"$f":"IF($A291=\"N/A\",Ref!$B$36,INDEX(Ranks!$1:$1048576,$A291,DD$1))","v":""},{"$f":"IF($A291=\"N/A\",Ref!$B$36,INDEX(Ranks!$1:$1048576,$A291,DE$1))","v":""},{"$f":"IF($A291=\"N/A\",Ref!$B$36,INDEX(Ranks!$1:$1048576,$A291,DF$1))","v":""},{"$f":"IF($A291=\"N/A\",Ref!$B$36,INDEX(Ranks!$1:$1048576,$A291,DG$1))","v":""},{"$f":"IF($A291=\"N/A\",Ref!$B$36,INDEX(Ranks!$1:$1048576,$A291,DH$1))","v":""},{"$f":"IF($A291=\"N/A\",Ref!$B$36,INDEX(Ranks!$1:$1048576,$A291,DI$1))","v":""},{"$f":"IF($A291=\"N/A\",Ref!$B$36,INDEX(Ranks!$1:$1048576,$A291,DJ$1))","v":""},{"$f":"IF($A291=\"N/A\",Ref!$B$36,INDEX(Ranks!$1:$1048576,$A291,DK$1))","v":""},{"$f":"IF($A291=\"N/A\",Ref!$B$36,INDEX(Ranks!$1:$1048576,$A291,DL$1))","v":""},{"$f":"IF($A291=\"N/A\",Ref!$B$36,INDEX(Ranks!$1:$1048576,$A291,DM$1))","v":""},{"$f":"IF($A291=\"N/A\",Ref!$B$36,INDEX(Ranks!$1:$1048576,$A291,DN$1))","v":""},{"$f":"IF($A291=\"N/A\",Ref!$B$36,INDEX(Ranks!$1:$1048576,$A291,DO$1))","v":""},{"$f":"IF($A291=\"N/A\",Ref!$B$36,INDEX(Ranks!$1:$1048576,$A291,DP$1))","v":""},{"$f":"IF($A291=\"N/A\",Ref!$B$36,INDEX(Ranks!$1:$1048576,$A291,DQ$1))","v":""},{"$f":"IF($A291=\"N/A\",Ref!$B$36,INDEX(Ranks!$1:$1048576,$A291,DR$1))","v":""},{"$f":"IF($A291=\"N/A\",Ref!$B$36,INDEX(Ranks!$1:$1048576,$A291,DS$1))","v":""},{"$f":"IF($A291=\"N/A\",Ref!$B$36,INDEX(Ranks!$1:$1048576,$A291,DT$1))","v":""},{"$f":"IF($A291=\"N/A\",Ref!$B$36,INDEX(Ranks!$1:$1048576,$A291,DU$1))","v":""},{"$f":"IF($A291=\"N/A\",Ref!$B$36,INDEX(Ranks!$1:$1048576,$A291,DV$1))","v":""},{"$f":"IF($A291=\"N/A\",Ref!$B$36,INDEX(Ranks!$1:$1048576,$A291,DW$1))","v":""},{"$f":"IF($A291=\"N/A\",Ref!$B$36,INDEX(Ranks!$1:$1048576,$A291,DX$1))","v":""},{"$f":"IF($A291=\"N/A\",Ref!$B$36,INDEX(Ranks!$1:$1048576,$A291,DY$1))","v":""},{"$f":"IF($A291=\"N/A\",Ref!$B$36,INDEX(Ranks!$1:$1048576,$A291,DZ$1))","v":""},{"$f":"IF($A291=\"N/A\",Ref!$B$36,INDEX(Ranks!$1:$1048576,$A291,EA$1))","v":""},{"$f":"IF($A291=\"N/A\",Ref!$B$36,INDEX(Ranks!$1:$1048576,$A291,EB$1))","v":""}]
[{"$f":"IFERROR(MATCH('Portfolio Page'!L292,Ranks!L:L,0),\"N/A\")","v":"N/A"},null,{"$f":"IF($A292=\"N/A\",\"\",INDEX(Ranks!$1:$1048576,$A292,C$1))","v":""},{"$f":"IF($A292=\"N/A\",Ref!$B$36,INDEX(Ranks!$1:$1048576,$A292,D$1))","v":""},{"$f":"IF($A292=\"N/A\",Ref!$B$36,INDEX(Ranks!$1:$1048576,$A292,E$1))","v":""},{"$f":"IF($A292=\"N/A\",\"\",INDEX(Ranks!$1:$1048576,$A292,F$1))","v":""},{"$f":"IF($A292=\"N/A\",\"\",INDEX(Ranks!$1:$1048576,$A292,G$1))","v":""},{"$f":"IF($A292=\"N/A\",\"\",INDEX(Ranks!$1:$1048576,$A292,H$1))","v":""},{"$f":"IF($A292=\"N/A\",\"\",INDEX(Ranks!$1:$1048576,$A292,I$1))","v":""},{"$f":"IF($A292=\"N/A\",\"\",INDEX(Ranks!$1:$1048576,$A292,J$1))","v":""},{"$f":"IF($A292=\"N/A\",\"\",INDEX(Ranks!$1:$1048576,$A292,K$1))","v":""},null,{"$f":"IF($A292=\"N/A\",Ref!$B$36,INDEX(Ranks!$1:$1048576,$A292,M$1))","v":""},{"$f":"IF($A292=\"N/A\",Ref!$B$36,INDEX(Ranks!$1:$1048576,$A292,N$1))","v":""},{"$f":"IF($A292=\"N/A\",Ref!$B$36,INDEX(Ranks!$1:$1048576,$A292,O$1))","v":""},{"$f":"IF($A292=\"N/A\",Ref!$B$36,INDEX(Ranks!$1:$1048576,$A292,P$1))","v":""},{"$f":"IF($A292=\"N/A\",Ref!$B$36,INDEX(Ranks!$1:$1048576,$A292,Q$1))","v":""},{"$f":"IF($A292=\"N/A\",Ref!$B$36,INDEX(Ranks!$1:$1048576,$A292,R$1))","v":""},{"$f":"IF($A292=\"N/A\",Ref!$B$36,INDEX(Ranks!$1:$1048576,$A292,S$1))","v":""},{"$f":"IF($A292=\"N/A\",Ref!$B$36,INDEX(Ranks!$1:$1048576,$A292,T$1))","v":""},{"$f":"IF($A292=\"N/A\",Ref!$B$36,INDEX(Ranks!$1:$1048576,$A292,U$1))","v":""},{"$f":"IF($A292=\"N/A\",Ref!$B$36,INDEX(Ranks!$1:$1048576,$A292,V$1))","v":""},{"$f":"IF($A292=\"N/A\",Ref!$B$36,INDEX(Ranks!$1:$1048576,$A292,W$1))","v":""},{"$f":"IF($A292=\"N/A\",Ref!$B$36,INDEX(Ranks!$1:$1048576,$A292,X$1))","v":""},{"$f":"IF($A292=\"N/A\",Ref!$B$36,INDEX(Ranks!$1:$1048576,$A292,Y$1))","v":""},{"$f":"IF($A292=\"N/A\",Ref!$B$36,INDEX(Ranks!$1:$1048576,$A292,Z$1))","v":""},{"$f":"IF($A292=\"N/A\",Ref!$B$36,INDEX(Ranks!$1:$1048576,$A292,AA$1))","v":""},{"$f":"IF($A292=\"N/A\",Ref!$B$36,INDEX(Ranks!$1:$1048576,$A292,AB$1))","v":""},{"$f":"IF($A292=\"N/A\",Ref!$B$36,INDEX(Ranks!$1:$1048576,$A292,AC$1))","v":""},{"$f":"IF($A292=\"N/A\",Ref!$B$36,INDEX(Ranks!$1:$1048576,$A292,AD$1))","v":""},{"$f":"IF($A292=\"N/A\",Ref!$B$36,INDEX(Ranks!$1:$1048576,$A292,AE$1))","v":""},{"$f":"IF($A292=\"N/A\",Ref!$B$36,INDEX(Ranks!$1:$1048576,$A292,AF$1))","v":""},{"$f":"IF($A292=\"N/A\",Ref!$B$36,INDEX(Ranks!$1:$1048576,$A292,AG$1))","v":""},{"$f":"IF($A292=\"N/A\",Ref!$B$36,INDEX(Ranks!$1:$1048576,$A292,AH$1))","v":""},{"$f":"IF($A292=\"N/A\",Ref!$B$36,INDEX(Ranks!$1:$1048576,$A292,AI$1))","v":""},{"$f":"IF($A292=\"N/A\",Ref!$B$36,INDEX(Ranks!$1:$1048576,$A292,AJ$1))","v":""},{"$f":"IF($A292=\"N/A\",Ref!$B$36,INDEX(Ranks!$1:$1048576,$A292,AK$1))","v":""},{"$f":"IF($A292=\"N/A\",Ref!$B$36,INDEX(Ranks!$1:$1048576,$A292,AL$1))","v":""},{"$f":"IF($A292=\"N/A\",Ref!$B$36,INDEX(Ranks!$1:$1048576,$A292,AM$1))","v":""},{"$f":"IF($A292=\"N/A\",Ref!$B$36,INDEX(Ranks!$1:$1048576,$A292,AN$1))","v":""},{"$f":"IF($A292=\"N/A\",Ref!$B$36,INDEX(Ranks!$1:$1048576,$A292,AO$1))","v":""},{"$f":"IF($A292=\"N/A\",Ref!$B$36,INDEX(Ranks!$1:$1048576,$A292,AP$1))","v":""},{"$f":"IF($A292=\"N/A\",Ref!$B$36,INDEX(Ranks!$1:$1048576,$A292,AQ$1))","v":""},{"$f":"IF($A292=\"N/A\",Ref!$B$36,INDEX(Ranks!$1:$1048576,$A292,AR$1))","v":""},{"$f":"IF($A292=\"N/A\",Ref!$B$36,INDEX(Ranks!$1:$1048576,$A292,AS$1))","v":""},{"$f":"IF($A292=\"N/A\",Ref!$B$36,INDEX(Ranks!$1:$1048576,$A292,AT$1))","v":""},{"$f":"IF($A292=\"N/A\",Ref!$B$36,INDEX(Ranks!$1:$1048576,$A292,AU$1))","v":""},{"$f":"IF($A292=\"N/A\",Ref!$B$36,INDEX(Ranks!$1:$1048576,$A292,AV$1))","v":""},{"$f":"IF($A292=\"N/A\",Ref!$B$36,INDEX(Ranks!$1:$1048576,$A292,AW$1))","v":""},{"$f":"IF($A292=\"N/A\",Ref!$B$36,INDEX(Ranks!$1:$1048576,$A292,AX$1))","v":""},{"$f":"IF($A292=\"N/A\",Ref!$B$36,INDEX(Ranks!$1:$1048576,$A292,AY$1))","v":""},{"$f":"IF($A292=\"N/A\",Ref!$B$36,INDEX(Ranks!$1:$1048576,$A292,AZ$1))","v":""},{"$f":"IF($A292=\"N/A\",Ref!$B$36,INDEX(Ranks!$1:$1048576,$A292,BA$1))","v":""},{"$f":"IF($A292=\"N/A\",Ref!$B$36,INDEX(Ranks!$1:$1048576,$A292,BB$1))","v":""},{"$f":"IF($A292=\"N/A\",Ref!$B$36,INDEX(Ranks!$1:$1048576,$A292,BC$1))","v":""},{"$f":"IF($A292=\"N/A\",Ref!$B$36,INDEX(Ranks!$1:$1048576,$A292,BD$1))","v":""},{"$f":"IF($A292=\"N/A\",Ref!$B$36,INDEX(Ranks!$1:$1048576,$A292,BE$1))","v":""},{"$f":"IF($A292=\"N/A\",Ref!$B$36,INDEX(Ranks!$1:$1048576,$A292,BF$1))","v":""},{"$f":"IF($A292=\"N/A\",Ref!$B$36,INDEX(Ranks!$1:$1048576,$A292,BG$1))","v":""},{"$f":"IF($A292=\"N/A\",Ref!$B$36,INDEX(Ranks!$1:$1048576,$A292,BH$1))","v":""},{"$f":"IF($A292=\"N/A\",Ref!$B$36,INDEX(Ranks!$1:$1048576,$A292,BI$1))","v":""},{"$f":"IF($A292=\"N/A\",Ref!$B$36,INDEX(Ranks!$1:$1048576,$A292,BJ$1))","v":""},{"$f":"IF($A292=\"N/A\",Ref!$B$36,INDEX(Ranks!$1:$1048576,$A292,BK$1))","v":""},{"$f":"IF($A292=\"N/A\",Ref!$B$36,INDEX(Ranks!$1:$1048576,$A292,BL$1))","v":""},{"$f":"IF($A292=\"N/A\",Ref!$B$36,INDEX(Ranks!$1:$1048576,$A292,BM$1))","v":""},{"$f":"IF($A292=\"N/A\",Ref!$B$36,INDEX(Ranks!$1:$1048576,$A292,BN$1))","v":""},{"$f":"IF($A292=\"N/A\",Ref!$B$36,INDEX(Ranks!$1:$1048576,$A292,BO$1))","v":""},{"$f":"IF($A292=\"N/A\",Ref!$B$36,INDEX(Ranks!$1:$1048576,$A292,BP$1))","v":""},{"$f":"IF($A292=\"N/A\",Ref!$B$36,INDEX(Ranks!$1:$1048576,$A292,BQ$1))","v":""},{"$f":"IF($A292=\"N/A\",Ref!$B$36,INDEX(Ranks!$1:$1048576,$A292,BR$1))","v":""},{"$f":"IF($A292=\"N/A\",Ref!$B$36,INDEX(Ranks!$1:$1048576,$A292,BS$1))","v":""},{"$f":"IF($A292=\"N/A\",Ref!$B$36,INDEX(Ranks!$1:$1048576,$A292,BT$1))","v":""},{"$f":"IF($A292=\"N/A\",Ref!$B$36,INDEX(Ranks!$1:$1048576,$A292,BU$1))","v":""},{"$f":"IF($A292=\"N/A\",Ref!$B$36,INDEX(Ranks!$1:$1048576,$A292,BV$1))","v":""},{"$f":"IF($A292=\"N/A\",Ref!$B$36,INDEX(Ranks!$1:$1048576,$A292,BW$1))","v":""},{"$f":"IF($A292=\"N/A\",Ref!$B$36,INDEX(Ranks!$1:$1048576,$A292,BX$1))","v":""},{"$f":"IF($A292=\"N/A\",Ref!$B$36,INDEX(Ranks!$1:$1048576,$A292,BY$1))","v":""},{"$f":"IF($A292=\"N/A\",Ref!$B$36,INDEX(Ranks!$1:$1048576,$A292,BZ$1))","v":""},{"$f":"IF($A292=\"N/A\",Ref!$B$36,INDEX(Ranks!$1:$1048576,$A292,CA$1))","v":""},{"$f":"IF($A292=\"N/A\",Ref!$B$36,INDEX(Ranks!$1:$1048576,$A292,CB$1))","v":""},{"$f":"IF($A292=\"N/A\",Ref!$B$36,INDEX(Ranks!$1:$1048576,$A292,CC$1))","v":""},{"$f":"IF($A292=\"N/A\",Ref!$B$36,INDEX(Ranks!$1:$1048576,$A292,CD$1))","v":""},{"$f":"IF($A292=\"N/A\",Ref!$B$36,INDEX(Ranks!$1:$1048576,$A292,CE$1))","v":""},{"$f":"IF($A292=\"N/A\",Ref!$B$36,INDEX(Ranks!$1:$1048576,$A292,CF$1))","v":""},{"$f":"IF($A292=\"N/A\",Ref!$B$36,INDEX(Ranks!$1:$1048576,$A292,CG$1))","v":""},{"$f":"IF($A292=\"N/A\",Ref!$B$36,INDEX(Ranks!$1:$1048576,$A292,CH$1))","v":""},{"$f":"IF($A292=\"N/A\",Ref!$B$36,INDEX(Ranks!$1:$1048576,$A292,CI$1))","v":""},{"$f":"IF($A292=\"N/A\",Ref!$B$36,INDEX(Ranks!$1:$1048576,$A292,CJ$1))","v":""},{"$f":"IF($A292=\"N/A\",Ref!$B$36,INDEX(Ranks!$1:$1048576,$A292,CK$1))","v":""},{"$f":"IF($A292=\"N/A\",Ref!$B$36,INDEX(Ranks!$1:$1048576,$A292,CL$1))","v":""},{"$f":"IF($A292=\"N/A\",Ref!$B$36,INDEX(Ranks!$1:$1048576,$A292,CM$1))","v":""},{"$f":"IF($A292=\"N/A\",Ref!$B$36,INDEX(Ranks!$1:$1048576,$A292,CN$1))","v":""},{"$f":"IF($A292=\"N/A\",Ref!$B$36,INDEX(Ranks!$1:$1048576,$A292,CO$1))","v":""},{"$f":"IF($A292=\"N/A\",Ref!$B$36,INDEX(Ranks!$1:$1048576,$A292,CP$1))","v":""},{"$f":"IF($A292=\"N/A\",Ref!$B$36,INDEX(Ranks!$1:$1048576,$A292,CQ$1))","v":""},{"$f":"IF($A292=\"N/A\",Ref!$B$36,INDEX(Ranks!$1:$1048576,$A292,CR$1))","v":""},{"$f":"IF($A292=\"N/A\",Ref!$B$36,INDEX(Ranks!$1:$1048576,$A292,CS$1))","v":""},{"$f":"IF($A292=\"N/A\",Ref!$B$36,INDEX(Ranks!$1:$1048576,$A292,CT$1))","v":""},{"$f":"IF($A292=\"N/A\",Ref!$B$36,INDEX(Ranks!$1:$1048576,$A292,CU$1))","v":""},{"$f":"IF($A292=\"N/A\",Ref!$B$36,INDEX(Ranks!$1:$1048576,$A292,CV$1))","v":""},{"$f":"IF($A292=\"N/A\",Ref!$B$36,INDEX(Ranks!$1:$1048576,$A292,CW$1))","v":""},{"$f":"IF($A292=\"N/A\",Ref!$B$36,INDEX(Ranks!$1:$1048576,$A292,CX$1))","v":""},{"$f":"IF($A292=\"N/A\",Ref!$B$36,INDEX(Ranks!$1:$1048576,$A292,CY$1))","v":""},{"$f":"IF($A292=\"N/A\",Ref!$B$36,INDEX(Ranks!$1:$1048576,$A292,CZ$1))","v":""},{"$f":"IF($A292=\"N/A\",Ref!$B$36,INDEX(Ranks!$1:$1048576,$A292,DA$1))","v":""},{"$f":"IF($A292=\"N/A\",Ref!$B$36,INDEX(Ranks!$1:$1048576,$A292,DB$1))","v":""},{"$f":"IF($A292=\"N/A\",Ref!$B$36,INDEX(Ranks!$1:$1048576,$A292,DC$1))","v":""},{"$f":"IF($A292=\"N/A\",Ref!$B$36,INDEX(Ranks!$1:$1048576,$A292,DD$1))","v":""},{"$f":"IF($A292=\"N/A\",Ref!$B$36,INDEX(Ranks!$1:$1048576,$A292,DE$1))","v":""},{"$f":"IF($A292=\"N/A\",Ref!$B$36,INDEX(Ranks!$1:$1048576,$A292,DF$1))","v":""},{"$f":"IF($A292=\"N/A\",Ref!$B$36,INDEX(Ranks!$1:$1048576,$A292,DG$1))","v":""},{"$f":"IF($A292=\"N/A\",Ref!$B$36,INDEX(Ranks!$1:$1048576,$A292,DH$1))","v":""},{"$f":"IF($A292=\"N/A\",Ref!$B$36,INDEX(Ranks!$1:$1048576,$A292,DI$1))","v":""},{"$f":"IF($A292=\"N/A\",Ref!$B$36,INDEX(Ranks!$1:$1048576,$A292,DJ$1))","v":""},{"$f":"IF($A292=\"N/A\",Ref!$B$36,INDEX(Ranks!$1:$1048576,$A292,DK$1))","v":""},{"$f":"IF($A292=\"N/A\",Ref!$B$36,INDEX(Ranks!$1:$1048576,$A292,DL$1))","v":""},{"$f":"IF($A292=\"N/A\",Ref!$B$36,INDEX(Ranks!$1:$1048576,$A292,DM$1))","v":""},{"$f":"IF($A292=\"N/A\",Ref!$B$36,INDEX(Ranks!$1:$1048576,$A292,DN$1))","v":""},{"$f":"IF($A292=\"N/A\",Ref!$B$36,INDEX(Ranks!$1:$1048576,$A292,DO$1))","v":""},{"$f":"IF($A292=\"N/A\",Ref!$B$36,INDEX(Ranks!$1:$1048576,$A292,DP$1))","v":""},{"$f":"IF($A292=\"N/A\",Ref!$B$36,INDEX(Ranks!$1:$1048576,$A292,DQ$1))","v":""},{"$f":"IF($A292=\"N/A\",Ref!$B$36,INDEX(Ranks!$1:$1048576,$A292,DR$1))","v":""},{"$f":"IF($A292=\"N/A\",Ref!$B$36,INDEX(Ranks!$1:$1048576,$A292,DS$1))","v":""},{"$f":"IF($A292=\"N/A\",Ref!$B$36,INDEX(Ranks!$1:$1048576,$A292,DT$1))","v":""},{"$f":"IF($A292=\"N/A\",Ref!$B$36,INDEX(Ranks!$1:$1048576,$A292,DU$1))","v":""},{"$f":"IF($A292=\"N/A\",Ref!$B$36,INDEX(Ranks!$1:$1048576,$A292,DV$1))","v":""},{"$f":"IF($A292=\"N/A\",Ref!$B$36,INDEX(Ranks!$1:$1048576,$A292,DW$1))","v":""},{"$f":"IF($A292=\"N/A\",Ref!$B$36,INDEX(Ranks!$1:$1048576,$A292,DX$1))","v":""},{"$f":"IF($A292=\"N/A\",Ref!$B$36,INDEX(Ranks!$1:$1048576,$A292,DY$1))","v":""},{"$f":"IF($A292=\"N/A\",Ref!$B$36,INDEX(Ranks!$1:$1048576,$A292,DZ$1))","v":""},{"$f":"IF($A292=\"N/A\",Ref!$B$36,INDEX(Ranks!$1:$1048576,$A292,EA$1))","v":""},{"$f":"IF($A292=\"N/A\",Ref!$B$36,INDEX(Ranks!$1:$1048576,$A292,EB$1))","v":""}]
[{"$f":"IFERROR(MATCH('Portfolio Page'!L293,Ranks!L:L,0),\"N/A\")","v":"N/A"},null,{"$f":"IF($A293=\"N/A\",\"\",INDEX(Ranks!$1:$1048576,$A293,C$1))","v":""},{"$f":"IF($A293=\"N/A\",Ref!$B$36,INDEX(Ranks!$1:$1048576,$A293,D$1))","v":""},{"$f":"IF($A293=\"N/A\",Ref!$B$36,INDEX(Ranks!$1:$1048576,$A293,E$1))","v":""},{"$f":"IF($A293=\"N/A\",\"\",INDEX(Ranks!$1:$1048576,$A293,F$1))","v":""},{"$f":"IF($A293=\"N/A\",\"\",INDEX(Ranks!$1:$1048576,$A293,G$1))","v":""},{"$f":"IF($A293=\"N/A\",\"\",INDEX(Ranks!$1:$1048576,$A293,H$1))","v":""},{"$f":"IF($A293=\"N/A\",\"\",INDEX(Ranks!$1:$1048576,$A293,I$1))","v":""},{"$f":"IF($A293=\"N/A\",\"\",INDEX(Ranks!$1:$1048576,$A293,J$1))","v":""},{"$f":"IF($A293=\"N/A\",\"\",INDEX(Ranks!$1:$1048576,$A293,K$1))","v":""},null,{"$f":"IF($A293=\"N/A\",Ref!$B$36,INDEX(Ranks!$1:$1048576,$A293,M$1))","v":""},{"$f":"IF($A293=\"N/A\",Ref!$B$36,INDEX(Ranks!$1:$1048576,$A293,N$1))","v":""},{"$f":"IF($A293=\"N/A\",Ref!$B$36,INDEX(Ranks!$1:$1048576,$A293,O$1))","v":""},{"$f":"IF($A293=\"N/A\",Ref!$B$36,INDEX(Ranks!$1:$1048576,$A293,P$1))","v":""},{"$f":"IF($A293=\"N/A\",Ref!$B$36,INDEX(Ranks!$1:$1048576,$A293,Q$1))","v":""},{"$f":"IF($A293=\"N/A\",Ref!$B$36,INDEX(Ranks!$1:$1048576,$A293,R$1))","v":""},{"$f":"IF($A293=\"N/A\",Ref!$B$36,INDEX(Ranks!$1:$1048576,$A293,S$1))","v":""},{"$f":"IF($A293=\"N/A\",Ref!$B$36,INDEX(Ranks!$1:$1048576,$A293,T$1))","v":""},{"$f":"IF($A293=\"N/A\",Ref!$B$36,INDEX(Ranks!$1:$1048576,$A293,U$1))","v":""},{"$f":"IF($A293=\"N/A\",Ref!$B$36,INDEX(Ranks!$1:$1048576,$A293,V$1))","v":""},{"$f":"IF($A293=\"N/A\",Ref!$B$36,INDEX(Ranks!$1:$1048576,$A293,W$1))","v":""},{"$f":"IF($A293=\"N/A\",Ref!$B$36,INDEX(Ranks!$1:$1048576,$A293,X$1))","v":""},{"$f":"IF($A293=\"N/A\",Ref!$B$36,INDEX(Ranks!$1:$1048576,$A293,Y$1))","v":""},{"$f":"IF($A293=\"N/A\",Ref!$B$36,INDEX(Ranks!$1:$1048576,$A293,Z$1))","v":""},{"$f":"IF($A293=\"N/A\",Ref!$B$36,INDEX(Ranks!$1:$1048576,$A293,AA$1))","v":""},{"$f":"IF($A293=\"N/A\",Ref!$B$36,INDEX(Ranks!$1:$1048576,$A293,AB$1))","v":""},{"$f":"IF($A293=\"N/A\",Ref!$B$36,INDEX(Ranks!$1:$1048576,$A293,AC$1))","v":""},{"$f":"IF($A293=\"N/A\",Ref!$B$36,INDEX(Ranks!$1:$1048576,$A293,AD$1))","v":""},{"$f":"IF($A293=\"N/A\",Ref!$B$36,INDEX(Ranks!$1:$1048576,$A293,AE$1))","v":""},{"$f":"IF($A293=\"N/A\",Ref!$B$36,INDEX(Ranks!$1:$1048576,$A293,AF$1))","v":""},{"$f":"IF($A293=\"N/A\",Ref!$B$36,INDEX(Ranks!$1:$1048576,$A293,AG$1))","v":""},{"$f":"IF($A293=\"N/A\",Ref!$B$36,INDEX(Ranks!$1:$1048576,$A293,AH$1))","v":""},{"$f":"IF($A293=\"N/A\",Ref!$B$36,INDEX(Ranks!$1:$1048576,$A293,AI$1))","v":""},{"$f":"IF($A293=\"N/A\",Ref!$B$36,INDEX(Ranks!$1:$1048576,$A293,AJ$1))","v":""},{"$f":"IF($A293=\"N/A\",Ref!$B$36,INDEX(Ranks!$1:$1048576,$A293,AK$1))","v":""},{"$f":"IF($A293=\"N/A\",Ref!$B$36,INDEX(Ranks!$1:$1048576,$A293,AL$1))","v":""},{"$f":"IF($A293=\"N/A\",Ref!$B$36,INDEX(Ranks!$1:$1048576,$A293,AM$1))","v":""},{"$f":"IF($A293=\"N/A\",Ref!$B$36,INDEX(Ranks!$1:$1048576,$A293,AN$1))","v":""},{"$f":"IF($A293=\"N/A\",Ref!$B$36,INDEX(Ranks!$1:$1048576,$A293,AO$1))","v":""},{"$f":"IF($A293=\"N/A\",Ref!$B$36,INDEX(Ranks!$1:$1048576,$A293,AP$1))","v":""},{"$f":"IF($A293=\"N/A\",Ref!$B$36,INDEX(Ranks!$1:$1048576,$A293,AQ$1))","v":""},{"$f":"IF($A293=\"N/A\",Ref!$B$36,INDEX(Ranks!$1:$1048576,$A293,AR$1))","v":""},{"$f":"IF($A293=\"N/A\",Ref!$B$36,INDEX(Ranks!$1:$1048576,$A293,AS$1))","v":""},{"$f":"IF($A293=\"N/A\",Ref!$B$36,INDEX(Ranks!$1:$1048576,$A293,AT$1))","v":""},{"$f":"IF($A293=\"N/A\",Ref!$B$36,INDEX(Ranks!$1:$1048576,$A293,AU$1))","v":""},{"$f":"IF($A293=\"N/A\",Ref!$B$36,INDEX(Ranks!$1:$1048576,$A293,AV$1))","v":""},{"$f":"IF($A293=\"N/A\",Ref!$B$36,INDEX(Ranks!$1:$1048576,$A293,AW$1))","v":""},{"$f":"IF($A293=\"N/A\",Ref!$B$36,INDEX(Ranks!$1:$1048576,$A293,AX$1))","v":""},{"$f":"IF($A293=\"N/A\",Ref!$B$36,INDEX(Ranks!$1:$1048576,$A293,AY$1))","v":""},{"$f":"IF($A293=\"N/A\",Ref!$B$36,INDEX(Ranks!$1:$1048576,$A293,AZ$1))","v":""},{"$f":"IF($A293=\"N/A\",Ref!$B$36,INDEX(Ranks!$1:$1048576,$A293,BA$1))","v":""},{"$f":"IF($A293=\"N/A\",Ref!$B$36,INDEX(Ranks!$1:$1048576,$A293,BB$1))","v":""},{"$f":"IF($A293=\"N/A\",Ref!$B$36,INDEX(Ranks!$1:$1048576,$A293,BC$1))","v":""},{"$f":"IF($A293=\"N/A\",Ref!$B$36,INDEX(Ranks!$1:$1048576,$A293,BD$1))","v":""},{"$f":"IF($A293=\"N/A\",Ref!$B$36,INDEX(Ranks!$1:$1048576,$A293,BE$1))","v":""},{"$f":"IF($A293=\"N/A\",Ref!$B$36,INDEX(Ranks!$1:$1048576,$A293,BF$1))","v":""},{"$f":"IF($A293=\"N/A\",Ref!$B$36,INDEX(Ranks!$1:$1048576,$A293,BG$1))","v":""},{"$f":"IF($A293=\"N/A\",Ref!$B$36,INDEX(Ranks!$1:$1048576,$A293,BH$1))","v":""},{"$f":"IF($A293=\"N/A\",Ref!$B$36,INDEX(Ranks!$1:$1048576,$A293,BI$1))","v":""},{"$f":"IF($A293=\"N/A\",Ref!$B$36,INDEX(Ranks!$1:$1048576,$A293,BJ$1))","v":""},{"$f":"IF($A293=\"N/A\",Ref!$B$36,INDEX(Ranks!$1:$1048576,$A293,BK$1))","v":""},{"$f":"IF($A293=\"N/A\",Ref!$B$36,INDEX(Ranks!$1:$1048576,$A293,BL$1))","v":""},{"$f":"IF($A293=\"N/A\",Ref!$B$36,INDEX(Ranks!$1:$1048576,$A293,BM$1))","v":""},{"$f":"IF($A293=\"N/A\",Ref!$B$36,INDEX(Ranks!$1:$1048576,$A293,BN$1))","v":""},{"$f":"IF($A293=\"N/A\",Ref!$B$36,INDEX(Ranks!$1:$1048576,$A293,BO$1))","v":""},{"$f":"IF($A293=\"N/A\",Ref!$B$36,INDEX(Ranks!$1:$1048576,$A293,BP$1))","v":""},{"$f":"IF($A293=\"N/A\",Ref!$B$36,INDEX(Ranks!$1:$1048576,$A293,BQ$1))","v":""},{"$f":"IF($A293=\"N/A\",Ref!$B$36,INDEX(Ranks!$1:$1048576,$A293,BR$1))","v":""},{"$f":"IF($A293=\"N/A\",Ref!$B$36,INDEX(Ranks!$1:$1048576,$A293,BS$1))","v":""},{"$f":"IF($A293=\"N/A\",Ref!$B$36,INDEX(Ranks!$1:$1048576,$A293,BT$1))","v":""},{"$f":"IF($A293=\"N/A\",Ref!$B$36,INDEX(Ranks!$1:$1048576,$A293,BU$1))","v":""},{"$f":"IF($A293=\"N/A\",Ref!$B$36,INDEX(Ranks!$1:$1048576,$A293,BV$1))","v":""},{"$f":"IF($A293=\"N/A\",Ref!$B$36,INDEX(Ranks!$1:$1048576,$A293,BW$1))","v":""},{"$f":"IF($A293=\"N/A\",Ref!$B$36,INDEX(Ranks!$1:$1048576,$A293,BX$1))","v":""},{"$f":"IF($A293=\"N/A\",Ref!$B$36,INDEX(Ranks!$1:$1048576,$A293,BY$1))","v":""},{"$f":"IF($A293=\"N/A\",Ref!$B$36,INDEX(Ranks!$1:$1048576,$A293,BZ$1))","v":""},{"$f":"IF($A293=\"N/A\",Ref!$B$36,INDEX(Ranks!$1:$1048576,$A293,CA$1))","v":""},{"$f":"IF($A293=\"N/A\",Ref!$B$36,INDEX(Ranks!$1:$1048576,$A293,CB$1))","v":""},{"$f":"IF($A293=\"N/A\",Ref!$B$36,INDEX(Ranks!$1:$1048576,$A293,CC$1))","v":""},{"$f":"IF($A293=\"N/A\",Ref!$B$36,INDEX(Ranks!$1:$1048576,$A293,CD$1))","v":""},{"$f":"IF($A293=\"N/A\",Ref!$B$36,INDEX(Ranks!$1:$1048576,$A293,CE$1))","v":""},{"$f":"IF($A293=\"N/A\",Ref!$B$36,INDEX(Ranks!$1:$1048576,$A293,CF$1))","v":""},{"$f":"IF($A293=\"N/A\",Ref!$B$36,INDEX(Ranks!$1:$1048576,$A293,CG$1))","v":""},{"$f":"IF($A293=\"N/A\",Ref!$B$36,INDEX(Ranks!$1:$1048576,$A293,CH$1))","v":""},{"$f":"IF($A293=\"N/A\",Ref!$B$36,INDEX(Ranks!$1:$1048576,$A293,CI$1))","v":""},{"$f":"IF($A293=\"N/A\",Ref!$B$36,INDEX(Ranks!$1:$1048576,$A293,CJ$1))","v":""},{"$f":"IF($A293=\"N/A\",Ref!$B$36,INDEX(Ranks!$1:$1048576,$A293,CK$1))","v":""},{"$f":"IF($A293=\"N/A\",Ref!$B$36,INDEX(Ranks!$1:$1048576,$A293,CL$1))","v":""},{"$f":"IF($A293=\"N/A\",Ref!$B$36,INDEX(Ranks!$1:$1048576,$A293,CM$1))","v":""},{"$f":"IF($A293=\"N/A\",Ref!$B$36,INDEX(Ranks!$1:$1048576,$A293,CN$1))","v":""},{"$f":"IF($A293=\"N/A\",Ref!$B$36,INDEX(Ranks!$1:$1048576,$A293,CO$1))","v":""},{"$f":"IF($A293=\"N/A\",Ref!$B$36,INDEX(Ranks!$1:$1048576,$A293,CP$1))","v":""},{"$f":"IF($A293=\"N/A\",Ref!$B$36,INDEX(Ranks!$1:$1048576,$A293,CQ$1))","v":""},{"$f":"IF($A293=\"N/A\",Ref!$B$36,INDEX(Ranks!$1:$1048576,$A293,CR$1))","v":""},{"$f":"IF($A293=\"N/A\",Ref!$B$36,INDEX(Ranks!$1:$1048576,$A293,CS$1))","v":""},{"$f":"IF($A293=\"N/A\",Ref!$B$36,INDEX(Ranks!$1:$1048576,$A293,CT$1))","v":""},{"$f":"IF($A293=\"N/A\",Ref!$B$36,INDEX(Ranks!$1:$1048576,$A293,CU$1))","v":""},{"$f":"IF($A293=\"N/A\",Ref!$B$36,INDEX(Ranks!$1:$1048576,$A293,CV$1))","v":""},{"$f":"IF($A293=\"N/A\",Ref!$B$36,INDEX(Ranks!$1:$1048576,$A293,CW$1))","v":""},{"$f":"IF($A293=\"N/A\",Ref!$B$36,INDEX(Ranks!$1:$1048576,$A293,CX$1))","v":""},{"$f":"IF($A293=\"N/A\",Ref!$B$36,INDEX(Ranks!$1:$1048576,$A293,CY$1))","v":""},{"$f":"IF($A293=\"N/A\",Ref!$B$36,INDEX(Ranks!$1:$1048576,$A293,CZ$1))","v":""},{"$f":"IF($A293=\"N/A\",Ref!$B$36,INDEX(Ranks!$1:$1048576,$A293,DA$1))","v":""},{"$f":"IF($A293=\"N/A\",Ref!$B$36,INDEX(Ranks!$1:$1048576,$A293,DB$1))","v":""},{"$f":"IF($A293=\"N/A\",Ref!$B$36,INDEX(Ranks!$1:$1048576,$A293,DC$1))","v":""},{"$f":"IF($A293=\"N/A\",Ref!$B$36,INDEX(Ranks!$1:$1048576,$A293,DD$1))","v":""},{"$f":"IF($A293=\"N/A\",Ref!$B$36,INDEX(Ranks!$1:$1048576,$A293,DE$1))","v":""},{"$f":"IF($A293=\"N/A\",Ref!$B$36,INDEX(Ranks!$1:$1048576,$A293,DF$1))","v":""},{"$f":"IF($A293=\"N/A\",Ref!$B$36,INDEX(Ranks!$1:$1048576,$A293,DG$1))","v":""},{"$f":"IF($A293=\"N/A\",Ref!$B$36,INDEX(Ranks!$1:$1048576,$A293,DH$1))","v":""},{"$f":"IF($A293=\"N/A\",Ref!$B$36,INDEX(Ranks!$1:$1048576,$A293,DI$1))","v":""},{"$f":"IF($A293=\"N/A\",Ref!$B$36,INDEX(Ranks!$1:$1048576,$A293,DJ$1))","v":""},{"$f":"IF($A293=\"N/A\",Ref!$B$36,INDEX(Ranks!$1:$1048576,$A293,DK$1))","v":""},{"$f":"IF($A293=\"N/A\",Ref!$B$36,INDEX(Ranks!$1:$1048576,$A293,DL$1))","v":""},{"$f":"IF($A293=\"N/A\",Ref!$B$36,INDEX(Ranks!$1:$1048576,$A293,DM$1))","v":""},{"$f":"IF($A293=\"N/A\",Ref!$B$36,INDEX(Ranks!$1:$1048576,$A293,DN$1))","v":""},{"$f":"IF($A293=\"N/A\",Ref!$B$36,INDEX(Ranks!$1:$1048576,$A293,DO$1))","v":""},{"$f":"IF($A293=\"N/A\",Ref!$B$36,INDEX(Ranks!$1:$1048576,$A293,DP$1))","v":""},{"$f":"IF($A293=\"N/A\",Ref!$B$36,INDEX(Ranks!$1:$1048576,$A293,DQ$1))","v":""},{"$f":"IF($A293=\"N/A\",Ref!$B$36,INDEX(Ranks!$1:$1048576,$A293,DR$1))","v":""},{"$f":"IF($A293=\"N/A\",Ref!$B$36,INDEX(Ranks!$1:$1048576,$A293,DS$1))","v":""},{"$f":"IF($A293=\"N/A\",Ref!$B$36,INDEX(Ranks!$1:$1048576,$A293,DT$1))","v":""},{"$f":"IF($A293=\"N/A\",Ref!$B$36,INDEX(Ranks!$1:$1048576,$A293,DU$1))","v":""},{"$f":"IF($A293=\"N/A\",Ref!$B$36,INDEX(Ranks!$1:$1048576,$A293,DV$1))","v":""},{"$f":"IF($A293=\"N/A\",Ref!$B$36,INDEX(Ranks!$1:$1048576,$A293,DW$1))","v":""},{"$f":"IF($A293=\"N/A\",Ref!$B$36,INDEX(Ranks!$1:$1048576,$A293,DX$1))","v":""},{"$f":"IF($A293=\"N/A\",Ref!$B$36,INDEX(Ranks!$1:$1048576,$A293,DY$1))","v":""},{"$f":"IF($A293=\"N/A\",Ref!$B$36,INDEX(Ranks!$1:$1048576,$A293,DZ$1))","v":""},{"$f":"IF($A293=\"N/A\",Ref!$B$36,INDEX(Ranks!$1:$1048576,$A293,EA$1))","v":""},{"$f":"IF($A293=\"N/A\",Ref!$B$36,INDEX(Ranks!$1:$1048576,$A293,EB$1))","v":""}]
[{"$f":"IFERROR(MATCH('Portfolio Page'!L294,Ranks!L:L,0),\"N/A\")","v":"N/A"},null,{"$f":"IF($A294=\"N/A\",\"\",INDEX(Ranks!$1:$1048576,$A294,C$1))","v":""},{"$f":"IF($A294=\"N/A\",Ref!$B$36,INDEX(Ranks!$1:$1048576,$A294,D$1))","v":""},{"$f":"IF($A294=\"N/A\",Ref!$B$36,INDEX(Ranks!$1:$1048576,$A294,E$1))","v":""},{"$f":"IF($A294=\"N/A\",\"\",INDEX(Ranks!$1:$1048576,$A294,F$1))","v":""},{"$f":"IF($A294=\"N/A\",\"\",INDEX(Ranks!$1:$1048576,$A294,G$1))","v":""},{"$f":"IF($A294=\"N/A\",\"\",INDEX(Ranks!$1:$1048576,$A294,H$1))","v":""},{"$f":"IF($A294=\"N/A\",\"\",INDEX(Ranks!$1:$1048576,$A294,I$1))","v":""},{"$f":"IF($A294=\"N/A\",\"\",INDEX(Ranks!$1:$1048576,$A294,J$1))","v":""},{"$f":"IF($A294=\"N/A\",\"\",INDEX(Ranks!$1:$1048576,$A294,K$1))","v":""},null,{"$f":"IF($A294=\"N/A\",Ref!$B$36,INDEX(Ranks!$1:$1048576,$A294,M$1))","v":""},{"$f":"IF($A294=\"N/A\",Ref!$B$36,INDEX(Ranks!$1:$1048576,$A294,N$1))","v":""},{"$f":"IF($A294=\"N/A\",Ref!$B$36,INDEX(Ranks!$1:$1048576,$A294,O$1))","v":""},{"$f":"IF($A294=\"N/A\",Ref!$B$36,INDEX(Ranks!$1:$1048576,$A294,P$1))","v":""},{"$f":"IF($A294=\"N/A\",Ref!$B$36,INDEX(Ranks!$1:$1048576,$A294,Q$1))","v":""},{"$f":"IF($A294=\"N/A\",Ref!$B$36,INDEX(Ranks!$1:$1048576,$A294,R$1))","v":""},{"$f":"IF($A294=\"N/A\",Ref!$B$36,INDEX(Ranks!$1:$1048576,$A294,S$1))","v":""},{"$f":"IF($A294=\"N/A\",Ref!$B$36,INDEX(Ranks!$1:$1048576,$A294,T$1))","v":""},{"$f":"IF($A294=\"N/A\",Ref!$B$36,INDEX(Ranks!$1:$1048576,$A294,U$1))","v":""},{"$f":"IF($A294=\"N/A\",Ref!$B$36,INDEX(Ranks!$1:$1048576,$A294,V$1))","v":""},{"$f":"IF($A294=\"N/A\",Ref!$B$36,INDEX(Ranks!$1:$1048576,$A294,W$1))","v":""},{"$f":"IF($A294=\"N/A\",Ref!$B$36,INDEX(Ranks!$1:$1048576,$A294,X$1))","v":""},{"$f":"IF($A294=\"N/A\",Ref!$B$36,INDEX(Ranks!$1:$1048576,$A294,Y$1))","v":""},{"$f":"IF($A294=\"N/A\",Ref!$B$36,INDEX(Ranks!$1:$1048576,$A294,Z$1))","v":""},{"$f":"IF($A294=\"N/A\",Ref!$B$36,INDEX(Ranks!$1:$1048576,$A294,AA$1))","v":""},{"$f":"IF($A294=\"N/A\",Ref!$B$36,INDEX(Ranks!$1:$1048576,$A294,AB$1))","v":""},{"$f":"IF($A294=\"N/A\",Ref!$B$36,INDEX(Ranks!$1:$1048576,$A294,AC$1))","v":""},{"$f":"IF($A294=\"N/A\",Ref!$B$36,INDEX(Ranks!$1:$1048576,$A294,AD$1))","v":""},{"$f":"IF($A294=\"N/A\",Ref!$B$36,INDEX(Ranks!$1:$1048576,$A294,AE$1))","v":""},{"$f":"IF($A294=\"N/A\",Ref!$B$36,INDEX(Ranks!$1:$1048576,$A294,AF$1))","v":""},{"$f":"IF($A294=\"N/A\",Ref!$B$36,INDEX(Ranks!$1:$1048576,$A294,AG$1))","v":""},{"$f":"IF($A294=\"N/A\",Ref!$B$36,INDEX(Ranks!$1:$1048576,$A294,AH$1))","v":""},{"$f":"IF($A294=\"N/A\",Ref!$B$36,INDEX(Ranks!$1:$1048576,$A294,AI$1))","v":""},{"$f":"IF($A294=\"N/A\",Ref!$B$36,INDEX(Ranks!$1:$1048576,$A294,AJ$1))","v":""},{"$f":"IF($A294=\"N/A\",Ref!$B$36,INDEX(Ranks!$1:$1048576,$A294,AK$1))","v":""},{"$f":"IF($A294=\"N/A\",Ref!$B$36,INDEX(Ranks!$1:$1048576,$A294,AL$1))","v":""},{"$f":"IF($A294=\"N/A\",Ref!$B$36,INDEX(Ranks!$1:$1048576,$A294,AM$1))","v":""},{"$f":"IF($A294=\"N/A\",Ref!$B$36,INDEX(Ranks!$1:$1048576,$A294,AN$1))","v":""},{"$f":"IF($A294=\"N/A\",Ref!$B$36,INDEX(Ranks!$1:$1048576,$A294,AO$1))","v":""},{"$f":"IF($A294=\"N/A\",Ref!$B$36,INDEX(Ranks!$1:$1048576,$A294,AP$1))","v":""},{"$f":"IF($A294=\"N/A\",Ref!$B$36,INDEX(Ranks!$1:$1048576,$A294,AQ$1))","v":""},{"$f":"IF($A294=\"N/A\",Ref!$B$36,INDEX(Ranks!$1:$1048576,$A294,AR$1))","v":""},{"$f":"IF($A294=\"N/A\",Ref!$B$36,INDEX(Ranks!$1:$1048576,$A294,AS$1))","v":""},{"$f":"IF($A294=\"N/A\",Ref!$B$36,INDEX(Ranks!$1:$1048576,$A294,AT$1))","v":""},{"$f":"IF($A294=\"N/A\",Ref!$B$36,INDEX(Ranks!$1:$1048576,$A294,AU$1))","v":""},{"$f":"IF($A294=\"N/A\",Ref!$B$36,INDEX(Ranks!$1:$1048576,$A294,AV$1))","v":""},{"$f":"IF($A294=\"N/A\",Ref!$B$36,INDEX(Ranks!$1:$1048576,$A294,AW$1))","v":""},{"$f":"IF($A294=\"N/A\",Ref!$B$36,INDEX(Ranks!$1:$1048576,$A294,AX$1))","v":""},{"$f":"IF($A294=\"N/A\",Ref!$B$36,INDEX(Ranks!$1:$1048576,$A294,AY$1))","v":""},{"$f":"IF($A294=\"N/A\",Ref!$B$36,INDEX(Ranks!$1:$1048576,$A294,AZ$1))","v":""},{"$f":"IF($A294=\"N/A\",Ref!$B$36,INDEX(Ranks!$1:$1048576,$A294,BA$1))","v":""},{"$f":"IF($A294=\"N/A\",Ref!$B$36,INDEX(Ranks!$1:$1048576,$A294,BB$1))","v":""},{"$f":"IF($A294=\"N/A\",Ref!$B$36,INDEX(Ranks!$1:$1048576,$A294,BC$1))","v":""},{"$f":"IF($A294=\"N/A\",Ref!$B$36,INDEX(Ranks!$1:$1048576,$A294,BD$1))","v":""},{"$f":"IF($A294=\"N/A\",Ref!$B$36,INDEX(Ranks!$1:$1048576,$A294,BE$1))","v":""},{"$f":"IF($A294=\"N/A\",Ref!$B$36,INDEX(Ranks!$1:$1048576,$A294,BF$1))","v":""},{"$f":"IF($A294=\"N/A\",Ref!$B$36,INDEX(Ranks!$1:$1048576,$A294,BG$1))","v":""},{"$f":"IF($A294=\"N/A\",Ref!$B$36,INDEX(Ranks!$1:$1048576,$A294,BH$1))","v":""},{"$f":"IF($A294=\"N/A\",Ref!$B$36,INDEX(Ranks!$1:$1048576,$A294,BI$1))","v":""},{"$f":"IF($A294=\"N/A\",Ref!$B$36,INDEX(Ranks!$1:$1048576,$A294,BJ$1))","v":""},{"$f":"IF($A294=\"N/A\",Ref!$B$36,INDEX(Ranks!$1:$1048576,$A294,BK$1))","v":""},{"$f":"IF($A294=\"N/A\",Ref!$B$36,INDEX(Ranks!$1:$1048576,$A294,BL$1))","v":""},{"$f":"IF($A294=\"N/A\",Ref!$B$36,INDEX(Ranks!$1:$1048576,$A294,BM$1))","v":""},{"$f":"IF($A294=\"N/A\",Ref!$B$36,INDEX(Ranks!$1:$1048576,$A294,BN$1))","v":""},{"$f":"IF($A294=\"N/A\",Ref!$B$36,INDEX(Ranks!$1:$1048576,$A294,BO$1))","v":""},{"$f":"IF($A294=\"N/A\",Ref!$B$36,INDEX(Ranks!$1:$1048576,$A294,BP$1))","v":""},{"$f":"IF($A294=\"N/A\",Ref!$B$36,INDEX(Ranks!$1:$1048576,$A294,BQ$1))","v":""},{"$f":"IF($A294=\"N/A\",Ref!$B$36,INDEX(Ranks!$1:$1048576,$A294,BR$1))","v":""},{"$f":"IF($A294=\"N/A\",Ref!$B$36,INDEX(Ranks!$1:$1048576,$A294,BS$1))","v":""},{"$f":"IF($A294=\"N/A\",Ref!$B$36,INDEX(Ranks!$1:$1048576,$A294,BT$1))","v":""},{"$f":"IF($A294=\"N/A\",Ref!$B$36,INDEX(Ranks!$1:$1048576,$A294,BU$1))","v":""},{"$f":"IF($A294=\"N/A\",Ref!$B$36,INDEX(Ranks!$1:$1048576,$A294,BV$1))","v":""},{"$f":"IF($A294=\"N/A\",Ref!$B$36,INDEX(Ranks!$1:$1048576,$A294,BW$1))","v":""},{"$f":"IF($A294=\"N/A\",Ref!$B$36,INDEX(Ranks!$1:$1048576,$A294,BX$1))","v":""},{"$f":"IF($A294=\"N/A\",Ref!$B$36,INDEX(Ranks!$1:$1048576,$A294,BY$1))","v":""},{"$f":"IF($A294=\"N/A\",Ref!$B$36,INDEX(Ranks!$1:$1048576,$A294,BZ$1))","v":""},{"$f":"IF($A294=\"N/A\",Ref!$B$36,INDEX(Ranks!$1:$1048576,$A294,CA$1))","v":""},{"$f":"IF($A294=\"N/A\",Ref!$B$36,INDEX(Ranks!$1:$1048576,$A294,CB$1))","v":""},{"$f":"IF($A294=\"N/A\",Ref!$B$36,INDEX(Ranks!$1:$1048576,$A294,CC$1))","v":""},{"$f":"IF($A294=\"N/A\",Ref!$B$36,INDEX(Ranks!$1:$1048576,$A294,CD$1))","v":""},{"$f":"IF($A294=\"N/A\",Ref!$B$36,INDEX(Ranks!$1:$1048576,$A294,CE$1))","v":""},{"$f":"IF($A294=\"N/A\",Ref!$B$36,INDEX(Ranks!$1:$1048576,$A294,CF$1))","v":""},{"$f":"IF($A294=\"N/A\",Ref!$B$36,INDEX(Ranks!$1:$1048576,$A294,CG$1))","v":""},{"$f":"IF($A294=\"N/A\",Ref!$B$36,INDEX(Ranks!$1:$1048576,$A294,CH$1))","v":""},{"$f":"IF($A294=\"N/A\",Ref!$B$36,INDEX(Ranks!$1:$1048576,$A294,CI$1))","v":""},{"$f":"IF($A294=\"N/A\",Ref!$B$36,INDEX(Ranks!$1:$1048576,$A294,CJ$1))","v":""},{"$f":"IF($A294=\"N/A\",Ref!$B$36,INDEX(Ranks!$1:$1048576,$A294,CK$1))","v":""},{"$f":"IF($A294=\"N/A\",Ref!$B$36,INDEX(Ranks!$1:$1048576,$A294,CL$1))","v":""},{"$f":"IF($A294=\"N/A\",Ref!$B$36,INDEX(Ranks!$1:$1048576,$A294,CM$1))","v":""},{"$f":"IF($A294=\"N/A\",Ref!$B$36,INDEX(Ranks!$1:$1048576,$A294,CN$1))","v":""},{"$f":"IF($A294=\"N/A\",Ref!$B$36,INDEX(Ranks!$1:$1048576,$A294,CO$1))","v":""},{"$f":"IF($A294=\"N/A\",Ref!$B$36,INDEX(Ranks!$1:$1048576,$A294,CP$1))","v":""},{"$f":"IF($A294=\"N/A\",Ref!$B$36,INDEX(Ranks!$1:$1048576,$A294,CQ$1))","v":""},{"$f":"IF($A294=\"N/A\",Ref!$B$36,INDEX(Ranks!$1:$1048576,$A294,CR$1))","v":""},{"$f":"IF($A294=\"N/A\",Ref!$B$36,INDEX(Ranks!$1:$1048576,$A294,CS$1))","v":""},{"$f":"IF($A294=\"N/A\",Ref!$B$36,INDEX(Ranks!$1:$1048576,$A294,CT$1))","v":""},{"$f":"IF($A294=\"N/A\",Ref!$B$36,INDEX(Ranks!$1:$1048576,$A294,CU$1))","v":""},{"$f":"IF($A294=\"N/A\",Ref!$B$36,INDEX(Ranks!$1:$1048576,$A294,CV$1))","v":""},{"$f":"IF($A294=\"N/A\",Ref!$B$36,INDEX(Ranks!$1:$1048576,$A294,CW$1))","v":""},{"$f":"IF($A294=\"N/A\",Ref!$B$36,INDEX(Ranks!$1:$1048576,$A294,CX$1))","v":""},{"$f":"IF($A294=\"N/A\",Ref!$B$36,INDEX(Ranks!$1:$1048576,$A294,CY$1))","v":""},{"$f":"IF($A294=\"N/A\",Ref!$B$36,INDEX(Ranks!$1:$1048576,$A294,CZ$1))","v":""},{"$f":"IF($A294=\"N/A\",Ref!$B$36,INDEX(Ranks!$1:$1048576,$A294,DA$1))","v":""},{"$f":"IF($A294=\"N/A\",Ref!$B$36,INDEX(Ranks!$1:$1048576,$A294,DB$1))","v":""},{"$f":"IF($A294=\"N/A\",Ref!$B$36,INDEX(Ranks!$1:$1048576,$A294,DC$1))","v":""},{"$f":"IF($A294=\"N/A\",Ref!$B$36,INDEX(Ranks!$1:$1048576,$A294,DD$1))","v":""},{"$f":"IF($A294=\"N/A\",Ref!$B$36,INDEX(Ranks!$1:$1048576,$A294,DE$1))","v":""},{"$f":"IF($A294=\"N/A\",Ref!$B$36,INDEX(Ranks!$1:$1048576,$A294,DF$1))","v":""},{"$f":"IF($A294=\"N/A\",Ref!$B$36,INDEX(Ranks!$1:$1048576,$A294,DG$1))","v":""},{"$f":"IF($A294=\"N/A\",Ref!$B$36,INDEX(Ranks!$1:$1048576,$A294,DH$1))","v":""},{"$f":"IF($A294=\"N/A\",Ref!$B$36,INDEX(Ranks!$1:$1048576,$A294,DI$1))","v":""},{"$f":"IF($A294=\"N/A\",Ref!$B$36,INDEX(Ranks!$1:$1048576,$A294,DJ$1))","v":""},{"$f":"IF($A294=\"N/A\",Ref!$B$36,INDEX(Ranks!$1:$1048576,$A294,DK$1))","v":""},{"$f":"IF($A294=\"N/A\",Ref!$B$36,INDEX(Ranks!$1:$1048576,$A294,DL$1))","v":""},{"$f":"IF($A294=\"N/A\",Ref!$B$36,INDEX(Ranks!$1:$1048576,$A294,DM$1))","v":""},{"$f":"IF($A294=\"N/A\",Ref!$B$36,INDEX(Ranks!$1:$1048576,$A294,DN$1))","v":""},{"$f":"IF($A294=\"N/A\",Ref!$B$36,INDEX(Ranks!$1:$1048576,$A294,DO$1))","v":""},{"$f":"IF($A294=\"N/A\",Ref!$B$36,INDEX(Ranks!$1:$1048576,$A294,DP$1))","v":""},{"$f":"IF($A294=\"N/A\",Ref!$B$36,INDEX(Ranks!$1:$1048576,$A294,DQ$1))","v":""},{"$f":"IF($A294=\"N/A\",Ref!$B$36,INDEX(Ranks!$1:$1048576,$A294,DR$1))","v":""},{"$f":"IF($A294=\"N/A\",Ref!$B$36,INDEX(Ranks!$1:$1048576,$A294,DS$1))","v":""},{"$f":"IF($A294=\"N/A\",Ref!$B$36,INDEX(Ranks!$1:$1048576,$A294,DT$1))","v":""},{"$f":"IF($A294=\"N/A\",Ref!$B$36,INDEX(Ranks!$1:$1048576,$A294,DU$1))","v":""},{"$f":"IF($A294=\"N/A\",Ref!$B$36,INDEX(Ranks!$1:$1048576,$A294,DV$1))","v":""},{"$f":"IF($A294=\"N/A\",Ref!$B$36,INDEX(Ranks!$1:$1048576,$A294,DW$1))","v":""},{"$f":"IF($A294=\"N/A\",Ref!$B$36,INDEX(Ranks!$1:$1048576,$A294,DX$1))","v":""},{"$f":"IF($A294=\"N/A\",Ref!$B$36,INDEX(Ranks!$1:$1048576,$A294,DY$1))","v":""},{"$f":"IF($A294=\"N/A\",Ref!$B$36,INDEX(Ranks!$1:$1048576,$A294,DZ$1))","v":""},{"$f":"IF($A294=\"N/A\",Ref!$B$36,INDEX(Ranks!$1:$1048576,$A294,EA$1))","v":""},{"$f":"IF($A294=\"N/A\",Ref!$B$36,INDEX(Ranks!$1:$1048576,$A294,EB$1))","v":""}]
[{"$f":"IFERROR(MATCH('Portfolio Page'!L295,Ranks!L:L,0),\"N/A\")","v":"N/A"},null,{"$f":"IF($A295=\"N/A\",\"\",INDEX(Ranks!$1:$1048576,$A295,C$1))","v":""},{"$f":"IF($A295=\"N/A\",Ref!$B$36,INDEX(Ranks!$1:$1048576,$A295,D$1))","v":""},{"$f":"IF($A295=\"N/A\",Ref!$B$36,INDEX(Ranks!$1:$1048576,$A295,E$1))","v":""},{"$f":"IF($A295=\"N/A\",\"\",INDEX(Ranks!$1:$1048576,$A295,F$1))","v":""},{"$f":"IF($A295=\"N/A\",\"\",INDEX(Ranks!$1:$1048576,$A295,G$1))","v":""},{"$f":"IF($A295=\"N/A\",\"\",INDEX(Ranks!$1:$1048576,$A295,H$1))","v":""},{"$f":"IF($A295=\"N/A\",\"\",INDEX(Ranks!$1:$1048576,$A295,I$1))","v":""},{"$f":"IF($A295=\"N/A\",\"\",INDEX(Ranks!$1:$1048576,$A295,J$1))","v":""},{"$f":"IF($A295=\"N/A\",\"\",INDEX(Ranks!$1:$1048576,$A295,K$1))","v":""},null,{"$f":"IF($A295=\"N/A\",Ref!$B$36,INDEX(Ranks!$1:$1048576,$A295,M$1))","v":""},{"$f":"IF($A295=\"N/A\",Ref!$B$36,INDEX(Ranks!$1:$1048576,$A295,N$1))","v":""},{"$f":"IF($A295=\"N/A\",Ref!$B$36,INDEX(Ranks!$1:$1048576,$A295,O$1))","v":""},{"$f":"IF($A295=\"N/A\",Ref!$B$36,INDEX(Ranks!$1:$1048576,$A295,P$1))","v":""},{"$f":"IF($A295=\"N/A\",Ref!$B$36,INDEX(Ranks!$1:$1048576,$A295,Q$1))","v":""},{"$f":"IF($A295=\"N/A\",Ref!$B$36,INDEX(Ranks!$1:$1048576,$A295,R$1))","v":""},{"$f":"IF($A295=\"N/A\",Ref!$B$36,INDEX(Ranks!$1:$1048576,$A295,S$1))","v":""},{"$f":"IF($A295=\"N/A\",Ref!$B$36,INDEX(Ranks!$1:$1048576,$A295,T$1))","v":""},{"$f":"IF($A295=\"N/A\",Ref!$B$36,INDEX(Ranks!$1:$1048576,$A295,U$1))","v":""},{"$f":"IF($A295=\"N/A\",Ref!$B$36,INDEX(Ranks!$1:$1048576,$A295,V$1))","v":""},{"$f":"IF($A295=\"N/A\",Ref!$B$36,INDEX(Ranks!$1:$1048576,$A295,W$1))","v":""},{"$f":"IF($A295=\"N/A\",Ref!$B$36,INDEX(Ranks!$1:$1048576,$A295,X$1))","v":""},{"$f":"IF($A295=\"N/A\",Ref!$B$36,INDEX(Ranks!$1:$1048576,$A295,Y$1))","v":""},{"$f":"IF($A295=\"N/A\",Ref!$B$36,INDEX(Ranks!$1:$1048576,$A295,Z$1))","v":""},{"$f":"IF($A295=\"N/A\",Ref!$B$36,INDEX(Ranks!$1:$1048576,$A295,AA$1))","v":""},{"$f":"IF($A295=\"N/A\",Ref!$B$36,INDEX(Ranks!$1:$1048576,$A295,AB$1))","v":""},{"$f":"IF($A295=\"N/A\",Ref!$B$36,INDEX(Ranks!$1:$1048576,$A295,AC$1))","v":""},{"$f":"IF($A295=\"N/A\",Ref!$B$36,INDEX(Ranks!$1:$1048576,$A295,AD$1))","v":""},{"$f":"IF($A295=\"N/A\",Ref!$B$36,INDEX(Ranks!$1:$1048576,$A295,AE$1))","v":""},{"$f":"IF($A295=\"N/A\",Ref!$B$36,INDEX(Ranks!$1:$1048576,$A295,AF$1))","v":""},{"$f":"IF($A295=\"N/A\",Ref!$B$36,INDEX(Ranks!$1:$1048576,$A295,AG$1))","v":""},{"$f":"IF($A295=\"N/A\",Ref!$B$36,INDEX(Ranks!$1:$1048576,$A295,AH$1))","v":""},{"$f":"IF($A295=\"N/A\",Ref!$B$36,INDEX(Ranks!$1:$1048576,$A295,AI$1))","v":""},{"$f":"IF($A295=\"N/A\",Ref!$B$36,INDEX(Ranks!$1:$1048576,$A295,AJ$1))","v":""},{"$f":"IF($A295=\"N/A\",Ref!$B$36,INDEX(Ranks!$1:$1048576,$A295,AK$1))","v":""},{"$f":"IF($A295=\"N/A\",Ref!$B$36,INDEX(Ranks!$1:$1048576,$A295,AL$1))","v":""},{"$f":"IF($A295=\"N/A\",Ref!$B$36,INDEX(Ranks!$1:$1048576,$A295,AM$1))","v":""},{"$f":"IF($A295=\"N/A\",Ref!$B$36,INDEX(Ranks!$1:$1048576,$A295,AN$1))","v":""},{"$f":"IF($A295=\"N/A\",Ref!$B$36,INDEX(Ranks!$1:$1048576,$A295,AO$1))","v":""},{"$f":"IF($A295=\"N/A\",Ref!$B$36,INDEX(Ranks!$1:$1048576,$A295,AP$1))","v":""},{"$f":"IF($A295=\"N/A\",Ref!$B$36,INDEX(Ranks!$1:$1048576,$A295,AQ$1))","v":""},{"$f":"IF($A295=\"N/A\",Ref!$B$36,INDEX(Ranks!$1:$1048576,$A295,AR$1))","v":""},{"$f":"IF($A295=\"N/A\",Ref!$B$36,INDEX(Ranks!$1:$1048576,$A295,AS$1))","v":""},{"$f":"IF($A295=\"N/A\",Ref!$B$36,INDEX(Ranks!$1:$1048576,$A295,AT$1))","v":""},{"$f":"IF($A295=\"N/A\",Ref!$B$36,INDEX(Ranks!$1:$1048576,$A295,AU$1))","v":""},{"$f":"IF($A295=\"N/A\",Ref!$B$36,INDEX(Ranks!$1:$1048576,$A295,AV$1))","v":""},{"$f":"IF($A295=\"N/A\",Ref!$B$36,INDEX(Ranks!$1:$1048576,$A295,AW$1))","v":""},{"$f":"IF($A295=\"N/A\",Ref!$B$36,INDEX(Ranks!$1:$1048576,$A295,AX$1))","v":""},{"$f":"IF($A295=\"N/A\",Ref!$B$36,INDEX(Ranks!$1:$1048576,$A295,AY$1))","v":""},{"$f":"IF($A295=\"N/A\",Ref!$B$36,INDEX(Ranks!$1:$1048576,$A295,AZ$1))","v":""},{"$f":"IF($A295=\"N/A\",Ref!$B$36,INDEX(Ranks!$1:$1048576,$A295,BA$1))","v":""},{"$f":"IF($A295=\"N/A\",Ref!$B$36,INDEX(Ranks!$1:$1048576,$A295,BB$1))","v":""},{"$f":"IF($A295=\"N/A\",Ref!$B$36,INDEX(Ranks!$1:$1048576,$A295,BC$1))","v":""},{"$f":"IF($A295=\"N/A\",Ref!$B$36,INDEX(Ranks!$1:$1048576,$A295,BD$1))","v":""},{"$f":"IF($A295=\"N/A\",Ref!$B$36,INDEX(Ranks!$1:$1048576,$A295,BE$1))","v":""},{"$f":"IF($A295=\"N/A\",Ref!$B$36,INDEX(Ranks!$1:$1048576,$A295,BF$1))","v":""},{"$f":"IF($A295=\"N/A\",Ref!$B$36,INDEX(Ranks!$1:$1048576,$A295,BG$1))","v":""},{"$f":"IF($A295=\"N/A\",Ref!$B$36,INDEX(Ranks!$1:$1048576,$A295,BH$1))","v":""},{"$f":"IF($A295=\"N/A\",Ref!$B$36,INDEX(Ranks!$1:$1048576,$A295,BI$1))","v":""},{"$f":"IF($A295=\"N/A\",Ref!$B$36,INDEX(Ranks!$1:$1048576,$A295,BJ$1))","v":""},{"$f":"IF($A295=\"N/A\",Ref!$B$36,INDEX(Ranks!$1:$1048576,$A295,BK$1))","v":""},{"$f":"IF($A295=\"N/A\",Ref!$B$36,INDEX(Ranks!$1:$1048576,$A295,BL$1))","v":""},{"$f":"IF($A295=\"N/A\",Ref!$B$36,INDEX(Ranks!$1:$1048576,$A295,BM$1))","v":""},{"$f":"IF($A295=\"N/A\",Ref!$B$36,INDEX(Ranks!$1:$1048576,$A295,BN$1))","v":""},{"$f":"IF($A295=\"N/A\",Ref!$B$36,INDEX(Ranks!$1:$1048576,$A295,BO$1))","v":""},{"$f":"IF($A295=\"N/A\",Ref!$B$36,INDEX(Ranks!$1:$1048576,$A295,BP$1))","v":""},{"$f":"IF($A295=\"N/A\",Ref!$B$36,INDEX(Ranks!$1:$1048576,$A295,BQ$1))","v":""},{"$f":"IF($A295=\"N/A\",Ref!$B$36,INDEX(Ranks!$1:$1048576,$A295,BR$1))","v":""},{"$f":"IF($A295=\"N/A\",Ref!$B$36,INDEX(Ranks!$1:$1048576,$A295,BS$1))","v":""},{"$f":"IF($A295=\"N/A\",Ref!$B$36,INDEX(Ranks!$1:$1048576,$A295,BT$1))","v":""},{"$f":"IF($A295=\"N/A\",Ref!$B$36,INDEX(Ranks!$1:$1048576,$A295,BU$1))","v":""},{"$f":"IF($A295=\"N/A\",Ref!$B$36,INDEX(Ranks!$1:$1048576,$A295,BV$1))","v":""},{"$f":"IF($A295=\"N/A\",Ref!$B$36,INDEX(Ranks!$1:$1048576,$A295,BW$1))","v":""},{"$f":"IF($A295=\"N/A\",Ref!$B$36,INDEX(Ranks!$1:$1048576,$A295,BX$1))","v":""},{"$f":"IF($A295=\"N/A\",Ref!$B$36,INDEX(Ranks!$1:$1048576,$A295,BY$1))","v":""},{"$f":"IF($A295=\"N/A\",Ref!$B$36,INDEX(Ranks!$1:$1048576,$A295,BZ$1))","v":""},{"$f":"IF($A295=\"N/A\",Ref!$B$36,INDEX(Ranks!$1:$1048576,$A295,CA$1))","v":""},{"$f":"IF($A295=\"N/A\",Ref!$B$36,INDEX(Ranks!$1:$1048576,$A295,CB$1))","v":""},{"$f":"IF($A295=\"N/A\",Ref!$B$36,INDEX(Ranks!$1:$1048576,$A295,CC$1))","v":""},{"$f":"IF($A295=\"N/A\",Ref!$B$36,INDEX(Ranks!$1:$1048576,$A295,CD$1))","v":""},{"$f":"IF($A295=\"N/A\",Ref!$B$36,INDEX(Ranks!$1:$1048576,$A295,CE$1))","v":""},{"$f":"IF($A295=\"N/A\",Ref!$B$36,INDEX(Ranks!$1:$1048576,$A295,CF$1))","v":""},{"$f":"IF($A295=\"N/A\",Ref!$B$36,INDEX(Ranks!$1:$1048576,$A295,CG$1))","v":""},{"$f":"IF($A295=\"N/A\",Ref!$B$36,INDEX(Ranks!$1:$1048576,$A295,CH$1))","v":""},{"$f":"IF($A295=\"N/A\",Ref!$B$36,INDEX(Ranks!$1:$1048576,$A295,CI$1))","v":""},{"$f":"IF($A295=\"N/A\",Ref!$B$36,INDEX(Ranks!$1:$1048576,$A295,CJ$1))","v":""},{"$f":"IF($A295=\"N/A\",Ref!$B$36,INDEX(Ranks!$1:$1048576,$A295,CK$1))","v":""},{"$f":"IF($A295=\"N/A\",Ref!$B$36,INDEX(Ranks!$1:$1048576,$A295,CL$1))","v":""},{"$f":"IF($A295=\"N/A\",Ref!$B$36,INDEX(Ranks!$1:$1048576,$A295,CM$1))","v":""},{"$f":"IF($A295=\"N/A\",Ref!$B$36,INDEX(Ranks!$1:$1048576,$A295,CN$1))","v":""},{"$f":"IF($A295=\"N/A\",Ref!$B$36,INDEX(Ranks!$1:$1048576,$A295,CO$1))","v":""},{"$f":"IF($A295=\"N/A\",Ref!$B$36,INDEX(Ranks!$1:$1048576,$A295,CP$1))","v":""},{"$f":"IF($A295=\"N/A\",Ref!$B$36,INDEX(Ranks!$1:$1048576,$A295,CQ$1))","v":""},{"$f":"IF($A295=\"N/A\",Ref!$B$36,INDEX(Ranks!$1:$1048576,$A295,CR$1))","v":""},{"$f":"IF($A295=\"N/A\",Ref!$B$36,INDEX(Ranks!$1:$1048576,$A295,CS$1))","v":""},{"$f":"IF($A295=\"N/A\",Ref!$B$36,INDEX(Ranks!$1:$1048576,$A295,CT$1))","v":""},{"$f":"IF($A295=\"N/A\",Ref!$B$36,INDEX(Ranks!$1:$1048576,$A295,CU$1))","v":""},{"$f":"IF($A295=\"N/A\",Ref!$B$36,INDEX(Ranks!$1:$1048576,$A295,CV$1))","v":""},{"$f":"IF($A295=\"N/A\",Ref!$B$36,INDEX(Ranks!$1:$1048576,$A295,CW$1))","v":""},{"$f":"IF($A295=\"N/A\",Ref!$B$36,INDEX(Ranks!$1:$1048576,$A295,CX$1))","v":""},{"$f":"IF($A295=\"N/A\",Ref!$B$36,INDEX(Ranks!$1:$1048576,$A295,CY$1))","v":""},{"$f":"IF($A295=\"N/A\",Ref!$B$36,INDEX(Ranks!$1:$1048576,$A295,CZ$1))","v":""},{"$f":"IF($A295=\"N/A\",Ref!$B$36,INDEX(Ranks!$1:$1048576,$A295,DA$1))","v":""},{"$f":"IF($A295=\"N/A\",Ref!$B$36,INDEX(Ranks!$1:$1048576,$A295,DB$1))","v":""},{"$f":"IF($A295=\"N/A\",Ref!$B$36,INDEX(Ranks!$1:$1048576,$A295,DC$1))","v":""},{"$f":"IF($A295=\"N/A\",Ref!$B$36,INDEX(Ranks!$1:$1048576,$A295,DD$1))","v":""},{"$f":"IF($A295=\"N/A\",Ref!$B$36,INDEX(Ranks!$1:$1048576,$A295,DE$1))","v":""},{"$f":"IF($A295=\"N/A\",Ref!$B$36,INDEX(Ranks!$1:$1048576,$A295,DF$1))","v":""},{"$f":"IF($A295=\"N/A\",Ref!$B$36,INDEX(Ranks!$1:$1048576,$A295,DG$1))","v":""},{"$f":"IF($A295=\"N/A\",Ref!$B$36,INDEX(Ranks!$1:$1048576,$A295,DH$1))","v":""},{"$f":"IF($A295=\"N/A\",Ref!$B$36,INDEX(Ranks!$1:$1048576,$A295,DI$1))","v":""},{"$f":"IF($A295=\"N/A\",Ref!$B$36,INDEX(Ranks!$1:$1048576,$A295,DJ$1))","v":""},{"$f":"IF($A295=\"N/A\",Ref!$B$36,INDEX(Ranks!$1:$1048576,$A295,DK$1))","v":""},{"$f":"IF($A295=\"N/A\",Ref!$B$36,INDEX(Ranks!$1:$1048576,$A295,DL$1))","v":""},{"$f":"IF($A295=\"N/A\",Ref!$B$36,INDEX(Ranks!$1:$1048576,$A295,DM$1))","v":""},{"$f":"IF($A295=\"N/A\",Ref!$B$36,INDEX(Ranks!$1:$1048576,$A295,DN$1))","v":""},{"$f":"IF($A295=\"N/A\",Ref!$B$36,INDEX(Ranks!$1:$1048576,$A295,DO$1))","v":""},{"$f":"IF($A295=\"N/A\",Ref!$B$36,INDEX(Ranks!$1:$1048576,$A295,DP$1))","v":""},{"$f":"IF($A295=\"N/A\",Ref!$B$36,INDEX(Ranks!$1:$1048576,$A295,DQ$1))","v":""},{"$f":"IF($A295=\"N/A\",Ref!$B$36,INDEX(Ranks!$1:$1048576,$A295,DR$1))","v":""},{"$f":"IF($A295=\"N/A\",Ref!$B$36,INDEX(Ranks!$1:$1048576,$A295,DS$1))","v":""},{"$f":"IF($A295=\"N/A\",Ref!$B$36,INDEX(Ranks!$1:$1048576,$A295,DT$1))","v":""},{"$f":"IF($A295=\"N/A\",Ref!$B$36,INDEX(Ranks!$1:$1048576,$A295,DU$1))","v":""},{"$f":"IF($A295=\"N/A\",Ref!$B$36,INDEX(Ranks!$1:$1048576,$A295,DV$1))","v":""},{"$f":"IF($A295=\"N/A\",Ref!$B$36,INDEX(Ranks!$1:$1048576,$A295,DW$1))","v":""},{"$f":"IF($A295=\"N/A\",Ref!$B$36,INDEX(Ranks!$1:$1048576,$A295,DX$1))","v":""},{"$f":"IF($A295=\"N/A\",Ref!$B$36,INDEX(Ranks!$1:$1048576,$A295,DY$1))","v":""},{"$f":"IF($A295=\"N/A\",Ref!$B$36,INDEX(Ranks!$1:$1048576,$A295,DZ$1))","v":""},{"$f":"IF($A295=\"N/A\",Ref!$B$36,INDEX(Ranks!$1:$1048576,$A295,EA$1))","v":""},{"$f":"IF($A295=\"N/A\",Ref!$B$36,INDEX(Ranks!$1:$1048576,$A295,EB$1))","v":""}]
[{"$f":"IFERROR(MATCH('Portfolio Page'!L296,Ranks!L:L,0),\"N/A\")","v":"N/A"},null,{"$f":"IF($A296=\"N/A\",\"\",INDEX(Ranks!$1:$1048576,$A296,C$1))","v":""},{"$f":"IF($A296=\"N/A\",Ref!$B$36,INDEX(Ranks!$1:$1048576,$A296,D$1))","v":""},{"$f":"IF($A296=\"N/A\",Ref!$B$36,INDEX(Ranks!$1:$1048576,$A296,E$1))","v":""},{"$f":"IF($A296=\"N/A\",\"\",INDEX(Ranks!$1:$1048576,$A296,F$1))","v":""},{"$f":"IF($A296=\"N/A\",\"\",INDEX(Ranks!$1:$1048576,$A296,G$1))","v":""},{"$f":"IF($A296=\"N/A\",\"\",INDEX(Ranks!$1:$1048576,$A296,H$1))","v":""},{"$f":"IF($A296=\"N/A\",\"\",INDEX(Ranks!$1:$1048576,$A296,I$1))","v":""},{"$f":"IF($A296=\"N/A\",\"\",INDEX(Ranks!$1:$1048576,$A296,J$1))","v":""},{"$f":"IF($A296=\"N/A\",\"\",INDEX(Ranks!$1:$1048576,$A296,K$1))","v":""},null,{"$f":"IF($A296=\"N/A\",Ref!$B$36,INDEX(Ranks!$1:$1048576,$A296,M$1))","v":""},{"$f":"IF($A296=\"N/A\",Ref!$B$36,INDEX(Ranks!$1:$1048576,$A296,N$1))","v":""},{"$f":"IF($A296=\"N/A\",Ref!$B$36,INDEX(Ranks!$1:$1048576,$A296,O$1))","v":""},{"$f":"IF($A296=\"N/A\",Ref!$B$36,INDEX(Ranks!$1:$1048576,$A296,P$1))","v":""},{"$f":"IF($A296=\"N/A\",Ref!$B$36,INDEX(Ranks!$1:$1048576,$A296,Q$1))","v":""},{"$f":"IF($A296=\"N/A\",Ref!$B$36,INDEX(Ranks!$1:$1048576,$A296,R$1))","v":""},{"$f":"IF($A296=\"N/A\",Ref!$B$36,INDEX(Ranks!$1:$1048576,$A296,S$1))","v":""},{"$f":"IF($A296=\"N/A\",Ref!$B$36,INDEX(Ranks!$1:$1048576,$A296,T$1))","v":""},{"$f":"IF($A296=\"N/A\",Ref!$B$36,INDEX(Ranks!$1:$1048576,$A296,U$1))","v":""},{"$f":"IF($A296=\"N/A\",Ref!$B$36,INDEX(Ranks!$1:$1048576,$A296,V$1))","v":""},{"$f":"IF($A296=\"N/A\",Ref!$B$36,INDEX(Ranks!$1:$1048576,$A296,W$1))","v":""},{"$f":"IF($A296=\"N/A\",Ref!$B$36,INDEX(Ranks!$1:$1048576,$A296,X$1))","v":""},{"$f":"IF($A296=\"N/A\",Ref!$B$36,INDEX(Ranks!$1:$1048576,$A296,Y$1))","v":""},{"$f":"IF($A296=\"N/A\",Ref!$B$36,INDEX(Ranks!$1:$1048576,$A296,Z$1))","v":""},{"$f":"IF($A296=\"N/A\",Ref!$B$36,INDEX(Ranks!$1:$1048576,$A296,AA$1))","v":""},{"$f":"IF($A296=\"N/A\",Ref!$B$36,INDEX(Ranks!$1:$1048576,$A296,AB$1))","v":""},{"$f":"IF($A296=\"N/A\",Ref!$B$36,INDEX(Ranks!$1:$1048576,$A296,AC$1))","v":""},{"$f":"IF($A296=\"N/A\",Ref!$B$36,INDEX(Ranks!$1:$1048576,$A296,AD$1))","v":""},{"$f":"IF($A296=\"N/A\",Ref!$B$36,INDEX(Ranks!$1:$1048576,$A296,AE$1))","v":""},{"$f":"IF($A296=\"N/A\",Ref!$B$36,INDEX(Ranks!$1:$1048576,$A296,AF$1))","v":""},{"$f":"IF($A296=\"N/A\",Ref!$B$36,INDEX(Ranks!$1:$1048576,$A296,AG$1))","v":""},{"$f":"IF($A296=\"N/A\",Ref!$B$36,INDEX(Ranks!$1:$1048576,$A296,AH$1))","v":""},{"$f":"IF($A296=\"N/A\",Ref!$B$36,INDEX(Ranks!$1:$1048576,$A296,AI$1))","v":""},{"$f":"IF($A296=\"N/A\",Ref!$B$36,INDEX(Ranks!$1:$1048576,$A296,AJ$1))","v":""},{"$f":"IF($A296=\"N/A\",Ref!$B$36,INDEX(Ranks!$1:$1048576,$A296,AK$1))","v":""},{"$f":"IF($A296=\"N/A\",Ref!$B$36,INDEX(Ranks!$1:$1048576,$A296,AL$1))","v":""},{"$f":"IF($A296=\"N/A\",Ref!$B$36,INDEX(Ranks!$1:$1048576,$A296,AM$1))","v":""},{"$f":"IF($A296=\"N/A\",Ref!$B$36,INDEX(Ranks!$1:$1048576,$A296,AN$1))","v":""},{"$f":"IF($A296=\"N/A\",Ref!$B$36,INDEX(Ranks!$1:$1048576,$A296,AO$1))","v":""},{"$f":"IF($A296=\"N/A\",Ref!$B$36,INDEX(Ranks!$1:$1048576,$A296,AP$1))","v":""},{"$f":"IF($A296=\"N/A\",Ref!$B$36,INDEX(Ranks!$1:$1048576,$A296,AQ$1))","v":""},{"$f":"IF($A296=\"N/A\",Ref!$B$36,INDEX(Ranks!$1:$1048576,$A296,AR$1))","v":""},{"$f":"IF($A296=\"N/A\",Ref!$B$36,INDEX(Ranks!$1:$1048576,$A296,AS$1))","v":""},{"$f":"IF($A296=\"N/A\",Ref!$B$36,INDEX(Ranks!$1:$1048576,$A296,AT$1))","v":""},{"$f":"IF($A296=\"N/A\",Ref!$B$36,INDEX(Ranks!$1:$1048576,$A296,AU$1))","v":""},{"$f":"IF($A296=\"N/A\",Ref!$B$36,INDEX(Ranks!$1:$1048576,$A296,AV$1))","v":""},{"$f":"IF($A296=\"N/A\",Ref!$B$36,INDEX(Ranks!$1:$1048576,$A296,AW$1))","v":""},{"$f":"IF($A296=\"N/A\",Ref!$B$36,INDEX(Ranks!$1:$1048576,$A296,AX$1))","v":""},{"$f":"IF($A296=\"N/A\",Ref!$B$36,INDEX(Ranks!$1:$1048576,$A296,AY$1))","v":""},{"$f":"IF($A296=\"N/A\",Ref!$B$36,INDEX(Ranks!$1:$1048576,$A296,AZ$1))","v":""},{"$f":"IF($A296=\"N/A\",Ref!$B$36,INDEX(Ranks!$1:$1048576,$A296,BA$1))","v":""},{"$f":"IF($A296=\"N/A\",Ref!$B$36,INDEX(Ranks!$1:$1048576,$A296,BB$1))","v":""},{"$f":"IF($A296=\"N/A\",Ref!$B$36,INDEX(Ranks!$1:$1048576,$A296,BC$1))","v":""},{"$f":"IF($A296=\"N/A\",Ref!$B$36,INDEX(Ranks!$1:$1048576,$A296,BD$1))","v":""},{"$f":"IF($A296=\"N/A\",Ref!$B$36,INDEX(Ranks!$1:$1048576,$A296,BE$1))","v":""},{"$f":"IF($A296=\"N/A\",Ref!$B$36,INDEX(Ranks!$1:$1048576,$A296,BF$1))","v":""},{"$f":"IF($A296=\"N/A\",Ref!$B$36,INDEX(Ranks!$1:$1048576,$A296,BG$1))","v":""},{"$f":"IF($A296=\"N/A\",Ref!$B$36,INDEX(Ranks!$1:$1048576,$A296,BH$1))","v":""},{"$f":"IF($A296=\"N/A\",Ref!$B$36,INDEX(Ranks!$1:$1048576,$A296,BI$1))","v":""},{"$f":"IF($A296=\"N/A\",Ref!$B$36,INDEX(Ranks!$1:$1048576,$A296,BJ$1))","v":""},{"$f":"IF($A296=\"N/A\",Ref!$B$36,INDEX(Ranks!$1:$1048576,$A296,BK$1))","v":""},{"$f":"IF($A296=\"N/A\",Ref!$B$36,INDEX(Ranks!$1:$1048576,$A296,BL$1))","v":""},{"$f":"IF($A296=\"N/A\",Ref!$B$36,INDEX(Ranks!$1:$1048576,$A296,BM$1))","v":""},{"$f":"IF($A296=\"N/A\",Ref!$B$36,INDEX(Ranks!$1:$1048576,$A296,BN$1))","v":""},{"$f":"IF($A296=\"N/A\",Ref!$B$36,INDEX(Ranks!$1:$1048576,$A296,BO$1))","v":""},{"$f":"IF($A296=\"N/A\",Ref!$B$36,INDEX(Ranks!$1:$1048576,$A296,BP$1))","v":""},{"$f":"IF($A296=\"N/A\",Ref!$B$36,INDEX(Ranks!$1:$1048576,$A296,BQ$1))","v":""},{"$f":"IF($A296=\"N/A\",Ref!$B$36,INDEX(Ranks!$1:$1048576,$A296,BR$1))","v":""},{"$f":"IF($A296=\"N/A\",Ref!$B$36,INDEX(Ranks!$1:$1048576,$A296,BS$1))","v":""},{"$f":"IF($A296=\"N/A\",Ref!$B$36,INDEX(Ranks!$1:$1048576,$A296,BT$1))","v":""},{"$f":"IF($A296=\"N/A\",Ref!$B$36,INDEX(Ranks!$1:$1048576,$A296,BU$1))","v":""},{"$f":"IF($A296=\"N/A\",Ref!$B$36,INDEX(Ranks!$1:$1048576,$A296,BV$1))","v":""},{"$f":"IF($A296=\"N/A\",Ref!$B$36,INDEX(Ranks!$1:$1048576,$A296,BW$1))","v":""},{"$f":"IF($A296=\"N/A\",Ref!$B$36,INDEX(Ranks!$1:$1048576,$A296,BX$1))","v":""},{"$f":"IF($A296=\"N/A\",Ref!$B$36,INDEX(Ranks!$1:$1048576,$A296,BY$1))","v":""},{"$f":"IF($A296=\"N/A\",Ref!$B$36,INDEX(Ranks!$1:$1048576,$A296,BZ$1))","v":""},{"$f":"IF($A296=\"N/A\",Ref!$B$36,INDEX(Ranks!$1:$1048576,$A296,CA$1))","v":""},{"$f":"IF($A296=\"N/A\",Ref!$B$36,INDEX(Ranks!$1:$1048576,$A296,CB$1))","v":""},{"$f":"IF($A296=\"N/A\",Ref!$B$36,INDEX(Ranks!$1:$1048576,$A296,CC$1))","v":""},{"$f":"IF($A296=\"N/A\",Ref!$B$36,INDEX(Ranks!$1:$1048576,$A296,CD$1))","v":""},{"$f":"IF($A296=\"N/A\",Ref!$B$36,INDEX(Ranks!$1:$1048576,$A296,CE$1))","v":""},{"$f":"IF($A296=\"N/A\",Ref!$B$36,INDEX(Ranks!$1:$1048576,$A296,CF$1))","v":""},{"$f":"IF($A296=\"N/A\",Ref!$B$36,INDEX(Ranks!$1:$1048576,$A296,CG$1))","v":""},{"$f":"IF($A296=\"N/A\",Ref!$B$36,INDEX(Ranks!$1:$1048576,$A296,CH$1))","v":""},{"$f":"IF($A296=\"N/A\",Ref!$B$36,INDEX(Ranks!$1:$1048576,$A296,CI$1))","v":""},{"$f":"IF($A296=\"N/A\",Ref!$B$36,INDEX(Ranks!$1:$1048576,$A296,CJ$1))","v":""},{"$f":"IF($A296=\"N/A\",Ref!$B$36,INDEX(Ranks!$1:$1048576,$A296,CK$1))","v":""},{"$f":"IF($A296=\"N/A\",Ref!$B$36,INDEX(Ranks!$1:$1048576,$A296,CL$1))","v":""},{"$f":"IF($A296=\"N/A\",Ref!$B$36,INDEX(Ranks!$1:$1048576,$A296,CM$1))","v":""},{"$f":"IF($A296=\"N/A\",Ref!$B$36,INDEX(Ranks!$1:$1048576,$A296,CN$1))","v":""},{"$f":"IF($A296=\"N/A\",Ref!$B$36,INDEX(Ranks!$1:$1048576,$A296,CO$1))","v":""},{"$f":"IF($A296=\"N/A\",Ref!$B$36,INDEX(Ranks!$1:$1048576,$A296,CP$1))","v":""},{"$f":"IF($A296=\"N/A\",Ref!$B$36,INDEX(Ranks!$1:$1048576,$A296,CQ$1))","v":""},{"$f":"IF($A296=\"N/A\",Ref!$B$36,INDEX(Ranks!$1:$1048576,$A296,CR$1))","v":""},{"$f":"IF($A296=\"N/A\",Ref!$B$36,INDEX(Ranks!$1:$1048576,$A296,CS$1))","v":""},{"$f":"IF($A296=\"N/A\",Ref!$B$36,INDEX(Ranks!$1:$1048576,$A296,CT$1))","v":""},{"$f":"IF($A296=\"N/A\",Ref!$B$36,INDEX(Ranks!$1:$1048576,$A296,CU$1))","v":""},{"$f":"IF($A296=\"N/A\",Ref!$B$36,INDEX(Ranks!$1:$1048576,$A296,CV$1))","v":""},{"$f":"IF($A296=\"N/A\",Ref!$B$36,INDEX(Ranks!$1:$1048576,$A296,CW$1))","v":""},{"$f":"IF($A296=\"N/A\",Ref!$B$36,INDEX(Ranks!$1:$1048576,$A296,CX$1))","v":""},{"$f":"IF($A296=\"N/A\",Ref!$B$36,INDEX(Ranks!$1:$1048576,$A296,CY$1))","v":""},{"$f":"IF($A296=\"N/A\",Ref!$B$36,INDEX(Ranks!$1:$1048576,$A296,CZ$1))","v":""},{"$f":"IF($A296=\"N/A\",Ref!$B$36,INDEX(Ranks!$1:$1048576,$A296,DA$1))","v":""},{"$f":"IF($A296=\"N/A\",Ref!$B$36,INDEX(Ranks!$1:$1048576,$A296,DB$1))","v":""},{"$f":"IF($A296=\"N/A\",Ref!$B$36,INDEX(Ranks!$1:$1048576,$A296,DC$1))","v":""},{"$f":"IF($A296=\"N/A\",Ref!$B$36,INDEX(Ranks!$1:$1048576,$A296,DD$1))","v":""},{"$f":"IF($A296=\"N/A\",Ref!$B$36,INDEX(Ranks!$1:$1048576,$A296,DE$1))","v":""},{"$f":"IF($A296=\"N/A\",Ref!$B$36,INDEX(Ranks!$1:$1048576,$A296,DF$1))","v":""},{"$f":"IF($A296=\"N/A\",Ref!$B$36,INDEX(Ranks!$1:$1048576,$A296,DG$1))","v":""},{"$f":"IF($A296=\"N/A\",Ref!$B$36,INDEX(Ranks!$1:$1048576,$A296,DH$1))","v":""},{"$f":"IF($A296=\"N/A\",Ref!$B$36,INDEX(Ranks!$1:$1048576,$A296,DI$1))","v":""},{"$f":"IF($A296=\"N/A\",Ref!$B$36,INDEX(Ranks!$1:$1048576,$A296,DJ$1))","v":""},{"$f":"IF($A296=\"N/A\",Ref!$B$36,INDEX(Ranks!$1:$1048576,$A296,DK$1))","v":""},{"$f":"IF($A296=\"N/A\",Ref!$B$36,INDEX(Ranks!$1:$1048576,$A296,DL$1))","v":""},{"$f":"IF($A296=\"N/A\",Ref!$B$36,INDEX(Ranks!$1:$1048576,$A296,DM$1))","v":""},{"$f":"IF($A296=\"N/A\",Ref!$B$36,INDEX(Ranks!$1:$1048576,$A296,DN$1))","v":""},{"$f":"IF($A296=\"N/A\",Ref!$B$36,INDEX(Ranks!$1:$1048576,$A296,DO$1))","v":""},{"$f":"IF($A296=\"N/A\",Ref!$B$36,INDEX(Ranks!$1:$1048576,$A296,DP$1))","v":""},{"$f":"IF($A296=\"N/A\",Ref!$B$36,INDEX(Ranks!$1:$1048576,$A296,DQ$1))","v":""},{"$f":"IF($A296=\"N/A\",Ref!$B$36,INDEX(Ranks!$1:$1048576,$A296,DR$1))","v":""},{"$f":"IF($A296=\"N/A\",Ref!$B$36,INDEX(Ranks!$1:$1048576,$A296,DS$1))","v":""},{"$f":"IF($A296=\"N/A\",Ref!$B$36,INDEX(Ranks!$1:$1048576,$A296,DT$1))","v":""},{"$f":"IF($A296=\"N/A\",Ref!$B$36,INDEX(Ranks!$1:$1048576,$A296,DU$1))","v":""},{"$f":"IF($A296=\"N/A\",Ref!$B$36,INDEX(Ranks!$1:$1048576,$A296,DV$1))","v":""},{"$f":"IF($A296=\"N/A\",Ref!$B$36,INDEX(Ranks!$1:$1048576,$A296,DW$1))","v":""},{"$f":"IF($A296=\"N/A\",Ref!$B$36,INDEX(Ranks!$1:$1048576,$A296,DX$1))","v":""},{"$f":"IF($A296=\"N/A\",Ref!$B$36,INDEX(Ranks!$1:$1048576,$A296,DY$1))","v":""},{"$f":"IF($A296=\"N/A\",Ref!$B$36,INDEX(Ranks!$1:$1048576,$A296,DZ$1))","v":""},{"$f":"IF($A296=\"N/A\",Ref!$B$36,INDEX(Ranks!$1:$1048576,$A296,EA$1))","v":""},{"$f":"IF($A296=\"N/A\",Ref!$B$36,INDEX(Ranks!$1:$1048576,$A296,EB$1))","v":""}]
[{"$f":"IFERROR(MATCH('Portfolio Page'!L297,Ranks!L:L,0),\"N/A\")","v":"N/A"},null,{"$f":"IF($A297=\"N/A\",\"\",INDEX(Ranks!$1:$1048576,$A297,C$1))","v":""},{"$f":"IF($A297=\"N/A\",Ref!$B$36,INDEX(Ranks!$1:$1048576,$A297,D$1))","v":""},{"$f":"IF($A297=\"N/A\",Ref!$B$36,INDEX(Ranks!$1:$1048576,$A297,E$1))","v":""},{"$f":"IF($A297=\"N/A\",\"\",INDEX(Ranks!$1:$1048576,$A297,F$1))","v":""},{"$f":"IF($A297=\"N/A\",\"\",INDEX(Ranks!$1:$1048576,$A297,G$1))","v":""},{"$f":"IF($A297=\"N/A\",\"\",INDEX(Ranks!$1:$1048576,$A297,H$1))","v":""},{"$f":"IF($A297=\"N/A\",\"\",INDEX(Ranks!$1:$1048576,$A297,I$1))","v":""},{"$f":"IF($A297=\"N/A\",\"\",INDEX(Ranks!$1:$1048576,$A297,J$1))","v":""},{"$f":"IF($A297=\"N/A\",\"\",INDEX(Ranks!$1:$1048576,$A297,K$1))","v":""},null,{"$f":"IF($A297=\"N/A\",Ref!$B$36,INDEX(Ranks!$1:$1048576,$A297,M$1))","v":""},{"$f":"IF($A297=\"N/A\",Ref!$B$36,INDEX(Ranks!$1:$1048576,$A297,N$1))","v":""},{"$f":"IF($A297=\"N/A\",Ref!$B$36,INDEX(Ranks!$1:$1048576,$A297,O$1))","v":""},{"$f":"IF($A297=\"N/A\",Ref!$B$36,INDEX(Ranks!$1:$1048576,$A297,P$1))","v":""},{"$f":"IF($A297=\"N/A\",Ref!$B$36,INDEX(Ranks!$1:$1048576,$A297,Q$1))","v":""},{"$f":"IF($A297=\"N/A\",Ref!$B$36,INDEX(Ranks!$1:$1048576,$A297,R$1))","v":""},{"$f":"IF($A297=\"N/A\",Ref!$B$36,INDEX(Ranks!$1:$1048576,$A297,S$1))","v":""},{"$f":"IF($A297=\"N/A\",Ref!$B$36,INDEX(Ranks!$1:$1048576,$A297,T$1))","v":""},{"$f":"IF($A297=\"N/A\",Ref!$B$36,INDEX(Ranks!$1:$1048576,$A297,U$1))","v":""},{"$f":"IF($A297=\"N/A\",Ref!$B$36,INDEX(Ranks!$1:$1048576,$A297,V$1))","v":""},{"$f":"IF($A297=\"N/A\",Ref!$B$36,INDEX(Ranks!$1:$1048576,$A297,W$1))","v":""},{"$f":"IF($A297=\"N/A\",Ref!$B$36,INDEX(Ranks!$1:$1048576,$A297,X$1))","v":""},{"$f":"IF($A297=\"N/A\",Ref!$B$36,INDEX(Ranks!$1:$1048576,$A297,Y$1))","v":""},{"$f":"IF($A297=\"N/A\",Ref!$B$36,INDEX(Ranks!$1:$1048576,$A297,Z$1))","v":""},{"$f":"IF($A297=\"N/A\",Ref!$B$36,INDEX(Ranks!$1:$1048576,$A297,AA$1))","v":""},{"$f":"IF($A297=\"N/A\",Ref!$B$36,INDEX(Ranks!$1:$1048576,$A297,AB$1))","v":""},{"$f":"IF($A297=\"N/A\",Ref!$B$36,INDEX(Ranks!$1:$1048576,$A297,AC$1))","v":""},{"$f":"IF($A297=\"N/A\",Ref!$B$36,INDEX(Ranks!$1:$1048576,$A297,AD$1))","v":""},{"$f":"IF($A297=\"N/A\",Ref!$B$36,INDEX(Ranks!$1:$1048576,$A297,AE$1))","v":""},{"$f":"IF($A297=\"N/A\",Ref!$B$36,INDEX(Ranks!$1:$1048576,$A297,AF$1))","v":""},{"$f":"IF($A297=\"N/A\",Ref!$B$36,INDEX(Ranks!$1:$1048576,$A297,AG$1))","v":""},{"$f":"IF($A297=\"N/A\",Ref!$B$36,INDEX(Ranks!$1:$1048576,$A297,AH$1))","v":""},{"$f":"IF($A297=\"N/A\",Ref!$B$36,INDEX(Ranks!$1:$1048576,$A297,AI$1))","v":""},{"$f":"IF($A297=\"N/A\",Ref!$B$36,INDEX(Ranks!$1:$1048576,$A297,AJ$1))","v":""},{"$f":"IF($A297=\"N/A\",Ref!$B$36,INDEX(Ranks!$1:$1048576,$A297,AK$1))","v":""},{"$f":"IF($A297=\"N/A\",Ref!$B$36,INDEX(Ranks!$1:$1048576,$A297,AL$1))","v":""},{"$f":"IF($A297=\"N/A\",Ref!$B$36,INDEX(Ranks!$1:$1048576,$A297,AM$1))","v":""},{"$f":"IF($A297=\"N/A\",Ref!$B$36,INDEX(Ranks!$1:$1048576,$A297,AN$1))","v":""},{"$f":"IF($A297=\"N/A\",Ref!$B$36,INDEX(Ranks!$1:$1048576,$A297,AO$1))","v":""},{"$f":"IF($A297=\"N/A\",Ref!$B$36,INDEX(Ranks!$1:$1048576,$A297,AP$1))","v":""},{"$f":"IF($A297=\"N/A\",Ref!$B$36,INDEX(Ranks!$1:$1048576,$A297,AQ$1))","v":""},{"$f":"IF($A297=\"N/A\",Ref!$B$36,INDEX(Ranks!$1:$1048576,$A297,AR$1))","v":""},{"$f":"IF($A297=\"N/A\",Ref!$B$36,INDEX(Ranks!$1:$1048576,$A297,AS$1))","v":""},{"$f":"IF($A297=\"N/A\",Ref!$B$36,INDEX(Ranks!$1:$1048576,$A297,AT$1))","v":""},{"$f":"IF($A297=\"N/A\",Ref!$B$36,INDEX(Ranks!$1:$1048576,$A297,AU$1))","v":""},{"$f":"IF($A297=\"N/A\",Ref!$B$36,INDEX(Ranks!$1:$1048576,$A297,AV$1))","v":""},{"$f":"IF($A297=\"N/A\",Ref!$B$36,INDEX(Ranks!$1:$1048576,$A297,AW$1))","v":""},{"$f":"IF($A297=\"N/A\",Ref!$B$36,INDEX(Ranks!$1:$1048576,$A297,AX$1))","v":""},{"$f":"IF($A297=\"N/A\",Ref!$B$36,INDEX(Ranks!$1:$1048576,$A297,AY$1))","v":""},{"$f":"IF($A297=\"N/A\",Ref!$B$36,INDEX(Ranks!$1:$1048576,$A297,AZ$1))","v":""},{"$f":"IF($A297=\"N/A\",Ref!$B$36,INDEX(Ranks!$1:$1048576,$A297,BA$1))","v":""},{"$f":"IF($A297=\"N/A\",Ref!$B$36,INDEX(Ranks!$1:$1048576,$A297,BB$1))","v":""},{"$f":"IF($A297=\"N/A\",Ref!$B$36,INDEX(Ranks!$1:$1048576,$A297,BC$1))","v":""},{"$f":"IF($A297=\"N/A\",Ref!$B$36,INDEX(Ranks!$1:$1048576,$A297,BD$1))","v":""},{"$f":"IF($A297=\"N/A\",Ref!$B$36,INDEX(Ranks!$1:$1048576,$A297,BE$1))","v":""},{"$f":"IF($A297=\"N/A\",Ref!$B$36,INDEX(Ranks!$1:$1048576,$A297,BF$1))","v":""},{"$f":"IF($A297=\"N/A\",Ref!$B$36,INDEX(Ranks!$1:$1048576,$A297,BG$1))","v":""},{"$f":"IF($A297=\"N/A\",Ref!$B$36,INDEX(Ranks!$1:$1048576,$A297,BH$1))","v":""},{"$f":"IF($A297=\"N/A\",Ref!$B$36,INDEX(Ranks!$1:$1048576,$A297,BI$1))","v":""},{"$f":"IF($A297=\"N/A\",Ref!$B$36,INDEX(Ranks!$1:$1048576,$A297,BJ$1))","v":""},{"$f":"IF($A297=\"N/A\",Ref!$B$36,INDEX(Ranks!$1:$1048576,$A297,BK$1))","v":""},{"$f":"IF($A297=\"N/A\",Ref!$B$36,INDEX(Ranks!$1:$1048576,$A297,BL$1))","v":""},{"$f":"IF($A297=\"N/A\",Ref!$B$36,INDEX(Ranks!$1:$1048576,$A297,BM$1))","v":""},{"$f":"IF($A297=\"N/A\",Ref!$B$36,INDEX(Ranks!$1:$1048576,$A297,BN$1))","v":""},{"$f":"IF($A297=\"N/A\",Ref!$B$36,INDEX(Ranks!$1:$1048576,$A297,BO$1))","v":""},{"$f":"IF($A297=\"N/A\",Ref!$B$36,INDEX(Ranks!$1:$1048576,$A297,BP$1))","v":""},{"$f":"IF($A297=\"N/A\",Ref!$B$36,INDEX(Ranks!$1:$1048576,$A297,BQ$1))","v":""},{"$f":"IF($A297=\"N/A\",Ref!$B$36,INDEX(Ranks!$1:$1048576,$A297,BR$1))","v":""},{"$f":"IF($A297=\"N/A\",Ref!$B$36,INDEX(Ranks!$1:$1048576,$A297,BS$1))","v":""},{"$f":"IF($A297=\"N/A\",Ref!$B$36,INDEX(Ranks!$1:$1048576,$A297,BT$1))","v":""},{"$f":"IF($A297=\"N/A\",Ref!$B$36,INDEX(Ranks!$1:$1048576,$A297,BU$1))","v":""},{"$f":"IF($A297=\"N/A\",Ref!$B$36,INDEX(Ranks!$1:$1048576,$A297,BV$1))","v":""},{"$f":"IF($A297=\"N/A\",Ref!$B$36,INDEX(Ranks!$1:$1048576,$A297,BW$1))","v":""},{"$f":"IF($A297=\"N/A\",Ref!$B$36,INDEX(Ranks!$1:$1048576,$A297,BX$1))","v":""},{"$f":"IF($A297=\"N/A\",Ref!$B$36,INDEX(Ranks!$1:$1048576,$A297,BY$1))","v":""},{"$f":"IF($A297=\"N/A\",Ref!$B$36,INDEX(Ranks!$1:$1048576,$A297,BZ$1))","v":""},{"$f":"IF($A297=\"N/A\",Ref!$B$36,INDEX(Ranks!$1:$1048576,$A297,CA$1))","v":""},{"$f":"IF($A297=\"N/A\",Ref!$B$36,INDEX(Ranks!$1:$1048576,$A297,CB$1))","v":""},{"$f":"IF($A297=\"N/A\",Ref!$B$36,INDEX(Ranks!$1:$1048576,$A297,CC$1))","v":""},{"$f":"IF($A297=\"N/A\",Ref!$B$36,INDEX(Ranks!$1:$1048576,$A297,CD$1))","v":""},{"$f":"IF($A297=\"N/A\",Ref!$B$36,INDEX(Ranks!$1:$1048576,$A297,CE$1))","v":""},{"$f":"IF($A297=\"N/A\",Ref!$B$36,INDEX(Ranks!$1:$1048576,$A297,CF$1))","v":""},{"$f":"IF($A297=\"N/A\",Ref!$B$36,INDEX(Ranks!$1:$1048576,$A297,CG$1))","v":""},{"$f":"IF($A297=\"N/A\",Ref!$B$36,INDEX(Ranks!$1:$1048576,$A297,CH$1))","v":""},{"$f":"IF($A297=\"N/A\",Ref!$B$36,INDEX(Ranks!$1:$1048576,$A297,CI$1))","v":""},{"$f":"IF($A297=\"N/A\",Ref!$B$36,INDEX(Ranks!$1:$1048576,$A297,CJ$1))","v":""},{"$f":"IF($A297=\"N/A\",Ref!$B$36,INDEX(Ranks!$1:$1048576,$A297,CK$1))","v":""},{"$f":"IF($A297=\"N/A\",Ref!$B$36,INDEX(Ranks!$1:$1048576,$A297,CL$1))","v":""},{"$f":"IF($A297=\"N/A\",Ref!$B$36,INDEX(Ranks!$1:$1048576,$A297,CM$1))","v":""},{"$f":"IF($A297=\"N/A\",Ref!$B$36,INDEX(Ranks!$1:$1048576,$A297,CN$1))","v":""},{"$f":"IF($A297=\"N/A\",Ref!$B$36,INDEX(Ranks!$1:$1048576,$A297,CO$1))","v":""},{"$f":"IF($A297=\"N/A\",Ref!$B$36,INDEX(Ranks!$1:$1048576,$A297,CP$1))","v":""},{"$f":"IF($A297=\"N/A\",Ref!$B$36,INDEX(Ranks!$1:$1048576,$A297,CQ$1))","v":""},{"$f":"IF($A297=\"N/A\",Ref!$B$36,INDEX(Ranks!$1:$1048576,$A297,CR$1))","v":""},{"$f":"IF($A297=\"N/A\",Ref!$B$36,INDEX(Ranks!$1:$1048576,$A297,CS$1))","v":""},{"$f":"IF($A297=\"N/A\",Ref!$B$36,INDEX(Ranks!$1:$1048576,$A297,CT$1))","v":""},{"$f":"IF($A297=\"N/A\",Ref!$B$36,INDEX(Ranks!$1:$1048576,$A297,CU$1))","v":""},{"$f":"IF($A297=\"N/A\",Ref!$B$36,INDEX(Ranks!$1:$1048576,$A297,CV$1))","v":""},{"$f":"IF($A297=\"N/A\",Ref!$B$36,INDEX(Ranks!$1:$1048576,$A297,CW$1))","v":""},{"$f":"IF($A297=\"N/A\",Ref!$B$36,INDEX(Ranks!$1:$1048576,$A297,CX$1))","v":""},{"$f":"IF($A297=\"N/A\",Ref!$B$36,INDEX(Ranks!$1:$1048576,$A297,CY$1))","v":""},{"$f":"IF($A297=\"N/A\",Ref!$B$36,INDEX(Ranks!$1:$1048576,$A297,CZ$1))","v":""},{"$f":"IF($A297=\"N/A\",Ref!$B$36,INDEX(Ranks!$1:$1048576,$A297,DA$1))","v":""},{"$f":"IF($A297=\"N/A\",Ref!$B$36,INDEX(Ranks!$1:$1048576,$A297,DB$1))","v":""},{"$f":"IF($A297=\"N/A\",Ref!$B$36,INDEX(Ranks!$1:$1048576,$A297,DC$1))","v":""},{"$f":"IF($A297=\"N/A\",Ref!$B$36,INDEX(Ranks!$1:$1048576,$A297,DD$1))","v":""},{"$f":"IF($A297=\"N/A\",Ref!$B$36,INDEX(Ranks!$1:$1048576,$A297,DE$1))","v":""},{"$f":"IF($A297=\"N/A\",Ref!$B$36,INDEX(Ranks!$1:$1048576,$A297,DF$1))","v":""},{"$f":"IF($A297=\"N/A\",Ref!$B$36,INDEX(Ranks!$1:$1048576,$A297,DG$1))","v":""},{"$f":"IF($A297=\"N/A\",Ref!$B$36,INDEX(Ranks!$1:$1048576,$A297,DH$1))","v":""},{"$f":"IF($A297=\"N/A\",Ref!$B$36,INDEX(Ranks!$1:$1048576,$A297,DI$1))","v":""},{"$f":"IF($A297=\"N/A\",Ref!$B$36,INDEX(Ranks!$1:$1048576,$A297,DJ$1))","v":""},{"$f":"IF($A297=\"N/A\",Ref!$B$36,INDEX(Ranks!$1:$1048576,$A297,DK$1))","v":""},{"$f":"IF($A297=\"N/A\",Ref!$B$36,INDEX(Ranks!$1:$1048576,$A297,DL$1))","v":""},{"$f":"IF($A297=\"N/A\",Ref!$B$36,INDEX(Ranks!$1:$1048576,$A297,DM$1))","v":""},{"$f":"IF($A297=\"N/A\",Ref!$B$36,INDEX(Ranks!$1:$1048576,$A297,DN$1))","v":""},{"$f":"IF($A297=\"N/A\",Ref!$B$36,INDEX(Ranks!$1:$1048576,$A297,DO$1))","v":""},{"$f":"IF($A297=\"N/A\",Ref!$B$36,INDEX(Ranks!$1:$1048576,$A297,DP$1))","v":""},{"$f":"IF($A297=\"N/A\",Ref!$B$36,INDEX(Ranks!$1:$1048576,$A297,DQ$1))","v":""},{"$f":"IF($A297=\"N/A\",Ref!$B$36,INDEX(Ranks!$1:$1048576,$A297,DR$1))","v":""},{"$f":"IF($A297=\"N/A\",Ref!$B$36,INDEX(Ranks!$1:$1048576,$A297,DS$1))","v":""},{"$f":"IF($A297=\"N/A\",Ref!$B$36,INDEX(Ranks!$1:$1048576,$A297,DT$1))","v":""},{"$f":"IF($A297=\"N/A\",Ref!$B$36,INDEX(Ranks!$1:$1048576,$A297,DU$1))","v":""},{"$f":"IF($A297=\"N/A\",Ref!$B$36,INDEX(Ranks!$1:$1048576,$A297,DV$1))","v":""},{"$f":"IF($A297=\"N/A\",Ref!$B$36,INDEX(Ranks!$1:$1048576,$A297,DW$1))","v":""},{"$f":"IF($A297=\"N/A\",Ref!$B$36,INDEX(Ranks!$1:$1048576,$A297,DX$1))","v":""},{"$f":"IF($A297=\"N/A\",Ref!$B$36,INDEX(Ranks!$1:$1048576,$A297,DY$1))","v":""},{"$f":"IF($A297=\"N/A\",Ref!$B$36,INDEX(Ranks!$1:$1048576,$A297,DZ$1))","v":""},{"$f":"IF($A297=\"N/A\",Ref!$B$36,INDEX(Ranks!$1:$1048576,$A297,EA$1))","v":""},{"$f":"IF($A297=\"N/A\",Ref!$B$36,INDEX(Ranks!$1:$1048576,$A297,EB$1))","v":""}]
[{"$f":"IFERROR(MATCH('Portfolio Page'!L298,Ranks!L:L,0),\"N/A\")","v":"N/A"},null,{"$f":"IF($A298=\"N/A\",\"\",INDEX(Ranks!$1:$1048576,$A298,C$1))","v":""},{"$f":"IF($A298=\"N/A\",Ref!$B$36,INDEX(Ranks!$1:$1048576,$A298,D$1))","v":""},{"$f":"IF($A298=\"N/A\",Ref!$B$36,INDEX(Ranks!$1:$1048576,$A298,E$1))","v":""},{"$f":"IF($A298=\"N/A\",\"\",INDEX(Ranks!$1:$1048576,$A298,F$1))","v":""},{"$f":"IF($A298=\"N/A\",\"\",INDEX(Ranks!$1:$1048576,$A298,G$1))","v":""},{"$f":"IF($A298=\"N/A\",\"\",INDEX(Ranks!$1:$1048576,$A298,H$1))","v":""},{"$f":"IF($A298=\"N/A\",\"\",INDEX(Ranks!$1:$1048576,$A298,I$1))","v":""},{"$f":"IF($A298=\"N/A\",\"\",INDEX(Ranks!$1:$1048576,$A298,J$1))","v":""},{"$f":"IF($A298=\"N/A\",\"\",INDEX(Ranks!$1:$1048576,$A298,K$1))","v":""},null,{"$f":"IF($A298=\"N/A\",Ref!$B$36,INDEX(Ranks!$1:$1048576,$A298,M$1))","v":""},{"$f":"IF($A298=\"N/A\",Ref!$B$36,INDEX(Ranks!$1:$1048576,$A298,N$1))","v":""},{"$f":"IF($A298=\"N/A\",Ref!$B$36,INDEX(Ranks!$1:$1048576,$A298,O$1))","v":""},{"$f":"IF($A298=\"N/A\",Ref!$B$36,INDEX(Ranks!$1:$1048576,$A298,P$1))","v":""},{"$f":"IF($A298=\"N/A\",Ref!$B$36,INDEX(Ranks!$1:$1048576,$A298,Q$1))","v":""},{"$f":"IF($A298=\"N/A\",Ref!$B$36,INDEX(Ranks!$1:$1048576,$A298,R$1))","v":""},{"$f":"IF($A298=\"N/A\",Ref!$B$36,INDEX(Ranks!$1:$1048576,$A298,S$1))","v":""},{"$f":"IF($A298=\"N/A\",Ref!$B$36,INDEX(Ranks!$1:$1048576,$A298,T$1))","v":""},{"$f":"IF($A298=\"N/A\",Ref!$B$36,INDEX(Ranks!$1:$1048576,$A298,U$1))","v":""},{"$f":"IF($A298=\"N/A\",Ref!$B$36,INDEX(Ranks!$1:$1048576,$A298,V$1))","v":""},{"$f":"IF($A298=\"N/A\",Ref!$B$36,INDEX(Ranks!$1:$1048576,$A298,W$1))","v":""},{"$f":"IF($A298=\"N/A\",Ref!$B$36,INDEX(Ranks!$1:$1048576,$A298,X$1))","v":""},{"$f":"IF($A298=\"N/A\",Ref!$B$36,INDEX(Ranks!$1:$1048576,$A298,Y$1))","v":""},{"$f":"IF($A298=\"N/A\",Ref!$B$36,INDEX(Ranks!$1:$1048576,$A298,Z$1))","v":""},{"$f":"IF($A298=\"N/A\",Ref!$B$36,INDEX(Ranks!$1:$1048576,$A298,AA$1))","v":""},{"$f":"IF($A298=\"N/A\",Ref!$B$36,INDEX(Ranks!$1:$1048576,$A298,AB$1))","v":""},{"$f":"IF($A298=\"N/A\",Ref!$B$36,INDEX(Ranks!$1:$1048576,$A298,AC$1))","v":""},{"$f":"IF($A298=\"N/A\",Ref!$B$36,INDEX(Ranks!$1:$1048576,$A298,AD$1))","v":""},{"$f":"IF($A298=\"N/A\",Ref!$B$36,INDEX(Ranks!$1:$1048576,$A298,AE$1))","v":""},{"$f":"IF($A298=\"N/A\",Ref!$B$36,INDEX(Ranks!$1:$1048576,$A298,AF$1))","v":""},{"$f":"IF($A298=\"N/A\",Ref!$B$36,INDEX(Ranks!$1:$1048576,$A298,AG$1))","v":""},{"$f":"IF($A298=\"N/A\",Ref!$B$36,INDEX(Ranks!$1:$1048576,$A298,AH$1))","v":""},{"$f":"IF($A298=\"N/A\",Ref!$B$36,INDEX(Ranks!$1:$1048576,$A298,AI$1))","v":""},{"$f":"IF($A298=\"N/A\",Ref!$B$36,INDEX(Ranks!$1:$1048576,$A298,AJ$1))","v":""},{"$f":"IF($A298=\"N/A\",Ref!$B$36,INDEX(Ranks!$1:$1048576,$A298,AK$1))","v":""},{"$f":"IF($A298=\"N/A\",Ref!$B$36,INDEX(Ranks!$1:$1048576,$A298,AL$1))","v":""},{"$f":"IF($A298=\"N/A\",Ref!$B$36,INDEX(Ranks!$1:$1048576,$A298,AM$1))","v":""},{"$f":"IF($A298=\"N/A\",Ref!$B$36,INDEX(Ranks!$1:$1048576,$A298,AN$1))","v":""},{"$f":"IF($A298=\"N/A\",Ref!$B$36,INDEX(Ranks!$1:$1048576,$A298,AO$1))","v":""},{"$f":"IF($A298=\"N/A\",Ref!$B$36,INDEX(Ranks!$1:$1048576,$A298,AP$1))","v":""},{"$f":"IF($A298=\"N/A\",Ref!$B$36,INDEX(Ranks!$1:$1048576,$A298,AQ$1))","v":""},{"$f":"IF($A298=\"N/A\",Ref!$B$36,INDEX(Ranks!$1:$1048576,$A298,AR$1))","v":""},{"$f":"IF($A298=\"N/A\",Ref!$B$36,INDEX(Ranks!$1:$1048576,$A298,AS$1))","v":""},{"$f":"IF($A298=\"N/A\",Ref!$B$36,INDEX(Ranks!$1:$1048576,$A298,AT$1))","v":""},{"$f":"IF($A298=\"N/A\",Ref!$B$36,INDEX(Ranks!$1:$1048576,$A298,AU$1))","v":""},{"$f":"IF($A298=\"N/A\",Ref!$B$36,INDEX(Ranks!$1:$1048576,$A298,AV$1))","v":""},{"$f":"IF($A298=\"N/A\",Ref!$B$36,INDEX(Ranks!$1:$1048576,$A298,AW$1))","v":""},{"$f":"IF($A298=\"N/A\",Ref!$B$36,INDEX(Ranks!$1:$1048576,$A298,AX$1))","v":""},{"$f":"IF($A298=\"N/A\",Ref!$B$36,INDEX(Ranks!$1:$1048576,$A298,AY$1))","v":""},{"$f":"IF($A298=\"N/A\",Ref!$B$36,INDEX(Ranks!$1:$1048576,$A298,AZ$1))","v":""},{"$f":"IF($A298=\"N/A\",Ref!$B$36,INDEX(Ranks!$1:$1048576,$A298,BA$1))","v":""},{"$f":"IF($A298=\"N/A\",Ref!$B$36,INDEX(Ranks!$1:$1048576,$A298,BB$1))","v":""},{"$f":"IF($A298=\"N/A\",Ref!$B$36,INDEX(Ranks!$1:$1048576,$A298,BC$1))","v":""},{"$f":"IF($A298=\"N/A\",Ref!$B$36,INDEX(Ranks!$1:$1048576,$A298,BD$1))","v":""},{"$f":"IF($A298=\"N/A\",Ref!$B$36,INDEX(Ranks!$1:$1048576,$A298,BE$1))","v":""},{"$f":"IF($A298=\"N/A\",Ref!$B$36,INDEX(Ranks!$1:$1048576,$A298,BF$1))","v":""},{"$f":"IF($A298=\"N/A\",Ref!$B$36,INDEX(Ranks!$1:$1048576,$A298,BG$1))","v":""},{"$f":"IF($A298=\"N/A\",Ref!$B$36,INDEX(Ranks!$1:$1048576,$A298,BH$1))","v":""},{"$f":"IF($A298=\"N/A\",Ref!$B$36,INDEX(Ranks!$1:$1048576,$A298,BI$1))","v":""},{"$f":"IF($A298=\"N/A\",Ref!$B$36,INDEX(Ranks!$1:$1048576,$A298,BJ$1))","v":""},{"$f":"IF($A298=\"N/A\",Ref!$B$36,INDEX(Ranks!$1:$1048576,$A298,BK$1))","v":""},{"$f":"IF($A298=\"N/A\",Ref!$B$36,INDEX(Ranks!$1:$1048576,$A298,BL$1))","v":""},{"$f":"IF($A298=\"N/A\",Ref!$B$36,INDEX(Ranks!$1:$1048576,$A298,BM$1))","v":""},{"$f":"IF($A298=\"N/A\",Ref!$B$36,INDEX(Ranks!$1:$1048576,$A298,BN$1))","v":""},{"$f":"IF($A298=\"N/A\",Ref!$B$36,INDEX(Ranks!$1:$1048576,$A298,BO$1))","v":""},{"$f":"IF($A298=\"N/A\",Ref!$B$36,INDEX(Ranks!$1:$1048576,$A298,BP$1))","v":""},{"$f":"IF($A298=\"N/A\",Ref!$B$36,INDEX(Ranks!$1:$1048576,$A298,BQ$1))","v":""},{"$f":"IF($A298=\"N/A\",Ref!$B$36,INDEX(Ranks!$1:$1048576,$A298,BR$1))","v":""},{"$f":"IF($A298=\"N/A\",Ref!$B$36,INDEX(Ranks!$1:$1048576,$A298,BS$1))","v":""},{"$f":"IF($A298=\"N/A\",Ref!$B$36,INDEX(Ranks!$1:$1048576,$A298,BT$1))","v":""},{"$f":"IF($A298=\"N/A\",Ref!$B$36,INDEX(Ranks!$1:$1048576,$A298,BU$1))","v":""},{"$f":"IF($A298=\"N/A\",Ref!$B$36,INDEX(Ranks!$1:$1048576,$A298,BV$1))","v":""},{"$f":"IF($A298=\"N/A\",Ref!$B$36,INDEX(Ranks!$1:$1048576,$A298,BW$1))","v":""},{"$f":"IF($A298=\"N/A\",Ref!$B$36,INDEX(Ranks!$1:$1048576,$A298,BX$1))","v":""},{"$f":"IF($A298=\"N/A\",Ref!$B$36,INDEX(Ranks!$1:$1048576,$A298,BY$1))","v":""},{"$f":"IF($A298=\"N/A\",Ref!$B$36,INDEX(Ranks!$1:$1048576,$A298,BZ$1))","v":""},{"$f":"IF($A298=\"N/A\",Ref!$B$36,INDEX(Ranks!$1:$1048576,$A298,CA$1))","v":""},{"$f":"IF($A298=\"N/A\",Ref!$B$36,INDEX(Ranks!$1:$1048576,$A298,CB$1))","v":""},{"$f":"IF($A298=\"N/A\",Ref!$B$36,INDEX(Ranks!$1:$1048576,$A298,CC$1))","v":""},{"$f":"IF($A298=\"N/A\",Ref!$B$36,INDEX(Ranks!$1:$1048576,$A298,CD$1))","v":""},{"$f":"IF($A298=\"N/A\",Ref!$B$36,INDEX(Ranks!$1:$1048576,$A298,CE$1))","v":""},{"$f":"IF($A298=\"N/A\",Ref!$B$36,INDEX(Ranks!$1:$1048576,$A298,CF$1))","v":""},{"$f":"IF($A298=\"N/A\",Ref!$B$36,INDEX(Ranks!$1:$1048576,$A298,CG$1))","v":""},{"$f":"IF($A298=\"N/A\",Ref!$B$36,INDEX(Ranks!$1:$1048576,$A298,CH$1))","v":""},{"$f":"IF($A298=\"N/A\",Ref!$B$36,INDEX(Ranks!$1:$1048576,$A298,CI$1))","v":""},{"$f":"IF($A298=\"N/A\",Ref!$B$36,INDEX(Ranks!$1:$1048576,$A298,CJ$1))","v":""},{"$f":"IF($A298=\"N/A\",Ref!$B$36,INDEX(Ranks!$1:$1048576,$A298,CK$1))","v":""},{"$f":"IF($A298=\"N/A\",Ref!$B$36,INDEX(Ranks!$1:$1048576,$A298,CL$1))","v":""},{"$f":"IF($A298=\"N/A\",Ref!$B$36,INDEX(Ranks!$1:$1048576,$A298,CM$1))","v":""},{"$f":"IF($A298=\"N/A\",Ref!$B$36,INDEX(Ranks!$1:$1048576,$A298,CN$1))","v":""},{"$f":"IF($A298=\"N/A\",Ref!$B$36,INDEX(Ranks!$1:$1048576,$A298,CO$1))","v":""},{"$f":"IF($A298=\"N/A\",Ref!$B$36,INDEX(Ranks!$1:$1048576,$A298,CP$1))","v":""},{"$f":"IF($A298=\"N/A\",Ref!$B$36,INDEX(Ranks!$1:$1048576,$A298,CQ$1))","v":""},{"$f":"IF($A298=\"N/A\",Ref!$B$36,INDEX(Ranks!$1:$1048576,$A298,CR$1))","v":""},{"$f":"IF($A298=\"N/A\",Ref!$B$36,INDEX(Ranks!$1:$1048576,$A298,CS$1))","v":""},{"$f":"IF($A298=\"N/A\",Ref!$B$36,INDEX(Ranks!$1:$1048576,$A298,CT$1))","v":""},{"$f":"IF($A298=\"N/A\",Ref!$B$36,INDEX(Ranks!$1:$1048576,$A298,CU$1))","v":""},{"$f":"IF($A298=\"N/A\",Ref!$B$36,INDEX(Ranks!$1:$1048576,$A298,CV$1))","v":""},{"$f":"IF($A298=\"N/A\",Ref!$B$36,INDEX(Ranks!$1:$1048576,$A298,CW$1))","v":""},{"$f":"IF($A298=\"N/A\",Ref!$B$36,INDEX(Ranks!$1:$1048576,$A298,CX$1))","v":""},{"$f":"IF($A298=\"N/A\",Ref!$B$36,INDEX(Ranks!$1:$1048576,$A298,CY$1))","v":""},{"$f":"IF($A298=\"N/A\",Ref!$B$36,INDEX(Ranks!$1:$1048576,$A298,CZ$1))","v":""},{"$f":"IF($A298=\"N/A\",Ref!$B$36,INDEX(Ranks!$1:$1048576,$A298,DA$1))","v":""},{"$f":"IF($A298=\"N/A\",Ref!$B$36,INDEX(Ranks!$1:$1048576,$A298,DB$1))","v":""},{"$f":"IF($A298=\"N/A\",Ref!$B$36,INDEX(Ranks!$1:$1048576,$A298,DC$1))","v":""},{"$f":"IF($A298=\"N/A\",Ref!$B$36,INDEX(Ranks!$1:$1048576,$A298,DD$1))","v":""},{"$f":"IF($A298=\"N/A\",Ref!$B$36,INDEX(Ranks!$1:$1048576,$A298,DE$1))","v":""},{"$f":"IF($A298=\"N/A\",Ref!$B$36,INDEX(Ranks!$1:$1048576,$A298,DF$1))","v":""},{"$f":"IF($A298=\"N/A\",Ref!$B$36,INDEX(Ranks!$1:$1048576,$A298,DG$1))","v":""},{"$f":"IF($A298=\"N/A\",Ref!$B$36,INDEX(Ranks!$1:$1048576,$A298,DH$1))","v":""},{"$f":"IF($A298=\"N/A\",Ref!$B$36,INDEX(Ranks!$1:$1048576,$A298,DI$1))","v":""},{"$f":"IF($A298=\"N/A\",Ref!$B$36,INDEX(Ranks!$1:$1048576,$A298,DJ$1))","v":""},{"$f":"IF($A298=\"N/A\",Ref!$B$36,INDEX(Ranks!$1:$1048576,$A298,DK$1))","v":""},{"$f":"IF($A298=\"N/A\",Ref!$B$36,INDEX(Ranks!$1:$1048576,$A298,DL$1))","v":""},{"$f":"IF($A298=\"N/A\",Ref!$B$36,INDEX(Ranks!$1:$1048576,$A298,DM$1))","v":""},{"$f":"IF($A298=\"N/A\",Ref!$B$36,INDEX(Ranks!$1:$1048576,$A298,DN$1))","v":""},{"$f":"IF($A298=\"N/A\",Ref!$B$36,INDEX(Ranks!$1:$1048576,$A298,DO$1))","v":""},{"$f":"IF($A298=\"N/A\",Ref!$B$36,INDEX(Ranks!$1:$1048576,$A298,DP$1))","v":""},{"$f":"IF($A298=\"N/A\",Ref!$B$36,INDEX(Ranks!$1:$1048576,$A298,DQ$1))","v":""},{"$f":"IF($A298=\"N/A\",Ref!$B$36,INDEX(Ranks!$1:$1048576,$A298,DR$1))","v":""},{"$f":"IF($A298=\"N/A\",Ref!$B$36,INDEX(Ranks!$1:$1048576,$A298,DS$1))","v":""},{"$f":"IF($A298=\"N/A\",Ref!$B$36,INDEX(Ranks!$1:$1048576,$A298,DT$1))","v":""},{"$f":"IF($A298=\"N/A\",Ref!$B$36,INDEX(Ranks!$1:$1048576,$A298,DU$1))","v":""},{"$f":"IF($A298=\"N/A\",Ref!$B$36,INDEX(Ranks!$1:$1048576,$A298,DV$1))","v":""},{"$f":"IF($A298=\"N/A\",Ref!$B$36,INDEX(Ranks!$1:$1048576,$A298,DW$1))","v":""},{"$f":"IF($A298=\"N/A\",Ref!$B$36,INDEX(Ranks!$1:$1048576,$A298,DX$1))","v":""},{"$f":"IF($A298=\"N/A\",Ref!$B$36,INDEX(Ranks!$1:$1048576,$A298,DY$1))","v":""},{"$f":"IF($A298=\"N/A\",Ref!$B$36,INDEX(Ranks!$1:$1048576,$A298,DZ$1))","v":""},{"$f":"IF($A298=\"N/A\",Ref!$B$36,INDEX(Ranks!$1:$1048576,$A298,EA$1))","v":""},{"$f":"IF($A298=\"N/A\",Ref!$B$36,INDEX(Ranks!$1:$1048576,$A298,EB$1))","v":""}]
[{"$f":"IFERROR(MATCH('Portfolio Page'!L299,Ranks!L:L,0),\"N/A\")","v":"N/A"},null,{"$f":"IF($A299=\"N/A\",\"\",INDEX(Ranks!$1:$1048576,$A299,C$1))","v":""},{"$f":"IF($A299=\"N/A\",Ref!$B$36,INDEX(Ranks!$1:$1048576,$A299,D$1))","v":""},{"$f":"IF($A299=\"N/A\",Ref!$B$36,INDEX(Ranks!$1:$1048576,$A299,E$1))","v":""},{"$f":"IF($A299=\"N/A\",\"\",INDEX(Ranks!$1:$1048576,$A299,F$1))","v":""},{"$f":"IF($A299=\"N/A\",\"\",INDEX(Ranks!$1:$1048576,$A299,G$1))","v":""},{"$f":"IF($A299=\"N/A\",\"\",INDEX(Ranks!$1:$1048576,$A299,H$1))","v":""},{"$f":"IF($A299=\"N/A\",\"\",INDEX(Ranks!$1:$1048576,$A299,I$1))","v":""},{"$f":"IF($A299=\"N/A\",\"\",INDEX(Ranks!$1:$1048576,$A299,J$1))","v":""},{"$f":"IF($A299=\"N/A\",\"\",INDEX(Ranks!$1:$1048576,$A299,K$1))","v":""},null,{"$f":"IF($A299=\"N/A\",Ref!$B$36,INDEX(Ranks!$1:$1048576,$A299,M$1))","v":""},{"$f":"IF($A299=\"N/A\",Ref!$B$36,INDEX(Ranks!$1:$1048576,$A299,N$1))","v":""},{"$f":"IF($A299=\"N/A\",Ref!$B$36,INDEX(Ranks!$1:$1048576,$A299,O$1))","v":""},{"$f":"IF($A299=\"N/A\",Ref!$B$36,INDEX(Ranks!$1:$1048576,$A299,P$1))","v":""},{"$f":"IF($A299=\"N/A\",Ref!$B$36,INDEX(Ranks!$1:$1048576,$A299,Q$1))","v":""},{"$f":"IF($A299=\"N/A\",Ref!$B$36,INDEX(Ranks!$1:$1048576,$A299,R$1))","v":""},{"$f":"IF($A299=\"N/A\",Ref!$B$36,INDEX(Ranks!$1:$1048576,$A299,S$1))","v":""},{"$f":"IF($A299=\"N/A\",Ref!$B$36,INDEX(Ranks!$1:$1048576,$A299,T$1))","v":""},{"$f":"IF($A299=\"N/A\",Ref!$B$36,INDEX(Ranks!$1:$1048576,$A299,U$1))","v":""},{"$f":"IF($A299=\"N/A\",Ref!$B$36,INDEX(Ranks!$1:$1048576,$A299,V$1))","v":""},{"$f":"IF($A299=\"N/A\",Ref!$B$36,INDEX(Ranks!$1:$1048576,$A299,W$1))","v":""},{"$f":"IF($A299=\"N/A\",Ref!$B$36,INDEX(Ranks!$1:$1048576,$A299,X$1))","v":""},{"$f":"IF($A299=\"N/A\",Ref!$B$36,INDEX(Ranks!$1:$1048576,$A299,Y$1))","v":""},{"$f":"IF($A299=\"N/A\",Ref!$B$36,INDEX(Ranks!$1:$1048576,$A299,Z$1))","v":""},{"$f":"IF($A299=\"N/A\",Ref!$B$36,INDEX(Ranks!$1:$1048576,$A299,AA$1))","v":""},{"$f":"IF($A299=\"N/A\",Ref!$B$36,INDEX(Ranks!$1:$1048576,$A299,AB$1))","v":""},{"$f":"IF($A299=\"N/A\",Ref!$B$36,INDEX(Ranks!$1:$1048576,$A299,AC$1))","v":""},{"$f":"IF($A299=\"N/A\",Ref!$B$36,INDEX(Ranks!$1:$1048576,$A299,AD$1))","v":""},{"$f":"IF($A299=\"N/A\",Ref!$B$36,INDEX(Ranks!$1:$1048576,$A299,AE$1))","v":""},{"$f":"IF($A299=\"N/A\",Ref!$B$36,INDEX(Ranks!$1:$1048576,$A299,AF$1))","v":""},{"$f":"IF($A299=\"N/A\",Ref!$B$36,INDEX(Ranks!$1:$1048576,$A299,AG$1))","v":""},{"$f":"IF($A299=\"N/A\",Ref!$B$36,INDEX(Ranks!$1:$1048576,$A299,AH$1))","v":""},{"$f":"IF($A299=\"N/A\",Ref!$B$36,INDEX(Ranks!$1:$1048576,$A299,AI$1))","v":""},{"$f":"IF($A299=\"N/A\",Ref!$B$36,INDEX(Ranks!$1:$1048576,$A299,AJ$1))","v":""},{"$f":"IF($A299=\"N/A\",Ref!$B$36,INDEX(Ranks!$1:$1048576,$A299,AK$1))","v":""},{"$f":"IF($A299=\"N/A\",Ref!$B$36,INDEX(Ranks!$1:$1048576,$A299,AL$1))","v":""},{"$f":"IF($A299=\"N/A\",Ref!$B$36,INDEX(Ranks!$1:$1048576,$A299,AM$1))","v":""},{"$f":"IF($A299=\"N/A\",Ref!$B$36,INDEX(Ranks!$1:$1048576,$A299,AN$1))","v":""},{"$f":"IF($A299=\"N/A\",Ref!$B$36,INDEX(Ranks!$1:$1048576,$A299,AO$1))","v":""},{"$f":"IF($A299=\"N/A\",Ref!$B$36,INDEX(Ranks!$1:$1048576,$A299,AP$1))","v":""},{"$f":"IF($A299=\"N/A\",Ref!$B$36,INDEX(Ranks!$1:$1048576,$A299,AQ$1))","v":""},{"$f":"IF($A299=\"N/A\",Ref!$B$36,INDEX(Ranks!$1:$1048576,$A299,AR$1))","v":""},{"$f":"IF($A299=\"N/A\",Ref!$B$36,INDEX(Ranks!$1:$1048576,$A299,AS$1))","v":""},{"$f":"IF($A299=\"N/A\",Ref!$B$36,INDEX(Ranks!$1:$1048576,$A299,AT$1))","v":""},{"$f":"IF($A299=\"N/A\",Ref!$B$36,INDEX(Ranks!$1:$1048576,$A299,AU$1))","v":""},{"$f":"IF($A299=\"N/A\",Ref!$B$36,INDEX(Ranks!$1:$1048576,$A299,AV$1))","v":""},{"$f":"IF($A299=\"N/A\",Ref!$B$36,INDEX(Ranks!$1:$1048576,$A299,AW$1))","v":""},{"$f":"IF($A299=\"N/A\",Ref!$B$36,INDEX(Ranks!$1:$1048576,$A299,AX$1))","v":""},{"$f":"IF($A299=\"N/A\",Ref!$B$36,INDEX(Ranks!$1:$1048576,$A299,AY$1))","v":""},{"$f":"IF($A299=\"N/A\",Ref!$B$36,INDEX(Ranks!$1:$1048576,$A299,AZ$1))","v":""},{"$f":"IF($A299=\"N/A\",Ref!$B$36,INDEX(Ranks!$1:$1048576,$A299,BA$1))","v":""},{"$f":"IF($A299=\"N/A\",Ref!$B$36,INDEX(Ranks!$1:$1048576,$A299,BB$1))","v":""},{"$f":"IF($A299=\"N/A\",Ref!$B$36,INDEX(Ranks!$1:$1048576,$A299,BC$1))","v":""},{"$f":"IF($A299=\"N/A\",Ref!$B$36,INDEX(Ranks!$1:$1048576,$A299,BD$1))","v":""},{"$f":"IF($A299=\"N/A\",Ref!$B$36,INDEX(Ranks!$1:$1048576,$A299,BE$1))","v":""},{"$f":"IF($A299=\"N/A\",Ref!$B$36,INDEX(Ranks!$1:$1048576,$A299,BF$1))","v":""},{"$f":"IF($A299=\"N/A\",Ref!$B$36,INDEX(Ranks!$1:$1048576,$A299,BG$1))","v":""},{"$f":"IF($A299=\"N/A\",Ref!$B$36,INDEX(Ranks!$1:$1048576,$A299,BH$1))","v":""},{"$f":"IF($A299=\"N/A\",Ref!$B$36,INDEX(Ranks!$1:$1048576,$A299,BI$1))","v":""},{"$f":"IF($A299=\"N/A\",Ref!$B$36,INDEX(Ranks!$1:$1048576,$A299,BJ$1))","v":""},{"$f":"IF($A299=\"N/A\",Ref!$B$36,INDEX(Ranks!$1:$1048576,$A299,BK$1))","v":""},{"$f":"IF($A299=\"N/A\",Ref!$B$36,INDEX(Ranks!$1:$1048576,$A299,BL$1))","v":""},{"$f":"IF($A299=\"N/A\",Ref!$B$36,INDEX(Ranks!$1:$1048576,$A299,BM$1))","v":""},{"$f":"IF($A299=\"N/A\",Ref!$B$36,INDEX(Ranks!$1:$1048576,$A299,BN$1))","v":""},{"$f":"IF($A299=\"N/A\",Ref!$B$36,INDEX(Ranks!$1:$1048576,$A299,BO$1))","v":""},{"$f":"IF($A299=\"N/A\",Ref!$B$36,INDEX(Ranks!$1:$1048576,$A299,BP$1))","v":""},{"$f":"IF($A299=\"N/A\",Ref!$B$36,INDEX(Ranks!$1:$1048576,$A299,BQ$1))","v":""},{"$f":"IF($A299=\"N/A\",Ref!$B$36,INDEX(Ranks!$1:$1048576,$A299,BR$1))","v":""},{"$f":"IF($A299=\"N/A\",Ref!$B$36,INDEX(Ranks!$1:$1048576,$A299,BS$1))","v":""},{"$f":"IF($A299=\"N/A\",Ref!$B$36,INDEX(Ranks!$1:$1048576,$A299,BT$1))","v":""},{"$f":"IF($A299=\"N/A\",Ref!$B$36,INDEX(Ranks!$1:$1048576,$A299,BU$1))","v":""},{"$f":"IF($A299=\"N/A\",Ref!$B$36,INDEX(Ranks!$1:$1048576,$A299,BV$1))","v":""},{"$f":"IF($A299=\"N/A\",Ref!$B$36,INDEX(Ranks!$1:$1048576,$A299,BW$1))","v":""},{"$f":"IF($A299=\"N/A\",Ref!$B$36,INDEX(Ranks!$1:$1048576,$A299,BX$1))","v":""},{"$f":"IF($A299=\"N/A\",Ref!$B$36,INDEX(Ranks!$1:$1048576,$A299,BY$1))","v":""},{"$f":"IF($A299=\"N/A\",Ref!$B$36,INDEX(Ranks!$1:$1048576,$A299,BZ$1))","v":""},{"$f":"IF($A299=\"N/A\",Ref!$B$36,INDEX(Ranks!$1:$1048576,$A299,CA$1))","v":""},{"$f":"IF($A299=\"N/A\",Ref!$B$36,INDEX(Ranks!$1:$1048576,$A299,CB$1))","v":""},{"$f":"IF($A299=\"N/A\",Ref!$B$36,INDEX(Ranks!$1:$1048576,$A299,CC$1))","v":""},{"$f":"IF($A299=\"N/A\",Ref!$B$36,INDEX(Ranks!$1:$1048576,$A299,CD$1))","v":""},{"$f":"IF($A299=\"N/A\",Ref!$B$36,INDEX(Ranks!$1:$1048576,$A299,CE$1))","v":""},{"$f":"IF($A299=\"N/A\",Ref!$B$36,INDEX(Ranks!$1:$1048576,$A299,CF$1))","v":""},{"$f":"IF($A299=\"N/A\",Ref!$B$36,INDEX(Ranks!$1:$1048576,$A299,CG$1))","v":""},{"$f":"IF($A299=\"N/A\",Ref!$B$36,INDEX(Ranks!$1:$1048576,$A299,CH$1))","v":""},{"$f":"IF($A299=\"N/A\",Ref!$B$36,INDEX(Ranks!$1:$1048576,$A299,CI$1))","v":""},{"$f":"IF($A299=\"N/A\",Ref!$B$36,INDEX(Ranks!$1:$1048576,$A299,CJ$1))","v":""},{"$f":"IF($A299=\"N/A\",Ref!$B$36,INDEX(Ranks!$1:$1048576,$A299,CK$1))","v":""},{"$f":"IF($A299=\"N/A\",Ref!$B$36,INDEX(Ranks!$1:$1048576,$A299,CL$1))","v":""},{"$f":"IF($A299=\"N/A\",Ref!$B$36,INDEX(Ranks!$1:$1048576,$A299,CM$1))","v":""},{"$f":"IF($A299=\"N/A\",Ref!$B$36,INDEX(Ranks!$1:$1048576,$A299,CN$1))","v":""},{"$f":"IF($A299=\"N/A\",Ref!$B$36,INDEX(Ranks!$1:$1048576,$A299,CO$1))","v":""},{"$f":"IF($A299=\"N/A\",Ref!$B$36,INDEX(Ranks!$1:$1048576,$A299,CP$1))","v":""},{"$f":"IF($A299=\"N/A\",Ref!$B$36,INDEX(Ranks!$1:$1048576,$A299,CQ$1))","v":""},{"$f":"IF($A299=\"N/A\",Ref!$B$36,INDEX(Ranks!$1:$1048576,$A299,CR$1))","v":""},{"$f":"IF($A299=\"N/A\",Ref!$B$36,INDEX(Ranks!$1:$1048576,$A299,CS$1))","v":""},{"$f":"IF($A299=\"N/A\",Ref!$B$36,INDEX(Ranks!$1:$1048576,$A299,CT$1))","v":""},{"$f":"IF($A299=\"N/A\",Ref!$B$36,INDEX(Ranks!$1:$1048576,$A299,CU$1))","v":""},{"$f":"IF($A299=\"N/A\",Ref!$B$36,INDEX(Ranks!$1:$1048576,$A299,CV$1))","v":""},{"$f":"IF($A299=\"N/A\",Ref!$B$36,INDEX(Ranks!$1:$1048576,$A299,CW$1))","v":""},{"$f":"IF($A299=\"N/A\",Ref!$B$36,INDEX(Ranks!$1:$1048576,$A299,CX$1))","v":""},{"$f":"IF($A299=\"N/A\",Ref!$B$36,INDEX(Ranks!$1:$1048576,$A299,CY$1))","v":""},{"$f":"IF($A299=\"N/A\",Ref!$B$36,INDEX(Ranks!$1:$1048576,$A299,CZ$1))","v":""},{"$f":"IF($A299=\"N/A\",Ref!$B$36,INDEX(Ranks!$1:$1048576,$A299,DA$1))","v":""},{"$f":"IF($A299=\"N/A\",Ref!$B$36,INDEX(Ranks!$1:$1048576,$A299,DB$1))","v":""},{"$f":"IF($A299=\"N/A\",Ref!$B$36,INDEX(Ranks!$1:$1048576,$A299,DC$1))","v":""},{"$f":"IF($A299=\"N/A\",Ref!$B$36,INDEX(Ranks!$1:$1048576,$A299,DD$1))","v":""},{"$f":"IF($A299=\"N/A\",Ref!$B$36,INDEX(Ranks!$1:$1048576,$A299,DE$1))","v":""},{"$f":"IF($A299=\"N/A\",Ref!$B$36,INDEX(Ranks!$1:$1048576,$A299,DF$1))","v":""},{"$f":"IF($A299=\"N/A\",Ref!$B$36,INDEX(Ranks!$1:$1048576,$A299,DG$1))","v":""},{"$f":"IF($A299=\"N/A\",Ref!$B$36,INDEX(Ranks!$1:$1048576,$A299,DH$1))","v":""},{"$f":"IF($A299=\"N/A\",Ref!$B$36,INDEX(Ranks!$1:$1048576,$A299,DI$1))","v":""},{"$f":"IF($A299=\"N/A\",Ref!$B$36,INDEX(Ranks!$1:$1048576,$A299,DJ$1))","v":""},{"$f":"IF($A299=\"N/A\",Ref!$B$36,INDEX(Ranks!$1:$1048576,$A299,DK$1))","v":""},{"$f":"IF($A299=\"N/A\",Ref!$B$36,INDEX(Ranks!$1:$1048576,$A299,DL$1))","v":""},{"$f":"IF($A299=\"N/A\",Ref!$B$36,INDEX(Ranks!$1:$1048576,$A299,DM$1))","v":""},{"$f":"IF($A299=\"N/A\",Ref!$B$36,INDEX(Ranks!$1:$1048576,$A299,DN$1))","v":""},{"$f":"IF($A299=\"N/A\",Ref!$B$36,INDEX(Ranks!$1:$1048576,$A299,DO$1))","v":""},{"$f":"IF($A299=\"N/A\",Ref!$B$36,INDEX(Ranks!$1:$1048576,$A299,DP$1))","v":""},{"$f":"IF($A299=\"N/A\",Ref!$B$36,INDEX(Ranks!$1:$1048576,$A299,DQ$1))","v":""},{"$f":"IF($A299=\"N/A\",Ref!$B$36,INDEX(Ranks!$1:$1048576,$A299,DR$1))","v":""},{"$f":"IF($A299=\"N/A\",Ref!$B$36,INDEX(Ranks!$1:$1048576,$A299,DS$1))","v":""},{"$f":"IF($A299=\"N/A\",Ref!$B$36,INDEX(Ranks!$1:$1048576,$A299,DT$1))","v":""},{"$f":"IF($A299=\"N/A\",Ref!$B$36,INDEX(Ranks!$1:$1048576,$A299,DU$1))","v":""},{"$f":"IF($A299=\"N/A\",Ref!$B$36,INDEX(Ranks!$1:$1048576,$A299,DV$1))","v":""},{"$f":"IF($A299=\"N/A\",Ref!$B$36,INDEX(Ranks!$1:$1048576,$A299,DW$1))","v":""},{"$f":"IF($A299=\"N/A\",Ref!$B$36,INDEX(Ranks!$1:$1048576,$A299,DX$1))","v":""},{"$f":"IF($A299=\"N/A\",Ref!$B$36,INDEX(Ranks!$1:$1048576,$A299,DY$1))","v":""},{"$f":"IF($A299=\"N/A\",Ref!$B$36,INDEX(Ranks!$1:$1048576,$A299,DZ$1))","v":""},{"$f":"IF($A299=\"N/A\",Ref!$B$36,INDEX(Ranks!$1:$1048576,$A299,EA$1))","v":""},{"$f":"IF($A299=\"N/A\",Ref!$B$36,INDEX(Ranks!$1:$1048576,$A299,EB$1))","v":""}]
[{"$f":"IFERROR(MATCH('Portfolio Page'!L300,Ranks!L:L,0),\"N/A\")","v":"N/A"},null,{"$f":"IF($A300=\"N/A\",\"\",INDEX(Ranks!$1:$1048576,$A300,C$1))","v":""},{"$f":"IF($A300=\"N/A\",Ref!$B$36,INDEX(Ranks!$1:$1048576,$A300,D$1))","v":""},{"$f":"IF($A300=\"N/A\",Ref!$B$36,INDEX(Ranks!$1:$1048576,$A300,E$1))","v":""},{"$f":"IF($A300=\"N/A\",\"\",INDEX(Ranks!$1:$1048576,$A300,F$1))","v":""},{"$f":"IF($A300=\"N/A\",\"\",INDEX(Ranks!$1:$1048576,$A300,G$1))","v":""},{"$f":"IF($A300=\"N/A\",\"\",INDEX(Ranks!$1:$1048576,$A300,H$1))","v":""},{"$f":"IF($A300=\"N/A\",\"\",INDEX(Ranks!$1:$1048576,$A300,I$1))","v":""},{"$f":"IF($A300=\"N/A\",\"\",INDEX(Ranks!$1:$1048576,$A300,J$1))","v":""},{"$f":"IF($A300=\"N/A\",\"\",INDEX(Ranks!$1:$1048576,$A300,K$1))","v":""},null,{"$f":"IF($A300=\"N/A\",Ref!$B$36,INDEX(Ranks!$1:$1048576,$A300,M$1))","v":""},{"$f":"IF($A300=\"N/A\",Ref!$B$36,INDEX(Ranks!$1:$1048576,$A300,N$1))","v":""},{"$f":"IF($A300=\"N/A\",Ref!$B$36,INDEX(Ranks!$1:$1048576,$A300,O$1))","v":""},{"$f":"IF($A300=\"N/A\",Ref!$B$36,INDEX(Ranks!$1:$1048576,$A300,P$1))","v":""},{"$f":"IF($A300=\"N/A\",Ref!$B$36,INDEX(Ranks!$1:$1048576,$A300,Q$1))","v":""},{"$f":"IF($A300=\"N/A\",Ref!$B$36,INDEX(Ranks!$1:$1048576,$A300,R$1))","v":""},{"$f":"IF($A300=\"N/A\",Ref!$B$36,INDEX(Ranks!$1:$1048576,$A300,S$1))","v":""},{"$f":"IF($A300=\"N/A\",Ref!$B$36,INDEX(Ranks!$1:$1048576,$A300,T$1))","v":""},{"$f":"IF($A300=\"N/A\",Ref!$B$36,INDEX(Ranks!$1:$1048576,$A300,U$1))","v":""},{"$f":"IF($A300=\"N/A\",Ref!$B$36,INDEX(Ranks!$1:$1048576,$A300,V$1))","v":""},{"$f":"IF($A300=\"N/A\",Ref!$B$36,INDEX(Ranks!$1:$1048576,$A300,W$1))","v":""},{"$f":"IF($A300=\"N/A\",Ref!$B$36,INDEX(Ranks!$1:$1048576,$A300,X$1))","v":""},{"$f":"IF($A300=\"N/A\",Ref!$B$36,INDEX(Ranks!$1:$1048576,$A300,Y$1))","v":""},{"$f":"IF($A300=\"N/A\",Ref!$B$36,INDEX(Ranks!$1:$1048576,$A300,Z$1))","v":""},{"$f":"IF($A300=\"N/A\",Ref!$B$36,INDEX(Ranks!$1:$1048576,$A300,AA$1))","v":""},{"$f":"IF($A300=\"N/A\",Ref!$B$36,INDEX(Ranks!$1:$1048576,$A300,AB$1))","v":""},{"$f":"IF($A300=\"N/A\",Ref!$B$36,INDEX(Ranks!$1:$1048576,$A300,AC$1))","v":""},{"$f":"IF($A300=\"N/A\",Ref!$B$36,INDEX(Ranks!$1:$1048576,$A300,AD$1))","v":""},{"$f":"IF($A300=\"N/A\",Ref!$B$36,INDEX(Ranks!$1:$1048576,$A300,AE$1))","v":""},{"$f":"IF($A300=\"N/A\",Ref!$B$36,INDEX(Ranks!$1:$1048576,$A300,AF$1))","v":""},{"$f":"IF($A300=\"N/A\",Ref!$B$36,INDEX(Ranks!$1:$1048576,$A300,AG$1))","v":""},{"$f":"IF($A300=\"N/A\",Ref!$B$36,INDEX(Ranks!$1:$1048576,$A300,AH$1))","v":""},{"$f":"IF($A300=\"N/A\",Ref!$B$36,INDEX(Ranks!$1:$1048576,$A300,AI$1))","v":""},{"$f":"IF($A300=\"N/A\",Ref!$B$36,INDEX(Ranks!$1:$1048576,$A300,AJ$1))","v":""},{"$f":"IF($A300=\"N/A\",Ref!$B$36,INDEX(Ranks!$1:$1048576,$A300,AK$1))","v":""},{"$f":"IF($A300=\"N/A\",Ref!$B$36,INDEX(Ranks!$1:$1048576,$A300,AL$1))","v":""},{"$f":"IF($A300=\"N/A\",Ref!$B$36,INDEX(Ranks!$1:$1048576,$A300,AM$1))","v":""},{"$f":"IF($A300=\"N/A\",Ref!$B$36,INDEX(Ranks!$1:$1048576,$A300,AN$1))","v":""},{"$f":"IF($A300=\"N/A\",Ref!$B$36,INDEX(Ranks!$1:$1048576,$A300,AO$1))","v":""},{"$f":"IF($A300=\"N/A\",Ref!$B$36,INDEX(Ranks!$1:$1048576,$A300,AP$1))","v":""},{"$f":"IF($A300=\"N/A\",Ref!$B$36,INDEX(Ranks!$1:$1048576,$A300,AQ$1))","v":""},{"$f":"IF($A300=\"N/A\",Ref!$B$36,INDEX(Ranks!$1:$1048576,$A300,AR$1))","v":""},{"$f":"IF($A300=\"N/A\",Ref!$B$36,INDEX(Ranks!$1:$1048576,$A300,AS$1))","v":""},{"$f":"IF($A300=\"N/A\",Ref!$B$36,INDEX(Ranks!$1:$1048576,$A300,AT$1))","v":""},{"$f":"IF($A300=\"N/A\",Ref!$B$36,INDEX(Ranks!$1:$1048576,$A300,AU$1))","v":""},{"$f":"IF($A300=\"N/A\",Ref!$B$36,INDEX(Ranks!$1:$1048576,$A300,AV$1))","v":""},{"$f":"IF($A300=\"N/A\",Ref!$B$36,INDEX(Ranks!$1:$1048576,$A300,AW$1))","v":""},{"$f":"IF($A300=\"N/A\",Ref!$B$36,INDEX(Ranks!$1:$1048576,$A300,AX$1))","v":""},{"$f":"IF($A300=\"N/A\",Ref!$B$36,INDEX(Ranks!$1:$1048576,$A300,AY$1))","v":""},{"$f":"IF($A300=\"N/A\",Ref!$B$36,INDEX(Ranks!$1:$1048576,$A300,AZ$1))","v":""},{"$f":"IF($A300=\"N/A\",Ref!$B$36,INDEX(Ranks!$1:$1048576,$A300,BA$1))","v":""},{"$f":"IF($A300=\"N/A\",Ref!$B$36,INDEX(Ranks!$1:$1048576,$A300,BB$1))","v":""},{"$f":"IF($A300=\"N/A\",Ref!$B$36,INDEX(Ranks!$1:$1048576,$A300,BC$1))","v":""},{"$f":"IF($A300=\"N/A\",Ref!$B$36,INDEX(Ranks!$1:$1048576,$A300,BD$1))","v":""},{"$f":"IF($A300=\"N/A\",Ref!$B$36,INDEX(Ranks!$1:$1048576,$A300,BE$1))","v":""},{"$f":"IF($A300=\"N/A\",Ref!$B$36,INDEX(Ranks!$1:$1048576,$A300,BF$1))","v":""},{"$f":"IF($A300=\"N/A\",Ref!$B$36,INDEX(Ranks!$1:$1048576,$A300,BG$1))","v":""},{"$f":"IF($A300=\"N/A\",Ref!$B$36,INDEX(Ranks!$1:$1048576,$A300,BH$1))","v":""},{"$f":"IF($A300=\"N/A\",Ref!$B$36,INDEX(Ranks!$1:$1048576,$A300,BI$1))","v":""},{"$f":"IF($A300=\"N/A\",Ref!$B$36,INDEX(Ranks!$1:$1048576,$A300,BJ$1))","v":""},{"$f":"IF($A300=\"N/A\",Ref!$B$36,INDEX(Ranks!$1:$1048576,$A300,BK$1))","v":""},{"$f":"IF($A300=\"N/A\",Ref!$B$36,INDEX(Ranks!$1:$1048576,$A300,BL$1))","v":""},{"$f":"IF($A300=\"N/A\",Ref!$B$36,INDEX(Ranks!$1:$1048576,$A300,BM$1))","v":""},{"$f":"IF($A300=\"N/A\",Ref!$B$36,INDEX(Ranks!$1:$1048576,$A300,BN$1))","v":""},{"$f":"IF($A300=\"N/A\",Ref!$B$36,INDEX(Ranks!$1:$1048576,$A300,BO$1))","v":""},{"$f":"IF($A300=\"N/A\",Ref!$B$36,INDEX(Ranks!$1:$1048576,$A300,BP$1))","v":""},{"$f":"IF($A300=\"N/A\",Ref!$B$36,INDEX(Ranks!$1:$1048576,$A300,BQ$1))","v":""},{"$f":"IF($A300=\"N/A\",Ref!$B$36,INDEX(Ranks!$1:$1048576,$A300,BR$1))","v":""},{"$f":"IF($A300=\"N/A\",Ref!$B$36,INDEX(Ranks!$1:$1048576,$A300,BS$1))","v":""},{"$f":"IF($A300=\"N/A\",Ref!$B$36,INDEX(Ranks!$1:$1048576,$A300,BT$1))","v":""},{"$f":"IF($A300=\"N/A\",Ref!$B$36,INDEX(Ranks!$1:$1048576,$A300,BU$1))","v":""},{"$f":"IF($A300=\"N/A\",Ref!$B$36,INDEX(Ranks!$1:$1048576,$A300,BV$1))","v":""},{"$f":"IF($A300=\"N/A\",Ref!$B$36,INDEX(Ranks!$1:$1048576,$A300,BW$1))","v":""},{"$f":"IF($A300=\"N/A\",Ref!$B$36,INDEX(Ranks!$1:$1048576,$A300,BX$1))","v":""},{"$f":"IF($A300=\"N/A\",Ref!$B$36,INDEX(Ranks!$1:$1048576,$A300,BY$1))","v":""},{"$f":"IF($A300=\"N/A\",Ref!$B$36,INDEX(Ranks!$1:$1048576,$A300,BZ$1))","v":""},{"$f":"IF($A300=\"N/A\",Ref!$B$36,INDEX(Ranks!$1:$1048576,$A300,CA$1))","v":""},{"$f":"IF($A300=\"N/A\",Ref!$B$36,INDEX(Ranks!$1:$1048576,$A300,CB$1))","v":""},{"$f":"IF($A300=\"N/A\",Ref!$B$36,INDEX(Ranks!$1:$1048576,$A300,CC$1))","v":""},{"$f":"IF($A300=\"N/A\",Ref!$B$36,INDEX(Ranks!$1:$1048576,$A300,CD$1))","v":""},{"$f":"IF($A300=\"N/A\",Ref!$B$36,INDEX(Ranks!$1:$1048576,$A300,CE$1))","v":""},{"$f":"IF($A300=\"N/A\",Ref!$B$36,INDEX(Ranks!$1:$1048576,$A300,CF$1))","v":""},{"$f":"IF($A300=\"N/A\",Ref!$B$36,INDEX(Ranks!$1:$1048576,$A300,CG$1))","v":""},{"$f":"IF($A300=\"N/A\",Ref!$B$36,INDEX(Ranks!$1:$1048576,$A300,CH$1))","v":""},{"$f":"IF($A300=\"N/A\",Ref!$B$36,INDEX(Ranks!$1:$1048576,$A300,CI$1))","v":""},{"$f":"IF($A300=\"N/A\",Ref!$B$36,INDEX(Ranks!$1:$1048576,$A300,CJ$1))","v":""},{"$f":"IF($A300=\"N/A\",Ref!$B$36,INDEX(Ranks!$1:$1048576,$A300,CK$1))","v":""},{"$f":"IF($A300=\"N/A\",Ref!$B$36,INDEX(Ranks!$1:$1048576,$A300,CL$1))","v":""},{"$f":"IF($A300=\"N/A\",Ref!$B$36,INDEX(Ranks!$1:$1048576,$A300,CM$1))","v":""},{"$f":"IF($A300=\"N/A\",Ref!$B$36,INDEX(Ranks!$1:$1048576,$A300,CN$1))","v":""},{"$f":"IF($A300=\"N/A\",Ref!$B$36,INDEX(Ranks!$1:$1048576,$A300,CO$1))","v":""},{"$f":"IF($A300=\"N/A\",Ref!$B$36,INDEX(Ranks!$1:$1048576,$A300,CP$1))","v":""},{"$f":"IF($A300=\"N/A\",Ref!$B$36,INDEX(Ranks!$1:$1048576,$A300,CQ$1))","v":""},{"$f":"IF($A300=\"N/A\",Ref!$B$36,INDEX(Ranks!$1:$1048576,$A300,CR$1))","v":""},{"$f":"IF($A300=\"N/A\",Ref!$B$36,INDEX(Ranks!$1:$1048576,$A300,CS$1))","v":""},{"$f":"IF($A300=\"N/A\",Ref!$B$36,INDEX(Ranks!$1:$1048576,$A300,CT$1))","v":""},{"$f":"IF($A300=\"N/A\",Ref!$B$36,INDEX(Ranks!$1:$1048576,$A300,CU$1))","v":""},{"$f":"IF($A300=\"N/A\",Ref!$B$36,INDEX(Ranks!$1:$1048576,$A300,CV$1))","v":""},{"$f":"IF($A300=\"N/A\",Ref!$B$36,INDEX(Ranks!$1:$1048576,$A300,CW$1))","v":""},{"$f":"IF($A300=\"N/A\",Ref!$B$36,INDEX(Ranks!$1:$1048576,$A300,CX$1))","v":""},{"$f":"IF($A300=\"N/A\",Ref!$B$36,INDEX(Ranks!$1:$1048576,$A300,CY$1))","v":""},{"$f":"IF($A300=\"N/A\",Ref!$B$36,INDEX(Ranks!$1:$1048576,$A300,CZ$1))","v":""},{"$f":"IF($A300=\"N/A\",Ref!$B$36,INDEX(Ranks!$1:$1048576,$A300,DA$1))","v":""},{"$f":"IF($A300=\"N/A\",Ref!$B$36,INDEX(Ranks!$1:$1048576,$A300,DB$1))","v":""},{"$f":"IF($A300=\"N/A\",Ref!$B$36,INDEX(Ranks!$1:$1048576,$A300,DC$1))","v":""},{"$f":"IF($A300=\"N/A\",Ref!$B$36,INDEX(Ranks!$1:$1048576,$A300,DD$1))","v":""},{"$f":"IF($A300=\"N/A\",Ref!$B$36,INDEX(Ranks!$1:$1048576,$A300,DE$1))","v":""},{"$f":"IF($A300=\"N/A\",Ref!$B$36,INDEX(Ranks!$1:$1048576,$A300,DF$1))","v":""},{"$f":"IF($A300=\"N/A\",Ref!$B$36,INDEX(Ranks!$1:$1048576,$A300,DG$1))","v":""},{"$f":"IF($A300=\"N/A\",Ref!$B$36,INDEX(Ranks!$1:$1048576,$A300,DH$1))","v":""},{"$f":"IF($A300=\"N/A\",Ref!$B$36,INDEX(Ranks!$1:$1048576,$A300,DI$1))","v":""},{"$f":"IF($A300=\"N/A\",Ref!$B$36,INDEX(Ranks!$1:$1048576,$A300,DJ$1))","v":""},{"$f":"IF($A300=\"N/A\",Ref!$B$36,INDEX(Ranks!$1:$1048576,$A300,DK$1))","v":""},{"$f":"IF($A300=\"N/A\",Ref!$B$36,INDEX(Ranks!$1:$1048576,$A300,DL$1))","v":""},{"$f":"IF($A300=\"N/A\",Ref!$B$36,INDEX(Ranks!$1:$1048576,$A300,DM$1))","v":""},{"$f":"IF($A300=\"N/A\",Ref!$B$36,INDEX(Ranks!$1:$1048576,$A300,DN$1))","v":""},{"$f":"IF($A300=\"N/A\",Ref!$B$36,INDEX(Ranks!$1:$1048576,$A300,DO$1))","v":""},{"$f":"IF($A300=\"N/A\",Ref!$B$36,INDEX(Ranks!$1:$1048576,$A300,DP$1))","v":""},{"$f":"IF($A300=\"N/A\",Ref!$B$36,INDEX(Ranks!$1:$1048576,$A300,DQ$1))","v":""},{"$f":"IF($A300=\"N/A\",Ref!$B$36,INDEX(Ranks!$1:$1048576,$A300,DR$1))","v":""},{"$f":"IF($A300=\"N/A\",Ref!$B$36,INDEX(Ranks!$1:$1048576,$A300,DS$1))","v":""},{"$f":"IF($A300=\"N/A\",Ref!$B$36,INDEX(Ranks!$1:$1048576,$A300,DT$1))","v":""},{"$f":"IF($A300=\"N/A\",Ref!$B$36,INDEX(Ranks!$1:$1048576,$A300,DU$1))","v":""},{"$f":"IF($A300=\"N/A\",Ref!$B$36,INDEX(Ranks!$1:$1048576,$A300,DV$1))","v":""},{"$f":"IF($A300=\"N/A\",Ref!$B$36,INDEX(Ranks!$1:$1048576,$A300,DW$1))","v":""},{"$f":"IF($A300=\"N/A\",Ref!$B$36,INDEX(Ranks!$1:$1048576,$A300,DX$1))","v":""},{"$f":"IF($A300=\"N/A\",Ref!$B$36,INDEX(Ranks!$1:$1048576,$A300,DY$1))","v":""},{"$f":"IF($A300=\"N/A\",Ref!$B$36,INDEX(Ranks!$1:$1048576,$A300,DZ$1))","v":""},{"$f":"IF($A300=\"N/A\",Ref!$B$36,INDEX(Ranks!$1:$1048576,$A300,EA$1))","v":""},{"$f":"IF($A300=\"N/A\",Ref!$B$36,INDEX(Ranks!$1:$1048576,$A300,EB$1))","v":""}]
[{"$f":"IFERROR(MATCH('Portfolio Page'!L301,Ranks!L:L,0),\"N/A\")","v":"N/A"},null,{"$f":"IF($A301=\"N/A\",\"\",INDEX(Ranks!$1:$1048576,$A301,C$1))","v":""},{"$f":"IF($A301=\"N/A\",Ref!$B$36,INDEX(Ranks!$1:$1048576,$A301,D$1))","v":""},{"$f":"IF($A301=\"N/A\",Ref!$B$36,INDEX(Ranks!$1:$1048576,$A301,E$1))","v":""},{"$f":"IF($A301=\"N/A\",\"\",INDEX(Ranks!$1:$1048576,$A301,F$1))","v":""},{"$f":"IF($A301=\"N/A\",\"\",INDEX(Ranks!$1:$1048576,$A301,G$1))","v":""},{"$f":"IF($A301=\"N/A\",\"\",INDEX(Ranks!$1:$1048576,$A301,H$1))","v":""},{"$f":"IF($A301=\"N/A\",\"\",INDEX(Ranks!$1:$1048576,$A301,I$1))","v":""},{"$f":"IF($A301=\"N/A\",\"\",INDEX(Ranks!$1:$1048576,$A301,J$1))","v":""},{"$f":"IF($A301=\"N/A\",\"\",INDEX(Ranks!$1:$1048576,$A301,K$1))","v":""},null,{"$f":"IF($A301=\"N/A\",Ref!$B$36,INDEX(Ranks!$1:$1048576,$A301,M$1))","v":""},{"$f":"IF($A301=\"N/A\",Ref!$B$36,INDEX(Ranks!$1:$1048576,$A301,N$1))","v":""},{"$f":"IF($A301=\"N/A\",Ref!$B$36,INDEX(Ranks!$1:$1048576,$A301,O$1))","v":""},{"$f":"IF($A301=\"N/A\",Ref!$B$36,INDEX(Ranks!$1:$1048576,$A301,P$1))","v":""},{"$f":"IF($A301=\"N/A\",Ref!$B$36,INDEX(Ranks!$1:$1048576,$A301,Q$1))","v":""},{"$f":"IF($A301=\"N/A\",Ref!$B$36,INDEX(Ranks!$1:$1048576,$A301,R$1))","v":""},{"$f":"IF($A301=\"N/A\",Ref!$B$36,INDEX(Ranks!$1:$1048576,$A301,S$1))","v":""},{"$f":"IF($A301=\"N/A\",Ref!$B$36,INDEX(Ranks!$1:$1048576,$A301,T$1))","v":""},{"$f":"IF($A301=\"N/A\",Ref!$B$36,INDEX(Ranks!$1:$1048576,$A301,U$1))","v":""},{"$f":"IF($A301=\"N/A\",Ref!$B$36,INDEX(Ranks!$1:$1048576,$A301,V$1))","v":""},{"$f":"IF($A301=\"N/A\",Ref!$B$36,INDEX(Ranks!$1:$1048576,$A301,W$1))","v":""},{"$f":"IF($A301=\"N/A\",Ref!$B$36,INDEX(Ranks!$1:$1048576,$A301,X$1))","v":""},{"$f":"IF($A301=\"N/A\",Ref!$B$36,INDEX(Ranks!$1:$1048576,$A301,Y$1))","v":""},{"$f":"IF($A301=\"N/A\",Ref!$B$36,INDEX(Ranks!$1:$1048576,$A301,Z$1))","v":""},{"$f":"IF($A301=\"N/A\",Ref!$B$36,INDEX(Ranks!$1:$1048576,$A301,AA$1))","v":""},{"$f":"IF($A301=\"N/A\",Ref!$B$36,INDEX(Ranks!$1:$1048576,$A301,AB$1))","v":""},{"$f":"IF($A301=\"N/A\",Ref!$B$36,INDEX(Ranks!$1:$1048576,$A301,AC$1))","v":""},{"$f":"IF($A301=\"N/A\",Ref!$B$36,INDEX(Ranks!$1:$1048576,$A301,AD$1))","v":""},{"$f":"IF($A301=\"N/A\",Ref!$B$36,INDEX(Ranks!$1:$1048576,$A301,AE$1))","v":""},{"$f":"IF($A301=\"N/A\",Ref!$B$36,INDEX(Ranks!$1:$1048576,$A301,AF$1))","v":""},{"$f":"IF($A301=\"N/A\",Ref!$B$36,INDEX(Ranks!$1:$1048576,$A301,AG$1))","v":""},{"$f":"IF($A301=\"N/A\",Ref!$B$36,INDEX(Ranks!$1:$1048576,$A301,AH$1))","v":""},{"$f":"IF($A301=\"N/A\",Ref!$B$36,INDEX(Ranks!$1:$1048576,$A301,AI$1))","v":""},{"$f":"IF($A301=\"N/A\",Ref!$B$36,INDEX(Ranks!$1:$1048576,$A301,AJ$1))","v":""},{"$f":"IF($A301=\"N/A\",Ref!$B$36,INDEX(Ranks!$1:$1048576,$A301,AK$1))","v":""},{"$f":"IF($A301=\"N/A\",Ref!$B$36,INDEX(Ranks!$1:$1048576,$A301,AL$1))","v":""},{"$f":"IF($A301=\"N/A\",Ref!$B$36,INDEX(Ranks!$1:$1048576,$A301,AM$1))","v":""},{"$f":"IF($A301=\"N/A\",Ref!$B$36,INDEX(Ranks!$1:$1048576,$A301,AN$1))","v":""},{"$f":"IF($A301=\"N/A\",Ref!$B$36,INDEX(Ranks!$1:$1048576,$A301,AO$1))","v":""},{"$f":"IF($A301=\"N/A\",Ref!$B$36,INDEX(Ranks!$1:$1048576,$A301,AP$1))","v":""},{"$f":"IF($A301=\"N/A\",Ref!$B$36,INDEX(Ranks!$1:$1048576,$A301,AQ$1))","v":""},{"$f":"IF($A301=\"N/A\",Ref!$B$36,INDEX(Ranks!$1:$1048576,$A301,AR$1))","v":""},{"$f":"IF($A301=\"N/A\",Ref!$B$36,INDEX(Ranks!$1:$1048576,$A301,AS$1))","v":""},{"$f":"IF($A301=\"N/A\",Ref!$B$36,INDEX(Ranks!$1:$1048576,$A301,AT$1))","v":""},{"$f":"IF($A301=\"N/A\",Ref!$B$36,INDEX(Ranks!$1:$1048576,$A301,AU$1))","v":""},{"$f":"IF($A301=\"N/A\",Ref!$B$36,INDEX(Ranks!$1:$1048576,$A301,AV$1))","v":""},{"$f":"IF($A301=\"N/A\",Ref!$B$36,INDEX(Ranks!$1:$1048576,$A301,AW$1))","v":""},{"$f":"IF($A301=\"N/A\",Ref!$B$36,INDEX(Ranks!$1:$1048576,$A301,AX$1))","v":""},{"$f":"IF($A301=\"N/A\",Ref!$B$36,INDEX(Ranks!$1:$1048576,$A301,AY$1))","v":""},{"$f":"IF($A301=\"N/A\",Ref!$B$36,INDEX(Ranks!$1:$1048576,$A301,AZ$1))","v":""},{"$f":"IF($A301=\"N/A\",Ref!$B$36,INDEX(Ranks!$1:$1048576,$A301,BA$1))","v":""},{"$f":"IF($A301=\"N/A\",Ref!$B$36,INDEX(Ranks!$1:$1048576,$A301,BB$1))","v":""},{"$f":"IF($A301=\"N/A\",Ref!$B$36,INDEX(Ranks!$1:$1048576,$A301,BC$1))","v":""},{"$f":"IF($A301=\"N/A\",Ref!$B$36,INDEX(Ranks!$1:$1048576,$A301,BD$1))","v":""},{"$f":"IF($A301=\"N/A\",Ref!$B$36,INDEX(Ranks!$1:$1048576,$A301,BE$1))","v":""},{"$f":"IF($A301=\"N/A\",Ref!$B$36,INDEX(Ranks!$1:$1048576,$A301,BF$1))","v":""},{"$f":"IF($A301=\"N/A\",Ref!$B$36,INDEX(Ranks!$1:$1048576,$A301,BG$1))","v":""},{"$f":"IF($A301=\"N/A\",Ref!$B$36,INDEX(Ranks!$1:$1048576,$A301,BH$1))","v":""},{"$f":"IF($A301=\"N/A\",Ref!$B$36,INDEX(Ranks!$1:$1048576,$A301,BI$1))","v":""},{"$f":"IF($A301=\"N/A\",Ref!$B$36,INDEX(Ranks!$1:$1048576,$A301,BJ$1))","v":""},{"$f":"IF($A301=\"N/A\",Ref!$B$36,INDEX(Ranks!$1:$1048576,$A301,BK$1))","v":""},{"$f":"IF($A301=\"N/A\",Ref!$B$36,INDEX(Ranks!$1:$1048576,$A301,BL$1))","v":""},{"$f":"IF($A301=\"N/A\",Ref!$B$36,INDEX(Ranks!$1:$1048576,$A301,BM$1))","v":""},{"$f":"IF($A301=\"N/A\",Ref!$B$36,INDEX(Ranks!$1:$1048576,$A301,BN$1))","v":""},{"$f":"IF($A301=\"N/A\",Ref!$B$36,INDEX(Ranks!$1:$1048576,$A301,BO$1))","v":""},{"$f":"IF($A301=\"N/A\",Ref!$B$36,INDEX(Ranks!$1:$1048576,$A301,BP$1))","v":""},{"$f":"IF($A301=\"N/A\",Ref!$B$36,INDEX(Ranks!$1:$1048576,$A301,BQ$1))","v":""},{"$f":"IF($A301=\"N/A\",Ref!$B$36,INDEX(Ranks!$1:$1048576,$A301,BR$1))","v":""},{"$f":"IF($A301=\"N/A\",Ref!$B$36,INDEX(Ranks!$1:$1048576,$A301,BS$1))","v":""},{"$f":"IF($A301=\"N/A\",Ref!$B$36,INDEX(Ranks!$1:$1048576,$A301,BT$1))","v":""},{"$f":"IF($A301=\"N/A\",Ref!$B$36,INDEX(Ranks!$1:$1048576,$A301,BU$1))","v":""},{"$f":"IF($A301=\"N/A\",Ref!$B$36,INDEX(Ranks!$1:$1048576,$A301,BV$1))","v":""},{"$f":"IF($A301=\"N/A\",Ref!$B$36,INDEX(Ranks!$1:$1048576,$A301,BW$1))","v":""},{"$f":"IF($A301=\"N/A\",Ref!$B$36,INDEX(Ranks!$1:$1048576,$A301,BX$1))","v":""},{"$f":"IF($A301=\"N/A\",Ref!$B$36,INDEX(Ranks!$1:$1048576,$A301,BY$1))","v":""},{"$f":"IF($A301=\"N/A\",Ref!$B$36,INDEX(Ranks!$1:$1048576,$A301,BZ$1))","v":""},{"$f":"IF($A301=\"N/A\",Ref!$B$36,INDEX(Ranks!$1:$1048576,$A301,CA$1))","v":""},{"$f":"IF($A301=\"N/A\",Ref!$B$36,INDEX(Ranks!$1:$1048576,$A301,CB$1))","v":""},{"$f":"IF($A301=\"N/A\",Ref!$B$36,INDEX(Ranks!$1:$1048576,$A301,CC$1))","v":""},{"$f":"IF($A301=\"N/A\",Ref!$B$36,INDEX(Ranks!$1:$1048576,$A301,CD$1))","v":""},{"$f":"IF($A301=\"N/A\",Ref!$B$36,INDEX(Ranks!$1:$1048576,$A301,CE$1))","v":""},{"$f":"IF($A301=\"N/A\",Ref!$B$36,INDEX(Ranks!$1:$1048576,$A301,CF$1))","v":""},{"$f":"IF($A301=\"N/A\",Ref!$B$36,INDEX(Ranks!$1:$1048576,$A301,CG$1))","v":""},{"$f":"IF($A301=\"N/A\",Ref!$B$36,INDEX(Ranks!$1:$1048576,$A301,CH$1))","v":""},{"$f":"IF($A301=\"N/A\",Ref!$B$36,INDEX(Ranks!$1:$1048576,$A301,CI$1))","v":""},{"$f":"IF($A301=\"N/A\",Ref!$B$36,INDEX(Ranks!$1:$1048576,$A301,CJ$1))","v":""},{"$f":"IF($A301=\"N/A\",Ref!$B$36,INDEX(Ranks!$1:$1048576,$A301,CK$1))","v":""},{"$f":"IF($A301=\"N/A\",Ref!$B$36,INDEX(Ranks!$1:$1048576,$A301,CL$1))","v":""},{"$f":"IF($A301=\"N/A\",Ref!$B$36,INDEX(Ranks!$1:$1048576,$A301,CM$1))","v":""},{"$f":"IF($A301=\"N/A\",Ref!$B$36,INDEX(Ranks!$1:$1048576,$A301,CN$1))","v":""},{"$f":"IF($A301=\"N/A\",Ref!$B$36,INDEX(Ranks!$1:$1048576,$A301,CO$1))","v":""},{"$f":"IF($A301=\"N/A\",Ref!$B$36,INDEX(Ranks!$1:$1048576,$A301,CP$1))","v":""},{"$f":"IF($A301=\"N/A\",Ref!$B$36,INDEX(Ranks!$1:$1048576,$A301,CQ$1))","v":""},{"$f":"IF($A301=\"N/A\",Ref!$B$36,INDEX(Ranks!$1:$1048576,$A301,CR$1))","v":""},{"$f":"IF($A301=\"N/A\",Ref!$B$36,INDEX(Ranks!$1:$1048576,$A301,CS$1))","v":""},{"$f":"IF($A301=\"N/A\",Ref!$B$36,INDEX(Ranks!$1:$1048576,$A301,CT$1))","v":""},{"$f":"IF($A301=\"N/A\",Ref!$B$36,INDEX(Ranks!$1:$1048576,$A301,CU$1))","v":""},{"$f":"IF($A301=\"N/A\",Ref!$B$36,INDEX(Ranks!$1:$1048576,$A301,CV$1))","v":""},{"$f":"IF($A301=\"N/A\",Ref!$B$36,INDEX(Ranks!$1:$1048576,$A301,CW$1))","v":""},{"$f":"IF($A301=\"N/A\",Ref!$B$36,INDEX(Ranks!$1:$1048576,$A301,CX$1))","v":""},{"$f":"IF($A301=\"N/A\",Ref!$B$36,INDEX(Ranks!$1:$1048576,$A301,CY$1))","v":""},{"$f":"IF($A301=\"N/A\",Ref!$B$36,INDEX(Ranks!$1:$1048576,$A301,CZ$1))","v":""},{"$f":"IF($A301=\"N/A\",Ref!$B$36,INDEX(Ranks!$1:$1048576,$A301,DA$1))","v":""},{"$f":"IF($A301=\"N/A\",Ref!$B$36,INDEX(Ranks!$1:$1048576,$A301,DB$1))","v":""},{"$f":"IF($A301=\"N/A\",Ref!$B$36,INDEX(Ranks!$1:$1048576,$A301,DC$1))","v":""},{"$f":"IF($A301=\"N/A\",Ref!$B$36,INDEX(Ranks!$1:$1048576,$A301,DD$1))","v":""},{"$f":"IF($A301=\"N/A\",Ref!$B$36,INDEX(Ranks!$1:$1048576,$A301,DE$1))","v":""},{"$f":"IF($A301=\"N/A\",Ref!$B$36,INDEX(Ranks!$1:$1048576,$A301,DF$1))","v":""},{"$f":"IF($A301=\"N/A\",Ref!$B$36,INDEX(Ranks!$1:$1048576,$A301,DG$1))","v":""},{"$f":"IF($A301=\"N/A\",Ref!$B$36,INDEX(Ranks!$1:$1048576,$A301,DH$1))","v":""},{"$f":"IF($A301=\"N/A\",Ref!$B$36,INDEX(Ranks!$1:$1048576,$A301,DI$1))","v":""},{"$f":"IF($A301=\"N/A\",Ref!$B$36,INDEX(Ranks!$1:$1048576,$A301,DJ$1))","v":""},{"$f":"IF($A301=\"N/A\",Ref!$B$36,INDEX(Ranks!$1:$1048576,$A301,DK$1))","v":""},{"$f":"IF($A301=\"N/A\",Ref!$B$36,INDEX(Ranks!$1:$1048576,$A301,DL$1))","v":""},{"$f":"IF($A301=\"N/A\",Ref!$B$36,INDEX(Ranks!$1:$1048576,$A301,DM$1))","v":""},{"$f":"IF($A301=\"N/A\",Ref!$B$36,INDEX(Ranks!$1:$1048576,$A301,DN$1))","v":""},{"$f":"IF($A301=\"N/A\",Ref!$B$36,INDEX(Ranks!$1:$1048576,$A301,DO$1))","v":""},{"$f":"IF($A301=\"N/A\",Ref!$B$36,INDEX(Ranks!$1:$1048576,$A301,DP$1))","v":""},{"$f":"IF($A301=\"N/A\",Ref!$B$36,INDEX(Ranks!$1:$1048576,$A301,DQ$1))","v":""},{"$f":"IF($A301=\"N/A\",Ref!$B$36,INDEX(Ranks!$1:$1048576,$A301,DR$1))","v":""},{"$f":"IF($A301=\"N/A\",Ref!$B$36,INDEX(Ranks!$1:$1048576,$A301,DS$1))","v":""},{"$f":"IF($A301=\"N/A\",Ref!$B$36,INDEX(Ranks!$1:$1048576,$A301,DT$1))","v":""},{"$f":"IF($A301=\"N/A\",Ref!$B$36,INDEX(Ranks!$1:$1048576,$A301,DU$1))","v":""},{"$f":"IF($A301=\"N/A\",Ref!$B$36,INDEX(Ranks!$1:$1048576,$A301,DV$1))","v":""},{"$f":"IF($A301=\"N/A\",Ref!$B$36,INDEX(Ranks!$1:$1048576,$A301,DW$1))","v":""},{"$f":"IF($A301=\"N/A\",Ref!$B$36,INDEX(Ranks!$1:$1048576,$A301,DX$1))","v":""},{"$f":"IF($A301=\"N/A\",Ref!$B$36,INDEX(Ranks!$1:$1048576,$A301,DY$1))","v":""},{"$f":"IF($A301=\"N/A\",Ref!$B$36,INDEX(Ranks!$1:$1048576,$A301,DZ$1))","v":""},{"$f":"IF($A301=\"N/A\",Ref!$B$36,INDEX(Ranks!$1:$1048576,$A301,EA$1))","v":""},{"$f":"IF($A301=\"N/A\",Ref!$B$36,INDEX(Ranks!$1:$1048576,$A301,EB$1))","v":""}]
[{"$f":"IFERROR(MATCH('Portfolio Page'!L302,Ranks!L:L,0),\"N/A\")","v":"N/A"},null,{"$f":"IF($A302=\"N/A\",\"\",INDEX(Ranks!$1:$1048576,$A302,C$1))","v":""},{"$f":"IF($A302=\"N/A\",Ref!$B$36,INDEX(Ranks!$1:$1048576,$A302,D$1))","v":""},{"$f":"IF($A302=\"N/A\",Ref!$B$36,INDEX(Ranks!$1:$1048576,$A302,E$1))","v":""},{"$f":"IF($A302=\"N/A\",\"\",INDEX(Ranks!$1:$1048576,$A302,F$1))","v":""},{"$f":"IF($A302=\"N/A\",\"\",INDEX(Ranks!$1:$1048576,$A302,G$1))","v":""},{"$f":"IF($A302=\"N/A\",\"\",INDEX(Ranks!$1:$1048576,$A302,H$1))","v":""},{"$f":"IF($A302=\"N/A\",\"\",INDEX(Ranks!$1:$1048576,$A302,I$1))","v":""},{"$f":"IF($A302=\"N/A\",\"\",INDEX(Ranks!$1:$1048576,$A302,J$1))","v":""},{"$f":"IF($A302=\"N/A\",\"\",INDEX(Ranks!$1:$1048576,$A302,K$1))","v":""},null,{"$f":"IF($A302=\"N/A\",Ref!$B$36,INDEX(Ranks!$1:$1048576,$A302,M$1))","v":""},{"$f":"IF($A302=\"N/A\",Ref!$B$36,INDEX(Ranks!$1:$1048576,$A302,N$1))","v":""},{"$f":"IF($A302=\"N/A\",Ref!$B$36,INDEX(Ranks!$1:$1048576,$A302,O$1))","v":""},{"$f":"IF($A302=\"N/A\",Ref!$B$36,INDEX(Ranks!$1:$1048576,$A302,P$1))","v":""},{"$f":"IF($A302=\"N/A\",Ref!$B$36,INDEX(Ranks!$1:$1048576,$A302,Q$1))","v":""},{"$f":"IF($A302=\"N/A\",Ref!$B$36,INDEX(Ranks!$1:$1048576,$A302,R$1))","v":""},{"$f":"IF($A302=\"N/A\",Ref!$B$36,INDEX(Ranks!$1:$1048576,$A302,S$1))","v":""},{"$f":"IF($A302=\"N/A\",Ref!$B$36,INDEX(Ranks!$1:$1048576,$A302,T$1))","v":""},{"$f":"IF($A302=\"N/A\",Ref!$B$36,INDEX(Ranks!$1:$1048576,$A302,U$1))","v":""},{"$f":"IF($A302=\"N/A\",Ref!$B$36,INDEX(Ranks!$1:$1048576,$A302,V$1))","v":""},{"$f":"IF($A302=\"N/A\",Ref!$B$36,INDEX(Ranks!$1:$1048576,$A302,W$1))","v":""},{"$f":"IF($A302=\"N/A\",Ref!$B$36,INDEX(Ranks!$1:$1048576,$A302,X$1))","v":""},{"$f":"IF($A302=\"N/A\",Ref!$B$36,INDEX(Ranks!$1:$1048576,$A302,Y$1))","v":""},{"$f":"IF($A302=\"N/A\",Ref!$B$36,INDEX(Ranks!$1:$1048576,$A302,Z$1))","v":""},{"$f":"IF($A302=\"N/A\",Ref!$B$36,INDEX(Ranks!$1:$1048576,$A302,AA$1))","v":""},{"$f":"IF($A302=\"N/A\",Ref!$B$36,INDEX(Ranks!$1:$1048576,$A302,AB$1))","v":""},{"$f":"IF($A302=\"N/A\",Ref!$B$36,INDEX(Ranks!$1:$1048576,$A302,AC$1))","v":""},{"$f":"IF($A302=\"N/A\",Ref!$B$36,INDEX(Ranks!$1:$1048576,$A302,AD$1))","v":""},{"$f":"IF($A302=\"N/A\",Ref!$B$36,INDEX(Ranks!$1:$1048576,$A302,AE$1))","v":""},{"$f":"IF($A302=\"N/A\",Ref!$B$36,INDEX(Ranks!$1:$1048576,$A302,AF$1))","v":""},{"$f":"IF($A302=\"N/A\",Ref!$B$36,INDEX(Ranks!$1:$1048576,$A302,AG$1))","v":""},{"$f":"IF($A302=\"N/A\",Ref!$B$36,INDEX(Ranks!$1:$1048576,$A302,AH$1))","v":""},{"$f":"IF($A302=\"N/A\",Ref!$B$36,INDEX(Ranks!$1:$1048576,$A302,AI$1))","v":""},{"$f":"IF($A302=\"N/A\",Ref!$B$36,INDEX(Ranks!$1:$1048576,$A302,AJ$1))","v":""},{"$f":"IF($A302=\"N/A\",Ref!$B$36,INDEX(Ranks!$1:$1048576,$A302,AK$1))","v":""},{"$f":"IF($A302=\"N/A\",Ref!$B$36,INDEX(Ranks!$1:$1048576,$A302,AL$1))","v":""},{"$f":"IF($A302=\"N/A\",Ref!$B$36,INDEX(Ranks!$1:$1048576,$A302,AM$1))","v":""},{"$f":"IF($A302=\"N/A\",Ref!$B$36,INDEX(Ranks!$1:$1048576,$A302,AN$1))","v":""},{"$f":"IF($A302=\"N/A\",Ref!$B$36,INDEX(Ranks!$1:$1048576,$A302,AO$1))","v":""},{"$f":"IF($A302=\"N/A\",Ref!$B$36,INDEX(Ranks!$1:$1048576,$A302,AP$1))","v":""},{"$f":"IF($A302=\"N/A\",Ref!$B$36,INDEX(Ranks!$1:$1048576,$A302,AQ$1))","v":""},{"$f":"IF($A302=\"N/A\",Ref!$B$36,INDEX(Ranks!$1:$1048576,$A302,AR$1))","v":""},{"$f":"IF($A302=\"N/A\",Ref!$B$36,INDEX(Ranks!$1:$1048576,$A302,AS$1))","v":""},{"$f":"IF($A302=\"N/A\",Ref!$B$36,INDEX(Ranks!$1:$1048576,$A302,AT$1))","v":""},{"$f":"IF($A302=\"N/A\",Ref!$B$36,INDEX(Ranks!$1:$1048576,$A302,AU$1))","v":""},{"$f":"IF($A302=\"N/A\",Ref!$B$36,INDEX(Ranks!$1:$1048576,$A302,AV$1))","v":""},{"$f":"IF($A302=\"N/A\",Ref!$B$36,INDEX(Ranks!$1:$1048576,$A302,AW$1))","v":""},{"$f":"IF($A302=\"N/A\",Ref!$B$36,INDEX(Ranks!$1:$1048576,$A302,AX$1))","v":""},{"$f":"IF($A302=\"N/A\",Ref!$B$36,INDEX(Ranks!$1:$1048576,$A302,AY$1))","v":""},{"$f":"IF($A302=\"N/A\",Ref!$B$36,INDEX(Ranks!$1:$1048576,$A302,AZ$1))","v":""},{"$f":"IF($A302=\"N/A\",Ref!$B$36,INDEX(Ranks!$1:$1048576,$A302,BA$1))","v":""},{"$f":"IF($A302=\"N/A\",Ref!$B$36,INDEX(Ranks!$1:$1048576,$A302,BB$1))","v":""},{"$f":"IF($A302=\"N/A\",Ref!$B$36,INDEX(Ranks!$1:$1048576,$A302,BC$1))","v":""},{"$f":"IF($A302=\"N/A\",Ref!$B$36,INDEX(Ranks!$1:$1048576,$A302,BD$1))","v":""},{"$f":"IF($A302=\"N/A\",Ref!$B$36,INDEX(Ranks!$1:$1048576,$A302,BE$1))","v":""},{"$f":"IF($A302=\"N/A\",Ref!$B$36,INDEX(Ranks!$1:$1048576,$A302,BF$1))","v":""},{"$f":"IF($A302=\"N/A\",Ref!$B$36,INDEX(Ranks!$1:$1048576,$A302,BG$1))","v":""},{"$f":"IF($A302=\"N/A\",Ref!$B$36,INDEX(Ranks!$1:$1048576,$A302,BH$1))","v":""},{"$f":"IF($A302=\"N/A\",Ref!$B$36,INDEX(Ranks!$1:$1048576,$A302,BI$1))","v":""},{"$f":"IF($A302=\"N/A\",Ref!$B$36,INDEX(Ranks!$1:$1048576,$A302,BJ$1))","v":""},{"$f":"IF($A302=\"N/A\",Ref!$B$36,INDEX(Ranks!$1:$1048576,$A302,BK$1))","v":""},{"$f":"IF($A302=\"N/A\",Ref!$B$36,INDEX(Ranks!$1:$1048576,$A302,BL$1))","v":""},{"$f":"IF($A302=\"N/A\",Ref!$B$36,INDEX(Ranks!$1:$1048576,$A302,BM$1))","v":""},{"$f":"IF($A302=\"N/A\",Ref!$B$36,INDEX(Ranks!$1:$1048576,$A302,BN$1))","v":""},{"$f":"IF($A302=\"N/A\",Ref!$B$36,INDEX(Ranks!$1:$1048576,$A302,BO$1))","v":""},{"$f":"IF($A302=\"N/A\",Ref!$B$36,INDEX(Ranks!$1:$1048576,$A302,BP$1))","v":""},{"$f":"IF($A302=\"N/A\",Ref!$B$36,INDEX(Ranks!$1:$1048576,$A302,BQ$1))","v":""},{"$f":"IF($A302=\"N/A\",Ref!$B$36,INDEX(Ranks!$1:$1048576,$A302,BR$1))","v":""},{"$f":"IF($A302=\"N/A\",Ref!$B$36,INDEX(Ranks!$1:$1048576,$A302,BS$1))","v":""},{"$f":"IF($A302=\"N/A\",Ref!$B$36,INDEX(Ranks!$1:$1048576,$A302,BT$1))","v":""},{"$f":"IF($A302=\"N/A\",Ref!$B$36,INDEX(Ranks!$1:$1048576,$A302,BU$1))","v":""},{"$f":"IF($A302=\"N/A\",Ref!$B$36,INDEX(Ranks!$1:$1048576,$A302,BV$1))","v":""},{"$f":"IF($A302=\"N/A\",Ref!$B$36,INDEX(Ranks!$1:$1048576,$A302,BW$1))","v":""},{"$f":"IF($A302=\"N/A\",Ref!$B$36,INDEX(Ranks!$1:$1048576,$A302,BX$1))","v":""},{"$f":"IF($A302=\"N/A\",Ref!$B$36,INDEX(Ranks!$1:$1048576,$A302,BY$1))","v":""},{"$f":"IF($A302=\"N/A\",Ref!$B$36,INDEX(Ranks!$1:$1048576,$A302,BZ$1))","v":""},{"$f":"IF($A302=\"N/A\",Ref!$B$36,INDEX(Ranks!$1:$1048576,$A302,CA$1))","v":""},{"$f":"IF($A302=\"N/A\",Ref!$B$36,INDEX(Ranks!$1:$1048576,$A302,CB$1))","v":""},{"$f":"IF($A302=\"N/A\",Ref!$B$36,INDEX(Ranks!$1:$1048576,$A302,CC$1))","v":""},{"$f":"IF($A302=\"N/A\",Ref!$B$36,INDEX(Ranks!$1:$1048576,$A302,CD$1))","v":""},{"$f":"IF($A302=\"N/A\",Ref!$B$36,INDEX(Ranks!$1:$1048576,$A302,CE$1))","v":""},{"$f":"IF($A302=\"N/A\",Ref!$B$36,INDEX(Ranks!$1:$1048576,$A302,CF$1))","v":""},{"$f":"IF($A302=\"N/A\",Ref!$B$36,INDEX(Ranks!$1:$1048576,$A302,CG$1))","v":""},{"$f":"IF($A302=\"N/A\",Ref!$B$36,INDEX(Ranks!$1:$1048576,$A302,CH$1))","v":""},{"$f":"IF($A302=\"N/A\",Ref!$B$36,INDEX(Ranks!$1:$1048576,$A302,CI$1))","v":""},{"$f":"IF($A302=\"N/A\",Ref!$B$36,INDEX(Ranks!$1:$1048576,$A302,CJ$1))","v":""},{"$f":"IF($A302=\"N/A\",Ref!$B$36,INDEX(Ranks!$1:$1048576,$A302,CK$1))","v":""},{"$f":"IF($A302=\"N/A\",Ref!$B$36,INDEX(Ranks!$1:$1048576,$A302,CL$1))","v":""},{"$f":"IF($A302=\"N/A\",Ref!$B$36,INDEX(Ranks!$1:$1048576,$A302,CM$1))","v":""},{"$f":"IF($A302=\"N/A\",Ref!$B$36,INDEX(Ranks!$1:$1048576,$A302,CN$1))","v":""},{"$f":"IF($A302=\"N/A\",Ref!$B$36,INDEX(Ranks!$1:$1048576,$A302,CO$1))","v":""},{"$f":"IF($A302=\"N/A\",Ref!$B$36,INDEX(Ranks!$1:$1048576,$A302,CP$1))","v":""},{"$f":"IF($A302=\"N/A\",Ref!$B$36,INDEX(Ranks!$1:$1048576,$A302,CQ$1))","v":""},{"$f":"IF($A302=\"N/A\",Ref!$B$36,INDEX(Ranks!$1:$1048576,$A302,CR$1))","v":""},{"$f":"IF($A302=\"N/A\",Ref!$B$36,INDEX(Ranks!$1:$1048576,$A302,CS$1))","v":""},{"$f":"IF($A302=\"N/A\",Ref!$B$36,INDEX(Ranks!$1:$1048576,$A302,CT$1))","v":""},{"$f":"IF($A302=\"N/A\",Ref!$B$36,INDEX(Ranks!$1:$1048576,$A302,CU$1))","v":""},{"$f":"IF($A302=\"N/A\",Ref!$B$36,INDEX(Ranks!$1:$1048576,$A302,CV$1))","v":""},{"$f":"IF($A302=\"N/A\",Ref!$B$36,INDEX(Ranks!$1:$1048576,$A302,CW$1))","v":""},{"$f":"IF($A302=\"N/A\",Ref!$B$36,INDEX(Ranks!$1:$1048576,$A302,CX$1))","v":""},{"$f":"IF($A302=\"N/A\",Ref!$B$36,INDEX(Ranks!$1:$1048576,$A302,CY$1))","v":""},{"$f":"IF($A302=\"N/A\",Ref!$B$36,INDEX(Ranks!$1:$1048576,$A302,CZ$1))","v":""},{"$f":"IF($A302=\"N/A\",Ref!$B$36,INDEX(Ranks!$1:$1048576,$A302,DA$1))","v":""},{"$f":"IF($A302=\"N/A\",Ref!$B$36,INDEX(Ranks!$1:$1048576,$A302,DB$1))","v":""},{"$f":"IF($A302=\"N/A\",Ref!$B$36,INDEX(Ranks!$1:$1048576,$A302,DC$1))","v":""},{"$f":"IF($A302=\"N/A\",Ref!$B$36,INDEX(Ranks!$1:$1048576,$A302,DD$1))","v":""},{"$f":"IF($A302=\"N/A\",Ref!$B$36,INDEX(Ranks!$1:$1048576,$A302,DE$1))","v":""},{"$f":"IF($A302=\"N/A\",Ref!$B$36,INDEX(Ranks!$1:$1048576,$A302,DF$1))","v":""},{"$f":"IF($A302=\"N/A\",Ref!$B$36,INDEX(Ranks!$1:$1048576,$A302,DG$1))","v":""},{"$f":"IF($A302=\"N/A\",Ref!$B$36,INDEX(Ranks!$1:$1048576,$A302,DH$1))","v":""},{"$f":"IF($A302=\"N/A\",Ref!$B$36,INDEX(Ranks!$1:$1048576,$A302,DI$1))","v":""},{"$f":"IF($A302=\"N/A\",Ref!$B$36,INDEX(Ranks!$1:$1048576,$A302,DJ$1))","v":""},{"$f":"IF($A302=\"N/A\",Ref!$B$36,INDEX(Ranks!$1:$1048576,$A302,DK$1))","v":""},{"$f":"IF($A302=\"N/A\",Ref!$B$36,INDEX(Ranks!$1:$1048576,$A302,DL$1))","v":""},{"$f":"IF($A302=\"N/A\",Ref!$B$36,INDEX(Ranks!$1:$1048576,$A302,DM$1))","v":""},{"$f":"IF($A302=\"N/A\",Ref!$B$36,INDEX(Ranks!$1:$1048576,$A302,DN$1))","v":""},{"$f":"IF($A302=\"N/A\",Ref!$B$36,INDEX(Ranks!$1:$1048576,$A302,DO$1))","v":""},{"$f":"IF($A302=\"N/A\",Ref!$B$36,INDEX(Ranks!$1:$1048576,$A302,DP$1))","v":""},{"$f":"IF($A302=\"N/A\",Ref!$B$36,INDEX(Ranks!$1:$1048576,$A302,DQ$1))","v":""},{"$f":"IF($A302=\"N/A\",Ref!$B$36,INDEX(Ranks!$1:$1048576,$A302,DR$1))","v":""},{"$f":"IF($A302=\"N/A\",Ref!$B$36,INDEX(Ranks!$1:$1048576,$A302,DS$1))","v":""},{"$f":"IF($A302=\"N/A\",Ref!$B$36,INDEX(Ranks!$1:$1048576,$A302,DT$1))","v":""},{"$f":"IF($A302=\"N/A\",Ref!$B$36,INDEX(Ranks!$1:$1048576,$A302,DU$1))","v":""},{"$f":"IF($A302=\"N/A\",Ref!$B$36,INDEX(Ranks!$1:$1048576,$A302,DV$1))","v":""},{"$f":"IF($A302=\"N/A\",Ref!$B$36,INDEX(Ranks!$1:$1048576,$A302,DW$1))","v":""},{"$f":"IF($A302=\"N/A\",Ref!$B$36,INDEX(Ranks!$1:$1048576,$A302,DX$1))","v":""},{"$f":"IF($A302=\"N/A\",Ref!$B$36,INDEX(Ranks!$1:$1048576,$A302,DY$1))","v":""},{"$f":"IF($A302=\"N/A\",Ref!$B$36,INDEX(Ranks!$1:$1048576,$A302,DZ$1))","v":""},{"$f":"IF($A302=\"N/A\",Ref!$B$36,INDEX(Ranks!$1:$1048576,$A302,EA$1))","v":""},{"$f":"IF($A302=\"N/A\",Ref!$B$36,INDEX(Ranks!$1:$1048576,$A302,EB$1))","v":""}]
[{"$f":"IFERROR(MATCH('Portfolio Page'!L303,Ranks!L:L,0),\"N/A\")","v":"N/A"},null,{"$f":"IF($A303=\"N/A\",\"\",INDEX(Ranks!$1:$1048576,$A303,C$1))","v":""},{"$f":"IF($A303=\"N/A\",Ref!$B$36,INDEX(Ranks!$1:$1048576,$A303,D$1))","v":""},{"$f":"IF($A303=\"N/A\",Ref!$B$36,INDEX(Ranks!$1:$1048576,$A303,E$1))","v":""},{"$f":"IF($A303=\"N/A\",\"\",INDEX(Ranks!$1:$1048576,$A303,F$1))","v":""},{"$f":"IF($A303=\"N/A\",\"\",INDEX(Ranks!$1:$1048576,$A303,G$1))","v":""},{"$f":"IF($A303=\"N/A\",\"\",INDEX(Ranks!$1:$1048576,$A303,H$1))","v":""},{"$f":"IF($A303=\"N/A\",\"\",INDEX(Ranks!$1:$1048576,$A303,I$1))","v":""},{"$f":"IF($A303=\"N/A\",\"\",INDEX(Ranks!$1:$1048576,$A303,J$1))","v":""},{"$f":"IF($A303=\"N/A\",\"\",INDEX(Ranks!$1:$1048576,$A303,K$1))","v":""},null,{"$f":"IF($A303=\"N/A\",Ref!$B$36,INDEX(Ranks!$1:$1048576,$A303,M$1))","v":""},{"$f":"IF($A303=\"N/A\",Ref!$B$36,INDEX(Ranks!$1:$1048576,$A303,N$1))","v":""},{"$f":"IF($A303=\"N/A\",Ref!$B$36,INDEX(Ranks!$1:$1048576,$A303,O$1))","v":""},{"$f":"IF($A303=\"N/A\",Ref!$B$36,INDEX(Ranks!$1:$1048576,$A303,P$1))","v":""},{"$f":"IF($A303=\"N/A\",Ref!$B$36,INDEX(Ranks!$1:$1048576,$A303,Q$1))","v":""},{"$f":"IF($A303=\"N/A\",Ref!$B$36,INDEX(Ranks!$1:$1048576,$A303,R$1))","v":""},{"$f":"IF($A303=\"N/A\",Ref!$B$36,INDEX(Ranks!$1:$1048576,$A303,S$1))","v":""},{"$f":"IF($A303=\"N/A\",Ref!$B$36,INDEX(Ranks!$1:$1048576,$A303,T$1))","v":""},{"$f":"IF($A303=\"N/A\",Ref!$B$36,INDEX(Ranks!$1:$1048576,$A303,U$1))","v":""},{"$f":"IF($A303=\"N/A\",Ref!$B$36,INDEX(Ranks!$1:$1048576,$A303,V$1))","v":""},{"$f":"IF($A303=\"N/A\",Ref!$B$36,INDEX(Ranks!$1:$1048576,$A303,W$1))","v":""},{"$f":"IF($A303=\"N/A\",Ref!$B$36,INDEX(Ranks!$1:$1048576,$A303,X$1))","v":""},{"$f":"IF($A303=\"N/A\",Ref!$B$36,INDEX(Ranks!$1:$1048576,$A303,Y$1))","v":""},{"$f":"IF($A303=\"N/A\",Ref!$B$36,INDEX(Ranks!$1:$1048576,$A303,Z$1))","v":""},{"$f":"IF($A303=\"N/A\",Ref!$B$36,INDEX(Ranks!$1:$1048576,$A303,AA$1))","v":""},{"$f":"IF($A303=\"N/A\",Ref!$B$36,INDEX(Ranks!$1:$1048576,$A303,AB$1))","v":""},{"$f":"IF($A303=\"N/A\",Ref!$B$36,INDEX(Ranks!$1:$1048576,$A303,AC$1))","v":""},{"$f":"IF($A303=\"N/A\",Ref!$B$36,INDEX(Ranks!$1:$1048576,$A303,AD$1))","v":""},{"$f":"IF($A303=\"N/A\",Ref!$B$36,INDEX(Ranks!$1:$1048576,$A303,AE$1))","v":""},{"$f":"IF($A303=\"N/A\",Ref!$B$36,INDEX(Ranks!$1:$1048576,$A303,AF$1))","v":""},{"$f":"IF($A303=\"N/A\",Ref!$B$36,INDEX(Ranks!$1:$1048576,$A303,AG$1))","v":""},{"$f":"IF($A303=\"N/A\",Ref!$B$36,INDEX(Ranks!$1:$1048576,$A303,AH$1))","v":""},{"$f":"IF($A303=\"N/A\",Ref!$B$36,INDEX(Ranks!$1:$1048576,$A303,AI$1))","v":""},{"$f":"IF($A303=\"N/A\",Ref!$B$36,INDEX(Ranks!$1:$1048576,$A303,AJ$1))","v":""},{"$f":"IF($A303=\"N/A\",Ref!$B$36,INDEX(Ranks!$1:$1048576,$A303,AK$1))","v":""},{"$f":"IF($A303=\"N/A\",Ref!$B$36,INDEX(Ranks!$1:$1048576,$A303,AL$1))","v":""},{"$f":"IF($A303=\"N/A\",Ref!$B$36,INDEX(Ranks!$1:$1048576,$A303,AM$1))","v":""},{"$f":"IF($A303=\"N/A\",Ref!$B$36,INDEX(Ranks!$1:$1048576,$A303,AN$1))","v":""},{"$f":"IF($A303=\"N/A\",Ref!$B$36,INDEX(Ranks!$1:$1048576,$A303,AO$1))","v":""},{"$f":"IF($A303=\"N/A\",Ref!$B$36,INDEX(Ranks!$1:$1048576,$A303,AP$1))","v":""},{"$f":"IF($A303=\"N/A\",Ref!$B$36,INDEX(Ranks!$1:$1048576,$A303,AQ$1))","v":""},{"$f":"IF($A303=\"N/A\",Ref!$B$36,INDEX(Ranks!$1:$1048576,$A303,AR$1))","v":""},{"$f":"IF($A303=\"N/A\",Ref!$B$36,INDEX(Ranks!$1:$1048576,$A303,AS$1))","v":""},{"$f":"IF($A303=\"N/A\",Ref!$B$36,INDEX(Ranks!$1:$1048576,$A303,AT$1))","v":""},{"$f":"IF($A303=\"N/A\",Ref!$B$36,INDEX(Ranks!$1:$1048576,$A303,AU$1))","v":""},{"$f":"IF($A303=\"N/A\",Ref!$B$36,INDEX(Ranks!$1:$1048576,$A303,AV$1))","v":""},{"$f":"IF($A303=\"N/A\",Ref!$B$36,INDEX(Ranks!$1:$1048576,$A303,AW$1))","v":""},{"$f":"IF($A303=\"N/A\",Ref!$B$36,INDEX(Ranks!$1:$1048576,$A303,AX$1))","v":""},{"$f":"IF($A303=\"N/A\",Ref!$B$36,INDEX(Ranks!$1:$1048576,$A303,AY$1))","v":""},{"$f":"IF($A303=\"N/A\",Ref!$B$36,INDEX(Ranks!$1:$1048576,$A303,AZ$1))","v":""},{"$f":"IF($A303=\"N/A\",Ref!$B$36,INDEX(Ranks!$1:$1048576,$A303,BA$1))","v":""},{"$f":"IF($A303=\"N/A\",Ref!$B$36,INDEX(Ranks!$1:$1048576,$A303,BB$1))","v":""},{"$f":"IF($A303=\"N/A\",Ref!$B$36,INDEX(Ranks!$1:$1048576,$A303,BC$1))","v":""},{"$f":"IF($A303=\"N/A\",Ref!$B$36,INDEX(Ranks!$1:$1048576,$A303,BD$1))","v":""},{"$f":"IF($A303=\"N/A\",Ref!$B$36,INDEX(Ranks!$1:$1048576,$A303,BE$1))","v":""},{"$f":"IF($A303=\"N/A\",Ref!$B$36,INDEX(Ranks!$1:$1048576,$A303,BF$1))","v":""},{"$f":"IF($A303=\"N/A\",Ref!$B$36,INDEX(Ranks!$1:$1048576,$A303,BG$1))","v":""},{"$f":"IF($A303=\"N/A\",Ref!$B$36,INDEX(Ranks!$1:$1048576,$A303,BH$1))","v":""},{"$f":"IF($A303=\"N/A\",Ref!$B$36,INDEX(Ranks!$1:$1048576,$A303,BI$1))","v":""},{"$f":"IF($A303=\"N/A\",Ref!$B$36,INDEX(Ranks!$1:$1048576,$A303,BJ$1))","v":""},{"$f":"IF($A303=\"N/A\",Ref!$B$36,INDEX(Ranks!$1:$1048576,$A303,BK$1))","v":""},{"$f":"IF($A303=\"N/A\",Ref!$B$36,INDEX(Ranks!$1:$1048576,$A303,BL$1))","v":""},{"$f":"IF($A303=\"N/A\",Ref!$B$36,INDEX(Ranks!$1:$1048576,$A303,BM$1))","v":""},{"$f":"IF($A303=\"N/A\",Ref!$B$36,INDEX(Ranks!$1:$1048576,$A303,BN$1))","v":""},{"$f":"IF($A303=\"N/A\",Ref!$B$36,INDEX(Ranks!$1:$1048576,$A303,BO$1))","v":""},{"$f":"IF($A303=\"N/A\",Ref!$B$36,INDEX(Ranks!$1:$1048576,$A303,BP$1))","v":""},{"$f":"IF($A303=\"N/A\",Ref!$B$36,INDEX(Ranks!$1:$1048576,$A303,BQ$1))","v":""},{"$f":"IF($A303=\"N/A\",Ref!$B$36,INDEX(Ranks!$1:$1048576,$A303,BR$1))","v":""},{"$f":"IF($A303=\"N/A\",Ref!$B$36,INDEX(Ranks!$1:$1048576,$A303,BS$1))","v":""},{"$f":"IF($A303=\"N/A\",Ref!$B$36,INDEX(Ranks!$1:$1048576,$A303,BT$1))","v":""},{"$f":"IF($A303=\"N/A\",Ref!$B$36,INDEX(Ranks!$1:$1048576,$A303,BU$1))","v":""},{"$f":"IF($A303=\"N/A\",Ref!$B$36,INDEX(Ranks!$1:$1048576,$A303,BV$1))","v":""},{"$f":"IF($A303=\"N/A\",Ref!$B$36,INDEX(Ranks!$1:$1048576,$A303,BW$1))","v":""},{"$f":"IF($A303=\"N/A\",Ref!$B$36,INDEX(Ranks!$1:$1048576,$A303,BX$1))","v":""},{"$f":"IF($A303=\"N/A\",Ref!$B$36,INDEX(Ranks!$1:$1048576,$A303,BY$1))","v":""},{"$f":"IF($A303=\"N/A\",Ref!$B$36,INDEX(Ranks!$1:$1048576,$A303,BZ$1))","v":""},{"$f":"IF($A303=\"N/A\",Ref!$B$36,INDEX(Ranks!$1:$1048576,$A303,CA$1))","v":""},{"$f":"IF($A303=\"N/A\",Ref!$B$36,INDEX(Ranks!$1:$1048576,$A303,CB$1))","v":""},{"$f":"IF($A303=\"N/A\",Ref!$B$36,INDEX(Ranks!$1:$1048576,$A303,CC$1))","v":""},{"$f":"IF($A303=\"N/A\",Ref!$B$36,INDEX(Ranks!$1:$1048576,$A303,CD$1))","v":""},{"$f":"IF($A303=\"N/A\",Ref!$B$36,INDEX(Ranks!$1:$1048576,$A303,CE$1))","v":""},{"$f":"IF($A303=\"N/A\",Ref!$B$36,INDEX(Ranks!$1:$1048576,$A303,CF$1))","v":""},{"$f":"IF($A303=\"N/A\",Ref!$B$36,INDEX(Ranks!$1:$1048576,$A303,CG$1))","v":""},{"$f":"IF($A303=\"N/A\",Ref!$B$36,INDEX(Ranks!$1:$1048576,$A303,CH$1))","v":""},{"$f":"IF($A303=\"N/A\",Ref!$B$36,INDEX(Ranks!$1:$1048576,$A303,CI$1))","v":""},{"$f":"IF($A303=\"N/A\",Ref!$B$36,INDEX(Ranks!$1:$1048576,$A303,CJ$1))","v":""},{"$f":"IF($A303=\"N/A\",Ref!$B$36,INDEX(Ranks!$1:$1048576,$A303,CK$1))","v":""},{"$f":"IF($A303=\"N/A\",Ref!$B$36,INDEX(Ranks!$1:$1048576,$A303,CL$1))","v":""},{"$f":"IF($A303=\"N/A\",Ref!$B$36,INDEX(Ranks!$1:$1048576,$A303,CM$1))","v":""},{"$f":"IF($A303=\"N/A\",Ref!$B$36,INDEX(Ranks!$1:$1048576,$A303,CN$1))","v":""},{"$f":"IF($A303=\"N/A\",Ref!$B$36,INDEX(Ranks!$1:$1048576,$A303,CO$1))","v":""},{"$f":"IF($A303=\"N/A\",Ref!$B$36,INDEX(Ranks!$1:$1048576,$A303,CP$1))","v":""},{"$f":"IF($A303=\"N/A\",Ref!$B$36,INDEX(Ranks!$1:$1048576,$A303,CQ$1))","v":""},{"$f":"IF($A303=\"N/A\",Ref!$B$36,INDEX(Ranks!$1:$1048576,$A303,CR$1))","v":""},{"$f":"IF($A303=\"N/A\",Ref!$B$36,INDEX(Ranks!$1:$1048576,$A303,CS$1))","v":""},{"$f":"IF($A303=\"N/A\",Ref!$B$36,INDEX(Ranks!$1:$1048576,$A303,CT$1))","v":""},{"$f":"IF($A303=\"N/A\",Ref!$B$36,INDEX(Ranks!$1:$1048576,$A303,CU$1))","v":""},{"$f":"IF($A303=\"N/A\",Ref!$B$36,INDEX(Ranks!$1:$1048576,$A303,CV$1))","v":""},{"$f":"IF($A303=\"N/A\",Ref!$B$36,INDEX(Ranks!$1:$1048576,$A303,CW$1))","v":""},{"$f":"IF($A303=\"N/A\",Ref!$B$36,INDEX(Ranks!$1:$1048576,$A303,CX$1))","v":""},{"$f":"IF($A303=\"N/A\",Ref!$B$36,INDEX(Ranks!$1:$1048576,$A303,CY$1))","v":""},{"$f":"IF($A303=\"N/A\",Ref!$B$36,INDEX(Ranks!$1:$1048576,$A303,CZ$1))","v":""},{"$f":"IF($A303=\"N/A\",Ref!$B$36,INDEX(Ranks!$1:$1048576,$A303,DA$1))","v":""},{"$f":"IF($A303=\"N/A\",Ref!$B$36,INDEX(Ranks!$1:$1048576,$A303,DB$1))","v":""},{"$f":"IF($A303=\"N/A\",Ref!$B$36,INDEX(Ranks!$1:$1048576,$A303,DC$1))","v":""},{"$f":"IF($A303=\"N/A\",Ref!$B$36,INDEX(Ranks!$1:$1048576,$A303,DD$1))","v":""},{"$f":"IF($A303=\"N/A\",Ref!$B$36,INDEX(Ranks!$1:$1048576,$A303,DE$1))","v":""},{"$f":"IF($A303=\"N/A\",Ref!$B$36,INDEX(Ranks!$1:$1048576,$A303,DF$1))","v":""},{"$f":"IF($A303=\"N/A\",Ref!$B$36,INDEX(Ranks!$1:$1048576,$A303,DG$1))","v":""},{"$f":"IF($A303=\"N/A\",Ref!$B$36,INDEX(Ranks!$1:$1048576,$A303,DH$1))","v":""},{"$f":"IF($A303=\"N/A\",Ref!$B$36,INDEX(Ranks!$1:$1048576,$A303,DI$1))","v":""},{"$f":"IF($A303=\"N/A\",Ref!$B$36,INDEX(Ranks!$1:$1048576,$A303,DJ$1))","v":""},{"$f":"IF($A303=\"N/A\",Ref!$B$36,INDEX(Ranks!$1:$1048576,$A303,DK$1))","v":""},{"$f":"IF($A303=\"N/A\",Ref!$B$36,INDEX(Ranks!$1:$1048576,$A303,DL$1))","v":""},{"$f":"IF($A303=\"N/A\",Ref!$B$36,INDEX(Ranks!$1:$1048576,$A303,DM$1))","v":""},{"$f":"IF($A303=\"N/A\",Ref!$B$36,INDEX(Ranks!$1:$1048576,$A303,DN$1))","v":""},{"$f":"IF($A303=\"N/A\",Ref!$B$36,INDEX(Ranks!$1:$1048576,$A303,DO$1))","v":""},{"$f":"IF($A303=\"N/A\",Ref!$B$36,INDEX(Ranks!$1:$1048576,$A303,DP$1))","v":""},{"$f":"IF($A303=\"N/A\",Ref!$B$36,INDEX(Ranks!$1:$1048576,$A303,DQ$1))","v":""},{"$f":"IF($A303=\"N/A\",Ref!$B$36,INDEX(Ranks!$1:$1048576,$A303,DR$1))","v":""},{"$f":"IF($A303=\"N/A\",Ref!$B$36,INDEX(Ranks!$1:$1048576,$A303,DS$1))","v":""},{"$f":"IF($A303=\"N/A\",Ref!$B$36,INDEX(Ranks!$1:$1048576,$A303,DT$1))","v":""},{"$f":"IF($A303=\"N/A\",Ref!$B$36,INDEX(Ranks!$1:$1048576,$A303,DU$1))","v":""},{"$f":"IF($A303=\"N/A\",Ref!$B$36,INDEX(Ranks!$1:$1048576,$A303,DV$1))","v":""},{"$f":"IF($A303=\"N/A\",Ref!$B$36,INDEX(Ranks!$1:$1048576,$A303,DW$1))","v":""},{"$f":"IF($A303=\"N/A\",Ref!$B$36,INDEX(Ranks!$1:$1048576,$A303,DX$1))","v":""},{"$f":"IF($A303=\"N/A\",Ref!$B$36,INDEX(Ranks!$1:$1048576,$A303,DY$1))","v":""},{"$f":"IF($A303=\"N/A\",Ref!$B$36,INDEX(Ranks!$1:$1048576,$A303,DZ$1))","v":""},{"$f":"IF($A303=\"N/A\",Ref!$B$36,INDEX(Ranks!$1:$1048576,$A303,EA$1))","v":""},{"$f":"IF($A303=\"N/A\",Ref!$B$36,INDEX(Ranks!$1:$1048576,$A303,EB$1))","v":""}]
[{"$f":"IFERROR(MATCH('Portfolio Page'!L304,Ranks!L:L,0),\"N/A\")","v":"N/A"},null,{"$f":"IF($A304=\"N/A\",\"\",INDEX(Ranks!$1:$1048576,$A304,C$1))","v":""},{"$f":"IF($A304=\"N/A\",Ref!$B$36,INDEX(Ranks!$1:$1048576,$A304,D$1))","v":""},{"$f":"IF($A304=\"N/A\",Ref!$B$36,INDEX(Ranks!$1:$1048576,$A304,E$1))","v":""},{"$f":"IF($A304=\"N/A\",\"\",INDEX(Ranks!$1:$1048576,$A304,F$1))","v":""},{"$f":"IF($A304=\"N/A\",\"\",INDEX(Ranks!$1:$1048576,$A304,G$1))","v":""},{"$f":"IF($A304=\"N/A\",\"\",INDEX(Ranks!$1:$1048576,$A304,H$1))","v":""},{"$f":"IF($A304=\"N/A\",\"\",INDEX(Ranks!$1:$1048576,$A304,I$1))","v":""},{"$f":"IF($A304=\"N/A\",\"\",INDEX(Ranks!$1:$1048576,$A304,J$1))","v":""},{"$f":"IF($A304=\"N/A\",\"\",INDEX(Ranks!$1:$1048576,$A304,K$1))","v":""},null,{"$f":"IF($A304=\"N/A\",Ref!$B$36,INDEX(Ranks!$1:$1048576,$A304,M$1))","v":""},{"$f":"IF($A304=\"N/A\",Ref!$B$36,INDEX(Ranks!$1:$1048576,$A304,N$1))","v":""},{"$f":"IF($A304=\"N/A\",Ref!$B$36,INDEX(Ranks!$1:$1048576,$A304,O$1))","v":""},{"$f":"IF($A304=\"N/A\",Ref!$B$36,INDEX(Ranks!$1:$1048576,$A304,P$1))","v":""},{"$f":"IF($A304=\"N/A\",Ref!$B$36,INDEX(Ranks!$1:$1048576,$A304,Q$1))","v":""},{"$f":"IF($A304=\"N/A\",Ref!$B$36,INDEX(Ranks!$1:$1048576,$A304,R$1))","v":""},{"$f":"IF($A304=\"N/A\",Ref!$B$36,INDEX(Ranks!$1:$1048576,$A304,S$1))","v":""},{"$f":"IF($A304=\"N/A\",Ref!$B$36,INDEX(Ranks!$1:$1048576,$A304,T$1))","v":""},{"$f":"IF($A304=\"N/A\",Ref!$B$36,INDEX(Ranks!$1:$1048576,$A304,U$1))","v":""},{"$f":"IF($A304=\"N/A\",Ref!$B$36,INDEX(Ranks!$1:$1048576,$A304,V$1))","v":""},{"$f":"IF($A304=\"N/A\",Ref!$B$36,INDEX(Ranks!$1:$1048576,$A304,W$1))","v":""},{"$f":"IF($A304=\"N/A\",Ref!$B$36,INDEX(Ranks!$1:$1048576,$A304,X$1))","v":""},{"$f":"IF($A304=\"N/A\",Ref!$B$36,INDEX(Ranks!$1:$1048576,$A304,Y$1))","v":""},{"$f":"IF($A304=\"N/A\",Ref!$B$36,INDEX(Ranks!$1:$1048576,$A304,Z$1))","v":""},{"$f":"IF($A304=\"N/A\",Ref!$B$36,INDEX(Ranks!$1:$1048576,$A304,AA$1))","v":""},{"$f":"IF($A304=\"N/A\",Ref!$B$36,INDEX(Ranks!$1:$1048576,$A304,AB$1))","v":""},{"$f":"IF($A304=\"N/A\",Ref!$B$36,INDEX(Ranks!$1:$1048576,$A304,AC$1))","v":""},{"$f":"IF($A304=\"N/A\",Ref!$B$36,INDEX(Ranks!$1:$1048576,$A304,AD$1))","v":""},{"$f":"IF($A304=\"N/A\",Ref!$B$36,INDEX(Ranks!$1:$1048576,$A304,AE$1))","v":""},{"$f":"IF($A304=\"N/A\",Ref!$B$36,INDEX(Ranks!$1:$1048576,$A304,AF$1))","v":""},{"$f":"IF($A304=\"N/A\",Ref!$B$36,INDEX(Ranks!$1:$1048576,$A304,AG$1))","v":""},{"$f":"IF($A304=\"N/A\",Ref!$B$36,INDEX(Ranks!$1:$1048576,$A304,AH$1))","v":""},{"$f":"IF($A304=\"N/A\",Ref!$B$36,INDEX(Ranks!$1:$1048576,$A304,AI$1))","v":""},{"$f":"IF($A304=\"N/A\",Ref!$B$36,INDEX(Ranks!$1:$1048576,$A304,AJ$1))","v":""},{"$f":"IF($A304=\"N/A\",Ref!$B$36,INDEX(Ranks!$1:$1048576,$A304,AK$1))","v":""},{"$f":"IF($A304=\"N/A\",Ref!$B$36,INDEX(Ranks!$1:$1048576,$A304,AL$1))","v":""},{"$f":"IF($A304=\"N/A\",Ref!$B$36,INDEX(Ranks!$1:$1048576,$A304,AM$1))","v":""},{"$f":"IF($A304=\"N/A\",Ref!$B$36,INDEX(Ranks!$1:$1048576,$A304,AN$1))","v":""},{"$f":"IF($A304=\"N/A\",Ref!$B$36,INDEX(Ranks!$1:$1048576,$A304,AO$1))","v":""},{"$f":"IF($A304=\"N/A\",Ref!$B$36,INDEX(Ranks!$1:$1048576,$A304,AP$1))","v":""},{"$f":"IF($A304=\"N/A\",Ref!$B$36,INDEX(Ranks!$1:$1048576,$A304,AQ$1))","v":""},{"$f":"IF($A304=\"N/A\",Ref!$B$36,INDEX(Ranks!$1:$1048576,$A304,AR$1))","v":""},{"$f":"IF($A304=\"N/A\",Ref!$B$36,INDEX(Ranks!$1:$1048576,$A304,AS$1))","v":""},{"$f":"IF($A304=\"N/A\",Ref!$B$36,INDEX(Ranks!$1:$1048576,$A304,AT$1))","v":""},{"$f":"IF($A304=\"N/A\",Ref!$B$36,INDEX(Ranks!$1:$1048576,$A304,AU$1))","v":""},{"$f":"IF($A304=\"N/A\",Ref!$B$36,INDEX(Ranks!$1:$1048576,$A304,AV$1))","v":""},{"$f":"IF($A304=\"N/A\",Ref!$B$36,INDEX(Ranks!$1:$1048576,$A304,AW$1))","v":""},{"$f":"IF($A304=\"N/A\",Ref!$B$36,INDEX(Ranks!$1:$1048576,$A304,AX$1))","v":""},{"$f":"IF($A304=\"N/A\",Ref!$B$36,INDEX(Ranks!$1:$1048576,$A304,AY$1))","v":""},{"$f":"IF($A304=\"N/A\",Ref!$B$36,INDEX(Ranks!$1:$1048576,$A304,AZ$1))","v":""},{"$f":"IF($A304=\"N/A\",Ref!$B$36,INDEX(Ranks!$1:$1048576,$A304,BA$1))","v":""},{"$f":"IF($A304=\"N/A\",Ref!$B$36,INDEX(Ranks!$1:$1048576,$A304,BB$1))","v":""},{"$f":"IF($A304=\"N/A\",Ref!$B$36,INDEX(Ranks!$1:$1048576,$A304,BC$1))","v":""},{"$f":"IF($A304=\"N/A\",Ref!$B$36,INDEX(Ranks!$1:$1048576,$A304,BD$1))","v":""},{"$f":"IF($A304=\"N/A\",Ref!$B$36,INDEX(Ranks!$1:$1048576,$A304,BE$1))","v":""},{"$f":"IF($A304=\"N/A\",Ref!$B$36,INDEX(Ranks!$1:$1048576,$A304,BF$1))","v":""},{"$f":"IF($A304=\"N/A\",Ref!$B$36,INDEX(Ranks!$1:$1048576,$A304,BG$1))","v":""},{"$f":"IF($A304=\"N/A\",Ref!$B$36,INDEX(Ranks!$1:$1048576,$A304,BH$1))","v":""},{"$f":"IF($A304=\"N/A\",Ref!$B$36,INDEX(Ranks!$1:$1048576,$A304,BI$1))","v":""},{"$f":"IF($A304=\"N/A\",Ref!$B$36,INDEX(Ranks!$1:$1048576,$A304,BJ$1))","v":""},{"$f":"IF($A304=\"N/A\",Ref!$B$36,INDEX(Ranks!$1:$1048576,$A304,BK$1))","v":""},{"$f":"IF($A304=\"N/A\",Ref!$B$36,INDEX(Ranks!$1:$1048576,$A304,BL$1))","v":""},{"$f":"IF($A304=\"N/A\",Ref!$B$36,INDEX(Ranks!$1:$1048576,$A304,BM$1))","v":""},{"$f":"IF($A304=\"N/A\",Ref!$B$36,INDEX(Ranks!$1:$1048576,$A304,BN$1))","v":""},{"$f":"IF($A304=\"N/A\",Ref!$B$36,INDEX(Ranks!$1:$1048576,$A304,BO$1))","v":""},{"$f":"IF($A304=\"N/A\",Ref!$B$36,INDEX(Ranks!$1:$1048576,$A304,BP$1))","v":""},{"$f":"IF($A304=\"N/A\",Ref!$B$36,INDEX(Ranks!$1:$1048576,$A304,BQ$1))","v":""},{"$f":"IF($A304=\"N/A\",Ref!$B$36,INDEX(Ranks!$1:$1048576,$A304,BR$1))","v":""},{"$f":"IF($A304=\"N/A\",Ref!$B$36,INDEX(Ranks!$1:$1048576,$A304,BS$1))","v":""},{"$f":"IF($A304=\"N/A\",Ref!$B$36,INDEX(Ranks!$1:$1048576,$A304,BT$1))","v":""},{"$f":"IF($A304=\"N/A\",Ref!$B$36,INDEX(Ranks!$1:$1048576,$A304,BU$1))","v":""},{"$f":"IF($A304=\"N/A\",Ref!$B$36,INDEX(Ranks!$1:$1048576,$A304,BV$1))","v":""},{"$f":"IF($A304=\"N/A\",Ref!$B$36,INDEX(Ranks!$1:$1048576,$A304,BW$1))","v":""},{"$f":"IF($A304=\"N/A\",Ref!$B$36,INDEX(Ranks!$1:$1048576,$A304,BX$1))","v":""},{"$f":"IF($A304=\"N/A\",Ref!$B$36,INDEX(Ranks!$1:$1048576,$A304,BY$1))","v":""},{"$f":"IF($A304=\"N/A\",Ref!$B$36,INDEX(Ranks!$1:$1048576,$A304,BZ$1))","v":""},{"$f":"IF($A304=\"N/A\",Ref!$B$36,INDEX(Ranks!$1:$1048576,$A304,CA$1))","v":""},{"$f":"IF($A304=\"N/A\",Ref!$B$36,INDEX(Ranks!$1:$1048576,$A304,CB$1))","v":""},{"$f":"IF($A304=\"N/A\",Ref!$B$36,INDEX(Ranks!$1:$1048576,$A304,CC$1))","v":""},{"$f":"IF($A304=\"N/A\",Ref!$B$36,INDEX(Ranks!$1:$1048576,$A304,CD$1))","v":""},{"$f":"IF($A304=\"N/A\",Ref!$B$36,INDEX(Ranks!$1:$1048576,$A304,CE$1))","v":""},{"$f":"IF($A304=\"N/A\",Ref!$B$36,INDEX(Ranks!$1:$1048576,$A304,CF$1))","v":""},{"$f":"IF($A304=\"N/A\",Ref!$B$36,INDEX(Ranks!$1:$1048576,$A304,CG$1))","v":""},{"$f":"IF($A304=\"N/A\",Ref!$B$36,INDEX(Ranks!$1:$1048576,$A304,CH$1))","v":""},{"$f":"IF($A304=\"N/A\",Ref!$B$36,INDEX(Ranks!$1:$1048576,$A304,CI$1))","v":""},{"$f":"IF($A304=\"N/A\",Ref!$B$36,INDEX(Ranks!$1:$1048576,$A304,CJ$1))","v":""},{"$f":"IF($A304=\"N/A\",Ref!$B$36,INDEX(Ranks!$1:$1048576,$A304,CK$1))","v":""},{"$f":"IF($A304=\"N/A\",Ref!$B$36,INDEX(Ranks!$1:$1048576,$A304,CL$1))","v":""},{"$f":"IF($A304=\"N/A\",Ref!$B$36,INDEX(Ranks!$1:$1048576,$A304,CM$1))","v":""},{"$f":"IF($A304=\"N/A\",Ref!$B$36,INDEX(Ranks!$1:$1048576,$A304,CN$1))","v":""},{"$f":"IF($A304=\"N/A\",Ref!$B$36,INDEX(Ranks!$1:$1048576,$A304,CO$1))","v":""},{"$f":"IF($A304=\"N/A\",Ref!$B$36,INDEX(Ranks!$1:$1048576,$A304,CP$1))","v":""},{"$f":"IF($A304=\"N/A\",Ref!$B$36,INDEX(Ranks!$1:$1048576,$A304,CQ$1))","v":""},{"$f":"IF($A304=\"N/A\",Ref!$B$36,INDEX(Ranks!$1:$1048576,$A304,CR$1))","v":""},{"$f":"IF($A304=\"N/A\",Ref!$B$36,INDEX(Ranks!$1:$1048576,$A304,CS$1))","v":""},{"$f":"IF($A304=\"N/A\",Ref!$B$36,INDEX(Ranks!$1:$1048576,$A304,CT$1))","v":""},{"$f":"IF($A304=\"N/A\",Ref!$B$36,INDEX(Ranks!$1:$1048576,$A304,CU$1))","v":""},{"$f":"IF($A304=\"N/A\",Ref!$B$36,INDEX(Ranks!$1:$1048576,$A304,CV$1))","v":""},{"$f":"IF($A304=\"N/A\",Ref!$B$36,INDEX(Ranks!$1:$1048576,$A304,CW$1))","v":""},{"$f":"IF($A304=\"N/A\",Ref!$B$36,INDEX(Ranks!$1:$1048576,$A304,CX$1))","v":""},{"$f":"IF($A304=\"N/A\",Ref!$B$36,INDEX(Ranks!$1:$1048576,$A304,CY$1))","v":""},{"$f":"IF($A304=\"N/A\",Ref!$B$36,INDEX(Ranks!$1:$1048576,$A304,CZ$1))","v":""},{"$f":"IF($A304=\"N/A\",Ref!$B$36,INDEX(Ranks!$1:$1048576,$A304,DA$1))","v":""},{"$f":"IF($A304=\"N/A\",Ref!$B$36,INDEX(Ranks!$1:$1048576,$A304,DB$1))","v":""},{"$f":"IF($A304=\"N/A\",Ref!$B$36,INDEX(Ranks!$1:$1048576,$A304,DC$1))","v":""},{"$f":"IF($A304=\"N/A\",Ref!$B$36,INDEX(Ranks!$1:$1048576,$A304,DD$1))","v":""},{"$f":"IF($A304=\"N/A\",Ref!$B$36,INDEX(Ranks!$1:$1048576,$A304,DE$1))","v":""},{"$f":"IF($A304=\"N/A\",Ref!$B$36,INDEX(Ranks!$1:$1048576,$A304,DF$1))","v":""},{"$f":"IF($A304=\"N/A\",Ref!$B$36,INDEX(Ranks!$1:$1048576,$A304,DG$1))","v":""},{"$f":"IF($A304=\"N/A\",Ref!$B$36,INDEX(Ranks!$1:$1048576,$A304,DH$1))","v":""},{"$f":"IF($A304=\"N/A\",Ref!$B$36,INDEX(Ranks!$1:$1048576,$A304,DI$1))","v":""},{"$f":"IF($A304=\"N/A\",Ref!$B$36,INDEX(Ranks!$1:$1048576,$A304,DJ$1))","v":""},{"$f":"IF($A304=\"N/A\",Ref!$B$36,INDEX(Ranks!$1:$1048576,$A304,DK$1))","v":""},{"$f":"IF($A304=\"N/A\",Ref!$B$36,INDEX(Ranks!$1:$1048576,$A304,DL$1))","v":""},{"$f":"IF($A304=\"N/A\",Ref!$B$36,INDEX(Ranks!$1:$1048576,$A304,DM$1))","v":""},{"$f":"IF($A304=\"N/A\",Ref!$B$36,INDEX(Ranks!$1:$1048576,$A304,DN$1))","v":""},{"$f":"IF($A304=\"N/A\",Ref!$B$36,INDEX(Ranks!$1:$1048576,$A304,DO$1))","v":""},{"$f":"IF($A304=\"N/A\",Ref!$B$36,INDEX(Ranks!$1:$1048576,$A304,DP$1))","v":""},{"$f":"IF($A304=\"N/A\",Ref!$B$36,INDEX(Ranks!$1:$1048576,$A304,DQ$1))","v":""},{"$f":"IF($A304=\"N/A\",Ref!$B$36,INDEX(Ranks!$1:$1048576,$A304,DR$1))","v":""},{"$f":"IF($A304=\"N/A\",Ref!$B$36,INDEX(Ranks!$1:$1048576,$A304,DS$1))","v":""},{"$f":"IF($A304=\"N/A\",Ref!$B$36,INDEX(Ranks!$1:$1048576,$A304,DT$1))","v":""},{"$f":"IF($A304=\"N/A\",Ref!$B$36,INDEX(Ranks!$1:$1048576,$A304,DU$1))","v":""},{"$f":"IF($A304=\"N/A\",Ref!$B$36,INDEX(Ranks!$1:$1048576,$A304,DV$1))","v":""},{"$f":"IF($A304=\"N/A\",Ref!$B$36,INDEX(Ranks!$1:$1048576,$A304,DW$1))","v":""},{"$f":"IF($A304=\"N/A\",Ref!$B$36,INDEX(Ranks!$1:$1048576,$A304,DX$1))","v":""},{"$f":"IF($A304=\"N/A\",Ref!$B$36,INDEX(Ranks!$1:$1048576,$A304,DY$1))","v":""},{"$f":"IF($A304=\"N/A\",Ref!$B$36,INDEX(Ranks!$1:$1048576,$A304,DZ$1))","v":""},{"$f":"IF($A304=\"N/A\",Ref!$B$36,INDEX(Ranks!$1:$1048576,$A304,EA$1))","v":""},{"$f":"IF($A304=\"N/A\",Ref!$B$36,INDEX(Ranks!$1:$1048576,$A304,EB$1))","v":""}]
[{"$f":"IFERROR(MATCH('Portfolio Page'!L305,Ranks!L:L,0),\"N/A\")","v":"N/A"},null,{"$f":"IF($A305=\"N/A\",\"\",INDEX(Ranks!$1:$1048576,$A305,C$1))","v":""},{"$f":"IF($A305=\"N/A\",Ref!$B$36,INDEX(Ranks!$1:$1048576,$A305,D$1))","v":""},{"$f":"IF($A305=\"N/A\",Ref!$B$36,INDEX(Ranks!$1:$1048576,$A305,E$1))","v":""},{"$f":"IF($A305=\"N/A\",\"\",INDEX(Ranks!$1:$1048576,$A305,F$1))","v":""},{"$f":"IF($A305=\"N/A\",\"\",INDEX(Ranks!$1:$1048576,$A305,G$1))","v":""},{"$f":"IF($A305=\"N/A\",\"\",INDEX(Ranks!$1:$1048576,$A305,H$1))","v":""},{"$f":"IF($A305=\"N/A\",\"\",INDEX(Ranks!$1:$1048576,$A305,I$1))","v":""},{"$f":"IF($A305=\"N/A\",\"\",INDEX(Ranks!$1:$1048576,$A305,J$1))","v":""},{"$f":"IF($A305=\"N/A\",\"\",INDEX(Ranks!$1:$1048576,$A305,K$1))","v":""},null,{"$f":"IF($A305=\"N/A\",Ref!$B$36,INDEX(Ranks!$1:$1048576,$A305,M$1))","v":""},{"$f":"IF($A305=\"N/A\",Ref!$B$36,INDEX(Ranks!$1:$1048576,$A305,N$1))","v":""},{"$f":"IF($A305=\"N/A\",Ref!$B$36,INDEX(Ranks!$1:$1048576,$A305,O$1))","v":""},{"$f":"IF($A305=\"N/A\",Ref!$B$36,INDEX(Ranks!$1:$1048576,$A305,P$1))","v":""},{"$f":"IF($A305=\"N/A\",Ref!$B$36,INDEX(Ranks!$1:$1048576,$A305,Q$1))","v":""},{"$f":"IF($A305=\"N/A\",Ref!$B$36,INDEX(Ranks!$1:$1048576,$A305,R$1))","v":""},{"$f":"IF($A305=\"N/A\",Ref!$B$36,INDEX(Ranks!$1:$1048576,$A305,S$1))","v":""},{"$f":"IF($A305=\"N/A\",Ref!$B$36,INDEX(Ranks!$1:$1048576,$A305,T$1))","v":""},{"$f":"IF($A305=\"N/A\",Ref!$B$36,INDEX(Ranks!$1:$1048576,$A305,U$1))","v":""},{"$f":"IF($A305=\"N/A\",Ref!$B$36,INDEX(Ranks!$1:$1048576,$A305,V$1))","v":""},{"$f":"IF($A305=\"N/A\",Ref!$B$36,INDEX(Ranks!$1:$1048576,$A305,W$1))","v":""},{"$f":"IF($A305=\"N/A\",Ref!$B$36,INDEX(Ranks!$1:$1048576,$A305,X$1))","v":""},{"$f":"IF($A305=\"N/A\",Ref!$B$36,INDEX(Ranks!$1:$1048576,$A305,Y$1))","v":""},{"$f":"IF($A305=\"N/A\",Ref!$B$36,INDEX(Ranks!$1:$1048576,$A305,Z$1))","v":""},{"$f":"IF($A305=\"N/A\",Ref!$B$36,INDEX(Ranks!$1:$1048576,$A305,AA$1))","v":""},{"$f":"IF($A305=\"N/A\",Ref!$B$36,INDEX(Ranks!$1:$1048576,$A305,AB$1))","v":""},{"$f":"IF($A305=\"N/A\",Ref!$B$36,INDEX(Ranks!$1:$1048576,$A305,AC$1))","v":""},{"$f":"IF($A305=\"N/A\",Ref!$B$36,INDEX(Ranks!$1:$1048576,$A305,AD$1))","v":""},{"$f":"IF($A305=\"N/A\",Ref!$B$36,INDEX(Ranks!$1:$1048576,$A305,AE$1))","v":""},{"$f":"IF($A305=\"N/A\",Ref!$B$36,INDEX(Ranks!$1:$1048576,$A305,AF$1))","v":""},{"$f":"IF($A305=\"N/A\",Ref!$B$36,INDEX(Ranks!$1:$1048576,$A305,AG$1))","v":""},{"$f":"IF($A305=\"N/A\",Ref!$B$36,INDEX(Ranks!$1:$1048576,$A305,AH$1))","v":""},{"$f":"IF($A305=\"N/A\",Ref!$B$36,INDEX(Ranks!$1:$1048576,$A305,AI$1))","v":""},{"$f":"IF($A305=\"N/A\",Ref!$B$36,INDEX(Ranks!$1:$1048576,$A305,AJ$1))","v":""},{"$f":"IF($A305=\"N/A\",Ref!$B$36,INDEX(Ranks!$1:$1048576,$A305,AK$1))","v":""},{"$f":"IF($A305=\"N/A\",Ref!$B$36,INDEX(Ranks!$1:$1048576,$A305,AL$1))","v":""},{"$f":"IF($A305=\"N/A\",Ref!$B$36,INDEX(Ranks!$1:$1048576,$A305,AM$1))","v":""},{"$f":"IF($A305=\"N/A\",Ref!$B$36,INDEX(Ranks!$1:$1048576,$A305,AN$1))","v":""},{"$f":"IF($A305=\"N/A\",Ref!$B$36,INDEX(Ranks!$1:$1048576,$A305,AO$1))","v":""},{"$f":"IF($A305=\"N/A\",Ref!$B$36,INDEX(Ranks!$1:$1048576,$A305,AP$1))","v":""},{"$f":"IF($A305=\"N/A\",Ref!$B$36,INDEX(Ranks!$1:$1048576,$A305,AQ$1))","v":""},{"$f":"IF($A305=\"N/A\",Ref!$B$36,INDEX(Ranks!$1:$1048576,$A305,AR$1))","v":""},{"$f":"IF($A305=\"N/A\",Ref!$B$36,INDEX(Ranks!$1:$1048576,$A305,AS$1))","v":""},{"$f":"IF($A305=\"N/A\",Ref!$B$36,INDEX(Ranks!$1:$1048576,$A305,AT$1))","v":""},{"$f":"IF($A305=\"N/A\",Ref!$B$36,INDEX(Ranks!$1:$1048576,$A305,AU$1))","v":""},{"$f":"IF($A305=\"N/A\",Ref!$B$36,INDEX(Ranks!$1:$1048576,$A305,AV$1))","v":""},{"$f":"IF($A305=\"N/A\",Ref!$B$36,INDEX(Ranks!$1:$1048576,$A305,AW$1))","v":""},{"$f":"IF($A305=\"N/A\",Ref!$B$36,INDEX(Ranks!$1:$1048576,$A305,AX$1))","v":""},{"$f":"IF($A305=\"N/A\",Ref!$B$36,INDEX(Ranks!$1:$1048576,$A305,AY$1))","v":""},{"$f":"IF($A305=\"N/A\",Ref!$B$36,INDEX(Ranks!$1:$1048576,$A305,AZ$1))","v":""},{"$f":"IF($A305=\"N/A\",Ref!$B$36,INDEX(Ranks!$1:$1048576,$A305,BA$1))","v":""},{"$f":"IF($A305=\"N/A\",Ref!$B$36,INDEX(Ranks!$1:$1048576,$A305,BB$1))","v":""},{"$f":"IF($A305=\"N/A\",Ref!$B$36,INDEX(Ranks!$1:$1048576,$A305,BC$1))","v":""},{"$f":"IF($A305=\"N/A\",Ref!$B$36,INDEX(Ranks!$1:$1048576,$A305,BD$1))","v":""},{"$f":"IF($A305=\"N/A\",Ref!$B$36,INDEX(Ranks!$1:$1048576,$A305,BE$1))","v":""},{"$f":"IF($A305=\"N/A\",Ref!$B$36,INDEX(Ranks!$1:$1048576,$A305,BF$1))","v":""},{"$f":"IF($A305=\"N/A\",Ref!$B$36,INDEX(Ranks!$1:$1048576,$A305,BG$1))","v":""},{"$f":"IF($A305=\"N/A\",Ref!$B$36,INDEX(Ranks!$1:$1048576,$A305,BH$1))","v":""},{"$f":"IF($A305=\"N/A\",Ref!$B$36,INDEX(Ranks!$1:$1048576,$A305,BI$1))","v":""},{"$f":"IF($A305=\"N/A\",Ref!$B$36,INDEX(Ranks!$1:$1048576,$A305,BJ$1))","v":""},{"$f":"IF($A305=\"N/A\",Ref!$B$36,INDEX(Ranks!$1:$1048576,$A305,BK$1))","v":""},{"$f":"IF($A305=\"N/A\",Ref!$B$36,INDEX(Ranks!$1:$1048576,$A305,BL$1))","v":""},{"$f":"IF($A305=\"N/A\",Ref!$B$36,INDEX(Ranks!$1:$1048576,$A305,BM$1))","v":""},{"$f":"IF($A305=\"N/A\",Ref!$B$36,INDEX(Ranks!$1:$1048576,$A305,BN$1))","v":""},{"$f":"IF($A305=\"N/A\",Ref!$B$36,INDEX(Ranks!$1:$1048576,$A305,BO$1))","v":""},{"$f":"IF($A305=\"N/A\",Ref!$B$36,INDEX(Ranks!$1:$1048576,$A305,BP$1))","v":""},{"$f":"IF($A305=\"N/A\",Ref!$B$36,INDEX(Ranks!$1:$1048576,$A305,BQ$1))","v":""},{"$f":"IF($A305=\"N/A\",Ref!$B$36,INDEX(Ranks!$1:$1048576,$A305,BR$1))","v":""},{"$f":"IF($A305=\"N/A\",Ref!$B$36,INDEX(Ranks!$1:$1048576,$A305,BS$1))","v":""},{"$f":"IF($A305=\"N/A\",Ref!$B$36,INDEX(Ranks!$1:$1048576,$A305,BT$1))","v":""},{"$f":"IF($A305=\"N/A\",Ref!$B$36,INDEX(Ranks!$1:$1048576,$A305,BU$1))","v":""},{"$f":"IF($A305=\"N/A\",Ref!$B$36,INDEX(Ranks!$1:$1048576,$A305,BV$1))","v":""},{"$f":"IF($A305=\"N/A\",Ref!$B$36,INDEX(Ranks!$1:$1048576,$A305,BW$1))","v":""},{"$f":"IF($A305=\"N/A\",Ref!$B$36,INDEX(Ranks!$1:$1048576,$A305,BX$1))","v":""},{"$f":"IF($A305=\"N/A\",Ref!$B$36,INDEX(Ranks!$1:$1048576,$A305,BY$1))","v":""},{"$f":"IF($A305=\"N/A\",Ref!$B$36,INDEX(Ranks!$1:$1048576,$A305,BZ$1))","v":""},{"$f":"IF($A305=\"N/A\",Ref!$B$36,INDEX(Ranks!$1:$1048576,$A305,CA$1))","v":""},{"$f":"IF($A305=\"N/A\",Ref!$B$36,INDEX(Ranks!$1:$1048576,$A305,CB$1))","v":""},{"$f":"IF($A305=\"N/A\",Ref!$B$36,INDEX(Ranks!$1:$1048576,$A305,CC$1))","v":""},{"$f":"IF($A305=\"N/A\",Ref!$B$36,INDEX(Ranks!$1:$1048576,$A305,CD$1))","v":""},{"$f":"IF($A305=\"N/A\",Ref!$B$36,INDEX(Ranks!$1:$1048576,$A305,CE$1))","v":""},{"$f":"IF($A305=\"N/A\",Ref!$B$36,INDEX(Ranks!$1:$1048576,$A305,CF$1))","v":""},{"$f":"IF($A305=\"N/A\",Ref!$B$36,INDEX(Ranks!$1:$1048576,$A305,CG$1))","v":""},{"$f":"IF($A305=\"N/A\",Ref!$B$36,INDEX(Ranks!$1:$1048576,$A305,CH$1))","v":""},{"$f":"IF($A305=\"N/A\",Ref!$B$36,INDEX(Ranks!$1:$1048576,$A305,CI$1))","v":""},{"$f":"IF($A305=\"N/A\",Ref!$B$36,INDEX(Ranks!$1:$1048576,$A305,CJ$1))","v":""},{"$f":"IF($A305=\"N/A\",Ref!$B$36,INDEX(Ranks!$1:$1048576,$A305,CK$1))","v":""},{"$f":"IF($A305=\"N/A\",Ref!$B$36,INDEX(Ranks!$1:$1048576,$A305,CL$1))","v":""},{"$f":"IF($A305=\"N/A\",Ref!$B$36,INDEX(Ranks!$1:$1048576,$A305,CM$1))","v":""},{"$f":"IF($A305=\"N/A\",Ref!$B$36,INDEX(Ranks!$1:$1048576,$A305,CN$1))","v":""},{"$f":"IF($A305=\"N/A\",Ref!$B$36,INDEX(Ranks!$1:$1048576,$A305,CO$1))","v":""},{"$f":"IF($A305=\"N/A\",Ref!$B$36,INDEX(Ranks!$1:$1048576,$A305,CP$1))","v":""},{"$f":"IF($A305=\"N/A\",Ref!$B$36,INDEX(Ranks!$1:$1048576,$A305,CQ$1))","v":""},{"$f":"IF($A305=\"N/A\",Ref!$B$36,INDEX(Ranks!$1:$1048576,$A305,CR$1))","v":""},{"$f":"IF($A305=\"N/A\",Ref!$B$36,INDEX(Ranks!$1:$1048576,$A305,CS$1))","v":""},{"$f":"IF($A305=\"N/A\",Ref!$B$36,INDEX(Ranks!$1:$1048576,$A305,CT$1))","v":""},{"$f":"IF($A305=\"N/A\",Ref!$B$36,INDEX(Ranks!$1:$1048576,$A305,CU$1))","v":""},{"$f":"IF($A305=\"N/A\",Ref!$B$36,INDEX(Ranks!$1:$1048576,$A305,CV$1))","v":""},{"$f":"IF($A305=\"N/A\",Ref!$B$36,INDEX(Ranks!$1:$1048576,$A305,CW$1))","v":""},{"$f":"IF($A305=\"N/A\",Ref!$B$36,INDEX(Ranks!$1:$1048576,$A305,CX$1))","v":""},{"$f":"IF($A305=\"N/A\",Ref!$B$36,INDEX(Ranks!$1:$1048576,$A305,CY$1))","v":""},{"$f":"IF($A305=\"N/A\",Ref!$B$36,INDEX(Ranks!$1:$1048576,$A305,CZ$1))","v":""},{"$f":"IF($A305=\"N/A\",Ref!$B$36,INDEX(Ranks!$1:$1048576,$A305,DA$1))","v":""},{"$f":"IF($A305=\"N/A\",Ref!$B$36,INDEX(Ranks!$1:$1048576,$A305,DB$1))","v":""},{"$f":"IF($A305=\"N/A\",Ref!$B$36,INDEX(Ranks!$1:$1048576,$A305,DC$1))","v":""},{"$f":"IF($A305=\"N/A\",Ref!$B$36,INDEX(Ranks!$1:$1048576,$A305,DD$1))","v":""},{"$f":"IF($A305=\"N/A\",Ref!$B$36,INDEX(Ranks!$1:$1048576,$A305,DE$1))","v":""},{"$f":"IF($A305=\"N/A\",Ref!$B$36,INDEX(Ranks!$1:$1048576,$A305,DF$1))","v":""},{"$f":"IF($A305=\"N/A\",Ref!$B$36,INDEX(Ranks!$1:$1048576,$A305,DG$1))","v":""},{"$f":"IF($A305=\"N/A\",Ref!$B$36,INDEX(Ranks!$1:$1048576,$A305,DH$1))","v":""},{"$f":"IF($A305=\"N/A\",Ref!$B$36,INDEX(Ranks!$1:$1048576,$A305,DI$1))","v":""},{"$f":"IF($A305=\"N/A\",Ref!$B$36,INDEX(Ranks!$1:$1048576,$A305,DJ$1))","v":""},{"$f":"IF($A305=\"N/A\",Ref!$B$36,INDEX(Ranks!$1:$1048576,$A305,DK$1))","v":""},{"$f":"IF($A305=\"N/A\",Ref!$B$36,INDEX(Ranks!$1:$1048576,$A305,DL$1))","v":""},{"$f":"IF($A305=\"N/A\",Ref!$B$36,INDEX(Ranks!$1:$1048576,$A305,DM$1))","v":""},{"$f":"IF($A305=\"N/A\",Ref!$B$36,INDEX(Ranks!$1:$1048576,$A305,DN$1))","v":""},{"$f":"IF($A305=\"N/A\",Ref!$B$36,INDEX(Ranks!$1:$1048576,$A305,DO$1))","v":""},{"$f":"IF($A305=\"N/A\",Ref!$B$36,INDEX(Ranks!$1:$1048576,$A305,DP$1))","v":""},{"$f":"IF($A305=\"N/A\",Ref!$B$36,INDEX(Ranks!$1:$1048576,$A305,DQ$1))","v":""},{"$f":"IF($A305=\"N/A\",Ref!$B$36,INDEX(Ranks!$1:$1048576,$A305,DR$1))","v":""},{"$f":"IF($A305=\"N/A\",Ref!$B$36,INDEX(Ranks!$1:$1048576,$A305,DS$1))","v":""},{"$f":"IF($A305=\"N/A\",Ref!$B$36,INDEX(Ranks!$1:$1048576,$A305,DT$1))","v":""},{"$f":"IF($A305=\"N/A\",Ref!$B$36,INDEX(Ranks!$1:$1048576,$A305,DU$1))","v":""},{"$f":"IF($A305=\"N/A\",Ref!$B$36,INDEX(Ranks!$1:$1048576,$A305,DV$1))","v":""},{"$f":"IF($A305=\"N/A\",Ref!$B$36,INDEX(Ranks!$1:$1048576,$A305,DW$1))","v":""},{"$f":"IF($A305=\"N/A\",Ref!$B$36,INDEX(Ranks!$1:$1048576,$A305,DX$1))","v":""},{"$f":"IF($A305=\"N/A\",Ref!$B$36,INDEX(Ranks!$1:$1048576,$A305,DY$1))","v":""},{"$f":"IF($A305=\"N/A\",Ref!$B$36,INDEX(Ranks!$1:$1048576,$A305,DZ$1))","v":""},{"$f":"IF($A305=\"N/A\",Ref!$B$36,INDEX(Ranks!$1:$1048576,$A305,EA$1))","v":""},{"$f":"IF($A305=\"N/A\",Ref!$B$36,INDEX(Ranks!$1:$1048576,$A305,EB$1))","v":""}]
[{"$f":"IFERROR(MATCH('Portfolio Page'!L306,Ranks!L:L,0),\"N/A\")","v":"N/A"},null,{"$f":"IF($A306=\"N/A\",\"\",INDEX(Ranks!$1:$1048576,$A306,C$1))","v":""},{"$f":"IF($A306=\"N/A\",Ref!$B$36,INDEX(Ranks!$1:$1048576,$A306,D$1))","v":""},{"$f":"IF($A306=\"N/A\",Ref!$B$36,INDEX(Ranks!$1:$1048576,$A306,E$1))","v":""},{"$f":"IF($A306=\"N/A\",\"\",INDEX(Ranks!$1:$1048576,$A306,F$1))","v":""},{"$f":"IF($A306=\"N/A\",\"\",INDEX(Ranks!$1:$1048576,$A306,G$1))","v":""},{"$f":"IF($A306=\"N/A\",\"\",INDEX(Ranks!$1:$1048576,$A306,H$1))","v":""},{"$f":"IF($A306=\"N/A\",\"\",INDEX(Ranks!$1:$1048576,$A306,I$1))","v":""},{"$f":"IF($A306=\"N/A\",\"\",INDEX(Ranks!$1:$1048576,$A306,J$1))","v":""},{"$f":"IF($A306=\"N/A\",\"\",INDEX(Ranks!$1:$1048576,$A306,K$1))","v":""},null,{"$f":"IF($A306=\"N/A\",Ref!$B$36,INDEX(Ranks!$1:$1048576,$A306,M$1))","v":""},{"$f":"IF($A306=\"N/A\",Ref!$B$36,INDEX(Ranks!$1:$1048576,$A306,N$1))","v":""},{"$f":"IF($A306=\"N/A\",Ref!$B$36,INDEX(Ranks!$1:$1048576,$A306,O$1))","v":""},{"$f":"IF($A306=\"N/A\",Ref!$B$36,INDEX(Ranks!$1:$1048576,$A306,P$1))","v":""},{"$f":"IF($A306=\"N/A\",Ref!$B$36,INDEX(Ranks!$1:$1048576,$A306,Q$1))","v":""},{"$f":"IF($A306=\"N/A\",Ref!$B$36,INDEX(Ranks!$1:$1048576,$A306,R$1))","v":""},{"$f":"IF($A306=\"N/A\",Ref!$B$36,INDEX(Ranks!$1:$1048576,$A306,S$1))","v":""},{"$f":"IF($A306=\"N/A\",Ref!$B$36,INDEX(Ranks!$1:$1048576,$A306,T$1))","v":""},{"$f":"IF($A306=\"N/A\",Ref!$B$36,INDEX(Ranks!$1:$1048576,$A306,U$1))","v":""},{"$f":"IF($A306=\"N/A\",Ref!$B$36,INDEX(Ranks!$1:$1048576,$A306,V$1))","v":""},{"$f":"IF($A306=\"N/A\",Ref!$B$36,INDEX(Ranks!$1:$1048576,$A306,W$1))","v":""},{"$f":"IF($A306=\"N/A\",Ref!$B$36,INDEX(Ranks!$1:$1048576,$A306,X$1))","v":""},{"$f":"IF($A306=\"N/A\",Ref!$B$36,INDEX(Ranks!$1:$1048576,$A306,Y$1))","v":""},{"$f":"IF($A306=\"N/A\",Ref!$B$36,INDEX(Ranks!$1:$1048576,$A306,Z$1))","v":""},{"$f":"IF($A306=\"N/A\",Ref!$B$36,INDEX(Ranks!$1:$1048576,$A306,AA$1))","v":""},{"$f":"IF($A306=\"N/A\",Ref!$B$36,INDEX(Ranks!$1:$1048576,$A306,AB$1))","v":""},{"$f":"IF($A306=\"N/A\",Ref!$B$36,INDEX(Ranks!$1:$1048576,$A306,AC$1))","v":""},{"$f":"IF($A306=\"N/A\",Ref!$B$36,INDEX(Ranks!$1:$1048576,$A306,AD$1))","v":""},{"$f":"IF($A306=\"N/A\",Ref!$B$36,INDEX(Ranks!$1:$1048576,$A306,AE$1))","v":""},{"$f":"IF($A306=\"N/A\",Ref!$B$36,INDEX(Ranks!$1:$1048576,$A306,AF$1))","v":""},{"$f":"IF($A306=\"N/A\",Ref!$B$36,INDEX(Ranks!$1:$1048576,$A306,AG$1))","v":""},{"$f":"IF($A306=\"N/A\",Ref!$B$36,INDEX(Ranks!$1:$1048576,$A306,AH$1))","v":""},{"$f":"IF($A306=\"N/A\",Ref!$B$36,INDEX(Ranks!$1:$1048576,$A306,AI$1))","v":""},{"$f":"IF($A306=\"N/A\",Ref!$B$36,INDEX(Ranks!$1:$1048576,$A306,AJ$1))","v":""},{"$f":"IF($A306=\"N/A\",Ref!$B$36,INDEX(Ranks!$1:$1048576,$A306,AK$1))","v":""},{"$f":"IF($A306=\"N/A\",Ref!$B$36,INDEX(Ranks!$1:$1048576,$A306,AL$1))","v":""},{"$f":"IF($A306=\"N/A\",Ref!$B$36,INDEX(Ranks!$1:$1048576,$A306,AM$1))","v":""},{"$f":"IF($A306=\"N/A\",Ref!$B$36,INDEX(Ranks!$1:$1048576,$A306,AN$1))","v":""},{"$f":"IF($A306=\"N/A\",Ref!$B$36,INDEX(Ranks!$1:$1048576,$A306,AO$1))","v":""},{"$f":"IF($A306=\"N/A\",Ref!$B$36,INDEX(Ranks!$1:$1048576,$A306,AP$1))","v":""},{"$f":"IF($A306=\"N/A\",Ref!$B$36,INDEX(Ranks!$1:$1048576,$A306,AQ$1))","v":""},{"$f":"IF($A306=\"N/A\",Ref!$B$36,INDEX(Ranks!$1:$1048576,$A306,AR$1))","v":""},{"$f":"IF($A306=\"N/A\",Ref!$B$36,INDEX(Ranks!$1:$1048576,$A306,AS$1))","v":""},{"$f":"IF($A306=\"N/A\",Ref!$B$36,INDEX(Ranks!$1:$1048576,$A306,AT$1))","v":""},{"$f":"IF($A306=\"N/A\",Ref!$B$36,INDEX(Ranks!$1:$1048576,$A306,AU$1))","v":""},{"$f":"IF($A306=\"N/A\",Ref!$B$36,INDEX(Ranks!$1:$1048576,$A306,AV$1))","v":""},{"$f":"IF($A306=\"N/A\",Ref!$B$36,INDEX(Ranks!$1:$1048576,$A306,AW$1))","v":""},{"$f":"IF($A306=\"N/A\",Ref!$B$36,INDEX(Ranks!$1:$1048576,$A306,AX$1))","v":""},{"$f":"IF($A306=\"N/A\",Ref!$B$36,INDEX(Ranks!$1:$1048576,$A306,AY$1))","v":""},{"$f":"IF($A306=\"N/A\",Ref!$B$36,INDEX(Ranks!$1:$1048576,$A306,AZ$1))","v":""},{"$f":"IF($A306=\"N/A\",Ref!$B$36,INDEX(Ranks!$1:$1048576,$A306,BA$1))","v":""},{"$f":"IF($A306=\"N/A\",Ref!$B$36,INDEX(Ranks!$1:$1048576,$A306,BB$1))","v":""},{"$f":"IF($A306=\"N/A\",Ref!$B$36,INDEX(Ranks!$1:$1048576,$A306,BC$1))","v":""},{"$f":"IF($A306=\"N/A\",Ref!$B$36,INDEX(Ranks!$1:$1048576,$A306,BD$1))","v":""},{"$f":"IF($A306=\"N/A\",Ref!$B$36,INDEX(Ranks!$1:$1048576,$A306,BE$1))","v":""},{"$f":"IF($A306=\"N/A\",Ref!$B$36,INDEX(Ranks!$1:$1048576,$A306,BF$1))","v":""},{"$f":"IF($A306=\"N/A\",Ref!$B$36,INDEX(Ranks!$1:$1048576,$A306,BG$1))","v":""},{"$f":"IF($A306=\"N/A\",Ref!$B$36,INDEX(Ranks!$1:$1048576,$A306,BH$1))","v":""},{"$f":"IF($A306=\"N/A\",Ref!$B$36,INDEX(Ranks!$1:$1048576,$A306,BI$1))","v":""},{"$f":"IF($A306=\"N/A\",Ref!$B$36,INDEX(Ranks!$1:$1048576,$A306,BJ$1))","v":""},{"$f":"IF($A306=\"N/A\",Ref!$B$36,INDEX(Ranks!$1:$1048576,$A306,BK$1))","v":""},{"$f":"IF($A306=\"N/A\",Ref!$B$36,INDEX(Ranks!$1:$1048576,$A306,BL$1))","v":""},{"$f":"IF($A306=\"N/A\",Ref!$B$36,INDEX(Ranks!$1:$1048576,$A306,BM$1))","v":""},{"$f":"IF($A306=\"N/A\",Ref!$B$36,INDEX(Ranks!$1:$1048576,$A306,BN$1))","v":""},{"$f":"IF($A306=\"N/A\",Ref!$B$36,INDEX(Ranks!$1:$1048576,$A306,BO$1))","v":""},{"$f":"IF($A306=\"N/A\",Ref!$B$36,INDEX(Ranks!$1:$1048576,$A306,BP$1))","v":""},{"$f":"IF($A306=\"N/A\",Ref!$B$36,INDEX(Ranks!$1:$1048576,$A306,BQ$1))","v":""},{"$f":"IF($A306=\"N/A\",Ref!$B$36,INDEX(Ranks!$1:$1048576,$A306,BR$1))","v":""},{"$f":"IF($A306=\"N/A\",Ref!$B$36,INDEX(Ranks!$1:$1048576,$A306,BS$1))","v":""},{"$f":"IF($A306=\"N/A\",Ref!$B$36,INDEX(Ranks!$1:$1048576,$A306,BT$1))","v":""},{"$f":"IF($A306=\"N/A\",Ref!$B$36,INDEX(Ranks!$1:$1048576,$A306,BU$1))","v":""},{"$f":"IF($A306=\"N/A\",Ref!$B$36,INDEX(Ranks!$1:$1048576,$A306,BV$1))","v":""},{"$f":"IF($A306=\"N/A\",Ref!$B$36,INDEX(Ranks!$1:$1048576,$A306,BW$1))","v":""},{"$f":"IF($A306=\"N/A\",Ref!$B$36,INDEX(Ranks!$1:$1048576,$A306,BX$1))","v":""},{"$f":"IF($A306=\"N/A\",Ref!$B$36,INDEX(Ranks!$1:$1048576,$A306,BY$1))","v":""},{"$f":"IF($A306=\"N/A\",Ref!$B$36,INDEX(Ranks!$1:$1048576,$A306,BZ$1))","v":""},{"$f":"IF($A306=\"N/A\",Ref!$B$36,INDEX(Ranks!$1:$1048576,$A306,CA$1))","v":""},{"$f":"IF($A306=\"N/A\",Ref!$B$36,INDEX(Ranks!$1:$1048576,$A306,CB$1))","v":""},{"$f":"IF($A306=\"N/A\",Ref!$B$36,INDEX(Ranks!$1:$1048576,$A306,CC$1))","v":""},{"$f":"IF($A306=\"N/A\",Ref!$B$36,INDEX(Ranks!$1:$1048576,$A306,CD$1))","v":""},{"$f":"IF($A306=\"N/A\",Ref!$B$36,INDEX(Ranks!$1:$1048576,$A306,CE$1))","v":""},{"$f":"IF($A306=\"N/A\",Ref!$B$36,INDEX(Ranks!$1:$1048576,$A306,CF$1))","v":""},{"$f":"IF($A306=\"N/A\",Ref!$B$36,INDEX(Ranks!$1:$1048576,$A306,CG$1))","v":""},{"$f":"IF($A306=\"N/A\",Ref!$B$36,INDEX(Ranks!$1:$1048576,$A306,CH$1))","v":""},{"$f":"IF($A306=\"N/A\",Ref!$B$36,INDEX(Ranks!$1:$1048576,$A306,CI$1))","v":""},{"$f":"IF($A306=\"N/A\",Ref!$B$36,INDEX(Ranks!$1:$1048576,$A306,CJ$1))","v":""},{"$f":"IF($A306=\"N/A\",Ref!$B$36,INDEX(Ranks!$1:$1048576,$A306,CK$1))","v":""},{"$f":"IF($A306=\"N/A\",Ref!$B$36,INDEX(Ranks!$1:$1048576,$A306,CL$1))","v":""},{"$f":"IF($A306=\"N/A\",Ref!$B$36,INDEX(Ranks!$1:$1048576,$A306,CM$1))","v":""},{"$f":"IF($A306=\"N/A\",Ref!$B$36,INDEX(Ranks!$1:$1048576,$A306,CN$1))","v":""},{"$f":"IF($A306=\"N/A\",Ref!$B$36,INDEX(Ranks!$1:$1048576,$A306,CO$1))","v":""},{"$f":"IF($A306=\"N/A\",Ref!$B$36,INDEX(Ranks!$1:$1048576,$A306,CP$1))","v":""},{"$f":"IF($A306=\"N/A\",Ref!$B$36,INDEX(Ranks!$1:$1048576,$A306,CQ$1))","v":""},{"$f":"IF($A306=\"N/A\",Ref!$B$36,INDEX(Ranks!$1:$1048576,$A306,CR$1))","v":""},{"$f":"IF($A306=\"N/A\",Ref!$B$36,INDEX(Ranks!$1:$1048576,$A306,CS$1))","v":""},{"$f":"IF($A306=\"N/A\",Ref!$B$36,INDEX(Ranks!$1:$1048576,$A306,CT$1))","v":""},{"$f":"IF($A306=\"N/A\",Ref!$B$36,INDEX(Ranks!$1:$1048576,$A306,CU$1))","v":""},{"$f":"IF($A306=\"N/A\",Ref!$B$36,INDEX(Ranks!$1:$1048576,$A306,CV$1))","v":""},{"$f":"IF($A306=\"N/A\",Ref!$B$36,INDEX(Ranks!$1:$1048576,$A306,CW$1))","v":""},{"$f":"IF($A306=\"N/A\",Ref!$B$36,INDEX(Ranks!$1:$1048576,$A306,CX$1))","v":""},{"$f":"IF($A306=\"N/A\",Ref!$B$36,INDEX(Ranks!$1:$1048576,$A306,CY$1))","v":""},{"$f":"IF($A306=\"N/A\",Ref!$B$36,INDEX(Ranks!$1:$1048576,$A306,CZ$1))","v":""},{"$f":"IF($A306=\"N/A\",Ref!$B$36,INDEX(Ranks!$1:$1048576,$A306,DA$1))","v":""},{"$f":"IF($A306=\"N/A\",Ref!$B$36,INDEX(Ranks!$1:$1048576,$A306,DB$1))","v":""},{"$f":"IF($A306=\"N/A\",Ref!$B$36,INDEX(Ranks!$1:$1048576,$A306,DC$1))","v":""},{"$f":"IF($A306=\"N/A\",Ref!$B$36,INDEX(Ranks!$1:$1048576,$A306,DD$1))","v":""},{"$f":"IF($A306=\"N/A\",Ref!$B$36,INDEX(Ranks!$1:$1048576,$A306,DE$1))","v":""},{"$f":"IF($A306=\"N/A\",Ref!$B$36,INDEX(Ranks!$1:$1048576,$A306,DF$1))","v":""},{"$f":"IF($A306=\"N/A\",Ref!$B$36,INDEX(Ranks!$1:$1048576,$A306,DG$1))","v":""},{"$f":"IF($A306=\"N/A\",Ref!$B$36,INDEX(Ranks!$1:$1048576,$A306,DH$1))","v":""},{"$f":"IF($A306=\"N/A\",Ref!$B$36,INDEX(Ranks!$1:$1048576,$A306,DI$1))","v":""},{"$f":"IF($A306=\"N/A\",Ref!$B$36,INDEX(Ranks!$1:$1048576,$A306,DJ$1))","v":""},{"$f":"IF($A306=\"N/A\",Ref!$B$36,INDEX(Ranks!$1:$1048576,$A306,DK$1))","v":""},{"$f":"IF($A306=\"N/A\",Ref!$B$36,INDEX(Ranks!$1:$1048576,$A306,DL$1))","v":""},{"$f":"IF($A306=\"N/A\",Ref!$B$36,INDEX(Ranks!$1:$1048576,$A306,DM$1))","v":""},{"$f":"IF($A306=\"N/A\",Ref!$B$36,INDEX(Ranks!$1:$1048576,$A306,DN$1))","v":""},{"$f":"IF($A306=\"N/A\",Ref!$B$36,INDEX(Ranks!$1:$1048576,$A306,DO$1))","v":""},{"$f":"IF($A306=\"N/A\",Ref!$B$36,INDEX(Ranks!$1:$1048576,$A306,DP$1))","v":""},{"$f":"IF($A306=\"N/A\",Ref!$B$36,INDEX(Ranks!$1:$1048576,$A306,DQ$1))","v":""},{"$f":"IF($A306=\"N/A\",Ref!$B$36,INDEX(Ranks!$1:$1048576,$A306,DR$1))","v":""},{"$f":"IF($A306=\"N/A\",Ref!$B$36,INDEX(Ranks!$1:$1048576,$A306,DS$1))","v":""},{"$f":"IF($A306=\"N/A\",Ref!$B$36,INDEX(Ranks!$1:$1048576,$A306,DT$1))","v":""},{"$f":"IF($A306=\"N/A\",Ref!$B$36,INDEX(Ranks!$1:$1048576,$A306,DU$1))","v":""},{"$f":"IF($A306=\"N/A\",Ref!$B$36,INDEX(Ranks!$1:$1048576,$A306,DV$1))","v":""},{"$f":"IF($A306=\"N/A\",Ref!$B$36,INDEX(Ranks!$1:$1048576,$A306,DW$1))","v":""},{"$f":"IF($A306=\"N/A\",Ref!$B$36,INDEX(Ranks!$1:$1048576,$A306,DX$1))","v":""},{"$f":"IF($A306=\"N/A\",Ref!$B$36,INDEX(Ranks!$1:$1048576,$A306,DY$1))","v":""},{"$f":"IF($A306=\"N/A\",Ref!$B$36,INDEX(Ranks!$1:$1048576,$A306,DZ$1))","v":""},{"$f":"IF($A306=\"N/A\",Ref!$B$36,INDEX(Ranks!$1:$1048576,$A306,EA$1))","v":""},{"$f":"IF($A306=\"N/A\",Ref!$B$36,INDEX(Ranks!$1:$1048576,$A306,EB$1))","v":""}]
[{"$f":"IFERROR(MATCH('Portfolio Page'!L307,Ranks!L:L,0),\"N/A\")","v":"N/A"},null,{"$f":"IF($A307=\"N/A\",\"\",INDEX(Ranks!$1:$1048576,$A307,C$1))","v":""},{"$f":"IF($A307=\"N/A\",Ref!$B$36,INDEX(Ranks!$1:$1048576,$A307,D$1))","v":""},{"$f":"IF($A307=\"N/A\",Ref!$B$36,INDEX(Ranks!$1:$1048576,$A307,E$1))","v":""},{"$f":"IF($A307=\"N/A\",\"\",INDEX(Ranks!$1:$1048576,$A307,F$1))","v":""},{"$f":"IF($A307=\"N/A\",\"\",INDEX(Ranks!$1:$1048576,$A307,G$1))","v":""},{"$f":"IF($A307=\"N/A\",\"\",INDEX(Ranks!$1:$1048576,$A307,H$1))","v":""},{"$f":"IF($A307=\"N/A\",\"\",INDEX(Ranks!$1:$1048576,$A307,I$1))","v":""},{"$f":"IF($A307=\"N/A\",\"\",INDEX(Ranks!$1:$1048576,$A307,J$1))","v":""},{"$f":"IF($A307=\"N/A\",\"\",INDEX(Ranks!$1:$1048576,$A307,K$1))","v":""},null,{"$f":"IF($A307=\"N/A\",Ref!$B$36,INDEX(Ranks!$1:$1048576,$A307,M$1))","v":""},{"$f":"IF($A307=\"N/A\",Ref!$B$36,INDEX(Ranks!$1:$1048576,$A307,N$1))","v":""},{"$f":"IF($A307=\"N/A\",Ref!$B$36,INDEX(Ranks!$1:$1048576,$A307,O$1))","v":""},{"$f":"IF($A307=\"N/A\",Ref!$B$36,INDEX(Ranks!$1:$1048576,$A307,P$1))","v":""},{"$f":"IF($A307=\"N/A\",Ref!$B$36,INDEX(Ranks!$1:$1048576,$A307,Q$1))","v":""},{"$f":"IF($A307=\"N/A\",Ref!$B$36,INDEX(Ranks!$1:$1048576,$A307,R$1))","v":""},{"$f":"IF($A307=\"N/A\",Ref!$B$36,INDEX(Ranks!$1:$1048576,$A307,S$1))","v":""},{"$f":"IF($A307=\"N/A\",Ref!$B$36,INDEX(Ranks!$1:$1048576,$A307,T$1))","v":""},{"$f":"IF($A307=\"N/A\",Ref!$B$36,INDEX(Ranks!$1:$1048576,$A307,U$1))","v":""},{"$f":"IF($A307=\"N/A\",Ref!$B$36,INDEX(Ranks!$1:$1048576,$A307,V$1))","v":""},{"$f":"IF($A307=\"N/A\",Ref!$B$36,INDEX(Ranks!$1:$1048576,$A307,W$1))","v":""},{"$f":"IF($A307=\"N/A\",Ref!$B$36,INDEX(Ranks!$1:$1048576,$A307,X$1))","v":""},{"$f":"IF($A307=\"N/A\",Ref!$B$36,INDEX(Ranks!$1:$1048576,$A307,Y$1))","v":""},{"$f":"IF($A307=\"N/A\",Ref!$B$36,INDEX(Ranks!$1:$1048576,$A307,Z$1))","v":""},{"$f":"IF($A307=\"N/A\",Ref!$B$36,INDEX(Ranks!$1:$1048576,$A307,AA$1))","v":""},{"$f":"IF($A307=\"N/A\",Ref!$B$36,INDEX(Ranks!$1:$1048576,$A307,AB$1))","v":""},{"$f":"IF($A307=\"N/A\",Ref!$B$36,INDEX(Ranks!$1:$1048576,$A307,AC$1))","v":""},{"$f":"IF($A307=\"N/A\",Ref!$B$36,INDEX(Ranks!$1:$1048576,$A307,AD$1))","v":""},{"$f":"IF($A307=\"N/A\",Ref!$B$36,INDEX(Ranks!$1:$1048576,$A307,AE$1))","v":""},{"$f":"IF($A307=\"N/A\",Ref!$B$36,INDEX(Ranks!$1:$1048576,$A307,AF$1))","v":""},{"$f":"IF($A307=\"N/A\",Ref!$B$36,INDEX(Ranks!$1:$1048576,$A307,AG$1))","v":""},{"$f":"IF($A307=\"N/A\",Ref!$B$36,INDEX(Ranks!$1:$1048576,$A307,AH$1))","v":""},{"$f":"IF($A307=\"N/A\",Ref!$B$36,INDEX(Ranks!$1:$1048576,$A307,AI$1))","v":""},{"$f":"IF($A307=\"N/A\",Ref!$B$36,INDEX(Ranks!$1:$1048576,$A307,AJ$1))","v":""},{"$f":"IF($A307=\"N/A\",Ref!$B$36,INDEX(Ranks!$1:$1048576,$A307,AK$1))","v":""},{"$f":"IF($A307=\"N/A\",Ref!$B$36,INDEX(Ranks!$1:$1048576,$A307,AL$1))","v":""},{"$f":"IF($A307=\"N/A\",Ref!$B$36,INDEX(Ranks!$1:$1048576,$A307,AM$1))","v":""},{"$f":"IF($A307=\"N/A\",Ref!$B$36,INDEX(Ranks!$1:$1048576,$A307,AN$1))","v":""},{"$f":"IF($A307=\"N/A\",Ref!$B$36,INDEX(Ranks!$1:$1048576,$A307,AO$1))","v":""},{"$f":"IF($A307=\"N/A\",Ref!$B$36,INDEX(Ranks!$1:$1048576,$A307,AP$1))","v":""},{"$f":"IF($A307=\"N/A\",Ref!$B$36,INDEX(Ranks!$1:$1048576,$A307,AQ$1))","v":""},{"$f":"IF($A307=\"N/A\",Ref!$B$36,INDEX(Ranks!$1:$1048576,$A307,AR$1))","v":""},{"$f":"IF($A307=\"N/A\",Ref!$B$36,INDEX(Ranks!$1:$1048576,$A307,AS$1))","v":""},{"$f":"IF($A307=\"N/A\",Ref!$B$36,INDEX(Ranks!$1:$1048576,$A307,AT$1))","v":""},{"$f":"IF($A307=\"N/A\",Ref!$B$36,INDEX(Ranks!$1:$1048576,$A307,AU$1))","v":""},{"$f":"IF($A307=\"N/A\",Ref!$B$36,INDEX(Ranks!$1:$1048576,$A307,AV$1))","v":""},{"$f":"IF($A307=\"N/A\",Ref!$B$36,INDEX(Ranks!$1:$1048576,$A307,AW$1))","v":""},{"$f":"IF($A307=\"N/A\",Ref!$B$36,INDEX(Ranks!$1:$1048576,$A307,AX$1))","v":""},{"$f":"IF($A307=\"N/A\",Ref!$B$36,INDEX(Ranks!$1:$1048576,$A307,AY$1))","v":""},{"$f":"IF($A307=\"N/A\",Ref!$B$36,INDEX(Ranks!$1:$1048576,$A307,AZ$1))","v":""},{"$f":"IF($A307=\"N/A\",Ref!$B$36,INDEX(Ranks!$1:$1048576,$A307,BA$1))","v":""},{"$f":"IF($A307=\"N/A\",Ref!$B$36,INDEX(Ranks!$1:$1048576,$A307,BB$1))","v":""},{"$f":"IF($A307=\"N/A\",Ref!$B$36,INDEX(Ranks!$1:$1048576,$A307,BC$1))","v":""},{"$f":"IF($A307=\"N/A\",Ref!$B$36,INDEX(Ranks!$1:$1048576,$A307,BD$1))","v":""},{"$f":"IF($A307=\"N/A\",Ref!$B$36,INDEX(Ranks!$1:$1048576,$A307,BE$1))","v":""},{"$f":"IF($A307=\"N/A\",Ref!$B$36,INDEX(Ranks!$1:$1048576,$A307,BF$1))","v":""},{"$f":"IF($A307=\"N/A\",Ref!$B$36,INDEX(Ranks!$1:$1048576,$A307,BG$1))","v":""},{"$f":"IF($A307=\"N/A\",Ref!$B$36,INDEX(Ranks!$1:$1048576,$A307,BH$1))","v":""},{"$f":"IF($A307=\"N/A\",Ref!$B$36,INDEX(Ranks!$1:$1048576,$A307,BI$1))","v":""},{"$f":"IF($A307=\"N/A\",Ref!$B$36,INDEX(Ranks!$1:$1048576,$A307,BJ$1))","v":""},{"$f":"IF($A307=\"N/A\",Ref!$B$36,INDEX(Ranks!$1:$1048576,$A307,BK$1))","v":""},{"$f":"IF($A307=\"N/A\",Ref!$B$36,INDEX(Ranks!$1:$1048576,$A307,BL$1))","v":""},{"$f":"IF($A307=\"N/A\",Ref!$B$36,INDEX(Ranks!$1:$1048576,$A307,BM$1))","v":""},{"$f":"IF($A307=\"N/A\",Ref!$B$36,INDEX(Ranks!$1:$1048576,$A307,BN$1))","v":""},{"$f":"IF($A307=\"N/A\",Ref!$B$36,INDEX(Ranks!$1:$1048576,$A307,BO$1))","v":""},{"$f":"IF($A307=\"N/A\",Ref!$B$36,INDEX(Ranks!$1:$1048576,$A307,BP$1))","v":""},{"$f":"IF($A307=\"N/A\",Ref!$B$36,INDEX(Ranks!$1:$1048576,$A307,BQ$1))","v":""},{"$f":"IF($A307=\"N/A\",Ref!$B$36,INDEX(Ranks!$1:$1048576,$A307,BR$1))","v":""},{"$f":"IF($A307=\"N/A\",Ref!$B$36,INDEX(Ranks!$1:$1048576,$A307,BS$1))","v":""},{"$f":"IF($A307=\"N/A\",Ref!$B$36,INDEX(Ranks!$1:$1048576,$A307,BT$1))","v":""},{"$f":"IF($A307=\"N/A\",Ref!$B$36,INDEX(Ranks!$1:$1048576,$A307,BU$1))","v":""},{"$f":"IF($A307=\"N/A\",Ref!$B$36,INDEX(Ranks!$1:$1048576,$A307,BV$1))","v":""},{"$f":"IF($A307=\"N/A\",Ref!$B$36,INDEX(Ranks!$1:$1048576,$A307,BW$1))","v":""},{"$f":"IF($A307=\"N/A\",Ref!$B$36,INDEX(Ranks!$1:$1048576,$A307,BX$1))","v":""},{"$f":"IF($A307=\"N/A\",Ref!$B$36,INDEX(Ranks!$1:$1048576,$A307,BY$1))","v":""},{"$f":"IF($A307=\"N/A\",Ref!$B$36,INDEX(Ranks!$1:$1048576,$A307,BZ$1))","v":""},{"$f":"IF($A307=\"N/A\",Ref!$B$36,INDEX(Ranks!$1:$1048576,$A307,CA$1))","v":""},{"$f":"IF($A307=\"N/A\",Ref!$B$36,INDEX(Ranks!$1:$1048576,$A307,CB$1))","v":""},{"$f":"IF($A307=\"N/A\",Ref!$B$36,INDEX(Ranks!$1:$1048576,$A307,CC$1))","v":""},{"$f":"IF($A307=\"N/A\",Ref!$B$36,INDEX(Ranks!$1:$1048576,$A307,CD$1))","v":""},{"$f":"IF($A307=\"N/A\",Ref!$B$36,INDEX(Ranks!$1:$1048576,$A307,CE$1))","v":""},{"$f":"IF($A307=\"N/A\",Ref!$B$36,INDEX(Ranks!$1:$1048576,$A307,CF$1))","v":""},{"$f":"IF($A307=\"N/A\",Ref!$B$36,INDEX(Ranks!$1:$1048576,$A307,CG$1))","v":""},{"$f":"IF($A307=\"N/A\",Ref!$B$36,INDEX(Ranks!$1:$1048576,$A307,CH$1))","v":""},{"$f":"IF($A307=\"N/A\",Ref!$B$36,INDEX(Ranks!$1:$1048576,$A307,CI$1))","v":""},{"$f":"IF($A307=\"N/A\",Ref!$B$36,INDEX(Ranks!$1:$1048576,$A307,CJ$1))","v":""},{"$f":"IF($A307=\"N/A\",Ref!$B$36,INDEX(Ranks!$1:$1048576,$A307,CK$1))","v":""},{"$f":"IF($A307=\"N/A\",Ref!$B$36,INDEX(Ranks!$1:$1048576,$A307,CL$1))","v":""},{"$f":"IF($A307=\"N/A\",Ref!$B$36,INDEX(Ranks!$1:$1048576,$A307,CM$1))","v":""},{"$f":"IF($A307=\"N/A\",Ref!$B$36,INDEX(Ranks!$1:$1048576,$A307,CN$1))","v":""},{"$f":"IF($A307=\"N/A\",Ref!$B$36,INDEX(Ranks!$1:$1048576,$A307,CO$1))","v":""},{"$f":"IF($A307=\"N/A\",Ref!$B$36,INDEX(Ranks!$1:$1048576,$A307,CP$1))","v":""},{"$f":"IF($A307=\"N/A\",Ref!$B$36,INDEX(Ranks!$1:$1048576,$A307,CQ$1))","v":""},{"$f":"IF($A307=\"N/A\",Ref!$B$36,INDEX(Ranks!$1:$1048576,$A307,CR$1))","v":""},{"$f":"IF($A307=\"N/A\",Ref!$B$36,INDEX(Ranks!$1:$1048576,$A307,CS$1))","v":""},{"$f":"IF($A307=\"N/A\",Ref!$B$36,INDEX(Ranks!$1:$1048576,$A307,CT$1))","v":""},{"$f":"IF($A307=\"N/A\",Ref!$B$36,INDEX(Ranks!$1:$1048576,$A307,CU$1))","v":""},{"$f":"IF($A307=\"N/A\",Ref!$B$36,INDEX(Ranks!$1:$1048576,$A307,CV$1))","v":""},{"$f":"IF($A307=\"N/A\",Ref!$B$36,INDEX(Ranks!$1:$1048576,$A307,CW$1))","v":""},{"$f":"IF($A307=\"N/A\",Ref!$B$36,INDEX(Ranks!$1:$1048576,$A307,CX$1))","v":""},{"$f":"IF($A307=\"N/A\",Ref!$B$36,INDEX(Ranks!$1:$1048576,$A307,CY$1))","v":""},{"$f":"IF($A307=\"N/A\",Ref!$B$36,INDEX(Ranks!$1:$1048576,$A307,CZ$1))","v":""},{"$f":"IF($A307=\"N/A\",Ref!$B$36,INDEX(Ranks!$1:$1048576,$A307,DA$1))","v":""},{"$f":"IF($A307=\"N/A\",Ref!$B$36,INDEX(Ranks!$1:$1048576,$A307,DB$1))","v":""},{"$f":"IF($A307=\"N/A\",Ref!$B$36,INDEX(Ranks!$1:$1048576,$A307,DC$1))","v":""},{"$f":"IF($A307=\"N/A\",Ref!$B$36,INDEX(Ranks!$1:$1048576,$A307,DD$1))","v":""},{"$f":"IF($A307=\"N/A\",Ref!$B$36,INDEX(Ranks!$1:$1048576,$A307,DE$1))","v":""},{"$f":"IF($A307=\"N/A\",Ref!$B$36,INDEX(Ranks!$1:$1048576,$A307,DF$1))","v":""},{"$f":"IF($A307=\"N/A\",Ref!$B$36,INDEX(Ranks!$1:$1048576,$A307,DG$1))","v":""},{"$f":"IF($A307=\"N/A\",Ref!$B$36,INDEX(Ranks!$1:$1048576,$A307,DH$1))","v":""},{"$f":"IF($A307=\"N/A\",Ref!$B$36,INDEX(Ranks!$1:$1048576,$A307,DI$1))","v":""},{"$f":"IF($A307=\"N/A\",Ref!$B$36,INDEX(Ranks!$1:$1048576,$A307,DJ$1))","v":""},{"$f":"IF($A307=\"N/A\",Ref!$B$36,INDEX(Ranks!$1:$1048576,$A307,DK$1))","v":""},{"$f":"IF($A307=\"N/A\",Ref!$B$36,INDEX(Ranks!$1:$1048576,$A307,DL$1))","v":""},{"$f":"IF($A307=\"N/A\",Ref!$B$36,INDEX(Ranks!$1:$1048576,$A307,DM$1))","v":""},{"$f":"IF($A307=\"N/A\",Ref!$B$36,INDEX(Ranks!$1:$1048576,$A307,DN$1))","v":""},{"$f":"IF($A307=\"N/A\",Ref!$B$36,INDEX(Ranks!$1:$1048576,$A307,DO$1))","v":""},{"$f":"IF($A307=\"N/A\",Ref!$B$36,INDEX(Ranks!$1:$1048576,$A307,DP$1))","v":""},{"$f":"IF($A307=\"N/A\",Ref!$B$36,INDEX(Ranks!$1:$1048576,$A307,DQ$1))","v":""},{"$f":"IF($A307=\"N/A\",Ref!$B$36,INDEX(Ranks!$1:$1048576,$A307,DR$1))","v":""},{"$f":"IF($A307=\"N/A\",Ref!$B$36,INDEX(Ranks!$1:$1048576,$A307,DS$1))","v":""},{"$f":"IF($A307=\"N/A\",Ref!$B$36,INDEX(Ranks!$1:$1048576,$A307,DT$1))","v":""},{"$f":"IF($A307=\"N/A\",Ref!$B$36,INDEX(Ranks!$1:$1048576,$A307,DU$1))","v":""},{"$f":"IF($A307=\"N/A\",Ref!$B$36,INDEX(Ranks!$1:$1048576,$A307,DV$1))","v":""},{"$f":"IF($A307=\"N/A\",Ref!$B$36,INDEX(Ranks!$1:$1048576,$A307,DW$1))","v":""},{"$f":"IF($A307=\"N/A\",Ref!$B$36,INDEX(Ranks!$1:$1048576,$A307,DX$1))","v":""},{"$f":"IF($A307=\"N/A\",Ref!$B$36,INDEX(Ranks!$1:$1048576,$A307,DY$1))","v":""},{"$f":"IF($A307=\"N/A\",Ref!$B$36,INDEX(Ranks!$1:$1048576,$A307,DZ$1))","v":""},{"$f":"IF($A307=\"N/A\",Ref!$B$36,INDEX(Ranks!$1:$1048576,$A307,EA$1))","v":""},{"$f":"IF($A307=\"N/A\",Ref!$B$36,INDEX(Ranks!$1:$1048576,$A307,EB$1))","v":""}]
[{"$f":"IFERROR(MATCH('Portfolio Page'!L308,Ranks!L:L,0),\"N/A\")","v":"N/A"},null,{"$f":"IF($A308=\"N/A\",\"\",INDEX(Ranks!$1:$1048576,$A308,C$1))","v":""},{"$f":"IF($A308=\"N/A\",Ref!$B$36,INDEX(Ranks!$1:$1048576,$A308,D$1))","v":""},{"$f":"IF($A308=\"N/A\",Ref!$B$36,INDEX(Ranks!$1:$1048576,$A308,E$1))","v":""},{"$f":"IF($A308=\"N/A\",\"\",INDEX(Ranks!$1:$1048576,$A308,F$1))","v":""},{"$f":"IF($A308=\"N/A\",\"\",INDEX(Ranks!$1:$1048576,$A308,G$1))","v":""},{"$f":"IF($A308=\"N/A\",\"\",INDEX(Ranks!$1:$1048576,$A308,H$1))","v":""},{"$f":"IF($A308=\"N/A\",\"\",INDEX(Ranks!$1:$1048576,$A308,I$1))","v":""},{"$f":"IF($A308=\"N/A\",\"\",INDEX(Ranks!$1:$1048576,$A308,J$1))","v":""},{"$f":"IF($A308=\"N/A\",\"\",INDEX(Ranks!$1:$1048576,$A308,K$1))","v":""},null,{"$f":"IF($A308=\"N/A\",Ref!$B$36,INDEX(Ranks!$1:$1048576,$A308,M$1))","v":""},{"$f":"IF($A308=\"N/A\",Ref!$B$36,INDEX(Ranks!$1:$1048576,$A308,N$1))","v":""},{"$f":"IF($A308=\"N/A\",Ref!$B$36,INDEX(Ranks!$1:$1048576,$A308,O$1))","v":""},{"$f":"IF($A308=\"N/A\",Ref!$B$36,INDEX(Ranks!$1:$1048576,$A308,P$1))","v":""},{"$f":"IF($A308=\"N/A\",Ref!$B$36,INDEX(Ranks!$1:$1048576,$A308,Q$1))","v":""},{"$f":"IF($A308=\"N/A\",Ref!$B$36,INDEX(Ranks!$1:$1048576,$A308,R$1))","v":""},{"$f":"IF($A308=\"N/A\",Ref!$B$36,INDEX(Ranks!$1:$1048576,$A308,S$1))","v":""},{"$f":"IF($A308=\"N/A\",Ref!$B$36,INDEX(Ranks!$1:$1048576,$A308,T$1))","v":""},{"$f":"IF($A308=\"N/A\",Ref!$B$36,INDEX(Ranks!$1:$1048576,$A308,U$1))","v":""},{"$f":"IF($A308=\"N/A\",Ref!$B$36,INDEX(Ranks!$1:$1048576,$A308,V$1))","v":""},{"$f":"IF($A308=\"N/A\",Ref!$B$36,INDEX(Ranks!$1:$1048576,$A308,W$1))","v":""},{"$f":"IF($A308=\"N/A\",Ref!$B$36,INDEX(Ranks!$1:$1048576,$A308,X$1))","v":""},{"$f":"IF($A308=\"N/A\",Ref!$B$36,INDEX(Ranks!$1:$1048576,$A308,Y$1))","v":""},{"$f":"IF($A308=\"N/A\",Ref!$B$36,INDEX(Ranks!$1:$1048576,$A308,Z$1))","v":""},{"$f":"IF($A308=\"N/A\",Ref!$B$36,INDEX(Ranks!$1:$1048576,$A308,AA$1))","v":""},{"$f":"IF($A308=\"N/A\",Ref!$B$36,INDEX(Ranks!$1:$1048576,$A308,AB$1))","v":""},{"$f":"IF($A308=\"N/A\",Ref!$B$36,INDEX(Ranks!$1:$1048576,$A308,AC$1))","v":""},{"$f":"IF($A308=\"N/A\",Ref!$B$36,INDEX(Ranks!$1:$1048576,$A308,AD$1))","v":""},{"$f":"IF($A308=\"N/A\",Ref!$B$36,INDEX(Ranks!$1:$1048576,$A308,AE$1))","v":""},{"$f":"IF($A308=\"N/A\",Ref!$B$36,INDEX(Ranks!$1:$1048576,$A308,AF$1))","v":""},{"$f":"IF($A308=\"N/A\",Ref!$B$36,INDEX(Ranks!$1:$1048576,$A308,AG$1))","v":""},{"$f":"IF($A308=\"N/A\",Ref!$B$36,INDEX(Ranks!$1:$1048576,$A308,AH$1))","v":""},{"$f":"IF($A308=\"N/A\",Ref!$B$36,INDEX(Ranks!$1:$1048576,$A308,AI$1))","v":""},{"$f":"IF($A308=\"N/A\",Ref!$B$36,INDEX(Ranks!$1:$1048576,$A308,AJ$1))","v":""},{"$f":"IF($A308=\"N/A\",Ref!$B$36,INDEX(Ranks!$1:$1048576,$A308,AK$1))","v":""},{"$f":"IF($A308=\"N/A\",Ref!$B$36,INDEX(Ranks!$1:$1048576,$A308,AL$1))","v":""},{"$f":"IF($A308=\"N/A\",Ref!$B$36,INDEX(Ranks!$1:$1048576,$A308,AM$1))","v":""},{"$f":"IF($A308=\"N/A\",Ref!$B$36,INDEX(Ranks!$1:$1048576,$A308,AN$1))","v":""},{"$f":"IF($A308=\"N/A\",Ref!$B$36,INDEX(Ranks!$1:$1048576,$A308,AO$1))","v":""},{"$f":"IF($A308=\"N/A\",Ref!$B$36,INDEX(Ranks!$1:$1048576,$A308,AP$1))","v":""},{"$f":"IF($A308=\"N/A\",Ref!$B$36,INDEX(Ranks!$1:$1048576,$A308,AQ$1))","v":""},{"$f":"IF($A308=\"N/A\",Ref!$B$36,INDEX(Ranks!$1:$1048576,$A308,AR$1))","v":""},{"$f":"IF($A308=\"N/A\",Ref!$B$36,INDEX(Ranks!$1:$1048576,$A308,AS$1))","v":""},{"$f":"IF($A308=\"N/A\",Ref!$B$36,INDEX(Ranks!$1:$1048576,$A308,AT$1))","v":""},{"$f":"IF($A308=\"N/A\",Ref!$B$36,INDEX(Ranks!$1:$1048576,$A308,AU$1))","v":""},{"$f":"IF($A308=\"N/A\",Ref!$B$36,INDEX(Ranks!$1:$1048576,$A308,AV$1))","v":""},{"$f":"IF($A308=\"N/A\",Ref!$B$36,INDEX(Ranks!$1:$1048576,$A308,AW$1))","v":""},{"$f":"IF($A308=\"N/A\",Ref!$B$36,INDEX(Ranks!$1:$1048576,$A308,AX$1))","v":""},{"$f":"IF($A308=\"N/A\",Ref!$B$36,INDEX(Ranks!$1:$1048576,$A308,AY$1))","v":""},{"$f":"IF($A308=\"N/A\",Ref!$B$36,INDEX(Ranks!$1:$1048576,$A308,AZ$1))","v":""},{"$f":"IF($A308=\"N/A\",Ref!$B$36,INDEX(Ranks!$1:$1048576,$A308,BA$1))","v":""},{"$f":"IF($A308=\"N/A\",Ref!$B$36,INDEX(Ranks!$1:$1048576,$A308,BB$1))","v":""},{"$f":"IF($A308=\"N/A\",Ref!$B$36,INDEX(Ranks!$1:$1048576,$A308,BC$1))","v":""},{"$f":"IF($A308=\"N/A\",Ref!$B$36,INDEX(Ranks!$1:$1048576,$A308,BD$1))","v":""},{"$f":"IF($A308=\"N/A\",Ref!$B$36,INDEX(Ranks!$1:$1048576,$A308,BE$1))","v":""},{"$f":"IF($A308=\"N/A\",Ref!$B$36,INDEX(Ranks!$1:$1048576,$A308,BF$1))","v":""},{"$f":"IF($A308=\"N/A\",Ref!$B$36,INDEX(Ranks!$1:$1048576,$A308,BG$1))","v":""},{"$f":"IF($A308=\"N/A\",Ref!$B$36,INDEX(Ranks!$1:$1048576,$A308,BH$1))","v":""},{"$f":"IF($A308=\"N/A\",Ref!$B$36,INDEX(Ranks!$1:$1048576,$A308,BI$1))","v":""},{"$f":"IF($A308=\"N/A\",Ref!$B$36,INDEX(Ranks!$1:$1048576,$A308,BJ$1))","v":""},{"$f":"IF($A308=\"N/A\",Ref!$B$36,INDEX(Ranks!$1:$1048576,$A308,BK$1))","v":""},{"$f":"IF($A308=\"N/A\",Ref!$B$36,INDEX(Ranks!$1:$1048576,$A308,BL$1))","v":""},{"$f":"IF($A308=\"N/A\",Ref!$B$36,INDEX(Ranks!$1:$1048576,$A308,BM$1))","v":""},{"$f":"IF($A308=\"N/A\",Ref!$B$36,INDEX(Ranks!$1:$1048576,$A308,BN$1))","v":""},{"$f":"IF($A308=\"N/A\",Ref!$B$36,INDEX(Ranks!$1:$1048576,$A308,BO$1))","v":""},{"$f":"IF($A308=\"N/A\",Ref!$B$36,INDEX(Ranks!$1:$1048576,$A308,BP$1))","v":""},{"$f":"IF($A308=\"N/A\",Ref!$B$36,INDEX(Ranks!$1:$1048576,$A308,BQ$1))","v":""},{"$f":"IF($A308=\"N/A\",Ref!$B$36,INDEX(Ranks!$1:$1048576,$A308,BR$1))","v":""},{"$f":"IF($A308=\"N/A\",Ref!$B$36,INDEX(Ranks!$1:$1048576,$A308,BS$1))","v":""},{"$f":"IF($A308=\"N/A\",Ref!$B$36,INDEX(Ranks!$1:$1048576,$A308,BT$1))","v":""},{"$f":"IF($A308=\"N/A\",Ref!$B$36,INDEX(Ranks!$1:$1048576,$A308,BU$1))","v":""},{"$f":"IF($A308=\"N/A\",Ref!$B$36,INDEX(Ranks!$1:$1048576,$A308,BV$1))","v":""},{"$f":"IF($A308=\"N/A\",Ref!$B$36,INDEX(Ranks!$1:$1048576,$A308,BW$1))","v":""},{"$f":"IF($A308=\"N/A\",Ref!$B$36,INDEX(Ranks!$1:$1048576,$A308,BX$1))","v":""},{"$f":"IF($A308=\"N/A\",Ref!$B$36,INDEX(Ranks!$1:$1048576,$A308,BY$1))","v":""},{"$f":"IF($A308=\"N/A\",Ref!$B$36,INDEX(Ranks!$1:$1048576,$A308,BZ$1))","v":""},{"$f":"IF($A308=\"N/A\",Ref!$B$36,INDEX(Ranks!$1:$1048576,$A308,CA$1))","v":""},{"$f":"IF($A308=\"N/A\",Ref!$B$36,INDEX(Ranks!$1:$1048576,$A308,CB$1))","v":""},{"$f":"IF($A308=\"N/A\",Ref!$B$36,INDEX(Ranks!$1:$1048576,$A308,CC$1))","v":""},{"$f":"IF($A308=\"N/A\",Ref!$B$36,INDEX(Ranks!$1:$1048576,$A308,CD$1))","v":""},{"$f":"IF($A308=\"N/A\",Ref!$B$36,INDEX(Ranks!$1:$1048576,$A308,CE$1))","v":""},{"$f":"IF($A308=\"N/A\",Ref!$B$36,INDEX(Ranks!$1:$1048576,$A308,CF$1))","v":""},{"$f":"IF($A308=\"N/A\",Ref!$B$36,INDEX(Ranks!$1:$1048576,$A308,CG$1))","v":""},{"$f":"IF($A308=\"N/A\",Ref!$B$36,INDEX(Ranks!$1:$1048576,$A308,CH$1))","v":""},{"$f":"IF($A308=\"N/A\",Ref!$B$36,INDEX(Ranks!$1:$1048576,$A308,CI$1))","v":""},{"$f":"IF($A308=\"N/A\",Ref!$B$36,INDEX(Ranks!$1:$1048576,$A308,CJ$1))","v":""},{"$f":"IF($A308=\"N/A\",Ref!$B$36,INDEX(Ranks!$1:$1048576,$A308,CK$1))","v":""},{"$f":"IF($A308=\"N/A\",Ref!$B$36,INDEX(Ranks!$1:$1048576,$A308,CL$1))","v":""},{"$f":"IF($A308=\"N/A\",Ref!$B$36,INDEX(Ranks!$1:$1048576,$A308,CM$1))","v":""},{"$f":"IF($A308=\"N/A\",Ref!$B$36,INDEX(Ranks!$1:$1048576,$A308,CN$1))","v":""},{"$f":"IF($A308=\"N/A\",Ref!$B$36,INDEX(Ranks!$1:$1048576,$A308,CO$1))","v":""},{"$f":"IF($A308=\"N/A\",Ref!$B$36,INDEX(Ranks!$1:$1048576,$A308,CP$1))","v":""},{"$f":"IF($A308=\"N/A\",Ref!$B$36,INDEX(Ranks!$1:$1048576,$A308,CQ$1))","v":""},{"$f":"IF($A308=\"N/A\",Ref!$B$36,INDEX(Ranks!$1:$1048576,$A308,CR$1))","v":""},{"$f":"IF($A308=\"N/A\",Ref!$B$36,INDEX(Ranks!$1:$1048576,$A308,CS$1))","v":""},{"$f":"IF($A308=\"N/A\",Ref!$B$36,INDEX(Ranks!$1:$1048576,$A308,CT$1))","v":""},{"$f":"IF($A308=\"N/A\",Ref!$B$36,INDEX(Ranks!$1:$1048576,$A308,CU$1))","v":""},{"$f":"IF($A308=\"N/A\",Ref!$B$36,INDEX(Ranks!$1:$1048576,$A308,CV$1))","v":""},{"$f":"IF($A308=\"N/A\",Ref!$B$36,INDEX(Ranks!$1:$1048576,$A308,CW$1))","v":""},{"$f":"IF($A308=\"N/A\",Ref!$B$36,INDEX(Ranks!$1:$1048576,$A308,CX$1))","v":""},{"$f":"IF($A308=\"N/A\",Ref!$B$36,INDEX(Ranks!$1:$1048576,$A308,CY$1))","v":""},{"$f":"IF($A308=\"N/A\",Ref!$B$36,INDEX(Ranks!$1:$1048576,$A308,CZ$1))","v":""},{"$f":"IF($A308=\"N/A\",Ref!$B$36,INDEX(Ranks!$1:$1048576,$A308,DA$1))","v":""},{"$f":"IF($A308=\"N/A\",Ref!$B$36,INDEX(Ranks!$1:$1048576,$A308,DB$1))","v":""},{"$f":"IF($A308=\"N/A\",Ref!$B$36,INDEX(Ranks!$1:$1048576,$A308,DC$1))","v":""},{"$f":"IF($A308=\"N/A\",Ref!$B$36,INDEX(Ranks!$1:$1048576,$A308,DD$1))","v":""},{"$f":"IF($A308=\"N/A\",Ref!$B$36,INDEX(Ranks!$1:$1048576,$A308,DE$1))","v":""},{"$f":"IF($A308=\"N/A\",Ref!$B$36,INDEX(Ranks!$1:$1048576,$A308,DF$1))","v":""},{"$f":"IF($A308=\"N/A\",Ref!$B$36,INDEX(Ranks!$1:$1048576,$A308,DG$1))","v":""},{"$f":"IF($A308=\"N/A\",Ref!$B$36,INDEX(Ranks!$1:$1048576,$A308,DH$1))","v":""},{"$f":"IF($A308=\"N/A\",Ref!$B$36,INDEX(Ranks!$1:$1048576,$A308,DI$1))","v":""},{"$f":"IF($A308=\"N/A\",Ref!$B$36,INDEX(Ranks!$1:$1048576,$A308,DJ$1))","v":""},{"$f":"IF($A308=\"N/A\",Ref!$B$36,INDEX(Ranks!$1:$1048576,$A308,DK$1))","v":""},{"$f":"IF($A308=\"N/A\",Ref!$B$36,INDEX(Ranks!$1:$1048576,$A308,DL$1))","v":""},{"$f":"IF($A308=\"N/A\",Ref!$B$36,INDEX(Ranks!$1:$1048576,$A308,DM$1))","v":""},{"$f":"IF($A308=\"N/A\",Ref!$B$36,INDEX(Ranks!$1:$1048576,$A308,DN$1))","v":""},{"$f":"IF($A308=\"N/A\",Ref!$B$36,INDEX(Ranks!$1:$1048576,$A308,DO$1))","v":""},{"$f":"IF($A308=\"N/A\",Ref!$B$36,INDEX(Ranks!$1:$1048576,$A308,DP$1))","v":""},{"$f":"IF($A308=\"N/A\",Ref!$B$36,INDEX(Ranks!$1:$1048576,$A308,DQ$1))","v":""},{"$f":"IF($A308=\"N/A\",Ref!$B$36,INDEX(Ranks!$1:$1048576,$A308,DR$1))","v":""},{"$f":"IF($A308=\"N/A\",Ref!$B$36,INDEX(Ranks!$1:$1048576,$A308,DS$1))","v":""},{"$f":"IF($A308=\"N/A\",Ref!$B$36,INDEX(Ranks!$1:$1048576,$A308,DT$1))","v":""},{"$f":"IF($A308=\"N/A\",Ref!$B$36,INDEX(Ranks!$1:$1048576,$A308,DU$1))","v":""},{"$f":"IF($A308=\"N/A\",Ref!$B$36,INDEX(Ranks!$1:$1048576,$A308,DV$1))","v":""},{"$f":"IF($A308=\"N/A\",Ref!$B$36,INDEX(Ranks!$1:$1048576,$A308,DW$1))","v":""},{"$f":"IF($A308=\"N/A\",Ref!$B$36,INDEX(Ranks!$1:$1048576,$A308,DX$1))","v":""},{"$f":"IF($A308=\"N/A\",Ref!$B$36,INDEX(Ranks!$1:$1048576,$A308,DY$1))","v":""},{"$f":"IF($A308=\"N/A\",Ref!$B$36,INDEX(Ranks!$1:$1048576,$A308,DZ$1))","v":""},{"$f":"IF($A308=\"N/A\",Ref!$B$36,INDEX(Ranks!$1:$1048576,$A308,EA$1))","v":""},{"$f":"IF($A308=\"N/A\",Ref!$B$36,INDEX(Ranks!$1:$1048576,$A308,EB$1))","v":""}]
[{"$f":"IFERROR(MATCH('Portfolio Page'!L309,Ranks!L:L,0),\"N/A\")","v":"N/A"},null,{"$f":"IF($A309=\"N/A\",\"\",INDEX(Ranks!$1:$1048576,$A309,C$1))","v":""},{"$f":"IF($A309=\"N/A\",Ref!$B$36,INDEX(Ranks!$1:$1048576,$A309,D$1))","v":""},{"$f":"IF($A309=\"N/A\",Ref!$B$36,INDEX(Ranks!$1:$1048576,$A309,E$1))","v":""},{"$f":"IF($A309=\"N/A\",\"\",INDEX(Ranks!$1:$1048576,$A309,F$1))","v":""},{"$f":"IF($A309=\"N/A\",\"\",INDEX(Ranks!$1:$1048576,$A309,G$1))","v":""},{"$f":"IF($A309=\"N/A\",\"\",INDEX(Ranks!$1:$1048576,$A309,H$1))","v":""},{"$f":"IF($A309=\"N/A\",\"\",INDEX(Ranks!$1:$1048576,$A309,I$1))","v":""},{"$f":"IF($A309=\"N/A\",\"\",INDEX(Ranks!$1:$1048576,$A309,J$1))","v":""},{"$f":"IF($A309=\"N/A\",\"\",INDEX(Ranks!$1:$1048576,$A309,K$1))","v":""},null,{"$f":"IF($A309=\"N/A\",Ref!$B$36,INDEX(Ranks!$1:$1048576,$A309,M$1))","v":""},{"$f":"IF($A309=\"N/A\",Ref!$B$36,INDEX(Ranks!$1:$1048576,$A309,N$1))","v":""},{"$f":"IF($A309=\"N/A\",Ref!$B$36,INDEX(Ranks!$1:$1048576,$A309,O$1))","v":""},{"$f":"IF($A309=\"N/A\",Ref!$B$36,INDEX(Ranks!$1:$1048576,$A309,P$1))","v":""},{"$f":"IF($A309=\"N/A\",Ref!$B$36,INDEX(Ranks!$1:$1048576,$A309,Q$1))","v":""},{"$f":"IF($A309=\"N/A\",Ref!$B$36,INDEX(Ranks!$1:$1048576,$A309,R$1))","v":""},{"$f":"IF($A309=\"N/A\",Ref!$B$36,INDEX(Ranks!$1:$1048576,$A309,S$1))","v":""},{"$f":"IF($A309=\"N/A\",Ref!$B$36,INDEX(Ranks!$1:$1048576,$A309,T$1))","v":""},{"$f":"IF($A309=\"N/A\",Ref!$B$36,INDEX(Ranks!$1:$1048576,$A309,U$1))","v":""},{"$f":"IF($A309=\"N/A\",Ref!$B$36,INDEX(Ranks!$1:$1048576,$A309,V$1))","v":""},{"$f":"IF($A309=\"N/A\",Ref!$B$36,INDEX(Ranks!$1:$1048576,$A309,W$1))","v":""},{"$f":"IF($A309=\"N/A\",Ref!$B$36,INDEX(Ranks!$1:$1048576,$A309,X$1))","v":""},{"$f":"IF($A309=\"N/A\",Ref!$B$36,INDEX(Ranks!$1:$1048576,$A309,Y$1))","v":""},{"$f":"IF($A309=\"N/A\",Ref!$B$36,INDEX(Ranks!$1:$1048576,$A309,Z$1))","v":""},{"$f":"IF($A309=\"N/A\",Ref!$B$36,INDEX(Ranks!$1:$1048576,$A309,AA$1))","v":""},{"$f":"IF($A309=\"N/A\",Ref!$B$36,INDEX(Ranks!$1:$1048576,$A309,AB$1))","v":""},{"$f":"IF($A309=\"N/A\",Ref!$B$36,INDEX(Ranks!$1:$1048576,$A309,AC$1))","v":""},{"$f":"IF($A309=\"N/A\",Ref!$B$36,INDEX(Ranks!$1:$1048576,$A309,AD$1))","v":""},{"$f":"IF($A309=\"N/A\",Ref!$B$36,INDEX(Ranks!$1:$1048576,$A309,AE$1))","v":""},{"$f":"IF($A309=\"N/A\",Ref!$B$36,INDEX(Ranks!$1:$1048576,$A309,AF$1))","v":""},{"$f":"IF($A309=\"N/A\",Ref!$B$36,INDEX(Ranks!$1:$1048576,$A309,AG$1))","v":""},{"$f":"IF($A309=\"N/A\",Ref!$B$36,INDEX(Ranks!$1:$1048576,$A309,AH$1))","v":""},{"$f":"IF($A309=\"N/A\",Ref!$B$36,INDEX(Ranks!$1:$1048576,$A309,AI$1))","v":""},{"$f":"IF($A309=\"N/A\",Ref!$B$36,INDEX(Ranks!$1:$1048576,$A309,AJ$1))","v":""},{"$f":"IF($A309=\"N/A\",Ref!$B$36,INDEX(Ranks!$1:$1048576,$A309,AK$1))","v":""},{"$f":"IF($A309=\"N/A\",Ref!$B$36,INDEX(Ranks!$1:$1048576,$A309,AL$1))","v":""},{"$f":"IF($A309=\"N/A\",Ref!$B$36,INDEX(Ranks!$1:$1048576,$A309,AM$1))","v":""},{"$f":"IF($A309=\"N/A\",Ref!$B$36,INDEX(Ranks!$1:$1048576,$A309,AN$1))","v":""},{"$f":"IF($A309=\"N/A\",Ref!$B$36,INDEX(Ranks!$1:$1048576,$A309,AO$1))","v":""},{"$f":"IF($A309=\"N/A\",Ref!$B$36,INDEX(Ranks!$1:$1048576,$A309,AP$1))","v":""},{"$f":"IF($A309=\"N/A\",Ref!$B$36,INDEX(Ranks!$1:$1048576,$A309,AQ$1))","v":""},{"$f":"IF($A309=\"N/A\",Ref!$B$36,INDEX(Ranks!$1:$1048576,$A309,AR$1))","v":""},{"$f":"IF($A309=\"N/A\",Ref!$B$36,INDEX(Ranks!$1:$1048576,$A309,AS$1))","v":""},{"$f":"IF($A309=\"N/A\",Ref!$B$36,INDEX(Ranks!$1:$1048576,$A309,AT$1))","v":""},{"$f":"IF($A309=\"N/A\",Ref!$B$36,INDEX(Ranks!$1:$1048576,$A309,AU$1))","v":""},{"$f":"IF($A309=\"N/A\",Ref!$B$36,INDEX(Ranks!$1:$1048576,$A309,AV$1))","v":""},{"$f":"IF($A309=\"N/A\",Ref!$B$36,INDEX(Ranks!$1:$1048576,$A309,AW$1))","v":""},{"$f":"IF($A309=\"N/A\",Ref!$B$36,INDEX(Ranks!$1:$1048576,$A309,AX$1))","v":""},{"$f":"IF($A309=\"N/A\",Ref!$B$36,INDEX(Ranks!$1:$1048576,$A309,AY$1))","v":""},{"$f":"IF($A309=\"N/A\",Ref!$B$36,INDEX(Ranks!$1:$1048576,$A309,AZ$1))","v":""},{"$f":"IF($A309=\"N/A\",Ref!$B$36,INDEX(Ranks!$1:$1048576,$A309,BA$1))","v":""},{"$f":"IF($A309=\"N/A\",Ref!$B$36,INDEX(Ranks!$1:$1048576,$A309,BB$1))","v":""},{"$f":"IF($A309=\"N/A\",Ref!$B$36,INDEX(Ranks!$1:$1048576,$A309,BC$1))","v":""},{"$f":"IF($A309=\"N/A\",Ref!$B$36,INDEX(Ranks!$1:$1048576,$A309,BD$1))","v":""},{"$f":"IF($A309=\"N/A\",Ref!$B$36,INDEX(Ranks!$1:$1048576,$A309,BE$1))","v":""},{"$f":"IF($A309=\"N/A\",Ref!$B$36,INDEX(Ranks!$1:$1048576,$A309,BF$1))","v":""},{"$f":"IF($A309=\"N/A\",Ref!$B$36,INDEX(Ranks!$1:$1048576,$A309,BG$1))","v":""},{"$f":"IF($A309=\"N/A\",Ref!$B$36,INDEX(Ranks!$1:$1048576,$A309,BH$1))","v":""},{"$f":"IF($A309=\"N/A\",Ref!$B$36,INDEX(Ranks!$1:$1048576,$A309,BI$1))","v":""},{"$f":"IF($A309=\"N/A\",Ref!$B$36,INDEX(Ranks!$1:$1048576,$A309,BJ$1))","v":""},{"$f":"IF($A309=\"N/A\",Ref!$B$36,INDEX(Ranks!$1:$1048576,$A309,BK$1))","v":""},{"$f":"IF($A309=\"N/A\",Ref!$B$36,INDEX(Ranks!$1:$1048576,$A309,BL$1))","v":""},{"$f":"IF($A309=\"N/A\",Ref!$B$36,INDEX(Ranks!$1:$1048576,$A309,BM$1))","v":""},{"$f":"IF($A309=\"N/A\",Ref!$B$36,INDEX(Ranks!$1:$1048576,$A309,BN$1))","v":""},{"$f":"IF($A309=\"N/A\",Ref!$B$36,INDEX(Ranks!$1:$1048576,$A309,BO$1))","v":""},{"$f":"IF($A309=\"N/A\",Ref!$B$36,INDEX(Ranks!$1:$1048576,$A309,BP$1))","v":""},{"$f":"IF($A309=\"N/A\",Ref!$B$36,INDEX(Ranks!$1:$1048576,$A309,BQ$1))","v":""},{"$f":"IF($A309=\"N/A\",Ref!$B$36,INDEX(Ranks!$1:$1048576,$A309,BR$1))","v":""},{"$f":"IF($A309=\"N/A\",Ref!$B$36,INDEX(Ranks!$1:$1048576,$A309,BS$1))","v":""},{"$f":"IF($A309=\"N/A\",Ref!$B$36,INDEX(Ranks!$1:$1048576,$A309,BT$1))","v":""},{"$f":"IF($A309=\"N/A\",Ref!$B$36,INDEX(Ranks!$1:$1048576,$A309,BU$1))","v":""},{"$f":"IF($A309=\"N/A\",Ref!$B$36,INDEX(Ranks!$1:$1048576,$A309,BV$1))","v":""},{"$f":"IF($A309=\"N/A\",Ref!$B$36,INDEX(Ranks!$1:$1048576,$A309,BW$1))","v":""},{"$f":"IF($A309=\"N/A\",Ref!$B$36,INDEX(Ranks!$1:$1048576,$A309,BX$1))","v":""},{"$f":"IF($A309=\"N/A\",Ref!$B$36,INDEX(Ranks!$1:$1048576,$A309,BY$1))","v":""},{"$f":"IF($A309=\"N/A\",Ref!$B$36,INDEX(Ranks!$1:$1048576,$A309,BZ$1))","v":""},{"$f":"IF($A309=\"N/A\",Ref!$B$36,INDEX(Ranks!$1:$1048576,$A309,CA$1))","v":""},{"$f":"IF($A309=\"N/A\",Ref!$B$36,INDEX(Ranks!$1:$1048576,$A309,CB$1))","v":""},{"$f":"IF($A309=\"N/A\",Ref!$B$36,INDEX(Ranks!$1:$1048576,$A309,CC$1))","v":""},{"$f":"IF($A309=\"N/A\",Ref!$B$36,INDEX(Ranks!$1:$1048576,$A309,CD$1))","v":""},{"$f":"IF($A309=\"N/A\",Ref!$B$36,INDEX(Ranks!$1:$1048576,$A309,CE$1))","v":""},{"$f":"IF($A309=\"N/A\",Ref!$B$36,INDEX(Ranks!$1:$1048576,$A309,CF$1))","v":""},{"$f":"IF($A309=\"N/A\",Ref!$B$36,INDEX(Ranks!$1:$1048576,$A309,CG$1))","v":""},{"$f":"IF($A309=\"N/A\",Ref!$B$36,INDEX(Ranks!$1:$1048576,$A309,CH$1))","v":""},{"$f":"IF($A309=\"N/A\",Ref!$B$36,INDEX(Ranks!$1:$1048576,$A309,CI$1))","v":""},{"$f":"IF($A309=\"N/A\",Ref!$B$36,INDEX(Ranks!$1:$1048576,$A309,CJ$1))","v":""},{"$f":"IF($A309=\"N/A\",Ref!$B$36,INDEX(Ranks!$1:$1048576,$A309,CK$1))","v":""},{"$f":"IF($A309=\"N/A\",Ref!$B$36,INDEX(Ranks!$1:$1048576,$A309,CL$1))","v":""},{"$f":"IF($A309=\"N/A\",Ref!$B$36,INDEX(Ranks!$1:$1048576,$A309,CM$1))","v":""},{"$f":"IF($A309=\"N/A\",Ref!$B$36,INDEX(Ranks!$1:$1048576,$A309,CN$1))","v":""},{"$f":"IF($A309=\"N/A\",Ref!$B$36,INDEX(Ranks!$1:$1048576,$A309,CO$1))","v":""},{"$f":"IF($A309=\"N/A\",Ref!$B$36,INDEX(Ranks!$1:$1048576,$A309,CP$1))","v":""},{"$f":"IF($A309=\"N/A\",Ref!$B$36,INDEX(Ranks!$1:$1048576,$A309,CQ$1))","v":""},{"$f":"IF($A309=\"N/A\",Ref!$B$36,INDEX(Ranks!$1:$1048576,$A309,CR$1))","v":""},{"$f":"IF($A309=\"N/A\",Ref!$B$36,INDEX(Ranks!$1:$1048576,$A309,CS$1))","v":""},{"$f":"IF($A309=\"N/A\",Ref!$B$36,INDEX(Ranks!$1:$1048576,$A309,CT$1))","v":""},{"$f":"IF($A309=\"N/A\",Ref!$B$36,INDEX(Ranks!$1:$1048576,$A309,CU$1))","v":""},{"$f":"IF($A309=\"N/A\",Ref!$B$36,INDEX(Ranks!$1:$1048576,$A309,CV$1))","v":""},{"$f":"IF($A309=\"N/A\",Ref!$B$36,INDEX(Ranks!$1:$1048576,$A309,CW$1))","v":""},{"$f":"IF($A309=\"N/A\",Ref!$B$36,INDEX(Ranks!$1:$1048576,$A309,CX$1))","v":""},{"$f":"IF($A309=\"N/A\",Ref!$B$36,INDEX(Ranks!$1:$1048576,$A309,CY$1))","v":""},{"$f":"IF($A309=\"N/A\",Ref!$B$36,INDEX(Ranks!$1:$1048576,$A309,CZ$1))","v":""},{"$f":"IF($A309=\"N/A\",Ref!$B$36,INDEX(Ranks!$1:$1048576,$A309,DA$1))","v":""},{"$f":"IF($A309=\"N/A\",Ref!$B$36,INDEX(Ranks!$1:$1048576,$A309,DB$1))","v":""},{"$f":"IF($A309=\"N/A\",Ref!$B$36,INDEX(Ranks!$1:$1048576,$A309,DC$1))","v":""},{"$f":"IF($A309=\"N/A\",Ref!$B$36,INDEX(Ranks!$1:$1048576,$A309,DD$1))","v":""},{"$f":"IF($A309=\"N/A\",Ref!$B$36,INDEX(Ranks!$1:$1048576,$A309,DE$1))","v":""},{"$f":"IF($A309=\"N/A\",Ref!$B$36,INDEX(Ranks!$1:$1048576,$A309,DF$1))","v":""},{"$f":"IF($A309=\"N/A\",Ref!$B$36,INDEX(Ranks!$1:$1048576,$A309,DG$1))","v":""},{"$f":"IF($A309=\"N/A\",Ref!$B$36,INDEX(Ranks!$1:$1048576,$A309,DH$1))","v":""},{"$f":"IF($A309=\"N/A\",Ref!$B$36,INDEX(Ranks!$1:$1048576,$A309,DI$1))","v":""},{"$f":"IF($A309=\"N/A\",Ref!$B$36,INDEX(Ranks!$1:$1048576,$A309,DJ$1))","v":""},{"$f":"IF($A309=\"N/A\",Ref!$B$36,INDEX(Ranks!$1:$1048576,$A309,DK$1))","v":""},{"$f":"IF($A309=\"N/A\",Ref!$B$36,INDEX(Ranks!$1:$1048576,$A309,DL$1))","v":""},{"$f":"IF($A309=\"N/A\",Ref!$B$36,INDEX(Ranks!$1:$1048576,$A309,DM$1))","v":""},{"$f":"IF($A309=\"N/A\",Ref!$B$36,INDEX(Ranks!$1:$1048576,$A309,DN$1))","v":""},{"$f":"IF($A309=\"N/A\",Ref!$B$36,INDEX(Ranks!$1:$1048576,$A309,DO$1))","v":""},{"$f":"IF($A309=\"N/A\",Ref!$B$36,INDEX(Ranks!$1:$1048576,$A309,DP$1))","v":""},{"$f":"IF($A309=\"N/A\",Ref!$B$36,INDEX(Ranks!$1:$1048576,$A309,DQ$1))","v":""},{"$f":"IF($A309=\"N/A\",Ref!$B$36,INDEX(Ranks!$1:$1048576,$A309,DR$1))","v":""},{"$f":"IF($A309=\"N/A\",Ref!$B$36,INDEX(Ranks!$1:$1048576,$A309,DS$1))","v":""},{"$f":"IF($A309=\"N/A\",Ref!$B$36,INDEX(Ranks!$1:$1048576,$A309,DT$1))","v":""},{"$f":"IF($A309=\"N/A\",Ref!$B$36,INDEX(Ranks!$1:$1048576,$A309,DU$1))","v":""},{"$f":"IF($A309=\"N/A\",Ref!$B$36,INDEX(Ranks!$1:$1048576,$A309,DV$1))","v":""},{"$f":"IF($A309=\"N/A\",Ref!$B$36,INDEX(Ranks!$1:$1048576,$A309,DW$1))","v":""},{"$f":"IF($A309=\"N/A\",Ref!$B$36,INDEX(Ranks!$1:$1048576,$A309,DX$1))","v":""},{"$f":"IF($A309=\"N/A\",Ref!$B$36,INDEX(Ranks!$1:$1048576,$A309,DY$1))","v":""},{"$f":"IF($A309=\"N/A\",Ref!$B$36,INDEX(Ranks!$1:$1048576,$A309,DZ$1))","v":""},{"$f":"IF($A309=\"N/A\",Ref!$B$36,INDEX(Ranks!$1:$1048576,$A309,EA$1))","v":""},{"$f":"IF($A309=\"N/A\",Ref!$B$36,INDEX(Ranks!$1:$1048576,$A309,EB$1))","v":""}]
[{"$f":"IFERROR(MATCH('Portfolio Page'!L310,Ranks!L:L,0),\"N/A\")","v":"N/A"},null,{"$f":"IF($A310=\"N/A\",\"\",INDEX(Ranks!$1:$1048576,$A310,C$1))","v":""},{"$f":"IF($A310=\"N/A\",Ref!$B$36,INDEX(Ranks!$1:$1048576,$A310,D$1))","v":""},{"$f":"IF($A310=\"N/A\",Ref!$B$36,INDEX(Ranks!$1:$1048576,$A310,E$1))","v":""},{"$f":"IF($A310=\"N/A\",\"\",INDEX(Ranks!$1:$1048576,$A310,F$1))","v":""},{"$f":"IF($A310=\"N/A\",\"\",INDEX(Ranks!$1:$1048576,$A310,G$1))","v":""},{"$f":"IF($A310=\"N/A\",\"\",INDEX(Ranks!$1:$1048576,$A310,H$1))","v":""},{"$f":"IF($A310=\"N/A\",\"\",INDEX(Ranks!$1:$1048576,$A310,I$1))","v":""},{"$f":"IF($A310=\"N/A\",\"\",INDEX(Ranks!$1:$1048576,$A310,J$1))","v":""},{"$f":"IF($A310=\"N/A\",\"\",INDEX(Ranks!$1:$1048576,$A310,K$1))","v":""},null,{"$f":"IF($A310=\"N/A\",Ref!$B$36,INDEX(Ranks!$1:$1048576,$A310,M$1))","v":""},{"$f":"IF($A310=\"N/A\",Ref!$B$36,INDEX(Ranks!$1:$1048576,$A310,N$1))","v":""},{"$f":"IF($A310=\"N/A\",Ref!$B$36,INDEX(Ranks!$1:$1048576,$A310,O$1))","v":""},{"$f":"IF($A310=\"N/A\",Ref!$B$36,INDEX(Ranks!$1:$1048576,$A310,P$1))","v":""},{"$f":"IF($A310=\"N/A\",Ref!$B$36,INDEX(Ranks!$1:$1048576,$A310,Q$1))","v":""},{"$f":"IF($A310=\"N/A\",Ref!$B$36,INDEX(Ranks!$1:$1048576,$A310,R$1))","v":""},{"$f":"IF($A310=\"N/A\",Ref!$B$36,INDEX(Ranks!$1:$1048576,$A310,S$1))","v":""},{"$f":"IF($A310=\"N/A\",Ref!$B$36,INDEX(Ranks!$1:$1048576,$A310,T$1))","v":""},{"$f":"IF($A310=\"N/A\",Ref!$B$36,INDEX(Ranks!$1:$1048576,$A310,U$1))","v":""},{"$f":"IF($A310=\"N/A\",Ref!$B$36,INDEX(Ranks!$1:$1048576,$A310,V$1))","v":""},{"$f":"IF($A310=\"N/A\",Ref!$B$36,INDEX(Ranks!$1:$1048576,$A310,W$1))","v":""},{"$f":"IF($A310=\"N/A\",Ref!$B$36,INDEX(Ranks!$1:$1048576,$A310,X$1))","v":""},{"$f":"IF($A310=\"N/A\",Ref!$B$36,INDEX(Ranks!$1:$1048576,$A310,Y$1))","v":""},{"$f":"IF($A310=\"N/A\",Ref!$B$36,INDEX(Ranks!$1:$1048576,$A310,Z$1))","v":""},{"$f":"IF($A310=\"N/A\",Ref!$B$36,INDEX(Ranks!$1:$1048576,$A310,AA$1))","v":""},{"$f":"IF($A310=\"N/A\",Ref!$B$36,INDEX(Ranks!$1:$1048576,$A310,AB$1))","v":""},{"$f":"IF($A310=\"N/A\",Ref!$B$36,INDEX(Ranks!$1:$1048576,$A310,AC$1))","v":""},{"$f":"IF($A310=\"N/A\",Ref!$B$36,INDEX(Ranks!$1:$1048576,$A310,AD$1))","v":""},{"$f":"IF($A310=\"N/A\",Ref!$B$36,INDEX(Ranks!$1:$1048576,$A310,AE$1))","v":""},{"$f":"IF($A310=\"N/A\",Ref!$B$36,INDEX(Ranks!$1:$1048576,$A310,AF$1))","v":""},{"$f":"IF($A310=\"N/A\",Ref!$B$36,INDEX(Ranks!$1:$1048576,$A310,AG$1))","v":""},{"$f":"IF($A310=\"N/A\",Ref!$B$36,INDEX(Ranks!$1:$1048576,$A310,AH$1))","v":""},{"$f":"IF($A310=\"N/A\",Ref!$B$36,INDEX(Ranks!$1:$1048576,$A310,AI$1))","v":""},{"$f":"IF($A310=\"N/A\",Ref!$B$36,INDEX(Ranks!$1:$1048576,$A310,AJ$1))","v":""},{"$f":"IF($A310=\"N/A\",Ref!$B$36,INDEX(Ranks!$1:$1048576,$A310,AK$1))","v":""},{"$f":"IF($A310=\"N/A\",Ref!$B$36,INDEX(Ranks!$1:$1048576,$A310,AL$1))","v":""},{"$f":"IF($A310=\"N/A\",Ref!$B$36,INDEX(Ranks!$1:$1048576,$A310,AM$1))","v":""},{"$f":"IF($A310=\"N/A\",Ref!$B$36,INDEX(Ranks!$1:$1048576,$A310,AN$1))","v":""},{"$f":"IF($A310=\"N/A\",Ref!$B$36,INDEX(Ranks!$1:$1048576,$A310,AO$1))","v":""},{"$f":"IF($A310=\"N/A\",Ref!$B$36,INDEX(Ranks!$1:$1048576,$A310,AP$1))","v":""},{"$f":"IF($A310=\"N/A\",Ref!$B$36,INDEX(Ranks!$1:$1048576,$A310,AQ$1))","v":""},{"$f":"IF($A310=\"N/A\",Ref!$B$36,INDEX(Ranks!$1:$1048576,$A310,AR$1))","v":""},{"$f":"IF($A310=\"N/A\",Ref!$B$36,INDEX(Ranks!$1:$1048576,$A310,AS$1))","v":""},{"$f":"IF($A310=\"N/A\",Ref!$B$36,INDEX(Ranks!$1:$1048576,$A310,AT$1))","v":""},{"$f":"IF($A310=\"N/A\",Ref!$B$36,INDEX(Ranks!$1:$1048576,$A310,AU$1))","v":""},{"$f":"IF($A310=\"N/A\",Ref!$B$36,INDEX(Ranks!$1:$1048576,$A310,AV$1))","v":""},{"$f":"IF($A310=\"N/A\",Ref!$B$36,INDEX(Ranks!$1:$1048576,$A310,AW$1))","v":""},{"$f":"IF($A310=\"N/A\",Ref!$B$36,INDEX(Ranks!$1:$1048576,$A310,AX$1))","v":""},{"$f":"IF($A310=\"N/A\",Ref!$B$36,INDEX(Ranks!$1:$1048576,$A310,AY$1))","v":""},{"$f":"IF($A310=\"N/A\",Ref!$B$36,INDEX(Ranks!$1:$1048576,$A310,AZ$1))","v":""},{"$f":"IF($A310=\"N/A\",Ref!$B$36,INDEX(Ranks!$1:$1048576,$A310,BA$1))","v":""},{"$f":"IF($A310=\"N/A\",Ref!$B$36,INDEX(Ranks!$1:$1048576,$A310,BB$1))","v":""},{"$f":"IF($A310=\"N/A\",Ref!$B$36,INDEX(Ranks!$1:$1048576,$A310,BC$1))","v":""},{"$f":"IF($A310=\"N/A\",Ref!$B$36,INDEX(Ranks!$1:$1048576,$A310,BD$1))","v":""},{"$f":"IF($A310=\"N/A\",Ref!$B$36,INDEX(Ranks!$1:$1048576,$A310,BE$1))","v":""},{"$f":"IF($A310=\"N/A\",Ref!$B$36,INDEX(Ranks!$1:$1048576,$A310,BF$1))","v":""},{"$f":"IF($A310=\"N/A\",Ref!$B$36,INDEX(Ranks!$1:$1048576,$A310,BG$1))","v":""},{"$f":"IF($A310=\"N/A\",Ref!$B$36,INDEX(Ranks!$1:$1048576,$A310,BH$1))","v":""},{"$f":"IF($A310=\"N/A\",Ref!$B$36,INDEX(Ranks!$1:$1048576,$A310,BI$1))","v":""},{"$f":"IF($A310=\"N/A\",Ref!$B$36,INDEX(Ranks!$1:$1048576,$A310,BJ$1))","v":""},{"$f":"IF($A310=\"N/A\",Ref!$B$36,INDEX(Ranks!$1:$1048576,$A310,BK$1))","v":""},{"$f":"IF($A310=\"N/A\",Ref!$B$36,INDEX(Ranks!$1:$1048576,$A310,BL$1))","v":""},{"$f":"IF($A310=\"N/A\",Ref!$B$36,INDEX(Ranks!$1:$1048576,$A310,BM$1))","v":""},{"$f":"IF($A310=\"N/A\",Ref!$B$36,INDEX(Ranks!$1:$1048576,$A310,BN$1))","v":""},{"$f":"IF($A310=\"N/A\",Ref!$B$36,INDEX(Ranks!$1:$1048576,$A310,BO$1))","v":""},{"$f":"IF($A310=\"N/A\",Ref!$B$36,INDEX(Ranks!$1:$1048576,$A310,BP$1))","v":""},{"$f":"IF($A310=\"N/A\",Ref!$B$36,INDEX(Ranks!$1:$1048576,$A310,BQ$1))","v":""},{"$f":"IF($A310=\"N/A\",Ref!$B$36,INDEX(Ranks!$1:$1048576,$A310,BR$1))","v":""},{"$f":"IF($A310=\"N/A\",Ref!$B$36,INDEX(Ranks!$1:$1048576,$A310,BS$1))","v":""},{"$f":"IF($A310=\"N/A\",Ref!$B$36,INDEX(Ranks!$1:$1048576,$A310,BT$1))","v":""},{"$f":"IF($A310=\"N/A\",Ref!$B$36,INDEX(Ranks!$1:$1048576,$A310,BU$1))","v":""},{"$f":"IF($A310=\"N/A\",Ref!$B$36,INDEX(Ranks!$1:$1048576,$A310,BV$1))","v":""},{"$f":"IF($A310=\"N/A\",Ref!$B$36,INDEX(Ranks!$1:$1048576,$A310,BW$1))","v":""},{"$f":"IF($A310=\"N/A\",Ref!$B$36,INDEX(Ranks!$1:$1048576,$A310,BX$1))","v":""},{"$f":"IF($A310=\"N/A\",Ref!$B$36,INDEX(Ranks!$1:$1048576,$A310,BY$1))","v":""},{"$f":"IF($A310=\"N/A\",Ref!$B$36,INDEX(Ranks!$1:$1048576,$A310,BZ$1))","v":""},{"$f":"IF($A310=\"N/A\",Ref!$B$36,INDEX(Ranks!$1:$1048576,$A310,CA$1))","v":""},{"$f":"IF($A310=\"N/A\",Ref!$B$36,INDEX(Ranks!$1:$1048576,$A310,CB$1))","v":""},{"$f":"IF($A310=\"N/A\",Ref!$B$36,INDEX(Ranks!$1:$1048576,$A310,CC$1))","v":""},{"$f":"IF($A310=\"N/A\",Ref!$B$36,INDEX(Ranks!$1:$1048576,$A310,CD$1))","v":""},{"$f":"IF($A310=\"N/A\",Ref!$B$36,INDEX(Ranks!$1:$1048576,$A310,CE$1))","v":""},{"$f":"IF($A310=\"N/A\",Ref!$B$36,INDEX(Ranks!$1:$1048576,$A310,CF$1))","v":""},{"$f":"IF($A310=\"N/A\",Ref!$B$36,INDEX(Ranks!$1:$1048576,$A310,CG$1))","v":""},{"$f":"IF($A310=\"N/A\",Ref!$B$36,INDEX(Ranks!$1:$1048576,$A310,CH$1))","v":""},{"$f":"IF($A310=\"N/A\",Ref!$B$36,INDEX(Ranks!$1:$1048576,$A310,CI$1))","v":""},{"$f":"IF($A310=\"N/A\",Ref!$B$36,INDEX(Ranks!$1:$1048576,$A310,CJ$1))","v":""},{"$f":"IF($A310=\"N/A\",Ref!$B$36,INDEX(Ranks!$1:$1048576,$A310,CK$1))","v":""},{"$f":"IF($A310=\"N/A\",Ref!$B$36,INDEX(Ranks!$1:$1048576,$A310,CL$1))","v":""},{"$f":"IF($A310=\"N/A\",Ref!$B$36,INDEX(Ranks!$1:$1048576,$A310,CM$1))","v":""},{"$f":"IF($A310=\"N/A\",Ref!$B$36,INDEX(Ranks!$1:$1048576,$A310,CN$1))","v":""},{"$f":"IF($A310=\"N/A\",Ref!$B$36,INDEX(Ranks!$1:$1048576,$A310,CO$1))","v":""},{"$f":"IF($A310=\"N/A\",Ref!$B$36,INDEX(Ranks!$1:$1048576,$A310,CP$1))","v":""},{"$f":"IF($A310=\"N/A\",Ref!$B$36,INDEX(Ranks!$1:$1048576,$A310,CQ$1))","v":""},{"$f":"IF($A310=\"N/A\",Ref!$B$36,INDEX(Ranks!$1:$1048576,$A310,CR$1))","v":""},{"$f":"IF($A310=\"N/A\",Ref!$B$36,INDEX(Ranks!$1:$1048576,$A310,CS$1))","v":""},{"$f":"IF($A310=\"N/A\",Ref!$B$36,INDEX(Ranks!$1:$1048576,$A310,CT$1))","v":""},{"$f":"IF($A310=\"N/A\",Ref!$B$36,INDEX(Ranks!$1:$1048576,$A310,CU$1))","v":""},{"$f":"IF($A310=\"N/A\",Ref!$B$36,INDEX(Ranks!$1:$1048576,$A310,CV$1))","v":""},{"$f":"IF($A310=\"N/A\",Ref!$B$36,INDEX(Ranks!$1:$1048576,$A310,CW$1))","v":""},{"$f":"IF($A310=\"N/A\",Ref!$B$36,INDEX(Ranks!$1:$1048576,$A310,CX$1))","v":""},{"$f":"IF($A310=\"N/A\",Ref!$B$36,INDEX(Ranks!$1:$1048576,$A310,CY$1))","v":""},{"$f":"IF($A310=\"N/A\",Ref!$B$36,INDEX(Ranks!$1:$1048576,$A310,CZ$1))","v":""},{"$f":"IF($A310=\"N/A\",Ref!$B$36,INDEX(Ranks!$1:$1048576,$A310,DA$1))","v":""},{"$f":"IF($A310=\"N/A\",Ref!$B$36,INDEX(Ranks!$1:$1048576,$A310,DB$1))","v":""},{"$f":"IF($A310=\"N/A\",Ref!$B$36,INDEX(Ranks!$1:$1048576,$A310,DC$1))","v":""},{"$f":"IF($A310=\"N/A\",Ref!$B$36,INDEX(Ranks!$1:$1048576,$A310,DD$1))","v":""},{"$f":"IF($A310=\"N/A\",Ref!$B$36,INDEX(Ranks!$1:$1048576,$A310,DE$1))","v":""},{"$f":"IF($A310=\"N/A\",Ref!$B$36,INDEX(Ranks!$1:$1048576,$A310,DF$1))","v":""},{"$f":"IF($A310=\"N/A\",Ref!$B$36,INDEX(Ranks!$1:$1048576,$A310,DG$1))","v":""},{"$f":"IF($A310=\"N/A\",Ref!$B$36,INDEX(Ranks!$1:$1048576,$A310,DH$1))","v":""},{"$f":"IF($A310=\"N/A\",Ref!$B$36,INDEX(Ranks!$1:$1048576,$A310,DI$1))","v":""},{"$f":"IF($A310=\"N/A\",Ref!$B$36,INDEX(Ranks!$1:$1048576,$A310,DJ$1))","v":""},{"$f":"IF($A310=\"N/A\",Ref!$B$36,INDEX(Ranks!$1:$1048576,$A310,DK$1))","v":""},{"$f":"IF($A310=\"N/A\",Ref!$B$36,INDEX(Ranks!$1:$1048576,$A310,DL$1))","v":""},{"$f":"IF($A310=\"N/A\",Ref!$B$36,INDEX(Ranks!$1:$1048576,$A310,DM$1))","v":""},{"$f":"IF($A310=\"N/A\",Ref!$B$36,INDEX(Ranks!$1:$1048576,$A310,DN$1))","v":""},{"$f":"IF($A310=\"N/A\",Ref!$B$36,INDEX(Ranks!$1:$1048576,$A310,DO$1))","v":""},{"$f":"IF($A310=\"N/A\",Ref!$B$36,INDEX(Ranks!$1:$1048576,$A310,DP$1))","v":""},{"$f":"IF($A310=\"N/A\",Ref!$B$36,INDEX(Ranks!$1:$1048576,$A310,DQ$1))","v":""},{"$f":"IF($A310=\"N/A\",Ref!$B$36,INDEX(Ranks!$1:$1048576,$A310,DR$1))","v":""},{"$f":"IF($A310=\"N/A\",Ref!$B$36,INDEX(Ranks!$1:$1048576,$A310,DS$1))","v":""},{"$f":"IF($A310=\"N/A\",Ref!$B$36,INDEX(Ranks!$1:$1048576,$A310,DT$1))","v":""},{"$f":"IF($A310=\"N/A\",Ref!$B$36,INDEX(Ranks!$1:$1048576,$A310,DU$1))","v":""},{"$f":"IF($A310=\"N/A\",Ref!$B$36,INDEX(Ranks!$1:$1048576,$A310,DV$1))","v":""},{"$f":"IF($A310=\"N/A\",Ref!$B$36,INDEX(Ranks!$1:$1048576,$A310,DW$1))","v":""},{"$f":"IF($A310=\"N/A\",Ref!$B$36,INDEX(Ranks!$1:$1048576,$A310,DX$1))","v":""},{"$f":"IF($A310=\"N/A\",Ref!$B$36,INDEX(Ranks!$1:$1048576,$A310,DY$1))","v":""},{"$f":"IF($A310=\"N/A\",Ref!$B$36,INDEX(Ranks!$1:$1048576,$A310,DZ$1))","v":""},{"$f":"IF($A310=\"N/A\",Ref!$B$36,INDEX(Ranks!$1:$1048576,$A310,EA$1))","v":""},{"$f":"IF($A310=\"N/A\",Ref!$B$36,INDEX(Ranks!$1:$1048576,$A310,EB$1))","v":""}]
[{"$f":"IFERROR(MATCH('Portfolio Page'!L311,Ranks!L:L,0),\"N/A\")","v":"N/A"},null,{"$f":"IF($A311=\"N/A\",\"\",INDEX(Ranks!$1:$1048576,$A311,C$1))","v":""},{"$f":"IF($A311=\"N/A\",Ref!$B$36,INDEX(Ranks!$1:$1048576,$A311,D$1))","v":""},{"$f":"IF($A311=\"N/A\",Ref!$B$36,INDEX(Ranks!$1:$1048576,$A311,E$1))","v":""},{"$f":"IF($A311=\"N/A\",\"\",INDEX(Ranks!$1:$1048576,$A311,F$1))","v":""},{"$f":"IF($A311=\"N/A\",\"\",INDEX(Ranks!$1:$1048576,$A311,G$1))","v":""},{"$f":"IF($A311=\"N/A\",\"\",INDEX(Ranks!$1:$1048576,$A311,H$1))","v":""},{"$f":"IF($A311=\"N/A\",\"\",INDEX(Ranks!$1:$1048576,$A311,I$1))","v":""},{"$f":"IF($A311=\"N/A\",\"\",INDEX(Ranks!$1:$1048576,$A311,J$1))","v":""},{"$f":"IF($A311=\"N/A\",\"\",INDEX(Ranks!$1:$1048576,$A311,K$1))","v":""},null,{"$f":"IF($A311=\"N/A\",Ref!$B$36,INDEX(Ranks!$1:$1048576,$A311,M$1))","v":""},{"$f":"IF($A311=\"N/A\",Ref!$B$36,INDEX(Ranks!$1:$1048576,$A311,N$1))","v":""},{"$f":"IF($A311=\"N/A\",Ref!$B$36,INDEX(Ranks!$1:$1048576,$A311,O$1))","v":""},{"$f":"IF($A311=\"N/A\",Ref!$B$36,INDEX(Ranks!$1:$1048576,$A311,P$1))","v":""},{"$f":"IF($A311=\"N/A\",Ref!$B$36,INDEX(Ranks!$1:$1048576,$A311,Q$1))","v":""},{"$f":"IF($A311=\"N/A\",Ref!$B$36,INDEX(Ranks!$1:$1048576,$A311,R$1))","v":""},{"$f":"IF($A311=\"N/A\",Ref!$B$36,INDEX(Ranks!$1:$1048576,$A311,S$1))","v":""},{"$f":"IF($A311=\"N/A\",Ref!$B$36,INDEX(Ranks!$1:$1048576,$A311,T$1))","v":""},{"$f":"IF($A311=\"N/A\",Ref!$B$36,INDEX(Ranks!$1:$1048576,$A311,U$1))","v":""},{"$f":"IF($A311=\"N/A\",Ref!$B$36,INDEX(Ranks!$1:$1048576,$A311,V$1))","v":""},{"$f":"IF($A311=\"N/A\",Ref!$B$36,INDEX(Ranks!$1:$1048576,$A311,W$1))","v":""},{"$f":"IF($A311=\"N/A\",Ref!$B$36,INDEX(Ranks!$1:$1048576,$A311,X$1))","v":""},{"$f":"IF($A311=\"N/A\",Ref!$B$36,INDEX(Ranks!$1:$1048576,$A311,Y$1))","v":""},{"$f":"IF($A311=\"N/A\",Ref!$B$36,INDEX(Ranks!$1:$1048576,$A311,Z$1))","v":""},{"$f":"IF($A311=\"N/A\",Ref!$B$36,INDEX(Ranks!$1:$1048576,$A311,AA$1))","v":""},{"$f":"IF($A311=\"N/A\",Ref!$B$36,INDEX(Ranks!$1:$1048576,$A311,AB$1))","v":""},{"$f":"IF($A311=\"N/A\",Ref!$B$36,INDEX(Ranks!$1:$1048576,$A311,AC$1))","v":""},{"$f":"IF($A311=\"N/A\",Ref!$B$36,INDEX(Ranks!$1:$1048576,$A311,AD$1))","v":""},{"$f":"IF($A311=\"N/A\",Ref!$B$36,INDEX(Ranks!$1:$1048576,$A311,AE$1))","v":""},{"$f":"IF($A311=\"N/A\",Ref!$B$36,INDEX(Ranks!$1:$1048576,$A311,AF$1))","v":""},{"$f":"IF($A311=\"N/A\",Ref!$B$36,INDEX(Ranks!$1:$1048576,$A311,AG$1))","v":""},{"$f":"IF($A311=\"N/A\",Ref!$B$36,INDEX(Ranks!$1:$1048576,$A311,AH$1))","v":""},{"$f":"IF($A311=\"N/A\",Ref!$B$36,INDEX(Ranks!$1:$1048576,$A311,AI$1))","v":""},{"$f":"IF($A311=\"N/A\",Ref!$B$36,INDEX(Ranks!$1:$1048576,$A311,AJ$1))","v":""},{"$f":"IF($A311=\"N/A\",Ref!$B$36,INDEX(Ranks!$1:$1048576,$A311,AK$1))","v":""},{"$f":"IF($A311=\"N/A\",Ref!$B$36,INDEX(Ranks!$1:$1048576,$A311,AL$1))","v":""},{"$f":"IF($A311=\"N/A\",Ref!$B$36,INDEX(Ranks!$1:$1048576,$A311,AM$1))","v":""},{"$f":"IF($A311=\"N/A\",Ref!$B$36,INDEX(Ranks!$1:$1048576,$A311,AN$1))","v":""},{"$f":"IF($A311=\"N/A\",Ref!$B$36,INDEX(Ranks!$1:$1048576,$A311,AO$1))","v":""},{"$f":"IF($A311=\"N/A\",Ref!$B$36,INDEX(Ranks!$1:$1048576,$A311,AP$1))","v":""},{"$f":"IF($A311=\"N/A\",Ref!$B$36,INDEX(Ranks!$1:$1048576,$A311,AQ$1))","v":""},{"$f":"IF($A311=\"N/A\",Ref!$B$36,INDEX(Ranks!$1:$1048576,$A311,AR$1))","v":""},{"$f":"IF($A311=\"N/A\",Ref!$B$36,INDEX(Ranks!$1:$1048576,$A311,AS$1))","v":""},{"$f":"IF($A311=\"N/A\",Ref!$B$36,INDEX(Ranks!$1:$1048576,$A311,AT$1))","v":""},{"$f":"IF($A311=\"N/A\",Ref!$B$36,INDEX(Ranks!$1:$1048576,$A311,AU$1))","v":""},{"$f":"IF($A311=\"N/A\",Ref!$B$36,INDEX(Ranks!$1:$1048576,$A311,AV$1))","v":""},{"$f":"IF($A311=\"N/A\",Ref!$B$36,INDEX(Ranks!$1:$1048576,$A311,AW$1))","v":""},{"$f":"IF($A311=\"N/A\",Ref!$B$36,INDEX(Ranks!$1:$1048576,$A311,AX$1))","v":""},{"$f":"IF($A311=\"N/A\",Ref!$B$36,INDEX(Ranks!$1:$1048576,$A311,AY$1))","v":""},{"$f":"IF($A311=\"N/A\",Ref!$B$36,INDEX(Ranks!$1:$1048576,$A311,AZ$1))","v":""},{"$f":"IF($A311=\"N/A\",Ref!$B$36,INDEX(Ranks!$1:$1048576,$A311,BA$1))","v":""},{"$f":"IF($A311=\"N/A\",Ref!$B$36,INDEX(Ranks!$1:$1048576,$A311,BB$1))","v":""},{"$f":"IF($A311=\"N/A\",Ref!$B$36,INDEX(Ranks!$1:$1048576,$A311,BC$1))","v":""},{"$f":"IF($A311=\"N/A\",Ref!$B$36,INDEX(Ranks!$1:$1048576,$A311,BD$1))","v":""},{"$f":"IF($A311=\"N/A\",Ref!$B$36,INDEX(Ranks!$1:$1048576,$A311,BE$1))","v":""},{"$f":"IF($A311=\"N/A\",Ref!$B$36,INDEX(Ranks!$1:$1048576,$A311,BF$1))","v":""},{"$f":"IF($A311=\"N/A\",Ref!$B$36,INDEX(Ranks!$1:$1048576,$A311,BG$1))","v":""},{"$f":"IF($A311=\"N/A\",Ref!$B$36,INDEX(Ranks!$1:$1048576,$A311,BH$1))","v":""},{"$f":"IF($A311=\"N/A\",Ref!$B$36,INDEX(Ranks!$1:$1048576,$A311,BI$1))","v":""},{"$f":"IF($A311=\"N/A\",Ref!$B$36,INDEX(Ranks!$1:$1048576,$A311,BJ$1))","v":""},{"$f":"IF($A311=\"N/A\",Ref!$B$36,INDEX(Ranks!$1:$1048576,$A311,BK$1))","v":""},{"$f":"IF($A311=\"N/A\",Ref!$B$36,INDEX(Ranks!$1:$1048576,$A311,BL$1))","v":""},{"$f":"IF($A311=\"N/A\",Ref!$B$36,INDEX(Ranks!$1:$1048576,$A311,BM$1))","v":""},{"$f":"IF($A311=\"N/A\",Ref!$B$36,INDEX(Ranks!$1:$1048576,$A311,BN$1))","v":""},{"$f":"IF($A311=\"N/A\",Ref!$B$36,INDEX(Ranks!$1:$1048576,$A311,BO$1))","v":""},{"$f":"IF($A311=\"N/A\",Ref!$B$36,INDEX(Ranks!$1:$1048576,$A311,BP$1))","v":""},{"$f":"IF($A311=\"N/A\",Ref!$B$36,INDEX(Ranks!$1:$1048576,$A311,BQ$1))","v":""},{"$f":"IF($A311=\"N/A\",Ref!$B$36,INDEX(Ranks!$1:$1048576,$A311,BR$1))","v":""},{"$f":"IF($A311=\"N/A\",Ref!$B$36,INDEX(Ranks!$1:$1048576,$A311,BS$1))","v":""},{"$f":"IF($A311=\"N/A\",Ref!$B$36,INDEX(Ranks!$1:$1048576,$A311,BT$1))","v":""},{"$f":"IF($A311=\"N/A\",Ref!$B$36,INDEX(Ranks!$1:$1048576,$A311,BU$1))","v":""},{"$f":"IF($A311=\"N/A\",Ref!$B$36,INDEX(Ranks!$1:$1048576,$A311,BV$1))","v":""},{"$f":"IF($A311=\"N/A\",Ref!$B$36,INDEX(Ranks!$1:$1048576,$A311,BW$1))","v":""},{"$f":"IF($A311=\"N/A\",Ref!$B$36,INDEX(Ranks!$1:$1048576,$A311,BX$1))","v":""},{"$f":"IF($A311=\"N/A\",Ref!$B$36,INDEX(Ranks!$1:$1048576,$A311,BY$1))","v":""},{"$f":"IF($A311=\"N/A\",Ref!$B$36,INDEX(Ranks!$1:$1048576,$A311,BZ$1))","v":""},{"$f":"IF($A311=\"N/A\",Ref!$B$36,INDEX(Ranks!$1:$1048576,$A311,CA$1))","v":""},{"$f":"IF($A311=\"N/A\",Ref!$B$36,INDEX(Ranks!$1:$1048576,$A311,CB$1))","v":""},{"$f":"IF($A311=\"N/A\",Ref!$B$36,INDEX(Ranks!$1:$1048576,$A311,CC$1))","v":""},{"$f":"IF($A311=\"N/A\",Ref!$B$36,INDEX(Ranks!$1:$1048576,$A311,CD$1))","v":""},{"$f":"IF($A311=\"N/A\",Ref!$B$36,INDEX(Ranks!$1:$1048576,$A311,CE$1))","v":""},{"$f":"IF($A311=\"N/A\",Ref!$B$36,INDEX(Ranks!$1:$1048576,$A311,CF$1))","v":""},{"$f":"IF($A311=\"N/A\",Ref!$B$36,INDEX(Ranks!$1:$1048576,$A311,CG$1))","v":""},{"$f":"IF($A311=\"N/A\",Ref!$B$36,INDEX(Ranks!$1:$1048576,$A311,CH$1))","v":""},{"$f":"IF($A311=\"N/A\",Ref!$B$36,INDEX(Ranks!$1:$1048576,$A311,CI$1))","v":""},{"$f":"IF($A311=\"N/A\",Ref!$B$36,INDEX(Ranks!$1:$1048576,$A311,CJ$1))","v":""},{"$f":"IF($A311=\"N/A\",Ref!$B$36,INDEX(Ranks!$1:$1048576,$A311,CK$1))","v":""},{"$f":"IF($A311=\"N/A\",Ref!$B$36,INDEX(Ranks!$1:$1048576,$A311,CL$1))","v":""},{"$f":"IF($A311=\"N/A\",Ref!$B$36,INDEX(Ranks!$1:$1048576,$A311,CM$1))","v":""},{"$f":"IF($A311=\"N/A\",Ref!$B$36,INDEX(Ranks!$1:$1048576,$A311,CN$1))","v":""},{"$f":"IF($A311=\"N/A\",Ref!$B$36,INDEX(Ranks!$1:$1048576,$A311,CO$1))","v":""},{"$f":"IF($A311=\"N/A\",Ref!$B$36,INDEX(Ranks!$1:$1048576,$A311,CP$1))","v":""},{"$f":"IF($A311=\"N/A\",Ref!$B$36,INDEX(Ranks!$1:$1048576,$A311,CQ$1))","v":""},{"$f":"IF($A311=\"N/A\",Ref!$B$36,INDEX(Ranks!$1:$1048576,$A311,CR$1))","v":""},{"$f":"IF($A311=\"N/A\",Ref!$B$36,INDEX(Ranks!$1:$1048576,$A311,CS$1))","v":""},{"$f":"IF($A311=\"N/A\",Ref!$B$36,INDEX(Ranks!$1:$1048576,$A311,CT$1))","v":""},{"$f":"IF($A311=\"N/A\",Ref!$B$36,INDEX(Ranks!$1:$1048576,$A311,CU$1))","v":""},{"$f":"IF($A311=\"N/A\",Ref!$B$36,INDEX(Ranks!$1:$1048576,$A311,CV$1))","v":""},{"$f":"IF($A311=\"N/A\",Ref!$B$36,INDEX(Ranks!$1:$1048576,$A311,CW$1))","v":""},{"$f":"IF($A311=\"N/A\",Ref!$B$36,INDEX(Ranks!$1:$1048576,$A311,CX$1))","v":""},{"$f":"IF($A311=\"N/A\",Ref!$B$36,INDEX(Ranks!$1:$1048576,$A311,CY$1))","v":""},{"$f":"IF($A311=\"N/A\",Ref!$B$36,INDEX(Ranks!$1:$1048576,$A311,CZ$1))","v":""},{"$f":"IF($A311=\"N/A\",Ref!$B$36,INDEX(Ranks!$1:$1048576,$A311,DA$1))","v":""},{"$f":"IF($A311=\"N/A\",Ref!$B$36,INDEX(Ranks!$1:$1048576,$A311,DB$1))","v":""},{"$f":"IF($A311=\"N/A\",Ref!$B$36,INDEX(Ranks!$1:$1048576,$A311,DC$1))","v":""},{"$f":"IF($A311=\"N/A\",Ref!$B$36,INDEX(Ranks!$1:$1048576,$A311,DD$1))","v":""},{"$f":"IF($A311=\"N/A\",Ref!$B$36,INDEX(Ranks!$1:$1048576,$A311,DE$1))","v":""},{"$f":"IF($A311=\"N/A\",Ref!$B$36,INDEX(Ranks!$1:$1048576,$A311,DF$1))","v":""},{"$f":"IF($A311=\"N/A\",Ref!$B$36,INDEX(Ranks!$1:$1048576,$A311,DG$1))","v":""},{"$f":"IF($A311=\"N/A\",Ref!$B$36,INDEX(Ranks!$1:$1048576,$A311,DH$1))","v":""},{"$f":"IF($A311=\"N/A\",Ref!$B$36,INDEX(Ranks!$1:$1048576,$A311,DI$1))","v":""},{"$f":"IF($A311=\"N/A\",Ref!$B$36,INDEX(Ranks!$1:$1048576,$A311,DJ$1))","v":""},{"$f":"IF($A311=\"N/A\",Ref!$B$36,INDEX(Ranks!$1:$1048576,$A311,DK$1))","v":""},{"$f":"IF($A311=\"N/A\",Ref!$B$36,INDEX(Ranks!$1:$1048576,$A311,DL$1))","v":""},{"$f":"IF($A311=\"N/A\",Ref!$B$36,INDEX(Ranks!$1:$1048576,$A311,DM$1))","v":""},{"$f":"IF($A311=\"N/A\",Ref!$B$36,INDEX(Ranks!$1:$1048576,$A311,DN$1))","v":""},{"$f":"IF($A311=\"N/A\",Ref!$B$36,INDEX(Ranks!$1:$1048576,$A311,DO$1))","v":""},{"$f":"IF($A311=\"N/A\",Ref!$B$36,INDEX(Ranks!$1:$1048576,$A311,DP$1))","v":""},{"$f":"IF($A311=\"N/A\",Ref!$B$36,INDEX(Ranks!$1:$1048576,$A311,DQ$1))","v":""},{"$f":"IF($A311=\"N/A\",Ref!$B$36,INDEX(Ranks!$1:$1048576,$A311,DR$1))","v":""},{"$f":"IF($A311=\"N/A\",Ref!$B$36,INDEX(Ranks!$1:$1048576,$A311,DS$1))","v":""},{"$f":"IF($A311=\"N/A\",Ref!$B$36,INDEX(Ranks!$1:$1048576,$A311,DT$1))","v":""},{"$f":"IF($A311=\"N/A\",Ref!$B$36,INDEX(Ranks!$1:$1048576,$A311,DU$1))","v":""},{"$f":"IF($A311=\"N/A\",Ref!$B$36,INDEX(Ranks!$1:$1048576,$A311,DV$1))","v":""},{"$f":"IF($A311=\"N/A\",Ref!$B$36,INDEX(Ranks!$1:$1048576,$A311,DW$1))","v":""},{"$f":"IF($A311=\"N/A\",Ref!$B$36,INDEX(Ranks!$1:$1048576,$A311,DX$1))","v":""},{"$f":"IF($A311=\"N/A\",Ref!$B$36,INDEX(Ranks!$1:$1048576,$A311,DY$1))","v":""},{"$f":"IF($A311=\"N/A\",Ref!$B$36,INDEX(Ranks!$1:$1048576,$A311,DZ$1))","v":""},{"$f":"IF($A311=\"N/A\",Ref!$B$36,INDEX(Ranks!$1:$1048576,$A311,EA$1))","v":""},{"$f":"IF($A311=\"N/A\",Ref!$B$36,INDEX(Ranks!$1:$1048576,$A311,EB$1))","v":""}]
[{"$f":"IFERROR(MATCH('Portfolio Page'!L312,Ranks!L:L,0),\"N/A\")","v":"N/A"},null,{"$f":"IF($A312=\"N/A\",\"\",INDEX(Ranks!$1:$1048576,$A312,C$1))","v":""},{"$f":"IF($A312=\"N/A\",Ref!$B$36,INDEX(Ranks!$1:$1048576,$A312,D$1))","v":""},{"$f":"IF($A312=\"N/A\",Ref!$B$36,INDEX(Ranks!$1:$1048576,$A312,E$1))","v":""},{"$f":"IF($A312=\"N/A\",\"\",INDEX(Ranks!$1:$1048576,$A312,F$1))","v":""},{"$f":"IF($A312=\"N/A\",\"\",INDEX(Ranks!$1:$1048576,$A312,G$1))","v":""},{"$f":"IF($A312=\"N/A\",\"\",INDEX(Ranks!$1:$1048576,$A312,H$1))","v":""},{"$f":"IF($A312=\"N/A\",\"\",INDEX(Ranks!$1:$1048576,$A312,I$1))","v":""},{"$f":"IF($A312=\"N/A\",\"\",INDEX(Ranks!$1:$1048576,$A312,J$1))","v":""},{"$f":"IF($A312=\"N/A\",\"\",INDEX(Ranks!$1:$1048576,$A312,K$1))","v":""},null,{"$f":"IF($A312=\"N/A\",Ref!$B$36,INDEX(Ranks!$1:$1048576,$A312,M$1))","v":""},{"$f":"IF($A312=\"N/A\",Ref!$B$36,INDEX(Ranks!$1:$1048576,$A312,N$1))","v":""},{"$f":"IF($A312=\"N/A\",Ref!$B$36,INDEX(Ranks!$1:$1048576,$A312,O$1))","v":""},{"$f":"IF($A312=\"N/A\",Ref!$B$36,INDEX(Ranks!$1:$1048576,$A312,P$1))","v":""},{"$f":"IF($A312=\"N/A\",Ref!$B$36,INDEX(Ranks!$1:$1048576,$A312,Q$1))","v":""},{"$f":"IF($A312=\"N/A\",Ref!$B$36,INDEX(Ranks!$1:$1048576,$A312,R$1))","v":""},{"$f":"IF($A312=\"N/A\",Ref!$B$36,INDEX(Ranks!$1:$1048576,$A312,S$1))","v":""},{"$f":"IF($A312=\"N/A\",Ref!$B$36,INDEX(Ranks!$1:$1048576,$A312,T$1))","v":""},{"$f":"IF($A312=\"N/A\",Ref!$B$36,INDEX(Ranks!$1:$1048576,$A312,U$1))","v":""},{"$f":"IF($A312=\"N/A\",Ref!$B$36,INDEX(Ranks!$1:$1048576,$A312,V$1))","v":""},{"$f":"IF($A312=\"N/A\",Ref!$B$36,INDEX(Ranks!$1:$1048576,$A312,W$1))","v":""},{"$f":"IF($A312=\"N/A\",Ref!$B$36,INDEX(Ranks!$1:$1048576,$A312,X$1))","v":""},{"$f":"IF($A312=\"N/A\",Ref!$B$36,INDEX(Ranks!$1:$1048576,$A312,Y$1))","v":""},{"$f":"IF($A312=\"N/A\",Ref!$B$36,INDEX(Ranks!$1:$1048576,$A312,Z$1))","v":""},{"$f":"IF($A312=\"N/A\",Ref!$B$36,INDEX(Ranks!$1:$1048576,$A312,AA$1))","v":""},{"$f":"IF($A312=\"N/A\",Ref!$B$36,INDEX(Ranks!$1:$1048576,$A312,AB$1))","v":""},{"$f":"IF($A312=\"N/A\",Ref!$B$36,INDEX(Ranks!$1:$1048576,$A312,AC$1))","v":""},{"$f":"IF($A312=\"N/A\",Ref!$B$36,INDEX(Ranks!$1:$1048576,$A312,AD$1))","v":""},{"$f":"IF($A312=\"N/A\",Ref!$B$36,INDEX(Ranks!$1:$1048576,$A312,AE$1))","v":""},{"$f":"IF($A312=\"N/A\",Ref!$B$36,INDEX(Ranks!$1:$1048576,$A312,AF$1))","v":""},{"$f":"IF($A312=\"N/A\",Ref!$B$36,INDEX(Ranks!$1:$1048576,$A312,AG$1))","v":""},{"$f":"IF($A312=\"N/A\",Ref!$B$36,INDEX(Ranks!$1:$1048576,$A312,AH$1))","v":""},{"$f":"IF($A312=\"N/A\",Ref!$B$36,INDEX(Ranks!$1:$1048576,$A312,AI$1))","v":""},{"$f":"IF($A312=\"N/A\",Ref!$B$36,INDEX(Ranks!$1:$1048576,$A312,AJ$1))","v":""},{"$f":"IF($A312=\"N/A\",Ref!$B$36,INDEX(Ranks!$1:$1048576,$A312,AK$1))","v":""},{"$f":"IF($A312=\"N/A\",Ref!$B$36,INDEX(Ranks!$1:$1048576,$A312,AL$1))","v":""},{"$f":"IF($A312=\"N/A\",Ref!$B$36,INDEX(Ranks!$1:$1048576,$A312,AM$1))","v":""},{"$f":"IF($A312=\"N/A\",Ref!$B$36,INDEX(Ranks!$1:$1048576,$A312,AN$1))","v":""},{"$f":"IF($A312=\"N/A\",Ref!$B$36,INDEX(Ranks!$1:$1048576,$A312,AO$1))","v":""},{"$f":"IF($A312=\"N/A\",Ref!$B$36,INDEX(Ranks!$1:$1048576,$A312,AP$1))","v":""},{"$f":"IF($A312=\"N/A\",Ref!$B$36,INDEX(Ranks!$1:$1048576,$A312,AQ$1))","v":""},{"$f":"IF($A312=\"N/A\",Ref!$B$36,INDEX(Ranks!$1:$1048576,$A312,AR$1))","v":""},{"$f":"IF($A312=\"N/A\",Ref!$B$36,INDEX(Ranks!$1:$1048576,$A312,AS$1))","v":""},{"$f":"IF($A312=\"N/A\",Ref!$B$36,INDEX(Ranks!$1:$1048576,$A312,AT$1))","v":""},{"$f":"IF($A312=\"N/A\",Ref!$B$36,INDEX(Ranks!$1:$1048576,$A312,AU$1))","v":""},{"$f":"IF($A312=\"N/A\",Ref!$B$36,INDEX(Ranks!$1:$1048576,$A312,AV$1))","v":""},{"$f":"IF($A312=\"N/A\",Ref!$B$36,INDEX(Ranks!$1:$1048576,$A312,AW$1))","v":""},{"$f":"IF($A312=\"N/A\",Ref!$B$36,INDEX(Ranks!$1:$1048576,$A312,AX$1))","v":""},{"$f":"IF($A312=\"N/A\",Ref!$B$36,INDEX(Ranks!$1:$1048576,$A312,AY$1))","v":""},{"$f":"IF($A312=\"N/A\",Ref!$B$36,INDEX(Ranks!$1:$1048576,$A312,AZ$1))","v":""},{"$f":"IF($A312=\"N/A\",Ref!$B$36,INDEX(Ranks!$1:$1048576,$A312,BA$1))","v":""},{"$f":"IF($A312=\"N/A\",Ref!$B$36,INDEX(Ranks!$1:$1048576,$A312,BB$1))","v":""},{"$f":"IF($A312=\"N/A\",Ref!$B$36,INDEX(Ranks!$1:$1048576,$A312,BC$1))","v":""},{"$f":"IF($A312=\"N/A\",Ref!$B$36,INDEX(Ranks!$1:$1048576,$A312,BD$1))","v":""},{"$f":"IF($A312=\"N/A\",Ref!$B$36,INDEX(Ranks!$1:$1048576,$A312,BE$1))","v":""},{"$f":"IF($A312=\"N/A\",Ref!$B$36,INDEX(Ranks!$1:$1048576,$A312,BF$1))","v":""},{"$f":"IF($A312=\"N/A\",Ref!$B$36,INDEX(Ranks!$1:$1048576,$A312,BG$1))","v":""},{"$f":"IF($A312=\"N/A\",Ref!$B$36,INDEX(Ranks!$1:$1048576,$A312,BH$1))","v":""},{"$f":"IF($A312=\"N/A\",Ref!$B$36,INDEX(Ranks!$1:$1048576,$A312,BI$1))","v":""},{"$f":"IF($A312=\"N/A\",Ref!$B$36,INDEX(Ranks!$1:$1048576,$A312,BJ$1))","v":""},{"$f":"IF($A312=\"N/A\",Ref!$B$36,INDEX(Ranks!$1:$1048576,$A312,BK$1))","v":""},{"$f":"IF($A312=\"N/A\",Ref!$B$36,INDEX(Ranks!$1:$1048576,$A312,BL$1))","v":""},{"$f":"IF($A312=\"N/A\",Ref!$B$36,INDEX(Ranks!$1:$1048576,$A312,BM$1))","v":""},{"$f":"IF($A312=\"N/A\",Ref!$B$36,INDEX(Ranks!$1:$1048576,$A312,BN$1))","v":""},{"$f":"IF($A312=\"N/A\",Ref!$B$36,INDEX(Ranks!$1:$1048576,$A312,BO$1))","v":""},{"$f":"IF($A312=\"N/A\",Ref!$B$36,INDEX(Ranks!$1:$1048576,$A312,BP$1))","v":""},{"$f":"IF($A312=\"N/A\",Ref!$B$36,INDEX(Ranks!$1:$1048576,$A312,BQ$1))","v":""},{"$f":"IF($A312=\"N/A\",Ref!$B$36,INDEX(Ranks!$1:$1048576,$A312,BR$1))","v":""},{"$f":"IF($A312=\"N/A\",Ref!$B$36,INDEX(Ranks!$1:$1048576,$A312,BS$1))","v":""},{"$f":"IF($A312=\"N/A\",Ref!$B$36,INDEX(Ranks!$1:$1048576,$A312,BT$1))","v":""},{"$f":"IF($A312=\"N/A\",Ref!$B$36,INDEX(Ranks!$1:$1048576,$A312,BU$1))","v":""},{"$f":"IF($A312=\"N/A\",Ref!$B$36,INDEX(Ranks!$1:$1048576,$A312,BV$1))","v":""},{"$f":"IF($A312=\"N/A\",Ref!$B$36,INDEX(Ranks!$1:$1048576,$A312,BW$1))","v":""},{"$f":"IF($A312=\"N/A\",Ref!$B$36,INDEX(Ranks!$1:$1048576,$A312,BX$1))","v":""},{"$f":"IF($A312=\"N/A\",Ref!$B$36,INDEX(Ranks!$1:$1048576,$A312,BY$1))","v":""},{"$f":"IF($A312=\"N/A\",Ref!$B$36,INDEX(Ranks!$1:$1048576,$A312,BZ$1))","v":""},{"$f":"IF($A312=\"N/A\",Ref!$B$36,INDEX(Ranks!$1:$1048576,$A312,CA$1))","v":""},{"$f":"IF($A312=\"N/A\",Ref!$B$36,INDEX(Ranks!$1:$1048576,$A312,CB$1))","v":""},{"$f":"IF($A312=\"N/A\",Ref!$B$36,INDEX(Ranks!$1:$1048576,$A312,CC$1))","v":""},{"$f":"IF($A312=\"N/A\",Ref!$B$36,INDEX(Ranks!$1:$1048576,$A312,CD$1))","v":""},{"$f":"IF($A312=\"N/A\",Ref!$B$36,INDEX(Ranks!$1:$1048576,$A312,CE$1))","v":""},{"$f":"IF($A312=\"N/A\",Ref!$B$36,INDEX(Ranks!$1:$1048576,$A312,CF$1))","v":""},{"$f":"IF($A312=\"N/A\",Ref!$B$36,INDEX(Ranks!$1:$1048576,$A312,CG$1))","v":""},{"$f":"IF($A312=\"N/A\",Ref!$B$36,INDEX(Ranks!$1:$1048576,$A312,CH$1))","v":""},{"$f":"IF($A312=\"N/A\",Ref!$B$36,INDEX(Ranks!$1:$1048576,$A312,CI$1))","v":""},{"$f":"IF($A312=\"N/A\",Ref!$B$36,INDEX(Ranks!$1:$1048576,$A312,CJ$1))","v":""},{"$f":"IF($A312=\"N/A\",Ref!$B$36,INDEX(Ranks!$1:$1048576,$A312,CK$1))","v":""},{"$f":"IF($A312=\"N/A\",Ref!$B$36,INDEX(Ranks!$1:$1048576,$A312,CL$1))","v":""},{"$f":"IF($A312=\"N/A\",Ref!$B$36,INDEX(Ranks!$1:$1048576,$A312,CM$1))","v":""},{"$f":"IF($A312=\"N/A\",Ref!$B$36,INDEX(Ranks!$1:$1048576,$A312,CN$1))","v":""},{"$f":"IF($A312=\"N/A\",Ref!$B$36,INDEX(Ranks!$1:$1048576,$A312,CO$1))","v":""},{"$f":"IF($A312=\"N/A\",Ref!$B$36,INDEX(Ranks!$1:$1048576,$A312,CP$1))","v":""},{"$f":"IF($A312=\"N/A\",Ref!$B$36,INDEX(Ranks!$1:$1048576,$A312,CQ$1))","v":""},{"$f":"IF($A312=\"N/A\",Ref!$B$36,INDEX(Ranks!$1:$1048576,$A312,CR$1))","v":""},{"$f":"IF($A312=\"N/A\",Ref!$B$36,INDEX(Ranks!$1:$1048576,$A312,CS$1))","v":""},{"$f":"IF($A312=\"N/A\",Ref!$B$36,INDEX(Ranks!$1:$1048576,$A312,CT$1))","v":""},{"$f":"IF($A312=\"N/A\",Ref!$B$36,INDEX(Ranks!$1:$1048576,$A312,CU$1))","v":""},{"$f":"IF($A312=\"N/A\",Ref!$B$36,INDEX(Ranks!$1:$1048576,$A312,CV$1))","v":""},{"$f":"IF($A312=\"N/A\",Ref!$B$36,INDEX(Ranks!$1:$1048576,$A312,CW$1))","v":""},{"$f":"IF($A312=\"N/A\",Ref!$B$36,INDEX(Ranks!$1:$1048576,$A312,CX$1))","v":""},{"$f":"IF($A312=\"N/A\",Ref!$B$36,INDEX(Ranks!$1:$1048576,$A312,CY$1))","v":""},{"$f":"IF($A312=\"N/A\",Ref!$B$36,INDEX(Ranks!$1:$1048576,$A312,CZ$1))","v":""},{"$f":"IF($A312=\"N/A\",Ref!$B$36,INDEX(Ranks!$1:$1048576,$A312,DA$1))","v":""},{"$f":"IF($A312=\"N/A\",Ref!$B$36,INDEX(Ranks!$1:$1048576,$A312,DB$1))","v":""},{"$f":"IF($A312=\"N/A\",Ref!$B$36,INDEX(Ranks!$1:$1048576,$A312,DC$1))","v":""},{"$f":"IF($A312=\"N/A\",Ref!$B$36,INDEX(Ranks!$1:$1048576,$A312,DD$1))","v":""},{"$f":"IF($A312=\"N/A\",Ref!$B$36,INDEX(Ranks!$1:$1048576,$A312,DE$1))","v":""},{"$f":"IF($A312=\"N/A\",Ref!$B$36,INDEX(Ranks!$1:$1048576,$A312,DF$1))","v":""},{"$f":"IF($A312=\"N/A\",Ref!$B$36,INDEX(Ranks!$1:$1048576,$A312,DG$1))","v":""},{"$f":"IF($A312=\"N/A\",Ref!$B$36,INDEX(Ranks!$1:$1048576,$A312,DH$1))","v":""},{"$f":"IF($A312=\"N/A\",Ref!$B$36,INDEX(Ranks!$1:$1048576,$A312,DI$1))","v":""},{"$f":"IF($A312=\"N/A\",Ref!$B$36,INDEX(Ranks!$1:$1048576,$A312,DJ$1))","v":""},{"$f":"IF($A312=\"N/A\",Ref!$B$36,INDEX(Ranks!$1:$1048576,$A312,DK$1))","v":""},{"$f":"IF($A312=\"N/A\",Ref!$B$36,INDEX(Ranks!$1:$1048576,$A312,DL$1))","v":""},{"$f":"IF($A312=\"N/A\",Ref!$B$36,INDEX(Ranks!$1:$1048576,$A312,DM$1))","v":""},{"$f":"IF($A312=\"N/A\",Ref!$B$36,INDEX(Ranks!$1:$1048576,$A312,DN$1))","v":""},{"$f":"IF($A312=\"N/A\",Ref!$B$36,INDEX(Ranks!$1:$1048576,$A312,DO$1))","v":""},{"$f":"IF($A312=\"N/A\",Ref!$B$36,INDEX(Ranks!$1:$1048576,$A312,DP$1))","v":""},{"$f":"IF($A312=\"N/A\",Ref!$B$36,INDEX(Ranks!$1:$1048576,$A312,DQ$1))","v":""},{"$f":"IF($A312=\"N/A\",Ref!$B$36,INDEX(Ranks!$1:$1048576,$A312,DR$1))","v":""},{"$f":"IF($A312=\"N/A\",Ref!$B$36,INDEX(Ranks!$1:$1048576,$A312,DS$1))","v":""},{"$f":"IF($A312=\"N/A\",Ref!$B$36,INDEX(Ranks!$1:$1048576,$A312,DT$1))","v":""},{"$f":"IF($A312=\"N/A\",Ref!$B$36,INDEX(Ranks!$1:$1048576,$A312,DU$1))","v":""},{"$f":"IF($A312=\"N/A\",Ref!$B$36,INDEX(Ranks!$1:$1048576,$A312,DV$1))","v":""},{"$f":"IF($A312=\"N/A\",Ref!$B$36,INDEX(Ranks!$1:$1048576,$A312,DW$1))","v":""},{"$f":"IF($A312=\"N/A\",Ref!$B$36,INDEX(Ranks!$1:$1048576,$A312,DX$1))","v":""},{"$f":"IF($A312=\"N/A\",Ref!$B$36,INDEX(Ranks!$1:$1048576,$A312,DY$1))","v":""},{"$f":"IF($A312=\"N/A\",Ref!$B$36,INDEX(Ranks!$1:$1048576,$A312,DZ$1))","v":""},{"$f":"IF($A312=\"N/A\",Ref!$B$36,INDEX(Ranks!$1:$1048576,$A312,EA$1))","v":""},{"$f":"IF($A312=\"N/A\",Ref!$B$36,INDEX(Ranks!$1:$1048576,$A312,EB$1))","v":""}]
[{"$f":"IFERROR(MATCH('Portfolio Page'!L313,Ranks!L:L,0),\"N/A\")","v":"N/A"},null,{"$f":"IF($A313=\"N/A\",\"\",INDEX(Ranks!$1:$1048576,$A313,C$1))","v":""},{"$f":"IF($A313=\"N/A\",Ref!$B$36,INDEX(Ranks!$1:$1048576,$A313,D$1))","v":""},{"$f":"IF($A313=\"N/A\",Ref!$B$36,INDEX(Ranks!$1:$1048576,$A313,E$1))","v":""},{"$f":"IF($A313=\"N/A\",\"\",INDEX(Ranks!$1:$1048576,$A313,F$1))","v":""},{"$f":"IF($A313=\"N/A\",\"\",INDEX(Ranks!$1:$1048576,$A313,G$1))","v":""},{"$f":"IF($A313=\"N/A\",\"\",INDEX(Ranks!$1:$1048576,$A313,H$1))","v":""},{"$f":"IF($A313=\"N/A\",\"\",INDEX(Ranks!$1:$1048576,$A313,I$1))","v":""},{"$f":"IF($A313=\"N/A\",\"\",INDEX(Ranks!$1:$1048576,$A313,J$1))","v":""},{"$f":"IF($A313=\"N/A\",\"\",INDEX(Ranks!$1:$1048576,$A313,K$1))","v":""},null,{"$f":"IF($A313=\"N/A\",Ref!$B$36,INDEX(Ranks!$1:$1048576,$A313,M$1))","v":""},{"$f":"IF($A313=\"N/A\",Ref!$B$36,INDEX(Ranks!$1:$1048576,$A313,N$1))","v":""},{"$f":"IF($A313=\"N/A\",Ref!$B$36,INDEX(Ranks!$1:$1048576,$A313,O$1))","v":""},{"$f":"IF($A313=\"N/A\",Ref!$B$36,INDEX(Ranks!$1:$1048576,$A313,P$1))","v":""},{"$f":"IF($A313=\"N/A\",Ref!$B$36,INDEX(Ranks!$1:$1048576,$A313,Q$1))","v":""},{"$f":"IF($A313=\"N/A\",Ref!$B$36,INDEX(Ranks!$1:$1048576,$A313,R$1))","v":""},{"$f":"IF($A313=\"N/A\",Ref!$B$36,INDEX(Ranks!$1:$1048576,$A313,S$1))","v":""},{"$f":"IF($A313=\"N/A\",Ref!$B$36,INDEX(Ranks!$1:$1048576,$A313,T$1))","v":""},{"$f":"IF($A313=\"N/A\",Ref!$B$36,INDEX(Ranks!$1:$1048576,$A313,U$1))","v":""},{"$f":"IF($A313=\"N/A\",Ref!$B$36,INDEX(Ranks!$1:$1048576,$A313,V$1))","v":""},{"$f":"IF($A313=\"N/A\",Ref!$B$36,INDEX(Ranks!$1:$1048576,$A313,W$1))","v":""},{"$f":"IF($A313=\"N/A\",Ref!$B$36,INDEX(Ranks!$1:$1048576,$A313,X$1))","v":""},{"$f":"IF($A313=\"N/A\",Ref!$B$36,INDEX(Ranks!$1:$1048576,$A313,Y$1))","v":""},{"$f":"IF($A313=\"N/A\",Ref!$B$36,INDEX(Ranks!$1:$1048576,$A313,Z$1))","v":""},{"$f":"IF($A313=\"N/A\",Ref!$B$36,INDEX(Ranks!$1:$1048576,$A313,AA$1))","v":""},{"$f":"IF($A313=\"N/A\",Ref!$B$36,INDEX(Ranks!$1:$1048576,$A313,AB$1))","v":""},{"$f":"IF($A313=\"N/A\",Ref!$B$36,INDEX(Ranks!$1:$1048576,$A313,AC$1))","v":""},{"$f":"IF($A313=\"N/A\",Ref!$B$36,INDEX(Ranks!$1:$1048576,$A313,AD$1))","v":""},{"$f":"IF($A313=\"N/A\",Ref!$B$36,INDEX(Ranks!$1:$1048576,$A313,AE$1))","v":""},{"$f":"IF($A313=\"N/A\",Ref!$B$36,INDEX(Ranks!$1:$1048576,$A313,AF$1))","v":""},{"$f":"IF($A313=\"N/A\",Ref!$B$36,INDEX(Ranks!$1:$1048576,$A313,AG$1))","v":""},{"$f":"IF($A313=\"N/A\",Ref!$B$36,INDEX(Ranks!$1:$1048576,$A313,AH$1))","v":""},{"$f":"IF($A313=\"N/A\",Ref!$B$36,INDEX(Ranks!$1:$1048576,$A313,AI$1))","v":""},{"$f":"IF($A313=\"N/A\",Ref!$B$36,INDEX(Ranks!$1:$1048576,$A313,AJ$1))","v":""},{"$f":"IF($A313=\"N/A\",Ref!$B$36,INDEX(Ranks!$1:$1048576,$A313,AK$1))","v":""},{"$f":"IF($A313=\"N/A\",Ref!$B$36,INDEX(Ranks!$1:$1048576,$A313,AL$1))","v":""},{"$f":"IF($A313=\"N/A\",Ref!$B$36,INDEX(Ranks!$1:$1048576,$A313,AM$1))","v":""},{"$f":"IF($A313=\"N/A\",Ref!$B$36,INDEX(Ranks!$1:$1048576,$A313,AN$1))","v":""},{"$f":"IF($A313=\"N/A\",Ref!$B$36,INDEX(Ranks!$1:$1048576,$A313,AO$1))","v":""},{"$f":"IF($A313=\"N/A\",Ref!$B$36,INDEX(Ranks!$1:$1048576,$A313,AP$1))","v":""},{"$f":"IF($A313=\"N/A\",Ref!$B$36,INDEX(Ranks!$1:$1048576,$A313,AQ$1))","v":""},{"$f":"IF($A313=\"N/A\",Ref!$B$36,INDEX(Ranks!$1:$1048576,$A313,AR$1))","v":""},{"$f":"IF($A313=\"N/A\",Ref!$B$36,INDEX(Ranks!$1:$1048576,$A313,AS$1))","v":""},{"$f":"IF($A313=\"N/A\",Ref!$B$36,INDEX(Ranks!$1:$1048576,$A313,AT$1))","v":""},{"$f":"IF($A313=\"N/A\",Ref!$B$36,INDEX(Ranks!$1:$1048576,$A313,AU$1))","v":""},{"$f":"IF($A313=\"N/A\",Ref!$B$36,INDEX(Ranks!$1:$1048576,$A313,AV$1))","v":""},{"$f":"IF($A313=\"N/A\",Ref!$B$36,INDEX(Ranks!$1:$1048576,$A313,AW$1))","v":""},{"$f":"IF($A313=\"N/A\",Ref!$B$36,INDEX(Ranks!$1:$1048576,$A313,AX$1))","v":""},{"$f":"IF($A313=\"N/A\",Ref!$B$36,INDEX(Ranks!$1:$1048576,$A313,AY$1))","v":""},{"$f":"IF($A313=\"N/A\",Ref!$B$36,INDEX(Ranks!$1:$1048576,$A313,AZ$1))","v":""},{"$f":"IF($A313=\"N/A\",Ref!$B$36,INDEX(Ranks!$1:$1048576,$A313,BA$1))","v":""},{"$f":"IF($A313=\"N/A\",Ref!$B$36,INDEX(Ranks!$1:$1048576,$A313,BB$1))","v":""},{"$f":"IF($A313=\"N/A\",Ref!$B$36,INDEX(Ranks!$1:$1048576,$A313,BC$1))","v":""},{"$f":"IF($A313=\"N/A\",Ref!$B$36,INDEX(Ranks!$1:$1048576,$A313,BD$1))","v":""},{"$f":"IF($A313=\"N/A\",Ref!$B$36,INDEX(Ranks!$1:$1048576,$A313,BE$1))","v":""},{"$f":"IF($A313=\"N/A\",Ref!$B$36,INDEX(Ranks!$1:$1048576,$A313,BF$1))","v":""},{"$f":"IF($A313=\"N/A\",Ref!$B$36,INDEX(Ranks!$1:$1048576,$A313,BG$1))","v":""},{"$f":"IF($A313=\"N/A\",Ref!$B$36,INDEX(Ranks!$1:$1048576,$A313,BH$1))","v":""},{"$f":"IF($A313=\"N/A\",Ref!$B$36,INDEX(Ranks!$1:$1048576,$A313,BI$1))","v":""},{"$f":"IF($A313=\"N/A\",Ref!$B$36,INDEX(Ranks!$1:$1048576,$A313,BJ$1))","v":""},{"$f":"IF($A313=\"N/A\",Ref!$B$36,INDEX(Ranks!$1:$1048576,$A313,BK$1))","v":""},{"$f":"IF($A313=\"N/A\",Ref!$B$36,INDEX(Ranks!$1:$1048576,$A313,BL$1))","v":""},{"$f":"IF($A313=\"N/A\",Ref!$B$36,INDEX(Ranks!$1:$1048576,$A313,BM$1))","v":""},{"$f":"IF($A313=\"N/A\",Ref!$B$36,INDEX(Ranks!$1:$1048576,$A313,BN$1))","v":""},{"$f":"IF($A313=\"N/A\",Ref!$B$36,INDEX(Ranks!$1:$1048576,$A313,BO$1))","v":""},{"$f":"IF($A313=\"N/A\",Ref!$B$36,INDEX(Ranks!$1:$1048576,$A313,BP$1))","v":""},{"$f":"IF($A313=\"N/A\",Ref!$B$36,INDEX(Ranks!$1:$1048576,$A313,BQ$1))","v":""},{"$f":"IF($A313=\"N/A\",Ref!$B$36,INDEX(Ranks!$1:$1048576,$A313,BR$1))","v":""},{"$f":"IF($A313=\"N/A\",Ref!$B$36,INDEX(Ranks!$1:$1048576,$A313,BS$1))","v":""},{"$f":"IF($A313=\"N/A\",Ref!$B$36,INDEX(Ranks!$1:$1048576,$A313,BT$1))","v":""},{"$f":"IF($A313=\"N/A\",Ref!$B$36,INDEX(Ranks!$1:$1048576,$A313,BU$1))","v":""},{"$f":"IF($A313=\"N/A\",Ref!$B$36,INDEX(Ranks!$1:$1048576,$A313,BV$1))","v":""},{"$f":"IF($A313=\"N/A\",Ref!$B$36,INDEX(Ranks!$1:$1048576,$A313,BW$1))","v":""},{"$f":"IF($A313=\"N/A\",Ref!$B$36,INDEX(Ranks!$1:$1048576,$A313,BX$1))","v":""},{"$f":"IF($A313=\"N/A\",Ref!$B$36,INDEX(Ranks!$1:$1048576,$A313,BY$1))","v":""},{"$f":"IF($A313=\"N/A\",Ref!$B$36,INDEX(Ranks!$1:$1048576,$A313,BZ$1))","v":""},{"$f":"IF($A313=\"N/A\",Ref!$B$36,INDEX(Ranks!$1:$1048576,$A313,CA$1))","v":""},{"$f":"IF($A313=\"N/A\",Ref!$B$36,INDEX(Ranks!$1:$1048576,$A313,CB$1))","v":""},{"$f":"IF($A313=\"N/A\",Ref!$B$36,INDEX(Ranks!$1:$1048576,$A313,CC$1))","v":""},{"$f":"IF($A313=\"N/A\",Ref!$B$36,INDEX(Ranks!$1:$1048576,$A313,CD$1))","v":""},{"$f":"IF($A313=\"N/A\",Ref!$B$36,INDEX(Ranks!$1:$1048576,$A313,CE$1))","v":""},{"$f":"IF($A313=\"N/A\",Ref!$B$36,INDEX(Ranks!$1:$1048576,$A313,CF$1))","v":""},{"$f":"IF($A313=\"N/A\",Ref!$B$36,INDEX(Ranks!$1:$1048576,$A313,CG$1))","v":""},{"$f":"IF($A313=\"N/A\",Ref!$B$36,INDEX(Ranks!$1:$1048576,$A313,CH$1))","v":""},{"$f":"IF($A313=\"N/A\",Ref!$B$36,INDEX(Ranks!$1:$1048576,$A313,CI$1))","v":""},{"$f":"IF($A313=\"N/A\",Ref!$B$36,INDEX(Ranks!$1:$1048576,$A313,CJ$1))","v":""},{"$f":"IF($A313=\"N/A\",Ref!$B$36,INDEX(Ranks!$1:$1048576,$A313,CK$1))","v":""},{"$f":"IF($A313=\"N/A\",Ref!$B$36,INDEX(Ranks!$1:$1048576,$A313,CL$1))","v":""},{"$f":"IF($A313=\"N/A\",Ref!$B$36,INDEX(Ranks!$1:$1048576,$A313,CM$1))","v":""},{"$f":"IF($A313=\"N/A\",Ref!$B$36,INDEX(Ranks!$1:$1048576,$A313,CN$1))","v":""},{"$f":"IF($A313=\"N/A\",Ref!$B$36,INDEX(Ranks!$1:$1048576,$A313,CO$1))","v":""},{"$f":"IF($A313=\"N/A\",Ref!$B$36,INDEX(Ranks!$1:$1048576,$A313,CP$1))","v":""},{"$f":"IF($A313=\"N/A\",Ref!$B$36,INDEX(Ranks!$1:$1048576,$A313,CQ$1))","v":""},{"$f":"IF($A313=\"N/A\",Ref!$B$36,INDEX(Ranks!$1:$1048576,$A313,CR$1))","v":""},{"$f":"IF($A313=\"N/A\",Ref!$B$36,INDEX(Ranks!$1:$1048576,$A313,CS$1))","v":""},{"$f":"IF($A313=\"N/A\",Ref!$B$36,INDEX(Ranks!$1:$1048576,$A313,CT$1))","v":""},{"$f":"IF($A313=\"N/A\",Ref!$B$36,INDEX(Ranks!$1:$1048576,$A313,CU$1))","v":""},{"$f":"IF($A313=\"N/A\",Ref!$B$36,INDEX(Ranks!$1:$1048576,$A313,CV$1))","v":""},{"$f":"IF($A313=\"N/A\",Ref!$B$36,INDEX(Ranks!$1:$1048576,$A313,CW$1))","v":""},{"$f":"IF($A313=\"N/A\",Ref!$B$36,INDEX(Ranks!$1:$1048576,$A313,CX$1))","v":""},{"$f":"IF($A313=\"N/A\",Ref!$B$36,INDEX(Ranks!$1:$1048576,$A313,CY$1))","v":""},{"$f":"IF($A313=\"N/A\",Ref!$B$36,INDEX(Ranks!$1:$1048576,$A313,CZ$1))","v":""},{"$f":"IF($A313=\"N/A\",Ref!$B$36,INDEX(Ranks!$1:$1048576,$A313,DA$1))","v":""},{"$f":"IF($A313=\"N/A\",Ref!$B$36,INDEX(Ranks!$1:$1048576,$A313,DB$1))","v":""},{"$f":"IF($A313=\"N/A\",Ref!$B$36,INDEX(Ranks!$1:$1048576,$A313,DC$1))","v":""},{"$f":"IF($A313=\"N/A\",Ref!$B$36,INDEX(Ranks!$1:$1048576,$A313,DD$1))","v":""},{"$f":"IF($A313=\"N/A\",Ref!$B$36,INDEX(Ranks!$1:$1048576,$A313,DE$1))","v":""},{"$f":"IF($A313=\"N/A\",Ref!$B$36,INDEX(Ranks!$1:$1048576,$A313,DF$1))","v":""},{"$f":"IF($A313=\"N/A\",Ref!$B$36,INDEX(Ranks!$1:$1048576,$A313,DG$1))","v":""},{"$f":"IF($A313=\"N/A\",Ref!$B$36,INDEX(Ranks!$1:$1048576,$A313,DH$1))","v":""},{"$f":"IF($A313=\"N/A\",Ref!$B$36,INDEX(Ranks!$1:$1048576,$A313,DI$1))","v":""},{"$f":"IF($A313=\"N/A\",Ref!$B$36,INDEX(Ranks!$1:$1048576,$A313,DJ$1))","v":""},{"$f":"IF($A313=\"N/A\",Ref!$B$36,INDEX(Ranks!$1:$1048576,$A313,DK$1))","v":""},{"$f":"IF($A313=\"N/A\",Ref!$B$36,INDEX(Ranks!$1:$1048576,$A313,DL$1))","v":""},{"$f":"IF($A313=\"N/A\",Ref!$B$36,INDEX(Ranks!$1:$1048576,$A313,DM$1))","v":""},{"$f":"IF($A313=\"N/A\",Ref!$B$36,INDEX(Ranks!$1:$1048576,$A313,DN$1))","v":""},{"$f":"IF($A313=\"N/A\",Ref!$B$36,INDEX(Ranks!$1:$1048576,$A313,DO$1))","v":""},{"$f":"IF($A313=\"N/A\",Ref!$B$36,INDEX(Ranks!$1:$1048576,$A313,DP$1))","v":""},{"$f":"IF($A313=\"N/A\",Ref!$B$36,INDEX(Ranks!$1:$1048576,$A313,DQ$1))","v":""},{"$f":"IF($A313=\"N/A\",Ref!$B$36,INDEX(Ranks!$1:$1048576,$A313,DR$1))","v":""},{"$f":"IF($A313=\"N/A\",Ref!$B$36,INDEX(Ranks!$1:$1048576,$A313,DS$1))","v":""},{"$f":"IF($A313=\"N/A\",Ref!$B$36,INDEX(Ranks!$1:$1048576,$A313,DT$1))","v":""},{"$f":"IF($A313=\"N/A\",Ref!$B$36,INDEX(Ranks!$1:$1048576,$A313,DU$1))","v":""},{"$f":"IF($A313=\"N/A\",Ref!$B$36,INDEX(Ranks!$1:$1048576,$A313,DV$1))","v":""},{"$f":"IF($A313=\"N/A\",Ref!$B$36,INDEX(Ranks!$1:$1048576,$A313,DW$1))","v":""},{"$f":"IF($A313=\"N/A\",Ref!$B$36,INDEX(Ranks!$1:$1048576,$A313,DX$1))","v":""},{"$f":"IF($A313=\"N/A\",Ref!$B$36,INDEX(Ranks!$1:$1048576,$A313,DY$1))","v":""},{"$f":"IF($A313=\"N/A\",Ref!$B$36,INDEX(Ranks!$1:$1048576,$A313,DZ$1))","v":""},{"$f":"IF($A313=\"N/A\",Ref!$B$36,INDEX(Ranks!$1:$1048576,$A313,EA$1))","v":""},{"$f":"IF($A313=\"N/A\",Ref!$B$36,INDEX(Ranks!$1:$1048576,$A313,EB$1))","v":""}]
[{"$f":"IFERROR(MATCH('Portfolio Page'!L314,Ranks!L:L,0),\"N/A\")","v":"N/A"},null,{"$f":"IF($A314=\"N/A\",\"\",INDEX(Ranks!$1:$1048576,$A314,C$1))","v":""},{"$f":"IF($A314=\"N/A\",Ref!$B$36,INDEX(Ranks!$1:$1048576,$A314,D$1))","v":""},{"$f":"IF($A314=\"N/A\",Ref!$B$36,INDEX(Ranks!$1:$1048576,$A314,E$1))","v":""},{"$f":"IF($A314=\"N/A\",\"\",INDEX(Ranks!$1:$1048576,$A314,F$1))","v":""},{"$f":"IF($A314=\"N/A\",\"\",INDEX(Ranks!$1:$1048576,$A314,G$1))","v":""},{"$f":"IF($A314=\"N/A\",\"\",INDEX(Ranks!$1:$1048576,$A314,H$1))","v":""},{"$f":"IF($A314=\"N/A\",\"\",INDEX(Ranks!$1:$1048576,$A314,I$1))","v":""},{"$f":"IF($A314=\"N/A\",\"\",INDEX(Ranks!$1:$1048576,$A314,J$1))","v":""},{"$f":"IF($A314=\"N/A\",\"\",INDEX(Ranks!$1:$1048576,$A314,K$1))","v":""},null,{"$f":"IF($A314=\"N/A\",Ref!$B$36,INDEX(Ranks!$1:$1048576,$A314,M$1))","v":""},{"$f":"IF($A314=\"N/A\",Ref!$B$36,INDEX(Ranks!$1:$1048576,$A314,N$1))","v":""},{"$f":"IF($A314=\"N/A\",Ref!$B$36,INDEX(Ranks!$1:$1048576,$A314,O$1))","v":""},{"$f":"IF($A314=\"N/A\",Ref!$B$36,INDEX(Ranks!$1:$1048576,$A314,P$1))","v":""},{"$f":"IF($A314=\"N/A\",Ref!$B$36,INDEX(Ranks!$1:$1048576,$A314,Q$1))","v":""},{"$f":"IF($A314=\"N/A\",Ref!$B$36,INDEX(Ranks!$1:$1048576,$A314,R$1))","v":""},{"$f":"IF($A314=\"N/A\",Ref!$B$36,INDEX(Ranks!$1:$1048576,$A314,S$1))","v":""},{"$f":"IF($A314=\"N/A\",Ref!$B$36,INDEX(Ranks!$1:$1048576,$A314,T$1))","v":""},{"$f":"IF($A314=\"N/A\",Ref!$B$36,INDEX(Ranks!$1:$1048576,$A314,U$1))","v":""},{"$f":"IF($A314=\"N/A\",Ref!$B$36,INDEX(Ranks!$1:$1048576,$A314,V$1))","v":""},{"$f":"IF($A314=\"N/A\",Ref!$B$36,INDEX(Ranks!$1:$1048576,$A314,W$1))","v":""},{"$f":"IF($A314=\"N/A\",Ref!$B$36,INDEX(Ranks!$1:$1048576,$A314,X$1))","v":""},{"$f":"IF($A314=\"N/A\",Ref!$B$36,INDEX(Ranks!$1:$1048576,$A314,Y$1))","v":""},{"$f":"IF($A314=\"N/A\",Ref!$B$36,INDEX(Ranks!$1:$1048576,$A314,Z$1))","v":""},{"$f":"IF($A314=\"N/A\",Ref!$B$36,INDEX(Ranks!$1:$1048576,$A314,AA$1))","v":""},{"$f":"IF($A314=\"N/A\",Ref!$B$36,INDEX(Ranks!$1:$1048576,$A314,AB$1))","v":""},{"$f":"IF($A314=\"N/A\",Ref!$B$36,INDEX(Ranks!$1:$1048576,$A314,AC$1))","v":""},{"$f":"IF($A314=\"N/A\",Ref!$B$36,INDEX(Ranks!$1:$1048576,$A314,AD$1))","v":""},{"$f":"IF($A314=\"N/A\",Ref!$B$36,INDEX(Ranks!$1:$1048576,$A314,AE$1))","v":""},{"$f":"IF($A314=\"N/A\",Ref!$B$36,INDEX(Ranks!$1:$1048576,$A314,AF$1))","v":""},{"$f":"IF($A314=\"N/A\",Ref!$B$36,INDEX(Ranks!$1:$1048576,$A314,AG$1))","v":""},{"$f":"IF($A314=\"N/A\",Ref!$B$36,INDEX(Ranks!$1:$1048576,$A314,AH$1))","v":""},{"$f":"IF($A314=\"N/A\",Ref!$B$36,INDEX(Ranks!$1:$1048576,$A314,AI$1))","v":""},{"$f":"IF($A314=\"N/A\",Ref!$B$36,INDEX(Ranks!$1:$1048576,$A314,AJ$1))","v":""},{"$f":"IF($A314=\"N/A\",Ref!$B$36,INDEX(Ranks!$1:$1048576,$A314,AK$1))","v":""},{"$f":"IF($A314=\"N/A\",Ref!$B$36,INDEX(Ranks!$1:$1048576,$A314,AL$1))","v":""},{"$f":"IF($A314=\"N/A\",Ref!$B$36,INDEX(Ranks!$1:$1048576,$A314,AM$1))","v":""},{"$f":"IF($A314=\"N/A\",Ref!$B$36,INDEX(Ranks!$1:$1048576,$A314,AN$1))","v":""},{"$f":"IF($A314=\"N/A\",Ref!$B$36,INDEX(Ranks!$1:$1048576,$A314,AO$1))","v":""},{"$f":"IF($A314=\"N/A\",Ref!$B$36,INDEX(Ranks!$1:$1048576,$A314,AP$1))","v":""},{"$f":"IF($A314=\"N/A\",Ref!$B$36,INDEX(Ranks!$1:$1048576,$A314,AQ$1))","v":""},{"$f":"IF($A314=\"N/A\",Ref!$B$36,INDEX(Ranks!$1:$1048576,$A314,AR$1))","v":""},{"$f":"IF($A314=\"N/A\",Ref!$B$36,INDEX(Ranks!$1:$1048576,$A314,AS$1))","v":""},{"$f":"IF($A314=\"N/A\",Ref!$B$36,INDEX(Ranks!$1:$1048576,$A314,AT$1))","v":""},{"$f":"IF($A314=\"N/A\",Ref!$B$36,INDEX(Ranks!$1:$1048576,$A314,AU$1))","v":""},{"$f":"IF($A314=\"N/A\",Ref!$B$36,INDEX(Ranks!$1:$1048576,$A314,AV$1))","v":""},{"$f":"IF($A314=\"N/A\",Ref!$B$36,INDEX(Ranks!$1:$1048576,$A314,AW$1))","v":""},{"$f":"IF($A314=\"N/A\",Ref!$B$36,INDEX(Ranks!$1:$1048576,$A314,AX$1))","v":""},{"$f":"IF($A314=\"N/A\",Ref!$B$36,INDEX(Ranks!$1:$1048576,$A314,AY$1))","v":""},{"$f":"IF($A314=\"N/A\",Ref!$B$36,INDEX(Ranks!$1:$1048576,$A314,AZ$1))","v":""},{"$f":"IF($A314=\"N/A\",Ref!$B$36,INDEX(Ranks!$1:$1048576,$A314,BA$1))","v":""},{"$f":"IF($A314=\"N/A\",Ref!$B$36,INDEX(Ranks!$1:$1048576,$A314,BB$1))","v":""},{"$f":"IF($A314=\"N/A\",Ref!$B$36,INDEX(Ranks!$1:$1048576,$A314,BC$1))","v":""},{"$f":"IF($A314=\"N/A\",Ref!$B$36,INDEX(Ranks!$1:$1048576,$A314,BD$1))","v":""},{"$f":"IF($A314=\"N/A\",Ref!$B$36,INDEX(Ranks!$1:$1048576,$A314,BE$1))","v":""},{"$f":"IF($A314=\"N/A\",Ref!$B$36,INDEX(Ranks!$1:$1048576,$A314,BF$1))","v":""},{"$f":"IF($A314=\"N/A\",Ref!$B$36,INDEX(Ranks!$1:$1048576,$A314,BG$1))","v":""},{"$f":"IF($A314=\"N/A\",Ref!$B$36,INDEX(Ranks!$1:$1048576,$A314,BH$1))","v":""},{"$f":"IF($A314=\"N/A\",Ref!$B$36,INDEX(Ranks!$1:$1048576,$A314,BI$1))","v":""},{"$f":"IF($A314=\"N/A\",Ref!$B$36,INDEX(Ranks!$1:$1048576,$A314,BJ$1))","v":""},{"$f":"IF($A314=\"N/A\",Ref!$B$36,INDEX(Ranks!$1:$1048576,$A314,BK$1))","v":""},{"$f":"IF($A314=\"N/A\",Ref!$B$36,INDEX(Ranks!$1:$1048576,$A314,BL$1))","v":""},{"$f":"IF($A314=\"N/A\",Ref!$B$36,INDEX(Ranks!$1:$1048576,$A314,BM$1))","v":""},{"$f":"IF($A314=\"N/A\",Ref!$B$36,INDEX(Ranks!$1:$1048576,$A314,BN$1))","v":""},{"$f":"IF($A314=\"N/A\",Ref!$B$36,INDEX(Ranks!$1:$1048576,$A314,BO$1))","v":""},{"$f":"IF($A314=\"N/A\",Ref!$B$36,INDEX(Ranks!$1:$1048576,$A314,BP$1))","v":""},{"$f":"IF($A314=\"N/A\",Ref!$B$36,INDEX(Ranks!$1:$1048576,$A314,BQ$1))","v":""},{"$f":"IF($A314=\"N/A\",Ref!$B$36,INDEX(Ranks!$1:$1048576,$A314,BR$1))","v":""},{"$f":"IF($A314=\"N/A\",Ref!$B$36,INDEX(Ranks!$1:$1048576,$A314,BS$1))","v":""},{"$f":"IF($A314=\"N/A\",Ref!$B$36,INDEX(Ranks!$1:$1048576,$A314,BT$1))","v":""},{"$f":"IF($A314=\"N/A\",Ref!$B$36,INDEX(Ranks!$1:$1048576,$A314,BU$1))","v":""},{"$f":"IF($A314=\"N/A\",Ref!$B$36,INDEX(Ranks!$1:$1048576,$A314,BV$1))","v":""},{"$f":"IF($A314=\"N/A\",Ref!$B$36,INDEX(Ranks!$1:$1048576,$A314,BW$1))","v":""},{"$f":"IF($A314=\"N/A\",Ref!$B$36,INDEX(Ranks!$1:$1048576,$A314,BX$1))","v":""},{"$f":"IF($A314=\"N/A\",Ref!$B$36,INDEX(Ranks!$1:$1048576,$A314,BY$1))","v":""},{"$f":"IF($A314=\"N/A\",Ref!$B$36,INDEX(Ranks!$1:$1048576,$A314,BZ$1))","v":""},{"$f":"IF($A314=\"N/A\",Ref!$B$36,INDEX(Ranks!$1:$1048576,$A314,CA$1))","v":""},{"$f":"IF($A314=\"N/A\",Ref!$B$36,INDEX(Ranks!$1:$1048576,$A314,CB$1))","v":""},{"$f":"IF($A314=\"N/A\",Ref!$B$36,INDEX(Ranks!$1:$1048576,$A314,CC$1))","v":""},{"$f":"IF($A314=\"N/A\",Ref!$B$36,INDEX(Ranks!$1:$1048576,$A314,CD$1))","v":""},{"$f":"IF($A314=\"N/A\",Ref!$B$36,INDEX(Ranks!$1:$1048576,$A314,CE$1))","v":""},{"$f":"IF($A314=\"N/A\",Ref!$B$36,INDEX(Ranks!$1:$1048576,$A314,CF$1))","v":""},{"$f":"IF($A314=\"N/A\",Ref!$B$36,INDEX(Ranks!$1:$1048576,$A314,CG$1))","v":""},{"$f":"IF($A314=\"N/A\",Ref!$B$36,INDEX(Ranks!$1:$1048576,$A314,CH$1))","v":""},{"$f":"IF($A314=\"N/A\",Ref!$B$36,INDEX(Ranks!$1:$1048576,$A314,CI$1))","v":""},{"$f":"IF($A314=\"N/A\",Ref!$B$36,INDEX(Ranks!$1:$1048576,$A314,CJ$1))","v":""},{"$f":"IF($A314=\"N/A\",Ref!$B$36,INDEX(Ranks!$1:$1048576,$A314,CK$1))","v":""},{"$f":"IF($A314=\"N/A\",Ref!$B$36,INDEX(Ranks!$1:$1048576,$A314,CL$1))","v":""},{"$f":"IF($A314=\"N/A\",Ref!$B$36,INDEX(Ranks!$1:$1048576,$A314,CM$1))","v":""},{"$f":"IF($A314=\"N/A\",Ref!$B$36,INDEX(Ranks!$1:$1048576,$A314,CN$1))","v":""},{"$f":"IF($A314=\"N/A\",Ref!$B$36,INDEX(Ranks!$1:$1048576,$A314,CO$1))","v":""},{"$f":"IF($A314=\"N/A\",Ref!$B$36,INDEX(Ranks!$1:$1048576,$A314,CP$1))","v":""},{"$f":"IF($A314=\"N/A\",Ref!$B$36,INDEX(Ranks!$1:$1048576,$A314,CQ$1))","v":""},{"$f":"IF($A314=\"N/A\",Ref!$B$36,INDEX(Ranks!$1:$1048576,$A314,CR$1))","v":""},{"$f":"IF($A314=\"N/A\",Ref!$B$36,INDEX(Ranks!$1:$1048576,$A314,CS$1))","v":""},{"$f":"IF($A314=\"N/A\",Ref!$B$36,INDEX(Ranks!$1:$1048576,$A314,CT$1))","v":""},{"$f":"IF($A314=\"N/A\",Ref!$B$36,INDEX(Ranks!$1:$1048576,$A314,CU$1))","v":""},{"$f":"IF($A314=\"N/A\",Ref!$B$36,INDEX(Ranks!$1:$1048576,$A314,CV$1))","v":""},{"$f":"IF($A314=\"N/A\",Ref!$B$36,INDEX(Ranks!$1:$1048576,$A314,CW$1))","v":""},{"$f":"IF($A314=\"N/A\",Ref!$B$36,INDEX(Ranks!$1:$1048576,$A314,CX$1))","v":""},{"$f":"IF($A314=\"N/A\",Ref!$B$36,INDEX(Ranks!$1:$1048576,$A314,CY$1))","v":""},{"$f":"IF($A314=\"N/A\",Ref!$B$36,INDEX(Ranks!$1:$1048576,$A314,CZ$1))","v":""},{"$f":"IF($A314=\"N/A\",Ref!$B$36,INDEX(Ranks!$1:$1048576,$A314,DA$1))","v":""},{"$f":"IF($A314=\"N/A\",Ref!$B$36,INDEX(Ranks!$1:$1048576,$A314,DB$1))","v":""},{"$f":"IF($A314=\"N/A\",Ref!$B$36,INDEX(Ranks!$1:$1048576,$A314,DC$1))","v":""},{"$f":"IF($A314=\"N/A\",Ref!$B$36,INDEX(Ranks!$1:$1048576,$A314,DD$1))","v":""},{"$f":"IF($A314=\"N/A\",Ref!$B$36,INDEX(Ranks!$1:$1048576,$A314,DE$1))","v":""},{"$f":"IF($A314=\"N/A\",Ref!$B$36,INDEX(Ranks!$1:$1048576,$A314,DF$1))","v":""},{"$f":"IF($A314=\"N/A\",Ref!$B$36,INDEX(Ranks!$1:$1048576,$A314,DG$1))","v":""},{"$f":"IF($A314=\"N/A\",Ref!$B$36,INDEX(Ranks!$1:$1048576,$A314,DH$1))","v":""},{"$f":"IF($A314=\"N/A\",Ref!$B$36,INDEX(Ranks!$1:$1048576,$A314,DI$1))","v":""},{"$f":"IF($A314=\"N/A\",Ref!$B$36,INDEX(Ranks!$1:$1048576,$A314,DJ$1))","v":""},{"$f":"IF($A314=\"N/A\",Ref!$B$36,INDEX(Ranks!$1:$1048576,$A314,DK$1))","v":""},{"$f":"IF($A314=\"N/A\",Ref!$B$36,INDEX(Ranks!$1:$1048576,$A314,DL$1))","v":""},{"$f":"IF($A314=\"N/A\",Ref!$B$36,INDEX(Ranks!$1:$1048576,$A314,DM$1))","v":""},{"$f":"IF($A314=\"N/A\",Ref!$B$36,INDEX(Ranks!$1:$1048576,$A314,DN$1))","v":""},{"$f":"IF($A314=\"N/A\",Ref!$B$36,INDEX(Ranks!$1:$1048576,$A314,DO$1))","v":""},{"$f":"IF($A314=\"N/A\",Ref!$B$36,INDEX(Ranks!$1:$1048576,$A314,DP$1))","v":""},{"$f":"IF($A314=\"N/A\",Ref!$B$36,INDEX(Ranks!$1:$1048576,$A314,DQ$1))","v":""},{"$f":"IF($A314=\"N/A\",Ref!$B$36,INDEX(Ranks!$1:$1048576,$A314,DR$1))","v":""},{"$f":"IF($A314=\"N/A\",Ref!$B$36,INDEX(Ranks!$1:$1048576,$A314,DS$1))","v":""},{"$f":"IF($A314=\"N/A\",Ref!$B$36,INDEX(Ranks!$1:$1048576,$A314,DT$1))","v":""},{"$f":"IF($A314=\"N/A\",Ref!$B$36,INDEX(Ranks!$1:$1048576,$A314,DU$1))","v":""},{"$f":"IF($A314=\"N/A\",Ref!$B$36,INDEX(Ranks!$1:$1048576,$A314,DV$1))","v":""},{"$f":"IF($A314=\"N/A\",Ref!$B$36,INDEX(Ranks!$1:$1048576,$A314,DW$1))","v":""},{"$f":"IF($A314=\"N/A\",Ref!$B$36,INDEX(Ranks!$1:$1048576,$A314,DX$1))","v":""},{"$f":"IF($A314=\"N/A\",Ref!$B$36,INDEX(Ranks!$1:$1048576,$A314,DY$1))","v":""},{"$f":"IF($A314=\"N/A\",Ref!$B$36,INDEX(Ranks!$1:$1048576,$A314,DZ$1))","v":""},{"$f":"IF($A314=\"N/A\",Ref!$B$36,INDEX(Ranks!$1:$1048576,$A314,EA$1))","v":""},{"$f":"IF($A314=\"N/A\",Ref!$B$36,INDEX(Ranks!$1:$1048576,$A314,EB$1))","v":""}]
[{"$f":"IFERROR(MATCH('Portfolio Page'!L315,Ranks!L:L,0),\"N/A\")","v":"N/A"},null,{"$f":"IF($A315=\"N/A\",\"\",INDEX(Ranks!$1:$1048576,$A315,C$1))","v":""},{"$f":"IF($A315=\"N/A\",Ref!$B$36,INDEX(Ranks!$1:$1048576,$A315,D$1))","v":""},{"$f":"IF($A315=\"N/A\",Ref!$B$36,INDEX(Ranks!$1:$1048576,$A315,E$1))","v":""},{"$f":"IF($A315=\"N/A\",\"\",INDEX(Ranks!$1:$1048576,$A315,F$1))","v":""},{"$f":"IF($A315=\"N/A\",\"\",INDEX(Ranks!$1:$1048576,$A315,G$1))","v":""},{"$f":"IF($A315=\"N/A\",\"\",INDEX(Ranks!$1:$1048576,$A315,H$1))","v":""},{"$f":"IF($A315=\"N/A\",\"\",INDEX(Ranks!$1:$1048576,$A315,I$1))","v":""},{"$f":"IF($A315=\"N/A\",\"\",INDEX(Ranks!$1:$1048576,$A315,J$1))","v":""},{"$f":"IF($A315=\"N/A\",\"\",INDEX(Ranks!$1:$1048576,$A315,K$1))","v":""},null,{"$f":"IF($A315=\"N/A\",Ref!$B$36,INDEX(Ranks!$1:$1048576,$A315,M$1))","v":""},{"$f":"IF($A315=\"N/A\",Ref!$B$36,INDEX(Ranks!$1:$1048576,$A315,N$1))","v":""},{"$f":"IF($A315=\"N/A\",Ref!$B$36,INDEX(Ranks!$1:$1048576,$A315,O$1))","v":""},{"$f":"IF($A315=\"N/A\",Ref!$B$36,INDEX(Ranks!$1:$1048576,$A315,P$1))","v":""},{"$f":"IF($A315=\"N/A\",Ref!$B$36,INDEX(Ranks!$1:$1048576,$A315,Q$1))","v":""},{"$f":"IF($A315=\"N/A\",Ref!$B$36,INDEX(Ranks!$1:$1048576,$A315,R$1))","v":""},{"$f":"IF($A315=\"N/A\",Ref!$B$36,INDEX(Ranks!$1:$1048576,$A315,S$1))","v":""},{"$f":"IF($A315=\"N/A\",Ref!$B$36,INDEX(Ranks!$1:$1048576,$A315,T$1))","v":""},{"$f":"IF($A315=\"N/A\",Ref!$B$36,INDEX(Ranks!$1:$1048576,$A315,U$1))","v":""},{"$f":"IF($A315=\"N/A\",Ref!$B$36,INDEX(Ranks!$1:$1048576,$A315,V$1))","v":""},{"$f":"IF($A315=\"N/A\",Ref!$B$36,INDEX(Ranks!$1:$1048576,$A315,W$1))","v":""},{"$f":"IF($A315=\"N/A\",Ref!$B$36,INDEX(Ranks!$1:$1048576,$A315,X$1))","v":""},{"$f":"IF($A315=\"N/A\",Ref!$B$36,INDEX(Ranks!$1:$1048576,$A315,Y$1))","v":""},{"$f":"IF($A315=\"N/A\",Ref!$B$36,INDEX(Ranks!$1:$1048576,$A315,Z$1))","v":""},{"$f":"IF($A315=\"N/A\",Ref!$B$36,INDEX(Ranks!$1:$1048576,$A315,AA$1))","v":""},{"$f":"IF($A315=\"N/A\",Ref!$B$36,INDEX(Ranks!$1:$1048576,$A315,AB$1))","v":""},{"$f":"IF($A315=\"N/A\",Ref!$B$36,INDEX(Ranks!$1:$1048576,$A315,AC$1))","v":""},{"$f":"IF($A315=\"N/A\",Ref!$B$36,INDEX(Ranks!$1:$1048576,$A315,AD$1))","v":""},{"$f":"IF($A315=\"N/A\",Ref!$B$36,INDEX(Ranks!$1:$1048576,$A315,AE$1))","v":""},{"$f":"IF($A315=\"N/A\",Ref!$B$36,INDEX(Ranks!$1:$1048576,$A315,AF$1))","v":""},{"$f":"IF($A315=\"N/A\",Ref!$B$36,INDEX(Ranks!$1:$1048576,$A315,AG$1))","v":""},{"$f":"IF($A315=\"N/A\",Ref!$B$36,INDEX(Ranks!$1:$1048576,$A315,AH$1))","v":""},{"$f":"IF($A315=\"N/A\",Ref!$B$36,INDEX(Ranks!$1:$1048576,$A315,AI$1))","v":""},{"$f":"IF($A315=\"N/A\",Ref!$B$36,INDEX(Ranks!$1:$1048576,$A315,AJ$1))","v":""},{"$f":"IF($A315=\"N/A\",Ref!$B$36,INDEX(Ranks!$1:$1048576,$A315,AK$1))","v":""},{"$f":"IF($A315=\"N/A\",Ref!$B$36,INDEX(Ranks!$1:$1048576,$A315,AL$1))","v":""},{"$f":"IF($A315=\"N/A\",Ref!$B$36,INDEX(Ranks!$1:$1048576,$A315,AM$1))","v":""},{"$f":"IF($A315=\"N/A\",Ref!$B$36,INDEX(Ranks!$1:$1048576,$A315,AN$1))","v":""},{"$f":"IF($A315=\"N/A\",Ref!$B$36,INDEX(Ranks!$1:$1048576,$A315,AO$1))","v":""},{"$f":"IF($A315=\"N/A\",Ref!$B$36,INDEX(Ranks!$1:$1048576,$A315,AP$1))","v":""},{"$f":"IF($A315=\"N/A\",Ref!$B$36,INDEX(Ranks!$1:$1048576,$A315,AQ$1))","v":""},{"$f":"IF($A315=\"N/A\",Ref!$B$36,INDEX(Ranks!$1:$1048576,$A315,AR$1))","v":""},{"$f":"IF($A315=\"N/A\",Ref!$B$36,INDEX(Ranks!$1:$1048576,$A315,AS$1))","v":""},{"$f":"IF($A315=\"N/A\",Ref!$B$36,INDEX(Ranks!$1:$1048576,$A315,AT$1))","v":""},{"$f":"IF($A315=\"N/A\",Ref!$B$36,INDEX(Ranks!$1:$1048576,$A315,AU$1))","v":""},{"$f":"IF($A315=\"N/A\",Ref!$B$36,INDEX(Ranks!$1:$1048576,$A315,AV$1))","v":""},{"$f":"IF($A315=\"N/A\",Ref!$B$36,INDEX(Ranks!$1:$1048576,$A315,AW$1))","v":""},{"$f":"IF($A315=\"N/A\",Ref!$B$36,INDEX(Ranks!$1:$1048576,$A315,AX$1))","v":""},{"$f":"IF($A315=\"N/A\",Ref!$B$36,INDEX(Ranks!$1:$1048576,$A315,AY$1))","v":""},{"$f":"IF($A315=\"N/A\",Ref!$B$36,INDEX(Ranks!$1:$1048576,$A315,AZ$1))","v":""},{"$f":"IF($A315=\"N/A\",Ref!$B$36,INDEX(Ranks!$1:$1048576,$A315,BA$1))","v":""},{"$f":"IF($A315=\"N/A\",Ref!$B$36,INDEX(Ranks!$1:$1048576,$A315,BB$1))","v":""},{"$f":"IF($A315=\"N/A\",Ref!$B$36,INDEX(Ranks!$1:$1048576,$A315,BC$1))","v":""},{"$f":"IF($A315=\"N/A\",Ref!$B$36,INDEX(Ranks!$1:$1048576,$A315,BD$1))","v":""},{"$f":"IF($A315=\"N/A\",Ref!$B$36,INDEX(Ranks!$1:$1048576,$A315,BE$1))","v":""},{"$f":"IF($A315=\"N/A\",Ref!$B$36,INDEX(Ranks!$1:$1048576,$A315,BF$1))","v":""},{"$f":"IF($A315=\"N/A\",Ref!$B$36,INDEX(Ranks!$1:$1048576,$A315,BG$1))","v":""},{"$f":"IF($A315=\"N/A\",Ref!$B$36,INDEX(Ranks!$1:$1048576,$A315,BH$1))","v":""},{"$f":"IF($A315=\"N/A\",Ref!$B$36,INDEX(Ranks!$1:$1048576,$A315,BI$1))","v":""},{"$f":"IF($A315=\"N/A\",Ref!$B$36,INDEX(Ranks!$1:$1048576,$A315,BJ$1))","v":""},{"$f":"IF($A315=\"N/A\",Ref!$B$36,INDEX(Ranks!$1:$1048576,$A315,BK$1))","v":""},{"$f":"IF($A315=\"N/A\",Ref!$B$36,INDEX(Ranks!$1:$1048576,$A315,BL$1))","v":""},{"$f":"IF($A315=\"N/A\",Ref!$B$36,INDEX(Ranks!$1:$1048576,$A315,BM$1))","v":""},{"$f":"IF($A315=\"N/A\",Ref!$B$36,INDEX(Ranks!$1:$1048576,$A315,BN$1))","v":""},{"$f":"IF($A315=\"N/A\",Ref!$B$36,INDEX(Ranks!$1:$1048576,$A315,BO$1))","v":""},{"$f":"IF($A315=\"N/A\",Ref!$B$36,INDEX(Ranks!$1:$1048576,$A315,BP$1))","v":""},{"$f":"IF($A315=\"N/A\",Ref!$B$36,INDEX(Ranks!$1:$1048576,$A315,BQ$1))","v":""},{"$f":"IF($A315=\"N/A\",Ref!$B$36,INDEX(Ranks!$1:$1048576,$A315,BR$1))","v":""},{"$f":"IF($A315=\"N/A\",Ref!$B$36,INDEX(Ranks!$1:$1048576,$A315,BS$1))","v":""},{"$f":"IF($A315=\"N/A\",Ref!$B$36,INDEX(Ranks!$1:$1048576,$A315,BT$1))","v":""},{"$f":"IF($A315=\"N/A\",Ref!$B$36,INDEX(Ranks!$1:$1048576,$A315,BU$1))","v":""},{"$f":"IF($A315=\"N/A\",Ref!$B$36,INDEX(Ranks!$1:$1048576,$A315,BV$1))","v":""},{"$f":"IF($A315=\"N/A\",Ref!$B$36,INDEX(Ranks!$1:$1048576,$A315,BW$1))","v":""},{"$f":"IF($A315=\"N/A\",Ref!$B$36,INDEX(Ranks!$1:$1048576,$A315,BX$1))","v":""},{"$f":"IF($A315=\"N/A\",Ref!$B$36,INDEX(Ranks!$1:$1048576,$A315,BY$1))","v":""},{"$f":"IF($A315=\"N/A\",Ref!$B$36,INDEX(Ranks!$1:$1048576,$A315,BZ$1))","v":""},{"$f":"IF($A315=\"N/A\",Ref!$B$36,INDEX(Ranks!$1:$1048576,$A315,CA$1))","v":""},{"$f":"IF($A315=\"N/A\",Ref!$B$36,INDEX(Ranks!$1:$1048576,$A315,CB$1))","v":""},{"$f":"IF($A315=\"N/A\",Ref!$B$36,INDEX(Ranks!$1:$1048576,$A315,CC$1))","v":""},{"$f":"IF($A315=\"N/A\",Ref!$B$36,INDEX(Ranks!$1:$1048576,$A315,CD$1))","v":""},{"$f":"IF($A315=\"N/A\",Ref!$B$36,INDEX(Ranks!$1:$1048576,$A315,CE$1))","v":""},{"$f":"IF($A315=\"N/A\",Ref!$B$36,INDEX(Ranks!$1:$1048576,$A315,CF$1))","v":""},{"$f":"IF($A315=\"N/A\",Ref!$B$36,INDEX(Ranks!$1:$1048576,$A315,CG$1))","v":""},{"$f":"IF($A315=\"N/A\",Ref!$B$36,INDEX(Ranks!$1:$1048576,$A315,CH$1))","v":""},{"$f":"IF($A315=\"N/A\",Ref!$B$36,INDEX(Ranks!$1:$1048576,$A315,CI$1))","v":""},{"$f":"IF($A315=\"N/A\",Ref!$B$36,INDEX(Ranks!$1:$1048576,$A315,CJ$1))","v":""},{"$f":"IF($A315=\"N/A\",Ref!$B$36,INDEX(Ranks!$1:$1048576,$A315,CK$1))","v":""},{"$f":"IF($A315=\"N/A\",Ref!$B$36,INDEX(Ranks!$1:$1048576,$A315,CL$1))","v":""},{"$f":"IF($A315=\"N/A\",Ref!$B$36,INDEX(Ranks!$1:$1048576,$A315,CM$1))","v":""},{"$f":"IF($A315=\"N/A\",Ref!$B$36,INDEX(Ranks!$1:$1048576,$A315,CN$1))","v":""},{"$f":"IF($A315=\"N/A\",Ref!$B$36,INDEX(Ranks!$1:$1048576,$A315,CO$1))","v":""},{"$f":"IF($A315=\"N/A\",Ref!$B$36,INDEX(Ranks!$1:$1048576,$A315,CP$1))","v":""},{"$f":"IF($A315=\"N/A\",Ref!$B$36,INDEX(Ranks!$1:$1048576,$A315,CQ$1))","v":""},{"$f":"IF($A315=\"N/A\",Ref!$B$36,INDEX(Ranks!$1:$1048576,$A315,CR$1))","v":""},{"$f":"IF($A315=\"N/A\",Ref!$B$36,INDEX(Ranks!$1:$1048576,$A315,CS$1))","v":""},{"$f":"IF($A315=\"N/A\",Ref!$B$36,INDEX(Ranks!$1:$1048576,$A315,CT$1))","v":""},{"$f":"IF($A315=\"N/A\",Ref!$B$36,INDEX(Ranks!$1:$1048576,$A315,CU$1))","v":""},{"$f":"IF($A315=\"N/A\",Ref!$B$36,INDEX(Ranks!$1:$1048576,$A315,CV$1))","v":""},{"$f":"IF($A315=\"N/A\",Ref!$B$36,INDEX(Ranks!$1:$1048576,$A315,CW$1))","v":""},{"$f":"IF($A315=\"N/A\",Ref!$B$36,INDEX(Ranks!$1:$1048576,$A315,CX$1))","v":""},{"$f":"IF($A315=\"N/A\",Ref!$B$36,INDEX(Ranks!$1:$1048576,$A315,CY$1))","v":""},{"$f":"IF($A315=\"N/A\",Ref!$B$36,INDEX(Ranks!$1:$1048576,$A315,CZ$1))","v":""},{"$f":"IF($A315=\"N/A\",Ref!$B$36,INDEX(Ranks!$1:$1048576,$A315,DA$1))","v":""},{"$f":"IF($A315=\"N/A\",Ref!$B$36,INDEX(Ranks!$1:$1048576,$A315,DB$1))","v":""},{"$f":"IF($A315=\"N/A\",Ref!$B$36,INDEX(Ranks!$1:$1048576,$A315,DC$1))","v":""},{"$f":"IF($A315=\"N/A\",Ref!$B$36,INDEX(Ranks!$1:$1048576,$A315,DD$1))","v":""},{"$f":"IF($A315=\"N/A\",Ref!$B$36,INDEX(Ranks!$1:$1048576,$A315,DE$1))","v":""},{"$f":"IF($A315=\"N/A\",Ref!$B$36,INDEX(Ranks!$1:$1048576,$A315,DF$1))","v":""},{"$f":"IF($A315=\"N/A\",Ref!$B$36,INDEX(Ranks!$1:$1048576,$A315,DG$1))","v":""},{"$f":"IF($A315=\"N/A\",Ref!$B$36,INDEX(Ranks!$1:$1048576,$A315,DH$1))","v":""},{"$f":"IF($A315=\"N/A\",Ref!$B$36,INDEX(Ranks!$1:$1048576,$A315,DI$1))","v":""},{"$f":"IF($A315=\"N/A\",Ref!$B$36,INDEX(Ranks!$1:$1048576,$A315,DJ$1))","v":""},{"$f":"IF($A315=\"N/A\",Ref!$B$36,INDEX(Ranks!$1:$1048576,$A315,DK$1))","v":""},{"$f":"IF($A315=\"N/A\",Ref!$B$36,INDEX(Ranks!$1:$1048576,$A315,DL$1))","v":""},{"$f":"IF($A315=\"N/A\",Ref!$B$36,INDEX(Ranks!$1:$1048576,$A315,DM$1))","v":""},{"$f":"IF($A315=\"N/A\",Ref!$B$36,INDEX(Ranks!$1:$1048576,$A315,DN$1))","v":""},{"$f":"IF($A315=\"N/A\",Ref!$B$36,INDEX(Ranks!$1:$1048576,$A315,DO$1))","v":""},{"$f":"IF($A315=\"N/A\",Ref!$B$36,INDEX(Ranks!$1:$1048576,$A315,DP$1))","v":""},{"$f":"IF($A315=\"N/A\",Ref!$B$36,INDEX(Ranks!$1:$1048576,$A315,DQ$1))","v":""},{"$f":"IF($A315=\"N/A\",Ref!$B$36,INDEX(Ranks!$1:$1048576,$A315,DR$1))","v":""},{"$f":"IF($A315=\"N/A\",Ref!$B$36,INDEX(Ranks!$1:$1048576,$A315,DS$1))","v":""},{"$f":"IF($A315=\"N/A\",Ref!$B$36,INDEX(Ranks!$1:$1048576,$A315,DT$1))","v":""},{"$f":"IF($A315=\"N/A\",Ref!$B$36,INDEX(Ranks!$1:$1048576,$A315,DU$1))","v":""},{"$f":"IF($A315=\"N/A\",Ref!$B$36,INDEX(Ranks!$1:$1048576,$A315,DV$1))","v":""},{"$f":"IF($A315=\"N/A\",Ref!$B$36,INDEX(Ranks!$1:$1048576,$A315,DW$1))","v":""},{"$f":"IF($A315=\"N/A\",Ref!$B$36,INDEX(Ranks!$1:$1048576,$A315,DX$1))","v":""},{"$f":"IF($A315=\"N/A\",Ref!$B$36,INDEX(Ranks!$1:$1048576,$A315,DY$1))","v":""},{"$f":"IF($A315=\"N/A\",Ref!$B$36,INDEX(Ranks!$1:$1048576,$A315,DZ$1))","v":""},{"$f":"IF($A315=\"N/A\",Ref!$B$36,INDEX(Ranks!$1:$1048576,$A315,EA$1))","v":""},{"$f":"IF($A315=\"N/A\",Ref!$B$36,INDEX(Ranks!$1:$1048576,$A315,EB$1))","v":""}]
[{"$f":"IFERROR(MATCH('Portfolio Page'!L316,Ranks!L:L,0),\"N/A\")","v":"N/A"},null,{"$f":"IF($A316=\"N/A\",\"\",INDEX(Ranks!$1:$1048576,$A316,C$1))","v":""},{"$f":"IF($A316=\"N/A\",Ref!$B$36,INDEX(Ranks!$1:$1048576,$A316,D$1))","v":""},{"$f":"IF($A316=\"N/A\",Ref!$B$36,INDEX(Ranks!$1:$1048576,$A316,E$1))","v":""},{"$f":"IF($A316=\"N/A\",\"\",INDEX(Ranks!$1:$1048576,$A316,F$1))","v":""},{"$f":"IF($A316=\"N/A\",\"\",INDEX(Ranks!$1:$1048576,$A316,G$1))","v":""},{"$f":"IF($A316=\"N/A\",\"\",INDEX(Ranks!$1:$1048576,$A316,H$1))","v":""},{"$f":"IF($A316=\"N/A\",\"\",INDEX(Ranks!$1:$1048576,$A316,I$1))","v":""},{"$f":"IF($A316=\"N/A\",\"\",INDEX(Ranks!$1:$1048576,$A316,J$1))","v":""},{"$f":"IF($A316=\"N/A\",\"\",INDEX(Ranks!$1:$1048576,$A316,K$1))","v":""},null,{"$f":"IF($A316=\"N/A\",Ref!$B$36,INDEX(Ranks!$1:$1048576,$A316,M$1))","v":""},{"$f":"IF($A316=\"N/A\",Ref!$B$36,INDEX(Ranks!$1:$1048576,$A316,N$1))","v":""},{"$f":"IF($A316=\"N/A\",Ref!$B$36,INDEX(Ranks!$1:$1048576,$A316,O$1))","v":""},{"$f":"IF($A316=\"N/A\",Ref!$B$36,INDEX(Ranks!$1:$1048576,$A316,P$1))","v":""},{"$f":"IF($A316=\"N/A\",Ref!$B$36,INDEX(Ranks!$1:$1048576,$A316,Q$1))","v":""},{"$f":"IF($A316=\"N/A\",Ref!$B$36,INDEX(Ranks!$1:$1048576,$A316,R$1))","v":""},{"$f":"IF($A316=\"N/A\",Ref!$B$36,INDEX(Ranks!$1:$1048576,$A316,S$1))","v":""},{"$f":"IF($A316=\"N/A\",Ref!$B$36,INDEX(Ranks!$1:$1048576,$A316,T$1))","v":""},{"$f":"IF($A316=\"N/A\",Ref!$B$36,INDEX(Ranks!$1:$1048576,$A316,U$1))","v":""},{"$f":"IF($A316=\"N/A\",Ref!$B$36,INDEX(Ranks!$1:$1048576,$A316,V$1))","v":""},{"$f":"IF($A316=\"N/A\",Ref!$B$36,INDEX(Ranks!$1:$1048576,$A316,W$1))","v":""},{"$f":"IF($A316=\"N/A\",Ref!$B$36,INDEX(Ranks!$1:$1048576,$A316,X$1))","v":""},{"$f":"IF($A316=\"N/A\",Ref!$B$36,INDEX(Ranks!$1:$1048576,$A316,Y$1))","v":""},{"$f":"IF($A316=\"N/A\",Ref!$B$36,INDEX(Ranks!$1:$1048576,$A316,Z$1))","v":""},{"$f":"IF($A316=\"N/A\",Ref!$B$36,INDEX(Ranks!$1:$1048576,$A316,AA$1))","v":""},{"$f":"IF($A316=\"N/A\",Ref!$B$36,INDEX(Ranks!$1:$1048576,$A316,AB$1))","v":""},{"$f":"IF($A316=\"N/A\",Ref!$B$36,INDEX(Ranks!$1:$1048576,$A316,AC$1))","v":""},{"$f":"IF($A316=\"N/A\",Ref!$B$36,INDEX(Ranks!$1:$1048576,$A316,AD$1))","v":""},{"$f":"IF($A316=\"N/A\",Ref!$B$36,INDEX(Ranks!$1:$1048576,$A316,AE$1))","v":""},{"$f":"IF($A316=\"N/A\",Ref!$B$36,INDEX(Ranks!$1:$1048576,$A316,AF$1))","v":""},{"$f":"IF($A316=\"N/A\",Ref!$B$36,INDEX(Ranks!$1:$1048576,$A316,AG$1))","v":""},{"$f":"IF($A316=\"N/A\",Ref!$B$36,INDEX(Ranks!$1:$1048576,$A316,AH$1))","v":""},{"$f":"IF($A316=\"N/A\",Ref!$B$36,INDEX(Ranks!$1:$1048576,$A316,AI$1))","v":""},{"$f":"IF($A316=\"N/A\",Ref!$B$36,INDEX(Ranks!$1:$1048576,$A316,AJ$1))","v":""},{"$f":"IF($A316=\"N/A\",Ref!$B$36,INDEX(Ranks!$1:$1048576,$A316,AK$1))","v":""},{"$f":"IF($A316=\"N/A\",Ref!$B$36,INDEX(Ranks!$1:$1048576,$A316,AL$1))","v":""},{"$f":"IF($A316=\"N/A\",Ref!$B$36,INDEX(Ranks!$1:$1048576,$A316,AM$1))","v":""},{"$f":"IF($A316=\"N/A\",Ref!$B$36,INDEX(Ranks!$1:$1048576,$A316,AN$1))","v":""},{"$f":"IF($A316=\"N/A\",Ref!$B$36,INDEX(Ranks!$1:$1048576,$A316,AO$1))","v":""},{"$f":"IF($A316=\"N/A\",Ref!$B$36,INDEX(Ranks!$1:$1048576,$A316,AP$1))","v":""},{"$f":"IF($A316=\"N/A\",Ref!$B$36,INDEX(Ranks!$1:$1048576,$A316,AQ$1))","v":""},{"$f":"IF($A316=\"N/A\",Ref!$B$36,INDEX(Ranks!$1:$1048576,$A316,AR$1))","v":""},{"$f":"IF($A316=\"N/A\",Ref!$B$36,INDEX(Ranks!$1:$1048576,$A316,AS$1))","v":""},{"$f":"IF($A316=\"N/A\",Ref!$B$36,INDEX(Ranks!$1:$1048576,$A316,AT$1))","v":""},{"$f":"IF($A316=\"N/A\",Ref!$B$36,INDEX(Ranks!$1:$1048576,$A316,AU$1))","v":""},{"$f":"IF($A316=\"N/A\",Ref!$B$36,INDEX(Ranks!$1:$1048576,$A316,AV$1))","v":""},{"$f":"IF($A316=\"N/A\",Ref!$B$36,INDEX(Ranks!$1:$1048576,$A316,AW$1))","v":""},{"$f":"IF($A316=\"N/A\",Ref!$B$36,INDEX(Ranks!$1:$1048576,$A316,AX$1))","v":""},{"$f":"IF($A316=\"N/A\",Ref!$B$36,INDEX(Ranks!$1:$1048576,$A316,AY$1))","v":""},{"$f":"IF($A316=\"N/A\",Ref!$B$36,INDEX(Ranks!$1:$1048576,$A316,AZ$1))","v":""},{"$f":"IF($A316=\"N/A\",Ref!$B$36,INDEX(Ranks!$1:$1048576,$A316,BA$1))","v":""},{"$f":"IF($A316=\"N/A\",Ref!$B$36,INDEX(Ranks!$1:$1048576,$A316,BB$1))","v":""},{"$f":"IF($A316=\"N/A\",Ref!$B$36,INDEX(Ranks!$1:$1048576,$A316,BC$1))","v":""},{"$f":"IF($A316=\"N/A\",Ref!$B$36,INDEX(Ranks!$1:$1048576,$A316,BD$1))","v":""},{"$f":"IF($A316=\"N/A\",Ref!$B$36,INDEX(Ranks!$1:$1048576,$A316,BE$1))","v":""},{"$f":"IF($A316=\"N/A\",Ref!$B$36,INDEX(Ranks!$1:$1048576,$A316,BF$1))","v":""},{"$f":"IF($A316=\"N/A\",Ref!$B$36,INDEX(Ranks!$1:$1048576,$A316,BG$1))","v":""},{"$f":"IF($A316=\"N/A\",Ref!$B$36,INDEX(Ranks!$1:$1048576,$A316,BH$1))","v":""},{"$f":"IF($A316=\"N/A\",Ref!$B$36,INDEX(Ranks!$1:$1048576,$A316,BI$1))","v":""},{"$f":"IF($A316=\"N/A\",Ref!$B$36,INDEX(Ranks!$1:$1048576,$A316,BJ$1))","v":""},{"$f":"IF($A316=\"N/A\",Ref!$B$36,INDEX(Ranks!$1:$1048576,$A316,BK$1))","v":""},{"$f":"IF($A316=\"N/A\",Ref!$B$36,INDEX(Ranks!$1:$1048576,$A316,BL$1))","v":""},{"$f":"IF($A316=\"N/A\",Ref!$B$36,INDEX(Ranks!$1:$1048576,$A316,BM$1))","v":""},{"$f":"IF($A316=\"N/A\",Ref!$B$36,INDEX(Ranks!$1:$1048576,$A316,BN$1))","v":""},{"$f":"IF($A316=\"N/A\",Ref!$B$36,INDEX(Ranks!$1:$1048576,$A316,BO$1))","v":""},{"$f":"IF($A316=\"N/A\",Ref!$B$36,INDEX(Ranks!$1:$1048576,$A316,BP$1))","v":""},{"$f":"IF($A316=\"N/A\",Ref!$B$36,INDEX(Ranks!$1:$1048576,$A316,BQ$1))","v":""},{"$f":"IF($A316=\"N/A\",Ref!$B$36,INDEX(Ranks!$1:$1048576,$A316,BR$1))","v":""},{"$f":"IF($A316=\"N/A\",Ref!$B$36,INDEX(Ranks!$1:$1048576,$A316,BS$1))","v":""},{"$f":"IF($A316=\"N/A\",Ref!$B$36,INDEX(Ranks!$1:$1048576,$A316,BT$1))","v":""},{"$f":"IF($A316=\"N/A\",Ref!$B$36,INDEX(Ranks!$1:$1048576,$A316,BU$1))","v":""},{"$f":"IF($A316=\"N/A\",Ref!$B$36,INDEX(Ranks!$1:$1048576,$A316,BV$1))","v":""},{"$f":"IF($A316=\"N/A\",Ref!$B$36,INDEX(Ranks!$1:$1048576,$A316,BW$1))","v":""},{"$f":"IF($A316=\"N/A\",Ref!$B$36,INDEX(Ranks!$1:$1048576,$A316,BX$1))","v":""},{"$f":"IF($A316=\"N/A\",Ref!$B$36,INDEX(Ranks!$1:$1048576,$A316,BY$1))","v":""},{"$f":"IF($A316=\"N/A\",Ref!$B$36,INDEX(Ranks!$1:$1048576,$A316,BZ$1))","v":""},{"$f":"IF($A316=\"N/A\",Ref!$B$36,INDEX(Ranks!$1:$1048576,$A316,CA$1))","v":""},{"$f":"IF($A316=\"N/A\",Ref!$B$36,INDEX(Ranks!$1:$1048576,$A316,CB$1))","v":""},{"$f":"IF($A316=\"N/A\",Ref!$B$36,INDEX(Ranks!$1:$1048576,$A316,CC$1))","v":""},{"$f":"IF($A316=\"N/A\",Ref!$B$36,INDEX(Ranks!$1:$1048576,$A316,CD$1))","v":""},{"$f":"IF($A316=\"N/A\",Ref!$B$36,INDEX(Ranks!$1:$1048576,$A316,CE$1))","v":""},{"$f":"IF($A316=\"N/A\",Ref!$B$36,INDEX(Ranks!$1:$1048576,$A316,CF$1))","v":""},{"$f":"IF($A316=\"N/A\",Ref!$B$36,INDEX(Ranks!$1:$1048576,$A316,CG$1))","v":""},{"$f":"IF($A316=\"N/A\",Ref!$B$36,INDEX(Ranks!$1:$1048576,$A316,CH$1))","v":""},{"$f":"IF($A316=\"N/A\",Ref!$B$36,INDEX(Ranks!$1:$1048576,$A316,CI$1))","v":""},{"$f":"IF($A316=\"N/A\",Ref!$B$36,INDEX(Ranks!$1:$1048576,$A316,CJ$1))","v":""},{"$f":"IF($A316=\"N/A\",Ref!$B$36,INDEX(Ranks!$1:$1048576,$A316,CK$1))","v":""},{"$f":"IF($A316=\"N/A\",Ref!$B$36,INDEX(Ranks!$1:$1048576,$A316,CL$1))","v":""},{"$f":"IF($A316=\"N/A\",Ref!$B$36,INDEX(Ranks!$1:$1048576,$A316,CM$1))","v":""},{"$f":"IF($A316=\"N/A\",Ref!$B$36,INDEX(Ranks!$1:$1048576,$A316,CN$1))","v":""},{"$f":"IF($A316=\"N/A\",Ref!$B$36,INDEX(Ranks!$1:$1048576,$A316,CO$1))","v":""},{"$f":"IF($A316=\"N/A\",Ref!$B$36,INDEX(Ranks!$1:$1048576,$A316,CP$1))","v":""},{"$f":"IF($A316=\"N/A\",Ref!$B$36,INDEX(Ranks!$1:$1048576,$A316,CQ$1))","v":""},{"$f":"IF($A316=\"N/A\",Ref!$B$36,INDEX(Ranks!$1:$1048576,$A316,CR$1))","v":""},{"$f":"IF($A316=\"N/A\",Ref!$B$36,INDEX(Ranks!$1:$1048576,$A316,CS$1))","v":""},{"$f":"IF($A316=\"N/A\",Ref!$B$36,INDEX(Ranks!$1:$1048576,$A316,CT$1))","v":""},{"$f":"IF($A316=\"N/A\",Ref!$B$36,INDEX(Ranks!$1:$1048576,$A316,CU$1))","v":""},{"$f":"IF($A316=\"N/A\",Ref!$B$36,INDEX(Ranks!$1:$1048576,$A316,CV$1))","v":""},{"$f":"IF($A316=\"N/A\",Ref!$B$36,INDEX(Ranks!$1:$1048576,$A316,CW$1))","v":""},{"$f":"IF($A316=\"N/A\",Ref!$B$36,INDEX(Ranks!$1:$1048576,$A316,CX$1))","v":""},{"$f":"IF($A316=\"N/A\",Ref!$B$36,INDEX(Ranks!$1:$1048576,$A316,CY$1))","v":""},{"$f":"IF($A316=\"N/A\",Ref!$B$36,INDEX(Ranks!$1:$1048576,$A316,CZ$1))","v":""},{"$f":"IF($A316=\"N/A\",Ref!$B$36,INDEX(Ranks!$1:$1048576,$A316,DA$1))","v":""},{"$f":"IF($A316=\"N/A\",Ref!$B$36,INDEX(Ranks!$1:$1048576,$A316,DB$1))","v":""},{"$f":"IF($A316=\"N/A\",Ref!$B$36,INDEX(Ranks!$1:$1048576,$A316,DC$1))","v":""},{"$f":"IF($A316=\"N/A\",Ref!$B$36,INDEX(Ranks!$1:$1048576,$A316,DD$1))","v":""},{"$f":"IF($A316=\"N/A\",Ref!$B$36,INDEX(Ranks!$1:$1048576,$A316,DE$1))","v":""},{"$f":"IF($A316=\"N/A\",Ref!$B$36,INDEX(Ranks!$1:$1048576,$A316,DF$1))","v":""},{"$f":"IF($A316=\"N/A\",Ref!$B$36,INDEX(Ranks!$1:$1048576,$A316,DG$1))","v":""},{"$f":"IF($A316=\"N/A\",Ref!$B$36,INDEX(Ranks!$1:$1048576,$A316,DH$1))","v":""},{"$f":"IF($A316=\"N/A\",Ref!$B$36,INDEX(Ranks!$1:$1048576,$A316,DI$1))","v":""},{"$f":"IF($A316=\"N/A\",Ref!$B$36,INDEX(Ranks!$1:$1048576,$A316,DJ$1))","v":""},{"$f":"IF($A316=\"N/A\",Ref!$B$36,INDEX(Ranks!$1:$1048576,$A316,DK$1))","v":""},{"$f":"IF($A316=\"N/A\",Ref!$B$36,INDEX(Ranks!$1:$1048576,$A316,DL$1))","v":""},{"$f":"IF($A316=\"N/A\",Ref!$B$36,INDEX(Ranks!$1:$1048576,$A316,DM$1))","v":""},{"$f":"IF($A316=\"N/A\",Ref!$B$36,INDEX(Ranks!$1:$1048576,$A316,DN$1))","v":""},{"$f":"IF($A316=\"N/A\",Ref!$B$36,INDEX(Ranks!$1:$1048576,$A316,DO$1))","v":""},{"$f":"IF($A316=\"N/A\",Ref!$B$36,INDEX(Ranks!$1:$1048576,$A316,DP$1))","v":""},{"$f":"IF($A316=\"N/A\",Ref!$B$36,INDEX(Ranks!$1:$1048576,$A316,DQ$1))","v":""},{"$f":"IF($A316=\"N/A\",Ref!$B$36,INDEX(Ranks!$1:$1048576,$A316,DR$1))","v":""},{"$f":"IF($A316=\"N/A\",Ref!$B$36,INDEX(Ranks!$1:$1048576,$A316,DS$1))","v":""},{"$f":"IF($A316=\"N/A\",Ref!$B$36,INDEX(Ranks!$1:$1048576,$A316,DT$1))","v":""},{"$f":"IF($A316=\"N/A\",Ref!$B$36,INDEX(Ranks!$1:$1048576,$A316,DU$1))","v":""},{"$f":"IF($A316=\"N/A\",Ref!$B$36,INDEX(Ranks!$1:$1048576,$A316,DV$1))","v":""},{"$f":"IF($A316=\"N/A\",Ref!$B$36,INDEX(Ranks!$1:$1048576,$A316,DW$1))","v":""},{"$f":"IF($A316=\"N/A\",Ref!$B$36,INDEX(Ranks!$1:$1048576,$A316,DX$1))","v":""},{"$f":"IF($A316=\"N/A\",Ref!$B$36,INDEX(Ranks!$1:$1048576,$A316,DY$1))","v":""},{"$f":"IF($A316=\"N/A\",Ref!$B$36,INDEX(Ranks!$1:$1048576,$A316,DZ$1))","v":""},{"$f":"IF($A316=\"N/A\",Ref!$B$36,INDEX(Ranks!$1:$1048576,$A316,EA$1))","v":""},{"$f":"IF($A316=\"N/A\",Ref!$B$36,INDEX(Ranks!$1:$1048576,$A316,EB$1))","v":""}]
[{"$f":"IFERROR(MATCH('Portfolio Page'!L317,Ranks!L:L,0),\"N/A\")","v":"N/A"},null,{"$f":"IF($A317=\"N/A\",\"\",INDEX(Ranks!$1:$1048576,$A317,C$1))","v":""},{"$f":"IF($A317=\"N/A\",Ref!$B$36,INDEX(Ranks!$1:$1048576,$A317,D$1))","v":""},{"$f":"IF($A317=\"N/A\",Ref!$B$36,INDEX(Ranks!$1:$1048576,$A317,E$1))","v":""},{"$f":"IF($A317=\"N/A\",\"\",INDEX(Ranks!$1:$1048576,$A317,F$1))","v":""},{"$f":"IF($A317=\"N/A\",\"\",INDEX(Ranks!$1:$1048576,$A317,G$1))","v":""},{"$f":"IF($A317=\"N/A\",\"\",INDEX(Ranks!$1:$1048576,$A317,H$1))","v":""},{"$f":"IF($A317=\"N/A\",\"\",INDEX(Ranks!$1:$1048576,$A317,I$1))","v":""},{"$f":"IF($A317=\"N/A\",\"\",INDEX(Ranks!$1:$1048576,$A317,J$1))","v":""},{"$f":"IF($A317=\"N/A\",\"\",INDEX(Ranks!$1:$1048576,$A317,K$1))","v":""},null,{"$f":"IF($A317=\"N/A\",Ref!$B$36,INDEX(Ranks!$1:$1048576,$A317,M$1))","v":""},{"$f":"IF($A317=\"N/A\",Ref!$B$36,INDEX(Ranks!$1:$1048576,$A317,N$1))","v":""},{"$f":"IF($A317=\"N/A\",Ref!$B$36,INDEX(Ranks!$1:$1048576,$A317,O$1))","v":""},{"$f":"IF($A317=\"N/A\",Ref!$B$36,INDEX(Ranks!$1:$1048576,$A317,P$1))","v":""},{"$f":"IF($A317=\"N/A\",Ref!$B$36,INDEX(Ranks!$1:$1048576,$A317,Q$1))","v":""},{"$f":"IF($A317=\"N/A\",Ref!$B$36,INDEX(Ranks!$1:$1048576,$A317,R$1))","v":""},{"$f":"IF($A317=\"N/A\",Ref!$B$36,INDEX(Ranks!$1:$1048576,$A317,S$1))","v":""},{"$f":"IF($A317=\"N/A\",Ref!$B$36,INDEX(Ranks!$1:$1048576,$A317,T$1))","v":""},{"$f":"IF($A317=\"N/A\",Ref!$B$36,INDEX(Ranks!$1:$1048576,$A317,U$1))","v":""},{"$f":"IF($A317=\"N/A\",Ref!$B$36,INDEX(Ranks!$1:$1048576,$A317,V$1))","v":""},{"$f":"IF($A317=\"N/A\",Ref!$B$36,INDEX(Ranks!$1:$1048576,$A317,W$1))","v":""},{"$f":"IF($A317=\"N/A\",Ref!$B$36,INDEX(Ranks!$1:$1048576,$A317,X$1))","v":""},{"$f":"IF($A317=\"N/A\",Ref!$B$36,INDEX(Ranks!$1:$1048576,$A317,Y$1))","v":""},{"$f":"IF($A317=\"N/A\",Ref!$B$36,INDEX(Ranks!$1:$1048576,$A317,Z$1))","v":""},{"$f":"IF($A317=\"N/A\",Ref!$B$36,INDEX(Ranks!$1:$1048576,$A317,AA$1))","v":""},{"$f":"IF($A317=\"N/A\",Ref!$B$36,INDEX(Ranks!$1:$1048576,$A317,AB$1))","v":""},{"$f":"IF($A317=\"N/A\",Ref!$B$36,INDEX(Ranks!$1:$1048576,$A317,AC$1))","v":""},{"$f":"IF($A317=\"N/A\",Ref!$B$36,INDEX(Ranks!$1:$1048576,$A317,AD$1))","v":""},{"$f":"IF($A317=\"N/A\",Ref!$B$36,INDEX(Ranks!$1:$1048576,$A317,AE$1))","v":""},{"$f":"IF($A317=\"N/A\",Ref!$B$36,INDEX(Ranks!$1:$1048576,$A317,AF$1))","v":""},{"$f":"IF($A317=\"N/A\",Ref!$B$36,INDEX(Ranks!$1:$1048576,$A317,AG$1))","v":""},{"$f":"IF($A317=\"N/A\",Ref!$B$36,INDEX(Ranks!$1:$1048576,$A317,AH$1))","v":""},{"$f":"IF($A317=\"N/A\",Ref!$B$36,INDEX(Ranks!$1:$1048576,$A317,AI$1))","v":""},{"$f":"IF($A317=\"N/A\",Ref!$B$36,INDEX(Ranks!$1:$1048576,$A317,AJ$1))","v":""},{"$f":"IF($A317=\"N/A\",Ref!$B$36,INDEX(Ranks!$1:$1048576,$A317,AK$1))","v":""},{"$f":"IF($A317=\"N/A\",Ref!$B$36,INDEX(Ranks!$1:$1048576,$A317,AL$1))","v":""},{"$f":"IF($A317=\"N/A\",Ref!$B$36,INDEX(Ranks!$1:$1048576,$A317,AM$1))","v":""},{"$f":"IF($A317=\"N/A\",Ref!$B$36,INDEX(Ranks!$1:$1048576,$A317,AN$1))","v":""},{"$f":"IF($A317=\"N/A\",Ref!$B$36,INDEX(Ranks!$1:$1048576,$A317,AO$1))","v":""},{"$f":"IF($A317=\"N/A\",Ref!$B$36,INDEX(Ranks!$1:$1048576,$A317,AP$1))","v":""},{"$f":"IF($A317=\"N/A\",Ref!$B$36,INDEX(Ranks!$1:$1048576,$A317,AQ$1))","v":""},{"$f":"IF($A317=\"N/A\",Ref!$B$36,INDEX(Ranks!$1:$1048576,$A317,AR$1))","v":""},{"$f":"IF($A317=\"N/A\",Ref!$B$36,INDEX(Ranks!$1:$1048576,$A317,AS$1))","v":""},{"$f":"IF($A317=\"N/A\",Ref!$B$36,INDEX(Ranks!$1:$1048576,$A317,AT$1))","v":""},{"$f":"IF($A317=\"N/A\",Ref!$B$36,INDEX(Ranks!$1:$1048576,$A317,AU$1))","v":""},{"$f":"IF($A317=\"N/A\",Ref!$B$36,INDEX(Ranks!$1:$1048576,$A317,AV$1))","v":""},{"$f":"IF($A317=\"N/A\",Ref!$B$36,INDEX(Ranks!$1:$1048576,$A317,AW$1))","v":""},{"$f":"IF($A317=\"N/A\",Ref!$B$36,INDEX(Ranks!$1:$1048576,$A317,AX$1))","v":""},{"$f":"IF($A317=\"N/A\",Ref!$B$36,INDEX(Ranks!$1:$1048576,$A317,AY$1))","v":""},{"$f":"IF($A317=\"N/A\",Ref!$B$36,INDEX(Ranks!$1:$1048576,$A317,AZ$1))","v":""},{"$f":"IF($A317=\"N/A\",Ref!$B$36,INDEX(Ranks!$1:$1048576,$A317,BA$1))","v":""},{"$f":"IF($A317=\"N/A\",Ref!$B$36,INDEX(Ranks!$1:$1048576,$A317,BB$1))","v":""},{"$f":"IF($A317=\"N/A\",Ref!$B$36,INDEX(Ranks!$1:$1048576,$A317,BC$1))","v":""},{"$f":"IF($A317=\"N/A\",Ref!$B$36,INDEX(Ranks!$1:$1048576,$A317,BD$1))","v":""},{"$f":"IF($A317=\"N/A\",Ref!$B$36,INDEX(Ranks!$1:$1048576,$A317,BE$1))","v":""},{"$f":"IF($A317=\"N/A\",Ref!$B$36,INDEX(Ranks!$1:$1048576,$A317,BF$1))","v":""},{"$f":"IF($A317=\"N/A\",Ref!$B$36,INDEX(Ranks!$1:$1048576,$A317,BG$1))","v":""},{"$f":"IF($A317=\"N/A\",Ref!$B$36,INDEX(Ranks!$1:$1048576,$A317,BH$1))","v":""},{"$f":"IF($A317=\"N/A\",Ref!$B$36,INDEX(Ranks!$1:$1048576,$A317,BI$1))","v":""},{"$f":"IF($A317=\"N/A\",Ref!$B$36,INDEX(Ranks!$1:$1048576,$A317,BJ$1))","v":""},{"$f":"IF($A317=\"N/A\",Ref!$B$36,INDEX(Ranks!$1:$1048576,$A317,BK$1))","v":""},{"$f":"IF($A317=\"N/A\",Ref!$B$36,INDEX(Ranks!$1:$1048576,$A317,BL$1))","v":""},{"$f":"IF($A317=\"N/A\",Ref!$B$36,INDEX(Ranks!$1:$1048576,$A317,BM$1))","v":""},{"$f":"IF($A317=\"N/A\",Ref!$B$36,INDEX(Ranks!$1:$1048576,$A317,BN$1))","v":""},{"$f":"IF($A317=\"N/A\",Ref!$B$36,INDEX(Ranks!$1:$1048576,$A317,BO$1))","v":""},{"$f":"IF($A317=\"N/A\",Ref!$B$36,INDEX(Ranks!$1:$1048576,$A317,BP$1))","v":""},{"$f":"IF($A317=\"N/A\",Ref!$B$36,INDEX(Ranks!$1:$1048576,$A317,BQ$1))","v":""},{"$f":"IF($A317=\"N/A\",Ref!$B$36,INDEX(Ranks!$1:$1048576,$A317,BR$1))","v":""},{"$f":"IF($A317=\"N/A\",Ref!$B$36,INDEX(Ranks!$1:$1048576,$A317,BS$1))","v":""},{"$f":"IF($A317=\"N/A\",Ref!$B$36,INDEX(Ranks!$1:$1048576,$A317,BT$1))","v":""},{"$f":"IF($A317=\"N/A\",Ref!$B$36,INDEX(Ranks!$1:$1048576,$A317,BU$1))","v":""},{"$f":"IF($A317=\"N/A\",Ref!$B$36,INDEX(Ranks!$1:$1048576,$A317,BV$1))","v":""},{"$f":"IF($A317=\"N/A\",Ref!$B$36,INDEX(Ranks!$1:$1048576,$A317,BW$1))","v":""},{"$f":"IF($A317=\"N/A\",Ref!$B$36,INDEX(Ranks!$1:$1048576,$A317,BX$1))","v":""},{"$f":"IF($A317=\"N/A\",Ref!$B$36,INDEX(Ranks!$1:$1048576,$A317,BY$1))","v":""},{"$f":"IF($A317=\"N/A\",Ref!$B$36,INDEX(Ranks!$1:$1048576,$A317,BZ$1))","v":""},{"$f":"IF($A317=\"N/A\",Ref!$B$36,INDEX(Ranks!$1:$1048576,$A317,CA$1))","v":""},{"$f":"IF($A317=\"N/A\",Ref!$B$36,INDEX(Ranks!$1:$1048576,$A317,CB$1))","v":""},{"$f":"IF($A317=\"N/A\",Ref!$B$36,INDEX(Ranks!$1:$1048576,$A317,CC$1))","v":""},{"$f":"IF($A317=\"N/A\",Ref!$B$36,INDEX(Ranks!$1:$1048576,$A317,CD$1))","v":""},{"$f":"IF($A317=\"N/A\",Ref!$B$36,INDEX(Ranks!$1:$1048576,$A317,CE$1))","v":""},{"$f":"IF($A317=\"N/A\",Ref!$B$36,INDEX(Ranks!$1:$1048576,$A317,CF$1))","v":""},{"$f":"IF($A317=\"N/A\",Ref!$B$36,INDEX(Ranks!$1:$1048576,$A317,CG$1))","v":""},{"$f":"IF($A317=\"N/A\",Ref!$B$36,INDEX(Ranks!$1:$1048576,$A317,CH$1))","v":""},{"$f":"IF($A317=\"N/A\",Ref!$B$36,INDEX(Ranks!$1:$1048576,$A317,CI$1))","v":""},{"$f":"IF($A317=\"N/A\",Ref!$B$36,INDEX(Ranks!$1:$1048576,$A317,CJ$1))","v":""},{"$f":"IF($A317=\"N/A\",Ref!$B$36,INDEX(Ranks!$1:$1048576,$A317,CK$1))","v":""},{"$f":"IF($A317=\"N/A\",Ref!$B$36,INDEX(Ranks!$1:$1048576,$A317,CL$1))","v":""},{"$f":"IF($A317=\"N/A\",Ref!$B$36,INDEX(Ranks!$1:$1048576,$A317,CM$1))","v":""},{"$f":"IF($A317=\"N/A\",Ref!$B$36,INDEX(Ranks!$1:$1048576,$A317,CN$1))","v":""},{"$f":"IF($A317=\"N/A\",Ref!$B$36,INDEX(Ranks!$1:$1048576,$A317,CO$1))","v":""},{"$f":"IF($A317=\"N/A\",Ref!$B$36,INDEX(Ranks!$1:$1048576,$A317,CP$1))","v":""},{"$f":"IF($A317=\"N/A\",Ref!$B$36,INDEX(Ranks!$1:$1048576,$A317,CQ$1))","v":""},{"$f":"IF($A317=\"N/A\",Ref!$B$36,INDEX(Ranks!$1:$1048576,$A317,CR$1))","v":""},{"$f":"IF($A317=\"N/A\",Ref!$B$36,INDEX(Ranks!$1:$1048576,$A317,CS$1))","v":""},{"$f":"IF($A317=\"N/A\",Ref!$B$36,INDEX(Ranks!$1:$1048576,$A317,CT$1))","v":""},{"$f":"IF($A317=\"N/A\",Ref!$B$36,INDEX(Ranks!$1:$1048576,$A317,CU$1))","v":""},{"$f":"IF($A317=\"N/A\",Ref!$B$36,INDEX(Ranks!$1:$1048576,$A317,CV$1))","v":""},{"$f":"IF($A317=\"N/A\",Ref!$B$36,INDEX(Ranks!$1:$1048576,$A317,CW$1))","v":""},{"$f":"IF($A317=\"N/A\",Ref!$B$36,INDEX(Ranks!$1:$1048576,$A317,CX$1))","v":""},{"$f":"IF($A317=\"N/A\",Ref!$B$36,INDEX(Ranks!$1:$1048576,$A317,CY$1))","v":""},{"$f":"IF($A317=\"N/A\",Ref!$B$36,INDEX(Ranks!$1:$1048576,$A317,CZ$1))","v":""},{"$f":"IF($A317=\"N/A\",Ref!$B$36,INDEX(Ranks!$1:$1048576,$A317,DA$1))","v":""},{"$f":"IF($A317=\"N/A\",Ref!$B$36,INDEX(Ranks!$1:$1048576,$A317,DB$1))","v":""},{"$f":"IF($A317=\"N/A\",Ref!$B$36,INDEX(Ranks!$1:$1048576,$A317,DC$1))","v":""},{"$f":"IF($A317=\"N/A\",Ref!$B$36,INDEX(Ranks!$1:$1048576,$A317,DD$1))","v":""},{"$f":"IF($A317=\"N/A\",Ref!$B$36,INDEX(Ranks!$1:$1048576,$A317,DE$1))","v":""},{"$f":"IF($A317=\"N/A\",Ref!$B$36,INDEX(Ranks!$1:$1048576,$A317,DF$1))","v":""},{"$f":"IF($A317=\"N/A\",Ref!$B$36,INDEX(Ranks!$1:$1048576,$A317,DG$1))","v":""},{"$f":"IF($A317=\"N/A\",Ref!$B$36,INDEX(Ranks!$1:$1048576,$A317,DH$1))","v":""},{"$f":"IF($A317=\"N/A\",Ref!$B$36,INDEX(Ranks!$1:$1048576,$A317,DI$1))","v":""},{"$f":"IF($A317=\"N/A\",Ref!$B$36,INDEX(Ranks!$1:$1048576,$A317,DJ$1))","v":""},{"$f":"IF($A317=\"N/A\",Ref!$B$36,INDEX(Ranks!$1:$1048576,$A317,DK$1))","v":""},{"$f":"IF($A317=\"N/A\",Ref!$B$36,INDEX(Ranks!$1:$1048576,$A317,DL$1))","v":""},{"$f":"IF($A317=\"N/A\",Ref!$B$36,INDEX(Ranks!$1:$1048576,$A317,DM$1))","v":""},{"$f":"IF($A317=\"N/A\",Ref!$B$36,INDEX(Ranks!$1:$1048576,$A317,DN$1))","v":""},{"$f":"IF($A317=\"N/A\",Ref!$B$36,INDEX(Ranks!$1:$1048576,$A317,DO$1))","v":""},{"$f":"IF($A317=\"N/A\",Ref!$B$36,INDEX(Ranks!$1:$1048576,$A317,DP$1))","v":""},{"$f":"IF($A317=\"N/A\",Ref!$B$36,INDEX(Ranks!$1:$1048576,$A317,DQ$1))","v":""},{"$f":"IF($A317=\"N/A\",Ref!$B$36,INDEX(Ranks!$1:$1048576,$A317,DR$1))","v":""},{"$f":"IF($A317=\"N/A\",Ref!$B$36,INDEX(Ranks!$1:$1048576,$A317,DS$1))","v":""},{"$f":"IF($A317=\"N/A\",Ref!$B$36,INDEX(Ranks!$1:$1048576,$A317,DT$1))","v":""},{"$f":"IF($A317=\"N/A\",Ref!$B$36,INDEX(Ranks!$1:$1048576,$A317,DU$1))","v":""},{"$f":"IF($A317=\"N/A\",Ref!$B$36,INDEX(Ranks!$1:$1048576,$A317,DV$1))","v":""},{"$f":"IF($A317=\"N/A\",Ref!$B$36,INDEX(Ranks!$1:$1048576,$A317,DW$1))","v":""},{"$f":"IF($A317=\"N/A\",Ref!$B$36,INDEX(Ranks!$1:$1048576,$A317,DX$1))","v":""},{"$f":"IF($A317=\"N/A\",Ref!$B$36,INDEX(Ranks!$1:$1048576,$A317,DY$1))","v":""},{"$f":"IF($A317=\"N/A\",Ref!$B$36,INDEX(Ranks!$1:$1048576,$A317,DZ$1))","v":""},{"$f":"IF($A317=\"N/A\",Ref!$B$36,INDEX(Ranks!$1:$1048576,$A317,EA$1))","v":""},{"$f":"IF($A317=\"N/A\",Ref!$B$36,INDEX(Ranks!$1:$1048576,$A317,EB$1))","v":""}]
[{"$f":"IFERROR(MATCH('Portfolio Page'!L318,Ranks!L:L,0),\"N/A\")","v":"N/A"},null,{"$f":"IF($A318=\"N/A\",\"\",INDEX(Ranks!$1:$1048576,$A318,C$1))","v":""},{"$f":"IF($A318=\"N/A\",Ref!$B$36,INDEX(Ranks!$1:$1048576,$A318,D$1))","v":""},{"$f":"IF($A318=\"N/A\",Ref!$B$36,INDEX(Ranks!$1:$1048576,$A318,E$1))","v":""},{"$f":"IF($A318=\"N/A\",\"\",INDEX(Ranks!$1:$1048576,$A318,F$1))","v":""},{"$f":"IF($A318=\"N/A\",\"\",INDEX(Ranks!$1:$1048576,$A318,G$1))","v":""},{"$f":"IF($A318=\"N/A\",\"\",INDEX(Ranks!$1:$1048576,$A318,H$1))","v":""},{"$f":"IF($A318=\"N/A\",\"\",INDEX(Ranks!$1:$1048576,$A318,I$1))","v":""},{"$f":"IF($A318=\"N/A\",\"\",INDEX(Ranks!$1:$1048576,$A318,J$1))","v":""},{"$f":"IF($A318=\"N/A\",\"\",INDEX(Ranks!$1:$1048576,$A318,K$1))","v":""},null,{"$f":"IF($A318=\"N/A\",Ref!$B$36,INDEX(Ranks!$1:$1048576,$A318,M$1))","v":""},{"$f":"IF($A318=\"N/A\",Ref!$B$36,INDEX(Ranks!$1:$1048576,$A318,N$1))","v":""},{"$f":"IF($A318=\"N/A\",Ref!$B$36,INDEX(Ranks!$1:$1048576,$A318,O$1))","v":""},{"$f":"IF($A318=\"N/A\",Ref!$B$36,INDEX(Ranks!$1:$1048576,$A318,P$1))","v":""},{"$f":"IF($A318=\"N/A\",Ref!$B$36,INDEX(Ranks!$1:$1048576,$A318,Q$1))","v":""},{"$f":"IF($A318=\"N/A\",Ref!$B$36,INDEX(Ranks!$1:$1048576,$A318,R$1))","v":""},{"$f":"IF($A318=\"N/A\",Ref!$B$36,INDEX(Ranks!$1:$1048576,$A318,S$1))","v":""},{"$f":"IF($A318=\"N/A\",Ref!$B$36,INDEX(Ranks!$1:$1048576,$A318,T$1))","v":""},{"$f":"IF($A318=\"N/A\",Ref!$B$36,INDEX(Ranks!$1:$1048576,$A318,U$1))","v":""},{"$f":"IF($A318=\"N/A\",Ref!$B$36,INDEX(Ranks!$1:$1048576,$A318,V$1))","v":""},{"$f":"IF($A318=\"N/A\",Ref!$B$36,INDEX(Ranks!$1:$1048576,$A318,W$1))","v":""},{"$f":"IF($A318=\"N/A\",Ref!$B$36,INDEX(Ranks!$1:$1048576,$A318,X$1))","v":""},{"$f":"IF($A318=\"N/A\",Ref!$B$36,INDEX(Ranks!$1:$1048576,$A318,Y$1))","v":""},{"$f":"IF($A318=\"N/A\",Ref!$B$36,INDEX(Ranks!$1:$1048576,$A318,Z$1))","v":""},{"$f":"IF($A318=\"N/A\",Ref!$B$36,INDEX(Ranks!$1:$1048576,$A318,AA$1))","v":""},{"$f":"IF($A318=\"N/A\",Ref!$B$36,INDEX(Ranks!$1:$1048576,$A318,AB$1))","v":""},{"$f":"IF($A318=\"N/A\",Ref!$B$36,INDEX(Ranks!$1:$1048576,$A318,AC$1))","v":""},{"$f":"IF($A318=\"N/A\",Ref!$B$36,INDEX(Ranks!$1:$1048576,$A318,AD$1))","v":""},{"$f":"IF($A318=\"N/A\",Ref!$B$36,INDEX(Ranks!$1:$1048576,$A318,AE$1))","v":""},{"$f":"IF($A318=\"N/A\",Ref!$B$36,INDEX(Ranks!$1:$1048576,$A318,AF$1))","v":""},{"$f":"IF($A318=\"N/A\",Ref!$B$36,INDEX(Ranks!$1:$1048576,$A318,AG$1))","v":""},{"$f":"IF($A318=\"N/A\",Ref!$B$36,INDEX(Ranks!$1:$1048576,$A318,AH$1))","v":""},{"$f":"IF($A318=\"N/A\",Ref!$B$36,INDEX(Ranks!$1:$1048576,$A318,AI$1))","v":""},{"$f":"IF($A318=\"N/A\",Ref!$B$36,INDEX(Ranks!$1:$1048576,$A318,AJ$1))","v":""},{"$f":"IF($A318=\"N/A\",Ref!$B$36,INDEX(Ranks!$1:$1048576,$A318,AK$1))","v":""},{"$f":"IF($A318=\"N/A\",Ref!$B$36,INDEX(Ranks!$1:$1048576,$A318,AL$1))","v":""},{"$f":"IF($A318=\"N/A\",Ref!$B$36,INDEX(Ranks!$1:$1048576,$A318,AM$1))","v":""},{"$f":"IF($A318=\"N/A\",Ref!$B$36,INDEX(Ranks!$1:$1048576,$A318,AN$1))","v":""},{"$f":"IF($A318=\"N/A\",Ref!$B$36,INDEX(Ranks!$1:$1048576,$A318,AO$1))","v":""},{"$f":"IF($A318=\"N/A\",Ref!$B$36,INDEX(Ranks!$1:$1048576,$A318,AP$1))","v":""},{"$f":"IF($A318=\"N/A\",Ref!$B$36,INDEX(Ranks!$1:$1048576,$A318,AQ$1))","v":""},{"$f":"IF($A318=\"N/A\",Ref!$B$36,INDEX(Ranks!$1:$1048576,$A318,AR$1))","v":""},{"$f":"IF($A318=\"N/A\",Ref!$B$36,INDEX(Ranks!$1:$1048576,$A318,AS$1))","v":""},{"$f":"IF($A318=\"N/A\",Ref!$B$36,INDEX(Ranks!$1:$1048576,$A318,AT$1))","v":""},{"$f":"IF($A318=\"N/A\",Ref!$B$36,INDEX(Ranks!$1:$1048576,$A318,AU$1))","v":""},{"$f":"IF($A318=\"N/A\",Ref!$B$36,INDEX(Ranks!$1:$1048576,$A318,AV$1))","v":""},{"$f":"IF($A318=\"N/A\",Ref!$B$36,INDEX(Ranks!$1:$1048576,$A318,AW$1))","v":""},{"$f":"IF($A318=\"N/A\",Ref!$B$36,INDEX(Ranks!$1:$1048576,$A318,AX$1))","v":""},{"$f":"IF($A318=\"N/A\",Ref!$B$36,INDEX(Ranks!$1:$1048576,$A318,AY$1))","v":""},{"$f":"IF($A318=\"N/A\",Ref!$B$36,INDEX(Ranks!$1:$1048576,$A318,AZ$1))","v":""},{"$f":"IF($A318=\"N/A\",Ref!$B$36,INDEX(Ranks!$1:$1048576,$A318,BA$1))","v":""},{"$f":"IF($A318=\"N/A\",Ref!$B$36,INDEX(Ranks!$1:$1048576,$A318,BB$1))","v":""},{"$f":"IF($A318=\"N/A\",Ref!$B$36,INDEX(Ranks!$1:$1048576,$A318,BC$1))","v":""},{"$f":"IF($A318=\"N/A\",Ref!$B$36,INDEX(Ranks!$1:$1048576,$A318,BD$1))","v":""},{"$f":"IF($A318=\"N/A\",Ref!$B$36,INDEX(Ranks!$1:$1048576,$A318,BE$1))","v":""},{"$f":"IF($A318=\"N/A\",Ref!$B$36,INDEX(Ranks!$1:$1048576,$A318,BF$1))","v":""},{"$f":"IF($A318=\"N/A\",Ref!$B$36,INDEX(Ranks!$1:$1048576,$A318,BG$1))","v":""},{"$f":"IF($A318=\"N/A\",Ref!$B$36,INDEX(Ranks!$1:$1048576,$A318,BH$1))","v":""},{"$f":"IF($A318=\"N/A\",Ref!$B$36,INDEX(Ranks!$1:$1048576,$A318,BI$1))","v":""},{"$f":"IF($A318=\"N/A\",Ref!$B$36,INDEX(Ranks!$1:$1048576,$A318,BJ$1))","v":""},{"$f":"IF($A318=\"N/A\",Ref!$B$36,INDEX(Ranks!$1:$1048576,$A318,BK$1))","v":""},{"$f":"IF($A318=\"N/A\",Ref!$B$36,INDEX(Ranks!$1:$1048576,$A318,BL$1))","v":""},{"$f":"IF($A318=\"N/A\",Ref!$B$36,INDEX(Ranks!$1:$1048576,$A318,BM$1))","v":""},{"$f":"IF($A318=\"N/A\",Ref!$B$36,INDEX(Ranks!$1:$1048576,$A318,BN$1))","v":""},{"$f":"IF($A318=\"N/A\",Ref!$B$36,INDEX(Ranks!$1:$1048576,$A318,BO$1))","v":""},{"$f":"IF($A318=\"N/A\",Ref!$B$36,INDEX(Ranks!$1:$1048576,$A318,BP$1))","v":""},{"$f":"IF($A318=\"N/A\",Ref!$B$36,INDEX(Ranks!$1:$1048576,$A318,BQ$1))","v":""},{"$f":"IF($A318=\"N/A\",Ref!$B$36,INDEX(Ranks!$1:$1048576,$A318,BR$1))","v":""},{"$f":"IF($A318=\"N/A\",Ref!$B$36,INDEX(Ranks!$1:$1048576,$A318,BS$1))","v":""},{"$f":"IF($A318=\"N/A\",Ref!$B$36,INDEX(Ranks!$1:$1048576,$A318,BT$1))","v":""},{"$f":"IF($A318=\"N/A\",Ref!$B$36,INDEX(Ranks!$1:$1048576,$A318,BU$1))","v":""},{"$f":"IF($A318=\"N/A\",Ref!$B$36,INDEX(Ranks!$1:$1048576,$A318,BV$1))","v":""},{"$f":"IF($A318=\"N/A\",Ref!$B$36,INDEX(Ranks!$1:$1048576,$A318,BW$1))","v":""},{"$f":"IF($A318=\"N/A\",Ref!$B$36,INDEX(Ranks!$1:$1048576,$A318,BX$1))","v":""},{"$f":"IF($A318=\"N/A\",Ref!$B$36,INDEX(Ranks!$1:$1048576,$A318,BY$1))","v":""},{"$f":"IF($A318=\"N/A\",Ref!$B$36,INDEX(Ranks!$1:$1048576,$A318,BZ$1))","v":""},{"$f":"IF($A318=\"N/A\",Ref!$B$36,INDEX(Ranks!$1:$1048576,$A318,CA$1))","v":""},{"$f":"IF($A318=\"N/A\",Ref!$B$36,INDEX(Ranks!$1:$1048576,$A318,CB$1))","v":""},{"$f":"IF($A318=\"N/A\",Ref!$B$36,INDEX(Ranks!$1:$1048576,$A318,CC$1))","v":""},{"$f":"IF($A318=\"N/A\",Ref!$B$36,INDEX(Ranks!$1:$1048576,$A318,CD$1))","v":""},{"$f":"IF($A318=\"N/A\",Ref!$B$36,INDEX(Ranks!$1:$1048576,$A318,CE$1))","v":""},{"$f":"IF($A318=\"N/A\",Ref!$B$36,INDEX(Ranks!$1:$1048576,$A318,CF$1))","v":""},{"$f":"IF($A318=\"N/A\",Ref!$B$36,INDEX(Ranks!$1:$1048576,$A318,CG$1))","v":""},{"$f":"IF($A318=\"N/A\",Ref!$B$36,INDEX(Ranks!$1:$1048576,$A318,CH$1))","v":""},{"$f":"IF($A318=\"N/A\",Ref!$B$36,INDEX(Ranks!$1:$1048576,$A318,CI$1))","v":""},{"$f":"IF($A318=\"N/A\",Ref!$B$36,INDEX(Ranks!$1:$1048576,$A318,CJ$1))","v":""},{"$f":"IF($A318=\"N/A\",Ref!$B$36,INDEX(Ranks!$1:$1048576,$A318,CK$1))","v":""},{"$f":"IF($A318=\"N/A\",Ref!$B$36,INDEX(Ranks!$1:$1048576,$A318,CL$1))","v":""},{"$f":"IF($A318=\"N/A\",Ref!$B$36,INDEX(Ranks!$1:$1048576,$A318,CM$1))","v":""},{"$f":"IF($A318=\"N/A\",Ref!$B$36,INDEX(Ranks!$1:$1048576,$A318,CN$1))","v":""},{"$f":"IF($A318=\"N/A\",Ref!$B$36,INDEX(Ranks!$1:$1048576,$A318,CO$1))","v":""},{"$f":"IF($A318=\"N/A\",Ref!$B$36,INDEX(Ranks!$1:$1048576,$A318,CP$1))","v":""},{"$f":"IF($A318=\"N/A\",Ref!$B$36,INDEX(Ranks!$1:$1048576,$A318,CQ$1))","v":""},{"$f":"IF($A318=\"N/A\",Ref!$B$36,INDEX(Ranks!$1:$1048576,$A318,CR$1))","v":""},{"$f":"IF($A318=\"N/A\",Ref!$B$36,INDEX(Ranks!$1:$1048576,$A318,CS$1))","v":""},{"$f":"IF($A318=\"N/A\",Ref!$B$36,INDEX(Ranks!$1:$1048576,$A318,CT$1))","v":""},{"$f":"IF($A318=\"N/A\",Ref!$B$36,INDEX(Ranks!$1:$1048576,$A318,CU$1))","v":""},{"$f":"IF($A318=\"N/A\",Ref!$B$36,INDEX(Ranks!$1:$1048576,$A318,CV$1))","v":""},{"$f":"IF($A318=\"N/A\",Ref!$B$36,INDEX(Ranks!$1:$1048576,$A318,CW$1))","v":""},{"$f":"IF($A318=\"N/A\",Ref!$B$36,INDEX(Ranks!$1:$1048576,$A318,CX$1))","v":""},{"$f":"IF($A318=\"N/A\",Ref!$B$36,INDEX(Ranks!$1:$1048576,$A318,CY$1))","v":""},{"$f":"IF($A318=\"N/A\",Ref!$B$36,INDEX(Ranks!$1:$1048576,$A318,CZ$1))","v":""},{"$f":"IF($A318=\"N/A\",Ref!$B$36,INDEX(Ranks!$1:$1048576,$A318,DA$1))","v":""},{"$f":"IF($A318=\"N/A\",Ref!$B$36,INDEX(Ranks!$1:$1048576,$A318,DB$1))","v":""},{"$f":"IF($A318=\"N/A\",Ref!$B$36,INDEX(Ranks!$1:$1048576,$A318,DC$1))","v":""},{"$f":"IF($A318=\"N/A\",Ref!$B$36,INDEX(Ranks!$1:$1048576,$A318,DD$1))","v":""},{"$f":"IF($A318=\"N/A\",Ref!$B$36,INDEX(Ranks!$1:$1048576,$A318,DE$1))","v":""},{"$f":"IF($A318=\"N/A\",Ref!$B$36,INDEX(Ranks!$1:$1048576,$A318,DF$1))","v":""},{"$f":"IF($A318=\"N/A\",Ref!$B$36,INDEX(Ranks!$1:$1048576,$A318,DG$1))","v":""},{"$f":"IF($A318=\"N/A\",Ref!$B$36,INDEX(Ranks!$1:$1048576,$A318,DH$1))","v":""},{"$f":"IF($A318=\"N/A\",Ref!$B$36,INDEX(Ranks!$1:$1048576,$A318,DI$1))","v":""},{"$f":"IF($A318=\"N/A\",Ref!$B$36,INDEX(Ranks!$1:$1048576,$A318,DJ$1))","v":""},{"$f":"IF($A318=\"N/A\",Ref!$B$36,INDEX(Ranks!$1:$1048576,$A318,DK$1))","v":""},{"$f":"IF($A318=\"N/A\",Ref!$B$36,INDEX(Ranks!$1:$1048576,$A318,DL$1))","v":""},{"$f":"IF($A318=\"N/A\",Ref!$B$36,INDEX(Ranks!$1:$1048576,$A318,DM$1))","v":""},{"$f":"IF($A318=\"N/A\",Ref!$B$36,INDEX(Ranks!$1:$1048576,$A318,DN$1))","v":""},{"$f":"IF($A318=\"N/A\",Ref!$B$36,INDEX(Ranks!$1:$1048576,$A318,DO$1))","v":""},{"$f":"IF($A318=\"N/A\",Ref!$B$36,INDEX(Ranks!$1:$1048576,$A318,DP$1))","v":""},{"$f":"IF($A318=\"N/A\",Ref!$B$36,INDEX(Ranks!$1:$1048576,$A318,DQ$1))","v":""},{"$f":"IF($A318=\"N/A\",Ref!$B$36,INDEX(Ranks!$1:$1048576,$A318,DR$1))","v":""},{"$f":"IF($A318=\"N/A\",Ref!$B$36,INDEX(Ranks!$1:$1048576,$A318,DS$1))","v":""},{"$f":"IF($A318=\"N/A\",Ref!$B$36,INDEX(Ranks!$1:$1048576,$A318,DT$1))","v":""},{"$f":"IF($A318=\"N/A\",Ref!$B$36,INDEX(Ranks!$1:$1048576,$A318,DU$1))","v":""},{"$f":"IF($A318=\"N/A\",Ref!$B$36,INDEX(Ranks!$1:$1048576,$A318,DV$1))","v":""},{"$f":"IF($A318=\"N/A\",Ref!$B$36,INDEX(Ranks!$1:$1048576,$A318,DW$1))","v":""},{"$f":"IF($A318=\"N/A\",Ref!$B$36,INDEX(Ranks!$1:$1048576,$A318,DX$1))","v":""},{"$f":"IF($A318=\"N/A\",Ref!$B$36,INDEX(Ranks!$1:$1048576,$A318,DY$1))","v":""},{"$f":"IF($A318=\"N/A\",Ref!$B$36,INDEX(Ranks!$1:$1048576,$A318,DZ$1))","v":""},{"$f":"IF($A318=\"N/A\",Ref!$B$36,INDEX(Ranks!$1:$1048576,$A318,EA$1))","v":""},{"$f":"IF($A318=\"N/A\",Ref!$B$36,INDEX(Ranks!$1:$1048576,$A318,EB$1))","v":""}]
[{"$f":"IFERROR(MATCH('Portfolio Page'!L319,Ranks!L:L,0),\"N/A\")","v":"N/A"},null,{"$f":"IF($A319=\"N/A\",\"\",INDEX(Ranks!$1:$1048576,$A319,C$1))","v":""},{"$f":"IF($A319=\"N/A\",Ref!$B$36,INDEX(Ranks!$1:$1048576,$A319,D$1))","v":""},{"$f":"IF($A319=\"N/A\",Ref!$B$36,INDEX(Ranks!$1:$1048576,$A319,E$1))","v":""},{"$f":"IF($A319=\"N/A\",\"\",INDEX(Ranks!$1:$1048576,$A319,F$1))","v":""},{"$f":"IF($A319=\"N/A\",\"\",INDEX(Ranks!$1:$1048576,$A319,G$1))","v":""},{"$f":"IF($A319=\"N/A\",\"\",INDEX(Ranks!$1:$1048576,$A319,H$1))","v":""},{"$f":"IF($A319=\"N/A\",\"\",INDEX(Ranks!$1:$1048576,$A319,I$1))","v":""},{"$f":"IF($A319=\"N/A\",\"\",INDEX(Ranks!$1:$1048576,$A319,J$1))","v":""},{"$f":"IF($A319=\"N/A\",\"\",INDEX(Ranks!$1:$1048576,$A319,K$1))","v":""},null,{"$f":"IF($A319=\"N/A\",Ref!$B$36,INDEX(Ranks!$1:$1048576,$A319,M$1))","v":""},{"$f":"IF($A319=\"N/A\",Ref!$B$36,INDEX(Ranks!$1:$1048576,$A319,N$1))","v":""},{"$f":"IF($A319=\"N/A\",Ref!$B$36,INDEX(Ranks!$1:$1048576,$A319,O$1))","v":""},{"$f":"IF($A319=\"N/A\",Ref!$B$36,INDEX(Ranks!$1:$1048576,$A319,P$1))","v":""},{"$f":"IF($A319=\"N/A\",Ref!$B$36,INDEX(Ranks!$1:$1048576,$A319,Q$1))","v":""},{"$f":"IF($A319=\"N/A\",Ref!$B$36,INDEX(Ranks!$1:$1048576,$A319,R$1))","v":""},{"$f":"IF($A319=\"N/A\",Ref!$B$36,INDEX(Ranks!$1:$1048576,$A319,S$1))","v":""},{"$f":"IF($A319=\"N/A\",Ref!$B$36,INDEX(Ranks!$1:$1048576,$A319,T$1))","v":""},{"$f":"IF($A319=\"N/A\",Ref!$B$36,INDEX(Ranks!$1:$1048576,$A319,U$1))","v":""},{"$f":"IF($A319=\"N/A\",Ref!$B$36,INDEX(Ranks!$1:$1048576,$A319,V$1))","v":""},{"$f":"IF($A319=\"N/A\",Ref!$B$36,INDEX(Ranks!$1:$1048576,$A319,W$1))","v":""},{"$f":"IF($A319=\"N/A\",Ref!$B$36,INDEX(Ranks!$1:$1048576,$A319,X$1))","v":""},{"$f":"IF($A319=\"N/A\",Ref!$B$36,INDEX(Ranks!$1:$1048576,$A319,Y$1))","v":""},{"$f":"IF($A319=\"N/A\",Ref!$B$36,INDEX(Ranks!$1:$1048576,$A319,Z$1))","v":""},{"$f":"IF($A319=\"N/A\",Ref!$B$36,INDEX(Ranks!$1:$1048576,$A319,AA$1))","v":""},{"$f":"IF($A319=\"N/A\",Ref!$B$36,INDEX(Ranks!$1:$1048576,$A319,AB$1))","v":""},{"$f":"IF($A319=\"N/A\",Ref!$B$36,INDEX(Ranks!$1:$1048576,$A319,AC$1))","v":""},{"$f":"IF($A319=\"N/A\",Ref!$B$36,INDEX(Ranks!$1:$1048576,$A319,AD$1))","v":""},{"$f":"IF($A319=\"N/A\",Ref!$B$36,INDEX(Ranks!$1:$1048576,$A319,AE$1))","v":""},{"$f":"IF($A319=\"N/A\",Ref!$B$36,INDEX(Ranks!$1:$1048576,$A319,AF$1))","v":""},{"$f":"IF($A319=\"N/A\",Ref!$B$36,INDEX(Ranks!$1:$1048576,$A319,AG$1))","v":""},{"$f":"IF($A319=\"N/A\",Ref!$B$36,INDEX(Ranks!$1:$1048576,$A319,AH$1))","v":""},{"$f":"IF($A319=\"N/A\",Ref!$B$36,INDEX(Ranks!$1:$1048576,$A319,AI$1))","v":""},{"$f":"IF($A319=\"N/A\",Ref!$B$36,INDEX(Ranks!$1:$1048576,$A319,AJ$1))","v":""},{"$f":"IF($A319=\"N/A\",Ref!$B$36,INDEX(Ranks!$1:$1048576,$A319,AK$1))","v":""},{"$f":"IF($A319=\"N/A\",Ref!$B$36,INDEX(Ranks!$1:$1048576,$A319,AL$1))","v":""},{"$f":"IF($A319=\"N/A\",Ref!$B$36,INDEX(Ranks!$1:$1048576,$A319,AM$1))","v":""},{"$f":"IF($A319=\"N/A\",Ref!$B$36,INDEX(Ranks!$1:$1048576,$A319,AN$1))","v":""},{"$f":"IF($A319=\"N/A\",Ref!$B$36,INDEX(Ranks!$1:$1048576,$A319,AO$1))","v":""},{"$f":"IF($A319=\"N/A\",Ref!$B$36,INDEX(Ranks!$1:$1048576,$A319,AP$1))","v":""},{"$f":"IF($A319=\"N/A\",Ref!$B$36,INDEX(Ranks!$1:$1048576,$A319,AQ$1))","v":""},{"$f":"IF($A319=\"N/A\",Ref!$B$36,INDEX(Ranks!$1:$1048576,$A319,AR$1))","v":""},{"$f":"IF($A319=\"N/A\",Ref!$B$36,INDEX(Ranks!$1:$1048576,$A319,AS$1))","v":""},{"$f":"IF($A319=\"N/A\",Ref!$B$36,INDEX(Ranks!$1:$1048576,$A319,AT$1))","v":""},{"$f":"IF($A319=\"N/A\",Ref!$B$36,INDEX(Ranks!$1:$1048576,$A319,AU$1))","v":""},{"$f":"IF($A319=\"N/A\",Ref!$B$36,INDEX(Ranks!$1:$1048576,$A319,AV$1))","v":""},{"$f":"IF($A319=\"N/A\",Ref!$B$36,INDEX(Ranks!$1:$1048576,$A319,AW$1))","v":""},{"$f":"IF($A319=\"N/A\",Ref!$B$36,INDEX(Ranks!$1:$1048576,$A319,AX$1))","v":""},{"$f":"IF($A319=\"N/A\",Ref!$B$36,INDEX(Ranks!$1:$1048576,$A319,AY$1))","v":""},{"$f":"IF($A319=\"N/A\",Ref!$B$36,INDEX(Ranks!$1:$1048576,$A319,AZ$1))","v":""},{"$f":"IF($A319=\"N/A\",Ref!$B$36,INDEX(Ranks!$1:$1048576,$A319,BA$1))","v":""},{"$f":"IF($A319=\"N/A\",Ref!$B$36,INDEX(Ranks!$1:$1048576,$A319,BB$1))","v":""},{"$f":"IF($A319=\"N/A\",Ref!$B$36,INDEX(Ranks!$1:$1048576,$A319,BC$1))","v":""},{"$f":"IF($A319=\"N/A\",Ref!$B$36,INDEX(Ranks!$1:$1048576,$A319,BD$1))","v":""},{"$f":"IF($A319=\"N/A\",Ref!$B$36,INDEX(Ranks!$1:$1048576,$A319,BE$1))","v":""},{"$f":"IF($A319=\"N/A\",Ref!$B$36,INDEX(Ranks!$1:$1048576,$A319,BF$1))","v":""},{"$f":"IF($A319=\"N/A\",Ref!$B$36,INDEX(Ranks!$1:$1048576,$A319,BG$1))","v":""},{"$f":"IF($A319=\"N/A\",Ref!$B$36,INDEX(Ranks!$1:$1048576,$A319,BH$1))","v":""},{"$f":"IF($A319=\"N/A\",Ref!$B$36,INDEX(Ranks!$1:$1048576,$A319,BI$1))","v":""},{"$f":"IF($A319=\"N/A\",Ref!$B$36,INDEX(Ranks!$1:$1048576,$A319,BJ$1))","v":""},{"$f":"IF($A319=\"N/A\",Ref!$B$36,INDEX(Ranks!$1:$1048576,$A319,BK$1))","v":""},{"$f":"IF($A319=\"N/A\",Ref!$B$36,INDEX(Ranks!$1:$1048576,$A319,BL$1))","v":""},{"$f":"IF($A319=\"N/A\",Ref!$B$36,INDEX(Ranks!$1:$1048576,$A319,BM$1))","v":""},{"$f":"IF($A319=\"N/A\",Ref!$B$36,INDEX(Ranks!$1:$1048576,$A319,BN$1))","v":""},{"$f":"IF($A319=\"N/A\",Ref!$B$36,INDEX(Ranks!$1:$1048576,$A319,BO$1))","v":""},{"$f":"IF($A319=\"N/A\",Ref!$B$36,INDEX(Ranks!$1:$1048576,$A319,BP$1))","v":""},{"$f":"IF($A319=\"N/A\",Ref!$B$36,INDEX(Ranks!$1:$1048576,$A319,BQ$1))","v":""},{"$f":"IF($A319=\"N/A\",Ref!$B$36,INDEX(Ranks!$1:$1048576,$A319,BR$1))","v":""},{"$f":"IF($A319=\"N/A\",Ref!$B$36,INDEX(Ranks!$1:$1048576,$A319,BS$1))","v":""},{"$f":"IF($A319=\"N/A\",Ref!$B$36,INDEX(Ranks!$1:$1048576,$A319,BT$1))","v":""},{"$f":"IF($A319=\"N/A\",Ref!$B$36,INDEX(Ranks!$1:$1048576,$A319,BU$1))","v":""},{"$f":"IF($A319=\"N/A\",Ref!$B$36,INDEX(Ranks!$1:$1048576,$A319,BV$1))","v":""},{"$f":"IF($A319=\"N/A\",Ref!$B$36,INDEX(Ranks!$1:$1048576,$A319,BW$1))","v":""},{"$f":"IF($A319=\"N/A\",Ref!$B$36,INDEX(Ranks!$1:$1048576,$A319,BX$1))","v":""},{"$f":"IF($A319=\"N/A\",Ref!$B$36,INDEX(Ranks!$1:$1048576,$A319,BY$1))","v":""},{"$f":"IF($A319=\"N/A\",Ref!$B$36,INDEX(Ranks!$1:$1048576,$A319,BZ$1))","v":""},{"$f":"IF($A319=\"N/A\",Ref!$B$36,INDEX(Ranks!$1:$1048576,$A319,CA$1))","v":""},{"$f":"IF($A319=\"N/A\",Ref!$B$36,INDEX(Ranks!$1:$1048576,$A319,CB$1))","v":""},{"$f":"IF($A319=\"N/A\",Ref!$B$36,INDEX(Ranks!$1:$1048576,$A319,CC$1))","v":""},{"$f":"IF($A319=\"N/A\",Ref!$B$36,INDEX(Ranks!$1:$1048576,$A319,CD$1))","v":""},{"$f":"IF($A319=\"N/A\",Ref!$B$36,INDEX(Ranks!$1:$1048576,$A319,CE$1))","v":""},{"$f":"IF($A319=\"N/A\",Ref!$B$36,INDEX(Ranks!$1:$1048576,$A319,CF$1))","v":""},{"$f":"IF($A319=\"N/A\",Ref!$B$36,INDEX(Ranks!$1:$1048576,$A319,CG$1))","v":""},{"$f":"IF($A319=\"N/A\",Ref!$B$36,INDEX(Ranks!$1:$1048576,$A319,CH$1))","v":""},{"$f":"IF($A319=\"N/A\",Ref!$B$36,INDEX(Ranks!$1:$1048576,$A319,CI$1))","v":""},{"$f":"IF($A319=\"N/A\",Ref!$B$36,INDEX(Ranks!$1:$1048576,$A319,CJ$1))","v":""},{"$f":"IF($A319=\"N/A\",Ref!$B$36,INDEX(Ranks!$1:$1048576,$A319,CK$1))","v":""},{"$f":"IF($A319=\"N/A\",Ref!$B$36,INDEX(Ranks!$1:$1048576,$A319,CL$1))","v":""},{"$f":"IF($A319=\"N/A\",Ref!$B$36,INDEX(Ranks!$1:$1048576,$A319,CM$1))","v":""},{"$f":"IF($A319=\"N/A\",Ref!$B$36,INDEX(Ranks!$1:$1048576,$A319,CN$1))","v":""},{"$f":"IF($A319=\"N/A\",Ref!$B$36,INDEX(Ranks!$1:$1048576,$A319,CO$1))","v":""},{"$f":"IF($A319=\"N/A\",Ref!$B$36,INDEX(Ranks!$1:$1048576,$A319,CP$1))","v":""},{"$f":"IF($A319=\"N/A\",Ref!$B$36,INDEX(Ranks!$1:$1048576,$A319,CQ$1))","v":""},{"$f":"IF($A319=\"N/A\",Ref!$B$36,INDEX(Ranks!$1:$1048576,$A319,CR$1))","v":""},{"$f":"IF($A319=\"N/A\",Ref!$B$36,INDEX(Ranks!$1:$1048576,$A319,CS$1))","v":""},{"$f":"IF($A319=\"N/A\",Ref!$B$36,INDEX(Ranks!$1:$1048576,$A319,CT$1))","v":""},{"$f":"IF($A319=\"N/A\",Ref!$B$36,INDEX(Ranks!$1:$1048576,$A319,CU$1))","v":""},{"$f":"IF($A319=\"N/A\",Ref!$B$36,INDEX(Ranks!$1:$1048576,$A319,CV$1))","v":""},{"$f":"IF($A319=\"N/A\",Ref!$B$36,INDEX(Ranks!$1:$1048576,$A319,CW$1))","v":""},{"$f":"IF($A319=\"N/A\",Ref!$B$36,INDEX(Ranks!$1:$1048576,$A319,CX$1))","v":""},{"$f":"IF($A319=\"N/A\",Ref!$B$36,INDEX(Ranks!$1:$1048576,$A319,CY$1))","v":""},{"$f":"IF($A319=\"N/A\",Ref!$B$36,INDEX(Ranks!$1:$1048576,$A319,CZ$1))","v":""},{"$f":"IF($A319=\"N/A\",Ref!$B$36,INDEX(Ranks!$1:$1048576,$A319,DA$1))","v":""},{"$f":"IF($A319=\"N/A\",Ref!$B$36,INDEX(Ranks!$1:$1048576,$A319,DB$1))","v":""},{"$f":"IF($A319=\"N/A\",Ref!$B$36,INDEX(Ranks!$1:$1048576,$A319,DC$1))","v":""},{"$f":"IF($A319=\"N/A\",Ref!$B$36,INDEX(Ranks!$1:$1048576,$A319,DD$1))","v":""},{"$f":"IF($A319=\"N/A\",Ref!$B$36,INDEX(Ranks!$1:$1048576,$A319,DE$1))","v":""},{"$f":"IF($A319=\"N/A\",Ref!$B$36,INDEX(Ranks!$1:$1048576,$A319,DF$1))","v":""},{"$f":"IF($A319=\"N/A\",Ref!$B$36,INDEX(Ranks!$1:$1048576,$A319,DG$1))","v":""},{"$f":"IF($A319=\"N/A\",Ref!$B$36,INDEX(Ranks!$1:$1048576,$A319,DH$1))","v":""},{"$f":"IF($A319=\"N/A\",Ref!$B$36,INDEX(Ranks!$1:$1048576,$A319,DI$1))","v":""},{"$f":"IF($A319=\"N/A\",Ref!$B$36,INDEX(Ranks!$1:$1048576,$A319,DJ$1))","v":""},{"$f":"IF($A319=\"N/A\",Ref!$B$36,INDEX(Ranks!$1:$1048576,$A319,DK$1))","v":""},{"$f":"IF($A319=\"N/A\",Ref!$B$36,INDEX(Ranks!$1:$1048576,$A319,DL$1))","v":""},{"$f":"IF($A319=\"N/A\",Ref!$B$36,INDEX(Ranks!$1:$1048576,$A319,DM$1))","v":""},{"$f":"IF($A319=\"N/A\",Ref!$B$36,INDEX(Ranks!$1:$1048576,$A319,DN$1))","v":""},{"$f":"IF($A319=\"N/A\",Ref!$B$36,INDEX(Ranks!$1:$1048576,$A319,DO$1))","v":""},{"$f":"IF($A319=\"N/A\",Ref!$B$36,INDEX(Ranks!$1:$1048576,$A319,DP$1))","v":""},{"$f":"IF($A319=\"N/A\",Ref!$B$36,INDEX(Ranks!$1:$1048576,$A319,DQ$1))","v":""},{"$f":"IF($A319=\"N/A\",Ref!$B$36,INDEX(Ranks!$1:$1048576,$A319,DR$1))","v":""},{"$f":"IF($A319=\"N/A\",Ref!$B$36,INDEX(Ranks!$1:$1048576,$A319,DS$1))","v":""},{"$f":"IF($A319=\"N/A\",Ref!$B$36,INDEX(Ranks!$1:$1048576,$A319,DT$1))","v":""},{"$f":"IF($A319=\"N/A\",Ref!$B$36,INDEX(Ranks!$1:$1048576,$A319,DU$1))","v":""},{"$f":"IF($A319=\"N/A\",Ref!$B$36,INDEX(Ranks!$1:$1048576,$A319,DV$1))","v":""},{"$f":"IF($A319=\"N/A\",Ref!$B$36,INDEX(Ranks!$1:$1048576,$A319,DW$1))","v":""},{"$f":"IF($A319=\"N/A\",Ref!$B$36,INDEX(Ranks!$1:$1048576,$A319,DX$1))","v":""},{"$f":"IF($A319=\"N/A\",Ref!$B$36,INDEX(Ranks!$1:$1048576,$A319,DY$1))","v":""},{"$f":"IF($A319=\"N/A\",Ref!$B$36,INDEX(Ranks!$1:$1048576,$A319,DZ$1))","v":""},{"$f":"IF($A319=\"N/A\",Ref!$B$36,INDEX(Ranks!$1:$1048576,$A319,EA$1))","v":""},{"$f":"IF($A319=\"N/A\",Ref!$B$36,INDEX(Ranks!$1:$1048576,$A319,EB$1))","v":""}]
[{"$f":"IFERROR(MATCH('Portfolio Page'!L320,Ranks!L:L,0),\"N/A\")","v":"N/A"},null,{"$f":"IF($A320=\"N/A\",\"\",INDEX(Ranks!$1:$1048576,$A320,C$1))","v":""},{"$f":"IF($A320=\"N/A\",Ref!$B$36,INDEX(Ranks!$1:$1048576,$A320,D$1))","v":""},{"$f":"IF($A320=\"N/A\",Ref!$B$36,INDEX(Ranks!$1:$1048576,$A320,E$1))","v":""},{"$f":"IF($A320=\"N/A\",\"\",INDEX(Ranks!$1:$1048576,$A320,F$1))","v":""},{"$f":"IF($A320=\"N/A\",\"\",INDEX(Ranks!$1:$1048576,$A320,G$1))","v":""},{"$f":"IF($A320=\"N/A\",\"\",INDEX(Ranks!$1:$1048576,$A320,H$1))","v":""},{"$f":"IF($A320=\"N/A\",\"\",INDEX(Ranks!$1:$1048576,$A320,I$1))","v":""},{"$f":"IF($A320=\"N/A\",\"\",INDEX(Ranks!$1:$1048576,$A320,J$1))","v":""},{"$f":"IF($A320=\"N/A\",\"\",INDEX(Ranks!$1:$1048576,$A320,K$1))","v":""},null,{"$f":"IF($A320=\"N/A\",Ref!$B$36,INDEX(Ranks!$1:$1048576,$A320,M$1))","v":""},{"$f":"IF($A320=\"N/A\",Ref!$B$36,INDEX(Ranks!$1:$1048576,$A320,N$1))","v":""},{"$f":"IF($A320=\"N/A\",Ref!$B$36,INDEX(Ranks!$1:$1048576,$A320,O$1))","v":""},{"$f":"IF($A320=\"N/A\",Ref!$B$36,INDEX(Ranks!$1:$1048576,$A320,P$1))","v":""},{"$f":"IF($A320=\"N/A\",Ref!$B$36,INDEX(Ranks!$1:$1048576,$A320,Q$1))","v":""},{"$f":"IF($A320=\"N/A\",Ref!$B$36,INDEX(Ranks!$1:$1048576,$A320,R$1))","v":""},{"$f":"IF($A320=\"N/A\",Ref!$B$36,INDEX(Ranks!$1:$1048576,$A320,S$1))","v":""},{"$f":"IF($A320=\"N/A\",Ref!$B$36,INDEX(Ranks!$1:$1048576,$A320,T$1))","v":""},{"$f":"IF($A320=\"N/A\",Ref!$B$36,INDEX(Ranks!$1:$1048576,$A320,U$1))","v":""},{"$f":"IF($A320=\"N/A\",Ref!$B$36,INDEX(Ranks!$1:$1048576,$A320,V$1))","v":""},{"$f":"IF($A320=\"N/A\",Ref!$B$36,INDEX(Ranks!$1:$1048576,$A320,W$1))","v":""},{"$f":"IF($A320=\"N/A\",Ref!$B$36,INDEX(Ranks!$1:$1048576,$A320,X$1))","v":""},{"$f":"IF($A320=\"N/A\",Ref!$B$36,INDEX(Ranks!$1:$1048576,$A320,Y$1))","v":""},{"$f":"IF($A320=\"N/A\",Ref!$B$36,INDEX(Ranks!$1:$1048576,$A320,Z$1))","v":""},{"$f":"IF($A320=\"N/A\",Ref!$B$36,INDEX(Ranks!$1:$1048576,$A320,AA$1))","v":""},{"$f":"IF($A320=\"N/A\",Ref!$B$36,INDEX(Ranks!$1:$1048576,$A320,AB$1))","v":""},{"$f":"IF($A320=\"N/A\",Ref!$B$36,INDEX(Ranks!$1:$1048576,$A320,AC$1))","v":""},{"$f":"IF($A320=\"N/A\",Ref!$B$36,INDEX(Ranks!$1:$1048576,$A320,AD$1))","v":""},{"$f":"IF($A320=\"N/A\",Ref!$B$36,INDEX(Ranks!$1:$1048576,$A320,AE$1))","v":""},{"$f":"IF($A320=\"N/A\",Ref!$B$36,INDEX(Ranks!$1:$1048576,$A320,AF$1))","v":""},{"$f":"IF($A320=\"N/A\",Ref!$B$36,INDEX(Ranks!$1:$1048576,$A320,AG$1))","v":""},{"$f":"IF($A320=\"N/A\",Ref!$B$36,INDEX(Ranks!$1:$1048576,$A320,AH$1))","v":""},{"$f":"IF($A320=\"N/A\",Ref!$B$36,INDEX(Ranks!$1:$1048576,$A320,AI$1))","v":""},{"$f":"IF($A320=\"N/A\",Ref!$B$36,INDEX(Ranks!$1:$1048576,$A320,AJ$1))","v":""},{"$f":"IF($A320=\"N/A\",Ref!$B$36,INDEX(Ranks!$1:$1048576,$A320,AK$1))","v":""},{"$f":"IF($A320=\"N/A\",Ref!$B$36,INDEX(Ranks!$1:$1048576,$A320,AL$1))","v":""},{"$f":"IF($A320=\"N/A\",Ref!$B$36,INDEX(Ranks!$1:$1048576,$A320,AM$1))","v":""},{"$f":"IF($A320=\"N/A\",Ref!$B$36,INDEX(Ranks!$1:$1048576,$A320,AN$1))","v":""},{"$f":"IF($A320=\"N/A\",Ref!$B$36,INDEX(Ranks!$1:$1048576,$A320,AO$1))","v":""},{"$f":"IF($A320=\"N/A\",Ref!$B$36,INDEX(Ranks!$1:$1048576,$A320,AP$1))","v":""},{"$f":"IF($A320=\"N/A\",Ref!$B$36,INDEX(Ranks!$1:$1048576,$A320,AQ$1))","v":""},{"$f":"IF($A320=\"N/A\",Ref!$B$36,INDEX(Ranks!$1:$1048576,$A320,AR$1))","v":""},{"$f":"IF($A320=\"N/A\",Ref!$B$36,INDEX(Ranks!$1:$1048576,$A320,AS$1))","v":""},{"$f":"IF($A320=\"N/A\",Ref!$B$36,INDEX(Ranks!$1:$1048576,$A320,AT$1))","v":""},{"$f":"IF($A320=\"N/A\",Ref!$B$36,INDEX(Ranks!$1:$1048576,$A320,AU$1))","v":""},{"$f":"IF($A320=\"N/A\",Ref!$B$36,INDEX(Ranks!$1:$1048576,$A320,AV$1))","v":""},{"$f":"IF($A320=\"N/A\",Ref!$B$36,INDEX(Ranks!$1:$1048576,$A320,AW$1))","v":""},{"$f":"IF($A320=\"N/A\",Ref!$B$36,INDEX(Ranks!$1:$1048576,$A320,AX$1))","v":""},{"$f":"IF($A320=\"N/A\",Ref!$B$36,INDEX(Ranks!$1:$1048576,$A320,AY$1))","v":""},{"$f":"IF($A320=\"N/A\",Ref!$B$36,INDEX(Ranks!$1:$1048576,$A320,AZ$1))","v":""},{"$f":"IF($A320=\"N/A\",Ref!$B$36,INDEX(Ranks!$1:$1048576,$A320,BA$1))","v":""},{"$f":"IF($A320=\"N/A\",Ref!$B$36,INDEX(Ranks!$1:$1048576,$A320,BB$1))","v":""},{"$f":"IF($A320=\"N/A\",Ref!$B$36,INDEX(Ranks!$1:$1048576,$A320,BC$1))","v":""},{"$f":"IF($A320=\"N/A\",Ref!$B$36,INDEX(Ranks!$1:$1048576,$A320,BD$1))","v":""},{"$f":"IF($A320=\"N/A\",Ref!$B$36,INDEX(Ranks!$1:$1048576,$A320,BE$1))","v":""},{"$f":"IF($A320=\"N/A\",Ref!$B$36,INDEX(Ranks!$1:$1048576,$A320,BF$1))","v":""},{"$f":"IF($A320=\"N/A\",Ref!$B$36,INDEX(Ranks!$1:$1048576,$A320,BG$1))","v":""},{"$f":"IF($A320=\"N/A\",Ref!$B$36,INDEX(Ranks!$1:$1048576,$A320,BH$1))","v":""},{"$f":"IF($A320=\"N/A\",Ref!$B$36,INDEX(Ranks!$1:$1048576,$A320,BI$1))","v":""},{"$f":"IF($A320=\"N/A\",Ref!$B$36,INDEX(Ranks!$1:$1048576,$A320,BJ$1))","v":""},{"$f":"IF($A320=\"N/A\",Ref!$B$36,INDEX(Ranks!$1:$1048576,$A320,BK$1))","v":""},{"$f":"IF($A320=\"N/A\",Ref!$B$36,INDEX(Ranks!$1:$1048576,$A320,BL$1))","v":""},{"$f":"IF($A320=\"N/A\",Ref!$B$36,INDEX(Ranks!$1:$1048576,$A320,BM$1))","v":""},{"$f":"IF($A320=\"N/A\",Ref!$B$36,INDEX(Ranks!$1:$1048576,$A320,BN$1))","v":""},{"$f":"IF($A320=\"N/A\",Ref!$B$36,INDEX(Ranks!$1:$1048576,$A320,BO$1))","v":""},{"$f":"IF($A320=\"N/A\",Ref!$B$36,INDEX(Ranks!$1:$1048576,$A320,BP$1))","v":""},{"$f":"IF($A320=\"N/A\",Ref!$B$36,INDEX(Ranks!$1:$1048576,$A320,BQ$1))","v":""},{"$f":"IF($A320=\"N/A\",Ref!$B$36,INDEX(Ranks!$1:$1048576,$A320,BR$1))","v":""},{"$f":"IF($A320=\"N/A\",Ref!$B$36,INDEX(Ranks!$1:$1048576,$A320,BS$1))","v":""},{"$f":"IF($A320=\"N/A\",Ref!$B$36,INDEX(Ranks!$1:$1048576,$A320,BT$1))","v":""},{"$f":"IF($A320=\"N/A\",Ref!$B$36,INDEX(Ranks!$1:$1048576,$A320,BU$1))","v":""},{"$f":"IF($A320=\"N/A\",Ref!$B$36,INDEX(Ranks!$1:$1048576,$A320,BV$1))","v":""},{"$f":"IF($A320=\"N/A\",Ref!$B$36,INDEX(Ranks!$1:$1048576,$A320,BW$1))","v":""},{"$f":"IF($A320=\"N/A\",Ref!$B$36,INDEX(Ranks!$1:$1048576,$A320,BX$1))","v":""},{"$f":"IF($A320=\"N/A\",Ref!$B$36,INDEX(Ranks!$1:$1048576,$A320,BY$1))","v":""},{"$f":"IF($A320=\"N/A\",Ref!$B$36,INDEX(Ranks!$1:$1048576,$A320,BZ$1))","v":""},{"$f":"IF($A320=\"N/A\",Ref!$B$36,INDEX(Ranks!$1:$1048576,$A320,CA$1))","v":""},{"$f":"IF($A320=\"N/A\",Ref!$B$36,INDEX(Ranks!$1:$1048576,$A320,CB$1))","v":""},{"$f":"IF($A320=\"N/A\",Ref!$B$36,INDEX(Ranks!$1:$1048576,$A320,CC$1))","v":""},{"$f":"IF($A320=\"N/A\",Ref!$B$36,INDEX(Ranks!$1:$1048576,$A320,CD$1))","v":""},{"$f":"IF($A320=\"N/A\",Ref!$B$36,INDEX(Ranks!$1:$1048576,$A320,CE$1))","v":""},{"$f":"IF($A320=\"N/A\",Ref!$B$36,INDEX(Ranks!$1:$1048576,$A320,CF$1))","v":""},{"$f":"IF($A320=\"N/A\",Ref!$B$36,INDEX(Ranks!$1:$1048576,$A320,CG$1))","v":""},{"$f":"IF($A320=\"N/A\",Ref!$B$36,INDEX(Ranks!$1:$1048576,$A320,CH$1))","v":""},{"$f":"IF($A320=\"N/A\",Ref!$B$36,INDEX(Ranks!$1:$1048576,$A320,CI$1))","v":""},{"$f":"IF($A320=\"N/A\",Ref!$B$36,INDEX(Ranks!$1:$1048576,$A320,CJ$1))","v":""},{"$f":"IF($A320=\"N/A\",Ref!$B$36,INDEX(Ranks!$1:$1048576,$A320,CK$1))","v":""},{"$f":"IF($A320=\"N/A\",Ref!$B$36,INDEX(Ranks!$1:$1048576,$A320,CL$1))","v":""},{"$f":"IF($A320=\"N/A\",Ref!$B$36,INDEX(Ranks!$1:$1048576,$A320,CM$1))","v":""},{"$f":"IF($A320=\"N/A\",Ref!$B$36,INDEX(Ranks!$1:$1048576,$A320,CN$1))","v":""},{"$f":"IF($A320=\"N/A\",Ref!$B$36,INDEX(Ranks!$1:$1048576,$A320,CO$1))","v":""},{"$f":"IF($A320=\"N/A\",Ref!$B$36,INDEX(Ranks!$1:$1048576,$A320,CP$1))","v":""},{"$f":"IF($A320=\"N/A\",Ref!$B$36,INDEX(Ranks!$1:$1048576,$A320,CQ$1))","v":""},{"$f":"IF($A320=\"N/A\",Ref!$B$36,INDEX(Ranks!$1:$1048576,$A320,CR$1))","v":""},{"$f":"IF($A320=\"N/A\",Ref!$B$36,INDEX(Ranks!$1:$1048576,$A320,CS$1))","v":""},{"$f":"IF($A320=\"N/A\",Ref!$B$36,INDEX(Ranks!$1:$1048576,$A320,CT$1))","v":""},{"$f":"IF($A320=\"N/A\",Ref!$B$36,INDEX(Ranks!$1:$1048576,$A320,CU$1))","v":""},{"$f":"IF($A320=\"N/A\",Ref!$B$36,INDEX(Ranks!$1:$1048576,$A320,CV$1))","v":""},{"$f":"IF($A320=\"N/A\",Ref!$B$36,INDEX(Ranks!$1:$1048576,$A320,CW$1))","v":""},{"$f":"IF($A320=\"N/A\",Ref!$B$36,INDEX(Ranks!$1:$1048576,$A320,CX$1))","v":""},{"$f":"IF($A320=\"N/A\",Ref!$B$36,INDEX(Ranks!$1:$1048576,$A320,CY$1))","v":""},{"$f":"IF($A320=\"N/A\",Ref!$B$36,INDEX(Ranks!$1:$1048576,$A320,CZ$1))","v":""},{"$f":"IF($A320=\"N/A\",Ref!$B$36,INDEX(Ranks!$1:$1048576,$A320,DA$1))","v":""},{"$f":"IF($A320=\"N/A\",Ref!$B$36,INDEX(Ranks!$1:$1048576,$A320,DB$1))","v":""},{"$f":"IF($A320=\"N/A\",Ref!$B$36,INDEX(Ranks!$1:$1048576,$A320,DC$1))","v":""},{"$f":"IF($A320=\"N/A\",Ref!$B$36,INDEX(Ranks!$1:$1048576,$A320,DD$1))","v":""},{"$f":"IF($A320=\"N/A\",Ref!$B$36,INDEX(Ranks!$1:$1048576,$A320,DE$1))","v":""},{"$f":"IF($A320=\"N/A\",Ref!$B$36,INDEX(Ranks!$1:$1048576,$A320,DF$1))","v":""},{"$f":"IF($A320=\"N/A\",Ref!$B$36,INDEX(Ranks!$1:$1048576,$A320,DG$1))","v":""},{"$f":"IF($A320=\"N/A\",Ref!$B$36,INDEX(Ranks!$1:$1048576,$A320,DH$1))","v":""},{"$f":"IF($A320=\"N/A\",Ref!$B$36,INDEX(Ranks!$1:$1048576,$A320,DI$1))","v":""},{"$f":"IF($A320=\"N/A\",Ref!$B$36,INDEX(Ranks!$1:$1048576,$A320,DJ$1))","v":""},{"$f":"IF($A320=\"N/A\",Ref!$B$36,INDEX(Ranks!$1:$1048576,$A320,DK$1))","v":""},{"$f":"IF($A320=\"N/A\",Ref!$B$36,INDEX(Ranks!$1:$1048576,$A320,DL$1))","v":""},{"$f":"IF($A320=\"N/A\",Ref!$B$36,INDEX(Ranks!$1:$1048576,$A320,DM$1))","v":""},{"$f":"IF($A320=\"N/A\",Ref!$B$36,INDEX(Ranks!$1:$1048576,$A320,DN$1))","v":""},{"$f":"IF($A320=\"N/A\",Ref!$B$36,INDEX(Ranks!$1:$1048576,$A320,DO$1))","v":""},{"$f":"IF($A320=\"N/A\",Ref!$B$36,INDEX(Ranks!$1:$1048576,$A320,DP$1))","v":""},{"$f":"IF($A320=\"N/A\",Ref!$B$36,INDEX(Ranks!$1:$1048576,$A320,DQ$1))","v":""},{"$f":"IF($A320=\"N/A\",Ref!$B$36,INDEX(Ranks!$1:$1048576,$A320,DR$1))","v":""},{"$f":"IF($A320=\"N/A\",Ref!$B$36,INDEX(Ranks!$1:$1048576,$A320,DS$1))","v":""},{"$f":"IF($A320=\"N/A\",Ref!$B$36,INDEX(Ranks!$1:$1048576,$A320,DT$1))","v":""},{"$f":"IF($A320=\"N/A\",Ref!$B$36,INDEX(Ranks!$1:$1048576,$A320,DU$1))","v":""},{"$f":"IF($A320=\"N/A\",Ref!$B$36,INDEX(Ranks!$1:$1048576,$A320,DV$1))","v":""},{"$f":"IF($A320=\"N/A\",Ref!$B$36,INDEX(Ranks!$1:$1048576,$A320,DW$1))","v":""},{"$f":"IF($A320=\"N/A\",Ref!$B$36,INDEX(Ranks!$1:$1048576,$A320,DX$1))","v":""},{"$f":"IF($A320=\"N/A\",Ref!$B$36,INDEX(Ranks!$1:$1048576,$A320,DY$1))","v":""},{"$f":"IF($A320=\"N/A\",Ref!$B$36,INDEX(Ranks!$1:$1048576,$A320,DZ$1))","v":""},{"$f":"IF($A320=\"N/A\",Ref!$B$36,INDEX(Ranks!$1:$1048576,$A320,EA$1))","v":""},{"$f":"IF($A320=\"N/A\",Ref!$B$36,INDEX(Ranks!$1:$1048576,$A320,EB$1))","v":""}]
[{"$f":"IFERROR(MATCH('Portfolio Page'!L321,Ranks!L:L,0),\"N/A\")","v":"N/A"},null,{"$f":"IF($A321=\"N/A\",\"\",INDEX(Ranks!$1:$1048576,$A321,C$1))","v":""},{"$f":"IF($A321=\"N/A\",Ref!$B$36,INDEX(Ranks!$1:$1048576,$A321,D$1))","v":""},{"$f":"IF($A321=\"N/A\",Ref!$B$36,INDEX(Ranks!$1:$1048576,$A321,E$1))","v":""},{"$f":"IF($A321=\"N/A\",\"\",INDEX(Ranks!$1:$1048576,$A321,F$1))","v":""},{"$f":"IF($A321=\"N/A\",\"\",INDEX(Ranks!$1:$1048576,$A321,G$1))","v":""},{"$f":"IF($A321=\"N/A\",\"\",INDEX(Ranks!$1:$1048576,$A321,H$1))","v":""},{"$f":"IF($A321=\"N/A\",\"\",INDEX(Ranks!$1:$1048576,$A321,I$1))","v":""},{"$f":"IF($A321=\"N/A\",\"\",INDEX(Ranks!$1:$1048576,$A321,J$1))","v":""},{"$f":"IF($A321=\"N/A\",\"\",INDEX(Ranks!$1:$1048576,$A321,K$1))","v":""},null,{"$f":"IF($A321=\"N/A\",Ref!$B$36,INDEX(Ranks!$1:$1048576,$A321,M$1))","v":""},{"$f":"IF($A321=\"N/A\",Ref!$B$36,INDEX(Ranks!$1:$1048576,$A321,N$1))","v":""},{"$f":"IF($A321=\"N/A\",Ref!$B$36,INDEX(Ranks!$1:$1048576,$A321,O$1))","v":""},{"$f":"IF($A321=\"N/A\",Ref!$B$36,INDEX(Ranks!$1:$1048576,$A321,P$1))","v":""},{"$f":"IF($A321=\"N/A\",Ref!$B$36,INDEX(Ranks!$1:$1048576,$A321,Q$1))","v":""},{"$f":"IF($A321=\"N/A\",Ref!$B$36,INDEX(Ranks!$1:$1048576,$A321,R$1))","v":""},{"$f":"IF($A321=\"N/A\",Ref!$B$36,INDEX(Ranks!$1:$1048576,$A321,S$1))","v":""},{"$f":"IF($A321=\"N/A\",Ref!$B$36,INDEX(Ranks!$1:$1048576,$A321,T$1))","v":""},{"$f":"IF($A321=\"N/A\",Ref!$B$36,INDEX(Ranks!$1:$1048576,$A321,U$1))","v":""},{"$f":"IF($A321=\"N/A\",Ref!$B$36,INDEX(Ranks!$1:$1048576,$A321,V$1))","v":""},{"$f":"IF($A321=\"N/A\",Ref!$B$36,INDEX(Ranks!$1:$1048576,$A321,W$1))","v":""},{"$f":"IF($A321=\"N/A\",Ref!$B$36,INDEX(Ranks!$1:$1048576,$A321,X$1))","v":""},{"$f":"IF($A321=\"N/A\",Ref!$B$36,INDEX(Ranks!$1:$1048576,$A321,Y$1))","v":""},{"$f":"IF($A321=\"N/A\",Ref!$B$36,INDEX(Ranks!$1:$1048576,$A321,Z$1))","v":""},{"$f":"IF($A321=\"N/A\",Ref!$B$36,INDEX(Ranks!$1:$1048576,$A321,AA$1))","v":""},{"$f":"IF($A321=\"N/A\",Ref!$B$36,INDEX(Ranks!$1:$1048576,$A321,AB$1))","v":""},{"$f":"IF($A321=\"N/A\",Ref!$B$36,INDEX(Ranks!$1:$1048576,$A321,AC$1))","v":""},{"$f":"IF($A321=\"N/A\",Ref!$B$36,INDEX(Ranks!$1:$1048576,$A321,AD$1))","v":""},{"$f":"IF($A321=\"N/A\",Ref!$B$36,INDEX(Ranks!$1:$1048576,$A321,AE$1))","v":""},{"$f":"IF($A321=\"N/A\",Ref!$B$36,INDEX(Ranks!$1:$1048576,$A321,AF$1))","v":""},{"$f":"IF($A321=\"N/A\",Ref!$B$36,INDEX(Ranks!$1:$1048576,$A321,AG$1))","v":""},{"$f":"IF($A321=\"N/A\",Ref!$B$36,INDEX(Ranks!$1:$1048576,$A321,AH$1))","v":""},{"$f":"IF($A321=\"N/A\",Ref!$B$36,INDEX(Ranks!$1:$1048576,$A321,AI$1))","v":""},{"$f":"IF($A321=\"N/A\",Ref!$B$36,INDEX(Ranks!$1:$1048576,$A321,AJ$1))","v":""},{"$f":"IF($A321=\"N/A\",Ref!$B$36,INDEX(Ranks!$1:$1048576,$A321,AK$1))","v":""},{"$f":"IF($A321=\"N/A\",Ref!$B$36,INDEX(Ranks!$1:$1048576,$A321,AL$1))","v":""},{"$f":"IF($A321=\"N/A\",Ref!$B$36,INDEX(Ranks!$1:$1048576,$A321,AM$1))","v":""},{"$f":"IF($A321=\"N/A\",Ref!$B$36,INDEX(Ranks!$1:$1048576,$A321,AN$1))","v":""},{"$f":"IF($A321=\"N/A\",Ref!$B$36,INDEX(Ranks!$1:$1048576,$A321,AO$1))","v":""},{"$f":"IF($A321=\"N/A\",Ref!$B$36,INDEX(Ranks!$1:$1048576,$A321,AP$1))","v":""},{"$f":"IF($A321=\"N/A\",Ref!$B$36,INDEX(Ranks!$1:$1048576,$A321,AQ$1))","v":""},{"$f":"IF($A321=\"N/A\",Ref!$B$36,INDEX(Ranks!$1:$1048576,$A321,AR$1))","v":""},{"$f":"IF($A321=\"N/A\",Ref!$B$36,INDEX(Ranks!$1:$1048576,$A321,AS$1))","v":""},{"$f":"IF($A321=\"N/A\",Ref!$B$36,INDEX(Ranks!$1:$1048576,$A321,AT$1))","v":""},{"$f":"IF($A321=\"N/A\",Ref!$B$36,INDEX(Ranks!$1:$1048576,$A321,AU$1))","v":""},{"$f":"IF($A321=\"N/A\",Ref!$B$36,INDEX(Ranks!$1:$1048576,$A321,AV$1))","v":""},{"$f":"IF($A321=\"N/A\",Ref!$B$36,INDEX(Ranks!$1:$1048576,$A321,AW$1))","v":""},{"$f":"IF($A321=\"N/A\",Ref!$B$36,INDEX(Ranks!$1:$1048576,$A321,AX$1))","v":""},{"$f":"IF($A321=\"N/A\",Ref!$B$36,INDEX(Ranks!$1:$1048576,$A321,AY$1))","v":""},{"$f":"IF($A321=\"N/A\",Ref!$B$36,INDEX(Ranks!$1:$1048576,$A321,AZ$1))","v":""},{"$f":"IF($A321=\"N/A\",Ref!$B$36,INDEX(Ranks!$1:$1048576,$A321,BA$1))","v":""},{"$f":"IF($A321=\"N/A\",Ref!$B$36,INDEX(Ranks!$1:$1048576,$A321,BB$1))","v":""},{"$f":"IF($A321=\"N/A\",Ref!$B$36,INDEX(Ranks!$1:$1048576,$A321,BC$1))","v":""},{"$f":"IF($A321=\"N/A\",Ref!$B$36,INDEX(Ranks!$1:$1048576,$A321,BD$1))","v":""},{"$f":"IF($A321=\"N/A\",Ref!$B$36,INDEX(Ranks!$1:$1048576,$A321,BE$1))","v":""},{"$f":"IF($A321=\"N/A\",Ref!$B$36,INDEX(Ranks!$1:$1048576,$A321,BF$1))","v":""},{"$f":"IF($A321=\"N/A\",Ref!$B$36,INDEX(Ranks!$1:$1048576,$A321,BG$1))","v":""},{"$f":"IF($A321=\"N/A\",Ref!$B$36,INDEX(Ranks!$1:$1048576,$A321,BH$1))","v":""},{"$f":"IF($A321=\"N/A\",Ref!$B$36,INDEX(Ranks!$1:$1048576,$A321,BI$1))","v":""},{"$f":"IF($A321=\"N/A\",Ref!$B$36,INDEX(Ranks!$1:$1048576,$A321,BJ$1))","v":""},{"$f":"IF($A321=\"N/A\",Ref!$B$36,INDEX(Ranks!$1:$1048576,$A321,BK$1))","v":""},{"$f":"IF($A321=\"N/A\",Ref!$B$36,INDEX(Ranks!$1:$1048576,$A321,BL$1))","v":""},{"$f":"IF($A321=\"N/A\",Ref!$B$36,INDEX(Ranks!$1:$1048576,$A321,BM$1))","v":""},{"$f":"IF($A321=\"N/A\",Ref!$B$36,INDEX(Ranks!$1:$1048576,$A321,BN$1))","v":""},{"$f":"IF($A321=\"N/A\",Ref!$B$36,INDEX(Ranks!$1:$1048576,$A321,BO$1))","v":""},{"$f":"IF($A321=\"N/A\",Ref!$B$36,INDEX(Ranks!$1:$1048576,$A321,BP$1))","v":""},{"$f":"IF($A321=\"N/A\",Ref!$B$36,INDEX(Ranks!$1:$1048576,$A321,BQ$1))","v":""},{"$f":"IF($A321=\"N/A\",Ref!$B$36,INDEX(Ranks!$1:$1048576,$A321,BR$1))","v":""},{"$f":"IF($A321=\"N/A\",Ref!$B$36,INDEX(Ranks!$1:$1048576,$A321,BS$1))","v":""},{"$f":"IF($A321=\"N/A\",Ref!$B$36,INDEX(Ranks!$1:$1048576,$A321,BT$1))","v":""},{"$f":"IF($A321=\"N/A\",Ref!$B$36,INDEX(Ranks!$1:$1048576,$A321,BU$1))","v":""},{"$f":"IF($A321=\"N/A\",Ref!$B$36,INDEX(Ranks!$1:$1048576,$A321,BV$1))","v":""},{"$f":"IF($A321=\"N/A\",Ref!$B$36,INDEX(Ranks!$1:$1048576,$A321,BW$1))","v":""},{"$f":"IF($A321=\"N/A\",Ref!$B$36,INDEX(Ranks!$1:$1048576,$A321,BX$1))","v":""},{"$f":"IF($A321=\"N/A\",Ref!$B$36,INDEX(Ranks!$1:$1048576,$A321,BY$1))","v":""},{"$f":"IF($A321=\"N/A\",Ref!$B$36,INDEX(Ranks!$1:$1048576,$A321,BZ$1))","v":""},{"$f":"IF($A321=\"N/A\",Ref!$B$36,INDEX(Ranks!$1:$1048576,$A321,CA$1))","v":""},{"$f":"IF($A321=\"N/A\",Ref!$B$36,INDEX(Ranks!$1:$1048576,$A321,CB$1))","v":""},{"$f":"IF($A321=\"N/A\",Ref!$B$36,INDEX(Ranks!$1:$1048576,$A321,CC$1))","v":""},{"$f":"IF($A321=\"N/A\",Ref!$B$36,INDEX(Ranks!$1:$1048576,$A321,CD$1))","v":""},{"$f":"IF($A321=\"N/A\",Ref!$B$36,INDEX(Ranks!$1:$1048576,$A321,CE$1))","v":""},{"$f":"IF($A321=\"N/A\",Ref!$B$36,INDEX(Ranks!$1:$1048576,$A321,CF$1))","v":""},{"$f":"IF($A321=\"N/A\",Ref!$B$36,INDEX(Ranks!$1:$1048576,$A321,CG$1))","v":""},{"$f":"IF($A321=\"N/A\",Ref!$B$36,INDEX(Ranks!$1:$1048576,$A321,CH$1))","v":""},{"$f":"IF($A321=\"N/A\",Ref!$B$36,INDEX(Ranks!$1:$1048576,$A321,CI$1))","v":""},{"$f":"IF($A321=\"N/A\",Ref!$B$36,INDEX(Ranks!$1:$1048576,$A321,CJ$1))","v":""},{"$f":"IF($A321=\"N/A\",Ref!$B$36,INDEX(Ranks!$1:$1048576,$A321,CK$1))","v":""},{"$f":"IF($A321=\"N/A\",Ref!$B$36,INDEX(Ranks!$1:$1048576,$A321,CL$1))","v":""},{"$f":"IF($A321=\"N/A\",Ref!$B$36,INDEX(Ranks!$1:$1048576,$A321,CM$1))","v":""},{"$f":"IF($A321=\"N/A\",Ref!$B$36,INDEX(Ranks!$1:$1048576,$A321,CN$1))","v":""},{"$f":"IF($A321=\"N/A\",Ref!$B$36,INDEX(Ranks!$1:$1048576,$A321,CO$1))","v":""},{"$f":"IF($A321=\"N/A\",Ref!$B$36,INDEX(Ranks!$1:$1048576,$A321,CP$1))","v":""},{"$f":"IF($A321=\"N/A\",Ref!$B$36,INDEX(Ranks!$1:$1048576,$A321,CQ$1))","v":""},{"$f":"IF($A321=\"N/A\",Ref!$B$36,INDEX(Ranks!$1:$1048576,$A321,CR$1))","v":""},{"$f":"IF($A321=\"N/A\",Ref!$B$36,INDEX(Ranks!$1:$1048576,$A321,CS$1))","v":""},{"$f":"IF($A321=\"N/A\",Ref!$B$36,INDEX(Ranks!$1:$1048576,$A321,CT$1))","v":""},{"$f":"IF($A321=\"N/A\",Ref!$B$36,INDEX(Ranks!$1:$1048576,$A321,CU$1))","v":""},{"$f":"IF($A321=\"N/A\",Ref!$B$36,INDEX(Ranks!$1:$1048576,$A321,CV$1))","v":""},{"$f":"IF($A321=\"N/A\",Ref!$B$36,INDEX(Ranks!$1:$1048576,$A321,CW$1))","v":""},{"$f":"IF($A321=\"N/A\",Ref!$B$36,INDEX(Ranks!$1:$1048576,$A321,CX$1))","v":""},{"$f":"IF($A321=\"N/A\",Ref!$B$36,INDEX(Ranks!$1:$1048576,$A321,CY$1))","v":""},{"$f":"IF($A321=\"N/A\",Ref!$B$36,INDEX(Ranks!$1:$1048576,$A321,CZ$1))","v":""},{"$f":"IF($A321=\"N/A\",Ref!$B$36,INDEX(Ranks!$1:$1048576,$A321,DA$1))","v":""},{"$f":"IF($A321=\"N/A\",Ref!$B$36,INDEX(Ranks!$1:$1048576,$A321,DB$1))","v":""},{"$f":"IF($A321=\"N/A\",Ref!$B$36,INDEX(Ranks!$1:$1048576,$A321,DC$1))","v":""},{"$f":"IF($A321=\"N/A\",Ref!$B$36,INDEX(Ranks!$1:$1048576,$A321,DD$1))","v":""},{"$f":"IF($A321=\"N/A\",Ref!$B$36,INDEX(Ranks!$1:$1048576,$A321,DE$1))","v":""},{"$f":"IF($A321=\"N/A\",Ref!$B$36,INDEX(Ranks!$1:$1048576,$A321,DF$1))","v":""},{"$f":"IF($A321=\"N/A\",Ref!$B$36,INDEX(Ranks!$1:$1048576,$A321,DG$1))","v":""},{"$f":"IF($A321=\"N/A\",Ref!$B$36,INDEX(Ranks!$1:$1048576,$A321,DH$1))","v":""},{"$f":"IF($A321=\"N/A\",Ref!$B$36,INDEX(Ranks!$1:$1048576,$A321,DI$1))","v":""},{"$f":"IF($A321=\"N/A\",Ref!$B$36,INDEX(Ranks!$1:$1048576,$A321,DJ$1))","v":""},{"$f":"IF($A321=\"N/A\",Ref!$B$36,INDEX(Ranks!$1:$1048576,$A321,DK$1))","v":""},{"$f":"IF($A321=\"N/A\",Ref!$B$36,INDEX(Ranks!$1:$1048576,$A321,DL$1))","v":""},{"$f":"IF($A321=\"N/A\",Ref!$B$36,INDEX(Ranks!$1:$1048576,$A321,DM$1))","v":""},{"$f":"IF($A321=\"N/A\",Ref!$B$36,INDEX(Ranks!$1:$1048576,$A321,DN$1))","v":""},{"$f":"IF($A321=\"N/A\",Ref!$B$36,INDEX(Ranks!$1:$1048576,$A321,DO$1))","v":""},{"$f":"IF($A321=\"N/A\",Ref!$B$36,INDEX(Ranks!$1:$1048576,$A321,DP$1))","v":""},{"$f":"IF($A321=\"N/A\",Ref!$B$36,INDEX(Ranks!$1:$1048576,$A321,DQ$1))","v":""},{"$f":"IF($A321=\"N/A\",Ref!$B$36,INDEX(Ranks!$1:$1048576,$A321,DR$1))","v":""},{"$f":"IF($A321=\"N/A\",Ref!$B$36,INDEX(Ranks!$1:$1048576,$A321,DS$1))","v":""},{"$f":"IF($A321=\"N/A\",Ref!$B$36,INDEX(Ranks!$1:$1048576,$A321,DT$1))","v":""},{"$f":"IF($A321=\"N/A\",Ref!$B$36,INDEX(Ranks!$1:$1048576,$A321,DU$1))","v":""},{"$f":"IF($A321=\"N/A\",Ref!$B$36,INDEX(Ranks!$1:$1048576,$A321,DV$1))","v":""},{"$f":"IF($A321=\"N/A\",Ref!$B$36,INDEX(Ranks!$1:$1048576,$A321,DW$1))","v":""},{"$f":"IF($A321=\"N/A\",Ref!$B$36,INDEX(Ranks!$1:$1048576,$A321,DX$1))","v":""},{"$f":"IF($A321=\"N/A\",Ref!$B$36,INDEX(Ranks!$1:$1048576,$A321,DY$1))","v":""},{"$f":"IF($A321=\"N/A\",Ref!$B$36,INDEX(Ranks!$1:$1048576,$A321,DZ$1))","v":""},{"$f":"IF($A321=\"N/A\",Ref!$B$36,INDEX(Ranks!$1:$1048576,$A321,EA$1))","v":""},{"$f":"IF($A321=\"N/A\",Ref!$B$36,INDEX(Ranks!$1:$1048576,$A321,EB$1))","v":""}]
[{"$f":"IFERROR(MATCH('Portfolio Page'!L322,Ranks!L:L,0),\"N/A\")","v":"N/A"},null,{"$f":"IF($A322=\"N/A\",\"\",INDEX(Ranks!$1:$1048576,$A322,C$1))","v":""},{"$f":"IF($A322=\"N/A\",Ref!$B$36,INDEX(Ranks!$1:$1048576,$A322,D$1))","v":""},{"$f":"IF($A322=\"N/A\",Ref!$B$36,INDEX(Ranks!$1:$1048576,$A322,E$1))","v":""},{"$f":"IF($A322=\"N/A\",\"\",INDEX(Ranks!$1:$1048576,$A322,F$1))","v":""},{"$f":"IF($A322=\"N/A\",\"\",INDEX(Ranks!$1:$1048576,$A322,G$1))","v":""},{"$f":"IF($A322=\"N/A\",\"\",INDEX(Ranks!$1:$1048576,$A322,H$1))","v":""},{"$f":"IF($A322=\"N/A\",\"\",INDEX(Ranks!$1:$1048576,$A322,I$1))","v":""},{"$f":"IF($A322=\"N/A\",\"\",INDEX(Ranks!$1:$1048576,$A322,J$1))","v":""},{"$f":"IF($A322=\"N/A\",\"\",INDEX(Ranks!$1:$1048576,$A322,K$1))","v":""},null,{"$f":"IF($A322=\"N/A\",Ref!$B$36,INDEX(Ranks!$1:$1048576,$A322,M$1))","v":""},{"$f":"IF($A322=\"N/A\",Ref!$B$36,INDEX(Ranks!$1:$1048576,$A322,N$1))","v":""},{"$f":"IF($A322=\"N/A\",Ref!$B$36,INDEX(Ranks!$1:$1048576,$A322,O$1))","v":""},{"$f":"IF($A322=\"N/A\",Ref!$B$36,INDEX(Ranks!$1:$1048576,$A322,P$1))","v":""},{"$f":"IF($A322=\"N/A\",Ref!$B$36,INDEX(Ranks!$1:$1048576,$A322,Q$1))","v":""},{"$f":"IF($A322=\"N/A\",Ref!$B$36,INDEX(Ranks!$1:$1048576,$A322,R$1))","v":""},{"$f":"IF($A322=\"N/A\",Ref!$B$36,INDEX(Ranks!$1:$1048576,$A322,S$1))","v":""},{"$f":"IF($A322=\"N/A\",Ref!$B$36,INDEX(Ranks!$1:$1048576,$A322,T$1))","v":""},{"$f":"IF($A322=\"N/A\",Ref!$B$36,INDEX(Ranks!$1:$1048576,$A322,U$1))","v":""},{"$f":"IF($A322=\"N/A\",Ref!$B$36,INDEX(Ranks!$1:$1048576,$A322,V$1))","v":""},{"$f":"IF($A322=\"N/A\",Ref!$B$36,INDEX(Ranks!$1:$1048576,$A322,W$1))","v":""},{"$f":"IF($A322=\"N/A\",Ref!$B$36,INDEX(Ranks!$1:$1048576,$A322,X$1))","v":""},{"$f":"IF($A322=\"N/A\",Ref!$B$36,INDEX(Ranks!$1:$1048576,$A322,Y$1))","v":""},{"$f":"IF($A322=\"N/A\",Ref!$B$36,INDEX(Ranks!$1:$1048576,$A322,Z$1))","v":""},{"$f":"IF($A322=\"N/A\",Ref!$B$36,INDEX(Ranks!$1:$1048576,$A322,AA$1))","v":""},{"$f":"IF($A322=\"N/A\",Ref!$B$36,INDEX(Ranks!$1:$1048576,$A322,AB$1))","v":""},{"$f":"IF($A322=\"N/A\",Ref!$B$36,INDEX(Ranks!$1:$1048576,$A322,AC$1))","v":""},{"$f":"IF($A322=\"N/A\",Ref!$B$36,INDEX(Ranks!$1:$1048576,$A322,AD$1))","v":""},{"$f":"IF($A322=\"N/A\",Ref!$B$36,INDEX(Ranks!$1:$1048576,$A322,AE$1))","v":""},{"$f":"IF($A322=\"N/A\",Ref!$B$36,INDEX(Ranks!$1:$1048576,$A322,AF$1))","v":""},{"$f":"IF($A322=\"N/A\",Ref!$B$36,INDEX(Ranks!$1:$1048576,$A322,AG$1))","v":""},{"$f":"IF($A322=\"N/A\",Ref!$B$36,INDEX(Ranks!$1:$1048576,$A322,AH$1))","v":""},{"$f":"IF($A322=\"N/A\",Ref!$B$36,INDEX(Ranks!$1:$1048576,$A322,AI$1))","v":""},{"$f":"IF($A322=\"N/A\",Ref!$B$36,INDEX(Ranks!$1:$1048576,$A322,AJ$1))","v":""},{"$f":"IF($A322=\"N/A\",Ref!$B$36,INDEX(Ranks!$1:$1048576,$A322,AK$1))","v":""},{"$f":"IF($A322=\"N/A\",Ref!$B$36,INDEX(Ranks!$1:$1048576,$A322,AL$1))","v":""},{"$f":"IF($A322=\"N/A\",Ref!$B$36,INDEX(Ranks!$1:$1048576,$A322,AM$1))","v":""},{"$f":"IF($A322=\"N/A\",Ref!$B$36,INDEX(Ranks!$1:$1048576,$A322,AN$1))","v":""},{"$f":"IF($A322=\"N/A\",Ref!$B$36,INDEX(Ranks!$1:$1048576,$A322,AO$1))","v":""},{"$f":"IF($A322=\"N/A\",Ref!$B$36,INDEX(Ranks!$1:$1048576,$A322,AP$1))","v":""},{"$f":"IF($A322=\"N/A\",Ref!$B$36,INDEX(Ranks!$1:$1048576,$A322,AQ$1))","v":""},{"$f":"IF($A322=\"N/A\",Ref!$B$36,INDEX(Ranks!$1:$1048576,$A322,AR$1))","v":""},{"$f":"IF($A322=\"N/A\",Ref!$B$36,INDEX(Ranks!$1:$1048576,$A322,AS$1))","v":""},{"$f":"IF($A322=\"N/A\",Ref!$B$36,INDEX(Ranks!$1:$1048576,$A322,AT$1))","v":""},{"$f":"IF($A322=\"N/A\",Ref!$B$36,INDEX(Ranks!$1:$1048576,$A322,AU$1))","v":""},{"$f":"IF($A322=\"N/A\",Ref!$B$36,INDEX(Ranks!$1:$1048576,$A322,AV$1))","v":""},{"$f":"IF($A322=\"N/A\",Ref!$B$36,INDEX(Ranks!$1:$1048576,$A322,AW$1))","v":""},{"$f":"IF($A322=\"N/A\",Ref!$B$36,INDEX(Ranks!$1:$1048576,$A322,AX$1))","v":""},{"$f":"IF($A322=\"N/A\",Ref!$B$36,INDEX(Ranks!$1:$1048576,$A322,AY$1))","v":""},{"$f":"IF($A322=\"N/A\",Ref!$B$36,INDEX(Ranks!$1:$1048576,$A322,AZ$1))","v":""},{"$f":"IF($A322=\"N/A\",Ref!$B$36,INDEX(Ranks!$1:$1048576,$A322,BA$1))","v":""},{"$f":"IF($A322=\"N/A\",Ref!$B$36,INDEX(Ranks!$1:$1048576,$A322,BB$1))","v":""},{"$f":"IF($A322=\"N/A\",Ref!$B$36,INDEX(Ranks!$1:$1048576,$A322,BC$1))","v":""},{"$f":"IF($A322=\"N/A\",Ref!$B$36,INDEX(Ranks!$1:$1048576,$A322,BD$1))","v":""},{"$f":"IF($A322=\"N/A\",Ref!$B$36,INDEX(Ranks!$1:$1048576,$A322,BE$1))","v":""},{"$f":"IF($A322=\"N/A\",Ref!$B$36,INDEX(Ranks!$1:$1048576,$A322,BF$1))","v":""},{"$f":"IF($A322=\"N/A\",Ref!$B$36,INDEX(Ranks!$1:$1048576,$A322,BG$1))","v":""},{"$f":"IF($A322=\"N/A\",Ref!$B$36,INDEX(Ranks!$1:$1048576,$A322,BH$1))","v":""},{"$f":"IF($A322=\"N/A\",Ref!$B$36,INDEX(Ranks!$1:$1048576,$A322,BI$1))","v":""},{"$f":"IF($A322=\"N/A\",Ref!$B$36,INDEX(Ranks!$1:$1048576,$A322,BJ$1))","v":""},{"$f":"IF($A322=\"N/A\",Ref!$B$36,INDEX(Ranks!$1:$1048576,$A322,BK$1))","v":""},{"$f":"IF($A322=\"N/A\",Ref!$B$36,INDEX(Ranks!$1:$1048576,$A322,BL$1))","v":""},{"$f":"IF($A322=\"N/A\",Ref!$B$36,INDEX(Ranks!$1:$1048576,$A322,BM$1))","v":""},{"$f":"IF($A322=\"N/A\",Ref!$B$36,INDEX(Ranks!$1:$1048576,$A322,BN$1))","v":""},{"$f":"IF($A322=\"N/A\",Ref!$B$36,INDEX(Ranks!$1:$1048576,$A322,BO$1))","v":""},{"$f":"IF($A322=\"N/A\",Ref!$B$36,INDEX(Ranks!$1:$1048576,$A322,BP$1))","v":""},{"$f":"IF($A322=\"N/A\",Ref!$B$36,INDEX(Ranks!$1:$1048576,$A322,BQ$1))","v":""},{"$f":"IF($A322=\"N/A\",Ref!$B$36,INDEX(Ranks!$1:$1048576,$A322,BR$1))","v":""},{"$f":"IF($A322=\"N/A\",Ref!$B$36,INDEX(Ranks!$1:$1048576,$A322,BS$1))","v":""},{"$f":"IF($A322=\"N/A\",Ref!$B$36,INDEX(Ranks!$1:$1048576,$A322,BT$1))","v":""},{"$f":"IF($A322=\"N/A\",Ref!$B$36,INDEX(Ranks!$1:$1048576,$A322,BU$1))","v":""},{"$f":"IF($A322=\"N/A\",Ref!$B$36,INDEX(Ranks!$1:$1048576,$A322,BV$1))","v":""},{"$f":"IF($A322=\"N/A\",Ref!$B$36,INDEX(Ranks!$1:$1048576,$A322,BW$1))","v":""},{"$f":"IF($A322=\"N/A\",Ref!$B$36,INDEX(Ranks!$1:$1048576,$A322,BX$1))","v":""},{"$f":"IF($A322=\"N/A\",Ref!$B$36,INDEX(Ranks!$1:$1048576,$A322,BY$1))","v":""},{"$f":"IF($A322=\"N/A\",Ref!$B$36,INDEX(Ranks!$1:$1048576,$A322,BZ$1))","v":""},{"$f":"IF($A322=\"N/A\",Ref!$B$36,INDEX(Ranks!$1:$1048576,$A322,CA$1))","v":""},{"$f":"IF($A322=\"N/A\",Ref!$B$36,INDEX(Ranks!$1:$1048576,$A322,CB$1))","v":""},{"$f":"IF($A322=\"N/A\",Ref!$B$36,INDEX(Ranks!$1:$1048576,$A322,CC$1))","v":""},{"$f":"IF($A322=\"N/A\",Ref!$B$36,INDEX(Ranks!$1:$1048576,$A322,CD$1))","v":""},{"$f":"IF($A322=\"N/A\",Ref!$B$36,INDEX(Ranks!$1:$1048576,$A322,CE$1))","v":""},{"$f":"IF($A322=\"N/A\",Ref!$B$36,INDEX(Ranks!$1:$1048576,$A322,CF$1))","v":""},{"$f":"IF($A322=\"N/A\",Ref!$B$36,INDEX(Ranks!$1:$1048576,$A322,CG$1))","v":""},{"$f":"IF($A322=\"N/A\",Ref!$B$36,INDEX(Ranks!$1:$1048576,$A322,CH$1))","v":""},{"$f":"IF($A322=\"N/A\",Ref!$B$36,INDEX(Ranks!$1:$1048576,$A322,CI$1))","v":""},{"$f":"IF($A322=\"N/A\",Ref!$B$36,INDEX(Ranks!$1:$1048576,$A322,CJ$1))","v":""},{"$f":"IF($A322=\"N/A\",Ref!$B$36,INDEX(Ranks!$1:$1048576,$A322,CK$1))","v":""},{"$f":"IF($A322=\"N/A\",Ref!$B$36,INDEX(Ranks!$1:$1048576,$A322,CL$1))","v":""},{"$f":"IF($A322=\"N/A\",Ref!$B$36,INDEX(Ranks!$1:$1048576,$A322,CM$1))","v":""},{"$f":"IF($A322=\"N/A\",Ref!$B$36,INDEX(Ranks!$1:$1048576,$A322,CN$1))","v":""},{"$f":"IF($A322=\"N/A\",Ref!$B$36,INDEX(Ranks!$1:$1048576,$A322,CO$1))","v":""},{"$f":"IF($A322=\"N/A\",Ref!$B$36,INDEX(Ranks!$1:$1048576,$A322,CP$1))","v":""},{"$f":"IF($A322=\"N/A\",Ref!$B$36,INDEX(Ranks!$1:$1048576,$A322,CQ$1))","v":""},{"$f":"IF($A322=\"N/A\",Ref!$B$36,INDEX(Ranks!$1:$1048576,$A322,CR$1))","v":""},{"$f":"IF($A322=\"N/A\",Ref!$B$36,INDEX(Ranks!$1:$1048576,$A322,CS$1))","v":""},{"$f":"IF($A322=\"N/A\",Ref!$B$36,INDEX(Ranks!$1:$1048576,$A322,CT$1))","v":""},{"$f":"IF($A322=\"N/A\",Ref!$B$36,INDEX(Ranks!$1:$1048576,$A322,CU$1))","v":""},{"$f":"IF($A322=\"N/A\",Ref!$B$36,INDEX(Ranks!$1:$1048576,$A322,CV$1))","v":""},{"$f":"IF($A322=\"N/A\",Ref!$B$36,INDEX(Ranks!$1:$1048576,$A322,CW$1))","v":""},{"$f":"IF($A322=\"N/A\",Ref!$B$36,INDEX(Ranks!$1:$1048576,$A322,CX$1))","v":""},{"$f":"IF($A322=\"N/A\",Ref!$B$36,INDEX(Ranks!$1:$1048576,$A322,CY$1))","v":""},{"$f":"IF($A322=\"N/A\",Ref!$B$36,INDEX(Ranks!$1:$1048576,$A322,CZ$1))","v":""},{"$f":"IF($A322=\"N/A\",Ref!$B$36,INDEX(Ranks!$1:$1048576,$A322,DA$1))","v":""},{"$f":"IF($A322=\"N/A\",Ref!$B$36,INDEX(Ranks!$1:$1048576,$A322,DB$1))","v":""},{"$f":"IF($A322=\"N/A\",Ref!$B$36,INDEX(Ranks!$1:$1048576,$A322,DC$1))","v":""},{"$f":"IF($A322=\"N/A\",Ref!$B$36,INDEX(Ranks!$1:$1048576,$A322,DD$1))","v":""},{"$f":"IF($A322=\"N/A\",Ref!$B$36,INDEX(Ranks!$1:$1048576,$A322,DE$1))","v":""},{"$f":"IF($A322=\"N/A\",Ref!$B$36,INDEX(Ranks!$1:$1048576,$A322,DF$1))","v":""},{"$f":"IF($A322=\"N/A\",Ref!$B$36,INDEX(Ranks!$1:$1048576,$A322,DG$1))","v":""},{"$f":"IF($A322=\"N/A\",Ref!$B$36,INDEX(Ranks!$1:$1048576,$A322,DH$1))","v":""},{"$f":"IF($A322=\"N/A\",Ref!$B$36,INDEX(Ranks!$1:$1048576,$A322,DI$1))","v":""},{"$f":"IF($A322=\"N/A\",Ref!$B$36,INDEX(Ranks!$1:$1048576,$A322,DJ$1))","v":""},{"$f":"IF($A322=\"N/A\",Ref!$B$36,INDEX(Ranks!$1:$1048576,$A322,DK$1))","v":""},{"$f":"IF($A322=\"N/A\",Ref!$B$36,INDEX(Ranks!$1:$1048576,$A322,DL$1))","v":""},{"$f":"IF($A322=\"N/A\",Ref!$B$36,INDEX(Ranks!$1:$1048576,$A322,DM$1))","v":""},{"$f":"IF($A322=\"N/A\",Ref!$B$36,INDEX(Ranks!$1:$1048576,$A322,DN$1))","v":""},{"$f":"IF($A322=\"N/A\",Ref!$B$36,INDEX(Ranks!$1:$1048576,$A322,DO$1))","v":""},{"$f":"IF($A322=\"N/A\",Ref!$B$36,INDEX(Ranks!$1:$1048576,$A322,DP$1))","v":""},{"$f":"IF($A322=\"N/A\",Ref!$B$36,INDEX(Ranks!$1:$1048576,$A322,DQ$1))","v":""},{"$f":"IF($A322=\"N/A\",Ref!$B$36,INDEX(Ranks!$1:$1048576,$A322,DR$1))","v":""},{"$f":"IF($A322=\"N/A\",Ref!$B$36,INDEX(Ranks!$1:$1048576,$A322,DS$1))","v":""},{"$f":"IF($A322=\"N/A\",Ref!$B$36,INDEX(Ranks!$1:$1048576,$A322,DT$1))","v":""},{"$f":"IF($A322=\"N/A\",Ref!$B$36,INDEX(Ranks!$1:$1048576,$A322,DU$1))","v":""},{"$f":"IF($A322=\"N/A\",Ref!$B$36,INDEX(Ranks!$1:$1048576,$A322,DV$1))","v":""},{"$f":"IF($A322=\"N/A\",Ref!$B$36,INDEX(Ranks!$1:$1048576,$A322,DW$1))","v":""},{"$f":"IF($A322=\"N/A\",Ref!$B$36,INDEX(Ranks!$1:$1048576,$A322,DX$1))","v":""},{"$f":"IF($A322=\"N/A\",Ref!$B$36,INDEX(Ranks!$1:$1048576,$A322,DY$1))","v":""},{"$f":"IF($A322=\"N/A\",Ref!$B$36,INDEX(Ranks!$1:$1048576,$A322,DZ$1))","v":""},{"$f":"IF($A322=\"N/A\",Ref!$B$36,INDEX(Ranks!$1:$1048576,$A322,EA$1))","v":""},{"$f":"IF($A322=\"N/A\",Ref!$B$36,INDEX(Ranks!$1:$1048576,$A322,EB$1))","v":""}]
[{"$f":"IFERROR(MATCH('Portfolio Page'!L323,Ranks!L:L,0),\"N/A\")","v":"N/A"},null,{"$f":"IF($A323=\"N/A\",\"\",INDEX(Ranks!$1:$1048576,$A323,C$1))","v":""},{"$f":"IF($A323=\"N/A\",Ref!$B$36,INDEX(Ranks!$1:$1048576,$A323,D$1))","v":""},{"$f":"IF($A323=\"N/A\",Ref!$B$36,INDEX(Ranks!$1:$1048576,$A323,E$1))","v":""},{"$f":"IF($A323=\"N/A\",\"\",INDEX(Ranks!$1:$1048576,$A323,F$1))","v":""},{"$f":"IF($A323=\"N/A\",\"\",INDEX(Ranks!$1:$1048576,$A323,G$1))","v":""},{"$f":"IF($A323=\"N/A\",\"\",INDEX(Ranks!$1:$1048576,$A323,H$1))","v":""},{"$f":"IF($A323=\"N/A\",\"\",INDEX(Ranks!$1:$1048576,$A323,I$1))","v":""},{"$f":"IF($A323=\"N/A\",\"\",INDEX(Ranks!$1:$1048576,$A323,J$1))","v":""},{"$f":"IF($A323=\"N/A\",\"\",INDEX(Ranks!$1:$1048576,$A323,K$1))","v":""},null,{"$f":"IF($A323=\"N/A\",Ref!$B$36,INDEX(Ranks!$1:$1048576,$A323,M$1))","v":""},{"$f":"IF($A323=\"N/A\",Ref!$B$36,INDEX(Ranks!$1:$1048576,$A323,N$1))","v":""},{"$f":"IF($A323=\"N/A\",Ref!$B$36,INDEX(Ranks!$1:$1048576,$A323,O$1))","v":""},{"$f":"IF($A323=\"N/A\",Ref!$B$36,INDEX(Ranks!$1:$1048576,$A323,P$1))","v":""},{"$f":"IF($A323=\"N/A\",Ref!$B$36,INDEX(Ranks!$1:$1048576,$A323,Q$1))","v":""},{"$f":"IF($A323=\"N/A\",Ref!$B$36,INDEX(Ranks!$1:$1048576,$A323,R$1))","v":""},{"$f":"IF($A323=\"N/A\",Ref!$B$36,INDEX(Ranks!$1:$1048576,$A323,S$1))","v":""},{"$f":"IF($A323=\"N/A\",Ref!$B$36,INDEX(Ranks!$1:$1048576,$A323,T$1))","v":""},{"$f":"IF($A323=\"N/A\",Ref!$B$36,INDEX(Ranks!$1:$1048576,$A323,U$1))","v":""},{"$f":"IF($A323=\"N/A\",Ref!$B$36,INDEX(Ranks!$1:$1048576,$A323,V$1))","v":""},{"$f":"IF($A323=\"N/A\",Ref!$B$36,INDEX(Ranks!$1:$1048576,$A323,W$1))","v":""},{"$f":"IF($A323=\"N/A\",Ref!$B$36,INDEX(Ranks!$1:$1048576,$A323,X$1))","v":""},{"$f":"IF($A323=\"N/A\",Ref!$B$36,INDEX(Ranks!$1:$1048576,$A323,Y$1))","v":""},{"$f":"IF($A323=\"N/A\",Ref!$B$36,INDEX(Ranks!$1:$1048576,$A323,Z$1))","v":""},{"$f":"IF($A323=\"N/A\",Ref!$B$36,INDEX(Ranks!$1:$1048576,$A323,AA$1))","v":""},{"$f":"IF($A323=\"N/A\",Ref!$B$36,INDEX(Ranks!$1:$1048576,$A323,AB$1))","v":""},{"$f":"IF($A323=\"N/A\",Ref!$B$36,INDEX(Ranks!$1:$1048576,$A323,AC$1))","v":""},{"$f":"IF($A323=\"N/A\",Ref!$B$36,INDEX(Ranks!$1:$1048576,$A323,AD$1))","v":""},{"$f":"IF($A323=\"N/A\",Ref!$B$36,INDEX(Ranks!$1:$1048576,$A323,AE$1))","v":""},{"$f":"IF($A323=\"N/A\",Ref!$B$36,INDEX(Ranks!$1:$1048576,$A323,AF$1))","v":""},{"$f":"IF($A323=\"N/A\",Ref!$B$36,INDEX(Ranks!$1:$1048576,$A323,AG$1))","v":""},{"$f":"IF($A323=\"N/A\",Ref!$B$36,INDEX(Ranks!$1:$1048576,$A323,AH$1))","v":""},{"$f":"IF($A323=\"N/A\",Ref!$B$36,INDEX(Ranks!$1:$1048576,$A323,AI$1))","v":""},{"$f":"IF($A323=\"N/A\",Ref!$B$36,INDEX(Ranks!$1:$1048576,$A323,AJ$1))","v":""},{"$f":"IF($A323=\"N/A\",Ref!$B$36,INDEX(Ranks!$1:$1048576,$A323,AK$1))","v":""},{"$f":"IF($A323=\"N/A\",Ref!$B$36,INDEX(Ranks!$1:$1048576,$A323,AL$1))","v":""},{"$f":"IF($A323=\"N/A\",Ref!$B$36,INDEX(Ranks!$1:$1048576,$A323,AM$1))","v":""},{"$f":"IF($A323=\"N/A\",Ref!$B$36,INDEX(Ranks!$1:$1048576,$A323,AN$1))","v":""},{"$f":"IF($A323=\"N/A\",Ref!$B$36,INDEX(Ranks!$1:$1048576,$A323,AO$1))","v":""},{"$f":"IF($A323=\"N/A\",Ref!$B$36,INDEX(Ranks!$1:$1048576,$A323,AP$1))","v":""},{"$f":"IF($A323=\"N/A\",Ref!$B$36,INDEX(Ranks!$1:$1048576,$A323,AQ$1))","v":""},{"$f":"IF($A323=\"N/A\",Ref!$B$36,INDEX(Ranks!$1:$1048576,$A323,AR$1))","v":""},{"$f":"IF($A323=\"N/A\",Ref!$B$36,INDEX(Ranks!$1:$1048576,$A323,AS$1))","v":""},{"$f":"IF($A323=\"N/A\",Ref!$B$36,INDEX(Ranks!$1:$1048576,$A323,AT$1))","v":""},{"$f":"IF($A323=\"N/A\",Ref!$B$36,INDEX(Ranks!$1:$1048576,$A323,AU$1))","v":""},{"$f":"IF($A323=\"N/A\",Ref!$B$36,INDEX(Ranks!$1:$1048576,$A323,AV$1))","v":""},{"$f":"IF($A323=\"N/A\",Ref!$B$36,INDEX(Ranks!$1:$1048576,$A323,AW$1))","v":""},{"$f":"IF($A323=\"N/A\",Ref!$B$36,INDEX(Ranks!$1:$1048576,$A323,AX$1))","v":""},{"$f":"IF($A323=\"N/A\",Ref!$B$36,INDEX(Ranks!$1:$1048576,$A323,AY$1))","v":""},{"$f":"IF($A323=\"N/A\",Ref!$B$36,INDEX(Ranks!$1:$1048576,$A323,AZ$1))","v":""},{"$f":"IF($A323=\"N/A\",Ref!$B$36,INDEX(Ranks!$1:$1048576,$A323,BA$1))","v":""},{"$f":"IF($A323=\"N/A\",Ref!$B$36,INDEX(Ranks!$1:$1048576,$A323,BB$1))","v":""},{"$f":"IF($A323=\"N/A\",Ref!$B$36,INDEX(Ranks!$1:$1048576,$A323,BC$1))","v":""},{"$f":"IF($A323=\"N/A\",Ref!$B$36,INDEX(Ranks!$1:$1048576,$A323,BD$1))","v":""},{"$f":"IF($A323=\"N/A\",Ref!$B$36,INDEX(Ranks!$1:$1048576,$A323,BE$1))","v":""},{"$f":"IF($A323=\"N/A\",Ref!$B$36,INDEX(Ranks!$1:$1048576,$A323,BF$1))","v":""},{"$f":"IF($A323=\"N/A\",Ref!$B$36,INDEX(Ranks!$1:$1048576,$A323,BG$1))","v":""},{"$f":"IF($A323=\"N/A\",Ref!$B$36,INDEX(Ranks!$1:$1048576,$A323,BH$1))","v":""},{"$f":"IF($A323=\"N/A\",Ref!$B$36,INDEX(Ranks!$1:$1048576,$A323,BI$1))","v":""},{"$f":"IF($A323=\"N/A\",Ref!$B$36,INDEX(Ranks!$1:$1048576,$A323,BJ$1))","v":""},{"$f":"IF($A323=\"N/A\",Ref!$B$36,INDEX(Ranks!$1:$1048576,$A323,BK$1))","v":""},{"$f":"IF($A323=\"N/A\",Ref!$B$36,INDEX(Ranks!$1:$1048576,$A323,BL$1))","v":""},{"$f":"IF($A323=\"N/A\",Ref!$B$36,INDEX(Ranks!$1:$1048576,$A323,BM$1))","v":""},{"$f":"IF($A323=\"N/A\",Ref!$B$36,INDEX(Ranks!$1:$1048576,$A323,BN$1))","v":""},{"$f":"IF($A323=\"N/A\",Ref!$B$36,INDEX(Ranks!$1:$1048576,$A323,BO$1))","v":""},{"$f":"IF($A323=\"N/A\",Ref!$B$36,INDEX(Ranks!$1:$1048576,$A323,BP$1))","v":""},{"$f":"IF($A323=\"N/A\",Ref!$B$36,INDEX(Ranks!$1:$1048576,$A323,BQ$1))","v":""},{"$f":"IF($A323=\"N/A\",Ref!$B$36,INDEX(Ranks!$1:$1048576,$A323,BR$1))","v":""},{"$f":"IF($A323=\"N/A\",Ref!$B$36,INDEX(Ranks!$1:$1048576,$A323,BS$1))","v":""},{"$f":"IF($A323=\"N/A\",Ref!$B$36,INDEX(Ranks!$1:$1048576,$A323,BT$1))","v":""},{"$f":"IF($A323=\"N/A\",Ref!$B$36,INDEX(Ranks!$1:$1048576,$A323,BU$1))","v":""},{"$f":"IF($A323=\"N/A\",Ref!$B$36,INDEX(Ranks!$1:$1048576,$A323,BV$1))","v":""},{"$f":"IF($A323=\"N/A\",Ref!$B$36,INDEX(Ranks!$1:$1048576,$A323,BW$1))","v":""},{"$f":"IF($A323=\"N/A\",Ref!$B$36,INDEX(Ranks!$1:$1048576,$A323,BX$1))","v":""},{"$f":"IF($A323=\"N/A\",Ref!$B$36,INDEX(Ranks!$1:$1048576,$A323,BY$1))","v":""},{"$f":"IF($A323=\"N/A\",Ref!$B$36,INDEX(Ranks!$1:$1048576,$A323,BZ$1))","v":""},{"$f":"IF($A323=\"N/A\",Ref!$B$36,INDEX(Ranks!$1:$1048576,$A323,CA$1))","v":""},{"$f":"IF($A323=\"N/A\",Ref!$B$36,INDEX(Ranks!$1:$1048576,$A323,CB$1))","v":""},{"$f":"IF($A323=\"N/A\",Ref!$B$36,INDEX(Ranks!$1:$1048576,$A323,CC$1))","v":""},{"$f":"IF($A323=\"N/A\",Ref!$B$36,INDEX(Ranks!$1:$1048576,$A323,CD$1))","v":""},{"$f":"IF($A323=\"N/A\",Ref!$B$36,INDEX(Ranks!$1:$1048576,$A323,CE$1))","v":""},{"$f":"IF($A323=\"N/A\",Ref!$B$36,INDEX(Ranks!$1:$1048576,$A323,CF$1))","v":""},{"$f":"IF($A323=\"N/A\",Ref!$B$36,INDEX(Ranks!$1:$1048576,$A323,CG$1))","v":""},{"$f":"IF($A323=\"N/A\",Ref!$B$36,INDEX(Ranks!$1:$1048576,$A323,CH$1))","v":""},{"$f":"IF($A323=\"N/A\",Ref!$B$36,INDEX(Ranks!$1:$1048576,$A323,CI$1))","v":""},{"$f":"IF($A323=\"N/A\",Ref!$B$36,INDEX(Ranks!$1:$1048576,$A323,CJ$1))","v":""},{"$f":"IF($A323=\"N/A\",Ref!$B$36,INDEX(Ranks!$1:$1048576,$A323,CK$1))","v":""},{"$f":"IF($A323=\"N/A\",Ref!$B$36,INDEX(Ranks!$1:$1048576,$A323,CL$1))","v":""},{"$f":"IF($A323=\"N/A\",Ref!$B$36,INDEX(Ranks!$1:$1048576,$A323,CM$1))","v":""},{"$f":"IF($A323=\"N/A\",Ref!$B$36,INDEX(Ranks!$1:$1048576,$A323,CN$1))","v":""},{"$f":"IF($A323=\"N/A\",Ref!$B$36,INDEX(Ranks!$1:$1048576,$A323,CO$1))","v":""},{"$f":"IF($A323=\"N/A\",Ref!$B$36,INDEX(Ranks!$1:$1048576,$A323,CP$1))","v":""},{"$f":"IF($A323=\"N/A\",Ref!$B$36,INDEX(Ranks!$1:$1048576,$A323,CQ$1))","v":""},{"$f":"IF($A323=\"N/A\",Ref!$B$36,INDEX(Ranks!$1:$1048576,$A323,CR$1))","v":""},{"$f":"IF($A323=\"N/A\",Ref!$B$36,INDEX(Ranks!$1:$1048576,$A323,CS$1))","v":""},{"$f":"IF($A323=\"N/A\",Ref!$B$36,INDEX(Ranks!$1:$1048576,$A323,CT$1))","v":""},{"$f":"IF($A323=\"N/A\",Ref!$B$36,INDEX(Ranks!$1:$1048576,$A323,CU$1))","v":""},{"$f":"IF($A323=\"N/A\",Ref!$B$36,INDEX(Ranks!$1:$1048576,$A323,CV$1))","v":""},{"$f":"IF($A323=\"N/A\",Ref!$B$36,INDEX(Ranks!$1:$1048576,$A323,CW$1))","v":""},{"$f":"IF($A323=\"N/A\",Ref!$B$36,INDEX(Ranks!$1:$1048576,$A323,CX$1))","v":""},{"$f":"IF($A323=\"N/A\",Ref!$B$36,INDEX(Ranks!$1:$1048576,$A323,CY$1))","v":""},{"$f":"IF($A323=\"N/A\",Ref!$B$36,INDEX(Ranks!$1:$1048576,$A323,CZ$1))","v":""},{"$f":"IF($A323=\"N/A\",Ref!$B$36,INDEX(Ranks!$1:$1048576,$A323,DA$1))","v":""},{"$f":"IF($A323=\"N/A\",Ref!$B$36,INDEX(Ranks!$1:$1048576,$A323,DB$1))","v":""},{"$f":"IF($A323=\"N/A\",Ref!$B$36,INDEX(Ranks!$1:$1048576,$A323,DC$1))","v":""},{"$f":"IF($A323=\"N/A\",Ref!$B$36,INDEX(Ranks!$1:$1048576,$A323,DD$1))","v":""},{"$f":"IF($A323=\"N/A\",Ref!$B$36,INDEX(Ranks!$1:$1048576,$A323,DE$1))","v":""},{"$f":"IF($A323=\"N/A\",Ref!$B$36,INDEX(Ranks!$1:$1048576,$A323,DF$1))","v":""},{"$f":"IF($A323=\"N/A\",Ref!$B$36,INDEX(Ranks!$1:$1048576,$A323,DG$1))","v":""},{"$f":"IF($A323=\"N/A\",Ref!$B$36,INDEX(Ranks!$1:$1048576,$A323,DH$1))","v":""},{"$f":"IF($A323=\"N/A\",Ref!$B$36,INDEX(Ranks!$1:$1048576,$A323,DI$1))","v":""},{"$f":"IF($A323=\"N/A\",Ref!$B$36,INDEX(Ranks!$1:$1048576,$A323,DJ$1))","v":""},{"$f":"IF($A323=\"N/A\",Ref!$B$36,INDEX(Ranks!$1:$1048576,$A323,DK$1))","v":""},{"$f":"IF($A323=\"N/A\",Ref!$B$36,INDEX(Ranks!$1:$1048576,$A323,DL$1))","v":""},{"$f":"IF($A323=\"N/A\",Ref!$B$36,INDEX(Ranks!$1:$1048576,$A323,DM$1))","v":""},{"$f":"IF($A323=\"N/A\",Ref!$B$36,INDEX(Ranks!$1:$1048576,$A323,DN$1))","v":""},{"$f":"IF($A323=\"N/A\",Ref!$B$36,INDEX(Ranks!$1:$1048576,$A323,DO$1))","v":""},{"$f":"IF($A323=\"N/A\",Ref!$B$36,INDEX(Ranks!$1:$1048576,$A323,DP$1))","v":""},{"$f":"IF($A323=\"N/A\",Ref!$B$36,INDEX(Ranks!$1:$1048576,$A323,DQ$1))","v":""},{"$f":"IF($A323=\"N/A\",Ref!$B$36,INDEX(Ranks!$1:$1048576,$A323,DR$1))","v":""},{"$f":"IF($A323=\"N/A\",Ref!$B$36,INDEX(Ranks!$1:$1048576,$A323,DS$1))","v":""},{"$f":"IF($A323=\"N/A\",Ref!$B$36,INDEX(Ranks!$1:$1048576,$A323,DT$1))","v":""},{"$f":"IF($A323=\"N/A\",Ref!$B$36,INDEX(Ranks!$1:$1048576,$A323,DU$1))","v":""},{"$f":"IF($A323=\"N/A\",Ref!$B$36,INDEX(Ranks!$1:$1048576,$A323,DV$1))","v":""},{"$f":"IF($A323=\"N/A\",Ref!$B$36,INDEX(Ranks!$1:$1048576,$A323,DW$1))","v":""},{"$f":"IF($A323=\"N/A\",Ref!$B$36,INDEX(Ranks!$1:$1048576,$A323,DX$1))","v":""},{"$f":"IF($A323=\"N/A\",Ref!$B$36,INDEX(Ranks!$1:$1048576,$A323,DY$1))","v":""},{"$f":"IF($A323=\"N/A\",Ref!$B$36,INDEX(Ranks!$1:$1048576,$A323,DZ$1))","v":""},{"$f":"IF($A323=\"N/A\",Ref!$B$36,INDEX(Ranks!$1:$1048576,$A323,EA$1))","v":""},{"$f":"IF($A323=\"N/A\",Ref!$B$36,INDEX(Ranks!$1:$1048576,$A323,EB$1))","v":""}]
[{"$f":"IFERROR(MATCH('Portfolio Page'!L324,Ranks!L:L,0),\"N/A\")","v":"N/A"},null,{"$f":"IF($A324=\"N/A\",\"\",INDEX(Ranks!$1:$1048576,$A324,C$1))","v":""},{"$f":"IF($A324=\"N/A\",Ref!$B$36,INDEX(Ranks!$1:$1048576,$A324,D$1))","v":""},{"$f":"IF($A324=\"N/A\",Ref!$B$36,INDEX(Ranks!$1:$1048576,$A324,E$1))","v":""},{"$f":"IF($A324=\"N/A\",\"\",INDEX(Ranks!$1:$1048576,$A324,F$1))","v":""},{"$f":"IF($A324=\"N/A\",\"\",INDEX(Ranks!$1:$1048576,$A324,G$1))","v":""},{"$f":"IF($A324=\"N/A\",\"\",INDEX(Ranks!$1:$1048576,$A324,H$1))","v":""},{"$f":"IF($A324=\"N/A\",\"\",INDEX(Ranks!$1:$1048576,$A324,I$1))","v":""},{"$f":"IF($A324=\"N/A\",\"\",INDEX(Ranks!$1:$1048576,$A324,J$1))","v":""},{"$f":"IF($A324=\"N/A\",\"\",INDEX(Ranks!$1:$1048576,$A324,K$1))","v":""},null,{"$f":"IF($A324=\"N/A\",Ref!$B$36,INDEX(Ranks!$1:$1048576,$A324,M$1))","v":""},{"$f":"IF($A324=\"N/A\",Ref!$B$36,INDEX(Ranks!$1:$1048576,$A324,N$1))","v":""},{"$f":"IF($A324=\"N/A\",Ref!$B$36,INDEX(Ranks!$1:$1048576,$A324,O$1))","v":""},{"$f":"IF($A324=\"N/A\",Ref!$B$36,INDEX(Ranks!$1:$1048576,$A324,P$1))","v":""},{"$f":"IF($A324=\"N/A\",Ref!$B$36,INDEX(Ranks!$1:$1048576,$A324,Q$1))","v":""},{"$f":"IF($A324=\"N/A\",Ref!$B$36,INDEX(Ranks!$1:$1048576,$A324,R$1))","v":""},{"$f":"IF($A324=\"N/A\",Ref!$B$36,INDEX(Ranks!$1:$1048576,$A324,S$1))","v":""},{"$f":"IF($A324=\"N/A\",Ref!$B$36,INDEX(Ranks!$1:$1048576,$A324,T$1))","v":""},{"$f":"IF($A324=\"N/A\",Ref!$B$36,INDEX(Ranks!$1:$1048576,$A324,U$1))","v":""},{"$f":"IF($A324=\"N/A\",Ref!$B$36,INDEX(Ranks!$1:$1048576,$A324,V$1))","v":""},{"$f":"IF($A324=\"N/A\",Ref!$B$36,INDEX(Ranks!$1:$1048576,$A324,W$1))","v":""},{"$f":"IF($A324=\"N/A\",Ref!$B$36,INDEX(Ranks!$1:$1048576,$A324,X$1))","v":""},{"$f":"IF($A324=\"N/A\",Ref!$B$36,INDEX(Ranks!$1:$1048576,$A324,Y$1))","v":""},{"$f":"IF($A324=\"N/A\",Ref!$B$36,INDEX(Ranks!$1:$1048576,$A324,Z$1))","v":""},{"$f":"IF($A324=\"N/A\",Ref!$B$36,INDEX(Ranks!$1:$1048576,$A324,AA$1))","v":""},{"$f":"IF($A324=\"N/A\",Ref!$B$36,INDEX(Ranks!$1:$1048576,$A324,AB$1))","v":""},{"$f":"IF($A324=\"N/A\",Ref!$B$36,INDEX(Ranks!$1:$1048576,$A324,AC$1))","v":""},{"$f":"IF($A324=\"N/A\",Ref!$B$36,INDEX(Ranks!$1:$1048576,$A324,AD$1))","v":""},{"$f":"IF($A324=\"N/A\",Ref!$B$36,INDEX(Ranks!$1:$1048576,$A324,AE$1))","v":""},{"$f":"IF($A324=\"N/A\",Ref!$B$36,INDEX(Ranks!$1:$1048576,$A324,AF$1))","v":""},{"$f":"IF($A324=\"N/A\",Ref!$B$36,INDEX(Ranks!$1:$1048576,$A324,AG$1))","v":""},{"$f":"IF($A324=\"N/A\",Ref!$B$36,INDEX(Ranks!$1:$1048576,$A324,AH$1))","v":""},{"$f":"IF($A324=\"N/A\",Ref!$B$36,INDEX(Ranks!$1:$1048576,$A324,AI$1))","v":""},{"$f":"IF($A324=\"N/A\",Ref!$B$36,INDEX(Ranks!$1:$1048576,$A324,AJ$1))","v":""},{"$f":"IF($A324=\"N/A\",Ref!$B$36,INDEX(Ranks!$1:$1048576,$A324,AK$1))","v":""},{"$f":"IF($A324=\"N/A\",Ref!$B$36,INDEX(Ranks!$1:$1048576,$A324,AL$1))","v":""},{"$f":"IF($A324=\"N/A\",Ref!$B$36,INDEX(Ranks!$1:$1048576,$A324,AM$1))","v":""},{"$f":"IF($A324=\"N/A\",Ref!$B$36,INDEX(Ranks!$1:$1048576,$A324,AN$1))","v":""},{"$f":"IF($A324=\"N/A\",Ref!$B$36,INDEX(Ranks!$1:$1048576,$A324,AO$1))","v":""},{"$f":"IF($A324=\"N/A\",Ref!$B$36,INDEX(Ranks!$1:$1048576,$A324,AP$1))","v":""},{"$f":"IF($A324=\"N/A\",Ref!$B$36,INDEX(Ranks!$1:$1048576,$A324,AQ$1))","v":""},{"$f":"IF($A324=\"N/A\",Ref!$B$36,INDEX(Ranks!$1:$1048576,$A324,AR$1))","v":""},{"$f":"IF($A324=\"N/A\",Ref!$B$36,INDEX(Ranks!$1:$1048576,$A324,AS$1))","v":""},{"$f":"IF($A324=\"N/A\",Ref!$B$36,INDEX(Ranks!$1:$1048576,$A324,AT$1))","v":""},{"$f":"IF($A324=\"N/A\",Ref!$B$36,INDEX(Ranks!$1:$1048576,$A324,AU$1))","v":""},{"$f":"IF($A324=\"N/A\",Ref!$B$36,INDEX(Ranks!$1:$1048576,$A324,AV$1))","v":""},{"$f":"IF($A324=\"N/A\",Ref!$B$36,INDEX(Ranks!$1:$1048576,$A324,AW$1))","v":""},{"$f":"IF($A324=\"N/A\",Ref!$B$36,INDEX(Ranks!$1:$1048576,$A324,AX$1))","v":""},{"$f":"IF($A324=\"N/A\",Ref!$B$36,INDEX(Ranks!$1:$1048576,$A324,AY$1))","v":""},{"$f":"IF($A324=\"N/A\",Ref!$B$36,INDEX(Ranks!$1:$1048576,$A324,AZ$1))","v":""},{"$f":"IF($A324=\"N/A\",Ref!$B$36,INDEX(Ranks!$1:$1048576,$A324,BA$1))","v":""},{"$f":"IF($A324=\"N/A\",Ref!$B$36,INDEX(Ranks!$1:$1048576,$A324,BB$1))","v":""},{"$f":"IF($A324=\"N/A\",Ref!$B$36,INDEX(Ranks!$1:$1048576,$A324,BC$1))","v":""},{"$f":"IF($A324=\"N/A\",Ref!$B$36,INDEX(Ranks!$1:$1048576,$A324,BD$1))","v":""},{"$f":"IF($A324=\"N/A\",Ref!$B$36,INDEX(Ranks!$1:$1048576,$A324,BE$1))","v":""},{"$f":"IF($A324=\"N/A\",Ref!$B$36,INDEX(Ranks!$1:$1048576,$A324,BF$1))","v":""},{"$f":"IF($A324=\"N/A\",Ref!$B$36,INDEX(Ranks!$1:$1048576,$A324,BG$1))","v":""},{"$f":"IF($A324=\"N/A\",Ref!$B$36,INDEX(Ranks!$1:$1048576,$A324,BH$1))","v":""},{"$f":"IF($A324=\"N/A\",Ref!$B$36,INDEX(Ranks!$1:$1048576,$A324,BI$1))","v":""},{"$f":"IF($A324=\"N/A\",Ref!$B$36,INDEX(Ranks!$1:$1048576,$A324,BJ$1))","v":""},{"$f":"IF($A324=\"N/A\",Ref!$B$36,INDEX(Ranks!$1:$1048576,$A324,BK$1))","v":""},{"$f":"IF($A324=\"N/A\",Ref!$B$36,INDEX(Ranks!$1:$1048576,$A324,BL$1))","v":""},{"$f":"IF($A324=\"N/A\",Ref!$B$36,INDEX(Ranks!$1:$1048576,$A324,BM$1))","v":""},{"$f":"IF($A324=\"N/A\",Ref!$B$36,INDEX(Ranks!$1:$1048576,$A324,BN$1))","v":""},{"$f":"IF($A324=\"N/A\",Ref!$B$36,INDEX(Ranks!$1:$1048576,$A324,BO$1))","v":""},{"$f":"IF($A324=\"N/A\",Ref!$B$36,INDEX(Ranks!$1:$1048576,$A324,BP$1))","v":""},{"$f":"IF($A324=\"N/A\",Ref!$B$36,INDEX(Ranks!$1:$1048576,$A324,BQ$1))","v":""},{"$f":"IF($A324=\"N/A\",Ref!$B$36,INDEX(Ranks!$1:$1048576,$A324,BR$1))","v":""},{"$f":"IF($A324=\"N/A\",Ref!$B$36,INDEX(Ranks!$1:$1048576,$A324,BS$1))","v":""},{"$f":"IF($A324=\"N/A\",Ref!$B$36,INDEX(Ranks!$1:$1048576,$A324,BT$1))","v":""},{"$f":"IF($A324=\"N/A\",Ref!$B$36,INDEX(Ranks!$1:$1048576,$A324,BU$1))","v":""},{"$f":"IF($A324=\"N/A\",Ref!$B$36,INDEX(Ranks!$1:$1048576,$A324,BV$1))","v":""},{"$f":"IF($A324=\"N/A\",Ref!$B$36,INDEX(Ranks!$1:$1048576,$A324,BW$1))","v":""},{"$f":"IF($A324=\"N/A\",Ref!$B$36,INDEX(Ranks!$1:$1048576,$A324,BX$1))","v":""},{"$f":"IF($A324=\"N/A\",Ref!$B$36,INDEX(Ranks!$1:$1048576,$A324,BY$1))","v":""},{"$f":"IF($A324=\"N/A\",Ref!$B$36,INDEX(Ranks!$1:$1048576,$A324,BZ$1))","v":""},{"$f":"IF($A324=\"N/A\",Ref!$B$36,INDEX(Ranks!$1:$1048576,$A324,CA$1))","v":""},{"$f":"IF($A324=\"N/A\",Ref!$B$36,INDEX(Ranks!$1:$1048576,$A324,CB$1))","v":""},{"$f":"IF($A324=\"N/A\",Ref!$B$36,INDEX(Ranks!$1:$1048576,$A324,CC$1))","v":""},{"$f":"IF($A324=\"N/A\",Ref!$B$36,INDEX(Ranks!$1:$1048576,$A324,CD$1))","v":""},{"$f":"IF($A324=\"N/A\",Ref!$B$36,INDEX(Ranks!$1:$1048576,$A324,CE$1))","v":""},{"$f":"IF($A324=\"N/A\",Ref!$B$36,INDEX(Ranks!$1:$1048576,$A324,CF$1))","v":""},{"$f":"IF($A324=\"N/A\",Ref!$B$36,INDEX(Ranks!$1:$1048576,$A324,CG$1))","v":""},{"$f":"IF($A324=\"N/A\",Ref!$B$36,INDEX(Ranks!$1:$1048576,$A324,CH$1))","v":""},{"$f":"IF($A324=\"N/A\",Ref!$B$36,INDEX(Ranks!$1:$1048576,$A324,CI$1))","v":""},{"$f":"IF($A324=\"N/A\",Ref!$B$36,INDEX(Ranks!$1:$1048576,$A324,CJ$1))","v":""},{"$f":"IF($A324=\"N/A\",Ref!$B$36,INDEX(Ranks!$1:$1048576,$A324,CK$1))","v":""},{"$f":"IF($A324=\"N/A\",Ref!$B$36,INDEX(Ranks!$1:$1048576,$A324,CL$1))","v":""},{"$f":"IF($A324=\"N/A\",Ref!$B$36,INDEX(Ranks!$1:$1048576,$A324,CM$1))","v":""},{"$f":"IF($A324=\"N/A\",Ref!$B$36,INDEX(Ranks!$1:$1048576,$A324,CN$1))","v":""},{"$f":"IF($A324=\"N/A\",Ref!$B$36,INDEX(Ranks!$1:$1048576,$A324,CO$1))","v":""},{"$f":"IF($A324=\"N/A\",Ref!$B$36,INDEX(Ranks!$1:$1048576,$A324,CP$1))","v":""},{"$f":"IF($A324=\"N/A\",Ref!$B$36,INDEX(Ranks!$1:$1048576,$A324,CQ$1))","v":""},{"$f":"IF($A324=\"N/A\",Ref!$B$36,INDEX(Ranks!$1:$1048576,$A324,CR$1))","v":""},{"$f":"IF($A324=\"N/A\",Ref!$B$36,INDEX(Ranks!$1:$1048576,$A324,CS$1))","v":""},{"$f":"IF($A324=\"N/A\",Ref!$B$36,INDEX(Ranks!$1:$1048576,$A324,CT$1))","v":""},{"$f":"IF($A324=\"N/A\",Ref!$B$36,INDEX(Ranks!$1:$1048576,$A324,CU$1))","v":""},{"$f":"IF($A324=\"N/A\",Ref!$B$36,INDEX(Ranks!$1:$1048576,$A324,CV$1))","v":""},{"$f":"IF($A324=\"N/A\",Ref!$B$36,INDEX(Ranks!$1:$1048576,$A324,CW$1))","v":""},{"$f":"IF($A324=\"N/A\",Ref!$B$36,INDEX(Ranks!$1:$1048576,$A324,CX$1))","v":""},{"$f":"IF($A324=\"N/A\",Ref!$B$36,INDEX(Ranks!$1:$1048576,$A324,CY$1))","v":""},{"$f":"IF($A324=\"N/A\",Ref!$B$36,INDEX(Ranks!$1:$1048576,$A324,CZ$1))","v":""},{"$f":"IF($A324=\"N/A\",Ref!$B$36,INDEX(Ranks!$1:$1048576,$A324,DA$1))","v":""},{"$f":"IF($A324=\"N/A\",Ref!$B$36,INDEX(Ranks!$1:$1048576,$A324,DB$1))","v":""},{"$f":"IF($A324=\"N/A\",Ref!$B$36,INDEX(Ranks!$1:$1048576,$A324,DC$1))","v":""},{"$f":"IF($A324=\"N/A\",Ref!$B$36,INDEX(Ranks!$1:$1048576,$A324,DD$1))","v":""},{"$f":"IF($A324=\"N/A\",Ref!$B$36,INDEX(Ranks!$1:$1048576,$A324,DE$1))","v":""},{"$f":"IF($A324=\"N/A\",Ref!$B$36,INDEX(Ranks!$1:$1048576,$A324,DF$1))","v":""},{"$f":"IF($A324=\"N/A\",Ref!$B$36,INDEX(Ranks!$1:$1048576,$A324,DG$1))","v":""},{"$f":"IF($A324=\"N/A\",Ref!$B$36,INDEX(Ranks!$1:$1048576,$A324,DH$1))","v":""},{"$f":"IF($A324=\"N/A\",Ref!$B$36,INDEX(Ranks!$1:$1048576,$A324,DI$1))","v":""},{"$f":"IF($A324=\"N/A\",Ref!$B$36,INDEX(Ranks!$1:$1048576,$A324,DJ$1))","v":""},{"$f":"IF($A324=\"N/A\",Ref!$B$36,INDEX(Ranks!$1:$1048576,$A324,DK$1))","v":""},{"$f":"IF($A324=\"N/A\",Ref!$B$36,INDEX(Ranks!$1:$1048576,$A324,DL$1))","v":""},{"$f":"IF($A324=\"N/A\",Ref!$B$36,INDEX(Ranks!$1:$1048576,$A324,DM$1))","v":""},{"$f":"IF($A324=\"N/A\",Ref!$B$36,INDEX(Ranks!$1:$1048576,$A324,DN$1))","v":""},{"$f":"IF($A324=\"N/A\",Ref!$B$36,INDEX(Ranks!$1:$1048576,$A324,DO$1))","v":""},{"$f":"IF($A324=\"N/A\",Ref!$B$36,INDEX(Ranks!$1:$1048576,$A324,DP$1))","v":""},{"$f":"IF($A324=\"N/A\",Ref!$B$36,INDEX(Ranks!$1:$1048576,$A324,DQ$1))","v":""},{"$f":"IF($A324=\"N/A\",Ref!$B$36,INDEX(Ranks!$1:$1048576,$A324,DR$1))","v":""},{"$f":"IF($A324=\"N/A\",Ref!$B$36,INDEX(Ranks!$1:$1048576,$A324,DS$1))","v":""},{"$f":"IF($A324=\"N/A\",Ref!$B$36,INDEX(Ranks!$1:$1048576,$A324,DT$1))","v":""},{"$f":"IF($A324=\"N/A\",Ref!$B$36,INDEX(Ranks!$1:$1048576,$A324,DU$1))","v":""},{"$f":"IF($A324=\"N/A\",Ref!$B$36,INDEX(Ranks!$1:$1048576,$A324,DV$1))","v":""},{"$f":"IF($A324=\"N/A\",Ref!$B$36,INDEX(Ranks!$1:$1048576,$A324,DW$1))","v":""},{"$f":"IF($A324=\"N/A\",Ref!$B$36,INDEX(Ranks!$1:$1048576,$A324,DX$1))","v":""},{"$f":"IF($A324=\"N/A\",Ref!$B$36,INDEX(Ranks!$1:$1048576,$A324,DY$1))","v":""},{"$f":"IF($A324=\"N/A\",Ref!$B$36,INDEX(Ranks!$1:$1048576,$A324,DZ$1))","v":""},{"$f":"IF($A324=\"N/A\",Ref!$B$36,INDEX(Ranks!$1:$1048576,$A324,EA$1))","v":""},{"$f":"IF($A324=\"N/A\",Ref!$B$36,INDEX(Ranks!$1:$1048576,$A324,EB$1))","v":""}]
[{"$f":"IFERROR(MATCH('Portfolio Page'!L325,Ranks!L:L,0),\"N/A\")","v":"N/A"},null,{"$f":"IF($A325=\"N/A\",\"\",INDEX(Ranks!$1:$1048576,$A325,C$1))","v":""},{"$f":"IF($A325=\"N/A\",Ref!$B$36,INDEX(Ranks!$1:$1048576,$A325,D$1))","v":""},{"$f":"IF($A325=\"N/A\",Ref!$B$36,INDEX(Ranks!$1:$1048576,$A325,E$1))","v":""},{"$f":"IF($A325=\"N/A\",\"\",INDEX(Ranks!$1:$1048576,$A325,F$1))","v":""},{"$f":"IF($A325=\"N/A\",\"\",INDEX(Ranks!$1:$1048576,$A325,G$1))","v":""},{"$f":"IF($A325=\"N/A\",\"\",INDEX(Ranks!$1:$1048576,$A325,H$1))","v":""},{"$f":"IF($A325=\"N/A\",\"\",INDEX(Ranks!$1:$1048576,$A325,I$1))","v":""},{"$f":"IF($A325=\"N/A\",\"\",INDEX(Ranks!$1:$1048576,$A325,J$1))","v":""},{"$f":"IF($A325=\"N/A\",\"\",INDEX(Ranks!$1:$1048576,$A325,K$1))","v":""},null,{"$f":"IF($A325=\"N/A\",Ref!$B$36,INDEX(Ranks!$1:$1048576,$A325,M$1))","v":""},{"$f":"IF($A325=\"N/A\",Ref!$B$36,INDEX(Ranks!$1:$1048576,$A325,N$1))","v":""},{"$f":"IF($A325=\"N/A\",Ref!$B$36,INDEX(Ranks!$1:$1048576,$A325,O$1))","v":""},{"$f":"IF($A325=\"N/A\",Ref!$B$36,INDEX(Ranks!$1:$1048576,$A325,P$1))","v":""},{"$f":"IF($A325=\"N/A\",Ref!$B$36,INDEX(Ranks!$1:$1048576,$A325,Q$1))","v":""},{"$f":"IF($A325=\"N/A\",Ref!$B$36,INDEX(Ranks!$1:$1048576,$A325,R$1))","v":""},{"$f":"IF($A325=\"N/A\",Ref!$B$36,INDEX(Ranks!$1:$1048576,$A325,S$1))","v":""},{"$f":"IF($A325=\"N/A\",Ref!$B$36,INDEX(Ranks!$1:$1048576,$A325,T$1))","v":""},{"$f":"IF($A325=\"N/A\",Ref!$B$36,INDEX(Ranks!$1:$1048576,$A325,U$1))","v":""},{"$f":"IF($A325=\"N/A\",Ref!$B$36,INDEX(Ranks!$1:$1048576,$A325,V$1))","v":""},{"$f":"IF($A325=\"N/A\",Ref!$B$36,INDEX(Ranks!$1:$1048576,$A325,W$1))","v":""},{"$f":"IF($A325=\"N/A\",Ref!$B$36,INDEX(Ranks!$1:$1048576,$A325,X$1))","v":""},{"$f":"IF($A325=\"N/A\",Ref!$B$36,INDEX(Ranks!$1:$1048576,$A325,Y$1))","v":""},{"$f":"IF($A325=\"N/A\",Ref!$B$36,INDEX(Ranks!$1:$1048576,$A325,Z$1))","v":""},{"$f":"IF($A325=\"N/A\",Ref!$B$36,INDEX(Ranks!$1:$1048576,$A325,AA$1))","v":""},{"$f":"IF($A325=\"N/A\",Ref!$B$36,INDEX(Ranks!$1:$1048576,$A325,AB$1))","v":""},{"$f":"IF($A325=\"N/A\",Ref!$B$36,INDEX(Ranks!$1:$1048576,$A325,AC$1))","v":""},{"$f":"IF($A325=\"N/A\",Ref!$B$36,INDEX(Ranks!$1:$1048576,$A325,AD$1))","v":""},{"$f":"IF($A325=\"N/A\",Ref!$B$36,INDEX(Ranks!$1:$1048576,$A325,AE$1))","v":""},{"$f":"IF($A325=\"N/A\",Ref!$B$36,INDEX(Ranks!$1:$1048576,$A325,AF$1))","v":""},{"$f":"IF($A325=\"N/A\",Ref!$B$36,INDEX(Ranks!$1:$1048576,$A325,AG$1))","v":""},{"$f":"IF($A325=\"N/A\",Ref!$B$36,INDEX(Ranks!$1:$1048576,$A325,AH$1))","v":""},{"$f":"IF($A325=\"N/A\",Ref!$B$36,INDEX(Ranks!$1:$1048576,$A325,AI$1))","v":""},{"$f":"IF($A325=\"N/A\",Ref!$B$36,INDEX(Ranks!$1:$1048576,$A325,AJ$1))","v":""},{"$f":"IF($A325=\"N/A\",Ref!$B$36,INDEX(Ranks!$1:$1048576,$A325,AK$1))","v":""},{"$f":"IF($A325=\"N/A\",Ref!$B$36,INDEX(Ranks!$1:$1048576,$A325,AL$1))","v":""},{"$f":"IF($A325=\"N/A\",Ref!$B$36,INDEX(Ranks!$1:$1048576,$A325,AM$1))","v":""},{"$f":"IF($A325=\"N/A\",Ref!$B$36,INDEX(Ranks!$1:$1048576,$A325,AN$1))","v":""},{"$f":"IF($A325=\"N/A\",Ref!$B$36,INDEX(Ranks!$1:$1048576,$A325,AO$1))","v":""},{"$f":"IF($A325=\"N/A\",Ref!$B$36,INDEX(Ranks!$1:$1048576,$A325,AP$1))","v":""},{"$f":"IF($A325=\"N/A\",Ref!$B$36,INDEX(Ranks!$1:$1048576,$A325,AQ$1))","v":""},{"$f":"IF($A325=\"N/A\",Ref!$B$36,INDEX(Ranks!$1:$1048576,$A325,AR$1))","v":""},{"$f":"IF($A325=\"N/A\",Ref!$B$36,INDEX(Ranks!$1:$1048576,$A325,AS$1))","v":""},{"$f":"IF($A325=\"N/A\",Ref!$B$36,INDEX(Ranks!$1:$1048576,$A325,AT$1))","v":""},{"$f":"IF($A325=\"N/A\",Ref!$B$36,INDEX(Ranks!$1:$1048576,$A325,AU$1))","v":""},{"$f":"IF($A325=\"N/A\",Ref!$B$36,INDEX(Ranks!$1:$1048576,$A325,AV$1))","v":""},{"$f":"IF($A325=\"N/A\",Ref!$B$36,INDEX(Ranks!$1:$1048576,$A325,AW$1))","v":""},{"$f":"IF($A325=\"N/A\",Ref!$B$36,INDEX(Ranks!$1:$1048576,$A325,AX$1))","v":""},{"$f":"IF($A325=\"N/A\",Ref!$B$36,INDEX(Ranks!$1:$1048576,$A325,AY$1))","v":""},{"$f":"IF($A325=\"N/A\",Ref!$B$36,INDEX(Ranks!$1:$1048576,$A325,AZ$1))","v":""},{"$f":"IF($A325=\"N/A\",Ref!$B$36,INDEX(Ranks!$1:$1048576,$A325,BA$1))","v":""},{"$f":"IF($A325=\"N/A\",Ref!$B$36,INDEX(Ranks!$1:$1048576,$A325,BB$1))","v":""},{"$f":"IF($A325=\"N/A\",Ref!$B$36,INDEX(Ranks!$1:$1048576,$A325,BC$1))","v":""},{"$f":"IF($A325=\"N/A\",Ref!$B$36,INDEX(Ranks!$1:$1048576,$A325,BD$1))","v":""},{"$f":"IF($A325=\"N/A\",Ref!$B$36,INDEX(Ranks!$1:$1048576,$A325,BE$1))","v":""},{"$f":"IF($A325=\"N/A\",Ref!$B$36,INDEX(Ranks!$1:$1048576,$A325,BF$1))","v":""},{"$f":"IF($A325=\"N/A\",Ref!$B$36,INDEX(Ranks!$1:$1048576,$A325,BG$1))","v":""},{"$f":"IF($A325=\"N/A\",Ref!$B$36,INDEX(Ranks!$1:$1048576,$A325,BH$1))","v":""},{"$f":"IF($A325=\"N/A\",Ref!$B$36,INDEX(Ranks!$1:$1048576,$A325,BI$1))","v":""},{"$f":"IF($A325=\"N/A\",Ref!$B$36,INDEX(Ranks!$1:$1048576,$A325,BJ$1))","v":""},{"$f":"IF($A325=\"N/A\",Ref!$B$36,INDEX(Ranks!$1:$1048576,$A325,BK$1))","v":""},{"$f":"IF($A325=\"N/A\",Ref!$B$36,INDEX(Ranks!$1:$1048576,$A325,BL$1))","v":""},{"$f":"IF($A325=\"N/A\",Ref!$B$36,INDEX(Ranks!$1:$1048576,$A325,BM$1))","v":""},{"$f":"IF($A325=\"N/A\",Ref!$B$36,INDEX(Ranks!$1:$1048576,$A325,BN$1))","v":""},{"$f":"IF($A325=\"N/A\",Ref!$B$36,INDEX(Ranks!$1:$1048576,$A325,BO$1))","v":""},{"$f":"IF($A325=\"N/A\",Ref!$B$36,INDEX(Ranks!$1:$1048576,$A325,BP$1))","v":""},{"$f":"IF($A325=\"N/A\",Ref!$B$36,INDEX(Ranks!$1:$1048576,$A325,BQ$1))","v":""},{"$f":"IF($A325=\"N/A\",Ref!$B$36,INDEX(Ranks!$1:$1048576,$A325,BR$1))","v":""},{"$f":"IF($A325=\"N/A\",Ref!$B$36,INDEX(Ranks!$1:$1048576,$A325,BS$1))","v":""},{"$f":"IF($A325=\"N/A\",Ref!$B$36,INDEX(Ranks!$1:$1048576,$A325,BT$1))","v":""},{"$f":"IF($A325=\"N/A\",Ref!$B$36,INDEX(Ranks!$1:$1048576,$A325,BU$1))","v":""},{"$f":"IF($A325=\"N/A\",Ref!$B$36,INDEX(Ranks!$1:$1048576,$A325,BV$1))","v":""},{"$f":"IF($A325=\"N/A\",Ref!$B$36,INDEX(Ranks!$1:$1048576,$A325,BW$1))","v":""},{"$f":"IF($A325=\"N/A\",Ref!$B$36,INDEX(Ranks!$1:$1048576,$A325,BX$1))","v":""},{"$f":"IF($A325=\"N/A\",Ref!$B$36,INDEX(Ranks!$1:$1048576,$A325,BY$1))","v":""},{"$f":"IF($A325=\"N/A\",Ref!$B$36,INDEX(Ranks!$1:$1048576,$A325,BZ$1))","v":""},{"$f":"IF($A325=\"N/A\",Ref!$B$36,INDEX(Ranks!$1:$1048576,$A325,CA$1))","v":""},{"$f":"IF($A325=\"N/A\",Ref!$B$36,INDEX(Ranks!$1:$1048576,$A325,CB$1))","v":""},{"$f":"IF($A325=\"N/A\",Ref!$B$36,INDEX(Ranks!$1:$1048576,$A325,CC$1))","v":""},{"$f":"IF($A325=\"N/A\",Ref!$B$36,INDEX(Ranks!$1:$1048576,$A325,CD$1))","v":""},{"$f":"IF($A325=\"N/A\",Ref!$B$36,INDEX(Ranks!$1:$1048576,$A325,CE$1))","v":""},{"$f":"IF($A325=\"N/A\",Ref!$B$36,INDEX(Ranks!$1:$1048576,$A325,CF$1))","v":""},{"$f":"IF($A325=\"N/A\",Ref!$B$36,INDEX(Ranks!$1:$1048576,$A325,CG$1))","v":""},{"$f":"IF($A325=\"N/A\",Ref!$B$36,INDEX(Ranks!$1:$1048576,$A325,CH$1))","v":""},{"$f":"IF($A325=\"N/A\",Ref!$B$36,INDEX(Ranks!$1:$1048576,$A325,CI$1))","v":""},{"$f":"IF($A325=\"N/A\",Ref!$B$36,INDEX(Ranks!$1:$1048576,$A325,CJ$1))","v":""},{"$f":"IF($A325=\"N/A\",Ref!$B$36,INDEX(Ranks!$1:$1048576,$A325,CK$1))","v":""},{"$f":"IF($A325=\"N/A\",Ref!$B$36,INDEX(Ranks!$1:$1048576,$A325,CL$1))","v":""},{"$f":"IF($A325=\"N/A\",Ref!$B$36,INDEX(Ranks!$1:$1048576,$A325,CM$1))","v":""},{"$f":"IF($A325=\"N/A\",Ref!$B$36,INDEX(Ranks!$1:$1048576,$A325,CN$1))","v":""},{"$f":"IF($A325=\"N/A\",Ref!$B$36,INDEX(Ranks!$1:$1048576,$A325,CO$1))","v":""},{"$f":"IF($A325=\"N/A\",Ref!$B$36,INDEX(Ranks!$1:$1048576,$A325,CP$1))","v":""},{"$f":"IF($A325=\"N/A\",Ref!$B$36,INDEX(Ranks!$1:$1048576,$A325,CQ$1))","v":""},{"$f":"IF($A325=\"N/A\",Ref!$B$36,INDEX(Ranks!$1:$1048576,$A325,CR$1))","v":""},{"$f":"IF($A325=\"N/A\",Ref!$B$36,INDEX(Ranks!$1:$1048576,$A325,CS$1))","v":""},{"$f":"IF($A325=\"N/A\",Ref!$B$36,INDEX(Ranks!$1:$1048576,$A325,CT$1))","v":""},{"$f":"IF($A325=\"N/A\",Ref!$B$36,INDEX(Ranks!$1:$1048576,$A325,CU$1))","v":""},{"$f":"IF($A325=\"N/A\",Ref!$B$36,INDEX(Ranks!$1:$1048576,$A325,CV$1))","v":""},{"$f":"IF($A325=\"N/A\",Ref!$B$36,INDEX(Ranks!$1:$1048576,$A325,CW$1))","v":""},{"$f":"IF($A325=\"N/A\",Ref!$B$36,INDEX(Ranks!$1:$1048576,$A325,CX$1))","v":""},{"$f":"IF($A325=\"N/A\",Ref!$B$36,INDEX(Ranks!$1:$1048576,$A325,CY$1))","v":""},{"$f":"IF($A325=\"N/A\",Ref!$B$36,INDEX(Ranks!$1:$1048576,$A325,CZ$1))","v":""},{"$f":"IF($A325=\"N/A\",Ref!$B$36,INDEX(Ranks!$1:$1048576,$A325,DA$1))","v":""},{"$f":"IF($A325=\"N/A\",Ref!$B$36,INDEX(Ranks!$1:$1048576,$A325,DB$1))","v":""},{"$f":"IF($A325=\"N/A\",Ref!$B$36,INDEX(Ranks!$1:$1048576,$A325,DC$1))","v":""},{"$f":"IF($A325=\"N/A\",Ref!$B$36,INDEX(Ranks!$1:$1048576,$A325,DD$1))","v":""},{"$f":"IF($A325=\"N/A\",Ref!$B$36,INDEX(Ranks!$1:$1048576,$A325,DE$1))","v":""},{"$f":"IF($A325=\"N/A\",Ref!$B$36,INDEX(Ranks!$1:$1048576,$A325,DF$1))","v":""},{"$f":"IF($A325=\"N/A\",Ref!$B$36,INDEX(Ranks!$1:$1048576,$A325,DG$1))","v":""},{"$f":"IF($A325=\"N/A\",Ref!$B$36,INDEX(Ranks!$1:$1048576,$A325,DH$1))","v":""},{"$f":"IF($A325=\"N/A\",Ref!$B$36,INDEX(Ranks!$1:$1048576,$A325,DI$1))","v":""},{"$f":"IF($A325=\"N/A\",Ref!$B$36,INDEX(Ranks!$1:$1048576,$A325,DJ$1))","v":""},{"$f":"IF($A325=\"N/A\",Ref!$B$36,INDEX(Ranks!$1:$1048576,$A325,DK$1))","v":""},{"$f":"IF($A325=\"N/A\",Ref!$B$36,INDEX(Ranks!$1:$1048576,$A325,DL$1))","v":""},{"$f":"IF($A325=\"N/A\",Ref!$B$36,INDEX(Ranks!$1:$1048576,$A325,DM$1))","v":""},{"$f":"IF($A325=\"N/A\",Ref!$B$36,INDEX(Ranks!$1:$1048576,$A325,DN$1))","v":""},{"$f":"IF($A325=\"N/A\",Ref!$B$36,INDEX(Ranks!$1:$1048576,$A325,DO$1))","v":""},{"$f":"IF($A325=\"N/A\",Ref!$B$36,INDEX(Ranks!$1:$1048576,$A325,DP$1))","v":""},{"$f":"IF($A325=\"N/A\",Ref!$B$36,INDEX(Ranks!$1:$1048576,$A325,DQ$1))","v":""},{"$f":"IF($A325=\"N/A\",Ref!$B$36,INDEX(Ranks!$1:$1048576,$A325,DR$1))","v":""},{"$f":"IF($A325=\"N/A\",Ref!$B$36,INDEX(Ranks!$1:$1048576,$A325,DS$1))","v":""},{"$f":"IF($A325=\"N/A\",Ref!$B$36,INDEX(Ranks!$1:$1048576,$A325,DT$1))","v":""},{"$f":"IF($A325=\"N/A\",Ref!$B$36,INDEX(Ranks!$1:$1048576,$A325,DU$1))","v":""},{"$f":"IF($A325=\"N/A\",Ref!$B$36,INDEX(Ranks!$1:$1048576,$A325,DV$1))","v":""},{"$f":"IF($A325=\"N/A\",Ref!$B$36,INDEX(Ranks!$1:$1048576,$A325,DW$1))","v":""},{"$f":"IF($A325=\"N/A\",Ref!$B$36,INDEX(Ranks!$1:$1048576,$A325,DX$1))","v":""},{"$f":"IF($A325=\"N/A\",Ref!$B$36,INDEX(Ranks!$1:$1048576,$A325,DY$1))","v":""},{"$f":"IF($A325=\"N/A\",Ref!$B$36,INDEX(Ranks!$1:$1048576,$A325,DZ$1))","v":""},{"$f":"IF($A325=\"N/A\",Ref!$B$36,INDEX(Ranks!$1:$1048576,$A325,EA$1))","v":""},{"$f":"IF($A325=\"N/A\",Ref!$B$36,INDEX(Ranks!$1:$1048576,$A325,EB$1))","v":""}]
[{"$f":"IFERROR(MATCH('Portfolio Page'!L326,Ranks!L:L,0),\"N/A\")","v":"N/A"},null,{"$f":"IF($A326=\"N/A\",\"\",INDEX(Ranks!$1:$1048576,$A326,C$1))","v":""},{"$f":"IF($A326=\"N/A\",Ref!$B$36,INDEX(Ranks!$1:$1048576,$A326,D$1))","v":""},{"$f":"IF($A326=\"N/A\",Ref!$B$36,INDEX(Ranks!$1:$1048576,$A326,E$1))","v":""},{"$f":"IF($A326=\"N/A\",\"\",INDEX(Ranks!$1:$1048576,$A326,F$1))","v":""},{"$f":"IF($A326=\"N/A\",\"\",INDEX(Ranks!$1:$1048576,$A326,G$1))","v":""},{"$f":"IF($A326=\"N/A\",\"\",INDEX(Ranks!$1:$1048576,$A326,H$1))","v":""},{"$f":"IF($A326=\"N/A\",\"\",INDEX(Ranks!$1:$1048576,$A326,I$1))","v":""},{"$f":"IF($A326=\"N/A\",\"\",INDEX(Ranks!$1:$1048576,$A326,J$1))","v":""},{"$f":"IF($A326=\"N/A\",\"\",INDEX(Ranks!$1:$1048576,$A326,K$1))","v":""},null,{"$f":"IF($A326=\"N/A\",Ref!$B$36,INDEX(Ranks!$1:$1048576,$A326,M$1))","v":""},{"$f":"IF($A326=\"N/A\",Ref!$B$36,INDEX(Ranks!$1:$1048576,$A326,N$1))","v":""},{"$f":"IF($A326=\"N/A\",Ref!$B$36,INDEX(Ranks!$1:$1048576,$A326,O$1))","v":""},{"$f":"IF($A326=\"N/A\",Ref!$B$36,INDEX(Ranks!$1:$1048576,$A326,P$1))","v":""},{"$f":"IF($A326=\"N/A\",Ref!$B$36,INDEX(Ranks!$1:$1048576,$A326,Q$1))","v":""},{"$f":"IF($A326=\"N/A\",Ref!$B$36,INDEX(Ranks!$1:$1048576,$A326,R$1))","v":""},{"$f":"IF($A326=\"N/A\",Ref!$B$36,INDEX(Ranks!$1:$1048576,$A326,S$1))","v":""},{"$f":"IF($A326=\"N/A\",Ref!$B$36,INDEX(Ranks!$1:$1048576,$A326,T$1))","v":""},{"$f":"IF($A326=\"N/A\",Ref!$B$36,INDEX(Ranks!$1:$1048576,$A326,U$1))","v":""},{"$f":"IF($A326=\"N/A\",Ref!$B$36,INDEX(Ranks!$1:$1048576,$A326,V$1))","v":""},{"$f":"IF($A326=\"N/A\",Ref!$B$36,INDEX(Ranks!$1:$1048576,$A326,W$1))","v":""},{"$f":"IF($A326=\"N/A\",Ref!$B$36,INDEX(Ranks!$1:$1048576,$A326,X$1))","v":""},{"$f":"IF($A326=\"N/A\",Ref!$B$36,INDEX(Ranks!$1:$1048576,$A326,Y$1))","v":""},{"$f":"IF($A326=\"N/A\",Ref!$B$36,INDEX(Ranks!$1:$1048576,$A326,Z$1))","v":""},{"$f":"IF($A326=\"N/A\",Ref!$B$36,INDEX(Ranks!$1:$1048576,$A326,AA$1))","v":""},{"$f":"IF($A326=\"N/A\",Ref!$B$36,INDEX(Ranks!$1:$1048576,$A326,AB$1))","v":""},{"$f":"IF($A326=\"N/A\",Ref!$B$36,INDEX(Ranks!$1:$1048576,$A326,AC$1))","v":""},{"$f":"IF($A326=\"N/A\",Ref!$B$36,INDEX(Ranks!$1:$1048576,$A326,AD$1))","v":""},{"$f":"IF($A326=\"N/A\",Ref!$B$36,INDEX(Ranks!$1:$1048576,$A326,AE$1))","v":""},{"$f":"IF($A326=\"N/A\",Ref!$B$36,INDEX(Ranks!$1:$1048576,$A326,AF$1))","v":""},{"$f":"IF($A326=\"N/A\",Ref!$B$36,INDEX(Ranks!$1:$1048576,$A326,AG$1))","v":""},{"$f":"IF($A326=\"N/A\",Ref!$B$36,INDEX(Ranks!$1:$1048576,$A326,AH$1))","v":""},{"$f":"IF($A326=\"N/A\",Ref!$B$36,INDEX(Ranks!$1:$1048576,$A326,AI$1))","v":""},{"$f":"IF($A326=\"N/A\",Ref!$B$36,INDEX(Ranks!$1:$1048576,$A326,AJ$1))","v":""},{"$f":"IF($A326=\"N/A\",Ref!$B$36,INDEX(Ranks!$1:$1048576,$A326,AK$1))","v":""},{"$f":"IF($A326=\"N/A\",Ref!$B$36,INDEX(Ranks!$1:$1048576,$A326,AL$1))","v":""},{"$f":"IF($A326=\"N/A\",Ref!$B$36,INDEX(Ranks!$1:$1048576,$A326,AM$1))","v":""},{"$f":"IF($A326=\"N/A\",Ref!$B$36,INDEX(Ranks!$1:$1048576,$A326,AN$1))","v":""},{"$f":"IF($A326=\"N/A\",Ref!$B$36,INDEX(Ranks!$1:$1048576,$A326,AO$1))","v":""},{"$f":"IF($A326=\"N/A\",Ref!$B$36,INDEX(Ranks!$1:$1048576,$A326,AP$1))","v":""},{"$f":"IF($A326=\"N/A\",Ref!$B$36,INDEX(Ranks!$1:$1048576,$A326,AQ$1))","v":""},{"$f":"IF($A326=\"N/A\",Ref!$B$36,INDEX(Ranks!$1:$1048576,$A326,AR$1))","v":""},{"$f":"IF($A326=\"N/A\",Ref!$B$36,INDEX(Ranks!$1:$1048576,$A326,AS$1))","v":""},{"$f":"IF($A326=\"N/A\",Ref!$B$36,INDEX(Ranks!$1:$1048576,$A326,AT$1))","v":""},{"$f":"IF($A326=\"N/A\",Ref!$B$36,INDEX(Ranks!$1:$1048576,$A326,AU$1))","v":""},{"$f":"IF($A326=\"N/A\",Ref!$B$36,INDEX(Ranks!$1:$1048576,$A326,AV$1))","v":""},{"$f":"IF($A326=\"N/A\",Ref!$B$36,INDEX(Ranks!$1:$1048576,$A326,AW$1))","v":""},{"$f":"IF($A326=\"N/A\",Ref!$B$36,INDEX(Ranks!$1:$1048576,$A326,AX$1))","v":""},{"$f":"IF($A326=\"N/A\",Ref!$B$36,INDEX(Ranks!$1:$1048576,$A326,AY$1))","v":""},{"$f":"IF($A326=\"N/A\",Ref!$B$36,INDEX(Ranks!$1:$1048576,$A326,AZ$1))","v":""},{"$f":"IF($A326=\"N/A\",Ref!$B$36,INDEX(Ranks!$1:$1048576,$A326,BA$1))","v":""},{"$f":"IF($A326=\"N/A\",Ref!$B$36,INDEX(Ranks!$1:$1048576,$A326,BB$1))","v":""},{"$f":"IF($A326=\"N/A\",Ref!$B$36,INDEX(Ranks!$1:$1048576,$A326,BC$1))","v":""},{"$f":"IF($A326=\"N/A\",Ref!$B$36,INDEX(Ranks!$1:$1048576,$A326,BD$1))","v":""},{"$f":"IF($A326=\"N/A\",Ref!$B$36,INDEX(Ranks!$1:$1048576,$A326,BE$1))","v":""},{"$f":"IF($A326=\"N/A\",Ref!$B$36,INDEX(Ranks!$1:$1048576,$A326,BF$1))","v":""},{"$f":"IF($A326=\"N/A\",Ref!$B$36,INDEX(Ranks!$1:$1048576,$A326,BG$1))","v":""},{"$f":"IF($A326=\"N/A\",Ref!$B$36,INDEX(Ranks!$1:$1048576,$A326,BH$1))","v":""},{"$f":"IF($A326=\"N/A\",Ref!$B$36,INDEX(Ranks!$1:$1048576,$A326,BI$1))","v":""},{"$f":"IF($A326=\"N/A\",Ref!$B$36,INDEX(Ranks!$1:$1048576,$A326,BJ$1))","v":""},{"$f":"IF($A326=\"N/A\",Ref!$B$36,INDEX(Ranks!$1:$1048576,$A326,BK$1))","v":""},{"$f":"IF($A326=\"N/A\",Ref!$B$36,INDEX(Ranks!$1:$1048576,$A326,BL$1))","v":""},{"$f":"IF($A326=\"N/A\",Ref!$B$36,INDEX(Ranks!$1:$1048576,$A326,BM$1))","v":""},{"$f":"IF($A326=\"N/A\",Ref!$B$36,INDEX(Ranks!$1:$1048576,$A326,BN$1))","v":""},{"$f":"IF($A326=\"N/A\",Ref!$B$36,INDEX(Ranks!$1:$1048576,$A326,BO$1))","v":""},{"$f":"IF($A326=\"N/A\",Ref!$B$36,INDEX(Ranks!$1:$1048576,$A326,BP$1))","v":""},{"$f":"IF($A326=\"N/A\",Ref!$B$36,INDEX(Ranks!$1:$1048576,$A326,BQ$1))","v":""},{"$f":"IF($A326=\"N/A\",Ref!$B$36,INDEX(Ranks!$1:$1048576,$A326,BR$1))","v":""},{"$f":"IF($A326=\"N/A\",Ref!$B$36,INDEX(Ranks!$1:$1048576,$A326,BS$1))","v":""},{"$f":"IF($A326=\"N/A\",Ref!$B$36,INDEX(Ranks!$1:$1048576,$A326,BT$1))","v":""},{"$f":"IF($A326=\"N/A\",Ref!$B$36,INDEX(Ranks!$1:$1048576,$A326,BU$1))","v":""},{"$f":"IF($A326=\"N/A\",Ref!$B$36,INDEX(Ranks!$1:$1048576,$A326,BV$1))","v":""},{"$f":"IF($A326=\"N/A\",Ref!$B$36,INDEX(Ranks!$1:$1048576,$A326,BW$1))","v":""},{"$f":"IF($A326=\"N/A\",Ref!$B$36,INDEX(Ranks!$1:$1048576,$A326,BX$1))","v":""},{"$f":"IF($A326=\"N/A\",Ref!$B$36,INDEX(Ranks!$1:$1048576,$A326,BY$1))","v":""},{"$f":"IF($A326=\"N/A\",Ref!$B$36,INDEX(Ranks!$1:$1048576,$A326,BZ$1))","v":""},{"$f":"IF($A326=\"N/A\",Ref!$B$36,INDEX(Ranks!$1:$1048576,$A326,CA$1))","v":""},{"$f":"IF($A326=\"N/A\",Ref!$B$36,INDEX(Ranks!$1:$1048576,$A326,CB$1))","v":""},{"$f":"IF($A326=\"N/A\",Ref!$B$36,INDEX(Ranks!$1:$1048576,$A326,CC$1))","v":""},{"$f":"IF($A326=\"N/A\",Ref!$B$36,INDEX(Ranks!$1:$1048576,$A326,CD$1))","v":""},{"$f":"IF($A326=\"N/A\",Ref!$B$36,INDEX(Ranks!$1:$1048576,$A326,CE$1))","v":""},{"$f":"IF($A326=\"N/A\",Ref!$B$36,INDEX(Ranks!$1:$1048576,$A326,CF$1))","v":""},{"$f":"IF($A326=\"N/A\",Ref!$B$36,INDEX(Ranks!$1:$1048576,$A326,CG$1))","v":""},{"$f":"IF($A326=\"N/A\",Ref!$B$36,INDEX(Ranks!$1:$1048576,$A326,CH$1))","v":""},{"$f":"IF($A326=\"N/A\",Ref!$B$36,INDEX(Ranks!$1:$1048576,$A326,CI$1))","v":""},{"$f":"IF($A326=\"N/A\",Ref!$B$36,INDEX(Ranks!$1:$1048576,$A326,CJ$1))","v":""},{"$f":"IF($A326=\"N/A\",Ref!$B$36,INDEX(Ranks!$1:$1048576,$A326,CK$1))","v":""},{"$f":"IF($A326=\"N/A\",Ref!$B$36,INDEX(Ranks!$1:$1048576,$A326,CL$1))","v":""},{"$f":"IF($A326=\"N/A\",Ref!$B$36,INDEX(Ranks!$1:$1048576,$A326,CM$1))","v":""},{"$f":"IF($A326=\"N/A\",Ref!$B$36,INDEX(Ranks!$1:$1048576,$A326,CN$1))","v":""},{"$f":"IF($A326=\"N/A\",Ref!$B$36,INDEX(Ranks!$1:$1048576,$A326,CO$1))","v":""},{"$f":"IF($A326=\"N/A\",Ref!$B$36,INDEX(Ranks!$1:$1048576,$A326,CP$1))","v":""},{"$f":"IF($A326=\"N/A\",Ref!$B$36,INDEX(Ranks!$1:$1048576,$A326,CQ$1))","v":""},{"$f":"IF($A326=\"N/A\",Ref!$B$36,INDEX(Ranks!$1:$1048576,$A326,CR$1))","v":""},{"$f":"IF($A326=\"N/A\",Ref!$B$36,INDEX(Ranks!$1:$1048576,$A326,CS$1))","v":""},{"$f":"IF($A326=\"N/A\",Ref!$B$36,INDEX(Ranks!$1:$1048576,$A326,CT$1))","v":""},{"$f":"IF($A326=\"N/A\",Ref!$B$36,INDEX(Ranks!$1:$1048576,$A326,CU$1))","v":""},{"$f":"IF($A326=\"N/A\",Ref!$B$36,INDEX(Ranks!$1:$1048576,$A326,CV$1))","v":""},{"$f":"IF($A326=\"N/A\",Ref!$B$36,INDEX(Ranks!$1:$1048576,$A326,CW$1))","v":""},{"$f":"IF($A326=\"N/A\",Ref!$B$36,INDEX(Ranks!$1:$1048576,$A326,CX$1))","v":""},{"$f":"IF($A326=\"N/A\",Ref!$B$36,INDEX(Ranks!$1:$1048576,$A326,CY$1))","v":""},{"$f":"IF($A326=\"N/A\",Ref!$B$36,INDEX(Ranks!$1:$1048576,$A326,CZ$1))","v":""},{"$f":"IF($A326=\"N/A\",Ref!$B$36,INDEX(Ranks!$1:$1048576,$A326,DA$1))","v":""},{"$f":"IF($A326=\"N/A\",Ref!$B$36,INDEX(Ranks!$1:$1048576,$A326,DB$1))","v":""},{"$f":"IF($A326=\"N/A\",Ref!$B$36,INDEX(Ranks!$1:$1048576,$A326,DC$1))","v":""},{"$f":"IF($A326=\"N/A\",Ref!$B$36,INDEX(Ranks!$1:$1048576,$A326,DD$1))","v":""},{"$f":"IF($A326=\"N/A\",Ref!$B$36,INDEX(Ranks!$1:$1048576,$A326,DE$1))","v":""},{"$f":"IF($A326=\"N/A\",Ref!$B$36,INDEX(Ranks!$1:$1048576,$A326,DF$1))","v":""},{"$f":"IF($A326=\"N/A\",Ref!$B$36,INDEX(Ranks!$1:$1048576,$A326,DG$1))","v":""},{"$f":"IF($A326=\"N/A\",Ref!$B$36,INDEX(Ranks!$1:$1048576,$A326,DH$1))","v":""},{"$f":"IF($A326=\"N/A\",Ref!$B$36,INDEX(Ranks!$1:$1048576,$A326,DI$1))","v":""},{"$f":"IF($A326=\"N/A\",Ref!$B$36,INDEX(Ranks!$1:$1048576,$A326,DJ$1))","v":""},{"$f":"IF($A326=\"N/A\",Ref!$B$36,INDEX(Ranks!$1:$1048576,$A326,DK$1))","v":""},{"$f":"IF($A326=\"N/A\",Ref!$B$36,INDEX(Ranks!$1:$1048576,$A326,DL$1))","v":""},{"$f":"IF($A326=\"N/A\",Ref!$B$36,INDEX(Ranks!$1:$1048576,$A326,DM$1))","v":""},{"$f":"IF($A326=\"N/A\",Ref!$B$36,INDEX(Ranks!$1:$1048576,$A326,DN$1))","v":""},{"$f":"IF($A326=\"N/A\",Ref!$B$36,INDEX(Ranks!$1:$1048576,$A326,DO$1))","v":""},{"$f":"IF($A326=\"N/A\",Ref!$B$36,INDEX(Ranks!$1:$1048576,$A326,DP$1))","v":""},{"$f":"IF($A326=\"N/A\",Ref!$B$36,INDEX(Ranks!$1:$1048576,$A326,DQ$1))","v":""},{"$f":"IF($A326=\"N/A\",Ref!$B$36,INDEX(Ranks!$1:$1048576,$A326,DR$1))","v":""},{"$f":"IF($A326=\"N/A\",Ref!$B$36,INDEX(Ranks!$1:$1048576,$A326,DS$1))","v":""},{"$f":"IF($A326=\"N/A\",Ref!$B$36,INDEX(Ranks!$1:$1048576,$A326,DT$1))","v":""},{"$f":"IF($A326=\"N/A\",Ref!$B$36,INDEX(Ranks!$1:$1048576,$A326,DU$1))","v":""},{"$f":"IF($A326=\"N/A\",Ref!$B$36,INDEX(Ranks!$1:$1048576,$A326,DV$1))","v":""},{"$f":"IF($A326=\"N/A\",Ref!$B$36,INDEX(Ranks!$1:$1048576,$A326,DW$1))","v":""},{"$f":"IF($A326=\"N/A\",Ref!$B$36,INDEX(Ranks!$1:$1048576,$A326,DX$1))","v":""},{"$f":"IF($A326=\"N/A\",Ref!$B$36,INDEX(Ranks!$1:$1048576,$A326,DY$1))","v":""},{"$f":"IF($A326=\"N/A\",Ref!$B$36,INDEX(Ranks!$1:$1048576,$A326,DZ$1))","v":""},{"$f":"IF($A326=\"N/A\",Ref!$B$36,INDEX(Ranks!$1:$1048576,$A326,EA$1))","v":""},{"$f":"IF($A326=\"N/A\",Ref!$B$36,INDEX(Ranks!$1:$1048576,$A326,EB$1))","v":""}]
[{"$f":"IFERROR(MATCH('Portfolio Page'!L327,Ranks!L:L,0),\"N/A\")","v":"N/A"},null,{"$f":"IF($A327=\"N/A\",\"\",INDEX(Ranks!$1:$1048576,$A327,C$1))","v":""},{"$f":"IF($A327=\"N/A\",Ref!$B$36,INDEX(Ranks!$1:$1048576,$A327,D$1))","v":""},{"$f":"IF($A327=\"N/A\",Ref!$B$36,INDEX(Ranks!$1:$1048576,$A327,E$1))","v":""},{"$f":"IF($A327=\"N/A\",\"\",INDEX(Ranks!$1:$1048576,$A327,F$1))","v":""},{"$f":"IF($A327=\"N/A\",\"\",INDEX(Ranks!$1:$1048576,$A327,G$1))","v":""},{"$f":"IF($A327=\"N/A\",\"\",INDEX(Ranks!$1:$1048576,$A327,H$1))","v":""},{"$f":"IF($A327=\"N/A\",\"\",INDEX(Ranks!$1:$1048576,$A327,I$1))","v":""},{"$f":"IF($A327=\"N/A\",\"\",INDEX(Ranks!$1:$1048576,$A327,J$1))","v":""},{"$f":"IF($A327=\"N/A\",\"\",INDEX(Ranks!$1:$1048576,$A327,K$1))","v":""},null,{"$f":"IF($A327=\"N/A\",Ref!$B$36,INDEX(Ranks!$1:$1048576,$A327,M$1))","v":""},{"$f":"IF($A327=\"N/A\",Ref!$B$36,INDEX(Ranks!$1:$1048576,$A327,N$1))","v":""},{"$f":"IF($A327=\"N/A\",Ref!$B$36,INDEX(Ranks!$1:$1048576,$A327,O$1))","v":""},{"$f":"IF($A327=\"N/A\",Ref!$B$36,INDEX(Ranks!$1:$1048576,$A327,P$1))","v":""},{"$f":"IF($A327=\"N/A\",Ref!$B$36,INDEX(Ranks!$1:$1048576,$A327,Q$1))","v":""},{"$f":"IF($A327=\"N/A\",Ref!$B$36,INDEX(Ranks!$1:$1048576,$A327,R$1))","v":""},{"$f":"IF($A327=\"N/A\",Ref!$B$36,INDEX(Ranks!$1:$1048576,$A327,S$1))","v":""},{"$f":"IF($A327=\"N/A\",Ref!$B$36,INDEX(Ranks!$1:$1048576,$A327,T$1))","v":""},{"$f":"IF($A327=\"N/A\",Ref!$B$36,INDEX(Ranks!$1:$1048576,$A327,U$1))","v":""},{"$f":"IF($A327=\"N/A\",Ref!$B$36,INDEX(Ranks!$1:$1048576,$A327,V$1))","v":""},{"$f":"IF($A327=\"N/A\",Ref!$B$36,INDEX(Ranks!$1:$1048576,$A327,W$1))","v":""},{"$f":"IF($A327=\"N/A\",Ref!$B$36,INDEX(Ranks!$1:$1048576,$A327,X$1))","v":""},{"$f":"IF($A327=\"N/A\",Ref!$B$36,INDEX(Ranks!$1:$1048576,$A327,Y$1))","v":""},{"$f":"IF($A327=\"N/A\",Ref!$B$36,INDEX(Ranks!$1:$1048576,$A327,Z$1))","v":""},{"$f":"IF($A327=\"N/A\",Ref!$B$36,INDEX(Ranks!$1:$1048576,$A327,AA$1))","v":""},{"$f":"IF($A327=\"N/A\",Ref!$B$36,INDEX(Ranks!$1:$1048576,$A327,AB$1))","v":""},{"$f":"IF($A327=\"N/A\",Ref!$B$36,INDEX(Ranks!$1:$1048576,$A327,AC$1))","v":""},{"$f":"IF($A327=\"N/A\",Ref!$B$36,INDEX(Ranks!$1:$1048576,$A327,AD$1))","v":""},{"$f":"IF($A327=\"N/A\",Ref!$B$36,INDEX(Ranks!$1:$1048576,$A327,AE$1))","v":""},{"$f":"IF($A327=\"N/A\",Ref!$B$36,INDEX(Ranks!$1:$1048576,$A327,AF$1))","v":""},{"$f":"IF($A327=\"N/A\",Ref!$B$36,INDEX(Ranks!$1:$1048576,$A327,AG$1))","v":""},{"$f":"IF($A327=\"N/A\",Ref!$B$36,INDEX(Ranks!$1:$1048576,$A327,AH$1))","v":""},{"$f":"IF($A327=\"N/A\",Ref!$B$36,INDEX(Ranks!$1:$1048576,$A327,AI$1))","v":""},{"$f":"IF($A327=\"N/A\",Ref!$B$36,INDEX(Ranks!$1:$1048576,$A327,AJ$1))","v":""},{"$f":"IF($A327=\"N/A\",Ref!$B$36,INDEX(Ranks!$1:$1048576,$A327,AK$1))","v":""},{"$f":"IF($A327=\"N/A\",Ref!$B$36,INDEX(Ranks!$1:$1048576,$A327,AL$1))","v":""},{"$f":"IF($A327=\"N/A\",Ref!$B$36,INDEX(Ranks!$1:$1048576,$A327,AM$1))","v":""},{"$f":"IF($A327=\"N/A\",Ref!$B$36,INDEX(Ranks!$1:$1048576,$A327,AN$1))","v":""},{"$f":"IF($A327=\"N/A\",Ref!$B$36,INDEX(Ranks!$1:$1048576,$A327,AO$1))","v":""},{"$f":"IF($A327=\"N/A\",Ref!$B$36,INDEX(Ranks!$1:$1048576,$A327,AP$1))","v":""},{"$f":"IF($A327=\"N/A\",Ref!$B$36,INDEX(Ranks!$1:$1048576,$A327,AQ$1))","v":""},{"$f":"IF($A327=\"N/A\",Ref!$B$36,INDEX(Ranks!$1:$1048576,$A327,AR$1))","v":""},{"$f":"IF($A327=\"N/A\",Ref!$B$36,INDEX(Ranks!$1:$1048576,$A327,AS$1))","v":""},{"$f":"IF($A327=\"N/A\",Ref!$B$36,INDEX(Ranks!$1:$1048576,$A327,AT$1))","v":""},{"$f":"IF($A327=\"N/A\",Ref!$B$36,INDEX(Ranks!$1:$1048576,$A327,AU$1))","v":""},{"$f":"IF($A327=\"N/A\",Ref!$B$36,INDEX(Ranks!$1:$1048576,$A327,AV$1))","v":""},{"$f":"IF($A327=\"N/A\",Ref!$B$36,INDEX(Ranks!$1:$1048576,$A327,AW$1))","v":""},{"$f":"IF($A327=\"N/A\",Ref!$B$36,INDEX(Ranks!$1:$1048576,$A327,AX$1))","v":""},{"$f":"IF($A327=\"N/A\",Ref!$B$36,INDEX(Ranks!$1:$1048576,$A327,AY$1))","v":""},{"$f":"IF($A327=\"N/A\",Ref!$B$36,INDEX(Ranks!$1:$1048576,$A327,AZ$1))","v":""},{"$f":"IF($A327=\"N/A\",Ref!$B$36,INDEX(Ranks!$1:$1048576,$A327,BA$1))","v":""},{"$f":"IF($A327=\"N/A\",Ref!$B$36,INDEX(Ranks!$1:$1048576,$A327,BB$1))","v":""},{"$f":"IF($A327=\"N/A\",Ref!$B$36,INDEX(Ranks!$1:$1048576,$A327,BC$1))","v":""},{"$f":"IF($A327=\"N/A\",Ref!$B$36,INDEX(Ranks!$1:$1048576,$A327,BD$1))","v":""},{"$f":"IF($A327=\"N/A\",Ref!$B$36,INDEX(Ranks!$1:$1048576,$A327,BE$1))","v":""},{"$f":"IF($A327=\"N/A\",Ref!$B$36,INDEX(Ranks!$1:$1048576,$A327,BF$1))","v":""},{"$f":"IF($A327=\"N/A\",Ref!$B$36,INDEX(Ranks!$1:$1048576,$A327,BG$1))","v":""},{"$f":"IF($A327=\"N/A\",Ref!$B$36,INDEX(Ranks!$1:$1048576,$A327,BH$1))","v":""},{"$f":"IF($A327=\"N/A\",Ref!$B$36,INDEX(Ranks!$1:$1048576,$A327,BI$1))","v":""},{"$f":"IF($A327=\"N/A\",Ref!$B$36,INDEX(Ranks!$1:$1048576,$A327,BJ$1))","v":""},{"$f":"IF($A327=\"N/A\",Ref!$B$36,INDEX(Ranks!$1:$1048576,$A327,BK$1))","v":""},{"$f":"IF($A327=\"N/A\",Ref!$B$36,INDEX(Ranks!$1:$1048576,$A327,BL$1))","v":""},{"$f":"IF($A327=\"N/A\",Ref!$B$36,INDEX(Ranks!$1:$1048576,$A327,BM$1))","v":""},{"$f":"IF($A327=\"N/A\",Ref!$B$36,INDEX(Ranks!$1:$1048576,$A327,BN$1))","v":""},{"$f":"IF($A327=\"N/A\",Ref!$B$36,INDEX(Ranks!$1:$1048576,$A327,BO$1))","v":""},{"$f":"IF($A327=\"N/A\",Ref!$B$36,INDEX(Ranks!$1:$1048576,$A327,BP$1))","v":""},{"$f":"IF($A327=\"N/A\",Ref!$B$36,INDEX(Ranks!$1:$1048576,$A327,BQ$1))","v":""},{"$f":"IF($A327=\"N/A\",Ref!$B$36,INDEX(Ranks!$1:$1048576,$A327,BR$1))","v":""},{"$f":"IF($A327=\"N/A\",Ref!$B$36,INDEX(Ranks!$1:$1048576,$A327,BS$1))","v":""},{"$f":"IF($A327=\"N/A\",Ref!$B$36,INDEX(Ranks!$1:$1048576,$A327,BT$1))","v":""},{"$f":"IF($A327=\"N/A\",Ref!$B$36,INDEX(Ranks!$1:$1048576,$A327,BU$1))","v":""},{"$f":"IF($A327=\"N/A\",Ref!$B$36,INDEX(Ranks!$1:$1048576,$A327,BV$1))","v":""},{"$f":"IF($A327=\"N/A\",Ref!$B$36,INDEX(Ranks!$1:$1048576,$A327,BW$1))","v":""},{"$f":"IF($A327=\"N/A\",Ref!$B$36,INDEX(Ranks!$1:$1048576,$A327,BX$1))","v":""},{"$f":"IF($A327=\"N/A\",Ref!$B$36,INDEX(Ranks!$1:$1048576,$A327,BY$1))","v":""},{"$f":"IF($A327=\"N/A\",Ref!$B$36,INDEX(Ranks!$1:$1048576,$A327,BZ$1))","v":""},{"$f":"IF($A327=\"N/A\",Ref!$B$36,INDEX(Ranks!$1:$1048576,$A327,CA$1))","v":""},{"$f":"IF($A327=\"N/A\",Ref!$B$36,INDEX(Ranks!$1:$1048576,$A327,CB$1))","v":""},{"$f":"IF($A327=\"N/A\",Ref!$B$36,INDEX(Ranks!$1:$1048576,$A327,CC$1))","v":""},{"$f":"IF($A327=\"N/A\",Ref!$B$36,INDEX(Ranks!$1:$1048576,$A327,CD$1))","v":""},{"$f":"IF($A327=\"N/A\",Ref!$B$36,INDEX(Ranks!$1:$1048576,$A327,CE$1))","v":""},{"$f":"IF($A327=\"N/A\",Ref!$B$36,INDEX(Ranks!$1:$1048576,$A327,CF$1))","v":""},{"$f":"IF($A327=\"N/A\",Ref!$B$36,INDEX(Ranks!$1:$1048576,$A327,CG$1))","v":""},{"$f":"IF($A327=\"N/A\",Ref!$B$36,INDEX(Ranks!$1:$1048576,$A327,CH$1))","v":""},{"$f":"IF($A327=\"N/A\",Ref!$B$36,INDEX(Ranks!$1:$1048576,$A327,CI$1))","v":""},{"$f":"IF($A327=\"N/A\",Ref!$B$36,INDEX(Ranks!$1:$1048576,$A327,CJ$1))","v":""},{"$f":"IF($A327=\"N/A\",Ref!$B$36,INDEX(Ranks!$1:$1048576,$A327,CK$1))","v":""},{"$f":"IF($A327=\"N/A\",Ref!$B$36,INDEX(Ranks!$1:$1048576,$A327,CL$1))","v":""},{"$f":"IF($A327=\"N/A\",Ref!$B$36,INDEX(Ranks!$1:$1048576,$A327,CM$1))","v":""},{"$f":"IF($A327=\"N/A\",Ref!$B$36,INDEX(Ranks!$1:$1048576,$A327,CN$1))","v":""},{"$f":"IF($A327=\"N/A\",Ref!$B$36,INDEX(Ranks!$1:$1048576,$A327,CO$1))","v":""},{"$f":"IF($A327=\"N/A\",Ref!$B$36,INDEX(Ranks!$1:$1048576,$A327,CP$1))","v":""},{"$f":"IF($A327=\"N/A\",Ref!$B$36,INDEX(Ranks!$1:$1048576,$A327,CQ$1))","v":""},{"$f":"IF($A327=\"N/A\",Ref!$B$36,INDEX(Ranks!$1:$1048576,$A327,CR$1))","v":""},{"$f":"IF($A327=\"N/A\",Ref!$B$36,INDEX(Ranks!$1:$1048576,$A327,CS$1))","v":""},{"$f":"IF($A327=\"N/A\",Ref!$B$36,INDEX(Ranks!$1:$1048576,$A327,CT$1))","v":""},{"$f":"IF($A327=\"N/A\",Ref!$B$36,INDEX(Ranks!$1:$1048576,$A327,CU$1))","v":""},{"$f":"IF($A327=\"N/A\",Ref!$B$36,INDEX(Ranks!$1:$1048576,$A327,CV$1))","v":""},{"$f":"IF($A327=\"N/A\",Ref!$B$36,INDEX(Ranks!$1:$1048576,$A327,CW$1))","v":""},{"$f":"IF($A327=\"N/A\",Ref!$B$36,INDEX(Ranks!$1:$1048576,$A327,CX$1))","v":""},{"$f":"IF($A327=\"N/A\",Ref!$B$36,INDEX(Ranks!$1:$1048576,$A327,CY$1))","v":""},{"$f":"IF($A327=\"N/A\",Ref!$B$36,INDEX(Ranks!$1:$1048576,$A327,CZ$1))","v":""},{"$f":"IF($A327=\"N/A\",Ref!$B$36,INDEX(Ranks!$1:$1048576,$A327,DA$1))","v":""},{"$f":"IF($A327=\"N/A\",Ref!$B$36,INDEX(Ranks!$1:$1048576,$A327,DB$1))","v":""},{"$f":"IF($A327=\"N/A\",Ref!$B$36,INDEX(Ranks!$1:$1048576,$A327,DC$1))","v":""},{"$f":"IF($A327=\"N/A\",Ref!$B$36,INDEX(Ranks!$1:$1048576,$A327,DD$1))","v":""},{"$f":"IF($A327=\"N/A\",Ref!$B$36,INDEX(Ranks!$1:$1048576,$A327,DE$1))","v":""},{"$f":"IF($A327=\"N/A\",Ref!$B$36,INDEX(Ranks!$1:$1048576,$A327,DF$1))","v":""},{"$f":"IF($A327=\"N/A\",Ref!$B$36,INDEX(Ranks!$1:$1048576,$A327,DG$1))","v":""},{"$f":"IF($A327=\"N/A\",Ref!$B$36,INDEX(Ranks!$1:$1048576,$A327,DH$1))","v":""},{"$f":"IF($A327=\"N/A\",Ref!$B$36,INDEX(Ranks!$1:$1048576,$A327,DI$1))","v":""},{"$f":"IF($A327=\"N/A\",Ref!$B$36,INDEX(Ranks!$1:$1048576,$A327,DJ$1))","v":""},{"$f":"IF($A327=\"N/A\",Ref!$B$36,INDEX(Ranks!$1:$1048576,$A327,DK$1))","v":""},{"$f":"IF($A327=\"N/A\",Ref!$B$36,INDEX(Ranks!$1:$1048576,$A327,DL$1))","v":""},{"$f":"IF($A327=\"N/A\",Ref!$B$36,INDEX(Ranks!$1:$1048576,$A327,DM$1))","v":""},{"$f":"IF($A327=\"N/A\",Ref!$B$36,INDEX(Ranks!$1:$1048576,$A327,DN$1))","v":""},{"$f":"IF($A327=\"N/A\",Ref!$B$36,INDEX(Ranks!$1:$1048576,$A327,DO$1))","v":""},{"$f":"IF($A327=\"N/A\",Ref!$B$36,INDEX(Ranks!$1:$1048576,$A327,DP$1))","v":""},{"$f":"IF($A327=\"N/A\",Ref!$B$36,INDEX(Ranks!$1:$1048576,$A327,DQ$1))","v":""},{"$f":"IF($A327=\"N/A\",Ref!$B$36,INDEX(Ranks!$1:$1048576,$A327,DR$1))","v":""},{"$f":"IF($A327=\"N/A\",Ref!$B$36,INDEX(Ranks!$1:$1048576,$A327,DS$1))","v":""},{"$f":"IF($A327=\"N/A\",Ref!$B$36,INDEX(Ranks!$1:$1048576,$A327,DT$1))","v":""},{"$f":"IF($A327=\"N/A\",Ref!$B$36,INDEX(Ranks!$1:$1048576,$A327,DU$1))","v":""},{"$f":"IF($A327=\"N/A\",Ref!$B$36,INDEX(Ranks!$1:$1048576,$A327,DV$1))","v":""},{"$f":"IF($A327=\"N/A\",Ref!$B$36,INDEX(Ranks!$1:$1048576,$A327,DW$1))","v":""},{"$f":"IF($A327=\"N/A\",Ref!$B$36,INDEX(Ranks!$1:$1048576,$A327,DX$1))","v":""},{"$f":"IF($A327=\"N/A\",Ref!$B$36,INDEX(Ranks!$1:$1048576,$A327,DY$1))","v":""},{"$f":"IF($A327=\"N/A\",Ref!$B$36,INDEX(Ranks!$1:$1048576,$A327,DZ$1))","v":""},{"$f":"IF($A327=\"N/A\",Ref!$B$36,INDEX(Ranks!$1:$1048576,$A327,EA$1))","v":""},{"$f":"IF($A327=\"N/A\",Ref!$B$36,INDEX(Ranks!$1:$1048576,$A327,EB$1))","v":""}]
[{"$f":"IFERROR(MATCH('Portfolio Page'!L328,Ranks!L:L,0),\"N/A\")","v":"N/A"},null,{"$f":"IF($A328=\"N/A\",\"\",INDEX(Ranks!$1:$1048576,$A328,C$1))","v":""},{"$f":"IF($A328=\"N/A\",Ref!$B$36,INDEX(Ranks!$1:$1048576,$A328,D$1))","v":""},{"$f":"IF($A328=\"N/A\",Ref!$B$36,INDEX(Ranks!$1:$1048576,$A328,E$1))","v":""},{"$f":"IF($A328=\"N/A\",\"\",INDEX(Ranks!$1:$1048576,$A328,F$1))","v":""},{"$f":"IF($A328=\"N/A\",\"\",INDEX(Ranks!$1:$1048576,$A328,G$1))","v":""},{"$f":"IF($A328=\"N/A\",\"\",INDEX(Ranks!$1:$1048576,$A328,H$1))","v":""},{"$f":"IF($A328=\"N/A\",\"\",INDEX(Ranks!$1:$1048576,$A328,I$1))","v":""},{"$f":"IF($A328=\"N/A\",\"\",INDEX(Ranks!$1:$1048576,$A328,J$1))","v":""},{"$f":"IF($A328=\"N/A\",\"\",INDEX(Ranks!$1:$1048576,$A328,K$1))","v":""},null,{"$f":"IF($A328=\"N/A\",Ref!$B$36,INDEX(Ranks!$1:$1048576,$A328,M$1))","v":""},{"$f":"IF($A328=\"N/A\",Ref!$B$36,INDEX(Ranks!$1:$1048576,$A328,N$1))","v":""},{"$f":"IF($A328=\"N/A\",Ref!$B$36,INDEX(Ranks!$1:$1048576,$A328,O$1))","v":""},{"$f":"IF($A328=\"N/A\",Ref!$B$36,INDEX(Ranks!$1:$1048576,$A328,P$1))","v":""},{"$f":"IF($A328=\"N/A\",Ref!$B$36,INDEX(Ranks!$1:$1048576,$A328,Q$1))","v":""},{"$f":"IF($A328=\"N/A\",Ref!$B$36,INDEX(Ranks!$1:$1048576,$A328,R$1))","v":""},{"$f":"IF($A328=\"N/A\",Ref!$B$36,INDEX(Ranks!$1:$1048576,$A328,S$1))","v":""},{"$f":"IF($A328=\"N/A\",Ref!$B$36,INDEX(Ranks!$1:$1048576,$A328,T$1))","v":""},{"$f":"IF($A328=\"N/A\",Ref!$B$36,INDEX(Ranks!$1:$1048576,$A328,U$1))","v":""},{"$f":"IF($A328=\"N/A\",Ref!$B$36,INDEX(Ranks!$1:$1048576,$A328,V$1))","v":""},{"$f":"IF($A328=\"N/A\",Ref!$B$36,INDEX(Ranks!$1:$1048576,$A328,W$1))","v":""},{"$f":"IF($A328=\"N/A\",Ref!$B$36,INDEX(Ranks!$1:$1048576,$A328,X$1))","v":""},{"$f":"IF($A328=\"N/A\",Ref!$B$36,INDEX(Ranks!$1:$1048576,$A328,Y$1))","v":""},{"$f":"IF($A328=\"N/A\",Ref!$B$36,INDEX(Ranks!$1:$1048576,$A328,Z$1))","v":""},{"$f":"IF($A328=\"N/A\",Ref!$B$36,INDEX(Ranks!$1:$1048576,$A328,AA$1))","v":""},{"$f":"IF($A328=\"N/A\",Ref!$B$36,INDEX(Ranks!$1:$1048576,$A328,AB$1))","v":""},{"$f":"IF($A328=\"N/A\",Ref!$B$36,INDEX(Ranks!$1:$1048576,$A328,AC$1))","v":""},{"$f":"IF($A328=\"N/A\",Ref!$B$36,INDEX(Ranks!$1:$1048576,$A328,AD$1))","v":""},{"$f":"IF($A328=\"N/A\",Ref!$B$36,INDEX(Ranks!$1:$1048576,$A328,AE$1))","v":""},{"$f":"IF($A328=\"N/A\",Ref!$B$36,INDEX(Ranks!$1:$1048576,$A328,AF$1))","v":""},{"$f":"IF($A328=\"N/A\",Ref!$B$36,INDEX(Ranks!$1:$1048576,$A328,AG$1))","v":""},{"$f":"IF($A328=\"N/A\",Ref!$B$36,INDEX(Ranks!$1:$1048576,$A328,AH$1))","v":""},{"$f":"IF($A328=\"N/A\",Ref!$B$36,INDEX(Ranks!$1:$1048576,$A328,AI$1))","v":""},{"$f":"IF($A328=\"N/A\",Ref!$B$36,INDEX(Ranks!$1:$1048576,$A328,AJ$1))","v":""},{"$f":"IF($A328=\"N/A\",Ref!$B$36,INDEX(Ranks!$1:$1048576,$A328,AK$1))","v":""},{"$f":"IF($A328=\"N/A\",Ref!$B$36,INDEX(Ranks!$1:$1048576,$A328,AL$1))","v":""},{"$f":"IF($A328=\"N/A\",Ref!$B$36,INDEX(Ranks!$1:$1048576,$A328,AM$1))","v":""},{"$f":"IF($A328=\"N/A\",Ref!$B$36,INDEX(Ranks!$1:$1048576,$A328,AN$1))","v":""},{"$f":"IF($A328=\"N/A\",Ref!$B$36,INDEX(Ranks!$1:$1048576,$A328,AO$1))","v":""},{"$f":"IF($A328=\"N/A\",Ref!$B$36,INDEX(Ranks!$1:$1048576,$A328,AP$1))","v":""},{"$f":"IF($A328=\"N/A\",Ref!$B$36,INDEX(Ranks!$1:$1048576,$A328,AQ$1))","v":""},{"$f":"IF($A328=\"N/A\",Ref!$B$36,INDEX(Ranks!$1:$1048576,$A328,AR$1))","v":""},{"$f":"IF($A328=\"N/A\",Ref!$B$36,INDEX(Ranks!$1:$1048576,$A328,AS$1))","v":""},{"$f":"IF($A328=\"N/A\",Ref!$B$36,INDEX(Ranks!$1:$1048576,$A328,AT$1))","v":""},{"$f":"IF($A328=\"N/A\",Ref!$B$36,INDEX(Ranks!$1:$1048576,$A328,AU$1))","v":""},{"$f":"IF($A328=\"N/A\",Ref!$B$36,INDEX(Ranks!$1:$1048576,$A328,AV$1))","v":""},{"$f":"IF($A328=\"N/A\",Ref!$B$36,INDEX(Ranks!$1:$1048576,$A328,AW$1))","v":""},{"$f":"IF($A328=\"N/A\",Ref!$B$36,INDEX(Ranks!$1:$1048576,$A328,AX$1))","v":""},{"$f":"IF($A328=\"N/A\",Ref!$B$36,INDEX(Ranks!$1:$1048576,$A328,AY$1))","v":""},{"$f":"IF($A328=\"N/A\",Ref!$B$36,INDEX(Ranks!$1:$1048576,$A328,AZ$1))","v":""},{"$f":"IF($A328=\"N/A\",Ref!$B$36,INDEX(Ranks!$1:$1048576,$A328,BA$1))","v":""},{"$f":"IF($A328=\"N/A\",Ref!$B$36,INDEX(Ranks!$1:$1048576,$A328,BB$1))","v":""},{"$f":"IF($A328=\"N/A\",Ref!$B$36,INDEX(Ranks!$1:$1048576,$A328,BC$1))","v":""},{"$f":"IF($A328=\"N/A\",Ref!$B$36,INDEX(Ranks!$1:$1048576,$A328,BD$1))","v":""},{"$f":"IF($A328=\"N/A\",Ref!$B$36,INDEX(Ranks!$1:$1048576,$A328,BE$1))","v":""},{"$f":"IF($A328=\"N/A\",Ref!$B$36,INDEX(Ranks!$1:$1048576,$A328,BF$1))","v":""},{"$f":"IF($A328=\"N/A\",Ref!$B$36,INDEX(Ranks!$1:$1048576,$A328,BG$1))","v":""},{"$f":"IF($A328=\"N/A\",Ref!$B$36,INDEX(Ranks!$1:$1048576,$A328,BH$1))","v":""},{"$f":"IF($A328=\"N/A\",Ref!$B$36,INDEX(Ranks!$1:$1048576,$A328,BI$1))","v":""},{"$f":"IF($A328=\"N/A\",Ref!$B$36,INDEX(Ranks!$1:$1048576,$A328,BJ$1))","v":""},{"$f":"IF($A328=\"N/A\",Ref!$B$36,INDEX(Ranks!$1:$1048576,$A328,BK$1))","v":""},{"$f":"IF($A328=\"N/A\",Ref!$B$36,INDEX(Ranks!$1:$1048576,$A328,BL$1))","v":""},{"$f":"IF($A328=\"N/A\",Ref!$B$36,INDEX(Ranks!$1:$1048576,$A328,BM$1))","v":""},{"$f":"IF($A328=\"N/A\",Ref!$B$36,INDEX(Ranks!$1:$1048576,$A328,BN$1))","v":""},{"$f":"IF($A328=\"N/A\",Ref!$B$36,INDEX(Ranks!$1:$1048576,$A328,BO$1))","v":""},{"$f":"IF($A328=\"N/A\",Ref!$B$36,INDEX(Ranks!$1:$1048576,$A328,BP$1))","v":""},{"$f":"IF($A328=\"N/A\",Ref!$B$36,INDEX(Ranks!$1:$1048576,$A328,BQ$1))","v":""},{"$f":"IF($A328=\"N/A\",Ref!$B$36,INDEX(Ranks!$1:$1048576,$A328,BR$1))","v":""},{"$f":"IF($A328=\"N/A\",Ref!$B$36,INDEX(Ranks!$1:$1048576,$A328,BS$1))","v":""},{"$f":"IF($A328=\"N/A\",Ref!$B$36,INDEX(Ranks!$1:$1048576,$A328,BT$1))","v":""},{"$f":"IF($A328=\"N/A\",Ref!$B$36,INDEX(Ranks!$1:$1048576,$A328,BU$1))","v":""},{"$f":"IF($A328=\"N/A\",Ref!$B$36,INDEX(Ranks!$1:$1048576,$A328,BV$1))","v":""},{"$f":"IF($A328=\"N/A\",Ref!$B$36,INDEX(Ranks!$1:$1048576,$A328,BW$1))","v":""},{"$f":"IF($A328=\"N/A\",Ref!$B$36,INDEX(Ranks!$1:$1048576,$A328,BX$1))","v":""},{"$f":"IF($A328=\"N/A\",Ref!$B$36,INDEX(Ranks!$1:$1048576,$A328,BY$1))","v":""},{"$f":"IF($A328=\"N/A\",Ref!$B$36,INDEX(Ranks!$1:$1048576,$A328,BZ$1))","v":""},{"$f":"IF($A328=\"N/A\",Ref!$B$36,INDEX(Ranks!$1:$1048576,$A328,CA$1))","v":""},{"$f":"IF($A328=\"N/A\",Ref!$B$36,INDEX(Ranks!$1:$1048576,$A328,CB$1))","v":""},{"$f":"IF($A328=\"N/A\",Ref!$B$36,INDEX(Ranks!$1:$1048576,$A328,CC$1))","v":""},{"$f":"IF($A328=\"N/A\",Ref!$B$36,INDEX(Ranks!$1:$1048576,$A328,CD$1))","v":""},{"$f":"IF($A328=\"N/A\",Ref!$B$36,INDEX(Ranks!$1:$1048576,$A328,CE$1))","v":""},{"$f":"IF($A328=\"N/A\",Ref!$B$36,INDEX(Ranks!$1:$1048576,$A328,CF$1))","v":""},{"$f":"IF($A328=\"N/A\",Ref!$B$36,INDEX(Ranks!$1:$1048576,$A328,CG$1))","v":""},{"$f":"IF($A328=\"N/A\",Ref!$B$36,INDEX(Ranks!$1:$1048576,$A328,CH$1))","v":""},{"$f":"IF($A328=\"N/A\",Ref!$B$36,INDEX(Ranks!$1:$1048576,$A328,CI$1))","v":""},{"$f":"IF($A328=\"N/A\",Ref!$B$36,INDEX(Ranks!$1:$1048576,$A328,CJ$1))","v":""},{"$f":"IF($A328=\"N/A\",Ref!$B$36,INDEX(Ranks!$1:$1048576,$A328,CK$1))","v":""},{"$f":"IF($A328=\"N/A\",Ref!$B$36,INDEX(Ranks!$1:$1048576,$A328,CL$1))","v":""},{"$f":"IF($A328=\"N/A\",Ref!$B$36,INDEX(Ranks!$1:$1048576,$A328,CM$1))","v":""},{"$f":"IF($A328=\"N/A\",Ref!$B$36,INDEX(Ranks!$1:$1048576,$A328,CN$1))","v":""},{"$f":"IF($A328=\"N/A\",Ref!$B$36,INDEX(Ranks!$1:$1048576,$A328,CO$1))","v":""},{"$f":"IF($A328=\"N/A\",Ref!$B$36,INDEX(Ranks!$1:$1048576,$A328,CP$1))","v":""},{"$f":"IF($A328=\"N/A\",Ref!$B$36,INDEX(Ranks!$1:$1048576,$A328,CQ$1))","v":""},{"$f":"IF($A328=\"N/A\",Ref!$B$36,INDEX(Ranks!$1:$1048576,$A328,CR$1))","v":""},{"$f":"IF($A328=\"N/A\",Ref!$B$36,INDEX(Ranks!$1:$1048576,$A328,CS$1))","v":""},{"$f":"IF($A328=\"N/A\",Ref!$B$36,INDEX(Ranks!$1:$1048576,$A328,CT$1))","v":""},{"$f":"IF($A328=\"N/A\",Ref!$B$36,INDEX(Ranks!$1:$1048576,$A328,CU$1))","v":""},{"$f":"IF($A328=\"N/A\",Ref!$B$36,INDEX(Ranks!$1:$1048576,$A328,CV$1))","v":""},{"$f":"IF($A328=\"N/A\",Ref!$B$36,INDEX(Ranks!$1:$1048576,$A328,CW$1))","v":""},{"$f":"IF($A328=\"N/A\",Ref!$B$36,INDEX(Ranks!$1:$1048576,$A328,CX$1))","v":""},{"$f":"IF($A328=\"N/A\",Ref!$B$36,INDEX(Ranks!$1:$1048576,$A328,CY$1))","v":""},{"$f":"IF($A328=\"N/A\",Ref!$B$36,INDEX(Ranks!$1:$1048576,$A328,CZ$1))","v":""},{"$f":"IF($A328=\"N/A\",Ref!$B$36,INDEX(Ranks!$1:$1048576,$A328,DA$1))","v":""},{"$f":"IF($A328=\"N/A\",Ref!$B$36,INDEX(Ranks!$1:$1048576,$A328,DB$1))","v":""},{"$f":"IF($A328=\"N/A\",Ref!$B$36,INDEX(Ranks!$1:$1048576,$A328,DC$1))","v":""},{"$f":"IF($A328=\"N/A\",Ref!$B$36,INDEX(Ranks!$1:$1048576,$A328,DD$1))","v":""},{"$f":"IF($A328=\"N/A\",Ref!$B$36,INDEX(Ranks!$1:$1048576,$A328,DE$1))","v":""},{"$f":"IF($A328=\"N/A\",Ref!$B$36,INDEX(Ranks!$1:$1048576,$A328,DF$1))","v":""},{"$f":"IF($A328=\"N/A\",Ref!$B$36,INDEX(Ranks!$1:$1048576,$A328,DG$1))","v":""},{"$f":"IF($A328=\"N/A\",Ref!$B$36,INDEX(Ranks!$1:$1048576,$A328,DH$1))","v":""},{"$f":"IF($A328=\"N/A\",Ref!$B$36,INDEX(Ranks!$1:$1048576,$A328,DI$1))","v":""},{"$f":"IF($A328=\"N/A\",Ref!$B$36,INDEX(Ranks!$1:$1048576,$A328,DJ$1))","v":""},{"$f":"IF($A328=\"N/A\",Ref!$B$36,INDEX(Ranks!$1:$1048576,$A328,DK$1))","v":""},{"$f":"IF($A328=\"N/A\",Ref!$B$36,INDEX(Ranks!$1:$1048576,$A328,DL$1))","v":""},{"$f":"IF($A328=\"N/A\",Ref!$B$36,INDEX(Ranks!$1:$1048576,$A328,DM$1))","v":""},{"$f":"IF($A328=\"N/A\",Ref!$B$36,INDEX(Ranks!$1:$1048576,$A328,DN$1))","v":""},{"$f":"IF($A328=\"N/A\",Ref!$B$36,INDEX(Ranks!$1:$1048576,$A328,DO$1))","v":""},{"$f":"IF($A328=\"N/A\",Ref!$B$36,INDEX(Ranks!$1:$1048576,$A328,DP$1))","v":""},{"$f":"IF($A328=\"N/A\",Ref!$B$36,INDEX(Ranks!$1:$1048576,$A328,DQ$1))","v":""},{"$f":"IF($A328=\"N/A\",Ref!$B$36,INDEX(Ranks!$1:$1048576,$A328,DR$1))","v":""},{"$f":"IF($A328=\"N/A\",Ref!$B$36,INDEX(Ranks!$1:$1048576,$A328,DS$1))","v":""},{"$f":"IF($A328=\"N/A\",Ref!$B$36,INDEX(Ranks!$1:$1048576,$A328,DT$1))","v":""},{"$f":"IF($A328=\"N/A\",Ref!$B$36,INDEX(Ranks!$1:$1048576,$A328,DU$1))","v":""},{"$f":"IF($A328=\"N/A\",Ref!$B$36,INDEX(Ranks!$1:$1048576,$A328,DV$1))","v":""},{"$f":"IF($A328=\"N/A\",Ref!$B$36,INDEX(Ranks!$1:$1048576,$A328,DW$1))","v":""},{"$f":"IF($A328=\"N/A\",Ref!$B$36,INDEX(Ranks!$1:$1048576,$A328,DX$1))","v":""},{"$f":"IF($A328=\"N/A\",Ref!$B$36,INDEX(Ranks!$1:$1048576,$A328,DY$1))","v":""},{"$f":"IF($A328=\"N/A\",Ref!$B$36,INDEX(Ranks!$1:$1048576,$A328,DZ$1))","v":""},{"$f":"IF($A328=\"N/A\",Ref!$B$36,INDEX(Ranks!$1:$1048576,$A328,EA$1))","v":""},{"$f":"IF($A328=\"N/A\",Ref!$B$36,INDEX(Ranks!$1:$1048576,$A328,EB$1))","v":""}]
[{"$f":"IFERROR(MATCH('Portfolio Page'!L329,Ranks!L:L,0),\"N/A\")","v":"N/A"},null,{"$f":"IF($A329=\"N/A\",\"\",INDEX(Ranks!$1:$1048576,$A329,C$1))","v":""},{"$f":"IF($A329=\"N/A\",Ref!$B$36,INDEX(Ranks!$1:$1048576,$A329,D$1))","v":""},{"$f":"IF($A329=\"N/A\",Ref!$B$36,INDEX(Ranks!$1:$1048576,$A329,E$1))","v":""},{"$f":"IF($A329=\"N/A\",\"\",INDEX(Ranks!$1:$1048576,$A329,F$1))","v":""},{"$f":"IF($A329=\"N/A\",\"\",INDEX(Ranks!$1:$1048576,$A329,G$1))","v":""},{"$f":"IF($A329=\"N/A\",\"\",INDEX(Ranks!$1:$1048576,$A329,H$1))","v":""},{"$f":"IF($A329=\"N/A\",\"\",INDEX(Ranks!$1:$1048576,$A329,I$1))","v":""},{"$f":"IF($A329=\"N/A\",\"\",INDEX(Ranks!$1:$1048576,$A329,J$1))","v":""},{"$f":"IF($A329=\"N/A\",\"\",INDEX(Ranks!$1:$1048576,$A329,K$1))","v":""},null,{"$f":"IF($A329=\"N/A\",Ref!$B$36,INDEX(Ranks!$1:$1048576,$A329,M$1))","v":""},{"$f":"IF($A329=\"N/A\",Ref!$B$36,INDEX(Ranks!$1:$1048576,$A329,N$1))","v":""},{"$f":"IF($A329=\"N/A\",Ref!$B$36,INDEX(Ranks!$1:$1048576,$A329,O$1))","v":""},{"$f":"IF($A329=\"N/A\",Ref!$B$36,INDEX(Ranks!$1:$1048576,$A329,P$1))","v":""},{"$f":"IF($A329=\"N/A\",Ref!$B$36,INDEX(Ranks!$1:$1048576,$A329,Q$1))","v":""},{"$f":"IF($A329=\"N/A\",Ref!$B$36,INDEX(Ranks!$1:$1048576,$A329,R$1))","v":""},{"$f":"IF($A329=\"N/A\",Ref!$B$36,INDEX(Ranks!$1:$1048576,$A329,S$1))","v":""},{"$f":"IF($A329=\"N/A\",Ref!$B$36,INDEX(Ranks!$1:$1048576,$A329,T$1))","v":""},{"$f":"IF($A329=\"N/A\",Ref!$B$36,INDEX(Ranks!$1:$1048576,$A329,U$1))","v":""},{"$f":"IF($A329=\"N/A\",Ref!$B$36,INDEX(Ranks!$1:$1048576,$A329,V$1))","v":""},{"$f":"IF($A329=\"N/A\",Ref!$B$36,INDEX(Ranks!$1:$1048576,$A329,W$1))","v":""},{"$f":"IF($A329=\"N/A\",Ref!$B$36,INDEX(Ranks!$1:$1048576,$A329,X$1))","v":""},{"$f":"IF($A329=\"N/A\",Ref!$B$36,INDEX(Ranks!$1:$1048576,$A329,Y$1))","v":""},{"$f":"IF($A329=\"N/A\",Ref!$B$36,INDEX(Ranks!$1:$1048576,$A329,Z$1))","v":""},{"$f":"IF($A329=\"N/A\",Ref!$B$36,INDEX(Ranks!$1:$1048576,$A329,AA$1))","v":""},{"$f":"IF($A329=\"N/A\",Ref!$B$36,INDEX(Ranks!$1:$1048576,$A329,AB$1))","v":""},{"$f":"IF($A329=\"N/A\",Ref!$B$36,INDEX(Ranks!$1:$1048576,$A329,AC$1))","v":""},{"$f":"IF($A329=\"N/A\",Ref!$B$36,INDEX(Ranks!$1:$1048576,$A329,AD$1))","v":""},{"$f":"IF($A329=\"N/A\",Ref!$B$36,INDEX(Ranks!$1:$1048576,$A329,AE$1))","v":""},{"$f":"IF($A329=\"N/A\",Ref!$B$36,INDEX(Ranks!$1:$1048576,$A329,AF$1))","v":""},{"$f":"IF($A329=\"N/A\",Ref!$B$36,INDEX(Ranks!$1:$1048576,$A329,AG$1))","v":""},{"$f":"IF($A329=\"N/A\",Ref!$B$36,INDEX(Ranks!$1:$1048576,$A329,AH$1))","v":""},{"$f":"IF($A329=\"N/A\",Ref!$B$36,INDEX(Ranks!$1:$1048576,$A329,AI$1))","v":""},{"$f":"IF($A329=\"N/A\",Ref!$B$36,INDEX(Ranks!$1:$1048576,$A329,AJ$1))","v":""},{"$f":"IF($A329=\"N/A\",Ref!$B$36,INDEX(Ranks!$1:$1048576,$A329,AK$1))","v":""},{"$f":"IF($A329=\"N/A\",Ref!$B$36,INDEX(Ranks!$1:$1048576,$A329,AL$1))","v":""},{"$f":"IF($A329=\"N/A\",Ref!$B$36,INDEX(Ranks!$1:$1048576,$A329,AM$1))","v":""},{"$f":"IF($A329=\"N/A\",Ref!$B$36,INDEX(Ranks!$1:$1048576,$A329,AN$1))","v":""},{"$f":"IF($A329=\"N/A\",Ref!$B$36,INDEX(Ranks!$1:$1048576,$A329,AO$1))","v":""},{"$f":"IF($A329=\"N/A\",Ref!$B$36,INDEX(Ranks!$1:$1048576,$A329,AP$1))","v":""},{"$f":"IF($A329=\"N/A\",Ref!$B$36,INDEX(Ranks!$1:$1048576,$A329,AQ$1))","v":""},{"$f":"IF($A329=\"N/A\",Ref!$B$36,INDEX(Ranks!$1:$1048576,$A329,AR$1))","v":""},{"$f":"IF($A329=\"N/A\",Ref!$B$36,INDEX(Ranks!$1:$1048576,$A329,AS$1))","v":""},{"$f":"IF($A329=\"N/A\",Ref!$B$36,INDEX(Ranks!$1:$1048576,$A329,AT$1))","v":""},{"$f":"IF($A329=\"N/A\",Ref!$B$36,INDEX(Ranks!$1:$1048576,$A329,AU$1))","v":""},{"$f":"IF($A329=\"N/A\",Ref!$B$36,INDEX(Ranks!$1:$1048576,$A329,AV$1))","v":""},{"$f":"IF($A329=\"N/A\",Ref!$B$36,INDEX(Ranks!$1:$1048576,$A329,AW$1))","v":""},{"$f":"IF($A329=\"N/A\",Ref!$B$36,INDEX(Ranks!$1:$1048576,$A329,AX$1))","v":""},{"$f":"IF($A329=\"N/A\",Ref!$B$36,INDEX(Ranks!$1:$1048576,$A329,AY$1))","v":""},{"$f":"IF($A329=\"N/A\",Ref!$B$36,INDEX(Ranks!$1:$1048576,$A329,AZ$1))","v":""},{"$f":"IF($A329=\"N/A\",Ref!$B$36,INDEX(Ranks!$1:$1048576,$A329,BA$1))","v":""},{"$f":"IF($A329=\"N/A\",Ref!$B$36,INDEX(Ranks!$1:$1048576,$A329,BB$1))","v":""},{"$f":"IF($A329=\"N/A\",Ref!$B$36,INDEX(Ranks!$1:$1048576,$A329,BC$1))","v":""},{"$f":"IF($A329=\"N/A\",Ref!$B$36,INDEX(Ranks!$1:$1048576,$A329,BD$1))","v":""},{"$f":"IF($A329=\"N/A\",Ref!$B$36,INDEX(Ranks!$1:$1048576,$A329,BE$1))","v":""},{"$f":"IF($A329=\"N/A\",Ref!$B$36,INDEX(Ranks!$1:$1048576,$A329,BF$1))","v":""},{"$f":"IF($A329=\"N/A\",Ref!$B$36,INDEX(Ranks!$1:$1048576,$A329,BG$1))","v":""},{"$f":"IF($A329=\"N/A\",Ref!$B$36,INDEX(Ranks!$1:$1048576,$A329,BH$1))","v":""},{"$f":"IF($A329=\"N/A\",Ref!$B$36,INDEX(Ranks!$1:$1048576,$A329,BI$1))","v":""},{"$f":"IF($A329=\"N/A\",Ref!$B$36,INDEX(Ranks!$1:$1048576,$A329,BJ$1))","v":""},{"$f":"IF($A329=\"N/A\",Ref!$B$36,INDEX(Ranks!$1:$1048576,$A329,BK$1))","v":""},{"$f":"IF($A329=\"N/A\",Ref!$B$36,INDEX(Ranks!$1:$1048576,$A329,BL$1))","v":""},{"$f":"IF($A329=\"N/A\",Ref!$B$36,INDEX(Ranks!$1:$1048576,$A329,BM$1))","v":""},{"$f":"IF($A329=\"N/A\",Ref!$B$36,INDEX(Ranks!$1:$1048576,$A329,BN$1))","v":""},{"$f":"IF($A329=\"N/A\",Ref!$B$36,INDEX(Ranks!$1:$1048576,$A329,BO$1))","v":""},{"$f":"IF($A329=\"N/A\",Ref!$B$36,INDEX(Ranks!$1:$1048576,$A329,BP$1))","v":""},{"$f":"IF($A329=\"N/A\",Ref!$B$36,INDEX(Ranks!$1:$1048576,$A329,BQ$1))","v":""},{"$f":"IF($A329=\"N/A\",Ref!$B$36,INDEX(Ranks!$1:$1048576,$A329,BR$1))","v":""},{"$f":"IF($A329=\"N/A\",Ref!$B$36,INDEX(Ranks!$1:$1048576,$A329,BS$1))","v":""},{"$f":"IF($A329=\"N/A\",Ref!$B$36,INDEX(Ranks!$1:$1048576,$A329,BT$1))","v":""},{"$f":"IF($A329=\"N/A\",Ref!$B$36,INDEX(Ranks!$1:$1048576,$A329,BU$1))","v":""},{"$f":"IF($A329=\"N/A\",Ref!$B$36,INDEX(Ranks!$1:$1048576,$A329,BV$1))","v":""},{"$f":"IF($A329=\"N/A\",Ref!$B$36,INDEX(Ranks!$1:$1048576,$A329,BW$1))","v":""},{"$f":"IF($A329=\"N/A\",Ref!$B$36,INDEX(Ranks!$1:$1048576,$A329,BX$1))","v":""},{"$f":"IF($A329=\"N/A\",Ref!$B$36,INDEX(Ranks!$1:$1048576,$A329,BY$1))","v":""},{"$f":"IF($A329=\"N/A\",Ref!$B$36,INDEX(Ranks!$1:$1048576,$A329,BZ$1))","v":""},{"$f":"IF($A329=\"N/A\",Ref!$B$36,INDEX(Ranks!$1:$1048576,$A329,CA$1))","v":""},{"$f":"IF($A329=\"N/A\",Ref!$B$36,INDEX(Ranks!$1:$1048576,$A329,CB$1))","v":""},{"$f":"IF($A329=\"N/A\",Ref!$B$36,INDEX(Ranks!$1:$1048576,$A329,CC$1))","v":""},{"$f":"IF($A329=\"N/A\",Ref!$B$36,INDEX(Ranks!$1:$1048576,$A329,CD$1))","v":""},{"$f":"IF($A329=\"N/A\",Ref!$B$36,INDEX(Ranks!$1:$1048576,$A329,CE$1))","v":""},{"$f":"IF($A329=\"N/A\",Ref!$B$36,INDEX(Ranks!$1:$1048576,$A329,CF$1))","v":""},{"$f":"IF($A329=\"N/A\",Ref!$B$36,INDEX(Ranks!$1:$1048576,$A329,CG$1))","v":""},{"$f":"IF($A329=\"N/A\",Ref!$B$36,INDEX(Ranks!$1:$1048576,$A329,CH$1))","v":""},{"$f":"IF($A329=\"N/A\",Ref!$B$36,INDEX(Ranks!$1:$1048576,$A329,CI$1))","v":""},{"$f":"IF($A329=\"N/A\",Ref!$B$36,INDEX(Ranks!$1:$1048576,$A329,CJ$1))","v":""},{"$f":"IF($A329=\"N/A\",Ref!$B$36,INDEX(Ranks!$1:$1048576,$A329,CK$1))","v":""},{"$f":"IF($A329=\"N/A\",Ref!$B$36,INDEX(Ranks!$1:$1048576,$A329,CL$1))","v":""},{"$f":"IF($A329=\"N/A\",Ref!$B$36,INDEX(Ranks!$1:$1048576,$A329,CM$1))","v":""},{"$f":"IF($A329=\"N/A\",Ref!$B$36,INDEX(Ranks!$1:$1048576,$A329,CN$1))","v":""},{"$f":"IF($A329=\"N/A\",Ref!$B$36,INDEX(Ranks!$1:$1048576,$A329,CO$1))","v":""},{"$f":"IF($A329=\"N/A\",Ref!$B$36,INDEX(Ranks!$1:$1048576,$A329,CP$1))","v":""},{"$f":"IF($A329=\"N/A\",Ref!$B$36,INDEX(Ranks!$1:$1048576,$A329,CQ$1))","v":""},{"$f":"IF($A329=\"N/A\",Ref!$B$36,INDEX(Ranks!$1:$1048576,$A329,CR$1))","v":""},{"$f":"IF($A329=\"N/A\",Ref!$B$36,INDEX(Ranks!$1:$1048576,$A329,CS$1))","v":""},{"$f":"IF($A329=\"N/A\",Ref!$B$36,INDEX(Ranks!$1:$1048576,$A329,CT$1))","v":""},{"$f":"IF($A329=\"N/A\",Ref!$B$36,INDEX(Ranks!$1:$1048576,$A329,CU$1))","v":""},{"$f":"IF($A329=\"N/A\",Ref!$B$36,INDEX(Ranks!$1:$1048576,$A329,CV$1))","v":""},{"$f":"IF($A329=\"N/A\",Ref!$B$36,INDEX(Ranks!$1:$1048576,$A329,CW$1))","v":""},{"$f":"IF($A329=\"N/A\",Ref!$B$36,INDEX(Ranks!$1:$1048576,$A329,CX$1))","v":""},{"$f":"IF($A329=\"N/A\",Ref!$B$36,INDEX(Ranks!$1:$1048576,$A329,CY$1))","v":""},{"$f":"IF($A329=\"N/A\",Ref!$B$36,INDEX(Ranks!$1:$1048576,$A329,CZ$1))","v":""},{"$f":"IF($A329=\"N/A\",Ref!$B$36,INDEX(Ranks!$1:$1048576,$A329,DA$1))","v":""},{"$f":"IF($A329=\"N/A\",Ref!$B$36,INDEX(Ranks!$1:$1048576,$A329,DB$1))","v":""},{"$f":"IF($A329=\"N/A\",Ref!$B$36,INDEX(Ranks!$1:$1048576,$A329,DC$1))","v":""},{"$f":"IF($A329=\"N/A\",Ref!$B$36,INDEX(Ranks!$1:$1048576,$A329,DD$1))","v":""},{"$f":"IF($A329=\"N/A\",Ref!$B$36,INDEX(Ranks!$1:$1048576,$A329,DE$1))","v":""},{"$f":"IF($A329=\"N/A\",Ref!$B$36,INDEX(Ranks!$1:$1048576,$A329,DF$1))","v":""},{"$f":"IF($A329=\"N/A\",Ref!$B$36,INDEX(Ranks!$1:$1048576,$A329,DG$1))","v":""},{"$f":"IF($A329=\"N/A\",Ref!$B$36,INDEX(Ranks!$1:$1048576,$A329,DH$1))","v":""},{"$f":"IF($A329=\"N/A\",Ref!$B$36,INDEX(Ranks!$1:$1048576,$A329,DI$1))","v":""},{"$f":"IF($A329=\"N/A\",Ref!$B$36,INDEX(Ranks!$1:$1048576,$A329,DJ$1))","v":""},{"$f":"IF($A329=\"N/A\",Ref!$B$36,INDEX(Ranks!$1:$1048576,$A329,DK$1))","v":""},{"$f":"IF($A329=\"N/A\",Ref!$B$36,INDEX(Ranks!$1:$1048576,$A329,DL$1))","v":""},{"$f":"IF($A329=\"N/A\",Ref!$B$36,INDEX(Ranks!$1:$1048576,$A329,DM$1))","v":""},{"$f":"IF($A329=\"N/A\",Ref!$B$36,INDEX(Ranks!$1:$1048576,$A329,DN$1))","v":""},{"$f":"IF($A329=\"N/A\",Ref!$B$36,INDEX(Ranks!$1:$1048576,$A329,DO$1))","v":""},{"$f":"IF($A329=\"N/A\",Ref!$B$36,INDEX(Ranks!$1:$1048576,$A329,DP$1))","v":""},{"$f":"IF($A329=\"N/A\",Ref!$B$36,INDEX(Ranks!$1:$1048576,$A329,DQ$1))","v":""},{"$f":"IF($A329=\"N/A\",Ref!$B$36,INDEX(Ranks!$1:$1048576,$A329,DR$1))","v":""},{"$f":"IF($A329=\"N/A\",Ref!$B$36,INDEX(Ranks!$1:$1048576,$A329,DS$1))","v":""},{"$f":"IF($A329=\"N/A\",Ref!$B$36,INDEX(Ranks!$1:$1048576,$A329,DT$1))","v":""},{"$f":"IF($A329=\"N/A\",Ref!$B$36,INDEX(Ranks!$1:$1048576,$A329,DU$1))","v":""},{"$f":"IF($A329=\"N/A\",Ref!$B$36,INDEX(Ranks!$1:$1048576,$A329,DV$1))","v":""},{"$f":"IF($A329=\"N/A\",Ref!$B$36,INDEX(Ranks!$1:$1048576,$A329,DW$1))","v":""},{"$f":"IF($A329=\"N/A\",Ref!$B$36,INDEX(Ranks!$1:$1048576,$A329,DX$1))","v":""},{"$f":"IF($A329=\"N/A\",Ref!$B$36,INDEX(Ranks!$1:$1048576,$A329,DY$1))","v":""},{"$f":"IF($A329=\"N/A\",Ref!$B$36,INDEX(Ranks!$1:$1048576,$A329,DZ$1))","v":""},{"$f":"IF($A329=\"N/A\",Ref!$B$36,INDEX(Ranks!$1:$1048576,$A329,EA$1))","v":""},{"$f":"IF($A329=\"N/A\",Ref!$B$36,INDEX(Ranks!$1:$1048576,$A329,EB$1))","v":""}]
[{"$f":"IFERROR(MATCH('Portfolio Page'!L330,Ranks!L:L,0),\"N/A\")","v":"N/A"},null,{"$f":"IF($A330=\"N/A\",\"\",INDEX(Ranks!$1:$1048576,$A330,C$1))","v":""},{"$f":"IF($A330=\"N/A\",Ref!$B$36,INDEX(Ranks!$1:$1048576,$A330,D$1))","v":""},{"$f":"IF($A330=\"N/A\",Ref!$B$36,INDEX(Ranks!$1:$1048576,$A330,E$1))","v":""},{"$f":"IF($A330=\"N/A\",\"\",INDEX(Ranks!$1:$1048576,$A330,F$1))","v":""},{"$f":"IF($A330=\"N/A\",\"\",INDEX(Ranks!$1:$1048576,$A330,G$1))","v":""},{"$f":"IF($A330=\"N/A\",\"\",INDEX(Ranks!$1:$1048576,$A330,H$1))","v":""},{"$f":"IF($A330=\"N/A\",\"\",INDEX(Ranks!$1:$1048576,$A330,I$1))","v":""},{"$f":"IF($A330=\"N/A\",\"\",INDEX(Ranks!$1:$1048576,$A330,J$1))","v":""},{"$f":"IF($A330=\"N/A\",\"\",INDEX(Ranks!$1:$1048576,$A330,K$1))","v":""},null,{"$f":"IF($A330=\"N/A\",Ref!$B$36,INDEX(Ranks!$1:$1048576,$A330,M$1))","v":""},{"$f":"IF($A330=\"N/A\",Ref!$B$36,INDEX(Ranks!$1:$1048576,$A330,N$1))","v":""},{"$f":"IF($A330=\"N/A\",Ref!$B$36,INDEX(Ranks!$1:$1048576,$A330,O$1))","v":""},{"$f":"IF($A330=\"N/A\",Ref!$B$36,INDEX(Ranks!$1:$1048576,$A330,P$1))","v":""},{"$f":"IF($A330=\"N/A\",Ref!$B$36,INDEX(Ranks!$1:$1048576,$A330,Q$1))","v":""},{"$f":"IF($A330=\"N/A\",Ref!$B$36,INDEX(Ranks!$1:$1048576,$A330,R$1))","v":""},{"$f":"IF($A330=\"N/A\",Ref!$B$36,INDEX(Ranks!$1:$1048576,$A330,S$1))","v":""},{"$f":"IF($A330=\"N/A\",Ref!$B$36,INDEX(Ranks!$1:$1048576,$A330,T$1))","v":""},{"$f":"IF($A330=\"N/A\",Ref!$B$36,INDEX(Ranks!$1:$1048576,$A330,U$1))","v":""},{"$f":"IF($A330=\"N/A\",Ref!$B$36,INDEX(Ranks!$1:$1048576,$A330,V$1))","v":""},{"$f":"IF($A330=\"N/A\",Ref!$B$36,INDEX(Ranks!$1:$1048576,$A330,W$1))","v":""},{"$f":"IF($A330=\"N/A\",Ref!$B$36,INDEX(Ranks!$1:$1048576,$A330,X$1))","v":""},{"$f":"IF($A330=\"N/A\",Ref!$B$36,INDEX(Ranks!$1:$1048576,$A330,Y$1))","v":""},{"$f":"IF($A330=\"N/A\",Ref!$B$36,INDEX(Ranks!$1:$1048576,$A330,Z$1))","v":""},{"$f":"IF($A330=\"N/A\",Ref!$B$36,INDEX(Ranks!$1:$1048576,$A330,AA$1))","v":""},{"$f":"IF($A330=\"N/A\",Ref!$B$36,INDEX(Ranks!$1:$1048576,$A330,AB$1))","v":""},{"$f":"IF($A330=\"N/A\",Ref!$B$36,INDEX(Ranks!$1:$1048576,$A330,AC$1))","v":""},{"$f":"IF($A330=\"N/A\",Ref!$B$36,INDEX(Ranks!$1:$1048576,$A330,AD$1))","v":""},{"$f":"IF($A330=\"N/A\",Ref!$B$36,INDEX(Ranks!$1:$1048576,$A330,AE$1))","v":""},{"$f":"IF($A330=\"N/A\",Ref!$B$36,INDEX(Ranks!$1:$1048576,$A330,AF$1))","v":""},{"$f":"IF($A330=\"N/A\",Ref!$B$36,INDEX(Ranks!$1:$1048576,$A330,AG$1))","v":""},{"$f":"IF($A330=\"N/A\",Ref!$B$36,INDEX(Ranks!$1:$1048576,$A330,AH$1))","v":""},{"$f":"IF($A330=\"N/A\",Ref!$B$36,INDEX(Ranks!$1:$1048576,$A330,AI$1))","v":""},{"$f":"IF($A330=\"N/A\",Ref!$B$36,INDEX(Ranks!$1:$1048576,$A330,AJ$1))","v":""},{"$f":"IF($A330=\"N/A\",Ref!$B$36,INDEX(Ranks!$1:$1048576,$A330,AK$1))","v":""},{"$f":"IF($A330=\"N/A\",Ref!$B$36,INDEX(Ranks!$1:$1048576,$A330,AL$1))","v":""},{"$f":"IF($A330=\"N/A\",Ref!$B$36,INDEX(Ranks!$1:$1048576,$A330,AM$1))","v":""},{"$f":"IF($A330=\"N/A\",Ref!$B$36,INDEX(Ranks!$1:$1048576,$A330,AN$1))","v":""},{"$f":"IF($A330=\"N/A\",Ref!$B$36,INDEX(Ranks!$1:$1048576,$A330,AO$1))","v":""},{"$f":"IF($A330=\"N/A\",Ref!$B$36,INDEX(Ranks!$1:$1048576,$A330,AP$1))","v":""},{"$f":"IF($A330=\"N/A\",Ref!$B$36,INDEX(Ranks!$1:$1048576,$A330,AQ$1))","v":""},{"$f":"IF($A330=\"N/A\",Ref!$B$36,INDEX(Ranks!$1:$1048576,$A330,AR$1))","v":""},{"$f":"IF($A330=\"N/A\",Ref!$B$36,INDEX(Ranks!$1:$1048576,$A330,AS$1))","v":""},{"$f":"IF($A330=\"N/A\",Ref!$B$36,INDEX(Ranks!$1:$1048576,$A330,AT$1))","v":""},{"$f":"IF($A330=\"N/A\",Ref!$B$36,INDEX(Ranks!$1:$1048576,$A330,AU$1))","v":""},{"$f":"IF($A330=\"N/A\",Ref!$B$36,INDEX(Ranks!$1:$1048576,$A330,AV$1))","v":""},{"$f":"IF($A330=\"N/A\",Ref!$B$36,INDEX(Ranks!$1:$1048576,$A330,AW$1))","v":""},{"$f":"IF($A330=\"N/A\",Ref!$B$36,INDEX(Ranks!$1:$1048576,$A330,AX$1))","v":""},{"$f":"IF($A330=\"N/A\",Ref!$B$36,INDEX(Ranks!$1:$1048576,$A330,AY$1))","v":""},{"$f":"IF($A330=\"N/A\",Ref!$B$36,INDEX(Ranks!$1:$1048576,$A330,AZ$1))","v":""},{"$f":"IF($A330=\"N/A\",Ref!$B$36,INDEX(Ranks!$1:$1048576,$A330,BA$1))","v":""},{"$f":"IF($A330=\"N/A\",Ref!$B$36,INDEX(Ranks!$1:$1048576,$A330,BB$1))","v":""},{"$f":"IF($A330=\"N/A\",Ref!$B$36,INDEX(Ranks!$1:$1048576,$A330,BC$1))","v":""},{"$f":"IF($A330=\"N/A\",Ref!$B$36,INDEX(Ranks!$1:$1048576,$A330,BD$1))","v":""},{"$f":"IF($A330=\"N/A\",Ref!$B$36,INDEX(Ranks!$1:$1048576,$A330,BE$1))","v":""},{"$f":"IF($A330=\"N/A\",Ref!$B$36,INDEX(Ranks!$1:$1048576,$A330,BF$1))","v":""},{"$f":"IF($A330=\"N/A\",Ref!$B$36,INDEX(Ranks!$1:$1048576,$A330,BG$1))","v":""},{"$f":"IF($A330=\"N/A\",Ref!$B$36,INDEX(Ranks!$1:$1048576,$A330,BH$1))","v":""},{"$f":"IF($A330=\"N/A\",Ref!$B$36,INDEX(Ranks!$1:$1048576,$A330,BI$1))","v":""},{"$f":"IF($A330=\"N/A\",Ref!$B$36,INDEX(Ranks!$1:$1048576,$A330,BJ$1))","v":""},{"$f":"IF($A330=\"N/A\",Ref!$B$36,INDEX(Ranks!$1:$1048576,$A330,BK$1))","v":""},{"$f":"IF($A330=\"N/A\",Ref!$B$36,INDEX(Ranks!$1:$1048576,$A330,BL$1))","v":""},{"$f":"IF($A330=\"N/A\",Ref!$B$36,INDEX(Ranks!$1:$1048576,$A330,BM$1))","v":""},{"$f":"IF($A330=\"N/A\",Ref!$B$36,INDEX(Ranks!$1:$1048576,$A330,BN$1))","v":""},{"$f":"IF($A330=\"N/A\",Ref!$B$36,INDEX(Ranks!$1:$1048576,$A330,BO$1))","v":""},{"$f":"IF($A330=\"N/A\",Ref!$B$36,INDEX(Ranks!$1:$1048576,$A330,BP$1))","v":""},{"$f":"IF($A330=\"N/A\",Ref!$B$36,INDEX(Ranks!$1:$1048576,$A330,BQ$1))","v":""},{"$f":"IF($A330=\"N/A\",Ref!$B$36,INDEX(Ranks!$1:$1048576,$A330,BR$1))","v":""},{"$f":"IF($A330=\"N/A\",Ref!$B$36,INDEX(Ranks!$1:$1048576,$A330,BS$1))","v":""},{"$f":"IF($A330=\"N/A\",Ref!$B$36,INDEX(Ranks!$1:$1048576,$A330,BT$1))","v":""},{"$f":"IF($A330=\"N/A\",Ref!$B$36,INDEX(Ranks!$1:$1048576,$A330,BU$1))","v":""},{"$f":"IF($A330=\"N/A\",Ref!$B$36,INDEX(Ranks!$1:$1048576,$A330,BV$1))","v":""},{"$f":"IF($A330=\"N/A\",Ref!$B$36,INDEX(Ranks!$1:$1048576,$A330,BW$1))","v":""},{"$f":"IF($A330=\"N/A\",Ref!$B$36,INDEX(Ranks!$1:$1048576,$A330,BX$1))","v":""},{"$f":"IF($A330=\"N/A\",Ref!$B$36,INDEX(Ranks!$1:$1048576,$A330,BY$1))","v":""},{"$f":"IF($A330=\"N/A\",Ref!$B$36,INDEX(Ranks!$1:$1048576,$A330,BZ$1))","v":""},{"$f":"IF($A330=\"N/A\",Ref!$B$36,INDEX(Ranks!$1:$1048576,$A330,CA$1))","v":""},{"$f":"IF($A330=\"N/A\",Ref!$B$36,INDEX(Ranks!$1:$1048576,$A330,CB$1))","v":""},{"$f":"IF($A330=\"N/A\",Ref!$B$36,INDEX(Ranks!$1:$1048576,$A330,CC$1))","v":""},{"$f":"IF($A330=\"N/A\",Ref!$B$36,INDEX(Ranks!$1:$1048576,$A330,CD$1))","v":""},{"$f":"IF($A330=\"N/A\",Ref!$B$36,INDEX(Ranks!$1:$1048576,$A330,CE$1))","v":""},{"$f":"IF($A330=\"N/A\",Ref!$B$36,INDEX(Ranks!$1:$1048576,$A330,CF$1))","v":""},{"$f":"IF($A330=\"N/A\",Ref!$B$36,INDEX(Ranks!$1:$1048576,$A330,CG$1))","v":""},{"$f":"IF($A330=\"N/A\",Ref!$B$36,INDEX(Ranks!$1:$1048576,$A330,CH$1))","v":""},{"$f":"IF($A330=\"N/A\",Ref!$B$36,INDEX(Ranks!$1:$1048576,$A330,CI$1))","v":""},{"$f":"IF($A330=\"N/A\",Ref!$B$36,INDEX(Ranks!$1:$1048576,$A330,CJ$1))","v":""},{"$f":"IF($A330=\"N/A\",Ref!$B$36,INDEX(Ranks!$1:$1048576,$A330,CK$1))","v":""},{"$f":"IF($A330=\"N/A\",Ref!$B$36,INDEX(Ranks!$1:$1048576,$A330,CL$1))","v":""},{"$f":"IF($A330=\"N/A\",Ref!$B$36,INDEX(Ranks!$1:$1048576,$A330,CM$1))","v":""},{"$f":"IF($A330=\"N/A\",Ref!$B$36,INDEX(Ranks!$1:$1048576,$A330,CN$1))","v":""},{"$f":"IF($A330=\"N/A\",Ref!$B$36,INDEX(Ranks!$1:$1048576,$A330,CO$1))","v":""},{"$f":"IF($A330=\"N/A\",Ref!$B$36,INDEX(Ranks!$1:$1048576,$A330,CP$1))","v":""},{"$f":"IF($A330=\"N/A\",Ref!$B$36,INDEX(Ranks!$1:$1048576,$A330,CQ$1))","v":""},{"$f":"IF($A330=\"N/A\",Ref!$B$36,INDEX(Ranks!$1:$1048576,$A330,CR$1))","v":""},{"$f":"IF($A330=\"N/A\",Ref!$B$36,INDEX(Ranks!$1:$1048576,$A330,CS$1))","v":""},{"$f":"IF($A330=\"N/A\",Ref!$B$36,INDEX(Ranks!$1:$1048576,$A330,CT$1))","v":""},{"$f":"IF($A330=\"N/A\",Ref!$B$36,INDEX(Ranks!$1:$1048576,$A330,CU$1))","v":""},{"$f":"IF($A330=\"N/A\",Ref!$B$36,INDEX(Ranks!$1:$1048576,$A330,CV$1))","v":""},{"$f":"IF($A330=\"N/A\",Ref!$B$36,INDEX(Ranks!$1:$1048576,$A330,CW$1))","v":""},{"$f":"IF($A330=\"N/A\",Ref!$B$36,INDEX(Ranks!$1:$1048576,$A330,CX$1))","v":""},{"$f":"IF($A330=\"N/A\",Ref!$B$36,INDEX(Ranks!$1:$1048576,$A330,CY$1))","v":""},{"$f":"IF($A330=\"N/A\",Ref!$B$36,INDEX(Ranks!$1:$1048576,$A330,CZ$1))","v":""},{"$f":"IF($A330=\"N/A\",Ref!$B$36,INDEX(Ranks!$1:$1048576,$A330,DA$1))","v":""},{"$f":"IF($A330=\"N/A\",Ref!$B$36,INDEX(Ranks!$1:$1048576,$A330,DB$1))","v":""},{"$f":"IF($A330=\"N/A\",Ref!$B$36,INDEX(Ranks!$1:$1048576,$A330,DC$1))","v":""},{"$f":"IF($A330=\"N/A\",Ref!$B$36,INDEX(Ranks!$1:$1048576,$A330,DD$1))","v":""},{"$f":"IF($A330=\"N/A\",Ref!$B$36,INDEX(Ranks!$1:$1048576,$A330,DE$1))","v":""},{"$f":"IF($A330=\"N/A\",Ref!$B$36,INDEX(Ranks!$1:$1048576,$A330,DF$1))","v":""},{"$f":"IF($A330=\"N/A\",Ref!$B$36,INDEX(Ranks!$1:$1048576,$A330,DG$1))","v":""},{"$f":"IF($A330=\"N/A\",Ref!$B$36,INDEX(Ranks!$1:$1048576,$A330,DH$1))","v":""},{"$f":"IF($A330=\"N/A\",Ref!$B$36,INDEX(Ranks!$1:$1048576,$A330,DI$1))","v":""},{"$f":"IF($A330=\"N/A\",Ref!$B$36,INDEX(Ranks!$1:$1048576,$A330,DJ$1))","v":""},{"$f":"IF($A330=\"N/A\",Ref!$B$36,INDEX(Ranks!$1:$1048576,$A330,DK$1))","v":""},{"$f":"IF($A330=\"N/A\",Ref!$B$36,INDEX(Ranks!$1:$1048576,$A330,DL$1))","v":""},{"$f":"IF($A330=\"N/A\",Ref!$B$36,INDEX(Ranks!$1:$1048576,$A330,DM$1))","v":""},{"$f":"IF($A330=\"N/A\",Ref!$B$36,INDEX(Ranks!$1:$1048576,$A330,DN$1))","v":""},{"$f":"IF($A330=\"N/A\",Ref!$B$36,INDEX(Ranks!$1:$1048576,$A330,DO$1))","v":""},{"$f":"IF($A330=\"N/A\",Ref!$B$36,INDEX(Ranks!$1:$1048576,$A330,DP$1))","v":""},{"$f":"IF($A330=\"N/A\",Ref!$B$36,INDEX(Ranks!$1:$1048576,$A330,DQ$1))","v":""},{"$f":"IF($A330=\"N/A\",Ref!$B$36,INDEX(Ranks!$1:$1048576,$A330,DR$1))","v":""},{"$f":"IF($A330=\"N/A\",Ref!$B$36,INDEX(Ranks!$1:$1048576,$A330,DS$1))","v":""},{"$f":"IF($A330=\"N/A\",Ref!$B$36,INDEX(Ranks!$1:$1048576,$A330,DT$1))","v":""},{"$f":"IF($A330=\"N/A\",Ref!$B$36,INDEX(Ranks!$1:$1048576,$A330,DU$1))","v":""},{"$f":"IF($A330=\"N/A\",Ref!$B$36,INDEX(Ranks!$1:$1048576,$A330,DV$1))","v":""},{"$f":"IF($A330=\"N/A\",Ref!$B$36,INDEX(Ranks!$1:$1048576,$A330,DW$1))","v":""},{"$f":"IF($A330=\"N/A\",Ref!$B$36,INDEX(Ranks!$1:$1048576,$A330,DX$1))","v":""},{"$f":"IF($A330=\"N/A\",Ref!$B$36,INDEX(Ranks!$1:$1048576,$A330,DY$1))","v":""},{"$f":"IF($A330=\"N/A\",Ref!$B$36,INDEX(Ranks!$1:$1048576,$A330,DZ$1))","v":""},{"$f":"IF($A330=\"N/A\",Ref!$B$36,INDEX(Ranks!$1:$1048576,$A330,EA$1))","v":""},{"$f":"IF($A330=\"N/A\",Ref!$B$36,INDEX(Ranks!$1:$1048576,$A330,EB$1))","v":""}]
[{"$f":"IFERROR(MATCH('Portfolio Page'!L331,Ranks!L:L,0),\"N/A\")","v":"N/A"},null,{"$f":"IF($A331=\"N/A\",\"\",INDEX(Ranks!$1:$1048576,$A331,C$1))","v":""},{"$f":"IF($A331=\"N/A\",Ref!$B$36,INDEX(Ranks!$1:$1048576,$A331,D$1))","v":""},{"$f":"IF($A331=\"N/A\",Ref!$B$36,INDEX(Ranks!$1:$1048576,$A331,E$1))","v":""},{"$f":"IF($A331=\"N/A\",\"\",INDEX(Ranks!$1:$1048576,$A331,F$1))","v":""},{"$f":"IF($A331=\"N/A\",\"\",INDEX(Ranks!$1:$1048576,$A331,G$1))","v":""},{"$f":"IF($A331=\"N/A\",\"\",INDEX(Ranks!$1:$1048576,$A331,H$1))","v":""},{"$f":"IF($A331=\"N/A\",\"\",INDEX(Ranks!$1:$1048576,$A331,I$1))","v":""},{"$f":"IF($A331=\"N/A\",\"\",INDEX(Ranks!$1:$1048576,$A331,J$1))","v":""},{"$f":"IF($A331=\"N/A\",\"\",INDEX(Ranks!$1:$1048576,$A331,K$1))","v":""},null,{"$f":"IF($A331=\"N/A\",Ref!$B$36,INDEX(Ranks!$1:$1048576,$A331,M$1))","v":""},{"$f":"IF($A331=\"N/A\",Ref!$B$36,INDEX(Ranks!$1:$1048576,$A331,N$1))","v":""},{"$f":"IF($A331=\"N/A\",Ref!$B$36,INDEX(Ranks!$1:$1048576,$A331,O$1))","v":""},{"$f":"IF($A331=\"N/A\",Ref!$B$36,INDEX(Ranks!$1:$1048576,$A331,P$1))","v":""},{"$f":"IF($A331=\"N/A\",Ref!$B$36,INDEX(Ranks!$1:$1048576,$A331,Q$1))","v":""},{"$f":"IF($A331=\"N/A\",Ref!$B$36,INDEX(Ranks!$1:$1048576,$A331,R$1))","v":""},{"$f":"IF($A331=\"N/A\",Ref!$B$36,INDEX(Ranks!$1:$1048576,$A331,S$1))","v":""},{"$f":"IF($A331=\"N/A\",Ref!$B$36,INDEX(Ranks!$1:$1048576,$A331,T$1))","v":""},{"$f":"IF($A331=\"N/A\",Ref!$B$36,INDEX(Ranks!$1:$1048576,$A331,U$1))","v":""},{"$f":"IF($A331=\"N/A\",Ref!$B$36,INDEX(Ranks!$1:$1048576,$A331,V$1))","v":""},{"$f":"IF($A331=\"N/A\",Ref!$B$36,INDEX(Ranks!$1:$1048576,$A331,W$1))","v":""},{"$f":"IF($A331=\"N/A\",Ref!$B$36,INDEX(Ranks!$1:$1048576,$A331,X$1))","v":""},{"$f":"IF($A331=\"N/A\",Ref!$B$36,INDEX(Ranks!$1:$1048576,$A331,Y$1))","v":""},{"$f":"IF($A331=\"N/A\",Ref!$B$36,INDEX(Ranks!$1:$1048576,$A331,Z$1))","v":""},{"$f":"IF($A331=\"N/A\",Ref!$B$36,INDEX(Ranks!$1:$1048576,$A331,AA$1))","v":""},{"$f":"IF($A331=\"N/A\",Ref!$B$36,INDEX(Ranks!$1:$1048576,$A331,AB$1))","v":""},{"$f":"IF($A331=\"N/A\",Ref!$B$36,INDEX(Ranks!$1:$1048576,$A331,AC$1))","v":""},{"$f":"IF($A331=\"N/A\",Ref!$B$36,INDEX(Ranks!$1:$1048576,$A331,AD$1))","v":""},{"$f":"IF($A331=\"N/A\",Ref!$B$36,INDEX(Ranks!$1:$1048576,$A331,AE$1))","v":""},{"$f":"IF($A331=\"N/A\",Ref!$B$36,INDEX(Ranks!$1:$1048576,$A331,AF$1))","v":""},{"$f":"IF($A331=\"N/A\",Ref!$B$36,INDEX(Ranks!$1:$1048576,$A331,AG$1))","v":""},{"$f":"IF($A331=\"N/A\",Ref!$B$36,INDEX(Ranks!$1:$1048576,$A331,AH$1))","v":""},{"$f":"IF($A331=\"N/A\",Ref!$B$36,INDEX(Ranks!$1:$1048576,$A331,AI$1))","v":""},{"$f":"IF($A331=\"N/A\",Ref!$B$36,INDEX(Ranks!$1:$1048576,$A331,AJ$1))","v":""},{"$f":"IF($A331=\"N/A\",Ref!$B$36,INDEX(Ranks!$1:$1048576,$A331,AK$1))","v":""},{"$f":"IF($A331=\"N/A\",Ref!$B$36,INDEX(Ranks!$1:$1048576,$A331,AL$1))","v":""},{"$f":"IF($A331=\"N/A\",Ref!$B$36,INDEX(Ranks!$1:$1048576,$A331,AM$1))","v":""},{"$f":"IF($A331=\"N/A\",Ref!$B$36,INDEX(Ranks!$1:$1048576,$A331,AN$1))","v":""},{"$f":"IF($A331=\"N/A\",Ref!$B$36,INDEX(Ranks!$1:$1048576,$A331,AO$1))","v":""},{"$f":"IF($A331=\"N/A\",Ref!$B$36,INDEX(Ranks!$1:$1048576,$A331,AP$1))","v":""},{"$f":"IF($A331=\"N/A\",Ref!$B$36,INDEX(Ranks!$1:$1048576,$A331,AQ$1))","v":""},{"$f":"IF($A331=\"N/A\",Ref!$B$36,INDEX(Ranks!$1:$1048576,$A331,AR$1))","v":""},{"$f":"IF($A331=\"N/A\",Ref!$B$36,INDEX(Ranks!$1:$1048576,$A331,AS$1))","v":""},{"$f":"IF($A331=\"N/A\",Ref!$B$36,INDEX(Ranks!$1:$1048576,$A331,AT$1))","v":""},{"$f":"IF($A331=\"N/A\",Ref!$B$36,INDEX(Ranks!$1:$1048576,$A331,AU$1))","v":""},{"$f":"IF($A331=\"N/A\",Ref!$B$36,INDEX(Ranks!$1:$1048576,$A331,AV$1))","v":""},{"$f":"IF($A331=\"N/A\",Ref!$B$36,INDEX(Ranks!$1:$1048576,$A331,AW$1))","v":""},{"$f":"IF($A331=\"N/A\",Ref!$B$36,INDEX(Ranks!$1:$1048576,$A331,AX$1))","v":""},{"$f":"IF($A331=\"N/A\",Ref!$B$36,INDEX(Ranks!$1:$1048576,$A331,AY$1))","v":""},{"$f":"IF($A331=\"N/A\",Ref!$B$36,INDEX(Ranks!$1:$1048576,$A331,AZ$1))","v":""},{"$f":"IF($A331=\"N/A\",Ref!$B$36,INDEX(Ranks!$1:$1048576,$A331,BA$1))","v":""},{"$f":"IF($A331=\"N/A\",Ref!$B$36,INDEX(Ranks!$1:$1048576,$A331,BB$1))","v":""},{"$f":"IF($A331=\"N/A\",Ref!$B$36,INDEX(Ranks!$1:$1048576,$A331,BC$1))","v":""},{"$f":"IF($A331=\"N/A\",Ref!$B$36,INDEX(Ranks!$1:$1048576,$A331,BD$1))","v":""},{"$f":"IF($A331=\"N/A\",Ref!$B$36,INDEX(Ranks!$1:$1048576,$A331,BE$1))","v":""},{"$f":"IF($A331=\"N/A\",Ref!$B$36,INDEX(Ranks!$1:$1048576,$A331,BF$1))","v":""},{"$f":"IF($A331=\"N/A\",Ref!$B$36,INDEX(Ranks!$1:$1048576,$A331,BG$1))","v":""},{"$f":"IF($A331=\"N/A\",Ref!$B$36,INDEX(Ranks!$1:$1048576,$A331,BH$1))","v":""},{"$f":"IF($A331=\"N/A\",Ref!$B$36,INDEX(Ranks!$1:$1048576,$A331,BI$1))","v":""},{"$f":"IF($A331=\"N/A\",Ref!$B$36,INDEX(Ranks!$1:$1048576,$A331,BJ$1))","v":""},{"$f":"IF($A331=\"N/A\",Ref!$B$36,INDEX(Ranks!$1:$1048576,$A331,BK$1))","v":""},{"$f":"IF($A331=\"N/A\",Ref!$B$36,INDEX(Ranks!$1:$1048576,$A331,BL$1))","v":""},{"$f":"IF($A331=\"N/A\",Ref!$B$36,INDEX(Ranks!$1:$1048576,$A331,BM$1))","v":""},{"$f":"IF($A331=\"N/A\",Ref!$B$36,INDEX(Ranks!$1:$1048576,$A331,BN$1))","v":""},{"$f":"IF($A331=\"N/A\",Ref!$B$36,INDEX(Ranks!$1:$1048576,$A331,BO$1))","v":""},{"$f":"IF($A331=\"N/A\",Ref!$B$36,INDEX(Ranks!$1:$1048576,$A331,BP$1))","v":""},{"$f":"IF($A331=\"N/A\",Ref!$B$36,INDEX(Ranks!$1:$1048576,$A331,BQ$1))","v":""},{"$f":"IF($A331=\"N/A\",Ref!$B$36,INDEX(Ranks!$1:$1048576,$A331,BR$1))","v":""},{"$f":"IF($A331=\"N/A\",Ref!$B$36,INDEX(Ranks!$1:$1048576,$A331,BS$1))","v":""},{"$f":"IF($A331=\"N/A\",Ref!$B$36,INDEX(Ranks!$1:$1048576,$A331,BT$1))","v":""},{"$f":"IF($A331=\"N/A\",Ref!$B$36,INDEX(Ranks!$1:$1048576,$A331,BU$1))","v":""},{"$f":"IF($A331=\"N/A\",Ref!$B$36,INDEX(Ranks!$1:$1048576,$A331,BV$1))","v":""},{"$f":"IF($A331=\"N/A\",Ref!$B$36,INDEX(Ranks!$1:$1048576,$A331,BW$1))","v":""},{"$f":"IF($A331=\"N/A\",Ref!$B$36,INDEX(Ranks!$1:$1048576,$A331,BX$1))","v":""},{"$f":"IF($A331=\"N/A\",Ref!$B$36,INDEX(Ranks!$1:$1048576,$A331,BY$1))","v":""},{"$f":"IF($A331=\"N/A\",Ref!$B$36,INDEX(Ranks!$1:$1048576,$A331,BZ$1))","v":""},{"$f":"IF($A331=\"N/A\",Ref!$B$36,INDEX(Ranks!$1:$1048576,$A331,CA$1))","v":""},{"$f":"IF($A331=\"N/A\",Ref!$B$36,INDEX(Ranks!$1:$1048576,$A331,CB$1))","v":""},{"$f":"IF($A331=\"N/A\",Ref!$B$36,INDEX(Ranks!$1:$1048576,$A331,CC$1))","v":""},{"$f":"IF($A331=\"N/A\",Ref!$B$36,INDEX(Ranks!$1:$1048576,$A331,CD$1))","v":""},{"$f":"IF($A331=\"N/A\",Ref!$B$36,INDEX(Ranks!$1:$1048576,$A331,CE$1))","v":""},{"$f":"IF($A331=\"N/A\",Ref!$B$36,INDEX(Ranks!$1:$1048576,$A331,CF$1))","v":""},{"$f":"IF($A331=\"N/A\",Ref!$B$36,INDEX(Ranks!$1:$1048576,$A331,CG$1))","v":""},{"$f":"IF($A331=\"N/A\",Ref!$B$36,INDEX(Ranks!$1:$1048576,$A331,CH$1))","v":""},{"$f":"IF($A331=\"N/A\",Ref!$B$36,INDEX(Ranks!$1:$1048576,$A331,CI$1))","v":""},{"$f":"IF($A331=\"N/A\",Ref!$B$36,INDEX(Ranks!$1:$1048576,$A331,CJ$1))","v":""},{"$f":"IF($A331=\"N/A\",Ref!$B$36,INDEX(Ranks!$1:$1048576,$A331,CK$1))","v":""},{"$f":"IF($A331=\"N/A\",Ref!$B$36,INDEX(Ranks!$1:$1048576,$A331,CL$1))","v":""},{"$f":"IF($A331=\"N/A\",Ref!$B$36,INDEX(Ranks!$1:$1048576,$A331,CM$1))","v":""},{"$f":"IF($A331=\"N/A\",Ref!$B$36,INDEX(Ranks!$1:$1048576,$A331,CN$1))","v":""},{"$f":"IF($A331=\"N/A\",Ref!$B$36,INDEX(Ranks!$1:$1048576,$A331,CO$1))","v":""},{"$f":"IF($A331=\"N/A\",Ref!$B$36,INDEX(Ranks!$1:$1048576,$A331,CP$1))","v":""},{"$f":"IF($A331=\"N/A\",Ref!$B$36,INDEX(Ranks!$1:$1048576,$A331,CQ$1))","v":""},{"$f":"IF($A331=\"N/A\",Ref!$B$36,INDEX(Ranks!$1:$1048576,$A331,CR$1))","v":""},{"$f":"IF($A331=\"N/A\",Ref!$B$36,INDEX(Ranks!$1:$1048576,$A331,CS$1))","v":""},{"$f":"IF($A331=\"N/A\",Ref!$B$36,INDEX(Ranks!$1:$1048576,$A331,CT$1))","v":""},{"$f":"IF($A331=\"N/A\",Ref!$B$36,INDEX(Ranks!$1:$1048576,$A331,CU$1))","v":""},{"$f":"IF($A331=\"N/A\",Ref!$B$36,INDEX(Ranks!$1:$1048576,$A331,CV$1))","v":""},{"$f":"IF($A331=\"N/A\",Ref!$B$36,INDEX(Ranks!$1:$1048576,$A331,CW$1))","v":""},{"$f":"IF($A331=\"N/A\",Ref!$B$36,INDEX(Ranks!$1:$1048576,$A331,CX$1))","v":""},{"$f":"IF($A331=\"N/A\",Ref!$B$36,INDEX(Ranks!$1:$1048576,$A331,CY$1))","v":""},{"$f":"IF($A331=\"N/A\",Ref!$B$36,INDEX(Ranks!$1:$1048576,$A331,CZ$1))","v":""},{"$f":"IF($A331=\"N/A\",Ref!$B$36,INDEX(Ranks!$1:$1048576,$A331,DA$1))","v":""},{"$f":"IF($A331=\"N/A\",Ref!$B$36,INDEX(Ranks!$1:$1048576,$A331,DB$1))","v":""},{"$f":"IF($A331=\"N/A\",Ref!$B$36,INDEX(Ranks!$1:$1048576,$A331,DC$1))","v":""},{"$f":"IF($A331=\"N/A\",Ref!$B$36,INDEX(Ranks!$1:$1048576,$A331,DD$1))","v":""},{"$f":"IF($A331=\"N/A\",Ref!$B$36,INDEX(Ranks!$1:$1048576,$A331,DE$1))","v":""},{"$f":"IF($A331=\"N/A\",Ref!$B$36,INDEX(Ranks!$1:$1048576,$A331,DF$1))","v":""},{"$f":"IF($A331=\"N/A\",Ref!$B$36,INDEX(Ranks!$1:$1048576,$A331,DG$1))","v":""},{"$f":"IF($A331=\"N/A\",Ref!$B$36,INDEX(Ranks!$1:$1048576,$A331,DH$1))","v":""},{"$f":"IF($A331=\"N/A\",Ref!$B$36,INDEX(Ranks!$1:$1048576,$A331,DI$1))","v":""},{"$f":"IF($A331=\"N/A\",Ref!$B$36,INDEX(Ranks!$1:$1048576,$A331,DJ$1))","v":""},{"$f":"IF($A331=\"N/A\",Ref!$B$36,INDEX(Ranks!$1:$1048576,$A331,DK$1))","v":""},{"$f":"IF($A331=\"N/A\",Ref!$B$36,INDEX(Ranks!$1:$1048576,$A331,DL$1))","v":""},{"$f":"IF($A331=\"N/A\",Ref!$B$36,INDEX(Ranks!$1:$1048576,$A331,DM$1))","v":""},{"$f":"IF($A331=\"N/A\",Ref!$B$36,INDEX(Ranks!$1:$1048576,$A331,DN$1))","v":""},{"$f":"IF($A331=\"N/A\",Ref!$B$36,INDEX(Ranks!$1:$1048576,$A331,DO$1))","v":""},{"$f":"IF($A331=\"N/A\",Ref!$B$36,INDEX(Ranks!$1:$1048576,$A331,DP$1))","v":""},{"$f":"IF($A331=\"N/A\",Ref!$B$36,INDEX(Ranks!$1:$1048576,$A331,DQ$1))","v":""},{"$f":"IF($A331=\"N/A\",Ref!$B$36,INDEX(Ranks!$1:$1048576,$A331,DR$1))","v":""},{"$f":"IF($A331=\"N/A\",Ref!$B$36,INDEX(Ranks!$1:$1048576,$A331,DS$1))","v":""},{"$f":"IF($A331=\"N/A\",Ref!$B$36,INDEX(Ranks!$1:$1048576,$A331,DT$1))","v":""},{"$f":"IF($A331=\"N/A\",Ref!$B$36,INDEX(Ranks!$1:$1048576,$A331,DU$1))","v":""},{"$f":"IF($A331=\"N/A\",Ref!$B$36,INDEX(Ranks!$1:$1048576,$A331,DV$1))","v":""},{"$f":"IF($A331=\"N/A\",Ref!$B$36,INDEX(Ranks!$1:$1048576,$A331,DW$1))","v":""},{"$f":"IF($A331=\"N/A\",Ref!$B$36,INDEX(Ranks!$1:$1048576,$A331,DX$1))","v":""},{"$f":"IF($A331=\"N/A\",Ref!$B$36,INDEX(Ranks!$1:$1048576,$A331,DY$1))","v":""},{"$f":"IF($A331=\"N/A\",Ref!$B$36,INDEX(Ranks!$1:$1048576,$A331,DZ$1))","v":""},{"$f":"IF($A331=\"N/A\",Ref!$B$36,INDEX(Ranks!$1:$1048576,$A331,EA$1))","v":""},{"$f":"IF($A331=\"N/A\",Ref!$B$36,INDEX(Ranks!$1:$1048576,$A331,EB$1))","v":""}]
[{"$f":"IFERROR(MATCH('Portfolio Page'!L332,Ranks!L:L,0),\"N/A\")","v":"N/A"},null,{"$f":"IF($A332=\"N/A\",\"\",INDEX(Ranks!$1:$1048576,$A332,C$1))","v":""},{"$f":"IF($A332=\"N/A\",Ref!$B$36,INDEX(Ranks!$1:$1048576,$A332,D$1))","v":""},{"$f":"IF($A332=\"N/A\",Ref!$B$36,INDEX(Ranks!$1:$1048576,$A332,E$1))","v":""},{"$f":"IF($A332=\"N/A\",\"\",INDEX(Ranks!$1:$1048576,$A332,F$1))","v":""},{"$f":"IF($A332=\"N/A\",\"\",INDEX(Ranks!$1:$1048576,$A332,G$1))","v":""},{"$f":"IF($A332=\"N/A\",\"\",INDEX(Ranks!$1:$1048576,$A332,H$1))","v":""},{"$f":"IF($A332=\"N/A\",\"\",INDEX(Ranks!$1:$1048576,$A332,I$1))","v":""},{"$f":"IF($A332=\"N/A\",\"\",INDEX(Ranks!$1:$1048576,$A332,J$1))","v":""},{"$f":"IF($A332=\"N/A\",\"\",INDEX(Ranks!$1:$1048576,$A332,K$1))","v":""},null,{"$f":"IF($A332=\"N/A\",Ref!$B$36,INDEX(Ranks!$1:$1048576,$A332,M$1))","v":""},{"$f":"IF($A332=\"N/A\",Ref!$B$36,INDEX(Ranks!$1:$1048576,$A332,N$1))","v":""},{"$f":"IF($A332=\"N/A\",Ref!$B$36,INDEX(Ranks!$1:$1048576,$A332,O$1))","v":""},{"$f":"IF($A332=\"N/A\",Ref!$B$36,INDEX(Ranks!$1:$1048576,$A332,P$1))","v":""},{"$f":"IF($A332=\"N/A\",Ref!$B$36,INDEX(Ranks!$1:$1048576,$A332,Q$1))","v":""},{"$f":"IF($A332=\"N/A\",Ref!$B$36,INDEX(Ranks!$1:$1048576,$A332,R$1))","v":""},{"$f":"IF($A332=\"N/A\",Ref!$B$36,INDEX(Ranks!$1:$1048576,$A332,S$1))","v":""},{"$f":"IF($A332=\"N/A\",Ref!$B$36,INDEX(Ranks!$1:$1048576,$A332,T$1))","v":""},{"$f":"IF($A332=\"N/A\",Ref!$B$36,INDEX(Ranks!$1:$1048576,$A332,U$1))","v":""},{"$f":"IF($A332=\"N/A\",Ref!$B$36,INDEX(Ranks!$1:$1048576,$A332,V$1))","v":""},{"$f":"IF($A332=\"N/A\",Ref!$B$36,INDEX(Ranks!$1:$1048576,$A332,W$1))","v":""},{"$f":"IF($A332=\"N/A\",Ref!$B$36,INDEX(Ranks!$1:$1048576,$A332,X$1))","v":""},{"$f":"IF($A332=\"N/A\",Ref!$B$36,INDEX(Ranks!$1:$1048576,$A332,Y$1))","v":""},{"$f":"IF($A332=\"N/A\",Ref!$B$36,INDEX(Ranks!$1:$1048576,$A332,Z$1))","v":""},{"$f":"IF($A332=\"N/A\",Ref!$B$36,INDEX(Ranks!$1:$1048576,$A332,AA$1))","v":""},{"$f":"IF($A332=\"N/A\",Ref!$B$36,INDEX(Ranks!$1:$1048576,$A332,AB$1))","v":""},{"$f":"IF($A332=\"N/A\",Ref!$B$36,INDEX(Ranks!$1:$1048576,$A332,AC$1))","v":""},{"$f":"IF($A332=\"N/A\",Ref!$B$36,INDEX(Ranks!$1:$1048576,$A332,AD$1))","v":""},{"$f":"IF($A332=\"N/A\",Ref!$B$36,INDEX(Ranks!$1:$1048576,$A332,AE$1))","v":""},{"$f":"IF($A332=\"N/A\",Ref!$B$36,INDEX(Ranks!$1:$1048576,$A332,AF$1))","v":""},{"$f":"IF($A332=\"N/A\",Ref!$B$36,INDEX(Ranks!$1:$1048576,$A332,AG$1))","v":""},{"$f":"IF($A332=\"N/A\",Ref!$B$36,INDEX(Ranks!$1:$1048576,$A332,AH$1))","v":""},{"$f":"IF($A332=\"N/A\",Ref!$B$36,INDEX(Ranks!$1:$1048576,$A332,AI$1))","v":""},{"$f":"IF($A332=\"N/A\",Ref!$B$36,INDEX(Ranks!$1:$1048576,$A332,AJ$1))","v":""},{"$f":"IF($A332=\"N/A\",Ref!$B$36,INDEX(Ranks!$1:$1048576,$A332,AK$1))","v":""},{"$f":"IF($A332=\"N/A\",Ref!$B$36,INDEX(Ranks!$1:$1048576,$A332,AL$1))","v":""},{"$f":"IF($A332=\"N/A\",Ref!$B$36,INDEX(Ranks!$1:$1048576,$A332,AM$1))","v":""},{"$f":"IF($A332=\"N/A\",Ref!$B$36,INDEX(Ranks!$1:$1048576,$A332,AN$1))","v":""},{"$f":"IF($A332=\"N/A\",Ref!$B$36,INDEX(Ranks!$1:$1048576,$A332,AO$1))","v":""},{"$f":"IF($A332=\"N/A\",Ref!$B$36,INDEX(Ranks!$1:$1048576,$A332,AP$1))","v":""},{"$f":"IF($A332=\"N/A\",Ref!$B$36,INDEX(Ranks!$1:$1048576,$A332,AQ$1))","v":""},{"$f":"IF($A332=\"N/A\",Ref!$B$36,INDEX(Ranks!$1:$1048576,$A332,AR$1))","v":""},{"$f":"IF($A332=\"N/A\",Ref!$B$36,INDEX(Ranks!$1:$1048576,$A332,AS$1))","v":""},{"$f":"IF($A332=\"N/A\",Ref!$B$36,INDEX(Ranks!$1:$1048576,$A332,AT$1))","v":""},{"$f":"IF($A332=\"N/A\",Ref!$B$36,INDEX(Ranks!$1:$1048576,$A332,AU$1))","v":""},{"$f":"IF($A332=\"N/A\",Ref!$B$36,INDEX(Ranks!$1:$1048576,$A332,AV$1))","v":""},{"$f":"IF($A332=\"N/A\",Ref!$B$36,INDEX(Ranks!$1:$1048576,$A332,AW$1))","v":""},{"$f":"IF($A332=\"N/A\",Ref!$B$36,INDEX(Ranks!$1:$1048576,$A332,AX$1))","v":""},{"$f":"IF($A332=\"N/A\",Ref!$B$36,INDEX(Ranks!$1:$1048576,$A332,AY$1))","v":""},{"$f":"IF($A332=\"N/A\",Ref!$B$36,INDEX(Ranks!$1:$1048576,$A332,AZ$1))","v":""},{"$f":"IF($A332=\"N/A\",Ref!$B$36,INDEX(Ranks!$1:$1048576,$A332,BA$1))","v":""},{"$f":"IF($A332=\"N/A\",Ref!$B$36,INDEX(Ranks!$1:$1048576,$A332,BB$1))","v":""},{"$f":"IF($A332=\"N/A\",Ref!$B$36,INDEX(Ranks!$1:$1048576,$A332,BC$1))","v":""},{"$f":"IF($A332=\"N/A\",Ref!$B$36,INDEX(Ranks!$1:$1048576,$A332,BD$1))","v":""},{"$f":"IF($A332=\"N/A\",Ref!$B$36,INDEX(Ranks!$1:$1048576,$A332,BE$1))","v":""},{"$f":"IF($A332=\"N/A\",Ref!$B$36,INDEX(Ranks!$1:$1048576,$A332,BF$1))","v":""},{"$f":"IF($A332=\"N/A\",Ref!$B$36,INDEX(Ranks!$1:$1048576,$A332,BG$1))","v":""},{"$f":"IF($A332=\"N/A\",Ref!$B$36,INDEX(Ranks!$1:$1048576,$A332,BH$1))","v":""},{"$f":"IF($A332=\"N/A\",Ref!$B$36,INDEX(Ranks!$1:$1048576,$A332,BI$1))","v":""},{"$f":"IF($A332=\"N/A\",Ref!$B$36,INDEX(Ranks!$1:$1048576,$A332,BJ$1))","v":""},{"$f":"IF($A332=\"N/A\",Ref!$B$36,INDEX(Ranks!$1:$1048576,$A332,BK$1))","v":""},{"$f":"IF($A332=\"N/A\",Ref!$B$36,INDEX(Ranks!$1:$1048576,$A332,BL$1))","v":""},{"$f":"IF($A332=\"N/A\",Ref!$B$36,INDEX(Ranks!$1:$1048576,$A332,BM$1))","v":""},{"$f":"IF($A332=\"N/A\",Ref!$B$36,INDEX(Ranks!$1:$1048576,$A332,BN$1))","v":""},{"$f":"IF($A332=\"N/A\",Ref!$B$36,INDEX(Ranks!$1:$1048576,$A332,BO$1))","v":""},{"$f":"IF($A332=\"N/A\",Ref!$B$36,INDEX(Ranks!$1:$1048576,$A332,BP$1))","v":""},{"$f":"IF($A332=\"N/A\",Ref!$B$36,INDEX(Ranks!$1:$1048576,$A332,BQ$1))","v":""},{"$f":"IF($A332=\"N/A\",Ref!$B$36,INDEX(Ranks!$1:$1048576,$A332,BR$1))","v":""},{"$f":"IF($A332=\"N/A\",Ref!$B$36,INDEX(Ranks!$1:$1048576,$A332,BS$1))","v":""},{"$f":"IF($A332=\"N/A\",Ref!$B$36,INDEX(Ranks!$1:$1048576,$A332,BT$1))","v":""},{"$f":"IF($A332=\"N/A\",Ref!$B$36,INDEX(Ranks!$1:$1048576,$A332,BU$1))","v":""},{"$f":"IF($A332=\"N/A\",Ref!$B$36,INDEX(Ranks!$1:$1048576,$A332,BV$1))","v":""},{"$f":"IF($A332=\"N/A\",Ref!$B$36,INDEX(Ranks!$1:$1048576,$A332,BW$1))","v":""},{"$f":"IF($A332=\"N/A\",Ref!$B$36,INDEX(Ranks!$1:$1048576,$A332,BX$1))","v":""},{"$f":"IF($A332=\"N/A\",Ref!$B$36,INDEX(Ranks!$1:$1048576,$A332,BY$1))","v":""},{"$f":"IF($A332=\"N/A\",Ref!$B$36,INDEX(Ranks!$1:$1048576,$A332,BZ$1))","v":""},{"$f":"IF($A332=\"N/A\",Ref!$B$36,INDEX(Ranks!$1:$1048576,$A332,CA$1))","v":""},{"$f":"IF($A332=\"N/A\",Ref!$B$36,INDEX(Ranks!$1:$1048576,$A332,CB$1))","v":""},{"$f":"IF($A332=\"N/A\",Ref!$B$36,INDEX(Ranks!$1:$1048576,$A332,CC$1))","v":""},{"$f":"IF($A332=\"N/A\",Ref!$B$36,INDEX(Ranks!$1:$1048576,$A332,CD$1))","v":""},{"$f":"IF($A332=\"N/A\",Ref!$B$36,INDEX(Ranks!$1:$1048576,$A332,CE$1))","v":""},{"$f":"IF($A332=\"N/A\",Ref!$B$36,INDEX(Ranks!$1:$1048576,$A332,CF$1))","v":""},{"$f":"IF($A332=\"N/A\",Ref!$B$36,INDEX(Ranks!$1:$1048576,$A332,CG$1))","v":""},{"$f":"IF($A332=\"N/A\",Ref!$B$36,INDEX(Ranks!$1:$1048576,$A332,CH$1))","v":""},{"$f":"IF($A332=\"N/A\",Ref!$B$36,INDEX(Ranks!$1:$1048576,$A332,CI$1))","v":""},{"$f":"IF($A332=\"N/A\",Ref!$B$36,INDEX(Ranks!$1:$1048576,$A332,CJ$1))","v":""},{"$f":"IF($A332=\"N/A\",Ref!$B$36,INDEX(Ranks!$1:$1048576,$A332,CK$1))","v":""},{"$f":"IF($A332=\"N/A\",Ref!$B$36,INDEX(Ranks!$1:$1048576,$A332,CL$1))","v":""},{"$f":"IF($A332=\"N/A\",Ref!$B$36,INDEX(Ranks!$1:$1048576,$A332,CM$1))","v":""},{"$f":"IF($A332=\"N/A\",Ref!$B$36,INDEX(Ranks!$1:$1048576,$A332,CN$1))","v":""},{"$f":"IF($A332=\"N/A\",Ref!$B$36,INDEX(Ranks!$1:$1048576,$A332,CO$1))","v":""},{"$f":"IF($A332=\"N/A\",Ref!$B$36,INDEX(Ranks!$1:$1048576,$A332,CP$1))","v":""},{"$f":"IF($A332=\"N/A\",Ref!$B$36,INDEX(Ranks!$1:$1048576,$A332,CQ$1))","v":""},{"$f":"IF($A332=\"N/A\",Ref!$B$36,INDEX(Ranks!$1:$1048576,$A332,CR$1))","v":""},{"$f":"IF($A332=\"N/A\",Ref!$B$36,INDEX(Ranks!$1:$1048576,$A332,CS$1))","v":""},{"$f":"IF($A332=\"N/A\",Ref!$B$36,INDEX(Ranks!$1:$1048576,$A332,CT$1))","v":""},{"$f":"IF($A332=\"N/A\",Ref!$B$36,INDEX(Ranks!$1:$1048576,$A332,CU$1))","v":""},{"$f":"IF($A332=\"N/A\",Ref!$B$36,INDEX(Ranks!$1:$1048576,$A332,CV$1))","v":""},{"$f":"IF($A332=\"N/A\",Ref!$B$36,INDEX(Ranks!$1:$1048576,$A332,CW$1))","v":""},{"$f":"IF($A332=\"N/A\",Ref!$B$36,INDEX(Ranks!$1:$1048576,$A332,CX$1))","v":""},{"$f":"IF($A332=\"N/A\",Ref!$B$36,INDEX(Ranks!$1:$1048576,$A332,CY$1))","v":""},{"$f":"IF($A332=\"N/A\",Ref!$B$36,INDEX(Ranks!$1:$1048576,$A332,CZ$1))","v":""},{"$f":"IF($A332=\"N/A\",Ref!$B$36,INDEX(Ranks!$1:$1048576,$A332,DA$1))","v":""},{"$f":"IF($A332=\"N/A\",Ref!$B$36,INDEX(Ranks!$1:$1048576,$A332,DB$1))","v":""},{"$f":"IF($A332=\"N/A\",Ref!$B$36,INDEX(Ranks!$1:$1048576,$A332,DC$1))","v":""},{"$f":"IF($A332=\"N/A\",Ref!$B$36,INDEX(Ranks!$1:$1048576,$A332,DD$1))","v":""},{"$f":"IF($A332=\"N/A\",Ref!$B$36,INDEX(Ranks!$1:$1048576,$A332,DE$1))","v":""},{"$f":"IF($A332=\"N/A\",Ref!$B$36,INDEX(Ranks!$1:$1048576,$A332,DF$1))","v":""},{"$f":"IF($A332=\"N/A\",Ref!$B$36,INDEX(Ranks!$1:$1048576,$A332,DG$1))","v":""},{"$f":"IF($A332=\"N/A\",Ref!$B$36,INDEX(Ranks!$1:$1048576,$A332,DH$1))","v":""},{"$f":"IF($A332=\"N/A\",Ref!$B$36,INDEX(Ranks!$1:$1048576,$A332,DI$1))","v":""},{"$f":"IF($A332=\"N/A\",Ref!$B$36,INDEX(Ranks!$1:$1048576,$A332,DJ$1))","v":""},{"$f":"IF($A332=\"N/A\",Ref!$B$36,INDEX(Ranks!$1:$1048576,$A332,DK$1))","v":""},{"$f":"IF($A332=\"N/A\",Ref!$B$36,INDEX(Ranks!$1:$1048576,$A332,DL$1))","v":""},{"$f":"IF($A332=\"N/A\",Ref!$B$36,INDEX(Ranks!$1:$1048576,$A332,DM$1))","v":""},{"$f":"IF($A332=\"N/A\",Ref!$B$36,INDEX(Ranks!$1:$1048576,$A332,DN$1))","v":""},{"$f":"IF($A332=\"N/A\",Ref!$B$36,INDEX(Ranks!$1:$1048576,$A332,DO$1))","v":""},{"$f":"IF($A332=\"N/A\",Ref!$B$36,INDEX(Ranks!$1:$1048576,$A332,DP$1))","v":""},{"$f":"IF($A332=\"N/A\",Ref!$B$36,INDEX(Ranks!$1:$1048576,$A332,DQ$1))","v":""},{"$f":"IF($A332=\"N/A\",Ref!$B$36,INDEX(Ranks!$1:$1048576,$A332,DR$1))","v":""},{"$f":"IF($A332=\"N/A\",Ref!$B$36,INDEX(Ranks!$1:$1048576,$A332,DS$1))","v":""},{"$f":"IF($A332=\"N/A\",Ref!$B$36,INDEX(Ranks!$1:$1048576,$A332,DT$1))","v":""},{"$f":"IF($A332=\"N/A\",Ref!$B$36,INDEX(Ranks!$1:$1048576,$A332,DU$1))","v":""},{"$f":"IF($A332=\"N/A\",Ref!$B$36,INDEX(Ranks!$1:$1048576,$A332,DV$1))","v":""},{"$f":"IF($A332=\"N/A\",Ref!$B$36,INDEX(Ranks!$1:$1048576,$A332,DW$1))","v":""},{"$f":"IF($A332=\"N/A\",Ref!$B$36,INDEX(Ranks!$1:$1048576,$A332,DX$1))","v":""},{"$f":"IF($A332=\"N/A\",Ref!$B$36,INDEX(Ranks!$1:$1048576,$A332,DY$1))","v":""},{"$f":"IF($A332=\"N/A\",Ref!$B$36,INDEX(Ranks!$1:$1048576,$A332,DZ$1))","v":""},{"$f":"IF($A332=\"N/A\",Ref!$B$36,INDEX(Ranks!$1:$1048576,$A332,EA$1))","v":""},{"$f":"IF($A332=\"N/A\",Ref!$B$36,INDEX(Ranks!$1:$1048576,$A332,EB$1))","v":""}]
[{"$f":"IFERROR(MATCH('Portfolio Page'!L333,Ranks!L:L,0),\"N/A\")","v":"N/A"},null,{"$f":"IF($A333=\"N/A\",\"\",INDEX(Ranks!$1:$1048576,$A333,C$1))","v":""},{"$f":"IF($A333=\"N/A\",Ref!$B$36,INDEX(Ranks!$1:$1048576,$A333,D$1))","v":""},{"$f":"IF($A333=\"N/A\",Ref!$B$36,INDEX(Ranks!$1:$1048576,$A333,E$1))","v":""},{"$f":"IF($A333=\"N/A\",\"\",INDEX(Ranks!$1:$1048576,$A333,F$1))","v":""},{"$f":"IF($A333=\"N/A\",\"\",INDEX(Ranks!$1:$1048576,$A333,G$1))","v":""},{"$f":"IF($A333=\"N/A\",\"\",INDEX(Ranks!$1:$1048576,$A333,H$1))","v":""},{"$f":"IF($A333=\"N/A\",\"\",INDEX(Ranks!$1:$1048576,$A333,I$1))","v":""},{"$f":"IF($A333=\"N/A\",\"\",INDEX(Ranks!$1:$1048576,$A333,J$1))","v":""},{"$f":"IF($A333=\"N/A\",\"\",INDEX(Ranks!$1:$1048576,$A333,K$1))","v":""},null,{"$f":"IF($A333=\"N/A\",Ref!$B$36,INDEX(Ranks!$1:$1048576,$A333,M$1))","v":""},{"$f":"IF($A333=\"N/A\",Ref!$B$36,INDEX(Ranks!$1:$1048576,$A333,N$1))","v":""},{"$f":"IF($A333=\"N/A\",Ref!$B$36,INDEX(Ranks!$1:$1048576,$A333,O$1))","v":""},{"$f":"IF($A333=\"N/A\",Ref!$B$36,INDEX(Ranks!$1:$1048576,$A333,P$1))","v":""},{"$f":"IF($A333=\"N/A\",Ref!$B$36,INDEX(Ranks!$1:$1048576,$A333,Q$1))","v":""},{"$f":"IF($A333=\"N/A\",Ref!$B$36,INDEX(Ranks!$1:$1048576,$A333,R$1))","v":""},{"$f":"IF($A333=\"N/A\",Ref!$B$36,INDEX(Ranks!$1:$1048576,$A333,S$1))","v":""},{"$f":"IF($A333=\"N/A\",Ref!$B$36,INDEX(Ranks!$1:$1048576,$A333,T$1))","v":""},{"$f":"IF($A333=\"N/A\",Ref!$B$36,INDEX(Ranks!$1:$1048576,$A333,U$1))","v":""},{"$f":"IF($A333=\"N/A\",Ref!$B$36,INDEX(Ranks!$1:$1048576,$A333,V$1))","v":""},{"$f":"IF($A333=\"N/A\",Ref!$B$36,INDEX(Ranks!$1:$1048576,$A333,W$1))","v":""},{"$f":"IF($A333=\"N/A\",Ref!$B$36,INDEX(Ranks!$1:$1048576,$A333,X$1))","v":""},{"$f":"IF($A333=\"N/A\",Ref!$B$36,INDEX(Ranks!$1:$1048576,$A333,Y$1))","v":""},{"$f":"IF($A333=\"N/A\",Ref!$B$36,INDEX(Ranks!$1:$1048576,$A333,Z$1))","v":""},{"$f":"IF($A333=\"N/A\",Ref!$B$36,INDEX(Ranks!$1:$1048576,$A333,AA$1))","v":""},{"$f":"IF($A333=\"N/A\",Ref!$B$36,INDEX(Ranks!$1:$1048576,$A333,AB$1))","v":""},{"$f":"IF($A333=\"N/A\",Ref!$B$36,INDEX(Ranks!$1:$1048576,$A333,AC$1))","v":""},{"$f":"IF($A333=\"N/A\",Ref!$B$36,INDEX(Ranks!$1:$1048576,$A333,AD$1))","v":""},{"$f":"IF($A333=\"N/A\",Ref!$B$36,INDEX(Ranks!$1:$1048576,$A333,AE$1))","v":""},{"$f":"IF($A333=\"N/A\",Ref!$B$36,INDEX(Ranks!$1:$1048576,$A333,AF$1))","v":""},{"$f":"IF($A333=\"N/A\",Ref!$B$36,INDEX(Ranks!$1:$1048576,$A333,AG$1))","v":""},{"$f":"IF($A333=\"N/A\",Ref!$B$36,INDEX(Ranks!$1:$1048576,$A333,AH$1))","v":""},{"$f":"IF($A333=\"N/A\",Ref!$B$36,INDEX(Ranks!$1:$1048576,$A333,AI$1))","v":""},{"$f":"IF($A333=\"N/A\",Ref!$B$36,INDEX(Ranks!$1:$1048576,$A333,AJ$1))","v":""},{"$f":"IF($A333=\"N/A\",Ref!$B$36,INDEX(Ranks!$1:$1048576,$A333,AK$1))","v":""},{"$f":"IF($A333=\"N/A\",Ref!$B$36,INDEX(Ranks!$1:$1048576,$A333,AL$1))","v":""},{"$f":"IF($A333=\"N/A\",Ref!$B$36,INDEX(Ranks!$1:$1048576,$A333,AM$1))","v":""},{"$f":"IF($A333=\"N/A\",Ref!$B$36,INDEX(Ranks!$1:$1048576,$A333,AN$1))","v":""},{"$f":"IF($A333=\"N/A\",Ref!$B$36,INDEX(Ranks!$1:$1048576,$A333,AO$1))","v":""},{"$f":"IF($A333=\"N/A\",Ref!$B$36,INDEX(Ranks!$1:$1048576,$A333,AP$1))","v":""},{"$f":"IF($A333=\"N/A\",Ref!$B$36,INDEX(Ranks!$1:$1048576,$A333,AQ$1))","v":""},{"$f":"IF($A333=\"N/A\",Ref!$B$36,INDEX(Ranks!$1:$1048576,$A333,AR$1))","v":""},{"$f":"IF($A333=\"N/A\",Ref!$B$36,INDEX(Ranks!$1:$1048576,$A333,AS$1))","v":""},{"$f":"IF($A333=\"N/A\",Ref!$B$36,INDEX(Ranks!$1:$1048576,$A333,AT$1))","v":""},{"$f":"IF($A333=\"N/A\",Ref!$B$36,INDEX(Ranks!$1:$1048576,$A333,AU$1))","v":""},{"$f":"IF($A333=\"N/A\",Ref!$B$36,INDEX(Ranks!$1:$1048576,$A333,AV$1))","v":""},{"$f":"IF($A333=\"N/A\",Ref!$B$36,INDEX(Ranks!$1:$1048576,$A333,AW$1))","v":""},{"$f":"IF($A333=\"N/A\",Ref!$B$36,INDEX(Ranks!$1:$1048576,$A333,AX$1))","v":""},{"$f":"IF($A333=\"N/A\",Ref!$B$36,INDEX(Ranks!$1:$1048576,$A333,AY$1))","v":""},{"$f":"IF($A333=\"N/A\",Ref!$B$36,INDEX(Ranks!$1:$1048576,$A333,AZ$1))","v":""},{"$f":"IF($A333=\"N/A\",Ref!$B$36,INDEX(Ranks!$1:$1048576,$A333,BA$1))","v":""},{"$f":"IF($A333=\"N/A\",Ref!$B$36,INDEX(Ranks!$1:$1048576,$A333,BB$1))","v":""},{"$f":"IF($A333=\"N/A\",Ref!$B$36,INDEX(Ranks!$1:$1048576,$A333,BC$1))","v":""},{"$f":"IF($A333=\"N/A\",Ref!$B$36,INDEX(Ranks!$1:$1048576,$A333,BD$1))","v":""},{"$f":"IF($A333=\"N/A\",Ref!$B$36,INDEX(Ranks!$1:$1048576,$A333,BE$1))","v":""},{"$f":"IF($A333=\"N/A\",Ref!$B$36,INDEX(Ranks!$1:$1048576,$A333,BF$1))","v":""},{"$f":"IF($A333=\"N/A\",Ref!$B$36,INDEX(Ranks!$1:$1048576,$A333,BG$1))","v":""},{"$f":"IF($A333=\"N/A\",Ref!$B$36,INDEX(Ranks!$1:$1048576,$A333,BH$1))","v":""},{"$f":"IF($A333=\"N/A\",Ref!$B$36,INDEX(Ranks!$1:$1048576,$A333,BI$1))","v":""},{"$f":"IF($A333=\"N/A\",Ref!$B$36,INDEX(Ranks!$1:$1048576,$A333,BJ$1))","v":""},{"$f":"IF($A333=\"N/A\",Ref!$B$36,INDEX(Ranks!$1:$1048576,$A333,BK$1))","v":""},{"$f":"IF($A333=\"N/A\",Ref!$B$36,INDEX(Ranks!$1:$1048576,$A333,BL$1))","v":""},{"$f":"IF($A333=\"N/A\",Ref!$B$36,INDEX(Ranks!$1:$1048576,$A333,BM$1))","v":""},{"$f":"IF($A333=\"N/A\",Ref!$B$36,INDEX(Ranks!$1:$1048576,$A333,BN$1))","v":""},{"$f":"IF($A333=\"N/A\",Ref!$B$36,INDEX(Ranks!$1:$1048576,$A333,BO$1))","v":""},{"$f":"IF($A333=\"N/A\",Ref!$B$36,INDEX(Ranks!$1:$1048576,$A333,BP$1))","v":""},{"$f":"IF($A333=\"N/A\",Ref!$B$36,INDEX(Ranks!$1:$1048576,$A333,BQ$1))","v":""},{"$f":"IF($A333=\"N/A\",Ref!$B$36,INDEX(Ranks!$1:$1048576,$A333,BR$1))","v":""},{"$f":"IF($A333=\"N/A\",Ref!$B$36,INDEX(Ranks!$1:$1048576,$A333,BS$1))","v":""},{"$f":"IF($A333=\"N/A\",Ref!$B$36,INDEX(Ranks!$1:$1048576,$A333,BT$1))","v":""},{"$f":"IF($A333=\"N/A\",Ref!$B$36,INDEX(Ranks!$1:$1048576,$A333,BU$1))","v":""},{"$f":"IF($A333=\"N/A\",Ref!$B$36,INDEX(Ranks!$1:$1048576,$A333,BV$1))","v":""},{"$f":"IF($A333=\"N/A\",Ref!$B$36,INDEX(Ranks!$1:$1048576,$A333,BW$1))","v":""},{"$f":"IF($A333=\"N/A\",Ref!$B$36,INDEX(Ranks!$1:$1048576,$A333,BX$1))","v":""},{"$f":"IF($A333=\"N/A\",Ref!$B$36,INDEX(Ranks!$1:$1048576,$A333,BY$1))","v":""},{"$f":"IF($A333=\"N/A\",Ref!$B$36,INDEX(Ranks!$1:$1048576,$A333,BZ$1))","v":""},{"$f":"IF($A333=\"N/A\",Ref!$B$36,INDEX(Ranks!$1:$1048576,$A333,CA$1))","v":""},{"$f":"IF($A333=\"N/A\",Ref!$B$36,INDEX(Ranks!$1:$1048576,$A333,CB$1))","v":""},{"$f":"IF($A333=\"N/A\",Ref!$B$36,INDEX(Ranks!$1:$1048576,$A333,CC$1))","v":""},{"$f":"IF($A333=\"N/A\",Ref!$B$36,INDEX(Ranks!$1:$1048576,$A333,CD$1))","v":""},{"$f":"IF($A333=\"N/A\",Ref!$B$36,INDEX(Ranks!$1:$1048576,$A333,CE$1))","v":""},{"$f":"IF($A333=\"N/A\",Ref!$B$36,INDEX(Ranks!$1:$1048576,$A333,CF$1))","v":""},{"$f":"IF($A333=\"N/A\",Ref!$B$36,INDEX(Ranks!$1:$1048576,$A333,CG$1))","v":""},{"$f":"IF($A333=\"N/A\",Ref!$B$36,INDEX(Ranks!$1:$1048576,$A333,CH$1))","v":""},{"$f":"IF($A333=\"N/A\",Ref!$B$36,INDEX(Ranks!$1:$1048576,$A333,CI$1))","v":""},{"$f":"IF($A333=\"N/A\",Ref!$B$36,INDEX(Ranks!$1:$1048576,$A333,CJ$1))","v":""},{"$f":"IF($A333=\"N/A\",Ref!$B$36,INDEX(Ranks!$1:$1048576,$A333,CK$1))","v":""},{"$f":"IF($A333=\"N/A\",Ref!$B$36,INDEX(Ranks!$1:$1048576,$A333,CL$1))","v":""},{"$f":"IF($A333=\"N/A\",Ref!$B$36,INDEX(Ranks!$1:$1048576,$A333,CM$1))","v":""},{"$f":"IF($A333=\"N/A\",Ref!$B$36,INDEX(Ranks!$1:$1048576,$A333,CN$1))","v":""},{"$f":"IF($A333=\"N/A\",Ref!$B$36,INDEX(Ranks!$1:$1048576,$A333,CO$1))","v":""},{"$f":"IF($A333=\"N/A\",Ref!$B$36,INDEX(Ranks!$1:$1048576,$A333,CP$1))","v":""},{"$f":"IF($A333=\"N/A\",Ref!$B$36,INDEX(Ranks!$1:$1048576,$A333,CQ$1))","v":""},{"$f":"IF($A333=\"N/A\",Ref!$B$36,INDEX(Ranks!$1:$1048576,$A333,CR$1))","v":""},{"$f":"IF($A333=\"N/A\",Ref!$B$36,INDEX(Ranks!$1:$1048576,$A333,CS$1))","v":""},{"$f":"IF($A333=\"N/A\",Ref!$B$36,INDEX(Ranks!$1:$1048576,$A333,CT$1))","v":""},{"$f":"IF($A333=\"N/A\",Ref!$B$36,INDEX(Ranks!$1:$1048576,$A333,CU$1))","v":""},{"$f":"IF($A333=\"N/A\",Ref!$B$36,INDEX(Ranks!$1:$1048576,$A333,CV$1))","v":""},{"$f":"IF($A333=\"N/A\",Ref!$B$36,INDEX(Ranks!$1:$1048576,$A333,CW$1))","v":""},{"$f":"IF($A333=\"N/A\",Ref!$B$36,INDEX(Ranks!$1:$1048576,$A333,CX$1))","v":""},{"$f":"IF($A333=\"N/A\",Ref!$B$36,INDEX(Ranks!$1:$1048576,$A333,CY$1))","v":""},{"$f":"IF($A333=\"N/A\",Ref!$B$36,INDEX(Ranks!$1:$1048576,$A333,CZ$1))","v":""},{"$f":"IF($A333=\"N/A\",Ref!$B$36,INDEX(Ranks!$1:$1048576,$A333,DA$1))","v":""},{"$f":"IF($A333=\"N/A\",Ref!$B$36,INDEX(Ranks!$1:$1048576,$A333,DB$1))","v":""},{"$f":"IF($A333=\"N/A\",Ref!$B$36,INDEX(Ranks!$1:$1048576,$A333,DC$1))","v":""},{"$f":"IF($A333=\"N/A\",Ref!$B$36,INDEX(Ranks!$1:$1048576,$A333,DD$1))","v":""},{"$f":"IF($A333=\"N/A\",Ref!$B$36,INDEX(Ranks!$1:$1048576,$A333,DE$1))","v":""},{"$f":"IF($A333=\"N/A\",Ref!$B$36,INDEX(Ranks!$1:$1048576,$A333,DF$1))","v":""},{"$f":"IF($A333=\"N/A\",Ref!$B$36,INDEX(Ranks!$1:$1048576,$A333,DG$1))","v":""},{"$f":"IF($A333=\"N/A\",Ref!$B$36,INDEX(Ranks!$1:$1048576,$A333,DH$1))","v":""},{"$f":"IF($A333=\"N/A\",Ref!$B$36,INDEX(Ranks!$1:$1048576,$A333,DI$1))","v":""},{"$f":"IF($A333=\"N/A\",Ref!$B$36,INDEX(Ranks!$1:$1048576,$A333,DJ$1))","v":""},{"$f":"IF($A333=\"N/A\",Ref!$B$36,INDEX(Ranks!$1:$1048576,$A333,DK$1))","v":""},{"$f":"IF($A333=\"N/A\",Ref!$B$36,INDEX(Ranks!$1:$1048576,$A333,DL$1))","v":""},{"$f":"IF($A333=\"N/A\",Ref!$B$36,INDEX(Ranks!$1:$1048576,$A333,DM$1))","v":""},{"$f":"IF($A333=\"N/A\",Ref!$B$36,INDEX(Ranks!$1:$1048576,$A333,DN$1))","v":""},{"$f":"IF($A333=\"N/A\",Ref!$B$36,INDEX(Ranks!$1:$1048576,$A333,DO$1))","v":""},{"$f":"IF($A333=\"N/A\",Ref!$B$36,INDEX(Ranks!$1:$1048576,$A333,DP$1))","v":""},{"$f":"IF($A333=\"N/A\",Ref!$B$36,INDEX(Ranks!$1:$1048576,$A333,DQ$1))","v":""},{"$f":"IF($A333=\"N/A\",Ref!$B$36,INDEX(Ranks!$1:$1048576,$A333,DR$1))","v":""},{"$f":"IF($A333=\"N/A\",Ref!$B$36,INDEX(Ranks!$1:$1048576,$A333,DS$1))","v":""},{"$f":"IF($A333=\"N/A\",Ref!$B$36,INDEX(Ranks!$1:$1048576,$A333,DT$1))","v":""},{"$f":"IF($A333=\"N/A\",Ref!$B$36,INDEX(Ranks!$1:$1048576,$A333,DU$1))","v":""},{"$f":"IF($A333=\"N/A\",Ref!$B$36,INDEX(Ranks!$1:$1048576,$A333,DV$1))","v":""},{"$f":"IF($A333=\"N/A\",Ref!$B$36,INDEX(Ranks!$1:$1048576,$A333,DW$1))","v":""},{"$f":"IF($A333=\"N/A\",Ref!$B$36,INDEX(Ranks!$1:$1048576,$A333,DX$1))","v":""},{"$f":"IF($A333=\"N/A\",Ref!$B$36,INDEX(Ranks!$1:$1048576,$A333,DY$1))","v":""},{"$f":"IF($A333=\"N/A\",Ref!$B$36,INDEX(Ranks!$1:$1048576,$A333,DZ$1))","v":""},{"$f":"IF($A333=\"N/A\",Ref!$B$36,INDEX(Ranks!$1:$1048576,$A333,EA$1))","v":""},{"$f":"IF($A333=\"N/A\",Ref!$B$36,INDEX(Ranks!$1:$1048576,$A333,EB$1))","v":""}]
[{"$f":"IFERROR(MATCH('Portfolio Page'!L334,Ranks!L:L,0),\"N/A\")","v":"N/A"},null,{"$f":"IF($A334=\"N/A\",\"\",INDEX(Ranks!$1:$1048576,$A334,C$1))","v":""},{"$f":"IF($A334=\"N/A\",Ref!$B$36,INDEX(Ranks!$1:$1048576,$A334,D$1))","v":""},{"$f":"IF($A334=\"N/A\",Ref!$B$36,INDEX(Ranks!$1:$1048576,$A334,E$1))","v":""},{"$f":"IF($A334=\"N/A\",\"\",INDEX(Ranks!$1:$1048576,$A334,F$1))","v":""},{"$f":"IF($A334=\"N/A\",\"\",INDEX(Ranks!$1:$1048576,$A334,G$1))","v":""},{"$f":"IF($A334=\"N/A\",\"\",INDEX(Ranks!$1:$1048576,$A334,H$1))","v":""},{"$f":"IF($A334=\"N/A\",\"\",INDEX(Ranks!$1:$1048576,$A334,I$1))","v":""},{"$f":"IF($A334=\"N/A\",\"\",INDEX(Ranks!$1:$1048576,$A334,J$1))","v":""},{"$f":"IF($A334=\"N/A\",\"\",INDEX(Ranks!$1:$1048576,$A334,K$1))","v":""},null,{"$f":"IF($A334=\"N/A\",Ref!$B$36,INDEX(Ranks!$1:$1048576,$A334,M$1))","v":""},{"$f":"IF($A334=\"N/A\",Ref!$B$36,INDEX(Ranks!$1:$1048576,$A334,N$1))","v":""},{"$f":"IF($A334=\"N/A\",Ref!$B$36,INDEX(Ranks!$1:$1048576,$A334,O$1))","v":""},{"$f":"IF($A334=\"N/A\",Ref!$B$36,INDEX(Ranks!$1:$1048576,$A334,P$1))","v":""},{"$f":"IF($A334=\"N/A\",Ref!$B$36,INDEX(Ranks!$1:$1048576,$A334,Q$1))","v":""},{"$f":"IF($A334=\"N/A\",Ref!$B$36,INDEX(Ranks!$1:$1048576,$A334,R$1))","v":""},{"$f":"IF($A334=\"N/A\",Ref!$B$36,INDEX(Ranks!$1:$1048576,$A334,S$1))","v":""},{"$f":"IF($A334=\"N/A\",Ref!$B$36,INDEX(Ranks!$1:$1048576,$A334,T$1))","v":""},{"$f":"IF($A334=\"N/A\",Ref!$B$36,INDEX(Ranks!$1:$1048576,$A334,U$1))","v":""},{"$f":"IF($A334=\"N/A\",Ref!$B$36,INDEX(Ranks!$1:$1048576,$A334,V$1))","v":""},{"$f":"IF($A334=\"N/A\",Ref!$B$36,INDEX(Ranks!$1:$1048576,$A334,W$1))","v":""},{"$f":"IF($A334=\"N/A\",Ref!$B$36,INDEX(Ranks!$1:$1048576,$A334,X$1))","v":""},{"$f":"IF($A334=\"N/A\",Ref!$B$36,INDEX(Ranks!$1:$1048576,$A334,Y$1))","v":""},{"$f":"IF($A334=\"N/A\",Ref!$B$36,INDEX(Ranks!$1:$1048576,$A334,Z$1))","v":""},{"$f":"IF($A334=\"N/A\",Ref!$B$36,INDEX(Ranks!$1:$1048576,$A334,AA$1))","v":""},{"$f":"IF($A334=\"N/A\",Ref!$B$36,INDEX(Ranks!$1:$1048576,$A334,AB$1))","v":""},{"$f":"IF($A334=\"N/A\",Ref!$B$36,INDEX(Ranks!$1:$1048576,$A334,AC$1))","v":""},{"$f":"IF($A334=\"N/A\",Ref!$B$36,INDEX(Ranks!$1:$1048576,$A334,AD$1))","v":""},{"$f":"IF($A334=\"N/A\",Ref!$B$36,INDEX(Ranks!$1:$1048576,$A334,AE$1))","v":""},{"$f":"IF($A334=\"N/A\",Ref!$B$36,INDEX(Ranks!$1:$1048576,$A334,AF$1))","v":""},{"$f":"IF($A334=\"N/A\",Ref!$B$36,INDEX(Ranks!$1:$1048576,$A334,AG$1))","v":""},{"$f":"IF($A334=\"N/A\",Ref!$B$36,INDEX(Ranks!$1:$1048576,$A334,AH$1))","v":""},{"$f":"IF($A334=\"N/A\",Ref!$B$36,INDEX(Ranks!$1:$1048576,$A334,AI$1))","v":""},{"$f":"IF($A334=\"N/A\",Ref!$B$36,INDEX(Ranks!$1:$1048576,$A334,AJ$1))","v":""},{"$f":"IF($A334=\"N/A\",Ref!$B$36,INDEX(Ranks!$1:$1048576,$A334,AK$1))","v":""},{"$f":"IF($A334=\"N/A\",Ref!$B$36,INDEX(Ranks!$1:$1048576,$A334,AL$1))","v":""},{"$f":"IF($A334=\"N/A\",Ref!$B$36,INDEX(Ranks!$1:$1048576,$A334,AM$1))","v":""},{"$f":"IF($A334=\"N/A\",Ref!$B$36,INDEX(Ranks!$1:$1048576,$A334,AN$1))","v":""},{"$f":"IF($A334=\"N/A\",Ref!$B$36,INDEX(Ranks!$1:$1048576,$A334,AO$1))","v":""},{"$f":"IF($A334=\"N/A\",Ref!$B$36,INDEX(Ranks!$1:$1048576,$A334,AP$1))","v":""},{"$f":"IF($A334=\"N/A\",Ref!$B$36,INDEX(Ranks!$1:$1048576,$A334,AQ$1))","v":""},{"$f":"IF($A334=\"N/A\",Ref!$B$36,INDEX(Ranks!$1:$1048576,$A334,AR$1))","v":""},{"$f":"IF($A334=\"N/A\",Ref!$B$36,INDEX(Ranks!$1:$1048576,$A334,AS$1))","v":""},{"$f":"IF($A334=\"N/A\",Ref!$B$36,INDEX(Ranks!$1:$1048576,$A334,AT$1))","v":""},{"$f":"IF($A334=\"N/A\",Ref!$B$36,INDEX(Ranks!$1:$1048576,$A334,AU$1))","v":""},{"$f":"IF($A334=\"N/A\",Ref!$B$36,INDEX(Ranks!$1:$1048576,$A334,AV$1))","v":""},{"$f":"IF($A334=\"N/A\",Ref!$B$36,INDEX(Ranks!$1:$1048576,$A334,AW$1))","v":""},{"$f":"IF($A334=\"N/A\",Ref!$B$36,INDEX(Ranks!$1:$1048576,$A334,AX$1))","v":""},{"$f":"IF($A334=\"N/A\",Ref!$B$36,INDEX(Ranks!$1:$1048576,$A334,AY$1))","v":""},{"$f":"IF($A334=\"N/A\",Ref!$B$36,INDEX(Ranks!$1:$1048576,$A334,AZ$1))","v":""},{"$f":"IF($A334=\"N/A\",Ref!$B$36,INDEX(Ranks!$1:$1048576,$A334,BA$1))","v":""},{"$f":"IF($A334=\"N/A\",Ref!$B$36,INDEX(Ranks!$1:$1048576,$A334,BB$1))","v":""},{"$f":"IF($A334=\"N/A\",Ref!$B$36,INDEX(Ranks!$1:$1048576,$A334,BC$1))","v":""},{"$f":"IF($A334=\"N/A\",Ref!$B$36,INDEX(Ranks!$1:$1048576,$A334,BD$1))","v":""},{"$f":"IF($A334=\"N/A\",Ref!$B$36,INDEX(Ranks!$1:$1048576,$A334,BE$1))","v":""},{"$f":"IF($A334=\"N/A\",Ref!$B$36,INDEX(Ranks!$1:$1048576,$A334,BF$1))","v":""},{"$f":"IF($A334=\"N/A\",Ref!$B$36,INDEX(Ranks!$1:$1048576,$A334,BG$1))","v":""},{"$f":"IF($A334=\"N/A\",Ref!$B$36,INDEX(Ranks!$1:$1048576,$A334,BH$1))","v":""},{"$f":"IF($A334=\"N/A\",Ref!$B$36,INDEX(Ranks!$1:$1048576,$A334,BI$1))","v":""},{"$f":"IF($A334=\"N/A\",Ref!$B$36,INDEX(Ranks!$1:$1048576,$A334,BJ$1))","v":""},{"$f":"IF($A334=\"N/A\",Ref!$B$36,INDEX(Ranks!$1:$1048576,$A334,BK$1))","v":""},{"$f":"IF($A334=\"N/A\",Ref!$B$36,INDEX(Ranks!$1:$1048576,$A334,BL$1))","v":""},{"$f":"IF($A334=\"N/A\",Ref!$B$36,INDEX(Ranks!$1:$1048576,$A334,BM$1))","v":""},{"$f":"IF($A334=\"N/A\",Ref!$B$36,INDEX(Ranks!$1:$1048576,$A334,BN$1))","v":""},{"$f":"IF($A334=\"N/A\",Ref!$B$36,INDEX(Ranks!$1:$1048576,$A334,BO$1))","v":""},{"$f":"IF($A334=\"N/A\",Ref!$B$36,INDEX(Ranks!$1:$1048576,$A334,BP$1))","v":""},{"$f":"IF($A334=\"N/A\",Ref!$B$36,INDEX(Ranks!$1:$1048576,$A334,BQ$1))","v":""},{"$f":"IF($A334=\"N/A\",Ref!$B$36,INDEX(Ranks!$1:$1048576,$A334,BR$1))","v":""},{"$f":"IF($A334=\"N/A\",Ref!$B$36,INDEX(Ranks!$1:$1048576,$A334,BS$1))","v":""},{"$f":"IF($A334=\"N/A\",Ref!$B$36,INDEX(Ranks!$1:$1048576,$A334,BT$1))","v":""},{"$f":"IF($A334=\"N/A\",Ref!$B$36,INDEX(Ranks!$1:$1048576,$A334,BU$1))","v":""},{"$f":"IF($A334=\"N/A\",Ref!$B$36,INDEX(Ranks!$1:$1048576,$A334,BV$1))","v":""},{"$f":"IF($A334=\"N/A\",Ref!$B$36,INDEX(Ranks!$1:$1048576,$A334,BW$1))","v":""},{"$f":"IF($A334=\"N/A\",Ref!$B$36,INDEX(Ranks!$1:$1048576,$A334,BX$1))","v":""},{"$f":"IF($A334=\"N/A\",Ref!$B$36,INDEX(Ranks!$1:$1048576,$A334,BY$1))","v":""},{"$f":"IF($A334=\"N/A\",Ref!$B$36,INDEX(Ranks!$1:$1048576,$A334,BZ$1))","v":""},{"$f":"IF($A334=\"N/A\",Ref!$B$36,INDEX(Ranks!$1:$1048576,$A334,CA$1))","v":""},{"$f":"IF($A334=\"N/A\",Ref!$B$36,INDEX(Ranks!$1:$1048576,$A334,CB$1))","v":""},{"$f":"IF($A334=\"N/A\",Ref!$B$36,INDEX(Ranks!$1:$1048576,$A334,CC$1))","v":""},{"$f":"IF($A334=\"N/A\",Ref!$B$36,INDEX(Ranks!$1:$1048576,$A334,CD$1))","v":""},{"$f":"IF($A334=\"N/A\",Ref!$B$36,INDEX(Ranks!$1:$1048576,$A334,CE$1))","v":""},{"$f":"IF($A334=\"N/A\",Ref!$B$36,INDEX(Ranks!$1:$1048576,$A334,CF$1))","v":""},{"$f":"IF($A334=\"N/A\",Ref!$B$36,INDEX(Ranks!$1:$1048576,$A334,CG$1))","v":""},{"$f":"IF($A334=\"N/A\",Ref!$B$36,INDEX(Ranks!$1:$1048576,$A334,CH$1))","v":""},{"$f":"IF($A334=\"N/A\",Ref!$B$36,INDEX(Ranks!$1:$1048576,$A334,CI$1))","v":""},{"$f":"IF($A334=\"N/A\",Ref!$B$36,INDEX(Ranks!$1:$1048576,$A334,CJ$1))","v":""},{"$f":"IF($A334=\"N/A\",Ref!$B$36,INDEX(Ranks!$1:$1048576,$A334,CK$1))","v":""},{"$f":"IF($A334=\"N/A\",Ref!$B$36,INDEX(Ranks!$1:$1048576,$A334,CL$1))","v":""},{"$f":"IF($A334=\"N/A\",Ref!$B$36,INDEX(Ranks!$1:$1048576,$A334,CM$1))","v":""},{"$f":"IF($A334=\"N/A\",Ref!$B$36,INDEX(Ranks!$1:$1048576,$A334,CN$1))","v":""},{"$f":"IF($A334=\"N/A\",Ref!$B$36,INDEX(Ranks!$1:$1048576,$A334,CO$1))","v":""},{"$f":"IF($A334=\"N/A\",Ref!$B$36,INDEX(Ranks!$1:$1048576,$A334,CP$1))","v":""},{"$f":"IF($A334=\"N/A\",Ref!$B$36,INDEX(Ranks!$1:$1048576,$A334,CQ$1))","v":""},{"$f":"IF($A334=\"N/A\",Ref!$B$36,INDEX(Ranks!$1:$1048576,$A334,CR$1))","v":""},{"$f":"IF($A334=\"N/A\",Ref!$B$36,INDEX(Ranks!$1:$1048576,$A334,CS$1))","v":""},{"$f":"IF($A334=\"N/A\",Ref!$B$36,INDEX(Ranks!$1:$1048576,$A334,CT$1))","v":""},{"$f":"IF($A334=\"N/A\",Ref!$B$36,INDEX(Ranks!$1:$1048576,$A334,CU$1))","v":""},{"$f":"IF($A334=\"N/A\",Ref!$B$36,INDEX(Ranks!$1:$1048576,$A334,CV$1))","v":""},{"$f":"IF($A334=\"N/A\",Ref!$B$36,INDEX(Ranks!$1:$1048576,$A334,CW$1))","v":""},{"$f":"IF($A334=\"N/A\",Ref!$B$36,INDEX(Ranks!$1:$1048576,$A334,CX$1))","v":""},{"$f":"IF($A334=\"N/A\",Ref!$B$36,INDEX(Ranks!$1:$1048576,$A334,CY$1))","v":""},{"$f":"IF($A334=\"N/A\",Ref!$B$36,INDEX(Ranks!$1:$1048576,$A334,CZ$1))","v":""},{"$f":"IF($A334=\"N/A\",Ref!$B$36,INDEX(Ranks!$1:$1048576,$A334,DA$1))","v":""},{"$f":"IF($A334=\"N/A\",Ref!$B$36,INDEX(Ranks!$1:$1048576,$A334,DB$1))","v":""},{"$f":"IF($A334=\"N/A\",Ref!$B$36,INDEX(Ranks!$1:$1048576,$A334,DC$1))","v":""},{"$f":"IF($A334=\"N/A\",Ref!$B$36,INDEX(Ranks!$1:$1048576,$A334,DD$1))","v":""},{"$f":"IF($A334=\"N/A\",Ref!$B$36,INDEX(Ranks!$1:$1048576,$A334,DE$1))","v":""},{"$f":"IF($A334=\"N/A\",Ref!$B$36,INDEX(Ranks!$1:$1048576,$A334,DF$1))","v":""},{"$f":"IF($A334=\"N/A\",Ref!$B$36,INDEX(Ranks!$1:$1048576,$A334,DG$1))","v":""},{"$f":"IF($A334=\"N/A\",Ref!$B$36,INDEX(Ranks!$1:$1048576,$A334,DH$1))","v":""},{"$f":"IF($A334=\"N/A\",Ref!$B$36,INDEX(Ranks!$1:$1048576,$A334,DI$1))","v":""},{"$f":"IF($A334=\"N/A\",Ref!$B$36,INDEX(Ranks!$1:$1048576,$A334,DJ$1))","v":""},{"$f":"IF($A334=\"N/A\",Ref!$B$36,INDEX(Ranks!$1:$1048576,$A334,DK$1))","v":""},{"$f":"IF($A334=\"N/A\",Ref!$B$36,INDEX(Ranks!$1:$1048576,$A334,DL$1))","v":""},{"$f":"IF($A334=\"N/A\",Ref!$B$36,INDEX(Ranks!$1:$1048576,$A334,DM$1))","v":""},{"$f":"IF($A334=\"N/A\",Ref!$B$36,INDEX(Ranks!$1:$1048576,$A334,DN$1))","v":""},{"$f":"IF($A334=\"N/A\",Ref!$B$36,INDEX(Ranks!$1:$1048576,$A334,DO$1))","v":""},{"$f":"IF($A334=\"N/A\",Ref!$B$36,INDEX(Ranks!$1:$1048576,$A334,DP$1))","v":""},{"$f":"IF($A334=\"N/A\",Ref!$B$36,INDEX(Ranks!$1:$1048576,$A334,DQ$1))","v":""},{"$f":"IF($A334=\"N/A\",Ref!$B$36,INDEX(Ranks!$1:$1048576,$A334,DR$1))","v":""},{"$f":"IF($A334=\"N/A\",Ref!$B$36,INDEX(Ranks!$1:$1048576,$A334,DS$1))","v":""},{"$f":"IF($A334=\"N/A\",Ref!$B$36,INDEX(Ranks!$1:$1048576,$A334,DT$1))","v":""},{"$f":"IF($A334=\"N/A\",Ref!$B$36,INDEX(Ranks!$1:$1048576,$A334,DU$1))","v":""},{"$f":"IF($A334=\"N/A\",Ref!$B$36,INDEX(Ranks!$1:$1048576,$A334,DV$1))","v":""},{"$f":"IF($A334=\"N/A\",Ref!$B$36,INDEX(Ranks!$1:$1048576,$A334,DW$1))","v":""},{"$f":"IF($A334=\"N/A\",Ref!$B$36,INDEX(Ranks!$1:$1048576,$A334,DX$1))","v":""},{"$f":"IF($A334=\"N/A\",Ref!$B$36,INDEX(Ranks!$1:$1048576,$A334,DY$1))","v":""},{"$f":"IF($A334=\"N/A\",Ref!$B$36,INDEX(Ranks!$1:$1048576,$A334,DZ$1))","v":""},{"$f":"IF($A334=\"N/A\",Ref!$B$36,INDEX(Ranks!$1:$1048576,$A334,EA$1))","v":""},{"$f":"IF($A334=\"N/A\",Ref!$B$36,INDEX(Ranks!$1:$1048576,$A334,EB$1))","v":""}]
[{"$f":"IFERROR(MATCH('Portfolio Page'!L335,Ranks!L:L,0),\"N/A\")","v":"N/A"},null,{"$f":"IF($A335=\"N/A\",\"\",INDEX(Ranks!$1:$1048576,$A335,C$1))","v":""},{"$f":"IF($A335=\"N/A\",Ref!$B$36,INDEX(Ranks!$1:$1048576,$A335,D$1))","v":""},{"$f":"IF($A335=\"N/A\",Ref!$B$36,INDEX(Ranks!$1:$1048576,$A335,E$1))","v":""},{"$f":"IF($A335=\"N/A\",\"\",INDEX(Ranks!$1:$1048576,$A335,F$1))","v":""},{"$f":"IF($A335=\"N/A\",\"\",INDEX(Ranks!$1:$1048576,$A335,G$1))","v":""},{"$f":"IF($A335=\"N/A\",\"\",INDEX(Ranks!$1:$1048576,$A335,H$1))","v":""},{"$f":"IF($A335=\"N/A\",\"\",INDEX(Ranks!$1:$1048576,$A335,I$1))","v":""},{"$f":"IF($A335=\"N/A\",\"\",INDEX(Ranks!$1:$1048576,$A335,J$1))","v":""},{"$f":"IF($A335=\"N/A\",\"\",INDEX(Ranks!$1:$1048576,$A335,K$1))","v":""},null,{"$f":"IF($A335=\"N/A\",Ref!$B$36,INDEX(Ranks!$1:$1048576,$A335,M$1))","v":""},{"$f":"IF($A335=\"N/A\",Ref!$B$36,INDEX(Ranks!$1:$1048576,$A335,N$1))","v":""},{"$f":"IF($A335=\"N/A\",Ref!$B$36,INDEX(Ranks!$1:$1048576,$A335,O$1))","v":""},{"$f":"IF($A335=\"N/A\",Ref!$B$36,INDEX(Ranks!$1:$1048576,$A335,P$1))","v":""},{"$f":"IF($A335=\"N/A\",Ref!$B$36,INDEX(Ranks!$1:$1048576,$A335,Q$1))","v":""},{"$f":"IF($A335=\"N/A\",Ref!$B$36,INDEX(Ranks!$1:$1048576,$A335,R$1))","v":""},{"$f":"IF($A335=\"N/A\",Ref!$B$36,INDEX(Ranks!$1:$1048576,$A335,S$1))","v":""},{"$f":"IF($A335=\"N/A\",Ref!$B$36,INDEX(Ranks!$1:$1048576,$A335,T$1))","v":""},{"$f":"IF($A335=\"N/A\",Ref!$B$36,INDEX(Ranks!$1:$1048576,$A335,U$1))","v":""},{"$f":"IF($A335=\"N/A\",Ref!$B$36,INDEX(Ranks!$1:$1048576,$A335,V$1))","v":""},{"$f":"IF($A335=\"N/A\",Ref!$B$36,INDEX(Ranks!$1:$1048576,$A335,W$1))","v":""},{"$f":"IF($A335=\"N/A\",Ref!$B$36,INDEX(Ranks!$1:$1048576,$A335,X$1))","v":""},{"$f":"IF($A335=\"N/A\",Ref!$B$36,INDEX(Ranks!$1:$1048576,$A335,Y$1))","v":""},{"$f":"IF($A335=\"N/A\",Ref!$B$36,INDEX(Ranks!$1:$1048576,$A335,Z$1))","v":""},{"$f":"IF($A335=\"N/A\",Ref!$B$36,INDEX(Ranks!$1:$1048576,$A335,AA$1))","v":""},{"$f":"IF($A335=\"N/A\",Ref!$B$36,INDEX(Ranks!$1:$1048576,$A335,AB$1))","v":""},{"$f":"IF($A335=\"N/A\",Ref!$B$36,INDEX(Ranks!$1:$1048576,$A335,AC$1))","v":""},{"$f":"IF($A335=\"N/A\",Ref!$B$36,INDEX(Ranks!$1:$1048576,$A335,AD$1))","v":""},{"$f":"IF($A335=\"N/A\",Ref!$B$36,INDEX(Ranks!$1:$1048576,$A335,AE$1))","v":""},{"$f":"IF($A335=\"N/A\",Ref!$B$36,INDEX(Ranks!$1:$1048576,$A335,AF$1))","v":""},{"$f":"IF($A335=\"N/A\",Ref!$B$36,INDEX(Ranks!$1:$1048576,$A335,AG$1))","v":""},{"$f":"IF($A335=\"N/A\",Ref!$B$36,INDEX(Ranks!$1:$1048576,$A335,AH$1))","v":""},{"$f":"IF($A335=\"N/A\",Ref!$B$36,INDEX(Ranks!$1:$1048576,$A335,AI$1))","v":""},{"$f":"IF($A335=\"N/A\",Ref!$B$36,INDEX(Ranks!$1:$1048576,$A335,AJ$1))","v":""},{"$f":"IF($A335=\"N/A\",Ref!$B$36,INDEX(Ranks!$1:$1048576,$A335,AK$1))","v":""},{"$f":"IF($A335=\"N/A\",Ref!$B$36,INDEX(Ranks!$1:$1048576,$A335,AL$1))","v":""},{"$f":"IF($A335=\"N/A\",Ref!$B$36,INDEX(Ranks!$1:$1048576,$A335,AM$1))","v":""},{"$f":"IF($A335=\"N/A\",Ref!$B$36,INDEX(Ranks!$1:$1048576,$A335,AN$1))","v":""},{"$f":"IF($A335=\"N/A\",Ref!$B$36,INDEX(Ranks!$1:$1048576,$A335,AO$1))","v":""},{"$f":"IF($A335=\"N/A\",Ref!$B$36,INDEX(Ranks!$1:$1048576,$A335,AP$1))","v":""},{"$f":"IF($A335=\"N/A\",Ref!$B$36,INDEX(Ranks!$1:$1048576,$A335,AQ$1))","v":""},{"$f":"IF($A335=\"N/A\",Ref!$B$36,INDEX(Ranks!$1:$1048576,$A335,AR$1))","v":""},{"$f":"IF($A335=\"N/A\",Ref!$B$36,INDEX(Ranks!$1:$1048576,$A335,AS$1))","v":""},{"$f":"IF($A335=\"N/A\",Ref!$B$36,INDEX(Ranks!$1:$1048576,$A335,AT$1))","v":""},{"$f":"IF($A335=\"N/A\",Ref!$B$36,INDEX(Ranks!$1:$1048576,$A335,AU$1))","v":""},{"$f":"IF($A335=\"N/A\",Ref!$B$36,INDEX(Ranks!$1:$1048576,$A335,AV$1))","v":""},{"$f":"IF($A335=\"N/A\",Ref!$B$36,INDEX(Ranks!$1:$1048576,$A335,AW$1))","v":""},{"$f":"IF($A335=\"N/A\",Ref!$B$36,INDEX(Ranks!$1:$1048576,$A335,AX$1))","v":""},{"$f":"IF($A335=\"N/A\",Ref!$B$36,INDEX(Ranks!$1:$1048576,$A335,AY$1))","v":""},{"$f":"IF($A335=\"N/A\",Ref!$B$36,INDEX(Ranks!$1:$1048576,$A335,AZ$1))","v":""},{"$f":"IF($A335=\"N/A\",Ref!$B$36,INDEX(Ranks!$1:$1048576,$A335,BA$1))","v":""},{"$f":"IF($A335=\"N/A\",Ref!$B$36,INDEX(Ranks!$1:$1048576,$A335,BB$1))","v":""},{"$f":"IF($A335=\"N/A\",Ref!$B$36,INDEX(Ranks!$1:$1048576,$A335,BC$1))","v":""},{"$f":"IF($A335=\"N/A\",Ref!$B$36,INDEX(Ranks!$1:$1048576,$A335,BD$1))","v":""},{"$f":"IF($A335=\"N/A\",Ref!$B$36,INDEX(Ranks!$1:$1048576,$A335,BE$1))","v":""},{"$f":"IF($A335=\"N/A\",Ref!$B$36,INDEX(Ranks!$1:$1048576,$A335,BF$1))","v":""},{"$f":"IF($A335=\"N/A\",Ref!$B$36,INDEX(Ranks!$1:$1048576,$A335,BG$1))","v":""},{"$f":"IF($A335=\"N/A\",Ref!$B$36,INDEX(Ranks!$1:$1048576,$A335,BH$1))","v":""},{"$f":"IF($A335=\"N/A\",Ref!$B$36,INDEX(Ranks!$1:$1048576,$A335,BI$1))","v":""},{"$f":"IF($A335=\"N/A\",Ref!$B$36,INDEX(Ranks!$1:$1048576,$A335,BJ$1))","v":""},{"$f":"IF($A335=\"N/A\",Ref!$B$36,INDEX(Ranks!$1:$1048576,$A335,BK$1))","v":""},{"$f":"IF($A335=\"N/A\",Ref!$B$36,INDEX(Ranks!$1:$1048576,$A335,BL$1))","v":""},{"$f":"IF($A335=\"N/A\",Ref!$B$36,INDEX(Ranks!$1:$1048576,$A335,BM$1))","v":""},{"$f":"IF($A335=\"N/A\",Ref!$B$36,INDEX(Ranks!$1:$1048576,$A335,BN$1))","v":""},{"$f":"IF($A335=\"N/A\",Ref!$B$36,INDEX(Ranks!$1:$1048576,$A335,BO$1))","v":""},{"$f":"IF($A335=\"N/A\",Ref!$B$36,INDEX(Ranks!$1:$1048576,$A335,BP$1))","v":""},{"$f":"IF($A335=\"N/A\",Ref!$B$36,INDEX(Ranks!$1:$1048576,$A335,BQ$1))","v":""},{"$f":"IF($A335=\"N/A\",Ref!$B$36,INDEX(Ranks!$1:$1048576,$A335,BR$1))","v":""},{"$f":"IF($A335=\"N/A\",Ref!$B$36,INDEX(Ranks!$1:$1048576,$A335,BS$1))","v":""},{"$f":"IF($A335=\"N/A\",Ref!$B$36,INDEX(Ranks!$1:$1048576,$A335,BT$1))","v":""},{"$f":"IF($A335=\"N/A\",Ref!$B$36,INDEX(Ranks!$1:$1048576,$A335,BU$1))","v":""},{"$f":"IF($A335=\"N/A\",Ref!$B$36,INDEX(Ranks!$1:$1048576,$A335,BV$1))","v":""},{"$f":"IF($A335=\"N/A\",Ref!$B$36,INDEX(Ranks!$1:$1048576,$A335,BW$1))","v":""},{"$f":"IF($A335=\"N/A\",Ref!$B$36,INDEX(Ranks!$1:$1048576,$A335,BX$1))","v":""},{"$f":"IF($A335=\"N/A\",Ref!$B$36,INDEX(Ranks!$1:$1048576,$A335,BY$1))","v":""},{"$f":"IF($A335=\"N/A\",Ref!$B$36,INDEX(Ranks!$1:$1048576,$A335,BZ$1))","v":""},{"$f":"IF($A335=\"N/A\",Ref!$B$36,INDEX(Ranks!$1:$1048576,$A335,CA$1))","v":""},{"$f":"IF($A335=\"N/A\",Ref!$B$36,INDEX(Ranks!$1:$1048576,$A335,CB$1))","v":""},{"$f":"IF($A335=\"N/A\",Ref!$B$36,INDEX(Ranks!$1:$1048576,$A335,CC$1))","v":""},{"$f":"IF($A335=\"N/A\",Ref!$B$36,INDEX(Ranks!$1:$1048576,$A335,CD$1))","v":""},{"$f":"IF($A335=\"N/A\",Ref!$B$36,INDEX(Ranks!$1:$1048576,$A335,CE$1))","v":""},{"$f":"IF($A335=\"N/A\",Ref!$B$36,INDEX(Ranks!$1:$1048576,$A335,CF$1))","v":""},{"$f":"IF($A335=\"N/A\",Ref!$B$36,INDEX(Ranks!$1:$1048576,$A335,CG$1))","v":""},{"$f":"IF($A335=\"N/A\",Ref!$B$36,INDEX(Ranks!$1:$1048576,$A335,CH$1))","v":""},{"$f":"IF($A335=\"N/A\",Ref!$B$36,INDEX(Ranks!$1:$1048576,$A335,CI$1))","v":""},{"$f":"IF($A335=\"N/A\",Ref!$B$36,INDEX(Ranks!$1:$1048576,$A335,CJ$1))","v":""},{"$f":"IF($A335=\"N/A\",Ref!$B$36,INDEX(Ranks!$1:$1048576,$A335,CK$1))","v":""},{"$f":"IF($A335=\"N/A\",Ref!$B$36,INDEX(Ranks!$1:$1048576,$A335,CL$1))","v":""},{"$f":"IF($A335=\"N/A\",Ref!$B$36,INDEX(Ranks!$1:$1048576,$A335,CM$1))","v":""},{"$f":"IF($A335=\"N/A\",Ref!$B$36,INDEX(Ranks!$1:$1048576,$A335,CN$1))","v":""},{"$f":"IF($A335=\"N/A\",Ref!$B$36,INDEX(Ranks!$1:$1048576,$A335,CO$1))","v":""},{"$f":"IF($A335=\"N/A\",Ref!$B$36,INDEX(Ranks!$1:$1048576,$A335,CP$1))","v":""},{"$f":"IF($A335=\"N/A\",Ref!$B$36,INDEX(Ranks!$1:$1048576,$A335,CQ$1))","v":""},{"$f":"IF($A335=\"N/A\",Ref!$B$36,INDEX(Ranks!$1:$1048576,$A335,CR$1))","v":""},{"$f":"IF($A335=\"N/A\",Ref!$B$36,INDEX(Ranks!$1:$1048576,$A335,CS$1))","v":""},{"$f":"IF($A335=\"N/A\",Ref!$B$36,INDEX(Ranks!$1:$1048576,$A335,CT$1))","v":""},{"$f":"IF($A335=\"N/A\",Ref!$B$36,INDEX(Ranks!$1:$1048576,$A335,CU$1))","v":""},{"$f":"IF($A335=\"N/A\",Ref!$B$36,INDEX(Ranks!$1:$1048576,$A335,CV$1))","v":""},{"$f":"IF($A335=\"N/A\",Ref!$B$36,INDEX(Ranks!$1:$1048576,$A335,CW$1))","v":""},{"$f":"IF($A335=\"N/A\",Ref!$B$36,INDEX(Ranks!$1:$1048576,$A335,CX$1))","v":""},{"$f":"IF($A335=\"N/A\",Ref!$B$36,INDEX(Ranks!$1:$1048576,$A335,CY$1))","v":""},{"$f":"IF($A335=\"N/A\",Ref!$B$36,INDEX(Ranks!$1:$1048576,$A335,CZ$1))","v":""},{"$f":"IF($A335=\"N/A\",Ref!$B$36,INDEX(Ranks!$1:$1048576,$A335,DA$1))","v":""},{"$f":"IF($A335=\"N/A\",Ref!$B$36,INDEX(Ranks!$1:$1048576,$A335,DB$1))","v":""},{"$f":"IF($A335=\"N/A\",Ref!$B$36,INDEX(Ranks!$1:$1048576,$A335,DC$1))","v":""},{"$f":"IF($A335=\"N/A\",Ref!$B$36,INDEX(Ranks!$1:$1048576,$A335,DD$1))","v":""},{"$f":"IF($A335=\"N/A\",Ref!$B$36,INDEX(Ranks!$1:$1048576,$A335,DE$1))","v":""},{"$f":"IF($A335=\"N/A\",Ref!$B$36,INDEX(Ranks!$1:$1048576,$A335,DF$1))","v":""},{"$f":"IF($A335=\"N/A\",Ref!$B$36,INDEX(Ranks!$1:$1048576,$A335,DG$1))","v":""},{"$f":"IF($A335=\"N/A\",Ref!$B$36,INDEX(Ranks!$1:$1048576,$A335,DH$1))","v":""},{"$f":"IF($A335=\"N/A\",Ref!$B$36,INDEX(Ranks!$1:$1048576,$A335,DI$1))","v":""},{"$f":"IF($A335=\"N/A\",Ref!$B$36,INDEX(Ranks!$1:$1048576,$A335,DJ$1))","v":""},{"$f":"IF($A335=\"N/A\",Ref!$B$36,INDEX(Ranks!$1:$1048576,$A335,DK$1))","v":""},{"$f":"IF($A335=\"N/A\",Ref!$B$36,INDEX(Ranks!$1:$1048576,$A335,DL$1))","v":""},{"$f":"IF($A335=\"N/A\",Ref!$B$36,INDEX(Ranks!$1:$1048576,$A335,DM$1))","v":""},{"$f":"IF($A335=\"N/A\",Ref!$B$36,INDEX(Ranks!$1:$1048576,$A335,DN$1))","v":""},{"$f":"IF($A335=\"N/A\",Ref!$B$36,INDEX(Ranks!$1:$1048576,$A335,DO$1))","v":""},{"$f":"IF($A335=\"N/A\",Ref!$B$36,INDEX(Ranks!$1:$1048576,$A335,DP$1))","v":""},{"$f":"IF($A335=\"N/A\",Ref!$B$36,INDEX(Ranks!$1:$1048576,$A335,DQ$1))","v":""},{"$f":"IF($A335=\"N/A\",Ref!$B$36,INDEX(Ranks!$1:$1048576,$A335,DR$1))","v":""},{"$f":"IF($A335=\"N/A\",Ref!$B$36,INDEX(Ranks!$1:$1048576,$A335,DS$1))","v":""},{"$f":"IF($A335=\"N/A\",Ref!$B$36,INDEX(Ranks!$1:$1048576,$A335,DT$1))","v":""},{"$f":"IF($A335=\"N/A\",Ref!$B$36,INDEX(Ranks!$1:$1048576,$A335,DU$1))","v":""},{"$f":"IF($A335=\"N/A\",Ref!$B$36,INDEX(Ranks!$1:$1048576,$A335,DV$1))","v":""},{"$f":"IF($A335=\"N/A\",Ref!$B$36,INDEX(Ranks!$1:$1048576,$A335,DW$1))","v":""},{"$f":"IF($A335=\"N/A\",Ref!$B$36,INDEX(Ranks!$1:$1048576,$A335,DX$1))","v":""},{"$f":"IF($A335=\"N/A\",Ref!$B$36,INDEX(Ranks!$1:$1048576,$A335,DY$1))","v":""},{"$f":"IF($A335=\"N/A\",Ref!$B$36,INDEX(Ranks!$1:$1048576,$A335,DZ$1))","v":""},{"$f":"IF($A335=\"N/A\",Ref!$B$36,INDEX(Ranks!$1:$1048576,$A335,EA$1))","v":""},{"$f":"IF($A335=\"N/A\",Ref!$B$36,INDEX(Ranks!$1:$1048576,$A335,EB$1))","v":""}]
[{"$f":"IFERROR(MATCH('Portfolio Page'!L336,Ranks!L:L,0),\"N/A\")","v":"N/A"},null,{"$f":"IF($A336=\"N/A\",\"\",INDEX(Ranks!$1:$1048576,$A336,C$1))","v":""},{"$f":"IF($A336=\"N/A\",Ref!$B$36,INDEX(Ranks!$1:$1048576,$A336,D$1))","v":""},{"$f":"IF($A336=\"N/A\",Ref!$B$36,INDEX(Ranks!$1:$1048576,$A336,E$1))","v":""},{"$f":"IF($A336=\"N/A\",\"\",INDEX(Ranks!$1:$1048576,$A336,F$1))","v":""},{"$f":"IF($A336=\"N/A\",\"\",INDEX(Ranks!$1:$1048576,$A336,G$1))","v":""},{"$f":"IF($A336=\"N/A\",\"\",INDEX(Ranks!$1:$1048576,$A336,H$1))","v":""},{"$f":"IF($A336=\"N/A\",\"\",INDEX(Ranks!$1:$1048576,$A336,I$1))","v":""},{"$f":"IF($A336=\"N/A\",\"\",INDEX(Ranks!$1:$1048576,$A336,J$1))","v":""},{"$f":"IF($A336=\"N/A\",\"\",INDEX(Ranks!$1:$1048576,$A336,K$1))","v":""},null,{"$f":"IF($A336=\"N/A\",Ref!$B$36,INDEX(Ranks!$1:$1048576,$A336,M$1))","v":""},{"$f":"IF($A336=\"N/A\",Ref!$B$36,INDEX(Ranks!$1:$1048576,$A336,N$1))","v":""},{"$f":"IF($A336=\"N/A\",Ref!$B$36,INDEX(Ranks!$1:$1048576,$A336,O$1))","v":""},{"$f":"IF($A336=\"N/A\",Ref!$B$36,INDEX(Ranks!$1:$1048576,$A336,P$1))","v":""},{"$f":"IF($A336=\"N/A\",Ref!$B$36,INDEX(Ranks!$1:$1048576,$A336,Q$1))","v":""},{"$f":"IF($A336=\"N/A\",Ref!$B$36,INDEX(Ranks!$1:$1048576,$A336,R$1))","v":""},{"$f":"IF($A336=\"N/A\",Ref!$B$36,INDEX(Ranks!$1:$1048576,$A336,S$1))","v":""},{"$f":"IF($A336=\"N/A\",Ref!$B$36,INDEX(Ranks!$1:$1048576,$A336,T$1))","v":""},{"$f":"IF($A336=\"N/A\",Ref!$B$36,INDEX(Ranks!$1:$1048576,$A336,U$1))","v":""},{"$f":"IF($A336=\"N/A\",Ref!$B$36,INDEX(Ranks!$1:$1048576,$A336,V$1))","v":""},{"$f":"IF($A336=\"N/A\",Ref!$B$36,INDEX(Ranks!$1:$1048576,$A336,W$1))","v":""},{"$f":"IF($A336=\"N/A\",Ref!$B$36,INDEX(Ranks!$1:$1048576,$A336,X$1))","v":""},{"$f":"IF($A336=\"N/A\",Ref!$B$36,INDEX(Ranks!$1:$1048576,$A336,Y$1))","v":""},{"$f":"IF($A336=\"N/A\",Ref!$B$36,INDEX(Ranks!$1:$1048576,$A336,Z$1))","v":""},{"$f":"IF($A336=\"N/A\",Ref!$B$36,INDEX(Ranks!$1:$1048576,$A336,AA$1))","v":""},{"$f":"IF($A336=\"N/A\",Ref!$B$36,INDEX(Ranks!$1:$1048576,$A336,AB$1))","v":""},{"$f":"IF($A336=\"N/A\",Ref!$B$36,INDEX(Ranks!$1:$1048576,$A336,AC$1))","v":""},{"$f":"IF($A336=\"N/A\",Ref!$B$36,INDEX(Ranks!$1:$1048576,$A336,AD$1))","v":""},{"$f":"IF($A336=\"N/A\",Ref!$B$36,INDEX(Ranks!$1:$1048576,$A336,AE$1))","v":""},{"$f":"IF($A336=\"N/A\",Ref!$B$36,INDEX(Ranks!$1:$1048576,$A336,AF$1))","v":""},{"$f":"IF($A336=\"N/A\",Ref!$B$36,INDEX(Ranks!$1:$1048576,$A336,AG$1))","v":""},{"$f":"IF($A336=\"N/A\",Ref!$B$36,INDEX(Ranks!$1:$1048576,$A336,AH$1))","v":""},{"$f":"IF($A336=\"N/A\",Ref!$B$36,INDEX(Ranks!$1:$1048576,$A336,AI$1))","v":""},{"$f":"IF($A336=\"N/A\",Ref!$B$36,INDEX(Ranks!$1:$1048576,$A336,AJ$1))","v":""},{"$f":"IF($A336=\"N/A\",Ref!$B$36,INDEX(Ranks!$1:$1048576,$A336,AK$1))","v":""},{"$f":"IF($A336=\"N/A\",Ref!$B$36,INDEX(Ranks!$1:$1048576,$A336,AL$1))","v":""},{"$f":"IF($A336=\"N/A\",Ref!$B$36,INDEX(Ranks!$1:$1048576,$A336,AM$1))","v":""},{"$f":"IF($A336=\"N/A\",Ref!$B$36,INDEX(Ranks!$1:$1048576,$A336,AN$1))","v":""},{"$f":"IF($A336=\"N/A\",Ref!$B$36,INDEX(Ranks!$1:$1048576,$A336,AO$1))","v":""},{"$f":"IF($A336=\"N/A\",Ref!$B$36,INDEX(Ranks!$1:$1048576,$A336,AP$1))","v":""},{"$f":"IF($A336=\"N/A\",Ref!$B$36,INDEX(Ranks!$1:$1048576,$A336,AQ$1))","v":""},{"$f":"IF($A336=\"N/A\",Ref!$B$36,INDEX(Ranks!$1:$1048576,$A336,AR$1))","v":""},{"$f":"IF($A336=\"N/A\",Ref!$B$36,INDEX(Ranks!$1:$1048576,$A336,AS$1))","v":""},{"$f":"IF($A336=\"N/A\",Ref!$B$36,INDEX(Ranks!$1:$1048576,$A336,AT$1))","v":""},{"$f":"IF($A336=\"N/A\",Ref!$B$36,INDEX(Ranks!$1:$1048576,$A336,AU$1))","v":""},{"$f":"IF($A336=\"N/A\",Ref!$B$36,INDEX(Ranks!$1:$1048576,$A336,AV$1))","v":""},{"$f":"IF($A336=\"N/A\",Ref!$B$36,INDEX(Ranks!$1:$1048576,$A336,AW$1))","v":""},{"$f":"IF($A336=\"N/A\",Ref!$B$36,INDEX(Ranks!$1:$1048576,$A336,AX$1))","v":""},{"$f":"IF($A336=\"N/A\",Ref!$B$36,INDEX(Ranks!$1:$1048576,$A336,AY$1))","v":""},{"$f":"IF($A336=\"N/A\",Ref!$B$36,INDEX(Ranks!$1:$1048576,$A336,AZ$1))","v":""},{"$f":"IF($A336=\"N/A\",Ref!$B$36,INDEX(Ranks!$1:$1048576,$A336,BA$1))","v":""},{"$f":"IF($A336=\"N/A\",Ref!$B$36,INDEX(Ranks!$1:$1048576,$A336,BB$1))","v":""},{"$f":"IF($A336=\"N/A\",Ref!$B$36,INDEX(Ranks!$1:$1048576,$A336,BC$1))","v":""},{"$f":"IF($A336=\"N/A\",Ref!$B$36,INDEX(Ranks!$1:$1048576,$A336,BD$1))","v":""},{"$f":"IF($A336=\"N/A\",Ref!$B$36,INDEX(Ranks!$1:$1048576,$A336,BE$1))","v":""},{"$f":"IF($A336=\"N/A\",Ref!$B$36,INDEX(Ranks!$1:$1048576,$A336,BF$1))","v":""},{"$f":"IF($A336=\"N/A\",Ref!$B$36,INDEX(Ranks!$1:$1048576,$A336,BG$1))","v":""},{"$f":"IF($A336=\"N/A\",Ref!$B$36,INDEX(Ranks!$1:$1048576,$A336,BH$1))","v":""},{"$f":"IF($A336=\"N/A\",Ref!$B$36,INDEX(Ranks!$1:$1048576,$A336,BI$1))","v":""},{"$f":"IF($A336=\"N/A\",Ref!$B$36,INDEX(Ranks!$1:$1048576,$A336,BJ$1))","v":""},{"$f":"IF($A336=\"N/A\",Ref!$B$36,INDEX(Ranks!$1:$1048576,$A336,BK$1))","v":""},{"$f":"IF($A336=\"N/A\",Ref!$B$36,INDEX(Ranks!$1:$1048576,$A336,BL$1))","v":""},{"$f":"IF($A336=\"N/A\",Ref!$B$36,INDEX(Ranks!$1:$1048576,$A336,BM$1))","v":""},{"$f":"IF($A336=\"N/A\",Ref!$B$36,INDEX(Ranks!$1:$1048576,$A336,BN$1))","v":""},{"$f":"IF($A336=\"N/A\",Ref!$B$36,INDEX(Ranks!$1:$1048576,$A336,BO$1))","v":""},{"$f":"IF($A336=\"N/A\",Ref!$B$36,INDEX(Ranks!$1:$1048576,$A336,BP$1))","v":""},{"$f":"IF($A336=\"N/A\",Ref!$B$36,INDEX(Ranks!$1:$1048576,$A336,BQ$1))","v":""},{"$f":"IF($A336=\"N/A\",Ref!$B$36,INDEX(Ranks!$1:$1048576,$A336,BR$1))","v":""},{"$f":"IF($A336=\"N/A\",Ref!$B$36,INDEX(Ranks!$1:$1048576,$A336,BS$1))","v":""},{"$f":"IF($A336=\"N/A\",Ref!$B$36,INDEX(Ranks!$1:$1048576,$A336,BT$1))","v":""},{"$f":"IF($A336=\"N/A\",Ref!$B$36,INDEX(Ranks!$1:$1048576,$A336,BU$1))","v":""},{"$f":"IF($A336=\"N/A\",Ref!$B$36,INDEX(Ranks!$1:$1048576,$A336,BV$1))","v":""},{"$f":"IF($A336=\"N/A\",Ref!$B$36,INDEX(Ranks!$1:$1048576,$A336,BW$1))","v":""},{"$f":"IF($A336=\"N/A\",Ref!$B$36,INDEX(Ranks!$1:$1048576,$A336,BX$1))","v":""},{"$f":"IF($A336=\"N/A\",Ref!$B$36,INDEX(Ranks!$1:$1048576,$A336,BY$1))","v":""},{"$f":"IF($A336=\"N/A\",Ref!$B$36,INDEX(Ranks!$1:$1048576,$A336,BZ$1))","v":""},{"$f":"IF($A336=\"N/A\",Ref!$B$36,INDEX(Ranks!$1:$1048576,$A336,CA$1))","v":""},{"$f":"IF($A336=\"N/A\",Ref!$B$36,INDEX(Ranks!$1:$1048576,$A336,CB$1))","v":""},{"$f":"IF($A336=\"N/A\",Ref!$B$36,INDEX(Ranks!$1:$1048576,$A336,CC$1))","v":""},{"$f":"IF($A336=\"N/A\",Ref!$B$36,INDEX(Ranks!$1:$1048576,$A336,CD$1))","v":""},{"$f":"IF($A336=\"N/A\",Ref!$B$36,INDEX(Ranks!$1:$1048576,$A336,CE$1))","v":""},{"$f":"IF($A336=\"N/A\",Ref!$B$36,INDEX(Ranks!$1:$1048576,$A336,CF$1))","v":""},{"$f":"IF($A336=\"N/A\",Ref!$B$36,INDEX(Ranks!$1:$1048576,$A336,CG$1))","v":""},{"$f":"IF($A336=\"N/A\",Ref!$B$36,INDEX(Ranks!$1:$1048576,$A336,CH$1))","v":""},{"$f":"IF($A336=\"N/A\",Ref!$B$36,INDEX(Ranks!$1:$1048576,$A336,CI$1))","v":""},{"$f":"IF($A336=\"N/A\",Ref!$B$36,INDEX(Ranks!$1:$1048576,$A336,CJ$1))","v":""},{"$f":"IF($A336=\"N/A\",Ref!$B$36,INDEX(Ranks!$1:$1048576,$A336,CK$1))","v":""},{"$f":"IF($A336=\"N/A\",Ref!$B$36,INDEX(Ranks!$1:$1048576,$A336,CL$1))","v":""},{"$f":"IF($A336=\"N/A\",Ref!$B$36,INDEX(Ranks!$1:$1048576,$A336,CM$1))","v":""},{"$f":"IF($A336=\"N/A\",Ref!$B$36,INDEX(Ranks!$1:$1048576,$A336,CN$1))","v":""},{"$f":"IF($A336=\"N/A\",Ref!$B$36,INDEX(Ranks!$1:$1048576,$A336,CO$1))","v":""},{"$f":"IF($A336=\"N/A\",Ref!$B$36,INDEX(Ranks!$1:$1048576,$A336,CP$1))","v":""},{"$f":"IF($A336=\"N/A\",Ref!$B$36,INDEX(Ranks!$1:$1048576,$A336,CQ$1))","v":""},{"$f":"IF($A336=\"N/A\",Ref!$B$36,INDEX(Ranks!$1:$1048576,$A336,CR$1))","v":""},{"$f":"IF($A336=\"N/A\",Ref!$B$36,INDEX(Ranks!$1:$1048576,$A336,CS$1))","v":""},{"$f":"IF($A336=\"N/A\",Ref!$B$36,INDEX(Ranks!$1:$1048576,$A336,CT$1))","v":""},{"$f":"IF($A336=\"N/A\",Ref!$B$36,INDEX(Ranks!$1:$1048576,$A336,CU$1))","v":""},{"$f":"IF($A336=\"N/A\",Ref!$B$36,INDEX(Ranks!$1:$1048576,$A336,CV$1))","v":""},{"$f":"IF($A336=\"N/A\",Ref!$B$36,INDEX(Ranks!$1:$1048576,$A336,CW$1))","v":""},{"$f":"IF($A336=\"N/A\",Ref!$B$36,INDEX(Ranks!$1:$1048576,$A336,CX$1))","v":""},{"$f":"IF($A336=\"N/A\",Ref!$B$36,INDEX(Ranks!$1:$1048576,$A336,CY$1))","v":""},{"$f":"IF($A336=\"N/A\",Ref!$B$36,INDEX(Ranks!$1:$1048576,$A336,CZ$1))","v":""},{"$f":"IF($A336=\"N/A\",Ref!$B$36,INDEX(Ranks!$1:$1048576,$A336,DA$1))","v":""},{"$f":"IF($A336=\"N/A\",Ref!$B$36,INDEX(Ranks!$1:$1048576,$A336,DB$1))","v":""},{"$f":"IF($A336=\"N/A\",Ref!$B$36,INDEX(Ranks!$1:$1048576,$A336,DC$1))","v":""},{"$f":"IF($A336=\"N/A\",Ref!$B$36,INDEX(Ranks!$1:$1048576,$A336,DD$1))","v":""},{"$f":"IF($A336=\"N/A\",Ref!$B$36,INDEX(Ranks!$1:$1048576,$A336,DE$1))","v":""},{"$f":"IF($A336=\"N/A\",Ref!$B$36,INDEX(Ranks!$1:$1048576,$A336,DF$1))","v":""},{"$f":"IF($A336=\"N/A\",Ref!$B$36,INDEX(Ranks!$1:$1048576,$A336,DG$1))","v":""},{"$f":"IF($A336=\"N/A\",Ref!$B$36,INDEX(Ranks!$1:$1048576,$A336,DH$1))","v":""},{"$f":"IF($A336=\"N/A\",Ref!$B$36,INDEX(Ranks!$1:$1048576,$A336,DI$1))","v":""},{"$f":"IF($A336=\"N/A\",Ref!$B$36,INDEX(Ranks!$1:$1048576,$A336,DJ$1))","v":""},{"$f":"IF($A336=\"N/A\",Ref!$B$36,INDEX(Ranks!$1:$1048576,$A336,DK$1))","v":""},{"$f":"IF($A336=\"N/A\",Ref!$B$36,INDEX(Ranks!$1:$1048576,$A336,DL$1))","v":""},{"$f":"IF($A336=\"N/A\",Ref!$B$36,INDEX(Ranks!$1:$1048576,$A336,DM$1))","v":""},{"$f":"IF($A336=\"N/A\",Ref!$B$36,INDEX(Ranks!$1:$1048576,$A336,DN$1))","v":""},{"$f":"IF($A336=\"N/A\",Ref!$B$36,INDEX(Ranks!$1:$1048576,$A336,DO$1))","v":""},{"$f":"IF($A336=\"N/A\",Ref!$B$36,INDEX(Ranks!$1:$1048576,$A336,DP$1))","v":""},{"$f":"IF($A336=\"N/A\",Ref!$B$36,INDEX(Ranks!$1:$1048576,$A336,DQ$1))","v":""},{"$f":"IF($A336=\"N/A\",Ref!$B$36,INDEX(Ranks!$1:$1048576,$A336,DR$1))","v":""},{"$f":"IF($A336=\"N/A\",Ref!$B$36,INDEX(Ranks!$1:$1048576,$A336,DS$1))","v":""},{"$f":"IF($A336=\"N/A\",Ref!$B$36,INDEX(Ranks!$1:$1048576,$A336,DT$1))","v":""},{"$f":"IF($A336=\"N/A\",Ref!$B$36,INDEX(Ranks!$1:$1048576,$A336,DU$1))","v":""},{"$f":"IF($A336=\"N/A\",Ref!$B$36,INDEX(Ranks!$1:$1048576,$A336,DV$1))","v":""},{"$f":"IF($A336=\"N/A\",Ref!$B$36,INDEX(Ranks!$1:$1048576,$A336,DW$1))","v":""},{"$f":"IF($A336=\"N/A\",Ref!$B$36,INDEX(Ranks!$1:$1048576,$A336,DX$1))","v":""},{"$f":"IF($A336=\"N/A\",Ref!$B$36,INDEX(Ranks!$1:$1048576,$A336,DY$1))","v":""},{"$f":"IF($A336=\"N/A\",Ref!$B$36,INDEX(Ranks!$1:$1048576,$A336,DZ$1))","v":""},{"$f":"IF($A336=\"N/A\",Ref!$B$36,INDEX(Ranks!$1:$1048576,$A336,EA$1))","v":""},{"$f":"IF($A336=\"N/A\",Ref!$B$36,INDEX(Ranks!$1:$1048576,$A336,EB$1))","v":""}]
[{"$f":"IFERROR(MATCH('Portfolio Page'!L337,Ranks!L:L,0),\"N/A\")","v":"N/A"},null,{"$f":"IF($A337=\"N/A\",\"\",INDEX(Ranks!$1:$1048576,$A337,C$1))","v":""},{"$f":"IF($A337=\"N/A\",Ref!$B$36,INDEX(Ranks!$1:$1048576,$A337,D$1))","v":""},{"$f":"IF($A337=\"N/A\",Ref!$B$36,INDEX(Ranks!$1:$1048576,$A337,E$1))","v":""},{"$f":"IF($A337=\"N/A\",\"\",INDEX(Ranks!$1:$1048576,$A337,F$1))","v":""},{"$f":"IF($A337=\"N/A\",\"\",INDEX(Ranks!$1:$1048576,$A337,G$1))","v":""},{"$f":"IF($A337=\"N/A\",\"\",INDEX(Ranks!$1:$1048576,$A337,H$1))","v":""},{"$f":"IF($A337=\"N/A\",\"\",INDEX(Ranks!$1:$1048576,$A337,I$1))","v":""},{"$f":"IF($A337=\"N/A\",\"\",INDEX(Ranks!$1:$1048576,$A337,J$1))","v":""},{"$f":"IF($A337=\"N/A\",\"\",INDEX(Ranks!$1:$1048576,$A337,K$1))","v":""},null,{"$f":"IF($A337=\"N/A\",Ref!$B$36,INDEX(Ranks!$1:$1048576,$A337,M$1))","v":""},{"$f":"IF($A337=\"N/A\",Ref!$B$36,INDEX(Ranks!$1:$1048576,$A337,N$1))","v":""},{"$f":"IF($A337=\"N/A\",Ref!$B$36,INDEX(Ranks!$1:$1048576,$A337,O$1))","v":""},{"$f":"IF($A337=\"N/A\",Ref!$B$36,INDEX(Ranks!$1:$1048576,$A337,P$1))","v":""},{"$f":"IF($A337=\"N/A\",Ref!$B$36,INDEX(Ranks!$1:$1048576,$A337,Q$1))","v":""},{"$f":"IF($A337=\"N/A\",Ref!$B$36,INDEX(Ranks!$1:$1048576,$A337,R$1))","v":""},{"$f":"IF($A337=\"N/A\",Ref!$B$36,INDEX(Ranks!$1:$1048576,$A337,S$1))","v":""},{"$f":"IF($A337=\"N/A\",Ref!$B$36,INDEX(Ranks!$1:$1048576,$A337,T$1))","v":""},{"$f":"IF($A337=\"N/A\",Ref!$B$36,INDEX(Ranks!$1:$1048576,$A337,U$1))","v":""},{"$f":"IF($A337=\"N/A\",Ref!$B$36,INDEX(Ranks!$1:$1048576,$A337,V$1))","v":""},{"$f":"IF($A337=\"N/A\",Ref!$B$36,INDEX(Ranks!$1:$1048576,$A337,W$1))","v":""},{"$f":"IF($A337=\"N/A\",Ref!$B$36,INDEX(Ranks!$1:$1048576,$A337,X$1))","v":""},{"$f":"IF($A337=\"N/A\",Ref!$B$36,INDEX(Ranks!$1:$1048576,$A337,Y$1))","v":""},{"$f":"IF($A337=\"N/A\",Ref!$B$36,INDEX(Ranks!$1:$1048576,$A337,Z$1))","v":""},{"$f":"IF($A337=\"N/A\",Ref!$B$36,INDEX(Ranks!$1:$1048576,$A337,AA$1))","v":""},{"$f":"IF($A337=\"N/A\",Ref!$B$36,INDEX(Ranks!$1:$1048576,$A337,AB$1))","v":""},{"$f":"IF($A337=\"N/A\",Ref!$B$36,INDEX(Ranks!$1:$1048576,$A337,AC$1))","v":""},{"$f":"IF($A337=\"N/A\",Ref!$B$36,INDEX(Ranks!$1:$1048576,$A337,AD$1))","v":""},{"$f":"IF($A337=\"N/A\",Ref!$B$36,INDEX(Ranks!$1:$1048576,$A337,AE$1))","v":""},{"$f":"IF($A337=\"N/A\",Ref!$B$36,INDEX(Ranks!$1:$1048576,$A337,AF$1))","v":""},{"$f":"IF($A337=\"N/A\",Ref!$B$36,INDEX(Ranks!$1:$1048576,$A337,AG$1))","v":""},{"$f":"IF($A337=\"N/A\",Ref!$B$36,INDEX(Ranks!$1:$1048576,$A337,AH$1))","v":""},{"$f":"IF($A337=\"N/A\",Ref!$B$36,INDEX(Ranks!$1:$1048576,$A337,AI$1))","v":""},{"$f":"IF($A337=\"N/A\",Ref!$B$36,INDEX(Ranks!$1:$1048576,$A337,AJ$1))","v":""},{"$f":"IF($A337=\"N/A\",Ref!$B$36,INDEX(Ranks!$1:$1048576,$A337,AK$1))","v":""},{"$f":"IF($A337=\"N/A\",Ref!$B$36,INDEX(Ranks!$1:$1048576,$A337,AL$1))","v":""},{"$f":"IF($A337=\"N/A\",Ref!$B$36,INDEX(Ranks!$1:$1048576,$A337,AM$1))","v":""},{"$f":"IF($A337=\"N/A\",Ref!$B$36,INDEX(Ranks!$1:$1048576,$A337,AN$1))","v":""},{"$f":"IF($A337=\"N/A\",Ref!$B$36,INDEX(Ranks!$1:$1048576,$A337,AO$1))","v":""},{"$f":"IF($A337=\"N/A\",Ref!$B$36,INDEX(Ranks!$1:$1048576,$A337,AP$1))","v":""},{"$f":"IF($A337=\"N/A\",Ref!$B$36,INDEX(Ranks!$1:$1048576,$A337,AQ$1))","v":""},{"$f":"IF($A337=\"N/A\",Ref!$B$36,INDEX(Ranks!$1:$1048576,$A337,AR$1))","v":""},{"$f":"IF($A337=\"N/A\",Ref!$B$36,INDEX(Ranks!$1:$1048576,$A337,AS$1))","v":""},{"$f":"IF($A337=\"N/A\",Ref!$B$36,INDEX(Ranks!$1:$1048576,$A337,AT$1))","v":""},{"$f":"IF($A337=\"N/A\",Ref!$B$36,INDEX(Ranks!$1:$1048576,$A337,AU$1))","v":""},{"$f":"IF($A337=\"N/A\",Ref!$B$36,INDEX(Ranks!$1:$1048576,$A337,AV$1))","v":""},{"$f":"IF($A337=\"N/A\",Ref!$B$36,INDEX(Ranks!$1:$1048576,$A337,AW$1))","v":""},{"$f":"IF($A337=\"N/A\",Ref!$B$36,INDEX(Ranks!$1:$1048576,$A337,AX$1))","v":""},{"$f":"IF($A337=\"N/A\",Ref!$B$36,INDEX(Ranks!$1:$1048576,$A337,AY$1))","v":""},{"$f":"IF($A337=\"N/A\",Ref!$B$36,INDEX(Ranks!$1:$1048576,$A337,AZ$1))","v":""},{"$f":"IF($A337=\"N/A\",Ref!$B$36,INDEX(Ranks!$1:$1048576,$A337,BA$1))","v":""},{"$f":"IF($A337=\"N/A\",Ref!$B$36,INDEX(Ranks!$1:$1048576,$A337,BB$1))","v":""},{"$f":"IF($A337=\"N/A\",Ref!$B$36,INDEX(Ranks!$1:$1048576,$A337,BC$1))","v":""},{"$f":"IF($A337=\"N/A\",Ref!$B$36,INDEX(Ranks!$1:$1048576,$A337,BD$1))","v":""},{"$f":"IF($A337=\"N/A\",Ref!$B$36,INDEX(Ranks!$1:$1048576,$A337,BE$1))","v":""},{"$f":"IF($A337=\"N/A\",Ref!$B$36,INDEX(Ranks!$1:$1048576,$A337,BF$1))","v":""},{"$f":"IF($A337=\"N/A\",Ref!$B$36,INDEX(Ranks!$1:$1048576,$A337,BG$1))","v":""},{"$f":"IF($A337=\"N/A\",Ref!$B$36,INDEX(Ranks!$1:$1048576,$A337,BH$1))","v":""},{"$f":"IF($A337=\"N/A\",Ref!$B$36,INDEX(Ranks!$1:$1048576,$A337,BI$1))","v":""},{"$f":"IF($A337=\"N/A\",Ref!$B$36,INDEX(Ranks!$1:$1048576,$A337,BJ$1))","v":""},{"$f":"IF($A337=\"N/A\",Ref!$B$36,INDEX(Ranks!$1:$1048576,$A337,BK$1))","v":""},{"$f":"IF($A337=\"N/A\",Ref!$B$36,INDEX(Ranks!$1:$1048576,$A337,BL$1))","v":""},{"$f":"IF($A337=\"N/A\",Ref!$B$36,INDEX(Ranks!$1:$1048576,$A337,BM$1))","v":""},{"$f":"IF($A337=\"N/A\",Ref!$B$36,INDEX(Ranks!$1:$1048576,$A337,BN$1))","v":""},{"$f":"IF($A337=\"N/A\",Ref!$B$36,INDEX(Ranks!$1:$1048576,$A337,BO$1))","v":""},{"$f":"IF($A337=\"N/A\",Ref!$B$36,INDEX(Ranks!$1:$1048576,$A337,BP$1))","v":""},{"$f":"IF($A337=\"N/A\",Ref!$B$36,INDEX(Ranks!$1:$1048576,$A337,BQ$1))","v":""},{"$f":"IF($A337=\"N/A\",Ref!$B$36,INDEX(Ranks!$1:$1048576,$A337,BR$1))","v":""},{"$f":"IF($A337=\"N/A\",Ref!$B$36,INDEX(Ranks!$1:$1048576,$A337,BS$1))","v":""},{"$f":"IF($A337=\"N/A\",Ref!$B$36,INDEX(Ranks!$1:$1048576,$A337,BT$1))","v":""},{"$f":"IF($A337=\"N/A\",Ref!$B$36,INDEX(Ranks!$1:$1048576,$A337,BU$1))","v":""},{"$f":"IF($A337=\"N/A\",Ref!$B$36,INDEX(Ranks!$1:$1048576,$A337,BV$1))","v":""},{"$f":"IF($A337=\"N/A\",Ref!$B$36,INDEX(Ranks!$1:$1048576,$A337,BW$1))","v":""},{"$f":"IF($A337=\"N/A\",Ref!$B$36,INDEX(Ranks!$1:$1048576,$A337,BX$1))","v":""},{"$f":"IF($A337=\"N/A\",Ref!$B$36,INDEX(Ranks!$1:$1048576,$A337,BY$1))","v":""},{"$f":"IF($A337=\"N/A\",Ref!$B$36,INDEX(Ranks!$1:$1048576,$A337,BZ$1))","v":""},{"$f":"IF($A337=\"N/A\",Ref!$B$36,INDEX(Ranks!$1:$1048576,$A337,CA$1))","v":""},{"$f":"IF($A337=\"N/A\",Ref!$B$36,INDEX(Ranks!$1:$1048576,$A337,CB$1))","v":""},{"$f":"IF($A337=\"N/A\",Ref!$B$36,INDEX(Ranks!$1:$1048576,$A337,CC$1))","v":""},{"$f":"IF($A337=\"N/A\",Ref!$B$36,INDEX(Ranks!$1:$1048576,$A337,CD$1))","v":""},{"$f":"IF($A337=\"N/A\",Ref!$B$36,INDEX(Ranks!$1:$1048576,$A337,CE$1))","v":""},{"$f":"IF($A337=\"N/A\",Ref!$B$36,INDEX(Ranks!$1:$1048576,$A337,CF$1))","v":""},{"$f":"IF($A337=\"N/A\",Ref!$B$36,INDEX(Ranks!$1:$1048576,$A337,CG$1))","v":""},{"$f":"IF($A337=\"N/A\",Ref!$B$36,INDEX(Ranks!$1:$1048576,$A337,CH$1))","v":""},{"$f":"IF($A337=\"N/A\",Ref!$B$36,INDEX(Ranks!$1:$1048576,$A337,CI$1))","v":""},{"$f":"IF($A337=\"N/A\",Ref!$B$36,INDEX(Ranks!$1:$1048576,$A337,CJ$1))","v":""},{"$f":"IF($A337=\"N/A\",Ref!$B$36,INDEX(Ranks!$1:$1048576,$A337,CK$1))","v":""},{"$f":"IF($A337=\"N/A\",Ref!$B$36,INDEX(Ranks!$1:$1048576,$A337,CL$1))","v":""},{"$f":"IF($A337=\"N/A\",Ref!$B$36,INDEX(Ranks!$1:$1048576,$A337,CM$1))","v":""},{"$f":"IF($A337=\"N/A\",Ref!$B$36,INDEX(Ranks!$1:$1048576,$A337,CN$1))","v":""},{"$f":"IF($A337=\"N/A\",Ref!$B$36,INDEX(Ranks!$1:$1048576,$A337,CO$1))","v":""},{"$f":"IF($A337=\"N/A\",Ref!$B$36,INDEX(Ranks!$1:$1048576,$A337,CP$1))","v":""},{"$f":"IF($A337=\"N/A\",Ref!$B$36,INDEX(Ranks!$1:$1048576,$A337,CQ$1))","v":""},{"$f":"IF($A337=\"N/A\",Ref!$B$36,INDEX(Ranks!$1:$1048576,$A337,CR$1))","v":""},{"$f":"IF($A337=\"N/A\",Ref!$B$36,INDEX(Ranks!$1:$1048576,$A337,CS$1))","v":""},{"$f":"IF($A337=\"N/A\",Ref!$B$36,INDEX(Ranks!$1:$1048576,$A337,CT$1))","v":""},{"$f":"IF($A337=\"N/A\",Ref!$B$36,INDEX(Ranks!$1:$1048576,$A337,CU$1))","v":""},{"$f":"IF($A337=\"N/A\",Ref!$B$36,INDEX(Ranks!$1:$1048576,$A337,CV$1))","v":""},{"$f":"IF($A337=\"N/A\",Ref!$B$36,INDEX(Ranks!$1:$1048576,$A337,CW$1))","v":""},{"$f":"IF($A337=\"N/A\",Ref!$B$36,INDEX(Ranks!$1:$1048576,$A337,CX$1))","v":""},{"$f":"IF($A337=\"N/A\",Ref!$B$36,INDEX(Ranks!$1:$1048576,$A337,CY$1))","v":""},{"$f":"IF($A337=\"N/A\",Ref!$B$36,INDEX(Ranks!$1:$1048576,$A337,CZ$1))","v":""},{"$f":"IF($A337=\"N/A\",Ref!$B$36,INDEX(Ranks!$1:$1048576,$A337,DA$1))","v":""},{"$f":"IF($A337=\"N/A\",Ref!$B$36,INDEX(Ranks!$1:$1048576,$A337,DB$1))","v":""},{"$f":"IF($A337=\"N/A\",Ref!$B$36,INDEX(Ranks!$1:$1048576,$A337,DC$1))","v":""},{"$f":"IF($A337=\"N/A\",Ref!$B$36,INDEX(Ranks!$1:$1048576,$A337,DD$1))","v":""},{"$f":"IF($A337=\"N/A\",Ref!$B$36,INDEX(Ranks!$1:$1048576,$A337,DE$1))","v":""},{"$f":"IF($A337=\"N/A\",Ref!$B$36,INDEX(Ranks!$1:$1048576,$A337,DF$1))","v":""},{"$f":"IF($A337=\"N/A\",Ref!$B$36,INDEX(Ranks!$1:$1048576,$A337,DG$1))","v":""},{"$f":"IF($A337=\"N/A\",Ref!$B$36,INDEX(Ranks!$1:$1048576,$A337,DH$1))","v":""},{"$f":"IF($A337=\"N/A\",Ref!$B$36,INDEX(Ranks!$1:$1048576,$A337,DI$1))","v":""},{"$f":"IF($A337=\"N/A\",Ref!$B$36,INDEX(Ranks!$1:$1048576,$A337,DJ$1))","v":""},{"$f":"IF($A337=\"N/A\",Ref!$B$36,INDEX(Ranks!$1:$1048576,$A337,DK$1))","v":""},{"$f":"IF($A337=\"N/A\",Ref!$B$36,INDEX(Ranks!$1:$1048576,$A337,DL$1))","v":""},{"$f":"IF($A337=\"N/A\",Ref!$B$36,INDEX(Ranks!$1:$1048576,$A337,DM$1))","v":""},{"$f":"IF($A337=\"N/A\",Ref!$B$36,INDEX(Ranks!$1:$1048576,$A337,DN$1))","v":""},{"$f":"IF($A337=\"N/A\",Ref!$B$36,INDEX(Ranks!$1:$1048576,$A337,DO$1))","v":""},{"$f":"IF($A337=\"N/A\",Ref!$B$36,INDEX(Ranks!$1:$1048576,$A337,DP$1))","v":""},{"$f":"IF($A337=\"N/A\",Ref!$B$36,INDEX(Ranks!$1:$1048576,$A337,DQ$1))","v":""},{"$f":"IF($A337=\"N/A\",Ref!$B$36,INDEX(Ranks!$1:$1048576,$A337,DR$1))","v":""},{"$f":"IF($A337=\"N/A\",Ref!$B$36,INDEX(Ranks!$1:$1048576,$A337,DS$1))","v":""},{"$f":"IF($A337=\"N/A\",Ref!$B$36,INDEX(Ranks!$1:$1048576,$A337,DT$1))","v":""},{"$f":"IF($A337=\"N/A\",Ref!$B$36,INDEX(Ranks!$1:$1048576,$A337,DU$1))","v":""},{"$f":"IF($A337=\"N/A\",Ref!$B$36,INDEX(Ranks!$1:$1048576,$A337,DV$1))","v":""},{"$f":"IF($A337=\"N/A\",Ref!$B$36,INDEX(Ranks!$1:$1048576,$A337,DW$1))","v":""},{"$f":"IF($A337=\"N/A\",Ref!$B$36,INDEX(Ranks!$1:$1048576,$A337,DX$1))","v":""},{"$f":"IF($A337=\"N/A\",Ref!$B$36,INDEX(Ranks!$1:$1048576,$A337,DY$1))","v":""},{"$f":"IF($A337=\"N/A\",Ref!$B$36,INDEX(Ranks!$1:$1048576,$A337,DZ$1))","v":""},{"$f":"IF($A337=\"N/A\",Ref!$B$36,INDEX(Ranks!$1:$1048576,$A337,EA$1))","v":""},{"$f":"IF($A337=\"N/A\",Ref!$B$36,INDEX(Ranks!$1:$1048576,$A337,EB$1))","v":""}]
[{"$f":"IFERROR(MATCH('Portfolio Page'!L338,Ranks!L:L,0),\"N/A\")","v":"N/A"},null,{"$f":"IF($A338=\"N/A\",\"\",INDEX(Ranks!$1:$1048576,$A338,C$1))","v":""},{"$f":"IF($A338=\"N/A\",Ref!$B$36,INDEX(Ranks!$1:$1048576,$A338,D$1))","v":""},{"$f":"IF($A338=\"N/A\",Ref!$B$36,INDEX(Ranks!$1:$1048576,$A338,E$1))","v":""},{"$f":"IF($A338=\"N/A\",\"\",INDEX(Ranks!$1:$1048576,$A338,F$1))","v":""},{"$f":"IF($A338=\"N/A\",\"\",INDEX(Ranks!$1:$1048576,$A338,G$1))","v":""},{"$f":"IF($A338=\"N/A\",\"\",INDEX(Ranks!$1:$1048576,$A338,H$1))","v":""},{"$f":"IF($A338=\"N/A\",\"\",INDEX(Ranks!$1:$1048576,$A338,I$1))","v":""},{"$f":"IF($A338=\"N/A\",\"\",INDEX(Ranks!$1:$1048576,$A338,J$1))","v":""},{"$f":"IF($A338=\"N/A\",\"\",INDEX(Ranks!$1:$1048576,$A338,K$1))","v":""},null,{"$f":"IF($A338=\"N/A\",Ref!$B$36,INDEX(Ranks!$1:$1048576,$A338,M$1))","v":""},{"$f":"IF($A338=\"N/A\",Ref!$B$36,INDEX(Ranks!$1:$1048576,$A338,N$1))","v":""},{"$f":"IF($A338=\"N/A\",Ref!$B$36,INDEX(Ranks!$1:$1048576,$A338,O$1))","v":""},{"$f":"IF($A338=\"N/A\",Ref!$B$36,INDEX(Ranks!$1:$1048576,$A338,P$1))","v":""},{"$f":"IF($A338=\"N/A\",Ref!$B$36,INDEX(Ranks!$1:$1048576,$A338,Q$1))","v":""},{"$f":"IF($A338=\"N/A\",Ref!$B$36,INDEX(Ranks!$1:$1048576,$A338,R$1))","v":""},{"$f":"IF($A338=\"N/A\",Ref!$B$36,INDEX(Ranks!$1:$1048576,$A338,S$1))","v":""},{"$f":"IF($A338=\"N/A\",Ref!$B$36,INDEX(Ranks!$1:$1048576,$A338,T$1))","v":""},{"$f":"IF($A338=\"N/A\",Ref!$B$36,INDEX(Ranks!$1:$1048576,$A338,U$1))","v":""},{"$f":"IF($A338=\"N/A\",Ref!$B$36,INDEX(Ranks!$1:$1048576,$A338,V$1))","v":""},{"$f":"IF($A338=\"N/A\",Ref!$B$36,INDEX(Ranks!$1:$1048576,$A338,W$1))","v":""},{"$f":"IF($A338=\"N/A\",Ref!$B$36,INDEX(Ranks!$1:$1048576,$A338,X$1))","v":""},{"$f":"IF($A338=\"N/A\",Ref!$B$36,INDEX(Ranks!$1:$1048576,$A338,Y$1))","v":""},{"$f":"IF($A338=\"N/A\",Ref!$B$36,INDEX(Ranks!$1:$1048576,$A338,Z$1))","v":""},{"$f":"IF($A338=\"N/A\",Ref!$B$36,INDEX(Ranks!$1:$1048576,$A338,AA$1))","v":""},{"$f":"IF($A338=\"N/A\",Ref!$B$36,INDEX(Ranks!$1:$1048576,$A338,AB$1))","v":""},{"$f":"IF($A338=\"N/A\",Ref!$B$36,INDEX(Ranks!$1:$1048576,$A338,AC$1))","v":""},{"$f":"IF($A338=\"N/A\",Ref!$B$36,INDEX(Ranks!$1:$1048576,$A338,AD$1))","v":""},{"$f":"IF($A338=\"N/A\",Ref!$B$36,INDEX(Ranks!$1:$1048576,$A338,AE$1))","v":""},{"$f":"IF($A338=\"N/A\",Ref!$B$36,INDEX(Ranks!$1:$1048576,$A338,AF$1))","v":""},{"$f":"IF($A338=\"N/A\",Ref!$B$36,INDEX(Ranks!$1:$1048576,$A338,AG$1))","v":""},{"$f":"IF($A338=\"N/A\",Ref!$B$36,INDEX(Ranks!$1:$1048576,$A338,AH$1))","v":""},{"$f":"IF($A338=\"N/A\",Ref!$B$36,INDEX(Ranks!$1:$1048576,$A338,AI$1))","v":""},{"$f":"IF($A338=\"N/A\",Ref!$B$36,INDEX(Ranks!$1:$1048576,$A338,AJ$1))","v":""},{"$f":"IF($A338=\"N/A\",Ref!$B$36,INDEX(Ranks!$1:$1048576,$A338,AK$1))","v":""},{"$f":"IF($A338=\"N/A\",Ref!$B$36,INDEX(Ranks!$1:$1048576,$A338,AL$1))","v":""},{"$f":"IF($A338=\"N/A\",Ref!$B$36,INDEX(Ranks!$1:$1048576,$A338,AM$1))","v":""},{"$f":"IF($A338=\"N/A\",Ref!$B$36,INDEX(Ranks!$1:$1048576,$A338,AN$1))","v":""},{"$f":"IF($A338=\"N/A\",Ref!$B$36,INDEX(Ranks!$1:$1048576,$A338,AO$1))","v":""},{"$f":"IF($A338=\"N/A\",Ref!$B$36,INDEX(Ranks!$1:$1048576,$A338,AP$1))","v":""},{"$f":"IF($A338=\"N/A\",Ref!$B$36,INDEX(Ranks!$1:$1048576,$A338,AQ$1))","v":""},{"$f":"IF($A338=\"N/A\",Ref!$B$36,INDEX(Ranks!$1:$1048576,$A338,AR$1))","v":""},{"$f":"IF($A338=\"N/A\",Ref!$B$36,INDEX(Ranks!$1:$1048576,$A338,AS$1))","v":""},{"$f":"IF($A338=\"N/A\",Ref!$B$36,INDEX(Ranks!$1:$1048576,$A338,AT$1))","v":""},{"$f":"IF($A338=\"N/A\",Ref!$B$36,INDEX(Ranks!$1:$1048576,$A338,AU$1))","v":""},{"$f":"IF($A338=\"N/A\",Ref!$B$36,INDEX(Ranks!$1:$1048576,$A338,AV$1))","v":""},{"$f":"IF($A338=\"N/A\",Ref!$B$36,INDEX(Ranks!$1:$1048576,$A338,AW$1))","v":""},{"$f":"IF($A338=\"N/A\",Ref!$B$36,INDEX(Ranks!$1:$1048576,$A338,AX$1))","v":""},{"$f":"IF($A338=\"N/A\",Ref!$B$36,INDEX(Ranks!$1:$1048576,$A338,AY$1))","v":""},{"$f":"IF($A338=\"N/A\",Ref!$B$36,INDEX(Ranks!$1:$1048576,$A338,AZ$1))","v":""},{"$f":"IF($A338=\"N/A\",Ref!$B$36,INDEX(Ranks!$1:$1048576,$A338,BA$1))","v":""},{"$f":"IF($A338=\"N/A\",Ref!$B$36,INDEX(Ranks!$1:$1048576,$A338,BB$1))","v":""},{"$f":"IF($A338=\"N/A\",Ref!$B$36,INDEX(Ranks!$1:$1048576,$A338,BC$1))","v":""},{"$f":"IF($A338=\"N/A\",Ref!$B$36,INDEX(Ranks!$1:$1048576,$A338,BD$1))","v":""},{"$f":"IF($A338=\"N/A\",Ref!$B$36,INDEX(Ranks!$1:$1048576,$A338,BE$1))","v":""},{"$f":"IF($A338=\"N/A\",Ref!$B$36,INDEX(Ranks!$1:$1048576,$A338,BF$1))","v":""},{"$f":"IF($A338=\"N/A\",Ref!$B$36,INDEX(Ranks!$1:$1048576,$A338,BG$1))","v":""},{"$f":"IF($A338=\"N/A\",Ref!$B$36,INDEX(Ranks!$1:$1048576,$A338,BH$1))","v":""},{"$f":"IF($A338=\"N/A\",Ref!$B$36,INDEX(Ranks!$1:$1048576,$A338,BI$1))","v":""},{"$f":"IF($A338=\"N/A\",Ref!$B$36,INDEX(Ranks!$1:$1048576,$A338,BJ$1))","v":""},{"$f":"IF($A338=\"N/A\",Ref!$B$36,INDEX(Ranks!$1:$1048576,$A338,BK$1))","v":""},{"$f":"IF($A338=\"N/A\",Ref!$B$36,INDEX(Ranks!$1:$1048576,$A338,BL$1))","v":""},{"$f":"IF($A338=\"N/A\",Ref!$B$36,INDEX(Ranks!$1:$1048576,$A338,BM$1))","v":""},{"$f":"IF($A338=\"N/A\",Ref!$B$36,INDEX(Ranks!$1:$1048576,$A338,BN$1))","v":""},{"$f":"IF($A338=\"N/A\",Ref!$B$36,INDEX(Ranks!$1:$1048576,$A338,BO$1))","v":""},{"$f":"IF($A338=\"N/A\",Ref!$B$36,INDEX(Ranks!$1:$1048576,$A338,BP$1))","v":""},{"$f":"IF($A338=\"N/A\",Ref!$B$36,INDEX(Ranks!$1:$1048576,$A338,BQ$1))","v":""},{"$f":"IF($A338=\"N/A\",Ref!$B$36,INDEX(Ranks!$1:$1048576,$A338,BR$1))","v":""},{"$f":"IF($A338=\"N/A\",Ref!$B$36,INDEX(Ranks!$1:$1048576,$A338,BS$1))","v":""},{"$f":"IF($A338=\"N/A\",Ref!$B$36,INDEX(Ranks!$1:$1048576,$A338,BT$1))","v":""},{"$f":"IF($A338=\"N/A\",Ref!$B$36,INDEX(Ranks!$1:$1048576,$A338,BU$1))","v":""},{"$f":"IF($A338=\"N/A\",Ref!$B$36,INDEX(Ranks!$1:$1048576,$A338,BV$1))","v":""},{"$f":"IF($A338=\"N/A\",Ref!$B$36,INDEX(Ranks!$1:$1048576,$A338,BW$1))","v":""},{"$f":"IF($A338=\"N/A\",Ref!$B$36,INDEX(Ranks!$1:$1048576,$A338,BX$1))","v":""},{"$f":"IF($A338=\"N/A\",Ref!$B$36,INDEX(Ranks!$1:$1048576,$A338,BY$1))","v":""},{"$f":"IF($A338=\"N/A\",Ref!$B$36,INDEX(Ranks!$1:$1048576,$A338,BZ$1))","v":""},{"$f":"IF($A338=\"N/A\",Ref!$B$36,INDEX(Ranks!$1:$1048576,$A338,CA$1))","v":""},{"$f":"IF($A338=\"N/A\",Ref!$B$36,INDEX(Ranks!$1:$1048576,$A338,CB$1))","v":""},{"$f":"IF($A338=\"N/A\",Ref!$B$36,INDEX(Ranks!$1:$1048576,$A338,CC$1))","v":""},{"$f":"IF($A338=\"N/A\",Ref!$B$36,INDEX(Ranks!$1:$1048576,$A338,CD$1))","v":""},{"$f":"IF($A338=\"N/A\",Ref!$B$36,INDEX(Ranks!$1:$1048576,$A338,CE$1))","v":""},{"$f":"IF($A338=\"N/A\",Ref!$B$36,INDEX(Ranks!$1:$1048576,$A338,CF$1))","v":""},{"$f":"IF($A338=\"N/A\",Ref!$B$36,INDEX(Ranks!$1:$1048576,$A338,CG$1))","v":""},{"$f":"IF($A338=\"N/A\",Ref!$B$36,INDEX(Ranks!$1:$1048576,$A338,CH$1))","v":""},{"$f":"IF($A338=\"N/A\",Ref!$B$36,INDEX(Ranks!$1:$1048576,$A338,CI$1))","v":""},{"$f":"IF($A338=\"N/A\",Ref!$B$36,INDEX(Ranks!$1:$1048576,$A338,CJ$1))","v":""},{"$f":"IF($A338=\"N/A\",Ref!$B$36,INDEX(Ranks!$1:$1048576,$A338,CK$1))","v":""},{"$f":"IF($A338=\"N/A\",Ref!$B$36,INDEX(Ranks!$1:$1048576,$A338,CL$1))","v":""},{"$f":"IF($A338=\"N/A\",Ref!$B$36,INDEX(Ranks!$1:$1048576,$A338,CM$1))","v":""},{"$f":"IF($A338=\"N/A\",Ref!$B$36,INDEX(Ranks!$1:$1048576,$A338,CN$1))","v":""},{"$f":"IF($A338=\"N/A\",Ref!$B$36,INDEX(Ranks!$1:$1048576,$A338,CO$1))","v":""},{"$f":"IF($A338=\"N/A\",Ref!$B$36,INDEX(Ranks!$1:$1048576,$A338,CP$1))","v":""},{"$f":"IF($A338=\"N/A\",Ref!$B$36,INDEX(Ranks!$1:$1048576,$A338,CQ$1))","v":""},{"$f":"IF($A338=\"N/A\",Ref!$B$36,INDEX(Ranks!$1:$1048576,$A338,CR$1))","v":""},{"$f":"IF($A338=\"N/A\",Ref!$B$36,INDEX(Ranks!$1:$1048576,$A338,CS$1))","v":""},{"$f":"IF($A338=\"N/A\",Ref!$B$36,INDEX(Ranks!$1:$1048576,$A338,CT$1))","v":""},{"$f":"IF($A338=\"N/A\",Ref!$B$36,INDEX(Ranks!$1:$1048576,$A338,CU$1))","v":""},{"$f":"IF($A338=\"N/A\",Ref!$B$36,INDEX(Ranks!$1:$1048576,$A338,CV$1))","v":""},{"$f":"IF($A338=\"N/A\",Ref!$B$36,INDEX(Ranks!$1:$1048576,$A338,CW$1))","v":""},{"$f":"IF($A338=\"N/A\",Ref!$B$36,INDEX(Ranks!$1:$1048576,$A338,CX$1))","v":""},{"$f":"IF($A338=\"N/A\",Ref!$B$36,INDEX(Ranks!$1:$1048576,$A338,CY$1))","v":""},{"$f":"IF($A338=\"N/A\",Ref!$B$36,INDEX(Ranks!$1:$1048576,$A338,CZ$1))","v":""},{"$f":"IF($A338=\"N/A\",Ref!$B$36,INDEX(Ranks!$1:$1048576,$A338,DA$1))","v":""},{"$f":"IF($A338=\"N/A\",Ref!$B$36,INDEX(Ranks!$1:$1048576,$A338,DB$1))","v":""},{"$f":"IF($A338=\"N/A\",Ref!$B$36,INDEX(Ranks!$1:$1048576,$A338,DC$1))","v":""},{"$f":"IF($A338=\"N/A\",Ref!$B$36,INDEX(Ranks!$1:$1048576,$A338,DD$1))","v":""},{"$f":"IF($A338=\"N/A\",Ref!$B$36,INDEX(Ranks!$1:$1048576,$A338,DE$1))","v":""},{"$f":"IF($A338=\"N/A\",Ref!$B$36,INDEX(Ranks!$1:$1048576,$A338,DF$1))","v":""},{"$f":"IF($A338=\"N/A\",Ref!$B$36,INDEX(Ranks!$1:$1048576,$A338,DG$1))","v":""},{"$f":"IF($A338=\"N/A\",Ref!$B$36,INDEX(Ranks!$1:$1048576,$A338,DH$1))","v":""},{"$f":"IF($A338=\"N/A\",Ref!$B$36,INDEX(Ranks!$1:$1048576,$A338,DI$1))","v":""},{"$f":"IF($A338=\"N/A\",Ref!$B$36,INDEX(Ranks!$1:$1048576,$A338,DJ$1))","v":""},{"$f":"IF($A338=\"N/A\",Ref!$B$36,INDEX(Ranks!$1:$1048576,$A338,DK$1))","v":""},{"$f":"IF($A338=\"N/A\",Ref!$B$36,INDEX(Ranks!$1:$1048576,$A338,DL$1))","v":""},{"$f":"IF($A338=\"N/A\",Ref!$B$36,INDEX(Ranks!$1:$1048576,$A338,DM$1))","v":""},{"$f":"IF($A338=\"N/A\",Ref!$B$36,INDEX(Ranks!$1:$1048576,$A338,DN$1))","v":""},{"$f":"IF($A338=\"N/A\",Ref!$B$36,INDEX(Ranks!$1:$1048576,$A338,DO$1))","v":""},{"$f":"IF($A338=\"N/A\",Ref!$B$36,INDEX(Ranks!$1:$1048576,$A338,DP$1))","v":""},{"$f":"IF($A338=\"N/A\",Ref!$B$36,INDEX(Ranks!$1:$1048576,$A338,DQ$1))","v":""},{"$f":"IF($A338=\"N/A\",Ref!$B$36,INDEX(Ranks!$1:$1048576,$A338,DR$1))","v":""},{"$f":"IF($A338=\"N/A\",Ref!$B$36,INDEX(Ranks!$1:$1048576,$A338,DS$1))","v":""},{"$f":"IF($A338=\"N/A\",Ref!$B$36,INDEX(Ranks!$1:$1048576,$A338,DT$1))","v":""},{"$f":"IF($A338=\"N/A\",Ref!$B$36,INDEX(Ranks!$1:$1048576,$A338,DU$1))","v":""},{"$f":"IF($A338=\"N/A\",Ref!$B$36,INDEX(Ranks!$1:$1048576,$A338,DV$1))","v":""},{"$f":"IF($A338=\"N/A\",Ref!$B$36,INDEX(Ranks!$1:$1048576,$A338,DW$1))","v":""},{"$f":"IF($A338=\"N/A\",Ref!$B$36,INDEX(Ranks!$1:$1048576,$A338,DX$1))","v":""},{"$f":"IF($A338=\"N/A\",Ref!$B$36,INDEX(Ranks!$1:$1048576,$A338,DY$1))","v":""},{"$f":"IF($A338=\"N/A\",Ref!$B$36,INDEX(Ranks!$1:$1048576,$A338,DZ$1))","v":""},{"$f":"IF($A338=\"N/A\",Ref!$B$36,INDEX(Ranks!$1:$1048576,$A338,EA$1))","v":""},{"$f":"IF($A338=\"N/A\",Ref!$B$36,INDEX(Ranks!$1:$1048576,$A338,EB$1))","v":""}]
[{"$f":"IFERROR(MATCH('Portfolio Page'!L339,Ranks!L:L,0),\"N/A\")","v":"N/A"},null,{"$f":"IF($A339=\"N/A\",\"\",INDEX(Ranks!$1:$1048576,$A339,C$1))","v":""},{"$f":"IF($A339=\"N/A\",Ref!$B$36,INDEX(Ranks!$1:$1048576,$A339,D$1))","v":""},{"$f":"IF($A339=\"N/A\",Ref!$B$36,INDEX(Ranks!$1:$1048576,$A339,E$1))","v":""},{"$f":"IF($A339=\"N/A\",\"\",INDEX(Ranks!$1:$1048576,$A339,F$1))","v":""},{"$f":"IF($A339=\"N/A\",\"\",INDEX(Ranks!$1:$1048576,$A339,G$1))","v":""},{"$f":"IF($A339=\"N/A\",\"\",INDEX(Ranks!$1:$1048576,$A339,H$1))","v":""},{"$f":"IF($A339=\"N/A\",\"\",INDEX(Ranks!$1:$1048576,$A339,I$1))","v":""},{"$f":"IF($A339=\"N/A\",\"\",INDEX(Ranks!$1:$1048576,$A339,J$1))","v":""},{"$f":"IF($A339=\"N/A\",\"\",INDEX(Ranks!$1:$1048576,$A339,K$1))","v":""},null,{"$f":"IF($A339=\"N/A\",Ref!$B$36,INDEX(Ranks!$1:$1048576,$A339,M$1))","v":""},{"$f":"IF($A339=\"N/A\",Ref!$B$36,INDEX(Ranks!$1:$1048576,$A339,N$1))","v":""},{"$f":"IF($A339=\"N/A\",Ref!$B$36,INDEX(Ranks!$1:$1048576,$A339,O$1))","v":""},{"$f":"IF($A339=\"N/A\",Ref!$B$36,INDEX(Ranks!$1:$1048576,$A339,P$1))","v":""},{"$f":"IF($A339=\"N/A\",Ref!$B$36,INDEX(Ranks!$1:$1048576,$A339,Q$1))","v":""},{"$f":"IF($A339=\"N/A\",Ref!$B$36,INDEX(Ranks!$1:$1048576,$A339,R$1))","v":""},{"$f":"IF($A339=\"N/A\",Ref!$B$36,INDEX(Ranks!$1:$1048576,$A339,S$1))","v":""},{"$f":"IF($A339=\"N/A\",Ref!$B$36,INDEX(Ranks!$1:$1048576,$A339,T$1))","v":""},{"$f":"IF($A339=\"N/A\",Ref!$B$36,INDEX(Ranks!$1:$1048576,$A339,U$1))","v":""},{"$f":"IF($A339=\"N/A\",Ref!$B$36,INDEX(Ranks!$1:$1048576,$A339,V$1))","v":""},{"$f":"IF($A339=\"N/A\",Ref!$B$36,INDEX(Ranks!$1:$1048576,$A339,W$1))","v":""},{"$f":"IF($A339=\"N/A\",Ref!$B$36,INDEX(Ranks!$1:$1048576,$A339,X$1))","v":""},{"$f":"IF($A339=\"N/A\",Ref!$B$36,INDEX(Ranks!$1:$1048576,$A339,Y$1))","v":""},{"$f":"IF($A339=\"N/A\",Ref!$B$36,INDEX(Ranks!$1:$1048576,$A339,Z$1))","v":""},{"$f":"IF($A339=\"N/A\",Ref!$B$36,INDEX(Ranks!$1:$1048576,$A339,AA$1))","v":""},{"$f":"IF($A339=\"N/A\",Ref!$B$36,INDEX(Ranks!$1:$1048576,$A339,AB$1))","v":""},{"$f":"IF($A339=\"N/A\",Ref!$B$36,INDEX(Ranks!$1:$1048576,$A339,AC$1))","v":""},{"$f":"IF($A339=\"N/A\",Ref!$B$36,INDEX(Ranks!$1:$1048576,$A339,AD$1))","v":""},{"$f":"IF($A339=\"N/A\",Ref!$B$36,INDEX(Ranks!$1:$1048576,$A339,AE$1))","v":""},{"$f":"IF($A339=\"N/A\",Ref!$B$36,INDEX(Ranks!$1:$1048576,$A339,AF$1))","v":""},{"$f":"IF($A339=\"N/A\",Ref!$B$36,INDEX(Ranks!$1:$1048576,$A339,AG$1))","v":""},{"$f":"IF($A339=\"N/A\",Ref!$B$36,INDEX(Ranks!$1:$1048576,$A339,AH$1))","v":""},{"$f":"IF($A339=\"N/A\",Ref!$B$36,INDEX(Ranks!$1:$1048576,$A339,AI$1))","v":""},{"$f":"IF($A339=\"N/A\",Ref!$B$36,INDEX(Ranks!$1:$1048576,$A339,AJ$1))","v":""},{"$f":"IF($A339=\"N/A\",Ref!$B$36,INDEX(Ranks!$1:$1048576,$A339,AK$1))","v":""},{"$f":"IF($A339=\"N/A\",Ref!$B$36,INDEX(Ranks!$1:$1048576,$A339,AL$1))","v":""},{"$f":"IF($A339=\"N/A\",Ref!$B$36,INDEX(Ranks!$1:$1048576,$A339,AM$1))","v":""},{"$f":"IF($A339=\"N/A\",Ref!$B$36,INDEX(Ranks!$1:$1048576,$A339,AN$1))","v":""},{"$f":"IF($A339=\"N/A\",Ref!$B$36,INDEX(Ranks!$1:$1048576,$A339,AO$1))","v":""},{"$f":"IF($A339=\"N/A\",Ref!$B$36,INDEX(Ranks!$1:$1048576,$A339,AP$1))","v":""},{"$f":"IF($A339=\"N/A\",Ref!$B$36,INDEX(Ranks!$1:$1048576,$A339,AQ$1))","v":""},{"$f":"IF($A339=\"N/A\",Ref!$B$36,INDEX(Ranks!$1:$1048576,$A339,AR$1))","v":""},{"$f":"IF($A339=\"N/A\",Ref!$B$36,INDEX(Ranks!$1:$1048576,$A339,AS$1))","v":""},{"$f":"IF($A339=\"N/A\",Ref!$B$36,INDEX(Ranks!$1:$1048576,$A339,AT$1))","v":""},{"$f":"IF($A339=\"N/A\",Ref!$B$36,INDEX(Ranks!$1:$1048576,$A339,AU$1))","v":""},{"$f":"IF($A339=\"N/A\",Ref!$B$36,INDEX(Ranks!$1:$1048576,$A339,AV$1))","v":""},{"$f":"IF($A339=\"N/A\",Ref!$B$36,INDEX(Ranks!$1:$1048576,$A339,AW$1))","v":""},{"$f":"IF($A339=\"N/A\",Ref!$B$36,INDEX(Ranks!$1:$1048576,$A339,AX$1))","v":""},{"$f":"IF($A339=\"N/A\",Ref!$B$36,INDEX(Ranks!$1:$1048576,$A339,AY$1))","v":""},{"$f":"IF($A339=\"N/A\",Ref!$B$36,INDEX(Ranks!$1:$1048576,$A339,AZ$1))","v":""},{"$f":"IF($A339=\"N/A\",Ref!$B$36,INDEX(Ranks!$1:$1048576,$A339,BA$1))","v":""},{"$f":"IF($A339=\"N/A\",Ref!$B$36,INDEX(Ranks!$1:$1048576,$A339,BB$1))","v":""},{"$f":"IF($A339=\"N/A\",Ref!$B$36,INDEX(Ranks!$1:$1048576,$A339,BC$1))","v":""},{"$f":"IF($A339=\"N/A\",Ref!$B$36,INDEX(Ranks!$1:$1048576,$A339,BD$1))","v":""},{"$f":"IF($A339=\"N/A\",Ref!$B$36,INDEX(Ranks!$1:$1048576,$A339,BE$1))","v":""},{"$f":"IF($A339=\"N/A\",Ref!$B$36,INDEX(Ranks!$1:$1048576,$A339,BF$1))","v":""},{"$f":"IF($A339=\"N/A\",Ref!$B$36,INDEX(Ranks!$1:$1048576,$A339,BG$1))","v":""},{"$f":"IF($A339=\"N/A\",Ref!$B$36,INDEX(Ranks!$1:$1048576,$A339,BH$1))","v":""},{"$f":"IF($A339=\"N/A\",Ref!$B$36,INDEX(Ranks!$1:$1048576,$A339,BI$1))","v":""},{"$f":"IF($A339=\"N/A\",Ref!$B$36,INDEX(Ranks!$1:$1048576,$A339,BJ$1))","v":""},{"$f":"IF($A339=\"N/A\",Ref!$B$36,INDEX(Ranks!$1:$1048576,$A339,BK$1))","v":""},{"$f":"IF($A339=\"N/A\",Ref!$B$36,INDEX(Ranks!$1:$1048576,$A339,BL$1))","v":""},{"$f":"IF($A339=\"N/A\",Ref!$B$36,INDEX(Ranks!$1:$1048576,$A339,BM$1))","v":""},{"$f":"IF($A339=\"N/A\",Ref!$B$36,INDEX(Ranks!$1:$1048576,$A339,BN$1))","v":""},{"$f":"IF($A339=\"N/A\",Ref!$B$36,INDEX(Ranks!$1:$1048576,$A339,BO$1))","v":""},{"$f":"IF($A339=\"N/A\",Ref!$B$36,INDEX(Ranks!$1:$1048576,$A339,BP$1))","v":""},{"$f":"IF($A339=\"N/A\",Ref!$B$36,INDEX(Ranks!$1:$1048576,$A339,BQ$1))","v":""},{"$f":"IF($A339=\"N/A\",Ref!$B$36,INDEX(Ranks!$1:$1048576,$A339,BR$1))","v":""},{"$f":"IF($A339=\"N/A\",Ref!$B$36,INDEX(Ranks!$1:$1048576,$A339,BS$1))","v":""},{"$f":"IF($A339=\"N/A\",Ref!$B$36,INDEX(Ranks!$1:$1048576,$A339,BT$1))","v":""},{"$f":"IF($A339=\"N/A\",Ref!$B$36,INDEX(Ranks!$1:$1048576,$A339,BU$1))","v":""},{"$f":"IF($A339=\"N/A\",Ref!$B$36,INDEX(Ranks!$1:$1048576,$A339,BV$1))","v":""},{"$f":"IF($A339=\"N/A\",Ref!$B$36,INDEX(Ranks!$1:$1048576,$A339,BW$1))","v":""},{"$f":"IF($A339=\"N/A\",Ref!$B$36,INDEX(Ranks!$1:$1048576,$A339,BX$1))","v":""},{"$f":"IF($A339=\"N/A\",Ref!$B$36,INDEX(Ranks!$1:$1048576,$A339,BY$1))","v":""},{"$f":"IF($A339=\"N/A\",Ref!$B$36,INDEX(Ranks!$1:$1048576,$A339,BZ$1))","v":""},{"$f":"IF($A339=\"N/A\",Ref!$B$36,INDEX(Ranks!$1:$1048576,$A339,CA$1))","v":""},{"$f":"IF($A339=\"N/A\",Ref!$B$36,INDEX(Ranks!$1:$1048576,$A339,CB$1))","v":""},{"$f":"IF($A339=\"N/A\",Ref!$B$36,INDEX(Ranks!$1:$1048576,$A339,CC$1))","v":""},{"$f":"IF($A339=\"N/A\",Ref!$B$36,INDEX(Ranks!$1:$1048576,$A339,CD$1))","v":""},{"$f":"IF($A339=\"N/A\",Ref!$B$36,INDEX(Ranks!$1:$1048576,$A339,CE$1))","v":""},{"$f":"IF($A339=\"N/A\",Ref!$B$36,INDEX(Ranks!$1:$1048576,$A339,CF$1))","v":""},{"$f":"IF($A339=\"N/A\",Ref!$B$36,INDEX(Ranks!$1:$1048576,$A339,CG$1))","v":""},{"$f":"IF($A339=\"N/A\",Ref!$B$36,INDEX(Ranks!$1:$1048576,$A339,CH$1))","v":""},{"$f":"IF($A339=\"N/A\",Ref!$B$36,INDEX(Ranks!$1:$1048576,$A339,CI$1))","v":""},{"$f":"IF($A339=\"N/A\",Ref!$B$36,INDEX(Ranks!$1:$1048576,$A339,CJ$1))","v":""},{"$f":"IF($A339=\"N/A\",Ref!$B$36,INDEX(Ranks!$1:$1048576,$A339,CK$1))","v":""},{"$f":"IF($A339=\"N/A\",Ref!$B$36,INDEX(Ranks!$1:$1048576,$A339,CL$1))","v":""},{"$f":"IF($A339=\"N/A\",Ref!$B$36,INDEX(Ranks!$1:$1048576,$A339,CM$1))","v":""},{"$f":"IF($A339=\"N/A\",Ref!$B$36,INDEX(Ranks!$1:$1048576,$A339,CN$1))","v":""},{"$f":"IF($A339=\"N/A\",Ref!$B$36,INDEX(Ranks!$1:$1048576,$A339,CO$1))","v":""},{"$f":"IF($A339=\"N/A\",Ref!$B$36,INDEX(Ranks!$1:$1048576,$A339,CP$1))","v":""},{"$f":"IF($A339=\"N/A\",Ref!$B$36,INDEX(Ranks!$1:$1048576,$A339,CQ$1))","v":""},{"$f":"IF($A339=\"N/A\",Ref!$B$36,INDEX(Ranks!$1:$1048576,$A339,CR$1))","v":""},{"$f":"IF($A339=\"N/A\",Ref!$B$36,INDEX(Ranks!$1:$1048576,$A339,CS$1))","v":""},{"$f":"IF($A339=\"N/A\",Ref!$B$36,INDEX(Ranks!$1:$1048576,$A339,CT$1))","v":""},{"$f":"IF($A339=\"N/A\",Ref!$B$36,INDEX(Ranks!$1:$1048576,$A339,CU$1))","v":""},{"$f":"IF($A339=\"N/A\",Ref!$B$36,INDEX(Ranks!$1:$1048576,$A339,CV$1))","v":""},{"$f":"IF($A339=\"N/A\",Ref!$B$36,INDEX(Ranks!$1:$1048576,$A339,CW$1))","v":""},{"$f":"IF($A339=\"N/A\",Ref!$B$36,INDEX(Ranks!$1:$1048576,$A339,CX$1))","v":""},{"$f":"IF($A339=\"N/A\",Ref!$B$36,INDEX(Ranks!$1:$1048576,$A339,CY$1))","v":""},{"$f":"IF($A339=\"N/A\",Ref!$B$36,INDEX(Ranks!$1:$1048576,$A339,CZ$1))","v":""},{"$f":"IF($A339=\"N/A\",Ref!$B$36,INDEX(Ranks!$1:$1048576,$A339,DA$1))","v":""},{"$f":"IF($A339=\"N/A\",Ref!$B$36,INDEX(Ranks!$1:$1048576,$A339,DB$1))","v":""},{"$f":"IF($A339=\"N/A\",Ref!$B$36,INDEX(Ranks!$1:$1048576,$A339,DC$1))","v":""},{"$f":"IF($A339=\"N/A\",Ref!$B$36,INDEX(Ranks!$1:$1048576,$A339,DD$1))","v":""},{"$f":"IF($A339=\"N/A\",Ref!$B$36,INDEX(Ranks!$1:$1048576,$A339,DE$1))","v":""},{"$f":"IF($A339=\"N/A\",Ref!$B$36,INDEX(Ranks!$1:$1048576,$A339,DF$1))","v":""},{"$f":"IF($A339=\"N/A\",Ref!$B$36,INDEX(Ranks!$1:$1048576,$A339,DG$1))","v":""},{"$f":"IF($A339=\"N/A\",Ref!$B$36,INDEX(Ranks!$1:$1048576,$A339,DH$1))","v":""},{"$f":"IF($A339=\"N/A\",Ref!$B$36,INDEX(Ranks!$1:$1048576,$A339,DI$1))","v":""},{"$f":"IF($A339=\"N/A\",Ref!$B$36,INDEX(Ranks!$1:$1048576,$A339,DJ$1))","v":""},{"$f":"IF($A339=\"N/A\",Ref!$B$36,INDEX(Ranks!$1:$1048576,$A339,DK$1))","v":""},{"$f":"IF($A339=\"N/A\",Ref!$B$36,INDEX(Ranks!$1:$1048576,$A339,DL$1))","v":""},{"$f":"IF($A339=\"N/A\",Ref!$B$36,INDEX(Ranks!$1:$1048576,$A339,DM$1))","v":""},{"$f":"IF($A339=\"N/A\",Ref!$B$36,INDEX(Ranks!$1:$1048576,$A339,DN$1))","v":""},{"$f":"IF($A339=\"N/A\",Ref!$B$36,INDEX(Ranks!$1:$1048576,$A339,DO$1))","v":""},{"$f":"IF($A339=\"N/A\",Ref!$B$36,INDEX(Ranks!$1:$1048576,$A339,DP$1))","v":""},{"$f":"IF($A339=\"N/A\",Ref!$B$36,INDEX(Ranks!$1:$1048576,$A339,DQ$1))","v":""},{"$f":"IF($A339=\"N/A\",Ref!$B$36,INDEX(Ranks!$1:$1048576,$A339,DR$1))","v":""},{"$f":"IF($A339=\"N/A\",Ref!$B$36,INDEX(Ranks!$1:$1048576,$A339,DS$1))","v":""},{"$f":"IF($A339=\"N/A\",Ref!$B$36,INDEX(Ranks!$1:$1048576,$A339,DT$1))","v":""},{"$f":"IF($A339=\"N/A\",Ref!$B$36,INDEX(Ranks!$1:$1048576,$A339,DU$1))","v":""},{"$f":"IF($A339=\"N/A\",Ref!$B$36,INDEX(Ranks!$1:$1048576,$A339,DV$1))","v":""},{"$f":"IF($A339=\"N/A\",Ref!$B$36,INDEX(Ranks!$1:$1048576,$A339,DW$1))","v":""},{"$f":"IF($A339=\"N/A\",Ref!$B$36,INDEX(Ranks!$1:$1048576,$A339,DX$1))","v":""},{"$f":"IF($A339=\"N/A\",Ref!$B$36,INDEX(Ranks!$1:$1048576,$A339,DY$1))","v":""},{"$f":"IF($A339=\"N/A\",Ref!$B$36,INDEX(Ranks!$1:$1048576,$A339,DZ$1))","v":""},{"$f":"IF($A339=\"N/A\",Ref!$B$36,INDEX(Ranks!$1:$1048576,$A339,EA$1))","v":""},{"$f":"IF($A339=\"N/A\",Ref!$B$36,INDEX(Ranks!$1:$1048576,$A339,EB$1))","v":""}]
[{"$f":"IFERROR(MATCH('Portfolio Page'!L340,Ranks!L:L,0),\"N/A\")","v":"N/A"},null,{"$f":"IF($A340=\"N/A\",\"\",INDEX(Ranks!$1:$1048576,$A340,C$1))","v":""},{"$f":"IF($A340=\"N/A\",Ref!$B$36,INDEX(Ranks!$1:$1048576,$A340,D$1))","v":""},{"$f":"IF($A340=\"N/A\",Ref!$B$36,INDEX(Ranks!$1:$1048576,$A340,E$1))","v":""},{"$f":"IF($A340=\"N/A\",\"\",INDEX(Ranks!$1:$1048576,$A340,F$1))","v":""},{"$f":"IF($A340=\"N/A\",\"\",INDEX(Ranks!$1:$1048576,$A340,G$1))","v":""},{"$f":"IF($A340=\"N/A\",\"\",INDEX(Ranks!$1:$1048576,$A340,H$1))","v":""},{"$f":"IF($A340=\"N/A\",\"\",INDEX(Ranks!$1:$1048576,$A340,I$1))","v":""},{"$f":"IF($A340=\"N/A\",\"\",INDEX(Ranks!$1:$1048576,$A340,J$1))","v":""},{"$f":"IF($A340=\"N/A\",\"\",INDEX(Ranks!$1:$1048576,$A340,K$1))","v":""},null,{"$f":"IF($A340=\"N/A\",Ref!$B$36,INDEX(Ranks!$1:$1048576,$A340,M$1))","v":""},{"$f":"IF($A340=\"N/A\",Ref!$B$36,INDEX(Ranks!$1:$1048576,$A340,N$1))","v":""},{"$f":"IF($A340=\"N/A\",Ref!$B$36,INDEX(Ranks!$1:$1048576,$A340,O$1))","v":""},{"$f":"IF($A340=\"N/A\",Ref!$B$36,INDEX(Ranks!$1:$1048576,$A340,P$1))","v":""},{"$f":"IF($A340=\"N/A\",Ref!$B$36,INDEX(Ranks!$1:$1048576,$A340,Q$1))","v":""},{"$f":"IF($A340=\"N/A\",Ref!$B$36,INDEX(Ranks!$1:$1048576,$A340,R$1))","v":""},{"$f":"IF($A340=\"N/A\",Ref!$B$36,INDEX(Ranks!$1:$1048576,$A340,S$1))","v":""},{"$f":"IF($A340=\"N/A\",Ref!$B$36,INDEX(Ranks!$1:$1048576,$A340,T$1))","v":""},{"$f":"IF($A340=\"N/A\",Ref!$B$36,INDEX(Ranks!$1:$1048576,$A340,U$1))","v":""},{"$f":"IF($A340=\"N/A\",Ref!$B$36,INDEX(Ranks!$1:$1048576,$A340,V$1))","v":""},{"$f":"IF($A340=\"N/A\",Ref!$B$36,INDEX(Ranks!$1:$1048576,$A340,W$1))","v":""},{"$f":"IF($A340=\"N/A\",Ref!$B$36,INDEX(Ranks!$1:$1048576,$A340,X$1))","v":""},{"$f":"IF($A340=\"N/A\",Ref!$B$36,INDEX(Ranks!$1:$1048576,$A340,Y$1))","v":""},{"$f":"IF($A340=\"N/A\",Ref!$B$36,INDEX(Ranks!$1:$1048576,$A340,Z$1))","v":""},{"$f":"IF($A340=\"N/A\",Ref!$B$36,INDEX(Ranks!$1:$1048576,$A340,AA$1))","v":""},{"$f":"IF($A340=\"N/A\",Ref!$B$36,INDEX(Ranks!$1:$1048576,$A340,AB$1))","v":""},{"$f":"IF($A340=\"N/A\",Ref!$B$36,INDEX(Ranks!$1:$1048576,$A340,AC$1))","v":""},{"$f":"IF($A340=\"N/A\",Ref!$B$36,INDEX(Ranks!$1:$1048576,$A340,AD$1))","v":""},{"$f":"IF($A340=\"N/A\",Ref!$B$36,INDEX(Ranks!$1:$1048576,$A340,AE$1))","v":""},{"$f":"IF($A340=\"N/A\",Ref!$B$36,INDEX(Ranks!$1:$1048576,$A340,AF$1))","v":""},{"$f":"IF($A340=\"N/A\",Ref!$B$36,INDEX(Ranks!$1:$1048576,$A340,AG$1))","v":""},{"$f":"IF($A340=\"N/A\",Ref!$B$36,INDEX(Ranks!$1:$1048576,$A340,AH$1))","v":""},{"$f":"IF($A340=\"N/A\",Ref!$B$36,INDEX(Ranks!$1:$1048576,$A340,AI$1))","v":""},{"$f":"IF($A340=\"N/A\",Ref!$B$36,INDEX(Ranks!$1:$1048576,$A340,AJ$1))","v":""},{"$f":"IF($A340=\"N/A\",Ref!$B$36,INDEX(Ranks!$1:$1048576,$A340,AK$1))","v":""},{"$f":"IF($A340=\"N/A\",Ref!$B$36,INDEX(Ranks!$1:$1048576,$A340,AL$1))","v":""},{"$f":"IF($A340=\"N/A\",Ref!$B$36,INDEX(Ranks!$1:$1048576,$A340,AM$1))","v":""},{"$f":"IF($A340=\"N/A\",Ref!$B$36,INDEX(Ranks!$1:$1048576,$A340,AN$1))","v":""},{"$f":"IF($A340=\"N/A\",Ref!$B$36,INDEX(Ranks!$1:$1048576,$A340,AO$1))","v":""},{"$f":"IF($A340=\"N/A\",Ref!$B$36,INDEX(Ranks!$1:$1048576,$A340,AP$1))","v":""},{"$f":"IF($A340=\"N/A\",Ref!$B$36,INDEX(Ranks!$1:$1048576,$A340,AQ$1))","v":""},{"$f":"IF($A340=\"N/A\",Ref!$B$36,INDEX(Ranks!$1:$1048576,$A340,AR$1))","v":""},{"$f":"IF($A340=\"N/A\",Ref!$B$36,INDEX(Ranks!$1:$1048576,$A340,AS$1))","v":""},{"$f":"IF($A340=\"N/A\",Ref!$B$36,INDEX(Ranks!$1:$1048576,$A340,AT$1))","v":""},{"$f":"IF($A340=\"N/A\",Ref!$B$36,INDEX(Ranks!$1:$1048576,$A340,AU$1))","v":""},{"$f":"IF($A340=\"N/A\",Ref!$B$36,INDEX(Ranks!$1:$1048576,$A340,AV$1))","v":""},{"$f":"IF($A340=\"N/A\",Ref!$B$36,INDEX(Ranks!$1:$1048576,$A340,AW$1))","v":""},{"$f":"IF($A340=\"N/A\",Ref!$B$36,INDEX(Ranks!$1:$1048576,$A340,AX$1))","v":""},{"$f":"IF($A340=\"N/A\",Ref!$B$36,INDEX(Ranks!$1:$1048576,$A340,AY$1))","v":""},{"$f":"IF($A340=\"N/A\",Ref!$B$36,INDEX(Ranks!$1:$1048576,$A340,AZ$1))","v":""},{"$f":"IF($A340=\"N/A\",Ref!$B$36,INDEX(Ranks!$1:$1048576,$A340,BA$1))","v":""},{"$f":"IF($A340=\"N/A\",Ref!$B$36,INDEX(Ranks!$1:$1048576,$A340,BB$1))","v":""},{"$f":"IF($A340=\"N/A\",Ref!$B$36,INDEX(Ranks!$1:$1048576,$A340,BC$1))","v":""},{"$f":"IF($A340=\"N/A\",Ref!$B$36,INDEX(Ranks!$1:$1048576,$A340,BD$1))","v":""},{"$f":"IF($A340=\"N/A\",Ref!$B$36,INDEX(Ranks!$1:$1048576,$A340,BE$1))","v":""},{"$f":"IF($A340=\"N/A\",Ref!$B$36,INDEX(Ranks!$1:$1048576,$A340,BF$1))","v":""},{"$f":"IF($A340=\"N/A\",Ref!$B$36,INDEX(Ranks!$1:$1048576,$A340,BG$1))","v":""},{"$f":"IF($A340=\"N/A\",Ref!$B$36,INDEX(Ranks!$1:$1048576,$A340,BH$1))","v":""},{"$f":"IF($A340=\"N/A\",Ref!$B$36,INDEX(Ranks!$1:$1048576,$A340,BI$1))","v":""},{"$f":"IF($A340=\"N/A\",Ref!$B$36,INDEX(Ranks!$1:$1048576,$A340,BJ$1))","v":""},{"$f":"IF($A340=\"N/A\",Ref!$B$36,INDEX(Ranks!$1:$1048576,$A340,BK$1))","v":""},{"$f":"IF($A340=\"N/A\",Ref!$B$36,INDEX(Ranks!$1:$1048576,$A340,BL$1))","v":""},{"$f":"IF($A340=\"N/A\",Ref!$B$36,INDEX(Ranks!$1:$1048576,$A340,BM$1))","v":""},{"$f":"IF($A340=\"N/A\",Ref!$B$36,INDEX(Ranks!$1:$1048576,$A340,BN$1))","v":""},{"$f":"IF($A340=\"N/A\",Ref!$B$36,INDEX(Ranks!$1:$1048576,$A340,BO$1))","v":""},{"$f":"IF($A340=\"N/A\",Ref!$B$36,INDEX(Ranks!$1:$1048576,$A340,BP$1))","v":""},{"$f":"IF($A340=\"N/A\",Ref!$B$36,INDEX(Ranks!$1:$1048576,$A340,BQ$1))","v":""},{"$f":"IF($A340=\"N/A\",Ref!$B$36,INDEX(Ranks!$1:$1048576,$A340,BR$1))","v":""},{"$f":"IF($A340=\"N/A\",Ref!$B$36,INDEX(Ranks!$1:$1048576,$A340,BS$1))","v":""},{"$f":"IF($A340=\"N/A\",Ref!$B$36,INDEX(Ranks!$1:$1048576,$A340,BT$1))","v":""},{"$f":"IF($A340=\"N/A\",Ref!$B$36,INDEX(Ranks!$1:$1048576,$A340,BU$1))","v":""},{"$f":"IF($A340=\"N/A\",Ref!$B$36,INDEX(Ranks!$1:$1048576,$A340,BV$1))","v":""},{"$f":"IF($A340=\"N/A\",Ref!$B$36,INDEX(Ranks!$1:$1048576,$A340,BW$1))","v":""},{"$f":"IF($A340=\"N/A\",Ref!$B$36,INDEX(Ranks!$1:$1048576,$A340,BX$1))","v":""},{"$f":"IF($A340=\"N/A\",Ref!$B$36,INDEX(Ranks!$1:$1048576,$A340,BY$1))","v":""},{"$f":"IF($A340=\"N/A\",Ref!$B$36,INDEX(Ranks!$1:$1048576,$A340,BZ$1))","v":""},{"$f":"IF($A340=\"N/A\",Ref!$B$36,INDEX(Ranks!$1:$1048576,$A340,CA$1))","v":""},{"$f":"IF($A340=\"N/A\",Ref!$B$36,INDEX(Ranks!$1:$1048576,$A340,CB$1))","v":""},{"$f":"IF($A340=\"N/A\",Ref!$B$36,INDEX(Ranks!$1:$1048576,$A340,CC$1))","v":""},{"$f":"IF($A340=\"N/A\",Ref!$B$36,INDEX(Ranks!$1:$1048576,$A340,CD$1))","v":""},{"$f":"IF($A340=\"N/A\",Ref!$B$36,INDEX(Ranks!$1:$1048576,$A340,CE$1))","v":""},{"$f":"IF($A340=\"N/A\",Ref!$B$36,INDEX(Ranks!$1:$1048576,$A340,CF$1))","v":""},{"$f":"IF($A340=\"N/A\",Ref!$B$36,INDEX(Ranks!$1:$1048576,$A340,CG$1))","v":""},{"$f":"IF($A340=\"N/A\",Ref!$B$36,INDEX(Ranks!$1:$1048576,$A340,CH$1))","v":""},{"$f":"IF($A340=\"N/A\",Ref!$B$36,INDEX(Ranks!$1:$1048576,$A340,CI$1))","v":""},{"$f":"IF($A340=\"N/A\",Ref!$B$36,INDEX(Ranks!$1:$1048576,$A340,CJ$1))","v":""},{"$f":"IF($A340=\"N/A\",Ref!$B$36,INDEX(Ranks!$1:$1048576,$A340,CK$1))","v":""},{"$f":"IF($A340=\"N/A\",Ref!$B$36,INDEX(Ranks!$1:$1048576,$A340,CL$1))","v":""},{"$f":"IF($A340=\"N/A\",Ref!$B$36,INDEX(Ranks!$1:$1048576,$A340,CM$1))","v":""},{"$f":"IF($A340=\"N/A\",Ref!$B$36,INDEX(Ranks!$1:$1048576,$A340,CN$1))","v":""},{"$f":"IF($A340=\"N/A\",Ref!$B$36,INDEX(Ranks!$1:$1048576,$A340,CO$1))","v":""},{"$f":"IF($A340=\"N/A\",Ref!$B$36,INDEX(Ranks!$1:$1048576,$A340,CP$1))","v":""},{"$f":"IF($A340=\"N/A\",Ref!$B$36,INDEX(Ranks!$1:$1048576,$A340,CQ$1))","v":""},{"$f":"IF($A340=\"N/A\",Ref!$B$36,INDEX(Ranks!$1:$1048576,$A340,CR$1))","v":""},{"$f":"IF($A340=\"N/A\",Ref!$B$36,INDEX(Ranks!$1:$1048576,$A340,CS$1))","v":""},{"$f":"IF($A340=\"N/A\",Ref!$B$36,INDEX(Ranks!$1:$1048576,$A340,CT$1))","v":""},{"$f":"IF($A340=\"N/A\",Ref!$B$36,INDEX(Ranks!$1:$1048576,$A340,CU$1))","v":""},{"$f":"IF($A340=\"N/A\",Ref!$B$36,INDEX(Ranks!$1:$1048576,$A340,CV$1))","v":""},{"$f":"IF($A340=\"N/A\",Ref!$B$36,INDEX(Ranks!$1:$1048576,$A340,CW$1))","v":""},{"$f":"IF($A340=\"N/A\",Ref!$B$36,INDEX(Ranks!$1:$1048576,$A340,CX$1))","v":""},{"$f":"IF($A340=\"N/A\",Ref!$B$36,INDEX(Ranks!$1:$1048576,$A340,CY$1))","v":""},{"$f":"IF($A340=\"N/A\",Ref!$B$36,INDEX(Ranks!$1:$1048576,$A340,CZ$1))","v":""},{"$f":"IF($A340=\"N/A\",Ref!$B$36,INDEX(Ranks!$1:$1048576,$A340,DA$1))","v":""},{"$f":"IF($A340=\"N/A\",Ref!$B$36,INDEX(Ranks!$1:$1048576,$A340,DB$1))","v":""},{"$f":"IF($A340=\"N/A\",Ref!$B$36,INDEX(Ranks!$1:$1048576,$A340,DC$1))","v":""},{"$f":"IF($A340=\"N/A\",Ref!$B$36,INDEX(Ranks!$1:$1048576,$A340,DD$1))","v":""},{"$f":"IF($A340=\"N/A\",Ref!$B$36,INDEX(Ranks!$1:$1048576,$A340,DE$1))","v":""},{"$f":"IF($A340=\"N/A\",Ref!$B$36,INDEX(Ranks!$1:$1048576,$A340,DF$1))","v":""},{"$f":"IF($A340=\"N/A\",Ref!$B$36,INDEX(Ranks!$1:$1048576,$A340,DG$1))","v":""},{"$f":"IF($A340=\"N/A\",Ref!$B$36,INDEX(Ranks!$1:$1048576,$A340,DH$1))","v":""},{"$f":"IF($A340=\"N/A\",Ref!$B$36,INDEX(Ranks!$1:$1048576,$A340,DI$1))","v":""},{"$f":"IF($A340=\"N/A\",Ref!$B$36,INDEX(Ranks!$1:$1048576,$A340,DJ$1))","v":""},{"$f":"IF($A340=\"N/A\",Ref!$B$36,INDEX(Ranks!$1:$1048576,$A340,DK$1))","v":""},{"$f":"IF($A340=\"N/A\",Ref!$B$36,INDEX(Ranks!$1:$1048576,$A340,DL$1))","v":""},{"$f":"IF($A340=\"N/A\",Ref!$B$36,INDEX(Ranks!$1:$1048576,$A340,DM$1))","v":""},{"$f":"IF($A340=\"N/A\",Ref!$B$36,INDEX(Ranks!$1:$1048576,$A340,DN$1))","v":""},{"$f":"IF($A340=\"N/A\",Ref!$B$36,INDEX(Ranks!$1:$1048576,$A340,DO$1))","v":""},{"$f":"IF($A340=\"N/A\",Ref!$B$36,INDEX(Ranks!$1:$1048576,$A340,DP$1))","v":""},{"$f":"IF($A340=\"N/A\",Ref!$B$36,INDEX(Ranks!$1:$1048576,$A340,DQ$1))","v":""},{"$f":"IF($A340=\"N/A\",Ref!$B$36,INDEX(Ranks!$1:$1048576,$A340,DR$1))","v":""},{"$f":"IF($A340=\"N/A\",Ref!$B$36,INDEX(Ranks!$1:$1048576,$A340,DS$1))","v":""},{"$f":"IF($A340=\"N/A\",Ref!$B$36,INDEX(Ranks!$1:$1048576,$A340,DT$1))","v":""},{"$f":"IF($A340=\"N/A\",Ref!$B$36,INDEX(Ranks!$1:$1048576,$A340,DU$1))","v":""},{"$f":"IF($A340=\"N/A\",Ref!$B$36,INDEX(Ranks!$1:$1048576,$A340,DV$1))","v":""},{"$f":"IF($A340=\"N/A\",Ref!$B$36,INDEX(Ranks!$1:$1048576,$A340,DW$1))","v":""},{"$f":"IF($A340=\"N/A\",Ref!$B$36,INDEX(Ranks!$1:$1048576,$A340,DX$1))","v":""},{"$f":"IF($A340=\"N/A\",Ref!$B$36,INDEX(Ranks!$1:$1048576,$A340,DY$1))","v":""},{"$f":"IF($A340=\"N/A\",Ref!$B$36,INDEX(Ranks!$1:$1048576,$A340,DZ$1))","v":""},{"$f":"IF($A340=\"N/A\",Ref!$B$36,INDEX(Ranks!$1:$1048576,$A340,EA$1))","v":""},{"$f":"IF($A340=\"N/A\",Ref!$B$36,INDEX(Ranks!$1:$1048576,$A340,EB$1))","v":""}]
[{"$f":"IFERROR(MATCH('Portfolio Page'!L341,Ranks!L:L,0),\"N/A\")","v":"N/A"},null,{"$f":"IF($A341=\"N/A\",\"\",INDEX(Ranks!$1:$1048576,$A341,C$1))","v":""},{"$f":"IF($A341=\"N/A\",Ref!$B$36,INDEX(Ranks!$1:$1048576,$A341,D$1))","v":""},{"$f":"IF($A341=\"N/A\",Ref!$B$36,INDEX(Ranks!$1:$1048576,$A341,E$1))","v":""},{"$f":"IF($A341=\"N/A\",\"\",INDEX(Ranks!$1:$1048576,$A341,F$1))","v":""},{"$f":"IF($A341=\"N/A\",\"\",INDEX(Ranks!$1:$1048576,$A341,G$1))","v":""},{"$f":"IF($A341=\"N/A\",\"\",INDEX(Ranks!$1:$1048576,$A341,H$1))","v":""},{"$f":"IF($A341=\"N/A\",\"\",INDEX(Ranks!$1:$1048576,$A341,I$1))","v":""},{"$f":"IF($A341=\"N/A\",\"\",INDEX(Ranks!$1:$1048576,$A341,J$1))","v":""},{"$f":"IF($A341=\"N/A\",\"\",INDEX(Ranks!$1:$1048576,$A341,K$1))","v":""},null,{"$f":"IF($A341=\"N/A\",Ref!$B$36,INDEX(Ranks!$1:$1048576,$A341,M$1))","v":""},{"$f":"IF($A341=\"N/A\",Ref!$B$36,INDEX(Ranks!$1:$1048576,$A341,N$1))","v":""},{"$f":"IF($A341=\"N/A\",Ref!$B$36,INDEX(Ranks!$1:$1048576,$A341,O$1))","v":""},{"$f":"IF($A341=\"N/A\",Ref!$B$36,INDEX(Ranks!$1:$1048576,$A341,P$1))","v":""},{"$f":"IF($A341=\"N/A\",Ref!$B$36,INDEX(Ranks!$1:$1048576,$A341,Q$1))","v":""},{"$f":"IF($A341=\"N/A\",Ref!$B$36,INDEX(Ranks!$1:$1048576,$A341,R$1))","v":""},{"$f":"IF($A341=\"N/A\",Ref!$B$36,INDEX(Ranks!$1:$1048576,$A341,S$1))","v":""},{"$f":"IF($A341=\"N/A\",Ref!$B$36,INDEX(Ranks!$1:$1048576,$A341,T$1))","v":""},{"$f":"IF($A341=\"N/A\",Ref!$B$36,INDEX(Ranks!$1:$1048576,$A341,U$1))","v":""},{"$f":"IF($A341=\"N/A\",Ref!$B$36,INDEX(Ranks!$1:$1048576,$A341,V$1))","v":""},{"$f":"IF($A341=\"N/A\",Ref!$B$36,INDEX(Ranks!$1:$1048576,$A341,W$1))","v":""},{"$f":"IF($A341=\"N/A\",Ref!$B$36,INDEX(Ranks!$1:$1048576,$A341,X$1))","v":""},{"$f":"IF($A341=\"N/A\",Ref!$B$36,INDEX(Ranks!$1:$1048576,$A341,Y$1))","v":""},{"$f":"IF($A341=\"N/A\",Ref!$B$36,INDEX(Ranks!$1:$1048576,$A341,Z$1))","v":""},{"$f":"IF($A341=\"N/A\",Ref!$B$36,INDEX(Ranks!$1:$1048576,$A341,AA$1))","v":""},{"$f":"IF($A341=\"N/A\",Ref!$B$36,INDEX(Ranks!$1:$1048576,$A341,AB$1))","v":""},{"$f":"IF($A341=\"N/A\",Ref!$B$36,INDEX(Ranks!$1:$1048576,$A341,AC$1))","v":""},{"$f":"IF($A341=\"N/A\",Ref!$B$36,INDEX(Ranks!$1:$1048576,$A341,AD$1))","v":""},{"$f":"IF($A341=\"N/A\",Ref!$B$36,INDEX(Ranks!$1:$1048576,$A341,AE$1))","v":""},{"$f":"IF($A341=\"N/A\",Ref!$B$36,INDEX(Ranks!$1:$1048576,$A341,AF$1))","v":""},{"$f":"IF($A341=\"N/A\",Ref!$B$36,INDEX(Ranks!$1:$1048576,$A341,AG$1))","v":""},{"$f":"IF($A341=\"N/A\",Ref!$B$36,INDEX(Ranks!$1:$1048576,$A341,AH$1))","v":""},{"$f":"IF($A341=\"N/A\",Ref!$B$36,INDEX(Ranks!$1:$1048576,$A341,AI$1))","v":""},{"$f":"IF($A341=\"N/A\",Ref!$B$36,INDEX(Ranks!$1:$1048576,$A341,AJ$1))","v":""},{"$f":"IF($A341=\"N/A\",Ref!$B$36,INDEX(Ranks!$1:$1048576,$A341,AK$1))","v":""},{"$f":"IF($A341=\"N/A\",Ref!$B$36,INDEX(Ranks!$1:$1048576,$A341,AL$1))","v":""},{"$f":"IF($A341=\"N/A\",Ref!$B$36,INDEX(Ranks!$1:$1048576,$A341,AM$1))","v":""},{"$f":"IF($A341=\"N/A\",Ref!$B$36,INDEX(Ranks!$1:$1048576,$A341,AN$1))","v":""},{"$f":"IF($A341=\"N/A\",Ref!$B$36,INDEX(Ranks!$1:$1048576,$A341,AO$1))","v":""},{"$f":"IF($A341=\"N/A\",Ref!$B$36,INDEX(Ranks!$1:$1048576,$A341,AP$1))","v":""},{"$f":"IF($A341=\"N/A\",Ref!$B$36,INDEX(Ranks!$1:$1048576,$A341,AQ$1))","v":""},{"$f":"IF($A341=\"N/A\",Ref!$B$36,INDEX(Ranks!$1:$1048576,$A341,AR$1))","v":""},{"$f":"IF($A341=\"N/A\",Ref!$B$36,INDEX(Ranks!$1:$1048576,$A341,AS$1))","v":""},{"$f":"IF($A341=\"N/A\",Ref!$B$36,INDEX(Ranks!$1:$1048576,$A341,AT$1))","v":""},{"$f":"IF($A341=\"N/A\",Ref!$B$36,INDEX(Ranks!$1:$1048576,$A341,AU$1))","v":""},{"$f":"IF($A341=\"N/A\",Ref!$B$36,INDEX(Ranks!$1:$1048576,$A341,AV$1))","v":""},{"$f":"IF($A341=\"N/A\",Ref!$B$36,INDEX(Ranks!$1:$1048576,$A341,AW$1))","v":""},{"$f":"IF($A341=\"N/A\",Ref!$B$36,INDEX(Ranks!$1:$1048576,$A341,AX$1))","v":""},{"$f":"IF($A341=\"N/A\",Ref!$B$36,INDEX(Ranks!$1:$1048576,$A341,AY$1))","v":""},{"$f":"IF($A341=\"N/A\",Ref!$B$36,INDEX(Ranks!$1:$1048576,$A341,AZ$1))","v":""},{"$f":"IF($A341=\"N/A\",Ref!$B$36,INDEX(Ranks!$1:$1048576,$A341,BA$1))","v":""},{"$f":"IF($A341=\"N/A\",Ref!$B$36,INDEX(Ranks!$1:$1048576,$A341,BB$1))","v":""},{"$f":"IF($A341=\"N/A\",Ref!$B$36,INDEX(Ranks!$1:$1048576,$A341,BC$1))","v":""},{"$f":"IF($A341=\"N/A\",Ref!$B$36,INDEX(Ranks!$1:$1048576,$A341,BD$1))","v":""},{"$f":"IF($A341=\"N/A\",Ref!$B$36,INDEX(Ranks!$1:$1048576,$A341,BE$1))","v":""},{"$f":"IF($A341=\"N/A\",Ref!$B$36,INDEX(Ranks!$1:$1048576,$A341,BF$1))","v":""},{"$f":"IF($A341=\"N/A\",Ref!$B$36,INDEX(Ranks!$1:$1048576,$A341,BG$1))","v":""},{"$f":"IF($A341=\"N/A\",Ref!$B$36,INDEX(Ranks!$1:$1048576,$A341,BH$1))","v":""},{"$f":"IF($A341=\"N/A\",Ref!$B$36,INDEX(Ranks!$1:$1048576,$A341,BI$1))","v":""},{"$f":"IF($A341=\"N/A\",Ref!$B$36,INDEX(Ranks!$1:$1048576,$A341,BJ$1))","v":""},{"$f":"IF($A341=\"N/A\",Ref!$B$36,INDEX(Ranks!$1:$1048576,$A341,BK$1))","v":""},{"$f":"IF($A341=\"N/A\",Ref!$B$36,INDEX(Ranks!$1:$1048576,$A341,BL$1))","v":""},{"$f":"IF($A341=\"N/A\",Ref!$B$36,INDEX(Ranks!$1:$1048576,$A341,BM$1))","v":""},{"$f":"IF($A341=\"N/A\",Ref!$B$36,INDEX(Ranks!$1:$1048576,$A341,BN$1))","v":""},{"$f":"IF($A341=\"N/A\",Ref!$B$36,INDEX(Ranks!$1:$1048576,$A341,BO$1))","v":""},{"$f":"IF($A341=\"N/A\",Ref!$B$36,INDEX(Ranks!$1:$1048576,$A341,BP$1))","v":""},{"$f":"IF($A341=\"N/A\",Ref!$B$36,INDEX(Ranks!$1:$1048576,$A341,BQ$1))","v":""},{"$f":"IF($A341=\"N/A\",Ref!$B$36,INDEX(Ranks!$1:$1048576,$A341,BR$1))","v":""},{"$f":"IF($A341=\"N/A\",Ref!$B$36,INDEX(Ranks!$1:$1048576,$A341,BS$1))","v":""},{"$f":"IF($A341=\"N/A\",Ref!$B$36,INDEX(Ranks!$1:$1048576,$A341,BT$1))","v":""},{"$f":"IF($A341=\"N/A\",Ref!$B$36,INDEX(Ranks!$1:$1048576,$A341,BU$1))","v":""},{"$f":"IF($A341=\"N/A\",Ref!$B$36,INDEX(Ranks!$1:$1048576,$A341,BV$1))","v":""},{"$f":"IF($A341=\"N/A\",Ref!$B$36,INDEX(Ranks!$1:$1048576,$A341,BW$1))","v":""},{"$f":"IF($A341=\"N/A\",Ref!$B$36,INDEX(Ranks!$1:$1048576,$A341,BX$1))","v":""},{"$f":"IF($A341=\"N/A\",Ref!$B$36,INDEX(Ranks!$1:$1048576,$A341,BY$1))","v":""},{"$f":"IF($A341=\"N/A\",Ref!$B$36,INDEX(Ranks!$1:$1048576,$A341,BZ$1))","v":""},{"$f":"IF($A341=\"N/A\",Ref!$B$36,INDEX(Ranks!$1:$1048576,$A341,CA$1))","v":""},{"$f":"IF($A341=\"N/A\",Ref!$B$36,INDEX(Ranks!$1:$1048576,$A341,CB$1))","v":""},{"$f":"IF($A341=\"N/A\",Ref!$B$36,INDEX(Ranks!$1:$1048576,$A341,CC$1))","v":""},{"$f":"IF($A341=\"N/A\",Ref!$B$36,INDEX(Ranks!$1:$1048576,$A341,CD$1))","v":""},{"$f":"IF($A341=\"N/A\",Ref!$B$36,INDEX(Ranks!$1:$1048576,$A341,CE$1))","v":""},{"$f":"IF($A341=\"N/A\",Ref!$B$36,INDEX(Ranks!$1:$1048576,$A341,CF$1))","v":""},{"$f":"IF($A341=\"N/A\",Ref!$B$36,INDEX(Ranks!$1:$1048576,$A341,CG$1))","v":""},{"$f":"IF($A341=\"N/A\",Ref!$B$36,INDEX(Ranks!$1:$1048576,$A341,CH$1))","v":""},{"$f":"IF($A341=\"N/A\",Ref!$B$36,INDEX(Ranks!$1:$1048576,$A341,CI$1))","v":""},{"$f":"IF($A341=\"N/A\",Ref!$B$36,INDEX(Ranks!$1:$1048576,$A341,CJ$1))","v":""},{"$f":"IF($A341=\"N/A\",Ref!$B$36,INDEX(Ranks!$1:$1048576,$A341,CK$1))","v":""},{"$f":"IF($A341=\"N/A\",Ref!$B$36,INDEX(Ranks!$1:$1048576,$A341,CL$1))","v":""},{"$f":"IF($A341=\"N/A\",Ref!$B$36,INDEX(Ranks!$1:$1048576,$A341,CM$1))","v":""},{"$f":"IF($A341=\"N/A\",Ref!$B$36,INDEX(Ranks!$1:$1048576,$A341,CN$1))","v":""},{"$f":"IF($A341=\"N/A\",Ref!$B$36,INDEX(Ranks!$1:$1048576,$A341,CO$1))","v":""},{"$f":"IF($A341=\"N/A\",Ref!$B$36,INDEX(Ranks!$1:$1048576,$A341,CP$1))","v":""},{"$f":"IF($A341=\"N/A\",Ref!$B$36,INDEX(Ranks!$1:$1048576,$A341,CQ$1))","v":""},{"$f":"IF($A341=\"N/A\",Ref!$B$36,INDEX(Ranks!$1:$1048576,$A341,CR$1))","v":""},{"$f":"IF($A341=\"N/A\",Ref!$B$36,INDEX(Ranks!$1:$1048576,$A341,CS$1))","v":""},{"$f":"IF($A341=\"N/A\",Ref!$B$36,INDEX(Ranks!$1:$1048576,$A341,CT$1))","v":""},{"$f":"IF($A341=\"N/A\",Ref!$B$36,INDEX(Ranks!$1:$1048576,$A341,CU$1))","v":""},{"$f":"IF($A341=\"N/A\",Ref!$B$36,INDEX(Ranks!$1:$1048576,$A341,CV$1))","v":""},{"$f":"IF($A341=\"N/A\",Ref!$B$36,INDEX(Ranks!$1:$1048576,$A341,CW$1))","v":""},{"$f":"IF($A341=\"N/A\",Ref!$B$36,INDEX(Ranks!$1:$1048576,$A341,CX$1))","v":""},{"$f":"IF($A341=\"N/A\",Ref!$B$36,INDEX(Ranks!$1:$1048576,$A341,CY$1))","v":""},{"$f":"IF($A341=\"N/A\",Ref!$B$36,INDEX(Ranks!$1:$1048576,$A341,CZ$1))","v":""},{"$f":"IF($A341=\"N/A\",Ref!$B$36,INDEX(Ranks!$1:$1048576,$A341,DA$1))","v":""},{"$f":"IF($A341=\"N/A\",Ref!$B$36,INDEX(Ranks!$1:$1048576,$A341,DB$1))","v":""},{"$f":"IF($A341=\"N/A\",Ref!$B$36,INDEX(Ranks!$1:$1048576,$A341,DC$1))","v":""},{"$f":"IF($A341=\"N/A\",Ref!$B$36,INDEX(Ranks!$1:$1048576,$A341,DD$1))","v":""},{"$f":"IF($A341=\"N/A\",Ref!$B$36,INDEX(Ranks!$1:$1048576,$A341,DE$1))","v":""},{"$f":"IF($A341=\"N/A\",Ref!$B$36,INDEX(Ranks!$1:$1048576,$A341,DF$1))","v":""},{"$f":"IF($A341=\"N/A\",Ref!$B$36,INDEX(Ranks!$1:$1048576,$A341,DG$1))","v":""},{"$f":"IF($A341=\"N/A\",Ref!$B$36,INDEX(Ranks!$1:$1048576,$A341,DH$1))","v":""},{"$f":"IF($A341=\"N/A\",Ref!$B$36,INDEX(Ranks!$1:$1048576,$A341,DI$1))","v":""},{"$f":"IF($A341=\"N/A\",Ref!$B$36,INDEX(Ranks!$1:$1048576,$A341,DJ$1))","v":""},{"$f":"IF($A341=\"N/A\",Ref!$B$36,INDEX(Ranks!$1:$1048576,$A341,DK$1))","v":""},{"$f":"IF($A341=\"N/A\",Ref!$B$36,INDEX(Ranks!$1:$1048576,$A341,DL$1))","v":""},{"$f":"IF($A341=\"N/A\",Ref!$B$36,INDEX(Ranks!$1:$1048576,$A341,DM$1))","v":""},{"$f":"IF($A341=\"N/A\",Ref!$B$36,INDEX(Ranks!$1:$1048576,$A341,DN$1))","v":""},{"$f":"IF($A341=\"N/A\",Ref!$B$36,INDEX(Ranks!$1:$1048576,$A341,DO$1))","v":""},{"$f":"IF($A341=\"N/A\",Ref!$B$36,INDEX(Ranks!$1:$1048576,$A341,DP$1))","v":""},{"$f":"IF($A341=\"N/A\",Ref!$B$36,INDEX(Ranks!$1:$1048576,$A341,DQ$1))","v":""},{"$f":"IF($A341=\"N/A\",Ref!$B$36,INDEX(Ranks!$1:$1048576,$A341,DR$1))","v":""},{"$f":"IF($A341=\"N/A\",Ref!$B$36,INDEX(Ranks!$1:$1048576,$A341,DS$1))","v":""},{"$f":"IF($A341=\"N/A\",Ref!$B$36,INDEX(Ranks!$1:$1048576,$A341,DT$1))","v":""},{"$f":"IF($A341=\"N/A\",Ref!$B$36,INDEX(Ranks!$1:$1048576,$A341,DU$1))","v":""},{"$f":"IF($A341=\"N/A\",Ref!$B$36,INDEX(Ranks!$1:$1048576,$A341,DV$1))","v":""},{"$f":"IF($A341=\"N/A\",Ref!$B$36,INDEX(Ranks!$1:$1048576,$A341,DW$1))","v":""},{"$f":"IF($A341=\"N/A\",Ref!$B$36,INDEX(Ranks!$1:$1048576,$A341,DX$1))","v":""},{"$f":"IF($A341=\"N/A\",Ref!$B$36,INDEX(Ranks!$1:$1048576,$A341,DY$1))","v":""},{"$f":"IF($A341=\"N/A\",Ref!$B$36,INDEX(Ranks!$1:$1048576,$A341,DZ$1))","v":""},{"$f":"IF($A341=\"N/A\",Ref!$B$36,INDEX(Ranks!$1:$1048576,$A341,EA$1))","v":""},{"$f":"IF($A341=\"N/A\",Ref!$B$36,INDEX(Ranks!$1:$1048576,$A341,EB$1))","v":""}]
[{"$f":"IFERROR(MATCH('Portfolio Page'!L342,Ranks!L:L,0),\"N/A\")","v":"N/A"},null,{"$f":"IF($A342=\"N/A\",\"\",INDEX(Ranks!$1:$1048576,$A342,C$1))","v":""},{"$f":"IF($A342=\"N/A\",Ref!$B$36,INDEX(Ranks!$1:$1048576,$A342,D$1))","v":""},{"$f":"IF($A342=\"N/A\",Ref!$B$36,INDEX(Ranks!$1:$1048576,$A342,E$1))","v":""},{"$f":"IF($A342=\"N/A\",\"\",INDEX(Ranks!$1:$1048576,$A342,F$1))","v":""},{"$f":"IF($A342=\"N/A\",\"\",INDEX(Ranks!$1:$1048576,$A342,G$1))","v":""},{"$f":"IF($A342=\"N/A\",\"\",INDEX(Ranks!$1:$1048576,$A342,H$1))","v":""},{"$f":"IF($A342=\"N/A\",\"\",INDEX(Ranks!$1:$1048576,$A342,I$1))","v":""},{"$f":"IF($A342=\"N/A\",\"\",INDEX(Ranks!$1:$1048576,$A342,J$1))","v":""},{"$f":"IF($A342=\"N/A\",\"\",INDEX(Ranks!$1:$1048576,$A342,K$1))","v":""},null,{"$f":"IF($A342=\"N/A\",Ref!$B$36,INDEX(Ranks!$1:$1048576,$A342,M$1))","v":""},{"$f":"IF($A342=\"N/A\",Ref!$B$36,INDEX(Ranks!$1:$1048576,$A342,N$1))","v":""},{"$f":"IF($A342=\"N/A\",Ref!$B$36,INDEX(Ranks!$1:$1048576,$A342,O$1))","v":""},{"$f":"IF($A342=\"N/A\",Ref!$B$36,INDEX(Ranks!$1:$1048576,$A342,P$1))","v":""},{"$f":"IF($A342=\"N/A\",Ref!$B$36,INDEX(Ranks!$1:$1048576,$A342,Q$1))","v":""},{"$f":"IF($A342=\"N/A\",Ref!$B$36,INDEX(Ranks!$1:$1048576,$A342,R$1))","v":""},{"$f":"IF($A342=\"N/A\",Ref!$B$36,INDEX(Ranks!$1:$1048576,$A342,S$1))","v":""},{"$f":"IF($A342=\"N/A\",Ref!$B$36,INDEX(Ranks!$1:$1048576,$A342,T$1))","v":""},{"$f":"IF($A342=\"N/A\",Ref!$B$36,INDEX(Ranks!$1:$1048576,$A342,U$1))","v":""},{"$f":"IF($A342=\"N/A\",Ref!$B$36,INDEX(Ranks!$1:$1048576,$A342,V$1))","v":""},{"$f":"IF($A342=\"N/A\",Ref!$B$36,INDEX(Ranks!$1:$1048576,$A342,W$1))","v":""},{"$f":"IF($A342=\"N/A\",Ref!$B$36,INDEX(Ranks!$1:$1048576,$A342,X$1))","v":""},{"$f":"IF($A342=\"N/A\",Ref!$B$36,INDEX(Ranks!$1:$1048576,$A342,Y$1))","v":""},{"$f":"IF($A342=\"N/A\",Ref!$B$36,INDEX(Ranks!$1:$1048576,$A342,Z$1))","v":""},{"$f":"IF($A342=\"N/A\",Ref!$B$36,INDEX(Ranks!$1:$1048576,$A342,AA$1))","v":""},{"$f":"IF($A342=\"N/A\",Ref!$B$36,INDEX(Ranks!$1:$1048576,$A342,AB$1))","v":""},{"$f":"IF($A342=\"N/A\",Ref!$B$36,INDEX(Ranks!$1:$1048576,$A342,AC$1))","v":""},{"$f":"IF($A342=\"N/A\",Ref!$B$36,INDEX(Ranks!$1:$1048576,$A342,AD$1))","v":""},{"$f":"IF($A342=\"N/A\",Ref!$B$36,INDEX(Ranks!$1:$1048576,$A342,AE$1))","v":""},{"$f":"IF($A342=\"N/A\",Ref!$B$36,INDEX(Ranks!$1:$1048576,$A342,AF$1))","v":""},{"$f":"IF($A342=\"N/A\",Ref!$B$36,INDEX(Ranks!$1:$1048576,$A342,AG$1))","v":""},{"$f":"IF($A342=\"N/A\",Ref!$B$36,INDEX(Ranks!$1:$1048576,$A342,AH$1))","v":""},{"$f":"IF($A342=\"N/A\",Ref!$B$36,INDEX(Ranks!$1:$1048576,$A342,AI$1))","v":""},{"$f":"IF($A342=\"N/A\",Ref!$B$36,INDEX(Ranks!$1:$1048576,$A342,AJ$1))","v":""},{"$f":"IF($A342=\"N/A\",Ref!$B$36,INDEX(Ranks!$1:$1048576,$A342,AK$1))","v":""},{"$f":"IF($A342=\"N/A\",Ref!$B$36,INDEX(Ranks!$1:$1048576,$A342,AL$1))","v":""},{"$f":"IF($A342=\"N/A\",Ref!$B$36,INDEX(Ranks!$1:$1048576,$A342,AM$1))","v":""},{"$f":"IF($A342=\"N/A\",Ref!$B$36,INDEX(Ranks!$1:$1048576,$A342,AN$1))","v":""},{"$f":"IF($A342=\"N/A\",Ref!$B$36,INDEX(Ranks!$1:$1048576,$A342,AO$1))","v":""},{"$f":"IF($A342=\"N/A\",Ref!$B$36,INDEX(Ranks!$1:$1048576,$A342,AP$1))","v":""},{"$f":"IF($A342=\"N/A\",Ref!$B$36,INDEX(Ranks!$1:$1048576,$A342,AQ$1))","v":""},{"$f":"IF($A342=\"N/A\",Ref!$B$36,INDEX(Ranks!$1:$1048576,$A342,AR$1))","v":""},{"$f":"IF($A342=\"N/A\",Ref!$B$36,INDEX(Ranks!$1:$1048576,$A342,AS$1))","v":""},{"$f":"IF($A342=\"N/A\",Ref!$B$36,INDEX(Ranks!$1:$1048576,$A342,AT$1))","v":""},{"$f":"IF($A342=\"N/A\",Ref!$B$36,INDEX(Ranks!$1:$1048576,$A342,AU$1))","v":""},{"$f":"IF($A342=\"N/A\",Ref!$B$36,INDEX(Ranks!$1:$1048576,$A342,AV$1))","v":""},{"$f":"IF($A342=\"N/A\",Ref!$B$36,INDEX(Ranks!$1:$1048576,$A342,AW$1))","v":""},{"$f":"IF($A342=\"N/A\",Ref!$B$36,INDEX(Ranks!$1:$1048576,$A342,AX$1))","v":""},{"$f":"IF($A342=\"N/A\",Ref!$B$36,INDEX(Ranks!$1:$1048576,$A342,AY$1))","v":""},{"$f":"IF($A342=\"N/A\",Ref!$B$36,INDEX(Ranks!$1:$1048576,$A342,AZ$1))","v":""},{"$f":"IF($A342=\"N/A\",Ref!$B$36,INDEX(Ranks!$1:$1048576,$A342,BA$1))","v":""},{"$f":"IF($A342=\"N/A\",Ref!$B$36,INDEX(Ranks!$1:$1048576,$A342,BB$1))","v":""},{"$f":"IF($A342=\"N/A\",Ref!$B$36,INDEX(Ranks!$1:$1048576,$A342,BC$1))","v":""},{"$f":"IF($A342=\"N/A\",Ref!$B$36,INDEX(Ranks!$1:$1048576,$A342,BD$1))","v":""},{"$f":"IF($A342=\"N/A\",Ref!$B$36,INDEX(Ranks!$1:$1048576,$A342,BE$1))","v":""},{"$f":"IF($A342=\"N/A\",Ref!$B$36,INDEX(Ranks!$1:$1048576,$A342,BF$1))","v":""},{"$f":"IF($A342=\"N/A\",Ref!$B$36,INDEX(Ranks!$1:$1048576,$A342,BG$1))","v":""},{"$f":"IF($A342=\"N/A\",Ref!$B$36,INDEX(Ranks!$1:$1048576,$A342,BH$1))","v":""},{"$f":"IF($A342=\"N/A\",Ref!$B$36,INDEX(Ranks!$1:$1048576,$A342,BI$1))","v":""},{"$f":"IF($A342=\"N/A\",Ref!$B$36,INDEX(Ranks!$1:$1048576,$A342,BJ$1))","v":""},{"$f":"IF($A342=\"N/A\",Ref!$B$36,INDEX(Ranks!$1:$1048576,$A342,BK$1))","v":""},{"$f":"IF($A342=\"N/A\",Ref!$B$36,INDEX(Ranks!$1:$1048576,$A342,BL$1))","v":""},{"$f":"IF($A342=\"N/A\",Ref!$B$36,INDEX(Ranks!$1:$1048576,$A342,BM$1))","v":""},{"$f":"IF($A342=\"N/A\",Ref!$B$36,INDEX(Ranks!$1:$1048576,$A342,BN$1))","v":""},{"$f":"IF($A342=\"N/A\",Ref!$B$36,INDEX(Ranks!$1:$1048576,$A342,BO$1))","v":""},{"$f":"IF($A342=\"N/A\",Ref!$B$36,INDEX(Ranks!$1:$1048576,$A342,BP$1))","v":""},{"$f":"IF($A342=\"N/A\",Ref!$B$36,INDEX(Ranks!$1:$1048576,$A342,BQ$1))","v":""},{"$f":"IF($A342=\"N/A\",Ref!$B$36,INDEX(Ranks!$1:$1048576,$A342,BR$1))","v":""},{"$f":"IF($A342=\"N/A\",Ref!$B$36,INDEX(Ranks!$1:$1048576,$A342,BS$1))","v":""},{"$f":"IF($A342=\"N/A\",Ref!$B$36,INDEX(Ranks!$1:$1048576,$A342,BT$1))","v":""},{"$f":"IF($A342=\"N/A\",Ref!$B$36,INDEX(Ranks!$1:$1048576,$A342,BU$1))","v":""},{"$f":"IF($A342=\"N/A\",Ref!$B$36,INDEX(Ranks!$1:$1048576,$A342,BV$1))","v":""},{"$f":"IF($A342=\"N/A\",Ref!$B$36,INDEX(Ranks!$1:$1048576,$A342,BW$1))","v":""},{"$f":"IF($A342=\"N/A\",Ref!$B$36,INDEX(Ranks!$1:$1048576,$A342,BX$1))","v":""},{"$f":"IF($A342=\"N/A\",Ref!$B$36,INDEX(Ranks!$1:$1048576,$A342,BY$1))","v":""},{"$f":"IF($A342=\"N/A\",Ref!$B$36,INDEX(Ranks!$1:$1048576,$A342,BZ$1))","v":""},{"$f":"IF($A342=\"N/A\",Ref!$B$36,INDEX(Ranks!$1:$1048576,$A342,CA$1))","v":""},{"$f":"IF($A342=\"N/A\",Ref!$B$36,INDEX(Ranks!$1:$1048576,$A342,CB$1))","v":""},{"$f":"IF($A342=\"N/A\",Ref!$B$36,INDEX(Ranks!$1:$1048576,$A342,CC$1))","v":""},{"$f":"IF($A342=\"N/A\",Ref!$B$36,INDEX(Ranks!$1:$1048576,$A342,CD$1))","v":""},{"$f":"IF($A342=\"N/A\",Ref!$B$36,INDEX(Ranks!$1:$1048576,$A342,CE$1))","v":""},{"$f":"IF($A342=\"N/A\",Ref!$B$36,INDEX(Ranks!$1:$1048576,$A342,CF$1))","v":""},{"$f":"IF($A342=\"N/A\",Ref!$B$36,INDEX(Ranks!$1:$1048576,$A342,CG$1))","v":""},{"$f":"IF($A342=\"N/A\",Ref!$B$36,INDEX(Ranks!$1:$1048576,$A342,CH$1))","v":""},{"$f":"IF($A342=\"N/A\",Ref!$B$36,INDEX(Ranks!$1:$1048576,$A342,CI$1))","v":""},{"$f":"IF($A342=\"N/A\",Ref!$B$36,INDEX(Ranks!$1:$1048576,$A342,CJ$1))","v":""},{"$f":"IF($A342=\"N/A\",Ref!$B$36,INDEX(Ranks!$1:$1048576,$A342,CK$1))","v":""},{"$f":"IF($A342=\"N/A\",Ref!$B$36,INDEX(Ranks!$1:$1048576,$A342,CL$1))","v":""},{"$f":"IF($A342=\"N/A\",Ref!$B$36,INDEX(Ranks!$1:$1048576,$A342,CM$1))","v":""},{"$f":"IF($A342=\"N/A\",Ref!$B$36,INDEX(Ranks!$1:$1048576,$A342,CN$1))","v":""},{"$f":"IF($A342=\"N/A\",Ref!$B$36,INDEX(Ranks!$1:$1048576,$A342,CO$1))","v":""},{"$f":"IF($A342=\"N/A\",Ref!$B$36,INDEX(Ranks!$1:$1048576,$A342,CP$1))","v":""},{"$f":"IF($A342=\"N/A\",Ref!$B$36,INDEX(Ranks!$1:$1048576,$A342,CQ$1))","v":""},{"$f":"IF($A342=\"N/A\",Ref!$B$36,INDEX(Ranks!$1:$1048576,$A342,CR$1))","v":""},{"$f":"IF($A342=\"N/A\",Ref!$B$36,INDEX(Ranks!$1:$1048576,$A342,CS$1))","v":""},{"$f":"IF($A342=\"N/A\",Ref!$B$36,INDEX(Ranks!$1:$1048576,$A342,CT$1))","v":""},{"$f":"IF($A342=\"N/A\",Ref!$B$36,INDEX(Ranks!$1:$1048576,$A342,CU$1))","v":""},{"$f":"IF($A342=\"N/A\",Ref!$B$36,INDEX(Ranks!$1:$1048576,$A342,CV$1))","v":""},{"$f":"IF($A342=\"N/A\",Ref!$B$36,INDEX(Ranks!$1:$1048576,$A342,CW$1))","v":""},{"$f":"IF($A342=\"N/A\",Ref!$B$36,INDEX(Ranks!$1:$1048576,$A342,CX$1))","v":""},{"$f":"IF($A342=\"N/A\",Ref!$B$36,INDEX(Ranks!$1:$1048576,$A342,CY$1))","v":""},{"$f":"IF($A342=\"N/A\",Ref!$B$36,INDEX(Ranks!$1:$1048576,$A342,CZ$1))","v":""},{"$f":"IF($A342=\"N/A\",Ref!$B$36,INDEX(Ranks!$1:$1048576,$A342,DA$1))","v":""},{"$f":"IF($A342=\"N/A\",Ref!$B$36,INDEX(Ranks!$1:$1048576,$A342,DB$1))","v":""},{"$f":"IF($A342=\"N/A\",Ref!$B$36,INDEX(Ranks!$1:$1048576,$A342,DC$1))","v":""},{"$f":"IF($A342=\"N/A\",Ref!$B$36,INDEX(Ranks!$1:$1048576,$A342,DD$1))","v":""},{"$f":"IF($A342=\"N/A\",Ref!$B$36,INDEX(Ranks!$1:$1048576,$A342,DE$1))","v":""},{"$f":"IF($A342=\"N/A\",Ref!$B$36,INDEX(Ranks!$1:$1048576,$A342,DF$1))","v":""},{"$f":"IF($A342=\"N/A\",Ref!$B$36,INDEX(Ranks!$1:$1048576,$A342,DG$1))","v":""},{"$f":"IF($A342=\"N/A\",Ref!$B$36,INDEX(Ranks!$1:$1048576,$A342,DH$1))","v":""},{"$f":"IF($A342=\"N/A\",Ref!$B$36,INDEX(Ranks!$1:$1048576,$A342,DI$1))","v":""},{"$f":"IF($A342=\"N/A\",Ref!$B$36,INDEX(Ranks!$1:$1048576,$A342,DJ$1))","v":""},{"$f":"IF($A342=\"N/A\",Ref!$B$36,INDEX(Ranks!$1:$1048576,$A342,DK$1))","v":""},{"$f":"IF($A342=\"N/A\",Ref!$B$36,INDEX(Ranks!$1:$1048576,$A342,DL$1))","v":""},{"$f":"IF($A342=\"N/A\",Ref!$B$36,INDEX(Ranks!$1:$1048576,$A342,DM$1))","v":""},{"$f":"IF($A342=\"N/A\",Ref!$B$36,INDEX(Ranks!$1:$1048576,$A342,DN$1))","v":""},{"$f":"IF($A342=\"N/A\",Ref!$B$36,INDEX(Ranks!$1:$1048576,$A342,DO$1))","v":""},{"$f":"IF($A342=\"N/A\",Ref!$B$36,INDEX(Ranks!$1:$1048576,$A342,DP$1))","v":""},{"$f":"IF($A342=\"N/A\",Ref!$B$36,INDEX(Ranks!$1:$1048576,$A342,DQ$1))","v":""},{"$f":"IF($A342=\"N/A\",Ref!$B$36,INDEX(Ranks!$1:$1048576,$A342,DR$1))","v":""},{"$f":"IF($A342=\"N/A\",Ref!$B$36,INDEX(Ranks!$1:$1048576,$A342,DS$1))","v":""},{"$f":"IF($A342=\"N/A\",Ref!$B$36,INDEX(Ranks!$1:$1048576,$A342,DT$1))","v":""},{"$f":"IF($A342=\"N/A\",Ref!$B$36,INDEX(Ranks!$1:$1048576,$A342,DU$1))","v":""},{"$f":"IF($A342=\"N/A\",Ref!$B$36,INDEX(Ranks!$1:$1048576,$A342,DV$1))","v":""},{"$f":"IF($A342=\"N/A\",Ref!$B$36,INDEX(Ranks!$1:$1048576,$A342,DW$1))","v":""},{"$f":"IF($A342=\"N/A\",Ref!$B$36,INDEX(Ranks!$1:$1048576,$A342,DX$1))","v":""},{"$f":"IF($A342=\"N/A\",Ref!$B$36,INDEX(Ranks!$1:$1048576,$A342,DY$1))","v":""},{"$f":"IF($A342=\"N/A\",Ref!$B$36,INDEX(Ranks!$1:$1048576,$A342,DZ$1))","v":""},{"$f":"IF($A342=\"N/A\",Ref!$B$36,INDEX(Ranks!$1:$1048576,$A342,EA$1))","v":""},{"$f":"IF($A342=\"N/A\",Ref!$B$36,INDEX(Ranks!$1:$1048576,$A342,EB$1))","v":""}]
[{"$f":"IFERROR(MATCH('Portfolio Page'!L343,Ranks!L:L,0),\"N/A\")","v":"N/A"},null,{"$f":"IF($A343=\"N/A\",\"\",INDEX(Ranks!$1:$1048576,$A343,C$1))","v":""},{"$f":"IF($A343=\"N/A\",Ref!$B$36,INDEX(Ranks!$1:$1048576,$A343,D$1))","v":""},{"$f":"IF($A343=\"N/A\",Ref!$B$36,INDEX(Ranks!$1:$1048576,$A343,E$1))","v":""},{"$f":"IF($A343=\"N/A\",\"\",INDEX(Ranks!$1:$1048576,$A343,F$1))","v":""},{"$f":"IF($A343=\"N/A\",\"\",INDEX(Ranks!$1:$1048576,$A343,G$1))","v":""},{"$f":"IF($A343=\"N/A\",\"\",INDEX(Ranks!$1:$1048576,$A343,H$1))","v":""},{"$f":"IF($A343=\"N/A\",\"\",INDEX(Ranks!$1:$1048576,$A343,I$1))","v":""},{"$f":"IF($A343=\"N/A\",\"\",INDEX(Ranks!$1:$1048576,$A343,J$1))","v":""},{"$f":"IF($A343=\"N/A\",\"\",INDEX(Ranks!$1:$1048576,$A343,K$1))","v":""},null,{"$f":"IF($A343=\"N/A\",Ref!$B$36,INDEX(Ranks!$1:$1048576,$A343,M$1))","v":""},{"$f":"IF($A343=\"N/A\",Ref!$B$36,INDEX(Ranks!$1:$1048576,$A343,N$1))","v":""},{"$f":"IF($A343=\"N/A\",Ref!$B$36,INDEX(Ranks!$1:$1048576,$A343,O$1))","v":""},{"$f":"IF($A343=\"N/A\",Ref!$B$36,INDEX(Ranks!$1:$1048576,$A343,P$1))","v":""},{"$f":"IF($A343=\"N/A\",Ref!$B$36,INDEX(Ranks!$1:$1048576,$A343,Q$1))","v":""},{"$f":"IF($A343=\"N/A\",Ref!$B$36,INDEX(Ranks!$1:$1048576,$A343,R$1))","v":""},{"$f":"IF($A343=\"N/A\",Ref!$B$36,INDEX(Ranks!$1:$1048576,$A343,S$1))","v":""},{"$f":"IF($A343=\"N/A\",Ref!$B$36,INDEX(Ranks!$1:$1048576,$A343,T$1))","v":""},{"$f":"IF($A343=\"N/A\",Ref!$B$36,INDEX(Ranks!$1:$1048576,$A343,U$1))","v":""},{"$f":"IF($A343=\"N/A\",Ref!$B$36,INDEX(Ranks!$1:$1048576,$A343,V$1))","v":""},{"$f":"IF($A343=\"N/A\",Ref!$B$36,INDEX(Ranks!$1:$1048576,$A343,W$1))","v":""},{"$f":"IF($A343=\"N/A\",Ref!$B$36,INDEX(Ranks!$1:$1048576,$A343,X$1))","v":""},{"$f":"IF($A343=\"N/A\",Ref!$B$36,INDEX(Ranks!$1:$1048576,$A343,Y$1))","v":""},{"$f":"IF($A343=\"N/A\",Ref!$B$36,INDEX(Ranks!$1:$1048576,$A343,Z$1))","v":""},{"$f":"IF($A343=\"N/A\",Ref!$B$36,INDEX(Ranks!$1:$1048576,$A343,AA$1))","v":""},{"$f":"IF($A343=\"N/A\",Ref!$B$36,INDEX(Ranks!$1:$1048576,$A343,AB$1))","v":""},{"$f":"IF($A343=\"N/A\",Ref!$B$36,INDEX(Ranks!$1:$1048576,$A343,AC$1))","v":""},{"$f":"IF($A343=\"N/A\",Ref!$B$36,INDEX(Ranks!$1:$1048576,$A343,AD$1))","v":""},{"$f":"IF($A343=\"N/A\",Ref!$B$36,INDEX(Ranks!$1:$1048576,$A343,AE$1))","v":""},{"$f":"IF($A343=\"N/A\",Ref!$B$36,INDEX(Ranks!$1:$1048576,$A343,AF$1))","v":""},{"$f":"IF($A343=\"N/A\",Ref!$B$36,INDEX(Ranks!$1:$1048576,$A343,AG$1))","v":""},{"$f":"IF($A343=\"N/A\",Ref!$B$36,INDEX(Ranks!$1:$1048576,$A343,AH$1))","v":""},{"$f":"IF($A343=\"N/A\",Ref!$B$36,INDEX(Ranks!$1:$1048576,$A343,AI$1))","v":""},{"$f":"IF($A343=\"N/A\",Ref!$B$36,INDEX(Ranks!$1:$1048576,$A343,AJ$1))","v":""},{"$f":"IF($A343=\"N/A\",Ref!$B$36,INDEX(Ranks!$1:$1048576,$A343,AK$1))","v":""},{"$f":"IF($A343=\"N/A\",Ref!$B$36,INDEX(Ranks!$1:$1048576,$A343,AL$1))","v":""},{"$f":"IF($A343=\"N/A\",Ref!$B$36,INDEX(Ranks!$1:$1048576,$A343,AM$1))","v":""},{"$f":"IF($A343=\"N/A\",Ref!$B$36,INDEX(Ranks!$1:$1048576,$A343,AN$1))","v":""},{"$f":"IF($A343=\"N/A\",Ref!$B$36,INDEX(Ranks!$1:$1048576,$A343,AO$1))","v":""},{"$f":"IF($A343=\"N/A\",Ref!$B$36,INDEX(Ranks!$1:$1048576,$A343,AP$1))","v":""},{"$f":"IF($A343=\"N/A\",Ref!$B$36,INDEX(Ranks!$1:$1048576,$A343,AQ$1))","v":""},{"$f":"IF($A343=\"N/A\",Ref!$B$36,INDEX(Ranks!$1:$1048576,$A343,AR$1))","v":""},{"$f":"IF($A343=\"N/A\",Ref!$B$36,INDEX(Ranks!$1:$1048576,$A343,AS$1))","v":""},{"$f":"IF($A343=\"N/A\",Ref!$B$36,INDEX(Ranks!$1:$1048576,$A343,AT$1))","v":""},{"$f":"IF($A343=\"N/A\",Ref!$B$36,INDEX(Ranks!$1:$1048576,$A343,AU$1))","v":""},{"$f":"IF($A343=\"N/A\",Ref!$B$36,INDEX(Ranks!$1:$1048576,$A343,AV$1))","v":""},{"$f":"IF($A343=\"N/A\",Ref!$B$36,INDEX(Ranks!$1:$1048576,$A343,AW$1))","v":""},{"$f":"IF($A343=\"N/A\",Ref!$B$36,INDEX(Ranks!$1:$1048576,$A343,AX$1))","v":""},{"$f":"IF($A343=\"N/A\",Ref!$B$36,INDEX(Ranks!$1:$1048576,$A343,AY$1))","v":""},{"$f":"IF($A343=\"N/A\",Ref!$B$36,INDEX(Ranks!$1:$1048576,$A343,AZ$1))","v":""},{"$f":"IF($A343=\"N/A\",Ref!$B$36,INDEX(Ranks!$1:$1048576,$A343,BA$1))","v":""},{"$f":"IF($A343=\"N/A\",Ref!$B$36,INDEX(Ranks!$1:$1048576,$A343,BB$1))","v":""},{"$f":"IF($A343=\"N/A\",Ref!$B$36,INDEX(Ranks!$1:$1048576,$A343,BC$1))","v":""},{"$f":"IF($A343=\"N/A\",Ref!$B$36,INDEX(Ranks!$1:$1048576,$A343,BD$1))","v":""},{"$f":"IF($A343=\"N/A\",Ref!$B$36,INDEX(Ranks!$1:$1048576,$A343,BE$1))","v":""},{"$f":"IF($A343=\"N/A\",Ref!$B$36,INDEX(Ranks!$1:$1048576,$A343,BF$1))","v":""},{"$f":"IF($A343=\"N/A\",Ref!$B$36,INDEX(Ranks!$1:$1048576,$A343,BG$1))","v":""},{"$f":"IF($A343=\"N/A\",Ref!$B$36,INDEX(Ranks!$1:$1048576,$A343,BH$1))","v":""},{"$f":"IF($A343=\"N/A\",Ref!$B$36,INDEX(Ranks!$1:$1048576,$A343,BI$1))","v":""},{"$f":"IF($A343=\"N/A\",Ref!$B$36,INDEX(Ranks!$1:$1048576,$A343,BJ$1))","v":""},{"$f":"IF($A343=\"N/A\",Ref!$B$36,INDEX(Ranks!$1:$1048576,$A343,BK$1))","v":""},{"$f":"IF($A343=\"N/A\",Ref!$B$36,INDEX(Ranks!$1:$1048576,$A343,BL$1))","v":""},{"$f":"IF($A343=\"N/A\",Ref!$B$36,INDEX(Ranks!$1:$1048576,$A343,BM$1))","v":""},{"$f":"IF($A343=\"N/A\",Ref!$B$36,INDEX(Ranks!$1:$1048576,$A343,BN$1))","v":""},{"$f":"IF($A343=\"N/A\",Ref!$B$36,INDEX(Ranks!$1:$1048576,$A343,BO$1))","v":""},{"$f":"IF($A343=\"N/A\",Ref!$B$36,INDEX(Ranks!$1:$1048576,$A343,BP$1))","v":""},{"$f":"IF($A343=\"N/A\",Ref!$B$36,INDEX(Ranks!$1:$1048576,$A343,BQ$1))","v":""},{"$f":"IF($A343=\"N/A\",Ref!$B$36,INDEX(Ranks!$1:$1048576,$A343,BR$1))","v":""},{"$f":"IF($A343=\"N/A\",Ref!$B$36,INDEX(Ranks!$1:$1048576,$A343,BS$1))","v":""},{"$f":"IF($A343=\"N/A\",Ref!$B$36,INDEX(Ranks!$1:$1048576,$A343,BT$1))","v":""},{"$f":"IF($A343=\"N/A\",Ref!$B$36,INDEX(Ranks!$1:$1048576,$A343,BU$1))","v":""},{"$f":"IF($A343=\"N/A\",Ref!$B$36,INDEX(Ranks!$1:$1048576,$A343,BV$1))","v":""},{"$f":"IF($A343=\"N/A\",Ref!$B$36,INDEX(Ranks!$1:$1048576,$A343,BW$1))","v":""},{"$f":"IF($A343=\"N/A\",Ref!$B$36,INDEX(Ranks!$1:$1048576,$A343,BX$1))","v":""},{"$f":"IF($A343=\"N/A\",Ref!$B$36,INDEX(Ranks!$1:$1048576,$A343,BY$1))","v":""},{"$f":"IF($A343=\"N/A\",Ref!$B$36,INDEX(Ranks!$1:$1048576,$A343,BZ$1))","v":""},{"$f":"IF($A343=\"N/A\",Ref!$B$36,INDEX(Ranks!$1:$1048576,$A343,CA$1))","v":""},{"$f":"IF($A343=\"N/A\",Ref!$B$36,INDEX(Ranks!$1:$1048576,$A343,CB$1))","v":""},{"$f":"IF($A343=\"N/A\",Ref!$B$36,INDEX(Ranks!$1:$1048576,$A343,CC$1))","v":""},{"$f":"IF($A343=\"N/A\",Ref!$B$36,INDEX(Ranks!$1:$1048576,$A343,CD$1))","v":""},{"$f":"IF($A343=\"N/A\",Ref!$B$36,INDEX(Ranks!$1:$1048576,$A343,CE$1))","v":""},{"$f":"IF($A343=\"N/A\",Ref!$B$36,INDEX(Ranks!$1:$1048576,$A343,CF$1))","v":""},{"$f":"IF($A343=\"N/A\",Ref!$B$36,INDEX(Ranks!$1:$1048576,$A343,CG$1))","v":""},{"$f":"IF($A343=\"N/A\",Ref!$B$36,INDEX(Ranks!$1:$1048576,$A343,CH$1))","v":""},{"$f":"IF($A343=\"N/A\",Ref!$B$36,INDEX(Ranks!$1:$1048576,$A343,CI$1))","v":""},{"$f":"IF($A343=\"N/A\",Ref!$B$36,INDEX(Ranks!$1:$1048576,$A343,CJ$1))","v":""},{"$f":"IF($A343=\"N/A\",Ref!$B$36,INDEX(Ranks!$1:$1048576,$A343,CK$1))","v":""},{"$f":"IF($A343=\"N/A\",Ref!$B$36,INDEX(Ranks!$1:$1048576,$A343,CL$1))","v":""},{"$f":"IF($A343=\"N/A\",Ref!$B$36,INDEX(Ranks!$1:$1048576,$A343,CM$1))","v":""},{"$f":"IF($A343=\"N/A\",Ref!$B$36,INDEX(Ranks!$1:$1048576,$A343,CN$1))","v":""},{"$f":"IF($A343=\"N/A\",Ref!$B$36,INDEX(Ranks!$1:$1048576,$A343,CO$1))","v":""},{"$f":"IF($A343=\"N/A\",Ref!$B$36,INDEX(Ranks!$1:$1048576,$A343,CP$1))","v":""},{"$f":"IF($A343=\"N/A\",Ref!$B$36,INDEX(Ranks!$1:$1048576,$A343,CQ$1))","v":""},{"$f":"IF($A343=\"N/A\",Ref!$B$36,INDEX(Ranks!$1:$1048576,$A343,CR$1))","v":""},{"$f":"IF($A343=\"N/A\",Ref!$B$36,INDEX(Ranks!$1:$1048576,$A343,CS$1))","v":""},{"$f":"IF($A343=\"N/A\",Ref!$B$36,INDEX(Ranks!$1:$1048576,$A343,CT$1))","v":""},{"$f":"IF($A343=\"N/A\",Ref!$B$36,INDEX(Ranks!$1:$1048576,$A343,CU$1))","v":""},{"$f":"IF($A343=\"N/A\",Ref!$B$36,INDEX(Ranks!$1:$1048576,$A343,CV$1))","v":""},{"$f":"IF($A343=\"N/A\",Ref!$B$36,INDEX(Ranks!$1:$1048576,$A343,CW$1))","v":""},{"$f":"IF($A343=\"N/A\",Ref!$B$36,INDEX(Ranks!$1:$1048576,$A343,CX$1))","v":""},{"$f":"IF($A343=\"N/A\",Ref!$B$36,INDEX(Ranks!$1:$1048576,$A343,CY$1))","v":""},{"$f":"IF($A343=\"N/A\",Ref!$B$36,INDEX(Ranks!$1:$1048576,$A343,CZ$1))","v":""},{"$f":"IF($A343=\"N/A\",Ref!$B$36,INDEX(Ranks!$1:$1048576,$A343,DA$1))","v":""},{"$f":"IF($A343=\"N/A\",Ref!$B$36,INDEX(Ranks!$1:$1048576,$A343,DB$1))","v":""},{"$f":"IF($A343=\"N/A\",Ref!$B$36,INDEX(Ranks!$1:$1048576,$A343,DC$1))","v":""},{"$f":"IF($A343=\"N/A\",Ref!$B$36,INDEX(Ranks!$1:$1048576,$A343,DD$1))","v":""},{"$f":"IF($A343=\"N/A\",Ref!$B$36,INDEX(Ranks!$1:$1048576,$A343,DE$1))","v":""},{"$f":"IF($A343=\"N/A\",Ref!$B$36,INDEX(Ranks!$1:$1048576,$A343,DF$1))","v":""},{"$f":"IF($A343=\"N/A\",Ref!$B$36,INDEX(Ranks!$1:$1048576,$A343,DG$1))","v":""},{"$f":"IF($A343=\"N/A\",Ref!$B$36,INDEX(Ranks!$1:$1048576,$A343,DH$1))","v":""},{"$f":"IF($A343=\"N/A\",Ref!$B$36,INDEX(Ranks!$1:$1048576,$A343,DI$1))","v":""},{"$f":"IF($A343=\"N/A\",Ref!$B$36,INDEX(Ranks!$1:$1048576,$A343,DJ$1))","v":""},{"$f":"IF($A343=\"N/A\",Ref!$B$36,INDEX(Ranks!$1:$1048576,$A343,DK$1))","v":""},{"$f":"IF($A343=\"N/A\",Ref!$B$36,INDEX(Ranks!$1:$1048576,$A343,DL$1))","v":""},{"$f":"IF($A343=\"N/A\",Ref!$B$36,INDEX(Ranks!$1:$1048576,$A343,DM$1))","v":""},{"$f":"IF($A343=\"N/A\",Ref!$B$36,INDEX(Ranks!$1:$1048576,$A343,DN$1))","v":""},{"$f":"IF($A343=\"N/A\",Ref!$B$36,INDEX(Ranks!$1:$1048576,$A343,DO$1))","v":""},{"$f":"IF($A343=\"N/A\",Ref!$B$36,INDEX(Ranks!$1:$1048576,$A343,DP$1))","v":""},{"$f":"IF($A343=\"N/A\",Ref!$B$36,INDEX(Ranks!$1:$1048576,$A343,DQ$1))","v":""},{"$f":"IF($A343=\"N/A\",Ref!$B$36,INDEX(Ranks!$1:$1048576,$A343,DR$1))","v":""},{"$f":"IF($A343=\"N/A\",Ref!$B$36,INDEX(Ranks!$1:$1048576,$A343,DS$1))","v":""},{"$f":"IF($A343=\"N/A\",Ref!$B$36,INDEX(Ranks!$1:$1048576,$A343,DT$1))","v":""},{"$f":"IF($A343=\"N/A\",Ref!$B$36,INDEX(Ranks!$1:$1048576,$A343,DU$1))","v":""},{"$f":"IF($A343=\"N/A\",Ref!$B$36,INDEX(Ranks!$1:$1048576,$A343,DV$1))","v":""},{"$f":"IF($A343=\"N/A\",Ref!$B$36,INDEX(Ranks!$1:$1048576,$A343,DW$1))","v":""},{"$f":"IF($A343=\"N/A\",Ref!$B$36,INDEX(Ranks!$1:$1048576,$A343,DX$1))","v":""},{"$f":"IF($A343=\"N/A\",Ref!$B$36,INDEX(Ranks!$1:$1048576,$A343,DY$1))","v":""},{"$f":"IF($A343=\"N/A\",Ref!$B$36,INDEX(Ranks!$1:$1048576,$A343,DZ$1))","v":""},{"$f":"IF($A343=\"N/A\",Ref!$B$36,INDEX(Ranks!$1:$1048576,$A343,EA$1))","v":""},{"$f":"IF($A343=\"N/A\",Ref!$B$36,INDEX(Ranks!$1:$1048576,$A343,EB$1))","v":""}]
[{"$f":"IFERROR(MATCH('Portfolio Page'!L344,Ranks!L:L,0),\"N/A\")","v":"N/A"},null,{"$f":"IF($A344=\"N/A\",\"\",INDEX(Ranks!$1:$1048576,$A344,C$1))","v":""},{"$f":"IF($A344=\"N/A\",Ref!$B$36,INDEX(Ranks!$1:$1048576,$A344,D$1))","v":""},{"$f":"IF($A344=\"N/A\",Ref!$B$36,INDEX(Ranks!$1:$1048576,$A344,E$1))","v":""},{"$f":"IF($A344=\"N/A\",\"\",INDEX(Ranks!$1:$1048576,$A344,F$1))","v":""},{"$f":"IF($A344=\"N/A\",\"\",INDEX(Ranks!$1:$1048576,$A344,G$1))","v":""},{"$f":"IF($A344=\"N/A\",\"\",INDEX(Ranks!$1:$1048576,$A344,H$1))","v":""},{"$f":"IF($A344=\"N/A\",\"\",INDEX(Ranks!$1:$1048576,$A344,I$1))","v":""},{"$f":"IF($A344=\"N/A\",\"\",INDEX(Ranks!$1:$1048576,$A344,J$1))","v":""},{"$f":"IF($A344=\"N/A\",\"\",INDEX(Ranks!$1:$1048576,$A344,K$1))","v":""},null,{"$f":"IF($A344=\"N/A\",Ref!$B$36,INDEX(Ranks!$1:$1048576,$A344,M$1))","v":""},{"$f":"IF($A344=\"N/A\",Ref!$B$36,INDEX(Ranks!$1:$1048576,$A344,N$1))","v":""},{"$f":"IF($A344=\"N/A\",Ref!$B$36,INDEX(Ranks!$1:$1048576,$A344,O$1))","v":""},{"$f":"IF($A344=\"N/A\",Ref!$B$36,INDEX(Ranks!$1:$1048576,$A344,P$1))","v":""},{"$f":"IF($A344=\"N/A\",Ref!$B$36,INDEX(Ranks!$1:$1048576,$A344,Q$1))","v":""},{"$f":"IF($A344=\"N/A\",Ref!$B$36,INDEX(Ranks!$1:$1048576,$A344,R$1))","v":""},{"$f":"IF($A344=\"N/A\",Ref!$B$36,INDEX(Ranks!$1:$1048576,$A344,S$1))","v":""},{"$f":"IF($A344=\"N/A\",Ref!$B$36,INDEX(Ranks!$1:$1048576,$A344,T$1))","v":""},{"$f":"IF($A344=\"N/A\",Ref!$B$36,INDEX(Ranks!$1:$1048576,$A344,U$1))","v":""},{"$f":"IF($A344=\"N/A\",Ref!$B$36,INDEX(Ranks!$1:$1048576,$A344,V$1))","v":""},{"$f":"IF($A344=\"N/A\",Ref!$B$36,INDEX(Ranks!$1:$1048576,$A344,W$1))","v":""},{"$f":"IF($A344=\"N/A\",Ref!$B$36,INDEX(Ranks!$1:$1048576,$A344,X$1))","v":""},{"$f":"IF($A344=\"N/A\",Ref!$B$36,INDEX(Ranks!$1:$1048576,$A344,Y$1))","v":""},{"$f":"IF($A344=\"N/A\",Ref!$B$36,INDEX(Ranks!$1:$1048576,$A344,Z$1))","v":""},{"$f":"IF($A344=\"N/A\",Ref!$B$36,INDEX(Ranks!$1:$1048576,$A344,AA$1))","v":""},{"$f":"IF($A344=\"N/A\",Ref!$B$36,INDEX(Ranks!$1:$1048576,$A344,AB$1))","v":""},{"$f":"IF($A344=\"N/A\",Ref!$B$36,INDEX(Ranks!$1:$1048576,$A344,AC$1))","v":""},{"$f":"IF($A344=\"N/A\",Ref!$B$36,INDEX(Ranks!$1:$1048576,$A344,AD$1))","v":""},{"$f":"IF($A344=\"N/A\",Ref!$B$36,INDEX(Ranks!$1:$1048576,$A344,AE$1))","v":""},{"$f":"IF($A344=\"N/A\",Ref!$B$36,INDEX(Ranks!$1:$1048576,$A344,AF$1))","v":""},{"$f":"IF($A344=\"N/A\",Ref!$B$36,INDEX(Ranks!$1:$1048576,$A344,AG$1))","v":""},{"$f":"IF($A344=\"N/A\",Ref!$B$36,INDEX(Ranks!$1:$1048576,$A344,AH$1))","v":""},{"$f":"IF($A344=\"N/A\",Ref!$B$36,INDEX(Ranks!$1:$1048576,$A344,AI$1))","v":""},{"$f":"IF($A344=\"N/A\",Ref!$B$36,INDEX(Ranks!$1:$1048576,$A344,AJ$1))","v":""},{"$f":"IF($A344=\"N/A\",Ref!$B$36,INDEX(Ranks!$1:$1048576,$A344,AK$1))","v":""},{"$f":"IF($A344=\"N/A\",Ref!$B$36,INDEX(Ranks!$1:$1048576,$A344,AL$1))","v":""},{"$f":"IF($A344=\"N/A\",Ref!$B$36,INDEX(Ranks!$1:$1048576,$A344,AM$1))","v":""},{"$f":"IF($A344=\"N/A\",Ref!$B$36,INDEX(Ranks!$1:$1048576,$A344,AN$1))","v":""},{"$f":"IF($A344=\"N/A\",Ref!$B$36,INDEX(Ranks!$1:$1048576,$A344,AO$1))","v":""},{"$f":"IF($A344=\"N/A\",Ref!$B$36,INDEX(Ranks!$1:$1048576,$A344,AP$1))","v":""},{"$f":"IF($A344=\"N/A\",Ref!$B$36,INDEX(Ranks!$1:$1048576,$A344,AQ$1))","v":""},{"$f":"IF($A344=\"N/A\",Ref!$B$36,INDEX(Ranks!$1:$1048576,$A344,AR$1))","v":""},{"$f":"IF($A344=\"N/A\",Ref!$B$36,INDEX(Ranks!$1:$1048576,$A344,AS$1))","v":""},{"$f":"IF($A344=\"N/A\",Ref!$B$36,INDEX(Ranks!$1:$1048576,$A344,AT$1))","v":""},{"$f":"IF($A344=\"N/A\",Ref!$B$36,INDEX(Ranks!$1:$1048576,$A344,AU$1))","v":""},{"$f":"IF($A344=\"N/A\",Ref!$B$36,INDEX(Ranks!$1:$1048576,$A344,AV$1))","v":""},{"$f":"IF($A344=\"N/A\",Ref!$B$36,INDEX(Ranks!$1:$1048576,$A344,AW$1))","v":""},{"$f":"IF($A344=\"N/A\",Ref!$B$36,INDEX(Ranks!$1:$1048576,$A344,AX$1))","v":""},{"$f":"IF($A344=\"N/A\",Ref!$B$36,INDEX(Ranks!$1:$1048576,$A344,AY$1))","v":""},{"$f":"IF($A344=\"N/A\",Ref!$B$36,INDEX(Ranks!$1:$1048576,$A344,AZ$1))","v":""},{"$f":"IF($A344=\"N/A\",Ref!$B$36,INDEX(Ranks!$1:$1048576,$A344,BA$1))","v":""},{"$f":"IF($A344=\"N/A\",Ref!$B$36,INDEX(Ranks!$1:$1048576,$A344,BB$1))","v":""},{"$f":"IF($A344=\"N/A\",Ref!$B$36,INDEX(Ranks!$1:$1048576,$A344,BC$1))","v":""},{"$f":"IF($A344=\"N/A\",Ref!$B$36,INDEX(Ranks!$1:$1048576,$A344,BD$1))","v":""},{"$f":"IF($A344=\"N/A\",Ref!$B$36,INDEX(Ranks!$1:$1048576,$A344,BE$1))","v":""},{"$f":"IF($A344=\"N/A\",Ref!$B$36,INDEX(Ranks!$1:$1048576,$A344,BF$1))","v":""},{"$f":"IF($A344=\"N/A\",Ref!$B$36,INDEX(Ranks!$1:$1048576,$A344,BG$1))","v":""},{"$f":"IF($A344=\"N/A\",Ref!$B$36,INDEX(Ranks!$1:$1048576,$A344,BH$1))","v":""},{"$f":"IF($A344=\"N/A\",Ref!$B$36,INDEX(Ranks!$1:$1048576,$A344,BI$1))","v":""},{"$f":"IF($A344=\"N/A\",Ref!$B$36,INDEX(Ranks!$1:$1048576,$A344,BJ$1))","v":""},{"$f":"IF($A344=\"N/A\",Ref!$B$36,INDEX(Ranks!$1:$1048576,$A344,BK$1))","v":""},{"$f":"IF($A344=\"N/A\",Ref!$B$36,INDEX(Ranks!$1:$1048576,$A344,BL$1))","v":""},{"$f":"IF($A344=\"N/A\",Ref!$B$36,INDEX(Ranks!$1:$1048576,$A344,BM$1))","v":""},{"$f":"IF($A344=\"N/A\",Ref!$B$36,INDEX(Ranks!$1:$1048576,$A344,BN$1))","v":""},{"$f":"IF($A344=\"N/A\",Ref!$B$36,INDEX(Ranks!$1:$1048576,$A344,BO$1))","v":""},{"$f":"IF($A344=\"N/A\",Ref!$B$36,INDEX(Ranks!$1:$1048576,$A344,BP$1))","v":""},{"$f":"IF($A344=\"N/A\",Ref!$B$36,INDEX(Ranks!$1:$1048576,$A344,BQ$1))","v":""},{"$f":"IF($A344=\"N/A\",Ref!$B$36,INDEX(Ranks!$1:$1048576,$A344,BR$1))","v":""},{"$f":"IF($A344=\"N/A\",Ref!$B$36,INDEX(Ranks!$1:$1048576,$A344,BS$1))","v":""},{"$f":"IF($A344=\"N/A\",Ref!$B$36,INDEX(Ranks!$1:$1048576,$A344,BT$1))","v":""},{"$f":"IF($A344=\"N/A\",Ref!$B$36,INDEX(Ranks!$1:$1048576,$A344,BU$1))","v":""},{"$f":"IF($A344=\"N/A\",Ref!$B$36,INDEX(Ranks!$1:$1048576,$A344,BV$1))","v":""},{"$f":"IF($A344=\"N/A\",Ref!$B$36,INDEX(Ranks!$1:$1048576,$A344,BW$1))","v":""},{"$f":"IF($A344=\"N/A\",Ref!$B$36,INDEX(Ranks!$1:$1048576,$A344,BX$1))","v":""},{"$f":"IF($A344=\"N/A\",Ref!$B$36,INDEX(Ranks!$1:$1048576,$A344,BY$1))","v":""},{"$f":"IF($A344=\"N/A\",Ref!$B$36,INDEX(Ranks!$1:$1048576,$A344,BZ$1))","v":""},{"$f":"IF($A344=\"N/A\",Ref!$B$36,INDEX(Ranks!$1:$1048576,$A344,CA$1))","v":""},{"$f":"IF($A344=\"N/A\",Ref!$B$36,INDEX(Ranks!$1:$1048576,$A344,CB$1))","v":""},{"$f":"IF($A344=\"N/A\",Ref!$B$36,INDEX(Ranks!$1:$1048576,$A344,CC$1))","v":""},{"$f":"IF($A344=\"N/A\",Ref!$B$36,INDEX(Ranks!$1:$1048576,$A344,CD$1))","v":""},{"$f":"IF($A344=\"N/A\",Ref!$B$36,INDEX(Ranks!$1:$1048576,$A344,CE$1))","v":""},{"$f":"IF($A344=\"N/A\",Ref!$B$36,INDEX(Ranks!$1:$1048576,$A344,CF$1))","v":""},{"$f":"IF($A344=\"N/A\",Ref!$B$36,INDEX(Ranks!$1:$1048576,$A344,CG$1))","v":""},{"$f":"IF($A344=\"N/A\",Ref!$B$36,INDEX(Ranks!$1:$1048576,$A344,CH$1))","v":""},{"$f":"IF($A344=\"N/A\",Ref!$B$36,INDEX(Ranks!$1:$1048576,$A344,CI$1))","v":""},{"$f":"IF($A344=\"N/A\",Ref!$B$36,INDEX(Ranks!$1:$1048576,$A344,CJ$1))","v":""},{"$f":"IF($A344=\"N/A\",Ref!$B$36,INDEX(Ranks!$1:$1048576,$A344,CK$1))","v":""},{"$f":"IF($A344=\"N/A\",Ref!$B$36,INDEX(Ranks!$1:$1048576,$A344,CL$1))","v":""},{"$f":"IF($A344=\"N/A\",Ref!$B$36,INDEX(Ranks!$1:$1048576,$A344,CM$1))","v":""},{"$f":"IF($A344=\"N/A\",Ref!$B$36,INDEX(Ranks!$1:$1048576,$A344,CN$1))","v":""},{"$f":"IF($A344=\"N/A\",Ref!$B$36,INDEX(Ranks!$1:$1048576,$A344,CO$1))","v":""},{"$f":"IF($A344=\"N/A\",Ref!$B$36,INDEX(Ranks!$1:$1048576,$A344,CP$1))","v":""},{"$f":"IF($A344=\"N/A\",Ref!$B$36,INDEX(Ranks!$1:$1048576,$A344,CQ$1))","v":""},{"$f":"IF($A344=\"N/A\",Ref!$B$36,INDEX(Ranks!$1:$1048576,$A344,CR$1))","v":""},{"$f":"IF($A344=\"N/A\",Ref!$B$36,INDEX(Ranks!$1:$1048576,$A344,CS$1))","v":""},{"$f":"IF($A344=\"N/A\",Ref!$B$36,INDEX(Ranks!$1:$1048576,$A344,CT$1))","v":""},{"$f":"IF($A344=\"N/A\",Ref!$B$36,INDEX(Ranks!$1:$1048576,$A344,CU$1))","v":""},{"$f":"IF($A344=\"N/A\",Ref!$B$36,INDEX(Ranks!$1:$1048576,$A344,CV$1))","v":""},{"$f":"IF($A344=\"N/A\",Ref!$B$36,INDEX(Ranks!$1:$1048576,$A344,CW$1))","v":""},{"$f":"IF($A344=\"N/A\",Ref!$B$36,INDEX(Ranks!$1:$1048576,$A344,CX$1))","v":""},{"$f":"IF($A344=\"N/A\",Ref!$B$36,INDEX(Ranks!$1:$1048576,$A344,CY$1))","v":""},{"$f":"IF($A344=\"N/A\",Ref!$B$36,INDEX(Ranks!$1:$1048576,$A344,CZ$1))","v":""},{"$f":"IF($A344=\"N/A\",Ref!$B$36,INDEX(Ranks!$1:$1048576,$A344,DA$1))","v":""},{"$f":"IF($A344=\"N/A\",Ref!$B$36,INDEX(Ranks!$1:$1048576,$A344,DB$1))","v":""},{"$f":"IF($A344=\"N/A\",Ref!$B$36,INDEX(Ranks!$1:$1048576,$A344,DC$1))","v":""},{"$f":"IF($A344=\"N/A\",Ref!$B$36,INDEX(Ranks!$1:$1048576,$A344,DD$1))","v":""},{"$f":"IF($A344=\"N/A\",Ref!$B$36,INDEX(Ranks!$1:$1048576,$A344,DE$1))","v":""},{"$f":"IF($A344=\"N/A\",Ref!$B$36,INDEX(Ranks!$1:$1048576,$A344,DF$1))","v":""},{"$f":"IF($A344=\"N/A\",Ref!$B$36,INDEX(Ranks!$1:$1048576,$A344,DG$1))","v":""},{"$f":"IF($A344=\"N/A\",Ref!$B$36,INDEX(Ranks!$1:$1048576,$A344,DH$1))","v":""},{"$f":"IF($A344=\"N/A\",Ref!$B$36,INDEX(Ranks!$1:$1048576,$A344,DI$1))","v":""},{"$f":"IF($A344=\"N/A\",Ref!$B$36,INDEX(Ranks!$1:$1048576,$A344,DJ$1))","v":""},{"$f":"IF($A344=\"N/A\",Ref!$B$36,INDEX(Ranks!$1:$1048576,$A344,DK$1))","v":""},{"$f":"IF($A344=\"N/A\",Ref!$B$36,INDEX(Ranks!$1:$1048576,$A344,DL$1))","v":""},{"$f":"IF($A344=\"N/A\",Ref!$B$36,INDEX(Ranks!$1:$1048576,$A344,DM$1))","v":""},{"$f":"IF($A344=\"N/A\",Ref!$B$36,INDEX(Ranks!$1:$1048576,$A344,DN$1))","v":""},{"$f":"IF($A344=\"N/A\",Ref!$B$36,INDEX(Ranks!$1:$1048576,$A344,DO$1))","v":""},{"$f":"IF($A344=\"N/A\",Ref!$B$36,INDEX(Ranks!$1:$1048576,$A344,DP$1))","v":""},{"$f":"IF($A344=\"N/A\",Ref!$B$36,INDEX(Ranks!$1:$1048576,$A344,DQ$1))","v":""},{"$f":"IF($A344=\"N/A\",Ref!$B$36,INDEX(Ranks!$1:$1048576,$A344,DR$1))","v":""},{"$f":"IF($A344=\"N/A\",Ref!$B$36,INDEX(Ranks!$1:$1048576,$A344,DS$1))","v":""},{"$f":"IF($A344=\"N/A\",Ref!$B$36,INDEX(Ranks!$1:$1048576,$A344,DT$1))","v":""},{"$f":"IF($A344=\"N/A\",Ref!$B$36,INDEX(Ranks!$1:$1048576,$A344,DU$1))","v":""},{"$f":"IF($A344=\"N/A\",Ref!$B$36,INDEX(Ranks!$1:$1048576,$A344,DV$1))","v":""},{"$f":"IF($A344=\"N/A\",Ref!$B$36,INDEX(Ranks!$1:$1048576,$A344,DW$1))","v":""},{"$f":"IF($A344=\"N/A\",Ref!$B$36,INDEX(Ranks!$1:$1048576,$A344,DX$1))","v":""},{"$f":"IF($A344=\"N/A\",Ref!$B$36,INDEX(Ranks!$1:$1048576,$A344,DY$1))","v":""},{"$f":"IF($A344=\"N/A\",Ref!$B$36,INDEX(Ranks!$1:$1048576,$A344,DZ$1))","v":""},{"$f":"IF($A344=\"N/A\",Ref!$B$36,INDEX(Ranks!$1:$1048576,$A344,EA$1))","v":""},{"$f":"IF($A344=\"N/A\",Ref!$B$36,INDEX(Ranks!$1:$1048576,$A344,EB$1))","v":""}]
[{"$f":"IFERROR(MATCH('Portfolio Page'!L345,Ranks!L:L,0),\"N/A\")","v":"N/A"},null,{"$f":"IF($A345=\"N/A\",\"\",INDEX(Ranks!$1:$1048576,$A345,C$1))","v":""},{"$f":"IF($A345=\"N/A\",Ref!$B$36,INDEX(Ranks!$1:$1048576,$A345,D$1))","v":""},{"$f":"IF($A345=\"N/A\",Ref!$B$36,INDEX(Ranks!$1:$1048576,$A345,E$1))","v":""},{"$f":"IF($A345=\"N/A\",\"\",INDEX(Ranks!$1:$1048576,$A345,F$1))","v":""},{"$f":"IF($A345=\"N/A\",\"\",INDEX(Ranks!$1:$1048576,$A345,G$1))","v":""},{"$f":"IF($A345=\"N/A\",\"\",INDEX(Ranks!$1:$1048576,$A345,H$1))","v":""},{"$f":"IF($A345=\"N/A\",\"\",INDEX(Ranks!$1:$1048576,$A345,I$1))","v":""},{"$f":"IF($A345=\"N/A\",\"\",INDEX(Ranks!$1:$1048576,$A345,J$1))","v":""},{"$f":"IF($A345=\"N/A\",\"\",INDEX(Ranks!$1:$1048576,$A345,K$1))","v":""},null,{"$f":"IF($A345=\"N/A\",Ref!$B$36,INDEX(Ranks!$1:$1048576,$A345,M$1))","v":""},{"$f":"IF($A345=\"N/A\",Ref!$B$36,INDEX(Ranks!$1:$1048576,$A345,N$1))","v":""},{"$f":"IF($A345=\"N/A\",Ref!$B$36,INDEX(Ranks!$1:$1048576,$A345,O$1))","v":""},{"$f":"IF($A345=\"N/A\",Ref!$B$36,INDEX(Ranks!$1:$1048576,$A345,P$1))","v":""},{"$f":"IF($A345=\"N/A\",Ref!$B$36,INDEX(Ranks!$1:$1048576,$A345,Q$1))","v":""},{"$f":"IF($A345=\"N/A\",Ref!$B$36,INDEX(Ranks!$1:$1048576,$A345,R$1))","v":""},{"$f":"IF($A345=\"N/A\",Ref!$B$36,INDEX(Ranks!$1:$1048576,$A345,S$1))","v":""},{"$f":"IF($A345=\"N/A\",Ref!$B$36,INDEX(Ranks!$1:$1048576,$A345,T$1))","v":""},{"$f":"IF($A345=\"N/A\",Ref!$B$36,INDEX(Ranks!$1:$1048576,$A345,U$1))","v":""},{"$f":"IF($A345=\"N/A\",Ref!$B$36,INDEX(Ranks!$1:$1048576,$A345,V$1))","v":""},{"$f":"IF($A345=\"N/A\",Ref!$B$36,INDEX(Ranks!$1:$1048576,$A345,W$1))","v":""},{"$f":"IF($A345=\"N/A\",Ref!$B$36,INDEX(Ranks!$1:$1048576,$A345,X$1))","v":""},{"$f":"IF($A345=\"N/A\",Ref!$B$36,INDEX(Ranks!$1:$1048576,$A345,Y$1))","v":""},{"$f":"IF($A345=\"N/A\",Ref!$B$36,INDEX(Ranks!$1:$1048576,$A345,Z$1))","v":""},{"$f":"IF($A345=\"N/A\",Ref!$B$36,INDEX(Ranks!$1:$1048576,$A345,AA$1))","v":""},{"$f":"IF($A345=\"N/A\",Ref!$B$36,INDEX(Ranks!$1:$1048576,$A345,AB$1))","v":""},{"$f":"IF($A345=\"N/A\",Ref!$B$36,INDEX(Ranks!$1:$1048576,$A345,AC$1))","v":""},{"$f":"IF($A345=\"N/A\",Ref!$B$36,INDEX(Ranks!$1:$1048576,$A345,AD$1))","v":""},{"$f":"IF($A345=\"N/A\",Ref!$B$36,INDEX(Ranks!$1:$1048576,$A345,AE$1))","v":""},{"$f":"IF($A345=\"N/A\",Ref!$B$36,INDEX(Ranks!$1:$1048576,$A345,AF$1))","v":""},{"$f":"IF($A345=\"N/A\",Ref!$B$36,INDEX(Ranks!$1:$1048576,$A345,AG$1))","v":""},{"$f":"IF($A345=\"N/A\",Ref!$B$36,INDEX(Ranks!$1:$1048576,$A345,AH$1))","v":""},{"$f":"IF($A345=\"N/A\",Ref!$B$36,INDEX(Ranks!$1:$1048576,$A345,AI$1))","v":""},{"$f":"IF($A345=\"N/A\",Ref!$B$36,INDEX(Ranks!$1:$1048576,$A345,AJ$1))","v":""},{"$f":"IF($A345=\"N/A\",Ref!$B$36,INDEX(Ranks!$1:$1048576,$A345,AK$1))","v":""},{"$f":"IF($A345=\"N/A\",Ref!$B$36,INDEX(Ranks!$1:$1048576,$A345,AL$1))","v":""},{"$f":"IF($A345=\"N/A\",Ref!$B$36,INDEX(Ranks!$1:$1048576,$A345,AM$1))","v":""},{"$f":"IF($A345=\"N/A\",Ref!$B$36,INDEX(Ranks!$1:$1048576,$A345,AN$1))","v":""},{"$f":"IF($A345=\"N/A\",Ref!$B$36,INDEX(Ranks!$1:$1048576,$A345,AO$1))","v":""},{"$f":"IF($A345=\"N/A\",Ref!$B$36,INDEX(Ranks!$1:$1048576,$A345,AP$1))","v":""},{"$f":"IF($A345=\"N/A\",Ref!$B$36,INDEX(Ranks!$1:$1048576,$A345,AQ$1))","v":""},{"$f":"IF($A345=\"N/A\",Ref!$B$36,INDEX(Ranks!$1:$1048576,$A345,AR$1))","v":""},{"$f":"IF($A345=\"N/A\",Ref!$B$36,INDEX(Ranks!$1:$1048576,$A345,AS$1))","v":""},{"$f":"IF($A345=\"N/A\",Ref!$B$36,INDEX(Ranks!$1:$1048576,$A345,AT$1))","v":""},{"$f":"IF($A345=\"N/A\",Ref!$B$36,INDEX(Ranks!$1:$1048576,$A345,AU$1))","v":""},{"$f":"IF($A345=\"N/A\",Ref!$B$36,INDEX(Ranks!$1:$1048576,$A345,AV$1))","v":""},{"$f":"IF($A345=\"N/A\",Ref!$B$36,INDEX(Ranks!$1:$1048576,$A345,AW$1))","v":""},{"$f":"IF($A345=\"N/A\",Ref!$B$36,INDEX(Ranks!$1:$1048576,$A345,AX$1))","v":""},{"$f":"IF($A345=\"N/A\",Ref!$B$36,INDEX(Ranks!$1:$1048576,$A345,AY$1))","v":""},{"$f":"IF($A345=\"N/A\",Ref!$B$36,INDEX(Ranks!$1:$1048576,$A345,AZ$1))","v":""},{"$f":"IF($A345=\"N/A\",Ref!$B$36,INDEX(Ranks!$1:$1048576,$A345,BA$1))","v":""},{"$f":"IF($A345=\"N/A\",Ref!$B$36,INDEX(Ranks!$1:$1048576,$A345,BB$1))","v":""},{"$f":"IF($A345=\"N/A\",Ref!$B$36,INDEX(Ranks!$1:$1048576,$A345,BC$1))","v":""},{"$f":"IF($A345=\"N/A\",Ref!$B$36,INDEX(Ranks!$1:$1048576,$A345,BD$1))","v":""},{"$f":"IF($A345=\"N/A\",Ref!$B$36,INDEX(Ranks!$1:$1048576,$A345,BE$1))","v":""},{"$f":"IF($A345=\"N/A\",Ref!$B$36,INDEX(Ranks!$1:$1048576,$A345,BF$1))","v":""},{"$f":"IF($A345=\"N/A\",Ref!$B$36,INDEX(Ranks!$1:$1048576,$A345,BG$1))","v":""},{"$f":"IF($A345=\"N/A\",Ref!$B$36,INDEX(Ranks!$1:$1048576,$A345,BH$1))","v":""},{"$f":"IF($A345=\"N/A\",Ref!$B$36,INDEX(Ranks!$1:$1048576,$A345,BI$1))","v":""},{"$f":"IF($A345=\"N/A\",Ref!$B$36,INDEX(Ranks!$1:$1048576,$A345,BJ$1))","v":""},{"$f":"IF($A345=\"N/A\",Ref!$B$36,INDEX(Ranks!$1:$1048576,$A345,BK$1))","v":""},{"$f":"IF($A345=\"N/A\",Ref!$B$36,INDEX(Ranks!$1:$1048576,$A345,BL$1))","v":""},{"$f":"IF($A345=\"N/A\",Ref!$B$36,INDEX(Ranks!$1:$1048576,$A345,BM$1))","v":""},{"$f":"IF($A345=\"N/A\",Ref!$B$36,INDEX(Ranks!$1:$1048576,$A345,BN$1))","v":""},{"$f":"IF($A345=\"N/A\",Ref!$B$36,INDEX(Ranks!$1:$1048576,$A345,BO$1))","v":""},{"$f":"IF($A345=\"N/A\",Ref!$B$36,INDEX(Ranks!$1:$1048576,$A345,BP$1))","v":""},{"$f":"IF($A345=\"N/A\",Ref!$B$36,INDEX(Ranks!$1:$1048576,$A345,BQ$1))","v":""},{"$f":"IF($A345=\"N/A\",Ref!$B$36,INDEX(Ranks!$1:$1048576,$A345,BR$1))","v":""},{"$f":"IF($A345=\"N/A\",Ref!$B$36,INDEX(Ranks!$1:$1048576,$A345,BS$1))","v":""},{"$f":"IF($A345=\"N/A\",Ref!$B$36,INDEX(Ranks!$1:$1048576,$A345,BT$1))","v":""},{"$f":"IF($A345=\"N/A\",Ref!$B$36,INDEX(Ranks!$1:$1048576,$A345,BU$1))","v":""},{"$f":"IF($A345=\"N/A\",Ref!$B$36,INDEX(Ranks!$1:$1048576,$A345,BV$1))","v":""},{"$f":"IF($A345=\"N/A\",Ref!$B$36,INDEX(Ranks!$1:$1048576,$A345,BW$1))","v":""},{"$f":"IF($A345=\"N/A\",Ref!$B$36,INDEX(Ranks!$1:$1048576,$A345,BX$1))","v":""},{"$f":"IF($A345=\"N/A\",Ref!$B$36,INDEX(Ranks!$1:$1048576,$A345,BY$1))","v":""},{"$f":"IF($A345=\"N/A\",Ref!$B$36,INDEX(Ranks!$1:$1048576,$A345,BZ$1))","v":""},{"$f":"IF($A345=\"N/A\",Ref!$B$36,INDEX(Ranks!$1:$1048576,$A345,CA$1))","v":""},{"$f":"IF($A345=\"N/A\",Ref!$B$36,INDEX(Ranks!$1:$1048576,$A345,CB$1))","v":""},{"$f":"IF($A345=\"N/A\",Ref!$B$36,INDEX(Ranks!$1:$1048576,$A345,CC$1))","v":""},{"$f":"IF($A345=\"N/A\",Ref!$B$36,INDEX(Ranks!$1:$1048576,$A345,CD$1))","v":""},{"$f":"IF($A345=\"N/A\",Ref!$B$36,INDEX(Ranks!$1:$1048576,$A345,CE$1))","v":""},{"$f":"IF($A345=\"N/A\",Ref!$B$36,INDEX(Ranks!$1:$1048576,$A345,CF$1))","v":""},{"$f":"IF($A345=\"N/A\",Ref!$B$36,INDEX(Ranks!$1:$1048576,$A345,CG$1))","v":""},{"$f":"IF($A345=\"N/A\",Ref!$B$36,INDEX(Ranks!$1:$1048576,$A345,CH$1))","v":""},{"$f":"IF($A345=\"N/A\",Ref!$B$36,INDEX(Ranks!$1:$1048576,$A345,CI$1))","v":""},{"$f":"IF($A345=\"N/A\",Ref!$B$36,INDEX(Ranks!$1:$1048576,$A345,CJ$1))","v":""},{"$f":"IF($A345=\"N/A\",Ref!$B$36,INDEX(Ranks!$1:$1048576,$A345,CK$1))","v":""},{"$f":"IF($A345=\"N/A\",Ref!$B$36,INDEX(Ranks!$1:$1048576,$A345,CL$1))","v":""},{"$f":"IF($A345=\"N/A\",Ref!$B$36,INDEX(Ranks!$1:$1048576,$A345,CM$1))","v":""},{"$f":"IF($A345=\"N/A\",Ref!$B$36,INDEX(Ranks!$1:$1048576,$A345,CN$1))","v":""},{"$f":"IF($A345=\"N/A\",Ref!$B$36,INDEX(Ranks!$1:$1048576,$A345,CO$1))","v":""},{"$f":"IF($A345=\"N/A\",Ref!$B$36,INDEX(Ranks!$1:$1048576,$A345,CP$1))","v":""},{"$f":"IF($A345=\"N/A\",Ref!$B$36,INDEX(Ranks!$1:$1048576,$A345,CQ$1))","v":""},{"$f":"IF($A345=\"N/A\",Ref!$B$36,INDEX(Ranks!$1:$1048576,$A345,CR$1))","v":""},{"$f":"IF($A345=\"N/A\",Ref!$B$36,INDEX(Ranks!$1:$1048576,$A345,CS$1))","v":""},{"$f":"IF($A345=\"N/A\",Ref!$B$36,INDEX(Ranks!$1:$1048576,$A345,CT$1))","v":""},{"$f":"IF($A345=\"N/A\",Ref!$B$36,INDEX(Ranks!$1:$1048576,$A345,CU$1))","v":""},{"$f":"IF($A345=\"N/A\",Ref!$B$36,INDEX(Ranks!$1:$1048576,$A345,CV$1))","v":""},{"$f":"IF($A345=\"N/A\",Ref!$B$36,INDEX(Ranks!$1:$1048576,$A345,CW$1))","v":""},{"$f":"IF($A345=\"N/A\",Ref!$B$36,INDEX(Ranks!$1:$1048576,$A345,CX$1))","v":""},{"$f":"IF($A345=\"N/A\",Ref!$B$36,INDEX(Ranks!$1:$1048576,$A345,CY$1))","v":""},{"$f":"IF($A345=\"N/A\",Ref!$B$36,INDEX(Ranks!$1:$1048576,$A345,CZ$1))","v":""},{"$f":"IF($A345=\"N/A\",Ref!$B$36,INDEX(Ranks!$1:$1048576,$A345,DA$1))","v":""},{"$f":"IF($A345=\"N/A\",Ref!$B$36,INDEX(Ranks!$1:$1048576,$A345,DB$1))","v":""},{"$f":"IF($A345=\"N/A\",Ref!$B$36,INDEX(Ranks!$1:$1048576,$A345,DC$1))","v":""},{"$f":"IF($A345=\"N/A\",Ref!$B$36,INDEX(Ranks!$1:$1048576,$A345,DD$1))","v":""},{"$f":"IF($A345=\"N/A\",Ref!$B$36,INDEX(Ranks!$1:$1048576,$A345,DE$1))","v":""},{"$f":"IF($A345=\"N/A\",Ref!$B$36,INDEX(Ranks!$1:$1048576,$A345,DF$1))","v":""},{"$f":"IF($A345=\"N/A\",Ref!$B$36,INDEX(Ranks!$1:$1048576,$A345,DG$1))","v":""},{"$f":"IF($A345=\"N/A\",Ref!$B$36,INDEX(Ranks!$1:$1048576,$A345,DH$1))","v":""},{"$f":"IF($A345=\"N/A\",Ref!$B$36,INDEX(Ranks!$1:$1048576,$A345,DI$1))","v":""},{"$f":"IF($A345=\"N/A\",Ref!$B$36,INDEX(Ranks!$1:$1048576,$A345,DJ$1))","v":""},{"$f":"IF($A345=\"N/A\",Ref!$B$36,INDEX(Ranks!$1:$1048576,$A345,DK$1))","v":""},{"$f":"IF($A345=\"N/A\",Ref!$B$36,INDEX(Ranks!$1:$1048576,$A345,DL$1))","v":""},{"$f":"IF($A345=\"N/A\",Ref!$B$36,INDEX(Ranks!$1:$1048576,$A345,DM$1))","v":""},{"$f":"IF($A345=\"N/A\",Ref!$B$36,INDEX(Ranks!$1:$1048576,$A345,DN$1))","v":""},{"$f":"IF($A345=\"N/A\",Ref!$B$36,INDEX(Ranks!$1:$1048576,$A345,DO$1))","v":""},{"$f":"IF($A345=\"N/A\",Ref!$B$36,INDEX(Ranks!$1:$1048576,$A345,DP$1))","v":""},{"$f":"IF($A345=\"N/A\",Ref!$B$36,INDEX(Ranks!$1:$1048576,$A345,DQ$1))","v":""},{"$f":"IF($A345=\"N/A\",Ref!$B$36,INDEX(Ranks!$1:$1048576,$A345,DR$1))","v":""},{"$f":"IF($A345=\"N/A\",Ref!$B$36,INDEX(Ranks!$1:$1048576,$A345,DS$1))","v":""},{"$f":"IF($A345=\"N/A\",Ref!$B$36,INDEX(Ranks!$1:$1048576,$A345,DT$1))","v":""},{"$f":"IF($A345=\"N/A\",Ref!$B$36,INDEX(Ranks!$1:$1048576,$A345,DU$1))","v":""},{"$f":"IF($A345=\"N/A\",Ref!$B$36,INDEX(Ranks!$1:$1048576,$A345,DV$1))","v":""},{"$f":"IF($A345=\"N/A\",Ref!$B$36,INDEX(Ranks!$1:$1048576,$A345,DW$1))","v":""},{"$f":"IF($A345=\"N/A\",Ref!$B$36,INDEX(Ranks!$1:$1048576,$A345,DX$1))","v":""},{"$f":"IF($A345=\"N/A\",Ref!$B$36,INDEX(Ranks!$1:$1048576,$A345,DY$1))","v":""},{"$f":"IF($A345=\"N/A\",Ref!$B$36,INDEX(Ranks!$1:$1048576,$A345,DZ$1))","v":""},{"$f":"IF($A345=\"N/A\",Ref!$B$36,INDEX(Ranks!$1:$1048576,$A345,EA$1))","v":""},{"$f":"IF($A345=\"N/A\",Ref!$B$36,INDEX(Ranks!$1:$1048576,$A345,EB$1))","v":""}]
[{"$f":"IFERROR(MATCH('Portfolio Page'!L346,Ranks!L:L,0),\"N/A\")","v":"N/A"},null,{"$f":"IF($A346=\"N/A\",\"\",INDEX(Ranks!$1:$1048576,$A346,C$1))","v":""},{"$f":"IF($A346=\"N/A\",Ref!$B$36,INDEX(Ranks!$1:$1048576,$A346,D$1))","v":""},{"$f":"IF($A346=\"N/A\",Ref!$B$36,INDEX(Ranks!$1:$1048576,$A346,E$1))","v":""},{"$f":"IF($A346=\"N/A\",\"\",INDEX(Ranks!$1:$1048576,$A346,F$1))","v":""},{"$f":"IF($A346=\"N/A\",\"\",INDEX(Ranks!$1:$1048576,$A346,G$1))","v":""},{"$f":"IF($A346=\"N/A\",\"\",INDEX(Ranks!$1:$1048576,$A346,H$1))","v":""},{"$f":"IF($A346=\"N/A\",\"\",INDEX(Ranks!$1:$1048576,$A346,I$1))","v":""},{"$f":"IF($A346=\"N/A\",\"\",INDEX(Ranks!$1:$1048576,$A346,J$1))","v":""},{"$f":"IF($A346=\"N/A\",\"\",INDEX(Ranks!$1:$1048576,$A346,K$1))","v":""},null,{"$f":"IF($A346=\"N/A\",Ref!$B$36,INDEX(Ranks!$1:$1048576,$A346,M$1))","v":""},{"$f":"IF($A346=\"N/A\",Ref!$B$36,INDEX(Ranks!$1:$1048576,$A346,N$1))","v":""},{"$f":"IF($A346=\"N/A\",Ref!$B$36,INDEX(Ranks!$1:$1048576,$A346,O$1))","v":""},{"$f":"IF($A346=\"N/A\",Ref!$B$36,INDEX(Ranks!$1:$1048576,$A346,P$1))","v":""},{"$f":"IF($A346=\"N/A\",Ref!$B$36,INDEX(Ranks!$1:$1048576,$A346,Q$1))","v":""},{"$f":"IF($A346=\"N/A\",Ref!$B$36,INDEX(Ranks!$1:$1048576,$A346,R$1))","v":""},{"$f":"IF($A346=\"N/A\",Ref!$B$36,INDEX(Ranks!$1:$1048576,$A346,S$1))","v":""},{"$f":"IF($A346=\"N/A\",Ref!$B$36,INDEX(Ranks!$1:$1048576,$A346,T$1))","v":""},{"$f":"IF($A346=\"N/A\",Ref!$B$36,INDEX(Ranks!$1:$1048576,$A346,U$1))","v":""},{"$f":"IF($A346=\"N/A\",Ref!$B$36,INDEX(Ranks!$1:$1048576,$A346,V$1))","v":""},{"$f":"IF($A346=\"N/A\",Ref!$B$36,INDEX(Ranks!$1:$1048576,$A346,W$1))","v":""},{"$f":"IF($A346=\"N/A\",Ref!$B$36,INDEX(Ranks!$1:$1048576,$A346,X$1))","v":""},{"$f":"IF($A346=\"N/A\",Ref!$B$36,INDEX(Ranks!$1:$1048576,$A346,Y$1))","v":""},{"$f":"IF($A346=\"N/A\",Ref!$B$36,INDEX(Ranks!$1:$1048576,$A346,Z$1))","v":""},{"$f":"IF($A346=\"N/A\",Ref!$B$36,INDEX(Ranks!$1:$1048576,$A346,AA$1))","v":""},{"$f":"IF($A346=\"N/A\",Ref!$B$36,INDEX(Ranks!$1:$1048576,$A346,AB$1))","v":""},{"$f":"IF($A346=\"N/A\",Ref!$B$36,INDEX(Ranks!$1:$1048576,$A346,AC$1))","v":""},{"$f":"IF($A346=\"N/A\",Ref!$B$36,INDEX(Ranks!$1:$1048576,$A346,AD$1))","v":""},{"$f":"IF($A346=\"N/A\",Ref!$B$36,INDEX(Ranks!$1:$1048576,$A346,AE$1))","v":""},{"$f":"IF($A346=\"N/A\",Ref!$B$36,INDEX(Ranks!$1:$1048576,$A346,AF$1))","v":""},{"$f":"IF($A346=\"N/A\",Ref!$B$36,INDEX(Ranks!$1:$1048576,$A346,AG$1))","v":""},{"$f":"IF($A346=\"N/A\",Ref!$B$36,INDEX(Ranks!$1:$1048576,$A346,AH$1))","v":""},{"$f":"IF($A346=\"N/A\",Ref!$B$36,INDEX(Ranks!$1:$1048576,$A346,AI$1))","v":""},{"$f":"IF($A346=\"N/A\",Ref!$B$36,INDEX(Ranks!$1:$1048576,$A346,AJ$1))","v":""},{"$f":"IF($A346=\"N/A\",Ref!$B$36,INDEX(Ranks!$1:$1048576,$A346,AK$1))","v":""},{"$f":"IF($A346=\"N/A\",Ref!$B$36,INDEX(Ranks!$1:$1048576,$A346,AL$1))","v":""},{"$f":"IF($A346=\"N/A\",Ref!$B$36,INDEX(Ranks!$1:$1048576,$A346,AM$1))","v":""},{"$f":"IF($A346=\"N/A\",Ref!$B$36,INDEX(Ranks!$1:$1048576,$A346,AN$1))","v":""},{"$f":"IF($A346=\"N/A\",Ref!$B$36,INDEX(Ranks!$1:$1048576,$A346,AO$1))","v":""},{"$f":"IF($A346=\"N/A\",Ref!$B$36,INDEX(Ranks!$1:$1048576,$A346,AP$1))","v":""},{"$f":"IF($A346=\"N/A\",Ref!$B$36,INDEX(Ranks!$1:$1048576,$A346,AQ$1))","v":""},{"$f":"IF($A346=\"N/A\",Ref!$B$36,INDEX(Ranks!$1:$1048576,$A346,AR$1))","v":""},{"$f":"IF($A346=\"N/A\",Ref!$B$36,INDEX(Ranks!$1:$1048576,$A346,AS$1))","v":""},{"$f":"IF($A346=\"N/A\",Ref!$B$36,INDEX(Ranks!$1:$1048576,$A346,AT$1))","v":""},{"$f":"IF($A346=\"N/A\",Ref!$B$36,INDEX(Ranks!$1:$1048576,$A346,AU$1))","v":""},{"$f":"IF($A346=\"N/A\",Ref!$B$36,INDEX(Ranks!$1:$1048576,$A346,AV$1))","v":""},{"$f":"IF($A346=\"N/A\",Ref!$B$36,INDEX(Ranks!$1:$1048576,$A346,AW$1))","v":""},{"$f":"IF($A346=\"N/A\",Ref!$B$36,INDEX(Ranks!$1:$1048576,$A346,AX$1))","v":""},{"$f":"IF($A346=\"N/A\",Ref!$B$36,INDEX(Ranks!$1:$1048576,$A346,AY$1))","v":""},{"$f":"IF($A346=\"N/A\",Ref!$B$36,INDEX(Ranks!$1:$1048576,$A346,AZ$1))","v":""},{"$f":"IF($A346=\"N/A\",Ref!$B$36,INDEX(Ranks!$1:$1048576,$A346,BA$1))","v":""},{"$f":"IF($A346=\"N/A\",Ref!$B$36,INDEX(Ranks!$1:$1048576,$A346,BB$1))","v":""},{"$f":"IF($A346=\"N/A\",Ref!$B$36,INDEX(Ranks!$1:$1048576,$A346,BC$1))","v":""},{"$f":"IF($A346=\"N/A\",Ref!$B$36,INDEX(Ranks!$1:$1048576,$A346,BD$1))","v":""},{"$f":"IF($A346=\"N/A\",Ref!$B$36,INDEX(Ranks!$1:$1048576,$A346,BE$1))","v":""},{"$f":"IF($A346=\"N/A\",Ref!$B$36,INDEX(Ranks!$1:$1048576,$A346,BF$1))","v":""},{"$f":"IF($A346=\"N/A\",Ref!$B$36,INDEX(Ranks!$1:$1048576,$A346,BG$1))","v":""},{"$f":"IF($A346=\"N/A\",Ref!$B$36,INDEX(Ranks!$1:$1048576,$A346,BH$1))","v":""},{"$f":"IF($A346=\"N/A\",Ref!$B$36,INDEX(Ranks!$1:$1048576,$A346,BI$1))","v":""},{"$f":"IF($A346=\"N/A\",Ref!$B$36,INDEX(Ranks!$1:$1048576,$A346,BJ$1))","v":""},{"$f":"IF($A346=\"N/A\",Ref!$B$36,INDEX(Ranks!$1:$1048576,$A346,BK$1))","v":""},{"$f":"IF($A346=\"N/A\",Ref!$B$36,INDEX(Ranks!$1:$1048576,$A346,BL$1))","v":""},{"$f":"IF($A346=\"N/A\",Ref!$B$36,INDEX(Ranks!$1:$1048576,$A346,BM$1))","v":""},{"$f":"IF($A346=\"N/A\",Ref!$B$36,INDEX(Ranks!$1:$1048576,$A346,BN$1))","v":""},{"$f":"IF($A346=\"N/A\",Ref!$B$36,INDEX(Ranks!$1:$1048576,$A346,BO$1))","v":""},{"$f":"IF($A346=\"N/A\",Ref!$B$36,INDEX(Ranks!$1:$1048576,$A346,BP$1))","v":""},{"$f":"IF($A346=\"N/A\",Ref!$B$36,INDEX(Ranks!$1:$1048576,$A346,BQ$1))","v":""},{"$f":"IF($A346=\"N/A\",Ref!$B$36,INDEX(Ranks!$1:$1048576,$A346,BR$1))","v":""},{"$f":"IF($A346=\"N/A\",Ref!$B$36,INDEX(Ranks!$1:$1048576,$A346,BS$1))","v":""},{"$f":"IF($A346=\"N/A\",Ref!$B$36,INDEX(Ranks!$1:$1048576,$A346,BT$1))","v":""},{"$f":"IF($A346=\"N/A\",Ref!$B$36,INDEX(Ranks!$1:$1048576,$A346,BU$1))","v":""},{"$f":"IF($A346=\"N/A\",Ref!$B$36,INDEX(Ranks!$1:$1048576,$A346,BV$1))","v":""},{"$f":"IF($A346=\"N/A\",Ref!$B$36,INDEX(Ranks!$1:$1048576,$A346,BW$1))","v":""},{"$f":"IF($A346=\"N/A\",Ref!$B$36,INDEX(Ranks!$1:$1048576,$A346,BX$1))","v":""},{"$f":"IF($A346=\"N/A\",Ref!$B$36,INDEX(Ranks!$1:$1048576,$A346,BY$1))","v":""},{"$f":"IF($A346=\"N/A\",Ref!$B$36,INDEX(Ranks!$1:$1048576,$A346,BZ$1))","v":""},{"$f":"IF($A346=\"N/A\",Ref!$B$36,INDEX(Ranks!$1:$1048576,$A346,CA$1))","v":""},{"$f":"IF($A346=\"N/A\",Ref!$B$36,INDEX(Ranks!$1:$1048576,$A346,CB$1))","v":""},{"$f":"IF($A346=\"N/A\",Ref!$B$36,INDEX(Ranks!$1:$1048576,$A346,CC$1))","v":""},{"$f":"IF($A346=\"N/A\",Ref!$B$36,INDEX(Ranks!$1:$1048576,$A346,CD$1))","v":""},{"$f":"IF($A346=\"N/A\",Ref!$B$36,INDEX(Ranks!$1:$1048576,$A346,CE$1))","v":""},{"$f":"IF($A346=\"N/A\",Ref!$B$36,INDEX(Ranks!$1:$1048576,$A346,CF$1))","v":""},{"$f":"IF($A346=\"N/A\",Ref!$B$36,INDEX(Ranks!$1:$1048576,$A346,CG$1))","v":""},{"$f":"IF($A346=\"N/A\",Ref!$B$36,INDEX(Ranks!$1:$1048576,$A346,CH$1))","v":""},{"$f":"IF($A346=\"N/A\",Ref!$B$36,INDEX(Ranks!$1:$1048576,$A346,CI$1))","v":""},{"$f":"IF($A346=\"N/A\",Ref!$B$36,INDEX(Ranks!$1:$1048576,$A346,CJ$1))","v":""},{"$f":"IF($A346=\"N/A\",Ref!$B$36,INDEX(Ranks!$1:$1048576,$A346,CK$1))","v":""},{"$f":"IF($A346=\"N/A\",Ref!$B$36,INDEX(Ranks!$1:$1048576,$A346,CL$1))","v":""},{"$f":"IF($A346=\"N/A\",Ref!$B$36,INDEX(Ranks!$1:$1048576,$A346,CM$1))","v":""},{"$f":"IF($A346=\"N/A\",Ref!$B$36,INDEX(Ranks!$1:$1048576,$A346,CN$1))","v":""},{"$f":"IF($A346=\"N/A\",Ref!$B$36,INDEX(Ranks!$1:$1048576,$A346,CO$1))","v":""},{"$f":"IF($A346=\"N/A\",Ref!$B$36,INDEX(Ranks!$1:$1048576,$A346,CP$1))","v":""},{"$f":"IF($A346=\"N/A\",Ref!$B$36,INDEX(Ranks!$1:$1048576,$A346,CQ$1))","v":""},{"$f":"IF($A346=\"N/A\",Ref!$B$36,INDEX(Ranks!$1:$1048576,$A346,CR$1))","v":""},{"$f":"IF($A346=\"N/A\",Ref!$B$36,INDEX(Ranks!$1:$1048576,$A346,CS$1))","v":""},{"$f":"IF($A346=\"N/A\",Ref!$B$36,INDEX(Ranks!$1:$1048576,$A346,CT$1))","v":""},{"$f":"IF($A346=\"N/A\",Ref!$B$36,INDEX(Ranks!$1:$1048576,$A346,CU$1))","v":""},{"$f":"IF($A346=\"N/A\",Ref!$B$36,INDEX(Ranks!$1:$1048576,$A346,CV$1))","v":""},{"$f":"IF($A346=\"N/A\",Ref!$B$36,INDEX(Ranks!$1:$1048576,$A346,CW$1))","v":""},{"$f":"IF($A346=\"N/A\",Ref!$B$36,INDEX(Ranks!$1:$1048576,$A346,CX$1))","v":""},{"$f":"IF($A346=\"N/A\",Ref!$B$36,INDEX(Ranks!$1:$1048576,$A346,CY$1))","v":""},{"$f":"IF($A346=\"N/A\",Ref!$B$36,INDEX(Ranks!$1:$1048576,$A346,CZ$1))","v":""},{"$f":"IF($A346=\"N/A\",Ref!$B$36,INDEX(Ranks!$1:$1048576,$A346,DA$1))","v":""},{"$f":"IF($A346=\"N/A\",Ref!$B$36,INDEX(Ranks!$1:$1048576,$A346,DB$1))","v":""},{"$f":"IF($A346=\"N/A\",Ref!$B$36,INDEX(Ranks!$1:$1048576,$A346,DC$1))","v":""},{"$f":"IF($A346=\"N/A\",Ref!$B$36,INDEX(Ranks!$1:$1048576,$A346,DD$1))","v":""},{"$f":"IF($A346=\"N/A\",Ref!$B$36,INDEX(Ranks!$1:$1048576,$A346,DE$1))","v":""},{"$f":"IF($A346=\"N/A\",Ref!$B$36,INDEX(Ranks!$1:$1048576,$A346,DF$1))","v":""},{"$f":"IF($A346=\"N/A\",Ref!$B$36,INDEX(Ranks!$1:$1048576,$A346,DG$1))","v":""},{"$f":"IF($A346=\"N/A\",Ref!$B$36,INDEX(Ranks!$1:$1048576,$A346,DH$1))","v":""},{"$f":"IF($A346=\"N/A\",Ref!$B$36,INDEX(Ranks!$1:$1048576,$A346,DI$1))","v":""},{"$f":"IF($A346=\"N/A\",Ref!$B$36,INDEX(Ranks!$1:$1048576,$A346,DJ$1))","v":""},{"$f":"IF($A346=\"N/A\",Ref!$B$36,INDEX(Ranks!$1:$1048576,$A346,DK$1))","v":""},{"$f":"IF($A346=\"N/A\",Ref!$B$36,INDEX(Ranks!$1:$1048576,$A346,DL$1))","v":""},{"$f":"IF($A346=\"N/A\",Ref!$B$36,INDEX(Ranks!$1:$1048576,$A346,DM$1))","v":""},{"$f":"IF($A346=\"N/A\",Ref!$B$36,INDEX(Ranks!$1:$1048576,$A346,DN$1))","v":""},{"$f":"IF($A346=\"N/A\",Ref!$B$36,INDEX(Ranks!$1:$1048576,$A346,DO$1))","v":""},{"$f":"IF($A346=\"N/A\",Ref!$B$36,INDEX(Ranks!$1:$1048576,$A346,DP$1))","v":""},{"$f":"IF($A346=\"N/A\",Ref!$B$36,INDEX(Ranks!$1:$1048576,$A346,DQ$1))","v":""},{"$f":"IF($A346=\"N/A\",Ref!$B$36,INDEX(Ranks!$1:$1048576,$A346,DR$1))","v":""},{"$f":"IF($A346=\"N/A\",Ref!$B$36,INDEX(Ranks!$1:$1048576,$A346,DS$1))","v":""},{"$f":"IF($A346=\"N/A\",Ref!$B$36,INDEX(Ranks!$1:$1048576,$A346,DT$1))","v":""},{"$f":"IF($A346=\"N/A\",Ref!$B$36,INDEX(Ranks!$1:$1048576,$A346,DU$1))","v":""},{"$f":"IF($A346=\"N/A\",Ref!$B$36,INDEX(Ranks!$1:$1048576,$A346,DV$1))","v":""},{"$f":"IF($A346=\"N/A\",Ref!$B$36,INDEX(Ranks!$1:$1048576,$A346,DW$1))","v":""},{"$f":"IF($A346=\"N/A\",Ref!$B$36,INDEX(Ranks!$1:$1048576,$A346,DX$1))","v":""},{"$f":"IF($A346=\"N/A\",Ref!$B$36,INDEX(Ranks!$1:$1048576,$A346,DY$1))","v":""},{"$f":"IF($A346=\"N/A\",Ref!$B$36,INDEX(Ranks!$1:$1048576,$A346,DZ$1))","v":""},{"$f":"IF($A346=\"N/A\",Ref!$B$36,INDEX(Ranks!$1:$1048576,$A346,EA$1))","v":""},{"$f":"IF($A346=\"N/A\",Ref!$B$36,INDEX(Ranks!$1:$1048576,$A346,EB$1))","v":""}]
[{"$f":"IFERROR(MATCH('Portfolio Page'!L347,Ranks!L:L,0),\"N/A\")","v":"N/A"},null,{"$f":"IF($A347=\"N/A\",\"\",INDEX(Ranks!$1:$1048576,$A347,C$1))","v":""},{"$f":"IF($A347=\"N/A\",Ref!$B$36,INDEX(Ranks!$1:$1048576,$A347,D$1))","v":""},{"$f":"IF($A347=\"N/A\",Ref!$B$36,INDEX(Ranks!$1:$1048576,$A347,E$1))","v":""},{"$f":"IF($A347=\"N/A\",\"\",INDEX(Ranks!$1:$1048576,$A347,F$1))","v":""},{"$f":"IF($A347=\"N/A\",\"\",INDEX(Ranks!$1:$1048576,$A347,G$1))","v":""},{"$f":"IF($A347=\"N/A\",\"\",INDEX(Ranks!$1:$1048576,$A347,H$1))","v":""},{"$f":"IF($A347=\"N/A\",\"\",INDEX(Ranks!$1:$1048576,$A347,I$1))","v":""},{"$f":"IF($A347=\"N/A\",\"\",INDEX(Ranks!$1:$1048576,$A347,J$1))","v":""},{"$f":"IF($A347=\"N/A\",\"\",INDEX(Ranks!$1:$1048576,$A347,K$1))","v":""},null,{"$f":"IF($A347=\"N/A\",Ref!$B$36,INDEX(Ranks!$1:$1048576,$A347,M$1))","v":""},{"$f":"IF($A347=\"N/A\",Ref!$B$36,INDEX(Ranks!$1:$1048576,$A347,N$1))","v":""},{"$f":"IF($A347=\"N/A\",Ref!$B$36,INDEX(Ranks!$1:$1048576,$A347,O$1))","v":""},{"$f":"IF($A347=\"N/A\",Ref!$B$36,INDEX(Ranks!$1:$1048576,$A347,P$1))","v":""},{"$f":"IF($A347=\"N/A\",Ref!$B$36,INDEX(Ranks!$1:$1048576,$A347,Q$1))","v":""},{"$f":"IF($A347=\"N/A\",Ref!$B$36,INDEX(Ranks!$1:$1048576,$A347,R$1))","v":""},{"$f":"IF($A347=\"N/A\",Ref!$B$36,INDEX(Ranks!$1:$1048576,$A347,S$1))","v":""},{"$f":"IF($A347=\"N/A\",Ref!$B$36,INDEX(Ranks!$1:$1048576,$A347,T$1))","v":""},{"$f":"IF($A347=\"N/A\",Ref!$B$36,INDEX(Ranks!$1:$1048576,$A347,U$1))","v":""},{"$f":"IF($A347=\"N/A\",Ref!$B$36,INDEX(Ranks!$1:$1048576,$A347,V$1))","v":""},{"$f":"IF($A347=\"N/A\",Ref!$B$36,INDEX(Ranks!$1:$1048576,$A347,W$1))","v":""},{"$f":"IF($A347=\"N/A\",Ref!$B$36,INDEX(Ranks!$1:$1048576,$A347,X$1))","v":""},{"$f":"IF($A347=\"N/A\",Ref!$B$36,INDEX(Ranks!$1:$1048576,$A347,Y$1))","v":""},{"$f":"IF($A347=\"N/A\",Ref!$B$36,INDEX(Ranks!$1:$1048576,$A347,Z$1))","v":""},{"$f":"IF($A347=\"N/A\",Ref!$B$36,INDEX(Ranks!$1:$1048576,$A347,AA$1))","v":""},{"$f":"IF($A347=\"N/A\",Ref!$B$36,INDEX(Ranks!$1:$1048576,$A347,AB$1))","v":""},{"$f":"IF($A347=\"N/A\",Ref!$B$36,INDEX(Ranks!$1:$1048576,$A347,AC$1))","v":""},{"$f":"IF($A347=\"N/A\",Ref!$B$36,INDEX(Ranks!$1:$1048576,$A347,AD$1))","v":""},{"$f":"IF($A347=\"N/A\",Ref!$B$36,INDEX(Ranks!$1:$1048576,$A347,AE$1))","v":""},{"$f":"IF($A347=\"N/A\",Ref!$B$36,INDEX(Ranks!$1:$1048576,$A347,AF$1))","v":""},{"$f":"IF($A347=\"N/A\",Ref!$B$36,INDEX(Ranks!$1:$1048576,$A347,AG$1))","v":""},{"$f":"IF($A347=\"N/A\",Ref!$B$36,INDEX(Ranks!$1:$1048576,$A347,AH$1))","v":""},{"$f":"IF($A347=\"N/A\",Ref!$B$36,INDEX(Ranks!$1:$1048576,$A347,AI$1))","v":""},{"$f":"IF($A347=\"N/A\",Ref!$B$36,INDEX(Ranks!$1:$1048576,$A347,AJ$1))","v":""},{"$f":"IF($A347=\"N/A\",Ref!$B$36,INDEX(Ranks!$1:$1048576,$A347,AK$1))","v":""},{"$f":"IF($A347=\"N/A\",Ref!$B$36,INDEX(Ranks!$1:$1048576,$A347,AL$1))","v":""},{"$f":"IF($A347=\"N/A\",Ref!$B$36,INDEX(Ranks!$1:$1048576,$A347,AM$1))","v":""},{"$f":"IF($A347=\"N/A\",Ref!$B$36,INDEX(Ranks!$1:$1048576,$A347,AN$1))","v":""},{"$f":"IF($A347=\"N/A\",Ref!$B$36,INDEX(Ranks!$1:$1048576,$A347,AO$1))","v":""},{"$f":"IF($A347=\"N/A\",Ref!$B$36,INDEX(Ranks!$1:$1048576,$A347,AP$1))","v":""},{"$f":"IF($A347=\"N/A\",Ref!$B$36,INDEX(Ranks!$1:$1048576,$A347,AQ$1))","v":""},{"$f":"IF($A347=\"N/A\",Ref!$B$36,INDEX(Ranks!$1:$1048576,$A347,AR$1))","v":""},{"$f":"IF($A347=\"N/A\",Ref!$B$36,INDEX(Ranks!$1:$1048576,$A347,AS$1))","v":""},{"$f":"IF($A347=\"N/A\",Ref!$B$36,INDEX(Ranks!$1:$1048576,$A347,AT$1))","v":""},{"$f":"IF($A347=\"N/A\",Ref!$B$36,INDEX(Ranks!$1:$1048576,$A347,AU$1))","v":""},{"$f":"IF($A347=\"N/A\",Ref!$B$36,INDEX(Ranks!$1:$1048576,$A347,AV$1))","v":""},{"$f":"IF($A347=\"N/A\",Ref!$B$36,INDEX(Ranks!$1:$1048576,$A347,AW$1))","v":""},{"$f":"IF($A347=\"N/A\",Ref!$B$36,INDEX(Ranks!$1:$1048576,$A347,AX$1))","v":""},{"$f":"IF($A347=\"N/A\",Ref!$B$36,INDEX(Ranks!$1:$1048576,$A347,AY$1))","v":""},{"$f":"IF($A347=\"N/A\",Ref!$B$36,INDEX(Ranks!$1:$1048576,$A347,AZ$1))","v":""},{"$f":"IF($A347=\"N/A\",Ref!$B$36,INDEX(Ranks!$1:$1048576,$A347,BA$1))","v":""},{"$f":"IF($A347=\"N/A\",Ref!$B$36,INDEX(Ranks!$1:$1048576,$A347,BB$1))","v":""},{"$f":"IF($A347=\"N/A\",Ref!$B$36,INDEX(Ranks!$1:$1048576,$A347,BC$1))","v":""},{"$f":"IF($A347=\"N/A\",Ref!$B$36,INDEX(Ranks!$1:$1048576,$A347,BD$1))","v":""},{"$f":"IF($A347=\"N/A\",Ref!$B$36,INDEX(Ranks!$1:$1048576,$A347,BE$1))","v":""},{"$f":"IF($A347=\"N/A\",Ref!$B$36,INDEX(Ranks!$1:$1048576,$A347,BF$1))","v":""},{"$f":"IF($A347=\"N/A\",Ref!$B$36,INDEX(Ranks!$1:$1048576,$A347,BG$1))","v":""},{"$f":"IF($A347=\"N/A\",Ref!$B$36,INDEX(Ranks!$1:$1048576,$A347,BH$1))","v":""},{"$f":"IF($A347=\"N/A\",Ref!$B$36,INDEX(Ranks!$1:$1048576,$A347,BI$1))","v":""},{"$f":"IF($A347=\"N/A\",Ref!$B$36,INDEX(Ranks!$1:$1048576,$A347,BJ$1))","v":""},{"$f":"IF($A347=\"N/A\",Ref!$B$36,INDEX(Ranks!$1:$1048576,$A347,BK$1))","v":""},{"$f":"IF($A347=\"N/A\",Ref!$B$36,INDEX(Ranks!$1:$1048576,$A347,BL$1))","v":""},{"$f":"IF($A347=\"N/A\",Ref!$B$36,INDEX(Ranks!$1:$1048576,$A347,BM$1))","v":""},{"$f":"IF($A347=\"N/A\",Ref!$B$36,INDEX(Ranks!$1:$1048576,$A347,BN$1))","v":""},{"$f":"IF($A347=\"N/A\",Ref!$B$36,INDEX(Ranks!$1:$1048576,$A347,BO$1))","v":""},{"$f":"IF($A347=\"N/A\",Ref!$B$36,INDEX(Ranks!$1:$1048576,$A347,BP$1))","v":""},{"$f":"IF($A347=\"N/A\",Ref!$B$36,INDEX(Ranks!$1:$1048576,$A347,BQ$1))","v":""},{"$f":"IF($A347=\"N/A\",Ref!$B$36,INDEX(Ranks!$1:$1048576,$A347,BR$1))","v":""},{"$f":"IF($A347=\"N/A\",Ref!$B$36,INDEX(Ranks!$1:$1048576,$A347,BS$1))","v":""},{"$f":"IF($A347=\"N/A\",Ref!$B$36,INDEX(Ranks!$1:$1048576,$A347,BT$1))","v":""},{"$f":"IF($A347=\"N/A\",Ref!$B$36,INDEX(Ranks!$1:$1048576,$A347,BU$1))","v":""},{"$f":"IF($A347=\"N/A\",Ref!$B$36,INDEX(Ranks!$1:$1048576,$A347,BV$1))","v":""},{"$f":"IF($A347=\"N/A\",Ref!$B$36,INDEX(Ranks!$1:$1048576,$A347,BW$1))","v":""},{"$f":"IF($A347=\"N/A\",Ref!$B$36,INDEX(Ranks!$1:$1048576,$A347,BX$1))","v":""},{"$f":"IF($A347=\"N/A\",Ref!$B$36,INDEX(Ranks!$1:$1048576,$A347,BY$1))","v":""},{"$f":"IF($A347=\"N/A\",Ref!$B$36,INDEX(Ranks!$1:$1048576,$A347,BZ$1))","v":""},{"$f":"IF($A347=\"N/A\",Ref!$B$36,INDEX(Ranks!$1:$1048576,$A347,CA$1))","v":""},{"$f":"IF($A347=\"N/A\",Ref!$B$36,INDEX(Ranks!$1:$1048576,$A347,CB$1))","v":""},{"$f":"IF($A347=\"N/A\",Ref!$B$36,INDEX(Ranks!$1:$1048576,$A347,CC$1))","v":""},{"$f":"IF($A347=\"N/A\",Ref!$B$36,INDEX(Ranks!$1:$1048576,$A347,CD$1))","v":""},{"$f":"IF($A347=\"N/A\",Ref!$B$36,INDEX(Ranks!$1:$1048576,$A347,CE$1))","v":""},{"$f":"IF($A347=\"N/A\",Ref!$B$36,INDEX(Ranks!$1:$1048576,$A347,CF$1))","v":""},{"$f":"IF($A347=\"N/A\",Ref!$B$36,INDEX(Ranks!$1:$1048576,$A347,CG$1))","v":""},{"$f":"IF($A347=\"N/A\",Ref!$B$36,INDEX(Ranks!$1:$1048576,$A347,CH$1))","v":""},{"$f":"IF($A347=\"N/A\",Ref!$B$36,INDEX(Ranks!$1:$1048576,$A347,CI$1))","v":""},{"$f":"IF($A347=\"N/A\",Ref!$B$36,INDEX(Ranks!$1:$1048576,$A347,CJ$1))","v":""},{"$f":"IF($A347=\"N/A\",Ref!$B$36,INDEX(Ranks!$1:$1048576,$A347,CK$1))","v":""},{"$f":"IF($A347=\"N/A\",Ref!$B$36,INDEX(Ranks!$1:$1048576,$A347,CL$1))","v":""},{"$f":"IF($A347=\"N/A\",Ref!$B$36,INDEX(Ranks!$1:$1048576,$A347,CM$1))","v":""},{"$f":"IF($A347=\"N/A\",Ref!$B$36,INDEX(Ranks!$1:$1048576,$A347,CN$1))","v":""},{"$f":"IF($A347=\"N/A\",Ref!$B$36,INDEX(Ranks!$1:$1048576,$A347,CO$1))","v":""},{"$f":"IF($A347=\"N/A\",Ref!$B$36,INDEX(Ranks!$1:$1048576,$A347,CP$1))","v":""},{"$f":"IF($A347=\"N/A\",Ref!$B$36,INDEX(Ranks!$1:$1048576,$A347,CQ$1))","v":""},{"$f":"IF($A347=\"N/A\",Ref!$B$36,INDEX(Ranks!$1:$1048576,$A347,CR$1))","v":""},{"$f":"IF($A347=\"N/A\",Ref!$B$36,INDEX(Ranks!$1:$1048576,$A347,CS$1))","v":""},{"$f":"IF($A347=\"N/A\",Ref!$B$36,INDEX(Ranks!$1:$1048576,$A347,CT$1))","v":""},{"$f":"IF($A347=\"N/A\",Ref!$B$36,INDEX(Ranks!$1:$1048576,$A347,CU$1))","v":""},{"$f":"IF($A347=\"N/A\",Ref!$B$36,INDEX(Ranks!$1:$1048576,$A347,CV$1))","v":""},{"$f":"IF($A347=\"N/A\",Ref!$B$36,INDEX(Ranks!$1:$1048576,$A347,CW$1))","v":""},{"$f":"IF($A347=\"N/A\",Ref!$B$36,INDEX(Ranks!$1:$1048576,$A347,CX$1))","v":""},{"$f":"IF($A347=\"N/A\",Ref!$B$36,INDEX(Ranks!$1:$1048576,$A347,CY$1))","v":""},{"$f":"IF($A347=\"N/A\",Ref!$B$36,INDEX(Ranks!$1:$1048576,$A347,CZ$1))","v":""},{"$f":"IF($A347=\"N/A\",Ref!$B$36,INDEX(Ranks!$1:$1048576,$A347,DA$1))","v":""},{"$f":"IF($A347=\"N/A\",Ref!$B$36,INDEX(Ranks!$1:$1048576,$A347,DB$1))","v":""},{"$f":"IF($A347=\"N/A\",Ref!$B$36,INDEX(Ranks!$1:$1048576,$A347,DC$1))","v":""},{"$f":"IF($A347=\"N/A\",Ref!$B$36,INDEX(Ranks!$1:$1048576,$A347,DD$1))","v":""},{"$f":"IF($A347=\"N/A\",Ref!$B$36,INDEX(Ranks!$1:$1048576,$A347,DE$1))","v":""},{"$f":"IF($A347=\"N/A\",Ref!$B$36,INDEX(Ranks!$1:$1048576,$A347,DF$1))","v":""},{"$f":"IF($A347=\"N/A\",Ref!$B$36,INDEX(Ranks!$1:$1048576,$A347,DG$1))","v":""},{"$f":"IF($A347=\"N/A\",Ref!$B$36,INDEX(Ranks!$1:$1048576,$A347,DH$1))","v":""},{"$f":"IF($A347=\"N/A\",Ref!$B$36,INDEX(Ranks!$1:$1048576,$A347,DI$1))","v":""},{"$f":"IF($A347=\"N/A\",Ref!$B$36,INDEX(Ranks!$1:$1048576,$A347,DJ$1))","v":""},{"$f":"IF($A347=\"N/A\",Ref!$B$36,INDEX(Ranks!$1:$1048576,$A347,DK$1))","v":""},{"$f":"IF($A347=\"N/A\",Ref!$B$36,INDEX(Ranks!$1:$1048576,$A347,DL$1))","v":""},{"$f":"IF($A347=\"N/A\",Ref!$B$36,INDEX(Ranks!$1:$1048576,$A347,DM$1))","v":""},{"$f":"IF($A347=\"N/A\",Ref!$B$36,INDEX(Ranks!$1:$1048576,$A347,DN$1))","v":""},{"$f":"IF($A347=\"N/A\",Ref!$B$36,INDEX(Ranks!$1:$1048576,$A347,DO$1))","v":""},{"$f":"IF($A347=\"N/A\",Ref!$B$36,INDEX(Ranks!$1:$1048576,$A347,DP$1))","v":""},{"$f":"IF($A347=\"N/A\",Ref!$B$36,INDEX(Ranks!$1:$1048576,$A347,DQ$1))","v":""},{"$f":"IF($A347=\"N/A\",Ref!$B$36,INDEX(Ranks!$1:$1048576,$A347,DR$1))","v":""},{"$f":"IF($A347=\"N/A\",Ref!$B$36,INDEX(Ranks!$1:$1048576,$A347,DS$1))","v":""},{"$f":"IF($A347=\"N/A\",Ref!$B$36,INDEX(Ranks!$1:$1048576,$A347,DT$1))","v":""},{"$f":"IF($A347=\"N/A\",Ref!$B$36,INDEX(Ranks!$1:$1048576,$A347,DU$1))","v":""},{"$f":"IF($A347=\"N/A\",Ref!$B$36,INDEX(Ranks!$1:$1048576,$A347,DV$1))","v":""},{"$f":"IF($A347=\"N/A\",Ref!$B$36,INDEX(Ranks!$1:$1048576,$A347,DW$1))","v":""},{"$f":"IF($A347=\"N/A\",Ref!$B$36,INDEX(Ranks!$1:$1048576,$A347,DX$1))","v":""},{"$f":"IF($A347=\"N/A\",Ref!$B$36,INDEX(Ranks!$1:$1048576,$A347,DY$1))","v":""},{"$f":"IF($A347=\"N/A\",Ref!$B$36,INDEX(Ranks!$1:$1048576,$A347,DZ$1))","v":""},{"$f":"IF($A347=\"N/A\",Ref!$B$36,INDEX(Ranks!$1:$1048576,$A347,EA$1))","v":""},{"$f":"IF($A347=\"N/A\",Ref!$B$36,INDEX(Ranks!$1:$1048576,$A347,EB$1))","v":""}]
[{"$f":"IFERROR(MATCH('Portfolio Page'!L348,Ranks!L:L,0),\"N/A\")","v":"N/A"},null,{"$f":"IF($A348=\"N/A\",\"\",INDEX(Ranks!$1:$1048576,$A348,C$1))","v":""},{"$f":"IF($A348=\"N/A\",Ref!$B$36,INDEX(Ranks!$1:$1048576,$A348,D$1))","v":""},{"$f":"IF($A348=\"N/A\",Ref!$B$36,INDEX(Ranks!$1:$1048576,$A348,E$1))","v":""},{"$f":"IF($A348=\"N/A\",\"\",INDEX(Ranks!$1:$1048576,$A348,F$1))","v":""},{"$f":"IF($A348=\"N/A\",\"\",INDEX(Ranks!$1:$1048576,$A348,G$1))","v":""},{"$f":"IF($A348=\"N/A\",\"\",INDEX(Ranks!$1:$1048576,$A348,H$1))","v":""},{"$f":"IF($A348=\"N/A\",\"\",INDEX(Ranks!$1:$1048576,$A348,I$1))","v":""},{"$f":"IF($A348=\"N/A\",\"\",INDEX(Ranks!$1:$1048576,$A348,J$1))","v":""},{"$f":"IF($A348=\"N/A\",\"\",INDEX(Ranks!$1:$1048576,$A348,K$1))","v":""},null,{"$f":"IF($A348=\"N/A\",Ref!$B$36,INDEX(Ranks!$1:$1048576,$A348,M$1))","v":""},{"$f":"IF($A348=\"N/A\",Ref!$B$36,INDEX(Ranks!$1:$1048576,$A348,N$1))","v":""},{"$f":"IF($A348=\"N/A\",Ref!$B$36,INDEX(Ranks!$1:$1048576,$A348,O$1))","v":""},{"$f":"IF($A348=\"N/A\",Ref!$B$36,INDEX(Ranks!$1:$1048576,$A348,P$1))","v":""},{"$f":"IF($A348=\"N/A\",Ref!$B$36,INDEX(Ranks!$1:$1048576,$A348,Q$1))","v":""},{"$f":"IF($A348=\"N/A\",Ref!$B$36,INDEX(Ranks!$1:$1048576,$A348,R$1))","v":""},{"$f":"IF($A348=\"N/A\",Ref!$B$36,INDEX(Ranks!$1:$1048576,$A348,S$1))","v":""},{"$f":"IF($A348=\"N/A\",Ref!$B$36,INDEX(Ranks!$1:$1048576,$A348,T$1))","v":""},{"$f":"IF($A348=\"N/A\",Ref!$B$36,INDEX(Ranks!$1:$1048576,$A348,U$1))","v":""},{"$f":"IF($A348=\"N/A\",Ref!$B$36,INDEX(Ranks!$1:$1048576,$A348,V$1))","v":""},{"$f":"IF($A348=\"N/A\",Ref!$B$36,INDEX(Ranks!$1:$1048576,$A348,W$1))","v":""},{"$f":"IF($A348=\"N/A\",Ref!$B$36,INDEX(Ranks!$1:$1048576,$A348,X$1))","v":""},{"$f":"IF($A348=\"N/A\",Ref!$B$36,INDEX(Ranks!$1:$1048576,$A348,Y$1))","v":""},{"$f":"IF($A348=\"N/A\",Ref!$B$36,INDEX(Ranks!$1:$1048576,$A348,Z$1))","v":""},{"$f":"IF($A348=\"N/A\",Ref!$B$36,INDEX(Ranks!$1:$1048576,$A348,AA$1))","v":""},{"$f":"IF($A348=\"N/A\",Ref!$B$36,INDEX(Ranks!$1:$1048576,$A348,AB$1))","v":""},{"$f":"IF($A348=\"N/A\",Ref!$B$36,INDEX(Ranks!$1:$1048576,$A348,AC$1))","v":""},{"$f":"IF($A348=\"N/A\",Ref!$B$36,INDEX(Ranks!$1:$1048576,$A348,AD$1))","v":""},{"$f":"IF($A348=\"N/A\",Ref!$B$36,INDEX(Ranks!$1:$1048576,$A348,AE$1))","v":""},{"$f":"IF($A348=\"N/A\",Ref!$B$36,INDEX(Ranks!$1:$1048576,$A348,AF$1))","v":""},{"$f":"IF($A348=\"N/A\",Ref!$B$36,INDEX(Ranks!$1:$1048576,$A348,AG$1))","v":""},{"$f":"IF($A348=\"N/A\",Ref!$B$36,INDEX(Ranks!$1:$1048576,$A348,AH$1))","v":""},{"$f":"IF($A348=\"N/A\",Ref!$B$36,INDEX(Ranks!$1:$1048576,$A348,AI$1))","v":""},{"$f":"IF($A348=\"N/A\",Ref!$B$36,INDEX(Ranks!$1:$1048576,$A348,AJ$1))","v":""},{"$f":"IF($A348=\"N/A\",Ref!$B$36,INDEX(Ranks!$1:$1048576,$A348,AK$1))","v":""},{"$f":"IF($A348=\"N/A\",Ref!$B$36,INDEX(Ranks!$1:$1048576,$A348,AL$1))","v":""},{"$f":"IF($A348=\"N/A\",Ref!$B$36,INDEX(Ranks!$1:$1048576,$A348,AM$1))","v":""},{"$f":"IF($A348=\"N/A\",Ref!$B$36,INDEX(Ranks!$1:$1048576,$A348,AN$1))","v":""},{"$f":"IF($A348=\"N/A\",Ref!$B$36,INDEX(Ranks!$1:$1048576,$A348,AO$1))","v":""},{"$f":"IF($A348=\"N/A\",Ref!$B$36,INDEX(Ranks!$1:$1048576,$A348,AP$1))","v":""},{"$f":"IF($A348=\"N/A\",Ref!$B$36,INDEX(Ranks!$1:$1048576,$A348,AQ$1))","v":""},{"$f":"IF($A348=\"N/A\",Ref!$B$36,INDEX(Ranks!$1:$1048576,$A348,AR$1))","v":""},{"$f":"IF($A348=\"N/A\",Ref!$B$36,INDEX(Ranks!$1:$1048576,$A348,AS$1))","v":""},{"$f":"IF($A348=\"N/A\",Ref!$B$36,INDEX(Ranks!$1:$1048576,$A348,AT$1))","v":""},{"$f":"IF($A348=\"N/A\",Ref!$B$36,INDEX(Ranks!$1:$1048576,$A348,AU$1))","v":""},{"$f":"IF($A348=\"N/A\",Ref!$B$36,INDEX(Ranks!$1:$1048576,$A348,AV$1))","v":""},{"$f":"IF($A348=\"N/A\",Ref!$B$36,INDEX(Ranks!$1:$1048576,$A348,AW$1))","v":""},{"$f":"IF($A348=\"N/A\",Ref!$B$36,INDEX(Ranks!$1:$1048576,$A348,AX$1))","v":""},{"$f":"IF($A348=\"N/A\",Ref!$B$36,INDEX(Ranks!$1:$1048576,$A348,AY$1))","v":""},{"$f":"IF($A348=\"N/A\",Ref!$B$36,INDEX(Ranks!$1:$1048576,$A348,AZ$1))","v":""},{"$f":"IF($A348=\"N/A\",Ref!$B$36,INDEX(Ranks!$1:$1048576,$A348,BA$1))","v":""},{"$f":"IF($A348=\"N/A\",Ref!$B$36,INDEX(Ranks!$1:$1048576,$A348,BB$1))","v":""},{"$f":"IF($A348=\"N/A\",Ref!$B$36,INDEX(Ranks!$1:$1048576,$A348,BC$1))","v":""},{"$f":"IF($A348=\"N/A\",Ref!$B$36,INDEX(Ranks!$1:$1048576,$A348,BD$1))","v":""},{"$f":"IF($A348=\"N/A\",Ref!$B$36,INDEX(Ranks!$1:$1048576,$A348,BE$1))","v":""},{"$f":"IF($A348=\"N/A\",Ref!$B$36,INDEX(Ranks!$1:$1048576,$A348,BF$1))","v":""},{"$f":"IF($A348=\"N/A\",Ref!$B$36,INDEX(Ranks!$1:$1048576,$A348,BG$1))","v":""},{"$f":"IF($A348=\"N/A\",Ref!$B$36,INDEX(Ranks!$1:$1048576,$A348,BH$1))","v":""},{"$f":"IF($A348=\"N/A\",Ref!$B$36,INDEX(Ranks!$1:$1048576,$A348,BI$1))","v":""},{"$f":"IF($A348=\"N/A\",Ref!$B$36,INDEX(Ranks!$1:$1048576,$A348,BJ$1))","v":""},{"$f":"IF($A348=\"N/A\",Ref!$B$36,INDEX(Ranks!$1:$1048576,$A348,BK$1))","v":""},{"$f":"IF($A348=\"N/A\",Ref!$B$36,INDEX(Ranks!$1:$1048576,$A348,BL$1))","v":""},{"$f":"IF($A348=\"N/A\",Ref!$B$36,INDEX(Ranks!$1:$1048576,$A348,BM$1))","v":""},{"$f":"IF($A348=\"N/A\",Ref!$B$36,INDEX(Ranks!$1:$1048576,$A348,BN$1))","v":""},{"$f":"IF($A348=\"N/A\",Ref!$B$36,INDEX(Ranks!$1:$1048576,$A348,BO$1))","v":""},{"$f":"IF($A348=\"N/A\",Ref!$B$36,INDEX(Ranks!$1:$1048576,$A348,BP$1))","v":""},{"$f":"IF($A348=\"N/A\",Ref!$B$36,INDEX(Ranks!$1:$1048576,$A348,BQ$1))","v":""},{"$f":"IF($A348=\"N/A\",Ref!$B$36,INDEX(Ranks!$1:$1048576,$A348,BR$1))","v":""},{"$f":"IF($A348=\"N/A\",Ref!$B$36,INDEX(Ranks!$1:$1048576,$A348,BS$1))","v":""},{"$f":"IF($A348=\"N/A\",Ref!$B$36,INDEX(Ranks!$1:$1048576,$A348,BT$1))","v":""},{"$f":"IF($A348=\"N/A\",Ref!$B$36,INDEX(Ranks!$1:$1048576,$A348,BU$1))","v":""},{"$f":"IF($A348=\"N/A\",Ref!$B$36,INDEX(Ranks!$1:$1048576,$A348,BV$1))","v":""},{"$f":"IF($A348=\"N/A\",Ref!$B$36,INDEX(Ranks!$1:$1048576,$A348,BW$1))","v":""},{"$f":"IF($A348=\"N/A\",Ref!$B$36,INDEX(Ranks!$1:$1048576,$A348,BX$1))","v":""},{"$f":"IF($A348=\"N/A\",Ref!$B$36,INDEX(Ranks!$1:$1048576,$A348,BY$1))","v":""},{"$f":"IF($A348=\"N/A\",Ref!$B$36,INDEX(Ranks!$1:$1048576,$A348,BZ$1))","v":""},{"$f":"IF($A348=\"N/A\",Ref!$B$36,INDEX(Ranks!$1:$1048576,$A348,CA$1))","v":""},{"$f":"IF($A348=\"N/A\",Ref!$B$36,INDEX(Ranks!$1:$1048576,$A348,CB$1))","v":""},{"$f":"IF($A348=\"N/A\",Ref!$B$36,INDEX(Ranks!$1:$1048576,$A348,CC$1))","v":""},{"$f":"IF($A348=\"N/A\",Ref!$B$36,INDEX(Ranks!$1:$1048576,$A348,CD$1))","v":""},{"$f":"IF($A348=\"N/A\",Ref!$B$36,INDEX(Ranks!$1:$1048576,$A348,CE$1))","v":""},{"$f":"IF($A348=\"N/A\",Ref!$B$36,INDEX(Ranks!$1:$1048576,$A348,CF$1))","v":""},{"$f":"IF($A348=\"N/A\",Ref!$B$36,INDEX(Ranks!$1:$1048576,$A348,CG$1))","v":""},{"$f":"IF($A348=\"N/A\",Ref!$B$36,INDEX(Ranks!$1:$1048576,$A348,CH$1))","v":""},{"$f":"IF($A348=\"N/A\",Ref!$B$36,INDEX(Ranks!$1:$1048576,$A348,CI$1))","v":""},{"$f":"IF($A348=\"N/A\",Ref!$B$36,INDEX(Ranks!$1:$1048576,$A348,CJ$1))","v":""},{"$f":"IF($A348=\"N/A\",Ref!$B$36,INDEX(Ranks!$1:$1048576,$A348,CK$1))","v":""},{"$f":"IF($A348=\"N/A\",Ref!$B$36,INDEX(Ranks!$1:$1048576,$A348,CL$1))","v":""},{"$f":"IF($A348=\"N/A\",Ref!$B$36,INDEX(Ranks!$1:$1048576,$A348,CM$1))","v":""},{"$f":"IF($A348=\"N/A\",Ref!$B$36,INDEX(Ranks!$1:$1048576,$A348,CN$1))","v":""},{"$f":"IF($A348=\"N/A\",Ref!$B$36,INDEX(Ranks!$1:$1048576,$A348,CO$1))","v":""},{"$f":"IF($A348=\"N/A\",Ref!$B$36,INDEX(Ranks!$1:$1048576,$A348,CP$1))","v":""},{"$f":"IF($A348=\"N/A\",Ref!$B$36,INDEX(Ranks!$1:$1048576,$A348,CQ$1))","v":""},{"$f":"IF($A348=\"N/A\",Ref!$B$36,INDEX(Ranks!$1:$1048576,$A348,CR$1))","v":""},{"$f":"IF($A348=\"N/A\",Ref!$B$36,INDEX(Ranks!$1:$1048576,$A348,CS$1))","v":""},{"$f":"IF($A348=\"N/A\",Ref!$B$36,INDEX(Ranks!$1:$1048576,$A348,CT$1))","v":""},{"$f":"IF($A348=\"N/A\",Ref!$B$36,INDEX(Ranks!$1:$1048576,$A348,CU$1))","v":""},{"$f":"IF($A348=\"N/A\",Ref!$B$36,INDEX(Ranks!$1:$1048576,$A348,CV$1))","v":""},{"$f":"IF($A348=\"N/A\",Ref!$B$36,INDEX(Ranks!$1:$1048576,$A348,CW$1))","v":""},{"$f":"IF($A348=\"N/A\",Ref!$B$36,INDEX(Ranks!$1:$1048576,$A348,CX$1))","v":""},{"$f":"IF($A348=\"N/A\",Ref!$B$36,INDEX(Ranks!$1:$1048576,$A348,CY$1))","v":""},{"$f":"IF($A348=\"N/A\",Ref!$B$36,INDEX(Ranks!$1:$1048576,$A348,CZ$1))","v":""},{"$f":"IF($A348=\"N/A\",Ref!$B$36,INDEX(Ranks!$1:$1048576,$A348,DA$1))","v":""},{"$f":"IF($A348=\"N/A\",Ref!$B$36,INDEX(Ranks!$1:$1048576,$A348,DB$1))","v":""},{"$f":"IF($A348=\"N/A\",Ref!$B$36,INDEX(Ranks!$1:$1048576,$A348,DC$1))","v":""},{"$f":"IF($A348=\"N/A\",Ref!$B$36,INDEX(Ranks!$1:$1048576,$A348,DD$1))","v":""},{"$f":"IF($A348=\"N/A\",Ref!$B$36,INDEX(Ranks!$1:$1048576,$A348,DE$1))","v":""},{"$f":"IF($A348=\"N/A\",Ref!$B$36,INDEX(Ranks!$1:$1048576,$A348,DF$1))","v":""},{"$f":"IF($A348=\"N/A\",Ref!$B$36,INDEX(Ranks!$1:$1048576,$A348,DG$1))","v":""},{"$f":"IF($A348=\"N/A\",Ref!$B$36,INDEX(Ranks!$1:$1048576,$A348,DH$1))","v":""},{"$f":"IF($A348=\"N/A\",Ref!$B$36,INDEX(Ranks!$1:$1048576,$A348,DI$1))","v":""},{"$f":"IF($A348=\"N/A\",Ref!$B$36,INDEX(Ranks!$1:$1048576,$A348,DJ$1))","v":""},{"$f":"IF($A348=\"N/A\",Ref!$B$36,INDEX(Ranks!$1:$1048576,$A348,DK$1))","v":""},{"$f":"IF($A348=\"N/A\",Ref!$B$36,INDEX(Ranks!$1:$1048576,$A348,DL$1))","v":""},{"$f":"IF($A348=\"N/A\",Ref!$B$36,INDEX(Ranks!$1:$1048576,$A348,DM$1))","v":""},{"$f":"IF($A348=\"N/A\",Ref!$B$36,INDEX(Ranks!$1:$1048576,$A348,DN$1))","v":""},{"$f":"IF($A348=\"N/A\",Ref!$B$36,INDEX(Ranks!$1:$1048576,$A348,DO$1))","v":""},{"$f":"IF($A348=\"N/A\",Ref!$B$36,INDEX(Ranks!$1:$1048576,$A348,DP$1))","v":""},{"$f":"IF($A348=\"N/A\",Ref!$B$36,INDEX(Ranks!$1:$1048576,$A348,DQ$1))","v":""},{"$f":"IF($A348=\"N/A\",Ref!$B$36,INDEX(Ranks!$1:$1048576,$A348,DR$1))","v":""},{"$f":"IF($A348=\"N/A\",Ref!$B$36,INDEX(Ranks!$1:$1048576,$A348,DS$1))","v":""},{"$f":"IF($A348=\"N/A\",Ref!$B$36,INDEX(Ranks!$1:$1048576,$A348,DT$1))","v":""},{"$f":"IF($A348=\"N/A\",Ref!$B$36,INDEX(Ranks!$1:$1048576,$A348,DU$1))","v":""},{"$f":"IF($A348=\"N/A\",Ref!$B$36,INDEX(Ranks!$1:$1048576,$A348,DV$1))","v":""},{"$f":"IF($A348=\"N/A\",Ref!$B$36,INDEX(Ranks!$1:$1048576,$A348,DW$1))","v":""},{"$f":"IF($A348=\"N/A\",Ref!$B$36,INDEX(Ranks!$1:$1048576,$A348,DX$1))","v":""},{"$f":"IF($A348=\"N/A\",Ref!$B$36,INDEX(Ranks!$1:$1048576,$A348,DY$1))","v":""},{"$f":"IF($A348=\"N/A\",Ref!$B$36,INDEX(Ranks!$1:$1048576,$A348,DZ$1))","v":""},{"$f":"IF($A348=\"N/A\",Ref!$B$36,INDEX(Ranks!$1:$1048576,$A348,EA$1))","v":""},{"$f":"IF($A348=\"N/A\",Ref!$B$36,INDEX(Ranks!$1:$1048576,$A348,EB$1))","v":""}]
[{"$f":"IFERROR(MATCH('Portfolio Page'!L349,Ranks!L:L,0),\"N/A\")","v":"N/A"},null,{"$f":"IF($A349=\"N/A\",\"\",INDEX(Ranks!$1:$1048576,$A349,C$1))","v":""},{"$f":"IF($A349=\"N/A\",Ref!$B$36,INDEX(Ranks!$1:$1048576,$A349,D$1))","v":""},{"$f":"IF($A349=\"N/A\",Ref!$B$36,INDEX(Ranks!$1:$1048576,$A349,E$1))","v":""},{"$f":"IF($A349=\"N/A\",\"\",INDEX(Ranks!$1:$1048576,$A349,F$1))","v":""},{"$f":"IF($A349=\"N/A\",\"\",INDEX(Ranks!$1:$1048576,$A349,G$1))","v":""},{"$f":"IF($A349=\"N/A\",\"\",INDEX(Ranks!$1:$1048576,$A349,H$1))","v":""},{"$f":"IF($A349=\"N/A\",\"\",INDEX(Ranks!$1:$1048576,$A349,I$1))","v":""},{"$f":"IF($A349=\"N/A\",\"\",INDEX(Ranks!$1:$1048576,$A349,J$1))","v":""},{"$f":"IF($A349=\"N/A\",\"\",INDEX(Ranks!$1:$1048576,$A349,K$1))","v":""},null,{"$f":"IF($A349=\"N/A\",Ref!$B$36,INDEX(Ranks!$1:$1048576,$A349,M$1))","v":""},{"$f":"IF($A349=\"N/A\",Ref!$B$36,INDEX(Ranks!$1:$1048576,$A349,N$1))","v":""},{"$f":"IF($A349=\"N/A\",Ref!$B$36,INDEX(Ranks!$1:$1048576,$A349,O$1))","v":""},{"$f":"IF($A349=\"N/A\",Ref!$B$36,INDEX(Ranks!$1:$1048576,$A349,P$1))","v":""},{"$f":"IF($A349=\"N/A\",Ref!$B$36,INDEX(Ranks!$1:$1048576,$A349,Q$1))","v":""},{"$f":"IF($A349=\"N/A\",Ref!$B$36,INDEX(Ranks!$1:$1048576,$A349,R$1))","v":""},{"$f":"IF($A349=\"N/A\",Ref!$B$36,INDEX(Ranks!$1:$1048576,$A349,S$1))","v":""},{"$f":"IF($A349=\"N/A\",Ref!$B$36,INDEX(Ranks!$1:$1048576,$A349,T$1))","v":""},{"$f":"IF($A349=\"N/A\",Ref!$B$36,INDEX(Ranks!$1:$1048576,$A349,U$1))","v":""},{"$f":"IF($A349=\"N/A\",Ref!$B$36,INDEX(Ranks!$1:$1048576,$A349,V$1))","v":""},{"$f":"IF($A349=\"N/A\",Ref!$B$36,INDEX(Ranks!$1:$1048576,$A349,W$1))","v":""},{"$f":"IF($A349=\"N/A\",Ref!$B$36,INDEX(Ranks!$1:$1048576,$A349,X$1))","v":""},{"$f":"IF($A349=\"N/A\",Ref!$B$36,INDEX(Ranks!$1:$1048576,$A349,Y$1))","v":""},{"$f":"IF($A349=\"N/A\",Ref!$B$36,INDEX(Ranks!$1:$1048576,$A349,Z$1))","v":""},{"$f":"IF($A349=\"N/A\",Ref!$B$36,INDEX(Ranks!$1:$1048576,$A349,AA$1))","v":""},{"$f":"IF($A349=\"N/A\",Ref!$B$36,INDEX(Ranks!$1:$1048576,$A349,AB$1))","v":""},{"$f":"IF($A349=\"N/A\",Ref!$B$36,INDEX(Ranks!$1:$1048576,$A349,AC$1))","v":""},{"$f":"IF($A349=\"N/A\",Ref!$B$36,INDEX(Ranks!$1:$1048576,$A349,AD$1))","v":""},{"$f":"IF($A349=\"N/A\",Ref!$B$36,INDEX(Ranks!$1:$1048576,$A349,AE$1))","v":""},{"$f":"IF($A349=\"N/A\",Ref!$B$36,INDEX(Ranks!$1:$1048576,$A349,AF$1))","v":""},{"$f":"IF($A349=\"N/A\",Ref!$B$36,INDEX(Ranks!$1:$1048576,$A349,AG$1))","v":""},{"$f":"IF($A349=\"N/A\",Ref!$B$36,INDEX(Ranks!$1:$1048576,$A349,AH$1))","v":""},{"$f":"IF($A349=\"N/A\",Ref!$B$36,INDEX(Ranks!$1:$1048576,$A349,AI$1))","v":""},{"$f":"IF($A349=\"N/A\",Ref!$B$36,INDEX(Ranks!$1:$1048576,$A349,AJ$1))","v":""},{"$f":"IF($A349=\"N/A\",Ref!$B$36,INDEX(Ranks!$1:$1048576,$A349,AK$1))","v":""},{"$f":"IF($A349=\"N/A\",Ref!$B$36,INDEX(Ranks!$1:$1048576,$A349,AL$1))","v":""},{"$f":"IF($A349=\"N/A\",Ref!$B$36,INDEX(Ranks!$1:$1048576,$A349,AM$1))","v":""},{"$f":"IF($A349=\"N/A\",Ref!$B$36,INDEX(Ranks!$1:$1048576,$A349,AN$1))","v":""},{"$f":"IF($A349=\"N/A\",Ref!$B$36,INDEX(Ranks!$1:$1048576,$A349,AO$1))","v":""},{"$f":"IF($A349=\"N/A\",Ref!$B$36,INDEX(Ranks!$1:$1048576,$A349,AP$1))","v":""},{"$f":"IF($A349=\"N/A\",Ref!$B$36,INDEX(Ranks!$1:$1048576,$A349,AQ$1))","v":""},{"$f":"IF($A349=\"N/A\",Ref!$B$36,INDEX(Ranks!$1:$1048576,$A349,AR$1))","v":""},{"$f":"IF($A349=\"N/A\",Ref!$B$36,INDEX(Ranks!$1:$1048576,$A349,AS$1))","v":""},{"$f":"IF($A349=\"N/A\",Ref!$B$36,INDEX(Ranks!$1:$1048576,$A349,AT$1))","v":""},{"$f":"IF($A349=\"N/A\",Ref!$B$36,INDEX(Ranks!$1:$1048576,$A349,AU$1))","v":""},{"$f":"IF($A349=\"N/A\",Ref!$B$36,INDEX(Ranks!$1:$1048576,$A349,AV$1))","v":""},{"$f":"IF($A349=\"N/A\",Ref!$B$36,INDEX(Ranks!$1:$1048576,$A349,AW$1))","v":""},{"$f":"IF($A349=\"N/A\",Ref!$B$36,INDEX(Ranks!$1:$1048576,$A349,AX$1))","v":""},{"$f":"IF($A349=\"N/A\",Ref!$B$36,INDEX(Ranks!$1:$1048576,$A349,AY$1))","v":""},{"$f":"IF($A349=\"N/A\",Ref!$B$36,INDEX(Ranks!$1:$1048576,$A349,AZ$1))","v":""},{"$f":"IF($A349=\"N/A\",Ref!$B$36,INDEX(Ranks!$1:$1048576,$A349,BA$1))","v":""},{"$f":"IF($A349=\"N/A\",Ref!$B$36,INDEX(Ranks!$1:$1048576,$A349,BB$1))","v":""},{"$f":"IF($A349=\"N/A\",Ref!$B$36,INDEX(Ranks!$1:$1048576,$A349,BC$1))","v":""},{"$f":"IF($A349=\"N/A\",Ref!$B$36,INDEX(Ranks!$1:$1048576,$A349,BD$1))","v":""},{"$f":"IF($A349=\"N/A\",Ref!$B$36,INDEX(Ranks!$1:$1048576,$A349,BE$1))","v":""},{"$f":"IF($A349=\"N/A\",Ref!$B$36,INDEX(Ranks!$1:$1048576,$A349,BF$1))","v":""},{"$f":"IF($A349=\"N/A\",Ref!$B$36,INDEX(Ranks!$1:$1048576,$A349,BG$1))","v":""},{"$f":"IF($A349=\"N/A\",Ref!$B$36,INDEX(Ranks!$1:$1048576,$A349,BH$1))","v":""},{"$f":"IF($A349=\"N/A\",Ref!$B$36,INDEX(Ranks!$1:$1048576,$A349,BI$1))","v":""},{"$f":"IF($A349=\"N/A\",Ref!$B$36,INDEX(Ranks!$1:$1048576,$A349,BJ$1))","v":""},{"$f":"IF($A349=\"N/A\",Ref!$B$36,INDEX(Ranks!$1:$1048576,$A349,BK$1))","v":""},{"$f":"IF($A349=\"N/A\",Ref!$B$36,INDEX(Ranks!$1:$1048576,$A349,BL$1))","v":""},{"$f":"IF($A349=\"N/A\",Ref!$B$36,INDEX(Ranks!$1:$1048576,$A349,BM$1))","v":""},{"$f":"IF($A349=\"N/A\",Ref!$B$36,INDEX(Ranks!$1:$1048576,$A349,BN$1))","v":""},{"$f":"IF($A349=\"N/A\",Ref!$B$36,INDEX(Ranks!$1:$1048576,$A349,BO$1))","v":""},{"$f":"IF($A349=\"N/A\",Ref!$B$36,INDEX(Ranks!$1:$1048576,$A349,BP$1))","v":""},{"$f":"IF($A349=\"N/A\",Ref!$B$36,INDEX(Ranks!$1:$1048576,$A349,BQ$1))","v":""},{"$f":"IF($A349=\"N/A\",Ref!$B$36,INDEX(Ranks!$1:$1048576,$A349,BR$1))","v":""},{"$f":"IF($A349=\"N/A\",Ref!$B$36,INDEX(Ranks!$1:$1048576,$A349,BS$1))","v":""},{"$f":"IF($A349=\"N/A\",Ref!$B$36,INDEX(Ranks!$1:$1048576,$A349,BT$1))","v":""},{"$f":"IF($A349=\"N/A\",Ref!$B$36,INDEX(Ranks!$1:$1048576,$A349,BU$1))","v":""},{"$f":"IF($A349=\"N/A\",Ref!$B$36,INDEX(Ranks!$1:$1048576,$A349,BV$1))","v":""},{"$f":"IF($A349=\"N/A\",Ref!$B$36,INDEX(Ranks!$1:$1048576,$A349,BW$1))","v":""},{"$f":"IF($A349=\"N/A\",Ref!$B$36,INDEX(Ranks!$1:$1048576,$A349,BX$1))","v":""},{"$f":"IF($A349=\"N/A\",Ref!$B$36,INDEX(Ranks!$1:$1048576,$A349,BY$1))","v":""},{"$f":"IF($A349=\"N/A\",Ref!$B$36,INDEX(Ranks!$1:$1048576,$A349,BZ$1))","v":""},{"$f":"IF($A349=\"N/A\",Ref!$B$36,INDEX(Ranks!$1:$1048576,$A349,CA$1))","v":""},{"$f":"IF($A349=\"N/A\",Ref!$B$36,INDEX(Ranks!$1:$1048576,$A349,CB$1))","v":""},{"$f":"IF($A349=\"N/A\",Ref!$B$36,INDEX(Ranks!$1:$1048576,$A349,CC$1))","v":""},{"$f":"IF($A349=\"N/A\",Ref!$B$36,INDEX(Ranks!$1:$1048576,$A349,CD$1))","v":""},{"$f":"IF($A349=\"N/A\",Ref!$B$36,INDEX(Ranks!$1:$1048576,$A349,CE$1))","v":""},{"$f":"IF($A349=\"N/A\",Ref!$B$36,INDEX(Ranks!$1:$1048576,$A349,CF$1))","v":""},{"$f":"IF($A349=\"N/A\",Ref!$B$36,INDEX(Ranks!$1:$1048576,$A349,CG$1))","v":""},{"$f":"IF($A349=\"N/A\",Ref!$B$36,INDEX(Ranks!$1:$1048576,$A349,CH$1))","v":""},{"$f":"IF($A349=\"N/A\",Ref!$B$36,INDEX(Ranks!$1:$1048576,$A349,CI$1))","v":""},{"$f":"IF($A349=\"N/A\",Ref!$B$36,INDEX(Ranks!$1:$1048576,$A349,CJ$1))","v":""},{"$f":"IF($A349=\"N/A\",Ref!$B$36,INDEX(Ranks!$1:$1048576,$A349,CK$1))","v":""},{"$f":"IF($A349=\"N/A\",Ref!$B$36,INDEX(Ranks!$1:$1048576,$A349,CL$1))","v":""},{"$f":"IF($A349=\"N/A\",Ref!$B$36,INDEX(Ranks!$1:$1048576,$A349,CM$1))","v":""},{"$f":"IF($A349=\"N/A\",Ref!$B$36,INDEX(Ranks!$1:$1048576,$A349,CN$1))","v":""},{"$f":"IF($A349=\"N/A\",Ref!$B$36,INDEX(Ranks!$1:$1048576,$A349,CO$1))","v":""},{"$f":"IF($A349=\"N/A\",Ref!$B$36,INDEX(Ranks!$1:$1048576,$A349,CP$1))","v":""},{"$f":"IF($A349=\"N/A\",Ref!$B$36,INDEX(Ranks!$1:$1048576,$A349,CQ$1))","v":""},{"$f":"IF($A349=\"N/A\",Ref!$B$36,INDEX(Ranks!$1:$1048576,$A349,CR$1))","v":""},{"$f":"IF($A349=\"N/A\",Ref!$B$36,INDEX(Ranks!$1:$1048576,$A349,CS$1))","v":""},{"$f":"IF($A349=\"N/A\",Ref!$B$36,INDEX(Ranks!$1:$1048576,$A349,CT$1))","v":""},{"$f":"IF($A349=\"N/A\",Ref!$B$36,INDEX(Ranks!$1:$1048576,$A349,CU$1))","v":""},{"$f":"IF($A349=\"N/A\",Ref!$B$36,INDEX(Ranks!$1:$1048576,$A349,CV$1))","v":""},{"$f":"IF($A349=\"N/A\",Ref!$B$36,INDEX(Ranks!$1:$1048576,$A349,CW$1))","v":""},{"$f":"IF($A349=\"N/A\",Ref!$B$36,INDEX(Ranks!$1:$1048576,$A349,CX$1))","v":""},{"$f":"IF($A349=\"N/A\",Ref!$B$36,INDEX(Ranks!$1:$1048576,$A349,CY$1))","v":""},{"$f":"IF($A349=\"N/A\",Ref!$B$36,INDEX(Ranks!$1:$1048576,$A349,CZ$1))","v":""},{"$f":"IF($A349=\"N/A\",Ref!$B$36,INDEX(Ranks!$1:$1048576,$A349,DA$1))","v":""},{"$f":"IF($A349=\"N/A\",Ref!$B$36,INDEX(Ranks!$1:$1048576,$A349,DB$1))","v":""},{"$f":"IF($A349=\"N/A\",Ref!$B$36,INDEX(Ranks!$1:$1048576,$A349,DC$1))","v":""},{"$f":"IF($A349=\"N/A\",Ref!$B$36,INDEX(Ranks!$1:$1048576,$A349,DD$1))","v":""},{"$f":"IF($A349=\"N/A\",Ref!$B$36,INDEX(Ranks!$1:$1048576,$A349,DE$1))","v":""},{"$f":"IF($A349=\"N/A\",Ref!$B$36,INDEX(Ranks!$1:$1048576,$A349,DF$1))","v":""},{"$f":"IF($A349=\"N/A\",Ref!$B$36,INDEX(Ranks!$1:$1048576,$A349,DG$1))","v":""},{"$f":"IF($A349=\"N/A\",Ref!$B$36,INDEX(Ranks!$1:$1048576,$A349,DH$1))","v":""},{"$f":"IF($A349=\"N/A\",Ref!$B$36,INDEX(Ranks!$1:$1048576,$A349,DI$1))","v":""},{"$f":"IF($A349=\"N/A\",Ref!$B$36,INDEX(Ranks!$1:$1048576,$A349,DJ$1))","v":""},{"$f":"IF($A349=\"N/A\",Ref!$B$36,INDEX(Ranks!$1:$1048576,$A349,DK$1))","v":""},{"$f":"IF($A349=\"N/A\",Ref!$B$36,INDEX(Ranks!$1:$1048576,$A349,DL$1))","v":""},{"$f":"IF($A349=\"N/A\",Ref!$B$36,INDEX(Ranks!$1:$1048576,$A349,DM$1))","v":""},{"$f":"IF($A349=\"N/A\",Ref!$B$36,INDEX(Ranks!$1:$1048576,$A349,DN$1))","v":""},{"$f":"IF($A349=\"N/A\",Ref!$B$36,INDEX(Ranks!$1:$1048576,$A349,DO$1))","v":""},{"$f":"IF($A349=\"N/A\",Ref!$B$36,INDEX(Ranks!$1:$1048576,$A349,DP$1))","v":""},{"$f":"IF($A349=\"N/A\",Ref!$B$36,INDEX(Ranks!$1:$1048576,$A349,DQ$1))","v":""},{"$f":"IF($A349=\"N/A\",Ref!$B$36,INDEX(Ranks!$1:$1048576,$A349,DR$1))","v":""},{"$f":"IF($A349=\"N/A\",Ref!$B$36,INDEX(Ranks!$1:$1048576,$A349,DS$1))","v":""},{"$f":"IF($A349=\"N/A\",Ref!$B$36,INDEX(Ranks!$1:$1048576,$A349,DT$1))","v":""},{"$f":"IF($A349=\"N/A\",Ref!$B$36,INDEX(Ranks!$1:$1048576,$A349,DU$1))","v":""},{"$f":"IF($A349=\"N/A\",Ref!$B$36,INDEX(Ranks!$1:$1048576,$A349,DV$1))","v":""},{"$f":"IF($A349=\"N/A\",Ref!$B$36,INDEX(Ranks!$1:$1048576,$A349,DW$1))","v":""},{"$f":"IF($A349=\"N/A\",Ref!$B$36,INDEX(Ranks!$1:$1048576,$A349,DX$1))","v":""},{"$f":"IF($A349=\"N/A\",Ref!$B$36,INDEX(Ranks!$1:$1048576,$A349,DY$1))","v":""},{"$f":"IF($A349=\"N/A\",Ref!$B$36,INDEX(Ranks!$1:$1048576,$A349,DZ$1))","v":""},{"$f":"IF($A349=\"N/A\",Ref!$B$36,INDEX(Ranks!$1:$1048576,$A349,EA$1))","v":""},{"$f":"IF($A349=\"N/A\",Ref!$B$36,INDEX(Ranks!$1:$1048576,$A349,EB$1))","v":""}]
[{"$f":"IFERROR(MATCH('Portfolio Page'!L350,Ranks!L:L,0),\"N/A\")","v":"N/A"},null,{"$f":"IF($A350=\"N/A\",\"\",INDEX(Ranks!$1:$1048576,$A350,C$1))","v":""},{"$f":"IF($A350=\"N/A\",Ref!$B$36,INDEX(Ranks!$1:$1048576,$A350,D$1))","v":""},{"$f":"IF($A350=\"N/A\",Ref!$B$36,INDEX(Ranks!$1:$1048576,$A350,E$1))","v":""},{"$f":"IF($A350=\"N/A\",\"\",INDEX(Ranks!$1:$1048576,$A350,F$1))","v":""},{"$f":"IF($A350=\"N/A\",\"\",INDEX(Ranks!$1:$1048576,$A350,G$1))","v":""},{"$f":"IF($A350=\"N/A\",\"\",INDEX(Ranks!$1:$1048576,$A350,H$1))","v":""},{"$f":"IF($A350=\"N/A\",\"\",INDEX(Ranks!$1:$1048576,$A350,I$1))","v":""},{"$f":"IF($A350=\"N/A\",\"\",INDEX(Ranks!$1:$1048576,$A350,J$1))","v":""},{"$f":"IF($A350=\"N/A\",\"\",INDEX(Ranks!$1:$1048576,$A350,K$1))","v":""},null,{"$f":"IF($A350=\"N/A\",Ref!$B$36,INDEX(Ranks!$1:$1048576,$A350,M$1))","v":""},{"$f":"IF($A350=\"N/A\",Ref!$B$36,INDEX(Ranks!$1:$1048576,$A350,N$1))","v":""},{"$f":"IF($A350=\"N/A\",Ref!$B$36,INDEX(Ranks!$1:$1048576,$A350,O$1))","v":""},{"$f":"IF($A350=\"N/A\",Ref!$B$36,INDEX(Ranks!$1:$1048576,$A350,P$1))","v":""},{"$f":"IF($A350=\"N/A\",Ref!$B$36,INDEX(Ranks!$1:$1048576,$A350,Q$1))","v":""},{"$f":"IF($A350=\"N/A\",Ref!$B$36,INDEX(Ranks!$1:$1048576,$A350,R$1))","v":""},{"$f":"IF($A350=\"N/A\",Ref!$B$36,INDEX(Ranks!$1:$1048576,$A350,S$1))","v":""},{"$f":"IF($A350=\"N/A\",Ref!$B$36,INDEX(Ranks!$1:$1048576,$A350,T$1))","v":""},{"$f":"IF($A350=\"N/A\",Ref!$B$36,INDEX(Ranks!$1:$1048576,$A350,U$1))","v":""},{"$f":"IF($A350=\"N/A\",Ref!$B$36,INDEX(Ranks!$1:$1048576,$A350,V$1))","v":""},{"$f":"IF($A350=\"N/A\",Ref!$B$36,INDEX(Ranks!$1:$1048576,$A350,W$1))","v":""},{"$f":"IF($A350=\"N/A\",Ref!$B$36,INDEX(Ranks!$1:$1048576,$A350,X$1))","v":""},{"$f":"IF($A350=\"N/A\",Ref!$B$36,INDEX(Ranks!$1:$1048576,$A350,Y$1))","v":""},{"$f":"IF($A350=\"N/A\",Ref!$B$36,INDEX(Ranks!$1:$1048576,$A350,Z$1))","v":""},{"$f":"IF($A350=\"N/A\",Ref!$B$36,INDEX(Ranks!$1:$1048576,$A350,AA$1))","v":""},{"$f":"IF($A350=\"N/A\",Ref!$B$36,INDEX(Ranks!$1:$1048576,$A350,AB$1))","v":""},{"$f":"IF($A350=\"N/A\",Ref!$B$36,INDEX(Ranks!$1:$1048576,$A350,AC$1))","v":""},{"$f":"IF($A350=\"N/A\",Ref!$B$36,INDEX(Ranks!$1:$1048576,$A350,AD$1))","v":""},{"$f":"IF($A350=\"N/A\",Ref!$B$36,INDEX(Ranks!$1:$1048576,$A350,AE$1))","v":""},{"$f":"IF($A350=\"N/A\",Ref!$B$36,INDEX(Ranks!$1:$1048576,$A350,AF$1))","v":""},{"$f":"IF($A350=\"N/A\",Ref!$B$36,INDEX(Ranks!$1:$1048576,$A350,AG$1))","v":""},{"$f":"IF($A350=\"N/A\",Ref!$B$36,INDEX(Ranks!$1:$1048576,$A350,AH$1))","v":""},{"$f":"IF($A350=\"N/A\",Ref!$B$36,INDEX(Ranks!$1:$1048576,$A350,AI$1))","v":""},{"$f":"IF($A350=\"N/A\",Ref!$B$36,INDEX(Ranks!$1:$1048576,$A350,AJ$1))","v":""},{"$f":"IF($A350=\"N/A\",Ref!$B$36,INDEX(Ranks!$1:$1048576,$A350,AK$1))","v":""},{"$f":"IF($A350=\"N/A\",Ref!$B$36,INDEX(Ranks!$1:$1048576,$A350,AL$1))","v":""},{"$f":"IF($A350=\"N/A\",Ref!$B$36,INDEX(Ranks!$1:$1048576,$A350,AM$1))","v":""},{"$f":"IF($A350=\"N/A\",Ref!$B$36,INDEX(Ranks!$1:$1048576,$A350,AN$1))","v":""},{"$f":"IF($A350=\"N/A\",Ref!$B$36,INDEX(Ranks!$1:$1048576,$A350,AO$1))","v":""},{"$f":"IF($A350=\"N/A\",Ref!$B$36,INDEX(Ranks!$1:$1048576,$A350,AP$1))","v":""},{"$f":"IF($A350=\"N/A\",Ref!$B$36,INDEX(Ranks!$1:$1048576,$A350,AQ$1))","v":""},{"$f":"IF($A350=\"N/A\",Ref!$B$36,INDEX(Ranks!$1:$1048576,$A350,AR$1))","v":""},{"$f":"IF($A350=\"N/A\",Ref!$B$36,INDEX(Ranks!$1:$1048576,$A350,AS$1))","v":""},{"$f":"IF($A350=\"N/A\",Ref!$B$36,INDEX(Ranks!$1:$1048576,$A350,AT$1))","v":""},{"$f":"IF($A350=\"N/A\",Ref!$B$36,INDEX(Ranks!$1:$1048576,$A350,AU$1))","v":""},{"$f":"IF($A350=\"N/A\",Ref!$B$36,INDEX(Ranks!$1:$1048576,$A350,AV$1))","v":""},{"$f":"IF($A350=\"N/A\",Ref!$B$36,INDEX(Ranks!$1:$1048576,$A350,AW$1))","v":""},{"$f":"IF($A350=\"N/A\",Ref!$B$36,INDEX(Ranks!$1:$1048576,$A350,AX$1))","v":""},{"$f":"IF($A350=\"N/A\",Ref!$B$36,INDEX(Ranks!$1:$1048576,$A350,AY$1))","v":""},{"$f":"IF($A350=\"N/A\",Ref!$B$36,INDEX(Ranks!$1:$1048576,$A350,AZ$1))","v":""},{"$f":"IF($A350=\"N/A\",Ref!$B$36,INDEX(Ranks!$1:$1048576,$A350,BA$1))","v":""},{"$f":"IF($A350=\"N/A\",Ref!$B$36,INDEX(Ranks!$1:$1048576,$A350,BB$1))","v":""},{"$f":"IF($A350=\"N/A\",Ref!$B$36,INDEX(Ranks!$1:$1048576,$A350,BC$1))","v":""},{"$f":"IF($A350=\"N/A\",Ref!$B$36,INDEX(Ranks!$1:$1048576,$A350,BD$1))","v":""},{"$f":"IF($A350=\"N/A\",Ref!$B$36,INDEX(Ranks!$1:$1048576,$A350,BE$1))","v":""},{"$f":"IF($A350=\"N/A\",Ref!$B$36,INDEX(Ranks!$1:$1048576,$A350,BF$1))","v":""},{"$f":"IF($A350=\"N/A\",Ref!$B$36,INDEX(Ranks!$1:$1048576,$A350,BG$1))","v":""},{"$f":"IF($A350=\"N/A\",Ref!$B$36,INDEX(Ranks!$1:$1048576,$A350,BH$1))","v":""},{"$f":"IF($A350=\"N/A\",Ref!$B$36,INDEX(Ranks!$1:$1048576,$A350,BI$1))","v":""},{"$f":"IF($A350=\"N/A\",Ref!$B$36,INDEX(Ranks!$1:$1048576,$A350,BJ$1))","v":""},{"$f":"IF($A350=\"N/A\",Ref!$B$36,INDEX(Ranks!$1:$1048576,$A350,BK$1))","v":""},{"$f":"IF($A350=\"N/A\",Ref!$B$36,INDEX(Ranks!$1:$1048576,$A350,BL$1))","v":""},{"$f":"IF($A350=\"N/A\",Ref!$B$36,INDEX(Ranks!$1:$1048576,$A350,BM$1))","v":""},{"$f":"IF($A350=\"N/A\",Ref!$B$36,INDEX(Ranks!$1:$1048576,$A350,BN$1))","v":""},{"$f":"IF($A350=\"N/A\",Ref!$B$36,INDEX(Ranks!$1:$1048576,$A350,BO$1))","v":""},{"$f":"IF($A350=\"N/A\",Ref!$B$36,INDEX(Ranks!$1:$1048576,$A350,BP$1))","v":""},{"$f":"IF($A350=\"N/A\",Ref!$B$36,INDEX(Ranks!$1:$1048576,$A350,BQ$1))","v":""},{"$f":"IF($A350=\"N/A\",Ref!$B$36,INDEX(Ranks!$1:$1048576,$A350,BR$1))","v":""},{"$f":"IF($A350=\"N/A\",Ref!$B$36,INDEX(Ranks!$1:$1048576,$A350,BS$1))","v":""},{"$f":"IF($A350=\"N/A\",Ref!$B$36,INDEX(Ranks!$1:$1048576,$A350,BT$1))","v":""},{"$f":"IF($A350=\"N/A\",Ref!$B$36,INDEX(Ranks!$1:$1048576,$A350,BU$1))","v":""},{"$f":"IF($A350=\"N/A\",Ref!$B$36,INDEX(Ranks!$1:$1048576,$A350,BV$1))","v":""},{"$f":"IF($A350=\"N/A\",Ref!$B$36,INDEX(Ranks!$1:$1048576,$A350,BW$1))","v":""},{"$f":"IF($A350=\"N/A\",Ref!$B$36,INDEX(Ranks!$1:$1048576,$A350,BX$1))","v":""},{"$f":"IF($A350=\"N/A\",Ref!$B$36,INDEX(Ranks!$1:$1048576,$A350,BY$1))","v":""},{"$f":"IF($A350=\"N/A\",Ref!$B$36,INDEX(Ranks!$1:$1048576,$A350,BZ$1))","v":""},{"$f":"IF($A350=\"N/A\",Ref!$B$36,INDEX(Ranks!$1:$1048576,$A350,CA$1))","v":""},{"$f":"IF($A350=\"N/A\",Ref!$B$36,INDEX(Ranks!$1:$1048576,$A350,CB$1))","v":""},{"$f":"IF($A350=\"N/A\",Ref!$B$36,INDEX(Ranks!$1:$1048576,$A350,CC$1))","v":""},{"$f":"IF($A350=\"N/A\",Ref!$B$36,INDEX(Ranks!$1:$1048576,$A350,CD$1))","v":""},{"$f":"IF($A350=\"N/A\",Ref!$B$36,INDEX(Ranks!$1:$1048576,$A350,CE$1))","v":""},{"$f":"IF($A350=\"N/A\",Ref!$B$36,INDEX(Ranks!$1:$1048576,$A350,CF$1))","v":""},{"$f":"IF($A350=\"N/A\",Ref!$B$36,INDEX(Ranks!$1:$1048576,$A350,CG$1))","v":""},{"$f":"IF($A350=\"N/A\",Ref!$B$36,INDEX(Ranks!$1:$1048576,$A350,CH$1))","v":""},{"$f":"IF($A350=\"N/A\",Ref!$B$36,INDEX(Ranks!$1:$1048576,$A350,CI$1))","v":""},{"$f":"IF($A350=\"N/A\",Ref!$B$36,INDEX(Ranks!$1:$1048576,$A350,CJ$1))","v":""},{"$f":"IF($A350=\"N/A\",Ref!$B$36,INDEX(Ranks!$1:$1048576,$A350,CK$1))","v":""},{"$f":"IF($A350=\"N/A\",Ref!$B$36,INDEX(Ranks!$1:$1048576,$A350,CL$1))","v":""},{"$f":"IF($A350=\"N/A\",Ref!$B$36,INDEX(Ranks!$1:$1048576,$A350,CM$1))","v":""},{"$f":"IF($A350=\"N/A\",Ref!$B$36,INDEX(Ranks!$1:$1048576,$A350,CN$1))","v":""},{"$f":"IF($A350=\"N/A\",Ref!$B$36,INDEX(Ranks!$1:$1048576,$A350,CO$1))","v":""},{"$f":"IF($A350=\"N/A\",Ref!$B$36,INDEX(Ranks!$1:$1048576,$A350,CP$1))","v":""},{"$f":"IF($A350=\"N/A\",Ref!$B$36,INDEX(Ranks!$1:$1048576,$A350,CQ$1))","v":""},{"$f":"IF($A350=\"N/A\",Ref!$B$36,INDEX(Ranks!$1:$1048576,$A350,CR$1))","v":""},{"$f":"IF($A350=\"N/A\",Ref!$B$36,INDEX(Ranks!$1:$1048576,$A350,CS$1))","v":""},{"$f":"IF($A350=\"N/A\",Ref!$B$36,INDEX(Ranks!$1:$1048576,$A350,CT$1))","v":""},{"$f":"IF($A350=\"N/A\",Ref!$B$36,INDEX(Ranks!$1:$1048576,$A350,CU$1))","v":""},{"$f":"IF($A350=\"N/A\",Ref!$B$36,INDEX(Ranks!$1:$1048576,$A350,CV$1))","v":""},{"$f":"IF($A350=\"N/A\",Ref!$B$36,INDEX(Ranks!$1:$1048576,$A350,CW$1))","v":""},{"$f":"IF($A350=\"N/A\",Ref!$B$36,INDEX(Ranks!$1:$1048576,$A350,CX$1))","v":""},{"$f":"IF($A350=\"N/A\",Ref!$B$36,INDEX(Ranks!$1:$1048576,$A350,CY$1))","v":""},{"$f":"IF($A350=\"N/A\",Ref!$B$36,INDEX(Ranks!$1:$1048576,$A350,CZ$1))","v":""},{"$f":"IF($A350=\"N/A\",Ref!$B$36,INDEX(Ranks!$1:$1048576,$A350,DA$1))","v":""},{"$f":"IF($A350=\"N/A\",Ref!$B$36,INDEX(Ranks!$1:$1048576,$A350,DB$1))","v":""},{"$f":"IF($A350=\"N/A\",Ref!$B$36,INDEX(Ranks!$1:$1048576,$A350,DC$1))","v":""},{"$f":"IF($A350=\"N/A\",Ref!$B$36,INDEX(Ranks!$1:$1048576,$A350,DD$1))","v":""},{"$f":"IF($A350=\"N/A\",Ref!$B$36,INDEX(Ranks!$1:$1048576,$A350,DE$1))","v":""},{"$f":"IF($A350=\"N/A\",Ref!$B$36,INDEX(Ranks!$1:$1048576,$A350,DF$1))","v":""},{"$f":"IF($A350=\"N/A\",Ref!$B$36,INDEX(Ranks!$1:$1048576,$A350,DG$1))","v":""},{"$f":"IF($A350=\"N/A\",Ref!$B$36,INDEX(Ranks!$1:$1048576,$A350,DH$1))","v":""},{"$f":"IF($A350=\"N/A\",Ref!$B$36,INDEX(Ranks!$1:$1048576,$A350,DI$1))","v":""},{"$f":"IF($A350=\"N/A\",Ref!$B$36,INDEX(Ranks!$1:$1048576,$A350,DJ$1))","v":""},{"$f":"IF($A350=\"N/A\",Ref!$B$36,INDEX(Ranks!$1:$1048576,$A350,DK$1))","v":""},{"$f":"IF($A350=\"N/A\",Ref!$B$36,INDEX(Ranks!$1:$1048576,$A350,DL$1))","v":""},{"$f":"IF($A350=\"N/A\",Ref!$B$36,INDEX(Ranks!$1:$1048576,$A350,DM$1))","v":""},{"$f":"IF($A350=\"N/A\",Ref!$B$36,INDEX(Ranks!$1:$1048576,$A350,DN$1))","v":""},{"$f":"IF($A350=\"N/A\",Ref!$B$36,INDEX(Ranks!$1:$1048576,$A350,DO$1))","v":""},{"$f":"IF($A350=\"N/A\",Ref!$B$36,INDEX(Ranks!$1:$1048576,$A350,DP$1))","v":""},{"$f":"IF($A350=\"N/A\",Ref!$B$36,INDEX(Ranks!$1:$1048576,$A350,DQ$1))","v":""},{"$f":"IF($A350=\"N/A\",Ref!$B$36,INDEX(Ranks!$1:$1048576,$A350,DR$1))","v":""},{"$f":"IF($A350=\"N/A\",Ref!$B$36,INDEX(Ranks!$1:$1048576,$A350,DS$1))","v":""},{"$f":"IF($A350=\"N/A\",Ref!$B$36,INDEX(Ranks!$1:$1048576,$A350,DT$1))","v":""},{"$f":"IF($A350=\"N/A\",Ref!$B$36,INDEX(Ranks!$1:$1048576,$A350,DU$1))","v":""},{"$f":"IF($A350=\"N/A\",Ref!$B$36,INDEX(Ranks!$1:$1048576,$A350,DV$1))","v":""},{"$f":"IF($A350=\"N/A\",Ref!$B$36,INDEX(Ranks!$1:$1048576,$A350,DW$1))","v":""},{"$f":"IF($A350=\"N/A\",Ref!$B$36,INDEX(Ranks!$1:$1048576,$A350,DX$1))","v":""},{"$f":"IF($A350=\"N/A\",Ref!$B$36,INDEX(Ranks!$1:$1048576,$A350,DY$1))","v":""},{"$f":"IF($A350=\"N/A\",Ref!$B$36,INDEX(Ranks!$1:$1048576,$A350,DZ$1))","v":""},{"$f":"IF($A350=\"N/A\",Ref!$B$36,INDEX(Ranks!$1:$1048576,$A350,EA$1))","v":""},{"$f":"IF($A350=\"N/A\",Ref!$B$36,INDEX(Ranks!$1:$1048576,$A350,EB$1))","v":""}]
[{"$f":"IFERROR(MATCH('Portfolio Page'!L351,Ranks!L:L,0),\"N/A\")","v":"N/A"},null,{"$f":"IF($A351=\"N/A\",\"\",INDEX(Ranks!$1:$1048576,$A351,C$1))","v":""},{"$f":"IF($A351=\"N/A\",Ref!$B$36,INDEX(Ranks!$1:$1048576,$A351,D$1))","v":""},{"$f":"IF($A351=\"N/A\",Ref!$B$36,INDEX(Ranks!$1:$1048576,$A351,E$1))","v":""},{"$f":"IF($A351=\"N/A\",\"\",INDEX(Ranks!$1:$1048576,$A351,F$1))","v":""},{"$f":"IF($A351=\"N/A\",\"\",INDEX(Ranks!$1:$1048576,$A351,G$1))","v":""},{"$f":"IF($A351=\"N/A\",\"\",INDEX(Ranks!$1:$1048576,$A351,H$1))","v":""},{"$f":"IF($A351=\"N/A\",\"\",INDEX(Ranks!$1:$1048576,$A351,I$1))","v":""},{"$f":"IF($A351=\"N/A\",\"\",INDEX(Ranks!$1:$1048576,$A351,J$1))","v":""},{"$f":"IF($A351=\"N/A\",\"\",INDEX(Ranks!$1:$1048576,$A351,K$1))","v":""},null,{"$f":"IF($A351=\"N/A\",Ref!$B$36,INDEX(Ranks!$1:$1048576,$A351,M$1))","v":""},{"$f":"IF($A351=\"N/A\",Ref!$B$36,INDEX(Ranks!$1:$1048576,$A351,N$1))","v":""},{"$f":"IF($A351=\"N/A\",Ref!$B$36,INDEX(Ranks!$1:$1048576,$A351,O$1))","v":""},{"$f":"IF($A351=\"N/A\",Ref!$B$36,INDEX(Ranks!$1:$1048576,$A351,P$1))","v":""},{"$f":"IF($A351=\"N/A\",Ref!$B$36,INDEX(Ranks!$1:$1048576,$A351,Q$1))","v":""},{"$f":"IF($A351=\"N/A\",Ref!$B$36,INDEX(Ranks!$1:$1048576,$A351,R$1))","v":""},{"$f":"IF($A351=\"N/A\",Ref!$B$36,INDEX(Ranks!$1:$1048576,$A351,S$1))","v":""},{"$f":"IF($A351=\"N/A\",Ref!$B$36,INDEX(Ranks!$1:$1048576,$A351,T$1))","v":""},{"$f":"IF($A351=\"N/A\",Ref!$B$36,INDEX(Ranks!$1:$1048576,$A351,U$1))","v":""},{"$f":"IF($A351=\"N/A\",Ref!$B$36,INDEX(Ranks!$1:$1048576,$A351,V$1))","v":""},{"$f":"IF($A351=\"N/A\",Ref!$B$36,INDEX(Ranks!$1:$1048576,$A351,W$1))","v":""},{"$f":"IF($A351=\"N/A\",Ref!$B$36,INDEX(Ranks!$1:$1048576,$A351,X$1))","v":""},{"$f":"IF($A351=\"N/A\",Ref!$B$36,INDEX(Ranks!$1:$1048576,$A351,Y$1))","v":""},{"$f":"IF($A351=\"N/A\",Ref!$B$36,INDEX(Ranks!$1:$1048576,$A351,Z$1))","v":""},{"$f":"IF($A351=\"N/A\",Ref!$B$36,INDEX(Ranks!$1:$1048576,$A351,AA$1))","v":""},{"$f":"IF($A351=\"N/A\",Ref!$B$36,INDEX(Ranks!$1:$1048576,$A351,AB$1))","v":""},{"$f":"IF($A351=\"N/A\",Ref!$B$36,INDEX(Ranks!$1:$1048576,$A351,AC$1))","v":""},{"$f":"IF($A351=\"N/A\",Ref!$B$36,INDEX(Ranks!$1:$1048576,$A351,AD$1))","v":""},{"$f":"IF($A351=\"N/A\",Ref!$B$36,INDEX(Ranks!$1:$1048576,$A351,AE$1))","v":""},{"$f":"IF($A351=\"N/A\",Ref!$B$36,INDEX(Ranks!$1:$1048576,$A351,AF$1))","v":""},{"$f":"IF($A351=\"N/A\",Ref!$B$36,INDEX(Ranks!$1:$1048576,$A351,AG$1))","v":""},{"$f":"IF($A351=\"N/A\",Ref!$B$36,INDEX(Ranks!$1:$1048576,$A351,AH$1))","v":""},{"$f":"IF($A351=\"N/A\",Ref!$B$36,INDEX(Ranks!$1:$1048576,$A351,AI$1))","v":""},{"$f":"IF($A351=\"N/A\",Ref!$B$36,INDEX(Ranks!$1:$1048576,$A351,AJ$1))","v":""},{"$f":"IF($A351=\"N/A\",Ref!$B$36,INDEX(Ranks!$1:$1048576,$A351,AK$1))","v":""},{"$f":"IF($A351=\"N/A\",Ref!$B$36,INDEX(Ranks!$1:$1048576,$A351,AL$1))","v":""},{"$f":"IF($A351=\"N/A\",Ref!$B$36,INDEX(Ranks!$1:$1048576,$A351,AM$1))","v":""},{"$f":"IF($A351=\"N/A\",Ref!$B$36,INDEX(Ranks!$1:$1048576,$A351,AN$1))","v":""},{"$f":"IF($A351=\"N/A\",Ref!$B$36,INDEX(Ranks!$1:$1048576,$A351,AO$1))","v":""},{"$f":"IF($A351=\"N/A\",Ref!$B$36,INDEX(Ranks!$1:$1048576,$A351,AP$1))","v":""},{"$f":"IF($A351=\"N/A\",Ref!$B$36,INDEX(Ranks!$1:$1048576,$A351,AQ$1))","v":""},{"$f":"IF($A351=\"N/A\",Ref!$B$36,INDEX(Ranks!$1:$1048576,$A351,AR$1))","v":""},{"$f":"IF($A351=\"N/A\",Ref!$B$36,INDEX(Ranks!$1:$1048576,$A351,AS$1))","v":""},{"$f":"IF($A351=\"N/A\",Ref!$B$36,INDEX(Ranks!$1:$1048576,$A351,AT$1))","v":""},{"$f":"IF($A351=\"N/A\",Ref!$B$36,INDEX(Ranks!$1:$1048576,$A351,AU$1))","v":""},{"$f":"IF($A351=\"N/A\",Ref!$B$36,INDEX(Ranks!$1:$1048576,$A351,AV$1))","v":""},{"$f":"IF($A351=\"N/A\",Ref!$B$36,INDEX(Ranks!$1:$1048576,$A351,AW$1))","v":""},{"$f":"IF($A351=\"N/A\",Ref!$B$36,INDEX(Ranks!$1:$1048576,$A351,AX$1))","v":""},{"$f":"IF($A351=\"N/A\",Ref!$B$36,INDEX(Ranks!$1:$1048576,$A351,AY$1))","v":""},{"$f":"IF($A351=\"N/A\",Ref!$B$36,INDEX(Ranks!$1:$1048576,$A351,AZ$1))","v":""},{"$f":"IF($A351=\"N/A\",Ref!$B$36,INDEX(Ranks!$1:$1048576,$A351,BA$1))","v":""},{"$f":"IF($A351=\"N/A\",Ref!$B$36,INDEX(Ranks!$1:$1048576,$A351,BB$1))","v":""},{"$f":"IF($A351=\"N/A\",Ref!$B$36,INDEX(Ranks!$1:$1048576,$A351,BC$1))","v":""},{"$f":"IF($A351=\"N/A\",Ref!$B$36,INDEX(Ranks!$1:$1048576,$A351,BD$1))","v":""},{"$f":"IF($A351=\"N/A\",Ref!$B$36,INDEX(Ranks!$1:$1048576,$A351,BE$1))","v":""},{"$f":"IF($A351=\"N/A\",Ref!$B$36,INDEX(Ranks!$1:$1048576,$A351,BF$1))","v":""},{"$f":"IF($A351=\"N/A\",Ref!$B$36,INDEX(Ranks!$1:$1048576,$A351,BG$1))","v":""},{"$f":"IF($A351=\"N/A\",Ref!$B$36,INDEX(Ranks!$1:$1048576,$A351,BH$1))","v":""},{"$f":"IF($A351=\"N/A\",Ref!$B$36,INDEX(Ranks!$1:$1048576,$A351,BI$1))","v":""},{"$f":"IF($A351=\"N/A\",Ref!$B$36,INDEX(Ranks!$1:$1048576,$A351,BJ$1))","v":""},{"$f":"IF($A351=\"N/A\",Ref!$B$36,INDEX(Ranks!$1:$1048576,$A351,BK$1))","v":""},{"$f":"IF($A351=\"N/A\",Ref!$B$36,INDEX(Ranks!$1:$1048576,$A351,BL$1))","v":""},{"$f":"IF($A351=\"N/A\",Ref!$B$36,INDEX(Ranks!$1:$1048576,$A351,BM$1))","v":""},{"$f":"IF($A351=\"N/A\",Ref!$B$36,INDEX(Ranks!$1:$1048576,$A351,BN$1))","v":""},{"$f":"IF($A351=\"N/A\",Ref!$B$36,INDEX(Ranks!$1:$1048576,$A351,BO$1))","v":""},{"$f":"IF($A351=\"N/A\",Ref!$B$36,INDEX(Ranks!$1:$1048576,$A351,BP$1))","v":""},{"$f":"IF($A351=\"N/A\",Ref!$B$36,INDEX(Ranks!$1:$1048576,$A351,BQ$1))","v":""},{"$f":"IF($A351=\"N/A\",Ref!$B$36,INDEX(Ranks!$1:$1048576,$A351,BR$1))","v":""},{"$f":"IF($A351=\"N/A\",Ref!$B$36,INDEX(Ranks!$1:$1048576,$A351,BS$1))","v":""},{"$f":"IF($A351=\"N/A\",Ref!$B$36,INDEX(Ranks!$1:$1048576,$A351,BT$1))","v":""},{"$f":"IF($A351=\"N/A\",Ref!$B$36,INDEX(Ranks!$1:$1048576,$A351,BU$1))","v":""},{"$f":"IF($A351=\"N/A\",Ref!$B$36,INDEX(Ranks!$1:$1048576,$A351,BV$1))","v":""},{"$f":"IF($A351=\"N/A\",Ref!$B$36,INDEX(Ranks!$1:$1048576,$A351,BW$1))","v":""},{"$f":"IF($A351=\"N/A\",Ref!$B$36,INDEX(Ranks!$1:$1048576,$A351,BX$1))","v":""},{"$f":"IF($A351=\"N/A\",Ref!$B$36,INDEX(Ranks!$1:$1048576,$A351,BY$1))","v":""},{"$f":"IF($A351=\"N/A\",Ref!$B$36,INDEX(Ranks!$1:$1048576,$A351,BZ$1))","v":""},{"$f":"IF($A351=\"N/A\",Ref!$B$36,INDEX(Ranks!$1:$1048576,$A351,CA$1))","v":""},{"$f":"IF($A351=\"N/A\",Ref!$B$36,INDEX(Ranks!$1:$1048576,$A351,CB$1))","v":""},{"$f":"IF($A351=\"N/A\",Ref!$B$36,INDEX(Ranks!$1:$1048576,$A351,CC$1))","v":""},{"$f":"IF($A351=\"N/A\",Ref!$B$36,INDEX(Ranks!$1:$1048576,$A351,CD$1))","v":""},{"$f":"IF($A351=\"N/A\",Ref!$B$36,INDEX(Ranks!$1:$1048576,$A351,CE$1))","v":""},{"$f":"IF($A351=\"N/A\",Ref!$B$36,INDEX(Ranks!$1:$1048576,$A351,CF$1))","v":""},{"$f":"IF($A351=\"N/A\",Ref!$B$36,INDEX(Ranks!$1:$1048576,$A351,CG$1))","v":""},{"$f":"IF($A351=\"N/A\",Ref!$B$36,INDEX(Ranks!$1:$1048576,$A351,CH$1))","v":""},{"$f":"IF($A351=\"N/A\",Ref!$B$36,INDEX(Ranks!$1:$1048576,$A351,CI$1))","v":""},{"$f":"IF($A351=\"N/A\",Ref!$B$36,INDEX(Ranks!$1:$1048576,$A351,CJ$1))","v":""},{"$f":"IF($A351=\"N/A\",Ref!$B$36,INDEX(Ranks!$1:$1048576,$A351,CK$1))","v":""},{"$f":"IF($A351=\"N/A\",Ref!$B$36,INDEX(Ranks!$1:$1048576,$A351,CL$1))","v":""},{"$f":"IF($A351=\"N/A\",Ref!$B$36,INDEX(Ranks!$1:$1048576,$A351,CM$1))","v":""},{"$f":"IF($A351=\"N/A\",Ref!$B$36,INDEX(Ranks!$1:$1048576,$A351,CN$1))","v":""},{"$f":"IF($A351=\"N/A\",Ref!$B$36,INDEX(Ranks!$1:$1048576,$A351,CO$1))","v":""},{"$f":"IF($A351=\"N/A\",Ref!$B$36,INDEX(Ranks!$1:$1048576,$A351,CP$1))","v":""},{"$f":"IF($A351=\"N/A\",Ref!$B$36,INDEX(Ranks!$1:$1048576,$A351,CQ$1))","v":""},{"$f":"IF($A351=\"N/A\",Ref!$B$36,INDEX(Ranks!$1:$1048576,$A351,CR$1))","v":""},{"$f":"IF($A351=\"N/A\",Ref!$B$36,INDEX(Ranks!$1:$1048576,$A351,CS$1))","v":""},{"$f":"IF($A351=\"N/A\",Ref!$B$36,INDEX(Ranks!$1:$1048576,$A351,CT$1))","v":""},{"$f":"IF($A351=\"N/A\",Ref!$B$36,INDEX(Ranks!$1:$1048576,$A351,CU$1))","v":""},{"$f":"IF($A351=\"N/A\",Ref!$B$36,INDEX(Ranks!$1:$1048576,$A351,CV$1))","v":""},{"$f":"IF($A351=\"N/A\",Ref!$B$36,INDEX(Ranks!$1:$1048576,$A351,CW$1))","v":""},{"$f":"IF($A351=\"N/A\",Ref!$B$36,INDEX(Ranks!$1:$1048576,$A351,CX$1))","v":""},{"$f":"IF($A351=\"N/A\",Ref!$B$36,INDEX(Ranks!$1:$1048576,$A351,CY$1))","v":""},{"$f":"IF($A351=\"N/A\",Ref!$B$36,INDEX(Ranks!$1:$1048576,$A351,CZ$1))","v":""},{"$f":"IF($A351=\"N/A\",Ref!$B$36,INDEX(Ranks!$1:$1048576,$A351,DA$1))","v":""},{"$f":"IF($A351=\"N/A\",Ref!$B$36,INDEX(Ranks!$1:$1048576,$A351,DB$1))","v":""},{"$f":"IF($A351=\"N/A\",Ref!$B$36,INDEX(Ranks!$1:$1048576,$A351,DC$1))","v":""},{"$f":"IF($A351=\"N/A\",Ref!$B$36,INDEX(Ranks!$1:$1048576,$A351,DD$1))","v":""},{"$f":"IF($A351=\"N/A\",Ref!$B$36,INDEX(Ranks!$1:$1048576,$A351,DE$1))","v":""},{"$f":"IF($A351=\"N/A\",Ref!$B$36,INDEX(Ranks!$1:$1048576,$A351,DF$1))","v":""},{"$f":"IF($A351=\"N/A\",Ref!$B$36,INDEX(Ranks!$1:$1048576,$A351,DG$1))","v":""},{"$f":"IF($A351=\"N/A\",Ref!$B$36,INDEX(Ranks!$1:$1048576,$A351,DH$1))","v":""},{"$f":"IF($A351=\"N/A\",Ref!$B$36,INDEX(Ranks!$1:$1048576,$A351,DI$1))","v":""},{"$f":"IF($A351=\"N/A\",Ref!$B$36,INDEX(Ranks!$1:$1048576,$A351,DJ$1))","v":""},{"$f":"IF($A351=\"N/A\",Ref!$B$36,INDEX(Ranks!$1:$1048576,$A351,DK$1))","v":""},{"$f":"IF($A351=\"N/A\",Ref!$B$36,INDEX(Ranks!$1:$1048576,$A351,DL$1))","v":""},{"$f":"IF($A351=\"N/A\",Ref!$B$36,INDEX(Ranks!$1:$1048576,$A351,DM$1))","v":""},{"$f":"IF($A351=\"N/A\",Ref!$B$36,INDEX(Ranks!$1:$1048576,$A351,DN$1))","v":""},{"$f":"IF($A351=\"N/A\",Ref!$B$36,INDEX(Ranks!$1:$1048576,$A351,DO$1))","v":""},{"$f":"IF($A351=\"N/A\",Ref!$B$36,INDEX(Ranks!$1:$1048576,$A351,DP$1))","v":""},{"$f":"IF($A351=\"N/A\",Ref!$B$36,INDEX(Ranks!$1:$1048576,$A351,DQ$1))","v":""},{"$f":"IF($A351=\"N/A\",Ref!$B$36,INDEX(Ranks!$1:$1048576,$A351,DR$1))","v":""},{"$f":"IF($A351=\"N/A\",Ref!$B$36,INDEX(Ranks!$1:$1048576,$A351,DS$1))","v":""},{"$f":"IF($A351=\"N/A\",Ref!$B$36,INDEX(Ranks!$1:$1048576,$A351,DT$1))","v":""},{"$f":"IF($A351=\"N/A\",Ref!$B$36,INDEX(Ranks!$1:$1048576,$A351,DU$1))","v":""},{"$f":"IF($A351=\"N/A\",Ref!$B$36,INDEX(Ranks!$1:$1048576,$A351,DV$1))","v":""},{"$f":"IF($A351=\"N/A\",Ref!$B$36,INDEX(Ranks!$1:$1048576,$A351,DW$1))","v":""},{"$f":"IF($A351=\"N/A\",Ref!$B$36,INDEX(Ranks!$1:$1048576,$A351,DX$1))","v":""},{"$f":"IF($A351=\"N/A\",Ref!$B$36,INDEX(Ranks!$1:$1048576,$A351,DY$1))","v":""},{"$f":"IF($A351=\"N/A\",Ref!$B$36,INDEX(Ranks!$1:$1048576,$A351,DZ$1))","v":""},{"$f":"IF($A351=\"N/A\",Ref!$B$36,INDEX(Ranks!$1:$1048576,$A351,EA$1))","v":""},{"$f":"IF($A351=\"N/A\",Ref!$B$36,INDEX(Ranks!$1:$1048576,$A351,EB$1))","v":""}]
[{"$f":"IFERROR(MATCH('Portfolio Page'!L352,Ranks!L:L,0),\"N/A\")","v":"N/A"},null,{"$f":"IF($A352=\"N/A\",\"\",INDEX(Ranks!$1:$1048576,$A352,C$1))","v":""},{"$f":"IF($A352=\"N/A\",Ref!$B$36,INDEX(Ranks!$1:$1048576,$A352,D$1))","v":""},{"$f":"IF($A352=\"N/A\",Ref!$B$36,INDEX(Ranks!$1:$1048576,$A352,E$1))","v":""},{"$f":"IF($A352=\"N/A\",\"\",INDEX(Ranks!$1:$1048576,$A352,F$1))","v":""},{"$f":"IF($A352=\"N/A\",\"\",INDEX(Ranks!$1:$1048576,$A352,G$1))","v":""},{"$f":"IF($A352=\"N/A\",\"\",INDEX(Ranks!$1:$1048576,$A352,H$1))","v":""},{"$f":"IF($A352=\"N/A\",\"\",INDEX(Ranks!$1:$1048576,$A352,I$1))","v":""},{"$f":"IF($A352=\"N/A\",\"\",INDEX(Ranks!$1:$1048576,$A352,J$1))","v":""},{"$f":"IF($A352=\"N/A\",\"\",INDEX(Ranks!$1:$1048576,$A352,K$1))","v":""},null,{"$f":"IF($A352=\"N/A\",Ref!$B$36,INDEX(Ranks!$1:$1048576,$A352,M$1))","v":""},{"$f":"IF($A352=\"N/A\",Ref!$B$36,INDEX(Ranks!$1:$1048576,$A352,N$1))","v":""},{"$f":"IF($A352=\"N/A\",Ref!$B$36,INDEX(Ranks!$1:$1048576,$A352,O$1))","v":""},{"$f":"IF($A352=\"N/A\",Ref!$B$36,INDEX(Ranks!$1:$1048576,$A352,P$1))","v":""},{"$f":"IF($A352=\"N/A\",Ref!$B$36,INDEX(Ranks!$1:$1048576,$A352,Q$1))","v":""},{"$f":"IF($A352=\"N/A\",Ref!$B$36,INDEX(Ranks!$1:$1048576,$A352,R$1))","v":""},{"$f":"IF($A352=\"N/A\",Ref!$B$36,INDEX(Ranks!$1:$1048576,$A352,S$1))","v":""},{"$f":"IF($A352=\"N/A\",Ref!$B$36,INDEX(Ranks!$1:$1048576,$A352,T$1))","v":""},{"$f":"IF($A352=\"N/A\",Ref!$B$36,INDEX(Ranks!$1:$1048576,$A352,U$1))","v":""},{"$f":"IF($A352=\"N/A\",Ref!$B$36,INDEX(Ranks!$1:$1048576,$A352,V$1))","v":""},{"$f":"IF($A352=\"N/A\",Ref!$B$36,INDEX(Ranks!$1:$1048576,$A352,W$1))","v":""},{"$f":"IF($A352=\"N/A\",Ref!$B$36,INDEX(Ranks!$1:$1048576,$A352,X$1))","v":""},{"$f":"IF($A352=\"N/A\",Ref!$B$36,INDEX(Ranks!$1:$1048576,$A352,Y$1))","v":""},{"$f":"IF($A352=\"N/A\",Ref!$B$36,INDEX(Ranks!$1:$1048576,$A352,Z$1))","v":""},{"$f":"IF($A352=\"N/A\",Ref!$B$36,INDEX(Ranks!$1:$1048576,$A352,AA$1))","v":""},{"$f":"IF($A352=\"N/A\",Ref!$B$36,INDEX(Ranks!$1:$1048576,$A352,AB$1))","v":""},{"$f":"IF($A352=\"N/A\",Ref!$B$36,INDEX(Ranks!$1:$1048576,$A352,AC$1))","v":""},{"$f":"IF($A352=\"N/A\",Ref!$B$36,INDEX(Ranks!$1:$1048576,$A352,AD$1))","v":""},{"$f":"IF($A352=\"N/A\",Ref!$B$36,INDEX(Ranks!$1:$1048576,$A352,AE$1))","v":""},{"$f":"IF($A352=\"N/A\",Ref!$B$36,INDEX(Ranks!$1:$1048576,$A352,AF$1))","v":""},{"$f":"IF($A352=\"N/A\",Ref!$B$36,INDEX(Ranks!$1:$1048576,$A352,AG$1))","v":""},{"$f":"IF($A352=\"N/A\",Ref!$B$36,INDEX(Ranks!$1:$1048576,$A352,AH$1))","v":""},{"$f":"IF($A352=\"N/A\",Ref!$B$36,INDEX(Ranks!$1:$1048576,$A352,AI$1))","v":""},{"$f":"IF($A352=\"N/A\",Ref!$B$36,INDEX(Ranks!$1:$1048576,$A352,AJ$1))","v":""},{"$f":"IF($A352=\"N/A\",Ref!$B$36,INDEX(Ranks!$1:$1048576,$A352,AK$1))","v":""},{"$f":"IF($A352=\"N/A\",Ref!$B$36,INDEX(Ranks!$1:$1048576,$A352,AL$1))","v":""},{"$f":"IF($A352=\"N/A\",Ref!$B$36,INDEX(Ranks!$1:$1048576,$A352,AM$1))","v":""},{"$f":"IF($A352=\"N/A\",Ref!$B$36,INDEX(Ranks!$1:$1048576,$A352,AN$1))","v":""},{"$f":"IF($A352=\"N/A\",Ref!$B$36,INDEX(Ranks!$1:$1048576,$A352,AO$1))","v":""},{"$f":"IF($A352=\"N/A\",Ref!$B$36,INDEX(Ranks!$1:$1048576,$A352,AP$1))","v":""},{"$f":"IF($A352=\"N/A\",Ref!$B$36,INDEX(Ranks!$1:$1048576,$A352,AQ$1))","v":""},{"$f":"IF($A352=\"N/A\",Ref!$B$36,INDEX(Ranks!$1:$1048576,$A352,AR$1))","v":""},{"$f":"IF($A352=\"N/A\",Ref!$B$36,INDEX(Ranks!$1:$1048576,$A352,AS$1))","v":""},{"$f":"IF($A352=\"N/A\",Ref!$B$36,INDEX(Ranks!$1:$1048576,$A352,AT$1))","v":""},{"$f":"IF($A352=\"N/A\",Ref!$B$36,INDEX(Ranks!$1:$1048576,$A352,AU$1))","v":""},{"$f":"IF($A352=\"N/A\",Ref!$B$36,INDEX(Ranks!$1:$1048576,$A352,AV$1))","v":""},{"$f":"IF($A352=\"N/A\",Ref!$B$36,INDEX(Ranks!$1:$1048576,$A352,AW$1))","v":""},{"$f":"IF($A352=\"N/A\",Ref!$B$36,INDEX(Ranks!$1:$1048576,$A352,AX$1))","v":""},{"$f":"IF($A352=\"N/A\",Ref!$B$36,INDEX(Ranks!$1:$1048576,$A352,AY$1))","v":""},{"$f":"IF($A352=\"N/A\",Ref!$B$36,INDEX(Ranks!$1:$1048576,$A352,AZ$1))","v":""},{"$f":"IF($A352=\"N/A\",Ref!$B$36,INDEX(Ranks!$1:$1048576,$A352,BA$1))","v":""},{"$f":"IF($A352=\"N/A\",Ref!$B$36,INDEX(Ranks!$1:$1048576,$A352,BB$1))","v":""},{"$f":"IF($A352=\"N/A\",Ref!$B$36,INDEX(Ranks!$1:$1048576,$A352,BC$1))","v":""},{"$f":"IF($A352=\"N/A\",Ref!$B$36,INDEX(Ranks!$1:$1048576,$A352,BD$1))","v":""},{"$f":"IF($A352=\"N/A\",Ref!$B$36,INDEX(Ranks!$1:$1048576,$A352,BE$1))","v":""},{"$f":"IF($A352=\"N/A\",Ref!$B$36,INDEX(Ranks!$1:$1048576,$A352,BF$1))","v":""},{"$f":"IF($A352=\"N/A\",Ref!$B$36,INDEX(Ranks!$1:$1048576,$A352,BG$1))","v":""},{"$f":"IF($A352=\"N/A\",Ref!$B$36,INDEX(Ranks!$1:$1048576,$A352,BH$1))","v":""},{"$f":"IF($A352=\"N/A\",Ref!$B$36,INDEX(Ranks!$1:$1048576,$A352,BI$1))","v":""},{"$f":"IF($A352=\"N/A\",Ref!$B$36,INDEX(Ranks!$1:$1048576,$A352,BJ$1))","v":""},{"$f":"IF($A352=\"N/A\",Ref!$B$36,INDEX(Ranks!$1:$1048576,$A352,BK$1))","v":""},{"$f":"IF($A352=\"N/A\",Ref!$B$36,INDEX(Ranks!$1:$1048576,$A352,BL$1))","v":""},{"$f":"IF($A352=\"N/A\",Ref!$B$36,INDEX(Ranks!$1:$1048576,$A352,BM$1))","v":""},{"$f":"IF($A352=\"N/A\",Ref!$B$36,INDEX(Ranks!$1:$1048576,$A352,BN$1))","v":""},{"$f":"IF($A352=\"N/A\",Ref!$B$36,INDEX(Ranks!$1:$1048576,$A352,BO$1))","v":""},{"$f":"IF($A352=\"N/A\",Ref!$B$36,INDEX(Ranks!$1:$1048576,$A352,BP$1))","v":""},{"$f":"IF($A352=\"N/A\",Ref!$B$36,INDEX(Ranks!$1:$1048576,$A352,BQ$1))","v":""},{"$f":"IF($A352=\"N/A\",Ref!$B$36,INDEX(Ranks!$1:$1048576,$A352,BR$1))","v":""},{"$f":"IF($A352=\"N/A\",Ref!$B$36,INDEX(Ranks!$1:$1048576,$A352,BS$1))","v":""},{"$f":"IF($A352=\"N/A\",Ref!$B$36,INDEX(Ranks!$1:$1048576,$A352,BT$1))","v":""},{"$f":"IF($A352=\"N/A\",Ref!$B$36,INDEX(Ranks!$1:$1048576,$A352,BU$1))","v":""},{"$f":"IF($A352=\"N/A\",Ref!$B$36,INDEX(Ranks!$1:$1048576,$A352,BV$1))","v":""},{"$f":"IF($A352=\"N/A\",Ref!$B$36,INDEX(Ranks!$1:$1048576,$A352,BW$1))","v":""},{"$f":"IF($A352=\"N/A\",Ref!$B$36,INDEX(Ranks!$1:$1048576,$A352,BX$1))","v":""},{"$f":"IF($A352=\"N/A\",Ref!$B$36,INDEX(Ranks!$1:$1048576,$A352,BY$1))","v":""},{"$f":"IF($A352=\"N/A\",Ref!$B$36,INDEX(Ranks!$1:$1048576,$A352,BZ$1))","v":""},{"$f":"IF($A352=\"N/A\",Ref!$B$36,INDEX(Ranks!$1:$1048576,$A352,CA$1))","v":""},{"$f":"IF($A352=\"N/A\",Ref!$B$36,INDEX(Ranks!$1:$1048576,$A352,CB$1))","v":""},{"$f":"IF($A352=\"N/A\",Ref!$B$36,INDEX(Ranks!$1:$1048576,$A352,CC$1))","v":""},{"$f":"IF($A352=\"N/A\",Ref!$B$36,INDEX(Ranks!$1:$1048576,$A352,CD$1))","v":""},{"$f":"IF($A352=\"N/A\",Ref!$B$36,INDEX(Ranks!$1:$1048576,$A352,CE$1))","v":""},{"$f":"IF($A352=\"N/A\",Ref!$B$36,INDEX(Ranks!$1:$1048576,$A352,CF$1))","v":""},{"$f":"IF($A352=\"N/A\",Ref!$B$36,INDEX(Ranks!$1:$1048576,$A352,CG$1))","v":""},{"$f":"IF($A352=\"N/A\",Ref!$B$36,INDEX(Ranks!$1:$1048576,$A352,CH$1))","v":""},{"$f":"IF($A352=\"N/A\",Ref!$B$36,INDEX(Ranks!$1:$1048576,$A352,CI$1))","v":""},{"$f":"IF($A352=\"N/A\",Ref!$B$36,INDEX(Ranks!$1:$1048576,$A352,CJ$1))","v":""},{"$f":"IF($A352=\"N/A\",Ref!$B$36,INDEX(Ranks!$1:$1048576,$A352,CK$1))","v":""},{"$f":"IF($A352=\"N/A\",Ref!$B$36,INDEX(Ranks!$1:$1048576,$A352,CL$1))","v":""},{"$f":"IF($A352=\"N/A\",Ref!$B$36,INDEX(Ranks!$1:$1048576,$A352,CM$1))","v":""},{"$f":"IF($A352=\"N/A\",Ref!$B$36,INDEX(Ranks!$1:$1048576,$A352,CN$1))","v":""},{"$f":"IF($A352=\"N/A\",Ref!$B$36,INDEX(Ranks!$1:$1048576,$A352,CO$1))","v":""},{"$f":"IF($A352=\"N/A\",Ref!$B$36,INDEX(Ranks!$1:$1048576,$A352,CP$1))","v":""},{"$f":"IF($A352=\"N/A\",Ref!$B$36,INDEX(Ranks!$1:$1048576,$A352,CQ$1))","v":""},{"$f":"IF($A352=\"N/A\",Ref!$B$36,INDEX(Ranks!$1:$1048576,$A352,CR$1))","v":""},{"$f":"IF($A352=\"N/A\",Ref!$B$36,INDEX(Ranks!$1:$1048576,$A352,CS$1))","v":""},{"$f":"IF($A352=\"N/A\",Ref!$B$36,INDEX(Ranks!$1:$1048576,$A352,CT$1))","v":""},{"$f":"IF($A352=\"N/A\",Ref!$B$36,INDEX(Ranks!$1:$1048576,$A352,CU$1))","v":""},{"$f":"IF($A352=\"N/A\",Ref!$B$36,INDEX(Ranks!$1:$1048576,$A352,CV$1))","v":""},{"$f":"IF($A352=\"N/A\",Ref!$B$36,INDEX(Ranks!$1:$1048576,$A352,CW$1))","v":""},{"$f":"IF($A352=\"N/A\",Ref!$B$36,INDEX(Ranks!$1:$1048576,$A352,CX$1))","v":""},{"$f":"IF($A352=\"N/A\",Ref!$B$36,INDEX(Ranks!$1:$1048576,$A352,CY$1))","v":""},{"$f":"IF($A352=\"N/A\",Ref!$B$36,INDEX(Ranks!$1:$1048576,$A352,CZ$1))","v":""},{"$f":"IF($A352=\"N/A\",Ref!$B$36,INDEX(Ranks!$1:$1048576,$A352,DA$1))","v":""},{"$f":"IF($A352=\"N/A\",Ref!$B$36,INDEX(Ranks!$1:$1048576,$A352,DB$1))","v":""},{"$f":"IF($A352=\"N/A\",Ref!$B$36,INDEX(Ranks!$1:$1048576,$A352,DC$1))","v":""},{"$f":"IF($A352=\"N/A\",Ref!$B$36,INDEX(Ranks!$1:$1048576,$A352,DD$1))","v":""},{"$f":"IF($A352=\"N/A\",Ref!$B$36,INDEX(Ranks!$1:$1048576,$A352,DE$1))","v":""},{"$f":"IF($A352=\"N/A\",Ref!$B$36,INDEX(Ranks!$1:$1048576,$A352,DF$1))","v":""},{"$f":"IF($A352=\"N/A\",Ref!$B$36,INDEX(Ranks!$1:$1048576,$A352,DG$1))","v":""},{"$f":"IF($A352=\"N/A\",Ref!$B$36,INDEX(Ranks!$1:$1048576,$A352,DH$1))","v":""},{"$f":"IF($A352=\"N/A\",Ref!$B$36,INDEX(Ranks!$1:$1048576,$A352,DI$1))","v":""},{"$f":"IF($A352=\"N/A\",Ref!$B$36,INDEX(Ranks!$1:$1048576,$A352,DJ$1))","v":""},{"$f":"IF($A352=\"N/A\",Ref!$B$36,INDEX(Ranks!$1:$1048576,$A352,DK$1))","v":""},{"$f":"IF($A352=\"N/A\",Ref!$B$36,INDEX(Ranks!$1:$1048576,$A352,DL$1))","v":""},{"$f":"IF($A352=\"N/A\",Ref!$B$36,INDEX(Ranks!$1:$1048576,$A352,DM$1))","v":""},{"$f":"IF($A352=\"N/A\",Ref!$B$36,INDEX(Ranks!$1:$1048576,$A352,DN$1))","v":""},{"$f":"IF($A352=\"N/A\",Ref!$B$36,INDEX(Ranks!$1:$1048576,$A352,DO$1))","v":""},{"$f":"IF($A352=\"N/A\",Ref!$B$36,INDEX(Ranks!$1:$1048576,$A352,DP$1))","v":""},{"$f":"IF($A352=\"N/A\",Ref!$B$36,INDEX(Ranks!$1:$1048576,$A352,DQ$1))","v":""},{"$f":"IF($A352=\"N/A\",Ref!$B$36,INDEX(Ranks!$1:$1048576,$A352,DR$1))","v":""},{"$f":"IF($A352=\"N/A\",Ref!$B$36,INDEX(Ranks!$1:$1048576,$A352,DS$1))","v":""},{"$f":"IF($A352=\"N/A\",Ref!$B$36,INDEX(Ranks!$1:$1048576,$A352,DT$1))","v":""},{"$f":"IF($A352=\"N/A\",Ref!$B$36,INDEX(Ranks!$1:$1048576,$A352,DU$1))","v":""},{"$f":"IF($A352=\"N/A\",Ref!$B$36,INDEX(Ranks!$1:$1048576,$A352,DV$1))","v":""},{"$f":"IF($A352=\"N/A\",Ref!$B$36,INDEX(Ranks!$1:$1048576,$A352,DW$1))","v":""},{"$f":"IF($A352=\"N/A\",Ref!$B$36,INDEX(Ranks!$1:$1048576,$A352,DX$1))","v":""},{"$f":"IF($A352=\"N/A\",Ref!$B$36,INDEX(Ranks!$1:$1048576,$A352,DY$1))","v":""},{"$f":"IF($A352=\"N/A\",Ref!$B$36,INDEX(Ranks!$1:$1048576,$A352,DZ$1))","v":""},{"$f":"IF($A352=\"N/A\",Ref!$B$36,INDEX(Ranks!$1:$1048576,$A352,EA$1))","v":""},{"$f":"IF($A352=\"N/A\",Ref!$B$36,INDEX(Ranks!$1:$1048576,$A352,EB$1))","v":""}]
[{"$f":"IFERROR(MATCH('Portfolio Page'!L353,Ranks!L:L,0),\"N/A\")","v":"N/A"},null,{"$f":"IF($A353=\"N/A\",\"\",INDEX(Ranks!$1:$1048576,$A353,C$1))","v":""},{"$f":"IF($A353=\"N/A\",Ref!$B$36,INDEX(Ranks!$1:$1048576,$A353,D$1))","v":""},{"$f":"IF($A353=\"N/A\",Ref!$B$36,INDEX(Ranks!$1:$1048576,$A353,E$1))","v":""},{"$f":"IF($A353=\"N/A\",\"\",INDEX(Ranks!$1:$1048576,$A353,F$1))","v":""},{"$f":"IF($A353=\"N/A\",\"\",INDEX(Ranks!$1:$1048576,$A353,G$1))","v":""},{"$f":"IF($A353=\"N/A\",\"\",INDEX(Ranks!$1:$1048576,$A353,H$1))","v":""},{"$f":"IF($A353=\"N/A\",\"\",INDEX(Ranks!$1:$1048576,$A353,I$1))","v":""},{"$f":"IF($A353=\"N/A\",\"\",INDEX(Ranks!$1:$1048576,$A353,J$1))","v":""},{"$f":"IF($A353=\"N/A\",\"\",INDEX(Ranks!$1:$1048576,$A353,K$1))","v":""},null,{"$f":"IF($A353=\"N/A\",Ref!$B$36,INDEX(Ranks!$1:$1048576,$A353,M$1))","v":""},{"$f":"IF($A353=\"N/A\",Ref!$B$36,INDEX(Ranks!$1:$1048576,$A353,N$1))","v":""},{"$f":"IF($A353=\"N/A\",Ref!$B$36,INDEX(Ranks!$1:$1048576,$A353,O$1))","v":""},{"$f":"IF($A353=\"N/A\",Ref!$B$36,INDEX(Ranks!$1:$1048576,$A353,P$1))","v":""},{"$f":"IF($A353=\"N/A\",Ref!$B$36,INDEX(Ranks!$1:$1048576,$A353,Q$1))","v":""},{"$f":"IF($A353=\"N/A\",Ref!$B$36,INDEX(Ranks!$1:$1048576,$A353,R$1))","v":""},{"$f":"IF($A353=\"N/A\",Ref!$B$36,INDEX(Ranks!$1:$1048576,$A353,S$1))","v":""},{"$f":"IF($A353=\"N/A\",Ref!$B$36,INDEX(Ranks!$1:$1048576,$A353,T$1))","v":""},{"$f":"IF($A353=\"N/A\",Ref!$B$36,INDEX(Ranks!$1:$1048576,$A353,U$1))","v":""},{"$f":"IF($A353=\"N/A\",Ref!$B$36,INDEX(Ranks!$1:$1048576,$A353,V$1))","v":""},{"$f":"IF($A353=\"N/A\",Ref!$B$36,INDEX(Ranks!$1:$1048576,$A353,W$1))","v":""},{"$f":"IF($A353=\"N/A\",Ref!$B$36,INDEX(Ranks!$1:$1048576,$A353,X$1))","v":""},{"$f":"IF($A353=\"N/A\",Ref!$B$36,INDEX(Ranks!$1:$1048576,$A353,Y$1))","v":""},{"$f":"IF($A353=\"N/A\",Ref!$B$36,INDEX(Ranks!$1:$1048576,$A353,Z$1))","v":""},{"$f":"IF($A353=\"N/A\",Ref!$B$36,INDEX(Ranks!$1:$1048576,$A353,AA$1))","v":""},{"$f":"IF($A353=\"N/A\",Ref!$B$36,INDEX(Ranks!$1:$1048576,$A353,AB$1))","v":""},{"$f":"IF($A353=\"N/A\",Ref!$B$36,INDEX(Ranks!$1:$1048576,$A353,AC$1))","v":""},{"$f":"IF($A353=\"N/A\",Ref!$B$36,INDEX(Ranks!$1:$1048576,$A353,AD$1))","v":""},{"$f":"IF($A353=\"N/A\",Ref!$B$36,INDEX(Ranks!$1:$1048576,$A353,AE$1))","v":""},{"$f":"IF($A353=\"N/A\",Ref!$B$36,INDEX(Ranks!$1:$1048576,$A353,AF$1))","v":""},{"$f":"IF($A353=\"N/A\",Ref!$B$36,INDEX(Ranks!$1:$1048576,$A353,AG$1))","v":""},{"$f":"IF($A353=\"N/A\",Ref!$B$36,INDEX(Ranks!$1:$1048576,$A353,AH$1))","v":""},{"$f":"IF($A353=\"N/A\",Ref!$B$36,INDEX(Ranks!$1:$1048576,$A353,AI$1))","v":""},{"$f":"IF($A353=\"N/A\",Ref!$B$36,INDEX(Ranks!$1:$1048576,$A353,AJ$1))","v":""},{"$f":"IF($A353=\"N/A\",Ref!$B$36,INDEX(Ranks!$1:$1048576,$A353,AK$1))","v":""},{"$f":"IF($A353=\"N/A\",Ref!$B$36,INDEX(Ranks!$1:$1048576,$A353,AL$1))","v":""},{"$f":"IF($A353=\"N/A\",Ref!$B$36,INDEX(Ranks!$1:$1048576,$A353,AM$1))","v":""},{"$f":"IF($A353=\"N/A\",Ref!$B$36,INDEX(Ranks!$1:$1048576,$A353,AN$1))","v":""},{"$f":"IF($A353=\"N/A\",Ref!$B$36,INDEX(Ranks!$1:$1048576,$A353,AO$1))","v":""},{"$f":"IF($A353=\"N/A\",Ref!$B$36,INDEX(Ranks!$1:$1048576,$A353,AP$1))","v":""},{"$f":"IF($A353=\"N/A\",Ref!$B$36,INDEX(Ranks!$1:$1048576,$A353,AQ$1))","v":""},{"$f":"IF($A353=\"N/A\",Ref!$B$36,INDEX(Ranks!$1:$1048576,$A353,AR$1))","v":""},{"$f":"IF($A353=\"N/A\",Ref!$B$36,INDEX(Ranks!$1:$1048576,$A353,AS$1))","v":""},{"$f":"IF($A353=\"N/A\",Ref!$B$36,INDEX(Ranks!$1:$1048576,$A353,AT$1))","v":""},{"$f":"IF($A353=\"N/A\",Ref!$B$36,INDEX(Ranks!$1:$1048576,$A353,AU$1))","v":""},{"$f":"IF($A353=\"N/A\",Ref!$B$36,INDEX(Ranks!$1:$1048576,$A353,AV$1))","v":""},{"$f":"IF($A353=\"N/A\",Ref!$B$36,INDEX(Ranks!$1:$1048576,$A353,AW$1))","v":""},{"$f":"IF($A353=\"N/A\",Ref!$B$36,INDEX(Ranks!$1:$1048576,$A353,AX$1))","v":""},{"$f":"IF($A353=\"N/A\",Ref!$B$36,INDEX(Ranks!$1:$1048576,$A353,AY$1))","v":""},{"$f":"IF($A353=\"N/A\",Ref!$B$36,INDEX(Ranks!$1:$1048576,$A353,AZ$1))","v":""},{"$f":"IF($A353=\"N/A\",Ref!$B$36,INDEX(Ranks!$1:$1048576,$A353,BA$1))","v":""},{"$f":"IF($A353=\"N/A\",Ref!$B$36,INDEX(Ranks!$1:$1048576,$A353,BB$1))","v":""},{"$f":"IF($A353=\"N/A\",Ref!$B$36,INDEX(Ranks!$1:$1048576,$A353,BC$1))","v":""},{"$f":"IF($A353=\"N/A\",Ref!$B$36,INDEX(Ranks!$1:$1048576,$A353,BD$1))","v":""},{"$f":"IF($A353=\"N/A\",Ref!$B$36,INDEX(Ranks!$1:$1048576,$A353,BE$1))","v":""},{"$f":"IF($A353=\"N/A\",Ref!$B$36,INDEX(Ranks!$1:$1048576,$A353,BF$1))","v":""},{"$f":"IF($A353=\"N/A\",Ref!$B$36,INDEX(Ranks!$1:$1048576,$A353,BG$1))","v":""},{"$f":"IF($A353=\"N/A\",Ref!$B$36,INDEX(Ranks!$1:$1048576,$A353,BH$1))","v":""},{"$f":"IF($A353=\"N/A\",Ref!$B$36,INDEX(Ranks!$1:$1048576,$A353,BI$1))","v":""},{"$f":"IF($A353=\"N/A\",Ref!$B$36,INDEX(Ranks!$1:$1048576,$A353,BJ$1))","v":""},{"$f":"IF($A353=\"N/A\",Ref!$B$36,INDEX(Ranks!$1:$1048576,$A353,BK$1))","v":""},{"$f":"IF($A353=\"N/A\",Ref!$B$36,INDEX(Ranks!$1:$1048576,$A353,BL$1))","v":""},{"$f":"IF($A353=\"N/A\",Ref!$B$36,INDEX(Ranks!$1:$1048576,$A353,BM$1))","v":""},{"$f":"IF($A353=\"N/A\",Ref!$B$36,INDEX(Ranks!$1:$1048576,$A353,BN$1))","v":""},{"$f":"IF($A353=\"N/A\",Ref!$B$36,INDEX(Ranks!$1:$1048576,$A353,BO$1))","v":""},{"$f":"IF($A353=\"N/A\",Ref!$B$36,INDEX(Ranks!$1:$1048576,$A353,BP$1))","v":""},{"$f":"IF($A353=\"N/A\",Ref!$B$36,INDEX(Ranks!$1:$1048576,$A353,BQ$1))","v":""},{"$f":"IF($A353=\"N/A\",Ref!$B$36,INDEX(Ranks!$1:$1048576,$A353,BR$1))","v":""},{"$f":"IF($A353=\"N/A\",Ref!$B$36,INDEX(Ranks!$1:$1048576,$A353,BS$1))","v":""},{"$f":"IF($A353=\"N/A\",Ref!$B$36,INDEX(Ranks!$1:$1048576,$A353,BT$1))","v":""},{"$f":"IF($A353=\"N/A\",Ref!$B$36,INDEX(Ranks!$1:$1048576,$A353,BU$1))","v":""},{"$f":"IF($A353=\"N/A\",Ref!$B$36,INDEX(Ranks!$1:$1048576,$A353,BV$1))","v":""},{"$f":"IF($A353=\"N/A\",Ref!$B$36,INDEX(Ranks!$1:$1048576,$A353,BW$1))","v":""},{"$f":"IF($A353=\"N/A\",Ref!$B$36,INDEX(Ranks!$1:$1048576,$A353,BX$1))","v":""},{"$f":"IF($A353=\"N/A\",Ref!$B$36,INDEX(Ranks!$1:$1048576,$A353,BY$1))","v":""},{"$f":"IF($A353=\"N/A\",Ref!$B$36,INDEX(Ranks!$1:$1048576,$A353,BZ$1))","v":""},{"$f":"IF($A353=\"N/A\",Ref!$B$36,INDEX(Ranks!$1:$1048576,$A353,CA$1))","v":""},{"$f":"IF($A353=\"N/A\",Ref!$B$36,INDEX(Ranks!$1:$1048576,$A353,CB$1))","v":""},{"$f":"IF($A353=\"N/A\",Ref!$B$36,INDEX(Ranks!$1:$1048576,$A353,CC$1))","v":""},{"$f":"IF($A353=\"N/A\",Ref!$B$36,INDEX(Ranks!$1:$1048576,$A353,CD$1))","v":""},{"$f":"IF($A353=\"N/A\",Ref!$B$36,INDEX(Ranks!$1:$1048576,$A353,CE$1))","v":""},{"$f":"IF($A353=\"N/A\",Ref!$B$36,INDEX(Ranks!$1:$1048576,$A353,CF$1))","v":""},{"$f":"IF($A353=\"N/A\",Ref!$B$36,INDEX(Ranks!$1:$1048576,$A353,CG$1))","v":""},{"$f":"IF($A353=\"N/A\",Ref!$B$36,INDEX(Ranks!$1:$1048576,$A353,CH$1))","v":""},{"$f":"IF($A353=\"N/A\",Ref!$B$36,INDEX(Ranks!$1:$1048576,$A353,CI$1))","v":""},{"$f":"IF($A353=\"N/A\",Ref!$B$36,INDEX(Ranks!$1:$1048576,$A353,CJ$1))","v":""},{"$f":"IF($A353=\"N/A\",Ref!$B$36,INDEX(Ranks!$1:$1048576,$A353,CK$1))","v":""},{"$f":"IF($A353=\"N/A\",Ref!$B$36,INDEX(Ranks!$1:$1048576,$A353,CL$1))","v":""},{"$f":"IF($A353=\"N/A\",Ref!$B$36,INDEX(Ranks!$1:$1048576,$A353,CM$1))","v":""},{"$f":"IF($A353=\"N/A\",Ref!$B$36,INDEX(Ranks!$1:$1048576,$A353,CN$1))","v":""},{"$f":"IF($A353=\"N/A\",Ref!$B$36,INDEX(Ranks!$1:$1048576,$A353,CO$1))","v":""},{"$f":"IF($A353=\"N/A\",Ref!$B$36,INDEX(Ranks!$1:$1048576,$A353,CP$1))","v":""},{"$f":"IF($A353=\"N/A\",Ref!$B$36,INDEX(Ranks!$1:$1048576,$A353,CQ$1))","v":""},{"$f":"IF($A353=\"N/A\",Ref!$B$36,INDEX(Ranks!$1:$1048576,$A353,CR$1))","v":""},{"$f":"IF($A353=\"N/A\",Ref!$B$36,INDEX(Ranks!$1:$1048576,$A353,CS$1))","v":""},{"$f":"IF($A353=\"N/A\",Ref!$B$36,INDEX(Ranks!$1:$1048576,$A353,CT$1))","v":""},{"$f":"IF($A353=\"N/A\",Ref!$B$36,INDEX(Ranks!$1:$1048576,$A353,CU$1))","v":""},{"$f":"IF($A353=\"N/A\",Ref!$B$36,INDEX(Ranks!$1:$1048576,$A353,CV$1))","v":""},{"$f":"IF($A353=\"N/A\",Ref!$B$36,INDEX(Ranks!$1:$1048576,$A353,CW$1))","v":""},{"$f":"IF($A353=\"N/A\",Ref!$B$36,INDEX(Ranks!$1:$1048576,$A353,CX$1))","v":""},{"$f":"IF($A353=\"N/A\",Ref!$B$36,INDEX(Ranks!$1:$1048576,$A353,CY$1))","v":""},{"$f":"IF($A353=\"N/A\",Ref!$B$36,INDEX(Ranks!$1:$1048576,$A353,CZ$1))","v":""},{"$f":"IF($A353=\"N/A\",Ref!$B$36,INDEX(Ranks!$1:$1048576,$A353,DA$1))","v":""},{"$f":"IF($A353=\"N/A\",Ref!$B$36,INDEX(Ranks!$1:$1048576,$A353,DB$1))","v":""},{"$f":"IF($A353=\"N/A\",Ref!$B$36,INDEX(Ranks!$1:$1048576,$A353,DC$1))","v":""},{"$f":"IF($A353=\"N/A\",Ref!$B$36,INDEX(Ranks!$1:$1048576,$A353,DD$1))","v":""},{"$f":"IF($A353=\"N/A\",Ref!$B$36,INDEX(Ranks!$1:$1048576,$A353,DE$1))","v":""},{"$f":"IF($A353=\"N/A\",Ref!$B$36,INDEX(Ranks!$1:$1048576,$A353,DF$1))","v":""},{"$f":"IF($A353=\"N/A\",Ref!$B$36,INDEX(Ranks!$1:$1048576,$A353,DG$1))","v":""},{"$f":"IF($A353=\"N/A\",Ref!$B$36,INDEX(Ranks!$1:$1048576,$A353,DH$1))","v":""},{"$f":"IF($A353=\"N/A\",Ref!$B$36,INDEX(Ranks!$1:$1048576,$A353,DI$1))","v":""},{"$f":"IF($A353=\"N/A\",Ref!$B$36,INDEX(Ranks!$1:$1048576,$A353,DJ$1))","v":""},{"$f":"IF($A353=\"N/A\",Ref!$B$36,INDEX(Ranks!$1:$1048576,$A353,DK$1))","v":""},{"$f":"IF($A353=\"N/A\",Ref!$B$36,INDEX(Ranks!$1:$1048576,$A353,DL$1))","v":""},{"$f":"IF($A353=\"N/A\",Ref!$B$36,INDEX(Ranks!$1:$1048576,$A353,DM$1))","v":""},{"$f":"IF($A353=\"N/A\",Ref!$B$36,INDEX(Ranks!$1:$1048576,$A353,DN$1))","v":""},{"$f":"IF($A353=\"N/A\",Ref!$B$36,INDEX(Ranks!$1:$1048576,$A353,DO$1))","v":""},{"$f":"IF($A353=\"N/A\",Ref!$B$36,INDEX(Ranks!$1:$1048576,$A353,DP$1))","v":""},{"$f":"IF($A353=\"N/A\",Ref!$B$36,INDEX(Ranks!$1:$1048576,$A353,DQ$1))","v":""},{"$f":"IF($A353=\"N/A\",Ref!$B$36,INDEX(Ranks!$1:$1048576,$A353,DR$1))","v":""},{"$f":"IF($A353=\"N/A\",Ref!$B$36,INDEX(Ranks!$1:$1048576,$A353,DS$1))","v":""},{"$f":"IF($A353=\"N/A\",Ref!$B$36,INDEX(Ranks!$1:$1048576,$A353,DT$1))","v":""},{"$f":"IF($A353=\"N/A\",Ref!$B$36,INDEX(Ranks!$1:$1048576,$A353,DU$1))","v":""},{"$f":"IF($A353=\"N/A\",Ref!$B$36,INDEX(Ranks!$1:$1048576,$A353,DV$1))","v":""},{"$f":"IF($A353=\"N/A\",Ref!$B$36,INDEX(Ranks!$1:$1048576,$A353,DW$1))","v":""},{"$f":"IF($A353=\"N/A\",Ref!$B$36,INDEX(Ranks!$1:$1048576,$A353,DX$1))","v":""},{"$f":"IF($A353=\"N/A\",Ref!$B$36,INDEX(Ranks!$1:$1048576,$A353,DY$1))","v":""},{"$f":"IF($A353=\"N/A\",Ref!$B$36,INDEX(Ranks!$1:$1048576,$A353,DZ$1))","v":""},{"$f":"IF($A353=\"N/A\",Ref!$B$36,INDEX(Ranks!$1:$1048576,$A353,EA$1))","v":""},{"$f":"IF($A353=\"N/A\",Ref!$B$36,INDEX(Ranks!$1:$1048576,$A353,EB$1))","v":""}]
[{"$f":"IFERROR(MATCH('Portfolio Page'!L354,Ranks!L:L,0),\"N/A\")","v":"N/A"},null,{"$f":"IF($A354=\"N/A\",\"\",INDEX(Ranks!$1:$1048576,$A354,C$1))","v":""},{"$f":"IF($A354=\"N/A\",Ref!$B$36,INDEX(Ranks!$1:$1048576,$A354,D$1))","v":""},{"$f":"IF($A354=\"N/A\",Ref!$B$36,INDEX(Ranks!$1:$1048576,$A354,E$1))","v":""},{"$f":"IF($A354=\"N/A\",\"\",INDEX(Ranks!$1:$1048576,$A354,F$1))","v":""},{"$f":"IF($A354=\"N/A\",\"\",INDEX(Ranks!$1:$1048576,$A354,G$1))","v":""},{"$f":"IF($A354=\"N/A\",\"\",INDEX(Ranks!$1:$1048576,$A354,H$1))","v":""},{"$f":"IF($A354=\"N/A\",\"\",INDEX(Ranks!$1:$1048576,$A354,I$1))","v":""},{"$f":"IF($A354=\"N/A\",\"\",INDEX(Ranks!$1:$1048576,$A354,J$1))","v":""},{"$f":"IF($A354=\"N/A\",\"\",INDEX(Ranks!$1:$1048576,$A354,K$1))","v":""},null,{"$f":"IF($A354=\"N/A\",Ref!$B$36,INDEX(Ranks!$1:$1048576,$A354,M$1))","v":""},{"$f":"IF($A354=\"N/A\",Ref!$B$36,INDEX(Ranks!$1:$1048576,$A354,N$1))","v":""},{"$f":"IF($A354=\"N/A\",Ref!$B$36,INDEX(Ranks!$1:$1048576,$A354,O$1))","v":""},{"$f":"IF($A354=\"N/A\",Ref!$B$36,INDEX(Ranks!$1:$1048576,$A354,P$1))","v":""},{"$f":"IF($A354=\"N/A\",Ref!$B$36,INDEX(Ranks!$1:$1048576,$A354,Q$1))","v":""},{"$f":"IF($A354=\"N/A\",Ref!$B$36,INDEX(Ranks!$1:$1048576,$A354,R$1))","v":""},{"$f":"IF($A354=\"N/A\",Ref!$B$36,INDEX(Ranks!$1:$1048576,$A354,S$1))","v":""},{"$f":"IF($A354=\"N/A\",Ref!$B$36,INDEX(Ranks!$1:$1048576,$A354,T$1))","v":""},{"$f":"IF($A354=\"N/A\",Ref!$B$36,INDEX(Ranks!$1:$1048576,$A354,U$1))","v":""},{"$f":"IF($A354=\"N/A\",Ref!$B$36,INDEX(Ranks!$1:$1048576,$A354,V$1))","v":""},{"$f":"IF($A354=\"N/A\",Ref!$B$36,INDEX(Ranks!$1:$1048576,$A354,W$1))","v":""},{"$f":"IF($A354=\"N/A\",Ref!$B$36,INDEX(Ranks!$1:$1048576,$A354,X$1))","v":""},{"$f":"IF($A354=\"N/A\",Ref!$B$36,INDEX(Ranks!$1:$1048576,$A354,Y$1))","v":""},{"$f":"IF($A354=\"N/A\",Ref!$B$36,INDEX(Ranks!$1:$1048576,$A354,Z$1))","v":""},{"$f":"IF($A354=\"N/A\",Ref!$B$36,INDEX(Ranks!$1:$1048576,$A354,AA$1))","v":""},{"$f":"IF($A354=\"N/A\",Ref!$B$36,INDEX(Ranks!$1:$1048576,$A354,AB$1))","v":""},{"$f":"IF($A354=\"N/A\",Ref!$B$36,INDEX(Ranks!$1:$1048576,$A354,AC$1))","v":""},{"$f":"IF($A354=\"N/A\",Ref!$B$36,INDEX(Ranks!$1:$1048576,$A354,AD$1))","v":""},{"$f":"IF($A354=\"N/A\",Ref!$B$36,INDEX(Ranks!$1:$1048576,$A354,AE$1))","v":""},{"$f":"IF($A354=\"N/A\",Ref!$B$36,INDEX(Ranks!$1:$1048576,$A354,AF$1))","v":""},{"$f":"IF($A354=\"N/A\",Ref!$B$36,INDEX(Ranks!$1:$1048576,$A354,AG$1))","v":""},{"$f":"IF($A354=\"N/A\",Ref!$B$36,INDEX(Ranks!$1:$1048576,$A354,AH$1))","v":""},{"$f":"IF($A354=\"N/A\",Ref!$B$36,INDEX(Ranks!$1:$1048576,$A354,AI$1))","v":""},{"$f":"IF($A354=\"N/A\",Ref!$B$36,INDEX(Ranks!$1:$1048576,$A354,AJ$1))","v":""},{"$f":"IF($A354=\"N/A\",Ref!$B$36,INDEX(Ranks!$1:$1048576,$A354,AK$1))","v":""},{"$f":"IF($A354=\"N/A\",Ref!$B$36,INDEX(Ranks!$1:$1048576,$A354,AL$1))","v":""},{"$f":"IF($A354=\"N/A\",Ref!$B$36,INDEX(Ranks!$1:$1048576,$A354,AM$1))","v":""},{"$f":"IF($A354=\"N/A\",Ref!$B$36,INDEX(Ranks!$1:$1048576,$A354,AN$1))","v":""},{"$f":"IF($A354=\"N/A\",Ref!$B$36,INDEX(Ranks!$1:$1048576,$A354,AO$1))","v":""},{"$f":"IF($A354=\"N/A\",Ref!$B$36,INDEX(Ranks!$1:$1048576,$A354,AP$1))","v":""},{"$f":"IF($A354=\"N/A\",Ref!$B$36,INDEX(Ranks!$1:$1048576,$A354,AQ$1))","v":""},{"$f":"IF($A354=\"N/A\",Ref!$B$36,INDEX(Ranks!$1:$1048576,$A354,AR$1))","v":""},{"$f":"IF($A354=\"N/A\",Ref!$B$36,INDEX(Ranks!$1:$1048576,$A354,AS$1))","v":""},{"$f":"IF($A354=\"N/A\",Ref!$B$36,INDEX(Ranks!$1:$1048576,$A354,AT$1))","v":""},{"$f":"IF($A354=\"N/A\",Ref!$B$36,INDEX(Ranks!$1:$1048576,$A354,AU$1))","v":""},{"$f":"IF($A354=\"N/A\",Ref!$B$36,INDEX(Ranks!$1:$1048576,$A354,AV$1))","v":""},{"$f":"IF($A354=\"N/A\",Ref!$B$36,INDEX(Ranks!$1:$1048576,$A354,AW$1))","v":""},{"$f":"IF($A354=\"N/A\",Ref!$B$36,INDEX(Ranks!$1:$1048576,$A354,AX$1))","v":""},{"$f":"IF($A354=\"N/A\",Ref!$B$36,INDEX(Ranks!$1:$1048576,$A354,AY$1))","v":""},{"$f":"IF($A354=\"N/A\",Ref!$B$36,INDEX(Ranks!$1:$1048576,$A354,AZ$1))","v":""},{"$f":"IF($A354=\"N/A\",Ref!$B$36,INDEX(Ranks!$1:$1048576,$A354,BA$1))","v":""},{"$f":"IF($A354=\"N/A\",Ref!$B$36,INDEX(Ranks!$1:$1048576,$A354,BB$1))","v":""},{"$f":"IF($A354=\"N/A\",Ref!$B$36,INDEX(Ranks!$1:$1048576,$A354,BC$1))","v":""},{"$f":"IF($A354=\"N/A\",Ref!$B$36,INDEX(Ranks!$1:$1048576,$A354,BD$1))","v":""},{"$f":"IF($A354=\"N/A\",Ref!$B$36,INDEX(Ranks!$1:$1048576,$A354,BE$1))","v":""},{"$f":"IF($A354=\"N/A\",Ref!$B$36,INDEX(Ranks!$1:$1048576,$A354,BF$1))","v":""},{"$f":"IF($A354=\"N/A\",Ref!$B$36,INDEX(Ranks!$1:$1048576,$A354,BG$1))","v":""},{"$f":"IF($A354=\"N/A\",Ref!$B$36,INDEX(Ranks!$1:$1048576,$A354,BH$1))","v":""},{"$f":"IF($A354=\"N/A\",Ref!$B$36,INDEX(Ranks!$1:$1048576,$A354,BI$1))","v":""},{"$f":"IF($A354=\"N/A\",Ref!$B$36,INDEX(Ranks!$1:$1048576,$A354,BJ$1))","v":""},{"$f":"IF($A354=\"N/A\",Ref!$B$36,INDEX(Ranks!$1:$1048576,$A354,BK$1))","v":""},{"$f":"IF($A354=\"N/A\",Ref!$B$36,INDEX(Ranks!$1:$1048576,$A354,BL$1))","v":""},{"$f":"IF($A354=\"N/A\",Ref!$B$36,INDEX(Ranks!$1:$1048576,$A354,BM$1))","v":""},{"$f":"IF($A354=\"N/A\",Ref!$B$36,INDEX(Ranks!$1:$1048576,$A354,BN$1))","v":""},{"$f":"IF($A354=\"N/A\",Ref!$B$36,INDEX(Ranks!$1:$1048576,$A354,BO$1))","v":""},{"$f":"IF($A354=\"N/A\",Ref!$B$36,INDEX(Ranks!$1:$1048576,$A354,BP$1))","v":""},{"$f":"IF($A354=\"N/A\",Ref!$B$36,INDEX(Ranks!$1:$1048576,$A354,BQ$1))","v":""},{"$f":"IF($A354=\"N/A\",Ref!$B$36,INDEX(Ranks!$1:$1048576,$A354,BR$1))","v":""},{"$f":"IF($A354=\"N/A\",Ref!$B$36,INDEX(Ranks!$1:$1048576,$A354,BS$1))","v":""},{"$f":"IF($A354=\"N/A\",Ref!$B$36,INDEX(Ranks!$1:$1048576,$A354,BT$1))","v":""},{"$f":"IF($A354=\"N/A\",Ref!$B$36,INDEX(Ranks!$1:$1048576,$A354,BU$1))","v":""},{"$f":"IF($A354=\"N/A\",Ref!$B$36,INDEX(Ranks!$1:$1048576,$A354,BV$1))","v":""},{"$f":"IF($A354=\"N/A\",Ref!$B$36,INDEX(Ranks!$1:$1048576,$A354,BW$1))","v":""},{"$f":"IF($A354=\"N/A\",Ref!$B$36,INDEX(Ranks!$1:$1048576,$A354,BX$1))","v":""},{"$f":"IF($A354=\"N/A\",Ref!$B$36,INDEX(Ranks!$1:$1048576,$A354,BY$1))","v":""},{"$f":"IF($A354=\"N/A\",Ref!$B$36,INDEX(Ranks!$1:$1048576,$A354,BZ$1))","v":""},{"$f":"IF($A354=\"N/A\",Ref!$B$36,INDEX(Ranks!$1:$1048576,$A354,CA$1))","v":""},{"$f":"IF($A354=\"N/A\",Ref!$B$36,INDEX(Ranks!$1:$1048576,$A354,CB$1))","v":""},{"$f":"IF($A354=\"N/A\",Ref!$B$36,INDEX(Ranks!$1:$1048576,$A354,CC$1))","v":""},{"$f":"IF($A354=\"N/A\",Ref!$B$36,INDEX(Ranks!$1:$1048576,$A354,CD$1))","v":""},{"$f":"IF($A354=\"N/A\",Ref!$B$36,INDEX(Ranks!$1:$1048576,$A354,CE$1))","v":""},{"$f":"IF($A354=\"N/A\",Ref!$B$36,INDEX(Ranks!$1:$1048576,$A354,CF$1))","v":""},{"$f":"IF($A354=\"N/A\",Ref!$B$36,INDEX(Ranks!$1:$1048576,$A354,CG$1))","v":""},{"$f":"IF($A354=\"N/A\",Ref!$B$36,INDEX(Ranks!$1:$1048576,$A354,CH$1))","v":""},{"$f":"IF($A354=\"N/A\",Ref!$B$36,INDEX(Ranks!$1:$1048576,$A354,CI$1))","v":""},{"$f":"IF($A354=\"N/A\",Ref!$B$36,INDEX(Ranks!$1:$1048576,$A354,CJ$1))","v":""},{"$f":"IF($A354=\"N/A\",Ref!$B$36,INDEX(Ranks!$1:$1048576,$A354,CK$1))","v":""},{"$f":"IF($A354=\"N/A\",Ref!$B$36,INDEX(Ranks!$1:$1048576,$A354,CL$1))","v":""},{"$f":"IF($A354=\"N/A\",Ref!$B$36,INDEX(Ranks!$1:$1048576,$A354,CM$1))","v":""},{"$f":"IF($A354=\"N/A\",Ref!$B$36,INDEX(Ranks!$1:$1048576,$A354,CN$1))","v":""},{"$f":"IF($A354=\"N/A\",Ref!$B$36,INDEX(Ranks!$1:$1048576,$A354,CO$1))","v":""},{"$f":"IF($A354=\"N/A\",Ref!$B$36,INDEX(Ranks!$1:$1048576,$A354,CP$1))","v":""},{"$f":"IF($A354=\"N/A\",Ref!$B$36,INDEX(Ranks!$1:$1048576,$A354,CQ$1))","v":""},{"$f":"IF($A354=\"N/A\",Ref!$B$36,INDEX(Ranks!$1:$1048576,$A354,CR$1))","v":""},{"$f":"IF($A354=\"N/A\",Ref!$B$36,INDEX(Ranks!$1:$1048576,$A354,CS$1))","v":""},{"$f":"IF($A354=\"N/A\",Ref!$B$36,INDEX(Ranks!$1:$1048576,$A354,CT$1))","v":""},{"$f":"IF($A354=\"N/A\",Ref!$B$36,INDEX(Ranks!$1:$1048576,$A354,CU$1))","v":""},{"$f":"IF($A354=\"N/A\",Ref!$B$36,INDEX(Ranks!$1:$1048576,$A354,CV$1))","v":""},{"$f":"IF($A354=\"N/A\",Ref!$B$36,INDEX(Ranks!$1:$1048576,$A354,CW$1))","v":""},{"$f":"IF($A354=\"N/A\",Ref!$B$36,INDEX(Ranks!$1:$1048576,$A354,CX$1))","v":""},{"$f":"IF($A354=\"N/A\",Ref!$B$36,INDEX(Ranks!$1:$1048576,$A354,CY$1))","v":""},{"$f":"IF($A354=\"N/A\",Ref!$B$36,INDEX(Ranks!$1:$1048576,$A354,CZ$1))","v":""},{"$f":"IF($A354=\"N/A\",Ref!$B$36,INDEX(Ranks!$1:$1048576,$A354,DA$1))","v":""},{"$f":"IF($A354=\"N/A\",Ref!$B$36,INDEX(Ranks!$1:$1048576,$A354,DB$1))","v":""},{"$f":"IF($A354=\"N/A\",Ref!$B$36,INDEX(Ranks!$1:$1048576,$A354,DC$1))","v":""},{"$f":"IF($A354=\"N/A\",Ref!$B$36,INDEX(Ranks!$1:$1048576,$A354,DD$1))","v":""},{"$f":"IF($A354=\"N/A\",Ref!$B$36,INDEX(Ranks!$1:$1048576,$A354,DE$1))","v":""},{"$f":"IF($A354=\"N/A\",Ref!$B$36,INDEX(Ranks!$1:$1048576,$A354,DF$1))","v":""},{"$f":"IF($A354=\"N/A\",Ref!$B$36,INDEX(Ranks!$1:$1048576,$A354,DG$1))","v":""},{"$f":"IF($A354=\"N/A\",Ref!$B$36,INDEX(Ranks!$1:$1048576,$A354,DH$1))","v":""},{"$f":"IF($A354=\"N/A\",Ref!$B$36,INDEX(Ranks!$1:$1048576,$A354,DI$1))","v":""},{"$f":"IF($A354=\"N/A\",Ref!$B$36,INDEX(Ranks!$1:$1048576,$A354,DJ$1))","v":""},{"$f":"IF($A354=\"N/A\",Ref!$B$36,INDEX(Ranks!$1:$1048576,$A354,DK$1))","v":""},{"$f":"IF($A354=\"N/A\",Ref!$B$36,INDEX(Ranks!$1:$1048576,$A354,DL$1))","v":""},{"$f":"IF($A354=\"N/A\",Ref!$B$36,INDEX(Ranks!$1:$1048576,$A354,DM$1))","v":""},{"$f":"IF($A354=\"N/A\",Ref!$B$36,INDEX(Ranks!$1:$1048576,$A354,DN$1))","v":""},{"$f":"IF($A354=\"N/A\",Ref!$B$36,INDEX(Ranks!$1:$1048576,$A354,DO$1))","v":""},{"$f":"IF($A354=\"N/A\",Ref!$B$36,INDEX(Ranks!$1:$1048576,$A354,DP$1))","v":""},{"$f":"IF($A354=\"N/A\",Ref!$B$36,INDEX(Ranks!$1:$1048576,$A354,DQ$1))","v":""},{"$f":"IF($A354=\"N/A\",Ref!$B$36,INDEX(Ranks!$1:$1048576,$A354,DR$1))","v":""},{"$f":"IF($A354=\"N/A\",Ref!$B$36,INDEX(Ranks!$1:$1048576,$A354,DS$1))","v":""},{"$f":"IF($A354=\"N/A\",Ref!$B$36,INDEX(Ranks!$1:$1048576,$A354,DT$1))","v":""},{"$f":"IF($A354=\"N/A\",Ref!$B$36,INDEX(Ranks!$1:$1048576,$A354,DU$1))","v":""},{"$f":"IF($A354=\"N/A\",Ref!$B$36,INDEX(Ranks!$1:$1048576,$A354,DV$1))","v":""},{"$f":"IF($A354=\"N/A\",Ref!$B$36,INDEX(Ranks!$1:$1048576,$A354,DW$1))","v":""},{"$f":"IF($A354=\"N/A\",Ref!$B$36,INDEX(Ranks!$1:$1048576,$A354,DX$1))","v":""},{"$f":"IF($A354=\"N/A\",Ref!$B$36,INDEX(Ranks!$1:$1048576,$A354,DY$1))","v":""},{"$f":"IF($A354=\"N/A\",Ref!$B$36,INDEX(Ranks!$1:$1048576,$A354,DZ$1))","v":""},{"$f":"IF($A354=\"N/A\",Ref!$B$36,INDEX(Ranks!$1:$1048576,$A354,EA$1))","v":""},{"$f":"IF($A354=\"N/A\",Ref!$B$36,INDEX(Ranks!$1:$1048576,$A354,EB$1))","v":""}]
[{"$f":"IFERROR(MATCH('Portfolio Page'!L355,Ranks!L:L,0),\"N/A\")","v":"N/A"},null,{"$f":"IF($A355=\"N/A\",\"\",INDEX(Ranks!$1:$1048576,$A355,C$1))","v":""},{"$f":"IF($A355=\"N/A\",Ref!$B$36,INDEX(Ranks!$1:$1048576,$A355,D$1))","v":""},{"$f":"IF($A355=\"N/A\",Ref!$B$36,INDEX(Ranks!$1:$1048576,$A355,E$1))","v":""},{"$f":"IF($A355=\"N/A\",\"\",INDEX(Ranks!$1:$1048576,$A355,F$1))","v":""},{"$f":"IF($A355=\"N/A\",\"\",INDEX(Ranks!$1:$1048576,$A355,G$1))","v":""},{"$f":"IF($A355=\"N/A\",\"\",INDEX(Ranks!$1:$1048576,$A355,H$1))","v":""},{"$f":"IF($A355=\"N/A\",\"\",INDEX(Ranks!$1:$1048576,$A355,I$1))","v":""},{"$f":"IF($A355=\"N/A\",\"\",INDEX(Ranks!$1:$1048576,$A355,J$1))","v":""},{"$f":"IF($A355=\"N/A\",\"\",INDEX(Ranks!$1:$1048576,$A355,K$1))","v":""},null,{"$f":"IF($A355=\"N/A\",Ref!$B$36,INDEX(Ranks!$1:$1048576,$A355,M$1))","v":""},{"$f":"IF($A355=\"N/A\",Ref!$B$36,INDEX(Ranks!$1:$1048576,$A355,N$1))","v":""},{"$f":"IF($A355=\"N/A\",Ref!$B$36,INDEX(Ranks!$1:$1048576,$A355,O$1))","v":""},{"$f":"IF($A355=\"N/A\",Ref!$B$36,INDEX(Ranks!$1:$1048576,$A355,P$1))","v":""},{"$f":"IF($A355=\"N/A\",Ref!$B$36,INDEX(Ranks!$1:$1048576,$A355,Q$1))","v":""},{"$f":"IF($A355=\"N/A\",Ref!$B$36,INDEX(Ranks!$1:$1048576,$A355,R$1))","v":""},{"$f":"IF($A355=\"N/A\",Ref!$B$36,INDEX(Ranks!$1:$1048576,$A355,S$1))","v":""},{"$f":"IF($A355=\"N/A\",Ref!$B$36,INDEX(Ranks!$1:$1048576,$A355,T$1))","v":""},{"$f":"IF($A355=\"N/A\",Ref!$B$36,INDEX(Ranks!$1:$1048576,$A355,U$1))","v":""},{"$f":"IF($A355=\"N/A\",Ref!$B$36,INDEX(Ranks!$1:$1048576,$A355,V$1))","v":""},{"$f":"IF($A355=\"N/A\",Ref!$B$36,INDEX(Ranks!$1:$1048576,$A355,W$1))","v":""},{"$f":"IF($A355=\"N/A\",Ref!$B$36,INDEX(Ranks!$1:$1048576,$A355,X$1))","v":""},{"$f":"IF($A355=\"N/A\",Ref!$B$36,INDEX(Ranks!$1:$1048576,$A355,Y$1))","v":""},{"$f":"IF($A355=\"N/A\",Ref!$B$36,INDEX(Ranks!$1:$1048576,$A355,Z$1))","v":""},{"$f":"IF($A355=\"N/A\",Ref!$B$36,INDEX(Ranks!$1:$1048576,$A355,AA$1))","v":""},{"$f":"IF($A355=\"N/A\",Ref!$B$36,INDEX(Ranks!$1:$1048576,$A355,AB$1))","v":""},{"$f":"IF($A355=\"N/A\",Ref!$B$36,INDEX(Ranks!$1:$1048576,$A355,AC$1))","v":""},{"$f":"IF($A355=\"N/A\",Ref!$B$36,INDEX(Ranks!$1:$1048576,$A355,AD$1))","v":""},{"$f":"IF($A355=\"N/A\",Ref!$B$36,INDEX(Ranks!$1:$1048576,$A355,AE$1))","v":""},{"$f":"IF($A355=\"N/A\",Ref!$B$36,INDEX(Ranks!$1:$1048576,$A355,AF$1))","v":""},{"$f":"IF($A355=\"N/A\",Ref!$B$36,INDEX(Ranks!$1:$1048576,$A355,AG$1))","v":""},{"$f":"IF($A355=\"N/A\",Ref!$B$36,INDEX(Ranks!$1:$1048576,$A355,AH$1))","v":""},{"$f":"IF($A355=\"N/A\",Ref!$B$36,INDEX(Ranks!$1:$1048576,$A355,AI$1))","v":""},{"$f":"IF($A355=\"N/A\",Ref!$B$36,INDEX(Ranks!$1:$1048576,$A355,AJ$1))","v":""},{"$f":"IF($A355=\"N/A\",Ref!$B$36,INDEX(Ranks!$1:$1048576,$A355,AK$1))","v":""},{"$f":"IF($A355=\"N/A\",Ref!$B$36,INDEX(Ranks!$1:$1048576,$A355,AL$1))","v":""},{"$f":"IF($A355=\"N/A\",Ref!$B$36,INDEX(Ranks!$1:$1048576,$A355,AM$1))","v":""},{"$f":"IF($A355=\"N/A\",Ref!$B$36,INDEX(Ranks!$1:$1048576,$A355,AN$1))","v":""},{"$f":"IF($A355=\"N/A\",Ref!$B$36,INDEX(Ranks!$1:$1048576,$A355,AO$1))","v":""},{"$f":"IF($A355=\"N/A\",Ref!$B$36,INDEX(Ranks!$1:$1048576,$A355,AP$1))","v":""},{"$f":"IF($A355=\"N/A\",Ref!$B$36,INDEX(Ranks!$1:$1048576,$A355,AQ$1))","v":""},{"$f":"IF($A355=\"N/A\",Ref!$B$36,INDEX(Ranks!$1:$1048576,$A355,AR$1))","v":""},{"$f":"IF($A355=\"N/A\",Ref!$B$36,INDEX(Ranks!$1:$1048576,$A355,AS$1))","v":""},{"$f":"IF($A355=\"N/A\",Ref!$B$36,INDEX(Ranks!$1:$1048576,$A355,AT$1))","v":""},{"$f":"IF($A355=\"N/A\",Ref!$B$36,INDEX(Ranks!$1:$1048576,$A355,AU$1))","v":""},{"$f":"IF($A355=\"N/A\",Ref!$B$36,INDEX(Ranks!$1:$1048576,$A355,AV$1))","v":""},{"$f":"IF($A355=\"N/A\",Ref!$B$36,INDEX(Ranks!$1:$1048576,$A355,AW$1))","v":""},{"$f":"IF($A355=\"N/A\",Ref!$B$36,INDEX(Ranks!$1:$1048576,$A355,AX$1))","v":""},{"$f":"IF($A355=\"N/A\",Ref!$B$36,INDEX(Ranks!$1:$1048576,$A355,AY$1))","v":""},{"$f":"IF($A355=\"N/A\",Ref!$B$36,INDEX(Ranks!$1:$1048576,$A355,AZ$1))","v":""},{"$f":"IF($A355=\"N/A\",Ref!$B$36,INDEX(Ranks!$1:$1048576,$A355,BA$1))","v":""},{"$f":"IF($A355=\"N/A\",Ref!$B$36,INDEX(Ranks!$1:$1048576,$A355,BB$1))","v":""},{"$f":"IF($A355=\"N/A\",Ref!$B$36,INDEX(Ranks!$1:$1048576,$A355,BC$1))","v":""},{"$f":"IF($A355=\"N/A\",Ref!$B$36,INDEX(Ranks!$1:$1048576,$A355,BD$1))","v":""},{"$f":"IF($A355=\"N/A\",Ref!$B$36,INDEX(Ranks!$1:$1048576,$A355,BE$1))","v":""},{"$f":"IF($A355=\"N/A\",Ref!$B$36,INDEX(Ranks!$1:$1048576,$A355,BF$1))","v":""},{"$f":"IF($A355=\"N/A\",Ref!$B$36,INDEX(Ranks!$1:$1048576,$A355,BG$1))","v":""},{"$f":"IF($A355=\"N/A\",Ref!$B$36,INDEX(Ranks!$1:$1048576,$A355,BH$1))","v":""},{"$f":"IF($A355=\"N/A\",Ref!$B$36,INDEX(Ranks!$1:$1048576,$A355,BI$1))","v":""},{"$f":"IF($A355=\"N/A\",Ref!$B$36,INDEX(Ranks!$1:$1048576,$A355,BJ$1))","v":""},{"$f":"IF($A355=\"N/A\",Ref!$B$36,INDEX(Ranks!$1:$1048576,$A355,BK$1))","v":""},{"$f":"IF($A355=\"N/A\",Ref!$B$36,INDEX(Ranks!$1:$1048576,$A355,BL$1))","v":""},{"$f":"IF($A355=\"N/A\",Ref!$B$36,INDEX(Ranks!$1:$1048576,$A355,BM$1))","v":""},{"$f":"IF($A355=\"N/A\",Ref!$B$36,INDEX(Ranks!$1:$1048576,$A355,BN$1))","v":""},{"$f":"IF($A355=\"N/A\",Ref!$B$36,INDEX(Ranks!$1:$1048576,$A355,BO$1))","v":""},{"$f":"IF($A355=\"N/A\",Ref!$B$36,INDEX(Ranks!$1:$1048576,$A355,BP$1))","v":""},{"$f":"IF($A355=\"N/A\",Ref!$B$36,INDEX(Ranks!$1:$1048576,$A355,BQ$1))","v":""},{"$f":"IF($A355=\"N/A\",Ref!$B$36,INDEX(Ranks!$1:$1048576,$A355,BR$1))","v":""},{"$f":"IF($A355=\"N/A\",Ref!$B$36,INDEX(Ranks!$1:$1048576,$A355,BS$1))","v":""},{"$f":"IF($A355=\"N/A\",Ref!$B$36,INDEX(Ranks!$1:$1048576,$A355,BT$1))","v":""},{"$f":"IF($A355=\"N/A\",Ref!$B$36,INDEX(Ranks!$1:$1048576,$A355,BU$1))","v":""},{"$f":"IF($A355=\"N/A\",Ref!$B$36,INDEX(Ranks!$1:$1048576,$A355,BV$1))","v":""},{"$f":"IF($A355=\"N/A\",Ref!$B$36,INDEX(Ranks!$1:$1048576,$A355,BW$1))","v":""},{"$f":"IF($A355=\"N/A\",Ref!$B$36,INDEX(Ranks!$1:$1048576,$A355,BX$1))","v":""},{"$f":"IF($A355=\"N/A\",Ref!$B$36,INDEX(Ranks!$1:$1048576,$A355,BY$1))","v":""},{"$f":"IF($A355=\"N/A\",Ref!$B$36,INDEX(Ranks!$1:$1048576,$A355,BZ$1))","v":""},{"$f":"IF($A355=\"N/A\",Ref!$B$36,INDEX(Ranks!$1:$1048576,$A355,CA$1))","v":""},{"$f":"IF($A355=\"N/A\",Ref!$B$36,INDEX(Ranks!$1:$1048576,$A355,CB$1))","v":""},{"$f":"IF($A355=\"N/A\",Ref!$B$36,INDEX(Ranks!$1:$1048576,$A355,CC$1))","v":""},{"$f":"IF($A355=\"N/A\",Ref!$B$36,INDEX(Ranks!$1:$1048576,$A355,CD$1))","v":""},{"$f":"IF($A355=\"N/A\",Ref!$B$36,INDEX(Ranks!$1:$1048576,$A355,CE$1))","v":""},{"$f":"IF($A355=\"N/A\",Ref!$B$36,INDEX(Ranks!$1:$1048576,$A355,CF$1))","v":""},{"$f":"IF($A355=\"N/A\",Ref!$B$36,INDEX(Ranks!$1:$1048576,$A355,CG$1))","v":""},{"$f":"IF($A355=\"N/A\",Ref!$B$36,INDEX(Ranks!$1:$1048576,$A355,CH$1))","v":""},{"$f":"IF($A355=\"N/A\",Ref!$B$36,INDEX(Ranks!$1:$1048576,$A355,CI$1))","v":""},{"$f":"IF($A355=\"N/A\",Ref!$B$36,INDEX(Ranks!$1:$1048576,$A355,CJ$1))","v":""},{"$f":"IF($A355=\"N/A\",Ref!$B$36,INDEX(Ranks!$1:$1048576,$A355,CK$1))","v":""},{"$f":"IF($A355=\"N/A\",Ref!$B$36,INDEX(Ranks!$1:$1048576,$A355,CL$1))","v":""},{"$f":"IF($A355=\"N/A\",Ref!$B$36,INDEX(Ranks!$1:$1048576,$A355,CM$1))","v":""},{"$f":"IF($A355=\"N/A\",Ref!$B$36,INDEX(Ranks!$1:$1048576,$A355,CN$1))","v":""},{"$f":"IF($A355=\"N/A\",Ref!$B$36,INDEX(Ranks!$1:$1048576,$A355,CO$1))","v":""},{"$f":"IF($A355=\"N/A\",Ref!$B$36,INDEX(Ranks!$1:$1048576,$A355,CP$1))","v":""},{"$f":"IF($A355=\"N/A\",Ref!$B$36,INDEX(Ranks!$1:$1048576,$A355,CQ$1))","v":""},{"$f":"IF($A355=\"N/A\",Ref!$B$36,INDEX(Ranks!$1:$1048576,$A355,CR$1))","v":""},{"$f":"IF($A355=\"N/A\",Ref!$B$36,INDEX(Ranks!$1:$1048576,$A355,CS$1))","v":""},{"$f":"IF($A355=\"N/A\",Ref!$B$36,INDEX(Ranks!$1:$1048576,$A355,CT$1))","v":""},{"$f":"IF($A355=\"N/A\",Ref!$B$36,INDEX(Ranks!$1:$1048576,$A355,CU$1))","v":""},{"$f":"IF($A355=\"N/A\",Ref!$B$36,INDEX(Ranks!$1:$1048576,$A355,CV$1))","v":""},{"$f":"IF($A355=\"N/A\",Ref!$B$36,INDEX(Ranks!$1:$1048576,$A355,CW$1))","v":""},{"$f":"IF($A355=\"N/A\",Ref!$B$36,INDEX(Ranks!$1:$1048576,$A355,CX$1))","v":""},{"$f":"IF($A355=\"N/A\",Ref!$B$36,INDEX(Ranks!$1:$1048576,$A355,CY$1))","v":""},{"$f":"IF($A355=\"N/A\",Ref!$B$36,INDEX(Ranks!$1:$1048576,$A355,CZ$1))","v":""},{"$f":"IF($A355=\"N/A\",Ref!$B$36,INDEX(Ranks!$1:$1048576,$A355,DA$1))","v":""},{"$f":"IF($A355=\"N/A\",Ref!$B$36,INDEX(Ranks!$1:$1048576,$A355,DB$1))","v":""},{"$f":"IF($A355=\"N/A\",Ref!$B$36,INDEX(Ranks!$1:$1048576,$A355,DC$1))","v":""},{"$f":"IF($A355=\"N/A\",Ref!$B$36,INDEX(Ranks!$1:$1048576,$A355,DD$1))","v":""},{"$f":"IF($A355=\"N/A\",Ref!$B$36,INDEX(Ranks!$1:$1048576,$A355,DE$1))","v":""},{"$f":"IF($A355=\"N/A\",Ref!$B$36,INDEX(Ranks!$1:$1048576,$A355,DF$1))","v":""},{"$f":"IF($A355=\"N/A\",Ref!$B$36,INDEX(Ranks!$1:$1048576,$A355,DG$1))","v":""},{"$f":"IF($A355=\"N/A\",Ref!$B$36,INDEX(Ranks!$1:$1048576,$A355,DH$1))","v":""},{"$f":"IF($A355=\"N/A\",Ref!$B$36,INDEX(Ranks!$1:$1048576,$A355,DI$1))","v":""},{"$f":"IF($A355=\"N/A\",Ref!$B$36,INDEX(Ranks!$1:$1048576,$A355,DJ$1))","v":""},{"$f":"IF($A355=\"N/A\",Ref!$B$36,INDEX(Ranks!$1:$1048576,$A355,DK$1))","v":""},{"$f":"IF($A355=\"N/A\",Ref!$B$36,INDEX(Ranks!$1:$1048576,$A355,DL$1))","v":""},{"$f":"IF($A355=\"N/A\",Ref!$B$36,INDEX(Ranks!$1:$1048576,$A355,DM$1))","v":""},{"$f":"IF($A355=\"N/A\",Ref!$B$36,INDEX(Ranks!$1:$1048576,$A355,DN$1))","v":""},{"$f":"IF($A355=\"N/A\",Ref!$B$36,INDEX(Ranks!$1:$1048576,$A355,DO$1))","v":""},{"$f":"IF($A355=\"N/A\",Ref!$B$36,INDEX(Ranks!$1:$1048576,$A355,DP$1))","v":""},{"$f":"IF($A355=\"N/A\",Ref!$B$36,INDEX(Ranks!$1:$1048576,$A355,DQ$1))","v":""},{"$f":"IF($A355=\"N/A\",Ref!$B$36,INDEX(Ranks!$1:$1048576,$A355,DR$1))","v":""},{"$f":"IF($A355=\"N/A\",Ref!$B$36,INDEX(Ranks!$1:$1048576,$A355,DS$1))","v":""},{"$f":"IF($A355=\"N/A\",Ref!$B$36,INDEX(Ranks!$1:$1048576,$A355,DT$1))","v":""},{"$f":"IF($A355=\"N/A\",Ref!$B$36,INDEX(Ranks!$1:$1048576,$A355,DU$1))","v":""},{"$f":"IF($A355=\"N/A\",Ref!$B$36,INDEX(Ranks!$1:$1048576,$A355,DV$1))","v":""},{"$f":"IF($A355=\"N/A\",Ref!$B$36,INDEX(Ranks!$1:$1048576,$A355,DW$1))","v":""},{"$f":"IF($A355=\"N/A\",Ref!$B$36,INDEX(Ranks!$1:$1048576,$A355,DX$1))","v":""},{"$f":"IF($A355=\"N/A\",Ref!$B$36,INDEX(Ranks!$1:$1048576,$A355,DY$1))","v":""},{"$f":"IF($A355=\"N/A\",Ref!$B$36,INDEX(Ranks!$1:$1048576,$A355,DZ$1))","v":""},{"$f":"IF($A355=\"N/A\",Ref!$B$36,INDEX(Ranks!$1:$1048576,$A355,EA$1))","v":""},{"$f":"IF($A355=\"N/A\",Ref!$B$36,INDEX(Ranks!$1:$1048576,$A355,EB$1))","v":""}]
[{"$f":"IFERROR(MATCH('Portfolio Page'!L356,Ranks!L:L,0),\"N/A\")","v":"N/A"},null,{"$f":"IF($A356=\"N/A\",\"\",INDEX(Ranks!$1:$1048576,$A356,C$1))","v":""},{"$f":"IF($A356=\"N/A\",Ref!$B$36,INDEX(Ranks!$1:$1048576,$A356,D$1))","v":""},{"$f":"IF($A356=\"N/A\",Ref!$B$36,INDEX(Ranks!$1:$1048576,$A356,E$1))","v":""},{"$f":"IF($A356=\"N/A\",\"\",INDEX(Ranks!$1:$1048576,$A356,F$1))","v":""},{"$f":"IF($A356=\"N/A\",\"\",INDEX(Ranks!$1:$1048576,$A356,G$1))","v":""},{"$f":"IF($A356=\"N/A\",\"\",INDEX(Ranks!$1:$1048576,$A356,H$1))","v":""},{"$f":"IF($A356=\"N/A\",\"\",INDEX(Ranks!$1:$1048576,$A356,I$1))","v":""},{"$f":"IF($A356=\"N/A\",\"\",INDEX(Ranks!$1:$1048576,$A356,J$1))","v":""},{"$f":"IF($A356=\"N/A\",\"\",INDEX(Ranks!$1:$1048576,$A356,K$1))","v":""},null,{"$f":"IF($A356=\"N/A\",Ref!$B$36,INDEX(Ranks!$1:$1048576,$A356,M$1))","v":""},{"$f":"IF($A356=\"N/A\",Ref!$B$36,INDEX(Ranks!$1:$1048576,$A356,N$1))","v":""},{"$f":"IF($A356=\"N/A\",Ref!$B$36,INDEX(Ranks!$1:$1048576,$A356,O$1))","v":""},{"$f":"IF($A356=\"N/A\",Ref!$B$36,INDEX(Ranks!$1:$1048576,$A356,P$1))","v":""},{"$f":"IF($A356=\"N/A\",Ref!$B$36,INDEX(Ranks!$1:$1048576,$A356,Q$1))","v":""},{"$f":"IF($A356=\"N/A\",Ref!$B$36,INDEX(Ranks!$1:$1048576,$A356,R$1))","v":""},{"$f":"IF($A356=\"N/A\",Ref!$B$36,INDEX(Ranks!$1:$1048576,$A356,S$1))","v":""},{"$f":"IF($A356=\"N/A\",Ref!$B$36,INDEX(Ranks!$1:$1048576,$A356,T$1))","v":""},{"$f":"IF($A356=\"N/A\",Ref!$B$36,INDEX(Ranks!$1:$1048576,$A356,U$1))","v":""},{"$f":"IF($A356=\"N/A\",Ref!$B$36,INDEX(Ranks!$1:$1048576,$A356,V$1))","v":""},{"$f":"IF($A356=\"N/A\",Ref!$B$36,INDEX(Ranks!$1:$1048576,$A356,W$1))","v":""},{"$f":"IF($A356=\"N/A\",Ref!$B$36,INDEX(Ranks!$1:$1048576,$A356,X$1))","v":""},{"$f":"IF($A356=\"N/A\",Ref!$B$36,INDEX(Ranks!$1:$1048576,$A356,Y$1))","v":""},{"$f":"IF($A356=\"N/A\",Ref!$B$36,INDEX(Ranks!$1:$1048576,$A356,Z$1))","v":""},{"$f":"IF($A356=\"N/A\",Ref!$B$36,INDEX(Ranks!$1:$1048576,$A356,AA$1))","v":""},{"$f":"IF($A356=\"N/A\",Ref!$B$36,INDEX(Ranks!$1:$1048576,$A356,AB$1))","v":""},{"$f":"IF($A356=\"N/A\",Ref!$B$36,INDEX(Ranks!$1:$1048576,$A356,AC$1))","v":""},{"$f":"IF($A356=\"N/A\",Ref!$B$36,INDEX(Ranks!$1:$1048576,$A356,AD$1))","v":""},{"$f":"IF($A356=\"N/A\",Ref!$B$36,INDEX(Ranks!$1:$1048576,$A356,AE$1))","v":""},{"$f":"IF($A356=\"N/A\",Ref!$B$36,INDEX(Ranks!$1:$1048576,$A356,AF$1))","v":""},{"$f":"IF($A356=\"N/A\",Ref!$B$36,INDEX(Ranks!$1:$1048576,$A356,AG$1))","v":""},{"$f":"IF($A356=\"N/A\",Ref!$B$36,INDEX(Ranks!$1:$1048576,$A356,AH$1))","v":""},{"$f":"IF($A356=\"N/A\",Ref!$B$36,INDEX(Ranks!$1:$1048576,$A356,AI$1))","v":""},{"$f":"IF($A356=\"N/A\",Ref!$B$36,INDEX(Ranks!$1:$1048576,$A356,AJ$1))","v":""},{"$f":"IF($A356=\"N/A\",Ref!$B$36,INDEX(Ranks!$1:$1048576,$A356,AK$1))","v":""},{"$f":"IF($A356=\"N/A\",Ref!$B$36,INDEX(Ranks!$1:$1048576,$A356,AL$1))","v":""},{"$f":"IF($A356=\"N/A\",Ref!$B$36,INDEX(Ranks!$1:$1048576,$A356,AM$1))","v":""},{"$f":"IF($A356=\"N/A\",Ref!$B$36,INDEX(Ranks!$1:$1048576,$A356,AN$1))","v":""},{"$f":"IF($A356=\"N/A\",Ref!$B$36,INDEX(Ranks!$1:$1048576,$A356,AO$1))","v":""},{"$f":"IF($A356=\"N/A\",Ref!$B$36,INDEX(Ranks!$1:$1048576,$A356,AP$1))","v":""},{"$f":"IF($A356=\"N/A\",Ref!$B$36,INDEX(Ranks!$1:$1048576,$A356,AQ$1))","v":""},{"$f":"IF($A356=\"N/A\",Ref!$B$36,INDEX(Ranks!$1:$1048576,$A356,AR$1))","v":""},{"$f":"IF($A356=\"N/A\",Ref!$B$36,INDEX(Ranks!$1:$1048576,$A356,AS$1))","v":""},{"$f":"IF($A356=\"N/A\",Ref!$B$36,INDEX(Ranks!$1:$1048576,$A356,AT$1))","v":""},{"$f":"IF($A356=\"N/A\",Ref!$B$36,INDEX(Ranks!$1:$1048576,$A356,AU$1))","v":""},{"$f":"IF($A356=\"N/A\",Ref!$B$36,INDEX(Ranks!$1:$1048576,$A356,AV$1))","v":""},{"$f":"IF($A356=\"N/A\",Ref!$B$36,INDEX(Ranks!$1:$1048576,$A356,AW$1))","v":""},{"$f":"IF($A356=\"N/A\",Ref!$B$36,INDEX(Ranks!$1:$1048576,$A356,AX$1))","v":""},{"$f":"IF($A356=\"N/A\",Ref!$B$36,INDEX(Ranks!$1:$1048576,$A356,AY$1))","v":""},{"$f":"IF($A356=\"N/A\",Ref!$B$36,INDEX(Ranks!$1:$1048576,$A356,AZ$1))","v":""},{"$f":"IF($A356=\"N/A\",Ref!$B$36,INDEX(Ranks!$1:$1048576,$A356,BA$1))","v":""},{"$f":"IF($A356=\"N/A\",Ref!$B$36,INDEX(Ranks!$1:$1048576,$A356,BB$1))","v":""},{"$f":"IF($A356=\"N/A\",Ref!$B$36,INDEX(Ranks!$1:$1048576,$A356,BC$1))","v":""},{"$f":"IF($A356=\"N/A\",Ref!$B$36,INDEX(Ranks!$1:$1048576,$A356,BD$1))","v":""},{"$f":"IF($A356=\"N/A\",Ref!$B$36,INDEX(Ranks!$1:$1048576,$A356,BE$1))","v":""},{"$f":"IF($A356=\"N/A\",Ref!$B$36,INDEX(Ranks!$1:$1048576,$A356,BF$1))","v":""},{"$f":"IF($A356=\"N/A\",Ref!$B$36,INDEX(Ranks!$1:$1048576,$A356,BG$1))","v":""},{"$f":"IF($A356=\"N/A\",Ref!$B$36,INDEX(Ranks!$1:$1048576,$A356,BH$1))","v":""},{"$f":"IF($A356=\"N/A\",Ref!$B$36,INDEX(Ranks!$1:$1048576,$A356,BI$1))","v":""},{"$f":"IF($A356=\"N/A\",Ref!$B$36,INDEX(Ranks!$1:$1048576,$A356,BJ$1))","v":""},{"$f":"IF($A356=\"N/A\",Ref!$B$36,INDEX(Ranks!$1:$1048576,$A356,BK$1))","v":""},{"$f":"IF($A356=\"N/A\",Ref!$B$36,INDEX(Ranks!$1:$1048576,$A356,BL$1))","v":""},{"$f":"IF($A356=\"N/A\",Ref!$B$36,INDEX(Ranks!$1:$1048576,$A356,BM$1))","v":""},{"$f":"IF($A356=\"N/A\",Ref!$B$36,INDEX(Ranks!$1:$1048576,$A356,BN$1))","v":""},{"$f":"IF($A356=\"N/A\",Ref!$B$36,INDEX(Ranks!$1:$1048576,$A356,BO$1))","v":""},{"$f":"IF($A356=\"N/A\",Ref!$B$36,INDEX(Ranks!$1:$1048576,$A356,BP$1))","v":""},{"$f":"IF($A356=\"N/A\",Ref!$B$36,INDEX(Ranks!$1:$1048576,$A356,BQ$1))","v":""},{"$f":"IF($A356=\"N/A\",Ref!$B$36,INDEX(Ranks!$1:$1048576,$A356,BR$1))","v":""},{"$f":"IF($A356=\"N/A\",Ref!$B$36,INDEX(Ranks!$1:$1048576,$A356,BS$1))","v":""},{"$f":"IF($A356=\"N/A\",Ref!$B$36,INDEX(Ranks!$1:$1048576,$A356,BT$1))","v":""},{"$f":"IF($A356=\"N/A\",Ref!$B$36,INDEX(Ranks!$1:$1048576,$A356,BU$1))","v":""},{"$f":"IF($A356=\"N/A\",Ref!$B$36,INDEX(Ranks!$1:$1048576,$A356,BV$1))","v":""},{"$f":"IF($A356=\"N/A\",Ref!$B$36,INDEX(Ranks!$1:$1048576,$A356,BW$1))","v":""},{"$f":"IF($A356=\"N/A\",Ref!$B$36,INDEX(Ranks!$1:$1048576,$A356,BX$1))","v":""},{"$f":"IF($A356=\"N/A\",Ref!$B$36,INDEX(Ranks!$1:$1048576,$A356,BY$1))","v":""},{"$f":"IF($A356=\"N/A\",Ref!$B$36,INDEX(Ranks!$1:$1048576,$A356,BZ$1))","v":""},{"$f":"IF($A356=\"N/A\",Ref!$B$36,INDEX(Ranks!$1:$1048576,$A356,CA$1))","v":""},{"$f":"IF($A356=\"N/A\",Ref!$B$36,INDEX(Ranks!$1:$1048576,$A356,CB$1))","v":""},{"$f":"IF($A356=\"N/A\",Ref!$B$36,INDEX(Ranks!$1:$1048576,$A356,CC$1))","v":""},{"$f":"IF($A356=\"N/A\",Ref!$B$36,INDEX(Ranks!$1:$1048576,$A356,CD$1))","v":""},{"$f":"IF($A356=\"N/A\",Ref!$B$36,INDEX(Ranks!$1:$1048576,$A356,CE$1))","v":""},{"$f":"IF($A356=\"N/A\",Ref!$B$36,INDEX(Ranks!$1:$1048576,$A356,CF$1))","v":""},{"$f":"IF($A356=\"N/A\",Ref!$B$36,INDEX(Ranks!$1:$1048576,$A356,CG$1))","v":""},{"$f":"IF($A356=\"N/A\",Ref!$B$36,INDEX(Ranks!$1:$1048576,$A356,CH$1))","v":""},{"$f":"IF($A356=\"N/A\",Ref!$B$36,INDEX(Ranks!$1:$1048576,$A356,CI$1))","v":""},{"$f":"IF($A356=\"N/A\",Ref!$B$36,INDEX(Ranks!$1:$1048576,$A356,CJ$1))","v":""},{"$f":"IF($A356=\"N/A\",Ref!$B$36,INDEX(Ranks!$1:$1048576,$A356,CK$1))","v":""},{"$f":"IF($A356=\"N/A\",Ref!$B$36,INDEX(Ranks!$1:$1048576,$A356,CL$1))","v":""},{"$f":"IF($A356=\"N/A\",Ref!$B$36,INDEX(Ranks!$1:$1048576,$A356,CM$1))","v":""},{"$f":"IF($A356=\"N/A\",Ref!$B$36,INDEX(Ranks!$1:$1048576,$A356,CN$1))","v":""},{"$f":"IF($A356=\"N/A\",Ref!$B$36,INDEX(Ranks!$1:$1048576,$A356,CO$1))","v":""},{"$f":"IF($A356=\"N/A\",Ref!$B$36,INDEX(Ranks!$1:$1048576,$A356,CP$1))","v":""},{"$f":"IF($A356=\"N/A\",Ref!$B$36,INDEX(Ranks!$1:$1048576,$A356,CQ$1))","v":""},{"$f":"IF($A356=\"N/A\",Ref!$B$36,INDEX(Ranks!$1:$1048576,$A356,CR$1))","v":""},{"$f":"IF($A356=\"N/A\",Ref!$B$36,INDEX(Ranks!$1:$1048576,$A356,CS$1))","v":""},{"$f":"IF($A356=\"N/A\",Ref!$B$36,INDEX(Ranks!$1:$1048576,$A356,CT$1))","v":""},{"$f":"IF($A356=\"N/A\",Ref!$B$36,INDEX(Ranks!$1:$1048576,$A356,CU$1))","v":""},{"$f":"IF($A356=\"N/A\",Ref!$B$36,INDEX(Ranks!$1:$1048576,$A356,CV$1))","v":""},{"$f":"IF($A356=\"N/A\",Ref!$B$36,INDEX(Ranks!$1:$1048576,$A356,CW$1))","v":""},{"$f":"IF($A356=\"N/A\",Ref!$B$36,INDEX(Ranks!$1:$1048576,$A356,CX$1))","v":""},{"$f":"IF($A356=\"N/A\",Ref!$B$36,INDEX(Ranks!$1:$1048576,$A356,CY$1))","v":""},{"$f":"IF($A356=\"N/A\",Ref!$B$36,INDEX(Ranks!$1:$1048576,$A356,CZ$1))","v":""},{"$f":"IF($A356=\"N/A\",Ref!$B$36,INDEX(Ranks!$1:$1048576,$A356,DA$1))","v":""},{"$f":"IF($A356=\"N/A\",Ref!$B$36,INDEX(Ranks!$1:$1048576,$A356,DB$1))","v":""},{"$f":"IF($A356=\"N/A\",Ref!$B$36,INDEX(Ranks!$1:$1048576,$A356,DC$1))","v":""},{"$f":"IF($A356=\"N/A\",Ref!$B$36,INDEX(Ranks!$1:$1048576,$A356,DD$1))","v":""},{"$f":"IF($A356=\"N/A\",Ref!$B$36,INDEX(Ranks!$1:$1048576,$A356,DE$1))","v":""},{"$f":"IF($A356=\"N/A\",Ref!$B$36,INDEX(Ranks!$1:$1048576,$A356,DF$1))","v":""},{"$f":"IF($A356=\"N/A\",Ref!$B$36,INDEX(Ranks!$1:$1048576,$A356,DG$1))","v":""},{"$f":"IF($A356=\"N/A\",Ref!$B$36,INDEX(Ranks!$1:$1048576,$A356,DH$1))","v":""},{"$f":"IF($A356=\"N/A\",Ref!$B$36,INDEX(Ranks!$1:$1048576,$A356,DI$1))","v":""},{"$f":"IF($A356=\"N/A\",Ref!$B$36,INDEX(Ranks!$1:$1048576,$A356,DJ$1))","v":""},{"$f":"IF($A356=\"N/A\",Ref!$B$36,INDEX(Ranks!$1:$1048576,$A356,DK$1))","v":""},{"$f":"IF($A356=\"N/A\",Ref!$B$36,INDEX(Ranks!$1:$1048576,$A356,DL$1))","v":""},{"$f":"IF($A356=\"N/A\",Ref!$B$36,INDEX(Ranks!$1:$1048576,$A356,DM$1))","v":""},{"$f":"IF($A356=\"N/A\",Ref!$B$36,INDEX(Ranks!$1:$1048576,$A356,DN$1))","v":""},{"$f":"IF($A356=\"N/A\",Ref!$B$36,INDEX(Ranks!$1:$1048576,$A356,DO$1))","v":""},{"$f":"IF($A356=\"N/A\",Ref!$B$36,INDEX(Ranks!$1:$1048576,$A356,DP$1))","v":""},{"$f":"IF($A356=\"N/A\",Ref!$B$36,INDEX(Ranks!$1:$1048576,$A356,DQ$1))","v":""},{"$f":"IF($A356=\"N/A\",Ref!$B$36,INDEX(Ranks!$1:$1048576,$A356,DR$1))","v":""},{"$f":"IF($A356=\"N/A\",Ref!$B$36,INDEX(Ranks!$1:$1048576,$A356,DS$1))","v":""},{"$f":"IF($A356=\"N/A\",Ref!$B$36,INDEX(Ranks!$1:$1048576,$A356,DT$1))","v":""},{"$f":"IF($A356=\"N/A\",Ref!$B$36,INDEX(Ranks!$1:$1048576,$A356,DU$1))","v":""},{"$f":"IF($A356=\"N/A\",Ref!$B$36,INDEX(Ranks!$1:$1048576,$A356,DV$1))","v":""},{"$f":"IF($A356=\"N/A\",Ref!$B$36,INDEX(Ranks!$1:$1048576,$A356,DW$1))","v":""},{"$f":"IF($A356=\"N/A\",Ref!$B$36,INDEX(Ranks!$1:$1048576,$A356,DX$1))","v":""},{"$f":"IF($A356=\"N/A\",Ref!$B$36,INDEX(Ranks!$1:$1048576,$A356,DY$1))","v":""},{"$f":"IF($A356=\"N/A\",Ref!$B$36,INDEX(Ranks!$1:$1048576,$A356,DZ$1))","v":""},{"$f":"IF($A356=\"N/A\",Ref!$B$36,INDEX(Ranks!$1:$1048576,$A356,EA$1))","v":""},{"$f":"IF($A356=\"N/A\",Ref!$B$36,INDEX(Ranks!$1:$1048576,$A356,EB$1))","v":""}]
[{"$f":"IFERROR(MATCH('Portfolio Page'!L357,Ranks!L:L,0),\"N/A\")","v":"N/A"},null,{"$f":"IF($A357=\"N/A\",\"\",INDEX(Ranks!$1:$1048576,$A357,C$1))","v":""},{"$f":"IF($A357=\"N/A\",Ref!$B$36,INDEX(Ranks!$1:$1048576,$A357,D$1))","v":""},{"$f":"IF($A357=\"N/A\",Ref!$B$36,INDEX(Ranks!$1:$1048576,$A357,E$1))","v":""},{"$f":"IF($A357=\"N/A\",\"\",INDEX(Ranks!$1:$1048576,$A357,F$1))","v":""},{"$f":"IF($A357=\"N/A\",\"\",INDEX(Ranks!$1:$1048576,$A357,G$1))","v":""},{"$f":"IF($A357=\"N/A\",\"\",INDEX(Ranks!$1:$1048576,$A357,H$1))","v":""},{"$f":"IF($A357=\"N/A\",\"\",INDEX(Ranks!$1:$1048576,$A357,I$1))","v":""},{"$f":"IF($A357=\"N/A\",\"\",INDEX(Ranks!$1:$1048576,$A357,J$1))","v":""},{"$f":"IF($A357=\"N/A\",\"\",INDEX(Ranks!$1:$1048576,$A357,K$1))","v":""},null,{"$f":"IF($A357=\"N/A\",Ref!$B$36,INDEX(Ranks!$1:$1048576,$A357,M$1))","v":""},{"$f":"IF($A357=\"N/A\",Ref!$B$36,INDEX(Ranks!$1:$1048576,$A357,N$1))","v":""},{"$f":"IF($A357=\"N/A\",Ref!$B$36,INDEX(Ranks!$1:$1048576,$A357,O$1))","v":""},{"$f":"IF($A357=\"N/A\",Ref!$B$36,INDEX(Ranks!$1:$1048576,$A357,P$1))","v":""},{"$f":"IF($A357=\"N/A\",Ref!$B$36,INDEX(Ranks!$1:$1048576,$A357,Q$1))","v":""},{"$f":"IF($A357=\"N/A\",Ref!$B$36,INDEX(Ranks!$1:$1048576,$A357,R$1))","v":""},{"$f":"IF($A357=\"N/A\",Ref!$B$36,INDEX(Ranks!$1:$1048576,$A357,S$1))","v":""},{"$f":"IF($A357=\"N/A\",Ref!$B$36,INDEX(Ranks!$1:$1048576,$A357,T$1))","v":""},{"$f":"IF($A357=\"N/A\",Ref!$B$36,INDEX(Ranks!$1:$1048576,$A357,U$1))","v":""},{"$f":"IF($A357=\"N/A\",Ref!$B$36,INDEX(Ranks!$1:$1048576,$A357,V$1))","v":""},{"$f":"IF($A357=\"N/A\",Ref!$B$36,INDEX(Ranks!$1:$1048576,$A357,W$1))","v":""},{"$f":"IF($A357=\"N/A\",Ref!$B$36,INDEX(Ranks!$1:$1048576,$A357,X$1))","v":""},{"$f":"IF($A357=\"N/A\",Ref!$B$36,INDEX(Ranks!$1:$1048576,$A357,Y$1))","v":""},{"$f":"IF($A357=\"N/A\",Ref!$B$36,INDEX(Ranks!$1:$1048576,$A357,Z$1))","v":""},{"$f":"IF($A357=\"N/A\",Ref!$B$36,INDEX(Ranks!$1:$1048576,$A357,AA$1))","v":""},{"$f":"IF($A357=\"N/A\",Ref!$B$36,INDEX(Ranks!$1:$1048576,$A357,AB$1))","v":""},{"$f":"IF($A357=\"N/A\",Ref!$B$36,INDEX(Ranks!$1:$1048576,$A357,AC$1))","v":""},{"$f":"IF($A357=\"N/A\",Ref!$B$36,INDEX(Ranks!$1:$1048576,$A357,AD$1))","v":""},{"$f":"IF($A357=\"N/A\",Ref!$B$36,INDEX(Ranks!$1:$1048576,$A357,AE$1))","v":""},{"$f":"IF($A357=\"N/A\",Ref!$B$36,INDEX(Ranks!$1:$1048576,$A357,AF$1))","v":""},{"$f":"IF($A357=\"N/A\",Ref!$B$36,INDEX(Ranks!$1:$1048576,$A357,AG$1))","v":""},{"$f":"IF($A357=\"N/A\",Ref!$B$36,INDEX(Ranks!$1:$1048576,$A357,AH$1))","v":""},{"$f":"IF($A357=\"N/A\",Ref!$B$36,INDEX(Ranks!$1:$1048576,$A357,AI$1))","v":""},{"$f":"IF($A357=\"N/A\",Ref!$B$36,INDEX(Ranks!$1:$1048576,$A357,AJ$1))","v":""},{"$f":"IF($A357=\"N/A\",Ref!$B$36,INDEX(Ranks!$1:$1048576,$A357,AK$1))","v":""},{"$f":"IF($A357=\"N/A\",Ref!$B$36,INDEX(Ranks!$1:$1048576,$A357,AL$1))","v":""},{"$f":"IF($A357=\"N/A\",Ref!$B$36,INDEX(Ranks!$1:$1048576,$A357,AM$1))","v":""},{"$f":"IF($A357=\"N/A\",Ref!$B$36,INDEX(Ranks!$1:$1048576,$A357,AN$1))","v":""},{"$f":"IF($A357=\"N/A\",Ref!$B$36,INDEX(Ranks!$1:$1048576,$A357,AO$1))","v":""},{"$f":"IF($A357=\"N/A\",Ref!$B$36,INDEX(Ranks!$1:$1048576,$A357,AP$1))","v":""},{"$f":"IF($A357=\"N/A\",Ref!$B$36,INDEX(Ranks!$1:$1048576,$A357,AQ$1))","v":""},{"$f":"IF($A357=\"N/A\",Ref!$B$36,INDEX(Ranks!$1:$1048576,$A357,AR$1))","v":""},{"$f":"IF($A357=\"N/A\",Ref!$B$36,INDEX(Ranks!$1:$1048576,$A357,AS$1))","v":""},{"$f":"IF($A357=\"N/A\",Ref!$B$36,INDEX(Ranks!$1:$1048576,$A357,AT$1))","v":""},{"$f":"IF($A357=\"N/A\",Ref!$B$36,INDEX(Ranks!$1:$1048576,$A357,AU$1))","v":""},{"$f":"IF($A357=\"N/A\",Ref!$B$36,INDEX(Ranks!$1:$1048576,$A357,AV$1))","v":""},{"$f":"IF($A357=\"N/A\",Ref!$B$36,INDEX(Ranks!$1:$1048576,$A357,AW$1))","v":""},{"$f":"IF($A357=\"N/A\",Ref!$B$36,INDEX(Ranks!$1:$1048576,$A357,AX$1))","v":""},{"$f":"IF($A357=\"N/A\",Ref!$B$36,INDEX(Ranks!$1:$1048576,$A357,AY$1))","v":""},{"$f":"IF($A357=\"N/A\",Ref!$B$36,INDEX(Ranks!$1:$1048576,$A357,AZ$1))","v":""},{"$f":"IF($A357=\"N/A\",Ref!$B$36,INDEX(Ranks!$1:$1048576,$A357,BA$1))","v":""},{"$f":"IF($A357=\"N/A\",Ref!$B$36,INDEX(Ranks!$1:$1048576,$A357,BB$1))","v":""},{"$f":"IF($A357=\"N/A\",Ref!$B$36,INDEX(Ranks!$1:$1048576,$A357,BC$1))","v":""},{"$f":"IF($A357=\"N/A\",Ref!$B$36,INDEX(Ranks!$1:$1048576,$A357,BD$1))","v":""},{"$f":"IF($A357=\"N/A\",Ref!$B$36,INDEX(Ranks!$1:$1048576,$A357,BE$1))","v":""},{"$f":"IF($A357=\"N/A\",Ref!$B$36,INDEX(Ranks!$1:$1048576,$A357,BF$1))","v":""},{"$f":"IF($A357=\"N/A\",Ref!$B$36,INDEX(Ranks!$1:$1048576,$A357,BG$1))","v":""},{"$f":"IF($A357=\"N/A\",Ref!$B$36,INDEX(Ranks!$1:$1048576,$A357,BH$1))","v":""},{"$f":"IF($A357=\"N/A\",Ref!$B$36,INDEX(Ranks!$1:$1048576,$A357,BI$1))","v":""},{"$f":"IF($A357=\"N/A\",Ref!$B$36,INDEX(Ranks!$1:$1048576,$A357,BJ$1))","v":""},{"$f":"IF($A357=\"N/A\",Ref!$B$36,INDEX(Ranks!$1:$1048576,$A357,BK$1))","v":""},{"$f":"IF($A357=\"N/A\",Ref!$B$36,INDEX(Ranks!$1:$1048576,$A357,BL$1))","v":""},{"$f":"IF($A357=\"N/A\",Ref!$B$36,INDEX(Ranks!$1:$1048576,$A357,BM$1))","v":""},{"$f":"IF($A357=\"N/A\",Ref!$B$36,INDEX(Ranks!$1:$1048576,$A357,BN$1))","v":""},{"$f":"IF($A357=\"N/A\",Ref!$B$36,INDEX(Ranks!$1:$1048576,$A357,BO$1))","v":""},{"$f":"IF($A357=\"N/A\",Ref!$B$36,INDEX(Ranks!$1:$1048576,$A357,BP$1))","v":""},{"$f":"IF($A357=\"N/A\",Ref!$B$36,INDEX(Ranks!$1:$1048576,$A357,BQ$1))","v":""},{"$f":"IF($A357=\"N/A\",Ref!$B$36,INDEX(Ranks!$1:$1048576,$A357,BR$1))","v":""},{"$f":"IF($A357=\"N/A\",Ref!$B$36,INDEX(Ranks!$1:$1048576,$A357,BS$1))","v":""},{"$f":"IF($A357=\"N/A\",Ref!$B$36,INDEX(Ranks!$1:$1048576,$A357,BT$1))","v":""},{"$f":"IF($A357=\"N/A\",Ref!$B$36,INDEX(Ranks!$1:$1048576,$A357,BU$1))","v":""},{"$f":"IF($A357=\"N/A\",Ref!$B$36,INDEX(Ranks!$1:$1048576,$A357,BV$1))","v":""},{"$f":"IF($A357=\"N/A\",Ref!$B$36,INDEX(Ranks!$1:$1048576,$A357,BW$1))","v":""},{"$f":"IF($A357=\"N/A\",Ref!$B$36,INDEX(Ranks!$1:$1048576,$A357,BX$1))","v":""},{"$f":"IF($A357=\"N/A\",Ref!$B$36,INDEX(Ranks!$1:$1048576,$A357,BY$1))","v":""},{"$f":"IF($A357=\"N/A\",Ref!$B$36,INDEX(Ranks!$1:$1048576,$A357,BZ$1))","v":""},{"$f":"IF($A357=\"N/A\",Ref!$B$36,INDEX(Ranks!$1:$1048576,$A357,CA$1))","v":""},{"$f":"IF($A357=\"N/A\",Ref!$B$36,INDEX(Ranks!$1:$1048576,$A357,CB$1))","v":""},{"$f":"IF($A357=\"N/A\",Ref!$B$36,INDEX(Ranks!$1:$1048576,$A357,CC$1))","v":""},{"$f":"IF($A357=\"N/A\",Ref!$B$36,INDEX(Ranks!$1:$1048576,$A357,CD$1))","v":""},{"$f":"IF($A357=\"N/A\",Ref!$B$36,INDEX(Ranks!$1:$1048576,$A357,CE$1))","v":""},{"$f":"IF($A357=\"N/A\",Ref!$B$36,INDEX(Ranks!$1:$1048576,$A357,CF$1))","v":""},{"$f":"IF($A357=\"N/A\",Ref!$B$36,INDEX(Ranks!$1:$1048576,$A357,CG$1))","v":""},{"$f":"IF($A357=\"N/A\",Ref!$B$36,INDEX(Ranks!$1:$1048576,$A357,CH$1))","v":""},{"$f":"IF($A357=\"N/A\",Ref!$B$36,INDEX(Ranks!$1:$1048576,$A357,CI$1))","v":""},{"$f":"IF($A357=\"N/A\",Ref!$B$36,INDEX(Ranks!$1:$1048576,$A357,CJ$1))","v":""},{"$f":"IF($A357=\"N/A\",Ref!$B$36,INDEX(Ranks!$1:$1048576,$A357,CK$1))","v":""},{"$f":"IF($A357=\"N/A\",Ref!$B$36,INDEX(Ranks!$1:$1048576,$A357,CL$1))","v":""},{"$f":"IF($A357=\"N/A\",Ref!$B$36,INDEX(Ranks!$1:$1048576,$A357,CM$1))","v":""},{"$f":"IF($A357=\"N/A\",Ref!$B$36,INDEX(Ranks!$1:$1048576,$A357,CN$1))","v":""},{"$f":"IF($A357=\"N/A\",Ref!$B$36,INDEX(Ranks!$1:$1048576,$A357,CO$1))","v":""},{"$f":"IF($A357=\"N/A\",Ref!$B$36,INDEX(Ranks!$1:$1048576,$A357,CP$1))","v":""},{"$f":"IF($A357=\"N/A\",Ref!$B$36,INDEX(Ranks!$1:$1048576,$A357,CQ$1))","v":""},{"$f":"IF($A357=\"N/A\",Ref!$B$36,INDEX(Ranks!$1:$1048576,$A357,CR$1))","v":""},{"$f":"IF($A357=\"N/A\",Ref!$B$36,INDEX(Ranks!$1:$1048576,$A357,CS$1))","v":""},{"$f":"IF($A357=\"N/A\",Ref!$B$36,INDEX(Ranks!$1:$1048576,$A357,CT$1))","v":""},{"$f":"IF($A357=\"N/A\",Ref!$B$36,INDEX(Ranks!$1:$1048576,$A357,CU$1))","v":""},{"$f":"IF($A357=\"N/A\",Ref!$B$36,INDEX(Ranks!$1:$1048576,$A357,CV$1))","v":""},{"$f":"IF($A357=\"N/A\",Ref!$B$36,INDEX(Ranks!$1:$1048576,$A357,CW$1))","v":""},{"$f":"IF($A357=\"N/A\",Ref!$B$36,INDEX(Ranks!$1:$1048576,$A357,CX$1))","v":""},{"$f":"IF($A357=\"N/A\",Ref!$B$36,INDEX(Ranks!$1:$1048576,$A357,CY$1))","v":""},{"$f":"IF($A357=\"N/A\",Ref!$B$36,INDEX(Ranks!$1:$1048576,$A357,CZ$1))","v":""},{"$f":"IF($A357=\"N/A\",Ref!$B$36,INDEX(Ranks!$1:$1048576,$A357,DA$1))","v":""},{"$f":"IF($A357=\"N/A\",Ref!$B$36,INDEX(Ranks!$1:$1048576,$A357,DB$1))","v":""},{"$f":"IF($A357=\"N/A\",Ref!$B$36,INDEX(Ranks!$1:$1048576,$A357,DC$1))","v":""},{"$f":"IF($A357=\"N/A\",Ref!$B$36,INDEX(Ranks!$1:$1048576,$A357,DD$1))","v":""},{"$f":"IF($A357=\"N/A\",Ref!$B$36,INDEX(Ranks!$1:$1048576,$A357,DE$1))","v":""},{"$f":"IF($A357=\"N/A\",Ref!$B$36,INDEX(Ranks!$1:$1048576,$A357,DF$1))","v":""},{"$f":"IF($A357=\"N/A\",Ref!$B$36,INDEX(Ranks!$1:$1048576,$A357,DG$1))","v":""},{"$f":"IF($A357=\"N/A\",Ref!$B$36,INDEX(Ranks!$1:$1048576,$A357,DH$1))","v":""},{"$f":"IF($A357=\"N/A\",Ref!$B$36,INDEX(Ranks!$1:$1048576,$A357,DI$1))","v":""},{"$f":"IF($A357=\"N/A\",Ref!$B$36,INDEX(Ranks!$1:$1048576,$A357,DJ$1))","v":""},{"$f":"IF($A357=\"N/A\",Ref!$B$36,INDEX(Ranks!$1:$1048576,$A357,DK$1))","v":""},{"$f":"IF($A357=\"N/A\",Ref!$B$36,INDEX(Ranks!$1:$1048576,$A357,DL$1))","v":""},{"$f":"IF($A357=\"N/A\",Ref!$B$36,INDEX(Ranks!$1:$1048576,$A357,DM$1))","v":""},{"$f":"IF($A357=\"N/A\",Ref!$B$36,INDEX(Ranks!$1:$1048576,$A357,DN$1))","v":""},{"$f":"IF($A357=\"N/A\",Ref!$B$36,INDEX(Ranks!$1:$1048576,$A357,DO$1))","v":""},{"$f":"IF($A357=\"N/A\",Ref!$B$36,INDEX(Ranks!$1:$1048576,$A357,DP$1))","v":""},{"$f":"IF($A357=\"N/A\",Ref!$B$36,INDEX(Ranks!$1:$1048576,$A357,DQ$1))","v":""},{"$f":"IF($A357=\"N/A\",Ref!$B$36,INDEX(Ranks!$1:$1048576,$A357,DR$1))","v":""},{"$f":"IF($A357=\"N/A\",Ref!$B$36,INDEX(Ranks!$1:$1048576,$A357,DS$1))","v":""},{"$f":"IF($A357=\"N/A\",Ref!$B$36,INDEX(Ranks!$1:$1048576,$A357,DT$1))","v":""},{"$f":"IF($A357=\"N/A\",Ref!$B$36,INDEX(Ranks!$1:$1048576,$A357,DU$1))","v":""},{"$f":"IF($A357=\"N/A\",Ref!$B$36,INDEX(Ranks!$1:$1048576,$A357,DV$1))","v":""},{"$f":"IF($A357=\"N/A\",Ref!$B$36,INDEX(Ranks!$1:$1048576,$A357,DW$1))","v":""},{"$f":"IF($A357=\"N/A\",Ref!$B$36,INDEX(Ranks!$1:$1048576,$A357,DX$1))","v":""},{"$f":"IF($A357=\"N/A\",Ref!$B$36,INDEX(Ranks!$1:$1048576,$A357,DY$1))","v":""},{"$f":"IF($A357=\"N/A\",Ref!$B$36,INDEX(Ranks!$1:$1048576,$A357,DZ$1))","v":""},{"$f":"IF($A357=\"N/A\",Ref!$B$36,INDEX(Ranks!$1:$1048576,$A357,EA$1))","v":""},{"$f":"IF($A357=\"N/A\",Ref!$B$36,INDEX(Ranks!$1:$1048576,$A357,EB$1))","v":""}]
[{"$f":"IFERROR(MATCH('Portfolio Page'!L358,Ranks!L:L,0),\"N/A\")","v":"N/A"},null,{"$f":"IF($A358=\"N/A\",\"\",INDEX(Ranks!$1:$1048576,$A358,C$1))","v":""},{"$f":"IF($A358=\"N/A\",Ref!$B$36,INDEX(Ranks!$1:$1048576,$A358,D$1))","v":""},{"$f":"IF($A358=\"N/A\",Ref!$B$36,INDEX(Ranks!$1:$1048576,$A358,E$1))","v":""},{"$f":"IF($A358=\"N/A\",\"\",INDEX(Ranks!$1:$1048576,$A358,F$1))","v":""},{"$f":"IF($A358=\"N/A\",\"\",INDEX(Ranks!$1:$1048576,$A358,G$1))","v":""},{"$f":"IF($A358=\"N/A\",\"\",INDEX(Ranks!$1:$1048576,$A358,H$1))","v":""},{"$f":"IF($A358=\"N/A\",\"\",INDEX(Ranks!$1:$1048576,$A358,I$1))","v":""},{"$f":"IF($A358=\"N/A\",\"\",INDEX(Ranks!$1:$1048576,$A358,J$1))","v":""},{"$f":"IF($A358=\"N/A\",\"\",INDEX(Ranks!$1:$1048576,$A358,K$1))","v":""},null,{"$f":"IF($A358=\"N/A\",Ref!$B$36,INDEX(Ranks!$1:$1048576,$A358,M$1))","v":""},{"$f":"IF($A358=\"N/A\",Ref!$B$36,INDEX(Ranks!$1:$1048576,$A358,N$1))","v":""},{"$f":"IF($A358=\"N/A\",Ref!$B$36,INDEX(Ranks!$1:$1048576,$A358,O$1))","v":""},{"$f":"IF($A358=\"N/A\",Ref!$B$36,INDEX(Ranks!$1:$1048576,$A358,P$1))","v":""},{"$f":"IF($A358=\"N/A\",Ref!$B$36,INDEX(Ranks!$1:$1048576,$A358,Q$1))","v":""},{"$f":"IF($A358=\"N/A\",Ref!$B$36,INDEX(Ranks!$1:$1048576,$A358,R$1))","v":""},{"$f":"IF($A358=\"N/A\",Ref!$B$36,INDEX(Ranks!$1:$1048576,$A358,S$1))","v":""},{"$f":"IF($A358=\"N/A\",Ref!$B$36,INDEX(Ranks!$1:$1048576,$A358,T$1))","v":""},{"$f":"IF($A358=\"N/A\",Ref!$B$36,INDEX(Ranks!$1:$1048576,$A358,U$1))","v":""},{"$f":"IF($A358=\"N/A\",Ref!$B$36,INDEX(Ranks!$1:$1048576,$A358,V$1))","v":""},{"$f":"IF($A358=\"N/A\",Ref!$B$36,INDEX(Ranks!$1:$1048576,$A358,W$1))","v":""},{"$f":"IF($A358=\"N/A\",Ref!$B$36,INDEX(Ranks!$1:$1048576,$A358,X$1))","v":""},{"$f":"IF($A358=\"N/A\",Ref!$B$36,INDEX(Ranks!$1:$1048576,$A358,Y$1))","v":""},{"$f":"IF($A358=\"N/A\",Ref!$B$36,INDEX(Ranks!$1:$1048576,$A358,Z$1))","v":""},{"$f":"IF($A358=\"N/A\",Ref!$B$36,INDEX(Ranks!$1:$1048576,$A358,AA$1))","v":""},{"$f":"IF($A358=\"N/A\",Ref!$B$36,INDEX(Ranks!$1:$1048576,$A358,AB$1))","v":""},{"$f":"IF($A358=\"N/A\",Ref!$B$36,INDEX(Ranks!$1:$1048576,$A358,AC$1))","v":""},{"$f":"IF($A358=\"N/A\",Ref!$B$36,INDEX(Ranks!$1:$1048576,$A358,AD$1))","v":""},{"$f":"IF($A358=\"N/A\",Ref!$B$36,INDEX(Ranks!$1:$1048576,$A358,AE$1))","v":""},{"$f":"IF($A358=\"N/A\",Ref!$B$36,INDEX(Ranks!$1:$1048576,$A358,AF$1))","v":""},{"$f":"IF($A358=\"N/A\",Ref!$B$36,INDEX(Ranks!$1:$1048576,$A358,AG$1))","v":""},{"$f":"IF($A358=\"N/A\",Ref!$B$36,INDEX(Ranks!$1:$1048576,$A358,AH$1))","v":""},{"$f":"IF($A358=\"N/A\",Ref!$B$36,INDEX(Ranks!$1:$1048576,$A358,AI$1))","v":""},{"$f":"IF($A358=\"N/A\",Ref!$B$36,INDEX(Ranks!$1:$1048576,$A358,AJ$1))","v":""},{"$f":"IF($A358=\"N/A\",Ref!$B$36,INDEX(Ranks!$1:$1048576,$A358,AK$1))","v":""},{"$f":"IF($A358=\"N/A\",Ref!$B$36,INDEX(Ranks!$1:$1048576,$A358,AL$1))","v":""},{"$f":"IF($A358=\"N/A\",Ref!$B$36,INDEX(Ranks!$1:$1048576,$A358,AM$1))","v":""},{"$f":"IF($A358=\"N/A\",Ref!$B$36,INDEX(Ranks!$1:$1048576,$A358,AN$1))","v":""},{"$f":"IF($A358=\"N/A\",Ref!$B$36,INDEX(Ranks!$1:$1048576,$A358,AO$1))","v":""},{"$f":"IF($A358=\"N/A\",Ref!$B$36,INDEX(Ranks!$1:$1048576,$A358,AP$1))","v":""},{"$f":"IF($A358=\"N/A\",Ref!$B$36,INDEX(Ranks!$1:$1048576,$A358,AQ$1))","v":""},{"$f":"IF($A358=\"N/A\",Ref!$B$36,INDEX(Ranks!$1:$1048576,$A358,AR$1))","v":""},{"$f":"IF($A358=\"N/A\",Ref!$B$36,INDEX(Ranks!$1:$1048576,$A358,AS$1))","v":""},{"$f":"IF($A358=\"N/A\",Ref!$B$36,INDEX(Ranks!$1:$1048576,$A358,AT$1))","v":""},{"$f":"IF($A358=\"N/A\",Ref!$B$36,INDEX(Ranks!$1:$1048576,$A358,AU$1))","v":""},{"$f":"IF($A358=\"N/A\",Ref!$B$36,INDEX(Ranks!$1:$1048576,$A358,AV$1))","v":""},{"$f":"IF($A358=\"N/A\",Ref!$B$36,INDEX(Ranks!$1:$1048576,$A358,AW$1))","v":""},{"$f":"IF($A358=\"N/A\",Ref!$B$36,INDEX(Ranks!$1:$1048576,$A358,AX$1))","v":""},{"$f":"IF($A358=\"N/A\",Ref!$B$36,INDEX(Ranks!$1:$1048576,$A358,AY$1))","v":""},{"$f":"IF($A358=\"N/A\",Ref!$B$36,INDEX(Ranks!$1:$1048576,$A358,AZ$1))","v":""},{"$f":"IF($A358=\"N/A\",Ref!$B$36,INDEX(Ranks!$1:$1048576,$A358,BA$1))","v":""},{"$f":"IF($A358=\"N/A\",Ref!$B$36,INDEX(Ranks!$1:$1048576,$A358,BB$1))","v":""},{"$f":"IF($A358=\"N/A\",Ref!$B$36,INDEX(Ranks!$1:$1048576,$A358,BC$1))","v":""},{"$f":"IF($A358=\"N/A\",Ref!$B$36,INDEX(Ranks!$1:$1048576,$A358,BD$1))","v":""},{"$f":"IF($A358=\"N/A\",Ref!$B$36,INDEX(Ranks!$1:$1048576,$A358,BE$1))","v":""},{"$f":"IF($A358=\"N/A\",Ref!$B$36,INDEX(Ranks!$1:$1048576,$A358,BF$1))","v":""},{"$f":"IF($A358=\"N/A\",Ref!$B$36,INDEX(Ranks!$1:$1048576,$A358,BG$1))","v":""},{"$f":"IF($A358=\"N/A\",Ref!$B$36,INDEX(Ranks!$1:$1048576,$A358,BH$1))","v":""},{"$f":"IF($A358=\"N/A\",Ref!$B$36,INDEX(Ranks!$1:$1048576,$A358,BI$1))","v":""},{"$f":"IF($A358=\"N/A\",Ref!$B$36,INDEX(Ranks!$1:$1048576,$A358,BJ$1))","v":""},{"$f":"IF($A358=\"N/A\",Ref!$B$36,INDEX(Ranks!$1:$1048576,$A358,BK$1))","v":""},{"$f":"IF($A358=\"N/A\",Ref!$B$36,INDEX(Ranks!$1:$1048576,$A358,BL$1))","v":""},{"$f":"IF($A358=\"N/A\",Ref!$B$36,INDEX(Ranks!$1:$1048576,$A358,BM$1))","v":""},{"$f":"IF($A358=\"N/A\",Ref!$B$36,INDEX(Ranks!$1:$1048576,$A358,BN$1))","v":""},{"$f":"IF($A358=\"N/A\",Ref!$B$36,INDEX(Ranks!$1:$1048576,$A358,BO$1))","v":""},{"$f":"IF($A358=\"N/A\",Ref!$B$36,INDEX(Ranks!$1:$1048576,$A358,BP$1))","v":""},{"$f":"IF($A358=\"N/A\",Ref!$B$36,INDEX(Ranks!$1:$1048576,$A358,BQ$1))","v":""},{"$f":"IF($A358=\"N/A\",Ref!$B$36,INDEX(Ranks!$1:$1048576,$A358,BR$1))","v":""},{"$f":"IF($A358=\"N/A\",Ref!$B$36,INDEX(Ranks!$1:$1048576,$A358,BS$1))","v":""},{"$f":"IF($A358=\"N/A\",Ref!$B$36,INDEX(Ranks!$1:$1048576,$A358,BT$1))","v":""},{"$f":"IF($A358=\"N/A\",Ref!$B$36,INDEX(Ranks!$1:$1048576,$A358,BU$1))","v":""},{"$f":"IF($A358=\"N/A\",Ref!$B$36,INDEX(Ranks!$1:$1048576,$A358,BV$1))","v":""},{"$f":"IF($A358=\"N/A\",Ref!$B$36,INDEX(Ranks!$1:$1048576,$A358,BW$1))","v":""},{"$f":"IF($A358=\"N/A\",Ref!$B$36,INDEX(Ranks!$1:$1048576,$A358,BX$1))","v":""},{"$f":"IF($A358=\"N/A\",Ref!$B$36,INDEX(Ranks!$1:$1048576,$A358,BY$1))","v":""},{"$f":"IF($A358=\"N/A\",Ref!$B$36,INDEX(Ranks!$1:$1048576,$A358,BZ$1))","v":""},{"$f":"IF($A358=\"N/A\",Ref!$B$36,INDEX(Ranks!$1:$1048576,$A358,CA$1))","v":""},{"$f":"IF($A358=\"N/A\",Ref!$B$36,INDEX(Ranks!$1:$1048576,$A358,CB$1))","v":""},{"$f":"IF($A358=\"N/A\",Ref!$B$36,INDEX(Ranks!$1:$1048576,$A358,CC$1))","v":""},{"$f":"IF($A358=\"N/A\",Ref!$B$36,INDEX(Ranks!$1:$1048576,$A358,CD$1))","v":""},{"$f":"IF($A358=\"N/A\",Ref!$B$36,INDEX(Ranks!$1:$1048576,$A358,CE$1))","v":""},{"$f":"IF($A358=\"N/A\",Ref!$B$36,INDEX(Ranks!$1:$1048576,$A358,CF$1))","v":""},{"$f":"IF($A358=\"N/A\",Ref!$B$36,INDEX(Ranks!$1:$1048576,$A358,CG$1))","v":""},{"$f":"IF($A358=\"N/A\",Ref!$B$36,INDEX(Ranks!$1:$1048576,$A358,CH$1))","v":""},{"$f":"IF($A358=\"N/A\",Ref!$B$36,INDEX(Ranks!$1:$1048576,$A358,CI$1))","v":""},{"$f":"IF($A358=\"N/A\",Ref!$B$36,INDEX(Ranks!$1:$1048576,$A358,CJ$1))","v":""},{"$f":"IF($A358=\"N/A\",Ref!$B$36,INDEX(Ranks!$1:$1048576,$A358,CK$1))","v":""},{"$f":"IF($A358=\"N/A\",Ref!$B$36,INDEX(Ranks!$1:$1048576,$A358,CL$1))","v":""},{"$f":"IF($A358=\"N/A\",Ref!$B$36,INDEX(Ranks!$1:$1048576,$A358,CM$1))","v":""},{"$f":"IF($A358=\"N/A\",Ref!$B$36,INDEX(Ranks!$1:$1048576,$A358,CN$1))","v":""},{"$f":"IF($A358=\"N/A\",Ref!$B$36,INDEX(Ranks!$1:$1048576,$A358,CO$1))","v":""},{"$f":"IF($A358=\"N/A\",Ref!$B$36,INDEX(Ranks!$1:$1048576,$A358,CP$1))","v":""},{"$f":"IF($A358=\"N/A\",Ref!$B$36,INDEX(Ranks!$1:$1048576,$A358,CQ$1))","v":""},{"$f":"IF($A358=\"N/A\",Ref!$B$36,INDEX(Ranks!$1:$1048576,$A358,CR$1))","v":""},{"$f":"IF($A358=\"N/A\",Ref!$B$36,INDEX(Ranks!$1:$1048576,$A358,CS$1))","v":""},{"$f":"IF($A358=\"N/A\",Ref!$B$36,INDEX(Ranks!$1:$1048576,$A358,CT$1))","v":""},{"$f":"IF($A358=\"N/A\",Ref!$B$36,INDEX(Ranks!$1:$1048576,$A358,CU$1))","v":""},{"$f":"IF($A358=\"N/A\",Ref!$B$36,INDEX(Ranks!$1:$1048576,$A358,CV$1))","v":""},{"$f":"IF($A358=\"N/A\",Ref!$B$36,INDEX(Ranks!$1:$1048576,$A358,CW$1))","v":""},{"$f":"IF($A358=\"N/A\",Ref!$B$36,INDEX(Ranks!$1:$1048576,$A358,CX$1))","v":""},{"$f":"IF($A358=\"N/A\",Ref!$B$36,INDEX(Ranks!$1:$1048576,$A358,CY$1))","v":""},{"$f":"IF($A358=\"N/A\",Ref!$B$36,INDEX(Ranks!$1:$1048576,$A358,CZ$1))","v":""},{"$f":"IF($A358=\"N/A\",Ref!$B$36,INDEX(Ranks!$1:$1048576,$A358,DA$1))","v":""},{"$f":"IF($A358=\"N/A\",Ref!$B$36,INDEX(Ranks!$1:$1048576,$A358,DB$1))","v":""},{"$f":"IF($A358=\"N/A\",Ref!$B$36,INDEX(Ranks!$1:$1048576,$A358,DC$1))","v":""},{"$f":"IF($A358=\"N/A\",Ref!$B$36,INDEX(Ranks!$1:$1048576,$A358,DD$1))","v":""},{"$f":"IF($A358=\"N/A\",Ref!$B$36,INDEX(Ranks!$1:$1048576,$A358,DE$1))","v":""},{"$f":"IF($A358=\"N/A\",Ref!$B$36,INDEX(Ranks!$1:$1048576,$A358,DF$1))","v":""},{"$f":"IF($A358=\"N/A\",Ref!$B$36,INDEX(Ranks!$1:$1048576,$A358,DG$1))","v":""},{"$f":"IF($A358=\"N/A\",Ref!$B$36,INDEX(Ranks!$1:$1048576,$A358,DH$1))","v":""},{"$f":"IF($A358=\"N/A\",Ref!$B$36,INDEX(Ranks!$1:$1048576,$A358,DI$1))","v":""},{"$f":"IF($A358=\"N/A\",Ref!$B$36,INDEX(Ranks!$1:$1048576,$A358,DJ$1))","v":""},{"$f":"IF($A358=\"N/A\",Ref!$B$36,INDEX(Ranks!$1:$1048576,$A358,DK$1))","v":""},{"$f":"IF($A358=\"N/A\",Ref!$B$36,INDEX(Ranks!$1:$1048576,$A358,DL$1))","v":""},{"$f":"IF($A358=\"N/A\",Ref!$B$36,INDEX(Ranks!$1:$1048576,$A358,DM$1))","v":""},{"$f":"IF($A358=\"N/A\",Ref!$B$36,INDEX(Ranks!$1:$1048576,$A358,DN$1))","v":""},{"$f":"IF($A358=\"N/A\",Ref!$B$36,INDEX(Ranks!$1:$1048576,$A358,DO$1))","v":""},{"$f":"IF($A358=\"N/A\",Ref!$B$36,INDEX(Ranks!$1:$1048576,$A358,DP$1))","v":""},{"$f":"IF($A358=\"N/A\",Ref!$B$36,INDEX(Ranks!$1:$1048576,$A358,DQ$1))","v":""},{"$f":"IF($A358=\"N/A\",Ref!$B$36,INDEX(Ranks!$1:$1048576,$A358,DR$1))","v":""},{"$f":"IF($A358=\"N/A\",Ref!$B$36,INDEX(Ranks!$1:$1048576,$A358,DS$1))","v":""},{"$f":"IF($A358=\"N/A\",Ref!$B$36,INDEX(Ranks!$1:$1048576,$A358,DT$1))","v":""},{"$f":"IF($A358=\"N/A\",Ref!$B$36,INDEX(Ranks!$1:$1048576,$A358,DU$1))","v":""},{"$f":"IF($A358=\"N/A\",Ref!$B$36,INDEX(Ranks!$1:$1048576,$A358,DV$1))","v":""},{"$f":"IF($A358=\"N/A\",Ref!$B$36,INDEX(Ranks!$1:$1048576,$A358,DW$1))","v":""},{"$f":"IF($A358=\"N/A\",Ref!$B$36,INDEX(Ranks!$1:$1048576,$A358,DX$1))","v":""},{"$f":"IF($A358=\"N/A\",Ref!$B$36,INDEX(Ranks!$1:$1048576,$A358,DY$1))","v":""},{"$f":"IF($A358=\"N/A\",Ref!$B$36,INDEX(Ranks!$1:$1048576,$A358,DZ$1))","v":""},{"$f":"IF($A358=\"N/A\",Ref!$B$36,INDEX(Ranks!$1:$1048576,$A358,EA$1))","v":""},{"$f":"IF($A358=\"N/A\",Ref!$B$36,INDEX(Ranks!$1:$1048576,$A358,EB$1))","v":""}]
[{"$f":"IFERROR(MATCH('Portfolio Page'!L359,Ranks!L:L,0),\"N/A\")","v":"N/A"},null,{"$f":"IF($A359=\"N/A\",\"\",INDEX(Ranks!$1:$1048576,$A359,C$1))","v":""},{"$f":"IF($A359=\"N/A\",Ref!$B$36,INDEX(Ranks!$1:$1048576,$A359,D$1))","v":""},{"$f":"IF($A359=\"N/A\",Ref!$B$36,INDEX(Ranks!$1:$1048576,$A359,E$1))","v":""},{"$f":"IF($A359=\"N/A\",\"\",INDEX(Ranks!$1:$1048576,$A359,F$1))","v":""},{"$f":"IF($A359=\"N/A\",\"\",INDEX(Ranks!$1:$1048576,$A359,G$1))","v":""},{"$f":"IF($A359=\"N/A\",\"\",INDEX(Ranks!$1:$1048576,$A359,H$1))","v":""},{"$f":"IF($A359=\"N/A\",\"\",INDEX(Ranks!$1:$1048576,$A359,I$1))","v":""},{"$f":"IF($A359=\"N/A\",\"\",INDEX(Ranks!$1:$1048576,$A359,J$1))","v":""},{"$f":"IF($A359=\"N/A\",\"\",INDEX(Ranks!$1:$1048576,$A359,K$1))","v":""},null,{"$f":"IF($A359=\"N/A\",Ref!$B$36,INDEX(Ranks!$1:$1048576,$A359,M$1))","v":""},{"$f":"IF($A359=\"N/A\",Ref!$B$36,INDEX(Ranks!$1:$1048576,$A359,N$1))","v":""},{"$f":"IF($A359=\"N/A\",Ref!$B$36,INDEX(Ranks!$1:$1048576,$A359,O$1))","v":""},{"$f":"IF($A359=\"N/A\",Ref!$B$36,INDEX(Ranks!$1:$1048576,$A359,P$1))","v":""},{"$f":"IF($A359=\"N/A\",Ref!$B$36,INDEX(Ranks!$1:$1048576,$A359,Q$1))","v":""},{"$f":"IF($A359=\"N/A\",Ref!$B$36,INDEX(Ranks!$1:$1048576,$A359,R$1))","v":""},{"$f":"IF($A359=\"N/A\",Ref!$B$36,INDEX(Ranks!$1:$1048576,$A359,S$1))","v":""},{"$f":"IF($A359=\"N/A\",Ref!$B$36,INDEX(Ranks!$1:$1048576,$A359,T$1))","v":""},{"$f":"IF($A359=\"N/A\",Ref!$B$36,INDEX(Ranks!$1:$1048576,$A359,U$1))","v":""},{"$f":"IF($A359=\"N/A\",Ref!$B$36,INDEX(Ranks!$1:$1048576,$A359,V$1))","v":""},{"$f":"IF($A359=\"N/A\",Ref!$B$36,INDEX(Ranks!$1:$1048576,$A359,W$1))","v":""},{"$f":"IF($A359=\"N/A\",Ref!$B$36,INDEX(Ranks!$1:$1048576,$A359,X$1))","v":""},{"$f":"IF($A359=\"N/A\",Ref!$B$36,INDEX(Ranks!$1:$1048576,$A359,Y$1))","v":""},{"$f":"IF($A359=\"N/A\",Ref!$B$36,INDEX(Ranks!$1:$1048576,$A359,Z$1))","v":""},{"$f":"IF($A359=\"N/A\",Ref!$B$36,INDEX(Ranks!$1:$1048576,$A359,AA$1))","v":""},{"$f":"IF($A359=\"N/A\",Ref!$B$36,INDEX(Ranks!$1:$1048576,$A359,AB$1))","v":""},{"$f":"IF($A359=\"N/A\",Ref!$B$36,INDEX(Ranks!$1:$1048576,$A359,AC$1))","v":""},{"$f":"IF($A359=\"N/A\",Ref!$B$36,INDEX(Ranks!$1:$1048576,$A359,AD$1))","v":""},{"$f":"IF($A359=\"N/A\",Ref!$B$36,INDEX(Ranks!$1:$1048576,$A359,AE$1))","v":""},{"$f":"IF($A359=\"N/A\",Ref!$B$36,INDEX(Ranks!$1:$1048576,$A359,AF$1))","v":""},{"$f":"IF($A359=\"N/A\",Ref!$B$36,INDEX(Ranks!$1:$1048576,$A359,AG$1))","v":""},{"$f":"IF($A359=\"N/A\",Ref!$B$36,INDEX(Ranks!$1:$1048576,$A359,AH$1))","v":""},{"$f":"IF($A359=\"N/A\",Ref!$B$36,INDEX(Ranks!$1:$1048576,$A359,AI$1))","v":""},{"$f":"IF($A359=\"N/A\",Ref!$B$36,INDEX(Ranks!$1:$1048576,$A359,AJ$1))","v":""},{"$f":"IF($A359=\"N/A\",Ref!$B$36,INDEX(Ranks!$1:$1048576,$A359,AK$1))","v":""},{"$f":"IF($A359=\"N/A\",Ref!$B$36,INDEX(Ranks!$1:$1048576,$A359,AL$1))","v":""},{"$f":"IF($A359=\"N/A\",Ref!$B$36,INDEX(Ranks!$1:$1048576,$A359,AM$1))","v":""},{"$f":"IF($A359=\"N/A\",Ref!$B$36,INDEX(Ranks!$1:$1048576,$A359,AN$1))","v":""},{"$f":"IF($A359=\"N/A\",Ref!$B$36,INDEX(Ranks!$1:$1048576,$A359,AO$1))","v":""},{"$f":"IF($A359=\"N/A\",Ref!$B$36,INDEX(Ranks!$1:$1048576,$A359,AP$1))","v":""},{"$f":"IF($A359=\"N/A\",Ref!$B$36,INDEX(Ranks!$1:$1048576,$A359,AQ$1))","v":""},{"$f":"IF($A359=\"N/A\",Ref!$B$36,INDEX(Ranks!$1:$1048576,$A359,AR$1))","v":""},{"$f":"IF($A359=\"N/A\",Ref!$B$36,INDEX(Ranks!$1:$1048576,$A359,AS$1))","v":""},{"$f":"IF($A359=\"N/A\",Ref!$B$36,INDEX(Ranks!$1:$1048576,$A359,AT$1))","v":""},{"$f":"IF($A359=\"N/A\",Ref!$B$36,INDEX(Ranks!$1:$1048576,$A359,AU$1))","v":""},{"$f":"IF($A359=\"N/A\",Ref!$B$36,INDEX(Ranks!$1:$1048576,$A359,AV$1))","v":""},{"$f":"IF($A359=\"N/A\",Ref!$B$36,INDEX(Ranks!$1:$1048576,$A359,AW$1))","v":""},{"$f":"IF($A359=\"N/A\",Ref!$B$36,INDEX(Ranks!$1:$1048576,$A359,AX$1))","v":""},{"$f":"IF($A359=\"N/A\",Ref!$B$36,INDEX(Ranks!$1:$1048576,$A359,AY$1))","v":""},{"$f":"IF($A359=\"N/A\",Ref!$B$36,INDEX(Ranks!$1:$1048576,$A359,AZ$1))","v":""},{"$f":"IF($A359=\"N/A\",Ref!$B$36,INDEX(Ranks!$1:$1048576,$A359,BA$1))","v":""},{"$f":"IF($A359=\"N/A\",Ref!$B$36,INDEX(Ranks!$1:$1048576,$A359,BB$1))","v":""},{"$f":"IF($A359=\"N/A\",Ref!$B$36,INDEX(Ranks!$1:$1048576,$A359,BC$1))","v":""},{"$f":"IF($A359=\"N/A\",Ref!$B$36,INDEX(Ranks!$1:$1048576,$A359,BD$1))","v":""},{"$f":"IF($A359=\"N/A\",Ref!$B$36,INDEX(Ranks!$1:$1048576,$A359,BE$1))","v":""},{"$f":"IF($A359=\"N/A\",Ref!$B$36,INDEX(Ranks!$1:$1048576,$A359,BF$1))","v":""},{"$f":"IF($A359=\"N/A\",Ref!$B$36,INDEX(Ranks!$1:$1048576,$A359,BG$1))","v":""},{"$f":"IF($A359=\"N/A\",Ref!$B$36,INDEX(Ranks!$1:$1048576,$A359,BH$1))","v":""},{"$f":"IF($A359=\"N/A\",Ref!$B$36,INDEX(Ranks!$1:$1048576,$A359,BI$1))","v":""},{"$f":"IF($A359=\"N/A\",Ref!$B$36,INDEX(Ranks!$1:$1048576,$A359,BJ$1))","v":""},{"$f":"IF($A359=\"N/A\",Ref!$B$36,INDEX(Ranks!$1:$1048576,$A359,BK$1))","v":""},{"$f":"IF($A359=\"N/A\",Ref!$B$36,INDEX(Ranks!$1:$1048576,$A359,BL$1))","v":""},{"$f":"IF($A359=\"N/A\",Ref!$B$36,INDEX(Ranks!$1:$1048576,$A359,BM$1))","v":""},{"$f":"IF($A359=\"N/A\",Ref!$B$36,INDEX(Ranks!$1:$1048576,$A359,BN$1))","v":""},{"$f":"IF($A359=\"N/A\",Ref!$B$36,INDEX(Ranks!$1:$1048576,$A359,BO$1))","v":""},{"$f":"IF($A359=\"N/A\",Ref!$B$36,INDEX(Ranks!$1:$1048576,$A359,BP$1))","v":""},{"$f":"IF($A359=\"N/A\",Ref!$B$36,INDEX(Ranks!$1:$1048576,$A359,BQ$1))","v":""},{"$f":"IF($A359=\"N/A\",Ref!$B$36,INDEX(Ranks!$1:$1048576,$A359,BR$1))","v":""},{"$f":"IF($A359=\"N/A\",Ref!$B$36,INDEX(Ranks!$1:$1048576,$A359,BS$1))","v":""},{"$f":"IF($A359=\"N/A\",Ref!$B$36,INDEX(Ranks!$1:$1048576,$A359,BT$1))","v":""},{"$f":"IF($A359=\"N/A\",Ref!$B$36,INDEX(Ranks!$1:$1048576,$A359,BU$1))","v":""},{"$f":"IF($A359=\"N/A\",Ref!$B$36,INDEX(Ranks!$1:$1048576,$A359,BV$1))","v":""},{"$f":"IF($A359=\"N/A\",Ref!$B$36,INDEX(Ranks!$1:$1048576,$A359,BW$1))","v":""},{"$f":"IF($A359=\"N/A\",Ref!$B$36,INDEX(Ranks!$1:$1048576,$A359,BX$1))","v":""},{"$f":"IF($A359=\"N/A\",Ref!$B$36,INDEX(Ranks!$1:$1048576,$A359,BY$1))","v":""},{"$f":"IF($A359=\"N/A\",Ref!$B$36,INDEX(Ranks!$1:$1048576,$A359,BZ$1))","v":""},{"$f":"IF($A359=\"N/A\",Ref!$B$36,INDEX(Ranks!$1:$1048576,$A359,CA$1))","v":""},{"$f":"IF($A359=\"N/A\",Ref!$B$36,INDEX(Ranks!$1:$1048576,$A359,CB$1))","v":""},{"$f":"IF($A359=\"N/A\",Ref!$B$36,INDEX(Ranks!$1:$1048576,$A359,CC$1))","v":""},{"$f":"IF($A359=\"N/A\",Ref!$B$36,INDEX(Ranks!$1:$1048576,$A359,CD$1))","v":""},{"$f":"IF($A359=\"N/A\",Ref!$B$36,INDEX(Ranks!$1:$1048576,$A359,CE$1))","v":""},{"$f":"IF($A359=\"N/A\",Ref!$B$36,INDEX(Ranks!$1:$1048576,$A359,CF$1))","v":""},{"$f":"IF($A359=\"N/A\",Ref!$B$36,INDEX(Ranks!$1:$1048576,$A359,CG$1))","v":""},{"$f":"IF($A359=\"N/A\",Ref!$B$36,INDEX(Ranks!$1:$1048576,$A359,CH$1))","v":""},{"$f":"IF($A359=\"N/A\",Ref!$B$36,INDEX(Ranks!$1:$1048576,$A359,CI$1))","v":""},{"$f":"IF($A359=\"N/A\",Ref!$B$36,INDEX(Ranks!$1:$1048576,$A359,CJ$1))","v":""},{"$f":"IF($A359=\"N/A\",Ref!$B$36,INDEX(Ranks!$1:$1048576,$A359,CK$1))","v":""},{"$f":"IF($A359=\"N/A\",Ref!$B$36,INDEX(Ranks!$1:$1048576,$A359,CL$1))","v":""},{"$f":"IF($A359=\"N/A\",Ref!$B$36,INDEX(Ranks!$1:$1048576,$A359,CM$1))","v":""},{"$f":"IF($A359=\"N/A\",Ref!$B$36,INDEX(Ranks!$1:$1048576,$A359,CN$1))","v":""},{"$f":"IF($A359=\"N/A\",Ref!$B$36,INDEX(Ranks!$1:$1048576,$A359,CO$1))","v":""},{"$f":"IF($A359=\"N/A\",Ref!$B$36,INDEX(Ranks!$1:$1048576,$A359,CP$1))","v":""},{"$f":"IF($A359=\"N/A\",Ref!$B$36,INDEX(Ranks!$1:$1048576,$A359,CQ$1))","v":""},{"$f":"IF($A359=\"N/A\",Ref!$B$36,INDEX(Ranks!$1:$1048576,$A359,CR$1))","v":""},{"$f":"IF($A359=\"N/A\",Ref!$B$36,INDEX(Ranks!$1:$1048576,$A359,CS$1))","v":""},{"$f":"IF($A359=\"N/A\",Ref!$B$36,INDEX(Ranks!$1:$1048576,$A359,CT$1))","v":""},{"$f":"IF($A359=\"N/A\",Ref!$B$36,INDEX(Ranks!$1:$1048576,$A359,CU$1))","v":""},{"$f":"IF($A359=\"N/A\",Ref!$B$36,INDEX(Ranks!$1:$1048576,$A359,CV$1))","v":""},{"$f":"IF($A359=\"N/A\",Ref!$B$36,INDEX(Ranks!$1:$1048576,$A359,CW$1))","v":""},{"$f":"IF($A359=\"N/A\",Ref!$B$36,INDEX(Ranks!$1:$1048576,$A359,CX$1))","v":""},{"$f":"IF($A359=\"N/A\",Ref!$B$36,INDEX(Ranks!$1:$1048576,$A359,CY$1))","v":""},{"$f":"IF($A359=\"N/A\",Ref!$B$36,INDEX(Ranks!$1:$1048576,$A359,CZ$1))","v":""},{"$f":"IF($A359=\"N/A\",Ref!$B$36,INDEX(Ranks!$1:$1048576,$A359,DA$1))","v":""},{"$f":"IF($A359=\"N/A\",Ref!$B$36,INDEX(Ranks!$1:$1048576,$A359,DB$1))","v":""},{"$f":"IF($A359=\"N/A\",Ref!$B$36,INDEX(Ranks!$1:$1048576,$A359,DC$1))","v":""},{"$f":"IF($A359=\"N/A\",Ref!$B$36,INDEX(Ranks!$1:$1048576,$A359,DD$1))","v":""},{"$f":"IF($A359=\"N/A\",Ref!$B$36,INDEX(Ranks!$1:$1048576,$A359,DE$1))","v":""},{"$f":"IF($A359=\"N/A\",Ref!$B$36,INDEX(Ranks!$1:$1048576,$A359,DF$1))","v":""},{"$f":"IF($A359=\"N/A\",Ref!$B$36,INDEX(Ranks!$1:$1048576,$A359,DG$1))","v":""},{"$f":"IF($A359=\"N/A\",Ref!$B$36,INDEX(Ranks!$1:$1048576,$A359,DH$1))","v":""},{"$f":"IF($A359=\"N/A\",Ref!$B$36,INDEX(Ranks!$1:$1048576,$A359,DI$1))","v":""},{"$f":"IF($A359=\"N/A\",Ref!$B$36,INDEX(Ranks!$1:$1048576,$A359,DJ$1))","v":""},{"$f":"IF($A359=\"N/A\",Ref!$B$36,INDEX(Ranks!$1:$1048576,$A359,DK$1))","v":""},{"$f":"IF($A359=\"N/A\",Ref!$B$36,INDEX(Ranks!$1:$1048576,$A359,DL$1))","v":""},{"$f":"IF($A359=\"N/A\",Ref!$B$36,INDEX(Ranks!$1:$1048576,$A359,DM$1))","v":""},{"$f":"IF($A359=\"N/A\",Ref!$B$36,INDEX(Ranks!$1:$1048576,$A359,DN$1))","v":""},{"$f":"IF($A359=\"N/A\",Ref!$B$36,INDEX(Ranks!$1:$1048576,$A359,DO$1))","v":""},{"$f":"IF($A359=\"N/A\",Ref!$B$36,INDEX(Ranks!$1:$1048576,$A359,DP$1))","v":""},{"$f":"IF($A359=\"N/A\",Ref!$B$36,INDEX(Ranks!$1:$1048576,$A359,DQ$1))","v":""},{"$f":"IF($A359=\"N/A\",Ref!$B$36,INDEX(Ranks!$1:$1048576,$A359,DR$1))","v":""},{"$f":"IF($A359=\"N/A\",Ref!$B$36,INDEX(Ranks!$1:$1048576,$A359,DS$1))","v":""},{"$f":"IF($A359=\"N/A\",Ref!$B$36,INDEX(Ranks!$1:$1048576,$A359,DT$1))","v":""},{"$f":"IF($A359=\"N/A\",Ref!$B$36,INDEX(Ranks!$1:$1048576,$A359,DU$1))","v":""},{"$f":"IF($A359=\"N/A\",Ref!$B$36,INDEX(Ranks!$1:$1048576,$A359,DV$1))","v":""},{"$f":"IF($A359=\"N/A\",Ref!$B$36,INDEX(Ranks!$1:$1048576,$A359,DW$1))","v":""},{"$f":"IF($A359=\"N/A\",Ref!$B$36,INDEX(Ranks!$1:$1048576,$A359,DX$1))","v":""},{"$f":"IF($A359=\"N/A\",Ref!$B$36,INDEX(Ranks!$1:$1048576,$A359,DY$1))","v":""},{"$f":"IF($A359=\"N/A\",Ref!$B$36,INDEX(Ranks!$1:$1048576,$A359,DZ$1))","v":""},{"$f":"IF($A359=\"N/A\",Ref!$B$36,INDEX(Ranks!$1:$1048576,$A359,EA$1))","v":""},{"$f":"IF($A359=\"N/A\",Ref!$B$36,INDEX(Ranks!$1:$1048576,$A359,EB$1))","v":""}]
[{"$f":"IFERROR(MATCH('Portfolio Page'!L360,Ranks!L:L,0),\"N/A\")","v":"N/A"},null,{"$f":"IF($A360=\"N/A\",\"\",INDEX(Ranks!$1:$1048576,$A360,C$1))","v":""},{"$f":"IF($A360=\"N/A\",Ref!$B$36,INDEX(Ranks!$1:$1048576,$A360,D$1))","v":""},{"$f":"IF($A360=\"N/A\",Ref!$B$36,INDEX(Ranks!$1:$1048576,$A360,E$1))","v":""},{"$f":"IF($A360=\"N/A\",\"\",INDEX(Ranks!$1:$1048576,$A360,F$1))","v":""},{"$f":"IF($A360=\"N/A\",\"\",INDEX(Ranks!$1:$1048576,$A360,G$1))","v":""},{"$f":"IF($A360=\"N/A\",\"\",INDEX(Ranks!$1:$1048576,$A360,H$1))","v":""},{"$f":"IF($A360=\"N/A\",\"\",INDEX(Ranks!$1:$1048576,$A360,I$1))","v":""},{"$f":"IF($A360=\"N/A\",\"\",INDEX(Ranks!$1:$1048576,$A360,J$1))","v":""},{"$f":"IF($A360=\"N/A\",\"\",INDEX(Ranks!$1:$1048576,$A360,K$1))","v":""},null,{"$f":"IF($A360=\"N/A\",Ref!$B$36,INDEX(Ranks!$1:$1048576,$A360,M$1))","v":""},{"$f":"IF($A360=\"N/A\",Ref!$B$36,INDEX(Ranks!$1:$1048576,$A360,N$1))","v":""},{"$f":"IF($A360=\"N/A\",Ref!$B$36,INDEX(Ranks!$1:$1048576,$A360,O$1))","v":""},{"$f":"IF($A360=\"N/A\",Ref!$B$36,INDEX(Ranks!$1:$1048576,$A360,P$1))","v":""},{"$f":"IF($A360=\"N/A\",Ref!$B$36,INDEX(Ranks!$1:$1048576,$A360,Q$1))","v":""},{"$f":"IF($A360=\"N/A\",Ref!$B$36,INDEX(Ranks!$1:$1048576,$A360,R$1))","v":""},{"$f":"IF($A360=\"N/A\",Ref!$B$36,INDEX(Ranks!$1:$1048576,$A360,S$1))","v":""},{"$f":"IF($A360=\"N/A\",Ref!$B$36,INDEX(Ranks!$1:$1048576,$A360,T$1))","v":""},{"$f":"IF($A360=\"N/A\",Ref!$B$36,INDEX(Ranks!$1:$1048576,$A360,U$1))","v":""},{"$f":"IF($A360=\"N/A\",Ref!$B$36,INDEX(Ranks!$1:$1048576,$A360,V$1))","v":""},{"$f":"IF($A360=\"N/A\",Ref!$B$36,INDEX(Ranks!$1:$1048576,$A360,W$1))","v":""},{"$f":"IF($A360=\"N/A\",Ref!$B$36,INDEX(Ranks!$1:$1048576,$A360,X$1))","v":""},{"$f":"IF($A360=\"N/A\",Ref!$B$36,INDEX(Ranks!$1:$1048576,$A360,Y$1))","v":""},{"$f":"IF($A360=\"N/A\",Ref!$B$36,INDEX(Ranks!$1:$1048576,$A360,Z$1))","v":""},{"$f":"IF($A360=\"N/A\",Ref!$B$36,INDEX(Ranks!$1:$1048576,$A360,AA$1))","v":""},{"$f":"IF($A360=\"N/A\",Ref!$B$36,INDEX(Ranks!$1:$1048576,$A360,AB$1))","v":""},{"$f":"IF($A360=\"N/A\",Ref!$B$36,INDEX(Ranks!$1:$1048576,$A360,AC$1))","v":""},{"$f":"IF($A360=\"N/A\",Ref!$B$36,INDEX(Ranks!$1:$1048576,$A360,AD$1))","v":""},{"$f":"IF($A360=\"N/A\",Ref!$B$36,INDEX(Ranks!$1:$1048576,$A360,AE$1))","v":""},{"$f":"IF($A360=\"N/A\",Ref!$B$36,INDEX(Ranks!$1:$1048576,$A360,AF$1))","v":""},{"$f":"IF($A360=\"N/A\",Ref!$B$36,INDEX(Ranks!$1:$1048576,$A360,AG$1))","v":""},{"$f":"IF($A360=\"N/A\",Ref!$B$36,INDEX(Ranks!$1:$1048576,$A360,AH$1))","v":""},{"$f":"IF($A360=\"N/A\",Ref!$B$36,INDEX(Ranks!$1:$1048576,$A360,AI$1))","v":""},{"$f":"IF($A360=\"N/A\",Ref!$B$36,INDEX(Ranks!$1:$1048576,$A360,AJ$1))","v":""},{"$f":"IF($A360=\"N/A\",Ref!$B$36,INDEX(Ranks!$1:$1048576,$A360,AK$1))","v":""},{"$f":"IF($A360=\"N/A\",Ref!$B$36,INDEX(Ranks!$1:$1048576,$A360,AL$1))","v":""},{"$f":"IF($A360=\"N/A\",Ref!$B$36,INDEX(Ranks!$1:$1048576,$A360,AM$1))","v":""},{"$f":"IF($A360=\"N/A\",Ref!$B$36,INDEX(Ranks!$1:$1048576,$A360,AN$1))","v":""},{"$f":"IF($A360=\"N/A\",Ref!$B$36,INDEX(Ranks!$1:$1048576,$A360,AO$1))","v":""},{"$f":"IF($A360=\"N/A\",Ref!$B$36,INDEX(Ranks!$1:$1048576,$A360,AP$1))","v":""},{"$f":"IF($A360=\"N/A\",Ref!$B$36,INDEX(Ranks!$1:$1048576,$A360,AQ$1))","v":""},{"$f":"IF($A360=\"N/A\",Ref!$B$36,INDEX(Ranks!$1:$1048576,$A360,AR$1))","v":""},{"$f":"IF($A360=\"N/A\",Ref!$B$36,INDEX(Ranks!$1:$1048576,$A360,AS$1))","v":""},{"$f":"IF($A360=\"N/A\",Ref!$B$36,INDEX(Ranks!$1:$1048576,$A360,AT$1))","v":""},{"$f":"IF($A360=\"N/A\",Ref!$B$36,INDEX(Ranks!$1:$1048576,$A360,AU$1))","v":""},{"$f":"IF($A360=\"N/A\",Ref!$B$36,INDEX(Ranks!$1:$1048576,$A360,AV$1))","v":""},{"$f":"IF($A360=\"N/A\",Ref!$B$36,INDEX(Ranks!$1:$1048576,$A360,AW$1))","v":""},{"$f":"IF($A360=\"N/A\",Ref!$B$36,INDEX(Ranks!$1:$1048576,$A360,AX$1))","v":""},{"$f":"IF($A360=\"N/A\",Ref!$B$36,INDEX(Ranks!$1:$1048576,$A360,AY$1))","v":""},{"$f":"IF($A360=\"N/A\",Ref!$B$36,INDEX(Ranks!$1:$1048576,$A360,AZ$1))","v":""},{"$f":"IF($A360=\"N/A\",Ref!$B$36,INDEX(Ranks!$1:$1048576,$A360,BA$1))","v":""},{"$f":"IF($A360=\"N/A\",Ref!$B$36,INDEX(Ranks!$1:$1048576,$A360,BB$1))","v":""},{"$f":"IF($A360=\"N/A\",Ref!$B$36,INDEX(Ranks!$1:$1048576,$A360,BC$1))","v":""},{"$f":"IF($A360=\"N/A\",Ref!$B$36,INDEX(Ranks!$1:$1048576,$A360,BD$1))","v":""},{"$f":"IF($A360=\"N/A\",Ref!$B$36,INDEX(Ranks!$1:$1048576,$A360,BE$1))","v":""},{"$f":"IF($A360=\"N/A\",Ref!$B$36,INDEX(Ranks!$1:$1048576,$A360,BF$1))","v":""},{"$f":"IF($A360=\"N/A\",Ref!$B$36,INDEX(Ranks!$1:$1048576,$A360,BG$1))","v":""},{"$f":"IF($A360=\"N/A\",Ref!$B$36,INDEX(Ranks!$1:$1048576,$A360,BH$1))","v":""},{"$f":"IF($A360=\"N/A\",Ref!$B$36,INDEX(Ranks!$1:$1048576,$A360,BI$1))","v":""},{"$f":"IF($A360=\"N/A\",Ref!$B$36,INDEX(Ranks!$1:$1048576,$A360,BJ$1))","v":""},{"$f":"IF($A360=\"N/A\",Ref!$B$36,INDEX(Ranks!$1:$1048576,$A360,BK$1))","v":""},{"$f":"IF($A360=\"N/A\",Ref!$B$36,INDEX(Ranks!$1:$1048576,$A360,BL$1))","v":""},{"$f":"IF($A360=\"N/A\",Ref!$B$36,INDEX(Ranks!$1:$1048576,$A360,BM$1))","v":""},{"$f":"IF($A360=\"N/A\",Ref!$B$36,INDEX(Ranks!$1:$1048576,$A360,BN$1))","v":""},{"$f":"IF($A360=\"N/A\",Ref!$B$36,INDEX(Ranks!$1:$1048576,$A360,BO$1))","v":""},{"$f":"IF($A360=\"N/A\",Ref!$B$36,INDEX(Ranks!$1:$1048576,$A360,BP$1))","v":""},{"$f":"IF($A360=\"N/A\",Ref!$B$36,INDEX(Ranks!$1:$1048576,$A360,BQ$1))","v":""},{"$f":"IF($A360=\"N/A\",Ref!$B$36,INDEX(Ranks!$1:$1048576,$A360,BR$1))","v":""},{"$f":"IF($A360=\"N/A\",Ref!$B$36,INDEX(Ranks!$1:$1048576,$A360,BS$1))","v":""},{"$f":"IF($A360=\"N/A\",Ref!$B$36,INDEX(Ranks!$1:$1048576,$A360,BT$1))","v":""},{"$f":"IF($A360=\"N/A\",Ref!$B$36,INDEX(Ranks!$1:$1048576,$A360,BU$1))","v":""},{"$f":"IF($A360=\"N/A\",Ref!$B$36,INDEX(Ranks!$1:$1048576,$A360,BV$1))","v":""},{"$f":"IF($A360=\"N/A\",Ref!$B$36,INDEX(Ranks!$1:$1048576,$A360,BW$1))","v":""},{"$f":"IF($A360=\"N/A\",Ref!$B$36,INDEX(Ranks!$1:$1048576,$A360,BX$1))","v":""},{"$f":"IF($A360=\"N/A\",Ref!$B$36,INDEX(Ranks!$1:$1048576,$A360,BY$1))","v":""},{"$f":"IF($A360=\"N/A\",Ref!$B$36,INDEX(Ranks!$1:$1048576,$A360,BZ$1))","v":""},{"$f":"IF($A360=\"N/A\",Ref!$B$36,INDEX(Ranks!$1:$1048576,$A360,CA$1))","v":""},{"$f":"IF($A360=\"N/A\",Ref!$B$36,INDEX(Ranks!$1:$1048576,$A360,CB$1))","v":""},{"$f":"IF($A360=\"N/A\",Ref!$B$36,INDEX(Ranks!$1:$1048576,$A360,CC$1))","v":""},{"$f":"IF($A360=\"N/A\",Ref!$B$36,INDEX(Ranks!$1:$1048576,$A360,CD$1))","v":""},{"$f":"IF($A360=\"N/A\",Ref!$B$36,INDEX(Ranks!$1:$1048576,$A360,CE$1))","v":""},{"$f":"IF($A360=\"N/A\",Ref!$B$36,INDEX(Ranks!$1:$1048576,$A360,CF$1))","v":""},{"$f":"IF($A360=\"N/A\",Ref!$B$36,INDEX(Ranks!$1:$1048576,$A360,CG$1))","v":""},{"$f":"IF($A360=\"N/A\",Ref!$B$36,INDEX(Ranks!$1:$1048576,$A360,CH$1))","v":""},{"$f":"IF($A360=\"N/A\",Ref!$B$36,INDEX(Ranks!$1:$1048576,$A360,CI$1))","v":""},{"$f":"IF($A360=\"N/A\",Ref!$B$36,INDEX(Ranks!$1:$1048576,$A360,CJ$1))","v":""},{"$f":"IF($A360=\"N/A\",Ref!$B$36,INDEX(Ranks!$1:$1048576,$A360,CK$1))","v":""},{"$f":"IF($A360=\"N/A\",Ref!$B$36,INDEX(Ranks!$1:$1048576,$A360,CL$1))","v":""},{"$f":"IF($A360=\"N/A\",Ref!$B$36,INDEX(Ranks!$1:$1048576,$A360,CM$1))","v":""},{"$f":"IF($A360=\"N/A\",Ref!$B$36,INDEX(Ranks!$1:$1048576,$A360,CN$1))","v":""},{"$f":"IF($A360=\"N/A\",Ref!$B$36,INDEX(Ranks!$1:$1048576,$A360,CO$1))","v":""},{"$f":"IF($A360=\"N/A\",Ref!$B$36,INDEX(Ranks!$1:$1048576,$A360,CP$1))","v":""},{"$f":"IF($A360=\"N/A\",Ref!$B$36,INDEX(Ranks!$1:$1048576,$A360,CQ$1))","v":""},{"$f":"IF($A360=\"N/A\",Ref!$B$36,INDEX(Ranks!$1:$1048576,$A360,CR$1))","v":""},{"$f":"IF($A360=\"N/A\",Ref!$B$36,INDEX(Ranks!$1:$1048576,$A360,CS$1))","v":""},{"$f":"IF($A360=\"N/A\",Ref!$B$36,INDEX(Ranks!$1:$1048576,$A360,CT$1))","v":""},{"$f":"IF($A360=\"N/A\",Ref!$B$36,INDEX(Ranks!$1:$1048576,$A360,CU$1))","v":""},{"$f":"IF($A360=\"N/A\",Ref!$B$36,INDEX(Ranks!$1:$1048576,$A360,CV$1))","v":""},{"$f":"IF($A360=\"N/A\",Ref!$B$36,INDEX(Ranks!$1:$1048576,$A360,CW$1))","v":""},{"$f":"IF($A360=\"N/A\",Ref!$B$36,INDEX(Ranks!$1:$1048576,$A360,CX$1))","v":""},{"$f":"IF($A360=\"N/A\",Ref!$B$36,INDEX(Ranks!$1:$1048576,$A360,CY$1))","v":""},{"$f":"IF($A360=\"N/A\",Ref!$B$36,INDEX(Ranks!$1:$1048576,$A360,CZ$1))","v":""},{"$f":"IF($A360=\"N/A\",Ref!$B$36,INDEX(Ranks!$1:$1048576,$A360,DA$1))","v":""},{"$f":"IF($A360=\"N/A\",Ref!$B$36,INDEX(Ranks!$1:$1048576,$A360,DB$1))","v":""},{"$f":"IF($A360=\"N/A\",Ref!$B$36,INDEX(Ranks!$1:$1048576,$A360,DC$1))","v":""},{"$f":"IF($A360=\"N/A\",Ref!$B$36,INDEX(Ranks!$1:$1048576,$A360,DD$1))","v":""},{"$f":"IF($A360=\"N/A\",Ref!$B$36,INDEX(Ranks!$1:$1048576,$A360,DE$1))","v":""},{"$f":"IF($A360=\"N/A\",Ref!$B$36,INDEX(Ranks!$1:$1048576,$A360,DF$1))","v":""},{"$f":"IF($A360=\"N/A\",Ref!$B$36,INDEX(Ranks!$1:$1048576,$A360,DG$1))","v":""},{"$f":"IF($A360=\"N/A\",Ref!$B$36,INDEX(Ranks!$1:$1048576,$A360,DH$1))","v":""},{"$f":"IF($A360=\"N/A\",Ref!$B$36,INDEX(Ranks!$1:$1048576,$A360,DI$1))","v":""},{"$f":"IF($A360=\"N/A\",Ref!$B$36,INDEX(Ranks!$1:$1048576,$A360,DJ$1))","v":""},{"$f":"IF($A360=\"N/A\",Ref!$B$36,INDEX(Ranks!$1:$1048576,$A360,DK$1))","v":""},{"$f":"IF($A360=\"N/A\",Ref!$B$36,INDEX(Ranks!$1:$1048576,$A360,DL$1))","v":""},{"$f":"IF($A360=\"N/A\",Ref!$B$36,INDEX(Ranks!$1:$1048576,$A360,DM$1))","v":""},{"$f":"IF($A360=\"N/A\",Ref!$B$36,INDEX(Ranks!$1:$1048576,$A360,DN$1))","v":""},{"$f":"IF($A360=\"N/A\",Ref!$B$36,INDEX(Ranks!$1:$1048576,$A360,DO$1))","v":""},{"$f":"IF($A360=\"N/A\",Ref!$B$36,INDEX(Ranks!$1:$1048576,$A360,DP$1))","v":""},{"$f":"IF($A360=\"N/A\",Ref!$B$36,INDEX(Ranks!$1:$1048576,$A360,DQ$1))","v":""},{"$f":"IF($A360=\"N/A\",Ref!$B$36,INDEX(Ranks!$1:$1048576,$A360,DR$1))","v":""},{"$f":"IF($A360=\"N/A\",Ref!$B$36,INDEX(Ranks!$1:$1048576,$A360,DS$1))","v":""},{"$f":"IF($A360=\"N/A\",Ref!$B$36,INDEX(Ranks!$1:$1048576,$A360,DT$1))","v":""},{"$f":"IF($A360=\"N/A\",Ref!$B$36,INDEX(Ranks!$1:$1048576,$A360,DU$1))","v":""},{"$f":"IF($A360=\"N/A\",Ref!$B$36,INDEX(Ranks!$1:$1048576,$A360,DV$1))","v":""},{"$f":"IF($A360=\"N/A\",Ref!$B$36,INDEX(Ranks!$1:$1048576,$A360,DW$1))","v":""},{"$f":"IF($A360=\"N/A\",Ref!$B$36,INDEX(Ranks!$1:$1048576,$A360,DX$1))","v":""},{"$f":"IF($A360=\"N/A\",Ref!$B$36,INDEX(Ranks!$1:$1048576,$A360,DY$1))","v":""},{"$f":"IF($A360=\"N/A\",Ref!$B$36,INDEX(Ranks!$1:$1048576,$A360,DZ$1))","v":""},{"$f":"IF($A360=\"N/A\",Ref!$B$36,INDEX(Ranks!$1:$1048576,$A360,EA$1))","v":""},{"$f":"IF($A360=\"N/A\",Ref!$B$36,INDEX(Ranks!$1:$1048576,$A360,EB$1))","v":""}]
[{"$f":"IFERROR(MATCH('Portfolio Page'!L361,Ranks!L:L,0),\"N/A\")","v":"N/A"},null,{"$f":"IF($A361=\"N/A\",\"\",INDEX(Ranks!$1:$1048576,$A361,C$1))","v":""},{"$f":"IF($A361=\"N/A\",Ref!$B$36,INDEX(Ranks!$1:$1048576,$A361,D$1))","v":""},{"$f":"IF($A361=\"N/A\",Ref!$B$36,INDEX(Ranks!$1:$1048576,$A361,E$1))","v":""},{"$f":"IF($A361=\"N/A\",\"\",INDEX(Ranks!$1:$1048576,$A361,F$1))","v":""},{"$f":"IF($A361=\"N/A\",\"\",INDEX(Ranks!$1:$1048576,$A361,G$1))","v":""},{"$f":"IF($A361=\"N/A\",\"\",INDEX(Ranks!$1:$1048576,$A361,H$1))","v":""},{"$f":"IF($A361=\"N/A\",\"\",INDEX(Ranks!$1:$1048576,$A361,I$1))","v":""},{"$f":"IF($A361=\"N/A\",\"\",INDEX(Ranks!$1:$1048576,$A361,J$1))","v":""},{"$f":"IF($A361=\"N/A\",\"\",INDEX(Ranks!$1:$1048576,$A361,K$1))","v":""},null,{"$f":"IF($A361=\"N/A\",Ref!$B$36,INDEX(Ranks!$1:$1048576,$A361,M$1))","v":""},{"$f":"IF($A361=\"N/A\",Ref!$B$36,INDEX(Ranks!$1:$1048576,$A361,N$1))","v":""},{"$f":"IF($A361=\"N/A\",Ref!$B$36,INDEX(Ranks!$1:$1048576,$A361,O$1))","v":""},{"$f":"IF($A361=\"N/A\",Ref!$B$36,INDEX(Ranks!$1:$1048576,$A361,P$1))","v":""},{"$f":"IF($A361=\"N/A\",Ref!$B$36,INDEX(Ranks!$1:$1048576,$A361,Q$1))","v":""},{"$f":"IF($A361=\"N/A\",Ref!$B$36,INDEX(Ranks!$1:$1048576,$A361,R$1))","v":""},{"$f":"IF($A361=\"N/A\",Ref!$B$36,INDEX(Ranks!$1:$1048576,$A361,S$1))","v":""},{"$f":"IF($A361=\"N/A\",Ref!$B$36,INDEX(Ranks!$1:$1048576,$A361,T$1))","v":""},{"$f":"IF($A361=\"N/A\",Ref!$B$36,INDEX(Ranks!$1:$1048576,$A361,U$1))","v":""},{"$f":"IF($A361=\"N/A\",Ref!$B$36,INDEX(Ranks!$1:$1048576,$A361,V$1))","v":""},{"$f":"IF($A361=\"N/A\",Ref!$B$36,INDEX(Ranks!$1:$1048576,$A361,W$1))","v":""},{"$f":"IF($A361=\"N/A\",Ref!$B$36,INDEX(Ranks!$1:$1048576,$A361,X$1))","v":""},{"$f":"IF($A361=\"N/A\",Ref!$B$36,INDEX(Ranks!$1:$1048576,$A361,Y$1))","v":""},{"$f":"IF($A361=\"N/A\",Ref!$B$36,INDEX(Ranks!$1:$1048576,$A361,Z$1))","v":""},{"$f":"IF($A361=\"N/A\",Ref!$B$36,INDEX(Ranks!$1:$1048576,$A361,AA$1))","v":""},{"$f":"IF($A361=\"N/A\",Ref!$B$36,INDEX(Ranks!$1:$1048576,$A361,AB$1))","v":""},{"$f":"IF($A361=\"N/A\",Ref!$B$36,INDEX(Ranks!$1:$1048576,$A361,AC$1))","v":""},{"$f":"IF($A361=\"N/A\",Ref!$B$36,INDEX(Ranks!$1:$1048576,$A361,AD$1))","v":""},{"$f":"IF($A361=\"N/A\",Ref!$B$36,INDEX(Ranks!$1:$1048576,$A361,AE$1))","v":""},{"$f":"IF($A361=\"N/A\",Ref!$B$36,INDEX(Ranks!$1:$1048576,$A361,AF$1))","v":""},{"$f":"IF($A361=\"N/A\",Ref!$B$36,INDEX(Ranks!$1:$1048576,$A361,AG$1))","v":""},{"$f":"IF($A361=\"N/A\",Ref!$B$36,INDEX(Ranks!$1:$1048576,$A361,AH$1))","v":""},{"$f":"IF($A361=\"N/A\",Ref!$B$36,INDEX(Ranks!$1:$1048576,$A361,AI$1))","v":""},{"$f":"IF($A361=\"N/A\",Ref!$B$36,INDEX(Ranks!$1:$1048576,$A361,AJ$1))","v":""},{"$f":"IF($A361=\"N/A\",Ref!$B$36,INDEX(Ranks!$1:$1048576,$A361,AK$1))","v":""},{"$f":"IF($A361=\"N/A\",Ref!$B$36,INDEX(Ranks!$1:$1048576,$A361,AL$1))","v":""},{"$f":"IF($A361=\"N/A\",Ref!$B$36,INDEX(Ranks!$1:$1048576,$A361,AM$1))","v":""},{"$f":"IF($A361=\"N/A\",Ref!$B$36,INDEX(Ranks!$1:$1048576,$A361,AN$1))","v":""},{"$f":"IF($A361=\"N/A\",Ref!$B$36,INDEX(Ranks!$1:$1048576,$A361,AO$1))","v":""},{"$f":"IF($A361=\"N/A\",Ref!$B$36,INDEX(Ranks!$1:$1048576,$A361,AP$1))","v":""},{"$f":"IF($A361=\"N/A\",Ref!$B$36,INDEX(Ranks!$1:$1048576,$A361,AQ$1))","v":""},{"$f":"IF($A361=\"N/A\",Ref!$B$36,INDEX(Ranks!$1:$1048576,$A361,AR$1))","v":""},{"$f":"IF($A361=\"N/A\",Ref!$B$36,INDEX(Ranks!$1:$1048576,$A361,AS$1))","v":""},{"$f":"IF($A361=\"N/A\",Ref!$B$36,INDEX(Ranks!$1:$1048576,$A361,AT$1))","v":""},{"$f":"IF($A361=\"N/A\",Ref!$B$36,INDEX(Ranks!$1:$1048576,$A361,AU$1))","v":""},{"$f":"IF($A361=\"N/A\",Ref!$B$36,INDEX(Ranks!$1:$1048576,$A361,AV$1))","v":""},{"$f":"IF($A361=\"N/A\",Ref!$B$36,INDEX(Ranks!$1:$1048576,$A361,AW$1))","v":""},{"$f":"IF($A361=\"N/A\",Ref!$B$36,INDEX(Ranks!$1:$1048576,$A361,AX$1))","v":""},{"$f":"IF($A361=\"N/A\",Ref!$B$36,INDEX(Ranks!$1:$1048576,$A361,AY$1))","v":""},{"$f":"IF($A361=\"N/A\",Ref!$B$36,INDEX(Ranks!$1:$1048576,$A361,AZ$1))","v":""},{"$f":"IF($A361=\"N/A\",Ref!$B$36,INDEX(Ranks!$1:$1048576,$A361,BA$1))","v":""},{"$f":"IF($A361=\"N/A\",Ref!$B$36,INDEX(Ranks!$1:$1048576,$A361,BB$1))","v":""},{"$f":"IF($A361=\"N/A\",Ref!$B$36,INDEX(Ranks!$1:$1048576,$A361,BC$1))","v":""},{"$f":"IF($A361=\"N/A\",Ref!$B$36,INDEX(Ranks!$1:$1048576,$A361,BD$1))","v":""},{"$f":"IF($A361=\"N/A\",Ref!$B$36,INDEX(Ranks!$1:$1048576,$A361,BE$1))","v":""},{"$f":"IF($A361=\"N/A\",Ref!$B$36,INDEX(Ranks!$1:$1048576,$A361,BF$1))","v":""},{"$f":"IF($A361=\"N/A\",Ref!$B$36,INDEX(Ranks!$1:$1048576,$A361,BG$1))","v":""},{"$f":"IF($A361=\"N/A\",Ref!$B$36,INDEX(Ranks!$1:$1048576,$A361,BH$1))","v":""},{"$f":"IF($A361=\"N/A\",Ref!$B$36,INDEX(Ranks!$1:$1048576,$A361,BI$1))","v":""},{"$f":"IF($A361=\"N/A\",Ref!$B$36,INDEX(Ranks!$1:$1048576,$A361,BJ$1))","v":""},{"$f":"IF($A361=\"N/A\",Ref!$B$36,INDEX(Ranks!$1:$1048576,$A361,BK$1))","v":""},{"$f":"IF($A361=\"N/A\",Ref!$B$36,INDEX(Ranks!$1:$1048576,$A361,BL$1))","v":""},{"$f":"IF($A361=\"N/A\",Ref!$B$36,INDEX(Ranks!$1:$1048576,$A361,BM$1))","v":""},{"$f":"IF($A361=\"N/A\",Ref!$B$36,INDEX(Ranks!$1:$1048576,$A361,BN$1))","v":""},{"$f":"IF($A361=\"N/A\",Ref!$B$36,INDEX(Ranks!$1:$1048576,$A361,BO$1))","v":""},{"$f":"IF($A361=\"N/A\",Ref!$B$36,INDEX(Ranks!$1:$1048576,$A361,BP$1))","v":""},{"$f":"IF($A361=\"N/A\",Ref!$B$36,INDEX(Ranks!$1:$1048576,$A361,BQ$1))","v":""},{"$f":"IF($A361=\"N/A\",Ref!$B$36,INDEX(Ranks!$1:$1048576,$A361,BR$1))","v":""},{"$f":"IF($A361=\"N/A\",Ref!$B$36,INDEX(Ranks!$1:$1048576,$A361,BS$1))","v":""},{"$f":"IF($A361=\"N/A\",Ref!$B$36,INDEX(Ranks!$1:$1048576,$A361,BT$1))","v":""},{"$f":"IF($A361=\"N/A\",Ref!$B$36,INDEX(Ranks!$1:$1048576,$A361,BU$1))","v":""},{"$f":"IF($A361=\"N/A\",Ref!$B$36,INDEX(Ranks!$1:$1048576,$A361,BV$1))","v":""},{"$f":"IF($A361=\"N/A\",Ref!$B$36,INDEX(Ranks!$1:$1048576,$A361,BW$1))","v":""},{"$f":"IF($A361=\"N/A\",Ref!$B$36,INDEX(Ranks!$1:$1048576,$A361,BX$1))","v":""},{"$f":"IF($A361=\"N/A\",Ref!$B$36,INDEX(Ranks!$1:$1048576,$A361,BY$1))","v":""},{"$f":"IF($A361=\"N/A\",Ref!$B$36,INDEX(Ranks!$1:$1048576,$A361,BZ$1))","v":""},{"$f":"IF($A361=\"N/A\",Ref!$B$36,INDEX(Ranks!$1:$1048576,$A361,CA$1))","v":""},{"$f":"IF($A361=\"N/A\",Ref!$B$36,INDEX(Ranks!$1:$1048576,$A361,CB$1))","v":""},{"$f":"IF($A361=\"N/A\",Ref!$B$36,INDEX(Ranks!$1:$1048576,$A361,CC$1))","v":""},{"$f":"IF($A361=\"N/A\",Ref!$B$36,INDEX(Ranks!$1:$1048576,$A361,CD$1))","v":""},{"$f":"IF($A361=\"N/A\",Ref!$B$36,INDEX(Ranks!$1:$1048576,$A361,CE$1))","v":""},{"$f":"IF($A361=\"N/A\",Ref!$B$36,INDEX(Ranks!$1:$1048576,$A361,CF$1))","v":""},{"$f":"IF($A361=\"N/A\",Ref!$B$36,INDEX(Ranks!$1:$1048576,$A361,CG$1))","v":""},{"$f":"IF($A361=\"N/A\",Ref!$B$36,INDEX(Ranks!$1:$1048576,$A361,CH$1))","v":""},{"$f":"IF($A361=\"N/A\",Ref!$B$36,INDEX(Ranks!$1:$1048576,$A361,CI$1))","v":""},{"$f":"IF($A361=\"N/A\",Ref!$B$36,INDEX(Ranks!$1:$1048576,$A361,CJ$1))","v":""},{"$f":"IF($A361=\"N/A\",Ref!$B$36,INDEX(Ranks!$1:$1048576,$A361,CK$1))","v":""},{"$f":"IF($A361=\"N/A\",Ref!$B$36,INDEX(Ranks!$1:$1048576,$A361,CL$1))","v":""},{"$f":"IF($A361=\"N/A\",Ref!$B$36,INDEX(Ranks!$1:$1048576,$A361,CM$1))","v":""},{"$f":"IF($A361=\"N/A\",Ref!$B$36,INDEX(Ranks!$1:$1048576,$A361,CN$1))","v":""},{"$f":"IF($A361=\"N/A\",Ref!$B$36,INDEX(Ranks!$1:$1048576,$A361,CO$1))","v":""},{"$f":"IF($A361=\"N/A\",Ref!$B$36,INDEX(Ranks!$1:$1048576,$A361,CP$1))","v":""},{"$f":"IF($A361=\"N/A\",Ref!$B$36,INDEX(Ranks!$1:$1048576,$A361,CQ$1))","v":""},{"$f":"IF($A361=\"N/A\",Ref!$B$36,INDEX(Ranks!$1:$1048576,$A361,CR$1))","v":""},{"$f":"IF($A361=\"N/A\",Ref!$B$36,INDEX(Ranks!$1:$1048576,$A361,CS$1))","v":""},{"$f":"IF($A361=\"N/A\",Ref!$B$36,INDEX(Ranks!$1:$1048576,$A361,CT$1))","v":""},{"$f":"IF($A361=\"N/A\",Ref!$B$36,INDEX(Ranks!$1:$1048576,$A361,CU$1))","v":""},{"$f":"IF($A361=\"N/A\",Ref!$B$36,INDEX(Ranks!$1:$1048576,$A361,CV$1))","v":""},{"$f":"IF($A361=\"N/A\",Ref!$B$36,INDEX(Ranks!$1:$1048576,$A361,CW$1))","v":""},{"$f":"IF($A361=\"N/A\",Ref!$B$36,INDEX(Ranks!$1:$1048576,$A361,CX$1))","v":""},{"$f":"IF($A361=\"N/A\",Ref!$B$36,INDEX(Ranks!$1:$1048576,$A361,CY$1))","v":""},{"$f":"IF($A361=\"N/A\",Ref!$B$36,INDEX(Ranks!$1:$1048576,$A361,CZ$1))","v":""},{"$f":"IF($A361=\"N/A\",Ref!$B$36,INDEX(Ranks!$1:$1048576,$A361,DA$1))","v":""},{"$f":"IF($A361=\"N/A\",Ref!$B$36,INDEX(Ranks!$1:$1048576,$A361,DB$1))","v":""},{"$f":"IF($A361=\"N/A\",Ref!$B$36,INDEX(Ranks!$1:$1048576,$A361,DC$1))","v":""},{"$f":"IF($A361=\"N/A\",Ref!$B$36,INDEX(Ranks!$1:$1048576,$A361,DD$1))","v":""},{"$f":"IF($A361=\"N/A\",Ref!$B$36,INDEX(Ranks!$1:$1048576,$A361,DE$1))","v":""},{"$f":"IF($A361=\"N/A\",Ref!$B$36,INDEX(Ranks!$1:$1048576,$A361,DF$1))","v":""},{"$f":"IF($A361=\"N/A\",Ref!$B$36,INDEX(Ranks!$1:$1048576,$A361,DG$1))","v":""},{"$f":"IF($A361=\"N/A\",Ref!$B$36,INDEX(Ranks!$1:$1048576,$A361,DH$1))","v":""},{"$f":"IF($A361=\"N/A\",Ref!$B$36,INDEX(Ranks!$1:$1048576,$A361,DI$1))","v":""},{"$f":"IF($A361=\"N/A\",Ref!$B$36,INDEX(Ranks!$1:$1048576,$A361,DJ$1))","v":""},{"$f":"IF($A361=\"N/A\",Ref!$B$36,INDEX(Ranks!$1:$1048576,$A361,DK$1))","v":""},{"$f":"IF($A361=\"N/A\",Ref!$B$36,INDEX(Ranks!$1:$1048576,$A361,DL$1))","v":""},{"$f":"IF($A361=\"N/A\",Ref!$B$36,INDEX(Ranks!$1:$1048576,$A361,DM$1))","v":""},{"$f":"IF($A361=\"N/A\",Ref!$B$36,INDEX(Ranks!$1:$1048576,$A361,DN$1))","v":""},{"$f":"IF($A361=\"N/A\",Ref!$B$36,INDEX(Ranks!$1:$1048576,$A361,DO$1))","v":""},{"$f":"IF($A361=\"N/A\",Ref!$B$36,INDEX(Ranks!$1:$1048576,$A361,DP$1))","v":""},{"$f":"IF($A361=\"N/A\",Ref!$B$36,INDEX(Ranks!$1:$1048576,$A361,DQ$1))","v":""},{"$f":"IF($A361=\"N/A\",Ref!$B$36,INDEX(Ranks!$1:$1048576,$A361,DR$1))","v":""},{"$f":"IF($A361=\"N/A\",Ref!$B$36,INDEX(Ranks!$1:$1048576,$A361,DS$1))","v":""},{"$f":"IF($A361=\"N/A\",Ref!$B$36,INDEX(Ranks!$1:$1048576,$A361,DT$1))","v":""},{"$f":"IF($A361=\"N/A\",Ref!$B$36,INDEX(Ranks!$1:$1048576,$A361,DU$1))","v":""},{"$f":"IF($A361=\"N/A\",Ref!$B$36,INDEX(Ranks!$1:$1048576,$A361,DV$1))","v":""},{"$f":"IF($A361=\"N/A\",Ref!$B$36,INDEX(Ranks!$1:$1048576,$A361,DW$1))","v":""},{"$f":"IF($A361=\"N/A\",Ref!$B$36,INDEX(Ranks!$1:$1048576,$A361,DX$1))","v":""},{"$f":"IF($A361=\"N/A\",Ref!$B$36,INDEX(Ranks!$1:$1048576,$A361,DY$1))","v":""},{"$f":"IF($A361=\"N/A\",Ref!$B$36,INDEX(Ranks!$1:$1048576,$A361,DZ$1))","v":""},{"$f":"IF($A361=\"N/A\",Ref!$B$36,INDEX(Ranks!$1:$1048576,$A361,EA$1))","v":""},{"$f":"IF($A361=\"N/A\",Ref!$B$36,INDEX(Ranks!$1:$1048576,$A361,EB$1))","v":""}]
[{"$f":"IFERROR(MATCH('Portfolio Page'!L362,Ranks!L:L,0),\"N/A\")","v":"N/A"},null,{"$f":"IF($A362=\"N/A\",\"\",INDEX(Ranks!$1:$1048576,$A362,C$1))","v":""},{"$f":"IF($A362=\"N/A\",Ref!$B$36,INDEX(Ranks!$1:$1048576,$A362,D$1))","v":""},{"$f":"IF($A362=\"N/A\",Ref!$B$36,INDEX(Ranks!$1:$1048576,$A362,E$1))","v":""},{"$f":"IF($A362=\"N/A\",\"\",INDEX(Ranks!$1:$1048576,$A362,F$1))","v":""},{"$f":"IF($A362=\"N/A\",\"\",INDEX(Ranks!$1:$1048576,$A362,G$1))","v":""},{"$f":"IF($A362=\"N/A\",\"\",INDEX(Ranks!$1:$1048576,$A362,H$1))","v":""},{"$f":"IF($A362=\"N/A\",\"\",INDEX(Ranks!$1:$1048576,$A362,I$1))","v":""},{"$f":"IF($A362=\"N/A\",\"\",INDEX(Ranks!$1:$1048576,$A362,J$1))","v":""},{"$f":"IF($A362=\"N/A\",\"\",INDEX(Ranks!$1:$1048576,$A362,K$1))","v":""},null,{"$f":"IF($A362=\"N/A\",Ref!$B$36,INDEX(Ranks!$1:$1048576,$A362,M$1))","v":""},{"$f":"IF($A362=\"N/A\",Ref!$B$36,INDEX(Ranks!$1:$1048576,$A362,N$1))","v":""},{"$f":"IF($A362=\"N/A\",Ref!$B$36,INDEX(Ranks!$1:$1048576,$A362,O$1))","v":""},{"$f":"IF($A362=\"N/A\",Ref!$B$36,INDEX(Ranks!$1:$1048576,$A362,P$1))","v":""},{"$f":"IF($A362=\"N/A\",Ref!$B$36,INDEX(Ranks!$1:$1048576,$A362,Q$1))","v":""},{"$f":"IF($A362=\"N/A\",Ref!$B$36,INDEX(Ranks!$1:$1048576,$A362,R$1))","v":""},{"$f":"IF($A362=\"N/A\",Ref!$B$36,INDEX(Ranks!$1:$1048576,$A362,S$1))","v":""},{"$f":"IF($A362=\"N/A\",Ref!$B$36,INDEX(Ranks!$1:$1048576,$A362,T$1))","v":""},{"$f":"IF($A362=\"N/A\",Ref!$B$36,INDEX(Ranks!$1:$1048576,$A362,U$1))","v":""},{"$f":"IF($A362=\"N/A\",Ref!$B$36,INDEX(Ranks!$1:$1048576,$A362,V$1))","v":""},{"$f":"IF($A362=\"N/A\",Ref!$B$36,INDEX(Ranks!$1:$1048576,$A362,W$1))","v":""},{"$f":"IF($A362=\"N/A\",Ref!$B$36,INDEX(Ranks!$1:$1048576,$A362,X$1))","v":""},{"$f":"IF($A362=\"N/A\",Ref!$B$36,INDEX(Ranks!$1:$1048576,$A362,Y$1))","v":""},{"$f":"IF($A362=\"N/A\",Ref!$B$36,INDEX(Ranks!$1:$1048576,$A362,Z$1))","v":""},{"$f":"IF($A362=\"N/A\",Ref!$B$36,INDEX(Ranks!$1:$1048576,$A362,AA$1))","v":""},{"$f":"IF($A362=\"N/A\",Ref!$B$36,INDEX(Ranks!$1:$1048576,$A362,AB$1))","v":""},{"$f":"IF($A362=\"N/A\",Ref!$B$36,INDEX(Ranks!$1:$1048576,$A362,AC$1))","v":""},{"$f":"IF($A362=\"N/A\",Ref!$B$36,INDEX(Ranks!$1:$1048576,$A362,AD$1))","v":""},{"$f":"IF($A362=\"N/A\",Ref!$B$36,INDEX(Ranks!$1:$1048576,$A362,AE$1))","v":""},{"$f":"IF($A362=\"N/A\",Ref!$B$36,INDEX(Ranks!$1:$1048576,$A362,AF$1))","v":""},{"$f":"IF($A362=\"N/A\",Ref!$B$36,INDEX(Ranks!$1:$1048576,$A362,AG$1))","v":""},{"$f":"IF($A362=\"N/A\",Ref!$B$36,INDEX(Ranks!$1:$1048576,$A362,AH$1))","v":""},{"$f":"IF($A362=\"N/A\",Ref!$B$36,INDEX(Ranks!$1:$1048576,$A362,AI$1))","v":""},{"$f":"IF($A362=\"N/A\",Ref!$B$36,INDEX(Ranks!$1:$1048576,$A362,AJ$1))","v":""},{"$f":"IF($A362=\"N/A\",Ref!$B$36,INDEX(Ranks!$1:$1048576,$A362,AK$1))","v":""},{"$f":"IF($A362=\"N/A\",Ref!$B$36,INDEX(Ranks!$1:$1048576,$A362,AL$1))","v":""},{"$f":"IF($A362=\"N/A\",Ref!$B$36,INDEX(Ranks!$1:$1048576,$A362,AM$1))","v":""},{"$f":"IF($A362=\"N/A\",Ref!$B$36,INDEX(Ranks!$1:$1048576,$A362,AN$1))","v":""},{"$f":"IF($A362=\"N/A\",Ref!$B$36,INDEX(Ranks!$1:$1048576,$A362,AO$1))","v":""},{"$f":"IF($A362=\"N/A\",Ref!$B$36,INDEX(Ranks!$1:$1048576,$A362,AP$1))","v":""},{"$f":"IF($A362=\"N/A\",Ref!$B$36,INDEX(Ranks!$1:$1048576,$A362,AQ$1))","v":""},{"$f":"IF($A362=\"N/A\",Ref!$B$36,INDEX(Ranks!$1:$1048576,$A362,AR$1))","v":""},{"$f":"IF($A362=\"N/A\",Ref!$B$36,INDEX(Ranks!$1:$1048576,$A362,AS$1))","v":""},{"$f":"IF($A362=\"N/A\",Ref!$B$36,INDEX(Ranks!$1:$1048576,$A362,AT$1))","v":""},{"$f":"IF($A362=\"N/A\",Ref!$B$36,INDEX(Ranks!$1:$1048576,$A362,AU$1))","v":""},{"$f":"IF($A362=\"N/A\",Ref!$B$36,INDEX(Ranks!$1:$1048576,$A362,AV$1))","v":""},{"$f":"IF($A362=\"N/A\",Ref!$B$36,INDEX(Ranks!$1:$1048576,$A362,AW$1))","v":""},{"$f":"IF($A362=\"N/A\",Ref!$B$36,INDEX(Ranks!$1:$1048576,$A362,AX$1))","v":""},{"$f":"IF($A362=\"N/A\",Ref!$B$36,INDEX(Ranks!$1:$1048576,$A362,AY$1))","v":""},{"$f":"IF($A362=\"N/A\",Ref!$B$36,INDEX(Ranks!$1:$1048576,$A362,AZ$1))","v":""},{"$f":"IF($A362=\"N/A\",Ref!$B$36,INDEX(Ranks!$1:$1048576,$A362,BA$1))","v":""},{"$f":"IF($A362=\"N/A\",Ref!$B$36,INDEX(Ranks!$1:$1048576,$A362,BB$1))","v":""},{"$f":"IF($A362=\"N/A\",Ref!$B$36,INDEX(Ranks!$1:$1048576,$A362,BC$1))","v":""},{"$f":"IF($A362=\"N/A\",Ref!$B$36,INDEX(Ranks!$1:$1048576,$A362,BD$1))","v":""},{"$f":"IF($A362=\"N/A\",Ref!$B$36,INDEX(Ranks!$1:$1048576,$A362,BE$1))","v":""},{"$f":"IF($A362=\"N/A\",Ref!$B$36,INDEX(Ranks!$1:$1048576,$A362,BF$1))","v":""},{"$f":"IF($A362=\"N/A\",Ref!$B$36,INDEX(Ranks!$1:$1048576,$A362,BG$1))","v":""},{"$f":"IF($A362=\"N/A\",Ref!$B$36,INDEX(Ranks!$1:$1048576,$A362,BH$1))","v":""},{"$f":"IF($A362=\"N/A\",Ref!$B$36,INDEX(Ranks!$1:$1048576,$A362,BI$1))","v":""},{"$f":"IF($A362=\"N/A\",Ref!$B$36,INDEX(Ranks!$1:$1048576,$A362,BJ$1))","v":""},{"$f":"IF($A362=\"N/A\",Ref!$B$36,INDEX(Ranks!$1:$1048576,$A362,BK$1))","v":""},{"$f":"IF($A362=\"N/A\",Ref!$B$36,INDEX(Ranks!$1:$1048576,$A362,BL$1))","v":""},{"$f":"IF($A362=\"N/A\",Ref!$B$36,INDEX(Ranks!$1:$1048576,$A362,BM$1))","v":""},{"$f":"IF($A362=\"N/A\",Ref!$B$36,INDEX(Ranks!$1:$1048576,$A362,BN$1))","v":""},{"$f":"IF($A362=\"N/A\",Ref!$B$36,INDEX(Ranks!$1:$1048576,$A362,BO$1))","v":""},{"$f":"IF($A362=\"N/A\",Ref!$B$36,INDEX(Ranks!$1:$1048576,$A362,BP$1))","v":""},{"$f":"IF($A362=\"N/A\",Ref!$B$36,INDEX(Ranks!$1:$1048576,$A362,BQ$1))","v":""},{"$f":"IF($A362=\"N/A\",Ref!$B$36,INDEX(Ranks!$1:$1048576,$A362,BR$1))","v":""},{"$f":"IF($A362=\"N/A\",Ref!$B$36,INDEX(Ranks!$1:$1048576,$A362,BS$1))","v":""},{"$f":"IF($A362=\"N/A\",Ref!$B$36,INDEX(Ranks!$1:$1048576,$A362,BT$1))","v":""},{"$f":"IF($A362=\"N/A\",Ref!$B$36,INDEX(Ranks!$1:$1048576,$A362,BU$1))","v":""},{"$f":"IF($A362=\"N/A\",Ref!$B$36,INDEX(Ranks!$1:$1048576,$A362,BV$1))","v":""},{"$f":"IF($A362=\"N/A\",Ref!$B$36,INDEX(Ranks!$1:$1048576,$A362,BW$1))","v":""},{"$f":"IF($A362=\"N/A\",Ref!$B$36,INDEX(Ranks!$1:$1048576,$A362,BX$1))","v":""},{"$f":"IF($A362=\"N/A\",Ref!$B$36,INDEX(Ranks!$1:$1048576,$A362,BY$1))","v":""},{"$f":"IF($A362=\"N/A\",Ref!$B$36,INDEX(Ranks!$1:$1048576,$A362,BZ$1))","v":""},{"$f":"IF($A362=\"N/A\",Ref!$B$36,INDEX(Ranks!$1:$1048576,$A362,CA$1))","v":""},{"$f":"IF($A362=\"N/A\",Ref!$B$36,INDEX(Ranks!$1:$1048576,$A362,CB$1))","v":""},{"$f":"IF($A362=\"N/A\",Ref!$B$36,INDEX(Ranks!$1:$1048576,$A362,CC$1))","v":""},{"$f":"IF($A362=\"N/A\",Ref!$B$36,INDEX(Ranks!$1:$1048576,$A362,CD$1))","v":""},{"$f":"IF($A362=\"N/A\",Ref!$B$36,INDEX(Ranks!$1:$1048576,$A362,CE$1))","v":""},{"$f":"IF($A362=\"N/A\",Ref!$B$36,INDEX(Ranks!$1:$1048576,$A362,CF$1))","v":""},{"$f":"IF($A362=\"N/A\",Ref!$B$36,INDEX(Ranks!$1:$1048576,$A362,CG$1))","v":""},{"$f":"IF($A362=\"N/A\",Ref!$B$36,INDEX(Ranks!$1:$1048576,$A362,CH$1))","v":""},{"$f":"IF($A362=\"N/A\",Ref!$B$36,INDEX(Ranks!$1:$1048576,$A362,CI$1))","v":""},{"$f":"IF($A362=\"N/A\",Ref!$B$36,INDEX(Ranks!$1:$1048576,$A362,CJ$1))","v":""},{"$f":"IF($A362=\"N/A\",Ref!$B$36,INDEX(Ranks!$1:$1048576,$A362,CK$1))","v":""},{"$f":"IF($A362=\"N/A\",Ref!$B$36,INDEX(Ranks!$1:$1048576,$A362,CL$1))","v":""},{"$f":"IF($A362=\"N/A\",Ref!$B$36,INDEX(Ranks!$1:$1048576,$A362,CM$1))","v":""},{"$f":"IF($A362=\"N/A\",Ref!$B$36,INDEX(Ranks!$1:$1048576,$A362,CN$1))","v":""},{"$f":"IF($A362=\"N/A\",Ref!$B$36,INDEX(Ranks!$1:$1048576,$A362,CO$1))","v":""},{"$f":"IF($A362=\"N/A\",Ref!$B$36,INDEX(Ranks!$1:$1048576,$A362,CP$1))","v":""},{"$f":"IF($A362=\"N/A\",Ref!$B$36,INDEX(Ranks!$1:$1048576,$A362,CQ$1))","v":""},{"$f":"IF($A362=\"N/A\",Ref!$B$36,INDEX(Ranks!$1:$1048576,$A362,CR$1))","v":""},{"$f":"IF($A362=\"N/A\",Ref!$B$36,INDEX(Ranks!$1:$1048576,$A362,CS$1))","v":""},{"$f":"IF($A362=\"N/A\",Ref!$B$36,INDEX(Ranks!$1:$1048576,$A362,CT$1))","v":""},{"$f":"IF($A362=\"N/A\",Ref!$B$36,INDEX(Ranks!$1:$1048576,$A362,CU$1))","v":""},{"$f":"IF($A362=\"N/A\",Ref!$B$36,INDEX(Ranks!$1:$1048576,$A362,CV$1))","v":""},{"$f":"IF($A362=\"N/A\",Ref!$B$36,INDEX(Ranks!$1:$1048576,$A362,CW$1))","v":""},{"$f":"IF($A362=\"N/A\",Ref!$B$36,INDEX(Ranks!$1:$1048576,$A362,CX$1))","v":""},{"$f":"IF($A362=\"N/A\",Ref!$B$36,INDEX(Ranks!$1:$1048576,$A362,CY$1))","v":""},{"$f":"IF($A362=\"N/A\",Ref!$B$36,INDEX(Ranks!$1:$1048576,$A362,CZ$1))","v":""},{"$f":"IF($A362=\"N/A\",Ref!$B$36,INDEX(Ranks!$1:$1048576,$A362,DA$1))","v":""},{"$f":"IF($A362=\"N/A\",Ref!$B$36,INDEX(Ranks!$1:$1048576,$A362,DB$1))","v":""},{"$f":"IF($A362=\"N/A\",Ref!$B$36,INDEX(Ranks!$1:$1048576,$A362,DC$1))","v":""},{"$f":"IF($A362=\"N/A\",Ref!$B$36,INDEX(Ranks!$1:$1048576,$A362,DD$1))","v":""},{"$f":"IF($A362=\"N/A\",Ref!$B$36,INDEX(Ranks!$1:$1048576,$A362,DE$1))","v":""},{"$f":"IF($A362=\"N/A\",Ref!$B$36,INDEX(Ranks!$1:$1048576,$A362,DF$1))","v":""},{"$f":"IF($A362=\"N/A\",Ref!$B$36,INDEX(Ranks!$1:$1048576,$A362,DG$1))","v":""},{"$f":"IF($A362=\"N/A\",Ref!$B$36,INDEX(Ranks!$1:$1048576,$A362,DH$1))","v":""},{"$f":"IF($A362=\"N/A\",Ref!$B$36,INDEX(Ranks!$1:$1048576,$A362,DI$1))","v":""},{"$f":"IF($A362=\"N/A\",Ref!$B$36,INDEX(Ranks!$1:$1048576,$A362,DJ$1))","v":""},{"$f":"IF($A362=\"N/A\",Ref!$B$36,INDEX(Ranks!$1:$1048576,$A362,DK$1))","v":""},{"$f":"IF($A362=\"N/A\",Ref!$B$36,INDEX(Ranks!$1:$1048576,$A362,DL$1))","v":""},{"$f":"IF($A362=\"N/A\",Ref!$B$36,INDEX(Ranks!$1:$1048576,$A362,DM$1))","v":""},{"$f":"IF($A362=\"N/A\",Ref!$B$36,INDEX(Ranks!$1:$1048576,$A362,DN$1))","v":""},{"$f":"IF($A362=\"N/A\",Ref!$B$36,INDEX(Ranks!$1:$1048576,$A362,DO$1))","v":""},{"$f":"IF($A362=\"N/A\",Ref!$B$36,INDEX(Ranks!$1:$1048576,$A362,DP$1))","v":""},{"$f":"IF($A362=\"N/A\",Ref!$B$36,INDEX(Ranks!$1:$1048576,$A362,DQ$1))","v":""},{"$f":"IF($A362=\"N/A\",Ref!$B$36,INDEX(Ranks!$1:$1048576,$A362,DR$1))","v":""},{"$f":"IF($A362=\"N/A\",Ref!$B$36,INDEX(Ranks!$1:$1048576,$A362,DS$1))","v":""},{"$f":"IF($A362=\"N/A\",Ref!$B$36,INDEX(Ranks!$1:$1048576,$A362,DT$1))","v":""},{"$f":"IF($A362=\"N/A\",Ref!$B$36,INDEX(Ranks!$1:$1048576,$A362,DU$1))","v":""},{"$f":"IF($A362=\"N/A\",Ref!$B$36,INDEX(Ranks!$1:$1048576,$A362,DV$1))","v":""},{"$f":"IF($A362=\"N/A\",Ref!$B$36,INDEX(Ranks!$1:$1048576,$A362,DW$1))","v":""},{"$f":"IF($A362=\"N/A\",Ref!$B$36,INDEX(Ranks!$1:$1048576,$A362,DX$1))","v":""},{"$f":"IF($A362=\"N/A\",Ref!$B$36,INDEX(Ranks!$1:$1048576,$A362,DY$1))","v":""},{"$f":"IF($A362=\"N/A\",Ref!$B$36,INDEX(Ranks!$1:$1048576,$A362,DZ$1))","v":""},{"$f":"IF($A362=\"N/A\",Ref!$B$36,INDEX(Ranks!$1:$1048576,$A362,EA$1))","v":""},{"$f":"IF($A362=\"N/A\",Ref!$B$36,INDEX(Ranks!$1:$1048576,$A362,EB$1))","v":""}]
[{"$f":"IFERROR(MATCH('Portfolio Page'!L363,Ranks!L:L,0),\"N/A\")","v":"N/A"},null,{"$f":"IF($A363=\"N/A\",\"\",INDEX(Ranks!$1:$1048576,$A363,C$1))","v":""},{"$f":"IF($A363=\"N/A\",Ref!$B$36,INDEX(Ranks!$1:$1048576,$A363,D$1))","v":""},{"$f":"IF($A363=\"N/A\",Ref!$B$36,INDEX(Ranks!$1:$1048576,$A363,E$1))","v":""},{"$f":"IF($A363=\"N/A\",\"\",INDEX(Ranks!$1:$1048576,$A363,F$1))","v":""},{"$f":"IF($A363=\"N/A\",\"\",INDEX(Ranks!$1:$1048576,$A363,G$1))","v":""},{"$f":"IF($A363=\"N/A\",\"\",INDEX(Ranks!$1:$1048576,$A363,H$1))","v":""},{"$f":"IF($A363=\"N/A\",\"\",INDEX(Ranks!$1:$1048576,$A363,I$1))","v":""},{"$f":"IF($A363=\"N/A\",\"\",INDEX(Ranks!$1:$1048576,$A363,J$1))","v":""},{"$f":"IF($A363=\"N/A\",\"\",INDEX(Ranks!$1:$1048576,$A363,K$1))","v":""},null,{"$f":"IF($A363=\"N/A\",Ref!$B$36,INDEX(Ranks!$1:$1048576,$A363,M$1))","v":""},{"$f":"IF($A363=\"N/A\",Ref!$B$36,INDEX(Ranks!$1:$1048576,$A363,N$1))","v":""},{"$f":"IF($A363=\"N/A\",Ref!$B$36,INDEX(Ranks!$1:$1048576,$A363,O$1))","v":""},{"$f":"IF($A363=\"N/A\",Ref!$B$36,INDEX(Ranks!$1:$1048576,$A363,P$1))","v":""},{"$f":"IF($A363=\"N/A\",Ref!$B$36,INDEX(Ranks!$1:$1048576,$A363,Q$1))","v":""},{"$f":"IF($A363=\"N/A\",Ref!$B$36,INDEX(Ranks!$1:$1048576,$A363,R$1))","v":""},{"$f":"IF($A363=\"N/A\",Ref!$B$36,INDEX(Ranks!$1:$1048576,$A363,S$1))","v":""},{"$f":"IF($A363=\"N/A\",Ref!$B$36,INDEX(Ranks!$1:$1048576,$A363,T$1))","v":""},{"$f":"IF($A363=\"N/A\",Ref!$B$36,INDEX(Ranks!$1:$1048576,$A363,U$1))","v":""},{"$f":"IF($A363=\"N/A\",Ref!$B$36,INDEX(Ranks!$1:$1048576,$A363,V$1))","v":""},{"$f":"IF($A363=\"N/A\",Ref!$B$36,INDEX(Ranks!$1:$1048576,$A363,W$1))","v":""},{"$f":"IF($A363=\"N/A\",Ref!$B$36,INDEX(Ranks!$1:$1048576,$A363,X$1))","v":""},{"$f":"IF($A363=\"N/A\",Ref!$B$36,INDEX(Ranks!$1:$1048576,$A363,Y$1))","v":""},{"$f":"IF($A363=\"N/A\",Ref!$B$36,INDEX(Ranks!$1:$1048576,$A363,Z$1))","v":""},{"$f":"IF($A363=\"N/A\",Ref!$B$36,INDEX(Ranks!$1:$1048576,$A363,AA$1))","v":""},{"$f":"IF($A363=\"N/A\",Ref!$B$36,INDEX(Ranks!$1:$1048576,$A363,AB$1))","v":""},{"$f":"IF($A363=\"N/A\",Ref!$B$36,INDEX(Ranks!$1:$1048576,$A363,AC$1))","v":""},{"$f":"IF($A363=\"N/A\",Ref!$B$36,INDEX(Ranks!$1:$1048576,$A363,AD$1))","v":""},{"$f":"IF($A363=\"N/A\",Ref!$B$36,INDEX(Ranks!$1:$1048576,$A363,AE$1))","v":""},{"$f":"IF($A363=\"N/A\",Ref!$B$36,INDEX(Ranks!$1:$1048576,$A363,AF$1))","v":""},{"$f":"IF($A363=\"N/A\",Ref!$B$36,INDEX(Ranks!$1:$1048576,$A363,AG$1))","v":""},{"$f":"IF($A363=\"N/A\",Ref!$B$36,INDEX(Ranks!$1:$1048576,$A363,AH$1))","v":""},{"$f":"IF($A363=\"N/A\",Ref!$B$36,INDEX(Ranks!$1:$1048576,$A363,AI$1))","v":""},{"$f":"IF($A363=\"N/A\",Ref!$B$36,INDEX(Ranks!$1:$1048576,$A363,AJ$1))","v":""},{"$f":"IF($A363=\"N/A\",Ref!$B$36,INDEX(Ranks!$1:$1048576,$A363,AK$1))","v":""},{"$f":"IF($A363=\"N/A\",Ref!$B$36,INDEX(Ranks!$1:$1048576,$A363,AL$1))","v":""},{"$f":"IF($A363=\"N/A\",Ref!$B$36,INDEX(Ranks!$1:$1048576,$A363,AM$1))","v":""},{"$f":"IF($A363=\"N/A\",Ref!$B$36,INDEX(Ranks!$1:$1048576,$A363,AN$1))","v":""},{"$f":"IF($A363=\"N/A\",Ref!$B$36,INDEX(Ranks!$1:$1048576,$A363,AO$1))","v":""},{"$f":"IF($A363=\"N/A\",Ref!$B$36,INDEX(Ranks!$1:$1048576,$A363,AP$1))","v":""},{"$f":"IF($A363=\"N/A\",Ref!$B$36,INDEX(Ranks!$1:$1048576,$A363,AQ$1))","v":""},{"$f":"IF($A363=\"N/A\",Ref!$B$36,INDEX(Ranks!$1:$1048576,$A363,AR$1))","v":""},{"$f":"IF($A363=\"N/A\",Ref!$B$36,INDEX(Ranks!$1:$1048576,$A363,AS$1))","v":""},{"$f":"IF($A363=\"N/A\",Ref!$B$36,INDEX(Ranks!$1:$1048576,$A363,AT$1))","v":""},{"$f":"IF($A363=\"N/A\",Ref!$B$36,INDEX(Ranks!$1:$1048576,$A363,AU$1))","v":""},{"$f":"IF($A363=\"N/A\",Ref!$B$36,INDEX(Ranks!$1:$1048576,$A363,AV$1))","v":""},{"$f":"IF($A363=\"N/A\",Ref!$B$36,INDEX(Ranks!$1:$1048576,$A363,AW$1))","v":""},{"$f":"IF($A363=\"N/A\",Ref!$B$36,INDEX(Ranks!$1:$1048576,$A363,AX$1))","v":""},{"$f":"IF($A363=\"N/A\",Ref!$B$36,INDEX(Ranks!$1:$1048576,$A363,AY$1))","v":""},{"$f":"IF($A363=\"N/A\",Ref!$B$36,INDEX(Ranks!$1:$1048576,$A363,AZ$1))","v":""},{"$f":"IF($A363=\"N/A\",Ref!$B$36,INDEX(Ranks!$1:$1048576,$A363,BA$1))","v":""},{"$f":"IF($A363=\"N/A\",Ref!$B$36,INDEX(Ranks!$1:$1048576,$A363,BB$1))","v":""},{"$f":"IF($A363=\"N/A\",Ref!$B$36,INDEX(Ranks!$1:$1048576,$A363,BC$1))","v":""},{"$f":"IF($A363=\"N/A\",Ref!$B$36,INDEX(Ranks!$1:$1048576,$A363,BD$1))","v":""},{"$f":"IF($A363=\"N/A\",Ref!$B$36,INDEX(Ranks!$1:$1048576,$A363,BE$1))","v":""},{"$f":"IF($A363=\"N/A\",Ref!$B$36,INDEX(Ranks!$1:$1048576,$A363,BF$1))","v":""},{"$f":"IF($A363=\"N/A\",Ref!$B$36,INDEX(Ranks!$1:$1048576,$A363,BG$1))","v":""},{"$f":"IF($A363=\"N/A\",Ref!$B$36,INDEX(Ranks!$1:$1048576,$A363,BH$1))","v":""},{"$f":"IF($A363=\"N/A\",Ref!$B$36,INDEX(Ranks!$1:$1048576,$A363,BI$1))","v":""},{"$f":"IF($A363=\"N/A\",Ref!$B$36,INDEX(Ranks!$1:$1048576,$A363,BJ$1))","v":""},{"$f":"IF($A363=\"N/A\",Ref!$B$36,INDEX(Ranks!$1:$1048576,$A363,BK$1))","v":""},{"$f":"IF($A363=\"N/A\",Ref!$B$36,INDEX(Ranks!$1:$1048576,$A363,BL$1))","v":""},{"$f":"IF($A363=\"N/A\",Ref!$B$36,INDEX(Ranks!$1:$1048576,$A363,BM$1))","v":""},{"$f":"IF($A363=\"N/A\",Ref!$B$36,INDEX(Ranks!$1:$1048576,$A363,BN$1))","v":""},{"$f":"IF($A363=\"N/A\",Ref!$B$36,INDEX(Ranks!$1:$1048576,$A363,BO$1))","v":""},{"$f":"IF($A363=\"N/A\",Ref!$B$36,INDEX(Ranks!$1:$1048576,$A363,BP$1))","v":""},{"$f":"IF($A363=\"N/A\",Ref!$B$36,INDEX(Ranks!$1:$1048576,$A363,BQ$1))","v":""},{"$f":"IF($A363=\"N/A\",Ref!$B$36,INDEX(Ranks!$1:$1048576,$A363,BR$1))","v":""},{"$f":"IF($A363=\"N/A\",Ref!$B$36,INDEX(Ranks!$1:$1048576,$A363,BS$1))","v":""},{"$f":"IF($A363=\"N/A\",Ref!$B$36,INDEX(Ranks!$1:$1048576,$A363,BT$1))","v":""},{"$f":"IF($A363=\"N/A\",Ref!$B$36,INDEX(Ranks!$1:$1048576,$A363,BU$1))","v":""},{"$f":"IF($A363=\"N/A\",Ref!$B$36,INDEX(Ranks!$1:$1048576,$A363,BV$1))","v":""},{"$f":"IF($A363=\"N/A\",Ref!$B$36,INDEX(Ranks!$1:$1048576,$A363,BW$1))","v":""},{"$f":"IF($A363=\"N/A\",Ref!$B$36,INDEX(Ranks!$1:$1048576,$A363,BX$1))","v":""},{"$f":"IF($A363=\"N/A\",Ref!$B$36,INDEX(Ranks!$1:$1048576,$A363,BY$1))","v":""},{"$f":"IF($A363=\"N/A\",Ref!$B$36,INDEX(Ranks!$1:$1048576,$A363,BZ$1))","v":""},{"$f":"IF($A363=\"N/A\",Ref!$B$36,INDEX(Ranks!$1:$1048576,$A363,CA$1))","v":""},{"$f":"IF($A363=\"N/A\",Ref!$B$36,INDEX(Ranks!$1:$1048576,$A363,CB$1))","v":""},{"$f":"IF($A363=\"N/A\",Ref!$B$36,INDEX(Ranks!$1:$1048576,$A363,CC$1))","v":""},{"$f":"IF($A363=\"N/A\",Ref!$B$36,INDEX(Ranks!$1:$1048576,$A363,CD$1))","v":""},{"$f":"IF($A363=\"N/A\",Ref!$B$36,INDEX(Ranks!$1:$1048576,$A363,CE$1))","v":""},{"$f":"IF($A363=\"N/A\",Ref!$B$36,INDEX(Ranks!$1:$1048576,$A363,CF$1))","v":""},{"$f":"IF($A363=\"N/A\",Ref!$B$36,INDEX(Ranks!$1:$1048576,$A363,CG$1))","v":""},{"$f":"IF($A363=\"N/A\",Ref!$B$36,INDEX(Ranks!$1:$1048576,$A363,CH$1))","v":""},{"$f":"IF($A363=\"N/A\",Ref!$B$36,INDEX(Ranks!$1:$1048576,$A363,CI$1))","v":""},{"$f":"IF($A363=\"N/A\",Ref!$B$36,INDEX(Ranks!$1:$1048576,$A363,CJ$1))","v":""},{"$f":"IF($A363=\"N/A\",Ref!$B$36,INDEX(Ranks!$1:$1048576,$A363,CK$1))","v":""},{"$f":"IF($A363=\"N/A\",Ref!$B$36,INDEX(Ranks!$1:$1048576,$A363,CL$1))","v":""},{"$f":"IF($A363=\"N/A\",Ref!$B$36,INDEX(Ranks!$1:$1048576,$A363,CM$1))","v":""},{"$f":"IF($A363=\"N/A\",Ref!$B$36,INDEX(Ranks!$1:$1048576,$A363,CN$1))","v":""},{"$f":"IF($A363=\"N/A\",Ref!$B$36,INDEX(Ranks!$1:$1048576,$A363,CO$1))","v":""},{"$f":"IF($A363=\"N/A\",Ref!$B$36,INDEX(Ranks!$1:$1048576,$A363,CP$1))","v":""},{"$f":"IF($A363=\"N/A\",Ref!$B$36,INDEX(Ranks!$1:$1048576,$A363,CQ$1))","v":""},{"$f":"IF($A363=\"N/A\",Ref!$B$36,INDEX(Ranks!$1:$1048576,$A363,CR$1))","v":""},{"$f":"IF($A363=\"N/A\",Ref!$B$36,INDEX(Ranks!$1:$1048576,$A363,CS$1))","v":""},{"$f":"IF($A363=\"N/A\",Ref!$B$36,INDEX(Ranks!$1:$1048576,$A363,CT$1))","v":""},{"$f":"IF($A363=\"N/A\",Ref!$B$36,INDEX(Ranks!$1:$1048576,$A363,CU$1))","v":""},{"$f":"IF($A363=\"N/A\",Ref!$B$36,INDEX(Ranks!$1:$1048576,$A363,CV$1))","v":""},{"$f":"IF($A363=\"N/A\",Ref!$B$36,INDEX(Ranks!$1:$1048576,$A363,CW$1))","v":""},{"$f":"IF($A363=\"N/A\",Ref!$B$36,INDEX(Ranks!$1:$1048576,$A363,CX$1))","v":""},{"$f":"IF($A363=\"N/A\",Ref!$B$36,INDEX(Ranks!$1:$1048576,$A363,CY$1))","v":""},{"$f":"IF($A363=\"N/A\",Ref!$B$36,INDEX(Ranks!$1:$1048576,$A363,CZ$1))","v":""},{"$f":"IF($A363=\"N/A\",Ref!$B$36,INDEX(Ranks!$1:$1048576,$A363,DA$1))","v":""},{"$f":"IF($A363=\"N/A\",Ref!$B$36,INDEX(Ranks!$1:$1048576,$A363,DB$1))","v":""},{"$f":"IF($A363=\"N/A\",Ref!$B$36,INDEX(Ranks!$1:$1048576,$A363,DC$1))","v":""},{"$f":"IF($A363=\"N/A\",Ref!$B$36,INDEX(Ranks!$1:$1048576,$A363,DD$1))","v":""},{"$f":"IF($A363=\"N/A\",Ref!$B$36,INDEX(Ranks!$1:$1048576,$A363,DE$1))","v":""},{"$f":"IF($A363=\"N/A\",Ref!$B$36,INDEX(Ranks!$1:$1048576,$A363,DF$1))","v":""},{"$f":"IF($A363=\"N/A\",Ref!$B$36,INDEX(Ranks!$1:$1048576,$A363,DG$1))","v":""},{"$f":"IF($A363=\"N/A\",Ref!$B$36,INDEX(Ranks!$1:$1048576,$A363,DH$1))","v":""},{"$f":"IF($A363=\"N/A\",Ref!$B$36,INDEX(Ranks!$1:$1048576,$A363,DI$1))","v":""},{"$f":"IF($A363=\"N/A\",Ref!$B$36,INDEX(Ranks!$1:$1048576,$A363,DJ$1))","v":""},{"$f":"IF($A363=\"N/A\",Ref!$B$36,INDEX(Ranks!$1:$1048576,$A363,DK$1))","v":""},{"$f":"IF($A363=\"N/A\",Ref!$B$36,INDEX(Ranks!$1:$1048576,$A363,DL$1))","v":""},{"$f":"IF($A363=\"N/A\",Ref!$B$36,INDEX(Ranks!$1:$1048576,$A363,DM$1))","v":""},{"$f":"IF($A363=\"N/A\",Ref!$B$36,INDEX(Ranks!$1:$1048576,$A363,DN$1))","v":""},{"$f":"IF($A363=\"N/A\",Ref!$B$36,INDEX(Ranks!$1:$1048576,$A363,DO$1))","v":""},{"$f":"IF($A363=\"N/A\",Ref!$B$36,INDEX(Ranks!$1:$1048576,$A363,DP$1))","v":""},{"$f":"IF($A363=\"N/A\",Ref!$B$36,INDEX(Ranks!$1:$1048576,$A363,DQ$1))","v":""},{"$f":"IF($A363=\"N/A\",Ref!$B$36,INDEX(Ranks!$1:$1048576,$A363,DR$1))","v":""},{"$f":"IF($A363=\"N/A\",Ref!$B$36,INDEX(Ranks!$1:$1048576,$A363,DS$1))","v":""},{"$f":"IF($A363=\"N/A\",Ref!$B$36,INDEX(Ranks!$1:$1048576,$A363,DT$1))","v":""},{"$f":"IF($A363=\"N/A\",Ref!$B$36,INDEX(Ranks!$1:$1048576,$A363,DU$1))","v":""},{"$f":"IF($A363=\"N/A\",Ref!$B$36,INDEX(Ranks!$1:$1048576,$A363,DV$1))","v":""},{"$f":"IF($A363=\"N/A\",Ref!$B$36,INDEX(Ranks!$1:$1048576,$A363,DW$1))","v":""},{"$f":"IF($A363=\"N/A\",Ref!$B$36,INDEX(Ranks!$1:$1048576,$A363,DX$1))","v":""},{"$f":"IF($A363=\"N/A\",Ref!$B$36,INDEX(Ranks!$1:$1048576,$A363,DY$1))","v":""},{"$f":"IF($A363=\"N/A\",Ref!$B$36,INDEX(Ranks!$1:$1048576,$A363,DZ$1))","v":""},{"$f":"IF($A363=\"N/A\",Ref!$B$36,INDEX(Ranks!$1:$1048576,$A363,EA$1))","v":""},{"$f":"IF($A363=\"N/A\",Ref!$B$36,INDEX(Ranks!$1:$1048576,$A363,EB$1))","v":""}]
[{"$f":"IFERROR(MATCH('Portfolio Page'!L364,Ranks!L:L,0),\"N/A\")","v":"N/A"},null,{"$f":"IF($A364=\"N/A\",\"\",INDEX(Ranks!$1:$1048576,$A364,C$1))","v":""},{"$f":"IF($A364=\"N/A\",Ref!$B$36,INDEX(Ranks!$1:$1048576,$A364,D$1))","v":""},{"$f":"IF($A364=\"N/A\",Ref!$B$36,INDEX(Ranks!$1:$1048576,$A364,E$1))","v":""},{"$f":"IF($A364=\"N/A\",\"\",INDEX(Ranks!$1:$1048576,$A364,F$1))","v":""},{"$f":"IF($A364=\"N/A\",\"\",INDEX(Ranks!$1:$1048576,$A364,G$1))","v":""},{"$f":"IF($A364=\"N/A\",\"\",INDEX(Ranks!$1:$1048576,$A364,H$1))","v":""},{"$f":"IF($A364=\"N/A\",\"\",INDEX(Ranks!$1:$1048576,$A364,I$1))","v":""},{"$f":"IF($A364=\"N/A\",\"\",INDEX(Ranks!$1:$1048576,$A364,J$1))","v":""},{"$f":"IF($A364=\"N/A\",\"\",INDEX(Ranks!$1:$1048576,$A364,K$1))","v":""},null,{"$f":"IF($A364=\"N/A\",Ref!$B$36,INDEX(Ranks!$1:$1048576,$A364,M$1))","v":""},{"$f":"IF($A364=\"N/A\",Ref!$B$36,INDEX(Ranks!$1:$1048576,$A364,N$1))","v":""},{"$f":"IF($A364=\"N/A\",Ref!$B$36,INDEX(Ranks!$1:$1048576,$A364,O$1))","v":""},{"$f":"IF($A364=\"N/A\",Ref!$B$36,INDEX(Ranks!$1:$1048576,$A364,P$1))","v":""},{"$f":"IF($A364=\"N/A\",Ref!$B$36,INDEX(Ranks!$1:$1048576,$A364,Q$1))","v":""},{"$f":"IF($A364=\"N/A\",Ref!$B$36,INDEX(Ranks!$1:$1048576,$A364,R$1))","v":""},{"$f":"IF($A364=\"N/A\",Ref!$B$36,INDEX(Ranks!$1:$1048576,$A364,S$1))","v":""},{"$f":"IF($A364=\"N/A\",Ref!$B$36,INDEX(Ranks!$1:$1048576,$A364,T$1))","v":""},{"$f":"IF($A364=\"N/A\",Ref!$B$36,INDEX(Ranks!$1:$1048576,$A364,U$1))","v":""},{"$f":"IF($A364=\"N/A\",Ref!$B$36,INDEX(Ranks!$1:$1048576,$A364,V$1))","v":""},{"$f":"IF($A364=\"N/A\",Ref!$B$36,INDEX(Ranks!$1:$1048576,$A364,W$1))","v":""},{"$f":"IF($A364=\"N/A\",Ref!$B$36,INDEX(Ranks!$1:$1048576,$A364,X$1))","v":""},{"$f":"IF($A364=\"N/A\",Ref!$B$36,INDEX(Ranks!$1:$1048576,$A364,Y$1))","v":""},{"$f":"IF($A364=\"N/A\",Ref!$B$36,INDEX(Ranks!$1:$1048576,$A364,Z$1))","v":""},{"$f":"IF($A364=\"N/A\",Ref!$B$36,INDEX(Ranks!$1:$1048576,$A364,AA$1))","v":""},{"$f":"IF($A364=\"N/A\",Ref!$B$36,INDEX(Ranks!$1:$1048576,$A364,AB$1))","v":""},{"$f":"IF($A364=\"N/A\",Ref!$B$36,INDEX(Ranks!$1:$1048576,$A364,AC$1))","v":""},{"$f":"IF($A364=\"N/A\",Ref!$B$36,INDEX(Ranks!$1:$1048576,$A364,AD$1))","v":""},{"$f":"IF($A364=\"N/A\",Ref!$B$36,INDEX(Ranks!$1:$1048576,$A364,AE$1))","v":""},{"$f":"IF($A364=\"N/A\",Ref!$B$36,INDEX(Ranks!$1:$1048576,$A364,AF$1))","v":""},{"$f":"IF($A364=\"N/A\",Ref!$B$36,INDEX(Ranks!$1:$1048576,$A364,AG$1))","v":""},{"$f":"IF($A364=\"N/A\",Ref!$B$36,INDEX(Ranks!$1:$1048576,$A364,AH$1))","v":""},{"$f":"IF($A364=\"N/A\",Ref!$B$36,INDEX(Ranks!$1:$1048576,$A364,AI$1))","v":""},{"$f":"IF($A364=\"N/A\",Ref!$B$36,INDEX(Ranks!$1:$1048576,$A364,AJ$1))","v":""},{"$f":"IF($A364=\"N/A\",Ref!$B$36,INDEX(Ranks!$1:$1048576,$A364,AK$1))","v":""},{"$f":"IF($A364=\"N/A\",Ref!$B$36,INDEX(Ranks!$1:$1048576,$A364,AL$1))","v":""},{"$f":"IF($A364=\"N/A\",Ref!$B$36,INDEX(Ranks!$1:$1048576,$A364,AM$1))","v":""},{"$f":"IF($A364=\"N/A\",Ref!$B$36,INDEX(Ranks!$1:$1048576,$A364,AN$1))","v":""},{"$f":"IF($A364=\"N/A\",Ref!$B$36,INDEX(Ranks!$1:$1048576,$A364,AO$1))","v":""},{"$f":"IF($A364=\"N/A\",Ref!$B$36,INDEX(Ranks!$1:$1048576,$A364,AP$1))","v":""},{"$f":"IF($A364=\"N/A\",Ref!$B$36,INDEX(Ranks!$1:$1048576,$A364,AQ$1))","v":""},{"$f":"IF($A364=\"N/A\",Ref!$B$36,INDEX(Ranks!$1:$1048576,$A364,AR$1))","v":""},{"$f":"IF($A364=\"N/A\",Ref!$B$36,INDEX(Ranks!$1:$1048576,$A364,AS$1))","v":""},{"$f":"IF($A364=\"N/A\",Ref!$B$36,INDEX(Ranks!$1:$1048576,$A364,AT$1))","v":""},{"$f":"IF($A364=\"N/A\",Ref!$B$36,INDEX(Ranks!$1:$1048576,$A364,AU$1))","v":""},{"$f":"IF($A364=\"N/A\",Ref!$B$36,INDEX(Ranks!$1:$1048576,$A364,AV$1))","v":""},{"$f":"IF($A364=\"N/A\",Ref!$B$36,INDEX(Ranks!$1:$1048576,$A364,AW$1))","v":""},{"$f":"IF($A364=\"N/A\",Ref!$B$36,INDEX(Ranks!$1:$1048576,$A364,AX$1))","v":""},{"$f":"IF($A364=\"N/A\",Ref!$B$36,INDEX(Ranks!$1:$1048576,$A364,AY$1))","v":""},{"$f":"IF($A364=\"N/A\",Ref!$B$36,INDEX(Ranks!$1:$1048576,$A364,AZ$1))","v":""},{"$f":"IF($A364=\"N/A\",Ref!$B$36,INDEX(Ranks!$1:$1048576,$A364,BA$1))","v":""},{"$f":"IF($A364=\"N/A\",Ref!$B$36,INDEX(Ranks!$1:$1048576,$A364,BB$1))","v":""},{"$f":"IF($A364=\"N/A\",Ref!$B$36,INDEX(Ranks!$1:$1048576,$A364,BC$1))","v":""},{"$f":"IF($A364=\"N/A\",Ref!$B$36,INDEX(Ranks!$1:$1048576,$A364,BD$1))","v":""},{"$f":"IF($A364=\"N/A\",Ref!$B$36,INDEX(Ranks!$1:$1048576,$A364,BE$1))","v":""},{"$f":"IF($A364=\"N/A\",Ref!$B$36,INDEX(Ranks!$1:$1048576,$A364,BF$1))","v":""},{"$f":"IF($A364=\"N/A\",Ref!$B$36,INDEX(Ranks!$1:$1048576,$A364,BG$1))","v":""},{"$f":"IF($A364=\"N/A\",Ref!$B$36,INDEX(Ranks!$1:$1048576,$A364,BH$1))","v":""},{"$f":"IF($A364=\"N/A\",Ref!$B$36,INDEX(Ranks!$1:$1048576,$A364,BI$1))","v":""},{"$f":"IF($A364=\"N/A\",Ref!$B$36,INDEX(Ranks!$1:$1048576,$A364,BJ$1))","v":""},{"$f":"IF($A364=\"N/A\",Ref!$B$36,INDEX(Ranks!$1:$1048576,$A364,BK$1))","v":""},{"$f":"IF($A364=\"N/A\",Ref!$B$36,INDEX(Ranks!$1:$1048576,$A364,BL$1))","v":""},{"$f":"IF($A364=\"N/A\",Ref!$B$36,INDEX(Ranks!$1:$1048576,$A364,BM$1))","v":""},{"$f":"IF($A364=\"N/A\",Ref!$B$36,INDEX(Ranks!$1:$1048576,$A364,BN$1))","v":""},{"$f":"IF($A364=\"N/A\",Ref!$B$36,INDEX(Ranks!$1:$1048576,$A364,BO$1))","v":""},{"$f":"IF($A364=\"N/A\",Ref!$B$36,INDEX(Ranks!$1:$1048576,$A364,BP$1))","v":""},{"$f":"IF($A364=\"N/A\",Ref!$B$36,INDEX(Ranks!$1:$1048576,$A364,BQ$1))","v":""},{"$f":"IF($A364=\"N/A\",Ref!$B$36,INDEX(Ranks!$1:$1048576,$A364,BR$1))","v":""},{"$f":"IF($A364=\"N/A\",Ref!$B$36,INDEX(Ranks!$1:$1048576,$A364,BS$1))","v":""},{"$f":"IF($A364=\"N/A\",Ref!$B$36,INDEX(Ranks!$1:$1048576,$A364,BT$1))","v":""},{"$f":"IF($A364=\"N/A\",Ref!$B$36,INDEX(Ranks!$1:$1048576,$A364,BU$1))","v":""},{"$f":"IF($A364=\"N/A\",Ref!$B$36,INDEX(Ranks!$1:$1048576,$A364,BV$1))","v":""},{"$f":"IF($A364=\"N/A\",Ref!$B$36,INDEX(Ranks!$1:$1048576,$A364,BW$1))","v":""},{"$f":"IF($A364=\"N/A\",Ref!$B$36,INDEX(Ranks!$1:$1048576,$A364,BX$1))","v":""},{"$f":"IF($A364=\"N/A\",Ref!$B$36,INDEX(Ranks!$1:$1048576,$A364,BY$1))","v":""},{"$f":"IF($A364=\"N/A\",Ref!$B$36,INDEX(Ranks!$1:$1048576,$A364,BZ$1))","v":""},{"$f":"IF($A364=\"N/A\",Ref!$B$36,INDEX(Ranks!$1:$1048576,$A364,CA$1))","v":""},{"$f":"IF($A364=\"N/A\",Ref!$B$36,INDEX(Ranks!$1:$1048576,$A364,CB$1))","v":""},{"$f":"IF($A364=\"N/A\",Ref!$B$36,INDEX(Ranks!$1:$1048576,$A364,CC$1))","v":""},{"$f":"IF($A364=\"N/A\",Ref!$B$36,INDEX(Ranks!$1:$1048576,$A364,CD$1))","v":""},{"$f":"IF($A364=\"N/A\",Ref!$B$36,INDEX(Ranks!$1:$1048576,$A364,CE$1))","v":""},{"$f":"IF($A364=\"N/A\",Ref!$B$36,INDEX(Ranks!$1:$1048576,$A364,CF$1))","v":""},{"$f":"IF($A364=\"N/A\",Ref!$B$36,INDEX(Ranks!$1:$1048576,$A364,CG$1))","v":""},{"$f":"IF($A364=\"N/A\",Ref!$B$36,INDEX(Ranks!$1:$1048576,$A364,CH$1))","v":""},{"$f":"IF($A364=\"N/A\",Ref!$B$36,INDEX(Ranks!$1:$1048576,$A364,CI$1))","v":""},{"$f":"IF($A364=\"N/A\",Ref!$B$36,INDEX(Ranks!$1:$1048576,$A364,CJ$1))","v":""},{"$f":"IF($A364=\"N/A\",Ref!$B$36,INDEX(Ranks!$1:$1048576,$A364,CK$1))","v":""},{"$f":"IF($A364=\"N/A\",Ref!$B$36,INDEX(Ranks!$1:$1048576,$A364,CL$1))","v":""},{"$f":"IF($A364=\"N/A\",Ref!$B$36,INDEX(Ranks!$1:$1048576,$A364,CM$1))","v":""},{"$f":"IF($A364=\"N/A\",Ref!$B$36,INDEX(Ranks!$1:$1048576,$A364,CN$1))","v":""},{"$f":"IF($A364=\"N/A\",Ref!$B$36,INDEX(Ranks!$1:$1048576,$A364,CO$1))","v":""},{"$f":"IF($A364=\"N/A\",Ref!$B$36,INDEX(Ranks!$1:$1048576,$A364,CP$1))","v":""},{"$f":"IF($A364=\"N/A\",Ref!$B$36,INDEX(Ranks!$1:$1048576,$A364,CQ$1))","v":""},{"$f":"IF($A364=\"N/A\",Ref!$B$36,INDEX(Ranks!$1:$1048576,$A364,CR$1))","v":""},{"$f":"IF($A364=\"N/A\",Ref!$B$36,INDEX(Ranks!$1:$1048576,$A364,CS$1))","v":""},{"$f":"IF($A364=\"N/A\",Ref!$B$36,INDEX(Ranks!$1:$1048576,$A364,CT$1))","v":""},{"$f":"IF($A364=\"N/A\",Ref!$B$36,INDEX(Ranks!$1:$1048576,$A364,CU$1))","v":""},{"$f":"IF($A364=\"N/A\",Ref!$B$36,INDEX(Ranks!$1:$1048576,$A364,CV$1))","v":""},{"$f":"IF($A364=\"N/A\",Ref!$B$36,INDEX(Ranks!$1:$1048576,$A364,CW$1))","v":""},{"$f":"IF($A364=\"N/A\",Ref!$B$36,INDEX(Ranks!$1:$1048576,$A364,CX$1))","v":""},{"$f":"IF($A364=\"N/A\",Ref!$B$36,INDEX(Ranks!$1:$1048576,$A364,CY$1))","v":""},{"$f":"IF($A364=\"N/A\",Ref!$B$36,INDEX(Ranks!$1:$1048576,$A364,CZ$1))","v":""},{"$f":"IF($A364=\"N/A\",Ref!$B$36,INDEX(Ranks!$1:$1048576,$A364,DA$1))","v":""},{"$f":"IF($A364=\"N/A\",Ref!$B$36,INDEX(Ranks!$1:$1048576,$A364,DB$1))","v":""},{"$f":"IF($A364=\"N/A\",Ref!$B$36,INDEX(Ranks!$1:$1048576,$A364,DC$1))","v":""},{"$f":"IF($A364=\"N/A\",Ref!$B$36,INDEX(Ranks!$1:$1048576,$A364,DD$1))","v":""},{"$f":"IF($A364=\"N/A\",Ref!$B$36,INDEX(Ranks!$1:$1048576,$A364,DE$1))","v":""},{"$f":"IF($A364=\"N/A\",Ref!$B$36,INDEX(Ranks!$1:$1048576,$A364,DF$1))","v":""},{"$f":"IF($A364=\"N/A\",Ref!$B$36,INDEX(Ranks!$1:$1048576,$A364,DG$1))","v":""},{"$f":"IF($A364=\"N/A\",Ref!$B$36,INDEX(Ranks!$1:$1048576,$A364,DH$1))","v":""},{"$f":"IF($A364=\"N/A\",Ref!$B$36,INDEX(Ranks!$1:$1048576,$A364,DI$1))","v":""},{"$f":"IF($A364=\"N/A\",Ref!$B$36,INDEX(Ranks!$1:$1048576,$A364,DJ$1))","v":""},{"$f":"IF($A364=\"N/A\",Ref!$B$36,INDEX(Ranks!$1:$1048576,$A364,DK$1))","v":""},{"$f":"IF($A364=\"N/A\",Ref!$B$36,INDEX(Ranks!$1:$1048576,$A364,DL$1))","v":""},{"$f":"IF($A364=\"N/A\",Ref!$B$36,INDEX(Ranks!$1:$1048576,$A364,DM$1))","v":""},{"$f":"IF($A364=\"N/A\",Ref!$B$36,INDEX(Ranks!$1:$1048576,$A364,DN$1))","v":""},{"$f":"IF($A364=\"N/A\",Ref!$B$36,INDEX(Ranks!$1:$1048576,$A364,DO$1))","v":""},{"$f":"IF($A364=\"N/A\",Ref!$B$36,INDEX(Ranks!$1:$1048576,$A364,DP$1))","v":""},{"$f":"IF($A364=\"N/A\",Ref!$B$36,INDEX(Ranks!$1:$1048576,$A364,DQ$1))","v":""},{"$f":"IF($A364=\"N/A\",Ref!$B$36,INDEX(Ranks!$1:$1048576,$A364,DR$1))","v":""},{"$f":"IF($A364=\"N/A\",Ref!$B$36,INDEX(Ranks!$1:$1048576,$A364,DS$1))","v":""},{"$f":"IF($A364=\"N/A\",Ref!$B$36,INDEX(Ranks!$1:$1048576,$A364,DT$1))","v":""},{"$f":"IF($A364=\"N/A\",Ref!$B$36,INDEX(Ranks!$1:$1048576,$A364,DU$1))","v":""},{"$f":"IF($A364=\"N/A\",Ref!$B$36,INDEX(Ranks!$1:$1048576,$A364,DV$1))","v":""},{"$f":"IF($A364=\"N/A\",Ref!$B$36,INDEX(Ranks!$1:$1048576,$A364,DW$1))","v":""},{"$f":"IF($A364=\"N/A\",Ref!$B$36,INDEX(Ranks!$1:$1048576,$A364,DX$1))","v":""},{"$f":"IF($A364=\"N/A\",Ref!$B$36,INDEX(Ranks!$1:$1048576,$A364,DY$1))","v":""},{"$f":"IF($A364=\"N/A\",Ref!$B$36,INDEX(Ranks!$1:$1048576,$A364,DZ$1))","v":""},{"$f":"IF($A364=\"N/A\",Ref!$B$36,INDEX(Ranks!$1:$1048576,$A364,EA$1))","v":""},{"$f":"IF($A364=\"N/A\",Ref!$B$36,INDEX(Ranks!$1:$1048576,$A364,EB$1))","v":""}]
[{"$f":"IFERROR(MATCH('Portfolio Page'!L365,Ranks!L:L,0),\"N/A\")","v":"N/A"},null,{"$f":"IF($A365=\"N/A\",\"\",INDEX(Ranks!$1:$1048576,$A365,C$1))","v":""},{"$f":"IF($A365=\"N/A\",Ref!$B$36,INDEX(Ranks!$1:$1048576,$A365,D$1))","v":""},{"$f":"IF($A365=\"N/A\",Ref!$B$36,INDEX(Ranks!$1:$1048576,$A365,E$1))","v":""},{"$f":"IF($A365=\"N/A\",\"\",INDEX(Ranks!$1:$1048576,$A365,F$1))","v":""},{"$f":"IF($A365=\"N/A\",\"\",INDEX(Ranks!$1:$1048576,$A365,G$1))","v":""},{"$f":"IF($A365=\"N/A\",\"\",INDEX(Ranks!$1:$1048576,$A365,H$1))","v":""},{"$f":"IF($A365=\"N/A\",\"\",INDEX(Ranks!$1:$1048576,$A365,I$1))","v":""},{"$f":"IF($A365=\"N/A\",\"\",INDEX(Ranks!$1:$1048576,$A365,J$1))","v":""},{"$f":"IF($A365=\"N/A\",\"\",INDEX(Ranks!$1:$1048576,$A365,K$1))","v":""},null,{"$f":"IF($A365=\"N/A\",Ref!$B$36,INDEX(Ranks!$1:$1048576,$A365,M$1))","v":""},{"$f":"IF($A365=\"N/A\",Ref!$B$36,INDEX(Ranks!$1:$1048576,$A365,N$1))","v":""},{"$f":"IF($A365=\"N/A\",Ref!$B$36,INDEX(Ranks!$1:$1048576,$A365,O$1))","v":""},{"$f":"IF($A365=\"N/A\",Ref!$B$36,INDEX(Ranks!$1:$1048576,$A365,P$1))","v":""},{"$f":"IF($A365=\"N/A\",Ref!$B$36,INDEX(Ranks!$1:$1048576,$A365,Q$1))","v":""},{"$f":"IF($A365=\"N/A\",Ref!$B$36,INDEX(Ranks!$1:$1048576,$A365,R$1))","v":""},{"$f":"IF($A365=\"N/A\",Ref!$B$36,INDEX(Ranks!$1:$1048576,$A365,S$1))","v":""},{"$f":"IF($A365=\"N/A\",Ref!$B$36,INDEX(Ranks!$1:$1048576,$A365,T$1))","v":""},{"$f":"IF($A365=\"N/A\",Ref!$B$36,INDEX(Ranks!$1:$1048576,$A365,U$1))","v":""},{"$f":"IF($A365=\"N/A\",Ref!$B$36,INDEX(Ranks!$1:$1048576,$A365,V$1))","v":""},{"$f":"IF($A365=\"N/A\",Ref!$B$36,INDEX(Ranks!$1:$1048576,$A365,W$1))","v":""},{"$f":"IF($A365=\"N/A\",Ref!$B$36,INDEX(Ranks!$1:$1048576,$A365,X$1))","v":""},{"$f":"IF($A365=\"N/A\",Ref!$B$36,INDEX(Ranks!$1:$1048576,$A365,Y$1))","v":""},{"$f":"IF($A365=\"N/A\",Ref!$B$36,INDEX(Ranks!$1:$1048576,$A365,Z$1))","v":""},{"$f":"IF($A365=\"N/A\",Ref!$B$36,INDEX(Ranks!$1:$1048576,$A365,AA$1))","v":""},{"$f":"IF($A365=\"N/A\",Ref!$B$36,INDEX(Ranks!$1:$1048576,$A365,AB$1))","v":""},{"$f":"IF($A365=\"N/A\",Ref!$B$36,INDEX(Ranks!$1:$1048576,$A365,AC$1))","v":""},{"$f":"IF($A365=\"N/A\",Ref!$B$36,INDEX(Ranks!$1:$1048576,$A365,AD$1))","v":""},{"$f":"IF($A365=\"N/A\",Ref!$B$36,INDEX(Ranks!$1:$1048576,$A365,AE$1))","v":""},{"$f":"IF($A365=\"N/A\",Ref!$B$36,INDEX(Ranks!$1:$1048576,$A365,AF$1))","v":""},{"$f":"IF($A365=\"N/A\",Ref!$B$36,INDEX(Ranks!$1:$1048576,$A365,AG$1))","v":""},{"$f":"IF($A365=\"N/A\",Ref!$B$36,INDEX(Ranks!$1:$1048576,$A365,AH$1))","v":""},{"$f":"IF($A365=\"N/A\",Ref!$B$36,INDEX(Ranks!$1:$1048576,$A365,AI$1))","v":""},{"$f":"IF($A365=\"N/A\",Ref!$B$36,INDEX(Ranks!$1:$1048576,$A365,AJ$1))","v":""},{"$f":"IF($A365=\"N/A\",Ref!$B$36,INDEX(Ranks!$1:$1048576,$A365,AK$1))","v":""},{"$f":"IF($A365=\"N/A\",Ref!$B$36,INDEX(Ranks!$1:$1048576,$A365,AL$1))","v":""},{"$f":"IF($A365=\"N/A\",Ref!$B$36,INDEX(Ranks!$1:$1048576,$A365,AM$1))","v":""},{"$f":"IF($A365=\"N/A\",Ref!$B$36,INDEX(Ranks!$1:$1048576,$A365,AN$1))","v":""},{"$f":"IF($A365=\"N/A\",Ref!$B$36,INDEX(Ranks!$1:$1048576,$A365,AO$1))","v":""},{"$f":"IF($A365=\"N/A\",Ref!$B$36,INDEX(Ranks!$1:$1048576,$A365,AP$1))","v":""},{"$f":"IF($A365=\"N/A\",Ref!$B$36,INDEX(Ranks!$1:$1048576,$A365,AQ$1))","v":""},{"$f":"IF($A365=\"N/A\",Ref!$B$36,INDEX(Ranks!$1:$1048576,$A365,AR$1))","v":""},{"$f":"IF($A365=\"N/A\",Ref!$B$36,INDEX(Ranks!$1:$1048576,$A365,AS$1))","v":""},{"$f":"IF($A365=\"N/A\",Ref!$B$36,INDEX(Ranks!$1:$1048576,$A365,AT$1))","v":""},{"$f":"IF($A365=\"N/A\",Ref!$B$36,INDEX(Ranks!$1:$1048576,$A365,AU$1))","v":""},{"$f":"IF($A365=\"N/A\",Ref!$B$36,INDEX(Ranks!$1:$1048576,$A365,AV$1))","v":""},{"$f":"IF($A365=\"N/A\",Ref!$B$36,INDEX(Ranks!$1:$1048576,$A365,AW$1))","v":""},{"$f":"IF($A365=\"N/A\",Ref!$B$36,INDEX(Ranks!$1:$1048576,$A365,AX$1))","v":""},{"$f":"IF($A365=\"N/A\",Ref!$B$36,INDEX(Ranks!$1:$1048576,$A365,AY$1))","v":""},{"$f":"IF($A365=\"N/A\",Ref!$B$36,INDEX(Ranks!$1:$1048576,$A365,AZ$1))","v":""},{"$f":"IF($A365=\"N/A\",Ref!$B$36,INDEX(Ranks!$1:$1048576,$A365,BA$1))","v":""},{"$f":"IF($A365=\"N/A\",Ref!$B$36,INDEX(Ranks!$1:$1048576,$A365,BB$1))","v":""},{"$f":"IF($A365=\"N/A\",Ref!$B$36,INDEX(Ranks!$1:$1048576,$A365,BC$1))","v":""},{"$f":"IF($A365=\"N/A\",Ref!$B$36,INDEX(Ranks!$1:$1048576,$A365,BD$1))","v":""},{"$f":"IF($A365=\"N/A\",Ref!$B$36,INDEX(Ranks!$1:$1048576,$A365,BE$1))","v":""},{"$f":"IF($A365=\"N/A\",Ref!$B$36,INDEX(Ranks!$1:$1048576,$A365,BF$1))","v":""},{"$f":"IF($A365=\"N/A\",Ref!$B$36,INDEX(Ranks!$1:$1048576,$A365,BG$1))","v":""},{"$f":"IF($A365=\"N/A\",Ref!$B$36,INDEX(Ranks!$1:$1048576,$A365,BH$1))","v":""},{"$f":"IF($A365=\"N/A\",Ref!$B$36,INDEX(Ranks!$1:$1048576,$A365,BI$1))","v":""},{"$f":"IF($A365=\"N/A\",Ref!$B$36,INDEX(Ranks!$1:$1048576,$A365,BJ$1))","v":""},{"$f":"IF($A365=\"N/A\",Ref!$B$36,INDEX(Ranks!$1:$1048576,$A365,BK$1))","v":""},{"$f":"IF($A365=\"N/A\",Ref!$B$36,INDEX(Ranks!$1:$1048576,$A365,BL$1))","v":""},{"$f":"IF($A365=\"N/A\",Ref!$B$36,INDEX(Ranks!$1:$1048576,$A365,BM$1))","v":""},{"$f":"IF($A365=\"N/A\",Ref!$B$36,INDEX(Ranks!$1:$1048576,$A365,BN$1))","v":""},{"$f":"IF($A365=\"N/A\",Ref!$B$36,INDEX(Ranks!$1:$1048576,$A365,BO$1))","v":""},{"$f":"IF($A365=\"N/A\",Ref!$B$36,INDEX(Ranks!$1:$1048576,$A365,BP$1))","v":""},{"$f":"IF($A365=\"N/A\",Ref!$B$36,INDEX(Ranks!$1:$1048576,$A365,BQ$1))","v":""},{"$f":"IF($A365=\"N/A\",Ref!$B$36,INDEX(Ranks!$1:$1048576,$A365,BR$1))","v":""},{"$f":"IF($A365=\"N/A\",Ref!$B$36,INDEX(Ranks!$1:$1048576,$A365,BS$1))","v":""},{"$f":"IF($A365=\"N/A\",Ref!$B$36,INDEX(Ranks!$1:$1048576,$A365,BT$1))","v":""},{"$f":"IF($A365=\"N/A\",Ref!$B$36,INDEX(Ranks!$1:$1048576,$A365,BU$1))","v":""},{"$f":"IF($A365=\"N/A\",Ref!$B$36,INDEX(Ranks!$1:$1048576,$A365,BV$1))","v":""},{"$f":"IF($A365=\"N/A\",Ref!$B$36,INDEX(Ranks!$1:$1048576,$A365,BW$1))","v":""},{"$f":"IF($A365=\"N/A\",Ref!$B$36,INDEX(Ranks!$1:$1048576,$A365,BX$1))","v":""},{"$f":"IF($A365=\"N/A\",Ref!$B$36,INDEX(Ranks!$1:$1048576,$A365,BY$1))","v":""},{"$f":"IF($A365=\"N/A\",Ref!$B$36,INDEX(Ranks!$1:$1048576,$A365,BZ$1))","v":""},{"$f":"IF($A365=\"N/A\",Ref!$B$36,INDEX(Ranks!$1:$1048576,$A365,CA$1))","v":""},{"$f":"IF($A365=\"N/A\",Ref!$B$36,INDEX(Ranks!$1:$1048576,$A365,CB$1))","v":""},{"$f":"IF($A365=\"N/A\",Ref!$B$36,INDEX(Ranks!$1:$1048576,$A365,CC$1))","v":""},{"$f":"IF($A365=\"N/A\",Ref!$B$36,INDEX(Ranks!$1:$1048576,$A365,CD$1))","v":""},{"$f":"IF($A365=\"N/A\",Ref!$B$36,INDEX(Ranks!$1:$1048576,$A365,CE$1))","v":""},{"$f":"IF($A365=\"N/A\",Ref!$B$36,INDEX(Ranks!$1:$1048576,$A365,CF$1))","v":""},{"$f":"IF($A365=\"N/A\",Ref!$B$36,INDEX(Ranks!$1:$1048576,$A365,CG$1))","v":""},{"$f":"IF($A365=\"N/A\",Ref!$B$36,INDEX(Ranks!$1:$1048576,$A365,CH$1))","v":""},{"$f":"IF($A365=\"N/A\",Ref!$B$36,INDEX(Ranks!$1:$1048576,$A365,CI$1))","v":""},{"$f":"IF($A365=\"N/A\",Ref!$B$36,INDEX(Ranks!$1:$1048576,$A365,CJ$1))","v":""},{"$f":"IF($A365=\"N/A\",Ref!$B$36,INDEX(Ranks!$1:$1048576,$A365,CK$1))","v":""},{"$f":"IF($A365=\"N/A\",Ref!$B$36,INDEX(Ranks!$1:$1048576,$A365,CL$1))","v":""},{"$f":"IF($A365=\"N/A\",Ref!$B$36,INDEX(Ranks!$1:$1048576,$A365,CM$1))","v":""},{"$f":"IF($A365=\"N/A\",Ref!$B$36,INDEX(Ranks!$1:$1048576,$A365,CN$1))","v":""},{"$f":"IF($A365=\"N/A\",Ref!$B$36,INDEX(Ranks!$1:$1048576,$A365,CO$1))","v":""},{"$f":"IF($A365=\"N/A\",Ref!$B$36,INDEX(Ranks!$1:$1048576,$A365,CP$1))","v":""},{"$f":"IF($A365=\"N/A\",Ref!$B$36,INDEX(Ranks!$1:$1048576,$A365,CQ$1))","v":""},{"$f":"IF($A365=\"N/A\",Ref!$B$36,INDEX(Ranks!$1:$1048576,$A365,CR$1))","v":""},{"$f":"IF($A365=\"N/A\",Ref!$B$36,INDEX(Ranks!$1:$1048576,$A365,CS$1))","v":""},{"$f":"IF($A365=\"N/A\",Ref!$B$36,INDEX(Ranks!$1:$1048576,$A365,CT$1))","v":""},{"$f":"IF($A365=\"N/A\",Ref!$B$36,INDEX(Ranks!$1:$1048576,$A365,CU$1))","v":""},{"$f":"IF($A365=\"N/A\",Ref!$B$36,INDEX(Ranks!$1:$1048576,$A365,CV$1))","v":""},{"$f":"IF($A365=\"N/A\",Ref!$B$36,INDEX(Ranks!$1:$1048576,$A365,CW$1))","v":""},{"$f":"IF($A365=\"N/A\",Ref!$B$36,INDEX(Ranks!$1:$1048576,$A365,CX$1))","v":""},{"$f":"IF($A365=\"N/A\",Ref!$B$36,INDEX(Ranks!$1:$1048576,$A365,CY$1))","v":""},{"$f":"IF($A365=\"N/A\",Ref!$B$36,INDEX(Ranks!$1:$1048576,$A365,CZ$1))","v":""},{"$f":"IF($A365=\"N/A\",Ref!$B$36,INDEX(Ranks!$1:$1048576,$A365,DA$1))","v":""},{"$f":"IF($A365=\"N/A\",Ref!$B$36,INDEX(Ranks!$1:$1048576,$A365,DB$1))","v":""},{"$f":"IF($A365=\"N/A\",Ref!$B$36,INDEX(Ranks!$1:$1048576,$A365,DC$1))","v":""},{"$f":"IF($A365=\"N/A\",Ref!$B$36,INDEX(Ranks!$1:$1048576,$A365,DD$1))","v":""},{"$f":"IF($A365=\"N/A\",Ref!$B$36,INDEX(Ranks!$1:$1048576,$A365,DE$1))","v":""},{"$f":"IF($A365=\"N/A\",Ref!$B$36,INDEX(Ranks!$1:$1048576,$A365,DF$1))","v":""},{"$f":"IF($A365=\"N/A\",Ref!$B$36,INDEX(Ranks!$1:$1048576,$A365,DG$1))","v":""},{"$f":"IF($A365=\"N/A\",Ref!$B$36,INDEX(Ranks!$1:$1048576,$A365,DH$1))","v":""},{"$f":"IF($A365=\"N/A\",Ref!$B$36,INDEX(Ranks!$1:$1048576,$A365,DI$1))","v":""},{"$f":"IF($A365=\"N/A\",Ref!$B$36,INDEX(Ranks!$1:$1048576,$A365,DJ$1))","v":""},{"$f":"IF($A365=\"N/A\",Ref!$B$36,INDEX(Ranks!$1:$1048576,$A365,DK$1))","v":""},{"$f":"IF($A365=\"N/A\",Ref!$B$36,INDEX(Ranks!$1:$1048576,$A365,DL$1))","v":""},{"$f":"IF($A365=\"N/A\",Ref!$B$36,INDEX(Ranks!$1:$1048576,$A365,DM$1))","v":""},{"$f":"IF($A365=\"N/A\",Ref!$B$36,INDEX(Ranks!$1:$1048576,$A365,DN$1))","v":""},{"$f":"IF($A365=\"N/A\",Ref!$B$36,INDEX(Ranks!$1:$1048576,$A365,DO$1))","v":""},{"$f":"IF($A365=\"N/A\",Ref!$B$36,INDEX(Ranks!$1:$1048576,$A365,DP$1))","v":""},{"$f":"IF($A365=\"N/A\",Ref!$B$36,INDEX(Ranks!$1:$1048576,$A365,DQ$1))","v":""},{"$f":"IF($A365=\"N/A\",Ref!$B$36,INDEX(Ranks!$1:$1048576,$A365,DR$1))","v":""},{"$f":"IF($A365=\"N/A\",Ref!$B$36,INDEX(Ranks!$1:$1048576,$A365,DS$1))","v":""},{"$f":"IF($A365=\"N/A\",Ref!$B$36,INDEX(Ranks!$1:$1048576,$A365,DT$1))","v":""},{"$f":"IF($A365=\"N/A\",Ref!$B$36,INDEX(Ranks!$1:$1048576,$A365,DU$1))","v":""},{"$f":"IF($A365=\"N/A\",Ref!$B$36,INDEX(Ranks!$1:$1048576,$A365,DV$1))","v":""},{"$f":"IF($A365=\"N/A\",Ref!$B$36,INDEX(Ranks!$1:$1048576,$A365,DW$1))","v":""},{"$f":"IF($A365=\"N/A\",Ref!$B$36,INDEX(Ranks!$1:$1048576,$A365,DX$1))","v":""},{"$f":"IF($A365=\"N/A\",Ref!$B$36,INDEX(Ranks!$1:$1048576,$A365,DY$1))","v":""},{"$f":"IF($A365=\"N/A\",Ref!$B$36,INDEX(Ranks!$1:$1048576,$A365,DZ$1))","v":""},{"$f":"IF($A365=\"N/A\",Ref!$B$36,INDEX(Ranks!$1:$1048576,$A365,EA$1))","v":""},{"$f":"IF($A365=\"N/A\",Ref!$B$36,INDEX(Ranks!$1:$1048576,$A365,EB$1))","v":""}]
[{"$f":"IFERROR(MATCH('Portfolio Page'!L366,Ranks!L:L,0),\"N/A\")","v":"N/A"},null,{"$f":"IF($A366=\"N/A\",\"\",INDEX(Ranks!$1:$1048576,$A366,C$1))","v":""},{"$f":"IF($A366=\"N/A\",Ref!$B$36,INDEX(Ranks!$1:$1048576,$A366,D$1))","v":""},{"$f":"IF($A366=\"N/A\",Ref!$B$36,INDEX(Ranks!$1:$1048576,$A366,E$1))","v":""},{"$f":"IF($A366=\"N/A\",\"\",INDEX(Ranks!$1:$1048576,$A366,F$1))","v":""},{"$f":"IF($A366=\"N/A\",\"\",INDEX(Ranks!$1:$1048576,$A366,G$1))","v":""},{"$f":"IF($A366=\"N/A\",\"\",INDEX(Ranks!$1:$1048576,$A366,H$1))","v":""},{"$f":"IF($A366=\"N/A\",\"\",INDEX(Ranks!$1:$1048576,$A366,I$1))","v":""},{"$f":"IF($A366=\"N/A\",\"\",INDEX(Ranks!$1:$1048576,$A366,J$1))","v":""},{"$f":"IF($A366=\"N/A\",\"\",INDEX(Ranks!$1:$1048576,$A366,K$1))","v":""},null,{"$f":"IF($A366=\"N/A\",Ref!$B$36,INDEX(Ranks!$1:$1048576,$A366,M$1))","v":""},{"$f":"IF($A366=\"N/A\",Ref!$B$36,INDEX(Ranks!$1:$1048576,$A366,N$1))","v":""},{"$f":"IF($A366=\"N/A\",Ref!$B$36,INDEX(Ranks!$1:$1048576,$A366,O$1))","v":""},{"$f":"IF($A366=\"N/A\",Ref!$B$36,INDEX(Ranks!$1:$1048576,$A366,P$1))","v":""},{"$f":"IF($A366=\"N/A\",Ref!$B$36,INDEX(Ranks!$1:$1048576,$A366,Q$1))","v":""},{"$f":"IF($A366=\"N/A\",Ref!$B$36,INDEX(Ranks!$1:$1048576,$A366,R$1))","v":""},{"$f":"IF($A366=\"N/A\",Ref!$B$36,INDEX(Ranks!$1:$1048576,$A366,S$1))","v":""},{"$f":"IF($A366=\"N/A\",Ref!$B$36,INDEX(Ranks!$1:$1048576,$A366,T$1))","v":""},{"$f":"IF($A366=\"N/A\",Ref!$B$36,INDEX(Ranks!$1:$1048576,$A366,U$1))","v":""},{"$f":"IF($A366=\"N/A\",Ref!$B$36,INDEX(Ranks!$1:$1048576,$A366,V$1))","v":""},{"$f":"IF($A366=\"N/A\",Ref!$B$36,INDEX(Ranks!$1:$1048576,$A366,W$1))","v":""},{"$f":"IF($A366=\"N/A\",Ref!$B$36,INDEX(Ranks!$1:$1048576,$A366,X$1))","v":""},{"$f":"IF($A366=\"N/A\",Ref!$B$36,INDEX(Ranks!$1:$1048576,$A366,Y$1))","v":""},{"$f":"IF($A366=\"N/A\",Ref!$B$36,INDEX(Ranks!$1:$1048576,$A366,Z$1))","v":""},{"$f":"IF($A366=\"N/A\",Ref!$B$36,INDEX(Ranks!$1:$1048576,$A366,AA$1))","v":""},{"$f":"IF($A366=\"N/A\",Ref!$B$36,INDEX(Ranks!$1:$1048576,$A366,AB$1))","v":""},{"$f":"IF($A366=\"N/A\",Ref!$B$36,INDEX(Ranks!$1:$1048576,$A366,AC$1))","v":""},{"$f":"IF($A366=\"N/A\",Ref!$B$36,INDEX(Ranks!$1:$1048576,$A366,AD$1))","v":""},{"$f":"IF($A366=\"N/A\",Ref!$B$36,INDEX(Ranks!$1:$1048576,$A366,AE$1))","v":""},{"$f":"IF($A366=\"N/A\",Ref!$B$36,INDEX(Ranks!$1:$1048576,$A366,AF$1))","v":""},{"$f":"IF($A366=\"N/A\",Ref!$B$36,INDEX(Ranks!$1:$1048576,$A366,AG$1))","v":""},{"$f":"IF($A366=\"N/A\",Ref!$B$36,INDEX(Ranks!$1:$1048576,$A366,AH$1))","v":""},{"$f":"IF($A366=\"N/A\",Ref!$B$36,INDEX(Ranks!$1:$1048576,$A366,AI$1))","v":""},{"$f":"IF($A366=\"N/A\",Ref!$B$36,INDEX(Ranks!$1:$1048576,$A366,AJ$1))","v":""},{"$f":"IF($A366=\"N/A\",Ref!$B$36,INDEX(Ranks!$1:$1048576,$A366,AK$1))","v":""},{"$f":"IF($A366=\"N/A\",Ref!$B$36,INDEX(Ranks!$1:$1048576,$A366,AL$1))","v":""},{"$f":"IF($A366=\"N/A\",Ref!$B$36,INDEX(Ranks!$1:$1048576,$A366,AM$1))","v":""},{"$f":"IF($A366=\"N/A\",Ref!$B$36,INDEX(Ranks!$1:$1048576,$A366,AN$1))","v":""},{"$f":"IF($A366=\"N/A\",Ref!$B$36,INDEX(Ranks!$1:$1048576,$A366,AO$1))","v":""},{"$f":"IF($A366=\"N/A\",Ref!$B$36,INDEX(Ranks!$1:$1048576,$A366,AP$1))","v":""},{"$f":"IF($A366=\"N/A\",Ref!$B$36,INDEX(Ranks!$1:$1048576,$A366,AQ$1))","v":""},{"$f":"IF($A366=\"N/A\",Ref!$B$36,INDEX(Ranks!$1:$1048576,$A366,AR$1))","v":""},{"$f":"IF($A366=\"N/A\",Ref!$B$36,INDEX(Ranks!$1:$1048576,$A366,AS$1))","v":""},{"$f":"IF($A366=\"N/A\",Ref!$B$36,INDEX(Ranks!$1:$1048576,$A366,AT$1))","v":""},{"$f":"IF($A366=\"N/A\",Ref!$B$36,INDEX(Ranks!$1:$1048576,$A366,AU$1))","v":""},{"$f":"IF($A366=\"N/A\",Ref!$B$36,INDEX(Ranks!$1:$1048576,$A366,AV$1))","v":""},{"$f":"IF($A366=\"N/A\",Ref!$B$36,INDEX(Ranks!$1:$1048576,$A366,AW$1))","v":""},{"$f":"IF($A366=\"N/A\",Ref!$B$36,INDEX(Ranks!$1:$1048576,$A366,AX$1))","v":""},{"$f":"IF($A366=\"N/A\",Ref!$B$36,INDEX(Ranks!$1:$1048576,$A366,AY$1))","v":""},{"$f":"IF($A366=\"N/A\",Ref!$B$36,INDEX(Ranks!$1:$1048576,$A366,AZ$1))","v":""},{"$f":"IF($A366=\"N/A\",Ref!$B$36,INDEX(Ranks!$1:$1048576,$A366,BA$1))","v":""},{"$f":"IF($A366=\"N/A\",Ref!$B$36,INDEX(Ranks!$1:$1048576,$A366,BB$1))","v":""},{"$f":"IF($A366=\"N/A\",Ref!$B$36,INDEX(Ranks!$1:$1048576,$A366,BC$1))","v":""},{"$f":"IF($A366=\"N/A\",Ref!$B$36,INDEX(Ranks!$1:$1048576,$A366,BD$1))","v":""},{"$f":"IF($A366=\"N/A\",Ref!$B$36,INDEX(Ranks!$1:$1048576,$A366,BE$1))","v":""},{"$f":"IF($A366=\"N/A\",Ref!$B$36,INDEX(Ranks!$1:$1048576,$A366,BF$1))","v":""},{"$f":"IF($A366=\"N/A\",Ref!$B$36,INDEX(Ranks!$1:$1048576,$A366,BG$1))","v":""},{"$f":"IF($A366=\"N/A\",Ref!$B$36,INDEX(Ranks!$1:$1048576,$A366,BH$1))","v":""},{"$f":"IF($A366=\"N/A\",Ref!$B$36,INDEX(Ranks!$1:$1048576,$A366,BI$1))","v":""},{"$f":"IF($A366=\"N/A\",Ref!$B$36,INDEX(Ranks!$1:$1048576,$A366,BJ$1))","v":""},{"$f":"IF($A366=\"N/A\",Ref!$B$36,INDEX(Ranks!$1:$1048576,$A366,BK$1))","v":""},{"$f":"IF($A366=\"N/A\",Ref!$B$36,INDEX(Ranks!$1:$1048576,$A366,BL$1))","v":""},{"$f":"IF($A366=\"N/A\",Ref!$B$36,INDEX(Ranks!$1:$1048576,$A366,BM$1))","v":""},{"$f":"IF($A366=\"N/A\",Ref!$B$36,INDEX(Ranks!$1:$1048576,$A366,BN$1))","v":""},{"$f":"IF($A366=\"N/A\",Ref!$B$36,INDEX(Ranks!$1:$1048576,$A366,BO$1))","v":""},{"$f":"IF($A366=\"N/A\",Ref!$B$36,INDEX(Ranks!$1:$1048576,$A366,BP$1))","v":""},{"$f":"IF($A366=\"N/A\",Ref!$B$36,INDEX(Ranks!$1:$1048576,$A366,BQ$1))","v":""},{"$f":"IF($A366=\"N/A\",Ref!$B$36,INDEX(Ranks!$1:$1048576,$A366,BR$1))","v":""},{"$f":"IF($A366=\"N/A\",Ref!$B$36,INDEX(Ranks!$1:$1048576,$A366,BS$1))","v":""},{"$f":"IF($A366=\"N/A\",Ref!$B$36,INDEX(Ranks!$1:$1048576,$A366,BT$1))","v":""},{"$f":"IF($A366=\"N/A\",Ref!$B$36,INDEX(Ranks!$1:$1048576,$A366,BU$1))","v":""},{"$f":"IF($A366=\"N/A\",Ref!$B$36,INDEX(Ranks!$1:$1048576,$A366,BV$1))","v":""},{"$f":"IF($A366=\"N/A\",Ref!$B$36,INDEX(Ranks!$1:$1048576,$A366,BW$1))","v":""},{"$f":"IF($A366=\"N/A\",Ref!$B$36,INDEX(Ranks!$1:$1048576,$A366,BX$1))","v":""},{"$f":"IF($A366=\"N/A\",Ref!$B$36,INDEX(Ranks!$1:$1048576,$A366,BY$1))","v":""},{"$f":"IF($A366=\"N/A\",Ref!$B$36,INDEX(Ranks!$1:$1048576,$A366,BZ$1))","v":""},{"$f":"IF($A366=\"N/A\",Ref!$B$36,INDEX(Ranks!$1:$1048576,$A366,CA$1))","v":""},{"$f":"IF($A366=\"N/A\",Ref!$B$36,INDEX(Ranks!$1:$1048576,$A366,CB$1))","v":""},{"$f":"IF($A366=\"N/A\",Ref!$B$36,INDEX(Ranks!$1:$1048576,$A366,CC$1))","v":""},{"$f":"IF($A366=\"N/A\",Ref!$B$36,INDEX(Ranks!$1:$1048576,$A366,CD$1))","v":""},{"$f":"IF($A366=\"N/A\",Ref!$B$36,INDEX(Ranks!$1:$1048576,$A366,CE$1))","v":""},{"$f":"IF($A366=\"N/A\",Ref!$B$36,INDEX(Ranks!$1:$1048576,$A366,CF$1))","v":""},{"$f":"IF($A366=\"N/A\",Ref!$B$36,INDEX(Ranks!$1:$1048576,$A366,CG$1))","v":""},{"$f":"IF($A366=\"N/A\",Ref!$B$36,INDEX(Ranks!$1:$1048576,$A366,CH$1))","v":""},{"$f":"IF($A366=\"N/A\",Ref!$B$36,INDEX(Ranks!$1:$1048576,$A366,CI$1))","v":""},{"$f":"IF($A366=\"N/A\",Ref!$B$36,INDEX(Ranks!$1:$1048576,$A366,CJ$1))","v":""},{"$f":"IF($A366=\"N/A\",Ref!$B$36,INDEX(Ranks!$1:$1048576,$A366,CK$1))","v":""},{"$f":"IF($A366=\"N/A\",Ref!$B$36,INDEX(Ranks!$1:$1048576,$A366,CL$1))","v":""},{"$f":"IF($A366=\"N/A\",Ref!$B$36,INDEX(Ranks!$1:$1048576,$A366,CM$1))","v":""},{"$f":"IF($A366=\"N/A\",Ref!$B$36,INDEX(Ranks!$1:$1048576,$A366,CN$1))","v":""},{"$f":"IF($A366=\"N/A\",Ref!$B$36,INDEX(Ranks!$1:$1048576,$A366,CO$1))","v":""},{"$f":"IF($A366=\"N/A\",Ref!$B$36,INDEX(Ranks!$1:$1048576,$A366,CP$1))","v":""},{"$f":"IF($A366=\"N/A\",Ref!$B$36,INDEX(Ranks!$1:$1048576,$A366,CQ$1))","v":""},{"$f":"IF($A366=\"N/A\",Ref!$B$36,INDEX(Ranks!$1:$1048576,$A366,CR$1))","v":""},{"$f":"IF($A366=\"N/A\",Ref!$B$36,INDEX(Ranks!$1:$1048576,$A366,CS$1))","v":""},{"$f":"IF($A366=\"N/A\",Ref!$B$36,INDEX(Ranks!$1:$1048576,$A366,CT$1))","v":""},{"$f":"IF($A366=\"N/A\",Ref!$B$36,INDEX(Ranks!$1:$1048576,$A366,CU$1))","v":""},{"$f":"IF($A366=\"N/A\",Ref!$B$36,INDEX(Ranks!$1:$1048576,$A366,CV$1))","v":""},{"$f":"IF($A366=\"N/A\",Ref!$B$36,INDEX(Ranks!$1:$1048576,$A366,CW$1))","v":""},{"$f":"IF($A366=\"N/A\",Ref!$B$36,INDEX(Ranks!$1:$1048576,$A366,CX$1))","v":""},{"$f":"IF($A366=\"N/A\",Ref!$B$36,INDEX(Ranks!$1:$1048576,$A366,CY$1))","v":""},{"$f":"IF($A366=\"N/A\",Ref!$B$36,INDEX(Ranks!$1:$1048576,$A366,CZ$1))","v":""},{"$f":"IF($A366=\"N/A\",Ref!$B$36,INDEX(Ranks!$1:$1048576,$A366,DA$1))","v":""},{"$f":"IF($A366=\"N/A\",Ref!$B$36,INDEX(Ranks!$1:$1048576,$A366,DB$1))","v":""},{"$f":"IF($A366=\"N/A\",Ref!$B$36,INDEX(Ranks!$1:$1048576,$A366,DC$1))","v":""},{"$f":"IF($A366=\"N/A\",Ref!$B$36,INDEX(Ranks!$1:$1048576,$A366,DD$1))","v":""},{"$f":"IF($A366=\"N/A\",Ref!$B$36,INDEX(Ranks!$1:$1048576,$A366,DE$1))","v":""},{"$f":"IF($A366=\"N/A\",Ref!$B$36,INDEX(Ranks!$1:$1048576,$A366,DF$1))","v":""},{"$f":"IF($A366=\"N/A\",Ref!$B$36,INDEX(Ranks!$1:$1048576,$A366,DG$1))","v":""},{"$f":"IF($A366=\"N/A\",Ref!$B$36,INDEX(Ranks!$1:$1048576,$A366,DH$1))","v":""},{"$f":"IF($A366=\"N/A\",Ref!$B$36,INDEX(Ranks!$1:$1048576,$A366,DI$1))","v":""},{"$f":"IF($A366=\"N/A\",Ref!$B$36,INDEX(Ranks!$1:$1048576,$A366,DJ$1))","v":""},{"$f":"IF($A366=\"N/A\",Ref!$B$36,INDEX(Ranks!$1:$1048576,$A366,DK$1))","v":""},{"$f":"IF($A366=\"N/A\",Ref!$B$36,INDEX(Ranks!$1:$1048576,$A366,DL$1))","v":""},{"$f":"IF($A366=\"N/A\",Ref!$B$36,INDEX(Ranks!$1:$1048576,$A366,DM$1))","v":""},{"$f":"IF($A366=\"N/A\",Ref!$B$36,INDEX(Ranks!$1:$1048576,$A366,DN$1))","v":""},{"$f":"IF($A366=\"N/A\",Ref!$B$36,INDEX(Ranks!$1:$1048576,$A366,DO$1))","v":""},{"$f":"IF($A366=\"N/A\",Ref!$B$36,INDEX(Ranks!$1:$1048576,$A366,DP$1))","v":""},{"$f":"IF($A366=\"N/A\",Ref!$B$36,INDEX(Ranks!$1:$1048576,$A366,DQ$1))","v":""},{"$f":"IF($A366=\"N/A\",Ref!$B$36,INDEX(Ranks!$1:$1048576,$A366,DR$1))","v":""},{"$f":"IF($A366=\"N/A\",Ref!$B$36,INDEX(Ranks!$1:$1048576,$A366,DS$1))","v":""},{"$f":"IF($A366=\"N/A\",Ref!$B$36,INDEX(Ranks!$1:$1048576,$A366,DT$1))","v":""},{"$f":"IF($A366=\"N/A\",Ref!$B$36,INDEX(Ranks!$1:$1048576,$A366,DU$1))","v":""},{"$f":"IF($A366=\"N/A\",Ref!$B$36,INDEX(Ranks!$1:$1048576,$A366,DV$1))","v":""},{"$f":"IF($A366=\"N/A\",Ref!$B$36,INDEX(Ranks!$1:$1048576,$A366,DW$1))","v":""},{"$f":"IF($A366=\"N/A\",Ref!$B$36,INDEX(Ranks!$1:$1048576,$A366,DX$1))","v":""},{"$f":"IF($A366=\"N/A\",Ref!$B$36,INDEX(Ranks!$1:$1048576,$A366,DY$1))","v":""},{"$f":"IF($A366=\"N/A\",Ref!$B$36,INDEX(Ranks!$1:$1048576,$A366,DZ$1))","v":""},{"$f":"IF($A366=\"N/A\",Ref!$B$36,INDEX(Ranks!$1:$1048576,$A366,EA$1))","v":""},{"$f":"IF($A366=\"N/A\",Ref!$B$36,INDEX(Ranks!$1:$1048576,$A366,EB$1))","v":""}]
[{"$f":"IFERROR(MATCH('Portfolio Page'!L367,Ranks!L:L,0),\"N/A\")","v":"N/A"},null,{"$f":"IF($A367=\"N/A\",\"\",INDEX(Ranks!$1:$1048576,$A367,C$1))","v":""},{"$f":"IF($A367=\"N/A\",Ref!$B$36,INDEX(Ranks!$1:$1048576,$A367,D$1))","v":""},{"$f":"IF($A367=\"N/A\",Ref!$B$36,INDEX(Ranks!$1:$1048576,$A367,E$1))","v":""},{"$f":"IF($A367=\"N/A\",\"\",INDEX(Ranks!$1:$1048576,$A367,F$1))","v":""},{"$f":"IF($A367=\"N/A\",\"\",INDEX(Ranks!$1:$1048576,$A367,G$1))","v":""},{"$f":"IF($A367=\"N/A\",\"\",INDEX(Ranks!$1:$1048576,$A367,H$1))","v":""},{"$f":"IF($A367=\"N/A\",\"\",INDEX(Ranks!$1:$1048576,$A367,I$1))","v":""},{"$f":"IF($A367=\"N/A\",\"\",INDEX(Ranks!$1:$1048576,$A367,J$1))","v":""},{"$f":"IF($A367=\"N/A\",\"\",INDEX(Ranks!$1:$1048576,$A367,K$1))","v":""},null,{"$f":"IF($A367=\"N/A\",Ref!$B$36,INDEX(Ranks!$1:$1048576,$A367,M$1))","v":""},{"$f":"IF($A367=\"N/A\",Ref!$B$36,INDEX(Ranks!$1:$1048576,$A367,N$1))","v":""},{"$f":"IF($A367=\"N/A\",Ref!$B$36,INDEX(Ranks!$1:$1048576,$A367,O$1))","v":""},{"$f":"IF($A367=\"N/A\",Ref!$B$36,INDEX(Ranks!$1:$1048576,$A367,P$1))","v":""},{"$f":"IF($A367=\"N/A\",Ref!$B$36,INDEX(Ranks!$1:$1048576,$A367,Q$1))","v":""},{"$f":"IF($A367=\"N/A\",Ref!$B$36,INDEX(Ranks!$1:$1048576,$A367,R$1))","v":""},{"$f":"IF($A367=\"N/A\",Ref!$B$36,INDEX(Ranks!$1:$1048576,$A367,S$1))","v":""},{"$f":"IF($A367=\"N/A\",Ref!$B$36,INDEX(Ranks!$1:$1048576,$A367,T$1))","v":""},{"$f":"IF($A367=\"N/A\",Ref!$B$36,INDEX(Ranks!$1:$1048576,$A367,U$1))","v":""},{"$f":"IF($A367=\"N/A\",Ref!$B$36,INDEX(Ranks!$1:$1048576,$A367,V$1))","v":""},{"$f":"IF($A367=\"N/A\",Ref!$B$36,INDEX(Ranks!$1:$1048576,$A367,W$1))","v":""},{"$f":"IF($A367=\"N/A\",Ref!$B$36,INDEX(Ranks!$1:$1048576,$A367,X$1))","v":""},{"$f":"IF($A367=\"N/A\",Ref!$B$36,INDEX(Ranks!$1:$1048576,$A367,Y$1))","v":""},{"$f":"IF($A367=\"N/A\",Ref!$B$36,INDEX(Ranks!$1:$1048576,$A367,Z$1))","v":""},{"$f":"IF($A367=\"N/A\",Ref!$B$36,INDEX(Ranks!$1:$1048576,$A367,AA$1))","v":""},{"$f":"IF($A367=\"N/A\",Ref!$B$36,INDEX(Ranks!$1:$1048576,$A367,AB$1))","v":""},{"$f":"IF($A367=\"N/A\",Ref!$B$36,INDEX(Ranks!$1:$1048576,$A367,AC$1))","v":""},{"$f":"IF($A367=\"N/A\",Ref!$B$36,INDEX(Ranks!$1:$1048576,$A367,AD$1))","v":""},{"$f":"IF($A367=\"N/A\",Ref!$B$36,INDEX(Ranks!$1:$1048576,$A367,AE$1))","v":""},{"$f":"IF($A367=\"N/A\",Ref!$B$36,INDEX(Ranks!$1:$1048576,$A367,AF$1))","v":""},{"$f":"IF($A367=\"N/A\",Ref!$B$36,INDEX(Ranks!$1:$1048576,$A367,AG$1))","v":""},{"$f":"IF($A367=\"N/A\",Ref!$B$36,INDEX(Ranks!$1:$1048576,$A367,AH$1))","v":""},{"$f":"IF($A367=\"N/A\",Ref!$B$36,INDEX(Ranks!$1:$1048576,$A367,AI$1))","v":""},{"$f":"IF($A367=\"N/A\",Ref!$B$36,INDEX(Ranks!$1:$1048576,$A367,AJ$1))","v":""},{"$f":"IF($A367=\"N/A\",Ref!$B$36,INDEX(Ranks!$1:$1048576,$A367,AK$1))","v":""},{"$f":"IF($A367=\"N/A\",Ref!$B$36,INDEX(Ranks!$1:$1048576,$A367,AL$1))","v":""},{"$f":"IF($A367=\"N/A\",Ref!$B$36,INDEX(Ranks!$1:$1048576,$A367,AM$1))","v":""},{"$f":"IF($A367=\"N/A\",Ref!$B$36,INDEX(Ranks!$1:$1048576,$A367,AN$1))","v":""},{"$f":"IF($A367=\"N/A\",Ref!$B$36,INDEX(Ranks!$1:$1048576,$A367,AO$1))","v":""},{"$f":"IF($A367=\"N/A\",Ref!$B$36,INDEX(Ranks!$1:$1048576,$A367,AP$1))","v":""},{"$f":"IF($A367=\"N/A\",Ref!$B$36,INDEX(Ranks!$1:$1048576,$A367,AQ$1))","v":""},{"$f":"IF($A367=\"N/A\",Ref!$B$36,INDEX(Ranks!$1:$1048576,$A367,AR$1))","v":""},{"$f":"IF($A367=\"N/A\",Ref!$B$36,INDEX(Ranks!$1:$1048576,$A367,AS$1))","v":""},{"$f":"IF($A367=\"N/A\",Ref!$B$36,INDEX(Ranks!$1:$1048576,$A367,AT$1))","v":""},{"$f":"IF($A367=\"N/A\",Ref!$B$36,INDEX(Ranks!$1:$1048576,$A367,AU$1))","v":""},{"$f":"IF($A367=\"N/A\",Ref!$B$36,INDEX(Ranks!$1:$1048576,$A367,AV$1))","v":""},{"$f":"IF($A367=\"N/A\",Ref!$B$36,INDEX(Ranks!$1:$1048576,$A367,AW$1))","v":""},{"$f":"IF($A367=\"N/A\",Ref!$B$36,INDEX(Ranks!$1:$1048576,$A367,AX$1))","v":""},{"$f":"IF($A367=\"N/A\",Ref!$B$36,INDEX(Ranks!$1:$1048576,$A367,AY$1))","v":""},{"$f":"IF($A367=\"N/A\",Ref!$B$36,INDEX(Ranks!$1:$1048576,$A367,AZ$1))","v":""},{"$f":"IF($A367=\"N/A\",Ref!$B$36,INDEX(Ranks!$1:$1048576,$A367,BA$1))","v":""},{"$f":"IF($A367=\"N/A\",Ref!$B$36,INDEX(Ranks!$1:$1048576,$A367,BB$1))","v":""},{"$f":"IF($A367=\"N/A\",Ref!$B$36,INDEX(Ranks!$1:$1048576,$A367,BC$1))","v":""},{"$f":"IF($A367=\"N/A\",Ref!$B$36,INDEX(Ranks!$1:$1048576,$A367,BD$1))","v":""},{"$f":"IF($A367=\"N/A\",Ref!$B$36,INDEX(Ranks!$1:$1048576,$A367,BE$1))","v":""},{"$f":"IF($A367=\"N/A\",Ref!$B$36,INDEX(Ranks!$1:$1048576,$A367,BF$1))","v":""},{"$f":"IF($A367=\"N/A\",Ref!$B$36,INDEX(Ranks!$1:$1048576,$A367,BG$1))","v":""},{"$f":"IF($A367=\"N/A\",Ref!$B$36,INDEX(Ranks!$1:$1048576,$A367,BH$1))","v":""},{"$f":"IF($A367=\"N/A\",Ref!$B$36,INDEX(Ranks!$1:$1048576,$A367,BI$1))","v":""},{"$f":"IF($A367=\"N/A\",Ref!$B$36,INDEX(Ranks!$1:$1048576,$A367,BJ$1))","v":""},{"$f":"IF($A367=\"N/A\",Ref!$B$36,INDEX(Ranks!$1:$1048576,$A367,BK$1))","v":""},{"$f":"IF($A367=\"N/A\",Ref!$B$36,INDEX(Ranks!$1:$1048576,$A367,BL$1))","v":""},{"$f":"IF($A367=\"N/A\",Ref!$B$36,INDEX(Ranks!$1:$1048576,$A367,BM$1))","v":""},{"$f":"IF($A367=\"N/A\",Ref!$B$36,INDEX(Ranks!$1:$1048576,$A367,BN$1))","v":""},{"$f":"IF($A367=\"N/A\",Ref!$B$36,INDEX(Ranks!$1:$1048576,$A367,BO$1))","v":""},{"$f":"IF($A367=\"N/A\",Ref!$B$36,INDEX(Ranks!$1:$1048576,$A367,BP$1))","v":""},{"$f":"IF($A367=\"N/A\",Ref!$B$36,INDEX(Ranks!$1:$1048576,$A367,BQ$1))","v":""},{"$f":"IF($A367=\"N/A\",Ref!$B$36,INDEX(Ranks!$1:$1048576,$A367,BR$1))","v":""},{"$f":"IF($A367=\"N/A\",Ref!$B$36,INDEX(Ranks!$1:$1048576,$A367,BS$1))","v":""},{"$f":"IF($A367=\"N/A\",Ref!$B$36,INDEX(Ranks!$1:$1048576,$A367,BT$1))","v":""},{"$f":"IF($A367=\"N/A\",Ref!$B$36,INDEX(Ranks!$1:$1048576,$A367,BU$1))","v":""},{"$f":"IF($A367=\"N/A\",Ref!$B$36,INDEX(Ranks!$1:$1048576,$A367,BV$1))","v":""},{"$f":"IF($A367=\"N/A\",Ref!$B$36,INDEX(Ranks!$1:$1048576,$A367,BW$1))","v":""},{"$f":"IF($A367=\"N/A\",Ref!$B$36,INDEX(Ranks!$1:$1048576,$A367,BX$1))","v":""},{"$f":"IF($A367=\"N/A\",Ref!$B$36,INDEX(Ranks!$1:$1048576,$A367,BY$1))","v":""},{"$f":"IF($A367=\"N/A\",Ref!$B$36,INDEX(Ranks!$1:$1048576,$A367,BZ$1))","v":""},{"$f":"IF($A367=\"N/A\",Ref!$B$36,INDEX(Ranks!$1:$1048576,$A367,CA$1))","v":""},{"$f":"IF($A367=\"N/A\",Ref!$B$36,INDEX(Ranks!$1:$1048576,$A367,CB$1))","v":""},{"$f":"IF($A367=\"N/A\",Ref!$B$36,INDEX(Ranks!$1:$1048576,$A367,CC$1))","v":""},{"$f":"IF($A367=\"N/A\",Ref!$B$36,INDEX(Ranks!$1:$1048576,$A367,CD$1))","v":""},{"$f":"IF($A367=\"N/A\",Ref!$B$36,INDEX(Ranks!$1:$1048576,$A367,CE$1))","v":""},{"$f":"IF($A367=\"N/A\",Ref!$B$36,INDEX(Ranks!$1:$1048576,$A367,CF$1))","v":""},{"$f":"IF($A367=\"N/A\",Ref!$B$36,INDEX(Ranks!$1:$1048576,$A367,CG$1))","v":""},{"$f":"IF($A367=\"N/A\",Ref!$B$36,INDEX(Ranks!$1:$1048576,$A367,CH$1))","v":""},{"$f":"IF($A367=\"N/A\",Ref!$B$36,INDEX(Ranks!$1:$1048576,$A367,CI$1))","v":""},{"$f":"IF($A367=\"N/A\",Ref!$B$36,INDEX(Ranks!$1:$1048576,$A367,CJ$1))","v":""},{"$f":"IF($A367=\"N/A\",Ref!$B$36,INDEX(Ranks!$1:$1048576,$A367,CK$1))","v":""},{"$f":"IF($A367=\"N/A\",Ref!$B$36,INDEX(Ranks!$1:$1048576,$A367,CL$1))","v":""},{"$f":"IF($A367=\"N/A\",Ref!$B$36,INDEX(Ranks!$1:$1048576,$A367,CM$1))","v":""},{"$f":"IF($A367=\"N/A\",Ref!$B$36,INDEX(Ranks!$1:$1048576,$A367,CN$1))","v":""},{"$f":"IF($A367=\"N/A\",Ref!$B$36,INDEX(Ranks!$1:$1048576,$A367,CO$1))","v":""},{"$f":"IF($A367=\"N/A\",Ref!$B$36,INDEX(Ranks!$1:$1048576,$A367,CP$1))","v":""},{"$f":"IF($A367=\"N/A\",Ref!$B$36,INDEX(Ranks!$1:$1048576,$A367,CQ$1))","v":""},{"$f":"IF($A367=\"N/A\",Ref!$B$36,INDEX(Ranks!$1:$1048576,$A367,CR$1))","v":""},{"$f":"IF($A367=\"N/A\",Ref!$B$36,INDEX(Ranks!$1:$1048576,$A367,CS$1))","v":""},{"$f":"IF($A367=\"N/A\",Ref!$B$36,INDEX(Ranks!$1:$1048576,$A367,CT$1))","v":""},{"$f":"IF($A367=\"N/A\",Ref!$B$36,INDEX(Ranks!$1:$1048576,$A367,CU$1))","v":""},{"$f":"IF($A367=\"N/A\",Ref!$B$36,INDEX(Ranks!$1:$1048576,$A367,CV$1))","v":""},{"$f":"IF($A367=\"N/A\",Ref!$B$36,INDEX(Ranks!$1:$1048576,$A367,CW$1))","v":""},{"$f":"IF($A367=\"N/A\",Ref!$B$36,INDEX(Ranks!$1:$1048576,$A367,CX$1))","v":""},{"$f":"IF($A367=\"N/A\",Ref!$B$36,INDEX(Ranks!$1:$1048576,$A367,CY$1))","v":""},{"$f":"IF($A367=\"N/A\",Ref!$B$36,INDEX(Ranks!$1:$1048576,$A367,CZ$1))","v":""},{"$f":"IF($A367=\"N/A\",Ref!$B$36,INDEX(Ranks!$1:$1048576,$A367,DA$1))","v":""},{"$f":"IF($A367=\"N/A\",Ref!$B$36,INDEX(Ranks!$1:$1048576,$A367,DB$1))","v":""},{"$f":"IF($A367=\"N/A\",Ref!$B$36,INDEX(Ranks!$1:$1048576,$A367,DC$1))","v":""},{"$f":"IF($A367=\"N/A\",Ref!$B$36,INDEX(Ranks!$1:$1048576,$A367,DD$1))","v":""},{"$f":"IF($A367=\"N/A\",Ref!$B$36,INDEX(Ranks!$1:$1048576,$A367,DE$1))","v":""},{"$f":"IF($A367=\"N/A\",Ref!$B$36,INDEX(Ranks!$1:$1048576,$A367,DF$1))","v":""},{"$f":"IF($A367=\"N/A\",Ref!$B$36,INDEX(Ranks!$1:$1048576,$A367,DG$1))","v":""},{"$f":"IF($A367=\"N/A\",Ref!$B$36,INDEX(Ranks!$1:$1048576,$A367,DH$1))","v":""},{"$f":"IF($A367=\"N/A\",Ref!$B$36,INDEX(Ranks!$1:$1048576,$A367,DI$1))","v":""},{"$f":"IF($A367=\"N/A\",Ref!$B$36,INDEX(Ranks!$1:$1048576,$A367,DJ$1))","v":""},{"$f":"IF($A367=\"N/A\",Ref!$B$36,INDEX(Ranks!$1:$1048576,$A367,DK$1))","v":""},{"$f":"IF($A367=\"N/A\",Ref!$B$36,INDEX(Ranks!$1:$1048576,$A367,DL$1))","v":""},{"$f":"IF($A367=\"N/A\",Ref!$B$36,INDEX(Ranks!$1:$1048576,$A367,DM$1))","v":""},{"$f":"IF($A367=\"N/A\",Ref!$B$36,INDEX(Ranks!$1:$1048576,$A367,DN$1))","v":""},{"$f":"IF($A367=\"N/A\",Ref!$B$36,INDEX(Ranks!$1:$1048576,$A367,DO$1))","v":""},{"$f":"IF($A367=\"N/A\",Ref!$B$36,INDEX(Ranks!$1:$1048576,$A367,DP$1))","v":""},{"$f":"IF($A367=\"N/A\",Ref!$B$36,INDEX(Ranks!$1:$1048576,$A367,DQ$1))","v":""},{"$f":"IF($A367=\"N/A\",Ref!$B$36,INDEX(Ranks!$1:$1048576,$A367,DR$1))","v":""},{"$f":"IF($A367=\"N/A\",Ref!$B$36,INDEX(Ranks!$1:$1048576,$A367,DS$1))","v":""},{"$f":"IF($A367=\"N/A\",Ref!$B$36,INDEX(Ranks!$1:$1048576,$A367,DT$1))","v":""},{"$f":"IF($A367=\"N/A\",Ref!$B$36,INDEX(Ranks!$1:$1048576,$A367,DU$1))","v":""},{"$f":"IF($A367=\"N/A\",Ref!$B$36,INDEX(Ranks!$1:$1048576,$A367,DV$1))","v":""},{"$f":"IF($A367=\"N/A\",Ref!$B$36,INDEX(Ranks!$1:$1048576,$A367,DW$1))","v":""},{"$f":"IF($A367=\"N/A\",Ref!$B$36,INDEX(Ranks!$1:$1048576,$A367,DX$1))","v":""},{"$f":"IF($A367=\"N/A\",Ref!$B$36,INDEX(Ranks!$1:$1048576,$A367,DY$1))","v":""},{"$f":"IF($A367=\"N/A\",Ref!$B$36,INDEX(Ranks!$1:$1048576,$A367,DZ$1))","v":""},{"$f":"IF($A367=\"N/A\",Ref!$B$36,INDEX(Ranks!$1:$1048576,$A367,EA$1))","v":""},{"$f":"IF($A367=\"N/A\",Ref!$B$36,INDEX(Ranks!$1:$1048576,$A367,EB$1))","v":""}]
[{"$f":"IFERROR(MATCH('Portfolio Page'!L368,Ranks!L:L,0),\"N/A\")","v":"N/A"},null,{"$f":"IF($A368=\"N/A\",\"\",INDEX(Ranks!$1:$1048576,$A368,C$1))","v":""},{"$f":"IF($A368=\"N/A\",Ref!$B$36,INDEX(Ranks!$1:$1048576,$A368,D$1))","v":""},{"$f":"IF($A368=\"N/A\",Ref!$B$36,INDEX(Ranks!$1:$1048576,$A368,E$1))","v":""},{"$f":"IF($A368=\"N/A\",\"\",INDEX(Ranks!$1:$1048576,$A368,F$1))","v":""},{"$f":"IF($A368=\"N/A\",\"\",INDEX(Ranks!$1:$1048576,$A368,G$1))","v":""},{"$f":"IF($A368=\"N/A\",\"\",INDEX(Ranks!$1:$1048576,$A368,H$1))","v":""},{"$f":"IF($A368=\"N/A\",\"\",INDEX(Ranks!$1:$1048576,$A368,I$1))","v":""},{"$f":"IF($A368=\"N/A\",\"\",INDEX(Ranks!$1:$1048576,$A368,J$1))","v":""},{"$f":"IF($A368=\"N/A\",\"\",INDEX(Ranks!$1:$1048576,$A368,K$1))","v":""},null,{"$f":"IF($A368=\"N/A\",Ref!$B$36,INDEX(Ranks!$1:$1048576,$A368,M$1))","v":""},{"$f":"IF($A368=\"N/A\",Ref!$B$36,INDEX(Ranks!$1:$1048576,$A368,N$1))","v":""},{"$f":"IF($A368=\"N/A\",Ref!$B$36,INDEX(Ranks!$1:$1048576,$A368,O$1))","v":""},{"$f":"IF($A368=\"N/A\",Ref!$B$36,INDEX(Ranks!$1:$1048576,$A368,P$1))","v":""},{"$f":"IF($A368=\"N/A\",Ref!$B$36,INDEX(Ranks!$1:$1048576,$A368,Q$1))","v":""},{"$f":"IF($A368=\"N/A\",Ref!$B$36,INDEX(Ranks!$1:$1048576,$A368,R$1))","v":""},{"$f":"IF($A368=\"N/A\",Ref!$B$36,INDEX(Ranks!$1:$1048576,$A368,S$1))","v":""},{"$f":"IF($A368=\"N/A\",Ref!$B$36,INDEX(Ranks!$1:$1048576,$A368,T$1))","v":""},{"$f":"IF($A368=\"N/A\",Ref!$B$36,INDEX(Ranks!$1:$1048576,$A368,U$1))","v":""},{"$f":"IF($A368=\"N/A\",Ref!$B$36,INDEX(Ranks!$1:$1048576,$A368,V$1))","v":""},{"$f":"IF($A368=\"N/A\",Ref!$B$36,INDEX(Ranks!$1:$1048576,$A368,W$1))","v":""},{"$f":"IF($A368=\"N/A\",Ref!$B$36,INDEX(Ranks!$1:$1048576,$A368,X$1))","v":""},{"$f":"IF($A368=\"N/A\",Ref!$B$36,INDEX(Ranks!$1:$1048576,$A368,Y$1))","v":""},{"$f":"IF($A368=\"N/A\",Ref!$B$36,INDEX(Ranks!$1:$1048576,$A368,Z$1))","v":""},{"$f":"IF($A368=\"N/A\",Ref!$B$36,INDEX(Ranks!$1:$1048576,$A368,AA$1))","v":""},{"$f":"IF($A368=\"N/A\",Ref!$B$36,INDEX(Ranks!$1:$1048576,$A368,AB$1))","v":""},{"$f":"IF($A368=\"N/A\",Ref!$B$36,INDEX(Ranks!$1:$1048576,$A368,AC$1))","v":""},{"$f":"IF($A368=\"N/A\",Ref!$B$36,INDEX(Ranks!$1:$1048576,$A368,AD$1))","v":""},{"$f":"IF($A368=\"N/A\",Ref!$B$36,INDEX(Ranks!$1:$1048576,$A368,AE$1))","v":""},{"$f":"IF($A368=\"N/A\",Ref!$B$36,INDEX(Ranks!$1:$1048576,$A368,AF$1))","v":""},{"$f":"IF($A368=\"N/A\",Ref!$B$36,INDEX(Ranks!$1:$1048576,$A368,AG$1))","v":""},{"$f":"IF($A368=\"N/A\",Ref!$B$36,INDEX(Ranks!$1:$1048576,$A368,AH$1))","v":""},{"$f":"IF($A368=\"N/A\",Ref!$B$36,INDEX(Ranks!$1:$1048576,$A368,AI$1))","v":""},{"$f":"IF($A368=\"N/A\",Ref!$B$36,INDEX(Ranks!$1:$1048576,$A368,AJ$1))","v":""},{"$f":"IF($A368=\"N/A\",Ref!$B$36,INDEX(Ranks!$1:$1048576,$A368,AK$1))","v":""},{"$f":"IF($A368=\"N/A\",Ref!$B$36,INDEX(Ranks!$1:$1048576,$A368,AL$1))","v":""},{"$f":"IF($A368=\"N/A\",Ref!$B$36,INDEX(Ranks!$1:$1048576,$A368,AM$1))","v":""},{"$f":"IF($A368=\"N/A\",Ref!$B$36,INDEX(Ranks!$1:$1048576,$A368,AN$1))","v":""},{"$f":"IF($A368=\"N/A\",Ref!$B$36,INDEX(Ranks!$1:$1048576,$A368,AO$1))","v":""},{"$f":"IF($A368=\"N/A\",Ref!$B$36,INDEX(Ranks!$1:$1048576,$A368,AP$1))","v":""},{"$f":"IF($A368=\"N/A\",Ref!$B$36,INDEX(Ranks!$1:$1048576,$A368,AQ$1))","v":""},{"$f":"IF($A368=\"N/A\",Ref!$B$36,INDEX(Ranks!$1:$1048576,$A368,AR$1))","v":""},{"$f":"IF($A368=\"N/A\",Ref!$B$36,INDEX(Ranks!$1:$1048576,$A368,AS$1))","v":""},{"$f":"IF($A368=\"N/A\",Ref!$B$36,INDEX(Ranks!$1:$1048576,$A368,AT$1))","v":""},{"$f":"IF($A368=\"N/A\",Ref!$B$36,INDEX(Ranks!$1:$1048576,$A368,AU$1))","v":""},{"$f":"IF($A368=\"N/A\",Ref!$B$36,INDEX(Ranks!$1:$1048576,$A368,AV$1))","v":""},{"$f":"IF($A368=\"N/A\",Ref!$B$36,INDEX(Ranks!$1:$1048576,$A368,AW$1))","v":""},{"$f":"IF($A368=\"N/A\",Ref!$B$36,INDEX(Ranks!$1:$1048576,$A368,AX$1))","v":""},{"$f":"IF($A368=\"N/A\",Ref!$B$36,INDEX(Ranks!$1:$1048576,$A368,AY$1))","v":""},{"$f":"IF($A368=\"N/A\",Ref!$B$36,INDEX(Ranks!$1:$1048576,$A368,AZ$1))","v":""},{"$f":"IF($A368=\"N/A\",Ref!$B$36,INDEX(Ranks!$1:$1048576,$A368,BA$1))","v":""},{"$f":"IF($A368=\"N/A\",Ref!$B$36,INDEX(Ranks!$1:$1048576,$A368,BB$1))","v":""},{"$f":"IF($A368=\"N/A\",Ref!$B$36,INDEX(Ranks!$1:$1048576,$A368,BC$1))","v":""},{"$f":"IF($A368=\"N/A\",Ref!$B$36,INDEX(Ranks!$1:$1048576,$A368,BD$1))","v":""},{"$f":"IF($A368=\"N/A\",Ref!$B$36,INDEX(Ranks!$1:$1048576,$A368,BE$1))","v":""},{"$f":"IF($A368=\"N/A\",Ref!$B$36,INDEX(Ranks!$1:$1048576,$A368,BF$1))","v":""},{"$f":"IF($A368=\"N/A\",Ref!$B$36,INDEX(Ranks!$1:$1048576,$A368,BG$1))","v":""},{"$f":"IF($A368=\"N/A\",Ref!$B$36,INDEX(Ranks!$1:$1048576,$A368,BH$1))","v":""},{"$f":"IF($A368=\"N/A\",Ref!$B$36,INDEX(Ranks!$1:$1048576,$A368,BI$1))","v":""},{"$f":"IF($A368=\"N/A\",Ref!$B$36,INDEX(Ranks!$1:$1048576,$A368,BJ$1))","v":""},{"$f":"IF($A368=\"N/A\",Ref!$B$36,INDEX(Ranks!$1:$1048576,$A368,BK$1))","v":""},{"$f":"IF($A368=\"N/A\",Ref!$B$36,INDEX(Ranks!$1:$1048576,$A368,BL$1))","v":""},{"$f":"IF($A368=\"N/A\",Ref!$B$36,INDEX(Ranks!$1:$1048576,$A368,BM$1))","v":""},{"$f":"IF($A368=\"N/A\",Ref!$B$36,INDEX(Ranks!$1:$1048576,$A368,BN$1))","v":""},{"$f":"IF($A368=\"N/A\",Ref!$B$36,INDEX(Ranks!$1:$1048576,$A368,BO$1))","v":""},{"$f":"IF($A368=\"N/A\",Ref!$B$36,INDEX(Ranks!$1:$1048576,$A368,BP$1))","v":""},{"$f":"IF($A368=\"N/A\",Ref!$B$36,INDEX(Ranks!$1:$1048576,$A368,BQ$1))","v":""},{"$f":"IF($A368=\"N/A\",Ref!$B$36,INDEX(Ranks!$1:$1048576,$A368,BR$1))","v":""},{"$f":"IF($A368=\"N/A\",Ref!$B$36,INDEX(Ranks!$1:$1048576,$A368,BS$1))","v":""},{"$f":"IF($A368=\"N/A\",Ref!$B$36,INDEX(Ranks!$1:$1048576,$A368,BT$1))","v":""},{"$f":"IF($A368=\"N/A\",Ref!$B$36,INDEX(Ranks!$1:$1048576,$A368,BU$1))","v":""},{"$f":"IF($A368=\"N/A\",Ref!$B$36,INDEX(Ranks!$1:$1048576,$A368,BV$1))","v":""},{"$f":"IF($A368=\"N/A\",Ref!$B$36,INDEX(Ranks!$1:$1048576,$A368,BW$1))","v":""},{"$f":"IF($A368=\"N/A\",Ref!$B$36,INDEX(Ranks!$1:$1048576,$A368,BX$1))","v":""},{"$f":"IF($A368=\"N/A\",Ref!$B$36,INDEX(Ranks!$1:$1048576,$A368,BY$1))","v":""},{"$f":"IF($A368=\"N/A\",Ref!$B$36,INDEX(Ranks!$1:$1048576,$A368,BZ$1))","v":""},{"$f":"IF($A368=\"N/A\",Ref!$B$36,INDEX(Ranks!$1:$1048576,$A368,CA$1))","v":""},{"$f":"IF($A368=\"N/A\",Ref!$B$36,INDEX(Ranks!$1:$1048576,$A368,CB$1))","v":""},{"$f":"IF($A368=\"N/A\",Ref!$B$36,INDEX(Ranks!$1:$1048576,$A368,CC$1))","v":""},{"$f":"IF($A368=\"N/A\",Ref!$B$36,INDEX(Ranks!$1:$1048576,$A368,CD$1))","v":""},{"$f":"IF($A368=\"N/A\",Ref!$B$36,INDEX(Ranks!$1:$1048576,$A368,CE$1))","v":""},{"$f":"IF($A368=\"N/A\",Ref!$B$36,INDEX(Ranks!$1:$1048576,$A368,CF$1))","v":""},{"$f":"IF($A368=\"N/A\",Ref!$B$36,INDEX(Ranks!$1:$1048576,$A368,CG$1))","v":""},{"$f":"IF($A368=\"N/A\",Ref!$B$36,INDEX(Ranks!$1:$1048576,$A368,CH$1))","v":""},{"$f":"IF($A368=\"N/A\",Ref!$B$36,INDEX(Ranks!$1:$1048576,$A368,CI$1))","v":""},{"$f":"IF($A368=\"N/A\",Ref!$B$36,INDEX(Ranks!$1:$1048576,$A368,CJ$1))","v":""},{"$f":"IF($A368=\"N/A\",Ref!$B$36,INDEX(Ranks!$1:$1048576,$A368,CK$1))","v":""},{"$f":"IF($A368=\"N/A\",Ref!$B$36,INDEX(Ranks!$1:$1048576,$A368,CL$1))","v":""},{"$f":"IF($A368=\"N/A\",Ref!$B$36,INDEX(Ranks!$1:$1048576,$A368,CM$1))","v":""},{"$f":"IF($A368=\"N/A\",Ref!$B$36,INDEX(Ranks!$1:$1048576,$A368,CN$1))","v":""},{"$f":"IF($A368=\"N/A\",Ref!$B$36,INDEX(Ranks!$1:$1048576,$A368,CO$1))","v":""},{"$f":"IF($A368=\"N/A\",Ref!$B$36,INDEX(Ranks!$1:$1048576,$A368,CP$1))","v":""},{"$f":"IF($A368=\"N/A\",Ref!$B$36,INDEX(Ranks!$1:$1048576,$A368,CQ$1))","v":""},{"$f":"IF($A368=\"N/A\",Ref!$B$36,INDEX(Ranks!$1:$1048576,$A368,CR$1))","v":""},{"$f":"IF($A368=\"N/A\",Ref!$B$36,INDEX(Ranks!$1:$1048576,$A368,CS$1))","v":""},{"$f":"IF($A368=\"N/A\",Ref!$B$36,INDEX(Ranks!$1:$1048576,$A368,CT$1))","v":""},{"$f":"IF($A368=\"N/A\",Ref!$B$36,INDEX(Ranks!$1:$1048576,$A368,CU$1))","v":""},{"$f":"IF($A368=\"N/A\",Ref!$B$36,INDEX(Ranks!$1:$1048576,$A368,CV$1))","v":""},{"$f":"IF($A368=\"N/A\",Ref!$B$36,INDEX(Ranks!$1:$1048576,$A368,CW$1))","v":""},{"$f":"IF($A368=\"N/A\",Ref!$B$36,INDEX(Ranks!$1:$1048576,$A368,CX$1))","v":""},{"$f":"IF($A368=\"N/A\",Ref!$B$36,INDEX(Ranks!$1:$1048576,$A368,CY$1))","v":""},{"$f":"IF($A368=\"N/A\",Ref!$B$36,INDEX(Ranks!$1:$1048576,$A368,CZ$1))","v":""},{"$f":"IF($A368=\"N/A\",Ref!$B$36,INDEX(Ranks!$1:$1048576,$A368,DA$1))","v":""},{"$f":"IF($A368=\"N/A\",Ref!$B$36,INDEX(Ranks!$1:$1048576,$A368,DB$1))","v":""},{"$f":"IF($A368=\"N/A\",Ref!$B$36,INDEX(Ranks!$1:$1048576,$A368,DC$1))","v":""},{"$f":"IF($A368=\"N/A\",Ref!$B$36,INDEX(Ranks!$1:$1048576,$A368,DD$1))","v":""},{"$f":"IF($A368=\"N/A\",Ref!$B$36,INDEX(Ranks!$1:$1048576,$A368,DE$1))","v":""},{"$f":"IF($A368=\"N/A\",Ref!$B$36,INDEX(Ranks!$1:$1048576,$A368,DF$1))","v":""},{"$f":"IF($A368=\"N/A\",Ref!$B$36,INDEX(Ranks!$1:$1048576,$A368,DG$1))","v":""},{"$f":"IF($A368=\"N/A\",Ref!$B$36,INDEX(Ranks!$1:$1048576,$A368,DH$1))","v":""},{"$f":"IF($A368=\"N/A\",Ref!$B$36,INDEX(Ranks!$1:$1048576,$A368,DI$1))","v":""},{"$f":"IF($A368=\"N/A\",Ref!$B$36,INDEX(Ranks!$1:$1048576,$A368,DJ$1))","v":""},{"$f":"IF($A368=\"N/A\",Ref!$B$36,INDEX(Ranks!$1:$1048576,$A368,DK$1))","v":""},{"$f":"IF($A368=\"N/A\",Ref!$B$36,INDEX(Ranks!$1:$1048576,$A368,DL$1))","v":""},{"$f":"IF($A368=\"N/A\",Ref!$B$36,INDEX(Ranks!$1:$1048576,$A368,DM$1))","v":""},{"$f":"IF($A368=\"N/A\",Ref!$B$36,INDEX(Ranks!$1:$1048576,$A368,DN$1))","v":""},{"$f":"IF($A368=\"N/A\",Ref!$B$36,INDEX(Ranks!$1:$1048576,$A368,DO$1))","v":""},{"$f":"IF($A368=\"N/A\",Ref!$B$36,INDEX(Ranks!$1:$1048576,$A368,DP$1))","v":""},{"$f":"IF($A368=\"N/A\",Ref!$B$36,INDEX(Ranks!$1:$1048576,$A368,DQ$1))","v":""},{"$f":"IF($A368=\"N/A\",Ref!$B$36,INDEX(Ranks!$1:$1048576,$A368,DR$1))","v":""},{"$f":"IF($A368=\"N/A\",Ref!$B$36,INDEX(Ranks!$1:$1048576,$A368,DS$1))","v":""},{"$f":"IF($A368=\"N/A\",Ref!$B$36,INDEX(Ranks!$1:$1048576,$A368,DT$1))","v":""},{"$f":"IF($A368=\"N/A\",Ref!$B$36,INDEX(Ranks!$1:$1048576,$A368,DU$1))","v":""},{"$f":"IF($A368=\"N/A\",Ref!$B$36,INDEX(Ranks!$1:$1048576,$A368,DV$1))","v":""},{"$f":"IF($A368=\"N/A\",Ref!$B$36,INDEX(Ranks!$1:$1048576,$A368,DW$1))","v":""},{"$f":"IF($A368=\"N/A\",Ref!$B$36,INDEX(Ranks!$1:$1048576,$A368,DX$1))","v":""},{"$f":"IF($A368=\"N/A\",Ref!$B$36,INDEX(Ranks!$1:$1048576,$A368,DY$1))","v":""},{"$f":"IF($A368=\"N/A\",Ref!$B$36,INDEX(Ranks!$1:$1048576,$A368,DZ$1))","v":""},{"$f":"IF($A368=\"N/A\",Ref!$B$36,INDEX(Ranks!$1:$1048576,$A368,EA$1))","v":""},{"$f":"IF($A368=\"N/A\",Ref!$B$36,INDEX(Ranks!$1:$1048576,$A368,EB$1))","v":""}]
[{"$f":"IFERROR(MATCH('Portfolio Page'!L369,Ranks!L:L,0),\"N/A\")","v":"N/A"},null,{"$f":"IF($A369=\"N/A\",\"\",INDEX(Ranks!$1:$1048576,$A369,C$1))","v":""},{"$f":"IF($A369=\"N/A\",Ref!$B$36,INDEX(Ranks!$1:$1048576,$A369,D$1))","v":""},{"$f":"IF($A369=\"N/A\",Ref!$B$36,INDEX(Ranks!$1:$1048576,$A369,E$1))","v":""},{"$f":"IF($A369=\"N/A\",\"\",INDEX(Ranks!$1:$1048576,$A369,F$1))","v":""},{"$f":"IF($A369=\"N/A\",\"\",INDEX(Ranks!$1:$1048576,$A369,G$1))","v":""},{"$f":"IF($A369=\"N/A\",\"\",INDEX(Ranks!$1:$1048576,$A369,H$1))","v":""},{"$f":"IF($A369=\"N/A\",\"\",INDEX(Ranks!$1:$1048576,$A369,I$1))","v":""},{"$f":"IF($A369=\"N/A\",\"\",INDEX(Ranks!$1:$1048576,$A369,J$1))","v":""},{"$f":"IF($A369=\"N/A\",\"\",INDEX(Ranks!$1:$1048576,$A369,K$1))","v":""},null,{"$f":"IF($A369=\"N/A\",Ref!$B$36,INDEX(Ranks!$1:$1048576,$A369,M$1))","v":""},{"$f":"IF($A369=\"N/A\",Ref!$B$36,INDEX(Ranks!$1:$1048576,$A369,N$1))","v":""},{"$f":"IF($A369=\"N/A\",Ref!$B$36,INDEX(Ranks!$1:$1048576,$A369,O$1))","v":""},{"$f":"IF($A369=\"N/A\",Ref!$B$36,INDEX(Ranks!$1:$1048576,$A369,P$1))","v":""},{"$f":"IF($A369=\"N/A\",Ref!$B$36,INDEX(Ranks!$1:$1048576,$A369,Q$1))","v":""},{"$f":"IF($A369=\"N/A\",Ref!$B$36,INDEX(Ranks!$1:$1048576,$A369,R$1))","v":""},{"$f":"IF($A369=\"N/A\",Ref!$B$36,INDEX(Ranks!$1:$1048576,$A369,S$1))","v":""},{"$f":"IF($A369=\"N/A\",Ref!$B$36,INDEX(Ranks!$1:$1048576,$A369,T$1))","v":""},{"$f":"IF($A369=\"N/A\",Ref!$B$36,INDEX(Ranks!$1:$1048576,$A369,U$1))","v":""},{"$f":"IF($A369=\"N/A\",Ref!$B$36,INDEX(Ranks!$1:$1048576,$A369,V$1))","v":""},{"$f":"IF($A369=\"N/A\",Ref!$B$36,INDEX(Ranks!$1:$1048576,$A369,W$1))","v":""},{"$f":"IF($A369=\"N/A\",Ref!$B$36,INDEX(Ranks!$1:$1048576,$A369,X$1))","v":""},{"$f":"IF($A369=\"N/A\",Ref!$B$36,INDEX(Ranks!$1:$1048576,$A369,Y$1))","v":""},{"$f":"IF($A369=\"N/A\",Ref!$B$36,INDEX(Ranks!$1:$1048576,$A369,Z$1))","v":""},{"$f":"IF($A369=\"N/A\",Ref!$B$36,INDEX(Ranks!$1:$1048576,$A369,AA$1))","v":""},{"$f":"IF($A369=\"N/A\",Ref!$B$36,INDEX(Ranks!$1:$1048576,$A369,AB$1))","v":""},{"$f":"IF($A369=\"N/A\",Ref!$B$36,INDEX(Ranks!$1:$1048576,$A369,AC$1))","v":""},{"$f":"IF($A369=\"N/A\",Ref!$B$36,INDEX(Ranks!$1:$1048576,$A369,AD$1))","v":""},{"$f":"IF($A369=\"N/A\",Ref!$B$36,INDEX(Ranks!$1:$1048576,$A369,AE$1))","v":""},{"$f":"IF($A369=\"N/A\",Ref!$B$36,INDEX(Ranks!$1:$1048576,$A369,AF$1))","v":""},{"$f":"IF($A369=\"N/A\",Ref!$B$36,INDEX(Ranks!$1:$1048576,$A369,AG$1))","v":""},{"$f":"IF($A369=\"N/A\",Ref!$B$36,INDEX(Ranks!$1:$1048576,$A369,AH$1))","v":""},{"$f":"IF($A369=\"N/A\",Ref!$B$36,INDEX(Ranks!$1:$1048576,$A369,AI$1))","v":""},{"$f":"IF($A369=\"N/A\",Ref!$B$36,INDEX(Ranks!$1:$1048576,$A369,AJ$1))","v":""},{"$f":"IF($A369=\"N/A\",Ref!$B$36,INDEX(Ranks!$1:$1048576,$A369,AK$1))","v":""},{"$f":"IF($A369=\"N/A\",Ref!$B$36,INDEX(Ranks!$1:$1048576,$A369,AL$1))","v":""},{"$f":"IF($A369=\"N/A\",Ref!$B$36,INDEX(Ranks!$1:$1048576,$A369,AM$1))","v":""},{"$f":"IF($A369=\"N/A\",Ref!$B$36,INDEX(Ranks!$1:$1048576,$A369,AN$1))","v":""},{"$f":"IF($A369=\"N/A\",Ref!$B$36,INDEX(Ranks!$1:$1048576,$A369,AO$1))","v":""},{"$f":"IF($A369=\"N/A\",Ref!$B$36,INDEX(Ranks!$1:$1048576,$A369,AP$1))","v":""},{"$f":"IF($A369=\"N/A\",Ref!$B$36,INDEX(Ranks!$1:$1048576,$A369,AQ$1))","v":""},{"$f":"IF($A369=\"N/A\",Ref!$B$36,INDEX(Ranks!$1:$1048576,$A369,AR$1))","v":""},{"$f":"IF($A369=\"N/A\",Ref!$B$36,INDEX(Ranks!$1:$1048576,$A369,AS$1))","v":""},{"$f":"IF($A369=\"N/A\",Ref!$B$36,INDEX(Ranks!$1:$1048576,$A369,AT$1))","v":""},{"$f":"IF($A369=\"N/A\",Ref!$B$36,INDEX(Ranks!$1:$1048576,$A369,AU$1))","v":""},{"$f":"IF($A369=\"N/A\",Ref!$B$36,INDEX(Ranks!$1:$1048576,$A369,AV$1))","v":""},{"$f":"IF($A369=\"N/A\",Ref!$B$36,INDEX(Ranks!$1:$1048576,$A369,AW$1))","v":""},{"$f":"IF($A369=\"N/A\",Ref!$B$36,INDEX(Ranks!$1:$1048576,$A369,AX$1))","v":""},{"$f":"IF($A369=\"N/A\",Ref!$B$36,INDEX(Ranks!$1:$1048576,$A369,AY$1))","v":""},{"$f":"IF($A369=\"N/A\",Ref!$B$36,INDEX(Ranks!$1:$1048576,$A369,AZ$1))","v":""},{"$f":"IF($A369=\"N/A\",Ref!$B$36,INDEX(Ranks!$1:$1048576,$A369,BA$1))","v":""},{"$f":"IF($A369=\"N/A\",Ref!$B$36,INDEX(Ranks!$1:$1048576,$A369,BB$1))","v":""},{"$f":"IF($A369=\"N/A\",Ref!$B$36,INDEX(Ranks!$1:$1048576,$A369,BC$1))","v":""},{"$f":"IF($A369=\"N/A\",Ref!$B$36,INDEX(Ranks!$1:$1048576,$A369,BD$1))","v":""},{"$f":"IF($A369=\"N/A\",Ref!$B$36,INDEX(Ranks!$1:$1048576,$A369,BE$1))","v":""},{"$f":"IF($A369=\"N/A\",Ref!$B$36,INDEX(Ranks!$1:$1048576,$A369,BF$1))","v":""},{"$f":"IF($A369=\"N/A\",Ref!$B$36,INDEX(Ranks!$1:$1048576,$A369,BG$1))","v":""},{"$f":"IF($A369=\"N/A\",Ref!$B$36,INDEX(Ranks!$1:$1048576,$A369,BH$1))","v":""},{"$f":"IF($A369=\"N/A\",Ref!$B$36,INDEX(Ranks!$1:$1048576,$A369,BI$1))","v":""},{"$f":"IF($A369=\"N/A\",Ref!$B$36,INDEX(Ranks!$1:$1048576,$A369,BJ$1))","v":""},{"$f":"IF($A369=\"N/A\",Ref!$B$36,INDEX(Ranks!$1:$1048576,$A369,BK$1))","v":""},{"$f":"IF($A369=\"N/A\",Ref!$B$36,INDEX(Ranks!$1:$1048576,$A369,BL$1))","v":""},{"$f":"IF($A369=\"N/A\",Ref!$B$36,INDEX(Ranks!$1:$1048576,$A369,BM$1))","v":""},{"$f":"IF($A369=\"N/A\",Ref!$B$36,INDEX(Ranks!$1:$1048576,$A369,BN$1))","v":""},{"$f":"IF($A369=\"N/A\",Ref!$B$36,INDEX(Ranks!$1:$1048576,$A369,BO$1))","v":""},{"$f":"IF($A369=\"N/A\",Ref!$B$36,INDEX(Ranks!$1:$1048576,$A369,BP$1))","v":""},{"$f":"IF($A369=\"N/A\",Ref!$B$36,INDEX(Ranks!$1:$1048576,$A369,BQ$1))","v":""},{"$f":"IF($A369=\"N/A\",Ref!$B$36,INDEX(Ranks!$1:$1048576,$A369,BR$1))","v":""},{"$f":"IF($A369=\"N/A\",Ref!$B$36,INDEX(Ranks!$1:$1048576,$A369,BS$1))","v":""},{"$f":"IF($A369=\"N/A\",Ref!$B$36,INDEX(Ranks!$1:$1048576,$A369,BT$1))","v":""},{"$f":"IF($A369=\"N/A\",Ref!$B$36,INDEX(Ranks!$1:$1048576,$A369,BU$1))","v":""},{"$f":"IF($A369=\"N/A\",Ref!$B$36,INDEX(Ranks!$1:$1048576,$A369,BV$1))","v":""},{"$f":"IF($A369=\"N/A\",Ref!$B$36,INDEX(Ranks!$1:$1048576,$A369,BW$1))","v":""},{"$f":"IF($A369=\"N/A\",Ref!$B$36,INDEX(Ranks!$1:$1048576,$A369,BX$1))","v":""},{"$f":"IF($A369=\"N/A\",Ref!$B$36,INDEX(Ranks!$1:$1048576,$A369,BY$1))","v":""},{"$f":"IF($A369=\"N/A\",Ref!$B$36,INDEX(Ranks!$1:$1048576,$A369,BZ$1))","v":""},{"$f":"IF($A369=\"N/A\",Ref!$B$36,INDEX(Ranks!$1:$1048576,$A369,CA$1))","v":""},{"$f":"IF($A369=\"N/A\",Ref!$B$36,INDEX(Ranks!$1:$1048576,$A369,CB$1))","v":""},{"$f":"IF($A369=\"N/A\",Ref!$B$36,INDEX(Ranks!$1:$1048576,$A369,CC$1))","v":""},{"$f":"IF($A369=\"N/A\",Ref!$B$36,INDEX(Ranks!$1:$1048576,$A369,CD$1))","v":""},{"$f":"IF($A369=\"N/A\",Ref!$B$36,INDEX(Ranks!$1:$1048576,$A369,CE$1))","v":""},{"$f":"IF($A369=\"N/A\",Ref!$B$36,INDEX(Ranks!$1:$1048576,$A369,CF$1))","v":""},{"$f":"IF($A369=\"N/A\",Ref!$B$36,INDEX(Ranks!$1:$1048576,$A369,CG$1))","v":""},{"$f":"IF($A369=\"N/A\",Ref!$B$36,INDEX(Ranks!$1:$1048576,$A369,CH$1))","v":""},{"$f":"IF($A369=\"N/A\",Ref!$B$36,INDEX(Ranks!$1:$1048576,$A369,CI$1))","v":""},{"$f":"IF($A369=\"N/A\",Ref!$B$36,INDEX(Ranks!$1:$1048576,$A369,CJ$1))","v":""},{"$f":"IF($A369=\"N/A\",Ref!$B$36,INDEX(Ranks!$1:$1048576,$A369,CK$1))","v":""},{"$f":"IF($A369=\"N/A\",Ref!$B$36,INDEX(Ranks!$1:$1048576,$A369,CL$1))","v":""},{"$f":"IF($A369=\"N/A\",Ref!$B$36,INDEX(Ranks!$1:$1048576,$A369,CM$1))","v":""},{"$f":"IF($A369=\"N/A\",Ref!$B$36,INDEX(Ranks!$1:$1048576,$A369,CN$1))","v":""},{"$f":"IF($A369=\"N/A\",Ref!$B$36,INDEX(Ranks!$1:$1048576,$A369,CO$1))","v":""},{"$f":"IF($A369=\"N/A\",Ref!$B$36,INDEX(Ranks!$1:$1048576,$A369,CP$1))","v":""},{"$f":"IF($A369=\"N/A\",Ref!$B$36,INDEX(Ranks!$1:$1048576,$A369,CQ$1))","v":""},{"$f":"IF($A369=\"N/A\",Ref!$B$36,INDEX(Ranks!$1:$1048576,$A369,CR$1))","v":""},{"$f":"IF($A369=\"N/A\",Ref!$B$36,INDEX(Ranks!$1:$1048576,$A369,CS$1))","v":""},{"$f":"IF($A369=\"N/A\",Ref!$B$36,INDEX(Ranks!$1:$1048576,$A369,CT$1))","v":""},{"$f":"IF($A369=\"N/A\",Ref!$B$36,INDEX(Ranks!$1:$1048576,$A369,CU$1))","v":""},{"$f":"IF($A369=\"N/A\",Ref!$B$36,INDEX(Ranks!$1:$1048576,$A369,CV$1))","v":""},{"$f":"IF($A369=\"N/A\",Ref!$B$36,INDEX(Ranks!$1:$1048576,$A369,CW$1))","v":""},{"$f":"IF($A369=\"N/A\",Ref!$B$36,INDEX(Ranks!$1:$1048576,$A369,CX$1))","v":""},{"$f":"IF($A369=\"N/A\",Ref!$B$36,INDEX(Ranks!$1:$1048576,$A369,CY$1))","v":""},{"$f":"IF($A369=\"N/A\",Ref!$B$36,INDEX(Ranks!$1:$1048576,$A369,CZ$1))","v":""},{"$f":"IF($A369=\"N/A\",Ref!$B$36,INDEX(Ranks!$1:$1048576,$A369,DA$1))","v":""},{"$f":"IF($A369=\"N/A\",Ref!$B$36,INDEX(Ranks!$1:$1048576,$A369,DB$1))","v":""},{"$f":"IF($A369=\"N/A\",Ref!$B$36,INDEX(Ranks!$1:$1048576,$A369,DC$1))","v":""},{"$f":"IF($A369=\"N/A\",Ref!$B$36,INDEX(Ranks!$1:$1048576,$A369,DD$1))","v":""},{"$f":"IF($A369=\"N/A\",Ref!$B$36,INDEX(Ranks!$1:$1048576,$A369,DE$1))","v":""},{"$f":"IF($A369=\"N/A\",Ref!$B$36,INDEX(Ranks!$1:$1048576,$A369,DF$1))","v":""},{"$f":"IF($A369=\"N/A\",Ref!$B$36,INDEX(Ranks!$1:$1048576,$A369,DG$1))","v":""},{"$f":"IF($A369=\"N/A\",Ref!$B$36,INDEX(Ranks!$1:$1048576,$A369,DH$1))","v":""},{"$f":"IF($A369=\"N/A\",Ref!$B$36,INDEX(Ranks!$1:$1048576,$A369,DI$1))","v":""},{"$f":"IF($A369=\"N/A\",Ref!$B$36,INDEX(Ranks!$1:$1048576,$A369,DJ$1))","v":""},{"$f":"IF($A369=\"N/A\",Ref!$B$36,INDEX(Ranks!$1:$1048576,$A369,DK$1))","v":""},{"$f":"IF($A369=\"N/A\",Ref!$B$36,INDEX(Ranks!$1:$1048576,$A369,DL$1))","v":""},{"$f":"IF($A369=\"N/A\",Ref!$B$36,INDEX(Ranks!$1:$1048576,$A369,DM$1))","v":""},{"$f":"IF($A369=\"N/A\",Ref!$B$36,INDEX(Ranks!$1:$1048576,$A369,DN$1))","v":""},{"$f":"IF($A369=\"N/A\",Ref!$B$36,INDEX(Ranks!$1:$1048576,$A369,DO$1))","v":""},{"$f":"IF($A369=\"N/A\",Ref!$B$36,INDEX(Ranks!$1:$1048576,$A369,DP$1))","v":""},{"$f":"IF($A369=\"N/A\",Ref!$B$36,INDEX(Ranks!$1:$1048576,$A369,DQ$1))","v":""},{"$f":"IF($A369=\"N/A\",Ref!$B$36,INDEX(Ranks!$1:$1048576,$A369,DR$1))","v":""},{"$f":"IF($A369=\"N/A\",Ref!$B$36,INDEX(Ranks!$1:$1048576,$A369,DS$1))","v":""},{"$f":"IF($A369=\"N/A\",Ref!$B$36,INDEX(Ranks!$1:$1048576,$A369,DT$1))","v":""},{"$f":"IF($A369=\"N/A\",Ref!$B$36,INDEX(Ranks!$1:$1048576,$A369,DU$1))","v":""},{"$f":"IF($A369=\"N/A\",Ref!$B$36,INDEX(Ranks!$1:$1048576,$A369,DV$1))","v":""},{"$f":"IF($A369=\"N/A\",Ref!$B$36,INDEX(Ranks!$1:$1048576,$A369,DW$1))","v":""},{"$f":"IF($A369=\"N/A\",Ref!$B$36,INDEX(Ranks!$1:$1048576,$A369,DX$1))","v":""},{"$f":"IF($A369=\"N/A\",Ref!$B$36,INDEX(Ranks!$1:$1048576,$A369,DY$1))","v":""},{"$f":"IF($A369=\"N/A\",Ref!$B$36,INDEX(Ranks!$1:$1048576,$A369,DZ$1))","v":""},{"$f":"IF($A369=\"N/A\",Ref!$B$36,INDEX(Ranks!$1:$1048576,$A369,EA$1))","v":""},{"$f":"IF($A369=\"N/A\",Ref!$B$36,INDEX(Ranks!$1:$1048576,$A369,EB$1))","v":""}]
[{"$f":"IFERROR(MATCH('Portfolio Page'!L370,Ranks!L:L,0),\"N/A\")","v":"N/A"},null,{"$f":"IF($A370=\"N/A\",\"\",INDEX(Ranks!$1:$1048576,$A370,C$1))","v":""},{"$f":"IF($A370=\"N/A\",Ref!$B$36,INDEX(Ranks!$1:$1048576,$A370,D$1))","v":""},{"$f":"IF($A370=\"N/A\",Ref!$B$36,INDEX(Ranks!$1:$1048576,$A370,E$1))","v":""},{"$f":"IF($A370=\"N/A\",\"\",INDEX(Ranks!$1:$1048576,$A370,F$1))","v":""},{"$f":"IF($A370=\"N/A\",\"\",INDEX(Ranks!$1:$1048576,$A370,G$1))","v":""},{"$f":"IF($A370=\"N/A\",\"\",INDEX(Ranks!$1:$1048576,$A370,H$1))","v":""},{"$f":"IF($A370=\"N/A\",\"\",INDEX(Ranks!$1:$1048576,$A370,I$1))","v":""},{"$f":"IF($A370=\"N/A\",\"\",INDEX(Ranks!$1:$1048576,$A370,J$1))","v":""},{"$f":"IF($A370=\"N/A\",\"\",INDEX(Ranks!$1:$1048576,$A370,K$1))","v":""},null,{"$f":"IF($A370=\"N/A\",Ref!$B$36,INDEX(Ranks!$1:$1048576,$A370,M$1))","v":""},{"$f":"IF($A370=\"N/A\",Ref!$B$36,INDEX(Ranks!$1:$1048576,$A370,N$1))","v":""},{"$f":"IF($A370=\"N/A\",Ref!$B$36,INDEX(Ranks!$1:$1048576,$A370,O$1))","v":""},{"$f":"IF($A370=\"N/A\",Ref!$B$36,INDEX(Ranks!$1:$1048576,$A370,P$1))","v":""},{"$f":"IF($A370=\"N/A\",Ref!$B$36,INDEX(Ranks!$1:$1048576,$A370,Q$1))","v":""},{"$f":"IF($A370=\"N/A\",Ref!$B$36,INDEX(Ranks!$1:$1048576,$A370,R$1))","v":""},{"$f":"IF($A370=\"N/A\",Ref!$B$36,INDEX(Ranks!$1:$1048576,$A370,S$1))","v":""},{"$f":"IF($A370=\"N/A\",Ref!$B$36,INDEX(Ranks!$1:$1048576,$A370,T$1))","v":""},{"$f":"IF($A370=\"N/A\",Ref!$B$36,INDEX(Ranks!$1:$1048576,$A370,U$1))","v":""},{"$f":"IF($A370=\"N/A\",Ref!$B$36,INDEX(Ranks!$1:$1048576,$A370,V$1))","v":""},{"$f":"IF($A370=\"N/A\",Ref!$B$36,INDEX(Ranks!$1:$1048576,$A370,W$1))","v":""},{"$f":"IF($A370=\"N/A\",Ref!$B$36,INDEX(Ranks!$1:$1048576,$A370,X$1))","v":""},{"$f":"IF($A370=\"N/A\",Ref!$B$36,INDEX(Ranks!$1:$1048576,$A370,Y$1))","v":""},{"$f":"IF($A370=\"N/A\",Ref!$B$36,INDEX(Ranks!$1:$1048576,$A370,Z$1))","v":""},{"$f":"IF($A370=\"N/A\",Ref!$B$36,INDEX(Ranks!$1:$1048576,$A370,AA$1))","v":""},{"$f":"IF($A370=\"N/A\",Ref!$B$36,INDEX(Ranks!$1:$1048576,$A370,AB$1))","v":""},{"$f":"IF($A370=\"N/A\",Ref!$B$36,INDEX(Ranks!$1:$1048576,$A370,AC$1))","v":""},{"$f":"IF($A370=\"N/A\",Ref!$B$36,INDEX(Ranks!$1:$1048576,$A370,AD$1))","v":""},{"$f":"IF($A370=\"N/A\",Ref!$B$36,INDEX(Ranks!$1:$1048576,$A370,AE$1))","v":""},{"$f":"IF($A370=\"N/A\",Ref!$B$36,INDEX(Ranks!$1:$1048576,$A370,AF$1))","v":""},{"$f":"IF($A370=\"N/A\",Ref!$B$36,INDEX(Ranks!$1:$1048576,$A370,AG$1))","v":""},{"$f":"IF($A370=\"N/A\",Ref!$B$36,INDEX(Ranks!$1:$1048576,$A370,AH$1))","v":""},{"$f":"IF($A370=\"N/A\",Ref!$B$36,INDEX(Ranks!$1:$1048576,$A370,AI$1))","v":""},{"$f":"IF($A370=\"N/A\",Ref!$B$36,INDEX(Ranks!$1:$1048576,$A370,AJ$1))","v":""},{"$f":"IF($A370=\"N/A\",Ref!$B$36,INDEX(Ranks!$1:$1048576,$A370,AK$1))","v":""},{"$f":"IF($A370=\"N/A\",Ref!$B$36,INDEX(Ranks!$1:$1048576,$A370,AL$1))","v":""},{"$f":"IF($A370=\"N/A\",Ref!$B$36,INDEX(Ranks!$1:$1048576,$A370,AM$1))","v":""},{"$f":"IF($A370=\"N/A\",Ref!$B$36,INDEX(Ranks!$1:$1048576,$A370,AN$1))","v":""},{"$f":"IF($A370=\"N/A\",Ref!$B$36,INDEX(Ranks!$1:$1048576,$A370,AO$1))","v":""},{"$f":"IF($A370=\"N/A\",Ref!$B$36,INDEX(Ranks!$1:$1048576,$A370,AP$1))","v":""},{"$f":"IF($A370=\"N/A\",Ref!$B$36,INDEX(Ranks!$1:$1048576,$A370,AQ$1))","v":""},{"$f":"IF($A370=\"N/A\",Ref!$B$36,INDEX(Ranks!$1:$1048576,$A370,AR$1))","v":""},{"$f":"IF($A370=\"N/A\",Ref!$B$36,INDEX(Ranks!$1:$1048576,$A370,AS$1))","v":""},{"$f":"IF($A370=\"N/A\",Ref!$B$36,INDEX(Ranks!$1:$1048576,$A370,AT$1))","v":""},{"$f":"IF($A370=\"N/A\",Ref!$B$36,INDEX(Ranks!$1:$1048576,$A370,AU$1))","v":""},{"$f":"IF($A370=\"N/A\",Ref!$B$36,INDEX(Ranks!$1:$1048576,$A370,AV$1))","v":""},{"$f":"IF($A370=\"N/A\",Ref!$B$36,INDEX(Ranks!$1:$1048576,$A370,AW$1))","v":""},{"$f":"IF($A370=\"N/A\",Ref!$B$36,INDEX(Ranks!$1:$1048576,$A370,AX$1))","v":""},{"$f":"IF($A370=\"N/A\",Ref!$B$36,INDEX(Ranks!$1:$1048576,$A370,AY$1))","v":""},{"$f":"IF($A370=\"N/A\",Ref!$B$36,INDEX(Ranks!$1:$1048576,$A370,AZ$1))","v":""},{"$f":"IF($A370=\"N/A\",Ref!$B$36,INDEX(Ranks!$1:$1048576,$A370,BA$1))","v":""},{"$f":"IF($A370=\"N/A\",Ref!$B$36,INDEX(Ranks!$1:$1048576,$A370,BB$1))","v":""},{"$f":"IF($A370=\"N/A\",Ref!$B$36,INDEX(Ranks!$1:$1048576,$A370,BC$1))","v":""},{"$f":"IF($A370=\"N/A\",Ref!$B$36,INDEX(Ranks!$1:$1048576,$A370,BD$1))","v":""},{"$f":"IF($A370=\"N/A\",Ref!$B$36,INDEX(Ranks!$1:$1048576,$A370,BE$1))","v":""},{"$f":"IF($A370=\"N/A\",Ref!$B$36,INDEX(Ranks!$1:$1048576,$A370,BF$1))","v":""},{"$f":"IF($A370=\"N/A\",Ref!$B$36,INDEX(Ranks!$1:$1048576,$A370,BG$1))","v":""},{"$f":"IF($A370=\"N/A\",Ref!$B$36,INDEX(Ranks!$1:$1048576,$A370,BH$1))","v":""},{"$f":"IF($A370=\"N/A\",Ref!$B$36,INDEX(Ranks!$1:$1048576,$A370,BI$1))","v":""},{"$f":"IF($A370=\"N/A\",Ref!$B$36,INDEX(Ranks!$1:$1048576,$A370,BJ$1))","v":""},{"$f":"IF($A370=\"N/A\",Ref!$B$36,INDEX(Ranks!$1:$1048576,$A370,BK$1))","v":""},{"$f":"IF($A370=\"N/A\",Ref!$B$36,INDEX(Ranks!$1:$1048576,$A370,BL$1))","v":""},{"$f":"IF($A370=\"N/A\",Ref!$B$36,INDEX(Ranks!$1:$1048576,$A370,BM$1))","v":""},{"$f":"IF($A370=\"N/A\",Ref!$B$36,INDEX(Ranks!$1:$1048576,$A370,BN$1))","v":""},{"$f":"IF($A370=\"N/A\",Ref!$B$36,INDEX(Ranks!$1:$1048576,$A370,BO$1))","v":""},{"$f":"IF($A370=\"N/A\",Ref!$B$36,INDEX(Ranks!$1:$1048576,$A370,BP$1))","v":""},{"$f":"IF($A370=\"N/A\",Ref!$B$36,INDEX(Ranks!$1:$1048576,$A370,BQ$1))","v":""},{"$f":"IF($A370=\"N/A\",Ref!$B$36,INDEX(Ranks!$1:$1048576,$A370,BR$1))","v":""},{"$f":"IF($A370=\"N/A\",Ref!$B$36,INDEX(Ranks!$1:$1048576,$A370,BS$1))","v":""},{"$f":"IF($A370=\"N/A\",Ref!$B$36,INDEX(Ranks!$1:$1048576,$A370,BT$1))","v":""},{"$f":"IF($A370=\"N/A\",Ref!$B$36,INDEX(Ranks!$1:$1048576,$A370,BU$1))","v":""},{"$f":"IF($A370=\"N/A\",Ref!$B$36,INDEX(Ranks!$1:$1048576,$A370,BV$1))","v":""},{"$f":"IF($A370=\"N/A\",Ref!$B$36,INDEX(Ranks!$1:$1048576,$A370,BW$1))","v":""},{"$f":"IF($A370=\"N/A\",Ref!$B$36,INDEX(Ranks!$1:$1048576,$A370,BX$1))","v":""},{"$f":"IF($A370=\"N/A\",Ref!$B$36,INDEX(Ranks!$1:$1048576,$A370,BY$1))","v":""},{"$f":"IF($A370=\"N/A\",Ref!$B$36,INDEX(Ranks!$1:$1048576,$A370,BZ$1))","v":""},{"$f":"IF($A370=\"N/A\",Ref!$B$36,INDEX(Ranks!$1:$1048576,$A370,CA$1))","v":""},{"$f":"IF($A370=\"N/A\",Ref!$B$36,INDEX(Ranks!$1:$1048576,$A370,CB$1))","v":""},{"$f":"IF($A370=\"N/A\",Ref!$B$36,INDEX(Ranks!$1:$1048576,$A370,CC$1))","v":""},{"$f":"IF($A370=\"N/A\",Ref!$B$36,INDEX(Ranks!$1:$1048576,$A370,CD$1))","v":""},{"$f":"IF($A370=\"N/A\",Ref!$B$36,INDEX(Ranks!$1:$1048576,$A370,CE$1))","v":""},{"$f":"IF($A370=\"N/A\",Ref!$B$36,INDEX(Ranks!$1:$1048576,$A370,CF$1))","v":""},{"$f":"IF($A370=\"N/A\",Ref!$B$36,INDEX(Ranks!$1:$1048576,$A370,CG$1))","v":""},{"$f":"IF($A370=\"N/A\",Ref!$B$36,INDEX(Ranks!$1:$1048576,$A370,CH$1))","v":""},{"$f":"IF($A370=\"N/A\",Ref!$B$36,INDEX(Ranks!$1:$1048576,$A370,CI$1))","v":""},{"$f":"IF($A370=\"N/A\",Ref!$B$36,INDEX(Ranks!$1:$1048576,$A370,CJ$1))","v":""},{"$f":"IF($A370=\"N/A\",Ref!$B$36,INDEX(Ranks!$1:$1048576,$A370,CK$1))","v":""},{"$f":"IF($A370=\"N/A\",Ref!$B$36,INDEX(Ranks!$1:$1048576,$A370,CL$1))","v":""},{"$f":"IF($A370=\"N/A\",Ref!$B$36,INDEX(Ranks!$1:$1048576,$A370,CM$1))","v":""},{"$f":"IF($A370=\"N/A\",Ref!$B$36,INDEX(Ranks!$1:$1048576,$A370,CN$1))","v":""},{"$f":"IF($A370=\"N/A\",Ref!$B$36,INDEX(Ranks!$1:$1048576,$A370,CO$1))","v":""},{"$f":"IF($A370=\"N/A\",Ref!$B$36,INDEX(Ranks!$1:$1048576,$A370,CP$1))","v":""},{"$f":"IF($A370=\"N/A\",Ref!$B$36,INDEX(Ranks!$1:$1048576,$A370,CQ$1))","v":""},{"$f":"IF($A370=\"N/A\",Ref!$B$36,INDEX(Ranks!$1:$1048576,$A370,CR$1))","v":""},{"$f":"IF($A370=\"N/A\",Ref!$B$36,INDEX(Ranks!$1:$1048576,$A370,CS$1))","v":""},{"$f":"IF($A370=\"N/A\",Ref!$B$36,INDEX(Ranks!$1:$1048576,$A370,CT$1))","v":""},{"$f":"IF($A370=\"N/A\",Ref!$B$36,INDEX(Ranks!$1:$1048576,$A370,CU$1))","v":""},{"$f":"IF($A370=\"N/A\",Ref!$B$36,INDEX(Ranks!$1:$1048576,$A370,CV$1))","v":""},{"$f":"IF($A370=\"N/A\",Ref!$B$36,INDEX(Ranks!$1:$1048576,$A370,CW$1))","v":""},{"$f":"IF($A370=\"N/A\",Ref!$B$36,INDEX(Ranks!$1:$1048576,$A370,CX$1))","v":""},{"$f":"IF($A370=\"N/A\",Ref!$B$36,INDEX(Ranks!$1:$1048576,$A370,CY$1))","v":""},{"$f":"IF($A370=\"N/A\",Ref!$B$36,INDEX(Ranks!$1:$1048576,$A370,CZ$1))","v":""},{"$f":"IF($A370=\"N/A\",Ref!$B$36,INDEX(Ranks!$1:$1048576,$A370,DA$1))","v":""},{"$f":"IF($A370=\"N/A\",Ref!$B$36,INDEX(Ranks!$1:$1048576,$A370,DB$1))","v":""},{"$f":"IF($A370=\"N/A\",Ref!$B$36,INDEX(Ranks!$1:$1048576,$A370,DC$1))","v":""},{"$f":"IF($A370=\"N/A\",Ref!$B$36,INDEX(Ranks!$1:$1048576,$A370,DD$1))","v":""},{"$f":"IF($A370=\"N/A\",Ref!$B$36,INDEX(Ranks!$1:$1048576,$A370,DE$1))","v":""},{"$f":"IF($A370=\"N/A\",Ref!$B$36,INDEX(Ranks!$1:$1048576,$A370,DF$1))","v":""},{"$f":"IF($A370=\"N/A\",Ref!$B$36,INDEX(Ranks!$1:$1048576,$A370,DG$1))","v":""},{"$f":"IF($A370=\"N/A\",Ref!$B$36,INDEX(Ranks!$1:$1048576,$A370,DH$1))","v":""},{"$f":"IF($A370=\"N/A\",Ref!$B$36,INDEX(Ranks!$1:$1048576,$A370,DI$1))","v":""},{"$f":"IF($A370=\"N/A\",Ref!$B$36,INDEX(Ranks!$1:$1048576,$A370,DJ$1))","v":""},{"$f":"IF($A370=\"N/A\",Ref!$B$36,INDEX(Ranks!$1:$1048576,$A370,DK$1))","v":""},{"$f":"IF($A370=\"N/A\",Ref!$B$36,INDEX(Ranks!$1:$1048576,$A370,DL$1))","v":""},{"$f":"IF($A370=\"N/A\",Ref!$B$36,INDEX(Ranks!$1:$1048576,$A370,DM$1))","v":""},{"$f":"IF($A370=\"N/A\",Ref!$B$36,INDEX(Ranks!$1:$1048576,$A370,DN$1))","v":""},{"$f":"IF($A370=\"N/A\",Ref!$B$36,INDEX(Ranks!$1:$1048576,$A370,DO$1))","v":""},{"$f":"IF($A370=\"N/A\",Ref!$B$36,INDEX(Ranks!$1:$1048576,$A370,DP$1))","v":""},{"$f":"IF($A370=\"N/A\",Ref!$B$36,INDEX(Ranks!$1:$1048576,$A370,DQ$1))","v":""},{"$f":"IF($A370=\"N/A\",Ref!$B$36,INDEX(Ranks!$1:$1048576,$A370,DR$1))","v":""},{"$f":"IF($A370=\"N/A\",Ref!$B$36,INDEX(Ranks!$1:$1048576,$A370,DS$1))","v":""},{"$f":"IF($A370=\"N/A\",Ref!$B$36,INDEX(Ranks!$1:$1048576,$A370,DT$1))","v":""},{"$f":"IF($A370=\"N/A\",Ref!$B$36,INDEX(Ranks!$1:$1048576,$A370,DU$1))","v":""},{"$f":"IF($A370=\"N/A\",Ref!$B$36,INDEX(Ranks!$1:$1048576,$A370,DV$1))","v":""},{"$f":"IF($A370=\"N/A\",Ref!$B$36,INDEX(Ranks!$1:$1048576,$A370,DW$1))","v":""},{"$f":"IF($A370=\"N/A\",Ref!$B$36,INDEX(Ranks!$1:$1048576,$A370,DX$1))","v":""},{"$f":"IF($A370=\"N/A\",Ref!$B$36,INDEX(Ranks!$1:$1048576,$A370,DY$1))","v":""},{"$f":"IF($A370=\"N/A\",Ref!$B$36,INDEX(Ranks!$1:$1048576,$A370,DZ$1))","v":""},{"$f":"IF($A370=\"N/A\",Ref!$B$36,INDEX(Ranks!$1:$1048576,$A370,EA$1))","v":""},{"$f":"IF($A370=\"N/A\",Ref!$B$36,INDEX(Ranks!$1:$1048576,$A370,EB$1))","v":""}]
[{"$f":"IFERROR(MATCH('Portfolio Page'!L371,Ranks!L:L,0),\"N/A\")","v":"N/A"},null,{"$f":"IF($A371=\"N/A\",\"\",INDEX(Ranks!$1:$1048576,$A371,C$1))","v":""},{"$f":"IF($A371=\"N/A\",Ref!$B$36,INDEX(Ranks!$1:$1048576,$A371,D$1))","v":""},{"$f":"IF($A371=\"N/A\",Ref!$B$36,INDEX(Ranks!$1:$1048576,$A371,E$1))","v":""},{"$f":"IF($A371=\"N/A\",\"\",INDEX(Ranks!$1:$1048576,$A371,F$1))","v":""},{"$f":"IF($A371=\"N/A\",\"\",INDEX(Ranks!$1:$1048576,$A371,G$1))","v":""},{"$f":"IF($A371=\"N/A\",\"\",INDEX(Ranks!$1:$1048576,$A371,H$1))","v":""},{"$f":"IF($A371=\"N/A\",\"\",INDEX(Ranks!$1:$1048576,$A371,I$1))","v":""},{"$f":"IF($A371=\"N/A\",\"\",INDEX(Ranks!$1:$1048576,$A371,J$1))","v":""},{"$f":"IF($A371=\"N/A\",\"\",INDEX(Ranks!$1:$1048576,$A371,K$1))","v":""},null,{"$f":"IF($A371=\"N/A\",Ref!$B$36,INDEX(Ranks!$1:$1048576,$A371,M$1))","v":""},{"$f":"IF($A371=\"N/A\",Ref!$B$36,INDEX(Ranks!$1:$1048576,$A371,N$1))","v":""},{"$f":"IF($A371=\"N/A\",Ref!$B$36,INDEX(Ranks!$1:$1048576,$A371,O$1))","v":""},{"$f":"IF($A371=\"N/A\",Ref!$B$36,INDEX(Ranks!$1:$1048576,$A371,P$1))","v":""},{"$f":"IF($A371=\"N/A\",Ref!$B$36,INDEX(Ranks!$1:$1048576,$A371,Q$1))","v":""},{"$f":"IF($A371=\"N/A\",Ref!$B$36,INDEX(Ranks!$1:$1048576,$A371,R$1))","v":""},{"$f":"IF($A371=\"N/A\",Ref!$B$36,INDEX(Ranks!$1:$1048576,$A371,S$1))","v":""},{"$f":"IF($A371=\"N/A\",Ref!$B$36,INDEX(Ranks!$1:$1048576,$A371,T$1))","v":""},{"$f":"IF($A371=\"N/A\",Ref!$B$36,INDEX(Ranks!$1:$1048576,$A371,U$1))","v":""},{"$f":"IF($A371=\"N/A\",Ref!$B$36,INDEX(Ranks!$1:$1048576,$A371,V$1))","v":""},{"$f":"IF($A371=\"N/A\",Ref!$B$36,INDEX(Ranks!$1:$1048576,$A371,W$1))","v":""},{"$f":"IF($A371=\"N/A\",Ref!$B$36,INDEX(Ranks!$1:$1048576,$A371,X$1))","v":""},{"$f":"IF($A371=\"N/A\",Ref!$B$36,INDEX(Ranks!$1:$1048576,$A371,Y$1))","v":""},{"$f":"IF($A371=\"N/A\",Ref!$B$36,INDEX(Ranks!$1:$1048576,$A371,Z$1))","v":""},{"$f":"IF($A371=\"N/A\",Ref!$B$36,INDEX(Ranks!$1:$1048576,$A371,AA$1))","v":""},{"$f":"IF($A371=\"N/A\",Ref!$B$36,INDEX(Ranks!$1:$1048576,$A371,AB$1))","v":""},{"$f":"IF($A371=\"N/A\",Ref!$B$36,INDEX(Ranks!$1:$1048576,$A371,AC$1))","v":""},{"$f":"IF($A371=\"N/A\",Ref!$B$36,INDEX(Ranks!$1:$1048576,$A371,AD$1))","v":""},{"$f":"IF($A371=\"N/A\",Ref!$B$36,INDEX(Ranks!$1:$1048576,$A371,AE$1))","v":""},{"$f":"IF($A371=\"N/A\",Ref!$B$36,INDEX(Ranks!$1:$1048576,$A371,AF$1))","v":""},{"$f":"IF($A371=\"N/A\",Ref!$B$36,INDEX(Ranks!$1:$1048576,$A371,AG$1))","v":""},{"$f":"IF($A371=\"N/A\",Ref!$B$36,INDEX(Ranks!$1:$1048576,$A371,AH$1))","v":""},{"$f":"IF($A371=\"N/A\",Ref!$B$36,INDEX(Ranks!$1:$1048576,$A371,AI$1))","v":""},{"$f":"IF($A371=\"N/A\",Ref!$B$36,INDEX(Ranks!$1:$1048576,$A371,AJ$1))","v":""},{"$f":"IF($A371=\"N/A\",Ref!$B$36,INDEX(Ranks!$1:$1048576,$A371,AK$1))","v":""},{"$f":"IF($A371=\"N/A\",Ref!$B$36,INDEX(Ranks!$1:$1048576,$A371,AL$1))","v":""},{"$f":"IF($A371=\"N/A\",Ref!$B$36,INDEX(Ranks!$1:$1048576,$A371,AM$1))","v":""},{"$f":"IF($A371=\"N/A\",Ref!$B$36,INDEX(Ranks!$1:$1048576,$A371,AN$1))","v":""},{"$f":"IF($A371=\"N/A\",Ref!$B$36,INDEX(Ranks!$1:$1048576,$A371,AO$1))","v":""},{"$f":"IF($A371=\"N/A\",Ref!$B$36,INDEX(Ranks!$1:$1048576,$A371,AP$1))","v":""},{"$f":"IF($A371=\"N/A\",Ref!$B$36,INDEX(Ranks!$1:$1048576,$A371,AQ$1))","v":""},{"$f":"IF($A371=\"N/A\",Ref!$B$36,INDEX(Ranks!$1:$1048576,$A371,AR$1))","v":""},{"$f":"IF($A371=\"N/A\",Ref!$B$36,INDEX(Ranks!$1:$1048576,$A371,AS$1))","v":""},{"$f":"IF($A371=\"N/A\",Ref!$B$36,INDEX(Ranks!$1:$1048576,$A371,AT$1))","v":""},{"$f":"IF($A371=\"N/A\",Ref!$B$36,INDEX(Ranks!$1:$1048576,$A371,AU$1))","v":""},{"$f":"IF($A371=\"N/A\",Ref!$B$36,INDEX(Ranks!$1:$1048576,$A371,AV$1))","v":""},{"$f":"IF($A371=\"N/A\",Ref!$B$36,INDEX(Ranks!$1:$1048576,$A371,AW$1))","v":""},{"$f":"IF($A371=\"N/A\",Ref!$B$36,INDEX(Ranks!$1:$1048576,$A371,AX$1))","v":""},{"$f":"IF($A371=\"N/A\",Ref!$B$36,INDEX(Ranks!$1:$1048576,$A371,AY$1))","v":""},{"$f":"IF($A371=\"N/A\",Ref!$B$36,INDEX(Ranks!$1:$1048576,$A371,AZ$1))","v":""},{"$f":"IF($A371=\"N/A\",Ref!$B$36,INDEX(Ranks!$1:$1048576,$A371,BA$1))","v":""},{"$f":"IF($A371=\"N/A\",Ref!$B$36,INDEX(Ranks!$1:$1048576,$A371,BB$1))","v":""},{"$f":"IF($A371=\"N/A\",Ref!$B$36,INDEX(Ranks!$1:$1048576,$A371,BC$1))","v":""},{"$f":"IF($A371=\"N/A\",Ref!$B$36,INDEX(Ranks!$1:$1048576,$A371,BD$1))","v":""},{"$f":"IF($A371=\"N/A\",Ref!$B$36,INDEX(Ranks!$1:$1048576,$A371,BE$1))","v":""},{"$f":"IF($A371=\"N/A\",Ref!$B$36,INDEX(Ranks!$1:$1048576,$A371,BF$1))","v":""},{"$f":"IF($A371=\"N/A\",Ref!$B$36,INDEX(Ranks!$1:$1048576,$A371,BG$1))","v":""},{"$f":"IF($A371=\"N/A\",Ref!$B$36,INDEX(Ranks!$1:$1048576,$A371,BH$1))","v":""},{"$f":"IF($A371=\"N/A\",Ref!$B$36,INDEX(Ranks!$1:$1048576,$A371,BI$1))","v":""},{"$f":"IF($A371=\"N/A\",Ref!$B$36,INDEX(Ranks!$1:$1048576,$A371,BJ$1))","v":""},{"$f":"IF($A371=\"N/A\",Ref!$B$36,INDEX(Ranks!$1:$1048576,$A371,BK$1))","v":""},{"$f":"IF($A371=\"N/A\",Ref!$B$36,INDEX(Ranks!$1:$1048576,$A371,BL$1))","v":""},{"$f":"IF($A371=\"N/A\",Ref!$B$36,INDEX(Ranks!$1:$1048576,$A371,BM$1))","v":""},{"$f":"IF($A371=\"N/A\",Ref!$B$36,INDEX(Ranks!$1:$1048576,$A371,BN$1))","v":""},{"$f":"IF($A371=\"N/A\",Ref!$B$36,INDEX(Ranks!$1:$1048576,$A371,BO$1))","v":""},{"$f":"IF($A371=\"N/A\",Ref!$B$36,INDEX(Ranks!$1:$1048576,$A371,BP$1))","v":""},{"$f":"IF($A371=\"N/A\",Ref!$B$36,INDEX(Ranks!$1:$1048576,$A371,BQ$1))","v":""},{"$f":"IF($A371=\"N/A\",Ref!$B$36,INDEX(Ranks!$1:$1048576,$A371,BR$1))","v":""},{"$f":"IF($A371=\"N/A\",Ref!$B$36,INDEX(Ranks!$1:$1048576,$A371,BS$1))","v":""},{"$f":"IF($A371=\"N/A\",Ref!$B$36,INDEX(Ranks!$1:$1048576,$A371,BT$1))","v":""},{"$f":"IF($A371=\"N/A\",Ref!$B$36,INDEX(Ranks!$1:$1048576,$A371,BU$1))","v":""},{"$f":"IF($A371=\"N/A\",Ref!$B$36,INDEX(Ranks!$1:$1048576,$A371,BV$1))","v":""},{"$f":"IF($A371=\"N/A\",Ref!$B$36,INDEX(Ranks!$1:$1048576,$A371,BW$1))","v":""},{"$f":"IF($A371=\"N/A\",Ref!$B$36,INDEX(Ranks!$1:$1048576,$A371,BX$1))","v":""},{"$f":"IF($A371=\"N/A\",Ref!$B$36,INDEX(Ranks!$1:$1048576,$A371,BY$1))","v":""},{"$f":"IF($A371=\"N/A\",Ref!$B$36,INDEX(Ranks!$1:$1048576,$A371,BZ$1))","v":""},{"$f":"IF($A371=\"N/A\",Ref!$B$36,INDEX(Ranks!$1:$1048576,$A371,CA$1))","v":""},{"$f":"IF($A371=\"N/A\",Ref!$B$36,INDEX(Ranks!$1:$1048576,$A371,CB$1))","v":""},{"$f":"IF($A371=\"N/A\",Ref!$B$36,INDEX(Ranks!$1:$1048576,$A371,CC$1))","v":""},{"$f":"IF($A371=\"N/A\",Ref!$B$36,INDEX(Ranks!$1:$1048576,$A371,CD$1))","v":""},{"$f":"IF($A371=\"N/A\",Ref!$B$36,INDEX(Ranks!$1:$1048576,$A371,CE$1))","v":""},{"$f":"IF($A371=\"N/A\",Ref!$B$36,INDEX(Ranks!$1:$1048576,$A371,CF$1))","v":""},{"$f":"IF($A371=\"N/A\",Ref!$B$36,INDEX(Ranks!$1:$1048576,$A371,CG$1))","v":""},{"$f":"IF($A371=\"N/A\",Ref!$B$36,INDEX(Ranks!$1:$1048576,$A371,CH$1))","v":""},{"$f":"IF($A371=\"N/A\",Ref!$B$36,INDEX(Ranks!$1:$1048576,$A371,CI$1))","v":""},{"$f":"IF($A371=\"N/A\",Ref!$B$36,INDEX(Ranks!$1:$1048576,$A371,CJ$1))","v":""},{"$f":"IF($A371=\"N/A\",Ref!$B$36,INDEX(Ranks!$1:$1048576,$A371,CK$1))","v":""},{"$f":"IF($A371=\"N/A\",Ref!$B$36,INDEX(Ranks!$1:$1048576,$A371,CL$1))","v":""},{"$f":"IF($A371=\"N/A\",Ref!$B$36,INDEX(Ranks!$1:$1048576,$A371,CM$1))","v":""},{"$f":"IF($A371=\"N/A\",Ref!$B$36,INDEX(Ranks!$1:$1048576,$A371,CN$1))","v":""},{"$f":"IF($A371=\"N/A\",Ref!$B$36,INDEX(Ranks!$1:$1048576,$A371,CO$1))","v":""},{"$f":"IF($A371=\"N/A\",Ref!$B$36,INDEX(Ranks!$1:$1048576,$A371,CP$1))","v":""},{"$f":"IF($A371=\"N/A\",Ref!$B$36,INDEX(Ranks!$1:$1048576,$A371,CQ$1))","v":""},{"$f":"IF($A371=\"N/A\",Ref!$B$36,INDEX(Ranks!$1:$1048576,$A371,CR$1))","v":""},{"$f":"IF($A371=\"N/A\",Ref!$B$36,INDEX(Ranks!$1:$1048576,$A371,CS$1))","v":""},{"$f":"IF($A371=\"N/A\",Ref!$B$36,INDEX(Ranks!$1:$1048576,$A371,CT$1))","v":""},{"$f":"IF($A371=\"N/A\",Ref!$B$36,INDEX(Ranks!$1:$1048576,$A371,CU$1))","v":""},{"$f":"IF($A371=\"N/A\",Ref!$B$36,INDEX(Ranks!$1:$1048576,$A371,CV$1))","v":""},{"$f":"IF($A371=\"N/A\",Ref!$B$36,INDEX(Ranks!$1:$1048576,$A371,CW$1))","v":""},{"$f":"IF($A371=\"N/A\",Ref!$B$36,INDEX(Ranks!$1:$1048576,$A371,CX$1))","v":""},{"$f":"IF($A371=\"N/A\",Ref!$B$36,INDEX(Ranks!$1:$1048576,$A371,CY$1))","v":""},{"$f":"IF($A371=\"N/A\",Ref!$B$36,INDEX(Ranks!$1:$1048576,$A371,CZ$1))","v":""},{"$f":"IF($A371=\"N/A\",Ref!$B$36,INDEX(Ranks!$1:$1048576,$A371,DA$1))","v":""},{"$f":"IF($A371=\"N/A\",Ref!$B$36,INDEX(Ranks!$1:$1048576,$A371,DB$1))","v":""},{"$f":"IF($A371=\"N/A\",Ref!$B$36,INDEX(Ranks!$1:$1048576,$A371,DC$1))","v":""},{"$f":"IF($A371=\"N/A\",Ref!$B$36,INDEX(Ranks!$1:$1048576,$A371,DD$1))","v":""},{"$f":"IF($A371=\"N/A\",Ref!$B$36,INDEX(Ranks!$1:$1048576,$A371,DE$1))","v":""},{"$f":"IF($A371=\"N/A\",Ref!$B$36,INDEX(Ranks!$1:$1048576,$A371,DF$1))","v":""},{"$f":"IF($A371=\"N/A\",Ref!$B$36,INDEX(Ranks!$1:$1048576,$A371,DG$1))","v":""},{"$f":"IF($A371=\"N/A\",Ref!$B$36,INDEX(Ranks!$1:$1048576,$A371,DH$1))","v":""},{"$f":"IF($A371=\"N/A\",Ref!$B$36,INDEX(Ranks!$1:$1048576,$A371,DI$1))","v":""},{"$f":"IF($A371=\"N/A\",Ref!$B$36,INDEX(Ranks!$1:$1048576,$A371,DJ$1))","v":""},{"$f":"IF($A371=\"N/A\",Ref!$B$36,INDEX(Ranks!$1:$1048576,$A371,DK$1))","v":""},{"$f":"IF($A371=\"N/A\",Ref!$B$36,INDEX(Ranks!$1:$1048576,$A371,DL$1))","v":""},{"$f":"IF($A371=\"N/A\",Ref!$B$36,INDEX(Ranks!$1:$1048576,$A371,DM$1))","v":""},{"$f":"IF($A371=\"N/A\",Ref!$B$36,INDEX(Ranks!$1:$1048576,$A371,DN$1))","v":""},{"$f":"IF($A371=\"N/A\",Ref!$B$36,INDEX(Ranks!$1:$1048576,$A371,DO$1))","v":""},{"$f":"IF($A371=\"N/A\",Ref!$B$36,INDEX(Ranks!$1:$1048576,$A371,DP$1))","v":""},{"$f":"IF($A371=\"N/A\",Ref!$B$36,INDEX(Ranks!$1:$1048576,$A371,DQ$1))","v":""},{"$f":"IF($A371=\"N/A\",Ref!$B$36,INDEX(Ranks!$1:$1048576,$A371,DR$1))","v":""},{"$f":"IF($A371=\"N/A\",Ref!$B$36,INDEX(Ranks!$1:$1048576,$A371,DS$1))","v":""},{"$f":"IF($A371=\"N/A\",Ref!$B$36,INDEX(Ranks!$1:$1048576,$A371,DT$1))","v":""},{"$f":"IF($A371=\"N/A\",Ref!$B$36,INDEX(Ranks!$1:$1048576,$A371,DU$1))","v":""},{"$f":"IF($A371=\"N/A\",Ref!$B$36,INDEX(Ranks!$1:$1048576,$A371,DV$1))","v":""},{"$f":"IF($A371=\"N/A\",Ref!$B$36,INDEX(Ranks!$1:$1048576,$A371,DW$1))","v":""},{"$f":"IF($A371=\"N/A\",Ref!$B$36,INDEX(Ranks!$1:$1048576,$A371,DX$1))","v":""},{"$f":"IF($A371=\"N/A\",Ref!$B$36,INDEX(Ranks!$1:$1048576,$A371,DY$1))","v":""},{"$f":"IF($A371=\"N/A\",Ref!$B$36,INDEX(Ranks!$1:$1048576,$A371,DZ$1))","v":""},{"$f":"IF($A371=\"N/A\",Ref!$B$36,INDEX(Ranks!$1:$1048576,$A371,EA$1))","v":""},{"$f":"IF($A371=\"N/A\",Ref!$B$36,INDEX(Ranks!$1:$1048576,$A371,EB$1))","v":""}]
[{"$f":"IFERROR(MATCH('Portfolio Page'!L372,Ranks!L:L,0),\"N/A\")","v":"N/A"},null,{"$f":"IF($A372=\"N/A\",\"\",INDEX(Ranks!$1:$1048576,$A372,C$1))","v":""},{"$f":"IF($A372=\"N/A\",Ref!$B$36,INDEX(Ranks!$1:$1048576,$A372,D$1))","v":""},{"$f":"IF($A372=\"N/A\",Ref!$B$36,INDEX(Ranks!$1:$1048576,$A372,E$1))","v":""},{"$f":"IF($A372=\"N/A\",\"\",INDEX(Ranks!$1:$1048576,$A372,F$1))","v":""},{"$f":"IF($A372=\"N/A\",\"\",INDEX(Ranks!$1:$1048576,$A372,G$1))","v":""},{"$f":"IF($A372=\"N/A\",\"\",INDEX(Ranks!$1:$1048576,$A372,H$1))","v":""},{"$f":"IF($A372=\"N/A\",\"\",INDEX(Ranks!$1:$1048576,$A372,I$1))","v":""},{"$f":"IF($A372=\"N/A\",\"\",INDEX(Ranks!$1:$1048576,$A372,J$1))","v":""},{"$f":"IF($A372=\"N/A\",\"\",INDEX(Ranks!$1:$1048576,$A372,K$1))","v":""},null,{"$f":"IF($A372=\"N/A\",Ref!$B$36,INDEX(Ranks!$1:$1048576,$A372,M$1))","v":""},{"$f":"IF($A372=\"N/A\",Ref!$B$36,INDEX(Ranks!$1:$1048576,$A372,N$1))","v":""},{"$f":"IF($A372=\"N/A\",Ref!$B$36,INDEX(Ranks!$1:$1048576,$A372,O$1))","v":""},{"$f":"IF($A372=\"N/A\",Ref!$B$36,INDEX(Ranks!$1:$1048576,$A372,P$1))","v":""},{"$f":"IF($A372=\"N/A\",Ref!$B$36,INDEX(Ranks!$1:$1048576,$A372,Q$1))","v":""},{"$f":"IF($A372=\"N/A\",Ref!$B$36,INDEX(Ranks!$1:$1048576,$A372,R$1))","v":""},{"$f":"IF($A372=\"N/A\",Ref!$B$36,INDEX(Ranks!$1:$1048576,$A372,S$1))","v":""},{"$f":"IF($A372=\"N/A\",Ref!$B$36,INDEX(Ranks!$1:$1048576,$A372,T$1))","v":""},{"$f":"IF($A372=\"N/A\",Ref!$B$36,INDEX(Ranks!$1:$1048576,$A372,U$1))","v":""},{"$f":"IF($A372=\"N/A\",Ref!$B$36,INDEX(Ranks!$1:$1048576,$A372,V$1))","v":""},{"$f":"IF($A372=\"N/A\",Ref!$B$36,INDEX(Ranks!$1:$1048576,$A372,W$1))","v":""},{"$f":"IF($A372=\"N/A\",Ref!$B$36,INDEX(Ranks!$1:$1048576,$A372,X$1))","v":""},{"$f":"IF($A372=\"N/A\",Ref!$B$36,INDEX(Ranks!$1:$1048576,$A372,Y$1))","v":""},{"$f":"IF($A372=\"N/A\",Ref!$B$36,INDEX(Ranks!$1:$1048576,$A372,Z$1))","v":""},{"$f":"IF($A372=\"N/A\",Ref!$B$36,INDEX(Ranks!$1:$1048576,$A372,AA$1))","v":""},{"$f":"IF($A372=\"N/A\",Ref!$B$36,INDEX(Ranks!$1:$1048576,$A372,AB$1))","v":""},{"$f":"IF($A372=\"N/A\",Ref!$B$36,INDEX(Ranks!$1:$1048576,$A372,AC$1))","v":""},{"$f":"IF($A372=\"N/A\",Ref!$B$36,INDEX(Ranks!$1:$1048576,$A372,AD$1))","v":""},{"$f":"IF($A372=\"N/A\",Ref!$B$36,INDEX(Ranks!$1:$1048576,$A372,AE$1))","v":""},{"$f":"IF($A372=\"N/A\",Ref!$B$36,INDEX(Ranks!$1:$1048576,$A372,AF$1))","v":""},{"$f":"IF($A372=\"N/A\",Ref!$B$36,INDEX(Ranks!$1:$1048576,$A372,AG$1))","v":""},{"$f":"IF($A372=\"N/A\",Ref!$B$36,INDEX(Ranks!$1:$1048576,$A372,AH$1))","v":""},{"$f":"IF($A372=\"N/A\",Ref!$B$36,INDEX(Ranks!$1:$1048576,$A372,AI$1))","v":""},{"$f":"IF($A372=\"N/A\",Ref!$B$36,INDEX(Ranks!$1:$1048576,$A372,AJ$1))","v":""},{"$f":"IF($A372=\"N/A\",Ref!$B$36,INDEX(Ranks!$1:$1048576,$A372,AK$1))","v":""},{"$f":"IF($A372=\"N/A\",Ref!$B$36,INDEX(Ranks!$1:$1048576,$A372,AL$1))","v":""},{"$f":"IF($A372=\"N/A\",Ref!$B$36,INDEX(Ranks!$1:$1048576,$A372,AM$1))","v":""},{"$f":"IF($A372=\"N/A\",Ref!$B$36,INDEX(Ranks!$1:$1048576,$A372,AN$1))","v":""},{"$f":"IF($A372=\"N/A\",Ref!$B$36,INDEX(Ranks!$1:$1048576,$A372,AO$1))","v":""},{"$f":"IF($A372=\"N/A\",Ref!$B$36,INDEX(Ranks!$1:$1048576,$A372,AP$1))","v":""},{"$f":"IF($A372=\"N/A\",Ref!$B$36,INDEX(Ranks!$1:$1048576,$A372,AQ$1))","v":""},{"$f":"IF($A372=\"N/A\",Ref!$B$36,INDEX(Ranks!$1:$1048576,$A372,AR$1))","v":""},{"$f":"IF($A372=\"N/A\",Ref!$B$36,INDEX(Ranks!$1:$1048576,$A372,AS$1))","v":""},{"$f":"IF($A372=\"N/A\",Ref!$B$36,INDEX(Ranks!$1:$1048576,$A372,AT$1))","v":""},{"$f":"IF($A372=\"N/A\",Ref!$B$36,INDEX(Ranks!$1:$1048576,$A372,AU$1))","v":""},{"$f":"IF($A372=\"N/A\",Ref!$B$36,INDEX(Ranks!$1:$1048576,$A372,AV$1))","v":""},{"$f":"IF($A372=\"N/A\",Ref!$B$36,INDEX(Ranks!$1:$1048576,$A372,AW$1))","v":""},{"$f":"IF($A372=\"N/A\",Ref!$B$36,INDEX(Ranks!$1:$1048576,$A372,AX$1))","v":""},{"$f":"IF($A372=\"N/A\",Ref!$B$36,INDEX(Ranks!$1:$1048576,$A372,AY$1))","v":""},{"$f":"IF($A372=\"N/A\",Ref!$B$36,INDEX(Ranks!$1:$1048576,$A372,AZ$1))","v":""},{"$f":"IF($A372=\"N/A\",Ref!$B$36,INDEX(Ranks!$1:$1048576,$A372,BA$1))","v":""},{"$f":"IF($A372=\"N/A\",Ref!$B$36,INDEX(Ranks!$1:$1048576,$A372,BB$1))","v":""},{"$f":"IF($A372=\"N/A\",Ref!$B$36,INDEX(Ranks!$1:$1048576,$A372,BC$1))","v":""},{"$f":"IF($A372=\"N/A\",Ref!$B$36,INDEX(Ranks!$1:$1048576,$A372,BD$1))","v":""},{"$f":"IF($A372=\"N/A\",Ref!$B$36,INDEX(Ranks!$1:$1048576,$A372,BE$1))","v":""},{"$f":"IF($A372=\"N/A\",Ref!$B$36,INDEX(Ranks!$1:$1048576,$A372,BF$1))","v":""},{"$f":"IF($A372=\"N/A\",Ref!$B$36,INDEX(Ranks!$1:$1048576,$A372,BG$1))","v":""},{"$f":"IF($A372=\"N/A\",Ref!$B$36,INDEX(Ranks!$1:$1048576,$A372,BH$1))","v":""},{"$f":"IF($A372=\"N/A\",Ref!$B$36,INDEX(Ranks!$1:$1048576,$A372,BI$1))","v":""},{"$f":"IF($A372=\"N/A\",Ref!$B$36,INDEX(Ranks!$1:$1048576,$A372,BJ$1))","v":""},{"$f":"IF($A372=\"N/A\",Ref!$B$36,INDEX(Ranks!$1:$1048576,$A372,BK$1))","v":""},{"$f":"IF($A372=\"N/A\",Ref!$B$36,INDEX(Ranks!$1:$1048576,$A372,BL$1))","v":""},{"$f":"IF($A372=\"N/A\",Ref!$B$36,INDEX(Ranks!$1:$1048576,$A372,BM$1))","v":""},{"$f":"IF($A372=\"N/A\",Ref!$B$36,INDEX(Ranks!$1:$1048576,$A372,BN$1))","v":""},{"$f":"IF($A372=\"N/A\",Ref!$B$36,INDEX(Ranks!$1:$1048576,$A372,BO$1))","v":""},{"$f":"IF($A372=\"N/A\",Ref!$B$36,INDEX(Ranks!$1:$1048576,$A372,BP$1))","v":""},{"$f":"IF($A372=\"N/A\",Ref!$B$36,INDEX(Ranks!$1:$1048576,$A372,BQ$1))","v":""},{"$f":"IF($A372=\"N/A\",Ref!$B$36,INDEX(Ranks!$1:$1048576,$A372,BR$1))","v":""},{"$f":"IF($A372=\"N/A\",Ref!$B$36,INDEX(Ranks!$1:$1048576,$A372,BS$1))","v":""},{"$f":"IF($A372=\"N/A\",Ref!$B$36,INDEX(Ranks!$1:$1048576,$A372,BT$1))","v":""},{"$f":"IF($A372=\"N/A\",Ref!$B$36,INDEX(Ranks!$1:$1048576,$A372,BU$1))","v":""},{"$f":"IF($A372=\"N/A\",Ref!$B$36,INDEX(Ranks!$1:$1048576,$A372,BV$1))","v":""},{"$f":"IF($A372=\"N/A\",Ref!$B$36,INDEX(Ranks!$1:$1048576,$A372,BW$1))","v":""},{"$f":"IF($A372=\"N/A\",Ref!$B$36,INDEX(Ranks!$1:$1048576,$A372,BX$1))","v":""},{"$f":"IF($A372=\"N/A\",Ref!$B$36,INDEX(Ranks!$1:$1048576,$A372,BY$1))","v":""},{"$f":"IF($A372=\"N/A\",Ref!$B$36,INDEX(Ranks!$1:$1048576,$A372,BZ$1))","v":""},{"$f":"IF($A372=\"N/A\",Ref!$B$36,INDEX(Ranks!$1:$1048576,$A372,CA$1))","v":""},{"$f":"IF($A372=\"N/A\",Ref!$B$36,INDEX(Ranks!$1:$1048576,$A372,CB$1))","v":""},{"$f":"IF($A372=\"N/A\",Ref!$B$36,INDEX(Ranks!$1:$1048576,$A372,CC$1))","v":""},{"$f":"IF($A372=\"N/A\",Ref!$B$36,INDEX(Ranks!$1:$1048576,$A372,CD$1))","v":""},{"$f":"IF($A372=\"N/A\",Ref!$B$36,INDEX(Ranks!$1:$1048576,$A372,CE$1))","v":""},{"$f":"IF($A372=\"N/A\",Ref!$B$36,INDEX(Ranks!$1:$1048576,$A372,CF$1))","v":""},{"$f":"IF($A372=\"N/A\",Ref!$B$36,INDEX(Ranks!$1:$1048576,$A372,CG$1))","v":""},{"$f":"IF($A372=\"N/A\",Ref!$B$36,INDEX(Ranks!$1:$1048576,$A372,CH$1))","v":""},{"$f":"IF($A372=\"N/A\",Ref!$B$36,INDEX(Ranks!$1:$1048576,$A372,CI$1))","v":""},{"$f":"IF($A372=\"N/A\",Ref!$B$36,INDEX(Ranks!$1:$1048576,$A372,CJ$1))","v":""},{"$f":"IF($A372=\"N/A\",Ref!$B$36,INDEX(Ranks!$1:$1048576,$A372,CK$1))","v":""},{"$f":"IF($A372=\"N/A\",Ref!$B$36,INDEX(Ranks!$1:$1048576,$A372,CL$1))","v":""},{"$f":"IF($A372=\"N/A\",Ref!$B$36,INDEX(Ranks!$1:$1048576,$A372,CM$1))","v":""},{"$f":"IF($A372=\"N/A\",Ref!$B$36,INDEX(Ranks!$1:$1048576,$A372,CN$1))","v":""},{"$f":"IF($A372=\"N/A\",Ref!$B$36,INDEX(Ranks!$1:$1048576,$A372,CO$1))","v":""},{"$f":"IF($A372=\"N/A\",Ref!$B$36,INDEX(Ranks!$1:$1048576,$A372,CP$1))","v":""},{"$f":"IF($A372=\"N/A\",Ref!$B$36,INDEX(Ranks!$1:$1048576,$A372,CQ$1))","v":""},{"$f":"IF($A372=\"N/A\",Ref!$B$36,INDEX(Ranks!$1:$1048576,$A372,CR$1))","v":""},{"$f":"IF($A372=\"N/A\",Ref!$B$36,INDEX(Ranks!$1:$1048576,$A372,CS$1))","v":""},{"$f":"IF($A372=\"N/A\",Ref!$B$36,INDEX(Ranks!$1:$1048576,$A372,CT$1))","v":""},{"$f":"IF($A372=\"N/A\",Ref!$B$36,INDEX(Ranks!$1:$1048576,$A372,CU$1))","v":""},{"$f":"IF($A372=\"N/A\",Ref!$B$36,INDEX(Ranks!$1:$1048576,$A372,CV$1))","v":""},{"$f":"IF($A372=\"N/A\",Ref!$B$36,INDEX(Ranks!$1:$1048576,$A372,CW$1))","v":""},{"$f":"IF($A372=\"N/A\",Ref!$B$36,INDEX(Ranks!$1:$1048576,$A372,CX$1))","v":""},{"$f":"IF($A372=\"N/A\",Ref!$B$36,INDEX(Ranks!$1:$1048576,$A372,CY$1))","v":""},{"$f":"IF($A372=\"N/A\",Ref!$B$36,INDEX(Ranks!$1:$1048576,$A372,CZ$1))","v":""},{"$f":"IF($A372=\"N/A\",Ref!$B$36,INDEX(Ranks!$1:$1048576,$A372,DA$1))","v":""},{"$f":"IF($A372=\"N/A\",Ref!$B$36,INDEX(Ranks!$1:$1048576,$A372,DB$1))","v":""},{"$f":"IF($A372=\"N/A\",Ref!$B$36,INDEX(Ranks!$1:$1048576,$A372,DC$1))","v":""},{"$f":"IF($A372=\"N/A\",Ref!$B$36,INDEX(Ranks!$1:$1048576,$A372,DD$1))","v":""},{"$f":"IF($A372=\"N/A\",Ref!$B$36,INDEX(Ranks!$1:$1048576,$A372,DE$1))","v":""},{"$f":"IF($A372=\"N/A\",Ref!$B$36,INDEX(Ranks!$1:$1048576,$A372,DF$1))","v":""},{"$f":"IF($A372=\"N/A\",Ref!$B$36,INDEX(Ranks!$1:$1048576,$A372,DG$1))","v":""},{"$f":"IF($A372=\"N/A\",Ref!$B$36,INDEX(Ranks!$1:$1048576,$A372,DH$1))","v":""},{"$f":"IF($A372=\"N/A\",Ref!$B$36,INDEX(Ranks!$1:$1048576,$A372,DI$1))","v":""},{"$f":"IF($A372=\"N/A\",Ref!$B$36,INDEX(Ranks!$1:$1048576,$A372,DJ$1))","v":""},{"$f":"IF($A372=\"N/A\",Ref!$B$36,INDEX(Ranks!$1:$1048576,$A372,DK$1))","v":""},{"$f":"IF($A372=\"N/A\",Ref!$B$36,INDEX(Ranks!$1:$1048576,$A372,DL$1))","v":""},{"$f":"IF($A372=\"N/A\",Ref!$B$36,INDEX(Ranks!$1:$1048576,$A372,DM$1))","v":""},{"$f":"IF($A372=\"N/A\",Ref!$B$36,INDEX(Ranks!$1:$1048576,$A372,DN$1))","v":""},{"$f":"IF($A372=\"N/A\",Ref!$B$36,INDEX(Ranks!$1:$1048576,$A372,DO$1))","v":""},{"$f":"IF($A372=\"N/A\",Ref!$B$36,INDEX(Ranks!$1:$1048576,$A372,DP$1))","v":""},{"$f":"IF($A372=\"N/A\",Ref!$B$36,INDEX(Ranks!$1:$1048576,$A372,DQ$1))","v":""},{"$f":"IF($A372=\"N/A\",Ref!$B$36,INDEX(Ranks!$1:$1048576,$A372,DR$1))","v":""},{"$f":"IF($A372=\"N/A\",Ref!$B$36,INDEX(Ranks!$1:$1048576,$A372,DS$1))","v":""},{"$f":"IF($A372=\"N/A\",Ref!$B$36,INDEX(Ranks!$1:$1048576,$A372,DT$1))","v":""},{"$f":"IF($A372=\"N/A\",Ref!$B$36,INDEX(Ranks!$1:$1048576,$A372,DU$1))","v":""},{"$f":"IF($A372=\"N/A\",Ref!$B$36,INDEX(Ranks!$1:$1048576,$A372,DV$1))","v":""},{"$f":"IF($A372=\"N/A\",Ref!$B$36,INDEX(Ranks!$1:$1048576,$A372,DW$1))","v":""},{"$f":"IF($A372=\"N/A\",Ref!$B$36,INDEX(Ranks!$1:$1048576,$A372,DX$1))","v":""},{"$f":"IF($A372=\"N/A\",Ref!$B$36,INDEX(Ranks!$1:$1048576,$A372,DY$1))","v":""},{"$f":"IF($A372=\"N/A\",Ref!$B$36,INDEX(Ranks!$1:$1048576,$A372,DZ$1))","v":""},{"$f":"IF($A372=\"N/A\",Ref!$B$36,INDEX(Ranks!$1:$1048576,$A372,EA$1))","v":""},{"$f":"IF($A372=\"N/A\",Ref!$B$36,INDEX(Ranks!$1:$1048576,$A372,EB$1))","v":""}]
[{"$f":"IFERROR(MATCH('Portfolio Page'!L373,Ranks!L:L,0),\"N/A\")","v":"N/A"},null,{"$f":"IF($A373=\"N/A\",\"\",INDEX(Ranks!$1:$1048576,$A373,C$1))","v":""},{"$f":"IF($A373=\"N/A\",Ref!$B$36,INDEX(Ranks!$1:$1048576,$A373,D$1))","v":""},{"$f":"IF($A373=\"N/A\",Ref!$B$36,INDEX(Ranks!$1:$1048576,$A373,E$1))","v":""},{"$f":"IF($A373=\"N/A\",\"\",INDEX(Ranks!$1:$1048576,$A373,F$1))","v":""},{"$f":"IF($A373=\"N/A\",\"\",INDEX(Ranks!$1:$1048576,$A373,G$1))","v":""},{"$f":"IF($A373=\"N/A\",\"\",INDEX(Ranks!$1:$1048576,$A373,H$1))","v":""},{"$f":"IF($A373=\"N/A\",\"\",INDEX(Ranks!$1:$1048576,$A373,I$1))","v":""},{"$f":"IF($A373=\"N/A\",\"\",INDEX(Ranks!$1:$1048576,$A373,J$1))","v":""},{"$f":"IF($A373=\"N/A\",\"\",INDEX(Ranks!$1:$1048576,$A373,K$1))","v":""},null,{"$f":"IF($A373=\"N/A\",Ref!$B$36,INDEX(Ranks!$1:$1048576,$A373,M$1))","v":""},{"$f":"IF($A373=\"N/A\",Ref!$B$36,INDEX(Ranks!$1:$1048576,$A373,N$1))","v":""},{"$f":"IF($A373=\"N/A\",Ref!$B$36,INDEX(Ranks!$1:$1048576,$A373,O$1))","v":""},{"$f":"IF($A373=\"N/A\",Ref!$B$36,INDEX(Ranks!$1:$1048576,$A373,P$1))","v":""},{"$f":"IF($A373=\"N/A\",Ref!$B$36,INDEX(Ranks!$1:$1048576,$A373,Q$1))","v":""},{"$f":"IF($A373=\"N/A\",Ref!$B$36,INDEX(Ranks!$1:$1048576,$A373,R$1))","v":""},{"$f":"IF($A373=\"N/A\",Ref!$B$36,INDEX(Ranks!$1:$1048576,$A373,S$1))","v":""},{"$f":"IF($A373=\"N/A\",Ref!$B$36,INDEX(Ranks!$1:$1048576,$A373,T$1))","v":""},{"$f":"IF($A373=\"N/A\",Ref!$B$36,INDEX(Ranks!$1:$1048576,$A373,U$1))","v":""},{"$f":"IF($A373=\"N/A\",Ref!$B$36,INDEX(Ranks!$1:$1048576,$A373,V$1))","v":""},{"$f":"IF($A373=\"N/A\",Ref!$B$36,INDEX(Ranks!$1:$1048576,$A373,W$1))","v":""},{"$f":"IF($A373=\"N/A\",Ref!$B$36,INDEX(Ranks!$1:$1048576,$A373,X$1))","v":""},{"$f":"IF($A373=\"N/A\",Ref!$B$36,INDEX(Ranks!$1:$1048576,$A373,Y$1))","v":""},{"$f":"IF($A373=\"N/A\",Ref!$B$36,INDEX(Ranks!$1:$1048576,$A373,Z$1))","v":""},{"$f":"IF($A373=\"N/A\",Ref!$B$36,INDEX(Ranks!$1:$1048576,$A373,AA$1))","v":""},{"$f":"IF($A373=\"N/A\",Ref!$B$36,INDEX(Ranks!$1:$1048576,$A373,AB$1))","v":""},{"$f":"IF($A373=\"N/A\",Ref!$B$36,INDEX(Ranks!$1:$1048576,$A373,AC$1))","v":""},{"$f":"IF($A373=\"N/A\",Ref!$B$36,INDEX(Ranks!$1:$1048576,$A373,AD$1))","v":""},{"$f":"IF($A373=\"N/A\",Ref!$B$36,INDEX(Ranks!$1:$1048576,$A373,AE$1))","v":""},{"$f":"IF($A373=\"N/A\",Ref!$B$36,INDEX(Ranks!$1:$1048576,$A373,AF$1))","v":""},{"$f":"IF($A373=\"N/A\",Ref!$B$36,INDEX(Ranks!$1:$1048576,$A373,AG$1))","v":""},{"$f":"IF($A373=\"N/A\",Ref!$B$36,INDEX(Ranks!$1:$1048576,$A373,AH$1))","v":""},{"$f":"IF($A373=\"N/A\",Ref!$B$36,INDEX(Ranks!$1:$1048576,$A373,AI$1))","v":""},{"$f":"IF($A373=\"N/A\",Ref!$B$36,INDEX(Ranks!$1:$1048576,$A373,AJ$1))","v":""},{"$f":"IF($A373=\"N/A\",Ref!$B$36,INDEX(Ranks!$1:$1048576,$A373,AK$1))","v":""},{"$f":"IF($A373=\"N/A\",Ref!$B$36,INDEX(Ranks!$1:$1048576,$A373,AL$1))","v":""},{"$f":"IF($A373=\"N/A\",Ref!$B$36,INDEX(Ranks!$1:$1048576,$A373,AM$1))","v":""},{"$f":"IF($A373=\"N/A\",Ref!$B$36,INDEX(Ranks!$1:$1048576,$A373,AN$1))","v":""},{"$f":"IF($A373=\"N/A\",Ref!$B$36,INDEX(Ranks!$1:$1048576,$A373,AO$1))","v":""},{"$f":"IF($A373=\"N/A\",Ref!$B$36,INDEX(Ranks!$1:$1048576,$A373,AP$1))","v":""},{"$f":"IF($A373=\"N/A\",Ref!$B$36,INDEX(Ranks!$1:$1048576,$A373,AQ$1))","v":""},{"$f":"IF($A373=\"N/A\",Ref!$B$36,INDEX(Ranks!$1:$1048576,$A373,AR$1))","v":""},{"$f":"IF($A373=\"N/A\",Ref!$B$36,INDEX(Ranks!$1:$1048576,$A373,AS$1))","v":""},{"$f":"IF($A373=\"N/A\",Ref!$B$36,INDEX(Ranks!$1:$1048576,$A373,AT$1))","v":""},{"$f":"IF($A373=\"N/A\",Ref!$B$36,INDEX(Ranks!$1:$1048576,$A373,AU$1))","v":""},{"$f":"IF($A373=\"N/A\",Ref!$B$36,INDEX(Ranks!$1:$1048576,$A373,AV$1))","v":""},{"$f":"IF($A373=\"N/A\",Ref!$B$36,INDEX(Ranks!$1:$1048576,$A373,AW$1))","v":""},{"$f":"IF($A373=\"N/A\",Ref!$B$36,INDEX(Ranks!$1:$1048576,$A373,AX$1))","v":""},{"$f":"IF($A373=\"N/A\",Ref!$B$36,INDEX(Ranks!$1:$1048576,$A373,AY$1))","v":""},{"$f":"IF($A373=\"N/A\",Ref!$B$36,INDEX(Ranks!$1:$1048576,$A373,AZ$1))","v":""},{"$f":"IF($A373=\"N/A\",Ref!$B$36,INDEX(Ranks!$1:$1048576,$A373,BA$1))","v":""},{"$f":"IF($A373=\"N/A\",Ref!$B$36,INDEX(Ranks!$1:$1048576,$A373,BB$1))","v":""},{"$f":"IF($A373=\"N/A\",Ref!$B$36,INDEX(Ranks!$1:$1048576,$A373,BC$1))","v":""},{"$f":"IF($A373=\"N/A\",Ref!$B$36,INDEX(Ranks!$1:$1048576,$A373,BD$1))","v":""},{"$f":"IF($A373=\"N/A\",Ref!$B$36,INDEX(Ranks!$1:$1048576,$A373,BE$1))","v":""},{"$f":"IF($A373=\"N/A\",Ref!$B$36,INDEX(Ranks!$1:$1048576,$A373,BF$1))","v":""},{"$f":"IF($A373=\"N/A\",Ref!$B$36,INDEX(Ranks!$1:$1048576,$A373,BG$1))","v":""},{"$f":"IF($A373=\"N/A\",Ref!$B$36,INDEX(Ranks!$1:$1048576,$A373,BH$1))","v":""},{"$f":"IF($A373=\"N/A\",Ref!$B$36,INDEX(Ranks!$1:$1048576,$A373,BI$1))","v":""},{"$f":"IF($A373=\"N/A\",Ref!$B$36,INDEX(Ranks!$1:$1048576,$A373,BJ$1))","v":""},{"$f":"IF($A373=\"N/A\",Ref!$B$36,INDEX(Ranks!$1:$1048576,$A373,BK$1))","v":""},{"$f":"IF($A373=\"N/A\",Ref!$B$36,INDEX(Ranks!$1:$1048576,$A373,BL$1))","v":""},{"$f":"IF($A373=\"N/A\",Ref!$B$36,INDEX(Ranks!$1:$1048576,$A373,BM$1))","v":""},{"$f":"IF($A373=\"N/A\",Ref!$B$36,INDEX(Ranks!$1:$1048576,$A373,BN$1))","v":""},{"$f":"IF($A373=\"N/A\",Ref!$B$36,INDEX(Ranks!$1:$1048576,$A373,BO$1))","v":""},{"$f":"IF($A373=\"N/A\",Ref!$B$36,INDEX(Ranks!$1:$1048576,$A373,BP$1))","v":""},{"$f":"IF($A373=\"N/A\",Ref!$B$36,INDEX(Ranks!$1:$1048576,$A373,BQ$1))","v":""},{"$f":"IF($A373=\"N/A\",Ref!$B$36,INDEX(Ranks!$1:$1048576,$A373,BR$1))","v":""},{"$f":"IF($A373=\"N/A\",Ref!$B$36,INDEX(Ranks!$1:$1048576,$A373,BS$1))","v":""},{"$f":"IF($A373=\"N/A\",Ref!$B$36,INDEX(Ranks!$1:$1048576,$A373,BT$1))","v":""},{"$f":"IF($A373=\"N/A\",Ref!$B$36,INDEX(Ranks!$1:$1048576,$A373,BU$1))","v":""},{"$f":"IF($A373=\"N/A\",Ref!$B$36,INDEX(Ranks!$1:$1048576,$A373,BV$1))","v":""},{"$f":"IF($A373=\"N/A\",Ref!$B$36,INDEX(Ranks!$1:$1048576,$A373,BW$1))","v":""},{"$f":"IF($A373=\"N/A\",Ref!$B$36,INDEX(Ranks!$1:$1048576,$A373,BX$1))","v":""},{"$f":"IF($A373=\"N/A\",Ref!$B$36,INDEX(Ranks!$1:$1048576,$A373,BY$1))","v":""},{"$f":"IF($A373=\"N/A\",Ref!$B$36,INDEX(Ranks!$1:$1048576,$A373,BZ$1))","v":""},{"$f":"IF($A373=\"N/A\",Ref!$B$36,INDEX(Ranks!$1:$1048576,$A373,CA$1))","v":""},{"$f":"IF($A373=\"N/A\",Ref!$B$36,INDEX(Ranks!$1:$1048576,$A373,CB$1))","v":""},{"$f":"IF($A373=\"N/A\",Ref!$B$36,INDEX(Ranks!$1:$1048576,$A373,CC$1))","v":""},{"$f":"IF($A373=\"N/A\",Ref!$B$36,INDEX(Ranks!$1:$1048576,$A373,CD$1))","v":""},{"$f":"IF($A373=\"N/A\",Ref!$B$36,INDEX(Ranks!$1:$1048576,$A373,CE$1))","v":""},{"$f":"IF($A373=\"N/A\",Ref!$B$36,INDEX(Ranks!$1:$1048576,$A373,CF$1))","v":""},{"$f":"IF($A373=\"N/A\",Ref!$B$36,INDEX(Ranks!$1:$1048576,$A373,CG$1))","v":""},{"$f":"IF($A373=\"N/A\",Ref!$B$36,INDEX(Ranks!$1:$1048576,$A373,CH$1))","v":""},{"$f":"IF($A373=\"N/A\",Ref!$B$36,INDEX(Ranks!$1:$1048576,$A373,CI$1))","v":""},{"$f":"IF($A373=\"N/A\",Ref!$B$36,INDEX(Ranks!$1:$1048576,$A373,CJ$1))","v":""},{"$f":"IF($A373=\"N/A\",Ref!$B$36,INDEX(Ranks!$1:$1048576,$A373,CK$1))","v":""},{"$f":"IF($A373=\"N/A\",Ref!$B$36,INDEX(Ranks!$1:$1048576,$A373,CL$1))","v":""},{"$f":"IF($A373=\"N/A\",Ref!$B$36,INDEX(Ranks!$1:$1048576,$A373,CM$1))","v":""},{"$f":"IF($A373=\"N/A\",Ref!$B$36,INDEX(Ranks!$1:$1048576,$A373,CN$1))","v":""},{"$f":"IF($A373=\"N/A\",Ref!$B$36,INDEX(Ranks!$1:$1048576,$A373,CO$1))","v":""},{"$f":"IF($A373=\"N/A\",Ref!$B$36,INDEX(Ranks!$1:$1048576,$A373,CP$1))","v":""},{"$f":"IF($A373=\"N/A\",Ref!$B$36,INDEX(Ranks!$1:$1048576,$A373,CQ$1))","v":""},{"$f":"IF($A373=\"N/A\",Ref!$B$36,INDEX(Ranks!$1:$1048576,$A373,CR$1))","v":""},{"$f":"IF($A373=\"N/A\",Ref!$B$36,INDEX(Ranks!$1:$1048576,$A373,CS$1))","v":""},{"$f":"IF($A373=\"N/A\",Ref!$B$36,INDEX(Ranks!$1:$1048576,$A373,CT$1))","v":""},{"$f":"IF($A373=\"N/A\",Ref!$B$36,INDEX(Ranks!$1:$1048576,$A373,CU$1))","v":""},{"$f":"IF($A373=\"N/A\",Ref!$B$36,INDEX(Ranks!$1:$1048576,$A373,CV$1))","v":""},{"$f":"IF($A373=\"N/A\",Ref!$B$36,INDEX(Ranks!$1:$1048576,$A373,CW$1))","v":""},{"$f":"IF($A373=\"N/A\",Ref!$B$36,INDEX(Ranks!$1:$1048576,$A373,CX$1))","v":""},{"$f":"IF($A373=\"N/A\",Ref!$B$36,INDEX(Ranks!$1:$1048576,$A373,CY$1))","v":""},{"$f":"IF($A373=\"N/A\",Ref!$B$36,INDEX(Ranks!$1:$1048576,$A373,CZ$1))","v":""},{"$f":"IF($A373=\"N/A\",Ref!$B$36,INDEX(Ranks!$1:$1048576,$A373,DA$1))","v":""},{"$f":"IF($A373=\"N/A\",Ref!$B$36,INDEX(Ranks!$1:$1048576,$A373,DB$1))","v":""},{"$f":"IF($A373=\"N/A\",Ref!$B$36,INDEX(Ranks!$1:$1048576,$A373,DC$1))","v":""},{"$f":"IF($A373=\"N/A\",Ref!$B$36,INDEX(Ranks!$1:$1048576,$A373,DD$1))","v":""},{"$f":"IF($A373=\"N/A\",Ref!$B$36,INDEX(Ranks!$1:$1048576,$A373,DE$1))","v":""},{"$f":"IF($A373=\"N/A\",Ref!$B$36,INDEX(Ranks!$1:$1048576,$A373,DF$1))","v":""},{"$f":"IF($A373=\"N/A\",Ref!$B$36,INDEX(Ranks!$1:$1048576,$A373,DG$1))","v":""},{"$f":"IF($A373=\"N/A\",Ref!$B$36,INDEX(Ranks!$1:$1048576,$A373,DH$1))","v":""},{"$f":"IF($A373=\"N/A\",Ref!$B$36,INDEX(Ranks!$1:$1048576,$A373,DI$1))","v":""},{"$f":"IF($A373=\"N/A\",Ref!$B$36,INDEX(Ranks!$1:$1048576,$A373,DJ$1))","v":""},{"$f":"IF($A373=\"N/A\",Ref!$B$36,INDEX(Ranks!$1:$1048576,$A373,DK$1))","v":""},{"$f":"IF($A373=\"N/A\",Ref!$B$36,INDEX(Ranks!$1:$1048576,$A373,DL$1))","v":""},{"$f":"IF($A373=\"N/A\",Ref!$B$36,INDEX(Ranks!$1:$1048576,$A373,DM$1))","v":""},{"$f":"IF($A373=\"N/A\",Ref!$B$36,INDEX(Ranks!$1:$1048576,$A373,DN$1))","v":""},{"$f":"IF($A373=\"N/A\",Ref!$B$36,INDEX(Ranks!$1:$1048576,$A373,DO$1))","v":""},{"$f":"IF($A373=\"N/A\",Ref!$B$36,INDEX(Ranks!$1:$1048576,$A373,DP$1))","v":""},{"$f":"IF($A373=\"N/A\",Ref!$B$36,INDEX(Ranks!$1:$1048576,$A373,DQ$1))","v":""},{"$f":"IF($A373=\"N/A\",Ref!$B$36,INDEX(Ranks!$1:$1048576,$A373,DR$1))","v":""},{"$f":"IF($A373=\"N/A\",Ref!$B$36,INDEX(Ranks!$1:$1048576,$A373,DS$1))","v":""},{"$f":"IF($A373=\"N/A\",Ref!$B$36,INDEX(Ranks!$1:$1048576,$A373,DT$1))","v":""},{"$f":"IF($A373=\"N/A\",Ref!$B$36,INDEX(Ranks!$1:$1048576,$A373,DU$1))","v":""},{"$f":"IF($A373=\"N/A\",Ref!$B$36,INDEX(Ranks!$1:$1048576,$A373,DV$1))","v":""},{"$f":"IF($A373=\"N/A\",Ref!$B$36,INDEX(Ranks!$1:$1048576,$A373,DW$1))","v":""},{"$f":"IF($A373=\"N/A\",Ref!$B$36,INDEX(Ranks!$1:$1048576,$A373,DX$1))","v":""},{"$f":"IF($A373=\"N/A\",Ref!$B$36,INDEX(Ranks!$1:$1048576,$A373,DY$1))","v":""},{"$f":"IF($A373=\"N/A\",Ref!$B$36,INDEX(Ranks!$1:$1048576,$A373,DZ$1))","v":""},{"$f":"IF($A373=\"N/A\",Ref!$B$36,INDEX(Ranks!$1:$1048576,$A373,EA$1))","v":""},{"$f":"IF($A373=\"N/A\",Ref!$B$36,INDEX(Ranks!$1:$1048576,$A373,EB$1))","v":""}]
[{"$f":"IFERROR(MATCH('Portfolio Page'!L374,Ranks!L:L,0),\"N/A\")","v":"N/A"},null,{"$f":"IF($A374=\"N/A\",\"\",INDEX(Ranks!$1:$1048576,$A374,C$1))","v":""},{"$f":"IF($A374=\"N/A\",Ref!$B$36,INDEX(Ranks!$1:$1048576,$A374,D$1))","v":""},{"$f":"IF($A374=\"N/A\",Ref!$B$36,INDEX(Ranks!$1:$1048576,$A374,E$1))","v":""},{"$f":"IF($A374=\"N/A\",\"\",INDEX(Ranks!$1:$1048576,$A374,F$1))","v":""},{"$f":"IF($A374=\"N/A\",\"\",INDEX(Ranks!$1:$1048576,$A374,G$1))","v":""},{"$f":"IF($A374=\"N/A\",\"\",INDEX(Ranks!$1:$1048576,$A374,H$1))","v":""},{"$f":"IF($A374=\"N/A\",\"\",INDEX(Ranks!$1:$1048576,$A374,I$1))","v":""},{"$f":"IF($A374=\"N/A\",\"\",INDEX(Ranks!$1:$1048576,$A374,J$1))","v":""},{"$f":"IF($A374=\"N/A\",\"\",INDEX(Ranks!$1:$1048576,$A374,K$1))","v":""},null,{"$f":"IF($A374=\"N/A\",Ref!$B$36,INDEX(Ranks!$1:$1048576,$A374,M$1))","v":""},{"$f":"IF($A374=\"N/A\",Ref!$B$36,INDEX(Ranks!$1:$1048576,$A374,N$1))","v":""},{"$f":"IF($A374=\"N/A\",Ref!$B$36,INDEX(Ranks!$1:$1048576,$A374,O$1))","v":""},{"$f":"IF($A374=\"N/A\",Ref!$B$36,INDEX(Ranks!$1:$1048576,$A374,P$1))","v":""},{"$f":"IF($A374=\"N/A\",Ref!$B$36,INDEX(Ranks!$1:$1048576,$A374,Q$1))","v":""},{"$f":"IF($A374=\"N/A\",Ref!$B$36,INDEX(Ranks!$1:$1048576,$A374,R$1))","v":""},{"$f":"IF($A374=\"N/A\",Ref!$B$36,INDEX(Ranks!$1:$1048576,$A374,S$1))","v":""},{"$f":"IF($A374=\"N/A\",Ref!$B$36,INDEX(Ranks!$1:$1048576,$A374,T$1))","v":""},{"$f":"IF($A374=\"N/A\",Ref!$B$36,INDEX(Ranks!$1:$1048576,$A374,U$1))","v":""},{"$f":"IF($A374=\"N/A\",Ref!$B$36,INDEX(Ranks!$1:$1048576,$A374,V$1))","v":""},{"$f":"IF($A374=\"N/A\",Ref!$B$36,INDEX(Ranks!$1:$1048576,$A374,W$1))","v":""},{"$f":"IF($A374=\"N/A\",Ref!$B$36,INDEX(Ranks!$1:$1048576,$A374,X$1))","v":""},{"$f":"IF($A374=\"N/A\",Ref!$B$36,INDEX(Ranks!$1:$1048576,$A374,Y$1))","v":""},{"$f":"IF($A374=\"N/A\",Ref!$B$36,INDEX(Ranks!$1:$1048576,$A374,Z$1))","v":""},{"$f":"IF($A374=\"N/A\",Ref!$B$36,INDEX(Ranks!$1:$1048576,$A374,AA$1))","v":""},{"$f":"IF($A374=\"N/A\",Ref!$B$36,INDEX(Ranks!$1:$1048576,$A374,AB$1))","v":""},{"$f":"IF($A374=\"N/A\",Ref!$B$36,INDEX(Ranks!$1:$1048576,$A374,AC$1))","v":""},{"$f":"IF($A374=\"N/A\",Ref!$B$36,INDEX(Ranks!$1:$1048576,$A374,AD$1))","v":""},{"$f":"IF($A374=\"N/A\",Ref!$B$36,INDEX(Ranks!$1:$1048576,$A374,AE$1))","v":""},{"$f":"IF($A374=\"N/A\",Ref!$B$36,INDEX(Ranks!$1:$1048576,$A374,AF$1))","v":""},{"$f":"IF($A374=\"N/A\",Ref!$B$36,INDEX(Ranks!$1:$1048576,$A374,AG$1))","v":""},{"$f":"IF($A374=\"N/A\",Ref!$B$36,INDEX(Ranks!$1:$1048576,$A374,AH$1))","v":""},{"$f":"IF($A374=\"N/A\",Ref!$B$36,INDEX(Ranks!$1:$1048576,$A374,AI$1))","v":""},{"$f":"IF($A374=\"N/A\",Ref!$B$36,INDEX(Ranks!$1:$1048576,$A374,AJ$1))","v":""},{"$f":"IF($A374=\"N/A\",Ref!$B$36,INDEX(Ranks!$1:$1048576,$A374,AK$1))","v":""},{"$f":"IF($A374=\"N/A\",Ref!$B$36,INDEX(Ranks!$1:$1048576,$A374,AL$1))","v":""},{"$f":"IF($A374=\"N/A\",Ref!$B$36,INDEX(Ranks!$1:$1048576,$A374,AM$1))","v":""},{"$f":"IF($A374=\"N/A\",Ref!$B$36,INDEX(Ranks!$1:$1048576,$A374,AN$1))","v":""},{"$f":"IF($A374=\"N/A\",Ref!$B$36,INDEX(Ranks!$1:$1048576,$A374,AO$1))","v":""},{"$f":"IF($A374=\"N/A\",Ref!$B$36,INDEX(Ranks!$1:$1048576,$A374,AP$1))","v":""},{"$f":"IF($A374=\"N/A\",Ref!$B$36,INDEX(Ranks!$1:$1048576,$A374,AQ$1))","v":""},{"$f":"IF($A374=\"N/A\",Ref!$B$36,INDEX(Ranks!$1:$1048576,$A374,AR$1))","v":""},{"$f":"IF($A374=\"N/A\",Ref!$B$36,INDEX(Ranks!$1:$1048576,$A374,AS$1))","v":""},{"$f":"IF($A374=\"N/A\",Ref!$B$36,INDEX(Ranks!$1:$1048576,$A374,AT$1))","v":""},{"$f":"IF($A374=\"N/A\",Ref!$B$36,INDEX(Ranks!$1:$1048576,$A374,AU$1))","v":""},{"$f":"IF($A374=\"N/A\",Ref!$B$36,INDEX(Ranks!$1:$1048576,$A374,AV$1))","v":""},{"$f":"IF($A374=\"N/A\",Ref!$B$36,INDEX(Ranks!$1:$1048576,$A374,AW$1))","v":""},{"$f":"IF($A374=\"N/A\",Ref!$B$36,INDEX(Ranks!$1:$1048576,$A374,AX$1))","v":""},{"$f":"IF($A374=\"N/A\",Ref!$B$36,INDEX(Ranks!$1:$1048576,$A374,AY$1))","v":""},{"$f":"IF($A374=\"N/A\",Ref!$B$36,INDEX(Ranks!$1:$1048576,$A374,AZ$1))","v":""},{"$f":"IF($A374=\"N/A\",Ref!$B$36,INDEX(Ranks!$1:$1048576,$A374,BA$1))","v":""},{"$f":"IF($A374=\"N/A\",Ref!$B$36,INDEX(Ranks!$1:$1048576,$A374,BB$1))","v":""},{"$f":"IF($A374=\"N/A\",Ref!$B$36,INDEX(Ranks!$1:$1048576,$A374,BC$1))","v":""},{"$f":"IF($A374=\"N/A\",Ref!$B$36,INDEX(Ranks!$1:$1048576,$A374,BD$1))","v":""},{"$f":"IF($A374=\"N/A\",Ref!$B$36,INDEX(Ranks!$1:$1048576,$A374,BE$1))","v":""},{"$f":"IF($A374=\"N/A\",Ref!$B$36,INDEX(Ranks!$1:$1048576,$A374,BF$1))","v":""},{"$f":"IF($A374=\"N/A\",Ref!$B$36,INDEX(Ranks!$1:$1048576,$A374,BG$1))","v":""},{"$f":"IF($A374=\"N/A\",Ref!$B$36,INDEX(Ranks!$1:$1048576,$A374,BH$1))","v":""},{"$f":"IF($A374=\"N/A\",Ref!$B$36,INDEX(Ranks!$1:$1048576,$A374,BI$1))","v":""},{"$f":"IF($A374=\"N/A\",Ref!$B$36,INDEX(Ranks!$1:$1048576,$A374,BJ$1))","v":""},{"$f":"IF($A374=\"N/A\",Ref!$B$36,INDEX(Ranks!$1:$1048576,$A374,BK$1))","v":""},{"$f":"IF($A374=\"N/A\",Ref!$B$36,INDEX(Ranks!$1:$1048576,$A374,BL$1))","v":""},{"$f":"IF($A374=\"N/A\",Ref!$B$36,INDEX(Ranks!$1:$1048576,$A374,BM$1))","v":""},{"$f":"IF($A374=\"N/A\",Ref!$B$36,INDEX(Ranks!$1:$1048576,$A374,BN$1))","v":""},{"$f":"IF($A374=\"N/A\",Ref!$B$36,INDEX(Ranks!$1:$1048576,$A374,BO$1))","v":""},{"$f":"IF($A374=\"N/A\",Ref!$B$36,INDEX(Ranks!$1:$1048576,$A374,BP$1))","v":""},{"$f":"IF($A374=\"N/A\",Ref!$B$36,INDEX(Ranks!$1:$1048576,$A374,BQ$1))","v":""},{"$f":"IF($A374=\"N/A\",Ref!$B$36,INDEX(Ranks!$1:$1048576,$A374,BR$1))","v":""},{"$f":"IF($A374=\"N/A\",Ref!$B$36,INDEX(Ranks!$1:$1048576,$A374,BS$1))","v":""},{"$f":"IF($A374=\"N/A\",Ref!$B$36,INDEX(Ranks!$1:$1048576,$A374,BT$1))","v":""},{"$f":"IF($A374=\"N/A\",Ref!$B$36,INDEX(Ranks!$1:$1048576,$A374,BU$1))","v":""},{"$f":"IF($A374=\"N/A\",Ref!$B$36,INDEX(Ranks!$1:$1048576,$A374,BV$1))","v":""},{"$f":"IF($A374=\"N/A\",Ref!$B$36,INDEX(Ranks!$1:$1048576,$A374,BW$1))","v":""},{"$f":"IF($A374=\"N/A\",Ref!$B$36,INDEX(Ranks!$1:$1048576,$A374,BX$1))","v":""},{"$f":"IF($A374=\"N/A\",Ref!$B$36,INDEX(Ranks!$1:$1048576,$A374,BY$1))","v":""},{"$f":"IF($A374=\"N/A\",Ref!$B$36,INDEX(Ranks!$1:$1048576,$A374,BZ$1))","v":""},{"$f":"IF($A374=\"N/A\",Ref!$B$36,INDEX(Ranks!$1:$1048576,$A374,CA$1))","v":""},{"$f":"IF($A374=\"N/A\",Ref!$B$36,INDEX(Ranks!$1:$1048576,$A374,CB$1))","v":""},{"$f":"IF($A374=\"N/A\",Ref!$B$36,INDEX(Ranks!$1:$1048576,$A374,CC$1))","v":""},{"$f":"IF($A374=\"N/A\",Ref!$B$36,INDEX(Ranks!$1:$1048576,$A374,CD$1))","v":""},{"$f":"IF($A374=\"N/A\",Ref!$B$36,INDEX(Ranks!$1:$1048576,$A374,CE$1))","v":""},{"$f":"IF($A374=\"N/A\",Ref!$B$36,INDEX(Ranks!$1:$1048576,$A374,CF$1))","v":""},{"$f":"IF($A374=\"N/A\",Ref!$B$36,INDEX(Ranks!$1:$1048576,$A374,CG$1))","v":""},{"$f":"IF($A374=\"N/A\",Ref!$B$36,INDEX(Ranks!$1:$1048576,$A374,CH$1))","v":""},{"$f":"IF($A374=\"N/A\",Ref!$B$36,INDEX(Ranks!$1:$1048576,$A374,CI$1))","v":""},{"$f":"IF($A374=\"N/A\",Ref!$B$36,INDEX(Ranks!$1:$1048576,$A374,CJ$1))","v":""},{"$f":"IF($A374=\"N/A\",Ref!$B$36,INDEX(Ranks!$1:$1048576,$A374,CK$1))","v":""},{"$f":"IF($A374=\"N/A\",Ref!$B$36,INDEX(Ranks!$1:$1048576,$A374,CL$1))","v":""},{"$f":"IF($A374=\"N/A\",Ref!$B$36,INDEX(Ranks!$1:$1048576,$A374,CM$1))","v":""},{"$f":"IF($A374=\"N/A\",Ref!$B$36,INDEX(Ranks!$1:$1048576,$A374,CN$1))","v":""},{"$f":"IF($A374=\"N/A\",Ref!$B$36,INDEX(Ranks!$1:$1048576,$A374,CO$1))","v":""},{"$f":"IF($A374=\"N/A\",Ref!$B$36,INDEX(Ranks!$1:$1048576,$A374,CP$1))","v":""},{"$f":"IF($A374=\"N/A\",Ref!$B$36,INDEX(Ranks!$1:$1048576,$A374,CQ$1))","v":""},{"$f":"IF($A374=\"N/A\",Ref!$B$36,INDEX(Ranks!$1:$1048576,$A374,CR$1))","v":""},{"$f":"IF($A374=\"N/A\",Ref!$B$36,INDEX(Ranks!$1:$1048576,$A374,CS$1))","v":""},{"$f":"IF($A374=\"N/A\",Ref!$B$36,INDEX(Ranks!$1:$1048576,$A374,CT$1))","v":""},{"$f":"IF($A374=\"N/A\",Ref!$B$36,INDEX(Ranks!$1:$1048576,$A374,CU$1))","v":""},{"$f":"IF($A374=\"N/A\",Ref!$B$36,INDEX(Ranks!$1:$1048576,$A374,CV$1))","v":""},{"$f":"IF($A374=\"N/A\",Ref!$B$36,INDEX(Ranks!$1:$1048576,$A374,CW$1))","v":""},{"$f":"IF($A374=\"N/A\",Ref!$B$36,INDEX(Ranks!$1:$1048576,$A374,CX$1))","v":""},{"$f":"IF($A374=\"N/A\",Ref!$B$36,INDEX(Ranks!$1:$1048576,$A374,CY$1))","v":""},{"$f":"IF($A374=\"N/A\",Ref!$B$36,INDEX(Ranks!$1:$1048576,$A374,CZ$1))","v":""},{"$f":"IF($A374=\"N/A\",Ref!$B$36,INDEX(Ranks!$1:$1048576,$A374,DA$1))","v":""},{"$f":"IF($A374=\"N/A\",Ref!$B$36,INDEX(Ranks!$1:$1048576,$A374,DB$1))","v":""},{"$f":"IF($A374=\"N/A\",Ref!$B$36,INDEX(Ranks!$1:$1048576,$A374,DC$1))","v":""},{"$f":"IF($A374=\"N/A\",Ref!$B$36,INDEX(Ranks!$1:$1048576,$A374,DD$1))","v":""},{"$f":"IF($A374=\"N/A\",Ref!$B$36,INDEX(Ranks!$1:$1048576,$A374,DE$1))","v":""},{"$f":"IF($A374=\"N/A\",Ref!$B$36,INDEX(Ranks!$1:$1048576,$A374,DF$1))","v":""},{"$f":"IF($A374=\"N/A\",Ref!$B$36,INDEX(Ranks!$1:$1048576,$A374,DG$1))","v":""},{"$f":"IF($A374=\"N/A\",Ref!$B$36,INDEX(Ranks!$1:$1048576,$A374,DH$1))","v":""},{"$f":"IF($A374=\"N/A\",Ref!$B$36,INDEX(Ranks!$1:$1048576,$A374,DI$1))","v":""},{"$f":"IF($A374=\"N/A\",Ref!$B$36,INDEX(Ranks!$1:$1048576,$A374,DJ$1))","v":""},{"$f":"IF($A374=\"N/A\",Ref!$B$36,INDEX(Ranks!$1:$1048576,$A374,DK$1))","v":""},{"$f":"IF($A374=\"N/A\",Ref!$B$36,INDEX(Ranks!$1:$1048576,$A374,DL$1))","v":""},{"$f":"IF($A374=\"N/A\",Ref!$B$36,INDEX(Ranks!$1:$1048576,$A374,DM$1))","v":""},{"$f":"IF($A374=\"N/A\",Ref!$B$36,INDEX(Ranks!$1:$1048576,$A374,DN$1))","v":""},{"$f":"IF($A374=\"N/A\",Ref!$B$36,INDEX(Ranks!$1:$1048576,$A374,DO$1))","v":""},{"$f":"IF($A374=\"N/A\",Ref!$B$36,INDEX(Ranks!$1:$1048576,$A374,DP$1))","v":""},{"$f":"IF($A374=\"N/A\",Ref!$B$36,INDEX(Ranks!$1:$1048576,$A374,DQ$1))","v":""},{"$f":"IF($A374=\"N/A\",Ref!$B$36,INDEX(Ranks!$1:$1048576,$A374,DR$1))","v":""},{"$f":"IF($A374=\"N/A\",Ref!$B$36,INDEX(Ranks!$1:$1048576,$A374,DS$1))","v":""},{"$f":"IF($A374=\"N/A\",Ref!$B$36,INDEX(Ranks!$1:$1048576,$A374,DT$1))","v":""},{"$f":"IF($A374=\"N/A\",Ref!$B$36,INDEX(Ranks!$1:$1048576,$A374,DU$1))","v":""},{"$f":"IF($A374=\"N/A\",Ref!$B$36,INDEX(Ranks!$1:$1048576,$A374,DV$1))","v":""},{"$f":"IF($A374=\"N/A\",Ref!$B$36,INDEX(Ranks!$1:$1048576,$A374,DW$1))","v":""},{"$f":"IF($A374=\"N/A\",Ref!$B$36,INDEX(Ranks!$1:$1048576,$A374,DX$1))","v":""},{"$f":"IF($A374=\"N/A\",Ref!$B$36,INDEX(Ranks!$1:$1048576,$A374,DY$1))","v":""},{"$f":"IF($A374=\"N/A\",Ref!$B$36,INDEX(Ranks!$1:$1048576,$A374,DZ$1))","v":""},{"$f":"IF($A374=\"N/A\",Ref!$B$36,INDEX(Ranks!$1:$1048576,$A374,EA$1))","v":""},{"$f":"IF($A374=\"N/A\",Ref!$B$36,INDEX(Ranks!$1:$1048576,$A374,EB$1))","v":""}]
[{"$f":"IFERROR(MATCH('Portfolio Page'!L375,Ranks!L:L,0),\"N/A\")","v":"N/A"},null,{"$f":"IF($A375=\"N/A\",\"\",INDEX(Ranks!$1:$1048576,$A375,C$1))","v":""},{"$f":"IF($A375=\"N/A\",Ref!$B$36,INDEX(Ranks!$1:$1048576,$A375,D$1))","v":""},{"$f":"IF($A375=\"N/A\",Ref!$B$36,INDEX(Ranks!$1:$1048576,$A375,E$1))","v":""},{"$f":"IF($A375=\"N/A\",\"\",INDEX(Ranks!$1:$1048576,$A375,F$1))","v":""},{"$f":"IF($A375=\"N/A\",\"\",INDEX(Ranks!$1:$1048576,$A375,G$1))","v":""},{"$f":"IF($A375=\"N/A\",\"\",INDEX(Ranks!$1:$1048576,$A375,H$1))","v":""},{"$f":"IF($A375=\"N/A\",\"\",INDEX(Ranks!$1:$1048576,$A375,I$1))","v":""},{"$f":"IF($A375=\"N/A\",\"\",INDEX(Ranks!$1:$1048576,$A375,J$1))","v":""},{"$f":"IF($A375=\"N/A\",\"\",INDEX(Ranks!$1:$1048576,$A375,K$1))","v":""},null,{"$f":"IF($A375=\"N/A\",Ref!$B$36,INDEX(Ranks!$1:$1048576,$A375,M$1))","v":""},{"$f":"IF($A375=\"N/A\",Ref!$B$36,INDEX(Ranks!$1:$1048576,$A375,N$1))","v":""},{"$f":"IF($A375=\"N/A\",Ref!$B$36,INDEX(Ranks!$1:$1048576,$A375,O$1))","v":""},{"$f":"IF($A375=\"N/A\",Ref!$B$36,INDEX(Ranks!$1:$1048576,$A375,P$1))","v":""},{"$f":"IF($A375=\"N/A\",Ref!$B$36,INDEX(Ranks!$1:$1048576,$A375,Q$1))","v":""},{"$f":"IF($A375=\"N/A\",Ref!$B$36,INDEX(Ranks!$1:$1048576,$A375,R$1))","v":""},{"$f":"IF($A375=\"N/A\",Ref!$B$36,INDEX(Ranks!$1:$1048576,$A375,S$1))","v":""},{"$f":"IF($A375=\"N/A\",Ref!$B$36,INDEX(Ranks!$1:$1048576,$A375,T$1))","v":""},{"$f":"IF($A375=\"N/A\",Ref!$B$36,INDEX(Ranks!$1:$1048576,$A375,U$1))","v":""},{"$f":"IF($A375=\"N/A\",Ref!$B$36,INDEX(Ranks!$1:$1048576,$A375,V$1))","v":""},{"$f":"IF($A375=\"N/A\",Ref!$B$36,INDEX(Ranks!$1:$1048576,$A375,W$1))","v":""},{"$f":"IF($A375=\"N/A\",Ref!$B$36,INDEX(Ranks!$1:$1048576,$A375,X$1))","v":""},{"$f":"IF($A375=\"N/A\",Ref!$B$36,INDEX(Ranks!$1:$1048576,$A375,Y$1))","v":""},{"$f":"IF($A375=\"N/A\",Ref!$B$36,INDEX(Ranks!$1:$1048576,$A375,Z$1))","v":""},{"$f":"IF($A375=\"N/A\",Ref!$B$36,INDEX(Ranks!$1:$1048576,$A375,AA$1))","v":""},{"$f":"IF($A375=\"N/A\",Ref!$B$36,INDEX(Ranks!$1:$1048576,$A375,AB$1))","v":""},{"$f":"IF($A375=\"N/A\",Ref!$B$36,INDEX(Ranks!$1:$1048576,$A375,AC$1))","v":""},{"$f":"IF($A375=\"N/A\",Ref!$B$36,INDEX(Ranks!$1:$1048576,$A375,AD$1))","v":""},{"$f":"IF($A375=\"N/A\",Ref!$B$36,INDEX(Ranks!$1:$1048576,$A375,AE$1))","v":""},{"$f":"IF($A375=\"N/A\",Ref!$B$36,INDEX(Ranks!$1:$1048576,$A375,AF$1))","v":""},{"$f":"IF($A375=\"N/A\",Ref!$B$36,INDEX(Ranks!$1:$1048576,$A375,AG$1))","v":""},{"$f":"IF($A375=\"N/A\",Ref!$B$36,INDEX(Ranks!$1:$1048576,$A375,AH$1))","v":""},{"$f":"IF($A375=\"N/A\",Ref!$B$36,INDEX(Ranks!$1:$1048576,$A375,AI$1))","v":""},{"$f":"IF($A375=\"N/A\",Ref!$B$36,INDEX(Ranks!$1:$1048576,$A375,AJ$1))","v":""},{"$f":"IF($A375=\"N/A\",Ref!$B$36,INDEX(Ranks!$1:$1048576,$A375,AK$1))","v":""},{"$f":"IF($A375=\"N/A\",Ref!$B$36,INDEX(Ranks!$1:$1048576,$A375,AL$1))","v":""},{"$f":"IF($A375=\"N/A\",Ref!$B$36,INDEX(Ranks!$1:$1048576,$A375,AM$1))","v":""},{"$f":"IF($A375=\"N/A\",Ref!$B$36,INDEX(Ranks!$1:$1048576,$A375,AN$1))","v":""},{"$f":"IF($A375=\"N/A\",Ref!$B$36,INDEX(Ranks!$1:$1048576,$A375,AO$1))","v":""},{"$f":"IF($A375=\"N/A\",Ref!$B$36,INDEX(Ranks!$1:$1048576,$A375,AP$1))","v":""},{"$f":"IF($A375=\"N/A\",Ref!$B$36,INDEX(Ranks!$1:$1048576,$A375,AQ$1))","v":""},{"$f":"IF($A375=\"N/A\",Ref!$B$36,INDEX(Ranks!$1:$1048576,$A375,AR$1))","v":""},{"$f":"IF($A375=\"N/A\",Ref!$B$36,INDEX(Ranks!$1:$1048576,$A375,AS$1))","v":""},{"$f":"IF($A375=\"N/A\",Ref!$B$36,INDEX(Ranks!$1:$1048576,$A375,AT$1))","v":""},{"$f":"IF($A375=\"N/A\",Ref!$B$36,INDEX(Ranks!$1:$1048576,$A375,AU$1))","v":""},{"$f":"IF($A375=\"N/A\",Ref!$B$36,INDEX(Ranks!$1:$1048576,$A375,AV$1))","v":""},{"$f":"IF($A375=\"N/A\",Ref!$B$36,INDEX(Ranks!$1:$1048576,$A375,AW$1))","v":""},{"$f":"IF($A375=\"N/A\",Ref!$B$36,INDEX(Ranks!$1:$1048576,$A375,AX$1))","v":""},{"$f":"IF($A375=\"N/A\",Ref!$B$36,INDEX(Ranks!$1:$1048576,$A375,AY$1))","v":""},{"$f":"IF($A375=\"N/A\",Ref!$B$36,INDEX(Ranks!$1:$1048576,$A375,AZ$1))","v":""},{"$f":"IF($A375=\"N/A\",Ref!$B$36,INDEX(Ranks!$1:$1048576,$A375,BA$1))","v":""},{"$f":"IF($A375=\"N/A\",Ref!$B$36,INDEX(Ranks!$1:$1048576,$A375,BB$1))","v":""},{"$f":"IF($A375=\"N/A\",Ref!$B$36,INDEX(Ranks!$1:$1048576,$A375,BC$1))","v":""},{"$f":"IF($A375=\"N/A\",Ref!$B$36,INDEX(Ranks!$1:$1048576,$A375,BD$1))","v":""},{"$f":"IF($A375=\"N/A\",Ref!$B$36,INDEX(Ranks!$1:$1048576,$A375,BE$1))","v":""},{"$f":"IF($A375=\"N/A\",Ref!$B$36,INDEX(Ranks!$1:$1048576,$A375,BF$1))","v":""},{"$f":"IF($A375=\"N/A\",Ref!$B$36,INDEX(Ranks!$1:$1048576,$A375,BG$1))","v":""},{"$f":"IF($A375=\"N/A\",Ref!$B$36,INDEX(Ranks!$1:$1048576,$A375,BH$1))","v":""},{"$f":"IF($A375=\"N/A\",Ref!$B$36,INDEX(Ranks!$1:$1048576,$A375,BI$1))","v":""},{"$f":"IF($A375=\"N/A\",Ref!$B$36,INDEX(Ranks!$1:$1048576,$A375,BJ$1))","v":""},{"$f":"IF($A375=\"N/A\",Ref!$B$36,INDEX(Ranks!$1:$1048576,$A375,BK$1))","v":""},{"$f":"IF($A375=\"N/A\",Ref!$B$36,INDEX(Ranks!$1:$1048576,$A375,BL$1))","v":""},{"$f":"IF($A375=\"N/A\",Ref!$B$36,INDEX(Ranks!$1:$1048576,$A375,BM$1))","v":""},{"$f":"IF($A375=\"N/A\",Ref!$B$36,INDEX(Ranks!$1:$1048576,$A375,BN$1))","v":""},{"$f":"IF($A375=\"N/A\",Ref!$B$36,INDEX(Ranks!$1:$1048576,$A375,BO$1))","v":""},{"$f":"IF($A375=\"N/A\",Ref!$B$36,INDEX(Ranks!$1:$1048576,$A375,BP$1))","v":""},{"$f":"IF($A375=\"N/A\",Ref!$B$36,INDEX(Ranks!$1:$1048576,$A375,BQ$1))","v":""},{"$f":"IF($A375=\"N/A\",Ref!$B$36,INDEX(Ranks!$1:$1048576,$A375,BR$1))","v":""},{"$f":"IF($A375=\"N/A\",Ref!$B$36,INDEX(Ranks!$1:$1048576,$A375,BS$1))","v":""},{"$f":"IF($A375=\"N/A\",Ref!$B$36,INDEX(Ranks!$1:$1048576,$A375,BT$1))","v":""},{"$f":"IF($A375=\"N/A\",Ref!$B$36,INDEX(Ranks!$1:$1048576,$A375,BU$1))","v":""},{"$f":"IF($A375=\"N/A\",Ref!$B$36,INDEX(Ranks!$1:$1048576,$A375,BV$1))","v":""},{"$f":"IF($A375=\"N/A\",Ref!$B$36,INDEX(Ranks!$1:$1048576,$A375,BW$1))","v":""},{"$f":"IF($A375=\"N/A\",Ref!$B$36,INDEX(Ranks!$1:$1048576,$A375,BX$1))","v":""},{"$f":"IF($A375=\"N/A\",Ref!$B$36,INDEX(Ranks!$1:$1048576,$A375,BY$1))","v":""},{"$f":"IF($A375=\"N/A\",Ref!$B$36,INDEX(Ranks!$1:$1048576,$A375,BZ$1))","v":""},{"$f":"IF($A375=\"N/A\",Ref!$B$36,INDEX(Ranks!$1:$1048576,$A375,CA$1))","v":""},{"$f":"IF($A375=\"N/A\",Ref!$B$36,INDEX(Ranks!$1:$1048576,$A375,CB$1))","v":""},{"$f":"IF($A375=\"N/A\",Ref!$B$36,INDEX(Ranks!$1:$1048576,$A375,CC$1))","v":""},{"$f":"IF($A375=\"N/A\",Ref!$B$36,INDEX(Ranks!$1:$1048576,$A375,CD$1))","v":""},{"$f":"IF($A375=\"N/A\",Ref!$B$36,INDEX(Ranks!$1:$1048576,$A375,CE$1))","v":""},{"$f":"IF($A375=\"N/A\",Ref!$B$36,INDEX(Ranks!$1:$1048576,$A375,CF$1))","v":""},{"$f":"IF($A375=\"N/A\",Ref!$B$36,INDEX(Ranks!$1:$1048576,$A375,CG$1))","v":""},{"$f":"IF($A375=\"N/A\",Ref!$B$36,INDEX(Ranks!$1:$1048576,$A375,CH$1))","v":""},{"$f":"IF($A375=\"N/A\",Ref!$B$36,INDEX(Ranks!$1:$1048576,$A375,CI$1))","v":""},{"$f":"IF($A375=\"N/A\",Ref!$B$36,INDEX(Ranks!$1:$1048576,$A375,CJ$1))","v":""},{"$f":"IF($A375=\"N/A\",Ref!$B$36,INDEX(Ranks!$1:$1048576,$A375,CK$1))","v":""},{"$f":"IF($A375=\"N/A\",Ref!$B$36,INDEX(Ranks!$1:$1048576,$A375,CL$1))","v":""},{"$f":"IF($A375=\"N/A\",Ref!$B$36,INDEX(Ranks!$1:$1048576,$A375,CM$1))","v":""},{"$f":"IF($A375=\"N/A\",Ref!$B$36,INDEX(Ranks!$1:$1048576,$A375,CN$1))","v":""},{"$f":"IF($A375=\"N/A\",Ref!$B$36,INDEX(Ranks!$1:$1048576,$A375,CO$1))","v":""},{"$f":"IF($A375=\"N/A\",Ref!$B$36,INDEX(Ranks!$1:$1048576,$A375,CP$1))","v":""},{"$f":"IF($A375=\"N/A\",Ref!$B$36,INDEX(Ranks!$1:$1048576,$A375,CQ$1))","v":""},{"$f":"IF($A375=\"N/A\",Ref!$B$36,INDEX(Ranks!$1:$1048576,$A375,CR$1))","v":""},{"$f":"IF($A375=\"N/A\",Ref!$B$36,INDEX(Ranks!$1:$1048576,$A375,CS$1))","v":""},{"$f":"IF($A375=\"N/A\",Ref!$B$36,INDEX(Ranks!$1:$1048576,$A375,CT$1))","v":""},{"$f":"IF($A375=\"N/A\",Ref!$B$36,INDEX(Ranks!$1:$1048576,$A375,CU$1))","v":""},{"$f":"IF($A375=\"N/A\",Ref!$B$36,INDEX(Ranks!$1:$1048576,$A375,CV$1))","v":""},{"$f":"IF($A375=\"N/A\",Ref!$B$36,INDEX(Ranks!$1:$1048576,$A375,CW$1))","v":""},{"$f":"IF($A375=\"N/A\",Ref!$B$36,INDEX(Ranks!$1:$1048576,$A375,CX$1))","v":""},{"$f":"IF($A375=\"N/A\",Ref!$B$36,INDEX(Ranks!$1:$1048576,$A375,CY$1))","v":""},{"$f":"IF($A375=\"N/A\",Ref!$B$36,INDEX(Ranks!$1:$1048576,$A375,CZ$1))","v":""},{"$f":"IF($A375=\"N/A\",Ref!$B$36,INDEX(Ranks!$1:$1048576,$A375,DA$1))","v":""},{"$f":"IF($A375=\"N/A\",Ref!$B$36,INDEX(Ranks!$1:$1048576,$A375,DB$1))","v":""},{"$f":"IF($A375=\"N/A\",Ref!$B$36,INDEX(Ranks!$1:$1048576,$A375,DC$1))","v":""},{"$f":"IF($A375=\"N/A\",Ref!$B$36,INDEX(Ranks!$1:$1048576,$A375,DD$1))","v":""},{"$f":"IF($A375=\"N/A\",Ref!$B$36,INDEX(Ranks!$1:$1048576,$A375,DE$1))","v":""},{"$f":"IF($A375=\"N/A\",Ref!$B$36,INDEX(Ranks!$1:$1048576,$A375,DF$1))","v":""},{"$f":"IF($A375=\"N/A\",Ref!$B$36,INDEX(Ranks!$1:$1048576,$A375,DG$1))","v":""},{"$f":"IF($A375=\"N/A\",Ref!$B$36,INDEX(Ranks!$1:$1048576,$A375,DH$1))","v":""},{"$f":"IF($A375=\"N/A\",Ref!$B$36,INDEX(Ranks!$1:$1048576,$A375,DI$1))","v":""},{"$f":"IF($A375=\"N/A\",Ref!$B$36,INDEX(Ranks!$1:$1048576,$A375,DJ$1))","v":""},{"$f":"IF($A375=\"N/A\",Ref!$B$36,INDEX(Ranks!$1:$1048576,$A375,DK$1))","v":""},{"$f":"IF($A375=\"N/A\",Ref!$B$36,INDEX(Ranks!$1:$1048576,$A375,DL$1))","v":""},{"$f":"IF($A375=\"N/A\",Ref!$B$36,INDEX(Ranks!$1:$1048576,$A375,DM$1))","v":""},{"$f":"IF($A375=\"N/A\",Ref!$B$36,INDEX(Ranks!$1:$1048576,$A375,DN$1))","v":""},{"$f":"IF($A375=\"N/A\",Ref!$B$36,INDEX(Ranks!$1:$1048576,$A375,DO$1))","v":""},{"$f":"IF($A375=\"N/A\",Ref!$B$36,INDEX(Ranks!$1:$1048576,$A375,DP$1))","v":""},{"$f":"IF($A375=\"N/A\",Ref!$B$36,INDEX(Ranks!$1:$1048576,$A375,DQ$1))","v":""},{"$f":"IF($A375=\"N/A\",Ref!$B$36,INDEX(Ranks!$1:$1048576,$A375,DR$1))","v":""},{"$f":"IF($A375=\"N/A\",Ref!$B$36,INDEX(Ranks!$1:$1048576,$A375,DS$1))","v":""},{"$f":"IF($A375=\"N/A\",Ref!$B$36,INDEX(Ranks!$1:$1048576,$A375,DT$1))","v":""},{"$f":"IF($A375=\"N/A\",Ref!$B$36,INDEX(Ranks!$1:$1048576,$A375,DU$1))","v":""},{"$f":"IF($A375=\"N/A\",Ref!$B$36,INDEX(Ranks!$1:$1048576,$A375,DV$1))","v":""},{"$f":"IF($A375=\"N/A\",Ref!$B$36,INDEX(Ranks!$1:$1048576,$A375,DW$1))","v":""},{"$f":"IF($A375=\"N/A\",Ref!$B$36,INDEX(Ranks!$1:$1048576,$A375,DX$1))","v":""},{"$f":"IF($A375=\"N/A\",Ref!$B$36,INDEX(Ranks!$1:$1048576,$A375,DY$1))","v":""},{"$f":"IF($A375=\"N/A\",Ref!$B$36,INDEX(Ranks!$1:$1048576,$A375,DZ$1))","v":""},{"$f":"IF($A375=\"N/A\",Ref!$B$36,INDEX(Ranks!$1:$1048576,$A375,EA$1))","v":""},{"$f":"IF($A375=\"N/A\",Ref!$B$36,INDEX(Ranks!$1:$1048576,$A375,EB$1))","v":""}]
[{"$f":"IFERROR(MATCH('Portfolio Page'!L376,Ranks!L:L,0),\"N/A\")","v":"N/A"},null,{"$f":"IF($A376=\"N/A\",\"\",INDEX(Ranks!$1:$1048576,$A376,C$1))","v":""},{"$f":"IF($A376=\"N/A\",Ref!$B$36,INDEX(Ranks!$1:$1048576,$A376,D$1))","v":""},{"$f":"IF($A376=\"N/A\",Ref!$B$36,INDEX(Ranks!$1:$1048576,$A376,E$1))","v":""},{"$f":"IF($A376=\"N/A\",\"\",INDEX(Ranks!$1:$1048576,$A376,F$1))","v":""},{"$f":"IF($A376=\"N/A\",\"\",INDEX(Ranks!$1:$1048576,$A376,G$1))","v":""},{"$f":"IF($A376=\"N/A\",\"\",INDEX(Ranks!$1:$1048576,$A376,H$1))","v":""},{"$f":"IF($A376=\"N/A\",\"\",INDEX(Ranks!$1:$1048576,$A376,I$1))","v":""},{"$f":"IF($A376=\"N/A\",\"\",INDEX(Ranks!$1:$1048576,$A376,J$1))","v":""},{"$f":"IF($A376=\"N/A\",\"\",INDEX(Ranks!$1:$1048576,$A376,K$1))","v":""},null,{"$f":"IF($A376=\"N/A\",Ref!$B$36,INDEX(Ranks!$1:$1048576,$A376,M$1))","v":""},{"$f":"IF($A376=\"N/A\",Ref!$B$36,INDEX(Ranks!$1:$1048576,$A376,N$1))","v":""},{"$f":"IF($A376=\"N/A\",Ref!$B$36,INDEX(Ranks!$1:$1048576,$A376,O$1))","v":""},{"$f":"IF($A376=\"N/A\",Ref!$B$36,INDEX(Ranks!$1:$1048576,$A376,P$1))","v":""},{"$f":"IF($A376=\"N/A\",Ref!$B$36,INDEX(Ranks!$1:$1048576,$A376,Q$1))","v":""},{"$f":"IF($A376=\"N/A\",Ref!$B$36,INDEX(Ranks!$1:$1048576,$A376,R$1))","v":""},{"$f":"IF($A376=\"N/A\",Ref!$B$36,INDEX(Ranks!$1:$1048576,$A376,S$1))","v":""},{"$f":"IF($A376=\"N/A\",Ref!$B$36,INDEX(Ranks!$1:$1048576,$A376,T$1))","v":""},{"$f":"IF($A376=\"N/A\",Ref!$B$36,INDEX(Ranks!$1:$1048576,$A376,U$1))","v":""},{"$f":"IF($A376=\"N/A\",Ref!$B$36,INDEX(Ranks!$1:$1048576,$A376,V$1))","v":""},{"$f":"IF($A376=\"N/A\",Ref!$B$36,INDEX(Ranks!$1:$1048576,$A376,W$1))","v":""},{"$f":"IF($A376=\"N/A\",Ref!$B$36,INDEX(Ranks!$1:$1048576,$A376,X$1))","v":""},{"$f":"IF($A376=\"N/A\",Ref!$B$36,INDEX(Ranks!$1:$1048576,$A376,Y$1))","v":""},{"$f":"IF($A376=\"N/A\",Ref!$B$36,INDEX(Ranks!$1:$1048576,$A376,Z$1))","v":""},{"$f":"IF($A376=\"N/A\",Ref!$B$36,INDEX(Ranks!$1:$1048576,$A376,AA$1))","v":""},{"$f":"IF($A376=\"N/A\",Ref!$B$36,INDEX(Ranks!$1:$1048576,$A376,AB$1))","v":""},{"$f":"IF($A376=\"N/A\",Ref!$B$36,INDEX(Ranks!$1:$1048576,$A376,AC$1))","v":""},{"$f":"IF($A376=\"N/A\",Ref!$B$36,INDEX(Ranks!$1:$1048576,$A376,AD$1))","v":""},{"$f":"IF($A376=\"N/A\",Ref!$B$36,INDEX(Ranks!$1:$1048576,$A376,AE$1))","v":""},{"$f":"IF($A376=\"N/A\",Ref!$B$36,INDEX(Ranks!$1:$1048576,$A376,AF$1))","v":""},{"$f":"IF($A376=\"N/A\",Ref!$B$36,INDEX(Ranks!$1:$1048576,$A376,AG$1))","v":""},{"$f":"IF($A376=\"N/A\",Ref!$B$36,INDEX(Ranks!$1:$1048576,$A376,AH$1))","v":""},{"$f":"IF($A376=\"N/A\",Ref!$B$36,INDEX(Ranks!$1:$1048576,$A376,AI$1))","v":""},{"$f":"IF($A376=\"N/A\",Ref!$B$36,INDEX(Ranks!$1:$1048576,$A376,AJ$1))","v":""},{"$f":"IF($A376=\"N/A\",Ref!$B$36,INDEX(Ranks!$1:$1048576,$A376,AK$1))","v":""},{"$f":"IF($A376=\"N/A\",Ref!$B$36,INDEX(Ranks!$1:$1048576,$A376,AL$1))","v":""},{"$f":"IF($A376=\"N/A\",Ref!$B$36,INDEX(Ranks!$1:$1048576,$A376,AM$1))","v":""},{"$f":"IF($A376=\"N/A\",Ref!$B$36,INDEX(Ranks!$1:$1048576,$A376,AN$1))","v":""},{"$f":"IF($A376=\"N/A\",Ref!$B$36,INDEX(Ranks!$1:$1048576,$A376,AO$1))","v":""},{"$f":"IF($A376=\"N/A\",Ref!$B$36,INDEX(Ranks!$1:$1048576,$A376,AP$1))","v":""},{"$f":"IF($A376=\"N/A\",Ref!$B$36,INDEX(Ranks!$1:$1048576,$A376,AQ$1))","v":""},{"$f":"IF($A376=\"N/A\",Ref!$B$36,INDEX(Ranks!$1:$1048576,$A376,AR$1))","v":""},{"$f":"IF($A376=\"N/A\",Ref!$B$36,INDEX(Ranks!$1:$1048576,$A376,AS$1))","v":""},{"$f":"IF($A376=\"N/A\",Ref!$B$36,INDEX(Ranks!$1:$1048576,$A376,AT$1))","v":""},{"$f":"IF($A376=\"N/A\",Ref!$B$36,INDEX(Ranks!$1:$1048576,$A376,AU$1))","v":""},{"$f":"IF($A376=\"N/A\",Ref!$B$36,INDEX(Ranks!$1:$1048576,$A376,AV$1))","v":""},{"$f":"IF($A376=\"N/A\",Ref!$B$36,INDEX(Ranks!$1:$1048576,$A376,AW$1))","v":""},{"$f":"IF($A376=\"N/A\",Ref!$B$36,INDEX(Ranks!$1:$1048576,$A376,AX$1))","v":""},{"$f":"IF($A376=\"N/A\",Ref!$B$36,INDEX(Ranks!$1:$1048576,$A376,AY$1))","v":""},{"$f":"IF($A376=\"N/A\",Ref!$B$36,INDEX(Ranks!$1:$1048576,$A376,AZ$1))","v":""},{"$f":"IF($A376=\"N/A\",Ref!$B$36,INDEX(Ranks!$1:$1048576,$A376,BA$1))","v":""},{"$f":"IF($A376=\"N/A\",Ref!$B$36,INDEX(Ranks!$1:$1048576,$A376,BB$1))","v":""},{"$f":"IF($A376=\"N/A\",Ref!$B$36,INDEX(Ranks!$1:$1048576,$A376,BC$1))","v":""},{"$f":"IF($A376=\"N/A\",Ref!$B$36,INDEX(Ranks!$1:$1048576,$A376,BD$1))","v":""},{"$f":"IF($A376=\"N/A\",Ref!$B$36,INDEX(Ranks!$1:$1048576,$A376,BE$1))","v":""},{"$f":"IF($A376=\"N/A\",Ref!$B$36,INDEX(Ranks!$1:$1048576,$A376,BF$1))","v":""},{"$f":"IF($A376=\"N/A\",Ref!$B$36,INDEX(Ranks!$1:$1048576,$A376,BG$1))","v":""},{"$f":"IF($A376=\"N/A\",Ref!$B$36,INDEX(Ranks!$1:$1048576,$A376,BH$1))","v":""},{"$f":"IF($A376=\"N/A\",Ref!$B$36,INDEX(Ranks!$1:$1048576,$A376,BI$1))","v":""},{"$f":"IF($A376=\"N/A\",Ref!$B$36,INDEX(Ranks!$1:$1048576,$A376,BJ$1))","v":""},{"$f":"IF($A376=\"N/A\",Ref!$B$36,INDEX(Ranks!$1:$1048576,$A376,BK$1))","v":""},{"$f":"IF($A376=\"N/A\",Ref!$B$36,INDEX(Ranks!$1:$1048576,$A376,BL$1))","v":""},{"$f":"IF($A376=\"N/A\",Ref!$B$36,INDEX(Ranks!$1:$1048576,$A376,BM$1))","v":""},{"$f":"IF($A376=\"N/A\",Ref!$B$36,INDEX(Ranks!$1:$1048576,$A376,BN$1))","v":""},{"$f":"IF($A376=\"N/A\",Ref!$B$36,INDEX(Ranks!$1:$1048576,$A376,BO$1))","v":""},{"$f":"IF($A376=\"N/A\",Ref!$B$36,INDEX(Ranks!$1:$1048576,$A376,BP$1))","v":""},{"$f":"IF($A376=\"N/A\",Ref!$B$36,INDEX(Ranks!$1:$1048576,$A376,BQ$1))","v":""},{"$f":"IF($A376=\"N/A\",Ref!$B$36,INDEX(Ranks!$1:$1048576,$A376,BR$1))","v":""},{"$f":"IF($A376=\"N/A\",Ref!$B$36,INDEX(Ranks!$1:$1048576,$A376,BS$1))","v":""},{"$f":"IF($A376=\"N/A\",Ref!$B$36,INDEX(Ranks!$1:$1048576,$A376,BT$1))","v":""},{"$f":"IF($A376=\"N/A\",Ref!$B$36,INDEX(Ranks!$1:$1048576,$A376,BU$1))","v":""},{"$f":"IF($A376=\"N/A\",Ref!$B$36,INDEX(Ranks!$1:$1048576,$A376,BV$1))","v":""},{"$f":"IF($A376=\"N/A\",Ref!$B$36,INDEX(Ranks!$1:$1048576,$A376,BW$1))","v":""},{"$f":"IF($A376=\"N/A\",Ref!$B$36,INDEX(Ranks!$1:$1048576,$A376,BX$1))","v":""},{"$f":"IF($A376=\"N/A\",Ref!$B$36,INDEX(Ranks!$1:$1048576,$A376,BY$1))","v":""},{"$f":"IF($A376=\"N/A\",Ref!$B$36,INDEX(Ranks!$1:$1048576,$A376,BZ$1))","v":""},{"$f":"IF($A376=\"N/A\",Ref!$B$36,INDEX(Ranks!$1:$1048576,$A376,CA$1))","v":""},{"$f":"IF($A376=\"N/A\",Ref!$B$36,INDEX(Ranks!$1:$1048576,$A376,CB$1))","v":""},{"$f":"IF($A376=\"N/A\",Ref!$B$36,INDEX(Ranks!$1:$1048576,$A376,CC$1))","v":""},{"$f":"IF($A376=\"N/A\",Ref!$B$36,INDEX(Ranks!$1:$1048576,$A376,CD$1))","v":""},{"$f":"IF($A376=\"N/A\",Ref!$B$36,INDEX(Ranks!$1:$1048576,$A376,CE$1))","v":""},{"$f":"IF($A376=\"N/A\",Ref!$B$36,INDEX(Ranks!$1:$1048576,$A376,CF$1))","v":""},{"$f":"IF($A376=\"N/A\",Ref!$B$36,INDEX(Ranks!$1:$1048576,$A376,CG$1))","v":""},{"$f":"IF($A376=\"N/A\",Ref!$B$36,INDEX(Ranks!$1:$1048576,$A376,CH$1))","v":""},{"$f":"IF($A376=\"N/A\",Ref!$B$36,INDEX(Ranks!$1:$1048576,$A376,CI$1))","v":""},{"$f":"IF($A376=\"N/A\",Ref!$B$36,INDEX(Ranks!$1:$1048576,$A376,CJ$1))","v":""},{"$f":"IF($A376=\"N/A\",Ref!$B$36,INDEX(Ranks!$1:$1048576,$A376,CK$1))","v":""},{"$f":"IF($A376=\"N/A\",Ref!$B$36,INDEX(Ranks!$1:$1048576,$A376,CL$1))","v":""},{"$f":"IF($A376=\"N/A\",Ref!$B$36,INDEX(Ranks!$1:$1048576,$A376,CM$1))","v":""},{"$f":"IF($A376=\"N/A\",Ref!$B$36,INDEX(Ranks!$1:$1048576,$A376,CN$1))","v":""},{"$f":"IF($A376=\"N/A\",Ref!$B$36,INDEX(Ranks!$1:$1048576,$A376,CO$1))","v":""},{"$f":"IF($A376=\"N/A\",Ref!$B$36,INDEX(Ranks!$1:$1048576,$A376,CP$1))","v":""},{"$f":"IF($A376=\"N/A\",Ref!$B$36,INDEX(Ranks!$1:$1048576,$A376,CQ$1))","v":""},{"$f":"IF($A376=\"N/A\",Ref!$B$36,INDEX(Ranks!$1:$1048576,$A376,CR$1))","v":""},{"$f":"IF($A376=\"N/A\",Ref!$B$36,INDEX(Ranks!$1:$1048576,$A376,CS$1))","v":""},{"$f":"IF($A376=\"N/A\",Ref!$B$36,INDEX(Ranks!$1:$1048576,$A376,CT$1))","v":""},{"$f":"IF($A376=\"N/A\",Ref!$B$36,INDEX(Ranks!$1:$1048576,$A376,CU$1))","v":""},{"$f":"IF($A376=\"N/A\",Ref!$B$36,INDEX(Ranks!$1:$1048576,$A376,CV$1))","v":""},{"$f":"IF($A376=\"N/A\",Ref!$B$36,INDEX(Ranks!$1:$1048576,$A376,CW$1))","v":""},{"$f":"IF($A376=\"N/A\",Ref!$B$36,INDEX(Ranks!$1:$1048576,$A376,CX$1))","v":""},{"$f":"IF($A376=\"N/A\",Ref!$B$36,INDEX(Ranks!$1:$1048576,$A376,CY$1))","v":""},{"$f":"IF($A376=\"N/A\",Ref!$B$36,INDEX(Ranks!$1:$1048576,$A376,CZ$1))","v":""},{"$f":"IF($A376=\"N/A\",Ref!$B$36,INDEX(Ranks!$1:$1048576,$A376,DA$1))","v":""},{"$f":"IF($A376=\"N/A\",Ref!$B$36,INDEX(Ranks!$1:$1048576,$A376,DB$1))","v":""},{"$f":"IF($A376=\"N/A\",Ref!$B$36,INDEX(Ranks!$1:$1048576,$A376,DC$1))","v":""},{"$f":"IF($A376=\"N/A\",Ref!$B$36,INDEX(Ranks!$1:$1048576,$A376,DD$1))","v":""},{"$f":"IF($A376=\"N/A\",Ref!$B$36,INDEX(Ranks!$1:$1048576,$A376,DE$1))","v":""},{"$f":"IF($A376=\"N/A\",Ref!$B$36,INDEX(Ranks!$1:$1048576,$A376,DF$1))","v":""},{"$f":"IF($A376=\"N/A\",Ref!$B$36,INDEX(Ranks!$1:$1048576,$A376,DG$1))","v":""},{"$f":"IF($A376=\"N/A\",Ref!$B$36,INDEX(Ranks!$1:$1048576,$A376,DH$1))","v":""},{"$f":"IF($A376=\"N/A\",Ref!$B$36,INDEX(Ranks!$1:$1048576,$A376,DI$1))","v":""},{"$f":"IF($A376=\"N/A\",Ref!$B$36,INDEX(Ranks!$1:$1048576,$A376,DJ$1))","v":""},{"$f":"IF($A376=\"N/A\",Ref!$B$36,INDEX(Ranks!$1:$1048576,$A376,DK$1))","v":""},{"$f":"IF($A376=\"N/A\",Ref!$B$36,INDEX(Ranks!$1:$1048576,$A376,DL$1))","v":""},{"$f":"IF($A376=\"N/A\",Ref!$B$36,INDEX(Ranks!$1:$1048576,$A376,DM$1))","v":""},{"$f":"IF($A376=\"N/A\",Ref!$B$36,INDEX(Ranks!$1:$1048576,$A376,DN$1))","v":""},{"$f":"IF($A376=\"N/A\",Ref!$B$36,INDEX(Ranks!$1:$1048576,$A376,DO$1))","v":""},{"$f":"IF($A376=\"N/A\",Ref!$B$36,INDEX(Ranks!$1:$1048576,$A376,DP$1))","v":""},{"$f":"IF($A376=\"N/A\",Ref!$B$36,INDEX(Ranks!$1:$1048576,$A376,DQ$1))","v":""},{"$f":"IF($A376=\"N/A\",Ref!$B$36,INDEX(Ranks!$1:$1048576,$A376,DR$1))","v":""},{"$f":"IF($A376=\"N/A\",Ref!$B$36,INDEX(Ranks!$1:$1048576,$A376,DS$1))","v":""},{"$f":"IF($A376=\"N/A\",Ref!$B$36,INDEX(Ranks!$1:$1048576,$A376,DT$1))","v":""},{"$f":"IF($A376=\"N/A\",Ref!$B$36,INDEX(Ranks!$1:$1048576,$A376,DU$1))","v":""},{"$f":"IF($A376=\"N/A\",Ref!$B$36,INDEX(Ranks!$1:$1048576,$A376,DV$1))","v":""},{"$f":"IF($A376=\"N/A\",Ref!$B$36,INDEX(Ranks!$1:$1048576,$A376,DW$1))","v":""},{"$f":"IF($A376=\"N/A\",Ref!$B$36,INDEX(Ranks!$1:$1048576,$A376,DX$1))","v":""},{"$f":"IF($A376=\"N/A\",Ref!$B$36,INDEX(Ranks!$1:$1048576,$A376,DY$1))","v":""},{"$f":"IF($A376=\"N/A\",Ref!$B$36,INDEX(Ranks!$1:$1048576,$A376,DZ$1))","v":""},{"$f":"IF($A376=\"N/A\",Ref!$B$36,INDEX(Ranks!$1:$1048576,$A376,EA$1))","v":""},{"$f":"IF($A376=\"N/A\",Ref!$B$36,INDEX(Ranks!$1:$1048576,$A376,EB$1))","v":""}]
[{"$f":"IFERROR(MATCH('Portfolio Page'!L377,Ranks!L:L,0),\"N/A\")","v":"N/A"},null,{"$f":"IF($A377=\"N/A\",\"\",INDEX(Ranks!$1:$1048576,$A377,C$1))","v":""},{"$f":"IF($A377=\"N/A\",Ref!$B$36,INDEX(Ranks!$1:$1048576,$A377,D$1))","v":""},{"$f":"IF($A377=\"N/A\",Ref!$B$36,INDEX(Ranks!$1:$1048576,$A377,E$1))","v":""},{"$f":"IF($A377=\"N/A\",\"\",INDEX(Ranks!$1:$1048576,$A377,F$1))","v":""},{"$f":"IF($A377=\"N/A\",\"\",INDEX(Ranks!$1:$1048576,$A377,G$1))","v":""},{"$f":"IF($A377=\"N/A\",\"\",INDEX(Ranks!$1:$1048576,$A377,H$1))","v":""},{"$f":"IF($A377=\"N/A\",\"\",INDEX(Ranks!$1:$1048576,$A377,I$1))","v":""},{"$f":"IF($A377=\"N/A\",\"\",INDEX(Ranks!$1:$1048576,$A377,J$1))","v":""},{"$f":"IF($A377=\"N/A\",\"\",INDEX(Ranks!$1:$1048576,$A377,K$1))","v":""},null,{"$f":"IF($A377=\"N/A\",Ref!$B$36,INDEX(Ranks!$1:$1048576,$A377,M$1))","v":""},{"$f":"IF($A377=\"N/A\",Ref!$B$36,INDEX(Ranks!$1:$1048576,$A377,N$1))","v":""},{"$f":"IF($A377=\"N/A\",Ref!$B$36,INDEX(Ranks!$1:$1048576,$A377,O$1))","v":""},{"$f":"IF($A377=\"N/A\",Ref!$B$36,INDEX(Ranks!$1:$1048576,$A377,P$1))","v":""},{"$f":"IF($A377=\"N/A\",Ref!$B$36,INDEX(Ranks!$1:$1048576,$A377,Q$1))","v":""},{"$f":"IF($A377=\"N/A\",Ref!$B$36,INDEX(Ranks!$1:$1048576,$A377,R$1))","v":""},{"$f":"IF($A377=\"N/A\",Ref!$B$36,INDEX(Ranks!$1:$1048576,$A377,S$1))","v":""},{"$f":"IF($A377=\"N/A\",Ref!$B$36,INDEX(Ranks!$1:$1048576,$A377,T$1))","v":""},{"$f":"IF($A377=\"N/A\",Ref!$B$36,INDEX(Ranks!$1:$1048576,$A377,U$1))","v":""},{"$f":"IF($A377=\"N/A\",Ref!$B$36,INDEX(Ranks!$1:$1048576,$A377,V$1))","v":""},{"$f":"IF($A377=\"N/A\",Ref!$B$36,INDEX(Ranks!$1:$1048576,$A377,W$1))","v":""},{"$f":"IF($A377=\"N/A\",Ref!$B$36,INDEX(Ranks!$1:$1048576,$A377,X$1))","v":""},{"$f":"IF($A377=\"N/A\",Ref!$B$36,INDEX(Ranks!$1:$1048576,$A377,Y$1))","v":""},{"$f":"IF($A377=\"N/A\",Ref!$B$36,INDEX(Ranks!$1:$1048576,$A377,Z$1))","v":""},{"$f":"IF($A377=\"N/A\",Ref!$B$36,INDEX(Ranks!$1:$1048576,$A377,AA$1))","v":""},{"$f":"IF($A377=\"N/A\",Ref!$B$36,INDEX(Ranks!$1:$1048576,$A377,AB$1))","v":""},{"$f":"IF($A377=\"N/A\",Ref!$B$36,INDEX(Ranks!$1:$1048576,$A377,AC$1))","v":""},{"$f":"IF($A377=\"N/A\",Ref!$B$36,INDEX(Ranks!$1:$1048576,$A377,AD$1))","v":""},{"$f":"IF($A377=\"N/A\",Ref!$B$36,INDEX(Ranks!$1:$1048576,$A377,AE$1))","v":""},{"$f":"IF($A377=\"N/A\",Ref!$B$36,INDEX(Ranks!$1:$1048576,$A377,AF$1))","v":""},{"$f":"IF($A377=\"N/A\",Ref!$B$36,INDEX(Ranks!$1:$1048576,$A377,AG$1))","v":""},{"$f":"IF($A377=\"N/A\",Ref!$B$36,INDEX(Ranks!$1:$1048576,$A377,AH$1))","v":""},{"$f":"IF($A377=\"N/A\",Ref!$B$36,INDEX(Ranks!$1:$1048576,$A377,AI$1))","v":""},{"$f":"IF($A377=\"N/A\",Ref!$B$36,INDEX(Ranks!$1:$1048576,$A377,AJ$1))","v":""},{"$f":"IF($A377=\"N/A\",Ref!$B$36,INDEX(Ranks!$1:$1048576,$A377,AK$1))","v":""},{"$f":"IF($A377=\"N/A\",Ref!$B$36,INDEX(Ranks!$1:$1048576,$A377,AL$1))","v":""},{"$f":"IF($A377=\"N/A\",Ref!$B$36,INDEX(Ranks!$1:$1048576,$A377,AM$1))","v":""},{"$f":"IF($A377=\"N/A\",Ref!$B$36,INDEX(Ranks!$1:$1048576,$A377,AN$1))","v":""},{"$f":"IF($A377=\"N/A\",Ref!$B$36,INDEX(Ranks!$1:$1048576,$A377,AO$1))","v":""},{"$f":"IF($A377=\"N/A\",Ref!$B$36,INDEX(Ranks!$1:$1048576,$A377,AP$1))","v":""},{"$f":"IF($A377=\"N/A\",Ref!$B$36,INDEX(Ranks!$1:$1048576,$A377,AQ$1))","v":""},{"$f":"IF($A377=\"N/A\",Ref!$B$36,INDEX(Ranks!$1:$1048576,$A377,AR$1))","v":""},{"$f":"IF($A377=\"N/A\",Ref!$B$36,INDEX(Ranks!$1:$1048576,$A377,AS$1))","v":""},{"$f":"IF($A377=\"N/A\",Ref!$B$36,INDEX(Ranks!$1:$1048576,$A377,AT$1))","v":""},{"$f":"IF($A377=\"N/A\",Ref!$B$36,INDEX(Ranks!$1:$1048576,$A377,AU$1))","v":""},{"$f":"IF($A377=\"N/A\",Ref!$B$36,INDEX(Ranks!$1:$1048576,$A377,AV$1))","v":""},{"$f":"IF($A377=\"N/A\",Ref!$B$36,INDEX(Ranks!$1:$1048576,$A377,AW$1))","v":""},{"$f":"IF($A377=\"N/A\",Ref!$B$36,INDEX(Ranks!$1:$1048576,$A377,AX$1))","v":""},{"$f":"IF($A377=\"N/A\",Ref!$B$36,INDEX(Ranks!$1:$1048576,$A377,AY$1))","v":""},{"$f":"IF($A377=\"N/A\",Ref!$B$36,INDEX(Ranks!$1:$1048576,$A377,AZ$1))","v":""},{"$f":"IF($A377=\"N/A\",Ref!$B$36,INDEX(Ranks!$1:$1048576,$A377,BA$1))","v":""},{"$f":"IF($A377=\"N/A\",Ref!$B$36,INDEX(Ranks!$1:$1048576,$A377,BB$1))","v":""},{"$f":"IF($A377=\"N/A\",Ref!$B$36,INDEX(Ranks!$1:$1048576,$A377,BC$1))","v":""},{"$f":"IF($A377=\"N/A\",Ref!$B$36,INDEX(Ranks!$1:$1048576,$A377,BD$1))","v":""},{"$f":"IF($A377=\"N/A\",Ref!$B$36,INDEX(Ranks!$1:$1048576,$A377,BE$1))","v":""},{"$f":"IF($A377=\"N/A\",Ref!$B$36,INDEX(Ranks!$1:$1048576,$A377,BF$1))","v":""},{"$f":"IF($A377=\"N/A\",Ref!$B$36,INDEX(Ranks!$1:$1048576,$A377,BG$1))","v":""},{"$f":"IF($A377=\"N/A\",Ref!$B$36,INDEX(Ranks!$1:$1048576,$A377,BH$1))","v":""},{"$f":"IF($A377=\"N/A\",Ref!$B$36,INDEX(Ranks!$1:$1048576,$A377,BI$1))","v":""},{"$f":"IF($A377=\"N/A\",Ref!$B$36,INDEX(Ranks!$1:$1048576,$A377,BJ$1))","v":""},{"$f":"IF($A377=\"N/A\",Ref!$B$36,INDEX(Ranks!$1:$1048576,$A377,BK$1))","v":""},{"$f":"IF($A377=\"N/A\",Ref!$B$36,INDEX(Ranks!$1:$1048576,$A377,BL$1))","v":""},{"$f":"IF($A377=\"N/A\",Ref!$B$36,INDEX(Ranks!$1:$1048576,$A377,BM$1))","v":""},{"$f":"IF($A377=\"N/A\",Ref!$B$36,INDEX(Ranks!$1:$1048576,$A377,BN$1))","v":""},{"$f":"IF($A377=\"N/A\",Ref!$B$36,INDEX(Ranks!$1:$1048576,$A377,BO$1))","v":""},{"$f":"IF($A377=\"N/A\",Ref!$B$36,INDEX(Ranks!$1:$1048576,$A377,BP$1))","v":""},{"$f":"IF($A377=\"N/A\",Ref!$B$36,INDEX(Ranks!$1:$1048576,$A377,BQ$1))","v":""},{"$f":"IF($A377=\"N/A\",Ref!$B$36,INDEX(Ranks!$1:$1048576,$A377,BR$1))","v":""},{"$f":"IF($A377=\"N/A\",Ref!$B$36,INDEX(Ranks!$1:$1048576,$A377,BS$1))","v":""},{"$f":"IF($A377=\"N/A\",Ref!$B$36,INDEX(Ranks!$1:$1048576,$A377,BT$1))","v":""},{"$f":"IF($A377=\"N/A\",Ref!$B$36,INDEX(Ranks!$1:$1048576,$A377,BU$1))","v":""},{"$f":"IF($A377=\"N/A\",Ref!$B$36,INDEX(Ranks!$1:$1048576,$A377,BV$1))","v":""},{"$f":"IF($A377=\"N/A\",Ref!$B$36,INDEX(Ranks!$1:$1048576,$A377,BW$1))","v":""},{"$f":"IF($A377=\"N/A\",Ref!$B$36,INDEX(Ranks!$1:$1048576,$A377,BX$1))","v":""},{"$f":"IF($A377=\"N/A\",Ref!$B$36,INDEX(Ranks!$1:$1048576,$A377,BY$1))","v":""},{"$f":"IF($A377=\"N/A\",Ref!$B$36,INDEX(Ranks!$1:$1048576,$A377,BZ$1))","v":""},{"$f":"IF($A377=\"N/A\",Ref!$B$36,INDEX(Ranks!$1:$1048576,$A377,CA$1))","v":""},{"$f":"IF($A377=\"N/A\",Ref!$B$36,INDEX(Ranks!$1:$1048576,$A377,CB$1))","v":""},{"$f":"IF($A377=\"N/A\",Ref!$B$36,INDEX(Ranks!$1:$1048576,$A377,CC$1))","v":""},{"$f":"IF($A377=\"N/A\",Ref!$B$36,INDEX(Ranks!$1:$1048576,$A377,CD$1))","v":""},{"$f":"IF($A377=\"N/A\",Ref!$B$36,INDEX(Ranks!$1:$1048576,$A377,CE$1))","v":""},{"$f":"IF($A377=\"N/A\",Ref!$B$36,INDEX(Ranks!$1:$1048576,$A377,CF$1))","v":""},{"$f":"IF($A377=\"N/A\",Ref!$B$36,INDEX(Ranks!$1:$1048576,$A377,CG$1))","v":""},{"$f":"IF($A377=\"N/A\",Ref!$B$36,INDEX(Ranks!$1:$1048576,$A377,CH$1))","v":""},{"$f":"IF($A377=\"N/A\",Ref!$B$36,INDEX(Ranks!$1:$1048576,$A377,CI$1))","v":""},{"$f":"IF($A377=\"N/A\",Ref!$B$36,INDEX(Ranks!$1:$1048576,$A377,CJ$1))","v":""},{"$f":"IF($A377=\"N/A\",Ref!$B$36,INDEX(Ranks!$1:$1048576,$A377,CK$1))","v":""},{"$f":"IF($A377=\"N/A\",Ref!$B$36,INDEX(Ranks!$1:$1048576,$A377,CL$1))","v":""},{"$f":"IF($A377=\"N/A\",Ref!$B$36,INDEX(Ranks!$1:$1048576,$A377,CM$1))","v":""},{"$f":"IF($A377=\"N/A\",Ref!$B$36,INDEX(Ranks!$1:$1048576,$A377,CN$1))","v":""},{"$f":"IF($A377=\"N/A\",Ref!$B$36,INDEX(Ranks!$1:$1048576,$A377,CO$1))","v":""},{"$f":"IF($A377=\"N/A\",Ref!$B$36,INDEX(Ranks!$1:$1048576,$A377,CP$1))","v":""},{"$f":"IF($A377=\"N/A\",Ref!$B$36,INDEX(Ranks!$1:$1048576,$A377,CQ$1))","v":""},{"$f":"IF($A377=\"N/A\",Ref!$B$36,INDEX(Ranks!$1:$1048576,$A377,CR$1))","v":""},{"$f":"IF($A377=\"N/A\",Ref!$B$36,INDEX(Ranks!$1:$1048576,$A377,CS$1))","v":""},{"$f":"IF($A377=\"N/A\",Ref!$B$36,INDEX(Ranks!$1:$1048576,$A377,CT$1))","v":""},{"$f":"IF($A377=\"N/A\",Ref!$B$36,INDEX(Ranks!$1:$1048576,$A377,CU$1))","v":""},{"$f":"IF($A377=\"N/A\",Ref!$B$36,INDEX(Ranks!$1:$1048576,$A377,CV$1))","v":""},{"$f":"IF($A377=\"N/A\",Ref!$B$36,INDEX(Ranks!$1:$1048576,$A377,CW$1))","v":""},{"$f":"IF($A377=\"N/A\",Ref!$B$36,INDEX(Ranks!$1:$1048576,$A377,CX$1))","v":""},{"$f":"IF($A377=\"N/A\",Ref!$B$36,INDEX(Ranks!$1:$1048576,$A377,CY$1))","v":""},{"$f":"IF($A377=\"N/A\",Ref!$B$36,INDEX(Ranks!$1:$1048576,$A377,CZ$1))","v":""},{"$f":"IF($A377=\"N/A\",Ref!$B$36,INDEX(Ranks!$1:$1048576,$A377,DA$1))","v":""},{"$f":"IF($A377=\"N/A\",Ref!$B$36,INDEX(Ranks!$1:$1048576,$A377,DB$1))","v":""},{"$f":"IF($A377=\"N/A\",Ref!$B$36,INDEX(Ranks!$1:$1048576,$A377,DC$1))","v":""},{"$f":"IF($A377=\"N/A\",Ref!$B$36,INDEX(Ranks!$1:$1048576,$A377,DD$1))","v":""},{"$f":"IF($A377=\"N/A\",Ref!$B$36,INDEX(Ranks!$1:$1048576,$A377,DE$1))","v":""},{"$f":"IF($A377=\"N/A\",Ref!$B$36,INDEX(Ranks!$1:$1048576,$A377,DF$1))","v":""},{"$f":"IF($A377=\"N/A\",Ref!$B$36,INDEX(Ranks!$1:$1048576,$A377,DG$1))","v":""},{"$f":"IF($A377=\"N/A\",Ref!$B$36,INDEX(Ranks!$1:$1048576,$A377,DH$1))","v":""},{"$f":"IF($A377=\"N/A\",Ref!$B$36,INDEX(Ranks!$1:$1048576,$A377,DI$1))","v":""},{"$f":"IF($A377=\"N/A\",Ref!$B$36,INDEX(Ranks!$1:$1048576,$A377,DJ$1))","v":""},{"$f":"IF($A377=\"N/A\",Ref!$B$36,INDEX(Ranks!$1:$1048576,$A377,DK$1))","v":""},{"$f":"IF($A377=\"N/A\",Ref!$B$36,INDEX(Ranks!$1:$1048576,$A377,DL$1))","v":""},{"$f":"IF($A377=\"N/A\",Ref!$B$36,INDEX(Ranks!$1:$1048576,$A377,DM$1))","v":""},{"$f":"IF($A377=\"N/A\",Ref!$B$36,INDEX(Ranks!$1:$1048576,$A377,DN$1))","v":""},{"$f":"IF($A377=\"N/A\",Ref!$B$36,INDEX(Ranks!$1:$1048576,$A377,DO$1))","v":""},{"$f":"IF($A377=\"N/A\",Ref!$B$36,INDEX(Ranks!$1:$1048576,$A377,DP$1))","v":""},{"$f":"IF($A377=\"N/A\",Ref!$B$36,INDEX(Ranks!$1:$1048576,$A377,DQ$1))","v":""},{"$f":"IF($A377=\"N/A\",Ref!$B$36,INDEX(Ranks!$1:$1048576,$A377,DR$1))","v":""},{"$f":"IF($A377=\"N/A\",Ref!$B$36,INDEX(Ranks!$1:$1048576,$A377,DS$1))","v":""},{"$f":"IF($A377=\"N/A\",Ref!$B$36,INDEX(Ranks!$1:$1048576,$A377,DT$1))","v":""},{"$f":"IF($A377=\"N/A\",Ref!$B$36,INDEX(Ranks!$1:$1048576,$A377,DU$1))","v":""},{"$f":"IF($A377=\"N/A\",Ref!$B$36,INDEX(Ranks!$1:$1048576,$A377,DV$1))","v":""},{"$f":"IF($A377=\"N/A\",Ref!$B$36,INDEX(Ranks!$1:$1048576,$A377,DW$1))","v":""},{"$f":"IF($A377=\"N/A\",Ref!$B$36,INDEX(Ranks!$1:$1048576,$A377,DX$1))","v":""},{"$f":"IF($A377=\"N/A\",Ref!$B$36,INDEX(Ranks!$1:$1048576,$A377,DY$1))","v":""},{"$f":"IF($A377=\"N/A\",Ref!$B$36,INDEX(Ranks!$1:$1048576,$A377,DZ$1))","v":""},{"$f":"IF($A377=\"N/A\",Ref!$B$36,INDEX(Ranks!$1:$1048576,$A377,EA$1))","v":""},{"$f":"IF($A377=\"N/A\",Ref!$B$36,INDEX(Ranks!$1:$1048576,$A377,EB$1))","v":""}]
[{"$f":"IFERROR(MATCH('Portfolio Page'!L378,Ranks!L:L,0),\"N/A\")","v":"N/A"},null,{"$f":"IF($A378=\"N/A\",\"\",INDEX(Ranks!$1:$1048576,$A378,C$1))","v":""},{"$f":"IF($A378=\"N/A\",Ref!$B$36,INDEX(Ranks!$1:$1048576,$A378,D$1))","v":""},{"$f":"IF($A378=\"N/A\",Ref!$B$36,INDEX(Ranks!$1:$1048576,$A378,E$1))","v":""},{"$f":"IF($A378=\"N/A\",\"\",INDEX(Ranks!$1:$1048576,$A378,F$1))","v":""},{"$f":"IF($A378=\"N/A\",\"\",INDEX(Ranks!$1:$1048576,$A378,G$1))","v":""},{"$f":"IF($A378=\"N/A\",\"\",INDEX(Ranks!$1:$1048576,$A378,H$1))","v":""},{"$f":"IF($A378=\"N/A\",\"\",INDEX(Ranks!$1:$1048576,$A378,I$1))","v":""},{"$f":"IF($A378=\"N/A\",\"\",INDEX(Ranks!$1:$1048576,$A378,J$1))","v":""},{"$f":"IF($A378=\"N/A\",\"\",INDEX(Ranks!$1:$1048576,$A378,K$1))","v":""},null,{"$f":"IF($A378=\"N/A\",Ref!$B$36,INDEX(Ranks!$1:$1048576,$A378,M$1))","v":""},{"$f":"IF($A378=\"N/A\",Ref!$B$36,INDEX(Ranks!$1:$1048576,$A378,N$1))","v":""},{"$f":"IF($A378=\"N/A\",Ref!$B$36,INDEX(Ranks!$1:$1048576,$A378,O$1))","v":""},{"$f":"IF($A378=\"N/A\",Ref!$B$36,INDEX(Ranks!$1:$1048576,$A378,P$1))","v":""},{"$f":"IF($A378=\"N/A\",Ref!$B$36,INDEX(Ranks!$1:$1048576,$A378,Q$1))","v":""},{"$f":"IF($A378=\"N/A\",Ref!$B$36,INDEX(Ranks!$1:$1048576,$A378,R$1))","v":""},{"$f":"IF($A378=\"N/A\",Ref!$B$36,INDEX(Ranks!$1:$1048576,$A378,S$1))","v":""},{"$f":"IF($A378=\"N/A\",Ref!$B$36,INDEX(Ranks!$1:$1048576,$A378,T$1))","v":""},{"$f":"IF($A378=\"N/A\",Ref!$B$36,INDEX(Ranks!$1:$1048576,$A378,U$1))","v":""},{"$f":"IF($A378=\"N/A\",Ref!$B$36,INDEX(Ranks!$1:$1048576,$A378,V$1))","v":""},{"$f":"IF($A378=\"N/A\",Ref!$B$36,INDEX(Ranks!$1:$1048576,$A378,W$1))","v":""},{"$f":"IF($A378=\"N/A\",Ref!$B$36,INDEX(Ranks!$1:$1048576,$A378,X$1))","v":""},{"$f":"IF($A378=\"N/A\",Ref!$B$36,INDEX(Ranks!$1:$1048576,$A378,Y$1))","v":""},{"$f":"IF($A378=\"N/A\",Ref!$B$36,INDEX(Ranks!$1:$1048576,$A378,Z$1))","v":""},{"$f":"IF($A378=\"N/A\",Ref!$B$36,INDEX(Ranks!$1:$1048576,$A378,AA$1))","v":""},{"$f":"IF($A378=\"N/A\",Ref!$B$36,INDEX(Ranks!$1:$1048576,$A378,AB$1))","v":""},{"$f":"IF($A378=\"N/A\",Ref!$B$36,INDEX(Ranks!$1:$1048576,$A378,AC$1))","v":""},{"$f":"IF($A378=\"N/A\",Ref!$B$36,INDEX(Ranks!$1:$1048576,$A378,AD$1))","v":""},{"$f":"IF($A378=\"N/A\",Ref!$B$36,INDEX(Ranks!$1:$1048576,$A378,AE$1))","v":""},{"$f":"IF($A378=\"N/A\",Ref!$B$36,INDEX(Ranks!$1:$1048576,$A378,AF$1))","v":""},{"$f":"IF($A378=\"N/A\",Ref!$B$36,INDEX(Ranks!$1:$1048576,$A378,AG$1))","v":""},{"$f":"IF($A378=\"N/A\",Ref!$B$36,INDEX(Ranks!$1:$1048576,$A378,AH$1))","v":""},{"$f":"IF($A378=\"N/A\",Ref!$B$36,INDEX(Ranks!$1:$1048576,$A378,AI$1))","v":""},{"$f":"IF($A378=\"N/A\",Ref!$B$36,INDEX(Ranks!$1:$1048576,$A378,AJ$1))","v":""},{"$f":"IF($A378=\"N/A\",Ref!$B$36,INDEX(Ranks!$1:$1048576,$A378,AK$1))","v":""},{"$f":"IF($A378=\"N/A\",Ref!$B$36,INDEX(Ranks!$1:$1048576,$A378,AL$1))","v":""},{"$f":"IF($A378=\"N/A\",Ref!$B$36,INDEX(Ranks!$1:$1048576,$A378,AM$1))","v":""},{"$f":"IF($A378=\"N/A\",Ref!$B$36,INDEX(Ranks!$1:$1048576,$A378,AN$1))","v":""},{"$f":"IF($A378=\"N/A\",Ref!$B$36,INDEX(Ranks!$1:$1048576,$A378,AO$1))","v":""},{"$f":"IF($A378=\"N/A\",Ref!$B$36,INDEX(Ranks!$1:$1048576,$A378,AP$1))","v":""},{"$f":"IF($A378=\"N/A\",Ref!$B$36,INDEX(Ranks!$1:$1048576,$A378,AQ$1))","v":""},{"$f":"IF($A378=\"N/A\",Ref!$B$36,INDEX(Ranks!$1:$1048576,$A378,AR$1))","v":""},{"$f":"IF($A378=\"N/A\",Ref!$B$36,INDEX(Ranks!$1:$1048576,$A378,AS$1))","v":""},{"$f":"IF($A378=\"N/A\",Ref!$B$36,INDEX(Ranks!$1:$1048576,$A378,AT$1))","v":""},{"$f":"IF($A378=\"N/A\",Ref!$B$36,INDEX(Ranks!$1:$1048576,$A378,AU$1))","v":""},{"$f":"IF($A378=\"N/A\",Ref!$B$36,INDEX(Ranks!$1:$1048576,$A378,AV$1))","v":""},{"$f":"IF($A378=\"N/A\",Ref!$B$36,INDEX(Ranks!$1:$1048576,$A378,AW$1))","v":""},{"$f":"IF($A378=\"N/A\",Ref!$B$36,INDEX(Ranks!$1:$1048576,$A378,AX$1))","v":""},{"$f":"IF($A378=\"N/A\",Ref!$B$36,INDEX(Ranks!$1:$1048576,$A378,AY$1))","v":""},{"$f":"IF($A378=\"N/A\",Ref!$B$36,INDEX(Ranks!$1:$1048576,$A378,AZ$1))","v":""},{"$f":"IF($A378=\"N/A\",Ref!$B$36,INDEX(Ranks!$1:$1048576,$A378,BA$1))","v":""},{"$f":"IF($A378=\"N/A\",Ref!$B$36,INDEX(Ranks!$1:$1048576,$A378,BB$1))","v":""},{"$f":"IF($A378=\"N/A\",Ref!$B$36,INDEX(Ranks!$1:$1048576,$A378,BC$1))","v":""},{"$f":"IF($A378=\"N/A\",Ref!$B$36,INDEX(Ranks!$1:$1048576,$A378,BD$1))","v":""},{"$f":"IF($A378=\"N/A\",Ref!$B$36,INDEX(Ranks!$1:$1048576,$A378,BE$1))","v":""},{"$f":"IF($A378=\"N/A\",Ref!$B$36,INDEX(Ranks!$1:$1048576,$A378,BF$1))","v":""},{"$f":"IF($A378=\"N/A\",Ref!$B$36,INDEX(Ranks!$1:$1048576,$A378,BG$1))","v":""},{"$f":"IF($A378=\"N/A\",Ref!$B$36,INDEX(Ranks!$1:$1048576,$A378,BH$1))","v":""},{"$f":"IF($A378=\"N/A\",Ref!$B$36,INDEX(Ranks!$1:$1048576,$A378,BI$1))","v":""},{"$f":"IF($A378=\"N/A\",Ref!$B$36,INDEX(Ranks!$1:$1048576,$A378,BJ$1))","v":""},{"$f":"IF($A378=\"N/A\",Ref!$B$36,INDEX(Ranks!$1:$1048576,$A378,BK$1))","v":""},{"$f":"IF($A378=\"N/A\",Ref!$B$36,INDEX(Ranks!$1:$1048576,$A378,BL$1))","v":""},{"$f":"IF($A378=\"N/A\",Ref!$B$36,INDEX(Ranks!$1:$1048576,$A378,BM$1))","v":""},{"$f":"IF($A378=\"N/A\",Ref!$B$36,INDEX(Ranks!$1:$1048576,$A378,BN$1))","v":""},{"$f":"IF($A378=\"N/A\",Ref!$B$36,INDEX(Ranks!$1:$1048576,$A378,BO$1))","v":""},{"$f":"IF($A378=\"N/A\",Ref!$B$36,INDEX(Ranks!$1:$1048576,$A378,BP$1))","v":""},{"$f":"IF($A378=\"N/A\",Ref!$B$36,INDEX(Ranks!$1:$1048576,$A378,BQ$1))","v":""},{"$f":"IF($A378=\"N/A\",Ref!$B$36,INDEX(Ranks!$1:$1048576,$A378,BR$1))","v":""},{"$f":"IF($A378=\"N/A\",Ref!$B$36,INDEX(Ranks!$1:$1048576,$A378,BS$1))","v":""},{"$f":"IF($A378=\"N/A\",Ref!$B$36,INDEX(Ranks!$1:$1048576,$A378,BT$1))","v":""},{"$f":"IF($A378=\"N/A\",Ref!$B$36,INDEX(Ranks!$1:$1048576,$A378,BU$1))","v":""},{"$f":"IF($A378=\"N/A\",Ref!$B$36,INDEX(Ranks!$1:$1048576,$A378,BV$1))","v":""},{"$f":"IF($A378=\"N/A\",Ref!$B$36,INDEX(Ranks!$1:$1048576,$A378,BW$1))","v":""},{"$f":"IF($A378=\"N/A\",Ref!$B$36,INDEX(Ranks!$1:$1048576,$A378,BX$1))","v":""},{"$f":"IF($A378=\"N/A\",Ref!$B$36,INDEX(Ranks!$1:$1048576,$A378,BY$1))","v":""},{"$f":"IF($A378=\"N/A\",Ref!$B$36,INDEX(Ranks!$1:$1048576,$A378,BZ$1))","v":""},{"$f":"IF($A378=\"N/A\",Ref!$B$36,INDEX(Ranks!$1:$1048576,$A378,CA$1))","v":""},{"$f":"IF($A378=\"N/A\",Ref!$B$36,INDEX(Ranks!$1:$1048576,$A378,CB$1))","v":""},{"$f":"IF($A378=\"N/A\",Ref!$B$36,INDEX(Ranks!$1:$1048576,$A378,CC$1))","v":""},{"$f":"IF($A378=\"N/A\",Ref!$B$36,INDEX(Ranks!$1:$1048576,$A378,CD$1))","v":""},{"$f":"IF($A378=\"N/A\",Ref!$B$36,INDEX(Ranks!$1:$1048576,$A378,CE$1))","v":""},{"$f":"IF($A378=\"N/A\",Ref!$B$36,INDEX(Ranks!$1:$1048576,$A378,CF$1))","v":""},{"$f":"IF($A378=\"N/A\",Ref!$B$36,INDEX(Ranks!$1:$1048576,$A378,CG$1))","v":""},{"$f":"IF($A378=\"N/A\",Ref!$B$36,INDEX(Ranks!$1:$1048576,$A378,CH$1))","v":""},{"$f":"IF($A378=\"N/A\",Ref!$B$36,INDEX(Ranks!$1:$1048576,$A378,CI$1))","v":""},{"$f":"IF($A378=\"N/A\",Ref!$B$36,INDEX(Ranks!$1:$1048576,$A378,CJ$1))","v":""},{"$f":"IF($A378=\"N/A\",Ref!$B$36,INDEX(Ranks!$1:$1048576,$A378,CK$1))","v":""},{"$f":"IF($A378=\"N/A\",Ref!$B$36,INDEX(Ranks!$1:$1048576,$A378,CL$1))","v":""},{"$f":"IF($A378=\"N/A\",Ref!$B$36,INDEX(Ranks!$1:$1048576,$A378,CM$1))","v":""},{"$f":"IF($A378=\"N/A\",Ref!$B$36,INDEX(Ranks!$1:$1048576,$A378,CN$1))","v":""},{"$f":"IF($A378=\"N/A\",Ref!$B$36,INDEX(Ranks!$1:$1048576,$A378,CO$1))","v":""},{"$f":"IF($A378=\"N/A\",Ref!$B$36,INDEX(Ranks!$1:$1048576,$A378,CP$1))","v":""},{"$f":"IF($A378=\"N/A\",Ref!$B$36,INDEX(Ranks!$1:$1048576,$A378,CQ$1))","v":""},{"$f":"IF($A378=\"N/A\",Ref!$B$36,INDEX(Ranks!$1:$1048576,$A378,CR$1))","v":""},{"$f":"IF($A378=\"N/A\",Ref!$B$36,INDEX(Ranks!$1:$1048576,$A378,CS$1))","v":""},{"$f":"IF($A378=\"N/A\",Ref!$B$36,INDEX(Ranks!$1:$1048576,$A378,CT$1))","v":""},{"$f":"IF($A378=\"N/A\",Ref!$B$36,INDEX(Ranks!$1:$1048576,$A378,CU$1))","v":""},{"$f":"IF($A378=\"N/A\",Ref!$B$36,INDEX(Ranks!$1:$1048576,$A378,CV$1))","v":""},{"$f":"IF($A378=\"N/A\",Ref!$B$36,INDEX(Ranks!$1:$1048576,$A378,CW$1))","v":""},{"$f":"IF($A378=\"N/A\",Ref!$B$36,INDEX(Ranks!$1:$1048576,$A378,CX$1))","v":""},{"$f":"IF($A378=\"N/A\",Ref!$B$36,INDEX(Ranks!$1:$1048576,$A378,CY$1))","v":""},{"$f":"IF($A378=\"N/A\",Ref!$B$36,INDEX(Ranks!$1:$1048576,$A378,CZ$1))","v":""},{"$f":"IF($A378=\"N/A\",Ref!$B$36,INDEX(Ranks!$1:$1048576,$A378,DA$1))","v":""},{"$f":"IF($A378=\"N/A\",Ref!$B$36,INDEX(Ranks!$1:$1048576,$A378,DB$1))","v":""},{"$f":"IF($A378=\"N/A\",Ref!$B$36,INDEX(Ranks!$1:$1048576,$A378,DC$1))","v":""},{"$f":"IF($A378=\"N/A\",Ref!$B$36,INDEX(Ranks!$1:$1048576,$A378,DD$1))","v":""},{"$f":"IF($A378=\"N/A\",Ref!$B$36,INDEX(Ranks!$1:$1048576,$A378,DE$1))","v":""},{"$f":"IF($A378=\"N/A\",Ref!$B$36,INDEX(Ranks!$1:$1048576,$A378,DF$1))","v":""},{"$f":"IF($A378=\"N/A\",Ref!$B$36,INDEX(Ranks!$1:$1048576,$A378,DG$1))","v":""},{"$f":"IF($A378=\"N/A\",Ref!$B$36,INDEX(Ranks!$1:$1048576,$A378,DH$1))","v":""},{"$f":"IF($A378=\"N/A\",Ref!$B$36,INDEX(Ranks!$1:$1048576,$A378,DI$1))","v":""},{"$f":"IF($A378=\"N/A\",Ref!$B$36,INDEX(Ranks!$1:$1048576,$A378,DJ$1))","v":""},{"$f":"IF($A378=\"N/A\",Ref!$B$36,INDEX(Ranks!$1:$1048576,$A378,DK$1))","v":""},{"$f":"IF($A378=\"N/A\",Ref!$B$36,INDEX(Ranks!$1:$1048576,$A378,DL$1))","v":""},{"$f":"IF($A378=\"N/A\",Ref!$B$36,INDEX(Ranks!$1:$1048576,$A378,DM$1))","v":""},{"$f":"IF($A378=\"N/A\",Ref!$B$36,INDEX(Ranks!$1:$1048576,$A378,DN$1))","v":""},{"$f":"IF($A378=\"N/A\",Ref!$B$36,INDEX(Ranks!$1:$1048576,$A378,DO$1))","v":""},{"$f":"IF($A378=\"N/A\",Ref!$B$36,INDEX(Ranks!$1:$1048576,$A378,DP$1))","v":""},{"$f":"IF($A378=\"N/A\",Ref!$B$36,INDEX(Ranks!$1:$1048576,$A378,DQ$1))","v":""},{"$f":"IF($A378=\"N/A\",Ref!$B$36,INDEX(Ranks!$1:$1048576,$A378,DR$1))","v":""},{"$f":"IF($A378=\"N/A\",Ref!$B$36,INDEX(Ranks!$1:$1048576,$A378,DS$1))","v":""},{"$f":"IF($A378=\"N/A\",Ref!$B$36,INDEX(Ranks!$1:$1048576,$A378,DT$1))","v":""},{"$f":"IF($A378=\"N/A\",Ref!$B$36,INDEX(Ranks!$1:$1048576,$A378,DU$1))","v":""},{"$f":"IF($A378=\"N/A\",Ref!$B$36,INDEX(Ranks!$1:$1048576,$A378,DV$1))","v":""},{"$f":"IF($A378=\"N/A\",Ref!$B$36,INDEX(Ranks!$1:$1048576,$A378,DW$1))","v":""},{"$f":"IF($A378=\"N/A\",Ref!$B$36,INDEX(Ranks!$1:$1048576,$A378,DX$1))","v":""},{"$f":"IF($A378=\"N/A\",Ref!$B$36,INDEX(Ranks!$1:$1048576,$A378,DY$1))","v":""},{"$f":"IF($A378=\"N/A\",Ref!$B$36,INDEX(Ranks!$1:$1048576,$A378,DZ$1))","v":""},{"$f":"IF($A378=\"N/A\",Ref!$B$36,INDEX(Ranks!$1:$1048576,$A378,EA$1))","v":""},{"$f":"IF($A378=\"N/A\",Ref!$B$36,INDEX(Ranks!$1:$1048576,$A378,EB$1))","v":""}]
[{"$f":"IFERROR(MATCH('Portfolio Page'!L379,Ranks!L:L,0),\"N/A\")","v":"N/A"},null,{"$f":"IF($A379=\"N/A\",\"\",INDEX(Ranks!$1:$1048576,$A379,C$1))","v":""},{"$f":"IF($A379=\"N/A\",Ref!$B$36,INDEX(Ranks!$1:$1048576,$A379,D$1))","v":""},{"$f":"IF($A379=\"N/A\",Ref!$B$36,INDEX(Ranks!$1:$1048576,$A379,E$1))","v":""},{"$f":"IF($A379=\"N/A\",\"\",INDEX(Ranks!$1:$1048576,$A379,F$1))","v":""},{"$f":"IF($A379=\"N/A\",\"\",INDEX(Ranks!$1:$1048576,$A379,G$1))","v":""},{"$f":"IF($A379=\"N/A\",\"\",INDEX(Ranks!$1:$1048576,$A379,H$1))","v":""},{"$f":"IF($A379=\"N/A\",\"\",INDEX(Ranks!$1:$1048576,$A379,I$1))","v":""},{"$f":"IF($A379=\"N/A\",\"\",INDEX(Ranks!$1:$1048576,$A379,J$1))","v":""},{"$f":"IF($A379=\"N/A\",\"\",INDEX(Ranks!$1:$1048576,$A379,K$1))","v":""},null,{"$f":"IF($A379=\"N/A\",Ref!$B$36,INDEX(Ranks!$1:$1048576,$A379,M$1))","v":""},{"$f":"IF($A379=\"N/A\",Ref!$B$36,INDEX(Ranks!$1:$1048576,$A379,N$1))","v":""},{"$f":"IF($A379=\"N/A\",Ref!$B$36,INDEX(Ranks!$1:$1048576,$A379,O$1))","v":""},{"$f":"IF($A379=\"N/A\",Ref!$B$36,INDEX(Ranks!$1:$1048576,$A379,P$1))","v":""},{"$f":"IF($A379=\"N/A\",Ref!$B$36,INDEX(Ranks!$1:$1048576,$A379,Q$1))","v":""},{"$f":"IF($A379=\"N/A\",Ref!$B$36,INDEX(Ranks!$1:$1048576,$A379,R$1))","v":""},{"$f":"IF($A379=\"N/A\",Ref!$B$36,INDEX(Ranks!$1:$1048576,$A379,S$1))","v":""},{"$f":"IF($A379=\"N/A\",Ref!$B$36,INDEX(Ranks!$1:$1048576,$A379,T$1))","v":""},{"$f":"IF($A379=\"N/A\",Ref!$B$36,INDEX(Ranks!$1:$1048576,$A379,U$1))","v":""},{"$f":"IF($A379=\"N/A\",Ref!$B$36,INDEX(Ranks!$1:$1048576,$A379,V$1))","v":""},{"$f":"IF($A379=\"N/A\",Ref!$B$36,INDEX(Ranks!$1:$1048576,$A379,W$1))","v":""},{"$f":"IF($A379=\"N/A\",Ref!$B$36,INDEX(Ranks!$1:$1048576,$A379,X$1))","v":""},{"$f":"IF($A379=\"N/A\",Ref!$B$36,INDEX(Ranks!$1:$1048576,$A379,Y$1))","v":""},{"$f":"IF($A379=\"N/A\",Ref!$B$36,INDEX(Ranks!$1:$1048576,$A379,Z$1))","v":""},{"$f":"IF($A379=\"N/A\",Ref!$B$36,INDEX(Ranks!$1:$1048576,$A379,AA$1))","v":""},{"$f":"IF($A379=\"N/A\",Ref!$B$36,INDEX(Ranks!$1:$1048576,$A379,AB$1))","v":""},{"$f":"IF($A379=\"N/A\",Ref!$B$36,INDEX(Ranks!$1:$1048576,$A379,AC$1))","v":""},{"$f":"IF($A379=\"N/A\",Ref!$B$36,INDEX(Ranks!$1:$1048576,$A379,AD$1))","v":""},{"$f":"IF($A379=\"N/A\",Ref!$B$36,INDEX(Ranks!$1:$1048576,$A379,AE$1))","v":""},{"$f":"IF($A379=\"N/A\",Ref!$B$36,INDEX(Ranks!$1:$1048576,$A379,AF$1))","v":""},{"$f":"IF($A379=\"N/A\",Ref!$B$36,INDEX(Ranks!$1:$1048576,$A379,AG$1))","v":""},{"$f":"IF($A379=\"N/A\",Ref!$B$36,INDEX(Ranks!$1:$1048576,$A379,AH$1))","v":""},{"$f":"IF($A379=\"N/A\",Ref!$B$36,INDEX(Ranks!$1:$1048576,$A379,AI$1))","v":""},{"$f":"IF($A379=\"N/A\",Ref!$B$36,INDEX(Ranks!$1:$1048576,$A379,AJ$1))","v":""},{"$f":"IF($A379=\"N/A\",Ref!$B$36,INDEX(Ranks!$1:$1048576,$A379,AK$1))","v":""},{"$f":"IF($A379=\"N/A\",Ref!$B$36,INDEX(Ranks!$1:$1048576,$A379,AL$1))","v":""},{"$f":"IF($A379=\"N/A\",Ref!$B$36,INDEX(Ranks!$1:$1048576,$A379,AM$1))","v":""},{"$f":"IF($A379=\"N/A\",Ref!$B$36,INDEX(Ranks!$1:$1048576,$A379,AN$1))","v":""},{"$f":"IF($A379=\"N/A\",Ref!$B$36,INDEX(Ranks!$1:$1048576,$A379,AO$1))","v":""},{"$f":"IF($A379=\"N/A\",Ref!$B$36,INDEX(Ranks!$1:$1048576,$A379,AP$1))","v":""},{"$f":"IF($A379=\"N/A\",Ref!$B$36,INDEX(Ranks!$1:$1048576,$A379,AQ$1))","v":""},{"$f":"IF($A379=\"N/A\",Ref!$B$36,INDEX(Ranks!$1:$1048576,$A379,AR$1))","v":""},{"$f":"IF($A379=\"N/A\",Ref!$B$36,INDEX(Ranks!$1:$1048576,$A379,AS$1))","v":""},{"$f":"IF($A379=\"N/A\",Ref!$B$36,INDEX(Ranks!$1:$1048576,$A379,AT$1))","v":""},{"$f":"IF($A379=\"N/A\",Ref!$B$36,INDEX(Ranks!$1:$1048576,$A379,AU$1))","v":""},{"$f":"IF($A379=\"N/A\",Ref!$B$36,INDEX(Ranks!$1:$1048576,$A379,AV$1))","v":""},{"$f":"IF($A379=\"N/A\",Ref!$B$36,INDEX(Ranks!$1:$1048576,$A379,AW$1))","v":""},{"$f":"IF($A379=\"N/A\",Ref!$B$36,INDEX(Ranks!$1:$1048576,$A379,AX$1))","v":""},{"$f":"IF($A379=\"N/A\",Ref!$B$36,INDEX(Ranks!$1:$1048576,$A379,AY$1))","v":""},{"$f":"IF($A379=\"N/A\",Ref!$B$36,INDEX(Ranks!$1:$1048576,$A379,AZ$1))","v":""},{"$f":"IF($A379=\"N/A\",Ref!$B$36,INDEX(Ranks!$1:$1048576,$A379,BA$1))","v":""},{"$f":"IF($A379=\"N/A\",Ref!$B$36,INDEX(Ranks!$1:$1048576,$A379,BB$1))","v":""},{"$f":"IF($A379=\"N/A\",Ref!$B$36,INDEX(Ranks!$1:$1048576,$A379,BC$1))","v":""},{"$f":"IF($A379=\"N/A\",Ref!$B$36,INDEX(Ranks!$1:$1048576,$A379,BD$1))","v":""},{"$f":"IF($A379=\"N/A\",Ref!$B$36,INDEX(Ranks!$1:$1048576,$A379,BE$1))","v":""},{"$f":"IF($A379=\"N/A\",Ref!$B$36,INDEX(Ranks!$1:$1048576,$A379,BF$1))","v":""},{"$f":"IF($A379=\"N/A\",Ref!$B$36,INDEX(Ranks!$1:$1048576,$A379,BG$1))","v":""},{"$f":"IF($A379=\"N/A\",Ref!$B$36,INDEX(Ranks!$1:$1048576,$A379,BH$1))","v":""},{"$f":"IF($A379=\"N/A\",Ref!$B$36,INDEX(Ranks!$1:$1048576,$A379,BI$1))","v":""},{"$f":"IF($A379=\"N/A\",Ref!$B$36,INDEX(Ranks!$1:$1048576,$A379,BJ$1))","v":""},{"$f":"IF($A379=\"N/A\",Ref!$B$36,INDEX(Ranks!$1:$1048576,$A379,BK$1))","v":""},{"$f":"IF($A379=\"N/A\",Ref!$B$36,INDEX(Ranks!$1:$1048576,$A379,BL$1))","v":""},{"$f":"IF($A379=\"N/A\",Ref!$B$36,INDEX(Ranks!$1:$1048576,$A379,BM$1))","v":""},{"$f":"IF($A379=\"N/A\",Ref!$B$36,INDEX(Ranks!$1:$1048576,$A379,BN$1))","v":""},{"$f":"IF($A379=\"N/A\",Ref!$B$36,INDEX(Ranks!$1:$1048576,$A379,BO$1))","v":""},{"$f":"IF($A379=\"N/A\",Ref!$B$36,INDEX(Ranks!$1:$1048576,$A379,BP$1))","v":""},{"$f":"IF($A379=\"N/A\",Ref!$B$36,INDEX(Ranks!$1:$1048576,$A379,BQ$1))","v":""},{"$f":"IF($A379=\"N/A\",Ref!$B$36,INDEX(Ranks!$1:$1048576,$A379,BR$1))","v":""},{"$f":"IF($A379=\"N/A\",Ref!$B$36,INDEX(Ranks!$1:$1048576,$A379,BS$1))","v":""},{"$f":"IF($A379=\"N/A\",Ref!$B$36,INDEX(Ranks!$1:$1048576,$A379,BT$1))","v":""},{"$f":"IF($A379=\"N/A\",Ref!$B$36,INDEX(Ranks!$1:$1048576,$A379,BU$1))","v":""},{"$f":"IF($A379=\"N/A\",Ref!$B$36,INDEX(Ranks!$1:$1048576,$A379,BV$1))","v":""},{"$f":"IF($A379=\"N/A\",Ref!$B$36,INDEX(Ranks!$1:$1048576,$A379,BW$1))","v":""},{"$f":"IF($A379=\"N/A\",Ref!$B$36,INDEX(Ranks!$1:$1048576,$A379,BX$1))","v":""},{"$f":"IF($A379=\"N/A\",Ref!$B$36,INDEX(Ranks!$1:$1048576,$A379,BY$1))","v":""},{"$f":"IF($A379=\"N/A\",Ref!$B$36,INDEX(Ranks!$1:$1048576,$A379,BZ$1))","v":""},{"$f":"IF($A379=\"N/A\",Ref!$B$36,INDEX(Ranks!$1:$1048576,$A379,CA$1))","v":""},{"$f":"IF($A379=\"N/A\",Ref!$B$36,INDEX(Ranks!$1:$1048576,$A379,CB$1))","v":""},{"$f":"IF($A379=\"N/A\",Ref!$B$36,INDEX(Ranks!$1:$1048576,$A379,CC$1))","v":""},{"$f":"IF($A379=\"N/A\",Ref!$B$36,INDEX(Ranks!$1:$1048576,$A379,CD$1))","v":""},{"$f":"IF($A379=\"N/A\",Ref!$B$36,INDEX(Ranks!$1:$1048576,$A379,CE$1))","v":""},{"$f":"IF($A379=\"N/A\",Ref!$B$36,INDEX(Ranks!$1:$1048576,$A379,CF$1))","v":""},{"$f":"IF($A379=\"N/A\",Ref!$B$36,INDEX(Ranks!$1:$1048576,$A379,CG$1))","v":""},{"$f":"IF($A379=\"N/A\",Ref!$B$36,INDEX(Ranks!$1:$1048576,$A379,CH$1))","v":""},{"$f":"IF($A379=\"N/A\",Ref!$B$36,INDEX(Ranks!$1:$1048576,$A379,CI$1))","v":""},{"$f":"IF($A379=\"N/A\",Ref!$B$36,INDEX(Ranks!$1:$1048576,$A379,CJ$1))","v":""},{"$f":"IF($A379=\"N/A\",Ref!$B$36,INDEX(Ranks!$1:$1048576,$A379,CK$1))","v":""},{"$f":"IF($A379=\"N/A\",Ref!$B$36,INDEX(Ranks!$1:$1048576,$A379,CL$1))","v":""},{"$f":"IF($A379=\"N/A\",Ref!$B$36,INDEX(Ranks!$1:$1048576,$A379,CM$1))","v":""},{"$f":"IF($A379=\"N/A\",Ref!$B$36,INDEX(Ranks!$1:$1048576,$A379,CN$1))","v":""},{"$f":"IF($A379=\"N/A\",Ref!$B$36,INDEX(Ranks!$1:$1048576,$A379,CO$1))","v":""},{"$f":"IF($A379=\"N/A\",Ref!$B$36,INDEX(Ranks!$1:$1048576,$A379,CP$1))","v":""},{"$f":"IF($A379=\"N/A\",Ref!$B$36,INDEX(Ranks!$1:$1048576,$A379,CQ$1))","v":""},{"$f":"IF($A379=\"N/A\",Ref!$B$36,INDEX(Ranks!$1:$1048576,$A379,CR$1))","v":""},{"$f":"IF($A379=\"N/A\",Ref!$B$36,INDEX(Ranks!$1:$1048576,$A379,CS$1))","v":""},{"$f":"IF($A379=\"N/A\",Ref!$B$36,INDEX(Ranks!$1:$1048576,$A379,CT$1))","v":""},{"$f":"IF($A379=\"N/A\",Ref!$B$36,INDEX(Ranks!$1:$1048576,$A379,CU$1))","v":""},{"$f":"IF($A379=\"N/A\",Ref!$B$36,INDEX(Ranks!$1:$1048576,$A379,CV$1))","v":""},{"$f":"IF($A379=\"N/A\",Ref!$B$36,INDEX(Ranks!$1:$1048576,$A379,CW$1))","v":""},{"$f":"IF($A379=\"N/A\",Ref!$B$36,INDEX(Ranks!$1:$1048576,$A379,CX$1))","v":""},{"$f":"IF($A379=\"N/A\",Ref!$B$36,INDEX(Ranks!$1:$1048576,$A379,CY$1))","v":""},{"$f":"IF($A379=\"N/A\",Ref!$B$36,INDEX(Ranks!$1:$1048576,$A379,CZ$1))","v":""},{"$f":"IF($A379=\"N/A\",Ref!$B$36,INDEX(Ranks!$1:$1048576,$A379,DA$1))","v":""},{"$f":"IF($A379=\"N/A\",Ref!$B$36,INDEX(Ranks!$1:$1048576,$A379,DB$1))","v":""},{"$f":"IF($A379=\"N/A\",Ref!$B$36,INDEX(Ranks!$1:$1048576,$A379,DC$1))","v":""},{"$f":"IF($A379=\"N/A\",Ref!$B$36,INDEX(Ranks!$1:$1048576,$A379,DD$1))","v":""},{"$f":"IF($A379=\"N/A\",Ref!$B$36,INDEX(Ranks!$1:$1048576,$A379,DE$1))","v":""},{"$f":"IF($A379=\"N/A\",Ref!$B$36,INDEX(Ranks!$1:$1048576,$A379,DF$1))","v":""},{"$f":"IF($A379=\"N/A\",Ref!$B$36,INDEX(Ranks!$1:$1048576,$A379,DG$1))","v":""},{"$f":"IF($A379=\"N/A\",Ref!$B$36,INDEX(Ranks!$1:$1048576,$A379,DH$1))","v":""},{"$f":"IF($A379=\"N/A\",Ref!$B$36,INDEX(Ranks!$1:$1048576,$A379,DI$1))","v":""},{"$f":"IF($A379=\"N/A\",Ref!$B$36,INDEX(Ranks!$1:$1048576,$A379,DJ$1))","v":""},{"$f":"IF($A379=\"N/A\",Ref!$B$36,INDEX(Ranks!$1:$1048576,$A379,DK$1))","v":""},{"$f":"IF($A379=\"N/A\",Ref!$B$36,INDEX(Ranks!$1:$1048576,$A379,DL$1))","v":""},{"$f":"IF($A379=\"N/A\",Ref!$B$36,INDEX(Ranks!$1:$1048576,$A379,DM$1))","v":""},{"$f":"IF($A379=\"N/A\",Ref!$B$36,INDEX(Ranks!$1:$1048576,$A379,DN$1))","v":""},{"$f":"IF($A379=\"N/A\",Ref!$B$36,INDEX(Ranks!$1:$1048576,$A379,DO$1))","v":""},{"$f":"IF($A379=\"N/A\",Ref!$B$36,INDEX(Ranks!$1:$1048576,$A379,DP$1))","v":""},{"$f":"IF($A379=\"N/A\",Ref!$B$36,INDEX(Ranks!$1:$1048576,$A379,DQ$1))","v":""},{"$f":"IF($A379=\"N/A\",Ref!$B$36,INDEX(Ranks!$1:$1048576,$A379,DR$1))","v":""},{"$f":"IF($A379=\"N/A\",Ref!$B$36,INDEX(Ranks!$1:$1048576,$A379,DS$1))","v":""},{"$f":"IF($A379=\"N/A\",Ref!$B$36,INDEX(Ranks!$1:$1048576,$A379,DT$1))","v":""},{"$f":"IF($A379=\"N/A\",Ref!$B$36,INDEX(Ranks!$1:$1048576,$A379,DU$1))","v":""},{"$f":"IF($A379=\"N/A\",Ref!$B$36,INDEX(Ranks!$1:$1048576,$A379,DV$1))","v":""},{"$f":"IF($A379=\"N/A\",Ref!$B$36,INDEX(Ranks!$1:$1048576,$A379,DW$1))","v":""},{"$f":"IF($A379=\"N/A\",Ref!$B$36,INDEX(Ranks!$1:$1048576,$A379,DX$1))","v":""},{"$f":"IF($A379=\"N/A\",Ref!$B$36,INDEX(Ranks!$1:$1048576,$A379,DY$1))","v":""},{"$f":"IF($A379=\"N/A\",Ref!$B$36,INDEX(Ranks!$1:$1048576,$A379,DZ$1))","v":""},{"$f":"IF($A379=\"N/A\",Ref!$B$36,INDEX(Ranks!$1:$1048576,$A379,EA$1))","v":""},{"$f":"IF($A379=\"N/A\",Ref!$B$36,INDEX(Ranks!$1:$1048576,$A379,EB$1))","v":""}]
[{"$f":"IFERROR(MATCH('Portfolio Page'!L380,Ranks!L:L,0),\"N/A\")","v":"N/A"},null,{"$f":"IF($A380=\"N/A\",\"\",INDEX(Ranks!$1:$1048576,$A380,C$1))","v":""},{"$f":"IF($A380=\"N/A\",Ref!$B$36,INDEX(Ranks!$1:$1048576,$A380,D$1))","v":""},{"$f":"IF($A380=\"N/A\",Ref!$B$36,INDEX(Ranks!$1:$1048576,$A380,E$1))","v":""},{"$f":"IF($A380=\"N/A\",\"\",INDEX(Ranks!$1:$1048576,$A380,F$1))","v":""},{"$f":"IF($A380=\"N/A\",\"\",INDEX(Ranks!$1:$1048576,$A380,G$1))","v":""},{"$f":"IF($A380=\"N/A\",\"\",INDEX(Ranks!$1:$1048576,$A380,H$1))","v":""},{"$f":"IF($A380=\"N/A\",\"\",INDEX(Ranks!$1:$1048576,$A380,I$1))","v":""},{"$f":"IF($A380=\"N/A\",\"\",INDEX(Ranks!$1:$1048576,$A380,J$1))","v":""},{"$f":"IF($A380=\"N/A\",\"\",INDEX(Ranks!$1:$1048576,$A380,K$1))","v":""},null,{"$f":"IF($A380=\"N/A\",Ref!$B$36,INDEX(Ranks!$1:$1048576,$A380,M$1))","v":""},{"$f":"IF($A380=\"N/A\",Ref!$B$36,INDEX(Ranks!$1:$1048576,$A380,N$1))","v":""},{"$f":"IF($A380=\"N/A\",Ref!$B$36,INDEX(Ranks!$1:$1048576,$A380,O$1))","v":""},{"$f":"IF($A380=\"N/A\",Ref!$B$36,INDEX(Ranks!$1:$1048576,$A380,P$1))","v":""},{"$f":"IF($A380=\"N/A\",Ref!$B$36,INDEX(Ranks!$1:$1048576,$A380,Q$1))","v":""},{"$f":"IF($A380=\"N/A\",Ref!$B$36,INDEX(Ranks!$1:$1048576,$A380,R$1))","v":""},{"$f":"IF($A380=\"N/A\",Ref!$B$36,INDEX(Ranks!$1:$1048576,$A380,S$1))","v":""},{"$f":"IF($A380=\"N/A\",Ref!$B$36,INDEX(Ranks!$1:$1048576,$A380,T$1))","v":""},{"$f":"IF($A380=\"N/A\",Ref!$B$36,INDEX(Ranks!$1:$1048576,$A380,U$1))","v":""},{"$f":"IF($A380=\"N/A\",Ref!$B$36,INDEX(Ranks!$1:$1048576,$A380,V$1))","v":""},{"$f":"IF($A380=\"N/A\",Ref!$B$36,INDEX(Ranks!$1:$1048576,$A380,W$1))","v":""},{"$f":"IF($A380=\"N/A\",Ref!$B$36,INDEX(Ranks!$1:$1048576,$A380,X$1))","v":""},{"$f":"IF($A380=\"N/A\",Ref!$B$36,INDEX(Ranks!$1:$1048576,$A380,Y$1))","v":""},{"$f":"IF($A380=\"N/A\",Ref!$B$36,INDEX(Ranks!$1:$1048576,$A380,Z$1))","v":""},{"$f":"IF($A380=\"N/A\",Ref!$B$36,INDEX(Ranks!$1:$1048576,$A380,AA$1))","v":""},{"$f":"IF($A380=\"N/A\",Ref!$B$36,INDEX(Ranks!$1:$1048576,$A380,AB$1))","v":""},{"$f":"IF($A380=\"N/A\",Ref!$B$36,INDEX(Ranks!$1:$1048576,$A380,AC$1))","v":""},{"$f":"IF($A380=\"N/A\",Ref!$B$36,INDEX(Ranks!$1:$1048576,$A380,AD$1))","v":""},{"$f":"IF($A380=\"N/A\",Ref!$B$36,INDEX(Ranks!$1:$1048576,$A380,AE$1))","v":""},{"$f":"IF($A380=\"N/A\",Ref!$B$36,INDEX(Ranks!$1:$1048576,$A380,AF$1))","v":""},{"$f":"IF($A380=\"N/A\",Ref!$B$36,INDEX(Ranks!$1:$1048576,$A380,AG$1))","v":""},{"$f":"IF($A380=\"N/A\",Ref!$B$36,INDEX(Ranks!$1:$1048576,$A380,AH$1))","v":""},{"$f":"IF($A380=\"N/A\",Ref!$B$36,INDEX(Ranks!$1:$1048576,$A380,AI$1))","v":""},{"$f":"IF($A380=\"N/A\",Ref!$B$36,INDEX(Ranks!$1:$1048576,$A380,AJ$1))","v":""},{"$f":"IF($A380=\"N/A\",Ref!$B$36,INDEX(Ranks!$1:$1048576,$A380,AK$1))","v":""},{"$f":"IF($A380=\"N/A\",Ref!$B$36,INDEX(Ranks!$1:$1048576,$A380,AL$1))","v":""},{"$f":"IF($A380=\"N/A\",Ref!$B$36,INDEX(Ranks!$1:$1048576,$A380,AM$1))","v":""},{"$f":"IF($A380=\"N/A\",Ref!$B$36,INDEX(Ranks!$1:$1048576,$A380,AN$1))","v":""},{"$f":"IF($A380=\"N/A\",Ref!$B$36,INDEX(Ranks!$1:$1048576,$A380,AO$1))","v":""},{"$f":"IF($A380=\"N/A\",Ref!$B$36,INDEX(Ranks!$1:$1048576,$A380,AP$1))","v":""},{"$f":"IF($A380=\"N/A\",Ref!$B$36,INDEX(Ranks!$1:$1048576,$A380,AQ$1))","v":""},{"$f":"IF($A380=\"N/A\",Ref!$B$36,INDEX(Ranks!$1:$1048576,$A380,AR$1))","v":""},{"$f":"IF($A380=\"N/A\",Ref!$B$36,INDEX(Ranks!$1:$1048576,$A380,AS$1))","v":""},{"$f":"IF($A380=\"N/A\",Ref!$B$36,INDEX(Ranks!$1:$1048576,$A380,AT$1))","v":""},{"$f":"IF($A380=\"N/A\",Ref!$B$36,INDEX(Ranks!$1:$1048576,$A380,AU$1))","v":""},{"$f":"IF($A380=\"N/A\",Ref!$B$36,INDEX(Ranks!$1:$1048576,$A380,AV$1))","v":""},{"$f":"IF($A380=\"N/A\",Ref!$B$36,INDEX(Ranks!$1:$1048576,$A380,AW$1))","v":""},{"$f":"IF($A380=\"N/A\",Ref!$B$36,INDEX(Ranks!$1:$1048576,$A380,AX$1))","v":""},{"$f":"IF($A380=\"N/A\",Ref!$B$36,INDEX(Ranks!$1:$1048576,$A380,AY$1))","v":""},{"$f":"IF($A380=\"N/A\",Ref!$B$36,INDEX(Ranks!$1:$1048576,$A380,AZ$1))","v":""},{"$f":"IF($A380=\"N/A\",Ref!$B$36,INDEX(Ranks!$1:$1048576,$A380,BA$1))","v":""},{"$f":"IF($A380=\"N/A\",Ref!$B$36,INDEX(Ranks!$1:$1048576,$A380,BB$1))","v":""},{"$f":"IF($A380=\"N/A\",Ref!$B$36,INDEX(Ranks!$1:$1048576,$A380,BC$1))","v":""},{"$f":"IF($A380=\"N/A\",Ref!$B$36,INDEX(Ranks!$1:$1048576,$A380,BD$1))","v":""},{"$f":"IF($A380=\"N/A\",Ref!$B$36,INDEX(Ranks!$1:$1048576,$A380,BE$1))","v":""},{"$f":"IF($A380=\"N/A\",Ref!$B$36,INDEX(Ranks!$1:$1048576,$A380,BF$1))","v":""},{"$f":"IF($A380=\"N/A\",Ref!$B$36,INDEX(Ranks!$1:$1048576,$A380,BG$1))","v":""},{"$f":"IF($A380=\"N/A\",Ref!$B$36,INDEX(Ranks!$1:$1048576,$A380,BH$1))","v":""},{"$f":"IF($A380=\"N/A\",Ref!$B$36,INDEX(Ranks!$1:$1048576,$A380,BI$1))","v":""},{"$f":"IF($A380=\"N/A\",Ref!$B$36,INDEX(Ranks!$1:$1048576,$A380,BJ$1))","v":""},{"$f":"IF($A380=\"N/A\",Ref!$B$36,INDEX(Ranks!$1:$1048576,$A380,BK$1))","v":""},{"$f":"IF($A380=\"N/A\",Ref!$B$36,INDEX(Ranks!$1:$1048576,$A380,BL$1))","v":""},{"$f":"IF($A380=\"N/A\",Ref!$B$36,INDEX(Ranks!$1:$1048576,$A380,BM$1))","v":""},{"$f":"IF($A380=\"N/A\",Ref!$B$36,INDEX(Ranks!$1:$1048576,$A380,BN$1))","v":""},{"$f":"IF($A380=\"N/A\",Ref!$B$36,INDEX(Ranks!$1:$1048576,$A380,BO$1))","v":""},{"$f":"IF($A380=\"N/A\",Ref!$B$36,INDEX(Ranks!$1:$1048576,$A380,BP$1))","v":""},{"$f":"IF($A380=\"N/A\",Ref!$B$36,INDEX(Ranks!$1:$1048576,$A380,BQ$1))","v":""},{"$f":"IF($A380=\"N/A\",Ref!$B$36,INDEX(Ranks!$1:$1048576,$A380,BR$1))","v":""},{"$f":"IF($A380=\"N/A\",Ref!$B$36,INDEX(Ranks!$1:$1048576,$A380,BS$1))","v":""},{"$f":"IF($A380=\"N/A\",Ref!$B$36,INDEX(Ranks!$1:$1048576,$A380,BT$1))","v":""},{"$f":"IF($A380=\"N/A\",Ref!$B$36,INDEX(Ranks!$1:$1048576,$A380,BU$1))","v":""},{"$f":"IF($A380=\"N/A\",Ref!$B$36,INDEX(Ranks!$1:$1048576,$A380,BV$1))","v":""},{"$f":"IF($A380=\"N/A\",Ref!$B$36,INDEX(Ranks!$1:$1048576,$A380,BW$1))","v":""},{"$f":"IF($A380=\"N/A\",Ref!$B$36,INDEX(Ranks!$1:$1048576,$A380,BX$1))","v":""},{"$f":"IF($A380=\"N/A\",Ref!$B$36,INDEX(Ranks!$1:$1048576,$A380,BY$1))","v":""},{"$f":"IF($A380=\"N/A\",Ref!$B$36,INDEX(Ranks!$1:$1048576,$A380,BZ$1))","v":""},{"$f":"IF($A380=\"N/A\",Ref!$B$36,INDEX(Ranks!$1:$1048576,$A380,CA$1))","v":""},{"$f":"IF($A380=\"N/A\",Ref!$B$36,INDEX(Ranks!$1:$1048576,$A380,CB$1))","v":""},{"$f":"IF($A380=\"N/A\",Ref!$B$36,INDEX(Ranks!$1:$1048576,$A380,CC$1))","v":""},{"$f":"IF($A380=\"N/A\",Ref!$B$36,INDEX(Ranks!$1:$1048576,$A380,CD$1))","v":""},{"$f":"IF($A380=\"N/A\",Ref!$B$36,INDEX(Ranks!$1:$1048576,$A380,CE$1))","v":""},{"$f":"IF($A380=\"N/A\",Ref!$B$36,INDEX(Ranks!$1:$1048576,$A380,CF$1))","v":""},{"$f":"IF($A380=\"N/A\",Ref!$B$36,INDEX(Ranks!$1:$1048576,$A380,CG$1))","v":""},{"$f":"IF($A380=\"N/A\",Ref!$B$36,INDEX(Ranks!$1:$1048576,$A380,CH$1))","v":""},{"$f":"IF($A380=\"N/A\",Ref!$B$36,INDEX(Ranks!$1:$1048576,$A380,CI$1))","v":""},{"$f":"IF($A380=\"N/A\",Ref!$B$36,INDEX(Ranks!$1:$1048576,$A380,CJ$1))","v":""},{"$f":"IF($A380=\"N/A\",Ref!$B$36,INDEX(Ranks!$1:$1048576,$A380,CK$1))","v":""},{"$f":"IF($A380=\"N/A\",Ref!$B$36,INDEX(Ranks!$1:$1048576,$A380,CL$1))","v":""},{"$f":"IF($A380=\"N/A\",Ref!$B$36,INDEX(Ranks!$1:$1048576,$A380,CM$1))","v":""},{"$f":"IF($A380=\"N/A\",Ref!$B$36,INDEX(Ranks!$1:$1048576,$A380,CN$1))","v":""},{"$f":"IF($A380=\"N/A\",Ref!$B$36,INDEX(Ranks!$1:$1048576,$A380,CO$1))","v":""},{"$f":"IF($A380=\"N/A\",Ref!$B$36,INDEX(Ranks!$1:$1048576,$A380,CP$1))","v":""},{"$f":"IF($A380=\"N/A\",Ref!$B$36,INDEX(Ranks!$1:$1048576,$A380,CQ$1))","v":""},{"$f":"IF($A380=\"N/A\",Ref!$B$36,INDEX(Ranks!$1:$1048576,$A380,CR$1))","v":""},{"$f":"IF($A380=\"N/A\",Ref!$B$36,INDEX(Ranks!$1:$1048576,$A380,CS$1))","v":""},{"$f":"IF($A380=\"N/A\",Ref!$B$36,INDEX(Ranks!$1:$1048576,$A380,CT$1))","v":""},{"$f":"IF($A380=\"N/A\",Ref!$B$36,INDEX(Ranks!$1:$1048576,$A380,CU$1))","v":""},{"$f":"IF($A380=\"N/A\",Ref!$B$36,INDEX(Ranks!$1:$1048576,$A380,CV$1))","v":""},{"$f":"IF($A380=\"N/A\",Ref!$B$36,INDEX(Ranks!$1:$1048576,$A380,CW$1))","v":""},{"$f":"IF($A380=\"N/A\",Ref!$B$36,INDEX(Ranks!$1:$1048576,$A380,CX$1))","v":""},{"$f":"IF($A380=\"N/A\",Ref!$B$36,INDEX(Ranks!$1:$1048576,$A380,CY$1))","v":""},{"$f":"IF($A380=\"N/A\",Ref!$B$36,INDEX(Ranks!$1:$1048576,$A380,CZ$1))","v":""},{"$f":"IF($A380=\"N/A\",Ref!$B$36,INDEX(Ranks!$1:$1048576,$A380,DA$1))","v":""},{"$f":"IF($A380=\"N/A\",Ref!$B$36,INDEX(Ranks!$1:$1048576,$A380,DB$1))","v":""},{"$f":"IF($A380=\"N/A\",Ref!$B$36,INDEX(Ranks!$1:$1048576,$A380,DC$1))","v":""},{"$f":"IF($A380=\"N/A\",Ref!$B$36,INDEX(Ranks!$1:$1048576,$A380,DD$1))","v":""},{"$f":"IF($A380=\"N/A\",Ref!$B$36,INDEX(Ranks!$1:$1048576,$A380,DE$1))","v":""},{"$f":"IF($A380=\"N/A\",Ref!$B$36,INDEX(Ranks!$1:$1048576,$A380,DF$1))","v":""},{"$f":"IF($A380=\"N/A\",Ref!$B$36,INDEX(Ranks!$1:$1048576,$A380,DG$1))","v":""},{"$f":"IF($A380=\"N/A\",Ref!$B$36,INDEX(Ranks!$1:$1048576,$A380,DH$1))","v":""},{"$f":"IF($A380=\"N/A\",Ref!$B$36,INDEX(Ranks!$1:$1048576,$A380,DI$1))","v":""},{"$f":"IF($A380=\"N/A\",Ref!$B$36,INDEX(Ranks!$1:$1048576,$A380,DJ$1))","v":""},{"$f":"IF($A380=\"N/A\",Ref!$B$36,INDEX(Ranks!$1:$1048576,$A380,DK$1))","v":""},{"$f":"IF($A380=\"N/A\",Ref!$B$36,INDEX(Ranks!$1:$1048576,$A380,DL$1))","v":""},{"$f":"IF($A380=\"N/A\",Ref!$B$36,INDEX(Ranks!$1:$1048576,$A380,DM$1))","v":""},{"$f":"IF($A380=\"N/A\",Ref!$B$36,INDEX(Ranks!$1:$1048576,$A380,DN$1))","v":""},{"$f":"IF($A380=\"N/A\",Ref!$B$36,INDEX(Ranks!$1:$1048576,$A380,DO$1))","v":""},{"$f":"IF($A380=\"N/A\",Ref!$B$36,INDEX(Ranks!$1:$1048576,$A380,DP$1))","v":""},{"$f":"IF($A380=\"N/A\",Ref!$B$36,INDEX(Ranks!$1:$1048576,$A380,DQ$1))","v":""},{"$f":"IF($A380=\"N/A\",Ref!$B$36,INDEX(Ranks!$1:$1048576,$A380,DR$1))","v":""},{"$f":"IF($A380=\"N/A\",Ref!$B$36,INDEX(Ranks!$1:$1048576,$A380,DS$1))","v":""},{"$f":"IF($A380=\"N/A\",Ref!$B$36,INDEX(Ranks!$1:$1048576,$A380,DT$1))","v":""},{"$f":"IF($A380=\"N/A\",Ref!$B$36,INDEX(Ranks!$1:$1048576,$A380,DU$1))","v":""},{"$f":"IF($A380=\"N/A\",Ref!$B$36,INDEX(Ranks!$1:$1048576,$A380,DV$1))","v":""},{"$f":"IF($A380=\"N/A\",Ref!$B$36,INDEX(Ranks!$1:$1048576,$A380,DW$1))","v":""},{"$f":"IF($A380=\"N/A\",Ref!$B$36,INDEX(Ranks!$1:$1048576,$A380,DX$1))","v":""},{"$f":"IF($A380=\"N/A\",Ref!$B$36,INDEX(Ranks!$1:$1048576,$A380,DY$1))","v":""},{"$f":"IF($A380=\"N/A\",Ref!$B$36,INDEX(Ranks!$1:$1048576,$A380,DZ$1))","v":""},{"$f":"IF($A380=\"N/A\",Ref!$B$36,INDEX(Ranks!$1:$1048576,$A380,EA$1))","v":""},{"$f":"IF($A380=\"N/A\",Ref!$B$36,INDEX(Ranks!$1:$1048576,$A380,EB$1))","v":""}]
[{"$f":"IFERROR(MATCH('Portfolio Page'!L381,Ranks!L:L,0),\"N/A\")","v":"N/A"},null,{"$f":"IF($A381=\"N/A\",\"\",INDEX(Ranks!$1:$1048576,$A381,C$1))","v":""},{"$f":"IF($A381=\"N/A\",Ref!$B$36,INDEX(Ranks!$1:$1048576,$A381,D$1))","v":""},{"$f":"IF($A381=\"N/A\",Ref!$B$36,INDEX(Ranks!$1:$1048576,$A381,E$1))","v":""},{"$f":"IF($A381=\"N/A\",\"\",INDEX(Ranks!$1:$1048576,$A381,F$1))","v":""},{"$f":"IF($A381=\"N/A\",\"\",INDEX(Ranks!$1:$1048576,$A381,G$1))","v":""},{"$f":"IF($A381=\"N/A\",\"\",INDEX(Ranks!$1:$1048576,$A381,H$1))","v":""},{"$f":"IF($A381=\"N/A\",\"\",INDEX(Ranks!$1:$1048576,$A381,I$1))","v":""},{"$f":"IF($A381=\"N/A\",\"\",INDEX(Ranks!$1:$1048576,$A381,J$1))","v":""},{"$f":"IF($A381=\"N/A\",\"\",INDEX(Ranks!$1:$1048576,$A381,K$1))","v":""},null,{"$f":"IF($A381=\"N/A\",Ref!$B$36,INDEX(Ranks!$1:$1048576,$A381,M$1))","v":""},{"$f":"IF($A381=\"N/A\",Ref!$B$36,INDEX(Ranks!$1:$1048576,$A381,N$1))","v":""},{"$f":"IF($A381=\"N/A\",Ref!$B$36,INDEX(Ranks!$1:$1048576,$A381,O$1))","v":""},{"$f":"IF($A381=\"N/A\",Ref!$B$36,INDEX(Ranks!$1:$1048576,$A381,P$1))","v":""},{"$f":"IF($A381=\"N/A\",Ref!$B$36,INDEX(Ranks!$1:$1048576,$A381,Q$1))","v":""},{"$f":"IF($A381=\"N/A\",Ref!$B$36,INDEX(Ranks!$1:$1048576,$A381,R$1))","v":""},{"$f":"IF($A381=\"N/A\",Ref!$B$36,INDEX(Ranks!$1:$1048576,$A381,S$1))","v":""},{"$f":"IF($A381=\"N/A\",Ref!$B$36,INDEX(Ranks!$1:$1048576,$A381,T$1))","v":""},{"$f":"IF($A381=\"N/A\",Ref!$B$36,INDEX(Ranks!$1:$1048576,$A381,U$1))","v":""},{"$f":"IF($A381=\"N/A\",Ref!$B$36,INDEX(Ranks!$1:$1048576,$A381,V$1))","v":""},{"$f":"IF($A381=\"N/A\",Ref!$B$36,INDEX(Ranks!$1:$1048576,$A381,W$1))","v":""},{"$f":"IF($A381=\"N/A\",Ref!$B$36,INDEX(Ranks!$1:$1048576,$A381,X$1))","v":""},{"$f":"IF($A381=\"N/A\",Ref!$B$36,INDEX(Ranks!$1:$1048576,$A381,Y$1))","v":""},{"$f":"IF($A381=\"N/A\",Ref!$B$36,INDEX(Ranks!$1:$1048576,$A381,Z$1))","v":""},{"$f":"IF($A381=\"N/A\",Ref!$B$36,INDEX(Ranks!$1:$1048576,$A381,AA$1))","v":""},{"$f":"IF($A381=\"N/A\",Ref!$B$36,INDEX(Ranks!$1:$1048576,$A381,AB$1))","v":""},{"$f":"IF($A381=\"N/A\",Ref!$B$36,INDEX(Ranks!$1:$1048576,$A381,AC$1))","v":""},{"$f":"IF($A381=\"N/A\",Ref!$B$36,INDEX(Ranks!$1:$1048576,$A381,AD$1))","v":""},{"$f":"IF($A381=\"N/A\",Ref!$B$36,INDEX(Ranks!$1:$1048576,$A381,AE$1))","v":""},{"$f":"IF($A381=\"N/A\",Ref!$B$36,INDEX(Ranks!$1:$1048576,$A381,AF$1))","v":""},{"$f":"IF($A381=\"N/A\",Ref!$B$36,INDEX(Ranks!$1:$1048576,$A381,AG$1))","v":""},{"$f":"IF($A381=\"N/A\",Ref!$B$36,INDEX(Ranks!$1:$1048576,$A381,AH$1))","v":""},{"$f":"IF($A381=\"N/A\",Ref!$B$36,INDEX(Ranks!$1:$1048576,$A381,AI$1))","v":""},{"$f":"IF($A381=\"N/A\",Ref!$B$36,INDEX(Ranks!$1:$1048576,$A381,AJ$1))","v":""},{"$f":"IF($A381=\"N/A\",Ref!$B$36,INDEX(Ranks!$1:$1048576,$A381,AK$1))","v":""},{"$f":"IF($A381=\"N/A\",Ref!$B$36,INDEX(Ranks!$1:$1048576,$A381,AL$1))","v":""},{"$f":"IF($A381=\"N/A\",Ref!$B$36,INDEX(Ranks!$1:$1048576,$A381,AM$1))","v":""},{"$f":"IF($A381=\"N/A\",Ref!$B$36,INDEX(Ranks!$1:$1048576,$A381,AN$1))","v":""},{"$f":"IF($A381=\"N/A\",Ref!$B$36,INDEX(Ranks!$1:$1048576,$A381,AO$1))","v":""},{"$f":"IF($A381=\"N/A\",Ref!$B$36,INDEX(Ranks!$1:$1048576,$A381,AP$1))","v":""},{"$f":"IF($A381=\"N/A\",Ref!$B$36,INDEX(Ranks!$1:$1048576,$A381,AQ$1))","v":""},{"$f":"IF($A381=\"N/A\",Ref!$B$36,INDEX(Ranks!$1:$1048576,$A381,AR$1))","v":""},{"$f":"IF($A381=\"N/A\",Ref!$B$36,INDEX(Ranks!$1:$1048576,$A381,AS$1))","v":""},{"$f":"IF($A381=\"N/A\",Ref!$B$36,INDEX(Ranks!$1:$1048576,$A381,AT$1))","v":""},{"$f":"IF($A381=\"N/A\",Ref!$B$36,INDEX(Ranks!$1:$1048576,$A381,AU$1))","v":""},{"$f":"IF($A381=\"N/A\",Ref!$B$36,INDEX(Ranks!$1:$1048576,$A381,AV$1))","v":""},{"$f":"IF($A381=\"N/A\",Ref!$B$36,INDEX(Ranks!$1:$1048576,$A381,AW$1))","v":""},{"$f":"IF($A381=\"N/A\",Ref!$B$36,INDEX(Ranks!$1:$1048576,$A381,AX$1))","v":""},{"$f":"IF($A381=\"N/A\",Ref!$B$36,INDEX(Ranks!$1:$1048576,$A381,AY$1))","v":""},{"$f":"IF($A381=\"N/A\",Ref!$B$36,INDEX(Ranks!$1:$1048576,$A381,AZ$1))","v":""},{"$f":"IF($A381=\"N/A\",Ref!$B$36,INDEX(Ranks!$1:$1048576,$A381,BA$1))","v":""},{"$f":"IF($A381=\"N/A\",Ref!$B$36,INDEX(Ranks!$1:$1048576,$A381,BB$1))","v":""},{"$f":"IF($A381=\"N/A\",Ref!$B$36,INDEX(Ranks!$1:$1048576,$A381,BC$1))","v":""},{"$f":"IF($A381=\"N/A\",Ref!$B$36,INDEX(Ranks!$1:$1048576,$A381,BD$1))","v":""},{"$f":"IF($A381=\"N/A\",Ref!$B$36,INDEX(Ranks!$1:$1048576,$A381,BE$1))","v":""},{"$f":"IF($A381=\"N/A\",Ref!$B$36,INDEX(Ranks!$1:$1048576,$A381,BF$1))","v":""},{"$f":"IF($A381=\"N/A\",Ref!$B$36,INDEX(Ranks!$1:$1048576,$A381,BG$1))","v":""},{"$f":"IF($A381=\"N/A\",Ref!$B$36,INDEX(Ranks!$1:$1048576,$A381,BH$1))","v":""},{"$f":"IF($A381=\"N/A\",Ref!$B$36,INDEX(Ranks!$1:$1048576,$A381,BI$1))","v":""},{"$f":"IF($A381=\"N/A\",Ref!$B$36,INDEX(Ranks!$1:$1048576,$A381,BJ$1))","v":""},{"$f":"IF($A381=\"N/A\",Ref!$B$36,INDEX(Ranks!$1:$1048576,$A381,BK$1))","v":""},{"$f":"IF($A381=\"N/A\",Ref!$B$36,INDEX(Ranks!$1:$1048576,$A381,BL$1))","v":""},{"$f":"IF($A381=\"N/A\",Ref!$B$36,INDEX(Ranks!$1:$1048576,$A381,BM$1))","v":""},{"$f":"IF($A381=\"N/A\",Ref!$B$36,INDEX(Ranks!$1:$1048576,$A381,BN$1))","v":""},{"$f":"IF($A381=\"N/A\",Ref!$B$36,INDEX(Ranks!$1:$1048576,$A381,BO$1))","v":""},{"$f":"IF($A381=\"N/A\",Ref!$B$36,INDEX(Ranks!$1:$1048576,$A381,BP$1))","v":""},{"$f":"IF($A381=\"N/A\",Ref!$B$36,INDEX(Ranks!$1:$1048576,$A381,BQ$1))","v":""},{"$f":"IF($A381=\"N/A\",Ref!$B$36,INDEX(Ranks!$1:$1048576,$A381,BR$1))","v":""},{"$f":"IF($A381=\"N/A\",Ref!$B$36,INDEX(Ranks!$1:$1048576,$A381,BS$1))","v":""},{"$f":"IF($A381=\"N/A\",Ref!$B$36,INDEX(Ranks!$1:$1048576,$A381,BT$1))","v":""},{"$f":"IF($A381=\"N/A\",Ref!$B$36,INDEX(Ranks!$1:$1048576,$A381,BU$1))","v":""},{"$f":"IF($A381=\"N/A\",Ref!$B$36,INDEX(Ranks!$1:$1048576,$A381,BV$1))","v":""},{"$f":"IF($A381=\"N/A\",Ref!$B$36,INDEX(Ranks!$1:$1048576,$A381,BW$1))","v":""},{"$f":"IF($A381=\"N/A\",Ref!$B$36,INDEX(Ranks!$1:$1048576,$A381,BX$1))","v":""},{"$f":"IF($A381=\"N/A\",Ref!$B$36,INDEX(Ranks!$1:$1048576,$A381,BY$1))","v":""},{"$f":"IF($A381=\"N/A\",Ref!$B$36,INDEX(Ranks!$1:$1048576,$A381,BZ$1))","v":""},{"$f":"IF($A381=\"N/A\",Ref!$B$36,INDEX(Ranks!$1:$1048576,$A381,CA$1))","v":""},{"$f":"IF($A381=\"N/A\",Ref!$B$36,INDEX(Ranks!$1:$1048576,$A381,CB$1))","v":""},{"$f":"IF($A381=\"N/A\",Ref!$B$36,INDEX(Ranks!$1:$1048576,$A381,CC$1))","v":""},{"$f":"IF($A381=\"N/A\",Ref!$B$36,INDEX(Ranks!$1:$1048576,$A381,CD$1))","v":""},{"$f":"IF($A381=\"N/A\",Ref!$B$36,INDEX(Ranks!$1:$1048576,$A381,CE$1))","v":""},{"$f":"IF($A381=\"N/A\",Ref!$B$36,INDEX(Ranks!$1:$1048576,$A381,CF$1))","v":""},{"$f":"IF($A381=\"N/A\",Ref!$B$36,INDEX(Ranks!$1:$1048576,$A381,CG$1))","v":""},{"$f":"IF($A381=\"N/A\",Ref!$B$36,INDEX(Ranks!$1:$1048576,$A381,CH$1))","v":""},{"$f":"IF($A381=\"N/A\",Ref!$B$36,INDEX(Ranks!$1:$1048576,$A381,CI$1))","v":""},{"$f":"IF($A381=\"N/A\",Ref!$B$36,INDEX(Ranks!$1:$1048576,$A381,CJ$1))","v":""},{"$f":"IF($A381=\"N/A\",Ref!$B$36,INDEX(Ranks!$1:$1048576,$A381,CK$1))","v":""},{"$f":"IF($A381=\"N/A\",Ref!$B$36,INDEX(Ranks!$1:$1048576,$A381,CL$1))","v":""},{"$f":"IF($A381=\"N/A\",Ref!$B$36,INDEX(Ranks!$1:$1048576,$A381,CM$1))","v":""},{"$f":"IF($A381=\"N/A\",Ref!$B$36,INDEX(Ranks!$1:$1048576,$A381,CN$1))","v":""},{"$f":"IF($A381=\"N/A\",Ref!$B$36,INDEX(Ranks!$1:$1048576,$A381,CO$1))","v":""},{"$f":"IF($A381=\"N/A\",Ref!$B$36,INDEX(Ranks!$1:$1048576,$A381,CP$1))","v":""},{"$f":"IF($A381=\"N/A\",Ref!$B$36,INDEX(Ranks!$1:$1048576,$A381,CQ$1))","v":""},{"$f":"IF($A381=\"N/A\",Ref!$B$36,INDEX(Ranks!$1:$1048576,$A381,CR$1))","v":""},{"$f":"IF($A381=\"N/A\",Ref!$B$36,INDEX(Ranks!$1:$1048576,$A381,CS$1))","v":""},{"$f":"IF($A381=\"N/A\",Ref!$B$36,INDEX(Ranks!$1:$1048576,$A381,CT$1))","v":""},{"$f":"IF($A381=\"N/A\",Ref!$B$36,INDEX(Ranks!$1:$1048576,$A381,CU$1))","v":""},{"$f":"IF($A381=\"N/A\",Ref!$B$36,INDEX(Ranks!$1:$1048576,$A381,CV$1))","v":""},{"$f":"IF($A381=\"N/A\",Ref!$B$36,INDEX(Ranks!$1:$1048576,$A381,CW$1))","v":""},{"$f":"IF($A381=\"N/A\",Ref!$B$36,INDEX(Ranks!$1:$1048576,$A381,CX$1))","v":""},{"$f":"IF($A381=\"N/A\",Ref!$B$36,INDEX(Ranks!$1:$1048576,$A381,CY$1))","v":""},{"$f":"IF($A381=\"N/A\",Ref!$B$36,INDEX(Ranks!$1:$1048576,$A381,CZ$1))","v":""},{"$f":"IF($A381=\"N/A\",Ref!$B$36,INDEX(Ranks!$1:$1048576,$A381,DA$1))","v":""},{"$f":"IF($A381=\"N/A\",Ref!$B$36,INDEX(Ranks!$1:$1048576,$A381,DB$1))","v":""},{"$f":"IF($A381=\"N/A\",Ref!$B$36,INDEX(Ranks!$1:$1048576,$A381,DC$1))","v":""},{"$f":"IF($A381=\"N/A\",Ref!$B$36,INDEX(Ranks!$1:$1048576,$A381,DD$1))","v":""},{"$f":"IF($A381=\"N/A\",Ref!$B$36,INDEX(Ranks!$1:$1048576,$A381,DE$1))","v":""},{"$f":"IF($A381=\"N/A\",Ref!$B$36,INDEX(Ranks!$1:$1048576,$A381,DF$1))","v":""},{"$f":"IF($A381=\"N/A\",Ref!$B$36,INDEX(Ranks!$1:$1048576,$A381,DG$1))","v":""},{"$f":"IF($A381=\"N/A\",Ref!$B$36,INDEX(Ranks!$1:$1048576,$A381,DH$1))","v":""},{"$f":"IF($A381=\"N/A\",Ref!$B$36,INDEX(Ranks!$1:$1048576,$A381,DI$1))","v":""},{"$f":"IF($A381=\"N/A\",Ref!$B$36,INDEX(Ranks!$1:$1048576,$A381,DJ$1))","v":""},{"$f":"IF($A381=\"N/A\",Ref!$B$36,INDEX(Ranks!$1:$1048576,$A381,DK$1))","v":""},{"$f":"IF($A381=\"N/A\",Ref!$B$36,INDEX(Ranks!$1:$1048576,$A381,DL$1))","v":""},{"$f":"IF($A381=\"N/A\",Ref!$B$36,INDEX(Ranks!$1:$1048576,$A381,DM$1))","v":""},{"$f":"IF($A381=\"N/A\",Ref!$B$36,INDEX(Ranks!$1:$1048576,$A381,DN$1))","v":""},{"$f":"IF($A381=\"N/A\",Ref!$B$36,INDEX(Ranks!$1:$1048576,$A381,DO$1))","v":""},{"$f":"IF($A381=\"N/A\",Ref!$B$36,INDEX(Ranks!$1:$1048576,$A381,DP$1))","v":""},{"$f":"IF($A381=\"N/A\",Ref!$B$36,INDEX(Ranks!$1:$1048576,$A381,DQ$1))","v":""},{"$f":"IF($A381=\"N/A\",Ref!$B$36,INDEX(Ranks!$1:$1048576,$A381,DR$1))","v":""},{"$f":"IF($A381=\"N/A\",Ref!$B$36,INDEX(Ranks!$1:$1048576,$A381,DS$1))","v":""},{"$f":"IF($A381=\"N/A\",Ref!$B$36,INDEX(Ranks!$1:$1048576,$A381,DT$1))","v":""},{"$f":"IF($A381=\"N/A\",Ref!$B$36,INDEX(Ranks!$1:$1048576,$A381,DU$1))","v":""},{"$f":"IF($A381=\"N/A\",Ref!$B$36,INDEX(Ranks!$1:$1048576,$A381,DV$1))","v":""},{"$f":"IF($A381=\"N/A\",Ref!$B$36,INDEX(Ranks!$1:$1048576,$A381,DW$1))","v":""},{"$f":"IF($A381=\"N/A\",Ref!$B$36,INDEX(Ranks!$1:$1048576,$A381,DX$1))","v":""},{"$f":"IF($A381=\"N/A\",Ref!$B$36,INDEX(Ranks!$1:$1048576,$A381,DY$1))","v":""},{"$f":"IF($A381=\"N/A\",Ref!$B$36,INDEX(Ranks!$1:$1048576,$A381,DZ$1))","v":""},{"$f":"IF($A381=\"N/A\",Ref!$B$36,INDEX(Ranks!$1:$1048576,$A381,EA$1))","v":""},{"$f":"IF($A381=\"N/A\",Ref!$B$36,INDEX(Ranks!$1:$1048576,$A381,EB$1))","v":""}]
[{"$f":"IFERROR(MATCH('Portfolio Page'!L382,Ranks!L:L,0),\"N/A\")","v":"N/A"},null,{"$f":"IF($A382=\"N/A\",\"\",INDEX(Ranks!$1:$1048576,$A382,C$1))","v":""},{"$f":"IF($A382=\"N/A\",Ref!$B$36,INDEX(Ranks!$1:$1048576,$A382,D$1))","v":""},{"$f":"IF($A382=\"N/A\",Ref!$B$36,INDEX(Ranks!$1:$1048576,$A382,E$1))","v":""},{"$f":"IF($A382=\"N/A\",\"\",INDEX(Ranks!$1:$1048576,$A382,F$1))","v":""},{"$f":"IF($A382=\"N/A\",\"\",INDEX(Ranks!$1:$1048576,$A382,G$1))","v":""},{"$f":"IF($A382=\"N/A\",\"\",INDEX(Ranks!$1:$1048576,$A382,H$1))","v":""},{"$f":"IF($A382=\"N/A\",\"\",INDEX(Ranks!$1:$1048576,$A382,I$1))","v":""},{"$f":"IF($A382=\"N/A\",\"\",INDEX(Ranks!$1:$1048576,$A382,J$1))","v":""},{"$f":"IF($A382=\"N/A\",\"\",INDEX(Ranks!$1:$1048576,$A382,K$1))","v":""},null,{"$f":"IF($A382=\"N/A\",Ref!$B$36,INDEX(Ranks!$1:$1048576,$A382,M$1))","v":""},{"$f":"IF($A382=\"N/A\",Ref!$B$36,INDEX(Ranks!$1:$1048576,$A382,N$1))","v":""},{"$f":"IF($A382=\"N/A\",Ref!$B$36,INDEX(Ranks!$1:$1048576,$A382,O$1))","v":""},{"$f":"IF($A382=\"N/A\",Ref!$B$36,INDEX(Ranks!$1:$1048576,$A382,P$1))","v":""},{"$f":"IF($A382=\"N/A\",Ref!$B$36,INDEX(Ranks!$1:$1048576,$A382,Q$1))","v":""},{"$f":"IF($A382=\"N/A\",Ref!$B$36,INDEX(Ranks!$1:$1048576,$A382,R$1))","v":""},{"$f":"IF($A382=\"N/A\",Ref!$B$36,INDEX(Ranks!$1:$1048576,$A382,S$1))","v":""},{"$f":"IF($A382=\"N/A\",Ref!$B$36,INDEX(Ranks!$1:$1048576,$A382,T$1))","v":""},{"$f":"IF($A382=\"N/A\",Ref!$B$36,INDEX(Ranks!$1:$1048576,$A382,U$1))","v":""},{"$f":"IF($A382=\"N/A\",Ref!$B$36,INDEX(Ranks!$1:$1048576,$A382,V$1))","v":""},{"$f":"IF($A382=\"N/A\",Ref!$B$36,INDEX(Ranks!$1:$1048576,$A382,W$1))","v":""},{"$f":"IF($A382=\"N/A\",Ref!$B$36,INDEX(Ranks!$1:$1048576,$A382,X$1))","v":""},{"$f":"IF($A382=\"N/A\",Ref!$B$36,INDEX(Ranks!$1:$1048576,$A382,Y$1))","v":""},{"$f":"IF($A382=\"N/A\",Ref!$B$36,INDEX(Ranks!$1:$1048576,$A382,Z$1))","v":""},{"$f":"IF($A382=\"N/A\",Ref!$B$36,INDEX(Ranks!$1:$1048576,$A382,AA$1))","v":""},{"$f":"IF($A382=\"N/A\",Ref!$B$36,INDEX(Ranks!$1:$1048576,$A382,AB$1))","v":""},{"$f":"IF($A382=\"N/A\",Ref!$B$36,INDEX(Ranks!$1:$1048576,$A382,AC$1))","v":""},{"$f":"IF($A382=\"N/A\",Ref!$B$36,INDEX(Ranks!$1:$1048576,$A382,AD$1))","v":""},{"$f":"IF($A382=\"N/A\",Ref!$B$36,INDEX(Ranks!$1:$1048576,$A382,AE$1))","v":""},{"$f":"IF($A382=\"N/A\",Ref!$B$36,INDEX(Ranks!$1:$1048576,$A382,AF$1))","v":""},{"$f":"IF($A382=\"N/A\",Ref!$B$36,INDEX(Ranks!$1:$1048576,$A382,AG$1))","v":""},{"$f":"IF($A382=\"N/A\",Ref!$B$36,INDEX(Ranks!$1:$1048576,$A382,AH$1))","v":""},{"$f":"IF($A382=\"N/A\",Ref!$B$36,INDEX(Ranks!$1:$1048576,$A382,AI$1))","v":""},{"$f":"IF($A382=\"N/A\",Ref!$B$36,INDEX(Ranks!$1:$1048576,$A382,AJ$1))","v":""},{"$f":"IF($A382=\"N/A\",Ref!$B$36,INDEX(Ranks!$1:$1048576,$A382,AK$1))","v":""},{"$f":"IF($A382=\"N/A\",Ref!$B$36,INDEX(Ranks!$1:$1048576,$A382,AL$1))","v":""},{"$f":"IF($A382=\"N/A\",Ref!$B$36,INDEX(Ranks!$1:$1048576,$A382,AM$1))","v":""},{"$f":"IF($A382=\"N/A\",Ref!$B$36,INDEX(Ranks!$1:$1048576,$A382,AN$1))","v":""},{"$f":"IF($A382=\"N/A\",Ref!$B$36,INDEX(Ranks!$1:$1048576,$A382,AO$1))","v":""},{"$f":"IF($A382=\"N/A\",Ref!$B$36,INDEX(Ranks!$1:$1048576,$A382,AP$1))","v":""},{"$f":"IF($A382=\"N/A\",Ref!$B$36,INDEX(Ranks!$1:$1048576,$A382,AQ$1))","v":""},{"$f":"IF($A382=\"N/A\",Ref!$B$36,INDEX(Ranks!$1:$1048576,$A382,AR$1))","v":""},{"$f":"IF($A382=\"N/A\",Ref!$B$36,INDEX(Ranks!$1:$1048576,$A382,AS$1))","v":""},{"$f":"IF($A382=\"N/A\",Ref!$B$36,INDEX(Ranks!$1:$1048576,$A382,AT$1))","v":""},{"$f":"IF($A382=\"N/A\",Ref!$B$36,INDEX(Ranks!$1:$1048576,$A382,AU$1))","v":""},{"$f":"IF($A382=\"N/A\",Ref!$B$36,INDEX(Ranks!$1:$1048576,$A382,AV$1))","v":""},{"$f":"IF($A382=\"N/A\",Ref!$B$36,INDEX(Ranks!$1:$1048576,$A382,AW$1))","v":""},{"$f":"IF($A382=\"N/A\",Ref!$B$36,INDEX(Ranks!$1:$1048576,$A382,AX$1))","v":""},{"$f":"IF($A382=\"N/A\",Ref!$B$36,INDEX(Ranks!$1:$1048576,$A382,AY$1))","v":""},{"$f":"IF($A382=\"N/A\",Ref!$B$36,INDEX(Ranks!$1:$1048576,$A382,AZ$1))","v":""},{"$f":"IF($A382=\"N/A\",Ref!$B$36,INDEX(Ranks!$1:$1048576,$A382,BA$1))","v":""},{"$f":"IF($A382=\"N/A\",Ref!$B$36,INDEX(Ranks!$1:$1048576,$A382,BB$1))","v":""},{"$f":"IF($A382=\"N/A\",Ref!$B$36,INDEX(Ranks!$1:$1048576,$A382,BC$1))","v":""},{"$f":"IF($A382=\"N/A\",Ref!$B$36,INDEX(Ranks!$1:$1048576,$A382,BD$1))","v":""},{"$f":"IF($A382=\"N/A\",Ref!$B$36,INDEX(Ranks!$1:$1048576,$A382,BE$1))","v":""},{"$f":"IF($A382=\"N/A\",Ref!$B$36,INDEX(Ranks!$1:$1048576,$A382,BF$1))","v":""},{"$f":"IF($A382=\"N/A\",Ref!$B$36,INDEX(Ranks!$1:$1048576,$A382,BG$1))","v":""},{"$f":"IF($A382=\"N/A\",Ref!$B$36,INDEX(Ranks!$1:$1048576,$A382,BH$1))","v":""},{"$f":"IF($A382=\"N/A\",Ref!$B$36,INDEX(Ranks!$1:$1048576,$A382,BI$1))","v":""},{"$f":"IF($A382=\"N/A\",Ref!$B$36,INDEX(Ranks!$1:$1048576,$A382,BJ$1))","v":""},{"$f":"IF($A382=\"N/A\",Ref!$B$36,INDEX(Ranks!$1:$1048576,$A382,BK$1))","v":""},{"$f":"IF($A382=\"N/A\",Ref!$B$36,INDEX(Ranks!$1:$1048576,$A382,BL$1))","v":""},{"$f":"IF($A382=\"N/A\",Ref!$B$36,INDEX(Ranks!$1:$1048576,$A382,BM$1))","v":""},{"$f":"IF($A382=\"N/A\",Ref!$B$36,INDEX(Ranks!$1:$1048576,$A382,BN$1))","v":""},{"$f":"IF($A382=\"N/A\",Ref!$B$36,INDEX(Ranks!$1:$1048576,$A382,BO$1))","v":""},{"$f":"IF($A382=\"N/A\",Ref!$B$36,INDEX(Ranks!$1:$1048576,$A382,BP$1))","v":""},{"$f":"IF($A382=\"N/A\",Ref!$B$36,INDEX(Ranks!$1:$1048576,$A382,BQ$1))","v":""},{"$f":"IF($A382=\"N/A\",Ref!$B$36,INDEX(Ranks!$1:$1048576,$A382,BR$1))","v":""},{"$f":"IF($A382=\"N/A\",Ref!$B$36,INDEX(Ranks!$1:$1048576,$A382,BS$1))","v":""},{"$f":"IF($A382=\"N/A\",Ref!$B$36,INDEX(Ranks!$1:$1048576,$A382,BT$1))","v":""},{"$f":"IF($A382=\"N/A\",Ref!$B$36,INDEX(Ranks!$1:$1048576,$A382,BU$1))","v":""},{"$f":"IF($A382=\"N/A\",Ref!$B$36,INDEX(Ranks!$1:$1048576,$A382,BV$1))","v":""},{"$f":"IF($A382=\"N/A\",Ref!$B$36,INDEX(Ranks!$1:$1048576,$A382,BW$1))","v":""},{"$f":"IF($A382=\"N/A\",Ref!$B$36,INDEX(Ranks!$1:$1048576,$A382,BX$1))","v":""},{"$f":"IF($A382=\"N/A\",Ref!$B$36,INDEX(Ranks!$1:$1048576,$A382,BY$1))","v":""},{"$f":"IF($A382=\"N/A\",Ref!$B$36,INDEX(Ranks!$1:$1048576,$A382,BZ$1))","v":""},{"$f":"IF($A382=\"N/A\",Ref!$B$36,INDEX(Ranks!$1:$1048576,$A382,CA$1))","v":""},{"$f":"IF($A382=\"N/A\",Ref!$B$36,INDEX(Ranks!$1:$1048576,$A382,CB$1))","v":""},{"$f":"IF($A382=\"N/A\",Ref!$B$36,INDEX(Ranks!$1:$1048576,$A382,CC$1))","v":""},{"$f":"IF($A382=\"N/A\",Ref!$B$36,INDEX(Ranks!$1:$1048576,$A382,CD$1))","v":""},{"$f":"IF($A382=\"N/A\",Ref!$B$36,INDEX(Ranks!$1:$1048576,$A382,CE$1))","v":""},{"$f":"IF($A382=\"N/A\",Ref!$B$36,INDEX(Ranks!$1:$1048576,$A382,CF$1))","v":""},{"$f":"IF($A382=\"N/A\",Ref!$B$36,INDEX(Ranks!$1:$1048576,$A382,CG$1))","v":""},{"$f":"IF($A382=\"N/A\",Ref!$B$36,INDEX(Ranks!$1:$1048576,$A382,CH$1))","v":""},{"$f":"IF($A382=\"N/A\",Ref!$B$36,INDEX(Ranks!$1:$1048576,$A382,CI$1))","v":""},{"$f":"IF($A382=\"N/A\",Ref!$B$36,INDEX(Ranks!$1:$1048576,$A382,CJ$1))","v":""},{"$f":"IF($A382=\"N/A\",Ref!$B$36,INDEX(Ranks!$1:$1048576,$A382,CK$1))","v":""},{"$f":"IF($A382=\"N/A\",Ref!$B$36,INDEX(Ranks!$1:$1048576,$A382,CL$1))","v":""},{"$f":"IF($A382=\"N/A\",Ref!$B$36,INDEX(Ranks!$1:$1048576,$A382,CM$1))","v":""},{"$f":"IF($A382=\"N/A\",Ref!$B$36,INDEX(Ranks!$1:$1048576,$A382,CN$1))","v":""},{"$f":"IF($A382=\"N/A\",Ref!$B$36,INDEX(Ranks!$1:$1048576,$A382,CO$1))","v":""},{"$f":"IF($A382=\"N/A\",Ref!$B$36,INDEX(Ranks!$1:$1048576,$A382,CP$1))","v":""},{"$f":"IF($A382=\"N/A\",Ref!$B$36,INDEX(Ranks!$1:$1048576,$A382,CQ$1))","v":""},{"$f":"IF($A382=\"N/A\",Ref!$B$36,INDEX(Ranks!$1:$1048576,$A382,CR$1))","v":""},{"$f":"IF($A382=\"N/A\",Ref!$B$36,INDEX(Ranks!$1:$1048576,$A382,CS$1))","v":""},{"$f":"IF($A382=\"N/A\",Ref!$B$36,INDEX(Ranks!$1:$1048576,$A382,CT$1))","v":""},{"$f":"IF($A382=\"N/A\",Ref!$B$36,INDEX(Ranks!$1:$1048576,$A382,CU$1))","v":""},{"$f":"IF($A382=\"N/A\",Ref!$B$36,INDEX(Ranks!$1:$1048576,$A382,CV$1))","v":""},{"$f":"IF($A382=\"N/A\",Ref!$B$36,INDEX(Ranks!$1:$1048576,$A382,CW$1))","v":""},{"$f":"IF($A382=\"N/A\",Ref!$B$36,INDEX(Ranks!$1:$1048576,$A382,CX$1))","v":""},{"$f":"IF($A382=\"N/A\",Ref!$B$36,INDEX(Ranks!$1:$1048576,$A382,CY$1))","v":""},{"$f":"IF($A382=\"N/A\",Ref!$B$36,INDEX(Ranks!$1:$1048576,$A382,CZ$1))","v":""},{"$f":"IF($A382=\"N/A\",Ref!$B$36,INDEX(Ranks!$1:$1048576,$A382,DA$1))","v":""},{"$f":"IF($A382=\"N/A\",Ref!$B$36,INDEX(Ranks!$1:$1048576,$A382,DB$1))","v":""},{"$f":"IF($A382=\"N/A\",Ref!$B$36,INDEX(Ranks!$1:$1048576,$A382,DC$1))","v":""},{"$f":"IF($A382=\"N/A\",Ref!$B$36,INDEX(Ranks!$1:$1048576,$A382,DD$1))","v":""},{"$f":"IF($A382=\"N/A\",Ref!$B$36,INDEX(Ranks!$1:$1048576,$A382,DE$1))","v":""},{"$f":"IF($A382=\"N/A\",Ref!$B$36,INDEX(Ranks!$1:$1048576,$A382,DF$1))","v":""},{"$f":"IF($A382=\"N/A\",Ref!$B$36,INDEX(Ranks!$1:$1048576,$A382,DG$1))","v":""},{"$f":"IF($A382=\"N/A\",Ref!$B$36,INDEX(Ranks!$1:$1048576,$A382,DH$1))","v":""},{"$f":"IF($A382=\"N/A\",Ref!$B$36,INDEX(Ranks!$1:$1048576,$A382,DI$1))","v":""},{"$f":"IF($A382=\"N/A\",Ref!$B$36,INDEX(Ranks!$1:$1048576,$A382,DJ$1))","v":""},{"$f":"IF($A382=\"N/A\",Ref!$B$36,INDEX(Ranks!$1:$1048576,$A382,DK$1))","v":""},{"$f":"IF($A382=\"N/A\",Ref!$B$36,INDEX(Ranks!$1:$1048576,$A382,DL$1))","v":""},{"$f":"IF($A382=\"N/A\",Ref!$B$36,INDEX(Ranks!$1:$1048576,$A382,DM$1))","v":""},{"$f":"IF($A382=\"N/A\",Ref!$B$36,INDEX(Ranks!$1:$1048576,$A382,DN$1))","v":""},{"$f":"IF($A382=\"N/A\",Ref!$B$36,INDEX(Ranks!$1:$1048576,$A382,DO$1))","v":""},{"$f":"IF($A382=\"N/A\",Ref!$B$36,INDEX(Ranks!$1:$1048576,$A382,DP$1))","v":""},{"$f":"IF($A382=\"N/A\",Ref!$B$36,INDEX(Ranks!$1:$1048576,$A382,DQ$1))","v":""},{"$f":"IF($A382=\"N/A\",Ref!$B$36,INDEX(Ranks!$1:$1048576,$A382,DR$1))","v":""},{"$f":"IF($A382=\"N/A\",Ref!$B$36,INDEX(Ranks!$1:$1048576,$A382,DS$1))","v":""},{"$f":"IF($A382=\"N/A\",Ref!$B$36,INDEX(Ranks!$1:$1048576,$A382,DT$1))","v":""},{"$f":"IF($A382=\"N/A\",Ref!$B$36,INDEX(Ranks!$1:$1048576,$A382,DU$1))","v":""},{"$f":"IF($A382=\"N/A\",Ref!$B$36,INDEX(Ranks!$1:$1048576,$A382,DV$1))","v":""},{"$f":"IF($A382=\"N/A\",Ref!$B$36,INDEX(Ranks!$1:$1048576,$A382,DW$1))","v":""},{"$f":"IF($A382=\"N/A\",Ref!$B$36,INDEX(Ranks!$1:$1048576,$A382,DX$1))","v":""},{"$f":"IF($A382=\"N/A\",Ref!$B$36,INDEX(Ranks!$1:$1048576,$A382,DY$1))","v":""},{"$f":"IF($A382=\"N/A\",Ref!$B$36,INDEX(Ranks!$1:$1048576,$A382,DZ$1))","v":""},{"$f":"IF($A382=\"N/A\",Ref!$B$36,INDEX(Ranks!$1:$1048576,$A382,EA$1))","v":""},{"$f":"IF($A382=\"N/A\",Ref!$B$36,INDEX(Ranks!$1:$1048576,$A382,EB$1))","v":""}]
[{"$f":"IFERROR(MATCH('Portfolio Page'!L383,Ranks!L:L,0),\"N/A\")","v":"N/A"},null,{"$f":"IF($A383=\"N/A\",\"\",INDEX(Ranks!$1:$1048576,$A383,C$1))","v":""},{"$f":"IF($A383=\"N/A\",Ref!$B$36,INDEX(Ranks!$1:$1048576,$A383,D$1))","v":""},{"$f":"IF($A383=\"N/A\",Ref!$B$36,INDEX(Ranks!$1:$1048576,$A383,E$1))","v":""},{"$f":"IF($A383=\"N/A\",\"\",INDEX(Ranks!$1:$1048576,$A383,F$1))","v":""},{"$f":"IF($A383=\"N/A\",\"\",INDEX(Ranks!$1:$1048576,$A383,G$1))","v":""},{"$f":"IF($A383=\"N/A\",\"\",INDEX(Ranks!$1:$1048576,$A383,H$1))","v":""},{"$f":"IF($A383=\"N/A\",\"\",INDEX(Ranks!$1:$1048576,$A383,I$1))","v":""},{"$f":"IF($A383=\"N/A\",\"\",INDEX(Ranks!$1:$1048576,$A383,J$1))","v":""},{"$f":"IF($A383=\"N/A\",\"\",INDEX(Ranks!$1:$1048576,$A383,K$1))","v":""},null,{"$f":"IF($A383=\"N/A\",Ref!$B$36,INDEX(Ranks!$1:$1048576,$A383,M$1))","v":""},{"$f":"IF($A383=\"N/A\",Ref!$B$36,INDEX(Ranks!$1:$1048576,$A383,N$1))","v":""},{"$f":"IF($A383=\"N/A\",Ref!$B$36,INDEX(Ranks!$1:$1048576,$A383,O$1))","v":""},{"$f":"IF($A383=\"N/A\",Ref!$B$36,INDEX(Ranks!$1:$1048576,$A383,P$1))","v":""},{"$f":"IF($A383=\"N/A\",Ref!$B$36,INDEX(Ranks!$1:$1048576,$A383,Q$1))","v":""},{"$f":"IF($A383=\"N/A\",Ref!$B$36,INDEX(Ranks!$1:$1048576,$A383,R$1))","v":""},{"$f":"IF($A383=\"N/A\",Ref!$B$36,INDEX(Ranks!$1:$1048576,$A383,S$1))","v":""},{"$f":"IF($A383=\"N/A\",Ref!$B$36,INDEX(Ranks!$1:$1048576,$A383,T$1))","v":""},{"$f":"IF($A383=\"N/A\",Ref!$B$36,INDEX(Ranks!$1:$1048576,$A383,U$1))","v":""},{"$f":"IF($A383=\"N/A\",Ref!$B$36,INDEX(Ranks!$1:$1048576,$A383,V$1))","v":""},{"$f":"IF($A383=\"N/A\",Ref!$B$36,INDEX(Ranks!$1:$1048576,$A383,W$1))","v":""},{"$f":"IF($A383=\"N/A\",Ref!$B$36,INDEX(Ranks!$1:$1048576,$A383,X$1))","v":""},{"$f":"IF($A383=\"N/A\",Ref!$B$36,INDEX(Ranks!$1:$1048576,$A383,Y$1))","v":""},{"$f":"IF($A383=\"N/A\",Ref!$B$36,INDEX(Ranks!$1:$1048576,$A383,Z$1))","v":""},{"$f":"IF($A383=\"N/A\",Ref!$B$36,INDEX(Ranks!$1:$1048576,$A383,AA$1))","v":""},{"$f":"IF($A383=\"N/A\",Ref!$B$36,INDEX(Ranks!$1:$1048576,$A383,AB$1))","v":""},{"$f":"IF($A383=\"N/A\",Ref!$B$36,INDEX(Ranks!$1:$1048576,$A383,AC$1))","v":""},{"$f":"IF($A383=\"N/A\",Ref!$B$36,INDEX(Ranks!$1:$1048576,$A383,AD$1))","v":""},{"$f":"IF($A383=\"N/A\",Ref!$B$36,INDEX(Ranks!$1:$1048576,$A383,AE$1))","v":""},{"$f":"IF($A383=\"N/A\",Ref!$B$36,INDEX(Ranks!$1:$1048576,$A383,AF$1))","v":""},{"$f":"IF($A383=\"N/A\",Ref!$B$36,INDEX(Ranks!$1:$1048576,$A383,AG$1))","v":""},{"$f":"IF($A383=\"N/A\",Ref!$B$36,INDEX(Ranks!$1:$1048576,$A383,AH$1))","v":""},{"$f":"IF($A383=\"N/A\",Ref!$B$36,INDEX(Ranks!$1:$1048576,$A383,AI$1))","v":""},{"$f":"IF($A383=\"N/A\",Ref!$B$36,INDEX(Ranks!$1:$1048576,$A383,AJ$1))","v":""},{"$f":"IF($A383=\"N/A\",Ref!$B$36,INDEX(Ranks!$1:$1048576,$A383,AK$1))","v":""},{"$f":"IF($A383=\"N/A\",Ref!$B$36,INDEX(Ranks!$1:$1048576,$A383,AL$1))","v":""},{"$f":"IF($A383=\"N/A\",Ref!$B$36,INDEX(Ranks!$1:$1048576,$A383,AM$1))","v":""},{"$f":"IF($A383=\"N/A\",Ref!$B$36,INDEX(Ranks!$1:$1048576,$A383,AN$1))","v":""},{"$f":"IF($A383=\"N/A\",Ref!$B$36,INDEX(Ranks!$1:$1048576,$A383,AO$1))","v":""},{"$f":"IF($A383=\"N/A\",Ref!$B$36,INDEX(Ranks!$1:$1048576,$A383,AP$1))","v":""},{"$f":"IF($A383=\"N/A\",Ref!$B$36,INDEX(Ranks!$1:$1048576,$A383,AQ$1))","v":""},{"$f":"IF($A383=\"N/A\",Ref!$B$36,INDEX(Ranks!$1:$1048576,$A383,AR$1))","v":""},{"$f":"IF($A383=\"N/A\",Ref!$B$36,INDEX(Ranks!$1:$1048576,$A383,AS$1))","v":""},{"$f":"IF($A383=\"N/A\",Ref!$B$36,INDEX(Ranks!$1:$1048576,$A383,AT$1))","v":""},{"$f":"IF($A383=\"N/A\",Ref!$B$36,INDEX(Ranks!$1:$1048576,$A383,AU$1))","v":""},{"$f":"IF($A383=\"N/A\",Ref!$B$36,INDEX(Ranks!$1:$1048576,$A383,AV$1))","v":""},{"$f":"IF($A383=\"N/A\",Ref!$B$36,INDEX(Ranks!$1:$1048576,$A383,AW$1))","v":""},{"$f":"IF($A383=\"N/A\",Ref!$B$36,INDEX(Ranks!$1:$1048576,$A383,AX$1))","v":""},{"$f":"IF($A383=\"N/A\",Ref!$B$36,INDEX(Ranks!$1:$1048576,$A383,AY$1))","v":""},{"$f":"IF($A383=\"N/A\",Ref!$B$36,INDEX(Ranks!$1:$1048576,$A383,AZ$1))","v":""},{"$f":"IF($A383=\"N/A\",Ref!$B$36,INDEX(Ranks!$1:$1048576,$A383,BA$1))","v":""},{"$f":"IF($A383=\"N/A\",Ref!$B$36,INDEX(Ranks!$1:$1048576,$A383,BB$1))","v":""},{"$f":"IF($A383=\"N/A\",Ref!$B$36,INDEX(Ranks!$1:$1048576,$A383,BC$1))","v":""},{"$f":"IF($A383=\"N/A\",Ref!$B$36,INDEX(Ranks!$1:$1048576,$A383,BD$1))","v":""},{"$f":"IF($A383=\"N/A\",Ref!$B$36,INDEX(Ranks!$1:$1048576,$A383,BE$1))","v":""},{"$f":"IF($A383=\"N/A\",Ref!$B$36,INDEX(Ranks!$1:$1048576,$A383,BF$1))","v":""},{"$f":"IF($A383=\"N/A\",Ref!$B$36,INDEX(Ranks!$1:$1048576,$A383,BG$1))","v":""},{"$f":"IF($A383=\"N/A\",Ref!$B$36,INDEX(Ranks!$1:$1048576,$A383,BH$1))","v":""},{"$f":"IF($A383=\"N/A\",Ref!$B$36,INDEX(Ranks!$1:$1048576,$A383,BI$1))","v":""},{"$f":"IF($A383=\"N/A\",Ref!$B$36,INDEX(Ranks!$1:$1048576,$A383,BJ$1))","v":""},{"$f":"IF($A383=\"N/A\",Ref!$B$36,INDEX(Ranks!$1:$1048576,$A383,BK$1))","v":""},{"$f":"IF($A383=\"N/A\",Ref!$B$36,INDEX(Ranks!$1:$1048576,$A383,BL$1))","v":""},{"$f":"IF($A383=\"N/A\",Ref!$B$36,INDEX(Ranks!$1:$1048576,$A383,BM$1))","v":""},{"$f":"IF($A383=\"N/A\",Ref!$B$36,INDEX(Ranks!$1:$1048576,$A383,BN$1))","v":""},{"$f":"IF($A383=\"N/A\",Ref!$B$36,INDEX(Ranks!$1:$1048576,$A383,BO$1))","v":""},{"$f":"IF($A383=\"N/A\",Ref!$B$36,INDEX(Ranks!$1:$1048576,$A383,BP$1))","v":""},{"$f":"IF($A383=\"N/A\",Ref!$B$36,INDEX(Ranks!$1:$1048576,$A383,BQ$1))","v":""},{"$f":"IF($A383=\"N/A\",Ref!$B$36,INDEX(Ranks!$1:$1048576,$A383,BR$1))","v":""},{"$f":"IF($A383=\"N/A\",Ref!$B$36,INDEX(Ranks!$1:$1048576,$A383,BS$1))","v":""},{"$f":"IF($A383=\"N/A\",Ref!$B$36,INDEX(Ranks!$1:$1048576,$A383,BT$1))","v":""},{"$f":"IF($A383=\"N/A\",Ref!$B$36,INDEX(Ranks!$1:$1048576,$A383,BU$1))","v":""},{"$f":"IF($A383=\"N/A\",Ref!$B$36,INDEX(Ranks!$1:$1048576,$A383,BV$1))","v":""},{"$f":"IF($A383=\"N/A\",Ref!$B$36,INDEX(Ranks!$1:$1048576,$A383,BW$1))","v":""},{"$f":"IF($A383=\"N/A\",Ref!$B$36,INDEX(Ranks!$1:$1048576,$A383,BX$1))","v":""},{"$f":"IF($A383=\"N/A\",Ref!$B$36,INDEX(Ranks!$1:$1048576,$A383,BY$1))","v":""},{"$f":"IF($A383=\"N/A\",Ref!$B$36,INDEX(Ranks!$1:$1048576,$A383,BZ$1))","v":""},{"$f":"IF($A383=\"N/A\",Ref!$B$36,INDEX(Ranks!$1:$1048576,$A383,CA$1))","v":""},{"$f":"IF($A383=\"N/A\",Ref!$B$36,INDEX(Ranks!$1:$1048576,$A383,CB$1))","v":""},{"$f":"IF($A383=\"N/A\",Ref!$B$36,INDEX(Ranks!$1:$1048576,$A383,CC$1))","v":""},{"$f":"IF($A383=\"N/A\",Ref!$B$36,INDEX(Ranks!$1:$1048576,$A383,CD$1))","v":""},{"$f":"IF($A383=\"N/A\",Ref!$B$36,INDEX(Ranks!$1:$1048576,$A383,CE$1))","v":""},{"$f":"IF($A383=\"N/A\",Ref!$B$36,INDEX(Ranks!$1:$1048576,$A383,CF$1))","v":""},{"$f":"IF($A383=\"N/A\",Ref!$B$36,INDEX(Ranks!$1:$1048576,$A383,CG$1))","v":""},{"$f":"IF($A383=\"N/A\",Ref!$B$36,INDEX(Ranks!$1:$1048576,$A383,CH$1))","v":""},{"$f":"IF($A383=\"N/A\",Ref!$B$36,INDEX(Ranks!$1:$1048576,$A383,CI$1))","v":""},{"$f":"IF($A383=\"N/A\",Ref!$B$36,INDEX(Ranks!$1:$1048576,$A383,CJ$1))","v":""},{"$f":"IF($A383=\"N/A\",Ref!$B$36,INDEX(Ranks!$1:$1048576,$A383,CK$1))","v":""},{"$f":"IF($A383=\"N/A\",Ref!$B$36,INDEX(Ranks!$1:$1048576,$A383,CL$1))","v":""},{"$f":"IF($A383=\"N/A\",Ref!$B$36,INDEX(Ranks!$1:$1048576,$A383,CM$1))","v":""},{"$f":"IF($A383=\"N/A\",Ref!$B$36,INDEX(Ranks!$1:$1048576,$A383,CN$1))","v":""},{"$f":"IF($A383=\"N/A\",Ref!$B$36,INDEX(Ranks!$1:$1048576,$A383,CO$1))","v":""},{"$f":"IF($A383=\"N/A\",Ref!$B$36,INDEX(Ranks!$1:$1048576,$A383,CP$1))","v":""},{"$f":"IF($A383=\"N/A\",Ref!$B$36,INDEX(Ranks!$1:$1048576,$A383,CQ$1))","v":""},{"$f":"IF($A383=\"N/A\",Ref!$B$36,INDEX(Ranks!$1:$1048576,$A383,CR$1))","v":""},{"$f":"IF($A383=\"N/A\",Ref!$B$36,INDEX(Ranks!$1:$1048576,$A383,CS$1))","v":""},{"$f":"IF($A383=\"N/A\",Ref!$B$36,INDEX(Ranks!$1:$1048576,$A383,CT$1))","v":""},{"$f":"IF($A383=\"N/A\",Ref!$B$36,INDEX(Ranks!$1:$1048576,$A383,CU$1))","v":""},{"$f":"IF($A383=\"N/A\",Ref!$B$36,INDEX(Ranks!$1:$1048576,$A383,CV$1))","v":""},{"$f":"IF($A383=\"N/A\",Ref!$B$36,INDEX(Ranks!$1:$1048576,$A383,CW$1))","v":""},{"$f":"IF($A383=\"N/A\",Ref!$B$36,INDEX(Ranks!$1:$1048576,$A383,CX$1))","v":""},{"$f":"IF($A383=\"N/A\",Ref!$B$36,INDEX(Ranks!$1:$1048576,$A383,CY$1))","v":""},{"$f":"IF($A383=\"N/A\",Ref!$B$36,INDEX(Ranks!$1:$1048576,$A383,CZ$1))","v":""},{"$f":"IF($A383=\"N/A\",Ref!$B$36,INDEX(Ranks!$1:$1048576,$A383,DA$1))","v":""},{"$f":"IF($A383=\"N/A\",Ref!$B$36,INDEX(Ranks!$1:$1048576,$A383,DB$1))","v":""},{"$f":"IF($A383=\"N/A\",Ref!$B$36,INDEX(Ranks!$1:$1048576,$A383,DC$1))","v":""},{"$f":"IF($A383=\"N/A\",Ref!$B$36,INDEX(Ranks!$1:$1048576,$A383,DD$1))","v":""},{"$f":"IF($A383=\"N/A\",Ref!$B$36,INDEX(Ranks!$1:$1048576,$A383,DE$1))","v":""},{"$f":"IF($A383=\"N/A\",Ref!$B$36,INDEX(Ranks!$1:$1048576,$A383,DF$1))","v":""},{"$f":"IF($A383=\"N/A\",Ref!$B$36,INDEX(Ranks!$1:$1048576,$A383,DG$1))","v":""},{"$f":"IF($A383=\"N/A\",Ref!$B$36,INDEX(Ranks!$1:$1048576,$A383,DH$1))","v":""},{"$f":"IF($A383=\"N/A\",Ref!$B$36,INDEX(Ranks!$1:$1048576,$A383,DI$1))","v":""},{"$f":"IF($A383=\"N/A\",Ref!$B$36,INDEX(Ranks!$1:$1048576,$A383,DJ$1))","v":""},{"$f":"IF($A383=\"N/A\",Ref!$B$36,INDEX(Ranks!$1:$1048576,$A383,DK$1))","v":""},{"$f":"IF($A383=\"N/A\",Ref!$B$36,INDEX(Ranks!$1:$1048576,$A383,DL$1))","v":""},{"$f":"IF($A383=\"N/A\",Ref!$B$36,INDEX(Ranks!$1:$1048576,$A383,DM$1))","v":""},{"$f":"IF($A383=\"N/A\",Ref!$B$36,INDEX(Ranks!$1:$1048576,$A383,DN$1))","v":""},{"$f":"IF($A383=\"N/A\",Ref!$B$36,INDEX(Ranks!$1:$1048576,$A383,DO$1))","v":""},{"$f":"IF($A383=\"N/A\",Ref!$B$36,INDEX(Ranks!$1:$1048576,$A383,DP$1))","v":""},{"$f":"IF($A383=\"N/A\",Ref!$B$36,INDEX(Ranks!$1:$1048576,$A383,DQ$1))","v":""},{"$f":"IF($A383=\"N/A\",Ref!$B$36,INDEX(Ranks!$1:$1048576,$A383,DR$1))","v":""},{"$f":"IF($A383=\"N/A\",Ref!$B$36,INDEX(Ranks!$1:$1048576,$A383,DS$1))","v":""},{"$f":"IF($A383=\"N/A\",Ref!$B$36,INDEX(Ranks!$1:$1048576,$A383,DT$1))","v":""},{"$f":"IF($A383=\"N/A\",Ref!$B$36,INDEX(Ranks!$1:$1048576,$A383,DU$1))","v":""},{"$f":"IF($A383=\"N/A\",Ref!$B$36,INDEX(Ranks!$1:$1048576,$A383,DV$1))","v":""},{"$f":"IF($A383=\"N/A\",Ref!$B$36,INDEX(Ranks!$1:$1048576,$A383,DW$1))","v":""},{"$f":"IF($A383=\"N/A\",Ref!$B$36,INDEX(Ranks!$1:$1048576,$A383,DX$1))","v":""},{"$f":"IF($A383=\"N/A\",Ref!$B$36,INDEX(Ranks!$1:$1048576,$A383,DY$1))","v":""},{"$f":"IF($A383=\"N/A\",Ref!$B$36,INDEX(Ranks!$1:$1048576,$A383,DZ$1))","v":""},{"$f":"IF($A383=\"N/A\",Ref!$B$36,INDEX(Ranks!$1:$1048576,$A383,EA$1))","v":""},{"$f":"IF($A383=\"N/A\",Ref!$B$36,INDEX(Ranks!$1:$1048576,$A383,EB$1))","v":""}]
[{"$f":"IFERROR(MATCH('Portfolio Page'!L384,Ranks!L:L,0),\"N/A\")","v":"N/A"},null,{"$f":"IF($A384=\"N/A\",\"\",INDEX(Ranks!$1:$1048576,$A384,C$1))","v":""},{"$f":"IF($A384=\"N/A\",Ref!$B$36,INDEX(Ranks!$1:$1048576,$A384,D$1))","v":""},{"$f":"IF($A384=\"N/A\",Ref!$B$36,INDEX(Ranks!$1:$1048576,$A384,E$1))","v":""},{"$f":"IF($A384=\"N/A\",\"\",INDEX(Ranks!$1:$1048576,$A384,F$1))","v":""},{"$f":"IF($A384=\"N/A\",\"\",INDEX(Ranks!$1:$1048576,$A384,G$1))","v":""},{"$f":"IF($A384=\"N/A\",\"\",INDEX(Ranks!$1:$1048576,$A384,H$1))","v":""},{"$f":"IF($A384=\"N/A\",\"\",INDEX(Ranks!$1:$1048576,$A384,I$1))","v":""},{"$f":"IF($A384=\"N/A\",\"\",INDEX(Ranks!$1:$1048576,$A384,J$1))","v":""},{"$f":"IF($A384=\"N/A\",\"\",INDEX(Ranks!$1:$1048576,$A384,K$1))","v":""},null,{"$f":"IF($A384=\"N/A\",Ref!$B$36,INDEX(Ranks!$1:$1048576,$A384,M$1))","v":""},{"$f":"IF($A384=\"N/A\",Ref!$B$36,INDEX(Ranks!$1:$1048576,$A384,N$1))","v":""},{"$f":"IF($A384=\"N/A\",Ref!$B$36,INDEX(Ranks!$1:$1048576,$A384,O$1))","v":""},{"$f":"IF($A384=\"N/A\",Ref!$B$36,INDEX(Ranks!$1:$1048576,$A384,P$1))","v":""},{"$f":"IF($A384=\"N/A\",Ref!$B$36,INDEX(Ranks!$1:$1048576,$A384,Q$1))","v":""},{"$f":"IF($A384=\"N/A\",Ref!$B$36,INDEX(Ranks!$1:$1048576,$A384,R$1))","v":""},{"$f":"IF($A384=\"N/A\",Ref!$B$36,INDEX(Ranks!$1:$1048576,$A384,S$1))","v":""},{"$f":"IF($A384=\"N/A\",Ref!$B$36,INDEX(Ranks!$1:$1048576,$A384,T$1))","v":""},{"$f":"IF($A384=\"N/A\",Ref!$B$36,INDEX(Ranks!$1:$1048576,$A384,U$1))","v":""},{"$f":"IF($A384=\"N/A\",Ref!$B$36,INDEX(Ranks!$1:$1048576,$A384,V$1))","v":""},{"$f":"IF($A384=\"N/A\",Ref!$B$36,INDEX(Ranks!$1:$1048576,$A384,W$1))","v":""},{"$f":"IF($A384=\"N/A\",Ref!$B$36,INDEX(Ranks!$1:$1048576,$A384,X$1))","v":""},{"$f":"IF($A384=\"N/A\",Ref!$B$36,INDEX(Ranks!$1:$1048576,$A384,Y$1))","v":""},{"$f":"IF($A384=\"N/A\",Ref!$B$36,INDEX(Ranks!$1:$1048576,$A384,Z$1))","v":""},{"$f":"IF($A384=\"N/A\",Ref!$B$36,INDEX(Ranks!$1:$1048576,$A384,AA$1))","v":""},{"$f":"IF($A384=\"N/A\",Ref!$B$36,INDEX(Ranks!$1:$1048576,$A384,AB$1))","v":""},{"$f":"IF($A384=\"N/A\",Ref!$B$36,INDEX(Ranks!$1:$1048576,$A384,AC$1))","v":""},{"$f":"IF($A384=\"N/A\",Ref!$B$36,INDEX(Ranks!$1:$1048576,$A384,AD$1))","v":""},{"$f":"IF($A384=\"N/A\",Ref!$B$36,INDEX(Ranks!$1:$1048576,$A384,AE$1))","v":""},{"$f":"IF($A384=\"N/A\",Ref!$B$36,INDEX(Ranks!$1:$1048576,$A384,AF$1))","v":""},{"$f":"IF($A384=\"N/A\",Ref!$B$36,INDEX(Ranks!$1:$1048576,$A384,AG$1))","v":""},{"$f":"IF($A384=\"N/A\",Ref!$B$36,INDEX(Ranks!$1:$1048576,$A384,AH$1))","v":""},{"$f":"IF($A384=\"N/A\",Ref!$B$36,INDEX(Ranks!$1:$1048576,$A384,AI$1))","v":""},{"$f":"IF($A384=\"N/A\",Ref!$B$36,INDEX(Ranks!$1:$1048576,$A384,AJ$1))","v":""},{"$f":"IF($A384=\"N/A\",Ref!$B$36,INDEX(Ranks!$1:$1048576,$A384,AK$1))","v":""},{"$f":"IF($A384=\"N/A\",Ref!$B$36,INDEX(Ranks!$1:$1048576,$A384,AL$1))","v":""},{"$f":"IF($A384=\"N/A\",Ref!$B$36,INDEX(Ranks!$1:$1048576,$A384,AM$1))","v":""},{"$f":"IF($A384=\"N/A\",Ref!$B$36,INDEX(Ranks!$1:$1048576,$A384,AN$1))","v":""},{"$f":"IF($A384=\"N/A\",Ref!$B$36,INDEX(Ranks!$1:$1048576,$A384,AO$1))","v":""},{"$f":"IF($A384=\"N/A\",Ref!$B$36,INDEX(Ranks!$1:$1048576,$A384,AP$1))","v":""},{"$f":"IF($A384=\"N/A\",Ref!$B$36,INDEX(Ranks!$1:$1048576,$A384,AQ$1))","v":""},{"$f":"IF($A384=\"N/A\",Ref!$B$36,INDEX(Ranks!$1:$1048576,$A384,AR$1))","v":""},{"$f":"IF($A384=\"N/A\",Ref!$B$36,INDEX(Ranks!$1:$1048576,$A384,AS$1))","v":""},{"$f":"IF($A384=\"N/A\",Ref!$B$36,INDEX(Ranks!$1:$1048576,$A384,AT$1))","v":""},{"$f":"IF($A384=\"N/A\",Ref!$B$36,INDEX(Ranks!$1:$1048576,$A384,AU$1))","v":""},{"$f":"IF($A384=\"N/A\",Ref!$B$36,INDEX(Ranks!$1:$1048576,$A384,AV$1))","v":""},{"$f":"IF($A384=\"N/A\",Ref!$B$36,INDEX(Ranks!$1:$1048576,$A384,AW$1))","v":""},{"$f":"IF($A384=\"N/A\",Ref!$B$36,INDEX(Ranks!$1:$1048576,$A384,AX$1))","v":""},{"$f":"IF($A384=\"N/A\",Ref!$B$36,INDEX(Ranks!$1:$1048576,$A384,AY$1))","v":""},{"$f":"IF($A384=\"N/A\",Ref!$B$36,INDEX(Ranks!$1:$1048576,$A384,AZ$1))","v":""},{"$f":"IF($A384=\"N/A\",Ref!$B$36,INDEX(Ranks!$1:$1048576,$A384,BA$1))","v":""},{"$f":"IF($A384=\"N/A\",Ref!$B$36,INDEX(Ranks!$1:$1048576,$A384,BB$1))","v":""},{"$f":"IF($A384=\"N/A\",Ref!$B$36,INDEX(Ranks!$1:$1048576,$A384,BC$1))","v":""},{"$f":"IF($A384=\"N/A\",Ref!$B$36,INDEX(Ranks!$1:$1048576,$A384,BD$1))","v":""},{"$f":"IF($A384=\"N/A\",Ref!$B$36,INDEX(Ranks!$1:$1048576,$A384,BE$1))","v":""},{"$f":"IF($A384=\"N/A\",Ref!$B$36,INDEX(Ranks!$1:$1048576,$A384,BF$1))","v":""},{"$f":"IF($A384=\"N/A\",Ref!$B$36,INDEX(Ranks!$1:$1048576,$A384,BG$1))","v":""},{"$f":"IF($A384=\"N/A\",Ref!$B$36,INDEX(Ranks!$1:$1048576,$A384,BH$1))","v":""},{"$f":"IF($A384=\"N/A\",Ref!$B$36,INDEX(Ranks!$1:$1048576,$A384,BI$1))","v":""},{"$f":"IF($A384=\"N/A\",Ref!$B$36,INDEX(Ranks!$1:$1048576,$A384,BJ$1))","v":""},{"$f":"IF($A384=\"N/A\",Ref!$B$36,INDEX(Ranks!$1:$1048576,$A384,BK$1))","v":""},{"$f":"IF($A384=\"N/A\",Ref!$B$36,INDEX(Ranks!$1:$1048576,$A384,BL$1))","v":""},{"$f":"IF($A384=\"N/A\",Ref!$B$36,INDEX(Ranks!$1:$1048576,$A384,BM$1))","v":""},{"$f":"IF($A384=\"N/A\",Ref!$B$36,INDEX(Ranks!$1:$1048576,$A384,BN$1))","v":""},{"$f":"IF($A384=\"N/A\",Ref!$B$36,INDEX(Ranks!$1:$1048576,$A384,BO$1))","v":""},{"$f":"IF($A384=\"N/A\",Ref!$B$36,INDEX(Ranks!$1:$1048576,$A384,BP$1))","v":""},{"$f":"IF($A384=\"N/A\",Ref!$B$36,INDEX(Ranks!$1:$1048576,$A384,BQ$1))","v":""},{"$f":"IF($A384=\"N/A\",Ref!$B$36,INDEX(Ranks!$1:$1048576,$A384,BR$1))","v":""},{"$f":"IF($A384=\"N/A\",Ref!$B$36,INDEX(Ranks!$1:$1048576,$A384,BS$1))","v":""},{"$f":"IF($A384=\"N/A\",Ref!$B$36,INDEX(Ranks!$1:$1048576,$A384,BT$1))","v":""},{"$f":"IF($A384=\"N/A\",Ref!$B$36,INDEX(Ranks!$1:$1048576,$A384,BU$1))","v":""},{"$f":"IF($A384=\"N/A\",Ref!$B$36,INDEX(Ranks!$1:$1048576,$A384,BV$1))","v":""},{"$f":"IF($A384=\"N/A\",Ref!$B$36,INDEX(Ranks!$1:$1048576,$A384,BW$1))","v":""},{"$f":"IF($A384=\"N/A\",Ref!$B$36,INDEX(Ranks!$1:$1048576,$A384,BX$1))","v":""},{"$f":"IF($A384=\"N/A\",Ref!$B$36,INDEX(Ranks!$1:$1048576,$A384,BY$1))","v":""},{"$f":"IF($A384=\"N/A\",Ref!$B$36,INDEX(Ranks!$1:$1048576,$A384,BZ$1))","v":""},{"$f":"IF($A384=\"N/A\",Ref!$B$36,INDEX(Ranks!$1:$1048576,$A384,CA$1))","v":""},{"$f":"IF($A384=\"N/A\",Ref!$B$36,INDEX(Ranks!$1:$1048576,$A384,CB$1))","v":""},{"$f":"IF($A384=\"N/A\",Ref!$B$36,INDEX(Ranks!$1:$1048576,$A384,CC$1))","v":""},{"$f":"IF($A384=\"N/A\",Ref!$B$36,INDEX(Ranks!$1:$1048576,$A384,CD$1))","v":""},{"$f":"IF($A384=\"N/A\",Ref!$B$36,INDEX(Ranks!$1:$1048576,$A384,CE$1))","v":""},{"$f":"IF($A384=\"N/A\",Ref!$B$36,INDEX(Ranks!$1:$1048576,$A384,CF$1))","v":""},{"$f":"IF($A384=\"N/A\",Ref!$B$36,INDEX(Ranks!$1:$1048576,$A384,CG$1))","v":""},{"$f":"IF($A384=\"N/A\",Ref!$B$36,INDEX(Ranks!$1:$1048576,$A384,CH$1))","v":""},{"$f":"IF($A384=\"N/A\",Ref!$B$36,INDEX(Ranks!$1:$1048576,$A384,CI$1))","v":""},{"$f":"IF($A384=\"N/A\",Ref!$B$36,INDEX(Ranks!$1:$1048576,$A384,CJ$1))","v":""},{"$f":"IF($A384=\"N/A\",Ref!$B$36,INDEX(Ranks!$1:$1048576,$A384,CK$1))","v":""},{"$f":"IF($A384=\"N/A\",Ref!$B$36,INDEX(Ranks!$1:$1048576,$A384,CL$1))","v":""},{"$f":"IF($A384=\"N/A\",Ref!$B$36,INDEX(Ranks!$1:$1048576,$A384,CM$1))","v":""},{"$f":"IF($A384=\"N/A\",Ref!$B$36,INDEX(Ranks!$1:$1048576,$A384,CN$1))","v":""},{"$f":"IF($A384=\"N/A\",Ref!$B$36,INDEX(Ranks!$1:$1048576,$A384,CO$1))","v":""},{"$f":"IF($A384=\"N/A\",Ref!$B$36,INDEX(Ranks!$1:$1048576,$A384,CP$1))","v":""},{"$f":"IF($A384=\"N/A\",Ref!$B$36,INDEX(Ranks!$1:$1048576,$A384,CQ$1))","v":""},{"$f":"IF($A384=\"N/A\",Ref!$B$36,INDEX(Ranks!$1:$1048576,$A384,CR$1))","v":""},{"$f":"IF($A384=\"N/A\",Ref!$B$36,INDEX(Ranks!$1:$1048576,$A384,CS$1))","v":""},{"$f":"IF($A384=\"N/A\",Ref!$B$36,INDEX(Ranks!$1:$1048576,$A384,CT$1))","v":""},{"$f":"IF($A384=\"N/A\",Ref!$B$36,INDEX(Ranks!$1:$1048576,$A384,CU$1))","v":""},{"$f":"IF($A384=\"N/A\",Ref!$B$36,INDEX(Ranks!$1:$1048576,$A384,CV$1))","v":""},{"$f":"IF($A384=\"N/A\",Ref!$B$36,INDEX(Ranks!$1:$1048576,$A384,CW$1))","v":""},{"$f":"IF($A384=\"N/A\",Ref!$B$36,INDEX(Ranks!$1:$1048576,$A384,CX$1))","v":""},{"$f":"IF($A384=\"N/A\",Ref!$B$36,INDEX(Ranks!$1:$1048576,$A384,CY$1))","v":""},{"$f":"IF($A384=\"N/A\",Ref!$B$36,INDEX(Ranks!$1:$1048576,$A384,CZ$1))","v":""},{"$f":"IF($A384=\"N/A\",Ref!$B$36,INDEX(Ranks!$1:$1048576,$A384,DA$1))","v":""},{"$f":"IF($A384=\"N/A\",Ref!$B$36,INDEX(Ranks!$1:$1048576,$A384,DB$1))","v":""},{"$f":"IF($A384=\"N/A\",Ref!$B$36,INDEX(Ranks!$1:$1048576,$A384,DC$1))","v":""},{"$f":"IF($A384=\"N/A\",Ref!$B$36,INDEX(Ranks!$1:$1048576,$A384,DD$1))","v":""},{"$f":"IF($A384=\"N/A\",Ref!$B$36,INDEX(Ranks!$1:$1048576,$A384,DE$1))","v":""},{"$f":"IF($A384=\"N/A\",Ref!$B$36,INDEX(Ranks!$1:$1048576,$A384,DF$1))","v":""},{"$f":"IF($A384=\"N/A\",Ref!$B$36,INDEX(Ranks!$1:$1048576,$A384,DG$1))","v":""},{"$f":"IF($A384=\"N/A\",Ref!$B$36,INDEX(Ranks!$1:$1048576,$A384,DH$1))","v":""},{"$f":"IF($A384=\"N/A\",Ref!$B$36,INDEX(Ranks!$1:$1048576,$A384,DI$1))","v":""},{"$f":"IF($A384=\"N/A\",Ref!$B$36,INDEX(Ranks!$1:$1048576,$A384,DJ$1))","v":""},{"$f":"IF($A384=\"N/A\",Ref!$B$36,INDEX(Ranks!$1:$1048576,$A384,DK$1))","v":""},{"$f":"IF($A384=\"N/A\",Ref!$B$36,INDEX(Ranks!$1:$1048576,$A384,DL$1))","v":""},{"$f":"IF($A384=\"N/A\",Ref!$B$36,INDEX(Ranks!$1:$1048576,$A384,DM$1))","v":""},{"$f":"IF($A384=\"N/A\",Ref!$B$36,INDEX(Ranks!$1:$1048576,$A384,DN$1))","v":""},{"$f":"IF($A384=\"N/A\",Ref!$B$36,INDEX(Ranks!$1:$1048576,$A384,DO$1))","v":""},{"$f":"IF($A384=\"N/A\",Ref!$B$36,INDEX(Ranks!$1:$1048576,$A384,DP$1))","v":""},{"$f":"IF($A384=\"N/A\",Ref!$B$36,INDEX(Ranks!$1:$1048576,$A384,DQ$1))","v":""},{"$f":"IF($A384=\"N/A\",Ref!$B$36,INDEX(Ranks!$1:$1048576,$A384,DR$1))","v":""},{"$f":"IF($A384=\"N/A\",Ref!$B$36,INDEX(Ranks!$1:$1048576,$A384,DS$1))","v":""},{"$f":"IF($A384=\"N/A\",Ref!$B$36,INDEX(Ranks!$1:$1048576,$A384,DT$1))","v":""},{"$f":"IF($A384=\"N/A\",Ref!$B$36,INDEX(Ranks!$1:$1048576,$A384,DU$1))","v":""},{"$f":"IF($A384=\"N/A\",Ref!$B$36,INDEX(Ranks!$1:$1048576,$A384,DV$1))","v":""},{"$f":"IF($A384=\"N/A\",Ref!$B$36,INDEX(Ranks!$1:$1048576,$A384,DW$1))","v":""},{"$f":"IF($A384=\"N/A\",Ref!$B$36,INDEX(Ranks!$1:$1048576,$A384,DX$1))","v":""},{"$f":"IF($A384=\"N/A\",Ref!$B$36,INDEX(Ranks!$1:$1048576,$A384,DY$1))","v":""},{"$f":"IF($A384=\"N/A\",Ref!$B$36,INDEX(Ranks!$1:$1048576,$A384,DZ$1))","v":""},{"$f":"IF($A384=\"N/A\",Ref!$B$36,INDEX(Ranks!$1:$1048576,$A384,EA$1))","v":""},{"$f":"IF($A384=\"N/A\",Ref!$B$36,INDEX(Ranks!$1:$1048576,$A384,EB$1))","v":""}]
[{"$f":"IFERROR(MATCH('Portfolio Page'!L385,Ranks!L:L,0),\"N/A\")","v":"N/A"},null,{"$f":"IF($A385=\"N/A\",\"\",INDEX(Ranks!$1:$1048576,$A385,C$1))","v":""},{"$f":"IF($A385=\"N/A\",Ref!$B$36,INDEX(Ranks!$1:$1048576,$A385,D$1))","v":""},{"$f":"IF($A385=\"N/A\",Ref!$B$36,INDEX(Ranks!$1:$1048576,$A385,E$1))","v":""},{"$f":"IF($A385=\"N/A\",\"\",INDEX(Ranks!$1:$1048576,$A385,F$1))","v":""},{"$f":"IF($A385=\"N/A\",\"\",INDEX(Ranks!$1:$1048576,$A385,G$1))","v":""},{"$f":"IF($A385=\"N/A\",\"\",INDEX(Ranks!$1:$1048576,$A385,H$1))","v":""},{"$f":"IF($A385=\"N/A\",\"\",INDEX(Ranks!$1:$1048576,$A385,I$1))","v":""},{"$f":"IF($A385=\"N/A\",\"\",INDEX(Ranks!$1:$1048576,$A385,J$1))","v":""},{"$f":"IF($A385=\"N/A\",\"\",INDEX(Ranks!$1:$1048576,$A385,K$1))","v":""},null,{"$f":"IF($A385=\"N/A\",Ref!$B$36,INDEX(Ranks!$1:$1048576,$A385,M$1))","v":""},{"$f":"IF($A385=\"N/A\",Ref!$B$36,INDEX(Ranks!$1:$1048576,$A385,N$1))","v":""},{"$f":"IF($A385=\"N/A\",Ref!$B$36,INDEX(Ranks!$1:$1048576,$A385,O$1))","v":""},{"$f":"IF($A385=\"N/A\",Ref!$B$36,INDEX(Ranks!$1:$1048576,$A385,P$1))","v":""},{"$f":"IF($A385=\"N/A\",Ref!$B$36,INDEX(Ranks!$1:$1048576,$A385,Q$1))","v":""},{"$f":"IF($A385=\"N/A\",Ref!$B$36,INDEX(Ranks!$1:$1048576,$A385,R$1))","v":""},{"$f":"IF($A385=\"N/A\",Ref!$B$36,INDEX(Ranks!$1:$1048576,$A385,S$1))","v":""},{"$f":"IF($A385=\"N/A\",Ref!$B$36,INDEX(Ranks!$1:$1048576,$A385,T$1))","v":""},{"$f":"IF($A385=\"N/A\",Ref!$B$36,INDEX(Ranks!$1:$1048576,$A385,U$1))","v":""},{"$f":"IF($A385=\"N/A\",Ref!$B$36,INDEX(Ranks!$1:$1048576,$A385,V$1))","v":""},{"$f":"IF($A385=\"N/A\",Ref!$B$36,INDEX(Ranks!$1:$1048576,$A385,W$1))","v":""},{"$f":"IF($A385=\"N/A\",Ref!$B$36,INDEX(Ranks!$1:$1048576,$A385,X$1))","v":""},{"$f":"IF($A385=\"N/A\",Ref!$B$36,INDEX(Ranks!$1:$1048576,$A385,Y$1))","v":""},{"$f":"IF($A385=\"N/A\",Ref!$B$36,INDEX(Ranks!$1:$1048576,$A385,Z$1))","v":""},{"$f":"IF($A385=\"N/A\",Ref!$B$36,INDEX(Ranks!$1:$1048576,$A385,AA$1))","v":""},{"$f":"IF($A385=\"N/A\",Ref!$B$36,INDEX(Ranks!$1:$1048576,$A385,AB$1))","v":""},{"$f":"IF($A385=\"N/A\",Ref!$B$36,INDEX(Ranks!$1:$1048576,$A385,AC$1))","v":""},{"$f":"IF($A385=\"N/A\",Ref!$B$36,INDEX(Ranks!$1:$1048576,$A385,AD$1))","v":""},{"$f":"IF($A385=\"N/A\",Ref!$B$36,INDEX(Ranks!$1:$1048576,$A385,AE$1))","v":""},{"$f":"IF($A385=\"N/A\",Ref!$B$36,INDEX(Ranks!$1:$1048576,$A385,AF$1))","v":""},{"$f":"IF($A385=\"N/A\",Ref!$B$36,INDEX(Ranks!$1:$1048576,$A385,AG$1))","v":""},{"$f":"IF($A385=\"N/A\",Ref!$B$36,INDEX(Ranks!$1:$1048576,$A385,AH$1))","v":""},{"$f":"IF($A385=\"N/A\",Ref!$B$36,INDEX(Ranks!$1:$1048576,$A385,AI$1))","v":""},{"$f":"IF($A385=\"N/A\",Ref!$B$36,INDEX(Ranks!$1:$1048576,$A385,AJ$1))","v":""},{"$f":"IF($A385=\"N/A\",Ref!$B$36,INDEX(Ranks!$1:$1048576,$A385,AK$1))","v":""},{"$f":"IF($A385=\"N/A\",Ref!$B$36,INDEX(Ranks!$1:$1048576,$A385,AL$1))","v":""},{"$f":"IF($A385=\"N/A\",Ref!$B$36,INDEX(Ranks!$1:$1048576,$A385,AM$1))","v":""},{"$f":"IF($A385=\"N/A\",Ref!$B$36,INDEX(Ranks!$1:$1048576,$A385,AN$1))","v":""},{"$f":"IF($A385=\"N/A\",Ref!$B$36,INDEX(Ranks!$1:$1048576,$A385,AO$1))","v":""},{"$f":"IF($A385=\"N/A\",Ref!$B$36,INDEX(Ranks!$1:$1048576,$A385,AP$1))","v":""},{"$f":"IF($A385=\"N/A\",Ref!$B$36,INDEX(Ranks!$1:$1048576,$A385,AQ$1))","v":""},{"$f":"IF($A385=\"N/A\",Ref!$B$36,INDEX(Ranks!$1:$1048576,$A385,AR$1))","v":""},{"$f":"IF($A385=\"N/A\",Ref!$B$36,INDEX(Ranks!$1:$1048576,$A385,AS$1))","v":""},{"$f":"IF($A385=\"N/A\",Ref!$B$36,INDEX(Ranks!$1:$1048576,$A385,AT$1))","v":""},{"$f":"IF($A385=\"N/A\",Ref!$B$36,INDEX(Ranks!$1:$1048576,$A385,AU$1))","v":""},{"$f":"IF($A385=\"N/A\",Ref!$B$36,INDEX(Ranks!$1:$1048576,$A385,AV$1))","v":""},{"$f":"IF($A385=\"N/A\",Ref!$B$36,INDEX(Ranks!$1:$1048576,$A385,AW$1))","v":""},{"$f":"IF($A385=\"N/A\",Ref!$B$36,INDEX(Ranks!$1:$1048576,$A385,AX$1))","v":""},{"$f":"IF($A385=\"N/A\",Ref!$B$36,INDEX(Ranks!$1:$1048576,$A385,AY$1))","v":""},{"$f":"IF($A385=\"N/A\",Ref!$B$36,INDEX(Ranks!$1:$1048576,$A385,AZ$1))","v":""},{"$f":"IF($A385=\"N/A\",Ref!$B$36,INDEX(Ranks!$1:$1048576,$A385,BA$1))","v":""},{"$f":"IF($A385=\"N/A\",Ref!$B$36,INDEX(Ranks!$1:$1048576,$A385,BB$1))","v":""},{"$f":"IF($A385=\"N/A\",Ref!$B$36,INDEX(Ranks!$1:$1048576,$A385,BC$1))","v":""},{"$f":"IF($A385=\"N/A\",Ref!$B$36,INDEX(Ranks!$1:$1048576,$A385,BD$1))","v":""},{"$f":"IF($A385=\"N/A\",Ref!$B$36,INDEX(Ranks!$1:$1048576,$A385,BE$1))","v":""},{"$f":"IF($A385=\"N/A\",Ref!$B$36,INDEX(Ranks!$1:$1048576,$A385,BF$1))","v":""},{"$f":"IF($A385=\"N/A\",Ref!$B$36,INDEX(Ranks!$1:$1048576,$A385,BG$1))","v":""},{"$f":"IF($A385=\"N/A\",Ref!$B$36,INDEX(Ranks!$1:$1048576,$A385,BH$1))","v":""},{"$f":"IF($A385=\"N/A\",Ref!$B$36,INDEX(Ranks!$1:$1048576,$A385,BI$1))","v":""},{"$f":"IF($A385=\"N/A\",Ref!$B$36,INDEX(Ranks!$1:$1048576,$A385,BJ$1))","v":""},{"$f":"IF($A385=\"N/A\",Ref!$B$36,INDEX(Ranks!$1:$1048576,$A385,BK$1))","v":""},{"$f":"IF($A385=\"N/A\",Ref!$B$36,INDEX(Ranks!$1:$1048576,$A385,BL$1))","v":""},{"$f":"IF($A385=\"N/A\",Ref!$B$36,INDEX(Ranks!$1:$1048576,$A385,BM$1))","v":""},{"$f":"IF($A385=\"N/A\",Ref!$B$36,INDEX(Ranks!$1:$1048576,$A385,BN$1))","v":""},{"$f":"IF($A385=\"N/A\",Ref!$B$36,INDEX(Ranks!$1:$1048576,$A385,BO$1))","v":""},{"$f":"IF($A385=\"N/A\",Ref!$B$36,INDEX(Ranks!$1:$1048576,$A385,BP$1))","v":""},{"$f":"IF($A385=\"N/A\",Ref!$B$36,INDEX(Ranks!$1:$1048576,$A385,BQ$1))","v":""},{"$f":"IF($A385=\"N/A\",Ref!$B$36,INDEX(Ranks!$1:$1048576,$A385,BR$1))","v":""},{"$f":"IF($A385=\"N/A\",Ref!$B$36,INDEX(Ranks!$1:$1048576,$A385,BS$1))","v":""},{"$f":"IF($A385=\"N/A\",Ref!$B$36,INDEX(Ranks!$1:$1048576,$A385,BT$1))","v":""},{"$f":"IF($A385=\"N/A\",Ref!$B$36,INDEX(Ranks!$1:$1048576,$A385,BU$1))","v":""},{"$f":"IF($A385=\"N/A\",Ref!$B$36,INDEX(Ranks!$1:$1048576,$A385,BV$1))","v":""},{"$f":"IF($A385=\"N/A\",Ref!$B$36,INDEX(Ranks!$1:$1048576,$A385,BW$1))","v":""},{"$f":"IF($A385=\"N/A\",Ref!$B$36,INDEX(Ranks!$1:$1048576,$A385,BX$1))","v":""},{"$f":"IF($A385=\"N/A\",Ref!$B$36,INDEX(Ranks!$1:$1048576,$A385,BY$1))","v":""},{"$f":"IF($A385=\"N/A\",Ref!$B$36,INDEX(Ranks!$1:$1048576,$A385,BZ$1))","v":""},{"$f":"IF($A385=\"N/A\",Ref!$B$36,INDEX(Ranks!$1:$1048576,$A385,CA$1))","v":""},{"$f":"IF($A385=\"N/A\",Ref!$B$36,INDEX(Ranks!$1:$1048576,$A385,CB$1))","v":""},{"$f":"IF($A385=\"N/A\",Ref!$B$36,INDEX(Ranks!$1:$1048576,$A385,CC$1))","v":""},{"$f":"IF($A385=\"N/A\",Ref!$B$36,INDEX(Ranks!$1:$1048576,$A385,CD$1))","v":""},{"$f":"IF($A385=\"N/A\",Ref!$B$36,INDEX(Ranks!$1:$1048576,$A385,CE$1))","v":""},{"$f":"IF($A385=\"N/A\",Ref!$B$36,INDEX(Ranks!$1:$1048576,$A385,CF$1))","v":""},{"$f":"IF($A385=\"N/A\",Ref!$B$36,INDEX(Ranks!$1:$1048576,$A385,CG$1))","v":""},{"$f":"IF($A385=\"N/A\",Ref!$B$36,INDEX(Ranks!$1:$1048576,$A385,CH$1))","v":""},{"$f":"IF($A385=\"N/A\",Ref!$B$36,INDEX(Ranks!$1:$1048576,$A385,CI$1))","v":""},{"$f":"IF($A385=\"N/A\",Ref!$B$36,INDEX(Ranks!$1:$1048576,$A385,CJ$1))","v":""},{"$f":"IF($A385=\"N/A\",Ref!$B$36,INDEX(Ranks!$1:$1048576,$A385,CK$1))","v":""},{"$f":"IF($A385=\"N/A\",Ref!$B$36,INDEX(Ranks!$1:$1048576,$A385,CL$1))","v":""},{"$f":"IF($A385=\"N/A\",Ref!$B$36,INDEX(Ranks!$1:$1048576,$A385,CM$1))","v":""},{"$f":"IF($A385=\"N/A\",Ref!$B$36,INDEX(Ranks!$1:$1048576,$A385,CN$1))","v":""},{"$f":"IF($A385=\"N/A\",Ref!$B$36,INDEX(Ranks!$1:$1048576,$A385,CO$1))","v":""},{"$f":"IF($A385=\"N/A\",Ref!$B$36,INDEX(Ranks!$1:$1048576,$A385,CP$1))","v":""},{"$f":"IF($A385=\"N/A\",Ref!$B$36,INDEX(Ranks!$1:$1048576,$A385,CQ$1))","v":""},{"$f":"IF($A385=\"N/A\",Ref!$B$36,INDEX(Ranks!$1:$1048576,$A385,CR$1))","v":""},{"$f":"IF($A385=\"N/A\",Ref!$B$36,INDEX(Ranks!$1:$1048576,$A385,CS$1))","v":""},{"$f":"IF($A385=\"N/A\",Ref!$B$36,INDEX(Ranks!$1:$1048576,$A385,CT$1))","v":""},{"$f":"IF($A385=\"N/A\",Ref!$B$36,INDEX(Ranks!$1:$1048576,$A385,CU$1))","v":""},{"$f":"IF($A385=\"N/A\",Ref!$B$36,INDEX(Ranks!$1:$1048576,$A385,CV$1))","v":""},{"$f":"IF($A385=\"N/A\",Ref!$B$36,INDEX(Ranks!$1:$1048576,$A385,CW$1))","v":""},{"$f":"IF($A385=\"N/A\",Ref!$B$36,INDEX(Ranks!$1:$1048576,$A385,CX$1))","v":""},{"$f":"IF($A385=\"N/A\",Ref!$B$36,INDEX(Ranks!$1:$1048576,$A385,CY$1))","v":""},{"$f":"IF($A385=\"N/A\",Ref!$B$36,INDEX(Ranks!$1:$1048576,$A385,CZ$1))","v":""},{"$f":"IF($A385=\"N/A\",Ref!$B$36,INDEX(Ranks!$1:$1048576,$A385,DA$1))","v":""},{"$f":"IF($A385=\"N/A\",Ref!$B$36,INDEX(Ranks!$1:$1048576,$A385,DB$1))","v":""},{"$f":"IF($A385=\"N/A\",Ref!$B$36,INDEX(Ranks!$1:$1048576,$A385,DC$1))","v":""},{"$f":"IF($A385=\"N/A\",Ref!$B$36,INDEX(Ranks!$1:$1048576,$A385,DD$1))","v":""},{"$f":"IF($A385=\"N/A\",Ref!$B$36,INDEX(Ranks!$1:$1048576,$A385,DE$1))","v":""},{"$f":"IF($A385=\"N/A\",Ref!$B$36,INDEX(Ranks!$1:$1048576,$A385,DF$1))","v":""},{"$f":"IF($A385=\"N/A\",Ref!$B$36,INDEX(Ranks!$1:$1048576,$A385,DG$1))","v":""},{"$f":"IF($A385=\"N/A\",Ref!$B$36,INDEX(Ranks!$1:$1048576,$A385,DH$1))","v":""},{"$f":"IF($A385=\"N/A\",Ref!$B$36,INDEX(Ranks!$1:$1048576,$A385,DI$1))","v":""},{"$f":"IF($A385=\"N/A\",Ref!$B$36,INDEX(Ranks!$1:$1048576,$A385,DJ$1))","v":""},{"$f":"IF($A385=\"N/A\",Ref!$B$36,INDEX(Ranks!$1:$1048576,$A385,DK$1))","v":""},{"$f":"IF($A385=\"N/A\",Ref!$B$36,INDEX(Ranks!$1:$1048576,$A385,DL$1))","v":""},{"$f":"IF($A385=\"N/A\",Ref!$B$36,INDEX(Ranks!$1:$1048576,$A385,DM$1))","v":""},{"$f":"IF($A385=\"N/A\",Ref!$B$36,INDEX(Ranks!$1:$1048576,$A385,DN$1))","v":""},{"$f":"IF($A385=\"N/A\",Ref!$B$36,INDEX(Ranks!$1:$1048576,$A385,DO$1))","v":""},{"$f":"IF($A385=\"N/A\",Ref!$B$36,INDEX(Ranks!$1:$1048576,$A385,DP$1))","v":""},{"$f":"IF($A385=\"N/A\",Ref!$B$36,INDEX(Ranks!$1:$1048576,$A385,DQ$1))","v":""},{"$f":"IF($A385=\"N/A\",Ref!$B$36,INDEX(Ranks!$1:$1048576,$A385,DR$1))","v":""},{"$f":"IF($A385=\"N/A\",Ref!$B$36,INDEX(Ranks!$1:$1048576,$A385,DS$1))","v":""},{"$f":"IF($A385=\"N/A\",Ref!$B$36,INDEX(Ranks!$1:$1048576,$A385,DT$1))","v":""},{"$f":"IF($A385=\"N/A\",Ref!$B$36,INDEX(Ranks!$1:$1048576,$A385,DU$1))","v":""},{"$f":"IF($A385=\"N/A\",Ref!$B$36,INDEX(Ranks!$1:$1048576,$A385,DV$1))","v":""},{"$f":"IF($A385=\"N/A\",Ref!$B$36,INDEX(Ranks!$1:$1048576,$A385,DW$1))","v":""},{"$f":"IF($A385=\"N/A\",Ref!$B$36,INDEX(Ranks!$1:$1048576,$A385,DX$1))","v":""},{"$f":"IF($A385=\"N/A\",Ref!$B$36,INDEX(Ranks!$1:$1048576,$A385,DY$1))","v":""},{"$f":"IF($A385=\"N/A\",Ref!$B$36,INDEX(Ranks!$1:$1048576,$A385,DZ$1))","v":""},{"$f":"IF($A385=\"N/A\",Ref!$B$36,INDEX(Ranks!$1:$1048576,$A385,EA$1))","v":""},{"$f":"IF($A385=\"N/A\",Ref!$B$36,INDEX(Ranks!$1:$1048576,$A385,EB$1))","v":""}]
[{"$f":"IFERROR(MATCH('Portfolio Page'!L386,Ranks!L:L,0),\"N/A\")","v":"N/A"},null,{"$f":"IF($A386=\"N/A\",\"\",INDEX(Ranks!$1:$1048576,$A386,C$1))","v":""},{"$f":"IF($A386=\"N/A\",Ref!$B$36,INDEX(Ranks!$1:$1048576,$A386,D$1))","v":""},{"$f":"IF($A386=\"N/A\",Ref!$B$36,INDEX(Ranks!$1:$1048576,$A386,E$1))","v":""},{"$f":"IF($A386=\"N/A\",\"\",INDEX(Ranks!$1:$1048576,$A386,F$1))","v":""},{"$f":"IF($A386=\"N/A\",\"\",INDEX(Ranks!$1:$1048576,$A386,G$1))","v":""},{"$f":"IF($A386=\"N/A\",\"\",INDEX(Ranks!$1:$1048576,$A386,H$1))","v":""},{"$f":"IF($A386=\"N/A\",\"\",INDEX(Ranks!$1:$1048576,$A386,I$1))","v":""},{"$f":"IF($A386=\"N/A\",\"\",INDEX(Ranks!$1:$1048576,$A386,J$1))","v":""},{"$f":"IF($A386=\"N/A\",\"\",INDEX(Ranks!$1:$1048576,$A386,K$1))","v":""},null,{"$f":"IF($A386=\"N/A\",Ref!$B$36,INDEX(Ranks!$1:$1048576,$A386,M$1))","v":""},{"$f":"IF($A386=\"N/A\",Ref!$B$36,INDEX(Ranks!$1:$1048576,$A386,N$1))","v":""},{"$f":"IF($A386=\"N/A\",Ref!$B$36,INDEX(Ranks!$1:$1048576,$A386,O$1))","v":""},{"$f":"IF($A386=\"N/A\",Ref!$B$36,INDEX(Ranks!$1:$1048576,$A386,P$1))","v":""},{"$f":"IF($A386=\"N/A\",Ref!$B$36,INDEX(Ranks!$1:$1048576,$A386,Q$1))","v":""},{"$f":"IF($A386=\"N/A\",Ref!$B$36,INDEX(Ranks!$1:$1048576,$A386,R$1))","v":""},{"$f":"IF($A386=\"N/A\",Ref!$B$36,INDEX(Ranks!$1:$1048576,$A386,S$1))","v":""},{"$f":"IF($A386=\"N/A\",Ref!$B$36,INDEX(Ranks!$1:$1048576,$A386,T$1))","v":""},{"$f":"IF($A386=\"N/A\",Ref!$B$36,INDEX(Ranks!$1:$1048576,$A386,U$1))","v":""},{"$f":"IF($A386=\"N/A\",Ref!$B$36,INDEX(Ranks!$1:$1048576,$A386,V$1))","v":""},{"$f":"IF($A386=\"N/A\",Ref!$B$36,INDEX(Ranks!$1:$1048576,$A386,W$1))","v":""},{"$f":"IF($A386=\"N/A\",Ref!$B$36,INDEX(Ranks!$1:$1048576,$A386,X$1))","v":""},{"$f":"IF($A386=\"N/A\",Ref!$B$36,INDEX(Ranks!$1:$1048576,$A386,Y$1))","v":""},{"$f":"IF($A386=\"N/A\",Ref!$B$36,INDEX(Ranks!$1:$1048576,$A386,Z$1))","v":""},{"$f":"IF($A386=\"N/A\",Ref!$B$36,INDEX(Ranks!$1:$1048576,$A386,AA$1))","v":""},{"$f":"IF($A386=\"N/A\",Ref!$B$36,INDEX(Ranks!$1:$1048576,$A386,AB$1))","v":""},{"$f":"IF($A386=\"N/A\",Ref!$B$36,INDEX(Ranks!$1:$1048576,$A386,AC$1))","v":""},{"$f":"IF($A386=\"N/A\",Ref!$B$36,INDEX(Ranks!$1:$1048576,$A386,AD$1))","v":""},{"$f":"IF($A386=\"N/A\",Ref!$B$36,INDEX(Ranks!$1:$1048576,$A386,AE$1))","v":""},{"$f":"IF($A386=\"N/A\",Ref!$B$36,INDEX(Ranks!$1:$1048576,$A386,AF$1))","v":""},{"$f":"IF($A386=\"N/A\",Ref!$B$36,INDEX(Ranks!$1:$1048576,$A386,AG$1))","v":""},{"$f":"IF($A386=\"N/A\",Ref!$B$36,INDEX(Ranks!$1:$1048576,$A386,AH$1))","v":""},{"$f":"IF($A386=\"N/A\",Ref!$B$36,INDEX(Ranks!$1:$1048576,$A386,AI$1))","v":""},{"$f":"IF($A386=\"N/A\",Ref!$B$36,INDEX(Ranks!$1:$1048576,$A386,AJ$1))","v":""},{"$f":"IF($A386=\"N/A\",Ref!$B$36,INDEX(Ranks!$1:$1048576,$A386,AK$1))","v":""},{"$f":"IF($A386=\"N/A\",Ref!$B$36,INDEX(Ranks!$1:$1048576,$A386,AL$1))","v":""},{"$f":"IF($A386=\"N/A\",Ref!$B$36,INDEX(Ranks!$1:$1048576,$A386,AM$1))","v":""},{"$f":"IF($A386=\"N/A\",Ref!$B$36,INDEX(Ranks!$1:$1048576,$A386,AN$1))","v":""},{"$f":"IF($A386=\"N/A\",Ref!$B$36,INDEX(Ranks!$1:$1048576,$A386,AO$1))","v":""},{"$f":"IF($A386=\"N/A\",Ref!$B$36,INDEX(Ranks!$1:$1048576,$A386,AP$1))","v":""},{"$f":"IF($A386=\"N/A\",Ref!$B$36,INDEX(Ranks!$1:$1048576,$A386,AQ$1))","v":""},{"$f":"IF($A386=\"N/A\",Ref!$B$36,INDEX(Ranks!$1:$1048576,$A386,AR$1))","v":""},{"$f":"IF($A386=\"N/A\",Ref!$B$36,INDEX(Ranks!$1:$1048576,$A386,AS$1))","v":""},{"$f":"IF($A386=\"N/A\",Ref!$B$36,INDEX(Ranks!$1:$1048576,$A386,AT$1))","v":""},{"$f":"IF($A386=\"N/A\",Ref!$B$36,INDEX(Ranks!$1:$1048576,$A386,AU$1))","v":""},{"$f":"IF($A386=\"N/A\",Ref!$B$36,INDEX(Ranks!$1:$1048576,$A386,AV$1))","v":""},{"$f":"IF($A386=\"N/A\",Ref!$B$36,INDEX(Ranks!$1:$1048576,$A386,AW$1))","v":""},{"$f":"IF($A386=\"N/A\",Ref!$B$36,INDEX(Ranks!$1:$1048576,$A386,AX$1))","v":""},{"$f":"IF($A386=\"N/A\",Ref!$B$36,INDEX(Ranks!$1:$1048576,$A386,AY$1))","v":""},{"$f":"IF($A386=\"N/A\",Ref!$B$36,INDEX(Ranks!$1:$1048576,$A386,AZ$1))","v":""},{"$f":"IF($A386=\"N/A\",Ref!$B$36,INDEX(Ranks!$1:$1048576,$A386,BA$1))","v":""},{"$f":"IF($A386=\"N/A\",Ref!$B$36,INDEX(Ranks!$1:$1048576,$A386,BB$1))","v":""},{"$f":"IF($A386=\"N/A\",Ref!$B$36,INDEX(Ranks!$1:$1048576,$A386,BC$1))","v":""},{"$f":"IF($A386=\"N/A\",Ref!$B$36,INDEX(Ranks!$1:$1048576,$A386,BD$1))","v":""},{"$f":"IF($A386=\"N/A\",Ref!$B$36,INDEX(Ranks!$1:$1048576,$A386,BE$1))","v":""},{"$f":"IF($A386=\"N/A\",Ref!$B$36,INDEX(Ranks!$1:$1048576,$A386,BF$1))","v":""},{"$f":"IF($A386=\"N/A\",Ref!$B$36,INDEX(Ranks!$1:$1048576,$A386,BG$1))","v":""},{"$f":"IF($A386=\"N/A\",Ref!$B$36,INDEX(Ranks!$1:$1048576,$A386,BH$1))","v":""},{"$f":"IF($A386=\"N/A\",Ref!$B$36,INDEX(Ranks!$1:$1048576,$A386,BI$1))","v":""},{"$f":"IF($A386=\"N/A\",Ref!$B$36,INDEX(Ranks!$1:$1048576,$A386,BJ$1))","v":""},{"$f":"IF($A386=\"N/A\",Ref!$B$36,INDEX(Ranks!$1:$1048576,$A386,BK$1))","v":""},{"$f":"IF($A386=\"N/A\",Ref!$B$36,INDEX(Ranks!$1:$1048576,$A386,BL$1))","v":""},{"$f":"IF($A386=\"N/A\",Ref!$B$36,INDEX(Ranks!$1:$1048576,$A386,BM$1))","v":""},{"$f":"IF($A386=\"N/A\",Ref!$B$36,INDEX(Ranks!$1:$1048576,$A386,BN$1))","v":""},{"$f":"IF($A386=\"N/A\",Ref!$B$36,INDEX(Ranks!$1:$1048576,$A386,BO$1))","v":""},{"$f":"IF($A386=\"N/A\",Ref!$B$36,INDEX(Ranks!$1:$1048576,$A386,BP$1))","v":""},{"$f":"IF($A386=\"N/A\",Ref!$B$36,INDEX(Ranks!$1:$1048576,$A386,BQ$1))","v":""},{"$f":"IF($A386=\"N/A\",Ref!$B$36,INDEX(Ranks!$1:$1048576,$A386,BR$1))","v":""},{"$f":"IF($A386=\"N/A\",Ref!$B$36,INDEX(Ranks!$1:$1048576,$A386,BS$1))","v":""},{"$f":"IF($A386=\"N/A\",Ref!$B$36,INDEX(Ranks!$1:$1048576,$A386,BT$1))","v":""},{"$f":"IF($A386=\"N/A\",Ref!$B$36,INDEX(Ranks!$1:$1048576,$A386,BU$1))","v":""},{"$f":"IF($A386=\"N/A\",Ref!$B$36,INDEX(Ranks!$1:$1048576,$A386,BV$1))","v":""},{"$f":"IF($A386=\"N/A\",Ref!$B$36,INDEX(Ranks!$1:$1048576,$A386,BW$1))","v":""},{"$f":"IF($A386=\"N/A\",Ref!$B$36,INDEX(Ranks!$1:$1048576,$A386,BX$1))","v":""},{"$f":"IF($A386=\"N/A\",Ref!$B$36,INDEX(Ranks!$1:$1048576,$A386,BY$1))","v":""},{"$f":"IF($A386=\"N/A\",Ref!$B$36,INDEX(Ranks!$1:$1048576,$A386,BZ$1))","v":""},{"$f":"IF($A386=\"N/A\",Ref!$B$36,INDEX(Ranks!$1:$1048576,$A386,CA$1))","v":""},{"$f":"IF($A386=\"N/A\",Ref!$B$36,INDEX(Ranks!$1:$1048576,$A386,CB$1))","v":""},{"$f":"IF($A386=\"N/A\",Ref!$B$36,INDEX(Ranks!$1:$1048576,$A386,CC$1))","v":""},{"$f":"IF($A386=\"N/A\",Ref!$B$36,INDEX(Ranks!$1:$1048576,$A386,CD$1))","v":""},{"$f":"IF($A386=\"N/A\",Ref!$B$36,INDEX(Ranks!$1:$1048576,$A386,CE$1))","v":""},{"$f":"IF($A386=\"N/A\",Ref!$B$36,INDEX(Ranks!$1:$1048576,$A386,CF$1))","v":""},{"$f":"IF($A386=\"N/A\",Ref!$B$36,INDEX(Ranks!$1:$1048576,$A386,CG$1))","v":""},{"$f":"IF($A386=\"N/A\",Ref!$B$36,INDEX(Ranks!$1:$1048576,$A386,CH$1))","v":""},{"$f":"IF($A386=\"N/A\",Ref!$B$36,INDEX(Ranks!$1:$1048576,$A386,CI$1))","v":""},{"$f":"IF($A386=\"N/A\",Ref!$B$36,INDEX(Ranks!$1:$1048576,$A386,CJ$1))","v":""},{"$f":"IF($A386=\"N/A\",Ref!$B$36,INDEX(Ranks!$1:$1048576,$A386,CK$1))","v":""},{"$f":"IF($A386=\"N/A\",Ref!$B$36,INDEX(Ranks!$1:$1048576,$A386,CL$1))","v":""},{"$f":"IF($A386=\"N/A\",Ref!$B$36,INDEX(Ranks!$1:$1048576,$A386,CM$1))","v":""},{"$f":"IF($A386=\"N/A\",Ref!$B$36,INDEX(Ranks!$1:$1048576,$A386,CN$1))","v":""},{"$f":"IF($A386=\"N/A\",Ref!$B$36,INDEX(Ranks!$1:$1048576,$A386,CO$1))","v":""},{"$f":"IF($A386=\"N/A\",Ref!$B$36,INDEX(Ranks!$1:$1048576,$A386,CP$1))","v":""},{"$f":"IF($A386=\"N/A\",Ref!$B$36,INDEX(Ranks!$1:$1048576,$A386,CQ$1))","v":""},{"$f":"IF($A386=\"N/A\",Ref!$B$36,INDEX(Ranks!$1:$1048576,$A386,CR$1))","v":""},{"$f":"IF($A386=\"N/A\",Ref!$B$36,INDEX(Ranks!$1:$1048576,$A386,CS$1))","v":""},{"$f":"IF($A386=\"N/A\",Ref!$B$36,INDEX(Ranks!$1:$1048576,$A386,CT$1))","v":""},{"$f":"IF($A386=\"N/A\",Ref!$B$36,INDEX(Ranks!$1:$1048576,$A386,CU$1))","v":""},{"$f":"IF($A386=\"N/A\",Ref!$B$36,INDEX(Ranks!$1:$1048576,$A386,CV$1))","v":""},{"$f":"IF($A386=\"N/A\",Ref!$B$36,INDEX(Ranks!$1:$1048576,$A386,CW$1))","v":""},{"$f":"IF($A386=\"N/A\",Ref!$B$36,INDEX(Ranks!$1:$1048576,$A386,CX$1))","v":""},{"$f":"IF($A386=\"N/A\",Ref!$B$36,INDEX(Ranks!$1:$1048576,$A386,CY$1))","v":""},{"$f":"IF($A386=\"N/A\",Ref!$B$36,INDEX(Ranks!$1:$1048576,$A386,CZ$1))","v":""},{"$f":"IF($A386=\"N/A\",Ref!$B$36,INDEX(Ranks!$1:$1048576,$A386,DA$1))","v":""},{"$f":"IF($A386=\"N/A\",Ref!$B$36,INDEX(Ranks!$1:$1048576,$A386,DB$1))","v":""},{"$f":"IF($A386=\"N/A\",Ref!$B$36,INDEX(Ranks!$1:$1048576,$A386,DC$1))","v":""},{"$f":"IF($A386=\"N/A\",Ref!$B$36,INDEX(Ranks!$1:$1048576,$A386,DD$1))","v":""},{"$f":"IF($A386=\"N/A\",Ref!$B$36,INDEX(Ranks!$1:$1048576,$A386,DE$1))","v":""},{"$f":"IF($A386=\"N/A\",Ref!$B$36,INDEX(Ranks!$1:$1048576,$A386,DF$1))","v":""},{"$f":"IF($A386=\"N/A\",Ref!$B$36,INDEX(Ranks!$1:$1048576,$A386,DG$1))","v":""},{"$f":"IF($A386=\"N/A\",Ref!$B$36,INDEX(Ranks!$1:$1048576,$A386,DH$1))","v":""},{"$f":"IF($A386=\"N/A\",Ref!$B$36,INDEX(Ranks!$1:$1048576,$A386,DI$1))","v":""},{"$f":"IF($A386=\"N/A\",Ref!$B$36,INDEX(Ranks!$1:$1048576,$A386,DJ$1))","v":""},{"$f":"IF($A386=\"N/A\",Ref!$B$36,INDEX(Ranks!$1:$1048576,$A386,DK$1))","v":""},{"$f":"IF($A386=\"N/A\",Ref!$B$36,INDEX(Ranks!$1:$1048576,$A386,DL$1))","v":""},{"$f":"IF($A386=\"N/A\",Ref!$B$36,INDEX(Ranks!$1:$1048576,$A386,DM$1))","v":""},{"$f":"IF($A386=\"N/A\",Ref!$B$36,INDEX(Ranks!$1:$1048576,$A386,DN$1))","v":""},{"$f":"IF($A386=\"N/A\",Ref!$B$36,INDEX(Ranks!$1:$1048576,$A386,DO$1))","v":""},{"$f":"IF($A386=\"N/A\",Ref!$B$36,INDEX(Ranks!$1:$1048576,$A386,DP$1))","v":""},{"$f":"IF($A386=\"N/A\",Ref!$B$36,INDEX(Ranks!$1:$1048576,$A386,DQ$1))","v":""},{"$f":"IF($A386=\"N/A\",Ref!$B$36,INDEX(Ranks!$1:$1048576,$A386,DR$1))","v":""},{"$f":"IF($A386=\"N/A\",Ref!$B$36,INDEX(Ranks!$1:$1048576,$A386,DS$1))","v":""},{"$f":"IF($A386=\"N/A\",Ref!$B$36,INDEX(Ranks!$1:$1048576,$A386,DT$1))","v":""},{"$f":"IF($A386=\"N/A\",Ref!$B$36,INDEX(Ranks!$1:$1048576,$A386,DU$1))","v":""},{"$f":"IF($A386=\"N/A\",Ref!$B$36,INDEX(Ranks!$1:$1048576,$A386,DV$1))","v":""},{"$f":"IF($A386=\"N/A\",Ref!$B$36,INDEX(Ranks!$1:$1048576,$A386,DW$1))","v":""},{"$f":"IF($A386=\"N/A\",Ref!$B$36,INDEX(Ranks!$1:$1048576,$A386,DX$1))","v":""},{"$f":"IF($A386=\"N/A\",Ref!$B$36,INDEX(Ranks!$1:$1048576,$A386,DY$1))","v":""},{"$f":"IF($A386=\"N/A\",Ref!$B$36,INDEX(Ranks!$1:$1048576,$A386,DZ$1))","v":""},{"$f":"IF($A386=\"N/A\",Ref!$B$36,INDEX(Ranks!$1:$1048576,$A386,EA$1))","v":""},{"$f":"IF($A386=\"N/A\",Ref!$B$36,INDEX(Ranks!$1:$1048576,$A386,EB$1))","v":""}]
[{"$f":"IFERROR(MATCH('Portfolio Page'!L387,Ranks!L:L,0),\"N/A\")","v":"N/A"},null,{"$f":"IF($A387=\"N/A\",\"\",INDEX(Ranks!$1:$1048576,$A387,C$1))","v":""},{"$f":"IF($A387=\"N/A\",Ref!$B$36,INDEX(Ranks!$1:$1048576,$A387,D$1))","v":""},{"$f":"IF($A387=\"N/A\",Ref!$B$36,INDEX(Ranks!$1:$1048576,$A387,E$1))","v":""},{"$f":"IF($A387=\"N/A\",\"\",INDEX(Ranks!$1:$1048576,$A387,F$1))","v":""},{"$f":"IF($A387=\"N/A\",\"\",INDEX(Ranks!$1:$1048576,$A387,G$1))","v":""},{"$f":"IF($A387=\"N/A\",\"\",INDEX(Ranks!$1:$1048576,$A387,H$1))","v":""},{"$f":"IF($A387=\"N/A\",\"\",INDEX(Ranks!$1:$1048576,$A387,I$1))","v":""},{"$f":"IF($A387=\"N/A\",\"\",INDEX(Ranks!$1:$1048576,$A387,J$1))","v":""},{"$f":"IF($A387=\"N/A\",\"\",INDEX(Ranks!$1:$1048576,$A387,K$1))","v":""},null,{"$f":"IF($A387=\"N/A\",Ref!$B$36,INDEX(Ranks!$1:$1048576,$A387,M$1))","v":""},{"$f":"IF($A387=\"N/A\",Ref!$B$36,INDEX(Ranks!$1:$1048576,$A387,N$1))","v":""},{"$f":"IF($A387=\"N/A\",Ref!$B$36,INDEX(Ranks!$1:$1048576,$A387,O$1))","v":""},{"$f":"IF($A387=\"N/A\",Ref!$B$36,INDEX(Ranks!$1:$1048576,$A387,P$1))","v":""},{"$f":"IF($A387=\"N/A\",Ref!$B$36,INDEX(Ranks!$1:$1048576,$A387,Q$1))","v":""},{"$f":"IF($A387=\"N/A\",Ref!$B$36,INDEX(Ranks!$1:$1048576,$A387,R$1))","v":""},{"$f":"IF($A387=\"N/A\",Ref!$B$36,INDEX(Ranks!$1:$1048576,$A387,S$1))","v":""},{"$f":"IF($A387=\"N/A\",Ref!$B$36,INDEX(Ranks!$1:$1048576,$A387,T$1))","v":""},{"$f":"IF($A387=\"N/A\",Ref!$B$36,INDEX(Ranks!$1:$1048576,$A387,U$1))","v":""},{"$f":"IF($A387=\"N/A\",Ref!$B$36,INDEX(Ranks!$1:$1048576,$A387,V$1))","v":""},{"$f":"IF($A387=\"N/A\",Ref!$B$36,INDEX(Ranks!$1:$1048576,$A387,W$1))","v":""},{"$f":"IF($A387=\"N/A\",Ref!$B$36,INDEX(Ranks!$1:$1048576,$A387,X$1))","v":""},{"$f":"IF($A387=\"N/A\",Ref!$B$36,INDEX(Ranks!$1:$1048576,$A387,Y$1))","v":""},{"$f":"IF($A387=\"N/A\",Ref!$B$36,INDEX(Ranks!$1:$1048576,$A387,Z$1))","v":""},{"$f":"IF($A387=\"N/A\",Ref!$B$36,INDEX(Ranks!$1:$1048576,$A387,AA$1))","v":""},{"$f":"IF($A387=\"N/A\",Ref!$B$36,INDEX(Ranks!$1:$1048576,$A387,AB$1))","v":""},{"$f":"IF($A387=\"N/A\",Ref!$B$36,INDEX(Ranks!$1:$1048576,$A387,AC$1))","v":""},{"$f":"IF($A387=\"N/A\",Ref!$B$36,INDEX(Ranks!$1:$1048576,$A387,AD$1))","v":""},{"$f":"IF($A387=\"N/A\",Ref!$B$36,INDEX(Ranks!$1:$1048576,$A387,AE$1))","v":""},{"$f":"IF($A387=\"N/A\",Ref!$B$36,INDEX(Ranks!$1:$1048576,$A387,AF$1))","v":""},{"$f":"IF($A387=\"N/A\",Ref!$B$36,INDEX(Ranks!$1:$1048576,$A387,AG$1))","v":""},{"$f":"IF($A387=\"N/A\",Ref!$B$36,INDEX(Ranks!$1:$1048576,$A387,AH$1))","v":""},{"$f":"IF($A387=\"N/A\",Ref!$B$36,INDEX(Ranks!$1:$1048576,$A387,AI$1))","v":""},{"$f":"IF($A387=\"N/A\",Ref!$B$36,INDEX(Ranks!$1:$1048576,$A387,AJ$1))","v":""},{"$f":"IF($A387=\"N/A\",Ref!$B$36,INDEX(Ranks!$1:$1048576,$A387,AK$1))","v":""},{"$f":"IF($A387=\"N/A\",Ref!$B$36,INDEX(Ranks!$1:$1048576,$A387,AL$1))","v":""},{"$f":"IF($A387=\"N/A\",Ref!$B$36,INDEX(Ranks!$1:$1048576,$A387,AM$1))","v":""},{"$f":"IF($A387=\"N/A\",Ref!$B$36,INDEX(Ranks!$1:$1048576,$A387,AN$1))","v":""},{"$f":"IF($A387=\"N/A\",Ref!$B$36,INDEX(Ranks!$1:$1048576,$A387,AO$1))","v":""},{"$f":"IF($A387=\"N/A\",Ref!$B$36,INDEX(Ranks!$1:$1048576,$A387,AP$1))","v":""},{"$f":"IF($A387=\"N/A\",Ref!$B$36,INDEX(Ranks!$1:$1048576,$A387,AQ$1))","v":""},{"$f":"IF($A387=\"N/A\",Ref!$B$36,INDEX(Ranks!$1:$1048576,$A387,AR$1))","v":""},{"$f":"IF($A387=\"N/A\",Ref!$B$36,INDEX(Ranks!$1:$1048576,$A387,AS$1))","v":""},{"$f":"IF($A387=\"N/A\",Ref!$B$36,INDEX(Ranks!$1:$1048576,$A387,AT$1))","v":""},{"$f":"IF($A387=\"N/A\",Ref!$B$36,INDEX(Ranks!$1:$1048576,$A387,AU$1))","v":""},{"$f":"IF($A387=\"N/A\",Ref!$B$36,INDEX(Ranks!$1:$1048576,$A387,AV$1))","v":""},{"$f":"IF($A387=\"N/A\",Ref!$B$36,INDEX(Ranks!$1:$1048576,$A387,AW$1))","v":""},{"$f":"IF($A387=\"N/A\",Ref!$B$36,INDEX(Ranks!$1:$1048576,$A387,AX$1))","v":""},{"$f":"IF($A387=\"N/A\",Ref!$B$36,INDEX(Ranks!$1:$1048576,$A387,AY$1))","v":""},{"$f":"IF($A387=\"N/A\",Ref!$B$36,INDEX(Ranks!$1:$1048576,$A387,AZ$1))","v":""},{"$f":"IF($A387=\"N/A\",Ref!$B$36,INDEX(Ranks!$1:$1048576,$A387,BA$1))","v":""},{"$f":"IF($A387=\"N/A\",Ref!$B$36,INDEX(Ranks!$1:$1048576,$A387,BB$1))","v":""},{"$f":"IF($A387=\"N/A\",Ref!$B$36,INDEX(Ranks!$1:$1048576,$A387,BC$1))","v":""},{"$f":"IF($A387=\"N/A\",Ref!$B$36,INDEX(Ranks!$1:$1048576,$A387,BD$1))","v":""},{"$f":"IF($A387=\"N/A\",Ref!$B$36,INDEX(Ranks!$1:$1048576,$A387,BE$1))","v":""},{"$f":"IF($A387=\"N/A\",Ref!$B$36,INDEX(Ranks!$1:$1048576,$A387,BF$1))","v":""},{"$f":"IF($A387=\"N/A\",Ref!$B$36,INDEX(Ranks!$1:$1048576,$A387,BG$1))","v":""},{"$f":"IF($A387=\"N/A\",Ref!$B$36,INDEX(Ranks!$1:$1048576,$A387,BH$1))","v":""},{"$f":"IF($A387=\"N/A\",Ref!$B$36,INDEX(Ranks!$1:$1048576,$A387,BI$1))","v":""},{"$f":"IF($A387=\"N/A\",Ref!$B$36,INDEX(Ranks!$1:$1048576,$A387,BJ$1))","v":""},{"$f":"IF($A387=\"N/A\",Ref!$B$36,INDEX(Ranks!$1:$1048576,$A387,BK$1))","v":""},{"$f":"IF($A387=\"N/A\",Ref!$B$36,INDEX(Ranks!$1:$1048576,$A387,BL$1))","v":""},{"$f":"IF($A387=\"N/A\",Ref!$B$36,INDEX(Ranks!$1:$1048576,$A387,BM$1))","v":""},{"$f":"IF($A387=\"N/A\",Ref!$B$36,INDEX(Ranks!$1:$1048576,$A387,BN$1))","v":""},{"$f":"IF($A387=\"N/A\",Ref!$B$36,INDEX(Ranks!$1:$1048576,$A387,BO$1))","v":""},{"$f":"IF($A387=\"N/A\",Ref!$B$36,INDEX(Ranks!$1:$1048576,$A387,BP$1))","v":""},{"$f":"IF($A387=\"N/A\",Ref!$B$36,INDEX(Ranks!$1:$1048576,$A387,BQ$1))","v":""},{"$f":"IF($A387=\"N/A\",Ref!$B$36,INDEX(Ranks!$1:$1048576,$A387,BR$1))","v":""},{"$f":"IF($A387=\"N/A\",Ref!$B$36,INDEX(Ranks!$1:$1048576,$A387,BS$1))","v":""},{"$f":"IF($A387=\"N/A\",Ref!$B$36,INDEX(Ranks!$1:$1048576,$A387,BT$1))","v":""},{"$f":"IF($A387=\"N/A\",Ref!$B$36,INDEX(Ranks!$1:$1048576,$A387,BU$1))","v":""},{"$f":"IF($A387=\"N/A\",Ref!$B$36,INDEX(Ranks!$1:$1048576,$A387,BV$1))","v":""},{"$f":"IF($A387=\"N/A\",Ref!$B$36,INDEX(Ranks!$1:$1048576,$A387,BW$1))","v":""},{"$f":"IF($A387=\"N/A\",Ref!$B$36,INDEX(Ranks!$1:$1048576,$A387,BX$1))","v":""},{"$f":"IF($A387=\"N/A\",Ref!$B$36,INDEX(Ranks!$1:$1048576,$A387,BY$1))","v":""},{"$f":"IF($A387=\"N/A\",Ref!$B$36,INDEX(Ranks!$1:$1048576,$A387,BZ$1))","v":""},{"$f":"IF($A387=\"N/A\",Ref!$B$36,INDEX(Ranks!$1:$1048576,$A387,CA$1))","v":""},{"$f":"IF($A387=\"N/A\",Ref!$B$36,INDEX(Ranks!$1:$1048576,$A387,CB$1))","v":""},{"$f":"IF($A387=\"N/A\",Ref!$B$36,INDEX(Ranks!$1:$1048576,$A387,CC$1))","v":""},{"$f":"IF($A387=\"N/A\",Ref!$B$36,INDEX(Ranks!$1:$1048576,$A387,CD$1))","v":""},{"$f":"IF($A387=\"N/A\",Ref!$B$36,INDEX(Ranks!$1:$1048576,$A387,CE$1))","v":""},{"$f":"IF($A387=\"N/A\",Ref!$B$36,INDEX(Ranks!$1:$1048576,$A387,CF$1))","v":""},{"$f":"IF($A387=\"N/A\",Ref!$B$36,INDEX(Ranks!$1:$1048576,$A387,CG$1))","v":""},{"$f":"IF($A387=\"N/A\",Ref!$B$36,INDEX(Ranks!$1:$1048576,$A387,CH$1))","v":""},{"$f":"IF($A387=\"N/A\",Ref!$B$36,INDEX(Ranks!$1:$1048576,$A387,CI$1))","v":""},{"$f":"IF($A387=\"N/A\",Ref!$B$36,INDEX(Ranks!$1:$1048576,$A387,CJ$1))","v":""},{"$f":"IF($A387=\"N/A\",Ref!$B$36,INDEX(Ranks!$1:$1048576,$A387,CK$1))","v":""},{"$f":"IF($A387=\"N/A\",Ref!$B$36,INDEX(Ranks!$1:$1048576,$A387,CL$1))","v":""},{"$f":"IF($A387=\"N/A\",Ref!$B$36,INDEX(Ranks!$1:$1048576,$A387,CM$1))","v":""},{"$f":"IF($A387=\"N/A\",Ref!$B$36,INDEX(Ranks!$1:$1048576,$A387,CN$1))","v":""},{"$f":"IF($A387=\"N/A\",Ref!$B$36,INDEX(Ranks!$1:$1048576,$A387,CO$1))","v":""},{"$f":"IF($A387=\"N/A\",Ref!$B$36,INDEX(Ranks!$1:$1048576,$A387,CP$1))","v":""},{"$f":"IF($A387=\"N/A\",Ref!$B$36,INDEX(Ranks!$1:$1048576,$A387,CQ$1))","v":""},{"$f":"IF($A387=\"N/A\",Ref!$B$36,INDEX(Ranks!$1:$1048576,$A387,CR$1))","v":""},{"$f":"IF($A387=\"N/A\",Ref!$B$36,INDEX(Ranks!$1:$1048576,$A387,CS$1))","v":""},{"$f":"IF($A387=\"N/A\",Ref!$B$36,INDEX(Ranks!$1:$1048576,$A387,CT$1))","v":""},{"$f":"IF($A387=\"N/A\",Ref!$B$36,INDEX(Ranks!$1:$1048576,$A387,CU$1))","v":""},{"$f":"IF($A387=\"N/A\",Ref!$B$36,INDEX(Ranks!$1:$1048576,$A387,CV$1))","v":""},{"$f":"IF($A387=\"N/A\",Ref!$B$36,INDEX(Ranks!$1:$1048576,$A387,CW$1))","v":""},{"$f":"IF($A387=\"N/A\",Ref!$B$36,INDEX(Ranks!$1:$1048576,$A387,CX$1))","v":""},{"$f":"IF($A387=\"N/A\",Ref!$B$36,INDEX(Ranks!$1:$1048576,$A387,CY$1))","v":""},{"$f":"IF($A387=\"N/A\",Ref!$B$36,INDEX(Ranks!$1:$1048576,$A387,CZ$1))","v":""},{"$f":"IF($A387=\"N/A\",Ref!$B$36,INDEX(Ranks!$1:$1048576,$A387,DA$1))","v":""},{"$f":"IF($A387=\"N/A\",Ref!$B$36,INDEX(Ranks!$1:$1048576,$A387,DB$1))","v":""},{"$f":"IF($A387=\"N/A\",Ref!$B$36,INDEX(Ranks!$1:$1048576,$A387,DC$1))","v":""},{"$f":"IF($A387=\"N/A\",Ref!$B$36,INDEX(Ranks!$1:$1048576,$A387,DD$1))","v":""},{"$f":"IF($A387=\"N/A\",Ref!$B$36,INDEX(Ranks!$1:$1048576,$A387,DE$1))","v":""},{"$f":"IF($A387=\"N/A\",Ref!$B$36,INDEX(Ranks!$1:$1048576,$A387,DF$1))","v":""},{"$f":"IF($A387=\"N/A\",Ref!$B$36,INDEX(Ranks!$1:$1048576,$A387,DG$1))","v":""},{"$f":"IF($A387=\"N/A\",Ref!$B$36,INDEX(Ranks!$1:$1048576,$A387,DH$1))","v":""},{"$f":"IF($A387=\"N/A\",Ref!$B$36,INDEX(Ranks!$1:$1048576,$A387,DI$1))","v":""},{"$f":"IF($A387=\"N/A\",Ref!$B$36,INDEX(Ranks!$1:$1048576,$A387,DJ$1))","v":""},{"$f":"IF($A387=\"N/A\",Ref!$B$36,INDEX(Ranks!$1:$1048576,$A387,DK$1))","v":""},{"$f":"IF($A387=\"N/A\",Ref!$B$36,INDEX(Ranks!$1:$1048576,$A387,DL$1))","v":""},{"$f":"IF($A387=\"N/A\",Ref!$B$36,INDEX(Ranks!$1:$1048576,$A387,DM$1))","v":""},{"$f":"IF($A387=\"N/A\",Ref!$B$36,INDEX(Ranks!$1:$1048576,$A387,DN$1))","v":""},{"$f":"IF($A387=\"N/A\",Ref!$B$36,INDEX(Ranks!$1:$1048576,$A387,DO$1))","v":""},{"$f":"IF($A387=\"N/A\",Ref!$B$36,INDEX(Ranks!$1:$1048576,$A387,DP$1))","v":""},{"$f":"IF($A387=\"N/A\",Ref!$B$36,INDEX(Ranks!$1:$1048576,$A387,DQ$1))","v":""},{"$f":"IF($A387=\"N/A\",Ref!$B$36,INDEX(Ranks!$1:$1048576,$A387,DR$1))","v":""},{"$f":"IF($A387=\"N/A\",Ref!$B$36,INDEX(Ranks!$1:$1048576,$A387,DS$1))","v":""},{"$f":"IF($A387=\"N/A\",Ref!$B$36,INDEX(Ranks!$1:$1048576,$A387,DT$1))","v":""},{"$f":"IF($A387=\"N/A\",Ref!$B$36,INDEX(Ranks!$1:$1048576,$A387,DU$1))","v":""},{"$f":"IF($A387=\"N/A\",Ref!$B$36,INDEX(Ranks!$1:$1048576,$A387,DV$1))","v":""},{"$f":"IF($A387=\"N/A\",Ref!$B$36,INDEX(Ranks!$1:$1048576,$A387,DW$1))","v":""},{"$f":"IF($A387=\"N/A\",Ref!$B$36,INDEX(Ranks!$1:$1048576,$A387,DX$1))","v":""},{"$f":"IF($A387=\"N/A\",Ref!$B$36,INDEX(Ranks!$1:$1048576,$A387,DY$1))","v":""},{"$f":"IF($A387=\"N/A\",Ref!$B$36,INDEX(Ranks!$1:$1048576,$A387,DZ$1))","v":""},{"$f":"IF($A387=\"N/A\",Ref!$B$36,INDEX(Ranks!$1:$1048576,$A387,EA$1))","v":""},{"$f":"IF($A387=\"N/A\",Ref!$B$36,INDEX(Ranks!$1:$1048576,$A387,EB$1))","v":""}]
[{"$f":"IFERROR(MATCH('Portfolio Page'!L388,Ranks!L:L,0),\"N/A\")","v":"N/A"},null,{"$f":"IF($A388=\"N/A\",\"\",INDEX(Ranks!$1:$1048576,$A388,C$1))","v":""},{"$f":"IF($A388=\"N/A\",Ref!$B$36,INDEX(Ranks!$1:$1048576,$A388,D$1))","v":""},{"$f":"IF($A388=\"N/A\",Ref!$B$36,INDEX(Ranks!$1:$1048576,$A388,E$1))","v":""},{"$f":"IF($A388=\"N/A\",\"\",INDEX(Ranks!$1:$1048576,$A388,F$1))","v":""},{"$f":"IF($A388=\"N/A\",\"\",INDEX(Ranks!$1:$1048576,$A388,G$1))","v":""},{"$f":"IF($A388=\"N/A\",\"\",INDEX(Ranks!$1:$1048576,$A388,H$1))","v":""},{"$f":"IF($A388=\"N/A\",\"\",INDEX(Ranks!$1:$1048576,$A388,I$1))","v":""},{"$f":"IF($A388=\"N/A\",\"\",INDEX(Ranks!$1:$1048576,$A388,J$1))","v":""},{"$f":"IF($A388=\"N/A\",\"\",INDEX(Ranks!$1:$1048576,$A388,K$1))","v":""},null,{"$f":"IF($A388=\"N/A\",Ref!$B$36,INDEX(Ranks!$1:$1048576,$A388,M$1))","v":""},{"$f":"IF($A388=\"N/A\",Ref!$B$36,INDEX(Ranks!$1:$1048576,$A388,N$1))","v":""},{"$f":"IF($A388=\"N/A\",Ref!$B$36,INDEX(Ranks!$1:$1048576,$A388,O$1))","v":""},{"$f":"IF($A388=\"N/A\",Ref!$B$36,INDEX(Ranks!$1:$1048576,$A388,P$1))","v":""},{"$f":"IF($A388=\"N/A\",Ref!$B$36,INDEX(Ranks!$1:$1048576,$A388,Q$1))","v":""},{"$f":"IF($A388=\"N/A\",Ref!$B$36,INDEX(Ranks!$1:$1048576,$A388,R$1))","v":""},{"$f":"IF($A388=\"N/A\",Ref!$B$36,INDEX(Ranks!$1:$1048576,$A388,S$1))","v":""},{"$f":"IF($A388=\"N/A\",Ref!$B$36,INDEX(Ranks!$1:$1048576,$A388,T$1))","v":""},{"$f":"IF($A388=\"N/A\",Ref!$B$36,INDEX(Ranks!$1:$1048576,$A388,U$1))","v":""},{"$f":"IF($A388=\"N/A\",Ref!$B$36,INDEX(Ranks!$1:$1048576,$A388,V$1))","v":""},{"$f":"IF($A388=\"N/A\",Ref!$B$36,INDEX(Ranks!$1:$1048576,$A388,W$1))","v":""},{"$f":"IF($A388=\"N/A\",Ref!$B$36,INDEX(Ranks!$1:$1048576,$A388,X$1))","v":""},{"$f":"IF($A388=\"N/A\",Ref!$B$36,INDEX(Ranks!$1:$1048576,$A388,Y$1))","v":""},{"$f":"IF($A388=\"N/A\",Ref!$B$36,INDEX(Ranks!$1:$1048576,$A388,Z$1))","v":""},{"$f":"IF($A388=\"N/A\",Ref!$B$36,INDEX(Ranks!$1:$1048576,$A388,AA$1))","v":""},{"$f":"IF($A388=\"N/A\",Ref!$B$36,INDEX(Ranks!$1:$1048576,$A388,AB$1))","v":""},{"$f":"IF($A388=\"N/A\",Ref!$B$36,INDEX(Ranks!$1:$1048576,$A388,AC$1))","v":""},{"$f":"IF($A388=\"N/A\",Ref!$B$36,INDEX(Ranks!$1:$1048576,$A388,AD$1))","v":""},{"$f":"IF($A388=\"N/A\",Ref!$B$36,INDEX(Ranks!$1:$1048576,$A388,AE$1))","v":""},{"$f":"IF($A388=\"N/A\",Ref!$B$36,INDEX(Ranks!$1:$1048576,$A388,AF$1))","v":""},{"$f":"IF($A388=\"N/A\",Ref!$B$36,INDEX(Ranks!$1:$1048576,$A388,AG$1))","v":""},{"$f":"IF($A388=\"N/A\",Ref!$B$36,INDEX(Ranks!$1:$1048576,$A388,AH$1))","v":""},{"$f":"IF($A388=\"N/A\",Ref!$B$36,INDEX(Ranks!$1:$1048576,$A388,AI$1))","v":""},{"$f":"IF($A388=\"N/A\",Ref!$B$36,INDEX(Ranks!$1:$1048576,$A388,AJ$1))","v":""},{"$f":"IF($A388=\"N/A\",Ref!$B$36,INDEX(Ranks!$1:$1048576,$A388,AK$1))","v":""},{"$f":"IF($A388=\"N/A\",Ref!$B$36,INDEX(Ranks!$1:$1048576,$A388,AL$1))","v":""},{"$f":"IF($A388=\"N/A\",Ref!$B$36,INDEX(Ranks!$1:$1048576,$A388,AM$1))","v":""},{"$f":"IF($A388=\"N/A\",Ref!$B$36,INDEX(Ranks!$1:$1048576,$A388,AN$1))","v":""},{"$f":"IF($A388=\"N/A\",Ref!$B$36,INDEX(Ranks!$1:$1048576,$A388,AO$1))","v":""},{"$f":"IF($A388=\"N/A\",Ref!$B$36,INDEX(Ranks!$1:$1048576,$A388,AP$1))","v":""},{"$f":"IF($A388=\"N/A\",Ref!$B$36,INDEX(Ranks!$1:$1048576,$A388,AQ$1))","v":""},{"$f":"IF($A388=\"N/A\",Ref!$B$36,INDEX(Ranks!$1:$1048576,$A388,AR$1))","v":""},{"$f":"IF($A388=\"N/A\",Ref!$B$36,INDEX(Ranks!$1:$1048576,$A388,AS$1))","v":""},{"$f":"IF($A388=\"N/A\",Ref!$B$36,INDEX(Ranks!$1:$1048576,$A388,AT$1))","v":""},{"$f":"IF($A388=\"N/A\",Ref!$B$36,INDEX(Ranks!$1:$1048576,$A388,AU$1))","v":""},{"$f":"IF($A388=\"N/A\",Ref!$B$36,INDEX(Ranks!$1:$1048576,$A388,AV$1))","v":""},{"$f":"IF($A388=\"N/A\",Ref!$B$36,INDEX(Ranks!$1:$1048576,$A388,AW$1))","v":""},{"$f":"IF($A388=\"N/A\",Ref!$B$36,INDEX(Ranks!$1:$1048576,$A388,AX$1))","v":""},{"$f":"IF($A388=\"N/A\",Ref!$B$36,INDEX(Ranks!$1:$1048576,$A388,AY$1))","v":""},{"$f":"IF($A388=\"N/A\",Ref!$B$36,INDEX(Ranks!$1:$1048576,$A388,AZ$1))","v":""},{"$f":"IF($A388=\"N/A\",Ref!$B$36,INDEX(Ranks!$1:$1048576,$A388,BA$1))","v":""},{"$f":"IF($A388=\"N/A\",Ref!$B$36,INDEX(Ranks!$1:$1048576,$A388,BB$1))","v":""},{"$f":"IF($A388=\"N/A\",Ref!$B$36,INDEX(Ranks!$1:$1048576,$A388,BC$1))","v":""},{"$f":"IF($A388=\"N/A\",Ref!$B$36,INDEX(Ranks!$1:$1048576,$A388,BD$1))","v":""},{"$f":"IF($A388=\"N/A\",Ref!$B$36,INDEX(Ranks!$1:$1048576,$A388,BE$1))","v":""},{"$f":"IF($A388=\"N/A\",Ref!$B$36,INDEX(Ranks!$1:$1048576,$A388,BF$1))","v":""},{"$f":"IF($A388=\"N/A\",Ref!$B$36,INDEX(Ranks!$1:$1048576,$A388,BG$1))","v":""},{"$f":"IF($A388=\"N/A\",Ref!$B$36,INDEX(Ranks!$1:$1048576,$A388,BH$1))","v":""},{"$f":"IF($A388=\"N/A\",Ref!$B$36,INDEX(Ranks!$1:$1048576,$A388,BI$1))","v":""},{"$f":"IF($A388=\"N/A\",Ref!$B$36,INDEX(Ranks!$1:$1048576,$A388,BJ$1))","v":""},{"$f":"IF($A388=\"N/A\",Ref!$B$36,INDEX(Ranks!$1:$1048576,$A388,BK$1))","v":""},{"$f":"IF($A388=\"N/A\",Ref!$B$36,INDEX(Ranks!$1:$1048576,$A388,BL$1))","v":""},{"$f":"IF($A388=\"N/A\",Ref!$B$36,INDEX(Ranks!$1:$1048576,$A388,BM$1))","v":""},{"$f":"IF($A388=\"N/A\",Ref!$B$36,INDEX(Ranks!$1:$1048576,$A388,BN$1))","v":""},{"$f":"IF($A388=\"N/A\",Ref!$B$36,INDEX(Ranks!$1:$1048576,$A388,BO$1))","v":""},{"$f":"IF($A388=\"N/A\",Ref!$B$36,INDEX(Ranks!$1:$1048576,$A388,BP$1))","v":""},{"$f":"IF($A388=\"N/A\",Ref!$B$36,INDEX(Ranks!$1:$1048576,$A388,BQ$1))","v":""},{"$f":"IF($A388=\"N/A\",Ref!$B$36,INDEX(Ranks!$1:$1048576,$A388,BR$1))","v":""},{"$f":"IF($A388=\"N/A\",Ref!$B$36,INDEX(Ranks!$1:$1048576,$A388,BS$1))","v":""},{"$f":"IF($A388=\"N/A\",Ref!$B$36,INDEX(Ranks!$1:$1048576,$A388,BT$1))","v":""},{"$f":"IF($A388=\"N/A\",Ref!$B$36,INDEX(Ranks!$1:$1048576,$A388,BU$1))","v":""},{"$f":"IF($A388=\"N/A\",Ref!$B$36,INDEX(Ranks!$1:$1048576,$A388,BV$1))","v":""},{"$f":"IF($A388=\"N/A\",Ref!$B$36,INDEX(Ranks!$1:$1048576,$A388,BW$1))","v":""},{"$f":"IF($A388=\"N/A\",Ref!$B$36,INDEX(Ranks!$1:$1048576,$A388,BX$1))","v":""},{"$f":"IF($A388=\"N/A\",Ref!$B$36,INDEX(Ranks!$1:$1048576,$A388,BY$1))","v":""},{"$f":"IF($A388=\"N/A\",Ref!$B$36,INDEX(Ranks!$1:$1048576,$A388,BZ$1))","v":""},{"$f":"IF($A388=\"N/A\",Ref!$B$36,INDEX(Ranks!$1:$1048576,$A388,CA$1))","v":""},{"$f":"IF($A388=\"N/A\",Ref!$B$36,INDEX(Ranks!$1:$1048576,$A388,CB$1))","v":""},{"$f":"IF($A388=\"N/A\",Ref!$B$36,INDEX(Ranks!$1:$1048576,$A388,CC$1))","v":""},{"$f":"IF($A388=\"N/A\",Ref!$B$36,INDEX(Ranks!$1:$1048576,$A388,CD$1))","v":""},{"$f":"IF($A388=\"N/A\",Ref!$B$36,INDEX(Ranks!$1:$1048576,$A388,CE$1))","v":""},{"$f":"IF($A388=\"N/A\",Ref!$B$36,INDEX(Ranks!$1:$1048576,$A388,CF$1))","v":""},{"$f":"IF($A388=\"N/A\",Ref!$B$36,INDEX(Ranks!$1:$1048576,$A388,CG$1))","v":""},{"$f":"IF($A388=\"N/A\",Ref!$B$36,INDEX(Ranks!$1:$1048576,$A388,CH$1))","v":""},{"$f":"IF($A388=\"N/A\",Ref!$B$36,INDEX(Ranks!$1:$1048576,$A388,CI$1))","v":""},{"$f":"IF($A388=\"N/A\",Ref!$B$36,INDEX(Ranks!$1:$1048576,$A388,CJ$1))","v":""},{"$f":"IF($A388=\"N/A\",Ref!$B$36,INDEX(Ranks!$1:$1048576,$A388,CK$1))","v":""},{"$f":"IF($A388=\"N/A\",Ref!$B$36,INDEX(Ranks!$1:$1048576,$A388,CL$1))","v":""},{"$f":"IF($A388=\"N/A\",Ref!$B$36,INDEX(Ranks!$1:$1048576,$A388,CM$1))","v":""},{"$f":"IF($A388=\"N/A\",Ref!$B$36,INDEX(Ranks!$1:$1048576,$A388,CN$1))","v":""},{"$f":"IF($A388=\"N/A\",Ref!$B$36,INDEX(Ranks!$1:$1048576,$A388,CO$1))","v":""},{"$f":"IF($A388=\"N/A\",Ref!$B$36,INDEX(Ranks!$1:$1048576,$A388,CP$1))","v":""},{"$f":"IF($A388=\"N/A\",Ref!$B$36,INDEX(Ranks!$1:$1048576,$A388,CQ$1))","v":""},{"$f":"IF($A388=\"N/A\",Ref!$B$36,INDEX(Ranks!$1:$1048576,$A388,CR$1))","v":""},{"$f":"IF($A388=\"N/A\",Ref!$B$36,INDEX(Ranks!$1:$1048576,$A388,CS$1))","v":""},{"$f":"IF($A388=\"N/A\",Ref!$B$36,INDEX(Ranks!$1:$1048576,$A388,CT$1))","v":""},{"$f":"IF($A388=\"N/A\",Ref!$B$36,INDEX(Ranks!$1:$1048576,$A388,CU$1))","v":""},{"$f":"IF($A388=\"N/A\",Ref!$B$36,INDEX(Ranks!$1:$1048576,$A388,CV$1))","v":""},{"$f":"IF($A388=\"N/A\",Ref!$B$36,INDEX(Ranks!$1:$1048576,$A388,CW$1))","v":""},{"$f":"IF($A388=\"N/A\",Ref!$B$36,INDEX(Ranks!$1:$1048576,$A388,CX$1))","v":""},{"$f":"IF($A388=\"N/A\",Ref!$B$36,INDEX(Ranks!$1:$1048576,$A388,CY$1))","v":""},{"$f":"IF($A388=\"N/A\",Ref!$B$36,INDEX(Ranks!$1:$1048576,$A388,CZ$1))","v":""},{"$f":"IF($A388=\"N/A\",Ref!$B$36,INDEX(Ranks!$1:$1048576,$A388,DA$1))","v":""},{"$f":"IF($A388=\"N/A\",Ref!$B$36,INDEX(Ranks!$1:$1048576,$A388,DB$1))","v":""},{"$f":"IF($A388=\"N/A\",Ref!$B$36,INDEX(Ranks!$1:$1048576,$A388,DC$1))","v":""},{"$f":"IF($A388=\"N/A\",Ref!$B$36,INDEX(Ranks!$1:$1048576,$A388,DD$1))","v":""},{"$f":"IF($A388=\"N/A\",Ref!$B$36,INDEX(Ranks!$1:$1048576,$A388,DE$1))","v":""},{"$f":"IF($A388=\"N/A\",Ref!$B$36,INDEX(Ranks!$1:$1048576,$A388,DF$1))","v":""},{"$f":"IF($A388=\"N/A\",Ref!$B$36,INDEX(Ranks!$1:$1048576,$A388,DG$1))","v":""},{"$f":"IF($A388=\"N/A\",Ref!$B$36,INDEX(Ranks!$1:$1048576,$A388,DH$1))","v":""},{"$f":"IF($A388=\"N/A\",Ref!$B$36,INDEX(Ranks!$1:$1048576,$A388,DI$1))","v":""},{"$f":"IF($A388=\"N/A\",Ref!$B$36,INDEX(Ranks!$1:$1048576,$A388,DJ$1))","v":""},{"$f":"IF($A388=\"N/A\",Ref!$B$36,INDEX(Ranks!$1:$1048576,$A388,DK$1))","v":""},{"$f":"IF($A388=\"N/A\",Ref!$B$36,INDEX(Ranks!$1:$1048576,$A388,DL$1))","v":""},{"$f":"IF($A388=\"N/A\",Ref!$B$36,INDEX(Ranks!$1:$1048576,$A388,DM$1))","v":""},{"$f":"IF($A388=\"N/A\",Ref!$B$36,INDEX(Ranks!$1:$1048576,$A388,DN$1))","v":""},{"$f":"IF($A388=\"N/A\",Ref!$B$36,INDEX(Ranks!$1:$1048576,$A388,DO$1))","v":""},{"$f":"IF($A388=\"N/A\",Ref!$B$36,INDEX(Ranks!$1:$1048576,$A388,DP$1))","v":""},{"$f":"IF($A388=\"N/A\",Ref!$B$36,INDEX(Ranks!$1:$1048576,$A388,DQ$1))","v":""},{"$f":"IF($A388=\"N/A\",Ref!$B$36,INDEX(Ranks!$1:$1048576,$A388,DR$1))","v":""},{"$f":"IF($A388=\"N/A\",Ref!$B$36,INDEX(Ranks!$1:$1048576,$A388,DS$1))","v":""},{"$f":"IF($A388=\"N/A\",Ref!$B$36,INDEX(Ranks!$1:$1048576,$A388,DT$1))","v":""},{"$f":"IF($A388=\"N/A\",Ref!$B$36,INDEX(Ranks!$1:$1048576,$A388,DU$1))","v":""},{"$f":"IF($A388=\"N/A\",Ref!$B$36,INDEX(Ranks!$1:$1048576,$A388,DV$1))","v":""},{"$f":"IF($A388=\"N/A\",Ref!$B$36,INDEX(Ranks!$1:$1048576,$A388,DW$1))","v":""},{"$f":"IF($A388=\"N/A\",Ref!$B$36,INDEX(Ranks!$1:$1048576,$A388,DX$1))","v":""},{"$f":"IF($A388=\"N/A\",Ref!$B$36,INDEX(Ranks!$1:$1048576,$A388,DY$1))","v":""},{"$f":"IF($A388=\"N/A\",Ref!$B$36,INDEX(Ranks!$1:$1048576,$A388,DZ$1))","v":""},{"$f":"IF($A388=\"N/A\",Ref!$B$36,INDEX(Ranks!$1:$1048576,$A388,EA$1))","v":""},{"$f":"IF($A388=\"N/A\",Ref!$B$36,INDEX(Ranks!$1:$1048576,$A388,EB$1))","v":""}]
[{"$f":"IFERROR(MATCH('Portfolio Page'!L389,Ranks!L:L,0),\"N/A\")","v":"N/A"},null,{"$f":"IF($A389=\"N/A\",\"\",INDEX(Ranks!$1:$1048576,$A389,C$1))","v":""},{"$f":"IF($A389=\"N/A\",Ref!$B$36,INDEX(Ranks!$1:$1048576,$A389,D$1))","v":""},{"$f":"IF($A389=\"N/A\",Ref!$B$36,INDEX(Ranks!$1:$1048576,$A389,E$1))","v":""},{"$f":"IF($A389=\"N/A\",\"\",INDEX(Ranks!$1:$1048576,$A389,F$1))","v":""},{"$f":"IF($A389=\"N/A\",\"\",INDEX(Ranks!$1:$1048576,$A389,G$1))","v":""},{"$f":"IF($A389=\"N/A\",\"\",INDEX(Ranks!$1:$1048576,$A389,H$1))","v":""},{"$f":"IF($A389=\"N/A\",\"\",INDEX(Ranks!$1:$1048576,$A389,I$1))","v":""},{"$f":"IF($A389=\"N/A\",\"\",INDEX(Ranks!$1:$1048576,$A389,J$1))","v":""},{"$f":"IF($A389=\"N/A\",\"\",INDEX(Ranks!$1:$1048576,$A389,K$1))","v":""},null,{"$f":"IF($A389=\"N/A\",Ref!$B$36,INDEX(Ranks!$1:$1048576,$A389,M$1))","v":""},{"$f":"IF($A389=\"N/A\",Ref!$B$36,INDEX(Ranks!$1:$1048576,$A389,N$1))","v":""},{"$f":"IF($A389=\"N/A\",Ref!$B$36,INDEX(Ranks!$1:$1048576,$A389,O$1))","v":""},{"$f":"IF($A389=\"N/A\",Ref!$B$36,INDEX(Ranks!$1:$1048576,$A389,P$1))","v":""},{"$f":"IF($A389=\"N/A\",Ref!$B$36,INDEX(Ranks!$1:$1048576,$A389,Q$1))","v":""},{"$f":"IF($A389=\"N/A\",Ref!$B$36,INDEX(Ranks!$1:$1048576,$A389,R$1))","v":""},{"$f":"IF($A389=\"N/A\",Ref!$B$36,INDEX(Ranks!$1:$1048576,$A389,S$1))","v":""},{"$f":"IF($A389=\"N/A\",Ref!$B$36,INDEX(Ranks!$1:$1048576,$A389,T$1))","v":""},{"$f":"IF($A389=\"N/A\",Ref!$B$36,INDEX(Ranks!$1:$1048576,$A389,U$1))","v":""},{"$f":"IF($A389=\"N/A\",Ref!$B$36,INDEX(Ranks!$1:$1048576,$A389,V$1))","v":""},{"$f":"IF($A389=\"N/A\",Ref!$B$36,INDEX(Ranks!$1:$1048576,$A389,W$1))","v":""},{"$f":"IF($A389=\"N/A\",Ref!$B$36,INDEX(Ranks!$1:$1048576,$A389,X$1))","v":""},{"$f":"IF($A389=\"N/A\",Ref!$B$36,INDEX(Ranks!$1:$1048576,$A389,Y$1))","v":""},{"$f":"IF($A389=\"N/A\",Ref!$B$36,INDEX(Ranks!$1:$1048576,$A389,Z$1))","v":""},{"$f":"IF($A389=\"N/A\",Ref!$B$36,INDEX(Ranks!$1:$1048576,$A389,AA$1))","v":""},{"$f":"IF($A389=\"N/A\",Ref!$B$36,INDEX(Ranks!$1:$1048576,$A389,AB$1))","v":""},{"$f":"IF($A389=\"N/A\",Ref!$B$36,INDEX(Ranks!$1:$1048576,$A389,AC$1))","v":""},{"$f":"IF($A389=\"N/A\",Ref!$B$36,INDEX(Ranks!$1:$1048576,$A389,AD$1))","v":""},{"$f":"IF($A389=\"N/A\",Ref!$B$36,INDEX(Ranks!$1:$1048576,$A389,AE$1))","v":""},{"$f":"IF($A389=\"N/A\",Ref!$B$36,INDEX(Ranks!$1:$1048576,$A389,AF$1))","v":""},{"$f":"IF($A389=\"N/A\",Ref!$B$36,INDEX(Ranks!$1:$1048576,$A389,AG$1))","v":""},{"$f":"IF($A389=\"N/A\",Ref!$B$36,INDEX(Ranks!$1:$1048576,$A389,AH$1))","v":""},{"$f":"IF($A389=\"N/A\",Ref!$B$36,INDEX(Ranks!$1:$1048576,$A389,AI$1))","v":""},{"$f":"IF($A389=\"N/A\",Ref!$B$36,INDEX(Ranks!$1:$1048576,$A389,AJ$1))","v":""},{"$f":"IF($A389=\"N/A\",Ref!$B$36,INDEX(Ranks!$1:$1048576,$A389,AK$1))","v":""},{"$f":"IF($A389=\"N/A\",Ref!$B$36,INDEX(Ranks!$1:$1048576,$A389,AL$1))","v":""},{"$f":"IF($A389=\"N/A\",Ref!$B$36,INDEX(Ranks!$1:$1048576,$A389,AM$1))","v":""},{"$f":"IF($A389=\"N/A\",Ref!$B$36,INDEX(Ranks!$1:$1048576,$A389,AN$1))","v":""},{"$f":"IF($A389=\"N/A\",Ref!$B$36,INDEX(Ranks!$1:$1048576,$A389,AO$1))","v":""},{"$f":"IF($A389=\"N/A\",Ref!$B$36,INDEX(Ranks!$1:$1048576,$A389,AP$1))","v":""},{"$f":"IF($A389=\"N/A\",Ref!$B$36,INDEX(Ranks!$1:$1048576,$A389,AQ$1))","v":""},{"$f":"IF($A389=\"N/A\",Ref!$B$36,INDEX(Ranks!$1:$1048576,$A389,AR$1))","v":""},{"$f":"IF($A389=\"N/A\",Ref!$B$36,INDEX(Ranks!$1:$1048576,$A389,AS$1))","v":""},{"$f":"IF($A389=\"N/A\",Ref!$B$36,INDEX(Ranks!$1:$1048576,$A389,AT$1))","v":""},{"$f":"IF($A389=\"N/A\",Ref!$B$36,INDEX(Ranks!$1:$1048576,$A389,AU$1))","v":""},{"$f":"IF($A389=\"N/A\",Ref!$B$36,INDEX(Ranks!$1:$1048576,$A389,AV$1))","v":""},{"$f":"IF($A389=\"N/A\",Ref!$B$36,INDEX(Ranks!$1:$1048576,$A389,AW$1))","v":""},{"$f":"IF($A389=\"N/A\",Ref!$B$36,INDEX(Ranks!$1:$1048576,$A389,AX$1))","v":""},{"$f":"IF($A389=\"N/A\",Ref!$B$36,INDEX(Ranks!$1:$1048576,$A389,AY$1))","v":""},{"$f":"IF($A389=\"N/A\",Ref!$B$36,INDEX(Ranks!$1:$1048576,$A389,AZ$1))","v":""},{"$f":"IF($A389=\"N/A\",Ref!$B$36,INDEX(Ranks!$1:$1048576,$A389,BA$1))","v":""},{"$f":"IF($A389=\"N/A\",Ref!$B$36,INDEX(Ranks!$1:$1048576,$A389,BB$1))","v":""},{"$f":"IF($A389=\"N/A\",Ref!$B$36,INDEX(Ranks!$1:$1048576,$A389,BC$1))","v":""},{"$f":"IF($A389=\"N/A\",Ref!$B$36,INDEX(Ranks!$1:$1048576,$A389,BD$1))","v":""},{"$f":"IF($A389=\"N/A\",Ref!$B$36,INDEX(Ranks!$1:$1048576,$A389,BE$1))","v":""},{"$f":"IF($A389=\"N/A\",Ref!$B$36,INDEX(Ranks!$1:$1048576,$A389,BF$1))","v":""},{"$f":"IF($A389=\"N/A\",Ref!$B$36,INDEX(Ranks!$1:$1048576,$A389,BG$1))","v":""},{"$f":"IF($A389=\"N/A\",Ref!$B$36,INDEX(Ranks!$1:$1048576,$A389,BH$1))","v":""},{"$f":"IF($A389=\"N/A\",Ref!$B$36,INDEX(Ranks!$1:$1048576,$A389,BI$1))","v":""},{"$f":"IF($A389=\"N/A\",Ref!$B$36,INDEX(Ranks!$1:$1048576,$A389,BJ$1))","v":""},{"$f":"IF($A389=\"N/A\",Ref!$B$36,INDEX(Ranks!$1:$1048576,$A389,BK$1))","v":""},{"$f":"IF($A389=\"N/A\",Ref!$B$36,INDEX(Ranks!$1:$1048576,$A389,BL$1))","v":""},{"$f":"IF($A389=\"N/A\",Ref!$B$36,INDEX(Ranks!$1:$1048576,$A389,BM$1))","v":""},{"$f":"IF($A389=\"N/A\",Ref!$B$36,INDEX(Ranks!$1:$1048576,$A389,BN$1))","v":""},{"$f":"IF($A389=\"N/A\",Ref!$B$36,INDEX(Ranks!$1:$1048576,$A389,BO$1))","v":""},{"$f":"IF($A389=\"N/A\",Ref!$B$36,INDEX(Ranks!$1:$1048576,$A389,BP$1))","v":""},{"$f":"IF($A389=\"N/A\",Ref!$B$36,INDEX(Ranks!$1:$1048576,$A389,BQ$1))","v":""},{"$f":"IF($A389=\"N/A\",Ref!$B$36,INDEX(Ranks!$1:$1048576,$A389,BR$1))","v":""},{"$f":"IF($A389=\"N/A\",Ref!$B$36,INDEX(Ranks!$1:$1048576,$A389,BS$1))","v":""},{"$f":"IF($A389=\"N/A\",Ref!$B$36,INDEX(Ranks!$1:$1048576,$A389,BT$1))","v":""},{"$f":"IF($A389=\"N/A\",Ref!$B$36,INDEX(Ranks!$1:$1048576,$A389,BU$1))","v":""},{"$f":"IF($A389=\"N/A\",Ref!$B$36,INDEX(Ranks!$1:$1048576,$A389,BV$1))","v":""},{"$f":"IF($A389=\"N/A\",Ref!$B$36,INDEX(Ranks!$1:$1048576,$A389,BW$1))","v":""},{"$f":"IF($A389=\"N/A\",Ref!$B$36,INDEX(Ranks!$1:$1048576,$A389,BX$1))","v":""},{"$f":"IF($A389=\"N/A\",Ref!$B$36,INDEX(Ranks!$1:$1048576,$A389,BY$1))","v":""},{"$f":"IF($A389=\"N/A\",Ref!$B$36,INDEX(Ranks!$1:$1048576,$A389,BZ$1))","v":""},{"$f":"IF($A389=\"N/A\",Ref!$B$36,INDEX(Ranks!$1:$1048576,$A389,CA$1))","v":""},{"$f":"IF($A389=\"N/A\",Ref!$B$36,INDEX(Ranks!$1:$1048576,$A389,CB$1))","v":""},{"$f":"IF($A389=\"N/A\",Ref!$B$36,INDEX(Ranks!$1:$1048576,$A389,CC$1))","v":""},{"$f":"IF($A389=\"N/A\",Ref!$B$36,INDEX(Ranks!$1:$1048576,$A389,CD$1))","v":""},{"$f":"IF($A389=\"N/A\",Ref!$B$36,INDEX(Ranks!$1:$1048576,$A389,CE$1))","v":""},{"$f":"IF($A389=\"N/A\",Ref!$B$36,INDEX(Ranks!$1:$1048576,$A389,CF$1))","v":""},{"$f":"IF($A389=\"N/A\",Ref!$B$36,INDEX(Ranks!$1:$1048576,$A389,CG$1))","v":""},{"$f":"IF($A389=\"N/A\",Ref!$B$36,INDEX(Ranks!$1:$1048576,$A389,CH$1))","v":""},{"$f":"IF($A389=\"N/A\",Ref!$B$36,INDEX(Ranks!$1:$1048576,$A389,CI$1))","v":""},{"$f":"IF($A389=\"N/A\",Ref!$B$36,INDEX(Ranks!$1:$1048576,$A389,CJ$1))","v":""},{"$f":"IF($A389=\"N/A\",Ref!$B$36,INDEX(Ranks!$1:$1048576,$A389,CK$1))","v":""},{"$f":"IF($A389=\"N/A\",Ref!$B$36,INDEX(Ranks!$1:$1048576,$A389,CL$1))","v":""},{"$f":"IF($A389=\"N/A\",Ref!$B$36,INDEX(Ranks!$1:$1048576,$A389,CM$1))","v":""},{"$f":"IF($A389=\"N/A\",Ref!$B$36,INDEX(Ranks!$1:$1048576,$A389,CN$1))","v":""},{"$f":"IF($A389=\"N/A\",Ref!$B$36,INDEX(Ranks!$1:$1048576,$A389,CO$1))","v":""},{"$f":"IF($A389=\"N/A\",Ref!$B$36,INDEX(Ranks!$1:$1048576,$A389,CP$1))","v":""},{"$f":"IF($A389=\"N/A\",Ref!$B$36,INDEX(Ranks!$1:$1048576,$A389,CQ$1))","v":""},{"$f":"IF($A389=\"N/A\",Ref!$B$36,INDEX(Ranks!$1:$1048576,$A389,CR$1))","v":""},{"$f":"IF($A389=\"N/A\",Ref!$B$36,INDEX(Ranks!$1:$1048576,$A389,CS$1))","v":""},{"$f":"IF($A389=\"N/A\",Ref!$B$36,INDEX(Ranks!$1:$1048576,$A389,CT$1))","v":""},{"$f":"IF($A389=\"N/A\",Ref!$B$36,INDEX(Ranks!$1:$1048576,$A389,CU$1))","v":""},{"$f":"IF($A389=\"N/A\",Ref!$B$36,INDEX(Ranks!$1:$1048576,$A389,CV$1))","v":""},{"$f":"IF($A389=\"N/A\",Ref!$B$36,INDEX(Ranks!$1:$1048576,$A389,CW$1))","v":""},{"$f":"IF($A389=\"N/A\",Ref!$B$36,INDEX(Ranks!$1:$1048576,$A389,CX$1))","v":""},{"$f":"IF($A389=\"N/A\",Ref!$B$36,INDEX(Ranks!$1:$1048576,$A389,CY$1))","v":""},{"$f":"IF($A389=\"N/A\",Ref!$B$36,INDEX(Ranks!$1:$1048576,$A389,CZ$1))","v":""},{"$f":"IF($A389=\"N/A\",Ref!$B$36,INDEX(Ranks!$1:$1048576,$A389,DA$1))","v":""},{"$f":"IF($A389=\"N/A\",Ref!$B$36,INDEX(Ranks!$1:$1048576,$A389,DB$1))","v":""},{"$f":"IF($A389=\"N/A\",Ref!$B$36,INDEX(Ranks!$1:$1048576,$A389,DC$1))","v":""},{"$f":"IF($A389=\"N/A\",Ref!$B$36,INDEX(Ranks!$1:$1048576,$A389,DD$1))","v":""},{"$f":"IF($A389=\"N/A\",Ref!$B$36,INDEX(Ranks!$1:$1048576,$A389,DE$1))","v":""},{"$f":"IF($A389=\"N/A\",Ref!$B$36,INDEX(Ranks!$1:$1048576,$A389,DF$1))","v":""},{"$f":"IF($A389=\"N/A\",Ref!$B$36,INDEX(Ranks!$1:$1048576,$A389,DG$1))","v":""},{"$f":"IF($A389=\"N/A\",Ref!$B$36,INDEX(Ranks!$1:$1048576,$A389,DH$1))","v":""},{"$f":"IF($A389=\"N/A\",Ref!$B$36,INDEX(Ranks!$1:$1048576,$A389,DI$1))","v":""},{"$f":"IF($A389=\"N/A\",Ref!$B$36,INDEX(Ranks!$1:$1048576,$A389,DJ$1))","v":""},{"$f":"IF($A389=\"N/A\",Ref!$B$36,INDEX(Ranks!$1:$1048576,$A389,DK$1))","v":""},{"$f":"IF($A389=\"N/A\",Ref!$B$36,INDEX(Ranks!$1:$1048576,$A389,DL$1))","v":""},{"$f":"IF($A389=\"N/A\",Ref!$B$36,INDEX(Ranks!$1:$1048576,$A389,DM$1))","v":""},{"$f":"IF($A389=\"N/A\",Ref!$B$36,INDEX(Ranks!$1:$1048576,$A389,DN$1))","v":""},{"$f":"IF($A389=\"N/A\",Ref!$B$36,INDEX(Ranks!$1:$1048576,$A389,DO$1))","v":""},{"$f":"IF($A389=\"N/A\",Ref!$B$36,INDEX(Ranks!$1:$1048576,$A389,DP$1))","v":""},{"$f":"IF($A389=\"N/A\",Ref!$B$36,INDEX(Ranks!$1:$1048576,$A389,DQ$1))","v":""},{"$f":"IF($A389=\"N/A\",Ref!$B$36,INDEX(Ranks!$1:$1048576,$A389,DR$1))","v":""},{"$f":"IF($A389=\"N/A\",Ref!$B$36,INDEX(Ranks!$1:$1048576,$A389,DS$1))","v":""},{"$f":"IF($A389=\"N/A\",Ref!$B$36,INDEX(Ranks!$1:$1048576,$A389,DT$1))","v":""},{"$f":"IF($A389=\"N/A\",Ref!$B$36,INDEX(Ranks!$1:$1048576,$A389,DU$1))","v":""},{"$f":"IF($A389=\"N/A\",Ref!$B$36,INDEX(Ranks!$1:$1048576,$A389,DV$1))","v":""},{"$f":"IF($A389=\"N/A\",Ref!$B$36,INDEX(Ranks!$1:$1048576,$A389,DW$1))","v":""},{"$f":"IF($A389=\"N/A\",Ref!$B$36,INDEX(Ranks!$1:$1048576,$A389,DX$1))","v":""},{"$f":"IF($A389=\"N/A\",Ref!$B$36,INDEX(Ranks!$1:$1048576,$A389,DY$1))","v":""},{"$f":"IF($A389=\"N/A\",Ref!$B$36,INDEX(Ranks!$1:$1048576,$A389,DZ$1))","v":""},{"$f":"IF($A389=\"N/A\",Ref!$B$36,INDEX(Ranks!$1:$1048576,$A389,EA$1))","v":""},{"$f":"IF($A389=\"N/A\",Ref!$B$36,INDEX(Ranks!$1:$1048576,$A389,EB$1))","v":""}]
[{"$f":"IFERROR(MATCH('Portfolio Page'!L390,Ranks!L:L,0),\"N/A\")","v":"N/A"},null,{"$f":"IF($A390=\"N/A\",\"\",INDEX(Ranks!$1:$1048576,$A390,C$1))","v":""},{"$f":"IF($A390=\"N/A\",Ref!$B$36,INDEX(Ranks!$1:$1048576,$A390,D$1))","v":""},{"$f":"IF($A390=\"N/A\",Ref!$B$36,INDEX(Ranks!$1:$1048576,$A390,E$1))","v":""},{"$f":"IF($A390=\"N/A\",\"\",INDEX(Ranks!$1:$1048576,$A390,F$1))","v":""},{"$f":"IF($A390=\"N/A\",\"\",INDEX(Ranks!$1:$1048576,$A390,G$1))","v":""},{"$f":"IF($A390=\"N/A\",\"\",INDEX(Ranks!$1:$1048576,$A390,H$1))","v":""},{"$f":"IF($A390=\"N/A\",\"\",INDEX(Ranks!$1:$1048576,$A390,I$1))","v":""},{"$f":"IF($A390=\"N/A\",\"\",INDEX(Ranks!$1:$1048576,$A390,J$1))","v":""},{"$f":"IF($A390=\"N/A\",\"\",INDEX(Ranks!$1:$1048576,$A390,K$1))","v":""},null,{"$f":"IF($A390=\"N/A\",Ref!$B$36,INDEX(Ranks!$1:$1048576,$A390,M$1))","v":""},{"$f":"IF($A390=\"N/A\",Ref!$B$36,INDEX(Ranks!$1:$1048576,$A390,N$1))","v":""},{"$f":"IF($A390=\"N/A\",Ref!$B$36,INDEX(Ranks!$1:$1048576,$A390,O$1))","v":""},{"$f":"IF($A390=\"N/A\",Ref!$B$36,INDEX(Ranks!$1:$1048576,$A390,P$1))","v":""},{"$f":"IF($A390=\"N/A\",Ref!$B$36,INDEX(Ranks!$1:$1048576,$A390,Q$1))","v":""},{"$f":"IF($A390=\"N/A\",Ref!$B$36,INDEX(Ranks!$1:$1048576,$A390,R$1))","v":""},{"$f":"IF($A390=\"N/A\",Ref!$B$36,INDEX(Ranks!$1:$1048576,$A390,S$1))","v":""},{"$f":"IF($A390=\"N/A\",Ref!$B$36,INDEX(Ranks!$1:$1048576,$A390,T$1))","v":""},{"$f":"IF($A390=\"N/A\",Ref!$B$36,INDEX(Ranks!$1:$1048576,$A390,U$1))","v":""},{"$f":"IF($A390=\"N/A\",Ref!$B$36,INDEX(Ranks!$1:$1048576,$A390,V$1))","v":""},{"$f":"IF($A390=\"N/A\",Ref!$B$36,INDEX(Ranks!$1:$1048576,$A390,W$1))","v":""},{"$f":"IF($A390=\"N/A\",Ref!$B$36,INDEX(Ranks!$1:$1048576,$A390,X$1))","v":""},{"$f":"IF($A390=\"N/A\",Ref!$B$36,INDEX(Ranks!$1:$1048576,$A390,Y$1))","v":""},{"$f":"IF($A390=\"N/A\",Ref!$B$36,INDEX(Ranks!$1:$1048576,$A390,Z$1))","v":""},{"$f":"IF($A390=\"N/A\",Ref!$B$36,INDEX(Ranks!$1:$1048576,$A390,AA$1))","v":""},{"$f":"IF($A390=\"N/A\",Ref!$B$36,INDEX(Ranks!$1:$1048576,$A390,AB$1))","v":""},{"$f":"IF($A390=\"N/A\",Ref!$B$36,INDEX(Ranks!$1:$1048576,$A390,AC$1))","v":""},{"$f":"IF($A390=\"N/A\",Ref!$B$36,INDEX(Ranks!$1:$1048576,$A390,AD$1))","v":""},{"$f":"IF($A390=\"N/A\",Ref!$B$36,INDEX(Ranks!$1:$1048576,$A390,AE$1))","v":""},{"$f":"IF($A390=\"N/A\",Ref!$B$36,INDEX(Ranks!$1:$1048576,$A390,AF$1))","v":""},{"$f":"IF($A390=\"N/A\",Ref!$B$36,INDEX(Ranks!$1:$1048576,$A390,AG$1))","v":""},{"$f":"IF($A390=\"N/A\",Ref!$B$36,INDEX(Ranks!$1:$1048576,$A390,AH$1))","v":""},{"$f":"IF($A390=\"N/A\",Ref!$B$36,INDEX(Ranks!$1:$1048576,$A390,AI$1))","v":""},{"$f":"IF($A390=\"N/A\",Ref!$B$36,INDEX(Ranks!$1:$1048576,$A390,AJ$1))","v":""},{"$f":"IF($A390=\"N/A\",Ref!$B$36,INDEX(Ranks!$1:$1048576,$A390,AK$1))","v":""},{"$f":"IF($A390=\"N/A\",Ref!$B$36,INDEX(Ranks!$1:$1048576,$A390,AL$1))","v":""},{"$f":"IF($A390=\"N/A\",Ref!$B$36,INDEX(Ranks!$1:$1048576,$A390,AM$1))","v":""},{"$f":"IF($A390=\"N/A\",Ref!$B$36,INDEX(Ranks!$1:$1048576,$A390,AN$1))","v":""},{"$f":"IF($A390=\"N/A\",Ref!$B$36,INDEX(Ranks!$1:$1048576,$A390,AO$1))","v":""},{"$f":"IF($A390=\"N/A\",Ref!$B$36,INDEX(Ranks!$1:$1048576,$A390,AP$1))","v":""},{"$f":"IF($A390=\"N/A\",Ref!$B$36,INDEX(Ranks!$1:$1048576,$A390,AQ$1))","v":""},{"$f":"IF($A390=\"N/A\",Ref!$B$36,INDEX(Ranks!$1:$1048576,$A390,AR$1))","v":""},{"$f":"IF($A390=\"N/A\",Ref!$B$36,INDEX(Ranks!$1:$1048576,$A390,AS$1))","v":""},{"$f":"IF($A390=\"N/A\",Ref!$B$36,INDEX(Ranks!$1:$1048576,$A390,AT$1))","v":""},{"$f":"IF($A390=\"N/A\",Ref!$B$36,INDEX(Ranks!$1:$1048576,$A390,AU$1))","v":""},{"$f":"IF($A390=\"N/A\",Ref!$B$36,INDEX(Ranks!$1:$1048576,$A390,AV$1))","v":""},{"$f":"IF($A390=\"N/A\",Ref!$B$36,INDEX(Ranks!$1:$1048576,$A390,AW$1))","v":""},{"$f":"IF($A390=\"N/A\",Ref!$B$36,INDEX(Ranks!$1:$1048576,$A390,AX$1))","v":""},{"$f":"IF($A390=\"N/A\",Ref!$B$36,INDEX(Ranks!$1:$1048576,$A390,AY$1))","v":""},{"$f":"IF($A390=\"N/A\",Ref!$B$36,INDEX(Ranks!$1:$1048576,$A390,AZ$1))","v":""},{"$f":"IF($A390=\"N/A\",Ref!$B$36,INDEX(Ranks!$1:$1048576,$A390,BA$1))","v":""},{"$f":"IF($A390=\"N/A\",Ref!$B$36,INDEX(Ranks!$1:$1048576,$A390,BB$1))","v":""},{"$f":"IF($A390=\"N/A\",Ref!$B$36,INDEX(Ranks!$1:$1048576,$A390,BC$1))","v":""},{"$f":"IF($A390=\"N/A\",Ref!$B$36,INDEX(Ranks!$1:$1048576,$A390,BD$1))","v":""},{"$f":"IF($A390=\"N/A\",Ref!$B$36,INDEX(Ranks!$1:$1048576,$A390,BE$1))","v":""},{"$f":"IF($A390=\"N/A\",Ref!$B$36,INDEX(Ranks!$1:$1048576,$A390,BF$1))","v":""},{"$f":"IF($A390=\"N/A\",Ref!$B$36,INDEX(Ranks!$1:$1048576,$A390,BG$1))","v":""},{"$f":"IF($A390=\"N/A\",Ref!$B$36,INDEX(Ranks!$1:$1048576,$A390,BH$1))","v":""},{"$f":"IF($A390=\"N/A\",Ref!$B$36,INDEX(Ranks!$1:$1048576,$A390,BI$1))","v":""},{"$f":"IF($A390=\"N/A\",Ref!$B$36,INDEX(Ranks!$1:$1048576,$A390,BJ$1))","v":""},{"$f":"IF($A390=\"N/A\",Ref!$B$36,INDEX(Ranks!$1:$1048576,$A390,BK$1))","v":""},{"$f":"IF($A390=\"N/A\",Ref!$B$36,INDEX(Ranks!$1:$1048576,$A390,BL$1))","v":""},{"$f":"IF($A390=\"N/A\",Ref!$B$36,INDEX(Ranks!$1:$1048576,$A390,BM$1))","v":""},{"$f":"IF($A390=\"N/A\",Ref!$B$36,INDEX(Ranks!$1:$1048576,$A390,BN$1))","v":""},{"$f":"IF($A390=\"N/A\",Ref!$B$36,INDEX(Ranks!$1:$1048576,$A390,BO$1))","v":""},{"$f":"IF($A390=\"N/A\",Ref!$B$36,INDEX(Ranks!$1:$1048576,$A390,BP$1))","v":""},{"$f":"IF($A390=\"N/A\",Ref!$B$36,INDEX(Ranks!$1:$1048576,$A390,BQ$1))","v":""},{"$f":"IF($A390=\"N/A\",Ref!$B$36,INDEX(Ranks!$1:$1048576,$A390,BR$1))","v":""},{"$f":"IF($A390=\"N/A\",Ref!$B$36,INDEX(Ranks!$1:$1048576,$A390,BS$1))","v":""},{"$f":"IF($A390=\"N/A\",Ref!$B$36,INDEX(Ranks!$1:$1048576,$A390,BT$1))","v":""},{"$f":"IF($A390=\"N/A\",Ref!$B$36,INDEX(Ranks!$1:$1048576,$A390,BU$1))","v":""},{"$f":"IF($A390=\"N/A\",Ref!$B$36,INDEX(Ranks!$1:$1048576,$A390,BV$1))","v":""},{"$f":"IF($A390=\"N/A\",Ref!$B$36,INDEX(Ranks!$1:$1048576,$A390,BW$1))","v":""},{"$f":"IF($A390=\"N/A\",Ref!$B$36,INDEX(Ranks!$1:$1048576,$A390,BX$1))","v":""},{"$f":"IF($A390=\"N/A\",Ref!$B$36,INDEX(Ranks!$1:$1048576,$A390,BY$1))","v":""},{"$f":"IF($A390=\"N/A\",Ref!$B$36,INDEX(Ranks!$1:$1048576,$A390,BZ$1))","v":""},{"$f":"IF($A390=\"N/A\",Ref!$B$36,INDEX(Ranks!$1:$1048576,$A390,CA$1))","v":""},{"$f":"IF($A390=\"N/A\",Ref!$B$36,INDEX(Ranks!$1:$1048576,$A390,CB$1))","v":""},{"$f":"IF($A390=\"N/A\",Ref!$B$36,INDEX(Ranks!$1:$1048576,$A390,CC$1))","v":""},{"$f":"IF($A390=\"N/A\",Ref!$B$36,INDEX(Ranks!$1:$1048576,$A390,CD$1))","v":""},{"$f":"IF($A390=\"N/A\",Ref!$B$36,INDEX(Ranks!$1:$1048576,$A390,CE$1))","v":""},{"$f":"IF($A390=\"N/A\",Ref!$B$36,INDEX(Ranks!$1:$1048576,$A390,CF$1))","v":""},{"$f":"IF($A390=\"N/A\",Ref!$B$36,INDEX(Ranks!$1:$1048576,$A390,CG$1))","v":""},{"$f":"IF($A390=\"N/A\",Ref!$B$36,INDEX(Ranks!$1:$1048576,$A390,CH$1))","v":""},{"$f":"IF($A390=\"N/A\",Ref!$B$36,INDEX(Ranks!$1:$1048576,$A390,CI$1))","v":""},{"$f":"IF($A390=\"N/A\",Ref!$B$36,INDEX(Ranks!$1:$1048576,$A390,CJ$1))","v":""},{"$f":"IF($A390=\"N/A\",Ref!$B$36,INDEX(Ranks!$1:$1048576,$A390,CK$1))","v":""},{"$f":"IF($A390=\"N/A\",Ref!$B$36,INDEX(Ranks!$1:$1048576,$A390,CL$1))","v":""},{"$f":"IF($A390=\"N/A\",Ref!$B$36,INDEX(Ranks!$1:$1048576,$A390,CM$1))","v":""},{"$f":"IF($A390=\"N/A\",Ref!$B$36,INDEX(Ranks!$1:$1048576,$A390,CN$1))","v":""},{"$f":"IF($A390=\"N/A\",Ref!$B$36,INDEX(Ranks!$1:$1048576,$A390,CO$1))","v":""},{"$f":"IF($A390=\"N/A\",Ref!$B$36,INDEX(Ranks!$1:$1048576,$A390,CP$1))","v":""},{"$f":"IF($A390=\"N/A\",Ref!$B$36,INDEX(Ranks!$1:$1048576,$A390,CQ$1))","v":""},{"$f":"IF($A390=\"N/A\",Ref!$B$36,INDEX(Ranks!$1:$1048576,$A390,CR$1))","v":""},{"$f":"IF($A390=\"N/A\",Ref!$B$36,INDEX(Ranks!$1:$1048576,$A390,CS$1))","v":""},{"$f":"IF($A390=\"N/A\",Ref!$B$36,INDEX(Ranks!$1:$1048576,$A390,CT$1))","v":""},{"$f":"IF($A390=\"N/A\",Ref!$B$36,INDEX(Ranks!$1:$1048576,$A390,CU$1))","v":""},{"$f":"IF($A390=\"N/A\",Ref!$B$36,INDEX(Ranks!$1:$1048576,$A390,CV$1))","v":""},{"$f":"IF($A390=\"N/A\",Ref!$B$36,INDEX(Ranks!$1:$1048576,$A390,CW$1))","v":""},{"$f":"IF($A390=\"N/A\",Ref!$B$36,INDEX(Ranks!$1:$1048576,$A390,CX$1))","v":""},{"$f":"IF($A390=\"N/A\",Ref!$B$36,INDEX(Ranks!$1:$1048576,$A390,CY$1))","v":""},{"$f":"IF($A390=\"N/A\",Ref!$B$36,INDEX(Ranks!$1:$1048576,$A390,CZ$1))","v":""},{"$f":"IF($A390=\"N/A\",Ref!$B$36,INDEX(Ranks!$1:$1048576,$A390,DA$1))","v":""},{"$f":"IF($A390=\"N/A\",Ref!$B$36,INDEX(Ranks!$1:$1048576,$A390,DB$1))","v":""},{"$f":"IF($A390=\"N/A\",Ref!$B$36,INDEX(Ranks!$1:$1048576,$A390,DC$1))","v":""},{"$f":"IF($A390=\"N/A\",Ref!$B$36,INDEX(Ranks!$1:$1048576,$A390,DD$1))","v":""},{"$f":"IF($A390=\"N/A\",Ref!$B$36,INDEX(Ranks!$1:$1048576,$A390,DE$1))","v":""},{"$f":"IF($A390=\"N/A\",Ref!$B$36,INDEX(Ranks!$1:$1048576,$A390,DF$1))","v":""},{"$f":"IF($A390=\"N/A\",Ref!$B$36,INDEX(Ranks!$1:$1048576,$A390,DG$1))","v":""},{"$f":"IF($A390=\"N/A\",Ref!$B$36,INDEX(Ranks!$1:$1048576,$A390,DH$1))","v":""},{"$f":"IF($A390=\"N/A\",Ref!$B$36,INDEX(Ranks!$1:$1048576,$A390,DI$1))","v":""},{"$f":"IF($A390=\"N/A\",Ref!$B$36,INDEX(Ranks!$1:$1048576,$A390,DJ$1))","v":""},{"$f":"IF($A390=\"N/A\",Ref!$B$36,INDEX(Ranks!$1:$1048576,$A390,DK$1))","v":""},{"$f":"IF($A390=\"N/A\",Ref!$B$36,INDEX(Ranks!$1:$1048576,$A390,DL$1))","v":""},{"$f":"IF($A390=\"N/A\",Ref!$B$36,INDEX(Ranks!$1:$1048576,$A390,DM$1))","v":""},{"$f":"IF($A390=\"N/A\",Ref!$B$36,INDEX(Ranks!$1:$1048576,$A390,DN$1))","v":""},{"$f":"IF($A390=\"N/A\",Ref!$B$36,INDEX(Ranks!$1:$1048576,$A390,DO$1))","v":""},{"$f":"IF($A390=\"N/A\",Ref!$B$36,INDEX(Ranks!$1:$1048576,$A390,DP$1))","v":""},{"$f":"IF($A390=\"N/A\",Ref!$B$36,INDEX(Ranks!$1:$1048576,$A390,DQ$1))","v":""},{"$f":"IF($A390=\"N/A\",Ref!$B$36,INDEX(Ranks!$1:$1048576,$A390,DR$1))","v":""},{"$f":"IF($A390=\"N/A\",Ref!$B$36,INDEX(Ranks!$1:$1048576,$A390,DS$1))","v":""},{"$f":"IF($A390=\"N/A\",Ref!$B$36,INDEX(Ranks!$1:$1048576,$A390,DT$1))","v":""},{"$f":"IF($A390=\"N/A\",Ref!$B$36,INDEX(Ranks!$1:$1048576,$A390,DU$1))","v":""},{"$f":"IF($A390=\"N/A\",Ref!$B$36,INDEX(Ranks!$1:$1048576,$A390,DV$1))","v":""},{"$f":"IF($A390=\"N/A\",Ref!$B$36,INDEX(Ranks!$1:$1048576,$A390,DW$1))","v":""},{"$f":"IF($A390=\"N/A\",Ref!$B$36,INDEX(Ranks!$1:$1048576,$A390,DX$1))","v":""},{"$f":"IF($A390=\"N/A\",Ref!$B$36,INDEX(Ranks!$1:$1048576,$A390,DY$1))","v":""},{"$f":"IF($A390=\"N/A\",Ref!$B$36,INDEX(Ranks!$1:$1048576,$A390,DZ$1))","v":""},{"$f":"IF($A390=\"N/A\",Ref!$B$36,INDEX(Ranks!$1:$1048576,$A390,EA$1))","v":""},{"$f":"IF($A390=\"N/A\",Ref!$B$36,INDEX(Ranks!$1:$1048576,$A390,EB$1))","v":""}]
[{"$f":"IFERROR(MATCH('Portfolio Page'!L391,Ranks!L:L,0),\"N/A\")","v":"N/A"},null,{"$f":"IF($A391=\"N/A\",\"\",INDEX(Ranks!$1:$1048576,$A391,C$1))","v":""},{"$f":"IF($A391=\"N/A\",Ref!$B$36,INDEX(Ranks!$1:$1048576,$A391,D$1))","v":""},{"$f":"IF($A391=\"N/A\",Ref!$B$36,INDEX(Ranks!$1:$1048576,$A391,E$1))","v":""},{"$f":"IF($A391=\"N/A\",\"\",INDEX(Ranks!$1:$1048576,$A391,F$1))","v":""},{"$f":"IF($A391=\"N/A\",\"\",INDEX(Ranks!$1:$1048576,$A391,G$1))","v":""},{"$f":"IF($A391=\"N/A\",\"\",INDEX(Ranks!$1:$1048576,$A391,H$1))","v":""},{"$f":"IF($A391=\"N/A\",\"\",INDEX(Ranks!$1:$1048576,$A391,I$1))","v":""},{"$f":"IF($A391=\"N/A\",\"\",INDEX(Ranks!$1:$1048576,$A391,J$1))","v":""},{"$f":"IF($A391=\"N/A\",\"\",INDEX(Ranks!$1:$1048576,$A391,K$1))","v":""},null,{"$f":"IF($A391=\"N/A\",Ref!$B$36,INDEX(Ranks!$1:$1048576,$A391,M$1))","v":""},{"$f":"IF($A391=\"N/A\",Ref!$B$36,INDEX(Ranks!$1:$1048576,$A391,N$1))","v":""},{"$f":"IF($A391=\"N/A\",Ref!$B$36,INDEX(Ranks!$1:$1048576,$A391,O$1))","v":""},{"$f":"IF($A391=\"N/A\",Ref!$B$36,INDEX(Ranks!$1:$1048576,$A391,P$1))","v":""},{"$f":"IF($A391=\"N/A\",Ref!$B$36,INDEX(Ranks!$1:$1048576,$A391,Q$1))","v":""},{"$f":"IF($A391=\"N/A\",Ref!$B$36,INDEX(Ranks!$1:$1048576,$A391,R$1))","v":""},{"$f":"IF($A391=\"N/A\",Ref!$B$36,INDEX(Ranks!$1:$1048576,$A391,S$1))","v":""},{"$f":"IF($A391=\"N/A\",Ref!$B$36,INDEX(Ranks!$1:$1048576,$A391,T$1))","v":""},{"$f":"IF($A391=\"N/A\",Ref!$B$36,INDEX(Ranks!$1:$1048576,$A391,U$1))","v":""},{"$f":"IF($A391=\"N/A\",Ref!$B$36,INDEX(Ranks!$1:$1048576,$A391,V$1))","v":""},{"$f":"IF($A391=\"N/A\",Ref!$B$36,INDEX(Ranks!$1:$1048576,$A391,W$1))","v":""},{"$f":"IF($A391=\"N/A\",Ref!$B$36,INDEX(Ranks!$1:$1048576,$A391,X$1))","v":""},{"$f":"IF($A391=\"N/A\",Ref!$B$36,INDEX(Ranks!$1:$1048576,$A391,Y$1))","v":""},{"$f":"IF($A391=\"N/A\",Ref!$B$36,INDEX(Ranks!$1:$1048576,$A391,Z$1))","v":""},{"$f":"IF($A391=\"N/A\",Ref!$B$36,INDEX(Ranks!$1:$1048576,$A391,AA$1))","v":""},{"$f":"IF($A391=\"N/A\",Ref!$B$36,INDEX(Ranks!$1:$1048576,$A391,AB$1))","v":""},{"$f":"IF($A391=\"N/A\",Ref!$B$36,INDEX(Ranks!$1:$1048576,$A391,AC$1))","v":""},{"$f":"IF($A391=\"N/A\",Ref!$B$36,INDEX(Ranks!$1:$1048576,$A391,AD$1))","v":""},{"$f":"IF($A391=\"N/A\",Ref!$B$36,INDEX(Ranks!$1:$1048576,$A391,AE$1))","v":""},{"$f":"IF($A391=\"N/A\",Ref!$B$36,INDEX(Ranks!$1:$1048576,$A391,AF$1))","v":""},{"$f":"IF($A391=\"N/A\",Ref!$B$36,INDEX(Ranks!$1:$1048576,$A391,AG$1))","v":""},{"$f":"IF($A391=\"N/A\",Ref!$B$36,INDEX(Ranks!$1:$1048576,$A391,AH$1))","v":""},{"$f":"IF($A391=\"N/A\",Ref!$B$36,INDEX(Ranks!$1:$1048576,$A391,AI$1))","v":""},{"$f":"IF($A391=\"N/A\",Ref!$B$36,INDEX(Ranks!$1:$1048576,$A391,AJ$1))","v":""},{"$f":"IF($A391=\"N/A\",Ref!$B$36,INDEX(Ranks!$1:$1048576,$A391,AK$1))","v":""},{"$f":"IF($A391=\"N/A\",Ref!$B$36,INDEX(Ranks!$1:$1048576,$A391,AL$1))","v":""},{"$f":"IF($A391=\"N/A\",Ref!$B$36,INDEX(Ranks!$1:$1048576,$A391,AM$1))","v":""},{"$f":"IF($A391=\"N/A\",Ref!$B$36,INDEX(Ranks!$1:$1048576,$A391,AN$1))","v":""},{"$f":"IF($A391=\"N/A\",Ref!$B$36,INDEX(Ranks!$1:$1048576,$A391,AO$1))","v":""},{"$f":"IF($A391=\"N/A\",Ref!$B$36,INDEX(Ranks!$1:$1048576,$A391,AP$1))","v":""},{"$f":"IF($A391=\"N/A\",Ref!$B$36,INDEX(Ranks!$1:$1048576,$A391,AQ$1))","v":""},{"$f":"IF($A391=\"N/A\",Ref!$B$36,INDEX(Ranks!$1:$1048576,$A391,AR$1))","v":""},{"$f":"IF($A391=\"N/A\",Ref!$B$36,INDEX(Ranks!$1:$1048576,$A391,AS$1))","v":""},{"$f":"IF($A391=\"N/A\",Ref!$B$36,INDEX(Ranks!$1:$1048576,$A391,AT$1))","v":""},{"$f":"IF($A391=\"N/A\",Ref!$B$36,INDEX(Ranks!$1:$1048576,$A391,AU$1))","v":""},{"$f":"IF($A391=\"N/A\",Ref!$B$36,INDEX(Ranks!$1:$1048576,$A391,AV$1))","v":""},{"$f":"IF($A391=\"N/A\",Ref!$B$36,INDEX(Ranks!$1:$1048576,$A391,AW$1))","v":""},{"$f":"IF($A391=\"N/A\",Ref!$B$36,INDEX(Ranks!$1:$1048576,$A391,AX$1))","v":""},{"$f":"IF($A391=\"N/A\",Ref!$B$36,INDEX(Ranks!$1:$1048576,$A391,AY$1))","v":""},{"$f":"IF($A391=\"N/A\",Ref!$B$36,INDEX(Ranks!$1:$1048576,$A391,AZ$1))","v":""},{"$f":"IF($A391=\"N/A\",Ref!$B$36,INDEX(Ranks!$1:$1048576,$A391,BA$1))","v":""},{"$f":"IF($A391=\"N/A\",Ref!$B$36,INDEX(Ranks!$1:$1048576,$A391,BB$1))","v":""},{"$f":"IF($A391=\"N/A\",Ref!$B$36,INDEX(Ranks!$1:$1048576,$A391,BC$1))","v":""},{"$f":"IF($A391=\"N/A\",Ref!$B$36,INDEX(Ranks!$1:$1048576,$A391,BD$1))","v":""},{"$f":"IF($A391=\"N/A\",Ref!$B$36,INDEX(Ranks!$1:$1048576,$A391,BE$1))","v":""},{"$f":"IF($A391=\"N/A\",Ref!$B$36,INDEX(Ranks!$1:$1048576,$A391,BF$1))","v":""},{"$f":"IF($A391=\"N/A\",Ref!$B$36,INDEX(Ranks!$1:$1048576,$A391,BG$1))","v":""},{"$f":"IF($A391=\"N/A\",Ref!$B$36,INDEX(Ranks!$1:$1048576,$A391,BH$1))","v":""},{"$f":"IF($A391=\"N/A\",Ref!$B$36,INDEX(Ranks!$1:$1048576,$A391,BI$1))","v":""},{"$f":"IF($A391=\"N/A\",Ref!$B$36,INDEX(Ranks!$1:$1048576,$A391,BJ$1))","v":""},{"$f":"IF($A391=\"N/A\",Ref!$B$36,INDEX(Ranks!$1:$1048576,$A391,BK$1))","v":""},{"$f":"IF($A391=\"N/A\",Ref!$B$36,INDEX(Ranks!$1:$1048576,$A391,BL$1))","v":""},{"$f":"IF($A391=\"N/A\",Ref!$B$36,INDEX(Ranks!$1:$1048576,$A391,BM$1))","v":""},{"$f":"IF($A391=\"N/A\",Ref!$B$36,INDEX(Ranks!$1:$1048576,$A391,BN$1))","v":""},{"$f":"IF($A391=\"N/A\",Ref!$B$36,INDEX(Ranks!$1:$1048576,$A391,BO$1))","v":""},{"$f":"IF($A391=\"N/A\",Ref!$B$36,INDEX(Ranks!$1:$1048576,$A391,BP$1))","v":""},{"$f":"IF($A391=\"N/A\",Ref!$B$36,INDEX(Ranks!$1:$1048576,$A391,BQ$1))","v":""},{"$f":"IF($A391=\"N/A\",Ref!$B$36,INDEX(Ranks!$1:$1048576,$A391,BR$1))","v":""},{"$f":"IF($A391=\"N/A\",Ref!$B$36,INDEX(Ranks!$1:$1048576,$A391,BS$1))","v":""},{"$f":"IF($A391=\"N/A\",Ref!$B$36,INDEX(Ranks!$1:$1048576,$A391,BT$1))","v":""},{"$f":"IF($A391=\"N/A\",Ref!$B$36,INDEX(Ranks!$1:$1048576,$A391,BU$1))","v":""},{"$f":"IF($A391=\"N/A\",Ref!$B$36,INDEX(Ranks!$1:$1048576,$A391,BV$1))","v":""},{"$f":"IF($A391=\"N/A\",Ref!$B$36,INDEX(Ranks!$1:$1048576,$A391,BW$1))","v":""},{"$f":"IF($A391=\"N/A\",Ref!$B$36,INDEX(Ranks!$1:$1048576,$A391,BX$1))","v":""},{"$f":"IF($A391=\"N/A\",Ref!$B$36,INDEX(Ranks!$1:$1048576,$A391,BY$1))","v":""},{"$f":"IF($A391=\"N/A\",Ref!$B$36,INDEX(Ranks!$1:$1048576,$A391,BZ$1))","v":""},{"$f":"IF($A391=\"N/A\",Ref!$B$36,INDEX(Ranks!$1:$1048576,$A391,CA$1))","v":""},{"$f":"IF($A391=\"N/A\",Ref!$B$36,INDEX(Ranks!$1:$1048576,$A391,CB$1))","v":""},{"$f":"IF($A391=\"N/A\",Ref!$B$36,INDEX(Ranks!$1:$1048576,$A391,CC$1))","v":""},{"$f":"IF($A391=\"N/A\",Ref!$B$36,INDEX(Ranks!$1:$1048576,$A391,CD$1))","v":""},{"$f":"IF($A391=\"N/A\",Ref!$B$36,INDEX(Ranks!$1:$1048576,$A391,CE$1))","v":""},{"$f":"IF($A391=\"N/A\",Ref!$B$36,INDEX(Ranks!$1:$1048576,$A391,CF$1))","v":""},{"$f":"IF($A391=\"N/A\",Ref!$B$36,INDEX(Ranks!$1:$1048576,$A391,CG$1))","v":""},{"$f":"IF($A391=\"N/A\",Ref!$B$36,INDEX(Ranks!$1:$1048576,$A391,CH$1))","v":""},{"$f":"IF($A391=\"N/A\",Ref!$B$36,INDEX(Ranks!$1:$1048576,$A391,CI$1))","v":""},{"$f":"IF($A391=\"N/A\",Ref!$B$36,INDEX(Ranks!$1:$1048576,$A391,CJ$1))","v":""},{"$f":"IF($A391=\"N/A\",Ref!$B$36,INDEX(Ranks!$1:$1048576,$A391,CK$1))","v":""},{"$f":"IF($A391=\"N/A\",Ref!$B$36,INDEX(Ranks!$1:$1048576,$A391,CL$1))","v":""},{"$f":"IF($A391=\"N/A\",Ref!$B$36,INDEX(Ranks!$1:$1048576,$A391,CM$1))","v":""},{"$f":"IF($A391=\"N/A\",Ref!$B$36,INDEX(Ranks!$1:$1048576,$A391,CN$1))","v":""},{"$f":"IF($A391=\"N/A\",Ref!$B$36,INDEX(Ranks!$1:$1048576,$A391,CO$1))","v":""},{"$f":"IF($A391=\"N/A\",Ref!$B$36,INDEX(Ranks!$1:$1048576,$A391,CP$1))","v":""},{"$f":"IF($A391=\"N/A\",Ref!$B$36,INDEX(Ranks!$1:$1048576,$A391,CQ$1))","v":""},{"$f":"IF($A391=\"N/A\",Ref!$B$36,INDEX(Ranks!$1:$1048576,$A391,CR$1))","v":""},{"$f":"IF($A391=\"N/A\",Ref!$B$36,INDEX(Ranks!$1:$1048576,$A391,CS$1))","v":""},{"$f":"IF($A391=\"N/A\",Ref!$B$36,INDEX(Ranks!$1:$1048576,$A391,CT$1))","v":""},{"$f":"IF($A391=\"N/A\",Ref!$B$36,INDEX(Ranks!$1:$1048576,$A391,CU$1))","v":""},{"$f":"IF($A391=\"N/A\",Ref!$B$36,INDEX(Ranks!$1:$1048576,$A391,CV$1))","v":""},{"$f":"IF($A391=\"N/A\",Ref!$B$36,INDEX(Ranks!$1:$1048576,$A391,CW$1))","v":""},{"$f":"IF($A391=\"N/A\",Ref!$B$36,INDEX(Ranks!$1:$1048576,$A391,CX$1))","v":""},{"$f":"IF($A391=\"N/A\",Ref!$B$36,INDEX(Ranks!$1:$1048576,$A391,CY$1))","v":""},{"$f":"IF($A391=\"N/A\",Ref!$B$36,INDEX(Ranks!$1:$1048576,$A391,CZ$1))","v":""},{"$f":"IF($A391=\"N/A\",Ref!$B$36,INDEX(Ranks!$1:$1048576,$A391,DA$1))","v":""},{"$f":"IF($A391=\"N/A\",Ref!$B$36,INDEX(Ranks!$1:$1048576,$A391,DB$1))","v":""},{"$f":"IF($A391=\"N/A\",Ref!$B$36,INDEX(Ranks!$1:$1048576,$A391,DC$1))","v":""},{"$f":"IF($A391=\"N/A\",Ref!$B$36,INDEX(Ranks!$1:$1048576,$A391,DD$1))","v":""},{"$f":"IF($A391=\"N/A\",Ref!$B$36,INDEX(Ranks!$1:$1048576,$A391,DE$1))","v":""},{"$f":"IF($A391=\"N/A\",Ref!$B$36,INDEX(Ranks!$1:$1048576,$A391,DF$1))","v":""},{"$f":"IF($A391=\"N/A\",Ref!$B$36,INDEX(Ranks!$1:$1048576,$A391,DG$1))","v":""},{"$f":"IF($A391=\"N/A\",Ref!$B$36,INDEX(Ranks!$1:$1048576,$A391,DH$1))","v":""},{"$f":"IF($A391=\"N/A\",Ref!$B$36,INDEX(Ranks!$1:$1048576,$A391,DI$1))","v":""},{"$f":"IF($A391=\"N/A\",Ref!$B$36,INDEX(Ranks!$1:$1048576,$A391,DJ$1))","v":""},{"$f":"IF($A391=\"N/A\",Ref!$B$36,INDEX(Ranks!$1:$1048576,$A391,DK$1))","v":""},{"$f":"IF($A391=\"N/A\",Ref!$B$36,INDEX(Ranks!$1:$1048576,$A391,DL$1))","v":""},{"$f":"IF($A391=\"N/A\",Ref!$B$36,INDEX(Ranks!$1:$1048576,$A391,DM$1))","v":""},{"$f":"IF($A391=\"N/A\",Ref!$B$36,INDEX(Ranks!$1:$1048576,$A391,DN$1))","v":""},{"$f":"IF($A391=\"N/A\",Ref!$B$36,INDEX(Ranks!$1:$1048576,$A391,DO$1))","v":""},{"$f":"IF($A391=\"N/A\",Ref!$B$36,INDEX(Ranks!$1:$1048576,$A391,DP$1))","v":""},{"$f":"IF($A391=\"N/A\",Ref!$B$36,INDEX(Ranks!$1:$1048576,$A391,DQ$1))","v":""},{"$f":"IF($A391=\"N/A\",Ref!$B$36,INDEX(Ranks!$1:$1048576,$A391,DR$1))","v":""},{"$f":"IF($A391=\"N/A\",Ref!$B$36,INDEX(Ranks!$1:$1048576,$A391,DS$1))","v":""},{"$f":"IF($A391=\"N/A\",Ref!$B$36,INDEX(Ranks!$1:$1048576,$A391,DT$1))","v":""},{"$f":"IF($A391=\"N/A\",Ref!$B$36,INDEX(Ranks!$1:$1048576,$A391,DU$1))","v":""},{"$f":"IF($A391=\"N/A\",Ref!$B$36,INDEX(Ranks!$1:$1048576,$A391,DV$1))","v":""},{"$f":"IF($A391=\"N/A\",Ref!$B$36,INDEX(Ranks!$1:$1048576,$A391,DW$1))","v":""},{"$f":"IF($A391=\"N/A\",Ref!$B$36,INDEX(Ranks!$1:$1048576,$A391,DX$1))","v":""},{"$f":"IF($A391=\"N/A\",Ref!$B$36,INDEX(Ranks!$1:$1048576,$A391,DY$1))","v":""},{"$f":"IF($A391=\"N/A\",Ref!$B$36,INDEX(Ranks!$1:$1048576,$A391,DZ$1))","v":""},{"$f":"IF($A391=\"N/A\",Ref!$B$36,INDEX(Ranks!$1:$1048576,$A391,EA$1))","v":""},{"$f":"IF($A391=\"N/A\",Ref!$B$36,INDEX(Ranks!$1:$1048576,$A391,EB$1))","v":""}]
[{"$f":"IFERROR(MATCH('Portfolio Page'!L392,Ranks!L:L,0),\"N/A\")","v":"N/A"},null,{"$f":"IF($A392=\"N/A\",\"\",INDEX(Ranks!$1:$1048576,$A392,C$1))","v":""},{"$f":"IF($A392=\"N/A\",Ref!$B$36,INDEX(Ranks!$1:$1048576,$A392,D$1))","v":""},{"$f":"IF($A392=\"N/A\",Ref!$B$36,INDEX(Ranks!$1:$1048576,$A392,E$1))","v":""},{"$f":"IF($A392=\"N/A\",\"\",INDEX(Ranks!$1:$1048576,$A392,F$1))","v":""},{"$f":"IF($A392=\"N/A\",\"\",INDEX(Ranks!$1:$1048576,$A392,G$1))","v":""},{"$f":"IF($A392=\"N/A\",\"\",INDEX(Ranks!$1:$1048576,$A392,H$1))","v":""},{"$f":"IF($A392=\"N/A\",\"\",INDEX(Ranks!$1:$1048576,$A392,I$1))","v":""},{"$f":"IF($A392=\"N/A\",\"\",INDEX(Ranks!$1:$1048576,$A392,J$1))","v":""},{"$f":"IF($A392=\"N/A\",\"\",INDEX(Ranks!$1:$1048576,$A392,K$1))","v":""},null,{"$f":"IF($A392=\"N/A\",Ref!$B$36,INDEX(Ranks!$1:$1048576,$A392,M$1))","v":""},{"$f":"IF($A392=\"N/A\",Ref!$B$36,INDEX(Ranks!$1:$1048576,$A392,N$1))","v":""},{"$f":"IF($A392=\"N/A\",Ref!$B$36,INDEX(Ranks!$1:$1048576,$A392,O$1))","v":""},{"$f":"IF($A392=\"N/A\",Ref!$B$36,INDEX(Ranks!$1:$1048576,$A392,P$1))","v":""},{"$f":"IF($A392=\"N/A\",Ref!$B$36,INDEX(Ranks!$1:$1048576,$A392,Q$1))","v":""},{"$f":"IF($A392=\"N/A\",Ref!$B$36,INDEX(Ranks!$1:$1048576,$A392,R$1))","v":""},{"$f":"IF($A392=\"N/A\",Ref!$B$36,INDEX(Ranks!$1:$1048576,$A392,S$1))","v":""},{"$f":"IF($A392=\"N/A\",Ref!$B$36,INDEX(Ranks!$1:$1048576,$A392,T$1))","v":""},{"$f":"IF($A392=\"N/A\",Ref!$B$36,INDEX(Ranks!$1:$1048576,$A392,U$1))","v":""},{"$f":"IF($A392=\"N/A\",Ref!$B$36,INDEX(Ranks!$1:$1048576,$A392,V$1))","v":""},{"$f":"IF($A392=\"N/A\",Ref!$B$36,INDEX(Ranks!$1:$1048576,$A392,W$1))","v":""},{"$f":"IF($A392=\"N/A\",Ref!$B$36,INDEX(Ranks!$1:$1048576,$A392,X$1))","v":""},{"$f":"IF($A392=\"N/A\",Ref!$B$36,INDEX(Ranks!$1:$1048576,$A392,Y$1))","v":""},{"$f":"IF($A392=\"N/A\",Ref!$B$36,INDEX(Ranks!$1:$1048576,$A392,Z$1))","v":""},{"$f":"IF($A392=\"N/A\",Ref!$B$36,INDEX(Ranks!$1:$1048576,$A392,AA$1))","v":""},{"$f":"IF($A392=\"N/A\",Ref!$B$36,INDEX(Ranks!$1:$1048576,$A392,AB$1))","v":""},{"$f":"IF($A392=\"N/A\",Ref!$B$36,INDEX(Ranks!$1:$1048576,$A392,AC$1))","v":""},{"$f":"IF($A392=\"N/A\",Ref!$B$36,INDEX(Ranks!$1:$1048576,$A392,AD$1))","v":""},{"$f":"IF($A392=\"N/A\",Ref!$B$36,INDEX(Ranks!$1:$1048576,$A392,AE$1))","v":""},{"$f":"IF($A392=\"N/A\",Ref!$B$36,INDEX(Ranks!$1:$1048576,$A392,AF$1))","v":""},{"$f":"IF($A392=\"N/A\",Ref!$B$36,INDEX(Ranks!$1:$1048576,$A392,AG$1))","v":""},{"$f":"IF($A392=\"N/A\",Ref!$B$36,INDEX(Ranks!$1:$1048576,$A392,AH$1))","v":""},{"$f":"IF($A392=\"N/A\",Ref!$B$36,INDEX(Ranks!$1:$1048576,$A392,AI$1))","v":""},{"$f":"IF($A392=\"N/A\",Ref!$B$36,INDEX(Ranks!$1:$1048576,$A392,AJ$1))","v":""},{"$f":"IF($A392=\"N/A\",Ref!$B$36,INDEX(Ranks!$1:$1048576,$A392,AK$1))","v":""},{"$f":"IF($A392=\"N/A\",Ref!$B$36,INDEX(Ranks!$1:$1048576,$A392,AL$1))","v":""},{"$f":"IF($A392=\"N/A\",Ref!$B$36,INDEX(Ranks!$1:$1048576,$A392,AM$1))","v":""},{"$f":"IF($A392=\"N/A\",Ref!$B$36,INDEX(Ranks!$1:$1048576,$A392,AN$1))","v":""},{"$f":"IF($A392=\"N/A\",Ref!$B$36,INDEX(Ranks!$1:$1048576,$A392,AO$1))","v":""},{"$f":"IF($A392=\"N/A\",Ref!$B$36,INDEX(Ranks!$1:$1048576,$A392,AP$1))","v":""},{"$f":"IF($A392=\"N/A\",Ref!$B$36,INDEX(Ranks!$1:$1048576,$A392,AQ$1))","v":""},{"$f":"IF($A392=\"N/A\",Ref!$B$36,INDEX(Ranks!$1:$1048576,$A392,AR$1))","v":""},{"$f":"IF($A392=\"N/A\",Ref!$B$36,INDEX(Ranks!$1:$1048576,$A392,AS$1))","v":""},{"$f":"IF($A392=\"N/A\",Ref!$B$36,INDEX(Ranks!$1:$1048576,$A392,AT$1))","v":""},{"$f":"IF($A392=\"N/A\",Ref!$B$36,INDEX(Ranks!$1:$1048576,$A392,AU$1))","v":""},{"$f":"IF($A392=\"N/A\",Ref!$B$36,INDEX(Ranks!$1:$1048576,$A392,AV$1))","v":""},{"$f":"IF($A392=\"N/A\",Ref!$B$36,INDEX(Ranks!$1:$1048576,$A392,AW$1))","v":""},{"$f":"IF($A392=\"N/A\",Ref!$B$36,INDEX(Ranks!$1:$1048576,$A392,AX$1))","v":""},{"$f":"IF($A392=\"N/A\",Ref!$B$36,INDEX(Ranks!$1:$1048576,$A392,AY$1))","v":""},{"$f":"IF($A392=\"N/A\",Ref!$B$36,INDEX(Ranks!$1:$1048576,$A392,AZ$1))","v":""},{"$f":"IF($A392=\"N/A\",Ref!$B$36,INDEX(Ranks!$1:$1048576,$A392,BA$1))","v":""},{"$f":"IF($A392=\"N/A\",Ref!$B$36,INDEX(Ranks!$1:$1048576,$A392,BB$1))","v":""},{"$f":"IF($A392=\"N/A\",Ref!$B$36,INDEX(Ranks!$1:$1048576,$A392,BC$1))","v":""},{"$f":"IF($A392=\"N/A\",Ref!$B$36,INDEX(Ranks!$1:$1048576,$A392,BD$1))","v":""},{"$f":"IF($A392=\"N/A\",Ref!$B$36,INDEX(Ranks!$1:$1048576,$A392,BE$1))","v":""},{"$f":"IF($A392=\"N/A\",Ref!$B$36,INDEX(Ranks!$1:$1048576,$A392,BF$1))","v":""},{"$f":"IF($A392=\"N/A\",Ref!$B$36,INDEX(Ranks!$1:$1048576,$A392,BG$1))","v":""},{"$f":"IF($A392=\"N/A\",Ref!$B$36,INDEX(Ranks!$1:$1048576,$A392,BH$1))","v":""},{"$f":"IF($A392=\"N/A\",Ref!$B$36,INDEX(Ranks!$1:$1048576,$A392,BI$1))","v":""},{"$f":"IF($A392=\"N/A\",Ref!$B$36,INDEX(Ranks!$1:$1048576,$A392,BJ$1))","v":""},{"$f":"IF($A392=\"N/A\",Ref!$B$36,INDEX(Ranks!$1:$1048576,$A392,BK$1))","v":""},{"$f":"IF($A392=\"N/A\",Ref!$B$36,INDEX(Ranks!$1:$1048576,$A392,BL$1))","v":""},{"$f":"IF($A392=\"N/A\",Ref!$B$36,INDEX(Ranks!$1:$1048576,$A392,BM$1))","v":""},{"$f":"IF($A392=\"N/A\",Ref!$B$36,INDEX(Ranks!$1:$1048576,$A392,BN$1))","v":""},{"$f":"IF($A392=\"N/A\",Ref!$B$36,INDEX(Ranks!$1:$1048576,$A392,BO$1))","v":""},{"$f":"IF($A392=\"N/A\",Ref!$B$36,INDEX(Ranks!$1:$1048576,$A392,BP$1))","v":""},{"$f":"IF($A392=\"N/A\",Ref!$B$36,INDEX(Ranks!$1:$1048576,$A392,BQ$1))","v":""},{"$f":"IF($A392=\"N/A\",Ref!$B$36,INDEX(Ranks!$1:$1048576,$A392,BR$1))","v":""},{"$f":"IF($A392=\"N/A\",Ref!$B$36,INDEX(Ranks!$1:$1048576,$A392,BS$1))","v":""},{"$f":"IF($A392=\"N/A\",Ref!$B$36,INDEX(Ranks!$1:$1048576,$A392,BT$1))","v":""},{"$f":"IF($A392=\"N/A\",Ref!$B$36,INDEX(Ranks!$1:$1048576,$A392,BU$1))","v":""},{"$f":"IF($A392=\"N/A\",Ref!$B$36,INDEX(Ranks!$1:$1048576,$A392,BV$1))","v":""},{"$f":"IF($A392=\"N/A\",Ref!$B$36,INDEX(Ranks!$1:$1048576,$A392,BW$1))","v":""},{"$f":"IF($A392=\"N/A\",Ref!$B$36,INDEX(Ranks!$1:$1048576,$A392,BX$1))","v":""},{"$f":"IF($A392=\"N/A\",Ref!$B$36,INDEX(Ranks!$1:$1048576,$A392,BY$1))","v":""},{"$f":"IF($A392=\"N/A\",Ref!$B$36,INDEX(Ranks!$1:$1048576,$A392,BZ$1))","v":""},{"$f":"IF($A392=\"N/A\",Ref!$B$36,INDEX(Ranks!$1:$1048576,$A392,CA$1))","v":""},{"$f":"IF($A392=\"N/A\",Ref!$B$36,INDEX(Ranks!$1:$1048576,$A392,CB$1))","v":""},{"$f":"IF($A392=\"N/A\",Ref!$B$36,INDEX(Ranks!$1:$1048576,$A392,CC$1))","v":""},{"$f":"IF($A392=\"N/A\",Ref!$B$36,INDEX(Ranks!$1:$1048576,$A392,CD$1))","v":""},{"$f":"IF($A392=\"N/A\",Ref!$B$36,INDEX(Ranks!$1:$1048576,$A392,CE$1))","v":""},{"$f":"IF($A392=\"N/A\",Ref!$B$36,INDEX(Ranks!$1:$1048576,$A392,CF$1))","v":""},{"$f":"IF($A392=\"N/A\",Ref!$B$36,INDEX(Ranks!$1:$1048576,$A392,CG$1))","v":""},{"$f":"IF($A392=\"N/A\",Ref!$B$36,INDEX(Ranks!$1:$1048576,$A392,CH$1))","v":""},{"$f":"IF($A392=\"N/A\",Ref!$B$36,INDEX(Ranks!$1:$1048576,$A392,CI$1))","v":""},{"$f":"IF($A392=\"N/A\",Ref!$B$36,INDEX(Ranks!$1:$1048576,$A392,CJ$1))","v":""},{"$f":"IF($A392=\"N/A\",Ref!$B$36,INDEX(Ranks!$1:$1048576,$A392,CK$1))","v":""},{"$f":"IF($A392=\"N/A\",Ref!$B$36,INDEX(Ranks!$1:$1048576,$A392,CL$1))","v":""},{"$f":"IF($A392=\"N/A\",Ref!$B$36,INDEX(Ranks!$1:$1048576,$A392,CM$1))","v":""},{"$f":"IF($A392=\"N/A\",Ref!$B$36,INDEX(Ranks!$1:$1048576,$A392,CN$1))","v":""},{"$f":"IF($A392=\"N/A\",Ref!$B$36,INDEX(Ranks!$1:$1048576,$A392,CO$1))","v":""},{"$f":"IF($A392=\"N/A\",Ref!$B$36,INDEX(Ranks!$1:$1048576,$A392,CP$1))","v":""},{"$f":"IF($A392=\"N/A\",Ref!$B$36,INDEX(Ranks!$1:$1048576,$A392,CQ$1))","v":""},{"$f":"IF($A392=\"N/A\",Ref!$B$36,INDEX(Ranks!$1:$1048576,$A392,CR$1))","v":""},{"$f":"IF($A392=\"N/A\",Ref!$B$36,INDEX(Ranks!$1:$1048576,$A392,CS$1))","v":""},{"$f":"IF($A392=\"N/A\",Ref!$B$36,INDEX(Ranks!$1:$1048576,$A392,CT$1))","v":""},{"$f":"IF($A392=\"N/A\",Ref!$B$36,INDEX(Ranks!$1:$1048576,$A392,CU$1))","v":""},{"$f":"IF($A392=\"N/A\",Ref!$B$36,INDEX(Ranks!$1:$1048576,$A392,CV$1))","v":""},{"$f":"IF($A392=\"N/A\",Ref!$B$36,INDEX(Ranks!$1:$1048576,$A392,CW$1))","v":""},{"$f":"IF($A392=\"N/A\",Ref!$B$36,INDEX(Ranks!$1:$1048576,$A392,CX$1))","v":""},{"$f":"IF($A392=\"N/A\",Ref!$B$36,INDEX(Ranks!$1:$1048576,$A392,CY$1))","v":""},{"$f":"IF($A392=\"N/A\",Ref!$B$36,INDEX(Ranks!$1:$1048576,$A392,CZ$1))","v":""},{"$f":"IF($A392=\"N/A\",Ref!$B$36,INDEX(Ranks!$1:$1048576,$A392,DA$1))","v":""},{"$f":"IF($A392=\"N/A\",Ref!$B$36,INDEX(Ranks!$1:$1048576,$A392,DB$1))","v":""},{"$f":"IF($A392=\"N/A\",Ref!$B$36,INDEX(Ranks!$1:$1048576,$A392,DC$1))","v":""},{"$f":"IF($A392=\"N/A\",Ref!$B$36,INDEX(Ranks!$1:$1048576,$A392,DD$1))","v":""},{"$f":"IF($A392=\"N/A\",Ref!$B$36,INDEX(Ranks!$1:$1048576,$A392,DE$1))","v":""},{"$f":"IF($A392=\"N/A\",Ref!$B$36,INDEX(Ranks!$1:$1048576,$A392,DF$1))","v":""},{"$f":"IF($A392=\"N/A\",Ref!$B$36,INDEX(Ranks!$1:$1048576,$A392,DG$1))","v":""},{"$f":"IF($A392=\"N/A\",Ref!$B$36,INDEX(Ranks!$1:$1048576,$A392,DH$1))","v":""},{"$f":"IF($A392=\"N/A\",Ref!$B$36,INDEX(Ranks!$1:$1048576,$A392,DI$1))","v":""},{"$f":"IF($A392=\"N/A\",Ref!$B$36,INDEX(Ranks!$1:$1048576,$A392,DJ$1))","v":""},{"$f":"IF($A392=\"N/A\",Ref!$B$36,INDEX(Ranks!$1:$1048576,$A392,DK$1))","v":""},{"$f":"IF($A392=\"N/A\",Ref!$B$36,INDEX(Ranks!$1:$1048576,$A392,DL$1))","v":""},{"$f":"IF($A392=\"N/A\",Ref!$B$36,INDEX(Ranks!$1:$1048576,$A392,DM$1))","v":""},{"$f":"IF($A392=\"N/A\",Ref!$B$36,INDEX(Ranks!$1:$1048576,$A392,DN$1))","v":""},{"$f":"IF($A392=\"N/A\",Ref!$B$36,INDEX(Ranks!$1:$1048576,$A392,DO$1))","v":""},{"$f":"IF($A392=\"N/A\",Ref!$B$36,INDEX(Ranks!$1:$1048576,$A392,DP$1))","v":""},{"$f":"IF($A392=\"N/A\",Ref!$B$36,INDEX(Ranks!$1:$1048576,$A392,DQ$1))","v":""},{"$f":"IF($A392=\"N/A\",Ref!$B$36,INDEX(Ranks!$1:$1048576,$A392,DR$1))","v":""},{"$f":"IF($A392=\"N/A\",Ref!$B$36,INDEX(Ranks!$1:$1048576,$A392,DS$1))","v":""},{"$f":"IF($A392=\"N/A\",Ref!$B$36,INDEX(Ranks!$1:$1048576,$A392,DT$1))","v":""},{"$f":"IF($A392=\"N/A\",Ref!$B$36,INDEX(Ranks!$1:$1048576,$A392,DU$1))","v":""},{"$f":"IF($A392=\"N/A\",Ref!$B$36,INDEX(Ranks!$1:$1048576,$A392,DV$1))","v":""},{"$f":"IF($A392=\"N/A\",Ref!$B$36,INDEX(Ranks!$1:$1048576,$A392,DW$1))","v":""},{"$f":"IF($A392=\"N/A\",Ref!$B$36,INDEX(Ranks!$1:$1048576,$A392,DX$1))","v":""},{"$f":"IF($A392=\"N/A\",Ref!$B$36,INDEX(Ranks!$1:$1048576,$A392,DY$1))","v":""},{"$f":"IF($A392=\"N/A\",Ref!$B$36,INDEX(Ranks!$1:$1048576,$A392,DZ$1))","v":""},{"$f":"IF($A392=\"N/A\",Ref!$B$36,INDEX(Ranks!$1:$1048576,$A392,EA$1))","v":""},{"$f":"IF($A392=\"N/A\",Ref!$B$36,INDEX(Ranks!$1:$1048576,$A392,EB$1))","v":""}]
[{"$f":"IFERROR(MATCH('Portfolio Page'!L393,Ranks!L:L,0),\"N/A\")","v":"N/A"},null,{"$f":"IF($A393=\"N/A\",\"\",INDEX(Ranks!$1:$1048576,$A393,C$1))","v":""},{"$f":"IF($A393=\"N/A\",Ref!$B$36,INDEX(Ranks!$1:$1048576,$A393,D$1))","v":""},{"$f":"IF($A393=\"N/A\",Ref!$B$36,INDEX(Ranks!$1:$1048576,$A393,E$1))","v":""},{"$f":"IF($A393=\"N/A\",\"\",INDEX(Ranks!$1:$1048576,$A393,F$1))","v":""},{"$f":"IF($A393=\"N/A\",\"\",INDEX(Ranks!$1:$1048576,$A393,G$1))","v":""},{"$f":"IF($A393=\"N/A\",\"\",INDEX(Ranks!$1:$1048576,$A393,H$1))","v":""},{"$f":"IF($A393=\"N/A\",\"\",INDEX(Ranks!$1:$1048576,$A393,I$1))","v":""},{"$f":"IF($A393=\"N/A\",\"\",INDEX(Ranks!$1:$1048576,$A393,J$1))","v":""},{"$f":"IF($A393=\"N/A\",\"\",INDEX(Ranks!$1:$1048576,$A393,K$1))","v":""},null,{"$f":"IF($A393=\"N/A\",Ref!$B$36,INDEX(Ranks!$1:$1048576,$A393,M$1))","v":""},{"$f":"IF($A393=\"N/A\",Ref!$B$36,INDEX(Ranks!$1:$1048576,$A393,N$1))","v":""},{"$f":"IF($A393=\"N/A\",Ref!$B$36,INDEX(Ranks!$1:$1048576,$A393,O$1))","v":""},{"$f":"IF($A393=\"N/A\",Ref!$B$36,INDEX(Ranks!$1:$1048576,$A393,P$1))","v":""},{"$f":"IF($A393=\"N/A\",Ref!$B$36,INDEX(Ranks!$1:$1048576,$A393,Q$1))","v":""},{"$f":"IF($A393=\"N/A\",Ref!$B$36,INDEX(Ranks!$1:$1048576,$A393,R$1))","v":""},{"$f":"IF($A393=\"N/A\",Ref!$B$36,INDEX(Ranks!$1:$1048576,$A393,S$1))","v":""},{"$f":"IF($A393=\"N/A\",Ref!$B$36,INDEX(Ranks!$1:$1048576,$A393,T$1))","v":""},{"$f":"IF($A393=\"N/A\",Ref!$B$36,INDEX(Ranks!$1:$1048576,$A393,U$1))","v":""},{"$f":"IF($A393=\"N/A\",Ref!$B$36,INDEX(Ranks!$1:$1048576,$A393,V$1))","v":""},{"$f":"IF($A393=\"N/A\",Ref!$B$36,INDEX(Ranks!$1:$1048576,$A393,W$1))","v":""},{"$f":"IF($A393=\"N/A\",Ref!$B$36,INDEX(Ranks!$1:$1048576,$A393,X$1))","v":""},{"$f":"IF($A393=\"N/A\",Ref!$B$36,INDEX(Ranks!$1:$1048576,$A393,Y$1))","v":""},{"$f":"IF($A393=\"N/A\",Ref!$B$36,INDEX(Ranks!$1:$1048576,$A393,Z$1))","v":""},{"$f":"IF($A393=\"N/A\",Ref!$B$36,INDEX(Ranks!$1:$1048576,$A393,AA$1))","v":""},{"$f":"IF($A393=\"N/A\",Ref!$B$36,INDEX(Ranks!$1:$1048576,$A393,AB$1))","v":""},{"$f":"IF($A393=\"N/A\",Ref!$B$36,INDEX(Ranks!$1:$1048576,$A393,AC$1))","v":""},{"$f":"IF($A393=\"N/A\",Ref!$B$36,INDEX(Ranks!$1:$1048576,$A393,AD$1))","v":""},{"$f":"IF($A393=\"N/A\",Ref!$B$36,INDEX(Ranks!$1:$1048576,$A393,AE$1))","v":""},{"$f":"IF($A393=\"N/A\",Ref!$B$36,INDEX(Ranks!$1:$1048576,$A393,AF$1))","v":""},{"$f":"IF($A393=\"N/A\",Ref!$B$36,INDEX(Ranks!$1:$1048576,$A393,AG$1))","v":""},{"$f":"IF($A393=\"N/A\",Ref!$B$36,INDEX(Ranks!$1:$1048576,$A393,AH$1))","v":""},{"$f":"IF($A393=\"N/A\",Ref!$B$36,INDEX(Ranks!$1:$1048576,$A393,AI$1))","v":""},{"$f":"IF($A393=\"N/A\",Ref!$B$36,INDEX(Ranks!$1:$1048576,$A393,AJ$1))","v":""},{"$f":"IF($A393=\"N/A\",Ref!$B$36,INDEX(Ranks!$1:$1048576,$A393,AK$1))","v":""},{"$f":"IF($A393=\"N/A\",Ref!$B$36,INDEX(Ranks!$1:$1048576,$A393,AL$1))","v":""},{"$f":"IF($A393=\"N/A\",Ref!$B$36,INDEX(Ranks!$1:$1048576,$A393,AM$1))","v":""},{"$f":"IF($A393=\"N/A\",Ref!$B$36,INDEX(Ranks!$1:$1048576,$A393,AN$1))","v":""},{"$f":"IF($A393=\"N/A\",Ref!$B$36,INDEX(Ranks!$1:$1048576,$A393,AO$1))","v":""},{"$f":"IF($A393=\"N/A\",Ref!$B$36,INDEX(Ranks!$1:$1048576,$A393,AP$1))","v":""},{"$f":"IF($A393=\"N/A\",Ref!$B$36,INDEX(Ranks!$1:$1048576,$A393,AQ$1))","v":""},{"$f":"IF($A393=\"N/A\",Ref!$B$36,INDEX(Ranks!$1:$1048576,$A393,AR$1))","v":""},{"$f":"IF($A393=\"N/A\",Ref!$B$36,INDEX(Ranks!$1:$1048576,$A393,AS$1))","v":""},{"$f":"IF($A393=\"N/A\",Ref!$B$36,INDEX(Ranks!$1:$1048576,$A393,AT$1))","v":""},{"$f":"IF($A393=\"N/A\",Ref!$B$36,INDEX(Ranks!$1:$1048576,$A393,AU$1))","v":""},{"$f":"IF($A393=\"N/A\",Ref!$B$36,INDEX(Ranks!$1:$1048576,$A393,AV$1))","v":""},{"$f":"IF($A393=\"N/A\",Ref!$B$36,INDEX(Ranks!$1:$1048576,$A393,AW$1))","v":""},{"$f":"IF($A393=\"N/A\",Ref!$B$36,INDEX(Ranks!$1:$1048576,$A393,AX$1))","v":""},{"$f":"IF($A393=\"N/A\",Ref!$B$36,INDEX(Ranks!$1:$1048576,$A393,AY$1))","v":""},{"$f":"IF($A393=\"N/A\",Ref!$B$36,INDEX(Ranks!$1:$1048576,$A393,AZ$1))","v":""},{"$f":"IF($A393=\"N/A\",Ref!$B$36,INDEX(Ranks!$1:$1048576,$A393,BA$1))","v":""},{"$f":"IF($A393=\"N/A\",Ref!$B$36,INDEX(Ranks!$1:$1048576,$A393,BB$1))","v":""},{"$f":"IF($A393=\"N/A\",Ref!$B$36,INDEX(Ranks!$1:$1048576,$A393,BC$1))","v":""},{"$f":"IF($A393=\"N/A\",Ref!$B$36,INDEX(Ranks!$1:$1048576,$A393,BD$1))","v":""},{"$f":"IF($A393=\"N/A\",Ref!$B$36,INDEX(Ranks!$1:$1048576,$A393,BE$1))","v":""},{"$f":"IF($A393=\"N/A\",Ref!$B$36,INDEX(Ranks!$1:$1048576,$A393,BF$1))","v":""},{"$f":"IF($A393=\"N/A\",Ref!$B$36,INDEX(Ranks!$1:$1048576,$A393,BG$1))","v":""},{"$f":"IF($A393=\"N/A\",Ref!$B$36,INDEX(Ranks!$1:$1048576,$A393,BH$1))","v":""},{"$f":"IF($A393=\"N/A\",Ref!$B$36,INDEX(Ranks!$1:$1048576,$A393,BI$1))","v":""},{"$f":"IF($A393=\"N/A\",Ref!$B$36,INDEX(Ranks!$1:$1048576,$A393,BJ$1))","v":""},{"$f":"IF($A393=\"N/A\",Ref!$B$36,INDEX(Ranks!$1:$1048576,$A393,BK$1))","v":""},{"$f":"IF($A393=\"N/A\",Ref!$B$36,INDEX(Ranks!$1:$1048576,$A393,BL$1))","v":""},{"$f":"IF($A393=\"N/A\",Ref!$B$36,INDEX(Ranks!$1:$1048576,$A393,BM$1))","v":""},{"$f":"IF($A393=\"N/A\",Ref!$B$36,INDEX(Ranks!$1:$1048576,$A393,BN$1))","v":""},{"$f":"IF($A393=\"N/A\",Ref!$B$36,INDEX(Ranks!$1:$1048576,$A393,BO$1))","v":""},{"$f":"IF($A393=\"N/A\",Ref!$B$36,INDEX(Ranks!$1:$1048576,$A393,BP$1))","v":""},{"$f":"IF($A393=\"N/A\",Ref!$B$36,INDEX(Ranks!$1:$1048576,$A393,BQ$1))","v":""},{"$f":"IF($A393=\"N/A\",Ref!$B$36,INDEX(Ranks!$1:$1048576,$A393,BR$1))","v":""},{"$f":"IF($A393=\"N/A\",Ref!$B$36,INDEX(Ranks!$1:$1048576,$A393,BS$1))","v":""},{"$f":"IF($A393=\"N/A\",Ref!$B$36,INDEX(Ranks!$1:$1048576,$A393,BT$1))","v":""},{"$f":"IF($A393=\"N/A\",Ref!$B$36,INDEX(Ranks!$1:$1048576,$A393,BU$1))","v":""},{"$f":"IF($A393=\"N/A\",Ref!$B$36,INDEX(Ranks!$1:$1048576,$A393,BV$1))","v":""},{"$f":"IF($A393=\"N/A\",Ref!$B$36,INDEX(Ranks!$1:$1048576,$A393,BW$1))","v":""},{"$f":"IF($A393=\"N/A\",Ref!$B$36,INDEX(Ranks!$1:$1048576,$A393,BX$1))","v":""},{"$f":"IF($A393=\"N/A\",Ref!$B$36,INDEX(Ranks!$1:$1048576,$A393,BY$1))","v":""},{"$f":"IF($A393=\"N/A\",Ref!$B$36,INDEX(Ranks!$1:$1048576,$A393,BZ$1))","v":""},{"$f":"IF($A393=\"N/A\",Ref!$B$36,INDEX(Ranks!$1:$1048576,$A393,CA$1))","v":""},{"$f":"IF($A393=\"N/A\",Ref!$B$36,INDEX(Ranks!$1:$1048576,$A393,CB$1))","v":""},{"$f":"IF($A393=\"N/A\",Ref!$B$36,INDEX(Ranks!$1:$1048576,$A393,CC$1))","v":""},{"$f":"IF($A393=\"N/A\",Ref!$B$36,INDEX(Ranks!$1:$1048576,$A393,CD$1))","v":""},{"$f":"IF($A393=\"N/A\",Ref!$B$36,INDEX(Ranks!$1:$1048576,$A393,CE$1))","v":""},{"$f":"IF($A393=\"N/A\",Ref!$B$36,INDEX(Ranks!$1:$1048576,$A393,CF$1))","v":""},{"$f":"IF($A393=\"N/A\",Ref!$B$36,INDEX(Ranks!$1:$1048576,$A393,CG$1))","v":""},{"$f":"IF($A393=\"N/A\",Ref!$B$36,INDEX(Ranks!$1:$1048576,$A393,CH$1))","v":""},{"$f":"IF($A393=\"N/A\",Ref!$B$36,INDEX(Ranks!$1:$1048576,$A393,CI$1))","v":""},{"$f":"IF($A393=\"N/A\",Ref!$B$36,INDEX(Ranks!$1:$1048576,$A393,CJ$1))","v":""},{"$f":"IF($A393=\"N/A\",Ref!$B$36,INDEX(Ranks!$1:$1048576,$A393,CK$1))","v":""},{"$f":"IF($A393=\"N/A\",Ref!$B$36,INDEX(Ranks!$1:$1048576,$A393,CL$1))","v":""},{"$f":"IF($A393=\"N/A\",Ref!$B$36,INDEX(Ranks!$1:$1048576,$A393,CM$1))","v":""},{"$f":"IF($A393=\"N/A\",Ref!$B$36,INDEX(Ranks!$1:$1048576,$A393,CN$1))","v":""},{"$f":"IF($A393=\"N/A\",Ref!$B$36,INDEX(Ranks!$1:$1048576,$A393,CO$1))","v":""},{"$f":"IF($A393=\"N/A\",Ref!$B$36,INDEX(Ranks!$1:$1048576,$A393,CP$1))","v":""},{"$f":"IF($A393=\"N/A\",Ref!$B$36,INDEX(Ranks!$1:$1048576,$A393,CQ$1))","v":""},{"$f":"IF($A393=\"N/A\",Ref!$B$36,INDEX(Ranks!$1:$1048576,$A393,CR$1))","v":""},{"$f":"IF($A393=\"N/A\",Ref!$B$36,INDEX(Ranks!$1:$1048576,$A393,CS$1))","v":""},{"$f":"IF($A393=\"N/A\",Ref!$B$36,INDEX(Ranks!$1:$1048576,$A393,CT$1))","v":""},{"$f":"IF($A393=\"N/A\",Ref!$B$36,INDEX(Ranks!$1:$1048576,$A393,CU$1))","v":""},{"$f":"IF($A393=\"N/A\",Ref!$B$36,INDEX(Ranks!$1:$1048576,$A393,CV$1))","v":""},{"$f":"IF($A393=\"N/A\",Ref!$B$36,INDEX(Ranks!$1:$1048576,$A393,CW$1))","v":""},{"$f":"IF($A393=\"N/A\",Ref!$B$36,INDEX(Ranks!$1:$1048576,$A393,CX$1))","v":""},{"$f":"IF($A393=\"N/A\",Ref!$B$36,INDEX(Ranks!$1:$1048576,$A393,CY$1))","v":""},{"$f":"IF($A393=\"N/A\",Ref!$B$36,INDEX(Ranks!$1:$1048576,$A393,CZ$1))","v":""},{"$f":"IF($A393=\"N/A\",Ref!$B$36,INDEX(Ranks!$1:$1048576,$A393,DA$1))","v":""},{"$f":"IF($A393=\"N/A\",Ref!$B$36,INDEX(Ranks!$1:$1048576,$A393,DB$1))","v":""},{"$f":"IF($A393=\"N/A\",Ref!$B$36,INDEX(Ranks!$1:$1048576,$A393,DC$1))","v":""},{"$f":"IF($A393=\"N/A\",Ref!$B$36,INDEX(Ranks!$1:$1048576,$A393,DD$1))","v":""},{"$f":"IF($A393=\"N/A\",Ref!$B$36,INDEX(Ranks!$1:$1048576,$A393,DE$1))","v":""},{"$f":"IF($A393=\"N/A\",Ref!$B$36,INDEX(Ranks!$1:$1048576,$A393,DF$1))","v":""},{"$f":"IF($A393=\"N/A\",Ref!$B$36,INDEX(Ranks!$1:$1048576,$A393,DG$1))","v":""},{"$f":"IF($A393=\"N/A\",Ref!$B$36,INDEX(Ranks!$1:$1048576,$A393,DH$1))","v":""},{"$f":"IF($A393=\"N/A\",Ref!$B$36,INDEX(Ranks!$1:$1048576,$A393,DI$1))","v":""},{"$f":"IF($A393=\"N/A\",Ref!$B$36,INDEX(Ranks!$1:$1048576,$A393,DJ$1))","v":""},{"$f":"IF($A393=\"N/A\",Ref!$B$36,INDEX(Ranks!$1:$1048576,$A393,DK$1))","v":""},{"$f":"IF($A393=\"N/A\",Ref!$B$36,INDEX(Ranks!$1:$1048576,$A393,DL$1))","v":""},{"$f":"IF($A393=\"N/A\",Ref!$B$36,INDEX(Ranks!$1:$1048576,$A393,DM$1))","v":""},{"$f":"IF($A393=\"N/A\",Ref!$B$36,INDEX(Ranks!$1:$1048576,$A393,DN$1))","v":""},{"$f":"IF($A393=\"N/A\",Ref!$B$36,INDEX(Ranks!$1:$1048576,$A393,DO$1))","v":""},{"$f":"IF($A393=\"N/A\",Ref!$B$36,INDEX(Ranks!$1:$1048576,$A393,DP$1))","v":""},{"$f":"IF($A393=\"N/A\",Ref!$B$36,INDEX(Ranks!$1:$1048576,$A393,DQ$1))","v":""},{"$f":"IF($A393=\"N/A\",Ref!$B$36,INDEX(Ranks!$1:$1048576,$A393,DR$1))","v":""},{"$f":"IF($A393=\"N/A\",Ref!$B$36,INDEX(Ranks!$1:$1048576,$A393,DS$1))","v":""},{"$f":"IF($A393=\"N/A\",Ref!$B$36,INDEX(Ranks!$1:$1048576,$A393,DT$1))","v":""},{"$f":"IF($A393=\"N/A\",Ref!$B$36,INDEX(Ranks!$1:$1048576,$A393,DU$1))","v":""},{"$f":"IF($A393=\"N/A\",Ref!$B$36,INDEX(Ranks!$1:$1048576,$A393,DV$1))","v":""},{"$f":"IF($A393=\"N/A\",Ref!$B$36,INDEX(Ranks!$1:$1048576,$A393,DW$1))","v":""},{"$f":"IF($A393=\"N/A\",Ref!$B$36,INDEX(Ranks!$1:$1048576,$A393,DX$1))","v":""},{"$f":"IF($A393=\"N/A\",Ref!$B$36,INDEX(Ranks!$1:$1048576,$A393,DY$1))","v":""},{"$f":"IF($A393=\"N/A\",Ref!$B$36,INDEX(Ranks!$1:$1048576,$A393,DZ$1))","v":""},{"$f":"IF($A393=\"N/A\",Ref!$B$36,INDEX(Ranks!$1:$1048576,$A393,EA$1))","v":""},{"$f":"IF($A393=\"N/A\",Ref!$B$36,INDEX(Ranks!$1:$1048576,$A393,EB$1))","v":""}]
[{"$f":"IFERROR(MATCH('Portfolio Page'!L394,Ranks!L:L,0),\"N/A\")","v":"N/A"},null,{"$f":"IF($A394=\"N/A\",\"\",INDEX(Ranks!$1:$1048576,$A394,C$1))","v":""},{"$f":"IF($A394=\"N/A\",Ref!$B$36,INDEX(Ranks!$1:$1048576,$A394,D$1))","v":""},{"$f":"IF($A394=\"N/A\",Ref!$B$36,INDEX(Ranks!$1:$1048576,$A394,E$1))","v":""},{"$f":"IF($A394=\"N/A\",\"\",INDEX(Ranks!$1:$1048576,$A394,F$1))","v":""},{"$f":"IF($A394=\"N/A\",\"\",INDEX(Ranks!$1:$1048576,$A394,G$1))","v":""},{"$f":"IF($A394=\"N/A\",\"\",INDEX(Ranks!$1:$1048576,$A394,H$1))","v":""},{"$f":"IF($A394=\"N/A\",\"\",INDEX(Ranks!$1:$1048576,$A394,I$1))","v":""},{"$f":"IF($A394=\"N/A\",\"\",INDEX(Ranks!$1:$1048576,$A394,J$1))","v":""},{"$f":"IF($A394=\"N/A\",\"\",INDEX(Ranks!$1:$1048576,$A394,K$1))","v":""},null,{"$f":"IF($A394=\"N/A\",Ref!$B$36,INDEX(Ranks!$1:$1048576,$A394,M$1))","v":""},{"$f":"IF($A394=\"N/A\",Ref!$B$36,INDEX(Ranks!$1:$1048576,$A394,N$1))","v":""},{"$f":"IF($A394=\"N/A\",Ref!$B$36,INDEX(Ranks!$1:$1048576,$A394,O$1))","v":""},{"$f":"IF($A394=\"N/A\",Ref!$B$36,INDEX(Ranks!$1:$1048576,$A394,P$1))","v":""},{"$f":"IF($A394=\"N/A\",Ref!$B$36,INDEX(Ranks!$1:$1048576,$A394,Q$1))","v":""},{"$f":"IF($A394=\"N/A\",Ref!$B$36,INDEX(Ranks!$1:$1048576,$A394,R$1))","v":""},{"$f":"IF($A394=\"N/A\",Ref!$B$36,INDEX(Ranks!$1:$1048576,$A394,S$1))","v":""},{"$f":"IF($A394=\"N/A\",Ref!$B$36,INDEX(Ranks!$1:$1048576,$A394,T$1))","v":""},{"$f":"IF($A394=\"N/A\",Ref!$B$36,INDEX(Ranks!$1:$1048576,$A394,U$1))","v":""},{"$f":"IF($A394=\"N/A\",Ref!$B$36,INDEX(Ranks!$1:$1048576,$A394,V$1))","v":""},{"$f":"IF($A394=\"N/A\",Ref!$B$36,INDEX(Ranks!$1:$1048576,$A394,W$1))","v":""},{"$f":"IF($A394=\"N/A\",Ref!$B$36,INDEX(Ranks!$1:$1048576,$A394,X$1))","v":""},{"$f":"IF($A394=\"N/A\",Ref!$B$36,INDEX(Ranks!$1:$1048576,$A394,Y$1))","v":""},{"$f":"IF($A394=\"N/A\",Ref!$B$36,INDEX(Ranks!$1:$1048576,$A394,Z$1))","v":""},{"$f":"IF($A394=\"N/A\",Ref!$B$36,INDEX(Ranks!$1:$1048576,$A394,AA$1))","v":""},{"$f":"IF($A394=\"N/A\",Ref!$B$36,INDEX(Ranks!$1:$1048576,$A394,AB$1))","v":""},{"$f":"IF($A394=\"N/A\",Ref!$B$36,INDEX(Ranks!$1:$1048576,$A394,AC$1))","v":""},{"$f":"IF($A394=\"N/A\",Ref!$B$36,INDEX(Ranks!$1:$1048576,$A394,AD$1))","v":""},{"$f":"IF($A394=\"N/A\",Ref!$B$36,INDEX(Ranks!$1:$1048576,$A394,AE$1))","v":""},{"$f":"IF($A394=\"N/A\",Ref!$B$36,INDEX(Ranks!$1:$1048576,$A394,AF$1))","v":""},{"$f":"IF($A394=\"N/A\",Ref!$B$36,INDEX(Ranks!$1:$1048576,$A394,AG$1))","v":""},{"$f":"IF($A394=\"N/A\",Ref!$B$36,INDEX(Ranks!$1:$1048576,$A394,AH$1))","v":""},{"$f":"IF($A394=\"N/A\",Ref!$B$36,INDEX(Ranks!$1:$1048576,$A394,AI$1))","v":""},{"$f":"IF($A394=\"N/A\",Ref!$B$36,INDEX(Ranks!$1:$1048576,$A394,AJ$1))","v":""},{"$f":"IF($A394=\"N/A\",Ref!$B$36,INDEX(Ranks!$1:$1048576,$A394,AK$1))","v":""},{"$f":"IF($A394=\"N/A\",Ref!$B$36,INDEX(Ranks!$1:$1048576,$A394,AL$1))","v":""},{"$f":"IF($A394=\"N/A\",Ref!$B$36,INDEX(Ranks!$1:$1048576,$A394,AM$1))","v":""},{"$f":"IF($A394=\"N/A\",Ref!$B$36,INDEX(Ranks!$1:$1048576,$A394,AN$1))","v":""},{"$f":"IF($A394=\"N/A\",Ref!$B$36,INDEX(Ranks!$1:$1048576,$A394,AO$1))","v":""},{"$f":"IF($A394=\"N/A\",Ref!$B$36,INDEX(Ranks!$1:$1048576,$A394,AP$1))","v":""},{"$f":"IF($A394=\"N/A\",Ref!$B$36,INDEX(Ranks!$1:$1048576,$A394,AQ$1))","v":""},{"$f":"IF($A394=\"N/A\",Ref!$B$36,INDEX(Ranks!$1:$1048576,$A394,AR$1))","v":""},{"$f":"IF($A394=\"N/A\",Ref!$B$36,INDEX(Ranks!$1:$1048576,$A394,AS$1))","v":""},{"$f":"IF($A394=\"N/A\",Ref!$B$36,INDEX(Ranks!$1:$1048576,$A394,AT$1))","v":""},{"$f":"IF($A394=\"N/A\",Ref!$B$36,INDEX(Ranks!$1:$1048576,$A394,AU$1))","v":""},{"$f":"IF($A394=\"N/A\",Ref!$B$36,INDEX(Ranks!$1:$1048576,$A394,AV$1))","v":""},{"$f":"IF($A394=\"N/A\",Ref!$B$36,INDEX(Ranks!$1:$1048576,$A394,AW$1))","v":""},{"$f":"IF($A394=\"N/A\",Ref!$B$36,INDEX(Ranks!$1:$1048576,$A394,AX$1))","v":""},{"$f":"IF($A394=\"N/A\",Ref!$B$36,INDEX(Ranks!$1:$1048576,$A394,AY$1))","v":""},{"$f":"IF($A394=\"N/A\",Ref!$B$36,INDEX(Ranks!$1:$1048576,$A394,AZ$1))","v":""},{"$f":"IF($A394=\"N/A\",Ref!$B$36,INDEX(Ranks!$1:$1048576,$A394,BA$1))","v":""},{"$f":"IF($A394=\"N/A\",Ref!$B$36,INDEX(Ranks!$1:$1048576,$A394,BB$1))","v":""},{"$f":"IF($A394=\"N/A\",Ref!$B$36,INDEX(Ranks!$1:$1048576,$A394,BC$1))","v":""},{"$f":"IF($A394=\"N/A\",Ref!$B$36,INDEX(Ranks!$1:$1048576,$A394,BD$1))","v":""},{"$f":"IF($A394=\"N/A\",Ref!$B$36,INDEX(Ranks!$1:$1048576,$A394,BE$1))","v":""},{"$f":"IF($A394=\"N/A\",Ref!$B$36,INDEX(Ranks!$1:$1048576,$A394,BF$1))","v":""},{"$f":"IF($A394=\"N/A\",Ref!$B$36,INDEX(Ranks!$1:$1048576,$A394,BG$1))","v":""},{"$f":"IF($A394=\"N/A\",Ref!$B$36,INDEX(Ranks!$1:$1048576,$A394,BH$1))","v":""},{"$f":"IF($A394=\"N/A\",Ref!$B$36,INDEX(Ranks!$1:$1048576,$A394,BI$1))","v":""},{"$f":"IF($A394=\"N/A\",Ref!$B$36,INDEX(Ranks!$1:$1048576,$A394,BJ$1))","v":""},{"$f":"IF($A394=\"N/A\",Ref!$B$36,INDEX(Ranks!$1:$1048576,$A394,BK$1))","v":""},{"$f":"IF($A394=\"N/A\",Ref!$B$36,INDEX(Ranks!$1:$1048576,$A394,BL$1))","v":""},{"$f":"IF($A394=\"N/A\",Ref!$B$36,INDEX(Ranks!$1:$1048576,$A394,BM$1))","v":""},{"$f":"IF($A394=\"N/A\",Ref!$B$36,INDEX(Ranks!$1:$1048576,$A394,BN$1))","v":""},{"$f":"IF($A394=\"N/A\",Ref!$B$36,INDEX(Ranks!$1:$1048576,$A394,BO$1))","v":""},{"$f":"IF($A394=\"N/A\",Ref!$B$36,INDEX(Ranks!$1:$1048576,$A394,BP$1))","v":""},{"$f":"IF($A394=\"N/A\",Ref!$B$36,INDEX(Ranks!$1:$1048576,$A394,BQ$1))","v":""},{"$f":"IF($A394=\"N/A\",Ref!$B$36,INDEX(Ranks!$1:$1048576,$A394,BR$1))","v":""},{"$f":"IF($A394=\"N/A\",Ref!$B$36,INDEX(Ranks!$1:$1048576,$A394,BS$1))","v":""},{"$f":"IF($A394=\"N/A\",Ref!$B$36,INDEX(Ranks!$1:$1048576,$A394,BT$1))","v":""},{"$f":"IF($A394=\"N/A\",Ref!$B$36,INDEX(Ranks!$1:$1048576,$A394,BU$1))","v":""},{"$f":"IF($A394=\"N/A\",Ref!$B$36,INDEX(Ranks!$1:$1048576,$A394,BV$1))","v":""},{"$f":"IF($A394=\"N/A\",Ref!$B$36,INDEX(Ranks!$1:$1048576,$A394,BW$1))","v":""},{"$f":"IF($A394=\"N/A\",Ref!$B$36,INDEX(Ranks!$1:$1048576,$A394,BX$1))","v":""},{"$f":"IF($A394=\"N/A\",Ref!$B$36,INDEX(Ranks!$1:$1048576,$A394,BY$1))","v":""},{"$f":"IF($A394=\"N/A\",Ref!$B$36,INDEX(Ranks!$1:$1048576,$A394,BZ$1))","v":""},{"$f":"IF($A394=\"N/A\",Ref!$B$36,INDEX(Ranks!$1:$1048576,$A394,CA$1))","v":""},{"$f":"IF($A394=\"N/A\",Ref!$B$36,INDEX(Ranks!$1:$1048576,$A394,CB$1))","v":""},{"$f":"IF($A394=\"N/A\",Ref!$B$36,INDEX(Ranks!$1:$1048576,$A394,CC$1))","v":""},{"$f":"IF($A394=\"N/A\",Ref!$B$36,INDEX(Ranks!$1:$1048576,$A394,CD$1))","v":""},{"$f":"IF($A394=\"N/A\",Ref!$B$36,INDEX(Ranks!$1:$1048576,$A394,CE$1))","v":""},{"$f":"IF($A394=\"N/A\",Ref!$B$36,INDEX(Ranks!$1:$1048576,$A394,CF$1))","v":""},{"$f":"IF($A394=\"N/A\",Ref!$B$36,INDEX(Ranks!$1:$1048576,$A394,CG$1))","v":""},{"$f":"IF($A394=\"N/A\",Ref!$B$36,INDEX(Ranks!$1:$1048576,$A394,CH$1))","v":""},{"$f":"IF($A394=\"N/A\",Ref!$B$36,INDEX(Ranks!$1:$1048576,$A394,CI$1))","v":""},{"$f":"IF($A394=\"N/A\",Ref!$B$36,INDEX(Ranks!$1:$1048576,$A394,CJ$1))","v":""},{"$f":"IF($A394=\"N/A\",Ref!$B$36,INDEX(Ranks!$1:$1048576,$A394,CK$1))","v":""},{"$f":"IF($A394=\"N/A\",Ref!$B$36,INDEX(Ranks!$1:$1048576,$A394,CL$1))","v":""},{"$f":"IF($A394=\"N/A\",Ref!$B$36,INDEX(Ranks!$1:$1048576,$A394,CM$1))","v":""},{"$f":"IF($A394=\"N/A\",Ref!$B$36,INDEX(Ranks!$1:$1048576,$A394,CN$1))","v":""},{"$f":"IF($A394=\"N/A\",Ref!$B$36,INDEX(Ranks!$1:$1048576,$A394,CO$1))","v":""},{"$f":"IF($A394=\"N/A\",Ref!$B$36,INDEX(Ranks!$1:$1048576,$A394,CP$1))","v":""},{"$f":"IF($A394=\"N/A\",Ref!$B$36,INDEX(Ranks!$1:$1048576,$A394,CQ$1))","v":""},{"$f":"IF($A394=\"N/A\",Ref!$B$36,INDEX(Ranks!$1:$1048576,$A394,CR$1))","v":""},{"$f":"IF($A394=\"N/A\",Ref!$B$36,INDEX(Ranks!$1:$1048576,$A394,CS$1))","v":""},{"$f":"IF($A394=\"N/A\",Ref!$B$36,INDEX(Ranks!$1:$1048576,$A394,CT$1))","v":""},{"$f":"IF($A394=\"N/A\",Ref!$B$36,INDEX(Ranks!$1:$1048576,$A394,CU$1))","v":""},{"$f":"IF($A394=\"N/A\",Ref!$B$36,INDEX(Ranks!$1:$1048576,$A394,CV$1))","v":""},{"$f":"IF($A394=\"N/A\",Ref!$B$36,INDEX(Ranks!$1:$1048576,$A394,CW$1))","v":""},{"$f":"IF($A394=\"N/A\",Ref!$B$36,INDEX(Ranks!$1:$1048576,$A394,CX$1))","v":""},{"$f":"IF($A394=\"N/A\",Ref!$B$36,INDEX(Ranks!$1:$1048576,$A394,CY$1))","v":""},{"$f":"IF($A394=\"N/A\",Ref!$B$36,INDEX(Ranks!$1:$1048576,$A394,CZ$1))","v":""},{"$f":"IF($A394=\"N/A\",Ref!$B$36,INDEX(Ranks!$1:$1048576,$A394,DA$1))","v":""},{"$f":"IF($A394=\"N/A\",Ref!$B$36,INDEX(Ranks!$1:$1048576,$A394,DB$1))","v":""},{"$f":"IF($A394=\"N/A\",Ref!$B$36,INDEX(Ranks!$1:$1048576,$A394,DC$1))","v":""},{"$f":"IF($A394=\"N/A\",Ref!$B$36,INDEX(Ranks!$1:$1048576,$A394,DD$1))","v":""},{"$f":"IF($A394=\"N/A\",Ref!$B$36,INDEX(Ranks!$1:$1048576,$A394,DE$1))","v":""},{"$f":"IF($A394=\"N/A\",Ref!$B$36,INDEX(Ranks!$1:$1048576,$A394,DF$1))","v":""},{"$f":"IF($A394=\"N/A\",Ref!$B$36,INDEX(Ranks!$1:$1048576,$A394,DG$1))","v":""},{"$f":"IF($A394=\"N/A\",Ref!$B$36,INDEX(Ranks!$1:$1048576,$A394,DH$1))","v":""},{"$f":"IF($A394=\"N/A\",Ref!$B$36,INDEX(Ranks!$1:$1048576,$A394,DI$1))","v":""},{"$f":"IF($A394=\"N/A\",Ref!$B$36,INDEX(Ranks!$1:$1048576,$A394,DJ$1))","v":""},{"$f":"IF($A394=\"N/A\",Ref!$B$36,INDEX(Ranks!$1:$1048576,$A394,DK$1))","v":""},{"$f":"IF($A394=\"N/A\",Ref!$B$36,INDEX(Ranks!$1:$1048576,$A394,DL$1))","v":""},{"$f":"IF($A394=\"N/A\",Ref!$B$36,INDEX(Ranks!$1:$1048576,$A394,DM$1))","v":""},{"$f":"IF($A394=\"N/A\",Ref!$B$36,INDEX(Ranks!$1:$1048576,$A394,DN$1))","v":""},{"$f":"IF($A394=\"N/A\",Ref!$B$36,INDEX(Ranks!$1:$1048576,$A394,DO$1))","v":""},{"$f":"IF($A394=\"N/A\",Ref!$B$36,INDEX(Ranks!$1:$1048576,$A394,DP$1))","v":""},{"$f":"IF($A394=\"N/A\",Ref!$B$36,INDEX(Ranks!$1:$1048576,$A394,DQ$1))","v":""},{"$f":"IF($A394=\"N/A\",Ref!$B$36,INDEX(Ranks!$1:$1048576,$A394,DR$1))","v":""},{"$f":"IF($A394=\"N/A\",Ref!$B$36,INDEX(Ranks!$1:$1048576,$A394,DS$1))","v":""},{"$f":"IF($A394=\"N/A\",Ref!$B$36,INDEX(Ranks!$1:$1048576,$A394,DT$1))","v":""},{"$f":"IF($A394=\"N/A\",Ref!$B$36,INDEX(Ranks!$1:$1048576,$A394,DU$1))","v":""},{"$f":"IF($A394=\"N/A\",Ref!$B$36,INDEX(Ranks!$1:$1048576,$A394,DV$1))","v":""},{"$f":"IF($A394=\"N/A\",Ref!$B$36,INDEX(Ranks!$1:$1048576,$A394,DW$1))","v":""},{"$f":"IF($A394=\"N/A\",Ref!$B$36,INDEX(Ranks!$1:$1048576,$A394,DX$1))","v":""},{"$f":"IF($A394=\"N/A\",Ref!$B$36,INDEX(Ranks!$1:$1048576,$A394,DY$1))","v":""},{"$f":"IF($A394=\"N/A\",Ref!$B$36,INDEX(Ranks!$1:$1048576,$A394,DZ$1))","v":""},{"$f":"IF($A394=\"N/A\",Ref!$B$36,INDEX(Ranks!$1:$1048576,$A394,EA$1))","v":""},{"$f":"IF($A394=\"N/A\",Ref!$B$36,INDEX(Ranks!$1:$1048576,$A394,EB$1))","v":""}]
[{"$f":"IFERROR(MATCH('Portfolio Page'!L395,Ranks!L:L,0),\"N/A\")","v":"N/A"},null,{"$f":"IF($A395=\"N/A\",\"\",INDEX(Ranks!$1:$1048576,$A395,C$1))","v":""},{"$f":"IF($A395=\"N/A\",Ref!$B$36,INDEX(Ranks!$1:$1048576,$A395,D$1))","v":""},{"$f":"IF($A395=\"N/A\",Ref!$B$36,INDEX(Ranks!$1:$1048576,$A395,E$1))","v":""},{"$f":"IF($A395=\"N/A\",\"\",INDEX(Ranks!$1:$1048576,$A395,F$1))","v":""},{"$f":"IF($A395=\"N/A\",\"\",INDEX(Ranks!$1:$1048576,$A395,G$1))","v":""},{"$f":"IF($A395=\"N/A\",\"\",INDEX(Ranks!$1:$1048576,$A395,H$1))","v":""},{"$f":"IF($A395=\"N/A\",\"\",INDEX(Ranks!$1:$1048576,$A395,I$1))","v":""},{"$f":"IF($A395=\"N/A\",\"\",INDEX(Ranks!$1:$1048576,$A395,J$1))","v":""},{"$f":"IF($A395=\"N/A\",\"\",INDEX(Ranks!$1:$1048576,$A395,K$1))","v":""},null,{"$f":"IF($A395=\"N/A\",Ref!$B$36,INDEX(Ranks!$1:$1048576,$A395,M$1))","v":""},{"$f":"IF($A395=\"N/A\",Ref!$B$36,INDEX(Ranks!$1:$1048576,$A395,N$1))","v":""},{"$f":"IF($A395=\"N/A\",Ref!$B$36,INDEX(Ranks!$1:$1048576,$A395,O$1))","v":""},{"$f":"IF($A395=\"N/A\",Ref!$B$36,INDEX(Ranks!$1:$1048576,$A395,P$1))","v":""},{"$f":"IF($A395=\"N/A\",Ref!$B$36,INDEX(Ranks!$1:$1048576,$A395,Q$1))","v":""},{"$f":"IF($A395=\"N/A\",Ref!$B$36,INDEX(Ranks!$1:$1048576,$A395,R$1))","v":""},{"$f":"IF($A395=\"N/A\",Ref!$B$36,INDEX(Ranks!$1:$1048576,$A395,S$1))","v":""},{"$f":"IF($A395=\"N/A\",Ref!$B$36,INDEX(Ranks!$1:$1048576,$A395,T$1))","v":""},{"$f":"IF($A395=\"N/A\",Ref!$B$36,INDEX(Ranks!$1:$1048576,$A395,U$1))","v":""},{"$f":"IF($A395=\"N/A\",Ref!$B$36,INDEX(Ranks!$1:$1048576,$A395,V$1))","v":""},{"$f":"IF($A395=\"N/A\",Ref!$B$36,INDEX(Ranks!$1:$1048576,$A395,W$1))","v":""},{"$f":"IF($A395=\"N/A\",Ref!$B$36,INDEX(Ranks!$1:$1048576,$A395,X$1))","v":""},{"$f":"IF($A395=\"N/A\",Ref!$B$36,INDEX(Ranks!$1:$1048576,$A395,Y$1))","v":""},{"$f":"IF($A395=\"N/A\",Ref!$B$36,INDEX(Ranks!$1:$1048576,$A395,Z$1))","v":""},{"$f":"IF($A395=\"N/A\",Ref!$B$36,INDEX(Ranks!$1:$1048576,$A395,AA$1))","v":""},{"$f":"IF($A395=\"N/A\",Ref!$B$36,INDEX(Ranks!$1:$1048576,$A395,AB$1))","v":""},{"$f":"IF($A395=\"N/A\",Ref!$B$36,INDEX(Ranks!$1:$1048576,$A395,AC$1))","v":""},{"$f":"IF($A395=\"N/A\",Ref!$B$36,INDEX(Ranks!$1:$1048576,$A395,AD$1))","v":""},{"$f":"IF($A395=\"N/A\",Ref!$B$36,INDEX(Ranks!$1:$1048576,$A395,AE$1))","v":""},{"$f":"IF($A395=\"N/A\",Ref!$B$36,INDEX(Ranks!$1:$1048576,$A395,AF$1))","v":""},{"$f":"IF($A395=\"N/A\",Ref!$B$36,INDEX(Ranks!$1:$1048576,$A395,AG$1))","v":""},{"$f":"IF($A395=\"N/A\",Ref!$B$36,INDEX(Ranks!$1:$1048576,$A395,AH$1))","v":""},{"$f":"IF($A395=\"N/A\",Ref!$B$36,INDEX(Ranks!$1:$1048576,$A395,AI$1))","v":""},{"$f":"IF($A395=\"N/A\",Ref!$B$36,INDEX(Ranks!$1:$1048576,$A395,AJ$1))","v":""},{"$f":"IF($A395=\"N/A\",Ref!$B$36,INDEX(Ranks!$1:$1048576,$A395,AK$1))","v":""},{"$f":"IF($A395=\"N/A\",Ref!$B$36,INDEX(Ranks!$1:$1048576,$A395,AL$1))","v":""},{"$f":"IF($A395=\"N/A\",Ref!$B$36,INDEX(Ranks!$1:$1048576,$A395,AM$1))","v":""},{"$f":"IF($A395=\"N/A\",Ref!$B$36,INDEX(Ranks!$1:$1048576,$A395,AN$1))","v":""},{"$f":"IF($A395=\"N/A\",Ref!$B$36,INDEX(Ranks!$1:$1048576,$A395,AO$1))","v":""},{"$f":"IF($A395=\"N/A\",Ref!$B$36,INDEX(Ranks!$1:$1048576,$A395,AP$1))","v":""},{"$f":"IF($A395=\"N/A\",Ref!$B$36,INDEX(Ranks!$1:$1048576,$A395,AQ$1))","v":""},{"$f":"IF($A395=\"N/A\",Ref!$B$36,INDEX(Ranks!$1:$1048576,$A395,AR$1))","v":""},{"$f":"IF($A395=\"N/A\",Ref!$B$36,INDEX(Ranks!$1:$1048576,$A395,AS$1))","v":""},{"$f":"IF($A395=\"N/A\",Ref!$B$36,INDEX(Ranks!$1:$1048576,$A395,AT$1))","v":""},{"$f":"IF($A395=\"N/A\",Ref!$B$36,INDEX(Ranks!$1:$1048576,$A395,AU$1))","v":""},{"$f":"IF($A395=\"N/A\",Ref!$B$36,INDEX(Ranks!$1:$1048576,$A395,AV$1))","v":""},{"$f":"IF($A395=\"N/A\",Ref!$B$36,INDEX(Ranks!$1:$1048576,$A395,AW$1))","v":""},{"$f":"IF($A395=\"N/A\",Ref!$B$36,INDEX(Ranks!$1:$1048576,$A395,AX$1))","v":""},{"$f":"IF($A395=\"N/A\",Ref!$B$36,INDEX(Ranks!$1:$1048576,$A395,AY$1))","v":""},{"$f":"IF($A395=\"N/A\",Ref!$B$36,INDEX(Ranks!$1:$1048576,$A395,AZ$1))","v":""},{"$f":"IF($A395=\"N/A\",Ref!$B$36,INDEX(Ranks!$1:$1048576,$A395,BA$1))","v":""},{"$f":"IF($A395=\"N/A\",Ref!$B$36,INDEX(Ranks!$1:$1048576,$A395,BB$1))","v":""},{"$f":"IF($A395=\"N/A\",Ref!$B$36,INDEX(Ranks!$1:$1048576,$A395,BC$1))","v":""},{"$f":"IF($A395=\"N/A\",Ref!$B$36,INDEX(Ranks!$1:$1048576,$A395,BD$1))","v":""},{"$f":"IF($A395=\"N/A\",Ref!$B$36,INDEX(Ranks!$1:$1048576,$A395,BE$1))","v":""},{"$f":"IF($A395=\"N/A\",Ref!$B$36,INDEX(Ranks!$1:$1048576,$A395,BF$1))","v":""},{"$f":"IF($A395=\"N/A\",Ref!$B$36,INDEX(Ranks!$1:$1048576,$A395,BG$1))","v":""},{"$f":"IF($A395=\"N/A\",Ref!$B$36,INDEX(Ranks!$1:$1048576,$A395,BH$1))","v":""},{"$f":"IF($A395=\"N/A\",Ref!$B$36,INDEX(Ranks!$1:$1048576,$A395,BI$1))","v":""},{"$f":"IF($A395=\"N/A\",Ref!$B$36,INDEX(Ranks!$1:$1048576,$A395,BJ$1))","v":""},{"$f":"IF($A395=\"N/A\",Ref!$B$36,INDEX(Ranks!$1:$1048576,$A395,BK$1))","v":""},{"$f":"IF($A395=\"N/A\",Ref!$B$36,INDEX(Ranks!$1:$1048576,$A395,BL$1))","v":""},{"$f":"IF($A395=\"N/A\",Ref!$B$36,INDEX(Ranks!$1:$1048576,$A395,BM$1))","v":""},{"$f":"IF($A395=\"N/A\",Ref!$B$36,INDEX(Ranks!$1:$1048576,$A395,BN$1))","v":""},{"$f":"IF($A395=\"N/A\",Ref!$B$36,INDEX(Ranks!$1:$1048576,$A395,BO$1))","v":""},{"$f":"IF($A395=\"N/A\",Ref!$B$36,INDEX(Ranks!$1:$1048576,$A395,BP$1))","v":""},{"$f":"IF($A395=\"N/A\",Ref!$B$36,INDEX(Ranks!$1:$1048576,$A395,BQ$1))","v":""},{"$f":"IF($A395=\"N/A\",Ref!$B$36,INDEX(Ranks!$1:$1048576,$A395,BR$1))","v":""},{"$f":"IF($A395=\"N/A\",Ref!$B$36,INDEX(Ranks!$1:$1048576,$A395,BS$1))","v":""},{"$f":"IF($A395=\"N/A\",Ref!$B$36,INDEX(Ranks!$1:$1048576,$A395,BT$1))","v":""},{"$f":"IF($A395=\"N/A\",Ref!$B$36,INDEX(Ranks!$1:$1048576,$A395,BU$1))","v":""},{"$f":"IF($A395=\"N/A\",Ref!$B$36,INDEX(Ranks!$1:$1048576,$A395,BV$1))","v":""},{"$f":"IF($A395=\"N/A\",Ref!$B$36,INDEX(Ranks!$1:$1048576,$A395,BW$1))","v":""},{"$f":"IF($A395=\"N/A\",Ref!$B$36,INDEX(Ranks!$1:$1048576,$A395,BX$1))","v":""},{"$f":"IF($A395=\"N/A\",Ref!$B$36,INDEX(Ranks!$1:$1048576,$A395,BY$1))","v":""},{"$f":"IF($A395=\"N/A\",Ref!$B$36,INDEX(Ranks!$1:$1048576,$A395,BZ$1))","v":""},{"$f":"IF($A395=\"N/A\",Ref!$B$36,INDEX(Ranks!$1:$1048576,$A395,CA$1))","v":""},{"$f":"IF($A395=\"N/A\",Ref!$B$36,INDEX(Ranks!$1:$1048576,$A395,CB$1))","v":""},{"$f":"IF($A395=\"N/A\",Ref!$B$36,INDEX(Ranks!$1:$1048576,$A395,CC$1))","v":""},{"$f":"IF($A395=\"N/A\",Ref!$B$36,INDEX(Ranks!$1:$1048576,$A395,CD$1))","v":""},{"$f":"IF($A395=\"N/A\",Ref!$B$36,INDEX(Ranks!$1:$1048576,$A395,CE$1))","v":""},{"$f":"IF($A395=\"N/A\",Ref!$B$36,INDEX(Ranks!$1:$1048576,$A395,CF$1))","v":""},{"$f":"IF($A395=\"N/A\",Ref!$B$36,INDEX(Ranks!$1:$1048576,$A395,CG$1))","v":""},{"$f":"IF($A395=\"N/A\",Ref!$B$36,INDEX(Ranks!$1:$1048576,$A395,CH$1))","v":""},{"$f":"IF($A395=\"N/A\",Ref!$B$36,INDEX(Ranks!$1:$1048576,$A395,CI$1))","v":""},{"$f":"IF($A395=\"N/A\",Ref!$B$36,INDEX(Ranks!$1:$1048576,$A395,CJ$1))","v":""},{"$f":"IF($A395=\"N/A\",Ref!$B$36,INDEX(Ranks!$1:$1048576,$A395,CK$1))","v":""},{"$f":"IF($A395=\"N/A\",Ref!$B$36,INDEX(Ranks!$1:$1048576,$A395,CL$1))","v":""},{"$f":"IF($A395=\"N/A\",Ref!$B$36,INDEX(Ranks!$1:$1048576,$A395,CM$1))","v":""},{"$f":"IF($A395=\"N/A\",Ref!$B$36,INDEX(Ranks!$1:$1048576,$A395,CN$1))","v":""},{"$f":"IF($A395=\"N/A\",Ref!$B$36,INDEX(Ranks!$1:$1048576,$A395,CO$1))","v":""},{"$f":"IF($A395=\"N/A\",Ref!$B$36,INDEX(Ranks!$1:$1048576,$A395,CP$1))","v":""},{"$f":"IF($A395=\"N/A\",Ref!$B$36,INDEX(Ranks!$1:$1048576,$A395,CQ$1))","v":""},{"$f":"IF($A395=\"N/A\",Ref!$B$36,INDEX(Ranks!$1:$1048576,$A395,CR$1))","v":""},{"$f":"IF($A395=\"N/A\",Ref!$B$36,INDEX(Ranks!$1:$1048576,$A395,CS$1))","v":""},{"$f":"IF($A395=\"N/A\",Ref!$B$36,INDEX(Ranks!$1:$1048576,$A395,CT$1))","v":""},{"$f":"IF($A395=\"N/A\",Ref!$B$36,INDEX(Ranks!$1:$1048576,$A395,CU$1))","v":""},{"$f":"IF($A395=\"N/A\",Ref!$B$36,INDEX(Ranks!$1:$1048576,$A395,CV$1))","v":""},{"$f":"IF($A395=\"N/A\",Ref!$B$36,INDEX(Ranks!$1:$1048576,$A395,CW$1))","v":""},{"$f":"IF($A395=\"N/A\",Ref!$B$36,INDEX(Ranks!$1:$1048576,$A395,CX$1))","v":""},{"$f":"IF($A395=\"N/A\",Ref!$B$36,INDEX(Ranks!$1:$1048576,$A395,CY$1))","v":""},{"$f":"IF($A395=\"N/A\",Ref!$B$36,INDEX(Ranks!$1:$1048576,$A395,CZ$1))","v":""},{"$f":"IF($A395=\"N/A\",Ref!$B$36,INDEX(Ranks!$1:$1048576,$A395,DA$1))","v":""},{"$f":"IF($A395=\"N/A\",Ref!$B$36,INDEX(Ranks!$1:$1048576,$A395,DB$1))","v":""},{"$f":"IF($A395=\"N/A\",Ref!$B$36,INDEX(Ranks!$1:$1048576,$A395,DC$1))","v":""},{"$f":"IF($A395=\"N/A\",Ref!$B$36,INDEX(Ranks!$1:$1048576,$A395,DD$1))","v":""},{"$f":"IF($A395=\"N/A\",Ref!$B$36,INDEX(Ranks!$1:$1048576,$A395,DE$1))","v":""},{"$f":"IF($A395=\"N/A\",Ref!$B$36,INDEX(Ranks!$1:$1048576,$A395,DF$1))","v":""},{"$f":"IF($A395=\"N/A\",Ref!$B$36,INDEX(Ranks!$1:$1048576,$A395,DG$1))","v":""},{"$f":"IF($A395=\"N/A\",Ref!$B$36,INDEX(Ranks!$1:$1048576,$A395,DH$1))","v":""},{"$f":"IF($A395=\"N/A\",Ref!$B$36,INDEX(Ranks!$1:$1048576,$A395,DI$1))","v":""},{"$f":"IF($A395=\"N/A\",Ref!$B$36,INDEX(Ranks!$1:$1048576,$A395,DJ$1))","v":""},{"$f":"IF($A395=\"N/A\",Ref!$B$36,INDEX(Ranks!$1:$1048576,$A395,DK$1))","v":""},{"$f":"IF($A395=\"N/A\",Ref!$B$36,INDEX(Ranks!$1:$1048576,$A395,DL$1))","v":""},{"$f":"IF($A395=\"N/A\",Ref!$B$36,INDEX(Ranks!$1:$1048576,$A395,DM$1))","v":""},{"$f":"IF($A395=\"N/A\",Ref!$B$36,INDEX(Ranks!$1:$1048576,$A395,DN$1))","v":""},{"$f":"IF($A395=\"N/A\",Ref!$B$36,INDEX(Ranks!$1:$1048576,$A395,DO$1))","v":""},{"$f":"IF($A395=\"N/A\",Ref!$B$36,INDEX(Ranks!$1:$1048576,$A395,DP$1))","v":""},{"$f":"IF($A395=\"N/A\",Ref!$B$36,INDEX(Ranks!$1:$1048576,$A395,DQ$1))","v":""},{"$f":"IF($A395=\"N/A\",Ref!$B$36,INDEX(Ranks!$1:$1048576,$A395,DR$1))","v":""},{"$f":"IF($A395=\"N/A\",Ref!$B$36,INDEX(Ranks!$1:$1048576,$A395,DS$1))","v":""},{"$f":"IF($A395=\"N/A\",Ref!$B$36,INDEX(Ranks!$1:$1048576,$A395,DT$1))","v":""},{"$f":"IF($A395=\"N/A\",Ref!$B$36,INDEX(Ranks!$1:$1048576,$A395,DU$1))","v":""},{"$f":"IF($A395=\"N/A\",Ref!$B$36,INDEX(Ranks!$1:$1048576,$A395,DV$1))","v":""},{"$f":"IF($A395=\"N/A\",Ref!$B$36,INDEX(Ranks!$1:$1048576,$A395,DW$1))","v":""},{"$f":"IF($A395=\"N/A\",Ref!$B$36,INDEX(Ranks!$1:$1048576,$A395,DX$1))","v":""},{"$f":"IF($A395=\"N/A\",Ref!$B$36,INDEX(Ranks!$1:$1048576,$A395,DY$1))","v":""},{"$f":"IF($A395=\"N/A\",Ref!$B$36,INDEX(Ranks!$1:$1048576,$A395,DZ$1))","v":""},{"$f":"IF($A395=\"N/A\",Ref!$B$36,INDEX(Ranks!$1:$1048576,$A395,EA$1))","v":""},{"$f":"IF($A395=\"N/A\",Ref!$B$36,INDEX(Ranks!$1:$1048576,$A395,EB$1))","v":""}]
[{"$f":"IFERROR(MATCH('Portfolio Page'!L396,Ranks!L:L,0),\"N/A\")","v":"N/A"},null,{"$f":"IF($A396=\"N/A\",\"\",INDEX(Ranks!$1:$1048576,$A396,C$1))","v":""},{"$f":"IF($A396=\"N/A\",Ref!$B$36,INDEX(Ranks!$1:$1048576,$A396,D$1))","v":""},{"$f":"IF($A396=\"N/A\",Ref!$B$36,INDEX(Ranks!$1:$1048576,$A396,E$1))","v":""},{"$f":"IF($A396=\"N/A\",\"\",INDEX(Ranks!$1:$1048576,$A396,F$1))","v":""},{"$f":"IF($A396=\"N/A\",\"\",INDEX(Ranks!$1:$1048576,$A396,G$1))","v":""},{"$f":"IF($A396=\"N/A\",\"\",INDEX(Ranks!$1:$1048576,$A396,H$1))","v":""},{"$f":"IF($A396=\"N/A\",\"\",INDEX(Ranks!$1:$1048576,$A396,I$1))","v":""},{"$f":"IF($A396=\"N/A\",\"\",INDEX(Ranks!$1:$1048576,$A396,J$1))","v":""},{"$f":"IF($A396=\"N/A\",\"\",INDEX(Ranks!$1:$1048576,$A396,K$1))","v":""},null,{"$f":"IF($A396=\"N/A\",Ref!$B$36,INDEX(Ranks!$1:$1048576,$A396,M$1))","v":""},{"$f":"IF($A396=\"N/A\",Ref!$B$36,INDEX(Ranks!$1:$1048576,$A396,N$1))","v":""},{"$f":"IF($A396=\"N/A\",Ref!$B$36,INDEX(Ranks!$1:$1048576,$A396,O$1))","v":""},{"$f":"IF($A396=\"N/A\",Ref!$B$36,INDEX(Ranks!$1:$1048576,$A396,P$1))","v":""},{"$f":"IF($A396=\"N/A\",Ref!$B$36,INDEX(Ranks!$1:$1048576,$A396,Q$1))","v":""},{"$f":"IF($A396=\"N/A\",Ref!$B$36,INDEX(Ranks!$1:$1048576,$A396,R$1))","v":""},{"$f":"IF($A396=\"N/A\",Ref!$B$36,INDEX(Ranks!$1:$1048576,$A396,S$1))","v":""},{"$f":"IF($A396=\"N/A\",Ref!$B$36,INDEX(Ranks!$1:$1048576,$A396,T$1))","v":""},{"$f":"IF($A396=\"N/A\",Ref!$B$36,INDEX(Ranks!$1:$1048576,$A396,U$1))","v":""},{"$f":"IF($A396=\"N/A\",Ref!$B$36,INDEX(Ranks!$1:$1048576,$A396,V$1))","v":""},{"$f":"IF($A396=\"N/A\",Ref!$B$36,INDEX(Ranks!$1:$1048576,$A396,W$1))","v":""},{"$f":"IF($A396=\"N/A\",Ref!$B$36,INDEX(Ranks!$1:$1048576,$A396,X$1))","v":""},{"$f":"IF($A396=\"N/A\",Ref!$B$36,INDEX(Ranks!$1:$1048576,$A396,Y$1))","v":""},{"$f":"IF($A396=\"N/A\",Ref!$B$36,INDEX(Ranks!$1:$1048576,$A396,Z$1))","v":""},{"$f":"IF($A396=\"N/A\",Ref!$B$36,INDEX(Ranks!$1:$1048576,$A396,AA$1))","v":""},{"$f":"IF($A396=\"N/A\",Ref!$B$36,INDEX(Ranks!$1:$1048576,$A396,AB$1))","v":""},{"$f":"IF($A396=\"N/A\",Ref!$B$36,INDEX(Ranks!$1:$1048576,$A396,AC$1))","v":""},{"$f":"IF($A396=\"N/A\",Ref!$B$36,INDEX(Ranks!$1:$1048576,$A396,AD$1))","v":""},{"$f":"IF($A396=\"N/A\",Ref!$B$36,INDEX(Ranks!$1:$1048576,$A396,AE$1))","v":""},{"$f":"IF($A396=\"N/A\",Ref!$B$36,INDEX(Ranks!$1:$1048576,$A396,AF$1))","v":""},{"$f":"IF($A396=\"N/A\",Ref!$B$36,INDEX(Ranks!$1:$1048576,$A396,AG$1))","v":""},{"$f":"IF($A396=\"N/A\",Ref!$B$36,INDEX(Ranks!$1:$1048576,$A396,AH$1))","v":""},{"$f":"IF($A396=\"N/A\",Ref!$B$36,INDEX(Ranks!$1:$1048576,$A396,AI$1))","v":""},{"$f":"IF($A396=\"N/A\",Ref!$B$36,INDEX(Ranks!$1:$1048576,$A396,AJ$1))","v":""},{"$f":"IF($A396=\"N/A\",Ref!$B$36,INDEX(Ranks!$1:$1048576,$A396,AK$1))","v":""},{"$f":"IF($A396=\"N/A\",Ref!$B$36,INDEX(Ranks!$1:$1048576,$A396,AL$1))","v":""},{"$f":"IF($A396=\"N/A\",Ref!$B$36,INDEX(Ranks!$1:$1048576,$A396,AM$1))","v":""},{"$f":"IF($A396=\"N/A\",Ref!$B$36,INDEX(Ranks!$1:$1048576,$A396,AN$1))","v":""},{"$f":"IF($A396=\"N/A\",Ref!$B$36,INDEX(Ranks!$1:$1048576,$A396,AO$1))","v":""},{"$f":"IF($A396=\"N/A\",Ref!$B$36,INDEX(Ranks!$1:$1048576,$A396,AP$1))","v":""},{"$f":"IF($A396=\"N/A\",Ref!$B$36,INDEX(Ranks!$1:$1048576,$A396,AQ$1))","v":""},{"$f":"IF($A396=\"N/A\",Ref!$B$36,INDEX(Ranks!$1:$1048576,$A396,AR$1))","v":""},{"$f":"IF($A396=\"N/A\",Ref!$B$36,INDEX(Ranks!$1:$1048576,$A396,AS$1))","v":""},{"$f":"IF($A396=\"N/A\",Ref!$B$36,INDEX(Ranks!$1:$1048576,$A396,AT$1))","v":""},{"$f":"IF($A396=\"N/A\",Ref!$B$36,INDEX(Ranks!$1:$1048576,$A396,AU$1))","v":""},{"$f":"IF($A396=\"N/A\",Ref!$B$36,INDEX(Ranks!$1:$1048576,$A396,AV$1))","v":""},{"$f":"IF($A396=\"N/A\",Ref!$B$36,INDEX(Ranks!$1:$1048576,$A396,AW$1))","v":""},{"$f":"IF($A396=\"N/A\",Ref!$B$36,INDEX(Ranks!$1:$1048576,$A396,AX$1))","v":""},{"$f":"IF($A396=\"N/A\",Ref!$B$36,INDEX(Ranks!$1:$1048576,$A396,AY$1))","v":""},{"$f":"IF($A396=\"N/A\",Ref!$B$36,INDEX(Ranks!$1:$1048576,$A396,AZ$1))","v":""},{"$f":"IF($A396=\"N/A\",Ref!$B$36,INDEX(Ranks!$1:$1048576,$A396,BA$1))","v":""},{"$f":"IF($A396=\"N/A\",Ref!$B$36,INDEX(Ranks!$1:$1048576,$A396,BB$1))","v":""},{"$f":"IF($A396=\"N/A\",Ref!$B$36,INDEX(Ranks!$1:$1048576,$A396,BC$1))","v":""},{"$f":"IF($A396=\"N/A\",Ref!$B$36,INDEX(Ranks!$1:$1048576,$A396,BD$1))","v":""},{"$f":"IF($A396=\"N/A\",Ref!$B$36,INDEX(Ranks!$1:$1048576,$A396,BE$1))","v":""},{"$f":"IF($A396=\"N/A\",Ref!$B$36,INDEX(Ranks!$1:$1048576,$A396,BF$1))","v":""},{"$f":"IF($A396=\"N/A\",Ref!$B$36,INDEX(Ranks!$1:$1048576,$A396,BG$1))","v":""},{"$f":"IF($A396=\"N/A\",Ref!$B$36,INDEX(Ranks!$1:$1048576,$A396,BH$1))","v":""},{"$f":"IF($A396=\"N/A\",Ref!$B$36,INDEX(Ranks!$1:$1048576,$A396,BI$1))","v":""},{"$f":"IF($A396=\"N/A\",Ref!$B$36,INDEX(Ranks!$1:$1048576,$A396,BJ$1))","v":""},{"$f":"IF($A396=\"N/A\",Ref!$B$36,INDEX(Ranks!$1:$1048576,$A396,BK$1))","v":""},{"$f":"IF($A396=\"N/A\",Ref!$B$36,INDEX(Ranks!$1:$1048576,$A396,BL$1))","v":""},{"$f":"IF($A396=\"N/A\",Ref!$B$36,INDEX(Ranks!$1:$1048576,$A396,BM$1))","v":""},{"$f":"IF($A396=\"N/A\",Ref!$B$36,INDEX(Ranks!$1:$1048576,$A396,BN$1))","v":""},{"$f":"IF($A396=\"N/A\",Ref!$B$36,INDEX(Ranks!$1:$1048576,$A396,BO$1))","v":""},{"$f":"IF($A396=\"N/A\",Ref!$B$36,INDEX(Ranks!$1:$1048576,$A396,BP$1))","v":""},{"$f":"IF($A396=\"N/A\",Ref!$B$36,INDEX(Ranks!$1:$1048576,$A396,BQ$1))","v":""},{"$f":"IF($A396=\"N/A\",Ref!$B$36,INDEX(Ranks!$1:$1048576,$A396,BR$1))","v":""},{"$f":"IF($A396=\"N/A\",Ref!$B$36,INDEX(Ranks!$1:$1048576,$A396,BS$1))","v":""},{"$f":"IF($A396=\"N/A\",Ref!$B$36,INDEX(Ranks!$1:$1048576,$A396,BT$1))","v":""},{"$f":"IF($A396=\"N/A\",Ref!$B$36,INDEX(Ranks!$1:$1048576,$A396,BU$1))","v":""},{"$f":"IF($A396=\"N/A\",Ref!$B$36,INDEX(Ranks!$1:$1048576,$A396,BV$1))","v":""},{"$f":"IF($A396=\"N/A\",Ref!$B$36,INDEX(Ranks!$1:$1048576,$A396,BW$1))","v":""},{"$f":"IF($A396=\"N/A\",Ref!$B$36,INDEX(Ranks!$1:$1048576,$A396,BX$1))","v":""},{"$f":"IF($A396=\"N/A\",Ref!$B$36,INDEX(Ranks!$1:$1048576,$A396,BY$1))","v":""},{"$f":"IF($A396=\"N/A\",Ref!$B$36,INDEX(Ranks!$1:$1048576,$A396,BZ$1))","v":""},{"$f":"IF($A396=\"N/A\",Ref!$B$36,INDEX(Ranks!$1:$1048576,$A396,CA$1))","v":""},{"$f":"IF($A396=\"N/A\",Ref!$B$36,INDEX(Ranks!$1:$1048576,$A396,CB$1))","v":""},{"$f":"IF($A396=\"N/A\",Ref!$B$36,INDEX(Ranks!$1:$1048576,$A396,CC$1))","v":""},{"$f":"IF($A396=\"N/A\",Ref!$B$36,INDEX(Ranks!$1:$1048576,$A396,CD$1))","v":""},{"$f":"IF($A396=\"N/A\",Ref!$B$36,INDEX(Ranks!$1:$1048576,$A396,CE$1))","v":""},{"$f":"IF($A396=\"N/A\",Ref!$B$36,INDEX(Ranks!$1:$1048576,$A396,CF$1))","v":""},{"$f":"IF($A396=\"N/A\",Ref!$B$36,INDEX(Ranks!$1:$1048576,$A396,CG$1))","v":""},{"$f":"IF($A396=\"N/A\",Ref!$B$36,INDEX(Ranks!$1:$1048576,$A396,CH$1))","v":""},{"$f":"IF($A396=\"N/A\",Ref!$B$36,INDEX(Ranks!$1:$1048576,$A396,CI$1))","v":""},{"$f":"IF($A396=\"N/A\",Ref!$B$36,INDEX(Ranks!$1:$1048576,$A396,CJ$1))","v":""},{"$f":"IF($A396=\"N/A\",Ref!$B$36,INDEX(Ranks!$1:$1048576,$A396,CK$1))","v":""},{"$f":"IF($A396=\"N/A\",Ref!$B$36,INDEX(Ranks!$1:$1048576,$A396,CL$1))","v":""},{"$f":"IF($A396=\"N/A\",Ref!$B$36,INDEX(Ranks!$1:$1048576,$A396,CM$1))","v":""},{"$f":"IF($A396=\"N/A\",Ref!$B$36,INDEX(Ranks!$1:$1048576,$A396,CN$1))","v":""},{"$f":"IF($A396=\"N/A\",Ref!$B$36,INDEX(Ranks!$1:$1048576,$A396,CO$1))","v":""},{"$f":"IF($A396=\"N/A\",Ref!$B$36,INDEX(Ranks!$1:$1048576,$A396,CP$1))","v":""},{"$f":"IF($A396=\"N/A\",Ref!$B$36,INDEX(Ranks!$1:$1048576,$A396,CQ$1))","v":""},{"$f":"IF($A396=\"N/A\",Ref!$B$36,INDEX(Ranks!$1:$1048576,$A396,CR$1))","v":""},{"$f":"IF($A396=\"N/A\",Ref!$B$36,INDEX(Ranks!$1:$1048576,$A396,CS$1))","v":""},{"$f":"IF($A396=\"N/A\",Ref!$B$36,INDEX(Ranks!$1:$1048576,$A396,CT$1))","v":""},{"$f":"IF($A396=\"N/A\",Ref!$B$36,INDEX(Ranks!$1:$1048576,$A396,CU$1))","v":""},{"$f":"IF($A396=\"N/A\",Ref!$B$36,INDEX(Ranks!$1:$1048576,$A396,CV$1))","v":""},{"$f":"IF($A396=\"N/A\",Ref!$B$36,INDEX(Ranks!$1:$1048576,$A396,CW$1))","v":""},{"$f":"IF($A396=\"N/A\",Ref!$B$36,INDEX(Ranks!$1:$1048576,$A396,CX$1))","v":""},{"$f":"IF($A396=\"N/A\",Ref!$B$36,INDEX(Ranks!$1:$1048576,$A396,CY$1))","v":""},{"$f":"IF($A396=\"N/A\",Ref!$B$36,INDEX(Ranks!$1:$1048576,$A396,CZ$1))","v":""},{"$f":"IF($A396=\"N/A\",Ref!$B$36,INDEX(Ranks!$1:$1048576,$A396,DA$1))","v":""},{"$f":"IF($A396=\"N/A\",Ref!$B$36,INDEX(Ranks!$1:$1048576,$A396,DB$1))","v":""},{"$f":"IF($A396=\"N/A\",Ref!$B$36,INDEX(Ranks!$1:$1048576,$A396,DC$1))","v":""},{"$f":"IF($A396=\"N/A\",Ref!$B$36,INDEX(Ranks!$1:$1048576,$A396,DD$1))","v":""},{"$f":"IF($A396=\"N/A\",Ref!$B$36,INDEX(Ranks!$1:$1048576,$A396,DE$1))","v":""},{"$f":"IF($A396=\"N/A\",Ref!$B$36,INDEX(Ranks!$1:$1048576,$A396,DF$1))","v":""},{"$f":"IF($A396=\"N/A\",Ref!$B$36,INDEX(Ranks!$1:$1048576,$A396,DG$1))","v":""},{"$f":"IF($A396=\"N/A\",Ref!$B$36,INDEX(Ranks!$1:$1048576,$A396,DH$1))","v":""},{"$f":"IF($A396=\"N/A\",Ref!$B$36,INDEX(Ranks!$1:$1048576,$A396,DI$1))","v":""},{"$f":"IF($A396=\"N/A\",Ref!$B$36,INDEX(Ranks!$1:$1048576,$A396,DJ$1))","v":""},{"$f":"IF($A396=\"N/A\",Ref!$B$36,INDEX(Ranks!$1:$1048576,$A396,DK$1))","v":""},{"$f":"IF($A396=\"N/A\",Ref!$B$36,INDEX(Ranks!$1:$1048576,$A396,DL$1))","v":""},{"$f":"IF($A396=\"N/A\",Ref!$B$36,INDEX(Ranks!$1:$1048576,$A396,DM$1))","v":""},{"$f":"IF($A396=\"N/A\",Ref!$B$36,INDEX(Ranks!$1:$1048576,$A396,DN$1))","v":""},{"$f":"IF($A396=\"N/A\",Ref!$B$36,INDEX(Ranks!$1:$1048576,$A396,DO$1))","v":""},{"$f":"IF($A396=\"N/A\",Ref!$B$36,INDEX(Ranks!$1:$1048576,$A396,DP$1))","v":""},{"$f":"IF($A396=\"N/A\",Ref!$B$36,INDEX(Ranks!$1:$1048576,$A396,DQ$1))","v":""},{"$f":"IF($A396=\"N/A\",Ref!$B$36,INDEX(Ranks!$1:$1048576,$A396,DR$1))","v":""},{"$f":"IF($A396=\"N/A\",Ref!$B$36,INDEX(Ranks!$1:$1048576,$A396,DS$1))","v":""},{"$f":"IF($A396=\"N/A\",Ref!$B$36,INDEX(Ranks!$1:$1048576,$A396,DT$1))","v":""},{"$f":"IF($A396=\"N/A\",Ref!$B$36,INDEX(Ranks!$1:$1048576,$A396,DU$1))","v":""},{"$f":"IF($A396=\"N/A\",Ref!$B$36,INDEX(Ranks!$1:$1048576,$A396,DV$1))","v":""},{"$f":"IF($A396=\"N/A\",Ref!$B$36,INDEX(Ranks!$1:$1048576,$A396,DW$1))","v":""},{"$f":"IF($A396=\"N/A\",Ref!$B$36,INDEX(Ranks!$1:$1048576,$A396,DX$1))","v":""},{"$f":"IF($A396=\"N/A\",Ref!$B$36,INDEX(Ranks!$1:$1048576,$A396,DY$1))","v":""},{"$f":"IF($A396=\"N/A\",Ref!$B$36,INDEX(Ranks!$1:$1048576,$A396,DZ$1))","v":""},{"$f":"IF($A396=\"N/A\",Ref!$B$36,INDEX(Ranks!$1:$1048576,$A396,EA$1))","v":""},{"$f":"IF($A396=\"N/A\",Ref!$B$36,INDEX(Ranks!$1:$1048576,$A396,EB$1))","v":""}]
[{"$f":"IFERROR(MATCH('Portfolio Page'!L397,Ranks!L:L,0),\"N/A\")","v":"N/A"},null,{"$f":"IF($A397=\"N/A\",\"\",INDEX(Ranks!$1:$1048576,$A397,C$1))","v":""},{"$f":"IF($A397=\"N/A\",Ref!$B$36,INDEX(Ranks!$1:$1048576,$A397,D$1))","v":""},{"$f":"IF($A397=\"N/A\",Ref!$B$36,INDEX(Ranks!$1:$1048576,$A397,E$1))","v":""},{"$f":"IF($A397=\"N/A\",\"\",INDEX(Ranks!$1:$1048576,$A397,F$1))","v":""},{"$f":"IF($A397=\"N/A\",\"\",INDEX(Ranks!$1:$1048576,$A397,G$1))","v":""},{"$f":"IF($A397=\"N/A\",\"\",INDEX(Ranks!$1:$1048576,$A397,H$1))","v":""},{"$f":"IF($A397=\"N/A\",\"\",INDEX(Ranks!$1:$1048576,$A397,I$1))","v":""},{"$f":"IF($A397=\"N/A\",\"\",INDEX(Ranks!$1:$1048576,$A397,J$1))","v":""},{"$f":"IF($A397=\"N/A\",\"\",INDEX(Ranks!$1:$1048576,$A397,K$1))","v":""},null,{"$f":"IF($A397=\"N/A\",Ref!$B$36,INDEX(Ranks!$1:$1048576,$A397,M$1))","v":""},{"$f":"IF($A397=\"N/A\",Ref!$B$36,INDEX(Ranks!$1:$1048576,$A397,N$1))","v":""},{"$f":"IF($A397=\"N/A\",Ref!$B$36,INDEX(Ranks!$1:$1048576,$A397,O$1))","v":""},{"$f":"IF($A397=\"N/A\",Ref!$B$36,INDEX(Ranks!$1:$1048576,$A397,P$1))","v":""},{"$f":"IF($A397=\"N/A\",Ref!$B$36,INDEX(Ranks!$1:$1048576,$A397,Q$1))","v":""},{"$f":"IF($A397=\"N/A\",Ref!$B$36,INDEX(Ranks!$1:$1048576,$A397,R$1))","v":""},{"$f":"IF($A397=\"N/A\",Ref!$B$36,INDEX(Ranks!$1:$1048576,$A397,S$1))","v":""},{"$f":"IF($A397=\"N/A\",Ref!$B$36,INDEX(Ranks!$1:$1048576,$A397,T$1))","v":""},{"$f":"IF($A397=\"N/A\",Ref!$B$36,INDEX(Ranks!$1:$1048576,$A397,U$1))","v":""},{"$f":"IF($A397=\"N/A\",Ref!$B$36,INDEX(Ranks!$1:$1048576,$A397,V$1))","v":""},{"$f":"IF($A397=\"N/A\",Ref!$B$36,INDEX(Ranks!$1:$1048576,$A397,W$1))","v":""},{"$f":"IF($A397=\"N/A\",Ref!$B$36,INDEX(Ranks!$1:$1048576,$A397,X$1))","v":""},{"$f":"IF($A397=\"N/A\",Ref!$B$36,INDEX(Ranks!$1:$1048576,$A397,Y$1))","v":""},{"$f":"IF($A397=\"N/A\",Ref!$B$36,INDEX(Ranks!$1:$1048576,$A397,Z$1))","v":""},{"$f":"IF($A397=\"N/A\",Ref!$B$36,INDEX(Ranks!$1:$1048576,$A397,AA$1))","v":""},{"$f":"IF($A397=\"N/A\",Ref!$B$36,INDEX(Ranks!$1:$1048576,$A397,AB$1))","v":""},{"$f":"IF($A397=\"N/A\",Ref!$B$36,INDEX(Ranks!$1:$1048576,$A397,AC$1))","v":""},{"$f":"IF($A397=\"N/A\",Ref!$B$36,INDEX(Ranks!$1:$1048576,$A397,AD$1))","v":""},{"$f":"IF($A397=\"N/A\",Ref!$B$36,INDEX(Ranks!$1:$1048576,$A397,AE$1))","v":""},{"$f":"IF($A397=\"N/A\",Ref!$B$36,INDEX(Ranks!$1:$1048576,$A397,AF$1))","v":""},{"$f":"IF($A397=\"N/A\",Ref!$B$36,INDEX(Ranks!$1:$1048576,$A397,AG$1))","v":""},{"$f":"IF($A397=\"N/A\",Ref!$B$36,INDEX(Ranks!$1:$1048576,$A397,AH$1))","v":""},{"$f":"IF($A397=\"N/A\",Ref!$B$36,INDEX(Ranks!$1:$1048576,$A397,AI$1))","v":""},{"$f":"IF($A397=\"N/A\",Ref!$B$36,INDEX(Ranks!$1:$1048576,$A397,AJ$1))","v":""},{"$f":"IF($A397=\"N/A\",Ref!$B$36,INDEX(Ranks!$1:$1048576,$A397,AK$1))","v":""},{"$f":"IF($A397=\"N/A\",Ref!$B$36,INDEX(Ranks!$1:$1048576,$A397,AL$1))","v":""},{"$f":"IF($A397=\"N/A\",Ref!$B$36,INDEX(Ranks!$1:$1048576,$A397,AM$1))","v":""},{"$f":"IF($A397=\"N/A\",Ref!$B$36,INDEX(Ranks!$1:$1048576,$A397,AN$1))","v":""},{"$f":"IF($A397=\"N/A\",Ref!$B$36,INDEX(Ranks!$1:$1048576,$A397,AO$1))","v":""},{"$f":"IF($A397=\"N/A\",Ref!$B$36,INDEX(Ranks!$1:$1048576,$A397,AP$1))","v":""},{"$f":"IF($A397=\"N/A\",Ref!$B$36,INDEX(Ranks!$1:$1048576,$A397,AQ$1))","v":""},{"$f":"IF($A397=\"N/A\",Ref!$B$36,INDEX(Ranks!$1:$1048576,$A397,AR$1))","v":""},{"$f":"IF($A397=\"N/A\",Ref!$B$36,INDEX(Ranks!$1:$1048576,$A397,AS$1))","v":""},{"$f":"IF($A397=\"N/A\",Ref!$B$36,INDEX(Ranks!$1:$1048576,$A397,AT$1))","v":""},{"$f":"IF($A397=\"N/A\",Ref!$B$36,INDEX(Ranks!$1:$1048576,$A397,AU$1))","v":""},{"$f":"IF($A397=\"N/A\",Ref!$B$36,INDEX(Ranks!$1:$1048576,$A397,AV$1))","v":""},{"$f":"IF($A397=\"N/A\",Ref!$B$36,INDEX(Ranks!$1:$1048576,$A397,AW$1))","v":""},{"$f":"IF($A397=\"N/A\",Ref!$B$36,INDEX(Ranks!$1:$1048576,$A397,AX$1))","v":""},{"$f":"IF($A397=\"N/A\",Ref!$B$36,INDEX(Ranks!$1:$1048576,$A397,AY$1))","v":""},{"$f":"IF($A397=\"N/A\",Ref!$B$36,INDEX(Ranks!$1:$1048576,$A397,AZ$1))","v":""},{"$f":"IF($A397=\"N/A\",Ref!$B$36,INDEX(Ranks!$1:$1048576,$A397,BA$1))","v":""},{"$f":"IF($A397=\"N/A\",Ref!$B$36,INDEX(Ranks!$1:$1048576,$A397,BB$1))","v":""},{"$f":"IF($A397=\"N/A\",Ref!$B$36,INDEX(Ranks!$1:$1048576,$A397,BC$1))","v":""},{"$f":"IF($A397=\"N/A\",Ref!$B$36,INDEX(Ranks!$1:$1048576,$A397,BD$1))","v":""},{"$f":"IF($A397=\"N/A\",Ref!$B$36,INDEX(Ranks!$1:$1048576,$A397,BE$1))","v":""},{"$f":"IF($A397=\"N/A\",Ref!$B$36,INDEX(Ranks!$1:$1048576,$A397,BF$1))","v":""},{"$f":"IF($A397=\"N/A\",Ref!$B$36,INDEX(Ranks!$1:$1048576,$A397,BG$1))","v":""},{"$f":"IF($A397=\"N/A\",Ref!$B$36,INDEX(Ranks!$1:$1048576,$A397,BH$1))","v":""},{"$f":"IF($A397=\"N/A\",Ref!$B$36,INDEX(Ranks!$1:$1048576,$A397,BI$1))","v":""},{"$f":"IF($A397=\"N/A\",Ref!$B$36,INDEX(Ranks!$1:$1048576,$A397,BJ$1))","v":""},{"$f":"IF($A397=\"N/A\",Ref!$B$36,INDEX(Ranks!$1:$1048576,$A397,BK$1))","v":""},{"$f":"IF($A397=\"N/A\",Ref!$B$36,INDEX(Ranks!$1:$1048576,$A397,BL$1))","v":""},{"$f":"IF($A397=\"N/A\",Ref!$B$36,INDEX(Ranks!$1:$1048576,$A397,BM$1))","v":""},{"$f":"IF($A397=\"N/A\",Ref!$B$36,INDEX(Ranks!$1:$1048576,$A397,BN$1))","v":""},{"$f":"IF($A397=\"N/A\",Ref!$B$36,INDEX(Ranks!$1:$1048576,$A397,BO$1))","v":""},{"$f":"IF($A397=\"N/A\",Ref!$B$36,INDEX(Ranks!$1:$1048576,$A397,BP$1))","v":""},{"$f":"IF($A397=\"N/A\",Ref!$B$36,INDEX(Ranks!$1:$1048576,$A397,BQ$1))","v":""},{"$f":"IF($A397=\"N/A\",Ref!$B$36,INDEX(Ranks!$1:$1048576,$A397,BR$1))","v":""},{"$f":"IF($A397=\"N/A\",Ref!$B$36,INDEX(Ranks!$1:$1048576,$A397,BS$1))","v":""},{"$f":"IF($A397=\"N/A\",Ref!$B$36,INDEX(Ranks!$1:$1048576,$A397,BT$1))","v":""},{"$f":"IF($A397=\"N/A\",Ref!$B$36,INDEX(Ranks!$1:$1048576,$A397,BU$1))","v":""},{"$f":"IF($A397=\"N/A\",Ref!$B$36,INDEX(Ranks!$1:$1048576,$A397,BV$1))","v":""},{"$f":"IF($A397=\"N/A\",Ref!$B$36,INDEX(Ranks!$1:$1048576,$A397,BW$1))","v":""},{"$f":"IF($A397=\"N/A\",Ref!$B$36,INDEX(Ranks!$1:$1048576,$A397,BX$1))","v":""},{"$f":"IF($A397=\"N/A\",Ref!$B$36,INDEX(Ranks!$1:$1048576,$A397,BY$1))","v":""},{"$f":"IF($A397=\"N/A\",Ref!$B$36,INDEX(Ranks!$1:$1048576,$A397,BZ$1))","v":""},{"$f":"IF($A397=\"N/A\",Ref!$B$36,INDEX(Ranks!$1:$1048576,$A397,CA$1))","v":""},{"$f":"IF($A397=\"N/A\",Ref!$B$36,INDEX(Ranks!$1:$1048576,$A397,CB$1))","v":""},{"$f":"IF($A397=\"N/A\",Ref!$B$36,INDEX(Ranks!$1:$1048576,$A397,CC$1))","v":""},{"$f":"IF($A397=\"N/A\",Ref!$B$36,INDEX(Ranks!$1:$1048576,$A397,CD$1))","v":""},{"$f":"IF($A397=\"N/A\",Ref!$B$36,INDEX(Ranks!$1:$1048576,$A397,CE$1))","v":""},{"$f":"IF($A397=\"N/A\",Ref!$B$36,INDEX(Ranks!$1:$1048576,$A397,CF$1))","v":""},{"$f":"IF($A397=\"N/A\",Ref!$B$36,INDEX(Ranks!$1:$1048576,$A397,CG$1))","v":""},{"$f":"IF($A397=\"N/A\",Ref!$B$36,INDEX(Ranks!$1:$1048576,$A397,CH$1))","v":""},{"$f":"IF($A397=\"N/A\",Ref!$B$36,INDEX(Ranks!$1:$1048576,$A397,CI$1))","v":""},{"$f":"IF($A397=\"N/A\",Ref!$B$36,INDEX(Ranks!$1:$1048576,$A397,CJ$1))","v":""},{"$f":"IF($A397=\"N/A\",Ref!$B$36,INDEX(Ranks!$1:$1048576,$A397,CK$1))","v":""},{"$f":"IF($A397=\"N/A\",Ref!$B$36,INDEX(Ranks!$1:$1048576,$A397,CL$1))","v":""},{"$f":"IF($A397=\"N/A\",Ref!$B$36,INDEX(Ranks!$1:$1048576,$A397,CM$1))","v":""},{"$f":"IF($A397=\"N/A\",Ref!$B$36,INDEX(Ranks!$1:$1048576,$A397,CN$1))","v":""},{"$f":"IF($A397=\"N/A\",Ref!$B$36,INDEX(Ranks!$1:$1048576,$A397,CO$1))","v":""},{"$f":"IF($A397=\"N/A\",Ref!$B$36,INDEX(Ranks!$1:$1048576,$A397,CP$1))","v":""},{"$f":"IF($A397=\"N/A\",Ref!$B$36,INDEX(Ranks!$1:$1048576,$A397,CQ$1))","v":""},{"$f":"IF($A397=\"N/A\",Ref!$B$36,INDEX(Ranks!$1:$1048576,$A397,CR$1))","v":""},{"$f":"IF($A397=\"N/A\",Ref!$B$36,INDEX(Ranks!$1:$1048576,$A397,CS$1))","v":""},{"$f":"IF($A397=\"N/A\",Ref!$B$36,INDEX(Ranks!$1:$1048576,$A397,CT$1))","v":""},{"$f":"IF($A397=\"N/A\",Ref!$B$36,INDEX(Ranks!$1:$1048576,$A397,CU$1))","v":""},{"$f":"IF($A397=\"N/A\",Ref!$B$36,INDEX(Ranks!$1:$1048576,$A397,CV$1))","v":""},{"$f":"IF($A397=\"N/A\",Ref!$B$36,INDEX(Ranks!$1:$1048576,$A397,CW$1))","v":""},{"$f":"IF($A397=\"N/A\",Ref!$B$36,INDEX(Ranks!$1:$1048576,$A397,CX$1))","v":""},{"$f":"IF($A397=\"N/A\",Ref!$B$36,INDEX(Ranks!$1:$1048576,$A397,CY$1))","v":""},{"$f":"IF($A397=\"N/A\",Ref!$B$36,INDEX(Ranks!$1:$1048576,$A397,CZ$1))","v":""},{"$f":"IF($A397=\"N/A\",Ref!$B$36,INDEX(Ranks!$1:$1048576,$A397,DA$1))","v":""},{"$f":"IF($A397=\"N/A\",Ref!$B$36,INDEX(Ranks!$1:$1048576,$A397,DB$1))","v":""},{"$f":"IF($A397=\"N/A\",Ref!$B$36,INDEX(Ranks!$1:$1048576,$A397,DC$1))","v":""},{"$f":"IF($A397=\"N/A\",Ref!$B$36,INDEX(Ranks!$1:$1048576,$A397,DD$1))","v":""},{"$f":"IF($A397=\"N/A\",Ref!$B$36,INDEX(Ranks!$1:$1048576,$A397,DE$1))","v":""},{"$f":"IF($A397=\"N/A\",Ref!$B$36,INDEX(Ranks!$1:$1048576,$A397,DF$1))","v":""},{"$f":"IF($A397=\"N/A\",Ref!$B$36,INDEX(Ranks!$1:$1048576,$A397,DG$1))","v":""},{"$f":"IF($A397=\"N/A\",Ref!$B$36,INDEX(Ranks!$1:$1048576,$A397,DH$1))","v":""},{"$f":"IF($A397=\"N/A\",Ref!$B$36,INDEX(Ranks!$1:$1048576,$A397,DI$1))","v":""},{"$f":"IF($A397=\"N/A\",Ref!$B$36,INDEX(Ranks!$1:$1048576,$A397,DJ$1))","v":""},{"$f":"IF($A397=\"N/A\",Ref!$B$36,INDEX(Ranks!$1:$1048576,$A397,DK$1))","v":""},{"$f":"IF($A397=\"N/A\",Ref!$B$36,INDEX(Ranks!$1:$1048576,$A397,DL$1))","v":""},{"$f":"IF($A397=\"N/A\",Ref!$B$36,INDEX(Ranks!$1:$1048576,$A397,DM$1))","v":""},{"$f":"IF($A397=\"N/A\",Ref!$B$36,INDEX(Ranks!$1:$1048576,$A397,DN$1))","v":""},{"$f":"IF($A397=\"N/A\",Ref!$B$36,INDEX(Ranks!$1:$1048576,$A397,DO$1))","v":""},{"$f":"IF($A397=\"N/A\",Ref!$B$36,INDEX(Ranks!$1:$1048576,$A397,DP$1))","v":""},{"$f":"IF($A397=\"N/A\",Ref!$B$36,INDEX(Ranks!$1:$1048576,$A397,DQ$1))","v":""},{"$f":"IF($A397=\"N/A\",Ref!$B$36,INDEX(Ranks!$1:$1048576,$A397,DR$1))","v":""},{"$f":"IF($A397=\"N/A\",Ref!$B$36,INDEX(Ranks!$1:$1048576,$A397,DS$1))","v":""},{"$f":"IF($A397=\"N/A\",Ref!$B$36,INDEX(Ranks!$1:$1048576,$A397,DT$1))","v":""},{"$f":"IF($A397=\"N/A\",Ref!$B$36,INDEX(Ranks!$1:$1048576,$A397,DU$1))","v":""},{"$f":"IF($A397=\"N/A\",Ref!$B$36,INDEX(Ranks!$1:$1048576,$A397,DV$1))","v":""},{"$f":"IF($A397=\"N/A\",Ref!$B$36,INDEX(Ranks!$1:$1048576,$A397,DW$1))","v":""},{"$f":"IF($A397=\"N/A\",Ref!$B$36,INDEX(Ranks!$1:$1048576,$A397,DX$1))","v":""},{"$f":"IF($A397=\"N/A\",Ref!$B$36,INDEX(Ranks!$1:$1048576,$A397,DY$1))","v":""},{"$f":"IF($A397=\"N/A\",Ref!$B$36,INDEX(Ranks!$1:$1048576,$A397,DZ$1))","v":""},{"$f":"IF($A397=\"N/A\",Ref!$B$36,INDEX(Ranks!$1:$1048576,$A397,EA$1))","v":""},{"$f":"IF($A397=\"N/A\",Ref!$B$36,INDEX(Ranks!$1:$1048576,$A397,EB$1))","v":""}]
[{"$f":"IFERROR(MATCH('Portfolio Page'!L398,Ranks!L:L,0),\"N/A\")","v":"N/A"},null,{"$f":"IF($A398=\"N/A\",\"\",INDEX(Ranks!$1:$1048576,$A398,C$1))","v":""},{"$f":"IF($A398=\"N/A\",Ref!$B$36,INDEX(Ranks!$1:$1048576,$A398,D$1))","v":""},{"$f":"IF($A398=\"N/A\",Ref!$B$36,INDEX(Ranks!$1:$1048576,$A398,E$1))","v":""},{"$f":"IF($A398=\"N/A\",\"\",INDEX(Ranks!$1:$1048576,$A398,F$1))","v":""},{"$f":"IF($A398=\"N/A\",\"\",INDEX(Ranks!$1:$1048576,$A398,G$1))","v":""},{"$f":"IF($A398=\"N/A\",\"\",INDEX(Ranks!$1:$1048576,$A398,H$1))","v":""},{"$f":"IF($A398=\"N/A\",\"\",INDEX(Ranks!$1:$1048576,$A398,I$1))","v":""},{"$f":"IF($A398=\"N/A\",\"\",INDEX(Ranks!$1:$1048576,$A398,J$1))","v":""},{"$f":"IF($A398=\"N/A\",\"\",INDEX(Ranks!$1:$1048576,$A398,K$1))","v":""},null,{"$f":"IF($A398=\"N/A\",Ref!$B$36,INDEX(Ranks!$1:$1048576,$A398,M$1))","v":""},{"$f":"IF($A398=\"N/A\",Ref!$B$36,INDEX(Ranks!$1:$1048576,$A398,N$1))","v":""},{"$f":"IF($A398=\"N/A\",Ref!$B$36,INDEX(Ranks!$1:$1048576,$A398,O$1))","v":""},{"$f":"IF($A398=\"N/A\",Ref!$B$36,INDEX(Ranks!$1:$1048576,$A398,P$1))","v":""},{"$f":"IF($A398=\"N/A\",Ref!$B$36,INDEX(Ranks!$1:$1048576,$A398,Q$1))","v":""},{"$f":"IF($A398=\"N/A\",Ref!$B$36,INDEX(Ranks!$1:$1048576,$A398,R$1))","v":""},{"$f":"IF($A398=\"N/A\",Ref!$B$36,INDEX(Ranks!$1:$1048576,$A398,S$1))","v":""},{"$f":"IF($A398=\"N/A\",Ref!$B$36,INDEX(Ranks!$1:$1048576,$A398,T$1))","v":""},{"$f":"IF($A398=\"N/A\",Ref!$B$36,INDEX(Ranks!$1:$1048576,$A398,U$1))","v":""},{"$f":"IF($A398=\"N/A\",Ref!$B$36,INDEX(Ranks!$1:$1048576,$A398,V$1))","v":""},{"$f":"IF($A398=\"N/A\",Ref!$B$36,INDEX(Ranks!$1:$1048576,$A398,W$1))","v":""},{"$f":"IF($A398=\"N/A\",Ref!$B$36,INDEX(Ranks!$1:$1048576,$A398,X$1))","v":""},{"$f":"IF($A398=\"N/A\",Ref!$B$36,INDEX(Ranks!$1:$1048576,$A398,Y$1))","v":""},{"$f":"IF($A398=\"N/A\",Ref!$B$36,INDEX(Ranks!$1:$1048576,$A398,Z$1))","v":""},{"$f":"IF($A398=\"N/A\",Ref!$B$36,INDEX(Ranks!$1:$1048576,$A398,AA$1))","v":""},{"$f":"IF($A398=\"N/A\",Ref!$B$36,INDEX(Ranks!$1:$1048576,$A398,AB$1))","v":""},{"$f":"IF($A398=\"N/A\",Ref!$B$36,INDEX(Ranks!$1:$1048576,$A398,AC$1))","v":""},{"$f":"IF($A398=\"N/A\",Ref!$B$36,INDEX(Ranks!$1:$1048576,$A398,AD$1))","v":""},{"$f":"IF($A398=\"N/A\",Ref!$B$36,INDEX(Ranks!$1:$1048576,$A398,AE$1))","v":""},{"$f":"IF($A398=\"N/A\",Ref!$B$36,INDEX(Ranks!$1:$1048576,$A398,AF$1))","v":""},{"$f":"IF($A398=\"N/A\",Ref!$B$36,INDEX(Ranks!$1:$1048576,$A398,AG$1))","v":""},{"$f":"IF($A398=\"N/A\",Ref!$B$36,INDEX(Ranks!$1:$1048576,$A398,AH$1))","v":""},{"$f":"IF($A398=\"N/A\",Ref!$B$36,INDEX(Ranks!$1:$1048576,$A398,AI$1))","v":""},{"$f":"IF($A398=\"N/A\",Ref!$B$36,INDEX(Ranks!$1:$1048576,$A398,AJ$1))","v":""},{"$f":"IF($A398=\"N/A\",Ref!$B$36,INDEX(Ranks!$1:$1048576,$A398,AK$1))","v":""},{"$f":"IF($A398=\"N/A\",Ref!$B$36,INDEX(Ranks!$1:$1048576,$A398,AL$1))","v":""},{"$f":"IF($A398=\"N/A\",Ref!$B$36,INDEX(Ranks!$1:$1048576,$A398,AM$1))","v":""},{"$f":"IF($A398=\"N/A\",Ref!$B$36,INDEX(Ranks!$1:$1048576,$A398,AN$1))","v":""},{"$f":"IF($A398=\"N/A\",Ref!$B$36,INDEX(Ranks!$1:$1048576,$A398,AO$1))","v":""},{"$f":"IF($A398=\"N/A\",Ref!$B$36,INDEX(Ranks!$1:$1048576,$A398,AP$1))","v":""},{"$f":"IF($A398=\"N/A\",Ref!$B$36,INDEX(Ranks!$1:$1048576,$A398,AQ$1))","v":""},{"$f":"IF($A398=\"N/A\",Ref!$B$36,INDEX(Ranks!$1:$1048576,$A398,AR$1))","v":""},{"$f":"IF($A398=\"N/A\",Ref!$B$36,INDEX(Ranks!$1:$1048576,$A398,AS$1))","v":""},{"$f":"IF($A398=\"N/A\",Ref!$B$36,INDEX(Ranks!$1:$1048576,$A398,AT$1))","v":""},{"$f":"IF($A398=\"N/A\",Ref!$B$36,INDEX(Ranks!$1:$1048576,$A398,AU$1))","v":""},{"$f":"IF($A398=\"N/A\",Ref!$B$36,INDEX(Ranks!$1:$1048576,$A398,AV$1))","v":""},{"$f":"IF($A398=\"N/A\",Ref!$B$36,INDEX(Ranks!$1:$1048576,$A398,AW$1))","v":""},{"$f":"IF($A398=\"N/A\",Ref!$B$36,INDEX(Ranks!$1:$1048576,$A398,AX$1))","v":""},{"$f":"IF($A398=\"N/A\",Ref!$B$36,INDEX(Ranks!$1:$1048576,$A398,AY$1))","v":""},{"$f":"IF($A398=\"N/A\",Ref!$B$36,INDEX(Ranks!$1:$1048576,$A398,AZ$1))","v":""},{"$f":"IF($A398=\"N/A\",Ref!$B$36,INDEX(Ranks!$1:$1048576,$A398,BA$1))","v":""},{"$f":"IF($A398=\"N/A\",Ref!$B$36,INDEX(Ranks!$1:$1048576,$A398,BB$1))","v":""},{"$f":"IF($A398=\"N/A\",Ref!$B$36,INDEX(Ranks!$1:$1048576,$A398,BC$1))","v":""},{"$f":"IF($A398=\"N/A\",Ref!$B$36,INDEX(Ranks!$1:$1048576,$A398,BD$1))","v":""},{"$f":"IF($A398=\"N/A\",Ref!$B$36,INDEX(Ranks!$1:$1048576,$A398,BE$1))","v":""},{"$f":"IF($A398=\"N/A\",Ref!$B$36,INDEX(Ranks!$1:$1048576,$A398,BF$1))","v":""},{"$f":"IF($A398=\"N/A\",Ref!$B$36,INDEX(Ranks!$1:$1048576,$A398,BG$1))","v":""},{"$f":"IF($A398=\"N/A\",Ref!$B$36,INDEX(Ranks!$1:$1048576,$A398,BH$1))","v":""},{"$f":"IF($A398=\"N/A\",Ref!$B$36,INDEX(Ranks!$1:$1048576,$A398,BI$1))","v":""},{"$f":"IF($A398=\"N/A\",Ref!$B$36,INDEX(Ranks!$1:$1048576,$A398,BJ$1))","v":""},{"$f":"IF($A398=\"N/A\",Ref!$B$36,INDEX(Ranks!$1:$1048576,$A398,BK$1))","v":""},{"$f":"IF($A398=\"N/A\",Ref!$B$36,INDEX(Ranks!$1:$1048576,$A398,BL$1))","v":""},{"$f":"IF($A398=\"N/A\",Ref!$B$36,INDEX(Ranks!$1:$1048576,$A398,BM$1))","v":""},{"$f":"IF($A398=\"N/A\",Ref!$B$36,INDEX(Ranks!$1:$1048576,$A398,BN$1))","v":""},{"$f":"IF($A398=\"N/A\",Ref!$B$36,INDEX(Ranks!$1:$1048576,$A398,BO$1))","v":""},{"$f":"IF($A398=\"N/A\",Ref!$B$36,INDEX(Ranks!$1:$1048576,$A398,BP$1))","v":""},{"$f":"IF($A398=\"N/A\",Ref!$B$36,INDEX(Ranks!$1:$1048576,$A398,BQ$1))","v":""},{"$f":"IF($A398=\"N/A\",Ref!$B$36,INDEX(Ranks!$1:$1048576,$A398,BR$1))","v":""},{"$f":"IF($A398=\"N/A\",Ref!$B$36,INDEX(Ranks!$1:$1048576,$A398,BS$1))","v":""},{"$f":"IF($A398=\"N/A\",Ref!$B$36,INDEX(Ranks!$1:$1048576,$A398,BT$1))","v":""},{"$f":"IF($A398=\"N/A\",Ref!$B$36,INDEX(Ranks!$1:$1048576,$A398,BU$1))","v":""},{"$f":"IF($A398=\"N/A\",Ref!$B$36,INDEX(Ranks!$1:$1048576,$A398,BV$1))","v":""},{"$f":"IF($A398=\"N/A\",Ref!$B$36,INDEX(Ranks!$1:$1048576,$A398,BW$1))","v":""},{"$f":"IF($A398=\"N/A\",Ref!$B$36,INDEX(Ranks!$1:$1048576,$A398,BX$1))","v":""},{"$f":"IF($A398=\"N/A\",Ref!$B$36,INDEX(Ranks!$1:$1048576,$A398,BY$1))","v":""},{"$f":"IF($A398=\"N/A\",Ref!$B$36,INDEX(Ranks!$1:$1048576,$A398,BZ$1))","v":""},{"$f":"IF($A398=\"N/A\",Ref!$B$36,INDEX(Ranks!$1:$1048576,$A398,CA$1))","v":""},{"$f":"IF($A398=\"N/A\",Ref!$B$36,INDEX(Ranks!$1:$1048576,$A398,CB$1))","v":""},{"$f":"IF($A398=\"N/A\",Ref!$B$36,INDEX(Ranks!$1:$1048576,$A398,CC$1))","v":""},{"$f":"IF($A398=\"N/A\",Ref!$B$36,INDEX(Ranks!$1:$1048576,$A398,CD$1))","v":""},{"$f":"IF($A398=\"N/A\",Ref!$B$36,INDEX(Ranks!$1:$1048576,$A398,CE$1))","v":""},{"$f":"IF($A398=\"N/A\",Ref!$B$36,INDEX(Ranks!$1:$1048576,$A398,CF$1))","v":""},{"$f":"IF($A398=\"N/A\",Ref!$B$36,INDEX(Ranks!$1:$1048576,$A398,CG$1))","v":""},{"$f":"IF($A398=\"N/A\",Ref!$B$36,INDEX(Ranks!$1:$1048576,$A398,CH$1))","v":""},{"$f":"IF($A398=\"N/A\",Ref!$B$36,INDEX(Ranks!$1:$1048576,$A398,CI$1))","v":""},{"$f":"IF($A398=\"N/A\",Ref!$B$36,INDEX(Ranks!$1:$1048576,$A398,CJ$1))","v":""},{"$f":"IF($A398=\"N/A\",Ref!$B$36,INDEX(Ranks!$1:$1048576,$A398,CK$1))","v":""},{"$f":"IF($A398=\"N/A\",Ref!$B$36,INDEX(Ranks!$1:$1048576,$A398,CL$1))","v":""},{"$f":"IF($A398=\"N/A\",Ref!$B$36,INDEX(Ranks!$1:$1048576,$A398,CM$1))","v":""},{"$f":"IF($A398=\"N/A\",Ref!$B$36,INDEX(Ranks!$1:$1048576,$A398,CN$1))","v":""},{"$f":"IF($A398=\"N/A\",Ref!$B$36,INDEX(Ranks!$1:$1048576,$A398,CO$1))","v":""},{"$f":"IF($A398=\"N/A\",Ref!$B$36,INDEX(Ranks!$1:$1048576,$A398,CP$1))","v":""},{"$f":"IF($A398=\"N/A\",Ref!$B$36,INDEX(Ranks!$1:$1048576,$A398,CQ$1))","v":""},{"$f":"IF($A398=\"N/A\",Ref!$B$36,INDEX(Ranks!$1:$1048576,$A398,CR$1))","v":""},{"$f":"IF($A398=\"N/A\",Ref!$B$36,INDEX(Ranks!$1:$1048576,$A398,CS$1))","v":""},{"$f":"IF($A398=\"N/A\",Ref!$B$36,INDEX(Ranks!$1:$1048576,$A398,CT$1))","v":""},{"$f":"IF($A398=\"N/A\",Ref!$B$36,INDEX(Ranks!$1:$1048576,$A398,CU$1))","v":""},{"$f":"IF($A398=\"N/A\",Ref!$B$36,INDEX(Ranks!$1:$1048576,$A398,CV$1))","v":""},{"$f":"IF($A398=\"N/A\",Ref!$B$36,INDEX(Ranks!$1:$1048576,$A398,CW$1))","v":""},{"$f":"IF($A398=\"N/A\",Ref!$B$36,INDEX(Ranks!$1:$1048576,$A398,CX$1))","v":""},{"$f":"IF($A398=\"N/A\",Ref!$B$36,INDEX(Ranks!$1:$1048576,$A398,CY$1))","v":""},{"$f":"IF($A398=\"N/A\",Ref!$B$36,INDEX(Ranks!$1:$1048576,$A398,CZ$1))","v":""},{"$f":"IF($A398=\"N/A\",Ref!$B$36,INDEX(Ranks!$1:$1048576,$A398,DA$1))","v":""},{"$f":"IF($A398=\"N/A\",Ref!$B$36,INDEX(Ranks!$1:$1048576,$A398,DB$1))","v":""},{"$f":"IF($A398=\"N/A\",Ref!$B$36,INDEX(Ranks!$1:$1048576,$A398,DC$1))","v":""},{"$f":"IF($A398=\"N/A\",Ref!$B$36,INDEX(Ranks!$1:$1048576,$A398,DD$1))","v":""},{"$f":"IF($A398=\"N/A\",Ref!$B$36,INDEX(Ranks!$1:$1048576,$A398,DE$1))","v":""},{"$f":"IF($A398=\"N/A\",Ref!$B$36,INDEX(Ranks!$1:$1048576,$A398,DF$1))","v":""},{"$f":"IF($A398=\"N/A\",Ref!$B$36,INDEX(Ranks!$1:$1048576,$A398,DG$1))","v":""},{"$f":"IF($A398=\"N/A\",Ref!$B$36,INDEX(Ranks!$1:$1048576,$A398,DH$1))","v":""},{"$f":"IF($A398=\"N/A\",Ref!$B$36,INDEX(Ranks!$1:$1048576,$A398,DI$1))","v":""},{"$f":"IF($A398=\"N/A\",Ref!$B$36,INDEX(Ranks!$1:$1048576,$A398,DJ$1))","v":""},{"$f":"IF($A398=\"N/A\",Ref!$B$36,INDEX(Ranks!$1:$1048576,$A398,DK$1))","v":""},{"$f":"IF($A398=\"N/A\",Ref!$B$36,INDEX(Ranks!$1:$1048576,$A398,DL$1))","v":""},{"$f":"IF($A398=\"N/A\",Ref!$B$36,INDEX(Ranks!$1:$1048576,$A398,DM$1))","v":""},{"$f":"IF($A398=\"N/A\",Ref!$B$36,INDEX(Ranks!$1:$1048576,$A398,DN$1))","v":""},{"$f":"IF($A398=\"N/A\",Ref!$B$36,INDEX(Ranks!$1:$1048576,$A398,DO$1))","v":""},{"$f":"IF($A398=\"N/A\",Ref!$B$36,INDEX(Ranks!$1:$1048576,$A398,DP$1))","v":""},{"$f":"IF($A398=\"N/A\",Ref!$B$36,INDEX(Ranks!$1:$1048576,$A398,DQ$1))","v":""},{"$f":"IF($A398=\"N/A\",Ref!$B$36,INDEX(Ranks!$1:$1048576,$A398,DR$1))","v":""},{"$f":"IF($A398=\"N/A\",Ref!$B$36,INDEX(Ranks!$1:$1048576,$A398,DS$1))","v":""},{"$f":"IF($A398=\"N/A\",Ref!$B$36,INDEX(Ranks!$1:$1048576,$A398,DT$1))","v":""},{"$f":"IF($A398=\"N/A\",Ref!$B$36,INDEX(Ranks!$1:$1048576,$A398,DU$1))","v":""},{"$f":"IF($A398=\"N/A\",Ref!$B$36,INDEX(Ranks!$1:$1048576,$A398,DV$1))","v":""},{"$f":"IF($A398=\"N/A\",Ref!$B$36,INDEX(Ranks!$1:$1048576,$A398,DW$1))","v":""},{"$f":"IF($A398=\"N/A\",Ref!$B$36,INDEX(Ranks!$1:$1048576,$A398,DX$1))","v":""},{"$f":"IF($A398=\"N/A\",Ref!$B$36,INDEX(Ranks!$1:$1048576,$A398,DY$1))","v":""},{"$f":"IF($A398=\"N/A\",Ref!$B$36,INDEX(Ranks!$1:$1048576,$A398,DZ$1))","v":""},{"$f":"IF($A398=\"N/A\",Ref!$B$36,INDEX(Ranks!$1:$1048576,$A398,EA$1))","v":""},{"$f":"IF($A398=\"N/A\",Ref!$B$36,INDEX(Ranks!$1:$1048576,$A398,EB$1))","v":""}]
[{"$f":"IFERROR(MATCH('Portfolio Page'!L399,Ranks!L:L,0),\"N/A\")","v":"N/A"},null,{"$f":"IF($A399=\"N/A\",\"\",INDEX(Ranks!$1:$1048576,$A399,C$1))","v":""},{"$f":"IF($A399=\"N/A\",Ref!$B$36,INDEX(Ranks!$1:$1048576,$A399,D$1))","v":""},{"$f":"IF($A399=\"N/A\",Ref!$B$36,INDEX(Ranks!$1:$1048576,$A399,E$1))","v":""},{"$f":"IF($A399=\"N/A\",\"\",INDEX(Ranks!$1:$1048576,$A399,F$1))","v":""},{"$f":"IF($A399=\"N/A\",\"\",INDEX(Ranks!$1:$1048576,$A399,G$1))","v":""},{"$f":"IF($A399=\"N/A\",\"\",INDEX(Ranks!$1:$1048576,$A399,H$1))","v":""},{"$f":"IF($A399=\"N/A\",\"\",INDEX(Ranks!$1:$1048576,$A399,I$1))","v":""},{"$f":"IF($A399=\"N/A\",\"\",INDEX(Ranks!$1:$1048576,$A399,J$1))","v":""},{"$f":"IF($A399=\"N/A\",\"\",INDEX(Ranks!$1:$1048576,$A399,K$1))","v":""},null,{"$f":"IF($A399=\"N/A\",Ref!$B$36,INDEX(Ranks!$1:$1048576,$A399,M$1))","v":""},{"$f":"IF($A399=\"N/A\",Ref!$B$36,INDEX(Ranks!$1:$1048576,$A399,N$1))","v":""},{"$f":"IF($A399=\"N/A\",Ref!$B$36,INDEX(Ranks!$1:$1048576,$A399,O$1))","v":""},{"$f":"IF($A399=\"N/A\",Ref!$B$36,INDEX(Ranks!$1:$1048576,$A399,P$1))","v":""},{"$f":"IF($A399=\"N/A\",Ref!$B$36,INDEX(Ranks!$1:$1048576,$A399,Q$1))","v":""},{"$f":"IF($A399=\"N/A\",Ref!$B$36,INDEX(Ranks!$1:$1048576,$A399,R$1))","v":""},{"$f":"IF($A399=\"N/A\",Ref!$B$36,INDEX(Ranks!$1:$1048576,$A399,S$1))","v":""},{"$f":"IF($A399=\"N/A\",Ref!$B$36,INDEX(Ranks!$1:$1048576,$A399,T$1))","v":""},{"$f":"IF($A399=\"N/A\",Ref!$B$36,INDEX(Ranks!$1:$1048576,$A399,U$1))","v":""},{"$f":"IF($A399=\"N/A\",Ref!$B$36,INDEX(Ranks!$1:$1048576,$A399,V$1))","v":""},{"$f":"IF($A399=\"N/A\",Ref!$B$36,INDEX(Ranks!$1:$1048576,$A399,W$1))","v":""},{"$f":"IF($A399=\"N/A\",Ref!$B$36,INDEX(Ranks!$1:$1048576,$A399,X$1))","v":""},{"$f":"IF($A399=\"N/A\",Ref!$B$36,INDEX(Ranks!$1:$1048576,$A399,Y$1))","v":""},{"$f":"IF($A399=\"N/A\",Ref!$B$36,INDEX(Ranks!$1:$1048576,$A399,Z$1))","v":""},{"$f":"IF($A399=\"N/A\",Ref!$B$36,INDEX(Ranks!$1:$1048576,$A399,AA$1))","v":""},{"$f":"IF($A399=\"N/A\",Ref!$B$36,INDEX(Ranks!$1:$1048576,$A399,AB$1))","v":""},{"$f":"IF($A399=\"N/A\",Ref!$B$36,INDEX(Ranks!$1:$1048576,$A399,AC$1))","v":""},{"$f":"IF($A399=\"N/A\",Ref!$B$36,INDEX(Ranks!$1:$1048576,$A399,AD$1))","v":""},{"$f":"IF($A399=\"N/A\",Ref!$B$36,INDEX(Ranks!$1:$1048576,$A399,AE$1))","v":""},{"$f":"IF($A399=\"N/A\",Ref!$B$36,INDEX(Ranks!$1:$1048576,$A399,AF$1))","v":""},{"$f":"IF($A399=\"N/A\",Ref!$B$36,INDEX(Ranks!$1:$1048576,$A399,AG$1))","v":""},{"$f":"IF($A399=\"N/A\",Ref!$B$36,INDEX(Ranks!$1:$1048576,$A399,AH$1))","v":""},{"$f":"IF($A399=\"N/A\",Ref!$B$36,INDEX(Ranks!$1:$1048576,$A399,AI$1))","v":""},{"$f":"IF($A399=\"N/A\",Ref!$B$36,INDEX(Ranks!$1:$1048576,$A399,AJ$1))","v":""},{"$f":"IF($A399=\"N/A\",Ref!$B$36,INDEX(Ranks!$1:$1048576,$A399,AK$1))","v":""},{"$f":"IF($A399=\"N/A\",Ref!$B$36,INDEX(Ranks!$1:$1048576,$A399,AL$1))","v":""},{"$f":"IF($A399=\"N/A\",Ref!$B$36,INDEX(Ranks!$1:$1048576,$A399,AM$1))","v":""},{"$f":"IF($A399=\"N/A\",Ref!$B$36,INDEX(Ranks!$1:$1048576,$A399,AN$1))","v":""},{"$f":"IF($A399=\"N/A\",Ref!$B$36,INDEX(Ranks!$1:$1048576,$A399,AO$1))","v":""},{"$f":"IF($A399=\"N/A\",Ref!$B$36,INDEX(Ranks!$1:$1048576,$A399,AP$1))","v":""},{"$f":"IF($A399=\"N/A\",Ref!$B$36,INDEX(Ranks!$1:$1048576,$A399,AQ$1))","v":""},{"$f":"IF($A399=\"N/A\",Ref!$B$36,INDEX(Ranks!$1:$1048576,$A399,AR$1))","v":""},{"$f":"IF($A399=\"N/A\",Ref!$B$36,INDEX(Ranks!$1:$1048576,$A399,AS$1))","v":""},{"$f":"IF($A399=\"N/A\",Ref!$B$36,INDEX(Ranks!$1:$1048576,$A399,AT$1))","v":""},{"$f":"IF($A399=\"N/A\",Ref!$B$36,INDEX(Ranks!$1:$1048576,$A399,AU$1))","v":""},{"$f":"IF($A399=\"N/A\",Ref!$B$36,INDEX(Ranks!$1:$1048576,$A399,AV$1))","v":""},{"$f":"IF($A399=\"N/A\",Ref!$B$36,INDEX(Ranks!$1:$1048576,$A399,AW$1))","v":""},{"$f":"IF($A399=\"N/A\",Ref!$B$36,INDEX(Ranks!$1:$1048576,$A399,AX$1))","v":""},{"$f":"IF($A399=\"N/A\",Ref!$B$36,INDEX(Ranks!$1:$1048576,$A399,AY$1))","v":""},{"$f":"IF($A399=\"N/A\",Ref!$B$36,INDEX(Ranks!$1:$1048576,$A399,AZ$1))","v":""},{"$f":"IF($A399=\"N/A\",Ref!$B$36,INDEX(Ranks!$1:$1048576,$A399,BA$1))","v":""},{"$f":"IF($A399=\"N/A\",Ref!$B$36,INDEX(Ranks!$1:$1048576,$A399,BB$1))","v":""},{"$f":"IF($A399=\"N/A\",Ref!$B$36,INDEX(Ranks!$1:$1048576,$A399,BC$1))","v":""},{"$f":"IF($A399=\"N/A\",Ref!$B$36,INDEX(Ranks!$1:$1048576,$A399,BD$1))","v":""},{"$f":"IF($A399=\"N/A\",Ref!$B$36,INDEX(Ranks!$1:$1048576,$A399,BE$1))","v":""},{"$f":"IF($A399=\"N/A\",Ref!$B$36,INDEX(Ranks!$1:$1048576,$A399,BF$1))","v":""},{"$f":"IF($A399=\"N/A\",Ref!$B$36,INDEX(Ranks!$1:$1048576,$A399,BG$1))","v":""},{"$f":"IF($A399=\"N/A\",Ref!$B$36,INDEX(Ranks!$1:$1048576,$A399,BH$1))","v":""},{"$f":"IF($A399=\"N/A\",Ref!$B$36,INDEX(Ranks!$1:$1048576,$A399,BI$1))","v":""},{"$f":"IF($A399=\"N/A\",Ref!$B$36,INDEX(Ranks!$1:$1048576,$A399,BJ$1))","v":""},{"$f":"IF($A399=\"N/A\",Ref!$B$36,INDEX(Ranks!$1:$1048576,$A399,BK$1))","v":""},{"$f":"IF($A399=\"N/A\",Ref!$B$36,INDEX(Ranks!$1:$1048576,$A399,BL$1))","v":""},{"$f":"IF($A399=\"N/A\",Ref!$B$36,INDEX(Ranks!$1:$1048576,$A399,BM$1))","v":""},{"$f":"IF($A399=\"N/A\",Ref!$B$36,INDEX(Ranks!$1:$1048576,$A399,BN$1))","v":""},{"$f":"IF($A399=\"N/A\",Ref!$B$36,INDEX(Ranks!$1:$1048576,$A399,BO$1))","v":""},{"$f":"IF($A399=\"N/A\",Ref!$B$36,INDEX(Ranks!$1:$1048576,$A399,BP$1))","v":""},{"$f":"IF($A399=\"N/A\",Ref!$B$36,INDEX(Ranks!$1:$1048576,$A399,BQ$1))","v":""},{"$f":"IF($A399=\"N/A\",Ref!$B$36,INDEX(Ranks!$1:$1048576,$A399,BR$1))","v":""},{"$f":"IF($A399=\"N/A\",Ref!$B$36,INDEX(Ranks!$1:$1048576,$A399,BS$1))","v":""},{"$f":"IF($A399=\"N/A\",Ref!$B$36,INDEX(Ranks!$1:$1048576,$A399,BT$1))","v":""},{"$f":"IF($A399=\"N/A\",Ref!$B$36,INDEX(Ranks!$1:$1048576,$A399,BU$1))","v":""},{"$f":"IF($A399=\"N/A\",Ref!$B$36,INDEX(Ranks!$1:$1048576,$A399,BV$1))","v":""},{"$f":"IF($A399=\"N/A\",Ref!$B$36,INDEX(Ranks!$1:$1048576,$A399,BW$1))","v":""},{"$f":"IF($A399=\"N/A\",Ref!$B$36,INDEX(Ranks!$1:$1048576,$A399,BX$1))","v":""},{"$f":"IF($A399=\"N/A\",Ref!$B$36,INDEX(Ranks!$1:$1048576,$A399,BY$1))","v":""},{"$f":"IF($A399=\"N/A\",Ref!$B$36,INDEX(Ranks!$1:$1048576,$A399,BZ$1))","v":""},{"$f":"IF($A399=\"N/A\",Ref!$B$36,INDEX(Ranks!$1:$1048576,$A399,CA$1))","v":""},{"$f":"IF($A399=\"N/A\",Ref!$B$36,INDEX(Ranks!$1:$1048576,$A399,CB$1))","v":""},{"$f":"IF($A399=\"N/A\",Ref!$B$36,INDEX(Ranks!$1:$1048576,$A399,CC$1))","v":""},{"$f":"IF($A399=\"N/A\",Ref!$B$36,INDEX(Ranks!$1:$1048576,$A399,CD$1))","v":""},{"$f":"IF($A399=\"N/A\",Ref!$B$36,INDEX(Ranks!$1:$1048576,$A399,CE$1))","v":""},{"$f":"IF($A399=\"N/A\",Ref!$B$36,INDEX(Ranks!$1:$1048576,$A399,CF$1))","v":""},{"$f":"IF($A399=\"N/A\",Ref!$B$36,INDEX(Ranks!$1:$1048576,$A399,CG$1))","v":""},{"$f":"IF($A399=\"N/A\",Ref!$B$36,INDEX(Ranks!$1:$1048576,$A399,CH$1))","v":""},{"$f":"IF($A399=\"N/A\",Ref!$B$36,INDEX(Ranks!$1:$1048576,$A399,CI$1))","v":""},{"$f":"IF($A399=\"N/A\",Ref!$B$36,INDEX(Ranks!$1:$1048576,$A399,CJ$1))","v":""},{"$f":"IF($A399=\"N/A\",Ref!$B$36,INDEX(Ranks!$1:$1048576,$A399,CK$1))","v":""},{"$f":"IF($A399=\"N/A\",Ref!$B$36,INDEX(Ranks!$1:$1048576,$A399,CL$1))","v":""},{"$f":"IF($A399=\"N/A\",Ref!$B$36,INDEX(Ranks!$1:$1048576,$A399,CM$1))","v":""},{"$f":"IF($A399=\"N/A\",Ref!$B$36,INDEX(Ranks!$1:$1048576,$A399,CN$1))","v":""},{"$f":"IF($A399=\"N/A\",Ref!$B$36,INDEX(Ranks!$1:$1048576,$A399,CO$1))","v":""},{"$f":"IF($A399=\"N/A\",Ref!$B$36,INDEX(Ranks!$1:$1048576,$A399,CP$1))","v":""},{"$f":"IF($A399=\"N/A\",Ref!$B$36,INDEX(Ranks!$1:$1048576,$A399,CQ$1))","v":""},{"$f":"IF($A399=\"N/A\",Ref!$B$36,INDEX(Ranks!$1:$1048576,$A399,CR$1))","v":""},{"$f":"IF($A399=\"N/A\",Ref!$B$36,INDEX(Ranks!$1:$1048576,$A399,CS$1))","v":""},{"$f":"IF($A399=\"N/A\",Ref!$B$36,INDEX(Ranks!$1:$1048576,$A399,CT$1))","v":""},{"$f":"IF($A399=\"N/A\",Ref!$B$36,INDEX(Ranks!$1:$1048576,$A399,CU$1))","v":""},{"$f":"IF($A399=\"N/A\",Ref!$B$36,INDEX(Ranks!$1:$1048576,$A399,CV$1))","v":""},{"$f":"IF($A399=\"N/A\",Ref!$B$36,INDEX(Ranks!$1:$1048576,$A399,CW$1))","v":""},{"$f":"IF($A399=\"N/A\",Ref!$B$36,INDEX(Ranks!$1:$1048576,$A399,CX$1))","v":""},{"$f":"IF($A399=\"N/A\",Ref!$B$36,INDEX(Ranks!$1:$1048576,$A399,CY$1))","v":""},{"$f":"IF($A399=\"N/A\",Ref!$B$36,INDEX(Ranks!$1:$1048576,$A399,CZ$1))","v":""},{"$f":"IF($A399=\"N/A\",Ref!$B$36,INDEX(Ranks!$1:$1048576,$A399,DA$1))","v":""},{"$f":"IF($A399=\"N/A\",Ref!$B$36,INDEX(Ranks!$1:$1048576,$A399,DB$1))","v":""},{"$f":"IF($A399=\"N/A\",Ref!$B$36,INDEX(Ranks!$1:$1048576,$A399,DC$1))","v":""},{"$f":"IF($A399=\"N/A\",Ref!$B$36,INDEX(Ranks!$1:$1048576,$A399,DD$1))","v":""},{"$f":"IF($A399=\"N/A\",Ref!$B$36,INDEX(Ranks!$1:$1048576,$A399,DE$1))","v":""},{"$f":"IF($A399=\"N/A\",Ref!$B$36,INDEX(Ranks!$1:$1048576,$A399,DF$1))","v":""},{"$f":"IF($A399=\"N/A\",Ref!$B$36,INDEX(Ranks!$1:$1048576,$A399,DG$1))","v":""},{"$f":"IF($A399=\"N/A\",Ref!$B$36,INDEX(Ranks!$1:$1048576,$A399,DH$1))","v":""},{"$f":"IF($A399=\"N/A\",Ref!$B$36,INDEX(Ranks!$1:$1048576,$A399,DI$1))","v":""},{"$f":"IF($A399=\"N/A\",Ref!$B$36,INDEX(Ranks!$1:$1048576,$A399,DJ$1))","v":""},{"$f":"IF($A399=\"N/A\",Ref!$B$36,INDEX(Ranks!$1:$1048576,$A399,DK$1))","v":""},{"$f":"IF($A399=\"N/A\",Ref!$B$36,INDEX(Ranks!$1:$1048576,$A399,DL$1))","v":""},{"$f":"IF($A399=\"N/A\",Ref!$B$36,INDEX(Ranks!$1:$1048576,$A399,DM$1))","v":""},{"$f":"IF($A399=\"N/A\",Ref!$B$36,INDEX(Ranks!$1:$1048576,$A399,DN$1))","v":""},{"$f":"IF($A399=\"N/A\",Ref!$B$36,INDEX(Ranks!$1:$1048576,$A399,DO$1))","v":""},{"$f":"IF($A399=\"N/A\",Ref!$B$36,INDEX(Ranks!$1:$1048576,$A399,DP$1))","v":""},{"$f":"IF($A399=\"N/A\",Ref!$B$36,INDEX(Ranks!$1:$1048576,$A399,DQ$1))","v":""},{"$f":"IF($A399=\"N/A\",Ref!$B$36,INDEX(Ranks!$1:$1048576,$A399,DR$1))","v":""},{"$f":"IF($A399=\"N/A\",Ref!$B$36,INDEX(Ranks!$1:$1048576,$A399,DS$1))","v":""},{"$f":"IF($A399=\"N/A\",Ref!$B$36,INDEX(Ranks!$1:$1048576,$A399,DT$1))","v":""},{"$f":"IF($A399=\"N/A\",Ref!$B$36,INDEX(Ranks!$1:$1048576,$A399,DU$1))","v":""},{"$f":"IF($A399=\"N/A\",Ref!$B$36,INDEX(Ranks!$1:$1048576,$A399,DV$1))","v":""},{"$f":"IF($A399=\"N/A\",Ref!$B$36,INDEX(Ranks!$1:$1048576,$A399,DW$1))","v":""},{"$f":"IF($A399=\"N/A\",Ref!$B$36,INDEX(Ranks!$1:$1048576,$A399,DX$1))","v":""},{"$f":"IF($A399=\"N/A\",Ref!$B$36,INDEX(Ranks!$1:$1048576,$A399,DY$1))","v":""},{"$f":"IF($A399=\"N/A\",Ref!$B$36,INDEX(Ranks!$1:$1048576,$A399,DZ$1))","v":""},{"$f":"IF($A399=\"N/A\",Ref!$B$36,INDEX(Ranks!$1:$1048576,$A399,EA$1))","v":""},{"$f":"IF($A399=\"N/A\",Ref!$B$36,INDEX(Ranks!$1:$1048576,$A399,EB$1))","v":""}]
[{"$f":"IFERROR(MATCH('Portfolio Page'!L400,Ranks!L:L,0),\"N/A\")","v":"N/A"},null,{"$f":"IF($A400=\"N/A\",\"\",INDEX(Ranks!$1:$1048576,$A400,C$1))","v":""},{"$f":"IF($A400=\"N/A\",Ref!$B$36,INDEX(Ranks!$1:$1048576,$A400,D$1))","v":""},{"$f":"IF($A400=\"N/A\",Ref!$B$36,INDEX(Ranks!$1:$1048576,$A400,E$1))","v":""},{"$f":"IF($A400=\"N/A\",\"\",INDEX(Ranks!$1:$1048576,$A400,F$1))","v":""},{"$f":"IF($A400=\"N/A\",\"\",INDEX(Ranks!$1:$1048576,$A400,G$1))","v":""},{"$f":"IF($A400=\"N/A\",\"\",INDEX(Ranks!$1:$1048576,$A400,H$1))","v":""},{"$f":"IF($A400=\"N/A\",\"\",INDEX(Ranks!$1:$1048576,$A400,I$1))","v":""},{"$f":"IF($A400=\"N/A\",\"\",INDEX(Ranks!$1:$1048576,$A400,J$1))","v":""},{"$f":"IF($A400=\"N/A\",\"\",INDEX(Ranks!$1:$1048576,$A400,K$1))","v":""},null,{"$f":"IF($A400=\"N/A\",Ref!$B$36,INDEX(Ranks!$1:$1048576,$A400,M$1))","v":""},{"$f":"IF($A400=\"N/A\",Ref!$B$36,INDEX(Ranks!$1:$1048576,$A400,N$1))","v":""},{"$f":"IF($A400=\"N/A\",Ref!$B$36,INDEX(Ranks!$1:$1048576,$A400,O$1))","v":""},{"$f":"IF($A400=\"N/A\",Ref!$B$36,INDEX(Ranks!$1:$1048576,$A400,P$1))","v":""},{"$f":"IF($A400=\"N/A\",Ref!$B$36,INDEX(Ranks!$1:$1048576,$A400,Q$1))","v":""},{"$f":"IF($A400=\"N/A\",Ref!$B$36,INDEX(Ranks!$1:$1048576,$A400,R$1))","v":""},{"$f":"IF($A400=\"N/A\",Ref!$B$36,INDEX(Ranks!$1:$1048576,$A400,S$1))","v":""},{"$f":"IF($A400=\"N/A\",Ref!$B$36,INDEX(Ranks!$1:$1048576,$A400,T$1))","v":""},{"$f":"IF($A400=\"N/A\",Ref!$B$36,INDEX(Ranks!$1:$1048576,$A400,U$1))","v":""},{"$f":"IF($A400=\"N/A\",Ref!$B$36,INDEX(Ranks!$1:$1048576,$A400,V$1))","v":""},{"$f":"IF($A400=\"N/A\",Ref!$B$36,INDEX(Ranks!$1:$1048576,$A400,W$1))","v":""},{"$f":"IF($A400=\"N/A\",Ref!$B$36,INDEX(Ranks!$1:$1048576,$A400,X$1))","v":""},{"$f":"IF($A400=\"N/A\",Ref!$B$36,INDEX(Ranks!$1:$1048576,$A400,Y$1))","v":""},{"$f":"IF($A400=\"N/A\",Ref!$B$36,INDEX(Ranks!$1:$1048576,$A400,Z$1))","v":""},{"$f":"IF($A400=\"N/A\",Ref!$B$36,INDEX(Ranks!$1:$1048576,$A400,AA$1))","v":""},{"$f":"IF($A400=\"N/A\",Ref!$B$36,INDEX(Ranks!$1:$1048576,$A400,AB$1))","v":""},{"$f":"IF($A400=\"N/A\",Ref!$B$36,INDEX(Ranks!$1:$1048576,$A400,AC$1))","v":""},{"$f":"IF($A400=\"N/A\",Ref!$B$36,INDEX(Ranks!$1:$1048576,$A400,AD$1))","v":""},{"$f":"IF($A400=\"N/A\",Ref!$B$36,INDEX(Ranks!$1:$1048576,$A400,AE$1))","v":""},{"$f":"IF($A400=\"N/A\",Ref!$B$36,INDEX(Ranks!$1:$1048576,$A400,AF$1))","v":""},{"$f":"IF($A400=\"N/A\",Ref!$B$36,INDEX(Ranks!$1:$1048576,$A400,AG$1))","v":""},{"$f":"IF($A400=\"N/A\",Ref!$B$36,INDEX(Ranks!$1:$1048576,$A400,AH$1))","v":""},{"$f":"IF($A400=\"N/A\",Ref!$B$36,INDEX(Ranks!$1:$1048576,$A400,AI$1))","v":""},{"$f":"IF($A400=\"N/A\",Ref!$B$36,INDEX(Ranks!$1:$1048576,$A400,AJ$1))","v":""},{"$f":"IF($A400=\"N/A\",Ref!$B$36,INDEX(Ranks!$1:$1048576,$A400,AK$1))","v":""},{"$f":"IF($A400=\"N/A\",Ref!$B$36,INDEX(Ranks!$1:$1048576,$A400,AL$1))","v":""},{"$f":"IF($A400=\"N/A\",Ref!$B$36,INDEX(Ranks!$1:$1048576,$A400,AM$1))","v":""},{"$f":"IF($A400=\"N/A\",Ref!$B$36,INDEX(Ranks!$1:$1048576,$A400,AN$1))","v":""},{"$f":"IF($A400=\"N/A\",Ref!$B$36,INDEX(Ranks!$1:$1048576,$A400,AO$1))","v":""},{"$f":"IF($A400=\"N/A\",Ref!$B$36,INDEX(Ranks!$1:$1048576,$A400,AP$1))","v":""},{"$f":"IF($A400=\"N/A\",Ref!$B$36,INDEX(Ranks!$1:$1048576,$A400,AQ$1))","v":""},{"$f":"IF($A400=\"N/A\",Ref!$B$36,INDEX(Ranks!$1:$1048576,$A400,AR$1))","v":""},{"$f":"IF($A400=\"N/A\",Ref!$B$36,INDEX(Ranks!$1:$1048576,$A400,AS$1))","v":""},{"$f":"IF($A400=\"N/A\",Ref!$B$36,INDEX(Ranks!$1:$1048576,$A400,AT$1))","v":""},{"$f":"IF($A400=\"N/A\",Ref!$B$36,INDEX(Ranks!$1:$1048576,$A400,AU$1))","v":""},{"$f":"IF($A400=\"N/A\",Ref!$B$36,INDEX(Ranks!$1:$1048576,$A400,AV$1))","v":""},{"$f":"IF($A400=\"N/A\",Ref!$B$36,INDEX(Ranks!$1:$1048576,$A400,AW$1))","v":""},{"$f":"IF($A400=\"N/A\",Ref!$B$36,INDEX(Ranks!$1:$1048576,$A400,AX$1))","v":""},{"$f":"IF($A400=\"N/A\",Ref!$B$36,INDEX(Ranks!$1:$1048576,$A400,AY$1))","v":""},{"$f":"IF($A400=\"N/A\",Ref!$B$36,INDEX(Ranks!$1:$1048576,$A400,AZ$1))","v":""},{"$f":"IF($A400=\"N/A\",Ref!$B$36,INDEX(Ranks!$1:$1048576,$A400,BA$1))","v":""},{"$f":"IF($A400=\"N/A\",Ref!$B$36,INDEX(Ranks!$1:$1048576,$A400,BB$1))","v":""},{"$f":"IF($A400=\"N/A\",Ref!$B$36,INDEX(Ranks!$1:$1048576,$A400,BC$1))","v":""},{"$f":"IF($A400=\"N/A\",Ref!$B$36,INDEX(Ranks!$1:$1048576,$A400,BD$1))","v":""},{"$f":"IF($A400=\"N/A\",Ref!$B$36,INDEX(Ranks!$1:$1048576,$A400,BE$1))","v":""},{"$f":"IF($A400=\"N/A\",Ref!$B$36,INDEX(Ranks!$1:$1048576,$A400,BF$1))","v":""},{"$f":"IF($A400=\"N/A\",Ref!$B$36,INDEX(Ranks!$1:$1048576,$A400,BG$1))","v":""},{"$f":"IF($A400=\"N/A\",Ref!$B$36,INDEX(Ranks!$1:$1048576,$A400,BH$1))","v":""},{"$f":"IF($A400=\"N/A\",Ref!$B$36,INDEX(Ranks!$1:$1048576,$A400,BI$1))","v":""},{"$f":"IF($A400=\"N/A\",Ref!$B$36,INDEX(Ranks!$1:$1048576,$A400,BJ$1))","v":""},{"$f":"IF($A400=\"N/A\",Ref!$B$36,INDEX(Ranks!$1:$1048576,$A400,BK$1))","v":""},{"$f":"IF($A400=\"N/A\",Ref!$B$36,INDEX(Ranks!$1:$1048576,$A400,BL$1))","v":""},{"$f":"IF($A400=\"N/A\",Ref!$B$36,INDEX(Ranks!$1:$1048576,$A400,BM$1))","v":""},{"$f":"IF($A400=\"N/A\",Ref!$B$36,INDEX(Ranks!$1:$1048576,$A400,BN$1))","v":""},{"$f":"IF($A400=\"N/A\",Ref!$B$36,INDEX(Ranks!$1:$1048576,$A400,BO$1))","v":""},{"$f":"IF($A400=\"N/A\",Ref!$B$36,INDEX(Ranks!$1:$1048576,$A400,BP$1))","v":""},{"$f":"IF($A400=\"N/A\",Ref!$B$36,INDEX(Ranks!$1:$1048576,$A400,BQ$1))","v":""},{"$f":"IF($A400=\"N/A\",Ref!$B$36,INDEX(Ranks!$1:$1048576,$A400,BR$1))","v":""},{"$f":"IF($A400=\"N/A\",Ref!$B$36,INDEX(Ranks!$1:$1048576,$A400,BS$1))","v":""},{"$f":"IF($A400=\"N/A\",Ref!$B$36,INDEX(Ranks!$1:$1048576,$A400,BT$1))","v":""},{"$f":"IF($A400=\"N/A\",Ref!$B$36,INDEX(Ranks!$1:$1048576,$A400,BU$1))","v":""},{"$f":"IF($A400=\"N/A\",Ref!$B$36,INDEX(Ranks!$1:$1048576,$A400,BV$1))","v":""},{"$f":"IF($A400=\"N/A\",Ref!$B$36,INDEX(Ranks!$1:$1048576,$A400,BW$1))","v":""},{"$f":"IF($A400=\"N/A\",Ref!$B$36,INDEX(Ranks!$1:$1048576,$A400,BX$1))","v":""},{"$f":"IF($A400=\"N/A\",Ref!$B$36,INDEX(Ranks!$1:$1048576,$A400,BY$1))","v":""},{"$f":"IF($A400=\"N/A\",Ref!$B$36,INDEX(Ranks!$1:$1048576,$A400,BZ$1))","v":""},{"$f":"IF($A400=\"N/A\",Ref!$B$36,INDEX(Ranks!$1:$1048576,$A400,CA$1))","v":""},{"$f":"IF($A400=\"N/A\",Ref!$B$36,INDEX(Ranks!$1:$1048576,$A400,CB$1))","v":""},{"$f":"IF($A400=\"N/A\",Ref!$B$36,INDEX(Ranks!$1:$1048576,$A400,CC$1))","v":""},{"$f":"IF($A400=\"N/A\",Ref!$B$36,INDEX(Ranks!$1:$1048576,$A400,CD$1))","v":""},{"$f":"IF($A400=\"N/A\",Ref!$B$36,INDEX(Ranks!$1:$1048576,$A400,CE$1))","v":""},{"$f":"IF($A400=\"N/A\",Ref!$B$36,INDEX(Ranks!$1:$1048576,$A400,CF$1))","v":""},{"$f":"IF($A400=\"N/A\",Ref!$B$36,INDEX(Ranks!$1:$1048576,$A400,CG$1))","v":""},{"$f":"IF($A400=\"N/A\",Ref!$B$36,INDEX(Ranks!$1:$1048576,$A400,CH$1))","v":""},{"$f":"IF($A400=\"N/A\",Ref!$B$36,INDEX(Ranks!$1:$1048576,$A400,CI$1))","v":""},{"$f":"IF($A400=\"N/A\",Ref!$B$36,INDEX(Ranks!$1:$1048576,$A400,CJ$1))","v":""},{"$f":"IF($A400=\"N/A\",Ref!$B$36,INDEX(Ranks!$1:$1048576,$A400,CK$1))","v":""},{"$f":"IF($A400=\"N/A\",Ref!$B$36,INDEX(Ranks!$1:$1048576,$A400,CL$1))","v":""},{"$f":"IF($A400=\"N/A\",Ref!$B$36,INDEX(Ranks!$1:$1048576,$A400,CM$1))","v":""},{"$f":"IF($A400=\"N/A\",Ref!$B$36,INDEX(Ranks!$1:$1048576,$A400,CN$1))","v":""},{"$f":"IF($A400=\"N/A\",Ref!$B$36,INDEX(Ranks!$1:$1048576,$A400,CO$1))","v":""},{"$f":"IF($A400=\"N/A\",Ref!$B$36,INDEX(Ranks!$1:$1048576,$A400,CP$1))","v":""},{"$f":"IF($A400=\"N/A\",Ref!$B$36,INDEX(Ranks!$1:$1048576,$A400,CQ$1))","v":""},{"$f":"IF($A400=\"N/A\",Ref!$B$36,INDEX(Ranks!$1:$1048576,$A400,CR$1))","v":""},{"$f":"IF($A400=\"N/A\",Ref!$B$36,INDEX(Ranks!$1:$1048576,$A400,CS$1))","v":""},{"$f":"IF($A400=\"N/A\",Ref!$B$36,INDEX(Ranks!$1:$1048576,$A400,CT$1))","v":""},{"$f":"IF($A400=\"N/A\",Ref!$B$36,INDEX(Ranks!$1:$1048576,$A400,CU$1))","v":""},{"$f":"IF($A400=\"N/A\",Ref!$B$36,INDEX(Ranks!$1:$1048576,$A400,CV$1))","v":""},{"$f":"IF($A400=\"N/A\",Ref!$B$36,INDEX(Ranks!$1:$1048576,$A400,CW$1))","v":""},{"$f":"IF($A400=\"N/A\",Ref!$B$36,INDEX(Ranks!$1:$1048576,$A400,CX$1))","v":""},{"$f":"IF($A400=\"N/A\",Ref!$B$36,INDEX(Ranks!$1:$1048576,$A400,CY$1))","v":""},{"$f":"IF($A400=\"N/A\",Ref!$B$36,INDEX(Ranks!$1:$1048576,$A400,CZ$1))","v":""},{"$f":"IF($A400=\"N/A\",Ref!$B$36,INDEX(Ranks!$1:$1048576,$A400,DA$1))","v":""},{"$f":"IF($A400=\"N/A\",Ref!$B$36,INDEX(Ranks!$1:$1048576,$A400,DB$1))","v":""},{"$f":"IF($A400=\"N/A\",Ref!$B$36,INDEX(Ranks!$1:$1048576,$A400,DC$1))","v":""},{"$f":"IF($A400=\"N/A\",Ref!$B$36,INDEX(Ranks!$1:$1048576,$A400,DD$1))","v":""},{"$f":"IF($A400=\"N/A\",Ref!$B$36,INDEX(Ranks!$1:$1048576,$A400,DE$1))","v":""},{"$f":"IF($A400=\"N/A\",Ref!$B$36,INDEX(Ranks!$1:$1048576,$A400,DF$1))","v":""},{"$f":"IF($A400=\"N/A\",Ref!$B$36,INDEX(Ranks!$1:$1048576,$A400,DG$1))","v":""},{"$f":"IF($A400=\"N/A\",Ref!$B$36,INDEX(Ranks!$1:$1048576,$A400,DH$1))","v":""},{"$f":"IF($A400=\"N/A\",Ref!$B$36,INDEX(Ranks!$1:$1048576,$A400,DI$1))","v":""},{"$f":"IF($A400=\"N/A\",Ref!$B$36,INDEX(Ranks!$1:$1048576,$A400,DJ$1))","v":""},{"$f":"IF($A400=\"N/A\",Ref!$B$36,INDEX(Ranks!$1:$1048576,$A400,DK$1))","v":""},{"$f":"IF($A400=\"N/A\",Ref!$B$36,INDEX(Ranks!$1:$1048576,$A400,DL$1))","v":""},{"$f":"IF($A400=\"N/A\",Ref!$B$36,INDEX(Ranks!$1:$1048576,$A400,DM$1))","v":""},{"$f":"IF($A400=\"N/A\",Ref!$B$36,INDEX(Ranks!$1:$1048576,$A400,DN$1))","v":""},{"$f":"IF($A400=\"N/A\",Ref!$B$36,INDEX(Ranks!$1:$1048576,$A400,DO$1))","v":""},{"$f":"IF($A400=\"N/A\",Ref!$B$36,INDEX(Ranks!$1:$1048576,$A400,DP$1))","v":""},{"$f":"IF($A400=\"N/A\",Ref!$B$36,INDEX(Ranks!$1:$1048576,$A400,DQ$1))","v":""},{"$f":"IF($A400=\"N/A\",Ref!$B$36,INDEX(Ranks!$1:$1048576,$A400,DR$1))","v":""},{"$f":"IF($A400=\"N/A\",Ref!$B$36,INDEX(Ranks!$1:$1048576,$A400,DS$1))","v":""},{"$f":"IF($A400=\"N/A\",Ref!$B$36,INDEX(Ranks!$1:$1048576,$A400,DT$1))","v":""},{"$f":"IF($A400=\"N/A\",Ref!$B$36,INDEX(Ranks!$1:$1048576,$A400,DU$1))","v":""},{"$f":"IF($A400=\"N/A\",Ref!$B$36,INDEX(Ranks!$1:$1048576,$A400,DV$1))","v":""},{"$f":"IF($A400=\"N/A\",Ref!$B$36,INDEX(Ranks!$1:$1048576,$A400,DW$1))","v":""},{"$f":"IF($A400=\"N/A\",Ref!$B$36,INDEX(Ranks!$1:$1048576,$A400,DX$1))","v":""},{"$f":"IF($A400=\"N/A\",Ref!$B$36,INDEX(Ranks!$1:$1048576,$A400,DY$1))","v":""},{"$f":"IF($A400=\"N/A\",Ref!$B$36,INDEX(Ranks!$1:$1048576,$A400,DZ$1))","v":""},{"$f":"IF($A400=\"N/A\",Ref!$B$36,INDEX(Ranks!$1:$1048576,$A400,EA$1))","v":""},{"$f":"IF($A400=\"N/A\",Ref!$B$36,INDEX(Ranks!$1:$1048576,$A400,EB$1))","v":""}]
[{"$f":"IFERROR(MATCH('Portfolio Page'!L401,Ranks!L:L,0),\"N/A\")","v":"N/A"},null,{"$f":"IF($A401=\"N/A\",\"\",INDEX(Ranks!$1:$1048576,$A401,C$1))","v":""},{"$f":"IF($A401=\"N/A\",Ref!$B$36,INDEX(Ranks!$1:$1048576,$A401,D$1))","v":""},{"$f":"IF($A401=\"N/A\",Ref!$B$36,INDEX(Ranks!$1:$1048576,$A401,E$1))","v":""},{"$f":"IF($A401=\"N/A\",\"\",INDEX(Ranks!$1:$1048576,$A401,F$1))","v":""},{"$f":"IF($A401=\"N/A\",\"\",INDEX(Ranks!$1:$1048576,$A401,G$1))","v":""},{"$f":"IF($A401=\"N/A\",\"\",INDEX(Ranks!$1:$1048576,$A401,H$1))","v":""},{"$f":"IF($A401=\"N/A\",\"\",INDEX(Ranks!$1:$1048576,$A401,I$1))","v":""},{"$f":"IF($A401=\"N/A\",\"\",INDEX(Ranks!$1:$1048576,$A401,J$1))","v":""},{"$f":"IF($A401=\"N/A\",\"\",INDEX(Ranks!$1:$1048576,$A401,K$1))","v":""},null,{"$f":"IF($A401=\"N/A\",Ref!$B$36,INDEX(Ranks!$1:$1048576,$A401,M$1))","v":""},{"$f":"IF($A401=\"N/A\",Ref!$B$36,INDEX(Ranks!$1:$1048576,$A401,N$1))","v":""},{"$f":"IF($A401=\"N/A\",Ref!$B$36,INDEX(Ranks!$1:$1048576,$A401,O$1))","v":""},{"$f":"IF($A401=\"N/A\",Ref!$B$36,INDEX(Ranks!$1:$1048576,$A401,P$1))","v":""},{"$f":"IF($A401=\"N/A\",Ref!$B$36,INDEX(Ranks!$1:$1048576,$A401,Q$1))","v":""},{"$f":"IF($A401=\"N/A\",Ref!$B$36,INDEX(Ranks!$1:$1048576,$A401,R$1))","v":""},{"$f":"IF($A401=\"N/A\",Ref!$B$36,INDEX(Ranks!$1:$1048576,$A401,S$1))","v":""},{"$f":"IF($A401=\"N/A\",Ref!$B$36,INDEX(Ranks!$1:$1048576,$A401,T$1))","v":""},{"$f":"IF($A401=\"N/A\",Ref!$B$36,INDEX(Ranks!$1:$1048576,$A401,U$1))","v":""},{"$f":"IF($A401=\"N/A\",Ref!$B$36,INDEX(Ranks!$1:$1048576,$A401,V$1))","v":""},{"$f":"IF($A401=\"N/A\",Ref!$B$36,INDEX(Ranks!$1:$1048576,$A401,W$1))","v":""},{"$f":"IF($A401=\"N/A\",Ref!$B$36,INDEX(Ranks!$1:$1048576,$A401,X$1))","v":""},{"$f":"IF($A401=\"N/A\",Ref!$B$36,INDEX(Ranks!$1:$1048576,$A401,Y$1))","v":""},{"$f":"IF($A401=\"N/A\",Ref!$B$36,INDEX(Ranks!$1:$1048576,$A401,Z$1))","v":""},{"$f":"IF($A401=\"N/A\",Ref!$B$36,INDEX(Ranks!$1:$1048576,$A401,AA$1))","v":""},{"$f":"IF($A401=\"N/A\",Ref!$B$36,INDEX(Ranks!$1:$1048576,$A401,AB$1))","v":""},{"$f":"IF($A401=\"N/A\",Ref!$B$36,INDEX(Ranks!$1:$1048576,$A401,AC$1))","v":""},{"$f":"IF($A401=\"N/A\",Ref!$B$36,INDEX(Ranks!$1:$1048576,$A401,AD$1))","v":""},{"$f":"IF($A401=\"N/A\",Ref!$B$36,INDEX(Ranks!$1:$1048576,$A401,AE$1))","v":""},{"$f":"IF($A401=\"N/A\",Ref!$B$36,INDEX(Ranks!$1:$1048576,$A401,AF$1))","v":""},{"$f":"IF($A401=\"N/A\",Ref!$B$36,INDEX(Ranks!$1:$1048576,$A401,AG$1))","v":""},{"$f":"IF($A401=\"N/A\",Ref!$B$36,INDEX(Ranks!$1:$1048576,$A401,AH$1))","v":""},{"$f":"IF($A401=\"N/A\",Ref!$B$36,INDEX(Ranks!$1:$1048576,$A401,AI$1))","v":""},{"$f":"IF($A401=\"N/A\",Ref!$B$36,INDEX(Ranks!$1:$1048576,$A401,AJ$1))","v":""},{"$f":"IF($A401=\"N/A\",Ref!$B$36,INDEX(Ranks!$1:$1048576,$A401,AK$1))","v":""},{"$f":"IF($A401=\"N/A\",Ref!$B$36,INDEX(Ranks!$1:$1048576,$A401,AL$1))","v":""},{"$f":"IF($A401=\"N/A\",Ref!$B$36,INDEX(Ranks!$1:$1048576,$A401,AM$1))","v":""},{"$f":"IF($A401=\"N/A\",Ref!$B$36,INDEX(Ranks!$1:$1048576,$A401,AN$1))","v":""},{"$f":"IF($A401=\"N/A\",Ref!$B$36,INDEX(Ranks!$1:$1048576,$A401,AO$1))","v":""},{"$f":"IF($A401=\"N/A\",Ref!$B$36,INDEX(Ranks!$1:$1048576,$A401,AP$1))","v":""},{"$f":"IF($A401=\"N/A\",Ref!$B$36,INDEX(Ranks!$1:$1048576,$A401,AQ$1))","v":""},{"$f":"IF($A401=\"N/A\",Ref!$B$36,INDEX(Ranks!$1:$1048576,$A401,AR$1))","v":""},{"$f":"IF($A401=\"N/A\",Ref!$B$36,INDEX(Ranks!$1:$1048576,$A401,AS$1))","v":""},{"$f":"IF($A401=\"N/A\",Ref!$B$36,INDEX(Ranks!$1:$1048576,$A401,AT$1))","v":""},{"$f":"IF($A401=\"N/A\",Ref!$B$36,INDEX(Ranks!$1:$1048576,$A401,AU$1))","v":""},{"$f":"IF($A401=\"N/A\",Ref!$B$36,INDEX(Ranks!$1:$1048576,$A401,AV$1))","v":""},{"$f":"IF($A401=\"N/A\",Ref!$B$36,INDEX(Ranks!$1:$1048576,$A401,AW$1))","v":""},{"$f":"IF($A401=\"N/A\",Ref!$B$36,INDEX(Ranks!$1:$1048576,$A401,AX$1))","v":""},{"$f":"IF($A401=\"N/A\",Ref!$B$36,INDEX(Ranks!$1:$1048576,$A401,AY$1))","v":""},{"$f":"IF($A401=\"N/A\",Ref!$B$36,INDEX(Ranks!$1:$1048576,$A401,AZ$1))","v":""},{"$f":"IF($A401=\"N/A\",Ref!$B$36,INDEX(Ranks!$1:$1048576,$A401,BA$1))","v":""},{"$f":"IF($A401=\"N/A\",Ref!$B$36,INDEX(Ranks!$1:$1048576,$A401,BB$1))","v":""},{"$f":"IF($A401=\"N/A\",Ref!$B$36,INDEX(Ranks!$1:$1048576,$A401,BC$1))","v":""},{"$f":"IF($A401=\"N/A\",Ref!$B$36,INDEX(Ranks!$1:$1048576,$A401,BD$1))","v":""},{"$f":"IF($A401=\"N/A\",Ref!$B$36,INDEX(Ranks!$1:$1048576,$A401,BE$1))","v":""},{"$f":"IF($A401=\"N/A\",Ref!$B$36,INDEX(Ranks!$1:$1048576,$A401,BF$1))","v":""},{"$f":"IF($A401=\"N/A\",Ref!$B$36,INDEX(Ranks!$1:$1048576,$A401,BG$1))","v":""},{"$f":"IF($A401=\"N/A\",Ref!$B$36,INDEX(Ranks!$1:$1048576,$A401,BH$1))","v":""},{"$f":"IF($A401=\"N/A\",Ref!$B$36,INDEX(Ranks!$1:$1048576,$A401,BI$1))","v":""},{"$f":"IF($A401=\"N/A\",Ref!$B$36,INDEX(Ranks!$1:$1048576,$A401,BJ$1))","v":""},{"$f":"IF($A401=\"N/A\",Ref!$B$36,INDEX(Ranks!$1:$1048576,$A401,BK$1))","v":""},{"$f":"IF($A401=\"N/A\",Ref!$B$36,INDEX(Ranks!$1:$1048576,$A401,BL$1))","v":""},{"$f":"IF($A401=\"N/A\",Ref!$B$36,INDEX(Ranks!$1:$1048576,$A401,BM$1))","v":""},{"$f":"IF($A401=\"N/A\",Ref!$B$36,INDEX(Ranks!$1:$1048576,$A401,BN$1))","v":""},{"$f":"IF($A401=\"N/A\",Ref!$B$36,INDEX(Ranks!$1:$1048576,$A401,BO$1))","v":""},{"$f":"IF($A401=\"N/A\",Ref!$B$36,INDEX(Ranks!$1:$1048576,$A401,BP$1))","v":""},{"$f":"IF($A401=\"N/A\",Ref!$B$36,INDEX(Ranks!$1:$1048576,$A401,BQ$1))","v":""},{"$f":"IF($A401=\"N/A\",Ref!$B$36,INDEX(Ranks!$1:$1048576,$A401,BR$1))","v":""},{"$f":"IF($A401=\"N/A\",Ref!$B$36,INDEX(Ranks!$1:$1048576,$A401,BS$1))","v":""},{"$f":"IF($A401=\"N/A\",Ref!$B$36,INDEX(Ranks!$1:$1048576,$A401,BT$1))","v":""},{"$f":"IF($A401=\"N/A\",Ref!$B$36,INDEX(Ranks!$1:$1048576,$A401,BU$1))","v":""},{"$f":"IF($A401=\"N/A\",Ref!$B$36,INDEX(Ranks!$1:$1048576,$A401,BV$1))","v":""},{"$f":"IF($A401=\"N/A\",Ref!$B$36,INDEX(Ranks!$1:$1048576,$A401,BW$1))","v":""},{"$f":"IF($A401=\"N/A\",Ref!$B$36,INDEX(Ranks!$1:$1048576,$A401,BX$1))","v":""},{"$f":"IF($A401=\"N/A\",Ref!$B$36,INDEX(Ranks!$1:$1048576,$A401,BY$1))","v":""},{"$f":"IF($A401=\"N/A\",Ref!$B$36,INDEX(Ranks!$1:$1048576,$A401,BZ$1))","v":""},{"$f":"IF($A401=\"N/A\",Ref!$B$36,INDEX(Ranks!$1:$1048576,$A401,CA$1))","v":""},{"$f":"IF($A401=\"N/A\",Ref!$B$36,INDEX(Ranks!$1:$1048576,$A401,CB$1))","v":""},{"$f":"IF($A401=\"N/A\",Ref!$B$36,INDEX(Ranks!$1:$1048576,$A401,CC$1))","v":""},{"$f":"IF($A401=\"N/A\",Ref!$B$36,INDEX(Ranks!$1:$1048576,$A401,CD$1))","v":""},{"$f":"IF($A401=\"N/A\",Ref!$B$36,INDEX(Ranks!$1:$1048576,$A401,CE$1))","v":""},{"$f":"IF($A401=\"N/A\",Ref!$B$36,INDEX(Ranks!$1:$1048576,$A401,CF$1))","v":""},{"$f":"IF($A401=\"N/A\",Ref!$B$36,INDEX(Ranks!$1:$1048576,$A401,CG$1))","v":""},{"$f":"IF($A401=\"N/A\",Ref!$B$36,INDEX(Ranks!$1:$1048576,$A401,CH$1))","v":""},{"$f":"IF($A401=\"N/A\",Ref!$B$36,INDEX(Ranks!$1:$1048576,$A401,CI$1))","v":""},{"$f":"IF($A401=\"N/A\",Ref!$B$36,INDEX(Ranks!$1:$1048576,$A401,CJ$1))","v":""},{"$f":"IF($A401=\"N/A\",Ref!$B$36,INDEX(Ranks!$1:$1048576,$A401,CK$1))","v":""},{"$f":"IF($A401=\"N/A\",Ref!$B$36,INDEX(Ranks!$1:$1048576,$A401,CL$1))","v":""},{"$f":"IF($A401=\"N/A\",Ref!$B$36,INDEX(Ranks!$1:$1048576,$A401,CM$1))","v":""},{"$f":"IF($A401=\"N/A\",Ref!$B$36,INDEX(Ranks!$1:$1048576,$A401,CN$1))","v":""},{"$f":"IF($A401=\"N/A\",Ref!$B$36,INDEX(Ranks!$1:$1048576,$A401,CO$1))","v":""},{"$f":"IF($A401=\"N/A\",Ref!$B$36,INDEX(Ranks!$1:$1048576,$A401,CP$1))","v":""},{"$f":"IF($A401=\"N/A\",Ref!$B$36,INDEX(Ranks!$1:$1048576,$A401,CQ$1))","v":""},{"$f":"IF($A401=\"N/A\",Ref!$B$36,INDEX(Ranks!$1:$1048576,$A401,CR$1))","v":""},{"$f":"IF($A401=\"N/A\",Ref!$B$36,INDEX(Ranks!$1:$1048576,$A401,CS$1))","v":""},{"$f":"IF($A401=\"N/A\",Ref!$B$36,INDEX(Ranks!$1:$1048576,$A401,CT$1))","v":""},{"$f":"IF($A401=\"N/A\",Ref!$B$36,INDEX(Ranks!$1:$1048576,$A401,CU$1))","v":""},{"$f":"IF($A401=\"N/A\",Ref!$B$36,INDEX(Ranks!$1:$1048576,$A401,CV$1))","v":""},{"$f":"IF($A401=\"N/A\",Ref!$B$36,INDEX(Ranks!$1:$1048576,$A401,CW$1))","v":""},{"$f":"IF($A401=\"N/A\",Ref!$B$36,INDEX(Ranks!$1:$1048576,$A401,CX$1))","v":""},{"$f":"IF($A401=\"N/A\",Ref!$B$36,INDEX(Ranks!$1:$1048576,$A401,CY$1))","v":""},{"$f":"IF($A401=\"N/A\",Ref!$B$36,INDEX(Ranks!$1:$1048576,$A401,CZ$1))","v":""},{"$f":"IF($A401=\"N/A\",Ref!$B$36,INDEX(Ranks!$1:$1048576,$A401,DA$1))","v":""},{"$f":"IF($A401=\"N/A\",Ref!$B$36,INDEX(Ranks!$1:$1048576,$A401,DB$1))","v":""},{"$f":"IF($A401=\"N/A\",Ref!$B$36,INDEX(Ranks!$1:$1048576,$A401,DC$1))","v":""},{"$f":"IF($A401=\"N/A\",Ref!$B$36,INDEX(Ranks!$1:$1048576,$A401,DD$1))","v":""},{"$f":"IF($A401=\"N/A\",Ref!$B$36,INDEX(Ranks!$1:$1048576,$A401,DE$1))","v":""},{"$f":"IF($A401=\"N/A\",Ref!$B$36,INDEX(Ranks!$1:$1048576,$A401,DF$1))","v":""},{"$f":"IF($A401=\"N/A\",Ref!$B$36,INDEX(Ranks!$1:$1048576,$A401,DG$1))","v":""},{"$f":"IF($A401=\"N/A\",Ref!$B$36,INDEX(Ranks!$1:$1048576,$A401,DH$1))","v":""},{"$f":"IF($A401=\"N/A\",Ref!$B$36,INDEX(Ranks!$1:$1048576,$A401,DI$1))","v":""},{"$f":"IF($A401=\"N/A\",Ref!$B$36,INDEX(Ranks!$1:$1048576,$A401,DJ$1))","v":""},{"$f":"IF($A401=\"N/A\",Ref!$B$36,INDEX(Ranks!$1:$1048576,$A401,DK$1))","v":""},{"$f":"IF($A401=\"N/A\",Ref!$B$36,INDEX(Ranks!$1:$1048576,$A401,DL$1))","v":""},{"$f":"IF($A401=\"N/A\",Ref!$B$36,INDEX(Ranks!$1:$1048576,$A401,DM$1))","v":""},{"$f":"IF($A401=\"N/A\",Ref!$B$36,INDEX(Ranks!$1:$1048576,$A401,DN$1))","v":""},{"$f":"IF($A401=\"N/A\",Ref!$B$36,INDEX(Ranks!$1:$1048576,$A401,DO$1))","v":""},{"$f":"IF($A401=\"N/A\",Ref!$B$36,INDEX(Ranks!$1:$1048576,$A401,DP$1))","v":""},{"$f":"IF($A401=\"N/A\",Ref!$B$36,INDEX(Ranks!$1:$1048576,$A401,DQ$1))","v":""},{"$f":"IF($A401=\"N/A\",Ref!$B$36,INDEX(Ranks!$1:$1048576,$A401,DR$1))","v":""},{"$f":"IF($A401=\"N/A\",Ref!$B$36,INDEX(Ranks!$1:$1048576,$A401,DS$1))","v":""},{"$f":"IF($A401=\"N/A\",Ref!$B$36,INDEX(Ranks!$1:$1048576,$A401,DT$1))","v":""},{"$f":"IF($A401=\"N/A\",Ref!$B$36,INDEX(Ranks!$1:$1048576,$A401,DU$1))","v":""},{"$f":"IF($A401=\"N/A\",Ref!$B$36,INDEX(Ranks!$1:$1048576,$A401,DV$1))","v":""},{"$f":"IF($A401=\"N/A\",Ref!$B$36,INDEX(Ranks!$1:$1048576,$A401,DW$1))","v":""},{"$f":"IF($A401=\"N/A\",Ref!$B$36,INDEX(Ranks!$1:$1048576,$A401,DX$1))","v":""},{"$f":"IF($A401=\"N/A\",Ref!$B$36,INDEX(Ranks!$1:$1048576,$A401,DY$1))","v":""},{"$f":"IF($A401=\"N/A\",Ref!$B$36,INDEX(Ranks!$1:$1048576,$A401,DZ$1))","v":""},{"$f":"IF($A401=\"N/A\",Ref!$B$36,INDEX(Ranks!$1:$1048576,$A401,EA$1))","v":""},{"$f":"IF($A401=\"N/A\",Ref!$B$36,INDEX(Ranks!$1:$1048576,$A401,EB$1))","v":""}]
[{"$f":"IFERROR(MATCH('Portfolio Page'!L402,Ranks!L:L,0),\"N/A\")","v":"N/A"},null,{"$f":"IF($A402=\"N/A\",\"\",INDEX(Ranks!$1:$1048576,$A402,C$1))","v":""},{"$f":"IF($A402=\"N/A\",Ref!$B$36,INDEX(Ranks!$1:$1048576,$A402,D$1))","v":""},{"$f":"IF($A402=\"N/A\",Ref!$B$36,INDEX(Ranks!$1:$1048576,$A402,E$1))","v":""},{"$f":"IF($A402=\"N/A\",\"\",INDEX(Ranks!$1:$1048576,$A402,F$1))","v":""},{"$f":"IF($A402=\"N/A\",\"\",INDEX(Ranks!$1:$1048576,$A402,G$1))","v":""},{"$f":"IF($A402=\"N/A\",\"\",INDEX(Ranks!$1:$1048576,$A402,H$1))","v":""},{"$f":"IF($A402=\"N/A\",\"\",INDEX(Ranks!$1:$1048576,$A402,I$1))","v":""},{"$f":"IF($A402=\"N/A\",\"\",INDEX(Ranks!$1:$1048576,$A402,J$1))","v":""},{"$f":"IF($A402=\"N/A\",\"\",INDEX(Ranks!$1:$1048576,$A402,K$1))","v":""},null,{"$f":"IF($A402=\"N/A\",Ref!$B$36,INDEX(Ranks!$1:$1048576,$A402,M$1))","v":""},{"$f":"IF($A402=\"N/A\",Ref!$B$36,INDEX(Ranks!$1:$1048576,$A402,N$1))","v":""},{"$f":"IF($A402=\"N/A\",Ref!$B$36,INDEX(Ranks!$1:$1048576,$A402,O$1))","v":""},{"$f":"IF($A402=\"N/A\",Ref!$B$36,INDEX(Ranks!$1:$1048576,$A402,P$1))","v":""},{"$f":"IF($A402=\"N/A\",Ref!$B$36,INDEX(Ranks!$1:$1048576,$A402,Q$1))","v":""},{"$f":"IF($A402=\"N/A\",Ref!$B$36,INDEX(Ranks!$1:$1048576,$A402,R$1))","v":""},{"$f":"IF($A402=\"N/A\",Ref!$B$36,INDEX(Ranks!$1:$1048576,$A402,S$1))","v":""},{"$f":"IF($A402=\"N/A\",Ref!$B$36,INDEX(Ranks!$1:$1048576,$A402,T$1))","v":""},{"$f":"IF($A402=\"N/A\",Ref!$B$36,INDEX(Ranks!$1:$1048576,$A402,U$1))","v":""},{"$f":"IF($A402=\"N/A\",Ref!$B$36,INDEX(Ranks!$1:$1048576,$A402,V$1))","v":""},{"$f":"IF($A402=\"N/A\",Ref!$B$36,INDEX(Ranks!$1:$1048576,$A402,W$1))","v":""},{"$f":"IF($A402=\"N/A\",Ref!$B$36,INDEX(Ranks!$1:$1048576,$A402,X$1))","v":""},{"$f":"IF($A402=\"N/A\",Ref!$B$36,INDEX(Ranks!$1:$1048576,$A402,Y$1))","v":""},{"$f":"IF($A402=\"N/A\",Ref!$B$36,INDEX(Ranks!$1:$1048576,$A402,Z$1))","v":""},{"$f":"IF($A402=\"N/A\",Ref!$B$36,INDEX(Ranks!$1:$1048576,$A402,AA$1))","v":""},{"$f":"IF($A402=\"N/A\",Ref!$B$36,INDEX(Ranks!$1:$1048576,$A402,AB$1))","v":""},{"$f":"IF($A402=\"N/A\",Ref!$B$36,INDEX(Ranks!$1:$1048576,$A402,AC$1))","v":""},{"$f":"IF($A402=\"N/A\",Ref!$B$36,INDEX(Ranks!$1:$1048576,$A402,AD$1))","v":""},{"$f":"IF($A402=\"N/A\",Ref!$B$36,INDEX(Ranks!$1:$1048576,$A402,AE$1))","v":""},{"$f":"IF($A402=\"N/A\",Ref!$B$36,INDEX(Ranks!$1:$1048576,$A402,AF$1))","v":""},{"$f":"IF($A402=\"N/A\",Ref!$B$36,INDEX(Ranks!$1:$1048576,$A402,AG$1))","v":""},{"$f":"IF($A402=\"N/A\",Ref!$B$36,INDEX(Ranks!$1:$1048576,$A402,AH$1))","v":""},{"$f":"IF($A402=\"N/A\",Ref!$B$36,INDEX(Ranks!$1:$1048576,$A402,AI$1))","v":""},{"$f":"IF($A402=\"N/A\",Ref!$B$36,INDEX(Ranks!$1:$1048576,$A402,AJ$1))","v":""},{"$f":"IF($A402=\"N/A\",Ref!$B$36,INDEX(Ranks!$1:$1048576,$A402,AK$1))","v":""},{"$f":"IF($A402=\"N/A\",Ref!$B$36,INDEX(Ranks!$1:$1048576,$A402,AL$1))","v":""},{"$f":"IF($A402=\"N/A\",Ref!$B$36,INDEX(Ranks!$1:$1048576,$A402,AM$1))","v":""},{"$f":"IF($A402=\"N/A\",Ref!$B$36,INDEX(Ranks!$1:$1048576,$A402,AN$1))","v":""},{"$f":"IF($A402=\"N/A\",Ref!$B$36,INDEX(Ranks!$1:$1048576,$A402,AO$1))","v":""},{"$f":"IF($A402=\"N/A\",Ref!$B$36,INDEX(Ranks!$1:$1048576,$A402,AP$1))","v":""},{"$f":"IF($A402=\"N/A\",Ref!$B$36,INDEX(Ranks!$1:$1048576,$A402,AQ$1))","v":""},{"$f":"IF($A402=\"N/A\",Ref!$B$36,INDEX(Ranks!$1:$1048576,$A402,AR$1))","v":""},{"$f":"IF($A402=\"N/A\",Ref!$B$36,INDEX(Ranks!$1:$1048576,$A402,AS$1))","v":""},{"$f":"IF($A402=\"N/A\",Ref!$B$36,INDEX(Ranks!$1:$1048576,$A402,AT$1))","v":""},{"$f":"IF($A402=\"N/A\",Ref!$B$36,INDEX(Ranks!$1:$1048576,$A402,AU$1))","v":""},{"$f":"IF($A402=\"N/A\",Ref!$B$36,INDEX(Ranks!$1:$1048576,$A402,AV$1))","v":""},{"$f":"IF($A402=\"N/A\",Ref!$B$36,INDEX(Ranks!$1:$1048576,$A402,AW$1))","v":""},{"$f":"IF($A402=\"N/A\",Ref!$B$36,INDEX(Ranks!$1:$1048576,$A402,AX$1))","v":""},{"$f":"IF($A402=\"N/A\",Ref!$B$36,INDEX(Ranks!$1:$1048576,$A402,AY$1))","v":""},{"$f":"IF($A402=\"N/A\",Ref!$B$36,INDEX(Ranks!$1:$1048576,$A402,AZ$1))","v":""},{"$f":"IF($A402=\"N/A\",Ref!$B$36,INDEX(Ranks!$1:$1048576,$A402,BA$1))","v":""},{"$f":"IF($A402=\"N/A\",Ref!$B$36,INDEX(Ranks!$1:$1048576,$A402,BB$1))","v":""},{"$f":"IF($A402=\"N/A\",Ref!$B$36,INDEX(Ranks!$1:$1048576,$A402,BC$1))","v":""},{"$f":"IF($A402=\"N/A\",Ref!$B$36,INDEX(Ranks!$1:$1048576,$A402,BD$1))","v":""},{"$f":"IF($A402=\"N/A\",Ref!$B$36,INDEX(Ranks!$1:$1048576,$A402,BE$1))","v":""},{"$f":"IF($A402=\"N/A\",Ref!$B$36,INDEX(Ranks!$1:$1048576,$A402,BF$1))","v":""},{"$f":"IF($A402=\"N/A\",Ref!$B$36,INDEX(Ranks!$1:$1048576,$A402,BG$1))","v":""},{"$f":"IF($A402=\"N/A\",Ref!$B$36,INDEX(Ranks!$1:$1048576,$A402,BH$1))","v":""},{"$f":"IF($A402=\"N/A\",Ref!$B$36,INDEX(Ranks!$1:$1048576,$A402,BI$1))","v":""},{"$f":"IF($A402=\"N/A\",Ref!$B$36,INDEX(Ranks!$1:$1048576,$A402,BJ$1))","v":""},{"$f":"IF($A402=\"N/A\",Ref!$B$36,INDEX(Ranks!$1:$1048576,$A402,BK$1))","v":""},{"$f":"IF($A402=\"N/A\",Ref!$B$36,INDEX(Ranks!$1:$1048576,$A402,BL$1))","v":""},{"$f":"IF($A402=\"N/A\",Ref!$B$36,INDEX(Ranks!$1:$1048576,$A402,BM$1))","v":""},{"$f":"IF($A402=\"N/A\",Ref!$B$36,INDEX(Ranks!$1:$1048576,$A402,BN$1))","v":""},{"$f":"IF($A402=\"N/A\",Ref!$B$36,INDEX(Ranks!$1:$1048576,$A402,BO$1))","v":""},{"$f":"IF($A402=\"N/A\",Ref!$B$36,INDEX(Ranks!$1:$1048576,$A402,BP$1))","v":""},{"$f":"IF($A402=\"N/A\",Ref!$B$36,INDEX(Ranks!$1:$1048576,$A402,BQ$1))","v":""},{"$f":"IF($A402=\"N/A\",Ref!$B$36,INDEX(Ranks!$1:$1048576,$A402,BR$1))","v":""},{"$f":"IF($A402=\"N/A\",Ref!$B$36,INDEX(Ranks!$1:$1048576,$A402,BS$1))","v":""},{"$f":"IF($A402=\"N/A\",Ref!$B$36,INDEX(Ranks!$1:$1048576,$A402,BT$1))","v":""},{"$f":"IF($A402=\"N/A\",Ref!$B$36,INDEX(Ranks!$1:$1048576,$A402,BU$1))","v":""},{"$f":"IF($A402=\"N/A\",Ref!$B$36,INDEX(Ranks!$1:$1048576,$A402,BV$1))","v":""},{"$f":"IF($A402=\"N/A\",Ref!$B$36,INDEX(Ranks!$1:$1048576,$A402,BW$1))","v":""},{"$f":"IF($A402=\"N/A\",Ref!$B$36,INDEX(Ranks!$1:$1048576,$A402,BX$1))","v":""},{"$f":"IF($A402=\"N/A\",Ref!$B$36,INDEX(Ranks!$1:$1048576,$A402,BY$1))","v":""},{"$f":"IF($A402=\"N/A\",Ref!$B$36,INDEX(Ranks!$1:$1048576,$A402,BZ$1))","v":""},{"$f":"IF($A402=\"N/A\",Ref!$B$36,INDEX(Ranks!$1:$1048576,$A402,CA$1))","v":""},{"$f":"IF($A402=\"N/A\",Ref!$B$36,INDEX(Ranks!$1:$1048576,$A402,CB$1))","v":""},{"$f":"IF($A402=\"N/A\",Ref!$B$36,INDEX(Ranks!$1:$1048576,$A402,CC$1))","v":""},{"$f":"IF($A402=\"N/A\",Ref!$B$36,INDEX(Ranks!$1:$1048576,$A402,CD$1))","v":""},{"$f":"IF($A402=\"N/A\",Ref!$B$36,INDEX(Ranks!$1:$1048576,$A402,CE$1))","v":""},{"$f":"IF($A402=\"N/A\",Ref!$B$36,INDEX(Ranks!$1:$1048576,$A402,CF$1))","v":""},{"$f":"IF($A402=\"N/A\",Ref!$B$36,INDEX(Ranks!$1:$1048576,$A402,CG$1))","v":""},{"$f":"IF($A402=\"N/A\",Ref!$B$36,INDEX(Ranks!$1:$1048576,$A402,CH$1))","v":""},{"$f":"IF($A402=\"N/A\",Ref!$B$36,INDEX(Ranks!$1:$1048576,$A402,CI$1))","v":""},{"$f":"IF($A402=\"N/A\",Ref!$B$36,INDEX(Ranks!$1:$1048576,$A402,CJ$1))","v":""},{"$f":"IF($A402=\"N/A\",Ref!$B$36,INDEX(Ranks!$1:$1048576,$A402,CK$1))","v":""},{"$f":"IF($A402=\"N/A\",Ref!$B$36,INDEX(Ranks!$1:$1048576,$A402,CL$1))","v":""},{"$f":"IF($A402=\"N/A\",Ref!$B$36,INDEX(Ranks!$1:$1048576,$A402,CM$1))","v":""},{"$f":"IF($A402=\"N/A\",Ref!$B$36,INDEX(Ranks!$1:$1048576,$A402,CN$1))","v":""},{"$f":"IF($A402=\"N/A\",Ref!$B$36,INDEX(Ranks!$1:$1048576,$A402,CO$1))","v":""},{"$f":"IF($A402=\"N/A\",Ref!$B$36,INDEX(Ranks!$1:$1048576,$A402,CP$1))","v":""},{"$f":"IF($A402=\"N/A\",Ref!$B$36,INDEX(Ranks!$1:$1048576,$A402,CQ$1))","v":""},{"$f":"IF($A402=\"N/A\",Ref!$B$36,INDEX(Ranks!$1:$1048576,$A402,CR$1))","v":""},{"$f":"IF($A402=\"N/A\",Ref!$B$36,INDEX(Ranks!$1:$1048576,$A402,CS$1))","v":""},{"$f":"IF($A402=\"N/A\",Ref!$B$36,INDEX(Ranks!$1:$1048576,$A402,CT$1))","v":""},{"$f":"IF($A402=\"N/A\",Ref!$B$36,INDEX(Ranks!$1:$1048576,$A402,CU$1))","v":""},{"$f":"IF($A402=\"N/A\",Ref!$B$36,INDEX(Ranks!$1:$1048576,$A402,CV$1))","v":""},{"$f":"IF($A402=\"N/A\",Ref!$B$36,INDEX(Ranks!$1:$1048576,$A402,CW$1))","v":""},{"$f":"IF($A402=\"N/A\",Ref!$B$36,INDEX(Ranks!$1:$1048576,$A402,CX$1))","v":""},{"$f":"IF($A402=\"N/A\",Ref!$B$36,INDEX(Ranks!$1:$1048576,$A402,CY$1))","v":""},{"$f":"IF($A402=\"N/A\",Ref!$B$36,INDEX(Ranks!$1:$1048576,$A402,CZ$1))","v":""},{"$f":"IF($A402=\"N/A\",Ref!$B$36,INDEX(Ranks!$1:$1048576,$A402,DA$1))","v":""},{"$f":"IF($A402=\"N/A\",Ref!$B$36,INDEX(Ranks!$1:$1048576,$A402,DB$1))","v":""},{"$f":"IF($A402=\"N/A\",Ref!$B$36,INDEX(Ranks!$1:$1048576,$A402,DC$1))","v":""},{"$f":"IF($A402=\"N/A\",Ref!$B$36,INDEX(Ranks!$1:$1048576,$A402,DD$1))","v":""},{"$f":"IF($A402=\"N/A\",Ref!$B$36,INDEX(Ranks!$1:$1048576,$A402,DE$1))","v":""},{"$f":"IF($A402=\"N/A\",Ref!$B$36,INDEX(Ranks!$1:$1048576,$A402,DF$1))","v":""},{"$f":"IF($A402=\"N/A\",Ref!$B$36,INDEX(Ranks!$1:$1048576,$A402,DG$1))","v":""},{"$f":"IF($A402=\"N/A\",Ref!$B$36,INDEX(Ranks!$1:$1048576,$A402,DH$1))","v":""},{"$f":"IF($A402=\"N/A\",Ref!$B$36,INDEX(Ranks!$1:$1048576,$A402,DI$1))","v":""},{"$f":"IF($A402=\"N/A\",Ref!$B$36,INDEX(Ranks!$1:$1048576,$A402,DJ$1))","v":""},{"$f":"IF($A402=\"N/A\",Ref!$B$36,INDEX(Ranks!$1:$1048576,$A402,DK$1))","v":""},{"$f":"IF($A402=\"N/A\",Ref!$B$36,INDEX(Ranks!$1:$1048576,$A402,DL$1))","v":""},{"$f":"IF($A402=\"N/A\",Ref!$B$36,INDEX(Ranks!$1:$1048576,$A402,DM$1))","v":""},{"$f":"IF($A402=\"N/A\",Ref!$B$36,INDEX(Ranks!$1:$1048576,$A402,DN$1))","v":""},{"$f":"IF($A402=\"N/A\",Ref!$B$36,INDEX(Ranks!$1:$1048576,$A402,DO$1))","v":""},{"$f":"IF($A402=\"N/A\",Ref!$B$36,INDEX(Ranks!$1:$1048576,$A402,DP$1))","v":""},{"$f":"IF($A402=\"N/A\",Ref!$B$36,INDEX(Ranks!$1:$1048576,$A402,DQ$1))","v":""},{"$f":"IF($A402=\"N/A\",Ref!$B$36,INDEX(Ranks!$1:$1048576,$A402,DR$1))","v":""},{"$f":"IF($A402=\"N/A\",Ref!$B$36,INDEX(Ranks!$1:$1048576,$A402,DS$1))","v":""},{"$f":"IF($A402=\"N/A\",Ref!$B$36,INDEX(Ranks!$1:$1048576,$A402,DT$1))","v":""},{"$f":"IF($A402=\"N/A\",Ref!$B$36,INDEX(Ranks!$1:$1048576,$A402,DU$1))","v":""},{"$f":"IF($A402=\"N/A\",Ref!$B$36,INDEX(Ranks!$1:$1048576,$A402,DV$1))","v":""},{"$f":"IF($A402=\"N/A\",Ref!$B$36,INDEX(Ranks!$1:$1048576,$A402,DW$1))","v":""},{"$f":"IF($A402=\"N/A\",Ref!$B$36,INDEX(Ranks!$1:$1048576,$A402,DX$1))","v":""},{"$f":"IF($A402=\"N/A\",Ref!$B$36,INDEX(Ranks!$1:$1048576,$A402,DY$1))","v":""},{"$f":"IF($A402=\"N/A\",Ref!$B$36,INDEX(Ranks!$1:$1048576,$A402,DZ$1))","v":""},{"$f":"IF($A402=\"N/A\",Ref!$B$36,INDEX(Ranks!$1:$1048576,$A402,EA$1))","v":""},{"$f":"IF($A402=\"N/A\",Ref!$B$36,INDEX(Ranks!$1:$1048576,$A402,EB$1))","v":""}]
[{"$f":"IFERROR(MATCH('Portfolio Page'!L403,Ranks!L:L,0),\"N/A\")","v":"N/A"},null,{"$f":"IF($A403=\"N/A\",\"\",INDEX(Ranks!$1:$1048576,$A403,C$1))","v":""},{"$f":"IF($A403=\"N/A\",Ref!$B$36,INDEX(Ranks!$1:$1048576,$A403,D$1))","v":""},{"$f":"IF($A403=\"N/A\",Ref!$B$36,INDEX(Ranks!$1:$1048576,$A403,E$1))","v":""},{"$f":"IF($A403=\"N/A\",\"\",INDEX(Ranks!$1:$1048576,$A403,F$1))","v":""},{"$f":"IF($A403=\"N/A\",\"\",INDEX(Ranks!$1:$1048576,$A403,G$1))","v":""},{"$f":"IF($A403=\"N/A\",\"\",INDEX(Ranks!$1:$1048576,$A403,H$1))","v":""},{"$f":"IF($A403=\"N/A\",\"\",INDEX(Ranks!$1:$1048576,$A403,I$1))","v":""},{"$f":"IF($A403=\"N/A\",\"\",INDEX(Ranks!$1:$1048576,$A403,J$1))","v":""},{"$f":"IF($A403=\"N/A\",\"\",INDEX(Ranks!$1:$1048576,$A403,K$1))","v":""},null,{"$f":"IF($A403=\"N/A\",Ref!$B$36,INDEX(Ranks!$1:$1048576,$A403,M$1))","v":""},{"$f":"IF($A403=\"N/A\",Ref!$B$36,INDEX(Ranks!$1:$1048576,$A403,N$1))","v":""},{"$f":"IF($A403=\"N/A\",Ref!$B$36,INDEX(Ranks!$1:$1048576,$A403,O$1))","v":""},{"$f":"IF($A403=\"N/A\",Ref!$B$36,INDEX(Ranks!$1:$1048576,$A403,P$1))","v":""},{"$f":"IF($A403=\"N/A\",Ref!$B$36,INDEX(Ranks!$1:$1048576,$A403,Q$1))","v":""},{"$f":"IF($A403=\"N/A\",Ref!$B$36,INDEX(Ranks!$1:$1048576,$A403,R$1))","v":""},{"$f":"IF($A403=\"N/A\",Ref!$B$36,INDEX(Ranks!$1:$1048576,$A403,S$1))","v":""},{"$f":"IF($A403=\"N/A\",Ref!$B$36,INDEX(Ranks!$1:$1048576,$A403,T$1))","v":""},{"$f":"IF($A403=\"N/A\",Ref!$B$36,INDEX(Ranks!$1:$1048576,$A403,U$1))","v":""},{"$f":"IF($A403=\"N/A\",Ref!$B$36,INDEX(Ranks!$1:$1048576,$A403,V$1))","v":""},{"$f":"IF($A403=\"N/A\",Ref!$B$36,INDEX(Ranks!$1:$1048576,$A403,W$1))","v":""},{"$f":"IF($A403=\"N/A\",Ref!$B$36,INDEX(Ranks!$1:$1048576,$A403,X$1))","v":""},{"$f":"IF($A403=\"N/A\",Ref!$B$36,INDEX(Ranks!$1:$1048576,$A403,Y$1))","v":""},{"$f":"IF($A403=\"N/A\",Ref!$B$36,INDEX(Ranks!$1:$1048576,$A403,Z$1))","v":""},{"$f":"IF($A403=\"N/A\",Ref!$B$36,INDEX(Ranks!$1:$1048576,$A403,AA$1))","v":""},{"$f":"IF($A403=\"N/A\",Ref!$B$36,INDEX(Ranks!$1:$1048576,$A403,AB$1))","v":""},{"$f":"IF($A403=\"N/A\",Ref!$B$36,INDEX(Ranks!$1:$1048576,$A403,AC$1))","v":""},{"$f":"IF($A403=\"N/A\",Ref!$B$36,INDEX(Ranks!$1:$1048576,$A403,AD$1))","v":""},{"$f":"IF($A403=\"N/A\",Ref!$B$36,INDEX(Ranks!$1:$1048576,$A403,AE$1))","v":""},{"$f":"IF($A403=\"N/A\",Ref!$B$36,INDEX(Ranks!$1:$1048576,$A403,AF$1))","v":""},{"$f":"IF($A403=\"N/A\",Ref!$B$36,INDEX(Ranks!$1:$1048576,$A403,AG$1))","v":""},{"$f":"IF($A403=\"N/A\",Ref!$B$36,INDEX(Ranks!$1:$1048576,$A403,AH$1))","v":""},{"$f":"IF($A403=\"N/A\",Ref!$B$36,INDEX(Ranks!$1:$1048576,$A403,AI$1))","v":""},{"$f":"IF($A403=\"N/A\",Ref!$B$36,INDEX(Ranks!$1:$1048576,$A403,AJ$1))","v":""},{"$f":"IF($A403=\"N/A\",Ref!$B$36,INDEX(Ranks!$1:$1048576,$A403,AK$1))","v":""},{"$f":"IF($A403=\"N/A\",Ref!$B$36,INDEX(Ranks!$1:$1048576,$A403,AL$1))","v":""},{"$f":"IF($A403=\"N/A\",Ref!$B$36,INDEX(Ranks!$1:$1048576,$A403,AM$1))","v":""},{"$f":"IF($A403=\"N/A\",Ref!$B$36,INDEX(Ranks!$1:$1048576,$A403,AN$1))","v":""},{"$f":"IF($A403=\"N/A\",Ref!$B$36,INDEX(Ranks!$1:$1048576,$A403,AO$1))","v":""},{"$f":"IF($A403=\"N/A\",Ref!$B$36,INDEX(Ranks!$1:$1048576,$A403,AP$1))","v":""},{"$f":"IF($A403=\"N/A\",Ref!$B$36,INDEX(Ranks!$1:$1048576,$A403,AQ$1))","v":""},{"$f":"IF($A403=\"N/A\",Ref!$B$36,INDEX(Ranks!$1:$1048576,$A403,AR$1))","v":""},{"$f":"IF($A403=\"N/A\",Ref!$B$36,INDEX(Ranks!$1:$1048576,$A403,AS$1))","v":""},{"$f":"IF($A403=\"N/A\",Ref!$B$36,INDEX(Ranks!$1:$1048576,$A403,AT$1))","v":""},{"$f":"IF($A403=\"N/A\",Ref!$B$36,INDEX(Ranks!$1:$1048576,$A403,AU$1))","v":""},{"$f":"IF($A403=\"N/A\",Ref!$B$36,INDEX(Ranks!$1:$1048576,$A403,AV$1))","v":""},{"$f":"IF($A403=\"N/A\",Ref!$B$36,INDEX(Ranks!$1:$1048576,$A403,AW$1))","v":""},{"$f":"IF($A403=\"N/A\",Ref!$B$36,INDEX(Ranks!$1:$1048576,$A403,AX$1))","v":""},{"$f":"IF($A403=\"N/A\",Ref!$B$36,INDEX(Ranks!$1:$1048576,$A403,AY$1))","v":""},{"$f":"IF($A403=\"N/A\",Ref!$B$36,INDEX(Ranks!$1:$1048576,$A403,AZ$1))","v":""},{"$f":"IF($A403=\"N/A\",Ref!$B$36,INDEX(Ranks!$1:$1048576,$A403,BA$1))","v":""},{"$f":"IF($A403=\"N/A\",Ref!$B$36,INDEX(Ranks!$1:$1048576,$A403,BB$1))","v":""},{"$f":"IF($A403=\"N/A\",Ref!$B$36,INDEX(Ranks!$1:$1048576,$A403,BC$1))","v":""},{"$f":"IF($A403=\"N/A\",Ref!$B$36,INDEX(Ranks!$1:$1048576,$A403,BD$1))","v":""},{"$f":"IF($A403=\"N/A\",Ref!$B$36,INDEX(Ranks!$1:$1048576,$A403,BE$1))","v":""},{"$f":"IF($A403=\"N/A\",Ref!$B$36,INDEX(Ranks!$1:$1048576,$A403,BF$1))","v":""},{"$f":"IF($A403=\"N/A\",Ref!$B$36,INDEX(Ranks!$1:$1048576,$A403,BG$1))","v":""},{"$f":"IF($A403=\"N/A\",Ref!$B$36,INDEX(Ranks!$1:$1048576,$A403,BH$1))","v":""},{"$f":"IF($A403=\"N/A\",Ref!$B$36,INDEX(Ranks!$1:$1048576,$A403,BI$1))","v":""},{"$f":"IF($A403=\"N/A\",Ref!$B$36,INDEX(Ranks!$1:$1048576,$A403,BJ$1))","v":""},{"$f":"IF($A403=\"N/A\",Ref!$B$36,INDEX(Ranks!$1:$1048576,$A403,BK$1))","v":""},{"$f":"IF($A403=\"N/A\",Ref!$B$36,INDEX(Ranks!$1:$1048576,$A403,BL$1))","v":""},{"$f":"IF($A403=\"N/A\",Ref!$B$36,INDEX(Ranks!$1:$1048576,$A403,BM$1))","v":""},{"$f":"IF($A403=\"N/A\",Ref!$B$36,INDEX(Ranks!$1:$1048576,$A403,BN$1))","v":""},{"$f":"IF($A403=\"N/A\",Ref!$B$36,INDEX(Ranks!$1:$1048576,$A403,BO$1))","v":""},{"$f":"IF($A403=\"N/A\",Ref!$B$36,INDEX(Ranks!$1:$1048576,$A403,BP$1))","v":""},{"$f":"IF($A403=\"N/A\",Ref!$B$36,INDEX(Ranks!$1:$1048576,$A403,BQ$1))","v":""},{"$f":"IF($A403=\"N/A\",Ref!$B$36,INDEX(Ranks!$1:$1048576,$A403,BR$1))","v":""},{"$f":"IF($A403=\"N/A\",Ref!$B$36,INDEX(Ranks!$1:$1048576,$A403,BS$1))","v":""},{"$f":"IF($A403=\"N/A\",Ref!$B$36,INDEX(Ranks!$1:$1048576,$A403,BT$1))","v":""},{"$f":"IF($A403=\"N/A\",Ref!$B$36,INDEX(Ranks!$1:$1048576,$A403,BU$1))","v":""},{"$f":"IF($A403=\"N/A\",Ref!$B$36,INDEX(Ranks!$1:$1048576,$A403,BV$1))","v":""},{"$f":"IF($A403=\"N/A\",Ref!$B$36,INDEX(Ranks!$1:$1048576,$A403,BW$1))","v":""},{"$f":"IF($A403=\"N/A\",Ref!$B$36,INDEX(Ranks!$1:$1048576,$A403,BX$1))","v":""},{"$f":"IF($A403=\"N/A\",Ref!$B$36,INDEX(Ranks!$1:$1048576,$A403,BY$1))","v":""},{"$f":"IF($A403=\"N/A\",Ref!$B$36,INDEX(Ranks!$1:$1048576,$A403,BZ$1))","v":""},{"$f":"IF($A403=\"N/A\",Ref!$B$36,INDEX(Ranks!$1:$1048576,$A403,CA$1))","v":""},{"$f":"IF($A403=\"N/A\",Ref!$B$36,INDEX(Ranks!$1:$1048576,$A403,CB$1))","v":""},{"$f":"IF($A403=\"N/A\",Ref!$B$36,INDEX(Ranks!$1:$1048576,$A403,CC$1))","v":""},{"$f":"IF($A403=\"N/A\",Ref!$B$36,INDEX(Ranks!$1:$1048576,$A403,CD$1))","v":""},{"$f":"IF($A403=\"N/A\",Ref!$B$36,INDEX(Ranks!$1:$1048576,$A403,CE$1))","v":""},{"$f":"IF($A403=\"N/A\",Ref!$B$36,INDEX(Ranks!$1:$1048576,$A403,CF$1))","v":""},{"$f":"IF($A403=\"N/A\",Ref!$B$36,INDEX(Ranks!$1:$1048576,$A403,CG$1))","v":""},{"$f":"IF($A403=\"N/A\",Ref!$B$36,INDEX(Ranks!$1:$1048576,$A403,CH$1))","v":""},{"$f":"IF($A403=\"N/A\",Ref!$B$36,INDEX(Ranks!$1:$1048576,$A403,CI$1))","v":""},{"$f":"IF($A403=\"N/A\",Ref!$B$36,INDEX(Ranks!$1:$1048576,$A403,CJ$1))","v":""},{"$f":"IF($A403=\"N/A\",Ref!$B$36,INDEX(Ranks!$1:$1048576,$A403,CK$1))","v":""},{"$f":"IF($A403=\"N/A\",Ref!$B$36,INDEX(Ranks!$1:$1048576,$A403,CL$1))","v":""},{"$f":"IF($A403=\"N/A\",Ref!$B$36,INDEX(Ranks!$1:$1048576,$A403,CM$1))","v":""},{"$f":"IF($A403=\"N/A\",Ref!$B$36,INDEX(Ranks!$1:$1048576,$A403,CN$1))","v":""},{"$f":"IF($A403=\"N/A\",Ref!$B$36,INDEX(Ranks!$1:$1048576,$A403,CO$1))","v":""},{"$f":"IF($A403=\"N/A\",Ref!$B$36,INDEX(Ranks!$1:$1048576,$A403,CP$1))","v":""},{"$f":"IF($A403=\"N/A\",Ref!$B$36,INDEX(Ranks!$1:$1048576,$A403,CQ$1))","v":""},{"$f":"IF($A403=\"N/A\",Ref!$B$36,INDEX(Ranks!$1:$1048576,$A403,CR$1))","v":""},{"$f":"IF($A403=\"N/A\",Ref!$B$36,INDEX(Ranks!$1:$1048576,$A403,CS$1))","v":""},{"$f":"IF($A403=\"N/A\",Ref!$B$36,INDEX(Ranks!$1:$1048576,$A403,CT$1))","v":""},{"$f":"IF($A403=\"N/A\",Ref!$B$36,INDEX(Ranks!$1:$1048576,$A403,CU$1))","v":""},{"$f":"IF($A403=\"N/A\",Ref!$B$36,INDEX(Ranks!$1:$1048576,$A403,CV$1))","v":""},{"$f":"IF($A403=\"N/A\",Ref!$B$36,INDEX(Ranks!$1:$1048576,$A403,CW$1))","v":""},{"$f":"IF($A403=\"N/A\",Ref!$B$36,INDEX(Ranks!$1:$1048576,$A403,CX$1))","v":""},{"$f":"IF($A403=\"N/A\",Ref!$B$36,INDEX(Ranks!$1:$1048576,$A403,CY$1))","v":""},{"$f":"IF($A403=\"N/A\",Ref!$B$36,INDEX(Ranks!$1:$1048576,$A403,CZ$1))","v":""},{"$f":"IF($A403=\"N/A\",Ref!$B$36,INDEX(Ranks!$1:$1048576,$A403,DA$1))","v":""},{"$f":"IF($A403=\"N/A\",Ref!$B$36,INDEX(Ranks!$1:$1048576,$A403,DB$1))","v":""},{"$f":"IF($A403=\"N/A\",Ref!$B$36,INDEX(Ranks!$1:$1048576,$A403,DC$1))","v":""},{"$f":"IF($A403=\"N/A\",Ref!$B$36,INDEX(Ranks!$1:$1048576,$A403,DD$1))","v":""},{"$f":"IF($A403=\"N/A\",Ref!$B$36,INDEX(Ranks!$1:$1048576,$A403,DE$1))","v":""},{"$f":"IF($A403=\"N/A\",Ref!$B$36,INDEX(Ranks!$1:$1048576,$A403,DF$1))","v":""},{"$f":"IF($A403=\"N/A\",Ref!$B$36,INDEX(Ranks!$1:$1048576,$A403,DG$1))","v":""},{"$f":"IF($A403=\"N/A\",Ref!$B$36,INDEX(Ranks!$1:$1048576,$A403,DH$1))","v":""},{"$f":"IF($A403=\"N/A\",Ref!$B$36,INDEX(Ranks!$1:$1048576,$A403,DI$1))","v":""},{"$f":"IF($A403=\"N/A\",Ref!$B$36,INDEX(Ranks!$1:$1048576,$A403,DJ$1))","v":""},{"$f":"IF($A403=\"N/A\",Ref!$B$36,INDEX(Ranks!$1:$1048576,$A403,DK$1))","v":""},{"$f":"IF($A403=\"N/A\",Ref!$B$36,INDEX(Ranks!$1:$1048576,$A403,DL$1))","v":""},{"$f":"IF($A403=\"N/A\",Ref!$B$36,INDEX(Ranks!$1:$1048576,$A403,DM$1))","v":""},{"$f":"IF($A403=\"N/A\",Ref!$B$36,INDEX(Ranks!$1:$1048576,$A403,DN$1))","v":""},{"$f":"IF($A403=\"N/A\",Ref!$B$36,INDEX(Ranks!$1:$1048576,$A403,DO$1))","v":""},{"$f":"IF($A403=\"N/A\",Ref!$B$36,INDEX(Ranks!$1:$1048576,$A403,DP$1))","v":""},{"$f":"IF($A403=\"N/A\",Ref!$B$36,INDEX(Ranks!$1:$1048576,$A403,DQ$1))","v":""},{"$f":"IF($A403=\"N/A\",Ref!$B$36,INDEX(Ranks!$1:$1048576,$A403,DR$1))","v":""},{"$f":"IF($A403=\"N/A\",Ref!$B$36,INDEX(Ranks!$1:$1048576,$A403,DS$1))","v":""},{"$f":"IF($A403=\"N/A\",Ref!$B$36,INDEX(Ranks!$1:$1048576,$A403,DT$1))","v":""},{"$f":"IF($A403=\"N/A\",Ref!$B$36,INDEX(Ranks!$1:$1048576,$A403,DU$1))","v":""},{"$f":"IF($A403=\"N/A\",Ref!$B$36,INDEX(Ranks!$1:$1048576,$A403,DV$1))","v":""},{"$f":"IF($A403=\"N/A\",Ref!$B$36,INDEX(Ranks!$1:$1048576,$A403,DW$1))","v":""},{"$f":"IF($A403=\"N/A\",Ref!$B$36,INDEX(Ranks!$1:$1048576,$A403,DX$1))","v":""},{"$f":"IF($A403=\"N/A\",Ref!$B$36,INDEX(Ranks!$1:$1048576,$A403,DY$1))","v":""},{"$f":"IF($A403=\"N/A\",Ref!$B$36,INDEX(Ranks!$1:$1048576,$A403,DZ$1))","v":""},{"$f":"IF($A403=\"N/A\",Ref!$B$36,INDEX(Ranks!$1:$1048576,$A403,EA$1))","v":""},{"$f":"IF($A403=\"N/A\",Ref!$B$36,INDEX(Ranks!$1:$1048576,$A403,EB$1))","v":""}]
[{"$f":"IFERROR(MATCH('Portfolio Page'!L404,Ranks!L:L,0),\"N/A\")","v":"N/A"},null,{"$f":"IF($A404=\"N/A\",\"\",INDEX(Ranks!$1:$1048576,$A404,C$1))","v":""},{"$f":"IF($A404=\"N/A\",Ref!$B$36,INDEX(Ranks!$1:$1048576,$A404,D$1))","v":""},{"$f":"IF($A404=\"N/A\",Ref!$B$36,INDEX(Ranks!$1:$1048576,$A404,E$1))","v":""},{"$f":"IF($A404=\"N/A\",\"\",INDEX(Ranks!$1:$1048576,$A404,F$1))","v":""},{"$f":"IF($A404=\"N/A\",\"\",INDEX(Ranks!$1:$1048576,$A404,G$1))","v":""},{"$f":"IF($A404=\"N/A\",\"\",INDEX(Ranks!$1:$1048576,$A404,H$1))","v":""},{"$f":"IF($A404=\"N/A\",\"\",INDEX(Ranks!$1:$1048576,$A404,I$1))","v":""},{"$f":"IF($A404=\"N/A\",\"\",INDEX(Ranks!$1:$1048576,$A404,J$1))","v":""},{"$f":"IF($A404=\"N/A\",\"\",INDEX(Ranks!$1:$1048576,$A404,K$1))","v":""},null,{"$f":"IF($A404=\"N/A\",Ref!$B$36,INDEX(Ranks!$1:$1048576,$A404,M$1))","v":""},{"$f":"IF($A404=\"N/A\",Ref!$B$36,INDEX(Ranks!$1:$1048576,$A404,N$1))","v":""},{"$f":"IF($A404=\"N/A\",Ref!$B$36,INDEX(Ranks!$1:$1048576,$A404,O$1))","v":""},{"$f":"IF($A404=\"N/A\",Ref!$B$36,INDEX(Ranks!$1:$1048576,$A404,P$1))","v":""},{"$f":"IF($A404=\"N/A\",Ref!$B$36,INDEX(Ranks!$1:$1048576,$A404,Q$1))","v":""},{"$f":"IF($A404=\"N/A\",Ref!$B$36,INDEX(Ranks!$1:$1048576,$A404,R$1))","v":""},{"$f":"IF($A404=\"N/A\",Ref!$B$36,INDEX(Ranks!$1:$1048576,$A404,S$1))","v":""},{"$f":"IF($A404=\"N/A\",Ref!$B$36,INDEX(Ranks!$1:$1048576,$A404,T$1))","v":""},{"$f":"IF($A404=\"N/A\",Ref!$B$36,INDEX(Ranks!$1:$1048576,$A404,U$1))","v":""},{"$f":"IF($A404=\"N/A\",Ref!$B$36,INDEX(Ranks!$1:$1048576,$A404,V$1))","v":""},{"$f":"IF($A404=\"N/A\",Ref!$B$36,INDEX(Ranks!$1:$1048576,$A404,W$1))","v":""},{"$f":"IF($A404=\"N/A\",Ref!$B$36,INDEX(Ranks!$1:$1048576,$A404,X$1))","v":""},{"$f":"IF($A404=\"N/A\",Ref!$B$36,INDEX(Ranks!$1:$1048576,$A404,Y$1))","v":""},{"$f":"IF($A404=\"N/A\",Ref!$B$36,INDEX(Ranks!$1:$1048576,$A404,Z$1))","v":""},{"$f":"IF($A404=\"N/A\",Ref!$B$36,INDEX(Ranks!$1:$1048576,$A404,AA$1))","v":""},{"$f":"IF($A404=\"N/A\",Ref!$B$36,INDEX(Ranks!$1:$1048576,$A404,AB$1))","v":""},{"$f":"IF($A404=\"N/A\",Ref!$B$36,INDEX(Ranks!$1:$1048576,$A404,AC$1))","v":""},{"$f":"IF($A404=\"N/A\",Ref!$B$36,INDEX(Ranks!$1:$1048576,$A404,AD$1))","v":""},{"$f":"IF($A404=\"N/A\",Ref!$B$36,INDEX(Ranks!$1:$1048576,$A404,AE$1))","v":""},{"$f":"IF($A404=\"N/A\",Ref!$B$36,INDEX(Ranks!$1:$1048576,$A404,AF$1))","v":""},{"$f":"IF($A404=\"N/A\",Ref!$B$36,INDEX(Ranks!$1:$1048576,$A404,AG$1))","v":""},{"$f":"IF($A404=\"N/A\",Ref!$B$36,INDEX(Ranks!$1:$1048576,$A404,AH$1))","v":""},{"$f":"IF($A404=\"N/A\",Ref!$B$36,INDEX(Ranks!$1:$1048576,$A404,AI$1))","v":""},{"$f":"IF($A404=\"N/A\",Ref!$B$36,INDEX(Ranks!$1:$1048576,$A404,AJ$1))","v":""},{"$f":"IF($A404=\"N/A\",Ref!$B$36,INDEX(Ranks!$1:$1048576,$A404,AK$1))","v":""},{"$f":"IF($A404=\"N/A\",Ref!$B$36,INDEX(Ranks!$1:$1048576,$A404,AL$1))","v":""},{"$f":"IF($A404=\"N/A\",Ref!$B$36,INDEX(Ranks!$1:$1048576,$A404,AM$1))","v":""},{"$f":"IF($A404=\"N/A\",Ref!$B$36,INDEX(Ranks!$1:$1048576,$A404,AN$1))","v":""},{"$f":"IF($A404=\"N/A\",Ref!$B$36,INDEX(Ranks!$1:$1048576,$A404,AO$1))","v":""},{"$f":"IF($A404=\"N/A\",Ref!$B$36,INDEX(Ranks!$1:$1048576,$A404,AP$1))","v":""},{"$f":"IF($A404=\"N/A\",Ref!$B$36,INDEX(Ranks!$1:$1048576,$A404,AQ$1))","v":""},{"$f":"IF($A404=\"N/A\",Ref!$B$36,INDEX(Ranks!$1:$1048576,$A404,AR$1))","v":""},{"$f":"IF($A404=\"N/A\",Ref!$B$36,INDEX(Ranks!$1:$1048576,$A404,AS$1))","v":""},{"$f":"IF($A404=\"N/A\",Ref!$B$36,INDEX(Ranks!$1:$1048576,$A404,AT$1))","v":""},{"$f":"IF($A404=\"N/A\",Ref!$B$36,INDEX(Ranks!$1:$1048576,$A404,AU$1))","v":""},{"$f":"IF($A404=\"N/A\",Ref!$B$36,INDEX(Ranks!$1:$1048576,$A404,AV$1))","v":""},{"$f":"IF($A404=\"N/A\",Ref!$B$36,INDEX(Ranks!$1:$1048576,$A404,AW$1))","v":""},{"$f":"IF($A404=\"N/A\",Ref!$B$36,INDEX(Ranks!$1:$1048576,$A404,AX$1))","v":""},{"$f":"IF($A404=\"N/A\",Ref!$B$36,INDEX(Ranks!$1:$1048576,$A404,AY$1))","v":""},{"$f":"IF($A404=\"N/A\",Ref!$B$36,INDEX(Ranks!$1:$1048576,$A404,AZ$1))","v":""},{"$f":"IF($A404=\"N/A\",Ref!$B$36,INDEX(Ranks!$1:$1048576,$A404,BA$1))","v":""},{"$f":"IF($A404=\"N/A\",Ref!$B$36,INDEX(Ranks!$1:$1048576,$A404,BB$1))","v":""},{"$f":"IF($A404=\"N/A\",Ref!$B$36,INDEX(Ranks!$1:$1048576,$A404,BC$1))","v":""},{"$f":"IF($A404=\"N/A\",Ref!$B$36,INDEX(Ranks!$1:$1048576,$A404,BD$1))","v":""},{"$f":"IF($A404=\"N/A\",Ref!$B$36,INDEX(Ranks!$1:$1048576,$A404,BE$1))","v":""},{"$f":"IF($A404=\"N/A\",Ref!$B$36,INDEX(Ranks!$1:$1048576,$A404,BF$1))","v":""},{"$f":"IF($A404=\"N/A\",Ref!$B$36,INDEX(Ranks!$1:$1048576,$A404,BG$1))","v":""},{"$f":"IF($A404=\"N/A\",Ref!$B$36,INDEX(Ranks!$1:$1048576,$A404,BH$1))","v":""},{"$f":"IF($A404=\"N/A\",Ref!$B$36,INDEX(Ranks!$1:$1048576,$A404,BI$1))","v":""},{"$f":"IF($A404=\"N/A\",Ref!$B$36,INDEX(Ranks!$1:$1048576,$A404,BJ$1))","v":""},{"$f":"IF($A404=\"N/A\",Ref!$B$36,INDEX(Ranks!$1:$1048576,$A404,BK$1))","v":""},{"$f":"IF($A404=\"N/A\",Ref!$B$36,INDEX(Ranks!$1:$1048576,$A404,BL$1))","v":""},{"$f":"IF($A404=\"N/A\",Ref!$B$36,INDEX(Ranks!$1:$1048576,$A404,BM$1))","v":""},{"$f":"IF($A404=\"N/A\",Ref!$B$36,INDEX(Ranks!$1:$1048576,$A404,BN$1))","v":""},{"$f":"IF($A404=\"N/A\",Ref!$B$36,INDEX(Ranks!$1:$1048576,$A404,BO$1))","v":""},{"$f":"IF($A404=\"N/A\",Ref!$B$36,INDEX(Ranks!$1:$1048576,$A404,BP$1))","v":""},{"$f":"IF($A404=\"N/A\",Ref!$B$36,INDEX(Ranks!$1:$1048576,$A404,BQ$1))","v":""},{"$f":"IF($A404=\"N/A\",Ref!$B$36,INDEX(Ranks!$1:$1048576,$A404,BR$1))","v":""},{"$f":"IF($A404=\"N/A\",Ref!$B$36,INDEX(Ranks!$1:$1048576,$A404,BS$1))","v":""},{"$f":"IF($A404=\"N/A\",Ref!$B$36,INDEX(Ranks!$1:$1048576,$A404,BT$1))","v":""},{"$f":"IF($A404=\"N/A\",Ref!$B$36,INDEX(Ranks!$1:$1048576,$A404,BU$1))","v":""},{"$f":"IF($A404=\"N/A\",Ref!$B$36,INDEX(Ranks!$1:$1048576,$A404,BV$1))","v":""},{"$f":"IF($A404=\"N/A\",Ref!$B$36,INDEX(Ranks!$1:$1048576,$A404,BW$1))","v":""},{"$f":"IF($A404=\"N/A\",Ref!$B$36,INDEX(Ranks!$1:$1048576,$A404,BX$1))","v":""},{"$f":"IF($A404=\"N/A\",Ref!$B$36,INDEX(Ranks!$1:$1048576,$A404,BY$1))","v":""},{"$f":"IF($A404=\"N/A\",Ref!$B$36,INDEX(Ranks!$1:$1048576,$A404,BZ$1))","v":""},{"$f":"IF($A404=\"N/A\",Ref!$B$36,INDEX(Ranks!$1:$1048576,$A404,CA$1))","v":""},{"$f":"IF($A404=\"N/A\",Ref!$B$36,INDEX(Ranks!$1:$1048576,$A404,CB$1))","v":""},{"$f":"IF($A404=\"N/A\",Ref!$B$36,INDEX(Ranks!$1:$1048576,$A404,CC$1))","v":""},{"$f":"IF($A404=\"N/A\",Ref!$B$36,INDEX(Ranks!$1:$1048576,$A404,CD$1))","v":""},{"$f":"IF($A404=\"N/A\",Ref!$B$36,INDEX(Ranks!$1:$1048576,$A404,CE$1))","v":""},{"$f":"IF($A404=\"N/A\",Ref!$B$36,INDEX(Ranks!$1:$1048576,$A404,CF$1))","v":""},{"$f":"IF($A404=\"N/A\",Ref!$B$36,INDEX(Ranks!$1:$1048576,$A404,CG$1))","v":""},{"$f":"IF($A404=\"N/A\",Ref!$B$36,INDEX(Ranks!$1:$1048576,$A404,CH$1))","v":""},{"$f":"IF($A404=\"N/A\",Ref!$B$36,INDEX(Ranks!$1:$1048576,$A404,CI$1))","v":""},{"$f":"IF($A404=\"N/A\",Ref!$B$36,INDEX(Ranks!$1:$1048576,$A404,CJ$1))","v":""},{"$f":"IF($A404=\"N/A\",Ref!$B$36,INDEX(Ranks!$1:$1048576,$A404,CK$1))","v":""},{"$f":"IF($A404=\"N/A\",Ref!$B$36,INDEX(Ranks!$1:$1048576,$A404,CL$1))","v":""},{"$f":"IF($A404=\"N/A\",Ref!$B$36,INDEX(Ranks!$1:$1048576,$A404,CM$1))","v":""},{"$f":"IF($A404=\"N/A\",Ref!$B$36,INDEX(Ranks!$1:$1048576,$A404,CN$1))","v":""},{"$f":"IF($A404=\"N/A\",Ref!$B$36,INDEX(Ranks!$1:$1048576,$A404,CO$1))","v":""},{"$f":"IF($A404=\"N/A\",Ref!$B$36,INDEX(Ranks!$1:$1048576,$A404,CP$1))","v":""},{"$f":"IF($A404=\"N/A\",Ref!$B$36,INDEX(Ranks!$1:$1048576,$A404,CQ$1))","v":""},{"$f":"IF($A404=\"N/A\",Ref!$B$36,INDEX(Ranks!$1:$1048576,$A404,CR$1))","v":""},{"$f":"IF($A404=\"N/A\",Ref!$B$36,INDEX(Ranks!$1:$1048576,$A404,CS$1))","v":""},{"$f":"IF($A404=\"N/A\",Ref!$B$36,INDEX(Ranks!$1:$1048576,$A404,CT$1))","v":""},{"$f":"IF($A404=\"N/A\",Ref!$B$36,INDEX(Ranks!$1:$1048576,$A404,CU$1))","v":""},{"$f":"IF($A404=\"N/A\",Ref!$B$36,INDEX(Ranks!$1:$1048576,$A404,CV$1))","v":""},{"$f":"IF($A404=\"N/A\",Ref!$B$36,INDEX(Ranks!$1:$1048576,$A404,CW$1))","v":""},{"$f":"IF($A404=\"N/A\",Ref!$B$36,INDEX(Ranks!$1:$1048576,$A404,CX$1))","v":""},{"$f":"IF($A404=\"N/A\",Ref!$B$36,INDEX(Ranks!$1:$1048576,$A404,CY$1))","v":""},{"$f":"IF($A404=\"N/A\",Ref!$B$36,INDEX(Ranks!$1:$1048576,$A404,CZ$1))","v":""},{"$f":"IF($A404=\"N/A\",Ref!$B$36,INDEX(Ranks!$1:$1048576,$A404,DA$1))","v":""},{"$f":"IF($A404=\"N/A\",Ref!$B$36,INDEX(Ranks!$1:$1048576,$A404,DB$1))","v":""},{"$f":"IF($A404=\"N/A\",Ref!$B$36,INDEX(Ranks!$1:$1048576,$A404,DC$1))","v":""},{"$f":"IF($A404=\"N/A\",Ref!$B$36,INDEX(Ranks!$1:$1048576,$A404,DD$1))","v":""},{"$f":"IF($A404=\"N/A\",Ref!$B$36,INDEX(Ranks!$1:$1048576,$A404,DE$1))","v":""},{"$f":"IF($A404=\"N/A\",Ref!$B$36,INDEX(Ranks!$1:$1048576,$A404,DF$1))","v":""},{"$f":"IF($A404=\"N/A\",Ref!$B$36,INDEX(Ranks!$1:$1048576,$A404,DG$1))","v":""},{"$f":"IF($A404=\"N/A\",Ref!$B$36,INDEX(Ranks!$1:$1048576,$A404,DH$1))","v":""},{"$f":"IF($A404=\"N/A\",Ref!$B$36,INDEX(Ranks!$1:$1048576,$A404,DI$1))","v":""},{"$f":"IF($A404=\"N/A\",Ref!$B$36,INDEX(Ranks!$1:$1048576,$A404,DJ$1))","v":""},{"$f":"IF($A404=\"N/A\",Ref!$B$36,INDEX(Ranks!$1:$1048576,$A404,DK$1))","v":""},{"$f":"IF($A404=\"N/A\",Ref!$B$36,INDEX(Ranks!$1:$1048576,$A404,DL$1))","v":""},{"$f":"IF($A404=\"N/A\",Ref!$B$36,INDEX(Ranks!$1:$1048576,$A404,DM$1))","v":""},{"$f":"IF($A404=\"N/A\",Ref!$B$36,INDEX(Ranks!$1:$1048576,$A404,DN$1))","v":""},{"$f":"IF($A404=\"N/A\",Ref!$B$36,INDEX(Ranks!$1:$1048576,$A404,DO$1))","v":""},{"$f":"IF($A404=\"N/A\",Ref!$B$36,INDEX(Ranks!$1:$1048576,$A404,DP$1))","v":""},{"$f":"IF($A404=\"N/A\",Ref!$B$36,INDEX(Ranks!$1:$1048576,$A404,DQ$1))","v":""},{"$f":"IF($A404=\"N/A\",Ref!$B$36,INDEX(Ranks!$1:$1048576,$A404,DR$1))","v":""},{"$f":"IF($A404=\"N/A\",Ref!$B$36,INDEX(Ranks!$1:$1048576,$A404,DS$1))","v":""},{"$f":"IF($A404=\"N/A\",Ref!$B$36,INDEX(Ranks!$1:$1048576,$A404,DT$1))","v":""},{"$f":"IF($A404=\"N/A\",Ref!$B$36,INDEX(Ranks!$1:$1048576,$A404,DU$1))","v":""},{"$f":"IF($A404=\"N/A\",Ref!$B$36,INDEX(Ranks!$1:$1048576,$A404,DV$1))","v":""},{"$f":"IF($A404=\"N/A\",Ref!$B$36,INDEX(Ranks!$1:$1048576,$A404,DW$1))","v":""},{"$f":"IF($A404=\"N/A\",Ref!$B$36,INDEX(Ranks!$1:$1048576,$A404,DX$1))","v":""},{"$f":"IF($A404=\"N/A\",Ref!$B$36,INDEX(Ranks!$1:$1048576,$A404,DY$1))","v":""},{"$f":"IF($A404=\"N/A\",Ref!$B$36,INDEX(Ranks!$1:$1048576,$A404,DZ$1))","v":""},{"$f":"IF($A404=\"N/A\",Ref!$B$36,INDEX(Ranks!$1:$1048576,$A404,EA$1))","v":""},{"$f":"IF($A404=\"N/A\",Ref!$B$36,INDEX(Ranks!$1:$1048576,$A404,EB$1))","v":""}]
[{"$f":"IFERROR(MATCH('Portfolio Page'!L405,Ranks!L:L,0),\"N/A\")","v":"N/A"},null,{"$f":"IF($A405=\"N/A\",\"\",INDEX(Ranks!$1:$1048576,$A405,C$1))","v":""},{"$f":"IF($A405=\"N/A\",Ref!$B$36,INDEX(Ranks!$1:$1048576,$A405,D$1))","v":""},{"$f":"IF($A405=\"N/A\",Ref!$B$36,INDEX(Ranks!$1:$1048576,$A405,E$1))","v":""},{"$f":"IF($A405=\"N/A\",\"\",INDEX(Ranks!$1:$1048576,$A405,F$1))","v":""},{"$f":"IF($A405=\"N/A\",\"\",INDEX(Ranks!$1:$1048576,$A405,G$1))","v":""},{"$f":"IF($A405=\"N/A\",\"\",INDEX(Ranks!$1:$1048576,$A405,H$1))","v":""},{"$f":"IF($A405=\"N/A\",\"\",INDEX(Ranks!$1:$1048576,$A405,I$1))","v":""},{"$f":"IF($A405=\"N/A\",\"\",INDEX(Ranks!$1:$1048576,$A405,J$1))","v":""},{"$f":"IF($A405=\"N/A\",\"\",INDEX(Ranks!$1:$1048576,$A405,K$1))","v":""},null,{"$f":"IF($A405=\"N/A\",Ref!$B$36,INDEX(Ranks!$1:$1048576,$A405,M$1))","v":""},{"$f":"IF($A405=\"N/A\",Ref!$B$36,INDEX(Ranks!$1:$1048576,$A405,N$1))","v":""},{"$f":"IF($A405=\"N/A\",Ref!$B$36,INDEX(Ranks!$1:$1048576,$A405,O$1))","v":""},{"$f":"IF($A405=\"N/A\",Ref!$B$36,INDEX(Ranks!$1:$1048576,$A405,P$1))","v":""},{"$f":"IF($A405=\"N/A\",Ref!$B$36,INDEX(Ranks!$1:$1048576,$A405,Q$1))","v":""},{"$f":"IF($A405=\"N/A\",Ref!$B$36,INDEX(Ranks!$1:$1048576,$A405,R$1))","v":""},{"$f":"IF($A405=\"N/A\",Ref!$B$36,INDEX(Ranks!$1:$1048576,$A405,S$1))","v":""},{"$f":"IF($A405=\"N/A\",Ref!$B$36,INDEX(Ranks!$1:$1048576,$A405,T$1))","v":""},{"$f":"IF($A405=\"N/A\",Ref!$B$36,INDEX(Ranks!$1:$1048576,$A405,U$1))","v":""},{"$f":"IF($A405=\"N/A\",Ref!$B$36,INDEX(Ranks!$1:$1048576,$A405,V$1))","v":""},{"$f":"IF($A405=\"N/A\",Ref!$B$36,INDEX(Ranks!$1:$1048576,$A405,W$1))","v":""},{"$f":"IF($A405=\"N/A\",Ref!$B$36,INDEX(Ranks!$1:$1048576,$A405,X$1))","v":""},{"$f":"IF($A405=\"N/A\",Ref!$B$36,INDEX(Ranks!$1:$1048576,$A405,Y$1))","v":""},{"$f":"IF($A405=\"N/A\",Ref!$B$36,INDEX(Ranks!$1:$1048576,$A405,Z$1))","v":""},{"$f":"IF($A405=\"N/A\",Ref!$B$36,INDEX(Ranks!$1:$1048576,$A405,AA$1))","v":""},{"$f":"IF($A405=\"N/A\",Ref!$B$36,INDEX(Ranks!$1:$1048576,$A405,AB$1))","v":""},{"$f":"IF($A405=\"N/A\",Ref!$B$36,INDEX(Ranks!$1:$1048576,$A405,AC$1))","v":""},{"$f":"IF($A405=\"N/A\",Ref!$B$36,INDEX(Ranks!$1:$1048576,$A405,AD$1))","v":""},{"$f":"IF($A405=\"N/A\",Ref!$B$36,INDEX(Ranks!$1:$1048576,$A405,AE$1))","v":""},{"$f":"IF($A405=\"N/A\",Ref!$B$36,INDEX(Ranks!$1:$1048576,$A405,AF$1))","v":""},{"$f":"IF($A405=\"N/A\",Ref!$B$36,INDEX(Ranks!$1:$1048576,$A405,AG$1))","v":""},{"$f":"IF($A405=\"N/A\",Ref!$B$36,INDEX(Ranks!$1:$1048576,$A405,AH$1))","v":""},{"$f":"IF($A405=\"N/A\",Ref!$B$36,INDEX(Ranks!$1:$1048576,$A405,AI$1))","v":""},{"$f":"IF($A405=\"N/A\",Ref!$B$36,INDEX(Ranks!$1:$1048576,$A405,AJ$1))","v":""},{"$f":"IF($A405=\"N/A\",Ref!$B$36,INDEX(Ranks!$1:$1048576,$A405,AK$1))","v":""},{"$f":"IF($A405=\"N/A\",Ref!$B$36,INDEX(Ranks!$1:$1048576,$A405,AL$1))","v":""},{"$f":"IF($A405=\"N/A\",Ref!$B$36,INDEX(Ranks!$1:$1048576,$A405,AM$1))","v":""},{"$f":"IF($A405=\"N/A\",Ref!$B$36,INDEX(Ranks!$1:$1048576,$A405,AN$1))","v":""},{"$f":"IF($A405=\"N/A\",Ref!$B$36,INDEX(Ranks!$1:$1048576,$A405,AO$1))","v":""},{"$f":"IF($A405=\"N/A\",Ref!$B$36,INDEX(Ranks!$1:$1048576,$A405,AP$1))","v":""},{"$f":"IF($A405=\"N/A\",Ref!$B$36,INDEX(Ranks!$1:$1048576,$A405,AQ$1))","v":""},{"$f":"IF($A405=\"N/A\",Ref!$B$36,INDEX(Ranks!$1:$1048576,$A405,AR$1))","v":""},{"$f":"IF($A405=\"N/A\",Ref!$B$36,INDEX(Ranks!$1:$1048576,$A405,AS$1))","v":""},{"$f":"IF($A405=\"N/A\",Ref!$B$36,INDEX(Ranks!$1:$1048576,$A405,AT$1))","v":""},{"$f":"IF($A405=\"N/A\",Ref!$B$36,INDEX(Ranks!$1:$1048576,$A405,AU$1))","v":""},{"$f":"IF($A405=\"N/A\",Ref!$B$36,INDEX(Ranks!$1:$1048576,$A405,AV$1))","v":""},{"$f":"IF($A405=\"N/A\",Ref!$B$36,INDEX(Ranks!$1:$1048576,$A405,AW$1))","v":""},{"$f":"IF($A405=\"N/A\",Ref!$B$36,INDEX(Ranks!$1:$1048576,$A405,AX$1))","v":""},{"$f":"IF($A405=\"N/A\",Ref!$B$36,INDEX(Ranks!$1:$1048576,$A405,AY$1))","v":""},{"$f":"IF($A405=\"N/A\",Ref!$B$36,INDEX(Ranks!$1:$1048576,$A405,AZ$1))","v":""},{"$f":"IF($A405=\"N/A\",Ref!$B$36,INDEX(Ranks!$1:$1048576,$A405,BA$1))","v":""},{"$f":"IF($A405=\"N/A\",Ref!$B$36,INDEX(Ranks!$1:$1048576,$A405,BB$1))","v":""},{"$f":"IF($A405=\"N/A\",Ref!$B$36,INDEX(Ranks!$1:$1048576,$A405,BC$1))","v":""},{"$f":"IF($A405=\"N/A\",Ref!$B$36,INDEX(Ranks!$1:$1048576,$A405,BD$1))","v":""},{"$f":"IF($A405=\"N/A\",Ref!$B$36,INDEX(Ranks!$1:$1048576,$A405,BE$1))","v":""},{"$f":"IF($A405=\"N/A\",Ref!$B$36,INDEX(Ranks!$1:$1048576,$A405,BF$1))","v":""},{"$f":"IF($A405=\"N/A\",Ref!$B$36,INDEX(Ranks!$1:$1048576,$A405,BG$1))","v":""},{"$f":"IF($A405=\"N/A\",Ref!$B$36,INDEX(Ranks!$1:$1048576,$A405,BH$1))","v":""},{"$f":"IF($A405=\"N/A\",Ref!$B$36,INDEX(Ranks!$1:$1048576,$A405,BI$1))","v":""},{"$f":"IF($A405=\"N/A\",Ref!$B$36,INDEX(Ranks!$1:$1048576,$A405,BJ$1))","v":""},{"$f":"IF($A405=\"N/A\",Ref!$B$36,INDEX(Ranks!$1:$1048576,$A405,BK$1))","v":""},{"$f":"IF($A405=\"N/A\",Ref!$B$36,INDEX(Ranks!$1:$1048576,$A405,BL$1))","v":""},{"$f":"IF($A405=\"N/A\",Ref!$B$36,INDEX(Ranks!$1:$1048576,$A405,BM$1))","v":""},{"$f":"IF($A405=\"N/A\",Ref!$B$36,INDEX(Ranks!$1:$1048576,$A405,BN$1))","v":""},{"$f":"IF($A405=\"N/A\",Ref!$B$36,INDEX(Ranks!$1:$1048576,$A405,BO$1))","v":""},{"$f":"IF($A405=\"N/A\",Ref!$B$36,INDEX(Ranks!$1:$1048576,$A405,BP$1))","v":""},{"$f":"IF($A405=\"N/A\",Ref!$B$36,INDEX(Ranks!$1:$1048576,$A405,BQ$1))","v":""},{"$f":"IF($A405=\"N/A\",Ref!$B$36,INDEX(Ranks!$1:$1048576,$A405,BR$1))","v":""},{"$f":"IF($A405=\"N/A\",Ref!$B$36,INDEX(Ranks!$1:$1048576,$A405,BS$1))","v":""},{"$f":"IF($A405=\"N/A\",Ref!$B$36,INDEX(Ranks!$1:$1048576,$A405,BT$1))","v":""},{"$f":"IF($A405=\"N/A\",Ref!$B$36,INDEX(Ranks!$1:$1048576,$A405,BU$1))","v":""},{"$f":"IF($A405=\"N/A\",Ref!$B$36,INDEX(Ranks!$1:$1048576,$A405,BV$1))","v":""},{"$f":"IF($A405=\"N/A\",Ref!$B$36,INDEX(Ranks!$1:$1048576,$A405,BW$1))","v":""},{"$f":"IF($A405=\"N/A\",Ref!$B$36,INDEX(Ranks!$1:$1048576,$A405,BX$1))","v":""},{"$f":"IF($A405=\"N/A\",Ref!$B$36,INDEX(Ranks!$1:$1048576,$A405,BY$1))","v":""},{"$f":"IF($A405=\"N/A\",Ref!$B$36,INDEX(Ranks!$1:$1048576,$A405,BZ$1))","v":""},{"$f":"IF($A405=\"N/A\",Ref!$B$36,INDEX(Ranks!$1:$1048576,$A405,CA$1))","v":""},{"$f":"IF($A405=\"N/A\",Ref!$B$36,INDEX(Ranks!$1:$1048576,$A405,CB$1))","v":""},{"$f":"IF($A405=\"N/A\",Ref!$B$36,INDEX(Ranks!$1:$1048576,$A405,CC$1))","v":""},{"$f":"IF($A405=\"N/A\",Ref!$B$36,INDEX(Ranks!$1:$1048576,$A405,CD$1))","v":""},{"$f":"IF($A405=\"N/A\",Ref!$B$36,INDEX(Ranks!$1:$1048576,$A405,CE$1))","v":""},{"$f":"IF($A405=\"N/A\",Ref!$B$36,INDEX(Ranks!$1:$1048576,$A405,CF$1))","v":""},{"$f":"IF($A405=\"N/A\",Ref!$B$36,INDEX(Ranks!$1:$1048576,$A405,CG$1))","v":""},{"$f":"IF($A405=\"N/A\",Ref!$B$36,INDEX(Ranks!$1:$1048576,$A405,CH$1))","v":""},{"$f":"IF($A405=\"N/A\",Ref!$B$36,INDEX(Ranks!$1:$1048576,$A405,CI$1))","v":""},{"$f":"IF($A405=\"N/A\",Ref!$B$36,INDEX(Ranks!$1:$1048576,$A405,CJ$1))","v":""},{"$f":"IF($A405=\"N/A\",Ref!$B$36,INDEX(Ranks!$1:$1048576,$A405,CK$1))","v":""},{"$f":"IF($A405=\"N/A\",Ref!$B$36,INDEX(Ranks!$1:$1048576,$A405,CL$1))","v":""},{"$f":"IF($A405=\"N/A\",Ref!$B$36,INDEX(Ranks!$1:$1048576,$A405,CM$1))","v":""},{"$f":"IF($A405=\"N/A\",Ref!$B$36,INDEX(Ranks!$1:$1048576,$A405,CN$1))","v":""},{"$f":"IF($A405=\"N/A\",Ref!$B$36,INDEX(Ranks!$1:$1048576,$A405,CO$1))","v":""},{"$f":"IF($A405=\"N/A\",Ref!$B$36,INDEX(Ranks!$1:$1048576,$A405,CP$1))","v":""},{"$f":"IF($A405=\"N/A\",Ref!$B$36,INDEX(Ranks!$1:$1048576,$A405,CQ$1))","v":""},{"$f":"IF($A405=\"N/A\",Ref!$B$36,INDEX(Ranks!$1:$1048576,$A405,CR$1))","v":""},{"$f":"IF($A405=\"N/A\",Ref!$B$36,INDEX(Ranks!$1:$1048576,$A405,CS$1))","v":""},{"$f":"IF($A405=\"N/A\",Ref!$B$36,INDEX(Ranks!$1:$1048576,$A405,CT$1))","v":""},{"$f":"IF($A405=\"N/A\",Ref!$B$36,INDEX(Ranks!$1:$1048576,$A405,CU$1))","v":""},{"$f":"IF($A405=\"N/A\",Ref!$B$36,INDEX(Ranks!$1:$1048576,$A405,CV$1))","v":""},{"$f":"IF($A405=\"N/A\",Ref!$B$36,INDEX(Ranks!$1:$1048576,$A405,CW$1))","v":""},{"$f":"IF($A405=\"N/A\",Ref!$B$36,INDEX(Ranks!$1:$1048576,$A405,CX$1))","v":""},{"$f":"IF($A405=\"N/A\",Ref!$B$36,INDEX(Ranks!$1:$1048576,$A405,CY$1))","v":""},{"$f":"IF($A405=\"N/A\",Ref!$B$36,INDEX(Ranks!$1:$1048576,$A405,CZ$1))","v":""},{"$f":"IF($A405=\"N/A\",Ref!$B$36,INDEX(Ranks!$1:$1048576,$A405,DA$1))","v":""},{"$f":"IF($A405=\"N/A\",Ref!$B$36,INDEX(Ranks!$1:$1048576,$A405,DB$1))","v":""},{"$f":"IF($A405=\"N/A\",Ref!$B$36,INDEX(Ranks!$1:$1048576,$A405,DC$1))","v":""},{"$f":"IF($A405=\"N/A\",Ref!$B$36,INDEX(Ranks!$1:$1048576,$A405,DD$1))","v":""},{"$f":"IF($A405=\"N/A\",Ref!$B$36,INDEX(Ranks!$1:$1048576,$A405,DE$1))","v":""},{"$f":"IF($A405=\"N/A\",Ref!$B$36,INDEX(Ranks!$1:$1048576,$A405,DF$1))","v":""},{"$f":"IF($A405=\"N/A\",Ref!$B$36,INDEX(Ranks!$1:$1048576,$A405,DG$1))","v":""},{"$f":"IF($A405=\"N/A\",Ref!$B$36,INDEX(Ranks!$1:$1048576,$A405,DH$1))","v":""},{"$f":"IF($A405=\"N/A\",Ref!$B$36,INDEX(Ranks!$1:$1048576,$A405,DI$1))","v":""},{"$f":"IF($A405=\"N/A\",Ref!$B$36,INDEX(Ranks!$1:$1048576,$A405,DJ$1))","v":""},{"$f":"IF($A405=\"N/A\",Ref!$B$36,INDEX(Ranks!$1:$1048576,$A405,DK$1))","v":""},{"$f":"IF($A405=\"N/A\",Ref!$B$36,INDEX(Ranks!$1:$1048576,$A405,DL$1))","v":""},{"$f":"IF($A405=\"N/A\",Ref!$B$36,INDEX(Ranks!$1:$1048576,$A405,DM$1))","v":""},{"$f":"IF($A405=\"N/A\",Ref!$B$36,INDEX(Ranks!$1:$1048576,$A405,DN$1))","v":""},{"$f":"IF($A405=\"N/A\",Ref!$B$36,INDEX(Ranks!$1:$1048576,$A405,DO$1))","v":""},{"$f":"IF($A405=\"N/A\",Ref!$B$36,INDEX(Ranks!$1:$1048576,$A405,DP$1))","v":""},{"$f":"IF($A405=\"N/A\",Ref!$B$36,INDEX(Ranks!$1:$1048576,$A405,DQ$1))","v":""},{"$f":"IF($A405=\"N/A\",Ref!$B$36,INDEX(Ranks!$1:$1048576,$A405,DR$1))","v":""},{"$f":"IF($A405=\"N/A\",Ref!$B$36,INDEX(Ranks!$1:$1048576,$A405,DS$1))","v":""},{"$f":"IF($A405=\"N/A\",Ref!$B$36,INDEX(Ranks!$1:$1048576,$A405,DT$1))","v":""},{"$f":"IF($A405=\"N/A\",Ref!$B$36,INDEX(Ranks!$1:$1048576,$A405,DU$1))","v":""},{"$f":"IF($A405=\"N/A\",Ref!$B$36,INDEX(Ranks!$1:$1048576,$A405,DV$1))","v":""},{"$f":"IF($A405=\"N/A\",Ref!$B$36,INDEX(Ranks!$1:$1048576,$A405,DW$1))","v":""},{"$f":"IF($A405=\"N/A\",Ref!$B$36,INDEX(Ranks!$1:$1048576,$A405,DX$1))","v":""},{"$f":"IF($A405=\"N/A\",Ref!$B$36,INDEX(Ranks!$1:$1048576,$A405,DY$1))","v":""},{"$f":"IF($A405=\"N/A\",Ref!$B$36,INDEX(Ranks!$1:$1048576,$A405,DZ$1))","v":""},{"$f":"IF($A405=\"N/A\",Ref!$B$36,INDEX(Ranks!$1:$1048576,$A405,EA$1))","v":""},{"$f":"IF($A405=\"N/A\",Ref!$B$36,INDEX(Ranks!$1:$1048576,$A405,EB$1))","v":""}]
[{"$f":"IFERROR(MATCH('Portfolio Page'!L406,Ranks!L:L,0),\"N/A\")","v":"N/A"},null,{"$f":"IF($A406=\"N/A\",\"\",INDEX(Ranks!$1:$1048576,$A406,C$1))","v":""},{"$f":"IF($A406=\"N/A\",Ref!$B$36,INDEX(Ranks!$1:$1048576,$A406,D$1))","v":""},{"$f":"IF($A406=\"N/A\",Ref!$B$36,INDEX(Ranks!$1:$1048576,$A406,E$1))","v":""},{"$f":"IF($A406=\"N/A\",\"\",INDEX(Ranks!$1:$1048576,$A406,F$1))","v":""},{"$f":"IF($A406=\"N/A\",\"\",INDEX(Ranks!$1:$1048576,$A406,G$1))","v":""},{"$f":"IF($A406=\"N/A\",\"\",INDEX(Ranks!$1:$1048576,$A406,H$1))","v":""},{"$f":"IF($A406=\"N/A\",\"\",INDEX(Ranks!$1:$1048576,$A406,I$1))","v":""},{"$f":"IF($A406=\"N/A\",\"\",INDEX(Ranks!$1:$1048576,$A406,J$1))","v":""},{"$f":"IF($A406=\"N/A\",\"\",INDEX(Ranks!$1:$1048576,$A406,K$1))","v":""},null,{"$f":"IF($A406=\"N/A\",Ref!$B$36,INDEX(Ranks!$1:$1048576,$A406,M$1))","v":""},{"$f":"IF($A406=\"N/A\",Ref!$B$36,INDEX(Ranks!$1:$1048576,$A406,N$1))","v":""},{"$f":"IF($A406=\"N/A\",Ref!$B$36,INDEX(Ranks!$1:$1048576,$A406,O$1))","v":""},{"$f":"IF($A406=\"N/A\",Ref!$B$36,INDEX(Ranks!$1:$1048576,$A406,P$1))","v":""},{"$f":"IF($A406=\"N/A\",Ref!$B$36,INDEX(Ranks!$1:$1048576,$A406,Q$1))","v":""},{"$f":"IF($A406=\"N/A\",Ref!$B$36,INDEX(Ranks!$1:$1048576,$A406,R$1))","v":""},{"$f":"IF($A406=\"N/A\",Ref!$B$36,INDEX(Ranks!$1:$1048576,$A406,S$1))","v":""},{"$f":"IF($A406=\"N/A\",Ref!$B$36,INDEX(Ranks!$1:$1048576,$A406,T$1))","v":""},{"$f":"IF($A406=\"N/A\",Ref!$B$36,INDEX(Ranks!$1:$1048576,$A406,U$1))","v":""},{"$f":"IF($A406=\"N/A\",Ref!$B$36,INDEX(Ranks!$1:$1048576,$A406,V$1))","v":""},{"$f":"IF($A406=\"N/A\",Ref!$B$36,INDEX(Ranks!$1:$1048576,$A406,W$1))","v":""},{"$f":"IF($A406=\"N/A\",Ref!$B$36,INDEX(Ranks!$1:$1048576,$A406,X$1))","v":""},{"$f":"IF($A406=\"N/A\",Ref!$B$36,INDEX(Ranks!$1:$1048576,$A406,Y$1))","v":""},{"$f":"IF($A406=\"N/A\",Ref!$B$36,INDEX(Ranks!$1:$1048576,$A406,Z$1))","v":""},{"$f":"IF($A406=\"N/A\",Ref!$B$36,INDEX(Ranks!$1:$1048576,$A406,AA$1))","v":""},{"$f":"IF($A406=\"N/A\",Ref!$B$36,INDEX(Ranks!$1:$1048576,$A406,AB$1))","v":""},{"$f":"IF($A406=\"N/A\",Ref!$B$36,INDEX(Ranks!$1:$1048576,$A406,AC$1))","v":""},{"$f":"IF($A406=\"N/A\",Ref!$B$36,INDEX(Ranks!$1:$1048576,$A406,AD$1))","v":""},{"$f":"IF($A406=\"N/A\",Ref!$B$36,INDEX(Ranks!$1:$1048576,$A406,AE$1))","v":""},{"$f":"IF($A406=\"N/A\",Ref!$B$36,INDEX(Ranks!$1:$1048576,$A406,AF$1))","v":""},{"$f":"IF($A406=\"N/A\",Ref!$B$36,INDEX(Ranks!$1:$1048576,$A406,AG$1))","v":""},{"$f":"IF($A406=\"N/A\",Ref!$B$36,INDEX(Ranks!$1:$1048576,$A406,AH$1))","v":""},{"$f":"IF($A406=\"N/A\",Ref!$B$36,INDEX(Ranks!$1:$1048576,$A406,AI$1))","v":""},{"$f":"IF($A406=\"N/A\",Ref!$B$36,INDEX(Ranks!$1:$1048576,$A406,AJ$1))","v":""},{"$f":"IF($A406=\"N/A\",Ref!$B$36,INDEX(Ranks!$1:$1048576,$A406,AK$1))","v":""},{"$f":"IF($A406=\"N/A\",Ref!$B$36,INDEX(Ranks!$1:$1048576,$A406,AL$1))","v":""},{"$f":"IF($A406=\"N/A\",Ref!$B$36,INDEX(Ranks!$1:$1048576,$A406,AM$1))","v":""},{"$f":"IF($A406=\"N/A\",Ref!$B$36,INDEX(Ranks!$1:$1048576,$A406,AN$1))","v":""},{"$f":"IF($A406=\"N/A\",Ref!$B$36,INDEX(Ranks!$1:$1048576,$A406,AO$1))","v":""},{"$f":"IF($A406=\"N/A\",Ref!$B$36,INDEX(Ranks!$1:$1048576,$A406,AP$1))","v":""},{"$f":"IF($A406=\"N/A\",Ref!$B$36,INDEX(Ranks!$1:$1048576,$A406,AQ$1))","v":""},{"$f":"IF($A406=\"N/A\",Ref!$B$36,INDEX(Ranks!$1:$1048576,$A406,AR$1))","v":""},{"$f":"IF($A406=\"N/A\",Ref!$B$36,INDEX(Ranks!$1:$1048576,$A406,AS$1))","v":""},{"$f":"IF($A406=\"N/A\",Ref!$B$36,INDEX(Ranks!$1:$1048576,$A406,AT$1))","v":""},{"$f":"IF($A406=\"N/A\",Ref!$B$36,INDEX(Ranks!$1:$1048576,$A406,AU$1))","v":""},{"$f":"IF($A406=\"N/A\",Ref!$B$36,INDEX(Ranks!$1:$1048576,$A406,AV$1))","v":""},{"$f":"IF($A406=\"N/A\",Ref!$B$36,INDEX(Ranks!$1:$1048576,$A406,AW$1))","v":""},{"$f":"IF($A406=\"N/A\",Ref!$B$36,INDEX(Ranks!$1:$1048576,$A406,AX$1))","v":""},{"$f":"IF($A406=\"N/A\",Ref!$B$36,INDEX(Ranks!$1:$1048576,$A406,AY$1))","v":""},{"$f":"IF($A406=\"N/A\",Ref!$B$36,INDEX(Ranks!$1:$1048576,$A406,AZ$1))","v":""},{"$f":"IF($A406=\"N/A\",Ref!$B$36,INDEX(Ranks!$1:$1048576,$A406,BA$1))","v":""},{"$f":"IF($A406=\"N/A\",Ref!$B$36,INDEX(Ranks!$1:$1048576,$A406,BB$1))","v":""},{"$f":"IF($A406=\"N/A\",Ref!$B$36,INDEX(Ranks!$1:$1048576,$A406,BC$1))","v":""},{"$f":"IF($A406=\"N/A\",Ref!$B$36,INDEX(Ranks!$1:$1048576,$A406,BD$1))","v":""},{"$f":"IF($A406=\"N/A\",Ref!$B$36,INDEX(Ranks!$1:$1048576,$A406,BE$1))","v":""},{"$f":"IF($A406=\"N/A\",Ref!$B$36,INDEX(Ranks!$1:$1048576,$A406,BF$1))","v":""},{"$f":"IF($A406=\"N/A\",Ref!$B$36,INDEX(Ranks!$1:$1048576,$A406,BG$1))","v":""},{"$f":"IF($A406=\"N/A\",Ref!$B$36,INDEX(Ranks!$1:$1048576,$A406,BH$1))","v":""},{"$f":"IF($A406=\"N/A\",Ref!$B$36,INDEX(Ranks!$1:$1048576,$A406,BI$1))","v":""},{"$f":"IF($A406=\"N/A\",Ref!$B$36,INDEX(Ranks!$1:$1048576,$A406,BJ$1))","v":""},{"$f":"IF($A406=\"N/A\",Ref!$B$36,INDEX(Ranks!$1:$1048576,$A406,BK$1))","v":""},{"$f":"IF($A406=\"N/A\",Ref!$B$36,INDEX(Ranks!$1:$1048576,$A406,BL$1))","v":""},{"$f":"IF($A406=\"N/A\",Ref!$B$36,INDEX(Ranks!$1:$1048576,$A406,BM$1))","v":""},{"$f":"IF($A406=\"N/A\",Ref!$B$36,INDEX(Ranks!$1:$1048576,$A406,BN$1))","v":""},{"$f":"IF($A406=\"N/A\",Ref!$B$36,INDEX(Ranks!$1:$1048576,$A406,BO$1))","v":""},{"$f":"IF($A406=\"N/A\",Ref!$B$36,INDEX(Ranks!$1:$1048576,$A406,BP$1))","v":""},{"$f":"IF($A406=\"N/A\",Ref!$B$36,INDEX(Ranks!$1:$1048576,$A406,BQ$1))","v":""},{"$f":"IF($A406=\"N/A\",Ref!$B$36,INDEX(Ranks!$1:$1048576,$A406,BR$1))","v":""},{"$f":"IF($A406=\"N/A\",Ref!$B$36,INDEX(Ranks!$1:$1048576,$A406,BS$1))","v":""},{"$f":"IF($A406=\"N/A\",Ref!$B$36,INDEX(Ranks!$1:$1048576,$A406,BT$1))","v":""},{"$f":"IF($A406=\"N/A\",Ref!$B$36,INDEX(Ranks!$1:$1048576,$A406,BU$1))","v":""},{"$f":"IF($A406=\"N/A\",Ref!$B$36,INDEX(Ranks!$1:$1048576,$A406,BV$1))","v":""},{"$f":"IF($A406=\"N/A\",Ref!$B$36,INDEX(Ranks!$1:$1048576,$A406,BW$1))","v":""},{"$f":"IF($A406=\"N/A\",Ref!$B$36,INDEX(Ranks!$1:$1048576,$A406,BX$1))","v":""},{"$f":"IF($A406=\"N/A\",Ref!$B$36,INDEX(Ranks!$1:$1048576,$A406,BY$1))","v":""},{"$f":"IF($A406=\"N/A\",Ref!$B$36,INDEX(Ranks!$1:$1048576,$A406,BZ$1))","v":""},{"$f":"IF($A406=\"N/A\",Ref!$B$36,INDEX(Ranks!$1:$1048576,$A406,CA$1))","v":""},{"$f":"IF($A406=\"N/A\",Ref!$B$36,INDEX(Ranks!$1:$1048576,$A406,CB$1))","v":""},{"$f":"IF($A406=\"N/A\",Ref!$B$36,INDEX(Ranks!$1:$1048576,$A406,CC$1))","v":""},{"$f":"IF($A406=\"N/A\",Ref!$B$36,INDEX(Ranks!$1:$1048576,$A406,CD$1))","v":""},{"$f":"IF($A406=\"N/A\",Ref!$B$36,INDEX(Ranks!$1:$1048576,$A406,CE$1))","v":""},{"$f":"IF($A406=\"N/A\",Ref!$B$36,INDEX(Ranks!$1:$1048576,$A406,CF$1))","v":""},{"$f":"IF($A406=\"N/A\",Ref!$B$36,INDEX(Ranks!$1:$1048576,$A406,CG$1))","v":""},{"$f":"IF($A406=\"N/A\",Ref!$B$36,INDEX(Ranks!$1:$1048576,$A406,CH$1))","v":""},{"$f":"IF($A406=\"N/A\",Ref!$B$36,INDEX(Ranks!$1:$1048576,$A406,CI$1))","v":""},{"$f":"IF($A406=\"N/A\",Ref!$B$36,INDEX(Ranks!$1:$1048576,$A406,CJ$1))","v":""},{"$f":"IF($A406=\"N/A\",Ref!$B$36,INDEX(Ranks!$1:$1048576,$A406,CK$1))","v":""},{"$f":"IF($A406=\"N/A\",Ref!$B$36,INDEX(Ranks!$1:$1048576,$A406,CL$1))","v":""},{"$f":"IF($A406=\"N/A\",Ref!$B$36,INDEX(Ranks!$1:$1048576,$A406,CM$1))","v":""},{"$f":"IF($A406=\"N/A\",Ref!$B$36,INDEX(Ranks!$1:$1048576,$A406,CN$1))","v":""},{"$f":"IF($A406=\"N/A\",Ref!$B$36,INDEX(Ranks!$1:$1048576,$A406,CO$1))","v":""},{"$f":"IF($A406=\"N/A\",Ref!$B$36,INDEX(Ranks!$1:$1048576,$A406,CP$1))","v":""},{"$f":"IF($A406=\"N/A\",Ref!$B$36,INDEX(Ranks!$1:$1048576,$A406,CQ$1))","v":""},{"$f":"IF($A406=\"N/A\",Ref!$B$36,INDEX(Ranks!$1:$1048576,$A406,CR$1))","v":""},{"$f":"IF($A406=\"N/A\",Ref!$B$36,INDEX(Ranks!$1:$1048576,$A406,CS$1))","v":""},{"$f":"IF($A406=\"N/A\",Ref!$B$36,INDEX(Ranks!$1:$1048576,$A406,CT$1))","v":""},{"$f":"IF($A406=\"N/A\",Ref!$B$36,INDEX(Ranks!$1:$1048576,$A406,CU$1))","v":""},{"$f":"IF($A406=\"N/A\",Ref!$B$36,INDEX(Ranks!$1:$1048576,$A406,CV$1))","v":""},{"$f":"IF($A406=\"N/A\",Ref!$B$36,INDEX(Ranks!$1:$1048576,$A406,CW$1))","v":""},{"$f":"IF($A406=\"N/A\",Ref!$B$36,INDEX(Ranks!$1:$1048576,$A406,CX$1))","v":""},{"$f":"IF($A406=\"N/A\",Ref!$B$36,INDEX(Ranks!$1:$1048576,$A406,CY$1))","v":""},{"$f":"IF($A406=\"N/A\",Ref!$B$36,INDEX(Ranks!$1:$1048576,$A406,CZ$1))","v":""},{"$f":"IF($A406=\"N/A\",Ref!$B$36,INDEX(Ranks!$1:$1048576,$A406,DA$1))","v":""},{"$f":"IF($A406=\"N/A\",Ref!$B$36,INDEX(Ranks!$1:$1048576,$A406,DB$1))","v":""},{"$f":"IF($A406=\"N/A\",Ref!$B$36,INDEX(Ranks!$1:$1048576,$A406,DC$1))","v":""},{"$f":"IF($A406=\"N/A\",Ref!$B$36,INDEX(Ranks!$1:$1048576,$A406,DD$1))","v":""},{"$f":"IF($A406=\"N/A\",Ref!$B$36,INDEX(Ranks!$1:$1048576,$A406,DE$1))","v":""},{"$f":"IF($A406=\"N/A\",Ref!$B$36,INDEX(Ranks!$1:$1048576,$A406,DF$1))","v":""},{"$f":"IF($A406=\"N/A\",Ref!$B$36,INDEX(Ranks!$1:$1048576,$A406,DG$1))","v":""},{"$f":"IF($A406=\"N/A\",Ref!$B$36,INDEX(Ranks!$1:$1048576,$A406,DH$1))","v":""},{"$f":"IF($A406=\"N/A\",Ref!$B$36,INDEX(Ranks!$1:$1048576,$A406,DI$1))","v":""},{"$f":"IF($A406=\"N/A\",Ref!$B$36,INDEX(Ranks!$1:$1048576,$A406,DJ$1))","v":""},{"$f":"IF($A406=\"N/A\",Ref!$B$36,INDEX(Ranks!$1:$1048576,$A406,DK$1))","v":""},{"$f":"IF($A406=\"N/A\",Ref!$B$36,INDEX(Ranks!$1:$1048576,$A406,DL$1))","v":""},{"$f":"IF($A406=\"N/A\",Ref!$B$36,INDEX(Ranks!$1:$1048576,$A406,DM$1))","v":""},{"$f":"IF($A406=\"N/A\",Ref!$B$36,INDEX(Ranks!$1:$1048576,$A406,DN$1))","v":""},{"$f":"IF($A406=\"N/A\",Ref!$B$36,INDEX(Ranks!$1:$1048576,$A406,DO$1))","v":""},{"$f":"IF($A406=\"N/A\",Ref!$B$36,INDEX(Ranks!$1:$1048576,$A406,DP$1))","v":""},{"$f":"IF($A406=\"N/A\",Ref!$B$36,INDEX(Ranks!$1:$1048576,$A406,DQ$1))","v":""},{"$f":"IF($A406=\"N/A\",Ref!$B$36,INDEX(Ranks!$1:$1048576,$A406,DR$1))","v":""},{"$f":"IF($A406=\"N/A\",Ref!$B$36,INDEX(Ranks!$1:$1048576,$A406,DS$1))","v":""},{"$f":"IF($A406=\"N/A\",Ref!$B$36,INDEX(Ranks!$1:$1048576,$A406,DT$1))","v":""},{"$f":"IF($A406=\"N/A\",Ref!$B$36,INDEX(Ranks!$1:$1048576,$A406,DU$1))","v":""},{"$f":"IF($A406=\"N/A\",Ref!$B$36,INDEX(Ranks!$1:$1048576,$A406,DV$1))","v":""},{"$f":"IF($A406=\"N/A\",Ref!$B$36,INDEX(Ranks!$1:$1048576,$A406,DW$1))","v":""},{"$f":"IF($A406=\"N/A\",Ref!$B$36,INDEX(Ranks!$1:$1048576,$A406,DX$1))","v":""},{"$f":"IF($A406=\"N/A\",Ref!$B$36,INDEX(Ranks!$1:$1048576,$A406,DY$1))","v":""},{"$f":"IF($A406=\"N/A\",Ref!$B$36,INDEX(Ranks!$1:$1048576,$A406,DZ$1))","v":""},{"$f":"IF($A406=\"N/A\",Ref!$B$36,INDEX(Ranks!$1:$1048576,$A406,EA$1))","v":""},{"$f":"IF($A406=\"N/A\",Ref!$B$36,INDEX(Ranks!$1:$1048576,$A406,EB$1))","v":""}]
[{"$f":"IFERROR(MATCH('Portfolio Page'!L407,Ranks!L:L,0),\"N/A\")","v":"N/A"},null,{"$f":"IF($A407=\"N/A\",\"\",INDEX(Ranks!$1:$1048576,$A407,C$1))","v":""},{"$f":"IF($A407=\"N/A\",Ref!$B$36,INDEX(Ranks!$1:$1048576,$A407,D$1))","v":""},{"$f":"IF($A407=\"N/A\",Ref!$B$36,INDEX(Ranks!$1:$1048576,$A407,E$1))","v":""},{"$f":"IF($A407=\"N/A\",\"\",INDEX(Ranks!$1:$1048576,$A407,F$1))","v":""},{"$f":"IF($A407=\"N/A\",\"\",INDEX(Ranks!$1:$1048576,$A407,G$1))","v":""},{"$f":"IF($A407=\"N/A\",\"\",INDEX(Ranks!$1:$1048576,$A407,H$1))","v":""},{"$f":"IF($A407=\"N/A\",\"\",INDEX(Ranks!$1:$1048576,$A407,I$1))","v":""},{"$f":"IF($A407=\"N/A\",\"\",INDEX(Ranks!$1:$1048576,$A407,J$1))","v":""},{"$f":"IF($A407=\"N/A\",\"\",INDEX(Ranks!$1:$1048576,$A407,K$1))","v":""},null,{"$f":"IF($A407=\"N/A\",Ref!$B$36,INDEX(Ranks!$1:$1048576,$A407,M$1))","v":""},{"$f":"IF($A407=\"N/A\",Ref!$B$36,INDEX(Ranks!$1:$1048576,$A407,N$1))","v":""},{"$f":"IF($A407=\"N/A\",Ref!$B$36,INDEX(Ranks!$1:$1048576,$A407,O$1))","v":""},{"$f":"IF($A407=\"N/A\",Ref!$B$36,INDEX(Ranks!$1:$1048576,$A407,P$1))","v":""},{"$f":"IF($A407=\"N/A\",Ref!$B$36,INDEX(Ranks!$1:$1048576,$A407,Q$1))","v":""},{"$f":"IF($A407=\"N/A\",Ref!$B$36,INDEX(Ranks!$1:$1048576,$A407,R$1))","v":""},{"$f":"IF($A407=\"N/A\",Ref!$B$36,INDEX(Ranks!$1:$1048576,$A407,S$1))","v":""},{"$f":"IF($A407=\"N/A\",Ref!$B$36,INDEX(Ranks!$1:$1048576,$A407,T$1))","v":""},{"$f":"IF($A407=\"N/A\",Ref!$B$36,INDEX(Ranks!$1:$1048576,$A407,U$1))","v":""},{"$f":"IF($A407=\"N/A\",Ref!$B$36,INDEX(Ranks!$1:$1048576,$A407,V$1))","v":""},{"$f":"IF($A407=\"N/A\",Ref!$B$36,INDEX(Ranks!$1:$1048576,$A407,W$1))","v":""},{"$f":"IF($A407=\"N/A\",Ref!$B$36,INDEX(Ranks!$1:$1048576,$A407,X$1))","v":""},{"$f":"IF($A407=\"N/A\",Ref!$B$36,INDEX(Ranks!$1:$1048576,$A407,Y$1))","v":""},{"$f":"IF($A407=\"N/A\",Ref!$B$36,INDEX(Ranks!$1:$1048576,$A407,Z$1))","v":""},{"$f":"IF($A407=\"N/A\",Ref!$B$36,INDEX(Ranks!$1:$1048576,$A407,AA$1))","v":""},{"$f":"IF($A407=\"N/A\",Ref!$B$36,INDEX(Ranks!$1:$1048576,$A407,AB$1))","v":""},{"$f":"IF($A407=\"N/A\",Ref!$B$36,INDEX(Ranks!$1:$1048576,$A407,AC$1))","v":""},{"$f":"IF($A407=\"N/A\",Ref!$B$36,INDEX(Ranks!$1:$1048576,$A407,AD$1))","v":""},{"$f":"IF($A407=\"N/A\",Ref!$B$36,INDEX(Ranks!$1:$1048576,$A407,AE$1))","v":""},{"$f":"IF($A407=\"N/A\",Ref!$B$36,INDEX(Ranks!$1:$1048576,$A407,AF$1))","v":""},{"$f":"IF($A407=\"N/A\",Ref!$B$36,INDEX(Ranks!$1:$1048576,$A407,AG$1))","v":""},{"$f":"IF($A407=\"N/A\",Ref!$B$36,INDEX(Ranks!$1:$1048576,$A407,AH$1))","v":""},{"$f":"IF($A407=\"N/A\",Ref!$B$36,INDEX(Ranks!$1:$1048576,$A407,AI$1))","v":""},{"$f":"IF($A407=\"N/A\",Ref!$B$36,INDEX(Ranks!$1:$1048576,$A407,AJ$1))","v":""},{"$f":"IF($A407=\"N/A\",Ref!$B$36,INDEX(Ranks!$1:$1048576,$A407,AK$1))","v":""},{"$f":"IF($A407=\"N/A\",Ref!$B$36,INDEX(Ranks!$1:$1048576,$A407,AL$1))","v":""},{"$f":"IF($A407=\"N/A\",Ref!$B$36,INDEX(Ranks!$1:$1048576,$A407,AM$1))","v":""},{"$f":"IF($A407=\"N/A\",Ref!$B$36,INDEX(Ranks!$1:$1048576,$A407,AN$1))","v":""},{"$f":"IF($A407=\"N/A\",Ref!$B$36,INDEX(Ranks!$1:$1048576,$A407,AO$1))","v":""},{"$f":"IF($A407=\"N/A\",Ref!$B$36,INDEX(Ranks!$1:$1048576,$A407,AP$1))","v":""},{"$f":"IF($A407=\"N/A\",Ref!$B$36,INDEX(Ranks!$1:$1048576,$A407,AQ$1))","v":""},{"$f":"IF($A407=\"N/A\",Ref!$B$36,INDEX(Ranks!$1:$1048576,$A407,AR$1))","v":""},{"$f":"IF($A407=\"N/A\",Ref!$B$36,INDEX(Ranks!$1:$1048576,$A407,AS$1))","v":""},{"$f":"IF($A407=\"N/A\",Ref!$B$36,INDEX(Ranks!$1:$1048576,$A407,AT$1))","v":""},{"$f":"IF($A407=\"N/A\",Ref!$B$36,INDEX(Ranks!$1:$1048576,$A407,AU$1))","v":""},{"$f":"IF($A407=\"N/A\",Ref!$B$36,INDEX(Ranks!$1:$1048576,$A407,AV$1))","v":""},{"$f":"IF($A407=\"N/A\",Ref!$B$36,INDEX(Ranks!$1:$1048576,$A407,AW$1))","v":""},{"$f":"IF($A407=\"N/A\",Ref!$B$36,INDEX(Ranks!$1:$1048576,$A407,AX$1))","v":""},{"$f":"IF($A407=\"N/A\",Ref!$B$36,INDEX(Ranks!$1:$1048576,$A407,AY$1))","v":""},{"$f":"IF($A407=\"N/A\",Ref!$B$36,INDEX(Ranks!$1:$1048576,$A407,AZ$1))","v":""},{"$f":"IF($A407=\"N/A\",Ref!$B$36,INDEX(Ranks!$1:$1048576,$A407,BA$1))","v":""},{"$f":"IF($A407=\"N/A\",Ref!$B$36,INDEX(Ranks!$1:$1048576,$A407,BB$1))","v":""},{"$f":"IF($A407=\"N/A\",Ref!$B$36,INDEX(Ranks!$1:$1048576,$A407,BC$1))","v":""},{"$f":"IF($A407=\"N/A\",Ref!$B$36,INDEX(Ranks!$1:$1048576,$A407,BD$1))","v":""},{"$f":"IF($A407=\"N/A\",Ref!$B$36,INDEX(Ranks!$1:$1048576,$A407,BE$1))","v":""},{"$f":"IF($A407=\"N/A\",Ref!$B$36,INDEX(Ranks!$1:$1048576,$A407,BF$1))","v":""},{"$f":"IF($A407=\"N/A\",Ref!$B$36,INDEX(Ranks!$1:$1048576,$A407,BG$1))","v":""},{"$f":"IF($A407=\"N/A\",Ref!$B$36,INDEX(Ranks!$1:$1048576,$A407,BH$1))","v":""},{"$f":"IF($A407=\"N/A\",Ref!$B$36,INDEX(Ranks!$1:$1048576,$A407,BI$1))","v":""},{"$f":"IF($A407=\"N/A\",Ref!$B$36,INDEX(Ranks!$1:$1048576,$A407,BJ$1))","v":""},{"$f":"IF($A407=\"N/A\",Ref!$B$36,INDEX(Ranks!$1:$1048576,$A407,BK$1))","v":""},{"$f":"IF($A407=\"N/A\",Ref!$B$36,INDEX(Ranks!$1:$1048576,$A407,BL$1))","v":""},{"$f":"IF($A407=\"N/A\",Ref!$B$36,INDEX(Ranks!$1:$1048576,$A407,BM$1))","v":""},{"$f":"IF($A407=\"N/A\",Ref!$B$36,INDEX(Ranks!$1:$1048576,$A407,BN$1))","v":""},{"$f":"IF($A407=\"N/A\",Ref!$B$36,INDEX(Ranks!$1:$1048576,$A407,BO$1))","v":""},{"$f":"IF($A407=\"N/A\",Ref!$B$36,INDEX(Ranks!$1:$1048576,$A407,BP$1))","v":""},{"$f":"IF($A407=\"N/A\",Ref!$B$36,INDEX(Ranks!$1:$1048576,$A407,BQ$1))","v":""},{"$f":"IF($A407=\"N/A\",Ref!$B$36,INDEX(Ranks!$1:$1048576,$A407,BR$1))","v":""},{"$f":"IF($A407=\"N/A\",Ref!$B$36,INDEX(Ranks!$1:$1048576,$A407,BS$1))","v":""},{"$f":"IF($A407=\"N/A\",Ref!$B$36,INDEX(Ranks!$1:$1048576,$A407,BT$1))","v":""},{"$f":"IF($A407=\"N/A\",Ref!$B$36,INDEX(Ranks!$1:$1048576,$A407,BU$1))","v":""},{"$f":"IF($A407=\"N/A\",Ref!$B$36,INDEX(Ranks!$1:$1048576,$A407,BV$1))","v":""},{"$f":"IF($A407=\"N/A\",Ref!$B$36,INDEX(Ranks!$1:$1048576,$A407,BW$1))","v":""},{"$f":"IF($A407=\"N/A\",Ref!$B$36,INDEX(Ranks!$1:$1048576,$A407,BX$1))","v":""},{"$f":"IF($A407=\"N/A\",Ref!$B$36,INDEX(Ranks!$1:$1048576,$A407,BY$1))","v":""},{"$f":"IF($A407=\"N/A\",Ref!$B$36,INDEX(Ranks!$1:$1048576,$A407,BZ$1))","v":""},{"$f":"IF($A407=\"N/A\",Ref!$B$36,INDEX(Ranks!$1:$1048576,$A407,CA$1))","v":""},{"$f":"IF($A407=\"N/A\",Ref!$B$36,INDEX(Ranks!$1:$1048576,$A407,CB$1))","v":""},{"$f":"IF($A407=\"N/A\",Ref!$B$36,INDEX(Ranks!$1:$1048576,$A407,CC$1))","v":""},{"$f":"IF($A407=\"N/A\",Ref!$B$36,INDEX(Ranks!$1:$1048576,$A407,CD$1))","v":""},{"$f":"IF($A407=\"N/A\",Ref!$B$36,INDEX(Ranks!$1:$1048576,$A407,CE$1))","v":""},{"$f":"IF($A407=\"N/A\",Ref!$B$36,INDEX(Ranks!$1:$1048576,$A407,CF$1))","v":""},{"$f":"IF($A407=\"N/A\",Ref!$B$36,INDEX(Ranks!$1:$1048576,$A407,CG$1))","v":""},{"$f":"IF($A407=\"N/A\",Ref!$B$36,INDEX(Ranks!$1:$1048576,$A407,CH$1))","v":""},{"$f":"IF($A407=\"N/A\",Ref!$B$36,INDEX(Ranks!$1:$1048576,$A407,CI$1))","v":""},{"$f":"IF($A407=\"N/A\",Ref!$B$36,INDEX(Ranks!$1:$1048576,$A407,CJ$1))","v":""},{"$f":"IF($A407=\"N/A\",Ref!$B$36,INDEX(Ranks!$1:$1048576,$A407,CK$1))","v":""},{"$f":"IF($A407=\"N/A\",Ref!$B$36,INDEX(Ranks!$1:$1048576,$A407,CL$1))","v":""},{"$f":"IF($A407=\"N/A\",Ref!$B$36,INDEX(Ranks!$1:$1048576,$A407,CM$1))","v":""},{"$f":"IF($A407=\"N/A\",Ref!$B$36,INDEX(Ranks!$1:$1048576,$A407,CN$1))","v":""},{"$f":"IF($A407=\"N/A\",Ref!$B$36,INDEX(Ranks!$1:$1048576,$A407,CO$1))","v":""},{"$f":"IF($A407=\"N/A\",Ref!$B$36,INDEX(Ranks!$1:$1048576,$A407,CP$1))","v":""},{"$f":"IF($A407=\"N/A\",Ref!$B$36,INDEX(Ranks!$1:$1048576,$A407,CQ$1))","v":""},{"$f":"IF($A407=\"N/A\",Ref!$B$36,INDEX(Ranks!$1:$1048576,$A407,CR$1))","v":""},{"$f":"IF($A407=\"N/A\",Ref!$B$36,INDEX(Ranks!$1:$1048576,$A407,CS$1))","v":""},{"$f":"IF($A407=\"N/A\",Ref!$B$36,INDEX(Ranks!$1:$1048576,$A407,CT$1))","v":""},{"$f":"IF($A407=\"N/A\",Ref!$B$36,INDEX(Ranks!$1:$1048576,$A407,CU$1))","v":""},{"$f":"IF($A407=\"N/A\",Ref!$B$36,INDEX(Ranks!$1:$1048576,$A407,CV$1))","v":""},{"$f":"IF($A407=\"N/A\",Ref!$B$36,INDEX(Ranks!$1:$1048576,$A407,CW$1))","v":""},{"$f":"IF($A407=\"N/A\",Ref!$B$36,INDEX(Ranks!$1:$1048576,$A407,CX$1))","v":""},{"$f":"IF($A407=\"N/A\",Ref!$B$36,INDEX(Ranks!$1:$1048576,$A407,CY$1))","v":""},{"$f":"IF($A407=\"N/A\",Ref!$B$36,INDEX(Ranks!$1:$1048576,$A407,CZ$1))","v":""},{"$f":"IF($A407=\"N/A\",Ref!$B$36,INDEX(Ranks!$1:$1048576,$A407,DA$1))","v":""},{"$f":"IF($A407=\"N/A\",Ref!$B$36,INDEX(Ranks!$1:$1048576,$A407,DB$1))","v":""},{"$f":"IF($A407=\"N/A\",Ref!$B$36,INDEX(Ranks!$1:$1048576,$A407,DC$1))","v":""},{"$f":"IF($A407=\"N/A\",Ref!$B$36,INDEX(Ranks!$1:$1048576,$A407,DD$1))","v":""},{"$f":"IF($A407=\"N/A\",Ref!$B$36,INDEX(Ranks!$1:$1048576,$A407,DE$1))","v":""},{"$f":"IF($A407=\"N/A\",Ref!$B$36,INDEX(Ranks!$1:$1048576,$A407,DF$1))","v":""},{"$f":"IF($A407=\"N/A\",Ref!$B$36,INDEX(Ranks!$1:$1048576,$A407,DG$1))","v":""},{"$f":"IF($A407=\"N/A\",Ref!$B$36,INDEX(Ranks!$1:$1048576,$A407,DH$1))","v":""},{"$f":"IF($A407=\"N/A\",Ref!$B$36,INDEX(Ranks!$1:$1048576,$A407,DI$1))","v":""},{"$f":"IF($A407=\"N/A\",Ref!$B$36,INDEX(Ranks!$1:$1048576,$A407,DJ$1))","v":""},{"$f":"IF($A407=\"N/A\",Ref!$B$36,INDEX(Ranks!$1:$1048576,$A407,DK$1))","v":""},{"$f":"IF($A407=\"N/A\",Ref!$B$36,INDEX(Ranks!$1:$1048576,$A407,DL$1))","v":""},{"$f":"IF($A407=\"N/A\",Ref!$B$36,INDEX(Ranks!$1:$1048576,$A407,DM$1))","v":""},{"$f":"IF($A407=\"N/A\",Ref!$B$36,INDEX(Ranks!$1:$1048576,$A407,DN$1))","v":""},{"$f":"IF($A407=\"N/A\",Ref!$B$36,INDEX(Ranks!$1:$1048576,$A407,DO$1))","v":""},{"$f":"IF($A407=\"N/A\",Ref!$B$36,INDEX(Ranks!$1:$1048576,$A407,DP$1))","v":""},{"$f":"IF($A407=\"N/A\",Ref!$B$36,INDEX(Ranks!$1:$1048576,$A407,DQ$1))","v":""},{"$f":"IF($A407=\"N/A\",Ref!$B$36,INDEX(Ranks!$1:$1048576,$A407,DR$1))","v":""},{"$f":"IF($A407=\"N/A\",Ref!$B$36,INDEX(Ranks!$1:$1048576,$A407,DS$1))","v":""},{"$f":"IF($A407=\"N/A\",Ref!$B$36,INDEX(Ranks!$1:$1048576,$A407,DT$1))","v":""},{"$f":"IF($A407=\"N/A\",Ref!$B$36,INDEX(Ranks!$1:$1048576,$A407,DU$1))","v":""},{"$f":"IF($A407=\"N/A\",Ref!$B$36,INDEX(Ranks!$1:$1048576,$A407,DV$1))","v":""},{"$f":"IF($A407=\"N/A\",Ref!$B$36,INDEX(Ranks!$1:$1048576,$A407,DW$1))","v":""},{"$f":"IF($A407=\"N/A\",Ref!$B$36,INDEX(Ranks!$1:$1048576,$A407,DX$1))","v":""},{"$f":"IF($A407=\"N/A\",Ref!$B$36,INDEX(Ranks!$1:$1048576,$A407,DY$1))","v":""},{"$f":"IF($A407=\"N/A\",Ref!$B$36,INDEX(Ranks!$1:$1048576,$A407,DZ$1))","v":""},{"$f":"IF($A407=\"N/A\",Ref!$B$36,INDEX(Ranks!$1:$1048576,$A407,EA$1))","v":""},{"$f":"IF($A407=\"N/A\",Ref!$B$36,INDEX(Ranks!$1:$1048576,$A407,EB$1))","v":""}]
[{"$f":"IFERROR(MATCH('Portfolio Page'!L408,Ranks!L:L,0),\"N/A\")","v":"N/A"},null,{"$f":"IF($A408=\"N/A\",\"\",INDEX(Ranks!$1:$1048576,$A408,C$1))","v":""},{"$f":"IF($A408=\"N/A\",Ref!$B$36,INDEX(Ranks!$1:$1048576,$A408,D$1))","v":""},{"$f":"IF($A408=\"N/A\",Ref!$B$36,INDEX(Ranks!$1:$1048576,$A408,E$1))","v":""},{"$f":"IF($A408=\"N/A\",\"\",INDEX(Ranks!$1:$1048576,$A408,F$1))","v":""},{"$f":"IF($A408=\"N/A\",\"\",INDEX(Ranks!$1:$1048576,$A408,G$1))","v":""},{"$f":"IF($A408=\"N/A\",\"\",INDEX(Ranks!$1:$1048576,$A408,H$1))","v":""},{"$f":"IF($A408=\"N/A\",\"\",INDEX(Ranks!$1:$1048576,$A408,I$1))","v":""},{"$f":"IF($A408=\"N/A\",\"\",INDEX(Ranks!$1:$1048576,$A408,J$1))","v":""},{"$f":"IF($A408=\"N/A\",\"\",INDEX(Ranks!$1:$1048576,$A408,K$1))","v":""},null,{"$f":"IF($A408=\"N/A\",Ref!$B$36,INDEX(Ranks!$1:$1048576,$A408,M$1))","v":""},{"$f":"IF($A408=\"N/A\",Ref!$B$36,INDEX(Ranks!$1:$1048576,$A408,N$1))","v":""},{"$f":"IF($A408=\"N/A\",Ref!$B$36,INDEX(Ranks!$1:$1048576,$A408,O$1))","v":""},{"$f":"IF($A408=\"N/A\",Ref!$B$36,INDEX(Ranks!$1:$1048576,$A408,P$1))","v":""},{"$f":"IF($A408=\"N/A\",Ref!$B$36,INDEX(Ranks!$1:$1048576,$A408,Q$1))","v":""},{"$f":"IF($A408=\"N/A\",Ref!$B$36,INDEX(Ranks!$1:$1048576,$A408,R$1))","v":""},{"$f":"IF($A408=\"N/A\",Ref!$B$36,INDEX(Ranks!$1:$1048576,$A408,S$1))","v":""},{"$f":"IF($A408=\"N/A\",Ref!$B$36,INDEX(Ranks!$1:$1048576,$A408,T$1))","v":""},{"$f":"IF($A408=\"N/A\",Ref!$B$36,INDEX(Ranks!$1:$1048576,$A408,U$1))","v":""},{"$f":"IF($A408=\"N/A\",Ref!$B$36,INDEX(Ranks!$1:$1048576,$A408,V$1))","v":""},{"$f":"IF($A408=\"N/A\",Ref!$B$36,INDEX(Ranks!$1:$1048576,$A408,W$1))","v":""},{"$f":"IF($A408=\"N/A\",Ref!$B$36,INDEX(Ranks!$1:$1048576,$A408,X$1))","v":""},{"$f":"IF($A408=\"N/A\",Ref!$B$36,INDEX(Ranks!$1:$1048576,$A408,Y$1))","v":""},{"$f":"IF($A408=\"N/A\",Ref!$B$36,INDEX(Ranks!$1:$1048576,$A408,Z$1))","v":""},{"$f":"IF($A408=\"N/A\",Ref!$B$36,INDEX(Ranks!$1:$1048576,$A408,AA$1))","v":""},{"$f":"IF($A408=\"N/A\",Ref!$B$36,INDEX(Ranks!$1:$1048576,$A408,AB$1))","v":""},{"$f":"IF($A408=\"N/A\",Ref!$B$36,INDEX(Ranks!$1:$1048576,$A408,AC$1))","v":""},{"$f":"IF($A408=\"N/A\",Ref!$B$36,INDEX(Ranks!$1:$1048576,$A408,AD$1))","v":""},{"$f":"IF($A408=\"N/A\",Ref!$B$36,INDEX(Ranks!$1:$1048576,$A408,AE$1))","v":""},{"$f":"IF($A408=\"N/A\",Ref!$B$36,INDEX(Ranks!$1:$1048576,$A408,AF$1))","v":""},{"$f":"IF($A408=\"N/A\",Ref!$B$36,INDEX(Ranks!$1:$1048576,$A408,AG$1))","v":""},{"$f":"IF($A408=\"N/A\",Ref!$B$36,INDEX(Ranks!$1:$1048576,$A408,AH$1))","v":""},{"$f":"IF($A408=\"N/A\",Ref!$B$36,INDEX(Ranks!$1:$1048576,$A408,AI$1))","v":""},{"$f":"IF($A408=\"N/A\",Ref!$B$36,INDEX(Ranks!$1:$1048576,$A408,AJ$1))","v":""},{"$f":"IF($A408=\"N/A\",Ref!$B$36,INDEX(Ranks!$1:$1048576,$A408,AK$1))","v":""},{"$f":"IF($A408=\"N/A\",Ref!$B$36,INDEX(Ranks!$1:$1048576,$A408,AL$1))","v":""},{"$f":"IF($A408=\"N/A\",Ref!$B$36,INDEX(Ranks!$1:$1048576,$A408,AM$1))","v":""},{"$f":"IF($A408=\"N/A\",Ref!$B$36,INDEX(Ranks!$1:$1048576,$A408,AN$1))","v":""},{"$f":"IF($A408=\"N/A\",Ref!$B$36,INDEX(Ranks!$1:$1048576,$A408,AO$1))","v":""},{"$f":"IF($A408=\"N/A\",Ref!$B$36,INDEX(Ranks!$1:$1048576,$A408,AP$1))","v":""},{"$f":"IF($A408=\"N/A\",Ref!$B$36,INDEX(Ranks!$1:$1048576,$A408,AQ$1))","v":""},{"$f":"IF($A408=\"N/A\",Ref!$B$36,INDEX(Ranks!$1:$1048576,$A408,AR$1))","v":""},{"$f":"IF($A408=\"N/A\",Ref!$B$36,INDEX(Ranks!$1:$1048576,$A408,AS$1))","v":""},{"$f":"IF($A408=\"N/A\",Ref!$B$36,INDEX(Ranks!$1:$1048576,$A408,AT$1))","v":""},{"$f":"IF($A408=\"N/A\",Ref!$B$36,INDEX(Ranks!$1:$1048576,$A408,AU$1))","v":""},{"$f":"IF($A408=\"N/A\",Ref!$B$36,INDEX(Ranks!$1:$1048576,$A408,AV$1))","v":""},{"$f":"IF($A408=\"N/A\",Ref!$B$36,INDEX(Ranks!$1:$1048576,$A408,AW$1))","v":""},{"$f":"IF($A408=\"N/A\",Ref!$B$36,INDEX(Ranks!$1:$1048576,$A408,AX$1))","v":""},{"$f":"IF($A408=\"N/A\",Ref!$B$36,INDEX(Ranks!$1:$1048576,$A408,AY$1))","v":""},{"$f":"IF($A408=\"N/A\",Ref!$B$36,INDEX(Ranks!$1:$1048576,$A408,AZ$1))","v":""},{"$f":"IF($A408=\"N/A\",Ref!$B$36,INDEX(Ranks!$1:$1048576,$A408,BA$1))","v":""},{"$f":"IF($A408=\"N/A\",Ref!$B$36,INDEX(Ranks!$1:$1048576,$A408,BB$1))","v":""},{"$f":"IF($A408=\"N/A\",Ref!$B$36,INDEX(Ranks!$1:$1048576,$A408,BC$1))","v":""},{"$f":"IF($A408=\"N/A\",Ref!$B$36,INDEX(Ranks!$1:$1048576,$A408,BD$1))","v":""},{"$f":"IF($A408=\"N/A\",Ref!$B$36,INDEX(Ranks!$1:$1048576,$A408,BE$1))","v":""},{"$f":"IF($A408=\"N/A\",Ref!$B$36,INDEX(Ranks!$1:$1048576,$A408,BF$1))","v":""},{"$f":"IF($A408=\"N/A\",Ref!$B$36,INDEX(Ranks!$1:$1048576,$A408,BG$1))","v":""},{"$f":"IF($A408=\"N/A\",Ref!$B$36,INDEX(Ranks!$1:$1048576,$A408,BH$1))","v":""},{"$f":"IF($A408=\"N/A\",Ref!$B$36,INDEX(Ranks!$1:$1048576,$A408,BI$1))","v":""},{"$f":"IF($A408=\"N/A\",Ref!$B$36,INDEX(Ranks!$1:$1048576,$A408,BJ$1))","v":""},{"$f":"IF($A408=\"N/A\",Ref!$B$36,INDEX(Ranks!$1:$1048576,$A408,BK$1))","v":""},{"$f":"IF($A408=\"N/A\",Ref!$B$36,INDEX(Ranks!$1:$1048576,$A408,BL$1))","v":""},{"$f":"IF($A408=\"N/A\",Ref!$B$36,INDEX(Ranks!$1:$1048576,$A408,BM$1))","v":""},{"$f":"IF($A408=\"N/A\",Ref!$B$36,INDEX(Ranks!$1:$1048576,$A408,BN$1))","v":""},{"$f":"IF($A408=\"N/A\",Ref!$B$36,INDEX(Ranks!$1:$1048576,$A408,BO$1))","v":""},{"$f":"IF($A408=\"N/A\",Ref!$B$36,INDEX(Ranks!$1:$1048576,$A408,BP$1))","v":""},{"$f":"IF($A408=\"N/A\",Ref!$B$36,INDEX(Ranks!$1:$1048576,$A408,BQ$1))","v":""},{"$f":"IF($A408=\"N/A\",Ref!$B$36,INDEX(Ranks!$1:$1048576,$A408,BR$1))","v":""},{"$f":"IF($A408=\"N/A\",Ref!$B$36,INDEX(Ranks!$1:$1048576,$A408,BS$1))","v":""},{"$f":"IF($A408=\"N/A\",Ref!$B$36,INDEX(Ranks!$1:$1048576,$A408,BT$1))","v":""},{"$f":"IF($A408=\"N/A\",Ref!$B$36,INDEX(Ranks!$1:$1048576,$A408,BU$1))","v":""},{"$f":"IF($A408=\"N/A\",Ref!$B$36,INDEX(Ranks!$1:$1048576,$A408,BV$1))","v":""},{"$f":"IF($A408=\"N/A\",Ref!$B$36,INDEX(Ranks!$1:$1048576,$A408,BW$1))","v":""},{"$f":"IF($A408=\"N/A\",Ref!$B$36,INDEX(Ranks!$1:$1048576,$A408,BX$1))","v":""},{"$f":"IF($A408=\"N/A\",Ref!$B$36,INDEX(Ranks!$1:$1048576,$A408,BY$1))","v":""},{"$f":"IF($A408=\"N/A\",Ref!$B$36,INDEX(Ranks!$1:$1048576,$A408,BZ$1))","v":""},{"$f":"IF($A408=\"N/A\",Ref!$B$36,INDEX(Ranks!$1:$1048576,$A408,CA$1))","v":""},{"$f":"IF($A408=\"N/A\",Ref!$B$36,INDEX(Ranks!$1:$1048576,$A408,CB$1))","v":""},{"$f":"IF($A408=\"N/A\",Ref!$B$36,INDEX(Ranks!$1:$1048576,$A408,CC$1))","v":""},{"$f":"IF($A408=\"N/A\",Ref!$B$36,INDEX(Ranks!$1:$1048576,$A408,CD$1))","v":""},{"$f":"IF($A408=\"N/A\",Ref!$B$36,INDEX(Ranks!$1:$1048576,$A408,CE$1))","v":""},{"$f":"IF($A408=\"N/A\",Ref!$B$36,INDEX(Ranks!$1:$1048576,$A408,CF$1))","v":""},{"$f":"IF($A408=\"N/A\",Ref!$B$36,INDEX(Ranks!$1:$1048576,$A408,CG$1))","v":""},{"$f":"IF($A408=\"N/A\",Ref!$B$36,INDEX(Ranks!$1:$1048576,$A408,CH$1))","v":""},{"$f":"IF($A408=\"N/A\",Ref!$B$36,INDEX(Ranks!$1:$1048576,$A408,CI$1))","v":""},{"$f":"IF($A408=\"N/A\",Ref!$B$36,INDEX(Ranks!$1:$1048576,$A408,CJ$1))","v":""},{"$f":"IF($A408=\"N/A\",Ref!$B$36,INDEX(Ranks!$1:$1048576,$A408,CK$1))","v":""},{"$f":"IF($A408=\"N/A\",Ref!$B$36,INDEX(Ranks!$1:$1048576,$A408,CL$1))","v":""},{"$f":"IF($A408=\"N/A\",Ref!$B$36,INDEX(Ranks!$1:$1048576,$A408,CM$1))","v":""},{"$f":"IF($A408=\"N/A\",Ref!$B$36,INDEX(Ranks!$1:$1048576,$A408,CN$1))","v":""},{"$f":"IF($A408=\"N/A\",Ref!$B$36,INDEX(Ranks!$1:$1048576,$A408,CO$1))","v":""},{"$f":"IF($A408=\"N/A\",Ref!$B$36,INDEX(Ranks!$1:$1048576,$A408,CP$1))","v":""},{"$f":"IF($A408=\"N/A\",Ref!$B$36,INDEX(Ranks!$1:$1048576,$A408,CQ$1))","v":""},{"$f":"IF($A408=\"N/A\",Ref!$B$36,INDEX(Ranks!$1:$1048576,$A408,CR$1))","v":""},{"$f":"IF($A408=\"N/A\",Ref!$B$36,INDEX(Ranks!$1:$1048576,$A408,CS$1))","v":""},{"$f":"IF($A408=\"N/A\",Ref!$B$36,INDEX(Ranks!$1:$1048576,$A408,CT$1))","v":""},{"$f":"IF($A408=\"N/A\",Ref!$B$36,INDEX(Ranks!$1:$1048576,$A408,CU$1))","v":""},{"$f":"IF($A408=\"N/A\",Ref!$B$36,INDEX(Ranks!$1:$1048576,$A408,CV$1))","v":""},{"$f":"IF($A408=\"N/A\",Ref!$B$36,INDEX(Ranks!$1:$1048576,$A408,CW$1))","v":""},{"$f":"IF($A408=\"N/A\",Ref!$B$36,INDEX(Ranks!$1:$1048576,$A408,CX$1))","v":""},{"$f":"IF($A408=\"N/A\",Ref!$B$36,INDEX(Ranks!$1:$1048576,$A408,CY$1))","v":""},{"$f":"IF($A408=\"N/A\",Ref!$B$36,INDEX(Ranks!$1:$1048576,$A408,CZ$1))","v":""},{"$f":"IF($A408=\"N/A\",Ref!$B$36,INDEX(Ranks!$1:$1048576,$A408,DA$1))","v":""},{"$f":"IF($A408=\"N/A\",Ref!$B$36,INDEX(Ranks!$1:$1048576,$A408,DB$1))","v":""},{"$f":"IF($A408=\"N/A\",Ref!$B$36,INDEX(Ranks!$1:$1048576,$A408,DC$1))","v":""},{"$f":"IF($A408=\"N/A\",Ref!$B$36,INDEX(Ranks!$1:$1048576,$A408,DD$1))","v":""},{"$f":"IF($A408=\"N/A\",Ref!$B$36,INDEX(Ranks!$1:$1048576,$A408,DE$1))","v":""},{"$f":"IF($A408=\"N/A\",Ref!$B$36,INDEX(Ranks!$1:$1048576,$A408,DF$1))","v":""},{"$f":"IF($A408=\"N/A\",Ref!$B$36,INDEX(Ranks!$1:$1048576,$A408,DG$1))","v":""},{"$f":"IF($A408=\"N/A\",Ref!$B$36,INDEX(Ranks!$1:$1048576,$A408,DH$1))","v":""},{"$f":"IF($A408=\"N/A\",Ref!$B$36,INDEX(Ranks!$1:$1048576,$A408,DI$1))","v":""},{"$f":"IF($A408=\"N/A\",Ref!$B$36,INDEX(Ranks!$1:$1048576,$A408,DJ$1))","v":""},{"$f":"IF($A408=\"N/A\",Ref!$B$36,INDEX(Ranks!$1:$1048576,$A408,DK$1))","v":""},{"$f":"IF($A408=\"N/A\",Ref!$B$36,INDEX(Ranks!$1:$1048576,$A408,DL$1))","v":""},{"$f":"IF($A408=\"N/A\",Ref!$B$36,INDEX(Ranks!$1:$1048576,$A408,DM$1))","v":""},{"$f":"IF($A408=\"N/A\",Ref!$B$36,INDEX(Ranks!$1:$1048576,$A408,DN$1))","v":""},{"$f":"IF($A408=\"N/A\",Ref!$B$36,INDEX(Ranks!$1:$1048576,$A408,DO$1))","v":""},{"$f":"IF($A408=\"N/A\",Ref!$B$36,INDEX(Ranks!$1:$1048576,$A408,DP$1))","v":""},{"$f":"IF($A408=\"N/A\",Ref!$B$36,INDEX(Ranks!$1:$1048576,$A408,DQ$1))","v":""},{"$f":"IF($A408=\"N/A\",Ref!$B$36,INDEX(Ranks!$1:$1048576,$A408,DR$1))","v":""},{"$f":"IF($A408=\"N/A\",Ref!$B$36,INDEX(Ranks!$1:$1048576,$A408,DS$1))","v":""},{"$f":"IF($A408=\"N/A\",Ref!$B$36,INDEX(Ranks!$1:$1048576,$A408,DT$1))","v":""},{"$f":"IF($A408=\"N/A\",Ref!$B$36,INDEX(Ranks!$1:$1048576,$A408,DU$1))","v":""},{"$f":"IF($A408=\"N/A\",Ref!$B$36,INDEX(Ranks!$1:$1048576,$A408,DV$1))","v":""},{"$f":"IF($A408=\"N/A\",Ref!$B$36,INDEX(Ranks!$1:$1048576,$A408,DW$1))","v":""},{"$f":"IF($A408=\"N/A\",Ref!$B$36,INDEX(Ranks!$1:$1048576,$A408,DX$1))","v":""},{"$f":"IF($A408=\"N/A\",Ref!$B$36,INDEX(Ranks!$1:$1048576,$A408,DY$1))","v":""},{"$f":"IF($A408=\"N/A\",Ref!$B$36,INDEX(Ranks!$1:$1048576,$A408,DZ$1))","v":""},{"$f":"IF($A408=\"N/A\",Ref!$B$36,INDEX(Ranks!$1:$1048576,$A408,EA$1))","v":""},{"$f":"IF($A408=\"N/A\",Ref!$B$36,INDEX(Ranks!$1:$1048576,$A408,EB$1))","v":""}]
[{"$f":"IFERROR(MATCH('Portfolio Page'!L409,Ranks!L:L,0),\"N/A\")","v":"N/A"},null,{"$f":"IF($A409=\"N/A\",\"\",INDEX(Ranks!$1:$1048576,$A409,C$1))","v":""},{"$f":"IF($A409=\"N/A\",Ref!$B$36,INDEX(Ranks!$1:$1048576,$A409,D$1))","v":""},{"$f":"IF($A409=\"N/A\",Ref!$B$36,INDEX(Ranks!$1:$1048576,$A409,E$1))","v":""},{"$f":"IF($A409=\"N/A\",\"\",INDEX(Ranks!$1:$1048576,$A409,F$1))","v":""},{"$f":"IF($A409=\"N/A\",\"\",INDEX(Ranks!$1:$1048576,$A409,G$1))","v":""},{"$f":"IF($A409=\"N/A\",\"\",INDEX(Ranks!$1:$1048576,$A409,H$1))","v":""},{"$f":"IF($A409=\"N/A\",\"\",INDEX(Ranks!$1:$1048576,$A409,I$1))","v":""},{"$f":"IF($A409=\"N/A\",\"\",INDEX(Ranks!$1:$1048576,$A409,J$1))","v":""},{"$f":"IF($A409=\"N/A\",\"\",INDEX(Ranks!$1:$1048576,$A409,K$1))","v":""},null,{"$f":"IF($A409=\"N/A\",Ref!$B$36,INDEX(Ranks!$1:$1048576,$A409,M$1))","v":""},{"$f":"IF($A409=\"N/A\",Ref!$B$36,INDEX(Ranks!$1:$1048576,$A409,N$1))","v":""},{"$f":"IF($A409=\"N/A\",Ref!$B$36,INDEX(Ranks!$1:$1048576,$A409,O$1))","v":""},{"$f":"IF($A409=\"N/A\",Ref!$B$36,INDEX(Ranks!$1:$1048576,$A409,P$1))","v":""},{"$f":"IF($A409=\"N/A\",Ref!$B$36,INDEX(Ranks!$1:$1048576,$A409,Q$1))","v":""},{"$f":"IF($A409=\"N/A\",Ref!$B$36,INDEX(Ranks!$1:$1048576,$A409,R$1))","v":""},{"$f":"IF($A409=\"N/A\",Ref!$B$36,INDEX(Ranks!$1:$1048576,$A409,S$1))","v":""},{"$f":"IF($A409=\"N/A\",Ref!$B$36,INDEX(Ranks!$1:$1048576,$A409,T$1))","v":""},{"$f":"IF($A409=\"N/A\",Ref!$B$36,INDEX(Ranks!$1:$1048576,$A409,U$1))","v":""},{"$f":"IF($A409=\"N/A\",Ref!$B$36,INDEX(Ranks!$1:$1048576,$A409,V$1))","v":""},{"$f":"IF($A409=\"N/A\",Ref!$B$36,INDEX(Ranks!$1:$1048576,$A409,W$1))","v":""},{"$f":"IF($A409=\"N/A\",Ref!$B$36,INDEX(Ranks!$1:$1048576,$A409,X$1))","v":""},{"$f":"IF($A409=\"N/A\",Ref!$B$36,INDEX(Ranks!$1:$1048576,$A409,Y$1))","v":""},{"$f":"IF($A409=\"N/A\",Ref!$B$36,INDEX(Ranks!$1:$1048576,$A409,Z$1))","v":""},{"$f":"IF($A409=\"N/A\",Ref!$B$36,INDEX(Ranks!$1:$1048576,$A409,AA$1))","v":""},{"$f":"IF($A409=\"N/A\",Ref!$B$36,INDEX(Ranks!$1:$1048576,$A409,AB$1))","v":""},{"$f":"IF($A409=\"N/A\",Ref!$B$36,INDEX(Ranks!$1:$1048576,$A409,AC$1))","v":""},{"$f":"IF($A409=\"N/A\",Ref!$B$36,INDEX(Ranks!$1:$1048576,$A409,AD$1))","v":""},{"$f":"IF($A409=\"N/A\",Ref!$B$36,INDEX(Ranks!$1:$1048576,$A409,AE$1))","v":""},{"$f":"IF($A409=\"N/A\",Ref!$B$36,INDEX(Ranks!$1:$1048576,$A409,AF$1))","v":""},{"$f":"IF($A409=\"N/A\",Ref!$B$36,INDEX(Ranks!$1:$1048576,$A409,AG$1))","v":""},{"$f":"IF($A409=\"N/A\",Ref!$B$36,INDEX(Ranks!$1:$1048576,$A409,AH$1))","v":""},{"$f":"IF($A409=\"N/A\",Ref!$B$36,INDEX(Ranks!$1:$1048576,$A409,AI$1))","v":""},{"$f":"IF($A409=\"N/A\",Ref!$B$36,INDEX(Ranks!$1:$1048576,$A409,AJ$1))","v":""},{"$f":"IF($A409=\"N/A\",Ref!$B$36,INDEX(Ranks!$1:$1048576,$A409,AK$1))","v":""},{"$f":"IF($A409=\"N/A\",Ref!$B$36,INDEX(Ranks!$1:$1048576,$A409,AL$1))","v":""},{"$f":"IF($A409=\"N/A\",Ref!$B$36,INDEX(Ranks!$1:$1048576,$A409,AM$1))","v":""},{"$f":"IF($A409=\"N/A\",Ref!$B$36,INDEX(Ranks!$1:$1048576,$A409,AN$1))","v":""},{"$f":"IF($A409=\"N/A\",Ref!$B$36,INDEX(Ranks!$1:$1048576,$A409,AO$1))","v":""},{"$f":"IF($A409=\"N/A\",Ref!$B$36,INDEX(Ranks!$1:$1048576,$A409,AP$1))","v":""},{"$f":"IF($A409=\"N/A\",Ref!$B$36,INDEX(Ranks!$1:$1048576,$A409,AQ$1))","v":""},{"$f":"IF($A409=\"N/A\",Ref!$B$36,INDEX(Ranks!$1:$1048576,$A409,AR$1))","v":""},{"$f":"IF($A409=\"N/A\",Ref!$B$36,INDEX(Ranks!$1:$1048576,$A409,AS$1))","v":""},{"$f":"IF($A409=\"N/A\",Ref!$B$36,INDEX(Ranks!$1:$1048576,$A409,AT$1))","v":""},{"$f":"IF($A409=\"N/A\",Ref!$B$36,INDEX(Ranks!$1:$1048576,$A409,AU$1))","v":""},{"$f":"IF($A409=\"N/A\",Ref!$B$36,INDEX(Ranks!$1:$1048576,$A409,AV$1))","v":""},{"$f":"IF($A409=\"N/A\",Ref!$B$36,INDEX(Ranks!$1:$1048576,$A409,AW$1))","v":""},{"$f":"IF($A409=\"N/A\",Ref!$B$36,INDEX(Ranks!$1:$1048576,$A409,AX$1))","v":""},{"$f":"IF($A409=\"N/A\",Ref!$B$36,INDEX(Ranks!$1:$1048576,$A409,AY$1))","v":""},{"$f":"IF($A409=\"N/A\",Ref!$B$36,INDEX(Ranks!$1:$1048576,$A409,AZ$1))","v":""},{"$f":"IF($A409=\"N/A\",Ref!$B$36,INDEX(Ranks!$1:$1048576,$A409,BA$1))","v":""},{"$f":"IF($A409=\"N/A\",Ref!$B$36,INDEX(Ranks!$1:$1048576,$A409,BB$1))","v":""},{"$f":"IF($A409=\"N/A\",Ref!$B$36,INDEX(Ranks!$1:$1048576,$A409,BC$1))","v":""},{"$f":"IF($A409=\"N/A\",Ref!$B$36,INDEX(Ranks!$1:$1048576,$A409,BD$1))","v":""},{"$f":"IF($A409=\"N/A\",Ref!$B$36,INDEX(Ranks!$1:$1048576,$A409,BE$1))","v":""},{"$f":"IF($A409=\"N/A\",Ref!$B$36,INDEX(Ranks!$1:$1048576,$A409,BF$1))","v":""},{"$f":"IF($A409=\"N/A\",Ref!$B$36,INDEX(Ranks!$1:$1048576,$A409,BG$1))","v":""},{"$f":"IF($A409=\"N/A\",Ref!$B$36,INDEX(Ranks!$1:$1048576,$A409,BH$1))","v":""},{"$f":"IF($A409=\"N/A\",Ref!$B$36,INDEX(Ranks!$1:$1048576,$A409,BI$1))","v":""},{"$f":"IF($A409=\"N/A\",Ref!$B$36,INDEX(Ranks!$1:$1048576,$A409,BJ$1))","v":""},{"$f":"IF($A409=\"N/A\",Ref!$B$36,INDEX(Ranks!$1:$1048576,$A409,BK$1))","v":""},{"$f":"IF($A409=\"N/A\",Ref!$B$36,INDEX(Ranks!$1:$1048576,$A409,BL$1))","v":""},{"$f":"IF($A409=\"N/A\",Ref!$B$36,INDEX(Ranks!$1:$1048576,$A409,BM$1))","v":""},{"$f":"IF($A409=\"N/A\",Ref!$B$36,INDEX(Ranks!$1:$1048576,$A409,BN$1))","v":""},{"$f":"IF($A409=\"N/A\",Ref!$B$36,INDEX(Ranks!$1:$1048576,$A409,BO$1))","v":""},{"$f":"IF($A409=\"N/A\",Ref!$B$36,INDEX(Ranks!$1:$1048576,$A409,BP$1))","v":""},{"$f":"IF($A409=\"N/A\",Ref!$B$36,INDEX(Ranks!$1:$1048576,$A409,BQ$1))","v":""},{"$f":"IF($A409=\"N/A\",Ref!$B$36,INDEX(Ranks!$1:$1048576,$A409,BR$1))","v":""},{"$f":"IF($A409=\"N/A\",Ref!$B$36,INDEX(Ranks!$1:$1048576,$A409,BS$1))","v":""},{"$f":"IF($A409=\"N/A\",Ref!$B$36,INDEX(Ranks!$1:$1048576,$A409,BT$1))","v":""},{"$f":"IF($A409=\"N/A\",Ref!$B$36,INDEX(Ranks!$1:$1048576,$A409,BU$1))","v":""},{"$f":"IF($A409=\"N/A\",Ref!$B$36,INDEX(Ranks!$1:$1048576,$A409,BV$1))","v":""},{"$f":"IF($A409=\"N/A\",Ref!$B$36,INDEX(Ranks!$1:$1048576,$A409,BW$1))","v":""},{"$f":"IF($A409=\"N/A\",Ref!$B$36,INDEX(Ranks!$1:$1048576,$A409,BX$1))","v":""},{"$f":"IF($A409=\"N/A\",Ref!$B$36,INDEX(Ranks!$1:$1048576,$A409,BY$1))","v":""},{"$f":"IF($A409=\"N/A\",Ref!$B$36,INDEX(Ranks!$1:$1048576,$A409,BZ$1))","v":""},{"$f":"IF($A409=\"N/A\",Ref!$B$36,INDEX(Ranks!$1:$1048576,$A409,CA$1))","v":""},{"$f":"IF($A409=\"N/A\",Ref!$B$36,INDEX(Ranks!$1:$1048576,$A409,CB$1))","v":""},{"$f":"IF($A409=\"N/A\",Ref!$B$36,INDEX(Ranks!$1:$1048576,$A409,CC$1))","v":""},{"$f":"IF($A409=\"N/A\",Ref!$B$36,INDEX(Ranks!$1:$1048576,$A409,CD$1))","v":""},{"$f":"IF($A409=\"N/A\",Ref!$B$36,INDEX(Ranks!$1:$1048576,$A409,CE$1))","v":""},{"$f":"IF($A409=\"N/A\",Ref!$B$36,INDEX(Ranks!$1:$1048576,$A409,CF$1))","v":""},{"$f":"IF($A409=\"N/A\",Ref!$B$36,INDEX(Ranks!$1:$1048576,$A409,CG$1))","v":""},{"$f":"IF($A409=\"N/A\",Ref!$B$36,INDEX(Ranks!$1:$1048576,$A409,CH$1))","v":""},{"$f":"IF($A409=\"N/A\",Ref!$B$36,INDEX(Ranks!$1:$1048576,$A409,CI$1))","v":""},{"$f":"IF($A409=\"N/A\",Ref!$B$36,INDEX(Ranks!$1:$1048576,$A409,CJ$1))","v":""},{"$f":"IF($A409=\"N/A\",Ref!$B$36,INDEX(Ranks!$1:$1048576,$A409,CK$1))","v":""},{"$f":"IF($A409=\"N/A\",Ref!$B$36,INDEX(Ranks!$1:$1048576,$A409,CL$1))","v":""},{"$f":"IF($A409=\"N/A\",Ref!$B$36,INDEX(Ranks!$1:$1048576,$A409,CM$1))","v":""},{"$f":"IF($A409=\"N/A\",Ref!$B$36,INDEX(Ranks!$1:$1048576,$A409,CN$1))","v":""},{"$f":"IF($A409=\"N/A\",Ref!$B$36,INDEX(Ranks!$1:$1048576,$A409,CO$1))","v":""},{"$f":"IF($A409=\"N/A\",Ref!$B$36,INDEX(Ranks!$1:$1048576,$A409,CP$1))","v":""},{"$f":"IF($A409=\"N/A\",Ref!$B$36,INDEX(Ranks!$1:$1048576,$A409,CQ$1))","v":""},{"$f":"IF($A409=\"N/A\",Ref!$B$36,INDEX(Ranks!$1:$1048576,$A409,CR$1))","v":""},{"$f":"IF($A409=\"N/A\",Ref!$B$36,INDEX(Ranks!$1:$1048576,$A409,CS$1))","v":""},{"$f":"IF($A409=\"N/A\",Ref!$B$36,INDEX(Ranks!$1:$1048576,$A409,CT$1))","v":""},{"$f":"IF($A409=\"N/A\",Ref!$B$36,INDEX(Ranks!$1:$1048576,$A409,CU$1))","v":""},{"$f":"IF($A409=\"N/A\",Ref!$B$36,INDEX(Ranks!$1:$1048576,$A409,CV$1))","v":""},{"$f":"IF($A409=\"N/A\",Ref!$B$36,INDEX(Ranks!$1:$1048576,$A409,CW$1))","v":""},{"$f":"IF($A409=\"N/A\",Ref!$B$36,INDEX(Ranks!$1:$1048576,$A409,CX$1))","v":""},{"$f":"IF($A409=\"N/A\",Ref!$B$36,INDEX(Ranks!$1:$1048576,$A409,CY$1))","v":""},{"$f":"IF($A409=\"N/A\",Ref!$B$36,INDEX(Ranks!$1:$1048576,$A409,CZ$1))","v":""},{"$f":"IF($A409=\"N/A\",Ref!$B$36,INDEX(Ranks!$1:$1048576,$A409,DA$1))","v":""},{"$f":"IF($A409=\"N/A\",Ref!$B$36,INDEX(Ranks!$1:$1048576,$A409,DB$1))","v":""},{"$f":"IF($A409=\"N/A\",Ref!$B$36,INDEX(Ranks!$1:$1048576,$A409,DC$1))","v":""},{"$f":"IF($A409=\"N/A\",Ref!$B$36,INDEX(Ranks!$1:$1048576,$A409,DD$1))","v":""},{"$f":"IF($A409=\"N/A\",Ref!$B$36,INDEX(Ranks!$1:$1048576,$A409,DE$1))","v":""},{"$f":"IF($A409=\"N/A\",Ref!$B$36,INDEX(Ranks!$1:$1048576,$A409,DF$1))","v":""},{"$f":"IF($A409=\"N/A\",Ref!$B$36,INDEX(Ranks!$1:$1048576,$A409,DG$1))","v":""},{"$f":"IF($A409=\"N/A\",Ref!$B$36,INDEX(Ranks!$1:$1048576,$A409,DH$1))","v":""},{"$f":"IF($A409=\"N/A\",Ref!$B$36,INDEX(Ranks!$1:$1048576,$A409,DI$1))","v":""},{"$f":"IF($A409=\"N/A\",Ref!$B$36,INDEX(Ranks!$1:$1048576,$A409,DJ$1))","v":""},{"$f":"IF($A409=\"N/A\",Ref!$B$36,INDEX(Ranks!$1:$1048576,$A409,DK$1))","v":""},{"$f":"IF($A409=\"N/A\",Ref!$B$36,INDEX(Ranks!$1:$1048576,$A409,DL$1))","v":""},{"$f":"IF($A409=\"N/A\",Ref!$B$36,INDEX(Ranks!$1:$1048576,$A409,DM$1))","v":""},{"$f":"IF($A409=\"N/A\",Ref!$B$36,INDEX(Ranks!$1:$1048576,$A409,DN$1))","v":""},{"$f":"IF($A409=\"N/A\",Ref!$B$36,INDEX(Ranks!$1:$1048576,$A409,DO$1))","v":""},{"$f":"IF($A409=\"N/A\",Ref!$B$36,INDEX(Ranks!$1:$1048576,$A409,DP$1))","v":""},{"$f":"IF($A409=\"N/A\",Ref!$B$36,INDEX(Ranks!$1:$1048576,$A409,DQ$1))","v":""},{"$f":"IF($A409=\"N/A\",Ref!$B$36,INDEX(Ranks!$1:$1048576,$A409,DR$1))","v":""},{"$f":"IF($A409=\"N/A\",Ref!$B$36,INDEX(Ranks!$1:$1048576,$A409,DS$1))","v":""},{"$f":"IF($A409=\"N/A\",Ref!$B$36,INDEX(Ranks!$1:$1048576,$A409,DT$1))","v":""},{"$f":"IF($A409=\"N/A\",Ref!$B$36,INDEX(Ranks!$1:$1048576,$A409,DU$1))","v":""},{"$f":"IF($A409=\"N/A\",Ref!$B$36,INDEX(Ranks!$1:$1048576,$A409,DV$1))","v":""},{"$f":"IF($A409=\"N/A\",Ref!$B$36,INDEX(Ranks!$1:$1048576,$A409,DW$1))","v":""},{"$f":"IF($A409=\"N/A\",Ref!$B$36,INDEX(Ranks!$1:$1048576,$A409,DX$1))","v":""},{"$f":"IF($A409=\"N/A\",Ref!$B$36,INDEX(Ranks!$1:$1048576,$A409,DY$1))","v":""},{"$f":"IF($A409=\"N/A\",Ref!$B$36,INDEX(Ranks!$1:$1048576,$A409,DZ$1))","v":""},{"$f":"IF($A409=\"N/A\",Ref!$B$36,INDEX(Ranks!$1:$1048576,$A409,EA$1))","v":""},{"$f":"IF($A409=\"N/A\",Ref!$B$36,INDEX(Ranks!$1:$1048576,$A409,EB$1))","v":""}]
[{"$f":"IFERROR(MATCH('Portfolio Page'!L410,Ranks!L:L,0),\"N/A\")","v":"N/A"},null,{"$f":"IF($A410=\"N/A\",\"\",INDEX(Ranks!$1:$1048576,$A410,C$1))","v":""},{"$f":"IF($A410=\"N/A\",Ref!$B$36,INDEX(Ranks!$1:$1048576,$A410,D$1))","v":""},{"$f":"IF($A410=\"N/A\",Ref!$B$36,INDEX(Ranks!$1:$1048576,$A410,E$1))","v":""},{"$f":"IF($A410=\"N/A\",\"\",INDEX(Ranks!$1:$1048576,$A410,F$1))","v":""},{"$f":"IF($A410=\"N/A\",\"\",INDEX(Ranks!$1:$1048576,$A410,G$1))","v":""},{"$f":"IF($A410=\"N/A\",\"\",INDEX(Ranks!$1:$1048576,$A410,H$1))","v":""},{"$f":"IF($A410=\"N/A\",\"\",INDEX(Ranks!$1:$1048576,$A410,I$1))","v":""},{"$f":"IF($A410=\"N/A\",\"\",INDEX(Ranks!$1:$1048576,$A410,J$1))","v":""},{"$f":"IF($A410=\"N/A\",\"\",INDEX(Ranks!$1:$1048576,$A410,K$1))","v":""},null,{"$f":"IF($A410=\"N/A\",Ref!$B$36,INDEX(Ranks!$1:$1048576,$A410,M$1))","v":""},{"$f":"IF($A410=\"N/A\",Ref!$B$36,INDEX(Ranks!$1:$1048576,$A410,N$1))","v":""},{"$f":"IF($A410=\"N/A\",Ref!$B$36,INDEX(Ranks!$1:$1048576,$A410,O$1))","v":""},{"$f":"IF($A410=\"N/A\",Ref!$B$36,INDEX(Ranks!$1:$1048576,$A410,P$1))","v":""},{"$f":"IF($A410=\"N/A\",Ref!$B$36,INDEX(Ranks!$1:$1048576,$A410,Q$1))","v":""},{"$f":"IF($A410=\"N/A\",Ref!$B$36,INDEX(Ranks!$1:$1048576,$A410,R$1))","v":""},{"$f":"IF($A410=\"N/A\",Ref!$B$36,INDEX(Ranks!$1:$1048576,$A410,S$1))","v":""},{"$f":"IF($A410=\"N/A\",Ref!$B$36,INDEX(Ranks!$1:$1048576,$A410,T$1))","v":""},{"$f":"IF($A410=\"N/A\",Ref!$B$36,INDEX(Ranks!$1:$1048576,$A410,U$1))","v":""},{"$f":"IF($A410=\"N/A\",Ref!$B$36,INDEX(Ranks!$1:$1048576,$A410,V$1))","v":""},{"$f":"IF($A410=\"N/A\",Ref!$B$36,INDEX(Ranks!$1:$1048576,$A410,W$1))","v":""},{"$f":"IF($A410=\"N/A\",Ref!$B$36,INDEX(Ranks!$1:$1048576,$A410,X$1))","v":""},{"$f":"IF($A410=\"N/A\",Ref!$B$36,INDEX(Ranks!$1:$1048576,$A410,Y$1))","v":""},{"$f":"IF($A410=\"N/A\",Ref!$B$36,INDEX(Ranks!$1:$1048576,$A410,Z$1))","v":""},{"$f":"IF($A410=\"N/A\",Ref!$B$36,INDEX(Ranks!$1:$1048576,$A410,AA$1))","v":""},{"$f":"IF($A410=\"N/A\",Ref!$B$36,INDEX(Ranks!$1:$1048576,$A410,AB$1))","v":""},{"$f":"IF($A410=\"N/A\",Ref!$B$36,INDEX(Ranks!$1:$1048576,$A410,AC$1))","v":""},{"$f":"IF($A410=\"N/A\",Ref!$B$36,INDEX(Ranks!$1:$1048576,$A410,AD$1))","v":""},{"$f":"IF($A410=\"N/A\",Ref!$B$36,INDEX(Ranks!$1:$1048576,$A410,AE$1))","v":""},{"$f":"IF($A410=\"N/A\",Ref!$B$36,INDEX(Ranks!$1:$1048576,$A410,AF$1))","v":""},{"$f":"IF($A410=\"N/A\",Ref!$B$36,INDEX(Ranks!$1:$1048576,$A410,AG$1))","v":""},{"$f":"IF($A410=\"N/A\",Ref!$B$36,INDEX(Ranks!$1:$1048576,$A410,AH$1))","v":""},{"$f":"IF($A410=\"N/A\",Ref!$B$36,INDEX(Ranks!$1:$1048576,$A410,AI$1))","v":""},{"$f":"IF($A410=\"N/A\",Ref!$B$36,INDEX(Ranks!$1:$1048576,$A410,AJ$1))","v":""},{"$f":"IF($A410=\"N/A\",Ref!$B$36,INDEX(Ranks!$1:$1048576,$A410,AK$1))","v":""},{"$f":"IF($A410=\"N/A\",Ref!$B$36,INDEX(Ranks!$1:$1048576,$A410,AL$1))","v":""},{"$f":"IF($A410=\"N/A\",Ref!$B$36,INDEX(Ranks!$1:$1048576,$A410,AM$1))","v":""},{"$f":"IF($A410=\"N/A\",Ref!$B$36,INDEX(Ranks!$1:$1048576,$A410,AN$1))","v":""},{"$f":"IF($A410=\"N/A\",Ref!$B$36,INDEX(Ranks!$1:$1048576,$A410,AO$1))","v":""},{"$f":"IF($A410=\"N/A\",Ref!$B$36,INDEX(Ranks!$1:$1048576,$A410,AP$1))","v":""},{"$f":"IF($A410=\"N/A\",Ref!$B$36,INDEX(Ranks!$1:$1048576,$A410,AQ$1))","v":""},{"$f":"IF($A410=\"N/A\",Ref!$B$36,INDEX(Ranks!$1:$1048576,$A410,AR$1))","v":""},{"$f":"IF($A410=\"N/A\",Ref!$B$36,INDEX(Ranks!$1:$1048576,$A410,AS$1))","v":""},{"$f":"IF($A410=\"N/A\",Ref!$B$36,INDEX(Ranks!$1:$1048576,$A410,AT$1))","v":""},{"$f":"IF($A410=\"N/A\",Ref!$B$36,INDEX(Ranks!$1:$1048576,$A410,AU$1))","v":""},{"$f":"IF($A410=\"N/A\",Ref!$B$36,INDEX(Ranks!$1:$1048576,$A410,AV$1))","v":""},{"$f":"IF($A410=\"N/A\",Ref!$B$36,INDEX(Ranks!$1:$1048576,$A410,AW$1))","v":""},{"$f":"IF($A410=\"N/A\",Ref!$B$36,INDEX(Ranks!$1:$1048576,$A410,AX$1))","v":""},{"$f":"IF($A410=\"N/A\",Ref!$B$36,INDEX(Ranks!$1:$1048576,$A410,AY$1))","v":""},{"$f":"IF($A410=\"N/A\",Ref!$B$36,INDEX(Ranks!$1:$1048576,$A410,AZ$1))","v":""},{"$f":"IF($A410=\"N/A\",Ref!$B$36,INDEX(Ranks!$1:$1048576,$A410,BA$1))","v":""},{"$f":"IF($A410=\"N/A\",Ref!$B$36,INDEX(Ranks!$1:$1048576,$A410,BB$1))","v":""},{"$f":"IF($A410=\"N/A\",Ref!$B$36,INDEX(Ranks!$1:$1048576,$A410,BC$1))","v":""},{"$f":"IF($A410=\"N/A\",Ref!$B$36,INDEX(Ranks!$1:$1048576,$A410,BD$1))","v":""},{"$f":"IF($A410=\"N/A\",Ref!$B$36,INDEX(Ranks!$1:$1048576,$A410,BE$1))","v":""},{"$f":"IF($A410=\"N/A\",Ref!$B$36,INDEX(Ranks!$1:$1048576,$A410,BF$1))","v":""},{"$f":"IF($A410=\"N/A\",Ref!$B$36,INDEX(Ranks!$1:$1048576,$A410,BG$1))","v":""},{"$f":"IF($A410=\"N/A\",Ref!$B$36,INDEX(Ranks!$1:$1048576,$A410,BH$1))","v":""},{"$f":"IF($A410=\"N/A\",Ref!$B$36,INDEX(Ranks!$1:$1048576,$A410,BI$1))","v":""},{"$f":"IF($A410=\"N/A\",Ref!$B$36,INDEX(Ranks!$1:$1048576,$A410,BJ$1))","v":""},{"$f":"IF($A410=\"N/A\",Ref!$B$36,INDEX(Ranks!$1:$1048576,$A410,BK$1))","v":""},{"$f":"IF($A410=\"N/A\",Ref!$B$36,INDEX(Ranks!$1:$1048576,$A410,BL$1))","v":""},{"$f":"IF($A410=\"N/A\",Ref!$B$36,INDEX(Ranks!$1:$1048576,$A410,BM$1))","v":""},{"$f":"IF($A410=\"N/A\",Ref!$B$36,INDEX(Ranks!$1:$1048576,$A410,BN$1))","v":""},{"$f":"IF($A410=\"N/A\",Ref!$B$36,INDEX(Ranks!$1:$1048576,$A410,BO$1))","v":""},{"$f":"IF($A410=\"N/A\",Ref!$B$36,INDEX(Ranks!$1:$1048576,$A410,BP$1))","v":""},{"$f":"IF($A410=\"N/A\",Ref!$B$36,INDEX(Ranks!$1:$1048576,$A410,BQ$1))","v":""},{"$f":"IF($A410=\"N/A\",Ref!$B$36,INDEX(Ranks!$1:$1048576,$A410,BR$1))","v":""},{"$f":"IF($A410=\"N/A\",Ref!$B$36,INDEX(Ranks!$1:$1048576,$A410,BS$1))","v":""},{"$f":"IF($A410=\"N/A\",Ref!$B$36,INDEX(Ranks!$1:$1048576,$A410,BT$1))","v":""},{"$f":"IF($A410=\"N/A\",Ref!$B$36,INDEX(Ranks!$1:$1048576,$A410,BU$1))","v":""},{"$f":"IF($A410=\"N/A\",Ref!$B$36,INDEX(Ranks!$1:$1048576,$A410,BV$1))","v":""},{"$f":"IF($A410=\"N/A\",Ref!$B$36,INDEX(Ranks!$1:$1048576,$A410,BW$1))","v":""},{"$f":"IF($A410=\"N/A\",Ref!$B$36,INDEX(Ranks!$1:$1048576,$A410,BX$1))","v":""},{"$f":"IF($A410=\"N/A\",Ref!$B$36,INDEX(Ranks!$1:$1048576,$A410,BY$1))","v":""},{"$f":"IF($A410=\"N/A\",Ref!$B$36,INDEX(Ranks!$1:$1048576,$A410,BZ$1))","v":""},{"$f":"IF($A410=\"N/A\",Ref!$B$36,INDEX(Ranks!$1:$1048576,$A410,CA$1))","v":""},{"$f":"IF($A410=\"N/A\",Ref!$B$36,INDEX(Ranks!$1:$1048576,$A410,CB$1))","v":""},{"$f":"IF($A410=\"N/A\",Ref!$B$36,INDEX(Ranks!$1:$1048576,$A410,CC$1))","v":""},{"$f":"IF($A410=\"N/A\",Ref!$B$36,INDEX(Ranks!$1:$1048576,$A410,CD$1))","v":""},{"$f":"IF($A410=\"N/A\",Ref!$B$36,INDEX(Ranks!$1:$1048576,$A410,CE$1))","v":""},{"$f":"IF($A410=\"N/A\",Ref!$B$36,INDEX(Ranks!$1:$1048576,$A410,CF$1))","v":""},{"$f":"IF($A410=\"N/A\",Ref!$B$36,INDEX(Ranks!$1:$1048576,$A410,CG$1))","v":""},{"$f":"IF($A410=\"N/A\",Ref!$B$36,INDEX(Ranks!$1:$1048576,$A410,CH$1))","v":""},{"$f":"IF($A410=\"N/A\",Ref!$B$36,INDEX(Ranks!$1:$1048576,$A410,CI$1))","v":""},{"$f":"IF($A410=\"N/A\",Ref!$B$36,INDEX(Ranks!$1:$1048576,$A410,CJ$1))","v":""},{"$f":"IF($A410=\"N/A\",Ref!$B$36,INDEX(Ranks!$1:$1048576,$A410,CK$1))","v":""},{"$f":"IF($A410=\"N/A\",Ref!$B$36,INDEX(Ranks!$1:$1048576,$A410,CL$1))","v":""},{"$f":"IF($A410=\"N/A\",Ref!$B$36,INDEX(Ranks!$1:$1048576,$A410,CM$1))","v":""},{"$f":"IF($A410=\"N/A\",Ref!$B$36,INDEX(Ranks!$1:$1048576,$A410,CN$1))","v":""},{"$f":"IF($A410=\"N/A\",Ref!$B$36,INDEX(Ranks!$1:$1048576,$A410,CO$1))","v":""},{"$f":"IF($A410=\"N/A\",Ref!$B$36,INDEX(Ranks!$1:$1048576,$A410,CP$1))","v":""},{"$f":"IF($A410=\"N/A\",Ref!$B$36,INDEX(Ranks!$1:$1048576,$A410,CQ$1))","v":""},{"$f":"IF($A410=\"N/A\",Ref!$B$36,INDEX(Ranks!$1:$1048576,$A410,CR$1))","v":""},{"$f":"IF($A410=\"N/A\",Ref!$B$36,INDEX(Ranks!$1:$1048576,$A410,CS$1))","v":""},{"$f":"IF($A410=\"N/A\",Ref!$B$36,INDEX(Ranks!$1:$1048576,$A410,CT$1))","v":""},{"$f":"IF($A410=\"N/A\",Ref!$B$36,INDEX(Ranks!$1:$1048576,$A410,CU$1))","v":""},{"$f":"IF($A410=\"N/A\",Ref!$B$36,INDEX(Ranks!$1:$1048576,$A410,CV$1))","v":""},{"$f":"IF($A410=\"N/A\",Ref!$B$36,INDEX(Ranks!$1:$1048576,$A410,CW$1))","v":""},{"$f":"IF($A410=\"N/A\",Ref!$B$36,INDEX(Ranks!$1:$1048576,$A410,CX$1))","v":""},{"$f":"IF($A410=\"N/A\",Ref!$B$36,INDEX(Ranks!$1:$1048576,$A410,CY$1))","v":""},{"$f":"IF($A410=\"N/A\",Ref!$B$36,INDEX(Ranks!$1:$1048576,$A410,CZ$1))","v":""},{"$f":"IF($A410=\"N/A\",Ref!$B$36,INDEX(Ranks!$1:$1048576,$A410,DA$1))","v":""},{"$f":"IF($A410=\"N/A\",Ref!$B$36,INDEX(Ranks!$1:$1048576,$A410,DB$1))","v":""},{"$f":"IF($A410=\"N/A\",Ref!$B$36,INDEX(Ranks!$1:$1048576,$A410,DC$1))","v":""},{"$f":"IF($A410=\"N/A\",Ref!$B$36,INDEX(Ranks!$1:$1048576,$A410,DD$1))","v":""},{"$f":"IF($A410=\"N/A\",Ref!$B$36,INDEX(Ranks!$1:$1048576,$A410,DE$1))","v":""},{"$f":"IF($A410=\"N/A\",Ref!$B$36,INDEX(Ranks!$1:$1048576,$A410,DF$1))","v":""},{"$f":"IF($A410=\"N/A\",Ref!$B$36,INDEX(Ranks!$1:$1048576,$A410,DG$1))","v":""},{"$f":"IF($A410=\"N/A\",Ref!$B$36,INDEX(Ranks!$1:$1048576,$A410,DH$1))","v":""},{"$f":"IF($A410=\"N/A\",Ref!$B$36,INDEX(Ranks!$1:$1048576,$A410,DI$1))","v":""},{"$f":"IF($A410=\"N/A\",Ref!$B$36,INDEX(Ranks!$1:$1048576,$A410,DJ$1))","v":""},{"$f":"IF($A410=\"N/A\",Ref!$B$36,INDEX(Ranks!$1:$1048576,$A410,DK$1))","v":""},{"$f":"IF($A410=\"N/A\",Ref!$B$36,INDEX(Ranks!$1:$1048576,$A410,DL$1))","v":""},{"$f":"IF($A410=\"N/A\",Ref!$B$36,INDEX(Ranks!$1:$1048576,$A410,DM$1))","v":""},{"$f":"IF($A410=\"N/A\",Ref!$B$36,INDEX(Ranks!$1:$1048576,$A410,DN$1))","v":""},{"$f":"IF($A410=\"N/A\",Ref!$B$36,INDEX(Ranks!$1:$1048576,$A410,DO$1))","v":""},{"$f":"IF($A410=\"N/A\",Ref!$B$36,INDEX(Ranks!$1:$1048576,$A410,DP$1))","v":""},{"$f":"IF($A410=\"N/A\",Ref!$B$36,INDEX(Ranks!$1:$1048576,$A410,DQ$1))","v":""},{"$f":"IF($A410=\"N/A\",Ref!$B$36,INDEX(Ranks!$1:$1048576,$A410,DR$1))","v":""},{"$f":"IF($A410=\"N/A\",Ref!$B$36,INDEX(Ranks!$1:$1048576,$A410,DS$1))","v":""},{"$f":"IF($A410=\"N/A\",Ref!$B$36,INDEX(Ranks!$1:$1048576,$A410,DT$1))","v":""},{"$f":"IF($A410=\"N/A\",Ref!$B$36,INDEX(Ranks!$1:$1048576,$A410,DU$1))","v":""},{"$f":"IF($A410=\"N/A\",Ref!$B$36,INDEX(Ranks!$1:$1048576,$A410,DV$1))","v":""},{"$f":"IF($A410=\"N/A\",Ref!$B$36,INDEX(Ranks!$1:$1048576,$A410,DW$1))","v":""},{"$f":"IF($A410=\"N/A\",Ref!$B$36,INDEX(Ranks!$1:$1048576,$A410,DX$1))","v":""},{"$f":"IF($A410=\"N/A\",Ref!$B$36,INDEX(Ranks!$1:$1048576,$A410,DY$1))","v":""},{"$f":"IF($A410=\"N/A\",Ref!$B$36,INDEX(Ranks!$1:$1048576,$A410,DZ$1))","v":""},{"$f":"IF($A410=\"N/A\",Ref!$B$36,INDEX(Ranks!$1:$1048576,$A410,EA$1))","v":""},{"$f":"IF($A410=\"N/A\",Ref!$B$36,INDEX(Ranks!$1:$1048576,$A410,EB$1))","v":""}]
[{"$f":"IFERROR(MATCH('Portfolio Page'!L411,Ranks!L:L,0),\"N/A\")","v":"N/A"},null,{"$f":"IF($A411=\"N/A\",\"\",INDEX(Ranks!$1:$1048576,$A411,C$1))","v":""},{"$f":"IF($A411=\"N/A\",Ref!$B$36,INDEX(Ranks!$1:$1048576,$A411,D$1))","v":""},{"$f":"IF($A411=\"N/A\",Ref!$B$36,INDEX(Ranks!$1:$1048576,$A411,E$1))","v":""},{"$f":"IF($A411=\"N/A\",\"\",INDEX(Ranks!$1:$1048576,$A411,F$1))","v":""},{"$f":"IF($A411=\"N/A\",\"\",INDEX(Ranks!$1:$1048576,$A411,G$1))","v":""},{"$f":"IF($A411=\"N/A\",\"\",INDEX(Ranks!$1:$1048576,$A411,H$1))","v":""},{"$f":"IF($A411=\"N/A\",\"\",INDEX(Ranks!$1:$1048576,$A411,I$1))","v":""},{"$f":"IF($A411=\"N/A\",\"\",INDEX(Ranks!$1:$1048576,$A411,J$1))","v":""},{"$f":"IF($A411=\"N/A\",\"\",INDEX(Ranks!$1:$1048576,$A411,K$1))","v":""},null,{"$f":"IF($A411=\"N/A\",Ref!$B$36,INDEX(Ranks!$1:$1048576,$A411,M$1))","v":""},{"$f":"IF($A411=\"N/A\",Ref!$B$36,INDEX(Ranks!$1:$1048576,$A411,N$1))","v":""},{"$f":"IF($A411=\"N/A\",Ref!$B$36,INDEX(Ranks!$1:$1048576,$A411,O$1))","v":""},{"$f":"IF($A411=\"N/A\",Ref!$B$36,INDEX(Ranks!$1:$1048576,$A411,P$1))","v":""},{"$f":"IF($A411=\"N/A\",Ref!$B$36,INDEX(Ranks!$1:$1048576,$A411,Q$1))","v":""},{"$f":"IF($A411=\"N/A\",Ref!$B$36,INDEX(Ranks!$1:$1048576,$A411,R$1))","v":""},{"$f":"IF($A411=\"N/A\",Ref!$B$36,INDEX(Ranks!$1:$1048576,$A411,S$1))","v":""},{"$f":"IF($A411=\"N/A\",Ref!$B$36,INDEX(Ranks!$1:$1048576,$A411,T$1))","v":""},{"$f":"IF($A411=\"N/A\",Ref!$B$36,INDEX(Ranks!$1:$1048576,$A411,U$1))","v":""},{"$f":"IF($A411=\"N/A\",Ref!$B$36,INDEX(Ranks!$1:$1048576,$A411,V$1))","v":""},{"$f":"IF($A411=\"N/A\",Ref!$B$36,INDEX(Ranks!$1:$1048576,$A411,W$1))","v":""},{"$f":"IF($A411=\"N/A\",Ref!$B$36,INDEX(Ranks!$1:$1048576,$A411,X$1))","v":""},{"$f":"IF($A411=\"N/A\",Ref!$B$36,INDEX(Ranks!$1:$1048576,$A411,Y$1))","v":""},{"$f":"IF($A411=\"N/A\",Ref!$B$36,INDEX(Ranks!$1:$1048576,$A411,Z$1))","v":""},{"$f":"IF($A411=\"N/A\",Ref!$B$36,INDEX(Ranks!$1:$1048576,$A411,AA$1))","v":""},{"$f":"IF($A411=\"N/A\",Ref!$B$36,INDEX(Ranks!$1:$1048576,$A411,AB$1))","v":""},{"$f":"IF($A411=\"N/A\",Ref!$B$36,INDEX(Ranks!$1:$1048576,$A411,AC$1))","v":""},{"$f":"IF($A411=\"N/A\",Ref!$B$36,INDEX(Ranks!$1:$1048576,$A411,AD$1))","v":""},{"$f":"IF($A411=\"N/A\",Ref!$B$36,INDEX(Ranks!$1:$1048576,$A411,AE$1))","v":""},{"$f":"IF($A411=\"N/A\",Ref!$B$36,INDEX(Ranks!$1:$1048576,$A411,AF$1))","v":""},{"$f":"IF($A411=\"N/A\",Ref!$B$36,INDEX(Ranks!$1:$1048576,$A411,AG$1))","v":""},{"$f":"IF($A411=\"N/A\",Ref!$B$36,INDEX(Ranks!$1:$1048576,$A411,AH$1))","v":""},{"$f":"IF($A411=\"N/A\",Ref!$B$36,INDEX(Ranks!$1:$1048576,$A411,AI$1))","v":""},{"$f":"IF($A411=\"N/A\",Ref!$B$36,INDEX(Ranks!$1:$1048576,$A411,AJ$1))","v":""},{"$f":"IF($A411=\"N/A\",Ref!$B$36,INDEX(Ranks!$1:$1048576,$A411,AK$1))","v":""},{"$f":"IF($A411=\"N/A\",Ref!$B$36,INDEX(Ranks!$1:$1048576,$A411,AL$1))","v":""},{"$f":"IF($A411=\"N/A\",Ref!$B$36,INDEX(Ranks!$1:$1048576,$A411,AM$1))","v":""},{"$f":"IF($A411=\"N/A\",Ref!$B$36,INDEX(Ranks!$1:$1048576,$A411,AN$1))","v":""},{"$f":"IF($A411=\"N/A\",Ref!$B$36,INDEX(Ranks!$1:$1048576,$A411,AO$1))","v":""},{"$f":"IF($A411=\"N/A\",Ref!$B$36,INDEX(Ranks!$1:$1048576,$A411,AP$1))","v":""},{"$f":"IF($A411=\"N/A\",Ref!$B$36,INDEX(Ranks!$1:$1048576,$A411,AQ$1))","v":""},{"$f":"IF($A411=\"N/A\",Ref!$B$36,INDEX(Ranks!$1:$1048576,$A411,AR$1))","v":""},{"$f":"IF($A411=\"N/A\",Ref!$B$36,INDEX(Ranks!$1:$1048576,$A411,AS$1))","v":""},{"$f":"IF($A411=\"N/A\",Ref!$B$36,INDEX(Ranks!$1:$1048576,$A411,AT$1))","v":""},{"$f":"IF($A411=\"N/A\",Ref!$B$36,INDEX(Ranks!$1:$1048576,$A411,AU$1))","v":""},{"$f":"IF($A411=\"N/A\",Ref!$B$36,INDEX(Ranks!$1:$1048576,$A411,AV$1))","v":""},{"$f":"IF($A411=\"N/A\",Ref!$B$36,INDEX(Ranks!$1:$1048576,$A411,AW$1))","v":""},{"$f":"IF($A411=\"N/A\",Ref!$B$36,INDEX(Ranks!$1:$1048576,$A411,AX$1))","v":""},{"$f":"IF($A411=\"N/A\",Ref!$B$36,INDEX(Ranks!$1:$1048576,$A411,AY$1))","v":""},{"$f":"IF($A411=\"N/A\",Ref!$B$36,INDEX(Ranks!$1:$1048576,$A411,AZ$1))","v":""},{"$f":"IF($A411=\"N/A\",Ref!$B$36,INDEX(Ranks!$1:$1048576,$A411,BA$1))","v":""},{"$f":"IF($A411=\"N/A\",Ref!$B$36,INDEX(Ranks!$1:$1048576,$A411,BB$1))","v":""},{"$f":"IF($A411=\"N/A\",Ref!$B$36,INDEX(Ranks!$1:$1048576,$A411,BC$1))","v":""},{"$f":"IF($A411=\"N/A\",Ref!$B$36,INDEX(Ranks!$1:$1048576,$A411,BD$1))","v":""},{"$f":"IF($A411=\"N/A\",Ref!$B$36,INDEX(Ranks!$1:$1048576,$A411,BE$1))","v":""},{"$f":"IF($A411=\"N/A\",Ref!$B$36,INDEX(Ranks!$1:$1048576,$A411,BF$1))","v":""},{"$f":"IF($A411=\"N/A\",Ref!$B$36,INDEX(Ranks!$1:$1048576,$A411,BG$1))","v":""},{"$f":"IF($A411=\"N/A\",Ref!$B$36,INDEX(Ranks!$1:$1048576,$A411,BH$1))","v":""},{"$f":"IF($A411=\"N/A\",Ref!$B$36,INDEX(Ranks!$1:$1048576,$A411,BI$1))","v":""},{"$f":"IF($A411=\"N/A\",Ref!$B$36,INDEX(Ranks!$1:$1048576,$A411,BJ$1))","v":""},{"$f":"IF($A411=\"N/A\",Ref!$B$36,INDEX(Ranks!$1:$1048576,$A411,BK$1))","v":""},{"$f":"IF($A411=\"N/A\",Ref!$B$36,INDEX(Ranks!$1:$1048576,$A411,BL$1))","v":""},{"$f":"IF($A411=\"N/A\",Ref!$B$36,INDEX(Ranks!$1:$1048576,$A411,BM$1))","v":""},{"$f":"IF($A411=\"N/A\",Ref!$B$36,INDEX(Ranks!$1:$1048576,$A411,BN$1))","v":""},{"$f":"IF($A411=\"N/A\",Ref!$B$36,INDEX(Ranks!$1:$1048576,$A411,BO$1))","v":""},{"$f":"IF($A411=\"N/A\",Ref!$B$36,INDEX(Ranks!$1:$1048576,$A411,BP$1))","v":""},{"$f":"IF($A411=\"N/A\",Ref!$B$36,INDEX(Ranks!$1:$1048576,$A411,BQ$1))","v":""},{"$f":"IF($A411=\"N/A\",Ref!$B$36,INDEX(Ranks!$1:$1048576,$A411,BR$1))","v":""},{"$f":"IF($A411=\"N/A\",Ref!$B$36,INDEX(Ranks!$1:$1048576,$A411,BS$1))","v":""},{"$f":"IF($A411=\"N/A\",Ref!$B$36,INDEX(Ranks!$1:$1048576,$A411,BT$1))","v":""},{"$f":"IF($A411=\"N/A\",Ref!$B$36,INDEX(Ranks!$1:$1048576,$A411,BU$1))","v":""},{"$f":"IF($A411=\"N/A\",Ref!$B$36,INDEX(Ranks!$1:$1048576,$A411,BV$1))","v":""},{"$f":"IF($A411=\"N/A\",Ref!$B$36,INDEX(Ranks!$1:$1048576,$A411,BW$1))","v":""},{"$f":"IF($A411=\"N/A\",Ref!$B$36,INDEX(Ranks!$1:$1048576,$A411,BX$1))","v":""},{"$f":"IF($A411=\"N/A\",Ref!$B$36,INDEX(Ranks!$1:$1048576,$A411,BY$1))","v":""},{"$f":"IF($A411=\"N/A\",Ref!$B$36,INDEX(Ranks!$1:$1048576,$A411,BZ$1))","v":""},{"$f":"IF($A411=\"N/A\",Ref!$B$36,INDEX(Ranks!$1:$1048576,$A411,CA$1))","v":""},{"$f":"IF($A411=\"N/A\",Ref!$B$36,INDEX(Ranks!$1:$1048576,$A411,CB$1))","v":""},{"$f":"IF($A411=\"N/A\",Ref!$B$36,INDEX(Ranks!$1:$1048576,$A411,CC$1))","v":""},{"$f":"IF($A411=\"N/A\",Ref!$B$36,INDEX(Ranks!$1:$1048576,$A411,CD$1))","v":""},{"$f":"IF($A411=\"N/A\",Ref!$B$36,INDEX(Ranks!$1:$1048576,$A411,CE$1))","v":""},{"$f":"IF($A411=\"N/A\",Ref!$B$36,INDEX(Ranks!$1:$1048576,$A411,CF$1))","v":""},{"$f":"IF($A411=\"N/A\",Ref!$B$36,INDEX(Ranks!$1:$1048576,$A411,CG$1))","v":""},{"$f":"IF($A411=\"N/A\",Ref!$B$36,INDEX(Ranks!$1:$1048576,$A411,CH$1))","v":""},{"$f":"IF($A411=\"N/A\",Ref!$B$36,INDEX(Ranks!$1:$1048576,$A411,CI$1))","v":""},{"$f":"IF($A411=\"N/A\",Ref!$B$36,INDEX(Ranks!$1:$1048576,$A411,CJ$1))","v":""},{"$f":"IF($A411=\"N/A\",Ref!$B$36,INDEX(Ranks!$1:$1048576,$A411,CK$1))","v":""},{"$f":"IF($A411=\"N/A\",Ref!$B$36,INDEX(Ranks!$1:$1048576,$A411,CL$1))","v":""},{"$f":"IF($A411=\"N/A\",Ref!$B$36,INDEX(Ranks!$1:$1048576,$A411,CM$1))","v":""},{"$f":"IF($A411=\"N/A\",Ref!$B$36,INDEX(Ranks!$1:$1048576,$A411,CN$1))","v":""},{"$f":"IF($A411=\"N/A\",Ref!$B$36,INDEX(Ranks!$1:$1048576,$A411,CO$1))","v":""},{"$f":"IF($A411=\"N/A\",Ref!$B$36,INDEX(Ranks!$1:$1048576,$A411,CP$1))","v":""},{"$f":"IF($A411=\"N/A\",Ref!$B$36,INDEX(Ranks!$1:$1048576,$A411,CQ$1))","v":""},{"$f":"IF($A411=\"N/A\",Ref!$B$36,INDEX(Ranks!$1:$1048576,$A411,CR$1))","v":""},{"$f":"IF($A411=\"N/A\",Ref!$B$36,INDEX(Ranks!$1:$1048576,$A411,CS$1))","v":""},{"$f":"IF($A411=\"N/A\",Ref!$B$36,INDEX(Ranks!$1:$1048576,$A411,CT$1))","v":""},{"$f":"IF($A411=\"N/A\",Ref!$B$36,INDEX(Ranks!$1:$1048576,$A411,CU$1))","v":""},{"$f":"IF($A411=\"N/A\",Ref!$B$36,INDEX(Ranks!$1:$1048576,$A411,CV$1))","v":""},{"$f":"IF($A411=\"N/A\",Ref!$B$36,INDEX(Ranks!$1:$1048576,$A411,CW$1))","v":""},{"$f":"IF($A411=\"N/A\",Ref!$B$36,INDEX(Ranks!$1:$1048576,$A411,CX$1))","v":""},{"$f":"IF($A411=\"N/A\",Ref!$B$36,INDEX(Ranks!$1:$1048576,$A411,CY$1))","v":""},{"$f":"IF($A411=\"N/A\",Ref!$B$36,INDEX(Ranks!$1:$1048576,$A411,CZ$1))","v":""},{"$f":"IF($A411=\"N/A\",Ref!$B$36,INDEX(Ranks!$1:$1048576,$A411,DA$1))","v":""},{"$f":"IF($A411=\"N/A\",Ref!$B$36,INDEX(Ranks!$1:$1048576,$A411,DB$1))","v":""},{"$f":"IF($A411=\"N/A\",Ref!$B$36,INDEX(Ranks!$1:$1048576,$A411,DC$1))","v":""},{"$f":"IF($A411=\"N/A\",Ref!$B$36,INDEX(Ranks!$1:$1048576,$A411,DD$1))","v":""},{"$f":"IF($A411=\"N/A\",Ref!$B$36,INDEX(Ranks!$1:$1048576,$A411,DE$1))","v":""},{"$f":"IF($A411=\"N/A\",Ref!$B$36,INDEX(Ranks!$1:$1048576,$A411,DF$1))","v":""},{"$f":"IF($A411=\"N/A\",Ref!$B$36,INDEX(Ranks!$1:$1048576,$A411,DG$1))","v":""},{"$f":"IF($A411=\"N/A\",Ref!$B$36,INDEX(Ranks!$1:$1048576,$A411,DH$1))","v":""},{"$f":"IF($A411=\"N/A\",Ref!$B$36,INDEX(Ranks!$1:$1048576,$A411,DI$1))","v":""},{"$f":"IF($A411=\"N/A\",Ref!$B$36,INDEX(Ranks!$1:$1048576,$A411,DJ$1))","v":""},{"$f":"IF($A411=\"N/A\",Ref!$B$36,INDEX(Ranks!$1:$1048576,$A411,DK$1))","v":""},{"$f":"IF($A411=\"N/A\",Ref!$B$36,INDEX(Ranks!$1:$1048576,$A411,DL$1))","v":""},{"$f":"IF($A411=\"N/A\",Ref!$B$36,INDEX(Ranks!$1:$1048576,$A411,DM$1))","v":""},{"$f":"IF($A411=\"N/A\",Ref!$B$36,INDEX(Ranks!$1:$1048576,$A411,DN$1))","v":""},{"$f":"IF($A411=\"N/A\",Ref!$B$36,INDEX(Ranks!$1:$1048576,$A411,DO$1))","v":""},{"$f":"IF($A411=\"N/A\",Ref!$B$36,INDEX(Ranks!$1:$1048576,$A411,DP$1))","v":""},{"$f":"IF($A411=\"N/A\",Ref!$B$36,INDEX(Ranks!$1:$1048576,$A411,DQ$1))","v":""},{"$f":"IF($A411=\"N/A\",Ref!$B$36,INDEX(Ranks!$1:$1048576,$A411,DR$1))","v":""},{"$f":"IF($A411=\"N/A\",Ref!$B$36,INDEX(Ranks!$1:$1048576,$A411,DS$1))","v":""},{"$f":"IF($A411=\"N/A\",Ref!$B$36,INDEX(Ranks!$1:$1048576,$A411,DT$1))","v":""},{"$f":"IF($A411=\"N/A\",Ref!$B$36,INDEX(Ranks!$1:$1048576,$A411,DU$1))","v":""},{"$f":"IF($A411=\"N/A\",Ref!$B$36,INDEX(Ranks!$1:$1048576,$A411,DV$1))","v":""},{"$f":"IF($A411=\"N/A\",Ref!$B$36,INDEX(Ranks!$1:$1048576,$A411,DW$1))","v":""},{"$f":"IF($A411=\"N/A\",Ref!$B$36,INDEX(Ranks!$1:$1048576,$A411,DX$1))","v":""},{"$f":"IF($A411=\"N/A\",Ref!$B$36,INDEX(Ranks!$1:$1048576,$A411,DY$1))","v":""},{"$f":"IF($A411=\"N/A\",Ref!$B$36,INDEX(Ranks!$1:$1048576,$A411,DZ$1))","v":""},{"$f":"IF($A411=\"N/A\",Ref!$B$36,INDEX(Ranks!$1:$1048576,$A411,EA$1))","v":""},{"$f":"IF($A411=\"N/A\",Ref!$B$36,INDEX(Ranks!$1:$1048576,$A411,EB$1))","v":""}]
[{"$f":"IFERROR(MATCH('Portfolio Page'!L412,Ranks!L:L,0),\"N/A\")","v":"N/A"},null,{"$f":"IF($A412=\"N/A\",\"\",INDEX(Ranks!$1:$1048576,$A412,C$1))","v":""},{"$f":"IF($A412=\"N/A\",Ref!$B$36,INDEX(Ranks!$1:$1048576,$A412,D$1))","v":""},{"$f":"IF($A412=\"N/A\",Ref!$B$36,INDEX(Ranks!$1:$1048576,$A412,E$1))","v":""},{"$f":"IF($A412=\"N/A\",\"\",INDEX(Ranks!$1:$1048576,$A412,F$1))","v":""},{"$f":"IF($A412=\"N/A\",\"\",INDEX(Ranks!$1:$1048576,$A412,G$1))","v":""},{"$f":"IF($A412=\"N/A\",\"\",INDEX(Ranks!$1:$1048576,$A412,H$1))","v":""},{"$f":"IF($A412=\"N/A\",\"\",INDEX(Ranks!$1:$1048576,$A412,I$1))","v":""},{"$f":"IF($A412=\"N/A\",\"\",INDEX(Ranks!$1:$1048576,$A412,J$1))","v":""},{"$f":"IF($A412=\"N/A\",\"\",INDEX(Ranks!$1:$1048576,$A412,K$1))","v":""},null,{"$f":"IF($A412=\"N/A\",Ref!$B$36,INDEX(Ranks!$1:$1048576,$A412,M$1))","v":""},{"$f":"IF($A412=\"N/A\",Ref!$B$36,INDEX(Ranks!$1:$1048576,$A412,N$1))","v":""},{"$f":"IF($A412=\"N/A\",Ref!$B$36,INDEX(Ranks!$1:$1048576,$A412,O$1))","v":""},{"$f":"IF($A412=\"N/A\",Ref!$B$36,INDEX(Ranks!$1:$1048576,$A412,P$1))","v":""},{"$f":"IF($A412=\"N/A\",Ref!$B$36,INDEX(Ranks!$1:$1048576,$A412,Q$1))","v":""},{"$f":"IF($A412=\"N/A\",Ref!$B$36,INDEX(Ranks!$1:$1048576,$A412,R$1))","v":""},{"$f":"IF($A412=\"N/A\",Ref!$B$36,INDEX(Ranks!$1:$1048576,$A412,S$1))","v":""},{"$f":"IF($A412=\"N/A\",Ref!$B$36,INDEX(Ranks!$1:$1048576,$A412,T$1))","v":""},{"$f":"IF($A412=\"N/A\",Ref!$B$36,INDEX(Ranks!$1:$1048576,$A412,U$1))","v":""},{"$f":"IF($A412=\"N/A\",Ref!$B$36,INDEX(Ranks!$1:$1048576,$A412,V$1))","v":""},{"$f":"IF($A412=\"N/A\",Ref!$B$36,INDEX(Ranks!$1:$1048576,$A412,W$1))","v":""},{"$f":"IF($A412=\"N/A\",Ref!$B$36,INDEX(Ranks!$1:$1048576,$A412,X$1))","v":""},{"$f":"IF($A412=\"N/A\",Ref!$B$36,INDEX(Ranks!$1:$1048576,$A412,Y$1))","v":""},{"$f":"IF($A412=\"N/A\",Ref!$B$36,INDEX(Ranks!$1:$1048576,$A412,Z$1))","v":""},{"$f":"IF($A412=\"N/A\",Ref!$B$36,INDEX(Ranks!$1:$1048576,$A412,AA$1))","v":""},{"$f":"IF($A412=\"N/A\",Ref!$B$36,INDEX(Ranks!$1:$1048576,$A412,AB$1))","v":""},{"$f":"IF($A412=\"N/A\",Ref!$B$36,INDEX(Ranks!$1:$1048576,$A412,AC$1))","v":""},{"$f":"IF($A412=\"N/A\",Ref!$B$36,INDEX(Ranks!$1:$1048576,$A412,AD$1))","v":""},{"$f":"IF($A412=\"N/A\",Ref!$B$36,INDEX(Ranks!$1:$1048576,$A412,AE$1))","v":""},{"$f":"IF($A412=\"N/A\",Ref!$B$36,INDEX(Ranks!$1:$1048576,$A412,AF$1))","v":""},{"$f":"IF($A412=\"N/A\",Ref!$B$36,INDEX(Ranks!$1:$1048576,$A412,AG$1))","v":""},{"$f":"IF($A412=\"N/A\",Ref!$B$36,INDEX(Ranks!$1:$1048576,$A412,AH$1))","v":""},{"$f":"IF($A412=\"N/A\",Ref!$B$36,INDEX(Ranks!$1:$1048576,$A412,AI$1))","v":""},{"$f":"IF($A412=\"N/A\",Ref!$B$36,INDEX(Ranks!$1:$1048576,$A412,AJ$1))","v":""},{"$f":"IF($A412=\"N/A\",Ref!$B$36,INDEX(Ranks!$1:$1048576,$A412,AK$1))","v":""},{"$f":"IF($A412=\"N/A\",Ref!$B$36,INDEX(Ranks!$1:$1048576,$A412,AL$1))","v":""},{"$f":"IF($A412=\"N/A\",Ref!$B$36,INDEX(Ranks!$1:$1048576,$A412,AM$1))","v":""},{"$f":"IF($A412=\"N/A\",Ref!$B$36,INDEX(Ranks!$1:$1048576,$A412,AN$1))","v":""},{"$f":"IF($A412=\"N/A\",Ref!$B$36,INDEX(Ranks!$1:$1048576,$A412,AO$1))","v":""},{"$f":"IF($A412=\"N/A\",Ref!$B$36,INDEX(Ranks!$1:$1048576,$A412,AP$1))","v":""},{"$f":"IF($A412=\"N/A\",Ref!$B$36,INDEX(Ranks!$1:$1048576,$A412,AQ$1))","v":""},{"$f":"IF($A412=\"N/A\",Ref!$B$36,INDEX(Ranks!$1:$1048576,$A412,AR$1))","v":""},{"$f":"IF($A412=\"N/A\",Ref!$B$36,INDEX(Ranks!$1:$1048576,$A412,AS$1))","v":""},{"$f":"IF($A412=\"N/A\",Ref!$B$36,INDEX(Ranks!$1:$1048576,$A412,AT$1))","v":""},{"$f":"IF($A412=\"N/A\",Ref!$B$36,INDEX(Ranks!$1:$1048576,$A412,AU$1))","v":""},{"$f":"IF($A412=\"N/A\",Ref!$B$36,INDEX(Ranks!$1:$1048576,$A412,AV$1))","v":""},{"$f":"IF($A412=\"N/A\",Ref!$B$36,INDEX(Ranks!$1:$1048576,$A412,AW$1))","v":""},{"$f":"IF($A412=\"N/A\",Ref!$B$36,INDEX(Ranks!$1:$1048576,$A412,AX$1))","v":""},{"$f":"IF($A412=\"N/A\",Ref!$B$36,INDEX(Ranks!$1:$1048576,$A412,AY$1))","v":""},{"$f":"IF($A412=\"N/A\",Ref!$B$36,INDEX(Ranks!$1:$1048576,$A412,AZ$1))","v":""},{"$f":"IF($A412=\"N/A\",Ref!$B$36,INDEX(Ranks!$1:$1048576,$A412,BA$1))","v":""},{"$f":"IF($A412=\"N/A\",Ref!$B$36,INDEX(Ranks!$1:$1048576,$A412,BB$1))","v":""},{"$f":"IF($A412=\"N/A\",Ref!$B$36,INDEX(Ranks!$1:$1048576,$A412,BC$1))","v":""},{"$f":"IF($A412=\"N/A\",Ref!$B$36,INDEX(Ranks!$1:$1048576,$A412,BD$1))","v":""},{"$f":"IF($A412=\"N/A\",Ref!$B$36,INDEX(Ranks!$1:$1048576,$A412,BE$1))","v":""},{"$f":"IF($A412=\"N/A\",Ref!$B$36,INDEX(Ranks!$1:$1048576,$A412,BF$1))","v":""},{"$f":"IF($A412=\"N/A\",Ref!$B$36,INDEX(Ranks!$1:$1048576,$A412,BG$1))","v":""},{"$f":"IF($A412=\"N/A\",Ref!$B$36,INDEX(Ranks!$1:$1048576,$A412,BH$1))","v":""},{"$f":"IF($A412=\"N/A\",Ref!$B$36,INDEX(Ranks!$1:$1048576,$A412,BI$1))","v":""},{"$f":"IF($A412=\"N/A\",Ref!$B$36,INDEX(Ranks!$1:$1048576,$A412,BJ$1))","v":""},{"$f":"IF($A412=\"N/A\",Ref!$B$36,INDEX(Ranks!$1:$1048576,$A412,BK$1))","v":""},{"$f":"IF($A412=\"N/A\",Ref!$B$36,INDEX(Ranks!$1:$1048576,$A412,BL$1))","v":""},{"$f":"IF($A412=\"N/A\",Ref!$B$36,INDEX(Ranks!$1:$1048576,$A412,BM$1))","v":""},{"$f":"IF($A412=\"N/A\",Ref!$B$36,INDEX(Ranks!$1:$1048576,$A412,BN$1))","v":""},{"$f":"IF($A412=\"N/A\",Ref!$B$36,INDEX(Ranks!$1:$1048576,$A412,BO$1))","v":""},{"$f":"IF($A412=\"N/A\",Ref!$B$36,INDEX(Ranks!$1:$1048576,$A412,BP$1))","v":""},{"$f":"IF($A412=\"N/A\",Ref!$B$36,INDEX(Ranks!$1:$1048576,$A412,BQ$1))","v":""},{"$f":"IF($A412=\"N/A\",Ref!$B$36,INDEX(Ranks!$1:$1048576,$A412,BR$1))","v":""},{"$f":"IF($A412=\"N/A\",Ref!$B$36,INDEX(Ranks!$1:$1048576,$A412,BS$1))","v":""},{"$f":"IF($A412=\"N/A\",Ref!$B$36,INDEX(Ranks!$1:$1048576,$A412,BT$1))","v":""},{"$f":"IF($A412=\"N/A\",Ref!$B$36,INDEX(Ranks!$1:$1048576,$A412,BU$1))","v":""},{"$f":"IF($A412=\"N/A\",Ref!$B$36,INDEX(Ranks!$1:$1048576,$A412,BV$1))","v":""},{"$f":"IF($A412=\"N/A\",Ref!$B$36,INDEX(Ranks!$1:$1048576,$A412,BW$1))","v":""},{"$f":"IF($A412=\"N/A\",Ref!$B$36,INDEX(Ranks!$1:$1048576,$A412,BX$1))","v":""},{"$f":"IF($A412=\"N/A\",Ref!$B$36,INDEX(Ranks!$1:$1048576,$A412,BY$1))","v":""},{"$f":"IF($A412=\"N/A\",Ref!$B$36,INDEX(Ranks!$1:$1048576,$A412,BZ$1))","v":""},{"$f":"IF($A412=\"N/A\",Ref!$B$36,INDEX(Ranks!$1:$1048576,$A412,CA$1))","v":""},{"$f":"IF($A412=\"N/A\",Ref!$B$36,INDEX(Ranks!$1:$1048576,$A412,CB$1))","v":""},{"$f":"IF($A412=\"N/A\",Ref!$B$36,INDEX(Ranks!$1:$1048576,$A412,CC$1))","v":""},{"$f":"IF($A412=\"N/A\",Ref!$B$36,INDEX(Ranks!$1:$1048576,$A412,CD$1))","v":""},{"$f":"IF($A412=\"N/A\",Ref!$B$36,INDEX(Ranks!$1:$1048576,$A412,CE$1))","v":""},{"$f":"IF($A412=\"N/A\",Ref!$B$36,INDEX(Ranks!$1:$1048576,$A412,CF$1))","v":""},{"$f":"IF($A412=\"N/A\",Ref!$B$36,INDEX(Ranks!$1:$1048576,$A412,CG$1))","v":""},{"$f":"IF($A412=\"N/A\",Ref!$B$36,INDEX(Ranks!$1:$1048576,$A412,CH$1))","v":""},{"$f":"IF($A412=\"N/A\",Ref!$B$36,INDEX(Ranks!$1:$1048576,$A412,CI$1))","v":""},{"$f":"IF($A412=\"N/A\",Ref!$B$36,INDEX(Ranks!$1:$1048576,$A412,CJ$1))","v":""},{"$f":"IF($A412=\"N/A\",Ref!$B$36,INDEX(Ranks!$1:$1048576,$A412,CK$1))","v":""},{"$f":"IF($A412=\"N/A\",Ref!$B$36,INDEX(Ranks!$1:$1048576,$A412,CL$1))","v":""},{"$f":"IF($A412=\"N/A\",Ref!$B$36,INDEX(Ranks!$1:$1048576,$A412,CM$1))","v":""},{"$f":"IF($A412=\"N/A\",Ref!$B$36,INDEX(Ranks!$1:$1048576,$A412,CN$1))","v":""},{"$f":"IF($A412=\"N/A\",Ref!$B$36,INDEX(Ranks!$1:$1048576,$A412,CO$1))","v":""},{"$f":"IF($A412=\"N/A\",Ref!$B$36,INDEX(Ranks!$1:$1048576,$A412,CP$1))","v":""},{"$f":"IF($A412=\"N/A\",Ref!$B$36,INDEX(Ranks!$1:$1048576,$A412,CQ$1))","v":""},{"$f":"IF($A412=\"N/A\",Ref!$B$36,INDEX(Ranks!$1:$1048576,$A412,CR$1))","v":""},{"$f":"IF($A412=\"N/A\",Ref!$B$36,INDEX(Ranks!$1:$1048576,$A412,CS$1))","v":""},{"$f":"IF($A412=\"N/A\",Ref!$B$36,INDEX(Ranks!$1:$1048576,$A412,CT$1))","v":""},{"$f":"IF($A412=\"N/A\",Ref!$B$36,INDEX(Ranks!$1:$1048576,$A412,CU$1))","v":""},{"$f":"IF($A412=\"N/A\",Ref!$B$36,INDEX(Ranks!$1:$1048576,$A412,CV$1))","v":""},{"$f":"IF($A412=\"N/A\",Ref!$B$36,INDEX(Ranks!$1:$1048576,$A412,CW$1))","v":""},{"$f":"IF($A412=\"N/A\",Ref!$B$36,INDEX(Ranks!$1:$1048576,$A412,CX$1))","v":""},{"$f":"IF($A412=\"N/A\",Ref!$B$36,INDEX(Ranks!$1:$1048576,$A412,CY$1))","v":""},{"$f":"IF($A412=\"N/A\",Ref!$B$36,INDEX(Ranks!$1:$1048576,$A412,CZ$1))","v":""},{"$f":"IF($A412=\"N/A\",Ref!$B$36,INDEX(Ranks!$1:$1048576,$A412,DA$1))","v":""},{"$f":"IF($A412=\"N/A\",Ref!$B$36,INDEX(Ranks!$1:$1048576,$A412,DB$1))","v":""},{"$f":"IF($A412=\"N/A\",Ref!$B$36,INDEX(Ranks!$1:$1048576,$A412,DC$1))","v":""},{"$f":"IF($A412=\"N/A\",Ref!$B$36,INDEX(Ranks!$1:$1048576,$A412,DD$1))","v":""},{"$f":"IF($A412=\"N/A\",Ref!$B$36,INDEX(Ranks!$1:$1048576,$A412,DE$1))","v":""},{"$f":"IF($A412=\"N/A\",Ref!$B$36,INDEX(Ranks!$1:$1048576,$A412,DF$1))","v":""},{"$f":"IF($A412=\"N/A\",Ref!$B$36,INDEX(Ranks!$1:$1048576,$A412,DG$1))","v":""},{"$f":"IF($A412=\"N/A\",Ref!$B$36,INDEX(Ranks!$1:$1048576,$A412,DH$1))","v":""},{"$f":"IF($A412=\"N/A\",Ref!$B$36,INDEX(Ranks!$1:$1048576,$A412,DI$1))","v":""},{"$f":"IF($A412=\"N/A\",Ref!$B$36,INDEX(Ranks!$1:$1048576,$A412,DJ$1))","v":""},{"$f":"IF($A412=\"N/A\",Ref!$B$36,INDEX(Ranks!$1:$1048576,$A412,DK$1))","v":""},{"$f":"IF($A412=\"N/A\",Ref!$B$36,INDEX(Ranks!$1:$1048576,$A412,DL$1))","v":""},{"$f":"IF($A412=\"N/A\",Ref!$B$36,INDEX(Ranks!$1:$1048576,$A412,DM$1))","v":""},{"$f":"IF($A412=\"N/A\",Ref!$B$36,INDEX(Ranks!$1:$1048576,$A412,DN$1))","v":""},{"$f":"IF($A412=\"N/A\",Ref!$B$36,INDEX(Ranks!$1:$1048576,$A412,DO$1))","v":""},{"$f":"IF($A412=\"N/A\",Ref!$B$36,INDEX(Ranks!$1:$1048576,$A412,DP$1))","v":""},{"$f":"IF($A412=\"N/A\",Ref!$B$36,INDEX(Ranks!$1:$1048576,$A412,DQ$1))","v":""},{"$f":"IF($A412=\"N/A\",Ref!$B$36,INDEX(Ranks!$1:$1048576,$A412,DR$1))","v":""},{"$f":"IF($A412=\"N/A\",Ref!$B$36,INDEX(Ranks!$1:$1048576,$A412,DS$1))","v":""},{"$f":"IF($A412=\"N/A\",Ref!$B$36,INDEX(Ranks!$1:$1048576,$A412,DT$1))","v":""},{"$f":"IF($A412=\"N/A\",Ref!$B$36,INDEX(Ranks!$1:$1048576,$A412,DU$1))","v":""},{"$f":"IF($A412=\"N/A\",Ref!$B$36,INDEX(Ranks!$1:$1048576,$A412,DV$1))","v":""},{"$f":"IF($A412=\"N/A\",Ref!$B$36,INDEX(Ranks!$1:$1048576,$A412,DW$1))","v":""},{"$f":"IF($A412=\"N/A\",Ref!$B$36,INDEX(Ranks!$1:$1048576,$A412,DX$1))","v":""},{"$f":"IF($A412=\"N/A\",Ref!$B$36,INDEX(Ranks!$1:$1048576,$A412,DY$1))","v":""},{"$f":"IF($A412=\"N/A\",Ref!$B$36,INDEX(Ranks!$1:$1048576,$A412,DZ$1))","v":""},{"$f":"IF($A412=\"N/A\",Ref!$B$36,INDEX(Ranks!$1:$1048576,$A412,EA$1))","v":""},{"$f":"IF($A412=\"N/A\",Ref!$B$36,INDEX(Ranks!$1:$1048576,$A412,EB$1))","v":""}]
[{"$f":"IFERROR(MATCH('Portfolio Page'!L413,Ranks!L:L,0),\"N/A\")","v":"N/A"},null,{"$f":"IF($A413=\"N/A\",\"\",INDEX(Ranks!$1:$1048576,$A413,C$1))","v":""},{"$f":"IF($A413=\"N/A\",Ref!$B$36,INDEX(Ranks!$1:$1048576,$A413,D$1))","v":""},{"$f":"IF($A413=\"N/A\",Ref!$B$36,INDEX(Ranks!$1:$1048576,$A413,E$1))","v":""},{"$f":"IF($A413=\"N/A\",\"\",INDEX(Ranks!$1:$1048576,$A413,F$1))","v":""},{"$f":"IF($A413=\"N/A\",\"\",INDEX(Ranks!$1:$1048576,$A413,G$1))","v":""},{"$f":"IF($A413=\"N/A\",\"\",INDEX(Ranks!$1:$1048576,$A413,H$1))","v":""},{"$f":"IF($A413=\"N/A\",\"\",INDEX(Ranks!$1:$1048576,$A413,I$1))","v":""},{"$f":"IF($A413=\"N/A\",\"\",INDEX(Ranks!$1:$1048576,$A413,J$1))","v":""},{"$f":"IF($A413=\"N/A\",\"\",INDEX(Ranks!$1:$1048576,$A413,K$1))","v":""},null,{"$f":"IF($A413=\"N/A\",Ref!$B$36,INDEX(Ranks!$1:$1048576,$A413,M$1))","v":""},{"$f":"IF($A413=\"N/A\",Ref!$B$36,INDEX(Ranks!$1:$1048576,$A413,N$1))","v":""},{"$f":"IF($A413=\"N/A\",Ref!$B$36,INDEX(Ranks!$1:$1048576,$A413,O$1))","v":""},{"$f":"IF($A413=\"N/A\",Ref!$B$36,INDEX(Ranks!$1:$1048576,$A413,P$1))","v":""},{"$f":"IF($A413=\"N/A\",Ref!$B$36,INDEX(Ranks!$1:$1048576,$A413,Q$1))","v":""},{"$f":"IF($A413=\"N/A\",Ref!$B$36,INDEX(Ranks!$1:$1048576,$A413,R$1))","v":""},{"$f":"IF($A413=\"N/A\",Ref!$B$36,INDEX(Ranks!$1:$1048576,$A413,S$1))","v":""},{"$f":"IF($A413=\"N/A\",Ref!$B$36,INDEX(Ranks!$1:$1048576,$A413,T$1))","v":""},{"$f":"IF($A413=\"N/A\",Ref!$B$36,INDEX(Ranks!$1:$1048576,$A413,U$1))","v":""},{"$f":"IF($A413=\"N/A\",Ref!$B$36,INDEX(Ranks!$1:$1048576,$A413,V$1))","v":""},{"$f":"IF($A413=\"N/A\",Ref!$B$36,INDEX(Ranks!$1:$1048576,$A413,W$1))","v":""},{"$f":"IF($A413=\"N/A\",Ref!$B$36,INDEX(Ranks!$1:$1048576,$A413,X$1))","v":""},{"$f":"IF($A413=\"N/A\",Ref!$B$36,INDEX(Ranks!$1:$1048576,$A413,Y$1))","v":""},{"$f":"IF($A413=\"N/A\",Ref!$B$36,INDEX(Ranks!$1:$1048576,$A413,Z$1))","v":""},{"$f":"IF($A413=\"N/A\",Ref!$B$36,INDEX(Ranks!$1:$1048576,$A413,AA$1))","v":""},{"$f":"IF($A413=\"N/A\",Ref!$B$36,INDEX(Ranks!$1:$1048576,$A413,AB$1))","v":""},{"$f":"IF($A413=\"N/A\",Ref!$B$36,INDEX(Ranks!$1:$1048576,$A413,AC$1))","v":""},{"$f":"IF($A413=\"N/A\",Ref!$B$36,INDEX(Ranks!$1:$1048576,$A413,AD$1))","v":""},{"$f":"IF($A413=\"N/A\",Ref!$B$36,INDEX(Ranks!$1:$1048576,$A413,AE$1))","v":""},{"$f":"IF($A413=\"N/A\",Ref!$B$36,INDEX(Ranks!$1:$1048576,$A413,AF$1))","v":""},{"$f":"IF($A413=\"N/A\",Ref!$B$36,INDEX(Ranks!$1:$1048576,$A413,AG$1))","v":""},{"$f":"IF($A413=\"N/A\",Ref!$B$36,INDEX(Ranks!$1:$1048576,$A413,AH$1))","v":""},{"$f":"IF($A413=\"N/A\",Ref!$B$36,INDEX(Ranks!$1:$1048576,$A413,AI$1))","v":""},{"$f":"IF($A413=\"N/A\",Ref!$B$36,INDEX(Ranks!$1:$1048576,$A413,AJ$1))","v":""},{"$f":"IF($A413=\"N/A\",Ref!$B$36,INDEX(Ranks!$1:$1048576,$A413,AK$1))","v":""},{"$f":"IF($A413=\"N/A\",Ref!$B$36,INDEX(Ranks!$1:$1048576,$A413,AL$1))","v":""},{"$f":"IF($A413=\"N/A\",Ref!$B$36,INDEX(Ranks!$1:$1048576,$A413,AM$1))","v":""},{"$f":"IF($A413=\"N/A\",Ref!$B$36,INDEX(Ranks!$1:$1048576,$A413,AN$1))","v":""},{"$f":"IF($A413=\"N/A\",Ref!$B$36,INDEX(Ranks!$1:$1048576,$A413,AO$1))","v":""},{"$f":"IF($A413=\"N/A\",Ref!$B$36,INDEX(Ranks!$1:$1048576,$A413,AP$1))","v":""},{"$f":"IF($A413=\"N/A\",Ref!$B$36,INDEX(Ranks!$1:$1048576,$A413,AQ$1))","v":""},{"$f":"IF($A413=\"N/A\",Ref!$B$36,INDEX(Ranks!$1:$1048576,$A413,AR$1))","v":""},{"$f":"IF($A413=\"N/A\",Ref!$B$36,INDEX(Ranks!$1:$1048576,$A413,AS$1))","v":""},{"$f":"IF($A413=\"N/A\",Ref!$B$36,INDEX(Ranks!$1:$1048576,$A413,AT$1))","v":""},{"$f":"IF($A413=\"N/A\",Ref!$B$36,INDEX(Ranks!$1:$1048576,$A413,AU$1))","v":""},{"$f":"IF($A413=\"N/A\",Ref!$B$36,INDEX(Ranks!$1:$1048576,$A413,AV$1))","v":""},{"$f":"IF($A413=\"N/A\",Ref!$B$36,INDEX(Ranks!$1:$1048576,$A413,AW$1))","v":""},{"$f":"IF($A413=\"N/A\",Ref!$B$36,INDEX(Ranks!$1:$1048576,$A413,AX$1))","v":""},{"$f":"IF($A413=\"N/A\",Ref!$B$36,INDEX(Ranks!$1:$1048576,$A413,AY$1))","v":""},{"$f":"IF($A413=\"N/A\",Ref!$B$36,INDEX(Ranks!$1:$1048576,$A413,AZ$1))","v":""},{"$f":"IF($A413=\"N/A\",Ref!$B$36,INDEX(Ranks!$1:$1048576,$A413,BA$1))","v":""},{"$f":"IF($A413=\"N/A\",Ref!$B$36,INDEX(Ranks!$1:$1048576,$A413,BB$1))","v":""},{"$f":"IF($A413=\"N/A\",Ref!$B$36,INDEX(Ranks!$1:$1048576,$A413,BC$1))","v":""},{"$f":"IF($A413=\"N/A\",Ref!$B$36,INDEX(Ranks!$1:$1048576,$A413,BD$1))","v":""},{"$f":"IF($A413=\"N/A\",Ref!$B$36,INDEX(Ranks!$1:$1048576,$A413,BE$1))","v":""},{"$f":"IF($A413=\"N/A\",Ref!$B$36,INDEX(Ranks!$1:$1048576,$A413,BF$1))","v":""},{"$f":"IF($A413=\"N/A\",Ref!$B$36,INDEX(Ranks!$1:$1048576,$A413,BG$1))","v":""},{"$f":"IF($A413=\"N/A\",Ref!$B$36,INDEX(Ranks!$1:$1048576,$A413,BH$1))","v":""},{"$f":"IF($A413=\"N/A\",Ref!$B$36,INDEX(Ranks!$1:$1048576,$A413,BI$1))","v":""},{"$f":"IF($A413=\"N/A\",Ref!$B$36,INDEX(Ranks!$1:$1048576,$A413,BJ$1))","v":""},{"$f":"IF($A413=\"N/A\",Ref!$B$36,INDEX(Ranks!$1:$1048576,$A413,BK$1))","v":""},{"$f":"IF($A413=\"N/A\",Ref!$B$36,INDEX(Ranks!$1:$1048576,$A413,BL$1))","v":""},{"$f":"IF($A413=\"N/A\",Ref!$B$36,INDEX(Ranks!$1:$1048576,$A413,BM$1))","v":""},{"$f":"IF($A413=\"N/A\",Ref!$B$36,INDEX(Ranks!$1:$1048576,$A413,BN$1))","v":""},{"$f":"IF($A413=\"N/A\",Ref!$B$36,INDEX(Ranks!$1:$1048576,$A413,BO$1))","v":""},{"$f":"IF($A413=\"N/A\",Ref!$B$36,INDEX(Ranks!$1:$1048576,$A413,BP$1))","v":""},{"$f":"IF($A413=\"N/A\",Ref!$B$36,INDEX(Ranks!$1:$1048576,$A413,BQ$1))","v":""},{"$f":"IF($A413=\"N/A\",Ref!$B$36,INDEX(Ranks!$1:$1048576,$A413,BR$1))","v":""},{"$f":"IF($A413=\"N/A\",Ref!$B$36,INDEX(Ranks!$1:$1048576,$A413,BS$1))","v":""},{"$f":"IF($A413=\"N/A\",Ref!$B$36,INDEX(Ranks!$1:$1048576,$A413,BT$1))","v":""},{"$f":"IF($A413=\"N/A\",Ref!$B$36,INDEX(Ranks!$1:$1048576,$A413,BU$1))","v":""},{"$f":"IF($A413=\"N/A\",Ref!$B$36,INDEX(Ranks!$1:$1048576,$A413,BV$1))","v":""},{"$f":"IF($A413=\"N/A\",Ref!$B$36,INDEX(Ranks!$1:$1048576,$A413,BW$1))","v":""},{"$f":"IF($A413=\"N/A\",Ref!$B$36,INDEX(Ranks!$1:$1048576,$A413,BX$1))","v":""},{"$f":"IF($A413=\"N/A\",Ref!$B$36,INDEX(Ranks!$1:$1048576,$A413,BY$1))","v":""},{"$f":"IF($A413=\"N/A\",Ref!$B$36,INDEX(Ranks!$1:$1048576,$A413,BZ$1))","v":""},{"$f":"IF($A413=\"N/A\",Ref!$B$36,INDEX(Ranks!$1:$1048576,$A413,CA$1))","v":""},{"$f":"IF($A413=\"N/A\",Ref!$B$36,INDEX(Ranks!$1:$1048576,$A413,CB$1))","v":""},{"$f":"IF($A413=\"N/A\",Ref!$B$36,INDEX(Ranks!$1:$1048576,$A413,CC$1))","v":""},{"$f":"IF($A413=\"N/A\",Ref!$B$36,INDEX(Ranks!$1:$1048576,$A413,CD$1))","v":""},{"$f":"IF($A413=\"N/A\",Ref!$B$36,INDEX(Ranks!$1:$1048576,$A413,CE$1))","v":""},{"$f":"IF($A413=\"N/A\",Ref!$B$36,INDEX(Ranks!$1:$1048576,$A413,CF$1))","v":""},{"$f":"IF($A413=\"N/A\",Ref!$B$36,INDEX(Ranks!$1:$1048576,$A413,CG$1))","v":""},{"$f":"IF($A413=\"N/A\",Ref!$B$36,INDEX(Ranks!$1:$1048576,$A413,CH$1))","v":""},{"$f":"IF($A413=\"N/A\",Ref!$B$36,INDEX(Ranks!$1:$1048576,$A413,CI$1))","v":""},{"$f":"IF($A413=\"N/A\",Ref!$B$36,INDEX(Ranks!$1:$1048576,$A413,CJ$1))","v":""},{"$f":"IF($A413=\"N/A\",Ref!$B$36,INDEX(Ranks!$1:$1048576,$A413,CK$1))","v":""},{"$f":"IF($A413=\"N/A\",Ref!$B$36,INDEX(Ranks!$1:$1048576,$A413,CL$1))","v":""},{"$f":"IF($A413=\"N/A\",Ref!$B$36,INDEX(Ranks!$1:$1048576,$A413,CM$1))","v":""},{"$f":"IF($A413=\"N/A\",Ref!$B$36,INDEX(Ranks!$1:$1048576,$A413,CN$1))","v":""},{"$f":"IF($A413=\"N/A\",Ref!$B$36,INDEX(Ranks!$1:$1048576,$A413,CO$1))","v":""},{"$f":"IF($A413=\"N/A\",Ref!$B$36,INDEX(Ranks!$1:$1048576,$A413,CP$1))","v":""},{"$f":"IF($A413=\"N/A\",Ref!$B$36,INDEX(Ranks!$1:$1048576,$A413,CQ$1))","v":""},{"$f":"IF($A413=\"N/A\",Ref!$B$36,INDEX(Ranks!$1:$1048576,$A413,CR$1))","v":""},{"$f":"IF($A413=\"N/A\",Ref!$B$36,INDEX(Ranks!$1:$1048576,$A413,CS$1))","v":""},{"$f":"IF($A413=\"N/A\",Ref!$B$36,INDEX(Ranks!$1:$1048576,$A413,CT$1))","v":""},{"$f":"IF($A413=\"N/A\",Ref!$B$36,INDEX(Ranks!$1:$1048576,$A413,CU$1))","v":""},{"$f":"IF($A413=\"N/A\",Ref!$B$36,INDEX(Ranks!$1:$1048576,$A413,CV$1))","v":""},{"$f":"IF($A413=\"N/A\",Ref!$B$36,INDEX(Ranks!$1:$1048576,$A413,CW$1))","v":""},{"$f":"IF($A413=\"N/A\",Ref!$B$36,INDEX(Ranks!$1:$1048576,$A413,CX$1))","v":""},{"$f":"IF($A413=\"N/A\",Ref!$B$36,INDEX(Ranks!$1:$1048576,$A413,CY$1))","v":""},{"$f":"IF($A413=\"N/A\",Ref!$B$36,INDEX(Ranks!$1:$1048576,$A413,CZ$1))","v":""},{"$f":"IF($A413=\"N/A\",Ref!$B$36,INDEX(Ranks!$1:$1048576,$A413,DA$1))","v":""},{"$f":"IF($A413=\"N/A\",Ref!$B$36,INDEX(Ranks!$1:$1048576,$A413,DB$1))","v":""},{"$f":"IF($A413=\"N/A\",Ref!$B$36,INDEX(Ranks!$1:$1048576,$A413,DC$1))","v":""},{"$f":"IF($A413=\"N/A\",Ref!$B$36,INDEX(Ranks!$1:$1048576,$A413,DD$1))","v":""},{"$f":"IF($A413=\"N/A\",Ref!$B$36,INDEX(Ranks!$1:$1048576,$A413,DE$1))","v":""},{"$f":"IF($A413=\"N/A\",Ref!$B$36,INDEX(Ranks!$1:$1048576,$A413,DF$1))","v":""},{"$f":"IF($A413=\"N/A\",Ref!$B$36,INDEX(Ranks!$1:$1048576,$A413,DG$1))","v":""},{"$f":"IF($A413=\"N/A\",Ref!$B$36,INDEX(Ranks!$1:$1048576,$A413,DH$1))","v":""},{"$f":"IF($A413=\"N/A\",Ref!$B$36,INDEX(Ranks!$1:$1048576,$A413,DI$1))","v":""},{"$f":"IF($A413=\"N/A\",Ref!$B$36,INDEX(Ranks!$1:$1048576,$A413,DJ$1))","v":""},{"$f":"IF($A413=\"N/A\",Ref!$B$36,INDEX(Ranks!$1:$1048576,$A413,DK$1))","v":""},{"$f":"IF($A413=\"N/A\",Ref!$B$36,INDEX(Ranks!$1:$1048576,$A413,DL$1))","v":""},{"$f":"IF($A413=\"N/A\",Ref!$B$36,INDEX(Ranks!$1:$1048576,$A413,DM$1))","v":""},{"$f":"IF($A413=\"N/A\",Ref!$B$36,INDEX(Ranks!$1:$1048576,$A413,DN$1))","v":""},{"$f":"IF($A413=\"N/A\",Ref!$B$36,INDEX(Ranks!$1:$1048576,$A413,DO$1))","v":""},{"$f":"IF($A413=\"N/A\",Ref!$B$36,INDEX(Ranks!$1:$1048576,$A413,DP$1))","v":""},{"$f":"IF($A413=\"N/A\",Ref!$B$36,INDEX(Ranks!$1:$1048576,$A413,DQ$1))","v":""},{"$f":"IF($A413=\"N/A\",Ref!$B$36,INDEX(Ranks!$1:$1048576,$A413,DR$1))","v":""},{"$f":"IF($A413=\"N/A\",Ref!$B$36,INDEX(Ranks!$1:$1048576,$A413,DS$1))","v":""},{"$f":"IF($A413=\"N/A\",Ref!$B$36,INDEX(Ranks!$1:$1048576,$A413,DT$1))","v":""},{"$f":"IF($A413=\"N/A\",Ref!$B$36,INDEX(Ranks!$1:$1048576,$A413,DU$1))","v":""},{"$f":"IF($A413=\"N/A\",Ref!$B$36,INDEX(Ranks!$1:$1048576,$A413,DV$1))","v":""},{"$f":"IF($A413=\"N/A\",Ref!$B$36,INDEX(Ranks!$1:$1048576,$A413,DW$1))","v":""},{"$f":"IF($A413=\"N/A\",Ref!$B$36,INDEX(Ranks!$1:$1048576,$A413,DX$1))","v":""},{"$f":"IF($A413=\"N/A\",Ref!$B$36,INDEX(Ranks!$1:$1048576,$A413,DY$1))","v":""},{"$f":"IF($A413=\"N/A\",Ref!$B$36,INDEX(Ranks!$1:$1048576,$A413,DZ$1))","v":""},{"$f":"IF($A413=\"N/A\",Ref!$B$36,INDEX(Ranks!$1:$1048576,$A413,EA$1))","v":""},{"$f":"IF($A413=\"N/A\",Ref!$B$36,INDEX(Ranks!$1:$1048576,$A413,EB$1))","v":""}]
[{"$f":"IFERROR(MATCH('Portfolio Page'!L414,Ranks!L:L,0),\"N/A\")","v":"N/A"},null,{"$f":"IF($A414=\"N/A\",\"\",INDEX(Ranks!$1:$1048576,$A414,C$1))","v":""},{"$f":"IF($A414=\"N/A\",Ref!$B$36,INDEX(Ranks!$1:$1048576,$A414,D$1))","v":""},{"$f":"IF($A414=\"N/A\",Ref!$B$36,INDEX(Ranks!$1:$1048576,$A414,E$1))","v":""},{"$f":"IF($A414=\"N/A\",\"\",INDEX(Ranks!$1:$1048576,$A414,F$1))","v":""},{"$f":"IF($A414=\"N/A\",\"\",INDEX(Ranks!$1:$1048576,$A414,G$1))","v":""},{"$f":"IF($A414=\"N/A\",\"\",INDEX(Ranks!$1:$1048576,$A414,H$1))","v":""},{"$f":"IF($A414=\"N/A\",\"\",INDEX(Ranks!$1:$1048576,$A414,I$1))","v":""},{"$f":"IF($A414=\"N/A\",\"\",INDEX(Ranks!$1:$1048576,$A414,J$1))","v":""},{"$f":"IF($A414=\"N/A\",\"\",INDEX(Ranks!$1:$1048576,$A414,K$1))","v":""},null,{"$f":"IF($A414=\"N/A\",Ref!$B$36,INDEX(Ranks!$1:$1048576,$A414,M$1))","v":""},{"$f":"IF($A414=\"N/A\",Ref!$B$36,INDEX(Ranks!$1:$1048576,$A414,N$1))","v":""},{"$f":"IF($A414=\"N/A\",Ref!$B$36,INDEX(Ranks!$1:$1048576,$A414,O$1))","v":""},{"$f":"IF($A414=\"N/A\",Ref!$B$36,INDEX(Ranks!$1:$1048576,$A414,P$1))","v":""},{"$f":"IF($A414=\"N/A\",Ref!$B$36,INDEX(Ranks!$1:$1048576,$A414,Q$1))","v":""},{"$f":"IF($A414=\"N/A\",Ref!$B$36,INDEX(Ranks!$1:$1048576,$A414,R$1))","v":""},{"$f":"IF($A414=\"N/A\",Ref!$B$36,INDEX(Ranks!$1:$1048576,$A414,S$1))","v":""},{"$f":"IF($A414=\"N/A\",Ref!$B$36,INDEX(Ranks!$1:$1048576,$A414,T$1))","v":""},{"$f":"IF($A414=\"N/A\",Ref!$B$36,INDEX(Ranks!$1:$1048576,$A414,U$1))","v":""},{"$f":"IF($A414=\"N/A\",Ref!$B$36,INDEX(Ranks!$1:$1048576,$A414,V$1))","v":""},{"$f":"IF($A414=\"N/A\",Ref!$B$36,INDEX(Ranks!$1:$1048576,$A414,W$1))","v":""},{"$f":"IF($A414=\"N/A\",Ref!$B$36,INDEX(Ranks!$1:$1048576,$A414,X$1))","v":""},{"$f":"IF($A414=\"N/A\",Ref!$B$36,INDEX(Ranks!$1:$1048576,$A414,Y$1))","v":""},{"$f":"IF($A414=\"N/A\",Ref!$B$36,INDEX(Ranks!$1:$1048576,$A414,Z$1))","v":""},{"$f":"IF($A414=\"N/A\",Ref!$B$36,INDEX(Ranks!$1:$1048576,$A414,AA$1))","v":""},{"$f":"IF($A414=\"N/A\",Ref!$B$36,INDEX(Ranks!$1:$1048576,$A414,AB$1))","v":""},{"$f":"IF($A414=\"N/A\",Ref!$B$36,INDEX(Ranks!$1:$1048576,$A414,AC$1))","v":""},{"$f":"IF($A414=\"N/A\",Ref!$B$36,INDEX(Ranks!$1:$1048576,$A414,AD$1))","v":""},{"$f":"IF($A414=\"N/A\",Ref!$B$36,INDEX(Ranks!$1:$1048576,$A414,AE$1))","v":""},{"$f":"IF($A414=\"N/A\",Ref!$B$36,INDEX(Ranks!$1:$1048576,$A414,AF$1))","v":""},{"$f":"IF($A414=\"N/A\",Ref!$B$36,INDEX(Ranks!$1:$1048576,$A414,AG$1))","v":""},{"$f":"IF($A414=\"N/A\",Ref!$B$36,INDEX(Ranks!$1:$1048576,$A414,AH$1))","v":""},{"$f":"IF($A414=\"N/A\",Ref!$B$36,INDEX(Ranks!$1:$1048576,$A414,AI$1))","v":""},{"$f":"IF($A414=\"N/A\",Ref!$B$36,INDEX(Ranks!$1:$1048576,$A414,AJ$1))","v":""},{"$f":"IF($A414=\"N/A\",Ref!$B$36,INDEX(Ranks!$1:$1048576,$A414,AK$1))","v":""},{"$f":"IF($A414=\"N/A\",Ref!$B$36,INDEX(Ranks!$1:$1048576,$A414,AL$1))","v":""},{"$f":"IF($A414=\"N/A\",Ref!$B$36,INDEX(Ranks!$1:$1048576,$A414,AM$1))","v":""},{"$f":"IF($A414=\"N/A\",Ref!$B$36,INDEX(Ranks!$1:$1048576,$A414,AN$1))","v":""},{"$f":"IF($A414=\"N/A\",Ref!$B$36,INDEX(Ranks!$1:$1048576,$A414,AO$1))","v":""},{"$f":"IF($A414=\"N/A\",Ref!$B$36,INDEX(Ranks!$1:$1048576,$A414,AP$1))","v":""},{"$f":"IF($A414=\"N/A\",Ref!$B$36,INDEX(Ranks!$1:$1048576,$A414,AQ$1))","v":""},{"$f":"IF($A414=\"N/A\",Ref!$B$36,INDEX(Ranks!$1:$1048576,$A414,AR$1))","v":""},{"$f":"IF($A414=\"N/A\",Ref!$B$36,INDEX(Ranks!$1:$1048576,$A414,AS$1))","v":""},{"$f":"IF($A414=\"N/A\",Ref!$B$36,INDEX(Ranks!$1:$1048576,$A414,AT$1))","v":""},{"$f":"IF($A414=\"N/A\",Ref!$B$36,INDEX(Ranks!$1:$1048576,$A414,AU$1))","v":""},{"$f":"IF($A414=\"N/A\",Ref!$B$36,INDEX(Ranks!$1:$1048576,$A414,AV$1))","v":""},{"$f":"IF($A414=\"N/A\",Ref!$B$36,INDEX(Ranks!$1:$1048576,$A414,AW$1))","v":""},{"$f":"IF($A414=\"N/A\",Ref!$B$36,INDEX(Ranks!$1:$1048576,$A414,AX$1))","v":""},{"$f":"IF($A414=\"N/A\",Ref!$B$36,INDEX(Ranks!$1:$1048576,$A414,AY$1))","v":""},{"$f":"IF($A414=\"N/A\",Ref!$B$36,INDEX(Ranks!$1:$1048576,$A414,AZ$1))","v":""},{"$f":"IF($A414=\"N/A\",Ref!$B$36,INDEX(Ranks!$1:$1048576,$A414,BA$1))","v":""},{"$f":"IF($A414=\"N/A\",Ref!$B$36,INDEX(Ranks!$1:$1048576,$A414,BB$1))","v":""},{"$f":"IF($A414=\"N/A\",Ref!$B$36,INDEX(Ranks!$1:$1048576,$A414,BC$1))","v":""},{"$f":"IF($A414=\"N/A\",Ref!$B$36,INDEX(Ranks!$1:$1048576,$A414,BD$1))","v":""},{"$f":"IF($A414=\"N/A\",Ref!$B$36,INDEX(Ranks!$1:$1048576,$A414,BE$1))","v":""},{"$f":"IF($A414=\"N/A\",Ref!$B$36,INDEX(Ranks!$1:$1048576,$A414,BF$1))","v":""},{"$f":"IF($A414=\"N/A\",Ref!$B$36,INDEX(Ranks!$1:$1048576,$A414,BG$1))","v":""},{"$f":"IF($A414=\"N/A\",Ref!$B$36,INDEX(Ranks!$1:$1048576,$A414,BH$1))","v":""},{"$f":"IF($A414=\"N/A\",Ref!$B$36,INDEX(Ranks!$1:$1048576,$A414,BI$1))","v":""},{"$f":"IF($A414=\"N/A\",Ref!$B$36,INDEX(Ranks!$1:$1048576,$A414,BJ$1))","v":""},{"$f":"IF($A414=\"N/A\",Ref!$B$36,INDEX(Ranks!$1:$1048576,$A414,BK$1))","v":""},{"$f":"IF($A414=\"N/A\",Ref!$B$36,INDEX(Ranks!$1:$1048576,$A414,BL$1))","v":""},{"$f":"IF($A414=\"N/A\",Ref!$B$36,INDEX(Ranks!$1:$1048576,$A414,BM$1))","v":""},{"$f":"IF($A414=\"N/A\",Ref!$B$36,INDEX(Ranks!$1:$1048576,$A414,BN$1))","v":""},{"$f":"IF($A414=\"N/A\",Ref!$B$36,INDEX(Ranks!$1:$1048576,$A414,BO$1))","v":""},{"$f":"IF($A414=\"N/A\",Ref!$B$36,INDEX(Ranks!$1:$1048576,$A414,BP$1))","v":""},{"$f":"IF($A414=\"N/A\",Ref!$B$36,INDEX(Ranks!$1:$1048576,$A414,BQ$1))","v":""},{"$f":"IF($A414=\"N/A\",Ref!$B$36,INDEX(Ranks!$1:$1048576,$A414,BR$1))","v":""},{"$f":"IF($A414=\"N/A\",Ref!$B$36,INDEX(Ranks!$1:$1048576,$A414,BS$1))","v":""},{"$f":"IF($A414=\"N/A\",Ref!$B$36,INDEX(Ranks!$1:$1048576,$A414,BT$1))","v":""},{"$f":"IF($A414=\"N/A\",Ref!$B$36,INDEX(Ranks!$1:$1048576,$A414,BU$1))","v":""},{"$f":"IF($A414=\"N/A\",Ref!$B$36,INDEX(Ranks!$1:$1048576,$A414,BV$1))","v":""},{"$f":"IF($A414=\"N/A\",Ref!$B$36,INDEX(Ranks!$1:$1048576,$A414,BW$1))","v":""},{"$f":"IF($A414=\"N/A\",Ref!$B$36,INDEX(Ranks!$1:$1048576,$A414,BX$1))","v":""},{"$f":"IF($A414=\"N/A\",Ref!$B$36,INDEX(Ranks!$1:$1048576,$A414,BY$1))","v":""},{"$f":"IF($A414=\"N/A\",Ref!$B$36,INDEX(Ranks!$1:$1048576,$A414,BZ$1))","v":""},{"$f":"IF($A414=\"N/A\",Ref!$B$36,INDEX(Ranks!$1:$1048576,$A414,CA$1))","v":""},{"$f":"IF($A414=\"N/A\",Ref!$B$36,INDEX(Ranks!$1:$1048576,$A414,CB$1))","v":""},{"$f":"IF($A414=\"N/A\",Ref!$B$36,INDEX(Ranks!$1:$1048576,$A414,CC$1))","v":""},{"$f":"IF($A414=\"N/A\",Ref!$B$36,INDEX(Ranks!$1:$1048576,$A414,CD$1))","v":""},{"$f":"IF($A414=\"N/A\",Ref!$B$36,INDEX(Ranks!$1:$1048576,$A414,CE$1))","v":""},{"$f":"IF($A414=\"N/A\",Ref!$B$36,INDEX(Ranks!$1:$1048576,$A414,CF$1))","v":""},{"$f":"IF($A414=\"N/A\",Ref!$B$36,INDEX(Ranks!$1:$1048576,$A414,CG$1))","v":""},{"$f":"IF($A414=\"N/A\",Ref!$B$36,INDEX(Ranks!$1:$1048576,$A414,CH$1))","v":""},{"$f":"IF($A414=\"N/A\",Ref!$B$36,INDEX(Ranks!$1:$1048576,$A414,CI$1))","v":""},{"$f":"IF($A414=\"N/A\",Ref!$B$36,INDEX(Ranks!$1:$1048576,$A414,CJ$1))","v":""},{"$f":"IF($A414=\"N/A\",Ref!$B$36,INDEX(Ranks!$1:$1048576,$A414,CK$1))","v":""},{"$f":"IF($A414=\"N/A\",Ref!$B$36,INDEX(Ranks!$1:$1048576,$A414,CL$1))","v":""},{"$f":"IF($A414=\"N/A\",Ref!$B$36,INDEX(Ranks!$1:$1048576,$A414,CM$1))","v":""},{"$f":"IF($A414=\"N/A\",Ref!$B$36,INDEX(Ranks!$1:$1048576,$A414,CN$1))","v":""},{"$f":"IF($A414=\"N/A\",Ref!$B$36,INDEX(Ranks!$1:$1048576,$A414,CO$1))","v":""},{"$f":"IF($A414=\"N/A\",Ref!$B$36,INDEX(Ranks!$1:$1048576,$A414,CP$1))","v":""},{"$f":"IF($A414=\"N/A\",Ref!$B$36,INDEX(Ranks!$1:$1048576,$A414,CQ$1))","v":""},{"$f":"IF($A414=\"N/A\",Ref!$B$36,INDEX(Ranks!$1:$1048576,$A414,CR$1))","v":""},{"$f":"IF($A414=\"N/A\",Ref!$B$36,INDEX(Ranks!$1:$1048576,$A414,CS$1))","v":""},{"$f":"IF($A414=\"N/A\",Ref!$B$36,INDEX(Ranks!$1:$1048576,$A414,CT$1))","v":""},{"$f":"IF($A414=\"N/A\",Ref!$B$36,INDEX(Ranks!$1:$1048576,$A414,CU$1))","v":""},{"$f":"IF($A414=\"N/A\",Ref!$B$36,INDEX(Ranks!$1:$1048576,$A414,CV$1))","v":""},{"$f":"IF($A414=\"N/A\",Ref!$B$36,INDEX(Ranks!$1:$1048576,$A414,CW$1))","v":""},{"$f":"IF($A414=\"N/A\",Ref!$B$36,INDEX(Ranks!$1:$1048576,$A414,CX$1))","v":""},{"$f":"IF($A414=\"N/A\",Ref!$B$36,INDEX(Ranks!$1:$1048576,$A414,CY$1))","v":""},{"$f":"IF($A414=\"N/A\",Ref!$B$36,INDEX(Ranks!$1:$1048576,$A414,CZ$1))","v":""},{"$f":"IF($A414=\"N/A\",Ref!$B$36,INDEX(Ranks!$1:$1048576,$A414,DA$1))","v":""},{"$f":"IF($A414=\"N/A\",Ref!$B$36,INDEX(Ranks!$1:$1048576,$A414,DB$1))","v":""},{"$f":"IF($A414=\"N/A\",Ref!$B$36,INDEX(Ranks!$1:$1048576,$A414,DC$1))","v":""},{"$f":"IF($A414=\"N/A\",Ref!$B$36,INDEX(Ranks!$1:$1048576,$A414,DD$1))","v":""},{"$f":"IF($A414=\"N/A\",Ref!$B$36,INDEX(Ranks!$1:$1048576,$A414,DE$1))","v":""},{"$f":"IF($A414=\"N/A\",Ref!$B$36,INDEX(Ranks!$1:$1048576,$A414,DF$1))","v":""},{"$f":"IF($A414=\"N/A\",Ref!$B$36,INDEX(Ranks!$1:$1048576,$A414,DG$1))","v":""},{"$f":"IF($A414=\"N/A\",Ref!$B$36,INDEX(Ranks!$1:$1048576,$A414,DH$1))","v":""},{"$f":"IF($A414=\"N/A\",Ref!$B$36,INDEX(Ranks!$1:$1048576,$A414,DI$1))","v":""},{"$f":"IF($A414=\"N/A\",Ref!$B$36,INDEX(Ranks!$1:$1048576,$A414,DJ$1))","v":""},{"$f":"IF($A414=\"N/A\",Ref!$B$36,INDEX(Ranks!$1:$1048576,$A414,DK$1))","v":""},{"$f":"IF($A414=\"N/A\",Ref!$B$36,INDEX(Ranks!$1:$1048576,$A414,DL$1))","v":""},{"$f":"IF($A414=\"N/A\",Ref!$B$36,INDEX(Ranks!$1:$1048576,$A414,DM$1))","v":""},{"$f":"IF($A414=\"N/A\",Ref!$B$36,INDEX(Ranks!$1:$1048576,$A414,DN$1))","v":""},{"$f":"IF($A414=\"N/A\",Ref!$B$36,INDEX(Ranks!$1:$1048576,$A414,DO$1))","v":""},{"$f":"IF($A414=\"N/A\",Ref!$B$36,INDEX(Ranks!$1:$1048576,$A414,DP$1))","v":""},{"$f":"IF($A414=\"N/A\",Ref!$B$36,INDEX(Ranks!$1:$1048576,$A414,DQ$1))","v":""},{"$f":"IF($A414=\"N/A\",Ref!$B$36,INDEX(Ranks!$1:$1048576,$A414,DR$1))","v":""},{"$f":"IF($A414=\"N/A\",Ref!$B$36,INDEX(Ranks!$1:$1048576,$A414,DS$1))","v":""},{"$f":"IF($A414=\"N/A\",Ref!$B$36,INDEX(Ranks!$1:$1048576,$A414,DT$1))","v":""},{"$f":"IF($A414=\"N/A\",Ref!$B$36,INDEX(Ranks!$1:$1048576,$A414,DU$1))","v":""},{"$f":"IF($A414=\"N/A\",Ref!$B$36,INDEX(Ranks!$1:$1048576,$A414,DV$1))","v":""},{"$f":"IF($A414=\"N/A\",Ref!$B$36,INDEX(Ranks!$1:$1048576,$A414,DW$1))","v":""},{"$f":"IF($A414=\"N/A\",Ref!$B$36,INDEX(Ranks!$1:$1048576,$A414,DX$1))","v":""},{"$f":"IF($A414=\"N/A\",Ref!$B$36,INDEX(Ranks!$1:$1048576,$A414,DY$1))","v":""},{"$f":"IF($A414=\"N/A\",Ref!$B$36,INDEX(Ranks!$1:$1048576,$A414,DZ$1))","v":""},{"$f":"IF($A414=\"N/A\",Ref!$B$36,INDEX(Ranks!$1:$1048576,$A414,EA$1))","v":""},{"$f":"IF($A414=\"N/A\",Ref!$B$36,INDEX(Ranks!$1:$1048576,$A414,EB$1))","v":""}]
[{"$f":"IFERROR(MATCH('Portfolio Page'!L415,Ranks!L:L,0),\"N/A\")","v":"N/A"},null,{"$f":"IF($A415=\"N/A\",\"\",INDEX(Ranks!$1:$1048576,$A415,C$1))","v":""},{"$f":"IF($A415=\"N/A\",Ref!$B$36,INDEX(Ranks!$1:$1048576,$A415,D$1))","v":""},{"$f":"IF($A415=\"N/A\",Ref!$B$36,INDEX(Ranks!$1:$1048576,$A415,E$1))","v":""},{"$f":"IF($A415=\"N/A\",\"\",INDEX(Ranks!$1:$1048576,$A415,F$1))","v":""},{"$f":"IF($A415=\"N/A\",\"\",INDEX(Ranks!$1:$1048576,$A415,G$1))","v":""},{"$f":"IF($A415=\"N/A\",\"\",INDEX(Ranks!$1:$1048576,$A415,H$1))","v":""},{"$f":"IF($A415=\"N/A\",\"\",INDEX(Ranks!$1:$1048576,$A415,I$1))","v":""},{"$f":"IF($A415=\"N/A\",\"\",INDEX(Ranks!$1:$1048576,$A415,J$1))","v":""},{"$f":"IF($A415=\"N/A\",\"\",INDEX(Ranks!$1:$1048576,$A415,K$1))","v":""},null,{"$f":"IF($A415=\"N/A\",Ref!$B$36,INDEX(Ranks!$1:$1048576,$A415,M$1))","v":""},{"$f":"IF($A415=\"N/A\",Ref!$B$36,INDEX(Ranks!$1:$1048576,$A415,N$1))","v":""},{"$f":"IF($A415=\"N/A\",Ref!$B$36,INDEX(Ranks!$1:$1048576,$A415,O$1))","v":""},{"$f":"IF($A415=\"N/A\",Ref!$B$36,INDEX(Ranks!$1:$1048576,$A415,P$1))","v":""},{"$f":"IF($A415=\"N/A\",Ref!$B$36,INDEX(Ranks!$1:$1048576,$A415,Q$1))","v":""},{"$f":"IF($A415=\"N/A\",Ref!$B$36,INDEX(Ranks!$1:$1048576,$A415,R$1))","v":""},{"$f":"IF($A415=\"N/A\",Ref!$B$36,INDEX(Ranks!$1:$1048576,$A415,S$1))","v":""},{"$f":"IF($A415=\"N/A\",Ref!$B$36,INDEX(Ranks!$1:$1048576,$A415,T$1))","v":""},{"$f":"IF($A415=\"N/A\",Ref!$B$36,INDEX(Ranks!$1:$1048576,$A415,U$1))","v":""},{"$f":"IF($A415=\"N/A\",Ref!$B$36,INDEX(Ranks!$1:$1048576,$A415,V$1))","v":""},{"$f":"IF($A415=\"N/A\",Ref!$B$36,INDEX(Ranks!$1:$1048576,$A415,W$1))","v":""},{"$f":"IF($A415=\"N/A\",Ref!$B$36,INDEX(Ranks!$1:$1048576,$A415,X$1))","v":""},{"$f":"IF($A415=\"N/A\",Ref!$B$36,INDEX(Ranks!$1:$1048576,$A415,Y$1))","v":""},{"$f":"IF($A415=\"N/A\",Ref!$B$36,INDEX(Ranks!$1:$1048576,$A415,Z$1))","v":""},{"$f":"IF($A415=\"N/A\",Ref!$B$36,INDEX(Ranks!$1:$1048576,$A415,AA$1))","v":""},{"$f":"IF($A415=\"N/A\",Ref!$B$36,INDEX(Ranks!$1:$1048576,$A415,AB$1))","v":""},{"$f":"IF($A415=\"N/A\",Ref!$B$36,INDEX(Ranks!$1:$1048576,$A415,AC$1))","v":""},{"$f":"IF($A415=\"N/A\",Ref!$B$36,INDEX(Ranks!$1:$1048576,$A415,AD$1))","v":""},{"$f":"IF($A415=\"N/A\",Ref!$B$36,INDEX(Ranks!$1:$1048576,$A415,AE$1))","v":""},{"$f":"IF($A415=\"N/A\",Ref!$B$36,INDEX(Ranks!$1:$1048576,$A415,AF$1))","v":""},{"$f":"IF($A415=\"N/A\",Ref!$B$36,INDEX(Ranks!$1:$1048576,$A415,AG$1))","v":""},{"$f":"IF($A415=\"N/A\",Ref!$B$36,INDEX(Ranks!$1:$1048576,$A415,AH$1))","v":""},{"$f":"IF($A415=\"N/A\",Ref!$B$36,INDEX(Ranks!$1:$1048576,$A415,AI$1))","v":""},{"$f":"IF($A415=\"N/A\",Ref!$B$36,INDEX(Ranks!$1:$1048576,$A415,AJ$1))","v":""},{"$f":"IF($A415=\"N/A\",Ref!$B$36,INDEX(Ranks!$1:$1048576,$A415,AK$1))","v":""},{"$f":"IF($A415=\"N/A\",Ref!$B$36,INDEX(Ranks!$1:$1048576,$A415,AL$1))","v":""},{"$f":"IF($A415=\"N/A\",Ref!$B$36,INDEX(Ranks!$1:$1048576,$A415,AM$1))","v":""},{"$f":"IF($A415=\"N/A\",Ref!$B$36,INDEX(Ranks!$1:$1048576,$A415,AN$1))","v":""},{"$f":"IF($A415=\"N/A\",Ref!$B$36,INDEX(Ranks!$1:$1048576,$A415,AO$1))","v":""},{"$f":"IF($A415=\"N/A\",Ref!$B$36,INDEX(Ranks!$1:$1048576,$A415,AP$1))","v":""},{"$f":"IF($A415=\"N/A\",Ref!$B$36,INDEX(Ranks!$1:$1048576,$A415,AQ$1))","v":""},{"$f":"IF($A415=\"N/A\",Ref!$B$36,INDEX(Ranks!$1:$1048576,$A415,AR$1))","v":""},{"$f":"IF($A415=\"N/A\",Ref!$B$36,INDEX(Ranks!$1:$1048576,$A415,AS$1))","v":""},{"$f":"IF($A415=\"N/A\",Ref!$B$36,INDEX(Ranks!$1:$1048576,$A415,AT$1))","v":""},{"$f":"IF($A415=\"N/A\",Ref!$B$36,INDEX(Ranks!$1:$1048576,$A415,AU$1))","v":""},{"$f":"IF($A415=\"N/A\",Ref!$B$36,INDEX(Ranks!$1:$1048576,$A415,AV$1))","v":""},{"$f":"IF($A415=\"N/A\",Ref!$B$36,INDEX(Ranks!$1:$1048576,$A415,AW$1))","v":""},{"$f":"IF($A415=\"N/A\",Ref!$B$36,INDEX(Ranks!$1:$1048576,$A415,AX$1))","v":""},{"$f":"IF($A415=\"N/A\",Ref!$B$36,INDEX(Ranks!$1:$1048576,$A415,AY$1))","v":""},{"$f":"IF($A415=\"N/A\",Ref!$B$36,INDEX(Ranks!$1:$1048576,$A415,AZ$1))","v":""},{"$f":"IF($A415=\"N/A\",Ref!$B$36,INDEX(Ranks!$1:$1048576,$A415,BA$1))","v":""},{"$f":"IF($A415=\"N/A\",Ref!$B$36,INDEX(Ranks!$1:$1048576,$A415,BB$1))","v":""},{"$f":"IF($A415=\"N/A\",Ref!$B$36,INDEX(Ranks!$1:$1048576,$A415,BC$1))","v":""},{"$f":"IF($A415=\"N/A\",Ref!$B$36,INDEX(Ranks!$1:$1048576,$A415,BD$1))","v":""},{"$f":"IF($A415=\"N/A\",Ref!$B$36,INDEX(Ranks!$1:$1048576,$A415,BE$1))","v":""},{"$f":"IF($A415=\"N/A\",Ref!$B$36,INDEX(Ranks!$1:$1048576,$A415,BF$1))","v":""},{"$f":"IF($A415=\"N/A\",Ref!$B$36,INDEX(Ranks!$1:$1048576,$A415,BG$1))","v":""},{"$f":"IF($A415=\"N/A\",Ref!$B$36,INDEX(Ranks!$1:$1048576,$A415,BH$1))","v":""},{"$f":"IF($A415=\"N/A\",Ref!$B$36,INDEX(Ranks!$1:$1048576,$A415,BI$1))","v":""},{"$f":"IF($A415=\"N/A\",Ref!$B$36,INDEX(Ranks!$1:$1048576,$A415,BJ$1))","v":""},{"$f":"IF($A415=\"N/A\",Ref!$B$36,INDEX(Ranks!$1:$1048576,$A415,BK$1))","v":""},{"$f":"IF($A415=\"N/A\",Ref!$B$36,INDEX(Ranks!$1:$1048576,$A415,BL$1))","v":""},{"$f":"IF($A415=\"N/A\",Ref!$B$36,INDEX(Ranks!$1:$1048576,$A415,BM$1))","v":""},{"$f":"IF($A415=\"N/A\",Ref!$B$36,INDEX(Ranks!$1:$1048576,$A415,BN$1))","v":""},{"$f":"IF($A415=\"N/A\",Ref!$B$36,INDEX(Ranks!$1:$1048576,$A415,BO$1))","v":""},{"$f":"IF($A415=\"N/A\",Ref!$B$36,INDEX(Ranks!$1:$1048576,$A415,BP$1))","v":""},{"$f":"IF($A415=\"N/A\",Ref!$B$36,INDEX(Ranks!$1:$1048576,$A415,BQ$1))","v":""},{"$f":"IF($A415=\"N/A\",Ref!$B$36,INDEX(Ranks!$1:$1048576,$A415,BR$1))","v":""},{"$f":"IF($A415=\"N/A\",Ref!$B$36,INDEX(Ranks!$1:$1048576,$A415,BS$1))","v":""},{"$f":"IF($A415=\"N/A\",Ref!$B$36,INDEX(Ranks!$1:$1048576,$A415,BT$1))","v":""},{"$f":"IF($A415=\"N/A\",Ref!$B$36,INDEX(Ranks!$1:$1048576,$A415,BU$1))","v":""},{"$f":"IF($A415=\"N/A\",Ref!$B$36,INDEX(Ranks!$1:$1048576,$A415,BV$1))","v":""},{"$f":"IF($A415=\"N/A\",Ref!$B$36,INDEX(Ranks!$1:$1048576,$A415,BW$1))","v":""},{"$f":"IF($A415=\"N/A\",Ref!$B$36,INDEX(Ranks!$1:$1048576,$A415,BX$1))","v":""},{"$f":"IF($A415=\"N/A\",Ref!$B$36,INDEX(Ranks!$1:$1048576,$A415,BY$1))","v":""},{"$f":"IF($A415=\"N/A\",Ref!$B$36,INDEX(Ranks!$1:$1048576,$A415,BZ$1))","v":""},{"$f":"IF($A415=\"N/A\",Ref!$B$36,INDEX(Ranks!$1:$1048576,$A415,CA$1))","v":""},{"$f":"IF($A415=\"N/A\",Ref!$B$36,INDEX(Ranks!$1:$1048576,$A415,CB$1))","v":""},{"$f":"IF($A415=\"N/A\",Ref!$B$36,INDEX(Ranks!$1:$1048576,$A415,CC$1))","v":""},{"$f":"IF($A415=\"N/A\",Ref!$B$36,INDEX(Ranks!$1:$1048576,$A415,CD$1))","v":""},{"$f":"IF($A415=\"N/A\",Ref!$B$36,INDEX(Ranks!$1:$1048576,$A415,CE$1))","v":""},{"$f":"IF($A415=\"N/A\",Ref!$B$36,INDEX(Ranks!$1:$1048576,$A415,CF$1))","v":""},{"$f":"IF($A415=\"N/A\",Ref!$B$36,INDEX(Ranks!$1:$1048576,$A415,CG$1))","v":""},{"$f":"IF($A415=\"N/A\",Ref!$B$36,INDEX(Ranks!$1:$1048576,$A415,CH$1))","v":""},{"$f":"IF($A415=\"N/A\",Ref!$B$36,INDEX(Ranks!$1:$1048576,$A415,CI$1))","v":""},{"$f":"IF($A415=\"N/A\",Ref!$B$36,INDEX(Ranks!$1:$1048576,$A415,CJ$1))","v":""},{"$f":"IF($A415=\"N/A\",Ref!$B$36,INDEX(Ranks!$1:$1048576,$A415,CK$1))","v":""},{"$f":"IF($A415=\"N/A\",Ref!$B$36,INDEX(Ranks!$1:$1048576,$A415,CL$1))","v":""},{"$f":"IF($A415=\"N/A\",Ref!$B$36,INDEX(Ranks!$1:$1048576,$A415,CM$1))","v":""},{"$f":"IF($A415=\"N/A\",Ref!$B$36,INDEX(Ranks!$1:$1048576,$A415,CN$1))","v":""},{"$f":"IF($A415=\"N/A\",Ref!$B$36,INDEX(Ranks!$1:$1048576,$A415,CO$1))","v":""},{"$f":"IF($A415=\"N/A\",Ref!$B$36,INDEX(Ranks!$1:$1048576,$A415,CP$1))","v":""},{"$f":"IF($A415=\"N/A\",Ref!$B$36,INDEX(Ranks!$1:$1048576,$A415,CQ$1))","v":""},{"$f":"IF($A415=\"N/A\",Ref!$B$36,INDEX(Ranks!$1:$1048576,$A415,CR$1))","v":""},{"$f":"IF($A415=\"N/A\",Ref!$B$36,INDEX(Ranks!$1:$1048576,$A415,CS$1))","v":""},{"$f":"IF($A415=\"N/A\",Ref!$B$36,INDEX(Ranks!$1:$1048576,$A415,CT$1))","v":""},{"$f":"IF($A415=\"N/A\",Ref!$B$36,INDEX(Ranks!$1:$1048576,$A415,CU$1))","v":""},{"$f":"IF($A415=\"N/A\",Ref!$B$36,INDEX(Ranks!$1:$1048576,$A415,CV$1))","v":""},{"$f":"IF($A415=\"N/A\",Ref!$B$36,INDEX(Ranks!$1:$1048576,$A415,CW$1))","v":""},{"$f":"IF($A415=\"N/A\",Ref!$B$36,INDEX(Ranks!$1:$1048576,$A415,CX$1))","v":""},{"$f":"IF($A415=\"N/A\",Ref!$B$36,INDEX(Ranks!$1:$1048576,$A415,CY$1))","v":""},{"$f":"IF($A415=\"N/A\",Ref!$B$36,INDEX(Ranks!$1:$1048576,$A415,CZ$1))","v":""},{"$f":"IF($A415=\"N/A\",Ref!$B$36,INDEX(Ranks!$1:$1048576,$A415,DA$1))","v":""},{"$f":"IF($A415=\"N/A\",Ref!$B$36,INDEX(Ranks!$1:$1048576,$A415,DB$1))","v":""},{"$f":"IF($A415=\"N/A\",Ref!$B$36,INDEX(Ranks!$1:$1048576,$A415,DC$1))","v":""},{"$f":"IF($A415=\"N/A\",Ref!$B$36,INDEX(Ranks!$1:$1048576,$A415,DD$1))","v":""},{"$f":"IF($A415=\"N/A\",Ref!$B$36,INDEX(Ranks!$1:$1048576,$A415,DE$1))","v":""},{"$f":"IF($A415=\"N/A\",Ref!$B$36,INDEX(Ranks!$1:$1048576,$A415,DF$1))","v":""},{"$f":"IF($A415=\"N/A\",Ref!$B$36,INDEX(Ranks!$1:$1048576,$A415,DG$1))","v":""},{"$f":"IF($A415=\"N/A\",Ref!$B$36,INDEX(Ranks!$1:$1048576,$A415,DH$1))","v":""},{"$f":"IF($A415=\"N/A\",Ref!$B$36,INDEX(Ranks!$1:$1048576,$A415,DI$1))","v":""},{"$f":"IF($A415=\"N/A\",Ref!$B$36,INDEX(Ranks!$1:$1048576,$A415,DJ$1))","v":""},{"$f":"IF($A415=\"N/A\",Ref!$B$36,INDEX(Ranks!$1:$1048576,$A415,DK$1))","v":""},{"$f":"IF($A415=\"N/A\",Ref!$B$36,INDEX(Ranks!$1:$1048576,$A415,DL$1))","v":""},{"$f":"IF($A415=\"N/A\",Ref!$B$36,INDEX(Ranks!$1:$1048576,$A415,DM$1))","v":""},{"$f":"IF($A415=\"N/A\",Ref!$B$36,INDEX(Ranks!$1:$1048576,$A415,DN$1))","v":""},{"$f":"IF($A415=\"N/A\",Ref!$B$36,INDEX(Ranks!$1:$1048576,$A415,DO$1))","v":""},{"$f":"IF($A415=\"N/A\",Ref!$B$36,INDEX(Ranks!$1:$1048576,$A415,DP$1))","v":""},{"$f":"IF($A415=\"N/A\",Ref!$B$36,INDEX(Ranks!$1:$1048576,$A415,DQ$1))","v":""},{"$f":"IF($A415=\"N/A\",Ref!$B$36,INDEX(Ranks!$1:$1048576,$A415,DR$1))","v":""},{"$f":"IF($A415=\"N/A\",Ref!$B$36,INDEX(Ranks!$1:$1048576,$A415,DS$1))","v":""},{"$f":"IF($A415=\"N/A\",Ref!$B$36,INDEX(Ranks!$1:$1048576,$A415,DT$1))","v":""},{"$f":"IF($A415=\"N/A\",Ref!$B$36,INDEX(Ranks!$1:$1048576,$A415,DU$1))","v":""},{"$f":"IF($A415=\"N/A\",Ref!$B$36,INDEX(Ranks!$1:$1048576,$A415,DV$1))","v":""},{"$f":"IF($A415=\"N/A\",Ref!$B$36,INDEX(Ranks!$1:$1048576,$A415,DW$1))","v":""},{"$f":"IF($A415=\"N/A\",Ref!$B$36,INDEX(Ranks!$1:$1048576,$A415,DX$1))","v":""},{"$f":"IF($A415=\"N/A\",Ref!$B$36,INDEX(Ranks!$1:$1048576,$A415,DY$1))","v":""},{"$f":"IF($A415=\"N/A\",Ref!$B$36,INDEX(Ranks!$1:$1048576,$A415,DZ$1))","v":""},{"$f":"IF($A415=\"N/A\",Ref!$B$36,INDEX(Ranks!$1:$1048576,$A415,EA$1))","v":""},{"$f":"IF($A415=\"N/A\",Ref!$B$36,INDEX(Ranks!$1:$1048576,$A415,EB$1))","v":""}]
[{"$f":"IFERROR(MATCH('Portfolio Page'!L416,Ranks!L:L,0),\"N/A\")","v":"N/A"},null,{"$f":"IF($A416=\"N/A\",\"\",INDEX(Ranks!$1:$1048576,$A416,C$1))","v":""},{"$f":"IF($A416=\"N/A\",Ref!$B$36,INDEX(Ranks!$1:$1048576,$A416,D$1))","v":""},{"$f":"IF($A416=\"N/A\",Ref!$B$36,INDEX(Ranks!$1:$1048576,$A416,E$1))","v":""},{"$f":"IF($A416=\"N/A\",\"\",INDEX(Ranks!$1:$1048576,$A416,F$1))","v":""},{"$f":"IF($A416=\"N/A\",\"\",INDEX(Ranks!$1:$1048576,$A416,G$1))","v":""},{"$f":"IF($A416=\"N/A\",\"\",INDEX(Ranks!$1:$1048576,$A416,H$1))","v":""},{"$f":"IF($A416=\"N/A\",\"\",INDEX(Ranks!$1:$1048576,$A416,I$1))","v":""},{"$f":"IF($A416=\"N/A\",\"\",INDEX(Ranks!$1:$1048576,$A416,J$1))","v":""},{"$f":"IF($A416=\"N/A\",\"\",INDEX(Ranks!$1:$1048576,$A416,K$1))","v":""},null,{"$f":"IF($A416=\"N/A\",Ref!$B$36,INDEX(Ranks!$1:$1048576,$A416,M$1))","v":""},{"$f":"IF($A416=\"N/A\",Ref!$B$36,INDEX(Ranks!$1:$1048576,$A416,N$1))","v":""},{"$f":"IF($A416=\"N/A\",Ref!$B$36,INDEX(Ranks!$1:$1048576,$A416,O$1))","v":""},{"$f":"IF($A416=\"N/A\",Ref!$B$36,INDEX(Ranks!$1:$1048576,$A416,P$1))","v":""},{"$f":"IF($A416=\"N/A\",Ref!$B$36,INDEX(Ranks!$1:$1048576,$A416,Q$1))","v":""},{"$f":"IF($A416=\"N/A\",Ref!$B$36,INDEX(Ranks!$1:$1048576,$A416,R$1))","v":""},{"$f":"IF($A416=\"N/A\",Ref!$B$36,INDEX(Ranks!$1:$1048576,$A416,S$1))","v":""},{"$f":"IF($A416=\"N/A\",Ref!$B$36,INDEX(Ranks!$1:$1048576,$A416,T$1))","v":""},{"$f":"IF($A416=\"N/A\",Ref!$B$36,INDEX(Ranks!$1:$1048576,$A416,U$1))","v":""},{"$f":"IF($A416=\"N/A\",Ref!$B$36,INDEX(Ranks!$1:$1048576,$A416,V$1))","v":""},{"$f":"IF($A416=\"N/A\",Ref!$B$36,INDEX(Ranks!$1:$1048576,$A416,W$1))","v":""},{"$f":"IF($A416=\"N/A\",Ref!$B$36,INDEX(Ranks!$1:$1048576,$A416,X$1))","v":""},{"$f":"IF($A416=\"N/A\",Ref!$B$36,INDEX(Ranks!$1:$1048576,$A416,Y$1))","v":""},{"$f":"IF($A416=\"N/A\",Ref!$B$36,INDEX(Ranks!$1:$1048576,$A416,Z$1))","v":""},{"$f":"IF($A416=\"N/A\",Ref!$B$36,INDEX(Ranks!$1:$1048576,$A416,AA$1))","v":""},{"$f":"IF($A416=\"N/A\",Ref!$B$36,INDEX(Ranks!$1:$1048576,$A416,AB$1))","v":""},{"$f":"IF($A416=\"N/A\",Ref!$B$36,INDEX(Ranks!$1:$1048576,$A416,AC$1))","v":""},{"$f":"IF($A416=\"N/A\",Ref!$B$36,INDEX(Ranks!$1:$1048576,$A416,AD$1))","v":""},{"$f":"IF($A416=\"N/A\",Ref!$B$36,INDEX(Ranks!$1:$1048576,$A416,AE$1))","v":""},{"$f":"IF($A416=\"N/A\",Ref!$B$36,INDEX(Ranks!$1:$1048576,$A416,AF$1))","v":""},{"$f":"IF($A416=\"N/A\",Ref!$B$36,INDEX(Ranks!$1:$1048576,$A416,AG$1))","v":""},{"$f":"IF($A416=\"N/A\",Ref!$B$36,INDEX(Ranks!$1:$1048576,$A416,AH$1))","v":""},{"$f":"IF($A416=\"N/A\",Ref!$B$36,INDEX(Ranks!$1:$1048576,$A416,AI$1))","v":""},{"$f":"IF($A416=\"N/A\",Ref!$B$36,INDEX(Ranks!$1:$1048576,$A416,AJ$1))","v":""},{"$f":"IF($A416=\"N/A\",Ref!$B$36,INDEX(Ranks!$1:$1048576,$A416,AK$1))","v":""},{"$f":"IF($A416=\"N/A\",Ref!$B$36,INDEX(Ranks!$1:$1048576,$A416,AL$1))","v":""},{"$f":"IF($A416=\"N/A\",Ref!$B$36,INDEX(Ranks!$1:$1048576,$A416,AM$1))","v":""},{"$f":"IF($A416=\"N/A\",Ref!$B$36,INDEX(Ranks!$1:$1048576,$A416,AN$1))","v":""},{"$f":"IF($A416=\"N/A\",Ref!$B$36,INDEX(Ranks!$1:$1048576,$A416,AO$1))","v":""},{"$f":"IF($A416=\"N/A\",Ref!$B$36,INDEX(Ranks!$1:$1048576,$A416,AP$1))","v":""},{"$f":"IF($A416=\"N/A\",Ref!$B$36,INDEX(Ranks!$1:$1048576,$A416,AQ$1))","v":""},{"$f":"IF($A416=\"N/A\",Ref!$B$36,INDEX(Ranks!$1:$1048576,$A416,AR$1))","v":""},{"$f":"IF($A416=\"N/A\",Ref!$B$36,INDEX(Ranks!$1:$1048576,$A416,AS$1))","v":""},{"$f":"IF($A416=\"N/A\",Ref!$B$36,INDEX(Ranks!$1:$1048576,$A416,AT$1))","v":""},{"$f":"IF($A416=\"N/A\",Ref!$B$36,INDEX(Ranks!$1:$1048576,$A416,AU$1))","v":""},{"$f":"IF($A416=\"N/A\",Ref!$B$36,INDEX(Ranks!$1:$1048576,$A416,AV$1))","v":""},{"$f":"IF($A416=\"N/A\",Ref!$B$36,INDEX(Ranks!$1:$1048576,$A416,AW$1))","v":""},{"$f":"IF($A416=\"N/A\",Ref!$B$36,INDEX(Ranks!$1:$1048576,$A416,AX$1))","v":""},{"$f":"IF($A416=\"N/A\",Ref!$B$36,INDEX(Ranks!$1:$1048576,$A416,AY$1))","v":""},{"$f":"IF($A416=\"N/A\",Ref!$B$36,INDEX(Ranks!$1:$1048576,$A416,AZ$1))","v":""},{"$f":"IF($A416=\"N/A\",Ref!$B$36,INDEX(Ranks!$1:$1048576,$A416,BA$1))","v":""},{"$f":"IF($A416=\"N/A\",Ref!$B$36,INDEX(Ranks!$1:$1048576,$A416,BB$1))","v":""},{"$f":"IF($A416=\"N/A\",Ref!$B$36,INDEX(Ranks!$1:$1048576,$A416,BC$1))","v":""},{"$f":"IF($A416=\"N/A\",Ref!$B$36,INDEX(Ranks!$1:$1048576,$A416,BD$1))","v":""},{"$f":"IF($A416=\"N/A\",Ref!$B$36,INDEX(Ranks!$1:$1048576,$A416,BE$1))","v":""},{"$f":"IF($A416=\"N/A\",Ref!$B$36,INDEX(Ranks!$1:$1048576,$A416,BF$1))","v":""},{"$f":"IF($A416=\"N/A\",Ref!$B$36,INDEX(Ranks!$1:$1048576,$A416,BG$1))","v":""},{"$f":"IF($A416=\"N/A\",Ref!$B$36,INDEX(Ranks!$1:$1048576,$A416,BH$1))","v":""},{"$f":"IF($A416=\"N/A\",Ref!$B$36,INDEX(Ranks!$1:$1048576,$A416,BI$1))","v":""},{"$f":"IF($A416=\"N/A\",Ref!$B$36,INDEX(Ranks!$1:$1048576,$A416,BJ$1))","v":""},{"$f":"IF($A416=\"N/A\",Ref!$B$36,INDEX(Ranks!$1:$1048576,$A416,BK$1))","v":""},{"$f":"IF($A416=\"N/A\",Ref!$B$36,INDEX(Ranks!$1:$1048576,$A416,BL$1))","v":""},{"$f":"IF($A416=\"N/A\",Ref!$B$36,INDEX(Ranks!$1:$1048576,$A416,BM$1))","v":""},{"$f":"IF($A416=\"N/A\",Ref!$B$36,INDEX(Ranks!$1:$1048576,$A416,BN$1))","v":""},{"$f":"IF($A416=\"N/A\",Ref!$B$36,INDEX(Ranks!$1:$1048576,$A416,BO$1))","v":""},{"$f":"IF($A416=\"N/A\",Ref!$B$36,INDEX(Ranks!$1:$1048576,$A416,BP$1))","v":""},{"$f":"IF($A416=\"N/A\",Ref!$B$36,INDEX(Ranks!$1:$1048576,$A416,BQ$1))","v":""},{"$f":"IF($A416=\"N/A\",Ref!$B$36,INDEX(Ranks!$1:$1048576,$A416,BR$1))","v":""},{"$f":"IF($A416=\"N/A\",Ref!$B$36,INDEX(Ranks!$1:$1048576,$A416,BS$1))","v":""},{"$f":"IF($A416=\"N/A\",Ref!$B$36,INDEX(Ranks!$1:$1048576,$A416,BT$1))","v":""},{"$f":"IF($A416=\"N/A\",Ref!$B$36,INDEX(Ranks!$1:$1048576,$A416,BU$1))","v":""},{"$f":"IF($A416=\"N/A\",Ref!$B$36,INDEX(Ranks!$1:$1048576,$A416,BV$1))","v":""},{"$f":"IF($A416=\"N/A\",Ref!$B$36,INDEX(Ranks!$1:$1048576,$A416,BW$1))","v":""},{"$f":"IF($A416=\"N/A\",Ref!$B$36,INDEX(Ranks!$1:$1048576,$A416,BX$1))","v":""},{"$f":"IF($A416=\"N/A\",Ref!$B$36,INDEX(Ranks!$1:$1048576,$A416,BY$1))","v":""},{"$f":"IF($A416=\"N/A\",Ref!$B$36,INDEX(Ranks!$1:$1048576,$A416,BZ$1))","v":""},{"$f":"IF($A416=\"N/A\",Ref!$B$36,INDEX(Ranks!$1:$1048576,$A416,CA$1))","v":""},{"$f":"IF($A416=\"N/A\",Ref!$B$36,INDEX(Ranks!$1:$1048576,$A416,CB$1))","v":""},{"$f":"IF($A416=\"N/A\",Ref!$B$36,INDEX(Ranks!$1:$1048576,$A416,CC$1))","v":""},{"$f":"IF($A416=\"N/A\",Ref!$B$36,INDEX(Ranks!$1:$1048576,$A416,CD$1))","v":""},{"$f":"IF($A416=\"N/A\",Ref!$B$36,INDEX(Ranks!$1:$1048576,$A416,CE$1))","v":""},{"$f":"IF($A416=\"N/A\",Ref!$B$36,INDEX(Ranks!$1:$1048576,$A416,CF$1))","v":""},{"$f":"IF($A416=\"N/A\",Ref!$B$36,INDEX(Ranks!$1:$1048576,$A416,CG$1))","v":""},{"$f":"IF($A416=\"N/A\",Ref!$B$36,INDEX(Ranks!$1:$1048576,$A416,CH$1))","v":""},{"$f":"IF($A416=\"N/A\",Ref!$B$36,INDEX(Ranks!$1:$1048576,$A416,CI$1))","v":""},{"$f":"IF($A416=\"N/A\",Ref!$B$36,INDEX(Ranks!$1:$1048576,$A416,CJ$1))","v":""},{"$f":"IF($A416=\"N/A\",Ref!$B$36,INDEX(Ranks!$1:$1048576,$A416,CK$1))","v":""},{"$f":"IF($A416=\"N/A\",Ref!$B$36,INDEX(Ranks!$1:$1048576,$A416,CL$1))","v":""},{"$f":"IF($A416=\"N/A\",Ref!$B$36,INDEX(Ranks!$1:$1048576,$A416,CM$1))","v":""},{"$f":"IF($A416=\"N/A\",Ref!$B$36,INDEX(Ranks!$1:$1048576,$A416,CN$1))","v":""},{"$f":"IF($A416=\"N/A\",Ref!$B$36,INDEX(Ranks!$1:$1048576,$A416,CO$1))","v":""},{"$f":"IF($A416=\"N/A\",Ref!$B$36,INDEX(Ranks!$1:$1048576,$A416,CP$1))","v":""},{"$f":"IF($A416=\"N/A\",Ref!$B$36,INDEX(Ranks!$1:$1048576,$A416,CQ$1))","v":""},{"$f":"IF($A416=\"N/A\",Ref!$B$36,INDEX(Ranks!$1:$1048576,$A416,CR$1))","v":""},{"$f":"IF($A416=\"N/A\",Ref!$B$36,INDEX(Ranks!$1:$1048576,$A416,CS$1))","v":""},{"$f":"IF($A416=\"N/A\",Ref!$B$36,INDEX(Ranks!$1:$1048576,$A416,CT$1))","v":""},{"$f":"IF($A416=\"N/A\",Ref!$B$36,INDEX(Ranks!$1:$1048576,$A416,CU$1))","v":""},{"$f":"IF($A416=\"N/A\",Ref!$B$36,INDEX(Ranks!$1:$1048576,$A416,CV$1))","v":""},{"$f":"IF($A416=\"N/A\",Ref!$B$36,INDEX(Ranks!$1:$1048576,$A416,CW$1))","v":""},{"$f":"IF($A416=\"N/A\",Ref!$B$36,INDEX(Ranks!$1:$1048576,$A416,CX$1))","v":""},{"$f":"IF($A416=\"N/A\",Ref!$B$36,INDEX(Ranks!$1:$1048576,$A416,CY$1))","v":""},{"$f":"IF($A416=\"N/A\",Ref!$B$36,INDEX(Ranks!$1:$1048576,$A416,CZ$1))","v":""},{"$f":"IF($A416=\"N/A\",Ref!$B$36,INDEX(Ranks!$1:$1048576,$A416,DA$1))","v":""},{"$f":"IF($A416=\"N/A\",Ref!$B$36,INDEX(Ranks!$1:$1048576,$A416,DB$1))","v":""},{"$f":"IF($A416=\"N/A\",Ref!$B$36,INDEX(Ranks!$1:$1048576,$A416,DC$1))","v":""},{"$f":"IF($A416=\"N/A\",Ref!$B$36,INDEX(Ranks!$1:$1048576,$A416,DD$1))","v":""},{"$f":"IF($A416=\"N/A\",Ref!$B$36,INDEX(Ranks!$1:$1048576,$A416,DE$1))","v":""},{"$f":"IF($A416=\"N/A\",Ref!$B$36,INDEX(Ranks!$1:$1048576,$A416,DF$1))","v":""},{"$f":"IF($A416=\"N/A\",Ref!$B$36,INDEX(Ranks!$1:$1048576,$A416,DG$1))","v":""},{"$f":"IF($A416=\"N/A\",Ref!$B$36,INDEX(Ranks!$1:$1048576,$A416,DH$1))","v":""},{"$f":"IF($A416=\"N/A\",Ref!$B$36,INDEX(Ranks!$1:$1048576,$A416,DI$1))","v":""},{"$f":"IF($A416=\"N/A\",Ref!$B$36,INDEX(Ranks!$1:$1048576,$A416,DJ$1))","v":""},{"$f":"IF($A416=\"N/A\",Ref!$B$36,INDEX(Ranks!$1:$1048576,$A416,DK$1))","v":""},{"$f":"IF($A416=\"N/A\",Ref!$B$36,INDEX(Ranks!$1:$1048576,$A416,DL$1))","v":""},{"$f":"IF($A416=\"N/A\",Ref!$B$36,INDEX(Ranks!$1:$1048576,$A416,DM$1))","v":""},{"$f":"IF($A416=\"N/A\",Ref!$B$36,INDEX(Ranks!$1:$1048576,$A416,DN$1))","v":""},{"$f":"IF($A416=\"N/A\",Ref!$B$36,INDEX(Ranks!$1:$1048576,$A416,DO$1))","v":""},{"$f":"IF($A416=\"N/A\",Ref!$B$36,INDEX(Ranks!$1:$1048576,$A416,DP$1))","v":""},{"$f":"IF($A416=\"N/A\",Ref!$B$36,INDEX(Ranks!$1:$1048576,$A416,DQ$1))","v":""},{"$f":"IF($A416=\"N/A\",Ref!$B$36,INDEX(Ranks!$1:$1048576,$A416,DR$1))","v":""},{"$f":"IF($A416=\"N/A\",Ref!$B$36,INDEX(Ranks!$1:$1048576,$A416,DS$1))","v":""},{"$f":"IF($A416=\"N/A\",Ref!$B$36,INDEX(Ranks!$1:$1048576,$A416,DT$1))","v":""},{"$f":"IF($A416=\"N/A\",Ref!$B$36,INDEX(Ranks!$1:$1048576,$A416,DU$1))","v":""},{"$f":"IF($A416=\"N/A\",Ref!$B$36,INDEX(Ranks!$1:$1048576,$A416,DV$1))","v":""},{"$f":"IF($A416=\"N/A\",Ref!$B$36,INDEX(Ranks!$1:$1048576,$A416,DW$1))","v":""},{"$f":"IF($A416=\"N/A\",Ref!$B$36,INDEX(Ranks!$1:$1048576,$A416,DX$1))","v":""},{"$f":"IF($A416=\"N/A\",Ref!$B$36,INDEX(Ranks!$1:$1048576,$A416,DY$1))","v":""},{"$f":"IF($A416=\"N/A\",Ref!$B$36,INDEX(Ranks!$1:$1048576,$A416,DZ$1))","v":""},{"$f":"IF($A416=\"N/A\",Ref!$B$36,INDEX(Ranks!$1:$1048576,$A416,EA$1))","v":""},{"$f":"IF($A416=\"N/A\",Ref!$B$36,INDEX(Ranks!$1:$1048576,$A416,EB$1))","v":""}]
[{"$f":"IFERROR(MATCH('Portfolio Page'!L417,Ranks!L:L,0),\"N/A\")","v":"N/A"},null,{"$f":"IF($A417=\"N/A\",\"\",INDEX(Ranks!$1:$1048576,$A417,C$1))","v":""},{"$f":"IF($A417=\"N/A\",Ref!$B$36,INDEX(Ranks!$1:$1048576,$A417,D$1))","v":""},{"$f":"IF($A417=\"N/A\",Ref!$B$36,INDEX(Ranks!$1:$1048576,$A417,E$1))","v":""},{"$f":"IF($A417=\"N/A\",\"\",INDEX(Ranks!$1:$1048576,$A417,F$1))","v":""},{"$f":"IF($A417=\"N/A\",\"\",INDEX(Ranks!$1:$1048576,$A417,G$1))","v":""},{"$f":"IF($A417=\"N/A\",\"\",INDEX(Ranks!$1:$1048576,$A417,H$1))","v":""},{"$f":"IF($A417=\"N/A\",\"\",INDEX(Ranks!$1:$1048576,$A417,I$1))","v":""},{"$f":"IF($A417=\"N/A\",\"\",INDEX(Ranks!$1:$1048576,$A417,J$1))","v":""},{"$f":"IF($A417=\"N/A\",\"\",INDEX(Ranks!$1:$1048576,$A417,K$1))","v":""},null,{"$f":"IF($A417=\"N/A\",Ref!$B$36,INDEX(Ranks!$1:$1048576,$A417,M$1))","v":""},{"$f":"IF($A417=\"N/A\",Ref!$B$36,INDEX(Ranks!$1:$1048576,$A417,N$1))","v":""},{"$f":"IF($A417=\"N/A\",Ref!$B$36,INDEX(Ranks!$1:$1048576,$A417,O$1))","v":""},{"$f":"IF($A417=\"N/A\",Ref!$B$36,INDEX(Ranks!$1:$1048576,$A417,P$1))","v":""},{"$f":"IF($A417=\"N/A\",Ref!$B$36,INDEX(Ranks!$1:$1048576,$A417,Q$1))","v":""},{"$f":"IF($A417=\"N/A\",Ref!$B$36,INDEX(Ranks!$1:$1048576,$A417,R$1))","v":""},{"$f":"IF($A417=\"N/A\",Ref!$B$36,INDEX(Ranks!$1:$1048576,$A417,S$1))","v":""},{"$f":"IF($A417=\"N/A\",Ref!$B$36,INDEX(Ranks!$1:$1048576,$A417,T$1))","v":""},{"$f":"IF($A417=\"N/A\",Ref!$B$36,INDEX(Ranks!$1:$1048576,$A417,U$1))","v":""},{"$f":"IF($A417=\"N/A\",Ref!$B$36,INDEX(Ranks!$1:$1048576,$A417,V$1))","v":""},{"$f":"IF($A417=\"N/A\",Ref!$B$36,INDEX(Ranks!$1:$1048576,$A417,W$1))","v":""},{"$f":"IF($A417=\"N/A\",Ref!$B$36,INDEX(Ranks!$1:$1048576,$A417,X$1))","v":""},{"$f":"IF($A417=\"N/A\",Ref!$B$36,INDEX(Ranks!$1:$1048576,$A417,Y$1))","v":""},{"$f":"IF($A417=\"N/A\",Ref!$B$36,INDEX(Ranks!$1:$1048576,$A417,Z$1))","v":""},{"$f":"IF($A417=\"N/A\",Ref!$B$36,INDEX(Ranks!$1:$1048576,$A417,AA$1))","v":""},{"$f":"IF($A417=\"N/A\",Ref!$B$36,INDEX(Ranks!$1:$1048576,$A417,AB$1))","v":""},{"$f":"IF($A417=\"N/A\",Ref!$B$36,INDEX(Ranks!$1:$1048576,$A417,AC$1))","v":""},{"$f":"IF($A417=\"N/A\",Ref!$B$36,INDEX(Ranks!$1:$1048576,$A417,AD$1))","v":""},{"$f":"IF($A417=\"N/A\",Ref!$B$36,INDEX(Ranks!$1:$1048576,$A417,AE$1))","v":""},{"$f":"IF($A417=\"N/A\",Ref!$B$36,INDEX(Ranks!$1:$1048576,$A417,AF$1))","v":""},{"$f":"IF($A417=\"N/A\",Ref!$B$36,INDEX(Ranks!$1:$1048576,$A417,AG$1))","v":""},{"$f":"IF($A417=\"N/A\",Ref!$B$36,INDEX(Ranks!$1:$1048576,$A417,AH$1))","v":""},{"$f":"IF($A417=\"N/A\",Ref!$B$36,INDEX(Ranks!$1:$1048576,$A417,AI$1))","v":""},{"$f":"IF($A417=\"N/A\",Ref!$B$36,INDEX(Ranks!$1:$1048576,$A417,AJ$1))","v":""},{"$f":"IF($A417=\"N/A\",Ref!$B$36,INDEX(Ranks!$1:$1048576,$A417,AK$1))","v":""},{"$f":"IF($A417=\"N/A\",Ref!$B$36,INDEX(Ranks!$1:$1048576,$A417,AL$1))","v":""},{"$f":"IF($A417=\"N/A\",Ref!$B$36,INDEX(Ranks!$1:$1048576,$A417,AM$1))","v":""},{"$f":"IF($A417=\"N/A\",Ref!$B$36,INDEX(Ranks!$1:$1048576,$A417,AN$1))","v":""},{"$f":"IF($A417=\"N/A\",Ref!$B$36,INDEX(Ranks!$1:$1048576,$A417,AO$1))","v":""},{"$f":"IF($A417=\"N/A\",Ref!$B$36,INDEX(Ranks!$1:$1048576,$A417,AP$1))","v":""},{"$f":"IF($A417=\"N/A\",Ref!$B$36,INDEX(Ranks!$1:$1048576,$A417,AQ$1))","v":""},{"$f":"IF($A417=\"N/A\",Ref!$B$36,INDEX(Ranks!$1:$1048576,$A417,AR$1))","v":""},{"$f":"IF($A417=\"N/A\",Ref!$B$36,INDEX(Ranks!$1:$1048576,$A417,AS$1))","v":""},{"$f":"IF($A417=\"N/A\",Ref!$B$36,INDEX(Ranks!$1:$1048576,$A417,AT$1))","v":""},{"$f":"IF($A417=\"N/A\",Ref!$B$36,INDEX(Ranks!$1:$1048576,$A417,AU$1))","v":""},{"$f":"IF($A417=\"N/A\",Ref!$B$36,INDEX(Ranks!$1:$1048576,$A417,AV$1))","v":""},{"$f":"IF($A417=\"N/A\",Ref!$B$36,INDEX(Ranks!$1:$1048576,$A417,AW$1))","v":""},{"$f":"IF($A417=\"N/A\",Ref!$B$36,INDEX(Ranks!$1:$1048576,$A417,AX$1))","v":""},{"$f":"IF($A417=\"N/A\",Ref!$B$36,INDEX(Ranks!$1:$1048576,$A417,AY$1))","v":""},{"$f":"IF($A417=\"N/A\",Ref!$B$36,INDEX(Ranks!$1:$1048576,$A417,AZ$1))","v":""},{"$f":"IF($A417=\"N/A\",Ref!$B$36,INDEX(Ranks!$1:$1048576,$A417,BA$1))","v":""},{"$f":"IF($A417=\"N/A\",Ref!$B$36,INDEX(Ranks!$1:$1048576,$A417,BB$1))","v":""},{"$f":"IF($A417=\"N/A\",Ref!$B$36,INDEX(Ranks!$1:$1048576,$A417,BC$1))","v":""},{"$f":"IF($A417=\"N/A\",Ref!$B$36,INDEX(Ranks!$1:$1048576,$A417,BD$1))","v":""},{"$f":"IF($A417=\"N/A\",Ref!$B$36,INDEX(Ranks!$1:$1048576,$A417,BE$1))","v":""},{"$f":"IF($A417=\"N/A\",Ref!$B$36,INDEX(Ranks!$1:$1048576,$A417,BF$1))","v":""},{"$f":"IF($A417=\"N/A\",Ref!$B$36,INDEX(Ranks!$1:$1048576,$A417,BG$1))","v":""},{"$f":"IF($A417=\"N/A\",Ref!$B$36,INDEX(Ranks!$1:$1048576,$A417,BH$1))","v":""},{"$f":"IF($A417=\"N/A\",Ref!$B$36,INDEX(Ranks!$1:$1048576,$A417,BI$1))","v":""},{"$f":"IF($A417=\"N/A\",Ref!$B$36,INDEX(Ranks!$1:$1048576,$A417,BJ$1))","v":""},{"$f":"IF($A417=\"N/A\",Ref!$B$36,INDEX(Ranks!$1:$1048576,$A417,BK$1))","v":""},{"$f":"IF($A417=\"N/A\",Ref!$B$36,INDEX(Ranks!$1:$1048576,$A417,BL$1))","v":""},{"$f":"IF($A417=\"N/A\",Ref!$B$36,INDEX(Ranks!$1:$1048576,$A417,BM$1))","v":""},{"$f":"IF($A417=\"N/A\",Ref!$B$36,INDEX(Ranks!$1:$1048576,$A417,BN$1))","v":""},{"$f":"IF($A417=\"N/A\",Ref!$B$36,INDEX(Ranks!$1:$1048576,$A417,BO$1))","v":""},{"$f":"IF($A417=\"N/A\",Ref!$B$36,INDEX(Ranks!$1:$1048576,$A417,BP$1))","v":""},{"$f":"IF($A417=\"N/A\",Ref!$B$36,INDEX(Ranks!$1:$1048576,$A417,BQ$1))","v":""},{"$f":"IF($A417=\"N/A\",Ref!$B$36,INDEX(Ranks!$1:$1048576,$A417,BR$1))","v":""},{"$f":"IF($A417=\"N/A\",Ref!$B$36,INDEX(Ranks!$1:$1048576,$A417,BS$1))","v":""},{"$f":"IF($A417=\"N/A\",Ref!$B$36,INDEX(Ranks!$1:$1048576,$A417,BT$1))","v":""},{"$f":"IF($A417=\"N/A\",Ref!$B$36,INDEX(Ranks!$1:$1048576,$A417,BU$1))","v":""},{"$f":"IF($A417=\"N/A\",Ref!$B$36,INDEX(Ranks!$1:$1048576,$A417,BV$1))","v":""},{"$f":"IF($A417=\"N/A\",Ref!$B$36,INDEX(Ranks!$1:$1048576,$A417,BW$1))","v":""},{"$f":"IF($A417=\"N/A\",Ref!$B$36,INDEX(Ranks!$1:$1048576,$A417,BX$1))","v":""},{"$f":"IF($A417=\"N/A\",Ref!$B$36,INDEX(Ranks!$1:$1048576,$A417,BY$1))","v":""},{"$f":"IF($A417=\"N/A\",Ref!$B$36,INDEX(Ranks!$1:$1048576,$A417,BZ$1))","v":""},{"$f":"IF($A417=\"N/A\",Ref!$B$36,INDEX(Ranks!$1:$1048576,$A417,CA$1))","v":""},{"$f":"IF($A417=\"N/A\",Ref!$B$36,INDEX(Ranks!$1:$1048576,$A417,CB$1))","v":""},{"$f":"IF($A417=\"N/A\",Ref!$B$36,INDEX(Ranks!$1:$1048576,$A417,CC$1))","v":""},{"$f":"IF($A417=\"N/A\",Ref!$B$36,INDEX(Ranks!$1:$1048576,$A417,CD$1))","v":""},{"$f":"IF($A417=\"N/A\",Ref!$B$36,INDEX(Ranks!$1:$1048576,$A417,CE$1))","v":""},{"$f":"IF($A417=\"N/A\",Ref!$B$36,INDEX(Ranks!$1:$1048576,$A417,CF$1))","v":""},{"$f":"IF($A417=\"N/A\",Ref!$B$36,INDEX(Ranks!$1:$1048576,$A417,CG$1))","v":""},{"$f":"IF($A417=\"N/A\",Ref!$B$36,INDEX(Ranks!$1:$1048576,$A417,CH$1))","v":""},{"$f":"IF($A417=\"N/A\",Ref!$B$36,INDEX(Ranks!$1:$1048576,$A417,CI$1))","v":""},{"$f":"IF($A417=\"N/A\",Ref!$B$36,INDEX(Ranks!$1:$1048576,$A417,CJ$1))","v":""},{"$f":"IF($A417=\"N/A\",Ref!$B$36,INDEX(Ranks!$1:$1048576,$A417,CK$1))","v":""},{"$f":"IF($A417=\"N/A\",Ref!$B$36,INDEX(Ranks!$1:$1048576,$A417,CL$1))","v":""},{"$f":"IF($A417=\"N/A\",Ref!$B$36,INDEX(Ranks!$1:$1048576,$A417,CM$1))","v":""},{"$f":"IF($A417=\"N/A\",Ref!$B$36,INDEX(Ranks!$1:$1048576,$A417,CN$1))","v":""},{"$f":"IF($A417=\"N/A\",Ref!$B$36,INDEX(Ranks!$1:$1048576,$A417,CO$1))","v":""},{"$f":"IF($A417=\"N/A\",Ref!$B$36,INDEX(Ranks!$1:$1048576,$A417,CP$1))","v":""},{"$f":"IF($A417=\"N/A\",Ref!$B$36,INDEX(Ranks!$1:$1048576,$A417,CQ$1))","v":""},{"$f":"IF($A417=\"N/A\",Ref!$B$36,INDEX(Ranks!$1:$1048576,$A417,CR$1))","v":""},{"$f":"IF($A417=\"N/A\",Ref!$B$36,INDEX(Ranks!$1:$1048576,$A417,CS$1))","v":""},{"$f":"IF($A417=\"N/A\",Ref!$B$36,INDEX(Ranks!$1:$1048576,$A417,CT$1))","v":""},{"$f":"IF($A417=\"N/A\",Ref!$B$36,INDEX(Ranks!$1:$1048576,$A417,CU$1))","v":""},{"$f":"IF($A417=\"N/A\",Ref!$B$36,INDEX(Ranks!$1:$1048576,$A417,CV$1))","v":""},{"$f":"IF($A417=\"N/A\",Ref!$B$36,INDEX(Ranks!$1:$1048576,$A417,CW$1))","v":""},{"$f":"IF($A417=\"N/A\",Ref!$B$36,INDEX(Ranks!$1:$1048576,$A417,CX$1))","v":""},{"$f":"IF($A417=\"N/A\",Ref!$B$36,INDEX(Ranks!$1:$1048576,$A417,CY$1))","v":""},{"$f":"IF($A417=\"N/A\",Ref!$B$36,INDEX(Ranks!$1:$1048576,$A417,CZ$1))","v":""},{"$f":"IF($A417=\"N/A\",Ref!$B$36,INDEX(Ranks!$1:$1048576,$A417,DA$1))","v":""},{"$f":"IF($A417=\"N/A\",Ref!$B$36,INDEX(Ranks!$1:$1048576,$A417,DB$1))","v":""},{"$f":"IF($A417=\"N/A\",Ref!$B$36,INDEX(Ranks!$1:$1048576,$A417,DC$1))","v":""},{"$f":"IF($A417=\"N/A\",Ref!$B$36,INDEX(Ranks!$1:$1048576,$A417,DD$1))","v":""},{"$f":"IF($A417=\"N/A\",Ref!$B$36,INDEX(Ranks!$1:$1048576,$A417,DE$1))","v":""},{"$f":"IF($A417=\"N/A\",Ref!$B$36,INDEX(Ranks!$1:$1048576,$A417,DF$1))","v":""},{"$f":"IF($A417=\"N/A\",Ref!$B$36,INDEX(Ranks!$1:$1048576,$A417,DG$1))","v":""},{"$f":"IF($A417=\"N/A\",Ref!$B$36,INDEX(Ranks!$1:$1048576,$A417,DH$1))","v":""},{"$f":"IF($A417=\"N/A\",Ref!$B$36,INDEX(Ranks!$1:$1048576,$A417,DI$1))","v":""},{"$f":"IF($A417=\"N/A\",Ref!$B$36,INDEX(Ranks!$1:$1048576,$A417,DJ$1))","v":""},{"$f":"IF($A417=\"N/A\",Ref!$B$36,INDEX(Ranks!$1:$1048576,$A417,DK$1))","v":""},{"$f":"IF($A417=\"N/A\",Ref!$B$36,INDEX(Ranks!$1:$1048576,$A417,DL$1))","v":""},{"$f":"IF($A417=\"N/A\",Ref!$B$36,INDEX(Ranks!$1:$1048576,$A417,DM$1))","v":""},{"$f":"IF($A417=\"N/A\",Ref!$B$36,INDEX(Ranks!$1:$1048576,$A417,DN$1))","v":""},{"$f":"IF($A417=\"N/A\",Ref!$B$36,INDEX(Ranks!$1:$1048576,$A417,DO$1))","v":""},{"$f":"IF($A417=\"N/A\",Ref!$B$36,INDEX(Ranks!$1:$1048576,$A417,DP$1))","v":""},{"$f":"IF($A417=\"N/A\",Ref!$B$36,INDEX(Ranks!$1:$1048576,$A417,DQ$1))","v":""},{"$f":"IF($A417=\"N/A\",Ref!$B$36,INDEX(Ranks!$1:$1048576,$A417,DR$1))","v":""},{"$f":"IF($A417=\"N/A\",Ref!$B$36,INDEX(Ranks!$1:$1048576,$A417,DS$1))","v":""},{"$f":"IF($A417=\"N/A\",Ref!$B$36,INDEX(Ranks!$1:$1048576,$A417,DT$1))","v":""},{"$f":"IF($A417=\"N/A\",Ref!$B$36,INDEX(Ranks!$1:$1048576,$A417,DU$1))","v":""},{"$f":"IF($A417=\"N/A\",Ref!$B$36,INDEX(Ranks!$1:$1048576,$A417,DV$1))","v":""},{"$f":"IF($A417=\"N/A\",Ref!$B$36,INDEX(Ranks!$1:$1048576,$A417,DW$1))","v":""},{"$f":"IF($A417=\"N/A\",Ref!$B$36,INDEX(Ranks!$1:$1048576,$A417,DX$1))","v":""},{"$f":"IF($A417=\"N/A\",Ref!$B$36,INDEX(Ranks!$1:$1048576,$A417,DY$1))","v":""},{"$f":"IF($A417=\"N/A\",Ref!$B$36,INDEX(Ranks!$1:$1048576,$A417,DZ$1))","v":""},{"$f":"IF($A417=\"N/A\",Ref!$B$36,INDEX(Ranks!$1:$1048576,$A417,EA$1))","v":""},{"$f":"IF($A417=\"N/A\",Ref!$B$36,INDEX(Ranks!$1:$1048576,$A417,EB$1))","v":""}]
[{"$f":"IFERROR(MATCH('Portfolio Page'!L418,Ranks!L:L,0),\"N/A\")","v":"N/A"},null,{"$f":"IF($A418=\"N/A\",\"\",INDEX(Ranks!$1:$1048576,$A418,C$1))","v":""},{"$f":"IF($A418=\"N/A\",Ref!$B$36,INDEX(Ranks!$1:$1048576,$A418,D$1))","v":""},{"$f":"IF($A418=\"N/A\",Ref!$B$36,INDEX(Ranks!$1:$1048576,$A418,E$1))","v":""},{"$f":"IF($A418=\"N/A\",\"\",INDEX(Ranks!$1:$1048576,$A418,F$1))","v":""},{"$f":"IF($A418=\"N/A\",\"\",INDEX(Ranks!$1:$1048576,$A418,G$1))","v":""},{"$f":"IF($A418=\"N/A\",\"\",INDEX(Ranks!$1:$1048576,$A418,H$1))","v":""},{"$f":"IF($A418=\"N/A\",\"\",INDEX(Ranks!$1:$1048576,$A418,I$1))","v":""},{"$f":"IF($A418=\"N/A\",\"\",INDEX(Ranks!$1:$1048576,$A418,J$1))","v":""},{"$f":"IF($A418=\"N/A\",\"\",INDEX(Ranks!$1:$1048576,$A418,K$1))","v":""},null,{"$f":"IF($A418=\"N/A\",Ref!$B$36,INDEX(Ranks!$1:$1048576,$A418,M$1))","v":""},{"$f":"IF($A418=\"N/A\",Ref!$B$36,INDEX(Ranks!$1:$1048576,$A418,N$1))","v":""},{"$f":"IF($A418=\"N/A\",Ref!$B$36,INDEX(Ranks!$1:$1048576,$A418,O$1))","v":""},{"$f":"IF($A418=\"N/A\",Ref!$B$36,INDEX(Ranks!$1:$1048576,$A418,P$1))","v":""},{"$f":"IF($A418=\"N/A\",Ref!$B$36,INDEX(Ranks!$1:$1048576,$A418,Q$1))","v":""},{"$f":"IF($A418=\"N/A\",Ref!$B$36,INDEX(Ranks!$1:$1048576,$A418,R$1))","v":""},{"$f":"IF($A418=\"N/A\",Ref!$B$36,INDEX(Ranks!$1:$1048576,$A418,S$1))","v":""},{"$f":"IF($A418=\"N/A\",Ref!$B$36,INDEX(Ranks!$1:$1048576,$A418,T$1))","v":""},{"$f":"IF($A418=\"N/A\",Ref!$B$36,INDEX(Ranks!$1:$1048576,$A418,U$1))","v":""},{"$f":"IF($A418=\"N/A\",Ref!$B$36,INDEX(Ranks!$1:$1048576,$A418,V$1))","v":""},{"$f":"IF($A418=\"N/A\",Ref!$B$36,INDEX(Ranks!$1:$1048576,$A418,W$1))","v":""},{"$f":"IF($A418=\"N/A\",Ref!$B$36,INDEX(Ranks!$1:$1048576,$A418,X$1))","v":""},{"$f":"IF($A418=\"N/A\",Ref!$B$36,INDEX(Ranks!$1:$1048576,$A418,Y$1))","v":""},{"$f":"IF($A418=\"N/A\",Ref!$B$36,INDEX(Ranks!$1:$1048576,$A418,Z$1))","v":""},{"$f":"IF($A418=\"N/A\",Ref!$B$36,INDEX(Ranks!$1:$1048576,$A418,AA$1))","v":""},{"$f":"IF($A418=\"N/A\",Ref!$B$36,INDEX(Ranks!$1:$1048576,$A418,AB$1))","v":""},{"$f":"IF($A418=\"N/A\",Ref!$B$36,INDEX(Ranks!$1:$1048576,$A418,AC$1))","v":""},{"$f":"IF($A418=\"N/A\",Ref!$B$36,INDEX(Ranks!$1:$1048576,$A418,AD$1))","v":""},{"$f":"IF($A418=\"N/A\",Ref!$B$36,INDEX(Ranks!$1:$1048576,$A418,AE$1))","v":""},{"$f":"IF($A418=\"N/A\",Ref!$B$36,INDEX(Ranks!$1:$1048576,$A418,AF$1))","v":""},{"$f":"IF($A418=\"N/A\",Ref!$B$36,INDEX(Ranks!$1:$1048576,$A418,AG$1))","v":""},{"$f":"IF($A418=\"N/A\",Ref!$B$36,INDEX(Ranks!$1:$1048576,$A418,AH$1))","v":""},{"$f":"IF($A418=\"N/A\",Ref!$B$36,INDEX(Ranks!$1:$1048576,$A418,AI$1))","v":""},{"$f":"IF($A418=\"N/A\",Ref!$B$36,INDEX(Ranks!$1:$1048576,$A418,AJ$1))","v":""},{"$f":"IF($A418=\"N/A\",Ref!$B$36,INDEX(Ranks!$1:$1048576,$A418,AK$1))","v":""},{"$f":"IF($A418=\"N/A\",Ref!$B$36,INDEX(Ranks!$1:$1048576,$A418,AL$1))","v":""},{"$f":"IF($A418=\"N/A\",Ref!$B$36,INDEX(Ranks!$1:$1048576,$A418,AM$1))","v":""},{"$f":"IF($A418=\"N/A\",Ref!$B$36,INDEX(Ranks!$1:$1048576,$A418,AN$1))","v":""},{"$f":"IF($A418=\"N/A\",Ref!$B$36,INDEX(Ranks!$1:$1048576,$A418,AO$1))","v":""},{"$f":"IF($A418=\"N/A\",Ref!$B$36,INDEX(Ranks!$1:$1048576,$A418,AP$1))","v":""},{"$f":"IF($A418=\"N/A\",Ref!$B$36,INDEX(Ranks!$1:$1048576,$A418,AQ$1))","v":""},{"$f":"IF($A418=\"N/A\",Ref!$B$36,INDEX(Ranks!$1:$1048576,$A418,AR$1))","v":""},{"$f":"IF($A418=\"N/A\",Ref!$B$36,INDEX(Ranks!$1:$1048576,$A418,AS$1))","v":""},{"$f":"IF($A418=\"N/A\",Ref!$B$36,INDEX(Ranks!$1:$1048576,$A418,AT$1))","v":""},{"$f":"IF($A418=\"N/A\",Ref!$B$36,INDEX(Ranks!$1:$1048576,$A418,AU$1))","v":""},{"$f":"IF($A418=\"N/A\",Ref!$B$36,INDEX(Ranks!$1:$1048576,$A418,AV$1))","v":""},{"$f":"IF($A418=\"N/A\",Ref!$B$36,INDEX(Ranks!$1:$1048576,$A418,AW$1))","v":""},{"$f":"IF($A418=\"N/A\",Ref!$B$36,INDEX(Ranks!$1:$1048576,$A418,AX$1))","v":""},{"$f":"IF($A418=\"N/A\",Ref!$B$36,INDEX(Ranks!$1:$1048576,$A418,AY$1))","v":""},{"$f":"IF($A418=\"N/A\",Ref!$B$36,INDEX(Ranks!$1:$1048576,$A418,AZ$1))","v":""},{"$f":"IF($A418=\"N/A\",Ref!$B$36,INDEX(Ranks!$1:$1048576,$A418,BA$1))","v":""},{"$f":"IF($A418=\"N/A\",Ref!$B$36,INDEX(Ranks!$1:$1048576,$A418,BB$1))","v":""},{"$f":"IF($A418=\"N/A\",Ref!$B$36,INDEX(Ranks!$1:$1048576,$A418,BC$1))","v":""},{"$f":"IF($A418=\"N/A\",Ref!$B$36,INDEX(Ranks!$1:$1048576,$A418,BD$1))","v":""},{"$f":"IF($A418=\"N/A\",Ref!$B$36,INDEX(Ranks!$1:$1048576,$A418,BE$1))","v":""},{"$f":"IF($A418=\"N/A\",Ref!$B$36,INDEX(Ranks!$1:$1048576,$A418,BF$1))","v":""},{"$f":"IF($A418=\"N/A\",Ref!$B$36,INDEX(Ranks!$1:$1048576,$A418,BG$1))","v":""},{"$f":"IF($A418=\"N/A\",Ref!$B$36,INDEX(Ranks!$1:$1048576,$A418,BH$1))","v":""},{"$f":"IF($A418=\"N/A\",Ref!$B$36,INDEX(Ranks!$1:$1048576,$A418,BI$1))","v":""},{"$f":"IF($A418=\"N/A\",Ref!$B$36,INDEX(Ranks!$1:$1048576,$A418,BJ$1))","v":""},{"$f":"IF($A418=\"N/A\",Ref!$B$36,INDEX(Ranks!$1:$1048576,$A418,BK$1))","v":""},{"$f":"IF($A418=\"N/A\",Ref!$B$36,INDEX(Ranks!$1:$1048576,$A418,BL$1))","v":""},{"$f":"IF($A418=\"N/A\",Ref!$B$36,INDEX(Ranks!$1:$1048576,$A418,BM$1))","v":""},{"$f":"IF($A418=\"N/A\",Ref!$B$36,INDEX(Ranks!$1:$1048576,$A418,BN$1))","v":""},{"$f":"IF($A418=\"N/A\",Ref!$B$36,INDEX(Ranks!$1:$1048576,$A418,BO$1))","v":""},{"$f":"IF($A418=\"N/A\",Ref!$B$36,INDEX(Ranks!$1:$1048576,$A418,BP$1))","v":""},{"$f":"IF($A418=\"N/A\",Ref!$B$36,INDEX(Ranks!$1:$1048576,$A418,BQ$1))","v":""},{"$f":"IF($A418=\"N/A\",Ref!$B$36,INDEX(Ranks!$1:$1048576,$A418,BR$1))","v":""},{"$f":"IF($A418=\"N/A\",Ref!$B$36,INDEX(Ranks!$1:$1048576,$A418,BS$1))","v":""},{"$f":"IF($A418=\"N/A\",Ref!$B$36,INDEX(Ranks!$1:$1048576,$A418,BT$1))","v":""},{"$f":"IF($A418=\"N/A\",Ref!$B$36,INDEX(Ranks!$1:$1048576,$A418,BU$1))","v":""},{"$f":"IF($A418=\"N/A\",Ref!$B$36,INDEX(Ranks!$1:$1048576,$A418,BV$1))","v":""},{"$f":"IF($A418=\"N/A\",Ref!$B$36,INDEX(Ranks!$1:$1048576,$A418,BW$1))","v":""},{"$f":"IF($A418=\"N/A\",Ref!$B$36,INDEX(Ranks!$1:$1048576,$A418,BX$1))","v":""},{"$f":"IF($A418=\"N/A\",Ref!$B$36,INDEX(Ranks!$1:$1048576,$A418,BY$1))","v":""},{"$f":"IF($A418=\"N/A\",Ref!$B$36,INDEX(Ranks!$1:$1048576,$A418,BZ$1))","v":""},{"$f":"IF($A418=\"N/A\",Ref!$B$36,INDEX(Ranks!$1:$1048576,$A418,CA$1))","v":""},{"$f":"IF($A418=\"N/A\",Ref!$B$36,INDEX(Ranks!$1:$1048576,$A418,CB$1))","v":""},{"$f":"IF($A418=\"N/A\",Ref!$B$36,INDEX(Ranks!$1:$1048576,$A418,CC$1))","v":""},{"$f":"IF($A418=\"N/A\",Ref!$B$36,INDEX(Ranks!$1:$1048576,$A418,CD$1))","v":""},{"$f":"IF($A418=\"N/A\",Ref!$B$36,INDEX(Ranks!$1:$1048576,$A418,CE$1))","v":""},{"$f":"IF($A418=\"N/A\",Ref!$B$36,INDEX(Ranks!$1:$1048576,$A418,CF$1))","v":""},{"$f":"IF($A418=\"N/A\",Ref!$B$36,INDEX(Ranks!$1:$1048576,$A418,CG$1))","v":""},{"$f":"IF($A418=\"N/A\",Ref!$B$36,INDEX(Ranks!$1:$1048576,$A418,CH$1))","v":""},{"$f":"IF($A418=\"N/A\",Ref!$B$36,INDEX(Ranks!$1:$1048576,$A418,CI$1))","v":""},{"$f":"IF($A418=\"N/A\",Ref!$B$36,INDEX(Ranks!$1:$1048576,$A418,CJ$1))","v":""},{"$f":"IF($A418=\"N/A\",Ref!$B$36,INDEX(Ranks!$1:$1048576,$A418,CK$1))","v":""},{"$f":"IF($A418=\"N/A\",Ref!$B$36,INDEX(Ranks!$1:$1048576,$A418,CL$1))","v":""},{"$f":"IF($A418=\"N/A\",Ref!$B$36,INDEX(Ranks!$1:$1048576,$A418,CM$1))","v":""},{"$f":"IF($A418=\"N/A\",Ref!$B$36,INDEX(Ranks!$1:$1048576,$A418,CN$1))","v":""},{"$f":"IF($A418=\"N/A\",Ref!$B$36,INDEX(Ranks!$1:$1048576,$A418,CO$1))","v":""},{"$f":"IF($A418=\"N/A\",Ref!$B$36,INDEX(Ranks!$1:$1048576,$A418,CP$1))","v":""},{"$f":"IF($A418=\"N/A\",Ref!$B$36,INDEX(Ranks!$1:$1048576,$A418,CQ$1))","v":""},{"$f":"IF($A418=\"N/A\",Ref!$B$36,INDEX(Ranks!$1:$1048576,$A418,CR$1))","v":""},{"$f":"IF($A418=\"N/A\",Ref!$B$36,INDEX(Ranks!$1:$1048576,$A418,CS$1))","v":""},{"$f":"IF($A418=\"N/A\",Ref!$B$36,INDEX(Ranks!$1:$1048576,$A418,CT$1))","v":""},{"$f":"IF($A418=\"N/A\",Ref!$B$36,INDEX(Ranks!$1:$1048576,$A418,CU$1))","v":""},{"$f":"IF($A418=\"N/A\",Ref!$B$36,INDEX(Ranks!$1:$1048576,$A418,CV$1))","v":""},{"$f":"IF($A418=\"N/A\",Ref!$B$36,INDEX(Ranks!$1:$1048576,$A418,CW$1))","v":""},{"$f":"IF($A418=\"N/A\",Ref!$B$36,INDEX(Ranks!$1:$1048576,$A418,CX$1))","v":""},{"$f":"IF($A418=\"N/A\",Ref!$B$36,INDEX(Ranks!$1:$1048576,$A418,CY$1))","v":""},{"$f":"IF($A418=\"N/A\",Ref!$B$36,INDEX(Ranks!$1:$1048576,$A418,CZ$1))","v":""},{"$f":"IF($A418=\"N/A\",Ref!$B$36,INDEX(Ranks!$1:$1048576,$A418,DA$1))","v":""},{"$f":"IF($A418=\"N/A\",Ref!$B$36,INDEX(Ranks!$1:$1048576,$A418,DB$1))","v":""},{"$f":"IF($A418=\"N/A\",Ref!$B$36,INDEX(Ranks!$1:$1048576,$A418,DC$1))","v":""},{"$f":"IF($A418=\"N/A\",Ref!$B$36,INDEX(Ranks!$1:$1048576,$A418,DD$1))","v":""},{"$f":"IF($A418=\"N/A\",Ref!$B$36,INDEX(Ranks!$1:$1048576,$A418,DE$1))","v":""},{"$f":"IF($A418=\"N/A\",Ref!$B$36,INDEX(Ranks!$1:$1048576,$A418,DF$1))","v":""},{"$f":"IF($A418=\"N/A\",Ref!$B$36,INDEX(Ranks!$1:$1048576,$A418,DG$1))","v":""},{"$f":"IF($A418=\"N/A\",Ref!$B$36,INDEX(Ranks!$1:$1048576,$A418,DH$1))","v":""},{"$f":"IF($A418=\"N/A\",Ref!$B$36,INDEX(Ranks!$1:$1048576,$A418,DI$1))","v":""},{"$f":"IF($A418=\"N/A\",Ref!$B$36,INDEX(Ranks!$1:$1048576,$A418,DJ$1))","v":""},{"$f":"IF($A418=\"N/A\",Ref!$B$36,INDEX(Ranks!$1:$1048576,$A418,DK$1))","v":""},{"$f":"IF($A418=\"N/A\",Ref!$B$36,INDEX(Ranks!$1:$1048576,$A418,DL$1))","v":""},{"$f":"IF($A418=\"N/A\",Ref!$B$36,INDEX(Ranks!$1:$1048576,$A418,DM$1))","v":""},{"$f":"IF($A418=\"N/A\",Ref!$B$36,INDEX(Ranks!$1:$1048576,$A418,DN$1))","v":""},{"$f":"IF($A418=\"N/A\",Ref!$B$36,INDEX(Ranks!$1:$1048576,$A418,DO$1))","v":""},{"$f":"IF($A418=\"N/A\",Ref!$B$36,INDEX(Ranks!$1:$1048576,$A418,DP$1))","v":""},{"$f":"IF($A418=\"N/A\",Ref!$B$36,INDEX(Ranks!$1:$1048576,$A418,DQ$1))","v":""},{"$f":"IF($A418=\"N/A\",Ref!$B$36,INDEX(Ranks!$1:$1048576,$A418,DR$1))","v":""},{"$f":"IF($A418=\"N/A\",Ref!$B$36,INDEX(Ranks!$1:$1048576,$A418,DS$1))","v":""},{"$f":"IF($A418=\"N/A\",Ref!$B$36,INDEX(Ranks!$1:$1048576,$A418,DT$1))","v":""},{"$f":"IF($A418=\"N/A\",Ref!$B$36,INDEX(Ranks!$1:$1048576,$A418,DU$1))","v":""},{"$f":"IF($A418=\"N/A\",Ref!$B$36,INDEX(Ranks!$1:$1048576,$A418,DV$1))","v":""},{"$f":"IF($A418=\"N/A\",Ref!$B$36,INDEX(Ranks!$1:$1048576,$A418,DW$1))","v":""},{"$f":"IF($A418=\"N/A\",Ref!$B$36,INDEX(Ranks!$1:$1048576,$A418,DX$1))","v":""},{"$f":"IF($A418=\"N/A\",Ref!$B$36,INDEX(Ranks!$1:$1048576,$A418,DY$1))","v":""},{"$f":"IF($A418=\"N/A\",Ref!$B$36,INDEX(Ranks!$1:$1048576,$A418,DZ$1))","v":""},{"$f":"IF($A418=\"N/A\",Ref!$B$36,INDEX(Ranks!$1:$1048576,$A418,EA$1))","v":""},{"$f":"IF($A418=\"N/A\",Ref!$B$36,INDEX(Ranks!$1:$1048576,$A418,EB$1))","v":""}]
[{"$f":"IFERROR(MATCH('Portfolio Page'!L419,Ranks!L:L,0),\"N/A\")","v":"N/A"},null,{"$f":"IF($A419=\"N/A\",\"\",INDEX(Ranks!$1:$1048576,$A419,C$1))","v":""},{"$f":"IF($A419=\"N/A\",Ref!$B$36,INDEX(Ranks!$1:$1048576,$A419,D$1))","v":""},{"$f":"IF($A419=\"N/A\",Ref!$B$36,INDEX(Ranks!$1:$1048576,$A419,E$1))","v":""},{"$f":"IF($A419=\"N/A\",\"\",INDEX(Ranks!$1:$1048576,$A419,F$1))","v":""},{"$f":"IF($A419=\"N/A\",\"\",INDEX(Ranks!$1:$1048576,$A419,G$1))","v":""},{"$f":"IF($A419=\"N/A\",\"\",INDEX(Ranks!$1:$1048576,$A419,H$1))","v":""},{"$f":"IF($A419=\"N/A\",\"\",INDEX(Ranks!$1:$1048576,$A419,I$1))","v":""},{"$f":"IF($A419=\"N/A\",\"\",INDEX(Ranks!$1:$1048576,$A419,J$1))","v":""},{"$f":"IF($A419=\"N/A\",\"\",INDEX(Ranks!$1:$1048576,$A419,K$1))","v":""},null,{"$f":"IF($A419=\"N/A\",Ref!$B$36,INDEX(Ranks!$1:$1048576,$A419,M$1))","v":""},{"$f":"IF($A419=\"N/A\",Ref!$B$36,INDEX(Ranks!$1:$1048576,$A419,N$1))","v":""},{"$f":"IF($A419=\"N/A\",Ref!$B$36,INDEX(Ranks!$1:$1048576,$A419,O$1))","v":""},{"$f":"IF($A419=\"N/A\",Ref!$B$36,INDEX(Ranks!$1:$1048576,$A419,P$1))","v":""},{"$f":"IF($A419=\"N/A\",Ref!$B$36,INDEX(Ranks!$1:$1048576,$A419,Q$1))","v":""},{"$f":"IF($A419=\"N/A\",Ref!$B$36,INDEX(Ranks!$1:$1048576,$A419,R$1))","v":""},{"$f":"IF($A419=\"N/A\",Ref!$B$36,INDEX(Ranks!$1:$1048576,$A419,S$1))","v":""},{"$f":"IF($A419=\"N/A\",Ref!$B$36,INDEX(Ranks!$1:$1048576,$A419,T$1))","v":""},{"$f":"IF($A419=\"N/A\",Ref!$B$36,INDEX(Ranks!$1:$1048576,$A419,U$1))","v":""},{"$f":"IF($A419=\"N/A\",Ref!$B$36,INDEX(Ranks!$1:$1048576,$A419,V$1))","v":""},{"$f":"IF($A419=\"N/A\",Ref!$B$36,INDEX(Ranks!$1:$1048576,$A419,W$1))","v":""},{"$f":"IF($A419=\"N/A\",Ref!$B$36,INDEX(Ranks!$1:$1048576,$A419,X$1))","v":""},{"$f":"IF($A419=\"N/A\",Ref!$B$36,INDEX(Ranks!$1:$1048576,$A419,Y$1))","v":""},{"$f":"IF($A419=\"N/A\",Ref!$B$36,INDEX(Ranks!$1:$1048576,$A419,Z$1))","v":""},{"$f":"IF($A419=\"N/A\",Ref!$B$36,INDEX(Ranks!$1:$1048576,$A419,AA$1))","v":""},{"$f":"IF($A419=\"N/A\",Ref!$B$36,INDEX(Ranks!$1:$1048576,$A419,AB$1))","v":""},{"$f":"IF($A419=\"N/A\",Ref!$B$36,INDEX(Ranks!$1:$1048576,$A419,AC$1))","v":""},{"$f":"IF($A419=\"N/A\",Ref!$B$36,INDEX(Ranks!$1:$1048576,$A419,AD$1))","v":""},{"$f":"IF($A419=\"N/A\",Ref!$B$36,INDEX(Ranks!$1:$1048576,$A419,AE$1))","v":""},{"$f":"IF($A419=\"N/A\",Ref!$B$36,INDEX(Ranks!$1:$1048576,$A419,AF$1))","v":""},{"$f":"IF($A419=\"N/A\",Ref!$B$36,INDEX(Ranks!$1:$1048576,$A419,AG$1))","v":""},{"$f":"IF($A419=\"N/A\",Ref!$B$36,INDEX(Ranks!$1:$1048576,$A419,AH$1))","v":""},{"$f":"IF($A419=\"N/A\",Ref!$B$36,INDEX(Ranks!$1:$1048576,$A419,AI$1))","v":""},{"$f":"IF($A419=\"N/A\",Ref!$B$36,INDEX(Ranks!$1:$1048576,$A419,AJ$1))","v":""},{"$f":"IF($A419=\"N/A\",Ref!$B$36,INDEX(Ranks!$1:$1048576,$A419,AK$1))","v":""},{"$f":"IF($A419=\"N/A\",Ref!$B$36,INDEX(Ranks!$1:$1048576,$A419,AL$1))","v":""},{"$f":"IF($A419=\"N/A\",Ref!$B$36,INDEX(Ranks!$1:$1048576,$A419,AM$1))","v":""},{"$f":"IF($A419=\"N/A\",Ref!$B$36,INDEX(Ranks!$1:$1048576,$A419,AN$1))","v":""},{"$f":"IF($A419=\"N/A\",Ref!$B$36,INDEX(Ranks!$1:$1048576,$A419,AO$1))","v":""},{"$f":"IF($A419=\"N/A\",Ref!$B$36,INDEX(Ranks!$1:$1048576,$A419,AP$1))","v":""},{"$f":"IF($A419=\"N/A\",Ref!$B$36,INDEX(Ranks!$1:$1048576,$A419,AQ$1))","v":""},{"$f":"IF($A419=\"N/A\",Ref!$B$36,INDEX(Ranks!$1:$1048576,$A419,AR$1))","v":""},{"$f":"IF($A419=\"N/A\",Ref!$B$36,INDEX(Ranks!$1:$1048576,$A419,AS$1))","v":""},{"$f":"IF($A419=\"N/A\",Ref!$B$36,INDEX(Ranks!$1:$1048576,$A419,AT$1))","v":""},{"$f":"IF($A419=\"N/A\",Ref!$B$36,INDEX(Ranks!$1:$1048576,$A419,AU$1))","v":""},{"$f":"IF($A419=\"N/A\",Ref!$B$36,INDEX(Ranks!$1:$1048576,$A419,AV$1))","v":""},{"$f":"IF($A419=\"N/A\",Ref!$B$36,INDEX(Ranks!$1:$1048576,$A419,AW$1))","v":""},{"$f":"IF($A419=\"N/A\",Ref!$B$36,INDEX(Ranks!$1:$1048576,$A419,AX$1))","v":""},{"$f":"IF($A419=\"N/A\",Ref!$B$36,INDEX(Ranks!$1:$1048576,$A419,AY$1))","v":""},{"$f":"IF($A419=\"N/A\",Ref!$B$36,INDEX(Ranks!$1:$1048576,$A419,AZ$1))","v":""},{"$f":"IF($A419=\"N/A\",Ref!$B$36,INDEX(Ranks!$1:$1048576,$A419,BA$1))","v":""},{"$f":"IF($A419=\"N/A\",Ref!$B$36,INDEX(Ranks!$1:$1048576,$A419,BB$1))","v":""},{"$f":"IF($A419=\"N/A\",Ref!$B$36,INDEX(Ranks!$1:$1048576,$A419,BC$1))","v":""},{"$f":"IF($A419=\"N/A\",Ref!$B$36,INDEX(Ranks!$1:$1048576,$A419,BD$1))","v":""},{"$f":"IF($A419=\"N/A\",Ref!$B$36,INDEX(Ranks!$1:$1048576,$A419,BE$1))","v":""},{"$f":"IF($A419=\"N/A\",Ref!$B$36,INDEX(Ranks!$1:$1048576,$A419,BF$1))","v":""},{"$f":"IF($A419=\"N/A\",Ref!$B$36,INDEX(Ranks!$1:$1048576,$A419,BG$1))","v":""},{"$f":"IF($A419=\"N/A\",Ref!$B$36,INDEX(Ranks!$1:$1048576,$A419,BH$1))","v":""},{"$f":"IF($A419=\"N/A\",Ref!$B$36,INDEX(Ranks!$1:$1048576,$A419,BI$1))","v":""},{"$f":"IF($A419=\"N/A\",Ref!$B$36,INDEX(Ranks!$1:$1048576,$A419,BJ$1))","v":""},{"$f":"IF($A419=\"N/A\",Ref!$B$36,INDEX(Ranks!$1:$1048576,$A419,BK$1))","v":""},{"$f":"IF($A419=\"N/A\",Ref!$B$36,INDEX(Ranks!$1:$1048576,$A419,BL$1))","v":""},{"$f":"IF($A419=\"N/A\",Ref!$B$36,INDEX(Ranks!$1:$1048576,$A419,BM$1))","v":""},{"$f":"IF($A419=\"N/A\",Ref!$B$36,INDEX(Ranks!$1:$1048576,$A419,BN$1))","v":""},{"$f":"IF($A419=\"N/A\",Ref!$B$36,INDEX(Ranks!$1:$1048576,$A419,BO$1))","v":""},{"$f":"IF($A419=\"N/A\",Ref!$B$36,INDEX(Ranks!$1:$1048576,$A419,BP$1))","v":""},{"$f":"IF($A419=\"N/A\",Ref!$B$36,INDEX(Ranks!$1:$1048576,$A419,BQ$1))","v":""},{"$f":"IF($A419=\"N/A\",Ref!$B$36,INDEX(Ranks!$1:$1048576,$A419,BR$1))","v":""},{"$f":"IF($A419=\"N/A\",Ref!$B$36,INDEX(Ranks!$1:$1048576,$A419,BS$1))","v":""},{"$f":"IF($A419=\"N/A\",Ref!$B$36,INDEX(Ranks!$1:$1048576,$A419,BT$1))","v":""},{"$f":"IF($A419=\"N/A\",Ref!$B$36,INDEX(Ranks!$1:$1048576,$A419,BU$1))","v":""},{"$f":"IF($A419=\"N/A\",Ref!$B$36,INDEX(Ranks!$1:$1048576,$A419,BV$1))","v":""},{"$f":"IF($A419=\"N/A\",Ref!$B$36,INDEX(Ranks!$1:$1048576,$A419,BW$1))","v":""},{"$f":"IF($A419=\"N/A\",Ref!$B$36,INDEX(Ranks!$1:$1048576,$A419,BX$1))","v":""},{"$f":"IF($A419=\"N/A\",Ref!$B$36,INDEX(Ranks!$1:$1048576,$A419,BY$1))","v":""},{"$f":"IF($A419=\"N/A\",Ref!$B$36,INDEX(Ranks!$1:$1048576,$A419,BZ$1))","v":""},{"$f":"IF($A419=\"N/A\",Ref!$B$36,INDEX(Ranks!$1:$1048576,$A419,CA$1))","v":""},{"$f":"IF($A419=\"N/A\",Ref!$B$36,INDEX(Ranks!$1:$1048576,$A419,CB$1))","v":""},{"$f":"IF($A419=\"N/A\",Ref!$B$36,INDEX(Ranks!$1:$1048576,$A419,CC$1))","v":""},{"$f":"IF($A419=\"N/A\",Ref!$B$36,INDEX(Ranks!$1:$1048576,$A419,CD$1))","v":""},{"$f":"IF($A419=\"N/A\",Ref!$B$36,INDEX(Ranks!$1:$1048576,$A419,CE$1))","v":""},{"$f":"IF($A419=\"N/A\",Ref!$B$36,INDEX(Ranks!$1:$1048576,$A419,CF$1))","v":""},{"$f":"IF($A419=\"N/A\",Ref!$B$36,INDEX(Ranks!$1:$1048576,$A419,CG$1))","v":""},{"$f":"IF($A419=\"N/A\",Ref!$B$36,INDEX(Ranks!$1:$1048576,$A419,CH$1))","v":""},{"$f":"IF($A419=\"N/A\",Ref!$B$36,INDEX(Ranks!$1:$1048576,$A419,CI$1))","v":""},{"$f":"IF($A419=\"N/A\",Ref!$B$36,INDEX(Ranks!$1:$1048576,$A419,CJ$1))","v":""},{"$f":"IF($A419=\"N/A\",Ref!$B$36,INDEX(Ranks!$1:$1048576,$A419,CK$1))","v":""},{"$f":"IF($A419=\"N/A\",Ref!$B$36,INDEX(Ranks!$1:$1048576,$A419,CL$1))","v":""},{"$f":"IF($A419=\"N/A\",Ref!$B$36,INDEX(Ranks!$1:$1048576,$A419,CM$1))","v":""},{"$f":"IF($A419=\"N/A\",Ref!$B$36,INDEX(Ranks!$1:$1048576,$A419,CN$1))","v":""},{"$f":"IF($A419=\"N/A\",Ref!$B$36,INDEX(Ranks!$1:$1048576,$A419,CO$1))","v":""},{"$f":"IF($A419=\"N/A\",Ref!$B$36,INDEX(Ranks!$1:$1048576,$A419,CP$1))","v":""},{"$f":"IF($A419=\"N/A\",Ref!$B$36,INDEX(Ranks!$1:$1048576,$A419,CQ$1))","v":""},{"$f":"IF($A419=\"N/A\",Ref!$B$36,INDEX(Ranks!$1:$1048576,$A419,CR$1))","v":""},{"$f":"IF($A419=\"N/A\",Ref!$B$36,INDEX(Ranks!$1:$1048576,$A419,CS$1))","v":""},{"$f":"IF($A419=\"N/A\",Ref!$B$36,INDEX(Ranks!$1:$1048576,$A419,CT$1))","v":""},{"$f":"IF($A419=\"N/A\",Ref!$B$36,INDEX(Ranks!$1:$1048576,$A419,CU$1))","v":""},{"$f":"IF($A419=\"N/A\",Ref!$B$36,INDEX(Ranks!$1:$1048576,$A419,CV$1))","v":""},{"$f":"IF($A419=\"N/A\",Ref!$B$36,INDEX(Ranks!$1:$1048576,$A419,CW$1))","v":""},{"$f":"IF($A419=\"N/A\",Ref!$B$36,INDEX(Ranks!$1:$1048576,$A419,CX$1))","v":""},{"$f":"IF($A419=\"N/A\",Ref!$B$36,INDEX(Ranks!$1:$1048576,$A419,CY$1))","v":""},{"$f":"IF($A419=\"N/A\",Ref!$B$36,INDEX(Ranks!$1:$1048576,$A419,CZ$1))","v":""},{"$f":"IF($A419=\"N/A\",Ref!$B$36,INDEX(Ranks!$1:$1048576,$A419,DA$1))","v":""},{"$f":"IF($A419=\"N/A\",Ref!$B$36,INDEX(Ranks!$1:$1048576,$A419,DB$1))","v":""},{"$f":"IF($A419=\"N/A\",Ref!$B$36,INDEX(Ranks!$1:$1048576,$A419,DC$1))","v":""},{"$f":"IF($A419=\"N/A\",Ref!$B$36,INDEX(Ranks!$1:$1048576,$A419,DD$1))","v":""},{"$f":"IF($A419=\"N/A\",Ref!$B$36,INDEX(Ranks!$1:$1048576,$A419,DE$1))","v":""},{"$f":"IF($A419=\"N/A\",Ref!$B$36,INDEX(Ranks!$1:$1048576,$A419,DF$1))","v":""},{"$f":"IF($A419=\"N/A\",Ref!$B$36,INDEX(Ranks!$1:$1048576,$A419,DG$1))","v":""},{"$f":"IF($A419=\"N/A\",Ref!$B$36,INDEX(Ranks!$1:$1048576,$A419,DH$1))","v":""},{"$f":"IF($A419=\"N/A\",Ref!$B$36,INDEX(Ranks!$1:$1048576,$A419,DI$1))","v":""},{"$f":"IF($A419=\"N/A\",Ref!$B$36,INDEX(Ranks!$1:$1048576,$A419,DJ$1))","v":""},{"$f":"IF($A419=\"N/A\",Ref!$B$36,INDEX(Ranks!$1:$1048576,$A419,DK$1))","v":""},{"$f":"IF($A419=\"N/A\",Ref!$B$36,INDEX(Ranks!$1:$1048576,$A419,DL$1))","v":""},{"$f":"IF($A419=\"N/A\",Ref!$B$36,INDEX(Ranks!$1:$1048576,$A419,DM$1))","v":""},{"$f":"IF($A419=\"N/A\",Ref!$B$36,INDEX(Ranks!$1:$1048576,$A419,DN$1))","v":""},{"$f":"IF($A419=\"N/A\",Ref!$B$36,INDEX(Ranks!$1:$1048576,$A419,DO$1))","v":""},{"$f":"IF($A419=\"N/A\",Ref!$B$36,INDEX(Ranks!$1:$1048576,$A419,DP$1))","v":""},{"$f":"IF($A419=\"N/A\",Ref!$B$36,INDEX(Ranks!$1:$1048576,$A419,DQ$1))","v":""},{"$f":"IF($A419=\"N/A\",Ref!$B$36,INDEX(Ranks!$1:$1048576,$A419,DR$1))","v":""},{"$f":"IF($A419=\"N/A\",Ref!$B$36,INDEX(Ranks!$1:$1048576,$A419,DS$1))","v":""},{"$f":"IF($A419=\"N/A\",Ref!$B$36,INDEX(Ranks!$1:$1048576,$A419,DT$1))","v":""},{"$f":"IF($A419=\"N/A\",Ref!$B$36,INDEX(Ranks!$1:$1048576,$A419,DU$1))","v":""},{"$f":"IF($A419=\"N/A\",Ref!$B$36,INDEX(Ranks!$1:$1048576,$A419,DV$1))","v":""},{"$f":"IF($A419=\"N/A\",Ref!$B$36,INDEX(Ranks!$1:$1048576,$A419,DW$1))","v":""},{"$f":"IF($A419=\"N/A\",Ref!$B$36,INDEX(Ranks!$1:$1048576,$A419,DX$1))","v":""},{"$f":"IF($A419=\"N/A\",Ref!$B$36,INDEX(Ranks!$1:$1048576,$A419,DY$1))","v":""},{"$f":"IF($A419=\"N/A\",Ref!$B$36,INDEX(Ranks!$1:$1048576,$A419,DZ$1))","v":""},{"$f":"IF($A419=\"N/A\",Ref!$B$36,INDEX(Ranks!$1:$1048576,$A419,EA$1))","v":""},{"$f":"IF($A419=\"N/A\",Ref!$B$36,INDEX(Ranks!$1:$1048576,$A419,EB$1))","v":""}]
[{"$f":"IFERROR(MATCH('Portfolio Page'!L420,Ranks!L:L,0),\"N/A\")","v":"N/A"},null,{"$f":"IF($A420=\"N/A\",\"\",INDEX(Ranks!$1:$1048576,$A420,C$1))","v":""},{"$f":"IF($A420=\"N/A\",Ref!$B$36,INDEX(Ranks!$1:$1048576,$A420,D$1))","v":""},{"$f":"IF($A420=\"N/A\",Ref!$B$36,INDEX(Ranks!$1:$1048576,$A420,E$1))","v":""},{"$f":"IF($A420=\"N/A\",\"\",INDEX(Ranks!$1:$1048576,$A420,F$1))","v":""},{"$f":"IF($A420=\"N/A\",\"\",INDEX(Ranks!$1:$1048576,$A420,G$1))","v":""},{"$f":"IF($A420=\"N/A\",\"\",INDEX(Ranks!$1:$1048576,$A420,H$1))","v":""},{"$f":"IF($A420=\"N/A\",\"\",INDEX(Ranks!$1:$1048576,$A420,I$1))","v":""},{"$f":"IF($A420=\"N/A\",\"\",INDEX(Ranks!$1:$1048576,$A420,J$1))","v":""},{"$f":"IF($A420=\"N/A\",\"\",INDEX(Ranks!$1:$1048576,$A420,K$1))","v":""},null,{"$f":"IF($A420=\"N/A\",Ref!$B$36,INDEX(Ranks!$1:$1048576,$A420,M$1))","v":""},{"$f":"IF($A420=\"N/A\",Ref!$B$36,INDEX(Ranks!$1:$1048576,$A420,N$1))","v":""},{"$f":"IF($A420=\"N/A\",Ref!$B$36,INDEX(Ranks!$1:$1048576,$A420,O$1))","v":""},{"$f":"IF($A420=\"N/A\",Ref!$B$36,INDEX(Ranks!$1:$1048576,$A420,P$1))","v":""},{"$f":"IF($A420=\"N/A\",Ref!$B$36,INDEX(Ranks!$1:$1048576,$A420,Q$1))","v":""},{"$f":"IF($A420=\"N/A\",Ref!$B$36,INDEX(Ranks!$1:$1048576,$A420,R$1))","v":""},{"$f":"IF($A420=\"N/A\",Ref!$B$36,INDEX(Ranks!$1:$1048576,$A420,S$1))","v":""},{"$f":"IF($A420=\"N/A\",Ref!$B$36,INDEX(Ranks!$1:$1048576,$A420,T$1))","v":""},{"$f":"IF($A420=\"N/A\",Ref!$B$36,INDEX(Ranks!$1:$1048576,$A420,U$1))","v":""},{"$f":"IF($A420=\"N/A\",Ref!$B$36,INDEX(Ranks!$1:$1048576,$A420,V$1))","v":""},{"$f":"IF($A420=\"N/A\",Ref!$B$36,INDEX(Ranks!$1:$1048576,$A420,W$1))","v":""},{"$f":"IF($A420=\"N/A\",Ref!$B$36,INDEX(Ranks!$1:$1048576,$A420,X$1))","v":""},{"$f":"IF($A420=\"N/A\",Ref!$B$36,INDEX(Ranks!$1:$1048576,$A420,Y$1))","v":""},{"$f":"IF($A420=\"N/A\",Ref!$B$36,INDEX(Ranks!$1:$1048576,$A420,Z$1))","v":""},{"$f":"IF($A420=\"N/A\",Ref!$B$36,INDEX(Ranks!$1:$1048576,$A420,AA$1))","v":""},{"$f":"IF($A420=\"N/A\",Ref!$B$36,INDEX(Ranks!$1:$1048576,$A420,AB$1))","v":""},{"$f":"IF($A420=\"N/A\",Ref!$B$36,INDEX(Ranks!$1:$1048576,$A420,AC$1))","v":""},{"$f":"IF($A420=\"N/A\",Ref!$B$36,INDEX(Ranks!$1:$1048576,$A420,AD$1))","v":""},{"$f":"IF($A420=\"N/A\",Ref!$B$36,INDEX(Ranks!$1:$1048576,$A420,AE$1))","v":""},{"$f":"IF($A420=\"N/A\",Ref!$B$36,INDEX(Ranks!$1:$1048576,$A420,AF$1))","v":""},{"$f":"IF($A420=\"N/A\",Ref!$B$36,INDEX(Ranks!$1:$1048576,$A420,AG$1))","v":""},{"$f":"IF($A420=\"N/A\",Ref!$B$36,INDEX(Ranks!$1:$1048576,$A420,AH$1))","v":""},{"$f":"IF($A420=\"N/A\",Ref!$B$36,INDEX(Ranks!$1:$1048576,$A420,AI$1))","v":""},{"$f":"IF($A420=\"N/A\",Ref!$B$36,INDEX(Ranks!$1:$1048576,$A420,AJ$1))","v":""},{"$f":"IF($A420=\"N/A\",Ref!$B$36,INDEX(Ranks!$1:$1048576,$A420,AK$1))","v":""},{"$f":"IF($A420=\"N/A\",Ref!$B$36,INDEX(Ranks!$1:$1048576,$A420,AL$1))","v":""},{"$f":"IF($A420=\"N/A\",Ref!$B$36,INDEX(Ranks!$1:$1048576,$A420,AM$1))","v":""},{"$f":"IF($A420=\"N/A\",Ref!$B$36,INDEX(Ranks!$1:$1048576,$A420,AN$1))","v":""},{"$f":"IF($A420=\"N/A\",Ref!$B$36,INDEX(Ranks!$1:$1048576,$A420,AO$1))","v":""},{"$f":"IF($A420=\"N/A\",Ref!$B$36,INDEX(Ranks!$1:$1048576,$A420,AP$1))","v":""},{"$f":"IF($A420=\"N/A\",Ref!$B$36,INDEX(Ranks!$1:$1048576,$A420,AQ$1))","v":""},{"$f":"IF($A420=\"N/A\",Ref!$B$36,INDEX(Ranks!$1:$1048576,$A420,AR$1))","v":""},{"$f":"IF($A420=\"N/A\",Ref!$B$36,INDEX(Ranks!$1:$1048576,$A420,AS$1))","v":""},{"$f":"IF($A420=\"N/A\",Ref!$B$36,INDEX(Ranks!$1:$1048576,$A420,AT$1))","v":""},{"$f":"IF($A420=\"N/A\",Ref!$B$36,INDEX(Ranks!$1:$1048576,$A420,AU$1))","v":""},{"$f":"IF($A420=\"N/A\",Ref!$B$36,INDEX(Ranks!$1:$1048576,$A420,AV$1))","v":""},{"$f":"IF($A420=\"N/A\",Ref!$B$36,INDEX(Ranks!$1:$1048576,$A420,AW$1))","v":""},{"$f":"IF($A420=\"N/A\",Ref!$B$36,INDEX(Ranks!$1:$1048576,$A420,AX$1))","v":""},{"$f":"IF($A420=\"N/A\",Ref!$B$36,INDEX(Ranks!$1:$1048576,$A420,AY$1))","v":""},{"$f":"IF($A420=\"N/A\",Ref!$B$36,INDEX(Ranks!$1:$1048576,$A420,AZ$1))","v":""},{"$f":"IF($A420=\"N/A\",Ref!$B$36,INDEX(Ranks!$1:$1048576,$A420,BA$1))","v":""},{"$f":"IF($A420=\"N/A\",Ref!$B$36,INDEX(Ranks!$1:$1048576,$A420,BB$1))","v":""},{"$f":"IF($A420=\"N/A\",Ref!$B$36,INDEX(Ranks!$1:$1048576,$A420,BC$1))","v":""},{"$f":"IF($A420=\"N/A\",Ref!$B$36,INDEX(Ranks!$1:$1048576,$A420,BD$1))","v":""},{"$f":"IF($A420=\"N/A\",Ref!$B$36,INDEX(Ranks!$1:$1048576,$A420,BE$1))","v":""},{"$f":"IF($A420=\"N/A\",Ref!$B$36,INDEX(Ranks!$1:$1048576,$A420,BF$1))","v":""},{"$f":"IF($A420=\"N/A\",Ref!$B$36,INDEX(Ranks!$1:$1048576,$A420,BG$1))","v":""},{"$f":"IF($A420=\"N/A\",Ref!$B$36,INDEX(Ranks!$1:$1048576,$A420,BH$1))","v":""},{"$f":"IF($A420=\"N/A\",Ref!$B$36,INDEX(Ranks!$1:$1048576,$A420,BI$1))","v":""},{"$f":"IF($A420=\"N/A\",Ref!$B$36,INDEX(Ranks!$1:$1048576,$A420,BJ$1))","v":""},{"$f":"IF($A420=\"N/A\",Ref!$B$36,INDEX(Ranks!$1:$1048576,$A420,BK$1))","v":""},{"$f":"IF($A420=\"N/A\",Ref!$B$36,INDEX(Ranks!$1:$1048576,$A420,BL$1))","v":""},{"$f":"IF($A420=\"N/A\",Ref!$B$36,INDEX(Ranks!$1:$1048576,$A420,BM$1))","v":""},{"$f":"IF($A420=\"N/A\",Ref!$B$36,INDEX(Ranks!$1:$1048576,$A420,BN$1))","v":""},{"$f":"IF($A420=\"N/A\",Ref!$B$36,INDEX(Ranks!$1:$1048576,$A420,BO$1))","v":""},{"$f":"IF($A420=\"N/A\",Ref!$B$36,INDEX(Ranks!$1:$1048576,$A420,BP$1))","v":""},{"$f":"IF($A420=\"N/A\",Ref!$B$36,INDEX(Ranks!$1:$1048576,$A420,BQ$1))","v":""},{"$f":"IF($A420=\"N/A\",Ref!$B$36,INDEX(Ranks!$1:$1048576,$A420,BR$1))","v":""},{"$f":"IF($A420=\"N/A\",Ref!$B$36,INDEX(Ranks!$1:$1048576,$A420,BS$1))","v":""},{"$f":"IF($A420=\"N/A\",Ref!$B$36,INDEX(Ranks!$1:$1048576,$A420,BT$1))","v":""},{"$f":"IF($A420=\"N/A\",Ref!$B$36,INDEX(Ranks!$1:$1048576,$A420,BU$1))","v":""},{"$f":"IF($A420=\"N/A\",Ref!$B$36,INDEX(Ranks!$1:$1048576,$A420,BV$1))","v":""},{"$f":"IF($A420=\"N/A\",Ref!$B$36,INDEX(Ranks!$1:$1048576,$A420,BW$1))","v":""},{"$f":"IF($A420=\"N/A\",Ref!$B$36,INDEX(Ranks!$1:$1048576,$A420,BX$1))","v":""},{"$f":"IF($A420=\"N/A\",Ref!$B$36,INDEX(Ranks!$1:$1048576,$A420,BY$1))","v":""},{"$f":"IF($A420=\"N/A\",Ref!$B$36,INDEX(Ranks!$1:$1048576,$A420,BZ$1))","v":""},{"$f":"IF($A420=\"N/A\",Ref!$B$36,INDEX(Ranks!$1:$1048576,$A420,CA$1))","v":""},{"$f":"IF($A420=\"N/A\",Ref!$B$36,INDEX(Ranks!$1:$1048576,$A420,CB$1))","v":""},{"$f":"IF($A420=\"N/A\",Ref!$B$36,INDEX(Ranks!$1:$1048576,$A420,CC$1))","v":""},{"$f":"IF($A420=\"N/A\",Ref!$B$36,INDEX(Ranks!$1:$1048576,$A420,CD$1))","v":""},{"$f":"IF($A420=\"N/A\",Ref!$B$36,INDEX(Ranks!$1:$1048576,$A420,CE$1))","v":""},{"$f":"IF($A420=\"N/A\",Ref!$B$36,INDEX(Ranks!$1:$1048576,$A420,CF$1))","v":""},{"$f":"IF($A420=\"N/A\",Ref!$B$36,INDEX(Ranks!$1:$1048576,$A420,CG$1))","v":""},{"$f":"IF($A420=\"N/A\",Ref!$B$36,INDEX(Ranks!$1:$1048576,$A420,CH$1))","v":""},{"$f":"IF($A420=\"N/A\",Ref!$B$36,INDEX(Ranks!$1:$1048576,$A420,CI$1))","v":""},{"$f":"IF($A420=\"N/A\",Ref!$B$36,INDEX(Ranks!$1:$1048576,$A420,CJ$1))","v":""},{"$f":"IF($A420=\"N/A\",Ref!$B$36,INDEX(Ranks!$1:$1048576,$A420,CK$1))","v":""},{"$f":"IF($A420=\"N/A\",Ref!$B$36,INDEX(Ranks!$1:$1048576,$A420,CL$1))","v":""},{"$f":"IF($A420=\"N/A\",Ref!$B$36,INDEX(Ranks!$1:$1048576,$A420,CM$1))","v":""},{"$f":"IF($A420=\"N/A\",Ref!$B$36,INDEX(Ranks!$1:$1048576,$A420,CN$1))","v":""},{"$f":"IF($A420=\"N/A\",Ref!$B$36,INDEX(Ranks!$1:$1048576,$A420,CO$1))","v":""},{"$f":"IF($A420=\"N/A\",Ref!$B$36,INDEX(Ranks!$1:$1048576,$A420,CP$1))","v":""},{"$f":"IF($A420=\"N/A\",Ref!$B$36,INDEX(Ranks!$1:$1048576,$A420,CQ$1))","v":""},{"$f":"IF($A420=\"N/A\",Ref!$B$36,INDEX(Ranks!$1:$1048576,$A420,CR$1))","v":""},{"$f":"IF($A420=\"N/A\",Ref!$B$36,INDEX(Ranks!$1:$1048576,$A420,CS$1))","v":""},{"$f":"IF($A420=\"N/A\",Ref!$B$36,INDEX(Ranks!$1:$1048576,$A420,CT$1))","v":""},{"$f":"IF($A420=\"N/A\",Ref!$B$36,INDEX(Ranks!$1:$1048576,$A420,CU$1))","v":""},{"$f":"IF($A420=\"N/A\",Ref!$B$36,INDEX(Ranks!$1:$1048576,$A420,CV$1))","v":""},{"$f":"IF($A420=\"N/A\",Ref!$B$36,INDEX(Ranks!$1:$1048576,$A420,CW$1))","v":""},{"$f":"IF($A420=\"N/A\",Ref!$B$36,INDEX(Ranks!$1:$1048576,$A420,CX$1))","v":""},{"$f":"IF($A420=\"N/A\",Ref!$B$36,INDEX(Ranks!$1:$1048576,$A420,CY$1))","v":""},{"$f":"IF($A420=\"N/A\",Ref!$B$36,INDEX(Ranks!$1:$1048576,$A420,CZ$1))","v":""},{"$f":"IF($A420=\"N/A\",Ref!$B$36,INDEX(Ranks!$1:$1048576,$A420,DA$1))","v":""},{"$f":"IF($A420=\"N/A\",Ref!$B$36,INDEX(Ranks!$1:$1048576,$A420,DB$1))","v":""},{"$f":"IF($A420=\"N/A\",Ref!$B$36,INDEX(Ranks!$1:$1048576,$A420,DC$1))","v":""},{"$f":"IF($A420=\"N/A\",Ref!$B$36,INDEX(Ranks!$1:$1048576,$A420,DD$1))","v":""},{"$f":"IF($A420=\"N/A\",Ref!$B$36,INDEX(Ranks!$1:$1048576,$A420,DE$1))","v":""},{"$f":"IF($A420=\"N/A\",Ref!$B$36,INDEX(Ranks!$1:$1048576,$A420,DF$1))","v":""},{"$f":"IF($A420=\"N/A\",Ref!$B$36,INDEX(Ranks!$1:$1048576,$A420,DG$1))","v":""},{"$f":"IF($A420=\"N/A\",Ref!$B$36,INDEX(Ranks!$1:$1048576,$A420,DH$1))","v":""},{"$f":"IF($A420=\"N/A\",Ref!$B$36,INDEX(Ranks!$1:$1048576,$A420,DI$1))","v":""},{"$f":"IF($A420=\"N/A\",Ref!$B$36,INDEX(Ranks!$1:$1048576,$A420,DJ$1))","v":""},{"$f":"IF($A420=\"N/A\",Ref!$B$36,INDEX(Ranks!$1:$1048576,$A420,DK$1))","v":""},{"$f":"IF($A420=\"N/A\",Ref!$B$36,INDEX(Ranks!$1:$1048576,$A420,DL$1))","v":""},{"$f":"IF($A420=\"N/A\",Ref!$B$36,INDEX(Ranks!$1:$1048576,$A420,DM$1))","v":""},{"$f":"IF($A420=\"N/A\",Ref!$B$36,INDEX(Ranks!$1:$1048576,$A420,DN$1))","v":""},{"$f":"IF($A420=\"N/A\",Ref!$B$36,INDEX(Ranks!$1:$1048576,$A420,DO$1))","v":""},{"$f":"IF($A420=\"N/A\",Ref!$B$36,INDEX(Ranks!$1:$1048576,$A420,DP$1))","v":""},{"$f":"IF($A420=\"N/A\",Ref!$B$36,INDEX(Ranks!$1:$1048576,$A420,DQ$1))","v":""},{"$f":"IF($A420=\"N/A\",Ref!$B$36,INDEX(Ranks!$1:$1048576,$A420,DR$1))","v":""},{"$f":"IF($A420=\"N/A\",Ref!$B$36,INDEX(Ranks!$1:$1048576,$A420,DS$1))","v":""},{"$f":"IF($A420=\"N/A\",Ref!$B$36,INDEX(Ranks!$1:$1048576,$A420,DT$1))","v":""},{"$f":"IF($A420=\"N/A\",Ref!$B$36,INDEX(Ranks!$1:$1048576,$A420,DU$1))","v":""},{"$f":"IF($A420=\"N/A\",Ref!$B$36,INDEX(Ranks!$1:$1048576,$A420,DV$1))","v":""},{"$f":"IF($A420=\"N/A\",Ref!$B$36,INDEX(Ranks!$1:$1048576,$A420,DW$1))","v":""},{"$f":"IF($A420=\"N/A\",Ref!$B$36,INDEX(Ranks!$1:$1048576,$A420,DX$1))","v":""},{"$f":"IF($A420=\"N/A\",Ref!$B$36,INDEX(Ranks!$1:$1048576,$A420,DY$1))","v":""},{"$f":"IF($A420=\"N/A\",Ref!$B$36,INDEX(Ranks!$1:$1048576,$A420,DZ$1))","v":""},{"$f":"IF($A420=\"N/A\",Ref!$B$36,INDEX(Ranks!$1:$1048576,$A420,EA$1))","v":""},{"$f":"IF($A420=\"N/A\",Ref!$B$36,INDEX(Ranks!$1:$1048576,$A420,EB$1))","v":""}]
[{"$f":"IFERROR(MATCH('Portfolio Page'!L421,Ranks!L:L,0),\"N/A\")","v":"N/A"},null,{"$f":"IF($A421=\"N/A\",\"\",INDEX(Ranks!$1:$1048576,$A421,C$1))","v":""},{"$f":"IF($A421=\"N/A\",Ref!$B$36,INDEX(Ranks!$1:$1048576,$A421,D$1))","v":""},{"$f":"IF($A421=\"N/A\",Ref!$B$36,INDEX(Ranks!$1:$1048576,$A421,E$1))","v":""},{"$f":"IF($A421=\"N/A\",\"\",INDEX(Ranks!$1:$1048576,$A421,F$1))","v":""},{"$f":"IF($A421=\"N/A\",\"\",INDEX(Ranks!$1:$1048576,$A421,G$1))","v":""},{"$f":"IF($A421=\"N/A\",\"\",INDEX(Ranks!$1:$1048576,$A421,H$1))","v":""},{"$f":"IF($A421=\"N/A\",\"\",INDEX(Ranks!$1:$1048576,$A421,I$1))","v":""},{"$f":"IF($A421=\"N/A\",\"\",INDEX(Ranks!$1:$1048576,$A421,J$1))","v":""},{"$f":"IF($A421=\"N/A\",\"\",INDEX(Ranks!$1:$1048576,$A421,K$1))","v":""},null,{"$f":"IF($A421=\"N/A\",Ref!$B$36,INDEX(Ranks!$1:$1048576,$A421,M$1))","v":""},{"$f":"IF($A421=\"N/A\",Ref!$B$36,INDEX(Ranks!$1:$1048576,$A421,N$1))","v":""},{"$f":"IF($A421=\"N/A\",Ref!$B$36,INDEX(Ranks!$1:$1048576,$A421,O$1))","v":""},{"$f":"IF($A421=\"N/A\",Ref!$B$36,INDEX(Ranks!$1:$1048576,$A421,P$1))","v":""},{"$f":"IF($A421=\"N/A\",Ref!$B$36,INDEX(Ranks!$1:$1048576,$A421,Q$1))","v":""},{"$f":"IF($A421=\"N/A\",Ref!$B$36,INDEX(Ranks!$1:$1048576,$A421,R$1))","v":""},{"$f":"IF($A421=\"N/A\",Ref!$B$36,INDEX(Ranks!$1:$1048576,$A421,S$1))","v":""},{"$f":"IF($A421=\"N/A\",Ref!$B$36,INDEX(Ranks!$1:$1048576,$A421,T$1))","v":""},{"$f":"IF($A421=\"N/A\",Ref!$B$36,INDEX(Ranks!$1:$1048576,$A421,U$1))","v":""},{"$f":"IF($A421=\"N/A\",Ref!$B$36,INDEX(Ranks!$1:$1048576,$A421,V$1))","v":""},{"$f":"IF($A421=\"N/A\",Ref!$B$36,INDEX(Ranks!$1:$1048576,$A421,W$1))","v":""},{"$f":"IF($A421=\"N/A\",Ref!$B$36,INDEX(Ranks!$1:$1048576,$A421,X$1))","v":""},{"$f":"IF($A421=\"N/A\",Ref!$B$36,INDEX(Ranks!$1:$1048576,$A421,Y$1))","v":""},{"$f":"IF($A421=\"N/A\",Ref!$B$36,INDEX(Ranks!$1:$1048576,$A421,Z$1))","v":""},{"$f":"IF($A421=\"N/A\",Ref!$B$36,INDEX(Ranks!$1:$1048576,$A421,AA$1))","v":""},{"$f":"IF($A421=\"N/A\",Ref!$B$36,INDEX(Ranks!$1:$1048576,$A421,AB$1))","v":""},{"$f":"IF($A421=\"N/A\",Ref!$B$36,INDEX(Ranks!$1:$1048576,$A421,AC$1))","v":""},{"$f":"IF($A421=\"N/A\",Ref!$B$36,INDEX(Ranks!$1:$1048576,$A421,AD$1))","v":""},{"$f":"IF($A421=\"N/A\",Ref!$B$36,INDEX(Ranks!$1:$1048576,$A421,AE$1))","v":""},{"$f":"IF($A421=\"N/A\",Ref!$B$36,INDEX(Ranks!$1:$1048576,$A421,AF$1))","v":""},{"$f":"IF($A421=\"N/A\",Ref!$B$36,INDEX(Ranks!$1:$1048576,$A421,AG$1))","v":""},{"$f":"IF($A421=\"N/A\",Ref!$B$36,INDEX(Ranks!$1:$1048576,$A421,AH$1))","v":""},{"$f":"IF($A421=\"N/A\",Ref!$B$36,INDEX(Ranks!$1:$1048576,$A421,AI$1))","v":""},{"$f":"IF($A421=\"N/A\",Ref!$B$36,INDEX(Ranks!$1:$1048576,$A421,AJ$1))","v":""},{"$f":"IF($A421=\"N/A\",Ref!$B$36,INDEX(Ranks!$1:$1048576,$A421,AK$1))","v":""},{"$f":"IF($A421=\"N/A\",Ref!$B$36,INDEX(Ranks!$1:$1048576,$A421,AL$1))","v":""},{"$f":"IF($A421=\"N/A\",Ref!$B$36,INDEX(Ranks!$1:$1048576,$A421,AM$1))","v":""},{"$f":"IF($A421=\"N/A\",Ref!$B$36,INDEX(Ranks!$1:$1048576,$A421,AN$1))","v":""},{"$f":"IF($A421=\"N/A\",Ref!$B$36,INDEX(Ranks!$1:$1048576,$A421,AO$1))","v":""},{"$f":"IF($A421=\"N/A\",Ref!$B$36,INDEX(Ranks!$1:$1048576,$A421,AP$1))","v":""},{"$f":"IF($A421=\"N/A\",Ref!$B$36,INDEX(Ranks!$1:$1048576,$A421,AQ$1))","v":""},{"$f":"IF($A421=\"N/A\",Ref!$B$36,INDEX(Ranks!$1:$1048576,$A421,AR$1))","v":""},{"$f":"IF($A421=\"N/A\",Ref!$B$36,INDEX(Ranks!$1:$1048576,$A421,AS$1))","v":""},{"$f":"IF($A421=\"N/A\",Ref!$B$36,INDEX(Ranks!$1:$1048576,$A421,AT$1))","v":""},{"$f":"IF($A421=\"N/A\",Ref!$B$36,INDEX(Ranks!$1:$1048576,$A421,AU$1))","v":""},{"$f":"IF($A421=\"N/A\",Ref!$B$36,INDEX(Ranks!$1:$1048576,$A421,AV$1))","v":""},{"$f":"IF($A421=\"N/A\",Ref!$B$36,INDEX(Ranks!$1:$1048576,$A421,AW$1))","v":""},{"$f":"IF($A421=\"N/A\",Ref!$B$36,INDEX(Ranks!$1:$1048576,$A421,AX$1))","v":""},{"$f":"IF($A421=\"N/A\",Ref!$B$36,INDEX(Ranks!$1:$1048576,$A421,AY$1))","v":""},{"$f":"IF($A421=\"N/A\",Ref!$B$36,INDEX(Ranks!$1:$1048576,$A421,AZ$1))","v":""},{"$f":"IF($A421=\"N/A\",Ref!$B$36,INDEX(Ranks!$1:$1048576,$A421,BA$1))","v":""},{"$f":"IF($A421=\"N/A\",Ref!$B$36,INDEX(Ranks!$1:$1048576,$A421,BB$1))","v":""},{"$f":"IF($A421=\"N/A\",Ref!$B$36,INDEX(Ranks!$1:$1048576,$A421,BC$1))","v":""},{"$f":"IF($A421=\"N/A\",Ref!$B$36,INDEX(Ranks!$1:$1048576,$A421,BD$1))","v":""},{"$f":"IF($A421=\"N/A\",Ref!$B$36,INDEX(Ranks!$1:$1048576,$A421,BE$1))","v":""},{"$f":"IF($A421=\"N/A\",Ref!$B$36,INDEX(Ranks!$1:$1048576,$A421,BF$1))","v":""},{"$f":"IF($A421=\"N/A\",Ref!$B$36,INDEX(Ranks!$1:$1048576,$A421,BG$1))","v":""},{"$f":"IF($A421=\"N/A\",Ref!$B$36,INDEX(Ranks!$1:$1048576,$A421,BH$1))","v":""},{"$f":"IF($A421=\"N/A\",Ref!$B$36,INDEX(Ranks!$1:$1048576,$A421,BI$1))","v":""},{"$f":"IF($A421=\"N/A\",Ref!$B$36,INDEX(Ranks!$1:$1048576,$A421,BJ$1))","v":""},{"$f":"IF($A421=\"N/A\",Ref!$B$36,INDEX(Ranks!$1:$1048576,$A421,BK$1))","v":""},{"$f":"IF($A421=\"N/A\",Ref!$B$36,INDEX(Ranks!$1:$1048576,$A421,BL$1))","v":""},{"$f":"IF($A421=\"N/A\",Ref!$B$36,INDEX(Ranks!$1:$1048576,$A421,BM$1))","v":""},{"$f":"IF($A421=\"N/A\",Ref!$B$36,INDEX(Ranks!$1:$1048576,$A421,BN$1))","v":""},{"$f":"IF($A421=\"N/A\",Ref!$B$36,INDEX(Ranks!$1:$1048576,$A421,BO$1))","v":""},{"$f":"IF($A421=\"N/A\",Ref!$B$36,INDEX(Ranks!$1:$1048576,$A421,BP$1))","v":""},{"$f":"IF($A421=\"N/A\",Ref!$B$36,INDEX(Ranks!$1:$1048576,$A421,BQ$1))","v":""},{"$f":"IF($A421=\"N/A\",Ref!$B$36,INDEX(Ranks!$1:$1048576,$A421,BR$1))","v":""},{"$f":"IF($A421=\"N/A\",Ref!$B$36,INDEX(Ranks!$1:$1048576,$A421,BS$1))","v":""},{"$f":"IF($A421=\"N/A\",Ref!$B$36,INDEX(Ranks!$1:$1048576,$A421,BT$1))","v":""},{"$f":"IF($A421=\"N/A\",Ref!$B$36,INDEX(Ranks!$1:$1048576,$A421,BU$1))","v":""},{"$f":"IF($A421=\"N/A\",Ref!$B$36,INDEX(Ranks!$1:$1048576,$A421,BV$1))","v":""},{"$f":"IF($A421=\"N/A\",Ref!$B$36,INDEX(Ranks!$1:$1048576,$A421,BW$1))","v":""},{"$f":"IF($A421=\"N/A\",Ref!$B$36,INDEX(Ranks!$1:$1048576,$A421,BX$1))","v":""},{"$f":"IF($A421=\"N/A\",Ref!$B$36,INDEX(Ranks!$1:$1048576,$A421,BY$1))","v":""},{"$f":"IF($A421=\"N/A\",Ref!$B$36,INDEX(Ranks!$1:$1048576,$A421,BZ$1))","v":""},{"$f":"IF($A421=\"N/A\",Ref!$B$36,INDEX(Ranks!$1:$1048576,$A421,CA$1))","v":""},{"$f":"IF($A421=\"N/A\",Ref!$B$36,INDEX(Ranks!$1:$1048576,$A421,CB$1))","v":""},{"$f":"IF($A421=\"N/A\",Ref!$B$36,INDEX(Ranks!$1:$1048576,$A421,CC$1))","v":""},{"$f":"IF($A421=\"N/A\",Ref!$B$36,INDEX(Ranks!$1:$1048576,$A421,CD$1))","v":""},{"$f":"IF($A421=\"N/A\",Ref!$B$36,INDEX(Ranks!$1:$1048576,$A421,CE$1))","v":""},{"$f":"IF($A421=\"N/A\",Ref!$B$36,INDEX(Ranks!$1:$1048576,$A421,CF$1))","v":""},{"$f":"IF($A421=\"N/A\",Ref!$B$36,INDEX(Ranks!$1:$1048576,$A421,CG$1))","v":""},{"$f":"IF($A421=\"N/A\",Ref!$B$36,INDEX(Ranks!$1:$1048576,$A421,CH$1))","v":""},{"$f":"IF($A421=\"N/A\",Ref!$B$36,INDEX(Ranks!$1:$1048576,$A421,CI$1))","v":""},{"$f":"IF($A421=\"N/A\",Ref!$B$36,INDEX(Ranks!$1:$1048576,$A421,CJ$1))","v":""},{"$f":"IF($A421=\"N/A\",Ref!$B$36,INDEX(Ranks!$1:$1048576,$A421,CK$1))","v":""},{"$f":"IF($A421=\"N/A\",Ref!$B$36,INDEX(Ranks!$1:$1048576,$A421,CL$1))","v":""},{"$f":"IF($A421=\"N/A\",Ref!$B$36,INDEX(Ranks!$1:$1048576,$A421,CM$1))","v":""},{"$f":"IF($A421=\"N/A\",Ref!$B$36,INDEX(Ranks!$1:$1048576,$A421,CN$1))","v":""},{"$f":"IF($A421=\"N/A\",Ref!$B$36,INDEX(Ranks!$1:$1048576,$A421,CO$1))","v":""},{"$f":"IF($A421=\"N/A\",Ref!$B$36,INDEX(Ranks!$1:$1048576,$A421,CP$1))","v":""},{"$f":"IF($A421=\"N/A\",Ref!$B$36,INDEX(Ranks!$1:$1048576,$A421,CQ$1))","v":""},{"$f":"IF($A421=\"N/A\",Ref!$B$36,INDEX(Ranks!$1:$1048576,$A421,CR$1))","v":""},{"$f":"IF($A421=\"N/A\",Ref!$B$36,INDEX(Ranks!$1:$1048576,$A421,CS$1))","v":""},{"$f":"IF($A421=\"N/A\",Ref!$B$36,INDEX(Ranks!$1:$1048576,$A421,CT$1))","v":""},{"$f":"IF($A421=\"N/A\",Ref!$B$36,INDEX(Ranks!$1:$1048576,$A421,CU$1))","v":""},{"$f":"IF($A421=\"N/A\",Ref!$B$36,INDEX(Ranks!$1:$1048576,$A421,CV$1))","v":""},{"$f":"IF($A421=\"N/A\",Ref!$B$36,INDEX(Ranks!$1:$1048576,$A421,CW$1))","v":""},{"$f":"IF($A421=\"N/A\",Ref!$B$36,INDEX(Ranks!$1:$1048576,$A421,CX$1))","v":""},{"$f":"IF($A421=\"N/A\",Ref!$B$36,INDEX(Ranks!$1:$1048576,$A421,CY$1))","v":""},{"$f":"IF($A421=\"N/A\",Ref!$B$36,INDEX(Ranks!$1:$1048576,$A421,CZ$1))","v":""},{"$f":"IF($A421=\"N/A\",Ref!$B$36,INDEX(Ranks!$1:$1048576,$A421,DA$1))","v":""},{"$f":"IF($A421=\"N/A\",Ref!$B$36,INDEX(Ranks!$1:$1048576,$A421,DB$1))","v":""},{"$f":"IF($A421=\"N/A\",Ref!$B$36,INDEX(Ranks!$1:$1048576,$A421,DC$1))","v":""},{"$f":"IF($A421=\"N/A\",Ref!$B$36,INDEX(Ranks!$1:$1048576,$A421,DD$1))","v":""},{"$f":"IF($A421=\"N/A\",Ref!$B$36,INDEX(Ranks!$1:$1048576,$A421,DE$1))","v":""},{"$f":"IF($A421=\"N/A\",Ref!$B$36,INDEX(Ranks!$1:$1048576,$A421,DF$1))","v":""},{"$f":"IF($A421=\"N/A\",Ref!$B$36,INDEX(Ranks!$1:$1048576,$A421,DG$1))","v":""},{"$f":"IF($A421=\"N/A\",Ref!$B$36,INDEX(Ranks!$1:$1048576,$A421,DH$1))","v":""},{"$f":"IF($A421=\"N/A\",Ref!$B$36,INDEX(Ranks!$1:$1048576,$A421,DI$1))","v":""},{"$f":"IF($A421=\"N/A\",Ref!$B$36,INDEX(Ranks!$1:$1048576,$A421,DJ$1))","v":""},{"$f":"IF($A421=\"N/A\",Ref!$B$36,INDEX(Ranks!$1:$1048576,$A421,DK$1))","v":""},{"$f":"IF($A421=\"N/A\",Ref!$B$36,INDEX(Ranks!$1:$1048576,$A421,DL$1))","v":""},{"$f":"IF($A421=\"N/A\",Ref!$B$36,INDEX(Ranks!$1:$1048576,$A421,DM$1))","v":""},{"$f":"IF($A421=\"N/A\",Ref!$B$36,INDEX(Ranks!$1:$1048576,$A421,DN$1))","v":""},{"$f":"IF($A421=\"N/A\",Ref!$B$36,INDEX(Ranks!$1:$1048576,$A421,DO$1))","v":""},{"$f":"IF($A421=\"N/A\",Ref!$B$36,INDEX(Ranks!$1:$1048576,$A421,DP$1))","v":""},{"$f":"IF($A421=\"N/A\",Ref!$B$36,INDEX(Ranks!$1:$1048576,$A421,DQ$1))","v":""},{"$f":"IF($A421=\"N/A\",Ref!$B$36,INDEX(Ranks!$1:$1048576,$A421,DR$1))","v":""},{"$f":"IF($A421=\"N/A\",Ref!$B$36,INDEX(Ranks!$1:$1048576,$A421,DS$1))","v":""},{"$f":"IF($A421=\"N/A\",Ref!$B$36,INDEX(Ranks!$1:$1048576,$A421,DT$1))","v":""},{"$f":"IF($A421=\"N/A\",Ref!$B$36,INDEX(Ranks!$1:$1048576,$A421,DU$1))","v":""},{"$f":"IF($A421=\"N/A\",Ref!$B$36,INDEX(Ranks!$1:$1048576,$A421,DV$1))","v":""},{"$f":"IF($A421=\"N/A\",Ref!$B$36,INDEX(Ranks!$1:$1048576,$A421,DW$1))","v":""},{"$f":"IF($A421=\"N/A\",Ref!$B$36,INDEX(Ranks!$1:$1048576,$A421,DX$1))","v":""},{"$f":"IF($A421=\"N/A\",Ref!$B$36,INDEX(Ranks!$1:$1048576,$A421,DY$1))","v":""},{"$f":"IF($A421=\"N/A\",Ref!$B$36,INDEX(Ranks!$1:$1048576,$A421,DZ$1))","v":""},{"$f":"IF($A421=\"N/A\",Ref!$B$36,INDEX(Ranks!$1:$1048576,$A421,EA$1))","v":""},{"$f":"IF($A421=\"N/A\",Ref!$B$36,INDEX(Ranks!$1:$1048576,$A421,EB$1))","v":""}]
[{"$f":"IFERROR(MATCH('Portfolio Page'!L422,Ranks!L:L,0),\"N/A\")","v":"N/A"},null,{"$f":"IF($A422=\"N/A\",\"\",INDEX(Ranks!$1:$1048576,$A422,C$1))","v":""},{"$f":"IF($A422=\"N/A\",Ref!$B$36,INDEX(Ranks!$1:$1048576,$A422,D$1))","v":""},{"$f":"IF($A422=\"N/A\",Ref!$B$36,INDEX(Ranks!$1:$1048576,$A422,E$1))","v":""},{"$f":"IF($A422=\"N/A\",\"\",INDEX(Ranks!$1:$1048576,$A422,F$1))","v":""},{"$f":"IF($A422=\"N/A\",\"\",INDEX(Ranks!$1:$1048576,$A422,G$1))","v":""},{"$f":"IF($A422=\"N/A\",\"\",INDEX(Ranks!$1:$1048576,$A422,H$1))","v":""},{"$f":"IF($A422=\"N/A\",\"\",INDEX(Ranks!$1:$1048576,$A422,I$1))","v":""},{"$f":"IF($A422=\"N/A\",\"\",INDEX(Ranks!$1:$1048576,$A422,J$1))","v":""},{"$f":"IF($A422=\"N/A\",\"\",INDEX(Ranks!$1:$1048576,$A422,K$1))","v":""},null,{"$f":"IF($A422=\"N/A\",Ref!$B$36,INDEX(Ranks!$1:$1048576,$A422,M$1))","v":""},{"$f":"IF($A422=\"N/A\",Ref!$B$36,INDEX(Ranks!$1:$1048576,$A422,N$1))","v":""},{"$f":"IF($A422=\"N/A\",Ref!$B$36,INDEX(Ranks!$1:$1048576,$A422,O$1))","v":""},{"$f":"IF($A422=\"N/A\",Ref!$B$36,INDEX(Ranks!$1:$1048576,$A422,P$1))","v":""},{"$f":"IF($A422=\"N/A\",Ref!$B$36,INDEX(Ranks!$1:$1048576,$A422,Q$1))","v":""},{"$f":"IF($A422=\"N/A\",Ref!$B$36,INDEX(Ranks!$1:$1048576,$A422,R$1))","v":""},{"$f":"IF($A422=\"N/A\",Ref!$B$36,INDEX(Ranks!$1:$1048576,$A422,S$1))","v":""},{"$f":"IF($A422=\"N/A\",Ref!$B$36,INDEX(Ranks!$1:$1048576,$A422,T$1))","v":""},{"$f":"IF($A422=\"N/A\",Ref!$B$36,INDEX(Ranks!$1:$1048576,$A422,U$1))","v":""},{"$f":"IF($A422=\"N/A\",Ref!$B$36,INDEX(Ranks!$1:$1048576,$A422,V$1))","v":""},{"$f":"IF($A422=\"N/A\",Ref!$B$36,INDEX(Ranks!$1:$1048576,$A422,W$1))","v":""},{"$f":"IF($A422=\"N/A\",Ref!$B$36,INDEX(Ranks!$1:$1048576,$A422,X$1))","v":""},{"$f":"IF($A422=\"N/A\",Ref!$B$36,INDEX(Ranks!$1:$1048576,$A422,Y$1))","v":""},{"$f":"IF($A422=\"N/A\",Ref!$B$36,INDEX(Ranks!$1:$1048576,$A422,Z$1))","v":""},{"$f":"IF($A422=\"N/A\",Ref!$B$36,INDEX(Ranks!$1:$1048576,$A422,AA$1))","v":""},{"$f":"IF($A422=\"N/A\",Ref!$B$36,INDEX(Ranks!$1:$1048576,$A422,AB$1))","v":""},{"$f":"IF($A422=\"N/A\",Ref!$B$36,INDEX(Ranks!$1:$1048576,$A422,AC$1))","v":""},{"$f":"IF($A422=\"N/A\",Ref!$B$36,INDEX(Ranks!$1:$1048576,$A422,AD$1))","v":""},{"$f":"IF($A422=\"N/A\",Ref!$B$36,INDEX(Ranks!$1:$1048576,$A422,AE$1))","v":""},{"$f":"IF($A422=\"N/A\",Ref!$B$36,INDEX(Ranks!$1:$1048576,$A422,AF$1))","v":""},{"$f":"IF($A422=\"N/A\",Ref!$B$36,INDEX(Ranks!$1:$1048576,$A422,AG$1))","v":""},{"$f":"IF($A422=\"N/A\",Ref!$B$36,INDEX(Ranks!$1:$1048576,$A422,AH$1))","v":""},{"$f":"IF($A422=\"N/A\",Ref!$B$36,INDEX(Ranks!$1:$1048576,$A422,AI$1))","v":""},{"$f":"IF($A422=\"N/A\",Ref!$B$36,INDEX(Ranks!$1:$1048576,$A422,AJ$1))","v":""},{"$f":"IF($A422=\"N/A\",Ref!$B$36,INDEX(Ranks!$1:$1048576,$A422,AK$1))","v":""},{"$f":"IF($A422=\"N/A\",Ref!$B$36,INDEX(Ranks!$1:$1048576,$A422,AL$1))","v":""},{"$f":"IF($A422=\"N/A\",Ref!$B$36,INDEX(Ranks!$1:$1048576,$A422,AM$1))","v":""},{"$f":"IF($A422=\"N/A\",Ref!$B$36,INDEX(Ranks!$1:$1048576,$A422,AN$1))","v":""},{"$f":"IF($A422=\"N/A\",Ref!$B$36,INDEX(Ranks!$1:$1048576,$A422,AO$1))","v":""},{"$f":"IF($A422=\"N/A\",Ref!$B$36,INDEX(Ranks!$1:$1048576,$A422,AP$1))","v":""},{"$f":"IF($A422=\"N/A\",Ref!$B$36,INDEX(Ranks!$1:$1048576,$A422,AQ$1))","v":""},{"$f":"IF($A422=\"N/A\",Ref!$B$36,INDEX(Ranks!$1:$1048576,$A422,AR$1))","v":""},{"$f":"IF($A422=\"N/A\",Ref!$B$36,INDEX(Ranks!$1:$1048576,$A422,AS$1))","v":""},{"$f":"IF($A422=\"N/A\",Ref!$B$36,INDEX(Ranks!$1:$1048576,$A422,AT$1))","v":""},{"$f":"IF($A422=\"N/A\",Ref!$B$36,INDEX(Ranks!$1:$1048576,$A422,AU$1))","v":""},{"$f":"IF($A422=\"N/A\",Ref!$B$36,INDEX(Ranks!$1:$1048576,$A422,AV$1))","v":""},{"$f":"IF($A422=\"N/A\",Ref!$B$36,INDEX(Ranks!$1:$1048576,$A422,AW$1))","v":""},{"$f":"IF($A422=\"N/A\",Ref!$B$36,INDEX(Ranks!$1:$1048576,$A422,AX$1))","v":""},{"$f":"IF($A422=\"N/A\",Ref!$B$36,INDEX(Ranks!$1:$1048576,$A422,AY$1))","v":""},{"$f":"IF($A422=\"N/A\",Ref!$B$36,INDEX(Ranks!$1:$1048576,$A422,AZ$1))","v":""},{"$f":"IF($A422=\"N/A\",Ref!$B$36,INDEX(Ranks!$1:$1048576,$A422,BA$1))","v":""},{"$f":"IF($A422=\"N/A\",Ref!$B$36,INDEX(Ranks!$1:$1048576,$A422,BB$1))","v":""},{"$f":"IF($A422=\"N/A\",Ref!$B$36,INDEX(Ranks!$1:$1048576,$A422,BC$1))","v":""},{"$f":"IF($A422=\"N/A\",Ref!$B$36,INDEX(Ranks!$1:$1048576,$A422,BD$1))","v":""},{"$f":"IF($A422=\"N/A\",Ref!$B$36,INDEX(Ranks!$1:$1048576,$A422,BE$1))","v":""},{"$f":"IF($A422=\"N/A\",Ref!$B$36,INDEX(Ranks!$1:$1048576,$A422,BF$1))","v":""},{"$f":"IF($A422=\"N/A\",Ref!$B$36,INDEX(Ranks!$1:$1048576,$A422,BG$1))","v":""},{"$f":"IF($A422=\"N/A\",Ref!$B$36,INDEX(Ranks!$1:$1048576,$A422,BH$1))","v":""},{"$f":"IF($A422=\"N/A\",Ref!$B$36,INDEX(Ranks!$1:$1048576,$A422,BI$1))","v":""},{"$f":"IF($A422=\"N/A\",Ref!$B$36,INDEX(Ranks!$1:$1048576,$A422,BJ$1))","v":""},{"$f":"IF($A422=\"N/A\",Ref!$B$36,INDEX(Ranks!$1:$1048576,$A422,BK$1))","v":""},{"$f":"IF($A422=\"N/A\",Ref!$B$36,INDEX(Ranks!$1:$1048576,$A422,BL$1))","v":""},{"$f":"IF($A422=\"N/A\",Ref!$B$36,INDEX(Ranks!$1:$1048576,$A422,BM$1))","v":""},{"$f":"IF($A422=\"N/A\",Ref!$B$36,INDEX(Ranks!$1:$1048576,$A422,BN$1))","v":""},{"$f":"IF($A422=\"N/A\",Ref!$B$36,INDEX(Ranks!$1:$1048576,$A422,BO$1))","v":""},{"$f":"IF($A422=\"N/A\",Ref!$B$36,INDEX(Ranks!$1:$1048576,$A422,BP$1))","v":""},{"$f":"IF($A422=\"N/A\",Ref!$B$36,INDEX(Ranks!$1:$1048576,$A422,BQ$1))","v":""},{"$f":"IF($A422=\"N/A\",Ref!$B$36,INDEX(Ranks!$1:$1048576,$A422,BR$1))","v":""},{"$f":"IF($A422=\"N/A\",Ref!$B$36,INDEX(Ranks!$1:$1048576,$A422,BS$1))","v":""},{"$f":"IF($A422=\"N/A\",Ref!$B$36,INDEX(Ranks!$1:$1048576,$A422,BT$1))","v":""},{"$f":"IF($A422=\"N/A\",Ref!$B$36,INDEX(Ranks!$1:$1048576,$A422,BU$1))","v":""},{"$f":"IF($A422=\"N/A\",Ref!$B$36,INDEX(Ranks!$1:$1048576,$A422,BV$1))","v":""},{"$f":"IF($A422=\"N/A\",Ref!$B$36,INDEX(Ranks!$1:$1048576,$A422,BW$1))","v":""},{"$f":"IF($A422=\"N/A\",Ref!$B$36,INDEX(Ranks!$1:$1048576,$A422,BX$1))","v":""},{"$f":"IF($A422=\"N/A\",Ref!$B$36,INDEX(Ranks!$1:$1048576,$A422,BY$1))","v":""},{"$f":"IF($A422=\"N/A\",Ref!$B$36,INDEX(Ranks!$1:$1048576,$A422,BZ$1))","v":""},{"$f":"IF($A422=\"N/A\",Ref!$B$36,INDEX(Ranks!$1:$1048576,$A422,CA$1))","v":""},{"$f":"IF($A422=\"N/A\",Ref!$B$36,INDEX(Ranks!$1:$1048576,$A422,CB$1))","v":""},{"$f":"IF($A422=\"N/A\",Ref!$B$36,INDEX(Ranks!$1:$1048576,$A422,CC$1))","v":""},{"$f":"IF($A422=\"N/A\",Ref!$B$36,INDEX(Ranks!$1:$1048576,$A422,CD$1))","v":""},{"$f":"IF($A422=\"N/A\",Ref!$B$36,INDEX(Ranks!$1:$1048576,$A422,CE$1))","v":""},{"$f":"IF($A422=\"N/A\",Ref!$B$36,INDEX(Ranks!$1:$1048576,$A422,CF$1))","v":""},{"$f":"IF($A422=\"N/A\",Ref!$B$36,INDEX(Ranks!$1:$1048576,$A422,CG$1))","v":""},{"$f":"IF($A422=\"N/A\",Ref!$B$36,INDEX(Ranks!$1:$1048576,$A422,CH$1))","v":""},{"$f":"IF($A422=\"N/A\",Ref!$B$36,INDEX(Ranks!$1:$1048576,$A422,CI$1))","v":""},{"$f":"IF($A422=\"N/A\",Ref!$B$36,INDEX(Ranks!$1:$1048576,$A422,CJ$1))","v":""},{"$f":"IF($A422=\"N/A\",Ref!$B$36,INDEX(Ranks!$1:$1048576,$A422,CK$1))","v":""},{"$f":"IF($A422=\"N/A\",Ref!$B$36,INDEX(Ranks!$1:$1048576,$A422,CL$1))","v":""},{"$f":"IF($A422=\"N/A\",Ref!$B$36,INDEX(Ranks!$1:$1048576,$A422,CM$1))","v":""},{"$f":"IF($A422=\"N/A\",Ref!$B$36,INDEX(Ranks!$1:$1048576,$A422,CN$1))","v":""},{"$f":"IF($A422=\"N/A\",Ref!$B$36,INDEX(Ranks!$1:$1048576,$A422,CO$1))","v":""},{"$f":"IF($A422=\"N/A\",Ref!$B$36,INDEX(Ranks!$1:$1048576,$A422,CP$1))","v":""},{"$f":"IF($A422=\"N/A\",Ref!$B$36,INDEX(Ranks!$1:$1048576,$A422,CQ$1))","v":""},{"$f":"IF($A422=\"N/A\",Ref!$B$36,INDEX(Ranks!$1:$1048576,$A422,CR$1))","v":""},{"$f":"IF($A422=\"N/A\",Ref!$B$36,INDEX(Ranks!$1:$1048576,$A422,CS$1))","v":""},{"$f":"IF($A422=\"N/A\",Ref!$B$36,INDEX(Ranks!$1:$1048576,$A422,CT$1))","v":""},{"$f":"IF($A422=\"N/A\",Ref!$B$36,INDEX(Ranks!$1:$1048576,$A422,CU$1))","v":""},{"$f":"IF($A422=\"N/A\",Ref!$B$36,INDEX(Ranks!$1:$1048576,$A422,CV$1))","v":""},{"$f":"IF($A422=\"N/A\",Ref!$B$36,INDEX(Ranks!$1:$1048576,$A422,CW$1))","v":""},{"$f":"IF($A422=\"N/A\",Ref!$B$36,INDEX(Ranks!$1:$1048576,$A422,CX$1))","v":""},{"$f":"IF($A422=\"N/A\",Ref!$B$36,INDEX(Ranks!$1:$1048576,$A422,CY$1))","v":""},{"$f":"IF($A422=\"N/A\",Ref!$B$36,INDEX(Ranks!$1:$1048576,$A422,CZ$1))","v":""},{"$f":"IF($A422=\"N/A\",Ref!$B$36,INDEX(Ranks!$1:$1048576,$A422,DA$1))","v":""},{"$f":"IF($A422=\"N/A\",Ref!$B$36,INDEX(Ranks!$1:$1048576,$A422,DB$1))","v":""},{"$f":"IF($A422=\"N/A\",Ref!$B$36,INDEX(Ranks!$1:$1048576,$A422,DC$1))","v":""},{"$f":"IF($A422=\"N/A\",Ref!$B$36,INDEX(Ranks!$1:$1048576,$A422,DD$1))","v":""},{"$f":"IF($A422=\"N/A\",Ref!$B$36,INDEX(Ranks!$1:$1048576,$A422,DE$1))","v":""},{"$f":"IF($A422=\"N/A\",Ref!$B$36,INDEX(Ranks!$1:$1048576,$A422,DF$1))","v":""},{"$f":"IF($A422=\"N/A\",Ref!$B$36,INDEX(Ranks!$1:$1048576,$A422,DG$1))","v":""},{"$f":"IF($A422=\"N/A\",Ref!$B$36,INDEX(Ranks!$1:$1048576,$A422,DH$1))","v":""},{"$f":"IF($A422=\"N/A\",Ref!$B$36,INDEX(Ranks!$1:$1048576,$A422,DI$1))","v":""},{"$f":"IF($A422=\"N/A\",Ref!$B$36,INDEX(Ranks!$1:$1048576,$A422,DJ$1))","v":""},{"$f":"IF($A422=\"N/A\",Ref!$B$36,INDEX(Ranks!$1:$1048576,$A422,DK$1))","v":""},{"$f":"IF($A422=\"N/A\",Ref!$B$36,INDEX(Ranks!$1:$1048576,$A422,DL$1))","v":""},{"$f":"IF($A422=\"N/A\",Ref!$B$36,INDEX(Ranks!$1:$1048576,$A422,DM$1))","v":""},{"$f":"IF($A422=\"N/A\",Ref!$B$36,INDEX(Ranks!$1:$1048576,$A422,DN$1))","v":""},{"$f":"IF($A422=\"N/A\",Ref!$B$36,INDEX(Ranks!$1:$1048576,$A422,DO$1))","v":""},{"$f":"IF($A422=\"N/A\",Ref!$B$36,INDEX(Ranks!$1:$1048576,$A422,DP$1))","v":""},{"$f":"IF($A422=\"N/A\",Ref!$B$36,INDEX(Ranks!$1:$1048576,$A422,DQ$1))","v":""},{"$f":"IF($A422=\"N/A\",Ref!$B$36,INDEX(Ranks!$1:$1048576,$A422,DR$1))","v":""},{"$f":"IF($A422=\"N/A\",Ref!$B$36,INDEX(Ranks!$1:$1048576,$A422,DS$1))","v":""},{"$f":"IF($A422=\"N/A\",Ref!$B$36,INDEX(Ranks!$1:$1048576,$A422,DT$1))","v":""},{"$f":"IF($A422=\"N/A\",Ref!$B$36,INDEX(Ranks!$1:$1048576,$A422,DU$1))","v":""},{"$f":"IF($A422=\"N/A\",Ref!$B$36,INDEX(Ranks!$1:$1048576,$A422,DV$1))","v":""},{"$f":"IF($A422=\"N/A\",Ref!$B$36,INDEX(Ranks!$1:$1048576,$A422,DW$1))","v":""},{"$f":"IF($A422=\"N/A\",Ref!$B$36,INDEX(Ranks!$1:$1048576,$A422,DX$1))","v":""},{"$f":"IF($A422=\"N/A\",Ref!$B$36,INDEX(Ranks!$1:$1048576,$A422,DY$1))","v":""},{"$f":"IF($A422=\"N/A\",Ref!$B$36,INDEX(Ranks!$1:$1048576,$A422,DZ$1))","v":""},{"$f":"IF($A422=\"N/A\",Ref!$B$36,INDEX(Ranks!$1:$1048576,$A422,EA$1))","v":""},{"$f":"IF($A422=\"N/A\",Ref!$B$36,INDEX(Ranks!$1:$1048576,$A422,EB$1))","v":""}]
[{"$f":"IFERROR(MATCH('Portfolio Page'!L423,Ranks!L:L,0),\"N/A\")","v":"N/A"},null,{"$f":"IF($A423=\"N/A\",\"\",INDEX(Ranks!$1:$1048576,$A423,C$1))","v":""},{"$f":"IF($A423=\"N/A\",Ref!$B$36,INDEX(Ranks!$1:$1048576,$A423,D$1))","v":""},{"$f":"IF($A423=\"N/A\",Ref!$B$36,INDEX(Ranks!$1:$1048576,$A423,E$1))","v":""},{"$f":"IF($A423=\"N/A\",\"\",INDEX(Ranks!$1:$1048576,$A423,F$1))","v":""},{"$f":"IF($A423=\"N/A\",\"\",INDEX(Ranks!$1:$1048576,$A423,G$1))","v":""},{"$f":"IF($A423=\"N/A\",\"\",INDEX(Ranks!$1:$1048576,$A423,H$1))","v":""},{"$f":"IF($A423=\"N/A\",\"\",INDEX(Ranks!$1:$1048576,$A423,I$1))","v":""},{"$f":"IF($A423=\"N/A\",\"\",INDEX(Ranks!$1:$1048576,$A423,J$1))","v":""},{"$f":"IF($A423=\"N/A\",\"\",INDEX(Ranks!$1:$1048576,$A423,K$1))","v":""},null,{"$f":"IF($A423=\"N/A\",Ref!$B$36,INDEX(Ranks!$1:$1048576,$A423,M$1))","v":""},{"$f":"IF($A423=\"N/A\",Ref!$B$36,INDEX(Ranks!$1:$1048576,$A423,N$1))","v":""},{"$f":"IF($A423=\"N/A\",Ref!$B$36,INDEX(Ranks!$1:$1048576,$A423,O$1))","v":""},{"$f":"IF($A423=\"N/A\",Ref!$B$36,INDEX(Ranks!$1:$1048576,$A423,P$1))","v":""},{"$f":"IF($A423=\"N/A\",Ref!$B$36,INDEX(Ranks!$1:$1048576,$A423,Q$1))","v":""},{"$f":"IF($A423=\"N/A\",Ref!$B$36,INDEX(Ranks!$1:$1048576,$A423,R$1))","v":""},{"$f":"IF($A423=\"N/A\",Ref!$B$36,INDEX(Ranks!$1:$1048576,$A423,S$1))","v":""},{"$f":"IF($A423=\"N/A\",Ref!$B$36,INDEX(Ranks!$1:$1048576,$A423,T$1))","v":""},{"$f":"IF($A423=\"N/A\",Ref!$B$36,INDEX(Ranks!$1:$1048576,$A423,U$1))","v":""},{"$f":"IF($A423=\"N/A\",Ref!$B$36,INDEX(Ranks!$1:$1048576,$A423,V$1))","v":""},{"$f":"IF($A423=\"N/A\",Ref!$B$36,INDEX(Ranks!$1:$1048576,$A423,W$1))","v":""},{"$f":"IF($A423=\"N/A\",Ref!$B$36,INDEX(Ranks!$1:$1048576,$A423,X$1))","v":""},{"$f":"IF($A423=\"N/A\",Ref!$B$36,INDEX(Ranks!$1:$1048576,$A423,Y$1))","v":""},{"$f":"IF($A423=\"N/A\",Ref!$B$36,INDEX(Ranks!$1:$1048576,$A423,Z$1))","v":""},{"$f":"IF($A423=\"N/A\",Ref!$B$36,INDEX(Ranks!$1:$1048576,$A423,AA$1))","v":""},{"$f":"IF($A423=\"N/A\",Ref!$B$36,INDEX(Ranks!$1:$1048576,$A423,AB$1))","v":""},{"$f":"IF($A423=\"N/A\",Ref!$B$36,INDEX(Ranks!$1:$1048576,$A423,AC$1))","v":""},{"$f":"IF($A423=\"N/A\",Ref!$B$36,INDEX(Ranks!$1:$1048576,$A423,AD$1))","v":""},{"$f":"IF($A423=\"N/A\",Ref!$B$36,INDEX(Ranks!$1:$1048576,$A423,AE$1))","v":""},{"$f":"IF($A423=\"N/A\",Ref!$B$36,INDEX(Ranks!$1:$1048576,$A423,AF$1))","v":""},{"$f":"IF($A423=\"N/A\",Ref!$B$36,INDEX(Ranks!$1:$1048576,$A423,AG$1))","v":""},{"$f":"IF($A423=\"N/A\",Ref!$B$36,INDEX(Ranks!$1:$1048576,$A423,AH$1))","v":""},{"$f":"IF($A423=\"N/A\",Ref!$B$36,INDEX(Ranks!$1:$1048576,$A423,AI$1))","v":""},{"$f":"IF($A423=\"N/A\",Ref!$B$36,INDEX(Ranks!$1:$1048576,$A423,AJ$1))","v":""},{"$f":"IF($A423=\"N/A\",Ref!$B$36,INDEX(Ranks!$1:$1048576,$A423,AK$1))","v":""},{"$f":"IF($A423=\"N/A\",Ref!$B$36,INDEX(Ranks!$1:$1048576,$A423,AL$1))","v":""},{"$f":"IF($A423=\"N/A\",Ref!$B$36,INDEX(Ranks!$1:$1048576,$A423,AM$1))","v":""},{"$f":"IF($A423=\"N/A\",Ref!$B$36,INDEX(Ranks!$1:$1048576,$A423,AN$1))","v":""},{"$f":"IF($A423=\"N/A\",Ref!$B$36,INDEX(Ranks!$1:$1048576,$A423,AO$1))","v":""},{"$f":"IF($A423=\"N/A\",Ref!$B$36,INDEX(Ranks!$1:$1048576,$A423,AP$1))","v":""},{"$f":"IF($A423=\"N/A\",Ref!$B$36,INDEX(Ranks!$1:$1048576,$A423,AQ$1))","v":""},{"$f":"IF($A423=\"N/A\",Ref!$B$36,INDEX(Ranks!$1:$1048576,$A423,AR$1))","v":""},{"$f":"IF($A423=\"N/A\",Ref!$B$36,INDEX(Ranks!$1:$1048576,$A423,AS$1))","v":""},{"$f":"IF($A423=\"N/A\",Ref!$B$36,INDEX(Ranks!$1:$1048576,$A423,AT$1))","v":""},{"$f":"IF($A423=\"N/A\",Ref!$B$36,INDEX(Ranks!$1:$1048576,$A423,AU$1))","v":""},{"$f":"IF($A423=\"N/A\",Ref!$B$36,INDEX(Ranks!$1:$1048576,$A423,AV$1))","v":""},{"$f":"IF($A423=\"N/A\",Ref!$B$36,INDEX(Ranks!$1:$1048576,$A423,AW$1))","v":""},{"$f":"IF($A423=\"N/A\",Ref!$B$36,INDEX(Ranks!$1:$1048576,$A423,AX$1))","v":""},{"$f":"IF($A423=\"N/A\",Ref!$B$36,INDEX(Ranks!$1:$1048576,$A423,AY$1))","v":""},{"$f":"IF($A423=\"N/A\",Ref!$B$36,INDEX(Ranks!$1:$1048576,$A423,AZ$1))","v":""},{"$f":"IF($A423=\"N/A\",Ref!$B$36,INDEX(Ranks!$1:$1048576,$A423,BA$1))","v":""},{"$f":"IF($A423=\"N/A\",Ref!$B$36,INDEX(Ranks!$1:$1048576,$A423,BB$1))","v":""},{"$f":"IF($A423=\"N/A\",Ref!$B$36,INDEX(Ranks!$1:$1048576,$A423,BC$1))","v":""},{"$f":"IF($A423=\"N/A\",Ref!$B$36,INDEX(Ranks!$1:$1048576,$A423,BD$1))","v":""},{"$f":"IF($A423=\"N/A\",Ref!$B$36,INDEX(Ranks!$1:$1048576,$A423,BE$1))","v":""},{"$f":"IF($A423=\"N/A\",Ref!$B$36,INDEX(Ranks!$1:$1048576,$A423,BF$1))","v":""},{"$f":"IF($A423=\"N/A\",Ref!$B$36,INDEX(Ranks!$1:$1048576,$A423,BG$1))","v":""},{"$f":"IF($A423=\"N/A\",Ref!$B$36,INDEX(Ranks!$1:$1048576,$A423,BH$1))","v":""},{"$f":"IF($A423=\"N/A\",Ref!$B$36,INDEX(Ranks!$1:$1048576,$A423,BI$1))","v":""},{"$f":"IF($A423=\"N/A\",Ref!$B$36,INDEX(Ranks!$1:$1048576,$A423,BJ$1))","v":""},{"$f":"IF($A423=\"N/A\",Ref!$B$36,INDEX(Ranks!$1:$1048576,$A423,BK$1))","v":""},{"$f":"IF($A423=\"N/A\",Ref!$B$36,INDEX(Ranks!$1:$1048576,$A423,BL$1))","v":""},{"$f":"IF($A423=\"N/A\",Ref!$B$36,INDEX(Ranks!$1:$1048576,$A423,BM$1))","v":""},{"$f":"IF($A423=\"N/A\",Ref!$B$36,INDEX(Ranks!$1:$1048576,$A423,BN$1))","v":""},{"$f":"IF($A423=\"N/A\",Ref!$B$36,INDEX(Ranks!$1:$1048576,$A423,BO$1))","v":""},{"$f":"IF($A423=\"N/A\",Ref!$B$36,INDEX(Ranks!$1:$1048576,$A423,BP$1))","v":""},{"$f":"IF($A423=\"N/A\",Ref!$B$36,INDEX(Ranks!$1:$1048576,$A423,BQ$1))","v":""},{"$f":"IF($A423=\"N/A\",Ref!$B$36,INDEX(Ranks!$1:$1048576,$A423,BR$1))","v":""},{"$f":"IF($A423=\"N/A\",Ref!$B$36,INDEX(Ranks!$1:$1048576,$A423,BS$1))","v":""},{"$f":"IF($A423=\"N/A\",Ref!$B$36,INDEX(Ranks!$1:$1048576,$A423,BT$1))","v":""},{"$f":"IF($A423=\"N/A\",Ref!$B$36,INDEX(Ranks!$1:$1048576,$A423,BU$1))","v":""},{"$f":"IF($A423=\"N/A\",Ref!$B$36,INDEX(Ranks!$1:$1048576,$A423,BV$1))","v":""},{"$f":"IF($A423=\"N/A\",Ref!$B$36,INDEX(Ranks!$1:$1048576,$A423,BW$1))","v":""},{"$f":"IF($A423=\"N/A\",Ref!$B$36,INDEX(Ranks!$1:$1048576,$A423,BX$1))","v":""},{"$f":"IF($A423=\"N/A\",Ref!$B$36,INDEX(Ranks!$1:$1048576,$A423,BY$1))","v":""},{"$f":"IF($A423=\"N/A\",Ref!$B$36,INDEX(Ranks!$1:$1048576,$A423,BZ$1))","v":""},{"$f":"IF($A423=\"N/A\",Ref!$B$36,INDEX(Ranks!$1:$1048576,$A423,CA$1))","v":""},{"$f":"IF($A423=\"N/A\",Ref!$B$36,INDEX(Ranks!$1:$1048576,$A423,CB$1))","v":""},{"$f":"IF($A423=\"N/A\",Ref!$B$36,INDEX(Ranks!$1:$1048576,$A423,CC$1))","v":""},{"$f":"IF($A423=\"N/A\",Ref!$B$36,INDEX(Ranks!$1:$1048576,$A423,CD$1))","v":""},{"$f":"IF($A423=\"N/A\",Ref!$B$36,INDEX(Ranks!$1:$1048576,$A423,CE$1))","v":""},{"$f":"IF($A423=\"N/A\",Ref!$B$36,INDEX(Ranks!$1:$1048576,$A423,CF$1))","v":""},{"$f":"IF($A423=\"N/A\",Ref!$B$36,INDEX(Ranks!$1:$1048576,$A423,CG$1))","v":""},{"$f":"IF($A423=\"N/A\",Ref!$B$36,INDEX(Ranks!$1:$1048576,$A423,CH$1))","v":""},{"$f":"IF($A423=\"N/A\",Ref!$B$36,INDEX(Ranks!$1:$1048576,$A423,CI$1))","v":""},{"$f":"IF($A423=\"N/A\",Ref!$B$36,INDEX(Ranks!$1:$1048576,$A423,CJ$1))","v":""},{"$f":"IF($A423=\"N/A\",Ref!$B$36,INDEX(Ranks!$1:$1048576,$A423,CK$1))","v":""},{"$f":"IF($A423=\"N/A\",Ref!$B$36,INDEX(Ranks!$1:$1048576,$A423,CL$1))","v":""},{"$f":"IF($A423=\"N/A\",Ref!$B$36,INDEX(Ranks!$1:$1048576,$A423,CM$1))","v":""},{"$f":"IF($A423=\"N/A\",Ref!$B$36,INDEX(Ranks!$1:$1048576,$A423,CN$1))","v":""},{"$f":"IF($A423=\"N/A\",Ref!$B$36,INDEX(Ranks!$1:$1048576,$A423,CO$1))","v":""},{"$f":"IF($A423=\"N/A\",Ref!$B$36,INDEX(Ranks!$1:$1048576,$A423,CP$1))","v":""},{"$f":"IF($A423=\"N/A\",Ref!$B$36,INDEX(Ranks!$1:$1048576,$A423,CQ$1))","v":""},{"$f":"IF($A423=\"N/A\",Ref!$B$36,INDEX(Ranks!$1:$1048576,$A423,CR$1))","v":""},{"$f":"IF($A423=\"N/A\",Ref!$B$36,INDEX(Ranks!$1:$1048576,$A423,CS$1))","v":""},{"$f":"IF($A423=\"N/A\",Ref!$B$36,INDEX(Ranks!$1:$1048576,$A423,CT$1))","v":""},{"$f":"IF($A423=\"N/A\",Ref!$B$36,INDEX(Ranks!$1:$1048576,$A423,CU$1))","v":""},{"$f":"IF($A423=\"N/A\",Ref!$B$36,INDEX(Ranks!$1:$1048576,$A423,CV$1))","v":""},{"$f":"IF($A423=\"N/A\",Ref!$B$36,INDEX(Ranks!$1:$1048576,$A423,CW$1))","v":""},{"$f":"IF($A423=\"N/A\",Ref!$B$36,INDEX(Ranks!$1:$1048576,$A423,CX$1))","v":""},{"$f":"IF($A423=\"N/A\",Ref!$B$36,INDEX(Ranks!$1:$1048576,$A423,CY$1))","v":""},{"$f":"IF($A423=\"N/A\",Ref!$B$36,INDEX(Ranks!$1:$1048576,$A423,CZ$1))","v":""},{"$f":"IF($A423=\"N/A\",Ref!$B$36,INDEX(Ranks!$1:$1048576,$A423,DA$1))","v":""},{"$f":"IF($A423=\"N/A\",Ref!$B$36,INDEX(Ranks!$1:$1048576,$A423,DB$1))","v":""},{"$f":"IF($A423=\"N/A\",Ref!$B$36,INDEX(Ranks!$1:$1048576,$A423,DC$1))","v":""},{"$f":"IF($A423=\"N/A\",Ref!$B$36,INDEX(Ranks!$1:$1048576,$A423,DD$1))","v":""},{"$f":"IF($A423=\"N/A\",Ref!$B$36,INDEX(Ranks!$1:$1048576,$A423,DE$1))","v":""},{"$f":"IF($A423=\"N/A\",Ref!$B$36,INDEX(Ranks!$1:$1048576,$A423,DF$1))","v":""},{"$f":"IF($A423=\"N/A\",Ref!$B$36,INDEX(Ranks!$1:$1048576,$A423,DG$1))","v":""},{"$f":"IF($A423=\"N/A\",Ref!$B$36,INDEX(Ranks!$1:$1048576,$A423,DH$1))","v":""},{"$f":"IF($A423=\"N/A\",Ref!$B$36,INDEX(Ranks!$1:$1048576,$A423,DI$1))","v":""},{"$f":"IF($A423=\"N/A\",Ref!$B$36,INDEX(Ranks!$1:$1048576,$A423,DJ$1))","v":""},{"$f":"IF($A423=\"N/A\",Ref!$B$36,INDEX(Ranks!$1:$1048576,$A423,DK$1))","v":""},{"$f":"IF($A423=\"N/A\",Ref!$B$36,INDEX(Ranks!$1:$1048576,$A423,DL$1))","v":""},{"$f":"IF($A423=\"N/A\",Ref!$B$36,INDEX(Ranks!$1:$1048576,$A423,DM$1))","v":""},{"$f":"IF($A423=\"N/A\",Ref!$B$36,INDEX(Ranks!$1:$1048576,$A423,DN$1))","v":""},{"$f":"IF($A423=\"N/A\",Ref!$B$36,INDEX(Ranks!$1:$1048576,$A423,DO$1))","v":""},{"$f":"IF($A423=\"N/A\",Ref!$B$36,INDEX(Ranks!$1:$1048576,$A423,DP$1))","v":""},{"$f":"IF($A423=\"N/A\",Ref!$B$36,INDEX(Ranks!$1:$1048576,$A423,DQ$1))","v":""},{"$f":"IF($A423=\"N/A\",Ref!$B$36,INDEX(Ranks!$1:$1048576,$A423,DR$1))","v":""},{"$f":"IF($A423=\"N/A\",Ref!$B$36,INDEX(Ranks!$1:$1048576,$A423,DS$1))","v":""},{"$f":"IF($A423=\"N/A\",Ref!$B$36,INDEX(Ranks!$1:$1048576,$A423,DT$1))","v":""},{"$f":"IF($A423=\"N/A\",Ref!$B$36,INDEX(Ranks!$1:$1048576,$A423,DU$1))","v":""},{"$f":"IF($A423=\"N/A\",Ref!$B$36,INDEX(Ranks!$1:$1048576,$A423,DV$1))","v":""},{"$f":"IF($A423=\"N/A\",Ref!$B$36,INDEX(Ranks!$1:$1048576,$A423,DW$1))","v":""},{"$f":"IF($A423=\"N/A\",Ref!$B$36,INDEX(Ranks!$1:$1048576,$A423,DX$1))","v":""},{"$f":"IF($A423=\"N/A\",Ref!$B$36,INDEX(Ranks!$1:$1048576,$A423,DY$1))","v":""},{"$f":"IF($A423=\"N/A\",Ref!$B$36,INDEX(Ranks!$1:$1048576,$A423,DZ$1))","v":""},{"$f":"IF($A423=\"N/A\",Ref!$B$36,INDEX(Ranks!$1:$1048576,$A423,EA$1))","v":""},{"$f":"IF($A423=\"N/A\",Ref!$B$36,INDEX(Ranks!$1:$1048576,$A423,EB$1))","v":""}]
[{"$f":"IFERROR(MATCH('Portfolio Page'!L424,Ranks!L:L,0),\"N/A\")","v":"N/A"},null,{"$f":"IF($A424=\"N/A\",\"\",INDEX(Ranks!$1:$1048576,$A424,C$1))","v":""},{"$f":"IF($A424=\"N/A\",Ref!$B$36,INDEX(Ranks!$1:$1048576,$A424,D$1))","v":""},{"$f":"IF($A424=\"N/A\",Ref!$B$36,INDEX(Ranks!$1:$1048576,$A424,E$1))","v":""},{"$f":"IF($A424=\"N/A\",\"\",INDEX(Ranks!$1:$1048576,$A424,F$1))","v":""},{"$f":"IF($A424=\"N/A\",\"\",INDEX(Ranks!$1:$1048576,$A424,G$1))","v":""},{"$f":"IF($A424=\"N/A\",\"\",INDEX(Ranks!$1:$1048576,$A424,H$1))","v":""},{"$f":"IF($A424=\"N/A\",\"\",INDEX(Ranks!$1:$1048576,$A424,I$1))","v":""},{"$f":"IF($A424=\"N/A\",\"\",INDEX(Ranks!$1:$1048576,$A424,J$1))","v":""},{"$f":"IF($A424=\"N/A\",\"\",INDEX(Ranks!$1:$1048576,$A424,K$1))","v":""},null,{"$f":"IF($A424=\"N/A\",Ref!$B$36,INDEX(Ranks!$1:$1048576,$A424,M$1))","v":""},{"$f":"IF($A424=\"N/A\",Ref!$B$36,INDEX(Ranks!$1:$1048576,$A424,N$1))","v":""},{"$f":"IF($A424=\"N/A\",Ref!$B$36,INDEX(Ranks!$1:$1048576,$A424,O$1))","v":""},{"$f":"IF($A424=\"N/A\",Ref!$B$36,INDEX(Ranks!$1:$1048576,$A424,P$1))","v":""},{"$f":"IF($A424=\"N/A\",Ref!$B$36,INDEX(Ranks!$1:$1048576,$A424,Q$1))","v":""},{"$f":"IF($A424=\"N/A\",Ref!$B$36,INDEX(Ranks!$1:$1048576,$A424,R$1))","v":""},{"$f":"IF($A424=\"N/A\",Ref!$B$36,INDEX(Ranks!$1:$1048576,$A424,S$1))","v":""},{"$f":"IF($A424=\"N/A\",Ref!$B$36,INDEX(Ranks!$1:$1048576,$A424,T$1))","v":""},{"$f":"IF($A424=\"N/A\",Ref!$B$36,INDEX(Ranks!$1:$1048576,$A424,U$1))","v":""},{"$f":"IF($A424=\"N/A\",Ref!$B$36,INDEX(Ranks!$1:$1048576,$A424,V$1))","v":""},{"$f":"IF($A424=\"N/A\",Ref!$B$36,INDEX(Ranks!$1:$1048576,$A424,W$1))","v":""},{"$f":"IF($A424=\"N/A\",Ref!$B$36,INDEX(Ranks!$1:$1048576,$A424,X$1))","v":""},{"$f":"IF($A424=\"N/A\",Ref!$B$36,INDEX(Ranks!$1:$1048576,$A424,Y$1))","v":""},{"$f":"IF($A424=\"N/A\",Ref!$B$36,INDEX(Ranks!$1:$1048576,$A424,Z$1))","v":""},{"$f":"IF($A424=\"N/A\",Ref!$B$36,INDEX(Ranks!$1:$1048576,$A424,AA$1))","v":""},{"$f":"IF($A424=\"N/A\",Ref!$B$36,INDEX(Ranks!$1:$1048576,$A424,AB$1))","v":""},{"$f":"IF($A424=\"N/A\",Ref!$B$36,INDEX(Ranks!$1:$1048576,$A424,AC$1))","v":""},{"$f":"IF($A424=\"N/A\",Ref!$B$36,INDEX(Ranks!$1:$1048576,$A424,AD$1))","v":""},{"$f":"IF($A424=\"N/A\",Ref!$B$36,INDEX(Ranks!$1:$1048576,$A424,AE$1))","v":""},{"$f":"IF($A424=\"N/A\",Ref!$B$36,INDEX(Ranks!$1:$1048576,$A424,AF$1))","v":""},{"$f":"IF($A424=\"N/A\",Ref!$B$36,INDEX(Ranks!$1:$1048576,$A424,AG$1))","v":""},{"$f":"IF($A424=\"N/A\",Ref!$B$36,INDEX(Ranks!$1:$1048576,$A424,AH$1))","v":""},{"$f":"IF($A424=\"N/A\",Ref!$B$36,INDEX(Ranks!$1:$1048576,$A424,AI$1))","v":""},{"$f":"IF($A424=\"N/A\",Ref!$B$36,INDEX(Ranks!$1:$1048576,$A424,AJ$1))","v":""},{"$f":"IF($A424=\"N/A\",Ref!$B$36,INDEX(Ranks!$1:$1048576,$A424,AK$1))","v":""},{"$f":"IF($A424=\"N/A\",Ref!$B$36,INDEX(Ranks!$1:$1048576,$A424,AL$1))","v":""},{"$f":"IF($A424=\"N/A\",Ref!$B$36,INDEX(Ranks!$1:$1048576,$A424,AM$1))","v":""},{"$f":"IF($A424=\"N/A\",Ref!$B$36,INDEX(Ranks!$1:$1048576,$A424,AN$1))","v":""},{"$f":"IF($A424=\"N/A\",Ref!$B$36,INDEX(Ranks!$1:$1048576,$A424,AO$1))","v":""},{"$f":"IF($A424=\"N/A\",Ref!$B$36,INDEX(Ranks!$1:$1048576,$A424,AP$1))","v":""},{"$f":"IF($A424=\"N/A\",Ref!$B$36,INDEX(Ranks!$1:$1048576,$A424,AQ$1))","v":""},{"$f":"IF($A424=\"N/A\",Ref!$B$36,INDEX(Ranks!$1:$1048576,$A424,AR$1))","v":""},{"$f":"IF($A424=\"N/A\",Ref!$B$36,INDEX(Ranks!$1:$1048576,$A424,AS$1))","v":""},{"$f":"IF($A424=\"N/A\",Ref!$B$36,INDEX(Ranks!$1:$1048576,$A424,AT$1))","v":""},{"$f":"IF($A424=\"N/A\",Ref!$B$36,INDEX(Ranks!$1:$1048576,$A424,AU$1))","v":""},{"$f":"IF($A424=\"N/A\",Ref!$B$36,INDEX(Ranks!$1:$1048576,$A424,AV$1))","v":""},{"$f":"IF($A424=\"N/A\",Ref!$B$36,INDEX(Ranks!$1:$1048576,$A424,AW$1))","v":""},{"$f":"IF($A424=\"N/A\",Ref!$B$36,INDEX(Ranks!$1:$1048576,$A424,AX$1))","v":""},{"$f":"IF($A424=\"N/A\",Ref!$B$36,INDEX(Ranks!$1:$1048576,$A424,AY$1))","v":""},{"$f":"IF($A424=\"N/A\",Ref!$B$36,INDEX(Ranks!$1:$1048576,$A424,AZ$1))","v":""},{"$f":"IF($A424=\"N/A\",Ref!$B$36,INDEX(Ranks!$1:$1048576,$A424,BA$1))","v":""},{"$f":"IF($A424=\"N/A\",Ref!$B$36,INDEX(Ranks!$1:$1048576,$A424,BB$1))","v":""},{"$f":"IF($A424=\"N/A\",Ref!$B$36,INDEX(Ranks!$1:$1048576,$A424,BC$1))","v":""},{"$f":"IF($A424=\"N/A\",Ref!$B$36,INDEX(Ranks!$1:$1048576,$A424,BD$1))","v":""},{"$f":"IF($A424=\"N/A\",Ref!$B$36,INDEX(Ranks!$1:$1048576,$A424,BE$1))","v":""},{"$f":"IF($A424=\"N/A\",Ref!$B$36,INDEX(Ranks!$1:$1048576,$A424,BF$1))","v":""},{"$f":"IF($A424=\"N/A\",Ref!$B$36,INDEX(Ranks!$1:$1048576,$A424,BG$1))","v":""},{"$f":"IF($A424=\"N/A\",Ref!$B$36,INDEX(Ranks!$1:$1048576,$A424,BH$1))","v":""},{"$f":"IF($A424=\"N/A\",Ref!$B$36,INDEX(Ranks!$1:$1048576,$A424,BI$1))","v":""},{"$f":"IF($A424=\"N/A\",Ref!$B$36,INDEX(Ranks!$1:$1048576,$A424,BJ$1))","v":""},{"$f":"IF($A424=\"N/A\",Ref!$B$36,INDEX(Ranks!$1:$1048576,$A424,BK$1))","v":""},{"$f":"IF($A424=\"N/A\",Ref!$B$36,INDEX(Ranks!$1:$1048576,$A424,BL$1))","v":""},{"$f":"IF($A424=\"N/A\",Ref!$B$36,INDEX(Ranks!$1:$1048576,$A424,BM$1))","v":""},{"$f":"IF($A424=\"N/A\",Ref!$B$36,INDEX(Ranks!$1:$1048576,$A424,BN$1))","v":""},{"$f":"IF($A424=\"N/A\",Ref!$B$36,INDEX(Ranks!$1:$1048576,$A424,BO$1))","v":""},{"$f":"IF($A424=\"N/A\",Ref!$B$36,INDEX(Ranks!$1:$1048576,$A424,BP$1))","v":""},{"$f":"IF($A424=\"N/A\",Ref!$B$36,INDEX(Ranks!$1:$1048576,$A424,BQ$1))","v":""},{"$f":"IF($A424=\"N/A\",Ref!$B$36,INDEX(Ranks!$1:$1048576,$A424,BR$1))","v":""},{"$f":"IF($A424=\"N/A\",Ref!$B$36,INDEX(Ranks!$1:$1048576,$A424,BS$1))","v":""},{"$f":"IF($A424=\"N/A\",Ref!$B$36,INDEX(Ranks!$1:$1048576,$A424,BT$1))","v":""},{"$f":"IF($A424=\"N/A\",Ref!$B$36,INDEX(Ranks!$1:$1048576,$A424,BU$1))","v":""},{"$f":"IF($A424=\"N/A\",Ref!$B$36,INDEX(Ranks!$1:$1048576,$A424,BV$1))","v":""},{"$f":"IF($A424=\"N/A\",Ref!$B$36,INDEX(Ranks!$1:$1048576,$A424,BW$1))","v":""},{"$f":"IF($A424=\"N/A\",Ref!$B$36,INDEX(Ranks!$1:$1048576,$A424,BX$1))","v":""},{"$f":"IF($A424=\"N/A\",Ref!$B$36,INDEX(Ranks!$1:$1048576,$A424,BY$1))","v":""},{"$f":"IF($A424=\"N/A\",Ref!$B$36,INDEX(Ranks!$1:$1048576,$A424,BZ$1))","v":""},{"$f":"IF($A424=\"N/A\",Ref!$B$36,INDEX(Ranks!$1:$1048576,$A424,CA$1))","v":""},{"$f":"IF($A424=\"N/A\",Ref!$B$36,INDEX(Ranks!$1:$1048576,$A424,CB$1))","v":""},{"$f":"IF($A424=\"N/A\",Ref!$B$36,INDEX(Ranks!$1:$1048576,$A424,CC$1))","v":""},{"$f":"IF($A424=\"N/A\",Ref!$B$36,INDEX(Ranks!$1:$1048576,$A424,CD$1))","v":""},{"$f":"IF($A424=\"N/A\",Ref!$B$36,INDEX(Ranks!$1:$1048576,$A424,CE$1))","v":""},{"$f":"IF($A424=\"N/A\",Ref!$B$36,INDEX(Ranks!$1:$1048576,$A424,CF$1))","v":""},{"$f":"IF($A424=\"N/A\",Ref!$B$36,INDEX(Ranks!$1:$1048576,$A424,CG$1))","v":""},{"$f":"IF($A424=\"N/A\",Ref!$B$36,INDEX(Ranks!$1:$1048576,$A424,CH$1))","v":""},{"$f":"IF($A424=\"N/A\",Ref!$B$36,INDEX(Ranks!$1:$1048576,$A424,CI$1))","v":""},{"$f":"IF($A424=\"N/A\",Ref!$B$36,INDEX(Ranks!$1:$1048576,$A424,CJ$1))","v":""},{"$f":"IF($A424=\"N/A\",Ref!$B$36,INDEX(Ranks!$1:$1048576,$A424,CK$1))","v":""},{"$f":"IF($A424=\"N/A\",Ref!$B$36,INDEX(Ranks!$1:$1048576,$A424,CL$1))","v":""},{"$f":"IF($A424=\"N/A\",Ref!$B$36,INDEX(Ranks!$1:$1048576,$A424,CM$1))","v":""},{"$f":"IF($A424=\"N/A\",Ref!$B$36,INDEX(Ranks!$1:$1048576,$A424,CN$1))","v":""},{"$f":"IF($A424=\"N/A\",Ref!$B$36,INDEX(Ranks!$1:$1048576,$A424,CO$1))","v":""},{"$f":"IF($A424=\"N/A\",Ref!$B$36,INDEX(Ranks!$1:$1048576,$A424,CP$1))","v":""},{"$f":"IF($A424=\"N/A\",Ref!$B$36,INDEX(Ranks!$1:$1048576,$A424,CQ$1))","v":""},{"$f":"IF($A424=\"N/A\",Ref!$B$36,INDEX(Ranks!$1:$1048576,$A424,CR$1))","v":""},{"$f":"IF($A424=\"N/A\",Ref!$B$36,INDEX(Ranks!$1:$1048576,$A424,CS$1))","v":""},{"$f":"IF($A424=\"N/A\",Ref!$B$36,INDEX(Ranks!$1:$1048576,$A424,CT$1))","v":""},{"$f":"IF($A424=\"N/A\",Ref!$B$36,INDEX(Ranks!$1:$1048576,$A424,CU$1))","v":""},{"$f":"IF($A424=\"N/A\",Ref!$B$36,INDEX(Ranks!$1:$1048576,$A424,CV$1))","v":""},{"$f":"IF($A424=\"N/A\",Ref!$B$36,INDEX(Ranks!$1:$1048576,$A424,CW$1))","v":""},{"$f":"IF($A424=\"N/A\",Ref!$B$36,INDEX(Ranks!$1:$1048576,$A424,CX$1))","v":""},{"$f":"IF($A424=\"N/A\",Ref!$B$36,INDEX(Ranks!$1:$1048576,$A424,CY$1))","v":""},{"$f":"IF($A424=\"N/A\",Ref!$B$36,INDEX(Ranks!$1:$1048576,$A424,CZ$1))","v":""},{"$f":"IF($A424=\"N/A\",Ref!$B$36,INDEX(Ranks!$1:$1048576,$A424,DA$1))","v":""},{"$f":"IF($A424=\"N/A\",Ref!$B$36,INDEX(Ranks!$1:$1048576,$A424,DB$1))","v":""},{"$f":"IF($A424=\"N/A\",Ref!$B$36,INDEX(Ranks!$1:$1048576,$A424,DC$1))","v":""},{"$f":"IF($A424=\"N/A\",Ref!$B$36,INDEX(Ranks!$1:$1048576,$A424,DD$1))","v":""},{"$f":"IF($A424=\"N/A\",Ref!$B$36,INDEX(Ranks!$1:$1048576,$A424,DE$1))","v":""},{"$f":"IF($A424=\"N/A\",Ref!$B$36,INDEX(Ranks!$1:$1048576,$A424,DF$1))","v":""},{"$f":"IF($A424=\"N/A\",Ref!$B$36,INDEX(Ranks!$1:$1048576,$A424,DG$1))","v":""},{"$f":"IF($A424=\"N/A\",Ref!$B$36,INDEX(Ranks!$1:$1048576,$A424,DH$1))","v":""},{"$f":"IF($A424=\"N/A\",Ref!$B$36,INDEX(Ranks!$1:$1048576,$A424,DI$1))","v":""},{"$f":"IF($A424=\"N/A\",Ref!$B$36,INDEX(Ranks!$1:$1048576,$A424,DJ$1))","v":""},{"$f":"IF($A424=\"N/A\",Ref!$B$36,INDEX(Ranks!$1:$1048576,$A424,DK$1))","v":""},{"$f":"IF($A424=\"N/A\",Ref!$B$36,INDEX(Ranks!$1:$1048576,$A424,DL$1))","v":""},{"$f":"IF($A424=\"N/A\",Ref!$B$36,INDEX(Ranks!$1:$1048576,$A424,DM$1))","v":""},{"$f":"IF($A424=\"N/A\",Ref!$B$36,INDEX(Ranks!$1:$1048576,$A424,DN$1))","v":""},{"$f":"IF($A424=\"N/A\",Ref!$B$36,INDEX(Ranks!$1:$1048576,$A424,DO$1))","v":""},{"$f":"IF($A424=\"N/A\",Ref!$B$36,INDEX(Ranks!$1:$1048576,$A424,DP$1))","v":""},{"$f":"IF($A424=\"N/A\",Ref!$B$36,INDEX(Ranks!$1:$1048576,$A424,DQ$1))","v":""},{"$f":"IF($A424=\"N/A\",Ref!$B$36,INDEX(Ranks!$1:$1048576,$A424,DR$1))","v":""},{"$f":"IF($A424=\"N/A\",Ref!$B$36,INDEX(Ranks!$1:$1048576,$A424,DS$1))","v":""},{"$f":"IF($A424=\"N/A\",Ref!$B$36,INDEX(Ranks!$1:$1048576,$A424,DT$1))","v":""},{"$f":"IF($A424=\"N/A\",Ref!$B$36,INDEX(Ranks!$1:$1048576,$A424,DU$1))","v":""},{"$f":"IF($A424=\"N/A\",Ref!$B$36,INDEX(Ranks!$1:$1048576,$A424,DV$1))","v":""},{"$f":"IF($A424=\"N/A\",Ref!$B$36,INDEX(Ranks!$1:$1048576,$A424,DW$1))","v":""},{"$f":"IF($A424=\"N/A\",Ref!$B$36,INDEX(Ranks!$1:$1048576,$A424,DX$1))","v":""},{"$f":"IF($A424=\"N/A\",Ref!$B$36,INDEX(Ranks!$1:$1048576,$A424,DY$1))","v":""},{"$f":"IF($A424=\"N/A\",Ref!$B$36,INDEX(Ranks!$1:$1048576,$A424,DZ$1))","v":""},{"$f":"IF($A424=\"N/A\",Ref!$B$36,INDEX(Ranks!$1:$1048576,$A424,EA$1))","v":""},{"$f":"IF($A424=\"N/A\",Ref!$B$36,INDEX(Ranks!$1:$1048576,$A424,EB$1))","v":""}]
[{"$f":"IFERROR(MATCH('Portfolio Page'!L425,Ranks!L:L,0),\"N/A\")","v":"N/A"},null,{"$f":"IF($A425=\"N/A\",\"\",INDEX(Ranks!$1:$1048576,$A425,C$1))","v":""},{"$f":"IF($A425=\"N/A\",Ref!$B$36,INDEX(Ranks!$1:$1048576,$A425,D$1))","v":""},{"$f":"IF($A425=\"N/A\",Ref!$B$36,INDEX(Ranks!$1:$1048576,$A425,E$1))","v":""},{"$f":"IF($A425=\"N/A\",\"\",INDEX(Ranks!$1:$1048576,$A425,F$1))","v":""},{"$f":"IF($A425=\"N/A\",\"\",INDEX(Ranks!$1:$1048576,$A425,G$1))","v":""},{"$f":"IF($A425=\"N/A\",\"\",INDEX(Ranks!$1:$1048576,$A425,H$1))","v":""},{"$f":"IF($A425=\"N/A\",\"\",INDEX(Ranks!$1:$1048576,$A425,I$1))","v":""},{"$f":"IF($A425=\"N/A\",\"\",INDEX(Ranks!$1:$1048576,$A425,J$1))","v":""},{"$f":"IF($A425=\"N/A\",\"\",INDEX(Ranks!$1:$1048576,$A425,K$1))","v":""},null,{"$f":"IF($A425=\"N/A\",Ref!$B$36,INDEX(Ranks!$1:$1048576,$A425,M$1))","v":""},{"$f":"IF($A425=\"N/A\",Ref!$B$36,INDEX(Ranks!$1:$1048576,$A425,N$1))","v":""},{"$f":"IF($A425=\"N/A\",Ref!$B$36,INDEX(Ranks!$1:$1048576,$A425,O$1))","v":""},{"$f":"IF($A425=\"N/A\",Ref!$B$36,INDEX(Ranks!$1:$1048576,$A425,P$1))","v":""},{"$f":"IF($A425=\"N/A\",Ref!$B$36,INDEX(Ranks!$1:$1048576,$A425,Q$1))","v":""},{"$f":"IF($A425=\"N/A\",Ref!$B$36,INDEX(Ranks!$1:$1048576,$A425,R$1))","v":""},{"$f":"IF($A425=\"N/A\",Ref!$B$36,INDEX(Ranks!$1:$1048576,$A425,S$1))","v":""},{"$f":"IF($A425=\"N/A\",Ref!$B$36,INDEX(Ranks!$1:$1048576,$A425,T$1))","v":""},{"$f":"IF($A425=\"N/A\",Ref!$B$36,INDEX(Ranks!$1:$1048576,$A425,U$1))","v":""},{"$f":"IF($A425=\"N/A\",Ref!$B$36,INDEX(Ranks!$1:$1048576,$A425,V$1))","v":""},{"$f":"IF($A425=\"N/A\",Ref!$B$36,INDEX(Ranks!$1:$1048576,$A425,W$1))","v":""},{"$f":"IF($A425=\"N/A\",Ref!$B$36,INDEX(Ranks!$1:$1048576,$A425,X$1))","v":""},{"$f":"IF($A425=\"N/A\",Ref!$B$36,INDEX(Ranks!$1:$1048576,$A425,Y$1))","v":""},{"$f":"IF($A425=\"N/A\",Ref!$B$36,INDEX(Ranks!$1:$1048576,$A425,Z$1))","v":""},{"$f":"IF($A425=\"N/A\",Ref!$B$36,INDEX(Ranks!$1:$1048576,$A425,AA$1))","v":""},{"$f":"IF($A425=\"N/A\",Ref!$B$36,INDEX(Ranks!$1:$1048576,$A425,AB$1))","v":""},{"$f":"IF($A425=\"N/A\",Ref!$B$36,INDEX(Ranks!$1:$1048576,$A425,AC$1))","v":""},{"$f":"IF($A425=\"N/A\",Ref!$B$36,INDEX(Ranks!$1:$1048576,$A425,AD$1))","v":""},{"$f":"IF($A425=\"N/A\",Ref!$B$36,INDEX(Ranks!$1:$1048576,$A425,AE$1))","v":""},{"$f":"IF($A425=\"N/A\",Ref!$B$36,INDEX(Ranks!$1:$1048576,$A425,AF$1))","v":""},{"$f":"IF($A425=\"N/A\",Ref!$B$36,INDEX(Ranks!$1:$1048576,$A425,AG$1))","v":""},{"$f":"IF($A425=\"N/A\",Ref!$B$36,INDEX(Ranks!$1:$1048576,$A425,AH$1))","v":""},{"$f":"IF($A425=\"N/A\",Ref!$B$36,INDEX(Ranks!$1:$1048576,$A425,AI$1))","v":""},{"$f":"IF($A425=\"N/A\",Ref!$B$36,INDEX(Ranks!$1:$1048576,$A425,AJ$1))","v":""},{"$f":"IF($A425=\"N/A\",Ref!$B$36,INDEX(Ranks!$1:$1048576,$A425,AK$1))","v":""},{"$f":"IF($A425=\"N/A\",Ref!$B$36,INDEX(Ranks!$1:$1048576,$A425,AL$1))","v":""},{"$f":"IF($A425=\"N/A\",Ref!$B$36,INDEX(Ranks!$1:$1048576,$A425,AM$1))","v":""},{"$f":"IF($A425=\"N/A\",Ref!$B$36,INDEX(Ranks!$1:$1048576,$A425,AN$1))","v":""},{"$f":"IF($A425=\"N/A\",Ref!$B$36,INDEX(Ranks!$1:$1048576,$A425,AO$1))","v":""},{"$f":"IF($A425=\"N/A\",Ref!$B$36,INDEX(Ranks!$1:$1048576,$A425,AP$1))","v":""},{"$f":"IF($A425=\"N/A\",Ref!$B$36,INDEX(Ranks!$1:$1048576,$A425,AQ$1))","v":""},{"$f":"IF($A425=\"N/A\",Ref!$B$36,INDEX(Ranks!$1:$1048576,$A425,AR$1))","v":""},{"$f":"IF($A425=\"N/A\",Ref!$B$36,INDEX(Ranks!$1:$1048576,$A425,AS$1))","v":""},{"$f":"IF($A425=\"N/A\",Ref!$B$36,INDEX(Ranks!$1:$1048576,$A425,AT$1))","v":""},{"$f":"IF($A425=\"N/A\",Ref!$B$36,INDEX(Ranks!$1:$1048576,$A425,AU$1))","v":""},{"$f":"IF($A425=\"N/A\",Ref!$B$36,INDEX(Ranks!$1:$1048576,$A425,AV$1))","v":""},{"$f":"IF($A425=\"N/A\",Ref!$B$36,INDEX(Ranks!$1:$1048576,$A425,AW$1))","v":""},{"$f":"IF($A425=\"N/A\",Ref!$B$36,INDEX(Ranks!$1:$1048576,$A425,AX$1))","v":""},{"$f":"IF($A425=\"N/A\",Ref!$B$36,INDEX(Ranks!$1:$1048576,$A425,AY$1))","v":""},{"$f":"IF($A425=\"N/A\",Ref!$B$36,INDEX(Ranks!$1:$1048576,$A425,AZ$1))","v":""},{"$f":"IF($A425=\"N/A\",Ref!$B$36,INDEX(Ranks!$1:$1048576,$A425,BA$1))","v":""},{"$f":"IF($A425=\"N/A\",Ref!$B$36,INDEX(Ranks!$1:$1048576,$A425,BB$1))","v":""},{"$f":"IF($A425=\"N/A\",Ref!$B$36,INDEX(Ranks!$1:$1048576,$A425,BC$1))","v":""},{"$f":"IF($A425=\"N/A\",Ref!$B$36,INDEX(Ranks!$1:$1048576,$A425,BD$1))","v":""},{"$f":"IF($A425=\"N/A\",Ref!$B$36,INDEX(Ranks!$1:$1048576,$A425,BE$1))","v":""},{"$f":"IF($A425=\"N/A\",Ref!$B$36,INDEX(Ranks!$1:$1048576,$A425,BF$1))","v":""},{"$f":"IF($A425=\"N/A\",Ref!$B$36,INDEX(Ranks!$1:$1048576,$A425,BG$1))","v":""},{"$f":"IF($A425=\"N/A\",Ref!$B$36,INDEX(Ranks!$1:$1048576,$A425,BH$1))","v":""},{"$f":"IF($A425=\"N/A\",Ref!$B$36,INDEX(Ranks!$1:$1048576,$A425,BI$1))","v":""},{"$f":"IF($A425=\"N/A\",Ref!$B$36,INDEX(Ranks!$1:$1048576,$A425,BJ$1))","v":""},{"$f":"IF($A425=\"N/A\",Ref!$B$36,INDEX(Ranks!$1:$1048576,$A425,BK$1))","v":""},{"$f":"IF($A425=\"N/A\",Ref!$B$36,INDEX(Ranks!$1:$1048576,$A425,BL$1))","v":""},{"$f":"IF($A425=\"N/A\",Ref!$B$36,INDEX(Ranks!$1:$1048576,$A425,BM$1))","v":""},{"$f":"IF($A425=\"N/A\",Ref!$B$36,INDEX(Ranks!$1:$1048576,$A425,BN$1))","v":""},{"$f":"IF($A425=\"N/A\",Ref!$B$36,INDEX(Ranks!$1:$1048576,$A425,BO$1))","v":""},{"$f":"IF($A425=\"N/A\",Ref!$B$36,INDEX(Ranks!$1:$1048576,$A425,BP$1))","v":""},{"$f":"IF($A425=\"N/A\",Ref!$B$36,INDEX(Ranks!$1:$1048576,$A425,BQ$1))","v":""},{"$f":"IF($A425=\"N/A\",Ref!$B$36,INDEX(Ranks!$1:$1048576,$A425,BR$1))","v":""},{"$f":"IF($A425=\"N/A\",Ref!$B$36,INDEX(Ranks!$1:$1048576,$A425,BS$1))","v":""},{"$f":"IF($A425=\"N/A\",Ref!$B$36,INDEX(Ranks!$1:$1048576,$A425,BT$1))","v":""},{"$f":"IF($A425=\"N/A\",Ref!$B$36,INDEX(Ranks!$1:$1048576,$A425,BU$1))","v":""},{"$f":"IF($A425=\"N/A\",Ref!$B$36,INDEX(Ranks!$1:$1048576,$A425,BV$1))","v":""},{"$f":"IF($A425=\"N/A\",Ref!$B$36,INDEX(Ranks!$1:$1048576,$A425,BW$1))","v":""},{"$f":"IF($A425=\"N/A\",Ref!$B$36,INDEX(Ranks!$1:$1048576,$A425,BX$1))","v":""},{"$f":"IF($A425=\"N/A\",Ref!$B$36,INDEX(Ranks!$1:$1048576,$A425,BY$1))","v":""},{"$f":"IF($A425=\"N/A\",Ref!$B$36,INDEX(Ranks!$1:$1048576,$A425,BZ$1))","v":""},{"$f":"IF($A425=\"N/A\",Ref!$B$36,INDEX(Ranks!$1:$1048576,$A425,CA$1))","v":""},{"$f":"IF($A425=\"N/A\",Ref!$B$36,INDEX(Ranks!$1:$1048576,$A425,CB$1))","v":""},{"$f":"IF($A425=\"N/A\",Ref!$B$36,INDEX(Ranks!$1:$1048576,$A425,CC$1))","v":""},{"$f":"IF($A425=\"N/A\",Ref!$B$36,INDEX(Ranks!$1:$1048576,$A425,CD$1))","v":""},{"$f":"IF($A425=\"N/A\",Ref!$B$36,INDEX(Ranks!$1:$1048576,$A425,CE$1))","v":""},{"$f":"IF($A425=\"N/A\",Ref!$B$36,INDEX(Ranks!$1:$1048576,$A425,CF$1))","v":""},{"$f":"IF($A425=\"N/A\",Ref!$B$36,INDEX(Ranks!$1:$1048576,$A425,CG$1))","v":""},{"$f":"IF($A425=\"N/A\",Ref!$B$36,INDEX(Ranks!$1:$1048576,$A425,CH$1))","v":""},{"$f":"IF($A425=\"N/A\",Ref!$B$36,INDEX(Ranks!$1:$1048576,$A425,CI$1))","v":""},{"$f":"IF($A425=\"N/A\",Ref!$B$36,INDEX(Ranks!$1:$1048576,$A425,CJ$1))","v":""},{"$f":"IF($A425=\"N/A\",Ref!$B$36,INDEX(Ranks!$1:$1048576,$A425,CK$1))","v":""},{"$f":"IF($A425=\"N/A\",Ref!$B$36,INDEX(Ranks!$1:$1048576,$A425,CL$1))","v":""},{"$f":"IF($A425=\"N/A\",Ref!$B$36,INDEX(Ranks!$1:$1048576,$A425,CM$1))","v":""},{"$f":"IF($A425=\"N/A\",Ref!$B$36,INDEX(Ranks!$1:$1048576,$A425,CN$1))","v":""},{"$f":"IF($A425=\"N/A\",Ref!$B$36,INDEX(Ranks!$1:$1048576,$A425,CO$1))","v":""},{"$f":"IF($A425=\"N/A\",Ref!$B$36,INDEX(Ranks!$1:$1048576,$A425,CP$1))","v":""},{"$f":"IF($A425=\"N/A\",Ref!$B$36,INDEX(Ranks!$1:$1048576,$A425,CQ$1))","v":""},{"$f":"IF($A425=\"N/A\",Ref!$B$36,INDEX(Ranks!$1:$1048576,$A425,CR$1))","v":""},{"$f":"IF($A425=\"N/A\",Ref!$B$36,INDEX(Ranks!$1:$1048576,$A425,CS$1))","v":""},{"$f":"IF($A425=\"N/A\",Ref!$B$36,INDEX(Ranks!$1:$1048576,$A425,CT$1))","v":""},{"$f":"IF($A425=\"N/A\",Ref!$B$36,INDEX(Ranks!$1:$1048576,$A425,CU$1))","v":""},{"$f":"IF($A425=\"N/A\",Ref!$B$36,INDEX(Ranks!$1:$1048576,$A425,CV$1))","v":""},{"$f":"IF($A425=\"N/A\",Ref!$B$36,INDEX(Ranks!$1:$1048576,$A425,CW$1))","v":""},{"$f":"IF($A425=\"N/A\",Ref!$B$36,INDEX(Ranks!$1:$1048576,$A425,CX$1))","v":""},{"$f":"IF($A425=\"N/A\",Ref!$B$36,INDEX(Ranks!$1:$1048576,$A425,CY$1))","v":""},{"$f":"IF($A425=\"N/A\",Ref!$B$36,INDEX(Ranks!$1:$1048576,$A425,CZ$1))","v":""},{"$f":"IF($A425=\"N/A\",Ref!$B$36,INDEX(Ranks!$1:$1048576,$A425,DA$1))","v":""},{"$f":"IF($A425=\"N/A\",Ref!$B$36,INDEX(Ranks!$1:$1048576,$A425,DB$1))","v":""},{"$f":"IF($A425=\"N/A\",Ref!$B$36,INDEX(Ranks!$1:$1048576,$A425,DC$1))","v":""},{"$f":"IF($A425=\"N/A\",Ref!$B$36,INDEX(Ranks!$1:$1048576,$A425,DD$1))","v":""},{"$f":"IF($A425=\"N/A\",Ref!$B$36,INDEX(Ranks!$1:$1048576,$A425,DE$1))","v":""},{"$f":"IF($A425=\"N/A\",Ref!$B$36,INDEX(Ranks!$1:$1048576,$A425,DF$1))","v":""},{"$f":"IF($A425=\"N/A\",Ref!$B$36,INDEX(Ranks!$1:$1048576,$A425,DG$1))","v":""},{"$f":"IF($A425=\"N/A\",Ref!$B$36,INDEX(Ranks!$1:$1048576,$A425,DH$1))","v":""},{"$f":"IF($A425=\"N/A\",Ref!$B$36,INDEX(Ranks!$1:$1048576,$A425,DI$1))","v":""},{"$f":"IF($A425=\"N/A\",Ref!$B$36,INDEX(Ranks!$1:$1048576,$A425,DJ$1))","v":""},{"$f":"IF($A425=\"N/A\",Ref!$B$36,INDEX(Ranks!$1:$1048576,$A425,DK$1))","v":""},{"$f":"IF($A425=\"N/A\",Ref!$B$36,INDEX(Ranks!$1:$1048576,$A425,DL$1))","v":""},{"$f":"IF($A425=\"N/A\",Ref!$B$36,INDEX(Ranks!$1:$1048576,$A425,DM$1))","v":""},{"$f":"IF($A425=\"N/A\",Ref!$B$36,INDEX(Ranks!$1:$1048576,$A425,DN$1))","v":""},{"$f":"IF($A425=\"N/A\",Ref!$B$36,INDEX(Ranks!$1:$1048576,$A425,DO$1))","v":""},{"$f":"IF($A425=\"N/A\",Ref!$B$36,INDEX(Ranks!$1:$1048576,$A425,DP$1))","v":""},{"$f":"IF($A425=\"N/A\",Ref!$B$36,INDEX(Ranks!$1:$1048576,$A425,DQ$1))","v":""},{"$f":"IF($A425=\"N/A\",Ref!$B$36,INDEX(Ranks!$1:$1048576,$A425,DR$1))","v":""},{"$f":"IF($A425=\"N/A\",Ref!$B$36,INDEX(Ranks!$1:$1048576,$A425,DS$1))","v":""},{"$f":"IF($A425=\"N/A\",Ref!$B$36,INDEX(Ranks!$1:$1048576,$A425,DT$1))","v":""},{"$f":"IF($A425=\"N/A\",Ref!$B$36,INDEX(Ranks!$1:$1048576,$A425,DU$1))","v":""},{"$f":"IF($A425=\"N/A\",Ref!$B$36,INDEX(Ranks!$1:$1048576,$A425,DV$1))","v":""},{"$f":"IF($A425=\"N/A\",Ref!$B$36,INDEX(Ranks!$1:$1048576,$A425,DW$1))","v":""},{"$f":"IF($A425=\"N/A\",Ref!$B$36,INDEX(Ranks!$1:$1048576,$A425,DX$1))","v":""},{"$f":"IF($A425=\"N/A\",Ref!$B$36,INDEX(Ranks!$1:$1048576,$A425,DY$1))","v":""},{"$f":"IF($A425=\"N/A\",Ref!$B$36,INDEX(Ranks!$1:$1048576,$A425,DZ$1))","v":""},{"$f":"IF($A425=\"N/A\",Ref!$B$36,INDEX(Ranks!$1:$1048576,$A425,EA$1))","v":""},{"$f":"IF($A425=\"N/A\",Ref!$B$36,INDEX(Ranks!$1:$1048576,$A425,EB$1))","v":""}]
[{"$f":"IFERROR(MATCH('Portfolio Page'!L426,Ranks!L:L,0),\"N/A\")","v":"N/A"},null,{"$f":"IF($A426=\"N/A\",\"\",INDEX(Ranks!$1:$1048576,$A426,C$1))","v":""},{"$f":"IF($A426=\"N/A\",Ref!$B$36,INDEX(Ranks!$1:$1048576,$A426,D$1))","v":""},{"$f":"IF($A426=\"N/A\",Ref!$B$36,INDEX(Ranks!$1:$1048576,$A426,E$1))","v":""},{"$f":"IF($A426=\"N/A\",\"\",INDEX(Ranks!$1:$1048576,$A426,F$1))","v":""},{"$f":"IF($A426=\"N/A\",\"\",INDEX(Ranks!$1:$1048576,$A426,G$1))","v":""},{"$f":"IF($A426=\"N/A\",\"\",INDEX(Ranks!$1:$1048576,$A426,H$1))","v":""},{"$f":"IF($A426=\"N/A\",\"\",INDEX(Ranks!$1:$1048576,$A426,I$1))","v":""},{"$f":"IF($A426=\"N/A\",\"\",INDEX(Ranks!$1:$1048576,$A426,J$1))","v":""},{"$f":"IF($A426=\"N/A\",\"\",INDEX(Ranks!$1:$1048576,$A426,K$1))","v":""},null,{"$f":"IF($A426=\"N/A\",Ref!$B$36,INDEX(Ranks!$1:$1048576,$A426,M$1))","v":""},{"$f":"IF($A426=\"N/A\",Ref!$B$36,INDEX(Ranks!$1:$1048576,$A426,N$1))","v":""},{"$f":"IF($A426=\"N/A\",Ref!$B$36,INDEX(Ranks!$1:$1048576,$A426,O$1))","v":""},{"$f":"IF($A426=\"N/A\",Ref!$B$36,INDEX(Ranks!$1:$1048576,$A426,P$1))","v":""},{"$f":"IF($A426=\"N/A\",Ref!$B$36,INDEX(Ranks!$1:$1048576,$A426,Q$1))","v":""},{"$f":"IF($A426=\"N/A\",Ref!$B$36,INDEX(Ranks!$1:$1048576,$A426,R$1))","v":""},{"$f":"IF($A426=\"N/A\",Ref!$B$36,INDEX(Ranks!$1:$1048576,$A426,S$1))","v":""},{"$f":"IF($A426=\"N/A\",Ref!$B$36,INDEX(Ranks!$1:$1048576,$A426,T$1))","v":""},{"$f":"IF($A426=\"N/A\",Ref!$B$36,INDEX(Ranks!$1:$1048576,$A426,U$1))","v":""},{"$f":"IF($A426=\"N/A\",Ref!$B$36,INDEX(Ranks!$1:$1048576,$A426,V$1))","v":""},{"$f":"IF($A426=\"N/A\",Ref!$B$36,INDEX(Ranks!$1:$1048576,$A426,W$1))","v":""},{"$f":"IF($A426=\"N/A\",Ref!$B$36,INDEX(Ranks!$1:$1048576,$A426,X$1))","v":""},{"$f":"IF($A426=\"N/A\",Ref!$B$36,INDEX(Ranks!$1:$1048576,$A426,Y$1))","v":""},{"$f":"IF($A426=\"N/A\",Ref!$B$36,INDEX(Ranks!$1:$1048576,$A426,Z$1))","v":""},{"$f":"IF($A426=\"N/A\",Ref!$B$36,INDEX(Ranks!$1:$1048576,$A426,AA$1))","v":""},{"$f":"IF($A426=\"N/A\",Ref!$B$36,INDEX(Ranks!$1:$1048576,$A426,AB$1))","v":""},{"$f":"IF($A426=\"N/A\",Ref!$B$36,INDEX(Ranks!$1:$1048576,$A426,AC$1))","v":""},{"$f":"IF($A426=\"N/A\",Ref!$B$36,INDEX(Ranks!$1:$1048576,$A426,AD$1))","v":""},{"$f":"IF($A426=\"N/A\",Ref!$B$36,INDEX(Ranks!$1:$1048576,$A426,AE$1))","v":""},{"$f":"IF($A426=\"N/A\",Ref!$B$36,INDEX(Ranks!$1:$1048576,$A426,AF$1))","v":""},{"$f":"IF($A426=\"N/A\",Ref!$B$36,INDEX(Ranks!$1:$1048576,$A426,AG$1))","v":""},{"$f":"IF($A426=\"N/A\",Ref!$B$36,INDEX(Ranks!$1:$1048576,$A426,AH$1))","v":""},{"$f":"IF($A426=\"N/A\",Ref!$B$36,INDEX(Ranks!$1:$1048576,$A426,AI$1))","v":""},{"$f":"IF($A426=\"N/A\",Ref!$B$36,INDEX(Ranks!$1:$1048576,$A426,AJ$1))","v":""},{"$f":"IF($A426=\"N/A\",Ref!$B$36,INDEX(Ranks!$1:$1048576,$A426,AK$1))","v":""},{"$f":"IF($A426=\"N/A\",Ref!$B$36,INDEX(Ranks!$1:$1048576,$A426,AL$1))","v":""},{"$f":"IF($A426=\"N/A\",Ref!$B$36,INDEX(Ranks!$1:$1048576,$A426,AM$1))","v":""},{"$f":"IF($A426=\"N/A\",Ref!$B$36,INDEX(Ranks!$1:$1048576,$A426,AN$1))","v":""},{"$f":"IF($A426=\"N/A\",Ref!$B$36,INDEX(Ranks!$1:$1048576,$A426,AO$1))","v":""},{"$f":"IF($A426=\"N/A\",Ref!$B$36,INDEX(Ranks!$1:$1048576,$A426,AP$1))","v":""},{"$f":"IF($A426=\"N/A\",Ref!$B$36,INDEX(Ranks!$1:$1048576,$A426,AQ$1))","v":""},{"$f":"IF($A426=\"N/A\",Ref!$B$36,INDEX(Ranks!$1:$1048576,$A426,AR$1))","v":""},{"$f":"IF($A426=\"N/A\",Ref!$B$36,INDEX(Ranks!$1:$1048576,$A426,AS$1))","v":""},{"$f":"IF($A426=\"N/A\",Ref!$B$36,INDEX(Ranks!$1:$1048576,$A426,AT$1))","v":""},{"$f":"IF($A426=\"N/A\",Ref!$B$36,INDEX(Ranks!$1:$1048576,$A426,AU$1))","v":""},{"$f":"IF($A426=\"N/A\",Ref!$B$36,INDEX(Ranks!$1:$1048576,$A426,AV$1))","v":""},{"$f":"IF($A426=\"N/A\",Ref!$B$36,INDEX(Ranks!$1:$1048576,$A426,AW$1))","v":""},{"$f":"IF($A426=\"N/A\",Ref!$B$36,INDEX(Ranks!$1:$1048576,$A426,AX$1))","v":""},{"$f":"IF($A426=\"N/A\",Ref!$B$36,INDEX(Ranks!$1:$1048576,$A426,AY$1))","v":""},{"$f":"IF($A426=\"N/A\",Ref!$B$36,INDEX(Ranks!$1:$1048576,$A426,AZ$1))","v":""},{"$f":"IF($A426=\"N/A\",Ref!$B$36,INDEX(Ranks!$1:$1048576,$A426,BA$1))","v":""},{"$f":"IF($A426=\"N/A\",Ref!$B$36,INDEX(Ranks!$1:$1048576,$A426,BB$1))","v":""},{"$f":"IF($A426=\"N/A\",Ref!$B$36,INDEX(Ranks!$1:$1048576,$A426,BC$1))","v":""},{"$f":"IF($A426=\"N/A\",Ref!$B$36,INDEX(Ranks!$1:$1048576,$A426,BD$1))","v":""},{"$f":"IF($A426=\"N/A\",Ref!$B$36,INDEX(Ranks!$1:$1048576,$A426,BE$1))","v":""},{"$f":"IF($A426=\"N/A\",Ref!$B$36,INDEX(Ranks!$1:$1048576,$A426,BF$1))","v":""},{"$f":"IF($A426=\"N/A\",Ref!$B$36,INDEX(Ranks!$1:$1048576,$A426,BG$1))","v":""},{"$f":"IF($A426=\"N/A\",Ref!$B$36,INDEX(Ranks!$1:$1048576,$A426,BH$1))","v":""},{"$f":"IF($A426=\"N/A\",Ref!$B$36,INDEX(Ranks!$1:$1048576,$A426,BI$1))","v":""},{"$f":"IF($A426=\"N/A\",Ref!$B$36,INDEX(Ranks!$1:$1048576,$A426,BJ$1))","v":""},{"$f":"IF($A426=\"N/A\",Ref!$B$36,INDEX(Ranks!$1:$1048576,$A426,BK$1))","v":""},{"$f":"IF($A426=\"N/A\",Ref!$B$36,INDEX(Ranks!$1:$1048576,$A426,BL$1))","v":""},{"$f":"IF($A426=\"N/A\",Ref!$B$36,INDEX(Ranks!$1:$1048576,$A426,BM$1))","v":""},{"$f":"IF($A426=\"N/A\",Ref!$B$36,INDEX(Ranks!$1:$1048576,$A426,BN$1))","v":""},{"$f":"IF($A426=\"N/A\",Ref!$B$36,INDEX(Ranks!$1:$1048576,$A426,BO$1))","v":""},{"$f":"IF($A426=\"N/A\",Ref!$B$36,INDEX(Ranks!$1:$1048576,$A426,BP$1))","v":""},{"$f":"IF($A426=\"N/A\",Ref!$B$36,INDEX(Ranks!$1:$1048576,$A426,BQ$1))","v":""},{"$f":"IF($A426=\"N/A\",Ref!$B$36,INDEX(Ranks!$1:$1048576,$A426,BR$1))","v":""},{"$f":"IF($A426=\"N/A\",Ref!$B$36,INDEX(Ranks!$1:$1048576,$A426,BS$1))","v":""},{"$f":"IF($A426=\"N/A\",Ref!$B$36,INDEX(Ranks!$1:$1048576,$A426,BT$1))","v":""},{"$f":"IF($A426=\"N/A\",Ref!$B$36,INDEX(Ranks!$1:$1048576,$A426,BU$1))","v":""},{"$f":"IF($A426=\"N/A\",Ref!$B$36,INDEX(Ranks!$1:$1048576,$A426,BV$1))","v":""},{"$f":"IF($A426=\"N/A\",Ref!$B$36,INDEX(Ranks!$1:$1048576,$A426,BW$1))","v":""},{"$f":"IF($A426=\"N/A\",Ref!$B$36,INDEX(Ranks!$1:$1048576,$A426,BX$1))","v":""},{"$f":"IF($A426=\"N/A\",Ref!$B$36,INDEX(Ranks!$1:$1048576,$A426,BY$1))","v":""},{"$f":"IF($A426=\"N/A\",Ref!$B$36,INDEX(Ranks!$1:$1048576,$A426,BZ$1))","v":""},{"$f":"IF($A426=\"N/A\",Ref!$B$36,INDEX(Ranks!$1:$1048576,$A426,CA$1))","v":""},{"$f":"IF($A426=\"N/A\",Ref!$B$36,INDEX(Ranks!$1:$1048576,$A426,CB$1))","v":""},{"$f":"IF($A426=\"N/A\",Ref!$B$36,INDEX(Ranks!$1:$1048576,$A426,CC$1))","v":""},{"$f":"IF($A426=\"N/A\",Ref!$B$36,INDEX(Ranks!$1:$1048576,$A426,CD$1))","v":""},{"$f":"IF($A426=\"N/A\",Ref!$B$36,INDEX(Ranks!$1:$1048576,$A426,CE$1))","v":""},{"$f":"IF($A426=\"N/A\",Ref!$B$36,INDEX(Ranks!$1:$1048576,$A426,CF$1))","v":""},{"$f":"IF($A426=\"N/A\",Ref!$B$36,INDEX(Ranks!$1:$1048576,$A426,CG$1))","v":""},{"$f":"IF($A426=\"N/A\",Ref!$B$36,INDEX(Ranks!$1:$1048576,$A426,CH$1))","v":""},{"$f":"IF($A426=\"N/A\",Ref!$B$36,INDEX(Ranks!$1:$1048576,$A426,CI$1))","v":""},{"$f":"IF($A426=\"N/A\",Ref!$B$36,INDEX(Ranks!$1:$1048576,$A426,CJ$1))","v":""},{"$f":"IF($A426=\"N/A\",Ref!$B$36,INDEX(Ranks!$1:$1048576,$A426,CK$1))","v":""},{"$f":"IF($A426=\"N/A\",Ref!$B$36,INDEX(Ranks!$1:$1048576,$A426,CL$1))","v":""},{"$f":"IF($A426=\"N/A\",Ref!$B$36,INDEX(Ranks!$1:$1048576,$A426,CM$1))","v":""},{"$f":"IF($A426=\"N/A\",Ref!$B$36,INDEX(Ranks!$1:$1048576,$A426,CN$1))","v":""},{"$f":"IF($A426=\"N/A\",Ref!$B$36,INDEX(Ranks!$1:$1048576,$A426,CO$1))","v":""},{"$f":"IF($A426=\"N/A\",Ref!$B$36,INDEX(Ranks!$1:$1048576,$A426,CP$1))","v":""},{"$f":"IF($A426=\"N/A\",Ref!$B$36,INDEX(Ranks!$1:$1048576,$A426,CQ$1))","v":""},{"$f":"IF($A426=\"N/A\",Ref!$B$36,INDEX(Ranks!$1:$1048576,$A426,CR$1))","v":""},{"$f":"IF($A426=\"N/A\",Ref!$B$36,INDEX(Ranks!$1:$1048576,$A426,CS$1))","v":""},{"$f":"IF($A426=\"N/A\",Ref!$B$36,INDEX(Ranks!$1:$1048576,$A426,CT$1))","v":""},{"$f":"IF($A426=\"N/A\",Ref!$B$36,INDEX(Ranks!$1:$1048576,$A426,CU$1))","v":""},{"$f":"IF($A426=\"N/A\",Ref!$B$36,INDEX(Ranks!$1:$1048576,$A426,CV$1))","v":""},{"$f":"IF($A426=\"N/A\",Ref!$B$36,INDEX(Ranks!$1:$1048576,$A426,CW$1))","v":""},{"$f":"IF($A426=\"N/A\",Ref!$B$36,INDEX(Ranks!$1:$1048576,$A426,CX$1))","v":""},{"$f":"IF($A426=\"N/A\",Ref!$B$36,INDEX(Ranks!$1:$1048576,$A426,CY$1))","v":""},{"$f":"IF($A426=\"N/A\",Ref!$B$36,INDEX(Ranks!$1:$1048576,$A426,CZ$1))","v":""},{"$f":"IF($A426=\"N/A\",Ref!$B$36,INDEX(Ranks!$1:$1048576,$A426,DA$1))","v":""},{"$f":"IF($A426=\"N/A\",Ref!$B$36,INDEX(Ranks!$1:$1048576,$A426,DB$1))","v":""},{"$f":"IF($A426=\"N/A\",Ref!$B$36,INDEX(Ranks!$1:$1048576,$A426,DC$1))","v":""},{"$f":"IF($A426=\"N/A\",Ref!$B$36,INDEX(Ranks!$1:$1048576,$A426,DD$1))","v":""},{"$f":"IF($A426=\"N/A\",Ref!$B$36,INDEX(Ranks!$1:$1048576,$A426,DE$1))","v":""},{"$f":"IF($A426=\"N/A\",Ref!$B$36,INDEX(Ranks!$1:$1048576,$A426,DF$1))","v":""},{"$f":"IF($A426=\"N/A\",Ref!$B$36,INDEX(Ranks!$1:$1048576,$A426,DG$1))","v":""},{"$f":"IF($A426=\"N/A\",Ref!$B$36,INDEX(Ranks!$1:$1048576,$A426,DH$1))","v":""},{"$f":"IF($A426=\"N/A\",Ref!$B$36,INDEX(Ranks!$1:$1048576,$A426,DI$1))","v":""},{"$f":"IF($A426=\"N/A\",Ref!$B$36,INDEX(Ranks!$1:$1048576,$A426,DJ$1))","v":""},{"$f":"IF($A426=\"N/A\",Ref!$B$36,INDEX(Ranks!$1:$1048576,$A426,DK$1))","v":""},{"$f":"IF($A426=\"N/A\",Ref!$B$36,INDEX(Ranks!$1:$1048576,$A426,DL$1))","v":""},{"$f":"IF($A426=\"N/A\",Ref!$B$36,INDEX(Ranks!$1:$1048576,$A426,DM$1))","v":""},{"$f":"IF($A426=\"N/A\",Ref!$B$36,INDEX(Ranks!$1:$1048576,$A426,DN$1))","v":""},{"$f":"IF($A426=\"N/A\",Ref!$B$36,INDEX(Ranks!$1:$1048576,$A426,DO$1))","v":""},{"$f":"IF($A426=\"N/A\",Ref!$B$36,INDEX(Ranks!$1:$1048576,$A426,DP$1))","v":""},{"$f":"IF($A426=\"N/A\",Ref!$B$36,INDEX(Ranks!$1:$1048576,$A426,DQ$1))","v":""},{"$f":"IF($A426=\"N/A\",Ref!$B$36,INDEX(Ranks!$1:$1048576,$A426,DR$1))","v":""},{"$f":"IF($A426=\"N/A\",Ref!$B$36,INDEX(Ranks!$1:$1048576,$A426,DS$1))","v":""},{"$f":"IF($A426=\"N/A\",Ref!$B$36,INDEX(Ranks!$1:$1048576,$A426,DT$1))","v":""},{"$f":"IF($A426=\"N/A\",Ref!$B$36,INDEX(Ranks!$1:$1048576,$A426,DU$1))","v":""},{"$f":"IF($A426=\"N/A\",Ref!$B$36,INDEX(Ranks!$1:$1048576,$A426,DV$1))","v":""},{"$f":"IF($A426=\"N/A\",Ref!$B$36,INDEX(Ranks!$1:$1048576,$A426,DW$1))","v":""},{"$f":"IF($A426=\"N/A\",Ref!$B$36,INDEX(Ranks!$1:$1048576,$A426,DX$1))","v":""},{"$f":"IF($A426=\"N/A\",Ref!$B$36,INDEX(Ranks!$1:$1048576,$A426,DY$1))","v":""},{"$f":"IF($A426=\"N/A\",Ref!$B$36,INDEX(Ranks!$1:$1048576,$A426,DZ$1))","v":""},{"$f":"IF($A426=\"N/A\",Ref!$B$36,INDEX(Ranks!$1:$1048576,$A426,EA$1))","v":""},{"$f":"IF($A426=\"N/A\",Ref!$B$36,INDEX(Ranks!$1:$1048576,$A426,EB$1))","v":""}]
[{"$f":"IFERROR(MATCH('Portfolio Page'!L427,Ranks!L:L,0),\"N/A\")","v":"N/A"},null,{"$f":"IF($A427=\"N/A\",\"\",INDEX(Ranks!$1:$1048576,$A427,C$1))","v":""},{"$f":"IF($A427=\"N/A\",Ref!$B$36,INDEX(Ranks!$1:$1048576,$A427,D$1))","v":""},{"$f":"IF($A427=\"N/A\",Ref!$B$36,INDEX(Ranks!$1:$1048576,$A427,E$1))","v":""},{"$f":"IF($A427=\"N/A\",\"\",INDEX(Ranks!$1:$1048576,$A427,F$1))","v":""},{"$f":"IF($A427=\"N/A\",\"\",INDEX(Ranks!$1:$1048576,$A427,G$1))","v":""},{"$f":"IF($A427=\"N/A\",\"\",INDEX(Ranks!$1:$1048576,$A427,H$1))","v":""},{"$f":"IF($A427=\"N/A\",\"\",INDEX(Ranks!$1:$1048576,$A427,I$1))","v":""},{"$f":"IF($A427=\"N/A\",\"\",INDEX(Ranks!$1:$1048576,$A427,J$1))","v":""},{"$f":"IF($A427=\"N/A\",\"\",INDEX(Ranks!$1:$1048576,$A427,K$1))","v":""},null,{"$f":"IF($A427=\"N/A\",Ref!$B$36,INDEX(Ranks!$1:$1048576,$A427,M$1))","v":""},{"$f":"IF($A427=\"N/A\",Ref!$B$36,INDEX(Ranks!$1:$1048576,$A427,N$1))","v":""},{"$f":"IF($A427=\"N/A\",Ref!$B$36,INDEX(Ranks!$1:$1048576,$A427,O$1))","v":""},{"$f":"IF($A427=\"N/A\",Ref!$B$36,INDEX(Ranks!$1:$1048576,$A427,P$1))","v":""},{"$f":"IF($A427=\"N/A\",Ref!$B$36,INDEX(Ranks!$1:$1048576,$A427,Q$1))","v":""},{"$f":"IF($A427=\"N/A\",Ref!$B$36,INDEX(Ranks!$1:$1048576,$A427,R$1))","v":""},{"$f":"IF($A427=\"N/A\",Ref!$B$36,INDEX(Ranks!$1:$1048576,$A427,S$1))","v":""},{"$f":"IF($A427=\"N/A\",Ref!$B$36,INDEX(Ranks!$1:$1048576,$A427,T$1))","v":""},{"$f":"IF($A427=\"N/A\",Ref!$B$36,INDEX(Ranks!$1:$1048576,$A427,U$1))","v":""},{"$f":"IF($A427=\"N/A\",Ref!$B$36,INDEX(Ranks!$1:$1048576,$A427,V$1))","v":""},{"$f":"IF($A427=\"N/A\",Ref!$B$36,INDEX(Ranks!$1:$1048576,$A427,W$1))","v":""},{"$f":"IF($A427=\"N/A\",Ref!$B$36,INDEX(Ranks!$1:$1048576,$A427,X$1))","v":""},{"$f":"IF($A427=\"N/A\",Ref!$B$36,INDEX(Ranks!$1:$1048576,$A427,Y$1))","v":""},{"$f":"IF($A427=\"N/A\",Ref!$B$36,INDEX(Ranks!$1:$1048576,$A427,Z$1))","v":""},{"$f":"IF($A427=\"N/A\",Ref!$B$36,INDEX(Ranks!$1:$1048576,$A427,AA$1))","v":""},{"$f":"IF($A427=\"N/A\",Ref!$B$36,INDEX(Ranks!$1:$1048576,$A427,AB$1))","v":""},{"$f":"IF($A427=\"N/A\",Ref!$B$36,INDEX(Ranks!$1:$1048576,$A427,AC$1))","v":""},{"$f":"IF($A427=\"N/A\",Ref!$B$36,INDEX(Ranks!$1:$1048576,$A427,AD$1))","v":""},{"$f":"IF($A427=\"N/A\",Ref!$B$36,INDEX(Ranks!$1:$1048576,$A427,AE$1))","v":""},{"$f":"IF($A427=\"N/A\",Ref!$B$36,INDEX(Ranks!$1:$1048576,$A427,AF$1))","v":""},{"$f":"IF($A427=\"N/A\",Ref!$B$36,INDEX(Ranks!$1:$1048576,$A427,AG$1))","v":""},{"$f":"IF($A427=\"N/A\",Ref!$B$36,INDEX(Ranks!$1:$1048576,$A427,AH$1))","v":""},{"$f":"IF($A427=\"N/A\",Ref!$B$36,INDEX(Ranks!$1:$1048576,$A427,AI$1))","v":""},{"$f":"IF($A427=\"N/A\",Ref!$B$36,INDEX(Ranks!$1:$1048576,$A427,AJ$1))","v":""},{"$f":"IF($A427=\"N/A\",Ref!$B$36,INDEX(Ranks!$1:$1048576,$A427,AK$1))","v":""},{"$f":"IF($A427=\"N/A\",Ref!$B$36,INDEX(Ranks!$1:$1048576,$A427,AL$1))","v":""},{"$f":"IF($A427=\"N/A\",Ref!$B$36,INDEX(Ranks!$1:$1048576,$A427,AM$1))","v":""},{"$f":"IF($A427=\"N/A\",Ref!$B$36,INDEX(Ranks!$1:$1048576,$A427,AN$1))","v":""},{"$f":"IF($A427=\"N/A\",Ref!$B$36,INDEX(Ranks!$1:$1048576,$A427,AO$1))","v":""},{"$f":"IF($A427=\"N/A\",Ref!$B$36,INDEX(Ranks!$1:$1048576,$A427,AP$1))","v":""},{"$f":"IF($A427=\"N/A\",Ref!$B$36,INDEX(Ranks!$1:$1048576,$A427,AQ$1))","v":""},{"$f":"IF($A427=\"N/A\",Ref!$B$36,INDEX(Ranks!$1:$1048576,$A427,AR$1))","v":""},{"$f":"IF($A427=\"N/A\",Ref!$B$36,INDEX(Ranks!$1:$1048576,$A427,AS$1))","v":""},{"$f":"IF($A427=\"N/A\",Ref!$B$36,INDEX(Ranks!$1:$1048576,$A427,AT$1))","v":""},{"$f":"IF($A427=\"N/A\",Ref!$B$36,INDEX(Ranks!$1:$1048576,$A427,AU$1))","v":""},{"$f":"IF($A427=\"N/A\",Ref!$B$36,INDEX(Ranks!$1:$1048576,$A427,AV$1))","v":""},{"$f":"IF($A427=\"N/A\",Ref!$B$36,INDEX(Ranks!$1:$1048576,$A427,AW$1))","v":""},{"$f":"IF($A427=\"N/A\",Ref!$B$36,INDEX(Ranks!$1:$1048576,$A427,AX$1))","v":""},{"$f":"IF($A427=\"N/A\",Ref!$B$36,INDEX(Ranks!$1:$1048576,$A427,AY$1))","v":""},{"$f":"IF($A427=\"N/A\",Ref!$B$36,INDEX(Ranks!$1:$1048576,$A427,AZ$1))","v":""},{"$f":"IF($A427=\"N/A\",Ref!$B$36,INDEX(Ranks!$1:$1048576,$A427,BA$1))","v":""},{"$f":"IF($A427=\"N/A\",Ref!$B$36,INDEX(Ranks!$1:$1048576,$A427,BB$1))","v":""},{"$f":"IF($A427=\"N/A\",Ref!$B$36,INDEX(Ranks!$1:$1048576,$A427,BC$1))","v":""},{"$f":"IF($A427=\"N/A\",Ref!$B$36,INDEX(Ranks!$1:$1048576,$A427,BD$1))","v":""},{"$f":"IF($A427=\"N/A\",Ref!$B$36,INDEX(Ranks!$1:$1048576,$A427,BE$1))","v":""},{"$f":"IF($A427=\"N/A\",Ref!$B$36,INDEX(Ranks!$1:$1048576,$A427,BF$1))","v":""},{"$f":"IF($A427=\"N/A\",Ref!$B$36,INDEX(Ranks!$1:$1048576,$A427,BG$1))","v":""},{"$f":"IF($A427=\"N/A\",Ref!$B$36,INDEX(Ranks!$1:$1048576,$A427,BH$1))","v":""},{"$f":"IF($A427=\"N/A\",Ref!$B$36,INDEX(Ranks!$1:$1048576,$A427,BI$1))","v":""},{"$f":"IF($A427=\"N/A\",Ref!$B$36,INDEX(Ranks!$1:$1048576,$A427,BJ$1))","v":""},{"$f":"IF($A427=\"N/A\",Ref!$B$36,INDEX(Ranks!$1:$1048576,$A427,BK$1))","v":""},{"$f":"IF($A427=\"N/A\",Ref!$B$36,INDEX(Ranks!$1:$1048576,$A427,BL$1))","v":""},{"$f":"IF($A427=\"N/A\",Ref!$B$36,INDEX(Ranks!$1:$1048576,$A427,BM$1))","v":""},{"$f":"IF($A427=\"N/A\",Ref!$B$36,INDEX(Ranks!$1:$1048576,$A427,BN$1))","v":""},{"$f":"IF($A427=\"N/A\",Ref!$B$36,INDEX(Ranks!$1:$1048576,$A427,BO$1))","v":""},{"$f":"IF($A427=\"N/A\",Ref!$B$36,INDEX(Ranks!$1:$1048576,$A427,BP$1))","v":""},{"$f":"IF($A427=\"N/A\",Ref!$B$36,INDEX(Ranks!$1:$1048576,$A427,BQ$1))","v":""},{"$f":"IF($A427=\"N/A\",Ref!$B$36,INDEX(Ranks!$1:$1048576,$A427,BR$1))","v":""},{"$f":"IF($A427=\"N/A\",Ref!$B$36,INDEX(Ranks!$1:$1048576,$A427,BS$1))","v":""},{"$f":"IF($A427=\"N/A\",Ref!$B$36,INDEX(Ranks!$1:$1048576,$A427,BT$1))","v":""},{"$f":"IF($A427=\"N/A\",Ref!$B$36,INDEX(Ranks!$1:$1048576,$A427,BU$1))","v":""},{"$f":"IF($A427=\"N/A\",Ref!$B$36,INDEX(Ranks!$1:$1048576,$A427,BV$1))","v":""},{"$f":"IF($A427=\"N/A\",Ref!$B$36,INDEX(Ranks!$1:$1048576,$A427,BW$1))","v":""},{"$f":"IF($A427=\"N/A\",Ref!$B$36,INDEX(Ranks!$1:$1048576,$A427,BX$1))","v":""},{"$f":"IF($A427=\"N/A\",Ref!$B$36,INDEX(Ranks!$1:$1048576,$A427,BY$1))","v":""},{"$f":"IF($A427=\"N/A\",Ref!$B$36,INDEX(Ranks!$1:$1048576,$A427,BZ$1))","v":""},{"$f":"IF($A427=\"N/A\",Ref!$B$36,INDEX(Ranks!$1:$1048576,$A427,CA$1))","v":""},{"$f":"IF($A427=\"N/A\",Ref!$B$36,INDEX(Ranks!$1:$1048576,$A427,CB$1))","v":""},{"$f":"IF($A427=\"N/A\",Ref!$B$36,INDEX(Ranks!$1:$1048576,$A427,CC$1))","v":""},{"$f":"IF($A427=\"N/A\",Ref!$B$36,INDEX(Ranks!$1:$1048576,$A427,CD$1))","v":""},{"$f":"IF($A427=\"N/A\",Ref!$B$36,INDEX(Ranks!$1:$1048576,$A427,CE$1))","v":""},{"$f":"IF($A427=\"N/A\",Ref!$B$36,INDEX(Ranks!$1:$1048576,$A427,CF$1))","v":""},{"$f":"IF($A427=\"N/A\",Ref!$B$36,INDEX(Ranks!$1:$1048576,$A427,CG$1))","v":""},{"$f":"IF($A427=\"N/A\",Ref!$B$36,INDEX(Ranks!$1:$1048576,$A427,CH$1))","v":""},{"$f":"IF($A427=\"N/A\",Ref!$B$36,INDEX(Ranks!$1:$1048576,$A427,CI$1))","v":""},{"$f":"IF($A427=\"N/A\",Ref!$B$36,INDEX(Ranks!$1:$1048576,$A427,CJ$1))","v":""},{"$f":"IF($A427=\"N/A\",Ref!$B$36,INDEX(Ranks!$1:$1048576,$A427,CK$1))","v":""},{"$f":"IF($A427=\"N/A\",Ref!$B$36,INDEX(Ranks!$1:$1048576,$A427,CL$1))","v":""},{"$f":"IF($A427=\"N/A\",Ref!$B$36,INDEX(Ranks!$1:$1048576,$A427,CM$1))","v":""},{"$f":"IF($A427=\"N/A\",Ref!$B$36,INDEX(Ranks!$1:$1048576,$A427,CN$1))","v":""},{"$f":"IF($A427=\"N/A\",Ref!$B$36,INDEX(Ranks!$1:$1048576,$A427,CO$1))","v":""},{"$f":"IF($A427=\"N/A\",Ref!$B$36,INDEX(Ranks!$1:$1048576,$A427,CP$1))","v":""},{"$f":"IF($A427=\"N/A\",Ref!$B$36,INDEX(Ranks!$1:$1048576,$A427,CQ$1))","v":""},{"$f":"IF($A427=\"N/A\",Ref!$B$36,INDEX(Ranks!$1:$1048576,$A427,CR$1))","v":""},{"$f":"IF($A427=\"N/A\",Ref!$B$36,INDEX(Ranks!$1:$1048576,$A427,CS$1))","v":""},{"$f":"IF($A427=\"N/A\",Ref!$B$36,INDEX(Ranks!$1:$1048576,$A427,CT$1))","v":""},{"$f":"IF($A427=\"N/A\",Ref!$B$36,INDEX(Ranks!$1:$1048576,$A427,CU$1))","v":""},{"$f":"IF($A427=\"N/A\",Ref!$B$36,INDEX(Ranks!$1:$1048576,$A427,CV$1))","v":""},{"$f":"IF($A427=\"N/A\",Ref!$B$36,INDEX(Ranks!$1:$1048576,$A427,CW$1))","v":""},{"$f":"IF($A427=\"N/A\",Ref!$B$36,INDEX(Ranks!$1:$1048576,$A427,CX$1))","v":""},{"$f":"IF($A427=\"N/A\",Ref!$B$36,INDEX(Ranks!$1:$1048576,$A427,CY$1))","v":""},{"$f":"IF($A427=\"N/A\",Ref!$B$36,INDEX(Ranks!$1:$1048576,$A427,CZ$1))","v":""},{"$f":"IF($A427=\"N/A\",Ref!$B$36,INDEX(Ranks!$1:$1048576,$A427,DA$1))","v":""},{"$f":"IF($A427=\"N/A\",Ref!$B$36,INDEX(Ranks!$1:$1048576,$A427,DB$1))","v":""},{"$f":"IF($A427=\"N/A\",Ref!$B$36,INDEX(Ranks!$1:$1048576,$A427,DC$1))","v":""},{"$f":"IF($A427=\"N/A\",Ref!$B$36,INDEX(Ranks!$1:$1048576,$A427,DD$1))","v":""},{"$f":"IF($A427=\"N/A\",Ref!$B$36,INDEX(Ranks!$1:$1048576,$A427,DE$1))","v":""},{"$f":"IF($A427=\"N/A\",Ref!$B$36,INDEX(Ranks!$1:$1048576,$A427,DF$1))","v":""},{"$f":"IF($A427=\"N/A\",Ref!$B$36,INDEX(Ranks!$1:$1048576,$A427,DG$1))","v":""},{"$f":"IF($A427=\"N/A\",Ref!$B$36,INDEX(Ranks!$1:$1048576,$A427,DH$1))","v":""},{"$f":"IF($A427=\"N/A\",Ref!$B$36,INDEX(Ranks!$1:$1048576,$A427,DI$1))","v":""},{"$f":"IF($A427=\"N/A\",Ref!$B$36,INDEX(Ranks!$1:$1048576,$A427,DJ$1))","v":""},{"$f":"IF($A427=\"N/A\",Ref!$B$36,INDEX(Ranks!$1:$1048576,$A427,DK$1))","v":""},{"$f":"IF($A427=\"N/A\",Ref!$B$36,INDEX(Ranks!$1:$1048576,$A427,DL$1))","v":""},{"$f":"IF($A427=\"N/A\",Ref!$B$36,INDEX(Ranks!$1:$1048576,$A427,DM$1))","v":""},{"$f":"IF($A427=\"N/A\",Ref!$B$36,INDEX(Ranks!$1:$1048576,$A427,DN$1))","v":""},{"$f":"IF($A427=\"N/A\",Ref!$B$36,INDEX(Ranks!$1:$1048576,$A427,DO$1))","v":""},{"$f":"IF($A427=\"N/A\",Ref!$B$36,INDEX(Ranks!$1:$1048576,$A427,DP$1))","v":""},{"$f":"IF($A427=\"N/A\",Ref!$B$36,INDEX(Ranks!$1:$1048576,$A427,DQ$1))","v":""},{"$f":"IF($A427=\"N/A\",Ref!$B$36,INDEX(Ranks!$1:$1048576,$A427,DR$1))","v":""},{"$f":"IF($A427=\"N/A\",Ref!$B$36,INDEX(Ranks!$1:$1048576,$A427,DS$1))","v":""},{"$f":"IF($A427=\"N/A\",Ref!$B$36,INDEX(Ranks!$1:$1048576,$A427,DT$1))","v":""},{"$f":"IF($A427=\"N/A\",Ref!$B$36,INDEX(Ranks!$1:$1048576,$A427,DU$1))","v":""},{"$f":"IF($A427=\"N/A\",Ref!$B$36,INDEX(Ranks!$1:$1048576,$A427,DV$1))","v":""},{"$f":"IF($A427=\"N/A\",Ref!$B$36,INDEX(Ranks!$1:$1048576,$A427,DW$1))","v":""},{"$f":"IF($A427=\"N/A\",Ref!$B$36,INDEX(Ranks!$1:$1048576,$A427,DX$1))","v":""},{"$f":"IF($A427=\"N/A\",Ref!$B$36,INDEX(Ranks!$1:$1048576,$A427,DY$1))","v":""},{"$f":"IF($A427=\"N/A\",Ref!$B$36,INDEX(Ranks!$1:$1048576,$A427,DZ$1))","v":""},{"$f":"IF($A427=\"N/A\",Ref!$B$36,INDEX(Ranks!$1:$1048576,$A427,EA$1))","v":""},{"$f":"IF($A427=\"N/A\",Ref!$B$36,INDEX(Ranks!$1:$1048576,$A427,EB$1))","v":""}]
[{"$f":"IFERROR(MATCH('Portfolio Page'!L428,Ranks!L:L,0),\"N/A\")","v":"N/A"},null,{"$f":"IF($A428=\"N/A\",\"\",INDEX(Ranks!$1:$1048576,$A428,C$1))","v":""},{"$f":"IF($A428=\"N/A\",Ref!$B$36,INDEX(Ranks!$1:$1048576,$A428,D$1))","v":""},{"$f":"IF($A428=\"N/A\",Ref!$B$36,INDEX(Ranks!$1:$1048576,$A428,E$1))","v":""},{"$f":"IF($A428=\"N/A\",\"\",INDEX(Ranks!$1:$1048576,$A428,F$1))","v":""},{"$f":"IF($A428=\"N/A\",\"\",INDEX(Ranks!$1:$1048576,$A428,G$1))","v":""},{"$f":"IF($A428=\"N/A\",\"\",INDEX(Ranks!$1:$1048576,$A428,H$1))","v":""},{"$f":"IF($A428=\"N/A\",\"\",INDEX(Ranks!$1:$1048576,$A428,I$1))","v":""},{"$f":"IF($A428=\"N/A\",\"\",INDEX(Ranks!$1:$1048576,$A428,J$1))","v":""},{"$f":"IF($A428=\"N/A\",\"\",INDEX(Ranks!$1:$1048576,$A428,K$1))","v":""},null,{"$f":"IF($A428=\"N/A\",Ref!$B$36,INDEX(Ranks!$1:$1048576,$A428,M$1))","v":""},{"$f":"IF($A428=\"N/A\",Ref!$B$36,INDEX(Ranks!$1:$1048576,$A428,N$1))","v":""},{"$f":"IF($A428=\"N/A\",Ref!$B$36,INDEX(Ranks!$1:$1048576,$A428,O$1))","v":""},{"$f":"IF($A428=\"N/A\",Ref!$B$36,INDEX(Ranks!$1:$1048576,$A428,P$1))","v":""},{"$f":"IF($A428=\"N/A\",Ref!$B$36,INDEX(Ranks!$1:$1048576,$A428,Q$1))","v":""},{"$f":"IF($A428=\"N/A\",Ref!$B$36,INDEX(Ranks!$1:$1048576,$A428,R$1))","v":""},{"$f":"IF($A428=\"N/A\",Ref!$B$36,INDEX(Ranks!$1:$1048576,$A428,S$1))","v":""},{"$f":"IF($A428=\"N/A\",Ref!$B$36,INDEX(Ranks!$1:$1048576,$A428,T$1))","v":""},{"$f":"IF($A428=\"N/A\",Ref!$B$36,INDEX(Ranks!$1:$1048576,$A428,U$1))","v":""},{"$f":"IF($A428=\"N/A\",Ref!$B$36,INDEX(Ranks!$1:$1048576,$A428,V$1))","v":""},{"$f":"IF($A428=\"N/A\",Ref!$B$36,INDEX(Ranks!$1:$1048576,$A428,W$1))","v":""},{"$f":"IF($A428=\"N/A\",Ref!$B$36,INDEX(Ranks!$1:$1048576,$A428,X$1))","v":""},{"$f":"IF($A428=\"N/A\",Ref!$B$36,INDEX(Ranks!$1:$1048576,$A428,Y$1))","v":""},{"$f":"IF($A428=\"N/A\",Ref!$B$36,INDEX(Ranks!$1:$1048576,$A428,Z$1))","v":""},{"$f":"IF($A428=\"N/A\",Ref!$B$36,INDEX(Ranks!$1:$1048576,$A428,AA$1))","v":""},{"$f":"IF($A428=\"N/A\",Ref!$B$36,INDEX(Ranks!$1:$1048576,$A428,AB$1))","v":""},{"$f":"IF($A428=\"N/A\",Ref!$B$36,INDEX(Ranks!$1:$1048576,$A428,AC$1))","v":""},{"$f":"IF($A428=\"N/A\",Ref!$B$36,INDEX(Ranks!$1:$1048576,$A428,AD$1))","v":""},{"$f":"IF($A428=\"N/A\",Ref!$B$36,INDEX(Ranks!$1:$1048576,$A428,AE$1))","v":""},{"$f":"IF($A428=\"N/A\",Ref!$B$36,INDEX(Ranks!$1:$1048576,$A428,AF$1))","v":""},{"$f":"IF($A428=\"N/A\",Ref!$B$36,INDEX(Ranks!$1:$1048576,$A428,AG$1))","v":""},{"$f":"IF($A428=\"N/A\",Ref!$B$36,INDEX(Ranks!$1:$1048576,$A428,AH$1))","v":""},{"$f":"IF($A428=\"N/A\",Ref!$B$36,INDEX(Ranks!$1:$1048576,$A428,AI$1))","v":""},{"$f":"IF($A428=\"N/A\",Ref!$B$36,INDEX(Ranks!$1:$1048576,$A428,AJ$1))","v":""},{"$f":"IF($A428=\"N/A\",Ref!$B$36,INDEX(Ranks!$1:$1048576,$A428,AK$1))","v":""},{"$f":"IF($A428=\"N/A\",Ref!$B$36,INDEX(Ranks!$1:$1048576,$A428,AL$1))","v":""},{"$f":"IF($A428=\"N/A\",Ref!$B$36,INDEX(Ranks!$1:$1048576,$A428,AM$1))","v":""},{"$f":"IF($A428=\"N/A\",Ref!$B$36,INDEX(Ranks!$1:$1048576,$A428,AN$1))","v":""},{"$f":"IF($A428=\"N/A\",Ref!$B$36,INDEX(Ranks!$1:$1048576,$A428,AO$1))","v":""},{"$f":"IF($A428=\"N/A\",Ref!$B$36,INDEX(Ranks!$1:$1048576,$A428,AP$1))","v":""},{"$f":"IF($A428=\"N/A\",Ref!$B$36,INDEX(Ranks!$1:$1048576,$A428,AQ$1))","v":""},{"$f":"IF($A428=\"N/A\",Ref!$B$36,INDEX(Ranks!$1:$1048576,$A428,AR$1))","v":""},{"$f":"IF($A428=\"N/A\",Ref!$B$36,INDEX(Ranks!$1:$1048576,$A428,AS$1))","v":""},{"$f":"IF($A428=\"N/A\",Ref!$B$36,INDEX(Ranks!$1:$1048576,$A428,AT$1))","v":""},{"$f":"IF($A428=\"N/A\",Ref!$B$36,INDEX(Ranks!$1:$1048576,$A428,AU$1))","v":""},{"$f":"IF($A428=\"N/A\",Ref!$B$36,INDEX(Ranks!$1:$1048576,$A428,AV$1))","v":""},{"$f":"IF($A428=\"N/A\",Ref!$B$36,INDEX(Ranks!$1:$1048576,$A428,AW$1))","v":""},{"$f":"IF($A428=\"N/A\",Ref!$B$36,INDEX(Ranks!$1:$1048576,$A428,AX$1))","v":""},{"$f":"IF($A428=\"N/A\",Ref!$B$36,INDEX(Ranks!$1:$1048576,$A428,AY$1))","v":""},{"$f":"IF($A428=\"N/A\",Ref!$B$36,INDEX(Ranks!$1:$1048576,$A428,AZ$1))","v":""},{"$f":"IF($A428=\"N/A\",Ref!$B$36,INDEX(Ranks!$1:$1048576,$A428,BA$1))","v":""},{"$f":"IF($A428=\"N/A\",Ref!$B$36,INDEX(Ranks!$1:$1048576,$A428,BB$1))","v":""},{"$f":"IF($A428=\"N/A\",Ref!$B$36,INDEX(Ranks!$1:$1048576,$A428,BC$1))","v":""},{"$f":"IF($A428=\"N/A\",Ref!$B$36,INDEX(Ranks!$1:$1048576,$A428,BD$1))","v":""},{"$f":"IF($A428=\"N/A\",Ref!$B$36,INDEX(Ranks!$1:$1048576,$A428,BE$1))","v":""},{"$f":"IF($A428=\"N/A\",Ref!$B$36,INDEX(Ranks!$1:$1048576,$A428,BF$1))","v":""},{"$f":"IF($A428=\"N/A\",Ref!$B$36,INDEX(Ranks!$1:$1048576,$A428,BG$1))","v":""},{"$f":"IF($A428=\"N/A\",Ref!$B$36,INDEX(Ranks!$1:$1048576,$A428,BH$1))","v":""},{"$f":"IF($A428=\"N/A\",Ref!$B$36,INDEX(Ranks!$1:$1048576,$A428,BI$1))","v":""},{"$f":"IF($A428=\"N/A\",Ref!$B$36,INDEX(Ranks!$1:$1048576,$A428,BJ$1))","v":""},{"$f":"IF($A428=\"N/A\",Ref!$B$36,INDEX(Ranks!$1:$1048576,$A428,BK$1))","v":""},{"$f":"IF($A428=\"N/A\",Ref!$B$36,INDEX(Ranks!$1:$1048576,$A428,BL$1))","v":""},{"$f":"IF($A428=\"N/A\",Ref!$B$36,INDEX(Ranks!$1:$1048576,$A428,BM$1))","v":""},{"$f":"IF($A428=\"N/A\",Ref!$B$36,INDEX(Ranks!$1:$1048576,$A428,BN$1))","v":""},{"$f":"IF($A428=\"N/A\",Ref!$B$36,INDEX(Ranks!$1:$1048576,$A428,BO$1))","v":""},{"$f":"IF($A428=\"N/A\",Ref!$B$36,INDEX(Ranks!$1:$1048576,$A428,BP$1))","v":""},{"$f":"IF($A428=\"N/A\",Ref!$B$36,INDEX(Ranks!$1:$1048576,$A428,BQ$1))","v":""},{"$f":"IF($A428=\"N/A\",Ref!$B$36,INDEX(Ranks!$1:$1048576,$A428,BR$1))","v":""},{"$f":"IF($A428=\"N/A\",Ref!$B$36,INDEX(Ranks!$1:$1048576,$A428,BS$1))","v":""},{"$f":"IF($A428=\"N/A\",Ref!$B$36,INDEX(Ranks!$1:$1048576,$A428,BT$1))","v":""},{"$f":"IF($A428=\"N/A\",Ref!$B$36,INDEX(Ranks!$1:$1048576,$A428,BU$1))","v":""},{"$f":"IF($A428=\"N/A\",Ref!$B$36,INDEX(Ranks!$1:$1048576,$A428,BV$1))","v":""},{"$f":"IF($A428=\"N/A\",Ref!$B$36,INDEX(Ranks!$1:$1048576,$A428,BW$1))","v":""},{"$f":"IF($A428=\"N/A\",Ref!$B$36,INDEX(Ranks!$1:$1048576,$A428,BX$1))","v":""},{"$f":"IF($A428=\"N/A\",Ref!$B$36,INDEX(Ranks!$1:$1048576,$A428,BY$1))","v":""},{"$f":"IF($A428=\"N/A\",Ref!$B$36,INDEX(Ranks!$1:$1048576,$A428,BZ$1))","v":""},{"$f":"IF($A428=\"N/A\",Ref!$B$36,INDEX(Ranks!$1:$1048576,$A428,CA$1))","v":""},{"$f":"IF($A428=\"N/A\",Ref!$B$36,INDEX(Ranks!$1:$1048576,$A428,CB$1))","v":""},{"$f":"IF($A428=\"N/A\",Ref!$B$36,INDEX(Ranks!$1:$1048576,$A428,CC$1))","v":""},{"$f":"IF($A428=\"N/A\",Ref!$B$36,INDEX(Ranks!$1:$1048576,$A428,CD$1))","v":""},{"$f":"IF($A428=\"N/A\",Ref!$B$36,INDEX(Ranks!$1:$1048576,$A428,CE$1))","v":""},{"$f":"IF($A428=\"N/A\",Ref!$B$36,INDEX(Ranks!$1:$1048576,$A428,CF$1))","v":""},{"$f":"IF($A428=\"N/A\",Ref!$B$36,INDEX(Ranks!$1:$1048576,$A428,CG$1))","v":""},{"$f":"IF($A428=\"N/A\",Ref!$B$36,INDEX(Ranks!$1:$1048576,$A428,CH$1))","v":""},{"$f":"IF($A428=\"N/A\",Ref!$B$36,INDEX(Ranks!$1:$1048576,$A428,CI$1))","v":""},{"$f":"IF($A428=\"N/A\",Ref!$B$36,INDEX(Ranks!$1:$1048576,$A428,CJ$1))","v":""},{"$f":"IF($A428=\"N/A\",Ref!$B$36,INDEX(Ranks!$1:$1048576,$A428,CK$1))","v":""},{"$f":"IF($A428=\"N/A\",Ref!$B$36,INDEX(Ranks!$1:$1048576,$A428,CL$1))","v":""},{"$f":"IF($A428=\"N/A\",Ref!$B$36,INDEX(Ranks!$1:$1048576,$A428,CM$1))","v":""},{"$f":"IF($A428=\"N/A\",Ref!$B$36,INDEX(Ranks!$1:$1048576,$A428,CN$1))","v":""},{"$f":"IF($A428=\"N/A\",Ref!$B$36,INDEX(Ranks!$1:$1048576,$A428,CO$1))","v":""},{"$f":"IF($A428=\"N/A\",Ref!$B$36,INDEX(Ranks!$1:$1048576,$A428,CP$1))","v":""},{"$f":"IF($A428=\"N/A\",Ref!$B$36,INDEX(Ranks!$1:$1048576,$A428,CQ$1))","v":""},{"$f":"IF($A428=\"N/A\",Ref!$B$36,INDEX(Ranks!$1:$1048576,$A428,CR$1))","v":""},{"$f":"IF($A428=\"N/A\",Ref!$B$36,INDEX(Ranks!$1:$1048576,$A428,CS$1))","v":""},{"$f":"IF($A428=\"N/A\",Ref!$B$36,INDEX(Ranks!$1:$1048576,$A428,CT$1))","v":""},{"$f":"IF($A428=\"N/A\",Ref!$B$36,INDEX(Ranks!$1:$1048576,$A428,CU$1))","v":""},{"$f":"IF($A428=\"N/A\",Ref!$B$36,INDEX(Ranks!$1:$1048576,$A428,CV$1))","v":""},{"$f":"IF($A428=\"N/A\",Ref!$B$36,INDEX(Ranks!$1:$1048576,$A428,CW$1))","v":""},{"$f":"IF($A428=\"N/A\",Ref!$B$36,INDEX(Ranks!$1:$1048576,$A428,CX$1))","v":""},{"$f":"IF($A428=\"N/A\",Ref!$B$36,INDEX(Ranks!$1:$1048576,$A428,CY$1))","v":""},{"$f":"IF($A428=\"N/A\",Ref!$B$36,INDEX(Ranks!$1:$1048576,$A428,CZ$1))","v":""},{"$f":"IF($A428=\"N/A\",Ref!$B$36,INDEX(Ranks!$1:$1048576,$A428,DA$1))","v":""},{"$f":"IF($A428=\"N/A\",Ref!$B$36,INDEX(Ranks!$1:$1048576,$A428,DB$1))","v":""},{"$f":"IF($A428=\"N/A\",Ref!$B$36,INDEX(Ranks!$1:$1048576,$A428,DC$1))","v":""},{"$f":"IF($A428=\"N/A\",Ref!$B$36,INDEX(Ranks!$1:$1048576,$A428,DD$1))","v":""},{"$f":"IF($A428=\"N/A\",Ref!$B$36,INDEX(Ranks!$1:$1048576,$A428,DE$1))","v":""},{"$f":"IF($A428=\"N/A\",Ref!$B$36,INDEX(Ranks!$1:$1048576,$A428,DF$1))","v":""},{"$f":"IF($A428=\"N/A\",Ref!$B$36,INDEX(Ranks!$1:$1048576,$A428,DG$1))","v":""},{"$f":"IF($A428=\"N/A\",Ref!$B$36,INDEX(Ranks!$1:$1048576,$A428,DH$1))","v":""},{"$f":"IF($A428=\"N/A\",Ref!$B$36,INDEX(Ranks!$1:$1048576,$A428,DI$1))","v":""},{"$f":"IF($A428=\"N/A\",Ref!$B$36,INDEX(Ranks!$1:$1048576,$A428,DJ$1))","v":""},{"$f":"IF($A428=\"N/A\",Ref!$B$36,INDEX(Ranks!$1:$1048576,$A428,DK$1))","v":""},{"$f":"IF($A428=\"N/A\",Ref!$B$36,INDEX(Ranks!$1:$1048576,$A428,DL$1))","v":""},{"$f":"IF($A428=\"N/A\",Ref!$B$36,INDEX(Ranks!$1:$1048576,$A428,DM$1))","v":""},{"$f":"IF($A428=\"N/A\",Ref!$B$36,INDEX(Ranks!$1:$1048576,$A428,DN$1))","v":""},{"$f":"IF($A428=\"N/A\",Ref!$B$36,INDEX(Ranks!$1:$1048576,$A428,DO$1))","v":""},{"$f":"IF($A428=\"N/A\",Ref!$B$36,INDEX(Ranks!$1:$1048576,$A428,DP$1))","v":""},{"$f":"IF($A428=\"N/A\",Ref!$B$36,INDEX(Ranks!$1:$1048576,$A428,DQ$1))","v":""},{"$f":"IF($A428=\"N/A\",Ref!$B$36,INDEX(Ranks!$1:$1048576,$A428,DR$1))","v":""},{"$f":"IF($A428=\"N/A\",Ref!$B$36,INDEX(Ranks!$1:$1048576,$A428,DS$1))","v":""},{"$f":"IF($A428=\"N/A\",Ref!$B$36,INDEX(Ranks!$1:$1048576,$A428,DT$1))","v":""},{"$f":"IF($A428=\"N/A\",Ref!$B$36,INDEX(Ranks!$1:$1048576,$A428,DU$1))","v":""},{"$f":"IF($A428=\"N/A\",Ref!$B$36,INDEX(Ranks!$1:$1048576,$A428,DV$1))","v":""},{"$f":"IF($A428=\"N/A\",Ref!$B$36,INDEX(Ranks!$1:$1048576,$A428,DW$1))","v":""},{"$f":"IF($A428=\"N/A\",Ref!$B$36,INDEX(Ranks!$1:$1048576,$A428,DX$1))","v":""},{"$f":"IF($A428=\"N/A\",Ref!$B$36,INDEX(Ranks!$1:$1048576,$A428,DY$1))","v":""},{"$f":"IF($A428=\"N/A\",Ref!$B$36,INDEX(Ranks!$1:$1048576,$A428,DZ$1))","v":""},{"$f":"IF($A428=\"N/A\",Ref!$B$36,INDEX(Ranks!$1:$1048576,$A428,EA$1))","v":""},{"$f":"IF($A428=\"N/A\",Ref!$B$36,INDEX(Ranks!$1:$1048576,$A428,EB$1))","v":""}]
[{"$f":"IFERROR(MATCH('Portfolio Page'!L429,Ranks!L:L,0),\"N/A\")","v":"N/A"},null,{"$f":"IF($A429=\"N/A\",\"\",INDEX(Ranks!$1:$1048576,$A429,C$1))","v":""},{"$f":"IF($A429=\"N/A\",Ref!$B$36,INDEX(Ranks!$1:$1048576,$A429,D$1))","v":""},{"$f":"IF($A429=\"N/A\",Ref!$B$36,INDEX(Ranks!$1:$1048576,$A429,E$1))","v":""},{"$f":"IF($A429=\"N/A\",\"\",INDEX(Ranks!$1:$1048576,$A429,F$1))","v":""},{"$f":"IF($A429=\"N/A\",\"\",INDEX(Ranks!$1:$1048576,$A429,G$1))","v":""},{"$f":"IF($A429=\"N/A\",\"\",INDEX(Ranks!$1:$1048576,$A429,H$1))","v":""},{"$f":"IF($A429=\"N/A\",\"\",INDEX(Ranks!$1:$1048576,$A429,I$1))","v":""},{"$f":"IF($A429=\"N/A\",\"\",INDEX(Ranks!$1:$1048576,$A429,J$1))","v":""},{"$f":"IF($A429=\"N/A\",\"\",INDEX(Ranks!$1:$1048576,$A429,K$1))","v":""},null,{"$f":"IF($A429=\"N/A\",Ref!$B$36,INDEX(Ranks!$1:$1048576,$A429,M$1))","v":""},{"$f":"IF($A429=\"N/A\",Ref!$B$36,INDEX(Ranks!$1:$1048576,$A429,N$1))","v":""},{"$f":"IF($A429=\"N/A\",Ref!$B$36,INDEX(Ranks!$1:$1048576,$A429,O$1))","v":""},{"$f":"IF($A429=\"N/A\",Ref!$B$36,INDEX(Ranks!$1:$1048576,$A429,P$1))","v":""},{"$f":"IF($A429=\"N/A\",Ref!$B$36,INDEX(Ranks!$1:$1048576,$A429,Q$1))","v":""},{"$f":"IF($A429=\"N/A\",Ref!$B$36,INDEX(Ranks!$1:$1048576,$A429,R$1))","v":""},{"$f":"IF($A429=\"N/A\",Ref!$B$36,INDEX(Ranks!$1:$1048576,$A429,S$1))","v":""},{"$f":"IF($A429=\"N/A\",Ref!$B$36,INDEX(Ranks!$1:$1048576,$A429,T$1))","v":""},{"$f":"IF($A429=\"N/A\",Ref!$B$36,INDEX(Ranks!$1:$1048576,$A429,U$1))","v":""},{"$f":"IF($A429=\"N/A\",Ref!$B$36,INDEX(Ranks!$1:$1048576,$A429,V$1))","v":""},{"$f":"IF($A429=\"N/A\",Ref!$B$36,INDEX(Ranks!$1:$1048576,$A429,W$1))","v":""},{"$f":"IF($A429=\"N/A\",Ref!$B$36,INDEX(Ranks!$1:$1048576,$A429,X$1))","v":""},{"$f":"IF($A429=\"N/A\",Ref!$B$36,INDEX(Ranks!$1:$1048576,$A429,Y$1))","v":""},{"$f":"IF($A429=\"N/A\",Ref!$B$36,INDEX(Ranks!$1:$1048576,$A429,Z$1))","v":""},{"$f":"IF($A429=\"N/A\",Ref!$B$36,INDEX(Ranks!$1:$1048576,$A429,AA$1))","v":""},{"$f":"IF($A429=\"N/A\",Ref!$B$36,INDEX(Ranks!$1:$1048576,$A429,AB$1))","v":""},{"$f":"IF($A429=\"N/A\",Ref!$B$36,INDEX(Ranks!$1:$1048576,$A429,AC$1))","v":""},{"$f":"IF($A429=\"N/A\",Ref!$B$36,INDEX(Ranks!$1:$1048576,$A429,AD$1))","v":""},{"$f":"IF($A429=\"N/A\",Ref!$B$36,INDEX(Ranks!$1:$1048576,$A429,AE$1))","v":""},{"$f":"IF($A429=\"N/A\",Ref!$B$36,INDEX(Ranks!$1:$1048576,$A429,AF$1))","v":""},{"$f":"IF($A429=\"N/A\",Ref!$B$36,INDEX(Ranks!$1:$1048576,$A429,AG$1))","v":""},{"$f":"IF($A429=\"N/A\",Ref!$B$36,INDEX(Ranks!$1:$1048576,$A429,AH$1))","v":""},{"$f":"IF($A429=\"N/A\",Ref!$B$36,INDEX(Ranks!$1:$1048576,$A429,AI$1))","v":""},{"$f":"IF($A429=\"N/A\",Ref!$B$36,INDEX(Ranks!$1:$1048576,$A429,AJ$1))","v":""},{"$f":"IF($A429=\"N/A\",Ref!$B$36,INDEX(Ranks!$1:$1048576,$A429,AK$1))","v":""},{"$f":"IF($A429=\"N/A\",Ref!$B$36,INDEX(Ranks!$1:$1048576,$A429,AL$1))","v":""},{"$f":"IF($A429=\"N/A\",Ref!$B$36,INDEX(Ranks!$1:$1048576,$A429,AM$1))","v":""},{"$f":"IF($A429=\"N/A\",Ref!$B$36,INDEX(Ranks!$1:$1048576,$A429,AN$1))","v":""},{"$f":"IF($A429=\"N/A\",Ref!$B$36,INDEX(Ranks!$1:$1048576,$A429,AO$1))","v":""},{"$f":"IF($A429=\"N/A\",Ref!$B$36,INDEX(Ranks!$1:$1048576,$A429,AP$1))","v":""},{"$f":"IF($A429=\"N/A\",Ref!$B$36,INDEX(Ranks!$1:$1048576,$A429,AQ$1))","v":""},{"$f":"IF($A429=\"N/A\",Ref!$B$36,INDEX(Ranks!$1:$1048576,$A429,AR$1))","v":""},{"$f":"IF($A429=\"N/A\",Ref!$B$36,INDEX(Ranks!$1:$1048576,$A429,AS$1))","v":""},{"$f":"IF($A429=\"N/A\",Ref!$B$36,INDEX(Ranks!$1:$1048576,$A429,AT$1))","v":""},{"$f":"IF($A429=\"N/A\",Ref!$B$36,INDEX(Ranks!$1:$1048576,$A429,AU$1))","v":""},{"$f":"IF($A429=\"N/A\",Ref!$B$36,INDEX(Ranks!$1:$1048576,$A429,AV$1))","v":""},{"$f":"IF($A429=\"N/A\",Ref!$B$36,INDEX(Ranks!$1:$1048576,$A429,AW$1))","v":""},{"$f":"IF($A429=\"N/A\",Ref!$B$36,INDEX(Ranks!$1:$1048576,$A429,AX$1))","v":""},{"$f":"IF($A429=\"N/A\",Ref!$B$36,INDEX(Ranks!$1:$1048576,$A429,AY$1))","v":""},{"$f":"IF($A429=\"N/A\",Ref!$B$36,INDEX(Ranks!$1:$1048576,$A429,AZ$1))","v":""},{"$f":"IF($A429=\"N/A\",Ref!$B$36,INDEX(Ranks!$1:$1048576,$A429,BA$1))","v":""},{"$f":"IF($A429=\"N/A\",Ref!$B$36,INDEX(Ranks!$1:$1048576,$A429,BB$1))","v":""},{"$f":"IF($A429=\"N/A\",Ref!$B$36,INDEX(Ranks!$1:$1048576,$A429,BC$1))","v":""},{"$f":"IF($A429=\"N/A\",Ref!$B$36,INDEX(Ranks!$1:$1048576,$A429,BD$1))","v":""},{"$f":"IF($A429=\"N/A\",Ref!$B$36,INDEX(Ranks!$1:$1048576,$A429,BE$1))","v":""},{"$f":"IF($A429=\"N/A\",Ref!$B$36,INDEX(Ranks!$1:$1048576,$A429,BF$1))","v":""},{"$f":"IF($A429=\"N/A\",Ref!$B$36,INDEX(Ranks!$1:$1048576,$A429,BG$1))","v":""},{"$f":"IF($A429=\"N/A\",Ref!$B$36,INDEX(Ranks!$1:$1048576,$A429,BH$1))","v":""},{"$f":"IF($A429=\"N/A\",Ref!$B$36,INDEX(Ranks!$1:$1048576,$A429,BI$1))","v":""},{"$f":"IF($A429=\"N/A\",Ref!$B$36,INDEX(Ranks!$1:$1048576,$A429,BJ$1))","v":""},{"$f":"IF($A429=\"N/A\",Ref!$B$36,INDEX(Ranks!$1:$1048576,$A429,BK$1))","v":""},{"$f":"IF($A429=\"N/A\",Ref!$B$36,INDEX(Ranks!$1:$1048576,$A429,BL$1))","v":""},{"$f":"IF($A429=\"N/A\",Ref!$B$36,INDEX(Ranks!$1:$1048576,$A429,BM$1))","v":""},{"$f":"IF($A429=\"N/A\",Ref!$B$36,INDEX(Ranks!$1:$1048576,$A429,BN$1))","v":""},{"$f":"IF($A429=\"N/A\",Ref!$B$36,INDEX(Ranks!$1:$1048576,$A429,BO$1))","v":""},{"$f":"IF($A429=\"N/A\",Ref!$B$36,INDEX(Ranks!$1:$1048576,$A429,BP$1))","v":""},{"$f":"IF($A429=\"N/A\",Ref!$B$36,INDEX(Ranks!$1:$1048576,$A429,BQ$1))","v":""},{"$f":"IF($A429=\"N/A\",Ref!$B$36,INDEX(Ranks!$1:$1048576,$A429,BR$1))","v":""},{"$f":"IF($A429=\"N/A\",Ref!$B$36,INDEX(Ranks!$1:$1048576,$A429,BS$1))","v":""},{"$f":"IF($A429=\"N/A\",Ref!$B$36,INDEX(Ranks!$1:$1048576,$A429,BT$1))","v":""},{"$f":"IF($A429=\"N/A\",Ref!$B$36,INDEX(Ranks!$1:$1048576,$A429,BU$1))","v":""},{"$f":"IF($A429=\"N/A\",Ref!$B$36,INDEX(Ranks!$1:$1048576,$A429,BV$1))","v":""},{"$f":"IF($A429=\"N/A\",Ref!$B$36,INDEX(Ranks!$1:$1048576,$A429,BW$1))","v":""},{"$f":"IF($A429=\"N/A\",Ref!$B$36,INDEX(Ranks!$1:$1048576,$A429,BX$1))","v":""},{"$f":"IF($A429=\"N/A\",Ref!$B$36,INDEX(Ranks!$1:$1048576,$A429,BY$1))","v":""},{"$f":"IF($A429=\"N/A\",Ref!$B$36,INDEX(Ranks!$1:$1048576,$A429,BZ$1))","v":""},{"$f":"IF($A429=\"N/A\",Ref!$B$36,INDEX(Ranks!$1:$1048576,$A429,CA$1))","v":""},{"$f":"IF($A429=\"N/A\",Ref!$B$36,INDEX(Ranks!$1:$1048576,$A429,CB$1))","v":""},{"$f":"IF($A429=\"N/A\",Ref!$B$36,INDEX(Ranks!$1:$1048576,$A429,CC$1))","v":""},{"$f":"IF($A429=\"N/A\",Ref!$B$36,INDEX(Ranks!$1:$1048576,$A429,CD$1))","v":""},{"$f":"IF($A429=\"N/A\",Ref!$B$36,INDEX(Ranks!$1:$1048576,$A429,CE$1))","v":""},{"$f":"IF($A429=\"N/A\",Ref!$B$36,INDEX(Ranks!$1:$1048576,$A429,CF$1))","v":""},{"$f":"IF($A429=\"N/A\",Ref!$B$36,INDEX(Ranks!$1:$1048576,$A429,CG$1))","v":""},{"$f":"IF($A429=\"N/A\",Ref!$B$36,INDEX(Ranks!$1:$1048576,$A429,CH$1))","v":""},{"$f":"IF($A429=\"N/A\",Ref!$B$36,INDEX(Ranks!$1:$1048576,$A429,CI$1))","v":""},{"$f":"IF($A429=\"N/A\",Ref!$B$36,INDEX(Ranks!$1:$1048576,$A429,CJ$1))","v":""},{"$f":"IF($A429=\"N/A\",Ref!$B$36,INDEX(Ranks!$1:$1048576,$A429,CK$1))","v":""},{"$f":"IF($A429=\"N/A\",Ref!$B$36,INDEX(Ranks!$1:$1048576,$A429,CL$1))","v":""},{"$f":"IF($A429=\"N/A\",Ref!$B$36,INDEX(Ranks!$1:$1048576,$A429,CM$1))","v":""},{"$f":"IF($A429=\"N/A\",Ref!$B$36,INDEX(Ranks!$1:$1048576,$A429,CN$1))","v":""},{"$f":"IF($A429=\"N/A\",Ref!$B$36,INDEX(Ranks!$1:$1048576,$A429,CO$1))","v":""},{"$f":"IF($A429=\"N/A\",Ref!$B$36,INDEX(Ranks!$1:$1048576,$A429,CP$1))","v":""},{"$f":"IF($A429=\"N/A\",Ref!$B$36,INDEX(Ranks!$1:$1048576,$A429,CQ$1))","v":""},{"$f":"IF($A429=\"N/A\",Ref!$B$36,INDEX(Ranks!$1:$1048576,$A429,CR$1))","v":""},{"$f":"IF($A429=\"N/A\",Ref!$B$36,INDEX(Ranks!$1:$1048576,$A429,CS$1))","v":""},{"$f":"IF($A429=\"N/A\",Ref!$B$36,INDEX(Ranks!$1:$1048576,$A429,CT$1))","v":""},{"$f":"IF($A429=\"N/A\",Ref!$B$36,INDEX(Ranks!$1:$1048576,$A429,CU$1))","v":""},{"$f":"IF($A429=\"N/A\",Ref!$B$36,INDEX(Ranks!$1:$1048576,$A429,CV$1))","v":""},{"$f":"IF($A429=\"N/A\",Ref!$B$36,INDEX(Ranks!$1:$1048576,$A429,CW$1))","v":""},{"$f":"IF($A429=\"N/A\",Ref!$B$36,INDEX(Ranks!$1:$1048576,$A429,CX$1))","v":""},{"$f":"IF($A429=\"N/A\",Ref!$B$36,INDEX(Ranks!$1:$1048576,$A429,CY$1))","v":""},{"$f":"IF($A429=\"N/A\",Ref!$B$36,INDEX(Ranks!$1:$1048576,$A429,CZ$1))","v":""},{"$f":"IF($A429=\"N/A\",Ref!$B$36,INDEX(Ranks!$1:$1048576,$A429,DA$1))","v":""},{"$f":"IF($A429=\"N/A\",Ref!$B$36,INDEX(Ranks!$1:$1048576,$A429,DB$1))","v":""},{"$f":"IF($A429=\"N/A\",Ref!$B$36,INDEX(Ranks!$1:$1048576,$A429,DC$1))","v":""},{"$f":"IF($A429=\"N/A\",Ref!$B$36,INDEX(Ranks!$1:$1048576,$A429,DD$1))","v":""},{"$f":"IF($A429=\"N/A\",Ref!$B$36,INDEX(Ranks!$1:$1048576,$A429,DE$1))","v":""},{"$f":"IF($A429=\"N/A\",Ref!$B$36,INDEX(Ranks!$1:$1048576,$A429,DF$1))","v":""},{"$f":"IF($A429=\"N/A\",Ref!$B$36,INDEX(Ranks!$1:$1048576,$A429,DG$1))","v":""},{"$f":"IF($A429=\"N/A\",Ref!$B$36,INDEX(Ranks!$1:$1048576,$A429,DH$1))","v":""},{"$f":"IF($A429=\"N/A\",Ref!$B$36,INDEX(Ranks!$1:$1048576,$A429,DI$1))","v":""},{"$f":"IF($A429=\"N/A\",Ref!$B$36,INDEX(Ranks!$1:$1048576,$A429,DJ$1))","v":""},{"$f":"IF($A429=\"N/A\",Ref!$B$36,INDEX(Ranks!$1:$1048576,$A429,DK$1))","v":""},{"$f":"IF($A429=\"N/A\",Ref!$B$36,INDEX(Ranks!$1:$1048576,$A429,DL$1))","v":""},{"$f":"IF($A429=\"N/A\",Ref!$B$36,INDEX(Ranks!$1:$1048576,$A429,DM$1))","v":""},{"$f":"IF($A429=\"N/A\",Ref!$B$36,INDEX(Ranks!$1:$1048576,$A429,DN$1))","v":""},{"$f":"IF($A429=\"N/A\",Ref!$B$36,INDEX(Ranks!$1:$1048576,$A429,DO$1))","v":""},{"$f":"IF($A429=\"N/A\",Ref!$B$36,INDEX(Ranks!$1:$1048576,$A429,DP$1))","v":""},{"$f":"IF($A429=\"N/A\",Ref!$B$36,INDEX(Ranks!$1:$1048576,$A429,DQ$1))","v":""},{"$f":"IF($A429=\"N/A\",Ref!$B$36,INDEX(Ranks!$1:$1048576,$A429,DR$1))","v":""},{"$f":"IF($A429=\"N/A\",Ref!$B$36,INDEX(Ranks!$1:$1048576,$A429,DS$1))","v":""},{"$f":"IF($A429=\"N/A\",Ref!$B$36,INDEX(Ranks!$1:$1048576,$A429,DT$1))","v":""},{"$f":"IF($A429=\"N/A\",Ref!$B$36,INDEX(Ranks!$1:$1048576,$A429,DU$1))","v":""},{"$f":"IF($A429=\"N/A\",Ref!$B$36,INDEX(Ranks!$1:$1048576,$A429,DV$1))","v":""},{"$f":"IF($A429=\"N/A\",Ref!$B$36,INDEX(Ranks!$1:$1048576,$A429,DW$1))","v":""},{"$f":"IF($A429=\"N/A\",Ref!$B$36,INDEX(Ranks!$1:$1048576,$A429,DX$1))","v":""},{"$f":"IF($A429=\"N/A\",Ref!$B$36,INDEX(Ranks!$1:$1048576,$A429,DY$1))","v":""},{"$f":"IF($A429=\"N/A\",Ref!$B$36,INDEX(Ranks!$1:$1048576,$A429,DZ$1))","v":""},{"$f":"IF($A429=\"N/A\",Ref!$B$36,INDEX(Ranks!$1:$1048576,$A429,EA$1))","v":""},{"$f":"IF($A429=\"N/A\",Ref!$B$36,INDEX(Ranks!$1:$1048576,$A429,EB$1))","v":""}]
[{"$f":"IFERROR(MATCH('Portfolio Page'!L430,Ranks!L:L,0),\"N/A\")","v":"N/A"},null,{"$f":"IF($A430=\"N/A\",\"\",INDEX(Ranks!$1:$1048576,$A430,C$1))","v":""},{"$f":"IF($A430=\"N/A\",Ref!$B$36,INDEX(Ranks!$1:$1048576,$A430,D$1))","v":""},{"$f":"IF($A430=\"N/A\",Ref!$B$36,INDEX(Ranks!$1:$1048576,$A430,E$1))","v":""},{"$f":"IF($A430=\"N/A\",\"\",INDEX(Ranks!$1:$1048576,$A430,F$1))","v":""},{"$f":"IF($A430=\"N/A\",\"\",INDEX(Ranks!$1:$1048576,$A430,G$1))","v":""},{"$f":"IF($A430=\"N/A\",\"\",INDEX(Ranks!$1:$1048576,$A430,H$1))","v":""},{"$f":"IF($A430=\"N/A\",\"\",INDEX(Ranks!$1:$1048576,$A430,I$1))","v":""},{"$f":"IF($A430=\"N/A\",\"\",INDEX(Ranks!$1:$1048576,$A430,J$1))","v":""},{"$f":"IF($A430=\"N/A\",\"\",INDEX(Ranks!$1:$1048576,$A430,K$1))","v":""},null,{"$f":"IF($A430=\"N/A\",Ref!$B$36,INDEX(Ranks!$1:$1048576,$A430,M$1))","v":""},{"$f":"IF($A430=\"N/A\",Ref!$B$36,INDEX(Ranks!$1:$1048576,$A430,N$1))","v":""},{"$f":"IF($A430=\"N/A\",Ref!$B$36,INDEX(Ranks!$1:$1048576,$A430,O$1))","v":""},{"$f":"IF($A430=\"N/A\",Ref!$B$36,INDEX(Ranks!$1:$1048576,$A430,P$1))","v":""},{"$f":"IF($A430=\"N/A\",Ref!$B$36,INDEX(Ranks!$1:$1048576,$A430,Q$1))","v":""},{"$f":"IF($A430=\"N/A\",Ref!$B$36,INDEX(Ranks!$1:$1048576,$A430,R$1))","v":""},{"$f":"IF($A430=\"N/A\",Ref!$B$36,INDEX(Ranks!$1:$1048576,$A430,S$1))","v":""},{"$f":"IF($A430=\"N/A\",Ref!$B$36,INDEX(Ranks!$1:$1048576,$A430,T$1))","v":""},{"$f":"IF($A430=\"N/A\",Ref!$B$36,INDEX(Ranks!$1:$1048576,$A430,U$1))","v":""},{"$f":"IF($A430=\"N/A\",Ref!$B$36,INDEX(Ranks!$1:$1048576,$A430,V$1))","v":""},{"$f":"IF($A430=\"N/A\",Ref!$B$36,INDEX(Ranks!$1:$1048576,$A430,W$1))","v":""},{"$f":"IF($A430=\"N/A\",Ref!$B$36,INDEX(Ranks!$1:$1048576,$A430,X$1))","v":""},{"$f":"IF($A430=\"N/A\",Ref!$B$36,INDEX(Ranks!$1:$1048576,$A430,Y$1))","v":""},{"$f":"IF($A430=\"N/A\",Ref!$B$36,INDEX(Ranks!$1:$1048576,$A430,Z$1))","v":""},{"$f":"IF($A430=\"N/A\",Ref!$B$36,INDEX(Ranks!$1:$1048576,$A430,AA$1))","v":""},{"$f":"IF($A430=\"N/A\",Ref!$B$36,INDEX(Ranks!$1:$1048576,$A430,AB$1))","v":""},{"$f":"IF($A430=\"N/A\",Ref!$B$36,INDEX(Ranks!$1:$1048576,$A430,AC$1))","v":""},{"$f":"IF($A430=\"N/A\",Ref!$B$36,INDEX(Ranks!$1:$1048576,$A430,AD$1))","v":""},{"$f":"IF($A430=\"N/A\",Ref!$B$36,INDEX(Ranks!$1:$1048576,$A430,AE$1))","v":""},{"$f":"IF($A430=\"N/A\",Ref!$B$36,INDEX(Ranks!$1:$1048576,$A430,AF$1))","v":""},{"$f":"IF($A430=\"N/A\",Ref!$B$36,INDEX(Ranks!$1:$1048576,$A430,AG$1))","v":""},{"$f":"IF($A430=\"N/A\",Ref!$B$36,INDEX(Ranks!$1:$1048576,$A430,AH$1))","v":""},{"$f":"IF($A430=\"N/A\",Ref!$B$36,INDEX(Ranks!$1:$1048576,$A430,AI$1))","v":""},{"$f":"IF($A430=\"N/A\",Ref!$B$36,INDEX(Ranks!$1:$1048576,$A430,AJ$1))","v":""},{"$f":"IF($A430=\"N/A\",Ref!$B$36,INDEX(Ranks!$1:$1048576,$A430,AK$1))","v":""},{"$f":"IF($A430=\"N/A\",Ref!$B$36,INDEX(Ranks!$1:$1048576,$A430,AL$1))","v":""},{"$f":"IF($A430=\"N/A\",Ref!$B$36,INDEX(Ranks!$1:$1048576,$A430,AM$1))","v":""},{"$f":"IF($A430=\"N/A\",Ref!$B$36,INDEX(Ranks!$1:$1048576,$A430,AN$1))","v":""},{"$f":"IF($A430=\"N/A\",Ref!$B$36,INDEX(Ranks!$1:$1048576,$A430,AO$1))","v":""},{"$f":"IF($A430=\"N/A\",Ref!$B$36,INDEX(Ranks!$1:$1048576,$A430,AP$1))","v":""},{"$f":"IF($A430=\"N/A\",Ref!$B$36,INDEX(Ranks!$1:$1048576,$A430,AQ$1))","v":""},{"$f":"IF($A430=\"N/A\",Ref!$B$36,INDEX(Ranks!$1:$1048576,$A430,AR$1))","v":""},{"$f":"IF($A430=\"N/A\",Ref!$B$36,INDEX(Ranks!$1:$1048576,$A430,AS$1))","v":""},{"$f":"IF($A430=\"N/A\",Ref!$B$36,INDEX(Ranks!$1:$1048576,$A430,AT$1))","v":""},{"$f":"IF($A430=\"N/A\",Ref!$B$36,INDEX(Ranks!$1:$1048576,$A430,AU$1))","v":""},{"$f":"IF($A430=\"N/A\",Ref!$B$36,INDEX(Ranks!$1:$1048576,$A430,AV$1))","v":""},{"$f":"IF($A430=\"N/A\",Ref!$B$36,INDEX(Ranks!$1:$1048576,$A430,AW$1))","v":""},{"$f":"IF($A430=\"N/A\",Ref!$B$36,INDEX(Ranks!$1:$1048576,$A430,AX$1))","v":""},{"$f":"IF($A430=\"N/A\",Ref!$B$36,INDEX(Ranks!$1:$1048576,$A430,AY$1))","v":""},{"$f":"IF($A430=\"N/A\",Ref!$B$36,INDEX(Ranks!$1:$1048576,$A430,AZ$1))","v":""},{"$f":"IF($A430=\"N/A\",Ref!$B$36,INDEX(Ranks!$1:$1048576,$A430,BA$1))","v":""},{"$f":"IF($A430=\"N/A\",Ref!$B$36,INDEX(Ranks!$1:$1048576,$A430,BB$1))","v":""},{"$f":"IF($A430=\"N/A\",Ref!$B$36,INDEX(Ranks!$1:$1048576,$A430,BC$1))","v":""},{"$f":"IF($A430=\"N/A\",Ref!$B$36,INDEX(Ranks!$1:$1048576,$A430,BD$1))","v":""},{"$f":"IF($A430=\"N/A\",Ref!$B$36,INDEX(Ranks!$1:$1048576,$A430,BE$1))","v":""},{"$f":"IF($A430=\"N/A\",Ref!$B$36,INDEX(Ranks!$1:$1048576,$A430,BF$1))","v":""},{"$f":"IF($A430=\"N/A\",Ref!$B$36,INDEX(Ranks!$1:$1048576,$A430,BG$1))","v":""},{"$f":"IF($A430=\"N/A\",Ref!$B$36,INDEX(Ranks!$1:$1048576,$A430,BH$1))","v":""},{"$f":"IF($A430=\"N/A\",Ref!$B$36,INDEX(Ranks!$1:$1048576,$A430,BI$1))","v":""},{"$f":"IF($A430=\"N/A\",Ref!$B$36,INDEX(Ranks!$1:$1048576,$A430,BJ$1))","v":""},{"$f":"IF($A430=\"N/A\",Ref!$B$36,INDEX(Ranks!$1:$1048576,$A430,BK$1))","v":""},{"$f":"IF($A430=\"N/A\",Ref!$B$36,INDEX(Ranks!$1:$1048576,$A430,BL$1))","v":""},{"$f":"IF($A430=\"N/A\",Ref!$B$36,INDEX(Ranks!$1:$1048576,$A430,BM$1))","v":""},{"$f":"IF($A430=\"N/A\",Ref!$B$36,INDEX(Ranks!$1:$1048576,$A430,BN$1))","v":""},{"$f":"IF($A430=\"N/A\",Ref!$B$36,INDEX(Ranks!$1:$1048576,$A430,BO$1))","v":""},{"$f":"IF($A430=\"N/A\",Ref!$B$36,INDEX(Ranks!$1:$1048576,$A430,BP$1))","v":""},{"$f":"IF($A430=\"N/A\",Ref!$B$36,INDEX(Ranks!$1:$1048576,$A430,BQ$1))","v":""},{"$f":"IF($A430=\"N/A\",Ref!$B$36,INDEX(Ranks!$1:$1048576,$A430,BR$1))","v":""},{"$f":"IF($A430=\"N/A\",Ref!$B$36,INDEX(Ranks!$1:$1048576,$A430,BS$1))","v":""},{"$f":"IF($A430=\"N/A\",Ref!$B$36,INDEX(Ranks!$1:$1048576,$A430,BT$1))","v":""},{"$f":"IF($A430=\"N/A\",Ref!$B$36,INDEX(Ranks!$1:$1048576,$A430,BU$1))","v":""},{"$f":"IF($A430=\"N/A\",Ref!$B$36,INDEX(Ranks!$1:$1048576,$A430,BV$1))","v":""},{"$f":"IF($A430=\"N/A\",Ref!$B$36,INDEX(Ranks!$1:$1048576,$A430,BW$1))","v":""},{"$f":"IF($A430=\"N/A\",Ref!$B$36,INDEX(Ranks!$1:$1048576,$A430,BX$1))","v":""},{"$f":"IF($A430=\"N/A\",Ref!$B$36,INDEX(Ranks!$1:$1048576,$A430,BY$1))","v":""},{"$f":"IF($A430=\"N/A\",Ref!$B$36,INDEX(Ranks!$1:$1048576,$A430,BZ$1))","v":""},{"$f":"IF($A430=\"N/A\",Ref!$B$36,INDEX(Ranks!$1:$1048576,$A430,CA$1))","v":""},{"$f":"IF($A430=\"N/A\",Ref!$B$36,INDEX(Ranks!$1:$1048576,$A430,CB$1))","v":""},{"$f":"IF($A430=\"N/A\",Ref!$B$36,INDEX(Ranks!$1:$1048576,$A430,CC$1))","v":""},{"$f":"IF($A430=\"N/A\",Ref!$B$36,INDEX(Ranks!$1:$1048576,$A430,CD$1))","v":""},{"$f":"IF($A430=\"N/A\",Ref!$B$36,INDEX(Ranks!$1:$1048576,$A430,CE$1))","v":""},{"$f":"IF($A430=\"N/A\",Ref!$B$36,INDEX(Ranks!$1:$1048576,$A430,CF$1))","v":""},{"$f":"IF($A430=\"N/A\",Ref!$B$36,INDEX(Ranks!$1:$1048576,$A430,CG$1))","v":""},{"$f":"IF($A430=\"N/A\",Ref!$B$36,INDEX(Ranks!$1:$1048576,$A430,CH$1))","v":""},{"$f":"IF($A430=\"N/A\",Ref!$B$36,INDEX(Ranks!$1:$1048576,$A430,CI$1))","v":""},{"$f":"IF($A430=\"N/A\",Ref!$B$36,INDEX(Ranks!$1:$1048576,$A430,CJ$1))","v":""},{"$f":"IF($A430=\"N/A\",Ref!$B$36,INDEX(Ranks!$1:$1048576,$A430,CK$1))","v":""},{"$f":"IF($A430=\"N/A\",Ref!$B$36,INDEX(Ranks!$1:$1048576,$A430,CL$1))","v":""},{"$f":"IF($A430=\"N/A\",Ref!$B$36,INDEX(Ranks!$1:$1048576,$A430,CM$1))","v":""},{"$f":"IF($A430=\"N/A\",Ref!$B$36,INDEX(Ranks!$1:$1048576,$A430,CN$1))","v":""},{"$f":"IF($A430=\"N/A\",Ref!$B$36,INDEX(Ranks!$1:$1048576,$A430,CO$1))","v":""},{"$f":"IF($A430=\"N/A\",Ref!$B$36,INDEX(Ranks!$1:$1048576,$A430,CP$1))","v":""},{"$f":"IF($A430=\"N/A\",Ref!$B$36,INDEX(Ranks!$1:$1048576,$A430,CQ$1))","v":""},{"$f":"IF($A430=\"N/A\",Ref!$B$36,INDEX(Ranks!$1:$1048576,$A430,CR$1))","v":""},{"$f":"IF($A430=\"N/A\",Ref!$B$36,INDEX(Ranks!$1:$1048576,$A430,CS$1))","v":""},{"$f":"IF($A430=\"N/A\",Ref!$B$36,INDEX(Ranks!$1:$1048576,$A430,CT$1))","v":""},{"$f":"IF($A430=\"N/A\",Ref!$B$36,INDEX(Ranks!$1:$1048576,$A430,CU$1))","v":""},{"$f":"IF($A430=\"N/A\",Ref!$B$36,INDEX(Ranks!$1:$1048576,$A430,CV$1))","v":""},{"$f":"IF($A430=\"N/A\",Ref!$B$36,INDEX(Ranks!$1:$1048576,$A430,CW$1))","v":""},{"$f":"IF($A430=\"N/A\",Ref!$B$36,INDEX(Ranks!$1:$1048576,$A430,CX$1))","v":""},{"$f":"IF($A430=\"N/A\",Ref!$B$36,INDEX(Ranks!$1:$1048576,$A430,CY$1))","v":""},{"$f":"IF($A430=\"N/A\",Ref!$B$36,INDEX(Ranks!$1:$1048576,$A430,CZ$1))","v":""},{"$f":"IF($A430=\"N/A\",Ref!$B$36,INDEX(Ranks!$1:$1048576,$A430,DA$1))","v":""},{"$f":"IF($A430=\"N/A\",Ref!$B$36,INDEX(Ranks!$1:$1048576,$A430,DB$1))","v":""},{"$f":"IF($A430=\"N/A\",Ref!$B$36,INDEX(Ranks!$1:$1048576,$A430,DC$1))","v":""},{"$f":"IF($A430=\"N/A\",Ref!$B$36,INDEX(Ranks!$1:$1048576,$A430,DD$1))","v":""},{"$f":"IF($A430=\"N/A\",Ref!$B$36,INDEX(Ranks!$1:$1048576,$A430,DE$1))","v":""},{"$f":"IF($A430=\"N/A\",Ref!$B$36,INDEX(Ranks!$1:$1048576,$A430,DF$1))","v":""},{"$f":"IF($A430=\"N/A\",Ref!$B$36,INDEX(Ranks!$1:$1048576,$A430,DG$1))","v":""},{"$f":"IF($A430=\"N/A\",Ref!$B$36,INDEX(Ranks!$1:$1048576,$A430,DH$1))","v":""},{"$f":"IF($A430=\"N/A\",Ref!$B$36,INDEX(Ranks!$1:$1048576,$A430,DI$1))","v":""},{"$f":"IF($A430=\"N/A\",Ref!$B$36,INDEX(Ranks!$1:$1048576,$A430,DJ$1))","v":""},{"$f":"IF($A430=\"N/A\",Ref!$B$36,INDEX(Ranks!$1:$1048576,$A430,DK$1))","v":""},{"$f":"IF($A430=\"N/A\",Ref!$B$36,INDEX(Ranks!$1:$1048576,$A430,DL$1))","v":""},{"$f":"IF($A430=\"N/A\",Ref!$B$36,INDEX(Ranks!$1:$1048576,$A430,DM$1))","v":""},{"$f":"IF($A430=\"N/A\",Ref!$B$36,INDEX(Ranks!$1:$1048576,$A430,DN$1))","v":""},{"$f":"IF($A430=\"N/A\",Ref!$B$36,INDEX(Ranks!$1:$1048576,$A430,DO$1))","v":""},{"$f":"IF($A430=\"N/A\",Ref!$B$36,INDEX(Ranks!$1:$1048576,$A430,DP$1))","v":""},{"$f":"IF($A430=\"N/A\",Ref!$B$36,INDEX(Ranks!$1:$1048576,$A430,DQ$1))","v":""},{"$f":"IF($A430=\"N/A\",Ref!$B$36,INDEX(Ranks!$1:$1048576,$A430,DR$1))","v":""},{"$f":"IF($A430=\"N/A\",Ref!$B$36,INDEX(Ranks!$1:$1048576,$A430,DS$1))","v":""},{"$f":"IF($A430=\"N/A\",Ref!$B$36,INDEX(Ranks!$1:$1048576,$A430,DT$1))","v":""},{"$f":"IF($A430=\"N/A\",Ref!$B$36,INDEX(Ranks!$1:$1048576,$A430,DU$1))","v":""},{"$f":"IF($A430=\"N/A\",Ref!$B$36,INDEX(Ranks!$1:$1048576,$A430,DV$1))","v":""},{"$f":"IF($A430=\"N/A\",Ref!$B$36,INDEX(Ranks!$1:$1048576,$A430,DW$1))","v":""},{"$f":"IF($A430=\"N/A\",Ref!$B$36,INDEX(Ranks!$1:$1048576,$A430,DX$1))","v":""},{"$f":"IF($A430=\"N/A\",Ref!$B$36,INDEX(Ranks!$1:$1048576,$A430,DY$1))","v":""},{"$f":"IF($A430=\"N/A\",Ref!$B$36,INDEX(Ranks!$1:$1048576,$A430,DZ$1))","v":""},{"$f":"IF($A430=\"N/A\",Ref!$B$36,INDEX(Ranks!$1:$1048576,$A430,EA$1))","v":""},{"$f":"IF($A430=\"N/A\",Ref!$B$36,INDEX(Ranks!$1:$1048576,$A430,EB$1))","v":""}]
[{"$f":"IFERROR(MATCH('Portfolio Page'!L431,Ranks!L:L,0),\"N/A\")","v":"N/A"},null,{"$f":"IF($A431=\"N/A\",\"\",INDEX(Ranks!$1:$1048576,$A431,C$1))","v":""},{"$f":"IF($A431=\"N/A\",Ref!$B$36,INDEX(Ranks!$1:$1048576,$A431,D$1))","v":""},{"$f":"IF($A431=\"N/A\",Ref!$B$36,INDEX(Ranks!$1:$1048576,$A431,E$1))","v":""},{"$f":"IF($A431=\"N/A\",\"\",INDEX(Ranks!$1:$1048576,$A431,F$1))","v":""},{"$f":"IF($A431=\"N/A\",\"\",INDEX(Ranks!$1:$1048576,$A431,G$1))","v":""},{"$f":"IF($A431=\"N/A\",\"\",INDEX(Ranks!$1:$1048576,$A431,H$1))","v":""},{"$f":"IF($A431=\"N/A\",\"\",INDEX(Ranks!$1:$1048576,$A431,I$1))","v":""},{"$f":"IF($A431=\"N/A\",\"\",INDEX(Ranks!$1:$1048576,$A431,J$1))","v":""},{"$f":"IF($A431=\"N/A\",\"\",INDEX(Ranks!$1:$1048576,$A431,K$1))","v":""},null,{"$f":"IF($A431=\"N/A\",Ref!$B$36,INDEX(Ranks!$1:$1048576,$A431,M$1))","v":""},{"$f":"IF($A431=\"N/A\",Ref!$B$36,INDEX(Ranks!$1:$1048576,$A431,N$1))","v":""},{"$f":"IF($A431=\"N/A\",Ref!$B$36,INDEX(Ranks!$1:$1048576,$A431,O$1))","v":""},{"$f":"IF($A431=\"N/A\",Ref!$B$36,INDEX(Ranks!$1:$1048576,$A431,P$1))","v":""},{"$f":"IF($A431=\"N/A\",Ref!$B$36,INDEX(Ranks!$1:$1048576,$A431,Q$1))","v":""},{"$f":"IF($A431=\"N/A\",Ref!$B$36,INDEX(Ranks!$1:$1048576,$A431,R$1))","v":""},{"$f":"IF($A431=\"N/A\",Ref!$B$36,INDEX(Ranks!$1:$1048576,$A431,S$1))","v":""},{"$f":"IF($A431=\"N/A\",Ref!$B$36,INDEX(Ranks!$1:$1048576,$A431,T$1))","v":""},{"$f":"IF($A431=\"N/A\",Ref!$B$36,INDEX(Ranks!$1:$1048576,$A431,U$1))","v":""},{"$f":"IF($A431=\"N/A\",Ref!$B$36,INDEX(Ranks!$1:$1048576,$A431,V$1))","v":""},{"$f":"IF($A431=\"N/A\",Ref!$B$36,INDEX(Ranks!$1:$1048576,$A431,W$1))","v":""},{"$f":"IF($A431=\"N/A\",Ref!$B$36,INDEX(Ranks!$1:$1048576,$A431,X$1))","v":""},{"$f":"IF($A431=\"N/A\",Ref!$B$36,INDEX(Ranks!$1:$1048576,$A431,Y$1))","v":""},{"$f":"IF($A431=\"N/A\",Ref!$B$36,INDEX(Ranks!$1:$1048576,$A431,Z$1))","v":""},{"$f":"IF($A431=\"N/A\",Ref!$B$36,INDEX(Ranks!$1:$1048576,$A431,AA$1))","v":""},{"$f":"IF($A431=\"N/A\",Ref!$B$36,INDEX(Ranks!$1:$1048576,$A431,AB$1))","v":""},{"$f":"IF($A431=\"N/A\",Ref!$B$36,INDEX(Ranks!$1:$1048576,$A431,AC$1))","v":""},{"$f":"IF($A431=\"N/A\",Ref!$B$36,INDEX(Ranks!$1:$1048576,$A431,AD$1))","v":""},{"$f":"IF($A431=\"N/A\",Ref!$B$36,INDEX(Ranks!$1:$1048576,$A431,AE$1))","v":""},{"$f":"IF($A431=\"N/A\",Ref!$B$36,INDEX(Ranks!$1:$1048576,$A431,AF$1))","v":""},{"$f":"IF($A431=\"N/A\",Ref!$B$36,INDEX(Ranks!$1:$1048576,$A431,AG$1))","v":""},{"$f":"IF($A431=\"N/A\",Ref!$B$36,INDEX(Ranks!$1:$1048576,$A431,AH$1))","v":""},{"$f":"IF($A431=\"N/A\",Ref!$B$36,INDEX(Ranks!$1:$1048576,$A431,AI$1))","v":""},{"$f":"IF($A431=\"N/A\",Ref!$B$36,INDEX(Ranks!$1:$1048576,$A431,AJ$1))","v":""},{"$f":"IF($A431=\"N/A\",Ref!$B$36,INDEX(Ranks!$1:$1048576,$A431,AK$1))","v":""},{"$f":"IF($A431=\"N/A\",Ref!$B$36,INDEX(Ranks!$1:$1048576,$A431,AL$1))","v":""},{"$f":"IF($A431=\"N/A\",Ref!$B$36,INDEX(Ranks!$1:$1048576,$A431,AM$1))","v":""},{"$f":"IF($A431=\"N/A\",Ref!$B$36,INDEX(Ranks!$1:$1048576,$A431,AN$1))","v":""},{"$f":"IF($A431=\"N/A\",Ref!$B$36,INDEX(Ranks!$1:$1048576,$A431,AO$1))","v":""},{"$f":"IF($A431=\"N/A\",Ref!$B$36,INDEX(Ranks!$1:$1048576,$A431,AP$1))","v":""},{"$f":"IF($A431=\"N/A\",Ref!$B$36,INDEX(Ranks!$1:$1048576,$A431,AQ$1))","v":""},{"$f":"IF($A431=\"N/A\",Ref!$B$36,INDEX(Ranks!$1:$1048576,$A431,AR$1))","v":""},{"$f":"IF($A431=\"N/A\",Ref!$B$36,INDEX(Ranks!$1:$1048576,$A431,AS$1))","v":""},{"$f":"IF($A431=\"N/A\",Ref!$B$36,INDEX(Ranks!$1:$1048576,$A431,AT$1))","v":""},{"$f":"IF($A431=\"N/A\",Ref!$B$36,INDEX(Ranks!$1:$1048576,$A431,AU$1))","v":""},{"$f":"IF($A431=\"N/A\",Ref!$B$36,INDEX(Ranks!$1:$1048576,$A431,AV$1))","v":""},{"$f":"IF($A431=\"N/A\",Ref!$B$36,INDEX(Ranks!$1:$1048576,$A431,AW$1))","v":""},{"$f":"IF($A431=\"N/A\",Ref!$B$36,INDEX(Ranks!$1:$1048576,$A431,AX$1))","v":""},{"$f":"IF($A431=\"N/A\",Ref!$B$36,INDEX(Ranks!$1:$1048576,$A431,AY$1))","v":""},{"$f":"IF($A431=\"N/A\",Ref!$B$36,INDEX(Ranks!$1:$1048576,$A431,AZ$1))","v":""},{"$f":"IF($A431=\"N/A\",Ref!$B$36,INDEX(Ranks!$1:$1048576,$A431,BA$1))","v":""},{"$f":"IF($A431=\"N/A\",Ref!$B$36,INDEX(Ranks!$1:$1048576,$A431,BB$1))","v":""},{"$f":"IF($A431=\"N/A\",Ref!$B$36,INDEX(Ranks!$1:$1048576,$A431,BC$1))","v":""},{"$f":"IF($A431=\"N/A\",Ref!$B$36,INDEX(Ranks!$1:$1048576,$A431,BD$1))","v":""},{"$f":"IF($A431=\"N/A\",Ref!$B$36,INDEX(Ranks!$1:$1048576,$A431,BE$1))","v":""},{"$f":"IF($A431=\"N/A\",Ref!$B$36,INDEX(Ranks!$1:$1048576,$A431,BF$1))","v":""},{"$f":"IF($A431=\"N/A\",Ref!$B$36,INDEX(Ranks!$1:$1048576,$A431,BG$1))","v":""},{"$f":"IF($A431=\"N/A\",Ref!$B$36,INDEX(Ranks!$1:$1048576,$A431,BH$1))","v":""},{"$f":"IF($A431=\"N/A\",Ref!$B$36,INDEX(Ranks!$1:$1048576,$A431,BI$1))","v":""},{"$f":"IF($A431=\"N/A\",Ref!$B$36,INDEX(Ranks!$1:$1048576,$A431,BJ$1))","v":""},{"$f":"IF($A431=\"N/A\",Ref!$B$36,INDEX(Ranks!$1:$1048576,$A431,BK$1))","v":""},{"$f":"IF($A431=\"N/A\",Ref!$B$36,INDEX(Ranks!$1:$1048576,$A431,BL$1))","v":""},{"$f":"IF($A431=\"N/A\",Ref!$B$36,INDEX(Ranks!$1:$1048576,$A431,BM$1))","v":""},{"$f":"IF($A431=\"N/A\",Ref!$B$36,INDEX(Ranks!$1:$1048576,$A431,BN$1))","v":""},{"$f":"IF($A431=\"N/A\",Ref!$B$36,INDEX(Ranks!$1:$1048576,$A431,BO$1))","v":""},{"$f":"IF($A431=\"N/A\",Ref!$B$36,INDEX(Ranks!$1:$1048576,$A431,BP$1))","v":""},{"$f":"IF($A431=\"N/A\",Ref!$B$36,INDEX(Ranks!$1:$1048576,$A431,BQ$1))","v":""},{"$f":"IF($A431=\"N/A\",Ref!$B$36,INDEX(Ranks!$1:$1048576,$A431,BR$1))","v":""},{"$f":"IF($A431=\"N/A\",Ref!$B$36,INDEX(Ranks!$1:$1048576,$A431,BS$1))","v":""},{"$f":"IF($A431=\"N/A\",Ref!$B$36,INDEX(Ranks!$1:$1048576,$A431,BT$1))","v":""},{"$f":"IF($A431=\"N/A\",Ref!$B$36,INDEX(Ranks!$1:$1048576,$A431,BU$1))","v":""},{"$f":"IF($A431=\"N/A\",Ref!$B$36,INDEX(Ranks!$1:$1048576,$A431,BV$1))","v":""},{"$f":"IF($A431=\"N/A\",Ref!$B$36,INDEX(Ranks!$1:$1048576,$A431,BW$1))","v":""},{"$f":"IF($A431=\"N/A\",Ref!$B$36,INDEX(Ranks!$1:$1048576,$A431,BX$1))","v":""},{"$f":"IF($A431=\"N/A\",Ref!$B$36,INDEX(Ranks!$1:$1048576,$A431,BY$1))","v":""},{"$f":"IF($A431=\"N/A\",Ref!$B$36,INDEX(Ranks!$1:$1048576,$A431,BZ$1))","v":""},{"$f":"IF($A431=\"N/A\",Ref!$B$36,INDEX(Ranks!$1:$1048576,$A431,CA$1))","v":""},{"$f":"IF($A431=\"N/A\",Ref!$B$36,INDEX(Ranks!$1:$1048576,$A431,CB$1))","v":""},{"$f":"IF($A431=\"N/A\",Ref!$B$36,INDEX(Ranks!$1:$1048576,$A431,CC$1))","v":""},{"$f":"IF($A431=\"N/A\",Ref!$B$36,INDEX(Ranks!$1:$1048576,$A431,CD$1))","v":""},{"$f":"IF($A431=\"N/A\",Ref!$B$36,INDEX(Ranks!$1:$1048576,$A431,CE$1))","v":""},{"$f":"IF($A431=\"N/A\",Ref!$B$36,INDEX(Ranks!$1:$1048576,$A431,CF$1))","v":""},{"$f":"IF($A431=\"N/A\",Ref!$B$36,INDEX(Ranks!$1:$1048576,$A431,CG$1))","v":""},{"$f":"IF($A431=\"N/A\",Ref!$B$36,INDEX(Ranks!$1:$1048576,$A431,CH$1))","v":""},{"$f":"IF($A431=\"N/A\",Ref!$B$36,INDEX(Ranks!$1:$1048576,$A431,CI$1))","v":""},{"$f":"IF($A431=\"N/A\",Ref!$B$36,INDEX(Ranks!$1:$1048576,$A431,CJ$1))","v":""},{"$f":"IF($A431=\"N/A\",Ref!$B$36,INDEX(Ranks!$1:$1048576,$A431,CK$1))","v":""},{"$f":"IF($A431=\"N/A\",Ref!$B$36,INDEX(Ranks!$1:$1048576,$A431,CL$1))","v":""},{"$f":"IF($A431=\"N/A\",Ref!$B$36,INDEX(Ranks!$1:$1048576,$A431,CM$1))","v":""},{"$f":"IF($A431=\"N/A\",Ref!$B$36,INDEX(Ranks!$1:$1048576,$A431,CN$1))","v":""},{"$f":"IF($A431=\"N/A\",Ref!$B$36,INDEX(Ranks!$1:$1048576,$A431,CO$1))","v":""},{"$f":"IF($A431=\"N/A\",Ref!$B$36,INDEX(Ranks!$1:$1048576,$A431,CP$1))","v":""},{"$f":"IF($A431=\"N/A\",Ref!$B$36,INDEX(Ranks!$1:$1048576,$A431,CQ$1))","v":""},{"$f":"IF($A431=\"N/A\",Ref!$B$36,INDEX(Ranks!$1:$1048576,$A431,CR$1))","v":""},{"$f":"IF($A431=\"N/A\",Ref!$B$36,INDEX(Ranks!$1:$1048576,$A431,CS$1))","v":""},{"$f":"IF($A431=\"N/A\",Ref!$B$36,INDEX(Ranks!$1:$1048576,$A431,CT$1))","v":""},{"$f":"IF($A431=\"N/A\",Ref!$B$36,INDEX(Ranks!$1:$1048576,$A431,CU$1))","v":""},{"$f":"IF($A431=\"N/A\",Ref!$B$36,INDEX(Ranks!$1:$1048576,$A431,CV$1))","v":""},{"$f":"IF($A431=\"N/A\",Ref!$B$36,INDEX(Ranks!$1:$1048576,$A431,CW$1))","v":""},{"$f":"IF($A431=\"N/A\",Ref!$B$36,INDEX(Ranks!$1:$1048576,$A431,CX$1))","v":""},{"$f":"IF($A431=\"N/A\",Ref!$B$36,INDEX(Ranks!$1:$1048576,$A431,CY$1))","v":""},{"$f":"IF($A431=\"N/A\",Ref!$B$36,INDEX(Ranks!$1:$1048576,$A431,CZ$1))","v":""},{"$f":"IF($A431=\"N/A\",Ref!$B$36,INDEX(Ranks!$1:$1048576,$A431,DA$1))","v":""},{"$f":"IF($A431=\"N/A\",Ref!$B$36,INDEX(Ranks!$1:$1048576,$A431,DB$1))","v":""},{"$f":"IF($A431=\"N/A\",Ref!$B$36,INDEX(Ranks!$1:$1048576,$A431,DC$1))","v":""},{"$f":"IF($A431=\"N/A\",Ref!$B$36,INDEX(Ranks!$1:$1048576,$A431,DD$1))","v":""},{"$f":"IF($A431=\"N/A\",Ref!$B$36,INDEX(Ranks!$1:$1048576,$A431,DE$1))","v":""},{"$f":"IF($A431=\"N/A\",Ref!$B$36,INDEX(Ranks!$1:$1048576,$A431,DF$1))","v":""},{"$f":"IF($A431=\"N/A\",Ref!$B$36,INDEX(Ranks!$1:$1048576,$A431,DG$1))","v":""},{"$f":"IF($A431=\"N/A\",Ref!$B$36,INDEX(Ranks!$1:$1048576,$A431,DH$1))","v":""},{"$f":"IF($A431=\"N/A\",Ref!$B$36,INDEX(Ranks!$1:$1048576,$A431,DI$1))","v":""},{"$f":"IF($A431=\"N/A\",Ref!$B$36,INDEX(Ranks!$1:$1048576,$A431,DJ$1))","v":""},{"$f":"IF($A431=\"N/A\",Ref!$B$36,INDEX(Ranks!$1:$1048576,$A431,DK$1))","v":""},{"$f":"IF($A431=\"N/A\",Ref!$B$36,INDEX(Ranks!$1:$1048576,$A431,DL$1))","v":""},{"$f":"IF($A431=\"N/A\",Ref!$B$36,INDEX(Ranks!$1:$1048576,$A431,DM$1))","v":""},{"$f":"IF($A431=\"N/A\",Ref!$B$36,INDEX(Ranks!$1:$1048576,$A431,DN$1))","v":""},{"$f":"IF($A431=\"N/A\",Ref!$B$36,INDEX(Ranks!$1:$1048576,$A431,DO$1))","v":""},{"$f":"IF($A431=\"N/A\",Ref!$B$36,INDEX(Ranks!$1:$1048576,$A431,DP$1))","v":""},{"$f":"IF($A431=\"N/A\",Ref!$B$36,INDEX(Ranks!$1:$1048576,$A431,DQ$1))","v":""},{"$f":"IF($A431=\"N/A\",Ref!$B$36,INDEX(Ranks!$1:$1048576,$A431,DR$1))","v":""},{"$f":"IF($A431=\"N/A\",Ref!$B$36,INDEX(Ranks!$1:$1048576,$A431,DS$1))","v":""},{"$f":"IF($A431=\"N/A\",Ref!$B$36,INDEX(Ranks!$1:$1048576,$A431,DT$1))","v":""},{"$f":"IF($A431=\"N/A\",Ref!$B$36,INDEX(Ranks!$1:$1048576,$A431,DU$1))","v":""},{"$f":"IF($A431=\"N/A\",Ref!$B$36,INDEX(Ranks!$1:$1048576,$A431,DV$1))","v":""},{"$f":"IF($A431=\"N/A\",Ref!$B$36,INDEX(Ranks!$1:$1048576,$A431,DW$1))","v":""},{"$f":"IF($A431=\"N/A\",Ref!$B$36,INDEX(Ranks!$1:$1048576,$A431,DX$1))","v":""},{"$f":"IF($A431=\"N/A\",Ref!$B$36,INDEX(Ranks!$1:$1048576,$A431,DY$1))","v":""},{"$f":"IF($A431=\"N/A\",Ref!$B$36,INDEX(Ranks!$1:$1048576,$A431,DZ$1))","v":""},{"$f":"IF($A431=\"N/A\",Ref!$B$36,INDEX(Ranks!$1:$1048576,$A431,EA$1))","v":""},{"$f":"IF($A431=\"N/A\",Ref!$B$36,INDEX(Ranks!$1:$1048576,$A431,EB$1))","v":""}]
[{"$f":"IFERROR(MATCH('Portfolio Page'!L432,Ranks!L:L,0),\"N/A\")","v":"N/A"},null,{"$f":"IF($A432=\"N/A\",\"\",INDEX(Ranks!$1:$1048576,$A432,C$1))","v":""},{"$f":"IF($A432=\"N/A\",Ref!$B$36,INDEX(Ranks!$1:$1048576,$A432,D$1))","v":""},{"$f":"IF($A432=\"N/A\",Ref!$B$36,INDEX(Ranks!$1:$1048576,$A432,E$1))","v":""},{"$f":"IF($A432=\"N/A\",\"\",INDEX(Ranks!$1:$1048576,$A432,F$1))","v":""},{"$f":"IF($A432=\"N/A\",\"\",INDEX(Ranks!$1:$1048576,$A432,G$1))","v":""},{"$f":"IF($A432=\"N/A\",\"\",INDEX(Ranks!$1:$1048576,$A432,H$1))","v":""},{"$f":"IF($A432=\"N/A\",\"\",INDEX(Ranks!$1:$1048576,$A432,I$1))","v":""},{"$f":"IF($A432=\"N/A\",\"\",INDEX(Ranks!$1:$1048576,$A432,J$1))","v":""},{"$f":"IF($A432=\"N/A\",\"\",INDEX(Ranks!$1:$1048576,$A432,K$1))","v":""},null,{"$f":"IF($A432=\"N/A\",Ref!$B$36,INDEX(Ranks!$1:$1048576,$A432,M$1))","v":""},{"$f":"IF($A432=\"N/A\",Ref!$B$36,INDEX(Ranks!$1:$1048576,$A432,N$1))","v":""},{"$f":"IF($A432=\"N/A\",Ref!$B$36,INDEX(Ranks!$1:$1048576,$A432,O$1))","v":""},{"$f":"IF($A432=\"N/A\",Ref!$B$36,INDEX(Ranks!$1:$1048576,$A432,P$1))","v":""},{"$f":"IF($A432=\"N/A\",Ref!$B$36,INDEX(Ranks!$1:$1048576,$A432,Q$1))","v":""},{"$f":"IF($A432=\"N/A\",Ref!$B$36,INDEX(Ranks!$1:$1048576,$A432,R$1))","v":""},{"$f":"IF($A432=\"N/A\",Ref!$B$36,INDEX(Ranks!$1:$1048576,$A432,S$1))","v":""},{"$f":"IF($A432=\"N/A\",Ref!$B$36,INDEX(Ranks!$1:$1048576,$A432,T$1))","v":""},{"$f":"IF($A432=\"N/A\",Ref!$B$36,INDEX(Ranks!$1:$1048576,$A432,U$1))","v":""},{"$f":"IF($A432=\"N/A\",Ref!$B$36,INDEX(Ranks!$1:$1048576,$A432,V$1))","v":""},{"$f":"IF($A432=\"N/A\",Ref!$B$36,INDEX(Ranks!$1:$1048576,$A432,W$1))","v":""},{"$f":"IF($A432=\"N/A\",Ref!$B$36,INDEX(Ranks!$1:$1048576,$A432,X$1))","v":""},{"$f":"IF($A432=\"N/A\",Ref!$B$36,INDEX(Ranks!$1:$1048576,$A432,Y$1))","v":""},{"$f":"IF($A432=\"N/A\",Ref!$B$36,INDEX(Ranks!$1:$1048576,$A432,Z$1))","v":""},{"$f":"IF($A432=\"N/A\",Ref!$B$36,INDEX(Ranks!$1:$1048576,$A432,AA$1))","v":""},{"$f":"IF($A432=\"N/A\",Ref!$B$36,INDEX(Ranks!$1:$1048576,$A432,AB$1))","v":""},{"$f":"IF($A432=\"N/A\",Ref!$B$36,INDEX(Ranks!$1:$1048576,$A432,AC$1))","v":""},{"$f":"IF($A432=\"N/A\",Ref!$B$36,INDEX(Ranks!$1:$1048576,$A432,AD$1))","v":""},{"$f":"IF($A432=\"N/A\",Ref!$B$36,INDEX(Ranks!$1:$1048576,$A432,AE$1))","v":""},{"$f":"IF($A432=\"N/A\",Ref!$B$36,INDEX(Ranks!$1:$1048576,$A432,AF$1))","v":""},{"$f":"IF($A432=\"N/A\",Ref!$B$36,INDEX(Ranks!$1:$1048576,$A432,AG$1))","v":""},{"$f":"IF($A432=\"N/A\",Ref!$B$36,INDEX(Ranks!$1:$1048576,$A432,AH$1))","v":""},{"$f":"IF($A432=\"N/A\",Ref!$B$36,INDEX(Ranks!$1:$1048576,$A432,AI$1))","v":""},{"$f":"IF($A432=\"N/A\",Ref!$B$36,INDEX(Ranks!$1:$1048576,$A432,AJ$1))","v":""},{"$f":"IF($A432=\"N/A\",Ref!$B$36,INDEX(Ranks!$1:$1048576,$A432,AK$1))","v":""},{"$f":"IF($A432=\"N/A\",Ref!$B$36,INDEX(Ranks!$1:$1048576,$A432,AL$1))","v":""},{"$f":"IF($A432=\"N/A\",Ref!$B$36,INDEX(Ranks!$1:$1048576,$A432,AM$1))","v":""},{"$f":"IF($A432=\"N/A\",Ref!$B$36,INDEX(Ranks!$1:$1048576,$A432,AN$1))","v":""},{"$f":"IF($A432=\"N/A\",Ref!$B$36,INDEX(Ranks!$1:$1048576,$A432,AO$1))","v":""},{"$f":"IF($A432=\"N/A\",Ref!$B$36,INDEX(Ranks!$1:$1048576,$A432,AP$1))","v":""},{"$f":"IF($A432=\"N/A\",Ref!$B$36,INDEX(Ranks!$1:$1048576,$A432,AQ$1))","v":""},{"$f":"IF($A432=\"N/A\",Ref!$B$36,INDEX(Ranks!$1:$1048576,$A432,AR$1))","v":""},{"$f":"IF($A432=\"N/A\",Ref!$B$36,INDEX(Ranks!$1:$1048576,$A432,AS$1))","v":""},{"$f":"IF($A432=\"N/A\",Ref!$B$36,INDEX(Ranks!$1:$1048576,$A432,AT$1))","v":""},{"$f":"IF($A432=\"N/A\",Ref!$B$36,INDEX(Ranks!$1:$1048576,$A432,AU$1))","v":""},{"$f":"IF($A432=\"N/A\",Ref!$B$36,INDEX(Ranks!$1:$1048576,$A432,AV$1))","v":""},{"$f":"IF($A432=\"N/A\",Ref!$B$36,INDEX(Ranks!$1:$1048576,$A432,AW$1))","v":""},{"$f":"IF($A432=\"N/A\",Ref!$B$36,INDEX(Ranks!$1:$1048576,$A432,AX$1))","v":""},{"$f":"IF($A432=\"N/A\",Ref!$B$36,INDEX(Ranks!$1:$1048576,$A432,AY$1))","v":""},{"$f":"IF($A432=\"N/A\",Ref!$B$36,INDEX(Ranks!$1:$1048576,$A432,AZ$1))","v":""},{"$f":"IF($A432=\"N/A\",Ref!$B$36,INDEX(Ranks!$1:$1048576,$A432,BA$1))","v":""},{"$f":"IF($A432=\"N/A\",Ref!$B$36,INDEX(Ranks!$1:$1048576,$A432,BB$1))","v":""},{"$f":"IF($A432=\"N/A\",Ref!$B$36,INDEX(Ranks!$1:$1048576,$A432,BC$1))","v":""},{"$f":"IF($A432=\"N/A\",Ref!$B$36,INDEX(Ranks!$1:$1048576,$A432,BD$1))","v":""},{"$f":"IF($A432=\"N/A\",Ref!$B$36,INDEX(Ranks!$1:$1048576,$A432,BE$1))","v":""},{"$f":"IF($A432=\"N/A\",Ref!$B$36,INDEX(Ranks!$1:$1048576,$A432,BF$1))","v":""},{"$f":"IF($A432=\"N/A\",Ref!$B$36,INDEX(Ranks!$1:$1048576,$A432,BG$1))","v":""},{"$f":"IF($A432=\"N/A\",Ref!$B$36,INDEX(Ranks!$1:$1048576,$A432,BH$1))","v":""},{"$f":"IF($A432=\"N/A\",Ref!$B$36,INDEX(Ranks!$1:$1048576,$A432,BI$1))","v":""},{"$f":"IF($A432=\"N/A\",Ref!$B$36,INDEX(Ranks!$1:$1048576,$A432,BJ$1))","v":""},{"$f":"IF($A432=\"N/A\",Ref!$B$36,INDEX(Ranks!$1:$1048576,$A432,BK$1))","v":""},{"$f":"IF($A432=\"N/A\",Ref!$B$36,INDEX(Ranks!$1:$1048576,$A432,BL$1))","v":""},{"$f":"IF($A432=\"N/A\",Ref!$B$36,INDEX(Ranks!$1:$1048576,$A432,BM$1))","v":""},{"$f":"IF($A432=\"N/A\",Ref!$B$36,INDEX(Ranks!$1:$1048576,$A432,BN$1))","v":""},{"$f":"IF($A432=\"N/A\",Ref!$B$36,INDEX(Ranks!$1:$1048576,$A432,BO$1))","v":""},{"$f":"IF($A432=\"N/A\",Ref!$B$36,INDEX(Ranks!$1:$1048576,$A432,BP$1))","v":""},{"$f":"IF($A432=\"N/A\",Ref!$B$36,INDEX(Ranks!$1:$1048576,$A432,BQ$1))","v":""},{"$f":"IF($A432=\"N/A\",Ref!$B$36,INDEX(Ranks!$1:$1048576,$A432,BR$1))","v":""},{"$f":"IF($A432=\"N/A\",Ref!$B$36,INDEX(Ranks!$1:$1048576,$A432,BS$1))","v":""},{"$f":"IF($A432=\"N/A\",Ref!$B$36,INDEX(Ranks!$1:$1048576,$A432,BT$1))","v":""},{"$f":"IF($A432=\"N/A\",Ref!$B$36,INDEX(Ranks!$1:$1048576,$A432,BU$1))","v":""},{"$f":"IF($A432=\"N/A\",Ref!$B$36,INDEX(Ranks!$1:$1048576,$A432,BV$1))","v":""},{"$f":"IF($A432=\"N/A\",Ref!$B$36,INDEX(Ranks!$1:$1048576,$A432,BW$1))","v":""},{"$f":"IF($A432=\"N/A\",Ref!$B$36,INDEX(Ranks!$1:$1048576,$A432,BX$1))","v":""},{"$f":"IF($A432=\"N/A\",Ref!$B$36,INDEX(Ranks!$1:$1048576,$A432,BY$1))","v":""},{"$f":"IF($A432=\"N/A\",Ref!$B$36,INDEX(Ranks!$1:$1048576,$A432,BZ$1))","v":""},{"$f":"IF($A432=\"N/A\",Ref!$B$36,INDEX(Ranks!$1:$1048576,$A432,CA$1))","v":""},{"$f":"IF($A432=\"N/A\",Ref!$B$36,INDEX(Ranks!$1:$1048576,$A432,CB$1))","v":""},{"$f":"IF($A432=\"N/A\",Ref!$B$36,INDEX(Ranks!$1:$1048576,$A432,CC$1))","v":""},{"$f":"IF($A432=\"N/A\",Ref!$B$36,INDEX(Ranks!$1:$1048576,$A432,CD$1))","v":""},{"$f":"IF($A432=\"N/A\",Ref!$B$36,INDEX(Ranks!$1:$1048576,$A432,CE$1))","v":""},{"$f":"IF($A432=\"N/A\",Ref!$B$36,INDEX(Ranks!$1:$1048576,$A432,CF$1))","v":""},{"$f":"IF($A432=\"N/A\",Ref!$B$36,INDEX(Ranks!$1:$1048576,$A432,CG$1))","v":""},{"$f":"IF($A432=\"N/A\",Ref!$B$36,INDEX(Ranks!$1:$1048576,$A432,CH$1))","v":""},{"$f":"IF($A432=\"N/A\",Ref!$B$36,INDEX(Ranks!$1:$1048576,$A432,CI$1))","v":""},{"$f":"IF($A432=\"N/A\",Ref!$B$36,INDEX(Ranks!$1:$1048576,$A432,CJ$1))","v":""},{"$f":"IF($A432=\"N/A\",Ref!$B$36,INDEX(Ranks!$1:$1048576,$A432,CK$1))","v":""},{"$f":"IF($A432=\"N/A\",Ref!$B$36,INDEX(Ranks!$1:$1048576,$A432,CL$1))","v":""},{"$f":"IF($A432=\"N/A\",Ref!$B$36,INDEX(Ranks!$1:$1048576,$A432,CM$1))","v":""},{"$f":"IF($A432=\"N/A\",Ref!$B$36,INDEX(Ranks!$1:$1048576,$A432,CN$1))","v":""},{"$f":"IF($A432=\"N/A\",Ref!$B$36,INDEX(Ranks!$1:$1048576,$A432,CO$1))","v":""},{"$f":"IF($A432=\"N/A\",Ref!$B$36,INDEX(Ranks!$1:$1048576,$A432,CP$1))","v":""},{"$f":"IF($A432=\"N/A\",Ref!$B$36,INDEX(Ranks!$1:$1048576,$A432,CQ$1))","v":""},{"$f":"IF($A432=\"N/A\",Ref!$B$36,INDEX(Ranks!$1:$1048576,$A432,CR$1))","v":""},{"$f":"IF($A432=\"N/A\",Ref!$B$36,INDEX(Ranks!$1:$1048576,$A432,CS$1))","v":""},{"$f":"IF($A432=\"N/A\",Ref!$B$36,INDEX(Ranks!$1:$1048576,$A432,CT$1))","v":""},{"$f":"IF($A432=\"N/A\",Ref!$B$36,INDEX(Ranks!$1:$1048576,$A432,CU$1))","v":""},{"$f":"IF($A432=\"N/A\",Ref!$B$36,INDEX(Ranks!$1:$1048576,$A432,CV$1))","v":""},{"$f":"IF($A432=\"N/A\",Ref!$B$36,INDEX(Ranks!$1:$1048576,$A432,CW$1))","v":""},{"$f":"IF($A432=\"N/A\",Ref!$B$36,INDEX(Ranks!$1:$1048576,$A432,CX$1))","v":""},{"$f":"IF($A432=\"N/A\",Ref!$B$36,INDEX(Ranks!$1:$1048576,$A432,CY$1))","v":""},{"$f":"IF($A432=\"N/A\",Ref!$B$36,INDEX(Ranks!$1:$1048576,$A432,CZ$1))","v":""},{"$f":"IF($A432=\"N/A\",Ref!$B$36,INDEX(Ranks!$1:$1048576,$A432,DA$1))","v":""},{"$f":"IF($A432=\"N/A\",Ref!$B$36,INDEX(Ranks!$1:$1048576,$A432,DB$1))","v":""},{"$f":"IF($A432=\"N/A\",Ref!$B$36,INDEX(Ranks!$1:$1048576,$A432,DC$1))","v":""},{"$f":"IF($A432=\"N/A\",Ref!$B$36,INDEX(Ranks!$1:$1048576,$A432,DD$1))","v":""},{"$f":"IF($A432=\"N/A\",Ref!$B$36,INDEX(Ranks!$1:$1048576,$A432,DE$1))","v":""},{"$f":"IF($A432=\"N/A\",Ref!$B$36,INDEX(Ranks!$1:$1048576,$A432,DF$1))","v":""},{"$f":"IF($A432=\"N/A\",Ref!$B$36,INDEX(Ranks!$1:$1048576,$A432,DG$1))","v":""},{"$f":"IF($A432=\"N/A\",Ref!$B$36,INDEX(Ranks!$1:$1048576,$A432,DH$1))","v":""},{"$f":"IF($A432=\"N/A\",Ref!$B$36,INDEX(Ranks!$1:$1048576,$A432,DI$1))","v":""},{"$f":"IF($A432=\"N/A\",Ref!$B$36,INDEX(Ranks!$1:$1048576,$A432,DJ$1))","v":""},{"$f":"IF($A432=\"N/A\",Ref!$B$36,INDEX(Ranks!$1:$1048576,$A432,DK$1))","v":""},{"$f":"IF($A432=\"N/A\",Ref!$B$36,INDEX(Ranks!$1:$1048576,$A432,DL$1))","v":""},{"$f":"IF($A432=\"N/A\",Ref!$B$36,INDEX(Ranks!$1:$1048576,$A432,DM$1))","v":""},{"$f":"IF($A432=\"N/A\",Ref!$B$36,INDEX(Ranks!$1:$1048576,$A432,DN$1))","v":""},{"$f":"IF($A432=\"N/A\",Ref!$B$36,INDEX(Ranks!$1:$1048576,$A432,DO$1))","v":""},{"$f":"IF($A432=\"N/A\",Ref!$B$36,INDEX(Ranks!$1:$1048576,$A432,DP$1))","v":""},{"$f":"IF($A432=\"N/A\",Ref!$B$36,INDEX(Ranks!$1:$1048576,$A432,DQ$1))","v":""},{"$f":"IF($A432=\"N/A\",Ref!$B$36,INDEX(Ranks!$1:$1048576,$A432,DR$1))","v":""},{"$f":"IF($A432=\"N/A\",Ref!$B$36,INDEX(Ranks!$1:$1048576,$A432,DS$1))","v":""},{"$f":"IF($A432=\"N/A\",Ref!$B$36,INDEX(Ranks!$1:$1048576,$A432,DT$1))","v":""},{"$f":"IF($A432=\"N/A\",Ref!$B$36,INDEX(Ranks!$1:$1048576,$A432,DU$1))","v":""},{"$f":"IF($A432=\"N/A\",Ref!$B$36,INDEX(Ranks!$1:$1048576,$A432,DV$1))","v":""},{"$f":"IF($A432=\"N/A\",Ref!$B$36,INDEX(Ranks!$1:$1048576,$A432,DW$1))","v":""},{"$f":"IF($A432=\"N/A\",Ref!$B$36,INDEX(Ranks!$1:$1048576,$A432,DX$1))","v":""},{"$f":"IF($A432=\"N/A\",Ref!$B$36,INDEX(Ranks!$1:$1048576,$A432,DY$1))","v":""},{"$f":"IF($A432=\"N/A\",Ref!$B$36,INDEX(Ranks!$1:$1048576,$A432,DZ$1))","v":""},{"$f":"IF($A432=\"N/A\",Ref!$B$36,INDEX(Ranks!$1:$1048576,$A432,EA$1))","v":""},{"$f":"IF($A432=\"N/A\",Ref!$B$36,INDEX(Ranks!$1:$1048576,$A432,EB$1))","v":""}]
[{"$f":"IFERROR(MATCH('Portfolio Page'!L433,Ranks!L:L,0),\"N/A\")","v":"N/A"},null,{"$f":"IF($A433=\"N/A\",\"\",INDEX(Ranks!$1:$1048576,$A433,C$1))","v":""},{"$f":"IF($A433=\"N/A\",Ref!$B$36,INDEX(Ranks!$1:$1048576,$A433,D$1))","v":""},{"$f":"IF($A433=\"N/A\",Ref!$B$36,INDEX(Ranks!$1:$1048576,$A433,E$1))","v":""},{"$f":"IF($A433=\"N/A\",\"\",INDEX(Ranks!$1:$1048576,$A433,F$1))","v":""},{"$f":"IF($A433=\"N/A\",\"\",INDEX(Ranks!$1:$1048576,$A433,G$1))","v":""},{"$f":"IF($A433=\"N/A\",\"\",INDEX(Ranks!$1:$1048576,$A433,H$1))","v":""},{"$f":"IF($A433=\"N/A\",\"\",INDEX(Ranks!$1:$1048576,$A433,I$1))","v":""},{"$f":"IF($A433=\"N/A\",\"\",INDEX(Ranks!$1:$1048576,$A433,J$1))","v":""},{"$f":"IF($A433=\"N/A\",\"\",INDEX(Ranks!$1:$1048576,$A433,K$1))","v":""},null,{"$f":"IF($A433=\"N/A\",Ref!$B$36,INDEX(Ranks!$1:$1048576,$A433,M$1))","v":""},{"$f":"IF($A433=\"N/A\",Ref!$B$36,INDEX(Ranks!$1:$1048576,$A433,N$1))","v":""},{"$f":"IF($A433=\"N/A\",Ref!$B$36,INDEX(Ranks!$1:$1048576,$A433,O$1))","v":""},{"$f":"IF($A433=\"N/A\",Ref!$B$36,INDEX(Ranks!$1:$1048576,$A433,P$1))","v":""},{"$f":"IF($A433=\"N/A\",Ref!$B$36,INDEX(Ranks!$1:$1048576,$A433,Q$1))","v":""},{"$f":"IF($A433=\"N/A\",Ref!$B$36,INDEX(Ranks!$1:$1048576,$A433,R$1))","v":""},{"$f":"IF($A433=\"N/A\",Ref!$B$36,INDEX(Ranks!$1:$1048576,$A433,S$1))","v":""},{"$f":"IF($A433=\"N/A\",Ref!$B$36,INDEX(Ranks!$1:$1048576,$A433,T$1))","v":""},{"$f":"IF($A433=\"N/A\",Ref!$B$36,INDEX(Ranks!$1:$1048576,$A433,U$1))","v":""},{"$f":"IF($A433=\"N/A\",Ref!$B$36,INDEX(Ranks!$1:$1048576,$A433,V$1))","v":""},{"$f":"IF($A433=\"N/A\",Ref!$B$36,INDEX(Ranks!$1:$1048576,$A433,W$1))","v":""},{"$f":"IF($A433=\"N/A\",Ref!$B$36,INDEX(Ranks!$1:$1048576,$A433,X$1))","v":""},{"$f":"IF($A433=\"N/A\",Ref!$B$36,INDEX(Ranks!$1:$1048576,$A433,Y$1))","v":""},{"$f":"IF($A433=\"N/A\",Ref!$B$36,INDEX(Ranks!$1:$1048576,$A433,Z$1))","v":""},{"$f":"IF($A433=\"N/A\",Ref!$B$36,INDEX(Ranks!$1:$1048576,$A433,AA$1))","v":""},{"$f":"IF($A433=\"N/A\",Ref!$B$36,INDEX(Ranks!$1:$1048576,$A433,AB$1))","v":""},{"$f":"IF($A433=\"N/A\",Ref!$B$36,INDEX(Ranks!$1:$1048576,$A433,AC$1))","v":""},{"$f":"IF($A433=\"N/A\",Ref!$B$36,INDEX(Ranks!$1:$1048576,$A433,AD$1))","v":""},{"$f":"IF($A433=\"N/A\",Ref!$B$36,INDEX(Ranks!$1:$1048576,$A433,AE$1))","v":""},{"$f":"IF($A433=\"N/A\",Ref!$B$36,INDEX(Ranks!$1:$1048576,$A433,AF$1))","v":""},{"$f":"IF($A433=\"N/A\",Ref!$B$36,INDEX(Ranks!$1:$1048576,$A433,AG$1))","v":""},{"$f":"IF($A433=\"N/A\",Ref!$B$36,INDEX(Ranks!$1:$1048576,$A433,AH$1))","v":""},{"$f":"IF($A433=\"N/A\",Ref!$B$36,INDEX(Ranks!$1:$1048576,$A433,AI$1))","v":""},{"$f":"IF($A433=\"N/A\",Ref!$B$36,INDEX(Ranks!$1:$1048576,$A433,AJ$1))","v":""},{"$f":"IF($A433=\"N/A\",Ref!$B$36,INDEX(Ranks!$1:$1048576,$A433,AK$1))","v":""},{"$f":"IF($A433=\"N/A\",Ref!$B$36,INDEX(Ranks!$1:$1048576,$A433,AL$1))","v":""},{"$f":"IF($A433=\"N/A\",Ref!$B$36,INDEX(Ranks!$1:$1048576,$A433,AM$1))","v":""},{"$f":"IF($A433=\"N/A\",Ref!$B$36,INDEX(Ranks!$1:$1048576,$A433,AN$1))","v":""},{"$f":"IF($A433=\"N/A\",Ref!$B$36,INDEX(Ranks!$1:$1048576,$A433,AO$1))","v":""},{"$f":"IF($A433=\"N/A\",Ref!$B$36,INDEX(Ranks!$1:$1048576,$A433,AP$1))","v":""},{"$f":"IF($A433=\"N/A\",Ref!$B$36,INDEX(Ranks!$1:$1048576,$A433,AQ$1))","v":""},{"$f":"IF($A433=\"N/A\",Ref!$B$36,INDEX(Ranks!$1:$1048576,$A433,AR$1))","v":""},{"$f":"IF($A433=\"N/A\",Ref!$B$36,INDEX(Ranks!$1:$1048576,$A433,AS$1))","v":""},{"$f":"IF($A433=\"N/A\",Ref!$B$36,INDEX(Ranks!$1:$1048576,$A433,AT$1))","v":""},{"$f":"IF($A433=\"N/A\",Ref!$B$36,INDEX(Ranks!$1:$1048576,$A433,AU$1))","v":""},{"$f":"IF($A433=\"N/A\",Ref!$B$36,INDEX(Ranks!$1:$1048576,$A433,AV$1))","v":""},{"$f":"IF($A433=\"N/A\",Ref!$B$36,INDEX(Ranks!$1:$1048576,$A433,AW$1))","v":""},{"$f":"IF($A433=\"N/A\",Ref!$B$36,INDEX(Ranks!$1:$1048576,$A433,AX$1))","v":""},{"$f":"IF($A433=\"N/A\",Ref!$B$36,INDEX(Ranks!$1:$1048576,$A433,AY$1))","v":""},{"$f":"IF($A433=\"N/A\",Ref!$B$36,INDEX(Ranks!$1:$1048576,$A433,AZ$1))","v":""},{"$f":"IF($A433=\"N/A\",Ref!$B$36,INDEX(Ranks!$1:$1048576,$A433,BA$1))","v":""},{"$f":"IF($A433=\"N/A\",Ref!$B$36,INDEX(Ranks!$1:$1048576,$A433,BB$1))","v":""},{"$f":"IF($A433=\"N/A\",Ref!$B$36,INDEX(Ranks!$1:$1048576,$A433,BC$1))","v":""},{"$f":"IF($A433=\"N/A\",Ref!$B$36,INDEX(Ranks!$1:$1048576,$A433,BD$1))","v":""},{"$f":"IF($A433=\"N/A\",Ref!$B$36,INDEX(Ranks!$1:$1048576,$A433,BE$1))","v":""},{"$f":"IF($A433=\"N/A\",Ref!$B$36,INDEX(Ranks!$1:$1048576,$A433,BF$1))","v":""},{"$f":"IF($A433=\"N/A\",Ref!$B$36,INDEX(Ranks!$1:$1048576,$A433,BG$1))","v":""},{"$f":"IF($A433=\"N/A\",Ref!$B$36,INDEX(Ranks!$1:$1048576,$A433,BH$1))","v":""},{"$f":"IF($A433=\"N/A\",Ref!$B$36,INDEX(Ranks!$1:$1048576,$A433,BI$1))","v":""},{"$f":"IF($A433=\"N/A\",Ref!$B$36,INDEX(Ranks!$1:$1048576,$A433,BJ$1))","v":""},{"$f":"IF($A433=\"N/A\",Ref!$B$36,INDEX(Ranks!$1:$1048576,$A433,BK$1))","v":""},{"$f":"IF($A433=\"N/A\",Ref!$B$36,INDEX(Ranks!$1:$1048576,$A433,BL$1))","v":""},{"$f":"IF($A433=\"N/A\",Ref!$B$36,INDEX(Ranks!$1:$1048576,$A433,BM$1))","v":""},{"$f":"IF($A433=\"N/A\",Ref!$B$36,INDEX(Ranks!$1:$1048576,$A433,BN$1))","v":""},{"$f":"IF($A433=\"N/A\",Ref!$B$36,INDEX(Ranks!$1:$1048576,$A433,BO$1))","v":""},{"$f":"IF($A433=\"N/A\",Ref!$B$36,INDEX(Ranks!$1:$1048576,$A433,BP$1))","v":""},{"$f":"IF($A433=\"N/A\",Ref!$B$36,INDEX(Ranks!$1:$1048576,$A433,BQ$1))","v":""},{"$f":"IF($A433=\"N/A\",Ref!$B$36,INDEX(Ranks!$1:$1048576,$A433,BR$1))","v":""},{"$f":"IF($A433=\"N/A\",Ref!$B$36,INDEX(Ranks!$1:$1048576,$A433,BS$1))","v":""},{"$f":"IF($A433=\"N/A\",Ref!$B$36,INDEX(Ranks!$1:$1048576,$A433,BT$1))","v":""},{"$f":"IF($A433=\"N/A\",Ref!$B$36,INDEX(Ranks!$1:$1048576,$A433,BU$1))","v":""},{"$f":"IF($A433=\"N/A\",Ref!$B$36,INDEX(Ranks!$1:$1048576,$A433,BV$1))","v":""},{"$f":"IF($A433=\"N/A\",Ref!$B$36,INDEX(Ranks!$1:$1048576,$A433,BW$1))","v":""},{"$f":"IF($A433=\"N/A\",Ref!$B$36,INDEX(Ranks!$1:$1048576,$A433,BX$1))","v":""},{"$f":"IF($A433=\"N/A\",Ref!$B$36,INDEX(Ranks!$1:$1048576,$A433,BY$1))","v":""},{"$f":"IF($A433=\"N/A\",Ref!$B$36,INDEX(Ranks!$1:$1048576,$A433,BZ$1))","v":""},{"$f":"IF($A433=\"N/A\",Ref!$B$36,INDEX(Ranks!$1:$1048576,$A433,CA$1))","v":""},{"$f":"IF($A433=\"N/A\",Ref!$B$36,INDEX(Ranks!$1:$1048576,$A433,CB$1))","v":""},{"$f":"IF($A433=\"N/A\",Ref!$B$36,INDEX(Ranks!$1:$1048576,$A433,CC$1))","v":""},{"$f":"IF($A433=\"N/A\",Ref!$B$36,INDEX(Ranks!$1:$1048576,$A433,CD$1))","v":""},{"$f":"IF($A433=\"N/A\",Ref!$B$36,INDEX(Ranks!$1:$1048576,$A433,CE$1))","v":""},{"$f":"IF($A433=\"N/A\",Ref!$B$36,INDEX(Ranks!$1:$1048576,$A433,CF$1))","v":""},{"$f":"IF($A433=\"N/A\",Ref!$B$36,INDEX(Ranks!$1:$1048576,$A433,CG$1))","v":""},{"$f":"IF($A433=\"N/A\",Ref!$B$36,INDEX(Ranks!$1:$1048576,$A433,CH$1))","v":""},{"$f":"IF($A433=\"N/A\",Ref!$B$36,INDEX(Ranks!$1:$1048576,$A433,CI$1))","v":""},{"$f":"IF($A433=\"N/A\",Ref!$B$36,INDEX(Ranks!$1:$1048576,$A433,CJ$1))","v":""},{"$f":"IF($A433=\"N/A\",Ref!$B$36,INDEX(Ranks!$1:$1048576,$A433,CK$1))","v":""},{"$f":"IF($A433=\"N/A\",Ref!$B$36,INDEX(Ranks!$1:$1048576,$A433,CL$1))","v":""},{"$f":"IF($A433=\"N/A\",Ref!$B$36,INDEX(Ranks!$1:$1048576,$A433,CM$1))","v":""},{"$f":"IF($A433=\"N/A\",Ref!$B$36,INDEX(Ranks!$1:$1048576,$A433,CN$1))","v":""},{"$f":"IF($A433=\"N/A\",Ref!$B$36,INDEX(Ranks!$1:$1048576,$A433,CO$1))","v":""},{"$f":"IF($A433=\"N/A\",Ref!$B$36,INDEX(Ranks!$1:$1048576,$A433,CP$1))","v":""},{"$f":"IF($A433=\"N/A\",Ref!$B$36,INDEX(Ranks!$1:$1048576,$A433,CQ$1))","v":""},{"$f":"IF($A433=\"N/A\",Ref!$B$36,INDEX(Ranks!$1:$1048576,$A433,CR$1))","v":""},{"$f":"IF($A433=\"N/A\",Ref!$B$36,INDEX(Ranks!$1:$1048576,$A433,CS$1))","v":""},{"$f":"IF($A433=\"N/A\",Ref!$B$36,INDEX(Ranks!$1:$1048576,$A433,CT$1))","v":""},{"$f":"IF($A433=\"N/A\",Ref!$B$36,INDEX(Ranks!$1:$1048576,$A433,CU$1))","v":""},{"$f":"IF($A433=\"N/A\",Ref!$B$36,INDEX(Ranks!$1:$1048576,$A433,CV$1))","v":""},{"$f":"IF($A433=\"N/A\",Ref!$B$36,INDEX(Ranks!$1:$1048576,$A433,CW$1))","v":""},{"$f":"IF($A433=\"N/A\",Ref!$B$36,INDEX(Ranks!$1:$1048576,$A433,CX$1))","v":""},{"$f":"IF($A433=\"N/A\",Ref!$B$36,INDEX(Ranks!$1:$1048576,$A433,CY$1))","v":""},{"$f":"IF($A433=\"N/A\",Ref!$B$36,INDEX(Ranks!$1:$1048576,$A433,CZ$1))","v":""},{"$f":"IF($A433=\"N/A\",Ref!$B$36,INDEX(Ranks!$1:$1048576,$A433,DA$1))","v":""},{"$f":"IF($A433=\"N/A\",Ref!$B$36,INDEX(Ranks!$1:$1048576,$A433,DB$1))","v":""},{"$f":"IF($A433=\"N/A\",Ref!$B$36,INDEX(Ranks!$1:$1048576,$A433,DC$1))","v":""},{"$f":"IF($A433=\"N/A\",Ref!$B$36,INDEX(Ranks!$1:$1048576,$A433,DD$1))","v":""},{"$f":"IF($A433=\"N/A\",Ref!$B$36,INDEX(Ranks!$1:$1048576,$A433,DE$1))","v":""},{"$f":"IF($A433=\"N/A\",Ref!$B$36,INDEX(Ranks!$1:$1048576,$A433,DF$1))","v":""},{"$f":"IF($A433=\"N/A\",Ref!$B$36,INDEX(Ranks!$1:$1048576,$A433,DG$1))","v":""},{"$f":"IF($A433=\"N/A\",Ref!$B$36,INDEX(Ranks!$1:$1048576,$A433,DH$1))","v":""},{"$f":"IF($A433=\"N/A\",Ref!$B$36,INDEX(Ranks!$1:$1048576,$A433,DI$1))","v":""},{"$f":"IF($A433=\"N/A\",Ref!$B$36,INDEX(Ranks!$1:$1048576,$A433,DJ$1))","v":""},{"$f":"IF($A433=\"N/A\",Ref!$B$36,INDEX(Ranks!$1:$1048576,$A433,DK$1))","v":""},{"$f":"IF($A433=\"N/A\",Ref!$B$36,INDEX(Ranks!$1:$1048576,$A433,DL$1))","v":""},{"$f":"IF($A433=\"N/A\",Ref!$B$36,INDEX(Ranks!$1:$1048576,$A433,DM$1))","v":""},{"$f":"IF($A433=\"N/A\",Ref!$B$36,INDEX(Ranks!$1:$1048576,$A433,DN$1))","v":""},{"$f":"IF($A433=\"N/A\",Ref!$B$36,INDEX(Ranks!$1:$1048576,$A433,DO$1))","v":""},{"$f":"IF($A433=\"N/A\",Ref!$B$36,INDEX(Ranks!$1:$1048576,$A433,DP$1))","v":""},{"$f":"IF($A433=\"N/A\",Ref!$B$36,INDEX(Ranks!$1:$1048576,$A433,DQ$1))","v":""},{"$f":"IF($A433=\"N/A\",Ref!$B$36,INDEX(Ranks!$1:$1048576,$A433,DR$1))","v":""},{"$f":"IF($A433=\"N/A\",Ref!$B$36,INDEX(Ranks!$1:$1048576,$A433,DS$1))","v":""},{"$f":"IF($A433=\"N/A\",Ref!$B$36,INDEX(Ranks!$1:$1048576,$A433,DT$1))","v":""},{"$f":"IF($A433=\"N/A\",Ref!$B$36,INDEX(Ranks!$1:$1048576,$A433,DU$1))","v":""},{"$f":"IF($A433=\"N/A\",Ref!$B$36,INDEX(Ranks!$1:$1048576,$A433,DV$1))","v":""},{"$f":"IF($A433=\"N/A\",Ref!$B$36,INDEX(Ranks!$1:$1048576,$A433,DW$1))","v":""},{"$f":"IF($A433=\"N/A\",Ref!$B$36,INDEX(Ranks!$1:$1048576,$A433,DX$1))","v":""},{"$f":"IF($A433=\"N/A\",Ref!$B$36,INDEX(Ranks!$1:$1048576,$A433,DY$1))","v":""},{"$f":"IF($A433=\"N/A\",Ref!$B$36,INDEX(Ranks!$1:$1048576,$A433,DZ$1))","v":""},{"$f":"IF($A433=\"N/A\",Ref!$B$36,INDEX(Ranks!$1:$1048576,$A433,EA$1))","v":""},{"$f":"IF($A433=\"N/A\",Ref!$B$36,INDEX(Ranks!$1:$1048576,$A433,EB$1))","v":""}]
[{"$f":"IFERROR(MATCH('Portfolio Page'!L434,Ranks!L:L,0),\"N/A\")","v":"N/A"},null,{"$f":"IF($A434=\"N/A\",\"\",INDEX(Ranks!$1:$1048576,$A434,C$1))","v":""},{"$f":"IF($A434=\"N/A\",Ref!$B$36,INDEX(Ranks!$1:$1048576,$A434,D$1))","v":""},{"$f":"IF($A434=\"N/A\",Ref!$B$36,INDEX(Ranks!$1:$1048576,$A434,E$1))","v":""},{"$f":"IF($A434=\"N/A\",\"\",INDEX(Ranks!$1:$1048576,$A434,F$1))","v":""},{"$f":"IF($A434=\"N/A\",\"\",INDEX(Ranks!$1:$1048576,$A434,G$1))","v":""},{"$f":"IF($A434=\"N/A\",\"\",INDEX(Ranks!$1:$1048576,$A434,H$1))","v":""},{"$f":"IF($A434=\"N/A\",\"\",INDEX(Ranks!$1:$1048576,$A434,I$1))","v":""},{"$f":"IF($A434=\"N/A\",\"\",INDEX(Ranks!$1:$1048576,$A434,J$1))","v":""},{"$f":"IF($A434=\"N/A\",\"\",INDEX(Ranks!$1:$1048576,$A434,K$1))","v":""},null,{"$f":"IF($A434=\"N/A\",Ref!$B$36,INDEX(Ranks!$1:$1048576,$A434,M$1))","v":""},{"$f":"IF($A434=\"N/A\",Ref!$B$36,INDEX(Ranks!$1:$1048576,$A434,N$1))","v":""},{"$f":"IF($A434=\"N/A\",Ref!$B$36,INDEX(Ranks!$1:$1048576,$A434,O$1))","v":""},{"$f":"IF($A434=\"N/A\",Ref!$B$36,INDEX(Ranks!$1:$1048576,$A434,P$1))","v":""},{"$f":"IF($A434=\"N/A\",Ref!$B$36,INDEX(Ranks!$1:$1048576,$A434,Q$1))","v":""},{"$f":"IF($A434=\"N/A\",Ref!$B$36,INDEX(Ranks!$1:$1048576,$A434,R$1))","v":""},{"$f":"IF($A434=\"N/A\",Ref!$B$36,INDEX(Ranks!$1:$1048576,$A434,S$1))","v":""},{"$f":"IF($A434=\"N/A\",Ref!$B$36,INDEX(Ranks!$1:$1048576,$A434,T$1))","v":""},{"$f":"IF($A434=\"N/A\",Ref!$B$36,INDEX(Ranks!$1:$1048576,$A434,U$1))","v":""},{"$f":"IF($A434=\"N/A\",Ref!$B$36,INDEX(Ranks!$1:$1048576,$A434,V$1))","v":""},{"$f":"IF($A434=\"N/A\",Ref!$B$36,INDEX(Ranks!$1:$1048576,$A434,W$1))","v":""},{"$f":"IF($A434=\"N/A\",Ref!$B$36,INDEX(Ranks!$1:$1048576,$A434,X$1))","v":""},{"$f":"IF($A434=\"N/A\",Ref!$B$36,INDEX(Ranks!$1:$1048576,$A434,Y$1))","v":""},{"$f":"IF($A434=\"N/A\",Ref!$B$36,INDEX(Ranks!$1:$1048576,$A434,Z$1))","v":""},{"$f":"IF($A434=\"N/A\",Ref!$B$36,INDEX(Ranks!$1:$1048576,$A434,AA$1))","v":""},{"$f":"IF($A434=\"N/A\",Ref!$B$36,INDEX(Ranks!$1:$1048576,$A434,AB$1))","v":""},{"$f":"IF($A434=\"N/A\",Ref!$B$36,INDEX(Ranks!$1:$1048576,$A434,AC$1))","v":""},{"$f":"IF($A434=\"N/A\",Ref!$B$36,INDEX(Ranks!$1:$1048576,$A434,AD$1))","v":""},{"$f":"IF($A434=\"N/A\",Ref!$B$36,INDEX(Ranks!$1:$1048576,$A434,AE$1))","v":""},{"$f":"IF($A434=\"N/A\",Ref!$B$36,INDEX(Ranks!$1:$1048576,$A434,AF$1))","v":""},{"$f":"IF($A434=\"N/A\",Ref!$B$36,INDEX(Ranks!$1:$1048576,$A434,AG$1))","v":""},{"$f":"IF($A434=\"N/A\",Ref!$B$36,INDEX(Ranks!$1:$1048576,$A434,AH$1))","v":""},{"$f":"IF($A434=\"N/A\",Ref!$B$36,INDEX(Ranks!$1:$1048576,$A434,AI$1))","v":""},{"$f":"IF($A434=\"N/A\",Ref!$B$36,INDEX(Ranks!$1:$1048576,$A434,AJ$1))","v":""},{"$f":"IF($A434=\"N/A\",Ref!$B$36,INDEX(Ranks!$1:$1048576,$A434,AK$1))","v":""},{"$f":"IF($A434=\"N/A\",Ref!$B$36,INDEX(Ranks!$1:$1048576,$A434,AL$1))","v":""},{"$f":"IF($A434=\"N/A\",Ref!$B$36,INDEX(Ranks!$1:$1048576,$A434,AM$1))","v":""},{"$f":"IF($A434=\"N/A\",Ref!$B$36,INDEX(Ranks!$1:$1048576,$A434,AN$1))","v":""},{"$f":"IF($A434=\"N/A\",Ref!$B$36,INDEX(Ranks!$1:$1048576,$A434,AO$1))","v":""},{"$f":"IF($A434=\"N/A\",Ref!$B$36,INDEX(Ranks!$1:$1048576,$A434,AP$1))","v":""},{"$f":"IF($A434=\"N/A\",Ref!$B$36,INDEX(Ranks!$1:$1048576,$A434,AQ$1))","v":""},{"$f":"IF($A434=\"N/A\",Ref!$B$36,INDEX(Ranks!$1:$1048576,$A434,AR$1))","v":""},{"$f":"IF($A434=\"N/A\",Ref!$B$36,INDEX(Ranks!$1:$1048576,$A434,AS$1))","v":""},{"$f":"IF($A434=\"N/A\",Ref!$B$36,INDEX(Ranks!$1:$1048576,$A434,AT$1))","v":""},{"$f":"IF($A434=\"N/A\",Ref!$B$36,INDEX(Ranks!$1:$1048576,$A434,AU$1))","v":""},{"$f":"IF($A434=\"N/A\",Ref!$B$36,INDEX(Ranks!$1:$1048576,$A434,AV$1))","v":""},{"$f":"IF($A434=\"N/A\",Ref!$B$36,INDEX(Ranks!$1:$1048576,$A434,AW$1))","v":""},{"$f":"IF($A434=\"N/A\",Ref!$B$36,INDEX(Ranks!$1:$1048576,$A434,AX$1))","v":""},{"$f":"IF($A434=\"N/A\",Ref!$B$36,INDEX(Ranks!$1:$1048576,$A434,AY$1))","v":""},{"$f":"IF($A434=\"N/A\",Ref!$B$36,INDEX(Ranks!$1:$1048576,$A434,AZ$1))","v":""},{"$f":"IF($A434=\"N/A\",Ref!$B$36,INDEX(Ranks!$1:$1048576,$A434,BA$1))","v":""},{"$f":"IF($A434=\"N/A\",Ref!$B$36,INDEX(Ranks!$1:$1048576,$A434,BB$1))","v":""},{"$f":"IF($A434=\"N/A\",Ref!$B$36,INDEX(Ranks!$1:$1048576,$A434,BC$1))","v":""},{"$f":"IF($A434=\"N/A\",Ref!$B$36,INDEX(Ranks!$1:$1048576,$A434,BD$1))","v":""},{"$f":"IF($A434=\"N/A\",Ref!$B$36,INDEX(Ranks!$1:$1048576,$A434,BE$1))","v":""},{"$f":"IF($A434=\"N/A\",Ref!$B$36,INDEX(Ranks!$1:$1048576,$A434,BF$1))","v":""},{"$f":"IF($A434=\"N/A\",Ref!$B$36,INDEX(Ranks!$1:$1048576,$A434,BG$1))","v":""},{"$f":"IF($A434=\"N/A\",Ref!$B$36,INDEX(Ranks!$1:$1048576,$A434,BH$1))","v":""},{"$f":"IF($A434=\"N/A\",Ref!$B$36,INDEX(Ranks!$1:$1048576,$A434,BI$1))","v":""},{"$f":"IF($A434=\"N/A\",Ref!$B$36,INDEX(Ranks!$1:$1048576,$A434,BJ$1))","v":""},{"$f":"IF($A434=\"N/A\",Ref!$B$36,INDEX(Ranks!$1:$1048576,$A434,BK$1))","v":""},{"$f":"IF($A434=\"N/A\",Ref!$B$36,INDEX(Ranks!$1:$1048576,$A434,BL$1))","v":""},{"$f":"IF($A434=\"N/A\",Ref!$B$36,INDEX(Ranks!$1:$1048576,$A434,BM$1))","v":""},{"$f":"IF($A434=\"N/A\",Ref!$B$36,INDEX(Ranks!$1:$1048576,$A434,BN$1))","v":""},{"$f":"IF($A434=\"N/A\",Ref!$B$36,INDEX(Ranks!$1:$1048576,$A434,BO$1))","v":""},{"$f":"IF($A434=\"N/A\",Ref!$B$36,INDEX(Ranks!$1:$1048576,$A434,BP$1))","v":""},{"$f":"IF($A434=\"N/A\",Ref!$B$36,INDEX(Ranks!$1:$1048576,$A434,BQ$1))","v":""},{"$f":"IF($A434=\"N/A\",Ref!$B$36,INDEX(Ranks!$1:$1048576,$A434,BR$1))","v":""},{"$f":"IF($A434=\"N/A\",Ref!$B$36,INDEX(Ranks!$1:$1048576,$A434,BS$1))","v":""},{"$f":"IF($A434=\"N/A\",Ref!$B$36,INDEX(Ranks!$1:$1048576,$A434,BT$1))","v":""},{"$f":"IF($A434=\"N/A\",Ref!$B$36,INDEX(Ranks!$1:$1048576,$A434,BU$1))","v":""},{"$f":"IF($A434=\"N/A\",Ref!$B$36,INDEX(Ranks!$1:$1048576,$A434,BV$1))","v":""},{"$f":"IF($A434=\"N/A\",Ref!$B$36,INDEX(Ranks!$1:$1048576,$A434,BW$1))","v":""},{"$f":"IF($A434=\"N/A\",Ref!$B$36,INDEX(Ranks!$1:$1048576,$A434,BX$1))","v":""},{"$f":"IF($A434=\"N/A\",Ref!$B$36,INDEX(Ranks!$1:$1048576,$A434,BY$1))","v":""},{"$f":"IF($A434=\"N/A\",Ref!$B$36,INDEX(Ranks!$1:$1048576,$A434,BZ$1))","v":""},{"$f":"IF($A434=\"N/A\",Ref!$B$36,INDEX(Ranks!$1:$1048576,$A434,CA$1))","v":""},{"$f":"IF($A434=\"N/A\",Ref!$B$36,INDEX(Ranks!$1:$1048576,$A434,CB$1))","v":""},{"$f":"IF($A434=\"N/A\",Ref!$B$36,INDEX(Ranks!$1:$1048576,$A434,CC$1))","v":""},{"$f":"IF($A434=\"N/A\",Ref!$B$36,INDEX(Ranks!$1:$1048576,$A434,CD$1))","v":""},{"$f":"IF($A434=\"N/A\",Ref!$B$36,INDEX(Ranks!$1:$1048576,$A434,CE$1))","v":""},{"$f":"IF($A434=\"N/A\",Ref!$B$36,INDEX(Ranks!$1:$1048576,$A434,CF$1))","v":""},{"$f":"IF($A434=\"N/A\",Ref!$B$36,INDEX(Ranks!$1:$1048576,$A434,CG$1))","v":""},{"$f":"IF($A434=\"N/A\",Ref!$B$36,INDEX(Ranks!$1:$1048576,$A434,CH$1))","v":""},{"$f":"IF($A434=\"N/A\",Ref!$B$36,INDEX(Ranks!$1:$1048576,$A434,CI$1))","v":""},{"$f":"IF($A434=\"N/A\",Ref!$B$36,INDEX(Ranks!$1:$1048576,$A434,CJ$1))","v":""},{"$f":"IF($A434=\"N/A\",Ref!$B$36,INDEX(Ranks!$1:$1048576,$A434,CK$1))","v":""},{"$f":"IF($A434=\"N/A\",Ref!$B$36,INDEX(Ranks!$1:$1048576,$A434,CL$1))","v":""},{"$f":"IF($A434=\"N/A\",Ref!$B$36,INDEX(Ranks!$1:$1048576,$A434,CM$1))","v":""},{"$f":"IF($A434=\"N/A\",Ref!$B$36,INDEX(Ranks!$1:$1048576,$A434,CN$1))","v":""},{"$f":"IF($A434=\"N/A\",Ref!$B$36,INDEX(Ranks!$1:$1048576,$A434,CO$1))","v":""},{"$f":"IF($A434=\"N/A\",Ref!$B$36,INDEX(Ranks!$1:$1048576,$A434,CP$1))","v":""},{"$f":"IF($A434=\"N/A\",Ref!$B$36,INDEX(Ranks!$1:$1048576,$A434,CQ$1))","v":""},{"$f":"IF($A434=\"N/A\",Ref!$B$36,INDEX(Ranks!$1:$1048576,$A434,CR$1))","v":""},{"$f":"IF($A434=\"N/A\",Ref!$B$36,INDEX(Ranks!$1:$1048576,$A434,CS$1))","v":""},{"$f":"IF($A434=\"N/A\",Ref!$B$36,INDEX(Ranks!$1:$1048576,$A434,CT$1))","v":""},{"$f":"IF($A434=\"N/A\",Ref!$B$36,INDEX(Ranks!$1:$1048576,$A434,CU$1))","v":""},{"$f":"IF($A434=\"N/A\",Ref!$B$36,INDEX(Ranks!$1:$1048576,$A434,CV$1))","v":""},{"$f":"IF($A434=\"N/A\",Ref!$B$36,INDEX(Ranks!$1:$1048576,$A434,CW$1))","v":""},{"$f":"IF($A434=\"N/A\",Ref!$B$36,INDEX(Ranks!$1:$1048576,$A434,CX$1))","v":""},{"$f":"IF($A434=\"N/A\",Ref!$B$36,INDEX(Ranks!$1:$1048576,$A434,CY$1))","v":""},{"$f":"IF($A434=\"N/A\",Ref!$B$36,INDEX(Ranks!$1:$1048576,$A434,CZ$1))","v":""},{"$f":"IF($A434=\"N/A\",Ref!$B$36,INDEX(Ranks!$1:$1048576,$A434,DA$1))","v":""},{"$f":"IF($A434=\"N/A\",Ref!$B$36,INDEX(Ranks!$1:$1048576,$A434,DB$1))","v":""},{"$f":"IF($A434=\"N/A\",Ref!$B$36,INDEX(Ranks!$1:$1048576,$A434,DC$1))","v":""},{"$f":"IF($A434=\"N/A\",Ref!$B$36,INDEX(Ranks!$1:$1048576,$A434,DD$1))","v":""},{"$f":"IF($A434=\"N/A\",Ref!$B$36,INDEX(Ranks!$1:$1048576,$A434,DE$1))","v":""},{"$f":"IF($A434=\"N/A\",Ref!$B$36,INDEX(Ranks!$1:$1048576,$A434,DF$1))","v":""},{"$f":"IF($A434=\"N/A\",Ref!$B$36,INDEX(Ranks!$1:$1048576,$A434,DG$1))","v":""},{"$f":"IF($A434=\"N/A\",Ref!$B$36,INDEX(Ranks!$1:$1048576,$A434,DH$1))","v":""},{"$f":"IF($A434=\"N/A\",Ref!$B$36,INDEX(Ranks!$1:$1048576,$A434,DI$1))","v":""},{"$f":"IF($A434=\"N/A\",Ref!$B$36,INDEX(Ranks!$1:$1048576,$A434,DJ$1))","v":""},{"$f":"IF($A434=\"N/A\",Ref!$B$36,INDEX(Ranks!$1:$1048576,$A434,DK$1))","v":""},{"$f":"IF($A434=\"N/A\",Ref!$B$36,INDEX(Ranks!$1:$1048576,$A434,DL$1))","v":""},{"$f":"IF($A434=\"N/A\",Ref!$B$36,INDEX(Ranks!$1:$1048576,$A434,DM$1))","v":""},{"$f":"IF($A434=\"N/A\",Ref!$B$36,INDEX(Ranks!$1:$1048576,$A434,DN$1))","v":""},{"$f":"IF($A434=\"N/A\",Ref!$B$36,INDEX(Ranks!$1:$1048576,$A434,DO$1))","v":""},{"$f":"IF($A434=\"N/A\",Ref!$B$36,INDEX(Ranks!$1:$1048576,$A434,DP$1))","v":""},{"$f":"IF($A434=\"N/A\",Ref!$B$36,INDEX(Ranks!$1:$1048576,$A434,DQ$1))","v":""},{"$f":"IF($A434=\"N/A\",Ref!$B$36,INDEX(Ranks!$1:$1048576,$A434,DR$1))","v":""},{"$f":"IF($A434=\"N/A\",Ref!$B$36,INDEX(Ranks!$1:$1048576,$A434,DS$1))","v":""},{"$f":"IF($A434=\"N/A\",Ref!$B$36,INDEX(Ranks!$1:$1048576,$A434,DT$1))","v":""},{"$f":"IF($A434=\"N/A\",Ref!$B$36,INDEX(Ranks!$1:$1048576,$A434,DU$1))","v":""},{"$f":"IF($A434=\"N/A\",Ref!$B$36,INDEX(Ranks!$1:$1048576,$A434,DV$1))","v":""},{"$f":"IF($A434=\"N/A\",Ref!$B$36,INDEX(Ranks!$1:$1048576,$A434,DW$1))","v":""},{"$f":"IF($A434=\"N/A\",Ref!$B$36,INDEX(Ranks!$1:$1048576,$A434,DX$1))","v":""},{"$f":"IF($A434=\"N/A\",Ref!$B$36,INDEX(Ranks!$1:$1048576,$A434,DY$1))","v":""},{"$f":"IF($A434=\"N/A\",Ref!$B$36,INDEX(Ranks!$1:$1048576,$A434,DZ$1))","v":""},{"$f":"IF($A434=\"N/A\",Ref!$B$36,INDEX(Ranks!$1:$1048576,$A434,EA$1))","v":""},{"$f":"IF($A434=\"N/A\",Ref!$B$36,INDEX(Ranks!$1:$1048576,$A434,EB$1))","v":""}]
[{"$f":"IFERROR(MATCH('Portfolio Page'!L435,Ranks!L:L,0),\"N/A\")","v":"N/A"},null,{"$f":"IF($A435=\"N/A\",\"\",INDEX(Ranks!$1:$1048576,$A435,C$1))","v":""},{"$f":"IF($A435=\"N/A\",Ref!$B$36,INDEX(Ranks!$1:$1048576,$A435,D$1))","v":""},{"$f":"IF($A435=\"N/A\",Ref!$B$36,INDEX(Ranks!$1:$1048576,$A435,E$1))","v":""},{"$f":"IF($A435=\"N/A\",\"\",INDEX(Ranks!$1:$1048576,$A435,F$1))","v":""},{"$f":"IF($A435=\"N/A\",\"\",INDEX(Ranks!$1:$1048576,$A435,G$1))","v":""},{"$f":"IF($A435=\"N/A\",\"\",INDEX(Ranks!$1:$1048576,$A435,H$1))","v":""},{"$f":"IF($A435=\"N/A\",\"\",INDEX(Ranks!$1:$1048576,$A435,I$1))","v":""},{"$f":"IF($A435=\"N/A\",\"\",INDEX(Ranks!$1:$1048576,$A435,J$1))","v":""},{"$f":"IF($A435=\"N/A\",\"\",INDEX(Ranks!$1:$1048576,$A435,K$1))","v":""},null,{"$f":"IF($A435=\"N/A\",Ref!$B$36,INDEX(Ranks!$1:$1048576,$A435,M$1))","v":""},{"$f":"IF($A435=\"N/A\",Ref!$B$36,INDEX(Ranks!$1:$1048576,$A435,N$1))","v":""},{"$f":"IF($A435=\"N/A\",Ref!$B$36,INDEX(Ranks!$1:$1048576,$A435,O$1))","v":""},{"$f":"IF($A435=\"N/A\",Ref!$B$36,INDEX(Ranks!$1:$1048576,$A435,P$1))","v":""},{"$f":"IF($A435=\"N/A\",Ref!$B$36,INDEX(Ranks!$1:$1048576,$A435,Q$1))","v":""},{"$f":"IF($A435=\"N/A\",Ref!$B$36,INDEX(Ranks!$1:$1048576,$A435,R$1))","v":""},{"$f":"IF($A435=\"N/A\",Ref!$B$36,INDEX(Ranks!$1:$1048576,$A435,S$1))","v":""},{"$f":"IF($A435=\"N/A\",Ref!$B$36,INDEX(Ranks!$1:$1048576,$A435,T$1))","v":""},{"$f":"IF($A435=\"N/A\",Ref!$B$36,INDEX(Ranks!$1:$1048576,$A435,U$1))","v":""},{"$f":"IF($A435=\"N/A\",Ref!$B$36,INDEX(Ranks!$1:$1048576,$A435,V$1))","v":""},{"$f":"IF($A435=\"N/A\",Ref!$B$36,INDEX(Ranks!$1:$1048576,$A435,W$1))","v":""},{"$f":"IF($A435=\"N/A\",Ref!$B$36,INDEX(Ranks!$1:$1048576,$A435,X$1))","v":""},{"$f":"IF($A435=\"N/A\",Ref!$B$36,INDEX(Ranks!$1:$1048576,$A435,Y$1))","v":""},{"$f":"IF($A435=\"N/A\",Ref!$B$36,INDEX(Ranks!$1:$1048576,$A435,Z$1))","v":""},{"$f":"IF($A435=\"N/A\",Ref!$B$36,INDEX(Ranks!$1:$1048576,$A435,AA$1))","v":""},{"$f":"IF($A435=\"N/A\",Ref!$B$36,INDEX(Ranks!$1:$1048576,$A435,AB$1))","v":""},{"$f":"IF($A435=\"N/A\",Ref!$B$36,INDEX(Ranks!$1:$1048576,$A435,AC$1))","v":""},{"$f":"IF($A435=\"N/A\",Ref!$B$36,INDEX(Ranks!$1:$1048576,$A435,AD$1))","v":""},{"$f":"IF($A435=\"N/A\",Ref!$B$36,INDEX(Ranks!$1:$1048576,$A435,AE$1))","v":""},{"$f":"IF($A435=\"N/A\",Ref!$B$36,INDEX(Ranks!$1:$1048576,$A435,AF$1))","v":""},{"$f":"IF($A435=\"N/A\",Ref!$B$36,INDEX(Ranks!$1:$1048576,$A435,AG$1))","v":""},{"$f":"IF($A435=\"N/A\",Ref!$B$36,INDEX(Ranks!$1:$1048576,$A435,AH$1))","v":""},{"$f":"IF($A435=\"N/A\",Ref!$B$36,INDEX(Ranks!$1:$1048576,$A435,AI$1))","v":""},{"$f":"IF($A435=\"N/A\",Ref!$B$36,INDEX(Ranks!$1:$1048576,$A435,AJ$1))","v":""},{"$f":"IF($A435=\"N/A\",Ref!$B$36,INDEX(Ranks!$1:$1048576,$A435,AK$1))","v":""},{"$f":"IF($A435=\"N/A\",Ref!$B$36,INDEX(Ranks!$1:$1048576,$A435,AL$1))","v":""},{"$f":"IF($A435=\"N/A\",Ref!$B$36,INDEX(Ranks!$1:$1048576,$A435,AM$1))","v":""},{"$f":"IF($A435=\"N/A\",Ref!$B$36,INDEX(Ranks!$1:$1048576,$A435,AN$1))","v":""},{"$f":"IF($A435=\"N/A\",Ref!$B$36,INDEX(Ranks!$1:$1048576,$A435,AO$1))","v":""},{"$f":"IF($A435=\"N/A\",Ref!$B$36,INDEX(Ranks!$1:$1048576,$A435,AP$1))","v":""},{"$f":"IF($A435=\"N/A\",Ref!$B$36,INDEX(Ranks!$1:$1048576,$A435,AQ$1))","v":""},{"$f":"IF($A435=\"N/A\",Ref!$B$36,INDEX(Ranks!$1:$1048576,$A435,AR$1))","v":""},{"$f":"IF($A435=\"N/A\",Ref!$B$36,INDEX(Ranks!$1:$1048576,$A435,AS$1))","v":""},{"$f":"IF($A435=\"N/A\",Ref!$B$36,INDEX(Ranks!$1:$1048576,$A435,AT$1))","v":""},{"$f":"IF($A435=\"N/A\",Ref!$B$36,INDEX(Ranks!$1:$1048576,$A435,AU$1))","v":""},{"$f":"IF($A435=\"N/A\",Ref!$B$36,INDEX(Ranks!$1:$1048576,$A435,AV$1))","v":""},{"$f":"IF($A435=\"N/A\",Ref!$B$36,INDEX(Ranks!$1:$1048576,$A435,AW$1))","v":""},{"$f":"IF($A435=\"N/A\",Ref!$B$36,INDEX(Ranks!$1:$1048576,$A435,AX$1))","v":""},{"$f":"IF($A435=\"N/A\",Ref!$B$36,INDEX(Ranks!$1:$1048576,$A435,AY$1))","v":""},{"$f":"IF($A435=\"N/A\",Ref!$B$36,INDEX(Ranks!$1:$1048576,$A435,AZ$1))","v":""},{"$f":"IF($A435=\"N/A\",Ref!$B$36,INDEX(Ranks!$1:$1048576,$A435,BA$1))","v":""},{"$f":"IF($A435=\"N/A\",Ref!$B$36,INDEX(Ranks!$1:$1048576,$A435,BB$1))","v":""},{"$f":"IF($A435=\"N/A\",Ref!$B$36,INDEX(Ranks!$1:$1048576,$A435,BC$1))","v":""},{"$f":"IF($A435=\"N/A\",Ref!$B$36,INDEX(Ranks!$1:$1048576,$A435,BD$1))","v":""},{"$f":"IF($A435=\"N/A\",Ref!$B$36,INDEX(Ranks!$1:$1048576,$A435,BE$1))","v":""},{"$f":"IF($A435=\"N/A\",Ref!$B$36,INDEX(Ranks!$1:$1048576,$A435,BF$1))","v":""},{"$f":"IF($A435=\"N/A\",Ref!$B$36,INDEX(Ranks!$1:$1048576,$A435,BG$1))","v":""},{"$f":"IF($A435=\"N/A\",Ref!$B$36,INDEX(Ranks!$1:$1048576,$A435,BH$1))","v":""},{"$f":"IF($A435=\"N/A\",Ref!$B$36,INDEX(Ranks!$1:$1048576,$A435,BI$1))","v":""},{"$f":"IF($A435=\"N/A\",Ref!$B$36,INDEX(Ranks!$1:$1048576,$A435,BJ$1))","v":""},{"$f":"IF($A435=\"N/A\",Ref!$B$36,INDEX(Ranks!$1:$1048576,$A435,BK$1))","v":""},{"$f":"IF($A435=\"N/A\",Ref!$B$36,INDEX(Ranks!$1:$1048576,$A435,BL$1))","v":""},{"$f":"IF($A435=\"N/A\",Ref!$B$36,INDEX(Ranks!$1:$1048576,$A435,BM$1))","v":""},{"$f":"IF($A435=\"N/A\",Ref!$B$36,INDEX(Ranks!$1:$1048576,$A435,BN$1))","v":""},{"$f":"IF($A435=\"N/A\",Ref!$B$36,INDEX(Ranks!$1:$1048576,$A435,BO$1))","v":""},{"$f":"IF($A435=\"N/A\",Ref!$B$36,INDEX(Ranks!$1:$1048576,$A435,BP$1))","v":""},{"$f":"IF($A435=\"N/A\",Ref!$B$36,INDEX(Ranks!$1:$1048576,$A435,BQ$1))","v":""},{"$f":"IF($A435=\"N/A\",Ref!$B$36,INDEX(Ranks!$1:$1048576,$A435,BR$1))","v":""},{"$f":"IF($A435=\"N/A\",Ref!$B$36,INDEX(Ranks!$1:$1048576,$A435,BS$1))","v":""},{"$f":"IF($A435=\"N/A\",Ref!$B$36,INDEX(Ranks!$1:$1048576,$A435,BT$1))","v":""},{"$f":"IF($A435=\"N/A\",Ref!$B$36,INDEX(Ranks!$1:$1048576,$A435,BU$1))","v":""},{"$f":"IF($A435=\"N/A\",Ref!$B$36,INDEX(Ranks!$1:$1048576,$A435,BV$1))","v":""},{"$f":"IF($A435=\"N/A\",Ref!$B$36,INDEX(Ranks!$1:$1048576,$A435,BW$1))","v":""},{"$f":"IF($A435=\"N/A\",Ref!$B$36,INDEX(Ranks!$1:$1048576,$A435,BX$1))","v":""},{"$f":"IF($A435=\"N/A\",Ref!$B$36,INDEX(Ranks!$1:$1048576,$A435,BY$1))","v":""},{"$f":"IF($A435=\"N/A\",Ref!$B$36,INDEX(Ranks!$1:$1048576,$A435,BZ$1))","v":""},{"$f":"IF($A435=\"N/A\",Ref!$B$36,INDEX(Ranks!$1:$1048576,$A435,CA$1))","v":""},{"$f":"IF($A435=\"N/A\",Ref!$B$36,INDEX(Ranks!$1:$1048576,$A435,CB$1))","v":""},{"$f":"IF($A435=\"N/A\",Ref!$B$36,INDEX(Ranks!$1:$1048576,$A435,CC$1))","v":""},{"$f":"IF($A435=\"N/A\",Ref!$B$36,INDEX(Ranks!$1:$1048576,$A435,CD$1))","v":""},{"$f":"IF($A435=\"N/A\",Ref!$B$36,INDEX(Ranks!$1:$1048576,$A435,CE$1))","v":""},{"$f":"IF($A435=\"N/A\",Ref!$B$36,INDEX(Ranks!$1:$1048576,$A435,CF$1))","v":""},{"$f":"IF($A435=\"N/A\",Ref!$B$36,INDEX(Ranks!$1:$1048576,$A435,CG$1))","v":""},{"$f":"IF($A435=\"N/A\",Ref!$B$36,INDEX(Ranks!$1:$1048576,$A435,CH$1))","v":""},{"$f":"IF($A435=\"N/A\",Ref!$B$36,INDEX(Ranks!$1:$1048576,$A435,CI$1))","v":""},{"$f":"IF($A435=\"N/A\",Ref!$B$36,INDEX(Ranks!$1:$1048576,$A435,CJ$1))","v":""},{"$f":"IF($A435=\"N/A\",Ref!$B$36,INDEX(Ranks!$1:$1048576,$A435,CK$1))","v":""},{"$f":"IF($A435=\"N/A\",Ref!$B$36,INDEX(Ranks!$1:$1048576,$A435,CL$1))","v":""},{"$f":"IF($A435=\"N/A\",Ref!$B$36,INDEX(Ranks!$1:$1048576,$A435,CM$1))","v":""},{"$f":"IF($A435=\"N/A\",Ref!$B$36,INDEX(Ranks!$1:$1048576,$A435,CN$1))","v":""},{"$f":"IF($A435=\"N/A\",Ref!$B$36,INDEX(Ranks!$1:$1048576,$A435,CO$1))","v":""},{"$f":"IF($A435=\"N/A\",Ref!$B$36,INDEX(Ranks!$1:$1048576,$A435,CP$1))","v":""},{"$f":"IF($A435=\"N/A\",Ref!$B$36,INDEX(Ranks!$1:$1048576,$A435,CQ$1))","v":""},{"$f":"IF($A435=\"N/A\",Ref!$B$36,INDEX(Ranks!$1:$1048576,$A435,CR$1))","v":""},{"$f":"IF($A435=\"N/A\",Ref!$B$36,INDEX(Ranks!$1:$1048576,$A435,CS$1))","v":""},{"$f":"IF($A435=\"N/A\",Ref!$B$36,INDEX(Ranks!$1:$1048576,$A435,CT$1))","v":""},{"$f":"IF($A435=\"N/A\",Ref!$B$36,INDEX(Ranks!$1:$1048576,$A435,CU$1))","v":""},{"$f":"IF($A435=\"N/A\",Ref!$B$36,INDEX(Ranks!$1:$1048576,$A435,CV$1))","v":""},{"$f":"IF($A435=\"N/A\",Ref!$B$36,INDEX(Ranks!$1:$1048576,$A435,CW$1))","v":""},{"$f":"IF($A435=\"N/A\",Ref!$B$36,INDEX(Ranks!$1:$1048576,$A435,CX$1))","v":""},{"$f":"IF($A435=\"N/A\",Ref!$B$36,INDEX(Ranks!$1:$1048576,$A435,CY$1))","v":""},{"$f":"IF($A435=\"N/A\",Ref!$B$36,INDEX(Ranks!$1:$1048576,$A435,CZ$1))","v":""},{"$f":"IF($A435=\"N/A\",Ref!$B$36,INDEX(Ranks!$1:$1048576,$A435,DA$1))","v":""},{"$f":"IF($A435=\"N/A\",Ref!$B$36,INDEX(Ranks!$1:$1048576,$A435,DB$1))","v":""},{"$f":"IF($A435=\"N/A\",Ref!$B$36,INDEX(Ranks!$1:$1048576,$A435,DC$1))","v":""},{"$f":"IF($A435=\"N/A\",Ref!$B$36,INDEX(Ranks!$1:$1048576,$A435,DD$1))","v":""},{"$f":"IF($A435=\"N/A\",Ref!$B$36,INDEX(Ranks!$1:$1048576,$A435,DE$1))","v":""},{"$f":"IF($A435=\"N/A\",Ref!$B$36,INDEX(Ranks!$1:$1048576,$A435,DF$1))","v":""},{"$f":"IF($A435=\"N/A\",Ref!$B$36,INDEX(Ranks!$1:$1048576,$A435,DG$1))","v":""},{"$f":"IF($A435=\"N/A\",Ref!$B$36,INDEX(Ranks!$1:$1048576,$A435,DH$1))","v":""},{"$f":"IF($A435=\"N/A\",Ref!$B$36,INDEX(Ranks!$1:$1048576,$A435,DI$1))","v":""},{"$f":"IF($A435=\"N/A\",Ref!$B$36,INDEX(Ranks!$1:$1048576,$A435,DJ$1))","v":""},{"$f":"IF($A435=\"N/A\",Ref!$B$36,INDEX(Ranks!$1:$1048576,$A435,DK$1))","v":""},{"$f":"IF($A435=\"N/A\",Ref!$B$36,INDEX(Ranks!$1:$1048576,$A435,DL$1))","v":""},{"$f":"IF($A435=\"N/A\",Ref!$B$36,INDEX(Ranks!$1:$1048576,$A435,DM$1))","v":""},{"$f":"IF($A435=\"N/A\",Ref!$B$36,INDEX(Ranks!$1:$1048576,$A435,DN$1))","v":""},{"$f":"IF($A435=\"N/A\",Ref!$B$36,INDEX(Ranks!$1:$1048576,$A435,DO$1))","v":""},{"$f":"IF($A435=\"N/A\",Ref!$B$36,INDEX(Ranks!$1:$1048576,$A435,DP$1))","v":""},{"$f":"IF($A435=\"N/A\",Ref!$B$36,INDEX(Ranks!$1:$1048576,$A435,DQ$1))","v":""},{"$f":"IF($A435=\"N/A\",Ref!$B$36,INDEX(Ranks!$1:$1048576,$A435,DR$1))","v":""},{"$f":"IF($A435=\"N/A\",Ref!$B$36,INDEX(Ranks!$1:$1048576,$A435,DS$1))","v":""},{"$f":"IF($A435=\"N/A\",Ref!$B$36,INDEX(Ranks!$1:$1048576,$A435,DT$1))","v":""},{"$f":"IF($A435=\"N/A\",Ref!$B$36,INDEX(Ranks!$1:$1048576,$A435,DU$1))","v":""},{"$f":"IF($A435=\"N/A\",Ref!$B$36,INDEX(Ranks!$1:$1048576,$A435,DV$1))","v":""},{"$f":"IF($A435=\"N/A\",Ref!$B$36,INDEX(Ranks!$1:$1048576,$A435,DW$1))","v":""},{"$f":"IF($A435=\"N/A\",Ref!$B$36,INDEX(Ranks!$1:$1048576,$A435,DX$1))","v":""},{"$f":"IF($A435=\"N/A\",Ref!$B$36,INDEX(Ranks!$1:$1048576,$A435,DY$1))","v":""},{"$f":"IF($A435=\"N/A\",Ref!$B$36,INDEX(Ranks!$1:$1048576,$A435,DZ$1))","v":""},{"$f":"IF($A435=\"N/A\",Ref!$B$36,INDEX(Ranks!$1:$1048576,$A435,EA$1))","v":""},{"$f":"IF($A435=\"N/A\",Ref!$B$36,INDEX(Ranks!$1:$1048576,$A435,EB$1))","v":""}]
[{"$f":"IFERROR(MATCH('Portfolio Page'!L436,Ranks!L:L,0),\"N/A\")","v":"N/A"},null,{"$f":"IF($A436=\"N/A\",\"\",INDEX(Ranks!$1:$1048576,$A436,C$1))","v":""},{"$f":"IF($A436=\"N/A\",Ref!$B$36,INDEX(Ranks!$1:$1048576,$A436,D$1))","v":""},{"$f":"IF($A436=\"N/A\",Ref!$B$36,INDEX(Ranks!$1:$1048576,$A436,E$1))","v":""},{"$f":"IF($A436=\"N/A\",\"\",INDEX(Ranks!$1:$1048576,$A436,F$1))","v":""},{"$f":"IF($A436=\"N/A\",\"\",INDEX(Ranks!$1:$1048576,$A436,G$1))","v":""},{"$f":"IF($A436=\"N/A\",\"\",INDEX(Ranks!$1:$1048576,$A436,H$1))","v":""},{"$f":"IF($A436=\"N/A\",\"\",INDEX(Ranks!$1:$1048576,$A436,I$1))","v":""},{"$f":"IF($A436=\"N/A\",\"\",INDEX(Ranks!$1:$1048576,$A436,J$1))","v":""},{"$f":"IF($A436=\"N/A\",\"\",INDEX(Ranks!$1:$1048576,$A436,K$1))","v":""},null,{"$f":"IF($A436=\"N/A\",Ref!$B$36,INDEX(Ranks!$1:$1048576,$A436,M$1))","v":""},{"$f":"IF($A436=\"N/A\",Ref!$B$36,INDEX(Ranks!$1:$1048576,$A436,N$1))","v":""},{"$f":"IF($A436=\"N/A\",Ref!$B$36,INDEX(Ranks!$1:$1048576,$A436,O$1))","v":""},{"$f":"IF($A436=\"N/A\",Ref!$B$36,INDEX(Ranks!$1:$1048576,$A436,P$1))","v":""},{"$f":"IF($A436=\"N/A\",Ref!$B$36,INDEX(Ranks!$1:$1048576,$A436,Q$1))","v":""},{"$f":"IF($A436=\"N/A\",Ref!$B$36,INDEX(Ranks!$1:$1048576,$A436,R$1))","v":""},{"$f":"IF($A436=\"N/A\",Ref!$B$36,INDEX(Ranks!$1:$1048576,$A436,S$1))","v":""},{"$f":"IF($A436=\"N/A\",Ref!$B$36,INDEX(Ranks!$1:$1048576,$A436,T$1))","v":""},{"$f":"IF($A436=\"N/A\",Ref!$B$36,INDEX(Ranks!$1:$1048576,$A436,U$1))","v":""},{"$f":"IF($A436=\"N/A\",Ref!$B$36,INDEX(Ranks!$1:$1048576,$A436,V$1))","v":""},{"$f":"IF($A436=\"N/A\",Ref!$B$36,INDEX(Ranks!$1:$1048576,$A436,W$1))","v":""},{"$f":"IF($A436=\"N/A\",Ref!$B$36,INDEX(Ranks!$1:$1048576,$A436,X$1))","v":""},{"$f":"IF($A436=\"N/A\",Ref!$B$36,INDEX(Ranks!$1:$1048576,$A436,Y$1))","v":""},{"$f":"IF($A436=\"N/A\",Ref!$B$36,INDEX(Ranks!$1:$1048576,$A436,Z$1))","v":""},{"$f":"IF($A436=\"N/A\",Ref!$B$36,INDEX(Ranks!$1:$1048576,$A436,AA$1))","v":""},{"$f":"IF($A436=\"N/A\",Ref!$B$36,INDEX(Ranks!$1:$1048576,$A436,AB$1))","v":""},{"$f":"IF($A436=\"N/A\",Ref!$B$36,INDEX(Ranks!$1:$1048576,$A436,AC$1))","v":""},{"$f":"IF($A436=\"N/A\",Ref!$B$36,INDEX(Ranks!$1:$1048576,$A436,AD$1))","v":""},{"$f":"IF($A436=\"N/A\",Ref!$B$36,INDEX(Ranks!$1:$1048576,$A436,AE$1))","v":""},{"$f":"IF($A436=\"N/A\",Ref!$B$36,INDEX(Ranks!$1:$1048576,$A436,AF$1))","v":""},{"$f":"IF($A436=\"N/A\",Ref!$B$36,INDEX(Ranks!$1:$1048576,$A436,AG$1))","v":""},{"$f":"IF($A436=\"N/A\",Ref!$B$36,INDEX(Ranks!$1:$1048576,$A436,AH$1))","v":""},{"$f":"IF($A436=\"N/A\",Ref!$B$36,INDEX(Ranks!$1:$1048576,$A436,AI$1))","v":""},{"$f":"IF($A436=\"N/A\",Ref!$B$36,INDEX(Ranks!$1:$1048576,$A436,AJ$1))","v":""},{"$f":"IF($A436=\"N/A\",Ref!$B$36,INDEX(Ranks!$1:$1048576,$A436,AK$1))","v":""},{"$f":"IF($A436=\"N/A\",Ref!$B$36,INDEX(Ranks!$1:$1048576,$A436,AL$1))","v":""},{"$f":"IF($A436=\"N/A\",Ref!$B$36,INDEX(Ranks!$1:$1048576,$A436,AM$1))","v":""},{"$f":"IF($A436=\"N/A\",Ref!$B$36,INDEX(Ranks!$1:$1048576,$A436,AN$1))","v":""},{"$f":"IF($A436=\"N/A\",Ref!$B$36,INDEX(Ranks!$1:$1048576,$A436,AO$1))","v":""},{"$f":"IF($A436=\"N/A\",Ref!$B$36,INDEX(Ranks!$1:$1048576,$A436,AP$1))","v":""},{"$f":"IF($A436=\"N/A\",Ref!$B$36,INDEX(Ranks!$1:$1048576,$A436,AQ$1))","v":""},{"$f":"IF($A436=\"N/A\",Ref!$B$36,INDEX(Ranks!$1:$1048576,$A436,AR$1))","v":""},{"$f":"IF($A436=\"N/A\",Ref!$B$36,INDEX(Ranks!$1:$1048576,$A436,AS$1))","v":""},{"$f":"IF($A436=\"N/A\",Ref!$B$36,INDEX(Ranks!$1:$1048576,$A436,AT$1))","v":""},{"$f":"IF($A436=\"N/A\",Ref!$B$36,INDEX(Ranks!$1:$1048576,$A436,AU$1))","v":""},{"$f":"IF($A436=\"N/A\",Ref!$B$36,INDEX(Ranks!$1:$1048576,$A436,AV$1))","v":""},{"$f":"IF($A436=\"N/A\",Ref!$B$36,INDEX(Ranks!$1:$1048576,$A436,AW$1))","v":""},{"$f":"IF($A436=\"N/A\",Ref!$B$36,INDEX(Ranks!$1:$1048576,$A436,AX$1))","v":""},{"$f":"IF($A436=\"N/A\",Ref!$B$36,INDEX(Ranks!$1:$1048576,$A436,AY$1))","v":""},{"$f":"IF($A436=\"N/A\",Ref!$B$36,INDEX(Ranks!$1:$1048576,$A436,AZ$1))","v":""},{"$f":"IF($A436=\"N/A\",Ref!$B$36,INDEX(Ranks!$1:$1048576,$A436,BA$1))","v":""},{"$f":"IF($A436=\"N/A\",Ref!$B$36,INDEX(Ranks!$1:$1048576,$A436,BB$1))","v":""},{"$f":"IF($A436=\"N/A\",Ref!$B$36,INDEX(Ranks!$1:$1048576,$A436,BC$1))","v":""},{"$f":"IF($A436=\"N/A\",Ref!$B$36,INDEX(Ranks!$1:$1048576,$A436,BD$1))","v":""},{"$f":"IF($A436=\"N/A\",Ref!$B$36,INDEX(Ranks!$1:$1048576,$A436,BE$1))","v":""},{"$f":"IF($A436=\"N/A\",Ref!$B$36,INDEX(Ranks!$1:$1048576,$A436,BF$1))","v":""},{"$f":"IF($A436=\"N/A\",Ref!$B$36,INDEX(Ranks!$1:$1048576,$A436,BG$1))","v":""},{"$f":"IF($A436=\"N/A\",Ref!$B$36,INDEX(Ranks!$1:$1048576,$A436,BH$1))","v":""},{"$f":"IF($A436=\"N/A\",Ref!$B$36,INDEX(Ranks!$1:$1048576,$A436,BI$1))","v":""},{"$f":"IF($A436=\"N/A\",Ref!$B$36,INDEX(Ranks!$1:$1048576,$A436,BJ$1))","v":""},{"$f":"IF($A436=\"N/A\",Ref!$B$36,INDEX(Ranks!$1:$1048576,$A436,BK$1))","v":""},{"$f":"IF($A436=\"N/A\",Ref!$B$36,INDEX(Ranks!$1:$1048576,$A436,BL$1))","v":""},{"$f":"IF($A436=\"N/A\",Ref!$B$36,INDEX(Ranks!$1:$1048576,$A436,BM$1))","v":""},{"$f":"IF($A436=\"N/A\",Ref!$B$36,INDEX(Ranks!$1:$1048576,$A436,BN$1))","v":""},{"$f":"IF($A436=\"N/A\",Ref!$B$36,INDEX(Ranks!$1:$1048576,$A436,BO$1))","v":""},{"$f":"IF($A436=\"N/A\",Ref!$B$36,INDEX(Ranks!$1:$1048576,$A436,BP$1))","v":""},{"$f":"IF($A436=\"N/A\",Ref!$B$36,INDEX(Ranks!$1:$1048576,$A436,BQ$1))","v":""},{"$f":"IF($A436=\"N/A\",Ref!$B$36,INDEX(Ranks!$1:$1048576,$A436,BR$1))","v":""},{"$f":"IF($A436=\"N/A\",Ref!$B$36,INDEX(Ranks!$1:$1048576,$A436,BS$1))","v":""},{"$f":"IF($A436=\"N/A\",Ref!$B$36,INDEX(Ranks!$1:$1048576,$A436,BT$1))","v":""},{"$f":"IF($A436=\"N/A\",Ref!$B$36,INDEX(Ranks!$1:$1048576,$A436,BU$1))","v":""},{"$f":"IF($A436=\"N/A\",Ref!$B$36,INDEX(Ranks!$1:$1048576,$A436,BV$1))","v":""},{"$f":"IF($A436=\"N/A\",Ref!$B$36,INDEX(Ranks!$1:$1048576,$A436,BW$1))","v":""},{"$f":"IF($A436=\"N/A\",Ref!$B$36,INDEX(Ranks!$1:$1048576,$A436,BX$1))","v":""},{"$f":"IF($A436=\"N/A\",Ref!$B$36,INDEX(Ranks!$1:$1048576,$A436,BY$1))","v":""},{"$f":"IF($A436=\"N/A\",Ref!$B$36,INDEX(Ranks!$1:$1048576,$A436,BZ$1))","v":""},{"$f":"IF($A436=\"N/A\",Ref!$B$36,INDEX(Ranks!$1:$1048576,$A436,CA$1))","v":""},{"$f":"IF($A436=\"N/A\",Ref!$B$36,INDEX(Ranks!$1:$1048576,$A436,CB$1))","v":""},{"$f":"IF($A436=\"N/A\",Ref!$B$36,INDEX(Ranks!$1:$1048576,$A436,CC$1))","v":""},{"$f":"IF($A436=\"N/A\",Ref!$B$36,INDEX(Ranks!$1:$1048576,$A436,CD$1))","v":""},{"$f":"IF($A436=\"N/A\",Ref!$B$36,INDEX(Ranks!$1:$1048576,$A436,CE$1))","v":""},{"$f":"IF($A436=\"N/A\",Ref!$B$36,INDEX(Ranks!$1:$1048576,$A436,CF$1))","v":""},{"$f":"IF($A436=\"N/A\",Ref!$B$36,INDEX(Ranks!$1:$1048576,$A436,CG$1))","v":""},{"$f":"IF($A436=\"N/A\",Ref!$B$36,INDEX(Ranks!$1:$1048576,$A436,CH$1))","v":""},{"$f":"IF($A436=\"N/A\",Ref!$B$36,INDEX(Ranks!$1:$1048576,$A436,CI$1))","v":""},{"$f":"IF($A436=\"N/A\",Ref!$B$36,INDEX(Ranks!$1:$1048576,$A436,CJ$1))","v":""},{"$f":"IF($A436=\"N/A\",Ref!$B$36,INDEX(Ranks!$1:$1048576,$A436,CK$1))","v":""},{"$f":"IF($A436=\"N/A\",Ref!$B$36,INDEX(Ranks!$1:$1048576,$A436,CL$1))","v":""},{"$f":"IF($A436=\"N/A\",Ref!$B$36,INDEX(Ranks!$1:$1048576,$A436,CM$1))","v":""},{"$f":"IF($A436=\"N/A\",Ref!$B$36,INDEX(Ranks!$1:$1048576,$A436,CN$1))","v":""},{"$f":"IF($A436=\"N/A\",Ref!$B$36,INDEX(Ranks!$1:$1048576,$A436,CO$1))","v":""},{"$f":"IF($A436=\"N/A\",Ref!$B$36,INDEX(Ranks!$1:$1048576,$A436,CP$1))","v":""},{"$f":"IF($A436=\"N/A\",Ref!$B$36,INDEX(Ranks!$1:$1048576,$A436,CQ$1))","v":""},{"$f":"IF($A436=\"N/A\",Ref!$B$36,INDEX(Ranks!$1:$1048576,$A436,CR$1))","v":""},{"$f":"IF($A436=\"N/A\",Ref!$B$36,INDEX(Ranks!$1:$1048576,$A436,CS$1))","v":""},{"$f":"IF($A436=\"N/A\",Ref!$B$36,INDEX(Ranks!$1:$1048576,$A436,CT$1))","v":""},{"$f":"IF($A436=\"N/A\",Ref!$B$36,INDEX(Ranks!$1:$1048576,$A436,CU$1))","v":""},{"$f":"IF($A436=\"N/A\",Ref!$B$36,INDEX(Ranks!$1:$1048576,$A436,CV$1))","v":""},{"$f":"IF($A436=\"N/A\",Ref!$B$36,INDEX(Ranks!$1:$1048576,$A436,CW$1))","v":""},{"$f":"IF($A436=\"N/A\",Ref!$B$36,INDEX(Ranks!$1:$1048576,$A436,CX$1))","v":""},{"$f":"IF($A436=\"N/A\",Ref!$B$36,INDEX(Ranks!$1:$1048576,$A436,CY$1))","v":""},{"$f":"IF($A436=\"N/A\",Ref!$B$36,INDEX(Ranks!$1:$1048576,$A436,CZ$1))","v":""},{"$f":"IF($A436=\"N/A\",Ref!$B$36,INDEX(Ranks!$1:$1048576,$A436,DA$1))","v":""},{"$f":"IF($A436=\"N/A\",Ref!$B$36,INDEX(Ranks!$1:$1048576,$A436,DB$1))","v":""},{"$f":"IF($A436=\"N/A\",Ref!$B$36,INDEX(Ranks!$1:$1048576,$A436,DC$1))","v":""},{"$f":"IF($A436=\"N/A\",Ref!$B$36,INDEX(Ranks!$1:$1048576,$A436,DD$1))","v":""},{"$f":"IF($A436=\"N/A\",Ref!$B$36,INDEX(Ranks!$1:$1048576,$A436,DE$1))","v":""},{"$f":"IF($A436=\"N/A\",Ref!$B$36,INDEX(Ranks!$1:$1048576,$A436,DF$1))","v":""},{"$f":"IF($A436=\"N/A\",Ref!$B$36,INDEX(Ranks!$1:$1048576,$A436,DG$1))","v":""},{"$f":"IF($A436=\"N/A\",Ref!$B$36,INDEX(Ranks!$1:$1048576,$A436,DH$1))","v":""},{"$f":"IF($A436=\"N/A\",Ref!$B$36,INDEX(Ranks!$1:$1048576,$A436,DI$1))","v":""},{"$f":"IF($A436=\"N/A\",Ref!$B$36,INDEX(Ranks!$1:$1048576,$A436,DJ$1))","v":""},{"$f":"IF($A436=\"N/A\",Ref!$B$36,INDEX(Ranks!$1:$1048576,$A436,DK$1))","v":""},{"$f":"IF($A436=\"N/A\",Ref!$B$36,INDEX(Ranks!$1:$1048576,$A436,DL$1))","v":""},{"$f":"IF($A436=\"N/A\",Ref!$B$36,INDEX(Ranks!$1:$1048576,$A436,DM$1))","v":""},{"$f":"IF($A436=\"N/A\",Ref!$B$36,INDEX(Ranks!$1:$1048576,$A436,DN$1))","v":""},{"$f":"IF($A436=\"N/A\",Ref!$B$36,INDEX(Ranks!$1:$1048576,$A436,DO$1))","v":""},{"$f":"IF($A436=\"N/A\",Ref!$B$36,INDEX(Ranks!$1:$1048576,$A436,DP$1))","v":""},{"$f":"IF($A436=\"N/A\",Ref!$B$36,INDEX(Ranks!$1:$1048576,$A436,DQ$1))","v":""},{"$f":"IF($A436=\"N/A\",Ref!$B$36,INDEX(Ranks!$1:$1048576,$A436,DR$1))","v":""},{"$f":"IF($A436=\"N/A\",Ref!$B$36,INDEX(Ranks!$1:$1048576,$A436,DS$1))","v":""},{"$f":"IF($A436=\"N/A\",Ref!$B$36,INDEX(Ranks!$1:$1048576,$A436,DT$1))","v":""},{"$f":"IF($A436=\"N/A\",Ref!$B$36,INDEX(Ranks!$1:$1048576,$A436,DU$1))","v":""},{"$f":"IF($A436=\"N/A\",Ref!$B$36,INDEX(Ranks!$1:$1048576,$A436,DV$1))","v":""},{"$f":"IF($A436=\"N/A\",Ref!$B$36,INDEX(Ranks!$1:$1048576,$A436,DW$1))","v":""},{"$f":"IF($A436=\"N/A\",Ref!$B$36,INDEX(Ranks!$1:$1048576,$A436,DX$1))","v":""},{"$f":"IF($A436=\"N/A\",Ref!$B$36,INDEX(Ranks!$1:$1048576,$A436,DY$1))","v":""},{"$f":"IF($A436=\"N/A\",Ref!$B$36,INDEX(Ranks!$1:$1048576,$A436,DZ$1))","v":""},{"$f":"IF($A436=\"N/A\",Ref!$B$36,INDEX(Ranks!$1:$1048576,$A436,EA$1))","v":""},{"$f":"IF($A436=\"N/A\",Ref!$B$36,INDEX(Ranks!$1:$1048576,$A436,EB$1))","v":""}]
[{"$f":"IFERROR(MATCH('Portfolio Page'!L437,Ranks!L:L,0),\"N/A\")","v":"N/A"},null,{"$f":"IF($A437=\"N/A\",\"\",INDEX(Ranks!$1:$1048576,$A437,C$1))","v":""},{"$f":"IF($A437=\"N/A\",Ref!$B$36,INDEX(Ranks!$1:$1048576,$A437,D$1))","v":""},{"$f":"IF($A437=\"N/A\",Ref!$B$36,INDEX(Ranks!$1:$1048576,$A437,E$1))","v":""},{"$f":"IF($A437=\"N/A\",\"\",INDEX(Ranks!$1:$1048576,$A437,F$1))","v":""},{"$f":"IF($A437=\"N/A\",\"\",INDEX(Ranks!$1:$1048576,$A437,G$1))","v":""},{"$f":"IF($A437=\"N/A\",\"\",INDEX(Ranks!$1:$1048576,$A437,H$1))","v":""},{"$f":"IF($A437=\"N/A\",\"\",INDEX(Ranks!$1:$1048576,$A437,I$1))","v":""},{"$f":"IF($A437=\"N/A\",\"\",INDEX(Ranks!$1:$1048576,$A437,J$1))","v":""},{"$f":"IF($A437=\"N/A\",\"\",INDEX(Ranks!$1:$1048576,$A437,K$1))","v":""},null,{"$f":"IF($A437=\"N/A\",Ref!$B$36,INDEX(Ranks!$1:$1048576,$A437,M$1))","v":""},{"$f":"IF($A437=\"N/A\",Ref!$B$36,INDEX(Ranks!$1:$1048576,$A437,N$1))","v":""},{"$f":"IF($A437=\"N/A\",Ref!$B$36,INDEX(Ranks!$1:$1048576,$A437,O$1))","v":""},{"$f":"IF($A437=\"N/A\",Ref!$B$36,INDEX(Ranks!$1:$1048576,$A437,P$1))","v":""},{"$f":"IF($A437=\"N/A\",Ref!$B$36,INDEX(Ranks!$1:$1048576,$A437,Q$1))","v":""},{"$f":"IF($A437=\"N/A\",Ref!$B$36,INDEX(Ranks!$1:$1048576,$A437,R$1))","v":""},{"$f":"IF($A437=\"N/A\",Ref!$B$36,INDEX(Ranks!$1:$1048576,$A437,S$1))","v":""},{"$f":"IF($A437=\"N/A\",Ref!$B$36,INDEX(Ranks!$1:$1048576,$A437,T$1))","v":""},{"$f":"IF($A437=\"N/A\",Ref!$B$36,INDEX(Ranks!$1:$1048576,$A437,U$1))","v":""},{"$f":"IF($A437=\"N/A\",Ref!$B$36,INDEX(Ranks!$1:$1048576,$A437,V$1))","v":""},{"$f":"IF($A437=\"N/A\",Ref!$B$36,INDEX(Ranks!$1:$1048576,$A437,W$1))","v":""},{"$f":"IF($A437=\"N/A\",Ref!$B$36,INDEX(Ranks!$1:$1048576,$A437,X$1))","v":""},{"$f":"IF($A437=\"N/A\",Ref!$B$36,INDEX(Ranks!$1:$1048576,$A437,Y$1))","v":""},{"$f":"IF($A437=\"N/A\",Ref!$B$36,INDEX(Ranks!$1:$1048576,$A437,Z$1))","v":""},{"$f":"IF($A437=\"N/A\",Ref!$B$36,INDEX(Ranks!$1:$1048576,$A437,AA$1))","v":""},{"$f":"IF($A437=\"N/A\",Ref!$B$36,INDEX(Ranks!$1:$1048576,$A437,AB$1))","v":""},{"$f":"IF($A437=\"N/A\",Ref!$B$36,INDEX(Ranks!$1:$1048576,$A437,AC$1))","v":""},{"$f":"IF($A437=\"N/A\",Ref!$B$36,INDEX(Ranks!$1:$1048576,$A437,AD$1))","v":""},{"$f":"IF($A437=\"N/A\",Ref!$B$36,INDEX(Ranks!$1:$1048576,$A437,AE$1))","v":""},{"$f":"IF($A437=\"N/A\",Ref!$B$36,INDEX(Ranks!$1:$1048576,$A437,AF$1))","v":""},{"$f":"IF($A437=\"N/A\",Ref!$B$36,INDEX(Ranks!$1:$1048576,$A437,AG$1))","v":""},{"$f":"IF($A437=\"N/A\",Ref!$B$36,INDEX(Ranks!$1:$1048576,$A437,AH$1))","v":""},{"$f":"IF($A437=\"N/A\",Ref!$B$36,INDEX(Ranks!$1:$1048576,$A437,AI$1))","v":""},{"$f":"IF($A437=\"N/A\",Ref!$B$36,INDEX(Ranks!$1:$1048576,$A437,AJ$1))","v":""},{"$f":"IF($A437=\"N/A\",Ref!$B$36,INDEX(Ranks!$1:$1048576,$A437,AK$1))","v":""},{"$f":"IF($A437=\"N/A\",Ref!$B$36,INDEX(Ranks!$1:$1048576,$A437,AL$1))","v":""},{"$f":"IF($A437=\"N/A\",Ref!$B$36,INDEX(Ranks!$1:$1048576,$A437,AM$1))","v":""},{"$f":"IF($A437=\"N/A\",Ref!$B$36,INDEX(Ranks!$1:$1048576,$A437,AN$1))","v":""},{"$f":"IF($A437=\"N/A\",Ref!$B$36,INDEX(Ranks!$1:$1048576,$A437,AO$1))","v":""},{"$f":"IF($A437=\"N/A\",Ref!$B$36,INDEX(Ranks!$1:$1048576,$A437,AP$1))","v":""},{"$f":"IF($A437=\"N/A\",Ref!$B$36,INDEX(Ranks!$1:$1048576,$A437,AQ$1))","v":""},{"$f":"IF($A437=\"N/A\",Ref!$B$36,INDEX(Ranks!$1:$1048576,$A437,AR$1))","v":""},{"$f":"IF($A437=\"N/A\",Ref!$B$36,INDEX(Ranks!$1:$1048576,$A437,AS$1))","v":""},{"$f":"IF($A437=\"N/A\",Ref!$B$36,INDEX(Ranks!$1:$1048576,$A437,AT$1))","v":""},{"$f":"IF($A437=\"N/A\",Ref!$B$36,INDEX(Ranks!$1:$1048576,$A437,AU$1))","v":""},{"$f":"IF($A437=\"N/A\",Ref!$B$36,INDEX(Ranks!$1:$1048576,$A437,AV$1))","v":""},{"$f":"IF($A437=\"N/A\",Ref!$B$36,INDEX(Ranks!$1:$1048576,$A437,AW$1))","v":""},{"$f":"IF($A437=\"N/A\",Ref!$B$36,INDEX(Ranks!$1:$1048576,$A437,AX$1))","v":""},{"$f":"IF($A437=\"N/A\",Ref!$B$36,INDEX(Ranks!$1:$1048576,$A437,AY$1))","v":""},{"$f":"IF($A437=\"N/A\",Ref!$B$36,INDEX(Ranks!$1:$1048576,$A437,AZ$1))","v":""},{"$f":"IF($A437=\"N/A\",Ref!$B$36,INDEX(Ranks!$1:$1048576,$A437,BA$1))","v":""},{"$f":"IF($A437=\"N/A\",Ref!$B$36,INDEX(Ranks!$1:$1048576,$A437,BB$1))","v":""},{"$f":"IF($A437=\"N/A\",Ref!$B$36,INDEX(Ranks!$1:$1048576,$A437,BC$1))","v":""},{"$f":"IF($A437=\"N/A\",Ref!$B$36,INDEX(Ranks!$1:$1048576,$A437,BD$1))","v":""},{"$f":"IF($A437=\"N/A\",Ref!$B$36,INDEX(Ranks!$1:$1048576,$A437,BE$1))","v":""},{"$f":"IF($A437=\"N/A\",Ref!$B$36,INDEX(Ranks!$1:$1048576,$A437,BF$1))","v":""},{"$f":"IF($A437=\"N/A\",Ref!$B$36,INDEX(Ranks!$1:$1048576,$A437,BG$1))","v":""},{"$f":"IF($A437=\"N/A\",Ref!$B$36,INDEX(Ranks!$1:$1048576,$A437,BH$1))","v":""},{"$f":"IF($A437=\"N/A\",Ref!$B$36,INDEX(Ranks!$1:$1048576,$A437,BI$1))","v":""},{"$f":"IF($A437=\"N/A\",Ref!$B$36,INDEX(Ranks!$1:$1048576,$A437,BJ$1))","v":""},{"$f":"IF($A437=\"N/A\",Ref!$B$36,INDEX(Ranks!$1:$1048576,$A437,BK$1))","v":""},{"$f":"IF($A437=\"N/A\",Ref!$B$36,INDEX(Ranks!$1:$1048576,$A437,BL$1))","v":""},{"$f":"IF($A437=\"N/A\",Ref!$B$36,INDEX(Ranks!$1:$1048576,$A437,BM$1))","v":""},{"$f":"IF($A437=\"N/A\",Ref!$B$36,INDEX(Ranks!$1:$1048576,$A437,BN$1))","v":""},{"$f":"IF($A437=\"N/A\",Ref!$B$36,INDEX(Ranks!$1:$1048576,$A437,BO$1))","v":""},{"$f":"IF($A437=\"N/A\",Ref!$B$36,INDEX(Ranks!$1:$1048576,$A437,BP$1))","v":""},{"$f":"IF($A437=\"N/A\",Ref!$B$36,INDEX(Ranks!$1:$1048576,$A437,BQ$1))","v":""},{"$f":"IF($A437=\"N/A\",Ref!$B$36,INDEX(Ranks!$1:$1048576,$A437,BR$1))","v":""},{"$f":"IF($A437=\"N/A\",Ref!$B$36,INDEX(Ranks!$1:$1048576,$A437,BS$1))","v":""},{"$f":"IF($A437=\"N/A\",Ref!$B$36,INDEX(Ranks!$1:$1048576,$A437,BT$1))","v":""},{"$f":"IF($A437=\"N/A\",Ref!$B$36,INDEX(Ranks!$1:$1048576,$A437,BU$1))","v":""},{"$f":"IF($A437=\"N/A\",Ref!$B$36,INDEX(Ranks!$1:$1048576,$A437,BV$1))","v":""},{"$f":"IF($A437=\"N/A\",Ref!$B$36,INDEX(Ranks!$1:$1048576,$A437,BW$1))","v":""},{"$f":"IF($A437=\"N/A\",Ref!$B$36,INDEX(Ranks!$1:$1048576,$A437,BX$1))","v":""},{"$f":"IF($A437=\"N/A\",Ref!$B$36,INDEX(Ranks!$1:$1048576,$A437,BY$1))","v":""},{"$f":"IF($A437=\"N/A\",Ref!$B$36,INDEX(Ranks!$1:$1048576,$A437,BZ$1))","v":""},{"$f":"IF($A437=\"N/A\",Ref!$B$36,INDEX(Ranks!$1:$1048576,$A437,CA$1))","v":""},{"$f":"IF($A437=\"N/A\",Ref!$B$36,INDEX(Ranks!$1:$1048576,$A437,CB$1))","v":""},{"$f":"IF($A437=\"N/A\",Ref!$B$36,INDEX(Ranks!$1:$1048576,$A437,CC$1))","v":""},{"$f":"IF($A437=\"N/A\",Ref!$B$36,INDEX(Ranks!$1:$1048576,$A437,CD$1))","v":""},{"$f":"IF($A437=\"N/A\",Ref!$B$36,INDEX(Ranks!$1:$1048576,$A437,CE$1))","v":""},{"$f":"IF($A437=\"N/A\",Ref!$B$36,INDEX(Ranks!$1:$1048576,$A437,CF$1))","v":""},{"$f":"IF($A437=\"N/A\",Ref!$B$36,INDEX(Ranks!$1:$1048576,$A437,CG$1))","v":""},{"$f":"IF($A437=\"N/A\",Ref!$B$36,INDEX(Ranks!$1:$1048576,$A437,CH$1))","v":""},{"$f":"IF($A437=\"N/A\",Ref!$B$36,INDEX(Ranks!$1:$1048576,$A437,CI$1))","v":""},{"$f":"IF($A437=\"N/A\",Ref!$B$36,INDEX(Ranks!$1:$1048576,$A437,CJ$1))","v":""},{"$f":"IF($A437=\"N/A\",Ref!$B$36,INDEX(Ranks!$1:$1048576,$A437,CK$1))","v":""},{"$f":"IF($A437=\"N/A\",Ref!$B$36,INDEX(Ranks!$1:$1048576,$A437,CL$1))","v":""},{"$f":"IF($A437=\"N/A\",Ref!$B$36,INDEX(Ranks!$1:$1048576,$A437,CM$1))","v":""},{"$f":"IF($A437=\"N/A\",Ref!$B$36,INDEX(Ranks!$1:$1048576,$A437,CN$1))","v":""},{"$f":"IF($A437=\"N/A\",Ref!$B$36,INDEX(Ranks!$1:$1048576,$A437,CO$1))","v":""},{"$f":"IF($A437=\"N/A\",Ref!$B$36,INDEX(Ranks!$1:$1048576,$A437,CP$1))","v":""},{"$f":"IF($A437=\"N/A\",Ref!$B$36,INDEX(Ranks!$1:$1048576,$A437,CQ$1))","v":""},{"$f":"IF($A437=\"N/A\",Ref!$B$36,INDEX(Ranks!$1:$1048576,$A437,CR$1))","v":""},{"$f":"IF($A437=\"N/A\",Ref!$B$36,INDEX(Ranks!$1:$1048576,$A437,CS$1))","v":""},{"$f":"IF($A437=\"N/A\",Ref!$B$36,INDEX(Ranks!$1:$1048576,$A437,CT$1))","v":""},{"$f":"IF($A437=\"N/A\",Ref!$B$36,INDEX(Ranks!$1:$1048576,$A437,CU$1))","v":""},{"$f":"IF($A437=\"N/A\",Ref!$B$36,INDEX(Ranks!$1:$1048576,$A437,CV$1))","v":""},{"$f":"IF($A437=\"N/A\",Ref!$B$36,INDEX(Ranks!$1:$1048576,$A437,CW$1))","v":""},{"$f":"IF($A437=\"N/A\",Ref!$B$36,INDEX(Ranks!$1:$1048576,$A437,CX$1))","v":""},{"$f":"IF($A437=\"N/A\",Ref!$B$36,INDEX(Ranks!$1:$1048576,$A437,CY$1))","v":""},{"$f":"IF($A437=\"N/A\",Ref!$B$36,INDEX(Ranks!$1:$1048576,$A437,CZ$1))","v":""},{"$f":"IF($A437=\"N/A\",Ref!$B$36,INDEX(Ranks!$1:$1048576,$A437,DA$1))","v":""},{"$f":"IF($A437=\"N/A\",Ref!$B$36,INDEX(Ranks!$1:$1048576,$A437,DB$1))","v":""},{"$f":"IF($A437=\"N/A\",Ref!$B$36,INDEX(Ranks!$1:$1048576,$A437,DC$1))","v":""},{"$f":"IF($A437=\"N/A\",Ref!$B$36,INDEX(Ranks!$1:$1048576,$A437,DD$1))","v":""},{"$f":"IF($A437=\"N/A\",Ref!$B$36,INDEX(Ranks!$1:$1048576,$A437,DE$1))","v":""},{"$f":"IF($A437=\"N/A\",Ref!$B$36,INDEX(Ranks!$1:$1048576,$A437,DF$1))","v":""},{"$f":"IF($A437=\"N/A\",Ref!$B$36,INDEX(Ranks!$1:$1048576,$A437,DG$1))","v":""},{"$f":"IF($A437=\"N/A\",Ref!$B$36,INDEX(Ranks!$1:$1048576,$A437,DH$1))","v":""},{"$f":"IF($A437=\"N/A\",Ref!$B$36,INDEX(Ranks!$1:$1048576,$A437,DI$1))","v":""},{"$f":"IF($A437=\"N/A\",Ref!$B$36,INDEX(Ranks!$1:$1048576,$A437,DJ$1))","v":""},{"$f":"IF($A437=\"N/A\",Ref!$B$36,INDEX(Ranks!$1:$1048576,$A437,DK$1))","v":""},{"$f":"IF($A437=\"N/A\",Ref!$B$36,INDEX(Ranks!$1:$1048576,$A437,DL$1))","v":""},{"$f":"IF($A437=\"N/A\",Ref!$B$36,INDEX(Ranks!$1:$1048576,$A437,DM$1))","v":""},{"$f":"IF($A437=\"N/A\",Ref!$B$36,INDEX(Ranks!$1:$1048576,$A437,DN$1))","v":""},{"$f":"IF($A437=\"N/A\",Ref!$B$36,INDEX(Ranks!$1:$1048576,$A437,DO$1))","v":""},{"$f":"IF($A437=\"N/A\",Ref!$B$36,INDEX(Ranks!$1:$1048576,$A437,DP$1))","v":""},{"$f":"IF($A437=\"N/A\",Ref!$B$36,INDEX(Ranks!$1:$1048576,$A437,DQ$1))","v":""},{"$f":"IF($A437=\"N/A\",Ref!$B$36,INDEX(Ranks!$1:$1048576,$A437,DR$1))","v":""},{"$f":"IF($A437=\"N/A\",Ref!$B$36,INDEX(Ranks!$1:$1048576,$A437,DS$1))","v":""},{"$f":"IF($A437=\"N/A\",Ref!$B$36,INDEX(Ranks!$1:$1048576,$A437,DT$1))","v":""},{"$f":"IF($A437=\"N/A\",Ref!$B$36,INDEX(Ranks!$1:$1048576,$A437,DU$1))","v":""},{"$f":"IF($A437=\"N/A\",Ref!$B$36,INDEX(Ranks!$1:$1048576,$A437,DV$1))","v":""},{"$f":"IF($A437=\"N/A\",Ref!$B$36,INDEX(Ranks!$1:$1048576,$A437,DW$1))","v":""},{"$f":"IF($A437=\"N/A\",Ref!$B$36,INDEX(Ranks!$1:$1048576,$A437,DX$1))","v":""},{"$f":"IF($A437=\"N/A\",Ref!$B$36,INDEX(Ranks!$1:$1048576,$A437,DY$1))","v":""},{"$f":"IF($A437=\"N/A\",Ref!$B$36,INDEX(Ranks!$1:$1048576,$A437,DZ$1))","v":""},{"$f":"IF($A437=\"N/A\",Ref!$B$36,INDEX(Ranks!$1:$1048576,$A437,EA$1))","v":""},{"$f":"IF($A437=\"N/A\",Ref!$B$36,INDEX(Ranks!$1:$1048576,$A437,EB$1))","v":""}]
[{"$f":"IFERROR(MATCH('Portfolio Page'!L438,Ranks!L:L,0),\"N/A\")","v":"N/A"},null,{"$f":"IF($A438=\"N/A\",\"\",INDEX(Ranks!$1:$1048576,$A438,C$1))","v":""},{"$f":"IF($A438=\"N/A\",Ref!$B$36,INDEX(Ranks!$1:$1048576,$A438,D$1))","v":""},{"$f":"IF($A438=\"N/A\",Ref!$B$36,INDEX(Ranks!$1:$1048576,$A438,E$1))","v":""},{"$f":"IF($A438=\"N/A\",\"\",INDEX(Ranks!$1:$1048576,$A438,F$1))","v":""},{"$f":"IF($A438=\"N/A\",\"\",INDEX(Ranks!$1:$1048576,$A438,G$1))","v":""},{"$f":"IF($A438=\"N/A\",\"\",INDEX(Ranks!$1:$1048576,$A438,H$1))","v":""},{"$f":"IF($A438=\"N/A\",\"\",INDEX(Ranks!$1:$1048576,$A438,I$1))","v":""},{"$f":"IF($A438=\"N/A\",\"\",INDEX(Ranks!$1:$1048576,$A438,J$1))","v":""},{"$f":"IF($A438=\"N/A\",\"\",INDEX(Ranks!$1:$1048576,$A438,K$1))","v":""},null,{"$f":"IF($A438=\"N/A\",Ref!$B$36,INDEX(Ranks!$1:$1048576,$A438,M$1))","v":""},{"$f":"IF($A438=\"N/A\",Ref!$B$36,INDEX(Ranks!$1:$1048576,$A438,N$1))","v":""},{"$f":"IF($A438=\"N/A\",Ref!$B$36,INDEX(Ranks!$1:$1048576,$A438,O$1))","v":""},{"$f":"IF($A438=\"N/A\",Ref!$B$36,INDEX(Ranks!$1:$1048576,$A438,P$1))","v":""},{"$f":"IF($A438=\"N/A\",Ref!$B$36,INDEX(Ranks!$1:$1048576,$A438,Q$1))","v":""},{"$f":"IF($A438=\"N/A\",Ref!$B$36,INDEX(Ranks!$1:$1048576,$A438,R$1))","v":""},{"$f":"IF($A438=\"N/A\",Ref!$B$36,INDEX(Ranks!$1:$1048576,$A438,S$1))","v":""},{"$f":"IF($A438=\"N/A\",Ref!$B$36,INDEX(Ranks!$1:$1048576,$A438,T$1))","v":""},{"$f":"IF($A438=\"N/A\",Ref!$B$36,INDEX(Ranks!$1:$1048576,$A438,U$1))","v":""},{"$f":"IF($A438=\"N/A\",Ref!$B$36,INDEX(Ranks!$1:$1048576,$A438,V$1))","v":""},{"$f":"IF($A438=\"N/A\",Ref!$B$36,INDEX(Ranks!$1:$1048576,$A438,W$1))","v":""},{"$f":"IF($A438=\"N/A\",Ref!$B$36,INDEX(Ranks!$1:$1048576,$A438,X$1))","v":""},{"$f":"IF($A438=\"N/A\",Ref!$B$36,INDEX(Ranks!$1:$1048576,$A438,Y$1))","v":""},{"$f":"IF($A438=\"N/A\",Ref!$B$36,INDEX(Ranks!$1:$1048576,$A438,Z$1))","v":""},{"$f":"IF($A438=\"N/A\",Ref!$B$36,INDEX(Ranks!$1:$1048576,$A438,AA$1))","v":""},{"$f":"IF($A438=\"N/A\",Ref!$B$36,INDEX(Ranks!$1:$1048576,$A438,AB$1))","v":""},{"$f":"IF($A438=\"N/A\",Ref!$B$36,INDEX(Ranks!$1:$1048576,$A438,AC$1))","v":""},{"$f":"IF($A438=\"N/A\",Ref!$B$36,INDEX(Ranks!$1:$1048576,$A438,AD$1))","v":""},{"$f":"IF($A438=\"N/A\",Ref!$B$36,INDEX(Ranks!$1:$1048576,$A438,AE$1))","v":""},{"$f":"IF($A438=\"N/A\",Ref!$B$36,INDEX(Ranks!$1:$1048576,$A438,AF$1))","v":""},{"$f":"IF($A438=\"N/A\",Ref!$B$36,INDEX(Ranks!$1:$1048576,$A438,AG$1))","v":""},{"$f":"IF($A438=\"N/A\",Ref!$B$36,INDEX(Ranks!$1:$1048576,$A438,AH$1))","v":""},{"$f":"IF($A438=\"N/A\",Ref!$B$36,INDEX(Ranks!$1:$1048576,$A438,AI$1))","v":""},{"$f":"IF($A438=\"N/A\",Ref!$B$36,INDEX(Ranks!$1:$1048576,$A438,AJ$1))","v":""},{"$f":"IF($A438=\"N/A\",Ref!$B$36,INDEX(Ranks!$1:$1048576,$A438,AK$1))","v":""},{"$f":"IF($A438=\"N/A\",Ref!$B$36,INDEX(Ranks!$1:$1048576,$A438,AL$1))","v":""},{"$f":"IF($A438=\"N/A\",Ref!$B$36,INDEX(Ranks!$1:$1048576,$A438,AM$1))","v":""},{"$f":"IF($A438=\"N/A\",Ref!$B$36,INDEX(Ranks!$1:$1048576,$A438,AN$1))","v":""},{"$f":"IF($A438=\"N/A\",Ref!$B$36,INDEX(Ranks!$1:$1048576,$A438,AO$1))","v":""},{"$f":"IF($A438=\"N/A\",Ref!$B$36,INDEX(Ranks!$1:$1048576,$A438,AP$1))","v":""},{"$f":"IF($A438=\"N/A\",Ref!$B$36,INDEX(Ranks!$1:$1048576,$A438,AQ$1))","v":""},{"$f":"IF($A438=\"N/A\",Ref!$B$36,INDEX(Ranks!$1:$1048576,$A438,AR$1))","v":""},{"$f":"IF($A438=\"N/A\",Ref!$B$36,INDEX(Ranks!$1:$1048576,$A438,AS$1))","v":""},{"$f":"IF($A438=\"N/A\",Ref!$B$36,INDEX(Ranks!$1:$1048576,$A438,AT$1))","v":""},{"$f":"IF($A438=\"N/A\",Ref!$B$36,INDEX(Ranks!$1:$1048576,$A438,AU$1))","v":""},{"$f":"IF($A438=\"N/A\",Ref!$B$36,INDEX(Ranks!$1:$1048576,$A438,AV$1))","v":""},{"$f":"IF($A438=\"N/A\",Ref!$B$36,INDEX(Ranks!$1:$1048576,$A438,AW$1))","v":""},{"$f":"IF($A438=\"N/A\",Ref!$B$36,INDEX(Ranks!$1:$1048576,$A438,AX$1))","v":""},{"$f":"IF($A438=\"N/A\",Ref!$B$36,INDEX(Ranks!$1:$1048576,$A438,AY$1))","v":""},{"$f":"IF($A438=\"N/A\",Ref!$B$36,INDEX(Ranks!$1:$1048576,$A438,AZ$1))","v":""},{"$f":"IF($A438=\"N/A\",Ref!$B$36,INDEX(Ranks!$1:$1048576,$A438,BA$1))","v":""},{"$f":"IF($A438=\"N/A\",Ref!$B$36,INDEX(Ranks!$1:$1048576,$A438,BB$1))","v":""},{"$f":"IF($A438=\"N/A\",Ref!$B$36,INDEX(Ranks!$1:$1048576,$A438,BC$1))","v":""},{"$f":"IF($A438=\"N/A\",Ref!$B$36,INDEX(Ranks!$1:$1048576,$A438,BD$1))","v":""},{"$f":"IF($A438=\"N/A\",Ref!$B$36,INDEX(Ranks!$1:$1048576,$A438,BE$1))","v":""},{"$f":"IF($A438=\"N/A\",Ref!$B$36,INDEX(Ranks!$1:$1048576,$A438,BF$1))","v":""},{"$f":"IF($A438=\"N/A\",Ref!$B$36,INDEX(Ranks!$1:$1048576,$A438,BG$1))","v":""},{"$f":"IF($A438=\"N/A\",Ref!$B$36,INDEX(Ranks!$1:$1048576,$A438,BH$1))","v":""},{"$f":"IF($A438=\"N/A\",Ref!$B$36,INDEX(Ranks!$1:$1048576,$A438,BI$1))","v":""},{"$f":"IF($A438=\"N/A\",Ref!$B$36,INDEX(Ranks!$1:$1048576,$A438,BJ$1))","v":""},{"$f":"IF($A438=\"N/A\",Ref!$B$36,INDEX(Ranks!$1:$1048576,$A438,BK$1))","v":""},{"$f":"IF($A438=\"N/A\",Ref!$B$36,INDEX(Ranks!$1:$1048576,$A438,BL$1))","v":""},{"$f":"IF($A438=\"N/A\",Ref!$B$36,INDEX(Ranks!$1:$1048576,$A438,BM$1))","v":""},{"$f":"IF($A438=\"N/A\",Ref!$B$36,INDEX(Ranks!$1:$1048576,$A438,BN$1))","v":""},{"$f":"IF($A438=\"N/A\",Ref!$B$36,INDEX(Ranks!$1:$1048576,$A438,BO$1))","v":""},{"$f":"IF($A438=\"N/A\",Ref!$B$36,INDEX(Ranks!$1:$1048576,$A438,BP$1))","v":""},{"$f":"IF($A438=\"N/A\",Ref!$B$36,INDEX(Ranks!$1:$1048576,$A438,BQ$1))","v":""},{"$f":"IF($A438=\"N/A\",Ref!$B$36,INDEX(Ranks!$1:$1048576,$A438,BR$1))","v":""},{"$f":"IF($A438=\"N/A\",Ref!$B$36,INDEX(Ranks!$1:$1048576,$A438,BS$1))","v":""},{"$f":"IF($A438=\"N/A\",Ref!$B$36,INDEX(Ranks!$1:$1048576,$A438,BT$1))","v":""},{"$f":"IF($A438=\"N/A\",Ref!$B$36,INDEX(Ranks!$1:$1048576,$A438,BU$1))","v":""},{"$f":"IF($A438=\"N/A\",Ref!$B$36,INDEX(Ranks!$1:$1048576,$A438,BV$1))","v":""},{"$f":"IF($A438=\"N/A\",Ref!$B$36,INDEX(Ranks!$1:$1048576,$A438,BW$1))","v":""},{"$f":"IF($A438=\"N/A\",Ref!$B$36,INDEX(Ranks!$1:$1048576,$A438,BX$1))","v":""},{"$f":"IF($A438=\"N/A\",Ref!$B$36,INDEX(Ranks!$1:$1048576,$A438,BY$1))","v":""},{"$f":"IF($A438=\"N/A\",Ref!$B$36,INDEX(Ranks!$1:$1048576,$A438,BZ$1))","v":""},{"$f":"IF($A438=\"N/A\",Ref!$B$36,INDEX(Ranks!$1:$1048576,$A438,CA$1))","v":""},{"$f":"IF($A438=\"N/A\",Ref!$B$36,INDEX(Ranks!$1:$1048576,$A438,CB$1))","v":""},{"$f":"IF($A438=\"N/A\",Ref!$B$36,INDEX(Ranks!$1:$1048576,$A438,CC$1))","v":""},{"$f":"IF($A438=\"N/A\",Ref!$B$36,INDEX(Ranks!$1:$1048576,$A438,CD$1))","v":""},{"$f":"IF($A438=\"N/A\",Ref!$B$36,INDEX(Ranks!$1:$1048576,$A438,CE$1))","v":""},{"$f":"IF($A438=\"N/A\",Ref!$B$36,INDEX(Ranks!$1:$1048576,$A438,CF$1))","v":""},{"$f":"IF($A438=\"N/A\",Ref!$B$36,INDEX(Ranks!$1:$1048576,$A438,CG$1))","v":""},{"$f":"IF($A438=\"N/A\",Ref!$B$36,INDEX(Ranks!$1:$1048576,$A438,CH$1))","v":""},{"$f":"IF($A438=\"N/A\",Ref!$B$36,INDEX(Ranks!$1:$1048576,$A438,CI$1))","v":""},{"$f":"IF($A438=\"N/A\",Ref!$B$36,INDEX(Ranks!$1:$1048576,$A438,CJ$1))","v":""},{"$f":"IF($A438=\"N/A\",Ref!$B$36,INDEX(Ranks!$1:$1048576,$A438,CK$1))","v":""},{"$f":"IF($A438=\"N/A\",Ref!$B$36,INDEX(Ranks!$1:$1048576,$A438,CL$1))","v":""},{"$f":"IF($A438=\"N/A\",Ref!$B$36,INDEX(Ranks!$1:$1048576,$A438,CM$1))","v":""},{"$f":"IF($A438=\"N/A\",Ref!$B$36,INDEX(Ranks!$1:$1048576,$A438,CN$1))","v":""},{"$f":"IF($A438=\"N/A\",Ref!$B$36,INDEX(Ranks!$1:$1048576,$A438,CO$1))","v":""},{"$f":"IF($A438=\"N/A\",Ref!$B$36,INDEX(Ranks!$1:$1048576,$A438,CP$1))","v":""},{"$f":"IF($A438=\"N/A\",Ref!$B$36,INDEX(Ranks!$1:$1048576,$A438,CQ$1))","v":""},{"$f":"IF($A438=\"N/A\",Ref!$B$36,INDEX(Ranks!$1:$1048576,$A438,CR$1))","v":""},{"$f":"IF($A438=\"N/A\",Ref!$B$36,INDEX(Ranks!$1:$1048576,$A438,CS$1))","v":""},{"$f":"IF($A438=\"N/A\",Ref!$B$36,INDEX(Ranks!$1:$1048576,$A438,CT$1))","v":""},{"$f":"IF($A438=\"N/A\",Ref!$B$36,INDEX(Ranks!$1:$1048576,$A438,CU$1))","v":""},{"$f":"IF($A438=\"N/A\",Ref!$B$36,INDEX(Ranks!$1:$1048576,$A438,CV$1))","v":""},{"$f":"IF($A438=\"N/A\",Ref!$B$36,INDEX(Ranks!$1:$1048576,$A438,CW$1))","v":""},{"$f":"IF($A438=\"N/A\",Ref!$B$36,INDEX(Ranks!$1:$1048576,$A438,CX$1))","v":""},{"$f":"IF($A438=\"N/A\",Ref!$B$36,INDEX(Ranks!$1:$1048576,$A438,CY$1))","v":""},{"$f":"IF($A438=\"N/A\",Ref!$B$36,INDEX(Ranks!$1:$1048576,$A438,CZ$1))","v":""},{"$f":"IF($A438=\"N/A\",Ref!$B$36,INDEX(Ranks!$1:$1048576,$A438,DA$1))","v":""},{"$f":"IF($A438=\"N/A\",Ref!$B$36,INDEX(Ranks!$1:$1048576,$A438,DB$1))","v":""},{"$f":"IF($A438=\"N/A\",Ref!$B$36,INDEX(Ranks!$1:$1048576,$A438,DC$1))","v":""},{"$f":"IF($A438=\"N/A\",Ref!$B$36,INDEX(Ranks!$1:$1048576,$A438,DD$1))","v":""},{"$f":"IF($A438=\"N/A\",Ref!$B$36,INDEX(Ranks!$1:$1048576,$A438,DE$1))","v":""},{"$f":"IF($A438=\"N/A\",Ref!$B$36,INDEX(Ranks!$1:$1048576,$A438,DF$1))","v":""},{"$f":"IF($A438=\"N/A\",Ref!$B$36,INDEX(Ranks!$1:$1048576,$A438,DG$1))","v":""},{"$f":"IF($A438=\"N/A\",Ref!$B$36,INDEX(Ranks!$1:$1048576,$A438,DH$1))","v":""},{"$f":"IF($A438=\"N/A\",Ref!$B$36,INDEX(Ranks!$1:$1048576,$A438,DI$1))","v":""},{"$f":"IF($A438=\"N/A\",Ref!$B$36,INDEX(Ranks!$1:$1048576,$A438,DJ$1))","v":""},{"$f":"IF($A438=\"N/A\",Ref!$B$36,INDEX(Ranks!$1:$1048576,$A438,DK$1))","v":""},{"$f":"IF($A438=\"N/A\",Ref!$B$36,INDEX(Ranks!$1:$1048576,$A438,DL$1))","v":""},{"$f":"IF($A438=\"N/A\",Ref!$B$36,INDEX(Ranks!$1:$1048576,$A438,DM$1))","v":""},{"$f":"IF($A438=\"N/A\",Ref!$B$36,INDEX(Ranks!$1:$1048576,$A438,DN$1))","v":""},{"$f":"IF($A438=\"N/A\",Ref!$B$36,INDEX(Ranks!$1:$1048576,$A438,DO$1))","v":""},{"$f":"IF($A438=\"N/A\",Ref!$B$36,INDEX(Ranks!$1:$1048576,$A438,DP$1))","v":""},{"$f":"IF($A438=\"N/A\",Ref!$B$36,INDEX(Ranks!$1:$1048576,$A438,DQ$1))","v":""},{"$f":"IF($A438=\"N/A\",Ref!$B$36,INDEX(Ranks!$1:$1048576,$A438,DR$1))","v":""},{"$f":"IF($A438=\"N/A\",Ref!$B$36,INDEX(Ranks!$1:$1048576,$A438,DS$1))","v":""},{"$f":"IF($A438=\"N/A\",Ref!$B$36,INDEX(Ranks!$1:$1048576,$A438,DT$1))","v":""},{"$f":"IF($A438=\"N/A\",Ref!$B$36,INDEX(Ranks!$1:$1048576,$A438,DU$1))","v":""},{"$f":"IF($A438=\"N/A\",Ref!$B$36,INDEX(Ranks!$1:$1048576,$A438,DV$1))","v":""},{"$f":"IF($A438=\"N/A\",Ref!$B$36,INDEX(Ranks!$1:$1048576,$A438,DW$1))","v":""},{"$f":"IF($A438=\"N/A\",Ref!$B$36,INDEX(Ranks!$1:$1048576,$A438,DX$1))","v":""},{"$f":"IF($A438=\"N/A\",Ref!$B$36,INDEX(Ranks!$1:$1048576,$A438,DY$1))","v":""},{"$f":"IF($A438=\"N/A\",Ref!$B$36,INDEX(Ranks!$1:$1048576,$A438,DZ$1))","v":""},{"$f":"IF($A438=\"N/A\",Ref!$B$36,INDEX(Ranks!$1:$1048576,$A438,EA$1))","v":""},{"$f":"IF($A438=\"N/A\",Ref!$B$36,INDEX(Ranks!$1:$1048576,$A438,EB$1))","v":""}]
[{"$f":"IFERROR(MATCH('Portfolio Page'!L439,Ranks!L:L,0),\"N/A\")","v":"N/A"},null,{"$f":"IF($A439=\"N/A\",\"\",INDEX(Ranks!$1:$1048576,$A439,C$1))","v":""},{"$f":"IF($A439=\"N/A\",Ref!$B$36,INDEX(Ranks!$1:$1048576,$A439,D$1))","v":""},{"$f":"IF($A439=\"N/A\",Ref!$B$36,INDEX(Ranks!$1:$1048576,$A439,E$1))","v":""},{"$f":"IF($A439=\"N/A\",\"\",INDEX(Ranks!$1:$1048576,$A439,F$1))","v":""},{"$f":"IF($A439=\"N/A\",\"\",INDEX(Ranks!$1:$1048576,$A439,G$1))","v":""},{"$f":"IF($A439=\"N/A\",\"\",INDEX(Ranks!$1:$1048576,$A439,H$1))","v":""},{"$f":"IF($A439=\"N/A\",\"\",INDEX(Ranks!$1:$1048576,$A439,I$1))","v":""},{"$f":"IF($A439=\"N/A\",\"\",INDEX(Ranks!$1:$1048576,$A439,J$1))","v":""},{"$f":"IF($A439=\"N/A\",\"\",INDEX(Ranks!$1:$1048576,$A439,K$1))","v":""},null,{"$f":"IF($A439=\"N/A\",Ref!$B$36,INDEX(Ranks!$1:$1048576,$A439,M$1))","v":""},{"$f":"IF($A439=\"N/A\",Ref!$B$36,INDEX(Ranks!$1:$1048576,$A439,N$1))","v":""},{"$f":"IF($A439=\"N/A\",Ref!$B$36,INDEX(Ranks!$1:$1048576,$A439,O$1))","v":""},{"$f":"IF($A439=\"N/A\",Ref!$B$36,INDEX(Ranks!$1:$1048576,$A439,P$1))","v":""},{"$f":"IF($A439=\"N/A\",Ref!$B$36,INDEX(Ranks!$1:$1048576,$A439,Q$1))","v":""},{"$f":"IF($A439=\"N/A\",Ref!$B$36,INDEX(Ranks!$1:$1048576,$A439,R$1))","v":""},{"$f":"IF($A439=\"N/A\",Ref!$B$36,INDEX(Ranks!$1:$1048576,$A439,S$1))","v":""},{"$f":"IF($A439=\"N/A\",Ref!$B$36,INDEX(Ranks!$1:$1048576,$A439,T$1))","v":""},{"$f":"IF($A439=\"N/A\",Ref!$B$36,INDEX(Ranks!$1:$1048576,$A439,U$1))","v":""},{"$f":"IF($A439=\"N/A\",Ref!$B$36,INDEX(Ranks!$1:$1048576,$A439,V$1))","v":""},{"$f":"IF($A439=\"N/A\",Ref!$B$36,INDEX(Ranks!$1:$1048576,$A439,W$1))","v":""},{"$f":"IF($A439=\"N/A\",Ref!$B$36,INDEX(Ranks!$1:$1048576,$A439,X$1))","v":""},{"$f":"IF($A439=\"N/A\",Ref!$B$36,INDEX(Ranks!$1:$1048576,$A439,Y$1))","v":""},{"$f":"IF($A439=\"N/A\",Ref!$B$36,INDEX(Ranks!$1:$1048576,$A439,Z$1))","v":""},{"$f":"IF($A439=\"N/A\",Ref!$B$36,INDEX(Ranks!$1:$1048576,$A439,AA$1))","v":""},{"$f":"IF($A439=\"N/A\",Ref!$B$36,INDEX(Ranks!$1:$1048576,$A439,AB$1))","v":""},{"$f":"IF($A439=\"N/A\",Ref!$B$36,INDEX(Ranks!$1:$1048576,$A439,AC$1))","v":""},{"$f":"IF($A439=\"N/A\",Ref!$B$36,INDEX(Ranks!$1:$1048576,$A439,AD$1))","v":""},{"$f":"IF($A439=\"N/A\",Ref!$B$36,INDEX(Ranks!$1:$1048576,$A439,AE$1))","v":""},{"$f":"IF($A439=\"N/A\",Ref!$B$36,INDEX(Ranks!$1:$1048576,$A439,AF$1))","v":""},{"$f":"IF($A439=\"N/A\",Ref!$B$36,INDEX(Ranks!$1:$1048576,$A439,AG$1))","v":""},{"$f":"IF($A439=\"N/A\",Ref!$B$36,INDEX(Ranks!$1:$1048576,$A439,AH$1))","v":""},{"$f":"IF($A439=\"N/A\",Ref!$B$36,INDEX(Ranks!$1:$1048576,$A439,AI$1))","v":""},{"$f":"IF($A439=\"N/A\",Ref!$B$36,INDEX(Ranks!$1:$1048576,$A439,AJ$1))","v":""},{"$f":"IF($A439=\"N/A\",Ref!$B$36,INDEX(Ranks!$1:$1048576,$A439,AK$1))","v":""},{"$f":"IF($A439=\"N/A\",Ref!$B$36,INDEX(Ranks!$1:$1048576,$A439,AL$1))","v":""},{"$f":"IF($A439=\"N/A\",Ref!$B$36,INDEX(Ranks!$1:$1048576,$A439,AM$1))","v":""},{"$f":"IF($A439=\"N/A\",Ref!$B$36,INDEX(Ranks!$1:$1048576,$A439,AN$1))","v":""},{"$f":"IF($A439=\"N/A\",Ref!$B$36,INDEX(Ranks!$1:$1048576,$A439,AO$1))","v":""},{"$f":"IF($A439=\"N/A\",Ref!$B$36,INDEX(Ranks!$1:$1048576,$A439,AP$1))","v":""},{"$f":"IF($A439=\"N/A\",Ref!$B$36,INDEX(Ranks!$1:$1048576,$A439,AQ$1))","v":""},{"$f":"IF($A439=\"N/A\",Ref!$B$36,INDEX(Ranks!$1:$1048576,$A439,AR$1))","v":""},{"$f":"IF($A439=\"N/A\",Ref!$B$36,INDEX(Ranks!$1:$1048576,$A439,AS$1))","v":""},{"$f":"IF($A439=\"N/A\",Ref!$B$36,INDEX(Ranks!$1:$1048576,$A439,AT$1))","v":""},{"$f":"IF($A439=\"N/A\",Ref!$B$36,INDEX(Ranks!$1:$1048576,$A439,AU$1))","v":""},{"$f":"IF($A439=\"N/A\",Ref!$B$36,INDEX(Ranks!$1:$1048576,$A439,AV$1))","v":""},{"$f":"IF($A439=\"N/A\",Ref!$B$36,INDEX(Ranks!$1:$1048576,$A439,AW$1))","v":""},{"$f":"IF($A439=\"N/A\",Ref!$B$36,INDEX(Ranks!$1:$1048576,$A439,AX$1))","v":""},{"$f":"IF($A439=\"N/A\",Ref!$B$36,INDEX(Ranks!$1:$1048576,$A439,AY$1))","v":""},{"$f":"IF($A439=\"N/A\",Ref!$B$36,INDEX(Ranks!$1:$1048576,$A439,AZ$1))","v":""},{"$f":"IF($A439=\"N/A\",Ref!$B$36,INDEX(Ranks!$1:$1048576,$A439,BA$1))","v":""},{"$f":"IF($A439=\"N/A\",Ref!$B$36,INDEX(Ranks!$1:$1048576,$A439,BB$1))","v":""},{"$f":"IF($A439=\"N/A\",Ref!$B$36,INDEX(Ranks!$1:$1048576,$A439,BC$1))","v":""},{"$f":"IF($A439=\"N/A\",Ref!$B$36,INDEX(Ranks!$1:$1048576,$A439,BD$1))","v":""},{"$f":"IF($A439=\"N/A\",Ref!$B$36,INDEX(Ranks!$1:$1048576,$A439,BE$1))","v":""},{"$f":"IF($A439=\"N/A\",Ref!$B$36,INDEX(Ranks!$1:$1048576,$A439,BF$1))","v":""},{"$f":"IF($A439=\"N/A\",Ref!$B$36,INDEX(Ranks!$1:$1048576,$A439,BG$1))","v":""},{"$f":"IF($A439=\"N/A\",Ref!$B$36,INDEX(Ranks!$1:$1048576,$A439,BH$1))","v":""},{"$f":"IF($A439=\"N/A\",Ref!$B$36,INDEX(Ranks!$1:$1048576,$A439,BI$1))","v":""},{"$f":"IF($A439=\"N/A\",Ref!$B$36,INDEX(Ranks!$1:$1048576,$A439,BJ$1))","v":""},{"$f":"IF($A439=\"N/A\",Ref!$B$36,INDEX(Ranks!$1:$1048576,$A439,BK$1))","v":""},{"$f":"IF($A439=\"N/A\",Ref!$B$36,INDEX(Ranks!$1:$1048576,$A439,BL$1))","v":""},{"$f":"IF($A439=\"N/A\",Ref!$B$36,INDEX(Ranks!$1:$1048576,$A439,BM$1))","v":""},{"$f":"IF($A439=\"N/A\",Ref!$B$36,INDEX(Ranks!$1:$1048576,$A439,BN$1))","v":""},{"$f":"IF($A439=\"N/A\",Ref!$B$36,INDEX(Ranks!$1:$1048576,$A439,BO$1))","v":""},{"$f":"IF($A439=\"N/A\",Ref!$B$36,INDEX(Ranks!$1:$1048576,$A439,BP$1))","v":""},{"$f":"IF($A439=\"N/A\",Ref!$B$36,INDEX(Ranks!$1:$1048576,$A439,BQ$1))","v":""},{"$f":"IF($A439=\"N/A\",Ref!$B$36,INDEX(Ranks!$1:$1048576,$A439,BR$1))","v":""},{"$f":"IF($A439=\"N/A\",Ref!$B$36,INDEX(Ranks!$1:$1048576,$A439,BS$1))","v":""},{"$f":"IF($A439=\"N/A\",Ref!$B$36,INDEX(Ranks!$1:$1048576,$A439,BT$1))","v":""},{"$f":"IF($A439=\"N/A\",Ref!$B$36,INDEX(Ranks!$1:$1048576,$A439,BU$1))","v":""},{"$f":"IF($A439=\"N/A\",Ref!$B$36,INDEX(Ranks!$1:$1048576,$A439,BV$1))","v":""},{"$f":"IF($A439=\"N/A\",Ref!$B$36,INDEX(Ranks!$1:$1048576,$A439,BW$1))","v":""},{"$f":"IF($A439=\"N/A\",Ref!$B$36,INDEX(Ranks!$1:$1048576,$A439,BX$1))","v":""},{"$f":"IF($A439=\"N/A\",Ref!$B$36,INDEX(Ranks!$1:$1048576,$A439,BY$1))","v":""},{"$f":"IF($A439=\"N/A\",Ref!$B$36,INDEX(Ranks!$1:$1048576,$A439,BZ$1))","v":""},{"$f":"IF($A439=\"N/A\",Ref!$B$36,INDEX(Ranks!$1:$1048576,$A439,CA$1))","v":""},{"$f":"IF($A439=\"N/A\",Ref!$B$36,INDEX(Ranks!$1:$1048576,$A439,CB$1))","v":""},{"$f":"IF($A439=\"N/A\",Ref!$B$36,INDEX(Ranks!$1:$1048576,$A439,CC$1))","v":""},{"$f":"IF($A439=\"N/A\",Ref!$B$36,INDEX(Ranks!$1:$1048576,$A439,CD$1))","v":""},{"$f":"IF($A439=\"N/A\",Ref!$B$36,INDEX(Ranks!$1:$1048576,$A439,CE$1))","v":""},{"$f":"IF($A439=\"N/A\",Ref!$B$36,INDEX(Ranks!$1:$1048576,$A439,CF$1))","v":""},{"$f":"IF($A439=\"N/A\",Ref!$B$36,INDEX(Ranks!$1:$1048576,$A439,CG$1))","v":""},{"$f":"IF($A439=\"N/A\",Ref!$B$36,INDEX(Ranks!$1:$1048576,$A439,CH$1))","v":""},{"$f":"IF($A439=\"N/A\",Ref!$B$36,INDEX(Ranks!$1:$1048576,$A439,CI$1))","v":""},{"$f":"IF($A439=\"N/A\",Ref!$B$36,INDEX(Ranks!$1:$1048576,$A439,CJ$1))","v":""},{"$f":"IF($A439=\"N/A\",Ref!$B$36,INDEX(Ranks!$1:$1048576,$A439,CK$1))","v":""},{"$f":"IF($A439=\"N/A\",Ref!$B$36,INDEX(Ranks!$1:$1048576,$A439,CL$1))","v":""},{"$f":"IF($A439=\"N/A\",Ref!$B$36,INDEX(Ranks!$1:$1048576,$A439,CM$1))","v":""},{"$f":"IF($A439=\"N/A\",Ref!$B$36,INDEX(Ranks!$1:$1048576,$A439,CN$1))","v":""},{"$f":"IF($A439=\"N/A\",Ref!$B$36,INDEX(Ranks!$1:$1048576,$A439,CO$1))","v":""},{"$f":"IF($A439=\"N/A\",Ref!$B$36,INDEX(Ranks!$1:$1048576,$A439,CP$1))","v":""},{"$f":"IF($A439=\"N/A\",Ref!$B$36,INDEX(Ranks!$1:$1048576,$A439,CQ$1))","v":""},{"$f":"IF($A439=\"N/A\",Ref!$B$36,INDEX(Ranks!$1:$1048576,$A439,CR$1))","v":""},{"$f":"IF($A439=\"N/A\",Ref!$B$36,INDEX(Ranks!$1:$1048576,$A439,CS$1))","v":""},{"$f":"IF($A439=\"N/A\",Ref!$B$36,INDEX(Ranks!$1:$1048576,$A439,CT$1))","v":""},{"$f":"IF($A439=\"N/A\",Ref!$B$36,INDEX(Ranks!$1:$1048576,$A439,CU$1))","v":""},{"$f":"IF($A439=\"N/A\",Ref!$B$36,INDEX(Ranks!$1:$1048576,$A439,CV$1))","v":""},{"$f":"IF($A439=\"N/A\",Ref!$B$36,INDEX(Ranks!$1:$1048576,$A439,CW$1))","v":""},{"$f":"IF($A439=\"N/A\",Ref!$B$36,INDEX(Ranks!$1:$1048576,$A439,CX$1))","v":""},{"$f":"IF($A439=\"N/A\",Ref!$B$36,INDEX(Ranks!$1:$1048576,$A439,CY$1))","v":""},{"$f":"IF($A439=\"N/A\",Ref!$B$36,INDEX(Ranks!$1:$1048576,$A439,CZ$1))","v":""},{"$f":"IF($A439=\"N/A\",Ref!$B$36,INDEX(Ranks!$1:$1048576,$A439,DA$1))","v":""},{"$f":"IF($A439=\"N/A\",Ref!$B$36,INDEX(Ranks!$1:$1048576,$A439,DB$1))","v":""},{"$f":"IF($A439=\"N/A\",Ref!$B$36,INDEX(Ranks!$1:$1048576,$A439,DC$1))","v":""},{"$f":"IF($A439=\"N/A\",Ref!$B$36,INDEX(Ranks!$1:$1048576,$A439,DD$1))","v":""},{"$f":"IF($A439=\"N/A\",Ref!$B$36,INDEX(Ranks!$1:$1048576,$A439,DE$1))","v":""},{"$f":"IF($A439=\"N/A\",Ref!$B$36,INDEX(Ranks!$1:$1048576,$A439,DF$1))","v":""},{"$f":"IF($A439=\"N/A\",Ref!$B$36,INDEX(Ranks!$1:$1048576,$A439,DG$1))","v":""},{"$f":"IF($A439=\"N/A\",Ref!$B$36,INDEX(Ranks!$1:$1048576,$A439,DH$1))","v":""},{"$f":"IF($A439=\"N/A\",Ref!$B$36,INDEX(Ranks!$1:$1048576,$A439,DI$1))","v":""},{"$f":"IF($A439=\"N/A\",Ref!$B$36,INDEX(Ranks!$1:$1048576,$A439,DJ$1))","v":""},{"$f":"IF($A439=\"N/A\",Ref!$B$36,INDEX(Ranks!$1:$1048576,$A439,DK$1))","v":""},{"$f":"IF($A439=\"N/A\",Ref!$B$36,INDEX(Ranks!$1:$1048576,$A439,DL$1))","v":""},{"$f":"IF($A439=\"N/A\",Ref!$B$36,INDEX(Ranks!$1:$1048576,$A439,DM$1))","v":""},{"$f":"IF($A439=\"N/A\",Ref!$B$36,INDEX(Ranks!$1:$1048576,$A439,DN$1))","v":""},{"$f":"IF($A439=\"N/A\",Ref!$B$36,INDEX(Ranks!$1:$1048576,$A439,DO$1))","v":""},{"$f":"IF($A439=\"N/A\",Ref!$B$36,INDEX(Ranks!$1:$1048576,$A439,DP$1))","v":""},{"$f":"IF($A439=\"N/A\",Ref!$B$36,INDEX(Ranks!$1:$1048576,$A439,DQ$1))","v":""},{"$f":"IF($A439=\"N/A\",Ref!$B$36,INDEX(Ranks!$1:$1048576,$A439,DR$1))","v":""},{"$f":"IF($A439=\"N/A\",Ref!$B$36,INDEX(Ranks!$1:$1048576,$A439,DS$1))","v":""},{"$f":"IF($A439=\"N/A\",Ref!$B$36,INDEX(Ranks!$1:$1048576,$A439,DT$1))","v":""},{"$f":"IF($A439=\"N/A\",Ref!$B$36,INDEX(Ranks!$1:$1048576,$A439,DU$1))","v":""},{"$f":"IF($A439=\"N/A\",Ref!$B$36,INDEX(Ranks!$1:$1048576,$A439,DV$1))","v":""},{"$f":"IF($A439=\"N/A\",Ref!$B$36,INDEX(Ranks!$1:$1048576,$A439,DW$1))","v":""},{"$f":"IF($A439=\"N/A\",Ref!$B$36,INDEX(Ranks!$1:$1048576,$A439,DX$1))","v":""},{"$f":"IF($A439=\"N/A\",Ref!$B$36,INDEX(Ranks!$1:$1048576,$A439,DY$1))","v":""},{"$f":"IF($A439=\"N/A\",Ref!$B$36,INDEX(Ranks!$1:$1048576,$A439,DZ$1))","v":""},{"$f":"IF($A439=\"N/A\",Ref!$B$36,INDEX(Ranks!$1:$1048576,$A439,EA$1))","v":""},{"$f":"IF($A439=\"N/A\",Ref!$B$36,INDEX(Ranks!$1:$1048576,$A439,EB$1))","v":""}]
[{"$f":"IFERROR(MATCH('Portfolio Page'!L440,Ranks!L:L,0),\"N/A\")","v":"N/A"},null,{"$f":"IF($A440=\"N/A\",\"\",INDEX(Ranks!$1:$1048576,$A440,C$1))","v":""},{"$f":"IF($A440=\"N/A\",Ref!$B$36,INDEX(Ranks!$1:$1048576,$A440,D$1))","v":""},{"$f":"IF($A440=\"N/A\",Ref!$B$36,INDEX(Ranks!$1:$1048576,$A440,E$1))","v":""},{"$f":"IF($A440=\"N/A\",\"\",INDEX(Ranks!$1:$1048576,$A440,F$1))","v":""},{"$f":"IF($A440=\"N/A\",\"\",INDEX(Ranks!$1:$1048576,$A440,G$1))","v":""},{"$f":"IF($A440=\"N/A\",\"\",INDEX(Ranks!$1:$1048576,$A440,H$1))","v":""},{"$f":"IF($A440=\"N/A\",\"\",INDEX(Ranks!$1:$1048576,$A440,I$1))","v":""},{"$f":"IF($A440=\"N/A\",\"\",INDEX(Ranks!$1:$1048576,$A440,J$1))","v":""},{"$f":"IF($A440=\"N/A\",\"\",INDEX(Ranks!$1:$1048576,$A440,K$1))","v":""},null,{"$f":"IF($A440=\"N/A\",Ref!$B$36,INDEX(Ranks!$1:$1048576,$A440,M$1))","v":""},{"$f":"IF($A440=\"N/A\",Ref!$B$36,INDEX(Ranks!$1:$1048576,$A440,N$1))","v":""},{"$f":"IF($A440=\"N/A\",Ref!$B$36,INDEX(Ranks!$1:$1048576,$A440,O$1))","v":""},{"$f":"IF($A440=\"N/A\",Ref!$B$36,INDEX(Ranks!$1:$1048576,$A440,P$1))","v":""},{"$f":"IF($A440=\"N/A\",Ref!$B$36,INDEX(Ranks!$1:$1048576,$A440,Q$1))","v":""},{"$f":"IF($A440=\"N/A\",Ref!$B$36,INDEX(Ranks!$1:$1048576,$A440,R$1))","v":""},{"$f":"IF($A440=\"N/A\",Ref!$B$36,INDEX(Ranks!$1:$1048576,$A440,S$1))","v":""},{"$f":"IF($A440=\"N/A\",Ref!$B$36,INDEX(Ranks!$1:$1048576,$A440,T$1))","v":""},{"$f":"IF($A440=\"N/A\",Ref!$B$36,INDEX(Ranks!$1:$1048576,$A440,U$1))","v":""},{"$f":"IF($A440=\"N/A\",Ref!$B$36,INDEX(Ranks!$1:$1048576,$A440,V$1))","v":""},{"$f":"IF($A440=\"N/A\",Ref!$B$36,INDEX(Ranks!$1:$1048576,$A440,W$1))","v":""},{"$f":"IF($A440=\"N/A\",Ref!$B$36,INDEX(Ranks!$1:$1048576,$A440,X$1))","v":""},{"$f":"IF($A440=\"N/A\",Ref!$B$36,INDEX(Ranks!$1:$1048576,$A440,Y$1))","v":""},{"$f":"IF($A440=\"N/A\",Ref!$B$36,INDEX(Ranks!$1:$1048576,$A440,Z$1))","v":""},{"$f":"IF($A440=\"N/A\",Ref!$B$36,INDEX(Ranks!$1:$1048576,$A440,AA$1))","v":""},{"$f":"IF($A440=\"N/A\",Ref!$B$36,INDEX(Ranks!$1:$1048576,$A440,AB$1))","v":""},{"$f":"IF($A440=\"N/A\",Ref!$B$36,INDEX(Ranks!$1:$1048576,$A440,AC$1))","v":""},{"$f":"IF($A440=\"N/A\",Ref!$B$36,INDEX(Ranks!$1:$1048576,$A440,AD$1))","v":""},{"$f":"IF($A440=\"N/A\",Ref!$B$36,INDEX(Ranks!$1:$1048576,$A440,AE$1))","v":""},{"$f":"IF($A440=\"N/A\",Ref!$B$36,INDEX(Ranks!$1:$1048576,$A440,AF$1))","v":""},{"$f":"IF($A440=\"N/A\",Ref!$B$36,INDEX(Ranks!$1:$1048576,$A440,AG$1))","v":""},{"$f":"IF($A440=\"N/A\",Ref!$B$36,INDEX(Ranks!$1:$1048576,$A440,AH$1))","v":""},{"$f":"IF($A440=\"N/A\",Ref!$B$36,INDEX(Ranks!$1:$1048576,$A440,AI$1))","v":""},{"$f":"IF($A440=\"N/A\",Ref!$B$36,INDEX(Ranks!$1:$1048576,$A440,AJ$1))","v":""},{"$f":"IF($A440=\"N/A\",Ref!$B$36,INDEX(Ranks!$1:$1048576,$A440,AK$1))","v":""},{"$f":"IF($A440=\"N/A\",Ref!$B$36,INDEX(Ranks!$1:$1048576,$A440,AL$1))","v":""},{"$f":"IF($A440=\"N/A\",Ref!$B$36,INDEX(Ranks!$1:$1048576,$A440,AM$1))","v":""},{"$f":"IF($A440=\"N/A\",Ref!$B$36,INDEX(Ranks!$1:$1048576,$A440,AN$1))","v":""},{"$f":"IF($A440=\"N/A\",Ref!$B$36,INDEX(Ranks!$1:$1048576,$A440,AO$1))","v":""},{"$f":"IF($A440=\"N/A\",Ref!$B$36,INDEX(Ranks!$1:$1048576,$A440,AP$1))","v":""},{"$f":"IF($A440=\"N/A\",Ref!$B$36,INDEX(Ranks!$1:$1048576,$A440,AQ$1))","v":""},{"$f":"IF($A440=\"N/A\",Ref!$B$36,INDEX(Ranks!$1:$1048576,$A440,AR$1))","v":""},{"$f":"IF($A440=\"N/A\",Ref!$B$36,INDEX(Ranks!$1:$1048576,$A440,AS$1))","v":""},{"$f":"IF($A440=\"N/A\",Ref!$B$36,INDEX(Ranks!$1:$1048576,$A440,AT$1))","v":""},{"$f":"IF($A440=\"N/A\",Ref!$B$36,INDEX(Ranks!$1:$1048576,$A440,AU$1))","v":""},{"$f":"IF($A440=\"N/A\",Ref!$B$36,INDEX(Ranks!$1:$1048576,$A440,AV$1))","v":""},{"$f":"IF($A440=\"N/A\",Ref!$B$36,INDEX(Ranks!$1:$1048576,$A440,AW$1))","v":""},{"$f":"IF($A440=\"N/A\",Ref!$B$36,INDEX(Ranks!$1:$1048576,$A440,AX$1))","v":""},{"$f":"IF($A440=\"N/A\",Ref!$B$36,INDEX(Ranks!$1:$1048576,$A440,AY$1))","v":""},{"$f":"IF($A440=\"N/A\",Ref!$B$36,INDEX(Ranks!$1:$1048576,$A440,AZ$1))","v":""},{"$f":"IF($A440=\"N/A\",Ref!$B$36,INDEX(Ranks!$1:$1048576,$A440,BA$1))","v":""},{"$f":"IF($A440=\"N/A\",Ref!$B$36,INDEX(Ranks!$1:$1048576,$A440,BB$1))","v":""},{"$f":"IF($A440=\"N/A\",Ref!$B$36,INDEX(Ranks!$1:$1048576,$A440,BC$1))","v":""},{"$f":"IF($A440=\"N/A\",Ref!$B$36,INDEX(Ranks!$1:$1048576,$A440,BD$1))","v":""},{"$f":"IF($A440=\"N/A\",Ref!$B$36,INDEX(Ranks!$1:$1048576,$A440,BE$1))","v":""},{"$f":"IF($A440=\"N/A\",Ref!$B$36,INDEX(Ranks!$1:$1048576,$A440,BF$1))","v":""},{"$f":"IF($A440=\"N/A\",Ref!$B$36,INDEX(Ranks!$1:$1048576,$A440,BG$1))","v":""},{"$f":"IF($A440=\"N/A\",Ref!$B$36,INDEX(Ranks!$1:$1048576,$A440,BH$1))","v":""},{"$f":"IF($A440=\"N/A\",Ref!$B$36,INDEX(Ranks!$1:$1048576,$A440,BI$1))","v":""},{"$f":"IF($A440=\"N/A\",Ref!$B$36,INDEX(Ranks!$1:$1048576,$A440,BJ$1))","v":""},{"$f":"IF($A440=\"N/A\",Ref!$B$36,INDEX(Ranks!$1:$1048576,$A440,BK$1))","v":""},{"$f":"IF($A440=\"N/A\",Ref!$B$36,INDEX(Ranks!$1:$1048576,$A440,BL$1))","v":""},{"$f":"IF($A440=\"N/A\",Ref!$B$36,INDEX(Ranks!$1:$1048576,$A440,BM$1))","v":""},{"$f":"IF($A440=\"N/A\",Ref!$B$36,INDEX(Ranks!$1:$1048576,$A440,BN$1))","v":""},{"$f":"IF($A440=\"N/A\",Ref!$B$36,INDEX(Ranks!$1:$1048576,$A440,BO$1))","v":""},{"$f":"IF($A440=\"N/A\",Ref!$B$36,INDEX(Ranks!$1:$1048576,$A440,BP$1))","v":""},{"$f":"IF($A440=\"N/A\",Ref!$B$36,INDEX(Ranks!$1:$1048576,$A440,BQ$1))","v":""},{"$f":"IF($A440=\"N/A\",Ref!$B$36,INDEX(Ranks!$1:$1048576,$A440,BR$1))","v":""},{"$f":"IF($A440=\"N/A\",Ref!$B$36,INDEX(Ranks!$1:$1048576,$A440,BS$1))","v":""},{"$f":"IF($A440=\"N/A\",Ref!$B$36,INDEX(Ranks!$1:$1048576,$A440,BT$1))","v":""},{"$f":"IF($A440=\"N/A\",Ref!$B$36,INDEX(Ranks!$1:$1048576,$A440,BU$1))","v":""},{"$f":"IF($A440=\"N/A\",Ref!$B$36,INDEX(Ranks!$1:$1048576,$A440,BV$1))","v":""},{"$f":"IF($A440=\"N/A\",Ref!$B$36,INDEX(Ranks!$1:$1048576,$A440,BW$1))","v":""},{"$f":"IF($A440=\"N/A\",Ref!$B$36,INDEX(Ranks!$1:$1048576,$A440,BX$1))","v":""},{"$f":"IF($A440=\"N/A\",Ref!$B$36,INDEX(Ranks!$1:$1048576,$A440,BY$1))","v":""},{"$f":"IF($A440=\"N/A\",Ref!$B$36,INDEX(Ranks!$1:$1048576,$A440,BZ$1))","v":""},{"$f":"IF($A440=\"N/A\",Ref!$B$36,INDEX(Ranks!$1:$1048576,$A440,CA$1))","v":""},{"$f":"IF($A440=\"N/A\",Ref!$B$36,INDEX(Ranks!$1:$1048576,$A440,CB$1))","v":""},{"$f":"IF($A440=\"N/A\",Ref!$B$36,INDEX(Ranks!$1:$1048576,$A440,CC$1))","v":""},{"$f":"IF($A440=\"N/A\",Ref!$B$36,INDEX(Ranks!$1:$1048576,$A440,CD$1))","v":""},{"$f":"IF($A440=\"N/A\",Ref!$B$36,INDEX(Ranks!$1:$1048576,$A440,CE$1))","v":""},{"$f":"IF($A440=\"N/A\",Ref!$B$36,INDEX(Ranks!$1:$1048576,$A440,CF$1))","v":""},{"$f":"IF($A440=\"N/A\",Ref!$B$36,INDEX(Ranks!$1:$1048576,$A440,CG$1))","v":""},{"$f":"IF($A440=\"N/A\",Ref!$B$36,INDEX(Ranks!$1:$1048576,$A440,CH$1))","v":""},{"$f":"IF($A440=\"N/A\",Ref!$B$36,INDEX(Ranks!$1:$1048576,$A440,CI$1))","v":""},{"$f":"IF($A440=\"N/A\",Ref!$B$36,INDEX(Ranks!$1:$1048576,$A440,CJ$1))","v":""},{"$f":"IF($A440=\"N/A\",Ref!$B$36,INDEX(Ranks!$1:$1048576,$A440,CK$1))","v":""},{"$f":"IF($A440=\"N/A\",Ref!$B$36,INDEX(Ranks!$1:$1048576,$A440,CL$1))","v":""},{"$f":"IF($A440=\"N/A\",Ref!$B$36,INDEX(Ranks!$1:$1048576,$A440,CM$1))","v":""},{"$f":"IF($A440=\"N/A\",Ref!$B$36,INDEX(Ranks!$1:$1048576,$A440,CN$1))","v":""},{"$f":"IF($A440=\"N/A\",Ref!$B$36,INDEX(Ranks!$1:$1048576,$A440,CO$1))","v":""},{"$f":"IF($A440=\"N/A\",Ref!$B$36,INDEX(Ranks!$1:$1048576,$A440,CP$1))","v":""},{"$f":"IF($A440=\"N/A\",Ref!$B$36,INDEX(Ranks!$1:$1048576,$A440,CQ$1))","v":""},{"$f":"IF($A440=\"N/A\",Ref!$B$36,INDEX(Ranks!$1:$1048576,$A440,CR$1))","v":""},{"$f":"IF($A440=\"N/A\",Ref!$B$36,INDEX(Ranks!$1:$1048576,$A440,CS$1))","v":""},{"$f":"IF($A440=\"N/A\",Ref!$B$36,INDEX(Ranks!$1:$1048576,$A440,CT$1))","v":""},{"$f":"IF($A440=\"N/A\",Ref!$B$36,INDEX(Ranks!$1:$1048576,$A440,CU$1))","v":""},{"$f":"IF($A440=\"N/A\",Ref!$B$36,INDEX(Ranks!$1:$1048576,$A440,CV$1))","v":""},{"$f":"IF($A440=\"N/A\",Ref!$B$36,INDEX(Ranks!$1:$1048576,$A440,CW$1))","v":""},{"$f":"IF($A440=\"N/A\",Ref!$B$36,INDEX(Ranks!$1:$1048576,$A440,CX$1))","v":""},{"$f":"IF($A440=\"N/A\",Ref!$B$36,INDEX(Ranks!$1:$1048576,$A440,CY$1))","v":""},{"$f":"IF($A440=\"N/A\",Ref!$B$36,INDEX(Ranks!$1:$1048576,$A440,CZ$1))","v":""},{"$f":"IF($A440=\"N/A\",Ref!$B$36,INDEX(Ranks!$1:$1048576,$A440,DA$1))","v":""},{"$f":"IF($A440=\"N/A\",Ref!$B$36,INDEX(Ranks!$1:$1048576,$A440,DB$1))","v":""},{"$f":"IF($A440=\"N/A\",Ref!$B$36,INDEX(Ranks!$1:$1048576,$A440,DC$1))","v":""},{"$f":"IF($A440=\"N/A\",Ref!$B$36,INDEX(Ranks!$1:$1048576,$A440,DD$1))","v":""},{"$f":"IF($A440=\"N/A\",Ref!$B$36,INDEX(Ranks!$1:$1048576,$A440,DE$1))","v":""},{"$f":"IF($A440=\"N/A\",Ref!$B$36,INDEX(Ranks!$1:$1048576,$A440,DF$1))","v":""},{"$f":"IF($A440=\"N/A\",Ref!$B$36,INDEX(Ranks!$1:$1048576,$A440,DG$1))","v":""},{"$f":"IF($A440=\"N/A\",Ref!$B$36,INDEX(Ranks!$1:$1048576,$A440,DH$1))","v":""},{"$f":"IF($A440=\"N/A\",Ref!$B$36,INDEX(Ranks!$1:$1048576,$A440,DI$1))","v":""},{"$f":"IF($A440=\"N/A\",Ref!$B$36,INDEX(Ranks!$1:$1048576,$A440,DJ$1))","v":""},{"$f":"IF($A440=\"N/A\",Ref!$B$36,INDEX(Ranks!$1:$1048576,$A440,DK$1))","v":""},{"$f":"IF($A440=\"N/A\",Ref!$B$36,INDEX(Ranks!$1:$1048576,$A440,DL$1))","v":""},{"$f":"IF($A440=\"N/A\",Ref!$B$36,INDEX(Ranks!$1:$1048576,$A440,DM$1))","v":""},{"$f":"IF($A440=\"N/A\",Ref!$B$36,INDEX(Ranks!$1:$1048576,$A440,DN$1))","v":""},{"$f":"IF($A440=\"N/A\",Ref!$B$36,INDEX(Ranks!$1:$1048576,$A440,DO$1))","v":""},{"$f":"IF($A440=\"N/A\",Ref!$B$36,INDEX(Ranks!$1:$1048576,$A440,DP$1))","v":""},{"$f":"IF($A440=\"N/A\",Ref!$B$36,INDEX(Ranks!$1:$1048576,$A440,DQ$1))","v":""},{"$f":"IF($A440=\"N/A\",Ref!$B$36,INDEX(Ranks!$1:$1048576,$A440,DR$1))","v":""},{"$f":"IF($A440=\"N/A\",Ref!$B$36,INDEX(Ranks!$1:$1048576,$A440,DS$1))","v":""},{"$f":"IF($A440=\"N/A\",Ref!$B$36,INDEX(Ranks!$1:$1048576,$A440,DT$1))","v":""},{"$f":"IF($A440=\"N/A\",Ref!$B$36,INDEX(Ranks!$1:$1048576,$A440,DU$1))","v":""},{"$f":"IF($A440=\"N/A\",Ref!$B$36,INDEX(Ranks!$1:$1048576,$A440,DV$1))","v":""},{"$f":"IF($A440=\"N/A\",Ref!$B$36,INDEX(Ranks!$1:$1048576,$A440,DW$1))","v":""},{"$f":"IF($A440=\"N/A\",Ref!$B$36,INDEX(Ranks!$1:$1048576,$A440,DX$1))","v":""},{"$f":"IF($A440=\"N/A\",Ref!$B$36,INDEX(Ranks!$1:$1048576,$A440,DY$1))","v":""},{"$f":"IF($A440=\"N/A\",Ref!$B$36,INDEX(Ranks!$1:$1048576,$A440,DZ$1))","v":""},{"$f":"IF($A440=\"N/A\",Ref!$B$36,INDEX(Ranks!$1:$1048576,$A440,EA$1))","v":""},{"$f":"IF($A440=\"N/A\",Ref!$B$36,INDEX(Ranks!$1:$1048576,$A440,EB$1))","v":""}]
[{"$f":"IFERROR(MATCH('Portfolio Page'!L441,Ranks!L:L,0),\"N/A\")","v":"N/A"},null,{"$f":"IF($A441=\"N/A\",\"\",INDEX(Ranks!$1:$1048576,$A441,C$1))","v":""},{"$f":"IF($A441=\"N/A\",Ref!$B$36,INDEX(Ranks!$1:$1048576,$A441,D$1))","v":""},{"$f":"IF($A441=\"N/A\",Ref!$B$36,INDEX(Ranks!$1:$1048576,$A441,E$1))","v":""},{"$f":"IF($A441=\"N/A\",\"\",INDEX(Ranks!$1:$1048576,$A441,F$1))","v":""},{"$f":"IF($A441=\"N/A\",\"\",INDEX(Ranks!$1:$1048576,$A441,G$1))","v":""},{"$f":"IF($A441=\"N/A\",\"\",INDEX(Ranks!$1:$1048576,$A441,H$1))","v":""},{"$f":"IF($A441=\"N/A\",\"\",INDEX(Ranks!$1:$1048576,$A441,I$1))","v":""},{"$f":"IF($A441=\"N/A\",\"\",INDEX(Ranks!$1:$1048576,$A441,J$1))","v":""},{"$f":"IF($A441=\"N/A\",\"\",INDEX(Ranks!$1:$1048576,$A441,K$1))","v":""},null,{"$f":"IF($A441=\"N/A\",Ref!$B$36,INDEX(Ranks!$1:$1048576,$A441,M$1))","v":""},{"$f":"IF($A441=\"N/A\",Ref!$B$36,INDEX(Ranks!$1:$1048576,$A441,N$1))","v":""},{"$f":"IF($A441=\"N/A\",Ref!$B$36,INDEX(Ranks!$1:$1048576,$A441,O$1))","v":""},{"$f":"IF($A441=\"N/A\",Ref!$B$36,INDEX(Ranks!$1:$1048576,$A441,P$1))","v":""},{"$f":"IF($A441=\"N/A\",Ref!$B$36,INDEX(Ranks!$1:$1048576,$A441,Q$1))","v":""},{"$f":"IF($A441=\"N/A\",Ref!$B$36,INDEX(Ranks!$1:$1048576,$A441,R$1))","v":""},{"$f":"IF($A441=\"N/A\",Ref!$B$36,INDEX(Ranks!$1:$1048576,$A441,S$1))","v":""},{"$f":"IF($A441=\"N/A\",Ref!$B$36,INDEX(Ranks!$1:$1048576,$A441,T$1))","v":""},{"$f":"IF($A441=\"N/A\",Ref!$B$36,INDEX(Ranks!$1:$1048576,$A441,U$1))","v":""},{"$f":"IF($A441=\"N/A\",Ref!$B$36,INDEX(Ranks!$1:$1048576,$A441,V$1))","v":""},{"$f":"IF($A441=\"N/A\",Ref!$B$36,INDEX(Ranks!$1:$1048576,$A441,W$1))","v":""},{"$f":"IF($A441=\"N/A\",Ref!$B$36,INDEX(Ranks!$1:$1048576,$A441,X$1))","v":""},{"$f":"IF($A441=\"N/A\",Ref!$B$36,INDEX(Ranks!$1:$1048576,$A441,Y$1))","v":""},{"$f":"IF($A441=\"N/A\",Ref!$B$36,INDEX(Ranks!$1:$1048576,$A441,Z$1))","v":""},{"$f":"IF($A441=\"N/A\",Ref!$B$36,INDEX(Ranks!$1:$1048576,$A441,AA$1))","v":""},{"$f":"IF($A441=\"N/A\",Ref!$B$36,INDEX(Ranks!$1:$1048576,$A441,AB$1))","v":""},{"$f":"IF($A441=\"N/A\",Ref!$B$36,INDEX(Ranks!$1:$1048576,$A441,AC$1))","v":""},{"$f":"IF($A441=\"N/A\",Ref!$B$36,INDEX(Ranks!$1:$1048576,$A441,AD$1))","v":""},{"$f":"IF($A441=\"N/A\",Ref!$B$36,INDEX(Ranks!$1:$1048576,$A441,AE$1))","v":""},{"$f":"IF($A441=\"N/A\",Ref!$B$36,INDEX(Ranks!$1:$1048576,$A441,AF$1))","v":""},{"$f":"IF($A441=\"N/A\",Ref!$B$36,INDEX(Ranks!$1:$1048576,$A441,AG$1))","v":""},{"$f":"IF($A441=\"N/A\",Ref!$B$36,INDEX(Ranks!$1:$1048576,$A441,AH$1))","v":""},{"$f":"IF($A441=\"N/A\",Ref!$B$36,INDEX(Ranks!$1:$1048576,$A441,AI$1))","v":""},{"$f":"IF($A441=\"N/A\",Ref!$B$36,INDEX(Ranks!$1:$1048576,$A441,AJ$1))","v":""},{"$f":"IF($A441=\"N/A\",Ref!$B$36,INDEX(Ranks!$1:$1048576,$A441,AK$1))","v":""},{"$f":"IF($A441=\"N/A\",Ref!$B$36,INDEX(Ranks!$1:$1048576,$A441,AL$1))","v":""},{"$f":"IF($A441=\"N/A\",Ref!$B$36,INDEX(Ranks!$1:$1048576,$A441,AM$1))","v":""},{"$f":"IF($A441=\"N/A\",Ref!$B$36,INDEX(Ranks!$1:$1048576,$A441,AN$1))","v":""},{"$f":"IF($A441=\"N/A\",Ref!$B$36,INDEX(Ranks!$1:$1048576,$A441,AO$1))","v":""},{"$f":"IF($A441=\"N/A\",Ref!$B$36,INDEX(Ranks!$1:$1048576,$A441,AP$1))","v":""},{"$f":"IF($A441=\"N/A\",Ref!$B$36,INDEX(Ranks!$1:$1048576,$A441,AQ$1))","v":""},{"$f":"IF($A441=\"N/A\",Ref!$B$36,INDEX(Ranks!$1:$1048576,$A441,AR$1))","v":""},{"$f":"IF($A441=\"N/A\",Ref!$B$36,INDEX(Ranks!$1:$1048576,$A441,AS$1))","v":""},{"$f":"IF($A441=\"N/A\",Ref!$B$36,INDEX(Ranks!$1:$1048576,$A441,AT$1))","v":""},{"$f":"IF($A441=\"N/A\",Ref!$B$36,INDEX(Ranks!$1:$1048576,$A441,AU$1))","v":""},{"$f":"IF($A441=\"N/A\",Ref!$B$36,INDEX(Ranks!$1:$1048576,$A441,AV$1))","v":""},{"$f":"IF($A441=\"N/A\",Ref!$B$36,INDEX(Ranks!$1:$1048576,$A441,AW$1))","v":""},{"$f":"IF($A441=\"N/A\",Ref!$B$36,INDEX(Ranks!$1:$1048576,$A441,AX$1))","v":""},{"$f":"IF($A441=\"N/A\",Ref!$B$36,INDEX(Ranks!$1:$1048576,$A441,AY$1))","v":""},{"$f":"IF($A441=\"N/A\",Ref!$B$36,INDEX(Ranks!$1:$1048576,$A441,AZ$1))","v":""},{"$f":"IF($A441=\"N/A\",Ref!$B$36,INDEX(Ranks!$1:$1048576,$A441,BA$1))","v":""},{"$f":"IF($A441=\"N/A\",Ref!$B$36,INDEX(Ranks!$1:$1048576,$A441,BB$1))","v":""},{"$f":"IF($A441=\"N/A\",Ref!$B$36,INDEX(Ranks!$1:$1048576,$A441,BC$1))","v":""},{"$f":"IF($A441=\"N/A\",Ref!$B$36,INDEX(Ranks!$1:$1048576,$A441,BD$1))","v":""},{"$f":"IF($A441=\"N/A\",Ref!$B$36,INDEX(Ranks!$1:$1048576,$A441,BE$1))","v":""},{"$f":"IF($A441=\"N/A\",Ref!$B$36,INDEX(Ranks!$1:$1048576,$A441,BF$1))","v":""},{"$f":"IF($A441=\"N/A\",Ref!$B$36,INDEX(Ranks!$1:$1048576,$A441,BG$1))","v":""},{"$f":"IF($A441=\"N/A\",Ref!$B$36,INDEX(Ranks!$1:$1048576,$A441,BH$1))","v":""},{"$f":"IF($A441=\"N/A\",Ref!$B$36,INDEX(Ranks!$1:$1048576,$A441,BI$1))","v":""},{"$f":"IF($A441=\"N/A\",Ref!$B$36,INDEX(Ranks!$1:$1048576,$A441,BJ$1))","v":""},{"$f":"IF($A441=\"N/A\",Ref!$B$36,INDEX(Ranks!$1:$1048576,$A441,BK$1))","v":""},{"$f":"IF($A441=\"N/A\",Ref!$B$36,INDEX(Ranks!$1:$1048576,$A441,BL$1))","v":""},{"$f":"IF($A441=\"N/A\",Ref!$B$36,INDEX(Ranks!$1:$1048576,$A441,BM$1))","v":""},{"$f":"IF($A441=\"N/A\",Ref!$B$36,INDEX(Ranks!$1:$1048576,$A441,BN$1))","v":""},{"$f":"IF($A441=\"N/A\",Ref!$B$36,INDEX(Ranks!$1:$1048576,$A441,BO$1))","v":""},{"$f":"IF($A441=\"N/A\",Ref!$B$36,INDEX(Ranks!$1:$1048576,$A441,BP$1))","v":""},{"$f":"IF($A441=\"N/A\",Ref!$B$36,INDEX(Ranks!$1:$1048576,$A441,BQ$1))","v":""},{"$f":"IF($A441=\"N/A\",Ref!$B$36,INDEX(Ranks!$1:$1048576,$A441,BR$1))","v":""},{"$f":"IF($A441=\"N/A\",Ref!$B$36,INDEX(Ranks!$1:$1048576,$A441,BS$1))","v":""},{"$f":"IF($A441=\"N/A\",Ref!$B$36,INDEX(Ranks!$1:$1048576,$A441,BT$1))","v":""},{"$f":"IF($A441=\"N/A\",Ref!$B$36,INDEX(Ranks!$1:$1048576,$A441,BU$1))","v":""},{"$f":"IF($A441=\"N/A\",Ref!$B$36,INDEX(Ranks!$1:$1048576,$A441,BV$1))","v":""},{"$f":"IF($A441=\"N/A\",Ref!$B$36,INDEX(Ranks!$1:$1048576,$A441,BW$1))","v":""},{"$f":"IF($A441=\"N/A\",Ref!$B$36,INDEX(Ranks!$1:$1048576,$A441,BX$1))","v":""},{"$f":"IF($A441=\"N/A\",Ref!$B$36,INDEX(Ranks!$1:$1048576,$A441,BY$1))","v":""},{"$f":"IF($A441=\"N/A\",Ref!$B$36,INDEX(Ranks!$1:$1048576,$A441,BZ$1))","v":""},{"$f":"IF($A441=\"N/A\",Ref!$B$36,INDEX(Ranks!$1:$1048576,$A441,CA$1))","v":""},{"$f":"IF($A441=\"N/A\",Ref!$B$36,INDEX(Ranks!$1:$1048576,$A441,CB$1))","v":""},{"$f":"IF($A441=\"N/A\",Ref!$B$36,INDEX(Ranks!$1:$1048576,$A441,CC$1))","v":""},{"$f":"IF($A441=\"N/A\",Ref!$B$36,INDEX(Ranks!$1:$1048576,$A441,CD$1))","v":""},{"$f":"IF($A441=\"N/A\",Ref!$B$36,INDEX(Ranks!$1:$1048576,$A441,CE$1))","v":""},{"$f":"IF($A441=\"N/A\",Ref!$B$36,INDEX(Ranks!$1:$1048576,$A441,CF$1))","v":""},{"$f":"IF($A441=\"N/A\",Ref!$B$36,INDEX(Ranks!$1:$1048576,$A441,CG$1))","v":""},{"$f":"IF($A441=\"N/A\",Ref!$B$36,INDEX(Ranks!$1:$1048576,$A441,CH$1))","v":""},{"$f":"IF($A441=\"N/A\",Ref!$B$36,INDEX(Ranks!$1:$1048576,$A441,CI$1))","v":""},{"$f":"IF($A441=\"N/A\",Ref!$B$36,INDEX(Ranks!$1:$1048576,$A441,CJ$1))","v":""},{"$f":"IF($A441=\"N/A\",Ref!$B$36,INDEX(Ranks!$1:$1048576,$A441,CK$1))","v":""},{"$f":"IF($A441=\"N/A\",Ref!$B$36,INDEX(Ranks!$1:$1048576,$A441,CL$1))","v":""},{"$f":"IF($A441=\"N/A\",Ref!$B$36,INDEX(Ranks!$1:$1048576,$A441,CM$1))","v":""},{"$f":"IF($A441=\"N/A\",Ref!$B$36,INDEX(Ranks!$1:$1048576,$A441,CN$1))","v":""},{"$f":"IF($A441=\"N/A\",Ref!$B$36,INDEX(Ranks!$1:$1048576,$A441,CO$1))","v":""},{"$f":"IF($A441=\"N/A\",Ref!$B$36,INDEX(Ranks!$1:$1048576,$A441,CP$1))","v":""},{"$f":"IF($A441=\"N/A\",Ref!$B$36,INDEX(Ranks!$1:$1048576,$A441,CQ$1))","v":""},{"$f":"IF($A441=\"N/A\",Ref!$B$36,INDEX(Ranks!$1:$1048576,$A441,CR$1))","v":""},{"$f":"IF($A441=\"N/A\",Ref!$B$36,INDEX(Ranks!$1:$1048576,$A441,CS$1))","v":""},{"$f":"IF($A441=\"N/A\",Ref!$B$36,INDEX(Ranks!$1:$1048576,$A441,CT$1))","v":""},{"$f":"IF($A441=\"N/A\",Ref!$B$36,INDEX(Ranks!$1:$1048576,$A441,CU$1))","v":""},{"$f":"IF($A441=\"N/A\",Ref!$B$36,INDEX(Ranks!$1:$1048576,$A441,CV$1))","v":""},{"$f":"IF($A441=\"N/A\",Ref!$B$36,INDEX(Ranks!$1:$1048576,$A441,CW$1))","v":""},{"$f":"IF($A441=\"N/A\",Ref!$B$36,INDEX(Ranks!$1:$1048576,$A441,CX$1))","v":""},{"$f":"IF($A441=\"N/A\",Ref!$B$36,INDEX(Ranks!$1:$1048576,$A441,CY$1))","v":""},{"$f":"IF($A441=\"N/A\",Ref!$B$36,INDEX(Ranks!$1:$1048576,$A441,CZ$1))","v":""},{"$f":"IF($A441=\"N/A\",Ref!$B$36,INDEX(Ranks!$1:$1048576,$A441,DA$1))","v":""},{"$f":"IF($A441=\"N/A\",Ref!$B$36,INDEX(Ranks!$1:$1048576,$A441,DB$1))","v":""},{"$f":"IF($A441=\"N/A\",Ref!$B$36,INDEX(Ranks!$1:$1048576,$A441,DC$1))","v":""},{"$f":"IF($A441=\"N/A\",Ref!$B$36,INDEX(Ranks!$1:$1048576,$A441,DD$1))","v":""},{"$f":"IF($A441=\"N/A\",Ref!$B$36,INDEX(Ranks!$1:$1048576,$A441,DE$1))","v":""},{"$f":"IF($A441=\"N/A\",Ref!$B$36,INDEX(Ranks!$1:$1048576,$A441,DF$1))","v":""},{"$f":"IF($A441=\"N/A\",Ref!$B$36,INDEX(Ranks!$1:$1048576,$A441,DG$1))","v":""},{"$f":"IF($A441=\"N/A\",Ref!$B$36,INDEX(Ranks!$1:$1048576,$A441,DH$1))","v":""},{"$f":"IF($A441=\"N/A\",Ref!$B$36,INDEX(Ranks!$1:$1048576,$A441,DI$1))","v":""},{"$f":"IF($A441=\"N/A\",Ref!$B$36,INDEX(Ranks!$1:$1048576,$A441,DJ$1))","v":""},{"$f":"IF($A441=\"N/A\",Ref!$B$36,INDEX(Ranks!$1:$1048576,$A441,DK$1))","v":""},{"$f":"IF($A441=\"N/A\",Ref!$B$36,INDEX(Ranks!$1:$1048576,$A441,DL$1))","v":""},{"$f":"IF($A441=\"N/A\",Ref!$B$36,INDEX(Ranks!$1:$1048576,$A441,DM$1))","v":""},{"$f":"IF($A441=\"N/A\",Ref!$B$36,INDEX(Ranks!$1:$1048576,$A441,DN$1))","v":""},{"$f":"IF($A441=\"N/A\",Ref!$B$36,INDEX(Ranks!$1:$1048576,$A441,DO$1))","v":""},{"$f":"IF($A441=\"N/A\",Ref!$B$36,INDEX(Ranks!$1:$1048576,$A441,DP$1))","v":""},{"$f":"IF($A441=\"N/A\",Ref!$B$36,INDEX(Ranks!$1:$1048576,$A441,DQ$1))","v":""},{"$f":"IF($A441=\"N/A\",Ref!$B$36,INDEX(Ranks!$1:$1048576,$A441,DR$1))","v":""},{"$f":"IF($A441=\"N/A\",Ref!$B$36,INDEX(Ranks!$1:$1048576,$A441,DS$1))","v":""},{"$f":"IF($A441=\"N/A\",Ref!$B$36,INDEX(Ranks!$1:$1048576,$A441,DT$1))","v":""},{"$f":"IF($A441=\"N/A\",Ref!$B$36,INDEX(Ranks!$1:$1048576,$A441,DU$1))","v":""},{"$f":"IF($A441=\"N/A\",Ref!$B$36,INDEX(Ranks!$1:$1048576,$A441,DV$1))","v":""},{"$f":"IF($A441=\"N/A\",Ref!$B$36,INDEX(Ranks!$1:$1048576,$A441,DW$1))","v":""},{"$f":"IF($A441=\"N/A\",Ref!$B$36,INDEX(Ranks!$1:$1048576,$A441,DX$1))","v":""},{"$f":"IF($A441=\"N/A\",Ref!$B$36,INDEX(Ranks!$1:$1048576,$A441,DY$1))","v":""},{"$f":"IF($A441=\"N/A\",Ref!$B$36,INDEX(Ranks!$1:$1048576,$A441,DZ$1))","v":""},{"$f":"IF($A441=\"N/A\",Ref!$B$36,INDEX(Ranks!$1:$1048576,$A441,EA$1))","v":""},{"$f":"IF($A441=\"N/A\",Ref!$B$36,INDEX(Ranks!$1:$1048576,$A441,EB$1))","v":""}]
[{"$f":"IFERROR(MATCH('Portfolio Page'!L442,Ranks!L:L,0),\"N/A\")","v":"N/A"},null,{"$f":"IF($A442=\"N/A\",\"\",INDEX(Ranks!$1:$1048576,$A442,C$1))","v":""},{"$f":"IF($A442=\"N/A\",Ref!$B$36,INDEX(Ranks!$1:$1048576,$A442,D$1))","v":""},{"$f":"IF($A442=\"N/A\",Ref!$B$36,INDEX(Ranks!$1:$1048576,$A442,E$1))","v":""},{"$f":"IF($A442=\"N/A\",\"\",INDEX(Ranks!$1:$1048576,$A442,F$1))","v":""},{"$f":"IF($A442=\"N/A\",\"\",INDEX(Ranks!$1:$1048576,$A442,G$1))","v":""},{"$f":"IF($A442=\"N/A\",\"\",INDEX(Ranks!$1:$1048576,$A442,H$1))","v":""},{"$f":"IF($A442=\"N/A\",\"\",INDEX(Ranks!$1:$1048576,$A442,I$1))","v":""},{"$f":"IF($A442=\"N/A\",\"\",INDEX(Ranks!$1:$1048576,$A442,J$1))","v":""},{"$f":"IF($A442=\"N/A\",\"\",INDEX(Ranks!$1:$1048576,$A442,K$1))","v":""},null,{"$f":"IF($A442=\"N/A\",Ref!$B$36,INDEX(Ranks!$1:$1048576,$A442,M$1))","v":""},{"$f":"IF($A442=\"N/A\",Ref!$B$36,INDEX(Ranks!$1:$1048576,$A442,N$1))","v":""},{"$f":"IF($A442=\"N/A\",Ref!$B$36,INDEX(Ranks!$1:$1048576,$A442,O$1))","v":""},{"$f":"IF($A442=\"N/A\",Ref!$B$36,INDEX(Ranks!$1:$1048576,$A442,P$1))","v":""},{"$f":"IF($A442=\"N/A\",Ref!$B$36,INDEX(Ranks!$1:$1048576,$A442,Q$1))","v":""},{"$f":"IF($A442=\"N/A\",Ref!$B$36,INDEX(Ranks!$1:$1048576,$A442,R$1))","v":""},{"$f":"IF($A442=\"N/A\",Ref!$B$36,INDEX(Ranks!$1:$1048576,$A442,S$1))","v":""},{"$f":"IF($A442=\"N/A\",Ref!$B$36,INDEX(Ranks!$1:$1048576,$A442,T$1))","v":""},{"$f":"IF($A442=\"N/A\",Ref!$B$36,INDEX(Ranks!$1:$1048576,$A442,U$1))","v":""},{"$f":"IF($A442=\"N/A\",Ref!$B$36,INDEX(Ranks!$1:$1048576,$A442,V$1))","v":""},{"$f":"IF($A442=\"N/A\",Ref!$B$36,INDEX(Ranks!$1:$1048576,$A442,W$1))","v":""},{"$f":"IF($A442=\"N/A\",Ref!$B$36,INDEX(Ranks!$1:$1048576,$A442,X$1))","v":""},{"$f":"IF($A442=\"N/A\",Ref!$B$36,INDEX(Ranks!$1:$1048576,$A442,Y$1))","v":""},{"$f":"IF($A442=\"N/A\",Ref!$B$36,INDEX(Ranks!$1:$1048576,$A442,Z$1))","v":""},{"$f":"IF($A442=\"N/A\",Ref!$B$36,INDEX(Ranks!$1:$1048576,$A442,AA$1))","v":""},{"$f":"IF($A442=\"N/A\",Ref!$B$36,INDEX(Ranks!$1:$1048576,$A442,AB$1))","v":""},{"$f":"IF($A442=\"N/A\",Ref!$B$36,INDEX(Ranks!$1:$1048576,$A442,AC$1))","v":""},{"$f":"IF($A442=\"N/A\",Ref!$B$36,INDEX(Ranks!$1:$1048576,$A442,AD$1))","v":""},{"$f":"IF($A442=\"N/A\",Ref!$B$36,INDEX(Ranks!$1:$1048576,$A442,AE$1))","v":""},{"$f":"IF($A442=\"N/A\",Ref!$B$36,INDEX(Ranks!$1:$1048576,$A442,AF$1))","v":""},{"$f":"IF($A442=\"N/A\",Ref!$B$36,INDEX(Ranks!$1:$1048576,$A442,AG$1))","v":""},{"$f":"IF($A442=\"N/A\",Ref!$B$36,INDEX(Ranks!$1:$1048576,$A442,AH$1))","v":""},{"$f":"IF($A442=\"N/A\",Ref!$B$36,INDEX(Ranks!$1:$1048576,$A442,AI$1))","v":""},{"$f":"IF($A442=\"N/A\",Ref!$B$36,INDEX(Ranks!$1:$1048576,$A442,AJ$1))","v":""},{"$f":"IF($A442=\"N/A\",Ref!$B$36,INDEX(Ranks!$1:$1048576,$A442,AK$1))","v":""},{"$f":"IF($A442=\"N/A\",Ref!$B$36,INDEX(Ranks!$1:$1048576,$A442,AL$1))","v":""},{"$f":"IF($A442=\"N/A\",Ref!$B$36,INDEX(Ranks!$1:$1048576,$A442,AM$1))","v":""},{"$f":"IF($A442=\"N/A\",Ref!$B$36,INDEX(Ranks!$1:$1048576,$A442,AN$1))","v":""},{"$f":"IF($A442=\"N/A\",Ref!$B$36,INDEX(Ranks!$1:$1048576,$A442,AO$1))","v":""},{"$f":"IF($A442=\"N/A\",Ref!$B$36,INDEX(Ranks!$1:$1048576,$A442,AP$1))","v":""},{"$f":"IF($A442=\"N/A\",Ref!$B$36,INDEX(Ranks!$1:$1048576,$A442,AQ$1))","v":""},{"$f":"IF($A442=\"N/A\",Ref!$B$36,INDEX(Ranks!$1:$1048576,$A442,AR$1))","v":""},{"$f":"IF($A442=\"N/A\",Ref!$B$36,INDEX(Ranks!$1:$1048576,$A442,AS$1))","v":""},{"$f":"IF($A442=\"N/A\",Ref!$B$36,INDEX(Ranks!$1:$1048576,$A442,AT$1))","v":""},{"$f":"IF($A442=\"N/A\",Ref!$B$36,INDEX(Ranks!$1:$1048576,$A442,AU$1))","v":""},{"$f":"IF($A442=\"N/A\",Ref!$B$36,INDEX(Ranks!$1:$1048576,$A442,AV$1))","v":""},{"$f":"IF($A442=\"N/A\",Ref!$B$36,INDEX(Ranks!$1:$1048576,$A442,AW$1))","v":""},{"$f":"IF($A442=\"N/A\",Ref!$B$36,INDEX(Ranks!$1:$1048576,$A442,AX$1))","v":""},{"$f":"IF($A442=\"N/A\",Ref!$B$36,INDEX(Ranks!$1:$1048576,$A442,AY$1))","v":""},{"$f":"IF($A442=\"N/A\",Ref!$B$36,INDEX(Ranks!$1:$1048576,$A442,AZ$1))","v":""},{"$f":"IF($A442=\"N/A\",Ref!$B$36,INDEX(Ranks!$1:$1048576,$A442,BA$1))","v":""},{"$f":"IF($A442=\"N/A\",Ref!$B$36,INDEX(Ranks!$1:$1048576,$A442,BB$1))","v":""},{"$f":"IF($A442=\"N/A\",Ref!$B$36,INDEX(Ranks!$1:$1048576,$A442,BC$1))","v":""},{"$f":"IF($A442=\"N/A\",Ref!$B$36,INDEX(Ranks!$1:$1048576,$A442,BD$1))","v":""},{"$f":"IF($A442=\"N/A\",Ref!$B$36,INDEX(Ranks!$1:$1048576,$A442,BE$1))","v":""},{"$f":"IF($A442=\"N/A\",Ref!$B$36,INDEX(Ranks!$1:$1048576,$A442,BF$1))","v":""},{"$f":"IF($A442=\"N/A\",Ref!$B$36,INDEX(Ranks!$1:$1048576,$A442,BG$1))","v":""},{"$f":"IF($A442=\"N/A\",Ref!$B$36,INDEX(Ranks!$1:$1048576,$A442,BH$1))","v":""},{"$f":"IF($A442=\"N/A\",Ref!$B$36,INDEX(Ranks!$1:$1048576,$A442,BI$1))","v":""},{"$f":"IF($A442=\"N/A\",Ref!$B$36,INDEX(Ranks!$1:$1048576,$A442,BJ$1))","v":""},{"$f":"IF($A442=\"N/A\",Ref!$B$36,INDEX(Ranks!$1:$1048576,$A442,BK$1))","v":""},{"$f":"IF($A442=\"N/A\",Ref!$B$36,INDEX(Ranks!$1:$1048576,$A442,BL$1))","v":""},{"$f":"IF($A442=\"N/A\",Ref!$B$36,INDEX(Ranks!$1:$1048576,$A442,BM$1))","v":""},{"$f":"IF($A442=\"N/A\",Ref!$B$36,INDEX(Ranks!$1:$1048576,$A442,BN$1))","v":""},{"$f":"IF($A442=\"N/A\",Ref!$B$36,INDEX(Ranks!$1:$1048576,$A442,BO$1))","v":""},{"$f":"IF($A442=\"N/A\",Ref!$B$36,INDEX(Ranks!$1:$1048576,$A442,BP$1))","v":""},{"$f":"IF($A442=\"N/A\",Ref!$B$36,INDEX(Ranks!$1:$1048576,$A442,BQ$1))","v":""},{"$f":"IF($A442=\"N/A\",Ref!$B$36,INDEX(Ranks!$1:$1048576,$A442,BR$1))","v":""},{"$f":"IF($A442=\"N/A\",Ref!$B$36,INDEX(Ranks!$1:$1048576,$A442,BS$1))","v":""},{"$f":"IF($A442=\"N/A\",Ref!$B$36,INDEX(Ranks!$1:$1048576,$A442,BT$1))","v":""},{"$f":"IF($A442=\"N/A\",Ref!$B$36,INDEX(Ranks!$1:$1048576,$A442,BU$1))","v":""},{"$f":"IF($A442=\"N/A\",Ref!$B$36,INDEX(Ranks!$1:$1048576,$A442,BV$1))","v":""},{"$f":"IF($A442=\"N/A\",Ref!$B$36,INDEX(Ranks!$1:$1048576,$A442,BW$1))","v":""},{"$f":"IF($A442=\"N/A\",Ref!$B$36,INDEX(Ranks!$1:$1048576,$A442,BX$1))","v":""},{"$f":"IF($A442=\"N/A\",Ref!$B$36,INDEX(Ranks!$1:$1048576,$A442,BY$1))","v":""},{"$f":"IF($A442=\"N/A\",Ref!$B$36,INDEX(Ranks!$1:$1048576,$A442,BZ$1))","v":""},{"$f":"IF($A442=\"N/A\",Ref!$B$36,INDEX(Ranks!$1:$1048576,$A442,CA$1))","v":""},{"$f":"IF($A442=\"N/A\",Ref!$B$36,INDEX(Ranks!$1:$1048576,$A442,CB$1))","v":""},{"$f":"IF($A442=\"N/A\",Ref!$B$36,INDEX(Ranks!$1:$1048576,$A442,CC$1))","v":""},{"$f":"IF($A442=\"N/A\",Ref!$B$36,INDEX(Ranks!$1:$1048576,$A442,CD$1))","v":""},{"$f":"IF($A442=\"N/A\",Ref!$B$36,INDEX(Ranks!$1:$1048576,$A442,CE$1))","v":""},{"$f":"IF($A442=\"N/A\",Ref!$B$36,INDEX(Ranks!$1:$1048576,$A442,CF$1))","v":""},{"$f":"IF($A442=\"N/A\",Ref!$B$36,INDEX(Ranks!$1:$1048576,$A442,CG$1))","v":""},{"$f":"IF($A442=\"N/A\",Ref!$B$36,INDEX(Ranks!$1:$1048576,$A442,CH$1))","v":""},{"$f":"IF($A442=\"N/A\",Ref!$B$36,INDEX(Ranks!$1:$1048576,$A442,CI$1))","v":""},{"$f":"IF($A442=\"N/A\",Ref!$B$36,INDEX(Ranks!$1:$1048576,$A442,CJ$1))","v":""},{"$f":"IF($A442=\"N/A\",Ref!$B$36,INDEX(Ranks!$1:$1048576,$A442,CK$1))","v":""},{"$f":"IF($A442=\"N/A\",Ref!$B$36,INDEX(Ranks!$1:$1048576,$A442,CL$1))","v":""},{"$f":"IF($A442=\"N/A\",Ref!$B$36,INDEX(Ranks!$1:$1048576,$A442,CM$1))","v":""},{"$f":"IF($A442=\"N/A\",Ref!$B$36,INDEX(Ranks!$1:$1048576,$A442,CN$1))","v":""},{"$f":"IF($A442=\"N/A\",Ref!$B$36,INDEX(Ranks!$1:$1048576,$A442,CO$1))","v":""},{"$f":"IF($A442=\"N/A\",Ref!$B$36,INDEX(Ranks!$1:$1048576,$A442,CP$1))","v":""},{"$f":"IF($A442=\"N/A\",Ref!$B$36,INDEX(Ranks!$1:$1048576,$A442,CQ$1))","v":""},{"$f":"IF($A442=\"N/A\",Ref!$B$36,INDEX(Ranks!$1:$1048576,$A442,CR$1))","v":""},{"$f":"IF($A442=\"N/A\",Ref!$B$36,INDEX(Ranks!$1:$1048576,$A442,CS$1))","v":""},{"$f":"IF($A442=\"N/A\",Ref!$B$36,INDEX(Ranks!$1:$1048576,$A442,CT$1))","v":""},{"$f":"IF($A442=\"N/A\",Ref!$B$36,INDEX(Ranks!$1:$1048576,$A442,CU$1))","v":""},{"$f":"IF($A442=\"N/A\",Ref!$B$36,INDEX(Ranks!$1:$1048576,$A442,CV$1))","v":""},{"$f":"IF($A442=\"N/A\",Ref!$B$36,INDEX(Ranks!$1:$1048576,$A442,CW$1))","v":""},{"$f":"IF($A442=\"N/A\",Ref!$B$36,INDEX(Ranks!$1:$1048576,$A442,CX$1))","v":""},{"$f":"IF($A442=\"N/A\",Ref!$B$36,INDEX(Ranks!$1:$1048576,$A442,CY$1))","v":""},{"$f":"IF($A442=\"N/A\",Ref!$B$36,INDEX(Ranks!$1:$1048576,$A442,CZ$1))","v":""},{"$f":"IF($A442=\"N/A\",Ref!$B$36,INDEX(Ranks!$1:$1048576,$A442,DA$1))","v":""},{"$f":"IF($A442=\"N/A\",Ref!$B$36,INDEX(Ranks!$1:$1048576,$A442,DB$1))","v":""},{"$f":"IF($A442=\"N/A\",Ref!$B$36,INDEX(Ranks!$1:$1048576,$A442,DC$1))","v":""},{"$f":"IF($A442=\"N/A\",Ref!$B$36,INDEX(Ranks!$1:$1048576,$A442,DD$1))","v":""},{"$f":"IF($A442=\"N/A\",Ref!$B$36,INDEX(Ranks!$1:$1048576,$A442,DE$1))","v":""},{"$f":"IF($A442=\"N/A\",Ref!$B$36,INDEX(Ranks!$1:$1048576,$A442,DF$1))","v":""},{"$f":"IF($A442=\"N/A\",Ref!$B$36,INDEX(Ranks!$1:$1048576,$A442,DG$1))","v":""},{"$f":"IF($A442=\"N/A\",Ref!$B$36,INDEX(Ranks!$1:$1048576,$A442,DH$1))","v":""},{"$f":"IF($A442=\"N/A\",Ref!$B$36,INDEX(Ranks!$1:$1048576,$A442,DI$1))","v":""},{"$f":"IF($A442=\"N/A\",Ref!$B$36,INDEX(Ranks!$1:$1048576,$A442,DJ$1))","v":""},{"$f":"IF($A442=\"N/A\",Ref!$B$36,INDEX(Ranks!$1:$1048576,$A442,DK$1))","v":""},{"$f":"IF($A442=\"N/A\",Ref!$B$36,INDEX(Ranks!$1:$1048576,$A442,DL$1))","v":""},{"$f":"IF($A442=\"N/A\",Ref!$B$36,INDEX(Ranks!$1:$1048576,$A442,DM$1))","v":""},{"$f":"IF($A442=\"N/A\",Ref!$B$36,INDEX(Ranks!$1:$1048576,$A442,DN$1))","v":""},{"$f":"IF($A442=\"N/A\",Ref!$B$36,INDEX(Ranks!$1:$1048576,$A442,DO$1))","v":""},{"$f":"IF($A442=\"N/A\",Ref!$B$36,INDEX(Ranks!$1:$1048576,$A442,DP$1))","v":""},{"$f":"IF($A442=\"N/A\",Ref!$B$36,INDEX(Ranks!$1:$1048576,$A442,DQ$1))","v":""},{"$f":"IF($A442=\"N/A\",Ref!$B$36,INDEX(Ranks!$1:$1048576,$A442,DR$1))","v":""},{"$f":"IF($A442=\"N/A\",Ref!$B$36,INDEX(Ranks!$1:$1048576,$A442,DS$1))","v":""},{"$f":"IF($A442=\"N/A\",Ref!$B$36,INDEX(Ranks!$1:$1048576,$A442,DT$1))","v":""},{"$f":"IF($A442=\"N/A\",Ref!$B$36,INDEX(Ranks!$1:$1048576,$A442,DU$1))","v":""},{"$f":"IF($A442=\"N/A\",Ref!$B$36,INDEX(Ranks!$1:$1048576,$A442,DV$1))","v":""},{"$f":"IF($A442=\"N/A\",Ref!$B$36,INDEX(Ranks!$1:$1048576,$A442,DW$1))","v":""},{"$f":"IF($A442=\"N/A\",Ref!$B$36,INDEX(Ranks!$1:$1048576,$A442,DX$1))","v":""},{"$f":"IF($A442=\"N/A\",Ref!$B$36,INDEX(Ranks!$1:$1048576,$A442,DY$1))","v":""},{"$f":"IF($A442=\"N/A\",Ref!$B$36,INDEX(Ranks!$1:$1048576,$A442,DZ$1))","v":""},{"$f":"IF($A442=\"N/A\",Ref!$B$36,INDEX(Ranks!$1:$1048576,$A442,EA$1))","v":""},{"$f":"IF($A442=\"N/A\",Ref!$B$36,INDEX(Ranks!$1:$1048576,$A442,EB$1))","v":""}]
[{"$f":"IFERROR(MATCH('Portfolio Page'!L443,Ranks!L:L,0),\"N/A\")","v":"N/A"},null,{"$f":"IF($A443=\"N/A\",\"\",INDEX(Ranks!$1:$1048576,$A443,C$1))","v":""},{"$f":"IF($A443=\"N/A\",Ref!$B$36,INDEX(Ranks!$1:$1048576,$A443,D$1))","v":""},{"$f":"IF($A443=\"N/A\",Ref!$B$36,INDEX(Ranks!$1:$1048576,$A443,E$1))","v":""},{"$f":"IF($A443=\"N/A\",\"\",INDEX(Ranks!$1:$1048576,$A443,F$1))","v":""},{"$f":"IF($A443=\"N/A\",\"\",INDEX(Ranks!$1:$1048576,$A443,G$1))","v":""},{"$f":"IF($A443=\"N/A\",\"\",INDEX(Ranks!$1:$1048576,$A443,H$1))","v":""},{"$f":"IF($A443=\"N/A\",\"\",INDEX(Ranks!$1:$1048576,$A443,I$1))","v":""},{"$f":"IF($A443=\"N/A\",\"\",INDEX(Ranks!$1:$1048576,$A443,J$1))","v":""},{"$f":"IF($A443=\"N/A\",\"\",INDEX(Ranks!$1:$1048576,$A443,K$1))","v":""},null,{"$f":"IF($A443=\"N/A\",Ref!$B$36,INDEX(Ranks!$1:$1048576,$A443,M$1))","v":""},{"$f":"IF($A443=\"N/A\",Ref!$B$36,INDEX(Ranks!$1:$1048576,$A443,N$1))","v":""},{"$f":"IF($A443=\"N/A\",Ref!$B$36,INDEX(Ranks!$1:$1048576,$A443,O$1))","v":""},{"$f":"IF($A443=\"N/A\",Ref!$B$36,INDEX(Ranks!$1:$1048576,$A443,P$1))","v":""},{"$f":"IF($A443=\"N/A\",Ref!$B$36,INDEX(Ranks!$1:$1048576,$A443,Q$1))","v":""},{"$f":"IF($A443=\"N/A\",Ref!$B$36,INDEX(Ranks!$1:$1048576,$A443,R$1))","v":""},{"$f":"IF($A443=\"N/A\",Ref!$B$36,INDEX(Ranks!$1:$1048576,$A443,S$1))","v":""},{"$f":"IF($A443=\"N/A\",Ref!$B$36,INDEX(Ranks!$1:$1048576,$A443,T$1))","v":""},{"$f":"IF($A443=\"N/A\",Ref!$B$36,INDEX(Ranks!$1:$1048576,$A443,U$1))","v":""},{"$f":"IF($A443=\"N/A\",Ref!$B$36,INDEX(Ranks!$1:$1048576,$A443,V$1))","v":""},{"$f":"IF($A443=\"N/A\",Ref!$B$36,INDEX(Ranks!$1:$1048576,$A443,W$1))","v":""},{"$f":"IF($A443=\"N/A\",Ref!$B$36,INDEX(Ranks!$1:$1048576,$A443,X$1))","v":""},{"$f":"IF($A443=\"N/A\",Ref!$B$36,INDEX(Ranks!$1:$1048576,$A443,Y$1))","v":""},{"$f":"IF($A443=\"N/A\",Ref!$B$36,INDEX(Ranks!$1:$1048576,$A443,Z$1))","v":""},{"$f":"IF($A443=\"N/A\",Ref!$B$36,INDEX(Ranks!$1:$1048576,$A443,AA$1))","v":""},{"$f":"IF($A443=\"N/A\",Ref!$B$36,INDEX(Ranks!$1:$1048576,$A443,AB$1))","v":""},{"$f":"IF($A443=\"N/A\",Ref!$B$36,INDEX(Ranks!$1:$1048576,$A443,AC$1))","v":""},{"$f":"IF($A443=\"N/A\",Ref!$B$36,INDEX(Ranks!$1:$1048576,$A443,AD$1))","v":""},{"$f":"IF($A443=\"N/A\",Ref!$B$36,INDEX(Ranks!$1:$1048576,$A443,AE$1))","v":""},{"$f":"IF($A443=\"N/A\",Ref!$B$36,INDEX(Ranks!$1:$1048576,$A443,AF$1))","v":""},{"$f":"IF($A443=\"N/A\",Ref!$B$36,INDEX(Ranks!$1:$1048576,$A443,AG$1))","v":""},{"$f":"IF($A443=\"N/A\",Ref!$B$36,INDEX(Ranks!$1:$1048576,$A443,AH$1))","v":""},{"$f":"IF($A443=\"N/A\",Ref!$B$36,INDEX(Ranks!$1:$1048576,$A443,AI$1))","v":""},{"$f":"IF($A443=\"N/A\",Ref!$B$36,INDEX(Ranks!$1:$1048576,$A443,AJ$1))","v":""},{"$f":"IF($A443=\"N/A\",Ref!$B$36,INDEX(Ranks!$1:$1048576,$A443,AK$1))","v":""},{"$f":"IF($A443=\"N/A\",Ref!$B$36,INDEX(Ranks!$1:$1048576,$A443,AL$1))","v":""},{"$f":"IF($A443=\"N/A\",Ref!$B$36,INDEX(Ranks!$1:$1048576,$A443,AM$1))","v":""},{"$f":"IF($A443=\"N/A\",Ref!$B$36,INDEX(Ranks!$1:$1048576,$A443,AN$1))","v":""},{"$f":"IF($A443=\"N/A\",Ref!$B$36,INDEX(Ranks!$1:$1048576,$A443,AO$1))","v":""},{"$f":"IF($A443=\"N/A\",Ref!$B$36,INDEX(Ranks!$1:$1048576,$A443,AP$1))","v":""},{"$f":"IF($A443=\"N/A\",Ref!$B$36,INDEX(Ranks!$1:$1048576,$A443,AQ$1))","v":""},{"$f":"IF($A443=\"N/A\",Ref!$B$36,INDEX(Ranks!$1:$1048576,$A443,AR$1))","v":""},{"$f":"IF($A443=\"N/A\",Ref!$B$36,INDEX(Ranks!$1:$1048576,$A443,AS$1))","v":""},{"$f":"IF($A443=\"N/A\",Ref!$B$36,INDEX(Ranks!$1:$1048576,$A443,AT$1))","v":""},{"$f":"IF($A443=\"N/A\",Ref!$B$36,INDEX(Ranks!$1:$1048576,$A443,AU$1))","v":""},{"$f":"IF($A443=\"N/A\",Ref!$B$36,INDEX(Ranks!$1:$1048576,$A443,AV$1))","v":""},{"$f":"IF($A443=\"N/A\",Ref!$B$36,INDEX(Ranks!$1:$1048576,$A443,AW$1))","v":""},{"$f":"IF($A443=\"N/A\",Ref!$B$36,INDEX(Ranks!$1:$1048576,$A443,AX$1))","v":""},{"$f":"IF($A443=\"N/A\",Ref!$B$36,INDEX(Ranks!$1:$1048576,$A443,AY$1))","v":""},{"$f":"IF($A443=\"N/A\",Ref!$B$36,INDEX(Ranks!$1:$1048576,$A443,AZ$1))","v":""},{"$f":"IF($A443=\"N/A\",Ref!$B$36,INDEX(Ranks!$1:$1048576,$A443,BA$1))","v":""},{"$f":"IF($A443=\"N/A\",Ref!$B$36,INDEX(Ranks!$1:$1048576,$A443,BB$1))","v":""},{"$f":"IF($A443=\"N/A\",Ref!$B$36,INDEX(Ranks!$1:$1048576,$A443,BC$1))","v":""},{"$f":"IF($A443=\"N/A\",Ref!$B$36,INDEX(Ranks!$1:$1048576,$A443,BD$1))","v":""},{"$f":"IF($A443=\"N/A\",Ref!$B$36,INDEX(Ranks!$1:$1048576,$A443,BE$1))","v":""},{"$f":"IF($A443=\"N/A\",Ref!$B$36,INDEX(Ranks!$1:$1048576,$A443,BF$1))","v":""},{"$f":"IF($A443=\"N/A\",Ref!$B$36,INDEX(Ranks!$1:$1048576,$A443,BG$1))","v":""},{"$f":"IF($A443=\"N/A\",Ref!$B$36,INDEX(Ranks!$1:$1048576,$A443,BH$1))","v":""},{"$f":"IF($A443=\"N/A\",Ref!$B$36,INDEX(Ranks!$1:$1048576,$A443,BI$1))","v":""},{"$f":"IF($A443=\"N/A\",Ref!$B$36,INDEX(Ranks!$1:$1048576,$A443,BJ$1))","v":""},{"$f":"IF($A443=\"N/A\",Ref!$B$36,INDEX(Ranks!$1:$1048576,$A443,BK$1))","v":""},{"$f":"IF($A443=\"N/A\",Ref!$B$36,INDEX(Ranks!$1:$1048576,$A443,BL$1))","v":""},{"$f":"IF($A443=\"N/A\",Ref!$B$36,INDEX(Ranks!$1:$1048576,$A443,BM$1))","v":""},{"$f":"IF($A443=\"N/A\",Ref!$B$36,INDEX(Ranks!$1:$1048576,$A443,BN$1))","v":""},{"$f":"IF($A443=\"N/A\",Ref!$B$36,INDEX(Ranks!$1:$1048576,$A443,BO$1))","v":""},{"$f":"IF($A443=\"N/A\",Ref!$B$36,INDEX(Ranks!$1:$1048576,$A443,BP$1))","v":""},{"$f":"IF($A443=\"N/A\",Ref!$B$36,INDEX(Ranks!$1:$1048576,$A443,BQ$1))","v":""},{"$f":"IF($A443=\"N/A\",Ref!$B$36,INDEX(Ranks!$1:$1048576,$A443,BR$1))","v":""},{"$f":"IF($A443=\"N/A\",Ref!$B$36,INDEX(Ranks!$1:$1048576,$A443,BS$1))","v":""},{"$f":"IF($A443=\"N/A\",Ref!$B$36,INDEX(Ranks!$1:$1048576,$A443,BT$1))","v":""},{"$f":"IF($A443=\"N/A\",Ref!$B$36,INDEX(Ranks!$1:$1048576,$A443,BU$1))","v":""},{"$f":"IF($A443=\"N/A\",Ref!$B$36,INDEX(Ranks!$1:$1048576,$A443,BV$1))","v":""},{"$f":"IF($A443=\"N/A\",Ref!$B$36,INDEX(Ranks!$1:$1048576,$A443,BW$1))","v":""},{"$f":"IF($A443=\"N/A\",Ref!$B$36,INDEX(Ranks!$1:$1048576,$A443,BX$1))","v":""},{"$f":"IF($A443=\"N/A\",Ref!$B$36,INDEX(Ranks!$1:$1048576,$A443,BY$1))","v":""},{"$f":"IF($A443=\"N/A\",Ref!$B$36,INDEX(Ranks!$1:$1048576,$A443,BZ$1))","v":""},{"$f":"IF($A443=\"N/A\",Ref!$B$36,INDEX(Ranks!$1:$1048576,$A443,CA$1))","v":""},{"$f":"IF($A443=\"N/A\",Ref!$B$36,INDEX(Ranks!$1:$1048576,$A443,CB$1))","v":""},{"$f":"IF($A443=\"N/A\",Ref!$B$36,INDEX(Ranks!$1:$1048576,$A443,CC$1))","v":""},{"$f":"IF($A443=\"N/A\",Ref!$B$36,INDEX(Ranks!$1:$1048576,$A443,CD$1))","v":""},{"$f":"IF($A443=\"N/A\",Ref!$B$36,INDEX(Ranks!$1:$1048576,$A443,CE$1))","v":""},{"$f":"IF($A443=\"N/A\",Ref!$B$36,INDEX(Ranks!$1:$1048576,$A443,CF$1))","v":""},{"$f":"IF($A443=\"N/A\",Ref!$B$36,INDEX(Ranks!$1:$1048576,$A443,CG$1))","v":""},{"$f":"IF($A443=\"N/A\",Ref!$B$36,INDEX(Ranks!$1:$1048576,$A443,CH$1))","v":""},{"$f":"IF($A443=\"N/A\",Ref!$B$36,INDEX(Ranks!$1:$1048576,$A443,CI$1))","v":""},{"$f":"IF($A443=\"N/A\",Ref!$B$36,INDEX(Ranks!$1:$1048576,$A443,CJ$1))","v":""},{"$f":"IF($A443=\"N/A\",Ref!$B$36,INDEX(Ranks!$1:$1048576,$A443,CK$1))","v":""},{"$f":"IF($A443=\"N/A\",Ref!$B$36,INDEX(Ranks!$1:$1048576,$A443,CL$1))","v":""},{"$f":"IF($A443=\"N/A\",Ref!$B$36,INDEX(Ranks!$1:$1048576,$A443,CM$1))","v":""},{"$f":"IF($A443=\"N/A\",Ref!$B$36,INDEX(Ranks!$1:$1048576,$A443,CN$1))","v":""},{"$f":"IF($A443=\"N/A\",Ref!$B$36,INDEX(Ranks!$1:$1048576,$A443,CO$1))","v":""},{"$f":"IF($A443=\"N/A\",Ref!$B$36,INDEX(Ranks!$1:$1048576,$A443,CP$1))","v":""},{"$f":"IF($A443=\"N/A\",Ref!$B$36,INDEX(Ranks!$1:$1048576,$A443,CQ$1))","v":""},{"$f":"IF($A443=\"N/A\",Ref!$B$36,INDEX(Ranks!$1:$1048576,$A443,CR$1))","v":""},{"$f":"IF($A443=\"N/A\",Ref!$B$36,INDEX(Ranks!$1:$1048576,$A443,CS$1))","v":""},{"$f":"IF($A443=\"N/A\",Ref!$B$36,INDEX(Ranks!$1:$1048576,$A443,CT$1))","v":""},{"$f":"IF($A443=\"N/A\",Ref!$B$36,INDEX(Ranks!$1:$1048576,$A443,CU$1))","v":""},{"$f":"IF($A443=\"N/A\",Ref!$B$36,INDEX(Ranks!$1:$1048576,$A443,CV$1))","v":""},{"$f":"IF($A443=\"N/A\",Ref!$B$36,INDEX(Ranks!$1:$1048576,$A443,CW$1))","v":""},{"$f":"IF($A443=\"N/A\",Ref!$B$36,INDEX(Ranks!$1:$1048576,$A443,CX$1))","v":""},{"$f":"IF($A443=\"N/A\",Ref!$B$36,INDEX(Ranks!$1:$1048576,$A443,CY$1))","v":""},{"$f":"IF($A443=\"N/A\",Ref!$B$36,INDEX(Ranks!$1:$1048576,$A443,CZ$1))","v":""},{"$f":"IF($A443=\"N/A\",Ref!$B$36,INDEX(Ranks!$1:$1048576,$A443,DA$1))","v":""},{"$f":"IF($A443=\"N/A\",Ref!$B$36,INDEX(Ranks!$1:$1048576,$A443,DB$1))","v":""},{"$f":"IF($A443=\"N/A\",Ref!$B$36,INDEX(Ranks!$1:$1048576,$A443,DC$1))","v":""},{"$f":"IF($A443=\"N/A\",Ref!$B$36,INDEX(Ranks!$1:$1048576,$A443,DD$1))","v":""},{"$f":"IF($A443=\"N/A\",Ref!$B$36,INDEX(Ranks!$1:$1048576,$A443,DE$1))","v":""},{"$f":"IF($A443=\"N/A\",Ref!$B$36,INDEX(Ranks!$1:$1048576,$A443,DF$1))","v":""},{"$f":"IF($A443=\"N/A\",Ref!$B$36,INDEX(Ranks!$1:$1048576,$A443,DG$1))","v":""},{"$f":"IF($A443=\"N/A\",Ref!$B$36,INDEX(Ranks!$1:$1048576,$A443,DH$1))","v":""},{"$f":"IF($A443=\"N/A\",Ref!$B$36,INDEX(Ranks!$1:$1048576,$A443,DI$1))","v":""},{"$f":"IF($A443=\"N/A\",Ref!$B$36,INDEX(Ranks!$1:$1048576,$A443,DJ$1))","v":""},{"$f":"IF($A443=\"N/A\",Ref!$B$36,INDEX(Ranks!$1:$1048576,$A443,DK$1))","v":""},{"$f":"IF($A443=\"N/A\",Ref!$B$36,INDEX(Ranks!$1:$1048576,$A443,DL$1))","v":""},{"$f":"IF($A443=\"N/A\",Ref!$B$36,INDEX(Ranks!$1:$1048576,$A443,DM$1))","v":""},{"$f":"IF($A443=\"N/A\",Ref!$B$36,INDEX(Ranks!$1:$1048576,$A443,DN$1))","v":""},{"$f":"IF($A443=\"N/A\",Ref!$B$36,INDEX(Ranks!$1:$1048576,$A443,DO$1))","v":""},{"$f":"IF($A443=\"N/A\",Ref!$B$36,INDEX(Ranks!$1:$1048576,$A443,DP$1))","v":""},{"$f":"IF($A443=\"N/A\",Ref!$B$36,INDEX(Ranks!$1:$1048576,$A443,DQ$1))","v":""},{"$f":"IF($A443=\"N/A\",Ref!$B$36,INDEX(Ranks!$1:$1048576,$A443,DR$1))","v":""},{"$f":"IF($A443=\"N/A\",Ref!$B$36,INDEX(Ranks!$1:$1048576,$A443,DS$1))","v":""},{"$f":"IF($A443=\"N/A\",Ref!$B$36,INDEX(Ranks!$1:$1048576,$A443,DT$1))","v":""},{"$f":"IF($A443=\"N/A\",Ref!$B$36,INDEX(Ranks!$1:$1048576,$A443,DU$1))","v":""},{"$f":"IF($A443=\"N/A\",Ref!$B$36,INDEX(Ranks!$1:$1048576,$A443,DV$1))","v":""},{"$f":"IF($A443=\"N/A\",Ref!$B$36,INDEX(Ranks!$1:$1048576,$A443,DW$1))","v":""},{"$f":"IF($A443=\"N/A\",Ref!$B$36,INDEX(Ranks!$1:$1048576,$A443,DX$1))","v":""},{"$f":"IF($A443=\"N/A\",Ref!$B$36,INDEX(Ranks!$1:$1048576,$A443,DY$1))","v":""},{"$f":"IF($A443=\"N/A\",Ref!$B$36,INDEX(Ranks!$1:$1048576,$A443,DZ$1))","v":""},{"$f":"IF($A443=\"N/A\",Ref!$B$36,INDEX(Ranks!$1:$1048576,$A443,EA$1))","v":""},{"$f":"IF($A443=\"N/A\",Ref!$B$36,INDEX(Ranks!$1:$1048576,$A443,EB$1))","v":""}]
[{"$f":"IFERROR(MATCH('Portfolio Page'!L444,Ranks!L:L,0),\"N/A\")","v":"N/A"},null,{"$f":"IF($A444=\"N/A\",\"\",INDEX(Ranks!$1:$1048576,$A444,C$1))","v":""},{"$f":"IF($A444=\"N/A\",Ref!$B$36,INDEX(Ranks!$1:$1048576,$A444,D$1))","v":""},{"$f":"IF($A444=\"N/A\",Ref!$B$36,INDEX(Ranks!$1:$1048576,$A444,E$1))","v":""},{"$f":"IF($A444=\"N/A\",\"\",INDEX(Ranks!$1:$1048576,$A444,F$1))","v":""},{"$f":"IF($A444=\"N/A\",\"\",INDEX(Ranks!$1:$1048576,$A444,G$1))","v":""},{"$f":"IF($A444=\"N/A\",\"\",INDEX(Ranks!$1:$1048576,$A444,H$1))","v":""},{"$f":"IF($A444=\"N/A\",\"\",INDEX(Ranks!$1:$1048576,$A444,I$1))","v":""},{"$f":"IF($A444=\"N/A\",\"\",INDEX(Ranks!$1:$1048576,$A444,J$1))","v":""},{"$f":"IF($A444=\"N/A\",\"\",INDEX(Ranks!$1:$1048576,$A444,K$1))","v":""},null,{"$f":"IF($A444=\"N/A\",Ref!$B$36,INDEX(Ranks!$1:$1048576,$A444,M$1))","v":""},{"$f":"IF($A444=\"N/A\",Ref!$B$36,INDEX(Ranks!$1:$1048576,$A444,N$1))","v":""},{"$f":"IF($A444=\"N/A\",Ref!$B$36,INDEX(Ranks!$1:$1048576,$A444,O$1))","v":""},{"$f":"IF($A444=\"N/A\",Ref!$B$36,INDEX(Ranks!$1:$1048576,$A444,P$1))","v":""},{"$f":"IF($A444=\"N/A\",Ref!$B$36,INDEX(Ranks!$1:$1048576,$A444,Q$1))","v":""},{"$f":"IF($A444=\"N/A\",Ref!$B$36,INDEX(Ranks!$1:$1048576,$A444,R$1))","v":""},{"$f":"IF($A444=\"N/A\",Ref!$B$36,INDEX(Ranks!$1:$1048576,$A444,S$1))","v":""},{"$f":"IF($A444=\"N/A\",Ref!$B$36,INDEX(Ranks!$1:$1048576,$A444,T$1))","v":""},{"$f":"IF($A444=\"N/A\",Ref!$B$36,INDEX(Ranks!$1:$1048576,$A444,U$1))","v":""},{"$f":"IF($A444=\"N/A\",Ref!$B$36,INDEX(Ranks!$1:$1048576,$A444,V$1))","v":""},{"$f":"IF($A444=\"N/A\",Ref!$B$36,INDEX(Ranks!$1:$1048576,$A444,W$1))","v":""},{"$f":"IF($A444=\"N/A\",Ref!$B$36,INDEX(Ranks!$1:$1048576,$A444,X$1))","v":""},{"$f":"IF($A444=\"N/A\",Ref!$B$36,INDEX(Ranks!$1:$1048576,$A444,Y$1))","v":""},{"$f":"IF($A444=\"N/A\",Ref!$B$36,INDEX(Ranks!$1:$1048576,$A444,Z$1))","v":""},{"$f":"IF($A444=\"N/A\",Ref!$B$36,INDEX(Ranks!$1:$1048576,$A444,AA$1))","v":""},{"$f":"IF($A444=\"N/A\",Ref!$B$36,INDEX(Ranks!$1:$1048576,$A444,AB$1))","v":""},{"$f":"IF($A444=\"N/A\",Ref!$B$36,INDEX(Ranks!$1:$1048576,$A444,AC$1))","v":""},{"$f":"IF($A444=\"N/A\",Ref!$B$36,INDEX(Ranks!$1:$1048576,$A444,AD$1))","v":""},{"$f":"IF($A444=\"N/A\",Ref!$B$36,INDEX(Ranks!$1:$1048576,$A444,AE$1))","v":""},{"$f":"IF($A444=\"N/A\",Ref!$B$36,INDEX(Ranks!$1:$1048576,$A444,AF$1))","v":""},{"$f":"IF($A444=\"N/A\",Ref!$B$36,INDEX(Ranks!$1:$1048576,$A444,AG$1))","v":""},{"$f":"IF($A444=\"N/A\",Ref!$B$36,INDEX(Ranks!$1:$1048576,$A444,AH$1))","v":""},{"$f":"IF($A444=\"N/A\",Ref!$B$36,INDEX(Ranks!$1:$1048576,$A444,AI$1))","v":""},{"$f":"IF($A444=\"N/A\",Ref!$B$36,INDEX(Ranks!$1:$1048576,$A444,AJ$1))","v":""},{"$f":"IF($A444=\"N/A\",Ref!$B$36,INDEX(Ranks!$1:$1048576,$A444,AK$1))","v":""},{"$f":"IF($A444=\"N/A\",Ref!$B$36,INDEX(Ranks!$1:$1048576,$A444,AL$1))","v":""},{"$f":"IF($A444=\"N/A\",Ref!$B$36,INDEX(Ranks!$1:$1048576,$A444,AM$1))","v":""},{"$f":"IF($A444=\"N/A\",Ref!$B$36,INDEX(Ranks!$1:$1048576,$A444,AN$1))","v":""},{"$f":"IF($A444=\"N/A\",Ref!$B$36,INDEX(Ranks!$1:$1048576,$A444,AO$1))","v":""},{"$f":"IF($A444=\"N/A\",Ref!$B$36,INDEX(Ranks!$1:$1048576,$A444,AP$1))","v":""},{"$f":"IF($A444=\"N/A\",Ref!$B$36,INDEX(Ranks!$1:$1048576,$A444,AQ$1))","v":""},{"$f":"IF($A444=\"N/A\",Ref!$B$36,INDEX(Ranks!$1:$1048576,$A444,AR$1))","v":""},{"$f":"IF($A444=\"N/A\",Ref!$B$36,INDEX(Ranks!$1:$1048576,$A444,AS$1))","v":""},{"$f":"IF($A444=\"N/A\",Ref!$B$36,INDEX(Ranks!$1:$1048576,$A444,AT$1))","v":""},{"$f":"IF($A444=\"N/A\",Ref!$B$36,INDEX(Ranks!$1:$1048576,$A444,AU$1))","v":""},{"$f":"IF($A444=\"N/A\",Ref!$B$36,INDEX(Ranks!$1:$1048576,$A444,AV$1))","v":""},{"$f":"IF($A444=\"N/A\",Ref!$B$36,INDEX(Ranks!$1:$1048576,$A444,AW$1))","v":""},{"$f":"IF($A444=\"N/A\",Ref!$B$36,INDEX(Ranks!$1:$1048576,$A444,AX$1))","v":""},{"$f":"IF($A444=\"N/A\",Ref!$B$36,INDEX(Ranks!$1:$1048576,$A444,AY$1))","v":""},{"$f":"IF($A444=\"N/A\",Ref!$B$36,INDEX(Ranks!$1:$1048576,$A444,AZ$1))","v":""},{"$f":"IF($A444=\"N/A\",Ref!$B$36,INDEX(Ranks!$1:$1048576,$A444,BA$1))","v":""},{"$f":"IF($A444=\"N/A\",Ref!$B$36,INDEX(Ranks!$1:$1048576,$A444,BB$1))","v":""},{"$f":"IF($A444=\"N/A\",Ref!$B$36,INDEX(Ranks!$1:$1048576,$A444,BC$1))","v":""},{"$f":"IF($A444=\"N/A\",Ref!$B$36,INDEX(Ranks!$1:$1048576,$A444,BD$1))","v":""},{"$f":"IF($A444=\"N/A\",Ref!$B$36,INDEX(Ranks!$1:$1048576,$A444,BE$1))","v":""},{"$f":"IF($A444=\"N/A\",Ref!$B$36,INDEX(Ranks!$1:$1048576,$A444,BF$1))","v":""},{"$f":"IF($A444=\"N/A\",Ref!$B$36,INDEX(Ranks!$1:$1048576,$A444,BG$1))","v":""},{"$f":"IF($A444=\"N/A\",Ref!$B$36,INDEX(Ranks!$1:$1048576,$A444,BH$1))","v":""},{"$f":"IF($A444=\"N/A\",Ref!$B$36,INDEX(Ranks!$1:$1048576,$A444,BI$1))","v":""},{"$f":"IF($A444=\"N/A\",Ref!$B$36,INDEX(Ranks!$1:$1048576,$A444,BJ$1))","v":""},{"$f":"IF($A444=\"N/A\",Ref!$B$36,INDEX(Ranks!$1:$1048576,$A444,BK$1))","v":""},{"$f":"IF($A444=\"N/A\",Ref!$B$36,INDEX(Ranks!$1:$1048576,$A444,BL$1))","v":""},{"$f":"IF($A444=\"N/A\",Ref!$B$36,INDEX(Ranks!$1:$1048576,$A444,BM$1))","v":""},{"$f":"IF($A444=\"N/A\",Ref!$B$36,INDEX(Ranks!$1:$1048576,$A444,BN$1))","v":""},{"$f":"IF($A444=\"N/A\",Ref!$B$36,INDEX(Ranks!$1:$1048576,$A444,BO$1))","v":""},{"$f":"IF($A444=\"N/A\",Ref!$B$36,INDEX(Ranks!$1:$1048576,$A444,BP$1))","v":""},{"$f":"IF($A444=\"N/A\",Ref!$B$36,INDEX(Ranks!$1:$1048576,$A444,BQ$1))","v":""},{"$f":"IF($A444=\"N/A\",Ref!$B$36,INDEX(Ranks!$1:$1048576,$A444,BR$1))","v":""},{"$f":"IF($A444=\"N/A\",Ref!$B$36,INDEX(Ranks!$1:$1048576,$A444,BS$1))","v":""},{"$f":"IF($A444=\"N/A\",Ref!$B$36,INDEX(Ranks!$1:$1048576,$A444,BT$1))","v":""},{"$f":"IF($A444=\"N/A\",Ref!$B$36,INDEX(Ranks!$1:$1048576,$A444,BU$1))","v":""},{"$f":"IF($A444=\"N/A\",Ref!$B$36,INDEX(Ranks!$1:$1048576,$A444,BV$1))","v":""},{"$f":"IF($A444=\"N/A\",Ref!$B$36,INDEX(Ranks!$1:$1048576,$A444,BW$1))","v":""},{"$f":"IF($A444=\"N/A\",Ref!$B$36,INDEX(Ranks!$1:$1048576,$A444,BX$1))","v":""},{"$f":"IF($A444=\"N/A\",Ref!$B$36,INDEX(Ranks!$1:$1048576,$A444,BY$1))","v":""},{"$f":"IF($A444=\"N/A\",Ref!$B$36,INDEX(Ranks!$1:$1048576,$A444,BZ$1))","v":""},{"$f":"IF($A444=\"N/A\",Ref!$B$36,INDEX(Ranks!$1:$1048576,$A444,CA$1))","v":""},{"$f":"IF($A444=\"N/A\",Ref!$B$36,INDEX(Ranks!$1:$1048576,$A444,CB$1))","v":""},{"$f":"IF($A444=\"N/A\",Ref!$B$36,INDEX(Ranks!$1:$1048576,$A444,CC$1))","v":""},{"$f":"IF($A444=\"N/A\",Ref!$B$36,INDEX(Ranks!$1:$1048576,$A444,CD$1))","v":""},{"$f":"IF($A444=\"N/A\",Ref!$B$36,INDEX(Ranks!$1:$1048576,$A444,CE$1))","v":""},{"$f":"IF($A444=\"N/A\",Ref!$B$36,INDEX(Ranks!$1:$1048576,$A444,CF$1))","v":""},{"$f":"IF($A444=\"N/A\",Ref!$B$36,INDEX(Ranks!$1:$1048576,$A444,CG$1))","v":""},{"$f":"IF($A444=\"N/A\",Ref!$B$36,INDEX(Ranks!$1:$1048576,$A444,CH$1))","v":""},{"$f":"IF($A444=\"N/A\",Ref!$B$36,INDEX(Ranks!$1:$1048576,$A444,CI$1))","v":""},{"$f":"IF($A444=\"N/A\",Ref!$B$36,INDEX(Ranks!$1:$1048576,$A444,CJ$1))","v":""},{"$f":"IF($A444=\"N/A\",Ref!$B$36,INDEX(Ranks!$1:$1048576,$A444,CK$1))","v":""},{"$f":"IF($A444=\"N/A\",Ref!$B$36,INDEX(Ranks!$1:$1048576,$A444,CL$1))","v":""},{"$f":"IF($A444=\"N/A\",Ref!$B$36,INDEX(Ranks!$1:$1048576,$A444,CM$1))","v":""},{"$f":"IF($A444=\"N/A\",Ref!$B$36,INDEX(Ranks!$1:$1048576,$A444,CN$1))","v":""},{"$f":"IF($A444=\"N/A\",Ref!$B$36,INDEX(Ranks!$1:$1048576,$A444,CO$1))","v":""},{"$f":"IF($A444=\"N/A\",Ref!$B$36,INDEX(Ranks!$1:$1048576,$A444,CP$1))","v":""},{"$f":"IF($A444=\"N/A\",Ref!$B$36,INDEX(Ranks!$1:$1048576,$A444,CQ$1))","v":""},{"$f":"IF($A444=\"N/A\",Ref!$B$36,INDEX(Ranks!$1:$1048576,$A444,CR$1))","v":""},{"$f":"IF($A444=\"N/A\",Ref!$B$36,INDEX(Ranks!$1:$1048576,$A444,CS$1))","v":""},{"$f":"IF($A444=\"N/A\",Ref!$B$36,INDEX(Ranks!$1:$1048576,$A444,CT$1))","v":""},{"$f":"IF($A444=\"N/A\",Ref!$B$36,INDEX(Ranks!$1:$1048576,$A444,CU$1))","v":""},{"$f":"IF($A444=\"N/A\",Ref!$B$36,INDEX(Ranks!$1:$1048576,$A444,CV$1))","v":""},{"$f":"IF($A444=\"N/A\",Ref!$B$36,INDEX(Ranks!$1:$1048576,$A444,CW$1))","v":""},{"$f":"IF($A444=\"N/A\",Ref!$B$36,INDEX(Ranks!$1:$1048576,$A444,CX$1))","v":""},{"$f":"IF($A444=\"N/A\",Ref!$B$36,INDEX(Ranks!$1:$1048576,$A444,CY$1))","v":""},{"$f":"IF($A444=\"N/A\",Ref!$B$36,INDEX(Ranks!$1:$1048576,$A444,CZ$1))","v":""},{"$f":"IF($A444=\"N/A\",Ref!$B$36,INDEX(Ranks!$1:$1048576,$A444,DA$1))","v":""},{"$f":"IF($A444=\"N/A\",Ref!$B$36,INDEX(Ranks!$1:$1048576,$A444,DB$1))","v":""},{"$f":"IF($A444=\"N/A\",Ref!$B$36,INDEX(Ranks!$1:$1048576,$A444,DC$1))","v":""},{"$f":"IF($A444=\"N/A\",Ref!$B$36,INDEX(Ranks!$1:$1048576,$A444,DD$1))","v":""},{"$f":"IF($A444=\"N/A\",Ref!$B$36,INDEX(Ranks!$1:$1048576,$A444,DE$1))","v":""},{"$f":"IF($A444=\"N/A\",Ref!$B$36,INDEX(Ranks!$1:$1048576,$A444,DF$1))","v":""},{"$f":"IF($A444=\"N/A\",Ref!$B$36,INDEX(Ranks!$1:$1048576,$A444,DG$1))","v":""},{"$f":"IF($A444=\"N/A\",Ref!$B$36,INDEX(Ranks!$1:$1048576,$A444,DH$1))","v":""},{"$f":"IF($A444=\"N/A\",Ref!$B$36,INDEX(Ranks!$1:$1048576,$A444,DI$1))","v":""},{"$f":"IF($A444=\"N/A\",Ref!$B$36,INDEX(Ranks!$1:$1048576,$A444,DJ$1))","v":""},{"$f":"IF($A444=\"N/A\",Ref!$B$36,INDEX(Ranks!$1:$1048576,$A444,DK$1))","v":""},{"$f":"IF($A444=\"N/A\",Ref!$B$36,INDEX(Ranks!$1:$1048576,$A444,DL$1))","v":""},{"$f":"IF($A444=\"N/A\",Ref!$B$36,INDEX(Ranks!$1:$1048576,$A444,DM$1))","v":""},{"$f":"IF($A444=\"N/A\",Ref!$B$36,INDEX(Ranks!$1:$1048576,$A444,DN$1))","v":""},{"$f":"IF($A444=\"N/A\",Ref!$B$36,INDEX(Ranks!$1:$1048576,$A444,DO$1))","v":""},{"$f":"IF($A444=\"N/A\",Ref!$B$36,INDEX(Ranks!$1:$1048576,$A444,DP$1))","v":""},{"$f":"IF($A444=\"N/A\",Ref!$B$36,INDEX(Ranks!$1:$1048576,$A444,DQ$1))","v":""},{"$f":"IF($A444=\"N/A\",Ref!$B$36,INDEX(Ranks!$1:$1048576,$A444,DR$1))","v":""},{"$f":"IF($A444=\"N/A\",Ref!$B$36,INDEX(Ranks!$1:$1048576,$A444,DS$1))","v":""},{"$f":"IF($A444=\"N/A\",Ref!$B$36,INDEX(Ranks!$1:$1048576,$A444,DT$1))","v":""},{"$f":"IF($A444=\"N/A\",Ref!$B$36,INDEX(Ranks!$1:$1048576,$A444,DU$1))","v":""},{"$f":"IF($A444=\"N/A\",Ref!$B$36,INDEX(Ranks!$1:$1048576,$A444,DV$1))","v":""},{"$f":"IF($A444=\"N/A\",Ref!$B$36,INDEX(Ranks!$1:$1048576,$A444,DW$1))","v":""},{"$f":"IF($A444=\"N/A\",Ref!$B$36,INDEX(Ranks!$1:$1048576,$A444,DX$1))","v":""},{"$f":"IF($A444=\"N/A\",Ref!$B$36,INDEX(Ranks!$1:$1048576,$A444,DY$1))","v":""},{"$f":"IF($A444=\"N/A\",Ref!$B$36,INDEX(Ranks!$1:$1048576,$A444,DZ$1))","v":""},{"$f":"IF($A444=\"N/A\",Ref!$B$36,INDEX(Ranks!$1:$1048576,$A444,EA$1))","v":""},{"$f":"IF($A444=\"N/A\",Ref!$B$36,INDEX(Ranks!$1:$1048576,$A444,EB$1))","v":""}]
[{"$f":"IFERROR(MATCH('Portfolio Page'!L445,Ranks!L:L,0),\"N/A\")","v":"N/A"},null,{"$f":"IF($A445=\"N/A\",\"\",INDEX(Ranks!$1:$1048576,$A445,C$1))","v":""},{"$f":"IF($A445=\"N/A\",Ref!$B$36,INDEX(Ranks!$1:$1048576,$A445,D$1))","v":""},{"$f":"IF($A445=\"N/A\",Ref!$B$36,INDEX(Ranks!$1:$1048576,$A445,E$1))","v":""},{"$f":"IF($A445=\"N/A\",\"\",INDEX(Ranks!$1:$1048576,$A445,F$1))","v":""},{"$f":"IF($A445=\"N/A\",\"\",INDEX(Ranks!$1:$1048576,$A445,G$1))","v":""},{"$f":"IF($A445=\"N/A\",\"\",INDEX(Ranks!$1:$1048576,$A445,H$1))","v":""},{"$f":"IF($A445=\"N/A\",\"\",INDEX(Ranks!$1:$1048576,$A445,I$1))","v":""},{"$f":"IF($A445=\"N/A\",\"\",INDEX(Ranks!$1:$1048576,$A445,J$1))","v":""},{"$f":"IF($A445=\"N/A\",\"\",INDEX(Ranks!$1:$1048576,$A445,K$1))","v":""},null,{"$f":"IF($A445=\"N/A\",Ref!$B$36,INDEX(Ranks!$1:$1048576,$A445,M$1))","v":""},{"$f":"IF($A445=\"N/A\",Ref!$B$36,INDEX(Ranks!$1:$1048576,$A445,N$1))","v":""},{"$f":"IF($A445=\"N/A\",Ref!$B$36,INDEX(Ranks!$1:$1048576,$A445,O$1))","v":""},{"$f":"IF($A445=\"N/A\",Ref!$B$36,INDEX(Ranks!$1:$1048576,$A445,P$1))","v":""},{"$f":"IF($A445=\"N/A\",Ref!$B$36,INDEX(Ranks!$1:$1048576,$A445,Q$1))","v":""},{"$f":"IF($A445=\"N/A\",Ref!$B$36,INDEX(Ranks!$1:$1048576,$A445,R$1))","v":""},{"$f":"IF($A445=\"N/A\",Ref!$B$36,INDEX(Ranks!$1:$1048576,$A445,S$1))","v":""},{"$f":"IF($A445=\"N/A\",Ref!$B$36,INDEX(Ranks!$1:$1048576,$A445,T$1))","v":""},{"$f":"IF($A445=\"N/A\",Ref!$B$36,INDEX(Ranks!$1:$1048576,$A445,U$1))","v":""},{"$f":"IF($A445=\"N/A\",Ref!$B$36,INDEX(Ranks!$1:$1048576,$A445,V$1))","v":""},{"$f":"IF($A445=\"N/A\",Ref!$B$36,INDEX(Ranks!$1:$1048576,$A445,W$1))","v":""},{"$f":"IF($A445=\"N/A\",Ref!$B$36,INDEX(Ranks!$1:$1048576,$A445,X$1))","v":""},{"$f":"IF($A445=\"N/A\",Ref!$B$36,INDEX(Ranks!$1:$1048576,$A445,Y$1))","v":""},{"$f":"IF($A445=\"N/A\",Ref!$B$36,INDEX(Ranks!$1:$1048576,$A445,Z$1))","v":""},{"$f":"IF($A445=\"N/A\",Ref!$B$36,INDEX(Ranks!$1:$1048576,$A445,AA$1))","v":""},{"$f":"IF($A445=\"N/A\",Ref!$B$36,INDEX(Ranks!$1:$1048576,$A445,AB$1))","v":""},{"$f":"IF($A445=\"N/A\",Ref!$B$36,INDEX(Ranks!$1:$1048576,$A445,AC$1))","v":""},{"$f":"IF($A445=\"N/A\",Ref!$B$36,INDEX(Ranks!$1:$1048576,$A445,AD$1))","v":""},{"$f":"IF($A445=\"N/A\",Ref!$B$36,INDEX(Ranks!$1:$1048576,$A445,AE$1))","v":""},{"$f":"IF($A445=\"N/A\",Ref!$B$36,INDEX(Ranks!$1:$1048576,$A445,AF$1))","v":""},{"$f":"IF($A445=\"N/A\",Ref!$B$36,INDEX(Ranks!$1:$1048576,$A445,AG$1))","v":""},{"$f":"IF($A445=\"N/A\",Ref!$B$36,INDEX(Ranks!$1:$1048576,$A445,AH$1))","v":""},{"$f":"IF($A445=\"N/A\",Ref!$B$36,INDEX(Ranks!$1:$1048576,$A445,AI$1))","v":""},{"$f":"IF($A445=\"N/A\",Ref!$B$36,INDEX(Ranks!$1:$1048576,$A445,AJ$1))","v":""},{"$f":"IF($A445=\"N/A\",Ref!$B$36,INDEX(Ranks!$1:$1048576,$A445,AK$1))","v":""},{"$f":"IF($A445=\"N/A\",Ref!$B$36,INDEX(Ranks!$1:$1048576,$A445,AL$1))","v":""},{"$f":"IF($A445=\"N/A\",Ref!$B$36,INDEX(Ranks!$1:$1048576,$A445,AM$1))","v":""},{"$f":"IF($A445=\"N/A\",Ref!$B$36,INDEX(Ranks!$1:$1048576,$A445,AN$1))","v":""},{"$f":"IF($A445=\"N/A\",Ref!$B$36,INDEX(Ranks!$1:$1048576,$A445,AO$1))","v":""},{"$f":"IF($A445=\"N/A\",Ref!$B$36,INDEX(Ranks!$1:$1048576,$A445,AP$1))","v":""},{"$f":"IF($A445=\"N/A\",Ref!$B$36,INDEX(Ranks!$1:$1048576,$A445,AQ$1))","v":""},{"$f":"IF($A445=\"N/A\",Ref!$B$36,INDEX(Ranks!$1:$1048576,$A445,AR$1))","v":""},{"$f":"IF($A445=\"N/A\",Ref!$B$36,INDEX(Ranks!$1:$1048576,$A445,AS$1))","v":""},{"$f":"IF($A445=\"N/A\",Ref!$B$36,INDEX(Ranks!$1:$1048576,$A445,AT$1))","v":""},{"$f":"IF($A445=\"N/A\",Ref!$B$36,INDEX(Ranks!$1:$1048576,$A445,AU$1))","v":""},{"$f":"IF($A445=\"N/A\",Ref!$B$36,INDEX(Ranks!$1:$1048576,$A445,AV$1))","v":""},{"$f":"IF($A445=\"N/A\",Ref!$B$36,INDEX(Ranks!$1:$1048576,$A445,AW$1))","v":""},{"$f":"IF($A445=\"N/A\",Ref!$B$36,INDEX(Ranks!$1:$1048576,$A445,AX$1))","v":""},{"$f":"IF($A445=\"N/A\",Ref!$B$36,INDEX(Ranks!$1:$1048576,$A445,AY$1))","v":""},{"$f":"IF($A445=\"N/A\",Ref!$B$36,INDEX(Ranks!$1:$1048576,$A445,AZ$1))","v":""},{"$f":"IF($A445=\"N/A\",Ref!$B$36,INDEX(Ranks!$1:$1048576,$A445,BA$1))","v":""},{"$f":"IF($A445=\"N/A\",Ref!$B$36,INDEX(Ranks!$1:$1048576,$A445,BB$1))","v":""},{"$f":"IF($A445=\"N/A\",Ref!$B$36,INDEX(Ranks!$1:$1048576,$A445,BC$1))","v":""},{"$f":"IF($A445=\"N/A\",Ref!$B$36,INDEX(Ranks!$1:$1048576,$A445,BD$1))","v":""},{"$f":"IF($A445=\"N/A\",Ref!$B$36,INDEX(Ranks!$1:$1048576,$A445,BE$1))","v":""},{"$f":"IF($A445=\"N/A\",Ref!$B$36,INDEX(Ranks!$1:$1048576,$A445,BF$1))","v":""},{"$f":"IF($A445=\"N/A\",Ref!$B$36,INDEX(Ranks!$1:$1048576,$A445,BG$1))","v":""},{"$f":"IF($A445=\"N/A\",Ref!$B$36,INDEX(Ranks!$1:$1048576,$A445,BH$1))","v":""},{"$f":"IF($A445=\"N/A\",Ref!$B$36,INDEX(Ranks!$1:$1048576,$A445,BI$1))","v":""},{"$f":"IF($A445=\"N/A\",Ref!$B$36,INDEX(Ranks!$1:$1048576,$A445,BJ$1))","v":""},{"$f":"IF($A445=\"N/A\",Ref!$B$36,INDEX(Ranks!$1:$1048576,$A445,BK$1))","v":""},{"$f":"IF($A445=\"N/A\",Ref!$B$36,INDEX(Ranks!$1:$1048576,$A445,BL$1))","v":""},{"$f":"IF($A445=\"N/A\",Ref!$B$36,INDEX(Ranks!$1:$1048576,$A445,BM$1))","v":""},{"$f":"IF($A445=\"N/A\",Ref!$B$36,INDEX(Ranks!$1:$1048576,$A445,BN$1))","v":""},{"$f":"IF($A445=\"N/A\",Ref!$B$36,INDEX(Ranks!$1:$1048576,$A445,BO$1))","v":""},{"$f":"IF($A445=\"N/A\",Ref!$B$36,INDEX(Ranks!$1:$1048576,$A445,BP$1))","v":""},{"$f":"IF($A445=\"N/A\",Ref!$B$36,INDEX(Ranks!$1:$1048576,$A445,BQ$1))","v":""},{"$f":"IF($A445=\"N/A\",Ref!$B$36,INDEX(Ranks!$1:$1048576,$A445,BR$1))","v":""},{"$f":"IF($A445=\"N/A\",Ref!$B$36,INDEX(Ranks!$1:$1048576,$A445,BS$1))","v":""},{"$f":"IF($A445=\"N/A\",Ref!$B$36,INDEX(Ranks!$1:$1048576,$A445,BT$1))","v":""},{"$f":"IF($A445=\"N/A\",Ref!$B$36,INDEX(Ranks!$1:$1048576,$A445,BU$1))","v":""},{"$f":"IF($A445=\"N/A\",Ref!$B$36,INDEX(Ranks!$1:$1048576,$A445,BV$1))","v":""},{"$f":"IF($A445=\"N/A\",Ref!$B$36,INDEX(Ranks!$1:$1048576,$A445,BW$1))","v":""},{"$f":"IF($A445=\"N/A\",Ref!$B$36,INDEX(Ranks!$1:$1048576,$A445,BX$1))","v":""},{"$f":"IF($A445=\"N/A\",Ref!$B$36,INDEX(Ranks!$1:$1048576,$A445,BY$1))","v":""},{"$f":"IF($A445=\"N/A\",Ref!$B$36,INDEX(Ranks!$1:$1048576,$A445,BZ$1))","v":""},{"$f":"IF($A445=\"N/A\",Ref!$B$36,INDEX(Ranks!$1:$1048576,$A445,CA$1))","v":""},{"$f":"IF($A445=\"N/A\",Ref!$B$36,INDEX(Ranks!$1:$1048576,$A445,CB$1))","v":""},{"$f":"IF($A445=\"N/A\",Ref!$B$36,INDEX(Ranks!$1:$1048576,$A445,CC$1))","v":""},{"$f":"IF($A445=\"N/A\",Ref!$B$36,INDEX(Ranks!$1:$1048576,$A445,CD$1))","v":""},{"$f":"IF($A445=\"N/A\",Ref!$B$36,INDEX(Ranks!$1:$1048576,$A445,CE$1))","v":""},{"$f":"IF($A445=\"N/A\",Ref!$B$36,INDEX(Ranks!$1:$1048576,$A445,CF$1))","v":""},{"$f":"IF($A445=\"N/A\",Ref!$B$36,INDEX(Ranks!$1:$1048576,$A445,CG$1))","v":""},{"$f":"IF($A445=\"N/A\",Ref!$B$36,INDEX(Ranks!$1:$1048576,$A445,CH$1))","v":""},{"$f":"IF($A445=\"N/A\",Ref!$B$36,INDEX(Ranks!$1:$1048576,$A445,CI$1))","v":""},{"$f":"IF($A445=\"N/A\",Ref!$B$36,INDEX(Ranks!$1:$1048576,$A445,CJ$1))","v":""},{"$f":"IF($A445=\"N/A\",Ref!$B$36,INDEX(Ranks!$1:$1048576,$A445,CK$1))","v":""},{"$f":"IF($A445=\"N/A\",Ref!$B$36,INDEX(Ranks!$1:$1048576,$A445,CL$1))","v":""},{"$f":"IF($A445=\"N/A\",Ref!$B$36,INDEX(Ranks!$1:$1048576,$A445,CM$1))","v":""},{"$f":"IF($A445=\"N/A\",Ref!$B$36,INDEX(Ranks!$1:$1048576,$A445,CN$1))","v":""},{"$f":"IF($A445=\"N/A\",Ref!$B$36,INDEX(Ranks!$1:$1048576,$A445,CO$1))","v":""},{"$f":"IF($A445=\"N/A\",Ref!$B$36,INDEX(Ranks!$1:$1048576,$A445,CP$1))","v":""},{"$f":"IF($A445=\"N/A\",Ref!$B$36,INDEX(Ranks!$1:$1048576,$A445,CQ$1))","v":""},{"$f":"IF($A445=\"N/A\",Ref!$B$36,INDEX(Ranks!$1:$1048576,$A445,CR$1))","v":""},{"$f":"IF($A445=\"N/A\",Ref!$B$36,INDEX(Ranks!$1:$1048576,$A445,CS$1))","v":""},{"$f":"IF($A445=\"N/A\",Ref!$B$36,INDEX(Ranks!$1:$1048576,$A445,CT$1))","v":""},{"$f":"IF($A445=\"N/A\",Ref!$B$36,INDEX(Ranks!$1:$1048576,$A445,CU$1))","v":""},{"$f":"IF($A445=\"N/A\",Ref!$B$36,INDEX(Ranks!$1:$1048576,$A445,CV$1))","v":""},{"$f":"IF($A445=\"N/A\",Ref!$B$36,INDEX(Ranks!$1:$1048576,$A445,CW$1))","v":""},{"$f":"IF($A445=\"N/A\",Ref!$B$36,INDEX(Ranks!$1:$1048576,$A445,CX$1))","v":""},{"$f":"IF($A445=\"N/A\",Ref!$B$36,INDEX(Ranks!$1:$1048576,$A445,CY$1))","v":""},{"$f":"IF($A445=\"N/A\",Ref!$B$36,INDEX(Ranks!$1:$1048576,$A445,CZ$1))","v":""},{"$f":"IF($A445=\"N/A\",Ref!$B$36,INDEX(Ranks!$1:$1048576,$A445,DA$1))","v":""},{"$f":"IF($A445=\"N/A\",Ref!$B$36,INDEX(Ranks!$1:$1048576,$A445,DB$1))","v":""},{"$f":"IF($A445=\"N/A\",Ref!$B$36,INDEX(Ranks!$1:$1048576,$A445,DC$1))","v":""},{"$f":"IF($A445=\"N/A\",Ref!$B$36,INDEX(Ranks!$1:$1048576,$A445,DD$1))","v":""},{"$f":"IF($A445=\"N/A\",Ref!$B$36,INDEX(Ranks!$1:$1048576,$A445,DE$1))","v":""},{"$f":"IF($A445=\"N/A\",Ref!$B$36,INDEX(Ranks!$1:$1048576,$A445,DF$1))","v":""},{"$f":"IF($A445=\"N/A\",Ref!$B$36,INDEX(Ranks!$1:$1048576,$A445,DG$1))","v":""},{"$f":"IF($A445=\"N/A\",Ref!$B$36,INDEX(Ranks!$1:$1048576,$A445,DH$1))","v":""},{"$f":"IF($A445=\"N/A\",Ref!$B$36,INDEX(Ranks!$1:$1048576,$A445,DI$1))","v":""},{"$f":"IF($A445=\"N/A\",Ref!$B$36,INDEX(Ranks!$1:$1048576,$A445,DJ$1))","v":""},{"$f":"IF($A445=\"N/A\",Ref!$B$36,INDEX(Ranks!$1:$1048576,$A445,DK$1))","v":""},{"$f":"IF($A445=\"N/A\",Ref!$B$36,INDEX(Ranks!$1:$1048576,$A445,DL$1))","v":""},{"$f":"IF($A445=\"N/A\",Ref!$B$36,INDEX(Ranks!$1:$1048576,$A445,DM$1))","v":""},{"$f":"IF($A445=\"N/A\",Ref!$B$36,INDEX(Ranks!$1:$1048576,$A445,DN$1))","v":""},{"$f":"IF($A445=\"N/A\",Ref!$B$36,INDEX(Ranks!$1:$1048576,$A445,DO$1))","v":""},{"$f":"IF($A445=\"N/A\",Ref!$B$36,INDEX(Ranks!$1:$1048576,$A445,DP$1))","v":""},{"$f":"IF($A445=\"N/A\",Ref!$B$36,INDEX(Ranks!$1:$1048576,$A445,DQ$1))","v":""},{"$f":"IF($A445=\"N/A\",Ref!$B$36,INDEX(Ranks!$1:$1048576,$A445,DR$1))","v":""},{"$f":"IF($A445=\"N/A\",Ref!$B$36,INDEX(Ranks!$1:$1048576,$A445,DS$1))","v":""},{"$f":"IF($A445=\"N/A\",Ref!$B$36,INDEX(Ranks!$1:$1048576,$A445,DT$1))","v":""},{"$f":"IF($A445=\"N/A\",Ref!$B$36,INDEX(Ranks!$1:$1048576,$A445,DU$1))","v":""},{"$f":"IF($A445=\"N/A\",Ref!$B$36,INDEX(Ranks!$1:$1048576,$A445,DV$1))","v":""},{"$f":"IF($A445=\"N/A\",Ref!$B$36,INDEX(Ranks!$1:$1048576,$A445,DW$1))","v":""},{"$f":"IF($A445=\"N/A\",Ref!$B$36,INDEX(Ranks!$1:$1048576,$A445,DX$1))","v":""},{"$f":"IF($A445=\"N/A\",Ref!$B$36,INDEX(Ranks!$1:$1048576,$A445,DY$1))","v":""},{"$f":"IF($A445=\"N/A\",Ref!$B$36,INDEX(Ranks!$1:$1048576,$A445,DZ$1))","v":""},{"$f":"IF($A445=\"N/A\",Ref!$B$36,INDEX(Ranks!$1:$1048576,$A445,EA$1))","v":""},{"$f":"IF($A445=\"N/A\",Ref!$B$36,INDEX(Ranks!$1:$1048576,$A445,EB$1))","v":""}]
[{"$f":"IFERROR(MATCH('Portfolio Page'!L446,Ranks!L:L,0),\"N/A\")","v":"N/A"},null,{"$f":"IF($A446=\"N/A\",\"\",INDEX(Ranks!$1:$1048576,$A446,C$1))","v":""},{"$f":"IF($A446=\"N/A\",Ref!$B$36,INDEX(Ranks!$1:$1048576,$A446,D$1))","v":""},{"$f":"IF($A446=\"N/A\",Ref!$B$36,INDEX(Ranks!$1:$1048576,$A446,E$1))","v":""},{"$f":"IF($A446=\"N/A\",\"\",INDEX(Ranks!$1:$1048576,$A446,F$1))","v":""},{"$f":"IF($A446=\"N/A\",\"\",INDEX(Ranks!$1:$1048576,$A446,G$1))","v":""},{"$f":"IF($A446=\"N/A\",\"\",INDEX(Ranks!$1:$1048576,$A446,H$1))","v":""},{"$f":"IF($A446=\"N/A\",\"\",INDEX(Ranks!$1:$1048576,$A446,I$1))","v":""},{"$f":"IF($A446=\"N/A\",\"\",INDEX(Ranks!$1:$1048576,$A446,J$1))","v":""},{"$f":"IF($A446=\"N/A\",\"\",INDEX(Ranks!$1:$1048576,$A446,K$1))","v":""},null,{"$f":"IF($A446=\"N/A\",Ref!$B$36,INDEX(Ranks!$1:$1048576,$A446,M$1))","v":""},{"$f":"IF($A446=\"N/A\",Ref!$B$36,INDEX(Ranks!$1:$1048576,$A446,N$1))","v":""},{"$f":"IF($A446=\"N/A\",Ref!$B$36,INDEX(Ranks!$1:$1048576,$A446,O$1))","v":""},{"$f":"IF($A446=\"N/A\",Ref!$B$36,INDEX(Ranks!$1:$1048576,$A446,P$1))","v":""},{"$f":"IF($A446=\"N/A\",Ref!$B$36,INDEX(Ranks!$1:$1048576,$A446,Q$1))","v":""},{"$f":"IF($A446=\"N/A\",Ref!$B$36,INDEX(Ranks!$1:$1048576,$A446,R$1))","v":""},{"$f":"IF($A446=\"N/A\",Ref!$B$36,INDEX(Ranks!$1:$1048576,$A446,S$1))","v":""},{"$f":"IF($A446=\"N/A\",Ref!$B$36,INDEX(Ranks!$1:$1048576,$A446,T$1))","v":""},{"$f":"IF($A446=\"N/A\",Ref!$B$36,INDEX(Ranks!$1:$1048576,$A446,U$1))","v":""},{"$f":"IF($A446=\"N/A\",Ref!$B$36,INDEX(Ranks!$1:$1048576,$A446,V$1))","v":""},{"$f":"IF($A446=\"N/A\",Ref!$B$36,INDEX(Ranks!$1:$1048576,$A446,W$1))","v":""},{"$f":"IF($A446=\"N/A\",Ref!$B$36,INDEX(Ranks!$1:$1048576,$A446,X$1))","v":""},{"$f":"IF($A446=\"N/A\",Ref!$B$36,INDEX(Ranks!$1:$1048576,$A446,Y$1))","v":""},{"$f":"IF($A446=\"N/A\",Ref!$B$36,INDEX(Ranks!$1:$1048576,$A446,Z$1))","v":""},{"$f":"IF($A446=\"N/A\",Ref!$B$36,INDEX(Ranks!$1:$1048576,$A446,AA$1))","v":""},{"$f":"IF($A446=\"N/A\",Ref!$B$36,INDEX(Ranks!$1:$1048576,$A446,AB$1))","v":""},{"$f":"IF($A446=\"N/A\",Ref!$B$36,INDEX(Ranks!$1:$1048576,$A446,AC$1))","v":""},{"$f":"IF($A446=\"N/A\",Ref!$B$36,INDEX(Ranks!$1:$1048576,$A446,AD$1))","v":""},{"$f":"IF($A446=\"N/A\",Ref!$B$36,INDEX(Ranks!$1:$1048576,$A446,AE$1))","v":""},{"$f":"IF($A446=\"N/A\",Ref!$B$36,INDEX(Ranks!$1:$1048576,$A446,AF$1))","v":""},{"$f":"IF($A446=\"N/A\",Ref!$B$36,INDEX(Ranks!$1:$1048576,$A446,AG$1))","v":""},{"$f":"IF($A446=\"N/A\",Ref!$B$36,INDEX(Ranks!$1:$1048576,$A446,AH$1))","v":""},{"$f":"IF($A446=\"N/A\",Ref!$B$36,INDEX(Ranks!$1:$1048576,$A446,AI$1))","v":""},{"$f":"IF($A446=\"N/A\",Ref!$B$36,INDEX(Ranks!$1:$1048576,$A446,AJ$1))","v":""},{"$f":"IF($A446=\"N/A\",Ref!$B$36,INDEX(Ranks!$1:$1048576,$A446,AK$1))","v":""},{"$f":"IF($A446=\"N/A\",Ref!$B$36,INDEX(Ranks!$1:$1048576,$A446,AL$1))","v":""},{"$f":"IF($A446=\"N/A\",Ref!$B$36,INDEX(Ranks!$1:$1048576,$A446,AM$1))","v":""},{"$f":"IF($A446=\"N/A\",Ref!$B$36,INDEX(Ranks!$1:$1048576,$A446,AN$1))","v":""},{"$f":"IF($A446=\"N/A\",Ref!$B$36,INDEX(Ranks!$1:$1048576,$A446,AO$1))","v":""},{"$f":"IF($A446=\"N/A\",Ref!$B$36,INDEX(Ranks!$1:$1048576,$A446,AP$1))","v":""},{"$f":"IF($A446=\"N/A\",Ref!$B$36,INDEX(Ranks!$1:$1048576,$A446,AQ$1))","v":""},{"$f":"IF($A446=\"N/A\",Ref!$B$36,INDEX(Ranks!$1:$1048576,$A446,AR$1))","v":""},{"$f":"IF($A446=\"N/A\",Ref!$B$36,INDEX(Ranks!$1:$1048576,$A446,AS$1))","v":""},{"$f":"IF($A446=\"N/A\",Ref!$B$36,INDEX(Ranks!$1:$1048576,$A446,AT$1))","v":""},{"$f":"IF($A446=\"N/A\",Ref!$B$36,INDEX(Ranks!$1:$1048576,$A446,AU$1))","v":""},{"$f":"IF($A446=\"N/A\",Ref!$B$36,INDEX(Ranks!$1:$1048576,$A446,AV$1))","v":""},{"$f":"IF($A446=\"N/A\",Ref!$B$36,INDEX(Ranks!$1:$1048576,$A446,AW$1))","v":""},{"$f":"IF($A446=\"N/A\",Ref!$B$36,INDEX(Ranks!$1:$1048576,$A446,AX$1))","v":""},{"$f":"IF($A446=\"N/A\",Ref!$B$36,INDEX(Ranks!$1:$1048576,$A446,AY$1))","v":""},{"$f":"IF($A446=\"N/A\",Ref!$B$36,INDEX(Ranks!$1:$1048576,$A446,AZ$1))","v":""},{"$f":"IF($A446=\"N/A\",Ref!$B$36,INDEX(Ranks!$1:$1048576,$A446,BA$1))","v":""},{"$f":"IF($A446=\"N/A\",Ref!$B$36,INDEX(Ranks!$1:$1048576,$A446,BB$1))","v":""},{"$f":"IF($A446=\"N/A\",Ref!$B$36,INDEX(Ranks!$1:$1048576,$A446,BC$1))","v":""},{"$f":"IF($A446=\"N/A\",Ref!$B$36,INDEX(Ranks!$1:$1048576,$A446,BD$1))","v":""},{"$f":"IF($A446=\"N/A\",Ref!$B$36,INDEX(Ranks!$1:$1048576,$A446,BE$1))","v":""},{"$f":"IF($A446=\"N/A\",Ref!$B$36,INDEX(Ranks!$1:$1048576,$A446,BF$1))","v":""},{"$f":"IF($A446=\"N/A\",Ref!$B$36,INDEX(Ranks!$1:$1048576,$A446,BG$1))","v":""},{"$f":"IF($A446=\"N/A\",Ref!$B$36,INDEX(Ranks!$1:$1048576,$A446,BH$1))","v":""},{"$f":"IF($A446=\"N/A\",Ref!$B$36,INDEX(Ranks!$1:$1048576,$A446,BI$1))","v":""},{"$f":"IF($A446=\"N/A\",Ref!$B$36,INDEX(Ranks!$1:$1048576,$A446,BJ$1))","v":""},{"$f":"IF($A446=\"N/A\",Ref!$B$36,INDEX(Ranks!$1:$1048576,$A446,BK$1))","v":""},{"$f":"IF($A446=\"N/A\",Ref!$B$36,INDEX(Ranks!$1:$1048576,$A446,BL$1))","v":""},{"$f":"IF($A446=\"N/A\",Ref!$B$36,INDEX(Ranks!$1:$1048576,$A446,BM$1))","v":""},{"$f":"IF($A446=\"N/A\",Ref!$B$36,INDEX(Ranks!$1:$1048576,$A446,BN$1))","v":""},{"$f":"IF($A446=\"N/A\",Ref!$B$36,INDEX(Ranks!$1:$1048576,$A446,BO$1))","v":""},{"$f":"IF($A446=\"N/A\",Ref!$B$36,INDEX(Ranks!$1:$1048576,$A446,BP$1))","v":""},{"$f":"IF($A446=\"N/A\",Ref!$B$36,INDEX(Ranks!$1:$1048576,$A446,BQ$1))","v":""},{"$f":"IF($A446=\"N/A\",Ref!$B$36,INDEX(Ranks!$1:$1048576,$A446,BR$1))","v":""},{"$f":"IF($A446=\"N/A\",Ref!$B$36,INDEX(Ranks!$1:$1048576,$A446,BS$1))","v":""},{"$f":"IF($A446=\"N/A\",Ref!$B$36,INDEX(Ranks!$1:$1048576,$A446,BT$1))","v":""},{"$f":"IF($A446=\"N/A\",Ref!$B$36,INDEX(Ranks!$1:$1048576,$A446,BU$1))","v":""},{"$f":"IF($A446=\"N/A\",Ref!$B$36,INDEX(Ranks!$1:$1048576,$A446,BV$1))","v":""},{"$f":"IF($A446=\"N/A\",Ref!$B$36,INDEX(Ranks!$1:$1048576,$A446,BW$1))","v":""},{"$f":"IF($A446=\"N/A\",Ref!$B$36,INDEX(Ranks!$1:$1048576,$A446,BX$1))","v":""},{"$f":"IF($A446=\"N/A\",Ref!$B$36,INDEX(Ranks!$1:$1048576,$A446,BY$1))","v":""},{"$f":"IF($A446=\"N/A\",Ref!$B$36,INDEX(Ranks!$1:$1048576,$A446,BZ$1))","v":""},{"$f":"IF($A446=\"N/A\",Ref!$B$36,INDEX(Ranks!$1:$1048576,$A446,CA$1))","v":""},{"$f":"IF($A446=\"N/A\",Ref!$B$36,INDEX(Ranks!$1:$1048576,$A446,CB$1))","v":""},{"$f":"IF($A446=\"N/A\",Ref!$B$36,INDEX(Ranks!$1:$1048576,$A446,CC$1))","v":""},{"$f":"IF($A446=\"N/A\",Ref!$B$36,INDEX(Ranks!$1:$1048576,$A446,CD$1))","v":""},{"$f":"IF($A446=\"N/A\",Ref!$B$36,INDEX(Ranks!$1:$1048576,$A446,CE$1))","v":""},{"$f":"IF($A446=\"N/A\",Ref!$B$36,INDEX(Ranks!$1:$1048576,$A446,CF$1))","v":""},{"$f":"IF($A446=\"N/A\",Ref!$B$36,INDEX(Ranks!$1:$1048576,$A446,CG$1))","v":""},{"$f":"IF($A446=\"N/A\",Ref!$B$36,INDEX(Ranks!$1:$1048576,$A446,CH$1))","v":""},{"$f":"IF($A446=\"N/A\",Ref!$B$36,INDEX(Ranks!$1:$1048576,$A446,CI$1))","v":""},{"$f":"IF($A446=\"N/A\",Ref!$B$36,INDEX(Ranks!$1:$1048576,$A446,CJ$1))","v":""},{"$f":"IF($A446=\"N/A\",Ref!$B$36,INDEX(Ranks!$1:$1048576,$A446,CK$1))","v":""},{"$f":"IF($A446=\"N/A\",Ref!$B$36,INDEX(Ranks!$1:$1048576,$A446,CL$1))","v":""},{"$f":"IF($A446=\"N/A\",Ref!$B$36,INDEX(Ranks!$1:$1048576,$A446,CM$1))","v":""},{"$f":"IF($A446=\"N/A\",Ref!$B$36,INDEX(Ranks!$1:$1048576,$A446,CN$1))","v":""},{"$f":"IF($A446=\"N/A\",Ref!$B$36,INDEX(Ranks!$1:$1048576,$A446,CO$1))","v":""},{"$f":"IF($A446=\"N/A\",Ref!$B$36,INDEX(Ranks!$1:$1048576,$A446,CP$1))","v":""},{"$f":"IF($A446=\"N/A\",Ref!$B$36,INDEX(Ranks!$1:$1048576,$A446,CQ$1))","v":""},{"$f":"IF($A446=\"N/A\",Ref!$B$36,INDEX(Ranks!$1:$1048576,$A446,CR$1))","v":""},{"$f":"IF($A446=\"N/A\",Ref!$B$36,INDEX(Ranks!$1:$1048576,$A446,CS$1))","v":""},{"$f":"IF($A446=\"N/A\",Ref!$B$36,INDEX(Ranks!$1:$1048576,$A446,CT$1))","v":""},{"$f":"IF($A446=\"N/A\",Ref!$B$36,INDEX(Ranks!$1:$1048576,$A446,CU$1))","v":""},{"$f":"IF($A446=\"N/A\",Ref!$B$36,INDEX(Ranks!$1:$1048576,$A446,CV$1))","v":""},{"$f":"IF($A446=\"N/A\",Ref!$B$36,INDEX(Ranks!$1:$1048576,$A446,CW$1))","v":""},{"$f":"IF($A446=\"N/A\",Ref!$B$36,INDEX(Ranks!$1:$1048576,$A446,CX$1))","v":""},{"$f":"IF($A446=\"N/A\",Ref!$B$36,INDEX(Ranks!$1:$1048576,$A446,CY$1))","v":""},{"$f":"IF($A446=\"N/A\",Ref!$B$36,INDEX(Ranks!$1:$1048576,$A446,CZ$1))","v":""},{"$f":"IF($A446=\"N/A\",Ref!$B$36,INDEX(Ranks!$1:$1048576,$A446,DA$1))","v":""},{"$f":"IF($A446=\"N/A\",Ref!$B$36,INDEX(Ranks!$1:$1048576,$A446,DB$1))","v":""},{"$f":"IF($A446=\"N/A\",Ref!$B$36,INDEX(Ranks!$1:$1048576,$A446,DC$1))","v":""},{"$f":"IF($A446=\"N/A\",Ref!$B$36,INDEX(Ranks!$1:$1048576,$A446,DD$1))","v":""},{"$f":"IF($A446=\"N/A\",Ref!$B$36,INDEX(Ranks!$1:$1048576,$A446,DE$1))","v":""},{"$f":"IF($A446=\"N/A\",Ref!$B$36,INDEX(Ranks!$1:$1048576,$A446,DF$1))","v":""},{"$f":"IF($A446=\"N/A\",Ref!$B$36,INDEX(Ranks!$1:$1048576,$A446,DG$1))","v":""},{"$f":"IF($A446=\"N/A\",Ref!$B$36,INDEX(Ranks!$1:$1048576,$A446,DH$1))","v":""},{"$f":"IF($A446=\"N/A\",Ref!$B$36,INDEX(Ranks!$1:$1048576,$A446,DI$1))","v":""},{"$f":"IF($A446=\"N/A\",Ref!$B$36,INDEX(Ranks!$1:$1048576,$A446,DJ$1))","v":""},{"$f":"IF($A446=\"N/A\",Ref!$B$36,INDEX(Ranks!$1:$1048576,$A446,DK$1))","v":""},{"$f":"IF($A446=\"N/A\",Ref!$B$36,INDEX(Ranks!$1:$1048576,$A446,DL$1))","v":""},{"$f":"IF($A446=\"N/A\",Ref!$B$36,INDEX(Ranks!$1:$1048576,$A446,DM$1))","v":""},{"$f":"IF($A446=\"N/A\",Ref!$B$36,INDEX(Ranks!$1:$1048576,$A446,DN$1))","v":""},{"$f":"IF($A446=\"N/A\",Ref!$B$36,INDEX(Ranks!$1:$1048576,$A446,DO$1))","v":""},{"$f":"IF($A446=\"N/A\",Ref!$B$36,INDEX(Ranks!$1:$1048576,$A446,DP$1))","v":""},{"$f":"IF($A446=\"N/A\",Ref!$B$36,INDEX(Ranks!$1:$1048576,$A446,DQ$1))","v":""},{"$f":"IF($A446=\"N/A\",Ref!$B$36,INDEX(Ranks!$1:$1048576,$A446,DR$1))","v":""},{"$f":"IF($A446=\"N/A\",Ref!$B$36,INDEX(Ranks!$1:$1048576,$A446,DS$1))","v":""},{"$f":"IF($A446=\"N/A\",Ref!$B$36,INDEX(Ranks!$1:$1048576,$A446,DT$1))","v":""},{"$f":"IF($A446=\"N/A\",Ref!$B$36,INDEX(Ranks!$1:$1048576,$A446,DU$1))","v":""},{"$f":"IF($A446=\"N/A\",Ref!$B$36,INDEX(Ranks!$1:$1048576,$A446,DV$1))","v":""},{"$f":"IF($A446=\"N/A\",Ref!$B$36,INDEX(Ranks!$1:$1048576,$A446,DW$1))","v":""},{"$f":"IF($A446=\"N/A\",Ref!$B$36,INDEX(Ranks!$1:$1048576,$A446,DX$1))","v":""},{"$f":"IF($A446=\"N/A\",Ref!$B$36,INDEX(Ranks!$1:$1048576,$A446,DY$1))","v":""},{"$f":"IF($A446=\"N/A\",Ref!$B$36,INDEX(Ranks!$1:$1048576,$A446,DZ$1))","v":""},{"$f":"IF($A446=\"N/A\",Ref!$B$36,INDEX(Ranks!$1:$1048576,$A446,EA$1))","v":""},{"$f":"IF($A446=\"N/A\",Ref!$B$36,INDEX(Ranks!$1:$1048576,$A446,EB$1))","v":""}]
[{"$f":"IFERROR(MATCH('Portfolio Page'!L447,Ranks!L:L,0),\"N/A\")","v":"N/A"},null,{"$f":"IF($A447=\"N/A\",\"\",INDEX(Ranks!$1:$1048576,$A447,C$1))","v":""},{"$f":"IF($A447=\"N/A\",Ref!$B$36,INDEX(Ranks!$1:$1048576,$A447,D$1))","v":""},{"$f":"IF($A447=\"N/A\",Ref!$B$36,INDEX(Ranks!$1:$1048576,$A447,E$1))","v":""},{"$f":"IF($A447=\"N/A\",\"\",INDEX(Ranks!$1:$1048576,$A447,F$1))","v":""},{"$f":"IF($A447=\"N/A\",\"\",INDEX(Ranks!$1:$1048576,$A447,G$1))","v":""},{"$f":"IF($A447=\"N/A\",\"\",INDEX(Ranks!$1:$1048576,$A447,H$1))","v":""},{"$f":"IF($A447=\"N/A\",\"\",INDEX(Ranks!$1:$1048576,$A447,I$1))","v":""},{"$f":"IF($A447=\"N/A\",\"\",INDEX(Ranks!$1:$1048576,$A447,J$1))","v":""},{"$f":"IF($A447=\"N/A\",\"\",INDEX(Ranks!$1:$1048576,$A447,K$1))","v":""},null,{"$f":"IF($A447=\"N/A\",Ref!$B$36,INDEX(Ranks!$1:$1048576,$A447,M$1))","v":""},{"$f":"IF($A447=\"N/A\",Ref!$B$36,INDEX(Ranks!$1:$1048576,$A447,N$1))","v":""},{"$f":"IF($A447=\"N/A\",Ref!$B$36,INDEX(Ranks!$1:$1048576,$A447,O$1))","v":""},{"$f":"IF($A447=\"N/A\",Ref!$B$36,INDEX(Ranks!$1:$1048576,$A447,P$1))","v":""},{"$f":"IF($A447=\"N/A\",Ref!$B$36,INDEX(Ranks!$1:$1048576,$A447,Q$1))","v":""},{"$f":"IF($A447=\"N/A\",Ref!$B$36,INDEX(Ranks!$1:$1048576,$A447,R$1))","v":""},{"$f":"IF($A447=\"N/A\",Ref!$B$36,INDEX(Ranks!$1:$1048576,$A447,S$1))","v":""},{"$f":"IF($A447=\"N/A\",Ref!$B$36,INDEX(Ranks!$1:$1048576,$A447,T$1))","v":""},{"$f":"IF($A447=\"N/A\",Ref!$B$36,INDEX(Ranks!$1:$1048576,$A447,U$1))","v":""},{"$f":"IF($A447=\"N/A\",Ref!$B$36,INDEX(Ranks!$1:$1048576,$A447,V$1))","v":""},{"$f":"IF($A447=\"N/A\",Ref!$B$36,INDEX(Ranks!$1:$1048576,$A447,W$1))","v":""},{"$f":"IF($A447=\"N/A\",Ref!$B$36,INDEX(Ranks!$1:$1048576,$A447,X$1))","v":""},{"$f":"IF($A447=\"N/A\",Ref!$B$36,INDEX(Ranks!$1:$1048576,$A447,Y$1))","v":""},{"$f":"IF($A447=\"N/A\",Ref!$B$36,INDEX(Ranks!$1:$1048576,$A447,Z$1))","v":""},{"$f":"IF($A447=\"N/A\",Ref!$B$36,INDEX(Ranks!$1:$1048576,$A447,AA$1))","v":""},{"$f":"IF($A447=\"N/A\",Ref!$B$36,INDEX(Ranks!$1:$1048576,$A447,AB$1))","v":""},{"$f":"IF($A447=\"N/A\",Ref!$B$36,INDEX(Ranks!$1:$1048576,$A447,AC$1))","v":""},{"$f":"IF($A447=\"N/A\",Ref!$B$36,INDEX(Ranks!$1:$1048576,$A447,AD$1))","v":""},{"$f":"IF($A447=\"N/A\",Ref!$B$36,INDEX(Ranks!$1:$1048576,$A447,AE$1))","v":""},{"$f":"IF($A447=\"N/A\",Ref!$B$36,INDEX(Ranks!$1:$1048576,$A447,AF$1))","v":""},{"$f":"IF($A447=\"N/A\",Ref!$B$36,INDEX(Ranks!$1:$1048576,$A447,AG$1))","v":""},{"$f":"IF($A447=\"N/A\",Ref!$B$36,INDEX(Ranks!$1:$1048576,$A447,AH$1))","v":""},{"$f":"IF($A447=\"N/A\",Ref!$B$36,INDEX(Ranks!$1:$1048576,$A447,AI$1))","v":""},{"$f":"IF($A447=\"N/A\",Ref!$B$36,INDEX(Ranks!$1:$1048576,$A447,AJ$1))","v":""},{"$f":"IF($A447=\"N/A\",Ref!$B$36,INDEX(Ranks!$1:$1048576,$A447,AK$1))","v":""},{"$f":"IF($A447=\"N/A\",Ref!$B$36,INDEX(Ranks!$1:$1048576,$A447,AL$1))","v":""},{"$f":"IF($A447=\"N/A\",Ref!$B$36,INDEX(Ranks!$1:$1048576,$A447,AM$1))","v":""},{"$f":"IF($A447=\"N/A\",Ref!$B$36,INDEX(Ranks!$1:$1048576,$A447,AN$1))","v":""},{"$f":"IF($A447=\"N/A\",Ref!$B$36,INDEX(Ranks!$1:$1048576,$A447,AO$1))","v":""},{"$f":"IF($A447=\"N/A\",Ref!$B$36,INDEX(Ranks!$1:$1048576,$A447,AP$1))","v":""},{"$f":"IF($A447=\"N/A\",Ref!$B$36,INDEX(Ranks!$1:$1048576,$A447,AQ$1))","v":""},{"$f":"IF($A447=\"N/A\",Ref!$B$36,INDEX(Ranks!$1:$1048576,$A447,AR$1))","v":""},{"$f":"IF($A447=\"N/A\",Ref!$B$36,INDEX(Ranks!$1:$1048576,$A447,AS$1))","v":""},{"$f":"IF($A447=\"N/A\",Ref!$B$36,INDEX(Ranks!$1:$1048576,$A447,AT$1))","v":""},{"$f":"IF($A447=\"N/A\",Ref!$B$36,INDEX(Ranks!$1:$1048576,$A447,AU$1))","v":""},{"$f":"IF($A447=\"N/A\",Ref!$B$36,INDEX(Ranks!$1:$1048576,$A447,AV$1))","v":""},{"$f":"IF($A447=\"N/A\",Ref!$B$36,INDEX(Ranks!$1:$1048576,$A447,AW$1))","v":""},{"$f":"IF($A447=\"N/A\",Ref!$B$36,INDEX(Ranks!$1:$1048576,$A447,AX$1))","v":""},{"$f":"IF($A447=\"N/A\",Ref!$B$36,INDEX(Ranks!$1:$1048576,$A447,AY$1))","v":""},{"$f":"IF($A447=\"N/A\",Ref!$B$36,INDEX(Ranks!$1:$1048576,$A447,AZ$1))","v":""},{"$f":"IF($A447=\"N/A\",Ref!$B$36,INDEX(Ranks!$1:$1048576,$A447,BA$1))","v":""},{"$f":"IF($A447=\"N/A\",Ref!$B$36,INDEX(Ranks!$1:$1048576,$A447,BB$1))","v":""},{"$f":"IF($A447=\"N/A\",Ref!$B$36,INDEX(Ranks!$1:$1048576,$A447,BC$1))","v":""},{"$f":"IF($A447=\"N/A\",Ref!$B$36,INDEX(Ranks!$1:$1048576,$A447,BD$1))","v":""},{"$f":"IF($A447=\"N/A\",Ref!$B$36,INDEX(Ranks!$1:$1048576,$A447,BE$1))","v":""},{"$f":"IF($A447=\"N/A\",Ref!$B$36,INDEX(Ranks!$1:$1048576,$A447,BF$1))","v":""},{"$f":"IF($A447=\"N/A\",Ref!$B$36,INDEX(Ranks!$1:$1048576,$A447,BG$1))","v":""},{"$f":"IF($A447=\"N/A\",Ref!$B$36,INDEX(Ranks!$1:$1048576,$A447,BH$1))","v":""},{"$f":"IF($A447=\"N/A\",Ref!$B$36,INDEX(Ranks!$1:$1048576,$A447,BI$1))","v":""},{"$f":"IF($A447=\"N/A\",Ref!$B$36,INDEX(Ranks!$1:$1048576,$A447,BJ$1))","v":""},{"$f":"IF($A447=\"N/A\",Ref!$B$36,INDEX(Ranks!$1:$1048576,$A447,BK$1))","v":""},{"$f":"IF($A447=\"N/A\",Ref!$B$36,INDEX(Ranks!$1:$1048576,$A447,BL$1))","v":""},{"$f":"IF($A447=\"N/A\",Ref!$B$36,INDEX(Ranks!$1:$1048576,$A447,BM$1))","v":""},{"$f":"IF($A447=\"N/A\",Ref!$B$36,INDEX(Ranks!$1:$1048576,$A447,BN$1))","v":""},{"$f":"IF($A447=\"N/A\",Ref!$B$36,INDEX(Ranks!$1:$1048576,$A447,BO$1))","v":""},{"$f":"IF($A447=\"N/A\",Ref!$B$36,INDEX(Ranks!$1:$1048576,$A447,BP$1))","v":""},{"$f":"IF($A447=\"N/A\",Ref!$B$36,INDEX(Ranks!$1:$1048576,$A447,BQ$1))","v":""},{"$f":"IF($A447=\"N/A\",Ref!$B$36,INDEX(Ranks!$1:$1048576,$A447,BR$1))","v":""},{"$f":"IF($A447=\"N/A\",Ref!$B$36,INDEX(Ranks!$1:$1048576,$A447,BS$1))","v":""},{"$f":"IF($A447=\"N/A\",Ref!$B$36,INDEX(Ranks!$1:$1048576,$A447,BT$1))","v":""},{"$f":"IF($A447=\"N/A\",Ref!$B$36,INDEX(Ranks!$1:$1048576,$A447,BU$1))","v":""},{"$f":"IF($A447=\"N/A\",Ref!$B$36,INDEX(Ranks!$1:$1048576,$A447,BV$1))","v":""},{"$f":"IF($A447=\"N/A\",Ref!$B$36,INDEX(Ranks!$1:$1048576,$A447,BW$1))","v":""},{"$f":"IF($A447=\"N/A\",Ref!$B$36,INDEX(Ranks!$1:$1048576,$A447,BX$1))","v":""},{"$f":"IF($A447=\"N/A\",Ref!$B$36,INDEX(Ranks!$1:$1048576,$A447,BY$1))","v":""},{"$f":"IF($A447=\"N/A\",Ref!$B$36,INDEX(Ranks!$1:$1048576,$A447,BZ$1))","v":""},{"$f":"IF($A447=\"N/A\",Ref!$B$36,INDEX(Ranks!$1:$1048576,$A447,CA$1))","v":""},{"$f":"IF($A447=\"N/A\",Ref!$B$36,INDEX(Ranks!$1:$1048576,$A447,CB$1))","v":""},{"$f":"IF($A447=\"N/A\",Ref!$B$36,INDEX(Ranks!$1:$1048576,$A447,CC$1))","v":""},{"$f":"IF($A447=\"N/A\",Ref!$B$36,INDEX(Ranks!$1:$1048576,$A447,CD$1))","v":""},{"$f":"IF($A447=\"N/A\",Ref!$B$36,INDEX(Ranks!$1:$1048576,$A447,CE$1))","v":""},{"$f":"IF($A447=\"N/A\",Ref!$B$36,INDEX(Ranks!$1:$1048576,$A447,CF$1))","v":""},{"$f":"IF($A447=\"N/A\",Ref!$B$36,INDEX(Ranks!$1:$1048576,$A447,CG$1))","v":""},{"$f":"IF($A447=\"N/A\",Ref!$B$36,INDEX(Ranks!$1:$1048576,$A447,CH$1))","v":""},{"$f":"IF($A447=\"N/A\",Ref!$B$36,INDEX(Ranks!$1:$1048576,$A447,CI$1))","v":""},{"$f":"IF($A447=\"N/A\",Ref!$B$36,INDEX(Ranks!$1:$1048576,$A447,CJ$1))","v":""},{"$f":"IF($A447=\"N/A\",Ref!$B$36,INDEX(Ranks!$1:$1048576,$A447,CK$1))","v":""},{"$f":"IF($A447=\"N/A\",Ref!$B$36,INDEX(Ranks!$1:$1048576,$A447,CL$1))","v":""},{"$f":"IF($A447=\"N/A\",Ref!$B$36,INDEX(Ranks!$1:$1048576,$A447,CM$1))","v":""},{"$f":"IF($A447=\"N/A\",Ref!$B$36,INDEX(Ranks!$1:$1048576,$A447,CN$1))","v":""},{"$f":"IF($A447=\"N/A\",Ref!$B$36,INDEX(Ranks!$1:$1048576,$A447,CO$1))","v":""},{"$f":"IF($A447=\"N/A\",Ref!$B$36,INDEX(Ranks!$1:$1048576,$A447,CP$1))","v":""},{"$f":"IF($A447=\"N/A\",Ref!$B$36,INDEX(Ranks!$1:$1048576,$A447,CQ$1))","v":""},{"$f":"IF($A447=\"N/A\",Ref!$B$36,INDEX(Ranks!$1:$1048576,$A447,CR$1))","v":""},{"$f":"IF($A447=\"N/A\",Ref!$B$36,INDEX(Ranks!$1:$1048576,$A447,CS$1))","v":""},{"$f":"IF($A447=\"N/A\",Ref!$B$36,INDEX(Ranks!$1:$1048576,$A447,CT$1))","v":""},{"$f":"IF($A447=\"N/A\",Ref!$B$36,INDEX(Ranks!$1:$1048576,$A447,CU$1))","v":""},{"$f":"IF($A447=\"N/A\",Ref!$B$36,INDEX(Ranks!$1:$1048576,$A447,CV$1))","v":""},{"$f":"IF($A447=\"N/A\",Ref!$B$36,INDEX(Ranks!$1:$1048576,$A447,CW$1))","v":""},{"$f":"IF($A447=\"N/A\",Ref!$B$36,INDEX(Ranks!$1:$1048576,$A447,CX$1))","v":""},{"$f":"IF($A447=\"N/A\",Ref!$B$36,INDEX(Ranks!$1:$1048576,$A447,CY$1))","v":""},{"$f":"IF($A447=\"N/A\",Ref!$B$36,INDEX(Ranks!$1:$1048576,$A447,CZ$1))","v":""},{"$f":"IF($A447=\"N/A\",Ref!$B$36,INDEX(Ranks!$1:$1048576,$A447,DA$1))","v":""},{"$f":"IF($A447=\"N/A\",Ref!$B$36,INDEX(Ranks!$1:$1048576,$A447,DB$1))","v":""},{"$f":"IF($A447=\"N/A\",Ref!$B$36,INDEX(Ranks!$1:$1048576,$A447,DC$1))","v":""},{"$f":"IF($A447=\"N/A\",Ref!$B$36,INDEX(Ranks!$1:$1048576,$A447,DD$1))","v":""},{"$f":"IF($A447=\"N/A\",Ref!$B$36,INDEX(Ranks!$1:$1048576,$A447,DE$1))","v":""},{"$f":"IF($A447=\"N/A\",Ref!$B$36,INDEX(Ranks!$1:$1048576,$A447,DF$1))","v":""},{"$f":"IF($A447=\"N/A\",Ref!$B$36,INDEX(Ranks!$1:$1048576,$A447,DG$1))","v":""},{"$f":"IF($A447=\"N/A\",Ref!$B$36,INDEX(Ranks!$1:$1048576,$A447,DH$1))","v":""},{"$f":"IF($A447=\"N/A\",Ref!$B$36,INDEX(Ranks!$1:$1048576,$A447,DI$1))","v":""},{"$f":"IF($A447=\"N/A\",Ref!$B$36,INDEX(Ranks!$1:$1048576,$A447,DJ$1))","v":""},{"$f":"IF($A447=\"N/A\",Ref!$B$36,INDEX(Ranks!$1:$1048576,$A447,DK$1))","v":""},{"$f":"IF($A447=\"N/A\",Ref!$B$36,INDEX(Ranks!$1:$1048576,$A447,DL$1))","v":""},{"$f":"IF($A447=\"N/A\",Ref!$B$36,INDEX(Ranks!$1:$1048576,$A447,DM$1))","v":""},{"$f":"IF($A447=\"N/A\",Ref!$B$36,INDEX(Ranks!$1:$1048576,$A447,DN$1))","v":""},{"$f":"IF($A447=\"N/A\",Ref!$B$36,INDEX(Ranks!$1:$1048576,$A447,DO$1))","v":""},{"$f":"IF($A447=\"N/A\",Ref!$B$36,INDEX(Ranks!$1:$1048576,$A447,DP$1))","v":""},{"$f":"IF($A447=\"N/A\",Ref!$B$36,INDEX(Ranks!$1:$1048576,$A447,DQ$1))","v":""},{"$f":"IF($A447=\"N/A\",Ref!$B$36,INDEX(Ranks!$1:$1048576,$A447,DR$1))","v":""},{"$f":"IF($A447=\"N/A\",Ref!$B$36,INDEX(Ranks!$1:$1048576,$A447,DS$1))","v":""},{"$f":"IF($A447=\"N/A\",Ref!$B$36,INDEX(Ranks!$1:$1048576,$A447,DT$1))","v":""},{"$f":"IF($A447=\"N/A\",Ref!$B$36,INDEX(Ranks!$1:$1048576,$A447,DU$1))","v":""},{"$f":"IF($A447=\"N/A\",Ref!$B$36,INDEX(Ranks!$1:$1048576,$A447,DV$1))","v":""},{"$f":"IF($A447=\"N/A\",Ref!$B$36,INDEX(Ranks!$1:$1048576,$A447,DW$1))","v":""},{"$f":"IF($A447=\"N/A\",Ref!$B$36,INDEX(Ranks!$1:$1048576,$A447,DX$1))","v":""},{"$f":"IF($A447=\"N/A\",Ref!$B$36,INDEX(Ranks!$1:$1048576,$A447,DY$1))","v":""},{"$f":"IF($A447=\"N/A\",Ref!$B$36,INDEX(Ranks!$1:$1048576,$A447,DZ$1))","v":""},{"$f":"IF($A447=\"N/A\",Ref!$B$36,INDEX(Ranks!$1:$1048576,$A447,EA$1))","v":""},{"$f":"IF($A447=\"N/A\",Ref!$B$36,INDEX(Ranks!$1:$1048576,$A447,EB$1))","v":""}]
[{"$f":"IFERROR(MATCH('Portfolio Page'!L448,Ranks!L:L,0),\"N/A\")","v":"N/A"},null,{"$f":"IF($A448=\"N/A\",\"\",INDEX(Ranks!$1:$1048576,$A448,C$1))","v":""},{"$f":"IF($A448=\"N/A\",Ref!$B$36,INDEX(Ranks!$1:$1048576,$A448,D$1))","v":""},{"$f":"IF($A448=\"N/A\",Ref!$B$36,INDEX(Ranks!$1:$1048576,$A448,E$1))","v":""},{"$f":"IF($A448=\"N/A\",\"\",INDEX(Ranks!$1:$1048576,$A448,F$1))","v":""},{"$f":"IF($A448=\"N/A\",\"\",INDEX(Ranks!$1:$1048576,$A448,G$1))","v":""},{"$f":"IF($A448=\"N/A\",\"\",INDEX(Ranks!$1:$1048576,$A448,H$1))","v":""},{"$f":"IF($A448=\"N/A\",\"\",INDEX(Ranks!$1:$1048576,$A448,I$1))","v":""},{"$f":"IF($A448=\"N/A\",\"\",INDEX(Ranks!$1:$1048576,$A448,J$1))","v":""},{"$f":"IF($A448=\"N/A\",\"\",INDEX(Ranks!$1:$1048576,$A448,K$1))","v":""},null,{"$f":"IF($A448=\"N/A\",Ref!$B$36,INDEX(Ranks!$1:$1048576,$A448,M$1))","v":""},{"$f":"IF($A448=\"N/A\",Ref!$B$36,INDEX(Ranks!$1:$1048576,$A448,N$1))","v":""},{"$f":"IF($A448=\"N/A\",Ref!$B$36,INDEX(Ranks!$1:$1048576,$A448,O$1))","v":""},{"$f":"IF($A448=\"N/A\",Ref!$B$36,INDEX(Ranks!$1:$1048576,$A448,P$1))","v":""},{"$f":"IF($A448=\"N/A\",Ref!$B$36,INDEX(Ranks!$1:$1048576,$A448,Q$1))","v":""},{"$f":"IF($A448=\"N/A\",Ref!$B$36,INDEX(Ranks!$1:$1048576,$A448,R$1))","v":""},{"$f":"IF($A448=\"N/A\",Ref!$B$36,INDEX(Ranks!$1:$1048576,$A448,S$1))","v":""},{"$f":"IF($A448=\"N/A\",Ref!$B$36,INDEX(Ranks!$1:$1048576,$A448,T$1))","v":""},{"$f":"IF($A448=\"N/A\",Ref!$B$36,INDEX(Ranks!$1:$1048576,$A448,U$1))","v":""},{"$f":"IF($A448=\"N/A\",Ref!$B$36,INDEX(Ranks!$1:$1048576,$A448,V$1))","v":""},{"$f":"IF($A448=\"N/A\",Ref!$B$36,INDEX(Ranks!$1:$1048576,$A448,W$1))","v":""},{"$f":"IF($A448=\"N/A\",Ref!$B$36,INDEX(Ranks!$1:$1048576,$A448,X$1))","v":""},{"$f":"IF($A448=\"N/A\",Ref!$B$36,INDEX(Ranks!$1:$1048576,$A448,Y$1))","v":""},{"$f":"IF($A448=\"N/A\",Ref!$B$36,INDEX(Ranks!$1:$1048576,$A448,Z$1))","v":""},{"$f":"IF($A448=\"N/A\",Ref!$B$36,INDEX(Ranks!$1:$1048576,$A448,AA$1))","v":""},{"$f":"IF($A448=\"N/A\",Ref!$B$36,INDEX(Ranks!$1:$1048576,$A448,AB$1))","v":""},{"$f":"IF($A448=\"N/A\",Ref!$B$36,INDEX(Ranks!$1:$1048576,$A448,AC$1))","v":""},{"$f":"IF($A448=\"N/A\",Ref!$B$36,INDEX(Ranks!$1:$1048576,$A448,AD$1))","v":""},{"$f":"IF($A448=\"N/A\",Ref!$B$36,INDEX(Ranks!$1:$1048576,$A448,AE$1))","v":""},{"$f":"IF($A448=\"N/A\",Ref!$B$36,INDEX(Ranks!$1:$1048576,$A448,AF$1))","v":""},{"$f":"IF($A448=\"N/A\",Ref!$B$36,INDEX(Ranks!$1:$1048576,$A448,AG$1))","v":""},{"$f":"IF($A448=\"N/A\",Ref!$B$36,INDEX(Ranks!$1:$1048576,$A448,AH$1))","v":""},{"$f":"IF($A448=\"N/A\",Ref!$B$36,INDEX(Ranks!$1:$1048576,$A448,AI$1))","v":""},{"$f":"IF($A448=\"N/A\",Ref!$B$36,INDEX(Ranks!$1:$1048576,$A448,AJ$1))","v":""},{"$f":"IF($A448=\"N/A\",Ref!$B$36,INDEX(Ranks!$1:$1048576,$A448,AK$1))","v":""},{"$f":"IF($A448=\"N/A\",Ref!$B$36,INDEX(Ranks!$1:$1048576,$A448,AL$1))","v":""},{"$f":"IF($A448=\"N/A\",Ref!$B$36,INDEX(Ranks!$1:$1048576,$A448,AM$1))","v":""},{"$f":"IF($A448=\"N/A\",Ref!$B$36,INDEX(Ranks!$1:$1048576,$A448,AN$1))","v":""},{"$f":"IF($A448=\"N/A\",Ref!$B$36,INDEX(Ranks!$1:$1048576,$A448,AO$1))","v":""},{"$f":"IF($A448=\"N/A\",Ref!$B$36,INDEX(Ranks!$1:$1048576,$A448,AP$1))","v":""},{"$f":"IF($A448=\"N/A\",Ref!$B$36,INDEX(Ranks!$1:$1048576,$A448,AQ$1))","v":""},{"$f":"IF($A448=\"N/A\",Ref!$B$36,INDEX(Ranks!$1:$1048576,$A448,AR$1))","v":""},{"$f":"IF($A448=\"N/A\",Ref!$B$36,INDEX(Ranks!$1:$1048576,$A448,AS$1))","v":""},{"$f":"IF($A448=\"N/A\",Ref!$B$36,INDEX(Ranks!$1:$1048576,$A448,AT$1))","v":""},{"$f":"IF($A448=\"N/A\",Ref!$B$36,INDEX(Ranks!$1:$1048576,$A448,AU$1))","v":""},{"$f":"IF($A448=\"N/A\",Ref!$B$36,INDEX(Ranks!$1:$1048576,$A448,AV$1))","v":""},{"$f":"IF($A448=\"N/A\",Ref!$B$36,INDEX(Ranks!$1:$1048576,$A448,AW$1))","v":""},{"$f":"IF($A448=\"N/A\",Ref!$B$36,INDEX(Ranks!$1:$1048576,$A448,AX$1))","v":""},{"$f":"IF($A448=\"N/A\",Ref!$B$36,INDEX(Ranks!$1:$1048576,$A448,AY$1))","v":""},{"$f":"IF($A448=\"N/A\",Ref!$B$36,INDEX(Ranks!$1:$1048576,$A448,AZ$1))","v":""},{"$f":"IF($A448=\"N/A\",Ref!$B$36,INDEX(Ranks!$1:$1048576,$A448,BA$1))","v":""},{"$f":"IF($A448=\"N/A\",Ref!$B$36,INDEX(Ranks!$1:$1048576,$A448,BB$1))","v":""},{"$f":"IF($A448=\"N/A\",Ref!$B$36,INDEX(Ranks!$1:$1048576,$A448,BC$1))","v":""},{"$f":"IF($A448=\"N/A\",Ref!$B$36,INDEX(Ranks!$1:$1048576,$A448,BD$1))","v":""},{"$f":"IF($A448=\"N/A\",Ref!$B$36,INDEX(Ranks!$1:$1048576,$A448,BE$1))","v":""},{"$f":"IF($A448=\"N/A\",Ref!$B$36,INDEX(Ranks!$1:$1048576,$A448,BF$1))","v":""},{"$f":"IF($A448=\"N/A\",Ref!$B$36,INDEX(Ranks!$1:$1048576,$A448,BG$1))","v":""},{"$f":"IF($A448=\"N/A\",Ref!$B$36,INDEX(Ranks!$1:$1048576,$A448,BH$1))","v":""},{"$f":"IF($A448=\"N/A\",Ref!$B$36,INDEX(Ranks!$1:$1048576,$A448,BI$1))","v":""},{"$f":"IF($A448=\"N/A\",Ref!$B$36,INDEX(Ranks!$1:$1048576,$A448,BJ$1))","v":""},{"$f":"IF($A448=\"N/A\",Ref!$B$36,INDEX(Ranks!$1:$1048576,$A448,BK$1))","v":""},{"$f":"IF($A448=\"N/A\",Ref!$B$36,INDEX(Ranks!$1:$1048576,$A448,BL$1))","v":""},{"$f":"IF($A448=\"N/A\",Ref!$B$36,INDEX(Ranks!$1:$1048576,$A448,BM$1))","v":""},{"$f":"IF($A448=\"N/A\",Ref!$B$36,INDEX(Ranks!$1:$1048576,$A448,BN$1))","v":""},{"$f":"IF($A448=\"N/A\",Ref!$B$36,INDEX(Ranks!$1:$1048576,$A448,BO$1))","v":""},{"$f":"IF($A448=\"N/A\",Ref!$B$36,INDEX(Ranks!$1:$1048576,$A448,BP$1))","v":""},{"$f":"IF($A448=\"N/A\",Ref!$B$36,INDEX(Ranks!$1:$1048576,$A448,BQ$1))","v":""},{"$f":"IF($A448=\"N/A\",Ref!$B$36,INDEX(Ranks!$1:$1048576,$A448,BR$1))","v":""},{"$f":"IF($A448=\"N/A\",Ref!$B$36,INDEX(Ranks!$1:$1048576,$A448,BS$1))","v":""},{"$f":"IF($A448=\"N/A\",Ref!$B$36,INDEX(Ranks!$1:$1048576,$A448,BT$1))","v":""},{"$f":"IF($A448=\"N/A\",Ref!$B$36,INDEX(Ranks!$1:$1048576,$A448,BU$1))","v":""},{"$f":"IF($A448=\"N/A\",Ref!$B$36,INDEX(Ranks!$1:$1048576,$A448,BV$1))","v":""},{"$f":"IF($A448=\"N/A\",Ref!$B$36,INDEX(Ranks!$1:$1048576,$A448,BW$1))","v":""},{"$f":"IF($A448=\"N/A\",Ref!$B$36,INDEX(Ranks!$1:$1048576,$A448,BX$1))","v":""},{"$f":"IF($A448=\"N/A\",Ref!$B$36,INDEX(Ranks!$1:$1048576,$A448,BY$1))","v":""},{"$f":"IF($A448=\"N/A\",Ref!$B$36,INDEX(Ranks!$1:$1048576,$A448,BZ$1))","v":""},{"$f":"IF($A448=\"N/A\",Ref!$B$36,INDEX(Ranks!$1:$1048576,$A448,CA$1))","v":""},{"$f":"IF($A448=\"N/A\",Ref!$B$36,INDEX(Ranks!$1:$1048576,$A448,CB$1))","v":""},{"$f":"IF($A448=\"N/A\",Ref!$B$36,INDEX(Ranks!$1:$1048576,$A448,CC$1))","v":""},{"$f":"IF($A448=\"N/A\",Ref!$B$36,INDEX(Ranks!$1:$1048576,$A448,CD$1))","v":""},{"$f":"IF($A448=\"N/A\",Ref!$B$36,INDEX(Ranks!$1:$1048576,$A448,CE$1))","v":""},{"$f":"IF($A448=\"N/A\",Ref!$B$36,INDEX(Ranks!$1:$1048576,$A448,CF$1))","v":""},{"$f":"IF($A448=\"N/A\",Ref!$B$36,INDEX(Ranks!$1:$1048576,$A448,CG$1))","v":""},{"$f":"IF($A448=\"N/A\",Ref!$B$36,INDEX(Ranks!$1:$1048576,$A448,CH$1))","v":""},{"$f":"IF($A448=\"N/A\",Ref!$B$36,INDEX(Ranks!$1:$1048576,$A448,CI$1))","v":""},{"$f":"IF($A448=\"N/A\",Ref!$B$36,INDEX(Ranks!$1:$1048576,$A448,CJ$1))","v":""},{"$f":"IF($A448=\"N/A\",Ref!$B$36,INDEX(Ranks!$1:$1048576,$A448,CK$1))","v":""},{"$f":"IF($A448=\"N/A\",Ref!$B$36,INDEX(Ranks!$1:$1048576,$A448,CL$1))","v":""},{"$f":"IF($A448=\"N/A\",Ref!$B$36,INDEX(Ranks!$1:$1048576,$A448,CM$1))","v":""},{"$f":"IF($A448=\"N/A\",Ref!$B$36,INDEX(Ranks!$1:$1048576,$A448,CN$1))","v":""},{"$f":"IF($A448=\"N/A\",Ref!$B$36,INDEX(Ranks!$1:$1048576,$A448,CO$1))","v":""},{"$f":"IF($A448=\"N/A\",Ref!$B$36,INDEX(Ranks!$1:$1048576,$A448,CP$1))","v":""},{"$f":"IF($A448=\"N/A\",Ref!$B$36,INDEX(Ranks!$1:$1048576,$A448,CQ$1))","v":""},{"$f":"IF($A448=\"N/A\",Ref!$B$36,INDEX(Ranks!$1:$1048576,$A448,CR$1))","v":""},{"$f":"IF($A448=\"N/A\",Ref!$B$36,INDEX(Ranks!$1:$1048576,$A448,CS$1))","v":""},{"$f":"IF($A448=\"N/A\",Ref!$B$36,INDEX(Ranks!$1:$1048576,$A448,CT$1))","v":""},{"$f":"IF($A448=\"N/A\",Ref!$B$36,INDEX(Ranks!$1:$1048576,$A448,CU$1))","v":""},{"$f":"IF($A448=\"N/A\",Ref!$B$36,INDEX(Ranks!$1:$1048576,$A448,CV$1))","v":""},{"$f":"IF($A448=\"N/A\",Ref!$B$36,INDEX(Ranks!$1:$1048576,$A448,CW$1))","v":""},{"$f":"IF($A448=\"N/A\",Ref!$B$36,INDEX(Ranks!$1:$1048576,$A448,CX$1))","v":""},{"$f":"IF($A448=\"N/A\",Ref!$B$36,INDEX(Ranks!$1:$1048576,$A448,CY$1))","v":""},{"$f":"IF($A448=\"N/A\",Ref!$B$36,INDEX(Ranks!$1:$1048576,$A448,CZ$1))","v":""},{"$f":"IF($A448=\"N/A\",Ref!$B$36,INDEX(Ranks!$1:$1048576,$A448,DA$1))","v":""},{"$f":"IF($A448=\"N/A\",Ref!$B$36,INDEX(Ranks!$1:$1048576,$A448,DB$1))","v":""},{"$f":"IF($A448=\"N/A\",Ref!$B$36,INDEX(Ranks!$1:$1048576,$A448,DC$1))","v":""},{"$f":"IF($A448=\"N/A\",Ref!$B$36,INDEX(Ranks!$1:$1048576,$A448,DD$1))","v":""},{"$f":"IF($A448=\"N/A\",Ref!$B$36,INDEX(Ranks!$1:$1048576,$A448,DE$1))","v":""},{"$f":"IF($A448=\"N/A\",Ref!$B$36,INDEX(Ranks!$1:$1048576,$A448,DF$1))","v":""},{"$f":"IF($A448=\"N/A\",Ref!$B$36,INDEX(Ranks!$1:$1048576,$A448,DG$1))","v":""},{"$f":"IF($A448=\"N/A\",Ref!$B$36,INDEX(Ranks!$1:$1048576,$A448,DH$1))","v":""},{"$f":"IF($A448=\"N/A\",Ref!$B$36,INDEX(Ranks!$1:$1048576,$A448,DI$1))","v":""},{"$f":"IF($A448=\"N/A\",Ref!$B$36,INDEX(Ranks!$1:$1048576,$A448,DJ$1))","v":""},{"$f":"IF($A448=\"N/A\",Ref!$B$36,INDEX(Ranks!$1:$1048576,$A448,DK$1))","v":""},{"$f":"IF($A448=\"N/A\",Ref!$B$36,INDEX(Ranks!$1:$1048576,$A448,DL$1))","v":""},{"$f":"IF($A448=\"N/A\",Ref!$B$36,INDEX(Ranks!$1:$1048576,$A448,DM$1))","v":""},{"$f":"IF($A448=\"N/A\",Ref!$B$36,INDEX(Ranks!$1:$1048576,$A448,DN$1))","v":""},{"$f":"IF($A448=\"N/A\",Ref!$B$36,INDEX(Ranks!$1:$1048576,$A448,DO$1))","v":""},{"$f":"IF($A448=\"N/A\",Ref!$B$36,INDEX(Ranks!$1:$1048576,$A448,DP$1))","v":""},{"$f":"IF($A448=\"N/A\",Ref!$B$36,INDEX(Ranks!$1:$1048576,$A448,DQ$1))","v":""},{"$f":"IF($A448=\"N/A\",Ref!$B$36,INDEX(Ranks!$1:$1048576,$A448,DR$1))","v":""},{"$f":"IF($A448=\"N/A\",Ref!$B$36,INDEX(Ranks!$1:$1048576,$A448,DS$1))","v":""},{"$f":"IF($A448=\"N/A\",Ref!$B$36,INDEX(Ranks!$1:$1048576,$A448,DT$1))","v":""},{"$f":"IF($A448=\"N/A\",Ref!$B$36,INDEX(Ranks!$1:$1048576,$A448,DU$1))","v":""},{"$f":"IF($A448=\"N/A\",Ref!$B$36,INDEX(Ranks!$1:$1048576,$A448,DV$1))","v":""},{"$f":"IF($A448=\"N/A\",Ref!$B$36,INDEX(Ranks!$1:$1048576,$A448,DW$1))","v":""},{"$f":"IF($A448=\"N/A\",Ref!$B$36,INDEX(Ranks!$1:$1048576,$A448,DX$1))","v":""},{"$f":"IF($A448=\"N/A\",Ref!$B$36,INDEX(Ranks!$1:$1048576,$A448,DY$1))","v":""},{"$f":"IF($A448=\"N/A\",Ref!$B$36,INDEX(Ranks!$1:$1048576,$A448,DZ$1))","v":""},{"$f":"IF($A448=\"N/A\",Ref!$B$36,INDEX(Ranks!$1:$1048576,$A448,EA$1))","v":""},{"$f":"IF($A448=\"N/A\",Ref!$B$36,INDEX(Ranks!$1:$1048576,$A448,EB$1))","v":""}]
[{"$f":"IFERROR(MATCH('Portfolio Page'!L449,Ranks!L:L,0),\"N/A\")","v":"N/A"},null,{"$f":"IF($A449=\"N/A\",\"\",INDEX(Ranks!$1:$1048576,$A449,C$1))","v":""},{"$f":"IF($A449=\"N/A\",Ref!$B$36,INDEX(Ranks!$1:$1048576,$A449,D$1))","v":""},{"$f":"IF($A449=\"N/A\",Ref!$B$36,INDEX(Ranks!$1:$1048576,$A449,E$1))","v":""},{"$f":"IF($A449=\"N/A\",\"\",INDEX(Ranks!$1:$1048576,$A449,F$1))","v":""},{"$f":"IF($A449=\"N/A\",\"\",INDEX(Ranks!$1:$1048576,$A449,G$1))","v":""},{"$f":"IF($A449=\"N/A\",\"\",INDEX(Ranks!$1:$1048576,$A449,H$1))","v":""},{"$f":"IF($A449=\"N/A\",\"\",INDEX(Ranks!$1:$1048576,$A449,I$1))","v":""},{"$f":"IF($A449=\"N/A\",\"\",INDEX(Ranks!$1:$1048576,$A449,J$1))","v":""},{"$f":"IF($A449=\"N/A\",\"\",INDEX(Ranks!$1:$1048576,$A449,K$1))","v":""},null,{"$f":"IF($A449=\"N/A\",Ref!$B$36,INDEX(Ranks!$1:$1048576,$A449,M$1))","v":""},{"$f":"IF($A449=\"N/A\",Ref!$B$36,INDEX(Ranks!$1:$1048576,$A449,N$1))","v":""},{"$f":"IF($A449=\"N/A\",Ref!$B$36,INDEX(Ranks!$1:$1048576,$A449,O$1))","v":""},{"$f":"IF($A449=\"N/A\",Ref!$B$36,INDEX(Ranks!$1:$1048576,$A449,P$1))","v":""},{"$f":"IF($A449=\"N/A\",Ref!$B$36,INDEX(Ranks!$1:$1048576,$A449,Q$1))","v":""},{"$f":"IF($A449=\"N/A\",Ref!$B$36,INDEX(Ranks!$1:$1048576,$A449,R$1))","v":""},{"$f":"IF($A449=\"N/A\",Ref!$B$36,INDEX(Ranks!$1:$1048576,$A449,S$1))","v":""},{"$f":"IF($A449=\"N/A\",Ref!$B$36,INDEX(Ranks!$1:$1048576,$A449,T$1))","v":""},{"$f":"IF($A449=\"N/A\",Ref!$B$36,INDEX(Ranks!$1:$1048576,$A449,U$1))","v":""},{"$f":"IF($A449=\"N/A\",Ref!$B$36,INDEX(Ranks!$1:$1048576,$A449,V$1))","v":""},{"$f":"IF($A449=\"N/A\",Ref!$B$36,INDEX(Ranks!$1:$1048576,$A449,W$1))","v":""},{"$f":"IF($A449=\"N/A\",Ref!$B$36,INDEX(Ranks!$1:$1048576,$A449,X$1))","v":""},{"$f":"IF($A449=\"N/A\",Ref!$B$36,INDEX(Ranks!$1:$1048576,$A449,Y$1))","v":""},{"$f":"IF($A449=\"N/A\",Ref!$B$36,INDEX(Ranks!$1:$1048576,$A449,Z$1))","v":""},{"$f":"IF($A449=\"N/A\",Ref!$B$36,INDEX(Ranks!$1:$1048576,$A449,AA$1))","v":""},{"$f":"IF($A449=\"N/A\",Ref!$B$36,INDEX(Ranks!$1:$1048576,$A449,AB$1))","v":""},{"$f":"IF($A449=\"N/A\",Ref!$B$36,INDEX(Ranks!$1:$1048576,$A449,AC$1))","v":""},{"$f":"IF($A449=\"N/A\",Ref!$B$36,INDEX(Ranks!$1:$1048576,$A449,AD$1))","v":""},{"$f":"IF($A449=\"N/A\",Ref!$B$36,INDEX(Ranks!$1:$1048576,$A449,AE$1))","v":""},{"$f":"IF($A449=\"N/A\",Ref!$B$36,INDEX(Ranks!$1:$1048576,$A449,AF$1))","v":""},{"$f":"IF($A449=\"N/A\",Ref!$B$36,INDEX(Ranks!$1:$1048576,$A449,AG$1))","v":""},{"$f":"IF($A449=\"N/A\",Ref!$B$36,INDEX(Ranks!$1:$1048576,$A449,AH$1))","v":""},{"$f":"IF($A449=\"N/A\",Ref!$B$36,INDEX(Ranks!$1:$1048576,$A449,AI$1))","v":""},{"$f":"IF($A449=\"N/A\",Ref!$B$36,INDEX(Ranks!$1:$1048576,$A449,AJ$1))","v":""},{"$f":"IF($A449=\"N/A\",Ref!$B$36,INDEX(Ranks!$1:$1048576,$A449,AK$1))","v":""},{"$f":"IF($A449=\"N/A\",Ref!$B$36,INDEX(Ranks!$1:$1048576,$A449,AL$1))","v":""},{"$f":"IF($A449=\"N/A\",Ref!$B$36,INDEX(Ranks!$1:$1048576,$A449,AM$1))","v":""},{"$f":"IF($A449=\"N/A\",Ref!$B$36,INDEX(Ranks!$1:$1048576,$A449,AN$1))","v":""},{"$f":"IF($A449=\"N/A\",Ref!$B$36,INDEX(Ranks!$1:$1048576,$A449,AO$1))","v":""},{"$f":"IF($A449=\"N/A\",Ref!$B$36,INDEX(Ranks!$1:$1048576,$A449,AP$1))","v":""},{"$f":"IF($A449=\"N/A\",Ref!$B$36,INDEX(Ranks!$1:$1048576,$A449,AQ$1))","v":""},{"$f":"IF($A449=\"N/A\",Ref!$B$36,INDEX(Ranks!$1:$1048576,$A449,AR$1))","v":""},{"$f":"IF($A449=\"N/A\",Ref!$B$36,INDEX(Ranks!$1:$1048576,$A449,AS$1))","v":""},{"$f":"IF($A449=\"N/A\",Ref!$B$36,INDEX(Ranks!$1:$1048576,$A449,AT$1))","v":""},{"$f":"IF($A449=\"N/A\",Ref!$B$36,INDEX(Ranks!$1:$1048576,$A449,AU$1))","v":""},{"$f":"IF($A449=\"N/A\",Ref!$B$36,INDEX(Ranks!$1:$1048576,$A449,AV$1))","v":""},{"$f":"IF($A449=\"N/A\",Ref!$B$36,INDEX(Ranks!$1:$1048576,$A449,AW$1))","v":""},{"$f":"IF($A449=\"N/A\",Ref!$B$36,INDEX(Ranks!$1:$1048576,$A449,AX$1))","v":""},{"$f":"IF($A449=\"N/A\",Ref!$B$36,INDEX(Ranks!$1:$1048576,$A449,AY$1))","v":""},{"$f":"IF($A449=\"N/A\",Ref!$B$36,INDEX(Ranks!$1:$1048576,$A449,AZ$1))","v":""},{"$f":"IF($A449=\"N/A\",Ref!$B$36,INDEX(Ranks!$1:$1048576,$A449,BA$1))","v":""},{"$f":"IF($A449=\"N/A\",Ref!$B$36,INDEX(Ranks!$1:$1048576,$A449,BB$1))","v":""},{"$f":"IF($A449=\"N/A\",Ref!$B$36,INDEX(Ranks!$1:$1048576,$A449,BC$1))","v":""},{"$f":"IF($A449=\"N/A\",Ref!$B$36,INDEX(Ranks!$1:$1048576,$A449,BD$1))","v":""},{"$f":"IF($A449=\"N/A\",Ref!$B$36,INDEX(Ranks!$1:$1048576,$A449,BE$1))","v":""},{"$f":"IF($A449=\"N/A\",Ref!$B$36,INDEX(Ranks!$1:$1048576,$A449,BF$1))","v":""},{"$f":"IF($A449=\"N/A\",Ref!$B$36,INDEX(Ranks!$1:$1048576,$A449,BG$1))","v":""},{"$f":"IF($A449=\"N/A\",Ref!$B$36,INDEX(Ranks!$1:$1048576,$A449,BH$1))","v":""},{"$f":"IF($A449=\"N/A\",Ref!$B$36,INDEX(Ranks!$1:$1048576,$A449,BI$1))","v":""},{"$f":"IF($A449=\"N/A\",Ref!$B$36,INDEX(Ranks!$1:$1048576,$A449,BJ$1))","v":""},{"$f":"IF($A449=\"N/A\",Ref!$B$36,INDEX(Ranks!$1:$1048576,$A449,BK$1))","v":""},{"$f":"IF($A449=\"N/A\",Ref!$B$36,INDEX(Ranks!$1:$1048576,$A449,BL$1))","v":""},{"$f":"IF($A449=\"N/A\",Ref!$B$36,INDEX(Ranks!$1:$1048576,$A449,BM$1))","v":""},{"$f":"IF($A449=\"N/A\",Ref!$B$36,INDEX(Ranks!$1:$1048576,$A449,BN$1))","v":""},{"$f":"IF($A449=\"N/A\",Ref!$B$36,INDEX(Ranks!$1:$1048576,$A449,BO$1))","v":""},{"$f":"IF($A449=\"N/A\",Ref!$B$36,INDEX(Ranks!$1:$1048576,$A449,BP$1))","v":""},{"$f":"IF($A449=\"N/A\",Ref!$B$36,INDEX(Ranks!$1:$1048576,$A449,BQ$1))","v":""},{"$f":"IF($A449=\"N/A\",Ref!$B$36,INDEX(Ranks!$1:$1048576,$A449,BR$1))","v":""},{"$f":"IF($A449=\"N/A\",Ref!$B$36,INDEX(Ranks!$1:$1048576,$A449,BS$1))","v":""},{"$f":"IF($A449=\"N/A\",Ref!$B$36,INDEX(Ranks!$1:$1048576,$A449,BT$1))","v":""},{"$f":"IF($A449=\"N/A\",Ref!$B$36,INDEX(Ranks!$1:$1048576,$A449,BU$1))","v":""},{"$f":"IF($A449=\"N/A\",Ref!$B$36,INDEX(Ranks!$1:$1048576,$A449,BV$1))","v":""},{"$f":"IF($A449=\"N/A\",Ref!$B$36,INDEX(Ranks!$1:$1048576,$A449,BW$1))","v":""},{"$f":"IF($A449=\"N/A\",Ref!$B$36,INDEX(Ranks!$1:$1048576,$A449,BX$1))","v":""},{"$f":"IF($A449=\"N/A\",Ref!$B$36,INDEX(Ranks!$1:$1048576,$A449,BY$1))","v":""},{"$f":"IF($A449=\"N/A\",Ref!$B$36,INDEX(Ranks!$1:$1048576,$A449,BZ$1))","v":""},{"$f":"IF($A449=\"N/A\",Ref!$B$36,INDEX(Ranks!$1:$1048576,$A449,CA$1))","v":""},{"$f":"IF($A449=\"N/A\",Ref!$B$36,INDEX(Ranks!$1:$1048576,$A449,CB$1))","v":""},{"$f":"IF($A449=\"N/A\",Ref!$B$36,INDEX(Ranks!$1:$1048576,$A449,CC$1))","v":""},{"$f":"IF($A449=\"N/A\",Ref!$B$36,INDEX(Ranks!$1:$1048576,$A449,CD$1))","v":""},{"$f":"IF($A449=\"N/A\",Ref!$B$36,INDEX(Ranks!$1:$1048576,$A449,CE$1))","v":""},{"$f":"IF($A449=\"N/A\",Ref!$B$36,INDEX(Ranks!$1:$1048576,$A449,CF$1))","v":""},{"$f":"IF($A449=\"N/A\",Ref!$B$36,INDEX(Ranks!$1:$1048576,$A449,CG$1))","v":""},{"$f":"IF($A449=\"N/A\",Ref!$B$36,INDEX(Ranks!$1:$1048576,$A449,CH$1))","v":""},{"$f":"IF($A449=\"N/A\",Ref!$B$36,INDEX(Ranks!$1:$1048576,$A449,CI$1))","v":""},{"$f":"IF($A449=\"N/A\",Ref!$B$36,INDEX(Ranks!$1:$1048576,$A449,CJ$1))","v":""},{"$f":"IF($A449=\"N/A\",Ref!$B$36,INDEX(Ranks!$1:$1048576,$A449,CK$1))","v":""},{"$f":"IF($A449=\"N/A\",Ref!$B$36,INDEX(Ranks!$1:$1048576,$A449,CL$1))","v":""},{"$f":"IF($A449=\"N/A\",Ref!$B$36,INDEX(Ranks!$1:$1048576,$A449,CM$1))","v":""},{"$f":"IF($A449=\"N/A\",Ref!$B$36,INDEX(Ranks!$1:$1048576,$A449,CN$1))","v":""},{"$f":"IF($A449=\"N/A\",Ref!$B$36,INDEX(Ranks!$1:$1048576,$A449,CO$1))","v":""},{"$f":"IF($A449=\"N/A\",Ref!$B$36,INDEX(Ranks!$1:$1048576,$A449,CP$1))","v":""},{"$f":"IF($A449=\"N/A\",Ref!$B$36,INDEX(Ranks!$1:$1048576,$A449,CQ$1))","v":""},{"$f":"IF($A449=\"N/A\",Ref!$B$36,INDEX(Ranks!$1:$1048576,$A449,CR$1))","v":""},{"$f":"IF($A449=\"N/A\",Ref!$B$36,INDEX(Ranks!$1:$1048576,$A449,CS$1))","v":""},{"$f":"IF($A449=\"N/A\",Ref!$B$36,INDEX(Ranks!$1:$1048576,$A449,CT$1))","v":""},{"$f":"IF($A449=\"N/A\",Ref!$B$36,INDEX(Ranks!$1:$1048576,$A449,CU$1))","v":""},{"$f":"IF($A449=\"N/A\",Ref!$B$36,INDEX(Ranks!$1:$1048576,$A449,CV$1))","v":""},{"$f":"IF($A449=\"N/A\",Ref!$B$36,INDEX(Ranks!$1:$1048576,$A449,CW$1))","v":""},{"$f":"IF($A449=\"N/A\",Ref!$B$36,INDEX(Ranks!$1:$1048576,$A449,CX$1))","v":""},{"$f":"IF($A449=\"N/A\",Ref!$B$36,INDEX(Ranks!$1:$1048576,$A449,CY$1))","v":""},{"$f":"IF($A449=\"N/A\",Ref!$B$36,INDEX(Ranks!$1:$1048576,$A449,CZ$1))","v":""},{"$f":"IF($A449=\"N/A\",Ref!$B$36,INDEX(Ranks!$1:$1048576,$A449,DA$1))","v":""},{"$f":"IF($A449=\"N/A\",Ref!$B$36,INDEX(Ranks!$1:$1048576,$A449,DB$1))","v":""},{"$f":"IF($A449=\"N/A\",Ref!$B$36,INDEX(Ranks!$1:$1048576,$A449,DC$1))","v":""},{"$f":"IF($A449=\"N/A\",Ref!$B$36,INDEX(Ranks!$1:$1048576,$A449,DD$1))","v":""},{"$f":"IF($A449=\"N/A\",Ref!$B$36,INDEX(Ranks!$1:$1048576,$A449,DE$1))","v":""},{"$f":"IF($A449=\"N/A\",Ref!$B$36,INDEX(Ranks!$1:$1048576,$A449,DF$1))","v":""},{"$f":"IF($A449=\"N/A\",Ref!$B$36,INDEX(Ranks!$1:$1048576,$A449,DG$1))","v":""},{"$f":"IF($A449=\"N/A\",Ref!$B$36,INDEX(Ranks!$1:$1048576,$A449,DH$1))","v":""},{"$f":"IF($A449=\"N/A\",Ref!$B$36,INDEX(Ranks!$1:$1048576,$A449,DI$1))","v":""},{"$f":"IF($A449=\"N/A\",Ref!$B$36,INDEX(Ranks!$1:$1048576,$A449,DJ$1))","v":""},{"$f":"IF($A449=\"N/A\",Ref!$B$36,INDEX(Ranks!$1:$1048576,$A449,DK$1))","v":""},{"$f":"IF($A449=\"N/A\",Ref!$B$36,INDEX(Ranks!$1:$1048576,$A449,DL$1))","v":""},{"$f":"IF($A449=\"N/A\",Ref!$B$36,INDEX(Ranks!$1:$1048576,$A449,DM$1))","v":""},{"$f":"IF($A449=\"N/A\",Ref!$B$36,INDEX(Ranks!$1:$1048576,$A449,DN$1))","v":""},{"$f":"IF($A449=\"N/A\",Ref!$B$36,INDEX(Ranks!$1:$1048576,$A449,DO$1))","v":""},{"$f":"IF($A449=\"N/A\",Ref!$B$36,INDEX(Ranks!$1:$1048576,$A449,DP$1))","v":""},{"$f":"IF($A449=\"N/A\",Ref!$B$36,INDEX(Ranks!$1:$1048576,$A449,DQ$1))","v":""},{"$f":"IF($A449=\"N/A\",Ref!$B$36,INDEX(Ranks!$1:$1048576,$A449,DR$1))","v":""},{"$f":"IF($A449=\"N/A\",Ref!$B$36,INDEX(Ranks!$1:$1048576,$A449,DS$1))","v":""},{"$f":"IF($A449=\"N/A\",Ref!$B$36,INDEX(Ranks!$1:$1048576,$A449,DT$1))","v":""},{"$f":"IF($A449=\"N/A\",Ref!$B$36,INDEX(Ranks!$1:$1048576,$A449,DU$1))","v":""},{"$f":"IF($A449=\"N/A\",Ref!$B$36,INDEX(Ranks!$1:$1048576,$A449,DV$1))","v":""},{"$f":"IF($A449=\"N/A\",Ref!$B$36,INDEX(Ranks!$1:$1048576,$A449,DW$1))","v":""},{"$f":"IF($A449=\"N/A\",Ref!$B$36,INDEX(Ranks!$1:$1048576,$A449,DX$1))","v":""},{"$f":"IF($A449=\"N/A\",Ref!$B$36,INDEX(Ranks!$1:$1048576,$A449,DY$1))","v":""},{"$f":"IF($A449=\"N/A\",Ref!$B$36,INDEX(Ranks!$1:$1048576,$A449,DZ$1))","v":""},{"$f":"IF($A449=\"N/A\",Ref!$B$36,INDEX(Ranks!$1:$1048576,$A449,EA$1))","v":""},{"$f":"IF($A449=\"N/A\",Ref!$B$36,INDEX(Ranks!$1:$1048576,$A449,EB$1))","v":""}]
[{"$f":"IFERROR(MATCH('Portfolio Page'!L450,Ranks!L:L,0),\"N/A\")","v":"N/A"},null,{"$f":"IF($A450=\"N/A\",\"\",INDEX(Ranks!$1:$1048576,$A450,C$1))","v":""},{"$f":"IF($A450=\"N/A\",Ref!$B$36,INDEX(Ranks!$1:$1048576,$A450,D$1))","v":""},{"$f":"IF($A450=\"N/A\",Ref!$B$36,INDEX(Ranks!$1:$1048576,$A450,E$1))","v":""},{"$f":"IF($A450=\"N/A\",\"\",INDEX(Ranks!$1:$1048576,$A450,F$1))","v":""},{"$f":"IF($A450=\"N/A\",\"\",INDEX(Ranks!$1:$1048576,$A450,G$1))","v":""},{"$f":"IF($A450=\"N/A\",\"\",INDEX(Ranks!$1:$1048576,$A450,H$1))","v":""},{"$f":"IF($A450=\"N/A\",\"\",INDEX(Ranks!$1:$1048576,$A450,I$1))","v":""},{"$f":"IF($A450=\"N/A\",\"\",INDEX(Ranks!$1:$1048576,$A450,J$1))","v":""},{"$f":"IF($A450=\"N/A\",\"\",INDEX(Ranks!$1:$1048576,$A450,K$1))","v":""},null,{"$f":"IF($A450=\"N/A\",Ref!$B$36,INDEX(Ranks!$1:$1048576,$A450,M$1))","v":""},{"$f":"IF($A450=\"N/A\",Ref!$B$36,INDEX(Ranks!$1:$1048576,$A450,N$1))","v":""},{"$f":"IF($A450=\"N/A\",Ref!$B$36,INDEX(Ranks!$1:$1048576,$A450,O$1))","v":""},{"$f":"IF($A450=\"N/A\",Ref!$B$36,INDEX(Ranks!$1:$1048576,$A450,P$1))","v":""},{"$f":"IF($A450=\"N/A\",Ref!$B$36,INDEX(Ranks!$1:$1048576,$A450,Q$1))","v":""},{"$f":"IF($A450=\"N/A\",Ref!$B$36,INDEX(Ranks!$1:$1048576,$A450,R$1))","v":""},{"$f":"IF($A450=\"N/A\",Ref!$B$36,INDEX(Ranks!$1:$1048576,$A450,S$1))","v":""},{"$f":"IF($A450=\"N/A\",Ref!$B$36,INDEX(Ranks!$1:$1048576,$A450,T$1))","v":""},{"$f":"IF($A450=\"N/A\",Ref!$B$36,INDEX(Ranks!$1:$1048576,$A450,U$1))","v":""},{"$f":"IF($A450=\"N/A\",Ref!$B$36,INDEX(Ranks!$1:$1048576,$A450,V$1))","v":""},{"$f":"IF($A450=\"N/A\",Ref!$B$36,INDEX(Ranks!$1:$1048576,$A450,W$1))","v":""},{"$f":"IF($A450=\"N/A\",Ref!$B$36,INDEX(Ranks!$1:$1048576,$A450,X$1))","v":""},{"$f":"IF($A450=\"N/A\",Ref!$B$36,INDEX(Ranks!$1:$1048576,$A450,Y$1))","v":""},{"$f":"IF($A450=\"N/A\",Ref!$B$36,INDEX(Ranks!$1:$1048576,$A450,Z$1))","v":""},{"$f":"IF($A450=\"N/A\",Ref!$B$36,INDEX(Ranks!$1:$1048576,$A450,AA$1))","v":""},{"$f":"IF($A450=\"N/A\",Ref!$B$36,INDEX(Ranks!$1:$1048576,$A450,AB$1))","v":""},{"$f":"IF($A450=\"N/A\",Ref!$B$36,INDEX(Ranks!$1:$1048576,$A450,AC$1))","v":""},{"$f":"IF($A450=\"N/A\",Ref!$B$36,INDEX(Ranks!$1:$1048576,$A450,AD$1))","v":""},{"$f":"IF($A450=\"N/A\",Ref!$B$36,INDEX(Ranks!$1:$1048576,$A450,AE$1))","v":""},{"$f":"IF($A450=\"N/A\",Ref!$B$36,INDEX(Ranks!$1:$1048576,$A450,AF$1))","v":""},{"$f":"IF($A450=\"N/A\",Ref!$B$36,INDEX(Ranks!$1:$1048576,$A450,AG$1))","v":""},{"$f":"IF($A450=\"N/A\",Ref!$B$36,INDEX(Ranks!$1:$1048576,$A450,AH$1))","v":""},{"$f":"IF($A450=\"N/A\",Ref!$B$36,INDEX(Ranks!$1:$1048576,$A450,AI$1))","v":""},{"$f":"IF($A450=\"N/A\",Ref!$B$36,INDEX(Ranks!$1:$1048576,$A450,AJ$1))","v":""},{"$f":"IF($A450=\"N/A\",Ref!$B$36,INDEX(Ranks!$1:$1048576,$A450,AK$1))","v":""},{"$f":"IF($A450=\"N/A\",Ref!$B$36,INDEX(Ranks!$1:$1048576,$A450,AL$1))","v":""},{"$f":"IF($A450=\"N/A\",Ref!$B$36,INDEX(Ranks!$1:$1048576,$A450,AM$1))","v":""},{"$f":"IF($A450=\"N/A\",Ref!$B$36,INDEX(Ranks!$1:$1048576,$A450,AN$1))","v":""},{"$f":"IF($A450=\"N/A\",Ref!$B$36,INDEX(Ranks!$1:$1048576,$A450,AO$1))","v":""},{"$f":"IF($A450=\"N/A\",Ref!$B$36,INDEX(Ranks!$1:$1048576,$A450,AP$1))","v":""},{"$f":"IF($A450=\"N/A\",Ref!$B$36,INDEX(Ranks!$1:$1048576,$A450,AQ$1))","v":""},{"$f":"IF($A450=\"N/A\",Ref!$B$36,INDEX(Ranks!$1:$1048576,$A450,AR$1))","v":""},{"$f":"IF($A450=\"N/A\",Ref!$B$36,INDEX(Ranks!$1:$1048576,$A450,AS$1))","v":""},{"$f":"IF($A450=\"N/A\",Ref!$B$36,INDEX(Ranks!$1:$1048576,$A450,AT$1))","v":""},{"$f":"IF($A450=\"N/A\",Ref!$B$36,INDEX(Ranks!$1:$1048576,$A450,AU$1))","v":""},{"$f":"IF($A450=\"N/A\",Ref!$B$36,INDEX(Ranks!$1:$1048576,$A450,AV$1))","v":""},{"$f":"IF($A450=\"N/A\",Ref!$B$36,INDEX(Ranks!$1:$1048576,$A450,AW$1))","v":""},{"$f":"IF($A450=\"N/A\",Ref!$B$36,INDEX(Ranks!$1:$1048576,$A450,AX$1))","v":""},{"$f":"IF($A450=\"N/A\",Ref!$B$36,INDEX(Ranks!$1:$1048576,$A450,AY$1))","v":""},{"$f":"IF($A450=\"N/A\",Ref!$B$36,INDEX(Ranks!$1:$1048576,$A450,AZ$1))","v":""},{"$f":"IF($A450=\"N/A\",Ref!$B$36,INDEX(Ranks!$1:$1048576,$A450,BA$1))","v":""},{"$f":"IF($A450=\"N/A\",Ref!$B$36,INDEX(Ranks!$1:$1048576,$A450,BB$1))","v":""},{"$f":"IF($A450=\"N/A\",Ref!$B$36,INDEX(Ranks!$1:$1048576,$A450,BC$1))","v":""},{"$f":"IF($A450=\"N/A\",Ref!$B$36,INDEX(Ranks!$1:$1048576,$A450,BD$1))","v":""},{"$f":"IF($A450=\"N/A\",Ref!$B$36,INDEX(Ranks!$1:$1048576,$A450,BE$1))","v":""},{"$f":"IF($A450=\"N/A\",Ref!$B$36,INDEX(Ranks!$1:$1048576,$A450,BF$1))","v":""},{"$f":"IF($A450=\"N/A\",Ref!$B$36,INDEX(Ranks!$1:$1048576,$A450,BG$1))","v":""},{"$f":"IF($A450=\"N/A\",Ref!$B$36,INDEX(Ranks!$1:$1048576,$A450,BH$1))","v":""},{"$f":"IF($A450=\"N/A\",Ref!$B$36,INDEX(Ranks!$1:$1048576,$A450,BI$1))","v":""},{"$f":"IF($A450=\"N/A\",Ref!$B$36,INDEX(Ranks!$1:$1048576,$A450,BJ$1))","v":""},{"$f":"IF($A450=\"N/A\",Ref!$B$36,INDEX(Ranks!$1:$1048576,$A450,BK$1))","v":""},{"$f":"IF($A450=\"N/A\",Ref!$B$36,INDEX(Ranks!$1:$1048576,$A450,BL$1))","v":""},{"$f":"IF($A450=\"N/A\",Ref!$B$36,INDEX(Ranks!$1:$1048576,$A450,BM$1))","v":""},{"$f":"IF($A450=\"N/A\",Ref!$B$36,INDEX(Ranks!$1:$1048576,$A450,BN$1))","v":""},{"$f":"IF($A450=\"N/A\",Ref!$B$36,INDEX(Ranks!$1:$1048576,$A450,BO$1))","v":""},{"$f":"IF($A450=\"N/A\",Ref!$B$36,INDEX(Ranks!$1:$1048576,$A450,BP$1))","v":""},{"$f":"IF($A450=\"N/A\",Ref!$B$36,INDEX(Ranks!$1:$1048576,$A450,BQ$1))","v":""},{"$f":"IF($A450=\"N/A\",Ref!$B$36,INDEX(Ranks!$1:$1048576,$A450,BR$1))","v":""},{"$f":"IF($A450=\"N/A\",Ref!$B$36,INDEX(Ranks!$1:$1048576,$A450,BS$1))","v":""},{"$f":"IF($A450=\"N/A\",Ref!$B$36,INDEX(Ranks!$1:$1048576,$A450,BT$1))","v":""},{"$f":"IF($A450=\"N/A\",Ref!$B$36,INDEX(Ranks!$1:$1048576,$A450,BU$1))","v":""},{"$f":"IF($A450=\"N/A\",Ref!$B$36,INDEX(Ranks!$1:$1048576,$A450,BV$1))","v":""},{"$f":"IF($A450=\"N/A\",Ref!$B$36,INDEX(Ranks!$1:$1048576,$A450,BW$1))","v":""},{"$f":"IF($A450=\"N/A\",Ref!$B$36,INDEX(Ranks!$1:$1048576,$A450,BX$1))","v":""},{"$f":"IF($A450=\"N/A\",Ref!$B$36,INDEX(Ranks!$1:$1048576,$A450,BY$1))","v":""},{"$f":"IF($A450=\"N/A\",Ref!$B$36,INDEX(Ranks!$1:$1048576,$A450,BZ$1))","v":""},{"$f":"IF($A450=\"N/A\",Ref!$B$36,INDEX(Ranks!$1:$1048576,$A450,CA$1))","v":""},{"$f":"IF($A450=\"N/A\",Ref!$B$36,INDEX(Ranks!$1:$1048576,$A450,CB$1))","v":""},{"$f":"IF($A450=\"N/A\",Ref!$B$36,INDEX(Ranks!$1:$1048576,$A450,CC$1))","v":""},{"$f":"IF($A450=\"N/A\",Ref!$B$36,INDEX(Ranks!$1:$1048576,$A450,CD$1))","v":""},{"$f":"IF($A450=\"N/A\",Ref!$B$36,INDEX(Ranks!$1:$1048576,$A450,CE$1))","v":""},{"$f":"IF($A450=\"N/A\",Ref!$B$36,INDEX(Ranks!$1:$1048576,$A450,CF$1))","v":""},{"$f":"IF($A450=\"N/A\",Ref!$B$36,INDEX(Ranks!$1:$1048576,$A450,CG$1))","v":""},{"$f":"IF($A450=\"N/A\",Ref!$B$36,INDEX(Ranks!$1:$1048576,$A450,CH$1))","v":""},{"$f":"IF($A450=\"N/A\",Ref!$B$36,INDEX(Ranks!$1:$1048576,$A450,CI$1))","v":""},{"$f":"IF($A450=\"N/A\",Ref!$B$36,INDEX(Ranks!$1:$1048576,$A450,CJ$1))","v":""},{"$f":"IF($A450=\"N/A\",Ref!$B$36,INDEX(Ranks!$1:$1048576,$A450,CK$1))","v":""},{"$f":"IF($A450=\"N/A\",Ref!$B$36,INDEX(Ranks!$1:$1048576,$A450,CL$1))","v":""},{"$f":"IF($A450=\"N/A\",Ref!$B$36,INDEX(Ranks!$1:$1048576,$A450,CM$1))","v":""},{"$f":"IF($A450=\"N/A\",Ref!$B$36,INDEX(Ranks!$1:$1048576,$A450,CN$1))","v":""},{"$f":"IF($A450=\"N/A\",Ref!$B$36,INDEX(Ranks!$1:$1048576,$A450,CO$1))","v":""},{"$f":"IF($A450=\"N/A\",Ref!$B$36,INDEX(Ranks!$1:$1048576,$A450,CP$1))","v":""},{"$f":"IF($A450=\"N/A\",Ref!$B$36,INDEX(Ranks!$1:$1048576,$A450,CQ$1))","v":""},{"$f":"IF($A450=\"N/A\",Ref!$B$36,INDEX(Ranks!$1:$1048576,$A450,CR$1))","v":""},{"$f":"IF($A450=\"N/A\",Ref!$B$36,INDEX(Ranks!$1:$1048576,$A450,CS$1))","v":""},{"$f":"IF($A450=\"N/A\",Ref!$B$36,INDEX(Ranks!$1:$1048576,$A450,CT$1))","v":""},{"$f":"IF($A450=\"N/A\",Ref!$B$36,INDEX(Ranks!$1:$1048576,$A450,CU$1))","v":""},{"$f":"IF($A450=\"N/A\",Ref!$B$36,INDEX(Ranks!$1:$1048576,$A450,CV$1))","v":""},{"$f":"IF($A450=\"N/A\",Ref!$B$36,INDEX(Ranks!$1:$1048576,$A450,CW$1))","v":""},{"$f":"IF($A450=\"N/A\",Ref!$B$36,INDEX(Ranks!$1:$1048576,$A450,CX$1))","v":""},{"$f":"IF($A450=\"N/A\",Ref!$B$36,INDEX(Ranks!$1:$1048576,$A450,CY$1))","v":""},{"$f":"IF($A450=\"N/A\",Ref!$B$36,INDEX(Ranks!$1:$1048576,$A450,CZ$1))","v":""},{"$f":"IF($A450=\"N/A\",Ref!$B$36,INDEX(Ranks!$1:$1048576,$A450,DA$1))","v":""},{"$f":"IF($A450=\"N/A\",Ref!$B$36,INDEX(Ranks!$1:$1048576,$A450,DB$1))","v":""},{"$f":"IF($A450=\"N/A\",Ref!$B$36,INDEX(Ranks!$1:$1048576,$A450,DC$1))","v":""},{"$f":"IF($A450=\"N/A\",Ref!$B$36,INDEX(Ranks!$1:$1048576,$A450,DD$1))","v":""},{"$f":"IF($A450=\"N/A\",Ref!$B$36,INDEX(Ranks!$1:$1048576,$A450,DE$1))","v":""},{"$f":"IF($A450=\"N/A\",Ref!$B$36,INDEX(Ranks!$1:$1048576,$A450,DF$1))","v":""},{"$f":"IF($A450=\"N/A\",Ref!$B$36,INDEX(Ranks!$1:$1048576,$A450,DG$1))","v":""},{"$f":"IF($A450=\"N/A\",Ref!$B$36,INDEX(Ranks!$1:$1048576,$A450,DH$1))","v":""},{"$f":"IF($A450=\"N/A\",Ref!$B$36,INDEX(Ranks!$1:$1048576,$A450,DI$1))","v":""},{"$f":"IF($A450=\"N/A\",Ref!$B$36,INDEX(Ranks!$1:$1048576,$A450,DJ$1))","v":""},{"$f":"IF($A450=\"N/A\",Ref!$B$36,INDEX(Ranks!$1:$1048576,$A450,DK$1))","v":""},{"$f":"IF($A450=\"N/A\",Ref!$B$36,INDEX(Ranks!$1:$1048576,$A450,DL$1))","v":""},{"$f":"IF($A450=\"N/A\",Ref!$B$36,INDEX(Ranks!$1:$1048576,$A450,DM$1))","v":""},{"$f":"IF($A450=\"N/A\",Ref!$B$36,INDEX(Ranks!$1:$1048576,$A450,DN$1))","v":""},{"$f":"IF($A450=\"N/A\",Ref!$B$36,INDEX(Ranks!$1:$1048576,$A450,DO$1))","v":""},{"$f":"IF($A450=\"N/A\",Ref!$B$36,INDEX(Ranks!$1:$1048576,$A450,DP$1))","v":""},{"$f":"IF($A450=\"N/A\",Ref!$B$36,INDEX(Ranks!$1:$1048576,$A450,DQ$1))","v":""},{"$f":"IF($A450=\"N/A\",Ref!$B$36,INDEX(Ranks!$1:$1048576,$A450,DR$1))","v":""},{"$f":"IF($A450=\"N/A\",Ref!$B$36,INDEX(Ranks!$1:$1048576,$A450,DS$1))","v":""},{"$f":"IF($A450=\"N/A\",Ref!$B$36,INDEX(Ranks!$1:$1048576,$A450,DT$1))","v":""},{"$f":"IF($A450=\"N/A\",Ref!$B$36,INDEX(Ranks!$1:$1048576,$A450,DU$1))","v":""},{"$f":"IF($A450=\"N/A\",Ref!$B$36,INDEX(Ranks!$1:$1048576,$A450,DV$1))","v":""},{"$f":"IF($A450=\"N/A\",Ref!$B$36,INDEX(Ranks!$1:$1048576,$A450,DW$1))","v":""},{"$f":"IF($A450=\"N/A\",Ref!$B$36,INDEX(Ranks!$1:$1048576,$A450,DX$1))","v":""},{"$f":"IF($A450=\"N/A\",Ref!$B$36,INDEX(Ranks!$1:$1048576,$A450,DY$1))","v":""},{"$f":"IF($A450=\"N/A\",Ref!$B$36,INDEX(Ranks!$1:$1048576,$A450,DZ$1))","v":""},{"$f":"IF($A450=\"N/A\",Ref!$B$36,INDEX(Ranks!$1:$1048576,$A450,EA$1))","v":""},{"$f":"IF($A450=\"N/A\",Ref!$B$36,INDEX(Ranks!$1:$1048576,$A450,EB$1))","v":""}]
[{"$f":"IFERROR(MATCH('Portfolio Page'!L451,Ranks!L:L,0),\"N/A\")","v":"N/A"},null,{"$f":"IF($A451=\"N/A\",\"\",INDEX(Ranks!$1:$1048576,$A451,C$1))","v":""},{"$f":"IF($A451=\"N/A\",Ref!$B$36,INDEX(Ranks!$1:$1048576,$A451,D$1))","v":""},{"$f":"IF($A451=\"N/A\",Ref!$B$36,INDEX(Ranks!$1:$1048576,$A451,E$1))","v":""},{"$f":"IF($A451=\"N/A\",\"\",INDEX(Ranks!$1:$1048576,$A451,F$1))","v":""},{"$f":"IF($A451=\"N/A\",\"\",INDEX(Ranks!$1:$1048576,$A451,G$1))","v":""},{"$f":"IF($A451=\"N/A\",\"\",INDEX(Ranks!$1:$1048576,$A451,H$1))","v":""},{"$f":"IF($A451=\"N/A\",\"\",INDEX(Ranks!$1:$1048576,$A451,I$1))","v":""},{"$f":"IF($A451=\"N/A\",\"\",INDEX(Ranks!$1:$1048576,$A451,J$1))","v":""},{"$f":"IF($A451=\"N/A\",\"\",INDEX(Ranks!$1:$1048576,$A451,K$1))","v":""},null,{"$f":"IF($A451=\"N/A\",Ref!$B$36,INDEX(Ranks!$1:$1048576,$A451,M$1))","v":""},{"$f":"IF($A451=\"N/A\",Ref!$B$36,INDEX(Ranks!$1:$1048576,$A451,N$1))","v":""},{"$f":"IF($A451=\"N/A\",Ref!$B$36,INDEX(Ranks!$1:$1048576,$A451,O$1))","v":""},{"$f":"IF($A451=\"N/A\",Ref!$B$36,INDEX(Ranks!$1:$1048576,$A451,P$1))","v":""},{"$f":"IF($A451=\"N/A\",Ref!$B$36,INDEX(Ranks!$1:$1048576,$A451,Q$1))","v":""},{"$f":"IF($A451=\"N/A\",Ref!$B$36,INDEX(Ranks!$1:$1048576,$A451,R$1))","v":""},{"$f":"IF($A451=\"N/A\",Ref!$B$36,INDEX(Ranks!$1:$1048576,$A451,S$1))","v":""},{"$f":"IF($A451=\"N/A\",Ref!$B$36,INDEX(Ranks!$1:$1048576,$A451,T$1))","v":""},{"$f":"IF($A451=\"N/A\",Ref!$B$36,INDEX(Ranks!$1:$1048576,$A451,U$1))","v":""},{"$f":"IF($A451=\"N/A\",Ref!$B$36,INDEX(Ranks!$1:$1048576,$A451,V$1))","v":""},{"$f":"IF($A451=\"N/A\",Ref!$B$36,INDEX(Ranks!$1:$1048576,$A451,W$1))","v":""},{"$f":"IF($A451=\"N/A\",Ref!$B$36,INDEX(Ranks!$1:$1048576,$A451,X$1))","v":""},{"$f":"IF($A451=\"N/A\",Ref!$B$36,INDEX(Ranks!$1:$1048576,$A451,Y$1))","v":""},{"$f":"IF($A451=\"N/A\",Ref!$B$36,INDEX(Ranks!$1:$1048576,$A451,Z$1))","v":""},{"$f":"IF($A451=\"N/A\",Ref!$B$36,INDEX(Ranks!$1:$1048576,$A451,AA$1))","v":""},{"$f":"IF($A451=\"N/A\",Ref!$B$36,INDEX(Ranks!$1:$1048576,$A451,AB$1))","v":""},{"$f":"IF($A451=\"N/A\",Ref!$B$36,INDEX(Ranks!$1:$1048576,$A451,AC$1))","v":""},{"$f":"IF($A451=\"N/A\",Ref!$B$36,INDEX(Ranks!$1:$1048576,$A451,AD$1))","v":""},{"$f":"IF($A451=\"N/A\",Ref!$B$36,INDEX(Ranks!$1:$1048576,$A451,AE$1))","v":""},{"$f":"IF($A451=\"N/A\",Ref!$B$36,INDEX(Ranks!$1:$1048576,$A451,AF$1))","v":""},{"$f":"IF($A451=\"N/A\",Ref!$B$36,INDEX(Ranks!$1:$1048576,$A451,AG$1))","v":""},{"$f":"IF($A451=\"N/A\",Ref!$B$36,INDEX(Ranks!$1:$1048576,$A451,AH$1))","v":""},{"$f":"IF($A451=\"N/A\",Ref!$B$36,INDEX(Ranks!$1:$1048576,$A451,AI$1))","v":""},{"$f":"IF($A451=\"N/A\",Ref!$B$36,INDEX(Ranks!$1:$1048576,$A451,AJ$1))","v":""},{"$f":"IF($A451=\"N/A\",Ref!$B$36,INDEX(Ranks!$1:$1048576,$A451,AK$1))","v":""},{"$f":"IF($A451=\"N/A\",Ref!$B$36,INDEX(Ranks!$1:$1048576,$A451,AL$1))","v":""},{"$f":"IF($A451=\"N/A\",Ref!$B$36,INDEX(Ranks!$1:$1048576,$A451,AM$1))","v":""},{"$f":"IF($A451=\"N/A\",Ref!$B$36,INDEX(Ranks!$1:$1048576,$A451,AN$1))","v":""},{"$f":"IF($A451=\"N/A\",Ref!$B$36,INDEX(Ranks!$1:$1048576,$A451,AO$1))","v":""},{"$f":"IF($A451=\"N/A\",Ref!$B$36,INDEX(Ranks!$1:$1048576,$A451,AP$1))","v":""},{"$f":"IF($A451=\"N/A\",Ref!$B$36,INDEX(Ranks!$1:$1048576,$A451,AQ$1))","v":""},{"$f":"IF($A451=\"N/A\",Ref!$B$36,INDEX(Ranks!$1:$1048576,$A451,AR$1))","v":""},{"$f":"IF($A451=\"N/A\",Ref!$B$36,INDEX(Ranks!$1:$1048576,$A451,AS$1))","v":""},{"$f":"IF($A451=\"N/A\",Ref!$B$36,INDEX(Ranks!$1:$1048576,$A451,AT$1))","v":""},{"$f":"IF($A451=\"N/A\",Ref!$B$36,INDEX(Ranks!$1:$1048576,$A451,AU$1))","v":""},{"$f":"IF($A451=\"N/A\",Ref!$B$36,INDEX(Ranks!$1:$1048576,$A451,AV$1))","v":""},{"$f":"IF($A451=\"N/A\",Ref!$B$36,INDEX(Ranks!$1:$1048576,$A451,AW$1))","v":""},{"$f":"IF($A451=\"N/A\",Ref!$B$36,INDEX(Ranks!$1:$1048576,$A451,AX$1))","v":""},{"$f":"IF($A451=\"N/A\",Ref!$B$36,INDEX(Ranks!$1:$1048576,$A451,AY$1))","v":""},{"$f":"IF($A451=\"N/A\",Ref!$B$36,INDEX(Ranks!$1:$1048576,$A451,AZ$1))","v":""},{"$f":"IF($A451=\"N/A\",Ref!$B$36,INDEX(Ranks!$1:$1048576,$A451,BA$1))","v":""},{"$f":"IF($A451=\"N/A\",Ref!$B$36,INDEX(Ranks!$1:$1048576,$A451,BB$1))","v":""},{"$f":"IF($A451=\"N/A\",Ref!$B$36,INDEX(Ranks!$1:$1048576,$A451,BC$1))","v":""},{"$f":"IF($A451=\"N/A\",Ref!$B$36,INDEX(Ranks!$1:$1048576,$A451,BD$1))","v":""},{"$f":"IF($A451=\"N/A\",Ref!$B$36,INDEX(Ranks!$1:$1048576,$A451,BE$1))","v":""},{"$f":"IF($A451=\"N/A\",Ref!$B$36,INDEX(Ranks!$1:$1048576,$A451,BF$1))","v":""},{"$f":"IF($A451=\"N/A\",Ref!$B$36,INDEX(Ranks!$1:$1048576,$A451,BG$1))","v":""},{"$f":"IF($A451=\"N/A\",Ref!$B$36,INDEX(Ranks!$1:$1048576,$A451,BH$1))","v":""},{"$f":"IF($A451=\"N/A\",Ref!$B$36,INDEX(Ranks!$1:$1048576,$A451,BI$1))","v":""},{"$f":"IF($A451=\"N/A\",Ref!$B$36,INDEX(Ranks!$1:$1048576,$A451,BJ$1))","v":""},{"$f":"IF($A451=\"N/A\",Ref!$B$36,INDEX(Ranks!$1:$1048576,$A451,BK$1))","v":""},{"$f":"IF($A451=\"N/A\",Ref!$B$36,INDEX(Ranks!$1:$1048576,$A451,BL$1))","v":""},{"$f":"IF($A451=\"N/A\",Ref!$B$36,INDEX(Ranks!$1:$1048576,$A451,BM$1))","v":""},{"$f":"IF($A451=\"N/A\",Ref!$B$36,INDEX(Ranks!$1:$1048576,$A451,BN$1))","v":""},{"$f":"IF($A451=\"N/A\",Ref!$B$36,INDEX(Ranks!$1:$1048576,$A451,BO$1))","v":""},{"$f":"IF($A451=\"N/A\",Ref!$B$36,INDEX(Ranks!$1:$1048576,$A451,BP$1))","v":""},{"$f":"IF($A451=\"N/A\",Ref!$B$36,INDEX(Ranks!$1:$1048576,$A451,BQ$1))","v":""},{"$f":"IF($A451=\"N/A\",Ref!$B$36,INDEX(Ranks!$1:$1048576,$A451,BR$1))","v":""},{"$f":"IF($A451=\"N/A\",Ref!$B$36,INDEX(Ranks!$1:$1048576,$A451,BS$1))","v":""},{"$f":"IF($A451=\"N/A\",Ref!$B$36,INDEX(Ranks!$1:$1048576,$A451,BT$1))","v":""},{"$f":"IF($A451=\"N/A\",Ref!$B$36,INDEX(Ranks!$1:$1048576,$A451,BU$1))","v":""},{"$f":"IF($A451=\"N/A\",Ref!$B$36,INDEX(Ranks!$1:$1048576,$A451,BV$1))","v":""},{"$f":"IF($A451=\"N/A\",Ref!$B$36,INDEX(Ranks!$1:$1048576,$A451,BW$1))","v":""},{"$f":"IF($A451=\"N/A\",Ref!$B$36,INDEX(Ranks!$1:$1048576,$A451,BX$1))","v":""},{"$f":"IF($A451=\"N/A\",Ref!$B$36,INDEX(Ranks!$1:$1048576,$A451,BY$1))","v":""},{"$f":"IF($A451=\"N/A\",Ref!$B$36,INDEX(Ranks!$1:$1048576,$A451,BZ$1))","v":""},{"$f":"IF($A451=\"N/A\",Ref!$B$36,INDEX(Ranks!$1:$1048576,$A451,CA$1))","v":""},{"$f":"IF($A451=\"N/A\",Ref!$B$36,INDEX(Ranks!$1:$1048576,$A451,CB$1))","v":""},{"$f":"IF($A451=\"N/A\",Ref!$B$36,INDEX(Ranks!$1:$1048576,$A451,CC$1))","v":""},{"$f":"IF($A451=\"N/A\",Ref!$B$36,INDEX(Ranks!$1:$1048576,$A451,CD$1))","v":""},{"$f":"IF($A451=\"N/A\",Ref!$B$36,INDEX(Ranks!$1:$1048576,$A451,CE$1))","v":""},{"$f":"IF($A451=\"N/A\",Ref!$B$36,INDEX(Ranks!$1:$1048576,$A451,CF$1))","v":""},{"$f":"IF($A451=\"N/A\",Ref!$B$36,INDEX(Ranks!$1:$1048576,$A451,CG$1))","v":""},{"$f":"IF($A451=\"N/A\",Ref!$B$36,INDEX(Ranks!$1:$1048576,$A451,CH$1))","v":""},{"$f":"IF($A451=\"N/A\",Ref!$B$36,INDEX(Ranks!$1:$1048576,$A451,CI$1))","v":""},{"$f":"IF($A451=\"N/A\",Ref!$B$36,INDEX(Ranks!$1:$1048576,$A451,CJ$1))","v":""},{"$f":"IF($A451=\"N/A\",Ref!$B$36,INDEX(Ranks!$1:$1048576,$A451,CK$1))","v":""},{"$f":"IF($A451=\"N/A\",Ref!$B$36,INDEX(Ranks!$1:$1048576,$A451,CL$1))","v":""},{"$f":"IF($A451=\"N/A\",Ref!$B$36,INDEX(Ranks!$1:$1048576,$A451,CM$1))","v":""},{"$f":"IF($A451=\"N/A\",Ref!$B$36,INDEX(Ranks!$1:$1048576,$A451,CN$1))","v":""},{"$f":"IF($A451=\"N/A\",Ref!$B$36,INDEX(Ranks!$1:$1048576,$A451,CO$1))","v":""},{"$f":"IF($A451=\"N/A\",Ref!$B$36,INDEX(Ranks!$1:$1048576,$A451,CP$1))","v":""},{"$f":"IF($A451=\"N/A\",Ref!$B$36,INDEX(Ranks!$1:$1048576,$A451,CQ$1))","v":""},{"$f":"IF($A451=\"N/A\",Ref!$B$36,INDEX(Ranks!$1:$1048576,$A451,CR$1))","v":""},{"$f":"IF($A451=\"N/A\",Ref!$B$36,INDEX(Ranks!$1:$1048576,$A451,CS$1))","v":""},{"$f":"IF($A451=\"N/A\",Ref!$B$36,INDEX(Ranks!$1:$1048576,$A451,CT$1))","v":""},{"$f":"IF($A451=\"N/A\",Ref!$B$36,INDEX(Ranks!$1:$1048576,$A451,CU$1))","v":""},{"$f":"IF($A451=\"N/A\",Ref!$B$36,INDEX(Ranks!$1:$1048576,$A451,CV$1))","v":""},{"$f":"IF($A451=\"N/A\",Ref!$B$36,INDEX(Ranks!$1:$1048576,$A451,CW$1))","v":""},{"$f":"IF($A451=\"N/A\",Ref!$B$36,INDEX(Ranks!$1:$1048576,$A451,CX$1))","v":""},{"$f":"IF($A451=\"N/A\",Ref!$B$36,INDEX(Ranks!$1:$1048576,$A451,CY$1))","v":""},{"$f":"IF($A451=\"N/A\",Ref!$B$36,INDEX(Ranks!$1:$1048576,$A451,CZ$1))","v":""},{"$f":"IF($A451=\"N/A\",Ref!$B$36,INDEX(Ranks!$1:$1048576,$A451,DA$1))","v":""},{"$f":"IF($A451=\"N/A\",Ref!$B$36,INDEX(Ranks!$1:$1048576,$A451,DB$1))","v":""},{"$f":"IF($A451=\"N/A\",Ref!$B$36,INDEX(Ranks!$1:$1048576,$A451,DC$1))","v":""},{"$f":"IF($A451=\"N/A\",Ref!$B$36,INDEX(Ranks!$1:$1048576,$A451,DD$1))","v":""},{"$f":"IF($A451=\"N/A\",Ref!$B$36,INDEX(Ranks!$1:$1048576,$A451,DE$1))","v":""},{"$f":"IF($A451=\"N/A\",Ref!$B$36,INDEX(Ranks!$1:$1048576,$A451,DF$1))","v":""},{"$f":"IF($A451=\"N/A\",Ref!$B$36,INDEX(Ranks!$1:$1048576,$A451,DG$1))","v":""},{"$f":"IF($A451=\"N/A\",Ref!$B$36,INDEX(Ranks!$1:$1048576,$A451,DH$1))","v":""},{"$f":"IF($A451=\"N/A\",Ref!$B$36,INDEX(Ranks!$1:$1048576,$A451,DI$1))","v":""},{"$f":"IF($A451=\"N/A\",Ref!$B$36,INDEX(Ranks!$1:$1048576,$A451,DJ$1))","v":""},{"$f":"IF($A451=\"N/A\",Ref!$B$36,INDEX(Ranks!$1:$1048576,$A451,DK$1))","v":""},{"$f":"IF($A451=\"N/A\",Ref!$B$36,INDEX(Ranks!$1:$1048576,$A451,DL$1))","v":""},{"$f":"IF($A451=\"N/A\",Ref!$B$36,INDEX(Ranks!$1:$1048576,$A451,DM$1))","v":""},{"$f":"IF($A451=\"N/A\",Ref!$B$36,INDEX(Ranks!$1:$1048576,$A451,DN$1))","v":""},{"$f":"IF($A451=\"N/A\",Ref!$B$36,INDEX(Ranks!$1:$1048576,$A451,DO$1))","v":""},{"$f":"IF($A451=\"N/A\",Ref!$B$36,INDEX(Ranks!$1:$1048576,$A451,DP$1))","v":""},{"$f":"IF($A451=\"N/A\",Ref!$B$36,INDEX(Ranks!$1:$1048576,$A451,DQ$1))","v":""},{"$f":"IF($A451=\"N/A\",Ref!$B$36,INDEX(Ranks!$1:$1048576,$A451,DR$1))","v":""},{"$f":"IF($A451=\"N/A\",Ref!$B$36,INDEX(Ranks!$1:$1048576,$A451,DS$1))","v":""},{"$f":"IF($A451=\"N/A\",Ref!$B$36,INDEX(Ranks!$1:$1048576,$A451,DT$1))","v":""},{"$f":"IF($A451=\"N/A\",Ref!$B$36,INDEX(Ranks!$1:$1048576,$A451,DU$1))","v":""},{"$f":"IF($A451=\"N/A\",Ref!$B$36,INDEX(Ranks!$1:$1048576,$A451,DV$1))","v":""},{"$f":"IF($A451=\"N/A\",Ref!$B$36,INDEX(Ranks!$1:$1048576,$A451,DW$1))","v":""},{"$f":"IF($A451=\"N/A\",Ref!$B$36,INDEX(Ranks!$1:$1048576,$A451,DX$1))","v":""},{"$f":"IF($A451=\"N/A\",Ref!$B$36,INDEX(Ranks!$1:$1048576,$A451,DY$1))","v":""},{"$f":"IF($A451=\"N/A\",Ref!$B$36,INDEX(Ranks!$1:$1048576,$A451,DZ$1))","v":""},{"$f":"IF($A451=\"N/A\",Ref!$B$36,INDEX(Ranks!$1:$1048576,$A451,EA$1))","v":""},{"$f":"IF($A451=\"N/A\",Ref!$B$36,INDEX(Ranks!$1:$1048576,$A451,EB$1))","v":""}]
[{"$f":"IFERROR(MATCH('Portfolio Page'!L452,Ranks!L:L,0),\"N/A\")","v":"N/A"},null,{"$f":"IF($A452=\"N/A\",\"\",INDEX(Ranks!$1:$1048576,$A452,C$1))","v":""},{"$f":"IF($A452=\"N/A\",Ref!$B$36,INDEX(Ranks!$1:$1048576,$A452,D$1))","v":""},{"$f":"IF($A452=\"N/A\",Ref!$B$36,INDEX(Ranks!$1:$1048576,$A452,E$1))","v":""},{"$f":"IF($A452=\"N/A\",\"\",INDEX(Ranks!$1:$1048576,$A452,F$1))","v":""},{"$f":"IF($A452=\"N/A\",\"\",INDEX(Ranks!$1:$1048576,$A452,G$1))","v":""},{"$f":"IF($A452=\"N/A\",\"\",INDEX(Ranks!$1:$1048576,$A452,H$1))","v":""},{"$f":"IF($A452=\"N/A\",\"\",INDEX(Ranks!$1:$1048576,$A452,I$1))","v":""},{"$f":"IF($A452=\"N/A\",\"\",INDEX(Ranks!$1:$1048576,$A452,J$1))","v":""},{"$f":"IF($A452=\"N/A\",\"\",INDEX(Ranks!$1:$1048576,$A452,K$1))","v":""},null,{"$f":"IF($A452=\"N/A\",Ref!$B$36,INDEX(Ranks!$1:$1048576,$A452,M$1))","v":""},{"$f":"IF($A452=\"N/A\",Ref!$B$36,INDEX(Ranks!$1:$1048576,$A452,N$1))","v":""},{"$f":"IF($A452=\"N/A\",Ref!$B$36,INDEX(Ranks!$1:$1048576,$A452,O$1))","v":""},{"$f":"IF($A452=\"N/A\",Ref!$B$36,INDEX(Ranks!$1:$1048576,$A452,P$1))","v":""},{"$f":"IF($A452=\"N/A\",Ref!$B$36,INDEX(Ranks!$1:$1048576,$A452,Q$1))","v":""},{"$f":"IF($A452=\"N/A\",Ref!$B$36,INDEX(Ranks!$1:$1048576,$A452,R$1))","v":""},{"$f":"IF($A452=\"N/A\",Ref!$B$36,INDEX(Ranks!$1:$1048576,$A452,S$1))","v":""},{"$f":"IF($A452=\"N/A\",Ref!$B$36,INDEX(Ranks!$1:$1048576,$A452,T$1))","v":""},{"$f":"IF($A452=\"N/A\",Ref!$B$36,INDEX(Ranks!$1:$1048576,$A452,U$1))","v":""},{"$f":"IF($A452=\"N/A\",Ref!$B$36,INDEX(Ranks!$1:$1048576,$A452,V$1))","v":""},{"$f":"IF($A452=\"N/A\",Ref!$B$36,INDEX(Ranks!$1:$1048576,$A452,W$1))","v":""},{"$f":"IF($A452=\"N/A\",Ref!$B$36,INDEX(Ranks!$1:$1048576,$A452,X$1))","v":""},{"$f":"IF($A452=\"N/A\",Ref!$B$36,INDEX(Ranks!$1:$1048576,$A452,Y$1))","v":""},{"$f":"IF($A452=\"N/A\",Ref!$B$36,INDEX(Ranks!$1:$1048576,$A452,Z$1))","v":""},{"$f":"IF($A452=\"N/A\",Ref!$B$36,INDEX(Ranks!$1:$1048576,$A452,AA$1))","v":""},{"$f":"IF($A452=\"N/A\",Ref!$B$36,INDEX(Ranks!$1:$1048576,$A452,AB$1))","v":""},{"$f":"IF($A452=\"N/A\",Ref!$B$36,INDEX(Ranks!$1:$1048576,$A452,AC$1))","v":""},{"$f":"IF($A452=\"N/A\",Ref!$B$36,INDEX(Ranks!$1:$1048576,$A452,AD$1))","v":""},{"$f":"IF($A452=\"N/A\",Ref!$B$36,INDEX(Ranks!$1:$1048576,$A452,AE$1))","v":""},{"$f":"IF($A452=\"N/A\",Ref!$B$36,INDEX(Ranks!$1:$1048576,$A452,AF$1))","v":""},{"$f":"IF($A452=\"N/A\",Ref!$B$36,INDEX(Ranks!$1:$1048576,$A452,AG$1))","v":""},{"$f":"IF($A452=\"N/A\",Ref!$B$36,INDEX(Ranks!$1:$1048576,$A452,AH$1))","v":""},{"$f":"IF($A452=\"N/A\",Ref!$B$36,INDEX(Ranks!$1:$1048576,$A452,AI$1))","v":""},{"$f":"IF($A452=\"N/A\",Ref!$B$36,INDEX(Ranks!$1:$1048576,$A452,AJ$1))","v":""},{"$f":"IF($A452=\"N/A\",Ref!$B$36,INDEX(Ranks!$1:$1048576,$A452,AK$1))","v":""},{"$f":"IF($A452=\"N/A\",Ref!$B$36,INDEX(Ranks!$1:$1048576,$A452,AL$1))","v":""},{"$f":"IF($A452=\"N/A\",Ref!$B$36,INDEX(Ranks!$1:$1048576,$A452,AM$1))","v":""},{"$f":"IF($A452=\"N/A\",Ref!$B$36,INDEX(Ranks!$1:$1048576,$A452,AN$1))","v":""},{"$f":"IF($A452=\"N/A\",Ref!$B$36,INDEX(Ranks!$1:$1048576,$A452,AO$1))","v":""},{"$f":"IF($A452=\"N/A\",Ref!$B$36,INDEX(Ranks!$1:$1048576,$A452,AP$1))","v":""},{"$f":"IF($A452=\"N/A\",Ref!$B$36,INDEX(Ranks!$1:$1048576,$A452,AQ$1))","v":""},{"$f":"IF($A452=\"N/A\",Ref!$B$36,INDEX(Ranks!$1:$1048576,$A452,AR$1))","v":""},{"$f":"IF($A452=\"N/A\",Ref!$B$36,INDEX(Ranks!$1:$1048576,$A452,AS$1))","v":""},{"$f":"IF($A452=\"N/A\",Ref!$B$36,INDEX(Ranks!$1:$1048576,$A452,AT$1))","v":""},{"$f":"IF($A452=\"N/A\",Ref!$B$36,INDEX(Ranks!$1:$1048576,$A452,AU$1))","v":""},{"$f":"IF($A452=\"N/A\",Ref!$B$36,INDEX(Ranks!$1:$1048576,$A452,AV$1))","v":""},{"$f":"IF($A452=\"N/A\",Ref!$B$36,INDEX(Ranks!$1:$1048576,$A452,AW$1))","v":""},{"$f":"IF($A452=\"N/A\",Ref!$B$36,INDEX(Ranks!$1:$1048576,$A452,AX$1))","v":""},{"$f":"IF($A452=\"N/A\",Ref!$B$36,INDEX(Ranks!$1:$1048576,$A452,AY$1))","v":""},{"$f":"IF($A452=\"N/A\",Ref!$B$36,INDEX(Ranks!$1:$1048576,$A452,AZ$1))","v":""},{"$f":"IF($A452=\"N/A\",Ref!$B$36,INDEX(Ranks!$1:$1048576,$A452,BA$1))","v":""},{"$f":"IF($A452=\"N/A\",Ref!$B$36,INDEX(Ranks!$1:$1048576,$A452,BB$1))","v":""},{"$f":"IF($A452=\"N/A\",Ref!$B$36,INDEX(Ranks!$1:$1048576,$A452,BC$1))","v":""},{"$f":"IF($A452=\"N/A\",Ref!$B$36,INDEX(Ranks!$1:$1048576,$A452,BD$1))","v":""},{"$f":"IF($A452=\"N/A\",Ref!$B$36,INDEX(Ranks!$1:$1048576,$A452,BE$1))","v":""},{"$f":"IF($A452=\"N/A\",Ref!$B$36,INDEX(Ranks!$1:$1048576,$A452,BF$1))","v":""},{"$f":"IF($A452=\"N/A\",Ref!$B$36,INDEX(Ranks!$1:$1048576,$A452,BG$1))","v":""},{"$f":"IF($A452=\"N/A\",Ref!$B$36,INDEX(Ranks!$1:$1048576,$A452,BH$1))","v":""},{"$f":"IF($A452=\"N/A\",Ref!$B$36,INDEX(Ranks!$1:$1048576,$A452,BI$1))","v":""},{"$f":"IF($A452=\"N/A\",Ref!$B$36,INDEX(Ranks!$1:$1048576,$A452,BJ$1))","v":""},{"$f":"IF($A452=\"N/A\",Ref!$B$36,INDEX(Ranks!$1:$1048576,$A452,BK$1))","v":""},{"$f":"IF($A452=\"N/A\",Ref!$B$36,INDEX(Ranks!$1:$1048576,$A452,BL$1))","v":""},{"$f":"IF($A452=\"N/A\",Ref!$B$36,INDEX(Ranks!$1:$1048576,$A452,BM$1))","v":""},{"$f":"IF($A452=\"N/A\",Ref!$B$36,INDEX(Ranks!$1:$1048576,$A452,BN$1))","v":""},{"$f":"IF($A452=\"N/A\",Ref!$B$36,INDEX(Ranks!$1:$1048576,$A452,BO$1))","v":""},{"$f":"IF($A452=\"N/A\",Ref!$B$36,INDEX(Ranks!$1:$1048576,$A452,BP$1))","v":""},{"$f":"IF($A452=\"N/A\",Ref!$B$36,INDEX(Ranks!$1:$1048576,$A452,BQ$1))","v":""},{"$f":"IF($A452=\"N/A\",Ref!$B$36,INDEX(Ranks!$1:$1048576,$A452,BR$1))","v":""},{"$f":"IF($A452=\"N/A\",Ref!$B$36,INDEX(Ranks!$1:$1048576,$A452,BS$1))","v":""},{"$f":"IF($A452=\"N/A\",Ref!$B$36,INDEX(Ranks!$1:$1048576,$A452,BT$1))","v":""},{"$f":"IF($A452=\"N/A\",Ref!$B$36,INDEX(Ranks!$1:$1048576,$A452,BU$1))","v":""},{"$f":"IF($A452=\"N/A\",Ref!$B$36,INDEX(Ranks!$1:$1048576,$A452,BV$1))","v":""},{"$f":"IF($A452=\"N/A\",Ref!$B$36,INDEX(Ranks!$1:$1048576,$A452,BW$1))","v":""},{"$f":"IF($A452=\"N/A\",Ref!$B$36,INDEX(Ranks!$1:$1048576,$A452,BX$1))","v":""},{"$f":"IF($A452=\"N/A\",Ref!$B$36,INDEX(Ranks!$1:$1048576,$A452,BY$1))","v":""},{"$f":"IF($A452=\"N/A\",Ref!$B$36,INDEX(Ranks!$1:$1048576,$A452,BZ$1))","v":""},{"$f":"IF($A452=\"N/A\",Ref!$B$36,INDEX(Ranks!$1:$1048576,$A452,CA$1))","v":""},{"$f":"IF($A452=\"N/A\",Ref!$B$36,INDEX(Ranks!$1:$1048576,$A452,CB$1))","v":""},{"$f":"IF($A452=\"N/A\",Ref!$B$36,INDEX(Ranks!$1:$1048576,$A452,CC$1))","v":""},{"$f":"IF($A452=\"N/A\",Ref!$B$36,INDEX(Ranks!$1:$1048576,$A452,CD$1))","v":""},{"$f":"IF($A452=\"N/A\",Ref!$B$36,INDEX(Ranks!$1:$1048576,$A452,CE$1))","v":""},{"$f":"IF($A452=\"N/A\",Ref!$B$36,INDEX(Ranks!$1:$1048576,$A452,CF$1))","v":""},{"$f":"IF($A452=\"N/A\",Ref!$B$36,INDEX(Ranks!$1:$1048576,$A452,CG$1))","v":""},{"$f":"IF($A452=\"N/A\",Ref!$B$36,INDEX(Ranks!$1:$1048576,$A452,CH$1))","v":""},{"$f":"IF($A452=\"N/A\",Ref!$B$36,INDEX(Ranks!$1:$1048576,$A452,CI$1))","v":""},{"$f":"IF($A452=\"N/A\",Ref!$B$36,INDEX(Ranks!$1:$1048576,$A452,CJ$1))","v":""},{"$f":"IF($A452=\"N/A\",Ref!$B$36,INDEX(Ranks!$1:$1048576,$A452,CK$1))","v":""},{"$f":"IF($A452=\"N/A\",Ref!$B$36,INDEX(Ranks!$1:$1048576,$A452,CL$1))","v":""},{"$f":"IF($A452=\"N/A\",Ref!$B$36,INDEX(Ranks!$1:$1048576,$A452,CM$1))","v":""},{"$f":"IF($A452=\"N/A\",Ref!$B$36,INDEX(Ranks!$1:$1048576,$A452,CN$1))","v":""},{"$f":"IF($A452=\"N/A\",Ref!$B$36,INDEX(Ranks!$1:$1048576,$A452,CO$1))","v":""},{"$f":"IF($A452=\"N/A\",Ref!$B$36,INDEX(Ranks!$1:$1048576,$A452,CP$1))","v":""},{"$f":"IF($A452=\"N/A\",Ref!$B$36,INDEX(Ranks!$1:$1048576,$A452,CQ$1))","v":""},{"$f":"IF($A452=\"N/A\",Ref!$B$36,INDEX(Ranks!$1:$1048576,$A452,CR$1))","v":""},{"$f":"IF($A452=\"N/A\",Ref!$B$36,INDEX(Ranks!$1:$1048576,$A452,CS$1))","v":""},{"$f":"IF($A452=\"N/A\",Ref!$B$36,INDEX(Ranks!$1:$1048576,$A452,CT$1))","v":""},{"$f":"IF($A452=\"N/A\",Ref!$B$36,INDEX(Ranks!$1:$1048576,$A452,CU$1))","v":""},{"$f":"IF($A452=\"N/A\",Ref!$B$36,INDEX(Ranks!$1:$1048576,$A452,CV$1))","v":""},{"$f":"IF($A452=\"N/A\",Ref!$B$36,INDEX(Ranks!$1:$1048576,$A452,CW$1))","v":""},{"$f":"IF($A452=\"N/A\",Ref!$B$36,INDEX(Ranks!$1:$1048576,$A452,CX$1))","v":""},{"$f":"IF($A452=\"N/A\",Ref!$B$36,INDEX(Ranks!$1:$1048576,$A452,CY$1))","v":""},{"$f":"IF($A452=\"N/A\",Ref!$B$36,INDEX(Ranks!$1:$1048576,$A452,CZ$1))","v":""},{"$f":"IF($A452=\"N/A\",Ref!$B$36,INDEX(Ranks!$1:$1048576,$A452,DA$1))","v":""},{"$f":"IF($A452=\"N/A\",Ref!$B$36,INDEX(Ranks!$1:$1048576,$A452,DB$1))","v":""},{"$f":"IF($A452=\"N/A\",Ref!$B$36,INDEX(Ranks!$1:$1048576,$A452,DC$1))","v":""},{"$f":"IF($A452=\"N/A\",Ref!$B$36,INDEX(Ranks!$1:$1048576,$A452,DD$1))","v":""},{"$f":"IF($A452=\"N/A\",Ref!$B$36,INDEX(Ranks!$1:$1048576,$A452,DE$1))","v":""},{"$f":"IF($A452=\"N/A\",Ref!$B$36,INDEX(Ranks!$1:$1048576,$A452,DF$1))","v":""},{"$f":"IF($A452=\"N/A\",Ref!$B$36,INDEX(Ranks!$1:$1048576,$A452,DG$1))","v":""},{"$f":"IF($A452=\"N/A\",Ref!$B$36,INDEX(Ranks!$1:$1048576,$A452,DH$1))","v":""},{"$f":"IF($A452=\"N/A\",Ref!$B$36,INDEX(Ranks!$1:$1048576,$A452,DI$1))","v":""},{"$f":"IF($A452=\"N/A\",Ref!$B$36,INDEX(Ranks!$1:$1048576,$A452,DJ$1))","v":""},{"$f":"IF($A452=\"N/A\",Ref!$B$36,INDEX(Ranks!$1:$1048576,$A452,DK$1))","v":""},{"$f":"IF($A452=\"N/A\",Ref!$B$36,INDEX(Ranks!$1:$1048576,$A452,DL$1))","v":""},{"$f":"IF($A452=\"N/A\",Ref!$B$36,INDEX(Ranks!$1:$1048576,$A452,DM$1))","v":""},{"$f":"IF($A452=\"N/A\",Ref!$B$36,INDEX(Ranks!$1:$1048576,$A452,DN$1))","v":""},{"$f":"IF($A452=\"N/A\",Ref!$B$36,INDEX(Ranks!$1:$1048576,$A452,DO$1))","v":""},{"$f":"IF($A452=\"N/A\",Ref!$B$36,INDEX(Ranks!$1:$1048576,$A452,DP$1))","v":""},{"$f":"IF($A452=\"N/A\",Ref!$B$36,INDEX(Ranks!$1:$1048576,$A452,DQ$1))","v":""},{"$f":"IF($A452=\"N/A\",Ref!$B$36,INDEX(Ranks!$1:$1048576,$A452,DR$1))","v":""},{"$f":"IF($A452=\"N/A\",Ref!$B$36,INDEX(Ranks!$1:$1048576,$A452,DS$1))","v":""},{"$f":"IF($A452=\"N/A\",Ref!$B$36,INDEX(Ranks!$1:$1048576,$A452,DT$1))","v":""},{"$f":"IF($A452=\"N/A\",Ref!$B$36,INDEX(Ranks!$1:$1048576,$A452,DU$1))","v":""},{"$f":"IF($A452=\"N/A\",Ref!$B$36,INDEX(Ranks!$1:$1048576,$A452,DV$1))","v":""},{"$f":"IF($A452=\"N/A\",Ref!$B$36,INDEX(Ranks!$1:$1048576,$A452,DW$1))","v":""},{"$f":"IF($A452=\"N/A\",Ref!$B$36,INDEX(Ranks!$1:$1048576,$A452,DX$1))","v":""},{"$f":"IF($A452=\"N/A\",Ref!$B$36,INDEX(Ranks!$1:$1048576,$A452,DY$1))","v":""},{"$f":"IF($A452=\"N/A\",Ref!$B$36,INDEX(Ranks!$1:$1048576,$A452,DZ$1))","v":""},{"$f":"IF($A452=\"N/A\",Ref!$B$36,INDEX(Ranks!$1:$1048576,$A452,EA$1))","v":""},{"$f":"IF($A452=\"N/A\",Ref!$B$36,INDEX(Ranks!$1:$1048576,$A452,EB$1))","v":""}]
[{"$f":"IFERROR(MATCH('Portfolio Page'!L453,Ranks!L:L,0),\"N/A\")","v":"N/A"},null,{"$f":"IF($A453=\"N/A\",\"\",INDEX(Ranks!$1:$1048576,$A453,C$1))","v":""},{"$f":"IF($A453=\"N/A\",Ref!$B$36,INDEX(Ranks!$1:$1048576,$A453,D$1))","v":""},{"$f":"IF($A453=\"N/A\",Ref!$B$36,INDEX(Ranks!$1:$1048576,$A453,E$1))","v":""},{"$f":"IF($A453=\"N/A\",\"\",INDEX(Ranks!$1:$1048576,$A453,F$1))","v":""},{"$f":"IF($A453=\"N/A\",\"\",INDEX(Ranks!$1:$1048576,$A453,G$1))","v":""},{"$f":"IF($A453=\"N/A\",\"\",INDEX(Ranks!$1:$1048576,$A453,H$1))","v":""},{"$f":"IF($A453=\"N/A\",\"\",INDEX(Ranks!$1:$1048576,$A453,I$1))","v":""},{"$f":"IF($A453=\"N/A\",\"\",INDEX(Ranks!$1:$1048576,$A453,J$1))","v":""},{"$f":"IF($A453=\"N/A\",\"\",INDEX(Ranks!$1:$1048576,$A453,K$1))","v":""},null,{"$f":"IF($A453=\"N/A\",Ref!$B$36,INDEX(Ranks!$1:$1048576,$A453,M$1))","v":""},{"$f":"IF($A453=\"N/A\",Ref!$B$36,INDEX(Ranks!$1:$1048576,$A453,N$1))","v":""},{"$f":"IF($A453=\"N/A\",Ref!$B$36,INDEX(Ranks!$1:$1048576,$A453,O$1))","v":""},{"$f":"IF($A453=\"N/A\",Ref!$B$36,INDEX(Ranks!$1:$1048576,$A453,P$1))","v":""},{"$f":"IF($A453=\"N/A\",Ref!$B$36,INDEX(Ranks!$1:$1048576,$A453,Q$1))","v":""},{"$f":"IF($A453=\"N/A\",Ref!$B$36,INDEX(Ranks!$1:$1048576,$A453,R$1))","v":""},{"$f":"IF($A453=\"N/A\",Ref!$B$36,INDEX(Ranks!$1:$1048576,$A453,S$1))","v":""},{"$f":"IF($A453=\"N/A\",Ref!$B$36,INDEX(Ranks!$1:$1048576,$A453,T$1))","v":""},{"$f":"IF($A453=\"N/A\",Ref!$B$36,INDEX(Ranks!$1:$1048576,$A453,U$1))","v":""},{"$f":"IF($A453=\"N/A\",Ref!$B$36,INDEX(Ranks!$1:$1048576,$A453,V$1))","v":""},{"$f":"IF($A453=\"N/A\",Ref!$B$36,INDEX(Ranks!$1:$1048576,$A453,W$1))","v":""},{"$f":"IF($A453=\"N/A\",Ref!$B$36,INDEX(Ranks!$1:$1048576,$A453,X$1))","v":""},{"$f":"IF($A453=\"N/A\",Ref!$B$36,INDEX(Ranks!$1:$1048576,$A453,Y$1))","v":""},{"$f":"IF($A453=\"N/A\",Ref!$B$36,INDEX(Ranks!$1:$1048576,$A453,Z$1))","v":""},{"$f":"IF($A453=\"N/A\",Ref!$B$36,INDEX(Ranks!$1:$1048576,$A453,AA$1))","v":""},{"$f":"IF($A453=\"N/A\",Ref!$B$36,INDEX(Ranks!$1:$1048576,$A453,AB$1))","v":""},{"$f":"IF($A453=\"N/A\",Ref!$B$36,INDEX(Ranks!$1:$1048576,$A453,AC$1))","v":""},{"$f":"IF($A453=\"N/A\",Ref!$B$36,INDEX(Ranks!$1:$1048576,$A453,AD$1))","v":""},{"$f":"IF($A453=\"N/A\",Ref!$B$36,INDEX(Ranks!$1:$1048576,$A453,AE$1))","v":""},{"$f":"IF($A453=\"N/A\",Ref!$B$36,INDEX(Ranks!$1:$1048576,$A453,AF$1))","v":""},{"$f":"IF($A453=\"N/A\",Ref!$B$36,INDEX(Ranks!$1:$1048576,$A453,AG$1))","v":""},{"$f":"IF($A453=\"N/A\",Ref!$B$36,INDEX(Ranks!$1:$1048576,$A453,AH$1))","v":""},{"$f":"IF($A453=\"N/A\",Ref!$B$36,INDEX(Ranks!$1:$1048576,$A453,AI$1))","v":""},{"$f":"IF($A453=\"N/A\",Ref!$B$36,INDEX(Ranks!$1:$1048576,$A453,AJ$1))","v":""},{"$f":"IF($A453=\"N/A\",Ref!$B$36,INDEX(Ranks!$1:$1048576,$A453,AK$1))","v":""},{"$f":"IF($A453=\"N/A\",Ref!$B$36,INDEX(Ranks!$1:$1048576,$A453,AL$1))","v":""},{"$f":"IF($A453=\"N/A\",Ref!$B$36,INDEX(Ranks!$1:$1048576,$A453,AM$1))","v":""},{"$f":"IF($A453=\"N/A\",Ref!$B$36,INDEX(Ranks!$1:$1048576,$A453,AN$1))","v":""},{"$f":"IF($A453=\"N/A\",Ref!$B$36,INDEX(Ranks!$1:$1048576,$A453,AO$1))","v":""},{"$f":"IF($A453=\"N/A\",Ref!$B$36,INDEX(Ranks!$1:$1048576,$A453,AP$1))","v":""},{"$f":"IF($A453=\"N/A\",Ref!$B$36,INDEX(Ranks!$1:$1048576,$A453,AQ$1))","v":""},{"$f":"IF($A453=\"N/A\",Ref!$B$36,INDEX(Ranks!$1:$1048576,$A453,AR$1))","v":""},{"$f":"IF($A453=\"N/A\",Ref!$B$36,INDEX(Ranks!$1:$1048576,$A453,AS$1))","v":""},{"$f":"IF($A453=\"N/A\",Ref!$B$36,INDEX(Ranks!$1:$1048576,$A453,AT$1))","v":""},{"$f":"IF($A453=\"N/A\",Ref!$B$36,INDEX(Ranks!$1:$1048576,$A453,AU$1))","v":""},{"$f":"IF($A453=\"N/A\",Ref!$B$36,INDEX(Ranks!$1:$1048576,$A453,AV$1))","v":""},{"$f":"IF($A453=\"N/A\",Ref!$B$36,INDEX(Ranks!$1:$1048576,$A453,AW$1))","v":""},{"$f":"IF($A453=\"N/A\",Ref!$B$36,INDEX(Ranks!$1:$1048576,$A453,AX$1))","v":""},{"$f":"IF($A453=\"N/A\",Ref!$B$36,INDEX(Ranks!$1:$1048576,$A453,AY$1))","v":""},{"$f":"IF($A453=\"N/A\",Ref!$B$36,INDEX(Ranks!$1:$1048576,$A453,AZ$1))","v":""},{"$f":"IF($A453=\"N/A\",Ref!$B$36,INDEX(Ranks!$1:$1048576,$A453,BA$1))","v":""},{"$f":"IF($A453=\"N/A\",Ref!$B$36,INDEX(Ranks!$1:$1048576,$A453,BB$1))","v":""},{"$f":"IF($A453=\"N/A\",Ref!$B$36,INDEX(Ranks!$1:$1048576,$A453,BC$1))","v":""},{"$f":"IF($A453=\"N/A\",Ref!$B$36,INDEX(Ranks!$1:$1048576,$A453,BD$1))","v":""},{"$f":"IF($A453=\"N/A\",Ref!$B$36,INDEX(Ranks!$1:$1048576,$A453,BE$1))","v":""},{"$f":"IF($A453=\"N/A\",Ref!$B$36,INDEX(Ranks!$1:$1048576,$A453,BF$1))","v":""},{"$f":"IF($A453=\"N/A\",Ref!$B$36,INDEX(Ranks!$1:$1048576,$A453,BG$1))","v":""},{"$f":"IF($A453=\"N/A\",Ref!$B$36,INDEX(Ranks!$1:$1048576,$A453,BH$1))","v":""},{"$f":"IF($A453=\"N/A\",Ref!$B$36,INDEX(Ranks!$1:$1048576,$A453,BI$1))","v":""},{"$f":"IF($A453=\"N/A\",Ref!$B$36,INDEX(Ranks!$1:$1048576,$A453,BJ$1))","v":""},{"$f":"IF($A453=\"N/A\",Ref!$B$36,INDEX(Ranks!$1:$1048576,$A453,BK$1))","v":""},{"$f":"IF($A453=\"N/A\",Ref!$B$36,INDEX(Ranks!$1:$1048576,$A453,BL$1))","v":""},{"$f":"IF($A453=\"N/A\",Ref!$B$36,INDEX(Ranks!$1:$1048576,$A453,BM$1))","v":""},{"$f":"IF($A453=\"N/A\",Ref!$B$36,INDEX(Ranks!$1:$1048576,$A453,BN$1))","v":""},{"$f":"IF($A453=\"N/A\",Ref!$B$36,INDEX(Ranks!$1:$1048576,$A453,BO$1))","v":""},{"$f":"IF($A453=\"N/A\",Ref!$B$36,INDEX(Ranks!$1:$1048576,$A453,BP$1))","v":""},{"$f":"IF($A453=\"N/A\",Ref!$B$36,INDEX(Ranks!$1:$1048576,$A453,BQ$1))","v":""},{"$f":"IF($A453=\"N/A\",Ref!$B$36,INDEX(Ranks!$1:$1048576,$A453,BR$1))","v":""},{"$f":"IF($A453=\"N/A\",Ref!$B$36,INDEX(Ranks!$1:$1048576,$A453,BS$1))","v":""},{"$f":"IF($A453=\"N/A\",Ref!$B$36,INDEX(Ranks!$1:$1048576,$A453,BT$1))","v":""},{"$f":"IF($A453=\"N/A\",Ref!$B$36,INDEX(Ranks!$1:$1048576,$A453,BU$1))","v":""},{"$f":"IF($A453=\"N/A\",Ref!$B$36,INDEX(Ranks!$1:$1048576,$A453,BV$1))","v":""},{"$f":"IF($A453=\"N/A\",Ref!$B$36,INDEX(Ranks!$1:$1048576,$A453,BW$1))","v":""},{"$f":"IF($A453=\"N/A\",Ref!$B$36,INDEX(Ranks!$1:$1048576,$A453,BX$1))","v":""},{"$f":"IF($A453=\"N/A\",Ref!$B$36,INDEX(Ranks!$1:$1048576,$A453,BY$1))","v":""},{"$f":"IF($A453=\"N/A\",Ref!$B$36,INDEX(Ranks!$1:$1048576,$A453,BZ$1))","v":""},{"$f":"IF($A453=\"N/A\",Ref!$B$36,INDEX(Ranks!$1:$1048576,$A453,CA$1))","v":""},{"$f":"IF($A453=\"N/A\",Ref!$B$36,INDEX(Ranks!$1:$1048576,$A453,CB$1))","v":""},{"$f":"IF($A453=\"N/A\",Ref!$B$36,INDEX(Ranks!$1:$1048576,$A453,CC$1))","v":""},{"$f":"IF($A453=\"N/A\",Ref!$B$36,INDEX(Ranks!$1:$1048576,$A453,CD$1))","v":""},{"$f":"IF($A453=\"N/A\",Ref!$B$36,INDEX(Ranks!$1:$1048576,$A453,CE$1))","v":""},{"$f":"IF($A453=\"N/A\",Ref!$B$36,INDEX(Ranks!$1:$1048576,$A453,CF$1))","v":""},{"$f":"IF($A453=\"N/A\",Ref!$B$36,INDEX(Ranks!$1:$1048576,$A453,CG$1))","v":""},{"$f":"IF($A453=\"N/A\",Ref!$B$36,INDEX(Ranks!$1:$1048576,$A453,CH$1))","v":""},{"$f":"IF($A453=\"N/A\",Ref!$B$36,INDEX(Ranks!$1:$1048576,$A453,CI$1))","v":""},{"$f":"IF($A453=\"N/A\",Ref!$B$36,INDEX(Ranks!$1:$1048576,$A453,CJ$1))","v":""},{"$f":"IF($A453=\"N/A\",Ref!$B$36,INDEX(Ranks!$1:$1048576,$A453,CK$1))","v":""},{"$f":"IF($A453=\"N/A\",Ref!$B$36,INDEX(Ranks!$1:$1048576,$A453,CL$1))","v":""},{"$f":"IF($A453=\"N/A\",Ref!$B$36,INDEX(Ranks!$1:$1048576,$A453,CM$1))","v":""},{"$f":"IF($A453=\"N/A\",Ref!$B$36,INDEX(Ranks!$1:$1048576,$A453,CN$1))","v":""},{"$f":"IF($A453=\"N/A\",Ref!$B$36,INDEX(Ranks!$1:$1048576,$A453,CO$1))","v":""},{"$f":"IF($A453=\"N/A\",Ref!$B$36,INDEX(Ranks!$1:$1048576,$A453,CP$1))","v":""},{"$f":"IF($A453=\"N/A\",Ref!$B$36,INDEX(Ranks!$1:$1048576,$A453,CQ$1))","v":""},{"$f":"IF($A453=\"N/A\",Ref!$B$36,INDEX(Ranks!$1:$1048576,$A453,CR$1))","v":""},{"$f":"IF($A453=\"N/A\",Ref!$B$36,INDEX(Ranks!$1:$1048576,$A453,CS$1))","v":""},{"$f":"IF($A453=\"N/A\",Ref!$B$36,INDEX(Ranks!$1:$1048576,$A453,CT$1))","v":""},{"$f":"IF($A453=\"N/A\",Ref!$B$36,INDEX(Ranks!$1:$1048576,$A453,CU$1))","v":""},{"$f":"IF($A453=\"N/A\",Ref!$B$36,INDEX(Ranks!$1:$1048576,$A453,CV$1))","v":""},{"$f":"IF($A453=\"N/A\",Ref!$B$36,INDEX(Ranks!$1:$1048576,$A453,CW$1))","v":""},{"$f":"IF($A453=\"N/A\",Ref!$B$36,INDEX(Ranks!$1:$1048576,$A453,CX$1))","v":""},{"$f":"IF($A453=\"N/A\",Ref!$B$36,INDEX(Ranks!$1:$1048576,$A453,CY$1))","v":""},{"$f":"IF($A453=\"N/A\",Ref!$B$36,INDEX(Ranks!$1:$1048576,$A453,CZ$1))","v":""},{"$f":"IF($A453=\"N/A\",Ref!$B$36,INDEX(Ranks!$1:$1048576,$A453,DA$1))","v":""},{"$f":"IF($A453=\"N/A\",Ref!$B$36,INDEX(Ranks!$1:$1048576,$A453,DB$1))","v":""},{"$f":"IF($A453=\"N/A\",Ref!$B$36,INDEX(Ranks!$1:$1048576,$A453,DC$1))","v":""},{"$f":"IF($A453=\"N/A\",Ref!$B$36,INDEX(Ranks!$1:$1048576,$A453,DD$1))","v":""},{"$f":"IF($A453=\"N/A\",Ref!$B$36,INDEX(Ranks!$1:$1048576,$A453,DE$1))","v":""},{"$f":"IF($A453=\"N/A\",Ref!$B$36,INDEX(Ranks!$1:$1048576,$A453,DF$1))","v":""},{"$f":"IF($A453=\"N/A\",Ref!$B$36,INDEX(Ranks!$1:$1048576,$A453,DG$1))","v":""},{"$f":"IF($A453=\"N/A\",Ref!$B$36,INDEX(Ranks!$1:$1048576,$A453,DH$1))","v":""},{"$f":"IF($A453=\"N/A\",Ref!$B$36,INDEX(Ranks!$1:$1048576,$A453,DI$1))","v":""},{"$f":"IF($A453=\"N/A\",Ref!$B$36,INDEX(Ranks!$1:$1048576,$A453,DJ$1))","v":""},{"$f":"IF($A453=\"N/A\",Ref!$B$36,INDEX(Ranks!$1:$1048576,$A453,DK$1))","v":""},{"$f":"IF($A453=\"N/A\",Ref!$B$36,INDEX(Ranks!$1:$1048576,$A453,DL$1))","v":""},{"$f":"IF($A453=\"N/A\",Ref!$B$36,INDEX(Ranks!$1:$1048576,$A453,DM$1))","v":""},{"$f":"IF($A453=\"N/A\",Ref!$B$36,INDEX(Ranks!$1:$1048576,$A453,DN$1))","v":""},{"$f":"IF($A453=\"N/A\",Ref!$B$36,INDEX(Ranks!$1:$1048576,$A453,DO$1))","v":""},{"$f":"IF($A453=\"N/A\",Ref!$B$36,INDEX(Ranks!$1:$1048576,$A453,DP$1))","v":""},{"$f":"IF($A453=\"N/A\",Ref!$B$36,INDEX(Ranks!$1:$1048576,$A453,DQ$1))","v":""},{"$f":"IF($A453=\"N/A\",Ref!$B$36,INDEX(Ranks!$1:$1048576,$A453,DR$1))","v":""},{"$f":"IF($A453=\"N/A\",Ref!$B$36,INDEX(Ranks!$1:$1048576,$A453,DS$1))","v":""},{"$f":"IF($A453=\"N/A\",Ref!$B$36,INDEX(Ranks!$1:$1048576,$A453,DT$1))","v":""},{"$f":"IF($A453=\"N/A\",Ref!$B$36,INDEX(Ranks!$1:$1048576,$A453,DU$1))","v":""},{"$f":"IF($A453=\"N/A\",Ref!$B$36,INDEX(Ranks!$1:$1048576,$A453,DV$1))","v":""},{"$f":"IF($A453=\"N/A\",Ref!$B$36,INDEX(Ranks!$1:$1048576,$A453,DW$1))","v":""},{"$f":"IF($A453=\"N/A\",Ref!$B$36,INDEX(Ranks!$1:$1048576,$A453,DX$1))","v":""},{"$f":"IF($A453=\"N/A\",Ref!$B$36,INDEX(Ranks!$1:$1048576,$A453,DY$1))","v":""},{"$f":"IF($A453=\"N/A\",Ref!$B$36,INDEX(Ranks!$1:$1048576,$A453,DZ$1))","v":""},{"$f":"IF($A453=\"N/A\",Ref!$B$36,INDEX(Ranks!$1:$1048576,$A453,EA$1))","v":""},{"$f":"IF($A453=\"N/A\",Ref!$B$36,INDEX(Ranks!$1:$1048576,$A453,EB$1))","v":""}]
[{"$f":"IFERROR(MATCH('Portfolio Page'!L454,Ranks!L:L,0),\"N/A\")","v":"N/A"},null,{"$f":"IF($A454=\"N/A\",\"\",INDEX(Ranks!$1:$1048576,$A454,C$1))","v":""},{"$f":"IF($A454=\"N/A\",Ref!$B$36,INDEX(Ranks!$1:$1048576,$A454,D$1))","v":""},{"$f":"IF($A454=\"N/A\",Ref!$B$36,INDEX(Ranks!$1:$1048576,$A454,E$1))","v":""},{"$f":"IF($A454=\"N/A\",\"\",INDEX(Ranks!$1:$1048576,$A454,F$1))","v":""},{"$f":"IF($A454=\"N/A\",\"\",INDEX(Ranks!$1:$1048576,$A454,G$1))","v":""},{"$f":"IF($A454=\"N/A\",\"\",INDEX(Ranks!$1:$1048576,$A454,H$1))","v":""},{"$f":"IF($A454=\"N/A\",\"\",INDEX(Ranks!$1:$1048576,$A454,I$1))","v":""},{"$f":"IF($A454=\"N/A\",\"\",INDEX(Ranks!$1:$1048576,$A454,J$1))","v":""},{"$f":"IF($A454=\"N/A\",\"\",INDEX(Ranks!$1:$1048576,$A454,K$1))","v":""},null,{"$f":"IF($A454=\"N/A\",Ref!$B$36,INDEX(Ranks!$1:$1048576,$A454,M$1))","v":""},{"$f":"IF($A454=\"N/A\",Ref!$B$36,INDEX(Ranks!$1:$1048576,$A454,N$1))","v":""},{"$f":"IF($A454=\"N/A\",Ref!$B$36,INDEX(Ranks!$1:$1048576,$A454,O$1))","v":""},{"$f":"IF($A454=\"N/A\",Ref!$B$36,INDEX(Ranks!$1:$1048576,$A454,P$1))","v":""},{"$f":"IF($A454=\"N/A\",Ref!$B$36,INDEX(Ranks!$1:$1048576,$A454,Q$1))","v":""},{"$f":"IF($A454=\"N/A\",Ref!$B$36,INDEX(Ranks!$1:$1048576,$A454,R$1))","v":""},{"$f":"IF($A454=\"N/A\",Ref!$B$36,INDEX(Ranks!$1:$1048576,$A454,S$1))","v":""},{"$f":"IF($A454=\"N/A\",Ref!$B$36,INDEX(Ranks!$1:$1048576,$A454,T$1))","v":""},{"$f":"IF($A454=\"N/A\",Ref!$B$36,INDEX(Ranks!$1:$1048576,$A454,U$1))","v":""},{"$f":"IF($A454=\"N/A\",Ref!$B$36,INDEX(Ranks!$1:$1048576,$A454,V$1))","v":""},{"$f":"IF($A454=\"N/A\",Ref!$B$36,INDEX(Ranks!$1:$1048576,$A454,W$1))","v":""},{"$f":"IF($A454=\"N/A\",Ref!$B$36,INDEX(Ranks!$1:$1048576,$A454,X$1))","v":""},{"$f":"IF($A454=\"N/A\",Ref!$B$36,INDEX(Ranks!$1:$1048576,$A454,Y$1))","v":""},{"$f":"IF($A454=\"N/A\",Ref!$B$36,INDEX(Ranks!$1:$1048576,$A454,Z$1))","v":""},{"$f":"IF($A454=\"N/A\",Ref!$B$36,INDEX(Ranks!$1:$1048576,$A454,AA$1))","v":""},{"$f":"IF($A454=\"N/A\",Ref!$B$36,INDEX(Ranks!$1:$1048576,$A454,AB$1))","v":""},{"$f":"IF($A454=\"N/A\",Ref!$B$36,INDEX(Ranks!$1:$1048576,$A454,AC$1))","v":""},{"$f":"IF($A454=\"N/A\",Ref!$B$36,INDEX(Ranks!$1:$1048576,$A454,AD$1))","v":""},{"$f":"IF($A454=\"N/A\",Ref!$B$36,INDEX(Ranks!$1:$1048576,$A454,AE$1))","v":""},{"$f":"IF($A454=\"N/A\",Ref!$B$36,INDEX(Ranks!$1:$1048576,$A454,AF$1))","v":""},{"$f":"IF($A454=\"N/A\",Ref!$B$36,INDEX(Ranks!$1:$1048576,$A454,AG$1))","v":""},{"$f":"IF($A454=\"N/A\",Ref!$B$36,INDEX(Ranks!$1:$1048576,$A454,AH$1))","v":""},{"$f":"IF($A454=\"N/A\",Ref!$B$36,INDEX(Ranks!$1:$1048576,$A454,AI$1))","v":""},{"$f":"IF($A454=\"N/A\",Ref!$B$36,INDEX(Ranks!$1:$1048576,$A454,AJ$1))","v":""},{"$f":"IF($A454=\"N/A\",Ref!$B$36,INDEX(Ranks!$1:$1048576,$A454,AK$1))","v":""},{"$f":"IF($A454=\"N/A\",Ref!$B$36,INDEX(Ranks!$1:$1048576,$A454,AL$1))","v":""},{"$f":"IF($A454=\"N/A\",Ref!$B$36,INDEX(Ranks!$1:$1048576,$A454,AM$1))","v":""},{"$f":"IF($A454=\"N/A\",Ref!$B$36,INDEX(Ranks!$1:$1048576,$A454,AN$1))","v":""},{"$f":"IF($A454=\"N/A\",Ref!$B$36,INDEX(Ranks!$1:$1048576,$A454,AO$1))","v":""},{"$f":"IF($A454=\"N/A\",Ref!$B$36,INDEX(Ranks!$1:$1048576,$A454,AP$1))","v":""},{"$f":"IF($A454=\"N/A\",Ref!$B$36,INDEX(Ranks!$1:$1048576,$A454,AQ$1))","v":""},{"$f":"IF($A454=\"N/A\",Ref!$B$36,INDEX(Ranks!$1:$1048576,$A454,AR$1))","v":""},{"$f":"IF($A454=\"N/A\",Ref!$B$36,INDEX(Ranks!$1:$1048576,$A454,AS$1))","v":""},{"$f":"IF($A454=\"N/A\",Ref!$B$36,INDEX(Ranks!$1:$1048576,$A454,AT$1))","v":""},{"$f":"IF($A454=\"N/A\",Ref!$B$36,INDEX(Ranks!$1:$1048576,$A454,AU$1))","v":""},{"$f":"IF($A454=\"N/A\",Ref!$B$36,INDEX(Ranks!$1:$1048576,$A454,AV$1))","v":""},{"$f":"IF($A454=\"N/A\",Ref!$B$36,INDEX(Ranks!$1:$1048576,$A454,AW$1))","v":""},{"$f":"IF($A454=\"N/A\",Ref!$B$36,INDEX(Ranks!$1:$1048576,$A454,AX$1))","v":""},{"$f":"IF($A454=\"N/A\",Ref!$B$36,INDEX(Ranks!$1:$1048576,$A454,AY$1))","v":""},{"$f":"IF($A454=\"N/A\",Ref!$B$36,INDEX(Ranks!$1:$1048576,$A454,AZ$1))","v":""},{"$f":"IF($A454=\"N/A\",Ref!$B$36,INDEX(Ranks!$1:$1048576,$A454,BA$1))","v":""},{"$f":"IF($A454=\"N/A\",Ref!$B$36,INDEX(Ranks!$1:$1048576,$A454,BB$1))","v":""},{"$f":"IF($A454=\"N/A\",Ref!$B$36,INDEX(Ranks!$1:$1048576,$A454,BC$1))","v":""},{"$f":"IF($A454=\"N/A\",Ref!$B$36,INDEX(Ranks!$1:$1048576,$A454,BD$1))","v":""},{"$f":"IF($A454=\"N/A\",Ref!$B$36,INDEX(Ranks!$1:$1048576,$A454,BE$1))","v":""},{"$f":"IF($A454=\"N/A\",Ref!$B$36,INDEX(Ranks!$1:$1048576,$A454,BF$1))","v":""},{"$f":"IF($A454=\"N/A\",Ref!$B$36,INDEX(Ranks!$1:$1048576,$A454,BG$1))","v":""},{"$f":"IF($A454=\"N/A\",Ref!$B$36,INDEX(Ranks!$1:$1048576,$A454,BH$1))","v":""},{"$f":"IF($A454=\"N/A\",Ref!$B$36,INDEX(Ranks!$1:$1048576,$A454,BI$1))","v":""},{"$f":"IF($A454=\"N/A\",Ref!$B$36,INDEX(Ranks!$1:$1048576,$A454,BJ$1))","v":""},{"$f":"IF($A454=\"N/A\",Ref!$B$36,INDEX(Ranks!$1:$1048576,$A454,BK$1))","v":""},{"$f":"IF($A454=\"N/A\",Ref!$B$36,INDEX(Ranks!$1:$1048576,$A454,BL$1))","v":""},{"$f":"IF($A454=\"N/A\",Ref!$B$36,INDEX(Ranks!$1:$1048576,$A454,BM$1))","v":""},{"$f":"IF($A454=\"N/A\",Ref!$B$36,INDEX(Ranks!$1:$1048576,$A454,BN$1))","v":""},{"$f":"IF($A454=\"N/A\",Ref!$B$36,INDEX(Ranks!$1:$1048576,$A454,BO$1))","v":""},{"$f":"IF($A454=\"N/A\",Ref!$B$36,INDEX(Ranks!$1:$1048576,$A454,BP$1))","v":""},{"$f":"IF($A454=\"N/A\",Ref!$B$36,INDEX(Ranks!$1:$1048576,$A454,BQ$1))","v":""},{"$f":"IF($A454=\"N/A\",Ref!$B$36,INDEX(Ranks!$1:$1048576,$A454,BR$1))","v":""},{"$f":"IF($A454=\"N/A\",Ref!$B$36,INDEX(Ranks!$1:$1048576,$A454,BS$1))","v":""},{"$f":"IF($A454=\"N/A\",Ref!$B$36,INDEX(Ranks!$1:$1048576,$A454,BT$1))","v":""},{"$f":"IF($A454=\"N/A\",Ref!$B$36,INDEX(Ranks!$1:$1048576,$A454,BU$1))","v":""},{"$f":"IF($A454=\"N/A\",Ref!$B$36,INDEX(Ranks!$1:$1048576,$A454,BV$1))","v":""},{"$f":"IF($A454=\"N/A\",Ref!$B$36,INDEX(Ranks!$1:$1048576,$A454,BW$1))","v":""},{"$f":"IF($A454=\"N/A\",Ref!$B$36,INDEX(Ranks!$1:$1048576,$A454,BX$1))","v":""},{"$f":"IF($A454=\"N/A\",Ref!$B$36,INDEX(Ranks!$1:$1048576,$A454,BY$1))","v":""},{"$f":"IF($A454=\"N/A\",Ref!$B$36,INDEX(Ranks!$1:$1048576,$A454,BZ$1))","v":""},{"$f":"IF($A454=\"N/A\",Ref!$B$36,INDEX(Ranks!$1:$1048576,$A454,CA$1))","v":""},{"$f":"IF($A454=\"N/A\",Ref!$B$36,INDEX(Ranks!$1:$1048576,$A454,CB$1))","v":""},{"$f":"IF($A454=\"N/A\",Ref!$B$36,INDEX(Ranks!$1:$1048576,$A454,CC$1))","v":""},{"$f":"IF($A454=\"N/A\",Ref!$B$36,INDEX(Ranks!$1:$1048576,$A454,CD$1))","v":""},{"$f":"IF($A454=\"N/A\",Ref!$B$36,INDEX(Ranks!$1:$1048576,$A454,CE$1))","v":""},{"$f":"IF($A454=\"N/A\",Ref!$B$36,INDEX(Ranks!$1:$1048576,$A454,CF$1))","v":""},{"$f":"IF($A454=\"N/A\",Ref!$B$36,INDEX(Ranks!$1:$1048576,$A454,CG$1))","v":""},{"$f":"IF($A454=\"N/A\",Ref!$B$36,INDEX(Ranks!$1:$1048576,$A454,CH$1))","v":""},{"$f":"IF($A454=\"N/A\",Ref!$B$36,INDEX(Ranks!$1:$1048576,$A454,CI$1))","v":""},{"$f":"IF($A454=\"N/A\",Ref!$B$36,INDEX(Ranks!$1:$1048576,$A454,CJ$1))","v":""},{"$f":"IF($A454=\"N/A\",Ref!$B$36,INDEX(Ranks!$1:$1048576,$A454,CK$1))","v":""},{"$f":"IF($A454=\"N/A\",Ref!$B$36,INDEX(Ranks!$1:$1048576,$A454,CL$1))","v":""},{"$f":"IF($A454=\"N/A\",Ref!$B$36,INDEX(Ranks!$1:$1048576,$A454,CM$1))","v":""},{"$f":"IF($A454=\"N/A\",Ref!$B$36,INDEX(Ranks!$1:$1048576,$A454,CN$1))","v":""},{"$f":"IF($A454=\"N/A\",Ref!$B$36,INDEX(Ranks!$1:$1048576,$A454,CO$1))","v":""},{"$f":"IF($A454=\"N/A\",Ref!$B$36,INDEX(Ranks!$1:$1048576,$A454,CP$1))","v":""},{"$f":"IF($A454=\"N/A\",Ref!$B$36,INDEX(Ranks!$1:$1048576,$A454,CQ$1))","v":""},{"$f":"IF($A454=\"N/A\",Ref!$B$36,INDEX(Ranks!$1:$1048576,$A454,CR$1))","v":""},{"$f":"IF($A454=\"N/A\",Ref!$B$36,INDEX(Ranks!$1:$1048576,$A454,CS$1))","v":""},{"$f":"IF($A454=\"N/A\",Ref!$B$36,INDEX(Ranks!$1:$1048576,$A454,CT$1))","v":""},{"$f":"IF($A454=\"N/A\",Ref!$B$36,INDEX(Ranks!$1:$1048576,$A454,CU$1))","v":""},{"$f":"IF($A454=\"N/A\",Ref!$B$36,INDEX(Ranks!$1:$1048576,$A454,CV$1))","v":""},{"$f":"IF($A454=\"N/A\",Ref!$B$36,INDEX(Ranks!$1:$1048576,$A454,CW$1))","v":""},{"$f":"IF($A454=\"N/A\",Ref!$B$36,INDEX(Ranks!$1:$1048576,$A454,CX$1))","v":""},{"$f":"IF($A454=\"N/A\",Ref!$B$36,INDEX(Ranks!$1:$1048576,$A454,CY$1))","v":""},{"$f":"IF($A454=\"N/A\",Ref!$B$36,INDEX(Ranks!$1:$1048576,$A454,CZ$1))","v":""},{"$f":"IF($A454=\"N/A\",Ref!$B$36,INDEX(Ranks!$1:$1048576,$A454,DA$1))","v":""},{"$f":"IF($A454=\"N/A\",Ref!$B$36,INDEX(Ranks!$1:$1048576,$A454,DB$1))","v":""},{"$f":"IF($A454=\"N/A\",Ref!$B$36,INDEX(Ranks!$1:$1048576,$A454,DC$1))","v":""},{"$f":"IF($A454=\"N/A\",Ref!$B$36,INDEX(Ranks!$1:$1048576,$A454,DD$1))","v":""},{"$f":"IF($A454=\"N/A\",Ref!$B$36,INDEX(Ranks!$1:$1048576,$A454,DE$1))","v":""},{"$f":"IF($A454=\"N/A\",Ref!$B$36,INDEX(Ranks!$1:$1048576,$A454,DF$1))","v":""},{"$f":"IF($A454=\"N/A\",Ref!$B$36,INDEX(Ranks!$1:$1048576,$A454,DG$1))","v":""},{"$f":"IF($A454=\"N/A\",Ref!$B$36,INDEX(Ranks!$1:$1048576,$A454,DH$1))","v":""},{"$f":"IF($A454=\"N/A\",Ref!$B$36,INDEX(Ranks!$1:$1048576,$A454,DI$1))","v":""},{"$f":"IF($A454=\"N/A\",Ref!$B$36,INDEX(Ranks!$1:$1048576,$A454,DJ$1))","v":""},{"$f":"IF($A454=\"N/A\",Ref!$B$36,INDEX(Ranks!$1:$1048576,$A454,DK$1))","v":""},{"$f":"IF($A454=\"N/A\",Ref!$B$36,INDEX(Ranks!$1:$1048576,$A454,DL$1))","v":""},{"$f":"IF($A454=\"N/A\",Ref!$B$36,INDEX(Ranks!$1:$1048576,$A454,DM$1))","v":""},{"$f":"IF($A454=\"N/A\",Ref!$B$36,INDEX(Ranks!$1:$1048576,$A454,DN$1))","v":""},{"$f":"IF($A454=\"N/A\",Ref!$B$36,INDEX(Ranks!$1:$1048576,$A454,DO$1))","v":""},{"$f":"IF($A454=\"N/A\",Ref!$B$36,INDEX(Ranks!$1:$1048576,$A454,DP$1))","v":""},{"$f":"IF($A454=\"N/A\",Ref!$B$36,INDEX(Ranks!$1:$1048576,$A454,DQ$1))","v":""},{"$f":"IF($A454=\"N/A\",Ref!$B$36,INDEX(Ranks!$1:$1048576,$A454,DR$1))","v":""},{"$f":"IF($A454=\"N/A\",Ref!$B$36,INDEX(Ranks!$1:$1048576,$A454,DS$1))","v":""},{"$f":"IF($A454=\"N/A\",Ref!$B$36,INDEX(Ranks!$1:$1048576,$A454,DT$1))","v":""},{"$f":"IF($A454=\"N/A\",Ref!$B$36,INDEX(Ranks!$1:$1048576,$A454,DU$1))","v":""},{"$f":"IF($A454=\"N/A\",Ref!$B$36,INDEX(Ranks!$1:$1048576,$A454,DV$1))","v":""},{"$f":"IF($A454=\"N/A\",Ref!$B$36,INDEX(Ranks!$1:$1048576,$A454,DW$1))","v":""},{"$f":"IF($A454=\"N/A\",Ref!$B$36,INDEX(Ranks!$1:$1048576,$A454,DX$1))","v":""},{"$f":"IF($A454=\"N/A\",Ref!$B$36,INDEX(Ranks!$1:$1048576,$A454,DY$1))","v":""},{"$f":"IF($A454=\"N/A\",Ref!$B$36,INDEX(Ranks!$1:$1048576,$A454,DZ$1))","v":""},{"$f":"IF($A454=\"N/A\",Ref!$B$36,INDEX(Ranks!$1:$1048576,$A454,EA$1))","v":""},{"$f":"IF($A454=\"N/A\",Ref!$B$36,INDEX(Ranks!$1:$1048576,$A454,EB$1))","v":""}]
[{"$f":"IFERROR(MATCH('Portfolio Page'!L455,Ranks!L:L,0),\"N/A\")","v":"N/A"},null,{"$f":"IF($A455=\"N/A\",\"\",INDEX(Ranks!$1:$1048576,$A455,C$1))","v":""},{"$f":"IF($A455=\"N/A\",Ref!$B$36,INDEX(Ranks!$1:$1048576,$A455,D$1))","v":""},{"$f":"IF($A455=\"N/A\",Ref!$B$36,INDEX(Ranks!$1:$1048576,$A455,E$1))","v":""},{"$f":"IF($A455=\"N/A\",\"\",INDEX(Ranks!$1:$1048576,$A455,F$1))","v":""},{"$f":"IF($A455=\"N/A\",\"\",INDEX(Ranks!$1:$1048576,$A455,G$1))","v":""},{"$f":"IF($A455=\"N/A\",\"\",INDEX(Ranks!$1:$1048576,$A455,H$1))","v":""},{"$f":"IF($A455=\"N/A\",\"\",INDEX(Ranks!$1:$1048576,$A455,I$1))","v":""},{"$f":"IF($A455=\"N/A\",\"\",INDEX(Ranks!$1:$1048576,$A455,J$1))","v":""},{"$f":"IF($A455=\"N/A\",\"\",INDEX(Ranks!$1:$1048576,$A455,K$1))","v":""},null,{"$f":"IF($A455=\"N/A\",Ref!$B$36,INDEX(Ranks!$1:$1048576,$A455,M$1))","v":""},{"$f":"IF($A455=\"N/A\",Ref!$B$36,INDEX(Ranks!$1:$1048576,$A455,N$1))","v":""},{"$f":"IF($A455=\"N/A\",Ref!$B$36,INDEX(Ranks!$1:$1048576,$A455,O$1))","v":""},{"$f":"IF($A455=\"N/A\",Ref!$B$36,INDEX(Ranks!$1:$1048576,$A455,P$1))","v":""},{"$f":"IF($A455=\"N/A\",Ref!$B$36,INDEX(Ranks!$1:$1048576,$A455,Q$1))","v":""},{"$f":"IF($A455=\"N/A\",Ref!$B$36,INDEX(Ranks!$1:$1048576,$A455,R$1))","v":""},{"$f":"IF($A455=\"N/A\",Ref!$B$36,INDEX(Ranks!$1:$1048576,$A455,S$1))","v":""},{"$f":"IF($A455=\"N/A\",Ref!$B$36,INDEX(Ranks!$1:$1048576,$A455,T$1))","v":""},{"$f":"IF($A455=\"N/A\",Ref!$B$36,INDEX(Ranks!$1:$1048576,$A455,U$1))","v":""},{"$f":"IF($A455=\"N/A\",Ref!$B$36,INDEX(Ranks!$1:$1048576,$A455,V$1))","v":""},{"$f":"IF($A455=\"N/A\",Ref!$B$36,INDEX(Ranks!$1:$1048576,$A455,W$1))","v":""},{"$f":"IF($A455=\"N/A\",Ref!$B$36,INDEX(Ranks!$1:$1048576,$A455,X$1))","v":""},{"$f":"IF($A455=\"N/A\",Ref!$B$36,INDEX(Ranks!$1:$1048576,$A455,Y$1))","v":""},{"$f":"IF($A455=\"N/A\",Ref!$B$36,INDEX(Ranks!$1:$1048576,$A455,Z$1))","v":""},{"$f":"IF($A455=\"N/A\",Ref!$B$36,INDEX(Ranks!$1:$1048576,$A455,AA$1))","v":""},{"$f":"IF($A455=\"N/A\",Ref!$B$36,INDEX(Ranks!$1:$1048576,$A455,AB$1))","v":""},{"$f":"IF($A455=\"N/A\",Ref!$B$36,INDEX(Ranks!$1:$1048576,$A455,AC$1))","v":""},{"$f":"IF($A455=\"N/A\",Ref!$B$36,INDEX(Ranks!$1:$1048576,$A455,AD$1))","v":""},{"$f":"IF($A455=\"N/A\",Ref!$B$36,INDEX(Ranks!$1:$1048576,$A455,AE$1))","v":""},{"$f":"IF($A455=\"N/A\",Ref!$B$36,INDEX(Ranks!$1:$1048576,$A455,AF$1))","v":""},{"$f":"IF($A455=\"N/A\",Ref!$B$36,INDEX(Ranks!$1:$1048576,$A455,AG$1))","v":""},{"$f":"IF($A455=\"N/A\",Ref!$B$36,INDEX(Ranks!$1:$1048576,$A455,AH$1))","v":""},{"$f":"IF($A455=\"N/A\",Ref!$B$36,INDEX(Ranks!$1:$1048576,$A455,AI$1))","v":""},{"$f":"IF($A455=\"N/A\",Ref!$B$36,INDEX(Ranks!$1:$1048576,$A455,AJ$1))","v":""},{"$f":"IF($A455=\"N/A\",Ref!$B$36,INDEX(Ranks!$1:$1048576,$A455,AK$1))","v":""},{"$f":"IF($A455=\"N/A\",Ref!$B$36,INDEX(Ranks!$1:$1048576,$A455,AL$1))","v":""},{"$f":"IF($A455=\"N/A\",Ref!$B$36,INDEX(Ranks!$1:$1048576,$A455,AM$1))","v":""},{"$f":"IF($A455=\"N/A\",Ref!$B$36,INDEX(Ranks!$1:$1048576,$A455,AN$1))","v":""},{"$f":"IF($A455=\"N/A\",Ref!$B$36,INDEX(Ranks!$1:$1048576,$A455,AO$1))","v":""},{"$f":"IF($A455=\"N/A\",Ref!$B$36,INDEX(Ranks!$1:$1048576,$A455,AP$1))","v":""},{"$f":"IF($A455=\"N/A\",Ref!$B$36,INDEX(Ranks!$1:$1048576,$A455,AQ$1))","v":""},{"$f":"IF($A455=\"N/A\",Ref!$B$36,INDEX(Ranks!$1:$1048576,$A455,AR$1))","v":""},{"$f":"IF($A455=\"N/A\",Ref!$B$36,INDEX(Ranks!$1:$1048576,$A455,AS$1))","v":""},{"$f":"IF($A455=\"N/A\",Ref!$B$36,INDEX(Ranks!$1:$1048576,$A455,AT$1))","v":""},{"$f":"IF($A455=\"N/A\",Ref!$B$36,INDEX(Ranks!$1:$1048576,$A455,AU$1))","v":""},{"$f":"IF($A455=\"N/A\",Ref!$B$36,INDEX(Ranks!$1:$1048576,$A455,AV$1))","v":""},{"$f":"IF($A455=\"N/A\",Ref!$B$36,INDEX(Ranks!$1:$1048576,$A455,AW$1))","v":""},{"$f":"IF($A455=\"N/A\",Ref!$B$36,INDEX(Ranks!$1:$1048576,$A455,AX$1))","v":""},{"$f":"IF($A455=\"N/A\",Ref!$B$36,INDEX(Ranks!$1:$1048576,$A455,AY$1))","v":""},{"$f":"IF($A455=\"N/A\",Ref!$B$36,INDEX(Ranks!$1:$1048576,$A455,AZ$1))","v":""},{"$f":"IF($A455=\"N/A\",Ref!$B$36,INDEX(Ranks!$1:$1048576,$A455,BA$1))","v":""},{"$f":"IF($A455=\"N/A\",Ref!$B$36,INDEX(Ranks!$1:$1048576,$A455,BB$1))","v":""},{"$f":"IF($A455=\"N/A\",Ref!$B$36,INDEX(Ranks!$1:$1048576,$A455,BC$1))","v":""},{"$f":"IF($A455=\"N/A\",Ref!$B$36,INDEX(Ranks!$1:$1048576,$A455,BD$1))","v":""},{"$f":"IF($A455=\"N/A\",Ref!$B$36,INDEX(Ranks!$1:$1048576,$A455,BE$1))","v":""},{"$f":"IF($A455=\"N/A\",Ref!$B$36,INDEX(Ranks!$1:$1048576,$A455,BF$1))","v":""},{"$f":"IF($A455=\"N/A\",Ref!$B$36,INDEX(Ranks!$1:$1048576,$A455,BG$1))","v":""},{"$f":"IF($A455=\"N/A\",Ref!$B$36,INDEX(Ranks!$1:$1048576,$A455,BH$1))","v":""},{"$f":"IF($A455=\"N/A\",Ref!$B$36,INDEX(Ranks!$1:$1048576,$A455,BI$1))","v":""},{"$f":"IF($A455=\"N/A\",Ref!$B$36,INDEX(Ranks!$1:$1048576,$A455,BJ$1))","v":""},{"$f":"IF($A455=\"N/A\",Ref!$B$36,INDEX(Ranks!$1:$1048576,$A455,BK$1))","v":""},{"$f":"IF($A455=\"N/A\",Ref!$B$36,INDEX(Ranks!$1:$1048576,$A455,BL$1))","v":""},{"$f":"IF($A455=\"N/A\",Ref!$B$36,INDEX(Ranks!$1:$1048576,$A455,BM$1))","v":""},{"$f":"IF($A455=\"N/A\",Ref!$B$36,INDEX(Ranks!$1:$1048576,$A455,BN$1))","v":""},{"$f":"IF($A455=\"N/A\",Ref!$B$36,INDEX(Ranks!$1:$1048576,$A455,BO$1))","v":""},{"$f":"IF($A455=\"N/A\",Ref!$B$36,INDEX(Ranks!$1:$1048576,$A455,BP$1))","v":""},{"$f":"IF($A455=\"N/A\",Ref!$B$36,INDEX(Ranks!$1:$1048576,$A455,BQ$1))","v":""},{"$f":"IF($A455=\"N/A\",Ref!$B$36,INDEX(Ranks!$1:$1048576,$A455,BR$1))","v":""},{"$f":"IF($A455=\"N/A\",Ref!$B$36,INDEX(Ranks!$1:$1048576,$A455,BS$1))","v":""},{"$f":"IF($A455=\"N/A\",Ref!$B$36,INDEX(Ranks!$1:$1048576,$A455,BT$1))","v":""},{"$f":"IF($A455=\"N/A\",Ref!$B$36,INDEX(Ranks!$1:$1048576,$A455,BU$1))","v":""},{"$f":"IF($A455=\"N/A\",Ref!$B$36,INDEX(Ranks!$1:$1048576,$A455,BV$1))","v":""},{"$f":"IF($A455=\"N/A\",Ref!$B$36,INDEX(Ranks!$1:$1048576,$A455,BW$1))","v":""},{"$f":"IF($A455=\"N/A\",Ref!$B$36,INDEX(Ranks!$1:$1048576,$A455,BX$1))","v":""},{"$f":"IF($A455=\"N/A\",Ref!$B$36,INDEX(Ranks!$1:$1048576,$A455,BY$1))","v":""},{"$f":"IF($A455=\"N/A\",Ref!$B$36,INDEX(Ranks!$1:$1048576,$A455,BZ$1))","v":""},{"$f":"IF($A455=\"N/A\",Ref!$B$36,INDEX(Ranks!$1:$1048576,$A455,CA$1))","v":""},{"$f":"IF($A455=\"N/A\",Ref!$B$36,INDEX(Ranks!$1:$1048576,$A455,CB$1))","v":""},{"$f":"IF($A455=\"N/A\",Ref!$B$36,INDEX(Ranks!$1:$1048576,$A455,CC$1))","v":""},{"$f":"IF($A455=\"N/A\",Ref!$B$36,INDEX(Ranks!$1:$1048576,$A455,CD$1))","v":""},{"$f":"IF($A455=\"N/A\",Ref!$B$36,INDEX(Ranks!$1:$1048576,$A455,CE$1))","v":""},{"$f":"IF($A455=\"N/A\",Ref!$B$36,INDEX(Ranks!$1:$1048576,$A455,CF$1))","v":""},{"$f":"IF($A455=\"N/A\",Ref!$B$36,INDEX(Ranks!$1:$1048576,$A455,CG$1))","v":""},{"$f":"IF($A455=\"N/A\",Ref!$B$36,INDEX(Ranks!$1:$1048576,$A455,CH$1))","v":""},{"$f":"IF($A455=\"N/A\",Ref!$B$36,INDEX(Ranks!$1:$1048576,$A455,CI$1))","v":""},{"$f":"IF($A455=\"N/A\",Ref!$B$36,INDEX(Ranks!$1:$1048576,$A455,CJ$1))","v":""},{"$f":"IF($A455=\"N/A\",Ref!$B$36,INDEX(Ranks!$1:$1048576,$A455,CK$1))","v":""},{"$f":"IF($A455=\"N/A\",Ref!$B$36,INDEX(Ranks!$1:$1048576,$A455,CL$1))","v":""},{"$f":"IF($A455=\"N/A\",Ref!$B$36,INDEX(Ranks!$1:$1048576,$A455,CM$1))","v":""},{"$f":"IF($A455=\"N/A\",Ref!$B$36,INDEX(Ranks!$1:$1048576,$A455,CN$1))","v":""},{"$f":"IF($A455=\"N/A\",Ref!$B$36,INDEX(Ranks!$1:$1048576,$A455,CO$1))","v":""},{"$f":"IF($A455=\"N/A\",Ref!$B$36,INDEX(Ranks!$1:$1048576,$A455,CP$1))","v":""},{"$f":"IF($A455=\"N/A\",Ref!$B$36,INDEX(Ranks!$1:$1048576,$A455,CQ$1))","v":""},{"$f":"IF($A455=\"N/A\",Ref!$B$36,INDEX(Ranks!$1:$1048576,$A455,CR$1))","v":""},{"$f":"IF($A455=\"N/A\",Ref!$B$36,INDEX(Ranks!$1:$1048576,$A455,CS$1))","v":""},{"$f":"IF($A455=\"N/A\",Ref!$B$36,INDEX(Ranks!$1:$1048576,$A455,CT$1))","v":""},{"$f":"IF($A455=\"N/A\",Ref!$B$36,INDEX(Ranks!$1:$1048576,$A455,CU$1))","v":""},{"$f":"IF($A455=\"N/A\",Ref!$B$36,INDEX(Ranks!$1:$1048576,$A455,CV$1))","v":""},{"$f":"IF($A455=\"N/A\",Ref!$B$36,INDEX(Ranks!$1:$1048576,$A455,CW$1))","v":""},{"$f":"IF($A455=\"N/A\",Ref!$B$36,INDEX(Ranks!$1:$1048576,$A455,CX$1))","v":""},{"$f":"IF($A455=\"N/A\",Ref!$B$36,INDEX(Ranks!$1:$1048576,$A455,CY$1))","v":""},{"$f":"IF($A455=\"N/A\",Ref!$B$36,INDEX(Ranks!$1:$1048576,$A455,CZ$1))","v":""},{"$f":"IF($A455=\"N/A\",Ref!$B$36,INDEX(Ranks!$1:$1048576,$A455,DA$1))","v":""},{"$f":"IF($A455=\"N/A\",Ref!$B$36,INDEX(Ranks!$1:$1048576,$A455,DB$1))","v":""},{"$f":"IF($A455=\"N/A\",Ref!$B$36,INDEX(Ranks!$1:$1048576,$A455,DC$1))","v":""},{"$f":"IF($A455=\"N/A\",Ref!$B$36,INDEX(Ranks!$1:$1048576,$A455,DD$1))","v":""},{"$f":"IF($A455=\"N/A\",Ref!$B$36,INDEX(Ranks!$1:$1048576,$A455,DE$1))","v":""},{"$f":"IF($A455=\"N/A\",Ref!$B$36,INDEX(Ranks!$1:$1048576,$A455,DF$1))","v":""},{"$f":"IF($A455=\"N/A\",Ref!$B$36,INDEX(Ranks!$1:$1048576,$A455,DG$1))","v":""},{"$f":"IF($A455=\"N/A\",Ref!$B$36,INDEX(Ranks!$1:$1048576,$A455,DH$1))","v":""},{"$f":"IF($A455=\"N/A\",Ref!$B$36,INDEX(Ranks!$1:$1048576,$A455,DI$1))","v":""},{"$f":"IF($A455=\"N/A\",Ref!$B$36,INDEX(Ranks!$1:$1048576,$A455,DJ$1))","v":""},{"$f":"IF($A455=\"N/A\",Ref!$B$36,INDEX(Ranks!$1:$1048576,$A455,DK$1))","v":""},{"$f":"IF($A455=\"N/A\",Ref!$B$36,INDEX(Ranks!$1:$1048576,$A455,DL$1))","v":""},{"$f":"IF($A455=\"N/A\",Ref!$B$36,INDEX(Ranks!$1:$1048576,$A455,DM$1))","v":""},{"$f":"IF($A455=\"N/A\",Ref!$B$36,INDEX(Ranks!$1:$1048576,$A455,DN$1))","v":""},{"$f":"IF($A455=\"N/A\",Ref!$B$36,INDEX(Ranks!$1:$1048576,$A455,DO$1))","v":""},{"$f":"IF($A455=\"N/A\",Ref!$B$36,INDEX(Ranks!$1:$1048576,$A455,DP$1))","v":""},{"$f":"IF($A455=\"N/A\",Ref!$B$36,INDEX(Ranks!$1:$1048576,$A455,DQ$1))","v":""},{"$f":"IF($A455=\"N/A\",Ref!$B$36,INDEX(Ranks!$1:$1048576,$A455,DR$1))","v":""},{"$f":"IF($A455=\"N/A\",Ref!$B$36,INDEX(Ranks!$1:$1048576,$A455,DS$1))","v":""},{"$f":"IF($A455=\"N/A\",Ref!$B$36,INDEX(Ranks!$1:$1048576,$A455,DT$1))","v":""},{"$f":"IF($A455=\"N/A\",Ref!$B$36,INDEX(Ranks!$1:$1048576,$A455,DU$1))","v":""},{"$f":"IF($A455=\"N/A\",Ref!$B$36,INDEX(Ranks!$1:$1048576,$A455,DV$1))","v":""},{"$f":"IF($A455=\"N/A\",Ref!$B$36,INDEX(Ranks!$1:$1048576,$A455,DW$1))","v":""},{"$f":"IF($A455=\"N/A\",Ref!$B$36,INDEX(Ranks!$1:$1048576,$A455,DX$1))","v":""},{"$f":"IF($A455=\"N/A\",Ref!$B$36,INDEX(Ranks!$1:$1048576,$A455,DY$1))","v":""},{"$f":"IF($A455=\"N/A\",Ref!$B$36,INDEX(Ranks!$1:$1048576,$A455,DZ$1))","v":""},{"$f":"IF($A455=\"N/A\",Ref!$B$36,INDEX(Ranks!$1:$1048576,$A455,EA$1))","v":""},{"$f":"IF($A455=\"N/A\",Ref!$B$36,INDEX(Ranks!$1:$1048576,$A455,EB$1))","v":""}]
[{"$f":"IFERROR(MATCH('Portfolio Page'!L456,Ranks!L:L,0),\"N/A\")","v":"N/A"},null,{"$f":"IF($A456=\"N/A\",\"\",INDEX(Ranks!$1:$1048576,$A456,C$1))","v":""},{"$f":"IF($A456=\"N/A\",Ref!$B$36,INDEX(Ranks!$1:$1048576,$A456,D$1))","v":""},{"$f":"IF($A456=\"N/A\",Ref!$B$36,INDEX(Ranks!$1:$1048576,$A456,E$1))","v":""},{"$f":"IF($A456=\"N/A\",\"\",INDEX(Ranks!$1:$1048576,$A456,F$1))","v":""},{"$f":"IF($A456=\"N/A\",\"\",INDEX(Ranks!$1:$1048576,$A456,G$1))","v":""},{"$f":"IF($A456=\"N/A\",\"\",INDEX(Ranks!$1:$1048576,$A456,H$1))","v":""},{"$f":"IF($A456=\"N/A\",\"\",INDEX(Ranks!$1:$1048576,$A456,I$1))","v":""},{"$f":"IF($A456=\"N/A\",\"\",INDEX(Ranks!$1:$1048576,$A456,J$1))","v":""},{"$f":"IF($A456=\"N/A\",\"\",INDEX(Ranks!$1:$1048576,$A456,K$1))","v":""},null,{"$f":"IF($A456=\"N/A\",Ref!$B$36,INDEX(Ranks!$1:$1048576,$A456,M$1))","v":""},{"$f":"IF($A456=\"N/A\",Ref!$B$36,INDEX(Ranks!$1:$1048576,$A456,N$1))","v":""},{"$f":"IF($A456=\"N/A\",Ref!$B$36,INDEX(Ranks!$1:$1048576,$A456,O$1))","v":""},{"$f":"IF($A456=\"N/A\",Ref!$B$36,INDEX(Ranks!$1:$1048576,$A456,P$1))","v":""},{"$f":"IF($A456=\"N/A\",Ref!$B$36,INDEX(Ranks!$1:$1048576,$A456,Q$1))","v":""},{"$f":"IF($A456=\"N/A\",Ref!$B$36,INDEX(Ranks!$1:$1048576,$A456,R$1))","v":""},{"$f":"IF($A456=\"N/A\",Ref!$B$36,INDEX(Ranks!$1:$1048576,$A456,S$1))","v":""},{"$f":"IF($A456=\"N/A\",Ref!$B$36,INDEX(Ranks!$1:$1048576,$A456,T$1))","v":""},{"$f":"IF($A456=\"N/A\",Ref!$B$36,INDEX(Ranks!$1:$1048576,$A456,U$1))","v":""},{"$f":"IF($A456=\"N/A\",Ref!$B$36,INDEX(Ranks!$1:$1048576,$A456,V$1))","v":""},{"$f":"IF($A456=\"N/A\",Ref!$B$36,INDEX(Ranks!$1:$1048576,$A456,W$1))","v":""},{"$f":"IF($A456=\"N/A\",Ref!$B$36,INDEX(Ranks!$1:$1048576,$A456,X$1))","v":""},{"$f":"IF($A456=\"N/A\",Ref!$B$36,INDEX(Ranks!$1:$1048576,$A456,Y$1))","v":""},{"$f":"IF($A456=\"N/A\",Ref!$B$36,INDEX(Ranks!$1:$1048576,$A456,Z$1))","v":""},{"$f":"IF($A456=\"N/A\",Ref!$B$36,INDEX(Ranks!$1:$1048576,$A456,AA$1))","v":""},{"$f":"IF($A456=\"N/A\",Ref!$B$36,INDEX(Ranks!$1:$1048576,$A456,AB$1))","v":""},{"$f":"IF($A456=\"N/A\",Ref!$B$36,INDEX(Ranks!$1:$1048576,$A456,AC$1))","v":""},{"$f":"IF($A456=\"N/A\",Ref!$B$36,INDEX(Ranks!$1:$1048576,$A456,AD$1))","v":""},{"$f":"IF($A456=\"N/A\",Ref!$B$36,INDEX(Ranks!$1:$1048576,$A456,AE$1))","v":""},{"$f":"IF($A456=\"N/A\",Ref!$B$36,INDEX(Ranks!$1:$1048576,$A456,AF$1))","v":""},{"$f":"IF($A456=\"N/A\",Ref!$B$36,INDEX(Ranks!$1:$1048576,$A456,AG$1))","v":""},{"$f":"IF($A456=\"N/A\",Ref!$B$36,INDEX(Ranks!$1:$1048576,$A456,AH$1))","v":""},{"$f":"IF($A456=\"N/A\",Ref!$B$36,INDEX(Ranks!$1:$1048576,$A456,AI$1))","v":""},{"$f":"IF($A456=\"N/A\",Ref!$B$36,INDEX(Ranks!$1:$1048576,$A456,AJ$1))","v":""},{"$f":"IF($A456=\"N/A\",Ref!$B$36,INDEX(Ranks!$1:$1048576,$A456,AK$1))","v":""},{"$f":"IF($A456=\"N/A\",Ref!$B$36,INDEX(Ranks!$1:$1048576,$A456,AL$1))","v":""},{"$f":"IF($A456=\"N/A\",Ref!$B$36,INDEX(Ranks!$1:$1048576,$A456,AM$1))","v":""},{"$f":"IF($A456=\"N/A\",Ref!$B$36,INDEX(Ranks!$1:$1048576,$A456,AN$1))","v":""},{"$f":"IF($A456=\"N/A\",Ref!$B$36,INDEX(Ranks!$1:$1048576,$A456,AO$1))","v":""},{"$f":"IF($A456=\"N/A\",Ref!$B$36,INDEX(Ranks!$1:$1048576,$A456,AP$1))","v":""},{"$f":"IF($A456=\"N/A\",Ref!$B$36,INDEX(Ranks!$1:$1048576,$A456,AQ$1))","v":""},{"$f":"IF($A456=\"N/A\",Ref!$B$36,INDEX(Ranks!$1:$1048576,$A456,AR$1))","v":""},{"$f":"IF($A456=\"N/A\",Ref!$B$36,INDEX(Ranks!$1:$1048576,$A456,AS$1))","v":""},{"$f":"IF($A456=\"N/A\",Ref!$B$36,INDEX(Ranks!$1:$1048576,$A456,AT$1))","v":""},{"$f":"IF($A456=\"N/A\",Ref!$B$36,INDEX(Ranks!$1:$1048576,$A456,AU$1))","v":""},{"$f":"IF($A456=\"N/A\",Ref!$B$36,INDEX(Ranks!$1:$1048576,$A456,AV$1))","v":""},{"$f":"IF($A456=\"N/A\",Ref!$B$36,INDEX(Ranks!$1:$1048576,$A456,AW$1))","v":""},{"$f":"IF($A456=\"N/A\",Ref!$B$36,INDEX(Ranks!$1:$1048576,$A456,AX$1))","v":""},{"$f":"IF($A456=\"N/A\",Ref!$B$36,INDEX(Ranks!$1:$1048576,$A456,AY$1))","v":""},{"$f":"IF($A456=\"N/A\",Ref!$B$36,INDEX(Ranks!$1:$1048576,$A456,AZ$1))","v":""},{"$f":"IF($A456=\"N/A\",Ref!$B$36,INDEX(Ranks!$1:$1048576,$A456,BA$1))","v":""},{"$f":"IF($A456=\"N/A\",Ref!$B$36,INDEX(Ranks!$1:$1048576,$A456,BB$1))","v":""},{"$f":"IF($A456=\"N/A\",Ref!$B$36,INDEX(Ranks!$1:$1048576,$A456,BC$1))","v":""},{"$f":"IF($A456=\"N/A\",Ref!$B$36,INDEX(Ranks!$1:$1048576,$A456,BD$1))","v":""},{"$f":"IF($A456=\"N/A\",Ref!$B$36,INDEX(Ranks!$1:$1048576,$A456,BE$1))","v":""},{"$f":"IF($A456=\"N/A\",Ref!$B$36,INDEX(Ranks!$1:$1048576,$A456,BF$1))","v":""},{"$f":"IF($A456=\"N/A\",Ref!$B$36,INDEX(Ranks!$1:$1048576,$A456,BG$1))","v":""},{"$f":"IF($A456=\"N/A\",Ref!$B$36,INDEX(Ranks!$1:$1048576,$A456,BH$1))","v":""},{"$f":"IF($A456=\"N/A\",Ref!$B$36,INDEX(Ranks!$1:$1048576,$A456,BI$1))","v":""},{"$f":"IF($A456=\"N/A\",Ref!$B$36,INDEX(Ranks!$1:$1048576,$A456,BJ$1))","v":""},{"$f":"IF($A456=\"N/A\",Ref!$B$36,INDEX(Ranks!$1:$1048576,$A456,BK$1))","v":""},{"$f":"IF($A456=\"N/A\",Ref!$B$36,INDEX(Ranks!$1:$1048576,$A456,BL$1))","v":""},{"$f":"IF($A456=\"N/A\",Ref!$B$36,INDEX(Ranks!$1:$1048576,$A456,BM$1))","v":""},{"$f":"IF($A456=\"N/A\",Ref!$B$36,INDEX(Ranks!$1:$1048576,$A456,BN$1))","v":""},{"$f":"IF($A456=\"N/A\",Ref!$B$36,INDEX(Ranks!$1:$1048576,$A456,BO$1))","v":""},{"$f":"IF($A456=\"N/A\",Ref!$B$36,INDEX(Ranks!$1:$1048576,$A456,BP$1))","v":""},{"$f":"IF($A456=\"N/A\",Ref!$B$36,INDEX(Ranks!$1:$1048576,$A456,BQ$1))","v":""},{"$f":"IF($A456=\"N/A\",Ref!$B$36,INDEX(Ranks!$1:$1048576,$A456,BR$1))","v":""},{"$f":"IF($A456=\"N/A\",Ref!$B$36,INDEX(Ranks!$1:$1048576,$A456,BS$1))","v":""},{"$f":"IF($A456=\"N/A\",Ref!$B$36,INDEX(Ranks!$1:$1048576,$A456,BT$1))","v":""},{"$f":"IF($A456=\"N/A\",Ref!$B$36,INDEX(Ranks!$1:$1048576,$A456,BU$1))","v":""},{"$f":"IF($A456=\"N/A\",Ref!$B$36,INDEX(Ranks!$1:$1048576,$A456,BV$1))","v":""},{"$f":"IF($A456=\"N/A\",Ref!$B$36,INDEX(Ranks!$1:$1048576,$A456,BW$1))","v":""},{"$f":"IF($A456=\"N/A\",Ref!$B$36,INDEX(Ranks!$1:$1048576,$A456,BX$1))","v":""},{"$f":"IF($A456=\"N/A\",Ref!$B$36,INDEX(Ranks!$1:$1048576,$A456,BY$1))","v":""},{"$f":"IF($A456=\"N/A\",Ref!$B$36,INDEX(Ranks!$1:$1048576,$A456,BZ$1))","v":""},{"$f":"IF($A456=\"N/A\",Ref!$B$36,INDEX(Ranks!$1:$1048576,$A456,CA$1))","v":""},{"$f":"IF($A456=\"N/A\",Ref!$B$36,INDEX(Ranks!$1:$1048576,$A456,CB$1))","v":""},{"$f":"IF($A456=\"N/A\",Ref!$B$36,INDEX(Ranks!$1:$1048576,$A456,CC$1))","v":""},{"$f":"IF($A456=\"N/A\",Ref!$B$36,INDEX(Ranks!$1:$1048576,$A456,CD$1))","v":""},{"$f":"IF($A456=\"N/A\",Ref!$B$36,INDEX(Ranks!$1:$1048576,$A456,CE$1))","v":""},{"$f":"IF($A456=\"N/A\",Ref!$B$36,INDEX(Ranks!$1:$1048576,$A456,CF$1))","v":""},{"$f":"IF($A456=\"N/A\",Ref!$B$36,INDEX(Ranks!$1:$1048576,$A456,CG$1))","v":""},{"$f":"IF($A456=\"N/A\",Ref!$B$36,INDEX(Ranks!$1:$1048576,$A456,CH$1))","v":""},{"$f":"IF($A456=\"N/A\",Ref!$B$36,INDEX(Ranks!$1:$1048576,$A456,CI$1))","v":""},{"$f":"IF($A456=\"N/A\",Ref!$B$36,INDEX(Ranks!$1:$1048576,$A456,CJ$1))","v":""},{"$f":"IF($A456=\"N/A\",Ref!$B$36,INDEX(Ranks!$1:$1048576,$A456,CK$1))","v":""},{"$f":"IF($A456=\"N/A\",Ref!$B$36,INDEX(Ranks!$1:$1048576,$A456,CL$1))","v":""},{"$f":"IF($A456=\"N/A\",Ref!$B$36,INDEX(Ranks!$1:$1048576,$A456,CM$1))","v":""},{"$f":"IF($A456=\"N/A\",Ref!$B$36,INDEX(Ranks!$1:$1048576,$A456,CN$1))","v":""},{"$f":"IF($A456=\"N/A\",Ref!$B$36,INDEX(Ranks!$1:$1048576,$A456,CO$1))","v":""},{"$f":"IF($A456=\"N/A\",Ref!$B$36,INDEX(Ranks!$1:$1048576,$A456,CP$1))","v":""},{"$f":"IF($A456=\"N/A\",Ref!$B$36,INDEX(Ranks!$1:$1048576,$A456,CQ$1))","v":""},{"$f":"IF($A456=\"N/A\",Ref!$B$36,INDEX(Ranks!$1:$1048576,$A456,CR$1))","v":""},{"$f":"IF($A456=\"N/A\",Ref!$B$36,INDEX(Ranks!$1:$1048576,$A456,CS$1))","v":""},{"$f":"IF($A456=\"N/A\",Ref!$B$36,INDEX(Ranks!$1:$1048576,$A456,CT$1))","v":""},{"$f":"IF($A456=\"N/A\",Ref!$B$36,INDEX(Ranks!$1:$1048576,$A456,CU$1))","v":""},{"$f":"IF($A456=\"N/A\",Ref!$B$36,INDEX(Ranks!$1:$1048576,$A456,CV$1))","v":""},{"$f":"IF($A456=\"N/A\",Ref!$B$36,INDEX(Ranks!$1:$1048576,$A456,CW$1))","v":""},{"$f":"IF($A456=\"N/A\",Ref!$B$36,INDEX(Ranks!$1:$1048576,$A456,CX$1))","v":""},{"$f":"IF($A456=\"N/A\",Ref!$B$36,INDEX(Ranks!$1:$1048576,$A456,CY$1))","v":""},{"$f":"IF($A456=\"N/A\",Ref!$B$36,INDEX(Ranks!$1:$1048576,$A456,CZ$1))","v":""},{"$f":"IF($A456=\"N/A\",Ref!$B$36,INDEX(Ranks!$1:$1048576,$A456,DA$1))","v":""},{"$f":"IF($A456=\"N/A\",Ref!$B$36,INDEX(Ranks!$1:$1048576,$A456,DB$1))","v":""},{"$f":"IF($A456=\"N/A\",Ref!$B$36,INDEX(Ranks!$1:$1048576,$A456,DC$1))","v":""},{"$f":"IF($A456=\"N/A\",Ref!$B$36,INDEX(Ranks!$1:$1048576,$A456,DD$1))","v":""},{"$f":"IF($A456=\"N/A\",Ref!$B$36,INDEX(Ranks!$1:$1048576,$A456,DE$1))","v":""},{"$f":"IF($A456=\"N/A\",Ref!$B$36,INDEX(Ranks!$1:$1048576,$A456,DF$1))","v":""},{"$f":"IF($A456=\"N/A\",Ref!$B$36,INDEX(Ranks!$1:$1048576,$A456,DG$1))","v":""},{"$f":"IF($A456=\"N/A\",Ref!$B$36,INDEX(Ranks!$1:$1048576,$A456,DH$1))","v":""},{"$f":"IF($A456=\"N/A\",Ref!$B$36,INDEX(Ranks!$1:$1048576,$A456,DI$1))","v":""},{"$f":"IF($A456=\"N/A\",Ref!$B$36,INDEX(Ranks!$1:$1048576,$A456,DJ$1))","v":""},{"$f":"IF($A456=\"N/A\",Ref!$B$36,INDEX(Ranks!$1:$1048576,$A456,DK$1))","v":""},{"$f":"IF($A456=\"N/A\",Ref!$B$36,INDEX(Ranks!$1:$1048576,$A456,DL$1))","v":""},{"$f":"IF($A456=\"N/A\",Ref!$B$36,INDEX(Ranks!$1:$1048576,$A456,DM$1))","v":""},{"$f":"IF($A456=\"N/A\",Ref!$B$36,INDEX(Ranks!$1:$1048576,$A456,DN$1))","v":""},{"$f":"IF($A456=\"N/A\",Ref!$B$36,INDEX(Ranks!$1:$1048576,$A456,DO$1))","v":""},{"$f":"IF($A456=\"N/A\",Ref!$B$36,INDEX(Ranks!$1:$1048576,$A456,DP$1))","v":""},{"$f":"IF($A456=\"N/A\",Ref!$B$36,INDEX(Ranks!$1:$1048576,$A456,DQ$1))","v":""},{"$f":"IF($A456=\"N/A\",Ref!$B$36,INDEX(Ranks!$1:$1048576,$A456,DR$1))","v":""},{"$f":"IF($A456=\"N/A\",Ref!$B$36,INDEX(Ranks!$1:$1048576,$A456,DS$1))","v":""},{"$f":"IF($A456=\"N/A\",Ref!$B$36,INDEX(Ranks!$1:$1048576,$A456,DT$1))","v":""},{"$f":"IF($A456=\"N/A\",Ref!$B$36,INDEX(Ranks!$1:$1048576,$A456,DU$1))","v":""},{"$f":"IF($A456=\"N/A\",Ref!$B$36,INDEX(Ranks!$1:$1048576,$A456,DV$1))","v":""},{"$f":"IF($A456=\"N/A\",Ref!$B$36,INDEX(Ranks!$1:$1048576,$A456,DW$1))","v":""},{"$f":"IF($A456=\"N/A\",Ref!$B$36,INDEX(Ranks!$1:$1048576,$A456,DX$1))","v":""},{"$f":"IF($A456=\"N/A\",Ref!$B$36,INDEX(Ranks!$1:$1048576,$A456,DY$1))","v":""},{"$f":"IF($A456=\"N/A\",Ref!$B$36,INDEX(Ranks!$1:$1048576,$A456,DZ$1))","v":""},{"$f":"IF($A456=\"N/A\",Ref!$B$36,INDEX(Ranks!$1:$1048576,$A456,EA$1))","v":""},{"$f":"IF($A456=\"N/A\",Ref!$B$36,INDEX(Ranks!$1:$1048576,$A456,EB$1))","v":""}]
[{"$f":"IFERROR(MATCH('Portfolio Page'!L457,Ranks!L:L,0),\"N/A\")","v":"N/A"},null,{"$f":"IF($A457=\"N/A\",\"\",INDEX(Ranks!$1:$1048576,$A457,C$1))","v":""},{"$f":"IF($A457=\"N/A\",Ref!$B$36,INDEX(Ranks!$1:$1048576,$A457,D$1))","v":""},{"$f":"IF($A457=\"N/A\",Ref!$B$36,INDEX(Ranks!$1:$1048576,$A457,E$1))","v":""},{"$f":"IF($A457=\"N/A\",\"\",INDEX(Ranks!$1:$1048576,$A457,F$1))","v":""},{"$f":"IF($A457=\"N/A\",\"\",INDEX(Ranks!$1:$1048576,$A457,G$1))","v":""},{"$f":"IF($A457=\"N/A\",\"\",INDEX(Ranks!$1:$1048576,$A457,H$1))","v":""},{"$f":"IF($A457=\"N/A\",\"\",INDEX(Ranks!$1:$1048576,$A457,I$1))","v":""},{"$f":"IF($A457=\"N/A\",\"\",INDEX(Ranks!$1:$1048576,$A457,J$1))","v":""},{"$f":"IF($A457=\"N/A\",\"\",INDEX(Ranks!$1:$1048576,$A457,K$1))","v":""},null,{"$f":"IF($A457=\"N/A\",Ref!$B$36,INDEX(Ranks!$1:$1048576,$A457,M$1))","v":""},{"$f":"IF($A457=\"N/A\",Ref!$B$36,INDEX(Ranks!$1:$1048576,$A457,N$1))","v":""},{"$f":"IF($A457=\"N/A\",Ref!$B$36,INDEX(Ranks!$1:$1048576,$A457,O$1))","v":""},{"$f":"IF($A457=\"N/A\",Ref!$B$36,INDEX(Ranks!$1:$1048576,$A457,P$1))","v":""},{"$f":"IF($A457=\"N/A\",Ref!$B$36,INDEX(Ranks!$1:$1048576,$A457,Q$1))","v":""},{"$f":"IF($A457=\"N/A\",Ref!$B$36,INDEX(Ranks!$1:$1048576,$A457,R$1))","v":""},{"$f":"IF($A457=\"N/A\",Ref!$B$36,INDEX(Ranks!$1:$1048576,$A457,S$1))","v":""},{"$f":"IF($A457=\"N/A\",Ref!$B$36,INDEX(Ranks!$1:$1048576,$A457,T$1))","v":""},{"$f":"IF($A457=\"N/A\",Ref!$B$36,INDEX(Ranks!$1:$1048576,$A457,U$1))","v":""},{"$f":"IF($A457=\"N/A\",Ref!$B$36,INDEX(Ranks!$1:$1048576,$A457,V$1))","v":""},{"$f":"IF($A457=\"N/A\",Ref!$B$36,INDEX(Ranks!$1:$1048576,$A457,W$1))","v":""},{"$f":"IF($A457=\"N/A\",Ref!$B$36,INDEX(Ranks!$1:$1048576,$A457,X$1))","v":""},{"$f":"IF($A457=\"N/A\",Ref!$B$36,INDEX(Ranks!$1:$1048576,$A457,Y$1))","v":""},{"$f":"IF($A457=\"N/A\",Ref!$B$36,INDEX(Ranks!$1:$1048576,$A457,Z$1))","v":""},{"$f":"IF($A457=\"N/A\",Ref!$B$36,INDEX(Ranks!$1:$1048576,$A457,AA$1))","v":""},{"$f":"IF($A457=\"N/A\",Ref!$B$36,INDEX(Ranks!$1:$1048576,$A457,AB$1))","v":""},{"$f":"IF($A457=\"N/A\",Ref!$B$36,INDEX(Ranks!$1:$1048576,$A457,AC$1))","v":""},{"$f":"IF($A457=\"N/A\",Ref!$B$36,INDEX(Ranks!$1:$1048576,$A457,AD$1))","v":""},{"$f":"IF($A457=\"N/A\",Ref!$B$36,INDEX(Ranks!$1:$1048576,$A457,AE$1))","v":""},{"$f":"IF($A457=\"N/A\",Ref!$B$36,INDEX(Ranks!$1:$1048576,$A457,AF$1))","v":""},{"$f":"IF($A457=\"N/A\",Ref!$B$36,INDEX(Ranks!$1:$1048576,$A457,AG$1))","v":""},{"$f":"IF($A457=\"N/A\",Ref!$B$36,INDEX(Ranks!$1:$1048576,$A457,AH$1))","v":""},{"$f":"IF($A457=\"N/A\",Ref!$B$36,INDEX(Ranks!$1:$1048576,$A457,AI$1))","v":""},{"$f":"IF($A457=\"N/A\",Ref!$B$36,INDEX(Ranks!$1:$1048576,$A457,AJ$1))","v":""},{"$f":"IF($A457=\"N/A\",Ref!$B$36,INDEX(Ranks!$1:$1048576,$A457,AK$1))","v":""},{"$f":"IF($A457=\"N/A\",Ref!$B$36,INDEX(Ranks!$1:$1048576,$A457,AL$1))","v":""},{"$f":"IF($A457=\"N/A\",Ref!$B$36,INDEX(Ranks!$1:$1048576,$A457,AM$1))","v":""},{"$f":"IF($A457=\"N/A\",Ref!$B$36,INDEX(Ranks!$1:$1048576,$A457,AN$1))","v":""},{"$f":"IF($A457=\"N/A\",Ref!$B$36,INDEX(Ranks!$1:$1048576,$A457,AO$1))","v":""},{"$f":"IF($A457=\"N/A\",Ref!$B$36,INDEX(Ranks!$1:$1048576,$A457,AP$1))","v":""},{"$f":"IF($A457=\"N/A\",Ref!$B$36,INDEX(Ranks!$1:$1048576,$A457,AQ$1))","v":""},{"$f":"IF($A457=\"N/A\",Ref!$B$36,INDEX(Ranks!$1:$1048576,$A457,AR$1))","v":""},{"$f":"IF($A457=\"N/A\",Ref!$B$36,INDEX(Ranks!$1:$1048576,$A457,AS$1))","v":""},{"$f":"IF($A457=\"N/A\",Ref!$B$36,INDEX(Ranks!$1:$1048576,$A457,AT$1))","v":""},{"$f":"IF($A457=\"N/A\",Ref!$B$36,INDEX(Ranks!$1:$1048576,$A457,AU$1))","v":""},{"$f":"IF($A457=\"N/A\",Ref!$B$36,INDEX(Ranks!$1:$1048576,$A457,AV$1))","v":""},{"$f":"IF($A457=\"N/A\",Ref!$B$36,INDEX(Ranks!$1:$1048576,$A457,AW$1))","v":""},{"$f":"IF($A457=\"N/A\",Ref!$B$36,INDEX(Ranks!$1:$1048576,$A457,AX$1))","v":""},{"$f":"IF($A457=\"N/A\",Ref!$B$36,INDEX(Ranks!$1:$1048576,$A457,AY$1))","v":""},{"$f":"IF($A457=\"N/A\",Ref!$B$36,INDEX(Ranks!$1:$1048576,$A457,AZ$1))","v":""},{"$f":"IF($A457=\"N/A\",Ref!$B$36,INDEX(Ranks!$1:$1048576,$A457,BA$1))","v":""},{"$f":"IF($A457=\"N/A\",Ref!$B$36,INDEX(Ranks!$1:$1048576,$A457,BB$1))","v":""},{"$f":"IF($A457=\"N/A\",Ref!$B$36,INDEX(Ranks!$1:$1048576,$A457,BC$1))","v":""},{"$f":"IF($A457=\"N/A\",Ref!$B$36,INDEX(Ranks!$1:$1048576,$A457,BD$1))","v":""},{"$f":"IF($A457=\"N/A\",Ref!$B$36,INDEX(Ranks!$1:$1048576,$A457,BE$1))","v":""},{"$f":"IF($A457=\"N/A\",Ref!$B$36,INDEX(Ranks!$1:$1048576,$A457,BF$1))","v":""},{"$f":"IF($A457=\"N/A\",Ref!$B$36,INDEX(Ranks!$1:$1048576,$A457,BG$1))","v":""},{"$f":"IF($A457=\"N/A\",Ref!$B$36,INDEX(Ranks!$1:$1048576,$A457,BH$1))","v":""},{"$f":"IF($A457=\"N/A\",Ref!$B$36,INDEX(Ranks!$1:$1048576,$A457,BI$1))","v":""},{"$f":"IF($A457=\"N/A\",Ref!$B$36,INDEX(Ranks!$1:$1048576,$A457,BJ$1))","v":""},{"$f":"IF($A457=\"N/A\",Ref!$B$36,INDEX(Ranks!$1:$1048576,$A457,BK$1))","v":""},{"$f":"IF($A457=\"N/A\",Ref!$B$36,INDEX(Ranks!$1:$1048576,$A457,BL$1))","v":""},{"$f":"IF($A457=\"N/A\",Ref!$B$36,INDEX(Ranks!$1:$1048576,$A457,BM$1))","v":""},{"$f":"IF($A457=\"N/A\",Ref!$B$36,INDEX(Ranks!$1:$1048576,$A457,BN$1))","v":""},{"$f":"IF($A457=\"N/A\",Ref!$B$36,INDEX(Ranks!$1:$1048576,$A457,BO$1))","v":""},{"$f":"IF($A457=\"N/A\",Ref!$B$36,INDEX(Ranks!$1:$1048576,$A457,BP$1))","v":""},{"$f":"IF($A457=\"N/A\",Ref!$B$36,INDEX(Ranks!$1:$1048576,$A457,BQ$1))","v":""},{"$f":"IF($A457=\"N/A\",Ref!$B$36,INDEX(Ranks!$1:$1048576,$A457,BR$1))","v":""},{"$f":"IF($A457=\"N/A\",Ref!$B$36,INDEX(Ranks!$1:$1048576,$A457,BS$1))","v":""},{"$f":"IF($A457=\"N/A\",Ref!$B$36,INDEX(Ranks!$1:$1048576,$A457,BT$1))","v":""},{"$f":"IF($A457=\"N/A\",Ref!$B$36,INDEX(Ranks!$1:$1048576,$A457,BU$1))","v":""},{"$f":"IF($A457=\"N/A\",Ref!$B$36,INDEX(Ranks!$1:$1048576,$A457,BV$1))","v":""},{"$f":"IF($A457=\"N/A\",Ref!$B$36,INDEX(Ranks!$1:$1048576,$A457,BW$1))","v":""},{"$f":"IF($A457=\"N/A\",Ref!$B$36,INDEX(Ranks!$1:$1048576,$A457,BX$1))","v":""},{"$f":"IF($A457=\"N/A\",Ref!$B$36,INDEX(Ranks!$1:$1048576,$A457,BY$1))","v":""},{"$f":"IF($A457=\"N/A\",Ref!$B$36,INDEX(Ranks!$1:$1048576,$A457,BZ$1))","v":""},{"$f":"IF($A457=\"N/A\",Ref!$B$36,INDEX(Ranks!$1:$1048576,$A457,CA$1))","v":""},{"$f":"IF($A457=\"N/A\",Ref!$B$36,INDEX(Ranks!$1:$1048576,$A457,CB$1))","v":""},{"$f":"IF($A457=\"N/A\",Ref!$B$36,INDEX(Ranks!$1:$1048576,$A457,CC$1))","v":""},{"$f":"IF($A457=\"N/A\",Ref!$B$36,INDEX(Ranks!$1:$1048576,$A457,CD$1))","v":""},{"$f":"IF($A457=\"N/A\",Ref!$B$36,INDEX(Ranks!$1:$1048576,$A457,CE$1))","v":""},{"$f":"IF($A457=\"N/A\",Ref!$B$36,INDEX(Ranks!$1:$1048576,$A457,CF$1))","v":""},{"$f":"IF($A457=\"N/A\",Ref!$B$36,INDEX(Ranks!$1:$1048576,$A457,CG$1))","v":""},{"$f":"IF($A457=\"N/A\",Ref!$B$36,INDEX(Ranks!$1:$1048576,$A457,CH$1))","v":""},{"$f":"IF($A457=\"N/A\",Ref!$B$36,INDEX(Ranks!$1:$1048576,$A457,CI$1))","v":""},{"$f":"IF($A457=\"N/A\",Ref!$B$36,INDEX(Ranks!$1:$1048576,$A457,CJ$1))","v":""},{"$f":"IF($A457=\"N/A\",Ref!$B$36,INDEX(Ranks!$1:$1048576,$A457,CK$1))","v":""},{"$f":"IF($A457=\"N/A\",Ref!$B$36,INDEX(Ranks!$1:$1048576,$A457,CL$1))","v":""},{"$f":"IF($A457=\"N/A\",Ref!$B$36,INDEX(Ranks!$1:$1048576,$A457,CM$1))","v":""},{"$f":"IF($A457=\"N/A\",Ref!$B$36,INDEX(Ranks!$1:$1048576,$A457,CN$1))","v":""},{"$f":"IF($A457=\"N/A\",Ref!$B$36,INDEX(Ranks!$1:$1048576,$A457,CO$1))","v":""},{"$f":"IF($A457=\"N/A\",Ref!$B$36,INDEX(Ranks!$1:$1048576,$A457,CP$1))","v":""},{"$f":"IF($A457=\"N/A\",Ref!$B$36,INDEX(Ranks!$1:$1048576,$A457,CQ$1))","v":""},{"$f":"IF($A457=\"N/A\",Ref!$B$36,INDEX(Ranks!$1:$1048576,$A457,CR$1))","v":""},{"$f":"IF($A457=\"N/A\",Ref!$B$36,INDEX(Ranks!$1:$1048576,$A457,CS$1))","v":""},{"$f":"IF($A457=\"N/A\",Ref!$B$36,INDEX(Ranks!$1:$1048576,$A457,CT$1))","v":""},{"$f":"IF($A457=\"N/A\",Ref!$B$36,INDEX(Ranks!$1:$1048576,$A457,CU$1))","v":""},{"$f":"IF($A457=\"N/A\",Ref!$B$36,INDEX(Ranks!$1:$1048576,$A457,CV$1))","v":""},{"$f":"IF($A457=\"N/A\",Ref!$B$36,INDEX(Ranks!$1:$1048576,$A457,CW$1))","v":""},{"$f":"IF($A457=\"N/A\",Ref!$B$36,INDEX(Ranks!$1:$1048576,$A457,CX$1))","v":""},{"$f":"IF($A457=\"N/A\",Ref!$B$36,INDEX(Ranks!$1:$1048576,$A457,CY$1))","v":""},{"$f":"IF($A457=\"N/A\",Ref!$B$36,INDEX(Ranks!$1:$1048576,$A457,CZ$1))","v":""},{"$f":"IF($A457=\"N/A\",Ref!$B$36,INDEX(Ranks!$1:$1048576,$A457,DA$1))","v":""},{"$f":"IF($A457=\"N/A\",Ref!$B$36,INDEX(Ranks!$1:$1048576,$A457,DB$1))","v":""},{"$f":"IF($A457=\"N/A\",Ref!$B$36,INDEX(Ranks!$1:$1048576,$A457,DC$1))","v":""},{"$f":"IF($A457=\"N/A\",Ref!$B$36,INDEX(Ranks!$1:$1048576,$A457,DD$1))","v":""},{"$f":"IF($A457=\"N/A\",Ref!$B$36,INDEX(Ranks!$1:$1048576,$A457,DE$1))","v":""},{"$f":"IF($A457=\"N/A\",Ref!$B$36,INDEX(Ranks!$1:$1048576,$A457,DF$1))","v":""},{"$f":"IF($A457=\"N/A\",Ref!$B$36,INDEX(Ranks!$1:$1048576,$A457,DG$1))","v":""},{"$f":"IF($A457=\"N/A\",Ref!$B$36,INDEX(Ranks!$1:$1048576,$A457,DH$1))","v":""},{"$f":"IF($A457=\"N/A\",Ref!$B$36,INDEX(Ranks!$1:$1048576,$A457,DI$1))","v":""},{"$f":"IF($A457=\"N/A\",Ref!$B$36,INDEX(Ranks!$1:$1048576,$A457,DJ$1))","v":""},{"$f":"IF($A457=\"N/A\",Ref!$B$36,INDEX(Ranks!$1:$1048576,$A457,DK$1))","v":""},{"$f":"IF($A457=\"N/A\",Ref!$B$36,INDEX(Ranks!$1:$1048576,$A457,DL$1))","v":""},{"$f":"IF($A457=\"N/A\",Ref!$B$36,INDEX(Ranks!$1:$1048576,$A457,DM$1))","v":""},{"$f":"IF($A457=\"N/A\",Ref!$B$36,INDEX(Ranks!$1:$1048576,$A457,DN$1))","v":""},{"$f":"IF($A457=\"N/A\",Ref!$B$36,INDEX(Ranks!$1:$1048576,$A457,DO$1))","v":""},{"$f":"IF($A457=\"N/A\",Ref!$B$36,INDEX(Ranks!$1:$1048576,$A457,DP$1))","v":""},{"$f":"IF($A457=\"N/A\",Ref!$B$36,INDEX(Ranks!$1:$1048576,$A457,DQ$1))","v":""},{"$f":"IF($A457=\"N/A\",Ref!$B$36,INDEX(Ranks!$1:$1048576,$A457,DR$1))","v":""},{"$f":"IF($A457=\"N/A\",Ref!$B$36,INDEX(Ranks!$1:$1048576,$A457,DS$1))","v":""},{"$f":"IF($A457=\"N/A\",Ref!$B$36,INDEX(Ranks!$1:$1048576,$A457,DT$1))","v":""},{"$f":"IF($A457=\"N/A\",Ref!$B$36,INDEX(Ranks!$1:$1048576,$A457,DU$1))","v":""},{"$f":"IF($A457=\"N/A\",Ref!$B$36,INDEX(Ranks!$1:$1048576,$A457,DV$1))","v":""},{"$f":"IF($A457=\"N/A\",Ref!$B$36,INDEX(Ranks!$1:$1048576,$A457,DW$1))","v":""},{"$f":"IF($A457=\"N/A\",Ref!$B$36,INDEX(Ranks!$1:$1048576,$A457,DX$1))","v":""},{"$f":"IF($A457=\"N/A\",Ref!$B$36,INDEX(Ranks!$1:$1048576,$A457,DY$1))","v":""},{"$f":"IF($A457=\"N/A\",Ref!$B$36,INDEX(Ranks!$1:$1048576,$A457,DZ$1))","v":""},{"$f":"IF($A457=\"N/A\",Ref!$B$36,INDEX(Ranks!$1:$1048576,$A457,EA$1))","v":""},{"$f":"IF($A457=\"N/A\",Ref!$B$36,INDEX(Ranks!$1:$1048576,$A457,EB$1))","v":""}]
[{"$f":"IFERROR(MATCH('Portfolio Page'!L458,Ranks!L:L,0),\"N/A\")","v":"N/A"},null,{"$f":"IF($A458=\"N/A\",\"\",INDEX(Ranks!$1:$1048576,$A458,C$1))","v":""},{"$f":"IF($A458=\"N/A\",Ref!$B$36,INDEX(Ranks!$1:$1048576,$A458,D$1))","v":""},{"$f":"IF($A458=\"N/A\",Ref!$B$36,INDEX(Ranks!$1:$1048576,$A458,E$1))","v":""},{"$f":"IF($A458=\"N/A\",\"\",INDEX(Ranks!$1:$1048576,$A458,F$1))","v":""},{"$f":"IF($A458=\"N/A\",\"\",INDEX(Ranks!$1:$1048576,$A458,G$1))","v":""},{"$f":"IF($A458=\"N/A\",\"\",INDEX(Ranks!$1:$1048576,$A458,H$1))","v":""},{"$f":"IF($A458=\"N/A\",\"\",INDEX(Ranks!$1:$1048576,$A458,I$1))","v":""},{"$f":"IF($A458=\"N/A\",\"\",INDEX(Ranks!$1:$1048576,$A458,J$1))","v":""},{"$f":"IF($A458=\"N/A\",\"\",INDEX(Ranks!$1:$1048576,$A458,K$1))","v":""},null,{"$f":"IF($A458=\"N/A\",Ref!$B$36,INDEX(Ranks!$1:$1048576,$A458,M$1))","v":""},{"$f":"IF($A458=\"N/A\",Ref!$B$36,INDEX(Ranks!$1:$1048576,$A458,N$1))","v":""},{"$f":"IF($A458=\"N/A\",Ref!$B$36,INDEX(Ranks!$1:$1048576,$A458,O$1))","v":""},{"$f":"IF($A458=\"N/A\",Ref!$B$36,INDEX(Ranks!$1:$1048576,$A458,P$1))","v":""},{"$f":"IF($A458=\"N/A\",Ref!$B$36,INDEX(Ranks!$1:$1048576,$A458,Q$1))","v":""},{"$f":"IF($A458=\"N/A\",Ref!$B$36,INDEX(Ranks!$1:$1048576,$A458,R$1))","v":""},{"$f":"IF($A458=\"N/A\",Ref!$B$36,INDEX(Ranks!$1:$1048576,$A458,S$1))","v":""},{"$f":"IF($A458=\"N/A\",Ref!$B$36,INDEX(Ranks!$1:$1048576,$A458,T$1))","v":""},{"$f":"IF($A458=\"N/A\",Ref!$B$36,INDEX(Ranks!$1:$1048576,$A458,U$1))","v":""},{"$f":"IF($A458=\"N/A\",Ref!$B$36,INDEX(Ranks!$1:$1048576,$A458,V$1))","v":""},{"$f":"IF($A458=\"N/A\",Ref!$B$36,INDEX(Ranks!$1:$1048576,$A458,W$1))","v":""},{"$f":"IF($A458=\"N/A\",Ref!$B$36,INDEX(Ranks!$1:$1048576,$A458,X$1))","v":""},{"$f":"IF($A458=\"N/A\",Ref!$B$36,INDEX(Ranks!$1:$1048576,$A458,Y$1))","v":""},{"$f":"IF($A458=\"N/A\",Ref!$B$36,INDEX(Ranks!$1:$1048576,$A458,Z$1))","v":""},{"$f":"IF($A458=\"N/A\",Ref!$B$36,INDEX(Ranks!$1:$1048576,$A458,AA$1))","v":""},{"$f":"IF($A458=\"N/A\",Ref!$B$36,INDEX(Ranks!$1:$1048576,$A458,AB$1))","v":""},{"$f":"IF($A458=\"N/A\",Ref!$B$36,INDEX(Ranks!$1:$1048576,$A458,AC$1))","v":""},{"$f":"IF($A458=\"N/A\",Ref!$B$36,INDEX(Ranks!$1:$1048576,$A458,AD$1))","v":""},{"$f":"IF($A458=\"N/A\",Ref!$B$36,INDEX(Ranks!$1:$1048576,$A458,AE$1))","v":""},{"$f":"IF($A458=\"N/A\",Ref!$B$36,INDEX(Ranks!$1:$1048576,$A458,AF$1))","v":""},{"$f":"IF($A458=\"N/A\",Ref!$B$36,INDEX(Ranks!$1:$1048576,$A458,AG$1))","v":""},{"$f":"IF($A458=\"N/A\",Ref!$B$36,INDEX(Ranks!$1:$1048576,$A458,AH$1))","v":""},{"$f":"IF($A458=\"N/A\",Ref!$B$36,INDEX(Ranks!$1:$1048576,$A458,AI$1))","v":""},{"$f":"IF($A458=\"N/A\",Ref!$B$36,INDEX(Ranks!$1:$1048576,$A458,AJ$1))","v":""},{"$f":"IF($A458=\"N/A\",Ref!$B$36,INDEX(Ranks!$1:$1048576,$A458,AK$1))","v":""},{"$f":"IF($A458=\"N/A\",Ref!$B$36,INDEX(Ranks!$1:$1048576,$A458,AL$1))","v":""},{"$f":"IF($A458=\"N/A\",Ref!$B$36,INDEX(Ranks!$1:$1048576,$A458,AM$1))","v":""},{"$f":"IF($A458=\"N/A\",Ref!$B$36,INDEX(Ranks!$1:$1048576,$A458,AN$1))","v":""},{"$f":"IF($A458=\"N/A\",Ref!$B$36,INDEX(Ranks!$1:$1048576,$A458,AO$1))","v":""},{"$f":"IF($A458=\"N/A\",Ref!$B$36,INDEX(Ranks!$1:$1048576,$A458,AP$1))","v":""},{"$f":"IF($A458=\"N/A\",Ref!$B$36,INDEX(Ranks!$1:$1048576,$A458,AQ$1))","v":""},{"$f":"IF($A458=\"N/A\",Ref!$B$36,INDEX(Ranks!$1:$1048576,$A458,AR$1))","v":""},{"$f":"IF($A458=\"N/A\",Ref!$B$36,INDEX(Ranks!$1:$1048576,$A458,AS$1))","v":""},{"$f":"IF($A458=\"N/A\",Ref!$B$36,INDEX(Ranks!$1:$1048576,$A458,AT$1))","v":""},{"$f":"IF($A458=\"N/A\",Ref!$B$36,INDEX(Ranks!$1:$1048576,$A458,AU$1))","v":""},{"$f":"IF($A458=\"N/A\",Ref!$B$36,INDEX(Ranks!$1:$1048576,$A458,AV$1))","v":""},{"$f":"IF($A458=\"N/A\",Ref!$B$36,INDEX(Ranks!$1:$1048576,$A458,AW$1))","v":""},{"$f":"IF($A458=\"N/A\",Ref!$B$36,INDEX(Ranks!$1:$1048576,$A458,AX$1))","v":""},{"$f":"IF($A458=\"N/A\",Ref!$B$36,INDEX(Ranks!$1:$1048576,$A458,AY$1))","v":""},{"$f":"IF($A458=\"N/A\",Ref!$B$36,INDEX(Ranks!$1:$1048576,$A458,AZ$1))","v":""},{"$f":"IF($A458=\"N/A\",Ref!$B$36,INDEX(Ranks!$1:$1048576,$A458,BA$1))","v":""},{"$f":"IF($A458=\"N/A\",Ref!$B$36,INDEX(Ranks!$1:$1048576,$A458,BB$1))","v":""},{"$f":"IF($A458=\"N/A\",Ref!$B$36,INDEX(Ranks!$1:$1048576,$A458,BC$1))","v":""},{"$f":"IF($A458=\"N/A\",Ref!$B$36,INDEX(Ranks!$1:$1048576,$A458,BD$1))","v":""},{"$f":"IF($A458=\"N/A\",Ref!$B$36,INDEX(Ranks!$1:$1048576,$A458,BE$1))","v":""},{"$f":"IF($A458=\"N/A\",Ref!$B$36,INDEX(Ranks!$1:$1048576,$A458,BF$1))","v":""},{"$f":"IF($A458=\"N/A\",Ref!$B$36,INDEX(Ranks!$1:$1048576,$A458,BG$1))","v":""},{"$f":"IF($A458=\"N/A\",Ref!$B$36,INDEX(Ranks!$1:$1048576,$A458,BH$1))","v":""},{"$f":"IF($A458=\"N/A\",Ref!$B$36,INDEX(Ranks!$1:$1048576,$A458,BI$1))","v":""},{"$f":"IF($A458=\"N/A\",Ref!$B$36,INDEX(Ranks!$1:$1048576,$A458,BJ$1))","v":""},{"$f":"IF($A458=\"N/A\",Ref!$B$36,INDEX(Ranks!$1:$1048576,$A458,BK$1))","v":""},{"$f":"IF($A458=\"N/A\",Ref!$B$36,INDEX(Ranks!$1:$1048576,$A458,BL$1))","v":""},{"$f":"IF($A458=\"N/A\",Ref!$B$36,INDEX(Ranks!$1:$1048576,$A458,BM$1))","v":""},{"$f":"IF($A458=\"N/A\",Ref!$B$36,INDEX(Ranks!$1:$1048576,$A458,BN$1))","v":""},{"$f":"IF($A458=\"N/A\",Ref!$B$36,INDEX(Ranks!$1:$1048576,$A458,BO$1))","v":""},{"$f":"IF($A458=\"N/A\",Ref!$B$36,INDEX(Ranks!$1:$1048576,$A458,BP$1))","v":""},{"$f":"IF($A458=\"N/A\",Ref!$B$36,INDEX(Ranks!$1:$1048576,$A458,BQ$1))","v":""},{"$f":"IF($A458=\"N/A\",Ref!$B$36,INDEX(Ranks!$1:$1048576,$A458,BR$1))","v":""},{"$f":"IF($A458=\"N/A\",Ref!$B$36,INDEX(Ranks!$1:$1048576,$A458,BS$1))","v":""},{"$f":"IF($A458=\"N/A\",Ref!$B$36,INDEX(Ranks!$1:$1048576,$A458,BT$1))","v":""},{"$f":"IF($A458=\"N/A\",Ref!$B$36,INDEX(Ranks!$1:$1048576,$A458,BU$1))","v":""},{"$f":"IF($A458=\"N/A\",Ref!$B$36,INDEX(Ranks!$1:$1048576,$A458,BV$1))","v":""},{"$f":"IF($A458=\"N/A\",Ref!$B$36,INDEX(Ranks!$1:$1048576,$A458,BW$1))","v":""},{"$f":"IF($A458=\"N/A\",Ref!$B$36,INDEX(Ranks!$1:$1048576,$A458,BX$1))","v":""},{"$f":"IF($A458=\"N/A\",Ref!$B$36,INDEX(Ranks!$1:$1048576,$A458,BY$1))","v":""},{"$f":"IF($A458=\"N/A\",Ref!$B$36,INDEX(Ranks!$1:$1048576,$A458,BZ$1))","v":""},{"$f":"IF($A458=\"N/A\",Ref!$B$36,INDEX(Ranks!$1:$1048576,$A458,CA$1))","v":""},{"$f":"IF($A458=\"N/A\",Ref!$B$36,INDEX(Ranks!$1:$1048576,$A458,CB$1))","v":""},{"$f":"IF($A458=\"N/A\",Ref!$B$36,INDEX(Ranks!$1:$1048576,$A458,CC$1))","v":""},{"$f":"IF($A458=\"N/A\",Ref!$B$36,INDEX(Ranks!$1:$1048576,$A458,CD$1))","v":""},{"$f":"IF($A458=\"N/A\",Ref!$B$36,INDEX(Ranks!$1:$1048576,$A458,CE$1))","v":""},{"$f":"IF($A458=\"N/A\",Ref!$B$36,INDEX(Ranks!$1:$1048576,$A458,CF$1))","v":""},{"$f":"IF($A458=\"N/A\",Ref!$B$36,INDEX(Ranks!$1:$1048576,$A458,CG$1))","v":""},{"$f":"IF($A458=\"N/A\",Ref!$B$36,INDEX(Ranks!$1:$1048576,$A458,CH$1))","v":""},{"$f":"IF($A458=\"N/A\",Ref!$B$36,INDEX(Ranks!$1:$1048576,$A458,CI$1))","v":""},{"$f":"IF($A458=\"N/A\",Ref!$B$36,INDEX(Ranks!$1:$1048576,$A458,CJ$1))","v":""},{"$f":"IF($A458=\"N/A\",Ref!$B$36,INDEX(Ranks!$1:$1048576,$A458,CK$1))","v":""},{"$f":"IF($A458=\"N/A\",Ref!$B$36,INDEX(Ranks!$1:$1048576,$A458,CL$1))","v":""},{"$f":"IF($A458=\"N/A\",Ref!$B$36,INDEX(Ranks!$1:$1048576,$A458,CM$1))","v":""},{"$f":"IF($A458=\"N/A\",Ref!$B$36,INDEX(Ranks!$1:$1048576,$A458,CN$1))","v":""},{"$f":"IF($A458=\"N/A\",Ref!$B$36,INDEX(Ranks!$1:$1048576,$A458,CO$1))","v":""},{"$f":"IF($A458=\"N/A\",Ref!$B$36,INDEX(Ranks!$1:$1048576,$A458,CP$1))","v":""},{"$f":"IF($A458=\"N/A\",Ref!$B$36,INDEX(Ranks!$1:$1048576,$A458,CQ$1))","v":""},{"$f":"IF($A458=\"N/A\",Ref!$B$36,INDEX(Ranks!$1:$1048576,$A458,CR$1))","v":""},{"$f":"IF($A458=\"N/A\",Ref!$B$36,INDEX(Ranks!$1:$1048576,$A458,CS$1))","v":""},{"$f":"IF($A458=\"N/A\",Ref!$B$36,INDEX(Ranks!$1:$1048576,$A458,CT$1))","v":""},{"$f":"IF($A458=\"N/A\",Ref!$B$36,INDEX(Ranks!$1:$1048576,$A458,CU$1))","v":""},{"$f":"IF($A458=\"N/A\",Ref!$B$36,INDEX(Ranks!$1:$1048576,$A458,CV$1))","v":""},{"$f":"IF($A458=\"N/A\",Ref!$B$36,INDEX(Ranks!$1:$1048576,$A458,CW$1))","v":""},{"$f":"IF($A458=\"N/A\",Ref!$B$36,INDEX(Ranks!$1:$1048576,$A458,CX$1))","v":""},{"$f":"IF($A458=\"N/A\",Ref!$B$36,INDEX(Ranks!$1:$1048576,$A458,CY$1))","v":""},{"$f":"IF($A458=\"N/A\",Ref!$B$36,INDEX(Ranks!$1:$1048576,$A458,CZ$1))","v":""},{"$f":"IF($A458=\"N/A\",Ref!$B$36,INDEX(Ranks!$1:$1048576,$A458,DA$1))","v":""},{"$f":"IF($A458=\"N/A\",Ref!$B$36,INDEX(Ranks!$1:$1048576,$A458,DB$1))","v":""},{"$f":"IF($A458=\"N/A\",Ref!$B$36,INDEX(Ranks!$1:$1048576,$A458,DC$1))","v":""},{"$f":"IF($A458=\"N/A\",Ref!$B$36,INDEX(Ranks!$1:$1048576,$A458,DD$1))","v":""},{"$f":"IF($A458=\"N/A\",Ref!$B$36,INDEX(Ranks!$1:$1048576,$A458,DE$1))","v":""},{"$f":"IF($A458=\"N/A\",Ref!$B$36,INDEX(Ranks!$1:$1048576,$A458,DF$1))","v":""},{"$f":"IF($A458=\"N/A\",Ref!$B$36,INDEX(Ranks!$1:$1048576,$A458,DG$1))","v":""},{"$f":"IF($A458=\"N/A\",Ref!$B$36,INDEX(Ranks!$1:$1048576,$A458,DH$1))","v":""},{"$f":"IF($A458=\"N/A\",Ref!$B$36,INDEX(Ranks!$1:$1048576,$A458,DI$1))","v":""},{"$f":"IF($A458=\"N/A\",Ref!$B$36,INDEX(Ranks!$1:$1048576,$A458,DJ$1))","v":""},{"$f":"IF($A458=\"N/A\",Ref!$B$36,INDEX(Ranks!$1:$1048576,$A458,DK$1))","v":""},{"$f":"IF($A458=\"N/A\",Ref!$B$36,INDEX(Ranks!$1:$1048576,$A458,DL$1))","v":""},{"$f":"IF($A458=\"N/A\",Ref!$B$36,INDEX(Ranks!$1:$1048576,$A458,DM$1))","v":""},{"$f":"IF($A458=\"N/A\",Ref!$B$36,INDEX(Ranks!$1:$1048576,$A458,DN$1))","v":""},{"$f":"IF($A458=\"N/A\",Ref!$B$36,INDEX(Ranks!$1:$1048576,$A458,DO$1))","v":""},{"$f":"IF($A458=\"N/A\",Ref!$B$36,INDEX(Ranks!$1:$1048576,$A458,DP$1))","v":""},{"$f":"IF($A458=\"N/A\",Ref!$B$36,INDEX(Ranks!$1:$1048576,$A458,DQ$1))","v":""},{"$f":"IF($A458=\"N/A\",Ref!$B$36,INDEX(Ranks!$1:$1048576,$A458,DR$1))","v":""},{"$f":"IF($A458=\"N/A\",Ref!$B$36,INDEX(Ranks!$1:$1048576,$A458,DS$1))","v":""},{"$f":"IF($A458=\"N/A\",Ref!$B$36,INDEX(Ranks!$1:$1048576,$A458,DT$1))","v":""},{"$f":"IF($A458=\"N/A\",Ref!$B$36,INDEX(Ranks!$1:$1048576,$A458,DU$1))","v":""},{"$f":"IF($A458=\"N/A\",Ref!$B$36,INDEX(Ranks!$1:$1048576,$A458,DV$1))","v":""},{"$f":"IF($A458=\"N/A\",Ref!$B$36,INDEX(Ranks!$1:$1048576,$A458,DW$1))","v":""},{"$f":"IF($A458=\"N/A\",Ref!$B$36,INDEX(Ranks!$1:$1048576,$A458,DX$1))","v":""},{"$f":"IF($A458=\"N/A\",Ref!$B$36,INDEX(Ranks!$1:$1048576,$A458,DY$1))","v":""},{"$f":"IF($A458=\"N/A\",Ref!$B$36,INDEX(Ranks!$1:$1048576,$A458,DZ$1))","v":""},{"$f":"IF($A458=\"N/A\",Ref!$B$36,INDEX(Ranks!$1:$1048576,$A458,EA$1))","v":""},{"$f":"IF($A458=\"N/A\",Ref!$B$36,INDEX(Ranks!$1:$1048576,$A458,EB$1))","v":""}]
[{"$f":"IFERROR(MATCH('Portfolio Page'!L459,Ranks!L:L,0),\"N/A\")","v":"N/A"},null,{"$f":"IF($A459=\"N/A\",\"\",INDEX(Ranks!$1:$1048576,$A459,C$1))","v":""},{"$f":"IF($A459=\"N/A\",Ref!$B$36,INDEX(Ranks!$1:$1048576,$A459,D$1))","v":""},{"$f":"IF($A459=\"N/A\",Ref!$B$36,INDEX(Ranks!$1:$1048576,$A459,E$1))","v":""},{"$f":"IF($A459=\"N/A\",\"\",INDEX(Ranks!$1:$1048576,$A459,F$1))","v":""},{"$f":"IF($A459=\"N/A\",\"\",INDEX(Ranks!$1:$1048576,$A459,G$1))","v":""},{"$f":"IF($A459=\"N/A\",\"\",INDEX(Ranks!$1:$1048576,$A459,H$1))","v":""},{"$f":"IF($A459=\"N/A\",\"\",INDEX(Ranks!$1:$1048576,$A459,I$1))","v":""},{"$f":"IF($A459=\"N/A\",\"\",INDEX(Ranks!$1:$1048576,$A459,J$1))","v":""},{"$f":"IF($A459=\"N/A\",\"\",INDEX(Ranks!$1:$1048576,$A459,K$1))","v":""},null,{"$f":"IF($A459=\"N/A\",Ref!$B$36,INDEX(Ranks!$1:$1048576,$A459,M$1))","v":""},{"$f":"IF($A459=\"N/A\",Ref!$B$36,INDEX(Ranks!$1:$1048576,$A459,N$1))","v":""},{"$f":"IF($A459=\"N/A\",Ref!$B$36,INDEX(Ranks!$1:$1048576,$A459,O$1))","v":""},{"$f":"IF($A459=\"N/A\",Ref!$B$36,INDEX(Ranks!$1:$1048576,$A459,P$1))","v":""},{"$f":"IF($A459=\"N/A\",Ref!$B$36,INDEX(Ranks!$1:$1048576,$A459,Q$1))","v":""},{"$f":"IF($A459=\"N/A\",Ref!$B$36,INDEX(Ranks!$1:$1048576,$A459,R$1))","v":""},{"$f":"IF($A459=\"N/A\",Ref!$B$36,INDEX(Ranks!$1:$1048576,$A459,S$1))","v":""},{"$f":"IF($A459=\"N/A\",Ref!$B$36,INDEX(Ranks!$1:$1048576,$A459,T$1))","v":""},{"$f":"IF($A459=\"N/A\",Ref!$B$36,INDEX(Ranks!$1:$1048576,$A459,U$1))","v":""},{"$f":"IF($A459=\"N/A\",Ref!$B$36,INDEX(Ranks!$1:$1048576,$A459,V$1))","v":""},{"$f":"IF($A459=\"N/A\",Ref!$B$36,INDEX(Ranks!$1:$1048576,$A459,W$1))","v":""},{"$f":"IF($A459=\"N/A\",Ref!$B$36,INDEX(Ranks!$1:$1048576,$A459,X$1))","v":""},{"$f":"IF($A459=\"N/A\",Ref!$B$36,INDEX(Ranks!$1:$1048576,$A459,Y$1))","v":""},{"$f":"IF($A459=\"N/A\",Ref!$B$36,INDEX(Ranks!$1:$1048576,$A459,Z$1))","v":""},{"$f":"IF($A459=\"N/A\",Ref!$B$36,INDEX(Ranks!$1:$1048576,$A459,AA$1))","v":""},{"$f":"IF($A459=\"N/A\",Ref!$B$36,INDEX(Ranks!$1:$1048576,$A459,AB$1))","v":""},{"$f":"IF($A459=\"N/A\",Ref!$B$36,INDEX(Ranks!$1:$1048576,$A459,AC$1))","v":""},{"$f":"IF($A459=\"N/A\",Ref!$B$36,INDEX(Ranks!$1:$1048576,$A459,AD$1))","v":""},{"$f":"IF($A459=\"N/A\",Ref!$B$36,INDEX(Ranks!$1:$1048576,$A459,AE$1))","v":""},{"$f":"IF($A459=\"N/A\",Ref!$B$36,INDEX(Ranks!$1:$1048576,$A459,AF$1))","v":""},{"$f":"IF($A459=\"N/A\",Ref!$B$36,INDEX(Ranks!$1:$1048576,$A459,AG$1))","v":""},{"$f":"IF($A459=\"N/A\",Ref!$B$36,INDEX(Ranks!$1:$1048576,$A459,AH$1))","v":""},{"$f":"IF($A459=\"N/A\",Ref!$B$36,INDEX(Ranks!$1:$1048576,$A459,AI$1))","v":""},{"$f":"IF($A459=\"N/A\",Ref!$B$36,INDEX(Ranks!$1:$1048576,$A459,AJ$1))","v":""},{"$f":"IF($A459=\"N/A\",Ref!$B$36,INDEX(Ranks!$1:$1048576,$A459,AK$1))","v":""},{"$f":"IF($A459=\"N/A\",Ref!$B$36,INDEX(Ranks!$1:$1048576,$A459,AL$1))","v":""},{"$f":"IF($A459=\"N/A\",Ref!$B$36,INDEX(Ranks!$1:$1048576,$A459,AM$1))","v":""},{"$f":"IF($A459=\"N/A\",Ref!$B$36,INDEX(Ranks!$1:$1048576,$A459,AN$1))","v":""},{"$f":"IF($A459=\"N/A\",Ref!$B$36,INDEX(Ranks!$1:$1048576,$A459,AO$1))","v":""},{"$f":"IF($A459=\"N/A\",Ref!$B$36,INDEX(Ranks!$1:$1048576,$A459,AP$1))","v":""},{"$f":"IF($A459=\"N/A\",Ref!$B$36,INDEX(Ranks!$1:$1048576,$A459,AQ$1))","v":""},{"$f":"IF($A459=\"N/A\",Ref!$B$36,INDEX(Ranks!$1:$1048576,$A459,AR$1))","v":""},{"$f":"IF($A459=\"N/A\",Ref!$B$36,INDEX(Ranks!$1:$1048576,$A459,AS$1))","v":""},{"$f":"IF($A459=\"N/A\",Ref!$B$36,INDEX(Ranks!$1:$1048576,$A459,AT$1))","v":""},{"$f":"IF($A459=\"N/A\",Ref!$B$36,INDEX(Ranks!$1:$1048576,$A459,AU$1))","v":""},{"$f":"IF($A459=\"N/A\",Ref!$B$36,INDEX(Ranks!$1:$1048576,$A459,AV$1))","v":""},{"$f":"IF($A459=\"N/A\",Ref!$B$36,INDEX(Ranks!$1:$1048576,$A459,AW$1))","v":""},{"$f":"IF($A459=\"N/A\",Ref!$B$36,INDEX(Ranks!$1:$1048576,$A459,AX$1))","v":""},{"$f":"IF($A459=\"N/A\",Ref!$B$36,INDEX(Ranks!$1:$1048576,$A459,AY$1))","v":""},{"$f":"IF($A459=\"N/A\",Ref!$B$36,INDEX(Ranks!$1:$1048576,$A459,AZ$1))","v":""},{"$f":"IF($A459=\"N/A\",Ref!$B$36,INDEX(Ranks!$1:$1048576,$A459,BA$1))","v":""},{"$f":"IF($A459=\"N/A\",Ref!$B$36,INDEX(Ranks!$1:$1048576,$A459,BB$1))","v":""},{"$f":"IF($A459=\"N/A\",Ref!$B$36,INDEX(Ranks!$1:$1048576,$A459,BC$1))","v":""},{"$f":"IF($A459=\"N/A\",Ref!$B$36,INDEX(Ranks!$1:$1048576,$A459,BD$1))","v":""},{"$f":"IF($A459=\"N/A\",Ref!$B$36,INDEX(Ranks!$1:$1048576,$A459,BE$1))","v":""},{"$f":"IF($A459=\"N/A\",Ref!$B$36,INDEX(Ranks!$1:$1048576,$A459,BF$1))","v":""},{"$f":"IF($A459=\"N/A\",Ref!$B$36,INDEX(Ranks!$1:$1048576,$A459,BG$1))","v":""},{"$f":"IF($A459=\"N/A\",Ref!$B$36,INDEX(Ranks!$1:$1048576,$A459,BH$1))","v":""},{"$f":"IF($A459=\"N/A\",Ref!$B$36,INDEX(Ranks!$1:$1048576,$A459,BI$1))","v":""},{"$f":"IF($A459=\"N/A\",Ref!$B$36,INDEX(Ranks!$1:$1048576,$A459,BJ$1))","v":""},{"$f":"IF($A459=\"N/A\",Ref!$B$36,INDEX(Ranks!$1:$1048576,$A459,BK$1))","v":""},{"$f":"IF($A459=\"N/A\",Ref!$B$36,INDEX(Ranks!$1:$1048576,$A459,BL$1))","v":""},{"$f":"IF($A459=\"N/A\",Ref!$B$36,INDEX(Ranks!$1:$1048576,$A459,BM$1))","v":""},{"$f":"IF($A459=\"N/A\",Ref!$B$36,INDEX(Ranks!$1:$1048576,$A459,BN$1))","v":""},{"$f":"IF($A459=\"N/A\",Ref!$B$36,INDEX(Ranks!$1:$1048576,$A459,BO$1))","v":""},{"$f":"IF($A459=\"N/A\",Ref!$B$36,INDEX(Ranks!$1:$1048576,$A459,BP$1))","v":""},{"$f":"IF($A459=\"N/A\",Ref!$B$36,INDEX(Ranks!$1:$1048576,$A459,BQ$1))","v":""},{"$f":"IF($A459=\"N/A\",Ref!$B$36,INDEX(Ranks!$1:$1048576,$A459,BR$1))","v":""},{"$f":"IF($A459=\"N/A\",Ref!$B$36,INDEX(Ranks!$1:$1048576,$A459,BS$1))","v":""},{"$f":"IF($A459=\"N/A\",Ref!$B$36,INDEX(Ranks!$1:$1048576,$A459,BT$1))","v":""},{"$f":"IF($A459=\"N/A\",Ref!$B$36,INDEX(Ranks!$1:$1048576,$A459,BU$1))","v":""},{"$f":"IF($A459=\"N/A\",Ref!$B$36,INDEX(Ranks!$1:$1048576,$A459,BV$1))","v":""},{"$f":"IF($A459=\"N/A\",Ref!$B$36,INDEX(Ranks!$1:$1048576,$A459,BW$1))","v":""},{"$f":"IF($A459=\"N/A\",Ref!$B$36,INDEX(Ranks!$1:$1048576,$A459,BX$1))","v":""},{"$f":"IF($A459=\"N/A\",Ref!$B$36,INDEX(Ranks!$1:$1048576,$A459,BY$1))","v":""},{"$f":"IF($A459=\"N/A\",Ref!$B$36,INDEX(Ranks!$1:$1048576,$A459,BZ$1))","v":""},{"$f":"IF($A459=\"N/A\",Ref!$B$36,INDEX(Ranks!$1:$1048576,$A459,CA$1))","v":""},{"$f":"IF($A459=\"N/A\",Ref!$B$36,INDEX(Ranks!$1:$1048576,$A459,CB$1))","v":""},{"$f":"IF($A459=\"N/A\",Ref!$B$36,INDEX(Ranks!$1:$1048576,$A459,CC$1))","v":""},{"$f":"IF($A459=\"N/A\",Ref!$B$36,INDEX(Ranks!$1:$1048576,$A459,CD$1))","v":""},{"$f":"IF($A459=\"N/A\",Ref!$B$36,INDEX(Ranks!$1:$1048576,$A459,CE$1))","v":""},{"$f":"IF($A459=\"N/A\",Ref!$B$36,INDEX(Ranks!$1:$1048576,$A459,CF$1))","v":""},{"$f":"IF($A459=\"N/A\",Ref!$B$36,INDEX(Ranks!$1:$1048576,$A459,CG$1))","v":""},{"$f":"IF($A459=\"N/A\",Ref!$B$36,INDEX(Ranks!$1:$1048576,$A459,CH$1))","v":""},{"$f":"IF($A459=\"N/A\",Ref!$B$36,INDEX(Ranks!$1:$1048576,$A459,CI$1))","v":""},{"$f":"IF($A459=\"N/A\",Ref!$B$36,INDEX(Ranks!$1:$1048576,$A459,CJ$1))","v":""},{"$f":"IF($A459=\"N/A\",Ref!$B$36,INDEX(Ranks!$1:$1048576,$A459,CK$1))","v":""},{"$f":"IF($A459=\"N/A\",Ref!$B$36,INDEX(Ranks!$1:$1048576,$A459,CL$1))","v":""},{"$f":"IF($A459=\"N/A\",Ref!$B$36,INDEX(Ranks!$1:$1048576,$A459,CM$1))","v":""},{"$f":"IF($A459=\"N/A\",Ref!$B$36,INDEX(Ranks!$1:$1048576,$A459,CN$1))","v":""},{"$f":"IF($A459=\"N/A\",Ref!$B$36,INDEX(Ranks!$1:$1048576,$A459,CO$1))","v":""},{"$f":"IF($A459=\"N/A\",Ref!$B$36,INDEX(Ranks!$1:$1048576,$A459,CP$1))","v":""},{"$f":"IF($A459=\"N/A\",Ref!$B$36,INDEX(Ranks!$1:$1048576,$A459,CQ$1))","v":""},{"$f":"IF($A459=\"N/A\",Ref!$B$36,INDEX(Ranks!$1:$1048576,$A459,CR$1))","v":""},{"$f":"IF($A459=\"N/A\",Ref!$B$36,INDEX(Ranks!$1:$1048576,$A459,CS$1))","v":""},{"$f":"IF($A459=\"N/A\",Ref!$B$36,INDEX(Ranks!$1:$1048576,$A459,CT$1))","v":""},{"$f":"IF($A459=\"N/A\",Ref!$B$36,INDEX(Ranks!$1:$1048576,$A459,CU$1))","v":""},{"$f":"IF($A459=\"N/A\",Ref!$B$36,INDEX(Ranks!$1:$1048576,$A459,CV$1))","v":""},{"$f":"IF($A459=\"N/A\",Ref!$B$36,INDEX(Ranks!$1:$1048576,$A459,CW$1))","v":""},{"$f":"IF($A459=\"N/A\",Ref!$B$36,INDEX(Ranks!$1:$1048576,$A459,CX$1))","v":""},{"$f":"IF($A459=\"N/A\",Ref!$B$36,INDEX(Ranks!$1:$1048576,$A459,CY$1))","v":""},{"$f":"IF($A459=\"N/A\",Ref!$B$36,INDEX(Ranks!$1:$1048576,$A459,CZ$1))","v":""},{"$f":"IF($A459=\"N/A\",Ref!$B$36,INDEX(Ranks!$1:$1048576,$A459,DA$1))","v":""},{"$f":"IF($A459=\"N/A\",Ref!$B$36,INDEX(Ranks!$1:$1048576,$A459,DB$1))","v":""},{"$f":"IF($A459=\"N/A\",Ref!$B$36,INDEX(Ranks!$1:$1048576,$A459,DC$1))","v":""},{"$f":"IF($A459=\"N/A\",Ref!$B$36,INDEX(Ranks!$1:$1048576,$A459,DD$1))","v":""},{"$f":"IF($A459=\"N/A\",Ref!$B$36,INDEX(Ranks!$1:$1048576,$A459,DE$1))","v":""},{"$f":"IF($A459=\"N/A\",Ref!$B$36,INDEX(Ranks!$1:$1048576,$A459,DF$1))","v":""},{"$f":"IF($A459=\"N/A\",Ref!$B$36,INDEX(Ranks!$1:$1048576,$A459,DG$1))","v":""},{"$f":"IF($A459=\"N/A\",Ref!$B$36,INDEX(Ranks!$1:$1048576,$A459,DH$1))","v":""},{"$f":"IF($A459=\"N/A\",Ref!$B$36,INDEX(Ranks!$1:$1048576,$A459,DI$1))","v":""},{"$f":"IF($A459=\"N/A\",Ref!$B$36,INDEX(Ranks!$1:$1048576,$A459,DJ$1))","v":""},{"$f":"IF($A459=\"N/A\",Ref!$B$36,INDEX(Ranks!$1:$1048576,$A459,DK$1))","v":""},{"$f":"IF($A459=\"N/A\",Ref!$B$36,INDEX(Ranks!$1:$1048576,$A459,DL$1))","v":""},{"$f":"IF($A459=\"N/A\",Ref!$B$36,INDEX(Ranks!$1:$1048576,$A459,DM$1))","v":""},{"$f":"IF($A459=\"N/A\",Ref!$B$36,INDEX(Ranks!$1:$1048576,$A459,DN$1))","v":""},{"$f":"IF($A459=\"N/A\",Ref!$B$36,INDEX(Ranks!$1:$1048576,$A459,DO$1))","v":""},{"$f":"IF($A459=\"N/A\",Ref!$B$36,INDEX(Ranks!$1:$1048576,$A459,DP$1))","v":""},{"$f":"IF($A459=\"N/A\",Ref!$B$36,INDEX(Ranks!$1:$1048576,$A459,DQ$1))","v":""},{"$f":"IF($A459=\"N/A\",Ref!$B$36,INDEX(Ranks!$1:$1048576,$A459,DR$1))","v":""},{"$f":"IF($A459=\"N/A\",Ref!$B$36,INDEX(Ranks!$1:$1048576,$A459,DS$1))","v":""},{"$f":"IF($A459=\"N/A\",Ref!$B$36,INDEX(Ranks!$1:$1048576,$A459,DT$1))","v":""},{"$f":"IF($A459=\"N/A\",Ref!$B$36,INDEX(Ranks!$1:$1048576,$A459,DU$1))","v":""},{"$f":"IF($A459=\"N/A\",Ref!$B$36,INDEX(Ranks!$1:$1048576,$A459,DV$1))","v":""},{"$f":"IF($A459=\"N/A\",Ref!$B$36,INDEX(Ranks!$1:$1048576,$A459,DW$1))","v":""},{"$f":"IF($A459=\"N/A\",Ref!$B$36,INDEX(Ranks!$1:$1048576,$A459,DX$1))","v":""},{"$f":"IF($A459=\"N/A\",Ref!$B$36,INDEX(Ranks!$1:$1048576,$A459,DY$1))","v":""},{"$f":"IF($A459=\"N/A\",Ref!$B$36,INDEX(Ranks!$1:$1048576,$A459,DZ$1))","v":""},{"$f":"IF($A459=\"N/A\",Ref!$B$36,INDEX(Ranks!$1:$1048576,$A459,EA$1))","v":""},{"$f":"IF($A459=\"N/A\",Ref!$B$36,INDEX(Ranks!$1:$1048576,$A459,EB$1))","v":""}]
[{"$f":"IFERROR(MATCH('Portfolio Page'!L460,Ranks!L:L,0),\"N/A\")","v":"N/A"},null,{"$f":"IF($A460=\"N/A\",\"\",INDEX(Ranks!$1:$1048576,$A460,C$1))","v":""},{"$f":"IF($A460=\"N/A\",Ref!$B$36,INDEX(Ranks!$1:$1048576,$A460,D$1))","v":""},{"$f":"IF($A460=\"N/A\",Ref!$B$36,INDEX(Ranks!$1:$1048576,$A460,E$1))","v":""},{"$f":"IF($A460=\"N/A\",\"\",INDEX(Ranks!$1:$1048576,$A460,F$1))","v":""},{"$f":"IF($A460=\"N/A\",\"\",INDEX(Ranks!$1:$1048576,$A460,G$1))","v":""},{"$f":"IF($A460=\"N/A\",\"\",INDEX(Ranks!$1:$1048576,$A460,H$1))","v":""},{"$f":"IF($A460=\"N/A\",\"\",INDEX(Ranks!$1:$1048576,$A460,I$1))","v":""},{"$f":"IF($A460=\"N/A\",\"\",INDEX(Ranks!$1:$1048576,$A460,J$1))","v":""},{"$f":"IF($A460=\"N/A\",\"\",INDEX(Ranks!$1:$1048576,$A460,K$1))","v":""},null,{"$f":"IF($A460=\"N/A\",Ref!$B$36,INDEX(Ranks!$1:$1048576,$A460,M$1))","v":""},{"$f":"IF($A460=\"N/A\",Ref!$B$36,INDEX(Ranks!$1:$1048576,$A460,N$1))","v":""},{"$f":"IF($A460=\"N/A\",Ref!$B$36,INDEX(Ranks!$1:$1048576,$A460,O$1))","v":""},{"$f":"IF($A460=\"N/A\",Ref!$B$36,INDEX(Ranks!$1:$1048576,$A460,P$1))","v":""},{"$f":"IF($A460=\"N/A\",Ref!$B$36,INDEX(Ranks!$1:$1048576,$A460,Q$1))","v":""},{"$f":"IF($A460=\"N/A\",Ref!$B$36,INDEX(Ranks!$1:$1048576,$A460,R$1))","v":""},{"$f":"IF($A460=\"N/A\",Ref!$B$36,INDEX(Ranks!$1:$1048576,$A460,S$1))","v":""},{"$f":"IF($A460=\"N/A\",Ref!$B$36,INDEX(Ranks!$1:$1048576,$A460,T$1))","v":""},{"$f":"IF($A460=\"N/A\",Ref!$B$36,INDEX(Ranks!$1:$1048576,$A460,U$1))","v":""},{"$f":"IF($A460=\"N/A\",Ref!$B$36,INDEX(Ranks!$1:$1048576,$A460,V$1))","v":""},{"$f":"IF($A460=\"N/A\",Ref!$B$36,INDEX(Ranks!$1:$1048576,$A460,W$1))","v":""},{"$f":"IF($A460=\"N/A\",Ref!$B$36,INDEX(Ranks!$1:$1048576,$A460,X$1))","v":""},{"$f":"IF($A460=\"N/A\",Ref!$B$36,INDEX(Ranks!$1:$1048576,$A460,Y$1))","v":""},{"$f":"IF($A460=\"N/A\",Ref!$B$36,INDEX(Ranks!$1:$1048576,$A460,Z$1))","v":""},{"$f":"IF($A460=\"N/A\",Ref!$B$36,INDEX(Ranks!$1:$1048576,$A460,AA$1))","v":""},{"$f":"IF($A460=\"N/A\",Ref!$B$36,INDEX(Ranks!$1:$1048576,$A460,AB$1))","v":""},{"$f":"IF($A460=\"N/A\",Ref!$B$36,INDEX(Ranks!$1:$1048576,$A460,AC$1))","v":""},{"$f":"IF($A460=\"N/A\",Ref!$B$36,INDEX(Ranks!$1:$1048576,$A460,AD$1))","v":""},{"$f":"IF($A460=\"N/A\",Ref!$B$36,INDEX(Ranks!$1:$1048576,$A460,AE$1))","v":""},{"$f":"IF($A460=\"N/A\",Ref!$B$36,INDEX(Ranks!$1:$1048576,$A460,AF$1))","v":""},{"$f":"IF($A460=\"N/A\",Ref!$B$36,INDEX(Ranks!$1:$1048576,$A460,AG$1))","v":""},{"$f":"IF($A460=\"N/A\",Ref!$B$36,INDEX(Ranks!$1:$1048576,$A460,AH$1))","v":""},{"$f":"IF($A460=\"N/A\",Ref!$B$36,INDEX(Ranks!$1:$1048576,$A460,AI$1))","v":""},{"$f":"IF($A460=\"N/A\",Ref!$B$36,INDEX(Ranks!$1:$1048576,$A460,AJ$1))","v":""},{"$f":"IF($A460=\"N/A\",Ref!$B$36,INDEX(Ranks!$1:$1048576,$A460,AK$1))","v":""},{"$f":"IF($A460=\"N/A\",Ref!$B$36,INDEX(Ranks!$1:$1048576,$A460,AL$1))","v":""},{"$f":"IF($A460=\"N/A\",Ref!$B$36,INDEX(Ranks!$1:$1048576,$A460,AM$1))","v":""},{"$f":"IF($A460=\"N/A\",Ref!$B$36,INDEX(Ranks!$1:$1048576,$A460,AN$1))","v":""},{"$f":"IF($A460=\"N/A\",Ref!$B$36,INDEX(Ranks!$1:$1048576,$A460,AO$1))","v":""},{"$f":"IF($A460=\"N/A\",Ref!$B$36,INDEX(Ranks!$1:$1048576,$A460,AP$1))","v":""},{"$f":"IF($A460=\"N/A\",Ref!$B$36,INDEX(Ranks!$1:$1048576,$A460,AQ$1))","v":""},{"$f":"IF($A460=\"N/A\",Ref!$B$36,INDEX(Ranks!$1:$1048576,$A460,AR$1))","v":""},{"$f":"IF($A460=\"N/A\",Ref!$B$36,INDEX(Ranks!$1:$1048576,$A460,AS$1))","v":""},{"$f":"IF($A460=\"N/A\",Ref!$B$36,INDEX(Ranks!$1:$1048576,$A460,AT$1))","v":""},{"$f":"IF($A460=\"N/A\",Ref!$B$36,INDEX(Ranks!$1:$1048576,$A460,AU$1))","v":""},{"$f":"IF($A460=\"N/A\",Ref!$B$36,INDEX(Ranks!$1:$1048576,$A460,AV$1))","v":""},{"$f":"IF($A460=\"N/A\",Ref!$B$36,INDEX(Ranks!$1:$1048576,$A460,AW$1))","v":""},{"$f":"IF($A460=\"N/A\",Ref!$B$36,INDEX(Ranks!$1:$1048576,$A460,AX$1))","v":""},{"$f":"IF($A460=\"N/A\",Ref!$B$36,INDEX(Ranks!$1:$1048576,$A460,AY$1))","v":""},{"$f":"IF($A460=\"N/A\",Ref!$B$36,INDEX(Ranks!$1:$1048576,$A460,AZ$1))","v":""},{"$f":"IF($A460=\"N/A\",Ref!$B$36,INDEX(Ranks!$1:$1048576,$A460,BA$1))","v":""},{"$f":"IF($A460=\"N/A\",Ref!$B$36,INDEX(Ranks!$1:$1048576,$A460,BB$1))","v":""},{"$f":"IF($A460=\"N/A\",Ref!$B$36,INDEX(Ranks!$1:$1048576,$A460,BC$1))","v":""},{"$f":"IF($A460=\"N/A\",Ref!$B$36,INDEX(Ranks!$1:$1048576,$A460,BD$1))","v":""},{"$f":"IF($A460=\"N/A\",Ref!$B$36,INDEX(Ranks!$1:$1048576,$A460,BE$1))","v":""},{"$f":"IF($A460=\"N/A\",Ref!$B$36,INDEX(Ranks!$1:$1048576,$A460,BF$1))","v":""},{"$f":"IF($A460=\"N/A\",Ref!$B$36,INDEX(Ranks!$1:$1048576,$A460,BG$1))","v":""},{"$f":"IF($A460=\"N/A\",Ref!$B$36,INDEX(Ranks!$1:$1048576,$A460,BH$1))","v":""},{"$f":"IF($A460=\"N/A\",Ref!$B$36,INDEX(Ranks!$1:$1048576,$A460,BI$1))","v":""},{"$f":"IF($A460=\"N/A\",Ref!$B$36,INDEX(Ranks!$1:$1048576,$A460,BJ$1))","v":""},{"$f":"IF($A460=\"N/A\",Ref!$B$36,INDEX(Ranks!$1:$1048576,$A460,BK$1))","v":""},{"$f":"IF($A460=\"N/A\",Ref!$B$36,INDEX(Ranks!$1:$1048576,$A460,BL$1))","v":""},{"$f":"IF($A460=\"N/A\",Ref!$B$36,INDEX(Ranks!$1:$1048576,$A460,BM$1))","v":""},{"$f":"IF($A460=\"N/A\",Ref!$B$36,INDEX(Ranks!$1:$1048576,$A460,BN$1))","v":""},{"$f":"IF($A460=\"N/A\",Ref!$B$36,INDEX(Ranks!$1:$1048576,$A460,BO$1))","v":""},{"$f":"IF($A460=\"N/A\",Ref!$B$36,INDEX(Ranks!$1:$1048576,$A460,BP$1))","v":""},{"$f":"IF($A460=\"N/A\",Ref!$B$36,INDEX(Ranks!$1:$1048576,$A460,BQ$1))","v":""},{"$f":"IF($A460=\"N/A\",Ref!$B$36,INDEX(Ranks!$1:$1048576,$A460,BR$1))","v":""},{"$f":"IF($A460=\"N/A\",Ref!$B$36,INDEX(Ranks!$1:$1048576,$A460,BS$1))","v":""},{"$f":"IF($A460=\"N/A\",Ref!$B$36,INDEX(Ranks!$1:$1048576,$A460,BT$1))","v":""},{"$f":"IF($A460=\"N/A\",Ref!$B$36,INDEX(Ranks!$1:$1048576,$A460,BU$1))","v":""},{"$f":"IF($A460=\"N/A\",Ref!$B$36,INDEX(Ranks!$1:$1048576,$A460,BV$1))","v":""},{"$f":"IF($A460=\"N/A\",Ref!$B$36,INDEX(Ranks!$1:$1048576,$A460,BW$1))","v":""},{"$f":"IF($A460=\"N/A\",Ref!$B$36,INDEX(Ranks!$1:$1048576,$A460,BX$1))","v":""},{"$f":"IF($A460=\"N/A\",Ref!$B$36,INDEX(Ranks!$1:$1048576,$A460,BY$1))","v":""},{"$f":"IF($A460=\"N/A\",Ref!$B$36,INDEX(Ranks!$1:$1048576,$A460,BZ$1))","v":""},{"$f":"IF($A460=\"N/A\",Ref!$B$36,INDEX(Ranks!$1:$1048576,$A460,CA$1))","v":""},{"$f":"IF($A460=\"N/A\",Ref!$B$36,INDEX(Ranks!$1:$1048576,$A460,CB$1))","v":""},{"$f":"IF($A460=\"N/A\",Ref!$B$36,INDEX(Ranks!$1:$1048576,$A460,CC$1))","v":""},{"$f":"IF($A460=\"N/A\",Ref!$B$36,INDEX(Ranks!$1:$1048576,$A460,CD$1))","v":""},{"$f":"IF($A460=\"N/A\",Ref!$B$36,INDEX(Ranks!$1:$1048576,$A460,CE$1))","v":""},{"$f":"IF($A460=\"N/A\",Ref!$B$36,INDEX(Ranks!$1:$1048576,$A460,CF$1))","v":""},{"$f":"IF($A460=\"N/A\",Ref!$B$36,INDEX(Ranks!$1:$1048576,$A460,CG$1))","v":""},{"$f":"IF($A460=\"N/A\",Ref!$B$36,INDEX(Ranks!$1:$1048576,$A460,CH$1))","v":""},{"$f":"IF($A460=\"N/A\",Ref!$B$36,INDEX(Ranks!$1:$1048576,$A460,CI$1))","v":""},{"$f":"IF($A460=\"N/A\",Ref!$B$36,INDEX(Ranks!$1:$1048576,$A460,CJ$1))","v":""},{"$f":"IF($A460=\"N/A\",Ref!$B$36,INDEX(Ranks!$1:$1048576,$A460,CK$1))","v":""},{"$f":"IF($A460=\"N/A\",Ref!$B$36,INDEX(Ranks!$1:$1048576,$A460,CL$1))","v":""},{"$f":"IF($A460=\"N/A\",Ref!$B$36,INDEX(Ranks!$1:$1048576,$A460,CM$1))","v":""},{"$f":"IF($A460=\"N/A\",Ref!$B$36,INDEX(Ranks!$1:$1048576,$A460,CN$1))","v":""},{"$f":"IF($A460=\"N/A\",Ref!$B$36,INDEX(Ranks!$1:$1048576,$A460,CO$1))","v":""},{"$f":"IF($A460=\"N/A\",Ref!$B$36,INDEX(Ranks!$1:$1048576,$A460,CP$1))","v":""},{"$f":"IF($A460=\"N/A\",Ref!$B$36,INDEX(Ranks!$1:$1048576,$A460,CQ$1))","v":""},{"$f":"IF($A460=\"N/A\",Ref!$B$36,INDEX(Ranks!$1:$1048576,$A460,CR$1))","v":""},{"$f":"IF($A460=\"N/A\",Ref!$B$36,INDEX(Ranks!$1:$1048576,$A460,CS$1))","v":""},{"$f":"IF($A460=\"N/A\",Ref!$B$36,INDEX(Ranks!$1:$1048576,$A460,CT$1))","v":""},{"$f":"IF($A460=\"N/A\",Ref!$B$36,INDEX(Ranks!$1:$1048576,$A460,CU$1))","v":""},{"$f":"IF($A460=\"N/A\",Ref!$B$36,INDEX(Ranks!$1:$1048576,$A460,CV$1))","v":""},{"$f":"IF($A460=\"N/A\",Ref!$B$36,INDEX(Ranks!$1:$1048576,$A460,CW$1))","v":""},{"$f":"IF($A460=\"N/A\",Ref!$B$36,INDEX(Ranks!$1:$1048576,$A460,CX$1))","v":""},{"$f":"IF($A460=\"N/A\",Ref!$B$36,INDEX(Ranks!$1:$1048576,$A460,CY$1))","v":""},{"$f":"IF($A460=\"N/A\",Ref!$B$36,INDEX(Ranks!$1:$1048576,$A460,CZ$1))","v":""},{"$f":"IF($A460=\"N/A\",Ref!$B$36,INDEX(Ranks!$1:$1048576,$A460,DA$1))","v":""},{"$f":"IF($A460=\"N/A\",Ref!$B$36,INDEX(Ranks!$1:$1048576,$A460,DB$1))","v":""},{"$f":"IF($A460=\"N/A\",Ref!$B$36,INDEX(Ranks!$1:$1048576,$A460,DC$1))","v":""},{"$f":"IF($A460=\"N/A\",Ref!$B$36,INDEX(Ranks!$1:$1048576,$A460,DD$1))","v":""},{"$f":"IF($A460=\"N/A\",Ref!$B$36,INDEX(Ranks!$1:$1048576,$A460,DE$1))","v":""},{"$f":"IF($A460=\"N/A\",Ref!$B$36,INDEX(Ranks!$1:$1048576,$A460,DF$1))","v":""},{"$f":"IF($A460=\"N/A\",Ref!$B$36,INDEX(Ranks!$1:$1048576,$A460,DG$1))","v":""},{"$f":"IF($A460=\"N/A\",Ref!$B$36,INDEX(Ranks!$1:$1048576,$A460,DH$1))","v":""},{"$f":"IF($A460=\"N/A\",Ref!$B$36,INDEX(Ranks!$1:$1048576,$A460,DI$1))","v":""},{"$f":"IF($A460=\"N/A\",Ref!$B$36,INDEX(Ranks!$1:$1048576,$A460,DJ$1))","v":""},{"$f":"IF($A460=\"N/A\",Ref!$B$36,INDEX(Ranks!$1:$1048576,$A460,DK$1))","v":""},{"$f":"IF($A460=\"N/A\",Ref!$B$36,INDEX(Ranks!$1:$1048576,$A460,DL$1))","v":""},{"$f":"IF($A460=\"N/A\",Ref!$B$36,INDEX(Ranks!$1:$1048576,$A460,DM$1))","v":""},{"$f":"IF($A460=\"N/A\",Ref!$B$36,INDEX(Ranks!$1:$1048576,$A460,DN$1))","v":""},{"$f":"IF($A460=\"N/A\",Ref!$B$36,INDEX(Ranks!$1:$1048576,$A460,DO$1))","v":""},{"$f":"IF($A460=\"N/A\",Ref!$B$36,INDEX(Ranks!$1:$1048576,$A460,DP$1))","v":""},{"$f":"IF($A460=\"N/A\",Ref!$B$36,INDEX(Ranks!$1:$1048576,$A460,DQ$1))","v":""},{"$f":"IF($A460=\"N/A\",Ref!$B$36,INDEX(Ranks!$1:$1048576,$A460,DR$1))","v":""},{"$f":"IF($A460=\"N/A\",Ref!$B$36,INDEX(Ranks!$1:$1048576,$A460,DS$1))","v":""},{"$f":"IF($A460=\"N/A\",Ref!$B$36,INDEX(Ranks!$1:$1048576,$A460,DT$1))","v":""},{"$f":"IF($A460=\"N/A\",Ref!$B$36,INDEX(Ranks!$1:$1048576,$A460,DU$1))","v":""},{"$f":"IF($A460=\"N/A\",Ref!$B$36,INDEX(Ranks!$1:$1048576,$A460,DV$1))","v":""},{"$f":"IF($A460=\"N/A\",Ref!$B$36,INDEX(Ranks!$1:$1048576,$A460,DW$1))","v":""},{"$f":"IF($A460=\"N/A\",Ref!$B$36,INDEX(Ranks!$1:$1048576,$A460,DX$1))","v":""},{"$f":"IF($A460=\"N/A\",Ref!$B$36,INDEX(Ranks!$1:$1048576,$A460,DY$1))","v":""},{"$f":"IF($A460=\"N/A\",Ref!$B$36,INDEX(Ranks!$1:$1048576,$A460,DZ$1))","v":""},{"$f":"IF($A460=\"N/A\",Ref!$B$36,INDEX(Ranks!$1:$1048576,$A460,EA$1))","v":""},{"$f":"IF($A460=\"N/A\",Ref!$B$36,INDEX(Ranks!$1:$1048576,$A460,EB$1))","v":""}]
[{"$f":"IFERROR(MATCH('Portfolio Page'!L461,Ranks!L:L,0),\"N/A\")","v":"N/A"},null,{"$f":"IF($A461=\"N/A\",\"\",INDEX(Ranks!$1:$1048576,$A461,C$1))","v":""},{"$f":"IF($A461=\"N/A\",Ref!$B$36,INDEX(Ranks!$1:$1048576,$A461,D$1))","v":""},{"$f":"IF($A461=\"N/A\",Ref!$B$36,INDEX(Ranks!$1:$1048576,$A461,E$1))","v":""},{"$f":"IF($A461=\"N/A\",\"\",INDEX(Ranks!$1:$1048576,$A461,F$1))","v":""},{"$f":"IF($A461=\"N/A\",\"\",INDEX(Ranks!$1:$1048576,$A461,G$1))","v":""},{"$f":"IF($A461=\"N/A\",\"\",INDEX(Ranks!$1:$1048576,$A461,H$1))","v":""},{"$f":"IF($A461=\"N/A\",\"\",INDEX(Ranks!$1:$1048576,$A461,I$1))","v":""},{"$f":"IF($A461=\"N/A\",\"\",INDEX(Ranks!$1:$1048576,$A461,J$1))","v":""},{"$f":"IF($A461=\"N/A\",\"\",INDEX(Ranks!$1:$1048576,$A461,K$1))","v":""},null,{"$f":"IF($A461=\"N/A\",Ref!$B$36,INDEX(Ranks!$1:$1048576,$A461,M$1))","v":""},{"$f":"IF($A461=\"N/A\",Ref!$B$36,INDEX(Ranks!$1:$1048576,$A461,N$1))","v":""},{"$f":"IF($A461=\"N/A\",Ref!$B$36,INDEX(Ranks!$1:$1048576,$A461,O$1))","v":""},{"$f":"IF($A461=\"N/A\",Ref!$B$36,INDEX(Ranks!$1:$1048576,$A461,P$1))","v":""},{"$f":"IF($A461=\"N/A\",Ref!$B$36,INDEX(Ranks!$1:$1048576,$A461,Q$1))","v":""},{"$f":"IF($A461=\"N/A\",Ref!$B$36,INDEX(Ranks!$1:$1048576,$A461,R$1))","v":""},{"$f":"IF($A461=\"N/A\",Ref!$B$36,INDEX(Ranks!$1:$1048576,$A461,S$1))","v":""},{"$f":"IF($A461=\"N/A\",Ref!$B$36,INDEX(Ranks!$1:$1048576,$A461,T$1))","v":""},{"$f":"IF($A461=\"N/A\",Ref!$B$36,INDEX(Ranks!$1:$1048576,$A461,U$1))","v":""},{"$f":"IF($A461=\"N/A\",Ref!$B$36,INDEX(Ranks!$1:$1048576,$A461,V$1))","v":""},{"$f":"IF($A461=\"N/A\",Ref!$B$36,INDEX(Ranks!$1:$1048576,$A461,W$1))","v":""},{"$f":"IF($A461=\"N/A\",Ref!$B$36,INDEX(Ranks!$1:$1048576,$A461,X$1))","v":""},{"$f":"IF($A461=\"N/A\",Ref!$B$36,INDEX(Ranks!$1:$1048576,$A461,Y$1))","v":""},{"$f":"IF($A461=\"N/A\",Ref!$B$36,INDEX(Ranks!$1:$1048576,$A461,Z$1))","v":""},{"$f":"IF($A461=\"N/A\",Ref!$B$36,INDEX(Ranks!$1:$1048576,$A461,AA$1))","v":""},{"$f":"IF($A461=\"N/A\",Ref!$B$36,INDEX(Ranks!$1:$1048576,$A461,AB$1))","v":""},{"$f":"IF($A461=\"N/A\",Ref!$B$36,INDEX(Ranks!$1:$1048576,$A461,AC$1))","v":""},{"$f":"IF($A461=\"N/A\",Ref!$B$36,INDEX(Ranks!$1:$1048576,$A461,AD$1))","v":""},{"$f":"IF($A461=\"N/A\",Ref!$B$36,INDEX(Ranks!$1:$1048576,$A461,AE$1))","v":""},{"$f":"IF($A461=\"N/A\",Ref!$B$36,INDEX(Ranks!$1:$1048576,$A461,AF$1))","v":""},{"$f":"IF($A461=\"N/A\",Ref!$B$36,INDEX(Ranks!$1:$1048576,$A461,AG$1))","v":""},{"$f":"IF($A461=\"N/A\",Ref!$B$36,INDEX(Ranks!$1:$1048576,$A461,AH$1))","v":""},{"$f":"IF($A461=\"N/A\",Ref!$B$36,INDEX(Ranks!$1:$1048576,$A461,AI$1))","v":""},{"$f":"IF($A461=\"N/A\",Ref!$B$36,INDEX(Ranks!$1:$1048576,$A461,AJ$1))","v":""},{"$f":"IF($A461=\"N/A\",Ref!$B$36,INDEX(Ranks!$1:$1048576,$A461,AK$1))","v":""},{"$f":"IF($A461=\"N/A\",Ref!$B$36,INDEX(Ranks!$1:$1048576,$A461,AL$1))","v":""},{"$f":"IF($A461=\"N/A\",Ref!$B$36,INDEX(Ranks!$1:$1048576,$A461,AM$1))","v":""},{"$f":"IF($A461=\"N/A\",Ref!$B$36,INDEX(Ranks!$1:$1048576,$A461,AN$1))","v":""},{"$f":"IF($A461=\"N/A\",Ref!$B$36,INDEX(Ranks!$1:$1048576,$A461,AO$1))","v":""},{"$f":"IF($A461=\"N/A\",Ref!$B$36,INDEX(Ranks!$1:$1048576,$A461,AP$1))","v":""},{"$f":"IF($A461=\"N/A\",Ref!$B$36,INDEX(Ranks!$1:$1048576,$A461,AQ$1))","v":""},{"$f":"IF($A461=\"N/A\",Ref!$B$36,INDEX(Ranks!$1:$1048576,$A461,AR$1))","v":""},{"$f":"IF($A461=\"N/A\",Ref!$B$36,INDEX(Ranks!$1:$1048576,$A461,AS$1))","v":""},{"$f":"IF($A461=\"N/A\",Ref!$B$36,INDEX(Ranks!$1:$1048576,$A461,AT$1))","v":""},{"$f":"IF($A461=\"N/A\",Ref!$B$36,INDEX(Ranks!$1:$1048576,$A461,AU$1))","v":""},{"$f":"IF($A461=\"N/A\",Ref!$B$36,INDEX(Ranks!$1:$1048576,$A461,AV$1))","v":""},{"$f":"IF($A461=\"N/A\",Ref!$B$36,INDEX(Ranks!$1:$1048576,$A461,AW$1))","v":""},{"$f":"IF($A461=\"N/A\",Ref!$B$36,INDEX(Ranks!$1:$1048576,$A461,AX$1))","v":""},{"$f":"IF($A461=\"N/A\",Ref!$B$36,INDEX(Ranks!$1:$1048576,$A461,AY$1))","v":""},{"$f":"IF($A461=\"N/A\",Ref!$B$36,INDEX(Ranks!$1:$1048576,$A461,AZ$1))","v":""},{"$f":"IF($A461=\"N/A\",Ref!$B$36,INDEX(Ranks!$1:$1048576,$A461,BA$1))","v":""},{"$f":"IF($A461=\"N/A\",Ref!$B$36,INDEX(Ranks!$1:$1048576,$A461,BB$1))","v":""},{"$f":"IF($A461=\"N/A\",Ref!$B$36,INDEX(Ranks!$1:$1048576,$A461,BC$1))","v":""},{"$f":"IF($A461=\"N/A\",Ref!$B$36,INDEX(Ranks!$1:$1048576,$A461,BD$1))","v":""},{"$f":"IF($A461=\"N/A\",Ref!$B$36,INDEX(Ranks!$1:$1048576,$A461,BE$1))","v":""},{"$f":"IF($A461=\"N/A\",Ref!$B$36,INDEX(Ranks!$1:$1048576,$A461,BF$1))","v":""},{"$f":"IF($A461=\"N/A\",Ref!$B$36,INDEX(Ranks!$1:$1048576,$A461,BG$1))","v":""},{"$f":"IF($A461=\"N/A\",Ref!$B$36,INDEX(Ranks!$1:$1048576,$A461,BH$1))","v":""},{"$f":"IF($A461=\"N/A\",Ref!$B$36,INDEX(Ranks!$1:$1048576,$A461,BI$1))","v":""},{"$f":"IF($A461=\"N/A\",Ref!$B$36,INDEX(Ranks!$1:$1048576,$A461,BJ$1))","v":""},{"$f":"IF($A461=\"N/A\",Ref!$B$36,INDEX(Ranks!$1:$1048576,$A461,BK$1))","v":""},{"$f":"IF($A461=\"N/A\",Ref!$B$36,INDEX(Ranks!$1:$1048576,$A461,BL$1))","v":""},{"$f":"IF($A461=\"N/A\",Ref!$B$36,INDEX(Ranks!$1:$1048576,$A461,BM$1))","v":""},{"$f":"IF($A461=\"N/A\",Ref!$B$36,INDEX(Ranks!$1:$1048576,$A461,BN$1))","v":""},{"$f":"IF($A461=\"N/A\",Ref!$B$36,INDEX(Ranks!$1:$1048576,$A461,BO$1))","v":""},{"$f":"IF($A461=\"N/A\",Ref!$B$36,INDEX(Ranks!$1:$1048576,$A461,BP$1))","v":""},{"$f":"IF($A461=\"N/A\",Ref!$B$36,INDEX(Ranks!$1:$1048576,$A461,BQ$1))","v":""},{"$f":"IF($A461=\"N/A\",Ref!$B$36,INDEX(Ranks!$1:$1048576,$A461,BR$1))","v":""},{"$f":"IF($A461=\"N/A\",Ref!$B$36,INDEX(Ranks!$1:$1048576,$A461,BS$1))","v":""},{"$f":"IF($A461=\"N/A\",Ref!$B$36,INDEX(Ranks!$1:$1048576,$A461,BT$1))","v":""},{"$f":"IF($A461=\"N/A\",Ref!$B$36,INDEX(Ranks!$1:$1048576,$A461,BU$1))","v":""},{"$f":"IF($A461=\"N/A\",Ref!$B$36,INDEX(Ranks!$1:$1048576,$A461,BV$1))","v":""},{"$f":"IF($A461=\"N/A\",Ref!$B$36,INDEX(Ranks!$1:$1048576,$A461,BW$1))","v":""},{"$f":"IF($A461=\"N/A\",Ref!$B$36,INDEX(Ranks!$1:$1048576,$A461,BX$1))","v":""},{"$f":"IF($A461=\"N/A\",Ref!$B$36,INDEX(Ranks!$1:$1048576,$A461,BY$1))","v":""},{"$f":"IF($A461=\"N/A\",Ref!$B$36,INDEX(Ranks!$1:$1048576,$A461,BZ$1))","v":""},{"$f":"IF($A461=\"N/A\",Ref!$B$36,INDEX(Ranks!$1:$1048576,$A461,CA$1))","v":""},{"$f":"IF($A461=\"N/A\",Ref!$B$36,INDEX(Ranks!$1:$1048576,$A461,CB$1))","v":""},{"$f":"IF($A461=\"N/A\",Ref!$B$36,INDEX(Ranks!$1:$1048576,$A461,CC$1))","v":""},{"$f":"IF($A461=\"N/A\",Ref!$B$36,INDEX(Ranks!$1:$1048576,$A461,CD$1))","v":""},{"$f":"IF($A461=\"N/A\",Ref!$B$36,INDEX(Ranks!$1:$1048576,$A461,CE$1))","v":""},{"$f":"IF($A461=\"N/A\",Ref!$B$36,INDEX(Ranks!$1:$1048576,$A461,CF$1))","v":""},{"$f":"IF($A461=\"N/A\",Ref!$B$36,INDEX(Ranks!$1:$1048576,$A461,CG$1))","v":""},{"$f":"IF($A461=\"N/A\",Ref!$B$36,INDEX(Ranks!$1:$1048576,$A461,CH$1))","v":""},{"$f":"IF($A461=\"N/A\",Ref!$B$36,INDEX(Ranks!$1:$1048576,$A461,CI$1))","v":""},{"$f":"IF($A461=\"N/A\",Ref!$B$36,INDEX(Ranks!$1:$1048576,$A461,CJ$1))","v":""},{"$f":"IF($A461=\"N/A\",Ref!$B$36,INDEX(Ranks!$1:$1048576,$A461,CK$1))","v":""},{"$f":"IF($A461=\"N/A\",Ref!$B$36,INDEX(Ranks!$1:$1048576,$A461,CL$1))","v":""},{"$f":"IF($A461=\"N/A\",Ref!$B$36,INDEX(Ranks!$1:$1048576,$A461,CM$1))","v":""},{"$f":"IF($A461=\"N/A\",Ref!$B$36,INDEX(Ranks!$1:$1048576,$A461,CN$1))","v":""},{"$f":"IF($A461=\"N/A\",Ref!$B$36,INDEX(Ranks!$1:$1048576,$A461,CO$1))","v":""},{"$f":"IF($A461=\"N/A\",Ref!$B$36,INDEX(Ranks!$1:$1048576,$A461,CP$1))","v":""},{"$f":"IF($A461=\"N/A\",Ref!$B$36,INDEX(Ranks!$1:$1048576,$A461,CQ$1))","v":""},{"$f":"IF($A461=\"N/A\",Ref!$B$36,INDEX(Ranks!$1:$1048576,$A461,CR$1))","v":""},{"$f":"IF($A461=\"N/A\",Ref!$B$36,INDEX(Ranks!$1:$1048576,$A461,CS$1))","v":""},{"$f":"IF($A461=\"N/A\",Ref!$B$36,INDEX(Ranks!$1:$1048576,$A461,CT$1))","v":""},{"$f":"IF($A461=\"N/A\",Ref!$B$36,INDEX(Ranks!$1:$1048576,$A461,CU$1))","v":""},{"$f":"IF($A461=\"N/A\",Ref!$B$36,INDEX(Ranks!$1:$1048576,$A461,CV$1))","v":""},{"$f":"IF($A461=\"N/A\",Ref!$B$36,INDEX(Ranks!$1:$1048576,$A461,CW$1))","v":""},{"$f":"IF($A461=\"N/A\",Ref!$B$36,INDEX(Ranks!$1:$1048576,$A461,CX$1))","v":""},{"$f":"IF($A461=\"N/A\",Ref!$B$36,INDEX(Ranks!$1:$1048576,$A461,CY$1))","v":""},{"$f":"IF($A461=\"N/A\",Ref!$B$36,INDEX(Ranks!$1:$1048576,$A461,CZ$1))","v":""},{"$f":"IF($A461=\"N/A\",Ref!$B$36,INDEX(Ranks!$1:$1048576,$A461,DA$1))","v":""},{"$f":"IF($A461=\"N/A\",Ref!$B$36,INDEX(Ranks!$1:$1048576,$A461,DB$1))","v":""},{"$f":"IF($A461=\"N/A\",Ref!$B$36,INDEX(Ranks!$1:$1048576,$A461,DC$1))","v":""},{"$f":"IF($A461=\"N/A\",Ref!$B$36,INDEX(Ranks!$1:$1048576,$A461,DD$1))","v":""},{"$f":"IF($A461=\"N/A\",Ref!$B$36,INDEX(Ranks!$1:$1048576,$A461,DE$1))","v":""},{"$f":"IF($A461=\"N/A\",Ref!$B$36,INDEX(Ranks!$1:$1048576,$A461,DF$1))","v":""},{"$f":"IF($A461=\"N/A\",Ref!$B$36,INDEX(Ranks!$1:$1048576,$A461,DG$1))","v":""},{"$f":"IF($A461=\"N/A\",Ref!$B$36,INDEX(Ranks!$1:$1048576,$A461,DH$1))","v":""},{"$f":"IF($A461=\"N/A\",Ref!$B$36,INDEX(Ranks!$1:$1048576,$A461,DI$1))","v":""},{"$f":"IF($A461=\"N/A\",Ref!$B$36,INDEX(Ranks!$1:$1048576,$A461,DJ$1))","v":""},{"$f":"IF($A461=\"N/A\",Ref!$B$36,INDEX(Ranks!$1:$1048576,$A461,DK$1))","v":""},{"$f":"IF($A461=\"N/A\",Ref!$B$36,INDEX(Ranks!$1:$1048576,$A461,DL$1))","v":""},{"$f":"IF($A461=\"N/A\",Ref!$B$36,INDEX(Ranks!$1:$1048576,$A461,DM$1))","v":""},{"$f":"IF($A461=\"N/A\",Ref!$B$36,INDEX(Ranks!$1:$1048576,$A461,DN$1))","v":""},{"$f":"IF($A461=\"N/A\",Ref!$B$36,INDEX(Ranks!$1:$1048576,$A461,DO$1))","v":""},{"$f":"IF($A461=\"N/A\",Ref!$B$36,INDEX(Ranks!$1:$1048576,$A461,DP$1))","v":""},{"$f":"IF($A461=\"N/A\",Ref!$B$36,INDEX(Ranks!$1:$1048576,$A461,DQ$1))","v":""},{"$f":"IF($A461=\"N/A\",Ref!$B$36,INDEX(Ranks!$1:$1048576,$A461,DR$1))","v":""},{"$f":"IF($A461=\"N/A\",Ref!$B$36,INDEX(Ranks!$1:$1048576,$A461,DS$1))","v":""},{"$f":"IF($A461=\"N/A\",Ref!$B$36,INDEX(Ranks!$1:$1048576,$A461,DT$1))","v":""},{"$f":"IF($A461=\"N/A\",Ref!$B$36,INDEX(Ranks!$1:$1048576,$A461,DU$1))","v":""},{"$f":"IF($A461=\"N/A\",Ref!$B$36,INDEX(Ranks!$1:$1048576,$A461,DV$1))","v":""},{"$f":"IF($A461=\"N/A\",Ref!$B$36,INDEX(Ranks!$1:$1048576,$A461,DW$1))","v":""},{"$f":"IF($A461=\"N/A\",Ref!$B$36,INDEX(Ranks!$1:$1048576,$A461,DX$1))","v":""},{"$f":"IF($A461=\"N/A\",Ref!$B$36,INDEX(Ranks!$1:$1048576,$A461,DY$1))","v":""},{"$f":"IF($A461=\"N/A\",Ref!$B$36,INDEX(Ranks!$1:$1048576,$A461,DZ$1))","v":""},{"$f":"IF($A461=\"N/A\",Ref!$B$36,INDEX(Ranks!$1:$1048576,$A461,EA$1))","v":""},{"$f":"IF($A461=\"N/A\",Ref!$B$36,INDEX(Ranks!$1:$1048576,$A461,EB$1))","v":""}]
[{"$f":"IFERROR(MATCH('Portfolio Page'!L462,Ranks!L:L,0),\"N/A\")","v":"N/A"},null,{"$f":"IF($A462=\"N/A\",\"\",INDEX(Ranks!$1:$1048576,$A462,C$1))","v":""},{"$f":"IF($A462=\"N/A\",Ref!$B$36,INDEX(Ranks!$1:$1048576,$A462,D$1))","v":""},{"$f":"IF($A462=\"N/A\",Ref!$B$36,INDEX(Ranks!$1:$1048576,$A462,E$1))","v":""},{"$f":"IF($A462=\"N/A\",\"\",INDEX(Ranks!$1:$1048576,$A462,F$1))","v":""},{"$f":"IF($A462=\"N/A\",\"\",INDEX(Ranks!$1:$1048576,$A462,G$1))","v":""},{"$f":"IF($A462=\"N/A\",\"\",INDEX(Ranks!$1:$1048576,$A462,H$1))","v":""},{"$f":"IF($A462=\"N/A\",\"\",INDEX(Ranks!$1:$1048576,$A462,I$1))","v":""},{"$f":"IF($A462=\"N/A\",\"\",INDEX(Ranks!$1:$1048576,$A462,J$1))","v":""},{"$f":"IF($A462=\"N/A\",\"\",INDEX(Ranks!$1:$1048576,$A462,K$1))","v":""},null,{"$f":"IF($A462=\"N/A\",Ref!$B$36,INDEX(Ranks!$1:$1048576,$A462,M$1))","v":""},{"$f":"IF($A462=\"N/A\",Ref!$B$36,INDEX(Ranks!$1:$1048576,$A462,N$1))","v":""},{"$f":"IF($A462=\"N/A\",Ref!$B$36,INDEX(Ranks!$1:$1048576,$A462,O$1))","v":""},{"$f":"IF($A462=\"N/A\",Ref!$B$36,INDEX(Ranks!$1:$1048576,$A462,P$1))","v":""},{"$f":"IF($A462=\"N/A\",Ref!$B$36,INDEX(Ranks!$1:$1048576,$A462,Q$1))","v":""},{"$f":"IF($A462=\"N/A\",Ref!$B$36,INDEX(Ranks!$1:$1048576,$A462,R$1))","v":""},{"$f":"IF($A462=\"N/A\",Ref!$B$36,INDEX(Ranks!$1:$1048576,$A462,S$1))","v":""},{"$f":"IF($A462=\"N/A\",Ref!$B$36,INDEX(Ranks!$1:$1048576,$A462,T$1))","v":""},{"$f":"IF($A462=\"N/A\",Ref!$B$36,INDEX(Ranks!$1:$1048576,$A462,U$1))","v":""},{"$f":"IF($A462=\"N/A\",Ref!$B$36,INDEX(Ranks!$1:$1048576,$A462,V$1))","v":""},{"$f":"IF($A462=\"N/A\",Ref!$B$36,INDEX(Ranks!$1:$1048576,$A462,W$1))","v":""},{"$f":"IF($A462=\"N/A\",Ref!$B$36,INDEX(Ranks!$1:$1048576,$A462,X$1))","v":""},{"$f":"IF($A462=\"N/A\",Ref!$B$36,INDEX(Ranks!$1:$1048576,$A462,Y$1))","v":""},{"$f":"IF($A462=\"N/A\",Ref!$B$36,INDEX(Ranks!$1:$1048576,$A462,Z$1))","v":""},{"$f":"IF($A462=\"N/A\",Ref!$B$36,INDEX(Ranks!$1:$1048576,$A462,AA$1))","v":""},{"$f":"IF($A462=\"N/A\",Ref!$B$36,INDEX(Ranks!$1:$1048576,$A462,AB$1))","v":""},{"$f":"IF($A462=\"N/A\",Ref!$B$36,INDEX(Ranks!$1:$1048576,$A462,AC$1))","v":""},{"$f":"IF($A462=\"N/A\",Ref!$B$36,INDEX(Ranks!$1:$1048576,$A462,AD$1))","v":""},{"$f":"IF($A462=\"N/A\",Ref!$B$36,INDEX(Ranks!$1:$1048576,$A462,AE$1))","v":""},{"$f":"IF($A462=\"N/A\",Ref!$B$36,INDEX(Ranks!$1:$1048576,$A462,AF$1))","v":""},{"$f":"IF($A462=\"N/A\",Ref!$B$36,INDEX(Ranks!$1:$1048576,$A462,AG$1))","v":""},{"$f":"IF($A462=\"N/A\",Ref!$B$36,INDEX(Ranks!$1:$1048576,$A462,AH$1))","v":""},{"$f":"IF($A462=\"N/A\",Ref!$B$36,INDEX(Ranks!$1:$1048576,$A462,AI$1))","v":""},{"$f":"IF($A462=\"N/A\",Ref!$B$36,INDEX(Ranks!$1:$1048576,$A462,AJ$1))","v":""},{"$f":"IF($A462=\"N/A\",Ref!$B$36,INDEX(Ranks!$1:$1048576,$A462,AK$1))","v":""},{"$f":"IF($A462=\"N/A\",Ref!$B$36,INDEX(Ranks!$1:$1048576,$A462,AL$1))","v":""},{"$f":"IF($A462=\"N/A\",Ref!$B$36,INDEX(Ranks!$1:$1048576,$A462,AM$1))","v":""},{"$f":"IF($A462=\"N/A\",Ref!$B$36,INDEX(Ranks!$1:$1048576,$A462,AN$1))","v":""},{"$f":"IF($A462=\"N/A\",Ref!$B$36,INDEX(Ranks!$1:$1048576,$A462,AO$1))","v":""},{"$f":"IF($A462=\"N/A\",Ref!$B$36,INDEX(Ranks!$1:$1048576,$A462,AP$1))","v":""},{"$f":"IF($A462=\"N/A\",Ref!$B$36,INDEX(Ranks!$1:$1048576,$A462,AQ$1))","v":""},{"$f":"IF($A462=\"N/A\",Ref!$B$36,INDEX(Ranks!$1:$1048576,$A462,AR$1))","v":""},{"$f":"IF($A462=\"N/A\",Ref!$B$36,INDEX(Ranks!$1:$1048576,$A462,AS$1))","v":""},{"$f":"IF($A462=\"N/A\",Ref!$B$36,INDEX(Ranks!$1:$1048576,$A462,AT$1))","v":""},{"$f":"IF($A462=\"N/A\",Ref!$B$36,INDEX(Ranks!$1:$1048576,$A462,AU$1))","v":""},{"$f":"IF($A462=\"N/A\",Ref!$B$36,INDEX(Ranks!$1:$1048576,$A462,AV$1))","v":""},{"$f":"IF($A462=\"N/A\",Ref!$B$36,INDEX(Ranks!$1:$1048576,$A462,AW$1))","v":""},{"$f":"IF($A462=\"N/A\",Ref!$B$36,INDEX(Ranks!$1:$1048576,$A462,AX$1))","v":""},{"$f":"IF($A462=\"N/A\",Ref!$B$36,INDEX(Ranks!$1:$1048576,$A462,AY$1))","v":""},{"$f":"IF($A462=\"N/A\",Ref!$B$36,INDEX(Ranks!$1:$1048576,$A462,AZ$1))","v":""},{"$f":"IF($A462=\"N/A\",Ref!$B$36,INDEX(Ranks!$1:$1048576,$A462,BA$1))","v":""},{"$f":"IF($A462=\"N/A\",Ref!$B$36,INDEX(Ranks!$1:$1048576,$A462,BB$1))","v":""},{"$f":"IF($A462=\"N/A\",Ref!$B$36,INDEX(Ranks!$1:$1048576,$A462,BC$1))","v":""},{"$f":"IF($A462=\"N/A\",Ref!$B$36,INDEX(Ranks!$1:$1048576,$A462,BD$1))","v":""},{"$f":"IF($A462=\"N/A\",Ref!$B$36,INDEX(Ranks!$1:$1048576,$A462,BE$1))","v":""},{"$f":"IF($A462=\"N/A\",Ref!$B$36,INDEX(Ranks!$1:$1048576,$A462,BF$1))","v":""},{"$f":"IF($A462=\"N/A\",Ref!$B$36,INDEX(Ranks!$1:$1048576,$A462,BG$1))","v":""},{"$f":"IF($A462=\"N/A\",Ref!$B$36,INDEX(Ranks!$1:$1048576,$A462,BH$1))","v":""},{"$f":"IF($A462=\"N/A\",Ref!$B$36,INDEX(Ranks!$1:$1048576,$A462,BI$1))","v":""},{"$f":"IF($A462=\"N/A\",Ref!$B$36,INDEX(Ranks!$1:$1048576,$A462,BJ$1))","v":""},{"$f":"IF($A462=\"N/A\",Ref!$B$36,INDEX(Ranks!$1:$1048576,$A462,BK$1))","v":""},{"$f":"IF($A462=\"N/A\",Ref!$B$36,INDEX(Ranks!$1:$1048576,$A462,BL$1))","v":""},{"$f":"IF($A462=\"N/A\",Ref!$B$36,INDEX(Ranks!$1:$1048576,$A462,BM$1))","v":""},{"$f":"IF($A462=\"N/A\",Ref!$B$36,INDEX(Ranks!$1:$1048576,$A462,BN$1))","v":""},{"$f":"IF($A462=\"N/A\",Ref!$B$36,INDEX(Ranks!$1:$1048576,$A462,BO$1))","v":""},{"$f":"IF($A462=\"N/A\",Ref!$B$36,INDEX(Ranks!$1:$1048576,$A462,BP$1))","v":""},{"$f":"IF($A462=\"N/A\",Ref!$B$36,INDEX(Ranks!$1:$1048576,$A462,BQ$1))","v":""},{"$f":"IF($A462=\"N/A\",Ref!$B$36,INDEX(Ranks!$1:$1048576,$A462,BR$1))","v":""},{"$f":"IF($A462=\"N/A\",Ref!$B$36,INDEX(Ranks!$1:$1048576,$A462,BS$1))","v":""},{"$f":"IF($A462=\"N/A\",Ref!$B$36,INDEX(Ranks!$1:$1048576,$A462,BT$1))","v":""},{"$f":"IF($A462=\"N/A\",Ref!$B$36,INDEX(Ranks!$1:$1048576,$A462,BU$1))","v":""},{"$f":"IF($A462=\"N/A\",Ref!$B$36,INDEX(Ranks!$1:$1048576,$A462,BV$1))","v":""},{"$f":"IF($A462=\"N/A\",Ref!$B$36,INDEX(Ranks!$1:$1048576,$A462,BW$1))","v":""},{"$f":"IF($A462=\"N/A\",Ref!$B$36,INDEX(Ranks!$1:$1048576,$A462,BX$1))","v":""},{"$f":"IF($A462=\"N/A\",Ref!$B$36,INDEX(Ranks!$1:$1048576,$A462,BY$1))","v":""},{"$f":"IF($A462=\"N/A\",Ref!$B$36,INDEX(Ranks!$1:$1048576,$A462,BZ$1))","v":""},{"$f":"IF($A462=\"N/A\",Ref!$B$36,INDEX(Ranks!$1:$1048576,$A462,CA$1))","v":""},{"$f":"IF($A462=\"N/A\",Ref!$B$36,INDEX(Ranks!$1:$1048576,$A462,CB$1))","v":""},{"$f":"IF($A462=\"N/A\",Ref!$B$36,INDEX(Ranks!$1:$1048576,$A462,CC$1))","v":""},{"$f":"IF($A462=\"N/A\",Ref!$B$36,INDEX(Ranks!$1:$1048576,$A462,CD$1))","v":""},{"$f":"IF($A462=\"N/A\",Ref!$B$36,INDEX(Ranks!$1:$1048576,$A462,CE$1))","v":""},{"$f":"IF($A462=\"N/A\",Ref!$B$36,INDEX(Ranks!$1:$1048576,$A462,CF$1))","v":""},{"$f":"IF($A462=\"N/A\",Ref!$B$36,INDEX(Ranks!$1:$1048576,$A462,CG$1))","v":""},{"$f":"IF($A462=\"N/A\",Ref!$B$36,INDEX(Ranks!$1:$1048576,$A462,CH$1))","v":""},{"$f":"IF($A462=\"N/A\",Ref!$B$36,INDEX(Ranks!$1:$1048576,$A462,CI$1))","v":""},{"$f":"IF($A462=\"N/A\",Ref!$B$36,INDEX(Ranks!$1:$1048576,$A462,CJ$1))","v":""},{"$f":"IF($A462=\"N/A\",Ref!$B$36,INDEX(Ranks!$1:$1048576,$A462,CK$1))","v":""},{"$f":"IF($A462=\"N/A\",Ref!$B$36,INDEX(Ranks!$1:$1048576,$A462,CL$1))","v":""},{"$f":"IF($A462=\"N/A\",Ref!$B$36,INDEX(Ranks!$1:$1048576,$A462,CM$1))","v":""},{"$f":"IF($A462=\"N/A\",Ref!$B$36,INDEX(Ranks!$1:$1048576,$A462,CN$1))","v":""},{"$f":"IF($A462=\"N/A\",Ref!$B$36,INDEX(Ranks!$1:$1048576,$A462,CO$1))","v":""},{"$f":"IF($A462=\"N/A\",Ref!$B$36,INDEX(Ranks!$1:$1048576,$A462,CP$1))","v":""},{"$f":"IF($A462=\"N/A\",Ref!$B$36,INDEX(Ranks!$1:$1048576,$A462,CQ$1))","v":""},{"$f":"IF($A462=\"N/A\",Ref!$B$36,INDEX(Ranks!$1:$1048576,$A462,CR$1))","v":""},{"$f":"IF($A462=\"N/A\",Ref!$B$36,INDEX(Ranks!$1:$1048576,$A462,CS$1))","v":""},{"$f":"IF($A462=\"N/A\",Ref!$B$36,INDEX(Ranks!$1:$1048576,$A462,CT$1))","v":""},{"$f":"IF($A462=\"N/A\",Ref!$B$36,INDEX(Ranks!$1:$1048576,$A462,CU$1))","v":""},{"$f":"IF($A462=\"N/A\",Ref!$B$36,INDEX(Ranks!$1:$1048576,$A462,CV$1))","v":""},{"$f":"IF($A462=\"N/A\",Ref!$B$36,INDEX(Ranks!$1:$1048576,$A462,CW$1))","v":""},{"$f":"IF($A462=\"N/A\",Ref!$B$36,INDEX(Ranks!$1:$1048576,$A462,CX$1))","v":""},{"$f":"IF($A462=\"N/A\",Ref!$B$36,INDEX(Ranks!$1:$1048576,$A462,CY$1))","v":""},{"$f":"IF($A462=\"N/A\",Ref!$B$36,INDEX(Ranks!$1:$1048576,$A462,CZ$1))","v":""},{"$f":"IF($A462=\"N/A\",Ref!$B$36,INDEX(Ranks!$1:$1048576,$A462,DA$1))","v":""},{"$f":"IF($A462=\"N/A\",Ref!$B$36,INDEX(Ranks!$1:$1048576,$A462,DB$1))","v":""},{"$f":"IF($A462=\"N/A\",Ref!$B$36,INDEX(Ranks!$1:$1048576,$A462,DC$1))","v":""},{"$f":"IF($A462=\"N/A\",Ref!$B$36,INDEX(Ranks!$1:$1048576,$A462,DD$1))","v":""},{"$f":"IF($A462=\"N/A\",Ref!$B$36,INDEX(Ranks!$1:$1048576,$A462,DE$1))","v":""},{"$f":"IF($A462=\"N/A\",Ref!$B$36,INDEX(Ranks!$1:$1048576,$A462,DF$1))","v":""},{"$f":"IF($A462=\"N/A\",Ref!$B$36,INDEX(Ranks!$1:$1048576,$A462,DG$1))","v":""},{"$f":"IF($A462=\"N/A\",Ref!$B$36,INDEX(Ranks!$1:$1048576,$A462,DH$1))","v":""},{"$f":"IF($A462=\"N/A\",Ref!$B$36,INDEX(Ranks!$1:$1048576,$A462,DI$1))","v":""},{"$f":"IF($A462=\"N/A\",Ref!$B$36,INDEX(Ranks!$1:$1048576,$A462,DJ$1))","v":""},{"$f":"IF($A462=\"N/A\",Ref!$B$36,INDEX(Ranks!$1:$1048576,$A462,DK$1))","v":""},{"$f":"IF($A462=\"N/A\",Ref!$B$36,INDEX(Ranks!$1:$1048576,$A462,DL$1))","v":""},{"$f":"IF($A462=\"N/A\",Ref!$B$36,INDEX(Ranks!$1:$1048576,$A462,DM$1))","v":""},{"$f":"IF($A462=\"N/A\",Ref!$B$36,INDEX(Ranks!$1:$1048576,$A462,DN$1))","v":""},{"$f":"IF($A462=\"N/A\",Ref!$B$36,INDEX(Ranks!$1:$1048576,$A462,DO$1))","v":""},{"$f":"IF($A462=\"N/A\",Ref!$B$36,INDEX(Ranks!$1:$1048576,$A462,DP$1))","v":""},{"$f":"IF($A462=\"N/A\",Ref!$B$36,INDEX(Ranks!$1:$1048576,$A462,DQ$1))","v":""},{"$f":"IF($A462=\"N/A\",Ref!$B$36,INDEX(Ranks!$1:$1048576,$A462,DR$1))","v":""},{"$f":"IF($A462=\"N/A\",Ref!$B$36,INDEX(Ranks!$1:$1048576,$A462,DS$1))","v":""},{"$f":"IF($A462=\"N/A\",Ref!$B$36,INDEX(Ranks!$1:$1048576,$A462,DT$1))","v":""},{"$f":"IF($A462=\"N/A\",Ref!$B$36,INDEX(Ranks!$1:$1048576,$A462,DU$1))","v":""},{"$f":"IF($A462=\"N/A\",Ref!$B$36,INDEX(Ranks!$1:$1048576,$A462,DV$1))","v":""},{"$f":"IF($A462=\"N/A\",Ref!$B$36,INDEX(Ranks!$1:$1048576,$A462,DW$1))","v":""},{"$f":"IF($A462=\"N/A\",Ref!$B$36,INDEX(Ranks!$1:$1048576,$A462,DX$1))","v":""},{"$f":"IF($A462=\"N/A\",Ref!$B$36,INDEX(Ranks!$1:$1048576,$A462,DY$1))","v":""},{"$f":"IF($A462=\"N/A\",Ref!$B$36,INDEX(Ranks!$1:$1048576,$A462,DZ$1))","v":""},{"$f":"IF($A462=\"N/A\",Ref!$B$36,INDEX(Ranks!$1:$1048576,$A462,EA$1))","v":""},{"$f":"IF($A462=\"N/A\",Ref!$B$36,INDEX(Ranks!$1:$1048576,$A462,EB$1))","v":""}]
[{"$f":"IFERROR(MATCH('Portfolio Page'!L463,Ranks!L:L,0),\"N/A\")","v":"N/A"},null,{"$f":"IF($A463=\"N/A\",\"\",INDEX(Ranks!$1:$1048576,$A463,C$1))","v":""},{"$f":"IF($A463=\"N/A\",Ref!$B$36,INDEX(Ranks!$1:$1048576,$A463,D$1))","v":""},{"$f":"IF($A463=\"N/A\",Ref!$B$36,INDEX(Ranks!$1:$1048576,$A463,E$1))","v":""},{"$f":"IF($A463=\"N/A\",\"\",INDEX(Ranks!$1:$1048576,$A463,F$1))","v":""},{"$f":"IF($A463=\"N/A\",\"\",INDEX(Ranks!$1:$1048576,$A463,G$1))","v":""},{"$f":"IF($A463=\"N/A\",\"\",INDEX(Ranks!$1:$1048576,$A463,H$1))","v":""},{"$f":"IF($A463=\"N/A\",\"\",INDEX(Ranks!$1:$1048576,$A463,I$1))","v":""},{"$f":"IF($A463=\"N/A\",\"\",INDEX(Ranks!$1:$1048576,$A463,J$1))","v":""},{"$f":"IF($A463=\"N/A\",\"\",INDEX(Ranks!$1:$1048576,$A463,K$1))","v":""},null,{"$f":"IF($A463=\"N/A\",Ref!$B$36,INDEX(Ranks!$1:$1048576,$A463,M$1))","v":""},{"$f":"IF($A463=\"N/A\",Ref!$B$36,INDEX(Ranks!$1:$1048576,$A463,N$1))","v":""},{"$f":"IF($A463=\"N/A\",Ref!$B$36,INDEX(Ranks!$1:$1048576,$A463,O$1))","v":""},{"$f":"IF($A463=\"N/A\",Ref!$B$36,INDEX(Ranks!$1:$1048576,$A463,P$1))","v":""},{"$f":"IF($A463=\"N/A\",Ref!$B$36,INDEX(Ranks!$1:$1048576,$A463,Q$1))","v":""},{"$f":"IF($A463=\"N/A\",Ref!$B$36,INDEX(Ranks!$1:$1048576,$A463,R$1))","v":""},{"$f":"IF($A463=\"N/A\",Ref!$B$36,INDEX(Ranks!$1:$1048576,$A463,S$1))","v":""},{"$f":"IF($A463=\"N/A\",Ref!$B$36,INDEX(Ranks!$1:$1048576,$A463,T$1))","v":""},{"$f":"IF($A463=\"N/A\",Ref!$B$36,INDEX(Ranks!$1:$1048576,$A463,U$1))","v":""},{"$f":"IF($A463=\"N/A\",Ref!$B$36,INDEX(Ranks!$1:$1048576,$A463,V$1))","v":""},{"$f":"IF($A463=\"N/A\",Ref!$B$36,INDEX(Ranks!$1:$1048576,$A463,W$1))","v":""},{"$f":"IF($A463=\"N/A\",Ref!$B$36,INDEX(Ranks!$1:$1048576,$A463,X$1))","v":""},{"$f":"IF($A463=\"N/A\",Ref!$B$36,INDEX(Ranks!$1:$1048576,$A463,Y$1))","v":""},{"$f":"IF($A463=\"N/A\",Ref!$B$36,INDEX(Ranks!$1:$1048576,$A463,Z$1))","v":""},{"$f":"IF($A463=\"N/A\",Ref!$B$36,INDEX(Ranks!$1:$1048576,$A463,AA$1))","v":""},{"$f":"IF($A463=\"N/A\",Ref!$B$36,INDEX(Ranks!$1:$1048576,$A463,AB$1))","v":""},{"$f":"IF($A463=\"N/A\",Ref!$B$36,INDEX(Ranks!$1:$1048576,$A463,AC$1))","v":""},{"$f":"IF($A463=\"N/A\",Ref!$B$36,INDEX(Ranks!$1:$1048576,$A463,AD$1))","v":""},{"$f":"IF($A463=\"N/A\",Ref!$B$36,INDEX(Ranks!$1:$1048576,$A463,AE$1))","v":""},{"$f":"IF($A463=\"N/A\",Ref!$B$36,INDEX(Ranks!$1:$1048576,$A463,AF$1))","v":""},{"$f":"IF($A463=\"N/A\",Ref!$B$36,INDEX(Ranks!$1:$1048576,$A463,AG$1))","v":""},{"$f":"IF($A463=\"N/A\",Ref!$B$36,INDEX(Ranks!$1:$1048576,$A463,AH$1))","v":""},{"$f":"IF($A463=\"N/A\",Ref!$B$36,INDEX(Ranks!$1:$1048576,$A463,AI$1))","v":""},{"$f":"IF($A463=\"N/A\",Ref!$B$36,INDEX(Ranks!$1:$1048576,$A463,AJ$1))","v":""},{"$f":"IF($A463=\"N/A\",Ref!$B$36,INDEX(Ranks!$1:$1048576,$A463,AK$1))","v":""},{"$f":"IF($A463=\"N/A\",Ref!$B$36,INDEX(Ranks!$1:$1048576,$A463,AL$1))","v":""},{"$f":"IF($A463=\"N/A\",Ref!$B$36,INDEX(Ranks!$1:$1048576,$A463,AM$1))","v":""},{"$f":"IF($A463=\"N/A\",Ref!$B$36,INDEX(Ranks!$1:$1048576,$A463,AN$1))","v":""},{"$f":"IF($A463=\"N/A\",Ref!$B$36,INDEX(Ranks!$1:$1048576,$A463,AO$1))","v":""},{"$f":"IF($A463=\"N/A\",Ref!$B$36,INDEX(Ranks!$1:$1048576,$A463,AP$1))","v":""},{"$f":"IF($A463=\"N/A\",Ref!$B$36,INDEX(Ranks!$1:$1048576,$A463,AQ$1))","v":""},{"$f":"IF($A463=\"N/A\",Ref!$B$36,INDEX(Ranks!$1:$1048576,$A463,AR$1))","v":""},{"$f":"IF($A463=\"N/A\",Ref!$B$36,INDEX(Ranks!$1:$1048576,$A463,AS$1))","v":""},{"$f":"IF($A463=\"N/A\",Ref!$B$36,INDEX(Ranks!$1:$1048576,$A463,AT$1))","v":""},{"$f":"IF($A463=\"N/A\",Ref!$B$36,INDEX(Ranks!$1:$1048576,$A463,AU$1))","v":""},{"$f":"IF($A463=\"N/A\",Ref!$B$36,INDEX(Ranks!$1:$1048576,$A463,AV$1))","v":""},{"$f":"IF($A463=\"N/A\",Ref!$B$36,INDEX(Ranks!$1:$1048576,$A463,AW$1))","v":""},{"$f":"IF($A463=\"N/A\",Ref!$B$36,INDEX(Ranks!$1:$1048576,$A463,AX$1))","v":""},{"$f":"IF($A463=\"N/A\",Ref!$B$36,INDEX(Ranks!$1:$1048576,$A463,AY$1))","v":""},{"$f":"IF($A463=\"N/A\",Ref!$B$36,INDEX(Ranks!$1:$1048576,$A463,AZ$1))","v":""},{"$f":"IF($A463=\"N/A\",Ref!$B$36,INDEX(Ranks!$1:$1048576,$A463,BA$1))","v":""},{"$f":"IF($A463=\"N/A\",Ref!$B$36,INDEX(Ranks!$1:$1048576,$A463,BB$1))","v":""},{"$f":"IF($A463=\"N/A\",Ref!$B$36,INDEX(Ranks!$1:$1048576,$A463,BC$1))","v":""},{"$f":"IF($A463=\"N/A\",Ref!$B$36,INDEX(Ranks!$1:$1048576,$A463,BD$1))","v":""},{"$f":"IF($A463=\"N/A\",Ref!$B$36,INDEX(Ranks!$1:$1048576,$A463,BE$1))","v":""},{"$f":"IF($A463=\"N/A\",Ref!$B$36,INDEX(Ranks!$1:$1048576,$A463,BF$1))","v":""},{"$f":"IF($A463=\"N/A\",Ref!$B$36,INDEX(Ranks!$1:$1048576,$A463,BG$1))","v":""},{"$f":"IF($A463=\"N/A\",Ref!$B$36,INDEX(Ranks!$1:$1048576,$A463,BH$1))","v":""},{"$f":"IF($A463=\"N/A\",Ref!$B$36,INDEX(Ranks!$1:$1048576,$A463,BI$1))","v":""},{"$f":"IF($A463=\"N/A\",Ref!$B$36,INDEX(Ranks!$1:$1048576,$A463,BJ$1))","v":""},{"$f":"IF($A463=\"N/A\",Ref!$B$36,INDEX(Ranks!$1:$1048576,$A463,BK$1))","v":""},{"$f":"IF($A463=\"N/A\",Ref!$B$36,INDEX(Ranks!$1:$1048576,$A463,BL$1))","v":""},{"$f":"IF($A463=\"N/A\",Ref!$B$36,INDEX(Ranks!$1:$1048576,$A463,BM$1))","v":""},{"$f":"IF($A463=\"N/A\",Ref!$B$36,INDEX(Ranks!$1:$1048576,$A463,BN$1))","v":""},{"$f":"IF($A463=\"N/A\",Ref!$B$36,INDEX(Ranks!$1:$1048576,$A463,BO$1))","v":""},{"$f":"IF($A463=\"N/A\",Ref!$B$36,INDEX(Ranks!$1:$1048576,$A463,BP$1))","v":""},{"$f":"IF($A463=\"N/A\",Ref!$B$36,INDEX(Ranks!$1:$1048576,$A463,BQ$1))","v":""},{"$f":"IF($A463=\"N/A\",Ref!$B$36,INDEX(Ranks!$1:$1048576,$A463,BR$1))","v":""},{"$f":"IF($A463=\"N/A\",Ref!$B$36,INDEX(Ranks!$1:$1048576,$A463,BS$1))","v":""},{"$f":"IF($A463=\"N/A\",Ref!$B$36,INDEX(Ranks!$1:$1048576,$A463,BT$1))","v":""},{"$f":"IF($A463=\"N/A\",Ref!$B$36,INDEX(Ranks!$1:$1048576,$A463,BU$1))","v":""},{"$f":"IF($A463=\"N/A\",Ref!$B$36,INDEX(Ranks!$1:$1048576,$A463,BV$1))","v":""},{"$f":"IF($A463=\"N/A\",Ref!$B$36,INDEX(Ranks!$1:$1048576,$A463,BW$1))","v":""},{"$f":"IF($A463=\"N/A\",Ref!$B$36,INDEX(Ranks!$1:$1048576,$A463,BX$1))","v":""},{"$f":"IF($A463=\"N/A\",Ref!$B$36,INDEX(Ranks!$1:$1048576,$A463,BY$1))","v":""},{"$f":"IF($A463=\"N/A\",Ref!$B$36,INDEX(Ranks!$1:$1048576,$A463,BZ$1))","v":""},{"$f":"IF($A463=\"N/A\",Ref!$B$36,INDEX(Ranks!$1:$1048576,$A463,CA$1))","v":""},{"$f":"IF($A463=\"N/A\",Ref!$B$36,INDEX(Ranks!$1:$1048576,$A463,CB$1))","v":""},{"$f":"IF($A463=\"N/A\",Ref!$B$36,INDEX(Ranks!$1:$1048576,$A463,CC$1))","v":""},{"$f":"IF($A463=\"N/A\",Ref!$B$36,INDEX(Ranks!$1:$1048576,$A463,CD$1))","v":""},{"$f":"IF($A463=\"N/A\",Ref!$B$36,INDEX(Ranks!$1:$1048576,$A463,CE$1))","v":""},{"$f":"IF($A463=\"N/A\",Ref!$B$36,INDEX(Ranks!$1:$1048576,$A463,CF$1))","v":""},{"$f":"IF($A463=\"N/A\",Ref!$B$36,INDEX(Ranks!$1:$1048576,$A463,CG$1))","v":""},{"$f":"IF($A463=\"N/A\",Ref!$B$36,INDEX(Ranks!$1:$1048576,$A463,CH$1))","v":""},{"$f":"IF($A463=\"N/A\",Ref!$B$36,INDEX(Ranks!$1:$1048576,$A463,CI$1))","v":""},{"$f":"IF($A463=\"N/A\",Ref!$B$36,INDEX(Ranks!$1:$1048576,$A463,CJ$1))","v":""},{"$f":"IF($A463=\"N/A\",Ref!$B$36,INDEX(Ranks!$1:$1048576,$A463,CK$1))","v":""},{"$f":"IF($A463=\"N/A\",Ref!$B$36,INDEX(Ranks!$1:$1048576,$A463,CL$1))","v":""},{"$f":"IF($A463=\"N/A\",Ref!$B$36,INDEX(Ranks!$1:$1048576,$A463,CM$1))","v":""},{"$f":"IF($A463=\"N/A\",Ref!$B$36,INDEX(Ranks!$1:$1048576,$A463,CN$1))","v":""},{"$f":"IF($A463=\"N/A\",Ref!$B$36,INDEX(Ranks!$1:$1048576,$A463,CO$1))","v":""},{"$f":"IF($A463=\"N/A\",Ref!$B$36,INDEX(Ranks!$1:$1048576,$A463,CP$1))","v":""},{"$f":"IF($A463=\"N/A\",Ref!$B$36,INDEX(Ranks!$1:$1048576,$A463,CQ$1))","v":""},{"$f":"IF($A463=\"N/A\",Ref!$B$36,INDEX(Ranks!$1:$1048576,$A463,CR$1))","v":""},{"$f":"IF($A463=\"N/A\",Ref!$B$36,INDEX(Ranks!$1:$1048576,$A463,CS$1))","v":""},{"$f":"IF($A463=\"N/A\",Ref!$B$36,INDEX(Ranks!$1:$1048576,$A463,CT$1))","v":""},{"$f":"IF($A463=\"N/A\",Ref!$B$36,INDEX(Ranks!$1:$1048576,$A463,CU$1))","v":""},{"$f":"IF($A463=\"N/A\",Ref!$B$36,INDEX(Ranks!$1:$1048576,$A463,CV$1))","v":""},{"$f":"IF($A463=\"N/A\",Ref!$B$36,INDEX(Ranks!$1:$1048576,$A463,CW$1))","v":""},{"$f":"IF($A463=\"N/A\",Ref!$B$36,INDEX(Ranks!$1:$1048576,$A463,CX$1))","v":""},{"$f":"IF($A463=\"N/A\",Ref!$B$36,INDEX(Ranks!$1:$1048576,$A463,CY$1))","v":""},{"$f":"IF($A463=\"N/A\",Ref!$B$36,INDEX(Ranks!$1:$1048576,$A463,CZ$1))","v":""},{"$f":"IF($A463=\"N/A\",Ref!$B$36,INDEX(Ranks!$1:$1048576,$A463,DA$1))","v":""},{"$f":"IF($A463=\"N/A\",Ref!$B$36,INDEX(Ranks!$1:$1048576,$A463,DB$1))","v":""},{"$f":"IF($A463=\"N/A\",Ref!$B$36,INDEX(Ranks!$1:$1048576,$A463,DC$1))","v":""},{"$f":"IF($A463=\"N/A\",Ref!$B$36,INDEX(Ranks!$1:$1048576,$A463,DD$1))","v":""},{"$f":"IF($A463=\"N/A\",Ref!$B$36,INDEX(Ranks!$1:$1048576,$A463,DE$1))","v":""},{"$f":"IF($A463=\"N/A\",Ref!$B$36,INDEX(Ranks!$1:$1048576,$A463,DF$1))","v":""},{"$f":"IF($A463=\"N/A\",Ref!$B$36,INDEX(Ranks!$1:$1048576,$A463,DG$1))","v":""},{"$f":"IF($A463=\"N/A\",Ref!$B$36,INDEX(Ranks!$1:$1048576,$A463,DH$1))","v":""},{"$f":"IF($A463=\"N/A\",Ref!$B$36,INDEX(Ranks!$1:$1048576,$A463,DI$1))","v":""},{"$f":"IF($A463=\"N/A\",Ref!$B$36,INDEX(Ranks!$1:$1048576,$A463,DJ$1))","v":""},{"$f":"IF($A463=\"N/A\",Ref!$B$36,INDEX(Ranks!$1:$1048576,$A463,DK$1))","v":""},{"$f":"IF($A463=\"N/A\",Ref!$B$36,INDEX(Ranks!$1:$1048576,$A463,DL$1))","v":""},{"$f":"IF($A463=\"N/A\",Ref!$B$36,INDEX(Ranks!$1:$1048576,$A463,DM$1))","v":""},{"$f":"IF($A463=\"N/A\",Ref!$B$36,INDEX(Ranks!$1:$1048576,$A463,DN$1))","v":""},{"$f":"IF($A463=\"N/A\",Ref!$B$36,INDEX(Ranks!$1:$1048576,$A463,DO$1))","v":""},{"$f":"IF($A463=\"N/A\",Ref!$B$36,INDEX(Ranks!$1:$1048576,$A463,DP$1))","v":""},{"$f":"IF($A463=\"N/A\",Ref!$B$36,INDEX(Ranks!$1:$1048576,$A463,DQ$1))","v":""},{"$f":"IF($A463=\"N/A\",Ref!$B$36,INDEX(Ranks!$1:$1048576,$A463,DR$1))","v":""},{"$f":"IF($A463=\"N/A\",Ref!$B$36,INDEX(Ranks!$1:$1048576,$A463,DS$1))","v":""},{"$f":"IF($A463=\"N/A\",Ref!$B$36,INDEX(Ranks!$1:$1048576,$A463,DT$1))","v":""},{"$f":"IF($A463=\"N/A\",Ref!$B$36,INDEX(Ranks!$1:$1048576,$A463,DU$1))","v":""},{"$f":"IF($A463=\"N/A\",Ref!$B$36,INDEX(Ranks!$1:$1048576,$A463,DV$1))","v":""},{"$f":"IF($A463=\"N/A\",Ref!$B$36,INDEX(Ranks!$1:$1048576,$A463,DW$1))","v":""},{"$f":"IF($A463=\"N/A\",Ref!$B$36,INDEX(Ranks!$1:$1048576,$A463,DX$1))","v":""},{"$f":"IF($A463=\"N/A\",Ref!$B$36,INDEX(Ranks!$1:$1048576,$A463,DY$1))","v":""},{"$f":"IF($A463=\"N/A\",Ref!$B$36,INDEX(Ranks!$1:$1048576,$A463,DZ$1))","v":""},{"$f":"IF($A463=\"N/A\",Ref!$B$36,INDEX(Ranks!$1:$1048576,$A463,EA$1))","v":""},{"$f":"IF($A463=\"N/A\",Ref!$B$36,INDEX(Ranks!$1:$1048576,$A463,EB$1))","v":""}]
[{"$f":"IFERROR(MATCH('Portfolio Page'!L464,Ranks!L:L,0),\"N/A\")","v":"N/A"},null,{"$f":"IF($A464=\"N/A\",\"\",INDEX(Ranks!$1:$1048576,$A464,C$1))","v":""},{"$f":"IF($A464=\"N/A\",Ref!$B$36,INDEX(Ranks!$1:$1048576,$A464,D$1))","v":""},{"$f":"IF($A464=\"N/A\",Ref!$B$36,INDEX(Ranks!$1:$1048576,$A464,E$1))","v":""},{"$f":"IF($A464=\"N/A\",\"\",INDEX(Ranks!$1:$1048576,$A464,F$1))","v":""},{"$f":"IF($A464=\"N/A\",\"\",INDEX(Ranks!$1:$1048576,$A464,G$1))","v":""},{"$f":"IF($A464=\"N/A\",\"\",INDEX(Ranks!$1:$1048576,$A464,H$1))","v":""},{"$f":"IF($A464=\"N/A\",\"\",INDEX(Ranks!$1:$1048576,$A464,I$1))","v":""},{"$f":"IF($A464=\"N/A\",\"\",INDEX(Ranks!$1:$1048576,$A464,J$1))","v":""},{"$f":"IF($A464=\"N/A\",\"\",INDEX(Ranks!$1:$1048576,$A464,K$1))","v":""},null,{"$f":"IF($A464=\"N/A\",Ref!$B$36,INDEX(Ranks!$1:$1048576,$A464,M$1))","v":""},{"$f":"IF($A464=\"N/A\",Ref!$B$36,INDEX(Ranks!$1:$1048576,$A464,N$1))","v":""},{"$f":"IF($A464=\"N/A\",Ref!$B$36,INDEX(Ranks!$1:$1048576,$A464,O$1))","v":""},{"$f":"IF($A464=\"N/A\",Ref!$B$36,INDEX(Ranks!$1:$1048576,$A464,P$1))","v":""},{"$f":"IF($A464=\"N/A\",Ref!$B$36,INDEX(Ranks!$1:$1048576,$A464,Q$1))","v":""},{"$f":"IF($A464=\"N/A\",Ref!$B$36,INDEX(Ranks!$1:$1048576,$A464,R$1))","v":""},{"$f":"IF($A464=\"N/A\",Ref!$B$36,INDEX(Ranks!$1:$1048576,$A464,S$1))","v":""},{"$f":"IF($A464=\"N/A\",Ref!$B$36,INDEX(Ranks!$1:$1048576,$A464,T$1))","v":""},{"$f":"IF($A464=\"N/A\",Ref!$B$36,INDEX(Ranks!$1:$1048576,$A464,U$1))","v":""},{"$f":"IF($A464=\"N/A\",Ref!$B$36,INDEX(Ranks!$1:$1048576,$A464,V$1))","v":""},{"$f":"IF($A464=\"N/A\",Ref!$B$36,INDEX(Ranks!$1:$1048576,$A464,W$1))","v":""},{"$f":"IF($A464=\"N/A\",Ref!$B$36,INDEX(Ranks!$1:$1048576,$A464,X$1))","v":""},{"$f":"IF($A464=\"N/A\",Ref!$B$36,INDEX(Ranks!$1:$1048576,$A464,Y$1))","v":""},{"$f":"IF($A464=\"N/A\",Ref!$B$36,INDEX(Ranks!$1:$1048576,$A464,Z$1))","v":""},{"$f":"IF($A464=\"N/A\",Ref!$B$36,INDEX(Ranks!$1:$1048576,$A464,AA$1))","v":""},{"$f":"IF($A464=\"N/A\",Ref!$B$36,INDEX(Ranks!$1:$1048576,$A464,AB$1))","v":""},{"$f":"IF($A464=\"N/A\",Ref!$B$36,INDEX(Ranks!$1:$1048576,$A464,AC$1))","v":""},{"$f":"IF($A464=\"N/A\",Ref!$B$36,INDEX(Ranks!$1:$1048576,$A464,AD$1))","v":""},{"$f":"IF($A464=\"N/A\",Ref!$B$36,INDEX(Ranks!$1:$1048576,$A464,AE$1))","v":""},{"$f":"IF($A464=\"N/A\",Ref!$B$36,INDEX(Ranks!$1:$1048576,$A464,AF$1))","v":""},{"$f":"IF($A464=\"N/A\",Ref!$B$36,INDEX(Ranks!$1:$1048576,$A464,AG$1))","v":""},{"$f":"IF($A464=\"N/A\",Ref!$B$36,INDEX(Ranks!$1:$1048576,$A464,AH$1))","v":""},{"$f":"IF($A464=\"N/A\",Ref!$B$36,INDEX(Ranks!$1:$1048576,$A464,AI$1))","v":""},{"$f":"IF($A464=\"N/A\",Ref!$B$36,INDEX(Ranks!$1:$1048576,$A464,AJ$1))","v":""},{"$f":"IF($A464=\"N/A\",Ref!$B$36,INDEX(Ranks!$1:$1048576,$A464,AK$1))","v":""},{"$f":"IF($A464=\"N/A\",Ref!$B$36,INDEX(Ranks!$1:$1048576,$A464,AL$1))","v":""},{"$f":"IF($A464=\"N/A\",Ref!$B$36,INDEX(Ranks!$1:$1048576,$A464,AM$1))","v":""},{"$f":"IF($A464=\"N/A\",Ref!$B$36,INDEX(Ranks!$1:$1048576,$A464,AN$1))","v":""},{"$f":"IF($A464=\"N/A\",Ref!$B$36,INDEX(Ranks!$1:$1048576,$A464,AO$1))","v":""},{"$f":"IF($A464=\"N/A\",Ref!$B$36,INDEX(Ranks!$1:$1048576,$A464,AP$1))","v":""},{"$f":"IF($A464=\"N/A\",Ref!$B$36,INDEX(Ranks!$1:$1048576,$A464,AQ$1))","v":""},{"$f":"IF($A464=\"N/A\",Ref!$B$36,INDEX(Ranks!$1:$1048576,$A464,AR$1))","v":""},{"$f":"IF($A464=\"N/A\",Ref!$B$36,INDEX(Ranks!$1:$1048576,$A464,AS$1))","v":""},{"$f":"IF($A464=\"N/A\",Ref!$B$36,INDEX(Ranks!$1:$1048576,$A464,AT$1))","v":""},{"$f":"IF($A464=\"N/A\",Ref!$B$36,INDEX(Ranks!$1:$1048576,$A464,AU$1))","v":""},{"$f":"IF($A464=\"N/A\",Ref!$B$36,INDEX(Ranks!$1:$1048576,$A464,AV$1))","v":""},{"$f":"IF($A464=\"N/A\",Ref!$B$36,INDEX(Ranks!$1:$1048576,$A464,AW$1))","v":""},{"$f":"IF($A464=\"N/A\",Ref!$B$36,INDEX(Ranks!$1:$1048576,$A464,AX$1))","v":""},{"$f":"IF($A464=\"N/A\",Ref!$B$36,INDEX(Ranks!$1:$1048576,$A464,AY$1))","v":""},{"$f":"IF($A464=\"N/A\",Ref!$B$36,INDEX(Ranks!$1:$1048576,$A464,AZ$1))","v":""},{"$f":"IF($A464=\"N/A\",Ref!$B$36,INDEX(Ranks!$1:$1048576,$A464,BA$1))","v":""},{"$f":"IF($A464=\"N/A\",Ref!$B$36,INDEX(Ranks!$1:$1048576,$A464,BB$1))","v":""},{"$f":"IF($A464=\"N/A\",Ref!$B$36,INDEX(Ranks!$1:$1048576,$A464,BC$1))","v":""},{"$f":"IF($A464=\"N/A\",Ref!$B$36,INDEX(Ranks!$1:$1048576,$A464,BD$1))","v":""},{"$f":"IF($A464=\"N/A\",Ref!$B$36,INDEX(Ranks!$1:$1048576,$A464,BE$1))","v":""},{"$f":"IF($A464=\"N/A\",Ref!$B$36,INDEX(Ranks!$1:$1048576,$A464,BF$1))","v":""},{"$f":"IF($A464=\"N/A\",Ref!$B$36,INDEX(Ranks!$1:$1048576,$A464,BG$1))","v":""},{"$f":"IF($A464=\"N/A\",Ref!$B$36,INDEX(Ranks!$1:$1048576,$A464,BH$1))","v":""},{"$f":"IF($A464=\"N/A\",Ref!$B$36,INDEX(Ranks!$1:$1048576,$A464,BI$1))","v":""},{"$f":"IF($A464=\"N/A\",Ref!$B$36,INDEX(Ranks!$1:$1048576,$A464,BJ$1))","v":""},{"$f":"IF($A464=\"N/A\",Ref!$B$36,INDEX(Ranks!$1:$1048576,$A464,BK$1))","v":""},{"$f":"IF($A464=\"N/A\",Ref!$B$36,INDEX(Ranks!$1:$1048576,$A464,BL$1))","v":""},{"$f":"IF($A464=\"N/A\",Ref!$B$36,INDEX(Ranks!$1:$1048576,$A464,BM$1))","v":""},{"$f":"IF($A464=\"N/A\",Ref!$B$36,INDEX(Ranks!$1:$1048576,$A464,BN$1))","v":""},{"$f":"IF($A464=\"N/A\",Ref!$B$36,INDEX(Ranks!$1:$1048576,$A464,BO$1))","v":""},{"$f":"IF($A464=\"N/A\",Ref!$B$36,INDEX(Ranks!$1:$1048576,$A464,BP$1))","v":""},{"$f":"IF($A464=\"N/A\",Ref!$B$36,INDEX(Ranks!$1:$1048576,$A464,BQ$1))","v":""},{"$f":"IF($A464=\"N/A\",Ref!$B$36,INDEX(Ranks!$1:$1048576,$A464,BR$1))","v":""},{"$f":"IF($A464=\"N/A\",Ref!$B$36,INDEX(Ranks!$1:$1048576,$A464,BS$1))","v":""},{"$f":"IF($A464=\"N/A\",Ref!$B$36,INDEX(Ranks!$1:$1048576,$A464,BT$1))","v":""},{"$f":"IF($A464=\"N/A\",Ref!$B$36,INDEX(Ranks!$1:$1048576,$A464,BU$1))","v":""},{"$f":"IF($A464=\"N/A\",Ref!$B$36,INDEX(Ranks!$1:$1048576,$A464,BV$1))","v":""},{"$f":"IF($A464=\"N/A\",Ref!$B$36,INDEX(Ranks!$1:$1048576,$A464,BW$1))","v":""},{"$f":"IF($A464=\"N/A\",Ref!$B$36,INDEX(Ranks!$1:$1048576,$A464,BX$1))","v":""},{"$f":"IF($A464=\"N/A\",Ref!$B$36,INDEX(Ranks!$1:$1048576,$A464,BY$1))","v":""},{"$f":"IF($A464=\"N/A\",Ref!$B$36,INDEX(Ranks!$1:$1048576,$A464,BZ$1))","v":""},{"$f":"IF($A464=\"N/A\",Ref!$B$36,INDEX(Ranks!$1:$1048576,$A464,CA$1))","v":""},{"$f":"IF($A464=\"N/A\",Ref!$B$36,INDEX(Ranks!$1:$1048576,$A464,CB$1))","v":""},{"$f":"IF($A464=\"N/A\",Ref!$B$36,INDEX(Ranks!$1:$1048576,$A464,CC$1))","v":""},{"$f":"IF($A464=\"N/A\",Ref!$B$36,INDEX(Ranks!$1:$1048576,$A464,CD$1))","v":""},{"$f":"IF($A464=\"N/A\",Ref!$B$36,INDEX(Ranks!$1:$1048576,$A464,CE$1))","v":""},{"$f":"IF($A464=\"N/A\",Ref!$B$36,INDEX(Ranks!$1:$1048576,$A464,CF$1))","v":""},{"$f":"IF($A464=\"N/A\",Ref!$B$36,INDEX(Ranks!$1:$1048576,$A464,CG$1))","v":""},{"$f":"IF($A464=\"N/A\",Ref!$B$36,INDEX(Ranks!$1:$1048576,$A464,CH$1))","v":""},{"$f":"IF($A464=\"N/A\",Ref!$B$36,INDEX(Ranks!$1:$1048576,$A464,CI$1))","v":""},{"$f":"IF($A464=\"N/A\",Ref!$B$36,INDEX(Ranks!$1:$1048576,$A464,CJ$1))","v":""},{"$f":"IF($A464=\"N/A\",Ref!$B$36,INDEX(Ranks!$1:$1048576,$A464,CK$1))","v":""},{"$f":"IF($A464=\"N/A\",Ref!$B$36,INDEX(Ranks!$1:$1048576,$A464,CL$1))","v":""},{"$f":"IF($A464=\"N/A\",Ref!$B$36,INDEX(Ranks!$1:$1048576,$A464,CM$1))","v":""},{"$f":"IF($A464=\"N/A\",Ref!$B$36,INDEX(Ranks!$1:$1048576,$A464,CN$1))","v":""},{"$f":"IF($A464=\"N/A\",Ref!$B$36,INDEX(Ranks!$1:$1048576,$A464,CO$1))","v":""},{"$f":"IF($A464=\"N/A\",Ref!$B$36,INDEX(Ranks!$1:$1048576,$A464,CP$1))","v":""},{"$f":"IF($A464=\"N/A\",Ref!$B$36,INDEX(Ranks!$1:$1048576,$A464,CQ$1))","v":""},{"$f":"IF($A464=\"N/A\",Ref!$B$36,INDEX(Ranks!$1:$1048576,$A464,CR$1))","v":""},{"$f":"IF($A464=\"N/A\",Ref!$B$36,INDEX(Ranks!$1:$1048576,$A464,CS$1))","v":""},{"$f":"IF($A464=\"N/A\",Ref!$B$36,INDEX(Ranks!$1:$1048576,$A464,CT$1))","v":""},{"$f":"IF($A464=\"N/A\",Ref!$B$36,INDEX(Ranks!$1:$1048576,$A464,CU$1))","v":""},{"$f":"IF($A464=\"N/A\",Ref!$B$36,INDEX(Ranks!$1:$1048576,$A464,CV$1))","v":""},{"$f":"IF($A464=\"N/A\",Ref!$B$36,INDEX(Ranks!$1:$1048576,$A464,CW$1))","v":""},{"$f":"IF($A464=\"N/A\",Ref!$B$36,INDEX(Ranks!$1:$1048576,$A464,CX$1))","v":""},{"$f":"IF($A464=\"N/A\",Ref!$B$36,INDEX(Ranks!$1:$1048576,$A464,CY$1))","v":""},{"$f":"IF($A464=\"N/A\",Ref!$B$36,INDEX(Ranks!$1:$1048576,$A464,CZ$1))","v":""},{"$f":"IF($A464=\"N/A\",Ref!$B$36,INDEX(Ranks!$1:$1048576,$A464,DA$1))","v":""},{"$f":"IF($A464=\"N/A\",Ref!$B$36,INDEX(Ranks!$1:$1048576,$A464,DB$1))","v":""},{"$f":"IF($A464=\"N/A\",Ref!$B$36,INDEX(Ranks!$1:$1048576,$A464,DC$1))","v":""},{"$f":"IF($A464=\"N/A\",Ref!$B$36,INDEX(Ranks!$1:$1048576,$A464,DD$1))","v":""},{"$f":"IF($A464=\"N/A\",Ref!$B$36,INDEX(Ranks!$1:$1048576,$A464,DE$1))","v":""},{"$f":"IF($A464=\"N/A\",Ref!$B$36,INDEX(Ranks!$1:$1048576,$A464,DF$1))","v":""},{"$f":"IF($A464=\"N/A\",Ref!$B$36,INDEX(Ranks!$1:$1048576,$A464,DG$1))","v":""},{"$f":"IF($A464=\"N/A\",Ref!$B$36,INDEX(Ranks!$1:$1048576,$A464,DH$1))","v":""},{"$f":"IF($A464=\"N/A\",Ref!$B$36,INDEX(Ranks!$1:$1048576,$A464,DI$1))","v":""},{"$f":"IF($A464=\"N/A\",Ref!$B$36,INDEX(Ranks!$1:$1048576,$A464,DJ$1))","v":""},{"$f":"IF($A464=\"N/A\",Ref!$B$36,INDEX(Ranks!$1:$1048576,$A464,DK$1))","v":""},{"$f":"IF($A464=\"N/A\",Ref!$B$36,INDEX(Ranks!$1:$1048576,$A464,DL$1))","v":""},{"$f":"IF($A464=\"N/A\",Ref!$B$36,INDEX(Ranks!$1:$1048576,$A464,DM$1))","v":""},{"$f":"IF($A464=\"N/A\",Ref!$B$36,INDEX(Ranks!$1:$1048576,$A464,DN$1))","v":""},{"$f":"IF($A464=\"N/A\",Ref!$B$36,INDEX(Ranks!$1:$1048576,$A464,DO$1))","v":""},{"$f":"IF($A464=\"N/A\",Ref!$B$36,INDEX(Ranks!$1:$1048576,$A464,DP$1))","v":""},{"$f":"IF($A464=\"N/A\",Ref!$B$36,INDEX(Ranks!$1:$1048576,$A464,DQ$1))","v":""},{"$f":"IF($A464=\"N/A\",Ref!$B$36,INDEX(Ranks!$1:$1048576,$A464,DR$1))","v":""},{"$f":"IF($A464=\"N/A\",Ref!$B$36,INDEX(Ranks!$1:$1048576,$A464,DS$1))","v":""},{"$f":"IF($A464=\"N/A\",Ref!$B$36,INDEX(Ranks!$1:$1048576,$A464,DT$1))","v":""},{"$f":"IF($A464=\"N/A\",Ref!$B$36,INDEX(Ranks!$1:$1048576,$A464,DU$1))","v":""},{"$f":"IF($A464=\"N/A\",Ref!$B$36,INDEX(Ranks!$1:$1048576,$A464,DV$1))","v":""},{"$f":"IF($A464=\"N/A\",Ref!$B$36,INDEX(Ranks!$1:$1048576,$A464,DW$1))","v":""},{"$f":"IF($A464=\"N/A\",Ref!$B$36,INDEX(Ranks!$1:$1048576,$A464,DX$1))","v":""},{"$f":"IF($A464=\"N/A\",Ref!$B$36,INDEX(Ranks!$1:$1048576,$A464,DY$1))","v":""},{"$f":"IF($A464=\"N/A\",Ref!$B$36,INDEX(Ranks!$1:$1048576,$A464,DZ$1))","v":""},{"$f":"IF($A464=\"N/A\",Ref!$B$36,INDEX(Ranks!$1:$1048576,$A464,EA$1))","v":""},{"$f":"IF($A464=\"N/A\",Ref!$B$36,INDEX(Ranks!$1:$1048576,$A464,EB$1))","v":""}]
[{"$f":"IFERROR(MATCH('Portfolio Page'!L465,Ranks!L:L,0),\"N/A\")","v":"N/A"},null,{"$f":"IF($A465=\"N/A\",\"\",INDEX(Ranks!$1:$1048576,$A465,C$1))","v":""},{"$f":"IF($A465=\"N/A\",Ref!$B$36,INDEX(Ranks!$1:$1048576,$A465,D$1))","v":""},{"$f":"IF($A465=\"N/A\",Ref!$B$36,INDEX(Ranks!$1:$1048576,$A465,E$1))","v":""},{"$f":"IF($A465=\"N/A\",\"\",INDEX(Ranks!$1:$1048576,$A465,F$1))","v":""},{"$f":"IF($A465=\"N/A\",\"\",INDEX(Ranks!$1:$1048576,$A465,G$1))","v":""},{"$f":"IF($A465=\"N/A\",\"\",INDEX(Ranks!$1:$1048576,$A465,H$1))","v":""},{"$f":"IF($A465=\"N/A\",\"\",INDEX(Ranks!$1:$1048576,$A465,I$1))","v":""},{"$f":"IF($A465=\"N/A\",\"\",INDEX(Ranks!$1:$1048576,$A465,J$1))","v":""},{"$f":"IF($A465=\"N/A\",\"\",INDEX(Ranks!$1:$1048576,$A465,K$1))","v":""},null,{"$f":"IF($A465=\"N/A\",Ref!$B$36,INDEX(Ranks!$1:$1048576,$A465,M$1))","v":""},{"$f":"IF($A465=\"N/A\",Ref!$B$36,INDEX(Ranks!$1:$1048576,$A465,N$1))","v":""},{"$f":"IF($A465=\"N/A\",Ref!$B$36,INDEX(Ranks!$1:$1048576,$A465,O$1))","v":""},{"$f":"IF($A465=\"N/A\",Ref!$B$36,INDEX(Ranks!$1:$1048576,$A465,P$1))","v":""},{"$f":"IF($A465=\"N/A\",Ref!$B$36,INDEX(Ranks!$1:$1048576,$A465,Q$1))","v":""},{"$f":"IF($A465=\"N/A\",Ref!$B$36,INDEX(Ranks!$1:$1048576,$A465,R$1))","v":""},{"$f":"IF($A465=\"N/A\",Ref!$B$36,INDEX(Ranks!$1:$1048576,$A465,S$1))","v":""},{"$f":"IF($A465=\"N/A\",Ref!$B$36,INDEX(Ranks!$1:$1048576,$A465,T$1))","v":""},{"$f":"IF($A465=\"N/A\",Ref!$B$36,INDEX(Ranks!$1:$1048576,$A465,U$1))","v":""},{"$f":"IF($A465=\"N/A\",Ref!$B$36,INDEX(Ranks!$1:$1048576,$A465,V$1))","v":""},{"$f":"IF($A465=\"N/A\",Ref!$B$36,INDEX(Ranks!$1:$1048576,$A465,W$1))","v":""},{"$f":"IF($A465=\"N/A\",Ref!$B$36,INDEX(Ranks!$1:$1048576,$A465,X$1))","v":""},{"$f":"IF($A465=\"N/A\",Ref!$B$36,INDEX(Ranks!$1:$1048576,$A465,Y$1))","v":""},{"$f":"IF($A465=\"N/A\",Ref!$B$36,INDEX(Ranks!$1:$1048576,$A465,Z$1))","v":""},{"$f":"IF($A465=\"N/A\",Ref!$B$36,INDEX(Ranks!$1:$1048576,$A465,AA$1))","v":""},{"$f":"IF($A465=\"N/A\",Ref!$B$36,INDEX(Ranks!$1:$1048576,$A465,AB$1))","v":""},{"$f":"IF($A465=\"N/A\",Ref!$B$36,INDEX(Ranks!$1:$1048576,$A465,AC$1))","v":""},{"$f":"IF($A465=\"N/A\",Ref!$B$36,INDEX(Ranks!$1:$1048576,$A465,AD$1))","v":""},{"$f":"IF($A465=\"N/A\",Ref!$B$36,INDEX(Ranks!$1:$1048576,$A465,AE$1))","v":""},{"$f":"IF($A465=\"N/A\",Ref!$B$36,INDEX(Ranks!$1:$1048576,$A465,AF$1))","v":""},{"$f":"IF($A465=\"N/A\",Ref!$B$36,INDEX(Ranks!$1:$1048576,$A465,AG$1))","v":""},{"$f":"IF($A465=\"N/A\",Ref!$B$36,INDEX(Ranks!$1:$1048576,$A465,AH$1))","v":""},{"$f":"IF($A465=\"N/A\",Ref!$B$36,INDEX(Ranks!$1:$1048576,$A465,AI$1))","v":""},{"$f":"IF($A465=\"N/A\",Ref!$B$36,INDEX(Ranks!$1:$1048576,$A465,AJ$1))","v":""},{"$f":"IF($A465=\"N/A\",Ref!$B$36,INDEX(Ranks!$1:$1048576,$A465,AK$1))","v":""},{"$f":"IF($A465=\"N/A\",Ref!$B$36,INDEX(Ranks!$1:$1048576,$A465,AL$1))","v":""},{"$f":"IF($A465=\"N/A\",Ref!$B$36,INDEX(Ranks!$1:$1048576,$A465,AM$1))","v":""},{"$f":"IF($A465=\"N/A\",Ref!$B$36,INDEX(Ranks!$1:$1048576,$A465,AN$1))","v":""},{"$f":"IF($A465=\"N/A\",Ref!$B$36,INDEX(Ranks!$1:$1048576,$A465,AO$1))","v":""},{"$f":"IF($A465=\"N/A\",Ref!$B$36,INDEX(Ranks!$1:$1048576,$A465,AP$1))","v":""},{"$f":"IF($A465=\"N/A\",Ref!$B$36,INDEX(Ranks!$1:$1048576,$A465,AQ$1))","v":""},{"$f":"IF($A465=\"N/A\",Ref!$B$36,INDEX(Ranks!$1:$1048576,$A465,AR$1))","v":""},{"$f":"IF($A465=\"N/A\",Ref!$B$36,INDEX(Ranks!$1:$1048576,$A465,AS$1))","v":""},{"$f":"IF($A465=\"N/A\",Ref!$B$36,INDEX(Ranks!$1:$1048576,$A465,AT$1))","v":""},{"$f":"IF($A465=\"N/A\",Ref!$B$36,INDEX(Ranks!$1:$1048576,$A465,AU$1))","v":""},{"$f":"IF($A465=\"N/A\",Ref!$B$36,INDEX(Ranks!$1:$1048576,$A465,AV$1))","v":""},{"$f":"IF($A465=\"N/A\",Ref!$B$36,INDEX(Ranks!$1:$1048576,$A465,AW$1))","v":""},{"$f":"IF($A465=\"N/A\",Ref!$B$36,INDEX(Ranks!$1:$1048576,$A465,AX$1))","v":""},{"$f":"IF($A465=\"N/A\",Ref!$B$36,INDEX(Ranks!$1:$1048576,$A465,AY$1))","v":""},{"$f":"IF($A465=\"N/A\",Ref!$B$36,INDEX(Ranks!$1:$1048576,$A465,AZ$1))","v":""},{"$f":"IF($A465=\"N/A\",Ref!$B$36,INDEX(Ranks!$1:$1048576,$A465,BA$1))","v":""},{"$f":"IF($A465=\"N/A\",Ref!$B$36,INDEX(Ranks!$1:$1048576,$A465,BB$1))","v":""},{"$f":"IF($A465=\"N/A\",Ref!$B$36,INDEX(Ranks!$1:$1048576,$A465,BC$1))","v":""},{"$f":"IF($A465=\"N/A\",Ref!$B$36,INDEX(Ranks!$1:$1048576,$A465,BD$1))","v":""},{"$f":"IF($A465=\"N/A\",Ref!$B$36,INDEX(Ranks!$1:$1048576,$A465,BE$1))","v":""},{"$f":"IF($A465=\"N/A\",Ref!$B$36,INDEX(Ranks!$1:$1048576,$A465,BF$1))","v":""},{"$f":"IF($A465=\"N/A\",Ref!$B$36,INDEX(Ranks!$1:$1048576,$A465,BG$1))","v":""},{"$f":"IF($A465=\"N/A\",Ref!$B$36,INDEX(Ranks!$1:$1048576,$A465,BH$1))","v":""},{"$f":"IF($A465=\"N/A\",Ref!$B$36,INDEX(Ranks!$1:$1048576,$A465,BI$1))","v":""},{"$f":"IF($A465=\"N/A\",Ref!$B$36,INDEX(Ranks!$1:$1048576,$A465,BJ$1))","v":""},{"$f":"IF($A465=\"N/A\",Ref!$B$36,INDEX(Ranks!$1:$1048576,$A465,BK$1))","v":""},{"$f":"IF($A465=\"N/A\",Ref!$B$36,INDEX(Ranks!$1:$1048576,$A465,BL$1))","v":""},{"$f":"IF($A465=\"N/A\",Ref!$B$36,INDEX(Ranks!$1:$1048576,$A465,BM$1))","v":""},{"$f":"IF($A465=\"N/A\",Ref!$B$36,INDEX(Ranks!$1:$1048576,$A465,BN$1))","v":""},{"$f":"IF($A465=\"N/A\",Ref!$B$36,INDEX(Ranks!$1:$1048576,$A465,BO$1))","v":""},{"$f":"IF($A465=\"N/A\",Ref!$B$36,INDEX(Ranks!$1:$1048576,$A465,BP$1))","v":""},{"$f":"IF($A465=\"N/A\",Ref!$B$36,INDEX(Ranks!$1:$1048576,$A465,BQ$1))","v":""},{"$f":"IF($A465=\"N/A\",Ref!$B$36,INDEX(Ranks!$1:$1048576,$A465,BR$1))","v":""},{"$f":"IF($A465=\"N/A\",Ref!$B$36,INDEX(Ranks!$1:$1048576,$A465,BS$1))","v":""},{"$f":"IF($A465=\"N/A\",Ref!$B$36,INDEX(Ranks!$1:$1048576,$A465,BT$1))","v":""},{"$f":"IF($A465=\"N/A\",Ref!$B$36,INDEX(Ranks!$1:$1048576,$A465,BU$1))","v":""},{"$f":"IF($A465=\"N/A\",Ref!$B$36,INDEX(Ranks!$1:$1048576,$A465,BV$1))","v":""},{"$f":"IF($A465=\"N/A\",Ref!$B$36,INDEX(Ranks!$1:$1048576,$A465,BW$1))","v":""},{"$f":"IF($A465=\"N/A\",Ref!$B$36,INDEX(Ranks!$1:$1048576,$A465,BX$1))","v":""},{"$f":"IF($A465=\"N/A\",Ref!$B$36,INDEX(Ranks!$1:$1048576,$A465,BY$1))","v":""},{"$f":"IF($A465=\"N/A\",Ref!$B$36,INDEX(Ranks!$1:$1048576,$A465,BZ$1))","v":""},{"$f":"IF($A465=\"N/A\",Ref!$B$36,INDEX(Ranks!$1:$1048576,$A465,CA$1))","v":""},{"$f":"IF($A465=\"N/A\",Ref!$B$36,INDEX(Ranks!$1:$1048576,$A465,CB$1))","v":""},{"$f":"IF($A465=\"N/A\",Ref!$B$36,INDEX(Ranks!$1:$1048576,$A465,CC$1))","v":""},{"$f":"IF($A465=\"N/A\",Ref!$B$36,INDEX(Ranks!$1:$1048576,$A465,CD$1))","v":""},{"$f":"IF($A465=\"N/A\",Ref!$B$36,INDEX(Ranks!$1:$1048576,$A465,CE$1))","v":""},{"$f":"IF($A465=\"N/A\",Ref!$B$36,INDEX(Ranks!$1:$1048576,$A465,CF$1))","v":""},{"$f":"IF($A465=\"N/A\",Ref!$B$36,INDEX(Ranks!$1:$1048576,$A465,CG$1))","v":""},{"$f":"IF($A465=\"N/A\",Ref!$B$36,INDEX(Ranks!$1:$1048576,$A465,CH$1))","v":""},{"$f":"IF($A465=\"N/A\",Ref!$B$36,INDEX(Ranks!$1:$1048576,$A465,CI$1))","v":""},{"$f":"IF($A465=\"N/A\",Ref!$B$36,INDEX(Ranks!$1:$1048576,$A465,CJ$1))","v":""},{"$f":"IF($A465=\"N/A\",Ref!$B$36,INDEX(Ranks!$1:$1048576,$A465,CK$1))","v":""},{"$f":"IF($A465=\"N/A\",Ref!$B$36,INDEX(Ranks!$1:$1048576,$A465,CL$1))","v":""},{"$f":"IF($A465=\"N/A\",Ref!$B$36,INDEX(Ranks!$1:$1048576,$A465,CM$1))","v":""},{"$f":"IF($A465=\"N/A\",Ref!$B$36,INDEX(Ranks!$1:$1048576,$A465,CN$1))","v":""},{"$f":"IF($A465=\"N/A\",Ref!$B$36,INDEX(Ranks!$1:$1048576,$A465,CO$1))","v":""},{"$f":"IF($A465=\"N/A\",Ref!$B$36,INDEX(Ranks!$1:$1048576,$A465,CP$1))","v":""},{"$f":"IF($A465=\"N/A\",Ref!$B$36,INDEX(Ranks!$1:$1048576,$A465,CQ$1))","v":""},{"$f":"IF($A465=\"N/A\",Ref!$B$36,INDEX(Ranks!$1:$1048576,$A465,CR$1))","v":""},{"$f":"IF($A465=\"N/A\",Ref!$B$36,INDEX(Ranks!$1:$1048576,$A465,CS$1))","v":""},{"$f":"IF($A465=\"N/A\",Ref!$B$36,INDEX(Ranks!$1:$1048576,$A465,CT$1))","v":""},{"$f":"IF($A465=\"N/A\",Ref!$B$36,INDEX(Ranks!$1:$1048576,$A465,CU$1))","v":""},{"$f":"IF($A465=\"N/A\",Ref!$B$36,INDEX(Ranks!$1:$1048576,$A465,CV$1))","v":""},{"$f":"IF($A465=\"N/A\",Ref!$B$36,INDEX(Ranks!$1:$1048576,$A465,CW$1))","v":""},{"$f":"IF($A465=\"N/A\",Ref!$B$36,INDEX(Ranks!$1:$1048576,$A465,CX$1))","v":""},{"$f":"IF($A465=\"N/A\",Ref!$B$36,INDEX(Ranks!$1:$1048576,$A465,CY$1))","v":""},{"$f":"IF($A465=\"N/A\",Ref!$B$36,INDEX(Ranks!$1:$1048576,$A465,CZ$1))","v":""},{"$f":"IF($A465=\"N/A\",Ref!$B$36,INDEX(Ranks!$1:$1048576,$A465,DA$1))","v":""},{"$f":"IF($A465=\"N/A\",Ref!$B$36,INDEX(Ranks!$1:$1048576,$A465,DB$1))","v":""},{"$f":"IF($A465=\"N/A\",Ref!$B$36,INDEX(Ranks!$1:$1048576,$A465,DC$1))","v":""},{"$f":"IF($A465=\"N/A\",Ref!$B$36,INDEX(Ranks!$1:$1048576,$A465,DD$1))","v":""},{"$f":"IF($A465=\"N/A\",Ref!$B$36,INDEX(Ranks!$1:$1048576,$A465,DE$1))","v":""},{"$f":"IF($A465=\"N/A\",Ref!$B$36,INDEX(Ranks!$1:$1048576,$A465,DF$1))","v":""},{"$f":"IF($A465=\"N/A\",Ref!$B$36,INDEX(Ranks!$1:$1048576,$A465,DG$1))","v":""},{"$f":"IF($A465=\"N/A\",Ref!$B$36,INDEX(Ranks!$1:$1048576,$A465,DH$1))","v":""},{"$f":"IF($A465=\"N/A\",Ref!$B$36,INDEX(Ranks!$1:$1048576,$A465,DI$1))","v":""},{"$f":"IF($A465=\"N/A\",Ref!$B$36,INDEX(Ranks!$1:$1048576,$A465,DJ$1))","v":""},{"$f":"IF($A465=\"N/A\",Ref!$B$36,INDEX(Ranks!$1:$1048576,$A465,DK$1))","v":""},{"$f":"IF($A465=\"N/A\",Ref!$B$36,INDEX(Ranks!$1:$1048576,$A465,DL$1))","v":""},{"$f":"IF($A465=\"N/A\",Ref!$B$36,INDEX(Ranks!$1:$1048576,$A465,DM$1))","v":""},{"$f":"IF($A465=\"N/A\",Ref!$B$36,INDEX(Ranks!$1:$1048576,$A465,DN$1))","v":""},{"$f":"IF($A465=\"N/A\",Ref!$B$36,INDEX(Ranks!$1:$1048576,$A465,DO$1))","v":""},{"$f":"IF($A465=\"N/A\",Ref!$B$36,INDEX(Ranks!$1:$1048576,$A465,DP$1))","v":""},{"$f":"IF($A465=\"N/A\",Ref!$B$36,INDEX(Ranks!$1:$1048576,$A465,DQ$1))","v":""},{"$f":"IF($A465=\"N/A\",Ref!$B$36,INDEX(Ranks!$1:$1048576,$A465,DR$1))","v":""},{"$f":"IF($A465=\"N/A\",Ref!$B$36,INDEX(Ranks!$1:$1048576,$A465,DS$1))","v":""},{"$f":"IF($A465=\"N/A\",Ref!$B$36,INDEX(Ranks!$1:$1048576,$A465,DT$1))","v":""},{"$f":"IF($A465=\"N/A\",Ref!$B$36,INDEX(Ranks!$1:$1048576,$A465,DU$1))","v":""},{"$f":"IF($A465=\"N/A\",Ref!$B$36,INDEX(Ranks!$1:$1048576,$A465,DV$1))","v":""},{"$f":"IF($A465=\"N/A\",Ref!$B$36,INDEX(Ranks!$1:$1048576,$A465,DW$1))","v":""},{"$f":"IF($A465=\"N/A\",Ref!$B$36,INDEX(Ranks!$1:$1048576,$A465,DX$1))","v":""},{"$f":"IF($A465=\"N/A\",Ref!$B$36,INDEX(Ranks!$1:$1048576,$A465,DY$1))","v":""},{"$f":"IF($A465=\"N/A\",Ref!$B$36,INDEX(Ranks!$1:$1048576,$A465,DZ$1))","v":""},{"$f":"IF($A465=\"N/A\",Ref!$B$36,INDEX(Ranks!$1:$1048576,$A465,EA$1))","v":""},{"$f":"IF($A465=\"N/A\",Ref!$B$36,INDEX(Ranks!$1:$1048576,$A465,EB$1))","v":""}]
[{"$f":"IFERROR(MATCH('Portfolio Page'!L466,Ranks!L:L,0),\"N/A\")","v":"N/A"},null,{"$f":"IF($A466=\"N/A\",\"\",INDEX(Ranks!$1:$1048576,$A466,C$1))","v":""},{"$f":"IF($A466=\"N/A\",Ref!$B$36,INDEX(Ranks!$1:$1048576,$A466,D$1))","v":""},{"$f":"IF($A466=\"N/A\",Ref!$B$36,INDEX(Ranks!$1:$1048576,$A466,E$1))","v":""},{"$f":"IF($A466=\"N/A\",\"\",INDEX(Ranks!$1:$1048576,$A466,F$1))","v":""},{"$f":"IF($A466=\"N/A\",\"\",INDEX(Ranks!$1:$1048576,$A466,G$1))","v":""},{"$f":"IF($A466=\"N/A\",\"\",INDEX(Ranks!$1:$1048576,$A466,H$1))","v":""},{"$f":"IF($A466=\"N/A\",\"\",INDEX(Ranks!$1:$1048576,$A466,I$1))","v":""},{"$f":"IF($A466=\"N/A\",\"\",INDEX(Ranks!$1:$1048576,$A466,J$1))","v":""},{"$f":"IF($A466=\"N/A\",\"\",INDEX(Ranks!$1:$1048576,$A466,K$1))","v":""},null,{"$f":"IF($A466=\"N/A\",Ref!$B$36,INDEX(Ranks!$1:$1048576,$A466,M$1))","v":""},{"$f":"IF($A466=\"N/A\",Ref!$B$36,INDEX(Ranks!$1:$1048576,$A466,N$1))","v":""},{"$f":"IF($A466=\"N/A\",Ref!$B$36,INDEX(Ranks!$1:$1048576,$A466,O$1))","v":""},{"$f":"IF($A466=\"N/A\",Ref!$B$36,INDEX(Ranks!$1:$1048576,$A466,P$1))","v":""},{"$f":"IF($A466=\"N/A\",Ref!$B$36,INDEX(Ranks!$1:$1048576,$A466,Q$1))","v":""},{"$f":"IF($A466=\"N/A\",Ref!$B$36,INDEX(Ranks!$1:$1048576,$A466,R$1))","v":""},{"$f":"IF($A466=\"N/A\",Ref!$B$36,INDEX(Ranks!$1:$1048576,$A466,S$1))","v":""},{"$f":"IF($A466=\"N/A\",Ref!$B$36,INDEX(Ranks!$1:$1048576,$A466,T$1))","v":""},{"$f":"IF($A466=\"N/A\",Ref!$B$36,INDEX(Ranks!$1:$1048576,$A466,U$1))","v":""},{"$f":"IF($A466=\"N/A\",Ref!$B$36,INDEX(Ranks!$1:$1048576,$A466,V$1))","v":""},{"$f":"IF($A466=\"N/A\",Ref!$B$36,INDEX(Ranks!$1:$1048576,$A466,W$1))","v":""},{"$f":"IF($A466=\"N/A\",Ref!$B$36,INDEX(Ranks!$1:$1048576,$A466,X$1))","v":""},{"$f":"IF($A466=\"N/A\",Ref!$B$36,INDEX(Ranks!$1:$1048576,$A466,Y$1))","v":""},{"$f":"IF($A466=\"N/A\",Ref!$B$36,INDEX(Ranks!$1:$1048576,$A466,Z$1))","v":""},{"$f":"IF($A466=\"N/A\",Ref!$B$36,INDEX(Ranks!$1:$1048576,$A466,AA$1))","v":""},{"$f":"IF($A466=\"N/A\",Ref!$B$36,INDEX(Ranks!$1:$1048576,$A466,AB$1))","v":""},{"$f":"IF($A466=\"N/A\",Ref!$B$36,INDEX(Ranks!$1:$1048576,$A466,AC$1))","v":""},{"$f":"IF($A466=\"N/A\",Ref!$B$36,INDEX(Ranks!$1:$1048576,$A466,AD$1))","v":""},{"$f":"IF($A466=\"N/A\",Ref!$B$36,INDEX(Ranks!$1:$1048576,$A466,AE$1))","v":""},{"$f":"IF($A466=\"N/A\",Ref!$B$36,INDEX(Ranks!$1:$1048576,$A466,AF$1))","v":""},{"$f":"IF($A466=\"N/A\",Ref!$B$36,INDEX(Ranks!$1:$1048576,$A466,AG$1))","v":""},{"$f":"IF($A466=\"N/A\",Ref!$B$36,INDEX(Ranks!$1:$1048576,$A466,AH$1))","v":""},{"$f":"IF($A466=\"N/A\",Ref!$B$36,INDEX(Ranks!$1:$1048576,$A466,AI$1))","v":""},{"$f":"IF($A466=\"N/A\",Ref!$B$36,INDEX(Ranks!$1:$1048576,$A466,AJ$1))","v":""},{"$f":"IF($A466=\"N/A\",Ref!$B$36,INDEX(Ranks!$1:$1048576,$A466,AK$1))","v":""},{"$f":"IF($A466=\"N/A\",Ref!$B$36,INDEX(Ranks!$1:$1048576,$A466,AL$1))","v":""},{"$f":"IF($A466=\"N/A\",Ref!$B$36,INDEX(Ranks!$1:$1048576,$A466,AM$1))","v":""},{"$f":"IF($A466=\"N/A\",Ref!$B$36,INDEX(Ranks!$1:$1048576,$A466,AN$1))","v":""},{"$f":"IF($A466=\"N/A\",Ref!$B$36,INDEX(Ranks!$1:$1048576,$A466,AO$1))","v":""},{"$f":"IF($A466=\"N/A\",Ref!$B$36,INDEX(Ranks!$1:$1048576,$A466,AP$1))","v":""},{"$f":"IF($A466=\"N/A\",Ref!$B$36,INDEX(Ranks!$1:$1048576,$A466,AQ$1))","v":""},{"$f":"IF($A466=\"N/A\",Ref!$B$36,INDEX(Ranks!$1:$1048576,$A466,AR$1))","v":""},{"$f":"IF($A466=\"N/A\",Ref!$B$36,INDEX(Ranks!$1:$1048576,$A466,AS$1))","v":""},{"$f":"IF($A466=\"N/A\",Ref!$B$36,INDEX(Ranks!$1:$1048576,$A466,AT$1))","v":""},{"$f":"IF($A466=\"N/A\",Ref!$B$36,INDEX(Ranks!$1:$1048576,$A466,AU$1))","v":""},{"$f":"IF($A466=\"N/A\",Ref!$B$36,INDEX(Ranks!$1:$1048576,$A466,AV$1))","v":""},{"$f":"IF($A466=\"N/A\",Ref!$B$36,INDEX(Ranks!$1:$1048576,$A466,AW$1))","v":""},{"$f":"IF($A466=\"N/A\",Ref!$B$36,INDEX(Ranks!$1:$1048576,$A466,AX$1))","v":""},{"$f":"IF($A466=\"N/A\",Ref!$B$36,INDEX(Ranks!$1:$1048576,$A466,AY$1))","v":""},{"$f":"IF($A466=\"N/A\",Ref!$B$36,INDEX(Ranks!$1:$1048576,$A466,AZ$1))","v":""},{"$f":"IF($A466=\"N/A\",Ref!$B$36,INDEX(Ranks!$1:$1048576,$A466,BA$1))","v":""},{"$f":"IF($A466=\"N/A\",Ref!$B$36,INDEX(Ranks!$1:$1048576,$A466,BB$1))","v":""},{"$f":"IF($A466=\"N/A\",Ref!$B$36,INDEX(Ranks!$1:$1048576,$A466,BC$1))","v":""},{"$f":"IF($A466=\"N/A\",Ref!$B$36,INDEX(Ranks!$1:$1048576,$A466,BD$1))","v":""},{"$f":"IF($A466=\"N/A\",Ref!$B$36,INDEX(Ranks!$1:$1048576,$A466,BE$1))","v":""},{"$f":"IF($A466=\"N/A\",Ref!$B$36,INDEX(Ranks!$1:$1048576,$A466,BF$1))","v":""},{"$f":"IF($A466=\"N/A\",Ref!$B$36,INDEX(Ranks!$1:$1048576,$A466,BG$1))","v":""},{"$f":"IF($A466=\"N/A\",Ref!$B$36,INDEX(Ranks!$1:$1048576,$A466,BH$1))","v":""},{"$f":"IF($A466=\"N/A\",Ref!$B$36,INDEX(Ranks!$1:$1048576,$A466,BI$1))","v":""},{"$f":"IF($A466=\"N/A\",Ref!$B$36,INDEX(Ranks!$1:$1048576,$A466,BJ$1))","v":""},{"$f":"IF($A466=\"N/A\",Ref!$B$36,INDEX(Ranks!$1:$1048576,$A466,BK$1))","v":""},{"$f":"IF($A466=\"N/A\",Ref!$B$36,INDEX(Ranks!$1:$1048576,$A466,BL$1))","v":""},{"$f":"IF($A466=\"N/A\",Ref!$B$36,INDEX(Ranks!$1:$1048576,$A466,BM$1))","v":""},{"$f":"IF($A466=\"N/A\",Ref!$B$36,INDEX(Ranks!$1:$1048576,$A466,BN$1))","v":""},{"$f":"IF($A466=\"N/A\",Ref!$B$36,INDEX(Ranks!$1:$1048576,$A466,BO$1))","v":""},{"$f":"IF($A466=\"N/A\",Ref!$B$36,INDEX(Ranks!$1:$1048576,$A466,BP$1))","v":""},{"$f":"IF($A466=\"N/A\",Ref!$B$36,INDEX(Ranks!$1:$1048576,$A466,BQ$1))","v":""},{"$f":"IF($A466=\"N/A\",Ref!$B$36,INDEX(Ranks!$1:$1048576,$A466,BR$1))","v":""},{"$f":"IF($A466=\"N/A\",Ref!$B$36,INDEX(Ranks!$1:$1048576,$A466,BS$1))","v":""},{"$f":"IF($A466=\"N/A\",Ref!$B$36,INDEX(Ranks!$1:$1048576,$A466,BT$1))","v":""},{"$f":"IF($A466=\"N/A\",Ref!$B$36,INDEX(Ranks!$1:$1048576,$A466,BU$1))","v":""},{"$f":"IF($A466=\"N/A\",Ref!$B$36,INDEX(Ranks!$1:$1048576,$A466,BV$1))","v":""},{"$f":"IF($A466=\"N/A\",Ref!$B$36,INDEX(Ranks!$1:$1048576,$A466,BW$1))","v":""},{"$f":"IF($A466=\"N/A\",Ref!$B$36,INDEX(Ranks!$1:$1048576,$A466,BX$1))","v":""},{"$f":"IF($A466=\"N/A\",Ref!$B$36,INDEX(Ranks!$1:$1048576,$A466,BY$1))","v":""},{"$f":"IF($A466=\"N/A\",Ref!$B$36,INDEX(Ranks!$1:$1048576,$A466,BZ$1))","v":""},{"$f":"IF($A466=\"N/A\",Ref!$B$36,INDEX(Ranks!$1:$1048576,$A466,CA$1))","v":""},{"$f":"IF($A466=\"N/A\",Ref!$B$36,INDEX(Ranks!$1:$1048576,$A466,CB$1))","v":""},{"$f":"IF($A466=\"N/A\",Ref!$B$36,INDEX(Ranks!$1:$1048576,$A466,CC$1))","v":""},{"$f":"IF($A466=\"N/A\",Ref!$B$36,INDEX(Ranks!$1:$1048576,$A466,CD$1))","v":""},{"$f":"IF($A466=\"N/A\",Ref!$B$36,INDEX(Ranks!$1:$1048576,$A466,CE$1))","v":""},{"$f":"IF($A466=\"N/A\",Ref!$B$36,INDEX(Ranks!$1:$1048576,$A466,CF$1))","v":""},{"$f":"IF($A466=\"N/A\",Ref!$B$36,INDEX(Ranks!$1:$1048576,$A466,CG$1))","v":""},{"$f":"IF($A466=\"N/A\",Ref!$B$36,INDEX(Ranks!$1:$1048576,$A466,CH$1))","v":""},{"$f":"IF($A466=\"N/A\",Ref!$B$36,INDEX(Ranks!$1:$1048576,$A466,CI$1))","v":""},{"$f":"IF($A466=\"N/A\",Ref!$B$36,INDEX(Ranks!$1:$1048576,$A466,CJ$1))","v":""},{"$f":"IF($A466=\"N/A\",Ref!$B$36,INDEX(Ranks!$1:$1048576,$A466,CK$1))","v":""},{"$f":"IF($A466=\"N/A\",Ref!$B$36,INDEX(Ranks!$1:$1048576,$A466,CL$1))","v":""},{"$f":"IF($A466=\"N/A\",Ref!$B$36,INDEX(Ranks!$1:$1048576,$A466,CM$1))","v":""},{"$f":"IF($A466=\"N/A\",Ref!$B$36,INDEX(Ranks!$1:$1048576,$A466,CN$1))","v":""},{"$f":"IF($A466=\"N/A\",Ref!$B$36,INDEX(Ranks!$1:$1048576,$A466,CO$1))","v":""},{"$f":"IF($A466=\"N/A\",Ref!$B$36,INDEX(Ranks!$1:$1048576,$A466,CP$1))","v":""},{"$f":"IF($A466=\"N/A\",Ref!$B$36,INDEX(Ranks!$1:$1048576,$A466,CQ$1))","v":""},{"$f":"IF($A466=\"N/A\",Ref!$B$36,INDEX(Ranks!$1:$1048576,$A466,CR$1))","v":""},{"$f":"IF($A466=\"N/A\",Ref!$B$36,INDEX(Ranks!$1:$1048576,$A466,CS$1))","v":""},{"$f":"IF($A466=\"N/A\",Ref!$B$36,INDEX(Ranks!$1:$1048576,$A466,CT$1))","v":""},{"$f":"IF($A466=\"N/A\",Ref!$B$36,INDEX(Ranks!$1:$1048576,$A466,CU$1))","v":""},{"$f":"IF($A466=\"N/A\",Ref!$B$36,INDEX(Ranks!$1:$1048576,$A466,CV$1))","v":""},{"$f":"IF($A466=\"N/A\",Ref!$B$36,INDEX(Ranks!$1:$1048576,$A466,CW$1))","v":""},{"$f":"IF($A466=\"N/A\",Ref!$B$36,INDEX(Ranks!$1:$1048576,$A466,CX$1))","v":""},{"$f":"IF($A466=\"N/A\",Ref!$B$36,INDEX(Ranks!$1:$1048576,$A466,CY$1))","v":""},{"$f":"IF($A466=\"N/A\",Ref!$B$36,INDEX(Ranks!$1:$1048576,$A466,CZ$1))","v":""},{"$f":"IF($A466=\"N/A\",Ref!$B$36,INDEX(Ranks!$1:$1048576,$A466,DA$1))","v":""},{"$f":"IF($A466=\"N/A\",Ref!$B$36,INDEX(Ranks!$1:$1048576,$A466,DB$1))","v":""},{"$f":"IF($A466=\"N/A\",Ref!$B$36,INDEX(Ranks!$1:$1048576,$A466,DC$1))","v":""},{"$f":"IF($A466=\"N/A\",Ref!$B$36,INDEX(Ranks!$1:$1048576,$A466,DD$1))","v":""},{"$f":"IF($A466=\"N/A\",Ref!$B$36,INDEX(Ranks!$1:$1048576,$A466,DE$1))","v":""},{"$f":"IF($A466=\"N/A\",Ref!$B$36,INDEX(Ranks!$1:$1048576,$A466,DF$1))","v":""},{"$f":"IF($A466=\"N/A\",Ref!$B$36,INDEX(Ranks!$1:$1048576,$A466,DG$1))","v":""},{"$f":"IF($A466=\"N/A\",Ref!$B$36,INDEX(Ranks!$1:$1048576,$A466,DH$1))","v":""},{"$f":"IF($A466=\"N/A\",Ref!$B$36,INDEX(Ranks!$1:$1048576,$A466,DI$1))","v":""},{"$f":"IF($A466=\"N/A\",Ref!$B$36,INDEX(Ranks!$1:$1048576,$A466,DJ$1))","v":""},{"$f":"IF($A466=\"N/A\",Ref!$B$36,INDEX(Ranks!$1:$1048576,$A466,DK$1))","v":""},{"$f":"IF($A466=\"N/A\",Ref!$B$36,INDEX(Ranks!$1:$1048576,$A466,DL$1))","v":""},{"$f":"IF($A466=\"N/A\",Ref!$B$36,INDEX(Ranks!$1:$1048576,$A466,DM$1))","v":""},{"$f":"IF($A466=\"N/A\",Ref!$B$36,INDEX(Ranks!$1:$1048576,$A466,DN$1))","v":""},{"$f":"IF($A466=\"N/A\",Ref!$B$36,INDEX(Ranks!$1:$1048576,$A466,DO$1))","v":""},{"$f":"IF($A466=\"N/A\",Ref!$B$36,INDEX(Ranks!$1:$1048576,$A466,DP$1))","v":""},{"$f":"IF($A466=\"N/A\",Ref!$B$36,INDEX(Ranks!$1:$1048576,$A466,DQ$1))","v":""},{"$f":"IF($A466=\"N/A\",Ref!$B$36,INDEX(Ranks!$1:$1048576,$A466,DR$1))","v":""},{"$f":"IF($A466=\"N/A\",Ref!$B$36,INDEX(Ranks!$1:$1048576,$A466,DS$1))","v":""},{"$f":"IF($A466=\"N/A\",Ref!$B$36,INDEX(Ranks!$1:$1048576,$A466,DT$1))","v":""},{"$f":"IF($A466=\"N/A\",Ref!$B$36,INDEX(Ranks!$1:$1048576,$A466,DU$1))","v":""},{"$f":"IF($A466=\"N/A\",Ref!$B$36,INDEX(Ranks!$1:$1048576,$A466,DV$1))","v":""},{"$f":"IF($A466=\"N/A\",Ref!$B$36,INDEX(Ranks!$1:$1048576,$A466,DW$1))","v":""},{"$f":"IF($A466=\"N/A\",Ref!$B$36,INDEX(Ranks!$1:$1048576,$A466,DX$1))","v":""},{"$f":"IF($A466=\"N/A\",Ref!$B$36,INDEX(Ranks!$1:$1048576,$A466,DY$1))","v":""},{"$f":"IF($A466=\"N/A\",Ref!$B$36,INDEX(Ranks!$1:$1048576,$A466,DZ$1))","v":""},{"$f":"IF($A466=\"N/A\",Ref!$B$36,INDEX(Ranks!$1:$1048576,$A466,EA$1))","v":""},{"$f":"IF($A466=\"N/A\",Ref!$B$36,INDEX(Ranks!$1:$1048576,$A466,EB$1))","v":""}]
[{"$f":"IFERROR(MATCH('Portfolio Page'!L467,Ranks!L:L,0),\"N/A\")","v":"N/A"},null,{"$f":"IF($A467=\"N/A\",\"\",INDEX(Ranks!$1:$1048576,$A467,C$1))","v":""},{"$f":"IF($A467=\"N/A\",Ref!$B$36,INDEX(Ranks!$1:$1048576,$A467,D$1))","v":""},{"$f":"IF($A467=\"N/A\",Ref!$B$36,INDEX(Ranks!$1:$1048576,$A467,E$1))","v":""},{"$f":"IF($A467=\"N/A\",\"\",INDEX(Ranks!$1:$1048576,$A467,F$1))","v":""},{"$f":"IF($A467=\"N/A\",\"\",INDEX(Ranks!$1:$1048576,$A467,G$1))","v":""},{"$f":"IF($A467=\"N/A\",\"\",INDEX(Ranks!$1:$1048576,$A467,H$1))","v":""},{"$f":"IF($A467=\"N/A\",\"\",INDEX(Ranks!$1:$1048576,$A467,I$1))","v":""},{"$f":"IF($A467=\"N/A\",\"\",INDEX(Ranks!$1:$1048576,$A467,J$1))","v":""},{"$f":"IF($A467=\"N/A\",\"\",INDEX(Ranks!$1:$1048576,$A467,K$1))","v":""},null,{"$f":"IF($A467=\"N/A\",Ref!$B$36,INDEX(Ranks!$1:$1048576,$A467,M$1))","v":""},{"$f":"IF($A467=\"N/A\",Ref!$B$36,INDEX(Ranks!$1:$1048576,$A467,N$1))","v":""},{"$f":"IF($A467=\"N/A\",Ref!$B$36,INDEX(Ranks!$1:$1048576,$A467,O$1))","v":""},{"$f":"IF($A467=\"N/A\",Ref!$B$36,INDEX(Ranks!$1:$1048576,$A467,P$1))","v":""},{"$f":"IF($A467=\"N/A\",Ref!$B$36,INDEX(Ranks!$1:$1048576,$A467,Q$1))","v":""},{"$f":"IF($A467=\"N/A\",Ref!$B$36,INDEX(Ranks!$1:$1048576,$A467,R$1))","v":""},{"$f":"IF($A467=\"N/A\",Ref!$B$36,INDEX(Ranks!$1:$1048576,$A467,S$1))","v":""},{"$f":"IF($A467=\"N/A\",Ref!$B$36,INDEX(Ranks!$1:$1048576,$A467,T$1))","v":""},{"$f":"IF($A467=\"N/A\",Ref!$B$36,INDEX(Ranks!$1:$1048576,$A467,U$1))","v":""},{"$f":"IF($A467=\"N/A\",Ref!$B$36,INDEX(Ranks!$1:$1048576,$A467,V$1))","v":""},{"$f":"IF($A467=\"N/A\",Ref!$B$36,INDEX(Ranks!$1:$1048576,$A467,W$1))","v":""},{"$f":"IF($A467=\"N/A\",Ref!$B$36,INDEX(Ranks!$1:$1048576,$A467,X$1))","v":""},{"$f":"IF($A467=\"N/A\",Ref!$B$36,INDEX(Ranks!$1:$1048576,$A467,Y$1))","v":""},{"$f":"IF($A467=\"N/A\",Ref!$B$36,INDEX(Ranks!$1:$1048576,$A467,Z$1))","v":""},{"$f":"IF($A467=\"N/A\",Ref!$B$36,INDEX(Ranks!$1:$1048576,$A467,AA$1))","v":""},{"$f":"IF($A467=\"N/A\",Ref!$B$36,INDEX(Ranks!$1:$1048576,$A467,AB$1))","v":""},{"$f":"IF($A467=\"N/A\",Ref!$B$36,INDEX(Ranks!$1:$1048576,$A467,AC$1))","v":""},{"$f":"IF($A467=\"N/A\",Ref!$B$36,INDEX(Ranks!$1:$1048576,$A467,AD$1))","v":""},{"$f":"IF($A467=\"N/A\",Ref!$B$36,INDEX(Ranks!$1:$1048576,$A467,AE$1))","v":""},{"$f":"IF($A467=\"N/A\",Ref!$B$36,INDEX(Ranks!$1:$1048576,$A467,AF$1))","v":""},{"$f":"IF($A467=\"N/A\",Ref!$B$36,INDEX(Ranks!$1:$1048576,$A467,AG$1))","v":""},{"$f":"IF($A467=\"N/A\",Ref!$B$36,INDEX(Ranks!$1:$1048576,$A467,AH$1))","v":""},{"$f":"IF($A467=\"N/A\",Ref!$B$36,INDEX(Ranks!$1:$1048576,$A467,AI$1))","v":""},{"$f":"IF($A467=\"N/A\",Ref!$B$36,INDEX(Ranks!$1:$1048576,$A467,AJ$1))","v":""},{"$f":"IF($A467=\"N/A\",Ref!$B$36,INDEX(Ranks!$1:$1048576,$A467,AK$1))","v":""},{"$f":"IF($A467=\"N/A\",Ref!$B$36,INDEX(Ranks!$1:$1048576,$A467,AL$1))","v":""},{"$f":"IF($A467=\"N/A\",Ref!$B$36,INDEX(Ranks!$1:$1048576,$A467,AM$1))","v":""},{"$f":"IF($A467=\"N/A\",Ref!$B$36,INDEX(Ranks!$1:$1048576,$A467,AN$1))","v":""},{"$f":"IF($A467=\"N/A\",Ref!$B$36,INDEX(Ranks!$1:$1048576,$A467,AO$1))","v":""},{"$f":"IF($A467=\"N/A\",Ref!$B$36,INDEX(Ranks!$1:$1048576,$A467,AP$1))","v":""},{"$f":"IF($A467=\"N/A\",Ref!$B$36,INDEX(Ranks!$1:$1048576,$A467,AQ$1))","v":""},{"$f":"IF($A467=\"N/A\",Ref!$B$36,INDEX(Ranks!$1:$1048576,$A467,AR$1))","v":""},{"$f":"IF($A467=\"N/A\",Ref!$B$36,INDEX(Ranks!$1:$1048576,$A467,AS$1))","v":""},{"$f":"IF($A467=\"N/A\",Ref!$B$36,INDEX(Ranks!$1:$1048576,$A467,AT$1))","v":""},{"$f":"IF($A467=\"N/A\",Ref!$B$36,INDEX(Ranks!$1:$1048576,$A467,AU$1))","v":""},{"$f":"IF($A467=\"N/A\",Ref!$B$36,INDEX(Ranks!$1:$1048576,$A467,AV$1))","v":""},{"$f":"IF($A467=\"N/A\",Ref!$B$36,INDEX(Ranks!$1:$1048576,$A467,AW$1))","v":""},{"$f":"IF($A467=\"N/A\",Ref!$B$36,INDEX(Ranks!$1:$1048576,$A467,AX$1))","v":""},{"$f":"IF($A467=\"N/A\",Ref!$B$36,INDEX(Ranks!$1:$1048576,$A467,AY$1))","v":""},{"$f":"IF($A467=\"N/A\",Ref!$B$36,INDEX(Ranks!$1:$1048576,$A467,AZ$1))","v":""},{"$f":"IF($A467=\"N/A\",Ref!$B$36,INDEX(Ranks!$1:$1048576,$A467,BA$1))","v":""},{"$f":"IF($A467=\"N/A\",Ref!$B$36,INDEX(Ranks!$1:$1048576,$A467,BB$1))","v":""},{"$f":"IF($A467=\"N/A\",Ref!$B$36,INDEX(Ranks!$1:$1048576,$A467,BC$1))","v":""},{"$f":"IF($A467=\"N/A\",Ref!$B$36,INDEX(Ranks!$1:$1048576,$A467,BD$1))","v":""},{"$f":"IF($A467=\"N/A\",Ref!$B$36,INDEX(Ranks!$1:$1048576,$A467,BE$1))","v":""},{"$f":"IF($A467=\"N/A\",Ref!$B$36,INDEX(Ranks!$1:$1048576,$A467,BF$1))","v":""},{"$f":"IF($A467=\"N/A\",Ref!$B$36,INDEX(Ranks!$1:$1048576,$A467,BG$1))","v":""},{"$f":"IF($A467=\"N/A\",Ref!$B$36,INDEX(Ranks!$1:$1048576,$A467,BH$1))","v":""},{"$f":"IF($A467=\"N/A\",Ref!$B$36,INDEX(Ranks!$1:$1048576,$A467,BI$1))","v":""},{"$f":"IF($A467=\"N/A\",Ref!$B$36,INDEX(Ranks!$1:$1048576,$A467,BJ$1))","v":""},{"$f":"IF($A467=\"N/A\",Ref!$B$36,INDEX(Ranks!$1:$1048576,$A467,BK$1))","v":""},{"$f":"IF($A467=\"N/A\",Ref!$B$36,INDEX(Ranks!$1:$1048576,$A467,BL$1))","v":""},{"$f":"IF($A467=\"N/A\",Ref!$B$36,INDEX(Ranks!$1:$1048576,$A467,BM$1))","v":""},{"$f":"IF($A467=\"N/A\",Ref!$B$36,INDEX(Ranks!$1:$1048576,$A467,BN$1))","v":""},{"$f":"IF($A467=\"N/A\",Ref!$B$36,INDEX(Ranks!$1:$1048576,$A467,BO$1))","v":""},{"$f":"IF($A467=\"N/A\",Ref!$B$36,INDEX(Ranks!$1:$1048576,$A467,BP$1))","v":""},{"$f":"IF($A467=\"N/A\",Ref!$B$36,INDEX(Ranks!$1:$1048576,$A467,BQ$1))","v":""},{"$f":"IF($A467=\"N/A\",Ref!$B$36,INDEX(Ranks!$1:$1048576,$A467,BR$1))","v":""},{"$f":"IF($A467=\"N/A\",Ref!$B$36,INDEX(Ranks!$1:$1048576,$A467,BS$1))","v":""},{"$f":"IF($A467=\"N/A\",Ref!$B$36,INDEX(Ranks!$1:$1048576,$A467,BT$1))","v":""},{"$f":"IF($A467=\"N/A\",Ref!$B$36,INDEX(Ranks!$1:$1048576,$A467,BU$1))","v":""},{"$f":"IF($A467=\"N/A\",Ref!$B$36,INDEX(Ranks!$1:$1048576,$A467,BV$1))","v":""},{"$f":"IF($A467=\"N/A\",Ref!$B$36,INDEX(Ranks!$1:$1048576,$A467,BW$1))","v":""},{"$f":"IF($A467=\"N/A\",Ref!$B$36,INDEX(Ranks!$1:$1048576,$A467,BX$1))","v":""},{"$f":"IF($A467=\"N/A\",Ref!$B$36,INDEX(Ranks!$1:$1048576,$A467,BY$1))","v":""},{"$f":"IF($A467=\"N/A\",Ref!$B$36,INDEX(Ranks!$1:$1048576,$A467,BZ$1))","v":""},{"$f":"IF($A467=\"N/A\",Ref!$B$36,INDEX(Ranks!$1:$1048576,$A467,CA$1))","v":""},{"$f":"IF($A467=\"N/A\",Ref!$B$36,INDEX(Ranks!$1:$1048576,$A467,CB$1))","v":""},{"$f":"IF($A467=\"N/A\",Ref!$B$36,INDEX(Ranks!$1:$1048576,$A467,CC$1))","v":""},{"$f":"IF($A467=\"N/A\",Ref!$B$36,INDEX(Ranks!$1:$1048576,$A467,CD$1))","v":""},{"$f":"IF($A467=\"N/A\",Ref!$B$36,INDEX(Ranks!$1:$1048576,$A467,CE$1))","v":""},{"$f":"IF($A467=\"N/A\",Ref!$B$36,INDEX(Ranks!$1:$1048576,$A467,CF$1))","v":""},{"$f":"IF($A467=\"N/A\",Ref!$B$36,INDEX(Ranks!$1:$1048576,$A467,CG$1))","v":""},{"$f":"IF($A467=\"N/A\",Ref!$B$36,INDEX(Ranks!$1:$1048576,$A467,CH$1))","v":""},{"$f":"IF($A467=\"N/A\",Ref!$B$36,INDEX(Ranks!$1:$1048576,$A467,CI$1))","v":""},{"$f":"IF($A467=\"N/A\",Ref!$B$36,INDEX(Ranks!$1:$1048576,$A467,CJ$1))","v":""},{"$f":"IF($A467=\"N/A\",Ref!$B$36,INDEX(Ranks!$1:$1048576,$A467,CK$1))","v":""},{"$f":"IF($A467=\"N/A\",Ref!$B$36,INDEX(Ranks!$1:$1048576,$A467,CL$1))","v":""},{"$f":"IF($A467=\"N/A\",Ref!$B$36,INDEX(Ranks!$1:$1048576,$A467,CM$1))","v":""},{"$f":"IF($A467=\"N/A\",Ref!$B$36,INDEX(Ranks!$1:$1048576,$A467,CN$1))","v":""},{"$f":"IF($A467=\"N/A\",Ref!$B$36,INDEX(Ranks!$1:$1048576,$A467,CO$1))","v":""},{"$f":"IF($A467=\"N/A\",Ref!$B$36,INDEX(Ranks!$1:$1048576,$A467,CP$1))","v":""},{"$f":"IF($A467=\"N/A\",Ref!$B$36,INDEX(Ranks!$1:$1048576,$A467,CQ$1))","v":""},{"$f":"IF($A467=\"N/A\",Ref!$B$36,INDEX(Ranks!$1:$1048576,$A467,CR$1))","v":""},{"$f":"IF($A467=\"N/A\",Ref!$B$36,INDEX(Ranks!$1:$1048576,$A467,CS$1))","v":""},{"$f":"IF($A467=\"N/A\",Ref!$B$36,INDEX(Ranks!$1:$1048576,$A467,CT$1))","v":""},{"$f":"IF($A467=\"N/A\",Ref!$B$36,INDEX(Ranks!$1:$1048576,$A467,CU$1))","v":""},{"$f":"IF($A467=\"N/A\",Ref!$B$36,INDEX(Ranks!$1:$1048576,$A467,CV$1))","v":""},{"$f":"IF($A467=\"N/A\",Ref!$B$36,INDEX(Ranks!$1:$1048576,$A467,CW$1))","v":""},{"$f":"IF($A467=\"N/A\",Ref!$B$36,INDEX(Ranks!$1:$1048576,$A467,CX$1))","v":""},{"$f":"IF($A467=\"N/A\",Ref!$B$36,INDEX(Ranks!$1:$1048576,$A467,CY$1))","v":""},{"$f":"IF($A467=\"N/A\",Ref!$B$36,INDEX(Ranks!$1:$1048576,$A467,CZ$1))","v":""},{"$f":"IF($A467=\"N/A\",Ref!$B$36,INDEX(Ranks!$1:$1048576,$A467,DA$1))","v":""},{"$f":"IF($A467=\"N/A\",Ref!$B$36,INDEX(Ranks!$1:$1048576,$A467,DB$1))","v":""},{"$f":"IF($A467=\"N/A\",Ref!$B$36,INDEX(Ranks!$1:$1048576,$A467,DC$1))","v":""},{"$f":"IF($A467=\"N/A\",Ref!$B$36,INDEX(Ranks!$1:$1048576,$A467,DD$1))","v":""},{"$f":"IF($A467=\"N/A\",Ref!$B$36,INDEX(Ranks!$1:$1048576,$A467,DE$1))","v":""},{"$f":"IF($A467=\"N/A\",Ref!$B$36,INDEX(Ranks!$1:$1048576,$A467,DF$1))","v":""},{"$f":"IF($A467=\"N/A\",Ref!$B$36,INDEX(Ranks!$1:$1048576,$A467,DG$1))","v":""},{"$f":"IF($A467=\"N/A\",Ref!$B$36,INDEX(Ranks!$1:$1048576,$A467,DH$1))","v":""},{"$f":"IF($A467=\"N/A\",Ref!$B$36,INDEX(Ranks!$1:$1048576,$A467,DI$1))","v":""},{"$f":"IF($A467=\"N/A\",Ref!$B$36,INDEX(Ranks!$1:$1048576,$A467,DJ$1))","v":""},{"$f":"IF($A467=\"N/A\",Ref!$B$36,INDEX(Ranks!$1:$1048576,$A467,DK$1))","v":""},{"$f":"IF($A467=\"N/A\",Ref!$B$36,INDEX(Ranks!$1:$1048576,$A467,DL$1))","v":""},{"$f":"IF($A467=\"N/A\",Ref!$B$36,INDEX(Ranks!$1:$1048576,$A467,DM$1))","v":""},{"$f":"IF($A467=\"N/A\",Ref!$B$36,INDEX(Ranks!$1:$1048576,$A467,DN$1))","v":""},{"$f":"IF($A467=\"N/A\",Ref!$B$36,INDEX(Ranks!$1:$1048576,$A467,DO$1))","v":""},{"$f":"IF($A467=\"N/A\",Ref!$B$36,INDEX(Ranks!$1:$1048576,$A467,DP$1))","v":""},{"$f":"IF($A467=\"N/A\",Ref!$B$36,INDEX(Ranks!$1:$1048576,$A467,DQ$1))","v":""},{"$f":"IF($A467=\"N/A\",Ref!$B$36,INDEX(Ranks!$1:$1048576,$A467,DR$1))","v":""},{"$f":"IF($A467=\"N/A\",Ref!$B$36,INDEX(Ranks!$1:$1048576,$A467,DS$1))","v":""},{"$f":"IF($A467=\"N/A\",Ref!$B$36,INDEX(Ranks!$1:$1048576,$A467,DT$1))","v":""},{"$f":"IF($A467=\"N/A\",Ref!$B$36,INDEX(Ranks!$1:$1048576,$A467,DU$1))","v":""},{"$f":"IF($A467=\"N/A\",Ref!$B$36,INDEX(Ranks!$1:$1048576,$A467,DV$1))","v":""},{"$f":"IF($A467=\"N/A\",Ref!$B$36,INDEX(Ranks!$1:$1048576,$A467,DW$1))","v":""},{"$f":"IF($A467=\"N/A\",Ref!$B$36,INDEX(Ranks!$1:$1048576,$A467,DX$1))","v":""},{"$f":"IF($A467=\"N/A\",Ref!$B$36,INDEX(Ranks!$1:$1048576,$A467,DY$1))","v":""},{"$f":"IF($A467=\"N/A\",Ref!$B$36,INDEX(Ranks!$1:$1048576,$A467,DZ$1))","v":""},{"$f":"IF($A467=\"N/A\",Ref!$B$36,INDEX(Ranks!$1:$1048576,$A467,EA$1))","v":""},{"$f":"IF($A467=\"N/A\",Ref!$B$36,INDEX(Ranks!$1:$1048576,$A467,EB$1))","v":""}]
[{"$f":"IFERROR(MATCH('Portfolio Page'!L468,Ranks!L:L,0),\"N/A\")","v":"N/A"},null,{"$f":"IF($A468=\"N/A\",\"\",INDEX(Ranks!$1:$1048576,$A468,C$1))","v":""},{"$f":"IF($A468=\"N/A\",Ref!$B$36,INDEX(Ranks!$1:$1048576,$A468,D$1))","v":""},{"$f":"IF($A468=\"N/A\",Ref!$B$36,INDEX(Ranks!$1:$1048576,$A468,E$1))","v":""},{"$f":"IF($A468=\"N/A\",\"\",INDEX(Ranks!$1:$1048576,$A468,F$1))","v":""},{"$f":"IF($A468=\"N/A\",\"\",INDEX(Ranks!$1:$1048576,$A468,G$1))","v":""},{"$f":"IF($A468=\"N/A\",\"\",INDEX(Ranks!$1:$1048576,$A468,H$1))","v":""},{"$f":"IF($A468=\"N/A\",\"\",INDEX(Ranks!$1:$1048576,$A468,I$1))","v":""},{"$f":"IF($A468=\"N/A\",\"\",INDEX(Ranks!$1:$1048576,$A468,J$1))","v":""},{"$f":"IF($A468=\"N/A\",\"\",INDEX(Ranks!$1:$1048576,$A468,K$1))","v":""},null,{"$f":"IF($A468=\"N/A\",Ref!$B$36,INDEX(Ranks!$1:$1048576,$A468,M$1))","v":""},{"$f":"IF($A468=\"N/A\",Ref!$B$36,INDEX(Ranks!$1:$1048576,$A468,N$1))","v":""},{"$f":"IF($A468=\"N/A\",Ref!$B$36,INDEX(Ranks!$1:$1048576,$A468,O$1))","v":""},{"$f":"IF($A468=\"N/A\",Ref!$B$36,INDEX(Ranks!$1:$1048576,$A468,P$1))","v":""},{"$f":"IF($A468=\"N/A\",Ref!$B$36,INDEX(Ranks!$1:$1048576,$A468,Q$1))","v":""},{"$f":"IF($A468=\"N/A\",Ref!$B$36,INDEX(Ranks!$1:$1048576,$A468,R$1))","v":""},{"$f":"IF($A468=\"N/A\",Ref!$B$36,INDEX(Ranks!$1:$1048576,$A468,S$1))","v":""},{"$f":"IF($A468=\"N/A\",Ref!$B$36,INDEX(Ranks!$1:$1048576,$A468,T$1))","v":""},{"$f":"IF($A468=\"N/A\",Ref!$B$36,INDEX(Ranks!$1:$1048576,$A468,U$1))","v":""},{"$f":"IF($A468=\"N/A\",Ref!$B$36,INDEX(Ranks!$1:$1048576,$A468,V$1))","v":""},{"$f":"IF($A468=\"N/A\",Ref!$B$36,INDEX(Ranks!$1:$1048576,$A468,W$1))","v":""},{"$f":"IF($A468=\"N/A\",Ref!$B$36,INDEX(Ranks!$1:$1048576,$A468,X$1))","v":""},{"$f":"IF($A468=\"N/A\",Ref!$B$36,INDEX(Ranks!$1:$1048576,$A468,Y$1))","v":""},{"$f":"IF($A468=\"N/A\",Ref!$B$36,INDEX(Ranks!$1:$1048576,$A468,Z$1))","v":""},{"$f":"IF($A468=\"N/A\",Ref!$B$36,INDEX(Ranks!$1:$1048576,$A468,AA$1))","v":""},{"$f":"IF($A468=\"N/A\",Ref!$B$36,INDEX(Ranks!$1:$1048576,$A468,AB$1))","v":""},{"$f":"IF($A468=\"N/A\",Ref!$B$36,INDEX(Ranks!$1:$1048576,$A468,AC$1))","v":""},{"$f":"IF($A468=\"N/A\",Ref!$B$36,INDEX(Ranks!$1:$1048576,$A468,AD$1))","v":""},{"$f":"IF($A468=\"N/A\",Ref!$B$36,INDEX(Ranks!$1:$1048576,$A468,AE$1))","v":""},{"$f":"IF($A468=\"N/A\",Ref!$B$36,INDEX(Ranks!$1:$1048576,$A468,AF$1))","v":""},{"$f":"IF($A468=\"N/A\",Ref!$B$36,INDEX(Ranks!$1:$1048576,$A468,AG$1))","v":""},{"$f":"IF($A468=\"N/A\",Ref!$B$36,INDEX(Ranks!$1:$1048576,$A468,AH$1))","v":""},{"$f":"IF($A468=\"N/A\",Ref!$B$36,INDEX(Ranks!$1:$1048576,$A468,AI$1))","v":""},{"$f":"IF($A468=\"N/A\",Ref!$B$36,INDEX(Ranks!$1:$1048576,$A468,AJ$1))","v":""},{"$f":"IF($A468=\"N/A\",Ref!$B$36,INDEX(Ranks!$1:$1048576,$A468,AK$1))","v":""},{"$f":"IF($A468=\"N/A\",Ref!$B$36,INDEX(Ranks!$1:$1048576,$A468,AL$1))","v":""},{"$f":"IF($A468=\"N/A\",Ref!$B$36,INDEX(Ranks!$1:$1048576,$A468,AM$1))","v":""},{"$f":"IF($A468=\"N/A\",Ref!$B$36,INDEX(Ranks!$1:$1048576,$A468,AN$1))","v":""},{"$f":"IF($A468=\"N/A\",Ref!$B$36,INDEX(Ranks!$1:$1048576,$A468,AO$1))","v":""},{"$f":"IF($A468=\"N/A\",Ref!$B$36,INDEX(Ranks!$1:$1048576,$A468,AP$1))","v":""},{"$f":"IF($A468=\"N/A\",Ref!$B$36,INDEX(Ranks!$1:$1048576,$A468,AQ$1))","v":""},{"$f":"IF($A468=\"N/A\",Ref!$B$36,INDEX(Ranks!$1:$1048576,$A468,AR$1))","v":""},{"$f":"IF($A468=\"N/A\",Ref!$B$36,INDEX(Ranks!$1:$1048576,$A468,AS$1))","v":""},{"$f":"IF($A468=\"N/A\",Ref!$B$36,INDEX(Ranks!$1:$1048576,$A468,AT$1))","v":""},{"$f":"IF($A468=\"N/A\",Ref!$B$36,INDEX(Ranks!$1:$1048576,$A468,AU$1))","v":""},{"$f":"IF($A468=\"N/A\",Ref!$B$36,INDEX(Ranks!$1:$1048576,$A468,AV$1))","v":""},{"$f":"IF($A468=\"N/A\",Ref!$B$36,INDEX(Ranks!$1:$1048576,$A468,AW$1))","v":""},{"$f":"IF($A468=\"N/A\",Ref!$B$36,INDEX(Ranks!$1:$1048576,$A468,AX$1))","v":""},{"$f":"IF($A468=\"N/A\",Ref!$B$36,INDEX(Ranks!$1:$1048576,$A468,AY$1))","v":""},{"$f":"IF($A468=\"N/A\",Ref!$B$36,INDEX(Ranks!$1:$1048576,$A468,AZ$1))","v":""},{"$f":"IF($A468=\"N/A\",Ref!$B$36,INDEX(Ranks!$1:$1048576,$A468,BA$1))","v":""},{"$f":"IF($A468=\"N/A\",Ref!$B$36,INDEX(Ranks!$1:$1048576,$A468,BB$1))","v":""},{"$f":"IF($A468=\"N/A\",Ref!$B$36,INDEX(Ranks!$1:$1048576,$A468,BC$1))","v":""},{"$f":"IF($A468=\"N/A\",Ref!$B$36,INDEX(Ranks!$1:$1048576,$A468,BD$1))","v":""},{"$f":"IF($A468=\"N/A\",Ref!$B$36,INDEX(Ranks!$1:$1048576,$A468,BE$1))","v":""},{"$f":"IF($A468=\"N/A\",Ref!$B$36,INDEX(Ranks!$1:$1048576,$A468,BF$1))","v":""},{"$f":"IF($A468=\"N/A\",Ref!$B$36,INDEX(Ranks!$1:$1048576,$A468,BG$1))","v":""},{"$f":"IF($A468=\"N/A\",Ref!$B$36,INDEX(Ranks!$1:$1048576,$A468,BH$1))","v":""},{"$f":"IF($A468=\"N/A\",Ref!$B$36,INDEX(Ranks!$1:$1048576,$A468,BI$1))","v":""},{"$f":"IF($A468=\"N/A\",Ref!$B$36,INDEX(Ranks!$1:$1048576,$A468,BJ$1))","v":""},{"$f":"IF($A468=\"N/A\",Ref!$B$36,INDEX(Ranks!$1:$1048576,$A468,BK$1))","v":""},{"$f":"IF($A468=\"N/A\",Ref!$B$36,INDEX(Ranks!$1:$1048576,$A468,BL$1))","v":""},{"$f":"IF($A468=\"N/A\",Ref!$B$36,INDEX(Ranks!$1:$1048576,$A468,BM$1))","v":""},{"$f":"IF($A468=\"N/A\",Ref!$B$36,INDEX(Ranks!$1:$1048576,$A468,BN$1))","v":""},{"$f":"IF($A468=\"N/A\",Ref!$B$36,INDEX(Ranks!$1:$1048576,$A468,BO$1))","v":""},{"$f":"IF($A468=\"N/A\",Ref!$B$36,INDEX(Ranks!$1:$1048576,$A468,BP$1))","v":""},{"$f":"IF($A468=\"N/A\",Ref!$B$36,INDEX(Ranks!$1:$1048576,$A468,BQ$1))","v":""},{"$f":"IF($A468=\"N/A\",Ref!$B$36,INDEX(Ranks!$1:$1048576,$A468,BR$1))","v":""},{"$f":"IF($A468=\"N/A\",Ref!$B$36,INDEX(Ranks!$1:$1048576,$A468,BS$1))","v":""},{"$f":"IF($A468=\"N/A\",Ref!$B$36,INDEX(Ranks!$1:$1048576,$A468,BT$1))","v":""},{"$f":"IF($A468=\"N/A\",Ref!$B$36,INDEX(Ranks!$1:$1048576,$A468,BU$1))","v":""},{"$f":"IF($A468=\"N/A\",Ref!$B$36,INDEX(Ranks!$1:$1048576,$A468,BV$1))","v":""},{"$f":"IF($A468=\"N/A\",Ref!$B$36,INDEX(Ranks!$1:$1048576,$A468,BW$1))","v":""},{"$f":"IF($A468=\"N/A\",Ref!$B$36,INDEX(Ranks!$1:$1048576,$A468,BX$1))","v":""},{"$f":"IF($A468=\"N/A\",Ref!$B$36,INDEX(Ranks!$1:$1048576,$A468,BY$1))","v":""},{"$f":"IF($A468=\"N/A\",Ref!$B$36,INDEX(Ranks!$1:$1048576,$A468,BZ$1))","v":""},{"$f":"IF($A468=\"N/A\",Ref!$B$36,INDEX(Ranks!$1:$1048576,$A468,CA$1))","v":""},{"$f":"IF($A468=\"N/A\",Ref!$B$36,INDEX(Ranks!$1:$1048576,$A468,CB$1))","v":""},{"$f":"IF($A468=\"N/A\",Ref!$B$36,INDEX(Ranks!$1:$1048576,$A468,CC$1))","v":""},{"$f":"IF($A468=\"N/A\",Ref!$B$36,INDEX(Ranks!$1:$1048576,$A468,CD$1))","v":""},{"$f":"IF($A468=\"N/A\",Ref!$B$36,INDEX(Ranks!$1:$1048576,$A468,CE$1))","v":""},{"$f":"IF($A468=\"N/A\",Ref!$B$36,INDEX(Ranks!$1:$1048576,$A468,CF$1))","v":""},{"$f":"IF($A468=\"N/A\",Ref!$B$36,INDEX(Ranks!$1:$1048576,$A468,CG$1))","v":""},{"$f":"IF($A468=\"N/A\",Ref!$B$36,INDEX(Ranks!$1:$1048576,$A468,CH$1))","v":""},{"$f":"IF($A468=\"N/A\",Ref!$B$36,INDEX(Ranks!$1:$1048576,$A468,CI$1))","v":""},{"$f":"IF($A468=\"N/A\",Ref!$B$36,INDEX(Ranks!$1:$1048576,$A468,CJ$1))","v":""},{"$f":"IF($A468=\"N/A\",Ref!$B$36,INDEX(Ranks!$1:$1048576,$A468,CK$1))","v":""},{"$f":"IF($A468=\"N/A\",Ref!$B$36,INDEX(Ranks!$1:$1048576,$A468,CL$1))","v":""},{"$f":"IF($A468=\"N/A\",Ref!$B$36,INDEX(Ranks!$1:$1048576,$A468,CM$1))","v":""},{"$f":"IF($A468=\"N/A\",Ref!$B$36,INDEX(Ranks!$1:$1048576,$A468,CN$1))","v":""},{"$f":"IF($A468=\"N/A\",Ref!$B$36,INDEX(Ranks!$1:$1048576,$A468,CO$1))","v":""},{"$f":"IF($A468=\"N/A\",Ref!$B$36,INDEX(Ranks!$1:$1048576,$A468,CP$1))","v":""},{"$f":"IF($A468=\"N/A\",Ref!$B$36,INDEX(Ranks!$1:$1048576,$A468,CQ$1))","v":""},{"$f":"IF($A468=\"N/A\",Ref!$B$36,INDEX(Ranks!$1:$1048576,$A468,CR$1))","v":""},{"$f":"IF($A468=\"N/A\",Ref!$B$36,INDEX(Ranks!$1:$1048576,$A468,CS$1))","v":""},{"$f":"IF($A468=\"N/A\",Ref!$B$36,INDEX(Ranks!$1:$1048576,$A468,CT$1))","v":""},{"$f":"IF($A468=\"N/A\",Ref!$B$36,INDEX(Ranks!$1:$1048576,$A468,CU$1))","v":""},{"$f":"IF($A468=\"N/A\",Ref!$B$36,INDEX(Ranks!$1:$1048576,$A468,CV$1))","v":""},{"$f":"IF($A468=\"N/A\",Ref!$B$36,INDEX(Ranks!$1:$1048576,$A468,CW$1))","v":""},{"$f":"IF($A468=\"N/A\",Ref!$B$36,INDEX(Ranks!$1:$1048576,$A468,CX$1))","v":""},{"$f":"IF($A468=\"N/A\",Ref!$B$36,INDEX(Ranks!$1:$1048576,$A468,CY$1))","v":""},{"$f":"IF($A468=\"N/A\",Ref!$B$36,INDEX(Ranks!$1:$1048576,$A468,CZ$1))","v":""},{"$f":"IF($A468=\"N/A\",Ref!$B$36,INDEX(Ranks!$1:$1048576,$A468,DA$1))","v":""},{"$f":"IF($A468=\"N/A\",Ref!$B$36,INDEX(Ranks!$1:$1048576,$A468,DB$1))","v":""},{"$f":"IF($A468=\"N/A\",Ref!$B$36,INDEX(Ranks!$1:$1048576,$A468,DC$1))","v":""},{"$f":"IF($A468=\"N/A\",Ref!$B$36,INDEX(Ranks!$1:$1048576,$A468,DD$1))","v":""},{"$f":"IF($A468=\"N/A\",Ref!$B$36,INDEX(Ranks!$1:$1048576,$A468,DE$1))","v":""},{"$f":"IF($A468=\"N/A\",Ref!$B$36,INDEX(Ranks!$1:$1048576,$A468,DF$1))","v":""},{"$f":"IF($A468=\"N/A\",Ref!$B$36,INDEX(Ranks!$1:$1048576,$A468,DG$1))","v":""},{"$f":"IF($A468=\"N/A\",Ref!$B$36,INDEX(Ranks!$1:$1048576,$A468,DH$1))","v":""},{"$f":"IF($A468=\"N/A\",Ref!$B$36,INDEX(Ranks!$1:$1048576,$A468,DI$1))","v":""},{"$f":"IF($A468=\"N/A\",Ref!$B$36,INDEX(Ranks!$1:$1048576,$A468,DJ$1))","v":""},{"$f":"IF($A468=\"N/A\",Ref!$B$36,INDEX(Ranks!$1:$1048576,$A468,DK$1))","v":""},{"$f":"IF($A468=\"N/A\",Ref!$B$36,INDEX(Ranks!$1:$1048576,$A468,DL$1))","v":""},{"$f":"IF($A468=\"N/A\",Ref!$B$36,INDEX(Ranks!$1:$1048576,$A468,DM$1))","v":""},{"$f":"IF($A468=\"N/A\",Ref!$B$36,INDEX(Ranks!$1:$1048576,$A468,DN$1))","v":""},{"$f":"IF($A468=\"N/A\",Ref!$B$36,INDEX(Ranks!$1:$1048576,$A468,DO$1))","v":""},{"$f":"IF($A468=\"N/A\",Ref!$B$36,INDEX(Ranks!$1:$1048576,$A468,DP$1))","v":""},{"$f":"IF($A468=\"N/A\",Ref!$B$36,INDEX(Ranks!$1:$1048576,$A468,DQ$1))","v":""},{"$f":"IF($A468=\"N/A\",Ref!$B$36,INDEX(Ranks!$1:$1048576,$A468,DR$1))","v":""},{"$f":"IF($A468=\"N/A\",Ref!$B$36,INDEX(Ranks!$1:$1048576,$A468,DS$1))","v":""},{"$f":"IF($A468=\"N/A\",Ref!$B$36,INDEX(Ranks!$1:$1048576,$A468,DT$1))","v":""},{"$f":"IF($A468=\"N/A\",Ref!$B$36,INDEX(Ranks!$1:$1048576,$A468,DU$1))","v":""},{"$f":"IF($A468=\"N/A\",Ref!$B$36,INDEX(Ranks!$1:$1048576,$A468,DV$1))","v":""},{"$f":"IF($A468=\"N/A\",Ref!$B$36,INDEX(Ranks!$1:$1048576,$A468,DW$1))","v":""},{"$f":"IF($A468=\"N/A\",Ref!$B$36,INDEX(Ranks!$1:$1048576,$A468,DX$1))","v":""},{"$f":"IF($A468=\"N/A\",Ref!$B$36,INDEX(Ranks!$1:$1048576,$A468,DY$1))","v":""},{"$f":"IF($A468=\"N/A\",Ref!$B$36,INDEX(Ranks!$1:$1048576,$A468,DZ$1))","v":""},{"$f":"IF($A468=\"N/A\",Ref!$B$36,INDEX(Ranks!$1:$1048576,$A468,EA$1))","v":""},{"$f":"IF($A468=\"N/A\",Ref!$B$36,INDEX(Ranks!$1:$1048576,$A468,EB$1))","v":""}]
[{"$f":"IFERROR(MATCH('Portfolio Page'!L469,Ranks!L:L,0),\"N/A\")","v":"N/A"},null,{"$f":"IF($A469=\"N/A\",\"\",INDEX(Ranks!$1:$1048576,$A469,C$1))","v":""},{"$f":"IF($A469=\"N/A\",Ref!$B$36,INDEX(Ranks!$1:$1048576,$A469,D$1))","v":""},{"$f":"IF($A469=\"N/A\",Ref!$B$36,INDEX(Ranks!$1:$1048576,$A469,E$1))","v":""},{"$f":"IF($A469=\"N/A\",\"\",INDEX(Ranks!$1:$1048576,$A469,F$1))","v":""},{"$f":"IF($A469=\"N/A\",\"\",INDEX(Ranks!$1:$1048576,$A469,G$1))","v":""},{"$f":"IF($A469=\"N/A\",\"\",INDEX(Ranks!$1:$1048576,$A469,H$1))","v":""},{"$f":"IF($A469=\"N/A\",\"\",INDEX(Ranks!$1:$1048576,$A469,I$1))","v":""},{"$f":"IF($A469=\"N/A\",\"\",INDEX(Ranks!$1:$1048576,$A469,J$1))","v":""},{"$f":"IF($A469=\"N/A\",\"\",INDEX(Ranks!$1:$1048576,$A469,K$1))","v":""},null,{"$f":"IF($A469=\"N/A\",Ref!$B$36,INDEX(Ranks!$1:$1048576,$A469,M$1))","v":""},{"$f":"IF($A469=\"N/A\",Ref!$B$36,INDEX(Ranks!$1:$1048576,$A469,N$1))","v":""},{"$f":"IF($A469=\"N/A\",Ref!$B$36,INDEX(Ranks!$1:$1048576,$A469,O$1))","v":""},{"$f":"IF($A469=\"N/A\",Ref!$B$36,INDEX(Ranks!$1:$1048576,$A469,P$1))","v":""},{"$f":"IF($A469=\"N/A\",Ref!$B$36,INDEX(Ranks!$1:$1048576,$A469,Q$1))","v":""},{"$f":"IF($A469=\"N/A\",Ref!$B$36,INDEX(Ranks!$1:$1048576,$A469,R$1))","v":""},{"$f":"IF($A469=\"N/A\",Ref!$B$36,INDEX(Ranks!$1:$1048576,$A469,S$1))","v":""},{"$f":"IF($A469=\"N/A\",Ref!$B$36,INDEX(Ranks!$1:$1048576,$A469,T$1))","v":""},{"$f":"IF($A469=\"N/A\",Ref!$B$36,INDEX(Ranks!$1:$1048576,$A469,U$1))","v":""},{"$f":"IF($A469=\"N/A\",Ref!$B$36,INDEX(Ranks!$1:$1048576,$A469,V$1))","v":""},{"$f":"IF($A469=\"N/A\",Ref!$B$36,INDEX(Ranks!$1:$1048576,$A469,W$1))","v":""},{"$f":"IF($A469=\"N/A\",Ref!$B$36,INDEX(Ranks!$1:$1048576,$A469,X$1))","v":""},{"$f":"IF($A469=\"N/A\",Ref!$B$36,INDEX(Ranks!$1:$1048576,$A469,Y$1))","v":""},{"$f":"IF($A469=\"N/A\",Ref!$B$36,INDEX(Ranks!$1:$1048576,$A469,Z$1))","v":""},{"$f":"IF($A469=\"N/A\",Ref!$B$36,INDEX(Ranks!$1:$1048576,$A469,AA$1))","v":""},{"$f":"IF($A469=\"N/A\",Ref!$B$36,INDEX(Ranks!$1:$1048576,$A469,AB$1))","v":""},{"$f":"IF($A469=\"N/A\",Ref!$B$36,INDEX(Ranks!$1:$1048576,$A469,AC$1))","v":""},{"$f":"IF($A469=\"N/A\",Ref!$B$36,INDEX(Ranks!$1:$1048576,$A469,AD$1))","v":""},{"$f":"IF($A469=\"N/A\",Ref!$B$36,INDEX(Ranks!$1:$1048576,$A469,AE$1))","v":""},{"$f":"IF($A469=\"N/A\",Ref!$B$36,INDEX(Ranks!$1:$1048576,$A469,AF$1))","v":""},{"$f":"IF($A469=\"N/A\",Ref!$B$36,INDEX(Ranks!$1:$1048576,$A469,AG$1))","v":""},{"$f":"IF($A469=\"N/A\",Ref!$B$36,INDEX(Ranks!$1:$1048576,$A469,AH$1))","v":""},{"$f":"IF($A469=\"N/A\",Ref!$B$36,INDEX(Ranks!$1:$1048576,$A469,AI$1))","v":""},{"$f":"IF($A469=\"N/A\",Ref!$B$36,INDEX(Ranks!$1:$1048576,$A469,AJ$1))","v":""},{"$f":"IF($A469=\"N/A\",Ref!$B$36,INDEX(Ranks!$1:$1048576,$A469,AK$1))","v":""},{"$f":"IF($A469=\"N/A\",Ref!$B$36,INDEX(Ranks!$1:$1048576,$A469,AL$1))","v":""},{"$f":"IF($A469=\"N/A\",Ref!$B$36,INDEX(Ranks!$1:$1048576,$A469,AM$1))","v":""},{"$f":"IF($A469=\"N/A\",Ref!$B$36,INDEX(Ranks!$1:$1048576,$A469,AN$1))","v":""},{"$f":"IF($A469=\"N/A\",Ref!$B$36,INDEX(Ranks!$1:$1048576,$A469,AO$1))","v":""},{"$f":"IF($A469=\"N/A\",Ref!$B$36,INDEX(Ranks!$1:$1048576,$A469,AP$1))","v":""},{"$f":"IF($A469=\"N/A\",Ref!$B$36,INDEX(Ranks!$1:$1048576,$A469,AQ$1))","v":""},{"$f":"IF($A469=\"N/A\",Ref!$B$36,INDEX(Ranks!$1:$1048576,$A469,AR$1))","v":""},{"$f":"IF($A469=\"N/A\",Ref!$B$36,INDEX(Ranks!$1:$1048576,$A469,AS$1))","v":""},{"$f":"IF($A469=\"N/A\",Ref!$B$36,INDEX(Ranks!$1:$1048576,$A469,AT$1))","v":""},{"$f":"IF($A469=\"N/A\",Ref!$B$36,INDEX(Ranks!$1:$1048576,$A469,AU$1))","v":""},{"$f":"IF($A469=\"N/A\",Ref!$B$36,INDEX(Ranks!$1:$1048576,$A469,AV$1))","v":""},{"$f":"IF($A469=\"N/A\",Ref!$B$36,INDEX(Ranks!$1:$1048576,$A469,AW$1))","v":""},{"$f":"IF($A469=\"N/A\",Ref!$B$36,INDEX(Ranks!$1:$1048576,$A469,AX$1))","v":""},{"$f":"IF($A469=\"N/A\",Ref!$B$36,INDEX(Ranks!$1:$1048576,$A469,AY$1))","v":""},{"$f":"IF($A469=\"N/A\",Ref!$B$36,INDEX(Ranks!$1:$1048576,$A469,AZ$1))","v":""},{"$f":"IF($A469=\"N/A\",Ref!$B$36,INDEX(Ranks!$1:$1048576,$A469,BA$1))","v":""},{"$f":"IF($A469=\"N/A\",Ref!$B$36,INDEX(Ranks!$1:$1048576,$A469,BB$1))","v":""},{"$f":"IF($A469=\"N/A\",Ref!$B$36,INDEX(Ranks!$1:$1048576,$A469,BC$1))","v":""},{"$f":"IF($A469=\"N/A\",Ref!$B$36,INDEX(Ranks!$1:$1048576,$A469,BD$1))","v":""},{"$f":"IF($A469=\"N/A\",Ref!$B$36,INDEX(Ranks!$1:$1048576,$A469,BE$1))","v":""},{"$f":"IF($A469=\"N/A\",Ref!$B$36,INDEX(Ranks!$1:$1048576,$A469,BF$1))","v":""},{"$f":"IF($A469=\"N/A\",Ref!$B$36,INDEX(Ranks!$1:$1048576,$A469,BG$1))","v":""},{"$f":"IF($A469=\"N/A\",Ref!$B$36,INDEX(Ranks!$1:$1048576,$A469,BH$1))","v":""},{"$f":"IF($A469=\"N/A\",Ref!$B$36,INDEX(Ranks!$1:$1048576,$A469,BI$1))","v":""},{"$f":"IF($A469=\"N/A\",Ref!$B$36,INDEX(Ranks!$1:$1048576,$A469,BJ$1))","v":""},{"$f":"IF($A469=\"N/A\",Ref!$B$36,INDEX(Ranks!$1:$1048576,$A469,BK$1))","v":""},{"$f":"IF($A469=\"N/A\",Ref!$B$36,INDEX(Ranks!$1:$1048576,$A469,BL$1))","v":""},{"$f":"IF($A469=\"N/A\",Ref!$B$36,INDEX(Ranks!$1:$1048576,$A469,BM$1))","v":""},{"$f":"IF($A469=\"N/A\",Ref!$B$36,INDEX(Ranks!$1:$1048576,$A469,BN$1))","v":""},{"$f":"IF($A469=\"N/A\",Ref!$B$36,INDEX(Ranks!$1:$1048576,$A469,BO$1))","v":""},{"$f":"IF($A469=\"N/A\",Ref!$B$36,INDEX(Ranks!$1:$1048576,$A469,BP$1))","v":""},{"$f":"IF($A469=\"N/A\",Ref!$B$36,INDEX(Ranks!$1:$1048576,$A469,BQ$1))","v":""},{"$f":"IF($A469=\"N/A\",Ref!$B$36,INDEX(Ranks!$1:$1048576,$A469,BR$1))","v":""},{"$f":"IF($A469=\"N/A\",Ref!$B$36,INDEX(Ranks!$1:$1048576,$A469,BS$1))","v":""},{"$f":"IF($A469=\"N/A\",Ref!$B$36,INDEX(Ranks!$1:$1048576,$A469,BT$1))","v":""},{"$f":"IF($A469=\"N/A\",Ref!$B$36,INDEX(Ranks!$1:$1048576,$A469,BU$1))","v":""},{"$f":"IF($A469=\"N/A\",Ref!$B$36,INDEX(Ranks!$1:$1048576,$A469,BV$1))","v":""},{"$f":"IF($A469=\"N/A\",Ref!$B$36,INDEX(Ranks!$1:$1048576,$A469,BW$1))","v":""},{"$f":"IF($A469=\"N/A\",Ref!$B$36,INDEX(Ranks!$1:$1048576,$A469,BX$1))","v":""},{"$f":"IF($A469=\"N/A\",Ref!$B$36,INDEX(Ranks!$1:$1048576,$A469,BY$1))","v":""},{"$f":"IF($A469=\"N/A\",Ref!$B$36,INDEX(Ranks!$1:$1048576,$A469,BZ$1))","v":""},{"$f":"IF($A469=\"N/A\",Ref!$B$36,INDEX(Ranks!$1:$1048576,$A469,CA$1))","v":""},{"$f":"IF($A469=\"N/A\",Ref!$B$36,INDEX(Ranks!$1:$1048576,$A469,CB$1))","v":""},{"$f":"IF($A469=\"N/A\",Ref!$B$36,INDEX(Ranks!$1:$1048576,$A469,CC$1))","v":""},{"$f":"IF($A469=\"N/A\",Ref!$B$36,INDEX(Ranks!$1:$1048576,$A469,CD$1))","v":""},{"$f":"IF($A469=\"N/A\",Ref!$B$36,INDEX(Ranks!$1:$1048576,$A469,CE$1))","v":""},{"$f":"IF($A469=\"N/A\",Ref!$B$36,INDEX(Ranks!$1:$1048576,$A469,CF$1))","v":""},{"$f":"IF($A469=\"N/A\",Ref!$B$36,INDEX(Ranks!$1:$1048576,$A469,CG$1))","v":""},{"$f":"IF($A469=\"N/A\",Ref!$B$36,INDEX(Ranks!$1:$1048576,$A469,CH$1))","v":""},{"$f":"IF($A469=\"N/A\",Ref!$B$36,INDEX(Ranks!$1:$1048576,$A469,CI$1))","v":""},{"$f":"IF($A469=\"N/A\",Ref!$B$36,INDEX(Ranks!$1:$1048576,$A469,CJ$1))","v":""},{"$f":"IF($A469=\"N/A\",Ref!$B$36,INDEX(Ranks!$1:$1048576,$A469,CK$1))","v":""},{"$f":"IF($A469=\"N/A\",Ref!$B$36,INDEX(Ranks!$1:$1048576,$A469,CL$1))","v":""},{"$f":"IF($A469=\"N/A\",Ref!$B$36,INDEX(Ranks!$1:$1048576,$A469,CM$1))","v":""},{"$f":"IF($A469=\"N/A\",Ref!$B$36,INDEX(Ranks!$1:$1048576,$A469,CN$1))","v":""},{"$f":"IF($A469=\"N/A\",Ref!$B$36,INDEX(Ranks!$1:$1048576,$A469,CO$1))","v":""},{"$f":"IF($A469=\"N/A\",Ref!$B$36,INDEX(Ranks!$1:$1048576,$A469,CP$1))","v":""},{"$f":"IF($A469=\"N/A\",Ref!$B$36,INDEX(Ranks!$1:$1048576,$A469,CQ$1))","v":""},{"$f":"IF($A469=\"N/A\",Ref!$B$36,INDEX(Ranks!$1:$1048576,$A469,CR$1))","v":""},{"$f":"IF($A469=\"N/A\",Ref!$B$36,INDEX(Ranks!$1:$1048576,$A469,CS$1))","v":""},{"$f":"IF($A469=\"N/A\",Ref!$B$36,INDEX(Ranks!$1:$1048576,$A469,CT$1))","v":""},{"$f":"IF($A469=\"N/A\",Ref!$B$36,INDEX(Ranks!$1:$1048576,$A469,CU$1))","v":""},{"$f":"IF($A469=\"N/A\",Ref!$B$36,INDEX(Ranks!$1:$1048576,$A469,CV$1))","v":""},{"$f":"IF($A469=\"N/A\",Ref!$B$36,INDEX(Ranks!$1:$1048576,$A469,CW$1))","v":""},{"$f":"IF($A469=\"N/A\",Ref!$B$36,INDEX(Ranks!$1:$1048576,$A469,CX$1))","v":""},{"$f":"IF($A469=\"N/A\",Ref!$B$36,INDEX(Ranks!$1:$1048576,$A469,CY$1))","v":""},{"$f":"IF($A469=\"N/A\",Ref!$B$36,INDEX(Ranks!$1:$1048576,$A469,CZ$1))","v":""},{"$f":"IF($A469=\"N/A\",Ref!$B$36,INDEX(Ranks!$1:$1048576,$A469,DA$1))","v":""},{"$f":"IF($A469=\"N/A\",Ref!$B$36,INDEX(Ranks!$1:$1048576,$A469,DB$1))","v":""},{"$f":"IF($A469=\"N/A\",Ref!$B$36,INDEX(Ranks!$1:$1048576,$A469,DC$1))","v":""},{"$f":"IF($A469=\"N/A\",Ref!$B$36,INDEX(Ranks!$1:$1048576,$A469,DD$1))","v":""},{"$f":"IF($A469=\"N/A\",Ref!$B$36,INDEX(Ranks!$1:$1048576,$A469,DE$1))","v":""},{"$f":"IF($A469=\"N/A\",Ref!$B$36,INDEX(Ranks!$1:$1048576,$A469,DF$1))","v":""},{"$f":"IF($A469=\"N/A\",Ref!$B$36,INDEX(Ranks!$1:$1048576,$A469,DG$1))","v":""},{"$f":"IF($A469=\"N/A\",Ref!$B$36,INDEX(Ranks!$1:$1048576,$A469,DH$1))","v":""},{"$f":"IF($A469=\"N/A\",Ref!$B$36,INDEX(Ranks!$1:$1048576,$A469,DI$1))","v":""},{"$f":"IF($A469=\"N/A\",Ref!$B$36,INDEX(Ranks!$1:$1048576,$A469,DJ$1))","v":""},{"$f":"IF($A469=\"N/A\",Ref!$B$36,INDEX(Ranks!$1:$1048576,$A469,DK$1))","v":""},{"$f":"IF($A469=\"N/A\",Ref!$B$36,INDEX(Ranks!$1:$1048576,$A469,DL$1))","v":""},{"$f":"IF($A469=\"N/A\",Ref!$B$36,INDEX(Ranks!$1:$1048576,$A469,DM$1))","v":""},{"$f":"IF($A469=\"N/A\",Ref!$B$36,INDEX(Ranks!$1:$1048576,$A469,DN$1))","v":""},{"$f":"IF($A469=\"N/A\",Ref!$B$36,INDEX(Ranks!$1:$1048576,$A469,DO$1))","v":""},{"$f":"IF($A469=\"N/A\",Ref!$B$36,INDEX(Ranks!$1:$1048576,$A469,DP$1))","v":""},{"$f":"IF($A469=\"N/A\",Ref!$B$36,INDEX(Ranks!$1:$1048576,$A469,DQ$1))","v":""},{"$f":"IF($A469=\"N/A\",Ref!$B$36,INDEX(Ranks!$1:$1048576,$A469,DR$1))","v":""},{"$f":"IF($A469=\"N/A\",Ref!$B$36,INDEX(Ranks!$1:$1048576,$A469,DS$1))","v":""},{"$f":"IF($A469=\"N/A\",Ref!$B$36,INDEX(Ranks!$1:$1048576,$A469,DT$1))","v":""},{"$f":"IF($A469=\"N/A\",Ref!$B$36,INDEX(Ranks!$1:$1048576,$A469,DU$1))","v":""},{"$f":"IF($A469=\"N/A\",Ref!$B$36,INDEX(Ranks!$1:$1048576,$A469,DV$1))","v":""},{"$f":"IF($A469=\"N/A\",Ref!$B$36,INDEX(Ranks!$1:$1048576,$A469,DW$1))","v":""},{"$f":"IF($A469=\"N/A\",Ref!$B$36,INDEX(Ranks!$1:$1048576,$A469,DX$1))","v":""},{"$f":"IF($A469=\"N/A\",Ref!$B$36,INDEX(Ranks!$1:$1048576,$A469,DY$1))","v":""},{"$f":"IF($A469=\"N/A\",Ref!$B$36,INDEX(Ranks!$1:$1048576,$A469,DZ$1))","v":""},{"$f":"IF($A469=\"N/A\",Ref!$B$36,INDEX(Ranks!$1:$1048576,$A469,EA$1))","v":""},{"$f":"IF($A469=\"N/A\",Ref!$B$36,INDEX(Ranks!$1:$1048576,$A469,EB$1))","v":""}]
[{"$f":"IFERROR(MATCH('Portfolio Page'!L470,Ranks!L:L,0),\"N/A\")","v":"N/A"},null,{"$f":"IF($A470=\"N/A\",\"\",INDEX(Ranks!$1:$1048576,$A470,C$1))","v":""},{"$f":"IF($A470=\"N/A\",Ref!$B$36,INDEX(Ranks!$1:$1048576,$A470,D$1))","v":""},{"$f":"IF($A470=\"N/A\",Ref!$B$36,INDEX(Ranks!$1:$1048576,$A470,E$1))","v":""},{"$f":"IF($A470=\"N/A\",\"\",INDEX(Ranks!$1:$1048576,$A470,F$1))","v":""},{"$f":"IF($A470=\"N/A\",\"\",INDEX(Ranks!$1:$1048576,$A470,G$1))","v":""},{"$f":"IF($A470=\"N/A\",\"\",INDEX(Ranks!$1:$1048576,$A470,H$1))","v":""},{"$f":"IF($A470=\"N/A\",\"\",INDEX(Ranks!$1:$1048576,$A470,I$1))","v":""},{"$f":"IF($A470=\"N/A\",\"\",INDEX(Ranks!$1:$1048576,$A470,J$1))","v":""},{"$f":"IF($A470=\"N/A\",\"\",INDEX(Ranks!$1:$1048576,$A470,K$1))","v":""},null,{"$f":"IF($A470=\"N/A\",Ref!$B$36,INDEX(Ranks!$1:$1048576,$A470,M$1))","v":""},{"$f":"IF($A470=\"N/A\",Ref!$B$36,INDEX(Ranks!$1:$1048576,$A470,N$1))","v":""},{"$f":"IF($A470=\"N/A\",Ref!$B$36,INDEX(Ranks!$1:$1048576,$A470,O$1))","v":""},{"$f":"IF($A470=\"N/A\",Ref!$B$36,INDEX(Ranks!$1:$1048576,$A470,P$1))","v":""},{"$f":"IF($A470=\"N/A\",Ref!$B$36,INDEX(Ranks!$1:$1048576,$A470,Q$1))","v":""},{"$f":"IF($A470=\"N/A\",Ref!$B$36,INDEX(Ranks!$1:$1048576,$A470,R$1))","v":""},{"$f":"IF($A470=\"N/A\",Ref!$B$36,INDEX(Ranks!$1:$1048576,$A470,S$1))","v":""},{"$f":"IF($A470=\"N/A\",Ref!$B$36,INDEX(Ranks!$1:$1048576,$A470,T$1))","v":""},{"$f":"IF($A470=\"N/A\",Ref!$B$36,INDEX(Ranks!$1:$1048576,$A470,U$1))","v":""},{"$f":"IF($A470=\"N/A\",Ref!$B$36,INDEX(Ranks!$1:$1048576,$A470,V$1))","v":""},{"$f":"IF($A470=\"N/A\",Ref!$B$36,INDEX(Ranks!$1:$1048576,$A470,W$1))","v":""},{"$f":"IF($A470=\"N/A\",Ref!$B$36,INDEX(Ranks!$1:$1048576,$A470,X$1))","v":""},{"$f":"IF($A470=\"N/A\",Ref!$B$36,INDEX(Ranks!$1:$1048576,$A470,Y$1))","v":""},{"$f":"IF($A470=\"N/A\",Ref!$B$36,INDEX(Ranks!$1:$1048576,$A470,Z$1))","v":""},{"$f":"IF($A470=\"N/A\",Ref!$B$36,INDEX(Ranks!$1:$1048576,$A470,AA$1))","v":""},{"$f":"IF($A470=\"N/A\",Ref!$B$36,INDEX(Ranks!$1:$1048576,$A470,AB$1))","v":""},{"$f":"IF($A470=\"N/A\",Ref!$B$36,INDEX(Ranks!$1:$1048576,$A470,AC$1))","v":""},{"$f":"IF($A470=\"N/A\",Ref!$B$36,INDEX(Ranks!$1:$1048576,$A470,AD$1))","v":""},{"$f":"IF($A470=\"N/A\",Ref!$B$36,INDEX(Ranks!$1:$1048576,$A470,AE$1))","v":""},{"$f":"IF($A470=\"N/A\",Ref!$B$36,INDEX(Ranks!$1:$1048576,$A470,AF$1))","v":""},{"$f":"IF($A470=\"N/A\",Ref!$B$36,INDEX(Ranks!$1:$1048576,$A470,AG$1))","v":""},{"$f":"IF($A470=\"N/A\",Ref!$B$36,INDEX(Ranks!$1:$1048576,$A470,AH$1))","v":""},{"$f":"IF($A470=\"N/A\",Ref!$B$36,INDEX(Ranks!$1:$1048576,$A470,AI$1))","v":""},{"$f":"IF($A470=\"N/A\",Ref!$B$36,INDEX(Ranks!$1:$1048576,$A470,AJ$1))","v":""},{"$f":"IF($A470=\"N/A\",Ref!$B$36,INDEX(Ranks!$1:$1048576,$A470,AK$1))","v":""},{"$f":"IF($A470=\"N/A\",Ref!$B$36,INDEX(Ranks!$1:$1048576,$A470,AL$1))","v":""},{"$f":"IF($A470=\"N/A\",Ref!$B$36,INDEX(Ranks!$1:$1048576,$A470,AM$1))","v":""},{"$f":"IF($A470=\"N/A\",Ref!$B$36,INDEX(Ranks!$1:$1048576,$A470,AN$1))","v":""},{"$f":"IF($A470=\"N/A\",Ref!$B$36,INDEX(Ranks!$1:$1048576,$A470,AO$1))","v":""},{"$f":"IF($A470=\"N/A\",Ref!$B$36,INDEX(Ranks!$1:$1048576,$A470,AP$1))","v":""},{"$f":"IF($A470=\"N/A\",Ref!$B$36,INDEX(Ranks!$1:$1048576,$A470,AQ$1))","v":""},{"$f":"IF($A470=\"N/A\",Ref!$B$36,INDEX(Ranks!$1:$1048576,$A470,AR$1))","v":""},{"$f":"IF($A470=\"N/A\",Ref!$B$36,INDEX(Ranks!$1:$1048576,$A470,AS$1))","v":""},{"$f":"IF($A470=\"N/A\",Ref!$B$36,INDEX(Ranks!$1:$1048576,$A470,AT$1))","v":""},{"$f":"IF($A470=\"N/A\",Ref!$B$36,INDEX(Ranks!$1:$1048576,$A470,AU$1))","v":""},{"$f":"IF($A470=\"N/A\",Ref!$B$36,INDEX(Ranks!$1:$1048576,$A470,AV$1))","v":""},{"$f":"IF($A470=\"N/A\",Ref!$B$36,INDEX(Ranks!$1:$1048576,$A470,AW$1))","v":""},{"$f":"IF($A470=\"N/A\",Ref!$B$36,INDEX(Ranks!$1:$1048576,$A470,AX$1))","v":""},{"$f":"IF($A470=\"N/A\",Ref!$B$36,INDEX(Ranks!$1:$1048576,$A470,AY$1))","v":""},{"$f":"IF($A470=\"N/A\",Ref!$B$36,INDEX(Ranks!$1:$1048576,$A470,AZ$1))","v":""},{"$f":"IF($A470=\"N/A\",Ref!$B$36,INDEX(Ranks!$1:$1048576,$A470,BA$1))","v":""},{"$f":"IF($A470=\"N/A\",Ref!$B$36,INDEX(Ranks!$1:$1048576,$A470,BB$1))","v":""},{"$f":"IF($A470=\"N/A\",Ref!$B$36,INDEX(Ranks!$1:$1048576,$A470,BC$1))","v":""},{"$f":"IF($A470=\"N/A\",Ref!$B$36,INDEX(Ranks!$1:$1048576,$A470,BD$1))","v":""},{"$f":"IF($A470=\"N/A\",Ref!$B$36,INDEX(Ranks!$1:$1048576,$A470,BE$1))","v":""},{"$f":"IF($A470=\"N/A\",Ref!$B$36,INDEX(Ranks!$1:$1048576,$A470,BF$1))","v":""},{"$f":"IF($A470=\"N/A\",Ref!$B$36,INDEX(Ranks!$1:$1048576,$A470,BG$1))","v":""},{"$f":"IF($A470=\"N/A\",Ref!$B$36,INDEX(Ranks!$1:$1048576,$A470,BH$1))","v":""},{"$f":"IF($A470=\"N/A\",Ref!$B$36,INDEX(Ranks!$1:$1048576,$A470,BI$1))","v":""},{"$f":"IF($A470=\"N/A\",Ref!$B$36,INDEX(Ranks!$1:$1048576,$A470,BJ$1))","v":""},{"$f":"IF($A470=\"N/A\",Ref!$B$36,INDEX(Ranks!$1:$1048576,$A470,BK$1))","v":""},{"$f":"IF($A470=\"N/A\",Ref!$B$36,INDEX(Ranks!$1:$1048576,$A470,BL$1))","v":""},{"$f":"IF($A470=\"N/A\",Ref!$B$36,INDEX(Ranks!$1:$1048576,$A470,BM$1))","v":""},{"$f":"IF($A470=\"N/A\",Ref!$B$36,INDEX(Ranks!$1:$1048576,$A470,BN$1))","v":""},{"$f":"IF($A470=\"N/A\",Ref!$B$36,INDEX(Ranks!$1:$1048576,$A470,BO$1))","v":""},{"$f":"IF($A470=\"N/A\",Ref!$B$36,INDEX(Ranks!$1:$1048576,$A470,BP$1))","v":""},{"$f":"IF($A470=\"N/A\",Ref!$B$36,INDEX(Ranks!$1:$1048576,$A470,BQ$1))","v":""},{"$f":"IF($A470=\"N/A\",Ref!$B$36,INDEX(Ranks!$1:$1048576,$A470,BR$1))","v":""},{"$f":"IF($A470=\"N/A\",Ref!$B$36,INDEX(Ranks!$1:$1048576,$A470,BS$1))","v":""},{"$f":"IF($A470=\"N/A\",Ref!$B$36,INDEX(Ranks!$1:$1048576,$A470,BT$1))","v":""},{"$f":"IF($A470=\"N/A\",Ref!$B$36,INDEX(Ranks!$1:$1048576,$A470,BU$1))","v":""},{"$f":"IF($A470=\"N/A\",Ref!$B$36,INDEX(Ranks!$1:$1048576,$A470,BV$1))","v":""},{"$f":"IF($A470=\"N/A\",Ref!$B$36,INDEX(Ranks!$1:$1048576,$A470,BW$1))","v":""},{"$f":"IF($A470=\"N/A\",Ref!$B$36,INDEX(Ranks!$1:$1048576,$A470,BX$1))","v":""},{"$f":"IF($A470=\"N/A\",Ref!$B$36,INDEX(Ranks!$1:$1048576,$A470,BY$1))","v":""},{"$f":"IF($A470=\"N/A\",Ref!$B$36,INDEX(Ranks!$1:$1048576,$A470,BZ$1))","v":""},{"$f":"IF($A470=\"N/A\",Ref!$B$36,INDEX(Ranks!$1:$1048576,$A470,CA$1))","v":""},{"$f":"IF($A470=\"N/A\",Ref!$B$36,INDEX(Ranks!$1:$1048576,$A470,CB$1))","v":""},{"$f":"IF($A470=\"N/A\",Ref!$B$36,INDEX(Ranks!$1:$1048576,$A470,CC$1))","v":""},{"$f":"IF($A470=\"N/A\",Ref!$B$36,INDEX(Ranks!$1:$1048576,$A470,CD$1))","v":""},{"$f":"IF($A470=\"N/A\",Ref!$B$36,INDEX(Ranks!$1:$1048576,$A470,CE$1))","v":""},{"$f":"IF($A470=\"N/A\",Ref!$B$36,INDEX(Ranks!$1:$1048576,$A470,CF$1))","v":""},{"$f":"IF($A470=\"N/A\",Ref!$B$36,INDEX(Ranks!$1:$1048576,$A470,CG$1))","v":""},{"$f":"IF($A470=\"N/A\",Ref!$B$36,INDEX(Ranks!$1:$1048576,$A470,CH$1))","v":""},{"$f":"IF($A470=\"N/A\",Ref!$B$36,INDEX(Ranks!$1:$1048576,$A470,CI$1))","v":""},{"$f":"IF($A470=\"N/A\",Ref!$B$36,INDEX(Ranks!$1:$1048576,$A470,CJ$1))","v":""},{"$f":"IF($A470=\"N/A\",Ref!$B$36,INDEX(Ranks!$1:$1048576,$A470,CK$1))","v":""},{"$f":"IF($A470=\"N/A\",Ref!$B$36,INDEX(Ranks!$1:$1048576,$A470,CL$1))","v":""},{"$f":"IF($A470=\"N/A\",Ref!$B$36,INDEX(Ranks!$1:$1048576,$A470,CM$1))","v":""},{"$f":"IF($A470=\"N/A\",Ref!$B$36,INDEX(Ranks!$1:$1048576,$A470,CN$1))","v":""},{"$f":"IF($A470=\"N/A\",Ref!$B$36,INDEX(Ranks!$1:$1048576,$A470,CO$1))","v":""},{"$f":"IF($A470=\"N/A\",Ref!$B$36,INDEX(Ranks!$1:$1048576,$A470,CP$1))","v":""},{"$f":"IF($A470=\"N/A\",Ref!$B$36,INDEX(Ranks!$1:$1048576,$A470,CQ$1))","v":""},{"$f":"IF($A470=\"N/A\",Ref!$B$36,INDEX(Ranks!$1:$1048576,$A470,CR$1))","v":""},{"$f":"IF($A470=\"N/A\",Ref!$B$36,INDEX(Ranks!$1:$1048576,$A470,CS$1))","v":""},{"$f":"IF($A470=\"N/A\",Ref!$B$36,INDEX(Ranks!$1:$1048576,$A470,CT$1))","v":""},{"$f":"IF($A470=\"N/A\",Ref!$B$36,INDEX(Ranks!$1:$1048576,$A470,CU$1))","v":""},{"$f":"IF($A470=\"N/A\",Ref!$B$36,INDEX(Ranks!$1:$1048576,$A470,CV$1))","v":""},{"$f":"IF($A470=\"N/A\",Ref!$B$36,INDEX(Ranks!$1:$1048576,$A470,CW$1))","v":""},{"$f":"IF($A470=\"N/A\",Ref!$B$36,INDEX(Ranks!$1:$1048576,$A470,CX$1))","v":""},{"$f":"IF($A470=\"N/A\",Ref!$B$36,INDEX(Ranks!$1:$1048576,$A470,CY$1))","v":""},{"$f":"IF($A470=\"N/A\",Ref!$B$36,INDEX(Ranks!$1:$1048576,$A470,CZ$1))","v":""},{"$f":"IF($A470=\"N/A\",Ref!$B$36,INDEX(Ranks!$1:$1048576,$A470,DA$1))","v":""},{"$f":"IF($A470=\"N/A\",Ref!$B$36,INDEX(Ranks!$1:$1048576,$A470,DB$1))","v":""},{"$f":"IF($A470=\"N/A\",Ref!$B$36,INDEX(Ranks!$1:$1048576,$A470,DC$1))","v":""},{"$f":"IF($A470=\"N/A\",Ref!$B$36,INDEX(Ranks!$1:$1048576,$A470,DD$1))","v":""},{"$f":"IF($A470=\"N/A\",Ref!$B$36,INDEX(Ranks!$1:$1048576,$A470,DE$1))","v":""},{"$f":"IF($A470=\"N/A\",Ref!$B$36,INDEX(Ranks!$1:$1048576,$A470,DF$1))","v":""},{"$f":"IF($A470=\"N/A\",Ref!$B$36,INDEX(Ranks!$1:$1048576,$A470,DG$1))","v":""},{"$f":"IF($A470=\"N/A\",Ref!$B$36,INDEX(Ranks!$1:$1048576,$A470,DH$1))","v":""},{"$f":"IF($A470=\"N/A\",Ref!$B$36,INDEX(Ranks!$1:$1048576,$A470,DI$1))","v":""},{"$f":"IF($A470=\"N/A\",Ref!$B$36,INDEX(Ranks!$1:$1048576,$A470,DJ$1))","v":""},{"$f":"IF($A470=\"N/A\",Ref!$B$36,INDEX(Ranks!$1:$1048576,$A470,DK$1))","v":""},{"$f":"IF($A470=\"N/A\",Ref!$B$36,INDEX(Ranks!$1:$1048576,$A470,DL$1))","v":""},{"$f":"IF($A470=\"N/A\",Ref!$B$36,INDEX(Ranks!$1:$1048576,$A470,DM$1))","v":""},{"$f":"IF($A470=\"N/A\",Ref!$B$36,INDEX(Ranks!$1:$1048576,$A470,DN$1))","v":""},{"$f":"IF($A470=\"N/A\",Ref!$B$36,INDEX(Ranks!$1:$1048576,$A470,DO$1))","v":""},{"$f":"IF($A470=\"N/A\",Ref!$B$36,INDEX(Ranks!$1:$1048576,$A470,DP$1))","v":""},{"$f":"IF($A470=\"N/A\",Ref!$B$36,INDEX(Ranks!$1:$1048576,$A470,DQ$1))","v":""},{"$f":"IF($A470=\"N/A\",Ref!$B$36,INDEX(Ranks!$1:$1048576,$A470,DR$1))","v":""},{"$f":"IF($A470=\"N/A\",Ref!$B$36,INDEX(Ranks!$1:$1048576,$A470,DS$1))","v":""},{"$f":"IF($A470=\"N/A\",Ref!$B$36,INDEX(Ranks!$1:$1048576,$A470,DT$1))","v":""},{"$f":"IF($A470=\"N/A\",Ref!$B$36,INDEX(Ranks!$1:$1048576,$A470,DU$1))","v":""},{"$f":"IF($A470=\"N/A\",Ref!$B$36,INDEX(Ranks!$1:$1048576,$A470,DV$1))","v":""},{"$f":"IF($A470=\"N/A\",Ref!$B$36,INDEX(Ranks!$1:$1048576,$A470,DW$1))","v":""},{"$f":"IF($A470=\"N/A\",Ref!$B$36,INDEX(Ranks!$1:$1048576,$A470,DX$1))","v":""},{"$f":"IF($A470=\"N/A\",Ref!$B$36,INDEX(Ranks!$1:$1048576,$A470,DY$1))","v":""},{"$f":"IF($A470=\"N/A\",Ref!$B$36,INDEX(Ranks!$1:$1048576,$A470,DZ$1))","v":""},{"$f":"IF($A470=\"N/A\",Ref!$B$36,INDEX(Ranks!$1:$1048576,$A470,EA$1))","v":""},{"$f":"IF($A470=\"N/A\",Ref!$B$36,INDEX(Ranks!$1:$1048576,$A470,EB$1))","v":""}]
[{"$f":"IFERROR(MATCH('Portfolio Page'!L471,Ranks!L:L,0),\"N/A\")","v":"N/A"},null,{"$f":"IF($A471=\"N/A\",\"\",INDEX(Ranks!$1:$1048576,$A471,C$1))","v":""},{"$f":"IF($A471=\"N/A\",Ref!$B$36,INDEX(Ranks!$1:$1048576,$A471,D$1))","v":""},{"$f":"IF($A471=\"N/A\",Ref!$B$36,INDEX(Ranks!$1:$1048576,$A471,E$1))","v":""},{"$f":"IF($A471=\"N/A\",\"\",INDEX(Ranks!$1:$1048576,$A471,F$1))","v":""},{"$f":"IF($A471=\"N/A\",\"\",INDEX(Ranks!$1:$1048576,$A471,G$1))","v":""},{"$f":"IF($A471=\"N/A\",\"\",INDEX(Ranks!$1:$1048576,$A471,H$1))","v":""},{"$f":"IF($A471=\"N/A\",\"\",INDEX(Ranks!$1:$1048576,$A471,I$1))","v":""},{"$f":"IF($A471=\"N/A\",\"\",INDEX(Ranks!$1:$1048576,$A471,J$1))","v":""},{"$f":"IF($A471=\"N/A\",\"\",INDEX(Ranks!$1:$1048576,$A471,K$1))","v":""},null,{"$f":"IF($A471=\"N/A\",Ref!$B$36,INDEX(Ranks!$1:$1048576,$A471,M$1))","v":""},{"$f":"IF($A471=\"N/A\",Ref!$B$36,INDEX(Ranks!$1:$1048576,$A471,N$1))","v":""},{"$f":"IF($A471=\"N/A\",Ref!$B$36,INDEX(Ranks!$1:$1048576,$A471,O$1))","v":""},{"$f":"IF($A471=\"N/A\",Ref!$B$36,INDEX(Ranks!$1:$1048576,$A471,P$1))","v":""},{"$f":"IF($A471=\"N/A\",Ref!$B$36,INDEX(Ranks!$1:$1048576,$A471,Q$1))","v":""},{"$f":"IF($A471=\"N/A\",Ref!$B$36,INDEX(Ranks!$1:$1048576,$A471,R$1))","v":""},{"$f":"IF($A471=\"N/A\",Ref!$B$36,INDEX(Ranks!$1:$1048576,$A471,S$1))","v":""},{"$f":"IF($A471=\"N/A\",Ref!$B$36,INDEX(Ranks!$1:$1048576,$A471,T$1))","v":""},{"$f":"IF($A471=\"N/A\",Ref!$B$36,INDEX(Ranks!$1:$1048576,$A471,U$1))","v":""},{"$f":"IF($A471=\"N/A\",Ref!$B$36,INDEX(Ranks!$1:$1048576,$A471,V$1))","v":""},{"$f":"IF($A471=\"N/A\",Ref!$B$36,INDEX(Ranks!$1:$1048576,$A471,W$1))","v":""},{"$f":"IF($A471=\"N/A\",Ref!$B$36,INDEX(Ranks!$1:$1048576,$A471,X$1))","v":""},{"$f":"IF($A471=\"N/A\",Ref!$B$36,INDEX(Ranks!$1:$1048576,$A471,Y$1))","v":""},{"$f":"IF($A471=\"N/A\",Ref!$B$36,INDEX(Ranks!$1:$1048576,$A471,Z$1))","v":""},{"$f":"IF($A471=\"N/A\",Ref!$B$36,INDEX(Ranks!$1:$1048576,$A471,AA$1))","v":""},{"$f":"IF($A471=\"N/A\",Ref!$B$36,INDEX(Ranks!$1:$1048576,$A471,AB$1))","v":""},{"$f":"IF($A471=\"N/A\",Ref!$B$36,INDEX(Ranks!$1:$1048576,$A471,AC$1))","v":""},{"$f":"IF($A471=\"N/A\",Ref!$B$36,INDEX(Ranks!$1:$1048576,$A471,AD$1))","v":""},{"$f":"IF($A471=\"N/A\",Ref!$B$36,INDEX(Ranks!$1:$1048576,$A471,AE$1))","v":""},{"$f":"IF($A471=\"N/A\",Ref!$B$36,INDEX(Ranks!$1:$1048576,$A471,AF$1))","v":""},{"$f":"IF($A471=\"N/A\",Ref!$B$36,INDEX(Ranks!$1:$1048576,$A471,AG$1))","v":""},{"$f":"IF($A471=\"N/A\",Ref!$B$36,INDEX(Ranks!$1:$1048576,$A471,AH$1))","v":""},{"$f":"IF($A471=\"N/A\",Ref!$B$36,INDEX(Ranks!$1:$1048576,$A471,AI$1))","v":""},{"$f":"IF($A471=\"N/A\",Ref!$B$36,INDEX(Ranks!$1:$1048576,$A471,AJ$1))","v":""},{"$f":"IF($A471=\"N/A\",Ref!$B$36,INDEX(Ranks!$1:$1048576,$A471,AK$1))","v":""},{"$f":"IF($A471=\"N/A\",Ref!$B$36,INDEX(Ranks!$1:$1048576,$A471,AL$1))","v":""},{"$f":"IF($A471=\"N/A\",Ref!$B$36,INDEX(Ranks!$1:$1048576,$A471,AM$1))","v":""},{"$f":"IF($A471=\"N/A\",Ref!$B$36,INDEX(Ranks!$1:$1048576,$A471,AN$1))","v":""},{"$f":"IF($A471=\"N/A\",Ref!$B$36,INDEX(Ranks!$1:$1048576,$A471,AO$1))","v":""},{"$f":"IF($A471=\"N/A\",Ref!$B$36,INDEX(Ranks!$1:$1048576,$A471,AP$1))","v":""},{"$f":"IF($A471=\"N/A\",Ref!$B$36,INDEX(Ranks!$1:$1048576,$A471,AQ$1))","v":""},{"$f":"IF($A471=\"N/A\",Ref!$B$36,INDEX(Ranks!$1:$1048576,$A471,AR$1))","v":""},{"$f":"IF($A471=\"N/A\",Ref!$B$36,INDEX(Ranks!$1:$1048576,$A471,AS$1))","v":""},{"$f":"IF($A471=\"N/A\",Ref!$B$36,INDEX(Ranks!$1:$1048576,$A471,AT$1))","v":""},{"$f":"IF($A471=\"N/A\",Ref!$B$36,INDEX(Ranks!$1:$1048576,$A471,AU$1))","v":""},{"$f":"IF($A471=\"N/A\",Ref!$B$36,INDEX(Ranks!$1:$1048576,$A471,AV$1))","v":""},{"$f":"IF($A471=\"N/A\",Ref!$B$36,INDEX(Ranks!$1:$1048576,$A471,AW$1))","v":""},{"$f":"IF($A471=\"N/A\",Ref!$B$36,INDEX(Ranks!$1:$1048576,$A471,AX$1))","v":""},{"$f":"IF($A471=\"N/A\",Ref!$B$36,INDEX(Ranks!$1:$1048576,$A471,AY$1))","v":""},{"$f":"IF($A471=\"N/A\",Ref!$B$36,INDEX(Ranks!$1:$1048576,$A471,AZ$1))","v":""},{"$f":"IF($A471=\"N/A\",Ref!$B$36,INDEX(Ranks!$1:$1048576,$A471,BA$1))","v":""},{"$f":"IF($A471=\"N/A\",Ref!$B$36,INDEX(Ranks!$1:$1048576,$A471,BB$1))","v":""},{"$f":"IF($A471=\"N/A\",Ref!$B$36,INDEX(Ranks!$1:$1048576,$A471,BC$1))","v":""},{"$f":"IF($A471=\"N/A\",Ref!$B$36,INDEX(Ranks!$1:$1048576,$A471,BD$1))","v":""},{"$f":"IF($A471=\"N/A\",Ref!$B$36,INDEX(Ranks!$1:$1048576,$A471,BE$1))","v":""},{"$f":"IF($A471=\"N/A\",Ref!$B$36,INDEX(Ranks!$1:$1048576,$A471,BF$1))","v":""},{"$f":"IF($A471=\"N/A\",Ref!$B$36,INDEX(Ranks!$1:$1048576,$A471,BG$1))","v":""},{"$f":"IF($A471=\"N/A\",Ref!$B$36,INDEX(Ranks!$1:$1048576,$A471,BH$1))","v":""},{"$f":"IF($A471=\"N/A\",Ref!$B$36,INDEX(Ranks!$1:$1048576,$A471,BI$1))","v":""},{"$f":"IF($A471=\"N/A\",Ref!$B$36,INDEX(Ranks!$1:$1048576,$A471,BJ$1))","v":""},{"$f":"IF($A471=\"N/A\",Ref!$B$36,INDEX(Ranks!$1:$1048576,$A471,BK$1))","v":""},{"$f":"IF($A471=\"N/A\",Ref!$B$36,INDEX(Ranks!$1:$1048576,$A471,BL$1))","v":""},{"$f":"IF($A471=\"N/A\",Ref!$B$36,INDEX(Ranks!$1:$1048576,$A471,BM$1))","v":""},{"$f":"IF($A471=\"N/A\",Ref!$B$36,INDEX(Ranks!$1:$1048576,$A471,BN$1))","v":""},{"$f":"IF($A471=\"N/A\",Ref!$B$36,INDEX(Ranks!$1:$1048576,$A471,BO$1))","v":""},{"$f":"IF($A471=\"N/A\",Ref!$B$36,INDEX(Ranks!$1:$1048576,$A471,BP$1))","v":""},{"$f":"IF($A471=\"N/A\",Ref!$B$36,INDEX(Ranks!$1:$1048576,$A471,BQ$1))","v":""},{"$f":"IF($A471=\"N/A\",Ref!$B$36,INDEX(Ranks!$1:$1048576,$A471,BR$1))","v":""},{"$f":"IF($A471=\"N/A\",Ref!$B$36,INDEX(Ranks!$1:$1048576,$A471,BS$1))","v":""},{"$f":"IF($A471=\"N/A\",Ref!$B$36,INDEX(Ranks!$1:$1048576,$A471,BT$1))","v":""},{"$f":"IF($A471=\"N/A\",Ref!$B$36,INDEX(Ranks!$1:$1048576,$A471,BU$1))","v":""},{"$f":"IF($A471=\"N/A\",Ref!$B$36,INDEX(Ranks!$1:$1048576,$A471,BV$1))","v":""},{"$f":"IF($A471=\"N/A\",Ref!$B$36,INDEX(Ranks!$1:$1048576,$A471,BW$1))","v":""},{"$f":"IF($A471=\"N/A\",Ref!$B$36,INDEX(Ranks!$1:$1048576,$A471,BX$1))","v":""},{"$f":"IF($A471=\"N/A\",Ref!$B$36,INDEX(Ranks!$1:$1048576,$A471,BY$1))","v":""},{"$f":"IF($A471=\"N/A\",Ref!$B$36,INDEX(Ranks!$1:$1048576,$A471,BZ$1))","v":""},{"$f":"IF($A471=\"N/A\",Ref!$B$36,INDEX(Ranks!$1:$1048576,$A471,CA$1))","v":""},{"$f":"IF($A471=\"N/A\",Ref!$B$36,INDEX(Ranks!$1:$1048576,$A471,CB$1))","v":""},{"$f":"IF($A471=\"N/A\",Ref!$B$36,INDEX(Ranks!$1:$1048576,$A471,CC$1))","v":""},{"$f":"IF($A471=\"N/A\",Ref!$B$36,INDEX(Ranks!$1:$1048576,$A471,CD$1))","v":""},{"$f":"IF($A471=\"N/A\",Ref!$B$36,INDEX(Ranks!$1:$1048576,$A471,CE$1))","v":""},{"$f":"IF($A471=\"N/A\",Ref!$B$36,INDEX(Ranks!$1:$1048576,$A471,CF$1))","v":""},{"$f":"IF($A471=\"N/A\",Ref!$B$36,INDEX(Ranks!$1:$1048576,$A471,CG$1))","v":""},{"$f":"IF($A471=\"N/A\",Ref!$B$36,INDEX(Ranks!$1:$1048576,$A471,CH$1))","v":""},{"$f":"IF($A471=\"N/A\",Ref!$B$36,INDEX(Ranks!$1:$1048576,$A471,CI$1))","v":""},{"$f":"IF($A471=\"N/A\",Ref!$B$36,INDEX(Ranks!$1:$1048576,$A471,CJ$1))","v":""},{"$f":"IF($A471=\"N/A\",Ref!$B$36,INDEX(Ranks!$1:$1048576,$A471,CK$1))","v":""},{"$f":"IF($A471=\"N/A\",Ref!$B$36,INDEX(Ranks!$1:$1048576,$A471,CL$1))","v":""},{"$f":"IF($A471=\"N/A\",Ref!$B$36,INDEX(Ranks!$1:$1048576,$A471,CM$1))","v":""},{"$f":"IF($A471=\"N/A\",Ref!$B$36,INDEX(Ranks!$1:$1048576,$A471,CN$1))","v":""},{"$f":"IF($A471=\"N/A\",Ref!$B$36,INDEX(Ranks!$1:$1048576,$A471,CO$1))","v":""},{"$f":"IF($A471=\"N/A\",Ref!$B$36,INDEX(Ranks!$1:$1048576,$A471,CP$1))","v":""},{"$f":"IF($A471=\"N/A\",Ref!$B$36,INDEX(Ranks!$1:$1048576,$A471,CQ$1))","v":""},{"$f":"IF($A471=\"N/A\",Ref!$B$36,INDEX(Ranks!$1:$1048576,$A471,CR$1))","v":""},{"$f":"IF($A471=\"N/A\",Ref!$B$36,INDEX(Ranks!$1:$1048576,$A471,CS$1))","v":""},{"$f":"IF($A471=\"N/A\",Ref!$B$36,INDEX(Ranks!$1:$1048576,$A471,CT$1))","v":""},{"$f":"IF($A471=\"N/A\",Ref!$B$36,INDEX(Ranks!$1:$1048576,$A471,CU$1))","v":""},{"$f":"IF($A471=\"N/A\",Ref!$B$36,INDEX(Ranks!$1:$1048576,$A471,CV$1))","v":""},{"$f":"IF($A471=\"N/A\",Ref!$B$36,INDEX(Ranks!$1:$1048576,$A471,CW$1))","v":""},{"$f":"IF($A471=\"N/A\",Ref!$B$36,INDEX(Ranks!$1:$1048576,$A471,CX$1))","v":""},{"$f":"IF($A471=\"N/A\",Ref!$B$36,INDEX(Ranks!$1:$1048576,$A471,CY$1))","v":""},{"$f":"IF($A471=\"N/A\",Ref!$B$36,INDEX(Ranks!$1:$1048576,$A471,CZ$1))","v":""},{"$f":"IF($A471=\"N/A\",Ref!$B$36,INDEX(Ranks!$1:$1048576,$A471,DA$1))","v":""},{"$f":"IF($A471=\"N/A\",Ref!$B$36,INDEX(Ranks!$1:$1048576,$A471,DB$1))","v":""},{"$f":"IF($A471=\"N/A\",Ref!$B$36,INDEX(Ranks!$1:$1048576,$A471,DC$1))","v":""},{"$f":"IF($A471=\"N/A\",Ref!$B$36,INDEX(Ranks!$1:$1048576,$A471,DD$1))","v":""},{"$f":"IF($A471=\"N/A\",Ref!$B$36,INDEX(Ranks!$1:$1048576,$A471,DE$1))","v":""},{"$f":"IF($A471=\"N/A\",Ref!$B$36,INDEX(Ranks!$1:$1048576,$A471,DF$1))","v":""},{"$f":"IF($A471=\"N/A\",Ref!$B$36,INDEX(Ranks!$1:$1048576,$A471,DG$1))","v":""},{"$f":"IF($A471=\"N/A\",Ref!$B$36,INDEX(Ranks!$1:$1048576,$A471,DH$1))","v":""},{"$f":"IF($A471=\"N/A\",Ref!$B$36,INDEX(Ranks!$1:$1048576,$A471,DI$1))","v":""},{"$f":"IF($A471=\"N/A\",Ref!$B$36,INDEX(Ranks!$1:$1048576,$A471,DJ$1))","v":""},{"$f":"IF($A471=\"N/A\",Ref!$B$36,INDEX(Ranks!$1:$1048576,$A471,DK$1))","v":""},{"$f":"IF($A471=\"N/A\",Ref!$B$36,INDEX(Ranks!$1:$1048576,$A471,DL$1))","v":""},{"$f":"IF($A471=\"N/A\",Ref!$B$36,INDEX(Ranks!$1:$1048576,$A471,DM$1))","v":""},{"$f":"IF($A471=\"N/A\",Ref!$B$36,INDEX(Ranks!$1:$1048576,$A471,DN$1))","v":""},{"$f":"IF($A471=\"N/A\",Ref!$B$36,INDEX(Ranks!$1:$1048576,$A471,DO$1))","v":""},{"$f":"IF($A471=\"N/A\",Ref!$B$36,INDEX(Ranks!$1:$1048576,$A471,DP$1))","v":""},{"$f":"IF($A471=\"N/A\",Ref!$B$36,INDEX(Ranks!$1:$1048576,$A471,DQ$1))","v":""},{"$f":"IF($A471=\"N/A\",Ref!$B$36,INDEX(Ranks!$1:$1048576,$A471,DR$1))","v":""},{"$f":"IF($A471=\"N/A\",Ref!$B$36,INDEX(Ranks!$1:$1048576,$A471,DS$1))","v":""},{"$f":"IF($A471=\"N/A\",Ref!$B$36,INDEX(Ranks!$1:$1048576,$A471,DT$1))","v":""},{"$f":"IF($A471=\"N/A\",Ref!$B$36,INDEX(Ranks!$1:$1048576,$A471,DU$1))","v":""},{"$f":"IF($A471=\"N/A\",Ref!$B$36,INDEX(Ranks!$1:$1048576,$A471,DV$1))","v":""},{"$f":"IF($A471=\"N/A\",Ref!$B$36,INDEX(Ranks!$1:$1048576,$A471,DW$1))","v":""},{"$f":"IF($A471=\"N/A\",Ref!$B$36,INDEX(Ranks!$1:$1048576,$A471,DX$1))","v":""},{"$f":"IF($A471=\"N/A\",Ref!$B$36,INDEX(Ranks!$1:$1048576,$A471,DY$1))","v":""},{"$f":"IF($A471=\"N/A\",Ref!$B$36,INDEX(Ranks!$1:$1048576,$A471,DZ$1))","v":""},{"$f":"IF($A471=\"N/A\",Ref!$B$36,INDEX(Ranks!$1:$1048576,$A471,EA$1))","v":""},{"$f":"IF($A471=\"N/A\",Ref!$B$36,INDEX(Ranks!$1:$1048576,$A471,EB$1))","v":""}]
[{"$f":"IFERROR(MATCH('Portfolio Page'!L472,Ranks!L:L,0),\"N/A\")","v":"N/A"},null,{"$f":"IF($A472=\"N/A\",\"\",INDEX(Ranks!$1:$1048576,$A472,C$1))","v":""},{"$f":"IF($A472=\"N/A\",Ref!$B$36,INDEX(Ranks!$1:$1048576,$A472,D$1))","v":""},{"$f":"IF($A472=\"N/A\",Ref!$B$36,INDEX(Ranks!$1:$1048576,$A472,E$1))","v":""},{"$f":"IF($A472=\"N/A\",\"\",INDEX(Ranks!$1:$1048576,$A472,F$1))","v":""},{"$f":"IF($A472=\"N/A\",\"\",INDEX(Ranks!$1:$1048576,$A472,G$1))","v":""},{"$f":"IF($A472=\"N/A\",\"\",INDEX(Ranks!$1:$1048576,$A472,H$1))","v":""},{"$f":"IF($A472=\"N/A\",\"\",INDEX(Ranks!$1:$1048576,$A472,I$1))","v":""},{"$f":"IF($A472=\"N/A\",\"\",INDEX(Ranks!$1:$1048576,$A472,J$1))","v":""},{"$f":"IF($A472=\"N/A\",\"\",INDEX(Ranks!$1:$1048576,$A472,K$1))","v":""},null,{"$f":"IF($A472=\"N/A\",Ref!$B$36,INDEX(Ranks!$1:$1048576,$A472,M$1))","v":""},{"$f":"IF($A472=\"N/A\",Ref!$B$36,INDEX(Ranks!$1:$1048576,$A472,N$1))","v":""},{"$f":"IF($A472=\"N/A\",Ref!$B$36,INDEX(Ranks!$1:$1048576,$A472,O$1))","v":""},{"$f":"IF($A472=\"N/A\",Ref!$B$36,INDEX(Ranks!$1:$1048576,$A472,P$1))","v":""},{"$f":"IF($A472=\"N/A\",Ref!$B$36,INDEX(Ranks!$1:$1048576,$A472,Q$1))","v":""},{"$f":"IF($A472=\"N/A\",Ref!$B$36,INDEX(Ranks!$1:$1048576,$A472,R$1))","v":""},{"$f":"IF($A472=\"N/A\",Ref!$B$36,INDEX(Ranks!$1:$1048576,$A472,S$1))","v":""},{"$f":"IF($A472=\"N/A\",Ref!$B$36,INDEX(Ranks!$1:$1048576,$A472,T$1))","v":""},{"$f":"IF($A472=\"N/A\",Ref!$B$36,INDEX(Ranks!$1:$1048576,$A472,U$1))","v":""},{"$f":"IF($A472=\"N/A\",Ref!$B$36,INDEX(Ranks!$1:$1048576,$A472,V$1))","v":""},{"$f":"IF($A472=\"N/A\",Ref!$B$36,INDEX(Ranks!$1:$1048576,$A472,W$1))","v":""},{"$f":"IF($A472=\"N/A\",Ref!$B$36,INDEX(Ranks!$1:$1048576,$A472,X$1))","v":""},{"$f":"IF($A472=\"N/A\",Ref!$B$36,INDEX(Ranks!$1:$1048576,$A472,Y$1))","v":""},{"$f":"IF($A472=\"N/A\",Ref!$B$36,INDEX(Ranks!$1:$1048576,$A472,Z$1))","v":""},{"$f":"IF($A472=\"N/A\",Ref!$B$36,INDEX(Ranks!$1:$1048576,$A472,AA$1))","v":""},{"$f":"IF($A472=\"N/A\",Ref!$B$36,INDEX(Ranks!$1:$1048576,$A472,AB$1))","v":""},{"$f":"IF($A472=\"N/A\",Ref!$B$36,INDEX(Ranks!$1:$1048576,$A472,AC$1))","v":""},{"$f":"IF($A472=\"N/A\",Ref!$B$36,INDEX(Ranks!$1:$1048576,$A472,AD$1))","v":""},{"$f":"IF($A472=\"N/A\",Ref!$B$36,INDEX(Ranks!$1:$1048576,$A472,AE$1))","v":""},{"$f":"IF($A472=\"N/A\",Ref!$B$36,INDEX(Ranks!$1:$1048576,$A472,AF$1))","v":""},{"$f":"IF($A472=\"N/A\",Ref!$B$36,INDEX(Ranks!$1:$1048576,$A472,AG$1))","v":""},{"$f":"IF($A472=\"N/A\",Ref!$B$36,INDEX(Ranks!$1:$1048576,$A472,AH$1))","v":""},{"$f":"IF($A472=\"N/A\",Ref!$B$36,INDEX(Ranks!$1:$1048576,$A472,AI$1))","v":""},{"$f":"IF($A472=\"N/A\",Ref!$B$36,INDEX(Ranks!$1:$1048576,$A472,AJ$1))","v":""},{"$f":"IF($A472=\"N/A\",Ref!$B$36,INDEX(Ranks!$1:$1048576,$A472,AK$1))","v":""},{"$f":"IF($A472=\"N/A\",Ref!$B$36,INDEX(Ranks!$1:$1048576,$A472,AL$1))","v":""},{"$f":"IF($A472=\"N/A\",Ref!$B$36,INDEX(Ranks!$1:$1048576,$A472,AM$1))","v":""},{"$f":"IF($A472=\"N/A\",Ref!$B$36,INDEX(Ranks!$1:$1048576,$A472,AN$1))","v":""},{"$f":"IF($A472=\"N/A\",Ref!$B$36,INDEX(Ranks!$1:$1048576,$A472,AO$1))","v":""},{"$f":"IF($A472=\"N/A\",Ref!$B$36,INDEX(Ranks!$1:$1048576,$A472,AP$1))","v":""},{"$f":"IF($A472=\"N/A\",Ref!$B$36,INDEX(Ranks!$1:$1048576,$A472,AQ$1))","v":""},{"$f":"IF($A472=\"N/A\",Ref!$B$36,INDEX(Ranks!$1:$1048576,$A472,AR$1))","v":""},{"$f":"IF($A472=\"N/A\",Ref!$B$36,INDEX(Ranks!$1:$1048576,$A472,AS$1))","v":""},{"$f":"IF($A472=\"N/A\",Ref!$B$36,INDEX(Ranks!$1:$1048576,$A472,AT$1))","v":""},{"$f":"IF($A472=\"N/A\",Ref!$B$36,INDEX(Ranks!$1:$1048576,$A472,AU$1))","v":""},{"$f":"IF($A472=\"N/A\",Ref!$B$36,INDEX(Ranks!$1:$1048576,$A472,AV$1))","v":""},{"$f":"IF($A472=\"N/A\",Ref!$B$36,INDEX(Ranks!$1:$1048576,$A472,AW$1))","v":""},{"$f":"IF($A472=\"N/A\",Ref!$B$36,INDEX(Ranks!$1:$1048576,$A472,AX$1))","v":""},{"$f":"IF($A472=\"N/A\",Ref!$B$36,INDEX(Ranks!$1:$1048576,$A472,AY$1))","v":""},{"$f":"IF($A472=\"N/A\",Ref!$B$36,INDEX(Ranks!$1:$1048576,$A472,AZ$1))","v":""},{"$f":"IF($A472=\"N/A\",Ref!$B$36,INDEX(Ranks!$1:$1048576,$A472,BA$1))","v":""},{"$f":"IF($A472=\"N/A\",Ref!$B$36,INDEX(Ranks!$1:$1048576,$A472,BB$1))","v":""},{"$f":"IF($A472=\"N/A\",Ref!$B$36,INDEX(Ranks!$1:$1048576,$A472,BC$1))","v":""},{"$f":"IF($A472=\"N/A\",Ref!$B$36,INDEX(Ranks!$1:$1048576,$A472,BD$1))","v":""},{"$f":"IF($A472=\"N/A\",Ref!$B$36,INDEX(Ranks!$1:$1048576,$A472,BE$1))","v":""},{"$f":"IF($A472=\"N/A\",Ref!$B$36,INDEX(Ranks!$1:$1048576,$A472,BF$1))","v":""},{"$f":"IF($A472=\"N/A\",Ref!$B$36,INDEX(Ranks!$1:$1048576,$A472,BG$1))","v":""},{"$f":"IF($A472=\"N/A\",Ref!$B$36,INDEX(Ranks!$1:$1048576,$A472,BH$1))","v":""},{"$f":"IF($A472=\"N/A\",Ref!$B$36,INDEX(Ranks!$1:$1048576,$A472,BI$1))","v":""},{"$f":"IF($A472=\"N/A\",Ref!$B$36,INDEX(Ranks!$1:$1048576,$A472,BJ$1))","v":""},{"$f":"IF($A472=\"N/A\",Ref!$B$36,INDEX(Ranks!$1:$1048576,$A472,BK$1))","v":""},{"$f":"IF($A472=\"N/A\",Ref!$B$36,INDEX(Ranks!$1:$1048576,$A472,BL$1))","v":""},{"$f":"IF($A472=\"N/A\",Ref!$B$36,INDEX(Ranks!$1:$1048576,$A472,BM$1))","v":""},{"$f":"IF($A472=\"N/A\",Ref!$B$36,INDEX(Ranks!$1:$1048576,$A472,BN$1))","v":""},{"$f":"IF($A472=\"N/A\",Ref!$B$36,INDEX(Ranks!$1:$1048576,$A472,BO$1))","v":""},{"$f":"IF($A472=\"N/A\",Ref!$B$36,INDEX(Ranks!$1:$1048576,$A472,BP$1))","v":""},{"$f":"IF($A472=\"N/A\",Ref!$B$36,INDEX(Ranks!$1:$1048576,$A472,BQ$1))","v":""},{"$f":"IF($A472=\"N/A\",Ref!$B$36,INDEX(Ranks!$1:$1048576,$A472,BR$1))","v":""},{"$f":"IF($A472=\"N/A\",Ref!$B$36,INDEX(Ranks!$1:$1048576,$A472,BS$1))","v":""},{"$f":"IF($A472=\"N/A\",Ref!$B$36,INDEX(Ranks!$1:$1048576,$A472,BT$1))","v":""},{"$f":"IF($A472=\"N/A\",Ref!$B$36,INDEX(Ranks!$1:$1048576,$A472,BU$1))","v":""},{"$f":"IF($A472=\"N/A\",Ref!$B$36,INDEX(Ranks!$1:$1048576,$A472,BV$1))","v":""},{"$f":"IF($A472=\"N/A\",Ref!$B$36,INDEX(Ranks!$1:$1048576,$A472,BW$1))","v":""},{"$f":"IF($A472=\"N/A\",Ref!$B$36,INDEX(Ranks!$1:$1048576,$A472,BX$1))","v":""},{"$f":"IF($A472=\"N/A\",Ref!$B$36,INDEX(Ranks!$1:$1048576,$A472,BY$1))","v":""},{"$f":"IF($A472=\"N/A\",Ref!$B$36,INDEX(Ranks!$1:$1048576,$A472,BZ$1))","v":""},{"$f":"IF($A472=\"N/A\",Ref!$B$36,INDEX(Ranks!$1:$1048576,$A472,CA$1))","v":""},{"$f":"IF($A472=\"N/A\",Ref!$B$36,INDEX(Ranks!$1:$1048576,$A472,CB$1))","v":""},{"$f":"IF($A472=\"N/A\",Ref!$B$36,INDEX(Ranks!$1:$1048576,$A472,CC$1))","v":""},{"$f":"IF($A472=\"N/A\",Ref!$B$36,INDEX(Ranks!$1:$1048576,$A472,CD$1))","v":""},{"$f":"IF($A472=\"N/A\",Ref!$B$36,INDEX(Ranks!$1:$1048576,$A472,CE$1))","v":""},{"$f":"IF($A472=\"N/A\",Ref!$B$36,INDEX(Ranks!$1:$1048576,$A472,CF$1))","v":""},{"$f":"IF($A472=\"N/A\",Ref!$B$36,INDEX(Ranks!$1:$1048576,$A472,CG$1))","v":""},{"$f":"IF($A472=\"N/A\",Ref!$B$36,INDEX(Ranks!$1:$1048576,$A472,CH$1))","v":""},{"$f":"IF($A472=\"N/A\",Ref!$B$36,INDEX(Ranks!$1:$1048576,$A472,CI$1))","v":""},{"$f":"IF($A472=\"N/A\",Ref!$B$36,INDEX(Ranks!$1:$1048576,$A472,CJ$1))","v":""},{"$f":"IF($A472=\"N/A\",Ref!$B$36,INDEX(Ranks!$1:$1048576,$A472,CK$1))","v":""},{"$f":"IF($A472=\"N/A\",Ref!$B$36,INDEX(Ranks!$1:$1048576,$A472,CL$1))","v":""},{"$f":"IF($A472=\"N/A\",Ref!$B$36,INDEX(Ranks!$1:$1048576,$A472,CM$1))","v":""},{"$f":"IF($A472=\"N/A\",Ref!$B$36,INDEX(Ranks!$1:$1048576,$A472,CN$1))","v":""},{"$f":"IF($A472=\"N/A\",Ref!$B$36,INDEX(Ranks!$1:$1048576,$A472,CO$1))","v":""},{"$f":"IF($A472=\"N/A\",Ref!$B$36,INDEX(Ranks!$1:$1048576,$A472,CP$1))","v":""},{"$f":"IF($A472=\"N/A\",Ref!$B$36,INDEX(Ranks!$1:$1048576,$A472,CQ$1))","v":""},{"$f":"IF($A472=\"N/A\",Ref!$B$36,INDEX(Ranks!$1:$1048576,$A472,CR$1))","v":""},{"$f":"IF($A472=\"N/A\",Ref!$B$36,INDEX(Ranks!$1:$1048576,$A472,CS$1))","v":""},{"$f":"IF($A472=\"N/A\",Ref!$B$36,INDEX(Ranks!$1:$1048576,$A472,CT$1))","v":""},{"$f":"IF($A472=\"N/A\",Ref!$B$36,INDEX(Ranks!$1:$1048576,$A472,CU$1))","v":""},{"$f":"IF($A472=\"N/A\",Ref!$B$36,INDEX(Ranks!$1:$1048576,$A472,CV$1))","v":""},{"$f":"IF($A472=\"N/A\",Ref!$B$36,INDEX(Ranks!$1:$1048576,$A472,CW$1))","v":""},{"$f":"IF($A472=\"N/A\",Ref!$B$36,INDEX(Ranks!$1:$1048576,$A472,CX$1))","v":""},{"$f":"IF($A472=\"N/A\",Ref!$B$36,INDEX(Ranks!$1:$1048576,$A472,CY$1))","v":""},{"$f":"IF($A472=\"N/A\",Ref!$B$36,INDEX(Ranks!$1:$1048576,$A472,CZ$1))","v":""},{"$f":"IF($A472=\"N/A\",Ref!$B$36,INDEX(Ranks!$1:$1048576,$A472,DA$1))","v":""},{"$f":"IF($A472=\"N/A\",Ref!$B$36,INDEX(Ranks!$1:$1048576,$A472,DB$1))","v":""},{"$f":"IF($A472=\"N/A\",Ref!$B$36,INDEX(Ranks!$1:$1048576,$A472,DC$1))","v":""},{"$f":"IF($A472=\"N/A\",Ref!$B$36,INDEX(Ranks!$1:$1048576,$A472,DD$1))","v":""},{"$f":"IF($A472=\"N/A\",Ref!$B$36,INDEX(Ranks!$1:$1048576,$A472,DE$1))","v":""},{"$f":"IF($A472=\"N/A\",Ref!$B$36,INDEX(Ranks!$1:$1048576,$A472,DF$1))","v":""},{"$f":"IF($A472=\"N/A\",Ref!$B$36,INDEX(Ranks!$1:$1048576,$A472,DG$1))","v":""},{"$f":"IF($A472=\"N/A\",Ref!$B$36,INDEX(Ranks!$1:$1048576,$A472,DH$1))","v":""},{"$f":"IF($A472=\"N/A\",Ref!$B$36,INDEX(Ranks!$1:$1048576,$A472,DI$1))","v":""},{"$f":"IF($A472=\"N/A\",Ref!$B$36,INDEX(Ranks!$1:$1048576,$A472,DJ$1))","v":""},{"$f":"IF($A472=\"N/A\",Ref!$B$36,INDEX(Ranks!$1:$1048576,$A472,DK$1))","v":""},{"$f":"IF($A472=\"N/A\",Ref!$B$36,INDEX(Ranks!$1:$1048576,$A472,DL$1))","v":""},{"$f":"IF($A472=\"N/A\",Ref!$B$36,INDEX(Ranks!$1:$1048576,$A472,DM$1))","v":""},{"$f":"IF($A472=\"N/A\",Ref!$B$36,INDEX(Ranks!$1:$1048576,$A472,DN$1))","v":""},{"$f":"IF($A472=\"N/A\",Ref!$B$36,INDEX(Ranks!$1:$1048576,$A472,DO$1))","v":""},{"$f":"IF($A472=\"N/A\",Ref!$B$36,INDEX(Ranks!$1:$1048576,$A472,DP$1))","v":""},{"$f":"IF($A472=\"N/A\",Ref!$B$36,INDEX(Ranks!$1:$1048576,$A472,DQ$1))","v":""},{"$f":"IF($A472=\"N/A\",Ref!$B$36,INDEX(Ranks!$1:$1048576,$A472,DR$1))","v":""},{"$f":"IF($A472=\"N/A\",Ref!$B$36,INDEX(Ranks!$1:$1048576,$A472,DS$1))","v":""},{"$f":"IF($A472=\"N/A\",Ref!$B$36,INDEX(Ranks!$1:$1048576,$A472,DT$1))","v":""},{"$f":"IF($A472=\"N/A\",Ref!$B$36,INDEX(Ranks!$1:$1048576,$A472,DU$1))","v":""},{"$f":"IF($A472=\"N/A\",Ref!$B$36,INDEX(Ranks!$1:$1048576,$A472,DV$1))","v":""},{"$f":"IF($A472=\"N/A\",Ref!$B$36,INDEX(Ranks!$1:$1048576,$A472,DW$1))","v":""},{"$f":"IF($A472=\"N/A\",Ref!$B$36,INDEX(Ranks!$1:$1048576,$A472,DX$1))","v":""},{"$f":"IF($A472=\"N/A\",Ref!$B$36,INDEX(Ranks!$1:$1048576,$A472,DY$1))","v":""},{"$f":"IF($A472=\"N/A\",Ref!$B$36,INDEX(Ranks!$1:$1048576,$A472,DZ$1))","v":""},{"$f":"IF($A472=\"N/A\",Ref!$B$36,INDEX(Ranks!$1:$1048576,$A472,EA$1))","v":""},{"$f":"IF($A472=\"N/A\",Ref!$B$36,INDEX(Ranks!$1:$1048576,$A472,EB$1))","v":""}]
[{"$f":"IFERROR(MATCH('Portfolio Page'!L473,Ranks!L:L,0),\"N/A\")","v":"N/A"},null,{"$f":"IF($A473=\"N/A\",\"\",INDEX(Ranks!$1:$1048576,$A473,C$1))","v":""},{"$f":"IF($A473=\"N/A\",Ref!$B$36,INDEX(Ranks!$1:$1048576,$A473,D$1))","v":""},{"$f":"IF($A473=\"N/A\",Ref!$B$36,INDEX(Ranks!$1:$1048576,$A473,E$1))","v":""},{"$f":"IF($A473=\"N/A\",\"\",INDEX(Ranks!$1:$1048576,$A473,F$1))","v":""},{"$f":"IF($A473=\"N/A\",\"\",INDEX(Ranks!$1:$1048576,$A473,G$1))","v":""},{"$f":"IF($A473=\"N/A\",\"\",INDEX(Ranks!$1:$1048576,$A473,H$1))","v":""},{"$f":"IF($A473=\"N/A\",\"\",INDEX(Ranks!$1:$1048576,$A473,I$1))","v":""},{"$f":"IF($A473=\"N/A\",\"\",INDEX(Ranks!$1:$1048576,$A473,J$1))","v":""},{"$f":"IF($A473=\"N/A\",\"\",INDEX(Ranks!$1:$1048576,$A473,K$1))","v":""},null,{"$f":"IF($A473=\"N/A\",Ref!$B$36,INDEX(Ranks!$1:$1048576,$A473,M$1))","v":""},{"$f":"IF($A473=\"N/A\",Ref!$B$36,INDEX(Ranks!$1:$1048576,$A473,N$1))","v":""},{"$f":"IF($A473=\"N/A\",Ref!$B$36,INDEX(Ranks!$1:$1048576,$A473,O$1))","v":""},{"$f":"IF($A473=\"N/A\",Ref!$B$36,INDEX(Ranks!$1:$1048576,$A473,P$1))","v":""},{"$f":"IF($A473=\"N/A\",Ref!$B$36,INDEX(Ranks!$1:$1048576,$A473,Q$1))","v":""},{"$f":"IF($A473=\"N/A\",Ref!$B$36,INDEX(Ranks!$1:$1048576,$A473,R$1))","v":""},{"$f":"IF($A473=\"N/A\",Ref!$B$36,INDEX(Ranks!$1:$1048576,$A473,S$1))","v":""},{"$f":"IF($A473=\"N/A\",Ref!$B$36,INDEX(Ranks!$1:$1048576,$A473,T$1))","v":""},{"$f":"IF($A473=\"N/A\",Ref!$B$36,INDEX(Ranks!$1:$1048576,$A473,U$1))","v":""},{"$f":"IF($A473=\"N/A\",Ref!$B$36,INDEX(Ranks!$1:$1048576,$A473,V$1))","v":""},{"$f":"IF($A473=\"N/A\",Ref!$B$36,INDEX(Ranks!$1:$1048576,$A473,W$1))","v":""},{"$f":"IF($A473=\"N/A\",Ref!$B$36,INDEX(Ranks!$1:$1048576,$A473,X$1))","v":""},{"$f":"IF($A473=\"N/A\",Ref!$B$36,INDEX(Ranks!$1:$1048576,$A473,Y$1))","v":""},{"$f":"IF($A473=\"N/A\",Ref!$B$36,INDEX(Ranks!$1:$1048576,$A473,Z$1))","v":""},{"$f":"IF($A473=\"N/A\",Ref!$B$36,INDEX(Ranks!$1:$1048576,$A473,AA$1))","v":""},{"$f":"IF($A473=\"N/A\",Ref!$B$36,INDEX(Ranks!$1:$1048576,$A473,AB$1))","v":""},{"$f":"IF($A473=\"N/A\",Ref!$B$36,INDEX(Ranks!$1:$1048576,$A473,AC$1))","v":""},{"$f":"IF($A473=\"N/A\",Ref!$B$36,INDEX(Ranks!$1:$1048576,$A473,AD$1))","v":""},{"$f":"IF($A473=\"N/A\",Ref!$B$36,INDEX(Ranks!$1:$1048576,$A473,AE$1))","v":""},{"$f":"IF($A473=\"N/A\",Ref!$B$36,INDEX(Ranks!$1:$1048576,$A473,AF$1))","v":""},{"$f":"IF($A473=\"N/A\",Ref!$B$36,INDEX(Ranks!$1:$1048576,$A473,AG$1))","v":""},{"$f":"IF($A473=\"N/A\",Ref!$B$36,INDEX(Ranks!$1:$1048576,$A473,AH$1))","v":""},{"$f":"IF($A473=\"N/A\",Ref!$B$36,INDEX(Ranks!$1:$1048576,$A473,AI$1))","v":""},{"$f":"IF($A473=\"N/A\",Ref!$B$36,INDEX(Ranks!$1:$1048576,$A473,AJ$1))","v":""},{"$f":"IF($A473=\"N/A\",Ref!$B$36,INDEX(Ranks!$1:$1048576,$A473,AK$1))","v":""},{"$f":"IF($A473=\"N/A\",Ref!$B$36,INDEX(Ranks!$1:$1048576,$A473,AL$1))","v":""},{"$f":"IF($A473=\"N/A\",Ref!$B$36,INDEX(Ranks!$1:$1048576,$A473,AM$1))","v":""},{"$f":"IF($A473=\"N/A\",Ref!$B$36,INDEX(Ranks!$1:$1048576,$A473,AN$1))","v":""},{"$f":"IF($A473=\"N/A\",Ref!$B$36,INDEX(Ranks!$1:$1048576,$A473,AO$1))","v":""},{"$f":"IF($A473=\"N/A\",Ref!$B$36,INDEX(Ranks!$1:$1048576,$A473,AP$1))","v":""},{"$f":"IF($A473=\"N/A\",Ref!$B$36,INDEX(Ranks!$1:$1048576,$A473,AQ$1))","v":""},{"$f":"IF($A473=\"N/A\",Ref!$B$36,INDEX(Ranks!$1:$1048576,$A473,AR$1))","v":""},{"$f":"IF($A473=\"N/A\",Ref!$B$36,INDEX(Ranks!$1:$1048576,$A473,AS$1))","v":""},{"$f":"IF($A473=\"N/A\",Ref!$B$36,INDEX(Ranks!$1:$1048576,$A473,AT$1))","v":""},{"$f":"IF($A473=\"N/A\",Ref!$B$36,INDEX(Ranks!$1:$1048576,$A473,AU$1))","v":""},{"$f":"IF($A473=\"N/A\",Ref!$B$36,INDEX(Ranks!$1:$1048576,$A473,AV$1))","v":""},{"$f":"IF($A473=\"N/A\",Ref!$B$36,INDEX(Ranks!$1:$1048576,$A473,AW$1))","v":""},{"$f":"IF($A473=\"N/A\",Ref!$B$36,INDEX(Ranks!$1:$1048576,$A473,AX$1))","v":""},{"$f":"IF($A473=\"N/A\",Ref!$B$36,INDEX(Ranks!$1:$1048576,$A473,AY$1))","v":""},{"$f":"IF($A473=\"N/A\",Ref!$B$36,INDEX(Ranks!$1:$1048576,$A473,AZ$1))","v":""},{"$f":"IF($A473=\"N/A\",Ref!$B$36,INDEX(Ranks!$1:$1048576,$A473,BA$1))","v":""},{"$f":"IF($A473=\"N/A\",Ref!$B$36,INDEX(Ranks!$1:$1048576,$A473,BB$1))","v":""},{"$f":"IF($A473=\"N/A\",Ref!$B$36,INDEX(Ranks!$1:$1048576,$A473,BC$1))","v":""},{"$f":"IF($A473=\"N/A\",Ref!$B$36,INDEX(Ranks!$1:$1048576,$A473,BD$1))","v":""},{"$f":"IF($A473=\"N/A\",Ref!$B$36,INDEX(Ranks!$1:$1048576,$A473,BE$1))","v":""},{"$f":"IF($A473=\"N/A\",Ref!$B$36,INDEX(Ranks!$1:$1048576,$A473,BF$1))","v":""},{"$f":"IF($A473=\"N/A\",Ref!$B$36,INDEX(Ranks!$1:$1048576,$A473,BG$1))","v":""},{"$f":"IF($A473=\"N/A\",Ref!$B$36,INDEX(Ranks!$1:$1048576,$A473,BH$1))","v":""},{"$f":"IF($A473=\"N/A\",Ref!$B$36,INDEX(Ranks!$1:$1048576,$A473,BI$1))","v":""},{"$f":"IF($A473=\"N/A\",Ref!$B$36,INDEX(Ranks!$1:$1048576,$A473,BJ$1))","v":""},{"$f":"IF($A473=\"N/A\",Ref!$B$36,INDEX(Ranks!$1:$1048576,$A473,BK$1))","v":""},{"$f":"IF($A473=\"N/A\",Ref!$B$36,INDEX(Ranks!$1:$1048576,$A473,BL$1))","v":""},{"$f":"IF($A473=\"N/A\",Ref!$B$36,INDEX(Ranks!$1:$1048576,$A473,BM$1))","v":""},{"$f":"IF($A473=\"N/A\",Ref!$B$36,INDEX(Ranks!$1:$1048576,$A473,BN$1))","v":""},{"$f":"IF($A473=\"N/A\",Ref!$B$36,INDEX(Ranks!$1:$1048576,$A473,BO$1))","v":""},{"$f":"IF($A473=\"N/A\",Ref!$B$36,INDEX(Ranks!$1:$1048576,$A473,BP$1))","v":""},{"$f":"IF($A473=\"N/A\",Ref!$B$36,INDEX(Ranks!$1:$1048576,$A473,BQ$1))","v":""},{"$f":"IF($A473=\"N/A\",Ref!$B$36,INDEX(Ranks!$1:$1048576,$A473,BR$1))","v":""},{"$f":"IF($A473=\"N/A\",Ref!$B$36,INDEX(Ranks!$1:$1048576,$A473,BS$1))","v":""},{"$f":"IF($A473=\"N/A\",Ref!$B$36,INDEX(Ranks!$1:$1048576,$A473,BT$1))","v":""},{"$f":"IF($A473=\"N/A\",Ref!$B$36,INDEX(Ranks!$1:$1048576,$A473,BU$1))","v":""},{"$f":"IF($A473=\"N/A\",Ref!$B$36,INDEX(Ranks!$1:$1048576,$A473,BV$1))","v":""},{"$f":"IF($A473=\"N/A\",Ref!$B$36,INDEX(Ranks!$1:$1048576,$A473,BW$1))","v":""},{"$f":"IF($A473=\"N/A\",Ref!$B$36,INDEX(Ranks!$1:$1048576,$A473,BX$1))","v":""},{"$f":"IF($A473=\"N/A\",Ref!$B$36,INDEX(Ranks!$1:$1048576,$A473,BY$1))","v":""},{"$f":"IF($A473=\"N/A\",Ref!$B$36,INDEX(Ranks!$1:$1048576,$A473,BZ$1))","v":""},{"$f":"IF($A473=\"N/A\",Ref!$B$36,INDEX(Ranks!$1:$1048576,$A473,CA$1))","v":""},{"$f":"IF($A473=\"N/A\",Ref!$B$36,INDEX(Ranks!$1:$1048576,$A473,CB$1))","v":""},{"$f":"IF($A473=\"N/A\",Ref!$B$36,INDEX(Ranks!$1:$1048576,$A473,CC$1))","v":""},{"$f":"IF($A473=\"N/A\",Ref!$B$36,INDEX(Ranks!$1:$1048576,$A473,CD$1))","v":""},{"$f":"IF($A473=\"N/A\",Ref!$B$36,INDEX(Ranks!$1:$1048576,$A473,CE$1))","v":""},{"$f":"IF($A473=\"N/A\",Ref!$B$36,INDEX(Ranks!$1:$1048576,$A473,CF$1))","v":""},{"$f":"IF($A473=\"N/A\",Ref!$B$36,INDEX(Ranks!$1:$1048576,$A473,CG$1))","v":""},{"$f":"IF($A473=\"N/A\",Ref!$B$36,INDEX(Ranks!$1:$1048576,$A473,CH$1))","v":""},{"$f":"IF($A473=\"N/A\",Ref!$B$36,INDEX(Ranks!$1:$1048576,$A473,CI$1))","v":""},{"$f":"IF($A473=\"N/A\",Ref!$B$36,INDEX(Ranks!$1:$1048576,$A473,CJ$1))","v":""},{"$f":"IF($A473=\"N/A\",Ref!$B$36,INDEX(Ranks!$1:$1048576,$A473,CK$1))","v":""},{"$f":"IF($A473=\"N/A\",Ref!$B$36,INDEX(Ranks!$1:$1048576,$A473,CL$1))","v":""},{"$f":"IF($A473=\"N/A\",Ref!$B$36,INDEX(Ranks!$1:$1048576,$A473,CM$1))","v":""},{"$f":"IF($A473=\"N/A\",Ref!$B$36,INDEX(Ranks!$1:$1048576,$A473,CN$1))","v":""},{"$f":"IF($A473=\"N/A\",Ref!$B$36,INDEX(Ranks!$1:$1048576,$A473,CO$1))","v":""},{"$f":"IF($A473=\"N/A\",Ref!$B$36,INDEX(Ranks!$1:$1048576,$A473,CP$1))","v":""},{"$f":"IF($A473=\"N/A\",Ref!$B$36,INDEX(Ranks!$1:$1048576,$A473,CQ$1))","v":""},{"$f":"IF($A473=\"N/A\",Ref!$B$36,INDEX(Ranks!$1:$1048576,$A473,CR$1))","v":""},{"$f":"IF($A473=\"N/A\",Ref!$B$36,INDEX(Ranks!$1:$1048576,$A473,CS$1))","v":""},{"$f":"IF($A473=\"N/A\",Ref!$B$36,INDEX(Ranks!$1:$1048576,$A473,CT$1))","v":""},{"$f":"IF($A473=\"N/A\",Ref!$B$36,INDEX(Ranks!$1:$1048576,$A473,CU$1))","v":""},{"$f":"IF($A473=\"N/A\",Ref!$B$36,INDEX(Ranks!$1:$1048576,$A473,CV$1))","v":""},{"$f":"IF($A473=\"N/A\",Ref!$B$36,INDEX(Ranks!$1:$1048576,$A473,CW$1))","v":""},{"$f":"IF($A473=\"N/A\",Ref!$B$36,INDEX(Ranks!$1:$1048576,$A473,CX$1))","v":""},{"$f":"IF($A473=\"N/A\",Ref!$B$36,INDEX(Ranks!$1:$1048576,$A473,CY$1))","v":""},{"$f":"IF($A473=\"N/A\",Ref!$B$36,INDEX(Ranks!$1:$1048576,$A473,CZ$1))","v":""},{"$f":"IF($A473=\"N/A\",Ref!$B$36,INDEX(Ranks!$1:$1048576,$A473,DA$1))","v":""},{"$f":"IF($A473=\"N/A\",Ref!$B$36,INDEX(Ranks!$1:$1048576,$A473,DB$1))","v":""},{"$f":"IF($A473=\"N/A\",Ref!$B$36,INDEX(Ranks!$1:$1048576,$A473,DC$1))","v":""},{"$f":"IF($A473=\"N/A\",Ref!$B$36,INDEX(Ranks!$1:$1048576,$A473,DD$1))","v":""},{"$f":"IF($A473=\"N/A\",Ref!$B$36,INDEX(Ranks!$1:$1048576,$A473,DE$1))","v":""},{"$f":"IF($A473=\"N/A\",Ref!$B$36,INDEX(Ranks!$1:$1048576,$A473,DF$1))","v":""},{"$f":"IF($A473=\"N/A\",Ref!$B$36,INDEX(Ranks!$1:$1048576,$A473,DG$1))","v":""},{"$f":"IF($A473=\"N/A\",Ref!$B$36,INDEX(Ranks!$1:$1048576,$A473,DH$1))","v":""},{"$f":"IF($A473=\"N/A\",Ref!$B$36,INDEX(Ranks!$1:$1048576,$A473,DI$1))","v":""},{"$f":"IF($A473=\"N/A\",Ref!$B$36,INDEX(Ranks!$1:$1048576,$A473,DJ$1))","v":""},{"$f":"IF($A473=\"N/A\",Ref!$B$36,INDEX(Ranks!$1:$1048576,$A473,DK$1))","v":""},{"$f":"IF($A473=\"N/A\",Ref!$B$36,INDEX(Ranks!$1:$1048576,$A473,DL$1))","v":""},{"$f":"IF($A473=\"N/A\",Ref!$B$36,INDEX(Ranks!$1:$1048576,$A473,DM$1))","v":""},{"$f":"IF($A473=\"N/A\",Ref!$B$36,INDEX(Ranks!$1:$1048576,$A473,DN$1))","v":""},{"$f":"IF($A473=\"N/A\",Ref!$B$36,INDEX(Ranks!$1:$1048576,$A473,DO$1))","v":""},{"$f":"IF($A473=\"N/A\",Ref!$B$36,INDEX(Ranks!$1:$1048576,$A473,DP$1))","v":""},{"$f":"IF($A473=\"N/A\",Ref!$B$36,INDEX(Ranks!$1:$1048576,$A473,DQ$1))","v":""},{"$f":"IF($A473=\"N/A\",Ref!$B$36,INDEX(Ranks!$1:$1048576,$A473,DR$1))","v":""},{"$f":"IF($A473=\"N/A\",Ref!$B$36,INDEX(Ranks!$1:$1048576,$A473,DS$1))","v":""},{"$f":"IF($A473=\"N/A\",Ref!$B$36,INDEX(Ranks!$1:$1048576,$A473,DT$1))","v":""},{"$f":"IF($A473=\"N/A\",Ref!$B$36,INDEX(Ranks!$1:$1048576,$A473,DU$1))","v":""},{"$f":"IF($A473=\"N/A\",Ref!$B$36,INDEX(Ranks!$1:$1048576,$A473,DV$1))","v":""},{"$f":"IF($A473=\"N/A\",Ref!$B$36,INDEX(Ranks!$1:$1048576,$A473,DW$1))","v":""},{"$f":"IF($A473=\"N/A\",Ref!$B$36,INDEX(Ranks!$1:$1048576,$A473,DX$1))","v":""},{"$f":"IF($A473=\"N/A\",Ref!$B$36,INDEX(Ranks!$1:$1048576,$A473,DY$1))","v":""},{"$f":"IF($A473=\"N/A\",Ref!$B$36,INDEX(Ranks!$1:$1048576,$A473,DZ$1))","v":""},{"$f":"IF($A473=\"N/A\",Ref!$B$36,INDEX(Ranks!$1:$1048576,$A473,EA$1))","v":""},{"$f":"IF($A473=\"N/A\",Ref!$B$36,INDEX(Ranks!$1:$1048576,$A473,EB$1))","v":""}]
[{"$f":"IFERROR(MATCH('Portfolio Page'!L474,Ranks!L:L,0),\"N/A\")","v":"N/A"},null,{"$f":"IF($A474=\"N/A\",\"\",INDEX(Ranks!$1:$1048576,$A474,C$1))","v":""},{"$f":"IF($A474=\"N/A\",Ref!$B$36,INDEX(Ranks!$1:$1048576,$A474,D$1))","v":""},{"$f":"IF($A474=\"N/A\",Ref!$B$36,INDEX(Ranks!$1:$1048576,$A474,E$1))","v":""},{"$f":"IF($A474=\"N/A\",\"\",INDEX(Ranks!$1:$1048576,$A474,F$1))","v":""},{"$f":"IF($A474=\"N/A\",\"\",INDEX(Ranks!$1:$1048576,$A474,G$1))","v":""},{"$f":"IF($A474=\"N/A\",\"\",INDEX(Ranks!$1:$1048576,$A474,H$1))","v":""},{"$f":"IF($A474=\"N/A\",\"\",INDEX(Ranks!$1:$1048576,$A474,I$1))","v":""},{"$f":"IF($A474=\"N/A\",\"\",INDEX(Ranks!$1:$1048576,$A474,J$1))","v":""},{"$f":"IF($A474=\"N/A\",\"\",INDEX(Ranks!$1:$1048576,$A474,K$1))","v":""},null,{"$f":"IF($A474=\"N/A\",Ref!$B$36,INDEX(Ranks!$1:$1048576,$A474,M$1))","v":""},{"$f":"IF($A474=\"N/A\",Ref!$B$36,INDEX(Ranks!$1:$1048576,$A474,N$1))","v":""},{"$f":"IF($A474=\"N/A\",Ref!$B$36,INDEX(Ranks!$1:$1048576,$A474,O$1))","v":""},{"$f":"IF($A474=\"N/A\",Ref!$B$36,INDEX(Ranks!$1:$1048576,$A474,P$1))","v":""},{"$f":"IF($A474=\"N/A\",Ref!$B$36,INDEX(Ranks!$1:$1048576,$A474,Q$1))","v":""},{"$f":"IF($A474=\"N/A\",Ref!$B$36,INDEX(Ranks!$1:$1048576,$A474,R$1))","v":""},{"$f":"IF($A474=\"N/A\",Ref!$B$36,INDEX(Ranks!$1:$1048576,$A474,S$1))","v":""},{"$f":"IF($A474=\"N/A\",Ref!$B$36,INDEX(Ranks!$1:$1048576,$A474,T$1))","v":""},{"$f":"IF($A474=\"N/A\",Ref!$B$36,INDEX(Ranks!$1:$1048576,$A474,U$1))","v":""},{"$f":"IF($A474=\"N/A\",Ref!$B$36,INDEX(Ranks!$1:$1048576,$A474,V$1))","v":""},{"$f":"IF($A474=\"N/A\",Ref!$B$36,INDEX(Ranks!$1:$1048576,$A474,W$1))","v":""},{"$f":"IF($A474=\"N/A\",Ref!$B$36,INDEX(Ranks!$1:$1048576,$A474,X$1))","v":""},{"$f":"IF($A474=\"N/A\",Ref!$B$36,INDEX(Ranks!$1:$1048576,$A474,Y$1))","v":""},{"$f":"IF($A474=\"N/A\",Ref!$B$36,INDEX(Ranks!$1:$1048576,$A474,Z$1))","v":""},{"$f":"IF($A474=\"N/A\",Ref!$B$36,INDEX(Ranks!$1:$1048576,$A474,AA$1))","v":""},{"$f":"IF($A474=\"N/A\",Ref!$B$36,INDEX(Ranks!$1:$1048576,$A474,AB$1))","v":""},{"$f":"IF($A474=\"N/A\",Ref!$B$36,INDEX(Ranks!$1:$1048576,$A474,AC$1))","v":""},{"$f":"IF($A474=\"N/A\",Ref!$B$36,INDEX(Ranks!$1:$1048576,$A474,AD$1))","v":""},{"$f":"IF($A474=\"N/A\",Ref!$B$36,INDEX(Ranks!$1:$1048576,$A474,AE$1))","v":""},{"$f":"IF($A474=\"N/A\",Ref!$B$36,INDEX(Ranks!$1:$1048576,$A474,AF$1))","v":""},{"$f":"IF($A474=\"N/A\",Ref!$B$36,INDEX(Ranks!$1:$1048576,$A474,AG$1))","v":""},{"$f":"IF($A474=\"N/A\",Ref!$B$36,INDEX(Ranks!$1:$1048576,$A474,AH$1))","v":""},{"$f":"IF($A474=\"N/A\",Ref!$B$36,INDEX(Ranks!$1:$1048576,$A474,AI$1))","v":""},{"$f":"IF($A474=\"N/A\",Ref!$B$36,INDEX(Ranks!$1:$1048576,$A474,AJ$1))","v":""},{"$f":"IF($A474=\"N/A\",Ref!$B$36,INDEX(Ranks!$1:$1048576,$A474,AK$1))","v":""},{"$f":"IF($A474=\"N/A\",Ref!$B$36,INDEX(Ranks!$1:$1048576,$A474,AL$1))","v":""},{"$f":"IF($A474=\"N/A\",Ref!$B$36,INDEX(Ranks!$1:$1048576,$A474,AM$1))","v":""},{"$f":"IF($A474=\"N/A\",Ref!$B$36,INDEX(Ranks!$1:$1048576,$A474,AN$1))","v":""},{"$f":"IF($A474=\"N/A\",Ref!$B$36,INDEX(Ranks!$1:$1048576,$A474,AO$1))","v":""},{"$f":"IF($A474=\"N/A\",Ref!$B$36,INDEX(Ranks!$1:$1048576,$A474,AP$1))","v":""},{"$f":"IF($A474=\"N/A\",Ref!$B$36,INDEX(Ranks!$1:$1048576,$A474,AQ$1))","v":""},{"$f":"IF($A474=\"N/A\",Ref!$B$36,INDEX(Ranks!$1:$1048576,$A474,AR$1))","v":""},{"$f":"IF($A474=\"N/A\",Ref!$B$36,INDEX(Ranks!$1:$1048576,$A474,AS$1))","v":""},{"$f":"IF($A474=\"N/A\",Ref!$B$36,INDEX(Ranks!$1:$1048576,$A474,AT$1))","v":""},{"$f":"IF($A474=\"N/A\",Ref!$B$36,INDEX(Ranks!$1:$1048576,$A474,AU$1))","v":""},{"$f":"IF($A474=\"N/A\",Ref!$B$36,INDEX(Ranks!$1:$1048576,$A474,AV$1))","v":""},{"$f":"IF($A474=\"N/A\",Ref!$B$36,INDEX(Ranks!$1:$1048576,$A474,AW$1))","v":""},{"$f":"IF($A474=\"N/A\",Ref!$B$36,INDEX(Ranks!$1:$1048576,$A474,AX$1))","v":""},{"$f":"IF($A474=\"N/A\",Ref!$B$36,INDEX(Ranks!$1:$1048576,$A474,AY$1))","v":""},{"$f":"IF($A474=\"N/A\",Ref!$B$36,INDEX(Ranks!$1:$1048576,$A474,AZ$1))","v":""},{"$f":"IF($A474=\"N/A\",Ref!$B$36,INDEX(Ranks!$1:$1048576,$A474,BA$1))","v":""},{"$f":"IF($A474=\"N/A\",Ref!$B$36,INDEX(Ranks!$1:$1048576,$A474,BB$1))","v":""},{"$f":"IF($A474=\"N/A\",Ref!$B$36,INDEX(Ranks!$1:$1048576,$A474,BC$1))","v":""},{"$f":"IF($A474=\"N/A\",Ref!$B$36,INDEX(Ranks!$1:$1048576,$A474,BD$1))","v":""},{"$f":"IF($A474=\"N/A\",Ref!$B$36,INDEX(Ranks!$1:$1048576,$A474,BE$1))","v":""},{"$f":"IF($A474=\"N/A\",Ref!$B$36,INDEX(Ranks!$1:$1048576,$A474,BF$1))","v":""},{"$f":"IF($A474=\"N/A\",Ref!$B$36,INDEX(Ranks!$1:$1048576,$A474,BG$1))","v":""},{"$f":"IF($A474=\"N/A\",Ref!$B$36,INDEX(Ranks!$1:$1048576,$A474,BH$1))","v":""},{"$f":"IF($A474=\"N/A\",Ref!$B$36,INDEX(Ranks!$1:$1048576,$A474,BI$1))","v":""},{"$f":"IF($A474=\"N/A\",Ref!$B$36,INDEX(Ranks!$1:$1048576,$A474,BJ$1))","v":""},{"$f":"IF($A474=\"N/A\",Ref!$B$36,INDEX(Ranks!$1:$1048576,$A474,BK$1))","v":""},{"$f":"IF($A474=\"N/A\",Ref!$B$36,INDEX(Ranks!$1:$1048576,$A474,BL$1))","v":""},{"$f":"IF($A474=\"N/A\",Ref!$B$36,INDEX(Ranks!$1:$1048576,$A474,BM$1))","v":""},{"$f":"IF($A474=\"N/A\",Ref!$B$36,INDEX(Ranks!$1:$1048576,$A474,BN$1))","v":""},{"$f":"IF($A474=\"N/A\",Ref!$B$36,INDEX(Ranks!$1:$1048576,$A474,BO$1))","v":""},{"$f":"IF($A474=\"N/A\",Ref!$B$36,INDEX(Ranks!$1:$1048576,$A474,BP$1))","v":""},{"$f":"IF($A474=\"N/A\",Ref!$B$36,INDEX(Ranks!$1:$1048576,$A474,BQ$1))","v":""},{"$f":"IF($A474=\"N/A\",Ref!$B$36,INDEX(Ranks!$1:$1048576,$A474,BR$1))","v":""},{"$f":"IF($A474=\"N/A\",Ref!$B$36,INDEX(Ranks!$1:$1048576,$A474,BS$1))","v":""},{"$f":"IF($A474=\"N/A\",Ref!$B$36,INDEX(Ranks!$1:$1048576,$A474,BT$1))","v":""},{"$f":"IF($A474=\"N/A\",Ref!$B$36,INDEX(Ranks!$1:$1048576,$A474,BU$1))","v":""},{"$f":"IF($A474=\"N/A\",Ref!$B$36,INDEX(Ranks!$1:$1048576,$A474,BV$1))","v":""},{"$f":"IF($A474=\"N/A\",Ref!$B$36,INDEX(Ranks!$1:$1048576,$A474,BW$1))","v":""},{"$f":"IF($A474=\"N/A\",Ref!$B$36,INDEX(Ranks!$1:$1048576,$A474,BX$1))","v":""},{"$f":"IF($A474=\"N/A\",Ref!$B$36,INDEX(Ranks!$1:$1048576,$A474,BY$1))","v":""},{"$f":"IF($A474=\"N/A\",Ref!$B$36,INDEX(Ranks!$1:$1048576,$A474,BZ$1))","v":""},{"$f":"IF($A474=\"N/A\",Ref!$B$36,INDEX(Ranks!$1:$1048576,$A474,CA$1))","v":""},{"$f":"IF($A474=\"N/A\",Ref!$B$36,INDEX(Ranks!$1:$1048576,$A474,CB$1))","v":""},{"$f":"IF($A474=\"N/A\",Ref!$B$36,INDEX(Ranks!$1:$1048576,$A474,CC$1))","v":""},{"$f":"IF($A474=\"N/A\",Ref!$B$36,INDEX(Ranks!$1:$1048576,$A474,CD$1))","v":""},{"$f":"IF($A474=\"N/A\",Ref!$B$36,INDEX(Ranks!$1:$1048576,$A474,CE$1))","v":""},{"$f":"IF($A474=\"N/A\",Ref!$B$36,INDEX(Ranks!$1:$1048576,$A474,CF$1))","v":""},{"$f":"IF($A474=\"N/A\",Ref!$B$36,INDEX(Ranks!$1:$1048576,$A474,CG$1))","v":""},{"$f":"IF($A474=\"N/A\",Ref!$B$36,INDEX(Ranks!$1:$1048576,$A474,CH$1))","v":""},{"$f":"IF($A474=\"N/A\",Ref!$B$36,INDEX(Ranks!$1:$1048576,$A474,CI$1))","v":""},{"$f":"IF($A474=\"N/A\",Ref!$B$36,INDEX(Ranks!$1:$1048576,$A474,CJ$1))","v":""},{"$f":"IF($A474=\"N/A\",Ref!$B$36,INDEX(Ranks!$1:$1048576,$A474,CK$1))","v":""},{"$f":"IF($A474=\"N/A\",Ref!$B$36,INDEX(Ranks!$1:$1048576,$A474,CL$1))","v":""},{"$f":"IF($A474=\"N/A\",Ref!$B$36,INDEX(Ranks!$1:$1048576,$A474,CM$1))","v":""},{"$f":"IF($A474=\"N/A\",Ref!$B$36,INDEX(Ranks!$1:$1048576,$A474,CN$1))","v":""},{"$f":"IF($A474=\"N/A\",Ref!$B$36,INDEX(Ranks!$1:$1048576,$A474,CO$1))","v":""},{"$f":"IF($A474=\"N/A\",Ref!$B$36,INDEX(Ranks!$1:$1048576,$A474,CP$1))","v":""},{"$f":"IF($A474=\"N/A\",Ref!$B$36,INDEX(Ranks!$1:$1048576,$A474,CQ$1))","v":""},{"$f":"IF($A474=\"N/A\",Ref!$B$36,INDEX(Ranks!$1:$1048576,$A474,CR$1))","v":""},{"$f":"IF($A474=\"N/A\",Ref!$B$36,INDEX(Ranks!$1:$1048576,$A474,CS$1))","v":""},{"$f":"IF($A474=\"N/A\",Ref!$B$36,INDEX(Ranks!$1:$1048576,$A474,CT$1))","v":""},{"$f":"IF($A474=\"N/A\",Ref!$B$36,INDEX(Ranks!$1:$1048576,$A474,CU$1))","v":""},{"$f":"IF($A474=\"N/A\",Ref!$B$36,INDEX(Ranks!$1:$1048576,$A474,CV$1))","v":""},{"$f":"IF($A474=\"N/A\",Ref!$B$36,INDEX(Ranks!$1:$1048576,$A474,CW$1))","v":""},{"$f":"IF($A474=\"N/A\",Ref!$B$36,INDEX(Ranks!$1:$1048576,$A474,CX$1))","v":""},{"$f":"IF($A474=\"N/A\",Ref!$B$36,INDEX(Ranks!$1:$1048576,$A474,CY$1))","v":""},{"$f":"IF($A474=\"N/A\",Ref!$B$36,INDEX(Ranks!$1:$1048576,$A474,CZ$1))","v":""},{"$f":"IF($A474=\"N/A\",Ref!$B$36,INDEX(Ranks!$1:$1048576,$A474,DA$1))","v":""},{"$f":"IF($A474=\"N/A\",Ref!$B$36,INDEX(Ranks!$1:$1048576,$A474,DB$1))","v":""},{"$f":"IF($A474=\"N/A\",Ref!$B$36,INDEX(Ranks!$1:$1048576,$A474,DC$1))","v":""},{"$f":"IF($A474=\"N/A\",Ref!$B$36,INDEX(Ranks!$1:$1048576,$A474,DD$1))","v":""},{"$f":"IF($A474=\"N/A\",Ref!$B$36,INDEX(Ranks!$1:$1048576,$A474,DE$1))","v":""},{"$f":"IF($A474=\"N/A\",Ref!$B$36,INDEX(Ranks!$1:$1048576,$A474,DF$1))","v":""},{"$f":"IF($A474=\"N/A\",Ref!$B$36,INDEX(Ranks!$1:$1048576,$A474,DG$1))","v":""},{"$f":"IF($A474=\"N/A\",Ref!$B$36,INDEX(Ranks!$1:$1048576,$A474,DH$1))","v":""},{"$f":"IF($A474=\"N/A\",Ref!$B$36,INDEX(Ranks!$1:$1048576,$A474,DI$1))","v":""},{"$f":"IF($A474=\"N/A\",Ref!$B$36,INDEX(Ranks!$1:$1048576,$A474,DJ$1))","v":""},{"$f":"IF($A474=\"N/A\",Ref!$B$36,INDEX(Ranks!$1:$1048576,$A474,DK$1))","v":""},{"$f":"IF($A474=\"N/A\",Ref!$B$36,INDEX(Ranks!$1:$1048576,$A474,DL$1))","v":""},{"$f":"IF($A474=\"N/A\",Ref!$B$36,INDEX(Ranks!$1:$1048576,$A474,DM$1))","v":""},{"$f":"IF($A474=\"N/A\",Ref!$B$36,INDEX(Ranks!$1:$1048576,$A474,DN$1))","v":""},{"$f":"IF($A474=\"N/A\",Ref!$B$36,INDEX(Ranks!$1:$1048576,$A474,DO$1))","v":""},{"$f":"IF($A474=\"N/A\",Ref!$B$36,INDEX(Ranks!$1:$1048576,$A474,DP$1))","v":""},{"$f":"IF($A474=\"N/A\",Ref!$B$36,INDEX(Ranks!$1:$1048576,$A474,DQ$1))","v":""},{"$f":"IF($A474=\"N/A\",Ref!$B$36,INDEX(Ranks!$1:$1048576,$A474,DR$1))","v":""},{"$f":"IF($A474=\"N/A\",Ref!$B$36,INDEX(Ranks!$1:$1048576,$A474,DS$1))","v":""},{"$f":"IF($A474=\"N/A\",Ref!$B$36,INDEX(Ranks!$1:$1048576,$A474,DT$1))","v":""},{"$f":"IF($A474=\"N/A\",Ref!$B$36,INDEX(Ranks!$1:$1048576,$A474,DU$1))","v":""},{"$f":"IF($A474=\"N/A\",Ref!$B$36,INDEX(Ranks!$1:$1048576,$A474,DV$1))","v":""},{"$f":"IF($A474=\"N/A\",Ref!$B$36,INDEX(Ranks!$1:$1048576,$A474,DW$1))","v":""},{"$f":"IF($A474=\"N/A\",Ref!$B$36,INDEX(Ranks!$1:$1048576,$A474,DX$1))","v":""},{"$f":"IF($A474=\"N/A\",Ref!$B$36,INDEX(Ranks!$1:$1048576,$A474,DY$1))","v":""},{"$f":"IF($A474=\"N/A\",Ref!$B$36,INDEX(Ranks!$1:$1048576,$A474,DZ$1))","v":""},{"$f":"IF($A474=\"N/A\",Ref!$B$36,INDEX(Ranks!$1:$1048576,$A474,EA$1))","v":""},{"$f":"IF($A474=\"N/A\",Ref!$B$36,INDEX(Ranks!$1:$1048576,$A474,EB$1))","v":""}]
[{"$f":"IFERROR(MATCH('Portfolio Page'!L475,Ranks!L:L,0),\"N/A\")","v":"N/A"},null,{"$f":"IF($A475=\"N/A\",\"\",INDEX(Ranks!$1:$1048576,$A475,C$1))","v":""},{"$f":"IF($A475=\"N/A\",Ref!$B$36,INDEX(Ranks!$1:$1048576,$A475,D$1))","v":""},{"$f":"IF($A475=\"N/A\",Ref!$B$36,INDEX(Ranks!$1:$1048576,$A475,E$1))","v":""},{"$f":"IF($A475=\"N/A\",\"\",INDEX(Ranks!$1:$1048576,$A475,F$1))","v":""},{"$f":"IF($A475=\"N/A\",\"\",INDEX(Ranks!$1:$1048576,$A475,G$1))","v":""},{"$f":"IF($A475=\"N/A\",\"\",INDEX(Ranks!$1:$1048576,$A475,H$1))","v":""},{"$f":"IF($A475=\"N/A\",\"\",INDEX(Ranks!$1:$1048576,$A475,I$1))","v":""},{"$f":"IF($A475=\"N/A\",\"\",INDEX(Ranks!$1:$1048576,$A475,J$1))","v":""},{"$f":"IF($A475=\"N/A\",\"\",INDEX(Ranks!$1:$1048576,$A475,K$1))","v":""},null,{"$f":"IF($A475=\"N/A\",Ref!$B$36,INDEX(Ranks!$1:$1048576,$A475,M$1))","v":""},{"$f":"IF($A475=\"N/A\",Ref!$B$36,INDEX(Ranks!$1:$1048576,$A475,N$1))","v":""},{"$f":"IF($A475=\"N/A\",Ref!$B$36,INDEX(Ranks!$1:$1048576,$A475,O$1))","v":""},{"$f":"IF($A475=\"N/A\",Ref!$B$36,INDEX(Ranks!$1:$1048576,$A475,P$1))","v":""},{"$f":"IF($A475=\"N/A\",Ref!$B$36,INDEX(Ranks!$1:$1048576,$A475,Q$1))","v":""},{"$f":"IF($A475=\"N/A\",Ref!$B$36,INDEX(Ranks!$1:$1048576,$A475,R$1))","v":""},{"$f":"IF($A475=\"N/A\",Ref!$B$36,INDEX(Ranks!$1:$1048576,$A475,S$1))","v":""},{"$f":"IF($A475=\"N/A\",Ref!$B$36,INDEX(Ranks!$1:$1048576,$A475,T$1))","v":""},{"$f":"IF($A475=\"N/A\",Ref!$B$36,INDEX(Ranks!$1:$1048576,$A475,U$1))","v":""},{"$f":"IF($A475=\"N/A\",Ref!$B$36,INDEX(Ranks!$1:$1048576,$A475,V$1))","v":""},{"$f":"IF($A475=\"N/A\",Ref!$B$36,INDEX(Ranks!$1:$1048576,$A475,W$1))","v":""},{"$f":"IF($A475=\"N/A\",Ref!$B$36,INDEX(Ranks!$1:$1048576,$A475,X$1))","v":""},{"$f":"IF($A475=\"N/A\",Ref!$B$36,INDEX(Ranks!$1:$1048576,$A475,Y$1))","v":""},{"$f":"IF($A475=\"N/A\",Ref!$B$36,INDEX(Ranks!$1:$1048576,$A475,Z$1))","v":""},{"$f":"IF($A475=\"N/A\",Ref!$B$36,INDEX(Ranks!$1:$1048576,$A475,AA$1))","v":""},{"$f":"IF($A475=\"N/A\",Ref!$B$36,INDEX(Ranks!$1:$1048576,$A475,AB$1))","v":""},{"$f":"IF($A475=\"N/A\",Ref!$B$36,INDEX(Ranks!$1:$1048576,$A475,AC$1))","v":""},{"$f":"IF($A475=\"N/A\",Ref!$B$36,INDEX(Ranks!$1:$1048576,$A475,AD$1))","v":""},{"$f":"IF($A475=\"N/A\",Ref!$B$36,INDEX(Ranks!$1:$1048576,$A475,AE$1))","v":""},{"$f":"IF($A475=\"N/A\",Ref!$B$36,INDEX(Ranks!$1:$1048576,$A475,AF$1))","v":""},{"$f":"IF($A475=\"N/A\",Ref!$B$36,INDEX(Ranks!$1:$1048576,$A475,AG$1))","v":""},{"$f":"IF($A475=\"N/A\",Ref!$B$36,INDEX(Ranks!$1:$1048576,$A475,AH$1))","v":""},{"$f":"IF($A475=\"N/A\",Ref!$B$36,INDEX(Ranks!$1:$1048576,$A475,AI$1))","v":""},{"$f":"IF($A475=\"N/A\",Ref!$B$36,INDEX(Ranks!$1:$1048576,$A475,AJ$1))","v":""},{"$f":"IF($A475=\"N/A\",Ref!$B$36,INDEX(Ranks!$1:$1048576,$A475,AK$1))","v":""},{"$f":"IF($A475=\"N/A\",Ref!$B$36,INDEX(Ranks!$1:$1048576,$A475,AL$1))","v":""},{"$f":"IF($A475=\"N/A\",Ref!$B$36,INDEX(Ranks!$1:$1048576,$A475,AM$1))","v":""},{"$f":"IF($A475=\"N/A\",Ref!$B$36,INDEX(Ranks!$1:$1048576,$A475,AN$1))","v":""},{"$f":"IF($A475=\"N/A\",Ref!$B$36,INDEX(Ranks!$1:$1048576,$A475,AO$1))","v":""},{"$f":"IF($A475=\"N/A\",Ref!$B$36,INDEX(Ranks!$1:$1048576,$A475,AP$1))","v":""},{"$f":"IF($A475=\"N/A\",Ref!$B$36,INDEX(Ranks!$1:$1048576,$A475,AQ$1))","v":""},{"$f":"IF($A475=\"N/A\",Ref!$B$36,INDEX(Ranks!$1:$1048576,$A475,AR$1))","v":""},{"$f":"IF($A475=\"N/A\",Ref!$B$36,INDEX(Ranks!$1:$1048576,$A475,AS$1))","v":""},{"$f":"IF($A475=\"N/A\",Ref!$B$36,INDEX(Ranks!$1:$1048576,$A475,AT$1))","v":""},{"$f":"IF($A475=\"N/A\",Ref!$B$36,INDEX(Ranks!$1:$1048576,$A475,AU$1))","v":""},{"$f":"IF($A475=\"N/A\",Ref!$B$36,INDEX(Ranks!$1:$1048576,$A475,AV$1))","v":""},{"$f":"IF($A475=\"N/A\",Ref!$B$36,INDEX(Ranks!$1:$1048576,$A475,AW$1))","v":""},{"$f":"IF($A475=\"N/A\",Ref!$B$36,INDEX(Ranks!$1:$1048576,$A475,AX$1))","v":""},{"$f":"IF($A475=\"N/A\",Ref!$B$36,INDEX(Ranks!$1:$1048576,$A475,AY$1))","v":""},{"$f":"IF($A475=\"N/A\",Ref!$B$36,INDEX(Ranks!$1:$1048576,$A475,AZ$1))","v":""},{"$f":"IF($A475=\"N/A\",Ref!$B$36,INDEX(Ranks!$1:$1048576,$A475,BA$1))","v":""},{"$f":"IF($A475=\"N/A\",Ref!$B$36,INDEX(Ranks!$1:$1048576,$A475,BB$1))","v":""},{"$f":"IF($A475=\"N/A\",Ref!$B$36,INDEX(Ranks!$1:$1048576,$A475,BC$1))","v":""},{"$f":"IF($A475=\"N/A\",Ref!$B$36,INDEX(Ranks!$1:$1048576,$A475,BD$1))","v":""},{"$f":"IF($A475=\"N/A\",Ref!$B$36,INDEX(Ranks!$1:$1048576,$A475,BE$1))","v":""},{"$f":"IF($A475=\"N/A\",Ref!$B$36,INDEX(Ranks!$1:$1048576,$A475,BF$1))","v":""},{"$f":"IF($A475=\"N/A\",Ref!$B$36,INDEX(Ranks!$1:$1048576,$A475,BG$1))","v":""},{"$f":"IF($A475=\"N/A\",Ref!$B$36,INDEX(Ranks!$1:$1048576,$A475,BH$1))","v":""},{"$f":"IF($A475=\"N/A\",Ref!$B$36,INDEX(Ranks!$1:$1048576,$A475,BI$1))","v":""},{"$f":"IF($A475=\"N/A\",Ref!$B$36,INDEX(Ranks!$1:$1048576,$A475,BJ$1))","v":""},{"$f":"IF($A475=\"N/A\",Ref!$B$36,INDEX(Ranks!$1:$1048576,$A475,BK$1))","v":""},{"$f":"IF($A475=\"N/A\",Ref!$B$36,INDEX(Ranks!$1:$1048576,$A475,BL$1))","v":""},{"$f":"IF($A475=\"N/A\",Ref!$B$36,INDEX(Ranks!$1:$1048576,$A475,BM$1))","v":""},{"$f":"IF($A475=\"N/A\",Ref!$B$36,INDEX(Ranks!$1:$1048576,$A475,BN$1))","v":""},{"$f":"IF($A475=\"N/A\",Ref!$B$36,INDEX(Ranks!$1:$1048576,$A475,BO$1))","v":""},{"$f":"IF($A475=\"N/A\",Ref!$B$36,INDEX(Ranks!$1:$1048576,$A475,BP$1))","v":""},{"$f":"IF($A475=\"N/A\",Ref!$B$36,INDEX(Ranks!$1:$1048576,$A475,BQ$1))","v":""},{"$f":"IF($A475=\"N/A\",Ref!$B$36,INDEX(Ranks!$1:$1048576,$A475,BR$1))","v":""},{"$f":"IF($A475=\"N/A\",Ref!$B$36,INDEX(Ranks!$1:$1048576,$A475,BS$1))","v":""},{"$f":"IF($A475=\"N/A\",Ref!$B$36,INDEX(Ranks!$1:$1048576,$A475,BT$1))","v":""},{"$f":"IF($A475=\"N/A\",Ref!$B$36,INDEX(Ranks!$1:$1048576,$A475,BU$1))","v":""},{"$f":"IF($A475=\"N/A\",Ref!$B$36,INDEX(Ranks!$1:$1048576,$A475,BV$1))","v":""},{"$f":"IF($A475=\"N/A\",Ref!$B$36,INDEX(Ranks!$1:$1048576,$A475,BW$1))","v":""},{"$f":"IF($A475=\"N/A\",Ref!$B$36,INDEX(Ranks!$1:$1048576,$A475,BX$1))","v":""},{"$f":"IF($A475=\"N/A\",Ref!$B$36,INDEX(Ranks!$1:$1048576,$A475,BY$1))","v":""},{"$f":"IF($A475=\"N/A\",Ref!$B$36,INDEX(Ranks!$1:$1048576,$A475,BZ$1))","v":""},{"$f":"IF($A475=\"N/A\",Ref!$B$36,INDEX(Ranks!$1:$1048576,$A475,CA$1))","v":""},{"$f":"IF($A475=\"N/A\",Ref!$B$36,INDEX(Ranks!$1:$1048576,$A475,CB$1))","v":""},{"$f":"IF($A475=\"N/A\",Ref!$B$36,INDEX(Ranks!$1:$1048576,$A475,CC$1))","v":""},{"$f":"IF($A475=\"N/A\",Ref!$B$36,INDEX(Ranks!$1:$1048576,$A475,CD$1))","v":""},{"$f":"IF($A475=\"N/A\",Ref!$B$36,INDEX(Ranks!$1:$1048576,$A475,CE$1))","v":""},{"$f":"IF($A475=\"N/A\",Ref!$B$36,INDEX(Ranks!$1:$1048576,$A475,CF$1))","v":""},{"$f":"IF($A475=\"N/A\",Ref!$B$36,INDEX(Ranks!$1:$1048576,$A475,CG$1))","v":""},{"$f":"IF($A475=\"N/A\",Ref!$B$36,INDEX(Ranks!$1:$1048576,$A475,CH$1))","v":""},{"$f":"IF($A475=\"N/A\",Ref!$B$36,INDEX(Ranks!$1:$1048576,$A475,CI$1))","v":""},{"$f":"IF($A475=\"N/A\",Ref!$B$36,INDEX(Ranks!$1:$1048576,$A475,CJ$1))","v":""},{"$f":"IF($A475=\"N/A\",Ref!$B$36,INDEX(Ranks!$1:$1048576,$A475,CK$1))","v":""},{"$f":"IF($A475=\"N/A\",Ref!$B$36,INDEX(Ranks!$1:$1048576,$A475,CL$1))","v":""},{"$f":"IF($A475=\"N/A\",Ref!$B$36,INDEX(Ranks!$1:$1048576,$A475,CM$1))","v":""},{"$f":"IF($A475=\"N/A\",Ref!$B$36,INDEX(Ranks!$1:$1048576,$A475,CN$1))","v":""},{"$f":"IF($A475=\"N/A\",Ref!$B$36,INDEX(Ranks!$1:$1048576,$A475,CO$1))","v":""},{"$f":"IF($A475=\"N/A\",Ref!$B$36,INDEX(Ranks!$1:$1048576,$A475,CP$1))","v":""},{"$f":"IF($A475=\"N/A\",Ref!$B$36,INDEX(Ranks!$1:$1048576,$A475,CQ$1))","v":""},{"$f":"IF($A475=\"N/A\",Ref!$B$36,INDEX(Ranks!$1:$1048576,$A475,CR$1))","v":""},{"$f":"IF($A475=\"N/A\",Ref!$B$36,INDEX(Ranks!$1:$1048576,$A475,CS$1))","v":""},{"$f":"IF($A475=\"N/A\",Ref!$B$36,INDEX(Ranks!$1:$1048576,$A475,CT$1))","v":""},{"$f":"IF($A475=\"N/A\",Ref!$B$36,INDEX(Ranks!$1:$1048576,$A475,CU$1))","v":""},{"$f":"IF($A475=\"N/A\",Ref!$B$36,INDEX(Ranks!$1:$1048576,$A475,CV$1))","v":""},{"$f":"IF($A475=\"N/A\",Ref!$B$36,INDEX(Ranks!$1:$1048576,$A475,CW$1))","v":""},{"$f":"IF($A475=\"N/A\",Ref!$B$36,INDEX(Ranks!$1:$1048576,$A475,CX$1))","v":""},{"$f":"IF($A475=\"N/A\",Ref!$B$36,INDEX(Ranks!$1:$1048576,$A475,CY$1))","v":""},{"$f":"IF($A475=\"N/A\",Ref!$B$36,INDEX(Ranks!$1:$1048576,$A475,CZ$1))","v":""},{"$f":"IF($A475=\"N/A\",Ref!$B$36,INDEX(Ranks!$1:$1048576,$A475,DA$1))","v":""},{"$f":"IF($A475=\"N/A\",Ref!$B$36,INDEX(Ranks!$1:$1048576,$A475,DB$1))","v":""},{"$f":"IF($A475=\"N/A\",Ref!$B$36,INDEX(Ranks!$1:$1048576,$A475,DC$1))","v":""},{"$f":"IF($A475=\"N/A\",Ref!$B$36,INDEX(Ranks!$1:$1048576,$A475,DD$1))","v":""},{"$f":"IF($A475=\"N/A\",Ref!$B$36,INDEX(Ranks!$1:$1048576,$A475,DE$1))","v":""},{"$f":"IF($A475=\"N/A\",Ref!$B$36,INDEX(Ranks!$1:$1048576,$A475,DF$1))","v":""},{"$f":"IF($A475=\"N/A\",Ref!$B$36,INDEX(Ranks!$1:$1048576,$A475,DG$1))","v":""},{"$f":"IF($A475=\"N/A\",Ref!$B$36,INDEX(Ranks!$1:$1048576,$A475,DH$1))","v":""},{"$f":"IF($A475=\"N/A\",Ref!$B$36,INDEX(Ranks!$1:$1048576,$A475,DI$1))","v":""},{"$f":"IF($A475=\"N/A\",Ref!$B$36,INDEX(Ranks!$1:$1048576,$A475,DJ$1))","v":""},{"$f":"IF($A475=\"N/A\",Ref!$B$36,INDEX(Ranks!$1:$1048576,$A475,DK$1))","v":""},{"$f":"IF($A475=\"N/A\",Ref!$B$36,INDEX(Ranks!$1:$1048576,$A475,DL$1))","v":""},{"$f":"IF($A475=\"N/A\",Ref!$B$36,INDEX(Ranks!$1:$1048576,$A475,DM$1))","v":""},{"$f":"IF($A475=\"N/A\",Ref!$B$36,INDEX(Ranks!$1:$1048576,$A475,DN$1))","v":""},{"$f":"IF($A475=\"N/A\",Ref!$B$36,INDEX(Ranks!$1:$1048576,$A475,DO$1))","v":""},{"$f":"IF($A475=\"N/A\",Ref!$B$36,INDEX(Ranks!$1:$1048576,$A475,DP$1))","v":""},{"$f":"IF($A475=\"N/A\",Ref!$B$36,INDEX(Ranks!$1:$1048576,$A475,DQ$1))","v":""},{"$f":"IF($A475=\"N/A\",Ref!$B$36,INDEX(Ranks!$1:$1048576,$A475,DR$1))","v":""},{"$f":"IF($A475=\"N/A\",Ref!$B$36,INDEX(Ranks!$1:$1048576,$A475,DS$1))","v":""},{"$f":"IF($A475=\"N/A\",Ref!$B$36,INDEX(Ranks!$1:$1048576,$A475,DT$1))","v":""},{"$f":"IF($A475=\"N/A\",Ref!$B$36,INDEX(Ranks!$1:$1048576,$A475,DU$1))","v":""},{"$f":"IF($A475=\"N/A\",Ref!$B$36,INDEX(Ranks!$1:$1048576,$A475,DV$1))","v":""},{"$f":"IF($A475=\"N/A\",Ref!$B$36,INDEX(Ranks!$1:$1048576,$A475,DW$1))","v":""},{"$f":"IF($A475=\"N/A\",Ref!$B$36,INDEX(Ranks!$1:$1048576,$A475,DX$1))","v":""},{"$f":"IF($A475=\"N/A\",Ref!$B$36,INDEX(Ranks!$1:$1048576,$A475,DY$1))","v":""},{"$f":"IF($A475=\"N/A\",Ref!$B$36,INDEX(Ranks!$1:$1048576,$A475,DZ$1))","v":""},{"$f":"IF($A475=\"N/A\",Ref!$B$36,INDEX(Ranks!$1:$1048576,$A475,EA$1))","v":""},{"$f":"IF($A475=\"N/A\",Ref!$B$36,INDEX(Ranks!$1:$1048576,$A475,EB$1))","v":""}]
[{"$f":"IFERROR(MATCH('Portfolio Page'!L476,Ranks!L:L,0),\"N/A\")","v":"N/A"},null,{"$f":"IF($A476=\"N/A\",\"\",INDEX(Ranks!$1:$1048576,$A476,C$1))","v":""},{"$f":"IF($A476=\"N/A\",Ref!$B$36,INDEX(Ranks!$1:$1048576,$A476,D$1))","v":""},{"$f":"IF($A476=\"N/A\",Ref!$B$36,INDEX(Ranks!$1:$1048576,$A476,E$1))","v":""},{"$f":"IF($A476=\"N/A\",\"\",INDEX(Ranks!$1:$1048576,$A476,F$1))","v":""},{"$f":"IF($A476=\"N/A\",\"\",INDEX(Ranks!$1:$1048576,$A476,G$1))","v":""},{"$f":"IF($A476=\"N/A\",\"\",INDEX(Ranks!$1:$1048576,$A476,H$1))","v":""},{"$f":"IF($A476=\"N/A\",\"\",INDEX(Ranks!$1:$1048576,$A476,I$1))","v":""},{"$f":"IF($A476=\"N/A\",\"\",INDEX(Ranks!$1:$1048576,$A476,J$1))","v":""},{"$f":"IF($A476=\"N/A\",\"\",INDEX(Ranks!$1:$1048576,$A476,K$1))","v":""},null,{"$f":"IF($A476=\"N/A\",Ref!$B$36,INDEX(Ranks!$1:$1048576,$A476,M$1))","v":""},{"$f":"IF($A476=\"N/A\",Ref!$B$36,INDEX(Ranks!$1:$1048576,$A476,N$1))","v":""},{"$f":"IF($A476=\"N/A\",Ref!$B$36,INDEX(Ranks!$1:$1048576,$A476,O$1))","v":""},{"$f":"IF($A476=\"N/A\",Ref!$B$36,INDEX(Ranks!$1:$1048576,$A476,P$1))","v":""},{"$f":"IF($A476=\"N/A\",Ref!$B$36,INDEX(Ranks!$1:$1048576,$A476,Q$1))","v":""},{"$f":"IF($A476=\"N/A\",Ref!$B$36,INDEX(Ranks!$1:$1048576,$A476,R$1))","v":""},{"$f":"IF($A476=\"N/A\",Ref!$B$36,INDEX(Ranks!$1:$1048576,$A476,S$1))","v":""},{"$f":"IF($A476=\"N/A\",Ref!$B$36,INDEX(Ranks!$1:$1048576,$A476,T$1))","v":""},{"$f":"IF($A476=\"N/A\",Ref!$B$36,INDEX(Ranks!$1:$1048576,$A476,U$1))","v":""},{"$f":"IF($A476=\"N/A\",Ref!$B$36,INDEX(Ranks!$1:$1048576,$A476,V$1))","v":""},{"$f":"IF($A476=\"N/A\",Ref!$B$36,INDEX(Ranks!$1:$1048576,$A476,W$1))","v":""},{"$f":"IF($A476=\"N/A\",Ref!$B$36,INDEX(Ranks!$1:$1048576,$A476,X$1))","v":""},{"$f":"IF($A476=\"N/A\",Ref!$B$36,INDEX(Ranks!$1:$1048576,$A476,Y$1))","v":""},{"$f":"IF($A476=\"N/A\",Ref!$B$36,INDEX(Ranks!$1:$1048576,$A476,Z$1))","v":""},{"$f":"IF($A476=\"N/A\",Ref!$B$36,INDEX(Ranks!$1:$1048576,$A476,AA$1))","v":""},{"$f":"IF($A476=\"N/A\",Ref!$B$36,INDEX(Ranks!$1:$1048576,$A476,AB$1))","v":""},{"$f":"IF($A476=\"N/A\",Ref!$B$36,INDEX(Ranks!$1:$1048576,$A476,AC$1))","v":""},{"$f":"IF($A476=\"N/A\",Ref!$B$36,INDEX(Ranks!$1:$1048576,$A476,AD$1))","v":""},{"$f":"IF($A476=\"N/A\",Ref!$B$36,INDEX(Ranks!$1:$1048576,$A476,AE$1))","v":""},{"$f":"IF($A476=\"N/A\",Ref!$B$36,INDEX(Ranks!$1:$1048576,$A476,AF$1))","v":""},{"$f":"IF($A476=\"N/A\",Ref!$B$36,INDEX(Ranks!$1:$1048576,$A476,AG$1))","v":""},{"$f":"IF($A476=\"N/A\",Ref!$B$36,INDEX(Ranks!$1:$1048576,$A476,AH$1))","v":""},{"$f":"IF($A476=\"N/A\",Ref!$B$36,INDEX(Ranks!$1:$1048576,$A476,AI$1))","v":""},{"$f":"IF($A476=\"N/A\",Ref!$B$36,INDEX(Ranks!$1:$1048576,$A476,AJ$1))","v":""},{"$f":"IF($A476=\"N/A\",Ref!$B$36,INDEX(Ranks!$1:$1048576,$A476,AK$1))","v":""},{"$f":"IF($A476=\"N/A\",Ref!$B$36,INDEX(Ranks!$1:$1048576,$A476,AL$1))","v":""},{"$f":"IF($A476=\"N/A\",Ref!$B$36,INDEX(Ranks!$1:$1048576,$A476,AM$1))","v":""},{"$f":"IF($A476=\"N/A\",Ref!$B$36,INDEX(Ranks!$1:$1048576,$A476,AN$1))","v":""},{"$f":"IF($A476=\"N/A\",Ref!$B$36,INDEX(Ranks!$1:$1048576,$A476,AO$1))","v":""},{"$f":"IF($A476=\"N/A\",Ref!$B$36,INDEX(Ranks!$1:$1048576,$A476,AP$1))","v":""},{"$f":"IF($A476=\"N/A\",Ref!$B$36,INDEX(Ranks!$1:$1048576,$A476,AQ$1))","v":""},{"$f":"IF($A476=\"N/A\",Ref!$B$36,INDEX(Ranks!$1:$1048576,$A476,AR$1))","v":""},{"$f":"IF($A476=\"N/A\",Ref!$B$36,INDEX(Ranks!$1:$1048576,$A476,AS$1))","v":""},{"$f":"IF($A476=\"N/A\",Ref!$B$36,INDEX(Ranks!$1:$1048576,$A476,AT$1))","v":""},{"$f":"IF($A476=\"N/A\",Ref!$B$36,INDEX(Ranks!$1:$1048576,$A476,AU$1))","v":""},{"$f":"IF($A476=\"N/A\",Ref!$B$36,INDEX(Ranks!$1:$1048576,$A476,AV$1))","v":""},{"$f":"IF($A476=\"N/A\",Ref!$B$36,INDEX(Ranks!$1:$1048576,$A476,AW$1))","v":""},{"$f":"IF($A476=\"N/A\",Ref!$B$36,INDEX(Ranks!$1:$1048576,$A476,AX$1))","v":""},{"$f":"IF($A476=\"N/A\",Ref!$B$36,INDEX(Ranks!$1:$1048576,$A476,AY$1))","v":""},{"$f":"IF($A476=\"N/A\",Ref!$B$36,INDEX(Ranks!$1:$1048576,$A476,AZ$1))","v":""},{"$f":"IF($A476=\"N/A\",Ref!$B$36,INDEX(Ranks!$1:$1048576,$A476,BA$1))","v":""},{"$f":"IF($A476=\"N/A\",Ref!$B$36,INDEX(Ranks!$1:$1048576,$A476,BB$1))","v":""},{"$f":"IF($A476=\"N/A\",Ref!$B$36,INDEX(Ranks!$1:$1048576,$A476,BC$1))","v":""},{"$f":"IF($A476=\"N/A\",Ref!$B$36,INDEX(Ranks!$1:$1048576,$A476,BD$1))","v":""},{"$f":"IF($A476=\"N/A\",Ref!$B$36,INDEX(Ranks!$1:$1048576,$A476,BE$1))","v":""},{"$f":"IF($A476=\"N/A\",Ref!$B$36,INDEX(Ranks!$1:$1048576,$A476,BF$1))","v":""},{"$f":"IF($A476=\"N/A\",Ref!$B$36,INDEX(Ranks!$1:$1048576,$A476,BG$1))","v":""},{"$f":"IF($A476=\"N/A\",Ref!$B$36,INDEX(Ranks!$1:$1048576,$A476,BH$1))","v":""},{"$f":"IF($A476=\"N/A\",Ref!$B$36,INDEX(Ranks!$1:$1048576,$A476,BI$1))","v":""},{"$f":"IF($A476=\"N/A\",Ref!$B$36,INDEX(Ranks!$1:$1048576,$A476,BJ$1))","v":""},{"$f":"IF($A476=\"N/A\",Ref!$B$36,INDEX(Ranks!$1:$1048576,$A476,BK$1))","v":""},{"$f":"IF($A476=\"N/A\",Ref!$B$36,INDEX(Ranks!$1:$1048576,$A476,BL$1))","v":""},{"$f":"IF($A476=\"N/A\",Ref!$B$36,INDEX(Ranks!$1:$1048576,$A476,BM$1))","v":""},{"$f":"IF($A476=\"N/A\",Ref!$B$36,INDEX(Ranks!$1:$1048576,$A476,BN$1))","v":""},{"$f":"IF($A476=\"N/A\",Ref!$B$36,INDEX(Ranks!$1:$1048576,$A476,BO$1))","v":""},{"$f":"IF($A476=\"N/A\",Ref!$B$36,INDEX(Ranks!$1:$1048576,$A476,BP$1))","v":""},{"$f":"IF($A476=\"N/A\",Ref!$B$36,INDEX(Ranks!$1:$1048576,$A476,BQ$1))","v":""},{"$f":"IF($A476=\"N/A\",Ref!$B$36,INDEX(Ranks!$1:$1048576,$A476,BR$1))","v":""},{"$f":"IF($A476=\"N/A\",Ref!$B$36,INDEX(Ranks!$1:$1048576,$A476,BS$1))","v":""},{"$f":"IF($A476=\"N/A\",Ref!$B$36,INDEX(Ranks!$1:$1048576,$A476,BT$1))","v":""},{"$f":"IF($A476=\"N/A\",Ref!$B$36,INDEX(Ranks!$1:$1048576,$A476,BU$1))","v":""},{"$f":"IF($A476=\"N/A\",Ref!$B$36,INDEX(Ranks!$1:$1048576,$A476,BV$1))","v":""},{"$f":"IF($A476=\"N/A\",Ref!$B$36,INDEX(Ranks!$1:$1048576,$A476,BW$1))","v":""},{"$f":"IF($A476=\"N/A\",Ref!$B$36,INDEX(Ranks!$1:$1048576,$A476,BX$1))","v":""},{"$f":"IF($A476=\"N/A\",Ref!$B$36,INDEX(Ranks!$1:$1048576,$A476,BY$1))","v":""},{"$f":"IF($A476=\"N/A\",Ref!$B$36,INDEX(Ranks!$1:$1048576,$A476,BZ$1))","v":""},{"$f":"IF($A476=\"N/A\",Ref!$B$36,INDEX(Ranks!$1:$1048576,$A476,CA$1))","v":""},{"$f":"IF($A476=\"N/A\",Ref!$B$36,INDEX(Ranks!$1:$1048576,$A476,CB$1))","v":""},{"$f":"IF($A476=\"N/A\",Ref!$B$36,INDEX(Ranks!$1:$1048576,$A476,CC$1))","v":""},{"$f":"IF($A476=\"N/A\",Ref!$B$36,INDEX(Ranks!$1:$1048576,$A476,CD$1))","v":""},{"$f":"IF($A476=\"N/A\",Ref!$B$36,INDEX(Ranks!$1:$1048576,$A476,CE$1))","v":""},{"$f":"IF($A476=\"N/A\",Ref!$B$36,INDEX(Ranks!$1:$1048576,$A476,CF$1))","v":""},{"$f":"IF($A476=\"N/A\",Ref!$B$36,INDEX(Ranks!$1:$1048576,$A476,CG$1))","v":""},{"$f":"IF($A476=\"N/A\",Ref!$B$36,INDEX(Ranks!$1:$1048576,$A476,CH$1))","v":""},{"$f":"IF($A476=\"N/A\",Ref!$B$36,INDEX(Ranks!$1:$1048576,$A476,CI$1))","v":""},{"$f":"IF($A476=\"N/A\",Ref!$B$36,INDEX(Ranks!$1:$1048576,$A476,CJ$1))","v":""},{"$f":"IF($A476=\"N/A\",Ref!$B$36,INDEX(Ranks!$1:$1048576,$A476,CK$1))","v":""},{"$f":"IF($A476=\"N/A\",Ref!$B$36,INDEX(Ranks!$1:$1048576,$A476,CL$1))","v":""},{"$f":"IF($A476=\"N/A\",Ref!$B$36,INDEX(Ranks!$1:$1048576,$A476,CM$1))","v":""},{"$f":"IF($A476=\"N/A\",Ref!$B$36,INDEX(Ranks!$1:$1048576,$A476,CN$1))","v":""},{"$f":"IF($A476=\"N/A\",Ref!$B$36,INDEX(Ranks!$1:$1048576,$A476,CO$1))","v":""},{"$f":"IF($A476=\"N/A\",Ref!$B$36,INDEX(Ranks!$1:$1048576,$A476,CP$1))","v":""},{"$f":"IF($A476=\"N/A\",Ref!$B$36,INDEX(Ranks!$1:$1048576,$A476,CQ$1))","v":""},{"$f":"IF($A476=\"N/A\",Ref!$B$36,INDEX(Ranks!$1:$1048576,$A476,CR$1))","v":""},{"$f":"IF($A476=\"N/A\",Ref!$B$36,INDEX(Ranks!$1:$1048576,$A476,CS$1))","v":""},{"$f":"IF($A476=\"N/A\",Ref!$B$36,INDEX(Ranks!$1:$1048576,$A476,CT$1))","v":""},{"$f":"IF($A476=\"N/A\",Ref!$B$36,INDEX(Ranks!$1:$1048576,$A476,CU$1))","v":""},{"$f":"IF($A476=\"N/A\",Ref!$B$36,INDEX(Ranks!$1:$1048576,$A476,CV$1))","v":""},{"$f":"IF($A476=\"N/A\",Ref!$B$36,INDEX(Ranks!$1:$1048576,$A476,CW$1))","v":""},{"$f":"IF($A476=\"N/A\",Ref!$B$36,INDEX(Ranks!$1:$1048576,$A476,CX$1))","v":""},{"$f":"IF($A476=\"N/A\",Ref!$B$36,INDEX(Ranks!$1:$1048576,$A476,CY$1))","v":""},{"$f":"IF($A476=\"N/A\",Ref!$B$36,INDEX(Ranks!$1:$1048576,$A476,CZ$1))","v":""},{"$f":"IF($A476=\"N/A\",Ref!$B$36,INDEX(Ranks!$1:$1048576,$A476,DA$1))","v":""},{"$f":"IF($A476=\"N/A\",Ref!$B$36,INDEX(Ranks!$1:$1048576,$A476,DB$1))","v":""},{"$f":"IF($A476=\"N/A\",Ref!$B$36,INDEX(Ranks!$1:$1048576,$A476,DC$1))","v":""},{"$f":"IF($A476=\"N/A\",Ref!$B$36,INDEX(Ranks!$1:$1048576,$A476,DD$1))","v":""},{"$f":"IF($A476=\"N/A\",Ref!$B$36,INDEX(Ranks!$1:$1048576,$A476,DE$1))","v":""},{"$f":"IF($A476=\"N/A\",Ref!$B$36,INDEX(Ranks!$1:$1048576,$A476,DF$1))","v":""},{"$f":"IF($A476=\"N/A\",Ref!$B$36,INDEX(Ranks!$1:$1048576,$A476,DG$1))","v":""},{"$f":"IF($A476=\"N/A\",Ref!$B$36,INDEX(Ranks!$1:$1048576,$A476,DH$1))","v":""},{"$f":"IF($A476=\"N/A\",Ref!$B$36,INDEX(Ranks!$1:$1048576,$A476,DI$1))","v":""},{"$f":"IF($A476=\"N/A\",Ref!$B$36,INDEX(Ranks!$1:$1048576,$A476,DJ$1))","v":""},{"$f":"IF($A476=\"N/A\",Ref!$B$36,INDEX(Ranks!$1:$1048576,$A476,DK$1))","v":""},{"$f":"IF($A476=\"N/A\",Ref!$B$36,INDEX(Ranks!$1:$1048576,$A476,DL$1))","v":""},{"$f":"IF($A476=\"N/A\",Ref!$B$36,INDEX(Ranks!$1:$1048576,$A476,DM$1))","v":""},{"$f":"IF($A476=\"N/A\",Ref!$B$36,INDEX(Ranks!$1:$1048576,$A476,DN$1))","v":""},{"$f":"IF($A476=\"N/A\",Ref!$B$36,INDEX(Ranks!$1:$1048576,$A476,DO$1))","v":""},{"$f":"IF($A476=\"N/A\",Ref!$B$36,INDEX(Ranks!$1:$1048576,$A476,DP$1))","v":""},{"$f":"IF($A476=\"N/A\",Ref!$B$36,INDEX(Ranks!$1:$1048576,$A476,DQ$1))","v":""},{"$f":"IF($A476=\"N/A\",Ref!$B$36,INDEX(Ranks!$1:$1048576,$A476,DR$1))","v":""},{"$f":"IF($A476=\"N/A\",Ref!$B$36,INDEX(Ranks!$1:$1048576,$A476,DS$1))","v":""},{"$f":"IF($A476=\"N/A\",Ref!$B$36,INDEX(Ranks!$1:$1048576,$A476,DT$1))","v":""},{"$f":"IF($A476=\"N/A\",Ref!$B$36,INDEX(Ranks!$1:$1048576,$A476,DU$1))","v":""},{"$f":"IF($A476=\"N/A\",Ref!$B$36,INDEX(Ranks!$1:$1048576,$A476,DV$1))","v":""},{"$f":"IF($A476=\"N/A\",Ref!$B$36,INDEX(Ranks!$1:$1048576,$A476,DW$1))","v":""},{"$f":"IF($A476=\"N/A\",Ref!$B$36,INDEX(Ranks!$1:$1048576,$A476,DX$1))","v":""},{"$f":"IF($A476=\"N/A\",Ref!$B$36,INDEX(Ranks!$1:$1048576,$A476,DY$1))","v":""},{"$f":"IF($A476=\"N/A\",Ref!$B$36,INDEX(Ranks!$1:$1048576,$A476,DZ$1))","v":""},{"$f":"IF($A476=\"N/A\",Ref!$B$36,INDEX(Ranks!$1:$1048576,$A476,EA$1))","v":""},{"$f":"IF($A476=\"N/A\",Ref!$B$36,INDEX(Ranks!$1:$1048576,$A476,EB$1))","v":""}]
[{"$f":"IFERROR(MATCH('Portfolio Page'!L477,Ranks!L:L,0),\"N/A\")","v":"N/A"},null,{"$f":"IF($A477=\"N/A\",\"\",INDEX(Ranks!$1:$1048576,$A477,C$1))","v":""},{"$f":"IF($A477=\"N/A\",Ref!$B$36,INDEX(Ranks!$1:$1048576,$A477,D$1))","v":""},{"$f":"IF($A477=\"N/A\",Ref!$B$36,INDEX(Ranks!$1:$1048576,$A477,E$1))","v":""},{"$f":"IF($A477=\"N/A\",\"\",INDEX(Ranks!$1:$1048576,$A477,F$1))","v":""},{"$f":"IF($A477=\"N/A\",\"\",INDEX(Ranks!$1:$1048576,$A477,G$1))","v":""},{"$f":"IF($A477=\"N/A\",\"\",INDEX(Ranks!$1:$1048576,$A477,H$1))","v":""},{"$f":"IF($A477=\"N/A\",\"\",INDEX(Ranks!$1:$1048576,$A477,I$1))","v":""},{"$f":"IF($A477=\"N/A\",\"\",INDEX(Ranks!$1:$1048576,$A477,J$1))","v":""},{"$f":"IF($A477=\"N/A\",\"\",INDEX(Ranks!$1:$1048576,$A477,K$1))","v":""},null,{"$f":"IF($A477=\"N/A\",Ref!$B$36,INDEX(Ranks!$1:$1048576,$A477,M$1))","v":""},{"$f":"IF($A477=\"N/A\",Ref!$B$36,INDEX(Ranks!$1:$1048576,$A477,N$1))","v":""},{"$f":"IF($A477=\"N/A\",Ref!$B$36,INDEX(Ranks!$1:$1048576,$A477,O$1))","v":""},{"$f":"IF($A477=\"N/A\",Ref!$B$36,INDEX(Ranks!$1:$1048576,$A477,P$1))","v":""},{"$f":"IF($A477=\"N/A\",Ref!$B$36,INDEX(Ranks!$1:$1048576,$A477,Q$1))","v":""},{"$f":"IF($A477=\"N/A\",Ref!$B$36,INDEX(Ranks!$1:$1048576,$A477,R$1))","v":""},{"$f":"IF($A477=\"N/A\",Ref!$B$36,INDEX(Ranks!$1:$1048576,$A477,S$1))","v":""},{"$f":"IF($A477=\"N/A\",Ref!$B$36,INDEX(Ranks!$1:$1048576,$A477,T$1))","v":""},{"$f":"IF($A477=\"N/A\",Ref!$B$36,INDEX(Ranks!$1:$1048576,$A477,U$1))","v":""},{"$f":"IF($A477=\"N/A\",Ref!$B$36,INDEX(Ranks!$1:$1048576,$A477,V$1))","v":""},{"$f":"IF($A477=\"N/A\",Ref!$B$36,INDEX(Ranks!$1:$1048576,$A477,W$1))","v":""},{"$f":"IF($A477=\"N/A\",Ref!$B$36,INDEX(Ranks!$1:$1048576,$A477,X$1))","v":""},{"$f":"IF($A477=\"N/A\",Ref!$B$36,INDEX(Ranks!$1:$1048576,$A477,Y$1))","v":""},{"$f":"IF($A477=\"N/A\",Ref!$B$36,INDEX(Ranks!$1:$1048576,$A477,Z$1))","v":""},{"$f":"IF($A477=\"N/A\",Ref!$B$36,INDEX(Ranks!$1:$1048576,$A477,AA$1))","v":""},{"$f":"IF($A477=\"N/A\",Ref!$B$36,INDEX(Ranks!$1:$1048576,$A477,AB$1))","v":""},{"$f":"IF($A477=\"N/A\",Ref!$B$36,INDEX(Ranks!$1:$1048576,$A477,AC$1))","v":""},{"$f":"IF($A477=\"N/A\",Ref!$B$36,INDEX(Ranks!$1:$1048576,$A477,AD$1))","v":""},{"$f":"IF($A477=\"N/A\",Ref!$B$36,INDEX(Ranks!$1:$1048576,$A477,AE$1))","v":""},{"$f":"IF($A477=\"N/A\",Ref!$B$36,INDEX(Ranks!$1:$1048576,$A477,AF$1))","v":""},{"$f":"IF($A477=\"N/A\",Ref!$B$36,INDEX(Ranks!$1:$1048576,$A477,AG$1))","v":""},{"$f":"IF($A477=\"N/A\",Ref!$B$36,INDEX(Ranks!$1:$1048576,$A477,AH$1))","v":""},{"$f":"IF($A477=\"N/A\",Ref!$B$36,INDEX(Ranks!$1:$1048576,$A477,AI$1))","v":""},{"$f":"IF($A477=\"N/A\",Ref!$B$36,INDEX(Ranks!$1:$1048576,$A477,AJ$1))","v":""},{"$f":"IF($A477=\"N/A\",Ref!$B$36,INDEX(Ranks!$1:$1048576,$A477,AK$1))","v":""},{"$f":"IF($A477=\"N/A\",Ref!$B$36,INDEX(Ranks!$1:$1048576,$A477,AL$1))","v":""},{"$f":"IF($A477=\"N/A\",Ref!$B$36,INDEX(Ranks!$1:$1048576,$A477,AM$1))","v":""},{"$f":"IF($A477=\"N/A\",Ref!$B$36,INDEX(Ranks!$1:$1048576,$A477,AN$1))","v":""},{"$f":"IF($A477=\"N/A\",Ref!$B$36,INDEX(Ranks!$1:$1048576,$A477,AO$1))","v":""},{"$f":"IF($A477=\"N/A\",Ref!$B$36,INDEX(Ranks!$1:$1048576,$A477,AP$1))","v":""},{"$f":"IF($A477=\"N/A\",Ref!$B$36,INDEX(Ranks!$1:$1048576,$A477,AQ$1))","v":""},{"$f":"IF($A477=\"N/A\",Ref!$B$36,INDEX(Ranks!$1:$1048576,$A477,AR$1))","v":""},{"$f":"IF($A477=\"N/A\",Ref!$B$36,INDEX(Ranks!$1:$1048576,$A477,AS$1))","v":""},{"$f":"IF($A477=\"N/A\",Ref!$B$36,INDEX(Ranks!$1:$1048576,$A477,AT$1))","v":""},{"$f":"IF($A477=\"N/A\",Ref!$B$36,INDEX(Ranks!$1:$1048576,$A477,AU$1))","v":""},{"$f":"IF($A477=\"N/A\",Ref!$B$36,INDEX(Ranks!$1:$1048576,$A477,AV$1))","v":""},{"$f":"IF($A477=\"N/A\",Ref!$B$36,INDEX(Ranks!$1:$1048576,$A477,AW$1))","v":""},{"$f":"IF($A477=\"N/A\",Ref!$B$36,INDEX(Ranks!$1:$1048576,$A477,AX$1))","v":""},{"$f":"IF($A477=\"N/A\",Ref!$B$36,INDEX(Ranks!$1:$1048576,$A477,AY$1))","v":""},{"$f":"IF($A477=\"N/A\",Ref!$B$36,INDEX(Ranks!$1:$1048576,$A477,AZ$1))","v":""},{"$f":"IF($A477=\"N/A\",Ref!$B$36,INDEX(Ranks!$1:$1048576,$A477,BA$1))","v":""},{"$f":"IF($A477=\"N/A\",Ref!$B$36,INDEX(Ranks!$1:$1048576,$A477,BB$1))","v":""},{"$f":"IF($A477=\"N/A\",Ref!$B$36,INDEX(Ranks!$1:$1048576,$A477,BC$1))","v":""},{"$f":"IF($A477=\"N/A\",Ref!$B$36,INDEX(Ranks!$1:$1048576,$A477,BD$1))","v":""},{"$f":"IF($A477=\"N/A\",Ref!$B$36,INDEX(Ranks!$1:$1048576,$A477,BE$1))","v":""},{"$f":"IF($A477=\"N/A\",Ref!$B$36,INDEX(Ranks!$1:$1048576,$A477,BF$1))","v":""},{"$f":"IF($A477=\"N/A\",Ref!$B$36,INDEX(Ranks!$1:$1048576,$A477,BG$1))","v":""},{"$f":"IF($A477=\"N/A\",Ref!$B$36,INDEX(Ranks!$1:$1048576,$A477,BH$1))","v":""},{"$f":"IF($A477=\"N/A\",Ref!$B$36,INDEX(Ranks!$1:$1048576,$A477,BI$1))","v":""},{"$f":"IF($A477=\"N/A\",Ref!$B$36,INDEX(Ranks!$1:$1048576,$A477,BJ$1))","v":""},{"$f":"IF($A477=\"N/A\",Ref!$B$36,INDEX(Ranks!$1:$1048576,$A477,BK$1))","v":""},{"$f":"IF($A477=\"N/A\",Ref!$B$36,INDEX(Ranks!$1:$1048576,$A477,BL$1))","v":""},{"$f":"IF($A477=\"N/A\",Ref!$B$36,INDEX(Ranks!$1:$1048576,$A477,BM$1))","v":""},{"$f":"IF($A477=\"N/A\",Ref!$B$36,INDEX(Ranks!$1:$1048576,$A477,BN$1))","v":""},{"$f":"IF($A477=\"N/A\",Ref!$B$36,INDEX(Ranks!$1:$1048576,$A477,BO$1))","v":""},{"$f":"IF($A477=\"N/A\",Ref!$B$36,INDEX(Ranks!$1:$1048576,$A477,BP$1))","v":""},{"$f":"IF($A477=\"N/A\",Ref!$B$36,INDEX(Ranks!$1:$1048576,$A477,BQ$1))","v":""},{"$f":"IF($A477=\"N/A\",Ref!$B$36,INDEX(Ranks!$1:$1048576,$A477,BR$1))","v":""},{"$f":"IF($A477=\"N/A\",Ref!$B$36,INDEX(Ranks!$1:$1048576,$A477,BS$1))","v":""},{"$f":"IF($A477=\"N/A\",Ref!$B$36,INDEX(Ranks!$1:$1048576,$A477,BT$1))","v":""},{"$f":"IF($A477=\"N/A\",Ref!$B$36,INDEX(Ranks!$1:$1048576,$A477,BU$1))","v":""},{"$f":"IF($A477=\"N/A\",Ref!$B$36,INDEX(Ranks!$1:$1048576,$A477,BV$1))","v":""},{"$f":"IF($A477=\"N/A\",Ref!$B$36,INDEX(Ranks!$1:$1048576,$A477,BW$1))","v":""},{"$f":"IF($A477=\"N/A\",Ref!$B$36,INDEX(Ranks!$1:$1048576,$A477,BX$1))","v":""},{"$f":"IF($A477=\"N/A\",Ref!$B$36,INDEX(Ranks!$1:$1048576,$A477,BY$1))","v":""},{"$f":"IF($A477=\"N/A\",Ref!$B$36,INDEX(Ranks!$1:$1048576,$A477,BZ$1))","v":""},{"$f":"IF($A477=\"N/A\",Ref!$B$36,INDEX(Ranks!$1:$1048576,$A477,CA$1))","v":""},{"$f":"IF($A477=\"N/A\",Ref!$B$36,INDEX(Ranks!$1:$1048576,$A477,CB$1))","v":""},{"$f":"IF($A477=\"N/A\",Ref!$B$36,INDEX(Ranks!$1:$1048576,$A477,CC$1))","v":""},{"$f":"IF($A477=\"N/A\",Ref!$B$36,INDEX(Ranks!$1:$1048576,$A477,CD$1))","v":""},{"$f":"IF($A477=\"N/A\",Ref!$B$36,INDEX(Ranks!$1:$1048576,$A477,CE$1))","v":""},{"$f":"IF($A477=\"N/A\",Ref!$B$36,INDEX(Ranks!$1:$1048576,$A477,CF$1))","v":""},{"$f":"IF($A477=\"N/A\",Ref!$B$36,INDEX(Ranks!$1:$1048576,$A477,CG$1))","v":""},{"$f":"IF($A477=\"N/A\",Ref!$B$36,INDEX(Ranks!$1:$1048576,$A477,CH$1))","v":""},{"$f":"IF($A477=\"N/A\",Ref!$B$36,INDEX(Ranks!$1:$1048576,$A477,CI$1))","v":""},{"$f":"IF($A477=\"N/A\",Ref!$B$36,INDEX(Ranks!$1:$1048576,$A477,CJ$1))","v":""},{"$f":"IF($A477=\"N/A\",Ref!$B$36,INDEX(Ranks!$1:$1048576,$A477,CK$1))","v":""},{"$f":"IF($A477=\"N/A\",Ref!$B$36,INDEX(Ranks!$1:$1048576,$A477,CL$1))","v":""},{"$f":"IF($A477=\"N/A\",Ref!$B$36,INDEX(Ranks!$1:$1048576,$A477,CM$1))","v":""},{"$f":"IF($A477=\"N/A\",Ref!$B$36,INDEX(Ranks!$1:$1048576,$A477,CN$1))","v":""},{"$f":"IF($A477=\"N/A\",Ref!$B$36,INDEX(Ranks!$1:$1048576,$A477,CO$1))","v":""},{"$f":"IF($A477=\"N/A\",Ref!$B$36,INDEX(Ranks!$1:$1048576,$A477,CP$1))","v":""},{"$f":"IF($A477=\"N/A\",Ref!$B$36,INDEX(Ranks!$1:$1048576,$A477,CQ$1))","v":""},{"$f":"IF($A477=\"N/A\",Ref!$B$36,INDEX(Ranks!$1:$1048576,$A477,CR$1))","v":""},{"$f":"IF($A477=\"N/A\",Ref!$B$36,INDEX(Ranks!$1:$1048576,$A477,CS$1))","v":""},{"$f":"IF($A477=\"N/A\",Ref!$B$36,INDEX(Ranks!$1:$1048576,$A477,CT$1))","v":""},{"$f":"IF($A477=\"N/A\",Ref!$B$36,INDEX(Ranks!$1:$1048576,$A477,CU$1))","v":""},{"$f":"IF($A477=\"N/A\",Ref!$B$36,INDEX(Ranks!$1:$1048576,$A477,CV$1))","v":""},{"$f":"IF($A477=\"N/A\",Ref!$B$36,INDEX(Ranks!$1:$1048576,$A477,CW$1))","v":""},{"$f":"IF($A477=\"N/A\",Ref!$B$36,INDEX(Ranks!$1:$1048576,$A477,CX$1))","v":""},{"$f":"IF($A477=\"N/A\",Ref!$B$36,INDEX(Ranks!$1:$1048576,$A477,CY$1))","v":""},{"$f":"IF($A477=\"N/A\",Ref!$B$36,INDEX(Ranks!$1:$1048576,$A477,CZ$1))","v":""},{"$f":"IF($A477=\"N/A\",Ref!$B$36,INDEX(Ranks!$1:$1048576,$A477,DA$1))","v":""},{"$f":"IF($A477=\"N/A\",Ref!$B$36,INDEX(Ranks!$1:$1048576,$A477,DB$1))","v":""},{"$f":"IF($A477=\"N/A\",Ref!$B$36,INDEX(Ranks!$1:$1048576,$A477,DC$1))","v":""},{"$f":"IF($A477=\"N/A\",Ref!$B$36,INDEX(Ranks!$1:$1048576,$A477,DD$1))","v":""},{"$f":"IF($A477=\"N/A\",Ref!$B$36,INDEX(Ranks!$1:$1048576,$A477,DE$1))","v":""},{"$f":"IF($A477=\"N/A\",Ref!$B$36,INDEX(Ranks!$1:$1048576,$A477,DF$1))","v":""},{"$f":"IF($A477=\"N/A\",Ref!$B$36,INDEX(Ranks!$1:$1048576,$A477,DG$1))","v":""},{"$f":"IF($A477=\"N/A\",Ref!$B$36,INDEX(Ranks!$1:$1048576,$A477,DH$1))","v":""},{"$f":"IF($A477=\"N/A\",Ref!$B$36,INDEX(Ranks!$1:$1048576,$A477,DI$1))","v":""},{"$f":"IF($A477=\"N/A\",Ref!$B$36,INDEX(Ranks!$1:$1048576,$A477,DJ$1))","v":""},{"$f":"IF($A477=\"N/A\",Ref!$B$36,INDEX(Ranks!$1:$1048576,$A477,DK$1))","v":""},{"$f":"IF($A477=\"N/A\",Ref!$B$36,INDEX(Ranks!$1:$1048576,$A477,DL$1))","v":""},{"$f":"IF($A477=\"N/A\",Ref!$B$36,INDEX(Ranks!$1:$1048576,$A477,DM$1))","v":""},{"$f":"IF($A477=\"N/A\",Ref!$B$36,INDEX(Ranks!$1:$1048576,$A477,DN$1))","v":""},{"$f":"IF($A477=\"N/A\",Ref!$B$36,INDEX(Ranks!$1:$1048576,$A477,DO$1))","v":""},{"$f":"IF($A477=\"N/A\",Ref!$B$36,INDEX(Ranks!$1:$1048576,$A477,DP$1))","v":""},{"$f":"IF($A477=\"N/A\",Ref!$B$36,INDEX(Ranks!$1:$1048576,$A477,DQ$1))","v":""},{"$f":"IF($A477=\"N/A\",Ref!$B$36,INDEX(Ranks!$1:$1048576,$A477,DR$1))","v":""},{"$f":"IF($A477=\"N/A\",Ref!$B$36,INDEX(Ranks!$1:$1048576,$A477,DS$1))","v":""},{"$f":"IF($A477=\"N/A\",Ref!$B$36,INDEX(Ranks!$1:$1048576,$A477,DT$1))","v":""},{"$f":"IF($A477=\"N/A\",Ref!$B$36,INDEX(Ranks!$1:$1048576,$A477,DU$1))","v":""},{"$f":"IF($A477=\"N/A\",Ref!$B$36,INDEX(Ranks!$1:$1048576,$A477,DV$1))","v":""},{"$f":"IF($A477=\"N/A\",Ref!$B$36,INDEX(Ranks!$1:$1048576,$A477,DW$1))","v":""},{"$f":"IF($A477=\"N/A\",Ref!$B$36,INDEX(Ranks!$1:$1048576,$A477,DX$1))","v":""},{"$f":"IF($A477=\"N/A\",Ref!$B$36,INDEX(Ranks!$1:$1048576,$A477,DY$1))","v":""},{"$f":"IF($A477=\"N/A\",Ref!$B$36,INDEX(Ranks!$1:$1048576,$A477,DZ$1))","v":""},{"$f":"IF($A477=\"N/A\",Ref!$B$36,INDEX(Ranks!$1:$1048576,$A477,EA$1))","v":""},{"$f":"IF($A477=\"N/A\",Ref!$B$36,INDEX(Ranks!$1:$1048576,$A477,EB$1))","v":""}]
[{"$f":"IFERROR(MATCH('Portfolio Page'!L478,Ranks!L:L,0),\"N/A\")","v":"N/A"},null,{"$f":"IF($A478=\"N/A\",\"\",INDEX(Ranks!$1:$1048576,$A478,C$1))","v":""},{"$f":"IF($A478=\"N/A\",Ref!$B$36,INDEX(Ranks!$1:$1048576,$A478,D$1))","v":""},{"$f":"IF($A478=\"N/A\",Ref!$B$36,INDEX(Ranks!$1:$1048576,$A478,E$1))","v":""},{"$f":"IF($A478=\"N/A\",\"\",INDEX(Ranks!$1:$1048576,$A478,F$1))","v":""},{"$f":"IF($A478=\"N/A\",\"\",INDEX(Ranks!$1:$1048576,$A478,G$1))","v":""},{"$f":"IF($A478=\"N/A\",\"\",INDEX(Ranks!$1:$1048576,$A478,H$1))","v":""},{"$f":"IF($A478=\"N/A\",\"\",INDEX(Ranks!$1:$1048576,$A478,I$1))","v":""},{"$f":"IF($A478=\"N/A\",\"\",INDEX(Ranks!$1:$1048576,$A478,J$1))","v":""},{"$f":"IF($A478=\"N/A\",\"\",INDEX(Ranks!$1:$1048576,$A478,K$1))","v":""},null,{"$f":"IF($A478=\"N/A\",Ref!$B$36,INDEX(Ranks!$1:$1048576,$A478,M$1))","v":""},{"$f":"IF($A478=\"N/A\",Ref!$B$36,INDEX(Ranks!$1:$1048576,$A478,N$1))","v":""},{"$f":"IF($A478=\"N/A\",Ref!$B$36,INDEX(Ranks!$1:$1048576,$A478,O$1))","v":""},{"$f":"IF($A478=\"N/A\",Ref!$B$36,INDEX(Ranks!$1:$1048576,$A478,P$1))","v":""},{"$f":"IF($A478=\"N/A\",Ref!$B$36,INDEX(Ranks!$1:$1048576,$A478,Q$1))","v":""},{"$f":"IF($A478=\"N/A\",Ref!$B$36,INDEX(Ranks!$1:$1048576,$A478,R$1))","v":""},{"$f":"IF($A478=\"N/A\",Ref!$B$36,INDEX(Ranks!$1:$1048576,$A478,S$1))","v":""},{"$f":"IF($A478=\"N/A\",Ref!$B$36,INDEX(Ranks!$1:$1048576,$A478,T$1))","v":""},{"$f":"IF($A478=\"N/A\",Ref!$B$36,INDEX(Ranks!$1:$1048576,$A478,U$1))","v":""},{"$f":"IF($A478=\"N/A\",Ref!$B$36,INDEX(Ranks!$1:$1048576,$A478,V$1))","v":""},{"$f":"IF($A478=\"N/A\",Ref!$B$36,INDEX(Ranks!$1:$1048576,$A478,W$1))","v":""},{"$f":"IF($A478=\"N/A\",Ref!$B$36,INDEX(Ranks!$1:$1048576,$A478,X$1))","v":""},{"$f":"IF($A478=\"N/A\",Ref!$B$36,INDEX(Ranks!$1:$1048576,$A478,Y$1))","v":""},{"$f":"IF($A478=\"N/A\",Ref!$B$36,INDEX(Ranks!$1:$1048576,$A478,Z$1))","v":""},{"$f":"IF($A478=\"N/A\",Ref!$B$36,INDEX(Ranks!$1:$1048576,$A478,AA$1))","v":""},{"$f":"IF($A478=\"N/A\",Ref!$B$36,INDEX(Ranks!$1:$1048576,$A478,AB$1))","v":""},{"$f":"IF($A478=\"N/A\",Ref!$B$36,INDEX(Ranks!$1:$1048576,$A478,AC$1))","v":""},{"$f":"IF($A478=\"N/A\",Ref!$B$36,INDEX(Ranks!$1:$1048576,$A478,AD$1))","v":""},{"$f":"IF($A478=\"N/A\",Ref!$B$36,INDEX(Ranks!$1:$1048576,$A478,AE$1))","v":""},{"$f":"IF($A478=\"N/A\",Ref!$B$36,INDEX(Ranks!$1:$1048576,$A478,AF$1))","v":""},{"$f":"IF($A478=\"N/A\",Ref!$B$36,INDEX(Ranks!$1:$1048576,$A478,AG$1))","v":""},{"$f":"IF($A478=\"N/A\",Ref!$B$36,INDEX(Ranks!$1:$1048576,$A478,AH$1))","v":""},{"$f":"IF($A478=\"N/A\",Ref!$B$36,INDEX(Ranks!$1:$1048576,$A478,AI$1))","v":""},{"$f":"IF($A478=\"N/A\",Ref!$B$36,INDEX(Ranks!$1:$1048576,$A478,AJ$1))","v":""},{"$f":"IF($A478=\"N/A\",Ref!$B$36,INDEX(Ranks!$1:$1048576,$A478,AK$1))","v":""},{"$f":"IF($A478=\"N/A\",Ref!$B$36,INDEX(Ranks!$1:$1048576,$A478,AL$1))","v":""},{"$f":"IF($A478=\"N/A\",Ref!$B$36,INDEX(Ranks!$1:$1048576,$A478,AM$1))","v":""},{"$f":"IF($A478=\"N/A\",Ref!$B$36,INDEX(Ranks!$1:$1048576,$A478,AN$1))","v":""},{"$f":"IF($A478=\"N/A\",Ref!$B$36,INDEX(Ranks!$1:$1048576,$A478,AO$1))","v":""},{"$f":"IF($A478=\"N/A\",Ref!$B$36,INDEX(Ranks!$1:$1048576,$A478,AP$1))","v":""},{"$f":"IF($A478=\"N/A\",Ref!$B$36,INDEX(Ranks!$1:$1048576,$A478,AQ$1))","v":""},{"$f":"IF($A478=\"N/A\",Ref!$B$36,INDEX(Ranks!$1:$1048576,$A478,AR$1))","v":""},{"$f":"IF($A478=\"N/A\",Ref!$B$36,INDEX(Ranks!$1:$1048576,$A478,AS$1))","v":""},{"$f":"IF($A478=\"N/A\",Ref!$B$36,INDEX(Ranks!$1:$1048576,$A478,AT$1))","v":""},{"$f":"IF($A478=\"N/A\",Ref!$B$36,INDEX(Ranks!$1:$1048576,$A478,AU$1))","v":""},{"$f":"IF($A478=\"N/A\",Ref!$B$36,INDEX(Ranks!$1:$1048576,$A478,AV$1))","v":""},{"$f":"IF($A478=\"N/A\",Ref!$B$36,INDEX(Ranks!$1:$1048576,$A478,AW$1))","v":""},{"$f":"IF($A478=\"N/A\",Ref!$B$36,INDEX(Ranks!$1:$1048576,$A478,AX$1))","v":""},{"$f":"IF($A478=\"N/A\",Ref!$B$36,INDEX(Ranks!$1:$1048576,$A478,AY$1))","v":""},{"$f":"IF($A478=\"N/A\",Ref!$B$36,INDEX(Ranks!$1:$1048576,$A478,AZ$1))","v":""},{"$f":"IF($A478=\"N/A\",Ref!$B$36,INDEX(Ranks!$1:$1048576,$A478,BA$1))","v":""},{"$f":"IF($A478=\"N/A\",Ref!$B$36,INDEX(Ranks!$1:$1048576,$A478,BB$1))","v":""},{"$f":"IF($A478=\"N/A\",Ref!$B$36,INDEX(Ranks!$1:$1048576,$A478,BC$1))","v":""},{"$f":"IF($A478=\"N/A\",Ref!$B$36,INDEX(Ranks!$1:$1048576,$A478,BD$1))","v":""},{"$f":"IF($A478=\"N/A\",Ref!$B$36,INDEX(Ranks!$1:$1048576,$A478,BE$1))","v":""},{"$f":"IF($A478=\"N/A\",Ref!$B$36,INDEX(Ranks!$1:$1048576,$A478,BF$1))","v":""},{"$f":"IF($A478=\"N/A\",Ref!$B$36,INDEX(Ranks!$1:$1048576,$A478,BG$1))","v":""},{"$f":"IF($A478=\"N/A\",Ref!$B$36,INDEX(Ranks!$1:$1048576,$A478,BH$1))","v":""},{"$f":"IF($A478=\"N/A\",Ref!$B$36,INDEX(Ranks!$1:$1048576,$A478,BI$1))","v":""},{"$f":"IF($A478=\"N/A\",Ref!$B$36,INDEX(Ranks!$1:$1048576,$A478,BJ$1))","v":""},{"$f":"IF($A478=\"N/A\",Ref!$B$36,INDEX(Ranks!$1:$1048576,$A478,BK$1))","v":""},{"$f":"IF($A478=\"N/A\",Ref!$B$36,INDEX(Ranks!$1:$1048576,$A478,BL$1))","v":""},{"$f":"IF($A478=\"N/A\",Ref!$B$36,INDEX(Ranks!$1:$1048576,$A478,BM$1))","v":""},{"$f":"IF($A478=\"N/A\",Ref!$B$36,INDEX(Ranks!$1:$1048576,$A478,BN$1))","v":""},{"$f":"IF($A478=\"N/A\",Ref!$B$36,INDEX(Ranks!$1:$1048576,$A478,BO$1))","v":""},{"$f":"IF($A478=\"N/A\",Ref!$B$36,INDEX(Ranks!$1:$1048576,$A478,BP$1))","v":""},{"$f":"IF($A478=\"N/A\",Ref!$B$36,INDEX(Ranks!$1:$1048576,$A478,BQ$1))","v":""},{"$f":"IF($A478=\"N/A\",Ref!$B$36,INDEX(Ranks!$1:$1048576,$A478,BR$1))","v":""},{"$f":"IF($A478=\"N/A\",Ref!$B$36,INDEX(Ranks!$1:$1048576,$A478,BS$1))","v":""},{"$f":"IF($A478=\"N/A\",Ref!$B$36,INDEX(Ranks!$1:$1048576,$A478,BT$1))","v":""},{"$f":"IF($A478=\"N/A\",Ref!$B$36,INDEX(Ranks!$1:$1048576,$A478,BU$1))","v":""},{"$f":"IF($A478=\"N/A\",Ref!$B$36,INDEX(Ranks!$1:$1048576,$A478,BV$1))","v":""},{"$f":"IF($A478=\"N/A\",Ref!$B$36,INDEX(Ranks!$1:$1048576,$A478,BW$1))","v":""},{"$f":"IF($A478=\"N/A\",Ref!$B$36,INDEX(Ranks!$1:$1048576,$A478,BX$1))","v":""},{"$f":"IF($A478=\"N/A\",Ref!$B$36,INDEX(Ranks!$1:$1048576,$A478,BY$1))","v":""},{"$f":"IF($A478=\"N/A\",Ref!$B$36,INDEX(Ranks!$1:$1048576,$A478,BZ$1))","v":""},{"$f":"IF($A478=\"N/A\",Ref!$B$36,INDEX(Ranks!$1:$1048576,$A478,CA$1))","v":""},{"$f":"IF($A478=\"N/A\",Ref!$B$36,INDEX(Ranks!$1:$1048576,$A478,CB$1))","v":""},{"$f":"IF($A478=\"N/A\",Ref!$B$36,INDEX(Ranks!$1:$1048576,$A478,CC$1))","v":""},{"$f":"IF($A478=\"N/A\",Ref!$B$36,INDEX(Ranks!$1:$1048576,$A478,CD$1))","v":""},{"$f":"IF($A478=\"N/A\",Ref!$B$36,INDEX(Ranks!$1:$1048576,$A478,CE$1))","v":""},{"$f":"IF($A478=\"N/A\",Ref!$B$36,INDEX(Ranks!$1:$1048576,$A478,CF$1))","v":""},{"$f":"IF($A478=\"N/A\",Ref!$B$36,INDEX(Ranks!$1:$1048576,$A478,CG$1))","v":""},{"$f":"IF($A478=\"N/A\",Ref!$B$36,INDEX(Ranks!$1:$1048576,$A478,CH$1))","v":""},{"$f":"IF($A478=\"N/A\",Ref!$B$36,INDEX(Ranks!$1:$1048576,$A478,CI$1))","v":""},{"$f":"IF($A478=\"N/A\",Ref!$B$36,INDEX(Ranks!$1:$1048576,$A478,CJ$1))","v":""},{"$f":"IF($A478=\"N/A\",Ref!$B$36,INDEX(Ranks!$1:$1048576,$A478,CK$1))","v":""},{"$f":"IF($A478=\"N/A\",Ref!$B$36,INDEX(Ranks!$1:$1048576,$A478,CL$1))","v":""},{"$f":"IF($A478=\"N/A\",Ref!$B$36,INDEX(Ranks!$1:$1048576,$A478,CM$1))","v":""},{"$f":"IF($A478=\"N/A\",Ref!$B$36,INDEX(Ranks!$1:$1048576,$A478,CN$1))","v":""},{"$f":"IF($A478=\"N/A\",Ref!$B$36,INDEX(Ranks!$1:$1048576,$A478,CO$1))","v":""},{"$f":"IF($A478=\"N/A\",Ref!$B$36,INDEX(Ranks!$1:$1048576,$A478,CP$1))","v":""},{"$f":"IF($A478=\"N/A\",Ref!$B$36,INDEX(Ranks!$1:$1048576,$A478,CQ$1))","v":""},{"$f":"IF($A478=\"N/A\",Ref!$B$36,INDEX(Ranks!$1:$1048576,$A478,CR$1))","v":""},{"$f":"IF($A478=\"N/A\",Ref!$B$36,INDEX(Ranks!$1:$1048576,$A478,CS$1))","v":""},{"$f":"IF($A478=\"N/A\",Ref!$B$36,INDEX(Ranks!$1:$1048576,$A478,CT$1))","v":""},{"$f":"IF($A478=\"N/A\",Ref!$B$36,INDEX(Ranks!$1:$1048576,$A478,CU$1))","v":""},{"$f":"IF($A478=\"N/A\",Ref!$B$36,INDEX(Ranks!$1:$1048576,$A478,CV$1))","v":""},{"$f":"IF($A478=\"N/A\",Ref!$B$36,INDEX(Ranks!$1:$1048576,$A478,CW$1))","v":""},{"$f":"IF($A478=\"N/A\",Ref!$B$36,INDEX(Ranks!$1:$1048576,$A478,CX$1))","v":""},{"$f":"IF($A478=\"N/A\",Ref!$B$36,INDEX(Ranks!$1:$1048576,$A478,CY$1))","v":""},{"$f":"IF($A478=\"N/A\",Ref!$B$36,INDEX(Ranks!$1:$1048576,$A478,CZ$1))","v":""},{"$f":"IF($A478=\"N/A\",Ref!$B$36,INDEX(Ranks!$1:$1048576,$A478,DA$1))","v":""},{"$f":"IF($A478=\"N/A\",Ref!$B$36,INDEX(Ranks!$1:$1048576,$A478,DB$1))","v":""},{"$f":"IF($A478=\"N/A\",Ref!$B$36,INDEX(Ranks!$1:$1048576,$A478,DC$1))","v":""},{"$f":"IF($A478=\"N/A\",Ref!$B$36,INDEX(Ranks!$1:$1048576,$A478,DD$1))","v":""},{"$f":"IF($A478=\"N/A\",Ref!$B$36,INDEX(Ranks!$1:$1048576,$A478,DE$1))","v":""},{"$f":"IF($A478=\"N/A\",Ref!$B$36,INDEX(Ranks!$1:$1048576,$A478,DF$1))","v":""},{"$f":"IF($A478=\"N/A\",Ref!$B$36,INDEX(Ranks!$1:$1048576,$A478,DG$1))","v":""},{"$f":"IF($A478=\"N/A\",Ref!$B$36,INDEX(Ranks!$1:$1048576,$A478,DH$1))","v":""},{"$f":"IF($A478=\"N/A\",Ref!$B$36,INDEX(Ranks!$1:$1048576,$A478,DI$1))","v":""},{"$f":"IF($A478=\"N/A\",Ref!$B$36,INDEX(Ranks!$1:$1048576,$A478,DJ$1))","v":""},{"$f":"IF($A478=\"N/A\",Ref!$B$36,INDEX(Ranks!$1:$1048576,$A478,DK$1))","v":""},{"$f":"IF($A478=\"N/A\",Ref!$B$36,INDEX(Ranks!$1:$1048576,$A478,DL$1))","v":""},{"$f":"IF($A478=\"N/A\",Ref!$B$36,INDEX(Ranks!$1:$1048576,$A478,DM$1))","v":""},{"$f":"IF($A478=\"N/A\",Ref!$B$36,INDEX(Ranks!$1:$1048576,$A478,DN$1))","v":""},{"$f":"IF($A478=\"N/A\",Ref!$B$36,INDEX(Ranks!$1:$1048576,$A478,DO$1))","v":""},{"$f":"IF($A478=\"N/A\",Ref!$B$36,INDEX(Ranks!$1:$1048576,$A478,DP$1))","v":""},{"$f":"IF($A478=\"N/A\",Ref!$B$36,INDEX(Ranks!$1:$1048576,$A478,DQ$1))","v":""},{"$f":"IF($A478=\"N/A\",Ref!$B$36,INDEX(Ranks!$1:$1048576,$A478,DR$1))","v":""},{"$f":"IF($A478=\"N/A\",Ref!$B$36,INDEX(Ranks!$1:$1048576,$A478,DS$1))","v":""},{"$f":"IF($A478=\"N/A\",Ref!$B$36,INDEX(Ranks!$1:$1048576,$A478,DT$1))","v":""},{"$f":"IF($A478=\"N/A\",Ref!$B$36,INDEX(Ranks!$1:$1048576,$A478,DU$1))","v":""},{"$f":"IF($A478=\"N/A\",Ref!$B$36,INDEX(Ranks!$1:$1048576,$A478,DV$1))","v":""},{"$f":"IF($A478=\"N/A\",Ref!$B$36,INDEX(Ranks!$1:$1048576,$A478,DW$1))","v":""},{"$f":"IF($A478=\"N/A\",Ref!$B$36,INDEX(Ranks!$1:$1048576,$A478,DX$1))","v":""},{"$f":"IF($A478=\"N/A\",Ref!$B$36,INDEX(Ranks!$1:$1048576,$A478,DY$1))","v":""},{"$f":"IF($A478=\"N/A\",Ref!$B$36,INDEX(Ranks!$1:$1048576,$A478,DZ$1))","v":""},{"$f":"IF($A478=\"N/A\",Ref!$B$36,INDEX(Ranks!$1:$1048576,$A478,EA$1))","v":""},{"$f":"IF($A478=\"N/A\",Ref!$B$36,INDEX(Ranks!$1:$1048576,$A478,EB$1))","v":""}]
[{"$f":"IFERROR(MATCH('Portfolio Page'!L479,Ranks!L:L,0),\"N/A\")","v":"N/A"},null,{"$f":"IF($A479=\"N/A\",\"\",INDEX(Ranks!$1:$1048576,$A479,C$1))","v":""},{"$f":"IF($A479=\"N/A\",Ref!$B$36,INDEX(Ranks!$1:$1048576,$A479,D$1))","v":""},{"$f":"IF($A479=\"N/A\",Ref!$B$36,INDEX(Ranks!$1:$1048576,$A479,E$1))","v":""},{"$f":"IF($A479=\"N/A\",\"\",INDEX(Ranks!$1:$1048576,$A479,F$1))","v":""},{"$f":"IF($A479=\"N/A\",\"\",INDEX(Ranks!$1:$1048576,$A479,G$1))","v":""},{"$f":"IF($A479=\"N/A\",\"\",INDEX(Ranks!$1:$1048576,$A479,H$1))","v":""},{"$f":"IF($A479=\"N/A\",\"\",INDEX(Ranks!$1:$1048576,$A479,I$1))","v":""},{"$f":"IF($A479=\"N/A\",\"\",INDEX(Ranks!$1:$1048576,$A479,J$1))","v":""},{"$f":"IF($A479=\"N/A\",\"\",INDEX(Ranks!$1:$1048576,$A479,K$1))","v":""},null,{"$f":"IF($A479=\"N/A\",Ref!$B$36,INDEX(Ranks!$1:$1048576,$A479,M$1))","v":""},{"$f":"IF($A479=\"N/A\",Ref!$B$36,INDEX(Ranks!$1:$1048576,$A479,N$1))","v":""},{"$f":"IF($A479=\"N/A\",Ref!$B$36,INDEX(Ranks!$1:$1048576,$A479,O$1))","v":""},{"$f":"IF($A479=\"N/A\",Ref!$B$36,INDEX(Ranks!$1:$1048576,$A479,P$1))","v":""},{"$f":"IF($A479=\"N/A\",Ref!$B$36,INDEX(Ranks!$1:$1048576,$A479,Q$1))","v":""},{"$f":"IF($A479=\"N/A\",Ref!$B$36,INDEX(Ranks!$1:$1048576,$A479,R$1))","v":""},{"$f":"IF($A479=\"N/A\",Ref!$B$36,INDEX(Ranks!$1:$1048576,$A479,S$1))","v":""},{"$f":"IF($A479=\"N/A\",Ref!$B$36,INDEX(Ranks!$1:$1048576,$A479,T$1))","v":""},{"$f":"IF($A479=\"N/A\",Ref!$B$36,INDEX(Ranks!$1:$1048576,$A479,U$1))","v":""},{"$f":"IF($A479=\"N/A\",Ref!$B$36,INDEX(Ranks!$1:$1048576,$A479,V$1))","v":""},{"$f":"IF($A479=\"N/A\",Ref!$B$36,INDEX(Ranks!$1:$1048576,$A479,W$1))","v":""},{"$f":"IF($A479=\"N/A\",Ref!$B$36,INDEX(Ranks!$1:$1048576,$A479,X$1))","v":""},{"$f":"IF($A479=\"N/A\",Ref!$B$36,INDEX(Ranks!$1:$1048576,$A479,Y$1))","v":""},{"$f":"IF($A479=\"N/A\",Ref!$B$36,INDEX(Ranks!$1:$1048576,$A479,Z$1))","v":""},{"$f":"IF($A479=\"N/A\",Ref!$B$36,INDEX(Ranks!$1:$1048576,$A479,AA$1))","v":""},{"$f":"IF($A479=\"N/A\",Ref!$B$36,INDEX(Ranks!$1:$1048576,$A479,AB$1))","v":""},{"$f":"IF($A479=\"N/A\",Ref!$B$36,INDEX(Ranks!$1:$1048576,$A479,AC$1))","v":""},{"$f":"IF($A479=\"N/A\",Ref!$B$36,INDEX(Ranks!$1:$1048576,$A479,AD$1))","v":""},{"$f":"IF($A479=\"N/A\",Ref!$B$36,INDEX(Ranks!$1:$1048576,$A479,AE$1))","v":""},{"$f":"IF($A479=\"N/A\",Ref!$B$36,INDEX(Ranks!$1:$1048576,$A479,AF$1))","v":""},{"$f":"IF($A479=\"N/A\",Ref!$B$36,INDEX(Ranks!$1:$1048576,$A479,AG$1))","v":""},{"$f":"IF($A479=\"N/A\",Ref!$B$36,INDEX(Ranks!$1:$1048576,$A479,AH$1))","v":""},{"$f":"IF($A479=\"N/A\",Ref!$B$36,INDEX(Ranks!$1:$1048576,$A479,AI$1))","v":""},{"$f":"IF($A479=\"N/A\",Ref!$B$36,INDEX(Ranks!$1:$1048576,$A479,AJ$1))","v":""},{"$f":"IF($A479=\"N/A\",Ref!$B$36,INDEX(Ranks!$1:$1048576,$A479,AK$1))","v":""},{"$f":"IF($A479=\"N/A\",Ref!$B$36,INDEX(Ranks!$1:$1048576,$A479,AL$1))","v":""},{"$f":"IF($A479=\"N/A\",Ref!$B$36,INDEX(Ranks!$1:$1048576,$A479,AM$1))","v":""},{"$f":"IF($A479=\"N/A\",Ref!$B$36,INDEX(Ranks!$1:$1048576,$A479,AN$1))","v":""},{"$f":"IF($A479=\"N/A\",Ref!$B$36,INDEX(Ranks!$1:$1048576,$A479,AO$1))","v":""},{"$f":"IF($A479=\"N/A\",Ref!$B$36,INDEX(Ranks!$1:$1048576,$A479,AP$1))","v":""},{"$f":"IF($A479=\"N/A\",Ref!$B$36,INDEX(Ranks!$1:$1048576,$A479,AQ$1))","v":""},{"$f":"IF($A479=\"N/A\",Ref!$B$36,INDEX(Ranks!$1:$1048576,$A479,AR$1))","v":""},{"$f":"IF($A479=\"N/A\",Ref!$B$36,INDEX(Ranks!$1:$1048576,$A479,AS$1))","v":""},{"$f":"IF($A479=\"N/A\",Ref!$B$36,INDEX(Ranks!$1:$1048576,$A479,AT$1))","v":""},{"$f":"IF($A479=\"N/A\",Ref!$B$36,INDEX(Ranks!$1:$1048576,$A479,AU$1))","v":""},{"$f":"IF($A479=\"N/A\",Ref!$B$36,INDEX(Ranks!$1:$1048576,$A479,AV$1))","v":""},{"$f":"IF($A479=\"N/A\",Ref!$B$36,INDEX(Ranks!$1:$1048576,$A479,AW$1))","v":""},{"$f":"IF($A479=\"N/A\",Ref!$B$36,INDEX(Ranks!$1:$1048576,$A479,AX$1))","v":""},{"$f":"IF($A479=\"N/A\",Ref!$B$36,INDEX(Ranks!$1:$1048576,$A479,AY$1))","v":""},{"$f":"IF($A479=\"N/A\",Ref!$B$36,INDEX(Ranks!$1:$1048576,$A479,AZ$1))","v":""},{"$f":"IF($A479=\"N/A\",Ref!$B$36,INDEX(Ranks!$1:$1048576,$A479,BA$1))","v":""},{"$f":"IF($A479=\"N/A\",Ref!$B$36,INDEX(Ranks!$1:$1048576,$A479,BB$1))","v":""},{"$f":"IF($A479=\"N/A\",Ref!$B$36,INDEX(Ranks!$1:$1048576,$A479,BC$1))","v":""},{"$f":"IF($A479=\"N/A\",Ref!$B$36,INDEX(Ranks!$1:$1048576,$A479,BD$1))","v":""},{"$f":"IF($A479=\"N/A\",Ref!$B$36,INDEX(Ranks!$1:$1048576,$A479,BE$1))","v":""},{"$f":"IF($A479=\"N/A\",Ref!$B$36,INDEX(Ranks!$1:$1048576,$A479,BF$1))","v":""},{"$f":"IF($A479=\"N/A\",Ref!$B$36,INDEX(Ranks!$1:$1048576,$A479,BG$1))","v":""},{"$f":"IF($A479=\"N/A\",Ref!$B$36,INDEX(Ranks!$1:$1048576,$A479,BH$1))","v":""},{"$f":"IF($A479=\"N/A\",Ref!$B$36,INDEX(Ranks!$1:$1048576,$A479,BI$1))","v":""},{"$f":"IF($A479=\"N/A\",Ref!$B$36,INDEX(Ranks!$1:$1048576,$A479,BJ$1))","v":""},{"$f":"IF($A479=\"N/A\",Ref!$B$36,INDEX(Ranks!$1:$1048576,$A479,BK$1))","v":""},{"$f":"IF($A479=\"N/A\",Ref!$B$36,INDEX(Ranks!$1:$1048576,$A479,BL$1))","v":""},{"$f":"IF($A479=\"N/A\",Ref!$B$36,INDEX(Ranks!$1:$1048576,$A479,BM$1))","v":""},{"$f":"IF($A479=\"N/A\",Ref!$B$36,INDEX(Ranks!$1:$1048576,$A479,BN$1))","v":""},{"$f":"IF($A479=\"N/A\",Ref!$B$36,INDEX(Ranks!$1:$1048576,$A479,BO$1))","v":""},{"$f":"IF($A479=\"N/A\",Ref!$B$36,INDEX(Ranks!$1:$1048576,$A479,BP$1))","v":""},{"$f":"IF($A479=\"N/A\",Ref!$B$36,INDEX(Ranks!$1:$1048576,$A479,BQ$1))","v":""},{"$f":"IF($A479=\"N/A\",Ref!$B$36,INDEX(Ranks!$1:$1048576,$A479,BR$1))","v":""},{"$f":"IF($A479=\"N/A\",Ref!$B$36,INDEX(Ranks!$1:$1048576,$A479,BS$1))","v":""},{"$f":"IF($A479=\"N/A\",Ref!$B$36,INDEX(Ranks!$1:$1048576,$A479,BT$1))","v":""},{"$f":"IF($A479=\"N/A\",Ref!$B$36,INDEX(Ranks!$1:$1048576,$A479,BU$1))","v":""},{"$f":"IF($A479=\"N/A\",Ref!$B$36,INDEX(Ranks!$1:$1048576,$A479,BV$1))","v":""},{"$f":"IF($A479=\"N/A\",Ref!$B$36,INDEX(Ranks!$1:$1048576,$A479,BW$1))","v":""},{"$f":"IF($A479=\"N/A\",Ref!$B$36,INDEX(Ranks!$1:$1048576,$A479,BX$1))","v":""},{"$f":"IF($A479=\"N/A\",Ref!$B$36,INDEX(Ranks!$1:$1048576,$A479,BY$1))","v":""},{"$f":"IF($A479=\"N/A\",Ref!$B$36,INDEX(Ranks!$1:$1048576,$A479,BZ$1))","v":""},{"$f":"IF($A479=\"N/A\",Ref!$B$36,INDEX(Ranks!$1:$1048576,$A479,CA$1))","v":""},{"$f":"IF($A479=\"N/A\",Ref!$B$36,INDEX(Ranks!$1:$1048576,$A479,CB$1))","v":""},{"$f":"IF($A479=\"N/A\",Ref!$B$36,INDEX(Ranks!$1:$1048576,$A479,CC$1))","v":""},{"$f":"IF($A479=\"N/A\",Ref!$B$36,INDEX(Ranks!$1:$1048576,$A479,CD$1))","v":""},{"$f":"IF($A479=\"N/A\",Ref!$B$36,INDEX(Ranks!$1:$1048576,$A479,CE$1))","v":""},{"$f":"IF($A479=\"N/A\",Ref!$B$36,INDEX(Ranks!$1:$1048576,$A479,CF$1))","v":""},{"$f":"IF($A479=\"N/A\",Ref!$B$36,INDEX(Ranks!$1:$1048576,$A479,CG$1))","v":""},{"$f":"IF($A479=\"N/A\",Ref!$B$36,INDEX(Ranks!$1:$1048576,$A479,CH$1))","v":""},{"$f":"IF($A479=\"N/A\",Ref!$B$36,INDEX(Ranks!$1:$1048576,$A479,CI$1))","v":""},{"$f":"IF($A479=\"N/A\",Ref!$B$36,INDEX(Ranks!$1:$1048576,$A479,CJ$1))","v":""},{"$f":"IF($A479=\"N/A\",Ref!$B$36,INDEX(Ranks!$1:$1048576,$A479,CK$1))","v":""},{"$f":"IF($A479=\"N/A\",Ref!$B$36,INDEX(Ranks!$1:$1048576,$A479,CL$1))","v":""},{"$f":"IF($A479=\"N/A\",Ref!$B$36,INDEX(Ranks!$1:$1048576,$A479,CM$1))","v":""},{"$f":"IF($A479=\"N/A\",Ref!$B$36,INDEX(Ranks!$1:$1048576,$A479,CN$1))","v":""},{"$f":"IF($A479=\"N/A\",Ref!$B$36,INDEX(Ranks!$1:$1048576,$A479,CO$1))","v":""},{"$f":"IF($A479=\"N/A\",Ref!$B$36,INDEX(Ranks!$1:$1048576,$A479,CP$1))","v":""},{"$f":"IF($A479=\"N/A\",Ref!$B$36,INDEX(Ranks!$1:$1048576,$A479,CQ$1))","v":""},{"$f":"IF($A479=\"N/A\",Ref!$B$36,INDEX(Ranks!$1:$1048576,$A479,CR$1))","v":""},{"$f":"IF($A479=\"N/A\",Ref!$B$36,INDEX(Ranks!$1:$1048576,$A479,CS$1))","v":""},{"$f":"IF($A479=\"N/A\",Ref!$B$36,INDEX(Ranks!$1:$1048576,$A479,CT$1))","v":""},{"$f":"IF($A479=\"N/A\",Ref!$B$36,INDEX(Ranks!$1:$1048576,$A479,CU$1))","v":""},{"$f":"IF($A479=\"N/A\",Ref!$B$36,INDEX(Ranks!$1:$1048576,$A479,CV$1))","v":""},{"$f":"IF($A479=\"N/A\",Ref!$B$36,INDEX(Ranks!$1:$1048576,$A479,CW$1))","v":""},{"$f":"IF($A479=\"N/A\",Ref!$B$36,INDEX(Ranks!$1:$1048576,$A479,CX$1))","v":""},{"$f":"IF($A479=\"N/A\",Ref!$B$36,INDEX(Ranks!$1:$1048576,$A479,CY$1))","v":""},{"$f":"IF($A479=\"N/A\",Ref!$B$36,INDEX(Ranks!$1:$1048576,$A479,CZ$1))","v":""},{"$f":"IF($A479=\"N/A\",Ref!$B$36,INDEX(Ranks!$1:$1048576,$A479,DA$1))","v":""},{"$f":"IF($A479=\"N/A\",Ref!$B$36,INDEX(Ranks!$1:$1048576,$A479,DB$1))","v":""},{"$f":"IF($A479=\"N/A\",Ref!$B$36,INDEX(Ranks!$1:$1048576,$A479,DC$1))","v":""},{"$f":"IF($A479=\"N/A\",Ref!$B$36,INDEX(Ranks!$1:$1048576,$A479,DD$1))","v":""},{"$f":"IF($A479=\"N/A\",Ref!$B$36,INDEX(Ranks!$1:$1048576,$A479,DE$1))","v":""},{"$f":"IF($A479=\"N/A\",Ref!$B$36,INDEX(Ranks!$1:$1048576,$A479,DF$1))","v":""},{"$f":"IF($A479=\"N/A\",Ref!$B$36,INDEX(Ranks!$1:$1048576,$A479,DG$1))","v":""},{"$f":"IF($A479=\"N/A\",Ref!$B$36,INDEX(Ranks!$1:$1048576,$A479,DH$1))","v":""},{"$f":"IF($A479=\"N/A\",Ref!$B$36,INDEX(Ranks!$1:$1048576,$A479,DI$1))","v":""},{"$f":"IF($A479=\"N/A\",Ref!$B$36,INDEX(Ranks!$1:$1048576,$A479,DJ$1))","v":""},{"$f":"IF($A479=\"N/A\",Ref!$B$36,INDEX(Ranks!$1:$1048576,$A479,DK$1))","v":""},{"$f":"IF($A479=\"N/A\",Ref!$B$36,INDEX(Ranks!$1:$1048576,$A479,DL$1))","v":""},{"$f":"IF($A479=\"N/A\",Ref!$B$36,INDEX(Ranks!$1:$1048576,$A479,DM$1))","v":""},{"$f":"IF($A479=\"N/A\",Ref!$B$36,INDEX(Ranks!$1:$1048576,$A479,DN$1))","v":""},{"$f":"IF($A479=\"N/A\",Ref!$B$36,INDEX(Ranks!$1:$1048576,$A479,DO$1))","v":""},{"$f":"IF($A479=\"N/A\",Ref!$B$36,INDEX(Ranks!$1:$1048576,$A479,DP$1))","v":""},{"$f":"IF($A479=\"N/A\",Ref!$B$36,INDEX(Ranks!$1:$1048576,$A479,DQ$1))","v":""},{"$f":"IF($A479=\"N/A\",Ref!$B$36,INDEX(Ranks!$1:$1048576,$A479,DR$1))","v":""},{"$f":"IF($A479=\"N/A\",Ref!$B$36,INDEX(Ranks!$1:$1048576,$A479,DS$1))","v":""},{"$f":"IF($A479=\"N/A\",Ref!$B$36,INDEX(Ranks!$1:$1048576,$A479,DT$1))","v":""},{"$f":"IF($A479=\"N/A\",Ref!$B$36,INDEX(Ranks!$1:$1048576,$A479,DU$1))","v":""},{"$f":"IF($A479=\"N/A\",Ref!$B$36,INDEX(Ranks!$1:$1048576,$A479,DV$1))","v":""},{"$f":"IF($A479=\"N/A\",Ref!$B$36,INDEX(Ranks!$1:$1048576,$A479,DW$1))","v":""},{"$f":"IF($A479=\"N/A\",Ref!$B$36,INDEX(Ranks!$1:$1048576,$A479,DX$1))","v":""},{"$f":"IF($A479=\"N/A\",Ref!$B$36,INDEX(Ranks!$1:$1048576,$A479,DY$1))","v":""},{"$f":"IF($A479=\"N/A\",Ref!$B$36,INDEX(Ranks!$1:$1048576,$A479,DZ$1))","v":""},{"$f":"IF($A479=\"N/A\",Ref!$B$36,INDEX(Ranks!$1:$1048576,$A479,EA$1))","v":""},{"$f":"IF($A479=\"N/A\",Ref!$B$36,INDEX(Ranks!$1:$1048576,$A479,EB$1))","v":""}]
[{"$f":"IFERROR(MATCH('Portfolio Page'!L480,Ranks!L:L,0),\"N/A\")","v":"N/A"},null,{"$f":"IF($A480=\"N/A\",\"\",INDEX(Ranks!$1:$1048576,$A480,C$1))","v":""},{"$f":"IF($A480=\"N/A\",Ref!$B$36,INDEX(Ranks!$1:$1048576,$A480,D$1))","v":""},{"$f":"IF($A480=\"N/A\",Ref!$B$36,INDEX(Ranks!$1:$1048576,$A480,E$1))","v":""},{"$f":"IF($A480=\"N/A\",\"\",INDEX(Ranks!$1:$1048576,$A480,F$1))","v":""},{"$f":"IF($A480=\"N/A\",\"\",INDEX(Ranks!$1:$1048576,$A480,G$1))","v":""},{"$f":"IF($A480=\"N/A\",\"\",INDEX(Ranks!$1:$1048576,$A480,H$1))","v":""},{"$f":"IF($A480=\"N/A\",\"\",INDEX(Ranks!$1:$1048576,$A480,I$1))","v":""},{"$f":"IF($A480=\"N/A\",\"\",INDEX(Ranks!$1:$1048576,$A480,J$1))","v":""},{"$f":"IF($A480=\"N/A\",\"\",INDEX(Ranks!$1:$1048576,$A480,K$1))","v":""},null,{"$f":"IF($A480=\"N/A\",Ref!$B$36,INDEX(Ranks!$1:$1048576,$A480,M$1))","v":""},{"$f":"IF($A480=\"N/A\",Ref!$B$36,INDEX(Ranks!$1:$1048576,$A480,N$1))","v":""},{"$f":"IF($A480=\"N/A\",Ref!$B$36,INDEX(Ranks!$1:$1048576,$A480,O$1))","v":""},{"$f":"IF($A480=\"N/A\",Ref!$B$36,INDEX(Ranks!$1:$1048576,$A480,P$1))","v":""},{"$f":"IF($A480=\"N/A\",Ref!$B$36,INDEX(Ranks!$1:$1048576,$A480,Q$1))","v":""},{"$f":"IF($A480=\"N/A\",Ref!$B$36,INDEX(Ranks!$1:$1048576,$A480,R$1))","v":""},{"$f":"IF($A480=\"N/A\",Ref!$B$36,INDEX(Ranks!$1:$1048576,$A480,S$1))","v":""},{"$f":"IF($A480=\"N/A\",Ref!$B$36,INDEX(Ranks!$1:$1048576,$A480,T$1))","v":""},{"$f":"IF($A480=\"N/A\",Ref!$B$36,INDEX(Ranks!$1:$1048576,$A480,U$1))","v":""},{"$f":"IF($A480=\"N/A\",Ref!$B$36,INDEX(Ranks!$1:$1048576,$A480,V$1))","v":""},{"$f":"IF($A480=\"N/A\",Ref!$B$36,INDEX(Ranks!$1:$1048576,$A480,W$1))","v":""},{"$f":"IF($A480=\"N/A\",Ref!$B$36,INDEX(Ranks!$1:$1048576,$A480,X$1))","v":""},{"$f":"IF($A480=\"N/A\",Ref!$B$36,INDEX(Ranks!$1:$1048576,$A480,Y$1))","v":""},{"$f":"IF($A480=\"N/A\",Ref!$B$36,INDEX(Ranks!$1:$1048576,$A480,Z$1))","v":""},{"$f":"IF($A480=\"N/A\",Ref!$B$36,INDEX(Ranks!$1:$1048576,$A480,AA$1))","v":""},{"$f":"IF($A480=\"N/A\",Ref!$B$36,INDEX(Ranks!$1:$1048576,$A480,AB$1))","v":""},{"$f":"IF($A480=\"N/A\",Ref!$B$36,INDEX(Ranks!$1:$1048576,$A480,AC$1))","v":""},{"$f":"IF($A480=\"N/A\",Ref!$B$36,INDEX(Ranks!$1:$1048576,$A480,AD$1))","v":""},{"$f":"IF($A480=\"N/A\",Ref!$B$36,INDEX(Ranks!$1:$1048576,$A480,AE$1))","v":""},{"$f":"IF($A480=\"N/A\",Ref!$B$36,INDEX(Ranks!$1:$1048576,$A480,AF$1))","v":""},{"$f":"IF($A480=\"N/A\",Ref!$B$36,INDEX(Ranks!$1:$1048576,$A480,AG$1))","v":""},{"$f":"IF($A480=\"N/A\",Ref!$B$36,INDEX(Ranks!$1:$1048576,$A480,AH$1))","v":""},{"$f":"IF($A480=\"N/A\",Ref!$B$36,INDEX(Ranks!$1:$1048576,$A480,AI$1))","v":""},{"$f":"IF($A480=\"N/A\",Ref!$B$36,INDEX(Ranks!$1:$1048576,$A480,AJ$1))","v":""},{"$f":"IF($A480=\"N/A\",Ref!$B$36,INDEX(Ranks!$1:$1048576,$A480,AK$1))","v":""},{"$f":"IF($A480=\"N/A\",Ref!$B$36,INDEX(Ranks!$1:$1048576,$A480,AL$1))","v":""},{"$f":"IF($A480=\"N/A\",Ref!$B$36,INDEX(Ranks!$1:$1048576,$A480,AM$1))","v":""},{"$f":"IF($A480=\"N/A\",Ref!$B$36,INDEX(Ranks!$1:$1048576,$A480,AN$1))","v":""},{"$f":"IF($A480=\"N/A\",Ref!$B$36,INDEX(Ranks!$1:$1048576,$A480,AO$1))","v":""},{"$f":"IF($A480=\"N/A\",Ref!$B$36,INDEX(Ranks!$1:$1048576,$A480,AP$1))","v":""},{"$f":"IF($A480=\"N/A\",Ref!$B$36,INDEX(Ranks!$1:$1048576,$A480,AQ$1))","v":""},{"$f":"IF($A480=\"N/A\",Ref!$B$36,INDEX(Ranks!$1:$1048576,$A480,AR$1))","v":""},{"$f":"IF($A480=\"N/A\",Ref!$B$36,INDEX(Ranks!$1:$1048576,$A480,AS$1))","v":""},{"$f":"IF($A480=\"N/A\",Ref!$B$36,INDEX(Ranks!$1:$1048576,$A480,AT$1))","v":""},{"$f":"IF($A480=\"N/A\",Ref!$B$36,INDEX(Ranks!$1:$1048576,$A480,AU$1))","v":""},{"$f":"IF($A480=\"N/A\",Ref!$B$36,INDEX(Ranks!$1:$1048576,$A480,AV$1))","v":""},{"$f":"IF($A480=\"N/A\",Ref!$B$36,INDEX(Ranks!$1:$1048576,$A480,AW$1))","v":""},{"$f":"IF($A480=\"N/A\",Ref!$B$36,INDEX(Ranks!$1:$1048576,$A480,AX$1))","v":""},{"$f":"IF($A480=\"N/A\",Ref!$B$36,INDEX(Ranks!$1:$1048576,$A480,AY$1))","v":""},{"$f":"IF($A480=\"N/A\",Ref!$B$36,INDEX(Ranks!$1:$1048576,$A480,AZ$1))","v":""},{"$f":"IF($A480=\"N/A\",Ref!$B$36,INDEX(Ranks!$1:$1048576,$A480,BA$1))","v":""},{"$f":"IF($A480=\"N/A\",Ref!$B$36,INDEX(Ranks!$1:$1048576,$A480,BB$1))","v":""},{"$f":"IF($A480=\"N/A\",Ref!$B$36,INDEX(Ranks!$1:$1048576,$A480,BC$1))","v":""},{"$f":"IF($A480=\"N/A\",Ref!$B$36,INDEX(Ranks!$1:$1048576,$A480,BD$1))","v":""},{"$f":"IF($A480=\"N/A\",Ref!$B$36,INDEX(Ranks!$1:$1048576,$A480,BE$1))","v":""},{"$f":"IF($A480=\"N/A\",Ref!$B$36,INDEX(Ranks!$1:$1048576,$A480,BF$1))","v":""},{"$f":"IF($A480=\"N/A\",Ref!$B$36,INDEX(Ranks!$1:$1048576,$A480,BG$1))","v":""},{"$f":"IF($A480=\"N/A\",Ref!$B$36,INDEX(Ranks!$1:$1048576,$A480,BH$1))","v":""},{"$f":"IF($A480=\"N/A\",Ref!$B$36,INDEX(Ranks!$1:$1048576,$A480,BI$1))","v":""},{"$f":"IF($A480=\"N/A\",Ref!$B$36,INDEX(Ranks!$1:$1048576,$A480,BJ$1))","v":""},{"$f":"IF($A480=\"N/A\",Ref!$B$36,INDEX(Ranks!$1:$1048576,$A480,BK$1))","v":""},{"$f":"IF($A480=\"N/A\",Ref!$B$36,INDEX(Ranks!$1:$1048576,$A480,BL$1))","v":""},{"$f":"IF($A480=\"N/A\",Ref!$B$36,INDEX(Ranks!$1:$1048576,$A480,BM$1))","v":""},{"$f":"IF($A480=\"N/A\",Ref!$B$36,INDEX(Ranks!$1:$1048576,$A480,BN$1))","v":""},{"$f":"IF($A480=\"N/A\",Ref!$B$36,INDEX(Ranks!$1:$1048576,$A480,BO$1))","v":""},{"$f":"IF($A480=\"N/A\",Ref!$B$36,INDEX(Ranks!$1:$1048576,$A480,BP$1))","v":""},{"$f":"IF($A480=\"N/A\",Ref!$B$36,INDEX(Ranks!$1:$1048576,$A480,BQ$1))","v":""},{"$f":"IF($A480=\"N/A\",Ref!$B$36,INDEX(Ranks!$1:$1048576,$A480,BR$1))","v":""},{"$f":"IF($A480=\"N/A\",Ref!$B$36,INDEX(Ranks!$1:$1048576,$A480,BS$1))","v":""},{"$f":"IF($A480=\"N/A\",Ref!$B$36,INDEX(Ranks!$1:$1048576,$A480,BT$1))","v":""},{"$f":"IF($A480=\"N/A\",Ref!$B$36,INDEX(Ranks!$1:$1048576,$A480,BU$1))","v":""},{"$f":"IF($A480=\"N/A\",Ref!$B$36,INDEX(Ranks!$1:$1048576,$A480,BV$1))","v":""},{"$f":"IF($A480=\"N/A\",Ref!$B$36,INDEX(Ranks!$1:$1048576,$A480,BW$1))","v":""},{"$f":"IF($A480=\"N/A\",Ref!$B$36,INDEX(Ranks!$1:$1048576,$A480,BX$1))","v":""},{"$f":"IF($A480=\"N/A\",Ref!$B$36,INDEX(Ranks!$1:$1048576,$A480,BY$1))","v":""},{"$f":"IF($A480=\"N/A\",Ref!$B$36,INDEX(Ranks!$1:$1048576,$A480,BZ$1))","v":""},{"$f":"IF($A480=\"N/A\",Ref!$B$36,INDEX(Ranks!$1:$1048576,$A480,CA$1))","v":""},{"$f":"IF($A480=\"N/A\",Ref!$B$36,INDEX(Ranks!$1:$1048576,$A480,CB$1))","v":""},{"$f":"IF($A480=\"N/A\",Ref!$B$36,INDEX(Ranks!$1:$1048576,$A480,CC$1))","v":""},{"$f":"IF($A480=\"N/A\",Ref!$B$36,INDEX(Ranks!$1:$1048576,$A480,CD$1))","v":""},{"$f":"IF($A480=\"N/A\",Ref!$B$36,INDEX(Ranks!$1:$1048576,$A480,CE$1))","v":""},{"$f":"IF($A480=\"N/A\",Ref!$B$36,INDEX(Ranks!$1:$1048576,$A480,CF$1))","v":""},{"$f":"IF($A480=\"N/A\",Ref!$B$36,INDEX(Ranks!$1:$1048576,$A480,CG$1))","v":""},{"$f":"IF($A480=\"N/A\",Ref!$B$36,INDEX(Ranks!$1:$1048576,$A480,CH$1))","v":""},{"$f":"IF($A480=\"N/A\",Ref!$B$36,INDEX(Ranks!$1:$1048576,$A480,CI$1))","v":""},{"$f":"IF($A480=\"N/A\",Ref!$B$36,INDEX(Ranks!$1:$1048576,$A480,CJ$1))","v":""},{"$f":"IF($A480=\"N/A\",Ref!$B$36,INDEX(Ranks!$1:$1048576,$A480,CK$1))","v":""},{"$f":"IF($A480=\"N/A\",Ref!$B$36,INDEX(Ranks!$1:$1048576,$A480,CL$1))","v":""},{"$f":"IF($A480=\"N/A\",Ref!$B$36,INDEX(Ranks!$1:$1048576,$A480,CM$1))","v":""},{"$f":"IF($A480=\"N/A\",Ref!$B$36,INDEX(Ranks!$1:$1048576,$A480,CN$1))","v":""},{"$f":"IF($A480=\"N/A\",Ref!$B$36,INDEX(Ranks!$1:$1048576,$A480,CO$1))","v":""},{"$f":"IF($A480=\"N/A\",Ref!$B$36,INDEX(Ranks!$1:$1048576,$A480,CP$1))","v":""},{"$f":"IF($A480=\"N/A\",Ref!$B$36,INDEX(Ranks!$1:$1048576,$A480,CQ$1))","v":""},{"$f":"IF($A480=\"N/A\",Ref!$B$36,INDEX(Ranks!$1:$1048576,$A480,CR$1))","v":""},{"$f":"IF($A480=\"N/A\",Ref!$B$36,INDEX(Ranks!$1:$1048576,$A480,CS$1))","v":""},{"$f":"IF($A480=\"N/A\",Ref!$B$36,INDEX(Ranks!$1:$1048576,$A480,CT$1))","v":""},{"$f":"IF($A480=\"N/A\",Ref!$B$36,INDEX(Ranks!$1:$1048576,$A480,CU$1))","v":""},{"$f":"IF($A480=\"N/A\",Ref!$B$36,INDEX(Ranks!$1:$1048576,$A480,CV$1))","v":""},{"$f":"IF($A480=\"N/A\",Ref!$B$36,INDEX(Ranks!$1:$1048576,$A480,CW$1))","v":""},{"$f":"IF($A480=\"N/A\",Ref!$B$36,INDEX(Ranks!$1:$1048576,$A480,CX$1))","v":""},{"$f":"IF($A480=\"N/A\",Ref!$B$36,INDEX(Ranks!$1:$1048576,$A480,CY$1))","v":""},{"$f":"IF($A480=\"N/A\",Ref!$B$36,INDEX(Ranks!$1:$1048576,$A480,CZ$1))","v":""},{"$f":"IF($A480=\"N/A\",Ref!$B$36,INDEX(Ranks!$1:$1048576,$A480,DA$1))","v":""},{"$f":"IF($A480=\"N/A\",Ref!$B$36,INDEX(Ranks!$1:$1048576,$A480,DB$1))","v":""},{"$f":"IF($A480=\"N/A\",Ref!$B$36,INDEX(Ranks!$1:$1048576,$A480,DC$1))","v":""},{"$f":"IF($A480=\"N/A\",Ref!$B$36,INDEX(Ranks!$1:$1048576,$A480,DD$1))","v":""},{"$f":"IF($A480=\"N/A\",Ref!$B$36,INDEX(Ranks!$1:$1048576,$A480,DE$1))","v":""},{"$f":"IF($A480=\"N/A\",Ref!$B$36,INDEX(Ranks!$1:$1048576,$A480,DF$1))","v":""},{"$f":"IF($A480=\"N/A\",Ref!$B$36,INDEX(Ranks!$1:$1048576,$A480,DG$1))","v":""},{"$f":"IF($A480=\"N/A\",Ref!$B$36,INDEX(Ranks!$1:$1048576,$A480,DH$1))","v":""},{"$f":"IF($A480=\"N/A\",Ref!$B$36,INDEX(Ranks!$1:$1048576,$A480,DI$1))","v":""},{"$f":"IF($A480=\"N/A\",Ref!$B$36,INDEX(Ranks!$1:$1048576,$A480,DJ$1))","v":""},{"$f":"IF($A480=\"N/A\",Ref!$B$36,INDEX(Ranks!$1:$1048576,$A480,DK$1))","v":""},{"$f":"IF($A480=\"N/A\",Ref!$B$36,INDEX(Ranks!$1:$1048576,$A480,DL$1))","v":""},{"$f":"IF($A480=\"N/A\",Ref!$B$36,INDEX(Ranks!$1:$1048576,$A480,DM$1))","v":""},{"$f":"IF($A480=\"N/A\",Ref!$B$36,INDEX(Ranks!$1:$1048576,$A480,DN$1))","v":""},{"$f":"IF($A480=\"N/A\",Ref!$B$36,INDEX(Ranks!$1:$1048576,$A480,DO$1))","v":""},{"$f":"IF($A480=\"N/A\",Ref!$B$36,INDEX(Ranks!$1:$1048576,$A480,DP$1))","v":""},{"$f":"IF($A480=\"N/A\",Ref!$B$36,INDEX(Ranks!$1:$1048576,$A480,DQ$1))","v":""},{"$f":"IF($A480=\"N/A\",Ref!$B$36,INDEX(Ranks!$1:$1048576,$A480,DR$1))","v":""},{"$f":"IF($A480=\"N/A\",Ref!$B$36,INDEX(Ranks!$1:$1048576,$A480,DS$1))","v":""},{"$f":"IF($A480=\"N/A\",Ref!$B$36,INDEX(Ranks!$1:$1048576,$A480,DT$1))","v":""},{"$f":"IF($A480=\"N/A\",Ref!$B$36,INDEX(Ranks!$1:$1048576,$A480,DU$1))","v":""},{"$f":"IF($A480=\"N/A\",Ref!$B$36,INDEX(Ranks!$1:$1048576,$A480,DV$1))","v":""},{"$f":"IF($A480=\"N/A\",Ref!$B$36,INDEX(Ranks!$1:$1048576,$A480,DW$1))","v":""},{"$f":"IF($A480=\"N/A\",Ref!$B$36,INDEX(Ranks!$1:$1048576,$A480,DX$1))","v":""},{"$f":"IF($A480=\"N/A\",Ref!$B$36,INDEX(Ranks!$1:$1048576,$A480,DY$1))","v":""},{"$f":"IF($A480=\"N/A\",Ref!$B$36,INDEX(Ranks!$1:$1048576,$A480,DZ$1))","v":""},{"$f":"IF($A480=\"N/A\",Ref!$B$36,INDEX(Ranks!$1:$1048576,$A480,EA$1))","v":""},{"$f":"IF($A480=\"N/A\",Ref!$B$36,INDEX(Ranks!$1:$1048576,$A480,EB$1))","v":""}]
[{"$f":"IFERROR(MATCH('Portfolio Page'!L481,Ranks!L:L,0),\"N/A\")","v":"N/A"},null,{"$f":"IF($A481=\"N/A\",\"\",INDEX(Ranks!$1:$1048576,$A481,C$1))","v":""},{"$f":"IF($A481=\"N/A\",Ref!$B$36,INDEX(Ranks!$1:$1048576,$A481,D$1))","v":""},{"$f":"IF($A481=\"N/A\",Ref!$B$36,INDEX(Ranks!$1:$1048576,$A481,E$1))","v":""},{"$f":"IF($A481=\"N/A\",\"\",INDEX(Ranks!$1:$1048576,$A481,F$1))","v":""},{"$f":"IF($A481=\"N/A\",\"\",INDEX(Ranks!$1:$1048576,$A481,G$1))","v":""},{"$f":"IF($A481=\"N/A\",\"\",INDEX(Ranks!$1:$1048576,$A481,H$1))","v":""},{"$f":"IF($A481=\"N/A\",\"\",INDEX(Ranks!$1:$1048576,$A481,I$1))","v":""},{"$f":"IF($A481=\"N/A\",\"\",INDEX(Ranks!$1:$1048576,$A481,J$1))","v":""},{"$f":"IF($A481=\"N/A\",\"\",INDEX(Ranks!$1:$1048576,$A481,K$1))","v":""},null,{"$f":"IF($A481=\"N/A\",Ref!$B$36,INDEX(Ranks!$1:$1048576,$A481,M$1))","v":""},{"$f":"IF($A481=\"N/A\",Ref!$B$36,INDEX(Ranks!$1:$1048576,$A481,N$1))","v":""},{"$f":"IF($A481=\"N/A\",Ref!$B$36,INDEX(Ranks!$1:$1048576,$A481,O$1))","v":""},{"$f":"IF($A481=\"N/A\",Ref!$B$36,INDEX(Ranks!$1:$1048576,$A481,P$1))","v":""},{"$f":"IF($A481=\"N/A\",Ref!$B$36,INDEX(Ranks!$1:$1048576,$A481,Q$1))","v":""},{"$f":"IF($A481=\"N/A\",Ref!$B$36,INDEX(Ranks!$1:$1048576,$A481,R$1))","v":""},{"$f":"IF($A481=\"N/A\",Ref!$B$36,INDEX(Ranks!$1:$1048576,$A481,S$1))","v":""},{"$f":"IF($A481=\"N/A\",Ref!$B$36,INDEX(Ranks!$1:$1048576,$A481,T$1))","v":""},{"$f":"IF($A481=\"N/A\",Ref!$B$36,INDEX(Ranks!$1:$1048576,$A481,U$1))","v":""},{"$f":"IF($A481=\"N/A\",Ref!$B$36,INDEX(Ranks!$1:$1048576,$A481,V$1))","v":""},{"$f":"IF($A481=\"N/A\",Ref!$B$36,INDEX(Ranks!$1:$1048576,$A481,W$1))","v":""},{"$f":"IF($A481=\"N/A\",Ref!$B$36,INDEX(Ranks!$1:$1048576,$A481,X$1))","v":""},{"$f":"IF($A481=\"N/A\",Ref!$B$36,INDEX(Ranks!$1:$1048576,$A481,Y$1))","v":""},{"$f":"IF($A481=\"N/A\",Ref!$B$36,INDEX(Ranks!$1:$1048576,$A481,Z$1))","v":""},{"$f":"IF($A481=\"N/A\",Ref!$B$36,INDEX(Ranks!$1:$1048576,$A481,AA$1))","v":""},{"$f":"IF($A481=\"N/A\",Ref!$B$36,INDEX(Ranks!$1:$1048576,$A481,AB$1))","v":""},{"$f":"IF($A481=\"N/A\",Ref!$B$36,INDEX(Ranks!$1:$1048576,$A481,AC$1))","v":""},{"$f":"IF($A481=\"N/A\",Ref!$B$36,INDEX(Ranks!$1:$1048576,$A481,AD$1))","v":""},{"$f":"IF($A481=\"N/A\",Ref!$B$36,INDEX(Ranks!$1:$1048576,$A481,AE$1))","v":""},{"$f":"IF($A481=\"N/A\",Ref!$B$36,INDEX(Ranks!$1:$1048576,$A481,AF$1))","v":""},{"$f":"IF($A481=\"N/A\",Ref!$B$36,INDEX(Ranks!$1:$1048576,$A481,AG$1))","v":""},{"$f":"IF($A481=\"N/A\",Ref!$B$36,INDEX(Ranks!$1:$1048576,$A481,AH$1))","v":""},{"$f":"IF($A481=\"N/A\",Ref!$B$36,INDEX(Ranks!$1:$1048576,$A481,AI$1))","v":""},{"$f":"IF($A481=\"N/A\",Ref!$B$36,INDEX(Ranks!$1:$1048576,$A481,AJ$1))","v":""},{"$f":"IF($A481=\"N/A\",Ref!$B$36,INDEX(Ranks!$1:$1048576,$A481,AK$1))","v":""},{"$f":"IF($A481=\"N/A\",Ref!$B$36,INDEX(Ranks!$1:$1048576,$A481,AL$1))","v":""},{"$f":"IF($A481=\"N/A\",Ref!$B$36,INDEX(Ranks!$1:$1048576,$A481,AM$1))","v":""},{"$f":"IF($A481=\"N/A\",Ref!$B$36,INDEX(Ranks!$1:$1048576,$A481,AN$1))","v":""},{"$f":"IF($A481=\"N/A\",Ref!$B$36,INDEX(Ranks!$1:$1048576,$A481,AO$1))","v":""},{"$f":"IF($A481=\"N/A\",Ref!$B$36,INDEX(Ranks!$1:$1048576,$A481,AP$1))","v":""},{"$f":"IF($A481=\"N/A\",Ref!$B$36,INDEX(Ranks!$1:$1048576,$A481,AQ$1))","v":""},{"$f":"IF($A481=\"N/A\",Ref!$B$36,INDEX(Ranks!$1:$1048576,$A481,AR$1))","v":""},{"$f":"IF($A481=\"N/A\",Ref!$B$36,INDEX(Ranks!$1:$1048576,$A481,AS$1))","v":""},{"$f":"IF($A481=\"N/A\",Ref!$B$36,INDEX(Ranks!$1:$1048576,$A481,AT$1))","v":""},{"$f":"IF($A481=\"N/A\",Ref!$B$36,INDEX(Ranks!$1:$1048576,$A481,AU$1))","v":""},{"$f":"IF($A481=\"N/A\",Ref!$B$36,INDEX(Ranks!$1:$1048576,$A481,AV$1))","v":""},{"$f":"IF($A481=\"N/A\",Ref!$B$36,INDEX(Ranks!$1:$1048576,$A481,AW$1))","v":""},{"$f":"IF($A481=\"N/A\",Ref!$B$36,INDEX(Ranks!$1:$1048576,$A481,AX$1))","v":""},{"$f":"IF($A481=\"N/A\",Ref!$B$36,INDEX(Ranks!$1:$1048576,$A481,AY$1))","v":""},{"$f":"IF($A481=\"N/A\",Ref!$B$36,INDEX(Ranks!$1:$1048576,$A481,AZ$1))","v":""},{"$f":"IF($A481=\"N/A\",Ref!$B$36,INDEX(Ranks!$1:$1048576,$A481,BA$1))","v":""},{"$f":"IF($A481=\"N/A\",Ref!$B$36,INDEX(Ranks!$1:$1048576,$A481,BB$1))","v":""},{"$f":"IF($A481=\"N/A\",Ref!$B$36,INDEX(Ranks!$1:$1048576,$A481,BC$1))","v":""},{"$f":"IF($A481=\"N/A\",Ref!$B$36,INDEX(Ranks!$1:$1048576,$A481,BD$1))","v":""},{"$f":"IF($A481=\"N/A\",Ref!$B$36,INDEX(Ranks!$1:$1048576,$A481,BE$1))","v":""},{"$f":"IF($A481=\"N/A\",Ref!$B$36,INDEX(Ranks!$1:$1048576,$A481,BF$1))","v":""},{"$f":"IF($A481=\"N/A\",Ref!$B$36,INDEX(Ranks!$1:$1048576,$A481,BG$1))","v":""},{"$f":"IF($A481=\"N/A\",Ref!$B$36,INDEX(Ranks!$1:$1048576,$A481,BH$1))","v":""},{"$f":"IF($A481=\"N/A\",Ref!$B$36,INDEX(Ranks!$1:$1048576,$A481,BI$1))","v":""},{"$f":"IF($A481=\"N/A\",Ref!$B$36,INDEX(Ranks!$1:$1048576,$A481,BJ$1))","v":""},{"$f":"IF($A481=\"N/A\",Ref!$B$36,INDEX(Ranks!$1:$1048576,$A481,BK$1))","v":""},{"$f":"IF($A481=\"N/A\",Ref!$B$36,INDEX(Ranks!$1:$1048576,$A481,BL$1))","v":""},{"$f":"IF($A481=\"N/A\",Ref!$B$36,INDEX(Ranks!$1:$1048576,$A481,BM$1))","v":""},{"$f":"IF($A481=\"N/A\",Ref!$B$36,INDEX(Ranks!$1:$1048576,$A481,BN$1))","v":""},{"$f":"IF($A481=\"N/A\",Ref!$B$36,INDEX(Ranks!$1:$1048576,$A481,BO$1))","v":""},{"$f":"IF($A481=\"N/A\",Ref!$B$36,INDEX(Ranks!$1:$1048576,$A481,BP$1))","v":""},{"$f":"IF($A481=\"N/A\",Ref!$B$36,INDEX(Ranks!$1:$1048576,$A481,BQ$1))","v":""},{"$f":"IF($A481=\"N/A\",Ref!$B$36,INDEX(Ranks!$1:$1048576,$A481,BR$1))","v":""},{"$f":"IF($A481=\"N/A\",Ref!$B$36,INDEX(Ranks!$1:$1048576,$A481,BS$1))","v":""},{"$f":"IF($A481=\"N/A\",Ref!$B$36,INDEX(Ranks!$1:$1048576,$A481,BT$1))","v":""},{"$f":"IF($A481=\"N/A\",Ref!$B$36,INDEX(Ranks!$1:$1048576,$A481,BU$1))","v":""},{"$f":"IF($A481=\"N/A\",Ref!$B$36,INDEX(Ranks!$1:$1048576,$A481,BV$1))","v":""},{"$f":"IF($A481=\"N/A\",Ref!$B$36,INDEX(Ranks!$1:$1048576,$A481,BW$1))","v":""},{"$f":"IF($A481=\"N/A\",Ref!$B$36,INDEX(Ranks!$1:$1048576,$A481,BX$1))","v":""},{"$f":"IF($A481=\"N/A\",Ref!$B$36,INDEX(Ranks!$1:$1048576,$A481,BY$1))","v":""},{"$f":"IF($A481=\"N/A\",Ref!$B$36,INDEX(Ranks!$1:$1048576,$A481,BZ$1))","v":""},{"$f":"IF($A481=\"N/A\",Ref!$B$36,INDEX(Ranks!$1:$1048576,$A481,CA$1))","v":""},{"$f":"IF($A481=\"N/A\",Ref!$B$36,INDEX(Ranks!$1:$1048576,$A481,CB$1))","v":""},{"$f":"IF($A481=\"N/A\",Ref!$B$36,INDEX(Ranks!$1:$1048576,$A481,CC$1))","v":""},{"$f":"IF($A481=\"N/A\",Ref!$B$36,INDEX(Ranks!$1:$1048576,$A481,CD$1))","v":""},{"$f":"IF($A481=\"N/A\",Ref!$B$36,INDEX(Ranks!$1:$1048576,$A481,CE$1))","v":""},{"$f":"IF($A481=\"N/A\",Ref!$B$36,INDEX(Ranks!$1:$1048576,$A481,CF$1))","v":""},{"$f":"IF($A481=\"N/A\",Ref!$B$36,INDEX(Ranks!$1:$1048576,$A481,CG$1))","v":""},{"$f":"IF($A481=\"N/A\",Ref!$B$36,INDEX(Ranks!$1:$1048576,$A481,CH$1))","v":""},{"$f":"IF($A481=\"N/A\",Ref!$B$36,INDEX(Ranks!$1:$1048576,$A481,CI$1))","v":""},{"$f":"IF($A481=\"N/A\",Ref!$B$36,INDEX(Ranks!$1:$1048576,$A481,CJ$1))","v":""},{"$f":"IF($A481=\"N/A\",Ref!$B$36,INDEX(Ranks!$1:$1048576,$A481,CK$1))","v":""},{"$f":"IF($A481=\"N/A\",Ref!$B$36,INDEX(Ranks!$1:$1048576,$A481,CL$1))","v":""},{"$f":"IF($A481=\"N/A\",Ref!$B$36,INDEX(Ranks!$1:$1048576,$A481,CM$1))","v":""},{"$f":"IF($A481=\"N/A\",Ref!$B$36,INDEX(Ranks!$1:$1048576,$A481,CN$1))","v":""},{"$f":"IF($A481=\"N/A\",Ref!$B$36,INDEX(Ranks!$1:$1048576,$A481,CO$1))","v":""},{"$f":"IF($A481=\"N/A\",Ref!$B$36,INDEX(Ranks!$1:$1048576,$A481,CP$1))","v":""},{"$f":"IF($A481=\"N/A\",Ref!$B$36,INDEX(Ranks!$1:$1048576,$A481,CQ$1))","v":""},{"$f":"IF($A481=\"N/A\",Ref!$B$36,INDEX(Ranks!$1:$1048576,$A481,CR$1))","v":""},{"$f":"IF($A481=\"N/A\",Ref!$B$36,INDEX(Ranks!$1:$1048576,$A481,CS$1))","v":""},{"$f":"IF($A481=\"N/A\",Ref!$B$36,INDEX(Ranks!$1:$1048576,$A481,CT$1))","v":""},{"$f":"IF($A481=\"N/A\",Ref!$B$36,INDEX(Ranks!$1:$1048576,$A481,CU$1))","v":""},{"$f":"IF($A481=\"N/A\",Ref!$B$36,INDEX(Ranks!$1:$1048576,$A481,CV$1))","v":""},{"$f":"IF($A481=\"N/A\",Ref!$B$36,INDEX(Ranks!$1:$1048576,$A481,CW$1))","v":""},{"$f":"IF($A481=\"N/A\",Ref!$B$36,INDEX(Ranks!$1:$1048576,$A481,CX$1))","v":""},{"$f":"IF($A481=\"N/A\",Ref!$B$36,INDEX(Ranks!$1:$1048576,$A481,CY$1))","v":""},{"$f":"IF($A481=\"N/A\",Ref!$B$36,INDEX(Ranks!$1:$1048576,$A481,CZ$1))","v":""},{"$f":"IF($A481=\"N/A\",Ref!$B$36,INDEX(Ranks!$1:$1048576,$A481,DA$1))","v":""},{"$f":"IF($A481=\"N/A\",Ref!$B$36,INDEX(Ranks!$1:$1048576,$A481,DB$1))","v":""},{"$f":"IF($A481=\"N/A\",Ref!$B$36,INDEX(Ranks!$1:$1048576,$A481,DC$1))","v":""},{"$f":"IF($A481=\"N/A\",Ref!$B$36,INDEX(Ranks!$1:$1048576,$A481,DD$1))","v":""},{"$f":"IF($A481=\"N/A\",Ref!$B$36,INDEX(Ranks!$1:$1048576,$A481,DE$1))","v":""},{"$f":"IF($A481=\"N/A\",Ref!$B$36,INDEX(Ranks!$1:$1048576,$A481,DF$1))","v":""},{"$f":"IF($A481=\"N/A\",Ref!$B$36,INDEX(Ranks!$1:$1048576,$A481,DG$1))","v":""},{"$f":"IF($A481=\"N/A\",Ref!$B$36,INDEX(Ranks!$1:$1048576,$A481,DH$1))","v":""},{"$f":"IF($A481=\"N/A\",Ref!$B$36,INDEX(Ranks!$1:$1048576,$A481,DI$1))","v":""},{"$f":"IF($A481=\"N/A\",Ref!$B$36,INDEX(Ranks!$1:$1048576,$A481,DJ$1))","v":""},{"$f":"IF($A481=\"N/A\",Ref!$B$36,INDEX(Ranks!$1:$1048576,$A481,DK$1))","v":""},{"$f":"IF($A481=\"N/A\",Ref!$B$36,INDEX(Ranks!$1:$1048576,$A481,DL$1))","v":""},{"$f":"IF($A481=\"N/A\",Ref!$B$36,INDEX(Ranks!$1:$1048576,$A481,DM$1))","v":""},{"$f":"IF($A481=\"N/A\",Ref!$B$36,INDEX(Ranks!$1:$1048576,$A481,DN$1))","v":""},{"$f":"IF($A481=\"N/A\",Ref!$B$36,INDEX(Ranks!$1:$1048576,$A481,DO$1))","v":""},{"$f":"IF($A481=\"N/A\",Ref!$B$36,INDEX(Ranks!$1:$1048576,$A481,DP$1))","v":""},{"$f":"IF($A481=\"N/A\",Ref!$B$36,INDEX(Ranks!$1:$1048576,$A481,DQ$1))","v":""},{"$f":"IF($A481=\"N/A\",Ref!$B$36,INDEX(Ranks!$1:$1048576,$A481,DR$1))","v":""},{"$f":"IF($A481=\"N/A\",Ref!$B$36,INDEX(Ranks!$1:$1048576,$A481,DS$1))","v":""},{"$f":"IF($A481=\"N/A\",Ref!$B$36,INDEX(Ranks!$1:$1048576,$A481,DT$1))","v":""},{"$f":"IF($A481=\"N/A\",Ref!$B$36,INDEX(Ranks!$1:$1048576,$A481,DU$1))","v":""},{"$f":"IF($A481=\"N/A\",Ref!$B$36,INDEX(Ranks!$1:$1048576,$A481,DV$1))","v":""},{"$f":"IF($A481=\"N/A\",Ref!$B$36,INDEX(Ranks!$1:$1048576,$A481,DW$1))","v":""},{"$f":"IF($A481=\"N/A\",Ref!$B$36,INDEX(Ranks!$1:$1048576,$A481,DX$1))","v":""},{"$f":"IF($A481=\"N/A\",Ref!$B$36,INDEX(Ranks!$1:$1048576,$A481,DY$1))","v":""},{"$f":"IF($A481=\"N/A\",Ref!$B$36,INDEX(Ranks!$1:$1048576,$A481,DZ$1))","v":""},{"$f":"IF($A481=\"N/A\",Ref!$B$36,INDEX(Ranks!$1:$1048576,$A481,EA$1))","v":""},{"$f":"IF($A481=\"N/A\",Ref!$B$36,INDEX(Ranks!$1:$1048576,$A481,EB$1))","v":""}]
[{"$f":"IFERROR(MATCH('Portfolio Page'!L482,Ranks!L:L,0),\"N/A\")","v":"N/A"},null,{"$f":"IF($A482=\"N/A\",\"\",INDEX(Ranks!$1:$1048576,$A482,C$1))","v":""},{"$f":"IF($A482=\"N/A\",Ref!$B$36,INDEX(Ranks!$1:$1048576,$A482,D$1))","v":""},{"$f":"IF($A482=\"N/A\",Ref!$B$36,INDEX(Ranks!$1:$1048576,$A482,E$1))","v":""},{"$f":"IF($A482=\"N/A\",\"\",INDEX(Ranks!$1:$1048576,$A482,F$1))","v":""},{"$f":"IF($A482=\"N/A\",\"\",INDEX(Ranks!$1:$1048576,$A482,G$1))","v":""},{"$f":"IF($A482=\"N/A\",\"\",INDEX(Ranks!$1:$1048576,$A482,H$1))","v":""},{"$f":"IF($A482=\"N/A\",\"\",INDEX(Ranks!$1:$1048576,$A482,I$1))","v":""},{"$f":"IF($A482=\"N/A\",\"\",INDEX(Ranks!$1:$1048576,$A482,J$1))","v":""},{"$f":"IF($A482=\"N/A\",\"\",INDEX(Ranks!$1:$1048576,$A482,K$1))","v":""},null,{"$f":"IF($A482=\"N/A\",Ref!$B$36,INDEX(Ranks!$1:$1048576,$A482,M$1))","v":""},{"$f":"IF($A482=\"N/A\",Ref!$B$36,INDEX(Ranks!$1:$1048576,$A482,N$1))","v":""},{"$f":"IF($A482=\"N/A\",Ref!$B$36,INDEX(Ranks!$1:$1048576,$A482,O$1))","v":""},{"$f":"IF($A482=\"N/A\",Ref!$B$36,INDEX(Ranks!$1:$1048576,$A482,P$1))","v":""},{"$f":"IF($A482=\"N/A\",Ref!$B$36,INDEX(Ranks!$1:$1048576,$A482,Q$1))","v":""},{"$f":"IF($A482=\"N/A\",Ref!$B$36,INDEX(Ranks!$1:$1048576,$A482,R$1))","v":""},{"$f":"IF($A482=\"N/A\",Ref!$B$36,INDEX(Ranks!$1:$1048576,$A482,S$1))","v":""},{"$f":"IF($A482=\"N/A\",Ref!$B$36,INDEX(Ranks!$1:$1048576,$A482,T$1))","v":""},{"$f":"IF($A482=\"N/A\",Ref!$B$36,INDEX(Ranks!$1:$1048576,$A482,U$1))","v":""},{"$f":"IF($A482=\"N/A\",Ref!$B$36,INDEX(Ranks!$1:$1048576,$A482,V$1))","v":""},{"$f":"IF($A482=\"N/A\",Ref!$B$36,INDEX(Ranks!$1:$1048576,$A482,W$1))","v":""},{"$f":"IF($A482=\"N/A\",Ref!$B$36,INDEX(Ranks!$1:$1048576,$A482,X$1))","v":""},{"$f":"IF($A482=\"N/A\",Ref!$B$36,INDEX(Ranks!$1:$1048576,$A482,Y$1))","v":""},{"$f":"IF($A482=\"N/A\",Ref!$B$36,INDEX(Ranks!$1:$1048576,$A482,Z$1))","v":""},{"$f":"IF($A482=\"N/A\",Ref!$B$36,INDEX(Ranks!$1:$1048576,$A482,AA$1))","v":""},{"$f":"IF($A482=\"N/A\",Ref!$B$36,INDEX(Ranks!$1:$1048576,$A482,AB$1))","v":""},{"$f":"IF($A482=\"N/A\",Ref!$B$36,INDEX(Ranks!$1:$1048576,$A482,AC$1))","v":""},{"$f":"IF($A482=\"N/A\",Ref!$B$36,INDEX(Ranks!$1:$1048576,$A482,AD$1))","v":""},{"$f":"IF($A482=\"N/A\",Ref!$B$36,INDEX(Ranks!$1:$1048576,$A482,AE$1))","v":""},{"$f":"IF($A482=\"N/A\",Ref!$B$36,INDEX(Ranks!$1:$1048576,$A482,AF$1))","v":""},{"$f":"IF($A482=\"N/A\",Ref!$B$36,INDEX(Ranks!$1:$1048576,$A482,AG$1))","v":""},{"$f":"IF($A482=\"N/A\",Ref!$B$36,INDEX(Ranks!$1:$1048576,$A482,AH$1))","v":""},{"$f":"IF($A482=\"N/A\",Ref!$B$36,INDEX(Ranks!$1:$1048576,$A482,AI$1))","v":""},{"$f":"IF($A482=\"N/A\",Ref!$B$36,INDEX(Ranks!$1:$1048576,$A482,AJ$1))","v":""},{"$f":"IF($A482=\"N/A\",Ref!$B$36,INDEX(Ranks!$1:$1048576,$A482,AK$1))","v":""},{"$f":"IF($A482=\"N/A\",Ref!$B$36,INDEX(Ranks!$1:$1048576,$A482,AL$1))","v":""},{"$f":"IF($A482=\"N/A\",Ref!$B$36,INDEX(Ranks!$1:$1048576,$A482,AM$1))","v":""},{"$f":"IF($A482=\"N/A\",Ref!$B$36,INDEX(Ranks!$1:$1048576,$A482,AN$1))","v":""},{"$f":"IF($A482=\"N/A\",Ref!$B$36,INDEX(Ranks!$1:$1048576,$A482,AO$1))","v":""},{"$f":"IF($A482=\"N/A\",Ref!$B$36,INDEX(Ranks!$1:$1048576,$A482,AP$1))","v":""},{"$f":"IF($A482=\"N/A\",Ref!$B$36,INDEX(Ranks!$1:$1048576,$A482,AQ$1))","v":""},{"$f":"IF($A482=\"N/A\",Ref!$B$36,INDEX(Ranks!$1:$1048576,$A482,AR$1))","v":""},{"$f":"IF($A482=\"N/A\",Ref!$B$36,INDEX(Ranks!$1:$1048576,$A482,AS$1))","v":""},{"$f":"IF($A482=\"N/A\",Ref!$B$36,INDEX(Ranks!$1:$1048576,$A482,AT$1))","v":""},{"$f":"IF($A482=\"N/A\",Ref!$B$36,INDEX(Ranks!$1:$1048576,$A482,AU$1))","v":""},{"$f":"IF($A482=\"N/A\",Ref!$B$36,INDEX(Ranks!$1:$1048576,$A482,AV$1))","v":""},{"$f":"IF($A482=\"N/A\",Ref!$B$36,INDEX(Ranks!$1:$1048576,$A482,AW$1))","v":""},{"$f":"IF($A482=\"N/A\",Ref!$B$36,INDEX(Ranks!$1:$1048576,$A482,AX$1))","v":""},{"$f":"IF($A482=\"N/A\",Ref!$B$36,INDEX(Ranks!$1:$1048576,$A482,AY$1))","v":""},{"$f":"IF($A482=\"N/A\",Ref!$B$36,INDEX(Ranks!$1:$1048576,$A482,AZ$1))","v":""},{"$f":"IF($A482=\"N/A\",Ref!$B$36,INDEX(Ranks!$1:$1048576,$A482,BA$1))","v":""},{"$f":"IF($A482=\"N/A\",Ref!$B$36,INDEX(Ranks!$1:$1048576,$A482,BB$1))","v":""},{"$f":"IF($A482=\"N/A\",Ref!$B$36,INDEX(Ranks!$1:$1048576,$A482,BC$1))","v":""},{"$f":"IF($A482=\"N/A\",Ref!$B$36,INDEX(Ranks!$1:$1048576,$A482,BD$1))","v":""},{"$f":"IF($A482=\"N/A\",Ref!$B$36,INDEX(Ranks!$1:$1048576,$A482,BE$1))","v":""},{"$f":"IF($A482=\"N/A\",Ref!$B$36,INDEX(Ranks!$1:$1048576,$A482,BF$1))","v":""},{"$f":"IF($A482=\"N/A\",Ref!$B$36,INDEX(Ranks!$1:$1048576,$A482,BG$1))","v":""},{"$f":"IF($A482=\"N/A\",Ref!$B$36,INDEX(Ranks!$1:$1048576,$A482,BH$1))","v":""},{"$f":"IF($A482=\"N/A\",Ref!$B$36,INDEX(Ranks!$1:$1048576,$A482,BI$1))","v":""},{"$f":"IF($A482=\"N/A\",Ref!$B$36,INDEX(Ranks!$1:$1048576,$A482,BJ$1))","v":""},{"$f":"IF($A482=\"N/A\",Ref!$B$36,INDEX(Ranks!$1:$1048576,$A482,BK$1))","v":""},{"$f":"IF($A482=\"N/A\",Ref!$B$36,INDEX(Ranks!$1:$1048576,$A482,BL$1))","v":""},{"$f":"IF($A482=\"N/A\",Ref!$B$36,INDEX(Ranks!$1:$1048576,$A482,BM$1))","v":""},{"$f":"IF($A482=\"N/A\",Ref!$B$36,INDEX(Ranks!$1:$1048576,$A482,BN$1))","v":""},{"$f":"IF($A482=\"N/A\",Ref!$B$36,INDEX(Ranks!$1:$1048576,$A482,BO$1))","v":""},{"$f":"IF($A482=\"N/A\",Ref!$B$36,INDEX(Ranks!$1:$1048576,$A482,BP$1))","v":""},{"$f":"IF($A482=\"N/A\",Ref!$B$36,INDEX(Ranks!$1:$1048576,$A482,BQ$1))","v":""},{"$f":"IF($A482=\"N/A\",Ref!$B$36,INDEX(Ranks!$1:$1048576,$A482,BR$1))","v":""},{"$f":"IF($A482=\"N/A\",Ref!$B$36,INDEX(Ranks!$1:$1048576,$A482,BS$1))","v":""},{"$f":"IF($A482=\"N/A\",Ref!$B$36,INDEX(Ranks!$1:$1048576,$A482,BT$1))","v":""},{"$f":"IF($A482=\"N/A\",Ref!$B$36,INDEX(Ranks!$1:$1048576,$A482,BU$1))","v":""},{"$f":"IF($A482=\"N/A\",Ref!$B$36,INDEX(Ranks!$1:$1048576,$A482,BV$1))","v":""},{"$f":"IF($A482=\"N/A\",Ref!$B$36,INDEX(Ranks!$1:$1048576,$A482,BW$1))","v":""},{"$f":"IF($A482=\"N/A\",Ref!$B$36,INDEX(Ranks!$1:$1048576,$A482,BX$1))","v":""},{"$f":"IF($A482=\"N/A\",Ref!$B$36,INDEX(Ranks!$1:$1048576,$A482,BY$1))","v":""},{"$f":"IF($A482=\"N/A\",Ref!$B$36,INDEX(Ranks!$1:$1048576,$A482,BZ$1))","v":""},{"$f":"IF($A482=\"N/A\",Ref!$B$36,INDEX(Ranks!$1:$1048576,$A482,CA$1))","v":""},{"$f":"IF($A482=\"N/A\",Ref!$B$36,INDEX(Ranks!$1:$1048576,$A482,CB$1))","v":""},{"$f":"IF($A482=\"N/A\",Ref!$B$36,INDEX(Ranks!$1:$1048576,$A482,CC$1))","v":""},{"$f":"IF($A482=\"N/A\",Ref!$B$36,INDEX(Ranks!$1:$1048576,$A482,CD$1))","v":""},{"$f":"IF($A482=\"N/A\",Ref!$B$36,INDEX(Ranks!$1:$1048576,$A482,CE$1))","v":""},{"$f":"IF($A482=\"N/A\",Ref!$B$36,INDEX(Ranks!$1:$1048576,$A482,CF$1))","v":""},{"$f":"IF($A482=\"N/A\",Ref!$B$36,INDEX(Ranks!$1:$1048576,$A482,CG$1))","v":""},{"$f":"IF($A482=\"N/A\",Ref!$B$36,INDEX(Ranks!$1:$1048576,$A482,CH$1))","v":""},{"$f":"IF($A482=\"N/A\",Ref!$B$36,INDEX(Ranks!$1:$1048576,$A482,CI$1))","v":""},{"$f":"IF($A482=\"N/A\",Ref!$B$36,INDEX(Ranks!$1:$1048576,$A482,CJ$1))","v":""},{"$f":"IF($A482=\"N/A\",Ref!$B$36,INDEX(Ranks!$1:$1048576,$A482,CK$1))","v":""},{"$f":"IF($A482=\"N/A\",Ref!$B$36,INDEX(Ranks!$1:$1048576,$A482,CL$1))","v":""},{"$f":"IF($A482=\"N/A\",Ref!$B$36,INDEX(Ranks!$1:$1048576,$A482,CM$1))","v":""},{"$f":"IF($A482=\"N/A\",Ref!$B$36,INDEX(Ranks!$1:$1048576,$A482,CN$1))","v":""},{"$f":"IF($A482=\"N/A\",Ref!$B$36,INDEX(Ranks!$1:$1048576,$A482,CO$1))","v":""},{"$f":"IF($A482=\"N/A\",Ref!$B$36,INDEX(Ranks!$1:$1048576,$A482,CP$1))","v":""},{"$f":"IF($A482=\"N/A\",Ref!$B$36,INDEX(Ranks!$1:$1048576,$A482,CQ$1))","v":""},{"$f":"IF($A482=\"N/A\",Ref!$B$36,INDEX(Ranks!$1:$1048576,$A482,CR$1))","v":""},{"$f":"IF($A482=\"N/A\",Ref!$B$36,INDEX(Ranks!$1:$1048576,$A482,CS$1))","v":""},{"$f":"IF($A482=\"N/A\",Ref!$B$36,INDEX(Ranks!$1:$1048576,$A482,CT$1))","v":""},{"$f":"IF($A482=\"N/A\",Ref!$B$36,INDEX(Ranks!$1:$1048576,$A482,CU$1))","v":""},{"$f":"IF($A482=\"N/A\",Ref!$B$36,INDEX(Ranks!$1:$1048576,$A482,CV$1))","v":""},{"$f":"IF($A482=\"N/A\",Ref!$B$36,INDEX(Ranks!$1:$1048576,$A482,CW$1))","v":""},{"$f":"IF($A482=\"N/A\",Ref!$B$36,INDEX(Ranks!$1:$1048576,$A482,CX$1))","v":""},{"$f":"IF($A482=\"N/A\",Ref!$B$36,INDEX(Ranks!$1:$1048576,$A482,CY$1))","v":""},{"$f":"IF($A482=\"N/A\",Ref!$B$36,INDEX(Ranks!$1:$1048576,$A482,CZ$1))","v":""},{"$f":"IF($A482=\"N/A\",Ref!$B$36,INDEX(Ranks!$1:$1048576,$A482,DA$1))","v":""},{"$f":"IF($A482=\"N/A\",Ref!$B$36,INDEX(Ranks!$1:$1048576,$A482,DB$1))","v":""},{"$f":"IF($A482=\"N/A\",Ref!$B$36,INDEX(Ranks!$1:$1048576,$A482,DC$1))","v":""},{"$f":"IF($A482=\"N/A\",Ref!$B$36,INDEX(Ranks!$1:$1048576,$A482,DD$1))","v":""},{"$f":"IF($A482=\"N/A\",Ref!$B$36,INDEX(Ranks!$1:$1048576,$A482,DE$1))","v":""},{"$f":"IF($A482=\"N/A\",Ref!$B$36,INDEX(Ranks!$1:$1048576,$A482,DF$1))","v":""},{"$f":"IF($A482=\"N/A\",Ref!$B$36,INDEX(Ranks!$1:$1048576,$A482,DG$1))","v":""},{"$f":"IF($A482=\"N/A\",Ref!$B$36,INDEX(Ranks!$1:$1048576,$A482,DH$1))","v":""},{"$f":"IF($A482=\"N/A\",Ref!$B$36,INDEX(Ranks!$1:$1048576,$A482,DI$1))","v":""},{"$f":"IF($A482=\"N/A\",Ref!$B$36,INDEX(Ranks!$1:$1048576,$A482,DJ$1))","v":""},{"$f":"IF($A482=\"N/A\",Ref!$B$36,INDEX(Ranks!$1:$1048576,$A482,DK$1))","v":""},{"$f":"IF($A482=\"N/A\",Ref!$B$36,INDEX(Ranks!$1:$1048576,$A482,DL$1))","v":""},{"$f":"IF($A482=\"N/A\",Ref!$B$36,INDEX(Ranks!$1:$1048576,$A482,DM$1))","v":""},{"$f":"IF($A482=\"N/A\",Ref!$B$36,INDEX(Ranks!$1:$1048576,$A482,DN$1))","v":""},{"$f":"IF($A482=\"N/A\",Ref!$B$36,INDEX(Ranks!$1:$1048576,$A482,DO$1))","v":""},{"$f":"IF($A482=\"N/A\",Ref!$B$36,INDEX(Ranks!$1:$1048576,$A482,DP$1))","v":""},{"$f":"IF($A482=\"N/A\",Ref!$B$36,INDEX(Ranks!$1:$1048576,$A482,DQ$1))","v":""},{"$f":"IF($A482=\"N/A\",Ref!$B$36,INDEX(Ranks!$1:$1048576,$A482,DR$1))","v":""},{"$f":"IF($A482=\"N/A\",Ref!$B$36,INDEX(Ranks!$1:$1048576,$A482,DS$1))","v":""},{"$f":"IF($A482=\"N/A\",Ref!$B$36,INDEX(Ranks!$1:$1048576,$A482,DT$1))","v":""},{"$f":"IF($A482=\"N/A\",Ref!$B$36,INDEX(Ranks!$1:$1048576,$A482,DU$1))","v":""},{"$f":"IF($A482=\"N/A\",Ref!$B$36,INDEX(Ranks!$1:$1048576,$A482,DV$1))","v":""},{"$f":"IF($A482=\"N/A\",Ref!$B$36,INDEX(Ranks!$1:$1048576,$A482,DW$1))","v":""},{"$f":"IF($A482=\"N/A\",Ref!$B$36,INDEX(Ranks!$1:$1048576,$A482,DX$1))","v":""},{"$f":"IF($A482=\"N/A\",Ref!$B$36,INDEX(Ranks!$1:$1048576,$A482,DY$1))","v":""},{"$f":"IF($A482=\"N/A\",Ref!$B$36,INDEX(Ranks!$1:$1048576,$A482,DZ$1))","v":""},{"$f":"IF($A482=\"N/A\",Ref!$B$36,INDEX(Ranks!$1:$1048576,$A482,EA$1))","v":""},{"$f":"IF($A482=\"N/A\",Ref!$B$36,INDEX(Ranks!$1:$1048576,$A482,EB$1))","v":""}]
[{"$f":"IFERROR(MATCH('Portfolio Page'!L483,Ranks!L:L,0),\"N/A\")","v":"N/A"},null,{"$f":"IF($A483=\"N/A\",\"\",INDEX(Ranks!$1:$1048576,$A483,C$1))","v":""},{"$f":"IF($A483=\"N/A\",Ref!$B$36,INDEX(Ranks!$1:$1048576,$A483,D$1))","v":""},{"$f":"IF($A483=\"N/A\",Ref!$B$36,INDEX(Ranks!$1:$1048576,$A483,E$1))","v":""},{"$f":"IF($A483=\"N/A\",\"\",INDEX(Ranks!$1:$1048576,$A483,F$1))","v":""},{"$f":"IF($A483=\"N/A\",\"\",INDEX(Ranks!$1:$1048576,$A483,G$1))","v":""},{"$f":"IF($A483=\"N/A\",\"\",INDEX(Ranks!$1:$1048576,$A483,H$1))","v":""},{"$f":"IF($A483=\"N/A\",\"\",INDEX(Ranks!$1:$1048576,$A483,I$1))","v":""},{"$f":"IF($A483=\"N/A\",\"\",INDEX(Ranks!$1:$1048576,$A483,J$1))","v":""},{"$f":"IF($A483=\"N/A\",\"\",INDEX(Ranks!$1:$1048576,$A483,K$1))","v":""},null,{"$f":"IF($A483=\"N/A\",Ref!$B$36,INDEX(Ranks!$1:$1048576,$A483,M$1))","v":""},{"$f":"IF($A483=\"N/A\",Ref!$B$36,INDEX(Ranks!$1:$1048576,$A483,N$1))","v":""},{"$f":"IF($A483=\"N/A\",Ref!$B$36,INDEX(Ranks!$1:$1048576,$A483,O$1))","v":""},{"$f":"IF($A483=\"N/A\",Ref!$B$36,INDEX(Ranks!$1:$1048576,$A483,P$1))","v":""},{"$f":"IF($A483=\"N/A\",Ref!$B$36,INDEX(Ranks!$1:$1048576,$A483,Q$1))","v":""},{"$f":"IF($A483=\"N/A\",Ref!$B$36,INDEX(Ranks!$1:$1048576,$A483,R$1))","v":""},{"$f":"IF($A483=\"N/A\",Ref!$B$36,INDEX(Ranks!$1:$1048576,$A483,S$1))","v":""},{"$f":"IF($A483=\"N/A\",Ref!$B$36,INDEX(Ranks!$1:$1048576,$A483,T$1))","v":""},{"$f":"IF($A483=\"N/A\",Ref!$B$36,INDEX(Ranks!$1:$1048576,$A483,U$1))","v":""},{"$f":"IF($A483=\"N/A\",Ref!$B$36,INDEX(Ranks!$1:$1048576,$A483,V$1))","v":""},{"$f":"IF($A483=\"N/A\",Ref!$B$36,INDEX(Ranks!$1:$1048576,$A483,W$1))","v":""},{"$f":"IF($A483=\"N/A\",Ref!$B$36,INDEX(Ranks!$1:$1048576,$A483,X$1))","v":""},{"$f":"IF($A483=\"N/A\",Ref!$B$36,INDEX(Ranks!$1:$1048576,$A483,Y$1))","v":""},{"$f":"IF($A483=\"N/A\",Ref!$B$36,INDEX(Ranks!$1:$1048576,$A483,Z$1))","v":""},{"$f":"IF($A483=\"N/A\",Ref!$B$36,INDEX(Ranks!$1:$1048576,$A483,AA$1))","v":""},{"$f":"IF($A483=\"N/A\",Ref!$B$36,INDEX(Ranks!$1:$1048576,$A483,AB$1))","v":""},{"$f":"IF($A483=\"N/A\",Ref!$B$36,INDEX(Ranks!$1:$1048576,$A483,AC$1))","v":""},{"$f":"IF($A483=\"N/A\",Ref!$B$36,INDEX(Ranks!$1:$1048576,$A483,AD$1))","v":""},{"$f":"IF($A483=\"N/A\",Ref!$B$36,INDEX(Ranks!$1:$1048576,$A483,AE$1))","v":""},{"$f":"IF($A483=\"N/A\",Ref!$B$36,INDEX(Ranks!$1:$1048576,$A483,AF$1))","v":""},{"$f":"IF($A483=\"N/A\",Ref!$B$36,INDEX(Ranks!$1:$1048576,$A483,AG$1))","v":""},{"$f":"IF($A483=\"N/A\",Ref!$B$36,INDEX(Ranks!$1:$1048576,$A483,AH$1))","v":""},{"$f":"IF($A483=\"N/A\",Ref!$B$36,INDEX(Ranks!$1:$1048576,$A483,AI$1))","v":""},{"$f":"IF($A483=\"N/A\",Ref!$B$36,INDEX(Ranks!$1:$1048576,$A483,AJ$1))","v":""},{"$f":"IF($A483=\"N/A\",Ref!$B$36,INDEX(Ranks!$1:$1048576,$A483,AK$1))","v":""},{"$f":"IF($A483=\"N/A\",Ref!$B$36,INDEX(Ranks!$1:$1048576,$A483,AL$1))","v":""},{"$f":"IF($A483=\"N/A\",Ref!$B$36,INDEX(Ranks!$1:$1048576,$A483,AM$1))","v":""},{"$f":"IF($A483=\"N/A\",Ref!$B$36,INDEX(Ranks!$1:$1048576,$A483,AN$1))","v":""},{"$f":"IF($A483=\"N/A\",Ref!$B$36,INDEX(Ranks!$1:$1048576,$A483,AO$1))","v":""},{"$f":"IF($A483=\"N/A\",Ref!$B$36,INDEX(Ranks!$1:$1048576,$A483,AP$1))","v":""},{"$f":"IF($A483=\"N/A\",Ref!$B$36,INDEX(Ranks!$1:$1048576,$A483,AQ$1))","v":""},{"$f":"IF($A483=\"N/A\",Ref!$B$36,INDEX(Ranks!$1:$1048576,$A483,AR$1))","v":""},{"$f":"IF($A483=\"N/A\",Ref!$B$36,INDEX(Ranks!$1:$1048576,$A483,AS$1))","v":""},{"$f":"IF($A483=\"N/A\",Ref!$B$36,INDEX(Ranks!$1:$1048576,$A483,AT$1))","v":""},{"$f":"IF($A483=\"N/A\",Ref!$B$36,INDEX(Ranks!$1:$1048576,$A483,AU$1))","v":""},{"$f":"IF($A483=\"N/A\",Ref!$B$36,INDEX(Ranks!$1:$1048576,$A483,AV$1))","v":""},{"$f":"IF($A483=\"N/A\",Ref!$B$36,INDEX(Ranks!$1:$1048576,$A483,AW$1))","v":""},{"$f":"IF($A483=\"N/A\",Ref!$B$36,INDEX(Ranks!$1:$1048576,$A483,AX$1))","v":""},{"$f":"IF($A483=\"N/A\",Ref!$B$36,INDEX(Ranks!$1:$1048576,$A483,AY$1))","v":""},{"$f":"IF($A483=\"N/A\",Ref!$B$36,INDEX(Ranks!$1:$1048576,$A483,AZ$1))","v":""},{"$f":"IF($A483=\"N/A\",Ref!$B$36,INDEX(Ranks!$1:$1048576,$A483,BA$1))","v":""},{"$f":"IF($A483=\"N/A\",Ref!$B$36,INDEX(Ranks!$1:$1048576,$A483,BB$1))","v":""},{"$f":"IF($A483=\"N/A\",Ref!$B$36,INDEX(Ranks!$1:$1048576,$A483,BC$1))","v":""},{"$f":"IF($A483=\"N/A\",Ref!$B$36,INDEX(Ranks!$1:$1048576,$A483,BD$1))","v":""},{"$f":"IF($A483=\"N/A\",Ref!$B$36,INDEX(Ranks!$1:$1048576,$A483,BE$1))","v":""},{"$f":"IF($A483=\"N/A\",Ref!$B$36,INDEX(Ranks!$1:$1048576,$A483,BF$1))","v":""},{"$f":"IF($A483=\"N/A\",Ref!$B$36,INDEX(Ranks!$1:$1048576,$A483,BG$1))","v":""},{"$f":"IF($A483=\"N/A\",Ref!$B$36,INDEX(Ranks!$1:$1048576,$A483,BH$1))","v":""},{"$f":"IF($A483=\"N/A\",Ref!$B$36,INDEX(Ranks!$1:$1048576,$A483,BI$1))","v":""},{"$f":"IF($A483=\"N/A\",Ref!$B$36,INDEX(Ranks!$1:$1048576,$A483,BJ$1))","v":""},{"$f":"IF($A483=\"N/A\",Ref!$B$36,INDEX(Ranks!$1:$1048576,$A483,BK$1))","v":""},{"$f":"IF($A483=\"N/A\",Ref!$B$36,INDEX(Ranks!$1:$1048576,$A483,BL$1))","v":""},{"$f":"IF($A483=\"N/A\",Ref!$B$36,INDEX(Ranks!$1:$1048576,$A483,BM$1))","v":""},{"$f":"IF($A483=\"N/A\",Ref!$B$36,INDEX(Ranks!$1:$1048576,$A483,BN$1))","v":""},{"$f":"IF($A483=\"N/A\",Ref!$B$36,INDEX(Ranks!$1:$1048576,$A483,BO$1))","v":""},{"$f":"IF($A483=\"N/A\",Ref!$B$36,INDEX(Ranks!$1:$1048576,$A483,BP$1))","v":""},{"$f":"IF($A483=\"N/A\",Ref!$B$36,INDEX(Ranks!$1:$1048576,$A483,BQ$1))","v":""},{"$f":"IF($A483=\"N/A\",Ref!$B$36,INDEX(Ranks!$1:$1048576,$A483,BR$1))","v":""},{"$f":"IF($A483=\"N/A\",Ref!$B$36,INDEX(Ranks!$1:$1048576,$A483,BS$1))","v":""},{"$f":"IF($A483=\"N/A\",Ref!$B$36,INDEX(Ranks!$1:$1048576,$A483,BT$1))","v":""},{"$f":"IF($A483=\"N/A\",Ref!$B$36,INDEX(Ranks!$1:$1048576,$A483,BU$1))","v":""},{"$f":"IF($A483=\"N/A\",Ref!$B$36,INDEX(Ranks!$1:$1048576,$A483,BV$1))","v":""},{"$f":"IF($A483=\"N/A\",Ref!$B$36,INDEX(Ranks!$1:$1048576,$A483,BW$1))","v":""},{"$f":"IF($A483=\"N/A\",Ref!$B$36,INDEX(Ranks!$1:$1048576,$A483,BX$1))","v":""},{"$f":"IF($A483=\"N/A\",Ref!$B$36,INDEX(Ranks!$1:$1048576,$A483,BY$1))","v":""},{"$f":"IF($A483=\"N/A\",Ref!$B$36,INDEX(Ranks!$1:$1048576,$A483,BZ$1))","v":""},{"$f":"IF($A483=\"N/A\",Ref!$B$36,INDEX(Ranks!$1:$1048576,$A483,CA$1))","v":""},{"$f":"IF($A483=\"N/A\",Ref!$B$36,INDEX(Ranks!$1:$1048576,$A483,CB$1))","v":""},{"$f":"IF($A483=\"N/A\",Ref!$B$36,INDEX(Ranks!$1:$1048576,$A483,CC$1))","v":""},{"$f":"IF($A483=\"N/A\",Ref!$B$36,INDEX(Ranks!$1:$1048576,$A483,CD$1))","v":""},{"$f":"IF($A483=\"N/A\",Ref!$B$36,INDEX(Ranks!$1:$1048576,$A483,CE$1))","v":""},{"$f":"IF($A483=\"N/A\",Ref!$B$36,INDEX(Ranks!$1:$1048576,$A483,CF$1))","v":""},{"$f":"IF($A483=\"N/A\",Ref!$B$36,INDEX(Ranks!$1:$1048576,$A483,CG$1))","v":""},{"$f":"IF($A483=\"N/A\",Ref!$B$36,INDEX(Ranks!$1:$1048576,$A483,CH$1))","v":""},{"$f":"IF($A483=\"N/A\",Ref!$B$36,INDEX(Ranks!$1:$1048576,$A483,CI$1))","v":""},{"$f":"IF($A483=\"N/A\",Ref!$B$36,INDEX(Ranks!$1:$1048576,$A483,CJ$1))","v":""},{"$f":"IF($A483=\"N/A\",Ref!$B$36,INDEX(Ranks!$1:$1048576,$A483,CK$1))","v":""},{"$f":"IF($A483=\"N/A\",Ref!$B$36,INDEX(Ranks!$1:$1048576,$A483,CL$1))","v":""},{"$f":"IF($A483=\"N/A\",Ref!$B$36,INDEX(Ranks!$1:$1048576,$A483,CM$1))","v":""},{"$f":"IF($A483=\"N/A\",Ref!$B$36,INDEX(Ranks!$1:$1048576,$A483,CN$1))","v":""},{"$f":"IF($A483=\"N/A\",Ref!$B$36,INDEX(Ranks!$1:$1048576,$A483,CO$1))","v":""},{"$f":"IF($A483=\"N/A\",Ref!$B$36,INDEX(Ranks!$1:$1048576,$A483,CP$1))","v":""},{"$f":"IF($A483=\"N/A\",Ref!$B$36,INDEX(Ranks!$1:$1048576,$A483,CQ$1))","v":""},{"$f":"IF($A483=\"N/A\",Ref!$B$36,INDEX(Ranks!$1:$1048576,$A483,CR$1))","v":""},{"$f":"IF($A483=\"N/A\",Ref!$B$36,INDEX(Ranks!$1:$1048576,$A483,CS$1))","v":""},{"$f":"IF($A483=\"N/A\",Ref!$B$36,INDEX(Ranks!$1:$1048576,$A483,CT$1))","v":""},{"$f":"IF($A483=\"N/A\",Ref!$B$36,INDEX(Ranks!$1:$1048576,$A483,CU$1))","v":""},{"$f":"IF($A483=\"N/A\",Ref!$B$36,INDEX(Ranks!$1:$1048576,$A483,CV$1))","v":""},{"$f":"IF($A483=\"N/A\",Ref!$B$36,INDEX(Ranks!$1:$1048576,$A483,CW$1))","v":""},{"$f":"IF($A483=\"N/A\",Ref!$B$36,INDEX(Ranks!$1:$1048576,$A483,CX$1))","v":""},{"$f":"IF($A483=\"N/A\",Ref!$B$36,INDEX(Ranks!$1:$1048576,$A483,CY$1))","v":""},{"$f":"IF($A483=\"N/A\",Ref!$B$36,INDEX(Ranks!$1:$1048576,$A483,CZ$1))","v":""},{"$f":"IF($A483=\"N/A\",Ref!$B$36,INDEX(Ranks!$1:$1048576,$A483,DA$1))","v":""},{"$f":"IF($A483=\"N/A\",Ref!$B$36,INDEX(Ranks!$1:$1048576,$A483,DB$1))","v":""},{"$f":"IF($A483=\"N/A\",Ref!$B$36,INDEX(Ranks!$1:$1048576,$A483,DC$1))","v":""},{"$f":"IF($A483=\"N/A\",Ref!$B$36,INDEX(Ranks!$1:$1048576,$A483,DD$1))","v":""},{"$f":"IF($A483=\"N/A\",Ref!$B$36,INDEX(Ranks!$1:$1048576,$A483,DE$1))","v":""},{"$f":"IF($A483=\"N/A\",Ref!$B$36,INDEX(Ranks!$1:$1048576,$A483,DF$1))","v":""},{"$f":"IF($A483=\"N/A\",Ref!$B$36,INDEX(Ranks!$1:$1048576,$A483,DG$1))","v":""},{"$f":"IF($A483=\"N/A\",Ref!$B$36,INDEX(Ranks!$1:$1048576,$A483,DH$1))","v":""},{"$f":"IF($A483=\"N/A\",Ref!$B$36,INDEX(Ranks!$1:$1048576,$A483,DI$1))","v":""},{"$f":"IF($A483=\"N/A\",Ref!$B$36,INDEX(Ranks!$1:$1048576,$A483,DJ$1))","v":""},{"$f":"IF($A483=\"N/A\",Ref!$B$36,INDEX(Ranks!$1:$1048576,$A483,DK$1))","v":""},{"$f":"IF($A483=\"N/A\",Ref!$B$36,INDEX(Ranks!$1:$1048576,$A483,DL$1))","v":""},{"$f":"IF($A483=\"N/A\",Ref!$B$36,INDEX(Ranks!$1:$1048576,$A483,DM$1))","v":""},{"$f":"IF($A483=\"N/A\",Ref!$B$36,INDEX(Ranks!$1:$1048576,$A483,DN$1))","v":""},{"$f":"IF($A483=\"N/A\",Ref!$B$36,INDEX(Ranks!$1:$1048576,$A483,DO$1))","v":""},{"$f":"IF($A483=\"N/A\",Ref!$B$36,INDEX(Ranks!$1:$1048576,$A483,DP$1))","v":""},{"$f":"IF($A483=\"N/A\",Ref!$B$36,INDEX(Ranks!$1:$1048576,$A483,DQ$1))","v":""},{"$f":"IF($A483=\"N/A\",Ref!$B$36,INDEX(Ranks!$1:$1048576,$A483,DR$1))","v":""},{"$f":"IF($A483=\"N/A\",Ref!$B$36,INDEX(Ranks!$1:$1048576,$A483,DS$1))","v":""},{"$f":"IF($A483=\"N/A\",Ref!$B$36,INDEX(Ranks!$1:$1048576,$A483,DT$1))","v":""},{"$f":"IF($A483=\"N/A\",Ref!$B$36,INDEX(Ranks!$1:$1048576,$A483,DU$1))","v":""},{"$f":"IF($A483=\"N/A\",Ref!$B$36,INDEX(Ranks!$1:$1048576,$A483,DV$1))","v":""},{"$f":"IF($A483=\"N/A\",Ref!$B$36,INDEX(Ranks!$1:$1048576,$A483,DW$1))","v":""},{"$f":"IF($A483=\"N/A\",Ref!$B$36,INDEX(Ranks!$1:$1048576,$A483,DX$1))","v":""},{"$f":"IF($A483=\"N/A\",Ref!$B$36,INDEX(Ranks!$1:$1048576,$A483,DY$1))","v":""},{"$f":"IF($A483=\"N/A\",Ref!$B$36,INDEX(Ranks!$1:$1048576,$A483,DZ$1))","v":""},{"$f":"IF($A483=\"N/A\",Ref!$B$36,INDEX(Ranks!$1:$1048576,$A483,EA$1))","v":""},{"$f":"IF($A483=\"N/A\",Ref!$B$36,INDEX(Ranks!$1:$1048576,$A483,EB$1))","v":""}]
[{"$f":"IFERROR(MATCH('Portfolio Page'!L484,Ranks!L:L,0),\"N/A\")","v":"N/A"},null,{"$f":"IF($A484=\"N/A\",\"\",INDEX(Ranks!$1:$1048576,$A484,C$1))","v":""},{"$f":"IF($A484=\"N/A\",Ref!$B$36,INDEX(Ranks!$1:$1048576,$A484,D$1))","v":""},{"$f":"IF($A484=\"N/A\",Ref!$B$36,INDEX(Ranks!$1:$1048576,$A484,E$1))","v":""},{"$f":"IF($A484=\"N/A\",\"\",INDEX(Ranks!$1:$1048576,$A484,F$1))","v":""},{"$f":"IF($A484=\"N/A\",\"\",INDEX(Ranks!$1:$1048576,$A484,G$1))","v":""},{"$f":"IF($A484=\"N/A\",\"\",INDEX(Ranks!$1:$1048576,$A484,H$1))","v":""},{"$f":"IF($A484=\"N/A\",\"\",INDEX(Ranks!$1:$1048576,$A484,I$1))","v":""},{"$f":"IF($A484=\"N/A\",\"\",INDEX(Ranks!$1:$1048576,$A484,J$1))","v":""},{"$f":"IF($A484=\"N/A\",\"\",INDEX(Ranks!$1:$1048576,$A484,K$1))","v":""},null,{"$f":"IF($A484=\"N/A\",Ref!$B$36,INDEX(Ranks!$1:$1048576,$A484,M$1))","v":""},{"$f":"IF($A484=\"N/A\",Ref!$B$36,INDEX(Ranks!$1:$1048576,$A484,N$1))","v":""},{"$f":"IF($A484=\"N/A\",Ref!$B$36,INDEX(Ranks!$1:$1048576,$A484,O$1))","v":""},{"$f":"IF($A484=\"N/A\",Ref!$B$36,INDEX(Ranks!$1:$1048576,$A484,P$1))","v":""},{"$f":"IF($A484=\"N/A\",Ref!$B$36,INDEX(Ranks!$1:$1048576,$A484,Q$1))","v":""},{"$f":"IF($A484=\"N/A\",Ref!$B$36,INDEX(Ranks!$1:$1048576,$A484,R$1))","v":""},{"$f":"IF($A484=\"N/A\",Ref!$B$36,INDEX(Ranks!$1:$1048576,$A484,S$1))","v":""},{"$f":"IF($A484=\"N/A\",Ref!$B$36,INDEX(Ranks!$1:$1048576,$A484,T$1))","v":""},{"$f":"IF($A484=\"N/A\",Ref!$B$36,INDEX(Ranks!$1:$1048576,$A484,U$1))","v":""},{"$f":"IF($A484=\"N/A\",Ref!$B$36,INDEX(Ranks!$1:$1048576,$A484,V$1))","v":""},{"$f":"IF($A484=\"N/A\",Ref!$B$36,INDEX(Ranks!$1:$1048576,$A484,W$1))","v":""},{"$f":"IF($A484=\"N/A\",Ref!$B$36,INDEX(Ranks!$1:$1048576,$A484,X$1))","v":""},{"$f":"IF($A484=\"N/A\",Ref!$B$36,INDEX(Ranks!$1:$1048576,$A484,Y$1))","v":""},{"$f":"IF($A484=\"N/A\",Ref!$B$36,INDEX(Ranks!$1:$1048576,$A484,Z$1))","v":""},{"$f":"IF($A484=\"N/A\",Ref!$B$36,INDEX(Ranks!$1:$1048576,$A484,AA$1))","v":""},{"$f":"IF($A484=\"N/A\",Ref!$B$36,INDEX(Ranks!$1:$1048576,$A484,AB$1))","v":""},{"$f":"IF($A484=\"N/A\",Ref!$B$36,INDEX(Ranks!$1:$1048576,$A484,AC$1))","v":""},{"$f":"IF($A484=\"N/A\",Ref!$B$36,INDEX(Ranks!$1:$1048576,$A484,AD$1))","v":""},{"$f":"IF($A484=\"N/A\",Ref!$B$36,INDEX(Ranks!$1:$1048576,$A484,AE$1))","v":""},{"$f":"IF($A484=\"N/A\",Ref!$B$36,INDEX(Ranks!$1:$1048576,$A484,AF$1))","v":""},{"$f":"IF($A484=\"N/A\",Ref!$B$36,INDEX(Ranks!$1:$1048576,$A484,AG$1))","v":""},{"$f":"IF($A484=\"N/A\",Ref!$B$36,INDEX(Ranks!$1:$1048576,$A484,AH$1))","v":""},{"$f":"IF($A484=\"N/A\",Ref!$B$36,INDEX(Ranks!$1:$1048576,$A484,AI$1))","v":""},{"$f":"IF($A484=\"N/A\",Ref!$B$36,INDEX(Ranks!$1:$1048576,$A484,AJ$1))","v":""},{"$f":"IF($A484=\"N/A\",Ref!$B$36,INDEX(Ranks!$1:$1048576,$A484,AK$1))","v":""},{"$f":"IF($A484=\"N/A\",Ref!$B$36,INDEX(Ranks!$1:$1048576,$A484,AL$1))","v":""},{"$f":"IF($A484=\"N/A\",Ref!$B$36,INDEX(Ranks!$1:$1048576,$A484,AM$1))","v":""},{"$f":"IF($A484=\"N/A\",Ref!$B$36,INDEX(Ranks!$1:$1048576,$A484,AN$1))","v":""},{"$f":"IF($A484=\"N/A\",Ref!$B$36,INDEX(Ranks!$1:$1048576,$A484,AO$1))","v":""},{"$f":"IF($A484=\"N/A\",Ref!$B$36,INDEX(Ranks!$1:$1048576,$A484,AP$1))","v":""},{"$f":"IF($A484=\"N/A\",Ref!$B$36,INDEX(Ranks!$1:$1048576,$A484,AQ$1))","v":""},{"$f":"IF($A484=\"N/A\",Ref!$B$36,INDEX(Ranks!$1:$1048576,$A484,AR$1))","v":""},{"$f":"IF($A484=\"N/A\",Ref!$B$36,INDEX(Ranks!$1:$1048576,$A484,AS$1))","v":""},{"$f":"IF($A484=\"N/A\",Ref!$B$36,INDEX(Ranks!$1:$1048576,$A484,AT$1))","v":""},{"$f":"IF($A484=\"N/A\",Ref!$B$36,INDEX(Ranks!$1:$1048576,$A484,AU$1))","v":""},{"$f":"IF($A484=\"N/A\",Ref!$B$36,INDEX(Ranks!$1:$1048576,$A484,AV$1))","v":""},{"$f":"IF($A484=\"N/A\",Ref!$B$36,INDEX(Ranks!$1:$1048576,$A484,AW$1))","v":""},{"$f":"IF($A484=\"N/A\",Ref!$B$36,INDEX(Ranks!$1:$1048576,$A484,AX$1))","v":""},{"$f":"IF($A484=\"N/A\",Ref!$B$36,INDEX(Ranks!$1:$1048576,$A484,AY$1))","v":""},{"$f":"IF($A484=\"N/A\",Ref!$B$36,INDEX(Ranks!$1:$1048576,$A484,AZ$1))","v":""},{"$f":"IF($A484=\"N/A\",Ref!$B$36,INDEX(Ranks!$1:$1048576,$A484,BA$1))","v":""},{"$f":"IF($A484=\"N/A\",Ref!$B$36,INDEX(Ranks!$1:$1048576,$A484,BB$1))","v":""},{"$f":"IF($A484=\"N/A\",Ref!$B$36,INDEX(Ranks!$1:$1048576,$A484,BC$1))","v":""},{"$f":"IF($A484=\"N/A\",Ref!$B$36,INDEX(Ranks!$1:$1048576,$A484,BD$1))","v":""},{"$f":"IF($A484=\"N/A\",Ref!$B$36,INDEX(Ranks!$1:$1048576,$A484,BE$1))","v":""},{"$f":"IF($A484=\"N/A\",Ref!$B$36,INDEX(Ranks!$1:$1048576,$A484,BF$1))","v":""},{"$f":"IF($A484=\"N/A\",Ref!$B$36,INDEX(Ranks!$1:$1048576,$A484,BG$1))","v":""},{"$f":"IF($A484=\"N/A\",Ref!$B$36,INDEX(Ranks!$1:$1048576,$A484,BH$1))","v":""},{"$f":"IF($A484=\"N/A\",Ref!$B$36,INDEX(Ranks!$1:$1048576,$A484,BI$1))","v":""},{"$f":"IF($A484=\"N/A\",Ref!$B$36,INDEX(Ranks!$1:$1048576,$A484,BJ$1))","v":""},{"$f":"IF($A484=\"N/A\",Ref!$B$36,INDEX(Ranks!$1:$1048576,$A484,BK$1))","v":""},{"$f":"IF($A484=\"N/A\",Ref!$B$36,INDEX(Ranks!$1:$1048576,$A484,BL$1))","v":""},{"$f":"IF($A484=\"N/A\",Ref!$B$36,INDEX(Ranks!$1:$1048576,$A484,BM$1))","v":""},{"$f":"IF($A484=\"N/A\",Ref!$B$36,INDEX(Ranks!$1:$1048576,$A484,BN$1))","v":""},{"$f":"IF($A484=\"N/A\",Ref!$B$36,INDEX(Ranks!$1:$1048576,$A484,BO$1))","v":""},{"$f":"IF($A484=\"N/A\",Ref!$B$36,INDEX(Ranks!$1:$1048576,$A484,BP$1))","v":""},{"$f":"IF($A484=\"N/A\",Ref!$B$36,INDEX(Ranks!$1:$1048576,$A484,BQ$1))","v":""},{"$f":"IF($A484=\"N/A\",Ref!$B$36,INDEX(Ranks!$1:$1048576,$A484,BR$1))","v":""},{"$f":"IF($A484=\"N/A\",Ref!$B$36,INDEX(Ranks!$1:$1048576,$A484,BS$1))","v":""},{"$f":"IF($A484=\"N/A\",Ref!$B$36,INDEX(Ranks!$1:$1048576,$A484,BT$1))","v":""},{"$f":"IF($A484=\"N/A\",Ref!$B$36,INDEX(Ranks!$1:$1048576,$A484,BU$1))","v":""},{"$f":"IF($A484=\"N/A\",Ref!$B$36,INDEX(Ranks!$1:$1048576,$A484,BV$1))","v":""},{"$f":"IF($A484=\"N/A\",Ref!$B$36,INDEX(Ranks!$1:$1048576,$A484,BW$1))","v":""},{"$f":"IF($A484=\"N/A\",Ref!$B$36,INDEX(Ranks!$1:$1048576,$A484,BX$1))","v":""},{"$f":"IF($A484=\"N/A\",Ref!$B$36,INDEX(Ranks!$1:$1048576,$A484,BY$1))","v":""},{"$f":"IF($A484=\"N/A\",Ref!$B$36,INDEX(Ranks!$1:$1048576,$A484,BZ$1))","v":""},{"$f":"IF($A484=\"N/A\",Ref!$B$36,INDEX(Ranks!$1:$1048576,$A484,CA$1))","v":""},{"$f":"IF($A484=\"N/A\",Ref!$B$36,INDEX(Ranks!$1:$1048576,$A484,CB$1))","v":""},{"$f":"IF($A484=\"N/A\",Ref!$B$36,INDEX(Ranks!$1:$1048576,$A484,CC$1))","v":""},{"$f":"IF($A484=\"N/A\",Ref!$B$36,INDEX(Ranks!$1:$1048576,$A484,CD$1))","v":""},{"$f":"IF($A484=\"N/A\",Ref!$B$36,INDEX(Ranks!$1:$1048576,$A484,CE$1))","v":""},{"$f":"IF($A484=\"N/A\",Ref!$B$36,INDEX(Ranks!$1:$1048576,$A484,CF$1))","v":""},{"$f":"IF($A484=\"N/A\",Ref!$B$36,INDEX(Ranks!$1:$1048576,$A484,CG$1))","v":""},{"$f":"IF($A484=\"N/A\",Ref!$B$36,INDEX(Ranks!$1:$1048576,$A484,CH$1))","v":""},{"$f":"IF($A484=\"N/A\",Ref!$B$36,INDEX(Ranks!$1:$1048576,$A484,CI$1))","v":""},{"$f":"IF($A484=\"N/A\",Ref!$B$36,INDEX(Ranks!$1:$1048576,$A484,CJ$1))","v":""},{"$f":"IF($A484=\"N/A\",Ref!$B$36,INDEX(Ranks!$1:$1048576,$A484,CK$1))","v":""},{"$f":"IF($A484=\"N/A\",Ref!$B$36,INDEX(Ranks!$1:$1048576,$A484,CL$1))","v":""},{"$f":"IF($A484=\"N/A\",Ref!$B$36,INDEX(Ranks!$1:$1048576,$A484,CM$1))","v":""},{"$f":"IF($A484=\"N/A\",Ref!$B$36,INDEX(Ranks!$1:$1048576,$A484,CN$1))","v":""},{"$f":"IF($A484=\"N/A\",Ref!$B$36,INDEX(Ranks!$1:$1048576,$A484,CO$1))","v":""},{"$f":"IF($A484=\"N/A\",Ref!$B$36,INDEX(Ranks!$1:$1048576,$A484,CP$1))","v":""},{"$f":"IF($A484=\"N/A\",Ref!$B$36,INDEX(Ranks!$1:$1048576,$A484,CQ$1))","v":""},{"$f":"IF($A484=\"N/A\",Ref!$B$36,INDEX(Ranks!$1:$1048576,$A484,CR$1))","v":""},{"$f":"IF($A484=\"N/A\",Ref!$B$36,INDEX(Ranks!$1:$1048576,$A484,CS$1))","v":""},{"$f":"IF($A484=\"N/A\",Ref!$B$36,INDEX(Ranks!$1:$1048576,$A484,CT$1))","v":""},{"$f":"IF($A484=\"N/A\",Ref!$B$36,INDEX(Ranks!$1:$1048576,$A484,CU$1))","v":""},{"$f":"IF($A484=\"N/A\",Ref!$B$36,INDEX(Ranks!$1:$1048576,$A484,CV$1))","v":""},{"$f":"IF($A484=\"N/A\",Ref!$B$36,INDEX(Ranks!$1:$1048576,$A484,CW$1))","v":""},{"$f":"IF($A484=\"N/A\",Ref!$B$36,INDEX(Ranks!$1:$1048576,$A484,CX$1))","v":""},{"$f":"IF($A484=\"N/A\",Ref!$B$36,INDEX(Ranks!$1:$1048576,$A484,CY$1))","v":""},{"$f":"IF($A484=\"N/A\",Ref!$B$36,INDEX(Ranks!$1:$1048576,$A484,CZ$1))","v":""},{"$f":"IF($A484=\"N/A\",Ref!$B$36,INDEX(Ranks!$1:$1048576,$A484,DA$1))","v":""},{"$f":"IF($A484=\"N/A\",Ref!$B$36,INDEX(Ranks!$1:$1048576,$A484,DB$1))","v":""},{"$f":"IF($A484=\"N/A\",Ref!$B$36,INDEX(Ranks!$1:$1048576,$A484,DC$1))","v":""},{"$f":"IF($A484=\"N/A\",Ref!$B$36,INDEX(Ranks!$1:$1048576,$A484,DD$1))","v":""},{"$f":"IF($A484=\"N/A\",Ref!$B$36,INDEX(Ranks!$1:$1048576,$A484,DE$1))","v":""},{"$f":"IF($A484=\"N/A\",Ref!$B$36,INDEX(Ranks!$1:$1048576,$A484,DF$1))","v":""},{"$f":"IF($A484=\"N/A\",Ref!$B$36,INDEX(Ranks!$1:$1048576,$A484,DG$1))","v":""},{"$f":"IF($A484=\"N/A\",Ref!$B$36,INDEX(Ranks!$1:$1048576,$A484,DH$1))","v":""},{"$f":"IF($A484=\"N/A\",Ref!$B$36,INDEX(Ranks!$1:$1048576,$A484,DI$1))","v":""},{"$f":"IF($A484=\"N/A\",Ref!$B$36,INDEX(Ranks!$1:$1048576,$A484,DJ$1))","v":""},{"$f":"IF($A484=\"N/A\",Ref!$B$36,INDEX(Ranks!$1:$1048576,$A484,DK$1))","v":""},{"$f":"IF($A484=\"N/A\",Ref!$B$36,INDEX(Ranks!$1:$1048576,$A484,DL$1))","v":""},{"$f":"IF($A484=\"N/A\",Ref!$B$36,INDEX(Ranks!$1:$1048576,$A484,DM$1))","v":""},{"$f":"IF($A484=\"N/A\",Ref!$B$36,INDEX(Ranks!$1:$1048576,$A484,DN$1))","v":""},{"$f":"IF($A484=\"N/A\",Ref!$B$36,INDEX(Ranks!$1:$1048576,$A484,DO$1))","v":""},{"$f":"IF($A484=\"N/A\",Ref!$B$36,INDEX(Ranks!$1:$1048576,$A484,DP$1))","v":""},{"$f":"IF($A484=\"N/A\",Ref!$B$36,INDEX(Ranks!$1:$1048576,$A484,DQ$1))","v":""},{"$f":"IF($A484=\"N/A\",Ref!$B$36,INDEX(Ranks!$1:$1048576,$A484,DR$1))","v":""},{"$f":"IF($A484=\"N/A\",Ref!$B$36,INDEX(Ranks!$1:$1048576,$A484,DS$1))","v":""},{"$f":"IF($A484=\"N/A\",Ref!$B$36,INDEX(Ranks!$1:$1048576,$A484,DT$1))","v":""},{"$f":"IF($A484=\"N/A\",Ref!$B$36,INDEX(Ranks!$1:$1048576,$A484,DU$1))","v":""},{"$f":"IF($A484=\"N/A\",Ref!$B$36,INDEX(Ranks!$1:$1048576,$A484,DV$1))","v":""},{"$f":"IF($A484=\"N/A\",Ref!$B$36,INDEX(Ranks!$1:$1048576,$A484,DW$1))","v":""},{"$f":"IF($A484=\"N/A\",Ref!$B$36,INDEX(Ranks!$1:$1048576,$A484,DX$1))","v":""},{"$f":"IF($A484=\"N/A\",Ref!$B$36,INDEX(Ranks!$1:$1048576,$A484,DY$1))","v":""},{"$f":"IF($A484=\"N/A\",Ref!$B$36,INDEX(Ranks!$1:$1048576,$A484,DZ$1))","v":""},{"$f":"IF($A484=\"N/A\",Ref!$B$36,INDEX(Ranks!$1:$1048576,$A484,EA$1))","v":""},{"$f":"IF($A484=\"N/A\",Ref!$B$36,INDEX(Ranks!$1:$1048576,$A484,EB$1))","v":""}]
[{"$f":"IFERROR(MATCH('Portfolio Page'!L485,Ranks!L:L,0),\"N/A\")","v":"N/A"},null,{"$f":"IF($A485=\"N/A\",\"\",INDEX(Ranks!$1:$1048576,$A485,C$1))","v":""},{"$f":"IF($A485=\"N/A\",Ref!$B$36,INDEX(Ranks!$1:$1048576,$A485,D$1))","v":""},{"$f":"IF($A485=\"N/A\",Ref!$B$36,INDEX(Ranks!$1:$1048576,$A485,E$1))","v":""},{"$f":"IF($A485=\"N/A\",\"\",INDEX(Ranks!$1:$1048576,$A485,F$1))","v":""},{"$f":"IF($A485=\"N/A\",\"\",INDEX(Ranks!$1:$1048576,$A485,G$1))","v":""},{"$f":"IF($A485=\"N/A\",\"\",INDEX(Ranks!$1:$1048576,$A485,H$1))","v":""},{"$f":"IF($A485=\"N/A\",\"\",INDEX(Ranks!$1:$1048576,$A485,I$1))","v":""},{"$f":"IF($A485=\"N/A\",\"\",INDEX(Ranks!$1:$1048576,$A485,J$1))","v":""},{"$f":"IF($A485=\"N/A\",\"\",INDEX(Ranks!$1:$1048576,$A485,K$1))","v":""},null,{"$f":"IF($A485=\"N/A\",Ref!$B$36,INDEX(Ranks!$1:$1048576,$A485,M$1))","v":""},{"$f":"IF($A485=\"N/A\",Ref!$B$36,INDEX(Ranks!$1:$1048576,$A485,N$1))","v":""},{"$f":"IF($A485=\"N/A\",Ref!$B$36,INDEX(Ranks!$1:$1048576,$A485,O$1))","v":""},{"$f":"IF($A485=\"N/A\",Ref!$B$36,INDEX(Ranks!$1:$1048576,$A485,P$1))","v":""},{"$f":"IF($A485=\"N/A\",Ref!$B$36,INDEX(Ranks!$1:$1048576,$A485,Q$1))","v":""},{"$f":"IF($A485=\"N/A\",Ref!$B$36,INDEX(Ranks!$1:$1048576,$A485,R$1))","v":""},{"$f":"IF($A485=\"N/A\",Ref!$B$36,INDEX(Ranks!$1:$1048576,$A485,S$1))","v":""},{"$f":"IF($A485=\"N/A\",Ref!$B$36,INDEX(Ranks!$1:$1048576,$A485,T$1))","v":""},{"$f":"IF($A485=\"N/A\",Ref!$B$36,INDEX(Ranks!$1:$1048576,$A485,U$1))","v":""},{"$f":"IF($A485=\"N/A\",Ref!$B$36,INDEX(Ranks!$1:$1048576,$A485,V$1))","v":""},{"$f":"IF($A485=\"N/A\",Ref!$B$36,INDEX(Ranks!$1:$1048576,$A485,W$1))","v":""},{"$f":"IF($A485=\"N/A\",Ref!$B$36,INDEX(Ranks!$1:$1048576,$A485,X$1))","v":""},{"$f":"IF($A485=\"N/A\",Ref!$B$36,INDEX(Ranks!$1:$1048576,$A485,Y$1))","v":""},{"$f":"IF($A485=\"N/A\",Ref!$B$36,INDEX(Ranks!$1:$1048576,$A485,Z$1))","v":""},{"$f":"IF($A485=\"N/A\",Ref!$B$36,INDEX(Ranks!$1:$1048576,$A485,AA$1))","v":""},{"$f":"IF($A485=\"N/A\",Ref!$B$36,INDEX(Ranks!$1:$1048576,$A485,AB$1))","v":""},{"$f":"IF($A485=\"N/A\",Ref!$B$36,INDEX(Ranks!$1:$1048576,$A485,AC$1))","v":""},{"$f":"IF($A485=\"N/A\",Ref!$B$36,INDEX(Ranks!$1:$1048576,$A485,AD$1))","v":""},{"$f":"IF($A485=\"N/A\",Ref!$B$36,INDEX(Ranks!$1:$1048576,$A485,AE$1))","v":""},{"$f":"IF($A485=\"N/A\",Ref!$B$36,INDEX(Ranks!$1:$1048576,$A485,AF$1))","v":""},{"$f":"IF($A485=\"N/A\",Ref!$B$36,INDEX(Ranks!$1:$1048576,$A485,AG$1))","v":""},{"$f":"IF($A485=\"N/A\",Ref!$B$36,INDEX(Ranks!$1:$1048576,$A485,AH$1))","v":""},{"$f":"IF($A485=\"N/A\",Ref!$B$36,INDEX(Ranks!$1:$1048576,$A485,AI$1))","v":""},{"$f":"IF($A485=\"N/A\",Ref!$B$36,INDEX(Ranks!$1:$1048576,$A485,AJ$1))","v":""},{"$f":"IF($A485=\"N/A\",Ref!$B$36,INDEX(Ranks!$1:$1048576,$A485,AK$1))","v":""},{"$f":"IF($A485=\"N/A\",Ref!$B$36,INDEX(Ranks!$1:$1048576,$A485,AL$1))","v":""},{"$f":"IF($A485=\"N/A\",Ref!$B$36,INDEX(Ranks!$1:$1048576,$A485,AM$1))","v":""},{"$f":"IF($A485=\"N/A\",Ref!$B$36,INDEX(Ranks!$1:$1048576,$A485,AN$1))","v":""},{"$f":"IF($A485=\"N/A\",Ref!$B$36,INDEX(Ranks!$1:$1048576,$A485,AO$1))","v":""},{"$f":"IF($A485=\"N/A\",Ref!$B$36,INDEX(Ranks!$1:$1048576,$A485,AP$1))","v":""},{"$f":"IF($A485=\"N/A\",Ref!$B$36,INDEX(Ranks!$1:$1048576,$A485,AQ$1))","v":""},{"$f":"IF($A485=\"N/A\",Ref!$B$36,INDEX(Ranks!$1:$1048576,$A485,AR$1))","v":""},{"$f":"IF($A485=\"N/A\",Ref!$B$36,INDEX(Ranks!$1:$1048576,$A485,AS$1))","v":""},{"$f":"IF($A485=\"N/A\",Ref!$B$36,INDEX(Ranks!$1:$1048576,$A485,AT$1))","v":""},{"$f":"IF($A485=\"N/A\",Ref!$B$36,INDEX(Ranks!$1:$1048576,$A485,AU$1))","v":""},{"$f":"IF($A485=\"N/A\",Ref!$B$36,INDEX(Ranks!$1:$1048576,$A485,AV$1))","v":""},{"$f":"IF($A485=\"N/A\",Ref!$B$36,INDEX(Ranks!$1:$1048576,$A485,AW$1))","v":""},{"$f":"IF($A485=\"N/A\",Ref!$B$36,INDEX(Ranks!$1:$1048576,$A485,AX$1))","v":""},{"$f":"IF($A485=\"N/A\",Ref!$B$36,INDEX(Ranks!$1:$1048576,$A485,AY$1))","v":""},{"$f":"IF($A485=\"N/A\",Ref!$B$36,INDEX(Ranks!$1:$1048576,$A485,AZ$1))","v":""},{"$f":"IF($A485=\"N/A\",Ref!$B$36,INDEX(Ranks!$1:$1048576,$A485,BA$1))","v":""},{"$f":"IF($A485=\"N/A\",Ref!$B$36,INDEX(Ranks!$1:$1048576,$A485,BB$1))","v":""},{"$f":"IF($A485=\"N/A\",Ref!$B$36,INDEX(Ranks!$1:$1048576,$A485,BC$1))","v":""},{"$f":"IF($A485=\"N/A\",Ref!$B$36,INDEX(Ranks!$1:$1048576,$A485,BD$1))","v":""},{"$f":"IF($A485=\"N/A\",Ref!$B$36,INDEX(Ranks!$1:$1048576,$A485,BE$1))","v":""},{"$f":"IF($A485=\"N/A\",Ref!$B$36,INDEX(Ranks!$1:$1048576,$A485,BF$1))","v":""},{"$f":"IF($A485=\"N/A\",Ref!$B$36,INDEX(Ranks!$1:$1048576,$A485,BG$1))","v":""},{"$f":"IF($A485=\"N/A\",Ref!$B$36,INDEX(Ranks!$1:$1048576,$A485,BH$1))","v":""},{"$f":"IF($A485=\"N/A\",Ref!$B$36,INDEX(Ranks!$1:$1048576,$A485,BI$1))","v":""},{"$f":"IF($A485=\"N/A\",Ref!$B$36,INDEX(Ranks!$1:$1048576,$A485,BJ$1))","v":""},{"$f":"IF($A485=\"N/A\",Ref!$B$36,INDEX(Ranks!$1:$1048576,$A485,BK$1))","v":""},{"$f":"IF($A485=\"N/A\",Ref!$B$36,INDEX(Ranks!$1:$1048576,$A485,BL$1))","v":""},{"$f":"IF($A485=\"N/A\",Ref!$B$36,INDEX(Ranks!$1:$1048576,$A485,BM$1))","v":""},{"$f":"IF($A485=\"N/A\",Ref!$B$36,INDEX(Ranks!$1:$1048576,$A485,BN$1))","v":""},{"$f":"IF($A485=\"N/A\",Ref!$B$36,INDEX(Ranks!$1:$1048576,$A485,BO$1))","v":""},{"$f":"IF($A485=\"N/A\",Ref!$B$36,INDEX(Ranks!$1:$1048576,$A485,BP$1))","v":""},{"$f":"IF($A485=\"N/A\",Ref!$B$36,INDEX(Ranks!$1:$1048576,$A485,BQ$1))","v":""},{"$f":"IF($A485=\"N/A\",Ref!$B$36,INDEX(Ranks!$1:$1048576,$A485,BR$1))","v":""},{"$f":"IF($A485=\"N/A\",Ref!$B$36,INDEX(Ranks!$1:$1048576,$A485,BS$1))","v":""},{"$f":"IF($A485=\"N/A\",Ref!$B$36,INDEX(Ranks!$1:$1048576,$A485,BT$1))","v":""},{"$f":"IF($A485=\"N/A\",Ref!$B$36,INDEX(Ranks!$1:$1048576,$A485,BU$1))","v":""},{"$f":"IF($A485=\"N/A\",Ref!$B$36,INDEX(Ranks!$1:$1048576,$A485,BV$1))","v":""},{"$f":"IF($A485=\"N/A\",Ref!$B$36,INDEX(Ranks!$1:$1048576,$A485,BW$1))","v":""},{"$f":"IF($A485=\"N/A\",Ref!$B$36,INDEX(Ranks!$1:$1048576,$A485,BX$1))","v":""},{"$f":"IF($A485=\"N/A\",Ref!$B$36,INDEX(Ranks!$1:$1048576,$A485,BY$1))","v":""},{"$f":"IF($A485=\"N/A\",Ref!$B$36,INDEX(Ranks!$1:$1048576,$A485,BZ$1))","v":""},{"$f":"IF($A485=\"N/A\",Ref!$B$36,INDEX(Ranks!$1:$1048576,$A485,CA$1))","v":""},{"$f":"IF($A485=\"N/A\",Ref!$B$36,INDEX(Ranks!$1:$1048576,$A485,CB$1))","v":""},{"$f":"IF($A485=\"N/A\",Ref!$B$36,INDEX(Ranks!$1:$1048576,$A485,CC$1))","v":""},{"$f":"IF($A485=\"N/A\",Ref!$B$36,INDEX(Ranks!$1:$1048576,$A485,CD$1))","v":""},{"$f":"IF($A485=\"N/A\",Ref!$B$36,INDEX(Ranks!$1:$1048576,$A485,CE$1))","v":""},{"$f":"IF($A485=\"N/A\",Ref!$B$36,INDEX(Ranks!$1:$1048576,$A485,CF$1))","v":""},{"$f":"IF($A485=\"N/A\",Ref!$B$36,INDEX(Ranks!$1:$1048576,$A485,CG$1))","v":""},{"$f":"IF($A485=\"N/A\",Ref!$B$36,INDEX(Ranks!$1:$1048576,$A485,CH$1))","v":""},{"$f":"IF($A485=\"N/A\",Ref!$B$36,INDEX(Ranks!$1:$1048576,$A485,CI$1))","v":""},{"$f":"IF($A485=\"N/A\",Ref!$B$36,INDEX(Ranks!$1:$1048576,$A485,CJ$1))","v":""},{"$f":"IF($A485=\"N/A\",Ref!$B$36,INDEX(Ranks!$1:$1048576,$A485,CK$1))","v":""},{"$f":"IF($A485=\"N/A\",Ref!$B$36,INDEX(Ranks!$1:$1048576,$A485,CL$1))","v":""},{"$f":"IF($A485=\"N/A\",Ref!$B$36,INDEX(Ranks!$1:$1048576,$A485,CM$1))","v":""},{"$f":"IF($A485=\"N/A\",Ref!$B$36,INDEX(Ranks!$1:$1048576,$A485,CN$1))","v":""},{"$f":"IF($A485=\"N/A\",Ref!$B$36,INDEX(Ranks!$1:$1048576,$A485,CO$1))","v":""},{"$f":"IF($A485=\"N/A\",Ref!$B$36,INDEX(Ranks!$1:$1048576,$A485,CP$1))","v":""},{"$f":"IF($A485=\"N/A\",Ref!$B$36,INDEX(Ranks!$1:$1048576,$A485,CQ$1))","v":""},{"$f":"IF($A485=\"N/A\",Ref!$B$36,INDEX(Ranks!$1:$1048576,$A485,CR$1))","v":""},{"$f":"IF($A485=\"N/A\",Ref!$B$36,INDEX(Ranks!$1:$1048576,$A485,CS$1))","v":""},{"$f":"IF($A485=\"N/A\",Ref!$B$36,INDEX(Ranks!$1:$1048576,$A485,CT$1))","v":""},{"$f":"IF($A485=\"N/A\",Ref!$B$36,INDEX(Ranks!$1:$1048576,$A485,CU$1))","v":""},{"$f":"IF($A485=\"N/A\",Ref!$B$36,INDEX(Ranks!$1:$1048576,$A485,CV$1))","v":""},{"$f":"IF($A485=\"N/A\",Ref!$B$36,INDEX(Ranks!$1:$1048576,$A485,CW$1))","v":""},{"$f":"IF($A485=\"N/A\",Ref!$B$36,INDEX(Ranks!$1:$1048576,$A485,CX$1))","v":""},{"$f":"IF($A485=\"N/A\",Ref!$B$36,INDEX(Ranks!$1:$1048576,$A485,CY$1))","v":""},{"$f":"IF($A485=\"N/A\",Ref!$B$36,INDEX(Ranks!$1:$1048576,$A485,CZ$1))","v":""},{"$f":"IF($A485=\"N/A\",Ref!$B$36,INDEX(Ranks!$1:$1048576,$A485,DA$1))","v":""},{"$f":"IF($A485=\"N/A\",Ref!$B$36,INDEX(Ranks!$1:$1048576,$A485,DB$1))","v":""},{"$f":"IF($A485=\"N/A\",Ref!$B$36,INDEX(Ranks!$1:$1048576,$A485,DC$1))","v":""},{"$f":"IF($A485=\"N/A\",Ref!$B$36,INDEX(Ranks!$1:$1048576,$A485,DD$1))","v":""},{"$f":"IF($A485=\"N/A\",Ref!$B$36,INDEX(Ranks!$1:$1048576,$A485,DE$1))","v":""},{"$f":"IF($A485=\"N/A\",Ref!$B$36,INDEX(Ranks!$1:$1048576,$A485,DF$1))","v":""},{"$f":"IF($A485=\"N/A\",Ref!$B$36,INDEX(Ranks!$1:$1048576,$A485,DG$1))","v":""},{"$f":"IF($A485=\"N/A\",Ref!$B$36,INDEX(Ranks!$1:$1048576,$A485,DH$1))","v":""},{"$f":"IF($A485=\"N/A\",Ref!$B$36,INDEX(Ranks!$1:$1048576,$A485,DI$1))","v":""},{"$f":"IF($A485=\"N/A\",Ref!$B$36,INDEX(Ranks!$1:$1048576,$A485,DJ$1))","v":""},{"$f":"IF($A485=\"N/A\",Ref!$B$36,INDEX(Ranks!$1:$1048576,$A485,DK$1))","v":""},{"$f":"IF($A485=\"N/A\",Ref!$B$36,INDEX(Ranks!$1:$1048576,$A485,DL$1))","v":""},{"$f":"IF($A485=\"N/A\",Ref!$B$36,INDEX(Ranks!$1:$1048576,$A485,DM$1))","v":""},{"$f":"IF($A485=\"N/A\",Ref!$B$36,INDEX(Ranks!$1:$1048576,$A485,DN$1))","v":""},{"$f":"IF($A485=\"N/A\",Ref!$B$36,INDEX(Ranks!$1:$1048576,$A485,DO$1))","v":""},{"$f":"IF($A485=\"N/A\",Ref!$B$36,INDEX(Ranks!$1:$1048576,$A485,DP$1))","v":""},{"$f":"IF($A485=\"N/A\",Ref!$B$36,INDEX(Ranks!$1:$1048576,$A485,DQ$1))","v":""},{"$f":"IF($A485=\"N/A\",Ref!$B$36,INDEX(Ranks!$1:$1048576,$A485,DR$1))","v":""},{"$f":"IF($A485=\"N/A\",Ref!$B$36,INDEX(Ranks!$1:$1048576,$A485,DS$1))","v":""},{"$f":"IF($A485=\"N/A\",Ref!$B$36,INDEX(Ranks!$1:$1048576,$A485,DT$1))","v":""},{"$f":"IF($A485=\"N/A\",Ref!$B$36,INDEX(Ranks!$1:$1048576,$A485,DU$1))","v":""},{"$f":"IF($A485=\"N/A\",Ref!$B$36,INDEX(Ranks!$1:$1048576,$A485,DV$1))","v":""},{"$f":"IF($A485=\"N/A\",Ref!$B$36,INDEX(Ranks!$1:$1048576,$A485,DW$1))","v":""},{"$f":"IF($A485=\"N/A\",Ref!$B$36,INDEX(Ranks!$1:$1048576,$A485,DX$1))","v":""},{"$f":"IF($A485=\"N/A\",Ref!$B$36,INDEX(Ranks!$1:$1048576,$A485,DY$1))","v":""},{"$f":"IF($A485=\"N/A\",Ref!$B$36,INDEX(Ranks!$1:$1048576,$A485,DZ$1))","v":""},{"$f":"IF($A485=\"N/A\",Ref!$B$36,INDEX(Ranks!$1:$1048576,$A485,EA$1))","v":""},{"$f":"IF($A485=\"N/A\",Ref!$B$36,INDEX(Ranks!$1:$1048576,$A485,EB$1))","v":""}]
[{"$f":"IFERROR(MATCH('Portfolio Page'!L486,Ranks!L:L,0),\"N/A\")","v":"N/A"},null,{"$f":"IF($A486=\"N/A\",\"\",INDEX(Ranks!$1:$1048576,$A486,C$1))","v":""},{"$f":"IF($A486=\"N/A\",Ref!$B$36,INDEX(Ranks!$1:$1048576,$A486,D$1))","v":""},{"$f":"IF($A486=\"N/A\",Ref!$B$36,INDEX(Ranks!$1:$1048576,$A486,E$1))","v":""},{"$f":"IF($A486=\"N/A\",\"\",INDEX(Ranks!$1:$1048576,$A486,F$1))","v":""},{"$f":"IF($A486=\"N/A\",\"\",INDEX(Ranks!$1:$1048576,$A486,G$1))","v":""},{"$f":"IF($A486=\"N/A\",\"\",INDEX(Ranks!$1:$1048576,$A486,H$1))","v":""},{"$f":"IF($A486=\"N/A\",\"\",INDEX(Ranks!$1:$1048576,$A486,I$1))","v":""},{"$f":"IF($A486=\"N/A\",\"\",INDEX(Ranks!$1:$1048576,$A486,J$1))","v":""},{"$f":"IF($A486=\"N/A\",\"\",INDEX(Ranks!$1:$1048576,$A486,K$1))","v":""},null,{"$f":"IF($A486=\"N/A\",Ref!$B$36,INDEX(Ranks!$1:$1048576,$A486,M$1))","v":""},{"$f":"IF($A486=\"N/A\",Ref!$B$36,INDEX(Ranks!$1:$1048576,$A486,N$1))","v":""},{"$f":"IF($A486=\"N/A\",Ref!$B$36,INDEX(Ranks!$1:$1048576,$A486,O$1))","v":""},{"$f":"IF($A486=\"N/A\",Ref!$B$36,INDEX(Ranks!$1:$1048576,$A486,P$1))","v":""},{"$f":"IF($A486=\"N/A\",Ref!$B$36,INDEX(Ranks!$1:$1048576,$A486,Q$1))","v":""},{"$f":"IF($A486=\"N/A\",Ref!$B$36,INDEX(Ranks!$1:$1048576,$A486,R$1))","v":""},{"$f":"IF($A486=\"N/A\",Ref!$B$36,INDEX(Ranks!$1:$1048576,$A486,S$1))","v":""},{"$f":"IF($A486=\"N/A\",Ref!$B$36,INDEX(Ranks!$1:$1048576,$A486,T$1))","v":""},{"$f":"IF($A486=\"N/A\",Ref!$B$36,INDEX(Ranks!$1:$1048576,$A486,U$1))","v":""},{"$f":"IF($A486=\"N/A\",Ref!$B$36,INDEX(Ranks!$1:$1048576,$A486,V$1))","v":""},{"$f":"IF($A486=\"N/A\",Ref!$B$36,INDEX(Ranks!$1:$1048576,$A486,W$1))","v":""},{"$f":"IF($A486=\"N/A\",Ref!$B$36,INDEX(Ranks!$1:$1048576,$A486,X$1))","v":""},{"$f":"IF($A486=\"N/A\",Ref!$B$36,INDEX(Ranks!$1:$1048576,$A486,Y$1))","v":""},{"$f":"IF($A486=\"N/A\",Ref!$B$36,INDEX(Ranks!$1:$1048576,$A486,Z$1))","v":""},{"$f":"IF($A486=\"N/A\",Ref!$B$36,INDEX(Ranks!$1:$1048576,$A486,AA$1))","v":""},{"$f":"IF($A486=\"N/A\",Ref!$B$36,INDEX(Ranks!$1:$1048576,$A486,AB$1))","v":""},{"$f":"IF($A486=\"N/A\",Ref!$B$36,INDEX(Ranks!$1:$1048576,$A486,AC$1))","v":""},{"$f":"IF($A486=\"N/A\",Ref!$B$36,INDEX(Ranks!$1:$1048576,$A486,AD$1))","v":""},{"$f":"IF($A486=\"N/A\",Ref!$B$36,INDEX(Ranks!$1:$1048576,$A486,AE$1))","v":""},{"$f":"IF($A486=\"N/A\",Ref!$B$36,INDEX(Ranks!$1:$1048576,$A486,AF$1))","v":""},{"$f":"IF($A486=\"N/A\",Ref!$B$36,INDEX(Ranks!$1:$1048576,$A486,AG$1))","v":""},{"$f":"IF($A486=\"N/A\",Ref!$B$36,INDEX(Ranks!$1:$1048576,$A486,AH$1))","v":""},{"$f":"IF($A486=\"N/A\",Ref!$B$36,INDEX(Ranks!$1:$1048576,$A486,AI$1))","v":""},{"$f":"IF($A486=\"N/A\",Ref!$B$36,INDEX(Ranks!$1:$1048576,$A486,AJ$1))","v":""},{"$f":"IF($A486=\"N/A\",Ref!$B$36,INDEX(Ranks!$1:$1048576,$A486,AK$1))","v":""},{"$f":"IF($A486=\"N/A\",Ref!$B$36,INDEX(Ranks!$1:$1048576,$A486,AL$1))","v":""},{"$f":"IF($A486=\"N/A\",Ref!$B$36,INDEX(Ranks!$1:$1048576,$A486,AM$1))","v":""},{"$f":"IF($A486=\"N/A\",Ref!$B$36,INDEX(Ranks!$1:$1048576,$A486,AN$1))","v":""},{"$f":"IF($A486=\"N/A\",Ref!$B$36,INDEX(Ranks!$1:$1048576,$A486,AO$1))","v":""},{"$f":"IF($A486=\"N/A\",Ref!$B$36,INDEX(Ranks!$1:$1048576,$A486,AP$1))","v":""},{"$f":"IF($A486=\"N/A\",Ref!$B$36,INDEX(Ranks!$1:$1048576,$A486,AQ$1))","v":""},{"$f":"IF($A486=\"N/A\",Ref!$B$36,INDEX(Ranks!$1:$1048576,$A486,AR$1))","v":""},{"$f":"IF($A486=\"N/A\",Ref!$B$36,INDEX(Ranks!$1:$1048576,$A486,AS$1))","v":""},{"$f":"IF($A486=\"N/A\",Ref!$B$36,INDEX(Ranks!$1:$1048576,$A486,AT$1))","v":""},{"$f":"IF($A486=\"N/A\",Ref!$B$36,INDEX(Ranks!$1:$1048576,$A486,AU$1))","v":""},{"$f":"IF($A486=\"N/A\",Ref!$B$36,INDEX(Ranks!$1:$1048576,$A486,AV$1))","v":""},{"$f":"IF($A486=\"N/A\",Ref!$B$36,INDEX(Ranks!$1:$1048576,$A486,AW$1))","v":""},{"$f":"IF($A486=\"N/A\",Ref!$B$36,INDEX(Ranks!$1:$1048576,$A486,AX$1))","v":""},{"$f":"IF($A486=\"N/A\",Ref!$B$36,INDEX(Ranks!$1:$1048576,$A486,AY$1))","v":""},{"$f":"IF($A486=\"N/A\",Ref!$B$36,INDEX(Ranks!$1:$1048576,$A486,AZ$1))","v":""},{"$f":"IF($A486=\"N/A\",Ref!$B$36,INDEX(Ranks!$1:$1048576,$A486,BA$1))","v":""},{"$f":"IF($A486=\"N/A\",Ref!$B$36,INDEX(Ranks!$1:$1048576,$A486,BB$1))","v":""},{"$f":"IF($A486=\"N/A\",Ref!$B$36,INDEX(Ranks!$1:$1048576,$A486,BC$1))","v":""},{"$f":"IF($A486=\"N/A\",Ref!$B$36,INDEX(Ranks!$1:$1048576,$A486,BD$1))","v":""},{"$f":"IF($A486=\"N/A\",Ref!$B$36,INDEX(Ranks!$1:$1048576,$A486,BE$1))","v":""},{"$f":"IF($A486=\"N/A\",Ref!$B$36,INDEX(Ranks!$1:$1048576,$A486,BF$1))","v":""},{"$f":"IF($A486=\"N/A\",Ref!$B$36,INDEX(Ranks!$1:$1048576,$A486,BG$1))","v":""},{"$f":"IF($A486=\"N/A\",Ref!$B$36,INDEX(Ranks!$1:$1048576,$A486,BH$1))","v":""},{"$f":"IF($A486=\"N/A\",Ref!$B$36,INDEX(Ranks!$1:$1048576,$A486,BI$1))","v":""},{"$f":"IF($A486=\"N/A\",Ref!$B$36,INDEX(Ranks!$1:$1048576,$A486,BJ$1))","v":""},{"$f":"IF($A486=\"N/A\",Ref!$B$36,INDEX(Ranks!$1:$1048576,$A486,BK$1))","v":""},{"$f":"IF($A486=\"N/A\",Ref!$B$36,INDEX(Ranks!$1:$1048576,$A486,BL$1))","v":""},{"$f":"IF($A486=\"N/A\",Ref!$B$36,INDEX(Ranks!$1:$1048576,$A486,BM$1))","v":""},{"$f":"IF($A486=\"N/A\",Ref!$B$36,INDEX(Ranks!$1:$1048576,$A486,BN$1))","v":""},{"$f":"IF($A486=\"N/A\",Ref!$B$36,INDEX(Ranks!$1:$1048576,$A486,BO$1))","v":""},{"$f":"IF($A486=\"N/A\",Ref!$B$36,INDEX(Ranks!$1:$1048576,$A486,BP$1))","v":""},{"$f":"IF($A486=\"N/A\",Ref!$B$36,INDEX(Ranks!$1:$1048576,$A486,BQ$1))","v":""},{"$f":"IF($A486=\"N/A\",Ref!$B$36,INDEX(Ranks!$1:$1048576,$A486,BR$1))","v":""},{"$f":"IF($A486=\"N/A\",Ref!$B$36,INDEX(Ranks!$1:$1048576,$A486,BS$1))","v":""},{"$f":"IF($A486=\"N/A\",Ref!$B$36,INDEX(Ranks!$1:$1048576,$A486,BT$1))","v":""},{"$f":"IF($A486=\"N/A\",Ref!$B$36,INDEX(Ranks!$1:$1048576,$A486,BU$1))","v":""},{"$f":"IF($A486=\"N/A\",Ref!$B$36,INDEX(Ranks!$1:$1048576,$A486,BV$1))","v":""},{"$f":"IF($A486=\"N/A\",Ref!$B$36,INDEX(Ranks!$1:$1048576,$A486,BW$1))","v":""},{"$f":"IF($A486=\"N/A\",Ref!$B$36,INDEX(Ranks!$1:$1048576,$A486,BX$1))","v":""},{"$f":"IF($A486=\"N/A\",Ref!$B$36,INDEX(Ranks!$1:$1048576,$A486,BY$1))","v":""},{"$f":"IF($A486=\"N/A\",Ref!$B$36,INDEX(Ranks!$1:$1048576,$A486,BZ$1))","v":""},{"$f":"IF($A486=\"N/A\",Ref!$B$36,INDEX(Ranks!$1:$1048576,$A486,CA$1))","v":""},{"$f":"IF($A486=\"N/A\",Ref!$B$36,INDEX(Ranks!$1:$1048576,$A486,CB$1))","v":""},{"$f":"IF($A486=\"N/A\",Ref!$B$36,INDEX(Ranks!$1:$1048576,$A486,CC$1))","v":""},{"$f":"IF($A486=\"N/A\",Ref!$B$36,INDEX(Ranks!$1:$1048576,$A486,CD$1))","v":""},{"$f":"IF($A486=\"N/A\",Ref!$B$36,INDEX(Ranks!$1:$1048576,$A486,CE$1))","v":""},{"$f":"IF($A486=\"N/A\",Ref!$B$36,INDEX(Ranks!$1:$1048576,$A486,CF$1))","v":""},{"$f":"IF($A486=\"N/A\",Ref!$B$36,INDEX(Ranks!$1:$1048576,$A486,CG$1))","v":""},{"$f":"IF($A486=\"N/A\",Ref!$B$36,INDEX(Ranks!$1:$1048576,$A486,CH$1))","v":""},{"$f":"IF($A486=\"N/A\",Ref!$B$36,INDEX(Ranks!$1:$1048576,$A486,CI$1))","v":""},{"$f":"IF($A486=\"N/A\",Ref!$B$36,INDEX(Ranks!$1:$1048576,$A486,CJ$1))","v":""},{"$f":"IF($A486=\"N/A\",Ref!$B$36,INDEX(Ranks!$1:$1048576,$A486,CK$1))","v":""},{"$f":"IF($A486=\"N/A\",Ref!$B$36,INDEX(Ranks!$1:$1048576,$A486,CL$1))","v":""},{"$f":"IF($A486=\"N/A\",Ref!$B$36,INDEX(Ranks!$1:$1048576,$A486,CM$1))","v":""},{"$f":"IF($A486=\"N/A\",Ref!$B$36,INDEX(Ranks!$1:$1048576,$A486,CN$1))","v":""},{"$f":"IF($A486=\"N/A\",Ref!$B$36,INDEX(Ranks!$1:$1048576,$A486,CO$1))","v":""},{"$f":"IF($A486=\"N/A\",Ref!$B$36,INDEX(Ranks!$1:$1048576,$A486,CP$1))","v":""},{"$f":"IF($A486=\"N/A\",Ref!$B$36,INDEX(Ranks!$1:$1048576,$A486,CQ$1))","v":""},{"$f":"IF($A486=\"N/A\",Ref!$B$36,INDEX(Ranks!$1:$1048576,$A486,CR$1))","v":""},{"$f":"IF($A486=\"N/A\",Ref!$B$36,INDEX(Ranks!$1:$1048576,$A486,CS$1))","v":""},{"$f":"IF($A486=\"N/A\",Ref!$B$36,INDEX(Ranks!$1:$1048576,$A486,CT$1))","v":""},{"$f":"IF($A486=\"N/A\",Ref!$B$36,INDEX(Ranks!$1:$1048576,$A486,CU$1))","v":""},{"$f":"IF($A486=\"N/A\",Ref!$B$36,INDEX(Ranks!$1:$1048576,$A486,CV$1))","v":""},{"$f":"IF($A486=\"N/A\",Ref!$B$36,INDEX(Ranks!$1:$1048576,$A486,CW$1))","v":""},{"$f":"IF($A486=\"N/A\",Ref!$B$36,INDEX(Ranks!$1:$1048576,$A486,CX$1))","v":""},{"$f":"IF($A486=\"N/A\",Ref!$B$36,INDEX(Ranks!$1:$1048576,$A486,CY$1))","v":""},{"$f":"IF($A486=\"N/A\",Ref!$B$36,INDEX(Ranks!$1:$1048576,$A486,CZ$1))","v":""},{"$f":"IF($A486=\"N/A\",Ref!$B$36,INDEX(Ranks!$1:$1048576,$A486,DA$1))","v":""},{"$f":"IF($A486=\"N/A\",Ref!$B$36,INDEX(Ranks!$1:$1048576,$A486,DB$1))","v":""},{"$f":"IF($A486=\"N/A\",Ref!$B$36,INDEX(Ranks!$1:$1048576,$A486,DC$1))","v":""},{"$f":"IF($A486=\"N/A\",Ref!$B$36,INDEX(Ranks!$1:$1048576,$A486,DD$1))","v":""},{"$f":"IF($A486=\"N/A\",Ref!$B$36,INDEX(Ranks!$1:$1048576,$A486,DE$1))","v":""},{"$f":"IF($A486=\"N/A\",Ref!$B$36,INDEX(Ranks!$1:$1048576,$A486,DF$1))","v":""},{"$f":"IF($A486=\"N/A\",Ref!$B$36,INDEX(Ranks!$1:$1048576,$A486,DG$1))","v":""},{"$f":"IF($A486=\"N/A\",Ref!$B$36,INDEX(Ranks!$1:$1048576,$A486,DH$1))","v":""},{"$f":"IF($A486=\"N/A\",Ref!$B$36,INDEX(Ranks!$1:$1048576,$A486,DI$1))","v":""},{"$f":"IF($A486=\"N/A\",Ref!$B$36,INDEX(Ranks!$1:$1048576,$A486,DJ$1))","v":""},{"$f":"IF($A486=\"N/A\",Ref!$B$36,INDEX(Ranks!$1:$1048576,$A486,DK$1))","v":""},{"$f":"IF($A486=\"N/A\",Ref!$B$36,INDEX(Ranks!$1:$1048576,$A486,DL$1))","v":""},{"$f":"IF($A486=\"N/A\",Ref!$B$36,INDEX(Ranks!$1:$1048576,$A486,DM$1))","v":""},{"$f":"IF($A486=\"N/A\",Ref!$B$36,INDEX(Ranks!$1:$1048576,$A486,DN$1))","v":""},{"$f":"IF($A486=\"N/A\",Ref!$B$36,INDEX(Ranks!$1:$1048576,$A486,DO$1))","v":""},{"$f":"IF($A486=\"N/A\",Ref!$B$36,INDEX(Ranks!$1:$1048576,$A486,DP$1))","v":""},{"$f":"IF($A486=\"N/A\",Ref!$B$36,INDEX(Ranks!$1:$1048576,$A486,DQ$1))","v":""},{"$f":"IF($A486=\"N/A\",Ref!$B$36,INDEX(Ranks!$1:$1048576,$A486,DR$1))","v":""},{"$f":"IF($A486=\"N/A\",Ref!$B$36,INDEX(Ranks!$1:$1048576,$A486,DS$1))","v":""},{"$f":"IF($A486=\"N/A\",Ref!$B$36,INDEX(Ranks!$1:$1048576,$A486,DT$1))","v":""},{"$f":"IF($A486=\"N/A\",Ref!$B$36,INDEX(Ranks!$1:$1048576,$A486,DU$1))","v":""},{"$f":"IF($A486=\"N/A\",Ref!$B$36,INDEX(Ranks!$1:$1048576,$A486,DV$1))","v":""},{"$f":"IF($A486=\"N/A\",Ref!$B$36,INDEX(Ranks!$1:$1048576,$A486,DW$1))","v":""},{"$f":"IF($A486=\"N/A\",Ref!$B$36,INDEX(Ranks!$1:$1048576,$A486,DX$1))","v":""},{"$f":"IF($A486=\"N/A\",Ref!$B$36,INDEX(Ranks!$1:$1048576,$A486,DY$1))","v":""},{"$f":"IF($A486=\"N/A\",Ref!$B$36,INDEX(Ranks!$1:$1048576,$A486,DZ$1))","v":""},{"$f":"IF($A486=\"N/A\",Ref!$B$36,INDEX(Ranks!$1:$1048576,$A486,EA$1))","v":""},{"$f":"IF($A486=\"N/A\",Ref!$B$36,INDEX(Ranks!$1:$1048576,$A486,EB$1))","v":""}]
[{"$f":"IFERROR(MATCH('Portfolio Page'!L487,Ranks!L:L,0),\"N/A\")","v":"N/A"},null,{"$f":"IF($A487=\"N/A\",\"\",INDEX(Ranks!$1:$1048576,$A487,C$1))","v":""},{"$f":"IF($A487=\"N/A\",Ref!$B$36,INDEX(Ranks!$1:$1048576,$A487,D$1))","v":""},{"$f":"IF($A487=\"N/A\",Ref!$B$36,INDEX(Ranks!$1:$1048576,$A487,E$1))","v":""},{"$f":"IF($A487=\"N/A\",\"\",INDEX(Ranks!$1:$1048576,$A487,F$1))","v":""},{"$f":"IF($A487=\"N/A\",\"\",INDEX(Ranks!$1:$1048576,$A487,G$1))","v":""},{"$f":"IF($A487=\"N/A\",\"\",INDEX(Ranks!$1:$1048576,$A487,H$1))","v":""},{"$f":"IF($A487=\"N/A\",\"\",INDEX(Ranks!$1:$1048576,$A487,I$1))","v":""},{"$f":"IF($A487=\"N/A\",\"\",INDEX(Ranks!$1:$1048576,$A487,J$1))","v":""},{"$f":"IF($A487=\"N/A\",\"\",INDEX(Ranks!$1:$1048576,$A487,K$1))","v":""},null,{"$f":"IF($A487=\"N/A\",Ref!$B$36,INDEX(Ranks!$1:$1048576,$A487,M$1))","v":""},{"$f":"IF($A487=\"N/A\",Ref!$B$36,INDEX(Ranks!$1:$1048576,$A487,N$1))","v":""},{"$f":"IF($A487=\"N/A\",Ref!$B$36,INDEX(Ranks!$1:$1048576,$A487,O$1))","v":""},{"$f":"IF($A487=\"N/A\",Ref!$B$36,INDEX(Ranks!$1:$1048576,$A487,P$1))","v":""},{"$f":"IF($A487=\"N/A\",Ref!$B$36,INDEX(Ranks!$1:$1048576,$A487,Q$1))","v":""},{"$f":"IF($A487=\"N/A\",Ref!$B$36,INDEX(Ranks!$1:$1048576,$A487,R$1))","v":""},{"$f":"IF($A487=\"N/A\",Ref!$B$36,INDEX(Ranks!$1:$1048576,$A487,S$1))","v":""},{"$f":"IF($A487=\"N/A\",Ref!$B$36,INDEX(Ranks!$1:$1048576,$A487,T$1))","v":""},{"$f":"IF($A487=\"N/A\",Ref!$B$36,INDEX(Ranks!$1:$1048576,$A487,U$1))","v":""},{"$f":"IF($A487=\"N/A\",Ref!$B$36,INDEX(Ranks!$1:$1048576,$A487,V$1))","v":""},{"$f":"IF($A487=\"N/A\",Ref!$B$36,INDEX(Ranks!$1:$1048576,$A487,W$1))","v":""},{"$f":"IF($A487=\"N/A\",Ref!$B$36,INDEX(Ranks!$1:$1048576,$A487,X$1))","v":""},{"$f":"IF($A487=\"N/A\",Ref!$B$36,INDEX(Ranks!$1:$1048576,$A487,Y$1))","v":""},{"$f":"IF($A487=\"N/A\",Ref!$B$36,INDEX(Ranks!$1:$1048576,$A487,Z$1))","v":""},{"$f":"IF($A487=\"N/A\",Ref!$B$36,INDEX(Ranks!$1:$1048576,$A487,AA$1))","v":""},{"$f":"IF($A487=\"N/A\",Ref!$B$36,INDEX(Ranks!$1:$1048576,$A487,AB$1))","v":""},{"$f":"IF($A487=\"N/A\",Ref!$B$36,INDEX(Ranks!$1:$1048576,$A487,AC$1))","v":""},{"$f":"IF($A487=\"N/A\",Ref!$B$36,INDEX(Ranks!$1:$1048576,$A487,AD$1))","v":""},{"$f":"IF($A487=\"N/A\",Ref!$B$36,INDEX(Ranks!$1:$1048576,$A487,AE$1))","v":""},{"$f":"IF($A487=\"N/A\",Ref!$B$36,INDEX(Ranks!$1:$1048576,$A487,AF$1))","v":""},{"$f":"IF($A487=\"N/A\",Ref!$B$36,INDEX(Ranks!$1:$1048576,$A487,AG$1))","v":""},{"$f":"IF($A487=\"N/A\",Ref!$B$36,INDEX(Ranks!$1:$1048576,$A487,AH$1))","v":""},{"$f":"IF($A487=\"N/A\",Ref!$B$36,INDEX(Ranks!$1:$1048576,$A487,AI$1))","v":""},{"$f":"IF($A487=\"N/A\",Ref!$B$36,INDEX(Ranks!$1:$1048576,$A487,AJ$1))","v":""},{"$f":"IF($A487=\"N/A\",Ref!$B$36,INDEX(Ranks!$1:$1048576,$A487,AK$1))","v":""},{"$f":"IF($A487=\"N/A\",Ref!$B$36,INDEX(Ranks!$1:$1048576,$A487,AL$1))","v":""},{"$f":"IF($A487=\"N/A\",Ref!$B$36,INDEX(Ranks!$1:$1048576,$A487,AM$1))","v":""},{"$f":"IF($A487=\"N/A\",Ref!$B$36,INDEX(Ranks!$1:$1048576,$A487,AN$1))","v":""},{"$f":"IF($A487=\"N/A\",Ref!$B$36,INDEX(Ranks!$1:$1048576,$A487,AO$1))","v":""},{"$f":"IF($A487=\"N/A\",Ref!$B$36,INDEX(Ranks!$1:$1048576,$A487,AP$1))","v":""},{"$f":"IF($A487=\"N/A\",Ref!$B$36,INDEX(Ranks!$1:$1048576,$A487,AQ$1))","v":""},{"$f":"IF($A487=\"N/A\",Ref!$B$36,INDEX(Ranks!$1:$1048576,$A487,AR$1))","v":""},{"$f":"IF($A487=\"N/A\",Ref!$B$36,INDEX(Ranks!$1:$1048576,$A487,AS$1))","v":""},{"$f":"IF($A487=\"N/A\",Ref!$B$36,INDEX(Ranks!$1:$1048576,$A487,AT$1))","v":""},{"$f":"IF($A487=\"N/A\",Ref!$B$36,INDEX(Ranks!$1:$1048576,$A487,AU$1))","v":""},{"$f":"IF($A487=\"N/A\",Ref!$B$36,INDEX(Ranks!$1:$1048576,$A487,AV$1))","v":""},{"$f":"IF($A487=\"N/A\",Ref!$B$36,INDEX(Ranks!$1:$1048576,$A487,AW$1))","v":""},{"$f":"IF($A487=\"N/A\",Ref!$B$36,INDEX(Ranks!$1:$1048576,$A487,AX$1))","v":""},{"$f":"IF($A487=\"N/A\",Ref!$B$36,INDEX(Ranks!$1:$1048576,$A487,AY$1))","v":""},{"$f":"IF($A487=\"N/A\",Ref!$B$36,INDEX(Ranks!$1:$1048576,$A487,AZ$1))","v":""},{"$f":"IF($A487=\"N/A\",Ref!$B$36,INDEX(Ranks!$1:$1048576,$A487,BA$1))","v":""},{"$f":"IF($A487=\"N/A\",Ref!$B$36,INDEX(Ranks!$1:$1048576,$A487,BB$1))","v":""},{"$f":"IF($A487=\"N/A\",Ref!$B$36,INDEX(Ranks!$1:$1048576,$A487,BC$1))","v":""},{"$f":"IF($A487=\"N/A\",Ref!$B$36,INDEX(Ranks!$1:$1048576,$A487,BD$1))","v":""},{"$f":"IF($A487=\"N/A\",Ref!$B$36,INDEX(Ranks!$1:$1048576,$A487,BE$1))","v":""},{"$f":"IF($A487=\"N/A\",Ref!$B$36,INDEX(Ranks!$1:$1048576,$A487,BF$1))","v":""},{"$f":"IF($A487=\"N/A\",Ref!$B$36,INDEX(Ranks!$1:$1048576,$A487,BG$1))","v":""},{"$f":"IF($A487=\"N/A\",Ref!$B$36,INDEX(Ranks!$1:$1048576,$A487,BH$1))","v":""},{"$f":"IF($A487=\"N/A\",Ref!$B$36,INDEX(Ranks!$1:$1048576,$A487,BI$1))","v":""},{"$f":"IF($A487=\"N/A\",Ref!$B$36,INDEX(Ranks!$1:$1048576,$A487,BJ$1))","v":""},{"$f":"IF($A487=\"N/A\",Ref!$B$36,INDEX(Ranks!$1:$1048576,$A487,BK$1))","v":""},{"$f":"IF($A487=\"N/A\",Ref!$B$36,INDEX(Ranks!$1:$1048576,$A487,BL$1))","v":""},{"$f":"IF($A487=\"N/A\",Ref!$B$36,INDEX(Ranks!$1:$1048576,$A487,BM$1))","v":""},{"$f":"IF($A487=\"N/A\",Ref!$B$36,INDEX(Ranks!$1:$1048576,$A487,BN$1))","v":""},{"$f":"IF($A487=\"N/A\",Ref!$B$36,INDEX(Ranks!$1:$1048576,$A487,BO$1))","v":""},{"$f":"IF($A487=\"N/A\",Ref!$B$36,INDEX(Ranks!$1:$1048576,$A487,BP$1))","v":""},{"$f":"IF($A487=\"N/A\",Ref!$B$36,INDEX(Ranks!$1:$1048576,$A487,BQ$1))","v":""},{"$f":"IF($A487=\"N/A\",Ref!$B$36,INDEX(Ranks!$1:$1048576,$A487,BR$1))","v":""},{"$f":"IF($A487=\"N/A\",Ref!$B$36,INDEX(Ranks!$1:$1048576,$A487,BS$1))","v":""},{"$f":"IF($A487=\"N/A\",Ref!$B$36,INDEX(Ranks!$1:$1048576,$A487,BT$1))","v":""},{"$f":"IF($A487=\"N/A\",Ref!$B$36,INDEX(Ranks!$1:$1048576,$A487,BU$1))","v":""},{"$f":"IF($A487=\"N/A\",Ref!$B$36,INDEX(Ranks!$1:$1048576,$A487,BV$1))","v":""},{"$f":"IF($A487=\"N/A\",Ref!$B$36,INDEX(Ranks!$1:$1048576,$A487,BW$1))","v":""},{"$f":"IF($A487=\"N/A\",Ref!$B$36,INDEX(Ranks!$1:$1048576,$A487,BX$1))","v":""},{"$f":"IF($A487=\"N/A\",Ref!$B$36,INDEX(Ranks!$1:$1048576,$A487,BY$1))","v":""},{"$f":"IF($A487=\"N/A\",Ref!$B$36,INDEX(Ranks!$1:$1048576,$A487,BZ$1))","v":""},{"$f":"IF($A487=\"N/A\",Ref!$B$36,INDEX(Ranks!$1:$1048576,$A487,CA$1))","v":""},{"$f":"IF($A487=\"N/A\",Ref!$B$36,INDEX(Ranks!$1:$1048576,$A487,CB$1))","v":""},{"$f":"IF($A487=\"N/A\",Ref!$B$36,INDEX(Ranks!$1:$1048576,$A487,CC$1))","v":""},{"$f":"IF($A487=\"N/A\",Ref!$B$36,INDEX(Ranks!$1:$1048576,$A487,CD$1))","v":""},{"$f":"IF($A487=\"N/A\",Ref!$B$36,INDEX(Ranks!$1:$1048576,$A487,CE$1))","v":""},{"$f":"IF($A487=\"N/A\",Ref!$B$36,INDEX(Ranks!$1:$1048576,$A487,CF$1))","v":""},{"$f":"IF($A487=\"N/A\",Ref!$B$36,INDEX(Ranks!$1:$1048576,$A487,CG$1))","v":""},{"$f":"IF($A487=\"N/A\",Ref!$B$36,INDEX(Ranks!$1:$1048576,$A487,CH$1))","v":""},{"$f":"IF($A487=\"N/A\",Ref!$B$36,INDEX(Ranks!$1:$1048576,$A487,CI$1))","v":""},{"$f":"IF($A487=\"N/A\",Ref!$B$36,INDEX(Ranks!$1:$1048576,$A487,CJ$1))","v":""},{"$f":"IF($A487=\"N/A\",Ref!$B$36,INDEX(Ranks!$1:$1048576,$A487,CK$1))","v":""},{"$f":"IF($A487=\"N/A\",Ref!$B$36,INDEX(Ranks!$1:$1048576,$A487,CL$1))","v":""},{"$f":"IF($A487=\"N/A\",Ref!$B$36,INDEX(Ranks!$1:$1048576,$A487,CM$1))","v":""},{"$f":"IF($A487=\"N/A\",Ref!$B$36,INDEX(Ranks!$1:$1048576,$A487,CN$1))","v":""},{"$f":"IF($A487=\"N/A\",Ref!$B$36,INDEX(Ranks!$1:$1048576,$A487,CO$1))","v":""},{"$f":"IF($A487=\"N/A\",Ref!$B$36,INDEX(Ranks!$1:$1048576,$A487,CP$1))","v":""},{"$f":"IF($A487=\"N/A\",Ref!$B$36,INDEX(Ranks!$1:$1048576,$A487,CQ$1))","v":""},{"$f":"IF($A487=\"N/A\",Ref!$B$36,INDEX(Ranks!$1:$1048576,$A487,CR$1))","v":""},{"$f":"IF($A487=\"N/A\",Ref!$B$36,INDEX(Ranks!$1:$1048576,$A487,CS$1))","v":""},{"$f":"IF($A487=\"N/A\",Ref!$B$36,INDEX(Ranks!$1:$1048576,$A487,CT$1))","v":""},{"$f":"IF($A487=\"N/A\",Ref!$B$36,INDEX(Ranks!$1:$1048576,$A487,CU$1))","v":""},{"$f":"IF($A487=\"N/A\",Ref!$B$36,INDEX(Ranks!$1:$1048576,$A487,CV$1))","v":""},{"$f":"IF($A487=\"N/A\",Ref!$B$36,INDEX(Ranks!$1:$1048576,$A487,CW$1))","v":""},{"$f":"IF($A487=\"N/A\",Ref!$B$36,INDEX(Ranks!$1:$1048576,$A487,CX$1))","v":""},{"$f":"IF($A487=\"N/A\",Ref!$B$36,INDEX(Ranks!$1:$1048576,$A487,CY$1))","v":""},{"$f":"IF($A487=\"N/A\",Ref!$B$36,INDEX(Ranks!$1:$1048576,$A487,CZ$1))","v":""},{"$f":"IF($A487=\"N/A\",Ref!$B$36,INDEX(Ranks!$1:$1048576,$A487,DA$1))","v":""},{"$f":"IF($A487=\"N/A\",Ref!$B$36,INDEX(Ranks!$1:$1048576,$A487,DB$1))","v":""},{"$f":"IF($A487=\"N/A\",Ref!$B$36,INDEX(Ranks!$1:$1048576,$A487,DC$1))","v":""},{"$f":"IF($A487=\"N/A\",Ref!$B$36,INDEX(Ranks!$1:$1048576,$A487,DD$1))","v":""},{"$f":"IF($A487=\"N/A\",Ref!$B$36,INDEX(Ranks!$1:$1048576,$A487,DE$1))","v":""},{"$f":"IF($A487=\"N/A\",Ref!$B$36,INDEX(Ranks!$1:$1048576,$A487,DF$1))","v":""},{"$f":"IF($A487=\"N/A\",Ref!$B$36,INDEX(Ranks!$1:$1048576,$A487,DG$1))","v":""},{"$f":"IF($A487=\"N/A\",Ref!$B$36,INDEX(Ranks!$1:$1048576,$A487,DH$1))","v":""},{"$f":"IF($A487=\"N/A\",Ref!$B$36,INDEX(Ranks!$1:$1048576,$A487,DI$1))","v":""},{"$f":"IF($A487=\"N/A\",Ref!$B$36,INDEX(Ranks!$1:$1048576,$A487,DJ$1))","v":""},{"$f":"IF($A487=\"N/A\",Ref!$B$36,INDEX(Ranks!$1:$1048576,$A487,DK$1))","v":""},{"$f":"IF($A487=\"N/A\",Ref!$B$36,INDEX(Ranks!$1:$1048576,$A487,DL$1))","v":""},{"$f":"IF($A487=\"N/A\",Ref!$B$36,INDEX(Ranks!$1:$1048576,$A487,DM$1))","v":""},{"$f":"IF($A487=\"N/A\",Ref!$B$36,INDEX(Ranks!$1:$1048576,$A487,DN$1))","v":""},{"$f":"IF($A487=\"N/A\",Ref!$B$36,INDEX(Ranks!$1:$1048576,$A487,DO$1))","v":""},{"$f":"IF($A487=\"N/A\",Ref!$B$36,INDEX(Ranks!$1:$1048576,$A487,DP$1))","v":""},{"$f":"IF($A487=\"N/A\",Ref!$B$36,INDEX(Ranks!$1:$1048576,$A487,DQ$1))","v":""},{"$f":"IF($A487=\"N/A\",Ref!$B$36,INDEX(Ranks!$1:$1048576,$A487,DR$1))","v":""},{"$f":"IF($A487=\"N/A\",Ref!$B$36,INDEX(Ranks!$1:$1048576,$A487,DS$1))","v":""},{"$f":"IF($A487=\"N/A\",Ref!$B$36,INDEX(Ranks!$1:$1048576,$A487,DT$1))","v":""},{"$f":"IF($A487=\"N/A\",Ref!$B$36,INDEX(Ranks!$1:$1048576,$A487,DU$1))","v":""},{"$f":"IF($A487=\"N/A\",Ref!$B$36,INDEX(Ranks!$1:$1048576,$A487,DV$1))","v":""},{"$f":"IF($A487=\"N/A\",Ref!$B$36,INDEX(Ranks!$1:$1048576,$A487,DW$1))","v":""},{"$f":"IF($A487=\"N/A\",Ref!$B$36,INDEX(Ranks!$1:$1048576,$A487,DX$1))","v":""},{"$f":"IF($A487=\"N/A\",Ref!$B$36,INDEX(Ranks!$1:$1048576,$A487,DY$1))","v":""},{"$f":"IF($A487=\"N/A\",Ref!$B$36,INDEX(Ranks!$1:$1048576,$A487,DZ$1))","v":""},{"$f":"IF($A487=\"N/A\",Ref!$B$36,INDEX(Ranks!$1:$1048576,$A487,EA$1))","v":""},{"$f":"IF($A487=\"N/A\",Ref!$B$36,INDEX(Ranks!$1:$1048576,$A487,EB$1))","v":""}]
[{"$f":"IFERROR(MATCH('Portfolio Page'!L488,Ranks!L:L,0),\"N/A\")","v":"N/A"},null,{"$f":"IF($A488=\"N/A\",\"\",INDEX(Ranks!$1:$1048576,$A488,C$1))","v":""},{"$f":"IF($A488=\"N/A\",Ref!$B$36,INDEX(Ranks!$1:$1048576,$A488,D$1))","v":""},{"$f":"IF($A488=\"N/A\",Ref!$B$36,INDEX(Ranks!$1:$1048576,$A488,E$1))","v":""},{"$f":"IF($A488=\"N/A\",\"\",INDEX(Ranks!$1:$1048576,$A488,F$1))","v":""},{"$f":"IF($A488=\"N/A\",\"\",INDEX(Ranks!$1:$1048576,$A488,G$1))","v":""},{"$f":"IF($A488=\"N/A\",\"\",INDEX(Ranks!$1:$1048576,$A488,H$1))","v":""},{"$f":"IF($A488=\"N/A\",\"\",INDEX(Ranks!$1:$1048576,$A488,I$1))","v":""},{"$f":"IF($A488=\"N/A\",\"\",INDEX(Ranks!$1:$1048576,$A488,J$1))","v":""},{"$f":"IF($A488=\"N/A\",\"\",INDEX(Ranks!$1:$1048576,$A488,K$1))","v":""},null,{"$f":"IF($A488=\"N/A\",Ref!$B$36,INDEX(Ranks!$1:$1048576,$A488,M$1))","v":""},{"$f":"IF($A488=\"N/A\",Ref!$B$36,INDEX(Ranks!$1:$1048576,$A488,N$1))","v":""},{"$f":"IF($A488=\"N/A\",Ref!$B$36,INDEX(Ranks!$1:$1048576,$A488,O$1))","v":""},{"$f":"IF($A488=\"N/A\",Ref!$B$36,INDEX(Ranks!$1:$1048576,$A488,P$1))","v":""},{"$f":"IF($A488=\"N/A\",Ref!$B$36,INDEX(Ranks!$1:$1048576,$A488,Q$1))","v":""},{"$f":"IF($A488=\"N/A\",Ref!$B$36,INDEX(Ranks!$1:$1048576,$A488,R$1))","v":""},{"$f":"IF($A488=\"N/A\",Ref!$B$36,INDEX(Ranks!$1:$1048576,$A488,S$1))","v":""},{"$f":"IF($A488=\"N/A\",Ref!$B$36,INDEX(Ranks!$1:$1048576,$A488,T$1))","v":""},{"$f":"IF($A488=\"N/A\",Ref!$B$36,INDEX(Ranks!$1:$1048576,$A488,U$1))","v":""},{"$f":"IF($A488=\"N/A\",Ref!$B$36,INDEX(Ranks!$1:$1048576,$A488,V$1))","v":""},{"$f":"IF($A488=\"N/A\",Ref!$B$36,INDEX(Ranks!$1:$1048576,$A488,W$1))","v":""},{"$f":"IF($A488=\"N/A\",Ref!$B$36,INDEX(Ranks!$1:$1048576,$A488,X$1))","v":""},{"$f":"IF($A488=\"N/A\",Ref!$B$36,INDEX(Ranks!$1:$1048576,$A488,Y$1))","v":""},{"$f":"IF($A488=\"N/A\",Ref!$B$36,INDEX(Ranks!$1:$1048576,$A488,Z$1))","v":""},{"$f":"IF($A488=\"N/A\",Ref!$B$36,INDEX(Ranks!$1:$1048576,$A488,AA$1))","v":""},{"$f":"IF($A488=\"N/A\",Ref!$B$36,INDEX(Ranks!$1:$1048576,$A488,AB$1))","v":""},{"$f":"IF($A488=\"N/A\",Ref!$B$36,INDEX(Ranks!$1:$1048576,$A488,AC$1))","v":""},{"$f":"IF($A488=\"N/A\",Ref!$B$36,INDEX(Ranks!$1:$1048576,$A488,AD$1))","v":""},{"$f":"IF($A488=\"N/A\",Ref!$B$36,INDEX(Ranks!$1:$1048576,$A488,AE$1))","v":""},{"$f":"IF($A488=\"N/A\",Ref!$B$36,INDEX(Ranks!$1:$1048576,$A488,AF$1))","v":""},{"$f":"IF($A488=\"N/A\",Ref!$B$36,INDEX(Ranks!$1:$1048576,$A488,AG$1))","v":""},{"$f":"IF($A488=\"N/A\",Ref!$B$36,INDEX(Ranks!$1:$1048576,$A488,AH$1))","v":""},{"$f":"IF($A488=\"N/A\",Ref!$B$36,INDEX(Ranks!$1:$1048576,$A488,AI$1))","v":""},{"$f":"IF($A488=\"N/A\",Ref!$B$36,INDEX(Ranks!$1:$1048576,$A488,AJ$1))","v":""},{"$f":"IF($A488=\"N/A\",Ref!$B$36,INDEX(Ranks!$1:$1048576,$A488,AK$1))","v":""},{"$f":"IF($A488=\"N/A\",Ref!$B$36,INDEX(Ranks!$1:$1048576,$A488,AL$1))","v":""},{"$f":"IF($A488=\"N/A\",Ref!$B$36,INDEX(Ranks!$1:$1048576,$A488,AM$1))","v":""},{"$f":"IF($A488=\"N/A\",Ref!$B$36,INDEX(Ranks!$1:$1048576,$A488,AN$1))","v":""},{"$f":"IF($A488=\"N/A\",Ref!$B$36,INDEX(Ranks!$1:$1048576,$A488,AO$1))","v":""},{"$f":"IF($A488=\"N/A\",Ref!$B$36,INDEX(Ranks!$1:$1048576,$A488,AP$1))","v":""},{"$f":"IF($A488=\"N/A\",Ref!$B$36,INDEX(Ranks!$1:$1048576,$A488,AQ$1))","v":""},{"$f":"IF($A488=\"N/A\",Ref!$B$36,INDEX(Ranks!$1:$1048576,$A488,AR$1))","v":""},{"$f":"IF($A488=\"N/A\",Ref!$B$36,INDEX(Ranks!$1:$1048576,$A488,AS$1))","v":""},{"$f":"IF($A488=\"N/A\",Ref!$B$36,INDEX(Ranks!$1:$1048576,$A488,AT$1))","v":""},{"$f":"IF($A488=\"N/A\",Ref!$B$36,INDEX(Ranks!$1:$1048576,$A488,AU$1))","v":""},{"$f":"IF($A488=\"N/A\",Ref!$B$36,INDEX(Ranks!$1:$1048576,$A488,AV$1))","v":""},{"$f":"IF($A488=\"N/A\",Ref!$B$36,INDEX(Ranks!$1:$1048576,$A488,AW$1))","v":""},{"$f":"IF($A488=\"N/A\",Ref!$B$36,INDEX(Ranks!$1:$1048576,$A488,AX$1))","v":""},{"$f":"IF($A488=\"N/A\",Ref!$B$36,INDEX(Ranks!$1:$1048576,$A488,AY$1))","v":""},{"$f":"IF($A488=\"N/A\",Ref!$B$36,INDEX(Ranks!$1:$1048576,$A488,AZ$1))","v":""},{"$f":"IF($A488=\"N/A\",Ref!$B$36,INDEX(Ranks!$1:$1048576,$A488,BA$1))","v":""},{"$f":"IF($A488=\"N/A\",Ref!$B$36,INDEX(Ranks!$1:$1048576,$A488,BB$1))","v":""},{"$f":"IF($A488=\"N/A\",Ref!$B$36,INDEX(Ranks!$1:$1048576,$A488,BC$1))","v":""},{"$f":"IF($A488=\"N/A\",Ref!$B$36,INDEX(Ranks!$1:$1048576,$A488,BD$1))","v":""},{"$f":"IF($A488=\"N/A\",Ref!$B$36,INDEX(Ranks!$1:$1048576,$A488,BE$1))","v":""},{"$f":"IF($A488=\"N/A\",Ref!$B$36,INDEX(Ranks!$1:$1048576,$A488,BF$1))","v":""},{"$f":"IF($A488=\"N/A\",Ref!$B$36,INDEX(Ranks!$1:$1048576,$A488,BG$1))","v":""},{"$f":"IF($A488=\"N/A\",Ref!$B$36,INDEX(Ranks!$1:$1048576,$A488,BH$1))","v":""},{"$f":"IF($A488=\"N/A\",Ref!$B$36,INDEX(Ranks!$1:$1048576,$A488,BI$1))","v":""},{"$f":"IF($A488=\"N/A\",Ref!$B$36,INDEX(Ranks!$1:$1048576,$A488,BJ$1))","v":""},{"$f":"IF($A488=\"N/A\",Ref!$B$36,INDEX(Ranks!$1:$1048576,$A488,BK$1))","v":""},{"$f":"IF($A488=\"N/A\",Ref!$B$36,INDEX(Ranks!$1:$1048576,$A488,BL$1))","v":""},{"$f":"IF($A488=\"N/A\",Ref!$B$36,INDEX(Ranks!$1:$1048576,$A488,BM$1))","v":""},{"$f":"IF($A488=\"N/A\",Ref!$B$36,INDEX(Ranks!$1:$1048576,$A488,BN$1))","v":""},{"$f":"IF($A488=\"N/A\",Ref!$B$36,INDEX(Ranks!$1:$1048576,$A488,BO$1))","v":""},{"$f":"IF($A488=\"N/A\",Ref!$B$36,INDEX(Ranks!$1:$1048576,$A488,BP$1))","v":""},{"$f":"IF($A488=\"N/A\",Ref!$B$36,INDEX(Ranks!$1:$1048576,$A488,BQ$1))","v":""},{"$f":"IF($A488=\"N/A\",Ref!$B$36,INDEX(Ranks!$1:$1048576,$A488,BR$1))","v":""},{"$f":"IF($A488=\"N/A\",Ref!$B$36,INDEX(Ranks!$1:$1048576,$A488,BS$1))","v":""},{"$f":"IF($A488=\"N/A\",Ref!$B$36,INDEX(Ranks!$1:$1048576,$A488,BT$1))","v":""},{"$f":"IF($A488=\"N/A\",Ref!$B$36,INDEX(Ranks!$1:$1048576,$A488,BU$1))","v":""},{"$f":"IF($A488=\"N/A\",Ref!$B$36,INDEX(Ranks!$1:$1048576,$A488,BV$1))","v":""},{"$f":"IF($A488=\"N/A\",Ref!$B$36,INDEX(Ranks!$1:$1048576,$A488,BW$1))","v":""},{"$f":"IF($A488=\"N/A\",Ref!$B$36,INDEX(Ranks!$1:$1048576,$A488,BX$1))","v":""},{"$f":"IF($A488=\"N/A\",Ref!$B$36,INDEX(Ranks!$1:$1048576,$A488,BY$1))","v":""},{"$f":"IF($A488=\"N/A\",Ref!$B$36,INDEX(Ranks!$1:$1048576,$A488,BZ$1))","v":""},{"$f":"IF($A488=\"N/A\",Ref!$B$36,INDEX(Ranks!$1:$1048576,$A488,CA$1))","v":""},{"$f":"IF($A488=\"N/A\",Ref!$B$36,INDEX(Ranks!$1:$1048576,$A488,CB$1))","v":""},{"$f":"IF($A488=\"N/A\",Ref!$B$36,INDEX(Ranks!$1:$1048576,$A488,CC$1))","v":""},{"$f":"IF($A488=\"N/A\",Ref!$B$36,INDEX(Ranks!$1:$1048576,$A488,CD$1))","v":""},{"$f":"IF($A488=\"N/A\",Ref!$B$36,INDEX(Ranks!$1:$1048576,$A488,CE$1))","v":""},{"$f":"IF($A488=\"N/A\",Ref!$B$36,INDEX(Ranks!$1:$1048576,$A488,CF$1))","v":""},{"$f":"IF($A488=\"N/A\",Ref!$B$36,INDEX(Ranks!$1:$1048576,$A488,CG$1))","v":""},{"$f":"IF($A488=\"N/A\",Ref!$B$36,INDEX(Ranks!$1:$1048576,$A488,CH$1))","v":""},{"$f":"IF($A488=\"N/A\",Ref!$B$36,INDEX(Ranks!$1:$1048576,$A488,CI$1))","v":""},{"$f":"IF($A488=\"N/A\",Ref!$B$36,INDEX(Ranks!$1:$1048576,$A488,CJ$1))","v":""},{"$f":"IF($A488=\"N/A\",Ref!$B$36,INDEX(Ranks!$1:$1048576,$A488,CK$1))","v":""},{"$f":"IF($A488=\"N/A\",Ref!$B$36,INDEX(Ranks!$1:$1048576,$A488,CL$1))","v":""},{"$f":"IF($A488=\"N/A\",Ref!$B$36,INDEX(Ranks!$1:$1048576,$A488,CM$1))","v":""},{"$f":"IF($A488=\"N/A\",Ref!$B$36,INDEX(Ranks!$1:$1048576,$A488,CN$1))","v":""},{"$f":"IF($A488=\"N/A\",Ref!$B$36,INDEX(Ranks!$1:$1048576,$A488,CO$1))","v":""},{"$f":"IF($A488=\"N/A\",Ref!$B$36,INDEX(Ranks!$1:$1048576,$A488,CP$1))","v":""},{"$f":"IF($A488=\"N/A\",Ref!$B$36,INDEX(Ranks!$1:$1048576,$A488,CQ$1))","v":""},{"$f":"IF($A488=\"N/A\",Ref!$B$36,INDEX(Ranks!$1:$1048576,$A488,CR$1))","v":""},{"$f":"IF($A488=\"N/A\",Ref!$B$36,INDEX(Ranks!$1:$1048576,$A488,CS$1))","v":""},{"$f":"IF($A488=\"N/A\",Ref!$B$36,INDEX(Ranks!$1:$1048576,$A488,CT$1))","v":""},{"$f":"IF($A488=\"N/A\",Ref!$B$36,INDEX(Ranks!$1:$1048576,$A488,CU$1))","v":""},{"$f":"IF($A488=\"N/A\",Ref!$B$36,INDEX(Ranks!$1:$1048576,$A488,CV$1))","v":""},{"$f":"IF($A488=\"N/A\",Ref!$B$36,INDEX(Ranks!$1:$1048576,$A488,CW$1))","v":""},{"$f":"IF($A488=\"N/A\",Ref!$B$36,INDEX(Ranks!$1:$1048576,$A488,CX$1))","v":""},{"$f":"IF($A488=\"N/A\",Ref!$B$36,INDEX(Ranks!$1:$1048576,$A488,CY$1))","v":""},{"$f":"IF($A488=\"N/A\",Ref!$B$36,INDEX(Ranks!$1:$1048576,$A488,CZ$1))","v":""},{"$f":"IF($A488=\"N/A\",Ref!$B$36,INDEX(Ranks!$1:$1048576,$A488,DA$1))","v":""},{"$f":"IF($A488=\"N/A\",Ref!$B$36,INDEX(Ranks!$1:$1048576,$A488,DB$1))","v":""},{"$f":"IF($A488=\"N/A\",Ref!$B$36,INDEX(Ranks!$1:$1048576,$A488,DC$1))","v":""},{"$f":"IF($A488=\"N/A\",Ref!$B$36,INDEX(Ranks!$1:$1048576,$A488,DD$1))","v":""},{"$f":"IF($A488=\"N/A\",Ref!$B$36,INDEX(Ranks!$1:$1048576,$A488,DE$1))","v":""},{"$f":"IF($A488=\"N/A\",Ref!$B$36,INDEX(Ranks!$1:$1048576,$A488,DF$1))","v":""},{"$f":"IF($A488=\"N/A\",Ref!$B$36,INDEX(Ranks!$1:$1048576,$A488,DG$1))","v":""},{"$f":"IF($A488=\"N/A\",Ref!$B$36,INDEX(Ranks!$1:$1048576,$A488,DH$1))","v":""},{"$f":"IF($A488=\"N/A\",Ref!$B$36,INDEX(Ranks!$1:$1048576,$A488,DI$1))","v":""},{"$f":"IF($A488=\"N/A\",Ref!$B$36,INDEX(Ranks!$1:$1048576,$A488,DJ$1))","v":""},{"$f":"IF($A488=\"N/A\",Ref!$B$36,INDEX(Ranks!$1:$1048576,$A488,DK$1))","v":""},{"$f":"IF($A488=\"N/A\",Ref!$B$36,INDEX(Ranks!$1:$1048576,$A488,DL$1))","v":""},{"$f":"IF($A488=\"N/A\",Ref!$B$36,INDEX(Ranks!$1:$1048576,$A488,DM$1))","v":""},{"$f":"IF($A488=\"N/A\",Ref!$B$36,INDEX(Ranks!$1:$1048576,$A488,DN$1))","v":""},{"$f":"IF($A488=\"N/A\",Ref!$B$36,INDEX(Ranks!$1:$1048576,$A488,DO$1))","v":""},{"$f":"IF($A488=\"N/A\",Ref!$B$36,INDEX(Ranks!$1:$1048576,$A488,DP$1))","v":""},{"$f":"IF($A488=\"N/A\",Ref!$B$36,INDEX(Ranks!$1:$1048576,$A488,DQ$1))","v":""},{"$f":"IF($A488=\"N/A\",Ref!$B$36,INDEX(Ranks!$1:$1048576,$A488,DR$1))","v":""},{"$f":"IF($A488=\"N/A\",Ref!$B$36,INDEX(Ranks!$1:$1048576,$A488,DS$1))","v":""},{"$f":"IF($A488=\"N/A\",Ref!$B$36,INDEX(Ranks!$1:$1048576,$A488,DT$1))","v":""},{"$f":"IF($A488=\"N/A\",Ref!$B$36,INDEX(Ranks!$1:$1048576,$A488,DU$1))","v":""},{"$f":"IF($A488=\"N/A\",Ref!$B$36,INDEX(Ranks!$1:$1048576,$A488,DV$1))","v":""},{"$f":"IF($A488=\"N/A\",Ref!$B$36,INDEX(Ranks!$1:$1048576,$A488,DW$1))","v":""},{"$f":"IF($A488=\"N/A\",Ref!$B$36,INDEX(Ranks!$1:$1048576,$A488,DX$1))","v":""},{"$f":"IF($A488=\"N/A\",Ref!$B$36,INDEX(Ranks!$1:$1048576,$A488,DY$1))","v":""},{"$f":"IF($A488=\"N/A\",Ref!$B$36,INDEX(Ranks!$1:$1048576,$A488,DZ$1))","v":""},{"$f":"IF($A488=\"N/A\",Ref!$B$36,INDEX(Ranks!$1:$1048576,$A488,EA$1))","v":""},{"$f":"IF($A488=\"N/A\",Ref!$B$36,INDEX(Ranks!$1:$1048576,$A488,EB$1))","v":""}]
[{"$f":"IFERROR(MATCH('Portfolio Page'!L489,Ranks!L:L,0),\"N/A\")","v":"N/A"},null,{"$f":"IF($A489=\"N/A\",\"\",INDEX(Ranks!$1:$1048576,$A489,C$1))","v":""},{"$f":"IF($A489=\"N/A\",Ref!$B$36,INDEX(Ranks!$1:$1048576,$A489,D$1))","v":""},{"$f":"IF($A489=\"N/A\",Ref!$B$36,INDEX(Ranks!$1:$1048576,$A489,E$1))","v":""},{"$f":"IF($A489=\"N/A\",\"\",INDEX(Ranks!$1:$1048576,$A489,F$1))","v":""},{"$f":"IF($A489=\"N/A\",\"\",INDEX(Ranks!$1:$1048576,$A489,G$1))","v":""},{"$f":"IF($A489=\"N/A\",\"\",INDEX(Ranks!$1:$1048576,$A489,H$1))","v":""},{"$f":"IF($A489=\"N/A\",\"\",INDEX(Ranks!$1:$1048576,$A489,I$1))","v":""},{"$f":"IF($A489=\"N/A\",\"\",INDEX(Ranks!$1:$1048576,$A489,J$1))","v":""},{"$f":"IF($A489=\"N/A\",\"\",INDEX(Ranks!$1:$1048576,$A489,K$1))","v":""},null,{"$f":"IF($A489=\"N/A\",Ref!$B$36,INDEX(Ranks!$1:$1048576,$A489,M$1))","v":""},{"$f":"IF($A489=\"N/A\",Ref!$B$36,INDEX(Ranks!$1:$1048576,$A489,N$1))","v":""},{"$f":"IF($A489=\"N/A\",Ref!$B$36,INDEX(Ranks!$1:$1048576,$A489,O$1))","v":""},{"$f":"IF($A489=\"N/A\",Ref!$B$36,INDEX(Ranks!$1:$1048576,$A489,P$1))","v":""},{"$f":"IF($A489=\"N/A\",Ref!$B$36,INDEX(Ranks!$1:$1048576,$A489,Q$1))","v":""},{"$f":"IF($A489=\"N/A\",Ref!$B$36,INDEX(Ranks!$1:$1048576,$A489,R$1))","v":""},{"$f":"IF($A489=\"N/A\",Ref!$B$36,INDEX(Ranks!$1:$1048576,$A489,S$1))","v":""},{"$f":"IF($A489=\"N/A\",Ref!$B$36,INDEX(Ranks!$1:$1048576,$A489,T$1))","v":""},{"$f":"IF($A489=\"N/A\",Ref!$B$36,INDEX(Ranks!$1:$1048576,$A489,U$1))","v":""},{"$f":"IF($A489=\"N/A\",Ref!$B$36,INDEX(Ranks!$1:$1048576,$A489,V$1))","v":""},{"$f":"IF($A489=\"N/A\",Ref!$B$36,INDEX(Ranks!$1:$1048576,$A489,W$1))","v":""},{"$f":"IF($A489=\"N/A\",Ref!$B$36,INDEX(Ranks!$1:$1048576,$A489,X$1))","v":""},{"$f":"IF($A489=\"N/A\",Ref!$B$36,INDEX(Ranks!$1:$1048576,$A489,Y$1))","v":""},{"$f":"IF($A489=\"N/A\",Ref!$B$36,INDEX(Ranks!$1:$1048576,$A489,Z$1))","v":""},{"$f":"IF($A489=\"N/A\",Ref!$B$36,INDEX(Ranks!$1:$1048576,$A489,AA$1))","v":""},{"$f":"IF($A489=\"N/A\",Ref!$B$36,INDEX(Ranks!$1:$1048576,$A489,AB$1))","v":""},{"$f":"IF($A489=\"N/A\",Ref!$B$36,INDEX(Ranks!$1:$1048576,$A489,AC$1))","v":""},{"$f":"IF($A489=\"N/A\",Ref!$B$36,INDEX(Ranks!$1:$1048576,$A489,AD$1))","v":""},{"$f":"IF($A489=\"N/A\",Ref!$B$36,INDEX(Ranks!$1:$1048576,$A489,AE$1))","v":""},{"$f":"IF($A489=\"N/A\",Ref!$B$36,INDEX(Ranks!$1:$1048576,$A489,AF$1))","v":""},{"$f":"IF($A489=\"N/A\",Ref!$B$36,INDEX(Ranks!$1:$1048576,$A489,AG$1))","v":""},{"$f":"IF($A489=\"N/A\",Ref!$B$36,INDEX(Ranks!$1:$1048576,$A489,AH$1))","v":""},{"$f":"IF($A489=\"N/A\",Ref!$B$36,INDEX(Ranks!$1:$1048576,$A489,AI$1))","v":""},{"$f":"IF($A489=\"N/A\",Ref!$B$36,INDEX(Ranks!$1:$1048576,$A489,AJ$1))","v":""},{"$f":"IF($A489=\"N/A\",Ref!$B$36,INDEX(Ranks!$1:$1048576,$A489,AK$1))","v":""},{"$f":"IF($A489=\"N/A\",Ref!$B$36,INDEX(Ranks!$1:$1048576,$A489,AL$1))","v":""},{"$f":"IF($A489=\"N/A\",Ref!$B$36,INDEX(Ranks!$1:$1048576,$A489,AM$1))","v":""},{"$f":"IF($A489=\"N/A\",Ref!$B$36,INDEX(Ranks!$1:$1048576,$A489,AN$1))","v":""},{"$f":"IF($A489=\"N/A\",Ref!$B$36,INDEX(Ranks!$1:$1048576,$A489,AO$1))","v":""},{"$f":"IF($A489=\"N/A\",Ref!$B$36,INDEX(Ranks!$1:$1048576,$A489,AP$1))","v":""},{"$f":"IF($A489=\"N/A\",Ref!$B$36,INDEX(Ranks!$1:$1048576,$A489,AQ$1))","v":""},{"$f":"IF($A489=\"N/A\",Ref!$B$36,INDEX(Ranks!$1:$1048576,$A489,AR$1))","v":""},{"$f":"IF($A489=\"N/A\",Ref!$B$36,INDEX(Ranks!$1:$1048576,$A489,AS$1))","v":""},{"$f":"IF($A489=\"N/A\",Ref!$B$36,INDEX(Ranks!$1:$1048576,$A489,AT$1))","v":""},{"$f":"IF($A489=\"N/A\",Ref!$B$36,INDEX(Ranks!$1:$1048576,$A489,AU$1))","v":""},{"$f":"IF($A489=\"N/A\",Ref!$B$36,INDEX(Ranks!$1:$1048576,$A489,AV$1))","v":""},{"$f":"IF($A489=\"N/A\",Ref!$B$36,INDEX(Ranks!$1:$1048576,$A489,AW$1))","v":""},{"$f":"IF($A489=\"N/A\",Ref!$B$36,INDEX(Ranks!$1:$1048576,$A489,AX$1))","v":""},{"$f":"IF($A489=\"N/A\",Ref!$B$36,INDEX(Ranks!$1:$1048576,$A489,AY$1))","v":""},{"$f":"IF($A489=\"N/A\",Ref!$B$36,INDEX(Ranks!$1:$1048576,$A489,AZ$1))","v":""},{"$f":"IF($A489=\"N/A\",Ref!$B$36,INDEX(Ranks!$1:$1048576,$A489,BA$1))","v":""},{"$f":"IF($A489=\"N/A\",Ref!$B$36,INDEX(Ranks!$1:$1048576,$A489,BB$1))","v":""},{"$f":"IF($A489=\"N/A\",Ref!$B$36,INDEX(Ranks!$1:$1048576,$A489,BC$1))","v":""},{"$f":"IF($A489=\"N/A\",Ref!$B$36,INDEX(Ranks!$1:$1048576,$A489,BD$1))","v":""},{"$f":"IF($A489=\"N/A\",Ref!$B$36,INDEX(Ranks!$1:$1048576,$A489,BE$1))","v":""},{"$f":"IF($A489=\"N/A\",Ref!$B$36,INDEX(Ranks!$1:$1048576,$A489,BF$1))","v":""},{"$f":"IF($A489=\"N/A\",Ref!$B$36,INDEX(Ranks!$1:$1048576,$A489,BG$1))","v":""},{"$f":"IF($A489=\"N/A\",Ref!$B$36,INDEX(Ranks!$1:$1048576,$A489,BH$1))","v":""},{"$f":"IF($A489=\"N/A\",Ref!$B$36,INDEX(Ranks!$1:$1048576,$A489,BI$1))","v":""},{"$f":"IF($A489=\"N/A\",Ref!$B$36,INDEX(Ranks!$1:$1048576,$A489,BJ$1))","v":""},{"$f":"IF($A489=\"N/A\",Ref!$B$36,INDEX(Ranks!$1:$1048576,$A489,BK$1))","v":""},{"$f":"IF($A489=\"N/A\",Ref!$B$36,INDEX(Ranks!$1:$1048576,$A489,BL$1))","v":""},{"$f":"IF($A489=\"N/A\",Ref!$B$36,INDEX(Ranks!$1:$1048576,$A489,BM$1))","v":""},{"$f":"IF($A489=\"N/A\",Ref!$B$36,INDEX(Ranks!$1:$1048576,$A489,BN$1))","v":""},{"$f":"IF($A489=\"N/A\",Ref!$B$36,INDEX(Ranks!$1:$1048576,$A489,BO$1))","v":""},{"$f":"IF($A489=\"N/A\",Ref!$B$36,INDEX(Ranks!$1:$1048576,$A489,BP$1))","v":""},{"$f":"IF($A489=\"N/A\",Ref!$B$36,INDEX(Ranks!$1:$1048576,$A489,BQ$1))","v":""},{"$f":"IF($A489=\"N/A\",Ref!$B$36,INDEX(Ranks!$1:$1048576,$A489,BR$1))","v":""},{"$f":"IF($A489=\"N/A\",Ref!$B$36,INDEX(Ranks!$1:$1048576,$A489,BS$1))","v":""},{"$f":"IF($A489=\"N/A\",Ref!$B$36,INDEX(Ranks!$1:$1048576,$A489,BT$1))","v":""},{"$f":"IF($A489=\"N/A\",Ref!$B$36,INDEX(Ranks!$1:$1048576,$A489,BU$1))","v":""},{"$f":"IF($A489=\"N/A\",Ref!$B$36,INDEX(Ranks!$1:$1048576,$A489,BV$1))","v":""},{"$f":"IF($A489=\"N/A\",Ref!$B$36,INDEX(Ranks!$1:$1048576,$A489,BW$1))","v":""},{"$f":"IF($A489=\"N/A\",Ref!$B$36,INDEX(Ranks!$1:$1048576,$A489,BX$1))","v":""},{"$f":"IF($A489=\"N/A\",Ref!$B$36,INDEX(Ranks!$1:$1048576,$A489,BY$1))","v":""},{"$f":"IF($A489=\"N/A\",Ref!$B$36,INDEX(Ranks!$1:$1048576,$A489,BZ$1))","v":""},{"$f":"IF($A489=\"N/A\",Ref!$B$36,INDEX(Ranks!$1:$1048576,$A489,CA$1))","v":""},{"$f":"IF($A489=\"N/A\",Ref!$B$36,INDEX(Ranks!$1:$1048576,$A489,CB$1))","v":""},{"$f":"IF($A489=\"N/A\",Ref!$B$36,INDEX(Ranks!$1:$1048576,$A489,CC$1))","v":""},{"$f":"IF($A489=\"N/A\",Ref!$B$36,INDEX(Ranks!$1:$1048576,$A489,CD$1))","v":""},{"$f":"IF($A489=\"N/A\",Ref!$B$36,INDEX(Ranks!$1:$1048576,$A489,CE$1))","v":""},{"$f":"IF($A489=\"N/A\",Ref!$B$36,INDEX(Ranks!$1:$1048576,$A489,CF$1))","v":""},{"$f":"IF($A489=\"N/A\",Ref!$B$36,INDEX(Ranks!$1:$1048576,$A489,CG$1))","v":""},{"$f":"IF($A489=\"N/A\",Ref!$B$36,INDEX(Ranks!$1:$1048576,$A489,CH$1))","v":""},{"$f":"IF($A489=\"N/A\",Ref!$B$36,INDEX(Ranks!$1:$1048576,$A489,CI$1))","v":""},{"$f":"IF($A489=\"N/A\",Ref!$B$36,INDEX(Ranks!$1:$1048576,$A489,CJ$1))","v":""},{"$f":"IF($A489=\"N/A\",Ref!$B$36,INDEX(Ranks!$1:$1048576,$A489,CK$1))","v":""},{"$f":"IF($A489=\"N/A\",Ref!$B$36,INDEX(Ranks!$1:$1048576,$A489,CL$1))","v":""},{"$f":"IF($A489=\"N/A\",Ref!$B$36,INDEX(Ranks!$1:$1048576,$A489,CM$1))","v":""},{"$f":"IF($A489=\"N/A\",Ref!$B$36,INDEX(Ranks!$1:$1048576,$A489,CN$1))","v":""},{"$f":"IF($A489=\"N/A\",Ref!$B$36,INDEX(Ranks!$1:$1048576,$A489,CO$1))","v":""},{"$f":"IF($A489=\"N/A\",Ref!$B$36,INDEX(Ranks!$1:$1048576,$A489,CP$1))","v":""},{"$f":"IF($A489=\"N/A\",Ref!$B$36,INDEX(Ranks!$1:$1048576,$A489,CQ$1))","v":""},{"$f":"IF($A489=\"N/A\",Ref!$B$36,INDEX(Ranks!$1:$1048576,$A489,CR$1))","v":""},{"$f":"IF($A489=\"N/A\",Ref!$B$36,INDEX(Ranks!$1:$1048576,$A489,CS$1))","v":""},{"$f":"IF($A489=\"N/A\",Ref!$B$36,INDEX(Ranks!$1:$1048576,$A489,CT$1))","v":""},{"$f":"IF($A489=\"N/A\",Ref!$B$36,INDEX(Ranks!$1:$1048576,$A489,CU$1))","v":""},{"$f":"IF($A489=\"N/A\",Ref!$B$36,INDEX(Ranks!$1:$1048576,$A489,CV$1))","v":""},{"$f":"IF($A489=\"N/A\",Ref!$B$36,INDEX(Ranks!$1:$1048576,$A489,CW$1))","v":""},{"$f":"IF($A489=\"N/A\",Ref!$B$36,INDEX(Ranks!$1:$1048576,$A489,CX$1))","v":""},{"$f":"IF($A489=\"N/A\",Ref!$B$36,INDEX(Ranks!$1:$1048576,$A489,CY$1))","v":""},{"$f":"IF($A489=\"N/A\",Ref!$B$36,INDEX(Ranks!$1:$1048576,$A489,CZ$1))","v":""},{"$f":"IF($A489=\"N/A\",Ref!$B$36,INDEX(Ranks!$1:$1048576,$A489,DA$1))","v":""},{"$f":"IF($A489=\"N/A\",Ref!$B$36,INDEX(Ranks!$1:$1048576,$A489,DB$1))","v":""},{"$f":"IF($A489=\"N/A\",Ref!$B$36,INDEX(Ranks!$1:$1048576,$A489,DC$1))","v":""},{"$f":"IF($A489=\"N/A\",Ref!$B$36,INDEX(Ranks!$1:$1048576,$A489,DD$1))","v":""},{"$f":"IF($A489=\"N/A\",Ref!$B$36,INDEX(Ranks!$1:$1048576,$A489,DE$1))","v":""},{"$f":"IF($A489=\"N/A\",Ref!$B$36,INDEX(Ranks!$1:$1048576,$A489,DF$1))","v":""},{"$f":"IF($A489=\"N/A\",Ref!$B$36,INDEX(Ranks!$1:$1048576,$A489,DG$1))","v":""},{"$f":"IF($A489=\"N/A\",Ref!$B$36,INDEX(Ranks!$1:$1048576,$A489,DH$1))","v":""},{"$f":"IF($A489=\"N/A\",Ref!$B$36,INDEX(Ranks!$1:$1048576,$A489,DI$1))","v":""},{"$f":"IF($A489=\"N/A\",Ref!$B$36,INDEX(Ranks!$1:$1048576,$A489,DJ$1))","v":""},{"$f":"IF($A489=\"N/A\",Ref!$B$36,INDEX(Ranks!$1:$1048576,$A489,DK$1))","v":""},{"$f":"IF($A489=\"N/A\",Ref!$B$36,INDEX(Ranks!$1:$1048576,$A489,DL$1))","v":""},{"$f":"IF($A489=\"N/A\",Ref!$B$36,INDEX(Ranks!$1:$1048576,$A489,DM$1))","v":""},{"$f":"IF($A489=\"N/A\",Ref!$B$36,INDEX(Ranks!$1:$1048576,$A489,DN$1))","v":""},{"$f":"IF($A489=\"N/A\",Ref!$B$36,INDEX(Ranks!$1:$1048576,$A489,DO$1))","v":""},{"$f":"IF($A489=\"N/A\",Ref!$B$36,INDEX(Ranks!$1:$1048576,$A489,DP$1))","v":""},{"$f":"IF($A489=\"N/A\",Ref!$B$36,INDEX(Ranks!$1:$1048576,$A489,DQ$1))","v":""},{"$f":"IF($A489=\"N/A\",Ref!$B$36,INDEX(Ranks!$1:$1048576,$A489,DR$1))","v":""},{"$f":"IF($A489=\"N/A\",Ref!$B$36,INDEX(Ranks!$1:$1048576,$A489,DS$1))","v":""},{"$f":"IF($A489=\"N/A\",Ref!$B$36,INDEX(Ranks!$1:$1048576,$A489,DT$1))","v":""},{"$f":"IF($A489=\"N/A\",Ref!$B$36,INDEX(Ranks!$1:$1048576,$A489,DU$1))","v":""},{"$f":"IF($A489=\"N/A\",Ref!$B$36,INDEX(Ranks!$1:$1048576,$A489,DV$1))","v":""},{"$f":"IF($A489=\"N/A\",Ref!$B$36,INDEX(Ranks!$1:$1048576,$A489,DW$1))","v":""},{"$f":"IF($A489=\"N/A\",Ref!$B$36,INDEX(Ranks!$1:$1048576,$A489,DX$1))","v":""},{"$f":"IF($A489=\"N/A\",Ref!$B$36,INDEX(Ranks!$1:$1048576,$A489,DY$1))","v":""},{"$f":"IF($A489=\"N/A\",Ref!$B$36,INDEX(Ranks!$1:$1048576,$A489,DZ$1))","v":""},{"$f":"IF($A489=\"N/A\",Ref!$B$36,INDEX(Ranks!$1:$1048576,$A489,EA$1))","v":""},{"$f":"IF($A489=\"N/A\",Ref!$B$36,INDEX(Ranks!$1:$1048576,$A489,EB$1))","v":""}]
[{"$f":"IFERROR(MATCH('Portfolio Page'!L490,Ranks!L:L,0),\"N/A\")","v":"N/A"},null,{"$f":"IF($A490=\"N/A\",\"\",INDEX(Ranks!$1:$1048576,$A490,C$1))","v":""},{"$f":"IF($A490=\"N/A\",Ref!$B$36,INDEX(Ranks!$1:$1048576,$A490,D$1))","v":""},{"$f":"IF($A490=\"N/A\",Ref!$B$36,INDEX(Ranks!$1:$1048576,$A490,E$1))","v":""},{"$f":"IF($A490=\"N/A\",\"\",INDEX(Ranks!$1:$1048576,$A490,F$1))","v":""},{"$f":"IF($A490=\"N/A\",\"\",INDEX(Ranks!$1:$1048576,$A490,G$1))","v":""},{"$f":"IF($A490=\"N/A\",\"\",INDEX(Ranks!$1:$1048576,$A490,H$1))","v":""},{"$f":"IF($A490=\"N/A\",\"\",INDEX(Ranks!$1:$1048576,$A490,I$1))","v":""},{"$f":"IF($A490=\"N/A\",\"\",INDEX(Ranks!$1:$1048576,$A490,J$1))","v":""},{"$f":"IF($A490=\"N/A\",\"\",INDEX(Ranks!$1:$1048576,$A490,K$1))","v":""},null,{"$f":"IF($A490=\"N/A\",Ref!$B$36,INDEX(Ranks!$1:$1048576,$A490,M$1))","v":""},{"$f":"IF($A490=\"N/A\",Ref!$B$36,INDEX(Ranks!$1:$1048576,$A490,N$1))","v":""},{"$f":"IF($A490=\"N/A\",Ref!$B$36,INDEX(Ranks!$1:$1048576,$A490,O$1))","v":""},{"$f":"IF($A490=\"N/A\",Ref!$B$36,INDEX(Ranks!$1:$1048576,$A490,P$1))","v":""},{"$f":"IF($A490=\"N/A\",Ref!$B$36,INDEX(Ranks!$1:$1048576,$A490,Q$1))","v":""},{"$f":"IF($A490=\"N/A\",Ref!$B$36,INDEX(Ranks!$1:$1048576,$A490,R$1))","v":""},{"$f":"IF($A490=\"N/A\",Ref!$B$36,INDEX(Ranks!$1:$1048576,$A490,S$1))","v":""},{"$f":"IF($A490=\"N/A\",Ref!$B$36,INDEX(Ranks!$1:$1048576,$A490,T$1))","v":""},{"$f":"IF($A490=\"N/A\",Ref!$B$36,INDEX(Ranks!$1:$1048576,$A490,U$1))","v":""},{"$f":"IF($A490=\"N/A\",Ref!$B$36,INDEX(Ranks!$1:$1048576,$A490,V$1))","v":""},{"$f":"IF($A490=\"N/A\",Ref!$B$36,INDEX(Ranks!$1:$1048576,$A490,W$1))","v":""},{"$f":"IF($A490=\"N/A\",Ref!$B$36,INDEX(Ranks!$1:$1048576,$A490,X$1))","v":""},{"$f":"IF($A490=\"N/A\",Ref!$B$36,INDEX(Ranks!$1:$1048576,$A490,Y$1))","v":""},{"$f":"IF($A490=\"N/A\",Ref!$B$36,INDEX(Ranks!$1:$1048576,$A490,Z$1))","v":""},{"$f":"IF($A490=\"N/A\",Ref!$B$36,INDEX(Ranks!$1:$1048576,$A490,AA$1))","v":""},{"$f":"IF($A490=\"N/A\",Ref!$B$36,INDEX(Ranks!$1:$1048576,$A490,AB$1))","v":""},{"$f":"IF($A490=\"N/A\",Ref!$B$36,INDEX(Ranks!$1:$1048576,$A490,AC$1))","v":""},{"$f":"IF($A490=\"N/A\",Ref!$B$36,INDEX(Ranks!$1:$1048576,$A490,AD$1))","v":""},{"$f":"IF($A490=\"N/A\",Ref!$B$36,INDEX(Ranks!$1:$1048576,$A490,AE$1))","v":""},{"$f":"IF($A490=\"N/A\",Ref!$B$36,INDEX(Ranks!$1:$1048576,$A490,AF$1))","v":""},{"$f":"IF($A490=\"N/A\",Ref!$B$36,INDEX(Ranks!$1:$1048576,$A490,AG$1))","v":""},{"$f":"IF($A490=\"N/A\",Ref!$B$36,INDEX(Ranks!$1:$1048576,$A490,AH$1))","v":""},{"$f":"IF($A490=\"N/A\",Ref!$B$36,INDEX(Ranks!$1:$1048576,$A490,AI$1))","v":""},{"$f":"IF($A490=\"N/A\",Ref!$B$36,INDEX(Ranks!$1:$1048576,$A490,AJ$1))","v":""},{"$f":"IF($A490=\"N/A\",Ref!$B$36,INDEX(Ranks!$1:$1048576,$A490,AK$1))","v":""},{"$f":"IF($A490=\"N/A\",Ref!$B$36,INDEX(Ranks!$1:$1048576,$A490,AL$1))","v":""},{"$f":"IF($A490=\"N/A\",Ref!$B$36,INDEX(Ranks!$1:$1048576,$A490,AM$1))","v":""},{"$f":"IF($A490=\"N/A\",Ref!$B$36,INDEX(Ranks!$1:$1048576,$A490,AN$1))","v":""},{"$f":"IF($A490=\"N/A\",Ref!$B$36,INDEX(Ranks!$1:$1048576,$A490,AO$1))","v":""},{"$f":"IF($A490=\"N/A\",Ref!$B$36,INDEX(Ranks!$1:$1048576,$A490,AP$1))","v":""},{"$f":"IF($A490=\"N/A\",Ref!$B$36,INDEX(Ranks!$1:$1048576,$A490,AQ$1))","v":""},{"$f":"IF($A490=\"N/A\",Ref!$B$36,INDEX(Ranks!$1:$1048576,$A490,AR$1))","v":""},{"$f":"IF($A490=\"N/A\",Ref!$B$36,INDEX(Ranks!$1:$1048576,$A490,AS$1))","v":""},{"$f":"IF($A490=\"N/A\",Ref!$B$36,INDEX(Ranks!$1:$1048576,$A490,AT$1))","v":""},{"$f":"IF($A490=\"N/A\",Ref!$B$36,INDEX(Ranks!$1:$1048576,$A490,AU$1))","v":""},{"$f":"IF($A490=\"N/A\",Ref!$B$36,INDEX(Ranks!$1:$1048576,$A490,AV$1))","v":""},{"$f":"IF($A490=\"N/A\",Ref!$B$36,INDEX(Ranks!$1:$1048576,$A490,AW$1))","v":""},{"$f":"IF($A490=\"N/A\",Ref!$B$36,INDEX(Ranks!$1:$1048576,$A490,AX$1))","v":""},{"$f":"IF($A490=\"N/A\",Ref!$B$36,INDEX(Ranks!$1:$1048576,$A490,AY$1))","v":""},{"$f":"IF($A490=\"N/A\",Ref!$B$36,INDEX(Ranks!$1:$1048576,$A490,AZ$1))","v":""},{"$f":"IF($A490=\"N/A\",Ref!$B$36,INDEX(Ranks!$1:$1048576,$A490,BA$1))","v":""},{"$f":"IF($A490=\"N/A\",Ref!$B$36,INDEX(Ranks!$1:$1048576,$A490,BB$1))","v":""},{"$f":"IF($A490=\"N/A\",Ref!$B$36,INDEX(Ranks!$1:$1048576,$A490,BC$1))","v":""},{"$f":"IF($A490=\"N/A\",Ref!$B$36,INDEX(Ranks!$1:$1048576,$A490,BD$1))","v":""},{"$f":"IF($A490=\"N/A\",Ref!$B$36,INDEX(Ranks!$1:$1048576,$A490,BE$1))","v":""},{"$f":"IF($A490=\"N/A\",Ref!$B$36,INDEX(Ranks!$1:$1048576,$A490,BF$1))","v":""},{"$f":"IF($A490=\"N/A\",Ref!$B$36,INDEX(Ranks!$1:$1048576,$A490,BG$1))","v":""},{"$f":"IF($A490=\"N/A\",Ref!$B$36,INDEX(Ranks!$1:$1048576,$A490,BH$1))","v":""},{"$f":"IF($A490=\"N/A\",Ref!$B$36,INDEX(Ranks!$1:$1048576,$A490,BI$1))","v":""},{"$f":"IF($A490=\"N/A\",Ref!$B$36,INDEX(Ranks!$1:$1048576,$A490,BJ$1))","v":""},{"$f":"IF($A490=\"N/A\",Ref!$B$36,INDEX(Ranks!$1:$1048576,$A490,BK$1))","v":""},{"$f":"IF($A490=\"N/A\",Ref!$B$36,INDEX(Ranks!$1:$1048576,$A490,BL$1))","v":""},{"$f":"IF($A490=\"N/A\",Ref!$B$36,INDEX(Ranks!$1:$1048576,$A490,BM$1))","v":""},{"$f":"IF($A490=\"N/A\",Ref!$B$36,INDEX(Ranks!$1:$1048576,$A490,BN$1))","v":""},{"$f":"IF($A490=\"N/A\",Ref!$B$36,INDEX(Ranks!$1:$1048576,$A490,BO$1))","v":""},{"$f":"IF($A490=\"N/A\",Ref!$B$36,INDEX(Ranks!$1:$1048576,$A490,BP$1))","v":""},{"$f":"IF($A490=\"N/A\",Ref!$B$36,INDEX(Ranks!$1:$1048576,$A490,BQ$1))","v":""},{"$f":"IF($A490=\"N/A\",Ref!$B$36,INDEX(Ranks!$1:$1048576,$A490,BR$1))","v":""},{"$f":"IF($A490=\"N/A\",Ref!$B$36,INDEX(Ranks!$1:$1048576,$A490,BS$1))","v":""},{"$f":"IF($A490=\"N/A\",Ref!$B$36,INDEX(Ranks!$1:$1048576,$A490,BT$1))","v":""},{"$f":"IF($A490=\"N/A\",Ref!$B$36,INDEX(Ranks!$1:$1048576,$A490,BU$1))","v":""},{"$f":"IF($A490=\"N/A\",Ref!$B$36,INDEX(Ranks!$1:$1048576,$A490,BV$1))","v":""},{"$f":"IF($A490=\"N/A\",Ref!$B$36,INDEX(Ranks!$1:$1048576,$A490,BW$1))","v":""},{"$f":"IF($A490=\"N/A\",Ref!$B$36,INDEX(Ranks!$1:$1048576,$A490,BX$1))","v":""},{"$f":"IF($A490=\"N/A\",Ref!$B$36,INDEX(Ranks!$1:$1048576,$A490,BY$1))","v":""},{"$f":"IF($A490=\"N/A\",Ref!$B$36,INDEX(Ranks!$1:$1048576,$A490,BZ$1))","v":""},{"$f":"IF($A490=\"N/A\",Ref!$B$36,INDEX(Ranks!$1:$1048576,$A490,CA$1))","v":""},{"$f":"IF($A490=\"N/A\",Ref!$B$36,INDEX(Ranks!$1:$1048576,$A490,CB$1))","v":""},{"$f":"IF($A490=\"N/A\",Ref!$B$36,INDEX(Ranks!$1:$1048576,$A490,CC$1))","v":""},{"$f":"IF($A490=\"N/A\",Ref!$B$36,INDEX(Ranks!$1:$1048576,$A490,CD$1))","v":""},{"$f":"IF($A490=\"N/A\",Ref!$B$36,INDEX(Ranks!$1:$1048576,$A490,CE$1))","v":""},{"$f":"IF($A490=\"N/A\",Ref!$B$36,INDEX(Ranks!$1:$1048576,$A490,CF$1))","v":""},{"$f":"IF($A490=\"N/A\",Ref!$B$36,INDEX(Ranks!$1:$1048576,$A490,CG$1))","v":""},{"$f":"IF($A490=\"N/A\",Ref!$B$36,INDEX(Ranks!$1:$1048576,$A490,CH$1))","v":""},{"$f":"IF($A490=\"N/A\",Ref!$B$36,INDEX(Ranks!$1:$1048576,$A490,CI$1))","v":""},{"$f":"IF($A490=\"N/A\",Ref!$B$36,INDEX(Ranks!$1:$1048576,$A490,CJ$1))","v":""},{"$f":"IF($A490=\"N/A\",Ref!$B$36,INDEX(Ranks!$1:$1048576,$A490,CK$1))","v":""},{"$f":"IF($A490=\"N/A\",Ref!$B$36,INDEX(Ranks!$1:$1048576,$A490,CL$1))","v":""},{"$f":"IF($A490=\"N/A\",Ref!$B$36,INDEX(Ranks!$1:$1048576,$A490,CM$1))","v":""},{"$f":"IF($A490=\"N/A\",Ref!$B$36,INDEX(Ranks!$1:$1048576,$A490,CN$1))","v":""},{"$f":"IF($A490=\"N/A\",Ref!$B$36,INDEX(Ranks!$1:$1048576,$A490,CO$1))","v":""},{"$f":"IF($A490=\"N/A\",Ref!$B$36,INDEX(Ranks!$1:$1048576,$A490,CP$1))","v":""},{"$f":"IF($A490=\"N/A\",Ref!$B$36,INDEX(Ranks!$1:$1048576,$A490,CQ$1))","v":""},{"$f":"IF($A490=\"N/A\",Ref!$B$36,INDEX(Ranks!$1:$1048576,$A490,CR$1))","v":""},{"$f":"IF($A490=\"N/A\",Ref!$B$36,INDEX(Ranks!$1:$1048576,$A490,CS$1))","v":""},{"$f":"IF($A490=\"N/A\",Ref!$B$36,INDEX(Ranks!$1:$1048576,$A490,CT$1))","v":""},{"$f":"IF($A490=\"N/A\",Ref!$B$36,INDEX(Ranks!$1:$1048576,$A490,CU$1))","v":""},{"$f":"IF($A490=\"N/A\",Ref!$B$36,INDEX(Ranks!$1:$1048576,$A490,CV$1))","v":""},{"$f":"IF($A490=\"N/A\",Ref!$B$36,INDEX(Ranks!$1:$1048576,$A490,CW$1))","v":""},{"$f":"IF($A490=\"N/A\",Ref!$B$36,INDEX(Ranks!$1:$1048576,$A490,CX$1))","v":""},{"$f":"IF($A490=\"N/A\",Ref!$B$36,INDEX(Ranks!$1:$1048576,$A490,CY$1))","v":""},{"$f":"IF($A490=\"N/A\",Ref!$B$36,INDEX(Ranks!$1:$1048576,$A490,CZ$1))","v":""},{"$f":"IF($A490=\"N/A\",Ref!$B$36,INDEX(Ranks!$1:$1048576,$A490,DA$1))","v":""},{"$f":"IF($A490=\"N/A\",Ref!$B$36,INDEX(Ranks!$1:$1048576,$A490,DB$1))","v":""},{"$f":"IF($A490=\"N/A\",Ref!$B$36,INDEX(Ranks!$1:$1048576,$A490,DC$1))","v":""},{"$f":"IF($A490=\"N/A\",Ref!$B$36,INDEX(Ranks!$1:$1048576,$A490,DD$1))","v":""},{"$f":"IF($A490=\"N/A\",Ref!$B$36,INDEX(Ranks!$1:$1048576,$A490,DE$1))","v":""},{"$f":"IF($A490=\"N/A\",Ref!$B$36,INDEX(Ranks!$1:$1048576,$A490,DF$1))","v":""},{"$f":"IF($A490=\"N/A\",Ref!$B$36,INDEX(Ranks!$1:$1048576,$A490,DG$1))","v":""},{"$f":"IF($A490=\"N/A\",Ref!$B$36,INDEX(Ranks!$1:$1048576,$A490,DH$1))","v":""},{"$f":"IF($A490=\"N/A\",Ref!$B$36,INDEX(Ranks!$1:$1048576,$A490,DI$1))","v":""},{"$f":"IF($A490=\"N/A\",Ref!$B$36,INDEX(Ranks!$1:$1048576,$A490,DJ$1))","v":""},{"$f":"IF($A490=\"N/A\",Ref!$B$36,INDEX(Ranks!$1:$1048576,$A490,DK$1))","v":""},{"$f":"IF($A490=\"N/A\",Ref!$B$36,INDEX(Ranks!$1:$1048576,$A490,DL$1))","v":""},{"$f":"IF($A490=\"N/A\",Ref!$B$36,INDEX(Ranks!$1:$1048576,$A490,DM$1))","v":""},{"$f":"IF($A490=\"N/A\",Ref!$B$36,INDEX(Ranks!$1:$1048576,$A490,DN$1))","v":""},{"$f":"IF($A490=\"N/A\",Ref!$B$36,INDEX(Ranks!$1:$1048576,$A490,DO$1))","v":""},{"$f":"IF($A490=\"N/A\",Ref!$B$36,INDEX(Ranks!$1:$1048576,$A490,DP$1))","v":""},{"$f":"IF($A490=\"N/A\",Ref!$B$36,INDEX(Ranks!$1:$1048576,$A490,DQ$1))","v":""},{"$f":"IF($A490=\"N/A\",Ref!$B$36,INDEX(Ranks!$1:$1048576,$A490,DR$1))","v":""},{"$f":"IF($A490=\"N/A\",Ref!$B$36,INDEX(Ranks!$1:$1048576,$A490,DS$1))","v":""},{"$f":"IF($A490=\"N/A\",Ref!$B$36,INDEX(Ranks!$1:$1048576,$A490,DT$1))","v":""},{"$f":"IF($A490=\"N/A\",Ref!$B$36,INDEX(Ranks!$1:$1048576,$A490,DU$1))","v":""},{"$f":"IF($A490=\"N/A\",Ref!$B$36,INDEX(Ranks!$1:$1048576,$A490,DV$1))","v":""},{"$f":"IF($A490=\"N/A\",Ref!$B$36,INDEX(Ranks!$1:$1048576,$A490,DW$1))","v":""},{"$f":"IF($A490=\"N/A\",Ref!$B$36,INDEX(Ranks!$1:$1048576,$A490,DX$1))","v":""},{"$f":"IF($A490=\"N/A\",Ref!$B$36,INDEX(Ranks!$1:$1048576,$A490,DY$1))","v":""},{"$f":"IF($A490=\"N/A\",Ref!$B$36,INDEX(Ranks!$1:$1048576,$A490,DZ$1))","v":""},{"$f":"IF($A490=\"N/A\",Ref!$B$36,INDEX(Ranks!$1:$1048576,$A490,EA$1))","v":""},{"$f":"IF($A490=\"N/A\",Ref!$B$36,INDEX(Ranks!$1:$1048576,$A490,EB$1))","v":""}]
[{"$f":"IFERROR(MATCH('Portfolio Page'!L491,Ranks!L:L,0),\"N/A\")","v":"N/A"},null,{"$f":"IF($A491=\"N/A\",\"\",INDEX(Ranks!$1:$1048576,$A491,C$1))","v":""},{"$f":"IF($A491=\"N/A\",Ref!$B$36,INDEX(Ranks!$1:$1048576,$A491,D$1))","v":""},{"$f":"IF($A491=\"N/A\",Ref!$B$36,INDEX(Ranks!$1:$1048576,$A491,E$1))","v":""},{"$f":"IF($A491=\"N/A\",\"\",INDEX(Ranks!$1:$1048576,$A491,F$1))","v":""},{"$f":"IF($A491=\"N/A\",\"\",INDEX(Ranks!$1:$1048576,$A491,G$1))","v":""},{"$f":"IF($A491=\"N/A\",\"\",INDEX(Ranks!$1:$1048576,$A491,H$1))","v":""},{"$f":"IF($A491=\"N/A\",\"\",INDEX(Ranks!$1:$1048576,$A491,I$1))","v":""},{"$f":"IF($A491=\"N/A\",\"\",INDEX(Ranks!$1:$1048576,$A491,J$1))","v":""},{"$f":"IF($A491=\"N/A\",\"\",INDEX(Ranks!$1:$1048576,$A491,K$1))","v":""},null,{"$f":"IF($A491=\"N/A\",Ref!$B$36,INDEX(Ranks!$1:$1048576,$A491,M$1))","v":""},{"$f":"IF($A491=\"N/A\",Ref!$B$36,INDEX(Ranks!$1:$1048576,$A491,N$1))","v":""},{"$f":"IF($A491=\"N/A\",Ref!$B$36,INDEX(Ranks!$1:$1048576,$A491,O$1))","v":""},{"$f":"IF($A491=\"N/A\",Ref!$B$36,INDEX(Ranks!$1:$1048576,$A491,P$1))","v":""},{"$f":"IF($A491=\"N/A\",Ref!$B$36,INDEX(Ranks!$1:$1048576,$A491,Q$1))","v":""},{"$f":"IF($A491=\"N/A\",Ref!$B$36,INDEX(Ranks!$1:$1048576,$A491,R$1))","v":""},{"$f":"IF($A491=\"N/A\",Ref!$B$36,INDEX(Ranks!$1:$1048576,$A491,S$1))","v":""},{"$f":"IF($A491=\"N/A\",Ref!$B$36,INDEX(Ranks!$1:$1048576,$A491,T$1))","v":""},{"$f":"IF($A491=\"N/A\",Ref!$B$36,INDEX(Ranks!$1:$1048576,$A491,U$1))","v":""},{"$f":"IF($A491=\"N/A\",Ref!$B$36,INDEX(Ranks!$1:$1048576,$A491,V$1))","v":""},{"$f":"IF($A491=\"N/A\",Ref!$B$36,INDEX(Ranks!$1:$1048576,$A491,W$1))","v":""},{"$f":"IF($A491=\"N/A\",Ref!$B$36,INDEX(Ranks!$1:$1048576,$A491,X$1))","v":""},{"$f":"IF($A491=\"N/A\",Ref!$B$36,INDEX(Ranks!$1:$1048576,$A491,Y$1))","v":""},{"$f":"IF($A491=\"N/A\",Ref!$B$36,INDEX(Ranks!$1:$1048576,$A491,Z$1))","v":""},{"$f":"IF($A491=\"N/A\",Ref!$B$36,INDEX(Ranks!$1:$1048576,$A491,AA$1))","v":""},{"$f":"IF($A491=\"N/A\",Ref!$B$36,INDEX(Ranks!$1:$1048576,$A491,AB$1))","v":""},{"$f":"IF($A491=\"N/A\",Ref!$B$36,INDEX(Ranks!$1:$1048576,$A491,AC$1))","v":""},{"$f":"IF($A491=\"N/A\",Ref!$B$36,INDEX(Ranks!$1:$1048576,$A491,AD$1))","v":""},{"$f":"IF($A491=\"N/A\",Ref!$B$36,INDEX(Ranks!$1:$1048576,$A491,AE$1))","v":""},{"$f":"IF($A491=\"N/A\",Ref!$B$36,INDEX(Ranks!$1:$1048576,$A491,AF$1))","v":""},{"$f":"IF($A491=\"N/A\",Ref!$B$36,INDEX(Ranks!$1:$1048576,$A491,AG$1))","v":""},{"$f":"IF($A491=\"N/A\",Ref!$B$36,INDEX(Ranks!$1:$1048576,$A491,AH$1))","v":""},{"$f":"IF($A491=\"N/A\",Ref!$B$36,INDEX(Ranks!$1:$1048576,$A491,AI$1))","v":""},{"$f":"IF($A491=\"N/A\",Ref!$B$36,INDEX(Ranks!$1:$1048576,$A491,AJ$1))","v":""},{"$f":"IF($A491=\"N/A\",Ref!$B$36,INDEX(Ranks!$1:$1048576,$A491,AK$1))","v":""},{"$f":"IF($A491=\"N/A\",Ref!$B$36,INDEX(Ranks!$1:$1048576,$A491,AL$1))","v":""},{"$f":"IF($A491=\"N/A\",Ref!$B$36,INDEX(Ranks!$1:$1048576,$A491,AM$1))","v":""},{"$f":"IF($A491=\"N/A\",Ref!$B$36,INDEX(Ranks!$1:$1048576,$A491,AN$1))","v":""},{"$f":"IF($A491=\"N/A\",Ref!$B$36,INDEX(Ranks!$1:$1048576,$A491,AO$1))","v":""},{"$f":"IF($A491=\"N/A\",Ref!$B$36,INDEX(Ranks!$1:$1048576,$A491,AP$1))","v":""},{"$f":"IF($A491=\"N/A\",Ref!$B$36,INDEX(Ranks!$1:$1048576,$A491,AQ$1))","v":""},{"$f":"IF($A491=\"N/A\",Ref!$B$36,INDEX(Ranks!$1:$1048576,$A491,AR$1))","v":""},{"$f":"IF($A491=\"N/A\",Ref!$B$36,INDEX(Ranks!$1:$1048576,$A491,AS$1))","v":""},{"$f":"IF($A491=\"N/A\",Ref!$B$36,INDEX(Ranks!$1:$1048576,$A491,AT$1))","v":""},{"$f":"IF($A491=\"N/A\",Ref!$B$36,INDEX(Ranks!$1:$1048576,$A491,AU$1))","v":""},{"$f":"IF($A491=\"N/A\",Ref!$B$36,INDEX(Ranks!$1:$1048576,$A491,AV$1))","v":""},{"$f":"IF($A491=\"N/A\",Ref!$B$36,INDEX(Ranks!$1:$1048576,$A491,AW$1))","v":""},{"$f":"IF($A491=\"N/A\",Ref!$B$36,INDEX(Ranks!$1:$1048576,$A491,AX$1))","v":""},{"$f":"IF($A491=\"N/A\",Ref!$B$36,INDEX(Ranks!$1:$1048576,$A491,AY$1))","v":""},{"$f":"IF($A491=\"N/A\",Ref!$B$36,INDEX(Ranks!$1:$1048576,$A491,AZ$1))","v":""},{"$f":"IF($A491=\"N/A\",Ref!$B$36,INDEX(Ranks!$1:$1048576,$A491,BA$1))","v":""},{"$f":"IF($A491=\"N/A\",Ref!$B$36,INDEX(Ranks!$1:$1048576,$A491,BB$1))","v":""},{"$f":"IF($A491=\"N/A\",Ref!$B$36,INDEX(Ranks!$1:$1048576,$A491,BC$1))","v":""},{"$f":"IF($A491=\"N/A\",Ref!$B$36,INDEX(Ranks!$1:$1048576,$A491,BD$1))","v":""},{"$f":"IF($A491=\"N/A\",Ref!$B$36,INDEX(Ranks!$1:$1048576,$A491,BE$1))","v":""},{"$f":"IF($A491=\"N/A\",Ref!$B$36,INDEX(Ranks!$1:$1048576,$A491,BF$1))","v":""},{"$f":"IF($A491=\"N/A\",Ref!$B$36,INDEX(Ranks!$1:$1048576,$A491,BG$1))","v":""},{"$f":"IF($A491=\"N/A\",Ref!$B$36,INDEX(Ranks!$1:$1048576,$A491,BH$1))","v":""},{"$f":"IF($A491=\"N/A\",Ref!$B$36,INDEX(Ranks!$1:$1048576,$A491,BI$1))","v":""},{"$f":"IF($A491=\"N/A\",Ref!$B$36,INDEX(Ranks!$1:$1048576,$A491,BJ$1))","v":""},{"$f":"IF($A491=\"N/A\",Ref!$B$36,INDEX(Ranks!$1:$1048576,$A491,BK$1))","v":""},{"$f":"IF($A491=\"N/A\",Ref!$B$36,INDEX(Ranks!$1:$1048576,$A491,BL$1))","v":""},{"$f":"IF($A491=\"N/A\",Ref!$B$36,INDEX(Ranks!$1:$1048576,$A491,BM$1))","v":""},{"$f":"IF($A491=\"N/A\",Ref!$B$36,INDEX(Ranks!$1:$1048576,$A491,BN$1))","v":""},{"$f":"IF($A491=\"N/A\",Ref!$B$36,INDEX(Ranks!$1:$1048576,$A491,BO$1))","v":""},{"$f":"IF($A491=\"N/A\",Ref!$B$36,INDEX(Ranks!$1:$1048576,$A491,BP$1))","v":""},{"$f":"IF($A491=\"N/A\",Ref!$B$36,INDEX(Ranks!$1:$1048576,$A491,BQ$1))","v":""},{"$f":"IF($A491=\"N/A\",Ref!$B$36,INDEX(Ranks!$1:$1048576,$A491,BR$1))","v":""},{"$f":"IF($A491=\"N/A\",Ref!$B$36,INDEX(Ranks!$1:$1048576,$A491,BS$1))","v":""},{"$f":"IF($A491=\"N/A\",Ref!$B$36,INDEX(Ranks!$1:$1048576,$A491,BT$1))","v":""},{"$f":"IF($A491=\"N/A\",Ref!$B$36,INDEX(Ranks!$1:$1048576,$A491,BU$1))","v":""},{"$f":"IF($A491=\"N/A\",Ref!$B$36,INDEX(Ranks!$1:$1048576,$A491,BV$1))","v":""},{"$f":"IF($A491=\"N/A\",Ref!$B$36,INDEX(Ranks!$1:$1048576,$A491,BW$1))","v":""},{"$f":"IF($A491=\"N/A\",Ref!$B$36,INDEX(Ranks!$1:$1048576,$A491,BX$1))","v":""},{"$f":"IF($A491=\"N/A\",Ref!$B$36,INDEX(Ranks!$1:$1048576,$A491,BY$1))","v":""},{"$f":"IF($A491=\"N/A\",Ref!$B$36,INDEX(Ranks!$1:$1048576,$A491,BZ$1))","v":""},{"$f":"IF($A491=\"N/A\",Ref!$B$36,INDEX(Ranks!$1:$1048576,$A491,CA$1))","v":""},{"$f":"IF($A491=\"N/A\",Ref!$B$36,INDEX(Ranks!$1:$1048576,$A491,CB$1))","v":""},{"$f":"IF($A491=\"N/A\",Ref!$B$36,INDEX(Ranks!$1:$1048576,$A491,CC$1))","v":""},{"$f":"IF($A491=\"N/A\",Ref!$B$36,INDEX(Ranks!$1:$1048576,$A491,CD$1))","v":""},{"$f":"IF($A491=\"N/A\",Ref!$B$36,INDEX(Ranks!$1:$1048576,$A491,CE$1))","v":""},{"$f":"IF($A491=\"N/A\",Ref!$B$36,INDEX(Ranks!$1:$1048576,$A491,CF$1))","v":""},{"$f":"IF($A491=\"N/A\",Ref!$B$36,INDEX(Ranks!$1:$1048576,$A491,CG$1))","v":""},{"$f":"IF($A491=\"N/A\",Ref!$B$36,INDEX(Ranks!$1:$1048576,$A491,CH$1))","v":""},{"$f":"IF($A491=\"N/A\",Ref!$B$36,INDEX(Ranks!$1:$1048576,$A491,CI$1))","v":""},{"$f":"IF($A491=\"N/A\",Ref!$B$36,INDEX(Ranks!$1:$1048576,$A491,CJ$1))","v":""},{"$f":"IF($A491=\"N/A\",Ref!$B$36,INDEX(Ranks!$1:$1048576,$A491,CK$1))","v":""},{"$f":"IF($A491=\"N/A\",Ref!$B$36,INDEX(Ranks!$1:$1048576,$A491,CL$1))","v":""},{"$f":"IF($A491=\"N/A\",Ref!$B$36,INDEX(Ranks!$1:$1048576,$A491,CM$1))","v":""},{"$f":"IF($A491=\"N/A\",Ref!$B$36,INDEX(Ranks!$1:$1048576,$A491,CN$1))","v":""},{"$f":"IF($A491=\"N/A\",Ref!$B$36,INDEX(Ranks!$1:$1048576,$A491,CO$1))","v":""},{"$f":"IF($A491=\"N/A\",Ref!$B$36,INDEX(Ranks!$1:$1048576,$A491,CP$1))","v":""},{"$f":"IF($A491=\"N/A\",Ref!$B$36,INDEX(Ranks!$1:$1048576,$A491,CQ$1))","v":""},{"$f":"IF($A491=\"N/A\",Ref!$B$36,INDEX(Ranks!$1:$1048576,$A491,CR$1))","v":""},{"$f":"IF($A491=\"N/A\",Ref!$B$36,INDEX(Ranks!$1:$1048576,$A491,CS$1))","v":""},{"$f":"IF($A491=\"N/A\",Ref!$B$36,INDEX(Ranks!$1:$1048576,$A491,CT$1))","v":""},{"$f":"IF($A491=\"N/A\",Ref!$B$36,INDEX(Ranks!$1:$1048576,$A491,CU$1))","v":""},{"$f":"IF($A491=\"N/A\",Ref!$B$36,INDEX(Ranks!$1:$1048576,$A491,CV$1))","v":""},{"$f":"IF($A491=\"N/A\",Ref!$B$36,INDEX(Ranks!$1:$1048576,$A491,CW$1))","v":""},{"$f":"IF($A491=\"N/A\",Ref!$B$36,INDEX(Ranks!$1:$1048576,$A491,CX$1))","v":""},{"$f":"IF($A491=\"N/A\",Ref!$B$36,INDEX(Ranks!$1:$1048576,$A491,CY$1))","v":""},{"$f":"IF($A491=\"N/A\",Ref!$B$36,INDEX(Ranks!$1:$1048576,$A491,CZ$1))","v":""},{"$f":"IF($A491=\"N/A\",Ref!$B$36,INDEX(Ranks!$1:$1048576,$A491,DA$1))","v":""},{"$f":"IF($A491=\"N/A\",Ref!$B$36,INDEX(Ranks!$1:$1048576,$A491,DB$1))","v":""},{"$f":"IF($A491=\"N/A\",Ref!$B$36,INDEX(Ranks!$1:$1048576,$A491,DC$1))","v":""},{"$f":"IF($A491=\"N/A\",Ref!$B$36,INDEX(Ranks!$1:$1048576,$A491,DD$1))","v":""},{"$f":"IF($A491=\"N/A\",Ref!$B$36,INDEX(Ranks!$1:$1048576,$A491,DE$1))","v":""},{"$f":"IF($A491=\"N/A\",Ref!$B$36,INDEX(Ranks!$1:$1048576,$A491,DF$1))","v":""},{"$f":"IF($A491=\"N/A\",Ref!$B$36,INDEX(Ranks!$1:$1048576,$A491,DG$1))","v":""},{"$f":"IF($A491=\"N/A\",Ref!$B$36,INDEX(Ranks!$1:$1048576,$A491,DH$1))","v":""},{"$f":"IF($A491=\"N/A\",Ref!$B$36,INDEX(Ranks!$1:$1048576,$A491,DI$1))","v":""},{"$f":"IF($A491=\"N/A\",Ref!$B$36,INDEX(Ranks!$1:$1048576,$A491,DJ$1))","v":""},{"$f":"IF($A491=\"N/A\",Ref!$B$36,INDEX(Ranks!$1:$1048576,$A491,DK$1))","v":""},{"$f":"IF($A491=\"N/A\",Ref!$B$36,INDEX(Ranks!$1:$1048576,$A491,DL$1))","v":""},{"$f":"IF($A491=\"N/A\",Ref!$B$36,INDEX(Ranks!$1:$1048576,$A491,DM$1))","v":""},{"$f":"IF($A491=\"N/A\",Ref!$B$36,INDEX(Ranks!$1:$1048576,$A491,DN$1))","v":""},{"$f":"IF($A491=\"N/A\",Ref!$B$36,INDEX(Ranks!$1:$1048576,$A491,DO$1))","v":""},{"$f":"IF($A491=\"N/A\",Ref!$B$36,INDEX(Ranks!$1:$1048576,$A491,DP$1))","v":""},{"$f":"IF($A491=\"N/A\",Ref!$B$36,INDEX(Ranks!$1:$1048576,$A491,DQ$1))","v":""},{"$f":"IF($A491=\"N/A\",Ref!$B$36,INDEX(Ranks!$1:$1048576,$A491,DR$1))","v":""},{"$f":"IF($A491=\"N/A\",Ref!$B$36,INDEX(Ranks!$1:$1048576,$A491,DS$1))","v":""},{"$f":"IF($A491=\"N/A\",Ref!$B$36,INDEX(Ranks!$1:$1048576,$A491,DT$1))","v":""},{"$f":"IF($A491=\"N/A\",Ref!$B$36,INDEX(Ranks!$1:$1048576,$A491,DU$1))","v":""},{"$f":"IF($A491=\"N/A\",Ref!$B$36,INDEX(Ranks!$1:$1048576,$A491,DV$1))","v":""},{"$f":"IF($A491=\"N/A\",Ref!$B$36,INDEX(Ranks!$1:$1048576,$A491,DW$1))","v":""},{"$f":"IF($A491=\"N/A\",Ref!$B$36,INDEX(Ranks!$1:$1048576,$A491,DX$1))","v":""},{"$f":"IF($A491=\"N/A\",Ref!$B$36,INDEX(Ranks!$1:$1048576,$A491,DY$1))","v":""},{"$f":"IF($A491=\"N/A\",Ref!$B$36,INDEX(Ranks!$1:$1048576,$A491,DZ$1))","v":""},{"$f":"IF($A491=\"N/A\",Ref!$B$36,INDEX(Ranks!$1:$1048576,$A491,EA$1))","v":""},{"$f":"IF($A491=\"N/A\",Ref!$B$36,INDEX(Ranks!$1:$1048576,$A491,EB$1))","v":""}]
[{"$f":"IFERROR(MATCH('Portfolio Page'!L492,Ranks!L:L,0),\"N/A\")","v":"N/A"},null,{"$f":"IF($A492=\"N/A\",\"\",INDEX(Ranks!$1:$1048576,$A492,C$1))","v":""},{"$f":"IF($A492=\"N/A\",Ref!$B$36,INDEX(Ranks!$1:$1048576,$A492,D$1))","v":""},{"$f":"IF($A492=\"N/A\",Ref!$B$36,INDEX(Ranks!$1:$1048576,$A492,E$1))","v":""},{"$f":"IF($A492=\"N/A\",\"\",INDEX(Ranks!$1:$1048576,$A492,F$1))","v":""},{"$f":"IF($A492=\"N/A\",\"\",INDEX(Ranks!$1:$1048576,$A492,G$1))","v":""},{"$f":"IF($A492=\"N/A\",\"\",INDEX(Ranks!$1:$1048576,$A492,H$1))","v":""},{"$f":"IF($A492=\"N/A\",\"\",INDEX(Ranks!$1:$1048576,$A492,I$1))","v":""},{"$f":"IF($A492=\"N/A\",\"\",INDEX(Ranks!$1:$1048576,$A492,J$1))","v":""},{"$f":"IF($A492=\"N/A\",\"\",INDEX(Ranks!$1:$1048576,$A492,K$1))","v":""},null,{"$f":"IF($A492=\"N/A\",Ref!$B$36,INDEX(Ranks!$1:$1048576,$A492,M$1))","v":""},{"$f":"IF($A492=\"N/A\",Ref!$B$36,INDEX(Ranks!$1:$1048576,$A492,N$1))","v":""},{"$f":"IF($A492=\"N/A\",Ref!$B$36,INDEX(Ranks!$1:$1048576,$A492,O$1))","v":""},{"$f":"IF($A492=\"N/A\",Ref!$B$36,INDEX(Ranks!$1:$1048576,$A492,P$1))","v":""},{"$f":"IF($A492=\"N/A\",Ref!$B$36,INDEX(Ranks!$1:$1048576,$A492,Q$1))","v":""},{"$f":"IF($A492=\"N/A\",Ref!$B$36,INDEX(Ranks!$1:$1048576,$A492,R$1))","v":""},{"$f":"IF($A492=\"N/A\",Ref!$B$36,INDEX(Ranks!$1:$1048576,$A492,S$1))","v":""},{"$f":"IF($A492=\"N/A\",Ref!$B$36,INDEX(Ranks!$1:$1048576,$A492,T$1))","v":""},{"$f":"IF($A492=\"N/A\",Ref!$B$36,INDEX(Ranks!$1:$1048576,$A492,U$1))","v":""},{"$f":"IF($A492=\"N/A\",Ref!$B$36,INDEX(Ranks!$1:$1048576,$A492,V$1))","v":""},{"$f":"IF($A492=\"N/A\",Ref!$B$36,INDEX(Ranks!$1:$1048576,$A492,W$1))","v":""},{"$f":"IF($A492=\"N/A\",Ref!$B$36,INDEX(Ranks!$1:$1048576,$A492,X$1))","v":""},{"$f":"IF($A492=\"N/A\",Ref!$B$36,INDEX(Ranks!$1:$1048576,$A492,Y$1))","v":""},{"$f":"IF($A492=\"N/A\",Ref!$B$36,INDEX(Ranks!$1:$1048576,$A492,Z$1))","v":""},{"$f":"IF($A492=\"N/A\",Ref!$B$36,INDEX(Ranks!$1:$1048576,$A492,AA$1))","v":""},{"$f":"IF($A492=\"N/A\",Ref!$B$36,INDEX(Ranks!$1:$1048576,$A492,AB$1))","v":""},{"$f":"IF($A492=\"N/A\",Ref!$B$36,INDEX(Ranks!$1:$1048576,$A492,AC$1))","v":""},{"$f":"IF($A492=\"N/A\",Ref!$B$36,INDEX(Ranks!$1:$1048576,$A492,AD$1))","v":""},{"$f":"IF($A492=\"N/A\",Ref!$B$36,INDEX(Ranks!$1:$1048576,$A492,AE$1))","v":""},{"$f":"IF($A492=\"N/A\",Ref!$B$36,INDEX(Ranks!$1:$1048576,$A492,AF$1))","v":""},{"$f":"IF($A492=\"N/A\",Ref!$B$36,INDEX(Ranks!$1:$1048576,$A492,AG$1))","v":""},{"$f":"IF($A492=\"N/A\",Ref!$B$36,INDEX(Ranks!$1:$1048576,$A492,AH$1))","v":""},{"$f":"IF($A492=\"N/A\",Ref!$B$36,INDEX(Ranks!$1:$1048576,$A492,AI$1))","v":""},{"$f":"IF($A492=\"N/A\",Ref!$B$36,INDEX(Ranks!$1:$1048576,$A492,AJ$1))","v":""},{"$f":"IF($A492=\"N/A\",Ref!$B$36,INDEX(Ranks!$1:$1048576,$A492,AK$1))","v":""},{"$f":"IF($A492=\"N/A\",Ref!$B$36,INDEX(Ranks!$1:$1048576,$A492,AL$1))","v":""},{"$f":"IF($A492=\"N/A\",Ref!$B$36,INDEX(Ranks!$1:$1048576,$A492,AM$1))","v":""},{"$f":"IF($A492=\"N/A\",Ref!$B$36,INDEX(Ranks!$1:$1048576,$A492,AN$1))","v":""},{"$f":"IF($A492=\"N/A\",Ref!$B$36,INDEX(Ranks!$1:$1048576,$A492,AO$1))","v":""},{"$f":"IF($A492=\"N/A\",Ref!$B$36,INDEX(Ranks!$1:$1048576,$A492,AP$1))","v":""},{"$f":"IF($A492=\"N/A\",Ref!$B$36,INDEX(Ranks!$1:$1048576,$A492,AQ$1))","v":""},{"$f":"IF($A492=\"N/A\",Ref!$B$36,INDEX(Ranks!$1:$1048576,$A492,AR$1))","v":""},{"$f":"IF($A492=\"N/A\",Ref!$B$36,INDEX(Ranks!$1:$1048576,$A492,AS$1))","v":""},{"$f":"IF($A492=\"N/A\",Ref!$B$36,INDEX(Ranks!$1:$1048576,$A492,AT$1))","v":""},{"$f":"IF($A492=\"N/A\",Ref!$B$36,INDEX(Ranks!$1:$1048576,$A492,AU$1))","v":""},{"$f":"IF($A492=\"N/A\",Ref!$B$36,INDEX(Ranks!$1:$1048576,$A492,AV$1))","v":""},{"$f":"IF($A492=\"N/A\",Ref!$B$36,INDEX(Ranks!$1:$1048576,$A492,AW$1))","v":""},{"$f":"IF($A492=\"N/A\",Ref!$B$36,INDEX(Ranks!$1:$1048576,$A492,AX$1))","v":""},{"$f":"IF($A492=\"N/A\",Ref!$B$36,INDEX(Ranks!$1:$1048576,$A492,AY$1))","v":""},{"$f":"IF($A492=\"N/A\",Ref!$B$36,INDEX(Ranks!$1:$1048576,$A492,AZ$1))","v":""},{"$f":"IF($A492=\"N/A\",Ref!$B$36,INDEX(Ranks!$1:$1048576,$A492,BA$1))","v":""},{"$f":"IF($A492=\"N/A\",Ref!$B$36,INDEX(Ranks!$1:$1048576,$A492,BB$1))","v":""},{"$f":"IF($A492=\"N/A\",Ref!$B$36,INDEX(Ranks!$1:$1048576,$A492,BC$1))","v":""},{"$f":"IF($A492=\"N/A\",Ref!$B$36,INDEX(Ranks!$1:$1048576,$A492,BD$1))","v":""},{"$f":"IF($A492=\"N/A\",Ref!$B$36,INDEX(Ranks!$1:$1048576,$A492,BE$1))","v":""},{"$f":"IF($A492=\"N/A\",Ref!$B$36,INDEX(Ranks!$1:$1048576,$A492,BF$1))","v":""},{"$f":"IF($A492=\"N/A\",Ref!$B$36,INDEX(Ranks!$1:$1048576,$A492,BG$1))","v":""},{"$f":"IF($A492=\"N/A\",Ref!$B$36,INDEX(Ranks!$1:$1048576,$A492,BH$1))","v":""},{"$f":"IF($A492=\"N/A\",Ref!$B$36,INDEX(Ranks!$1:$1048576,$A492,BI$1))","v":""},{"$f":"IF($A492=\"N/A\",Ref!$B$36,INDEX(Ranks!$1:$1048576,$A492,BJ$1))","v":""},{"$f":"IF($A492=\"N/A\",Ref!$B$36,INDEX(Ranks!$1:$1048576,$A492,BK$1))","v":""},{"$f":"IF($A492=\"N/A\",Ref!$B$36,INDEX(Ranks!$1:$1048576,$A492,BL$1))","v":""},{"$f":"IF($A492=\"N/A\",Ref!$B$36,INDEX(Ranks!$1:$1048576,$A492,BM$1))","v":""},{"$f":"IF($A492=\"N/A\",Ref!$B$36,INDEX(Ranks!$1:$1048576,$A492,BN$1))","v":""},{"$f":"IF($A492=\"N/A\",Ref!$B$36,INDEX(Ranks!$1:$1048576,$A492,BO$1))","v":""},{"$f":"IF($A492=\"N/A\",Ref!$B$36,INDEX(Ranks!$1:$1048576,$A492,BP$1))","v":""},{"$f":"IF($A492=\"N/A\",Ref!$B$36,INDEX(Ranks!$1:$1048576,$A492,BQ$1))","v":""},{"$f":"IF($A492=\"N/A\",Ref!$B$36,INDEX(Ranks!$1:$1048576,$A492,BR$1))","v":""},{"$f":"IF($A492=\"N/A\",Ref!$B$36,INDEX(Ranks!$1:$1048576,$A492,BS$1))","v":""},{"$f":"IF($A492=\"N/A\",Ref!$B$36,INDEX(Ranks!$1:$1048576,$A492,BT$1))","v":""},{"$f":"IF($A492=\"N/A\",Ref!$B$36,INDEX(Ranks!$1:$1048576,$A492,BU$1))","v":""},{"$f":"IF($A492=\"N/A\",Ref!$B$36,INDEX(Ranks!$1:$1048576,$A492,BV$1))","v":""},{"$f":"IF($A492=\"N/A\",Ref!$B$36,INDEX(Ranks!$1:$1048576,$A492,BW$1))","v":""},{"$f":"IF($A492=\"N/A\",Ref!$B$36,INDEX(Ranks!$1:$1048576,$A492,BX$1))","v":""},{"$f":"IF($A492=\"N/A\",Ref!$B$36,INDEX(Ranks!$1:$1048576,$A492,BY$1))","v":""},{"$f":"IF($A492=\"N/A\",Ref!$B$36,INDEX(Ranks!$1:$1048576,$A492,BZ$1))","v":""},{"$f":"IF($A492=\"N/A\",Ref!$B$36,INDEX(Ranks!$1:$1048576,$A492,CA$1))","v":""},{"$f":"IF($A492=\"N/A\",Ref!$B$36,INDEX(Ranks!$1:$1048576,$A492,CB$1))","v":""},{"$f":"IF($A492=\"N/A\",Ref!$B$36,INDEX(Ranks!$1:$1048576,$A492,CC$1))","v":""},{"$f":"IF($A492=\"N/A\",Ref!$B$36,INDEX(Ranks!$1:$1048576,$A492,CD$1))","v":""},{"$f":"IF($A492=\"N/A\",Ref!$B$36,INDEX(Ranks!$1:$1048576,$A492,CE$1))","v":""},{"$f":"IF($A492=\"N/A\",Ref!$B$36,INDEX(Ranks!$1:$1048576,$A492,CF$1))","v":""},{"$f":"IF($A492=\"N/A\",Ref!$B$36,INDEX(Ranks!$1:$1048576,$A492,CG$1))","v":""},{"$f":"IF($A492=\"N/A\",Ref!$B$36,INDEX(Ranks!$1:$1048576,$A492,CH$1))","v":""},{"$f":"IF($A492=\"N/A\",Ref!$B$36,INDEX(Ranks!$1:$1048576,$A492,CI$1))","v":""},{"$f":"IF($A492=\"N/A\",Ref!$B$36,INDEX(Ranks!$1:$1048576,$A492,CJ$1))","v":""},{"$f":"IF($A492=\"N/A\",Ref!$B$36,INDEX(Ranks!$1:$1048576,$A492,CK$1))","v":""},{"$f":"IF($A492=\"N/A\",Ref!$B$36,INDEX(Ranks!$1:$1048576,$A492,CL$1))","v":""},{"$f":"IF($A492=\"N/A\",Ref!$B$36,INDEX(Ranks!$1:$1048576,$A492,CM$1))","v":""},{"$f":"IF($A492=\"N/A\",Ref!$B$36,INDEX(Ranks!$1:$1048576,$A492,CN$1))","v":""},{"$f":"IF($A492=\"N/A\",Ref!$B$36,INDEX(Ranks!$1:$1048576,$A492,CO$1))","v":""},{"$f":"IF($A492=\"N/A\",Ref!$B$36,INDEX(Ranks!$1:$1048576,$A492,CP$1))","v":""},{"$f":"IF($A492=\"N/A\",Ref!$B$36,INDEX(Ranks!$1:$1048576,$A492,CQ$1))","v":""},{"$f":"IF($A492=\"N/A\",Ref!$B$36,INDEX(Ranks!$1:$1048576,$A492,CR$1))","v":""},{"$f":"IF($A492=\"N/A\",Ref!$B$36,INDEX(Ranks!$1:$1048576,$A492,CS$1))","v":""},{"$f":"IF($A492=\"N/A\",Ref!$B$36,INDEX(Ranks!$1:$1048576,$A492,CT$1))","v":""},{"$f":"IF($A492=\"N/A\",Ref!$B$36,INDEX(Ranks!$1:$1048576,$A492,CU$1))","v":""},{"$f":"IF($A492=\"N/A\",Ref!$B$36,INDEX(Ranks!$1:$1048576,$A492,CV$1))","v":""},{"$f":"IF($A492=\"N/A\",Ref!$B$36,INDEX(Ranks!$1:$1048576,$A492,CW$1))","v":""},{"$f":"IF($A492=\"N/A\",Ref!$B$36,INDEX(Ranks!$1:$1048576,$A492,CX$1))","v":""},{"$f":"IF($A492=\"N/A\",Ref!$B$36,INDEX(Ranks!$1:$1048576,$A492,CY$1))","v":""},{"$f":"IF($A492=\"N/A\",Ref!$B$36,INDEX(Ranks!$1:$1048576,$A492,CZ$1))","v":""},{"$f":"IF($A492=\"N/A\",Ref!$B$36,INDEX(Ranks!$1:$1048576,$A492,DA$1))","v":""},{"$f":"IF($A492=\"N/A\",Ref!$B$36,INDEX(Ranks!$1:$1048576,$A492,DB$1))","v":""},{"$f":"IF($A492=\"N/A\",Ref!$B$36,INDEX(Ranks!$1:$1048576,$A492,DC$1))","v":""},{"$f":"IF($A492=\"N/A\",Ref!$B$36,INDEX(Ranks!$1:$1048576,$A492,DD$1))","v":""},{"$f":"IF($A492=\"N/A\",Ref!$B$36,INDEX(Ranks!$1:$1048576,$A492,DE$1))","v":""},{"$f":"IF($A492=\"N/A\",Ref!$B$36,INDEX(Ranks!$1:$1048576,$A492,DF$1))","v":""},{"$f":"IF($A492=\"N/A\",Ref!$B$36,INDEX(Ranks!$1:$1048576,$A492,DG$1))","v":""},{"$f":"IF($A492=\"N/A\",Ref!$B$36,INDEX(Ranks!$1:$1048576,$A492,DH$1))","v":""},{"$f":"IF($A492=\"N/A\",Ref!$B$36,INDEX(Ranks!$1:$1048576,$A492,DI$1))","v":""},{"$f":"IF($A492=\"N/A\",Ref!$B$36,INDEX(Ranks!$1:$1048576,$A492,DJ$1))","v":""},{"$f":"IF($A492=\"N/A\",Ref!$B$36,INDEX(Ranks!$1:$1048576,$A492,DK$1))","v":""},{"$f":"IF($A492=\"N/A\",Ref!$B$36,INDEX(Ranks!$1:$1048576,$A492,DL$1))","v":""},{"$f":"IF($A492=\"N/A\",Ref!$B$36,INDEX(Ranks!$1:$1048576,$A492,DM$1))","v":""},{"$f":"IF($A492=\"N/A\",Ref!$B$36,INDEX(Ranks!$1:$1048576,$A492,DN$1))","v":""},{"$f":"IF($A492=\"N/A\",Ref!$B$36,INDEX(Ranks!$1:$1048576,$A492,DO$1))","v":""},{"$f":"IF($A492=\"N/A\",Ref!$B$36,INDEX(Ranks!$1:$1048576,$A492,DP$1))","v":""},{"$f":"IF($A492=\"N/A\",Ref!$B$36,INDEX(Ranks!$1:$1048576,$A492,DQ$1))","v":""},{"$f":"IF($A492=\"N/A\",Ref!$B$36,INDEX(Ranks!$1:$1048576,$A492,DR$1))","v":""},{"$f":"IF($A492=\"N/A\",Ref!$B$36,INDEX(Ranks!$1:$1048576,$A492,DS$1))","v":""},{"$f":"IF($A492=\"N/A\",Ref!$B$36,INDEX(Ranks!$1:$1048576,$A492,DT$1))","v":""},{"$f":"IF($A492=\"N/A\",Ref!$B$36,INDEX(Ranks!$1:$1048576,$A492,DU$1))","v":""},{"$f":"IF($A492=\"N/A\",Ref!$B$36,INDEX(Ranks!$1:$1048576,$A492,DV$1))","v":""},{"$f":"IF($A492=\"N/A\",Ref!$B$36,INDEX(Ranks!$1:$1048576,$A492,DW$1))","v":""},{"$f":"IF($A492=\"N/A\",Ref!$B$36,INDEX(Ranks!$1:$1048576,$A492,DX$1))","v":""},{"$f":"IF($A492=\"N/A\",Ref!$B$36,INDEX(Ranks!$1:$1048576,$A492,DY$1))","v":""},{"$f":"IF($A492=\"N/A\",Ref!$B$36,INDEX(Ranks!$1:$1048576,$A492,DZ$1))","v":""},{"$f":"IF($A492=\"N/A\",Ref!$B$36,INDEX(Ranks!$1:$1048576,$A492,EA$1))","v":""},{"$f":"IF($A492=\"N/A\",Ref!$B$36,INDEX(Ranks!$1:$1048576,$A492,EB$1))","v":""}]
[{"$f":"IFERROR(MATCH('Portfolio Page'!L493,Ranks!L:L,0),\"N/A\")","v":"N/A"},null,{"$f":"IF($A493=\"N/A\",\"\",INDEX(Ranks!$1:$1048576,$A493,C$1))","v":""},{"$f":"IF($A493=\"N/A\",Ref!$B$36,INDEX(Ranks!$1:$1048576,$A493,D$1))","v":""},{"$f":"IF($A493=\"N/A\",Ref!$B$36,INDEX(Ranks!$1:$1048576,$A493,E$1))","v":""},{"$f":"IF($A493=\"N/A\",\"\",INDEX(Ranks!$1:$1048576,$A493,F$1))","v":""},{"$f":"IF($A493=\"N/A\",\"\",INDEX(Ranks!$1:$1048576,$A493,G$1))","v":""},{"$f":"IF($A493=\"N/A\",\"\",INDEX(Ranks!$1:$1048576,$A493,H$1))","v":""},{"$f":"IF($A493=\"N/A\",\"\",INDEX(Ranks!$1:$1048576,$A493,I$1))","v":""},{"$f":"IF($A493=\"N/A\",\"\",INDEX(Ranks!$1:$1048576,$A493,J$1))","v":""},{"$f":"IF($A493=\"N/A\",\"\",INDEX(Ranks!$1:$1048576,$A493,K$1))","v":""},null,{"$f":"IF($A493=\"N/A\",Ref!$B$36,INDEX(Ranks!$1:$1048576,$A493,M$1))","v":""},{"$f":"IF($A493=\"N/A\",Ref!$B$36,INDEX(Ranks!$1:$1048576,$A493,N$1))","v":""},{"$f":"IF($A493=\"N/A\",Ref!$B$36,INDEX(Ranks!$1:$1048576,$A493,O$1))","v":""},{"$f":"IF($A493=\"N/A\",Ref!$B$36,INDEX(Ranks!$1:$1048576,$A493,P$1))","v":""},{"$f":"IF($A493=\"N/A\",Ref!$B$36,INDEX(Ranks!$1:$1048576,$A493,Q$1))","v":""},{"$f":"IF($A493=\"N/A\",Ref!$B$36,INDEX(Ranks!$1:$1048576,$A493,R$1))","v":""},{"$f":"IF($A493=\"N/A\",Ref!$B$36,INDEX(Ranks!$1:$1048576,$A493,S$1))","v":""},{"$f":"IF($A493=\"N/A\",Ref!$B$36,INDEX(Ranks!$1:$1048576,$A493,T$1))","v":""},{"$f":"IF($A493=\"N/A\",Ref!$B$36,INDEX(Ranks!$1:$1048576,$A493,U$1))","v":""},{"$f":"IF($A493=\"N/A\",Ref!$B$36,INDEX(Ranks!$1:$1048576,$A493,V$1))","v":""},{"$f":"IF($A493=\"N/A\",Ref!$B$36,INDEX(Ranks!$1:$1048576,$A493,W$1))","v":""},{"$f":"IF($A493=\"N/A\",Ref!$B$36,INDEX(Ranks!$1:$1048576,$A493,X$1))","v":""},{"$f":"IF($A493=\"N/A\",Ref!$B$36,INDEX(Ranks!$1:$1048576,$A493,Y$1))","v":""},{"$f":"IF($A493=\"N/A\",Ref!$B$36,INDEX(Ranks!$1:$1048576,$A493,Z$1))","v":""},{"$f":"IF($A493=\"N/A\",Ref!$B$36,INDEX(Ranks!$1:$1048576,$A493,AA$1))","v":""},{"$f":"IF($A493=\"N/A\",Ref!$B$36,INDEX(Ranks!$1:$1048576,$A493,AB$1))","v":""},{"$f":"IF($A493=\"N/A\",Ref!$B$36,INDEX(Ranks!$1:$1048576,$A493,AC$1))","v":""},{"$f":"IF($A493=\"N/A\",Ref!$B$36,INDEX(Ranks!$1:$1048576,$A493,AD$1))","v":""},{"$f":"IF($A493=\"N/A\",Ref!$B$36,INDEX(Ranks!$1:$1048576,$A493,AE$1))","v":""},{"$f":"IF($A493=\"N/A\",Ref!$B$36,INDEX(Ranks!$1:$1048576,$A493,AF$1))","v":""},{"$f":"IF($A493=\"N/A\",Ref!$B$36,INDEX(Ranks!$1:$1048576,$A493,AG$1))","v":""},{"$f":"IF($A493=\"N/A\",Ref!$B$36,INDEX(Ranks!$1:$1048576,$A493,AH$1))","v":""},{"$f":"IF($A493=\"N/A\",Ref!$B$36,INDEX(Ranks!$1:$1048576,$A493,AI$1))","v":""},{"$f":"IF($A493=\"N/A\",Ref!$B$36,INDEX(Ranks!$1:$1048576,$A493,AJ$1))","v":""},{"$f":"IF($A493=\"N/A\",Ref!$B$36,INDEX(Ranks!$1:$1048576,$A493,AK$1))","v":""},{"$f":"IF($A493=\"N/A\",Ref!$B$36,INDEX(Ranks!$1:$1048576,$A493,AL$1))","v":""},{"$f":"IF($A493=\"N/A\",Ref!$B$36,INDEX(Ranks!$1:$1048576,$A493,AM$1))","v":""},{"$f":"IF($A493=\"N/A\",Ref!$B$36,INDEX(Ranks!$1:$1048576,$A493,AN$1))","v":""},{"$f":"IF($A493=\"N/A\",Ref!$B$36,INDEX(Ranks!$1:$1048576,$A493,AO$1))","v":""},{"$f":"IF($A493=\"N/A\",Ref!$B$36,INDEX(Ranks!$1:$1048576,$A493,AP$1))","v":""},{"$f":"IF($A493=\"N/A\",Ref!$B$36,INDEX(Ranks!$1:$1048576,$A493,AQ$1))","v":""},{"$f":"IF($A493=\"N/A\",Ref!$B$36,INDEX(Ranks!$1:$1048576,$A493,AR$1))","v":""},{"$f":"IF($A493=\"N/A\",Ref!$B$36,INDEX(Ranks!$1:$1048576,$A493,AS$1))","v":""},{"$f":"IF($A493=\"N/A\",Ref!$B$36,INDEX(Ranks!$1:$1048576,$A493,AT$1))","v":""},{"$f":"IF($A493=\"N/A\",Ref!$B$36,INDEX(Ranks!$1:$1048576,$A493,AU$1))","v":""},{"$f":"IF($A493=\"N/A\",Ref!$B$36,INDEX(Ranks!$1:$1048576,$A493,AV$1))","v":""},{"$f":"IF($A493=\"N/A\",Ref!$B$36,INDEX(Ranks!$1:$1048576,$A493,AW$1))","v":""},{"$f":"IF($A493=\"N/A\",Ref!$B$36,INDEX(Ranks!$1:$1048576,$A493,AX$1))","v":""},{"$f":"IF($A493=\"N/A\",Ref!$B$36,INDEX(Ranks!$1:$1048576,$A493,AY$1))","v":""},{"$f":"IF($A493=\"N/A\",Ref!$B$36,INDEX(Ranks!$1:$1048576,$A493,AZ$1))","v":""},{"$f":"IF($A493=\"N/A\",Ref!$B$36,INDEX(Ranks!$1:$1048576,$A493,BA$1))","v":""},{"$f":"IF($A493=\"N/A\",Ref!$B$36,INDEX(Ranks!$1:$1048576,$A493,BB$1))","v":""},{"$f":"IF($A493=\"N/A\",Ref!$B$36,INDEX(Ranks!$1:$1048576,$A493,BC$1))","v":""},{"$f":"IF($A493=\"N/A\",Ref!$B$36,INDEX(Ranks!$1:$1048576,$A493,BD$1))","v":""},{"$f":"IF($A493=\"N/A\",Ref!$B$36,INDEX(Ranks!$1:$1048576,$A493,BE$1))","v":""},{"$f":"IF($A493=\"N/A\",Ref!$B$36,INDEX(Ranks!$1:$1048576,$A493,BF$1))","v":""},{"$f":"IF($A493=\"N/A\",Ref!$B$36,INDEX(Ranks!$1:$1048576,$A493,BG$1))","v":""},{"$f":"IF($A493=\"N/A\",Ref!$B$36,INDEX(Ranks!$1:$1048576,$A493,BH$1))","v":""},{"$f":"IF($A493=\"N/A\",Ref!$B$36,INDEX(Ranks!$1:$1048576,$A493,BI$1))","v":""},{"$f":"IF($A493=\"N/A\",Ref!$B$36,INDEX(Ranks!$1:$1048576,$A493,BJ$1))","v":""},{"$f":"IF($A493=\"N/A\",Ref!$B$36,INDEX(Ranks!$1:$1048576,$A493,BK$1))","v":""},{"$f":"IF($A493=\"N/A\",Ref!$B$36,INDEX(Ranks!$1:$1048576,$A493,BL$1))","v":""},{"$f":"IF($A493=\"N/A\",Ref!$B$36,INDEX(Ranks!$1:$1048576,$A493,BM$1))","v":""},{"$f":"IF($A493=\"N/A\",Ref!$B$36,INDEX(Ranks!$1:$1048576,$A493,BN$1))","v":""},{"$f":"IF($A493=\"N/A\",Ref!$B$36,INDEX(Ranks!$1:$1048576,$A493,BO$1))","v":""},{"$f":"IF($A493=\"N/A\",Ref!$B$36,INDEX(Ranks!$1:$1048576,$A493,BP$1))","v":""},{"$f":"IF($A493=\"N/A\",Ref!$B$36,INDEX(Ranks!$1:$1048576,$A493,BQ$1))","v":""},{"$f":"IF($A493=\"N/A\",Ref!$B$36,INDEX(Ranks!$1:$1048576,$A493,BR$1))","v":""},{"$f":"IF($A493=\"N/A\",Ref!$B$36,INDEX(Ranks!$1:$1048576,$A493,BS$1))","v":""},{"$f":"IF($A493=\"N/A\",Ref!$B$36,INDEX(Ranks!$1:$1048576,$A493,BT$1))","v":""},{"$f":"IF($A493=\"N/A\",Ref!$B$36,INDEX(Ranks!$1:$1048576,$A493,BU$1))","v":""},{"$f":"IF($A493=\"N/A\",Ref!$B$36,INDEX(Ranks!$1:$1048576,$A493,BV$1))","v":""},{"$f":"IF($A493=\"N/A\",Ref!$B$36,INDEX(Ranks!$1:$1048576,$A493,BW$1))","v":""},{"$f":"IF($A493=\"N/A\",Ref!$B$36,INDEX(Ranks!$1:$1048576,$A493,BX$1))","v":""},{"$f":"IF($A493=\"N/A\",Ref!$B$36,INDEX(Ranks!$1:$1048576,$A493,BY$1))","v":""},{"$f":"IF($A493=\"N/A\",Ref!$B$36,INDEX(Ranks!$1:$1048576,$A493,BZ$1))","v":""},{"$f":"IF($A493=\"N/A\",Ref!$B$36,INDEX(Ranks!$1:$1048576,$A493,CA$1))","v":""},{"$f":"IF($A493=\"N/A\",Ref!$B$36,INDEX(Ranks!$1:$1048576,$A493,CB$1))","v":""},{"$f":"IF($A493=\"N/A\",Ref!$B$36,INDEX(Ranks!$1:$1048576,$A493,CC$1))","v":""},{"$f":"IF($A493=\"N/A\",Ref!$B$36,INDEX(Ranks!$1:$1048576,$A493,CD$1))","v":""},{"$f":"IF($A493=\"N/A\",Ref!$B$36,INDEX(Ranks!$1:$1048576,$A493,CE$1))","v":""},{"$f":"IF($A493=\"N/A\",Ref!$B$36,INDEX(Ranks!$1:$1048576,$A493,CF$1))","v":""},{"$f":"IF($A493=\"N/A\",Ref!$B$36,INDEX(Ranks!$1:$1048576,$A493,CG$1))","v":""},{"$f":"IF($A493=\"N/A\",Ref!$B$36,INDEX(Ranks!$1:$1048576,$A493,CH$1))","v":""},{"$f":"IF($A493=\"N/A\",Ref!$B$36,INDEX(Ranks!$1:$1048576,$A493,CI$1))","v":""},{"$f":"IF($A493=\"N/A\",Ref!$B$36,INDEX(Ranks!$1:$1048576,$A493,CJ$1))","v":""},{"$f":"IF($A493=\"N/A\",Ref!$B$36,INDEX(Ranks!$1:$1048576,$A493,CK$1))","v":""},{"$f":"IF($A493=\"N/A\",Ref!$B$36,INDEX(Ranks!$1:$1048576,$A493,CL$1))","v":""},{"$f":"IF($A493=\"N/A\",Ref!$B$36,INDEX(Ranks!$1:$1048576,$A493,CM$1))","v":""},{"$f":"IF($A493=\"N/A\",Ref!$B$36,INDEX(Ranks!$1:$1048576,$A493,CN$1))","v":""},{"$f":"IF($A493=\"N/A\",Ref!$B$36,INDEX(Ranks!$1:$1048576,$A493,CO$1))","v":""},{"$f":"IF($A493=\"N/A\",Ref!$B$36,INDEX(Ranks!$1:$1048576,$A493,CP$1))","v":""},{"$f":"IF($A493=\"N/A\",Ref!$B$36,INDEX(Ranks!$1:$1048576,$A493,CQ$1))","v":""},{"$f":"IF($A493=\"N/A\",Ref!$B$36,INDEX(Ranks!$1:$1048576,$A493,CR$1))","v":""},{"$f":"IF($A493=\"N/A\",Ref!$B$36,INDEX(Ranks!$1:$1048576,$A493,CS$1))","v":""},{"$f":"IF($A493=\"N/A\",Ref!$B$36,INDEX(Ranks!$1:$1048576,$A493,CT$1))","v":""},{"$f":"IF($A493=\"N/A\",Ref!$B$36,INDEX(Ranks!$1:$1048576,$A493,CU$1))","v":""},{"$f":"IF($A493=\"N/A\",Ref!$B$36,INDEX(Ranks!$1:$1048576,$A493,CV$1))","v":""},{"$f":"IF($A493=\"N/A\",Ref!$B$36,INDEX(Ranks!$1:$1048576,$A493,CW$1))","v":""},{"$f":"IF($A493=\"N/A\",Ref!$B$36,INDEX(Ranks!$1:$1048576,$A493,CX$1))","v":""},{"$f":"IF($A493=\"N/A\",Ref!$B$36,INDEX(Ranks!$1:$1048576,$A493,CY$1))","v":""},{"$f":"IF($A493=\"N/A\",Ref!$B$36,INDEX(Ranks!$1:$1048576,$A493,CZ$1))","v":""},{"$f":"IF($A493=\"N/A\",Ref!$B$36,INDEX(Ranks!$1:$1048576,$A493,DA$1))","v":""},{"$f":"IF($A493=\"N/A\",Ref!$B$36,INDEX(Ranks!$1:$1048576,$A493,DB$1))","v":""},{"$f":"IF($A493=\"N/A\",Ref!$B$36,INDEX(Ranks!$1:$1048576,$A493,DC$1))","v":""},{"$f":"IF($A493=\"N/A\",Ref!$B$36,INDEX(Ranks!$1:$1048576,$A493,DD$1))","v":""},{"$f":"IF($A493=\"N/A\",Ref!$B$36,INDEX(Ranks!$1:$1048576,$A493,DE$1))","v":""},{"$f":"IF($A493=\"N/A\",Ref!$B$36,INDEX(Ranks!$1:$1048576,$A493,DF$1))","v":""},{"$f":"IF($A493=\"N/A\",Ref!$B$36,INDEX(Ranks!$1:$1048576,$A493,DG$1))","v":""},{"$f":"IF($A493=\"N/A\",Ref!$B$36,INDEX(Ranks!$1:$1048576,$A493,DH$1))","v":""},{"$f":"IF($A493=\"N/A\",Ref!$B$36,INDEX(Ranks!$1:$1048576,$A493,DI$1))","v":""},{"$f":"IF($A493=\"N/A\",Ref!$B$36,INDEX(Ranks!$1:$1048576,$A493,DJ$1))","v":""},{"$f":"IF($A493=\"N/A\",Ref!$B$36,INDEX(Ranks!$1:$1048576,$A493,DK$1))","v":""},{"$f":"IF($A493=\"N/A\",Ref!$B$36,INDEX(Ranks!$1:$1048576,$A493,DL$1))","v":""},{"$f":"IF($A493=\"N/A\",Ref!$B$36,INDEX(Ranks!$1:$1048576,$A493,DM$1))","v":""},{"$f":"IF($A493=\"N/A\",Ref!$B$36,INDEX(Ranks!$1:$1048576,$A493,DN$1))","v":""},{"$f":"IF($A493=\"N/A\",Ref!$B$36,INDEX(Ranks!$1:$1048576,$A493,DO$1))","v":""},{"$f":"IF($A493=\"N/A\",Ref!$B$36,INDEX(Ranks!$1:$1048576,$A493,DP$1))","v":""},{"$f":"IF($A493=\"N/A\",Ref!$B$36,INDEX(Ranks!$1:$1048576,$A493,DQ$1))","v":""},{"$f":"IF($A493=\"N/A\",Ref!$B$36,INDEX(Ranks!$1:$1048576,$A493,DR$1))","v":""},{"$f":"IF($A493=\"N/A\",Ref!$B$36,INDEX(Ranks!$1:$1048576,$A493,DS$1))","v":""},{"$f":"IF($A493=\"N/A\",Ref!$B$36,INDEX(Ranks!$1:$1048576,$A493,DT$1))","v":""},{"$f":"IF($A493=\"N/A\",Ref!$B$36,INDEX(Ranks!$1:$1048576,$A493,DU$1))","v":""},{"$f":"IF($A493=\"N/A\",Ref!$B$36,INDEX(Ranks!$1:$1048576,$A493,DV$1))","v":""},{"$f":"IF($A493=\"N/A\",Ref!$B$36,INDEX(Ranks!$1:$1048576,$A493,DW$1))","v":""},{"$f":"IF($A493=\"N/A\",Ref!$B$36,INDEX(Ranks!$1:$1048576,$A493,DX$1))","v":""},{"$f":"IF($A493=\"N/A\",Ref!$B$36,INDEX(Ranks!$1:$1048576,$A493,DY$1))","v":""},{"$f":"IF($A493=\"N/A\",Ref!$B$36,INDEX(Ranks!$1:$1048576,$A493,DZ$1))","v":""},{"$f":"IF($A493=\"N/A\",Ref!$B$36,INDEX(Ranks!$1:$1048576,$A493,EA$1))","v":""},{"$f":"IF($A493=\"N/A\",Ref!$B$36,INDEX(Ranks!$1:$1048576,$A493,EB$1))","v":""}]
[{"$f":"IFERROR(MATCH('Portfolio Page'!L494,Ranks!L:L,0),\"N/A\")","v":"N/A"},null,{"$f":"IF($A494=\"N/A\",\"\",INDEX(Ranks!$1:$1048576,$A494,C$1))","v":""},{"$f":"IF($A494=\"N/A\",Ref!$B$36,INDEX(Ranks!$1:$1048576,$A494,D$1))","v":""},{"$f":"IF($A494=\"N/A\",Ref!$B$36,INDEX(Ranks!$1:$1048576,$A494,E$1))","v":""},{"$f":"IF($A494=\"N/A\",\"\",INDEX(Ranks!$1:$1048576,$A494,F$1))","v":""},{"$f":"IF($A494=\"N/A\",\"\",INDEX(Ranks!$1:$1048576,$A494,G$1))","v":""},{"$f":"IF($A494=\"N/A\",\"\",INDEX(Ranks!$1:$1048576,$A494,H$1))","v":""},{"$f":"IF($A494=\"N/A\",\"\",INDEX(Ranks!$1:$1048576,$A494,I$1))","v":""},{"$f":"IF($A494=\"N/A\",\"\",INDEX(Ranks!$1:$1048576,$A494,J$1))","v":""},{"$f":"IF($A494=\"N/A\",\"\",INDEX(Ranks!$1:$1048576,$A494,K$1))","v":""},null,{"$f":"IF($A494=\"N/A\",Ref!$B$36,INDEX(Ranks!$1:$1048576,$A494,M$1))","v":""},{"$f":"IF($A494=\"N/A\",Ref!$B$36,INDEX(Ranks!$1:$1048576,$A494,N$1))","v":""},{"$f":"IF($A494=\"N/A\",Ref!$B$36,INDEX(Ranks!$1:$1048576,$A494,O$1))","v":""},{"$f":"IF($A494=\"N/A\",Ref!$B$36,INDEX(Ranks!$1:$1048576,$A494,P$1))","v":""},{"$f":"IF($A494=\"N/A\",Ref!$B$36,INDEX(Ranks!$1:$1048576,$A494,Q$1))","v":""},{"$f":"IF($A494=\"N/A\",Ref!$B$36,INDEX(Ranks!$1:$1048576,$A494,R$1))","v":""},{"$f":"IF($A494=\"N/A\",Ref!$B$36,INDEX(Ranks!$1:$1048576,$A494,S$1))","v":""},{"$f":"IF($A494=\"N/A\",Ref!$B$36,INDEX(Ranks!$1:$1048576,$A494,T$1))","v":""},{"$f":"IF($A494=\"N/A\",Ref!$B$36,INDEX(Ranks!$1:$1048576,$A494,U$1))","v":""},{"$f":"IF($A494=\"N/A\",Ref!$B$36,INDEX(Ranks!$1:$1048576,$A494,V$1))","v":""},{"$f":"IF($A494=\"N/A\",Ref!$B$36,INDEX(Ranks!$1:$1048576,$A494,W$1))","v":""},{"$f":"IF($A494=\"N/A\",Ref!$B$36,INDEX(Ranks!$1:$1048576,$A494,X$1))","v":""},{"$f":"IF($A494=\"N/A\",Ref!$B$36,INDEX(Ranks!$1:$1048576,$A494,Y$1))","v":""},{"$f":"IF($A494=\"N/A\",Ref!$B$36,INDEX(Ranks!$1:$1048576,$A494,Z$1))","v":""},{"$f":"IF($A494=\"N/A\",Ref!$B$36,INDEX(Ranks!$1:$1048576,$A494,AA$1))","v":""},{"$f":"IF($A494=\"N/A\",Ref!$B$36,INDEX(Ranks!$1:$1048576,$A494,AB$1))","v":""},{"$f":"IF($A494=\"N/A\",Ref!$B$36,INDEX(Ranks!$1:$1048576,$A494,AC$1))","v":""},{"$f":"IF($A494=\"N/A\",Ref!$B$36,INDEX(Ranks!$1:$1048576,$A494,AD$1))","v":""},{"$f":"IF($A494=\"N/A\",Ref!$B$36,INDEX(Ranks!$1:$1048576,$A494,AE$1))","v":""},{"$f":"IF($A494=\"N/A\",Ref!$B$36,INDEX(Ranks!$1:$1048576,$A494,AF$1))","v":""},{"$f":"IF($A494=\"N/A\",Ref!$B$36,INDEX(Ranks!$1:$1048576,$A494,AG$1))","v":""},{"$f":"IF($A494=\"N/A\",Ref!$B$36,INDEX(Ranks!$1:$1048576,$A494,AH$1))","v":""},{"$f":"IF($A494=\"N/A\",Ref!$B$36,INDEX(Ranks!$1:$1048576,$A494,AI$1))","v":""},{"$f":"IF($A494=\"N/A\",Ref!$B$36,INDEX(Ranks!$1:$1048576,$A494,AJ$1))","v":""},{"$f":"IF($A494=\"N/A\",Ref!$B$36,INDEX(Ranks!$1:$1048576,$A494,AK$1))","v":""},{"$f":"IF($A494=\"N/A\",Ref!$B$36,INDEX(Ranks!$1:$1048576,$A494,AL$1))","v":""},{"$f":"IF($A494=\"N/A\",Ref!$B$36,INDEX(Ranks!$1:$1048576,$A494,AM$1))","v":""},{"$f":"IF($A494=\"N/A\",Ref!$B$36,INDEX(Ranks!$1:$1048576,$A494,AN$1))","v":""},{"$f":"IF($A494=\"N/A\",Ref!$B$36,INDEX(Ranks!$1:$1048576,$A494,AO$1))","v":""},{"$f":"IF($A494=\"N/A\",Ref!$B$36,INDEX(Ranks!$1:$1048576,$A494,AP$1))","v":""},{"$f":"IF($A494=\"N/A\",Ref!$B$36,INDEX(Ranks!$1:$1048576,$A494,AQ$1))","v":""},{"$f":"IF($A494=\"N/A\",Ref!$B$36,INDEX(Ranks!$1:$1048576,$A494,AR$1))","v":""},{"$f":"IF($A494=\"N/A\",Ref!$B$36,INDEX(Ranks!$1:$1048576,$A494,AS$1))","v":""},{"$f":"IF($A494=\"N/A\",Ref!$B$36,INDEX(Ranks!$1:$1048576,$A494,AT$1))","v":""},{"$f":"IF($A494=\"N/A\",Ref!$B$36,INDEX(Ranks!$1:$1048576,$A494,AU$1))","v":""},{"$f":"IF($A494=\"N/A\",Ref!$B$36,INDEX(Ranks!$1:$1048576,$A494,AV$1))","v":""},{"$f":"IF($A494=\"N/A\",Ref!$B$36,INDEX(Ranks!$1:$1048576,$A494,AW$1))","v":""},{"$f":"IF($A494=\"N/A\",Ref!$B$36,INDEX(Ranks!$1:$1048576,$A494,AX$1))","v":""},{"$f":"IF($A494=\"N/A\",Ref!$B$36,INDEX(Ranks!$1:$1048576,$A494,AY$1))","v":""},{"$f":"IF($A494=\"N/A\",Ref!$B$36,INDEX(Ranks!$1:$1048576,$A494,AZ$1))","v":""},{"$f":"IF($A494=\"N/A\",Ref!$B$36,INDEX(Ranks!$1:$1048576,$A494,BA$1))","v":""},{"$f":"IF($A494=\"N/A\",Ref!$B$36,INDEX(Ranks!$1:$1048576,$A494,BB$1))","v":""},{"$f":"IF($A494=\"N/A\",Ref!$B$36,INDEX(Ranks!$1:$1048576,$A494,BC$1))","v":""},{"$f":"IF($A494=\"N/A\",Ref!$B$36,INDEX(Ranks!$1:$1048576,$A494,BD$1))","v":""},{"$f":"IF($A494=\"N/A\",Ref!$B$36,INDEX(Ranks!$1:$1048576,$A494,BE$1))","v":""},{"$f":"IF($A494=\"N/A\",Ref!$B$36,INDEX(Ranks!$1:$1048576,$A494,BF$1))","v":""},{"$f":"IF($A494=\"N/A\",Ref!$B$36,INDEX(Ranks!$1:$1048576,$A494,BG$1))","v":""},{"$f":"IF($A494=\"N/A\",Ref!$B$36,INDEX(Ranks!$1:$1048576,$A494,BH$1))","v":""},{"$f":"IF($A494=\"N/A\",Ref!$B$36,INDEX(Ranks!$1:$1048576,$A494,BI$1))","v":""},{"$f":"IF($A494=\"N/A\",Ref!$B$36,INDEX(Ranks!$1:$1048576,$A494,BJ$1))","v":""},{"$f":"IF($A494=\"N/A\",Ref!$B$36,INDEX(Ranks!$1:$1048576,$A494,BK$1))","v":""},{"$f":"IF($A494=\"N/A\",Ref!$B$36,INDEX(Ranks!$1:$1048576,$A494,BL$1))","v":""},{"$f":"IF($A494=\"N/A\",Ref!$B$36,INDEX(Ranks!$1:$1048576,$A494,BM$1))","v":""},{"$f":"IF($A494=\"N/A\",Ref!$B$36,INDEX(Ranks!$1:$1048576,$A494,BN$1))","v":""},{"$f":"IF($A494=\"N/A\",Ref!$B$36,INDEX(Ranks!$1:$1048576,$A494,BO$1))","v":""},{"$f":"IF($A494=\"N/A\",Ref!$B$36,INDEX(Ranks!$1:$1048576,$A494,BP$1))","v":""},{"$f":"IF($A494=\"N/A\",Ref!$B$36,INDEX(Ranks!$1:$1048576,$A494,BQ$1))","v":""},{"$f":"IF($A494=\"N/A\",Ref!$B$36,INDEX(Ranks!$1:$1048576,$A494,BR$1))","v":""},{"$f":"IF($A494=\"N/A\",Ref!$B$36,INDEX(Ranks!$1:$1048576,$A494,BS$1))","v":""},{"$f":"IF($A494=\"N/A\",Ref!$B$36,INDEX(Ranks!$1:$1048576,$A494,BT$1))","v":""},{"$f":"IF($A494=\"N/A\",Ref!$B$36,INDEX(Ranks!$1:$1048576,$A494,BU$1))","v":""},{"$f":"IF($A494=\"N/A\",Ref!$B$36,INDEX(Ranks!$1:$1048576,$A494,BV$1))","v":""},{"$f":"IF($A494=\"N/A\",Ref!$B$36,INDEX(Ranks!$1:$1048576,$A494,BW$1))","v":""},{"$f":"IF($A494=\"N/A\",Ref!$B$36,INDEX(Ranks!$1:$1048576,$A494,BX$1))","v":""},{"$f":"IF($A494=\"N/A\",Ref!$B$36,INDEX(Ranks!$1:$1048576,$A494,BY$1))","v":""},{"$f":"IF($A494=\"N/A\",Ref!$B$36,INDEX(Ranks!$1:$1048576,$A494,BZ$1))","v":""},{"$f":"IF($A494=\"N/A\",Ref!$B$36,INDEX(Ranks!$1:$1048576,$A494,CA$1))","v":""},{"$f":"IF($A494=\"N/A\",Ref!$B$36,INDEX(Ranks!$1:$1048576,$A494,CB$1))","v":""},{"$f":"IF($A494=\"N/A\",Ref!$B$36,INDEX(Ranks!$1:$1048576,$A494,CC$1))","v":""},{"$f":"IF($A494=\"N/A\",Ref!$B$36,INDEX(Ranks!$1:$1048576,$A494,CD$1))","v":""},{"$f":"IF($A494=\"N/A\",Ref!$B$36,INDEX(Ranks!$1:$1048576,$A494,CE$1))","v":""},{"$f":"IF($A494=\"N/A\",Ref!$B$36,INDEX(Ranks!$1:$1048576,$A494,CF$1))","v":""},{"$f":"IF($A494=\"N/A\",Ref!$B$36,INDEX(Ranks!$1:$1048576,$A494,CG$1))","v":""},{"$f":"IF($A494=\"N/A\",Ref!$B$36,INDEX(Ranks!$1:$1048576,$A494,CH$1))","v":""},{"$f":"IF($A494=\"N/A\",Ref!$B$36,INDEX(Ranks!$1:$1048576,$A494,CI$1))","v":""},{"$f":"IF($A494=\"N/A\",Ref!$B$36,INDEX(Ranks!$1:$1048576,$A494,CJ$1))","v":""},{"$f":"IF($A494=\"N/A\",Ref!$B$36,INDEX(Ranks!$1:$1048576,$A494,CK$1))","v":""},{"$f":"IF($A494=\"N/A\",Ref!$B$36,INDEX(Ranks!$1:$1048576,$A494,CL$1))","v":""},{"$f":"IF($A494=\"N/A\",Ref!$B$36,INDEX(Ranks!$1:$1048576,$A494,CM$1))","v":""},{"$f":"IF($A494=\"N/A\",Ref!$B$36,INDEX(Ranks!$1:$1048576,$A494,CN$1))","v":""},{"$f":"IF($A494=\"N/A\",Ref!$B$36,INDEX(Ranks!$1:$1048576,$A494,CO$1))","v":""},{"$f":"IF($A494=\"N/A\",Ref!$B$36,INDEX(Ranks!$1:$1048576,$A494,CP$1))","v":""},{"$f":"IF($A494=\"N/A\",Ref!$B$36,INDEX(Ranks!$1:$1048576,$A494,CQ$1))","v":""},{"$f":"IF($A494=\"N/A\",Ref!$B$36,INDEX(Ranks!$1:$1048576,$A494,CR$1))","v":""},{"$f":"IF($A494=\"N/A\",Ref!$B$36,INDEX(Ranks!$1:$1048576,$A494,CS$1))","v":""},{"$f":"IF($A494=\"N/A\",Ref!$B$36,INDEX(Ranks!$1:$1048576,$A494,CT$1))","v":""},{"$f":"IF($A494=\"N/A\",Ref!$B$36,INDEX(Ranks!$1:$1048576,$A494,CU$1))","v":""},{"$f":"IF($A494=\"N/A\",Ref!$B$36,INDEX(Ranks!$1:$1048576,$A494,CV$1))","v":""},{"$f":"IF($A494=\"N/A\",Ref!$B$36,INDEX(Ranks!$1:$1048576,$A494,CW$1))","v":""},{"$f":"IF($A494=\"N/A\",Ref!$B$36,INDEX(Ranks!$1:$1048576,$A494,CX$1))","v":""},{"$f":"IF($A494=\"N/A\",Ref!$B$36,INDEX(Ranks!$1:$1048576,$A494,CY$1))","v":""},{"$f":"IF($A494=\"N/A\",Ref!$B$36,INDEX(Ranks!$1:$1048576,$A494,CZ$1))","v":""},{"$f":"IF($A494=\"N/A\",Ref!$B$36,INDEX(Ranks!$1:$1048576,$A494,DA$1))","v":""},{"$f":"IF($A494=\"N/A\",Ref!$B$36,INDEX(Ranks!$1:$1048576,$A494,DB$1))","v":""},{"$f":"IF($A494=\"N/A\",Ref!$B$36,INDEX(Ranks!$1:$1048576,$A494,DC$1))","v":""},{"$f":"IF($A494=\"N/A\",Ref!$B$36,INDEX(Ranks!$1:$1048576,$A494,DD$1))","v":""},{"$f":"IF($A494=\"N/A\",Ref!$B$36,INDEX(Ranks!$1:$1048576,$A494,DE$1))","v":""},{"$f":"IF($A494=\"N/A\",Ref!$B$36,INDEX(Ranks!$1:$1048576,$A494,DF$1))","v":""},{"$f":"IF($A494=\"N/A\",Ref!$B$36,INDEX(Ranks!$1:$1048576,$A494,DG$1))","v":""},{"$f":"IF($A494=\"N/A\",Ref!$B$36,INDEX(Ranks!$1:$1048576,$A494,DH$1))","v":""},{"$f":"IF($A494=\"N/A\",Ref!$B$36,INDEX(Ranks!$1:$1048576,$A494,DI$1))","v":""},{"$f":"IF($A494=\"N/A\",Ref!$B$36,INDEX(Ranks!$1:$1048576,$A494,DJ$1))","v":""},{"$f":"IF($A494=\"N/A\",Ref!$B$36,INDEX(Ranks!$1:$1048576,$A494,DK$1))","v":""},{"$f":"IF($A494=\"N/A\",Ref!$B$36,INDEX(Ranks!$1:$1048576,$A494,DL$1))","v":""},{"$f":"IF($A494=\"N/A\",Ref!$B$36,INDEX(Ranks!$1:$1048576,$A494,DM$1))","v":""},{"$f":"IF($A494=\"N/A\",Ref!$B$36,INDEX(Ranks!$1:$1048576,$A494,DN$1))","v":""},{"$f":"IF($A494=\"N/A\",Ref!$B$36,INDEX(Ranks!$1:$1048576,$A494,DO$1))","v":""},{"$f":"IF($A494=\"N/A\",Ref!$B$36,INDEX(Ranks!$1:$1048576,$A494,DP$1))","v":""},{"$f":"IF($A494=\"N/A\",Ref!$B$36,INDEX(Ranks!$1:$1048576,$A494,DQ$1))","v":""},{"$f":"IF($A494=\"N/A\",Ref!$B$36,INDEX(Ranks!$1:$1048576,$A494,DR$1))","v":""},{"$f":"IF($A494=\"N/A\",Ref!$B$36,INDEX(Ranks!$1:$1048576,$A494,DS$1))","v":""},{"$f":"IF($A494=\"N/A\",Ref!$B$36,INDEX(Ranks!$1:$1048576,$A494,DT$1))","v":""},{"$f":"IF($A494=\"N/A\",Ref!$B$36,INDEX(Ranks!$1:$1048576,$A494,DU$1))","v":""},{"$f":"IF($A494=\"N/A\",Ref!$B$36,INDEX(Ranks!$1:$1048576,$A494,DV$1))","v":""},{"$f":"IF($A494=\"N/A\",Ref!$B$36,INDEX(Ranks!$1:$1048576,$A494,DW$1))","v":""},{"$f":"IF($A494=\"N/A\",Ref!$B$36,INDEX(Ranks!$1:$1048576,$A494,DX$1))","v":""},{"$f":"IF($A494=\"N/A\",Ref!$B$36,INDEX(Ranks!$1:$1048576,$A494,DY$1))","v":""},{"$f":"IF($A494=\"N/A\",Ref!$B$36,INDEX(Ranks!$1:$1048576,$A494,DZ$1))","v":""},{"$f":"IF($A494=\"N/A\",Ref!$B$36,INDEX(Ranks!$1:$1048576,$A494,EA$1))","v":""},{"$f":"IF($A494=\"N/A\",Ref!$B$36,INDEX(Ranks!$1:$1048576,$A494,EB$1))","v":""}]
[{"$f":"IFERROR(MATCH('Portfolio Page'!L495,Ranks!L:L,0),\"N/A\")","v":"N/A"},null,{"$f":"IF($A495=\"N/A\",\"\",INDEX(Ranks!$1:$1048576,$A495,C$1))","v":""},{"$f":"IF($A495=\"N/A\",Ref!$B$36,INDEX(Ranks!$1:$1048576,$A495,D$1))","v":""},{"$f":"IF($A495=\"N/A\",Ref!$B$36,INDEX(Ranks!$1:$1048576,$A495,E$1))","v":""},{"$f":"IF($A495=\"N/A\",\"\",INDEX(Ranks!$1:$1048576,$A495,F$1))","v":""},{"$f":"IF($A495=\"N/A\",\"\",INDEX(Ranks!$1:$1048576,$A495,G$1))","v":""},{"$f":"IF($A495=\"N/A\",\"\",INDEX(Ranks!$1:$1048576,$A495,H$1))","v":""},{"$f":"IF($A495=\"N/A\",\"\",INDEX(Ranks!$1:$1048576,$A495,I$1))","v":""},{"$f":"IF($A495=\"N/A\",\"\",INDEX(Ranks!$1:$1048576,$A495,J$1))","v":""},{"$f":"IF($A495=\"N/A\",\"\",INDEX(Ranks!$1:$1048576,$A495,K$1))","v":""},null,{"$f":"IF($A495=\"N/A\",Ref!$B$36,INDEX(Ranks!$1:$1048576,$A495,M$1))","v":""},{"$f":"IF($A495=\"N/A\",Ref!$B$36,INDEX(Ranks!$1:$1048576,$A495,N$1))","v":""},{"$f":"IF($A495=\"N/A\",Ref!$B$36,INDEX(Ranks!$1:$1048576,$A495,O$1))","v":""},{"$f":"IF($A495=\"N/A\",Ref!$B$36,INDEX(Ranks!$1:$1048576,$A495,P$1))","v":""},{"$f":"IF($A495=\"N/A\",Ref!$B$36,INDEX(Ranks!$1:$1048576,$A495,Q$1))","v":""},{"$f":"IF($A495=\"N/A\",Ref!$B$36,INDEX(Ranks!$1:$1048576,$A495,R$1))","v":""},{"$f":"IF($A495=\"N/A\",Ref!$B$36,INDEX(Ranks!$1:$1048576,$A495,S$1))","v":""},{"$f":"IF($A495=\"N/A\",Ref!$B$36,INDEX(Ranks!$1:$1048576,$A495,T$1))","v":""},{"$f":"IF($A495=\"N/A\",Ref!$B$36,INDEX(Ranks!$1:$1048576,$A495,U$1))","v":""},{"$f":"IF($A495=\"N/A\",Ref!$B$36,INDEX(Ranks!$1:$1048576,$A495,V$1))","v":""},{"$f":"IF($A495=\"N/A\",Ref!$B$36,INDEX(Ranks!$1:$1048576,$A495,W$1))","v":""},{"$f":"IF($A495=\"N/A\",Ref!$B$36,INDEX(Ranks!$1:$1048576,$A495,X$1))","v":""},{"$f":"IF($A495=\"N/A\",Ref!$B$36,INDEX(Ranks!$1:$1048576,$A495,Y$1))","v":""},{"$f":"IF($A495=\"N/A\",Ref!$B$36,INDEX(Ranks!$1:$1048576,$A495,Z$1))","v":""},{"$f":"IF($A495=\"N/A\",Ref!$B$36,INDEX(Ranks!$1:$1048576,$A495,AA$1))","v":""},{"$f":"IF($A495=\"N/A\",Ref!$B$36,INDEX(Ranks!$1:$1048576,$A495,AB$1))","v":""},{"$f":"IF($A495=\"N/A\",Ref!$B$36,INDEX(Ranks!$1:$1048576,$A495,AC$1))","v":""},{"$f":"IF($A495=\"N/A\",Ref!$B$36,INDEX(Ranks!$1:$1048576,$A495,AD$1))","v":""},{"$f":"IF($A495=\"N/A\",Ref!$B$36,INDEX(Ranks!$1:$1048576,$A495,AE$1))","v":""},{"$f":"IF($A495=\"N/A\",Ref!$B$36,INDEX(Ranks!$1:$1048576,$A495,AF$1))","v":""},{"$f":"IF($A495=\"N/A\",Ref!$B$36,INDEX(Ranks!$1:$1048576,$A495,AG$1))","v":""},{"$f":"IF($A495=\"N/A\",Ref!$B$36,INDEX(Ranks!$1:$1048576,$A495,AH$1))","v":""},{"$f":"IF($A495=\"N/A\",Ref!$B$36,INDEX(Ranks!$1:$1048576,$A495,AI$1))","v":""},{"$f":"IF($A495=\"N/A\",Ref!$B$36,INDEX(Ranks!$1:$1048576,$A495,AJ$1))","v":""},{"$f":"IF($A495=\"N/A\",Ref!$B$36,INDEX(Ranks!$1:$1048576,$A495,AK$1))","v":""},{"$f":"IF($A495=\"N/A\",Ref!$B$36,INDEX(Ranks!$1:$1048576,$A495,AL$1))","v":""},{"$f":"IF($A495=\"N/A\",Ref!$B$36,INDEX(Ranks!$1:$1048576,$A495,AM$1))","v":""},{"$f":"IF($A495=\"N/A\",Ref!$B$36,INDEX(Ranks!$1:$1048576,$A495,AN$1))","v":""},{"$f":"IF($A495=\"N/A\",Ref!$B$36,INDEX(Ranks!$1:$1048576,$A495,AO$1))","v":""},{"$f":"IF($A495=\"N/A\",Ref!$B$36,INDEX(Ranks!$1:$1048576,$A495,AP$1))","v":""},{"$f":"IF($A495=\"N/A\",Ref!$B$36,INDEX(Ranks!$1:$1048576,$A495,AQ$1))","v":""},{"$f":"IF($A495=\"N/A\",Ref!$B$36,INDEX(Ranks!$1:$1048576,$A495,AR$1))","v":""},{"$f":"IF($A495=\"N/A\",Ref!$B$36,INDEX(Ranks!$1:$1048576,$A495,AS$1))","v":""},{"$f":"IF($A495=\"N/A\",Ref!$B$36,INDEX(Ranks!$1:$1048576,$A495,AT$1))","v":""},{"$f":"IF($A495=\"N/A\",Ref!$B$36,INDEX(Ranks!$1:$1048576,$A495,AU$1))","v":""},{"$f":"IF($A495=\"N/A\",Ref!$B$36,INDEX(Ranks!$1:$1048576,$A495,AV$1))","v":""},{"$f":"IF($A495=\"N/A\",Ref!$B$36,INDEX(Ranks!$1:$1048576,$A495,AW$1))","v":""},{"$f":"IF($A495=\"N/A\",Ref!$B$36,INDEX(Ranks!$1:$1048576,$A495,AX$1))","v":""},{"$f":"IF($A495=\"N/A\",Ref!$B$36,INDEX(Ranks!$1:$1048576,$A495,AY$1))","v":""},{"$f":"IF($A495=\"N/A\",Ref!$B$36,INDEX(Ranks!$1:$1048576,$A495,AZ$1))","v":""},{"$f":"IF($A495=\"N/A\",Ref!$B$36,INDEX(Ranks!$1:$1048576,$A495,BA$1))","v":""},{"$f":"IF($A495=\"N/A\",Ref!$B$36,INDEX(Ranks!$1:$1048576,$A495,BB$1))","v":""},{"$f":"IF($A495=\"N/A\",Ref!$B$36,INDEX(Ranks!$1:$1048576,$A495,BC$1))","v":""},{"$f":"IF($A495=\"N/A\",Ref!$B$36,INDEX(Ranks!$1:$1048576,$A495,BD$1))","v":""},{"$f":"IF($A495=\"N/A\",Ref!$B$36,INDEX(Ranks!$1:$1048576,$A495,BE$1))","v":""},{"$f":"IF($A495=\"N/A\",Ref!$B$36,INDEX(Ranks!$1:$1048576,$A495,BF$1))","v":""},{"$f":"IF($A495=\"N/A\",Ref!$B$36,INDEX(Ranks!$1:$1048576,$A495,BG$1))","v":""},{"$f":"IF($A495=\"N/A\",Ref!$B$36,INDEX(Ranks!$1:$1048576,$A495,BH$1))","v":""},{"$f":"IF($A495=\"N/A\",Ref!$B$36,INDEX(Ranks!$1:$1048576,$A495,BI$1))","v":""},{"$f":"IF($A495=\"N/A\",Ref!$B$36,INDEX(Ranks!$1:$1048576,$A495,BJ$1))","v":""},{"$f":"IF($A495=\"N/A\",Ref!$B$36,INDEX(Ranks!$1:$1048576,$A495,BK$1))","v":""},{"$f":"IF($A495=\"N/A\",Ref!$B$36,INDEX(Ranks!$1:$1048576,$A495,BL$1))","v":""},{"$f":"IF($A495=\"N/A\",Ref!$B$36,INDEX(Ranks!$1:$1048576,$A495,BM$1))","v":""},{"$f":"IF($A495=\"N/A\",Ref!$B$36,INDEX(Ranks!$1:$1048576,$A495,BN$1))","v":""},{"$f":"IF($A495=\"N/A\",Ref!$B$36,INDEX(Ranks!$1:$1048576,$A495,BO$1))","v":""},{"$f":"IF($A495=\"N/A\",Ref!$B$36,INDEX(Ranks!$1:$1048576,$A495,BP$1))","v":""},{"$f":"IF($A495=\"N/A\",Ref!$B$36,INDEX(Ranks!$1:$1048576,$A495,BQ$1))","v":""},{"$f":"IF($A495=\"N/A\",Ref!$B$36,INDEX(Ranks!$1:$1048576,$A495,BR$1))","v":""},{"$f":"IF($A495=\"N/A\",Ref!$B$36,INDEX(Ranks!$1:$1048576,$A495,BS$1))","v":""},{"$f":"IF($A495=\"N/A\",Ref!$B$36,INDEX(Ranks!$1:$1048576,$A495,BT$1))","v":""},{"$f":"IF($A495=\"N/A\",Ref!$B$36,INDEX(Ranks!$1:$1048576,$A495,BU$1))","v":""},{"$f":"IF($A495=\"N/A\",Ref!$B$36,INDEX(Ranks!$1:$1048576,$A495,BV$1))","v":""},{"$f":"IF($A495=\"N/A\",Ref!$B$36,INDEX(Ranks!$1:$1048576,$A495,BW$1))","v":""},{"$f":"IF($A495=\"N/A\",Ref!$B$36,INDEX(Ranks!$1:$1048576,$A495,BX$1))","v":""},{"$f":"IF($A495=\"N/A\",Ref!$B$36,INDEX(Ranks!$1:$1048576,$A495,BY$1))","v":""},{"$f":"IF($A495=\"N/A\",Ref!$B$36,INDEX(Ranks!$1:$1048576,$A495,BZ$1))","v":""},{"$f":"IF($A495=\"N/A\",Ref!$B$36,INDEX(Ranks!$1:$1048576,$A495,CA$1))","v":""},{"$f":"IF($A495=\"N/A\",Ref!$B$36,INDEX(Ranks!$1:$1048576,$A495,CB$1))","v":""},{"$f":"IF($A495=\"N/A\",Ref!$B$36,INDEX(Ranks!$1:$1048576,$A495,CC$1))","v":""},{"$f":"IF($A495=\"N/A\",Ref!$B$36,INDEX(Ranks!$1:$1048576,$A495,CD$1))","v":""},{"$f":"IF($A495=\"N/A\",Ref!$B$36,INDEX(Ranks!$1:$1048576,$A495,CE$1))","v":""},{"$f":"IF($A495=\"N/A\",Ref!$B$36,INDEX(Ranks!$1:$1048576,$A495,CF$1))","v":""},{"$f":"IF($A495=\"N/A\",Ref!$B$36,INDEX(Ranks!$1:$1048576,$A495,CG$1))","v":""},{"$f":"IF($A495=\"N/A\",Ref!$B$36,INDEX(Ranks!$1:$1048576,$A495,CH$1))","v":""},{"$f":"IF($A495=\"N/A\",Ref!$B$36,INDEX(Ranks!$1:$1048576,$A495,CI$1))","v":""},{"$f":"IF($A495=\"N/A\",Ref!$B$36,INDEX(Ranks!$1:$1048576,$A495,CJ$1))","v":""},{"$f":"IF($A495=\"N/A\",Ref!$B$36,INDEX(Ranks!$1:$1048576,$A495,CK$1))","v":""},{"$f":"IF($A495=\"N/A\",Ref!$B$36,INDEX(Ranks!$1:$1048576,$A495,CL$1))","v":""},{"$f":"IF($A495=\"N/A\",Ref!$B$36,INDEX(Ranks!$1:$1048576,$A495,CM$1))","v":""},{"$f":"IF($A495=\"N/A\",Ref!$B$36,INDEX(Ranks!$1:$1048576,$A495,CN$1))","v":""},{"$f":"IF($A495=\"N/A\",Ref!$B$36,INDEX(Ranks!$1:$1048576,$A495,CO$1))","v":""},{"$f":"IF($A495=\"N/A\",Ref!$B$36,INDEX(Ranks!$1:$1048576,$A495,CP$1))","v":""},{"$f":"IF($A495=\"N/A\",Ref!$B$36,INDEX(Ranks!$1:$1048576,$A495,CQ$1))","v":""},{"$f":"IF($A495=\"N/A\",Ref!$B$36,INDEX(Ranks!$1:$1048576,$A495,CR$1))","v":""},{"$f":"IF($A495=\"N/A\",Ref!$B$36,INDEX(Ranks!$1:$1048576,$A495,CS$1))","v":""},{"$f":"IF($A495=\"N/A\",Ref!$B$36,INDEX(Ranks!$1:$1048576,$A495,CT$1))","v":""},{"$f":"IF($A495=\"N/A\",Ref!$B$36,INDEX(Ranks!$1:$1048576,$A495,CU$1))","v":""},{"$f":"IF($A495=\"N/A\",Ref!$B$36,INDEX(Ranks!$1:$1048576,$A495,CV$1))","v":""},{"$f":"IF($A495=\"N/A\",Ref!$B$36,INDEX(Ranks!$1:$1048576,$A495,CW$1))","v":""},{"$f":"IF($A495=\"N/A\",Ref!$B$36,INDEX(Ranks!$1:$1048576,$A495,CX$1))","v":""},{"$f":"IF($A495=\"N/A\",Ref!$B$36,INDEX(Ranks!$1:$1048576,$A495,CY$1))","v":""},{"$f":"IF($A495=\"N/A\",Ref!$B$36,INDEX(Ranks!$1:$1048576,$A495,CZ$1))","v":""},{"$f":"IF($A495=\"N/A\",Ref!$B$36,INDEX(Ranks!$1:$1048576,$A495,DA$1))","v":""},{"$f":"IF($A495=\"N/A\",Ref!$B$36,INDEX(Ranks!$1:$1048576,$A495,DB$1))","v":""},{"$f":"IF($A495=\"N/A\",Ref!$B$36,INDEX(Ranks!$1:$1048576,$A495,DC$1))","v":""},{"$f":"IF($A495=\"N/A\",Ref!$B$36,INDEX(Ranks!$1:$1048576,$A495,DD$1))","v":""},{"$f":"IF($A495=\"N/A\",Ref!$B$36,INDEX(Ranks!$1:$1048576,$A495,DE$1))","v":""},{"$f":"IF($A495=\"N/A\",Ref!$B$36,INDEX(Ranks!$1:$1048576,$A495,DF$1))","v":""},{"$f":"IF($A495=\"N/A\",Ref!$B$36,INDEX(Ranks!$1:$1048576,$A495,DG$1))","v":""},{"$f":"IF($A495=\"N/A\",Ref!$B$36,INDEX(Ranks!$1:$1048576,$A495,DH$1))","v":""},{"$f":"IF($A495=\"N/A\",Ref!$B$36,INDEX(Ranks!$1:$1048576,$A495,DI$1))","v":""},{"$f":"IF($A495=\"N/A\",Ref!$B$36,INDEX(Ranks!$1:$1048576,$A495,DJ$1))","v":""},{"$f":"IF($A495=\"N/A\",Ref!$B$36,INDEX(Ranks!$1:$1048576,$A495,DK$1))","v":""},{"$f":"IF($A495=\"N/A\",Ref!$B$36,INDEX(Ranks!$1:$1048576,$A495,DL$1))","v":""},{"$f":"IF($A495=\"N/A\",Ref!$B$36,INDEX(Ranks!$1:$1048576,$A495,DM$1))","v":""},{"$f":"IF($A495=\"N/A\",Ref!$B$36,INDEX(Ranks!$1:$1048576,$A495,DN$1))","v":""},{"$f":"IF($A495=\"N/A\",Ref!$B$36,INDEX(Ranks!$1:$1048576,$A495,DO$1))","v":""},{"$f":"IF($A495=\"N/A\",Ref!$B$36,INDEX(Ranks!$1:$1048576,$A495,DP$1))","v":""},{"$f":"IF($A495=\"N/A\",Ref!$B$36,INDEX(Ranks!$1:$1048576,$A495,DQ$1))","v":""},{"$f":"IF($A495=\"N/A\",Ref!$B$36,INDEX(Ranks!$1:$1048576,$A495,DR$1))","v":""},{"$f":"IF($A495=\"N/A\",Ref!$B$36,INDEX(Ranks!$1:$1048576,$A495,DS$1))","v":""},{"$f":"IF($A495=\"N/A\",Ref!$B$36,INDEX(Ranks!$1:$1048576,$A495,DT$1))","v":""},{"$f":"IF($A495=\"N/A\",Ref!$B$36,INDEX(Ranks!$1:$1048576,$A495,DU$1))","v":""},{"$f":"IF($A495=\"N/A\",Ref!$B$36,INDEX(Ranks!$1:$1048576,$A495,DV$1))","v":""},{"$f":"IF($A495=\"N/A\",Ref!$B$36,INDEX(Ranks!$1:$1048576,$A495,DW$1))","v":""},{"$f":"IF($A495=\"N/A\",Ref!$B$36,INDEX(Ranks!$1:$1048576,$A495,DX$1))","v":""},{"$f":"IF($A495=\"N/A\",Ref!$B$36,INDEX(Ranks!$1:$1048576,$A495,DY$1))","v":""},{"$f":"IF($A495=\"N/A\",Ref!$B$36,INDEX(Ranks!$1:$1048576,$A495,DZ$1))","v":""},{"$f":"IF($A495=\"N/A\",Ref!$B$36,INDEX(Ranks!$1:$1048576,$A495,EA$1))","v":""},{"$f":"IF($A495=\"N/A\",Ref!$B$36,INDEX(Ranks!$1:$1048576,$A495,EB$1))","v":""}]
[{"$f":"IFERROR(MATCH('Portfolio Page'!L496,Ranks!L:L,0),\"N/A\")","v":"N/A"},null,{"$f":"IF($A496=\"N/A\",\"\",INDEX(Ranks!$1:$1048576,$A496,C$1))","v":""},{"$f":"IF($A496=\"N/A\",Ref!$B$36,INDEX(Ranks!$1:$1048576,$A496,D$1))","v":""},{"$f":"IF($A496=\"N/A\",Ref!$B$36,INDEX(Ranks!$1:$1048576,$A496,E$1))","v":""},{"$f":"IF($A496=\"N/A\",\"\",INDEX(Ranks!$1:$1048576,$A496,F$1))","v":""},{"$f":"IF($A496=\"N/A\",\"\",INDEX(Ranks!$1:$1048576,$A496,G$1))","v":""},{"$f":"IF($A496=\"N/A\",\"\",INDEX(Ranks!$1:$1048576,$A496,H$1))","v":""},{"$f":"IF($A496=\"N/A\",\"\",INDEX(Ranks!$1:$1048576,$A496,I$1))","v":""},{"$f":"IF($A496=\"N/A\",\"\",INDEX(Ranks!$1:$1048576,$A496,J$1))","v":""},{"$f":"IF($A496=\"N/A\",\"\",INDEX(Ranks!$1:$1048576,$A496,K$1))","v":""},null,{"$f":"IF($A496=\"N/A\",Ref!$B$36,INDEX(Ranks!$1:$1048576,$A496,M$1))","v":""},{"$f":"IF($A496=\"N/A\",Ref!$B$36,INDEX(Ranks!$1:$1048576,$A496,N$1))","v":""},{"$f":"IF($A496=\"N/A\",Ref!$B$36,INDEX(Ranks!$1:$1048576,$A496,O$1))","v":""},{"$f":"IF($A496=\"N/A\",Ref!$B$36,INDEX(Ranks!$1:$1048576,$A496,P$1))","v":""},{"$f":"IF($A496=\"N/A\",Ref!$B$36,INDEX(Ranks!$1:$1048576,$A496,Q$1))","v":""},{"$f":"IF($A496=\"N/A\",Ref!$B$36,INDEX(Ranks!$1:$1048576,$A496,R$1))","v":""},{"$f":"IF($A496=\"N/A\",Ref!$B$36,INDEX(Ranks!$1:$1048576,$A496,S$1))","v":""},{"$f":"IF($A496=\"N/A\",Ref!$B$36,INDEX(Ranks!$1:$1048576,$A496,T$1))","v":""},{"$f":"IF($A496=\"N/A\",Ref!$B$36,INDEX(Ranks!$1:$1048576,$A496,U$1))","v":""},{"$f":"IF($A496=\"N/A\",Ref!$B$36,INDEX(Ranks!$1:$1048576,$A496,V$1))","v":""},{"$f":"IF($A496=\"N/A\",Ref!$B$36,INDEX(Ranks!$1:$1048576,$A496,W$1))","v":""},{"$f":"IF($A496=\"N/A\",Ref!$B$36,INDEX(Ranks!$1:$1048576,$A496,X$1))","v":""},{"$f":"IF($A496=\"N/A\",Ref!$B$36,INDEX(Ranks!$1:$1048576,$A496,Y$1))","v":""},{"$f":"IF($A496=\"N/A\",Ref!$B$36,INDEX(Ranks!$1:$1048576,$A496,Z$1))","v":""},{"$f":"IF($A496=\"N/A\",Ref!$B$36,INDEX(Ranks!$1:$1048576,$A496,AA$1))","v":""},{"$f":"IF($A496=\"N/A\",Ref!$B$36,INDEX(Ranks!$1:$1048576,$A496,AB$1))","v":""},{"$f":"IF($A496=\"N/A\",Ref!$B$36,INDEX(Ranks!$1:$1048576,$A496,AC$1))","v":""},{"$f":"IF($A496=\"N/A\",Ref!$B$36,INDEX(Ranks!$1:$1048576,$A496,AD$1))","v":""},{"$f":"IF($A496=\"N/A\",Ref!$B$36,INDEX(Ranks!$1:$1048576,$A496,AE$1))","v":""},{"$f":"IF($A496=\"N/A\",Ref!$B$36,INDEX(Ranks!$1:$1048576,$A496,AF$1))","v":""},{"$f":"IF($A496=\"N/A\",Ref!$B$36,INDEX(Ranks!$1:$1048576,$A496,AG$1))","v":""},{"$f":"IF($A496=\"N/A\",Ref!$B$36,INDEX(Ranks!$1:$1048576,$A496,AH$1))","v":""},{"$f":"IF($A496=\"N/A\",Ref!$B$36,INDEX(Ranks!$1:$1048576,$A496,AI$1))","v":""},{"$f":"IF($A496=\"N/A\",Ref!$B$36,INDEX(Ranks!$1:$1048576,$A496,AJ$1))","v":""},{"$f":"IF($A496=\"N/A\",Ref!$B$36,INDEX(Ranks!$1:$1048576,$A496,AK$1))","v":""},{"$f":"IF($A496=\"N/A\",Ref!$B$36,INDEX(Ranks!$1:$1048576,$A496,AL$1))","v":""},{"$f":"IF($A496=\"N/A\",Ref!$B$36,INDEX(Ranks!$1:$1048576,$A496,AM$1))","v":""},{"$f":"IF($A496=\"N/A\",Ref!$B$36,INDEX(Ranks!$1:$1048576,$A496,AN$1))","v":""},{"$f":"IF($A496=\"N/A\",Ref!$B$36,INDEX(Ranks!$1:$1048576,$A496,AO$1))","v":""},{"$f":"IF($A496=\"N/A\",Ref!$B$36,INDEX(Ranks!$1:$1048576,$A496,AP$1))","v":""},{"$f":"IF($A496=\"N/A\",Ref!$B$36,INDEX(Ranks!$1:$1048576,$A496,AQ$1))","v":""},{"$f":"IF($A496=\"N/A\",Ref!$B$36,INDEX(Ranks!$1:$1048576,$A496,AR$1))","v":""},{"$f":"IF($A496=\"N/A\",Ref!$B$36,INDEX(Ranks!$1:$1048576,$A496,AS$1))","v":""},{"$f":"IF($A496=\"N/A\",Ref!$B$36,INDEX(Ranks!$1:$1048576,$A496,AT$1))","v":""},{"$f":"IF($A496=\"N/A\",Ref!$B$36,INDEX(Ranks!$1:$1048576,$A496,AU$1))","v":""},{"$f":"IF($A496=\"N/A\",Ref!$B$36,INDEX(Ranks!$1:$1048576,$A496,AV$1))","v":""},{"$f":"IF($A496=\"N/A\",Ref!$B$36,INDEX(Ranks!$1:$1048576,$A496,AW$1))","v":""},{"$f":"IF($A496=\"N/A\",Ref!$B$36,INDEX(Ranks!$1:$1048576,$A496,AX$1))","v":""},{"$f":"IF($A496=\"N/A\",Ref!$B$36,INDEX(Ranks!$1:$1048576,$A496,AY$1))","v":""},{"$f":"IF($A496=\"N/A\",Ref!$B$36,INDEX(Ranks!$1:$1048576,$A496,AZ$1))","v":""},{"$f":"IF($A496=\"N/A\",Ref!$B$36,INDEX(Ranks!$1:$1048576,$A496,BA$1))","v":""},{"$f":"IF($A496=\"N/A\",Ref!$B$36,INDEX(Ranks!$1:$1048576,$A496,BB$1))","v":""},{"$f":"IF($A496=\"N/A\",Ref!$B$36,INDEX(Ranks!$1:$1048576,$A496,BC$1))","v":""},{"$f":"IF($A496=\"N/A\",Ref!$B$36,INDEX(Ranks!$1:$1048576,$A496,BD$1))","v":""},{"$f":"IF($A496=\"N/A\",Ref!$B$36,INDEX(Ranks!$1:$1048576,$A496,BE$1))","v":""},{"$f":"IF($A496=\"N/A\",Ref!$B$36,INDEX(Ranks!$1:$1048576,$A496,BF$1))","v":""},{"$f":"IF($A496=\"N/A\",Ref!$B$36,INDEX(Ranks!$1:$1048576,$A496,BG$1))","v":""},{"$f":"IF($A496=\"N/A\",Ref!$B$36,INDEX(Ranks!$1:$1048576,$A496,BH$1))","v":""},{"$f":"IF($A496=\"N/A\",Ref!$B$36,INDEX(Ranks!$1:$1048576,$A496,BI$1))","v":""},{"$f":"IF($A496=\"N/A\",Ref!$B$36,INDEX(Ranks!$1:$1048576,$A496,BJ$1))","v":""},{"$f":"IF($A496=\"N/A\",Ref!$B$36,INDEX(Ranks!$1:$1048576,$A496,BK$1))","v":""},{"$f":"IF($A496=\"N/A\",Ref!$B$36,INDEX(Ranks!$1:$1048576,$A496,BL$1))","v":""},{"$f":"IF($A496=\"N/A\",Ref!$B$36,INDEX(Ranks!$1:$1048576,$A496,BM$1))","v":""},{"$f":"IF($A496=\"N/A\",Ref!$B$36,INDEX(Ranks!$1:$1048576,$A496,BN$1))","v":""},{"$f":"IF($A496=\"N/A\",Ref!$B$36,INDEX(Ranks!$1:$1048576,$A496,BO$1))","v":""},{"$f":"IF($A496=\"N/A\",Ref!$B$36,INDEX(Ranks!$1:$1048576,$A496,BP$1))","v":""},{"$f":"IF($A496=\"N/A\",Ref!$B$36,INDEX(Ranks!$1:$1048576,$A496,BQ$1))","v":""},{"$f":"IF($A496=\"N/A\",Ref!$B$36,INDEX(Ranks!$1:$1048576,$A496,BR$1))","v":""},{"$f":"IF($A496=\"N/A\",Ref!$B$36,INDEX(Ranks!$1:$1048576,$A496,BS$1))","v":""},{"$f":"IF($A496=\"N/A\",Ref!$B$36,INDEX(Ranks!$1:$1048576,$A496,BT$1))","v":""},{"$f":"IF($A496=\"N/A\",Ref!$B$36,INDEX(Ranks!$1:$1048576,$A496,BU$1))","v":""},{"$f":"IF($A496=\"N/A\",Ref!$B$36,INDEX(Ranks!$1:$1048576,$A496,BV$1))","v":""},{"$f":"IF($A496=\"N/A\",Ref!$B$36,INDEX(Ranks!$1:$1048576,$A496,BW$1))","v":""},{"$f":"IF($A496=\"N/A\",Ref!$B$36,INDEX(Ranks!$1:$1048576,$A496,BX$1))","v":""},{"$f":"IF($A496=\"N/A\",Ref!$B$36,INDEX(Ranks!$1:$1048576,$A496,BY$1))","v":""},{"$f":"IF($A496=\"N/A\",Ref!$B$36,INDEX(Ranks!$1:$1048576,$A496,BZ$1))","v":""},{"$f":"IF($A496=\"N/A\",Ref!$B$36,INDEX(Ranks!$1:$1048576,$A496,CA$1))","v":""},{"$f":"IF($A496=\"N/A\",Ref!$B$36,INDEX(Ranks!$1:$1048576,$A496,CB$1))","v":""},{"$f":"IF($A496=\"N/A\",Ref!$B$36,INDEX(Ranks!$1:$1048576,$A496,CC$1))","v":""},{"$f":"IF($A496=\"N/A\",Ref!$B$36,INDEX(Ranks!$1:$1048576,$A496,CD$1))","v":""},{"$f":"IF($A496=\"N/A\",Ref!$B$36,INDEX(Ranks!$1:$1048576,$A496,CE$1))","v":""},{"$f":"IF($A496=\"N/A\",Ref!$B$36,INDEX(Ranks!$1:$1048576,$A496,CF$1))","v":""},{"$f":"IF($A496=\"N/A\",Ref!$B$36,INDEX(Ranks!$1:$1048576,$A496,CG$1))","v":""},{"$f":"IF($A496=\"N/A\",Ref!$B$36,INDEX(Ranks!$1:$1048576,$A496,CH$1))","v":""},{"$f":"IF($A496=\"N/A\",Ref!$B$36,INDEX(Ranks!$1:$1048576,$A496,CI$1))","v":""},{"$f":"IF($A496=\"N/A\",Ref!$B$36,INDEX(Ranks!$1:$1048576,$A496,CJ$1))","v":""},{"$f":"IF($A496=\"N/A\",Ref!$B$36,INDEX(Ranks!$1:$1048576,$A496,CK$1))","v":""},{"$f":"IF($A496=\"N/A\",Ref!$B$36,INDEX(Ranks!$1:$1048576,$A496,CL$1))","v":""},{"$f":"IF($A496=\"N/A\",Ref!$B$36,INDEX(Ranks!$1:$1048576,$A496,CM$1))","v":""},{"$f":"IF($A496=\"N/A\",Ref!$B$36,INDEX(Ranks!$1:$1048576,$A496,CN$1))","v":""},{"$f":"IF($A496=\"N/A\",Ref!$B$36,INDEX(Ranks!$1:$1048576,$A496,CO$1))","v":""},{"$f":"IF($A496=\"N/A\",Ref!$B$36,INDEX(Ranks!$1:$1048576,$A496,CP$1))","v":""},{"$f":"IF($A496=\"N/A\",Ref!$B$36,INDEX(Ranks!$1:$1048576,$A496,CQ$1))","v":""},{"$f":"IF($A496=\"N/A\",Ref!$B$36,INDEX(Ranks!$1:$1048576,$A496,CR$1))","v":""},{"$f":"IF($A496=\"N/A\",Ref!$B$36,INDEX(Ranks!$1:$1048576,$A496,CS$1))","v":""},{"$f":"IF($A496=\"N/A\",Ref!$B$36,INDEX(Ranks!$1:$1048576,$A496,CT$1))","v":""},{"$f":"IF($A496=\"N/A\",Ref!$B$36,INDEX(Ranks!$1:$1048576,$A496,CU$1))","v":""},{"$f":"IF($A496=\"N/A\",Ref!$B$36,INDEX(Ranks!$1:$1048576,$A496,CV$1))","v":""},{"$f":"IF($A496=\"N/A\",Ref!$B$36,INDEX(Ranks!$1:$1048576,$A496,CW$1))","v":""},{"$f":"IF($A496=\"N/A\",Ref!$B$36,INDEX(Ranks!$1:$1048576,$A496,CX$1))","v":""},{"$f":"IF($A496=\"N/A\",Ref!$B$36,INDEX(Ranks!$1:$1048576,$A496,CY$1))","v":""},{"$f":"IF($A496=\"N/A\",Ref!$B$36,INDEX(Ranks!$1:$1048576,$A496,CZ$1))","v":""},{"$f":"IF($A496=\"N/A\",Ref!$B$36,INDEX(Ranks!$1:$1048576,$A496,DA$1))","v":""},{"$f":"IF($A496=\"N/A\",Ref!$B$36,INDEX(Ranks!$1:$1048576,$A496,DB$1))","v":""},{"$f":"IF($A496=\"N/A\",Ref!$B$36,INDEX(Ranks!$1:$1048576,$A496,DC$1))","v":""},{"$f":"IF($A496=\"N/A\",Ref!$B$36,INDEX(Ranks!$1:$1048576,$A496,DD$1))","v":""},{"$f":"IF($A496=\"N/A\",Ref!$B$36,INDEX(Ranks!$1:$1048576,$A496,DE$1))","v":""},{"$f":"IF($A496=\"N/A\",Ref!$B$36,INDEX(Ranks!$1:$1048576,$A496,DF$1))","v":""},{"$f":"IF($A496=\"N/A\",Ref!$B$36,INDEX(Ranks!$1:$1048576,$A496,DG$1))","v":""},{"$f":"IF($A496=\"N/A\",Ref!$B$36,INDEX(Ranks!$1:$1048576,$A496,DH$1))","v":""},{"$f":"IF($A496=\"N/A\",Ref!$B$36,INDEX(Ranks!$1:$1048576,$A496,DI$1))","v":""},{"$f":"IF($A496=\"N/A\",Ref!$B$36,INDEX(Ranks!$1:$1048576,$A496,DJ$1))","v":""},{"$f":"IF($A496=\"N/A\",Ref!$B$36,INDEX(Ranks!$1:$1048576,$A496,DK$1))","v":""},{"$f":"IF($A496=\"N/A\",Ref!$B$36,INDEX(Ranks!$1:$1048576,$A496,DL$1))","v":""},{"$f":"IF($A496=\"N/A\",Ref!$B$36,INDEX(Ranks!$1:$1048576,$A496,DM$1))","v":""},{"$f":"IF($A496=\"N/A\",Ref!$B$36,INDEX(Ranks!$1:$1048576,$A496,DN$1))","v":""},{"$f":"IF($A496=\"N/A\",Ref!$B$36,INDEX(Ranks!$1:$1048576,$A496,DO$1))","v":""},{"$f":"IF($A496=\"N/A\",Ref!$B$36,INDEX(Ranks!$1:$1048576,$A496,DP$1))","v":""},{"$f":"IF($A496=\"N/A\",Ref!$B$36,INDEX(Ranks!$1:$1048576,$A496,DQ$1))","v":""},{"$f":"IF($A496=\"N/A\",Ref!$B$36,INDEX(Ranks!$1:$1048576,$A496,DR$1))","v":""},{"$f":"IF($A496=\"N/A\",Ref!$B$36,INDEX(Ranks!$1:$1048576,$A496,DS$1))","v":""},{"$f":"IF($A496=\"N/A\",Ref!$B$36,INDEX(Ranks!$1:$1048576,$A496,DT$1))","v":""},{"$f":"IF($A496=\"N/A\",Ref!$B$36,INDEX(Ranks!$1:$1048576,$A496,DU$1))","v":""},{"$f":"IF($A496=\"N/A\",Ref!$B$36,INDEX(Ranks!$1:$1048576,$A496,DV$1))","v":""},{"$f":"IF($A496=\"N/A\",Ref!$B$36,INDEX(Ranks!$1:$1048576,$A496,DW$1))","v":""},{"$f":"IF($A496=\"N/A\",Ref!$B$36,INDEX(Ranks!$1:$1048576,$A496,DX$1))","v":""},{"$f":"IF($A496=\"N/A\",Ref!$B$36,INDEX(Ranks!$1:$1048576,$A496,DY$1))","v":""},{"$f":"IF($A496=\"N/A\",Ref!$B$36,INDEX(Ranks!$1:$1048576,$A496,DZ$1))","v":""},{"$f":"IF($A496=\"N/A\",Ref!$B$36,INDEX(Ranks!$1:$1048576,$A496,EA$1))","v":""},{"$f":"IF($A496=\"N/A\",Ref!$B$36,INDEX(Ranks!$1:$1048576,$A496,EB$1))","v":""}]
[{"$f":"IFERROR(MATCH('Portfolio Page'!L497,Ranks!L:L,0),\"N/A\")","v":"N/A"},null,{"$f":"IF($A497=\"N/A\",\"\",INDEX(Ranks!$1:$1048576,$A497,C$1))","v":""},{"$f":"IF($A497=\"N/A\",Ref!$B$36,INDEX(Ranks!$1:$1048576,$A497,D$1))","v":""},{"$f":"IF($A497=\"N/A\",Ref!$B$36,INDEX(Ranks!$1:$1048576,$A497,E$1))","v":""},{"$f":"IF($A497=\"N/A\",\"\",INDEX(Ranks!$1:$1048576,$A497,F$1))","v":""},{"$f":"IF($A497=\"N/A\",\"\",INDEX(Ranks!$1:$1048576,$A497,G$1))","v":""},{"$f":"IF($A497=\"N/A\",\"\",INDEX(Ranks!$1:$1048576,$A497,H$1))","v":""},{"$f":"IF($A497=\"N/A\",\"\",INDEX(Ranks!$1:$1048576,$A497,I$1))","v":""},{"$f":"IF($A497=\"N/A\",\"\",INDEX(Ranks!$1:$1048576,$A497,J$1))","v":""},{"$f":"IF($A497=\"N/A\",\"\",INDEX(Ranks!$1:$1048576,$A497,K$1))","v":""},null,{"$f":"IF($A497=\"N/A\",Ref!$B$36,INDEX(Ranks!$1:$1048576,$A497,M$1))","v":""},{"$f":"IF($A497=\"N/A\",Ref!$B$36,INDEX(Ranks!$1:$1048576,$A497,N$1))","v":""},{"$f":"IF($A497=\"N/A\",Ref!$B$36,INDEX(Ranks!$1:$1048576,$A497,O$1))","v":""},{"$f":"IF($A497=\"N/A\",Ref!$B$36,INDEX(Ranks!$1:$1048576,$A497,P$1))","v":""},{"$f":"IF($A497=\"N/A\",Ref!$B$36,INDEX(Ranks!$1:$1048576,$A497,Q$1))","v":""},{"$f":"IF($A497=\"N/A\",Ref!$B$36,INDEX(Ranks!$1:$1048576,$A497,R$1))","v":""},{"$f":"IF($A497=\"N/A\",Ref!$B$36,INDEX(Ranks!$1:$1048576,$A497,S$1))","v":""},{"$f":"IF($A497=\"N/A\",Ref!$B$36,INDEX(Ranks!$1:$1048576,$A497,T$1))","v":""},{"$f":"IF($A497=\"N/A\",Ref!$B$36,INDEX(Ranks!$1:$1048576,$A497,U$1))","v":""},{"$f":"IF($A497=\"N/A\",Ref!$B$36,INDEX(Ranks!$1:$1048576,$A497,V$1))","v":""},{"$f":"IF($A497=\"N/A\",Ref!$B$36,INDEX(Ranks!$1:$1048576,$A497,W$1))","v":""},{"$f":"IF($A497=\"N/A\",Ref!$B$36,INDEX(Ranks!$1:$1048576,$A497,X$1))","v":""},{"$f":"IF($A497=\"N/A\",Ref!$B$36,INDEX(Ranks!$1:$1048576,$A497,Y$1))","v":""},{"$f":"IF($A497=\"N/A\",Ref!$B$36,INDEX(Ranks!$1:$1048576,$A497,Z$1))","v":""},{"$f":"IF($A497=\"N/A\",Ref!$B$36,INDEX(Ranks!$1:$1048576,$A497,AA$1))","v":""},{"$f":"IF($A497=\"N/A\",Ref!$B$36,INDEX(Ranks!$1:$1048576,$A497,AB$1))","v":""},{"$f":"IF($A497=\"N/A\",Ref!$B$36,INDEX(Ranks!$1:$1048576,$A497,AC$1))","v":""},{"$f":"IF($A497=\"N/A\",Ref!$B$36,INDEX(Ranks!$1:$1048576,$A497,AD$1))","v":""},{"$f":"IF($A497=\"N/A\",Ref!$B$36,INDEX(Ranks!$1:$1048576,$A497,AE$1))","v":""},{"$f":"IF($A497=\"N/A\",Ref!$B$36,INDEX(Ranks!$1:$1048576,$A497,AF$1))","v":""},{"$f":"IF($A497=\"N/A\",Ref!$B$36,INDEX(Ranks!$1:$1048576,$A497,AG$1))","v":""},{"$f":"IF($A497=\"N/A\",Ref!$B$36,INDEX(Ranks!$1:$1048576,$A497,AH$1))","v":""},{"$f":"IF($A497=\"N/A\",Ref!$B$36,INDEX(Ranks!$1:$1048576,$A497,AI$1))","v":""},{"$f":"IF($A497=\"N/A\",Ref!$B$36,INDEX(Ranks!$1:$1048576,$A497,AJ$1))","v":""},{"$f":"IF($A497=\"N/A\",Ref!$B$36,INDEX(Ranks!$1:$1048576,$A497,AK$1))","v":""},{"$f":"IF($A497=\"N/A\",Ref!$B$36,INDEX(Ranks!$1:$1048576,$A497,AL$1))","v":""},{"$f":"IF($A497=\"N/A\",Ref!$B$36,INDEX(Ranks!$1:$1048576,$A497,AM$1))","v":""},{"$f":"IF($A497=\"N/A\",Ref!$B$36,INDEX(Ranks!$1:$1048576,$A497,AN$1))","v":""},{"$f":"IF($A497=\"N/A\",Ref!$B$36,INDEX(Ranks!$1:$1048576,$A497,AO$1))","v":""},{"$f":"IF($A497=\"N/A\",Ref!$B$36,INDEX(Ranks!$1:$1048576,$A497,AP$1))","v":""},{"$f":"IF($A497=\"N/A\",Ref!$B$36,INDEX(Ranks!$1:$1048576,$A497,AQ$1))","v":""},{"$f":"IF($A497=\"N/A\",Ref!$B$36,INDEX(Ranks!$1:$1048576,$A497,AR$1))","v":""},{"$f":"IF($A497=\"N/A\",Ref!$B$36,INDEX(Ranks!$1:$1048576,$A497,AS$1))","v":""},{"$f":"IF($A497=\"N/A\",Ref!$B$36,INDEX(Ranks!$1:$1048576,$A497,AT$1))","v":""},{"$f":"IF($A497=\"N/A\",Ref!$B$36,INDEX(Ranks!$1:$1048576,$A497,AU$1))","v":""},{"$f":"IF($A497=\"N/A\",Ref!$B$36,INDEX(Ranks!$1:$1048576,$A497,AV$1))","v":""},{"$f":"IF($A497=\"N/A\",Ref!$B$36,INDEX(Ranks!$1:$1048576,$A497,AW$1))","v":""},{"$f":"IF($A497=\"N/A\",Ref!$B$36,INDEX(Ranks!$1:$1048576,$A497,AX$1))","v":""},{"$f":"IF($A497=\"N/A\",Ref!$B$36,INDEX(Ranks!$1:$1048576,$A497,AY$1))","v":""},{"$f":"IF($A497=\"N/A\",Ref!$B$36,INDEX(Ranks!$1:$1048576,$A497,AZ$1))","v":""},{"$f":"IF($A497=\"N/A\",Ref!$B$36,INDEX(Ranks!$1:$1048576,$A497,BA$1))","v":""},{"$f":"IF($A497=\"N/A\",Ref!$B$36,INDEX(Ranks!$1:$1048576,$A497,BB$1))","v":""},{"$f":"IF($A497=\"N/A\",Ref!$B$36,INDEX(Ranks!$1:$1048576,$A497,BC$1))","v":""},{"$f":"IF($A497=\"N/A\",Ref!$B$36,INDEX(Ranks!$1:$1048576,$A497,BD$1))","v":""},{"$f":"IF($A497=\"N/A\",Ref!$B$36,INDEX(Ranks!$1:$1048576,$A497,BE$1))","v":""},{"$f":"IF($A497=\"N/A\",Ref!$B$36,INDEX(Ranks!$1:$1048576,$A497,BF$1))","v":""},{"$f":"IF($A497=\"N/A\",Ref!$B$36,INDEX(Ranks!$1:$1048576,$A497,BG$1))","v":""},{"$f":"IF($A497=\"N/A\",Ref!$B$36,INDEX(Ranks!$1:$1048576,$A497,BH$1))","v":""},{"$f":"IF($A497=\"N/A\",Ref!$B$36,INDEX(Ranks!$1:$1048576,$A497,BI$1))","v":""},{"$f":"IF($A497=\"N/A\",Ref!$B$36,INDEX(Ranks!$1:$1048576,$A497,BJ$1))","v":""},{"$f":"IF($A497=\"N/A\",Ref!$B$36,INDEX(Ranks!$1:$1048576,$A497,BK$1))","v":""},{"$f":"IF($A497=\"N/A\",Ref!$B$36,INDEX(Ranks!$1:$1048576,$A497,BL$1))","v":""},{"$f":"IF($A497=\"N/A\",Ref!$B$36,INDEX(Ranks!$1:$1048576,$A497,BM$1))","v":""},{"$f":"IF($A497=\"N/A\",Ref!$B$36,INDEX(Ranks!$1:$1048576,$A497,BN$1))","v":""},{"$f":"IF($A497=\"N/A\",Ref!$B$36,INDEX(Ranks!$1:$1048576,$A497,BO$1))","v":""},{"$f":"IF($A497=\"N/A\",Ref!$B$36,INDEX(Ranks!$1:$1048576,$A497,BP$1))","v":""},{"$f":"IF($A497=\"N/A\",Ref!$B$36,INDEX(Ranks!$1:$1048576,$A497,BQ$1))","v":""},{"$f":"IF($A497=\"N/A\",Ref!$B$36,INDEX(Ranks!$1:$1048576,$A497,BR$1))","v":""},{"$f":"IF($A497=\"N/A\",Ref!$B$36,INDEX(Ranks!$1:$1048576,$A497,BS$1))","v":""},{"$f":"IF($A497=\"N/A\",Ref!$B$36,INDEX(Ranks!$1:$1048576,$A497,BT$1))","v":""},{"$f":"IF($A497=\"N/A\",Ref!$B$36,INDEX(Ranks!$1:$1048576,$A497,BU$1))","v":""},{"$f":"IF($A497=\"N/A\",Ref!$B$36,INDEX(Ranks!$1:$1048576,$A497,BV$1))","v":""},{"$f":"IF($A497=\"N/A\",Ref!$B$36,INDEX(Ranks!$1:$1048576,$A497,BW$1))","v":""},{"$f":"IF($A497=\"N/A\",Ref!$B$36,INDEX(Ranks!$1:$1048576,$A497,BX$1))","v":""},{"$f":"IF($A497=\"N/A\",Ref!$B$36,INDEX(Ranks!$1:$1048576,$A497,BY$1))","v":""},{"$f":"IF($A497=\"N/A\",Ref!$B$36,INDEX(Ranks!$1:$1048576,$A497,BZ$1))","v":""},{"$f":"IF($A497=\"N/A\",Ref!$B$36,INDEX(Ranks!$1:$1048576,$A497,CA$1))","v":""},{"$f":"IF($A497=\"N/A\",Ref!$B$36,INDEX(Ranks!$1:$1048576,$A497,CB$1))","v":""},{"$f":"IF($A497=\"N/A\",Ref!$B$36,INDEX(Ranks!$1:$1048576,$A497,CC$1))","v":""},{"$f":"IF($A497=\"N/A\",Ref!$B$36,INDEX(Ranks!$1:$1048576,$A497,CD$1))","v":""},{"$f":"IF($A497=\"N/A\",Ref!$B$36,INDEX(Ranks!$1:$1048576,$A497,CE$1))","v":""},{"$f":"IF($A497=\"N/A\",Ref!$B$36,INDEX(Ranks!$1:$1048576,$A497,CF$1))","v":""},{"$f":"IF($A497=\"N/A\",Ref!$B$36,INDEX(Ranks!$1:$1048576,$A497,CG$1))","v":""},{"$f":"IF($A497=\"N/A\",Ref!$B$36,INDEX(Ranks!$1:$1048576,$A497,CH$1))","v":""},{"$f":"IF($A497=\"N/A\",Ref!$B$36,INDEX(Ranks!$1:$1048576,$A497,CI$1))","v":""},{"$f":"IF($A497=\"N/A\",Ref!$B$36,INDEX(Ranks!$1:$1048576,$A497,CJ$1))","v":""},{"$f":"IF($A497=\"N/A\",Ref!$B$36,INDEX(Ranks!$1:$1048576,$A497,CK$1))","v":""},{"$f":"IF($A497=\"N/A\",Ref!$B$36,INDEX(Ranks!$1:$1048576,$A497,CL$1))","v":""},{"$f":"IF($A497=\"N/A\",Ref!$B$36,INDEX(Ranks!$1:$1048576,$A497,CM$1))","v":""},{"$f":"IF($A497=\"N/A\",Ref!$B$36,INDEX(Ranks!$1:$1048576,$A497,CN$1))","v":""},{"$f":"IF($A497=\"N/A\",Ref!$B$36,INDEX(Ranks!$1:$1048576,$A497,CO$1))","v":""},{"$f":"IF($A497=\"N/A\",Ref!$B$36,INDEX(Ranks!$1:$1048576,$A497,CP$1))","v":""},{"$f":"IF($A497=\"N/A\",Ref!$B$36,INDEX(Ranks!$1:$1048576,$A497,CQ$1))","v":""},{"$f":"IF($A497=\"N/A\",Ref!$B$36,INDEX(Ranks!$1:$1048576,$A497,CR$1))","v":""},{"$f":"IF($A497=\"N/A\",Ref!$B$36,INDEX(Ranks!$1:$1048576,$A497,CS$1))","v":""},{"$f":"IF($A497=\"N/A\",Ref!$B$36,INDEX(Ranks!$1:$1048576,$A497,CT$1))","v":""},{"$f":"IF($A497=\"N/A\",Ref!$B$36,INDEX(Ranks!$1:$1048576,$A497,CU$1))","v":""},{"$f":"IF($A497=\"N/A\",Ref!$B$36,INDEX(Ranks!$1:$1048576,$A497,CV$1))","v":""},{"$f":"IF($A497=\"N/A\",Ref!$B$36,INDEX(Ranks!$1:$1048576,$A497,CW$1))","v":""},{"$f":"IF($A497=\"N/A\",Ref!$B$36,INDEX(Ranks!$1:$1048576,$A497,CX$1))","v":""},{"$f":"IF($A497=\"N/A\",Ref!$B$36,INDEX(Ranks!$1:$1048576,$A497,CY$1))","v":""},{"$f":"IF($A497=\"N/A\",Ref!$B$36,INDEX(Ranks!$1:$1048576,$A497,CZ$1))","v":""},{"$f":"IF($A497=\"N/A\",Ref!$B$36,INDEX(Ranks!$1:$1048576,$A497,DA$1))","v":""},{"$f":"IF($A497=\"N/A\",Ref!$B$36,INDEX(Ranks!$1:$1048576,$A497,DB$1))","v":""},{"$f":"IF($A497=\"N/A\",Ref!$B$36,INDEX(Ranks!$1:$1048576,$A497,DC$1))","v":""},{"$f":"IF($A497=\"N/A\",Ref!$B$36,INDEX(Ranks!$1:$1048576,$A497,DD$1))","v":""},{"$f":"IF($A497=\"N/A\",Ref!$B$36,INDEX(Ranks!$1:$1048576,$A497,DE$1))","v":""},{"$f":"IF($A497=\"N/A\",Ref!$B$36,INDEX(Ranks!$1:$1048576,$A497,DF$1))","v":""},{"$f":"IF($A497=\"N/A\",Ref!$B$36,INDEX(Ranks!$1:$1048576,$A497,DG$1))","v":""},{"$f":"IF($A497=\"N/A\",Ref!$B$36,INDEX(Ranks!$1:$1048576,$A497,DH$1))","v":""},{"$f":"IF($A497=\"N/A\",Ref!$B$36,INDEX(Ranks!$1:$1048576,$A497,DI$1))","v":""},{"$f":"IF($A497=\"N/A\",Ref!$B$36,INDEX(Ranks!$1:$1048576,$A497,DJ$1))","v":""},{"$f":"IF($A497=\"N/A\",Ref!$B$36,INDEX(Ranks!$1:$1048576,$A497,DK$1))","v":""},{"$f":"IF($A497=\"N/A\",Ref!$B$36,INDEX(Ranks!$1:$1048576,$A497,DL$1))","v":""},{"$f":"IF($A497=\"N/A\",Ref!$B$36,INDEX(Ranks!$1:$1048576,$A497,DM$1))","v":""},{"$f":"IF($A497=\"N/A\",Ref!$B$36,INDEX(Ranks!$1:$1048576,$A497,DN$1))","v":""},{"$f":"IF($A497=\"N/A\",Ref!$B$36,INDEX(Ranks!$1:$1048576,$A497,DO$1))","v":""},{"$f":"IF($A497=\"N/A\",Ref!$B$36,INDEX(Ranks!$1:$1048576,$A497,DP$1))","v":""},{"$f":"IF($A497=\"N/A\",Ref!$B$36,INDEX(Ranks!$1:$1048576,$A497,DQ$1))","v":""},{"$f":"IF($A497=\"N/A\",Ref!$B$36,INDEX(Ranks!$1:$1048576,$A497,DR$1))","v":""},{"$f":"IF($A497=\"N/A\",Ref!$B$36,INDEX(Ranks!$1:$1048576,$A497,DS$1))","v":""},{"$f":"IF($A497=\"N/A\",Ref!$B$36,INDEX(Ranks!$1:$1048576,$A497,DT$1))","v":""},{"$f":"IF($A497=\"N/A\",Ref!$B$36,INDEX(Ranks!$1:$1048576,$A497,DU$1))","v":""},{"$f":"IF($A497=\"N/A\",Ref!$B$36,INDEX(Ranks!$1:$1048576,$A497,DV$1))","v":""},{"$f":"IF($A497=\"N/A\",Ref!$B$36,INDEX(Ranks!$1:$1048576,$A497,DW$1))","v":""},{"$f":"IF($A497=\"N/A\",Ref!$B$36,INDEX(Ranks!$1:$1048576,$A497,DX$1))","v":""},{"$f":"IF($A497=\"N/A\",Ref!$B$36,INDEX(Ranks!$1:$1048576,$A497,DY$1))","v":""},{"$f":"IF($A497=\"N/A\",Ref!$B$36,INDEX(Ranks!$1:$1048576,$A497,DZ$1))","v":""},{"$f":"IF($A497=\"N/A\",Ref!$B$36,INDEX(Ranks!$1:$1048576,$A497,EA$1))","v":""},{"$f":"IF($A497=\"N/A\",Ref!$B$36,INDEX(Ranks!$1:$1048576,$A497,EB$1))","v":""}]
[{"$f":"IFERROR(MATCH('Portfolio Page'!L498,Ranks!L:L,0),\"N/A\")","v":"N/A"},null,{"$f":"IF($A498=\"N/A\",\"\",INDEX(Ranks!$1:$1048576,$A498,C$1))","v":""},{"$f":"IF($A498=\"N/A\",Ref!$B$36,INDEX(Ranks!$1:$1048576,$A498,D$1))","v":""},{"$f":"IF($A498=\"N/A\",Ref!$B$36,INDEX(Ranks!$1:$1048576,$A498,E$1))","v":""},{"$f":"IF($A498=\"N/A\",\"\",INDEX(Ranks!$1:$1048576,$A498,F$1))","v":""},{"$f":"IF($A498=\"N/A\",\"\",INDEX(Ranks!$1:$1048576,$A498,G$1))","v":""},{"$f":"IF($A498=\"N/A\",\"\",INDEX(Ranks!$1:$1048576,$A498,H$1))","v":""},{"$f":"IF($A498=\"N/A\",\"\",INDEX(Ranks!$1:$1048576,$A498,I$1))","v":""},{"$f":"IF($A498=\"N/A\",\"\",INDEX(Ranks!$1:$1048576,$A498,J$1))","v":""},{"$f":"IF($A498=\"N/A\",\"\",INDEX(Ranks!$1:$1048576,$A498,K$1))","v":""},null,{"$f":"IF($A498=\"N/A\",Ref!$B$36,INDEX(Ranks!$1:$1048576,$A498,M$1))","v":""},{"$f":"IF($A498=\"N/A\",Ref!$B$36,INDEX(Ranks!$1:$1048576,$A498,N$1))","v":""},{"$f":"IF($A498=\"N/A\",Ref!$B$36,INDEX(Ranks!$1:$1048576,$A498,O$1))","v":""},{"$f":"IF($A498=\"N/A\",Ref!$B$36,INDEX(Ranks!$1:$1048576,$A498,P$1))","v":""},{"$f":"IF($A498=\"N/A\",Ref!$B$36,INDEX(Ranks!$1:$1048576,$A498,Q$1))","v":""},{"$f":"IF($A498=\"N/A\",Ref!$B$36,INDEX(Ranks!$1:$1048576,$A498,R$1))","v":""},{"$f":"IF($A498=\"N/A\",Ref!$B$36,INDEX(Ranks!$1:$1048576,$A498,S$1))","v":""},{"$f":"IF($A498=\"N/A\",Ref!$B$36,INDEX(Ranks!$1:$1048576,$A498,T$1))","v":""},{"$f":"IF($A498=\"N/A\",Ref!$B$36,INDEX(Ranks!$1:$1048576,$A498,U$1))","v":""},{"$f":"IF($A498=\"N/A\",Ref!$B$36,INDEX(Ranks!$1:$1048576,$A498,V$1))","v":""},{"$f":"IF($A498=\"N/A\",Ref!$B$36,INDEX(Ranks!$1:$1048576,$A498,W$1))","v":""},{"$f":"IF($A498=\"N/A\",Ref!$B$36,INDEX(Ranks!$1:$1048576,$A498,X$1))","v":""},{"$f":"IF($A498=\"N/A\",Ref!$B$36,INDEX(Ranks!$1:$1048576,$A498,Y$1))","v":""},{"$f":"IF($A498=\"N/A\",Ref!$B$36,INDEX(Ranks!$1:$1048576,$A498,Z$1))","v":""},{"$f":"IF($A498=\"N/A\",Ref!$B$36,INDEX(Ranks!$1:$1048576,$A498,AA$1))","v":""},{"$f":"IF($A498=\"N/A\",Ref!$B$36,INDEX(Ranks!$1:$1048576,$A498,AB$1))","v":""},{"$f":"IF($A498=\"N/A\",Ref!$B$36,INDEX(Ranks!$1:$1048576,$A498,AC$1))","v":""},{"$f":"IF($A498=\"N/A\",Ref!$B$36,INDEX(Ranks!$1:$1048576,$A498,AD$1))","v":""},{"$f":"IF($A498=\"N/A\",Ref!$B$36,INDEX(Ranks!$1:$1048576,$A498,AE$1))","v":""},{"$f":"IF($A498=\"N/A\",Ref!$B$36,INDEX(Ranks!$1:$1048576,$A498,AF$1))","v":""},{"$f":"IF($A498=\"N/A\",Ref!$B$36,INDEX(Ranks!$1:$1048576,$A498,AG$1))","v":""},{"$f":"IF($A498=\"N/A\",Ref!$B$36,INDEX(Ranks!$1:$1048576,$A498,AH$1))","v":""},{"$f":"IF($A498=\"N/A\",Ref!$B$36,INDEX(Ranks!$1:$1048576,$A498,AI$1))","v":""},{"$f":"IF($A498=\"N/A\",Ref!$B$36,INDEX(Ranks!$1:$1048576,$A498,AJ$1))","v":""},{"$f":"IF($A498=\"N/A\",Ref!$B$36,INDEX(Ranks!$1:$1048576,$A498,AK$1))","v":""},{"$f":"IF($A498=\"N/A\",Ref!$B$36,INDEX(Ranks!$1:$1048576,$A498,AL$1))","v":""},{"$f":"IF($A498=\"N/A\",Ref!$B$36,INDEX(Ranks!$1:$1048576,$A498,AM$1))","v":""},{"$f":"IF($A498=\"N/A\",Ref!$B$36,INDEX(Ranks!$1:$1048576,$A498,AN$1))","v":""},{"$f":"IF($A498=\"N/A\",Ref!$B$36,INDEX(Ranks!$1:$1048576,$A498,AO$1))","v":""},{"$f":"IF($A498=\"N/A\",Ref!$B$36,INDEX(Ranks!$1:$1048576,$A498,AP$1))","v":""},{"$f":"IF($A498=\"N/A\",Ref!$B$36,INDEX(Ranks!$1:$1048576,$A498,AQ$1))","v":""},{"$f":"IF($A498=\"N/A\",Ref!$B$36,INDEX(Ranks!$1:$1048576,$A498,AR$1))","v":""},{"$f":"IF($A498=\"N/A\",Ref!$B$36,INDEX(Ranks!$1:$1048576,$A498,AS$1))","v":""},{"$f":"IF($A498=\"N/A\",Ref!$B$36,INDEX(Ranks!$1:$1048576,$A498,AT$1))","v":""},{"$f":"IF($A498=\"N/A\",Ref!$B$36,INDEX(Ranks!$1:$1048576,$A498,AU$1))","v":""},{"$f":"IF($A498=\"N/A\",Ref!$B$36,INDEX(Ranks!$1:$1048576,$A498,AV$1))","v":""},{"$f":"IF($A498=\"N/A\",Ref!$B$36,INDEX(Ranks!$1:$1048576,$A498,AW$1))","v":""},{"$f":"IF($A498=\"N/A\",Ref!$B$36,INDEX(Ranks!$1:$1048576,$A498,AX$1))","v":""},{"$f":"IF($A498=\"N/A\",Ref!$B$36,INDEX(Ranks!$1:$1048576,$A498,AY$1))","v":""},{"$f":"IF($A498=\"N/A\",Ref!$B$36,INDEX(Ranks!$1:$1048576,$A498,AZ$1))","v":""},{"$f":"IF($A498=\"N/A\",Ref!$B$36,INDEX(Ranks!$1:$1048576,$A498,BA$1))","v":""},{"$f":"IF($A498=\"N/A\",Ref!$B$36,INDEX(Ranks!$1:$1048576,$A498,BB$1))","v":""},{"$f":"IF($A498=\"N/A\",Ref!$B$36,INDEX(Ranks!$1:$1048576,$A498,BC$1))","v":""},{"$f":"IF($A498=\"N/A\",Ref!$B$36,INDEX(Ranks!$1:$1048576,$A498,BD$1))","v":""},{"$f":"IF($A498=\"N/A\",Ref!$B$36,INDEX(Ranks!$1:$1048576,$A498,BE$1))","v":""},{"$f":"IF($A498=\"N/A\",Ref!$B$36,INDEX(Ranks!$1:$1048576,$A498,BF$1))","v":""},{"$f":"IF($A498=\"N/A\",Ref!$B$36,INDEX(Ranks!$1:$1048576,$A498,BG$1))","v":""},{"$f":"IF($A498=\"N/A\",Ref!$B$36,INDEX(Ranks!$1:$1048576,$A498,BH$1))","v":""},{"$f":"IF($A498=\"N/A\",Ref!$B$36,INDEX(Ranks!$1:$1048576,$A498,BI$1))","v":""},{"$f":"IF($A498=\"N/A\",Ref!$B$36,INDEX(Ranks!$1:$1048576,$A498,BJ$1))","v":""},{"$f":"IF($A498=\"N/A\",Ref!$B$36,INDEX(Ranks!$1:$1048576,$A498,BK$1))","v":""},{"$f":"IF($A498=\"N/A\",Ref!$B$36,INDEX(Ranks!$1:$1048576,$A498,BL$1))","v":""},{"$f":"IF($A498=\"N/A\",Ref!$B$36,INDEX(Ranks!$1:$1048576,$A498,BM$1))","v":""},{"$f":"IF($A498=\"N/A\",Ref!$B$36,INDEX(Ranks!$1:$1048576,$A498,BN$1))","v":""},{"$f":"IF($A498=\"N/A\",Ref!$B$36,INDEX(Ranks!$1:$1048576,$A498,BO$1))","v":""},{"$f":"IF($A498=\"N/A\",Ref!$B$36,INDEX(Ranks!$1:$1048576,$A498,BP$1))","v":""},{"$f":"IF($A498=\"N/A\",Ref!$B$36,INDEX(Ranks!$1:$1048576,$A498,BQ$1))","v":""},{"$f":"IF($A498=\"N/A\",Ref!$B$36,INDEX(Ranks!$1:$1048576,$A498,BR$1))","v":""},{"$f":"IF($A498=\"N/A\",Ref!$B$36,INDEX(Ranks!$1:$1048576,$A498,BS$1))","v":""},{"$f":"IF($A498=\"N/A\",Ref!$B$36,INDEX(Ranks!$1:$1048576,$A498,BT$1))","v":""},{"$f":"IF($A498=\"N/A\",Ref!$B$36,INDEX(Ranks!$1:$1048576,$A498,BU$1))","v":""},{"$f":"IF($A498=\"N/A\",Ref!$B$36,INDEX(Ranks!$1:$1048576,$A498,BV$1))","v":""},{"$f":"IF($A498=\"N/A\",Ref!$B$36,INDEX(Ranks!$1:$1048576,$A498,BW$1))","v":""},{"$f":"IF($A498=\"N/A\",Ref!$B$36,INDEX(Ranks!$1:$1048576,$A498,BX$1))","v":""},{"$f":"IF($A498=\"N/A\",Ref!$B$36,INDEX(Ranks!$1:$1048576,$A498,BY$1))","v":""},{"$f":"IF($A498=\"N/A\",Ref!$B$36,INDEX(Ranks!$1:$1048576,$A498,BZ$1))","v":""},{"$f":"IF($A498=\"N/A\",Ref!$B$36,INDEX(Ranks!$1:$1048576,$A498,CA$1))","v":""},{"$f":"IF($A498=\"N/A\",Ref!$B$36,INDEX(Ranks!$1:$1048576,$A498,CB$1))","v":""},{"$f":"IF($A498=\"N/A\",Ref!$B$36,INDEX(Ranks!$1:$1048576,$A498,CC$1))","v":""},{"$f":"IF($A498=\"N/A\",Ref!$B$36,INDEX(Ranks!$1:$1048576,$A498,CD$1))","v":""},{"$f":"IF($A498=\"N/A\",Ref!$B$36,INDEX(Ranks!$1:$1048576,$A498,CE$1))","v":""},{"$f":"IF($A498=\"N/A\",Ref!$B$36,INDEX(Ranks!$1:$1048576,$A498,CF$1))","v":""},{"$f":"IF($A498=\"N/A\",Ref!$B$36,INDEX(Ranks!$1:$1048576,$A498,CG$1))","v":""},{"$f":"IF($A498=\"N/A\",Ref!$B$36,INDEX(Ranks!$1:$1048576,$A498,CH$1))","v":""},{"$f":"IF($A498=\"N/A\",Ref!$B$36,INDEX(Ranks!$1:$1048576,$A498,CI$1))","v":""},{"$f":"IF($A498=\"N/A\",Ref!$B$36,INDEX(Ranks!$1:$1048576,$A498,CJ$1))","v":""},{"$f":"IF($A498=\"N/A\",Ref!$B$36,INDEX(Ranks!$1:$1048576,$A498,CK$1))","v":""},{"$f":"IF($A498=\"N/A\",Ref!$B$36,INDEX(Ranks!$1:$1048576,$A498,CL$1))","v":""},{"$f":"IF($A498=\"N/A\",Ref!$B$36,INDEX(Ranks!$1:$1048576,$A498,CM$1))","v":""},{"$f":"IF($A498=\"N/A\",Ref!$B$36,INDEX(Ranks!$1:$1048576,$A498,CN$1))","v":""},{"$f":"IF($A498=\"N/A\",Ref!$B$36,INDEX(Ranks!$1:$1048576,$A498,CO$1))","v":""},{"$f":"IF($A498=\"N/A\",Ref!$B$36,INDEX(Ranks!$1:$1048576,$A498,CP$1))","v":""},{"$f":"IF($A498=\"N/A\",Ref!$B$36,INDEX(Ranks!$1:$1048576,$A498,CQ$1))","v":""},{"$f":"IF($A498=\"N/A\",Ref!$B$36,INDEX(Ranks!$1:$1048576,$A498,CR$1))","v":""},{"$f":"IF($A498=\"N/A\",Ref!$B$36,INDEX(Ranks!$1:$1048576,$A498,CS$1))","v":""},{"$f":"IF($A498=\"N/A\",Ref!$B$36,INDEX(Ranks!$1:$1048576,$A498,CT$1))","v":""},{"$f":"IF($A498=\"N/A\",Ref!$B$36,INDEX(Ranks!$1:$1048576,$A498,CU$1))","v":""},{"$f":"IF($A498=\"N/A\",Ref!$B$36,INDEX(Ranks!$1:$1048576,$A498,CV$1))","v":""},{"$f":"IF($A498=\"N/A\",Ref!$B$36,INDEX(Ranks!$1:$1048576,$A498,CW$1))","v":""},{"$f":"IF($A498=\"N/A\",Ref!$B$36,INDEX(Ranks!$1:$1048576,$A498,CX$1))","v":""},{"$f":"IF($A498=\"N/A\",Ref!$B$36,INDEX(Ranks!$1:$1048576,$A498,CY$1))","v":""},{"$f":"IF($A498=\"N/A\",Ref!$B$36,INDEX(Ranks!$1:$1048576,$A498,CZ$1))","v":""},{"$f":"IF($A498=\"N/A\",Ref!$B$36,INDEX(Ranks!$1:$1048576,$A498,DA$1))","v":""},{"$f":"IF($A498=\"N/A\",Ref!$B$36,INDEX(Ranks!$1:$1048576,$A498,DB$1))","v":""},{"$f":"IF($A498=\"N/A\",Ref!$B$36,INDEX(Ranks!$1:$1048576,$A498,DC$1))","v":""},{"$f":"IF($A498=\"N/A\",Ref!$B$36,INDEX(Ranks!$1:$1048576,$A498,DD$1))","v":""},{"$f":"IF($A498=\"N/A\",Ref!$B$36,INDEX(Ranks!$1:$1048576,$A498,DE$1))","v":""},{"$f":"IF($A498=\"N/A\",Ref!$B$36,INDEX(Ranks!$1:$1048576,$A498,DF$1))","v":""},{"$f":"IF($A498=\"N/A\",Ref!$B$36,INDEX(Ranks!$1:$1048576,$A498,DG$1))","v":""},{"$f":"IF($A498=\"N/A\",Ref!$B$36,INDEX(Ranks!$1:$1048576,$A498,DH$1))","v":""},{"$f":"IF($A498=\"N/A\",Ref!$B$36,INDEX(Ranks!$1:$1048576,$A498,DI$1))","v":""},{"$f":"IF($A498=\"N/A\",Ref!$B$36,INDEX(Ranks!$1:$1048576,$A498,DJ$1))","v":""},{"$f":"IF($A498=\"N/A\",Ref!$B$36,INDEX(Ranks!$1:$1048576,$A498,DK$1))","v":""},{"$f":"IF($A498=\"N/A\",Ref!$B$36,INDEX(Ranks!$1:$1048576,$A498,DL$1))","v":""},{"$f":"IF($A498=\"N/A\",Ref!$B$36,INDEX(Ranks!$1:$1048576,$A498,DM$1))","v":""},{"$f":"IF($A498=\"N/A\",Ref!$B$36,INDEX(Ranks!$1:$1048576,$A498,DN$1))","v":""},{"$f":"IF($A498=\"N/A\",Ref!$B$36,INDEX(Ranks!$1:$1048576,$A498,DO$1))","v":""},{"$f":"IF($A498=\"N/A\",Ref!$B$36,INDEX(Ranks!$1:$1048576,$A498,DP$1))","v":""},{"$f":"IF($A498=\"N/A\",Ref!$B$36,INDEX(Ranks!$1:$1048576,$A498,DQ$1))","v":""},{"$f":"IF($A498=\"N/A\",Ref!$B$36,INDEX(Ranks!$1:$1048576,$A498,DR$1))","v":""},{"$f":"IF($A498=\"N/A\",Ref!$B$36,INDEX(Ranks!$1:$1048576,$A498,DS$1))","v":""},{"$f":"IF($A498=\"N/A\",Ref!$B$36,INDEX(Ranks!$1:$1048576,$A498,DT$1))","v":""},{"$f":"IF($A498=\"N/A\",Ref!$B$36,INDEX(Ranks!$1:$1048576,$A498,DU$1))","v":""},{"$f":"IF($A498=\"N/A\",Ref!$B$36,INDEX(Ranks!$1:$1048576,$A498,DV$1))","v":""},{"$f":"IF($A498=\"N/A\",Ref!$B$36,INDEX(Ranks!$1:$1048576,$A498,DW$1))","v":""},{"$f":"IF($A498=\"N/A\",Ref!$B$36,INDEX(Ranks!$1:$1048576,$A498,DX$1))","v":""},{"$f":"IF($A498=\"N/A\",Ref!$B$36,INDEX(Ranks!$1:$1048576,$A498,DY$1))","v":""},{"$f":"IF($A498=\"N/A\",Ref!$B$36,INDEX(Ranks!$1:$1048576,$A498,DZ$1))","v":""},{"$f":"IF($A498=\"N/A\",Ref!$B$36,INDEX(Ranks!$1:$1048576,$A498,EA$1))","v":""},{"$f":"IF($A498=\"N/A\",Ref!$B$36,INDEX(Ranks!$1:$1048576,$A498,EB$1))","v":""}]
[{"$f":"IFERROR(MATCH('Portfolio Page'!L499,Ranks!L:L,0),\"N/A\")","v":"N/A"},null,{"$f":"IF($A499=\"N/A\",\"\",INDEX(Ranks!$1:$1048576,$A499,C$1))","v":""},{"$f":"IF($A499=\"N/A\",Ref!$B$36,INDEX(Ranks!$1:$1048576,$A499,D$1))","v":""},{"$f":"IF($A499=\"N/A\",Ref!$B$36,INDEX(Ranks!$1:$1048576,$A499,E$1))","v":""},{"$f":"IF($A499=\"N/A\",\"\",INDEX(Ranks!$1:$1048576,$A499,F$1))","v":""},{"$f":"IF($A499=\"N/A\",\"\",INDEX(Ranks!$1:$1048576,$A499,G$1))","v":""},{"$f":"IF($A499=\"N/A\",\"\",INDEX(Ranks!$1:$1048576,$A499,H$1))","v":""},{"$f":"IF($A499=\"N/A\",\"\",INDEX(Ranks!$1:$1048576,$A499,I$1))","v":""},{"$f":"IF($A499=\"N/A\",\"\",INDEX(Ranks!$1:$1048576,$A499,J$1))","v":""},{"$f":"IF($A499=\"N/A\",\"\",INDEX(Ranks!$1:$1048576,$A499,K$1))","v":""},null,{"$f":"IF($A499=\"N/A\",Ref!$B$36,INDEX(Ranks!$1:$1048576,$A499,M$1))","v":""},{"$f":"IF($A499=\"N/A\",Ref!$B$36,INDEX(Ranks!$1:$1048576,$A499,N$1))","v":""},{"$f":"IF($A499=\"N/A\",Ref!$B$36,INDEX(Ranks!$1:$1048576,$A499,O$1))","v":""},{"$f":"IF($A499=\"N/A\",Ref!$B$36,INDEX(Ranks!$1:$1048576,$A499,P$1))","v":""},{"$f":"IF($A499=\"N/A\",Ref!$B$36,INDEX(Ranks!$1:$1048576,$A499,Q$1))","v":""},{"$f":"IF($A499=\"N/A\",Ref!$B$36,INDEX(Ranks!$1:$1048576,$A499,R$1))","v":""},{"$f":"IF($A499=\"N/A\",Ref!$B$36,INDEX(Ranks!$1:$1048576,$A499,S$1))","v":""},{"$f":"IF($A499=\"N/A\",Ref!$B$36,INDEX(Ranks!$1:$1048576,$A499,T$1))","v":""},{"$f":"IF($A499=\"N/A\",Ref!$B$36,INDEX(Ranks!$1:$1048576,$A499,U$1))","v":""},{"$f":"IF($A499=\"N/A\",Ref!$B$36,INDEX(Ranks!$1:$1048576,$A499,V$1))","v":""},{"$f":"IF($A499=\"N/A\",Ref!$B$36,INDEX(Ranks!$1:$1048576,$A499,W$1))","v":""},{"$f":"IF($A499=\"N/A\",Ref!$B$36,INDEX(Ranks!$1:$1048576,$A499,X$1))","v":""},{"$f":"IF($A499=\"N/A\",Ref!$B$36,INDEX(Ranks!$1:$1048576,$A499,Y$1))","v":""},{"$f":"IF($A499=\"N/A\",Ref!$B$36,INDEX(Ranks!$1:$1048576,$A499,Z$1))","v":""},{"$f":"IF($A499=\"N/A\",Ref!$B$36,INDEX(Ranks!$1:$1048576,$A499,AA$1))","v":""},{"$f":"IF($A499=\"N/A\",Ref!$B$36,INDEX(Ranks!$1:$1048576,$A499,AB$1))","v":""},{"$f":"IF($A499=\"N/A\",Ref!$B$36,INDEX(Ranks!$1:$1048576,$A499,AC$1))","v":""},{"$f":"IF($A499=\"N/A\",Ref!$B$36,INDEX(Ranks!$1:$1048576,$A499,AD$1))","v":""},{"$f":"IF($A499=\"N/A\",Ref!$B$36,INDEX(Ranks!$1:$1048576,$A499,AE$1))","v":""},{"$f":"IF($A499=\"N/A\",Ref!$B$36,INDEX(Ranks!$1:$1048576,$A499,AF$1))","v":""},{"$f":"IF($A499=\"N/A\",Ref!$B$36,INDEX(Ranks!$1:$1048576,$A499,AG$1))","v":""},{"$f":"IF($A499=\"N/A\",Ref!$B$36,INDEX(Ranks!$1:$1048576,$A499,AH$1))","v":""},{"$f":"IF($A499=\"N/A\",Ref!$B$36,INDEX(Ranks!$1:$1048576,$A499,AI$1))","v":""},{"$f":"IF($A499=\"N/A\",Ref!$B$36,INDEX(Ranks!$1:$1048576,$A499,AJ$1))","v":""},{"$f":"IF($A499=\"N/A\",Ref!$B$36,INDEX(Ranks!$1:$1048576,$A499,AK$1))","v":""},{"$f":"IF($A499=\"N/A\",Ref!$B$36,INDEX(Ranks!$1:$1048576,$A499,AL$1))","v":""},{"$f":"IF($A499=\"N/A\",Ref!$B$36,INDEX(Ranks!$1:$1048576,$A499,AM$1))","v":""},{"$f":"IF($A499=\"N/A\",Ref!$B$36,INDEX(Ranks!$1:$1048576,$A499,AN$1))","v":""},{"$f":"IF($A499=\"N/A\",Ref!$B$36,INDEX(Ranks!$1:$1048576,$A499,AO$1))","v":""},{"$f":"IF($A499=\"N/A\",Ref!$B$36,INDEX(Ranks!$1:$1048576,$A499,AP$1))","v":""},{"$f":"IF($A499=\"N/A\",Ref!$B$36,INDEX(Ranks!$1:$1048576,$A499,AQ$1))","v":""},{"$f":"IF($A499=\"N/A\",Ref!$B$36,INDEX(Ranks!$1:$1048576,$A499,AR$1))","v":""},{"$f":"IF($A499=\"N/A\",Ref!$B$36,INDEX(Ranks!$1:$1048576,$A499,AS$1))","v":""},{"$f":"IF($A499=\"N/A\",Ref!$B$36,INDEX(Ranks!$1:$1048576,$A499,AT$1))","v":""},{"$f":"IF($A499=\"N/A\",Ref!$B$36,INDEX(Ranks!$1:$1048576,$A499,AU$1))","v":""},{"$f":"IF($A499=\"N/A\",Ref!$B$36,INDEX(Ranks!$1:$1048576,$A499,AV$1))","v":""},{"$f":"IF($A499=\"N/A\",Ref!$B$36,INDEX(Ranks!$1:$1048576,$A499,AW$1))","v":""},{"$f":"IF($A499=\"N/A\",Ref!$B$36,INDEX(Ranks!$1:$1048576,$A499,AX$1))","v":""},{"$f":"IF($A499=\"N/A\",Ref!$B$36,INDEX(Ranks!$1:$1048576,$A499,AY$1))","v":""},{"$f":"IF($A499=\"N/A\",Ref!$B$36,INDEX(Ranks!$1:$1048576,$A499,AZ$1))","v":""},{"$f":"IF($A499=\"N/A\",Ref!$B$36,INDEX(Ranks!$1:$1048576,$A499,BA$1))","v":""},{"$f":"IF($A499=\"N/A\",Ref!$B$36,INDEX(Ranks!$1:$1048576,$A499,BB$1))","v":""},{"$f":"IF($A499=\"N/A\",Ref!$B$36,INDEX(Ranks!$1:$1048576,$A499,BC$1))","v":""},{"$f":"IF($A499=\"N/A\",Ref!$B$36,INDEX(Ranks!$1:$1048576,$A499,BD$1))","v":""},{"$f":"IF($A499=\"N/A\",Ref!$B$36,INDEX(Ranks!$1:$1048576,$A499,BE$1))","v":""},{"$f":"IF($A499=\"N/A\",Ref!$B$36,INDEX(Ranks!$1:$1048576,$A499,BF$1))","v":""},{"$f":"IF($A499=\"N/A\",Ref!$B$36,INDEX(Ranks!$1:$1048576,$A499,BG$1))","v":""},{"$f":"IF($A499=\"N/A\",Ref!$B$36,INDEX(Ranks!$1:$1048576,$A499,BH$1))","v":""},{"$f":"IF($A499=\"N/A\",Ref!$B$36,INDEX(Ranks!$1:$1048576,$A499,BI$1))","v":""},{"$f":"IF($A499=\"N/A\",Ref!$B$36,INDEX(Ranks!$1:$1048576,$A499,BJ$1))","v":""},{"$f":"IF($A499=\"N/A\",Ref!$B$36,INDEX(Ranks!$1:$1048576,$A499,BK$1))","v":""},{"$f":"IF($A499=\"N/A\",Ref!$B$36,INDEX(Ranks!$1:$1048576,$A499,BL$1))","v":""},{"$f":"IF($A499=\"N/A\",Ref!$B$36,INDEX(Ranks!$1:$1048576,$A499,BM$1))","v":""},{"$f":"IF($A499=\"N/A\",Ref!$B$36,INDEX(Ranks!$1:$1048576,$A499,BN$1))","v":""},{"$f":"IF($A499=\"N/A\",Ref!$B$36,INDEX(Ranks!$1:$1048576,$A499,BO$1))","v":""},{"$f":"IF($A499=\"N/A\",Ref!$B$36,INDEX(Ranks!$1:$1048576,$A499,BP$1))","v":""},{"$f":"IF($A499=\"N/A\",Ref!$B$36,INDEX(Ranks!$1:$1048576,$A499,BQ$1))","v":""},{"$f":"IF($A499=\"N/A\",Ref!$B$36,INDEX(Ranks!$1:$1048576,$A499,BR$1))","v":""},{"$f":"IF($A499=\"N/A\",Ref!$B$36,INDEX(Ranks!$1:$1048576,$A499,BS$1))","v":""},{"$f":"IF($A499=\"N/A\",Ref!$B$36,INDEX(Ranks!$1:$1048576,$A499,BT$1))","v":""},{"$f":"IF($A499=\"N/A\",Ref!$B$36,INDEX(Ranks!$1:$1048576,$A499,BU$1))","v":""},{"$f":"IF($A499=\"N/A\",Ref!$B$36,INDEX(Ranks!$1:$1048576,$A499,BV$1))","v":""},{"$f":"IF($A499=\"N/A\",Ref!$B$36,INDEX(Ranks!$1:$1048576,$A499,BW$1))","v":""},{"$f":"IF($A499=\"N/A\",Ref!$B$36,INDEX(Ranks!$1:$1048576,$A499,BX$1))","v":""},{"$f":"IF($A499=\"N/A\",Ref!$B$36,INDEX(Ranks!$1:$1048576,$A499,BY$1))","v":""},{"$f":"IF($A499=\"N/A\",Ref!$B$36,INDEX(Ranks!$1:$1048576,$A499,BZ$1))","v":""},{"$f":"IF($A499=\"N/A\",Ref!$B$36,INDEX(Ranks!$1:$1048576,$A499,CA$1))","v":""},{"$f":"IF($A499=\"N/A\",Ref!$B$36,INDEX(Ranks!$1:$1048576,$A499,CB$1))","v":""},{"$f":"IF($A499=\"N/A\",Ref!$B$36,INDEX(Ranks!$1:$1048576,$A499,CC$1))","v":""},{"$f":"IF($A499=\"N/A\",Ref!$B$36,INDEX(Ranks!$1:$1048576,$A499,CD$1))","v":""},{"$f":"IF($A499=\"N/A\",Ref!$B$36,INDEX(Ranks!$1:$1048576,$A499,CE$1))","v":""},{"$f":"IF($A499=\"N/A\",Ref!$B$36,INDEX(Ranks!$1:$1048576,$A499,CF$1))","v":""},{"$f":"IF($A499=\"N/A\",Ref!$B$36,INDEX(Ranks!$1:$1048576,$A499,CG$1))","v":""},{"$f":"IF($A499=\"N/A\",Ref!$B$36,INDEX(Ranks!$1:$1048576,$A499,CH$1))","v":""},{"$f":"IF($A499=\"N/A\",Ref!$B$36,INDEX(Ranks!$1:$1048576,$A499,CI$1))","v":""},{"$f":"IF($A499=\"N/A\",Ref!$B$36,INDEX(Ranks!$1:$1048576,$A499,CJ$1))","v":""},{"$f":"IF($A499=\"N/A\",Ref!$B$36,INDEX(Ranks!$1:$1048576,$A499,CK$1))","v":""},{"$f":"IF($A499=\"N/A\",Ref!$B$36,INDEX(Ranks!$1:$1048576,$A499,CL$1))","v":""},{"$f":"IF($A499=\"N/A\",Ref!$B$36,INDEX(Ranks!$1:$1048576,$A499,CM$1))","v":""},{"$f":"IF($A499=\"N/A\",Ref!$B$36,INDEX(Ranks!$1:$1048576,$A499,CN$1))","v":""},{"$f":"IF($A499=\"N/A\",Ref!$B$36,INDEX(Ranks!$1:$1048576,$A499,CO$1))","v":""},{"$f":"IF($A499=\"N/A\",Ref!$B$36,INDEX(Ranks!$1:$1048576,$A499,CP$1))","v":""},{"$f":"IF($A499=\"N/A\",Ref!$B$36,INDEX(Ranks!$1:$1048576,$A499,CQ$1))","v":""},{"$f":"IF($A499=\"N/A\",Ref!$B$36,INDEX(Ranks!$1:$1048576,$A499,CR$1))","v":""},{"$f":"IF($A499=\"N/A\",Ref!$B$36,INDEX(Ranks!$1:$1048576,$A499,CS$1))","v":""},{"$f":"IF($A499=\"N/A\",Ref!$B$36,INDEX(Ranks!$1:$1048576,$A499,CT$1))","v":""},{"$f":"IF($A499=\"N/A\",Ref!$B$36,INDEX(Ranks!$1:$1048576,$A499,CU$1))","v":""},{"$f":"IF($A499=\"N/A\",Ref!$B$36,INDEX(Ranks!$1:$1048576,$A499,CV$1))","v":""},{"$f":"IF($A499=\"N/A\",Ref!$B$36,INDEX(Ranks!$1:$1048576,$A499,CW$1))","v":""},{"$f":"IF($A499=\"N/A\",Ref!$B$36,INDEX(Ranks!$1:$1048576,$A499,CX$1))","v":""},{"$f":"IF($A499=\"N/A\",Ref!$B$36,INDEX(Ranks!$1:$1048576,$A499,CY$1))","v":""},{"$f":"IF($A499=\"N/A\",Ref!$B$36,INDEX(Ranks!$1:$1048576,$A499,CZ$1))","v":""},{"$f":"IF($A499=\"N/A\",Ref!$B$36,INDEX(Ranks!$1:$1048576,$A499,DA$1))","v":""},{"$f":"IF($A499=\"N/A\",Ref!$B$36,INDEX(Ranks!$1:$1048576,$A499,DB$1))","v":""},{"$f":"IF($A499=\"N/A\",Ref!$B$36,INDEX(Ranks!$1:$1048576,$A499,DC$1))","v":""},{"$f":"IF($A499=\"N/A\",Ref!$B$36,INDEX(Ranks!$1:$1048576,$A499,DD$1))","v":""},{"$f":"IF($A499=\"N/A\",Ref!$B$36,INDEX(Ranks!$1:$1048576,$A499,DE$1))","v":""},{"$f":"IF($A499=\"N/A\",Ref!$B$36,INDEX(Ranks!$1:$1048576,$A499,DF$1))","v":""},{"$f":"IF($A499=\"N/A\",Ref!$B$36,INDEX(Ranks!$1:$1048576,$A499,DG$1))","v":""},{"$f":"IF($A499=\"N/A\",Ref!$B$36,INDEX(Ranks!$1:$1048576,$A499,DH$1))","v":""},{"$f":"IF($A499=\"N/A\",Ref!$B$36,INDEX(Ranks!$1:$1048576,$A499,DI$1))","v":""},{"$f":"IF($A499=\"N/A\",Ref!$B$36,INDEX(Ranks!$1:$1048576,$A499,DJ$1))","v":""},{"$f":"IF($A499=\"N/A\",Ref!$B$36,INDEX(Ranks!$1:$1048576,$A499,DK$1))","v":""},{"$f":"IF($A499=\"N/A\",Ref!$B$36,INDEX(Ranks!$1:$1048576,$A499,DL$1))","v":""},{"$f":"IF($A499=\"N/A\",Ref!$B$36,INDEX(Ranks!$1:$1048576,$A499,DM$1))","v":""},{"$f":"IF($A499=\"N/A\",Ref!$B$36,INDEX(Ranks!$1:$1048576,$A499,DN$1))","v":""},{"$f":"IF($A499=\"N/A\",Ref!$B$36,INDEX(Ranks!$1:$1048576,$A499,DO$1))","v":""},{"$f":"IF($A499=\"N/A\",Ref!$B$36,INDEX(Ranks!$1:$1048576,$A499,DP$1))","v":""},{"$f":"IF($A499=\"N/A\",Ref!$B$36,INDEX(Ranks!$1:$1048576,$A499,DQ$1))","v":""},{"$f":"IF($A499=\"N/A\",Ref!$B$36,INDEX(Ranks!$1:$1048576,$A499,DR$1))","v":""},{"$f":"IF($A499=\"N/A\",Ref!$B$36,INDEX(Ranks!$1:$1048576,$A499,DS$1))","v":""},{"$f":"IF($A499=\"N/A\",Ref!$B$36,INDEX(Ranks!$1:$1048576,$A499,DT$1))","v":""},{"$f":"IF($A499=\"N/A\",Ref!$B$36,INDEX(Ranks!$1:$1048576,$A499,DU$1))","v":""},{"$f":"IF($A499=\"N/A\",Ref!$B$36,INDEX(Ranks!$1:$1048576,$A499,DV$1))","v":""},{"$f":"IF($A499=\"N/A\",Ref!$B$36,INDEX(Ranks!$1:$1048576,$A499,DW$1))","v":""},{"$f":"IF($A499=\"N/A\",Ref!$B$36,INDEX(Ranks!$1:$1048576,$A499,DX$1))","v":""},{"$f":"IF($A499=\"N/A\",Ref!$B$36,INDEX(Ranks!$1:$1048576,$A499,DY$1))","v":""},{"$f":"IF($A499=\"N/A\",Ref!$B$36,INDEX(Ranks!$1:$1048576,$A499,DZ$1))","v":""},{"$f":"IF($A499=\"N/A\",Ref!$B$36,INDEX(Ranks!$1:$1048576,$A499,EA$1))","v":""},{"$f":"IF($A499=\"N/A\",Ref!$B$36,INDEX(Ranks!$1:$1048576,$A499,EB$1))","v":""}]
[{"$f":"IFERROR(MATCH('Portfolio Page'!L500,Ranks!L:L,0),\"N/A\")","v":"N/A"},null,{"$f":"IF($A500=\"N/A\",\"\",INDEX(Ranks!$1:$1048576,$A500,C$1))","v":""},{"$f":"IF($A500=\"N/A\",Ref!$B$36,INDEX(Ranks!$1:$1048576,$A500,D$1))","v":""},{"$f":"IF($A500=\"N/A\",Ref!$B$36,INDEX(Ranks!$1:$1048576,$A500,E$1))","v":""},{"$f":"IF($A500=\"N/A\",\"\",INDEX(Ranks!$1:$1048576,$A500,F$1))","v":""},{"$f":"IF($A500=\"N/A\",\"\",INDEX(Ranks!$1:$1048576,$A500,G$1))","v":""},{"$f":"IF($A500=\"N/A\",\"\",INDEX(Ranks!$1:$1048576,$A500,H$1))","v":""},{"$f":"IF($A500=\"N/A\",\"\",INDEX(Ranks!$1:$1048576,$A500,I$1))","v":""},{"$f":"IF($A500=\"N/A\",\"\",INDEX(Ranks!$1:$1048576,$A500,J$1))","v":""},{"$f":"IF($A500=\"N/A\",\"\",INDEX(Ranks!$1:$1048576,$A500,K$1))","v":""},null,{"$f":"IF($A500=\"N/A\",Ref!$B$36,INDEX(Ranks!$1:$1048576,$A500,M$1))","v":""},{"$f":"IF($A500=\"N/A\",Ref!$B$36,INDEX(Ranks!$1:$1048576,$A500,N$1))","v":""},{"$f":"IF($A500=\"N/A\",Ref!$B$36,INDEX(Ranks!$1:$1048576,$A500,O$1))","v":""},{"$f":"IF($A500=\"N/A\",Ref!$B$36,INDEX(Ranks!$1:$1048576,$A500,P$1))","v":""},{"$f":"IF($A500=\"N/A\",Ref!$B$36,INDEX(Ranks!$1:$1048576,$A500,Q$1))","v":""},{"$f":"IF($A500=\"N/A\",Ref!$B$36,INDEX(Ranks!$1:$1048576,$A500,R$1))","v":""},{"$f":"IF($A500=\"N/A\",Ref!$B$36,INDEX(Ranks!$1:$1048576,$A500,S$1))","v":""},{"$f":"IF($A500=\"N/A\",Ref!$B$36,INDEX(Ranks!$1:$1048576,$A500,T$1))","v":""},{"$f":"IF($A500=\"N/A\",Ref!$B$36,INDEX(Ranks!$1:$1048576,$A500,U$1))","v":""},{"$f":"IF($A500=\"N/A\",Ref!$B$36,INDEX(Ranks!$1:$1048576,$A500,V$1))","v":""},{"$f":"IF($A500=\"N/A\",Ref!$B$36,INDEX(Ranks!$1:$1048576,$A500,W$1))","v":""},{"$f":"IF($A500=\"N/A\",Ref!$B$36,INDEX(Ranks!$1:$1048576,$A500,X$1))","v":""},{"$f":"IF($A500=\"N/A\",Ref!$B$36,INDEX(Ranks!$1:$1048576,$A500,Y$1))","v":""},{"$f":"IF($A500=\"N/A\",Ref!$B$36,INDEX(Ranks!$1:$1048576,$A500,Z$1))","v":""},{"$f":"IF($A500=\"N/A\",Ref!$B$36,INDEX(Ranks!$1:$1048576,$A500,AA$1))","v":""},{"$f":"IF($A500=\"N/A\",Ref!$B$36,INDEX(Ranks!$1:$1048576,$A500,AB$1))","v":""},{"$f":"IF($A500=\"N/A\",Ref!$B$36,INDEX(Ranks!$1:$1048576,$A500,AC$1))","v":""},{"$f":"IF($A500=\"N/A\",Ref!$B$36,INDEX(Ranks!$1:$1048576,$A500,AD$1))","v":""},{"$f":"IF($A500=\"N/A\",Ref!$B$36,INDEX(Ranks!$1:$1048576,$A500,AE$1))","v":""},{"$f":"IF($A500=\"N/A\",Ref!$B$36,INDEX(Ranks!$1:$1048576,$A500,AF$1))","v":""},{"$f":"IF($A500=\"N/A\",Ref!$B$36,INDEX(Ranks!$1:$1048576,$A500,AG$1))","v":""},{"$f":"IF($A500=\"N/A\",Ref!$B$36,INDEX(Ranks!$1:$1048576,$A500,AH$1))","v":""},{"$f":"IF($A500=\"N/A\",Ref!$B$36,INDEX(Ranks!$1:$1048576,$A500,AI$1))","v":""},{"$f":"IF($A500=\"N/A\",Ref!$B$36,INDEX(Ranks!$1:$1048576,$A500,AJ$1))","v":""},{"$f":"IF($A500=\"N/A\",Ref!$B$36,INDEX(Ranks!$1:$1048576,$A500,AK$1))","v":""},{"$f":"IF($A500=\"N/A\",Ref!$B$36,INDEX(Ranks!$1:$1048576,$A500,AL$1))","v":""},{"$f":"IF($A500=\"N/A\",Ref!$B$36,INDEX(Ranks!$1:$1048576,$A500,AM$1))","v":""},{"$f":"IF($A500=\"N/A\",Ref!$B$36,INDEX(Ranks!$1:$1048576,$A500,AN$1))","v":""},{"$f":"IF($A500=\"N/A\",Ref!$B$36,INDEX(Ranks!$1:$1048576,$A500,AO$1))","v":""},{"$f":"IF($A500=\"N/A\",Ref!$B$36,INDEX(Ranks!$1:$1048576,$A500,AP$1))","v":""},{"$f":"IF($A500=\"N/A\",Ref!$B$36,INDEX(Ranks!$1:$1048576,$A500,AQ$1))","v":""},{"$f":"IF($A500=\"N/A\",Ref!$B$36,INDEX(Ranks!$1:$1048576,$A500,AR$1))","v":""},{"$f":"IF($A500=\"N/A\",Ref!$B$36,INDEX(Ranks!$1:$1048576,$A500,AS$1))","v":""},{"$f":"IF($A500=\"N/A\",Ref!$B$36,INDEX(Ranks!$1:$1048576,$A500,AT$1))","v":""},{"$f":"IF($A500=\"N/A\",Ref!$B$36,INDEX(Ranks!$1:$1048576,$A500,AU$1))","v":""},{"$f":"IF($A500=\"N/A\",Ref!$B$36,INDEX(Ranks!$1:$1048576,$A500,AV$1))","v":""},{"$f":"IF($A500=\"N/A\",Ref!$B$36,INDEX(Ranks!$1:$1048576,$A500,AW$1))","v":""},{"$f":"IF($A500=\"N/A\",Ref!$B$36,INDEX(Ranks!$1:$1048576,$A500,AX$1))","v":""},{"$f":"IF($A500=\"N/A\",Ref!$B$36,INDEX(Ranks!$1:$1048576,$A500,AY$1))","v":""},{"$f":"IF($A500=\"N/A\",Ref!$B$36,INDEX(Ranks!$1:$1048576,$A500,AZ$1))","v":""},{"$f":"IF($A500=\"N/A\",Ref!$B$36,INDEX(Ranks!$1:$1048576,$A500,BA$1))","v":""},{"$f":"IF($A500=\"N/A\",Ref!$B$36,INDEX(Ranks!$1:$1048576,$A500,BB$1))","v":""},{"$f":"IF($A500=\"N/A\",Ref!$B$36,INDEX(Ranks!$1:$1048576,$A500,BC$1))","v":""},{"$f":"IF($A500=\"N/A\",Ref!$B$36,INDEX(Ranks!$1:$1048576,$A500,BD$1))","v":""},{"$f":"IF($A500=\"N/A\",Ref!$B$36,INDEX(Ranks!$1:$1048576,$A500,BE$1))","v":""},{"$f":"IF($A500=\"N/A\",Ref!$B$36,INDEX(Ranks!$1:$1048576,$A500,BF$1))","v":""},{"$f":"IF($A500=\"N/A\",Ref!$B$36,INDEX(Ranks!$1:$1048576,$A500,BG$1))","v":""},{"$f":"IF($A500=\"N/A\",Ref!$B$36,INDEX(Ranks!$1:$1048576,$A500,BH$1))","v":""},{"$f":"IF($A500=\"N/A\",Ref!$B$36,INDEX(Ranks!$1:$1048576,$A500,BI$1))","v":""},{"$f":"IF($A500=\"N/A\",Ref!$B$36,INDEX(Ranks!$1:$1048576,$A500,BJ$1))","v":""},{"$f":"IF($A500=\"N/A\",Ref!$B$36,INDEX(Ranks!$1:$1048576,$A500,BK$1))","v":""},{"$f":"IF($A500=\"N/A\",Ref!$B$36,INDEX(Ranks!$1:$1048576,$A500,BL$1))","v":""},{"$f":"IF($A500=\"N/A\",Ref!$B$36,INDEX(Ranks!$1:$1048576,$A500,BM$1))","v":""},{"$f":"IF($A500=\"N/A\",Ref!$B$36,INDEX(Ranks!$1:$1048576,$A500,BN$1))","v":""},{"$f":"IF($A500=\"N/A\",Ref!$B$36,INDEX(Ranks!$1:$1048576,$A500,BO$1))","v":""},{"$f":"IF($A500=\"N/A\",Ref!$B$36,INDEX(Ranks!$1:$1048576,$A500,BP$1))","v":""},{"$f":"IF($A500=\"N/A\",Ref!$B$36,INDEX(Ranks!$1:$1048576,$A500,BQ$1))","v":""},{"$f":"IF($A500=\"N/A\",Ref!$B$36,INDEX(Ranks!$1:$1048576,$A500,BR$1))","v":""},{"$f":"IF($A500=\"N/A\",Ref!$B$36,INDEX(Ranks!$1:$1048576,$A500,BS$1))","v":""},{"$f":"IF($A500=\"N/A\",Ref!$B$36,INDEX(Ranks!$1:$1048576,$A500,BT$1))","v":""},{"$f":"IF($A500=\"N/A\",Ref!$B$36,INDEX(Ranks!$1:$1048576,$A500,BU$1))","v":""},{"$f":"IF($A500=\"N/A\",Ref!$B$36,INDEX(Ranks!$1:$1048576,$A500,BV$1))","v":""},{"$f":"IF($A500=\"N/A\",Ref!$B$36,INDEX(Ranks!$1:$1048576,$A500,BW$1))","v":""},{"$f":"IF($A500=\"N/A\",Ref!$B$36,INDEX(Ranks!$1:$1048576,$A500,BX$1))","v":""},{"$f":"IF($A500=\"N/A\",Ref!$B$36,INDEX(Ranks!$1:$1048576,$A500,BY$1))","v":""},{"$f":"IF($A500=\"N/A\",Ref!$B$36,INDEX(Ranks!$1:$1048576,$A500,BZ$1))","v":""},{"$f":"IF($A500=\"N/A\",Ref!$B$36,INDEX(Ranks!$1:$1048576,$A500,CA$1))","v":""},{"$f":"IF($A500=\"N/A\",Ref!$B$36,INDEX(Ranks!$1:$1048576,$A500,CB$1))","v":""},{"$f":"IF($A500=\"N/A\",Ref!$B$36,INDEX(Ranks!$1:$1048576,$A500,CC$1))","v":""},{"$f":"IF($A500=\"N/A\",Ref!$B$36,INDEX(Ranks!$1:$1048576,$A500,CD$1))","v":""},{"$f":"IF($A500=\"N/A\",Ref!$B$36,INDEX(Ranks!$1:$1048576,$A500,CE$1))","v":""},{"$f":"IF($A500=\"N/A\",Ref!$B$36,INDEX(Ranks!$1:$1048576,$A500,CF$1))","v":""},{"$f":"IF($A500=\"N/A\",Ref!$B$36,INDEX(Ranks!$1:$1048576,$A500,CG$1))","v":""},{"$f":"IF($A500=\"N/A\",Ref!$B$36,INDEX(Ranks!$1:$1048576,$A500,CH$1))","v":""},{"$f":"IF($A500=\"N/A\",Ref!$B$36,INDEX(Ranks!$1:$1048576,$A500,CI$1))","v":""},{"$f":"IF($A500=\"N/A\",Ref!$B$36,INDEX(Ranks!$1:$1048576,$A500,CJ$1))","v":""},{"$f":"IF($A500=\"N/A\",Ref!$B$36,INDEX(Ranks!$1:$1048576,$A500,CK$1))","v":""},{"$f":"IF($A500=\"N/A\",Ref!$B$36,INDEX(Ranks!$1:$1048576,$A500,CL$1))","v":""},{"$f":"IF($A500=\"N/A\",Ref!$B$36,INDEX(Ranks!$1:$1048576,$A500,CM$1))","v":""},{"$f":"IF($A500=\"N/A\",Ref!$B$36,INDEX(Ranks!$1:$1048576,$A500,CN$1))","v":""},{"$f":"IF($A500=\"N/A\",Ref!$B$36,INDEX(Ranks!$1:$1048576,$A500,CO$1))","v":""},{"$f":"IF($A500=\"N/A\",Ref!$B$36,INDEX(Ranks!$1:$1048576,$A500,CP$1))","v":""},{"$f":"IF($A500=\"N/A\",Ref!$B$36,INDEX(Ranks!$1:$1048576,$A500,CQ$1))","v":""},{"$f":"IF($A500=\"N/A\",Ref!$B$36,INDEX(Ranks!$1:$1048576,$A500,CR$1))","v":""},{"$f":"IF($A500=\"N/A\",Ref!$B$36,INDEX(Ranks!$1:$1048576,$A500,CS$1))","v":""},{"$f":"IF($A500=\"N/A\",Ref!$B$36,INDEX(Ranks!$1:$1048576,$A500,CT$1))","v":""},{"$f":"IF($A500=\"N/A\",Ref!$B$36,INDEX(Ranks!$1:$1048576,$A500,CU$1))","v":""},{"$f":"IF($A500=\"N/A\",Ref!$B$36,INDEX(Ranks!$1:$1048576,$A500,CV$1))","v":""},{"$f":"IF($A500=\"N/A\",Ref!$B$36,INDEX(Ranks!$1:$1048576,$A500,CW$1))","v":""},{"$f":"IF($A500=\"N/A\",Ref!$B$36,INDEX(Ranks!$1:$1048576,$A500,CX$1))","v":""},{"$f":"IF($A500=\"N/A\",Ref!$B$36,INDEX(Ranks!$1:$1048576,$A500,CY$1))","v":""},{"$f":"IF($A500=\"N/A\",Ref!$B$36,INDEX(Ranks!$1:$1048576,$A500,CZ$1))","v":""},{"$f":"IF($A500=\"N/A\",Ref!$B$36,INDEX(Ranks!$1:$1048576,$A500,DA$1))","v":""},{"$f":"IF($A500=\"N/A\",Ref!$B$36,INDEX(Ranks!$1:$1048576,$A500,DB$1))","v":""},{"$f":"IF($A500=\"N/A\",Ref!$B$36,INDEX(Ranks!$1:$1048576,$A500,DC$1))","v":""},{"$f":"IF($A500=\"N/A\",Ref!$B$36,INDEX(Ranks!$1:$1048576,$A500,DD$1))","v":""},{"$f":"IF($A500=\"N/A\",Ref!$B$36,INDEX(Ranks!$1:$1048576,$A500,DE$1))","v":""},{"$f":"IF($A500=\"N/A\",Ref!$B$36,INDEX(Ranks!$1:$1048576,$A500,DF$1))","v":""},{"$f":"IF($A500=\"N/A\",Ref!$B$36,INDEX(Ranks!$1:$1048576,$A500,DG$1))","v":""},{"$f":"IF($A500=\"N/A\",Ref!$B$36,INDEX(Ranks!$1:$1048576,$A500,DH$1))","v":""},{"$f":"IF($A500=\"N/A\",Ref!$B$36,INDEX(Ranks!$1:$1048576,$A500,DI$1))","v":""},{"$f":"IF($A500=\"N/A\",Ref!$B$36,INDEX(Ranks!$1:$1048576,$A500,DJ$1))","v":""},{"$f":"IF($A500=\"N/A\",Ref!$B$36,INDEX(Ranks!$1:$1048576,$A500,DK$1))","v":""},{"$f":"IF($A500=\"N/A\",Ref!$B$36,INDEX(Ranks!$1:$1048576,$A500,DL$1))","v":""},{"$f":"IF($A500=\"N/A\",Ref!$B$36,INDEX(Ranks!$1:$1048576,$A500,DM$1))","v":""},{"$f":"IF($A500=\"N/A\",Ref!$B$36,INDEX(Ranks!$1:$1048576,$A500,DN$1))","v":""},{"$f":"IF($A500=\"N/A\",Ref!$B$36,INDEX(Ranks!$1:$1048576,$A500,DO$1))","v":""},{"$f":"IF($A500=\"N/A\",Ref!$B$36,INDEX(Ranks!$1:$1048576,$A500,DP$1))","v":""},{"$f":"IF($A500=\"N/A\",Ref!$B$36,INDEX(Ranks!$1:$1048576,$A500,DQ$1))","v":""},{"$f":"IF($A500=\"N/A\",Ref!$B$36,INDEX(Ranks!$1:$1048576,$A500,DR$1))","v":""},{"$f":"IF($A500=\"N/A\",Ref!$B$36,INDEX(Ranks!$1:$1048576,$A500,DS$1))","v":""},{"$f":"IF($A500=\"N/A\",Ref!$B$36,INDEX(Ranks!$1:$1048576,$A500,DT$1))","v":""},{"$f":"IF($A500=\"N/A\",Ref!$B$36,INDEX(Ranks!$1:$1048576,$A500,DU$1))","v":""},{"$f":"IF($A500=\"N/A\",Ref!$B$36,INDEX(Ranks!$1:$1048576,$A500,DV$1))","v":""},{"$f":"IF($A500=\"N/A\",Ref!$B$36,INDEX(Ranks!$1:$1048576,$A500,DW$1))","v":""},{"$f":"IF($A500=\"N/A\",Ref!$B$36,INDEX(Ranks!$1:$1048576,$A500,DX$1))","v":""},{"$f":"IF($A500=\"N/A\",Ref!$B$36,INDEX(Ranks!$1:$1048576,$A500,DY$1))","v":""},{"$f":"IF($A500=\"N/A\",Ref!$B$36,INDEX(Ranks!$1:$1048576,$A500,DZ$1))","v":""},{"$f":"IF($A500=\"N/A\",Ref!$B$36,INDEX(Ranks!$1:$1048576,$A500,EA$1))","v":""},{"$f":"IF($A500=\"N/A\",Ref!$B$36,INDEX(Ranks!$1:$1048576,$A500,EB$1))","v":""}]
[{"$f":"IFERROR(MATCH('Portfolio Page'!L501,Ranks!L:L,0),\"N/A\")","v":"N/A"},null,{"$f":"IF($A501=\"N/A\",\"\",INDEX(Ranks!$1:$1048576,$A501,C$1))","v":""},{"$f":"IF($A501=\"N/A\",Ref!$B$36,INDEX(Ranks!$1:$1048576,$A501,D$1))","v":""},{"$f":"IF($A501=\"N/A\",Ref!$B$36,INDEX(Ranks!$1:$1048576,$A501,E$1))","v":""},{"$f":"IF($A501=\"N/A\",\"\",INDEX(Ranks!$1:$1048576,$A501,F$1))","v":""},{"$f":"IF($A501=\"N/A\",\"\",INDEX(Ranks!$1:$1048576,$A501,G$1))","v":""},{"$f":"IF($A501=\"N/A\",\"\",INDEX(Ranks!$1:$1048576,$A501,H$1))","v":""},{"$f":"IF($A501=\"N/A\",\"\",INDEX(Ranks!$1:$1048576,$A501,I$1))","v":""},{"$f":"IF($A501=\"N/A\",\"\",INDEX(Ranks!$1:$1048576,$A501,J$1))","v":""},{"$f":"IF($A501=\"N/A\",\"\",INDEX(Ranks!$1:$1048576,$A501,K$1))","v":""},null,{"$f":"IF($A501=\"N/A\",Ref!$B$36,INDEX(Ranks!$1:$1048576,$A501,M$1))","v":""},{"$f":"IF($A501=\"N/A\",Ref!$B$36,INDEX(Ranks!$1:$1048576,$A501,N$1))","v":""},{"$f":"IF($A501=\"N/A\",Ref!$B$36,INDEX(Ranks!$1:$1048576,$A501,O$1))","v":""},{"$f":"IF($A501=\"N/A\",Ref!$B$36,INDEX(Ranks!$1:$1048576,$A501,P$1))","v":""},{"$f":"IF($A501=\"N/A\",Ref!$B$36,INDEX(Ranks!$1:$1048576,$A501,Q$1))","v":""},{"$f":"IF($A501=\"N/A\",Ref!$B$36,INDEX(Ranks!$1:$1048576,$A501,R$1))","v":""},{"$f":"IF($A501=\"N/A\",Ref!$B$36,INDEX(Ranks!$1:$1048576,$A501,S$1))","v":""},{"$f":"IF($A501=\"N/A\",Ref!$B$36,INDEX(Ranks!$1:$1048576,$A501,T$1))","v":""},{"$f":"IF($A501=\"N/A\",Ref!$B$36,INDEX(Ranks!$1:$1048576,$A501,U$1))","v":""},{"$f":"IF($A501=\"N/A\",Ref!$B$36,INDEX(Ranks!$1:$1048576,$A501,V$1))","v":""},{"$f":"IF($A501=\"N/A\",Ref!$B$36,INDEX(Ranks!$1:$1048576,$A501,W$1))","v":""},{"$f":"IF($A501=\"N/A\",Ref!$B$36,INDEX(Ranks!$1:$1048576,$A501,X$1))","v":""},{"$f":"IF($A501=\"N/A\",Ref!$B$36,INDEX(Ranks!$1:$1048576,$A501,Y$1))","v":""},{"$f":"IF($A501=\"N/A\",Ref!$B$36,INDEX(Ranks!$1:$1048576,$A501,Z$1))","v":""},{"$f":"IF($A501=\"N/A\",Ref!$B$36,INDEX(Ranks!$1:$1048576,$A501,AA$1))","v":""},{"$f":"IF($A501=\"N/A\",Ref!$B$36,INDEX(Ranks!$1:$1048576,$A501,AB$1))","v":""},{"$f":"IF($A501=\"N/A\",Ref!$B$36,INDEX(Ranks!$1:$1048576,$A501,AC$1))","v":""},{"$f":"IF($A501=\"N/A\",Ref!$B$36,INDEX(Ranks!$1:$1048576,$A501,AD$1))","v":""},{"$f":"IF($A501=\"N/A\",Ref!$B$36,INDEX(Ranks!$1:$1048576,$A501,AE$1))","v":""},{"$f":"IF($A501=\"N/A\",Ref!$B$36,INDEX(Ranks!$1:$1048576,$A501,AF$1))","v":""},{"$f":"IF($A501=\"N/A\",Ref!$B$36,INDEX(Ranks!$1:$1048576,$A501,AG$1))","v":""},{"$f":"IF($A501=\"N/A\",Ref!$B$36,INDEX(Ranks!$1:$1048576,$A501,AH$1))","v":""},{"$f":"IF($A501=\"N/A\",Ref!$B$36,INDEX(Ranks!$1:$1048576,$A501,AI$1))","v":""},{"$f":"IF($A501=\"N/A\",Ref!$B$36,INDEX(Ranks!$1:$1048576,$A501,AJ$1))","v":""},{"$f":"IF($A501=\"N/A\",Ref!$B$36,INDEX(Ranks!$1:$1048576,$A501,AK$1))","v":""},{"$f":"IF($A501=\"N/A\",Ref!$B$36,INDEX(Ranks!$1:$1048576,$A501,AL$1))","v":""},{"$f":"IF($A501=\"N/A\",Ref!$B$36,INDEX(Ranks!$1:$1048576,$A501,AM$1))","v":""},{"$f":"IF($A501=\"N/A\",Ref!$B$36,INDEX(Ranks!$1:$1048576,$A501,AN$1))","v":""},{"$f":"IF($A501=\"N/A\",Ref!$B$36,INDEX(Ranks!$1:$1048576,$A501,AO$1))","v":""},{"$f":"IF($A501=\"N/A\",Ref!$B$36,INDEX(Ranks!$1:$1048576,$A501,AP$1))","v":""},{"$f":"IF($A501=\"N/A\",Ref!$B$36,INDEX(Ranks!$1:$1048576,$A501,AQ$1))","v":""},{"$f":"IF($A501=\"N/A\",Ref!$B$36,INDEX(Ranks!$1:$1048576,$A501,AR$1))","v":""},{"$f":"IF($A501=\"N/A\",Ref!$B$36,INDEX(Ranks!$1:$1048576,$A501,AS$1))","v":""},{"$f":"IF($A501=\"N/A\",Ref!$B$36,INDEX(Ranks!$1:$1048576,$A501,AT$1))","v":""},{"$f":"IF($A501=\"N/A\",Ref!$B$36,INDEX(Ranks!$1:$1048576,$A501,AU$1))","v":""},{"$f":"IF($A501=\"N/A\",Ref!$B$36,INDEX(Ranks!$1:$1048576,$A501,AV$1))","v":""},{"$f":"IF($A501=\"N/A\",Ref!$B$36,INDEX(Ranks!$1:$1048576,$A501,AW$1))","v":""},{"$f":"IF($A501=\"N/A\",Ref!$B$36,INDEX(Ranks!$1:$1048576,$A501,AX$1))","v":""},{"$f":"IF($A501=\"N/A\",Ref!$B$36,INDEX(Ranks!$1:$1048576,$A501,AY$1))","v":""},{"$f":"IF($A501=\"N/A\",Ref!$B$36,INDEX(Ranks!$1:$1048576,$A501,AZ$1))","v":""},{"$f":"IF($A501=\"N/A\",Ref!$B$36,INDEX(Ranks!$1:$1048576,$A501,BA$1))","v":""},{"$f":"IF($A501=\"N/A\",Ref!$B$36,INDEX(Ranks!$1:$1048576,$A501,BB$1))","v":""},{"$f":"IF($A501=\"N/A\",Ref!$B$36,INDEX(Ranks!$1:$1048576,$A501,BC$1))","v":""},{"$f":"IF($A501=\"N/A\",Ref!$B$36,INDEX(Ranks!$1:$1048576,$A501,BD$1))","v":""},{"$f":"IF($A501=\"N/A\",Ref!$B$36,INDEX(Ranks!$1:$1048576,$A501,BE$1))","v":""},{"$f":"IF($A501=\"N/A\",Ref!$B$36,INDEX(Ranks!$1:$1048576,$A501,BF$1))","v":""},{"$f":"IF($A501=\"N/A\",Ref!$B$36,INDEX(Ranks!$1:$1048576,$A501,BG$1))","v":""},{"$f":"IF($A501=\"N/A\",Ref!$B$36,INDEX(Ranks!$1:$1048576,$A501,BH$1))","v":""},{"$f":"IF($A501=\"N/A\",Ref!$B$36,INDEX(Ranks!$1:$1048576,$A501,BI$1))","v":""},{"$f":"IF($A501=\"N/A\",Ref!$B$36,INDEX(Ranks!$1:$1048576,$A501,BJ$1))","v":""},{"$f":"IF($A501=\"N/A\",Ref!$B$36,INDEX(Ranks!$1:$1048576,$A501,BK$1))","v":""},{"$f":"IF($A501=\"N/A\",Ref!$B$36,INDEX(Ranks!$1:$1048576,$A501,BL$1))","v":""},{"$f":"IF($A501=\"N/A\",Ref!$B$36,INDEX(Ranks!$1:$1048576,$A501,BM$1))","v":""},{"$f":"IF($A501=\"N/A\",Ref!$B$36,INDEX(Ranks!$1:$1048576,$A501,BN$1))","v":""},{"$f":"IF($A501=\"N/A\",Ref!$B$36,INDEX(Ranks!$1:$1048576,$A501,BO$1))","v":""},{"$f":"IF($A501=\"N/A\",Ref!$B$36,INDEX(Ranks!$1:$1048576,$A501,BP$1))","v":""},{"$f":"IF($A501=\"N/A\",Ref!$B$36,INDEX(Ranks!$1:$1048576,$A501,BQ$1))","v":""},{"$f":"IF($A501=\"N/A\",Ref!$B$36,INDEX(Ranks!$1:$1048576,$A501,BR$1))","v":""},{"$f":"IF($A501=\"N/A\",Ref!$B$36,INDEX(Ranks!$1:$1048576,$A501,BS$1))","v":""},{"$f":"IF($A501=\"N/A\",Ref!$B$36,INDEX(Ranks!$1:$1048576,$A501,BT$1))","v":""},{"$f":"IF($A501=\"N/A\",Ref!$B$36,INDEX(Ranks!$1:$1048576,$A501,BU$1))","v":""},{"$f":"IF($A501=\"N/A\",Ref!$B$36,INDEX(Ranks!$1:$1048576,$A501,BV$1))","v":""},{"$f":"IF($A501=\"N/A\",Ref!$B$36,INDEX(Ranks!$1:$1048576,$A501,BW$1))","v":""},{"$f":"IF($A501=\"N/A\",Ref!$B$36,INDEX(Ranks!$1:$1048576,$A501,BX$1))","v":""},{"$f":"IF($A501=\"N/A\",Ref!$B$36,INDEX(Ranks!$1:$1048576,$A501,BY$1))","v":""},{"$f":"IF($A501=\"N/A\",Ref!$B$36,INDEX(Ranks!$1:$1048576,$A501,BZ$1))","v":""},{"$f":"IF($A501=\"N/A\",Ref!$B$36,INDEX(Ranks!$1:$1048576,$A501,CA$1))","v":""},{"$f":"IF($A501=\"N/A\",Ref!$B$36,INDEX(Ranks!$1:$1048576,$A501,CB$1))","v":""},{"$f":"IF($A501=\"N/A\",Ref!$B$36,INDEX(Ranks!$1:$1048576,$A501,CC$1))","v":""},{"$f":"IF($A501=\"N/A\",Ref!$B$36,INDEX(Ranks!$1:$1048576,$A501,CD$1))","v":""},{"$f":"IF($A501=\"N/A\",Ref!$B$36,INDEX(Ranks!$1:$1048576,$A501,CE$1))","v":""},{"$f":"IF($A501=\"N/A\",Ref!$B$36,INDEX(Ranks!$1:$1048576,$A501,CF$1))","v":""},{"$f":"IF($A501=\"N/A\",Ref!$B$36,INDEX(Ranks!$1:$1048576,$A501,CG$1))","v":""},{"$f":"IF($A501=\"N/A\",Ref!$B$36,INDEX(Ranks!$1:$1048576,$A501,CH$1))","v":""},{"$f":"IF($A501=\"N/A\",Ref!$B$36,INDEX(Ranks!$1:$1048576,$A501,CI$1))","v":""},{"$f":"IF($A501=\"N/A\",Ref!$B$36,INDEX(Ranks!$1:$1048576,$A501,CJ$1))","v":""},{"$f":"IF($A501=\"N/A\",Ref!$B$36,INDEX(Ranks!$1:$1048576,$A501,CK$1))","v":""},{"$f":"IF($A501=\"N/A\",Ref!$B$36,INDEX(Ranks!$1:$1048576,$A501,CL$1))","v":""},{"$f":"IF($A501=\"N/A\",Ref!$B$36,INDEX(Ranks!$1:$1048576,$A501,CM$1))","v":""},{"$f":"IF($A501=\"N/A\",Ref!$B$36,INDEX(Ranks!$1:$1048576,$A501,CN$1))","v":""},{"$f":"IF($A501=\"N/A\",Ref!$B$36,INDEX(Ranks!$1:$1048576,$A501,CO$1))","v":""},{"$f":"IF($A501=\"N/A\",Ref!$B$36,INDEX(Ranks!$1:$1048576,$A501,CP$1))","v":""},{"$f":"IF($A501=\"N/A\",Ref!$B$36,INDEX(Ranks!$1:$1048576,$A501,CQ$1))","v":""},{"$f":"IF($A501=\"N/A\",Ref!$B$36,INDEX(Ranks!$1:$1048576,$A501,CR$1))","v":""},{"$f":"IF($A501=\"N/A\",Ref!$B$36,INDEX(Ranks!$1:$1048576,$A501,CS$1))","v":""},{"$f":"IF($A501=\"N/A\",Ref!$B$36,INDEX(Ranks!$1:$1048576,$A501,CT$1))","v":""},{"$f":"IF($A501=\"N/A\",Ref!$B$36,INDEX(Ranks!$1:$1048576,$A501,CU$1))","v":""},{"$f":"IF($A501=\"N/A\",Ref!$B$36,INDEX(Ranks!$1:$1048576,$A501,CV$1))","v":""},{"$f":"IF($A501=\"N/A\",Ref!$B$36,INDEX(Ranks!$1:$1048576,$A501,CW$1))","v":""},{"$f":"IF($A501=\"N/A\",Ref!$B$36,INDEX(Ranks!$1:$1048576,$A501,CX$1))","v":""},{"$f":"IF($A501=\"N/A\",Ref!$B$36,INDEX(Ranks!$1:$1048576,$A501,CY$1))","v":""},{"$f":"IF($A501=\"N/A\",Ref!$B$36,INDEX(Ranks!$1:$1048576,$A501,CZ$1))","v":""},{"$f":"IF($A501=\"N/A\",Ref!$B$36,INDEX(Ranks!$1:$1048576,$A501,DA$1))","v":""},{"$f":"IF($A501=\"N/A\",Ref!$B$36,INDEX(Ranks!$1:$1048576,$A501,DB$1))","v":""},{"$f":"IF($A501=\"N/A\",Ref!$B$36,INDEX(Ranks!$1:$1048576,$A501,DC$1))","v":""},{"$f":"IF($A501=\"N/A\",Ref!$B$36,INDEX(Ranks!$1:$1048576,$A501,DD$1))","v":""},{"$f":"IF($A501=\"N/A\",Ref!$B$36,INDEX(Ranks!$1:$1048576,$A501,DE$1))","v":""},{"$f":"IF($A501=\"N/A\",Ref!$B$36,INDEX(Ranks!$1:$1048576,$A501,DF$1))","v":""},{"$f":"IF($A501=\"N/A\",Ref!$B$36,INDEX(Ranks!$1:$1048576,$A501,DG$1))","v":""},{"$f":"IF($A501=\"N/A\",Ref!$B$36,INDEX(Ranks!$1:$1048576,$A501,DH$1))","v":""},{"$f":"IF($A501=\"N/A\",Ref!$B$36,INDEX(Ranks!$1:$1048576,$A501,DI$1))","v":""},{"$f":"IF($A501=\"N/A\",Ref!$B$36,INDEX(Ranks!$1:$1048576,$A501,DJ$1))","v":""},{"$f":"IF($A501=\"N/A\",Ref!$B$36,INDEX(Ranks!$1:$1048576,$A501,DK$1))","v":""},{"$f":"IF($A501=\"N/A\",Ref!$B$36,INDEX(Ranks!$1:$1048576,$A501,DL$1))","v":""},{"$f":"IF($A501=\"N/A\",Ref!$B$36,INDEX(Ranks!$1:$1048576,$A501,DM$1))","v":""},{"$f":"IF($A501=\"N/A\",Ref!$B$36,INDEX(Ranks!$1:$1048576,$A501,DN$1))","v":""},{"$f":"IF($A501=\"N/A\",Ref!$B$36,INDEX(Ranks!$1:$1048576,$A501,DO$1))","v":""},{"$f":"IF($A501=\"N/A\",Ref!$B$36,INDEX(Ranks!$1:$1048576,$A501,DP$1))","v":""},{"$f":"IF($A501=\"N/A\",Ref!$B$36,INDEX(Ranks!$1:$1048576,$A501,DQ$1))","v":""},{"$f":"IF($A501=\"N/A\",Ref!$B$36,INDEX(Ranks!$1:$1048576,$A501,DR$1))","v":""},{"$f":"IF($A501=\"N/A\",Ref!$B$36,INDEX(Ranks!$1:$1048576,$A501,DS$1))","v":""},{"$f":"IF($A501=\"N/A\",Ref!$B$36,INDEX(Ranks!$1:$1048576,$A501,DT$1))","v":""},{"$f":"IF($A501=\"N/A\",Ref!$B$36,INDEX(Ranks!$1:$1048576,$A501,DU$1))","v":""},{"$f":"IF($A501=\"N/A\",Ref!$B$36,INDEX(Ranks!$1:$1048576,$A501,DV$1))","v":""},{"$f":"IF($A501=\"N/A\",Ref!$B$36,INDEX(Ranks!$1:$1048576,$A501,DW$1))","v":""},{"$f":"IF($A501=\"N/A\",Ref!$B$36,INDEX(Ranks!$1:$1048576,$A501,DX$1))","v":""},{"$f":"IF($A501=\"N/A\",Ref!$B$36,INDEX(Ranks!$1:$1048576,$A501,DY$1))","v":""},{"$f":"IF($A501=\"N/A\",Ref!$B$36,INDEX(Ranks!$1:$1048576,$A501,DZ$1))","v":""},{"$f":"IF($A501=\"N/A\",Ref!$B$36,INDEX(Ranks!$1:$1048576,$A501,EA$1))","v":""},{"$f":"IF($A501=\"N/A\",Ref!$B$36,INDEX(Ranks!$1:$1048576,$A501,EB$1))","v":""}]
[{"$f":"IFERROR(MATCH('Portfolio Page'!L502,Ranks!L:L,0),\"N/A\")","v":"N/A"},null,{"$f":"IF($A502=\"N/A\",\"\",INDEX(Ranks!$1:$1048576,$A502,C$1))","v":""},{"$f":"IF($A502=\"N/A\",Ref!$B$36,INDEX(Ranks!$1:$1048576,$A502,D$1))","v":""},{"$f":"IF($A502=\"N/A\",Ref!$B$36,INDEX(Ranks!$1:$1048576,$A502,E$1))","v":""},{"$f":"IF($A502=\"N/A\",\"\",INDEX(Ranks!$1:$1048576,$A502,F$1))","v":""},{"$f":"IF($A502=\"N/A\",\"\",INDEX(Ranks!$1:$1048576,$A502,G$1))","v":""},{"$f":"IF($A502=\"N/A\",\"\",INDEX(Ranks!$1:$1048576,$A502,H$1))","v":""},{"$f":"IF($A502=\"N/A\",\"\",INDEX(Ranks!$1:$1048576,$A502,I$1))","v":""},{"$f":"IF($A502=\"N/A\",\"\",INDEX(Ranks!$1:$1048576,$A502,J$1))","v":""},{"$f":"IF($A502=\"N/A\",\"\",INDEX(Ranks!$1:$1048576,$A502,K$1))","v":""},null,{"$f":"IF($A502=\"N/A\",Ref!$B$36,INDEX(Ranks!$1:$1048576,$A502,M$1))","v":""},{"$f":"IF($A502=\"N/A\",Ref!$B$36,INDEX(Ranks!$1:$1048576,$A502,N$1))","v":""},{"$f":"IF($A502=\"N/A\",Ref!$B$36,INDEX(Ranks!$1:$1048576,$A502,O$1))","v":""},{"$f":"IF($A502=\"N/A\",Ref!$B$36,INDEX(Ranks!$1:$1048576,$A502,P$1))","v":""},{"$f":"IF($A502=\"N/A\",Ref!$B$36,INDEX(Ranks!$1:$1048576,$A502,Q$1))","v":""},{"$f":"IF($A502=\"N/A\",Ref!$B$36,INDEX(Ranks!$1:$1048576,$A502,R$1))","v":""},{"$f":"IF($A502=\"N/A\",Ref!$B$36,INDEX(Ranks!$1:$1048576,$A502,S$1))","v":""},{"$f":"IF($A502=\"N/A\",Ref!$B$36,INDEX(Ranks!$1:$1048576,$A502,T$1))","v":""},{"$f":"IF($A502=\"N/A\",Ref!$B$36,INDEX(Ranks!$1:$1048576,$A502,U$1))","v":""},{"$f":"IF($A502=\"N/A\",Ref!$B$36,INDEX(Ranks!$1:$1048576,$A502,V$1))","v":""},{"$f":"IF($A502=\"N/A\",Ref!$B$36,INDEX(Ranks!$1:$1048576,$A502,W$1))","v":""},{"$f":"IF($A502=\"N/A\",Ref!$B$36,INDEX(Ranks!$1:$1048576,$A502,X$1))","v":""},{"$f":"IF($A502=\"N/A\",Ref!$B$36,INDEX(Ranks!$1:$1048576,$A502,Y$1))","v":""},{"$f":"IF($A502=\"N/A\",Ref!$B$36,INDEX(Ranks!$1:$1048576,$A502,Z$1))","v":""},{"$f":"IF($A502=\"N/A\",Ref!$B$36,INDEX(Ranks!$1:$1048576,$A502,AA$1))","v":""},{"$f":"IF($A502=\"N/A\",Ref!$B$36,INDEX(Ranks!$1:$1048576,$A502,AB$1))","v":""},{"$f":"IF($A502=\"N/A\",Ref!$B$36,INDEX(Ranks!$1:$1048576,$A502,AC$1))","v":""},{"$f":"IF($A502=\"N/A\",Ref!$B$36,INDEX(Ranks!$1:$1048576,$A502,AD$1))","v":""},{"$f":"IF($A502=\"N/A\",Ref!$B$36,INDEX(Ranks!$1:$1048576,$A502,AE$1))","v":""},{"$f":"IF($A502=\"N/A\",Ref!$B$36,INDEX(Ranks!$1:$1048576,$A502,AF$1))","v":""},{"$f":"IF($A502=\"N/A\",Ref!$B$36,INDEX(Ranks!$1:$1048576,$A502,AG$1))","v":""},{"$f":"IF($A502=\"N/A\",Ref!$B$36,INDEX(Ranks!$1:$1048576,$A502,AH$1))","v":""},{"$f":"IF($A502=\"N/A\",Ref!$B$36,INDEX(Ranks!$1:$1048576,$A502,AI$1))","v":""},{"$f":"IF($A502=\"N/A\",Ref!$B$36,INDEX(Ranks!$1:$1048576,$A502,AJ$1))","v":""},{"$f":"IF($A502=\"N/A\",Ref!$B$36,INDEX(Ranks!$1:$1048576,$A502,AK$1))","v":""},{"$f":"IF($A502=\"N/A\",Ref!$B$36,INDEX(Ranks!$1:$1048576,$A502,AL$1))","v":""},{"$f":"IF($A502=\"N/A\",Ref!$B$36,INDEX(Ranks!$1:$1048576,$A502,AM$1))","v":""},{"$f":"IF($A502=\"N/A\",Ref!$B$36,INDEX(Ranks!$1:$1048576,$A502,AN$1))","v":""},{"$f":"IF($A502=\"N/A\",Ref!$B$36,INDEX(Ranks!$1:$1048576,$A502,AO$1))","v":""},{"$f":"IF($A502=\"N/A\",Ref!$B$36,INDEX(Ranks!$1:$1048576,$A502,AP$1))","v":""},{"$f":"IF($A502=\"N/A\",Ref!$B$36,INDEX(Ranks!$1:$1048576,$A502,AQ$1))","v":""},{"$f":"IF($A502=\"N/A\",Ref!$B$36,INDEX(Ranks!$1:$1048576,$A502,AR$1))","v":""},{"$f":"IF($A502=\"N/A\",Ref!$B$36,INDEX(Ranks!$1:$1048576,$A502,AS$1))","v":""},{"$f":"IF($A502=\"N/A\",Ref!$B$36,INDEX(Ranks!$1:$1048576,$A502,AT$1))","v":""},{"$f":"IF($A502=\"N/A\",Ref!$B$36,INDEX(Ranks!$1:$1048576,$A502,AU$1))","v":""},{"$f":"IF($A502=\"N/A\",Ref!$B$36,INDEX(Ranks!$1:$1048576,$A502,AV$1))","v":""},{"$f":"IF($A502=\"N/A\",Ref!$B$36,INDEX(Ranks!$1:$1048576,$A502,AW$1))","v":""},{"$f":"IF($A502=\"N/A\",Ref!$B$36,INDEX(Ranks!$1:$1048576,$A502,AX$1))","v":""},{"$f":"IF($A502=\"N/A\",Ref!$B$36,INDEX(Ranks!$1:$1048576,$A502,AY$1))","v":""},{"$f":"IF($A502=\"N/A\",Ref!$B$36,INDEX(Ranks!$1:$1048576,$A502,AZ$1))","v":""},{"$f":"IF($A502=\"N/A\",Ref!$B$36,INDEX(Ranks!$1:$1048576,$A502,BA$1))","v":""},{"$f":"IF($A502=\"N/A\",Ref!$B$36,INDEX(Ranks!$1:$1048576,$A502,BB$1))","v":""},{"$f":"IF($A502=\"N/A\",Ref!$B$36,INDEX(Ranks!$1:$1048576,$A502,BC$1))","v":""},{"$f":"IF($A502=\"N/A\",Ref!$B$36,INDEX(Ranks!$1:$1048576,$A502,BD$1))","v":""},{"$f":"IF($A502=\"N/A\",Ref!$B$36,INDEX(Ranks!$1:$1048576,$A502,BE$1))","v":""},{"$f":"IF($A502=\"N/A\",Ref!$B$36,INDEX(Ranks!$1:$1048576,$A502,BF$1))","v":""},{"$f":"IF($A502=\"N/A\",Ref!$B$36,INDEX(Ranks!$1:$1048576,$A502,BG$1))","v":""},{"$f":"IF($A502=\"N/A\",Ref!$B$36,INDEX(Ranks!$1:$1048576,$A502,BH$1))","v":""},{"$f":"IF($A502=\"N/A\",Ref!$B$36,INDEX(Ranks!$1:$1048576,$A502,BI$1))","v":""},{"$f":"IF($A502=\"N/A\",Ref!$B$36,INDEX(Ranks!$1:$1048576,$A502,BJ$1))","v":""},{"$f":"IF($A502=\"N/A\",Ref!$B$36,INDEX(Ranks!$1:$1048576,$A502,BK$1))","v":""},{"$f":"IF($A502=\"N/A\",Ref!$B$36,INDEX(Ranks!$1:$1048576,$A502,BL$1))","v":""},{"$f":"IF($A502=\"N/A\",Ref!$B$36,INDEX(Ranks!$1:$1048576,$A502,BM$1))","v":""},{"$f":"IF($A502=\"N/A\",Ref!$B$36,INDEX(Ranks!$1:$1048576,$A502,BN$1))","v":""},{"$f":"IF($A502=\"N/A\",Ref!$B$36,INDEX(Ranks!$1:$1048576,$A502,BO$1))","v":""},{"$f":"IF($A502=\"N/A\",Ref!$B$36,INDEX(Ranks!$1:$1048576,$A502,BP$1))","v":""},{"$f":"IF($A502=\"N/A\",Ref!$B$36,INDEX(Ranks!$1:$1048576,$A502,BQ$1))","v":""},{"$f":"IF($A502=\"N/A\",Ref!$B$36,INDEX(Ranks!$1:$1048576,$A502,BR$1))","v":""},{"$f":"IF($A502=\"N/A\",Ref!$B$36,INDEX(Ranks!$1:$1048576,$A502,BS$1))","v":""},{"$f":"IF($A502=\"N/A\",Ref!$B$36,INDEX(Ranks!$1:$1048576,$A502,BT$1))","v":""},{"$f":"IF($A502=\"N/A\",Ref!$B$36,INDEX(Ranks!$1:$1048576,$A502,BU$1))","v":""},{"$f":"IF($A502=\"N/A\",Ref!$B$36,INDEX(Ranks!$1:$1048576,$A502,BV$1))","v":""},{"$f":"IF($A502=\"N/A\",Ref!$B$36,INDEX(Ranks!$1:$1048576,$A502,BW$1))","v":""},{"$f":"IF($A502=\"N/A\",Ref!$B$36,INDEX(Ranks!$1:$1048576,$A502,BX$1))","v":""},{"$f":"IF($A502=\"N/A\",Ref!$B$36,INDEX(Ranks!$1:$1048576,$A502,BY$1))","v":""},{"$f":"IF($A502=\"N/A\",Ref!$B$36,INDEX(Ranks!$1:$1048576,$A502,BZ$1))","v":""},{"$f":"IF($A502=\"N/A\",Ref!$B$36,INDEX(Ranks!$1:$1048576,$A502,CA$1))","v":""},{"$f":"IF($A502=\"N/A\",Ref!$B$36,INDEX(Ranks!$1:$1048576,$A502,CB$1))","v":""},{"$f":"IF($A502=\"N/A\",Ref!$B$36,INDEX(Ranks!$1:$1048576,$A502,CC$1))","v":""},{"$f":"IF($A502=\"N/A\",Ref!$B$36,INDEX(Ranks!$1:$1048576,$A502,CD$1))","v":""},{"$f":"IF($A502=\"N/A\",Ref!$B$36,INDEX(Ranks!$1:$1048576,$A502,CE$1))","v":""},{"$f":"IF($A502=\"N/A\",Ref!$B$36,INDEX(Ranks!$1:$1048576,$A502,CF$1))","v":""},{"$f":"IF($A502=\"N/A\",Ref!$B$36,INDEX(Ranks!$1:$1048576,$A502,CG$1))","v":""},{"$f":"IF($A502=\"N/A\",Ref!$B$36,INDEX(Ranks!$1:$1048576,$A502,CH$1))","v":""},{"$f":"IF($A502=\"N/A\",Ref!$B$36,INDEX(Ranks!$1:$1048576,$A502,CI$1))","v":""},{"$f":"IF($A502=\"N/A\",Ref!$B$36,INDEX(Ranks!$1:$1048576,$A502,CJ$1))","v":""},{"$f":"IF($A502=\"N/A\",Ref!$B$36,INDEX(Ranks!$1:$1048576,$A502,CK$1))","v":""},{"$f":"IF($A502=\"N/A\",Ref!$B$36,INDEX(Ranks!$1:$1048576,$A502,CL$1))","v":""},{"$f":"IF($A502=\"N/A\",Ref!$B$36,INDEX(Ranks!$1:$1048576,$A502,CM$1))","v":""},{"$f":"IF($A502=\"N/A\",Ref!$B$36,INDEX(Ranks!$1:$1048576,$A502,CN$1))","v":""},{"$f":"IF($A502=\"N/A\",Ref!$B$36,INDEX(Ranks!$1:$1048576,$A502,CO$1))","v":""},{"$f":"IF($A502=\"N/A\",Ref!$B$36,INDEX(Ranks!$1:$1048576,$A502,CP$1))","v":""},{"$f":"IF($A502=\"N/A\",Ref!$B$36,INDEX(Ranks!$1:$1048576,$A502,CQ$1))","v":""},{"$f":"IF($A502=\"N/A\",Ref!$B$36,INDEX(Ranks!$1:$1048576,$A502,CR$1))","v":""},{"$f":"IF($A502=\"N/A\",Ref!$B$36,INDEX(Ranks!$1:$1048576,$A502,CS$1))","v":""},{"$f":"IF($A502=\"N/A\",Ref!$B$36,INDEX(Ranks!$1:$1048576,$A502,CT$1))","v":""},{"$f":"IF($A502=\"N/A\",Ref!$B$36,INDEX(Ranks!$1:$1048576,$A502,CU$1))","v":""},{"$f":"IF($A502=\"N/A\",Ref!$B$36,INDEX(Ranks!$1:$1048576,$A502,CV$1))","v":""},{"$f":"IF($A502=\"N/A\",Ref!$B$36,INDEX(Ranks!$1:$1048576,$A502,CW$1))","v":""},{"$f":"IF($A502=\"N/A\",Ref!$B$36,INDEX(Ranks!$1:$1048576,$A502,CX$1))","v":""},{"$f":"IF($A502=\"N/A\",Ref!$B$36,INDEX(Ranks!$1:$1048576,$A502,CY$1))","v":""},{"$f":"IF($A502=\"N/A\",Ref!$B$36,INDEX(Ranks!$1:$1048576,$A502,CZ$1))","v":""},{"$f":"IF($A502=\"N/A\",Ref!$B$36,INDEX(Ranks!$1:$1048576,$A502,DA$1))","v":""},{"$f":"IF($A502=\"N/A\",Ref!$B$36,INDEX(Ranks!$1:$1048576,$A502,DB$1))","v":""},{"$f":"IF($A502=\"N/A\",Ref!$B$36,INDEX(Ranks!$1:$1048576,$A502,DC$1))","v":""},{"$f":"IF($A502=\"N/A\",Ref!$B$36,INDEX(Ranks!$1:$1048576,$A502,DD$1))","v":""},{"$f":"IF($A502=\"N/A\",Ref!$B$36,INDEX(Ranks!$1:$1048576,$A502,DE$1))","v":""},{"$f":"IF($A502=\"N/A\",Ref!$B$36,INDEX(Ranks!$1:$1048576,$A502,DF$1))","v":""},{"$f":"IF($A502=\"N/A\",Ref!$B$36,INDEX(Ranks!$1:$1048576,$A502,DG$1))","v":""},{"$f":"IF($A502=\"N/A\",Ref!$B$36,INDEX(Ranks!$1:$1048576,$A502,DH$1))","v":""},{"$f":"IF($A502=\"N/A\",Ref!$B$36,INDEX(Ranks!$1:$1048576,$A502,DI$1))","v":""},{"$f":"IF($A502=\"N/A\",Ref!$B$36,INDEX(Ranks!$1:$1048576,$A502,DJ$1))","v":""},{"$f":"IF($A502=\"N/A\",Ref!$B$36,INDEX(Ranks!$1:$1048576,$A502,DK$1))","v":""},{"$f":"IF($A502=\"N/A\",Ref!$B$36,INDEX(Ranks!$1:$1048576,$A502,DL$1))","v":""},{"$f":"IF($A502=\"N/A\",Ref!$B$36,INDEX(Ranks!$1:$1048576,$A502,DM$1))","v":""},{"$f":"IF($A502=\"N/A\",Ref!$B$36,INDEX(Ranks!$1:$1048576,$A502,DN$1))","v":""},{"$f":"IF($A502=\"N/A\",Ref!$B$36,INDEX(Ranks!$1:$1048576,$A502,DO$1))","v":""},{"$f":"IF($A502=\"N/A\",Ref!$B$36,INDEX(Ranks!$1:$1048576,$A502,DP$1))","v":""},{"$f":"IF($A502=\"N/A\",Ref!$B$36,INDEX(Ranks!$1:$1048576,$A502,DQ$1))","v":""},{"$f":"IF($A502=\"N/A\",Ref!$B$36,INDEX(Ranks!$1:$1048576,$A502,DR$1))","v":""},{"$f":"IF($A502=\"N/A\",Ref!$B$36,INDEX(Ranks!$1:$1048576,$A502,DS$1))","v":""},{"$f":"IF($A502=\"N/A\",Ref!$B$36,INDEX(Ranks!$1:$1048576,$A502,DT$1))","v":""},{"$f":"IF($A502=\"N/A\",Ref!$B$36,INDEX(Ranks!$1:$1048576,$A502,DU$1))","v":""},{"$f":"IF($A502=\"N/A\",Ref!$B$36,INDEX(Ranks!$1:$1048576,$A502,DV$1))","v":""},{"$f":"IF($A502=\"N/A\",Ref!$B$36,INDEX(Ranks!$1:$1048576,$A502,DW$1))","v":""},{"$f":"IF($A502=\"N/A\",Ref!$B$36,INDEX(Ranks!$1:$1048576,$A502,DX$1))","v":""},{"$f":"IF($A502=\"N/A\",Ref!$B$36,INDEX(Ranks!$1:$1048576,$A502,DY$1))","v":""},{"$f":"IF($A502=\"N/A\",Ref!$B$36,INDEX(Ranks!$1:$1048576,$A502,DZ$1))","v":""},{"$f":"IF($A502=\"N/A\",Ref!$B$36,INDEX(Ranks!$1:$1048576,$A502,EA$1))","v":""},{"$f":"IF($A502=\"N/A\",Ref!$B$36,INDEX(Ranks!$1:$1048576,$A502,EB$1))","v":""}]
[{"$f":"IFERROR(MATCH('Portfolio Page'!L503,Ranks!L:L,0),\"N/A\")","v":"N/A"},null,{"$f":"IF($A503=\"N/A\",\"\",INDEX(Ranks!$1:$1048576,$A503,C$1))","v":""},{"$f":"IF($A503=\"N/A\",Ref!$B$36,INDEX(Ranks!$1:$1048576,$A503,D$1))","v":""},{"$f":"IF($A503=\"N/A\",Ref!$B$36,INDEX(Ranks!$1:$1048576,$A503,E$1))","v":""},{"$f":"IF($A503=\"N/A\",\"\",INDEX(Ranks!$1:$1048576,$A503,F$1))","v":""},{"$f":"IF($A503=\"N/A\",\"\",INDEX(Ranks!$1:$1048576,$A503,G$1))","v":""},{"$f":"IF($A503=\"N/A\",\"\",INDEX(Ranks!$1:$1048576,$A503,H$1))","v":""},{"$f":"IF($A503=\"N/A\",\"\",INDEX(Ranks!$1:$1048576,$A503,I$1))","v":""},{"$f":"IF($A503=\"N/A\",\"\",INDEX(Ranks!$1:$1048576,$A503,J$1))","v":""},{"$f":"IF($A503=\"N/A\",\"\",INDEX(Ranks!$1:$1048576,$A503,K$1))","v":""},null,{"$f":"IF($A503=\"N/A\",Ref!$B$36,INDEX(Ranks!$1:$1048576,$A503,M$1))","v":""},{"$f":"IF($A503=\"N/A\",Ref!$B$36,INDEX(Ranks!$1:$1048576,$A503,N$1))","v":""},{"$f":"IF($A503=\"N/A\",Ref!$B$36,INDEX(Ranks!$1:$1048576,$A503,O$1))","v":""},{"$f":"IF($A503=\"N/A\",Ref!$B$36,INDEX(Ranks!$1:$1048576,$A503,P$1))","v":""},{"$f":"IF($A503=\"N/A\",Ref!$B$36,INDEX(Ranks!$1:$1048576,$A503,Q$1))","v":""},{"$f":"IF($A503=\"N/A\",Ref!$B$36,INDEX(Ranks!$1:$1048576,$A503,R$1))","v":""},{"$f":"IF($A503=\"N/A\",Ref!$B$36,INDEX(Ranks!$1:$1048576,$A503,S$1))","v":""},{"$f":"IF($A503=\"N/A\",Ref!$B$36,INDEX(Ranks!$1:$1048576,$A503,T$1))","v":""},{"$f":"IF($A503=\"N/A\",Ref!$B$36,INDEX(Ranks!$1:$1048576,$A503,U$1))","v":""},{"$f":"IF($A503=\"N/A\",Ref!$B$36,INDEX(Ranks!$1:$1048576,$A503,V$1))","v":""},{"$f":"IF($A503=\"N/A\",Ref!$B$36,INDEX(Ranks!$1:$1048576,$A503,W$1))","v":""},{"$f":"IF($A503=\"N/A\",Ref!$B$36,INDEX(Ranks!$1:$1048576,$A503,X$1))","v":""},{"$f":"IF($A503=\"N/A\",Ref!$B$36,INDEX(Ranks!$1:$1048576,$A503,Y$1))","v":""},{"$f":"IF($A503=\"N/A\",Ref!$B$36,INDEX(Ranks!$1:$1048576,$A503,Z$1))","v":""},{"$f":"IF($A503=\"N/A\",Ref!$B$36,INDEX(Ranks!$1:$1048576,$A503,AA$1))","v":""},{"$f":"IF($A503=\"N/A\",Ref!$B$36,INDEX(Ranks!$1:$1048576,$A503,AB$1))","v":""},{"$f":"IF($A503=\"N/A\",Ref!$B$36,INDEX(Ranks!$1:$1048576,$A503,AC$1))","v":""},{"$f":"IF($A503=\"N/A\",Ref!$B$36,INDEX(Ranks!$1:$1048576,$A503,AD$1))","v":""},{"$f":"IF($A503=\"N/A\",Ref!$B$36,INDEX(Ranks!$1:$1048576,$A503,AE$1))","v":""},{"$f":"IF($A503=\"N/A\",Ref!$B$36,INDEX(Ranks!$1:$1048576,$A503,AF$1))","v":""},{"$f":"IF($A503=\"N/A\",Ref!$B$36,INDEX(Ranks!$1:$1048576,$A503,AG$1))","v":""},{"$f":"IF($A503=\"N/A\",Ref!$B$36,INDEX(Ranks!$1:$1048576,$A503,AH$1))","v":""},{"$f":"IF($A503=\"N/A\",Ref!$B$36,INDEX(Ranks!$1:$1048576,$A503,AI$1))","v":""},{"$f":"IF($A503=\"N/A\",Ref!$B$36,INDEX(Ranks!$1:$1048576,$A503,AJ$1))","v":""},{"$f":"IF($A503=\"N/A\",Ref!$B$36,INDEX(Ranks!$1:$1048576,$A503,AK$1))","v":""},{"$f":"IF($A503=\"N/A\",Ref!$B$36,INDEX(Ranks!$1:$1048576,$A503,AL$1))","v":""},{"$f":"IF($A503=\"N/A\",Ref!$B$36,INDEX(Ranks!$1:$1048576,$A503,AM$1))","v":""},{"$f":"IF($A503=\"N/A\",Ref!$B$36,INDEX(Ranks!$1:$1048576,$A503,AN$1))","v":""},{"$f":"IF($A503=\"N/A\",Ref!$B$36,INDEX(Ranks!$1:$1048576,$A503,AO$1))","v":""},{"$f":"IF($A503=\"N/A\",Ref!$B$36,INDEX(Ranks!$1:$1048576,$A503,AP$1))","v":""},{"$f":"IF($A503=\"N/A\",Ref!$B$36,INDEX(Ranks!$1:$1048576,$A503,AQ$1))","v":""},{"$f":"IF($A503=\"N/A\",Ref!$B$36,INDEX(Ranks!$1:$1048576,$A503,AR$1))","v":""},{"$f":"IF($A503=\"N/A\",Ref!$B$36,INDEX(Ranks!$1:$1048576,$A503,AS$1))","v":""},{"$f":"IF($A503=\"N/A\",Ref!$B$36,INDEX(Ranks!$1:$1048576,$A503,AT$1))","v":""},{"$f":"IF($A503=\"N/A\",Ref!$B$36,INDEX(Ranks!$1:$1048576,$A503,AU$1))","v":""},{"$f":"IF($A503=\"N/A\",Ref!$B$36,INDEX(Ranks!$1:$1048576,$A503,AV$1))","v":""},{"$f":"IF($A503=\"N/A\",Ref!$B$36,INDEX(Ranks!$1:$1048576,$A503,AW$1))","v":""},{"$f":"IF($A503=\"N/A\",Ref!$B$36,INDEX(Ranks!$1:$1048576,$A503,AX$1))","v":""},{"$f":"IF($A503=\"N/A\",Ref!$B$36,INDEX(Ranks!$1:$1048576,$A503,AY$1))","v":""},{"$f":"IF($A503=\"N/A\",Ref!$B$36,INDEX(Ranks!$1:$1048576,$A503,AZ$1))","v":""},{"$f":"IF($A503=\"N/A\",Ref!$B$36,INDEX(Ranks!$1:$1048576,$A503,BA$1))","v":""},{"$f":"IF($A503=\"N/A\",Ref!$B$36,INDEX(Ranks!$1:$1048576,$A503,BB$1))","v":""},{"$f":"IF($A503=\"N/A\",Ref!$B$36,INDEX(Ranks!$1:$1048576,$A503,BC$1))","v":""},{"$f":"IF($A503=\"N/A\",Ref!$B$36,INDEX(Ranks!$1:$1048576,$A503,BD$1))","v":""},{"$f":"IF($A503=\"N/A\",Ref!$B$36,INDEX(Ranks!$1:$1048576,$A503,BE$1))","v":""},{"$f":"IF($A503=\"N/A\",Ref!$B$36,INDEX(Ranks!$1:$1048576,$A503,BF$1))","v":""},{"$f":"IF($A503=\"N/A\",Ref!$B$36,INDEX(Ranks!$1:$1048576,$A503,BG$1))","v":""},{"$f":"IF($A503=\"N/A\",Ref!$B$36,INDEX(Ranks!$1:$1048576,$A503,BH$1))","v":""},{"$f":"IF($A503=\"N/A\",Ref!$B$36,INDEX(Ranks!$1:$1048576,$A503,BI$1))","v":""},{"$f":"IF($A503=\"N/A\",Ref!$B$36,INDEX(Ranks!$1:$1048576,$A503,BJ$1))","v":""},{"$f":"IF($A503=\"N/A\",Ref!$B$36,INDEX(Ranks!$1:$1048576,$A503,BK$1))","v":""},{"$f":"IF($A503=\"N/A\",Ref!$B$36,INDEX(Ranks!$1:$1048576,$A503,BL$1))","v":""},{"$f":"IF($A503=\"N/A\",Ref!$B$36,INDEX(Ranks!$1:$1048576,$A503,BM$1))","v":""},{"$f":"IF($A503=\"N/A\",Ref!$B$36,INDEX(Ranks!$1:$1048576,$A503,BN$1))","v":""},{"$f":"IF($A503=\"N/A\",Ref!$B$36,INDEX(Ranks!$1:$1048576,$A503,BO$1))","v":""},{"$f":"IF($A503=\"N/A\",Ref!$B$36,INDEX(Ranks!$1:$1048576,$A503,BP$1))","v":""},{"$f":"IF($A503=\"N/A\",Ref!$B$36,INDEX(Ranks!$1:$1048576,$A503,BQ$1))","v":""},{"$f":"IF($A503=\"N/A\",Ref!$B$36,INDEX(Ranks!$1:$1048576,$A503,BR$1))","v":""},{"$f":"IF($A503=\"N/A\",Ref!$B$36,INDEX(Ranks!$1:$1048576,$A503,BS$1))","v":""},{"$f":"IF($A503=\"N/A\",Ref!$B$36,INDEX(Ranks!$1:$1048576,$A503,BT$1))","v":""},{"$f":"IF($A503=\"N/A\",Ref!$B$36,INDEX(Ranks!$1:$1048576,$A503,BU$1))","v":""},{"$f":"IF($A503=\"N/A\",Ref!$B$36,INDEX(Ranks!$1:$1048576,$A503,BV$1))","v":""},{"$f":"IF($A503=\"N/A\",Ref!$B$36,INDEX(Ranks!$1:$1048576,$A503,BW$1))","v":""},{"$f":"IF($A503=\"N/A\",Ref!$B$36,INDEX(Ranks!$1:$1048576,$A503,BX$1))","v":""},{"$f":"IF($A503=\"N/A\",Ref!$B$36,INDEX(Ranks!$1:$1048576,$A503,BY$1))","v":""},{"$f":"IF($A503=\"N/A\",Ref!$B$36,INDEX(Ranks!$1:$1048576,$A503,BZ$1))","v":""},{"$f":"IF($A503=\"N/A\",Ref!$B$36,INDEX(Ranks!$1:$1048576,$A503,CA$1))","v":""},{"$f":"IF($A503=\"N/A\",Ref!$B$36,INDEX(Ranks!$1:$1048576,$A503,CB$1))","v":""},{"$f":"IF($A503=\"N/A\",Ref!$B$36,INDEX(Ranks!$1:$1048576,$A503,CC$1))","v":""},{"$f":"IF($A503=\"N/A\",Ref!$B$36,INDEX(Ranks!$1:$1048576,$A503,CD$1))","v":""},{"$f":"IF($A503=\"N/A\",Ref!$B$36,INDEX(Ranks!$1:$1048576,$A503,CE$1))","v":""},{"$f":"IF($A503=\"N/A\",Ref!$B$36,INDEX(Ranks!$1:$1048576,$A503,CF$1))","v":""},{"$f":"IF($A503=\"N/A\",Ref!$B$36,INDEX(Ranks!$1:$1048576,$A503,CG$1))","v":""},{"$f":"IF($A503=\"N/A\",Ref!$B$36,INDEX(Ranks!$1:$1048576,$A503,CH$1))","v":""},{"$f":"IF($A503=\"N/A\",Ref!$B$36,INDEX(Ranks!$1:$1048576,$A503,CI$1))","v":""},{"$f":"IF($A503=\"N/A\",Ref!$B$36,INDEX(Ranks!$1:$1048576,$A503,CJ$1))","v":""},{"$f":"IF($A503=\"N/A\",Ref!$B$36,INDEX(Ranks!$1:$1048576,$A503,CK$1))","v":""},{"$f":"IF($A503=\"N/A\",Ref!$B$36,INDEX(Ranks!$1:$1048576,$A503,CL$1))","v":""},{"$f":"IF($A503=\"N/A\",Ref!$B$36,INDEX(Ranks!$1:$1048576,$A503,CM$1))","v":""},{"$f":"IF($A503=\"N/A\",Ref!$B$36,INDEX(Ranks!$1:$1048576,$A503,CN$1))","v":""},{"$f":"IF($A503=\"N/A\",Ref!$B$36,INDEX(Ranks!$1:$1048576,$A503,CO$1))","v":""},{"$f":"IF($A503=\"N/A\",Ref!$B$36,INDEX(Ranks!$1:$1048576,$A503,CP$1))","v":""},{"$f":"IF($A503=\"N/A\",Ref!$B$36,INDEX(Ranks!$1:$1048576,$A503,CQ$1))","v":""},{"$f":"IF($A503=\"N/A\",Ref!$B$36,INDEX(Ranks!$1:$1048576,$A503,CR$1))","v":""},{"$f":"IF($A503=\"N/A\",Ref!$B$36,INDEX(Ranks!$1:$1048576,$A503,CS$1))","v":""},{"$f":"IF($A503=\"N/A\",Ref!$B$36,INDEX(Ranks!$1:$1048576,$A503,CT$1))","v":""},{"$f":"IF($A503=\"N/A\",Ref!$B$36,INDEX(Ranks!$1:$1048576,$A503,CU$1))","v":""},{"$f":"IF($A503=\"N/A\",Ref!$B$36,INDEX(Ranks!$1:$1048576,$A503,CV$1))","v":""},{"$f":"IF($A503=\"N/A\",Ref!$B$36,INDEX(Ranks!$1:$1048576,$A503,CW$1))","v":""},{"$f":"IF($A503=\"N/A\",Ref!$B$36,INDEX(Ranks!$1:$1048576,$A503,CX$1))","v":""},{"$f":"IF($A503=\"N/A\",Ref!$B$36,INDEX(Ranks!$1:$1048576,$A503,CY$1))","v":""},{"$f":"IF($A503=\"N/A\",Ref!$B$36,INDEX(Ranks!$1:$1048576,$A503,CZ$1))","v":""},{"$f":"IF($A503=\"N/A\",Ref!$B$36,INDEX(Ranks!$1:$1048576,$A503,DA$1))","v":""},{"$f":"IF($A503=\"N/A\",Ref!$B$36,INDEX(Ranks!$1:$1048576,$A503,DB$1))","v":""},{"$f":"IF($A503=\"N/A\",Ref!$B$36,INDEX(Ranks!$1:$1048576,$A503,DC$1))","v":""},{"$f":"IF($A503=\"N/A\",Ref!$B$36,INDEX(Ranks!$1:$1048576,$A503,DD$1))","v":""},{"$f":"IF($A503=\"N/A\",Ref!$B$36,INDEX(Ranks!$1:$1048576,$A503,DE$1))","v":""},{"$f":"IF($A503=\"N/A\",Ref!$B$36,INDEX(Ranks!$1:$1048576,$A503,DF$1))","v":""},{"$f":"IF($A503=\"N/A\",Ref!$B$36,INDEX(Ranks!$1:$1048576,$A503,DG$1))","v":""},{"$f":"IF($A503=\"N/A\",Ref!$B$36,INDEX(Ranks!$1:$1048576,$A503,DH$1))","v":""},{"$f":"IF($A503=\"N/A\",Ref!$B$36,INDEX(Ranks!$1:$1048576,$A503,DI$1))","v":""},{"$f":"IF($A503=\"N/A\",Ref!$B$36,INDEX(Ranks!$1:$1048576,$A503,DJ$1))","v":""},{"$f":"IF($A503=\"N/A\",Ref!$B$36,INDEX(Ranks!$1:$1048576,$A503,DK$1))","v":""},{"$f":"IF($A503=\"N/A\",Ref!$B$36,INDEX(Ranks!$1:$1048576,$A503,DL$1))","v":""},{"$f":"IF($A503=\"N/A\",Ref!$B$36,INDEX(Ranks!$1:$1048576,$A503,DM$1))","v":""},{"$f":"IF($A503=\"N/A\",Ref!$B$36,INDEX(Ranks!$1:$1048576,$A503,DN$1))","v":""},{"$f":"IF($A503=\"N/A\",Ref!$B$36,INDEX(Ranks!$1:$1048576,$A503,DO$1))","v":""},{"$f":"IF($A503=\"N/A\",Ref!$B$36,INDEX(Ranks!$1:$1048576,$A503,DP$1))","v":""},{"$f":"IF($A503=\"N/A\",Ref!$B$36,INDEX(Ranks!$1:$1048576,$A503,DQ$1))","v":""},{"$f":"IF($A503=\"N/A\",Ref!$B$36,INDEX(Ranks!$1:$1048576,$A503,DR$1))","v":""},{"$f":"IF($A503=\"N/A\",Ref!$B$36,INDEX(Ranks!$1:$1048576,$A503,DS$1))","v":""},{"$f":"IF($A503=\"N/A\",Ref!$B$36,INDEX(Ranks!$1:$1048576,$A503,DT$1))","v":""},{"$f":"IF($A503=\"N/A\",Ref!$B$36,INDEX(Ranks!$1:$1048576,$A503,DU$1))","v":""},{"$f":"IF($A503=\"N/A\",Ref!$B$36,INDEX(Ranks!$1:$1048576,$A503,DV$1))","v":""},{"$f":"IF($A503=\"N/A\",Ref!$B$36,INDEX(Ranks!$1:$1048576,$A503,DW$1))","v":""},{"$f":"IF($A503=\"N/A\",Ref!$B$36,INDEX(Ranks!$1:$1048576,$A503,DX$1))","v":""},{"$f":"IF($A503=\"N/A\",Ref!$B$36,INDEX(Ranks!$1:$1048576,$A503,DY$1))","v":""},{"$f":"IF($A503=\"N/A\",Ref!$B$36,INDEX(Ranks!$1:$1048576,$A503,DZ$1))","v":""},{"$f":"IF($A503=\"N/A\",Ref!$B$36,INDEX(Ranks!$1:$1048576,$A503,EA$1))","v":""},{"$f":"IF($A503=\"N/A\",Ref!$B$36,INDEX(Ranks!$1:$1048576,$A503,EB$1))","v":""}]
[{"$f":"IFERROR(MATCH('Portfolio Page'!L504,Ranks!L:L,0),\"N/A\")","v":"N/A"},null,{"$f":"IF($A504=\"N/A\",\"\",INDEX(Ranks!$1:$1048576,$A504,C$1))","v":""},{"$f":"IF($A504=\"N/A\",Ref!$B$36,INDEX(Ranks!$1:$1048576,$A504,D$1))","v":""},{"$f":"IF($A504=\"N/A\",Ref!$B$36,INDEX(Ranks!$1:$1048576,$A504,E$1))","v":""},{"$f":"IF($A504=\"N/A\",\"\",INDEX(Ranks!$1:$1048576,$A504,F$1))","v":""},{"$f":"IF($A504=\"N/A\",\"\",INDEX(Ranks!$1:$1048576,$A504,G$1))","v":""},{"$f":"IF($A504=\"N/A\",\"\",INDEX(Ranks!$1:$1048576,$A504,H$1))","v":""},{"$f":"IF($A504=\"N/A\",\"\",INDEX(Ranks!$1:$1048576,$A504,I$1))","v":""},{"$f":"IF($A504=\"N/A\",\"\",INDEX(Ranks!$1:$1048576,$A504,J$1))","v":""},{"$f":"IF($A504=\"N/A\",\"\",INDEX(Ranks!$1:$1048576,$A504,K$1))","v":""},null,{"$f":"IF($A504=\"N/A\",Ref!$B$36,INDEX(Ranks!$1:$1048576,$A504,M$1))","v":""},{"$f":"IF($A504=\"N/A\",Ref!$B$36,INDEX(Ranks!$1:$1048576,$A504,N$1))","v":""},{"$f":"IF($A504=\"N/A\",Ref!$B$36,INDEX(Ranks!$1:$1048576,$A504,O$1))","v":""},{"$f":"IF($A504=\"N/A\",Ref!$B$36,INDEX(Ranks!$1:$1048576,$A504,P$1))","v":""},{"$f":"IF($A504=\"N/A\",Ref!$B$36,INDEX(Ranks!$1:$1048576,$A504,Q$1))","v":""},{"$f":"IF($A504=\"N/A\",Ref!$B$36,INDEX(Ranks!$1:$1048576,$A504,R$1))","v":""},{"$f":"IF($A504=\"N/A\",Ref!$B$36,INDEX(Ranks!$1:$1048576,$A504,S$1))","v":""},{"$f":"IF($A504=\"N/A\",Ref!$B$36,INDEX(Ranks!$1:$1048576,$A504,T$1))","v":""},{"$f":"IF($A504=\"N/A\",Ref!$B$36,INDEX(Ranks!$1:$1048576,$A504,U$1))","v":""},{"$f":"IF($A504=\"N/A\",Ref!$B$36,INDEX(Ranks!$1:$1048576,$A504,V$1))","v":""},{"$f":"IF($A504=\"N/A\",Ref!$B$36,INDEX(Ranks!$1:$1048576,$A504,W$1))","v":""},{"$f":"IF($A504=\"N/A\",Ref!$B$36,INDEX(Ranks!$1:$1048576,$A504,X$1))","v":""},{"$f":"IF($A504=\"N/A\",Ref!$B$36,INDEX(Ranks!$1:$1048576,$A504,Y$1))","v":""},{"$f":"IF($A504=\"N/A\",Ref!$B$36,INDEX(Ranks!$1:$1048576,$A504,Z$1))","v":""},{"$f":"IF($A504=\"N/A\",Ref!$B$36,INDEX(Ranks!$1:$1048576,$A504,AA$1))","v":""},{"$f":"IF($A504=\"N/A\",Ref!$B$36,INDEX(Ranks!$1:$1048576,$A504,AB$1))","v":""},{"$f":"IF($A504=\"N/A\",Ref!$B$36,INDEX(Ranks!$1:$1048576,$A504,AC$1))","v":""},{"$f":"IF($A504=\"N/A\",Ref!$B$36,INDEX(Ranks!$1:$1048576,$A504,AD$1))","v":""},{"$f":"IF($A504=\"N/A\",Ref!$B$36,INDEX(Ranks!$1:$1048576,$A504,AE$1))","v":""},{"$f":"IF($A504=\"N/A\",Ref!$B$36,INDEX(Ranks!$1:$1048576,$A504,AF$1))","v":""},{"$f":"IF($A504=\"N/A\",Ref!$B$36,INDEX(Ranks!$1:$1048576,$A504,AG$1))","v":""},{"$f":"IF($A504=\"N/A\",Ref!$B$36,INDEX(Ranks!$1:$1048576,$A504,AH$1))","v":""},{"$f":"IF($A504=\"N/A\",Ref!$B$36,INDEX(Ranks!$1:$1048576,$A504,AI$1))","v":""},{"$f":"IF($A504=\"N/A\",Ref!$B$36,INDEX(Ranks!$1:$1048576,$A504,AJ$1))","v":""},{"$f":"IF($A504=\"N/A\",Ref!$B$36,INDEX(Ranks!$1:$1048576,$A504,AK$1))","v":""},{"$f":"IF($A504=\"N/A\",Ref!$B$36,INDEX(Ranks!$1:$1048576,$A504,AL$1))","v":""},{"$f":"IF($A504=\"N/A\",Ref!$B$36,INDEX(Ranks!$1:$1048576,$A504,AM$1))","v":""},{"$f":"IF($A504=\"N/A\",Ref!$B$36,INDEX(Ranks!$1:$1048576,$A504,AN$1))","v":""},{"$f":"IF($A504=\"N/A\",Ref!$B$36,INDEX(Ranks!$1:$1048576,$A504,AO$1))","v":""},{"$f":"IF($A504=\"N/A\",Ref!$B$36,INDEX(Ranks!$1:$1048576,$A504,AP$1))","v":""},{"$f":"IF($A504=\"N/A\",Ref!$B$36,INDEX(Ranks!$1:$1048576,$A504,AQ$1))","v":""},{"$f":"IF($A504=\"N/A\",Ref!$B$36,INDEX(Ranks!$1:$1048576,$A504,AR$1))","v":""},{"$f":"IF($A504=\"N/A\",Ref!$B$36,INDEX(Ranks!$1:$1048576,$A504,AS$1))","v":""},{"$f":"IF($A504=\"N/A\",Ref!$B$36,INDEX(Ranks!$1:$1048576,$A504,AT$1))","v":""},{"$f":"IF($A504=\"N/A\",Ref!$B$36,INDEX(Ranks!$1:$1048576,$A504,AU$1))","v":""},{"$f":"IF($A504=\"N/A\",Ref!$B$36,INDEX(Ranks!$1:$1048576,$A504,AV$1))","v":""},{"$f":"IF($A504=\"N/A\",Ref!$B$36,INDEX(Ranks!$1:$1048576,$A504,AW$1))","v":""},{"$f":"IF($A504=\"N/A\",Ref!$B$36,INDEX(Ranks!$1:$1048576,$A504,AX$1))","v":""},{"$f":"IF($A504=\"N/A\",Ref!$B$36,INDEX(Ranks!$1:$1048576,$A504,AY$1))","v":""},{"$f":"IF($A504=\"N/A\",Ref!$B$36,INDEX(Ranks!$1:$1048576,$A504,AZ$1))","v":""},{"$f":"IF($A504=\"N/A\",Ref!$B$36,INDEX(Ranks!$1:$1048576,$A504,BA$1))","v":""},{"$f":"IF($A504=\"N/A\",Ref!$B$36,INDEX(Ranks!$1:$1048576,$A504,BB$1))","v":""},{"$f":"IF($A504=\"N/A\",Ref!$B$36,INDEX(Ranks!$1:$1048576,$A504,BC$1))","v":""},{"$f":"IF($A504=\"N/A\",Ref!$B$36,INDEX(Ranks!$1:$1048576,$A504,BD$1))","v":""},{"$f":"IF($A504=\"N/A\",Ref!$B$36,INDEX(Ranks!$1:$1048576,$A504,BE$1))","v":""},{"$f":"IF($A504=\"N/A\",Ref!$B$36,INDEX(Ranks!$1:$1048576,$A504,BF$1))","v":""},{"$f":"IF($A504=\"N/A\",Ref!$B$36,INDEX(Ranks!$1:$1048576,$A504,BG$1))","v":""},{"$f":"IF($A504=\"N/A\",Ref!$B$36,INDEX(Ranks!$1:$1048576,$A504,BH$1))","v":""},{"$f":"IF($A504=\"N/A\",Ref!$B$36,INDEX(Ranks!$1:$1048576,$A504,BI$1))","v":""},{"$f":"IF($A504=\"N/A\",Ref!$B$36,INDEX(Ranks!$1:$1048576,$A504,BJ$1))","v":""},{"$f":"IF($A504=\"N/A\",Ref!$B$36,INDEX(Ranks!$1:$1048576,$A504,BK$1))","v":""},{"$f":"IF($A504=\"N/A\",Ref!$B$36,INDEX(Ranks!$1:$1048576,$A504,BL$1))","v":""},{"$f":"IF($A504=\"N/A\",Ref!$B$36,INDEX(Ranks!$1:$1048576,$A504,BM$1))","v":""},{"$f":"IF($A504=\"N/A\",Ref!$B$36,INDEX(Ranks!$1:$1048576,$A504,BN$1))","v":""},{"$f":"IF($A504=\"N/A\",Ref!$B$36,INDEX(Ranks!$1:$1048576,$A504,BO$1))","v":""},{"$f":"IF($A504=\"N/A\",Ref!$B$36,INDEX(Ranks!$1:$1048576,$A504,BP$1))","v":""},{"$f":"IF($A504=\"N/A\",Ref!$B$36,INDEX(Ranks!$1:$1048576,$A504,BQ$1))","v":""},{"$f":"IF($A504=\"N/A\",Ref!$B$36,INDEX(Ranks!$1:$1048576,$A504,BR$1))","v":""},{"$f":"IF($A504=\"N/A\",Ref!$B$36,INDEX(Ranks!$1:$1048576,$A504,BS$1))","v":""},{"$f":"IF($A504=\"N/A\",Ref!$B$36,INDEX(Ranks!$1:$1048576,$A504,BT$1))","v":""},{"$f":"IF($A504=\"N/A\",Ref!$B$36,INDEX(Ranks!$1:$1048576,$A504,BU$1))","v":""},{"$f":"IF($A504=\"N/A\",Ref!$B$36,INDEX(Ranks!$1:$1048576,$A504,BV$1))","v":""},{"$f":"IF($A504=\"N/A\",Ref!$B$36,INDEX(Ranks!$1:$1048576,$A504,BW$1))","v":""},{"$f":"IF($A504=\"N/A\",Ref!$B$36,INDEX(Ranks!$1:$1048576,$A504,BX$1))","v":""},{"$f":"IF($A504=\"N/A\",Ref!$B$36,INDEX(Ranks!$1:$1048576,$A504,BY$1))","v":""},{"$f":"IF($A504=\"N/A\",Ref!$B$36,INDEX(Ranks!$1:$1048576,$A504,BZ$1))","v":""},{"$f":"IF($A504=\"N/A\",Ref!$B$36,INDEX(Ranks!$1:$1048576,$A504,CA$1))","v":""},{"$f":"IF($A504=\"N/A\",Ref!$B$36,INDEX(Ranks!$1:$1048576,$A504,CB$1))","v":""},{"$f":"IF($A504=\"N/A\",Ref!$B$36,INDEX(Ranks!$1:$1048576,$A504,CC$1))","v":""},{"$f":"IF($A504=\"N/A\",Ref!$B$36,INDEX(Ranks!$1:$1048576,$A504,CD$1))","v":""},{"$f":"IF($A504=\"N/A\",Ref!$B$36,INDEX(Ranks!$1:$1048576,$A504,CE$1))","v":""},{"$f":"IF($A504=\"N/A\",Ref!$B$36,INDEX(Ranks!$1:$1048576,$A504,CF$1))","v":""},{"$f":"IF($A504=\"N/A\",Ref!$B$36,INDEX(Ranks!$1:$1048576,$A504,CG$1))","v":""},{"$f":"IF($A504=\"N/A\",Ref!$B$36,INDEX(Ranks!$1:$1048576,$A504,CH$1))","v":""},{"$f":"IF($A504=\"N/A\",Ref!$B$36,INDEX(Ranks!$1:$1048576,$A504,CI$1))","v":""},{"$f":"IF($A504=\"N/A\",Ref!$B$36,INDEX(Ranks!$1:$1048576,$A504,CJ$1))","v":""},{"$f":"IF($A504=\"N/A\",Ref!$B$36,INDEX(Ranks!$1:$1048576,$A504,CK$1))","v":""},{"$f":"IF($A504=\"N/A\",Ref!$B$36,INDEX(Ranks!$1:$1048576,$A504,CL$1))","v":""},{"$f":"IF($A504=\"N/A\",Ref!$B$36,INDEX(Ranks!$1:$1048576,$A504,CM$1))","v":""},{"$f":"IF($A504=\"N/A\",Ref!$B$36,INDEX(Ranks!$1:$1048576,$A504,CN$1))","v":""},{"$f":"IF($A504=\"N/A\",Ref!$B$36,INDEX(Ranks!$1:$1048576,$A504,CO$1))","v":""},{"$f":"IF($A504=\"N/A\",Ref!$B$36,INDEX(Ranks!$1:$1048576,$A504,CP$1))","v":""},{"$f":"IF($A504=\"N/A\",Ref!$B$36,INDEX(Ranks!$1:$1048576,$A504,CQ$1))","v":""},{"$f":"IF($A504=\"N/A\",Ref!$B$36,INDEX(Ranks!$1:$1048576,$A504,CR$1))","v":""},{"$f":"IF($A504=\"N/A\",Ref!$B$36,INDEX(Ranks!$1:$1048576,$A504,CS$1))","v":""},{"$f":"IF($A504=\"N/A\",Ref!$B$36,INDEX(Ranks!$1:$1048576,$A504,CT$1))","v":""},{"$f":"IF($A504=\"N/A\",Ref!$B$36,INDEX(Ranks!$1:$1048576,$A504,CU$1))","v":""},{"$f":"IF($A504=\"N/A\",Ref!$B$36,INDEX(Ranks!$1:$1048576,$A504,CV$1))","v":""},{"$f":"IF($A504=\"N/A\",Ref!$B$36,INDEX(Ranks!$1:$1048576,$A504,CW$1))","v":""},{"$f":"IF($A504=\"N/A\",Ref!$B$36,INDEX(Ranks!$1:$1048576,$A504,CX$1))","v":""},{"$f":"IF($A504=\"N/A\",Ref!$B$36,INDEX(Ranks!$1:$1048576,$A504,CY$1))","v":""},{"$f":"IF($A504=\"N/A\",Ref!$B$36,INDEX(Ranks!$1:$1048576,$A504,CZ$1))","v":""},{"$f":"IF($A504=\"N/A\",Ref!$B$36,INDEX(Ranks!$1:$1048576,$A504,DA$1))","v":""},{"$f":"IF($A504=\"N/A\",Ref!$B$36,INDEX(Ranks!$1:$1048576,$A504,DB$1))","v":""},{"$f":"IF($A504=\"N/A\",Ref!$B$36,INDEX(Ranks!$1:$1048576,$A504,DC$1))","v":""},{"$f":"IF($A504=\"N/A\",Ref!$B$36,INDEX(Ranks!$1:$1048576,$A504,DD$1))","v":""},{"$f":"IF($A504=\"N/A\",Ref!$B$36,INDEX(Ranks!$1:$1048576,$A504,DE$1))","v":""},{"$f":"IF($A504=\"N/A\",Ref!$B$36,INDEX(Ranks!$1:$1048576,$A504,DF$1))","v":""},{"$f":"IF($A504=\"N/A\",Ref!$B$36,INDEX(Ranks!$1:$1048576,$A504,DG$1))","v":""},{"$f":"IF($A504=\"N/A\",Ref!$B$36,INDEX(Ranks!$1:$1048576,$A504,DH$1))","v":""},{"$f":"IF($A504=\"N/A\",Ref!$B$36,INDEX(Ranks!$1:$1048576,$A504,DI$1))","v":""},{"$f":"IF($A504=\"N/A\",Ref!$B$36,INDEX(Ranks!$1:$1048576,$A504,DJ$1))","v":""},{"$f":"IF($A504=\"N/A\",Ref!$B$36,INDEX(Ranks!$1:$1048576,$A504,DK$1))","v":""},{"$f":"IF($A504=\"N/A\",Ref!$B$36,INDEX(Ranks!$1:$1048576,$A504,DL$1))","v":""},{"$f":"IF($A504=\"N/A\",Ref!$B$36,INDEX(Ranks!$1:$1048576,$A504,DM$1))","v":""},{"$f":"IF($A504=\"N/A\",Ref!$B$36,INDEX(Ranks!$1:$1048576,$A504,DN$1))","v":""},{"$f":"IF($A504=\"N/A\",Ref!$B$36,INDEX(Ranks!$1:$1048576,$A504,DO$1))","v":""},{"$f":"IF($A504=\"N/A\",Ref!$B$36,INDEX(Ranks!$1:$1048576,$A504,DP$1))","v":""},{"$f":"IF($A504=\"N/A\",Ref!$B$36,INDEX(Ranks!$1:$1048576,$A504,DQ$1))","v":""},{"$f":"IF($A504=\"N/A\",Ref!$B$36,INDEX(Ranks!$1:$1048576,$A504,DR$1))","v":""},{"$f":"IF($A504=\"N/A\",Ref!$B$36,INDEX(Ranks!$1:$1048576,$A504,DS$1))","v":""},{"$f":"IF($A504=\"N/A\",Ref!$B$36,INDEX(Ranks!$1:$1048576,$A504,DT$1))","v":""},{"$f":"IF($A504=\"N/A\",Ref!$B$36,INDEX(Ranks!$1:$1048576,$A504,DU$1))","v":""},{"$f":"IF($A504=\"N/A\",Ref!$B$36,INDEX(Ranks!$1:$1048576,$A504,DV$1))","v":""},{"$f":"IF($A504=\"N/A\",Ref!$B$36,INDEX(Ranks!$1:$1048576,$A504,DW$1))","v":""},{"$f":"IF($A504=\"N/A\",Ref!$B$36,INDEX(Ranks!$1:$1048576,$A504,DX$1))","v":""},{"$f":"IF($A504=\"N/A\",Ref!$B$36,INDEX(Ranks!$1:$1048576,$A504,DY$1))","v":""},{"$f":"IF($A504=\"N/A\",Ref!$B$36,INDEX(Ranks!$1:$1048576,$A504,DZ$1))","v":""},{"$f":"IF($A504=\"N/A\",Ref!$B$36,INDEX(Ranks!$1:$1048576,$A504,EA$1))","v":""},{"$f":"IF($A504=\"N/A\",Ref!$B$36,INDEX(Ranks!$1:$1048576,$A504,EB$1))","v":""}]
[{"$f":"IFERROR(MATCH('Portfolio Page'!L505,Ranks!L:L,0),\"N/A\")","v":"N/A"},null,{"$f":"IF($A505=\"N/A\",\"\",INDEX(Ranks!$1:$1048576,$A505,C$1))","v":""},{"$f":"IF($A505=\"N/A\",Ref!$B$36,INDEX(Ranks!$1:$1048576,$A505,D$1))","v":""},{"$f":"IF($A505=\"N/A\",Ref!$B$36,INDEX(Ranks!$1:$1048576,$A505,E$1))","v":""},{"$f":"IF($A505=\"N/A\",\"\",INDEX(Ranks!$1:$1048576,$A505,F$1))","v":""},{"$f":"IF($A505=\"N/A\",\"\",INDEX(Ranks!$1:$1048576,$A505,G$1))","v":""},{"$f":"IF($A505=\"N/A\",\"\",INDEX(Ranks!$1:$1048576,$A505,H$1))","v":""},{"$f":"IF($A505=\"N/A\",\"\",INDEX(Ranks!$1:$1048576,$A505,I$1))","v":""},{"$f":"IF($A505=\"N/A\",\"\",INDEX(Ranks!$1:$1048576,$A505,J$1))","v":""},{"$f":"IF($A505=\"N/A\",\"\",INDEX(Ranks!$1:$1048576,$A505,K$1))","v":""},null,{"$f":"IF($A505=\"N/A\",Ref!$B$36,INDEX(Ranks!$1:$1048576,$A505,M$1))","v":""},{"$f":"IF($A505=\"N/A\",Ref!$B$36,INDEX(Ranks!$1:$1048576,$A505,N$1))","v":""},{"$f":"IF($A505=\"N/A\",Ref!$B$36,INDEX(Ranks!$1:$1048576,$A505,O$1))","v":""},{"$f":"IF($A505=\"N/A\",Ref!$B$36,INDEX(Ranks!$1:$1048576,$A505,P$1))","v":""},{"$f":"IF($A505=\"N/A\",Ref!$B$36,INDEX(Ranks!$1:$1048576,$A505,Q$1))","v":""},{"$f":"IF($A505=\"N/A\",Ref!$B$36,INDEX(Ranks!$1:$1048576,$A505,R$1))","v":""},{"$f":"IF($A505=\"N/A\",Ref!$B$36,INDEX(Ranks!$1:$1048576,$A505,S$1))","v":""},{"$f":"IF($A505=\"N/A\",Ref!$B$36,INDEX(Ranks!$1:$1048576,$A505,T$1))","v":""},{"$f":"IF($A505=\"N/A\",Ref!$B$36,INDEX(Ranks!$1:$1048576,$A505,U$1))","v":""},{"$f":"IF($A505=\"N/A\",Ref!$B$36,INDEX(Ranks!$1:$1048576,$A505,V$1))","v":""},{"$f":"IF($A505=\"N/A\",Ref!$B$36,INDEX(Ranks!$1:$1048576,$A505,W$1))","v":""},{"$f":"IF($A505=\"N/A\",Ref!$B$36,INDEX(Ranks!$1:$1048576,$A505,X$1))","v":""},{"$f":"IF($A505=\"N/A\",Ref!$B$36,INDEX(Ranks!$1:$1048576,$A505,Y$1))","v":""},{"$f":"IF($A505=\"N/A\",Ref!$B$36,INDEX(Ranks!$1:$1048576,$A505,Z$1))","v":""},{"$f":"IF($A505=\"N/A\",Ref!$B$36,INDEX(Ranks!$1:$1048576,$A505,AA$1))","v":""},{"$f":"IF($A505=\"N/A\",Ref!$B$36,INDEX(Ranks!$1:$1048576,$A505,AB$1))","v":""},{"$f":"IF($A505=\"N/A\",Ref!$B$36,INDEX(Ranks!$1:$1048576,$A505,AC$1))","v":""},{"$f":"IF($A505=\"N/A\",Ref!$B$36,INDEX(Ranks!$1:$1048576,$A505,AD$1))","v":""},{"$f":"IF($A505=\"N/A\",Ref!$B$36,INDEX(Ranks!$1:$1048576,$A505,AE$1))","v":""},{"$f":"IF($A505=\"N/A\",Ref!$B$36,INDEX(Ranks!$1:$1048576,$A505,AF$1))","v":""},{"$f":"IF($A505=\"N/A\",Ref!$B$36,INDEX(Ranks!$1:$1048576,$A505,AG$1))","v":""},{"$f":"IF($A505=\"N/A\",Ref!$B$36,INDEX(Ranks!$1:$1048576,$A505,AH$1))","v":""},{"$f":"IF($A505=\"N/A\",Ref!$B$36,INDEX(Ranks!$1:$1048576,$A505,AI$1))","v":""},{"$f":"IF($A505=\"N/A\",Ref!$B$36,INDEX(Ranks!$1:$1048576,$A505,AJ$1))","v":""},{"$f":"IF($A505=\"N/A\",Ref!$B$36,INDEX(Ranks!$1:$1048576,$A505,AK$1))","v":""},{"$f":"IF($A505=\"N/A\",Ref!$B$36,INDEX(Ranks!$1:$1048576,$A505,AL$1))","v":""},{"$f":"IF($A505=\"N/A\",Ref!$B$36,INDEX(Ranks!$1:$1048576,$A505,AM$1))","v":""},{"$f":"IF($A505=\"N/A\",Ref!$B$36,INDEX(Ranks!$1:$1048576,$A505,AN$1))","v":""},{"$f":"IF($A505=\"N/A\",Ref!$B$36,INDEX(Ranks!$1:$1048576,$A505,AO$1))","v":""},{"$f":"IF($A505=\"N/A\",Ref!$B$36,INDEX(Ranks!$1:$1048576,$A505,AP$1))","v":""},{"$f":"IF($A505=\"N/A\",Ref!$B$36,INDEX(Ranks!$1:$1048576,$A505,AQ$1))","v":""},{"$f":"IF($A505=\"N/A\",Ref!$B$36,INDEX(Ranks!$1:$1048576,$A505,AR$1))","v":""},{"$f":"IF($A505=\"N/A\",Ref!$B$36,INDEX(Ranks!$1:$1048576,$A505,AS$1))","v":""},{"$f":"IF($A505=\"N/A\",Ref!$B$36,INDEX(Ranks!$1:$1048576,$A505,AT$1))","v":""},{"$f":"IF($A505=\"N/A\",Ref!$B$36,INDEX(Ranks!$1:$1048576,$A505,AU$1))","v":""},{"$f":"IF($A505=\"N/A\",Ref!$B$36,INDEX(Ranks!$1:$1048576,$A505,AV$1))","v":""},{"$f":"IF($A505=\"N/A\",Ref!$B$36,INDEX(Ranks!$1:$1048576,$A505,AW$1))","v":""},{"$f":"IF($A505=\"N/A\",Ref!$B$36,INDEX(Ranks!$1:$1048576,$A505,AX$1))","v":""},{"$f":"IF($A505=\"N/A\",Ref!$B$36,INDEX(Ranks!$1:$1048576,$A505,AY$1))","v":""},{"$f":"IF($A505=\"N/A\",Ref!$B$36,INDEX(Ranks!$1:$1048576,$A505,AZ$1))","v":""},{"$f":"IF($A505=\"N/A\",Ref!$B$36,INDEX(Ranks!$1:$1048576,$A505,BA$1))","v":""},{"$f":"IF($A505=\"N/A\",Ref!$B$36,INDEX(Ranks!$1:$1048576,$A505,BB$1))","v":""},{"$f":"IF($A505=\"N/A\",Ref!$B$36,INDEX(Ranks!$1:$1048576,$A505,BC$1))","v":""},{"$f":"IF($A505=\"N/A\",Ref!$B$36,INDEX(Ranks!$1:$1048576,$A505,BD$1))","v":""},{"$f":"IF($A505=\"N/A\",Ref!$B$36,INDEX(Ranks!$1:$1048576,$A505,BE$1))","v":""},{"$f":"IF($A505=\"N/A\",Ref!$B$36,INDEX(Ranks!$1:$1048576,$A505,BF$1))","v":""},{"$f":"IF($A505=\"N/A\",Ref!$B$36,INDEX(Ranks!$1:$1048576,$A505,BG$1))","v":""},{"$f":"IF($A505=\"N/A\",Ref!$B$36,INDEX(Ranks!$1:$1048576,$A505,BH$1))","v":""},{"$f":"IF($A505=\"N/A\",Ref!$B$36,INDEX(Ranks!$1:$1048576,$A505,BI$1))","v":""},{"$f":"IF($A505=\"N/A\",Ref!$B$36,INDEX(Ranks!$1:$1048576,$A505,BJ$1))","v":""},{"$f":"IF($A505=\"N/A\",Ref!$B$36,INDEX(Ranks!$1:$1048576,$A505,BK$1))","v":""},{"$f":"IF($A505=\"N/A\",Ref!$B$36,INDEX(Ranks!$1:$1048576,$A505,BL$1))","v":""},{"$f":"IF($A505=\"N/A\",Ref!$B$36,INDEX(Ranks!$1:$1048576,$A505,BM$1))","v":""},{"$f":"IF($A505=\"N/A\",Ref!$B$36,INDEX(Ranks!$1:$1048576,$A505,BN$1))","v":""},{"$f":"IF($A505=\"N/A\",Ref!$B$36,INDEX(Ranks!$1:$1048576,$A505,BO$1))","v":""},{"$f":"IF($A505=\"N/A\",Ref!$B$36,INDEX(Ranks!$1:$1048576,$A505,BP$1))","v":""},{"$f":"IF($A505=\"N/A\",Ref!$B$36,INDEX(Ranks!$1:$1048576,$A505,BQ$1))","v":""},{"$f":"IF($A505=\"N/A\",Ref!$B$36,INDEX(Ranks!$1:$1048576,$A505,BR$1))","v":""},{"$f":"IF($A505=\"N/A\",Ref!$B$36,INDEX(Ranks!$1:$1048576,$A505,BS$1))","v":""},{"$f":"IF($A505=\"N/A\",Ref!$B$36,INDEX(Ranks!$1:$1048576,$A505,BT$1))","v":""},{"$f":"IF($A505=\"N/A\",Ref!$B$36,INDEX(Ranks!$1:$1048576,$A505,BU$1))","v":""},{"$f":"IF($A505=\"N/A\",Ref!$B$36,INDEX(Ranks!$1:$1048576,$A505,BV$1))","v":""},{"$f":"IF($A505=\"N/A\",Ref!$B$36,INDEX(Ranks!$1:$1048576,$A505,BW$1))","v":""},{"$f":"IF($A505=\"N/A\",Ref!$B$36,INDEX(Ranks!$1:$1048576,$A505,BX$1))","v":""},{"$f":"IF($A505=\"N/A\",Ref!$B$36,INDEX(Ranks!$1:$1048576,$A505,BY$1))","v":""},{"$f":"IF($A505=\"N/A\",Ref!$B$36,INDEX(Ranks!$1:$1048576,$A505,BZ$1))","v":""},{"$f":"IF($A505=\"N/A\",Ref!$B$36,INDEX(Ranks!$1:$1048576,$A505,CA$1))","v":""},{"$f":"IF($A505=\"N/A\",Ref!$B$36,INDEX(Ranks!$1:$1048576,$A505,CB$1))","v":""},{"$f":"IF($A505=\"N/A\",Ref!$B$36,INDEX(Ranks!$1:$1048576,$A505,CC$1))","v":""},{"$f":"IF($A505=\"N/A\",Ref!$B$36,INDEX(Ranks!$1:$1048576,$A505,CD$1))","v":""},{"$f":"IF($A505=\"N/A\",Ref!$B$36,INDEX(Ranks!$1:$1048576,$A505,CE$1))","v":""},{"$f":"IF($A505=\"N/A\",Ref!$B$36,INDEX(Ranks!$1:$1048576,$A505,CF$1))","v":""},{"$f":"IF($A505=\"N/A\",Ref!$B$36,INDEX(Ranks!$1:$1048576,$A505,CG$1))","v":""},{"$f":"IF($A505=\"N/A\",Ref!$B$36,INDEX(Ranks!$1:$1048576,$A505,CH$1))","v":""},{"$f":"IF($A505=\"N/A\",Ref!$B$36,INDEX(Ranks!$1:$1048576,$A505,CI$1))","v":""},{"$f":"IF($A505=\"N/A\",Ref!$B$36,INDEX(Ranks!$1:$1048576,$A505,CJ$1))","v":""},{"$f":"IF($A505=\"N/A\",Ref!$B$36,INDEX(Ranks!$1:$1048576,$A505,CK$1))","v":""},{"$f":"IF($A505=\"N/A\",Ref!$B$36,INDEX(Ranks!$1:$1048576,$A505,CL$1))","v":""},{"$f":"IF($A505=\"N/A\",Ref!$B$36,INDEX(Ranks!$1:$1048576,$A505,CM$1))","v":""},{"$f":"IF($A505=\"N/A\",Ref!$B$36,INDEX(Ranks!$1:$1048576,$A505,CN$1))","v":""},{"$f":"IF($A505=\"N/A\",Ref!$B$36,INDEX(Ranks!$1:$1048576,$A505,CO$1))","v":""},{"$f":"IF($A505=\"N/A\",Ref!$B$36,INDEX(Ranks!$1:$1048576,$A505,CP$1))","v":""},{"$f":"IF($A505=\"N/A\",Ref!$B$36,INDEX(Ranks!$1:$1048576,$A505,CQ$1))","v":""},{"$f":"IF($A505=\"N/A\",Ref!$B$36,INDEX(Ranks!$1:$1048576,$A505,CR$1))","v":""},{"$f":"IF($A505=\"N/A\",Ref!$B$36,INDEX(Ranks!$1:$1048576,$A505,CS$1))","v":""},{"$f":"IF($A505=\"N/A\",Ref!$B$36,INDEX(Ranks!$1:$1048576,$A505,CT$1))","v":""},{"$f":"IF($A505=\"N/A\",Ref!$B$36,INDEX(Ranks!$1:$1048576,$A505,CU$1))","v":""},{"$f":"IF($A505=\"N/A\",Ref!$B$36,INDEX(Ranks!$1:$1048576,$A505,CV$1))","v":""},{"$f":"IF($A505=\"N/A\",Ref!$B$36,INDEX(Ranks!$1:$1048576,$A505,CW$1))","v":""},{"$f":"IF($A505=\"N/A\",Ref!$B$36,INDEX(Ranks!$1:$1048576,$A505,CX$1))","v":""},{"$f":"IF($A505=\"N/A\",Ref!$B$36,INDEX(Ranks!$1:$1048576,$A505,CY$1))","v":""},{"$f":"IF($A505=\"N/A\",Ref!$B$36,INDEX(Ranks!$1:$1048576,$A505,CZ$1))","v":""},{"$f":"IF($A505=\"N/A\",Ref!$B$36,INDEX(Ranks!$1:$1048576,$A505,DA$1))","v":""},{"$f":"IF($A505=\"N/A\",Ref!$B$36,INDEX(Ranks!$1:$1048576,$A505,DB$1))","v":""},{"$f":"IF($A505=\"N/A\",Ref!$B$36,INDEX(Ranks!$1:$1048576,$A505,DC$1))","v":""},{"$f":"IF($A505=\"N/A\",Ref!$B$36,INDEX(Ranks!$1:$1048576,$A505,DD$1))","v":""},{"$f":"IF($A505=\"N/A\",Ref!$B$36,INDEX(Ranks!$1:$1048576,$A505,DE$1))","v":""},{"$f":"IF($A505=\"N/A\",Ref!$B$36,INDEX(Ranks!$1:$1048576,$A505,DF$1))","v":""},{"$f":"IF($A505=\"N/A\",Ref!$B$36,INDEX(Ranks!$1:$1048576,$A505,DG$1))","v":""},{"$f":"IF($A505=\"N/A\",Ref!$B$36,INDEX(Ranks!$1:$1048576,$A505,DH$1))","v":""},{"$f":"IF($A505=\"N/A\",Ref!$B$36,INDEX(Ranks!$1:$1048576,$A505,DI$1))","v":""},{"$f":"IF($A505=\"N/A\",Ref!$B$36,INDEX(Ranks!$1:$1048576,$A505,DJ$1))","v":""},{"$f":"IF($A505=\"N/A\",Ref!$B$36,INDEX(Ranks!$1:$1048576,$A505,DK$1))","v":""},{"$f":"IF($A505=\"N/A\",Ref!$B$36,INDEX(Ranks!$1:$1048576,$A505,DL$1))","v":""},{"$f":"IF($A505=\"N/A\",Ref!$B$36,INDEX(Ranks!$1:$1048576,$A505,DM$1))","v":""},{"$f":"IF($A505=\"N/A\",Ref!$B$36,INDEX(Ranks!$1:$1048576,$A505,DN$1))","v":""},{"$f":"IF($A505=\"N/A\",Ref!$B$36,INDEX(Ranks!$1:$1048576,$A505,DO$1))","v":""},{"$f":"IF($A505=\"N/A\",Ref!$B$36,INDEX(Ranks!$1:$1048576,$A505,DP$1))","v":""},{"$f":"IF($A505=\"N/A\",Ref!$B$36,INDEX(Ranks!$1:$1048576,$A505,DQ$1))","v":""},{"$f":"IF($A505=\"N/A\",Ref!$B$36,INDEX(Ranks!$1:$1048576,$A505,DR$1))","v":""},{"$f":"IF($A505=\"N/A\",Ref!$B$36,INDEX(Ranks!$1:$1048576,$A505,DS$1))","v":""},{"$f":"IF($A505=\"N/A\",Ref!$B$36,INDEX(Ranks!$1:$1048576,$A505,DT$1))","v":""},{"$f":"IF($A505=\"N/A\",Ref!$B$36,INDEX(Ranks!$1:$1048576,$A505,DU$1))","v":""},{"$f":"IF($A505=\"N/A\",Ref!$B$36,INDEX(Ranks!$1:$1048576,$A505,DV$1))","v":""},{"$f":"IF($A505=\"N/A\",Ref!$B$36,INDEX(Ranks!$1:$1048576,$A505,DW$1))","v":""},{"$f":"IF($A505=\"N/A\",Ref!$B$36,INDEX(Ranks!$1:$1048576,$A505,DX$1))","v":""},{"$f":"IF($A505=\"N/A\",Ref!$B$36,INDEX(Ranks!$1:$1048576,$A505,DY$1))","v":""},{"$f":"IF($A505=\"N/A\",Ref!$B$36,INDEX(Ranks!$1:$1048576,$A505,DZ$1))","v":""},{"$f":"IF($A505=\"N/A\",Ref!$B$36,INDEX(Ranks!$1:$1048576,$A505,EA$1))","v":""},{"$f":"IF($A505=\"N/A\",Ref!$B$36,INDEX(Ranks!$1:$1048576,$A505,EB$1))","v":""}]
[{"$f":"IFERROR(MATCH('Portfolio Page'!L506,Ranks!L:L,0),\"N/A\")","v":"N/A"},null,{"$f":"IF($A506=\"N/A\",\"\",INDEX(Ranks!$1:$1048576,$A506,C$1))","v":""},{"$f":"IF($A506=\"N/A\",Ref!$B$36,INDEX(Ranks!$1:$1048576,$A506,D$1))","v":""},{"$f":"IF($A506=\"N/A\",Ref!$B$36,INDEX(Ranks!$1:$1048576,$A506,E$1))","v":""},{"$f":"IF($A506=\"N/A\",\"\",INDEX(Ranks!$1:$1048576,$A506,F$1))","v":""},{"$f":"IF($A506=\"N/A\",\"\",INDEX(Ranks!$1:$1048576,$A506,G$1))","v":""},{"$f":"IF($A506=\"N/A\",\"\",INDEX(Ranks!$1:$1048576,$A506,H$1))","v":""},{"$f":"IF($A506=\"N/A\",\"\",INDEX(Ranks!$1:$1048576,$A506,I$1))","v":""},{"$f":"IF($A506=\"N/A\",\"\",INDEX(Ranks!$1:$1048576,$A506,J$1))","v":""},{"$f":"IF($A506=\"N/A\",\"\",INDEX(Ranks!$1:$1048576,$A506,K$1))","v":""},null,{"$f":"IF($A506=\"N/A\",Ref!$B$36,INDEX(Ranks!$1:$1048576,$A506,M$1))","v":""},{"$f":"IF($A506=\"N/A\",Ref!$B$36,INDEX(Ranks!$1:$1048576,$A506,N$1))","v":""},{"$f":"IF($A506=\"N/A\",Ref!$B$36,INDEX(Ranks!$1:$1048576,$A506,O$1))","v":""},{"$f":"IF($A506=\"N/A\",Ref!$B$36,INDEX(Ranks!$1:$1048576,$A506,P$1))","v":""},{"$f":"IF($A506=\"N/A\",Ref!$B$36,INDEX(Ranks!$1:$1048576,$A506,Q$1))","v":""},{"$f":"IF($A506=\"N/A\",Ref!$B$36,INDEX(Ranks!$1:$1048576,$A506,R$1))","v":""},{"$f":"IF($A506=\"N/A\",Ref!$B$36,INDEX(Ranks!$1:$1048576,$A506,S$1))","v":""},{"$f":"IF($A506=\"N/A\",Ref!$B$36,INDEX(Ranks!$1:$1048576,$A506,T$1))","v":""},{"$f":"IF($A506=\"N/A\",Ref!$B$36,INDEX(Ranks!$1:$1048576,$A506,U$1))","v":""},{"$f":"IF($A506=\"N/A\",Ref!$B$36,INDEX(Ranks!$1:$1048576,$A506,V$1))","v":""},{"$f":"IF($A506=\"N/A\",Ref!$B$36,INDEX(Ranks!$1:$1048576,$A506,W$1))","v":""},{"$f":"IF($A506=\"N/A\",Ref!$B$36,INDEX(Ranks!$1:$1048576,$A506,X$1))","v":""},{"$f":"IF($A506=\"N/A\",Ref!$B$36,INDEX(Ranks!$1:$1048576,$A506,Y$1))","v":""},{"$f":"IF($A506=\"N/A\",Ref!$B$36,INDEX(Ranks!$1:$1048576,$A506,Z$1))","v":""},{"$f":"IF($A506=\"N/A\",Ref!$B$36,INDEX(Ranks!$1:$1048576,$A506,AA$1))","v":""},{"$f":"IF($A506=\"N/A\",Ref!$B$36,INDEX(Ranks!$1:$1048576,$A506,AB$1))","v":""},{"$f":"IF($A506=\"N/A\",Ref!$B$36,INDEX(Ranks!$1:$1048576,$A506,AC$1))","v":""},{"$f":"IF($A506=\"N/A\",Ref!$B$36,INDEX(Ranks!$1:$1048576,$A506,AD$1))","v":""},{"$f":"IF($A506=\"N/A\",Ref!$B$36,INDEX(Ranks!$1:$1048576,$A506,AE$1))","v":""},{"$f":"IF($A506=\"N/A\",Ref!$B$36,INDEX(Ranks!$1:$1048576,$A506,AF$1))","v":""},{"$f":"IF($A506=\"N/A\",Ref!$B$36,INDEX(Ranks!$1:$1048576,$A506,AG$1))","v":""},{"$f":"IF($A506=\"N/A\",Ref!$B$36,INDEX(Ranks!$1:$1048576,$A506,AH$1))","v":""},{"$f":"IF($A506=\"N/A\",Ref!$B$36,INDEX(Ranks!$1:$1048576,$A506,AI$1))","v":""},{"$f":"IF($A506=\"N/A\",Ref!$B$36,INDEX(Ranks!$1:$1048576,$A506,AJ$1))","v":""},{"$f":"IF($A506=\"N/A\",Ref!$B$36,INDEX(Ranks!$1:$1048576,$A506,AK$1))","v":""},{"$f":"IF($A506=\"N/A\",Ref!$B$36,INDEX(Ranks!$1:$1048576,$A506,AL$1))","v":""},{"$f":"IF($A506=\"N/A\",Ref!$B$36,INDEX(Ranks!$1:$1048576,$A506,AM$1))","v":""},{"$f":"IF($A506=\"N/A\",Ref!$B$36,INDEX(Ranks!$1:$1048576,$A506,AN$1))","v":""},{"$f":"IF($A506=\"N/A\",Ref!$B$36,INDEX(Ranks!$1:$1048576,$A506,AO$1))","v":""},{"$f":"IF($A506=\"N/A\",Ref!$B$36,INDEX(Ranks!$1:$1048576,$A506,AP$1))","v":""},{"$f":"IF($A506=\"N/A\",Ref!$B$36,INDEX(Ranks!$1:$1048576,$A506,AQ$1))","v":""},{"$f":"IF($A506=\"N/A\",Ref!$B$36,INDEX(Ranks!$1:$1048576,$A506,AR$1))","v":""},{"$f":"IF($A506=\"N/A\",Ref!$B$36,INDEX(Ranks!$1:$1048576,$A506,AS$1))","v":""},{"$f":"IF($A506=\"N/A\",Ref!$B$36,INDEX(Ranks!$1:$1048576,$A506,AT$1))","v":""},{"$f":"IF($A506=\"N/A\",Ref!$B$36,INDEX(Ranks!$1:$1048576,$A506,AU$1))","v":""},{"$f":"IF($A506=\"N/A\",Ref!$B$36,INDEX(Ranks!$1:$1048576,$A506,AV$1))","v":""},{"$f":"IF($A506=\"N/A\",Ref!$B$36,INDEX(Ranks!$1:$1048576,$A506,AW$1))","v":""},{"$f":"IF($A506=\"N/A\",Ref!$B$36,INDEX(Ranks!$1:$1048576,$A506,AX$1))","v":""},{"$f":"IF($A506=\"N/A\",Ref!$B$36,INDEX(Ranks!$1:$1048576,$A506,AY$1))","v":""},{"$f":"IF($A506=\"N/A\",Ref!$B$36,INDEX(Ranks!$1:$1048576,$A506,AZ$1))","v":""},{"$f":"IF($A506=\"N/A\",Ref!$B$36,INDEX(Ranks!$1:$1048576,$A506,BA$1))","v":""},{"$f":"IF($A506=\"N/A\",Ref!$B$36,INDEX(Ranks!$1:$1048576,$A506,BB$1))","v":""},{"$f":"IF($A506=\"N/A\",Ref!$B$36,INDEX(Ranks!$1:$1048576,$A506,BC$1))","v":""},{"$f":"IF($A506=\"N/A\",Ref!$B$36,INDEX(Ranks!$1:$1048576,$A506,BD$1))","v":""},{"$f":"IF($A506=\"N/A\",Ref!$B$36,INDEX(Ranks!$1:$1048576,$A506,BE$1))","v":""},{"$f":"IF($A506=\"N/A\",Ref!$B$36,INDEX(Ranks!$1:$1048576,$A506,BF$1))","v":""},{"$f":"IF($A506=\"N/A\",Ref!$B$36,INDEX(Ranks!$1:$1048576,$A506,BG$1))","v":""},{"$f":"IF($A506=\"N/A\",Ref!$B$36,INDEX(Ranks!$1:$1048576,$A506,BH$1))","v":""},{"$f":"IF($A506=\"N/A\",Ref!$B$36,INDEX(Ranks!$1:$1048576,$A506,BI$1))","v":""},{"$f":"IF($A506=\"N/A\",Ref!$B$36,INDEX(Ranks!$1:$1048576,$A506,BJ$1))","v":""},{"$f":"IF($A506=\"N/A\",Ref!$B$36,INDEX(Ranks!$1:$1048576,$A506,BK$1))","v":""},{"$f":"IF($A506=\"N/A\",Ref!$B$36,INDEX(Ranks!$1:$1048576,$A506,BL$1))","v":""},{"$f":"IF($A506=\"N/A\",Ref!$B$36,INDEX(Ranks!$1:$1048576,$A506,BM$1))","v":""},{"$f":"IF($A506=\"N/A\",Ref!$B$36,INDEX(Ranks!$1:$1048576,$A506,BN$1))","v":""},{"$f":"IF($A506=\"N/A\",Ref!$B$36,INDEX(Ranks!$1:$1048576,$A506,BO$1))","v":""},{"$f":"IF($A506=\"N/A\",Ref!$B$36,INDEX(Ranks!$1:$1048576,$A506,BP$1))","v":""},{"$f":"IF($A506=\"N/A\",Ref!$B$36,INDEX(Ranks!$1:$1048576,$A506,BQ$1))","v":""},{"$f":"IF($A506=\"N/A\",Ref!$B$36,INDEX(Ranks!$1:$1048576,$A506,BR$1))","v":""},{"$f":"IF($A506=\"N/A\",Ref!$B$36,INDEX(Ranks!$1:$1048576,$A506,BS$1))","v":""},{"$f":"IF($A506=\"N/A\",Ref!$B$36,INDEX(Ranks!$1:$1048576,$A506,BT$1))","v":""},{"$f":"IF($A506=\"N/A\",Ref!$B$36,INDEX(Ranks!$1:$1048576,$A506,BU$1))","v":""},{"$f":"IF($A506=\"N/A\",Ref!$B$36,INDEX(Ranks!$1:$1048576,$A506,BV$1))","v":""},{"$f":"IF($A506=\"N/A\",Ref!$B$36,INDEX(Ranks!$1:$1048576,$A506,BW$1))","v":""},{"$f":"IF($A506=\"N/A\",Ref!$B$36,INDEX(Ranks!$1:$1048576,$A506,BX$1))","v":""},{"$f":"IF($A506=\"N/A\",Ref!$B$36,INDEX(Ranks!$1:$1048576,$A506,BY$1))","v":""},{"$f":"IF($A506=\"N/A\",Ref!$B$36,INDEX(Ranks!$1:$1048576,$A506,BZ$1))","v":""},{"$f":"IF($A506=\"N/A\",Ref!$B$36,INDEX(Ranks!$1:$1048576,$A506,CA$1))","v":""},{"$f":"IF($A506=\"N/A\",Ref!$B$36,INDEX(Ranks!$1:$1048576,$A506,CB$1))","v":""},{"$f":"IF($A506=\"N/A\",Ref!$B$36,INDEX(Ranks!$1:$1048576,$A506,CC$1))","v":""},{"$f":"IF($A506=\"N/A\",Ref!$B$36,INDEX(Ranks!$1:$1048576,$A506,CD$1))","v":""},{"$f":"IF($A506=\"N/A\",Ref!$B$36,INDEX(Ranks!$1:$1048576,$A506,CE$1))","v":""},{"$f":"IF($A506=\"N/A\",Ref!$B$36,INDEX(Ranks!$1:$1048576,$A506,CF$1))","v":""},{"$f":"IF($A506=\"N/A\",Ref!$B$36,INDEX(Ranks!$1:$1048576,$A506,CG$1))","v":""},{"$f":"IF($A506=\"N/A\",Ref!$B$36,INDEX(Ranks!$1:$1048576,$A506,CH$1))","v":""},{"$f":"IF($A506=\"N/A\",Ref!$B$36,INDEX(Ranks!$1:$1048576,$A506,CI$1))","v":""},{"$f":"IF($A506=\"N/A\",Ref!$B$36,INDEX(Ranks!$1:$1048576,$A506,CJ$1))","v":""},{"$f":"IF($A506=\"N/A\",Ref!$B$36,INDEX(Ranks!$1:$1048576,$A506,CK$1))","v":""},{"$f":"IF($A506=\"N/A\",Ref!$B$36,INDEX(Ranks!$1:$1048576,$A506,CL$1))","v":""},{"$f":"IF($A506=\"N/A\",Ref!$B$36,INDEX(Ranks!$1:$1048576,$A506,CM$1))","v":""},{"$f":"IF($A506=\"N/A\",Ref!$B$36,INDEX(Ranks!$1:$1048576,$A506,CN$1))","v":""},{"$f":"IF($A506=\"N/A\",Ref!$B$36,INDEX(Ranks!$1:$1048576,$A506,CO$1))","v":""},{"$f":"IF($A506=\"N/A\",Ref!$B$36,INDEX(Ranks!$1:$1048576,$A506,CP$1))","v":""},{"$f":"IF($A506=\"N/A\",Ref!$B$36,INDEX(Ranks!$1:$1048576,$A506,CQ$1))","v":""},{"$f":"IF($A506=\"N/A\",Ref!$B$36,INDEX(Ranks!$1:$1048576,$A506,CR$1))","v":""},{"$f":"IF($A506=\"N/A\",Ref!$B$36,INDEX(Ranks!$1:$1048576,$A506,CS$1))","v":""},{"$f":"IF($A506=\"N/A\",Ref!$B$36,INDEX(Ranks!$1:$1048576,$A506,CT$1))","v":""},{"$f":"IF($A506=\"N/A\",Ref!$B$36,INDEX(Ranks!$1:$1048576,$A506,CU$1))","v":""},{"$f":"IF($A506=\"N/A\",Ref!$B$36,INDEX(Ranks!$1:$1048576,$A506,CV$1))","v":""},{"$f":"IF($A506=\"N/A\",Ref!$B$36,INDEX(Ranks!$1:$1048576,$A506,CW$1))","v":""},{"$f":"IF($A506=\"N/A\",Ref!$B$36,INDEX(Ranks!$1:$1048576,$A506,CX$1))","v":""},{"$f":"IF($A506=\"N/A\",Ref!$B$36,INDEX(Ranks!$1:$1048576,$A506,CY$1))","v":""},{"$f":"IF($A506=\"N/A\",Ref!$B$36,INDEX(Ranks!$1:$1048576,$A506,CZ$1))","v":""},{"$f":"IF($A506=\"N/A\",Ref!$B$36,INDEX(Ranks!$1:$1048576,$A506,DA$1))","v":""},{"$f":"IF($A506=\"N/A\",Ref!$B$36,INDEX(Ranks!$1:$1048576,$A506,DB$1))","v":""},{"$f":"IF($A506=\"N/A\",Ref!$B$36,INDEX(Ranks!$1:$1048576,$A506,DC$1))","v":""},{"$f":"IF($A506=\"N/A\",Ref!$B$36,INDEX(Ranks!$1:$1048576,$A506,DD$1))","v":""},{"$f":"IF($A506=\"N/A\",Ref!$B$36,INDEX(Ranks!$1:$1048576,$A506,DE$1))","v":""},{"$f":"IF($A506=\"N/A\",Ref!$B$36,INDEX(Ranks!$1:$1048576,$A506,DF$1))","v":""},{"$f":"IF($A506=\"N/A\",Ref!$B$36,INDEX(Ranks!$1:$1048576,$A506,DG$1))","v":""},{"$f":"IF($A506=\"N/A\",Ref!$B$36,INDEX(Ranks!$1:$1048576,$A506,DH$1))","v":""},{"$f":"IF($A506=\"N/A\",Ref!$B$36,INDEX(Ranks!$1:$1048576,$A506,DI$1))","v":""},{"$f":"IF($A506=\"N/A\",Ref!$B$36,INDEX(Ranks!$1:$1048576,$A506,DJ$1))","v":""},{"$f":"IF($A506=\"N/A\",Ref!$B$36,INDEX(Ranks!$1:$1048576,$A506,DK$1))","v":""},{"$f":"IF($A506=\"N/A\",Ref!$B$36,INDEX(Ranks!$1:$1048576,$A506,DL$1))","v":""},{"$f":"IF($A506=\"N/A\",Ref!$B$36,INDEX(Ranks!$1:$1048576,$A506,DM$1))","v":""},{"$f":"IF($A506=\"N/A\",Ref!$B$36,INDEX(Ranks!$1:$1048576,$A506,DN$1))","v":""},{"$f":"IF($A506=\"N/A\",Ref!$B$36,INDEX(Ranks!$1:$1048576,$A506,DO$1))","v":""},{"$f":"IF($A506=\"N/A\",Ref!$B$36,INDEX(Ranks!$1:$1048576,$A506,DP$1))","v":""},{"$f":"IF($A506=\"N/A\",Ref!$B$36,INDEX(Ranks!$1:$1048576,$A506,DQ$1))","v":""},{"$f":"IF($A506=\"N/A\",Ref!$B$36,INDEX(Ranks!$1:$1048576,$A506,DR$1))","v":""},{"$f":"IF($A506=\"N/A\",Ref!$B$36,INDEX(Ranks!$1:$1048576,$A506,DS$1))","v":""},{"$f":"IF($A506=\"N/A\",Ref!$B$36,INDEX(Ranks!$1:$1048576,$A506,DT$1))","v":""},{"$f":"IF($A506=\"N/A\",Ref!$B$36,INDEX(Ranks!$1:$1048576,$A506,DU$1))","v":""},{"$f":"IF($A506=\"N/A\",Ref!$B$36,INDEX(Ranks!$1:$1048576,$A506,DV$1))","v":""},{"$f":"IF($A506=\"N/A\",Ref!$B$36,INDEX(Ranks!$1:$1048576,$A506,DW$1))","v":""},{"$f":"IF($A506=\"N/A\",Ref!$B$36,INDEX(Ranks!$1:$1048576,$A506,DX$1))","v":""},{"$f":"IF($A506=\"N/A\",Ref!$B$36,INDEX(Ranks!$1:$1048576,$A506,DY$1))","v":""},{"$f":"IF($A506=\"N/A\",Ref!$B$36,INDEX(Ranks!$1:$1048576,$A506,DZ$1))","v":""},{"$f":"IF($A506=\"N/A\",Ref!$B$36,INDEX(Ranks!$1:$1048576,$A506,EA$1))","v":""},{"$f":"IF($A506=\"N/A\",Ref!$B$36,INDEX(Ranks!$1:$1048576,$A506,EB$1))","v":""}]

{"sheet":"Single Co Tear Sheet","index":3,"n_rows":55,"n_cols":11,"rows_kept":55,"cut":false,"hidden":false,"merged":[[10,9,10,10],[17,4,17,6],[16,4,16,6],[43,3,43,6],[14,4,14,6],[13,4,13,6],[11,3,11,6],[10,3,10,6]]}
[]
[]
[]
[]
[]
[]
[]
[]
[null,null,null,"For Institutional Use Only"]
[]
[null,"Enter Ticker:",null,"Name",null,null,null,null,null,{"$f":"\"Pricing as of: \"&TEXT(Ref!$A$4,\"mm.dd.yyyy\")","v":"Pricing as of: 02.28.2026"}]
[null,"IHS",null,{"$f":"IFERROR(INDEX(Ranks!$1:$1048576,$B$13,MATCH(D11,Ranks!$5:$5,0)),\"(\"&B12&\")\")","v":"IHS HOLDING LIMITED"},null,null,null,null,null,"Price",{"$f":"IFERROR(INDEX(Ranks!$1:$1048576,$B$13,MATCH(J12,Ranks!$5:$5,0)),\"N/A\")","v":8}]
[null,{"$f":"MATCH($B$12,Ranks!$L:$L,0)","v":7},null,null,null,null,null,null,null,"Market Cap ($m)",{"$f":"IFERROR(INDEX(Ranks!$1:$1048576,$B$13,MATCH(                    SUBSTITUTE(J13,\" ($m)\",\"\"),Ranks!$5:$5,0)),\"N/A\")","v":2684.1680000000001}]
[null,null,null,"Sector Name:",{"$f":"IFERROR(INDEX(Ranks!$1:$1048576,$B$13,MATCH(SUBSTITUTE(D14,\":\",\"\"),Ranks!$5:$5,0)),\"N/A\")","v":"Communication Services"},null,null,null,null,"Proper Peers",{"$f":"SUBSTITUTE(SUBSTITUTE(IFERROR(INDEX(Ranks!$1:$1048576,$B$13,MATCH(SUBSTITUTE(J14,\" (m)\",\"\"),Ranks!$5:$5,0)),\"N/A\"),\"1\",\"Bottom\"),\"2\",\"Top\")","v":""}]
[null,null,null,"Group Name:",{"$f":"IFERROR(INDEX(Ranks!$1:$1048576,$B$13,MATCH(SUBSTITUTE(D15,\":\",\"\"),Ranks!$5:$5,0)),\"N/A\")","v":"Telecommunication Services"},null,null,null,null,"Top Miss or Top Beat",{"$f":"SUBSTITUTE(SUBSTITUTE(IFERROR(INDEX(Ranks!$1:$1048576,$B$13,MATCH(SUBSTITUTE(J15,\" (m)\",\"\"),Ranks!$5:$5,0)),\"N/A\"),\"1\",\"Top Beat\"),\"2\",\"Top Miss\")","v":""}]
[null,null,null,null,null,null,null,null,null,"Agg Rank",{"$f":"IFERROR(INDEX(Ranks!$1:$1048576,$B$13,MATCH(                    SUBSTITUTE(J16,\" ($m)\",\"\"),Ranks!$5:$5,0)),\"N/A\")","v":1}]
[null,null,null,"Industry Name:",{"$f":"IFERROR(INDEX(Ranks!$1:$1048576,$B$13,MATCH(SUBSTITUTE(D17,\":\",\"\"),Ranks!$5:$5,0)),\"N/A\")","v":"Diversified Telecommunication Services"},null,null,null,null,"Rank Chg",{"$f":"IFERROR(INDEX(Ranks!$1:$1048576,$B$13,MATCH(                    SUBSTITUTE(J17,\" ($m)\",\"\"),Ranks!$5:$5,0)),\"N/A\")","v":1}]
[null,null,null,"Sub-industry Name:",{"$f":"IFERROR(INDEX(Ranks!$1:$1048576,$B$13,MATCH(SUBSTITUTE(D18,\":\",\"\"),Ranks!$5:$5,0)),\"N/A\")","v":"Integrated Telecommunication Services"}]
[]
[null,null,null,"Valuation Quintile",{"$f":"IFERROR(INDEX(Ranks!$1:$1048576,$B$13,MATCH(D20,Ranks!$5:$5,0)),\"N/A\")","v":5},null,"Balance Sheet Quintile",{"$f":"IFERROR(INDEX(Ranks!$1:$1048576,$B$13,MATCH(G20,Ranks!$5:$5,0)),\"N/A\")","v":4},null,"Earnings Quality Quintile",{"$f":"IFERROR(INDEX(Ranks!$1:$1048576,$B$13,MATCH(J20,Ranks!$5:$5,0)),\"N/A\")","v":4}]
[null,null,null,"Current Div to Price",{"$f":"IFERROR(INDEX(Ranks!$1:$1048576,$B$13,MATCH(D21,Ranks!$5:$5,0)),\"N/A\")","v":0},null,"Current CAPX/Total Assets (Inv)",{"$f":"IFERROR(INDEX(Ranks!$1:$1048576,$B$13,MATCH(G21,Ranks!$5:$5,0)),\"N/A\")","v":21},null,"Curr. Accruals/Assets (Inv)",{"$f":"IFERROR(INDEX(Ranks!$1:$1048576,$B$13,MATCH(J21,Ranks!$5:$5,0)),\"N/A\")","v":84}]
[null,null,null,"Current Book to Price",{"$f":"IFERROR(INDEX(Ranks!$1:$1048576,$B$13,MATCH(D22,Ranks!$5:$5,0)),\"N/A\")","v":3},null,"CAPX/Total Assets 3 Yr Chg (Inv)",{"$f":"IFERROR(INDEX(Ranks!$1:$1048576,$B$13,MATCH(G22,Ranks!$5:$5,0)),\"N/A\")","v":93},null,"Current Inv/Sales",{"$f":"IFERROR(INDEX(Ranks!$1:$1048576,$B$13,MATCH(J22,Ranks!$5:$5,0)),\"N/A\")","v":13}]
[null,null,null,"Current Sales to EV",{"$f":"IFERROR(INDEX(Ranks!$1:$1048576,$B$13,MATCH(D23,Ranks!$5:$5,0)),\"N/A\")","v":41},null,"Div 1 Yr Grth",{"$f":"IFERROR(INDEX(Ranks!$1:$1048576,$B$13,MATCH(G23,Ranks!$5:$5,0)),\"N/A\")","v":""},null,"Inv/Sales 1 Yr Chg (Inv)",{"$f":"IFERROR(INDEX(Ranks!$1:$1048576,$B$13,MATCH(J23,Ranks!$5:$5,0)),\"N/A\")","v":25}]
[null,null,null,"Current Earn to Price",{"$f":"IFERROR(INDEX(Ranks!$1:$1048576,$B$13,MATCH(D24,Ranks!$5:$5,0)),\"N/A\")","v":98},null,"Div 3 Yr Grth",{"$f":"IFERROR(INDEX(Ranks!$1:$1048576,$B$13,MATCH(G24,Ranks!$5:$5,0)),\"N/A\")","v":""},null,"Inv/Sales 3 Yr Chg (Inv)",{"$f":"IFERROR(INDEX(Ranks!$1:$1048576,$B$13,MATCH(J24,Ranks!$5:$5,0)),\"N/A\")","v":74}]
[null,null,null,"E/P 3 Yr Avg",{"$f":"IFERROR(INDEX(Ranks!$1:$1048576,$B$13,MATCH(D25,Ranks!$5:$5,0)),\"N/A\")","v":0},null,"Div 5 Yr Grth",{"$f":"IFERROR(INDEX(Ranks!$1:$1048576,$B$13,MATCH(G25,Ranks!$5:$5,0)),\"N/A\")","v":""},null,"Inv/Sales 5 Yr Chg (Inv)",{"$f":"IFERROR(INDEX(Ranks!$1:$1048576,$B$13,MATCH(J25,Ranks!$5:$5,0)),\"N/A\")","v":""}]
[null,null,null,"E/P 5 Yr Avg",{"$f":"IFERROR(INDEX(Ranks!$1:$1048576,$B$13,MATCH(D26,Ranks!$5:$5,0)),\"N/A\")","v":0},null,"Current Buyback Yield",{"$f":"IFERROR(INDEX(Ranks!$1:$1048576,$B$13,MATCH(G26,Ranks!$5:$5,0)),\"N/A\")","v":36},null,"Current Op Margin",{"$f":"IFERROR(INDEX(Ranks!$1:$1048576,$B$13,MATCH(J26,Ranks!$5:$5,0)),\"N/A\")","v":95}]
[null,null,null,"Current FCF/P",{"$f":"IFERROR(INDEX(Ranks!$1:$1048576,$B$13,MATCH(D27,Ranks!$5:$5,0)),\"N/A\")","v":98},null,"Current GW/Total Assets (Inv)",{"$f":"IFERROR(INDEX(Ranks!$1:$1048576,$B$13,MATCH(G27,Ranks!$5:$5,0)),\"N/A\")","v":38},null,"Current Gross Margin",{"$f":"IFERROR(INDEX(Ranks!$1:$1048576,$B$13,MATCH(J27,Ranks!$5:$5,0)),\"N/A\")","v":83}]
[null,null,null,"FCF/P 3-Yr Avg",{"$f":"IFERROR(INDEX(Ranks!$1:$1048576,$B$13,MATCH(D28,Ranks!$5:$5,0)),\"N/A\")","v":95},null,"Current Debt/EBITDA (Inv)",{"$f":"IFERROR(INDEX(Ranks!$1:$1048576,$B$13,MATCH(G28,Ranks!$5:$5,0)),\"N/A\")","v":34},null,"Op Margin 1 Yr Chg",{"$f":"IFERROR(INDEX(Ranks!$1:$1048576,$B$13,MATCH(J28,Ranks!$5:$5,0)),\"N/A\")","v":81}]
[null,null,null,"FCF/P 5-Yr Avg",{"$f":"IFERROR(INDEX(Ranks!$1:$1048576,$B$13,MATCH(D29,Ranks!$5:$5,0)),\"N/A\")","v":95},null,"Current Net Cash/EV",{"$f":"IFERROR(INDEX(Ranks!$1:$1048576,$B$13,MATCH(G29,Ranks!$5:$5,0)),\"N/A\")","v":10},null,"Op Margin 3 Yr Chg",{"$f":"IFERROR(INDEX(Ranks!$1:$1048576,$B$13,MATCH(J29,Ranks!$5:$5,0)),\"N/A\")","v":78}]
[null,null,null,"Current FCF/EV",{"$f":"IFERROR(INDEX(Ranks!$1:$1048576,$B$13,MATCH(D30,Ranks!$5:$5,0)),\"N/A\")","v":93},null,"Current R&D/Sales",{"$f":"IFERROR(INDEX(Ranks!$1:$1048576,$B$13,MATCH(G30,Ranks!$5:$5,0)),\"N/A\")","v":""},null,"Op Margin 5 Yr Chg",{"$f":"IFERROR(INDEX(Ranks!$1:$1048576,$B$13,MATCH(J30,Ranks!$5:$5,0)),\"N/A\")","v":""}]
[null,null,null,"FCF/EV 3 Yr Avg",{"$f":"IFERROR(INDEX(Ranks!$1:$1048576,$B$13,MATCH(D31,Ranks!$5:$5,0)),\"N/A\")","v":84},null,"Current CAPX/Sales (Inv)",{"$f":"IFERROR(INDEX(Ranks!$1:$1048576,$B$13,MATCH(G31,Ranks!$5:$5,0)),\"N/A\")","v":14},null,"Gross Margin 1 Yr Chg",{"$f":"IFERROR(INDEX(Ranks!$1:$1048576,$B$13,MATCH(J31,Ranks!$5:$5,0)),\"N/A\")","v":55}]
[null,null,null,"FCF/EV 5 Yr Avg",{"$f":"IFERROR(INDEX(Ranks!$1:$1048576,$B$13,MATCH(D32,Ranks!$5:$5,0)),\"N/A\")","v":86},null,"CAPX/Sales 3 Yr Chg (Inv)",{"$f":"IFERROR(INDEX(Ranks!$1:$1048576,$B$13,MATCH(G32,Ranks!$5:$5,0)),\"N/A\")","v":94},null,"Gross Margin 3 Yr Chg",{"$f":"IFERROR(INDEX(Ranks!$1:$1048576,$B$13,MATCH(J32,Ranks!$5:$5,0)),\"N/A\")","v":76}]
[null,null,null,"Earn 1 Yr Grth",{"$f":"IFERROR(INDEX(Ranks!$1:$1048576,$B$13,MATCH(D33,Ranks!$5:$5,0)),\"N/A\")","v":87},null,"CAPX/Sales 5 Yr Chg (Inv)",{"$f":"IFERROR(INDEX(Ranks!$1:$1048576,$B$13,MATCH(G33,Ranks!$5:$5,0)),\"N/A\")","v":""},null,"Gross Margin 5 Yr Chg",{"$f":"IFERROR(INDEX(Ranks!$1:$1048576,$B$13,MATCH(J33,Ranks!$5:$5,0)),\"N/A\")","v":""}]
[null,null,null,"Earn 3 Yr Grth (Inv)",{"$f":"IFERROR(INDEX(Ranks!$1:$1048576,$B$13,MATCH(D34,Ranks!$5:$5,0)),\"N/A\")","v":""},null,"WCap 3 Yr Grth (Inv)",{"$f":"IFERROR(INDEX(Ranks!$1:$1048576,$B$13,MATCH(G34,Ranks!$5:$5,0)),\"N/A\")","v":96},null,"Current ROA",{"$f":"IFERROR(INDEX(Ranks!$1:$1048576,$B$13,MATCH(J34,Ranks!$5:$5,0)),\"N/A\")","v":89}]
[null,null,null,"Earn 5 Yr Grth (Inv)",{"$f":"IFERROR(INDEX(Ranks!$1:$1048576,$B$13,MATCH(D35,Ranks!$5:$5,0)),\"N/A\")","v":""},null,"WCap 5 Yr Grth (Inv)",{"$f":"IFERROR(INDEX(Ranks!$1:$1048576,$B$13,MATCH(G35,Ranks!$5:$5,0)),\"N/A\")","v":""},null,"ROA 1 Yr Chg",{"$f":"IFERROR(INDEX(Ranks!$1:$1048576,$B$13,MATCH(J35,Ranks!$5:$5,0)),\"N/A\")","v":99}]
[null,null,null,"Sales 1 Yr Grth (Inv)",{"$f":"IFERROR(INDEX(Ranks!$1:$1048576,$B$13,MATCH(D36,Ranks!$5:$5,0)),\"N/A\")","v":75},null,"Quick Ratio",{"$f":"IFERROR(INDEX(Ranks!$1:$1048576,$B$13,MATCH(G36,Ranks!$5:$5,0)),\"N/A\")","v":50},null,"ROA 3 Yr Chg",{"$f":"IFERROR(INDEX(Ranks!$1:$1048576,$B$13,MATCH(J36,Ranks!$5:$5,0)),\"N/A\")","v":91}]
[null,null,null,"Sales 3 Yr Grth (Inv)",{"$f":"IFERROR(INDEX(Ranks!$1:$1048576,$B$13,MATCH(D37,Ranks!$5:$5,0)),\"N/A\")","v":79},null,"Current Ratio",{"$f":"IFERROR(INDEX(Ranks!$1:$1048576,$B$13,MATCH(G37,Ranks!$5:$5,0)),\"N/A\")","v":36},null,"ROA 5 Yr Chg",{"$f":"IFERROR(INDEX(Ranks!$1:$1048576,$B$13,MATCH(J37,Ranks!$5:$5,0)),\"N/A\")","v":""}]
[null,null,null,"Sales 5 Yr Grth (Inv)",{"$f":"IFERROR(INDEX(Ranks!$1:$1048576,$B$13,MATCH(D38,Ranks!$5:$5,0)),\"N/A\")","v":""},null,"Rec/Sales 1 Yr Chg (Inv)",{"$f":"IFERROR(INDEX(Ranks!$1:$1048576,$B$13,MATCH(G38,Ranks!$5:$5,0)),\"N/A\")","v":94},null,"Current ROE",{"$f":"IFERROR(INDEX(Ranks!$1:$1048576,$B$13,MATCH(J38,Ranks!$5:$5,0)),\"N/A\")","v":53}]
[null,null,null,"Theoretical Growth",{"$f":"IFERROR(INDEX(Ranks!$1:$1048576,$B$13,MATCH(D39,Ranks!$5:$5,0)),\"N/A\")","v":53},null,"Rec/Sales 3 Yr Chg (Inv)",{"$f":"IFERROR(INDEX(Ranks!$1:$1048576,$B$13,MATCH(G39,Ranks!$5:$5,0)),\"N/A\")","v":97},null,"ROE 1 Yr Chg",{"$f":"IFERROR(INDEX(Ranks!$1:$1048576,$B$13,MATCH(J39,Ranks!$5:$5,0)),\"N/A\")","v":96}]
[null,null,null,"Theoretical Growth Diff",{"$f":"IFERROR(INDEX(Ranks!$1:$1048576,$B$13,MATCH(D40,Ranks!$5:$5,0)),\"N/A\")","v":15},null,"Rec/Sales 5 Yr Chg (Inv)",{"$f":"IFERROR(INDEX(Ranks!$1:$1048576,$B$13,MATCH(G40,Ranks!$5:$5,0)),\"N/A\")","v":""},null,"ROE 3 Yr Chg",{"$f":"IFERROR(INDEX(Ranks!$1:$1048576,$B$13,MATCH(J40,Ranks!$5:$5,0)),\"N/A\")","v":89}]
[null,null,null,null,null,null,"BV Grth 3 Yr Disp (Inv)",{"$f":"IFERROR(INDEX(Ranks!$1:$1048576,$B$13,MATCH(G41,Ranks!$5:$5,0)),\"N/A\")","v":7},null,"ROE 5 Yr Chg",{"$f":"IFERROR(INDEX(Ranks!$1:$1048576,$B$13,MATCH(J41,Ranks!$5:$5,0)),\"N/A\")","v":""}]
[null,null,null,null,null,null,"BV Grth 5 Yr Disp (Inv)",{"$f":"IFERROR(INDEX(Ranks!$1:$1048576,$B$13,MATCH(G42,Ranks!$5:$5,0)),\"N/A\")","v":9},null,"ROA 5 Yr Disp (Inv)",{"$f":"IFERROR(INDEX(Ranks!$1:$1048576,$B$13,MATCH(J42,Ranks!$5:$5,0)),\"N/A\")","v":4}]
[null,null,null,null,null,null,null,null,null,"ROE 5 Yr Disp (Inv)",{"$f":"IFERROR(INDEX(Ranks!$1:$1048576,$B$13,MATCH(J43,Ranks!$5:$5,0)),\"N/A\")","v":2}]
[null,null,null,"Market Quality Quintile",null,null,null,{"$f":"IFERROR(INDEX(Ranks!$1:$1048576,$B$13,MATCH(D44,Ranks!$5:$5,0)),\"N/A\")","v":5},null,"Current XI/Net Income (Inv)",{"$f":"IFERROR(INDEX(Ranks!$1:$1048576,$B$13,MATCH(J44,Ranks!$5:$5,0)),\"N/A\")","v":100}]
[null,null,null,"Volume (Inv)",{"$f":"IFERROR(INDEX(Ranks!$1:$1048576,$B$13,MATCH(D45,Ranks!$5:$5,0)),\"N/A\")","v":81},null,"6-Mo/12-Mo Breakout",{"$f":"IFERROR(INDEX(Ranks!$1:$1048576,$B$13,MATCH(G45,Ranks!$5:$5,0)),\"N/A\")","v":2},null,"Current Dep/CAPX",{"$f":"IFERROR(INDEX(Ranks!$1:$1048576,$B$13,MATCH(J45,Ranks!$5:$5,0)),\"N/A\")","v":67}]
[null,null,null,"3-Mo Mom",{"$f":"IFERROR(INDEX(Ranks!$1:$1048576,$B$13,MATCH(D46,Ranks!$5:$5,0)),\"N/A\")","v":70},null,"CAPM Ret Diff (Inv)",{"$f":"IFERROR(INDEX(Ranks!$1:$1048576,$B$13,MATCH(G46,Ranks!$5:$5,0)),\"N/A\")","v":95},null,"Dep/CAPX 3 Yr Avg",{"$f":"IFERROR(INDEX(Ranks!$1:$1048576,$B$13,MATCH(J46,Ranks!$5:$5,0)),\"N/A\")","v":54}]
[null,null,null,"6-Mo Mom",{"$f":"IFERROR(INDEX(Ranks!$1:$1048576,$B$13,MATCH(D47,Ranks!$5:$5,0)),\"N/A\")","v":65},null,"Negative 24-Mo Skewness",{"$f":"IFERROR(IF(INDEX(Ranks!$1:$1048576,$B$13,MATCH(G47,Ranks!$5:$5,0))=100,\"Y\",\"\"),\"N/A\")","v":""},null,"Dep/CAPX 5 Yr Avg",{"$f":"IFERROR(INDEX(Ranks!$1:$1048576,$B$13,MATCH(J47,Ranks!$5:$5,0)),\"N/A\")","v":57}]
[null,null,null,"9-Mo Mom",{"$f":"IFERROR(INDEX(Ranks!$1:$1048576,$B$13,MATCH(D48,Ranks!$5:$5,0)),\"N/A\")","v":77},null,"24-Mo Kurtosis (Inv)",{"$f":"IFERROR(INDEX(Ranks!$1:$1048576,$B$13,MATCH(G48,Ranks!$5:$5,0)),\"N/A\")","v":22}]
[null,null,null,"12-Mo Mom",{"$f":"IFERROR(INDEX(Ranks!$1:$1048576,$B$13,MATCH(D49,Ranks!$5:$5,0)),\"N/A\")","v":94},null,"Extreme 6-Mo Momentum",{"$f":"IFERROR(IF(INDEX(Ranks!$1:$1048576,$B$13,MATCH(G49,Ranks!$5:$5,0))=100,\"Y\",\"\"),\"N/A\")","v":""}]
[null,null,null,"36-Mo Mom (Inv)",{"$f":"IFERROR(INDEX(Ranks!$1:$1048576,$B$13,MATCH(D50,Ranks!$5:$5,0)),\"N/A\")","v":64},null,"Extreme 24-Mo Skewness",{"$f":"IFERROR(IF(INDEX(Ranks!$1:$1048576,$B$13,MATCH(G50,Ranks!$5:$5,0))=100,\"Y\",\"\"),\"N/A\")","v":""},null,"Analyst Quality Quintile",{"$f":"IFERROR(INDEX(Ranks!$1:$1048576,$B$13,MATCH(J50,Ranks!$5:$5,0)),\"N/A\")","v":2}]
[null,null,null,"3-Mo Bat Avg",{"$f":"IFERROR(INDEX(Ranks!$1:$1048576,$B$13,MATCH(D51,Ranks!$5:$5,0)),\"N/A\")","v":100},null,"Extreme 24-Mo Kurtosis",{"$f":"IFERROR(IF(INDEX(Ranks!$1:$1048576,$B$13,MATCH(G51,Ranks!$5:$5,0))=100,\"Y\",\"\"),\"N/A\")","v":""},null,"LTG Est (Inv)",{"$f":"IFERROR(INDEX(Ranks!$1:$1048576,$B$13,MATCH(J51,Ranks!$5:$5,0)),\"N/A\")","v":19}]
[null,null,null,"6-Mo Bat Avg",{"$f":"IFERROR(INDEX(Ranks!$1:$1048576,$B$13,MATCH(D52,Ranks!$5:$5,0)),\"N/A\")","v":89},null,"Low Mom High Vol",{"$f":"IFERROR(IF(INDEX(Ranks!$1:$1048576,$B$13,MATCH(G52,Ranks!$5:$5,0))=100,\"Y\",\"\"),\"N/A\")","v":""},null,"Shr of Est Rising",{"$f":"IFERROR(INDEX(Ranks!$1:$1048576,$B$13,MATCH(J52,Ranks!$5:$5,0)),\"N/A\")","v":""}]
[null,null,null,"9-Mo Bat Avg",{"$f":"IFERROR(INDEX(Ranks!$1:$1048576,$B$13,MATCH(D53,Ranks!$5:$5,0)),\"N/A\")","v":90},null,"Broken Chart",{"$f":"IFERROR(IF(INDEX(Ranks!$1:$1048576,$B$13,MATCH(G53,Ranks!$5:$5,0))=100,\"Y\",\"\"),\"N/A\")","v":""},null,"LTG Disp (Inv)",{"$f":"IFERROR(INDEX(Ranks!$1:$1048576,$B$13,MATCH(J53,Ranks!$5:$5,0)),\"N/A\")","v":100}]
[null,null,null,"12-Mo Bat Avg",{"$f":"IFERROR(INDEX(Ranks!$1:$1048576,$B$13,MATCH(D54,Ranks!$5:$5,0)),\"N/A\")","v":96},null,"Hi 6-Mo Mom/Hi 9-Mo Bat Avg",{"$f":"IFERROR(IF(INDEX(Ranks!$1:$1048576,$B$13,MATCH(G54,Ranks!$5:$5,0))=100,\"Y\",\"\"),\"N/A\")","v":""},null,"Surp Score",{"$f":"IFERROR(INDEX(Ranks!$1:$1048576,$B$13,MATCH(J54,Ranks!$5:$5,0)),\"N/A\")","v":""}]
[null,null,null,"3-Mo/6-Mo Breakout",{"$f":"IFERROR(INDEX(Ranks!$1:$1048576,$B$13,MATCH(D55,Ranks!$5:$5,0)),\"N/A\")","v":45},null,null,null,null,"PEG Ratio (Inv)",{"$f":"IFERROR(INDEX(Ranks!$1:$1048576,$B$13,MATCH(J55,Ranks!$5:$5,0)),\"N/A\")","v":98}]

{"sheet":"GARP Model","index":4,"n_rows":77,"n_cols":19,"rows_kept":77,"cut":false,"hidden":false,"merged":[[30,1,30,2],[30,4,30,5],[31,1,31,2],[31,4,31,5],[36,1,36,18],[27,1,27,2],[27,4,27,5],[28,1,28,2],[28,4,28,5],[29,1,29,2],[29,4,29,5],[24,1,24,2],[24,4,24,5],[25,1,25,2],[25,4,25,5],[26,1,26,2],[26,4,26,5],[21,1,21,2],[21,4,21,5],[22,1,22,2],[22,4,22,5],[23,1,23,2],[23,4,23,5],[20,1,20,18],[8,1,8,18],[12,1,12,6],[14,1,14,18],[16,1,16,18],[18,1,18,18]]}
[]
[]
[]
[]
[]
[]
[]
[]
[null,"Growth at a Reasonable Price (GARP) Model"]
[null,"For Institutional Use Only"]
[]
[null,"For more information on our GARP Model you can read the original report:"]
[null,"The Siren Song of Growth: Why Investors Willfully Set Sail for the Rocks"]
[]
[null,"The GARP Model is dedicated to sourcing growth stocks from Kailash's Core SMID strategy. Historically, the process has allowed one to shop from stocks with the fastest earnings growth in the R2000G while cutting the odds of experiencing the most severe drawdowns from -24% to -13%. This sharp reduction in left tail outcomes benefitted from a simultaneous increase in the odds of finding outperformers at every decile with excess returns (decile 6 and above)."]
[]
[null,"We believe working with the GARP list should help significantly reduce the time you spend working on stocks that turn out to be left-tail losers, enhance your chances of finding right-tail winners and, as a result, give you that much more time to get to know the companies and managements that could help your portfolio outperform."]
[]
[null,"On average, we believe the companies that the model recommends tend to have higher levels of cash conversion of earnings, higher profitability, relatively low capital requirements for a growth stock and benefit from lower valuations in areas in which mean reversion may prove helpful to investors."]
[]
[null,{"$f":"TEXT(DATE(YEAR(Ref!A4),MONTH(Ref!A4)+1,1),\"mmmm yyyy\")&\" Current GARP Picks\"","v":"March 2026 Current GARP Picks"}]
[null,"Agg Rank",null,"Ticker ","Company Name",null,"Price","Valuation Quintile","Balance Sheet Quintile","Earnings Quality Quintile","Analyst Quality Quintile","Market Quality Quintile","Curr. Accruals/Assets (Inv)","ROE 5 Yr Chg","Current Op Margin","Current Dep/CAPX","E/P 3 Yr Avg","E/P 5 Yr Avg","LTG"]
[null,{"$f":"INDEX($B$38:$S$75,MATCH($D23,$E$38:$E$75,0),MATCH(B$22,$B$38:$S$38,0))","v":62},null,"ALGT",{"$f":"INDEX($B$38:$S$75,MATCH($D23,$E$38:$E$75,0),MATCH(E$22,$B$38:$S$38,0))","v":"ALLEGIANT TRAVEL CO"},null,{"$f":"INDEX($B$38:$S$75,MATCH($D23,$E$38:$E$75,0),MATCH(G$22,$B$38:$S$38,0))","v":102.15},4,5,4,4,5,89,12,50,20,21,26,97]
[null,92,null,"CMPR","CIMPRESS PLC",null,73.05,5,5,3,1,5,87,75,35,57,37,25,84]
[null,50,null,"CNK","CINEMARK HOLDINGS INC",null,28.24,5,5,5,3,2,65,95,55,47,55,16,94]
[null,28,null,"DOCU","DOCUSIGN INC",null,45.07,5,4,5,5,1,94,94,40,42,63,44,84]
[null,34,null,"HCI","HCI GROUP INC",null,176.42,5,4,5,5,3,75,69,85,60,56,46,84]
[null,52,null,"HGTY","HAGERTY INC",null,11.74,5,4,4,4,5,63,"",35,61,41,38,98]
[null,1,null,"IHS","IHS HOLDING LIMITED",null,8,5,4,4,2,5,84,"",95,67,0,0,81]
[null,11,null,"INTR","INTER & CO INC",null,8.7100000000000009,5,5,4,2,4,65,"",82,82,71,72,90]
[null,47,null,"JAZZ","JAZZ PHARMACEUTICALS PLC",null,190.02,5,4,5,4,4,89,12,87,95,36,34,96]
[null,2,null,"TBLA","TABOOLA.COM LTD",null,3.17,5,5,3,5,5,84,"",25,75,17,18,84]
[null,{"$f":"\"Note: Data from \"&TEXT(Ref!$A$4,\"m/d/yyyy\")&\" Kailash Capital SMID Universe\"","v":"Note: Data from 2/28/2026 Kailash Capital SMID Universe"}]
[null,"Sources: Russell, Compustat, Bloomberg"]
[]
[]
[null,{"$f":"\"Current GARP Model Portfolio (as of \"&TEXT(Ref!$A$4,\"m/d/yyyy\")&\")\"","v":"Current GARP Model Portfolio (as of 2/28/2026)"}]
[null,"Portfolio Weight","Initial Date Added to Portfolio","Agg Rank","Ticker ","Company Name","Price","Valuation Quintile","Balance Sheet Quintile","Earnings Quality Quintile","Analyst Quality Quintile","Market Quality Quintile","Curr. Accruals/Assets (Inv)","ROE 5 Yr Chg","Current Op Margin","Current Dep/CAPX","E/P 3 Yr Avg","E/P 5 Yr Avg","LTG"]
[null,7.8186592599999993E-2,"2025-05-31",{"$f":"IFERROR(INDEX(Ranks!$1:$1048576,MATCH($E39,Ranks!$L:$L,0),MATCH(D$38,Ranks!$5:$5,0)),\"\")","v":62},"ALGT","ALLEGIANT TRAVEL CO",{"$f":"IFERROR(INDEX(Ranks!$1:$1048576,MATCH($E39,Ranks!$L:$L,0),MATCH(G$38,Ranks!$5:$5,0)),\"\")","v":102.15},{"$f":"IFERROR(INDEX(Ranks!$1:$1048576,MATCH($E39,Ranks!$L:$L,0),MATCH(H$38,Ranks!$5:$5,0)),\"\")","v":4},{"$f":"IFERROR(INDEX(Ranks!$1:$1048576,MATCH($E39,Ranks!$L:$L,0),MATCH(I$38,Ranks!$5:$5,0)),\"\")","v":5},{"$f":"IFERROR(INDEX(Ranks!$1:$1048576,MATCH($E39,Ranks!$L:$L,0),MATCH(J$38,Ranks!$5:$5,0)),\"\")","v":4},{"$f":"IFERROR(INDEX(Ranks!$1:$1048576,MATCH($E39,Ranks!$L:$L,0),MATCH(K$38,Ranks!$5:$5,0)),\"\")","v":4},{"$f":"IFERROR(INDEX(Ranks!$1:$1048576,MATCH($E39,Ranks!$L:$L,0),MATCH(L$38,Ranks!$5:$5,0)),\"\")","v":5},{"$f":"IFERROR(INDEX(Ranks!$1:$1048576,MATCH($E39,Ranks!$L:$L,0),MATCH(M$38,Ranks!$5:$5,0)),\"\")","v":89},{"$f":"IFERROR(INDEX(Ranks!$1:$1048576,MATCH($E39,Ranks!$L:$L,0),MATCH(N$38,Ranks!$5:$5,0)),\"\")","v":12},{"$f":"IFERROR(INDEX(Ranks!$1:$1048576,MATCH($E39,Ranks!$L:$L,0),MATCH(O$38,Ranks!$5:$5,0)),\"\")","v":50},{"$f":"IFERROR(INDEX(Ranks!$1:$1048576,MATCH($E39,Ranks!$L:$L,0),MATCH(P$38,Ranks!$5:$5,0)),\"\")","v":20},{"$f":"IFERROR(INDEX(Ranks!$1:$1048576,MATCH($E39,Ranks!$L:$L,0),MATCH(Q$38,Ranks!$5:$5,0)),\"\")","v":21},{"$f":"IFERROR(INDEX(Ranks!$1:$1048576,MATCH($E39,Ranks!$L:$L,0),MATCH(R$38,Ranks!$5:$5,0)),\"\")","v":26},{"$f":"IFERROR(100-INDEX(Ranks!$1:$1048576,MATCH($E39,Ranks!$L:$L,0),MATCH(\"LTG Est (Inv)\",Ranks!$5:$5,0)),\"\")","v":97}]
[null,6.5362546399999999E-2,"2025-05-31",{"$f":"IFERROR(INDEX(Ranks!$1:$1048576,MATCH($E40,Ranks!$L:$L,0),MATCH(D$38,Ranks!$5:$5,0)),\"\")","v":2},"TBLA","TABOOLA.COM LTD",{"$f":"IFERROR(INDEX(Ranks!$1:$1048576,MATCH($E40,Ranks!$L:$L,0),MATCH(G$38,Ranks!$5:$5,0)),\"\")","v":3.17},{"$f":"IFERROR(INDEX(Ranks!$1:$1048576,MATCH($E40,Ranks!$L:$L,0),MATCH(H$38,Ranks!$5:$5,0)),\"\")","v":5},{"$f":"IFERROR(INDEX(Ranks!$1:$1048576,MATCH($E40,Ranks!$L:$L,0),MATCH(I$38,Ranks!$5:$5,0)),\"\")","v":5},{"$f":"IFERROR(INDEX(Ranks!$1:$1048576,MATCH($E40,Ranks!$L:$L,0),MATCH(J$38,Ranks!$5:$5,0)),\"\")","v":3},{"$f":"IFERROR(INDEX(Ranks!$1:$1048576,MATCH($E40,Ranks!$L:$L,0),MATCH(K$38,Ranks!$5:$5,0)),\"\")","v":5},{"$f":"IFERROR(INDEX(Ranks!$1:$1048576,MATCH($E40,Ranks!$L:$L,0),MATCH(L$38,Ranks!$5:$5,0)),\"\")","v":5},{"$f":"IFERROR(INDEX(Ranks!$1:$1048576,MATCH($E40,Ranks!$L:$L,0),MATCH(M$38,Ranks!$5:$5,0)),\"\")","v":84},{"$f":"IFERROR(INDEX(Ranks!$1:$1048576,MATCH($E40,Ranks!$L:$L,0),MATCH(N$38,Ranks!$5:$5,0)),\"\")","v":""},{"$f":"IFERROR(INDEX(Ranks!$1:$1048576,MATCH($E40,Ranks!$L:$L,0),MATCH(O$38,Ranks!$5:$5,0)),\"\")","v":25},{"$f":"IFERROR(INDEX(Ranks!$1:$1048576,MATCH($E40,Ranks!$L:$L,0),MATCH(P$38,Ranks!$5:$5,0)),\"\")","v":75},{"$f":"IFERROR(INDEX(Ranks!$1:$1048576,MATCH($E40,Ranks!$L:$L,0),MATCH(Q$38,Ranks!$5:$5,0)),\"\")","v":17},{"$f":"IFERROR(INDEX(Ranks!$1:$1048576,MATCH($E40,Ranks!$L:$L,0),MATCH(R$38,Ranks!$5:$5,0)),\"\")","v":18},{"$f":"IFERROR(100-INDEX(Ranks!$1:$1048576,MATCH($E40,Ranks!$L:$L,0),MATCH(\"LTG Est (Inv)\",Ranks!$5:$5,0)),\"\")","v":84}]
[null,6.4886378499999994E-2,"2025-03-31",{"$f":"IFERROR(INDEX(Ranks!$1:$1048576,MATCH($E41,Ranks!$L:$L,0),MATCH(D$38,Ranks!$5:$5,0)),\"\")","v":38},"OMF","ONEMAIN HOLDINGS INC",{"$f":"IFERROR(INDEX(Ranks!$1:$1048576,MATCH($E41,Ranks!$L:$L,0),MATCH(G$38,Ranks!$5:$5,0)),\"\")","v":55.02},{"$f":"IFERROR(INDEX(Ranks!$1:$1048576,MATCH($E41,Ranks!$L:$L,0),MATCH(H$38,Ranks!$5:$5,0)),\"\")","v":5},{"$f":"IFERROR(INDEX(Ranks!$1:$1048576,MATCH($E41,Ranks!$L:$L,0),MATCH(I$38,Ranks!$5:$5,0)),\"\")","v":5},{"$f":"IFERROR(INDEX(Ranks!$1:$1048576,MATCH($E41,Ranks!$L:$L,0),MATCH(J$38,Ranks!$5:$5,0)),\"\")","v":5},{"$f":"IFERROR(INDEX(Ranks!$1:$1048576,MATCH($E41,Ranks!$L:$L,0),MATCH(K$38,Ranks!$5:$5,0)),\"\")","v":3},{"$f":"IFERROR(INDEX(Ranks!$1:$1048576,MATCH($E41,Ranks!$L:$L,0),MATCH(L$38,Ranks!$5:$5,0)),\"\")","v":3},{"$f":"IFERROR(INDEX(Ranks!$1:$1048576,MATCH($E41,Ranks!$L:$L,0),MATCH(M$38,Ranks!$5:$5,0)),\"\")","v":75},{"$f":"IFERROR(INDEX(Ranks!$1:$1048576,MATCH($E41,Ranks!$L:$L,0),MATCH(N$38,Ranks!$5:$5,0)),\"\")","v":48},{"$f":"IFERROR(INDEX(Ranks!$1:$1048576,MATCH($E41,Ranks!$L:$L,0),MATCH(O$38,Ranks!$5:$5,0)),\"\")","v":89},{"$f":"IFERROR(INDEX(Ranks!$1:$1048576,MATCH($E41,Ranks!$L:$L,0),MATCH(P$38,Ranks!$5:$5,0)),\"\")","v":""},{"$f":"IFERROR(INDEX(Ranks!$1:$1048576,MATCH($E41,Ranks!$L:$L,0),MATCH(Q$38,Ranks!$5:$5,0)),\"\")","v":90},{"$f":"IFERROR(INDEX(Ranks!$1:$1048576,MATCH($E41,Ranks!$L:$L,0),MATCH(R$38,Ranks!$5:$5,0)),\"\")","v":95},{"$f":"IFERROR(100-INDEX(Ranks!$1:$1048576,MATCH($E41,Ranks!$L:$L,0),MATCH(\"LTG Est (Inv)\",Ranks!$5:$5,0)),\"\")","v":75}]
[null,6.1369985299999999E-2,"2025-03-31",{"$f":"IFERROR(INDEX(Ranks!$1:$1048576,MATCH($E42,Ranks!$L:$L,0),MATCH(D$38,Ranks!$5:$5,0)),\"\")","v":21},"LYFT","LYFT INC",{"$f":"IFERROR(INDEX(Ranks!$1:$1048576,MATCH($E42,Ranks!$L:$L,0),MATCH(G$38,Ranks!$5:$5,0)),\"\")","v":13.84},{"$f":"IFERROR(INDEX(Ranks!$1:$1048576,MATCH($E42,Ranks!$L:$L,0),MATCH(H$38,Ranks!$5:$5,0)),\"\")","v":5},{"$f":"IFERROR(INDEX(Ranks!$1:$1048576,MATCH($E42,Ranks!$L:$L,0),MATCH(I$38,Ranks!$5:$5,0)),\"\")","v":5},{"$f":"IFERROR(INDEX(Ranks!$1:$1048576,MATCH($E42,Ranks!$L:$L,0),MATCH(J$38,Ranks!$5:$5,0)),\"\")","v":2},{"$f":"IFERROR(INDEX(Ranks!$1:$1048576,MATCH($E42,Ranks!$L:$L,0),MATCH(K$38,Ranks!$5:$5,0)),\"\")","v":3},{"$f":"IFERROR(INDEX(Ranks!$1:$1048576,MATCH($E42,Ranks!$L:$L,0),MATCH(L$38,Ranks!$5:$5,0)),\"\")","v":3},{"$f":"IFERROR(INDEX(Ranks!$1:$1048576,MATCH($E42,Ranks!$L:$L,0),MATCH(M$38,Ranks!$5:$5,0)),\"\")","v":1},{"$f":"IFERROR(INDEX(Ranks!$1:$1048576,MATCH($E42,Ranks!$L:$L,0),MATCH(N$38,Ranks!$5:$5,0)),\"\")","v":98},{"$f":"IFERROR(INDEX(Ranks!$1:$1048576,MATCH($E42,Ranks!$L:$L,0),MATCH(O$38,Ranks!$5:$5,0)),\"\")","v":16},{"$f":"IFERROR(INDEX(Ranks!$1:$1048576,MATCH($E42,Ranks!$L:$L,0),MATCH(P$38,Ranks!$5:$5,0)),\"\")","v":78},{"$f":"IFERROR(INDEX(Ranks!$1:$1048576,MATCH($E42,Ranks!$L:$L,0),MATCH(Q$38,Ranks!$5:$5,0)),\"\")","v":22},{"$f":"IFERROR(INDEX(Ranks!$1:$1048576,MATCH($E42,Ranks!$L:$L,0),MATCH(R$38,Ranks!$5:$5,0)),\"\")","v":5},{"$f":"IFERROR(100-INDEX(Ranks!$1:$1048576,MATCH($E42,Ranks!$L:$L,0),MATCH(\"LTG Est (Inv)\",Ranks!$5:$5,0)),\"\")","v":17}]
[null,5.4815383600000003E-2,"2025-03-31",{"$f":"IFERROR(INDEX(Ranks!$1:$1048576,MATCH($E43,Ranks!$L:$L,0),MATCH(D$38,Ranks!$5:$5,0)),\"\")","v":246},"TIGO","MILLICOM INTL CELLULAR SA",{"$f":"IFERROR(INDEX(Ranks!$1:$1048576,MATCH($E43,Ranks!$L:$L,0),MATCH(G$38,Ranks!$5:$5,0)),\"\")","v":72.89},{"$f":"IFERROR(INDEX(Ranks!$1:$1048576,MATCH($E43,Ranks!$L:$L,0),MATCH(H$38,Ranks!$5:$5,0)),\"\")","v":4},{"$f":"IFERROR(INDEX(Ranks!$1:$1048576,MATCH($E43,Ranks!$L:$L,0),MATCH(I$38,Ranks!$5:$5,0)),\"\")","v":4},{"$f":"IFERROR(INDEX(Ranks!$1:$1048576,MATCH($E43,Ranks!$L:$L,0),MATCH(J$38,Ranks!$5:$5,0)),\"\")","v":4},{"$f":"IFERROR(INDEX(Ranks!$1:$1048576,MATCH($E43,Ranks!$L:$L,0),MATCH(K$38,Ranks!$5:$5,0)),\"\")","v":5},{"$f":"IFERROR(INDEX(Ranks!$1:$1048576,MATCH($E43,Ranks!$L:$L,0),MATCH(L$38,Ranks!$5:$5,0)),\"\")","v":3},{"$f":"IFERROR(INDEX(Ranks!$1:$1048576,MATCH($E43,Ranks!$L:$L,0),MATCH(M$38,Ranks!$5:$5,0)),\"\")","v":45},{"$f":"IFERROR(INDEX(Ranks!$1:$1048576,MATCH($E43,Ranks!$L:$L,0),MATCH(N$38,Ranks!$5:$5,0)),\"\")","v":88},{"$f":"IFERROR(INDEX(Ranks!$1:$1048576,MATCH($E43,Ranks!$L:$L,0),MATCH(O$38,Ranks!$5:$5,0)),\"\")","v":92},{"$f":"IFERROR(INDEX(Ranks!$1:$1048576,MATCH($E43,Ranks!$L:$L,0),MATCH(P$38,Ranks!$5:$5,0)),\"\")","v":68},{"$f":"IFERROR(INDEX(Ranks!$1:$1048576,MATCH($E43,Ranks!$L:$L,0),MATCH(Q$38,Ranks!$5:$5,0)),\"\")","v":43},{"$f":"IFERROR(INDEX(Ranks!$1:$1048576,MATCH($E43,Ranks!$L:$L,0),MATCH(R$38,Ranks!$5:$5,0)),\"\")","v":43},{"$f":"IFERROR(100-INDEX(Ranks!$1:$1048576,MATCH($E43,Ranks!$L:$L,0),MATCH(\"LTG Est (Inv)\",Ranks!$5:$5,0)),\"\")","v":88}]
[null,5.42754316E-2,"2025-08-31",{"$f":"IFERROR(INDEX(Ranks!$1:$1048576,MATCH($E44,Ranks!$L:$L,0),MATCH(D$38,Ranks!$5:$5,0)),\"\")","v":262},"DAKT","DAKTRONICS INC",{"$f":"IFERROR(INDEX(Ranks!$1:$1048576,MATCH($E44,Ranks!$L:$L,0),MATCH(G$38,Ranks!$5:$5,0)),\"\")","v":25.78},{"$f":"IFERROR(INDEX(Ranks!$1:$1048576,MATCH($E44,Ranks!$L:$L,0),MATCH(H$38,Ranks!$5:$5,0)),\"\")","v":4},{"$f":"IFERROR(INDEX(Ranks!$1:$1048576,MATCH($E44,Ranks!$L:$L,0),MATCH(I$38,Ranks!$5:$5,0)),\"\")","v":4},{"$f":"IFERROR(INDEX(Ranks!$1:$1048576,MATCH($E44,Ranks!$L:$L,0),MATCH(J$38,Ranks!$5:$5,0)),\"\")","v":5},{"$f":"IFERROR(INDEX(Ranks!$1:$1048576,MATCH($E44,Ranks!$L:$L,0),MATCH(K$38,Ranks!$5:$5,0)),\"\")","v":5},{"$f":"IFERROR(INDEX(Ranks!$1:$1048576,MATCH($E44,Ranks!$L:$L,0),MATCH(L$38,Ranks!$5:$5,0)),\"\")","v":5},{"$f":"IFERROR(INDEX(Ranks!$1:$1048576,MATCH($E44,Ranks!$L:$L,0),MATCH(M$38,Ranks!$5:$5,0)),\"\")","v":85},{"$f":"IFERROR(INDEX(Ranks!$1:$1048576,MATCH($E44,Ranks!$L:$L,0),MATCH(N$38,Ranks!$5:$5,0)),\"\")","v":56},{"$f":"IFERROR(INDEX(Ranks!$1:$1048576,MATCH($E44,Ranks!$L:$L,0),MATCH(O$38,Ranks!$5:$5,0)),\"\")","v":29},{"$f":"IFERROR(INDEX(Ranks!$1:$1048576,MATCH($E44,Ranks!$L:$L,0),MATCH(P$38,Ranks!$5:$5,0)),\"\")","v":48},{"$f":"IFERROR(INDEX(Ranks!$1:$1048576,MATCH($E44,Ranks!$L:$L,0),MATCH(Q$38,Ranks!$5:$5,0)),\"\")","v":38},{"$f":"IFERROR(INDEX(Ranks!$1:$1048576,MATCH($E44,Ranks!$L:$L,0),MATCH(R$38,Ranks!$5:$5,0)),\"\")","v":35},{"$f":"IFERROR(100-INDEX(Ranks!$1:$1048576,MATCH($E44,Ranks!$L:$L,0),MATCH(\"LTG Est (Inv)\",Ranks!$5:$5,0)),\"\")","v":88}]
[null,5.3533864600000002E-2,"2025-05-31",{"$f":"IFERROR(INDEX(Ranks!$1:$1048576,MATCH($E45,Ranks!$L:$L,0),MATCH(D$38,Ranks!$5:$5,0)),\"\")","v":133},"TDW","TIDEWATER INC",{"$f":"IFERROR(INDEX(Ranks!$1:$1048576,MATCH($E45,Ranks!$L:$L,0),MATCH(G$38,Ranks!$5:$5,0)),\"\")","v":79.42},{"$f":"IFERROR(INDEX(Ranks!$1:$1048576,MATCH($E45,Ranks!$L:$L,0),MATCH(H$38,Ranks!$5:$5,0)),\"\")","v":4},{"$f":"IFERROR(INDEX(Ranks!$1:$1048576,MATCH($E45,Ranks!$L:$L,0),MATCH(I$38,Ranks!$5:$5,0)),\"\")","v":4},{"$f":"IFERROR(INDEX(Ranks!$1:$1048576,MATCH($E45,Ranks!$L:$L,0),MATCH(J$38,Ranks!$5:$5,0)),\"\")","v":5},{"$f":"IFERROR(INDEX(Ranks!$1:$1048576,MATCH($E45,Ranks!$L:$L,0),MATCH(K$38,Ranks!$5:$5,0)),\"\")","v":3},{"$f":"IFERROR(INDEX(Ranks!$1:$1048576,MATCH($E45,Ranks!$L:$L,0),MATCH(L$38,Ranks!$5:$5,0)),\"\")","v":4},{"$f":"IFERROR(INDEX(Ranks!$1:$1048576,MATCH($E45,Ranks!$L:$L,0),MATCH(M$38,Ranks!$5:$5,0)),\"\")","v":72},{"$f":"IFERROR(INDEX(Ranks!$1:$1048576,MATCH($E45,Ranks!$L:$L,0),MATCH(N$38,Ranks!$5:$5,0)),\"\")","v":90},{"$f":"IFERROR(INDEX(Ranks!$1:$1048576,MATCH($E45,Ranks!$L:$L,0),MATCH(O$38,Ranks!$5:$5,0)),\"\")","v":88},{"$f":"IFERROR(INDEX(Ranks!$1:$1048576,MATCH($E45,Ranks!$L:$L,0),MATCH(P$38,Ranks!$5:$5,0)),\"\")","v":94},{"$f":"IFERROR(INDEX(Ranks!$1:$1048576,MATCH($E45,Ranks!$L:$L,0),MATCH(Q$38,Ranks!$5:$5,0)),\"\")","v":50},{"$f":"IFERROR(INDEX(Ranks!$1:$1048576,MATCH($E45,Ranks!$L:$L,0),MATCH(R$38,Ranks!$5:$5,0)),\"\")","v":33},{"$f":"IFERROR(100-INDEX(Ranks!$1:$1048576,MATCH($E45,Ranks!$L:$L,0),MATCH(\"LTG Est (Inv)\",Ranks!$5:$5,0)),\"\")","v":""}]
[null,4.8673935600000003E-2,"2025-09-30",{"$f":"IFERROR(INDEX(Ranks!$1:$1048576,MATCH($E46,Ranks!$L:$L,0),MATCH(D$38,Ranks!$5:$5,0)),\"\")","v":11},"INTR","INTER & CO INC",{"$f":"IFERROR(INDEX(Ranks!$1:$1048576,MATCH($E46,Ranks!$L:$L,0),MATCH(G$38,Ranks!$5:$5,0)),\"\")","v":8.7100000000000009},{"$f":"IFERROR(INDEX(Ranks!$1:$1048576,MATCH($E46,Ranks!$L:$L,0),MATCH(H$38,Ranks!$5:$5,0)),\"\")","v":5},{"$f":"IFERROR(INDEX(Ranks!$1:$1048576,MATCH($E46,Ranks!$L:$L,0),MATCH(I$38,Ranks!$5:$5,0)),\"\")","v":5},{"$f":"IFERROR(INDEX(Ranks!$1:$1048576,MATCH($E46,Ranks!$L:$L,0),MATCH(J$38,Ranks!$5:$5,0)),\"\")","v":4},{"$f":"IFERROR(INDEX(Ranks!$1:$1048576,MATCH($E46,Ranks!$L:$L,0),MATCH(K$38,Ranks!$5:$5,0)),\"\")","v":2},{"$f":"IFERROR(INDEX(Ranks!$1:$1048576,MATCH($E46,Ranks!$L:$L,0),MATCH(L$38,Ranks!$5:$5,0)),\"\")","v":4},{"$f":"IFERROR(INDEX(Ranks!$1:$1048576,MATCH($E46,Ranks!$L:$L,0),MATCH(M$38,Ranks!$5:$5,0)),\"\")","v":65},{"$f":"IFERROR(INDEX(Ranks!$1:$1048576,MATCH($E46,Ranks!$L:$L,0),MATCH(N$38,Ranks!$5:$5,0)),\"\")","v":""},{"$f":"IFERROR(INDEX(Ranks!$1:$1048576,MATCH($E46,Ranks!$L:$L,0),MATCH(O$38,Ranks!$5:$5,0)),\"\")","v":82},{"$f":"IFERROR(INDEX(Ranks!$1:$1048576,MATCH($E46,Ranks!$L:$L,0),MATCH(P$38,Ranks!$5:$5,0)),\"\")","v":82},{"$f":"IFERROR(INDEX(Ranks!$1:$1048576,MATCH($E46,Ranks!$L:$L,0),MATCH(Q$38,Ranks!$5:$5,0)),\"\")","v":71},{"$f":"IFERROR(INDEX(Ranks!$1:$1048576,MATCH($E46,Ranks!$L:$L,0),MATCH(R$38,Ranks!$5:$5,0)),\"\")","v":72},{"$f":"IFERROR(100-INDEX(Ranks!$1:$1048576,MATCH($E46,Ranks!$L:$L,0),MATCH(\"LTG Est (Inv)\",Ranks!$5:$5,0)),\"\")","v":90}]
[null,4.7125178900000002E-2,"2025-09-30",{"$f":"IFERROR(INDEX(Ranks!$1:$1048576,MATCH($E47,Ranks!$L:$L,0),MATCH(D$38,Ranks!$5:$5,0)),\"\")","v":52},"HGTY","HAGERTY INC",{"$f":"IFERROR(INDEX(Ranks!$1:$1048576,MATCH($E47,Ranks!$L:$L,0),MATCH(G$38,Ranks!$5:$5,0)),\"\")","v":11.74},{"$f":"IFERROR(INDEX(Ranks!$1:$1048576,MATCH($E47,Ranks!$L:$L,0),MATCH(H$38,Ranks!$5:$5,0)),\"\")","v":5},{"$f":"IFERROR(INDEX(Ranks!$1:$1048576,MATCH($E47,Ranks!$L:$L,0),MATCH(I$38,Ranks!$5:$5,0)),\"\")","v":4},{"$f":"IFERROR(INDEX(Ranks!$1:$1048576,MATCH($E47,Ranks!$L:$L,0),MATCH(J$38,Ranks!$5:$5,0)),\"\")","v":4},{"$f":"IFERROR(INDEX(Ranks!$1:$1048576,MATCH($E47,Ranks!$L:$L,0),MATCH(K$38,Ranks!$5:$5,0)),\"\")","v":4},{"$f":"IFERROR(INDEX(Ranks!$1:$1048576,MATCH($E47,Ranks!$L:$L,0),MATCH(L$38,Ranks!$5:$5,0)),\"\")","v":5},{"$f":"IFERROR(INDEX(Ranks!$1:$1048576,MATCH($E47,Ranks!$L:$L,0),MATCH(M$38,Ranks!$5:$5,0)),\"\")","v":63},{"$f":"IFERROR(INDEX(Ranks!$1:$1048576,MATCH($E47,Ranks!$L:$L,0),MATCH(N$38,Ranks!$5:$5,0)),\"\")","v":""},{"$f":"IFERROR(INDEX(Ranks!$1:$1048576,MATCH($E47,Ranks!$L:$L,0),MATCH(O$38,Ranks!$5:$5,0)),\"\")","v":35},{"$f":"IFERROR(INDEX(Ranks!$1:$1048576,MATCH($E47,Ranks!$L:$L,0),MATCH(P$38,Ranks!$5:$5,0)),\"\")","v":61},{"$f":"IFERROR(INDEX(Ranks!$1:$1048576,MATCH($E47,Ranks!$L:$L,0),MATCH(Q$38,Ranks!$5:$5,0)),\"\")","v":41},{"$f":"IFERROR(INDEX(Ranks!$1:$1048576,MATCH($E47,Ranks!$L:$L,0),MATCH(R$38,Ranks!$5:$5,0)),\"\")","v":38},{"$f":"IFERROR(100-INDEX(Ranks!$1:$1048576,MATCH($E47,Ranks!$L:$L,0),MATCH(\"LTG Est (Inv)\",Ranks!$5:$5,0)),\"\")","v":98}]
[null,3.8263419999999999E-2,"2025-03-31",{"$f":"IFERROR(INDEX(Ranks!$1:$1048576,MATCH($E48,Ranks!$L:$L,0),MATCH(D$38,Ranks!$5:$5,0)),\"\")","v":23},"LZ","LEGALZOOM.COM INC",{"$f":"IFERROR(INDEX(Ranks!$1:$1048576,MATCH($E48,Ranks!$L:$L,0),MATCH(G$38,Ranks!$5:$5,0)),\"\")","v":7.03},{"$f":"IFERROR(INDEX(Ranks!$1:$1048576,MATCH($E48,Ranks!$L:$L,0),MATCH(H$38,Ranks!$5:$5,0)),\"\")","v":5},{"$f":"IFERROR(INDEX(Ranks!$1:$1048576,MATCH($E48,Ranks!$L:$L,0),MATCH(I$38,Ranks!$5:$5,0)),\"\")","v":4},{"$f":"IFERROR(INDEX(Ranks!$1:$1048576,MATCH($E48,Ranks!$L:$L,0),MATCH(J$38,Ranks!$5:$5,0)),\"\")","v":5},{"$f":"IFERROR(INDEX(Ranks!$1:$1048576,MATCH($E48,Ranks!$L:$L,0),MATCH(K$38,Ranks!$5:$5,0)),\"\")","v":3},{"$f":"IFERROR(INDEX(Ranks!$1:$1048576,MATCH($E48,Ranks!$L:$L,0),MATCH(L$38,Ranks!$5:$5,0)),\"\")","v":3},{"$f":"IFERROR(INDEX(Ranks!$1:$1048576,MATCH($E48,Ranks!$L:$L,0),MATCH(M$38,Ranks!$5:$5,0)),\"\")","v":97},{"$f":"IFERROR(INDEX(Ranks!$1:$1048576,MATCH($E48,Ranks!$L:$L,0),MATCH(N$38,Ranks!$5:$5,0)),\"\")","v":""},{"$f":"IFERROR(INDEX(Ranks!$1:$1048576,MATCH($E48,Ranks!$L:$L,0),MATCH(O$38,Ranks!$5:$5,0)),\"\")","v":25},{"$f":"IFERROR(INDEX(Ranks!$1:$1048576,MATCH($E48,Ranks!$L:$L,0),MATCH(P$38,Ranks!$5:$5,0)),\"\")","v":53},{"$f":"IFERROR(INDEX(Ranks!$1:$1048576,MATCH($E48,Ranks!$L:$L,0),MATCH(Q$38,Ranks!$5:$5,0)),\"\")","v":34},{"$f":"IFERROR(INDEX(Ranks!$1:$1048576,MATCH($E48,Ranks!$L:$L,0),MATCH(R$38,Ranks!$5:$5,0)),\"\")","v":23},{"$f":"IFERROR(100-INDEX(Ranks!$1:$1048576,MATCH($E48,Ranks!$L:$L,0),MATCH(\"LTG Est (Inv)\",Ranks!$5:$5,0)),\"\")","v":72}]
[null,3.7400980299999997E-2,"2025-03-31",{"$f":"IFERROR(INDEX(Ranks!$1:$1048576,MATCH($E49,Ranks!$L:$L,0),MATCH(D$38,Ranks!$5:$5,0)),\"\")","v":34},"HCI","HCI GROUP INC",{"$f":"IFERROR(INDEX(Ranks!$1:$1048576,MATCH($E49,Ranks!$L:$L,0),MATCH(G$38,Ranks!$5:$5,0)),\"\")","v":176.42},{"$f":"IFERROR(INDEX(Ranks!$1:$1048576,MATCH($E49,Ranks!$L:$L,0),MATCH(H$38,Ranks!$5:$5,0)),\"\")","v":5},{"$f":"IFERROR(INDEX(Ranks!$1:$1048576,MATCH($E49,Ranks!$L:$L,0),MATCH(I$38,Ranks!$5:$5,0)),\"\")","v":4},{"$f":"IFERROR(INDEX(Ranks!$1:$1048576,MATCH($E49,Ranks!$L:$L,0),MATCH(J$38,Ranks!$5:$5,0)),\"\")","v":5},{"$f":"IFERROR(INDEX(Ranks!$1:$1048576,MATCH($E49,Ranks!$L:$L,0),MATCH(K$38,Ranks!$5:$5,0)),\"\")","v":5},{"$f":"IFERROR(INDEX(Ranks!$1:$1048576,MATCH($E49,Ranks!$L:$L,0),MATCH(L$38,Ranks!$5:$5,0)),\"\")","v":3},{"$f":"IFERROR(INDEX(Ranks!$1:$1048576,MATCH($E49,Ranks!$L:$L,0),MATCH(M$38,Ranks!$5:$5,0)),\"\")","v":75},{"$f":"IFERROR(INDEX(Ranks!$1:$1048576,MATCH($E49,Ranks!$L:$L,0),MATCH(N$38,Ranks!$5:$5,0)),\"\")","v":69},{"$f":"IFERROR(INDEX(Ranks!$1:$1048576,MATCH($E49,Ranks!$L:$L,0),MATCH(O$38,Ranks!$5:$5,0)),\"\")","v":85},{"$f":"IFERROR(INDEX(Ranks!$1:$1048576,MATCH($E49,Ranks!$L:$L,0),MATCH(P$38,Ranks!$5:$5,0)),\"\")","v":60},{"$f":"IFERROR(INDEX(Ranks!$1:$1048576,MATCH($E49,Ranks!$L:$L,0),MATCH(Q$38,Ranks!$5:$5,0)),\"\")","v":56},{"$f":"IFERROR(INDEX(Ranks!$1:$1048576,MATCH($E49,Ranks!$L:$L,0),MATCH(R$38,Ranks!$5:$5,0)),\"\")","v":46},{"$f":"IFERROR(100-INDEX(Ranks!$1:$1048576,MATCH($E49,Ranks!$L:$L,0),MATCH(\"LTG Est (Inv)\",Ranks!$5:$5,0)),\"\")","v":84}]
[null,3.7214972800000003E-2,"2025-04-30",{"$f":"IFERROR(INDEX(Ranks!$1:$1048576,MATCH($E50,Ranks!$L:$L,0),MATCH(D$38,Ranks!$5:$5,0)),\"\")","v":127},"ADNT","ADIENT PLC",{"$f":"IFERROR(INDEX(Ranks!$1:$1048576,MATCH($E50,Ranks!$L:$L,0),MATCH(G$38,Ranks!$5:$5,0)),\"\")","v":24.32},{"$f":"IFERROR(INDEX(Ranks!$1:$1048576,MATCH($E50,Ranks!$L:$L,0),MATCH(H$38,Ranks!$5:$5,0)),\"\")","v":5},{"$f":"IFERROR(INDEX(Ranks!$1:$1048576,MATCH($E50,Ranks!$L:$L,0),MATCH(I$38,Ranks!$5:$5,0)),\"\")","v":5},{"$f":"IFERROR(INDEX(Ranks!$1:$1048576,MATCH($E50,Ranks!$L:$L,0),MATCH(J$38,Ranks!$5:$5,0)),\"\")","v":2},{"$f":"IFERROR(INDEX(Ranks!$1:$1048576,MATCH($E50,Ranks!$L:$L,0),MATCH(K$38,Ranks!$5:$5,0)),\"\")","v":3},{"$f":"IFERROR(INDEX(Ranks!$1:$1048576,MATCH($E50,Ranks!$L:$L,0),MATCH(L$38,Ranks!$5:$5,0)),\"\")","v":2},{"$f":"IFERROR(INDEX(Ranks!$1:$1048576,MATCH($E50,Ranks!$L:$L,0),MATCH(M$38,Ranks!$5:$5,0)),\"\")","v":74},{"$f":"IFERROR(INDEX(Ranks!$1:$1048576,MATCH($E50,Ranks!$L:$L,0),MATCH(N$38,Ranks!$5:$5,0)),\"\")","v":33},{"$f":"IFERROR(INDEX(Ranks!$1:$1048576,MATCH($E50,Ranks!$L:$L,0),MATCH(O$38,Ranks!$5:$5,0)),\"\")","v":19},{"$f":"IFERROR(INDEX(Ranks!$1:$1048576,MATCH($E50,Ranks!$L:$L,0),MATCH(P$38,Ranks!$5:$5,0)),\"\")","v":52},{"$f":"IFERROR(INDEX(Ranks!$1:$1048576,MATCH($E50,Ranks!$L:$L,0),MATCH(Q$38,Ranks!$5:$5,0)),\"\")","v":25},{"$f":"IFERROR(INDEX(Ranks!$1:$1048576,MATCH($E50,Ranks!$L:$L,0),MATCH(R$38,Ranks!$5:$5,0)),\"\")","v":86},{"$f":"IFERROR(100-INDEX(Ranks!$1:$1048576,MATCH($E50,Ranks!$L:$L,0),MATCH(\"LTG Est (Inv)\",Ranks!$5:$5,0)),\"\")","v":83}]
[null,3.2732318000000003E-2,"2025-08-31",{"$f":"IFERROR(INDEX(Ranks!$1:$1048576,MATCH($E51,Ranks!$L:$L,0),MATCH(D$38,Ranks!$5:$5,0)),\"\")","v":20},"BGC","BGC GROUP INC",{"$f":"IFERROR(INDEX(Ranks!$1:$1048576,MATCH($E51,Ranks!$L:$L,0),MATCH(G$38,Ranks!$5:$5,0)),\"\")","v":9.52},{"$f":"IFERROR(INDEX(Ranks!$1:$1048576,MATCH($E51,Ranks!$L:$L,0),MATCH(H$38,Ranks!$5:$5,0)),\"\")","v":5},{"$f":"IFERROR(INDEX(Ranks!$1:$1048576,MATCH($E51,Ranks!$L:$L,0),MATCH(I$38,Ranks!$5:$5,0)),\"\")","v":5},{"$f":"IFERROR(INDEX(Ranks!$1:$1048576,MATCH($E51,Ranks!$L:$L,0),MATCH(J$38,Ranks!$5:$5,0)),\"\")","v":5},{"$f":"IFERROR(INDEX(Ranks!$1:$1048576,MATCH($E51,Ranks!$L:$L,0),MATCH(K$38,Ranks!$5:$5,0)),\"\")","v":5},{"$f":"IFERROR(INDEX(Ranks!$1:$1048576,MATCH($E51,Ranks!$L:$L,0),MATCH(L$38,Ranks!$5:$5,0)),\"\")","v":2},{"$f":"IFERROR(INDEX(Ranks!$1:$1048576,MATCH($E51,Ranks!$L:$L,0),MATCH(M$38,Ranks!$5:$5,0)),\"\")","v":54},{"$f":"IFERROR(INDEX(Ranks!$1:$1048576,MATCH($E51,Ranks!$L:$L,0),MATCH(N$38,Ranks!$5:$5,0)),\"\")","v":72},{"$f":"IFERROR(INDEX(Ranks!$1:$1048576,MATCH($E51,Ranks!$L:$L,0),MATCH(O$38,Ranks!$5:$5,0)),\"\")","v":43},{"$f":"IFERROR(INDEX(Ranks!$1:$1048576,MATCH($E51,Ranks!$L:$L,0),MATCH(P$38,Ranks!$5:$5,0)),\"\")","v":57},{"$f":"IFERROR(INDEX(Ranks!$1:$1048576,MATCH($E51,Ranks!$L:$L,0),MATCH(Q$38,Ranks!$5:$5,0)),\"\")","v":42},{"$f":"IFERROR(INDEX(Ranks!$1:$1048576,MATCH($E51,Ranks!$L:$L,0),MATCH(R$38,Ranks!$5:$5,0)),\"\")","v":43},{"$f":"IFERROR(100-INDEX(Ranks!$1:$1048576,MATCH($E51,Ranks!$L:$L,0),MATCH(\"LTG Est (Inv)\",Ranks!$5:$5,0)),\"\")","v":78}]
[null,3.0351649000000001E-2,"2025-06-30",{"$f":"IFERROR(INDEX(Ranks!$1:$1048576,MATCH($E52,Ranks!$L:$L,0),MATCH(D$38,Ranks!$5:$5,0)),\"\")","v":1056},"FIGS","FIGS INC",{"$f":"IFERROR(INDEX(Ranks!$1:$1048576,MATCH($E52,Ranks!$L:$L,0),MATCH(G$38,Ranks!$5:$5,0)),\"\")","v":15.45},{"$f":"IFERROR(INDEX(Ranks!$1:$1048576,MATCH($E52,Ranks!$L:$L,0),MATCH(H$38,Ranks!$5:$5,0)),\"\")","v":2},{"$f":"IFERROR(INDEX(Ranks!$1:$1048576,MATCH($E52,Ranks!$L:$L,0),MATCH(I$38,Ranks!$5:$5,0)),\"\")","v":3},{"$f":"IFERROR(INDEX(Ranks!$1:$1048576,MATCH($E52,Ranks!$L:$L,0),MATCH(J$38,Ranks!$5:$5,0)),\"\")","v":1},{"$f":"IFERROR(INDEX(Ranks!$1:$1048576,MATCH($E52,Ranks!$L:$L,0),MATCH(K$38,Ranks!$5:$5,0)),\"\")","v":5},{"$f":"IFERROR(INDEX(Ranks!$1:$1048576,MATCH($E52,Ranks!$L:$L,0),MATCH(L$38,Ranks!$5:$5,0)),\"\")","v":5},{"$f":"IFERROR(INDEX(Ranks!$1:$1048576,MATCH($E52,Ranks!$L:$L,0),MATCH(M$38,Ranks!$5:$5,0)),\"\")","v":32},{"$f":"IFERROR(INDEX(Ranks!$1:$1048576,MATCH($E52,Ranks!$L:$L,0),MATCH(N$38,Ranks!$5:$5,0)),\"\")","v":""},{"$f":"IFERROR(INDEX(Ranks!$1:$1048576,MATCH($E52,Ranks!$L:$L,0),MATCH(O$38,Ranks!$5:$5,0)),\"\")","v":21},{"$f":"IFERROR(INDEX(Ranks!$1:$1048576,MATCH($E52,Ranks!$L:$L,0),MATCH(P$38,Ranks!$5:$5,0)),\"\")","v":36},{"$f":"IFERROR(INDEX(Ranks!$1:$1048576,MATCH($E52,Ranks!$L:$L,0),MATCH(Q$38,Ranks!$5:$5,0)),\"\")","v":33},{"$f":"IFERROR(INDEX(Ranks!$1:$1048576,MATCH($E52,Ranks!$L:$L,0),MATCH(R$38,Ranks!$5:$5,0)),\"\")","v":33},{"$f":"IFERROR(100-INDEX(Ranks!$1:$1048576,MATCH($E52,Ranks!$L:$L,0),MATCH(\"LTG Est (Inv)\",Ranks!$5:$5,0)),\"\")","v":""}]
[null,3.0289290999999999E-2,"2025-11-30",{"$f":"IFERROR(INDEX(Ranks!$1:$1048576,MATCH($E53,Ranks!$L:$L,0),MATCH(D$38,Ranks!$5:$5,0)),\"\")","v":33},"NVGS","NAVIGATOR HOLDINGS LTD",{"$f":"IFERROR(INDEX(Ranks!$1:$1048576,MATCH($E53,Ranks!$L:$L,0),MATCH(G$38,Ranks!$5:$5,0)),\"\")","v":21.02},{"$f":"IFERROR(INDEX(Ranks!$1:$1048576,MATCH($E53,Ranks!$L:$L,0),MATCH(H$38,Ranks!$5:$5,0)),\"\")","v":4},{"$f":"IFERROR(INDEX(Ranks!$1:$1048576,MATCH($E53,Ranks!$L:$L,0),MATCH(I$38,Ranks!$5:$5,0)),\"\")","v":5},{"$f":"IFERROR(INDEX(Ranks!$1:$1048576,MATCH($E53,Ranks!$L:$L,0),MATCH(J$38,Ranks!$5:$5,0)),\"\")","v":4},{"$f":"IFERROR(INDEX(Ranks!$1:$1048576,MATCH($E53,Ranks!$L:$L,0),MATCH(K$38,Ranks!$5:$5,0)),\"\")","v":2},{"$f":"IFERROR(INDEX(Ranks!$1:$1048576,MATCH($E53,Ranks!$L:$L,0),MATCH(L$38,Ranks!$5:$5,0)),\"\")","v":5},{"$f":"IFERROR(INDEX(Ranks!$1:$1048576,MATCH($E53,Ranks!$L:$L,0),MATCH(M$38,Ranks!$5:$5,0)),\"\")","v":47},{"$f":"IFERROR(INDEX(Ranks!$1:$1048576,MATCH($E53,Ranks!$L:$L,0),MATCH(N$38,Ranks!$5:$5,0)),\"\")","v":72},{"$f":"IFERROR(INDEX(Ranks!$1:$1048576,MATCH($E53,Ranks!$L:$L,0),MATCH(O$38,Ranks!$5:$5,0)),\"\")","v":92},{"$f":"IFERROR(INDEX(Ranks!$1:$1048576,MATCH($E53,Ranks!$L:$L,0),MATCH(P$38,Ranks!$5:$5,0)),\"\")","v":28},{"$f":"IFERROR(INDEX(Ranks!$1:$1048576,MATCH($E53,Ranks!$L:$L,0),MATCH(Q$38,Ranks!$5:$5,0)),\"\")","v":73},{"$f":"IFERROR(INDEX(Ranks!$1:$1048576,MATCH($E53,Ranks!$L:$L,0),MATCH(R$38,Ranks!$5:$5,0)),\"\")","v":57},{"$f":"IFERROR(100-INDEX(Ranks!$1:$1048576,MATCH($E53,Ranks!$L:$L,0),MATCH(\"LTG Est (Inv)\",Ranks!$5:$5,0)),\"\")","v":52}]
[null,2.9610727900000001E-2,"2025-04-30",{"$f":"IFERROR(INDEX(Ranks!$1:$1048576,MATCH($E54,Ranks!$L:$L,0),MATCH(D$38,Ranks!$5:$5,0)),\"\")","v":216},"PHIN","PHINIA INC",{"$f":"IFERROR(INDEX(Ranks!$1:$1048576,MATCH($E54,Ranks!$L:$L,0),MATCH(G$38,Ranks!$5:$5,0)),\"\")","v":72.63},{"$f":"IFERROR(INDEX(Ranks!$1:$1048576,MATCH($E54,Ranks!$L:$L,0),MATCH(H$38,Ranks!$5:$5,0)),\"\")","v":4},{"$f":"IFERROR(INDEX(Ranks!$1:$1048576,MATCH($E54,Ranks!$L:$L,0),MATCH(I$38,Ranks!$5:$5,0)),\"\")","v":5},{"$f":"IFERROR(INDEX(Ranks!$1:$1048576,MATCH($E54,Ranks!$L:$L,0),MATCH(J$38,Ranks!$5:$5,0)),\"\")","v":2},{"$f":"IFERROR(INDEX(Ranks!$1:$1048576,MATCH($E54,Ranks!$L:$L,0),MATCH(K$38,Ranks!$5:$5,0)),\"\")","v":4},{"$f":"IFERROR(INDEX(Ranks!$1:$1048576,MATCH($E54,Ranks!$L:$L,0),MATCH(L$38,Ranks!$5:$5,0)),\"\")","v":5},{"$f":"IFERROR(INDEX(Ranks!$1:$1048576,MATCH($E54,Ranks!$L:$L,0),MATCH(M$38,Ranks!$5:$5,0)),\"\")","v":52},{"$f":"IFERROR(INDEX(Ranks!$1:$1048576,MATCH($E54,Ranks!$L:$L,0),MATCH(N$38,Ranks!$5:$5,0)),\"\")","v":""},{"$f":"IFERROR(INDEX(Ranks!$1:$1048576,MATCH($E54,Ranks!$L:$L,0),MATCH(O$38,Ranks!$5:$5,0)),\"\")","v":43},{"$f":"IFERROR(INDEX(Ranks!$1:$1048576,MATCH($E54,Ranks!$L:$L,0),MATCH(P$38,Ranks!$5:$5,0)),\"\")","v":49},{"$f":"IFERROR(INDEX(Ranks!$1:$1048576,MATCH($E54,Ranks!$L:$L,0),MATCH(Q$38,Ranks!$5:$5,0)),\"\")","v":60},{"$f":"IFERROR(INDEX(Ranks!$1:$1048576,MATCH($E54,Ranks!$L:$L,0),MATCH(R$38,Ranks!$5:$5,0)),\"\")","v":63},{"$f":"IFERROR(100-INDEX(Ranks!$1:$1048576,MATCH($E54,Ranks!$L:$L,0),MATCH(\"LTG Est (Inv)\",Ranks!$5:$5,0)),\"\")","v":""}]
[null,2.6739029800000001E-2,"2025-11-30",{"$f":"IFERROR(INDEX(Ranks!$1:$1048576,MATCH($E55,Ranks!$L:$L,0),MATCH(D$38,Ranks!$5:$5,0)),\"\")","v":1},"IHS","IHS HOLDING LIMITED",{"$f":"IFERROR(INDEX(Ranks!$1:$1048576,MATCH($E55,Ranks!$L:$L,0),MATCH(G$38,Ranks!$5:$5,0)),\"\")","v":8},{"$f":"IFERROR(INDEX(Ranks!$1:$1048576,MATCH($E55,Ranks!$L:$L,0),MATCH(H$38,Ranks!$5:$5,0)),\"\")","v":5},{"$f":"IFERROR(INDEX(Ranks!$1:$1048576,MATCH($E55,Ranks!$L:$L,0),MATCH(I$38,Ranks!$5:$5,0)),\"\")","v":4},{"$f":"IFERROR(INDEX(Ranks!$1:$1048576,MATCH($E55,Ranks!$L:$L,0),MATCH(J$38,Ranks!$5:$5,0)),\"\")","v":4},{"$f":"IFERROR(INDEX(Ranks!$1:$1048576,MATCH($E55,Ranks!$L:$L,0),MATCH(K$38,Ranks!$5:$5,0)),\"\")","v":2},{"$f":"IFERROR(INDEX(Ranks!$1:$1048576,MATCH($E55,Ranks!$L:$L,0),MATCH(L$38,Ranks!$5:$5,0)),\"\")","v":5},{"$f":"IFERROR(INDEX(Ranks!$1:$1048576,MATCH($E55,Ranks!$L:$L,0),MATCH(M$38,Ranks!$5:$5,0)),\"\")","v":84},{"$f":"IFERROR(INDEX(Ranks!$1:$1048576,MATCH($E55,Ranks!$L:$L,0),MATCH(N$38,Ranks!$5:$5,0)),\"\")","v":""},{"$f":"IFERROR(INDEX(Ranks!$1:$1048576,MATCH($E55,Ranks!$L:$L,0),MATCH(O$38,Ranks!$5:$5,0)),\"\")","v":95},{"$f":"IFERROR(INDEX(Ranks!$1:$1048576,MATCH($E55,Ranks!$L:$L,0),MATCH(P$38,Ranks!$5:$5,0)),\"\")","v":67},{"$f":"IFERROR(INDEX(Ranks!$1:$1048576,MATCH($E55,Ranks!$L:$L,0),MATCH(Q$38,Ranks!$5:$5,0)),\"\")","v":0},{"$f":"IFERROR(INDEX(Ranks!$1:$1048576,MATCH($E55,Ranks!$L:$L,0),MATCH(R$38,Ranks!$5:$5,0)),\"\")","v":0},{"$f":"IFERROR(100-INDEX(Ranks!$1:$1048576,MATCH($E55,Ranks!$L:$L,0),MATCH(\"LTG Est (Inv)\",Ranks!$5:$5,0)),\"\")","v":81}]
[null,2.33072878E-2,"2025-04-30",{"$f":"IFERROR(INDEX(Ranks!$1:$1048576,MATCH($E56,Ranks!$L:$L,0),MATCH(D$38,Ranks!$5:$5,0)),\"\")","v":314},"YOU","CLEAR SECURE INC",{"$f":"IFERROR(INDEX(Ranks!$1:$1048576,MATCH($E56,Ranks!$L:$L,0),MATCH(G$38,Ranks!$5:$5,0)),\"\")","v":48.64},{"$f":"IFERROR(INDEX(Ranks!$1:$1048576,MATCH($E56,Ranks!$L:$L,0),MATCH(H$38,Ranks!$5:$5,0)),\"\")","v":3},{"$f":"IFERROR(INDEX(Ranks!$1:$1048576,MATCH($E56,Ranks!$L:$L,0),MATCH(I$38,Ranks!$5:$5,0)),\"\")","v":4},{"$f":"IFERROR(INDEX(Ranks!$1:$1048576,MATCH($E56,Ranks!$L:$L,0),MATCH(J$38,Ranks!$5:$5,0)),\"\")","v":5},{"$f":"IFERROR(INDEX(Ranks!$1:$1048576,MATCH($E56,Ranks!$L:$L,0),MATCH(K$38,Ranks!$5:$5,0)),\"\")","v":4},{"$f":"IFERROR(INDEX(Ranks!$1:$1048576,MATCH($E56,Ranks!$L:$L,0),MATCH(L$38,Ranks!$5:$5,0)),\"\")","v":3},{"$f":"IFERROR(INDEX(Ranks!$1:$1048576,MATCH($E56,Ranks!$L:$L,0),MATCH(M$38,Ranks!$5:$5,0)),\"\")","v":83},{"$f":"IFERROR(INDEX(Ranks!$1:$1048576,MATCH($E56,Ranks!$L:$L,0),MATCH(N$38,Ranks!$5:$5,0)),\"\")","v":""},{"$f":"IFERROR(INDEX(Ranks!$1:$1048576,MATCH($E56,Ranks!$L:$L,0),MATCH(O$38,Ranks!$5:$5,0)),\"\")","v":66},{"$f":"IFERROR(INDEX(Ranks!$1:$1048576,MATCH($E56,Ranks!$L:$L,0),MATCH(P$38,Ranks!$5:$5,0)),\"\")","v":51},{"$f":"IFERROR(INDEX(Ranks!$1:$1048576,MATCH($E56,Ranks!$L:$L,0),MATCH(Q$38,Ranks!$5:$5,0)),\"\")","v":38},{"$f":"IFERROR(INDEX(Ranks!$1:$1048576,MATCH($E56,Ranks!$L:$L,0),MATCH(R$38,Ranks!$5:$5,0)),\"\")","v":34},{"$f":"IFERROR(100-INDEX(Ranks!$1:$1048576,MATCH($E56,Ranks!$L:$L,0),MATCH(\"LTG Est (Inv)\",Ranks!$5:$5,0)),\"\")","v":""}]
[null,1.6676640100000001E-2,"2025-07-31",{"$f":"IFERROR(INDEX(Ranks!$1:$1048576,MATCH($E57,Ranks!$L:$L,0),MATCH(D$38,Ranks!$5:$5,0)),\"\")","v":149},"EXEL","EXELIXIS INC",{"$f":"IFERROR(INDEX(Ranks!$1:$1048576,MATCH($E57,Ranks!$L:$L,0),MATCH(G$38,Ranks!$5:$5,0)),\"\")","v":44.06},{"$f":"IFERROR(INDEX(Ranks!$1:$1048576,MATCH($E57,Ranks!$L:$L,0),MATCH(H$38,Ranks!$5:$5,0)),\"\")","v":5},{"$f":"IFERROR(INDEX(Ranks!$1:$1048576,MATCH($E57,Ranks!$L:$L,0),MATCH(I$38,Ranks!$5:$5,0)),\"\")","v":4},{"$f":"IFERROR(INDEX(Ranks!$1:$1048576,MATCH($E57,Ranks!$L:$L,0),MATCH(J$38,Ranks!$5:$5,0)),\"\")","v":5},{"$f":"IFERROR(INDEX(Ranks!$1:$1048576,MATCH($E57,Ranks!$L:$L,0),MATCH(K$38,Ranks!$5:$5,0)),\"\")","v":4},{"$f":"IFERROR(INDEX(Ranks!$1:$1048576,MATCH($E57,Ranks!$L:$L,0),MATCH(L$38,Ranks!$5:$5,0)),\"\")","v":2},{"$f":"IFERROR(INDEX(Ranks!$1:$1048576,MATCH($E57,Ranks!$L:$L,0),MATCH(M$38,Ranks!$5:$5,0)),\"\")","v":42},{"$f":"IFERROR(INDEX(Ranks!$1:$1048576,MATCH($E57,Ranks!$L:$L,0),MATCH(N$38,Ranks!$5:$5,0)),\"\")","v":85},{"$f":"IFERROR(INDEX(Ranks!$1:$1048576,MATCH($E57,Ranks!$L:$L,0),MATCH(O$38,Ranks!$5:$5,0)),\"\")","v":87},{"$f":"IFERROR(INDEX(Ranks!$1:$1048576,MATCH($E57,Ranks!$L:$L,0),MATCH(P$38,Ranks!$5:$5,0)),\"\")","v":84},{"$f":"IFERROR(INDEX(Ranks!$1:$1048576,MATCH($E57,Ranks!$L:$L,0),MATCH(Q$38,Ranks!$5:$5,0)),\"\")","v":59},{"$f":"IFERROR(INDEX(Ranks!$1:$1048576,MATCH($E57,Ranks!$L:$L,0),MATCH(R$38,Ranks!$5:$5,0)),\"\")","v":53},{"$f":"IFERROR(100-INDEX(Ranks!$1:$1048576,MATCH($E57,Ranks!$L:$L,0),MATCH(\"LTG Est (Inv)\",Ranks!$5:$5,0)),\"\")","v":80}]
[null,1.5628728599999999E-2,"2025-07-31",{"$f":"IFERROR(INDEX(Ranks!$1:$1048576,MATCH($E58,Ranks!$L:$L,0),MATCH(D$38,Ranks!$5:$5,0)),\"\")","v":165},"OI","O-I GLASS INC",{"$f":"IFERROR(INDEX(Ranks!$1:$1048576,MATCH($E58,Ranks!$L:$L,0),MATCH(G$38,Ranks!$5:$5,0)),\"\")","v":13.4},{"$f":"IFERROR(INDEX(Ranks!$1:$1048576,MATCH($E58,Ranks!$L:$L,0),MATCH(H$38,Ranks!$5:$5,0)),\"\")","v":5},{"$f":"IFERROR(INDEX(Ranks!$1:$1048576,MATCH($E58,Ranks!$L:$L,0),MATCH(I$38,Ranks!$5:$5,0)),\"\")","v":5},{"$f":"IFERROR(INDEX(Ranks!$1:$1048576,MATCH($E58,Ranks!$L:$L,0),MATCH(J$38,Ranks!$5:$5,0)),\"\")","v":2},{"$f":"IFERROR(INDEX(Ranks!$1:$1048576,MATCH($E58,Ranks!$L:$L,0),MATCH(K$38,Ranks!$5:$5,0)),\"\")","v":3},{"$f":"IFERROR(INDEX(Ranks!$1:$1048576,MATCH($E58,Ranks!$L:$L,0),MATCH(L$38,Ranks!$5:$5,0)),\"\")","v":2},{"$f":"IFERROR(INDEX(Ranks!$1:$1048576,MATCH($E58,Ranks!$L:$L,0),MATCH(M$38,Ranks!$5:$5,0)),\"\")","v":72},{"$f":"IFERROR(INDEX(Ranks!$1:$1048576,MATCH($E58,Ranks!$L:$L,0),MATCH(N$38,Ranks!$5:$5,0)),\"\")","v":2},{"$f":"IFERROR(INDEX(Ranks!$1:$1048576,MATCH($E58,Ranks!$L:$L,0),MATCH(O$38,Ranks!$5:$5,0)),\"\")","v":49},{"$f":"IFERROR(INDEX(Ranks!$1:$1048576,MATCH($E58,Ranks!$L:$L,0),MATCH(P$38,Ranks!$5:$5,0)),\"\")","v":32},{"$f":"IFERROR(INDEX(Ranks!$1:$1048576,MATCH($E58,Ranks!$L:$L,0),MATCH(Q$38,Ranks!$5:$5,0)),\"\")","v":26},{"$f":"IFERROR(INDEX(Ranks!$1:$1048576,MATCH($E58,Ranks!$L:$L,0),MATCH(R$38,Ranks!$5:$5,0)),\"\")","v":74},{"$f":"IFERROR(100-INDEX(Ranks!$1:$1048576,MATCH($E58,Ranks!$L:$L,0),MATCH(\"LTG Est (Inv)\",Ranks!$5:$5,0)),\"\")","v":90}]
[null,1.5576495500000001E-2,"2025-07-31",{"$f":"IFERROR(INDEX(Ranks!$1:$1048576,MATCH($E59,Ranks!$L:$L,0),MATCH(D$38,Ranks!$5:$5,0)),\"\")","v":176},"TCBI","TEXAS CAPITAL BANCSHARES INC",{"$f":"IFERROR(INDEX(Ranks!$1:$1048576,MATCH($E59,Ranks!$L:$L,0),MATCH(G$38,Ranks!$5:$5,0)),\"\")","v":95.3},{"$f":"IFERROR(INDEX(Ranks!$1:$1048576,MATCH($E59,Ranks!$L:$L,0),MATCH(H$38,Ranks!$5:$5,0)),\"\")","v":5},{"$f":"IFERROR(INDEX(Ranks!$1:$1048576,MATCH($E59,Ranks!$L:$L,0),MATCH(I$38,Ranks!$5:$5,0)),\"\")","v":5},{"$f":"IFERROR(INDEX(Ranks!$1:$1048576,MATCH($E59,Ranks!$L:$L,0),MATCH(J$38,Ranks!$5:$5,0)),\"\")","v":2},{"$f":"IFERROR(INDEX(Ranks!$1:$1048576,MATCH($E59,Ranks!$L:$L,0),MATCH(K$38,Ranks!$5:$5,0)),\"\")","v":5},{"$f":"IFERROR(INDEX(Ranks!$1:$1048576,MATCH($E59,Ranks!$L:$L,0),MATCH(L$38,Ranks!$5:$5,0)),\"\")","v":4},{"$f":"IFERROR(INDEX(Ranks!$1:$1048576,MATCH($E59,Ranks!$L:$L,0),MATCH(M$38,Ranks!$5:$5,0)),\"\")","v":15},{"$f":"IFERROR(INDEX(Ranks!$1:$1048576,MATCH($E59,Ranks!$L:$L,0),MATCH(N$38,Ranks!$5:$5,0)),\"\")","v":64},{"$f":"IFERROR(INDEX(Ranks!$1:$1048576,MATCH($E59,Ranks!$L:$L,0),MATCH(O$38,Ranks!$5:$5,0)),\"\")","v":81},{"$f":"IFERROR(INDEX(Ranks!$1:$1048576,MATCH($E59,Ranks!$L:$L,0),MATCH(P$38,Ranks!$5:$5,0)),\"\")","v":86},{"$f":"IFERROR(INDEX(Ranks!$1:$1048576,MATCH($E59,Ranks!$L:$L,0),MATCH(Q$38,Ranks!$5:$5,0)),\"\")","v":69},{"$f":"IFERROR(INDEX(Ranks!$1:$1048576,MATCH($E59,Ranks!$L:$L,0),MATCH(R$38,Ranks!$5:$5,0)),\"\")","v":71},{"$f":"IFERROR(100-INDEX(Ranks!$1:$1048576,MATCH($E59,Ranks!$L:$L,0),MATCH(\"LTG Est (Inv)\",Ranks!$5:$5,0)),\"\")","v":87}]
[null,1.1930946899999999E-2,"2025-05-31",{"$f":"IFERROR(INDEX(Ranks!$1:$1048576,MATCH($E60,Ranks!$L:$L,0),MATCH(D$38,Ranks!$5:$5,0)),\"\")","v":827},"AXS","AXIS CAPITAL HOLDINGS LTD",{"$f":"IFERROR(INDEX(Ranks!$1:$1048576,MATCH($E60,Ranks!$L:$L,0),MATCH(G$38,Ranks!$5:$5,0)),\"\")","v":105.72},{"$f":"IFERROR(INDEX(Ranks!$1:$1048576,MATCH($E60,Ranks!$L:$L,0),MATCH(H$38,Ranks!$5:$5,0)),\"\")","v":1},{"$f":"IFERROR(INDEX(Ranks!$1:$1048576,MATCH($E60,Ranks!$L:$L,0),MATCH(I$38,Ranks!$5:$5,0)),\"\")","v":5},{"$f":"IFERROR(INDEX(Ranks!$1:$1048576,MATCH($E60,Ranks!$L:$L,0),MATCH(J$38,Ranks!$5:$5,0)),\"\")","v":2},{"$f":"IFERROR(INDEX(Ranks!$1:$1048576,MATCH($E60,Ranks!$L:$L,0),MATCH(K$38,Ranks!$5:$5,0)),\"\")","v":4},{"$f":"IFERROR(INDEX(Ranks!$1:$1048576,MATCH($E60,Ranks!$L:$L,0),MATCH(L$38,Ranks!$5:$5,0)),\"\")","v":2},{"$f":"IFERROR(INDEX(Ranks!$1:$1048576,MATCH($E60,Ranks!$L:$L,0),MATCH(M$38,Ranks!$5:$5,0)),\"\")","v":5},{"$f":"IFERROR(INDEX(Ranks!$1:$1048576,MATCH($E60,Ranks!$L:$L,0),MATCH(N$38,Ranks!$5:$5,0)),\"\")","v":79},{"$f":"IFERROR(INDEX(Ranks!$1:$1048576,MATCH($E60,Ranks!$L:$L,0),MATCH(O$38,Ranks!$5:$5,0)),\"\")","v":61},{"$f":"IFERROR(INDEX(Ranks!$1:$1048576,MATCH($E60,Ranks!$L:$L,0),MATCH(P$38,Ranks!$5:$5,0)),\"\")","v":""},{"$f":"IFERROR(INDEX(Ranks!$1:$1048576,MATCH($E60,Ranks!$L:$L,0),MATCH(Q$38,Ranks!$5:$5,0)),\"\")","v":83},{"$f":"IFERROR(INDEX(Ranks!$1:$1048576,MATCH($E60,Ranks!$L:$L,0),MATCH(R$38,Ranks!$5:$5,0)),\"\")","v":77},{"$f":"IFERROR(100-INDEX(Ranks!$1:$1048576,MATCH($E60,Ranks!$L:$L,0),MATCH(\"LTG Est (Inv)\",Ranks!$5:$5,0)),\"\")","v":24}]
[null,1.0374117299999999E-2,"2025-03-31",{"$f":"IFERROR(INDEX(Ranks!$1:$1048576,MATCH($E61,Ranks!$L:$L,0),MATCH(D$38,Ranks!$5:$5,0)),\"\")","v":10},"HG","HAMILTON INSURANCE GROUP LTD",{"$f":"IFERROR(INDEX(Ranks!$1:$1048576,MATCH($E61,Ranks!$L:$L,0),MATCH(G$38,Ranks!$5:$5,0)),\"\")","v":31.59},{"$f":"IFERROR(INDEX(Ranks!$1:$1048576,MATCH($E61,Ranks!$L:$L,0),MATCH(H$38,Ranks!$5:$5,0)),\"\")","v":5},{"$f":"IFERROR(INDEX(Ranks!$1:$1048576,MATCH($E61,Ranks!$L:$L,0),MATCH(I$38,Ranks!$5:$5,0)),\"\")","v":5},{"$f":"IFERROR(INDEX(Ranks!$1:$1048576,MATCH($E61,Ranks!$L:$L,0),MATCH(J$38,Ranks!$5:$5,0)),\"\")","v":4},{"$f":"IFERROR(INDEX(Ranks!$1:$1048576,MATCH($E61,Ranks!$L:$L,0),MATCH(K$38,Ranks!$5:$5,0)),\"\")","v":4},{"$f":"IFERROR(INDEX(Ranks!$1:$1048576,MATCH($E61,Ranks!$L:$L,0),MATCH(L$38,Ranks!$5:$5,0)),\"\")","v":5},{"$f":"IFERROR(INDEX(Ranks!$1:$1048576,MATCH($E61,Ranks!$L:$L,0),MATCH(M$38,Ranks!$5:$5,0)),\"\")","v":48},{"$f":"IFERROR(INDEX(Ranks!$1:$1048576,MATCH($E61,Ranks!$L:$L,0),MATCH(N$38,Ranks!$5:$5,0)),\"\")","v":""},{"$f":"IFERROR(INDEX(Ranks!$1:$1048576,MATCH($E61,Ranks!$L:$L,0),MATCH(O$38,Ranks!$5:$5,0)),\"\")","v":72},{"$f":"IFERROR(INDEX(Ranks!$1:$1048576,MATCH($E61,Ranks!$L:$L,0),MATCH(P$38,Ranks!$5:$5,0)),\"\")","v":""},{"$f":"IFERROR(INDEX(Ranks!$1:$1048576,MATCH($E61,Ranks!$L:$L,0),MATCH(Q$38,Ranks!$5:$5,0)),\"\")","v":94},{"$f":"IFERROR(INDEX(Ranks!$1:$1048576,MATCH($E61,Ranks!$L:$L,0),MATCH(R$38,Ranks!$5:$5,0)),\"\")","v":94},{"$f":"IFERROR(100-INDEX(Ranks!$1:$1048576,MATCH($E61,Ranks!$L:$L,0),MATCH(\"LTG Est (Inv)\",Ranks!$5:$5,0)),\"\")","v":""}]
[null,9.7776139000000008E-3,"2026-01-31",{"$f":"IFERROR(INDEX(Ranks!$1:$1048576,MATCH($E62,Ranks!$L:$L,0),MATCH(D$38,Ranks!$5:$5,0)),\"\")","v":19},"SNCY","SUN CONTY AIR HLD INC",{"$f":"IFERROR(INDEX(Ranks!$1:$1048576,MATCH($E62,Ranks!$L:$L,0),MATCH(G$38,Ranks!$5:$5,0)),\"\")","v":19.68},{"$f":"IFERROR(INDEX(Ranks!$1:$1048576,MATCH($E62,Ranks!$L:$L,0),MATCH(H$38,Ranks!$5:$5,0)),\"\")","v":5},{"$f":"IFERROR(INDEX(Ranks!$1:$1048576,MATCH($E62,Ranks!$L:$L,0),MATCH(I$38,Ranks!$5:$5,0)),\"\")","v":5},{"$f":"IFERROR(INDEX(Ranks!$1:$1048576,MATCH($E62,Ranks!$L:$L,0),MATCH(J$38,Ranks!$5:$5,0)),\"\")","v":3},{"$f":"IFERROR(INDEX(Ranks!$1:$1048576,MATCH($E62,Ranks!$L:$L,0),MATCH(K$38,Ranks!$5:$5,0)),\"\")","v":4},{"$f":"IFERROR(INDEX(Ranks!$1:$1048576,MATCH($E62,Ranks!$L:$L,0),MATCH(L$38,Ranks!$5:$5,0)),\"\")","v":4},{"$f":"IFERROR(INDEX(Ranks!$1:$1048576,MATCH($E62,Ranks!$L:$L,0),MATCH(M$38,Ranks!$5:$5,0)),\"\")","v":63},{"$f":"IFERROR(INDEX(Ranks!$1:$1048576,MATCH($E62,Ranks!$L:$L,0),MATCH(N$38,Ranks!$5:$5,0)),\"\")","v":""},{"$f":"IFERROR(INDEX(Ranks!$1:$1048576,MATCH($E62,Ranks!$L:$L,0),MATCH(O$38,Ranks!$5:$5,0)),\"\")","v":55},{"$f":"IFERROR(INDEX(Ranks!$1:$1048576,MATCH($E62,Ranks!$L:$L,0),MATCH(P$38,Ranks!$5:$5,0)),\"\")","v":52},{"$f":"IFERROR(INDEX(Ranks!$1:$1048576,MATCH($E62,Ranks!$L:$L,0),MATCH(Q$38,Ranks!$5:$5,0)),\"\")","v":73},{"$f":"IFERROR(INDEX(Ranks!$1:$1048576,MATCH($E62,Ranks!$L:$L,0),MATCH(R$38,Ranks!$5:$5,0)),\"\")","v":69},{"$f":"IFERROR(100-INDEX(Ranks!$1:$1048576,MATCH($E62,Ranks!$L:$L,0),MATCH(\"LTG Est (Inv)\",Ranks!$5:$5,0)),\"\")","v":""}]
[null,9.5235554999999993E-3,"2025-03-31",{"$f":"IFERROR(INDEX(Ranks!$1:$1048576,MATCH($E63,Ranks!$L:$L,0),MATCH(D$38,Ranks!$5:$5,0)),\"\")","v":70},"HOG","HARLEY-DAVIDSON INC",{"$f":"IFERROR(INDEX(Ranks!$1:$1048576,MATCH($E63,Ranks!$L:$L,0),MATCH(G$38,Ranks!$5:$5,0)),\"\")","v":18},{"$f":"IFERROR(INDEX(Ranks!$1:$1048576,MATCH($E63,Ranks!$L:$L,0),MATCH(H$38,Ranks!$5:$5,0)),\"\")","v":4},{"$f":"IFERROR(INDEX(Ranks!$1:$1048576,MATCH($E63,Ranks!$L:$L,0),MATCH(I$38,Ranks!$5:$5,0)),\"\")","v":5},{"$f":"IFERROR(INDEX(Ranks!$1:$1048576,MATCH($E63,Ranks!$L:$L,0),MATCH(J$38,Ranks!$5:$5,0)),\"\")","v":4},{"$f":"IFERROR(INDEX(Ranks!$1:$1048576,MATCH($E63,Ranks!$L:$L,0),MATCH(K$38,Ranks!$5:$5,0)),\"\")","v":1},{"$f":"IFERROR(INDEX(Ranks!$1:$1048576,MATCH($E63,Ranks!$L:$L,0),MATCH(L$38,Ranks!$5:$5,0)),\"\")","v":1},{"$f":"IFERROR(INDEX(Ranks!$1:$1048576,MATCH($E63,Ranks!$L:$L,0),MATCH(M$38,Ranks!$5:$5,0)),\"\")","v":20},{"$f":"IFERROR(INDEX(Ranks!$1:$1048576,MATCH($E63,Ranks!$L:$L,0),MATCH(N$38,Ranks!$5:$5,0)),\"\")","v":67},{"$f":"IFERROR(INDEX(Ranks!$1:$1048576,MATCH($E63,Ranks!$L:$L,0),MATCH(O$38,Ranks!$5:$5,0)),\"\")","v":48},{"$f":"IFERROR(INDEX(Ranks!$1:$1048576,MATCH($E63,Ranks!$L:$L,0),MATCH(P$38,Ranks!$5:$5,0)),\"\")","v":40},{"$f":"IFERROR(INDEX(Ranks!$1:$1048576,MATCH($E63,Ranks!$L:$L,0),MATCH(Q$38,Ranks!$5:$5,0)),\"\")","v":99},{"$f":"IFERROR(INDEX(Ranks!$1:$1048576,MATCH($E63,Ranks!$L:$L,0),MATCH(R$38,Ranks!$5:$5,0)),\"\")","v":99},{"$f":"IFERROR(100-INDEX(Ranks!$1:$1048576,MATCH($E63,Ranks!$L:$L,0),MATCH(\"LTG Est (Inv)\",Ranks!$5:$5,0)),\"\")","v":8}]
[null,9.3199971999999992E-3,"2025-08-31",{"$f":"IFERROR(INDEX(Ranks!$1:$1048576,MATCH($E64,Ranks!$L:$L,0),MATCH(D$38,Ranks!$5:$5,0)),\"\")","v":222},"TRIP","TRIPADVISOR INC",{"$f":"IFERROR(INDEX(Ranks!$1:$1048576,MATCH($E64,Ranks!$L:$L,0),MATCH(G$38,Ranks!$5:$5,0)),\"\")","v":10.11},{"$f":"IFERROR(INDEX(Ranks!$1:$1048576,MATCH($E64,Ranks!$L:$L,0),MATCH(H$38,Ranks!$5:$5,0)),\"\")","v":5},{"$f":"IFERROR(INDEX(Ranks!$1:$1048576,MATCH($E64,Ranks!$L:$L,0),MATCH(I$38,Ranks!$5:$5,0)),\"\")","v":5},{"$f":"IFERROR(INDEX(Ranks!$1:$1048576,MATCH($E64,Ranks!$L:$L,0),MATCH(J$38,Ranks!$5:$5,0)),\"\")","v":3},{"$f":"IFERROR(INDEX(Ranks!$1:$1048576,MATCH($E64,Ranks!$L:$L,0),MATCH(K$38,Ranks!$5:$5,0)),\"\")","v":1},{"$f":"IFERROR(INDEX(Ranks!$1:$1048576,MATCH($E64,Ranks!$L:$L,0),MATCH(L$38,Ranks!$5:$5,0)),\"\")","v":1},{"$f":"IFERROR(INDEX(Ranks!$1:$1048576,MATCH($E64,Ranks!$L:$L,0),MATCH(M$38,Ranks!$5:$5,0)),\"\")","v":72},{"$f":"IFERROR(INDEX(Ranks!$1:$1048576,MATCH($E64,Ranks!$L:$L,0),MATCH(N$38,Ranks!$5:$5,0)),\"\")","v":90},{"$f":"IFERROR(INDEX(Ranks!$1:$1048576,MATCH($E64,Ranks!$L:$L,0),MATCH(O$38,Ranks!$5:$5,0)),\"\")","v":35},{"$f":"IFERROR(INDEX(Ranks!$1:$1048576,MATCH($E64,Ranks!$L:$L,0),MATCH(P$38,Ranks!$5:$5,0)),\"\")","v":43},{"$f":"IFERROR(INDEX(Ranks!$1:$1048576,MATCH($E64,Ranks!$L:$L,0),MATCH(Q$38,Ranks!$5:$5,0)),\"\")","v":42},{"$f":"IFERROR(INDEX(Ranks!$1:$1048576,MATCH($E64,Ranks!$L:$L,0),MATCH(R$38,Ranks!$5:$5,0)),\"\")","v":18},{"$f":"IFERROR(100-INDEX(Ranks!$1:$1048576,MATCH($E64,Ranks!$L:$L,0),MATCH(\"LTG Est (Inv)\",Ranks!$5:$5,0)),\"\")","v":47}]
[null,8.9060418999999998E-3,"2025-10-31",{"$f":"IFERROR(INDEX(Ranks!$1:$1048576,MATCH($E65,Ranks!$L:$L,0),MATCH(D$38,Ranks!$5:$5,0)),\"\")","v":1084},"LOB","LIVE OAK BANCSHARES INC",{"$f":"IFERROR(INDEX(Ranks!$1:$1048576,MATCH($E65,Ranks!$L:$L,0),MATCH(G$38,Ranks!$5:$5,0)),\"\")","v":36.270000000000003},{"$f":"IFERROR(INDEX(Ranks!$1:$1048576,MATCH($E65,Ranks!$L:$L,0),MATCH(H$38,Ranks!$5:$5,0)),\"\")","v":1},{"$f":"IFERROR(INDEX(Ranks!$1:$1048576,MATCH($E65,Ranks!$L:$L,0),MATCH(I$38,Ranks!$5:$5,0)),\"\")","v":3},{"$f":"IFERROR(INDEX(Ranks!$1:$1048576,MATCH($E65,Ranks!$L:$L,0),MATCH(J$38,Ranks!$5:$5,0)),\"\")","v":3},{"$f":"IFERROR(INDEX(Ranks!$1:$1048576,MATCH($E65,Ranks!$L:$L,0),MATCH(K$38,Ranks!$5:$5,0)),\"\")","v":2},{"$f":"IFERROR(INDEX(Ranks!$1:$1048576,MATCH($E65,Ranks!$L:$L,0),MATCH(L$38,Ranks!$5:$5,0)),\"\")","v":5},{"$f":"IFERROR(INDEX(Ranks!$1:$1048576,MATCH($E65,Ranks!$L:$L,0),MATCH(M$38,Ranks!$5:$5,0)),\"\")","v":8},{"$f":"IFERROR(INDEX(Ranks!$1:$1048576,MATCH($E65,Ranks!$L:$L,0),MATCH(N$38,Ranks!$5:$5,0)),\"\")","v":38},{"$f":"IFERROR(INDEX(Ranks!$1:$1048576,MATCH($E65,Ranks!$L:$L,0),MATCH(O$38,Ranks!$5:$5,0)),\"\")","v":64},{"$f":"IFERROR(INDEX(Ranks!$1:$1048576,MATCH($E65,Ranks!$L:$L,0),MATCH(P$38,Ranks!$5:$5,0)),\"\")","v":80},{"$f":"IFERROR(INDEX(Ranks!$1:$1048576,MATCH($E65,Ranks!$L:$L,0),MATCH(Q$38,Ranks!$5:$5,0)),\"\")","v":71},{"$f":"IFERROR(INDEX(Ranks!$1:$1048576,MATCH($E65,Ranks!$L:$L,0),MATCH(R$38,Ranks!$5:$5,0)),\"\")","v":80},{"$f":"IFERROR(100-INDEX(Ranks!$1:$1048576,MATCH($E65,Ranks!$L:$L,0),MATCH(\"LTG Est (Inv)\",Ranks!$5:$5,0)),\"\")","v":""}]
[null,8.7142617999999995E-3,"2025-12-31",{"$f":"IFERROR(INDEX(Ranks!$1:$1048576,MATCH($E66,Ranks!$L:$L,0),MATCH(D$38,Ranks!$5:$5,0)),\"\")","v":132},"ALK","ALASKA AIR GROUP INC",{"$f":"IFERROR(INDEX(Ranks!$1:$1048576,MATCH($E66,Ranks!$L:$L,0),MATCH(G$38,Ranks!$5:$5,0)),\"\")","v":51.6},{"$f":"IFERROR(INDEX(Ranks!$1:$1048576,MATCH($E66,Ranks!$L:$L,0),MATCH(H$38,Ranks!$5:$5,0)),\"\")","v":4},{"$f":"IFERROR(INDEX(Ranks!$1:$1048576,MATCH($E66,Ranks!$L:$L,0),MATCH(I$38,Ranks!$5:$5,0)),\"\")","v":5},{"$f":"IFERROR(INDEX(Ranks!$1:$1048576,MATCH($E66,Ranks!$L:$L,0),MATCH(J$38,Ranks!$5:$5,0)),\"\")","v":4},{"$f":"IFERROR(INDEX(Ranks!$1:$1048576,MATCH($E66,Ranks!$L:$L,0),MATCH(K$38,Ranks!$5:$5,0)),\"\")","v":3},{"$f":"IFERROR(INDEX(Ranks!$1:$1048576,MATCH($E66,Ranks!$L:$L,0),MATCH(L$38,Ranks!$5:$5,0)),\"\")","v":1},{"$f":"IFERROR(INDEX(Ranks!$1:$1048576,MATCH($E66,Ranks!$L:$L,0),MATCH(M$38,Ranks!$5:$5,0)),\"\")","v":59},{"$f":"IFERROR(INDEX(Ranks!$1:$1048576,MATCH($E66,Ranks!$L:$L,0),MATCH(N$38,Ranks!$5:$5,0)),\"\")","v":92},{"$f":"IFERROR(INDEX(Ranks!$1:$1048576,MATCH($E66,Ranks!$L:$L,0),MATCH(O$38,Ranks!$5:$5,0)),\"\")","v":30},{"$f":"IFERROR(INDEX(Ranks!$1:$1048576,MATCH($E66,Ranks!$L:$L,0),MATCH(P$38,Ranks!$5:$5,0)),\"\")","v":13},{"$f":"IFERROR(INDEX(Ranks!$1:$1048576,MATCH($E66,Ranks!$L:$L,0),MATCH(Q$38,Ranks!$5:$5,0)),\"\")","v":58},{"$f":"IFERROR(INDEX(Ranks!$1:$1048576,MATCH($E66,Ranks!$L:$L,0),MATCH(R$38,Ranks!$5:$5,0)),\"\")","v":42},{"$f":"IFERROR(100-INDEX(Ranks!$1:$1048576,MATCH($E66,Ranks!$L:$L,0),MATCH(\"LTG Est (Inv)\",Ranks!$5:$5,0)),\"\")","v":97}]
[null,8.3333333000000006E-3,"2026-02-28",{"$f":"IFERROR(INDEX(Ranks!$1:$1048576,MATCH($E67,Ranks!$L:$L,0),MATCH(D$38,Ranks!$5:$5,0)),\"\")","v":28},"DOCU","DOCUSIGN INC",{"$f":"IFERROR(INDEX(Ranks!$1:$1048576,MATCH($E67,Ranks!$L:$L,0),MATCH(G$38,Ranks!$5:$5,0)),\"\")","v":45.07},{"$f":"IFERROR(INDEX(Ranks!$1:$1048576,MATCH($E67,Ranks!$L:$L,0),MATCH(H$38,Ranks!$5:$5,0)),\"\")","v":5},{"$f":"IFERROR(INDEX(Ranks!$1:$1048576,MATCH($E67,Ranks!$L:$L,0),MATCH(I$38,Ranks!$5:$5,0)),\"\")","v":4},{"$f":"IFERROR(INDEX(Ranks!$1:$1048576,MATCH($E67,Ranks!$L:$L,0),MATCH(J$38,Ranks!$5:$5,0)),\"\")","v":5},{"$f":"IFERROR(INDEX(Ranks!$1:$1048576,MATCH($E67,Ranks!$L:$L,0),MATCH(K$38,Ranks!$5:$5,0)),\"\")","v":5},{"$f":"IFERROR(INDEX(Ranks!$1:$1048576,MATCH($E67,Ranks!$L:$L,0),MATCH(L$38,Ranks!$5:$5,0)),\"\")","v":1},{"$f":"IFERROR(INDEX(Ranks!$1:$1048576,MATCH($E67,Ranks!$L:$L,0),MATCH(M$38,Ranks!$5:$5,0)),\"\")","v":94},{"$f":"IFERROR(INDEX(Ranks!$1:$1048576,MATCH($E67,Ranks!$L:$L,0),MATCH(N$38,Ranks!$5:$5,0)),\"\")","v":94},{"$f":"IFERROR(INDEX(Ranks!$1:$1048576,MATCH($E67,Ranks!$L:$L,0),MATCH(O$38,Ranks!$5:$5,0)),\"\")","v":40},{"$f":"IFERROR(INDEX(Ranks!$1:$1048576,MATCH($E67,Ranks!$L:$L,0),MATCH(P$38,Ranks!$5:$5,0)),\"\")","v":42},{"$f":"IFERROR(INDEX(Ranks!$1:$1048576,MATCH($E67,Ranks!$L:$L,0),MATCH(Q$38,Ranks!$5:$5,0)),\"\")","v":63},{"$f":"IFERROR(INDEX(Ranks!$1:$1048576,MATCH($E67,Ranks!$L:$L,0),MATCH(R$38,Ranks!$5:$5,0)),\"\")","v":44},{"$f":"IFERROR(100-INDEX(Ranks!$1:$1048576,MATCH($E67,Ranks!$L:$L,0),MATCH(\"LTG Est (Inv)\",Ranks!$5:$5,0)),\"\")","v":84}]
[null,8.3333333000000006E-3,"2026-02-28",{"$f":"IFERROR(INDEX(Ranks!$1:$1048576,MATCH($E68,Ranks!$L:$L,0),MATCH(D$38,Ranks!$5:$5,0)),\"\")","v":92},"CMPR","CIMPRESS PLC",{"$f":"IFERROR(INDEX(Ranks!$1:$1048576,MATCH($E68,Ranks!$L:$L,0),MATCH(G$38,Ranks!$5:$5,0)),\"\")","v":73.05},{"$f":"IFERROR(INDEX(Ranks!$1:$1048576,MATCH($E68,Ranks!$L:$L,0),MATCH(H$38,Ranks!$5:$5,0)),\"\")","v":5},{"$f":"IFERROR(INDEX(Ranks!$1:$1048576,MATCH($E68,Ranks!$L:$L,0),MATCH(I$38,Ranks!$5:$5,0)),\"\")","v":5},{"$f":"IFERROR(INDEX(Ranks!$1:$1048576,MATCH($E68,Ranks!$L:$L,0),MATCH(J$38,Ranks!$5:$5,0)),\"\")","v":3},{"$f":"IFERROR(INDEX(Ranks!$1:$1048576,MATCH($E68,Ranks!$L:$L,0),MATCH(K$38,Ranks!$5:$5,0)),\"\")","v":1},{"$f":"IFERROR(INDEX(Ranks!$1:$1048576,MATCH($E68,Ranks!$L:$L,0),MATCH(L$38,Ranks!$5:$5,0)),\"\")","v":5},{"$f":"IFERROR(INDEX(Ranks!$1:$1048576,MATCH($E68,Ranks!$L:$L,0),MATCH(M$38,Ranks!$5:$5,0)),\"\")","v":87},{"$f":"IFERROR(INDEX(Ranks!$1:$1048576,MATCH($E68,Ranks!$L:$L,0),MATCH(N$38,Ranks!$5:$5,0)),\"\")","v":75},{"$f":"IFERROR(INDEX(Ranks!$1:$1048576,MATCH($E68,Ranks!$L:$L,0),MATCH(O$38,Ranks!$5:$5,0)),\"\")","v":35},{"$f":"IFERROR(INDEX(Ranks!$1:$1048576,MATCH($E68,Ranks!$L:$L,0),MATCH(P$38,Ranks!$5:$5,0)),\"\")","v":57},{"$f":"IFERROR(INDEX(Ranks!$1:$1048576,MATCH($E68,Ranks!$L:$L,0),MATCH(Q$38,Ranks!$5:$5,0)),\"\")","v":37},{"$f":"IFERROR(INDEX(Ranks!$1:$1048576,MATCH($E68,Ranks!$L:$L,0),MATCH(R$38,Ranks!$5:$5,0)),\"\")","v":25},{"$f":"IFERROR(100-INDEX(Ranks!$1:$1048576,MATCH($E68,Ranks!$L:$L,0),MATCH(\"LTG Est (Inv)\",Ranks!$5:$5,0)),\"\")","v":84}]
[null,8.3333333000000006E-3,"2026-02-28",{"$f":"IFERROR(INDEX(Ranks!$1:$1048576,MATCH($E69,Ranks!$L:$L,0),MATCH(D$38,Ranks!$5:$5,0)),\"\")","v":50},"CNK","CINEMARK HOLDINGS INC",{"$f":"IFERROR(INDEX(Ranks!$1:$1048576,MATCH($E69,Ranks!$L:$L,0),MATCH(G$38,Ranks!$5:$5,0)),\"\")","v":28.24},{"$f":"IFERROR(INDEX(Ranks!$1:$1048576,MATCH($E69,Ranks!$L:$L,0),MATCH(H$38,Ranks!$5:$5,0)),\"\")","v":5},{"$f":"IFERROR(INDEX(Ranks!$1:$1048576,MATCH($E69,Ranks!$L:$L,0),MATCH(I$38,Ranks!$5:$5,0)),\"\")","v":5},{"$f":"IFERROR(INDEX(Ranks!$1:$1048576,MATCH($E69,Ranks!$L:$L,0),MATCH(J$38,Ranks!$5:$5,0)),\"\")","v":5},{"$f":"IFERROR(INDEX(Ranks!$1:$1048576,MATCH($E69,Ranks!$L:$L,0),MATCH(K$38,Ranks!$5:$5,0)),\"\")","v":3},{"$f":"IFERROR(INDEX(Ranks!$1:$1048576,MATCH($E69,Ranks!$L:$L,0),MATCH(L$38,Ranks!$5:$5,0)),\"\")","v":2},{"$f":"IFERROR(INDEX(Ranks!$1:$1048576,MATCH($E69,Ranks!$L:$L,0),MATCH(M$38,Ranks!$5:$5,0)),\"\")","v":65},{"$f":"IFERROR(INDEX(Ranks!$1:$1048576,MATCH($E69,Ranks!$L:$L,0),MATCH(N$38,Ranks!$5:$5,0)),\"\")","v":95},{"$f":"IFERROR(INDEX(Ranks!$1:$1048576,MATCH($E69,Ranks!$L:$L,0),MATCH(O$38,Ranks!$5:$5,0)),\"\")","v":55},{"$f":"IFERROR(INDEX(Ranks!$1:$1048576,MATCH($E69,Ranks!$L:$L,0),MATCH(P$38,Ranks!$5:$5,0)),\"\")","v":47},{"$f":"IFERROR(INDEX(Ranks!$1:$1048576,MATCH($E69,Ranks!$L:$L,0),MATCH(Q$38,Ranks!$5:$5,0)),\"\")","v":55},{"$f":"IFERROR(INDEX(Ranks!$1:$1048576,MATCH($E69,Ranks!$L:$L,0),MATCH(R$38,Ranks!$5:$5,0)),\"\")","v":16},{"$f":"IFERROR(100-INDEX(Ranks!$1:$1048576,MATCH($E69,Ranks!$L:$L,0),MATCH(\"LTG Est (Inv)\",Ranks!$5:$5,0)),\"\")","v":94}]
[null,8.3333333000000006E-3,"2026-02-28",{"$f":"IFERROR(INDEX(Ranks!$1:$1048576,MATCH($E70,Ranks!$L:$L,0),MATCH(D$38,Ranks!$5:$5,0)),\"\")","v":47},"JAZZ","JAZZ PHARMACEUTICALS PLC",{"$f":"IFERROR(INDEX(Ranks!$1:$1048576,MATCH($E70,Ranks!$L:$L,0),MATCH(G$38,Ranks!$5:$5,0)),\"\")","v":190.02},{"$f":"IFERROR(INDEX(Ranks!$1:$1048576,MATCH($E70,Ranks!$L:$L,0),MATCH(H$38,Ranks!$5:$5,0)),\"\")","v":5},{"$f":"IFERROR(INDEX(Ranks!$1:$1048576,MATCH($E70,Ranks!$L:$L,0),MATCH(I$38,Ranks!$5:$5,0)),\"\")","v":4},{"$f":"IFERROR(INDEX(Ranks!$1:$1048576,MATCH($E70,Ranks!$L:$L,0),MATCH(J$38,Ranks!$5:$5,0)),\"\")","v":5},{"$f":"IFERROR(INDEX(Ranks!$1:$1048576,MATCH($E70,Ranks!$L:$L,0),MATCH(K$38,Ranks!$5:$5,0)),\"\")","v":4},{"$f":"IFERROR(INDEX(Ranks!$1:$1048576,MATCH($E70,Ranks!$L:$L,0),MATCH(L$38,Ranks!$5:$5,0)),\"\")","v":4},{"$f":"IFERROR(INDEX(Ranks!$1:$1048576,MATCH($E70,Ranks!$L:$L,0),MATCH(M$38,Ranks!$5:$5,0)),\"\")","v":89},{"$f":"IFERROR(INDEX(Ranks!$1:$1048576,MATCH($E70,Ranks!$L:$L,0),MATCH(N$38,Ranks!$5:$5,0)),\"\")","v":12},{"$f":"IFERROR(INDEX(Ranks!$1:$1048576,MATCH($E70,Ranks!$L:$L,0),MATCH(O$38,Ranks!$5:$5,0)),\"\")","v":87},{"$f":"IFERROR(INDEX(Ranks!$1:$1048576,MATCH($E70,Ranks!$L:$L,0),MATCH(P$38,Ranks!$5:$5,0)),\"\")","v":95},{"$f":"IFERROR(INDEX(Ranks!$1:$1048576,MATCH($E70,Ranks!$L:$L,0),MATCH(Q$38,Ranks!$5:$5,0)),\"\")","v":36},{"$f":"IFERROR(INDEX(Ranks!$1:$1048576,MATCH($E70,Ranks!$L:$L,0),MATCH(R$38,Ranks!$5:$5,0)),\"\")","v":34},{"$f":"IFERROR(100-INDEX(Ranks!$1:$1048576,MATCH($E70,Ranks!$L:$L,0),MATCH(\"LTG Est (Inv)\",Ranks!$5:$5,0)),\"\")","v":96}]
[null,8.1262894999999998E-3,"2025-03-31",{"$f":"IFERROR(INDEX(Ranks!$1:$1048576,MATCH($E71,Ranks!$L:$L,0),MATCH(D$38,Ranks!$5:$5,0)),\"\")","v":120},"MGNI","MAGNITE INC",{"$f":"IFERROR(INDEX(Ranks!$1:$1048576,MATCH($E71,Ranks!$L:$L,0),MATCH(G$38,Ranks!$5:$5,0)),\"\")","v":13.62},{"$f":"IFERROR(INDEX(Ranks!$1:$1048576,MATCH($E71,Ranks!$L:$L,0),MATCH(H$38,Ranks!$5:$5,0)),\"\")","v":5},{"$f":"IFERROR(INDEX(Ranks!$1:$1048576,MATCH($E71,Ranks!$L:$L,0),MATCH(I$38,Ranks!$5:$5,0)),\"\")","v":5},{"$f":"IFERROR(INDEX(Ranks!$1:$1048576,MATCH($E71,Ranks!$L:$L,0),MATCH(J$38,Ranks!$5:$5,0)),\"\")","v":3},{"$f":"IFERROR(INDEX(Ranks!$1:$1048576,MATCH($E71,Ranks!$L:$L,0),MATCH(K$38,Ranks!$5:$5,0)),\"\")","v":3},{"$f":"IFERROR(INDEX(Ranks!$1:$1048576,MATCH($E71,Ranks!$L:$L,0),MATCH(L$38,Ranks!$5:$5,0)),\"\")","v":2},{"$f":"IFERROR(INDEX(Ranks!$1:$1048576,MATCH($E71,Ranks!$L:$L,0),MATCH(M$38,Ranks!$5:$5,0)),\"\")","v":58},{"$f":"IFERROR(INDEX(Ranks!$1:$1048576,MATCH($E71,Ranks!$L:$L,0),MATCH(N$38,Ranks!$5:$5,0)),\"\")","v":83},{"$f":"IFERROR(INDEX(Ranks!$1:$1048576,MATCH($E71,Ranks!$L:$L,0),MATCH(O$38,Ranks!$5:$5,0)),\"\")","v":62},{"$f":"IFERROR(INDEX(Ranks!$1:$1048576,MATCH($E71,Ranks!$L:$L,0),MATCH(P$38,Ranks!$5:$5,0)),\"\")","v":45},{"$f":"IFERROR(INDEX(Ranks!$1:$1048576,MATCH($E71,Ranks!$L:$L,0),MATCH(Q$38,Ranks!$5:$5,0)),\"\")","v":17},{"$f":"IFERROR(INDEX(Ranks!$1:$1048576,MATCH($E71,Ranks!$L:$L,0),MATCH(R$38,Ranks!$5:$5,0)),\"\")","v":19},{"$f":"IFERROR(100-INDEX(Ranks!$1:$1048576,MATCH($E71,Ranks!$L:$L,0),MATCH(\"LTG Est (Inv)\",Ranks!$5:$5,0)),\"\")","v":87}]
[null,8.0373350999999992E-3,"2025-04-30",{"$f":"IFERROR(INDEX(Ranks!$1:$1048576,MATCH($E72,Ranks!$L:$L,0),MATCH(D$38,Ranks!$5:$5,0)),\"\")","v":1020},"DLO","DLOCAL LIMITED",{"$f":"IFERROR(INDEX(Ranks!$1:$1048576,MATCH($E72,Ranks!$L:$L,0),MATCH(G$38,Ranks!$5:$5,0)),\"\")","v":12.24},{"$f":"IFERROR(INDEX(Ranks!$1:$1048576,MATCH($E72,Ranks!$L:$L,0),MATCH(H$38,Ranks!$5:$5,0)),\"\")","v":2},{"$f":"IFERROR(INDEX(Ranks!$1:$1048576,MATCH($E72,Ranks!$L:$L,0),MATCH(I$38,Ranks!$5:$5,0)),\"\")","v":2},{"$f":"IFERROR(INDEX(Ranks!$1:$1048576,MATCH($E72,Ranks!$L:$L,0),MATCH(J$38,Ranks!$5:$5,0)),\"\")","v":3},{"$f":"IFERROR(INDEX(Ranks!$1:$1048576,MATCH($E72,Ranks!$L:$L,0),MATCH(K$38,Ranks!$5:$5,0)),\"\")","v":5},{"$f":"IFERROR(INDEX(Ranks!$1:$1048576,MATCH($E72,Ranks!$L:$L,0),MATCH(L$38,Ranks!$5:$5,0)),\"\")","v":3},{"$f":"IFERROR(INDEX(Ranks!$1:$1048576,MATCH($E72,Ranks!$L:$L,0),MATCH(M$38,Ranks!$5:$5,0)),\"\")","v":17},{"$f":"IFERROR(INDEX(Ranks!$1:$1048576,MATCH($E72,Ranks!$L:$L,0),MATCH(N$38,Ranks!$5:$5,0)),\"\")","v":""},{"$f":"IFERROR(INDEX(Ranks!$1:$1048576,MATCH($E72,Ranks!$L:$L,0),MATCH(O$38,Ranks!$5:$5,0)),\"\")","v":68},{"$f":"IFERROR(INDEX(Ranks!$1:$1048576,MATCH($E72,Ranks!$L:$L,0),MATCH(P$38,Ranks!$5:$5,0)),\"\")","v":94},{"$f":"IFERROR(INDEX(Ranks!$1:$1048576,MATCH($E72,Ranks!$L:$L,0),MATCH(Q$38,Ranks!$5:$5,0)),\"\")","v":57},{"$f":"IFERROR(INDEX(Ranks!$1:$1048576,MATCH($E72,Ranks!$L:$L,0),MATCH(R$38,Ranks!$5:$5,0)),\"\")","v":55},{"$f":"IFERROR(100-INDEX(Ranks!$1:$1048576,MATCH($E72,Ranks!$L:$L,0),MATCH(\"LTG Est (Inv)\",Ranks!$5:$5,0)),\"\")","v":""}]
[null,7.9280653000000003E-3,"2025-04-30",{"$f":"IFERROR(INDEX(Ranks!$1:$1048576,MATCH($E73,Ranks!$L:$L,0),MATCH(D$38,Ranks!$5:$5,0)),\"\")","v":741},"IFS","INTERCORP FINANCIAL SVCS INC",{"$f":"IFERROR(INDEX(Ranks!$1:$1048576,MATCH($E73,Ranks!$L:$L,0),MATCH(G$38,Ranks!$5:$5,0)),\"\")","v":48.38},{"$f":"IFERROR(INDEX(Ranks!$1:$1048576,MATCH($E73,Ranks!$L:$L,0),MATCH(H$38,Ranks!$5:$5,0)),\"\")","v":1},{"$f":"IFERROR(INDEX(Ranks!$1:$1048576,MATCH($E73,Ranks!$L:$L,0),MATCH(I$38,Ranks!$5:$5,0)),\"\")","v":5},{"$f":"IFERROR(INDEX(Ranks!$1:$1048576,MATCH($E73,Ranks!$L:$L,0),MATCH(J$38,Ranks!$5:$5,0)),\"\")","v":2},{"$f":"IFERROR(INDEX(Ranks!$1:$1048576,MATCH($E73,Ranks!$L:$L,0),MATCH(K$38,Ranks!$5:$5,0)),\"\")","v":3},{"$f":"IFERROR(INDEX(Ranks!$1:$1048576,MATCH($E73,Ranks!$L:$L,0),MATCH(L$38,Ranks!$5:$5,0)),\"\")","v":4},{"$f":"IFERROR(INDEX(Ranks!$1:$1048576,MATCH($E73,Ranks!$L:$L,0),MATCH(M$38,Ranks!$5:$5,0)),\"\")","v":5},{"$f":"IFERROR(INDEX(Ranks!$1:$1048576,MATCH($E73,Ranks!$L:$L,0),MATCH(N$38,Ranks!$5:$5,0)),\"\")","v":70},{"$f":"IFERROR(INDEX(Ranks!$1:$1048576,MATCH($E73,Ranks!$L:$L,0),MATCH(O$38,Ranks!$5:$5,0)),\"\")","v":93},{"$f":"IFERROR(INDEX(Ranks!$1:$1048576,MATCH($E73,Ranks!$L:$L,0),MATCH(P$38,Ranks!$5:$5,0)),\"\")","v":76},{"$f":"IFERROR(INDEX(Ranks!$1:$1048576,MATCH($E73,Ranks!$L:$L,0),MATCH(Q$38,Ranks!$5:$5,0)),\"\")","v":80},{"$f":"IFERROR(INDEX(Ranks!$1:$1048576,MATCH($E73,Ranks!$L:$L,0),MATCH(R$38,Ranks!$5:$5,0)),\"\")","v":78},{"$f":"IFERROR(100-INDEX(Ranks!$1:$1048576,MATCH($E73,Ranks!$L:$L,0),MATCH(\"LTG Est (Inv)\",Ranks!$5:$5,0)),\"\")","v":52}]
[null,6.5521620000000003E-3,"2025-03-31",{"$f":"IFERROR(INDEX(Ranks!$1:$1048576,MATCH($E74,Ranks!$L:$L,0),MATCH(D$38,Ranks!$5:$5,0)),\"\")","v":482},"COUR","COURSERA INC",{"$f":"IFERROR(INDEX(Ranks!$1:$1048576,MATCH($E74,Ranks!$L:$L,0),MATCH(G$38,Ranks!$5:$5,0)),\"\")","v":6.41},{"$f":"IFERROR(INDEX(Ranks!$1:$1048576,MATCH($E74,Ranks!$L:$L,0),MATCH(H$38,Ranks!$5:$5,0)),\"\")","v":5},{"$f":"IFERROR(INDEX(Ranks!$1:$1048576,MATCH($E74,Ranks!$L:$L,0),MATCH(I$38,Ranks!$5:$5,0)),\"\")","v":4},{"$f":"IFERROR(INDEX(Ranks!$1:$1048576,MATCH($E74,Ranks!$L:$L,0),MATCH(J$38,Ranks!$5:$5,0)),\"\")","v":3},{"$f":"IFERROR(INDEX(Ranks!$1:$1048576,MATCH($E74,Ranks!$L:$L,0),MATCH(K$38,Ranks!$5:$5,0)),\"\")","v":1},{"$f":"IFERROR(INDEX(Ranks!$1:$1048576,MATCH($E74,Ranks!$L:$L,0),MATCH(L$38,Ranks!$5:$5,0)),\"\")","v":1},{"$f":"IFERROR(INDEX(Ranks!$1:$1048576,MATCH($E74,Ranks!$L:$L,0),MATCH(M$38,Ranks!$5:$5,0)),\"\")","v":90},{"$f":"IFERROR(INDEX(Ranks!$1:$1048576,MATCH($E74,Ranks!$L:$L,0),MATCH(N$38,Ranks!$5:$5,0)),\"\")","v":""},{"$f":"IFERROR(INDEX(Ranks!$1:$1048576,MATCH($E74,Ranks!$L:$L,0),MATCH(O$38,Ranks!$5:$5,0)),\"\")","v":11},{"$f":"IFERROR(INDEX(Ranks!$1:$1048576,MATCH($E74,Ranks!$L:$L,0),MATCH(P$38,Ranks!$5:$5,0)),\"\")","v":56},{"$f":"IFERROR(INDEX(Ranks!$1:$1048576,MATCH($E74,Ranks!$L:$L,0),MATCH(Q$38,Ranks!$5:$5,0)),\"\")","v":6},{"$f":"IFERROR(INDEX(Ranks!$1:$1048576,MATCH($E74,Ranks!$L:$L,0),MATCH(R$38,Ranks!$5:$5,0)),\"\")","v":5},{"$f":"IFERROR(100-INDEX(Ranks!$1:$1048576,MATCH($E74,Ranks!$L:$L,0),MATCH(\"LTG Est (Inv)\",Ranks!$5:$5,0)),\"\")","v":70}]
[null,5.4554419999999996E-3,"2025-03-31",{"$f":"IFERROR(INDEX(Ranks!$1:$1048576,MATCH($E75,Ranks!$L:$L,0),MATCH(D$38,Ranks!$5:$5,0)),\"\")","v":""},"KRNT","KORNIT DIGITAL LTD",{"$f":"IFERROR(INDEX(Ranks!$1:$1048576,MATCH($E75,Ranks!$L:$L,0),MATCH(G$38,Ranks!$5:$5,0)),\"\")","v":""},{"$f":"IFERROR(INDEX(Ranks!$1:$1048576,MATCH($E75,Ranks!$L:$L,0),MATCH(H$38,Ranks!$5:$5,0)),\"\")","v":""},{"$f":"IFERROR(INDEX(Ranks!$1:$1048576,MATCH($E75,Ranks!$L:$L,0),MATCH(I$38,Ranks!$5:$5,0)),\"\")","v":""},{"$f":"IFERROR(INDEX(Ranks!$1:$1048576,MATCH($E75,Ranks!$L:$L,0),MATCH(J$38,Ranks!$5:$5,0)),\"\")","v":""},{"$f":"IFERROR(INDEX(Ranks!$1:$1048576,MATCH($E75,Ranks!$L:$L,0),MATCH(K$38,Ranks!$5:$5,0)),\"\")","v":""},{"$f":"IFERROR(INDEX(Ranks!$1:$1048576,MATCH($E75,Ranks!$L:$L,0),MATCH(L$38,Ranks!$5:$5,0)),\"\")","v":""},{"$f":"IFERROR(INDEX(Ranks!$1:$1048576,MATCH($E75,Ranks!$L:$L,0),MATCH(M$38,Ranks!$5:$5,0)),\"\")","v":""},{"$f":"IFERROR(INDEX(Ranks!$1:$1048576,MATCH($E75,Ranks!$L:$L,0),MATCH(N$38,Ranks!$5:$5,0)),\"\")","v":""},{"$f":"IFERROR(INDEX(Ranks!$1:$1048576,MATCH($E75,Ranks!$L:$L,0),MATCH(O$38,Ranks!$5:$5,0)),\"\")","v":""},{"$f":"IFERROR(INDEX(Ranks!$1:$1048576,MATCH($E75,Ranks!$L:$L,0),MATCH(P$38,Ranks!$5:$5,0)),\"\")","v":""},{"$f":"IFERROR(INDEX(Ranks!$1:$1048576,MATCH($E75,Ranks!$L:$L,0),MATCH(Q$38,Ranks!$5:$5,0)),\"\")","v":""},{"$f":"IFERROR(INDEX(Ranks!$1:$1048576,MATCH($E75,Ranks!$L:$L,0),MATCH(R$38,Ranks!$5:$5,0)),\"\")","v":""},{"$f":"IFERROR(100-INDEX(Ranks!$1:$1048576,MATCH($E75,Ranks!$L:$L,0),MATCH(\"LTG Est (Inv)\",Ranks!$5:$5,0)),\"\")","v":""}]
[null,{"$f":"\"Note: Data from \"&TEXT(Ref!$A$4,\"m/d/yyyy\")&\" Kailash Capital SMID Universe\"&\"\"","v":"Note: Data from 2/28/2026 Kailash Capital SMID Universe"}]
[null,"Sources: Russell, Compustat, Bloomberg"]

{"sheet":"Top 100 By Sector","index":5,"n_rows":48,"n_cols":12,"rows_kept":48,"cut":false,"hidden":false,"merged":[[8,4,8,6],[5,0,6,10],[7,4,7,6]]}
[]
[]
[]
[]
[]
[{"$f":"\"Top 100 Rankings By Sector: \"&Ranks!D2","v":"Top 100 Rankings By Sector: March 2026 Small & Mid Cap Rankings Tool"}]
[]
[null,null,null,null,"For Institutional Use Only"]
[null,null,null,null,"Highlights indicate new additions"]
[]
["Rank",null,"Health Care",null,"Rank",null,"Consumer Discretionary",null,"Rank",null,"Energy"]
[39,"PGNY","PROGYNY INC",1,5,"ANF","ABERCROMBIE & FITCH  -CL A",null,24,"GPRE","GREEN PLAINS INC",1]
[47,"JAZZ","JAZZ PHARMACEUTICALS PLC",null,6,"BWA","BORGWARNER INC",null,33,"NVGS","NAVIGATOR HOLDINGS LTD"]
[49,"MD","PEDIATRIX MEDICAL GROUP INC",null,8,"PRDO","PERDOCEO EDUCATION CORP",null,43,"NBR","NABORS INDUSTRIES LTD"]
[68,"LNTH","LANTHEUS HOLDINGS INC",null,13,"SONO","SONOS INC",null,45,"TALO","TALOS ENERGY INC"]
[77,"PCRX","PACIRA BIOSCIENCES INC",null,15,"MAT","MATTEL INC",1,61,"TK","TEEKAY CORPORATION LTD"]
[82,"TBPH","THERAVANCE BIOPHARMA INC",null,17,"LEG","LEGGETT & PLATT INC",null,69,"NOV","NOV INC"]
[86,"COLL","COLLEGIUM PHARMACEUTICAL INC",null,27,"ACEL","ACCEL ENTERTAINMENT INC",null,84,"WKC","WORLD KINECT CORP"]
["Rank",null,"Financials",null,36,"KMX","CARMAX INC",null,"Rank",null,"Industrials"]
[4,"WBS","WEBSTER FINANCIAL CORP",null,44,"SAH","SONIC AUTOMOTIVE INC  -CL A",null,3,"BCO","BRINKS CO"]
[7,"UVE","UNIVERSAL INSURANCE HLDGS",1,54,"GCT","GIGACLOUD TECHNOLOGY INC",null,12,"TNET","TRINET GROUP INC"]
[9,"OFG","OFG BANCORP",null,60,"MGM","MGM RESORTS INTERNATIONAL",null,18,"TASK","TASKUS INC"]
[10,"HG","HAMILTON INSURANCE GROUP LTD",null,63,"VC","VISTEON CORP",null,19,"SNCY","SUN CONTY AIR HLD INC"]
[11,"INTR","INTER & CO INC",null,70,"HOG","HARLEY-DAVIDSON INC",null,21,"LYFT","LYFT INC"]
[14,"QCRH","QCR HOLDINGS INC",null,73,"PRKS","UNITED PARKS & RESORTS INC",1,23,"LZ","LEGALZOOM.COM INC",1]
[16,"PRG","PROG HOLDINGS INC",null,78,"LZB","LA-Z-BOY INC",null,41,"LQDT","LIQUIDITY SERVICES INC",1]
[20,"BGC","BGC GROUP INC",null,83,"SBH","SALLY BEAUTY HOLDINGS INC",null,62,"ALGT","ALLEGIANT TRAVEL CO"]
[25,"TBBK","BANCORP INC",null,88,"CRCT","CRICUT INC",null,79,"UPWK","UPWORK INC",1]
[29,"ENVA","ENOVA INTERNATIONAL INC",null,89,"SIG","SIGNET JEWELERS LTD",null,81,"JBI","JANUS INTERNATIONL GROUP INC"]
[31,"PAGS","PAGSEGURO DIGITAL LTD",null,90,"GIII","G-III APPAREL GROUP LTD",null,92,"CMPR","CIMPRESS PLC"]
[34,"HCI","HCI GROUP INC",null,95,"ETSY","ETSY INC",null,98,"SKYW","SKYWEST INC"]
[37,"MCB","METROPOLITAN BANK HLDNG",null,"Rank",null,"Consumer Staples",null,"Rank",null,"Information Technology"]
[38,"OMF","ONEMAIN HOLDINGS INC",null,35,"SAM","BOSTON BEER INC  -CL A",null,22,"BLKB","BLACKBAUD INC"]
[46,"PAYO","PAYONEER GLBL INC",1,76,"SPB","SPECTRUM BRND HLDG INC",1,26,"CXM","SPRINKLR INC",1]
[51,"MQ","MARQETA INC",1,100,"CALM","CAL-MAINE FOODS INC",null,28,"DOCU","DOCUSIGN INC",1]
[52,"HGTY","HAGERTY INC",null,"Rank",null,"Communication Services",null,32,"ITRI","ITRON INC",1]
[55,"CASH","PATHWARD FINANCIAL INC",1,1,"IHS","IHS HOLDING LIMITED",null,48,"DXC","DXC TECHNOLOGY CO"]
[57,"BFH","BREAD FINANCIAL HOLDINGS INC",null,2,"TBLA","TABOOLA.COM LTD",null,53,"IT","GARTNER INC",1]
[59,"MTG","MGIC INVESTMENT CORP/WI",1,30,"MTCH","MATCH GROUP INC",null,56,"NTCT","NETSCOUT SYSTEMS INC"]
[64,"AMTB","AMERANT BANCORP INC",null,40,"PLTK","PLAYTIKA HOLDING CORP",null,58,"CRUS","CIRRUS LOGIC INC",1]
[65,"PJT","PJT PARTNERS INC",null,42,"CARG","CARGURUS INC",null,71,"BL","BLACKLINE INC",1]
[67,"FBP","FIRST BANCORP P R",1,50,"CNK","CINEMARK HOLDINGS INC",null,94,"DBX","DROPBOX INC"]
[72,"EEFT","EURONET WORLDWIDE INC",null,66,"LBTYK","LIBERTY GLOBAL LTD",null,96,"BOX","BOX INC"]
[74,"SNEX","STONEX GROUP INC",null,87,"ZD","ZIFF DAVIS INC",null,97,"GDDY","GODADDY INC",1]
[75,"CACC","CREDIT ACCEPTANCE CORP",null,93,"YELP","YELP INC",null,99,"RNG","RINGCENTRAL INC"]
[80,"WEX","WEX INC"]
[85,"AX","AXOS FINANCIAL INC",1]
[91,"FRHC","FREEDOM HOLDING CORP",1]

{"sheet":"Glossary","index":6,"n_rows":103,"n_cols":4,"rows_kept":103,"cut":false,"hidden":false,"merged":[[1,0,1,3]]}
[]
["Ranking Metric Glossary"]
["For Institutional Use Only"]
["Valuation Metrics","Formal Name","Description","Higher is Viewed:"]
["Current Div to Price","Current Dividend to Price","The rolling four quarter dividends paid divided by the most recent market cap.","Favorably"]
["Current Book to Price","Current Book to Price","Last stated book value from balance sheet divided by the most recent market cap.","Favorably"]
["Current Sales to EV","Current Sales to Enterprise Value","Sum of the trailing four quarters' revenues divided by the most recent enterprise value.","Favorably"]
["Current Earn to Price","Current Earnings to Price","Sum of the trailing four quarters' income before XO divided by the most recent market cap.","Favorably"]
["E/P 3 Yr Avg","Average Three Year Earnings To Price","The average of the rolling four quarter earnings for the past 12 quarters divided by the most recent market cap.","Favorably"]
["E/P 5 Yr Avg","Average Five Year Earnings to Price","The average of the rolling four quarter earnings for the past 20 quarters divided by the most recent market cap.","Favorably"]
["Current FCF/P","Current FCF to Price","Sum of the trailing four quarters' free cash flow divided by the most recent market cap.","Favorably"]
["FCF/P 3-Yr Avg","Average Three Year FCF to Price","Average of rolling 4 quarters FCF over the last 12 quarters divided by the most recent market cap.","Favorably"]
["FCF/P 5-Yr Avg","Average Five Year FCF to Price","Average of rolling 4 quarters FCF over the last 20 quarters divided by the most recent market cap.","Favorably"]
["Current FCF/EV","Average One Year FCF to Enterprise Value","Sum of the last 4 quarters FCF divided by the most recent enterprise value.","Favorably"]
["FCF/EV 3 Yr Avg","Average Three Year FCF to Enterprise Value","The average of the rolling four quarter FCF for the past 12 quarters divided by the most recent enterprise value. FCF is defined as cash flow from operations less CAPEX and adding back in sales of PP&E.","Favorably"]
["FCF/EV 5 Yr Avg","Average Five Year FCF to Enterprise Value","The average of the rolling four quarter FCF for the past 20 quarters divided by the most recent enterprise value. FCF is defined as cash flow from operations less CAPEX and adding back in sales of PP&E.","Favorably"]
["Earn 1 Yr Grth","One Year Earnings Growth","The percent change in this quarter’s rolling four quarter earnings compared to the same quarter in the prior year’s rolling four quarter earnings.","Favorably"]
["Earn 3 Yr Grth (Inv)","Three Year Earnings Growth (Inverted)","The percent change in this quarter’s rolling four quarter earnings compared to the same quarter three years prior rolling four quarter earnings.","Negatively"]
["Earn 5 Yr Grth (Inv)","Five Year Earnings Growth (Inverted)","The percent change in this quarter’s rolling four quarter earnings compared to the same quarter five years prior rolling four quarter earnings.","Negatively"]
["Sales 1 Yr Grth (Inv)","One Year Sales Growth (Inverted)","The percent change in this quarter’s rolling four quarter sales compared to the same quarter one year prior rolling four quarter sales.","Negatively"]
["Sales 3 Yr Grth (Inv)","Three Year Sales Growth (Inverted)","The trailing four quarter's sales divided by the same period three years prior.","Negatively"]
["Sales 5 Yr Grth (Inv)","Five Year Sales Growth (Inverted)","The trailing four quarter's sales divided by the same period five years prior.","Negatively"]
["Theoretical Growth","Theoretical Growth","The expected growth for the shares based upon the retention rate and return on common equity.","Favorably"]
["Theoretical Growth Diff","Theoretical Spread","We analyze the spread between the implied growth rate calculated using the retention rate and the return on common equity  [Defined as 1 - D / E * ROE] and the consensus growth rate of analysts.","Favorably"]
["Balance Sheet Metrics","Formal Name","Description","Higher is Viewed:"]
["Current CAPX/Total Assets (Inv)","Current CAPEX to Total Assets (Inverted)","Trailing four quarter capital expenditure divided by the most recent quarter’s total assets.","Negatively"]
["CAPX/Total Assets 3 Yr Chg (Inv)","Three Year Δ CAPEX to Total Assets (Inverted)","Trailing four quarter capital expenditure divided by the most recent quarter’s total assets minus the same metric three years ago.","Negatively"]
["Div 1 Yr Grth","One Year Growth in Dividends Paid","Calculated using the direct method from the cash flow statement. The rolling four quarter sum of dividends paid divided by the rolling four quarter sum from the year ago period.","Favorably"]
["Div 3 Yr Grth","ThreeYear Growth in Dividends Paid","Calculated using the direct method from the cash flow statement. The rolling four quarter sum of dividends paid divided by the rolling four quarter sum from the three year ago period.","Favorably"]
["Div 5 Yr Grth","Five Year Growth in Dividends Paid","Calculated using the direct method from the cash flow statement. The rolling four quarter sum of dividends paid divided by the rolling four quarter sum from the five year ago period.","Favorably"]
["Current Buyback Yield","Current Buyback Yield","The most recent quarter's rolling four quarter share repurchase divided by the current equity market capitalization.","Favorably"]
["Current GW/Total Assets (Inv)","Current Goodwill to Total Assets (Inverted)","The most recent quarter’s goodwill divided by the most recent quarter’s total assets.","Negatively"]
["Current Debt/EBITDA (Inv)","Current Debt to EBITDA (Inverted)","Most recent quarter’s long- and short-term debt divided by the rolling four quarter EBITDA.","Negatively"]
["Current Net Cash/EV","Current Net Cash to Enterprise Value","Most recent net cash divided by enterprise value.","Favorably"]
["Current R&D/Sales","Current Research & Development to Sales","Sum of the most recent four quarters R&D/sum of the most recent four quarters revenue.","Favorably"]
["Current CAPX/Sales (Inv)","Current CAPEX to Sales (Inverted)","The most recent quarter’s rolling four quarter CAPEX divided by the rolling four quarter sales minus the same metric one year ago.","Negatively"]
["CAPX/Sales 3 Yr Chg (Inv)","Three Year Δ CAPEX to Sales (Inverted)","The most recent quarter’s rolling four quarter CAPEX divided by the rolling four quarter sales minus the same metric three years ago.","Negatively"]
["CAPX/Sales 5 Yr Chg (Inv)","Five Year Δ CAPEX to Sales (Inverted)","The most recent quarter’s rolling four quarter’s CAPEX divided by the rolling four quarter sales minus the same metric five years ago.","Negatively"]
["WCap 3 Yr Grth (Inv)","Three Year Growth in Working Capital (Inverted)","Current assets less current liabilities from the most recent quarter divided by the same figure in the three year prior period.","Negatively"]
["WCap 5 Yr Grth (Inv)","Five Year Growth in Working Capital (Inverted)","Current assets less current liabilities from the most recent quarter divided by the same figure in the five year prior period.","Negatively"]
["Quick Ratio","Quick Ratio","The difference between current assets minus inventories divided by current liabilities.","Favorably"]
["Current Ratio","Current Ratio","Current assets divided by current liabilities.","Favorably"]
["Rec/Sales 1 Yr Chg (Inv)","One Year Δ Receivables to Sales (Inverted)","The current quarter’s accounts receivables divided by the rolling four quarter sales less the same figure from the year ago period.","Negatively"]
["Rec/Sales 3 Yr Chg (Inv)","Three Year Δ Receivables to Sales (Inverted)","The current quarter’s accounts receivables divided by the rolling four quarter sales less the same figure from the three year ago period.","Negatively"]
["Rec/Sales 5 Yr Chg (Inv)","Five Year Δ Receivables to Sales (Inverted)","The current quarter’s accounts receivables divided by the rolling four quarter sales less the same figure from the five year ago period.","Negatively"]
["BV Grth 3 Yr Disp (Inv)","Consistency of the Three Year Trailing, One Year Growth in Book Value (Inverted)","For each quarter in the prior three years, we calculate a rolling four quarter rate of growth in book value over the prior year, then calculate the standard deviation for the twelve observations.","Negatively"]
["BV Grth 5 Yr Disp (Inv)","Consistency of the Five Year Trailing, One Year Growth in Book Value (Inverted)","For each quarter in the prior five years, we calculate a rolling four quarter rate of growth in book value over the prior year, then calculate the standard deviation for the twenty observations.","Negatively"]
["Earnings Metrics","Formal Name","Description","Higher is Viewed:"]
["Curr. Accruals/Assets (Inv)","Current Accruals to Total Assets (Inverted)","Rolling four quarter's net income less cash flow from operations divided by the most recent quarter’s total assets.","Negatively"]
["Inv/Sales 1 Yr Chg (Inv)","One Year Δ in Inventory to Sales (Inverted)","The most recent quarter’s inventory divided by the rolling four quarter sales less the same figure from the year ago period.","Negatively"]
["Inv/Sales 3 Yr Chg (Inv)","Three Year Δ in Inventory to Sales (Inverted)","The most recent quarter’s inventory divided by the rolling four quarter sales less the same figure from the three year ago period.","Negatively"]
["Inv/Sales 5 Yr Chg (Inv)","Five Year Δ in Inventory to Sales (Inverted)","The most recent quarter’s inventory divided by the rolling four quarter sales less the same figure from the five year ago period.","Negatively"]
["Current Op Margin","Current Operating Margin","Operating profit from the trailing four quarters divided by sales from the same period.","Favorably"]
["Current Gross Margin","Current Gross Margins","Sales minus Cost of Goods Sold (COGS) divided by sales for the trailing four quarters.","Favorably"]
["Current Inv/Sales","Current Inventory to Sales","The most recent quarter’s inventory divided by the rolling four quarter sales.","Favorably"]
["Op Margin 1 Yr Chg","One Year Δ Operating Margin","Operating profit from the trailing four quarters divided by sales from the same period, less the same figure from the year ago period.","Favorably"]
["Op Margin 3 Yr Chg","Three Year Δ Operating Margin","Operating profit from the trailing four quarters divided by sales from the same period, less the same figure from the three year ago period.","Favorably"]
["Op Margin 5 Yr Chg","Five Year Δ Operating Margin","Operating profit from the trailing four quarters divided by sales from the same period, less the same figure from the five year ago period.","Favorably"]
["Gross Margin 1 Yr Chg","One Year Δ Gross Margin","Sales minus COGS divided by sales for the trailing four quarters, less the same figure from the year ago period.","Favorably"]
["Gross Margin 3 Yr Chg","Three Year Δ Gross Margin","Sales minus COGS divided by sales for the trailing four quarters, less the same figure from the three year ago period.","Favorably"]
["Gross Margin 5 Yr Chg","Five Year Δ Gross Margin","Sales minus COGS divided by sales for the trailing four quarters, less the same figure from the five year ago period.","Favorably"]
["Current ROA","Current Return on Assets","Trailing twelve month earnings before extraordinary items divided by most recent total assets.","Favorably"]
["ROA 1 Yr Chg","One Year Δ in ROA","The trailing four quarter earnings before extraordinary items divided by the most recent total assets less the same figure from the prior year.","Favorably"]
["ROA 3 Yr Chg","Three Year Δ in ROA","The trailing four quarter earnings before extraordinary items divided by the most recent total assets less the same figure from three years earlier.","Favorably"]
["ROA 5 Yr Chg","Five Year Δ in ROA","The trailing four quarter earnings before extraordinary items divided by the most recent total assets less the same figure from five years earlier.","Favorably"]
["Current ROE","Current Return on Equity","Trailing twelve month earnings before extraordinary items divided by most recent shareholders equity.","Favorably"]
["ROE 1 Yr Chg","One Year Δ in ROE","The trailing four quarter earnings before extraordinary items divided by the most recent shareholder’s equity less the same figure from the prior year.","Favorably"]
["ROE 3 Yr Chg","Three Year Δ in ROE","The trailing four quarter income before extraordinary items divided by the most recent shareholder’s equity less the same figure from three years earlier.","Favorably"]
["ROE 5 Yr Chg","Five Year Δ in ROE","The trailing four quarter income before extraordinary items divided by the most recent shareholder’s equity less the same figure from five years earlier.","Favorably"]
["ROA 5 Yr Disp (Inv)","Standard Deviation of Five Year Trailing ROA (Inverted)","The standard deviation of the rolling four quarter ROA for the prior 20 quarters.","Negatively"]
["ROE 5 Yr Disp (Inv)","Standard Deviation of Five Year Trailing ROE (Inverted)","The standard deviation of the rolling four quarter ROE for the prior 20 quarters.","Negatively"]
["Current XI/Net Income (Inv)","Current Extraordinary Items to Income (Inverted)","The sum of extraordinary items and discontinued operations for the most recent rolling four quarters divided by the magnitude of net income [Absolute value].","Negatively"]
["Current Dep/CAPX","Current Depreciation to CAPEX","The trailing four quarter depreciation expense divided by rolling four quarter CAPEX.","Favorably"]
["Dep/CAPX 3 Yr Avg","Long Term Average Depreciation to Long Term Average CAPEX","The average of the last 12 trailing four quarters of depreciation divided by the average of the last 12 trailing four quarters of CAPEX.","Favorably"]
["Dep/CAPX 5 Yr Avg","Five year Average Depreciation to Long Term Average CAPEX","The average of the last 20 trailing four quarters of depreciation divided by the average of the last 20 trailing four quarters of CAPEX.","Favorably"]
["Analyst Metrics","Formal Name","Description","Higher is Viewed:"]
["LTG Est (Inv)","Long Term Growth Estimate (Inverted)","Analyst estimate of the long term growth rate for the company.","Negatively"]
["Shr of Est Rising","Share of Earnings Estimates Rising","Most recent quarters percentage of analyst earnings estimate that are rising.","Favorably"]
["LTG Disp (Inv)","Long Term Growth Dispersion (Inverted)","The standard deviation of analysts current quarter estimates.","Negatively"]
["Surp Score","Earnings Surprise Score","The ratio of surprise (actual - estimated) divided by the dispersion of estimates.","Favorably"]
["PEG Ratio (Inv)","Price Earnings to Growth Ratio (Inverted)","The most recent rolling four quarters P/E divided by analysts' long-term growth estimates.","Negatively"]
["Market Metrics","Formal Name","Description","Higher is Viewed:"]
["Volume (Inv)","Volume (Inverted)","Liquidity, lower is better (i.e. illiquid stocks get higher scores).","Negatively"]
["3-Mo Mom","Three Month Momentum","The three month return with dividends reinvested with a one month lag.","Favorably"]
["6-Mo Mom","Six Month Momentum","The six month return with dividends reinvested with a one month lag.","Favorably"]
["9-Mo Mom","Nine Month Momentum","The nine month return with dividends reinvested with a one month lag.","Favorably"]
["12-Mo Mom","Twelve Month Momentum","The twelve month return with dividends reinvested with a one month lag.","Favorably"]
["36-Mo Mom (Inv)","Thirty-Six Month Momentum Inverted","Three year price change, higher is worse (i.e. the best performing stocks on a three year basis get penalized/lower scores).","Negatively"]
["3-Mo Bat Avg","Three Month Trailing Batting Average","The percent of months in the prior three months that a security has outperformed the market.","Favorably"]
["6-Mo Bat Avg","Six Month Trailing Batting Average","The percent of months in the prior six months that a security has outperformed the market.","Favorably"]
["9-Mo Bat Avg","Nine Month Trailing Batting Average","The percent of months in the prior nine months that a security has outperformed the market.","Favorably"]
["12-Mo Bat Avg","Twelve Month Trailing Batting Average","The percent of months in the prior twelve months that a security has outperformed the market.","Favorably"]
["3-Mo/6-Mo Breakout","Short Term Breakout Factor","The three month return, lagged by a month, less the six month return lagged by a month.","Favorably"]
["6-Mo/12-Mo Breakout","Mid Term Breakout Factor","The six month return, lagged by a month, less the twelve month return lagged by a month.","Favorably"]
["CAPM Ret Diff (Inv)","CAPM Expected Return Less 12 Month Momentum (Inverted)","Capital Asset Pricing Model (CAPM) expected return less the stock’s 12 month return lagged by a month. This is the differential between the calculated expected return and realized return; when stocks outperform the CAPM expectation, this is viewed negatively. CAPM Expected Return is defined as the approximation (8% * β).","Negatively"]
["Negative 24-Mo Skewness","Negative Skewness of Returns","The distribution of returns over multiple trailing periods is calculated. Equities that have a small number of large left tail observations in concert with a large number of small right tail observations are viewed very favorably.","100/Y = True\n 0 = False"]
["24-Mo Kurtosis (Inv)","Kurtosis of Returns (Inverted)","A measurement of the likelihood of extreme movements. Securities whose performance distributions show central tendencies are favored over those with excessive observations at the tails.","Negatively"]
["Extreme 6-Mo Momentum","Extreme Six Month Momentum","The very highest performers on the six month rank receive a positive weighting.","100/Y = True\n 0 = False"]
["Extreme 24-Mo Skewness","Extreme Positive Skewness (Right Tail)","All highly right-skewed stocks are penalized as they have few observations of significant excess returns–a sign that past excess performance was driven by a one-off event rather than a consistent improvement in fundamentals. Infrequent large right tail events with a large number of below-average observations.","100/Y = True\n 0 = False"]
["Extreme 24-Mo Kurtosis","Extreme Positive Kurtosis (Fat Tails)","All stocks with extremely fat tails are penalized as it is a sign that investors and the market cannot understand or forecast fundamentals.","100/Y = True\n 0 = False"]
["Low Mom High Vol","Low Momentum & High Volume","Securities with atypically large volumes and poor momentum scores are viewed unfavorably as this may signal that the “story is over.”","100/Y = True\n 0 = False"]
["Broken Chart","Broken Charts Factor","A combination of price-driven observations which seeks to identify securities whose chart patterns tend to produce significant negative returns.","100/Y = True\n 0 = False"]
["Hi 6-Mo Mom/Hi 9-Mo Bat Avg","High Six Month Momentum and High Nine Month Batting Average","Securities that fall in the top quintile of high six month momentum and top quintile of high nine month batting average.","100/Y = True\n 0 = False"]

{"sheet":"Appendix","index":7,"n_rows":12,"n_cols":1,"rows_kept":12,"cut":false,"hidden":false,"merged":[]}
[]
[]
[]
[]
[]
[]
["The information, data, analyses, and opinions presented herein (a) do not constitute investment advice, (b) are provided solely for informational purposes and therefore are not, individually or collectively, an offer to buy or sell a security, (c) are not warranted to be correct, complete or accurate, and (d) are subject to change without notice. Kailash Capital Research, LLC and its affiliates (collectively, “KCR”) shall not be responsible for any trading decisions, damages, or other losses resulting from, or related to, the information, data, analyses or opinions or their use. The information herein may not be reproduced or retransmitted in any manner without the prior written consent of KCR. In preparing the information, data, analyses, and opinions presented herein, KCR has obtained data, statistics, and information from sources it believes to be reliable. CR, however, does not perform an audit or seek independent verification of any of the data, statistics, and information it receives. KCR and its affiliates do not provide tax, legal, or accounting advice. This material has been prepared for informational purposes only and is not intended to provide, and should not be relied on for tax, legal, or accounting advice. You should consult your tax, legal, and accounting advisors before engaging in any transaction. "]
[]
["Nothing herein shall limit or restrict the right of affiliates of KCR to perform investment management or advisory services for any other persons or entities. Furthermore, nothing herein shall limit or restrict affiliates of KCR from buying, selling, or trading securities or other investments for their own accounts or for the accounts of their clients. Affiliates of KCR may at any time have, acquire, increase, decrease, or dispose of the securities or other investments referenced in this publication. KCR shall have no obligation to recommend securities or investments in this publication as a result of its affiliates’ investment activities for their own accounts or for the accounts of their clients. "]
[]
[]
["© 2024 Kailash Capital, LLC – All rights reserved."]

{"sheet":"Ref","index":8,"n_rows":5000,"n_cols":9,"rows_kept":5000,"cut":false,"hidden":true,"merged":[]}
["Reference:",null,"Name","Code","Category"]
[null,null,"Date","caldt","Other"]
["Update date:",null,"Agg Rank","drank_agg_score","Base",null,"For Upload:","Base:","For Sort Toggle"]
["2026-02-28",null,"Rank Chg","drank_agg_score_chg","Base","Column",132]
[{"$f":"\"Pricing as of: \"&TEXT(A4,\"mmm-dd, yyyy\")","v":"Pricing as of: Feb-28, 2026"},null,"Portfolio Stock","activeflag","Other","Name",{"$f":"IFERROR(INT(H5*100),H5)","v":"Hi 6-Mo Mom/Hi 9-Mo Bat Avg"},{"$f":"INDEX(Ranks!5:5,$G$4)","v":"Hi 6-Mo Mom/Hi 9-Mo Bat Avg"},{"$f":"IF(H5=\"\",-1,IF(H5=-1,\"\",H5))","v":"Hi 6-Mo Mom/Hi 9-Mo Bat Avg"}]
[null,null,"New Stock","newflag","Other","Code",{"$f":"IFERROR(INT(H6*100),H6)","v":"NP_MOM6_MOM9BA_XN2_H"},{"$f":"INDEX(Ranks!6:6,$G$4)","v":"NP_MOM6_MOM9BA_XN2_H"},{"$f":"IF(H6=\"\",-1,IF(H6=-1,\"\",H6))","v":"NP_MOM6_MOM9BA_XN2_H"}]
["Select a Sort Metric",null,"Non Qtr Flag","np_nonqtrly","Other",null,0,{"$f":"INDEX(Ranks!7:7,$G$4)","v":0},{"$f":"IF(H7=\"\",-1,IF(H7=-1,\"\",H7))","v":0}]
["New Flag",7,"GVKey","gvkey","Other",null,0,{"$f":"INDEX(Ranks!8:8,$G$4)","v":0},0]
["Earnings Report Date",29,"IID","iid","Other",null,10000,{"$f":"INDEX(Ranks!9:9,$G$4)","v":100},100]
["Earn 1 Yr Grth",50,"Status","secstat","Other",null,0,{"$f":"INDEX(Ranks!10:10,$G$4)","v":0},0]
["Sales 1 Yr Grth (Inv)",53,"Ticker","tic","Base",null,0,{"$f":"INDEX(Ranks!11:11,$G$4)","v":0},0]
["Current Buyback Yield",63,"Name","conm","Base",null,0,{"$f":"INDEX(Ranks!12:12,$G$4)","v":0},0]
["Current ROE",97,"Exchange Code","exchg","Other",null,0,{"$f":"INDEX(Ranks!13:13,$G$4)","v":0},0]
["Current ROA",93,"Exchange Name","exchg_desc","Other",null,0,{"$f":"INDEX(Ranks!14:14,$G$4)","v":0},0]
["ROE 1 Yr Chg",98,"Sector Code","gsector","Sector",null,0,{"$f":"INDEX(Ranks!15:15,$G$4)","v":0},0]
["ROA 1 Yr Chg",94,"Sector Name","gsector_desc","Sector",null,0,{"$f":"INDEX(Ranks!16:16,$G$4)","v":0},0]
["Current Net Cash/EV",66,"Group Code","ggroup","Sector",null,0,{"$f":"INDEX(Ranks!17:17,$G$4)","v":0},0]
["Current R&D/Sales",67,"Group Name","ggroup_desc","Sector",null,0,{"$f":"INDEX(Ranks!18:18,$G$4)","v":0},0]
["Current Earn to Price",41,"Industry Code","gind","Sector",null,0,{"$f":"INDEX(Ranks!19:19,$G$4)","v":0},0]
["Current Div to Price",38,"Industry Name","gind_desc","Sector",null,0,{"$f":"INDEX(Ranks!20:20,$G$4)","v":0},0]
["Div 3 Yr Grth",61,"Sub-Industry Code","gsubind","Sector",null,0,{"$f":"INDEX(Ranks!21:21,$G$4)","v":0},0]
["Current FCF/EV",47,"Sub-Industry Name","gsubind_desc","Sector",null,0,{"$f":"INDEX(Ranks!22:22,$G$4)","v":0},0]
["Current FCF/P",44,"Fisc Yr","qtryr","Other",null,0,{"$f":"INDEX(Ranks!23:23,$G$4)","v":0},0]
["Current Debt/EBITDA (Inv)",65,"Fisc Qtr","fqtr","Other",null,0,{"$f":"INDEX(Ranks!24:24,$G$4)","v":0},0]
["Rec/Sales 1 Yr Chg (Inv)",75,"Price","prccm","Base",null,10000,{"$f":"INDEX(Ranks!25:25,$G$4)","v":100},100]
["Current Accruals/Total Assets (Inv)",80,"Shares Outstanding","cshoq","Other",null,0,{"$f":"INDEX(Ranks!26:26,$G$4)","v":0},0]
["Inv/Sales 1 Yr Chg (Inv)",81,"Market Cap","np_mcap","Base",null,0,{"$f":"INDEX(Ranks!27:27,$G$4)","v":0},0]
["Op Margin 1 Yr Chg",87,"Earnings Report Date","np_qtr_reportdt","Other",null,0,{"$f":"INDEX(Ranks!28:28,$G$4)","v":0},0]
["Gross Margin 1 Yr Chg",90,"Proper Peers","wm_flag","Other",null,0,{"$f":"INDEX(Ranks!29:29,$G$4)","v":0},0]
["LTG Est (Inv)",107,"Top Miss or Top Beat","soc_flag","Other",null,0,{"$f":"INDEX(Ranks!30:30,$G$4)","v":0},0]
["Theoretical Growth Diff",57,"Valuation Quintile","quint_v_score","Valuation",null,0,{"$f":"INDEX(Ranks!31:31,$G$4)","v":0},0]
["Top Miss or Top Beat",31,"Balance Sheet Quintile","quint_b_score","Balance",null,0,{"$f":"INDEX(Ranks!32:32,$G$4)","v":0},0]
["Proper Peers",30,"Earnings Quality Quintile","quint_e_score","Earnings",null,0,{"$f":"INDEX(Ranks!33:33,$G$4)","v":0},0]
["Broken Chart",131,"Analyst Quality Quintile","quint_a_score","Analyst",null,0,{"$f":"INDEX(Ranks!34:34,$G$4)","v":0},0]
[null,null,"Market Quality Quintile","quint_m_score","Market",null,10000,{"$f":"INDEX(Ranks!35:35,$G$4)","v":100},100]
["Default Portfolio Sort Val:",{"$f":"\"\"","v":""},"Trading Quality Quintile","quint_i_score","Trading",null,0,{"$f":"INDEX(Ranks!36:36,$G$4)","v":0},0]
[null,null,"Current Div to Price","apct_NP_DIVYLD_I",null,null,0,{"$f":"INDEX(Ranks!37:37,$G$4)","v":0},0]
[null,null,"Current Earn to Price","apct_NP_IB_P",null,null,0,{"$f":"INDEX(Ranks!38:38,$G$4)","v":0},0]
[null,null,"Current Book to Price","apct_NP_SEQ_P",null,null,0,{"$f":"INDEX(Ranks!39:39,$G$4)","v":0},0]
[null,null,"Current Sales to EV","apct_NP_SALE_EV",null,null,0,{"$f":"INDEX(Ranks!40:40,$G$4)","v":0},0]
[null,null,"E/P 3 Yr Avg","apct_NP_IB_P_3YR_AVG",null,null,0,{"$f":"INDEX(Ranks!41:41,$G$4)","v":0},0]
[null,null,"E/P 5 Yr Avg","apct_NP_IB_P_5YR_AVG",null,null,0,{"$f":"INDEX(Ranks!42:42,$G$4)","v":0},0]
[null,null,"Current FCF/P","apct_NP_FCF_P",null,null,0,{"$f":"INDEX(Ranks!43:43,$G$4)","v":0},0]
[null,null,"FCF/P 3-Yr Avg","apct_NP_FCF_P_3YR_AVG",null,null,0,{"$f":"INDEX(Ranks!44:44,$G$4)","v":0},0]
[null,null,"FCF/P 5-Yr Avg","apct_NP_FCF_P_5YR_AVG",null,null,0,{"$f":"INDEX(Ranks!45:45,$G$4)","v":0},0]
[null,null,"Current FCF/EV","apct_NP_FCF_EV_1YR_AVG",null,null,0,{"$f":"INDEX(Ranks!46:46,$G$4)","v":0},0]
[null,null,"FCF/EV 3 Yr Avg","apct_NP_FCF_EV_3YR_AVG",null,null,0,{"$f":"INDEX(Ranks!47:47,$G$4)","v":0},0]
[null,null,"FCF/EV 5 Yr Avg","apct_NP_FCF_EV_5YR_AVG",null,null,0,{"$f":"INDEX(Ranks!48:48,$G$4)","v":0},0]
[null,null,"Earn 1 Yr Grth","apct_IB_1YR_GRTH",null,null,10000,{"$f":"INDEX(Ranks!49:49,$G$4)","v":100},100]
[null,null,"Earn 3 Yr Grth (Inv)","dpct_IB_3YR_GRTH",null,null,0,{"$f":"INDEX(Ranks!50:50,$G$4)","v":0},0]
[null,null,"Earn 5 Yr Grth (Inv)","dpct_IB_5YR_GRTH",null,null,0,{"$f":"INDEX(Ranks!51:51,$G$4)","v":0},0]
[null,null,"Sales 1 Yr Grth (Inv)","dpct_SALE_1YR_GRTH",null,null,0,{"$f":"INDEX(Ranks!52:52,$G$4)","v":0},0]
[null,null,"Sales 3 Yr Grth (Inv)","dpct_SALE_3YR_GRTH",null,null,0,{"$f":"INDEX(Ranks!53:53,$G$4)","v":0},0]
[null,null,"Sales 5 Yr Grth (Inv)","dpct_SALE_5YR_GRTH",null,null,0,{"$f":"INDEX(Ranks!54:54,$G$4)","v":0},0]
[null,null,"Theoretical Growth","apct_NP_GROWTH_RATE",null,null,0,{"$f":"INDEX(Ranks!55:55,$G$4)","v":0},0]
[null,null,"Theoretical Growth Diff","apct_NP_GROWTH_RATE_DIFF",null,null,0,{"$f":"INDEX(Ranks!56:56,$G$4)","v":0},0]
[null,null,"Current CAPX/Total Assets (Inv)","dpct_NP_CAPX_AT",null,null,0,{"$f":"INDEX(Ranks!57:57,$G$4)","v":0},0]
[null,null,"CAPX/Total Assets 3 Yr Chg (Inv)","dpct_NP_CAPX_AT_3YR_CHG",null,null,0,{"$f":"INDEX(Ranks!58:58,$G$4)","v":0},0]
[null,null,"Div 1 Yr Grth","apct_DV_1YR_GRTH",null,null,0,{"$f":"INDEX(Ranks!59:59,$G$4)","v":0},0]
[null,null,"Div 3 Yr Grth","apct_DV_3YR_GRTH",null,null,10000,{"$f":"INDEX(Ranks!60:60,$G$4)","v":100},100]
[null,null,"Div 5 Yr Grth","apct_DV_5YR_GRTH",null,null,0,{"$f":"INDEX(Ranks!61:61,$G$4)","v":0},0]
[null,null,"Current Buyback Yield","apct_NP_BBYLD_D",null,null,0,{"$f":"INDEX(Ranks!62:62,$G$4)","v":0},0]
[null,null,"Current GW/Total Assets (Inv)","dpct_NP_GDWL_AT",null,null,0,{"$f":"INDEX(Ranks!63:63,$G$4)","v":0},0]
[null,null,"Current Debt/EBITDA (Inv)","dpct_NP_DEBT_OIBDP",null,null,0,{"$f":"INDEX(Ranks!64:64,$G$4)","v":0},0]
[null,null,"Current NetCash/EV","apct_NP_NETCASH_EV",null,null,0,{"$f":"INDEX(Ranks!65:65,$G$4)","v":0},0]
[null,null,"Current R&D/Sales","apct_NP_XRD_SALE",null,null,0,{"$f":"INDEX(Ranks!66:66,$G$4)","v":0},0]
[null,null,"Current CAPX/Sales (Inv)","dpct_NP_CAPX_SALE",null,null,0,{"$f":"INDEX(Ranks!67:67,$G$4)","v":0},0]
[null,null,"CAPX/Sales 3 Yr Chg (Inv)","dpct_NP_CAPX_SALE_3YR_CHG",null,null,0,{"$f":"INDEX(Ranks!68:68,$G$4)","v":0},0]
[null,null,"CAPX/Sales 5 Yr Chg (Inv)","dpct_NP_CAPX_SALE_5YR_CHG",null,null,0,{"$f":"INDEX(Ranks!69:69,$G$4)","v":0},0]
[null,null,"WCap 3 Yr Grth (Inv)","dpct_NP_WCAP_3YR_GRTH",null,null,{"$f":"IFERROR(INT(H70*100),H70)","v":0},{"$f":"INDEX(Ranks!70:70,$G$4)","v":0},{"$f":"IF(H70=\"\",-1,IF(H70=-1,\"\",H70))","v":0}]
[null,null,"WCap 5 Yr Grth (Inv)","dpct_NP_WCAP_5YR_GRTH",null,null,0,{"$f":"INDEX(Ranks!71:71,$G$4)","v":0},0]
[null,null,"Quick Ratio","apct_NP_QUICK_RATIO",null,null,0,{"$f":"INDEX(Ranks!72:72,$G$4)","v":0},0]
[null,null,"Current Ratio","apct_NP_CURRENT_RATIO",null,null,0,{"$f":"INDEX(Ranks!73:73,$G$4)","v":0},0]
[null,null,"Rec/Sales 1 Yr Chg (Inv)","dpct_NP_RECT_SALE_1YR_CHG",null,null,0,{"$f":"INDEX(Ranks!74:74,$G$4)","v":0},0]
[null,null,"Rec/Sales 3 Yr Chg (Inv)","dpct_NP_RECT_SALE_3YR_CHG",null,null,10000,{"$f":"INDEX(Ranks!75:75,$G$4)","v":100},100]
[null,null,"Rec/Sales 5 Yr Chg (Inv)","dpct_NP_RECT_SALE_5YR_CHG",null,null,0,{"$f":"INDEX(Ranks!76:76,$G$4)","v":0},0]
[null,null,"BV Grth 3 Yr Disp (Inv)","dpct_NP_SEQ_1YR_GRTH_3YR_STDEV",null,null,0,{"$f":"INDEX(Ranks!77:77,$G$4)","v":0},0]
[null,null,"BV Grth 5 Yr Disp (Inv)","dpct_NP_SEQ_1YR_GRTH_5YR_STDEV",null,null,0,{"$f":"INDEX(Ranks!78:78,$G$4)","v":0},0]
[null,null,"Current Accruals/Total Assets (Inv)","dpct_NP_ACCRUAL_AT",null,null,0,{"$f":"INDEX(Ranks!79:79,$G$4)","v":0},0]
[null,null,"Inv/Sales 1 Yr Chg (Inv)","dpct_NP_INVT_SALE_1YR_CHG",null,null,0,{"$f":"INDEX(Ranks!80:80,$G$4)","v":0},0]
[null,null,"Inv/Sales 3 Yr Chg (Inv)","dpct_NP_INVT_SALE_3YR_CHG",null,null,0,{"$f":"INDEX(Ranks!81:81,$G$4)","v":0},0]
[null,null,"Inv/Sales 5 Yr Chg (Inv)","dpct_NP_INVT_SALE_5YR_CHG",null,null,0,{"$f":"INDEX(Ranks!82:82,$G$4)","v":0},0]
[null,null,"Current Op Margin","apct_NP_OP_MARGIN",null,null,0,{"$f":"INDEX(Ranks!83:83,$G$4)","v":0},0]
[null,null,"Current Gross Margin","apct_NP_G_MARGIN",null,null,0,{"$f":"INDEX(Ranks!84:84,$G$4)","v":0},0]
[null,null,"Current Inv/Sales","apct_NP_INVT_SALE",null,null,0,{"$f":"INDEX(Ranks!85:85,$G$4)","v":0},0]
[null,null,"Op Margin 1 Yr Chg","apct_NP_OP_MARGIN_1YR_CHG",null,null,0,{"$f":"INDEX(Ranks!86:86,$G$4)","v":0},0]
[null,null,"Op Margin 3 Yr Chg","apct_NP_OP_MARGIN_3YR_CHG",null,null,0,{"$f":"INDEX(Ranks!87:87,$G$4)","v":0},0]
[null,null,"Op Margin 5 Yr Chg","apct_NP_OP_MARGIN_5YR_CHG",null,null,0,{"$f":"INDEX(Ranks!88:88,$G$4)","v":0},0]
[null,null,"Gross Margin 1 Yr Chg","apct_NP_G_MARGIN_1YR_CHG",null,null,10000,{"$f":"INDEX(Ranks!89:89,$G$4)","v":100},100]
[null,null,"Gross Margin 3 Yr Chg","apct_NP_G_MARGIN_3YR_CHG",null,null,0,{"$f":"INDEX(Ranks!90:90,$G$4)","v":0},0]
[null,null,"Gross Margin 5 Yr Chg","apct_NP_G_MARGIN_5YR_CHG",null,null,0,{"$f":"INDEX(Ranks!91:91,$G$4)","v":0},0]
[null,null,"Current ROA","apct_NP_ROA",null,null,0,{"$f":"INDEX(Ranks!92:92,$G$4)","v":0},0]
[null,null,"ROA 1 Yr Chg","apct_NP_ROA_1YR_CHG",null,null,0,{"$f":"INDEX(Ranks!93:93,$G$4)","v":0},0]
[null,null,"ROA 3 Yr Chg","apct_NP_ROA_3YR_CHG",null,null,0,{"$f":"INDEX(Ranks!94:94,$G$4)","v":0},0]
[null,null,"ROA 5 Yr Chg","apct_NP_ROA_5YR_CHG",null,null,0,{"$f":"INDEX(Ranks!95:95,$G$4)","v":0},0]
[null,null,"Current ROE","apct_NP_ROE",null,null,0,{"$f":"INDEX(Ranks!96:96,$G$4)","v":0},0]
[null,null,"ROE 1 Yr Chg","apct_NP_ROE_1YR_CHG",null,null,0,{"$f":"INDEX(Ranks!97:97,$G$4)","v":0},0]
[null,null,"ROE 3 Yr Chg","apct_NP_ROE_3YR_CHG",null,null,0,{"$f":"INDEX(Ranks!98:98,$G$4)","v":0},0]
[null,null,"ROE 5 Yr Chg","apct_NP_ROE_5YR_CHG",null,null,0,{"$f":"INDEX(Ranks!99:99,$G$4)","v":0},0]
[null,null,"ROA 5 Yr Disp (Inv)","dpct_NP_ROA_5YR_STDEV",null,null,0,{"$f":"INDEX(Ranks!100:100,$G$4)","v":0},0]
[null,null,"ROE 5 Yr Disp (Inv)","dpct_NP_ROE_5YR_STDEV",null,null,0,{"$f":"INDEX(Ranks!101:101,$G$4)","v":0},0]
[null,null,"Current XI/Net Income (Inv)","dpct_NP_XIDO_NI",null,null,0,{"$f":"INDEX(Ranks!102:102,$G$4)","v":0},0]
[null,null,"Current Dep/CAPX","apct_NP_DP_CAPX",null,null,0,{"$f":"INDEX(Ranks!103:103,$G$4)","v":0},0]
[null,null,"Dep/CAPX 3 Yr Avg","apct_NP_DP_CAPX_3YR_AVG",null,null,0,{"$f":"INDEX(Ranks!104:104,$G$4)","v":0},0]
[null,null,"Dep/CAPX 5 Yr Avg","apct_NP_DP_CAPX_5YR_AVG",null,null,0,{"$f":"INDEX(Ranks!105:105,$G$4)","v":0},0]
[null,null,"LTG Est (Inv)","dpct_EPSEST_MEAN_F_LTG",null,null,0,{"$f":"INDEX(Ranks!106:106,$G$4)","v":0},0]
[null,null,"Shr of Est Rising","apct_NP_EPSEST_RISING",null,null,0,{"$f":"INDEX(Ranks!107:107,$G$4)","v":0},0]
[null,null,"LTG Disp (Inv)","dpct_EPSEST_STDEV_F_LTG",null,null,0,{"$f":"INDEX(Ranks!108:108,$G$4)","v":0},0]
[null,null,"Surp Score","apct_EPSSURP_FQ_SCORE",null,null,0,{"$f":"INDEX(Ranks!109:109,$G$4)","v":0},0]
[null,null,"PEG Ratio (Inv)","apct_NP_GEP",null,null,0,{"$f":"INDEX(Ranks!110:110,$G$4)","v":0},0]
[null,null,"Volume (Inv)","dpct_NP_VOLPCT",null,null,0,{"$f":"INDEX(Ranks!111:111,$G$4)","v":0},0]
[null,null,"3-Mo Mom","apct_MOM3",null,null,0,{"$f":"INDEX(Ranks!112:112,$G$4)","v":0},0]
[null,null,"6-Mo Mom","apct_MOM6",null,null,0,{"$f":"INDEX(Ranks!113:113,$G$4)","v":0},0]
[null,null,"9-Mo Mom","apct_MOM9",null,null,0,{"$f":"INDEX(Ranks!114:114,$G$4)","v":0},0]
[null,null,"12-Mo Mom","apct_MOM12",null,null,0,{"$f":"INDEX(Ranks!115:115,$G$4)","v":0},0]
[null,null,"36-Mo Mom (Inv)","dpct_MOM36",null,null,0,{"$f":"INDEX(Ranks!116:116,$G$4)","v":0},0]
[null,null,"3-Mo Bat Avg","apct_MOM3_BA",null,null,0,{"$f":"INDEX(Ranks!117:117,$G$4)","v":0},0]
[null,null,"6-Mo Bat Avg","apct_MOM6_BA",null,null,0,{"$f":"INDEX(Ranks!118:118,$G$4)","v":0},0]
[null,null,"9-Mo Bat Avg","apct_MOM9_BA",null,null,0,{"$f":"INDEX(Ranks!119:119,$G$4)","v":0},0]
[null,null,"12-Mo Bat Avg","apct_MOM12_BA",null,null,0,{"$f":"INDEX(Ranks!120:120,$G$4)","v":0},0]
[null,null,"3-Mo/6-Mo Breakout","apct_BREAKOUT_MOM3_6",null,null,0,{"$f":"INDEX(Ranks!121:121,$G$4)","v":0},0]
[null,null,"6-Mo/12-Mo Breakout","apct_BREAKOUT_MOM6_12",null,null,0,{"$f":"INDEX(Ranks!122:122,$G$4)","v":0},0]
[null,null,"CAPM Ret Diff (Inv)","dpct_NP_CAPM_DIFF",null,null,0,{"$f":"INDEX(Ranks!123:123,$G$4)","v":0},0]
[null,null,"Negative 24-Mo Skewness","NEG_MOM24_SKEW",null,null,0,{"$f":"INDEX(Ranks!124:124,$G$4)","v":0},0]
[null,null,"24-Mo Kurtosis (Inv)","dpct_MOM24_KURT",null,null,0,{"$f":"INDEX(Ranks!125:125,$G$4)","v":0},0]
[null,null,"Extreme 6-Mo Momentum","NP_MOM6_X_H",null,null,0,{"$f":"INDEX(Ranks!126:126,$G$4)","v":0},0]
[null,null,"Extreme 24-Mo Skewness","NP_MOM24SKEW_X_H",null,null,0,{"$f":"INDEX(Ranks!127:127,$G$4)","v":0},0]
[null,null,"Extreme 24-Mo Kurtosis","NP_MOM24KURT_X_H",null,null,0,{"$f":"INDEX(Ranks!128:128,$G$4)","v":0},0]
[null,null,"Low Mom High Vol","NP_MOM6_VOL_XN2_L",null,null,0,{"$f":"INDEX(Ranks!129:129,$G$4)","v":0},0]
[null,null,"Broken Chart","NP_MOM6_MOM36_XN2_L",null,null,0,{"$f":"INDEX(Ranks!130:130,$G$4)","v":0},0]
[null,null,"High 6-Mo Mom / High 9-Mo Bat Avg","NP_MOM6_MOM36_XN2_L",null,null,0,{"$f":"INDEX(Ranks!131:131,$G$4)","v":0},0]
[null,null,null,null,null,null,0,{"$f":"INDEX(Ranks!132:132,$G$4)","v":0},0]
[null,null,null,null,null,null,0,{"$f":"INDEX(Ranks!133:133,$G$4)","v":0},0]
[null,null,null,null,null,null,{"$f":"IFERROR(INT(H134*100),H134)","v":0},{"$f":"INDEX(Ranks!134:134,$G$4)","v":0},{"$f":"IF(H134=\"\",-1,IF(H134=-1,\"\",H134))","v":0}]
[null,null,null,null,null,null,10000,{"$f":"INDEX(Ranks!135:135,$G$4)","v":100},100]
[null,null,null,null,null,null,0,{"$f":"INDEX(Ranks!136:136,$G$4)","v":0},0]
[null,null,null,null,null,null,0,{"$f":"INDEX(Ranks!137:137,$G$4)","v":0},0]
[null,null,null,null,null,null,0,{"$f":"INDEX(Ranks!138:138,$G$4)","v":0},0]
[null,null,null,null,null,null,0,{"$f":"INDEX(Ranks!139:139,$G$4)","v":0},0]
[null,null,null,null,null,null,0,{"$f":"INDEX(Ranks!140:140,$G$4)","v":0},0]
[null,null,null,null,null,null,0,{"$f":"INDEX(Ranks!141:141,$G$4)","v":0},0]
[null,null,null,null,null,null,0,{"$f":"INDEX(Ranks!142:142,$G$4)","v":0},0]
[null,null,null,null,null,null,0,{"$f":"INDEX(Ranks!143:143,$G$4)","v":0},0]
[null,null,null,null,null,null,0,{"$f":"INDEX(Ranks!144:144,$G$4)","v":0},0]
[null,null,null,null,null,null,0,{"$f":"INDEX(Ranks!145:145,$G$4)","v":0},0]
[null,null,null,null,null,null,0,{"$f":"INDEX(Ranks!146:146,$G$4)","v":0},0]
[null,null,null,null,null,null,0,{"$f":"INDEX(Ranks!147:147,$G$4)","v":0},0]
[null,null,null,null,null,null,0,{"$f":"INDEX(Ranks!148:148,$G$4)","v":0},0]
[null,null,null,null,null,null,0,{"$f":"INDEX(Ranks!149:149,$G$4)","v":0},0]
[null,null,null,null,null,null,0,{"$f":"INDEX(Ranks!150:150,$G$4)","v":0},0]
[null,null,null,null,null,null,0,{"$f":"INDEX(Ranks!151:151,$G$4)","v":0},0]
[null,null,null,null,null,null,0,{"$f":"INDEX(Ranks!152:152,$G$4)","v":0},0]
[null,null,null,null,null,null,0,{"$f":"INDEX(Ranks!153:153,$G$4)","v":0},0]
[null,null,null,null,null,null,0,{"$f":"INDEX(Ranks!154:154,$G$4)","v":0},0]
[null,null,null,null,null,null,0,{"$f":"INDEX(Ranks!155:155,$G$4)","v":0},0]
[null,null,null,null,null,null,0,{"$f":"INDEX(Ranks!156:156,$G$4)","v":0},0]
[null,null,null,null,null,null,0,{"$f":"INDEX(Ranks!157:157,$G$4)","v":0},0]
[null,null,null,null,null,null,0,{"$f":"INDEX(Ranks!158:158,$G$4)","v":0},0]
[null,null,null,null,null,null,0,{"$f":"INDEX(Ranks!159:159,$G$4)","v":0},0]
[null,null,null,null,null,null,0,{"$f":"INDEX(Ranks!160:160,$G$4)","v":0},0]
[null,null,null,null,null,null,0,{"$f":"INDEX(Ranks!161:161,$G$4)","v":0},0]
[null,null,null,null,null,null,10000,{"$f":"INDEX(Ranks!162:162,$G$4)","v":100},100]
[null,null,null,null,null,null,0,{"$f":"INDEX(Ranks!163:163,$G$4)","v":0},0]
[null,null,null,null,null,null,0,{"$f":"INDEX(Ranks!164:164,$G$4)","v":0},0]
[null,null,null,null,null,null,0,{"$f":"INDEX(Ranks!165:165,$G$4)","v":0},0]
[null,null,null,null,null,null,0,{"$f":"INDEX(Ranks!166:166,$G$4)","v":0},0]
[null,null,null,null,null,null,0,{"$f":"INDEX(Ranks!167:167,$G$4)","v":0},0]
[null,null,null,null,null,null,0,{"$f":"INDEX(Ranks!168:168,$G$4)","v":0},0]
[null,null,null,null,null,null,0,{"$f":"INDEX(Ranks!169:169,$G$4)","v":0},0]
[null,null,null,null,null,null,0,{"$f":"INDEX(Ranks!170:170,$G$4)","v":0},0]
[null,null,null,null,null,null,0,{"$f":"INDEX(Ranks!171:171,$G$4)","v":0},0]
[null,null,null,null,null,null,0,{"$f":"INDEX(Ranks!172:172,$G$4)","v":0},0]
[null,null,null,null,null,null,0,{"$f":"INDEX(Ranks!173:173,$G$4)","v":0},0]
[null,null,null,null,null,null,0,{"$f":"INDEX(Ranks!174:174,$G$4)","v":0},0]
[null,null,null,null,null,null,0,{"$f":"INDEX(Ranks!175:175,$G$4)","v":0},0]
[null,null,null,null,null,null,0,{"$f":"INDEX(Ranks!176:176,$G$4)","v":0},0]
[null,null,null,null,null,null,0,{"$f":"INDEX(Ranks!177:177,$G$4)","v":0},0]
[null,null,null,null,null,null,0,{"$f":"INDEX(Ranks!178:178,$G$4)","v":0},0]
[null,null,null,null,null,null,0,{"$f":"INDEX(Ranks!179:179,$G$4)","v":0},0]
[null,null,null,null,null,null,0,{"$f":"INDEX(Ranks!180:180,$G$4)","v":0},0]
[null,null,null,null,null,null,0,{"$f":"INDEX(Ranks!181:181,$G$4)","v":0},0]
[null,null,null,null,null,null,0,{"$f":"INDEX(Ranks!182:182,$G$4)","v":0},0]
[null,null,null,null,null,null,0,{"$f":"INDEX(Ranks!183:183,$G$4)","v":0},0]
[null,null,null,null,null,null,0,{"$f":"INDEX(Ranks!184:184,$G$4)","v":0},0]
[null,null,null,null,null,null,0,{"$f":"INDEX(Ranks!185:185,$G$4)","v":0},0]
[null,null,null,null,null,null,0,{"$f":"INDEX(Ranks!186:186,$G$4)","v":0},0]
[null,null,null,null,null,null,0,{"$f":"INDEX(Ranks!187:187,$G$4)","v":0},0]
[null,null,null,null,null,null,0,{"$f":"INDEX(Ranks!188:188,$G$4)","v":0},0]
[null,null,null,null,null,null,10000,{"$f":"INDEX(Ranks!189:189,$G$4)","v":100},100]
[null,null,null,null,null,null,10000,{"$f":"INDEX(Ranks!190:190,$G$4)","v":100},100]
[null,null,null,null,null,null,0,{"$f":"INDEX(Ranks!191:191,$G$4)","v":0},0]
[null,null,null,null,null,null,0,{"$f":"INDEX(Ranks!192:192,$G$4)","v":0},0]
[null,null,null,null,null,null,10000,{"$f":"INDEX(Ranks!193:193,$G$4)","v":100},100]
[null,null,null,null,null,null,0,{"$f":"INDEX(Ranks!194:194,$G$4)","v":0},0]
[null,null,null,null,null,null,0,{"$f":"INDEX(Ranks!195:195,$G$4)","v":0},0]
[null,null,null,null,null,null,0,{"$f":"INDEX(Ranks!196:196,$G$4)","v":0},0]
[null,null,null,null,null,null,0,{"$f":"INDEX(Ranks!197:197,$G$4)","v":0},0]
[null,null,null,null,null,null,{"$f":"IFERROR(INT(H198*100),H198)","v":0},{"$f":"INDEX(Ranks!198:198,$G$4)","v":0},{"$f":"IF(H198=\"\",-1,IF(H198=-1,\"\",H198))","v":0}]
[null,null,null,null,null,null,0,{"$f":"INDEX(Ranks!199:199,$G$4)","v":0},0]
[null,null,null,null,null,null,0,{"$f":"INDEX(Ranks!200:200,$G$4)","v":0},0]
[null,null,null,null,null,null,0,{"$f":"INDEX(Ranks!201:201,$G$4)","v":0},0]
[null,null,null,null,null,null,0,{"$f":"INDEX(Ranks!202:202,$G$4)","v":0},0]
[null,null,null,null,null,null,0,{"$f":"INDEX(Ranks!203:203,$G$4)","v":0},0]
[null,null,null,null,null,null,0,{"$f":"INDEX(Ranks!204:204,$G$4)","v":0},0]
[null,null,null,null,null,null,0,{"$f":"INDEX(Ranks!205:205,$G$4)","v":0},0]
[null,null,null,null,null,null,0,{"$f":"INDEX(Ranks!206:206,$G$4)","v":0},0]
[null,null,null,null,null,null,0,{"$f":"INDEX(Ranks!207:207,$G$4)","v":0},0]
[null,null,null,null,null,null,0,{"$f":"INDEX(Ranks!208:208,$G$4)","v":0},0]
[null,null,null,null,null,null,0,{"$f":"INDEX(Ranks!209:209,$G$4)","v":0},0]
[null,null,null,null,null,null,10000,{"$f":"INDEX(Ranks!210:210,$G$4)","v":100},100]
[null,null,null,null,null,null,0,{"$f":"INDEX(Ranks!211:211,$G$4)","v":0},0]
[null,null,null,null,null,null,0,{"$f":"INDEX(Ranks!212:212,$G$4)","v":0},0]
[null,null,null,null,null,null,0,{"$f":"INDEX(Ranks!213:213,$G$4)","v":0},0]
[null,null,null,null,null,null,0,{"$f":"INDEX(Ranks!214:214,$G$4)","v":0},0]
[null,null,null,null,null,null,0,{"$f":"INDEX(Ranks!215:215,$G$4)","v":0},0]
[null,null,null,null,null,null,0,{"$f":"INDEX(Ranks!216:216,$G$4)","v":0},0]
[null,null,null,null,null,null,0,{"$f":"INDEX(Ranks!217:217,$G$4)","v":0},0]
[null,null,null,null,null,null,0,{"$f":"INDEX(Ranks!218:218,$G$4)","v":0},0]
[null,null,null,null,null,null,0,{"$f":"INDEX(Ranks!219:219,$G$4)","v":0},0]
[null,null,null,null,null,null,0,{"$f":"INDEX(Ranks!220:220,$G$4)","v":0},0]
[null,null,null,null,null,null,0,{"$f":"INDEX(Ranks!221:221,$G$4)","v":0},0]
[null,null,null,null,null,null,0,{"$f":"INDEX(Ranks!222:222,$G$4)","v":0},0]
[null,null,null,null,null,null,0,{"$f":"INDEX(Ranks!223:223,$G$4)","v":0},0]
[null,null,null,null,null,null,0,{"$f":"INDEX(Ranks!224:224,$G$4)","v":0},0]
[null,null,null,null,null,null,0,{"$f":"INDEX(Ranks!225:225,$G$4)","v":0},0]
[null,null,null,null,null,null,0,{"$f":"INDEX(Ranks!226:226,$G$4)","v":0},0]
[null,null,null,null,null,null,0,{"$f":"INDEX(Ranks!227:227,$G$4)","v":0},0]
[null,null,null,null,null,null,0,{"$f":"INDEX(Ranks!228:228,$G$4)","v":0},0]
[null,null,null,null,null,null,0,{"$f":"INDEX(Ranks!229:229,$G$4)","v":0},0]
[null,null,null,null,null,null,0,{"$f":"INDEX(Ranks!230:230,$G$4)","v":0},0]
[null,null,null,null,null,null,0,{"$f":"INDEX(Ranks!231:231,$G$4)","v":0},0]
[null,null,null,null,null,null,0,{"$f":"INDEX(Ranks!232:232,$G$4)","v":0},0]
[null,null,null,null,null,null,0,{"$f":"INDEX(Ranks!233:233,$G$4)","v":0},0]
[null,null,null,null,null,null,10000,{"$f":"INDEX(Ranks!234:234,$G$4)","v":100},100]
[null,null,null,null,null,null,0,{"$f":"INDEX(Ranks!235:235,$G$4)","v":0},0]
[null,null,null,null,null,null,0,{"$f":"INDEX(Ranks!236:236,$G$4)","v":0},0]
[null,null,null,null,null,null,0,{"$f":"INDEX(Ranks!237:237,$G$4)","v":0},0]
[null,null,null,null,null,null,0,{"$f":"INDEX(Ranks!238:238,$G$4)","v":0},0]
[null,null,null,null,null,null,0,{"$f":"INDEX(Ranks!239:239,$G$4)","v":0},0]
[null,null,null,null,null,null,0,{"$f":"INDEX(Ranks!240:240,$G$4)","v":0},0]
[null,null,null,null,null,null,0,{"$f":"INDEX(Ranks!241:241,$G$4)","v":0},0]
[null,null,null,null,null,null,0,{"$f":"INDEX(Ranks!242:242,$G$4)","v":0},0]
[null,null,null,null,null,null,0,{"$f":"INDEX(Ranks!243:243,$G$4)","v":0},0]
[null,null,null,null,null,null,0,{"$f":"INDEX(Ranks!244:244,$G$4)","v":0},0]
[null,null,null,null,null,null,0,{"$f":"INDEX(Ranks!245:245,$G$4)","v":0},0]
[null,null,null,null,null,null,0,{"$f":"INDEX(Ranks!246:246,$G$4)","v":0},0]
[null,null,null,null,null,null,0,{"$f":"INDEX(Ranks!247:247,$G$4)","v":0},0]
[null,null,null,null,null,null,0,{"$f":"INDEX(Ranks!248:248,$G$4)","v":0},0]
[null,null,null,null,null,null,0,{"$f":"INDEX(Ranks!249:249,$G$4)","v":0},0]
[null,null,null,null,null,null,0,{"$f":"INDEX(Ranks!250:250,$G$4)","v":0},0]
[null,null,null,null,null,null,0,{"$f":"INDEX(Ranks!251:251,$G$4)","v":0},0]
[null,null,null,null,null,null,10000,{"$f":"INDEX(Ranks!252:252,$G$4)","v":100},100]
[null,null,null,null,null,null,0,{"$f":"INDEX(Ranks!253:253,$G$4)","v":0},0]
[null,null,null,null,null,null,0,{"$f":"INDEX(Ranks!254:254,$G$4)","v":0},0]
[null,null,null,null,null,null,10000,{"$f":"INDEX(Ranks!255:255,$G$4)","v":100},100]
[null,null,null,null,null,null,0,{"$f":"INDEX(Ranks!256:256,$G$4)","v":0},0]
[null,null,null,null,null,null,0,{"$f":"INDEX(Ranks!257:257,$G$4)","v":0},0]
[null,null,null,null,null,null,0,{"$f":"INDEX(Ranks!258:258,$G$4)","v":0},0]
[null,null,null,null,null,null,0,{"$f":"INDEX(Ranks!259:259,$G$4)","v":0},0]
[null,null,null,null,null,null,0,{"$f":"INDEX(Ranks!260:260,$G$4)","v":0},0]
[null,null,null,null,null,null,0,{"$f":"INDEX(Ranks!261:261,$G$4)","v":0},0]
[null,null,null,null,null,null,{"$f":"IFERROR(INT(H262*100),H262)","v":10000},{"$f":"INDEX(Ranks!262:262,$G$4)","v":100},{"$f":"IF(H262=\"\",-1,IF(H262=-1,\"\",H262))","v":100}]
[null,null,null,null,null,null,0,{"$f":"INDEX(Ranks!263:263,$G$4)","v":0},0]
[null,null,null,null,null,null,0,{"$f":"INDEX(Ranks!264:264,$G$4)","v":0},0]
[null,null,null,null,null,null,0,{"$f":"INDEX(Ranks!265:265,$G$4)","v":0},0]
[null,null,null,null,null,null,10000,{"$f":"INDEX(Ranks!266:266,$G$4)","v":100},100]
[null,null,null,null,null,null,0,{"$f":"INDEX(Ranks!267:267,$G$4)","v":0},0]
[null,null,null,null,null,null,10000,{"$f":"INDEX(Ranks!268:268,$G$4)","v":100},100]
[null,null,null,null,null,null,0,{"$f":"INDEX(Ranks!269:269,$G$4)","v":0},0]
[null,null,null,null,null,null,0,{"$f":"INDEX(Ranks!270:270,$G$4)","v":0},0]
[null,null,null,null,null,null,0,{"$f":"INDEX(Ranks!271:271,$G$4)","v":0},0]
[null,null,null,null,null,null,0,{"$f":"INDEX(Ranks!272:272,$G$4)","v":0},0]
[null,null,null,null,null,null,0,{"$f":"INDEX(Ranks!273:273,$G$4)","v":0},0]
[null,null,null,null,null,null,0,{"$f":"INDEX(Ranks!274:274,$G$4)","v":0},0]
[null,null,null,null,null,null,0,{"$f":"INDEX(Ranks!275:275,$G$4)","v":0},0]
[null,null,null,null,null,null,10000,{"$f":"INDEX(Ranks!276:276,$G$4)","v":100},100]
[null,null,null,null,null,null,0,{"$f":"INDEX(Ranks!277:277,$G$4)","v":0},0]
[null,null,null,null,null,null,0,{"$f":"INDEX(Ranks!278:278,$G$4)","v":0},0]
[null,null,null,null,null,null,10000,{"$f":"INDEX(Ranks!279:279,$G$4)","v":100},100]
[null,null,null,null,null,null,0,{"$f":"INDEX(Ranks!280:280,$G$4)","v":0},0]
[null,null,null,null,null,null,0,{"$f":"INDEX(Ranks!281:281,$G$4)","v":0},0]
[null,null,null,null,null,null,0,{"$f":"INDEX(Ranks!282:282,$G$4)","v":0},0]
[null,null,null,null,null,null,0,{"$f":"INDEX(Ranks!283:283,$G$4)","v":0},0]
[null,null,null,null,null,null,0,{"$f":"INDEX(Ranks!284:284,$G$4)","v":0},0]
[null,null,null,null,null,null,0,{"$f":"INDEX(Ranks!285:285,$G$4)","v":0},0]
[null,null,null,null,null,null,0,{"$f":"INDEX(Ranks!286:286,$G$4)","v":0},0]
[null,null,null,null,null,null,0,{"$f":"INDEX(Ranks!287:287,$G$4)","v":0},0]
[null,null,null,null,null,null,0,{"$f":"INDEX(Ranks!288:288,$G$4)","v":0},0]
[null,null,null,null,null,null,0,{"$f":"INDEX(Ranks!289:289,$G$4)","v":0},0]
[null,null,null,null,null,null,0,{"$f":"INDEX(Ranks!290:290,$G$4)","v":0},0]
[null,null,null,null,null,null,0,{"$f":"INDEX(Ranks!291:291,$G$4)","v":0},0]
[null,null,null,null,null,null,0,{"$f":"INDEX(Ranks!292:292,$G$4)","v":0},0]
[null,null,null,null,null,null,0,{"$f":"INDEX(Ranks!293:293,$G$4)","v":0},0]
[null,null,null,null,null,null,0,{"$f":"INDEX(Ranks!294:294,$G$4)","v":0},0]
[null,null,null,null,null,null,10000,{"$f":"INDEX(Ranks!295:295,$G$4)","v":100},100]
[null,null,null,null,null,null,0,{"$f":"INDEX(Ranks!296:296,$G$4)","v":0},0]
[null,null,null,null,null,null,0,{"$f":"INDEX(Ranks!297:297,$G$4)","v":0},0]
[null,null,null,null,null,null,0,{"$f":"INDEX(Ranks!298:298,$G$4)","v":0},0]
[null,null,null,null,null,null,0,{"$f":"INDEX(Ranks!299:299,$G$4)","v":0},0]
[null,null,null,null,null,null,0,{"$f":"INDEX(Ranks!300:300,$G$4)","v":0},0]
[null,null,null,null,null,null,0,{"$f":"INDEX(Ranks!301:301,$G$4)","v":0},0]
[null,null,null,null,null,null,0,{"$f":"INDEX(Ranks!302:302,$G$4)","v":0},0]
[null,null,null,null,null,null,0,{"$f":"INDEX(Ranks!303:303,$G$4)","v":0},0]
[null,null,null,null,null,null,0,{"$f":"INDEX(Ranks!304:304,$G$4)","v":0},0]
[null,null,null,null,null,null,10000,{"$f":"INDEX(Ranks!305:305,$G$4)","v":100},100]
[null,null,null,null,null,null,0,{"$f":"INDEX(Ranks!306:306,$G$4)","v":0},0]
[null,null,null,null,null,null,0,{"$f":"INDEX(Ranks!307:307,$G$4)","v":0},0]
[null,null,null,null,null,null,0,{"$f":"INDEX(Ranks!308:308,$G$4)","v":0},0]
[null,null,null,null,null,null,10000,{"$f":"INDEX(Ranks!309:309,$G$4)","v":100},100]
[null,null,null,null,null,null,0,{"$f":"INDEX(Ranks!310:310,$G$4)","v":0},0]
[null,null,null,null,null,null,0,{"$f":"INDEX(Ranks!311:311,$G$4)","v":0},0]
[null,null,null,null,null,null,0,{"$f":"INDEX(Ranks!312:312,$G$4)","v":0},0]
[null,null,null,null,null,null,0,{"$f":"INDEX(Ranks!313:313,$G$4)","v":0},0]
[null,null,null,null,null,null,0,{"$f":"INDEX(Ranks!314:314,$G$4)","v":0},0]
[null,null,null,null,null,null,0,{"$f":"INDEX(Ranks!315:315,$G$4)","v":0},0]
[null,null,null,null,null,null,0,{"$f":"INDEX(Ranks!316:316,$G$4)","v":0},0]
[null,null,null,null,null,null,0,{"$f":"INDEX(Ranks!317:317,$G$4)","v":0},0]
[null,null,null,null,null,null,0,{"$f":"INDEX(Ranks!318:318,$G$4)","v":0},0]
[null,null,null,null,null,null,0,{"$f":"INDEX(Ranks!319:319,$G$4)","v":0},0]
[null,null,null,null,null,null,0,{"$f":"INDEX(Ranks!320:320,$G$4)","v":0},0]
[null,null,null,null,null,null,10000,{"$f":"INDEX(Ranks!321:321,$G$4)","v":100},100]
[null,null,null,null,null,null,0,{"$f":"INDEX(Ranks!322:322,$G$4)","v":0},0]
[null,null,null,null,null,null,10000,{"$f":"INDEX(Ranks!323:323,$G$4)","v":100},100]
[null,null,null,null,null,null,0,{"$f":"INDEX(Ranks!324:324,$G$4)","v":0},0]
[null,null,null,null,null,null,0,{"$f":"INDEX(Ranks!325:325,$G$4)","v":0},0]
[null,null,null,null,null,null,{"$f":"IFERROR(INT(H326*100),H326)","v":0},{"$f":"INDEX(Ranks!326:326,$G$4)","v":0},{"$f":"IF(H326=\"\",-1,IF(H326=-1,\"\",H326))","v":0}]
[null,null,null,null,null,null,0,{"$f":"INDEX(Ranks!327:327,$G$4)","v":0},0]
[null,null,null,null,null,null,0,{"$f":"INDEX(Ranks!328:328,$G$4)","v":0},0]
[null,null,null,null,null,null,0,{"$f":"INDEX(Ranks!329:329,$G$4)","v":0},0]
[null,null,null,null,null,null,0,{"$f":"INDEX(Ranks!330:330,$G$4)","v":0},0]
[null,null,null,null,null,null,0,{"$f":"INDEX(Ranks!331:331,$G$4)","v":0},0]
[null,null,null,null,null,null,0,{"$f":"INDEX(Ranks!332:332,$G$4)","v":0},0]
[null,null,null,null,null,null,0,{"$f":"INDEX(Ranks!333:333,$G$4)","v":0},0]
[null,null,null,null,null,null,0,{"$f":"INDEX(Ranks!334:334,$G$4)","v":0},0]
[null,null,null,null,null,null,10000,{"$f":"INDEX(Ranks!335:335,$G$4)","v":100},100]
[null,null,null,null,null,null,0,{"$f":"INDEX(Ranks!336:336,$G$4)","v":0},0]
[null,null,null,null,null,null,0,{"$f":"INDEX(Ranks!337:337,$G$4)","v":0},0]
[null,null,null,null,null,null,0,{"$f":"INDEX(Ranks!338:338,$G$4)","v":0},0]
[null,null,null,null,null,null,0,{"$f":"INDEX(Ranks!339:339,$G$4)","v":0},0]
[null,null,null,null,null,null,0,{"$f":"INDEX(Ranks!340:340,$G$4)","v":0},0]
[null,null,null,null,null,null,0,{"$f":"INDEX(Ranks!341:341,$G$4)","v":0},0]
[null,null,null,null,null,null,0,{"$f":"INDEX(Ranks!342:342,$G$4)","v":0},0]
[null,null,null,null,null,null,0,{"$f":"INDEX(Ranks!343:343,$G$4)","v":0},0]
[null,null,null,null,null,null,0,{"$f":"INDEX(Ranks!344:344,$G$4)","v":0},0]
[null,null,null,null,null,null,0,{"$f":"INDEX(Ranks!345:345,$G$4)","v":0},0]
[null,null,null,null,null,null,0,{"$f":"INDEX(Ranks!346:346,$G$4)","v":0},0]
[null,null,null,null,null,null,0,{"$f":"INDEX(Ranks!347:347,$G$4)","v":0},0]
[null,null,null,null,null,null,0,{"$f":"INDEX(Ranks!348:348,$G$4)","v":0},0]
[null,null,null,null,null,null,0,{"$f":"INDEX(Ranks!349:349,$G$4)","v":0},0]
[null,null,null,null,null,null,0,{"$f":"INDEX(Ranks!350:350,$G$4)","v":0},0]
[null,null,null,null,null,null,0,{"$f":"INDEX(Ranks!351:351,$G$4)","v":0},0]
[null,null,null,null,null,null,10000,{"$f":"INDEX(Ranks!352:352,$G$4)","v":100},100]
[null,null,null,null,null,null,0,{"$f":"INDEX(Ranks!353:353,$G$4)","v":0},0]
[null,null,null,null,null,null,0,{"$f":"INDEX(Ranks!354:354,$G$4)","v":0},0]
[null,null,null,null,null,null,0,{"$f":"INDEX(Ranks!355:355,$G$4)","v":0},0]
[null,null,null,null,null,null,0,{"$f":"INDEX(Ranks!356:356,$G$4)","v":0},0]
[null,null,null,null,null,null,0,{"$f":"INDEX(Ranks!357:357,$G$4)","v":0},0]
[null,null,null,null,null,null,0,{"$f":"INDEX(Ranks!358:358,$G$4)","v":0},0]
[null,null,null,null,null,null,0,{"$f":"INDEX(Ranks!359:359,$G$4)","v":0},0]
[null,null,null,null,null,null,0,{"$f":"INDEX(Ranks!360:360,$G$4)","v":0},0]
[null,null,null,null,null,null,0,{"$f":"INDEX(Ranks!361:361,$G$4)","v":0},0]
[null,null,null,null,null,null,0,{"$f":"INDEX(Ranks!362:362,$G$4)","v":0},0]
[null,null,null,null,null,null,0,{"$f":"INDEX(Ranks!363:363,$G$4)","v":0},0]
[null,null,null,null,null,null,10000,{"$f":"INDEX(Ranks!364:364,$G$4)","v":100},100]
[null,null,null,null,null,null,0,{"$f":"INDEX(Ranks!365:365,$G$4)","v":0},0]
[null,null,null,null,null,null,0,{"$f":"INDEX(Ranks!366:366,$G$4)","v":0},0]
[null,null,null,null,null,null,0,{"$f":"INDEX(Ranks!367:367,$G$4)","v":0},0]
[null,null,null,null,null,null,0,{"$f":"INDEX(Ranks!368:368,$G$4)","v":0},0]
[null,null,null,null,null,null,0,{"$f":"INDEX(Ranks!369:369,$G$4)","v":0},0]
[null,null,null,null,null,null,0,{"$f":"INDEX(Ranks!370:370,$G$4)","v":0},0]
[null,null,null,null,null,null,0,{"$f":"INDEX(Ranks!371:371,$G$4)","v":0},0]
[null,null,null,null,null,null,0,{"$f":"INDEX(Ranks!372:372,$G$4)","v":0},0]
[null,null,null,null,null,null,0,{"$f":"INDEX(Ranks!373:373,$G$4)","v":0},0]
[null,null,null,null,null,null,0,{"$f":"INDEX(Ranks!374:374,$G$4)","v":0},0]
[null,null,null,null,null,null,10000,{"$f":"INDEX(Ranks!375:375,$G$4)","v":100},100]
[null,null,null,null,null,null,0,{"$f":"INDEX(Ranks!376:376,$G$4)","v":0},0]
[null,null,null,null,null,null,0,{"$f":"INDEX(Ranks!377:377,$G$4)","v":0},0]
[null,null,null,null,null,null,0,{"$f":"INDEX(Ranks!378:378,$G$4)","v":0},0]
[null,null,null,null,null,null,0,{"$f":"INDEX(Ranks!379:379,$G$4)","v":0},0]
[null,null,null,null,null,null,0,{"$f":"INDEX(Ranks!380:380,$G$4)","v":0},0]
[null,null,null,null,null,null,0,{"$f":"INDEX(Ranks!381:381,$G$4)","v":0},0]
[null,null,null,null,null,null,0,{"$f":"INDEX(Ranks!382:382,$G$4)","v":0},0]
[null,null,null,null,null,null,0,{"$f":"INDEX(Ranks!383:383,$G$4)","v":0},0]
[null,null,null,null,null,null,0,{"$f":"INDEX(Ranks!384:384,$G$4)","v":0},0]
[null,null,null,null,null,null,0,{"$f":"INDEX(Ranks!385:385,$G$4)","v":0},0]
[null,null,null,null,null,null,0,{"$f":"INDEX(Ranks!386:386,$G$4)","v":0},0]
[null,null,null,null,null,null,0,{"$f":"INDEX(Ranks!387:387,$G$4)","v":0},0]
[null,null,null,null,null,null,0,{"$f":"INDEX(Ranks!388:388,$G$4)","v":0},0]
[null,null,null,null,null,null,0,{"$f":"INDEX(Ranks!389:389,$G$4)","v":0},0]
[null,null,null,null,null,null,{"$f":"IFERROR(INT(H390*100),H390)","v":0},{"$f":"INDEX(Ranks!390:390,$G$4)","v":0},{"$f":"IF(H390=\"\",-1,IF(H390=-1,\"\",H390))","v":0}]
[null,null,null,null,null,null,0,{"$f":"INDEX(Ranks!391:391,$G$4)","v":0},0]
[null,null,null,null,null,null,0,{"$f":"INDEX(Ranks!392:392,$G$4)","v":0},0]
[null,null,null,null,null,null,0,{"$f":"INDEX(Ranks!393:393,$G$4)","v":0},0]
[null,null,null,null,null,null,0,{"$f":"INDEX(Ranks!394:394,$G$4)","v":0},0]
[null,null,null,null,null,null,0,{"$f":"INDEX(Ranks!395:395,$G$4)","v":0},0]
[null,null,null,null,null,null,0,{"$f":"INDEX(Ranks!396:396,$G$4)","v":0},0]
[null,null,null,null,null,null,0,{"$f":"INDEX(Ranks!397:397,$G$4)","v":0},0]
[null,null,null,null,null,null,0,{"$f":"INDEX(Ranks!398:398,$G$4)","v":0},0]
[null,null,null,null,null,null,10000,{"$f":"INDEX(Ranks!399:399,$G$4)","v":100},100]
[null,null,null,null,null,null,0,{"$f":"INDEX(Ranks!400:400,$G$4)","v":0},0]
[null,null,null,null,null,null,0,{"$f":"INDEX(Ranks!401:401,$G$4)","v":0},0]
[null,null,null,null,null,null,0,{"$f":"INDEX(Ranks!402:402,$G$4)","v":0},0]
[null,null,null,null,null,null,0,{"$f":"INDEX(Ranks!403:403,$G$4)","v":0},0]
[null,null,null,null,null,null,0,{"$f":"INDEX(Ranks!404:404,$G$4)","v":0},0]
[null,null,null,null,null,null,0,{"$f":"INDEX(Ranks!405:405,$G$4)","v":0},0]
[null,null,null,null,null,null,0,{"$f":"INDEX(Ranks!406:406,$G$4)","v":0},0]
[null,null,null,null,null,null,0,{"$f":"INDEX(Ranks!407:407,$G$4)","v":0},0]
[null,null,null,null,null,null,0,{"$f":"INDEX(Ranks!408:408,$G$4)","v":0},0]
[null,null,null,null,null,null,0,{"$f":"INDEX(Ranks!409:409,$G$4)","v":0},0]
[null,null,null,null,null,null,0,{"$f":"INDEX(Ranks!410:410,$G$4)","v":0},0]
[null,null,null,null,null,null,0,{"$f":"INDEX(Ranks!411:411,$G$4)","v":0},0]
[null,null,null,null,null,null,0,{"$f":"INDEX(Ranks!412:412,$G$4)","v":0},0]
[null,null,null,null,null,null,0,{"$f":"INDEX(Ranks!413:413,$G$4)","v":0},0]
[null,null,null,null,null,null,0,{"$f":"INDEX(Ranks!414:414,$G$4)","v":0},0]
[null,null,null,null,null,null,0,{"$f":"INDEX(Ranks!415:415,$G$4)","v":0},0]
[null,null,null,null,null,null,0,{"$f":"INDEX(Ranks!416:416,$G$4)","v":0},0]
[null,null,null,null,null,null,0,{"$f":"INDEX(Ranks!417:417,$G$4)","v":0},0]
[null,null,null,null,null,null,0,{"$f":"INDEX(Ranks!418:418,$G$4)","v":0},0]
[null,null,null,null,null,null,0,{"$f":"INDEX(Ranks!419:419,$G$4)","v":0},0]
[null,null,null,null,null,null,0,{"$f":"INDEX(Ranks!420:420,$G$4)","v":0},0]
[null,null,null,null,null,null,0,{"$f":"INDEX(Ranks!421:421,$G$4)","v":0},0]
[null,null,null,null,null,null,0,{"$f":"INDEX(Ranks!422:422,$G$4)","v":0},0]
[null,null,null,null,null,null,0,{"$f":"INDEX(Ranks!423:423,$G$4)","v":0},0]
[null,null,null,null,null,null,0,{"$f":"INDEX(Ranks!424:424,$G$4)","v":0},0]
[null,null,null,null,null,null,0,{"$f":"INDEX(Ranks!425:425,$G$4)","v":0},0]
[null,null,null,null,null,null,0,{"$f":"INDEX(Ranks!426:426,$G$4)","v":0},0]
[null,null,null,null,null,null,0,{"$f":"INDEX(Ranks!427:427,$G$4)","v":0},0]
[null,null,null,null,null,null,0,{"$f":"INDEX(Ranks!428:428,$G$4)","v":0},0]
[null,null,null,null,null,null,0,{"$f":"INDEX(Ranks!429:429,$G$4)","v":0},0]
[null,null,null,null,null,null,0,{"$f":"INDEX(Ranks!430:430,$G$4)","v":0},0]
[null,null,null,null,null,null,0,{"$f":"INDEX(Ranks!431:431,$G$4)","v":0},0]
[null,null,null,null,null,null,0,{"$f":"INDEX(Ranks!432:432,$G$4)","v":0},0]
[null,null,null,null,null,null,0,{"$f":"INDEX(Ranks!433:433,$G$4)","v":0},0]
[null,null,null,null,null,null,0,{"$f":"INDEX(Ranks!434:434,$G$4)","v":0},0]
[null,null,null,null,null,null,0,{"$f":"INDEX(Ranks!435:435,$G$4)","v":0},0]
[null,null,null,null,null,null,10000,{"$f":"INDEX(Ranks!436:436,$G$4)","v":100},100]
[null,null,null,null,null,null,0,{"$f":"INDEX(Ranks!437:437,$G$4)","v":0},0]
[null,null,null,null,null,null,0,{"$f":"INDEX(Ranks!438:438,$G$4)","v":0},0]
[null,null,null,null,null,null,0,{"$f":"INDEX(Ranks!439:439,$G$4)","v":0},0]
[null,null,null,null,null,null,0,{"$f":"INDEX(Ranks!440:440,$G$4)","v":0},0]
[null,null,null,null,null,null,0,{"$f":"INDEX(Ranks!441:441,$G$4)","v":0},0]
[null,null,null,null,null,null,0,{"$f":"INDEX(Ranks!442:442,$G$4)","v":0},0]
[null,null,null,null,null,null,0,{"$f":"INDEX(Ranks!443:443,$G$4)","v":0},0]
[null,null,null,null,null,null,0,{"$f":"INDEX(Ranks!444:444,$G$4)","v":0},0]
[null,null,null,null,null,null,0,{"$f":"INDEX(Ranks!445:445,$G$4)","v":0},0]
[null,null,null,null,null,null,0,{"$f":"INDEX(Ranks!446:446,$G$4)","v":0},0]
[null,null,null,null,null,null,0,{"$f":"INDEX(Ranks!447:447,$G$4)","v":0},0]
[null,null,null,null,null,null,0,{"$f":"INDEX(Ranks!448:448,$G$4)","v":0},0]
[null,null,null,null,null,null,0,{"$f":"INDEX(Ranks!449:449,$G$4)","v":0},0]
[null,null,null,null,null,null,0,{"$f":"INDEX(Ranks!450:450,$G$4)","v":0},0]
[null,null,null,null,null,null,0,{"$f":"INDEX(Ranks!451:451,$G$4)","v":0},0]
[null,null,null,null,null,null,0,{"$f":"INDEX(Ranks!452:452,$G$4)","v":0},0]
[null,null,null,null,null,null,0,{"$f":"INDEX(Ranks!453:453,$G$4)","v":0},0]
[null,null,null,null,null,null,{"$f":"IFERROR(INT(H454*100),H454)","v":0},{"$f":"INDEX(Ranks!454:454,$G$4)","v":0},{"$f":"IF(H454=\"\",-1,IF(H454=-1,\"\",H454))","v":0}]
[null,null,null,null,null,null,0,{"$f":"INDEX(Ranks!455:455,$G$4)","v":0},0]
[null,null,null,null,null,null,0,{"$f":"INDEX(Ranks!456:456,$G$4)","v":0},0]
[null,null,null,null,null,null,0,{"$f":"INDEX(Ranks!457:457,$G$4)","v":0},0]
[null,null,null,null,null,null,0,{"$f":"INDEX(Ranks!458:458,$G$4)","v":0},0]
[null,null,null,null,null,null,10000,{"$f":"INDEX(Ranks!459:459,$G$4)","v":100},100]
[null,null,null,null,null,null,0,{"$f":"INDEX(Ranks!460:460,$G$4)","v":0},0]
[null,null,null,null,null,null,0,{"$f":"INDEX(Ranks!461:461,$G$4)","v":0},0]
[null,null,null,null,null,null,0,{"$f":"INDEX(Ranks!462:462,$G$4)","v":0},0]
[null,null,null,null,null,null,0,{"$f":"INDEX(Ranks!463:463,$G$4)","v":0},0]
[null,null,null,null,null,null,0,{"$f":"INDEX(Ranks!464:464,$G$4)","v":0},0]
[null,null,null,null,null,null,0,{"$f":"INDEX(Ranks!465:465,$G$4)","v":0},0]
[null,null,null,null,null,null,0,{"$f":"INDEX(Ranks!466:466,$G$4)","v":0},0]
[null,null,null,null,null,null,0,{"$f":"INDEX(Ranks!467:467,$G$4)","v":0},0]
[null,null,null,null,null,null,0,{"$f":"INDEX(Ranks!468:468,$G$4)","v":0},0]
[null,null,null,null,null,null,0,{"$f":"INDEX(Ranks!469:469,$G$4)","v":0},0]
[null,null,null,null,null,null,0,{"$f":"INDEX(Ranks!470:470,$G$4)","v":0},0]
[null,null,null,null,null,null,0,{"$f":"INDEX(Ranks!471:471,$G$4)","v":0},0]
[null,null,null,null,null,null,0,{"$f":"INDEX(Ranks!472:472,$G$4)","v":0},0]
[null,null,null,null,null,null,0,{"$f":"INDEX(Ranks!473:473,$G$4)","v":0},0]
[null,null,null,null,null,null,0,{"$f":"INDEX(Ranks!474:474,$G$4)","v":0},0]
[null,null,null,null,null,null,0,{"$f":"INDEX(Ranks!475:475,$G$4)","v":0},0]
[null,null,null,null,null,null,0,{"$f":"INDEX(Ranks!476:476,$G$4)","v":0},0]
[null,null,null,null,null,null,0,{"$f":"INDEX(Ranks!477:477,$G$4)","v":0},0]
[null,null,null,null,null,null,0,{"$f":"INDEX(Ranks!478:478,$G$4)","v":0},0]
[null,null,null,null,null,null,10000,{"$f":"INDEX(Ranks!479:479,$G$4)","v":100},100]
[null,null,null,null,null,null,0,{"$f":"INDEX(Ranks!480:480,$G$4)","v":0},0]
[null,null,null,null,null,null,0,{"$f":"INDEX(Ranks!481:481,$G$4)","v":0},0]
[null,null,null,null,null,null,0,{"$f":"INDEX(Ranks!482:482,$G$4)","v":0},0]
[null,null,null,null,null,null,10000,{"$f":"INDEX(Ranks!483:483,$G$4)","v":100},100]
[null,null,null,null,null,null,0,{"$f":"INDEX(Ranks!484:484,$G$4)","v":0},0]
[null,null,null,null,null,null,0,{"$f":"INDEX(Ranks!485:485,$G$4)","v":0},0]
[null,null,null,null,null,null,0,{"$f":"INDEX(Ranks!486:486,$G$4)","v":0},0]
[null,null,null,null,null,null,0,{"$f":"INDEX(Ranks!487:487,$G$4)","v":0},0]
[null,null,null,null,null,null,0,{"$f":"INDEX(Ranks!488:488,$G$4)","v":0},0]
[null,null,null,null,null,null,10000,{"$f":"INDEX(Ranks!489:489,$G$4)","v":100},100]
[null,null,null,null,null,null,0,{"$f":"INDEX(Ranks!490:490,$G$4)","v":0},0]
[null,null,null,null,null,null,0,{"$f":"INDEX(Ranks!491:491,$G$4)","v":0},0]
[null,null,null,null,null,null,0,{"$f":"INDEX(Ranks!492:492,$G$4)","v":0},0]
[null,null,null,null,null,null,0,{"$f":"INDEX(Ranks!493:493,$G$4)","v":0},0]
[null,null,null,null,null,null,0,{"$f":"INDEX(Ranks!494:494,$G$4)","v":0},0]
[null,null,null,null,null,null,10000,{"$f":"INDEX(Ranks!495:495,$G$4)","v":100},100]
[null,null,null,null,null,null,0,{"$f":"INDEX(Ranks!496:496,$G$4)","v":0},0]
[null,null,null,null,null,null,0,{"$f":"INDEX(Ranks!497:497,$G$4)","v":0},0]
[null,null,null,null,null,null,0,{"$f":"INDEX(Ranks!498:498,$G$4)","v":0},0]
[null,null,null,null,null,null,0,{"$f":"INDEX(Ranks!499:499,$G$4)","v":0},0]
[null,null,null,null,null,null,0,{"$f":"INDEX(Ranks!500:500,$G$4)","v":0},0]
[null,null,null,null,null,null,0,{"$f":"INDEX(Ranks!501:501,$G$4)","v":0},0]
[null,null,null,null,null,null,0,{"$f":"INDEX(Ranks!502:502,$G$4)","v":0},0]
[null,null,null,null,null,null,0,{"$f":"INDEX(Ranks!503:503,$G$4)","v":0},0]
[null,null,null,null,null,null,0,{"$f":"INDEX(Ranks!504:504,$G$4)","v":0},0]
[null,null,null,null,null,null,0,{"$f":"INDEX(Ranks!505:505,$G$4)","v":0},0]
[null,null,null,null,null,null,0,{"$f":"INDEX(Ranks!506:506,$G$4)","v":0},0]
[null,null,null,null,null,null,0,{"$f":"INDEX(Ranks!507:507,$G$4)","v":0},0]
[null,null,null,null,null,null,0,{"$f":"INDEX(Ranks!508:508,$G$4)","v":0},0]
[null,null,null,null,null,null,10000,{"$f":"INDEX(Ranks!509:509,$G$4)","v":100},100]
[null,null,null,null,null,null,0,{"$f":"INDEX(Ranks!510:510,$G$4)","v":0},0]
[null,null,null,null,null,null,0,{"$f":"INDEX(Ranks!511:511,$G$4)","v":0},0]
[null,null,null,null,null,null,0,{"$f":"INDEX(Ranks!512:512,$G$4)","v":0},0]
[null,null,null,null,null,null,10000,{"$f":"INDEX(Ranks!513:513,$G$4)","v":100},100]
[null,null,null,null,null,null,0,{"$f":"INDEX(Ranks!514:514,$G$4)","v":0},0]
[null,null,null,null,null,null,0,{"$f":"INDEX(Ranks!515:515,$G$4)","v":0},0]
[null,null,null,null,null,null,0,{"$f":"INDEX(Ranks!516:516,$G$4)","v":0},0]
[null,null,null,null,null,null,0,{"$f":"INDEX(Ranks!517:517,$G$4)","v":0},0]
[null,null,null,null,null,null,{"$f":"IFERROR(INT(H518*100),H518)","v":0},{"$f":"INDEX(Ranks!518:518,$G$4)","v":0},{"$f":"IF(H518=\"\",-1,IF(H518=-1,\"\",H518))","v":0}]
[null,null,null,null,null,null,0,{"$f":"INDEX(Ranks!519:519,$G$4)","v":0},0]
[null,null,null,null,null,null,10000,{"$f":"INDEX(Ranks!520:520,$G$4)","v":100},100]
[null,null,null,null,null,null,10000,{"$f":"INDEX(Ranks!521:521,$G$4)","v":100},100]
[null,null,null,null,null,null,0,{"$f":"INDEX(Ranks!522:522,$G$4)","v":0},0]
[null,null,null,null,null,null,0,{"$f":"INDEX(Ranks!523:523,$G$4)","v":0},0]
[null,null,null,null,null,null,0,{"$f":"INDEX(Ranks!524:524,$G$4)","v":0},0]
[null,null,null,null,null,null,0,{"$f":"INDEX(Ranks!525:525,$G$4)","v":0},0]
[null,null,null,null,null,null,0,{"$f":"INDEX(Ranks!526:526,$G$4)","v":0},0]
[null,null,null,null,null,null,0,{"$f":"INDEX(Ranks!527:527,$G$4)","v":0},0]
[null,null,null,null,null,null,10000,{"$f":"INDEX(Ranks!528:528,$G$4)","v":100},100]
[null,null,null,null,null,null,0,{"$f":"INDEX(Ranks!529:529,$G$4)","v":0},0]
[null,null,null,null,null,null,0,{"$f":"INDEX(Ranks!530:530,$G$4)","v":0},0]
[null,null,null,null,null,null,0,{"$f":"INDEX(Ranks!531:531,$G$4)","v":0},0]
[null,null,null,null,null,null,0,{"$f":"INDEX(Ranks!532:532,$G$4)","v":0},0]
[null,null,null,null,null,null,0,{"$f":"INDEX(Ranks!533:533,$G$4)","v":0},0]
[null,null,null,null,null,null,0,{"$f":"INDEX(Ranks!534:534,$G$4)","v":0},0]
[null,null,null,null,null,null,0,{"$f":"INDEX(Ranks!535:535,$G$4)","v":0},0]
[null,null,null,null,null,null,0,{"$f":"INDEX(Ranks!536:536,$G$4)","v":0},0]
[null,null,null,null,null,null,0,{"$f":"INDEX(Ranks!537:537,$G$4)","v":0},0]
[null,null,null,null,null,null,0,{"$f":"INDEX(Ranks!538:538,$G$4)","v":0},0]
[null,null,null,null,null,null,0,{"$f":"INDEX(Ranks!539:539,$G$4)","v":0},0]
[null,null,null,null,null,null,10000,{"$f":"INDEX(Ranks!540:540,$G$4)","v":100},100]
[null,null,null,null,null,null,0,{"$f":"INDEX(Ranks!541:541,$G$4)","v":0},0]
[null,null,null,null,null,null,0,{"$f":"INDEX(Ranks!542:542,$G$4)","v":0},0]
[null,null,null,null,null,null,0,{"$f":"INDEX(Ranks!543:543,$G$4)","v":0},0]
[null,null,null,null,null,null,0,{"$f":"INDEX(Ranks!544:544,$G$4)","v":0},0]
[null,null,null,null,null,null,0,{"$f":"INDEX(Ranks!545:545,$G$4)","v":0},0]
[null,null,null,null,null,null,10000,{"$f":"INDEX(Ranks!546:546,$G$4)","v":100},100]
[null,null,null,null,null,null,0,{"$f":"INDEX(Ranks!547:547,$G$4)","v":0},0]
[null,null,null,null,null,null,10000,{"$f":"INDEX(Ranks!548:548,$G$4)","v":100},100]
[null,null,null,null,null,null,0,{"$f":"INDEX(Ranks!549:549,$G$4)","v":0},0]
[null,null,null,null,null,null,0,{"$f":"INDEX(Ranks!550:550,$G$4)","v":0},0]
[null,null,null,null,null,null,0,{"$f":"INDEX(Ranks!551:551,$G$4)","v":0},0]
[null,null,null,null,null,null,0,{"$f":"INDEX(Ranks!552:552,$G$4)","v":0},0]
[null,null,null,null,null,null,0,{"$f":"INDEX(Ranks!553:553,$G$4)","v":0},0]
[null,null,null,null,null,null,0,{"$f":"INDEX(Ranks!554:554,$G$4)","v":0},0]
[null,null,null,null,null,null,0,{"$f":"INDEX(Ranks!555:555,$G$4)","v":0},0]
[null,null,null,null,null,null,0,{"$f":"INDEX(Ranks!556:556,$G$4)","v":0},0]
[null,null,null,null,null,null,0,{"$f":"INDEX(Ranks!557:557,$G$4)","v":0},0]
[null,null,null,null,null,null,0,{"$f":"INDEX(Ranks!558:558,$G$4)","v":0},0]
[null,null,null,null,null,null,0,{"$f":"INDEX(Ranks!559:559,$G$4)","v":0},0]
[null,null,null,null,null,null,0,{"$f":"INDEX(Ranks!560:560,$G$4)","v":0},0]
[null,null,null,null,null,null,0,{"$f":"INDEX(Ranks!561:561,$G$4)","v":0},0]
[null,null,null,null,null,null,0,{"$f":"INDEX(Ranks!562:562,$G$4)","v":0},0]
[null,null,null,null,null,null,0,{"$f":"INDEX(Ranks!563:563,$G$4)","v":0},0]
[null,null,null,null,null,null,0,{"$f":"INDEX(Ranks!564:564,$G$4)","v":0},0]
[null,null,null,null,null,null,0,{"$f":"INDEX(Ranks!565:565,$G$4)","v":0},0]
[null,null,null,null,null,null,0,{"$f":"INDEX(Ranks!566:566,$G$4)","v":0},0]
[null,null,null,null,null,null,0,{"$f":"INDEX(Ranks!567:567,$G$4)","v":0},0]
[null,null,null,null,null,null,0,{"$f":"INDEX(Ranks!568:568,$G$4)","v":0},0]
[null,null,null,null,null,null,0,{"$f":"INDEX(Ranks!569:569,$G$4)","v":0},0]
[null,null,null,null,null,null,0,{"$f":"INDEX(Ranks!570:570,$G$4)","v":0},0]
[null,null,null,null,null,null,0,{"$f":"INDEX(Ranks!571:571,$G$4)","v":0},0]
[null,null,null,null,null,null,0,{"$f":"INDEX(Ranks!572:572,$G$4)","v":0},0]
[null,null,null,null,null,null,0,{"$f":"INDEX(Ranks!573:573,$G$4)","v":0},0]
[null,null,null,null,null,null,0,{"$f":"INDEX(Ranks!574:574,$G$4)","v":0},0]
[null,null,null,null,null,null,0,{"$f":"INDEX(Ranks!575:575,$G$4)","v":0},0]
[null,null,null,null,null,null,10000,{"$f":"INDEX(Ranks!576:576,$G$4)","v":100},100]
[null,null,null,null,null,null,0,{"$f":"INDEX(Ranks!577:577,$G$4)","v":0},0]
[null,null,null,null,null,null,0,{"$f":"INDEX(Ranks!578:578,$G$4)","v":0},0]
[null,null,null,null,null,null,0,{"$f":"INDEX(Ranks!579:579,$G$4)","v":0},0]
[null,null,null,null,null,null,0,{"$f":"INDEX(Ranks!580:580,$G$4)","v":0},0]
[null,null,null,null,null,null,0,{"$f":"INDEX(Ranks!581:581,$G$4)","v":0},0]
[null,null,null,null,null,null,{"$f":"IFERROR(INT(H582*100),H582)","v":0},{"$f":"INDEX(Ranks!582:582,$G$4)","v":0},{"$f":"IF(H582=\"\",-1,IF(H582=-1,\"\",H582))","v":0}]
[null,null,null,null,null,null,0,{"$f":"INDEX(Ranks!583:583,$G$4)","v":0},0]
[null,null,null,null,null,null,0,{"$f":"INDEX(Ranks!584:584,$G$4)","v":0},0]
[null,null,null,null,null,null,0,{"$f":"INDEX(Ranks!585:585,$G$4)","v":0},0]
[null,null,null,null,null,null,0,{"$f":"INDEX(Ranks!586:586,$G$4)","v":0},0]
[null,null,null,null,null,null,0,{"$f":"INDEX(Ranks!587:587,$G$4)","v":0},0]
[null,null,null,null,null,null,0,{"$f":"INDEX(Ranks!588:588,$G$4)","v":0},0]
[null,null,null,null,null,null,0,{"$f":"INDEX(Ranks!589:589,$G$4)","v":0},0]
[null,null,null,null,null,null,0,{"$f":"INDEX(Ranks!590:590,$G$4)","v":0},0]
[null,null,null,null,null,null,0,{"$f":"INDEX(Ranks!591:591,$G$4)","v":0},0]
[null,null,null,null,null,null,0,{"$f":"INDEX(Ranks!592:592,$G$4)","v":0},0]
[null,null,null,null,null,null,0,{"$f":"INDEX(Ranks!593:593,$G$4)","v":0},0]
[null,null,null,null,null,null,0,{"$f":"INDEX(Ranks!594:594,$G$4)","v":0},0]
[null,null,null,null,null,null,0,{"$f":"INDEX(Ranks!595:595,$G$4)","v":0},0]
[null,null,null,null,null,null,0,{"$f":"INDEX(Ranks!596:596,$G$4)","v":0},0]
[null,null,null,null,null,null,10000,{"$f":"INDEX(Ranks!597:597,$G$4)","v":100},100]
[null,null,null,null,null,null,0,{"$f":"INDEX(Ranks!598:598,$G$4)","v":0},0]
[null,null,null,null,null,null,0,{"$f":"INDEX(Ranks!599:599,$G$4)","v":0},0]
[null,null,null,null,null,null,0,{"$f":"INDEX(Ranks!600:600,$G$4)","v":0},0]
[null,null,null,null,null,null,0,{"$f":"INDEX(Ranks!601:601,$G$4)","v":0},0]
[null,null,null,null,null,null,0,{"$f":"INDEX(Ranks!602:602,$G$4)","v":0},0]
[null,null,null,null,null,null,0,{"$f":"INDEX(Ranks!603:603,$G$4)","v":0},0]
[null,null,null,null,null,null,0,{"$f":"INDEX(Ranks!604:604,$G$4)","v":0},0]
[null,null,null,null,null,null,0,{"$f":"INDEX(Ranks!605:605,$G$4)","v":0},0]
[null,null,null,null,null,null,0,{"$f":"INDEX(Ranks!606:606,$G$4)","v":0},0]
[null,null,null,null,null,null,0,{"$f":"INDEX(Ranks!607:607,$G$4)","v":0},0]
[null,null,null,null,null,null,0,{"$f":"INDEX(Ranks!608:608,$G$4)","v":0},0]
[null,null,null,null,null,null,0,{"$f":"INDEX(Ranks!609:609,$G$4)","v":0},0]
[null,null,null,null,null,null,0,{"$f":"INDEX(Ranks!610:610,$G$4)","v":0},0]
[null,null,null,null,null,null,0,{"$f":"INDEX(Ranks!611:611,$G$4)","v":0},0]
[null,null,null,null,null,null,0,{"$f":"INDEX(Ranks!612:612,$G$4)","v":0},0]
[null,null,null,null,null,null,0,{"$f":"INDEX(Ranks!613:613,$G$4)","v":0},0]
[null,null,null,null,null,null,0,{"$f":"INDEX(Ranks!614:614,$G$4)","v":0},0]
[null,null,null,null,null,null,0,{"$f":"INDEX(Ranks!615:615,$G$4)","v":0},0]
[null,null,null,null,null,null,0,{"$f":"INDEX(Ranks!616:616,$G$4)","v":0},0]
[null,null,null,null,null,null,0,{"$f":"INDEX(Ranks!617:617,$G$4)","v":0},0]
[null,null,null,null,null,null,0,{"$f":"INDEX(Ranks!618:618,$G$4)","v":0},0]
[null,null,null,null,null,null,0,{"$f":"INDEX(Ranks!619:619,$G$4)","v":0},0]
[null,null,null,null,null,null,0,{"$f":"INDEX(Ranks!620:620,$G$4)","v":0},0]
[null,null,null,null,null,null,0,{"$f":"INDEX(Ranks!621:621,$G$4)","v":0},0]
[null,null,null,null,null,null,0,{"$f":"INDEX(Ranks!622:622,$G$4)","v":0},0]
[null,null,null,null,null,null,0,{"$f":"INDEX(Ranks!623:623,$G$4)","v":0},0]
[null,null,null,null,null,null,0,{"$f":"INDEX(Ranks!624:624,$G$4)","v":0},0]
[null,null,null,null,null,null,0,{"$f":"INDEX(Ranks!625:625,$G$4)","v":0},0]
[null,null,null,null,null,null,0,{"$f":"INDEX(Ranks!626:626,$G$4)","v":0},0]
[null,null,null,null,null,null,0,{"$f":"INDEX(Ranks!627:627,$G$4)","v":0},0]
[null,null,null,null,null,null,0,{"$f":"INDEX(Ranks!628:628,$G$4)","v":0},0]
[null,null,null,null,null,null,0,{"$f":"INDEX(Ranks!629:629,$G$4)","v":0},0]
[null,null,null,null,null,null,0,{"$f":"INDEX(Ranks!630:630,$G$4)","v":0},0]
[null,null,null,null,null,null,0,{"$f":"INDEX(Ranks!631:631,$G$4)","v":0},0]
[null,null,null,null,null,null,0,{"$f":"INDEX(Ranks!632:632,$G$4)","v":0},0]
[null,null,null,null,null,null,0,{"$f":"INDEX(Ranks!633:633,$G$4)","v":0},0]
[null,null,null,null,null,null,0,{"$f":"INDEX(Ranks!634:634,$G$4)","v":0},0]
[null,null,null,null,null,null,0,{"$f":"INDEX(Ranks!635:635,$G$4)","v":0},0]
[null,null,null,null,null,null,0,{"$f":"INDEX(Ranks!636:636,$G$4)","v":0},0]
[null,null,null,null,null,null,0,{"$f":"INDEX(Ranks!637:637,$G$4)","v":0},0]
[null,null,null,null,null,null,0,{"$f":"INDEX(Ranks!638:638,$G$4)","v":0},0]
[null,null,null,null,null,null,0,{"$f":"INDEX(Ranks!639:639,$G$4)","v":0},0]
[null,null,null,null,null,null,0,{"$f":"INDEX(Ranks!640:640,$G$4)","v":0},0]
[null,null,null,null,null,null,0,{"$f":"INDEX(Ranks!641:641,$G$4)","v":0},0]
[null,null,null,null,null,null,0,{"$f":"INDEX(Ranks!642:642,$G$4)","v":0},0]
[null,null,null,null,null,null,0,{"$f":"INDEX(Ranks!643:643,$G$4)","v":0},0]
[null,null,null,null,null,null,0,{"$f":"INDEX(Ranks!644:644,$G$4)","v":0},0]
[null,null,null,null,null,null,0,{"$f":"INDEX(Ranks!645:645,$G$4)","v":0},0]
[null,null,null,null,null,null,{"$f":"IFERROR(INT(H646*100),H646)","v":0},{"$f":"INDEX(Ranks!646:646,$G$4)","v":0},{"$f":"IF(H646=\"\",-1,IF(H646=-1,\"\",H646))","v":0}]
[null,null,null,null,null,null,0,{"$f":"INDEX(Ranks!647:647,$G$4)","v":0},0]
[null,null,null,null,null,null,0,{"$f":"INDEX(Ranks!648:648,$G$4)","v":0},0]
[null,null,null,null,null,null,0,{"$f":"INDEX(Ranks!649:649,$G$4)","v":0},0]
[null,null,null,null,null,null,0,{"$f":"INDEX(Ranks!650:650,$G$4)","v":0},0]
[null,null,null,null,null,null,0,{"$f":"INDEX(Ranks!651:651,$G$4)","v":0},0]
[null,null,null,null,null,null,0,{"$f":"INDEX(Ranks!652:652,$G$4)","v":0},0]
[null,null,null,null,null,null,0,{"$f":"INDEX(Ranks!653:653,$G$4)","v":0},0]
[null,null,null,null,null,null,0,{"$f":"INDEX(Ranks!654:654,$G$4)","v":0},0]
[null,null,null,null,null,null,0,{"$f":"INDEX(Ranks!655:655,$G$4)","v":0},0]
[null,null,null,null,null,null,0,{"$f":"INDEX(Ranks!656:656,$G$4)","v":0},0]
[null,null,null,null,null,null,0,{"$f":"INDEX(Ranks!657:657,$G$4)","v":0},0]
[null,null,null,null,null,null,0,{"$f":"INDEX(Ranks!658:658,$G$4)","v":0},0]
[null,null,null,null,null,null,0,{"$f":"INDEX(Ranks!659:659,$G$4)","v":0},0]
[null,null,null,null,null,null,0,{"$f":"INDEX(Ranks!660:660,$G$4)","v":0},0]
[null,null,null,null,null,null,0,{"$f":"INDEX(Ranks!661:661,$G$4)","v":0},0]
[null,null,null,null,null,null,0,{"$f":"INDEX(Ranks!662:662,$G$4)","v":0},0]
[null,null,null,null,null,null,0,{"$f":"INDEX(Ranks!663:663,$G$4)","v":0},0]
[null,null,null,null,null,null,0,{"$f":"INDEX(Ranks!664:664,$G$4)","v":0},0]
[null,null,null,null,null,null,0,{"$f":"INDEX(Ranks!665:665,$G$4)","v":0},0]
[null,null,null,null,null,null,0,{"$f":"INDEX(Ranks!666:666,$G$4)","v":0},0]
[null,null,null,null,null,null,0,{"$f":"INDEX(Ranks!667:667,$G$4)","v":0},0]
[null,null,null,null,null,null,0,{"$f":"INDEX(Ranks!668:668,$G$4)","v":0},0]
[null,null,null,null,null,null,0,{"$f":"INDEX(Ranks!669:669,$G$4)","v":0},0]
[null,null,null,null,null,null,0,{"$f":"INDEX(Ranks!670:670,$G$4)","v":0},0]
[null,null,null,null,null,null,0,{"$f":"INDEX(Ranks!671:671,$G$4)","v":0},0]
[null,null,null,null,null,null,0,{"$f":"INDEX(Ranks!672:672,$G$4)","v":0},0]
[null,null,null,null,null,null,10000,{"$f":"INDEX(Ranks!673:673,$G$4)","v":100},100]
[null,null,null,null,null,null,10000,{"$f":"INDEX(Ranks!674:674,$G$4)","v":100},100]
[null,null,null,null,null,null,0,{"$f":"INDEX(Ranks!675:675,$G$4)","v":0},0]
[null,null,null,null,null,null,0,{"$f":"INDEX(Ranks!676:676,$G$4)","v":0},0]
[null,null,null,null,null,null,0,{"$f":"INDEX(Ranks!677:677,$G$4)","v":0},0]
[null,null,null,null,null,null,10000,{"$f":"INDEX(Ranks!678:678,$G$4)","v":100},100]
[null,null,null,null,null,null,0,{"$f":"INDEX(Ranks!679:679,$G$4)","v":0},0]
[null,null,null,null,null,null,0,{"$f":"INDEX(Ranks!680:680,$G$4)","v":0},0]
[null,null,null,null,null,null,0,{"$f":"INDEX(Ranks!681:681,$G$4)","v":0},0]
[null,null,null,null,null,null,10000,{"$f":"INDEX(Ranks!682:682,$G$4)","v":100},100]
[null,null,null,null,null,null,0,{"$f":"INDEX(Ranks!683:683,$G$4)","v":0},0]
[null,null,null,null,null,null,0,{"$f":"INDEX(Ranks!684:684,$G$4)","v":0},0]
[null,null,null,null,null,null,0,{"$f":"INDEX(Ranks!685:685,$G$4)","v":0},0]
[null,null,null,null,null,null,0,{"$f":"INDEX(Ranks!686:686,$G$4)","v":0},0]
[null,null,null,null,null,null,0,{"$f":"INDEX(Ranks!687:687,$G$4)","v":0},0]
[null,null,null,null,null,null,0,{"$f":"INDEX(Ranks!688:688,$G$4)","v":0},0]
[null,null,null,null,null,null,0,{"$f":"INDEX(Ranks!689:689,$G$4)","v":0},0]
[null,null,null,null,null,null,0,{"$f":"INDEX(Ranks!690:690,$G$4)","v":0},0]
[null,null,null,null,null,null,0,{"$f":"INDEX(Ranks!691:691,$G$4)","v":0},0]
[null,null,null,null,null,null,0,{"$f":"INDEX(Ranks!692:692,$G$4)","v":0},0]
[null,null,null,null,null,null,0,{"$f":"INDEX(Ranks!693:693,$G$4)","v":0},0]
[null,null,null,null,null,null,0,{"$f":"INDEX(Ranks!694:694,$G$4)","v":0},0]
[null,null,null,null,null,null,0,{"$f":"INDEX(Ranks!695:695,$G$4)","v":0},0]
[null,null,null,null,null,null,0,{"$f":"INDEX(Ranks!696:696,$G$4)","v":0},0]
[null,null,null,null,null,null,0,{"$f":"INDEX(Ranks!697:697,$G$4)","v":0},0]
[null,null,null,null,null,null,0,{"$f":"INDEX(Ranks!698:698,$G$4)","v":0},0]
[null,null,null,null,null,null,0,{"$f":"INDEX(Ranks!699:699,$G$4)","v":0},0]
[null,null,null,null,null,null,0,{"$f":"INDEX(Ranks!700:700,$G$4)","v":0},0]
[null,null,null,null,null,null,10000,{"$f":"INDEX(Ranks!701:701,$G$4)","v":100},100]
[null,null,null,null,null,null,0,{"$f":"INDEX(Ranks!702:702,$G$4)","v":0},0]
[null,null,null,null,null,null,0,{"$f":"INDEX(Ranks!703:703,$G$4)","v":0},0]
[null,null,null,null,null,null,0,{"$f":"INDEX(Ranks!704:704,$G$4)","v":0},0]
[null,null,null,null,null,null,0,{"$f":"INDEX(Ranks!705:705,$G$4)","v":0},0]
[null,null,null,null,null,null,0,{"$f":"INDEX(Ranks!706:706,$G$4)","v":0},0]
[null,null,null,null,null,null,0,{"$f":"INDEX(Ranks!707:707,$G$4)","v":0},0]
[null,null,null,null,null,null,0,{"$f":"INDEX(Ranks!708:708,$G$4)","v":0},0]
[null,null,null,null,null,null,0,{"$f":"INDEX(Ranks!709:709,$G$4)","v":0},0]
[null,null,null,null,null,null,{"$f":"IFERROR(INT(H710*100),H710)","v":0},{"$f":"INDEX(Ranks!710:710,$G$4)","v":0},{"$f":"IF(H710=\"\",-1,IF(H710=-1,\"\",H710))","v":0}]
[null,null,null,null,null,null,0,{"$f":"INDEX(Ranks!711:711,$G$4)","v":0},0]
[null,null,null,null,null,null,0,{"$f":"INDEX(Ranks!712:712,$G$4)","v":0},0]
[null,null,null,null,null,null,10000,{"$f":"INDEX(Ranks!713:713,$G$4)","v":100},100]
[null,null,null,null,null,null,0,{"$f":"INDEX(Ranks!714:714,$G$4)","v":0},0]
[null,null,null,null,null,null,0,{"$f":"INDEX(Ranks!715:715,$G$4)","v":0},0]
[null,null,null,null,null,null,0,{"$f":"INDEX(Ranks!716:716,$G$4)","v":0},0]
[null,null,null,null,null,null,0,{"$f":"INDEX(Ranks!717:717,$G$4)","v":0},0]
[null,null,null,null,null,null,0,{"$f":"INDEX(Ranks!718:718,$G$4)","v":0},0]
[null,null,null,null,null,null,0,{"$f":"INDEX(Ranks!719:719,$G$4)","v":0},0]
[null,null,null,null,null,null,0,{"$f":"INDEX(Ranks!720:720,$G$4)","v":0},0]
[null,null,null,null,null,null,10000,{"$f":"INDEX(Ranks!721:721,$G$4)","v":100},100]
[null,null,null,null,null,null,0,{"$f":"INDEX(Ranks!722:722,$G$4)","v":0},0]
[null,null,null,null,null,null,0,{"$f":"INDEX(Ranks!723:723,$G$4)","v":0},0]
[null,null,null,null,null,null,0,{"$f":"INDEX(Ranks!724:724,$G$4)","v":0},0]
[null,null,null,null,null,null,10000,{"$f":"INDEX(Ranks!725:725,$G$4)","v":100},100]
[null,null,null,null,null,null,0,{"$f":"INDEX(Ranks!726:726,$G$4)","v":0},0]
[null,null,null,null,null,null,0,{"$f":"INDEX(Ranks!727:727,$G$4)","v":0},0]
[null,null,null,null,null,null,0,{"$f":"INDEX(Ranks!728:728,$G$4)","v":0},0]
[null,null,null,null,null,null,0,{"$f":"INDEX(Ranks!729:729,$G$4)","v":0},0]
[null,null,null,null,null,null,0,{"$f":"INDEX(Ranks!730:730,$G$4)","v":0},0]
[null,null,null,null,null,null,0,{"$f":"INDEX(Ranks!731:731,$G$4)","v":0},0]
[null,null,null,null,null,null,0,{"$f":"INDEX(Ranks!732:732,$G$4)","v":0},0]
[null,null,null,null,null,null,0,{"$f":"INDEX(Ranks!733:733,$G$4)","v":0},0]
[null,null,null,null,null,null,0,{"$f":"INDEX(Ranks!734:734,$G$4)","v":0},0]
[null,null,null,null,null,null,10000,{"$f":"INDEX(Ranks!735:735,$G$4)","v":100},100]
[null,null,null,null,null,null,0,{"$f":"INDEX(Ranks!736:736,$G$4)","v":0},0]
[null,null,null,null,null,null,0,{"$f":"INDEX(Ranks!737:737,$G$4)","v":0},0]
[null,null,null,null,null,null,0,{"$f":"INDEX(Ranks!738:738,$G$4)","v":0},0]
[null,null,null,null,null,null,0,{"$f":"INDEX(Ranks!739:739,$G$4)","v":0},0]
[null,null,null,null,null,null,0,{"$f":"INDEX(Ranks!740:740,$G$4)","v":0},0]
[null,null,null,null,null,null,0,{"$f":"INDEX(Ranks!741:741,$G$4)","v":0},0]
[null,null,null,null,null,null,0,{"$f":"INDEX(Ranks!742:742,$G$4)","v":0},0]
[null,null,null,null,null,null,0,{"$f":"INDEX(Ranks!743:743,$G$4)","v":0},0]
[null,null,null,null,null,null,0,{"$f":"INDEX(Ranks!744:744,$G$4)","v":0},0]
[null,null,null,null,null,null,0,{"$f":"INDEX(Ranks!745:745,$G$4)","v":0},0]
[null,null,null,null,null,null,0,{"$f":"INDEX(Ranks!746:746,$G$4)","v":0},0]
[null,null,null,null,null,null,0,{"$f":"INDEX(Ranks!747:747,$G$4)","v":0},0]
[null,null,null,null,null,null,0,{"$f":"INDEX(Ranks!748:748,$G$4)","v":0},0]
[null,null,null,null,null,null,0,{"$f":"INDEX(Ranks!749:749,$G$4)","v":0},0]
[null,null,null,null,null,null,0,{"$f":"INDEX(Ranks!750:750,$G$4)","v":0},0]
[null,null,null,null,null,null,0,{"$f":"INDEX(Ranks!751:751,$G$4)","v":0},0]
[null,null,null,null,null,null,0,{"$f":"INDEX(Ranks!752:752,$G$4)","v":0},0]
[null,null,null,null,null,null,0,{"$f":"INDEX(Ranks!753:753,$G$4)","v":0},0]
[null,null,null,null,null,null,0,{"$f":"INDEX(Ranks!754:754,$G$4)","v":0},0]
[null,null,null,null,null,null,0,{"$f":"INDEX(Ranks!755:755,$G$4)","v":0},0]
[null,null,null,null,null,null,0,{"$f":"INDEX(Ranks!756:756,$G$4)","v":0},0]
[null,null,null,null,null,null,0,{"$f":"INDEX(Ranks!757:757,$G$4)","v":0},0]
[null,null,null,null,null,null,0,{"$f":"INDEX(Ranks!758:758,$G$4)","v":0},0]
[null,null,null,null,null,null,0,{"$f":"INDEX(Ranks!759:759,$G$4)","v":0},0]
[null,null,null,null,null,null,0,{"$f":"INDEX(Ranks!760:760,$G$4)","v":0},0]
[null,null,null,null,null,null,0,{"$f":"INDEX(Ranks!761:761,$G$4)","v":0},0]
[null,null,null,null,null,null,0,{"$f":"INDEX(Ranks!762:762,$G$4)","v":0},0]
[null,null,null,null,null,null,0,{"$f":"INDEX(Ranks!763:763,$G$4)","v":0},0]
[null,null,null,null,null,null,0,{"$f":"INDEX(Ranks!764:764,$G$4)","v":0},0]
[null,null,null,null,null,null,0,{"$f":"INDEX(Ranks!765:765,$G$4)","v":0},0]
[null,null,null,null,null,null,0,{"$f":"INDEX(Ranks!766:766,$G$4)","v":0},0]
[null,null,null,null,null,null,0,{"$f":"INDEX(Ranks!767:767,$G$4)","v":0},0]
[null,null,null,null,null,null,0,{"$f":"INDEX(Ranks!768:768,$G$4)","v":0},0]
[null,null,null,null,null,null,0,{"$f":"INDEX(Ranks!769:769,$G$4)","v":0},0]
[null,null,null,null,null,null,0,{"$f":"INDEX(Ranks!770:770,$G$4)","v":0},0]
[null,null,null,null,null,null,0,{"$f":"INDEX(Ranks!771:771,$G$4)","v":0},0]
[null,null,null,null,null,null,0,{"$f":"INDEX(Ranks!772:772,$G$4)","v":0},0]
[null,null,null,null,null,null,0,{"$f":"INDEX(Ranks!773:773,$G$4)","v":0},0]
[null,null,null,null,null,null,{"$f":"IFERROR(INT(H774*100),H774)","v":0},{"$f":"INDEX(Ranks!774:774,$G$4)","v":0},{"$f":"IF(H774=\"\",-1,IF(H774=-1,\"\",H774))","v":0}]
[null,null,null,null,null,null,0,{"$f":"INDEX(Ranks!775:775,$G$4)","v":0},0]
[null,null,null,null,null,null,0,{"$f":"INDEX(Ranks!776:776,$G$4)","v":0},0]
[null,null,null,null,null,null,0,{"$f":"INDEX(Ranks!777:777,$G$4)","v":0},0]
[null,null,null,null,null,null,0,{"$f":"INDEX(Ranks!778:778,$G$4)","v":0},0]
[null,null,null,null,null,null,0,{"$f":"INDEX(Ranks!779:779,$G$4)","v":0},0]
[null,null,null,null,null,null,0,{"$f":"INDEX(Ranks!780:780,$G$4)","v":0},0]
[null,null,null,null,null,null,0,{"$f":"INDEX(Ranks!781:781,$G$4)","v":0},0]
[null,null,null,null,null,null,0,{"$f":"INDEX(Ranks!782:782,$G$4)","v":0},0]
[null,null,null,null,null,null,0,{"$f":"INDEX(Ranks!783:783,$G$4)","v":0},0]
[null,null,null,null,null,null,10000,{"$f":"INDEX(Ranks!784:784,$G$4)","v":100},100]
[null,null,null,null,null,null,0,{"$f":"INDEX(Ranks!785:785,$G$4)","v":0},0]
[null,null,null,null,null,null,10000,{"$f":"INDEX(Ranks!786:786,$G$4)","v":100},100]
[null,null,null,null,null,null,10000,{"$f":"INDEX(Ranks!787:787,$G$4)","v":100},100]
[null,null,null,null,null,null,0,{"$f":"INDEX(Ranks!788:788,$G$4)","v":0},0]
[null,null,null,null,null,null,0,{"$f":"INDEX(Ranks!789:789,$G$4)","v":0},0]
[null,null,null,null,null,null,0,{"$f":"INDEX(Ranks!790:790,$G$4)","v":0},0]
[null,null,null,null,null,null,0,{"$f":"INDEX(Ranks!791:791,$G$4)","v":0},0]
[null,null,null,null,null,null,0,{"$f":"INDEX(Ranks!792:792,$G$4)","v":0},0]
[null,null,null,null,null,null,0,{"$f":"INDEX(Ranks!793:793,$G$4)","v":0},0]
[null,null,null,null,null,null,0,{"$f":"INDEX(Ranks!794:794,$G$4)","v":0},0]
[null,null,null,null,null,null,0,{"$f":"INDEX(Ranks!795:795,$G$4)","v":0},0]
[null,null,null,null,null,null,0,{"$f":"INDEX(Ranks!796:796,$G$4)","v":0},0]
[null,null,null,null,null,null,0,{"$f":"INDEX(Ranks!797:797,$G$4)","v":0},0]
[null,null,null,null,null,null,0,{"$f":"INDEX(Ranks!798:798,$G$4)","v":0},0]
[null,null,null,null,null,null,0,{"$f":"INDEX(Ranks!799:799,$G$4)","v":0},0]
[null,null,null,null,null,null,0,{"$f":"INDEX(Ranks!800:800,$G$4)","v":0},0]
[null,null,null,null,null,null,0,{"$f":"INDEX(Ranks!801:801,$G$4)","v":0},0]
[null,null,null,null,null,null,0,{"$f":"INDEX(Ranks!802:802,$G$4)","v":0},0]
[null,null,null,null,null,null,0,{"$f":"INDEX(Ranks!803:803,$G$4)","v":0},0]
[null,null,null,null,null,null,10000,{"$f":"INDEX(Ranks!804:804,$G$4)","v":100},100]
[null,null,null,null,null,null,0,{"$f":"INDEX(Ranks!805:805,$G$4)","v":0},0]
[null,null,null,null,null,null,0,{"$f":"INDEX(Ranks!806:806,$G$4)","v":0},0]
[null,null,null,null,null,null,0,{"$f":"INDEX(Ranks!807:807,$G$4)","v":0},0]
[null,null,null,null,null,null,0,{"$f":"INDEX(Ranks!808:808,$G$4)","v":0},0]
[null,null,null,null,null,null,0,{"$f":"INDEX(Ranks!809:809,$G$4)","v":0},0]
[null,null,null,null,null,null,0,{"$f":"INDEX(Ranks!810:810,$G$4)","v":0},0]
[null,null,null,null,null,null,0,{"$f":"INDEX(Ranks!811:811,$G$4)","v":0},0]
[null,null,null,null,null,null,10000,{"$f":"INDEX(Ranks!812:812,$G$4)","v":100},100]
[null,null,null,null,null,null,10000,{"$f":"INDEX(Ranks!813:813,$G$4)","v":100},100]
[null,null,null,null,null,null,0,{"$f":"INDEX(Ranks!814:814,$G$4)","v":0},0]
[null,null,null,null,null,null,0,{"$f":"INDEX(Ranks!815:815,$G$4)","v":0},0]
[null,null,null,null,null,null,0,{"$f":"INDEX(Ranks!816:816,$G$4)","v":0},0]
[null,null,null,null,null,null,0,{"$f":"INDEX(Ranks!817:817,$G$4)","v":0},0]
[null,null,null,null,null,null,0,{"$f":"INDEX(Ranks!818:818,$G$4)","v":0},0]
[null,null,null,null,null,null,0,{"$f":"INDEX(Ranks!819:819,$G$4)","v":0},0]
[null,null,null,null,null,null,0,{"$f":"INDEX(Ranks!820:820,$G$4)","v":0},0]
[null,null,null,null,null,null,0,{"$f":"INDEX(Ranks!821:821,$G$4)","v":0},0]
[null,null,null,null,null,null,0,{"$f":"INDEX(Ranks!822:822,$G$4)","v":0},0]
[null,null,null,null,null,null,0,{"$f":"INDEX(Ranks!823:823,$G$4)","v":0},0]
[null,null,null,null,null,null,0,{"$f":"INDEX(Ranks!824:824,$G$4)","v":0},0]
[null,null,null,null,null,null,0,{"$f":"INDEX(Ranks!825:825,$G$4)","v":0},0]
[null,null,null,null,null,null,0,{"$f":"INDEX(Ranks!826:826,$G$4)","v":0},0]
[null,null,null,null,null,null,0,{"$f":"INDEX(Ranks!827:827,$G$4)","v":0},0]
[null,null,null,null,null,null,0,{"$f":"INDEX(Ranks!828:828,$G$4)","v":0},0]
[null,null,null,null,null,null,0,{"$f":"INDEX(Ranks!829:829,$G$4)","v":0},0]
[null,null,null,null,null,null,0,{"$f":"INDEX(Ranks!830:830,$G$4)","v":0},0]
[null,null,null,null,null,null,10000,{"$f":"INDEX(Ranks!831:831,$G$4)","v":100},100]
[null,null,null,null,null,null,0,{"$f":"INDEX(Ranks!832:832,$G$4)","v":0},0]
[null,null,null,null,null,null,0,{"$f":"INDEX(Ranks!833:833,$G$4)","v":0},0]
[null,null,null,null,null,null,0,{"$f":"INDEX(Ranks!834:834,$G$4)","v":0},0]
[null,null,null,null,null,null,0,{"$f":"INDEX(Ranks!835:835,$G$4)","v":0},0]
[null,null,null,null,null,null,10000,{"$f":"INDEX(Ranks!836:836,$G$4)","v":100},100]
[null,null,null,null,null,null,10000,{"$f":"INDEX(Ranks!837:837,$G$4)","v":100},100]
[null,null,null,null,null,null,{"$f":"IFERROR(INT(H838*100),H838)","v":0},{"$f":"INDEX(Ranks!838:838,$G$4)","v":0},{"$f":"IF(H838=\"\",-1,IF(H838=-1,\"\",H838))","v":0}]
[null,null,null,null,null,null,0,{"$f":"INDEX(Ranks!839:839,$G$4)","v":0},0]
[null,null,null,null,null,null,0,{"$f":"INDEX(Ranks!840:840,$G$4)","v":0},0]
[null,null,null,null,null,null,0,{"$f":"INDEX(Ranks!841:841,$G$4)","v":0},0]
[null,null,null,null,null,null,0,{"$f":"INDEX(Ranks!842:842,$G$4)","v":0},0]
[null,null,null,null,null,null,0,{"$f":"INDEX(Ranks!843:843,$G$4)","v":0},0]
[null,null,null,null,null,null,0,{"$f":"INDEX(Ranks!844:844,$G$4)","v":0},0]
[null,null,null,null,null,null,0,{"$f":"INDEX(Ranks!845:845,$G$4)","v":0},0]
[null,null,null,null,null,null,10000,{"$f":"INDEX(Ranks!846:846,$G$4)","v":100},100]
[null,null,null,null,null,null,0,{"$f":"INDEX(Ranks!847:847,$G$4)","v":0},0]
[null,null,null,null,null,null,0,{"$f":"INDEX(Ranks!848:848,$G$4)","v":0},0]
[null,null,null,null,null,null,0,{"$f":"INDEX(Ranks!849:849,$G$4)","v":0},0]
[null,null,null,null,null,null,0,{"$f":"INDEX(Ranks!850:850,$G$4)","v":0},0]
[null,null,null,null,null,null,0,{"$f":"INDEX(Ranks!851:851,$G$4)","v":0},0]
[null,null,null,null,null,null,0,{"$f":"INDEX(Ranks!852:852,$G$4)","v":0},0]
[null,null,null,null,null,null,0,{"$f":"INDEX(Ranks!853:853,$G$4)","v":0},0]
[null,null,null,null,null,null,0,{"$f":"INDEX(Ranks!854:854,$G$4)","v":0},0]
[null,null,null,null,null,null,0,{"$f":"INDEX(Ranks!855:855,$G$4)","v":0},0]
[null,null,null,null,null,null,0,{"$f":"INDEX(Ranks!856:856,$G$4)","v":0},0]
[null,null,null,null,null,null,0,{"$f":"INDEX(Ranks!857:857,$G$4)","v":0},0]
[null,null,null,null,null,null,0,{"$f":"INDEX(Ranks!858:858,$G$4)","v":0},0]
[null,null,null,null,null,null,0,{"$f":"INDEX(Ranks!859:859,$G$4)","v":0},0]
[null,null,null,null,null,null,0,{"$f":"INDEX(Ranks!860:860,$G$4)","v":0},0]
[null,null,null,null,null,null,0,{"$f":"INDEX(Ranks!861:861,$G$4)","v":0},0]
[null,null,null,null,null,null,0,{"$f":"INDEX(Ranks!862:862,$G$4)","v":0},0]
[null,null,null,null,null,null,10000,{"$f":"INDEX(Ranks!863:863,$G$4)","v":100},100]
[null,null,null,null,null,null,0,{"$f":"INDEX(Ranks!864:864,$G$4)","v":0},0]
[null,null,null,null,null,null,0,{"$f":"INDEX(Ranks!865:865,$G$4)","v":0},0]
[null,null,null,null,null,null,0,{"$f":"INDEX(Ranks!866:866,$G$4)","v":0},0]
[null,null,null,null,null,null,0,{"$f":"INDEX(Ranks!867:867,$G$4)","v":0},0]
[null,null,null,null,null,null,0,{"$f":"INDEX(Ranks!868:868,$G$4)","v":0},0]
[null,null,null,null,null,null,0,{"$f":"INDEX(Ranks!869:869,$G$4)","v":0},0]
[null,null,null,null,null,null,0,{"$f":"INDEX(Ranks!870:870,$G$4)","v":0},0]
[null,null,null,null,null,null,0,{"$f":"INDEX(Ranks!871:871,$G$4)","v":0},0]
[null,null,null,null,null,null,0,{"$f":"INDEX(Ranks!872:872,$G$4)","v":0},0]
[null,null,null,null,null,null,0,{"$f":"INDEX(Ranks!873:873,$G$4)","v":0},0]
[null,null,null,null,null,null,0,{"$f":"INDEX(Ranks!874:874,$G$4)","v":0},0]
[null,null,null,null,null,null,0,{"$f":"INDEX(Ranks!875:875,$G$4)","v":0},0]
[null,null,null,null,null,null,10000,{"$f":"INDEX(Ranks!876:876,$G$4)","v":100},100]
[null,null,null,null,null,null,10000,{"$f":"INDEX(Ranks!877:877,$G$4)","v":100},100]
[null,null,null,null,null,null,0,{"$f":"INDEX(Ranks!878:878,$G$4)","v":0},0]
[null,null,null,null,null,null,0,{"$f":"INDEX(Ranks!879:879,$G$4)","v":0},0]
[null,null,null,null,null,null,0,{"$f":"INDEX(Ranks!880:880,$G$4)","v":0},0]
[null,null,null,null,null,null,10000,{"$f":"INDEX(Ranks!881:881,$G$4)","v":100},100]
[null,null,null,null,null,null,0,{"$f":"INDEX(Ranks!882:882,$G$4)","v":0},0]
[null,null,null,null,null,null,0,{"$f":"INDEX(Ranks!883:883,$G$4)","v":0},0]
[null,null,null,null,null,null,0,{"$f":"INDEX(Ranks!884:884,$G$4)","v":0},0]
[null,null,null,null,null,null,0,{"$f":"INDEX(Ranks!885:885,$G$4)","v":0},0]
[null,null,null,null,null,null,0,{"$f":"INDEX(Ranks!886:886,$G$4)","v":0},0]
[null,null,null,null,null,null,0,{"$f":"INDEX(Ranks!887:887,$G$4)","v":0},0]
[null,null,null,null,null,null,0,{"$f":"INDEX(Ranks!888:888,$G$4)","v":0},0]
[null,null,null,null,null,null,0,{"$f":"INDEX(Ranks!889:889,$G$4)","v":0},0]
[null,null,null,null,null,null,10000,{"$f":"INDEX(Ranks!890:890,$G$4)","v":100},100]
[null,null,null,null,null,null,0,{"$f":"INDEX(Ranks!891:891,$G$4)","v":0},0]
[null,null,null,null,null,null,0,{"$f":"INDEX(Ranks!892:892,$G$4)","v":0},0]
[null,null,null,null,null,null,0,{"$f":"INDEX(Ranks!893:893,$G$4)","v":0},0]
[null,null,null,null,null,null,0,{"$f":"INDEX(Ranks!894:894,$G$4)","v":0},0]
[null,null,null,null,null,null,10000,{"$f":"INDEX(Ranks!895:895,$G$4)","v":100},100]
[null,null,null,null,null,null,0,{"$f":"INDEX(Ranks!896:896,$G$4)","v":0},0]
[null,null,null,null,null,null,10000,{"$f":"INDEX(Ranks!897:897,$G$4)","v":100},100]
[null,null,null,null,null,null,0,{"$f":"INDEX(Ranks!898:898,$G$4)","v":0},0]
[null,null,null,null,null,null,0,{"$f":"INDEX(Ranks!899:899,$G$4)","v":0},0]
[null,null,null,null,null,null,0,{"$f":"INDEX(Ranks!900:900,$G$4)","v":0},0]
[null,null,null,null,null,null,10000,{"$f":"INDEX(Ranks!901:901,$G$4)","v":100},100]
[null,null,null,null,null,null,{"$f":"IFERROR(INT(H902*100),H902)","v":0},{"$f":"INDEX(Ranks!902:902,$G$4)","v":0},{"$f":"IF(H902=\"\",-1,IF(H902=-1,\"\",H902))","v":0}]
[null,null,null,null,null,null,0,{"$f":"INDEX(Ranks!903:903,$G$4)","v":0},0]
[null,null,null,null,null,null,0,{"$f":"INDEX(Ranks!904:904,$G$4)","v":0},0]
[null,null,null,null,null,null,0,{"$f":"INDEX(Ranks!905:905,$G$4)","v":0},0]
[null,null,null,null,null,null,0,{"$f":"INDEX(Ranks!906:906,$G$4)","v":0},0]
[null,null,null,null,null,null,0,{"$f":"INDEX(Ranks!907:907,$G$4)","v":0},0]
[null,null,null,null,null,null,0,{"$f":"INDEX(Ranks!908:908,$G$4)","v":0},0]
[null,null,null,null,null,null,0,{"$f":"INDEX(Ranks!909:909,$G$4)","v":0},0]
[null,null,null,null,null,null,0,{"$f":"INDEX(Ranks!910:910,$G$4)","v":0},0]
[null,null,null,null,null,null,0,{"$f":"INDEX(Ranks!911:911,$G$4)","v":0},0]
[null,null,null,null,null,null,0,{"$f":"INDEX(Ranks!912:912,$G$4)","v":0},0]
[null,null,null,null,null,null,0,{"$f":"INDEX(Ranks!913:913,$G$4)","v":0},0]
[null,null,null,null,null,null,10000,{"$f":"INDEX(Ranks!914:914,$G$4)","v":100},100]
[null,null,null,null,null,null,0,{"$f":"INDEX(Ranks!915:915,$G$4)","v":0},0]
[null,null,null,null,null,null,0,{"$f":"INDEX(Ranks!916:916,$G$4)","v":0},0]
[null,null,null,null,null,null,0,{"$f":"INDEX(Ranks!917:917,$G$4)","v":0},0]
[null,null,null,null,null,null,0,{"$f":"INDEX(Ranks!918:918,$G$4)","v":0},0]
[null,null,null,null,null,null,0,{"$f":"INDEX(Ranks!919:919,$G$4)","v":0},0]
[null,null,null,null,null,null,10000,{"$f":"INDEX(Ranks!920:920,$G$4)","v":100},100]
[null,null,null,null,null,null,0,{"$f":"INDEX(Ranks!921:921,$G$4)","v":0},0]
[null,null,null,null,null,null,0,{"$f":"INDEX(Ranks!922:922,$G$4)","v":0},0]
[null,null,null,null,null,null,0,{"$f":"INDEX(Ranks!923:923,$G$4)","v":0},0]
[null,null,null,null,null,null,0,{"$f":"INDEX(Ranks!924:924,$G$4)","v":0},0]
[null,null,null,null,null,null,0,{"$f":"INDEX(Ranks!925:925,$G$4)","v":0},0]
[null,null,null,null,null,null,0,{"$f":"INDEX(Ranks!926:926,$G$4)","v":0},0]
[null,null,null,null,null,null,0,{"$f":"INDEX(Ranks!927:927,$G$4)","v":0},0]
[null,null,null,null,null,null,10000,{"$f":"INDEX(Ranks!928:928,$G$4)","v":100},100]
[null,null,null,null,null,null,0,{"$f":"INDEX(Ranks!929:929,$G$4)","v":0},0]
[null,null,null,null,null,null,0,{"$f":"INDEX(Ranks!930:930,$G$4)","v":0},0]
[null,null,null,null,null,null,0,{"$f":"INDEX(Ranks!931:931,$G$4)","v":0},0]
[null,null,null,null,null,null,0,{"$f":"INDEX(Ranks!932:932,$G$4)","v":0},0]
[null,null,null,null,null,null,0,{"$f":"INDEX(Ranks!933:933,$G$4)","v":0},0]
[null,null,null,null,null,null,0,{"$f":"INDEX(Ranks!934:934,$G$4)","v":0},0]
[null,null,null,null,null,null,0,{"$f":"INDEX(Ranks!935:935,$G$4)","v":0},0]
[null,null,null,null,null,null,0,{"$f":"INDEX(Ranks!936:936,$G$4)","v":0},0]
[null,null,null,null,null,null,10000,{"$f":"INDEX(Ranks!937:937,$G$4)","v":100},100]
[null,null,null,null,null,null,10000,{"$f":"INDEX(Ranks!938:938,$G$4)","v":100},100]
[null,null,null,null,null,null,0,{"$f":"INDEX(Ranks!939:939,$G$4)","v":0},0]
[null,null,null,null,null,null,0,{"$f":"INDEX(Ranks!940:940,$G$4)","v":0},0]
[null,null,null,null,null,null,0,{"$f":"INDEX(Ranks!941:941,$G$4)","v":0},0]
[null,null,null,null,null,null,0,{"$f":"INDEX(Ranks!942:942,$G$4)","v":0},0]
[null,null,null,null,null,null,0,{"$f":"INDEX(Ranks!943:943,$G$4)","v":0},0]
[null,null,null,null,null,null,0,{"$f":"INDEX(Ranks!944:944,$G$4)","v":0},0]
[null,null,null,null,null,null,0,{"$f":"INDEX(Ranks!945:945,$G$4)","v":0},0]
[null,null,null,null,null,null,0,{"$f":"INDEX(Ranks!946:946,$G$4)","v":0},0]
[null,null,null,null,null,null,0,{"$f":"INDEX(Ranks!947:947,$G$4)","v":0},0]
[null,null,null,null,null,null,0,{"$f":"INDEX(Ranks!948:948,$G$4)","v":0},0]
[null,null,null,null,null,null,0,{"$f":"INDEX(Ranks!949:949,$G$4)","v":0},0]
[null,null,null,null,null,null,0,{"$f":"INDEX(Ranks!950:950,$G$4)","v":0},0]
[null,null,null,null,null,null,0,{"$f":"INDEX(Ranks!951:951,$G$4)","v":0},0]
[null,null,null,null,null,null,0,{"$f":"INDEX(Ranks!952:952,$G$4)","v":0},0]
[null,null,null,null,null,null,0,{"$f":"INDEX(Ranks!953:953,$G$4)","v":0},0]
[null,null,null,null,null,null,0,{"$f":"INDEX(Ranks!954:954,$G$4)","v":0},0]
[null,null,null,null,null,null,0,{"$f":"INDEX(Ranks!955:955,$G$4)","v":0},0]
[null,null,null,null,null,null,0,{"$f":"INDEX(Ranks!956:956,$G$4)","v":0},0]
[null,null,null,null,null,null,0,{"$f":"INDEX(Ranks!957:957,$G$4)","v":0},0]
[null,null,null,null,null,null,0,{"$f":"INDEX(Ranks!958:958,$G$4)","v":0},0]
[null,null,null,null,null,null,0,{"$f":"INDEX(Ranks!959:959,$G$4)","v":0},0]
[null,null,null,null,null,null,0,{"$f":"INDEX(Ranks!960:960,$G$4)","v":0},0]
[null,null,null,null,null,null,0,{"$f":"INDEX(Ranks!961:961,$G$4)","v":0},0]
[null,null,null,null,null,null,0,{"$f":"INDEX(Ranks!962:962,$G$4)","v":0},0]
[null,null,null,null,null,null,0,{"$f":"INDEX(Ranks!963:963,$G$4)","v":0},0]
[null,null,null,null,null,null,0,{"$f":"INDEX(Ranks!964:964,$G$4)","v":0},0]
[null,null,null,null,null,null,0,{"$f":"INDEX(Ranks!965:965,$G$4)","v":0},0]
[null,null,null,null,null,null,{"$f":"IFERROR(INT(H966*100),H966)","v":0},{"$f":"INDEX(Ranks!966:966,$G$4)","v":0},{"$f":"IF(H966=\"\",-1,IF(H966=-1,\"\",H966))","v":0}]
[null,null,null,null,null,null,0,{"$f":"INDEX(Ranks!967:967,$G$4)","v":0},0]
[null,null,null,null,null,null,0,{"$f":"INDEX(Ranks!968:968,$G$4)","v":0},0]
[null,null,null,null,null,null,0,{"$f":"INDEX(Ranks!969:969,$G$4)","v":0},0]
[null,null,null,null,null,null,0,{"$f":"INDEX(Ranks!970:970,$G$4)","v":0},0]
[null,null,null,null,null,null,0,{"$f":"INDEX(Ranks!971:971,$G$4)","v":0},0]
[null,null,null,null,null,null,0,{"$f":"INDEX(Ranks!972:972,$G$4)","v":0},0]
[null,null,null,null,null,null,0,{"$f":"INDEX(Ranks!973:973,$G$4)","v":0},0]
[null,null,null,null,null,null,10000,{"$f":"INDEX(Ranks!974:974,$G$4)","v":100},100]
[null,null,null,null,null,null,0,{"$f":"INDEX(Ranks!975:975,$G$4)","v":0},0]
[null,null,null,null,null,null,0,{"$f":"INDEX(Ranks!976:976,$G$4)","v":0},0]
[null,null,null,null,null,null,0,{"$f":"INDEX(Ranks!977:977,$G$4)","v":0},0]
[null,null,null,null,null,null,0,{"$f":"INDEX(Ranks!978:978,$G$4)","v":0},0]
[null,null,null,null,null,null,0,{"$f":"INDEX(Ranks!979:979,$G$4)","v":0},0]
[null,null,null,null,null,null,0,{"$f":"INDEX(Ranks!980:980,$G$4)","v":0},0]
[null,null,null,null,null,null,0,{"$f":"INDEX(Ranks!981:981,$G$4)","v":0},0]
[null,null,null,null,null,null,0,{"$f":"INDEX(Ranks!982:982,$G$4)","v":0},0]
[null,null,null,null,null,null,0,{"$f":"INDEX(Ranks!983:983,$G$4)","v":0},0]
[null,null,null,null,null,null,0,{"$f":"INDEX(Ranks!984:984,$G$4)","v":0},0]
[null,null,null,null,null,null,0,{"$f":"INDEX(Ranks!985:985,$G$4)","v":0},0]
[null,null,null,null,null,null,0,{"$f":"INDEX(Ranks!986:986,$G$4)","v":0},0]
[null,null,null,null,null,null,0,{"$f":"INDEX(Ranks!987:987,$G$4)","v":0},0]
[null,null,null,null,null,null,0,{"$f":"INDEX(Ranks!988:988,$G$4)","v":0},0]
[null,null,null,null,null,null,0,{"$f":"INDEX(Ranks!989:989,$G$4)","v":0},0]
[null,null,null,null,null,null,10000,{"$f":"INDEX(Ranks!990:990,$G$4)","v":100},100]
[null,null,null,null,null,null,0,{"$f":"INDEX(Ranks!991:991,$G$4)","v":0},0]
[null,null,null,null,null,null,0,{"$f":"INDEX(Ranks!992:992,$G$4)","v":0},0]
[null,null,null,null,null,null,0,{"$f":"INDEX(Ranks!993:993,$G$4)","v":0},0]
[null,null,null,null,null,null,10000,{"$f":"INDEX(Ranks!994:994,$G$4)","v":100},100]
[null,null,null,null,null,null,0,{"$f":"INDEX(Ranks!995:995,$G$4)","v":0},0]
[null,null,null,null,null,null,0,{"$f":"INDEX(Ranks!996:996,$G$4)","v":0},0]
[null,null,null,null,null,null,0,{"$f":"INDEX(Ranks!997:997,$G$4)","v":0},0]
[null,null,null,null,null,null,0,{"$f":"INDEX(Ranks!998:998,$G$4)","v":0},0]
[null,null,null,null,null,null,10000,{"$f":"INDEX(Ranks!999:999,$G$4)","v":100},100]
[null,null,null,null,null,null,0,{"$f":"INDEX(Ranks!1000:1000,$G$4)","v":0},0]
[null,null,null,null,null,null,10000,{"$f":"INDEX(Ranks!1001:1001,$G$4)","v":100},100]
[null,null,null,null,null,null,0,{"$f":"INDEX(Ranks!1002:1002,$G$4)","v":0},0]
[null,null,null,null,null,null,0,{"$f":"INDEX(Ranks!1003:1003,$G$4)","v":0},0]
[null,null,null,null,null,null,0,{"$f":"INDEX(Ranks!1004:1004,$G$4)","v":0},0]
[null,null,null,null,null,null,0,{"$f":"INDEX(Ranks!1005:1005,$G$4)","v":0},0]
[null,null,null,null,null,null,0,{"$f":"INDEX(Ranks!1006:1006,$G$4)","v":0},0]
[null,null,null,null,null,null,0,{"$f":"INDEX(Ranks!1007:1007,$G$4)","v":0},0]
[null,null,null,null,null,null,0,{"$f":"INDEX(Ranks!1008:1008,$G$4)","v":0},0]
[null,null,null,null,null,null,10000,{"$f":"INDEX(Ranks!1009:1009,$G$4)","v":100},100]
[null,null,null,null,null,null,10000,{"$f":"INDEX(Ranks!1010:1010,$G$4)","v":100},100]
[null,null,null,null,null,null,0,{"$f":"INDEX(Ranks!1011:1011,$G$4)","v":0},0]
[null,null,null,null,null,null,0,{"$f":"INDEX(Ranks!1012:1012,$G$4)","v":0},0]
[null,null,null,null,null,null,0,{"$f":"INDEX(Ranks!1013:1013,$G$4)","v":0},0]
[null,null,null,null,null,null,0,{"$f":"INDEX(Ranks!1014:1014,$G$4)","v":0},0]
[null,null,null,null,null,null,10000,{"$f":"INDEX(Ranks!1015:1015,$G$4)","v":100},100]
[null,null,null,null,null,null,0,{"$f":"INDEX(Ranks!1016:1016,$G$4)","v":0},0]
[null,null,null,null,null,null,0,{"$f":"INDEX(Ranks!1017:1017,$G$4)","v":0},0]
[null,null,null,null,null,null,0,{"$f":"INDEX(Ranks!1018:1018,$G$4)","v":0},0]
[null,null,null,null,null,null,0,{"$f":"INDEX(Ranks!1019:1019,$G$4)","v":0},0]
[null,null,null,null,null,null,0,{"$f":"INDEX(Ranks!1020:1020,$G$4)","v":0},0]
[null,null,null,null,null,null,0,{"$f":"INDEX(Ranks!1021:1021,$G$4)","v":0},0]
[null,null,null,null,null,null,0,{"$f":"INDEX(Ranks!1022:1022,$G$4)","v":0},0]
[null,null,null,null,null,null,0,{"$f":"INDEX(Ranks!1023:1023,$G$4)","v":0},0]
[null,null,null,null,null,null,0,{"$f":"INDEX(Ranks!1024:1024,$G$4)","v":0},0]
[null,null,null,null,null,null,0,{"$f":"INDEX(Ranks!1025:1025,$G$4)","v":0},0]
[null,null,null,null,null,null,0,{"$f":"INDEX(Ranks!1026:1026,$G$4)","v":0},0]
[null,null,null,null,null,null,0,{"$f":"INDEX(Ranks!1027:1027,$G$4)","v":0},0]
[null,null,null,null,null,null,0,{"$f":"INDEX(Ranks!1028:1028,$G$4)","v":0},0]
[null,null,null,null,null,null,0,{"$f":"INDEX(Ranks!1029:1029,$G$4)","v":0},0]
[null,null,null,null,null,null,{"$f":"IFERROR(INT(H1030*100),H1030)","v":0},{"$f":"INDEX(Ranks!1030:1030,$G$4)","v":0},{"$f":"IF(H1030=\"\",-1,IF(H1030=-1,\"\",H1030))","v":0}]
[null,null,null,null,null,null,0,{"$f":"INDEX(Ranks!1031:1031,$G$4)","v":0},0]
[null,null,null,null,null,null,0,{"$f":"INDEX(Ranks!1032:1032,$G$4)","v":0},0]
[null,null,null,null,null,null,0,{"$f":"INDEX(Ranks!1033:1033,$G$4)","v":0},0]
[null,null,null,null,null,null,0,{"$f":"INDEX(Ranks!1034:1034,$G$4)","v":0},0]
[null,null,null,null,null,null,0,{"$f":"INDEX(Ranks!1035:1035,$G$4)","v":0},0]
[null,null,null,null,null,null,10000,{"$f":"INDEX(Ranks!1036:1036,$G$4)","v":100},100]
[null,null,null,null,null,null,0,{"$f":"INDEX(Ranks!1037:1037,$G$4)","v":0},0]
[null,null,null,null,null,null,0,{"$f":"INDEX(Ranks!1038:1038,$G$4)","v":0},0]
[null,null,null,null,null,null,10000,{"$f":"INDEX(Ranks!1039:1039,$G$4)","v":100},100]
[null,null,null,null,null,null,0,{"$f":"INDEX(Ranks!1040:1040,$G$4)","v":0},0]
[null,null,null,null,null,null,0,{"$f":"INDEX(Ranks!1041:1041,$G$4)","v":0},0]
[null,null,null,null,null,null,0,{"$f":"INDEX(Ranks!1042:1042,$G$4)","v":0},0]
[null,null,null,null,null,null,0,{"$f":"INDEX(Ranks!1043:1043,$G$4)","v":0},0]
[null,null,null,null,null,null,0,{"$f":"INDEX(Ranks!1044:1044,$G$4)","v":0},0]
[null,null,null,null,null,null,0,{"$f":"INDEX(Ranks!1045:1045,$G$4)","v":0},0]
[null,null,null,null,null,null,0,{"$f":"INDEX(Ranks!1046:1046,$G$4)","v":0},0]
[null,null,null,null,null,null,0,{"$f":"INDEX(Ranks!1047:1047,$G$4)","v":0},0]
[null,null,null,null,null,null,10000,{"$f":"INDEX(Ranks!1048:1048,$G$4)","v":100},100]
[null,null,null,null,null,null,10000,{"$f":"INDEX(Ranks!1049:1049,$G$4)","v":100},100]
[null,null,null,null,null,null,0,{"$f":"INDEX(Ranks!1050:1050,$G$4)","v":0},0]
[null,null,null,null,null,null,0,{"$f":"INDEX(Ranks!1051:1051,$G$4)","v":0},0]
[null,null,null,null,null,null,10000,{"$f":"INDEX(Ranks!1052:1052,$G$4)","v":100},100]
[null,null,null,null,null,null,0,{"$f":"INDEX(Ranks!1053:1053,$G$4)","v":0},0]
[null,null,null,null,null,null,0,{"$f":"INDEX(Ranks!1054:1054,$G$4)","v":0},0]
[null,null,null,null,null,null,0,{"$f":"INDEX(Ranks!1055:1055,$G$4)","v":0},0]
[null,null,null,null,null,null,0,{"$f":"INDEX(Ranks!1056:1056,$G$4)","v":0},0]
[null,null,null,null,null,null,0,{"$f":"INDEX(Ranks!1057:1057,$G$4)","v":0},0]
[null,null,null,null,null,null,0,{"$f":"INDEX(Ranks!1058:1058,$G$4)","v":0},0]
[null,null,null,null,null,null,0,{"$f":"INDEX(Ranks!1059:1059,$G$4)","v":0},0]
[null,null,null,null,null,null,10000,{"$f":"INDEX(Ranks!1060:1060,$G$4)","v":100},100]
[null,null,null,null,null,null,0,{"$f":"INDEX(Ranks!1061:1061,$G$4)","v":0},0]
[null,null,null,null,null,null,10000,{"$f":"INDEX(Ranks!1062:1062,$G$4)","v":100},100]
[null,null,null,null,null,null,0,{"$f":"INDEX(Ranks!1063:1063,$G$4)","v":0},0]
[null,null,null,null,null,null,0,{"$f":"INDEX(Ranks!1064:1064,$G$4)","v":0},0]
[null,null,null,null,null,null,10000,{"$f":"INDEX(Ranks!1065:1065,$G$4)","v":100},100]
[null,null,null,null,null,null,0,{"$f":"INDEX(Ranks!1066:1066,$G$4)","v":0},0]
[null,null,null,null,null,null,0,{"$f":"INDEX(Ranks!1067:1067,$G$4)","v":0},0]
[null,null,null,null,null,null,0,{"$f":"INDEX(Ranks!1068:1068,$G$4)","v":0},0]
[null,null,null,null,null,null,0,{"$f":"INDEX(Ranks!1069:1069,$G$4)","v":0},0]
[null,null,null,null,null,null,0,{"$f":"INDEX(Ranks!1070:1070,$G$4)","v":0},0]
[null,null,null,null,null,null,0,{"$f":"INDEX(Ranks!1071:1071,$G$4)","v":0},0]
[null,null,null,null,null,null,0,{"$f":"INDEX(Ranks!1072:1072,$G$4)","v":0},0]
[null,null,null,null,null,null,0,{"$f":"INDEX(Ranks!1073:1073,$G$4)","v":0},0]
[null,null,null,null,null,null,0,{"$f":"INDEX(Ranks!1074:1074,$G$4)","v":0},0]
[null,null,null,null,null,null,0,{"$f":"INDEX(Ranks!1075:1075,$G$4)","v":0},0]
[null,null,null,null,null,null,0,{"$f":"INDEX(Ranks!1076:1076,$G$4)","v":0},0]
[null,null,null,null,null,null,0,{"$f":"INDEX(Ranks!1077:1077,$G$4)","v":0},0]
[null,null,null,null,null,null,0,{"$f":"INDEX(Ranks!1078:1078,$G$4)","v":0},0]
[null,null,null,null,null,null,0,{"$f":"INDEX(Ranks!1079:1079,$G$4)","v":0},0]
[null,null,null,null,null,null,10000,{"$f":"INDEX(Ranks!1080:1080,$G$4)","v":100},100]
[null,null,null,null,null,null,0,{"$f":"INDEX(Ranks!1081:1081,$G$4)","v":0},0]
[null,null,null,null,null,null,0,{"$f":"INDEX(Ranks!1082:1082,$G$4)","v":0},0]
[null,null,null,null,null,null,0,{"$f":"INDEX(Ranks!1083:1083,$G$4)","v":0},0]
[null,null,null,null,null,null,0,{"$f":"INDEX(Ranks!1084:1084,$G$4)","v":0},0]
[null,null,null,null,null,null,0,{"$f":"INDEX(Ranks!1085:1085,$G$4)","v":0},0]
[null,null,null,null,null,null,0,{"$f":"INDEX(Ranks!1086:1086,$G$4)","v":0},0]
[null,null,null,null,null,null,0,{"$f":"INDEX(Ranks!1087:1087,$G$4)","v":0},0]
[null,null,null,null,null,null,0,{"$f":"INDEX(Ranks!1088:1088,$G$4)","v":0},0]
[null,null,null,null,null,null,0,{"$f":"INDEX(Ranks!1089:1089,$G$4)","v":0},0]
[null,null,null,null,null,null,0,{"$f":"INDEX(Ranks!1090:1090,$G$4)","v":0},0]
[null,null,null,null,null,null,0,{"$f":"INDEX(Ranks!1091:1091,$G$4)","v":0},0]
[null,null,null,null,null,null,0,{"$f":"INDEX(Ranks!1092:1092,$G$4)","v":0},0]
[null,null,null,null,null,null,0,{"$f":"INDEX(Ranks!1093:1093,$G$4)","v":0},0]
[null,null,null,null,null,null,{"$f":"IFERROR(INT(H1094*100),H1094)","v":10000},{"$f":"INDEX(Ranks!1094:1094,$G$4)","v":100},{"$f":"IF(H1094=\"\",-1,IF(H1094=-1,\"\",H1094))","v":100}]
[null,null,null,null,null,null,0,{"$f":"INDEX(Ranks!1095:1095,$G$4)","v":0},0]
[null,null,null,null,null,null,0,{"$f":"INDEX(Ranks!1096:1096,$G$4)","v":0},0]
[null,null,null,null,null,null,10000,{"$f":"INDEX(Ranks!1097:1097,$G$4)","v":100},100]
[null,null,null,null,null,null,0,{"$f":"INDEX(Ranks!1098:1098,$G$4)","v":0},0]
[null,null,null,null,null,null,10000,{"$f":"INDEX(Ranks!1099:1099,$G$4)","v":100},100]
[null,null,null,null,null,null,0,{"$f":"INDEX(Ranks!1100:1100,$G$4)","v":0},0]
[null,null,null,null,null,null,0,{"$f":"INDEX(Ranks!1101:1101,$G$4)","v":0},0]
[null,null,null,null,null,null,0,{"$f":"INDEX(Ranks!1102:1102,$G$4)","v":0},0]
[null,null,null,null,null,null,0,{"$f":"INDEX(Ranks!1103:1103,$G$4)","v":0},0]
[null,null,null,null,null,null,0,{"$f":"INDEX(Ranks!1104:1104,$G$4)","v":0},0]
[null,null,null,null,null,null,0,{"$f":"INDEX(Ranks!1105:1105,$G$4)","v":0},0]
[null,null,null,null,null,null,0,{"$f":"INDEX(Ranks!1106:1106,$G$4)","v":0},0]
[null,null,null,null,null,null,0,{"$f":"INDEX(Ranks!1107:1107,$G$4)","v":0},0]
[null,null,null,null,null,null,0,{"$f":"INDEX(Ranks!1108:1108,$G$4)","v":0},0]
[null,null,null,null,null,null,0,{"$f":"INDEX(Ranks!1109:1109,$G$4)","v":0},0]
[null,null,null,null,null,null,0,{"$f":"INDEX(Ranks!1110:1110,$G$4)","v":0},0]
[null,null,null,null,null,null,0,{"$f":"INDEX(Ranks!1111:1111,$G$4)","v":0},0]
[null,null,null,null,null,null,0,{"$f":"INDEX(Ranks!1112:1112,$G$4)","v":0},0]
[null,null,null,null,null,null,0,{"$f":"INDEX(Ranks!1113:1113,$G$4)","v":0},0]
[null,null,null,null,null,null,0,{"$f":"INDEX(Ranks!1114:1114,$G$4)","v":0},0]
[null,null,null,null,null,null,0,{"$f":"INDEX(Ranks!1115:1115,$G$4)","v":0},0]
[null,null,null,null,null,null,0,{"$f":"INDEX(Ranks!1116:1116,$G$4)","v":0},0]
[null,null,null,null,null,null,0,{"$f":"INDEX(Ranks!1117:1117,$G$4)","v":0},0]
[null,null,null,null,null,null,0,{"$f":"INDEX(Ranks!1118:1118,$G$4)","v":0},0]
[null,null,null,null,null,null,0,{"$f":"INDEX(Ranks!1119:1119,$G$4)","v":0},0]
[null,null,null,null,null,null,0,{"$f":"INDEX(Ranks!1120:1120,$G$4)","v":0},0]
[null,null,null,null,null,null,0,{"$f":"INDEX(Ranks!1121:1121,$G$4)","v":0},0]
[null,null,null,null,null,null,0,{"$f":"INDEX(Ranks!1122:1122,$G$4)","v":0},0]
[null,null,null,null,null,null,10000,{"$f":"INDEX(Ranks!1123:1123,$G$4)","v":100},100]
[null,null,null,null,null,null,0,{"$f":"INDEX(Ranks!1124:1124,$G$4)","v":0},0]
[null,null,null,null,null,null,10000,{"$f":"INDEX(Ranks!1125:1125,$G$4)","v":100},100]
[null,null,null,null,null,null,0,{"$f":"INDEX(Ranks!1126:1126,$G$4)","v":0},0]
[null,null,null,null,null,null,0,{"$f":"INDEX(Ranks!1127:1127,$G$4)","v":0},0]
[null,null,null,null,null,null,0,{"$f":"INDEX(Ranks!1128:1128,$G$4)","v":0},0]
[null,null,null,null,null,null,0,{"$f":"INDEX(Ranks!1129:1129,$G$4)","v":0},0]
[null,null,null,null,null,null,10000,{"$f":"INDEX(Ranks!1130:1130,$G$4)","v":100},100]
[null,null,null,null,null,null,0,{"$f":"INDEX(Ranks!1131:1131,$G$4)","v":0},0]
[null,null,null,null,null,null,0,{"$f":"INDEX(Ranks!1132:1132,$G$4)","v":0},0]
[null,null,null,null,null,null,0,{"$f":"INDEX(Ranks!1133:1133,$G$4)","v":0},0]
[null,null,null,null,null,null,10000,{"$f":"INDEX(Ranks!1134:1134,$G$4)","v":100},100]
[null,null,null,null,null,null,0,{"$f":"INDEX(Ranks!1135:1135,$G$4)","v":0},0]
[null,null,null,null,null,null,0,{"$f":"INDEX(Ranks!1136:1136,$G$4)","v":0},0]
[null,null,null,null,null,null,0,{"$f":"INDEX(Ranks!1137:1137,$G$4)","v":0},0]
[null,null,null,null,null,null,0,{"$f":"INDEX(Ranks!1138:1138,$G$4)","v":0},0]
[null,null,null,null,null,null,0,{"$f":"INDEX(Ranks!1139:1139,$G$4)","v":0},0]
[null,null,null,null,null,null,0,{"$f":"INDEX(Ranks!1140:1140,$G$4)","v":0},0]
[null,null,null,null,null,null,0,{"$f":"INDEX(Ranks!1141:1141,$G$4)","v":0},0]
[null,null,null,null,null,null,10000,{"$f":"INDEX(Ranks!1142:1142,$G$4)","v":100},100]
[null,null,null,null,null,null,0,{"$f":"INDEX(Ranks!1143:1143,$G$4)","v":0},0]
[null,null,null,null,null,null,0,{"$f":"INDEX(Ranks!1144:1144,$G$4)","v":0},0]
[null,null,null,null,null,null,0,{"$f":"INDEX(Ranks!1145:1145,$G$4)","v":0},0]
[null,null,null,null,null,null,10000,{"$f":"INDEX(Ranks!1146:1146,$G$4)","v":100},100]
[null,null,null,null,null,null,0,{"$f":"INDEX(Ranks!1147:1147,$G$4)","v":0},0]
[null,null,null,null,null,null,0,{"$f":"INDEX(Ranks!1148:1148,$G$4)","v":0},0]
[null,null,null,null,null,null,0,{"$f":"INDEX(Ranks!1149:1149,$G$4)","v":0},0]
[null,null,null,null,null,null,0,{"$f":"INDEX(Ranks!1150:1150,$G$4)","v":0},0]
[null,null,null,null,null,null,0,{"$f":"INDEX(Ranks!1151:1151,$G$4)","v":0},0]
[null,null,null,null,null,null,10000,{"$f":"INDEX(Ranks!1152:1152,$G$4)","v":100},100]
[null,null,null,null,null,null,0,{"$f":"INDEX(Ranks!1153:1153,$G$4)","v":0},0]
[null,null,null,null,null,null,0,{"$f":"INDEX(Ranks!1154:1154,$G$4)","v":0},0]
[null,null,null,null,null,null,0,{"$f":"INDEX(Ranks!1155:1155,$G$4)","v":0},0]
[null,null,null,null,null,null,10000,{"$f":"INDEX(Ranks!1156:1156,$G$4)","v":100},100]
[null,null,null,null,null,null,0,{"$f":"INDEX(Ranks!1157:1157,$G$4)","v":0},0]
[null,null,null,null,null,null,{"$f":"IFERROR(INT(H1158*100),H1158)","v":10000},{"$f":"INDEX(Ranks!1158:1158,$G$4)","v":100},{"$f":"IF(H1158=\"\",-1,IF(H1158=-1,\"\",H1158))","v":100}]
[null,null,null,null,null,null,0,{"$f":"INDEX(Ranks!1159:1159,$G$4)","v":0},0]
[null,null,null,null,null,null,10000,{"$f":"INDEX(Ranks!1160:1160,$G$4)","v":100},100]
[null,null,null,null,null,null,0,{"$f":"INDEX(Ranks!1161:1161,$G$4)","v":0},0]
[null,null,null,null,null,null,10000,{"$f":"INDEX(Ranks!1162:1162,$G$4)","v":100},100]
[null,null,null,null,null,null,0,{"$f":"INDEX(Ranks!1163:1163,$G$4)","v":0},0]
[null,null,null,null,null,null,0,{"$f":"INDEX(Ranks!1164:1164,$G$4)","v":0},0]
[null,null,null,null,null,null,0,{"$f":"INDEX(Ranks!1165:1165,$G$4)","v":0},0]
[null,null,null,null,null,null,0,{"$f":"INDEX(Ranks!1166:1166,$G$4)","v":0},0]
[null,null,null,null,null,null,0,{"$f":"INDEX(Ranks!1167:1167,$G$4)","v":0},0]
[null,null,null,null,null,null,0,{"$f":"INDEX(Ranks!1168:1168,$G$4)","v":0},0]
[null,null,null,null,null,null,0,{"$f":"INDEX(Ranks!1169:1169,$G$4)","v":0},0]
[null,null,null,null,null,null,0,{"$f":"INDEX(Ranks!1170:1170,$G$4)","v":0},0]
[null,null,null,null,null,null,0,{"$f":"INDEX(Ranks!1171:1171,$G$4)","v":0},0]
[null,null,null,null,null,null,0,{"$f":"INDEX(Ranks!1172:1172,$G$4)","v":0},0]
[null,null,null,null,null,null,10000,{"$f":"INDEX(Ranks!1173:1173,$G$4)","v":100},100]
[null,null,null,null,null,null,0,{"$f":"INDEX(Ranks!1174:1174,$G$4)","v":0},0]
[null,null,null,null,null,null,10000,{"$f":"INDEX(Ranks!1175:1175,$G$4)","v":100},100]
[null,null,null,null,null,null,0,{"$f":"INDEX(Ranks!1176:1176,$G$4)","v":0},0]
[null,null,null,null,null,null,10000,{"$f":"INDEX(Ranks!1177:1177,$G$4)","v":100},100]
[null,null,null,null,null,null,0,{"$f":"INDEX(Ranks!1178:1178,$G$4)","v":0},0]
[null,null,null,null,null,null,0,{"$f":"INDEX(Ranks!1179:1179,$G$4)","v":0},0]
[null,null,null,null,null,null,0,{"$f":"INDEX(Ranks!1180:1180,$G$4)","v":0},0]
[null,null,null,null,null,null,0,{"$f":"INDEX(Ranks!1181:1181,$G$4)","v":0},0]
[null,null,null,null,null,null,0,{"$f":"INDEX(Ranks!1182:1182,$G$4)","v":0},0]
[null,null,null,null,null,null,0,{"$f":"INDEX(Ranks!1183:1183,$G$4)","v":0},0]
[null,null,null,null,null,null,0,{"$f":"INDEX(Ranks!1184:1184,$G$4)","v":0},0]
[null,null,null,null,null,null,0,{"$f":"INDEX(Ranks!1185:1185,$G$4)","v":0},0]
[null,null,null,null,null,null,0,{"$f":"INDEX(Ranks!1186:1186,$G$4)","v":0},0]
[null,null,null,null,null,null,0,{"$f":"INDEX(Ranks!1187:1187,$G$4)","v":0},0]
[null,null,null,null,null,null,0,{"$f":"INDEX(Ranks!1188:1188,$G$4)","v":0},0]
[null,null,null,null,null,null,0,{"$f":"INDEX(Ranks!1189:1189,$G$4)","v":0},0]
[null,null,null,null,null,null,0,{"$f":"INDEX(Ranks!1190:1190,$G$4)","v":0},0]
[null,null,null,null,null,null,0,{"$f":"INDEX(Ranks!1191:1191,$G$4)","v":0},0]
[null,null,null,null,null,null,0,{"$f":"INDEX(Ranks!1192:1192,$G$4)","v":0},0]
[null,null,null,null,null,null,0,{"$f":"INDEX(Ranks!1193:1193,$G$4)","v":0},0]
[null,null,null,null,null,null,10000,{"$f":"INDEX(Ranks!1194:1194,$G$4)","v":100},100]
[null,null,null,null,null,null,10000,{"$f":"INDEX(Ranks!1195:1195,$G$4)","v":100},100]
[null,null,null,null,null,null,0,{"$f":"INDEX(Ranks!1196:1196,$G$4)","v":0},0]
[null,null,null,null,null,null,0,{"$f":"INDEX(Ranks!1197:1197,$G$4)","v":0},0]
[null,null,null,null,null,null,0,{"$f":"INDEX(Ranks!1198:1198,$G$4)","v":0},0]
[null,null,null,null,null,null,0,{"$f":"INDEX(Ranks!1199:1199,$G$4)","v":0},0]
[null,null,null,null,null,null,10000,{"$f":"INDEX(Ranks!1200:1200,$G$4)","v":100},100]
[null,null,null,null,null,null,0,{"$f":"INDEX(Ranks!1201:1201,$G$4)","v":0},0]
[null,null,null,null,null,null,0,{"$f":"INDEX(Ranks!1202:1202,$G$4)","v":0},0]
[null,null,null,null,null,null,0,{"$f":"INDEX(Ranks!1203:1203,$G$4)","v":0},0]
[null,null,null,null,null,null,0,{"$f":"INDEX(Ranks!1204:1204,$G$4)","v":0},0]
[null,null,null,null,null,null,0,{"$f":"INDEX(Ranks!1205:1205,$G$4)","v":0},0]
[null,null,null,null,null,null,0,{"$f":"INDEX(Ranks!1206:1206,$G$4)","v":0},0]
[null,null,null,null,null,null,0,{"$f":"INDEX(Ranks!1207:1207,$G$4)","v":0},0]
[null,null,null,null,null,null,0,{"$f":"INDEX(Ranks!1208:1208,$G$4)","v":0},0]
[null,null,null,null,null,null,0,{"$f":"INDEX(Ranks!1209:1209,$G$4)","v":0},0]
[null,null,null,null,null,null,0,{"$f":"INDEX(Ranks!1210:1210,$G$4)","v":0},0]
[null,null,null,null,null,null,0,{"$f":"INDEX(Ranks!1211:1211,$G$4)","v":0},0]
[null,null,null,null,null,null,0,{"$f":"INDEX(Ranks!1212:1212,$G$4)","v":0},0]
[null,null,null,null,null,null,0,{"$f":"INDEX(Ranks!1213:1213,$G$4)","v":0},0]
[null,null,null,null,null,null,0,{"$f":"INDEX(Ranks!1214:1214,$G$4)","v":0},0]
[null,null,null,null,null,null,0,{"$f":"INDEX(Ranks!1215:1215,$G$4)","v":0},0]
[null,null,null,null,null,null,10000,{"$f":"INDEX(Ranks!1216:1216,$G$4)","v":100},100]
[null,null,null,null,null,null,0,{"$f":"INDEX(Ranks!1217:1217,$G$4)","v":0},0]
[null,null,null,null,null,null,0,{"$f":"INDEX(Ranks!1218:1218,$G$4)","v":0},0]
[null,null,null,null,null,null,0,{"$f":"INDEX(Ranks!1219:1219,$G$4)","v":0},0]
[null,null,null,null,null,null,0,{"$f":"INDEX(Ranks!1220:1220,$G$4)","v":0},0]
[null,null,null,null,null,null,0,{"$f":"INDEX(Ranks!1221:1221,$G$4)","v":0},0]
[null,null,null,null,null,null,{"$f":"IFERROR(INT(H1222*100),H1222)","v":0},{"$f":"INDEX(Ranks!1222:1222,$G$4)","v":0},{"$f":"IF(H1222=\"\",-1,IF(H1222=-1,\"\",H1222))","v":0}]
[null,null,null,null,null,null,10000,{"$f":"INDEX(Ranks!1223:1223,$G$4)","v":100},100]
[null,null,null,null,null,null,0,{"$f":"INDEX(Ranks!1224:1224,$G$4)","v":0},0]
[null,null,null,null,null,null,0,{"$f":"INDEX(Ranks!1225:1225,$G$4)","v":0},0]
[null,null,null,null,null,null,0,{"$f":"INDEX(Ranks!1226:1226,$G$4)","v":0},0]
[null,null,null,null,null,null,0,{"$f":"INDEX(Ranks!1227:1227,$G$4)","v":0},0]
[null,null,null,null,null,null,10000,{"$f":"INDEX(Ranks!1228:1228,$G$4)","v":100},100]
[null,null,null,null,null,null,0,{"$f":"INDEX(Ranks!1229:1229,$G$4)","v":0},0]
[null,null,null,null,null,null,0,{"$f":"INDEX(Ranks!1230:1230,$G$4)","v":0},0]
[null,null,null,null,null,null,0,{"$f":"INDEX(Ranks!1231:1231,$G$4)","v":0},0]
[null,null,null,null,null,null,10000,{"$f":"INDEX(Ranks!1232:1232,$G$4)","v":100},100]
[null,null,null,null,null,null,0,{"$f":"INDEX(Ranks!1233:1233,$G$4)","v":0},0]
[null,null,null,null,null,null,0,{"$f":"INDEX(Ranks!1234:1234,$G$4)","v":0},0]
[null,null,null,null,null,null,0,{"$f":"INDEX(Ranks!1235:1235,$G$4)","v":0},0]
[null,null,null,null,null,null,0,{"$f":"INDEX(Ranks!1236:1236,$G$4)","v":0},0]
[null,null,null,null,null,null,0,{"$f":"INDEX(Ranks!1237:1237,$G$4)","v":0},0]
[null,null,null,null,null,null,0,{"$f":"INDEX(Ranks!1238:1238,$G$4)","v":0},0]
[null,null,null,null,null,null,10000,{"$f":"INDEX(Ranks!1239:1239,$G$4)","v":100},100]
[null,null,null,null,null,null,0,{"$f":"INDEX(Ranks!1240:1240,$G$4)","v":0},0]
[null,null,null,null,null,null,0,{"$f":"INDEX(Ranks!1241:1241,$G$4)","v":0},0]
[null,null,null,null,null,null,10000,{"$f":"INDEX(Ranks!1242:1242,$G$4)","v":100},100]
[null,null,null,null,null,null,0,{"$f":"INDEX(Ranks!1243:1243,$G$4)","v":0},0]
[null,null,null,null,null,null,0,{"$f":"INDEX(Ranks!1244:1244,$G$4)","v":0},0]
[null,null,null,null,null,null,0,{"$f":"INDEX(Ranks!1245:1245,$G$4)","v":0},0]
[null,null,null,null,null,null,0,{"$f":"INDEX(Ranks!1246:1246,$G$4)","v":0},0]
[null,null,null,null,null,null,0,{"$f":"INDEX(Ranks!1247:1247,$G$4)","v":0},0]
[null,null,null,null,null,null,0,{"$f":"INDEX(Ranks!1248:1248,$G$4)","v":0},0]
[null,null,null,null,null,null,0,{"$f":"INDEX(Ranks!1249:1249,$G$4)","v":0},0]
[null,null,null,null,null,null,0,{"$f":"INDEX(Ranks!1250:1250,$G$4)","v":0},0]
[null,null,null,null,null,null,0,{"$f":"INDEX(Ranks!1251:1251,$G$4)","v":0},0]
[null,null,null,null,null,null,0,{"$f":"INDEX(Ranks!1252:1252,$G$4)","v":0},0]
[null,null,null,null,null,null,0,{"$f":"INDEX(Ranks!1253:1253,$G$4)","v":0},0]
[null,null,null,null,null,null,0,{"$f":"INDEX(Ranks!1254:1254,$G$4)","v":0},0]
[null,null,null,null,null,null,0,{"$f":"INDEX(Ranks!1255:1255,$G$4)","v":0},0]
[null,null,null,null,null,null,0,{"$f":"INDEX(Ranks!1256:1256,$G$4)","v":0},0]
[null,null,null,null,null,null,10000,{"$f":"INDEX(Ranks!1257:1257,$G$4)","v":100},100]
[null,null,null,null,null,null,0,{"$f":"INDEX(Ranks!1258:1258,$G$4)","v":0},0]
[null,null,null,null,null,null,10000,{"$f":"INDEX(Ranks!1259:1259,$G$4)","v":100},100]
[null,null,null,null,null,null,0,{"$f":"INDEX(Ranks!1260:1260,$G$4)","v":0},0]
[null,null,null,null,null,null,0,{"$f":"INDEX(Ranks!1261:1261,$G$4)","v":0},0]
[null,null,null,null,null,null,0,{"$f":"INDEX(Ranks!1262:1262,$G$4)","v":0},0]
[null,null,null,null,null,null,0,{"$f":"INDEX(Ranks!1263:1263,$G$4)","v":0},0]
[null,null,null,null,null,null,0,{"$f":"INDEX(Ranks!1264:1264,$G$4)","v":0},0]
[null,null,null,null,null,null,0,{"$f":"INDEX(Ranks!1265:1265,$G$4)","v":0},0]
[null,null,null,null,null,null,0,{"$f":"INDEX(Ranks!1266:1266,$G$4)","v":0},0]
[null,null,null,null,null,null,0,{"$f":"INDEX(Ranks!1267:1267,$G$4)","v":0},0]
[null,null,null,null,null,null,0,{"$f":"INDEX(Ranks!1268:1268,$G$4)","v":0},0]
[null,null,null,null,null,null,0,{"$f":"INDEX(Ranks!1269:1269,$G$4)","v":0},0]
[null,null,null,null,null,null,0,{"$f":"INDEX(Ranks!1270:1270,$G$4)","v":0},0]
[null,null,null,null,null,null,0,{"$f":"INDEX(Ranks!1271:1271,$G$4)","v":0},0]
[null,null,null,null,null,null,0,{"$f":"INDEX(Ranks!1272:1272,$G$4)","v":0},0]
[null,null,null,null,null,null,10000,{"$f":"INDEX(Ranks!1273:1273,$G$4)","v":100},100]
[null,null,null,null,null,null,10000,{"$f":"INDEX(Ranks!1274:1274,$G$4)","v":100},100]
[null,null,null,null,null,null,0,{"$f":"INDEX(Ranks!1275:1275,$G$4)","v":0},0]
[null,null,null,null,null,null,10000,{"$f":"INDEX(Ranks!1276:1276,$G$4)","v":100},100]
[null,null,null,null,null,null,0,{"$f":"INDEX(Ranks!1277:1277,$G$4)","v":0},0]
[null,null,null,null,null,null,0,{"$f":"INDEX(Ranks!1278:1278,$G$4)","v":0},0]
[null,null,null,null,null,null,10000,{"$f":"INDEX(Ranks!1279:1279,$G$4)","v":100},100]
[null,null,null,null,null,null,0,{"$f":"INDEX(Ranks!1280:1280,$G$4)","v":0},0]
[null,null,null,null,null,null,0,{"$f":"INDEX(Ranks!1281:1281,$G$4)","v":0},0]
[null,null,null,null,null,null,0,{"$f":"INDEX(Ranks!1282:1282,$G$4)","v":0},0]
[null,null,null,null,null,null,0,{"$f":"INDEX(Ranks!1283:1283,$G$4)","v":0},0]
[null,null,null,null,null,null,10000,{"$f":"INDEX(Ranks!1284:1284,$G$4)","v":100},100]
[null,null,null,null,null,null,0,{"$f":"INDEX(Ranks!1285:1285,$G$4)","v":0},0]
[null,null,null,null,null,null,{"$f":"IFERROR(INT(H1286*100),H1286)","v":0},{"$f":"INDEX(Ranks!1286:1286,$G$4)","v":0},{"$f":"IF(H1286=\"\",-1,IF(H1286=-1,\"\",H1286))","v":0}]
[null,null,null,null,null,null,0,{"$f":"INDEX(Ranks!1287:1287,$G$4)","v":0},0]
[null,null,null,null,null,null,0,{"$f":"INDEX(Ranks!1288:1288,$G$4)","v":0},0]
[null,null,null,null,null,null,10000,{"$f":"INDEX(Ranks!1289:1289,$G$4)","v":100},100]
[null,null,null,null,null,null,0,{"$f":"INDEX(Ranks!1290:1290,$G$4)","v":0},0]
[null,null,null,null,null,null,0,{"$f":"INDEX(Ranks!1291:1291,$G$4)","v":0},0]
[null,null,null,null,null,null,10000,{"$f":"INDEX(Ranks!1292:1292,$G$4)","v":100},100]
[null,null,null,null,null,null,10000,{"$f":"INDEX(Ranks!1293:1293,$G$4)","v":100},100]
[null,null,null,null,null,null,0,{"$f":"INDEX(Ranks!1294:1294,$G$4)","v":0},0]
[null,null,null,null,null,null,0,{"$f":"INDEX(Ranks!1295:1295,$G$4)","v":0},0]
[null,null,null,null,null,null,0,{"$f":"INDEX(Ranks!1296:1296,$G$4)","v":0},0]
[null,null,null,null,null,null,10000,{"$f":"INDEX(Ranks!1297:1297,$G$4)","v":100},100]
[null,null,null,null,null,null,10000,{"$f":"INDEX(Ranks!1298:1298,$G$4)","v":100},100]
[null,null,null,null,null,null,0,{"$f":"INDEX(Ranks!1299:1299,$G$4)","v":0},0]
[null,null,null,null,null,null,10000,{"$f":"INDEX(Ranks!1300:1300,$G$4)","v":100},100]
[null,null,null,null,null,null,0,{"$f":"INDEX(Ranks!1301:1301,$G$4)","v":0},0]
[null,null,null,null,null,null,10000,{"$f":"INDEX(Ranks!1302:1302,$G$4)","v":100},100]
[null,null,null,null,null,null,0,{"$f":"INDEX(Ranks!1303:1303,$G$4)","v":0},0]
[null,null,null,null,null,null,0,{"$f":"INDEX(Ranks!1304:1304,$G$4)","v":0},0]
[null,null,null,null,null,null,0,{"$f":"INDEX(Ranks!1305:1305,$G$4)","v":0},0]
[null,null,null,null,null,null,0,{"$f":"INDEX(Ranks!1306:1306,$G$4)","v":0},0]
[null,null,null,null,null,null,0,{"$f":"INDEX(Ranks!1307:1307,$G$4)","v":0},0]
[null,null,null,null,null,null,0,{"$f":"INDEX(Ranks!1308:1308,$G$4)","v":0},0]
[null,null,null,null,null,null,0,{"$f":"INDEX(Ranks!1309:1309,$G$4)","v":0},0]
[null,null,null,null,null,null,0,{"$f":"INDEX(Ranks!1310:1310,$G$4)","v":0},0]
[null,null,null,null,null,null,10000,{"$f":"INDEX(Ranks!1311:1311,$G$4)","v":100},100]
[null,null,null,null,null,null,0,{"$f":"INDEX(Ranks!1312:1312,$G$4)","v":0},0]
[null,null,null,null,null,null,0,{"$f":"INDEX(Ranks!1313:1313,$G$4)","v":0},0]
[null,null,null,null,null,null,0,{"$f":"INDEX(Ranks!1314:1314,$G$4)","v":0},0]
[null,null,null,null,null,null,0,{"$f":"INDEX(Ranks!1315:1315,$G$4)","v":0},0]
[null,null,null,null,null,null,0,{"$f":"INDEX(Ranks!1316:1316,$G$4)","v":0},0]
[null,null,null,null,null,null,0,{"$f":"INDEX(Ranks!1317:1317,$G$4)","v":0},0]
[null,null,null,null,null,null,10000,{"$f":"INDEX(Ranks!1318:1318,$G$4)","v":100},100]
[null,null,null,null,null,null,0,{"$f":"INDEX(Ranks!1319:1319,$G$4)","v":0},0]
[null,null,null,null,null,null,0,{"$f":"INDEX(Ranks!1320:1320,$G$4)","v":0},0]
[null,null,null,null,null,null,0,{"$f":"INDEX(Ranks!1321:1321,$G$4)","v":0},0]
[null,null,null,null,null,null,0,{"$f":"INDEX(Ranks!1322:1322,$G$4)","v":0},0]
[null,null,null,null,null,null,0,{"$f":"INDEX(Ranks!1323:1323,$G$4)","v":0},0]
[null,null,null,null,null,null,0,{"$f":"INDEX(Ranks!1324:1324,$G$4)","v":0},0]
[null,null,null,null,null,null,0,{"$f":"INDEX(Ranks!1325:1325,$G$4)","v":0},0]
[null,null,null,null,null,null,10000,{"$f":"INDEX(Ranks!1326:1326,$G$4)","v":100},100]
[null,null,null,null,null,null,0,{"$f":"INDEX(Ranks!1327:1327,$G$4)","v":0},0]
[null,null,null,null,null,null,0,{"$f":"INDEX(Ranks!1328:1328,$G$4)","v":0},0]
[null,null,null,null,null,null,10000,{"$f":"INDEX(Ranks!1329:1329,$G$4)","v":100},100]
[null,null,null,null,null,null,0,{"$f":"INDEX(Ranks!1330:1330,$G$4)","v":0},0]
[null,null,null,null,null,null,0,{"$f":"INDEX(Ranks!1331:1331,$G$4)","v":0},0]
[null,null,null,null,null,null,0,{"$f":"INDEX(Ranks!1332:1332,$G$4)","v":0},0]
[null,null,null,null,null,null,0,{"$f":"INDEX(Ranks!1333:1333,$G$4)","v":0},0]
[null,null,null,null,null,null,0,{"$f":"INDEX(Ranks!1334:1334,$G$4)","v":0},0]
[null,null,null,null,null,null,0,{"$f":"INDEX(Ranks!1335:1335,$G$4)","v":0},0]
[null,null,null,null,null,null,0,{"$f":"INDEX(Ranks!1336:1336,$G$4)","v":0},0]
[null,null,null,null,null,null,0,{"$f":"INDEX(Ranks!1337:1337,$G$4)","v":0},0]
[null,null,null,null,null,null,0,{"$f":"INDEX(Ranks!1338:1338,$G$4)","v":0},0]
[null,null,null,null,null,null,0,{"$f":"INDEX(Ranks!1339:1339,$G$4)","v":0},0]
[null,null,null,null,null,null,0,{"$f":"INDEX(Ranks!1340:1340,$G$4)","v":0},0]
[null,null,null,null,null,null,10000,{"$f":"INDEX(Ranks!1341:1341,$G$4)","v":100},100]
[null,null,null,null,null,null,0,{"$f":"INDEX(Ranks!1342:1342,$G$4)","v":0},0]
[null,null,null,null,null,null,0,{"$f":"INDEX(Ranks!1343:1343,$G$4)","v":0},0]
[null,null,null,null,null,null,0,{"$f":"INDEX(Ranks!1344:1344,$G$4)","v":0},0]
[null,null,null,null,null,null,0,{"$f":"INDEX(Ranks!1345:1345,$G$4)","v":0},0]
[null,null,null,null,null,null,0,{"$f":"INDEX(Ranks!1346:1346,$G$4)","v":0},0]
[null,null,null,null,null,null,0,{"$f":"INDEX(Ranks!1347:1347,$G$4)","v":0},0]
[null,null,null,null,null,null,0,{"$f":"INDEX(Ranks!1348:1348,$G$4)","v":0},0]
[null,null,null,null,null,null,0,{"$f":"INDEX(Ranks!1349:1349,$G$4)","v":0},0]
[null,null,null,null,null,null,{"$f":"IFERROR(INT(H1350*100),H1350)","v":10000},{"$f":"INDEX(Ranks!1350:1350,$G$4)","v":100},{"$f":"IF(H1350=\"\",-1,IF(H1350=-1,\"\",H1350))","v":100}]
[null,null,null,null,null,null,10000,{"$f":"INDEX(Ranks!1351:1351,$G$4)","v":100},100]
[null,null,null,null,null,null,10000,{"$f":"INDEX(Ranks!1352:1352,$G$4)","v":100},100]
[null,null,null,null,null,null,0,{"$f":"INDEX(Ranks!1353:1353,$G$4)","v":0},0]
[null,null,null,null,null,null,0,{"$f":"INDEX(Ranks!1354:1354,$G$4)","v":0},0]
[null,null,null,null,null,null,10000,{"$f":"INDEX(Ranks!1355:1355,$G$4)","v":100},100]
[null,null,null,null,null,null,10000,{"$f":"INDEX(Ranks!1356:1356,$G$4)","v":100},100]
[null,null,null,null,null,null,10000,{"$f":"INDEX(Ranks!1357:1357,$G$4)","v":100},100]
[null,null,null,null,null,null,0,{"$f":"INDEX(Ranks!1358:1358,$G$4)","v":0},0]
[null,null,null,null,null,null,0,{"$f":"INDEX(Ranks!1359:1359,$G$4)","v":0},0]
[null,null,null,null,null,null,0,{"$f":"INDEX(Ranks!1360:1360,$G$4)","v":0},0]
[null,null,null,null,null,null,10000,{"$f":"INDEX(Ranks!1361:1361,$G$4)","v":100},100]
[null,null,null,null,null,null,10000,{"$f":"INDEX(Ranks!1362:1362,$G$4)","v":100},100]
[null,null,null,null,null,null,0,{"$f":"INDEX(Ranks!1363:1363,$G$4)","v":0},0]
[null,null,null,null,null,null,0,{"$f":"INDEX(Ranks!1364:1364,$G$4)","v":0},0]
[null,null,null,null,null,null,0,{"$f":"INDEX(Ranks!1365:1365,$G$4)","v":0},0]
[null,null,null,null,null,null,0,{"$f":"INDEX(Ranks!1366:1366,$G$4)","v":0},0]
[null,null,null,null,null,null,0,{"$f":"INDEX(Ranks!1367:1367,$G$4)","v":0},0]
[null,null,null,null,null,null,10000,{"$f":"INDEX(Ranks!1368:1368,$G$4)","v":100},100]
[null,null,null,null,null,null,0,{"$f":"INDEX(Ranks!1369:1369,$G$4)","v":0},0]
[null,null,null,null,null,null,0,{"$f":"INDEX(Ranks!1370:1370,$G$4)","v":0},0]
[null,null,null,null,null,null,0,{"$f":"INDEX(Ranks!1371:1371,$G$4)","v":0},0]
[null,null,null,null,null,null,0,{"$f":"INDEX(Ranks!1372:1372,$G$4)","v":0},0]
[null,null,null,null,null,null,0,{"$f":"INDEX(Ranks!1373:1373,$G$4)","v":0},0]
[null,null,null,null,null,null,10000,{"$f":"INDEX(Ranks!1374:1374,$G$4)","v":100},100]
[null,null,null,null,null,null,0,{"$f":"INDEX(Ranks!1375:1375,$G$4)","v":0},0]
[null,null,null,null,null,null,0,{"$f":"INDEX(Ranks!1376:1376,$G$4)","v":0},0]
[null,null,null,null,null,null,0,{"$f":"INDEX(Ranks!1377:1377,$G$4)","v":0},0]
[null,null,null,null,null,null,10000,{"$f":"INDEX(Ranks!1378:1378,$G$4)","v":100},100]
[null,null,null,null,null,null,0,{"$f":"INDEX(Ranks!1379:1379,$G$4)","v":0},0]
[null,null,null,null,null,null,0,{"$f":"INDEX(Ranks!1380:1380,$G$4)","v":0},0]
[null,null,null,null,null,null,0,{"$f":"INDEX(Ranks!1381:1381,$G$4)","v":0},0]
[null,null,null,null,null,null,0,{"$f":"INDEX(Ranks!1382:1382,$G$4)","v":0},0]
[null,null,null,null,null,null,0,{"$f":"INDEX(Ranks!1383:1383,$G$4)","v":0},0]
[null,null,null,null,null,null,0,{"$f":"INDEX(Ranks!1384:1384,$G$4)","v":0},0]
[null,null,null,null,null,null,0,{"$f":"INDEX(Ranks!1385:1385,$G$4)","v":0},0]
[null,null,null,null,null,null,0,{"$f":"INDEX(Ranks!1386:1386,$G$4)","v":0},0]
[null,null,null,null,null,null,0,{"$f":"INDEX(Ranks!1387:1387,$G$4)","v":0},0]
[null,null,null,null,null,null,10000,{"$f":"INDEX(Ranks!1388:1388,$G$4)","v":100},100]
[null,null,null,null,null,null,0,{"$f":"INDEX(Ranks!1389:1389,$G$4)","v":0},0]
[null,null,null,null,null,null,0,{"$f":"INDEX(Ranks!1390:1390,$G$4)","v":0},0]
[null,null,null,null,null,null,0,{"$f":"INDEX(Ranks!1391:1391,$G$4)","v":0},0]
[null,null,null,null,null,null,0,{"$f":"INDEX(Ranks!1392:1392,$G$4)","v":0},0]
[null,null,null,null,null,null,0,{"$f":"INDEX(Ranks!1393:1393,$G$4)","v":0},0]
[null,null,null,null,null,null,0,{"$f":"INDEX(Ranks!1394:1394,$G$4)","v":0},0]
[null,null,null,null,null,null,0,{"$f":"INDEX(Ranks!1395:1395,$G$4)","v":0},0]
[null,null,null,null,null,null,0,{"$f":"INDEX(Ranks!1396:1396,$G$4)","v":0},0]
[null,null,null,null,null,null,0,{"$f":"INDEX(Ranks!1397:1397,$G$4)","v":0},0]
[null,null,null,null,null,null,10000,{"$f":"INDEX(Ranks!1398:1398,$G$4)","v":100},100]
[null,null,null,null,null,null,0,{"$f":"INDEX(Ranks!1399:1399,$G$4)","v":0},0]
[null,null,null,null,null,null,10000,{"$f":"INDEX(Ranks!1400:1400,$G$4)","v":100},100]
[null,null,null,null,null,null,10000,{"$f":"INDEX(Ranks!1401:1401,$G$4)","v":100},100]
[null,null,null,null,null,null,0,{"$f":"INDEX(Ranks!1402:1402,$G$4)","v":0},0]
[null,null,null,null,null,null,0,{"$f":"INDEX(Ranks!1403:1403,$G$4)","v":0},0]
[null,null,null,null,null,null,0,{"$f":"INDEX(Ranks!1404:1404,$G$4)","v":0},0]
[null,null,null,null,null,null,10000,{"$f":"INDEX(Ranks!1405:1405,$G$4)","v":100},100]
[null,null,null,null,null,null,0,{"$f":"INDEX(Ranks!1406:1406,$G$4)","v":0},0]
[null,null,null,null,null,null,0,{"$f":"INDEX(Ranks!1407:1407,$G$4)","v":0},0]
[null,null,null,null,null,null,0,{"$f":"INDEX(Ranks!1408:1408,$G$4)","v":0},0]
[null,null,null,null,null,null,10000,{"$f":"INDEX(Ranks!1409:1409,$G$4)","v":100},100]
[null,null,null,null,null,null,0,{"$f":"INDEX(Ranks!1410:1410,$G$4)","v":0},0]
[null,null,null,null,null,null,10000,{"$f":"INDEX(Ranks!1411:1411,$G$4)","v":100},100]
[null,null,null,null,null,null,0,{"$f":"INDEX(Ranks!1412:1412,$G$4)","v":0},0]
[null,null,null,null,null,null,0,{"$f":"INDEX(Ranks!1413:1413,$G$4)","v":0},0]
[null,null,null,null,null,null,{"$f":"IFERROR(INT(H1414*100),H1414)","v":10000},{"$f":"INDEX(Ranks!1414:1414,$G$4)","v":100},{"$f":"IF(H1414=\"\",-1,IF(H1414=-1,\"\",H1414))","v":100}]
[null,null,null,null,null,null,0,{"$f":"INDEX(Ranks!1415:1415,$G$4)","v":0},0]
[null,null,null,null,null,null,0,{"$f":"INDEX(Ranks!1416:1416,$G$4)","v":0},0]
[null,null,null,null,null,null,0,{"$f":"INDEX(Ranks!1417:1417,$G$4)","v":0},0]
[null,null,null,null,null,null,0,{"$f":"INDEX(Ranks!1418:1418,$G$4)","v":0},0]
[null,null,null,null,null,null,0,{"$f":"INDEX(Ranks!1419:1419,$G$4)","v":0},0]
[null,null,null,null,null,null,0,{"$f":"INDEX(Ranks!1420:1420,$G$4)","v":0},0]
[null,null,null,null,null,null,0,{"$f":"INDEX(Ranks!1421:1421,$G$4)","v":0},0]
[null,null,null,null,null,null,0,{"$f":"INDEX(Ranks!1422:1422,$G$4)","v":0},0]
[null,null,null,null,null,null,0,{"$f":"INDEX(Ranks!1423:1423,$G$4)","v":0},0]
[null,null,null,null,null,null,0,{"$f":"INDEX(Ranks!1424:1424,$G$4)","v":0},0]
[null,null,null,null,null,null,0,{"$f":"INDEX(Ranks!1425:1425,$G$4)","v":0},0]
[null,null,null,null,null,null,10000,{"$f":"INDEX(Ranks!1426:1426,$G$4)","v":100},100]
[null,null,null,null,null,null,0,{"$f":"INDEX(Ranks!1427:1427,$G$4)","v":0},0]
[null,null,null,null,null,null,10000,{"$f":"INDEX(Ranks!1428:1428,$G$4)","v":100},100]
[null,null,null,null,null,null,0,{"$f":"INDEX(Ranks!1429:1429,$G$4)","v":0},0]
[null,null,null,null,null,null,10000,{"$f":"INDEX(Ranks!1430:1430,$G$4)","v":100},100]
[null,null,null,null,null,null,0,{"$f":"INDEX(Ranks!1431:1431,$G$4)","v":0},0]
[null,null,null,null,null,null,0,{"$f":"INDEX(Ranks!1432:1432,$G$4)","v":0},0]
[null,null,null,null,null,null,10000,{"$f":"INDEX(Ranks!1433:1433,$G$4)","v":100},100]
[null,null,null,null,null,null,0,{"$f":"INDEX(Ranks!1434:1434,$G$4)","v":0},0]
[null,null,null,null,null,null,0,{"$f":"INDEX(Ranks!1435:1435,$G$4)","v":0},0]
[null,null,null,null,null,null,0,{"$f":"INDEX(Ranks!1436:1436,$G$4)","v":0},0]
[null,null,null,null,null,null,0,{"$f":"INDEX(Ranks!1437:1437,$G$4)","v":0},0]
[null,null,null,null,null,null,0,{"$f":"INDEX(Ranks!1438:1438,$G$4)","v":0},0]
[null,null,null,null,null,null,0,{"$f":"INDEX(Ranks!1439:1439,$G$4)","v":0},0]
[null,null,null,null,null,null,0,{"$f":"INDEX(Ranks!1440:1440,$G$4)","v":0},0]
[null,null,null,null,null,null,0,{"$f":"INDEX(Ranks!1441:1441,$G$4)","v":0},0]
[null,null,null,null,null,null,10000,{"$f":"INDEX(Ranks!1442:1442,$G$4)","v":100},100]
[null,null,null,null,null,null,10000,{"$f":"INDEX(Ranks!1443:1443,$G$4)","v":100},100]
[null,null,null,null,null,null,0,{"$f":"INDEX(Ranks!1444:1444,$G$4)","v":0},0]
[null,null,null,null,null,null,0,{"$f":"INDEX(Ranks!1445:1445,$G$4)","v":0},0]
[null,null,null,null,null,null,0,{"$f":"INDEX(Ranks!1446:1446,$G$4)","v":0},0]
[null,null,null,null,null,null,0,{"$f":"INDEX(Ranks!1447:1447,$G$4)","v":0},0]
[null,null,null,null,null,null,0,{"$f":"INDEX(Ranks!1448:1448,$G$4)","v":0},0]
[null,null,null,null,null,null,0,{"$f":"INDEX(Ranks!1449:1449,$G$4)","v":0},0]
[null,null,null,null,null,null,0,{"$f":"INDEX(Ranks!1450:1450,$G$4)","v":0},0]
[null,null,null,null,null,null,0,{"$f":"INDEX(Ranks!1451:1451,$G$4)","v":0},0]
[null,null,null,null,null,null,0,{"$f":"INDEX(Ranks!1452:1452,$G$4)","v":0},0]
[null,null,null,null,null,null,0,{"$f":"INDEX(Ranks!1453:1453,$G$4)","v":0},0]
[null,null,null,null,null,null,10000,{"$f":"INDEX(Ranks!1454:1454,$G$4)","v":100},100]
[null,null,null,null,null,null,0,{"$f":"INDEX(Ranks!1455:1455,$G$4)","v":0},0]
[null,null,null,null,null,null,0,{"$f":"INDEX(Ranks!1456:1456,$G$4)","v":0},0]
[null,null,null,null,null,null,10000,{"$f":"INDEX(Ranks!1457:1457,$G$4)","v":100},100]
[null,null,null,null,null,null,0,{"$f":"INDEX(Ranks!1458:1458,$G$4)","v":0},0]
[null,null,null,null,null,null,0,{"$f":"INDEX(Ranks!1459:1459,$G$4)","v":0},0]
[null,null,null,null,null,null,0,{"$f":"INDEX(Ranks!1460:1460,$G$4)","v":0},0]
[null,null,null,null,null,null,0,{"$f":"INDEX(Ranks!1461:1461,$G$4)","v":0},0]
[null,null,null,null,null,null,0,{"$f":"INDEX(Ranks!1462:1462,$G$4)","v":0},0]
[null,null,null,null,null,null,10000,{"$f":"INDEX(Ranks!1463:1463,$G$4)","v":100},100]
[null,null,null,null,null,null,0,{"$f":"INDEX(Ranks!1464:1464,$G$4)","v":0},0]
[null,null,null,null,null,null,0,{"$f":"INDEX(Ranks!1465:1465,$G$4)","v":0},0]
[null,null,null,null,null,null,10000,{"$f":"INDEX(Ranks!1466:1466,$G$4)","v":100},100]
[null,null,null,null,null,null,10000,{"$f":"INDEX(Ranks!1467:1467,$G$4)","v":100},100]
[null,null,null,null,null,null,10000,{"$f":"INDEX(Ranks!1468:1468,$G$4)","v":100},100]
[null,null,null,null,null,null,0,{"$f":"INDEX(Ranks!1469:1469,$G$4)","v":0},0]
[null,null,null,null,null,null,10000,{"$f":"INDEX(Ranks!1470:1470,$G$4)","v":100},100]
[null,null,null,null,null,null,0,{"$f":"INDEX(Ranks!1471:1471,$G$4)","v":0},0]
[null,null,null,null,null,null,0,{"$f":"INDEX(Ranks!1472:1472,$G$4)","v":0},0]
[null,null,null,null,null,null,0,{"$f":"INDEX(Ranks!1473:1473,$G$4)","v":0},0]
[null,null,null,null,null,null,0,{"$f":"INDEX(Ranks!1474:1474,$G$4)","v":0},0]
[null,null,null,null,null,null,0,{"$f":"INDEX(Ranks!1475:1475,$G$4)","v":0},0]
[null,null,null,null,null,null,0,{"$f":"INDEX(Ranks!1476:1476,$G$4)","v":0},0]
[null,null,null,null,null,null,0,{"$f":"INDEX(Ranks!1477:1477,$G$4)","v":0},0]
[null,null,null,null,null,null,{"$f":"IFERROR(INT(H1478*100),H1478)","v":0},{"$f":"INDEX(Ranks!1478:1478,$G$4)","v":0},{"$f":"IF(H1478=\"\",-1,IF(H1478=-1,\"\",H1478))","v":0}]
[null,null,null,null,null,null,10000,{"$f":"INDEX(Ranks!1479:1479,$G$4)","v":100},100]
[null,null,null,null,null,null,0,{"$f":"INDEX(Ranks!1480:1480,$G$4)","v":0},0]
[null,null,null,null,null,null,0,{"$f":"INDEX(Ranks!1481:1481,$G$4)","v":0},0]
[null,null,null,null,null,null,0,{"$f":"INDEX(Ranks!1482:1482,$G$4)","v":0},0]
[null,null,null,null,null,null,0,{"$f":"INDEX(Ranks!1483:1483,$G$4)","v":0},0]
[null,null,null,null,null,null,0,{"$f":"INDEX(Ranks!1484:1484,$G$4)","v":0},0]
[null,null,null,null,null,null,10000,{"$f":"INDEX(Ranks!1485:1485,$G$4)","v":100},100]
[null,null,null,null,null,null,0,{"$f":"INDEX(Ranks!1486:1486,$G$4)","v":0},0]
[null,null,null,null,null,null,0,{"$f":"INDEX(Ranks!1487:1487,$G$4)","v":0},0]
[null,null,null,null,null,null,0,{"$f":"INDEX(Ranks!1488:1488,$G$4)","v":0},0]
[null,null,null,null,null,null,0,{"$f":"INDEX(Ranks!1489:1489,$G$4)","v":0},0]
[null,null,null,null,null,null,0,{"$f":"INDEX(Ranks!1490:1490,$G$4)","v":0},0]
[null,null,null,null,null,null,0,{"$f":"INDEX(Ranks!1491:1491,$G$4)","v":0},0]
[null,null,null,null,null,null,0,{"$f":"INDEX(Ranks!1492:1492,$G$4)","v":0},0]
[null,null,null,null,null,null,10000,{"$f":"INDEX(Ranks!1493:1493,$G$4)","v":100},100]
[null,null,null,null,null,null,0,{"$f":"INDEX(Ranks!1494:1494,$G$4)","v":0},0]
[null,null,null,null,null,null,0,{"$f":"INDEX(Ranks!1495:1495,$G$4)","v":0},0]
[null,null,null,null,null,null,0,{"$f":"INDEX(Ranks!1496:1496,$G$4)","v":0},0]
[null,null,null,null,null,null,0,{"$f":"INDEX(Ranks!1497:1497,$G$4)","v":0},0]
[null,null,null,null,null,null,0,{"$f":"INDEX(Ranks!1498:1498,$G$4)","v":0},0]
[null,null,null,null,null,null,0,{"$f":"INDEX(Ranks!1499:1499,$G$4)","v":0},0]
[null,null,null,null,null,null,10000,{"$f":"INDEX(Ranks!1500:1500,$G$4)","v":100},100]
[null,null,null,null,null,null,0,{"$f":"INDEX(Ranks!1501:1501,$G$4)","v":0},0]
[null,null,null,null,null,null,0,{"$f":"INDEX(Ranks!1502:1502,$G$4)","v":0},0]
[null,null,null,null,null,null,0,{"$f":"INDEX(Ranks!1503:1503,$G$4)","v":0},0]
[null,null,null,null,null,null,0,{"$f":"INDEX(Ranks!1504:1504,$G$4)","v":0},0]
[null,null,null,null,null,null,0,{"$f":"INDEX(Ranks!1505:1505,$G$4)","v":0},0]
[null,null,null,null,null,null,0,{"$f":"INDEX(Ranks!1506:1506,$G$4)","v":0},0]
[null,null,null,null,null,null,0,{"$f":"INDEX(Ranks!1507:1507,$G$4)","v":0},0]
[null,null,null,null,null,null,0,{"$f":"INDEX(Ranks!1508:1508,$G$4)","v":0},0]
[null,null,null,null,null,null,10000,{"$f":"INDEX(Ranks!1509:1509,$G$4)","v":100},100]
[null,null,null,null,null,null,10000,{"$f":"INDEX(Ranks!1510:1510,$G$4)","v":100},100]
[null,null,null,null,null,null,10000,{"$f":"INDEX(Ranks!1511:1511,$G$4)","v":100},100]
[null,null,null,null,null,null,0,{"$f":"INDEX(Ranks!1512:1512,$G$4)","v":0},0]
[null,null,null,null,null,null,0,{"$f":"INDEX(Ranks!1513:1513,$G$4)","v":0},0]
[null,null,null,null,null,null,0,{"$f":"INDEX(Ranks!1514:1514,$G$4)","v":0},0]
[null,null,null,null,null,null,0,{"$f":"INDEX(Ranks!1515:1515,$G$4)","v":0},0]
[null,null,null,null,null,null,0,{"$f":"INDEX(Ranks!1516:1516,$G$4)","v":0},0]
[null,null,null,null,null,null,0,{"$f":"INDEX(Ranks!1517:1517,$G$4)","v":0},0]
[null,null,null,null,null,null,0,{"$f":"INDEX(Ranks!1518:1518,$G$4)","v":0},0]
[null,null,null,null,null,null,0,{"$f":"INDEX(Ranks!1519:1519,$G$4)","v":0},0]
[null,null,null,null,null,null,0,{"$f":"INDEX(Ranks!1520:1520,$G$4)","v":0},0]
[null,null,null,null,null,null,0,{"$f":"INDEX(Ranks!1521:1521,$G$4)","v":0},0]
[null,null,null,null,null,null,0,{"$f":"INDEX(Ranks!1522:1522,$G$4)","v":0},0]
[null,null,null,null,null,null,0,{"$f":"INDEX(Ranks!1523:1523,$G$4)","v":0},0]
[null,null,null,null,null,null,0,{"$f":"INDEX(Ranks!1524:1524,$G$4)","v":0},0]
[null,null,null,null,null,null,0,{"$f":"INDEX(Ranks!1525:1525,$G$4)","v":0},0]
[null,null,null,null,null,null,0,{"$f":"INDEX(Ranks!1526:1526,$G$4)","v":0},0]
[null,null,null,null,null,null,0,{"$f":"INDEX(Ranks!1527:1527,$G$4)","v":0},0]
[null,null,null,null,null,null,0,{"$f":"INDEX(Ranks!1528:1528,$G$4)","v":0},0]
[null,null,null,null,null,null,0,{"$f":"INDEX(Ranks!1529:1529,$G$4)","v":0},0]
[null,null,null,null,null,null,0,{"$f":"INDEX(Ranks!1530:1530,$G$4)","v":0},0]
[null,null,null,null,null,null,0,{"$f":"INDEX(Ranks!1531:1531,$G$4)","v":0},0]
[null,null,null,null,null,null,0,{"$f":"INDEX(Ranks!1532:1532,$G$4)","v":0},0]
[null,null,null,null,null,null,0,{"$f":"INDEX(Ranks!1533:1533,$G$4)","v":0},0]
[null,null,null,null,null,null,0,{"$f":"INDEX(Ranks!1534:1534,$G$4)","v":0},0]
[null,null,null,null,null,null,0,{"$f":"INDEX(Ranks!1535:1535,$G$4)","v":0},0]
[null,null,null,null,null,null,0,{"$f":"INDEX(Ranks!1536:1536,$G$4)","v":0},0]
[null,null,null,null,null,null,0,{"$f":"INDEX(Ranks!1537:1537,$G$4)","v":0},0]
[null,null,null,null,null,null,0,{"$f":"INDEX(Ranks!1538:1538,$G$4)","v":0},0]
[null,null,null,null,null,null,0,{"$f":"INDEX(Ranks!1539:1539,$G$4)","v":0},0]
[null,null,null,null,null,null,0,{"$f":"INDEX(Ranks!1540:1540,$G$4)","v":0},0]
[null,null,null,null,null,null,0,{"$f":"INDEX(Ranks!1541:1541,$G$4)","v":0},0]
[null,null,null,null,null,null,{"$f":"IFERROR(INT(H1542*100),H1542)","v":0},{"$f":"INDEX(Ranks!1542:1542,$G$4)","v":0},{"$f":"IF(H1542=\"\",-1,IF(H1542=-1,\"\",H1542))","v":0}]
[null,null,null,null,null,null,0,{"$f":"INDEX(Ranks!1543:1543,$G$4)","v":0},0]
[null,null,null,null,null,null,0,{"$f":"INDEX(Ranks!1544:1544,$G$4)","v":0},0]
[null,null,null,null,null,null,0,{"$f":"INDEX(Ranks!1545:1545,$G$4)","v":0},0]
[null,null,null,null,null,null,0,{"$f":"INDEX(Ranks!1546:1546,$G$4)","v":0},0]
[null,null,null,null,null,null,0,{"$f":"INDEX(Ranks!1547:1547,$G$4)","v":0},0]
[null,null,null,null,null,null,0,{"$f":"INDEX(Ranks!1548:1548,$G$4)","v":0},0]
[null,null,null,null,null,null,0,{"$f":"INDEX(Ranks!1549:1549,$G$4)","v":0},0]
[null,null,null,null,null,null,0,{"$f":"INDEX(Ranks!1550:1550,$G$4)","v":0},0]
[null,null,null,null,null,null,0,{"$f":"INDEX(Ranks!1551:1551,$G$4)","v":0},0]
[null,null,null,null,null,null,0,{"$f":"INDEX(Ranks!1552:1552,$G$4)","v":0},0]
[null,null,null,null,null,null,0,{"$f":"INDEX(Ranks!1553:1553,$G$4)","v":0},0]
[null,null,null,null,null,null,0,{"$f":"INDEX(Ranks!1554:1554,$G$4)","v":0},0]
[null,null,null,null,null,null,0,{"$f":"INDEX(Ranks!1555:1555,$G$4)","v":0},0]
[null,null,null,null,null,null,0,{"$f":"INDEX(Ranks!1556:1556,$G$4)","v":0},0]
[null,null,null,null,null,null,0,{"$f":"INDEX(Ranks!1557:1557,$G$4)","v":0},0]
[null,null,null,null,null,null,0,{"$f":"INDEX(Ranks!1558:1558,$G$4)","v":0},0]
[null,null,null,null,null,null,0,{"$f":"INDEX(Ranks!1559:1559,$G$4)","v":0},0]
[null,null,null,null,null,null,0,{"$f":"INDEX(Ranks!1560:1560,$G$4)","v":0},0]
[null,null,null,null,null,null,0,{"$f":"INDEX(Ranks!1561:1561,$G$4)","v":0},0]
[null,null,null,null,null,null,0,{"$f":"INDEX(Ranks!1562:1562,$G$4)","v":0},0]
[null,null,null,null,null,null,0,{"$f":"INDEX(Ranks!1563:1563,$G$4)","v":0},0]
[null,null,null,null,null,null,0,{"$f":"INDEX(Ranks!1564:1564,$G$4)","v":0},0]
[null,null,null,null,null,null,0,{"$f":"INDEX(Ranks!1565:1565,$G$4)","v":0},0]
[null,null,null,null,null,null,0,{"$f":"INDEX(Ranks!1566:1566,$G$4)","v":0},0]
[null,null,null,null,null,null,0,{"$f":"INDEX(Ranks!1567:1567,$G$4)","v":0},0]
[null,null,null,null,null,null,0,{"$f":"INDEX(Ranks!1568:1568,$G$4)","v":0},0]
[null,null,null,null,null,null,0,{"$f":"INDEX(Ranks!1569:1569,$G$4)","v":0},0]
[null,null,null,null,null,null,0,{"$f":"INDEX(Ranks!1570:1570,$G$4)","v":0},0]
[null,null,null,null,null,null,0,{"$f":"INDEX(Ranks!1571:1571,$G$4)","v":0},0]
[null,null,null,null,null,null,0,{"$f":"INDEX(Ranks!1572:1572,$G$4)","v":0},0]
[null,null,null,null,null,null,0,{"$f":"INDEX(Ranks!1573:1573,$G$4)","v":0},0]
[null,null,null,null,null,null,0,{"$f":"INDEX(Ranks!1574:1574,$G$4)","v":0},0]
[null,null,null,null,null,null,0,{"$f":"INDEX(Ranks!1575:1575,$G$4)","v":0},0]
[null,null,null,null,null,null,0,{"$f":"INDEX(Ranks!1576:1576,$G$4)","v":0},0]
[null,null,null,null,null,null,0,{"$f":"INDEX(Ranks!1577:1577,$G$4)","v":0},0]
[null,null,null,null,null,null,0,{"$f":"INDEX(Ranks!1578:1578,$G$4)","v":0},0]
[null,null,null,null,null,null,0,{"$f":"INDEX(Ranks!1579:1579,$G$4)","v":0},0]
[null,null,null,null,null,null,0,{"$f":"INDEX(Ranks!1580:1580,$G$4)","v":0},0]
[null,null,null,null,null,null,0,{"$f":"INDEX(Ranks!1581:1581,$G$4)","v":0},0]
[null,null,null,null,null,null,0,{"$f":"INDEX(Ranks!1582:1582,$G$4)","v":0},0]
[null,null,null,null,null,null,0,{"$f":"INDEX(Ranks!1583:1583,$G$4)","v":0},0]
[null,null,null,null,null,null,0,{"$f":"INDEX(Ranks!1584:1584,$G$4)","v":0},0]
[null,null,null,null,null,null,0,{"$f":"INDEX(Ranks!1585:1585,$G$4)","v":0},0]
[null,null,null,null,null,null,0,{"$f":"INDEX(Ranks!1586:1586,$G$4)","v":0},0]
[null,null,null,null,null,null,0,{"$f":"INDEX(Ranks!1587:1587,$G$4)","v":0},0]
[null,null,null,null,null,null,0,{"$f":"INDEX(Ranks!1588:1588,$G$4)","v":0},0]
[null,null,null,null,null,null,0,{"$f":"INDEX(Ranks!1589:1589,$G$4)","v":0},0]
[null,null,null,null,null,null,0,{"$f":"INDEX(Ranks!1590:1590,$G$4)","v":0},0]
[null,null,null,null,null,null,0,{"$f":"INDEX(Ranks!1591:1591,$G$4)","v":0},0]
[null,null,null,null,null,null,0,{"$f":"INDEX(Ranks!1592:1592,$G$4)","v":0},0]
[null,null,null,null,null,null,0,{"$f":"INDEX(Ranks!1593:1593,$G$4)","v":0},0]
[null,null,null,null,null,null,0,{"$f":"INDEX(Ranks!1594:1594,$G$4)","v":0},0]
[null,null,null,null,null,null,0,{"$f":"INDEX(Ranks!1595:1595,$G$4)","v":0},0]
[null,null,null,null,null,null,0,{"$f":"INDEX(Ranks!1596:1596,$G$4)","v":0},0]
[null,null,null,null,null,null,0,{"$f":"INDEX(Ranks!1597:1597,$G$4)","v":0},0]
[null,null,null,null,null,null,0,{"$f":"INDEX(Ranks!1598:1598,$G$4)","v":0},0]
[null,null,null,null,null,null,0,{"$f":"INDEX(Ranks!1599:1599,$G$4)","v":0},0]
[null,null,null,null,null,null,0,{"$f":"INDEX(Ranks!1600:1600,$G$4)","v":0},0]
[null,null,null,null,null,null,0,{"$f":"INDEX(Ranks!1601:1601,$G$4)","v":0},0]
[null,null,null,null,null,null,0,{"$f":"INDEX(Ranks!1602:1602,$G$4)","v":0},0]
[null,null,null,null,null,null,0,{"$f":"INDEX(Ranks!1603:1603,$G$4)","v":0},0]
[null,null,null,null,null,null,0,{"$f":"INDEX(Ranks!1604:1604,$G$4)","v":0},0]
[null,null,null,null,null,null,0,{"$f":"INDEX(Ranks!1605:1605,$G$4)","v":0},0]
[null,null,null,null,null,null,{"$f":"IFERROR(INT(H1606*100),H1606)","v":0},{"$f":"INDEX(Ranks!1606:1606,$G$4)","v":0},{"$f":"IF(H1606=\"\",-1,IF(H1606=-1,\"\",H1606))","v":0}]
[null,null,null,null,null,null,0,{"$f":"INDEX(Ranks!1607:1607,$G$4)","v":0},0]
[null,null,null,null,null,null,0,{"$f":"INDEX(Ranks!1608:1608,$G$4)","v":0},0]
[null,null,null,null,null,null,0,{"$f":"INDEX(Ranks!1609:1609,$G$4)","v":0},0]
[null,null,null,null,null,null,0,{"$f":"INDEX(Ranks!1610:1610,$G$4)","v":0},0]
[null,null,null,null,null,null,0,{"$f":"INDEX(Ranks!1611:1611,$G$4)","v":0},0]
[null,null,null,null,null,null,0,{"$f":"INDEX(Ranks!1612:1612,$G$4)","v":0},0]
[null,null,null,null,null,null,0,{"$f":"INDEX(Ranks!1613:1613,$G$4)","v":0},0]
[null,null,null,null,null,null,0,{"$f":"INDEX(Ranks!1614:1614,$G$4)","v":0},0]
[null,null,null,null,null,null,0,{"$f":"INDEX(Ranks!1615:1615,$G$4)","v":0},0]
[null,null,null,null,null,null,0,{"$f":"INDEX(Ranks!1616:1616,$G$4)","v":0},0]
[null,null,null,null,null,null,0,{"$f":"INDEX(Ranks!1617:1617,$G$4)","v":0},0]
[null,null,null,null,null,null,0,{"$f":"INDEX(Ranks!1618:1618,$G$4)","v":0},0]
[null,null,null,null,null,null,0,{"$f":"INDEX(Ranks!1619:1619,$G$4)","v":0},0]
[null,null,null,null,null,null,0,{"$f":"INDEX(Ranks!1620:1620,$G$4)","v":0},0]
[null,null,null,null,null,null,0,{"$f":"INDEX(Ranks!1621:1621,$G$4)","v":0},0]
[null,null,null,null,null,null,0,{"$f":"INDEX(Ranks!1622:1622,$G$4)","v":0},0]
[null,null,null,null,null,null,0,{"$f":"INDEX(Ranks!1623:1623,$G$4)","v":0},0]
[null,null,null,null,null,null,0,{"$f":"INDEX(Ranks!1624:1624,$G$4)","v":0},0]
[null,null,null,null,null,null,0,{"$f":"INDEX(Ranks!1625:1625,$G$4)","v":0},0]
[null,null,null,null,null,null,0,{"$f":"INDEX(Ranks!1626:1626,$G$4)","v":0},0]
[null,null,null,null,null,null,0,{"$f":"INDEX(Ranks!1627:1627,$G$4)","v":0},0]
[null,null,null,null,null,null,0,{"$f":"INDEX(Ranks!1628:1628,$G$4)","v":0},0]
[null,null,null,null,null,null,0,{"$f":"INDEX(Ranks!1629:1629,$G$4)","v":0},0]
[null,null,null,null,null,null,0,{"$f":"INDEX(Ranks!1630:1630,$G$4)","v":0},0]
[null,null,null,null,null,null,0,{"$f":"INDEX(Ranks!1631:1631,$G$4)","v":0},0]
[null,null,null,null,null,null,0,{"$f":"INDEX(Ranks!1632:1632,$G$4)","v":0},0]
[null,null,null,null,null,null,0,{"$f":"INDEX(Ranks!1633:1633,$G$4)","v":0},0]
[null,null,null,null,null,null,0,{"$f":"INDEX(Ranks!1634:1634,$G$4)","v":0},0]
[null,null,null,null,null,null,0,{"$f":"INDEX(Ranks!1635:1635,$G$4)","v":0},0]
[null,null,null,null,null,null,0,{"$f":"INDEX(Ranks!1636:1636,$G$4)","v":0},0]
[null,null,null,null,null,null,0,{"$f":"INDEX(Ranks!1637:1637,$G$4)","v":0},0]
[null,null,null,null,null,null,0,{"$f":"INDEX(Ranks!1638:1638,$G$4)","v":0},0]
[null,null,null,null,null,null,0,{"$f":"INDEX(Ranks!1639:1639,$G$4)","v":0},0]
[null,null,null,null,null,null,0,{"$f":"INDEX(Ranks!1640:1640,$G$4)","v":0},0]
[null,null,null,null,null,null,0,{"$f":"INDEX(Ranks!1641:1641,$G$4)","v":0},0]
[null,null,null,null,null,null,0,{"$f":"INDEX(Ranks!1642:1642,$G$4)","v":0},0]
[null,null,null,null,null,null,0,{"$f":"INDEX(Ranks!1643:1643,$G$4)","v":0},0]
[null,null,null,null,null,null,0,{"$f":"INDEX(Ranks!1644:1644,$G$4)","v":0},0]
[null,null,null,null,null,null,0,{"$f":"INDEX(Ranks!1645:1645,$G$4)","v":0},0]
[null,null,null,null,null,null,0,{"$f":"INDEX(Ranks!1646:1646,$G$4)","v":0},0]
[null,null,null,null,null,null,0,{"$f":"INDEX(Ranks!1647:1647,$G$4)","v":0},0]
[null,null,null,null,null,null,0,{"$f":"INDEX(Ranks!1648:1648,$G$4)","v":0},0]
[null,null,null,null,null,null,0,{"$f":"INDEX(Ranks!1649:1649,$G$4)","v":0},0]
[null,null,null,null,null,null,0,{"$f":"INDEX(Ranks!1650:1650,$G$4)","v":0},0]
[null,null,null,null,null,null,0,{"$f":"INDEX(Ranks!1651:1651,$G$4)","v":0},0]
[null,null,null,null,null,null,0,{"$f":"INDEX(Ranks!1652:1652,$G$4)","v":0},0]
[null,null,null,null,null,null,0,{"$f":"INDEX(Ranks!1653:1653,$G$4)","v":0},0]
[null,null,null,null,null,null,0,{"$f":"INDEX(Ranks!1654:1654,$G$4)","v":0},0]
[null,null,null,null,null,null,0,{"$f":"INDEX(Ranks!1655:1655,$G$4)","v":0},0]
[null,null,null,null,null,null,0,{"$f":"INDEX(Ranks!1656:1656,$G$4)","v":0},0]
[null,null,null,null,null,null,0,{"$f":"INDEX(Ranks!1657:1657,$G$4)","v":0},0]
[null,null,null,null,null,null,0,{"$f":"INDEX(Ranks!1658:1658,$G$4)","v":0},0]
[null,null,null,null,null,null,0,{"$f":"INDEX(Ranks!1659:1659,$G$4)","v":0},0]
[null,null,null,null,null,null,0,{"$f":"INDEX(Ranks!1660:1660,$G$4)","v":0},0]
[null,null,null,null,null,null,0,{"$f":"INDEX(Ranks!1661:1661,$G$4)","v":0},0]
[null,null,null,null,null,null,0,{"$f":"INDEX(Ranks!1662:1662,$G$4)","v":0},0]
[null,null,null,null,null,null,0,{"$f":"INDEX(Ranks!1663:1663,$G$4)","v":0},0]
[null,null,null,null,null,null,0,{"$f":"INDEX(Ranks!1664:1664,$G$4)","v":0},0]
[null,null,null,null,null,null,0,{"$f":"INDEX(Ranks!1665:1665,$G$4)","v":0},0]
[null,null,null,null,null,null,0,{"$f":"INDEX(Ranks!1666:1666,$G$4)","v":0},0]
[null,null,null,null,null,null,0,{"$f":"INDEX(Ranks!1667:1667,$G$4)","v":0},0]
[null,null,null,null,null,null,0,{"$f":"INDEX(Ranks!1668:1668,$G$4)","v":0},0]
[null,null,null,null,null,null,0,{"$f":"INDEX(Ranks!1669:1669,$G$4)","v":0},0]
[null,null,null,null,null,null,{"$f":"IFERROR(INT(H1670*100),H1670)","v":0},{"$f":"INDEX(Ranks!1670:1670,$G$4)","v":0},{"$f":"IF(H1670=\"\",-1,IF(H1670=-1,\"\",H1670))","v":0}]
[null,null,null,null,null,null,0,{"$f":"INDEX(Ranks!1671:1671,$G$4)","v":0},0]
[null,null,null,null,null,null,0,{"$f":"INDEX(Ranks!1672:1672,$G$4)","v":0},0]
[null,null,null,null,null,null,0,{"$f":"INDEX(Ranks!1673:1673,$G$4)","v":0},0]
[null,null,null,null,null,null,0,{"$f":"INDEX(Ranks!1674:1674,$G$4)","v":0},0]
[null,null,null,null,null,null,0,{"$f":"INDEX(Ranks!1675:1675,$G$4)","v":0},0]
[null,null,null,null,null,null,0,{"$f":"INDEX(Ranks!1676:1676,$G$4)","v":0},0]
[null,null,null,null,null,null,0,{"$f":"INDEX(Ranks!1677:1677,$G$4)","v":0},0]
[null,null,null,null,null,null,0,{"$f":"INDEX(Ranks!1678:1678,$G$4)","v":0},0]
[null,null,null,null,null,null,0,{"$f":"INDEX(Ranks!1679:1679,$G$4)","v":0},0]
[null,null,null,null,null,null,0,{"$f":"INDEX(Ranks!1680:1680,$G$4)","v":0},0]
[null,null,null,null,null,null,0,{"$f":"INDEX(Ranks!1681:1681,$G$4)","v":0},0]
[null,null,null,null,null,null,0,{"$f":"INDEX(Ranks!1682:1682,$G$4)","v":0},0]
[null,null,null,null,null,null,0,{"$f":"INDEX(Ranks!1683:1683,$G$4)","v":0},0]
[null,null,null,null,null,null,0,{"$f":"INDEX(Ranks!1684:1684,$G$4)","v":0},0]
[null,null,null,null,null,null,0,{"$f":"INDEX(Ranks!1685:1685,$G$4)","v":0},0]
[null,null,null,null,null,null,0,{"$f":"INDEX(Ranks!1686:1686,$G$4)","v":0},0]
[null,null,null,null,null,null,0,{"$f":"INDEX(Ranks!1687:1687,$G$4)","v":0},0]
[null,null,null,null,null,null,0,{"$f":"INDEX(Ranks!1688:1688,$G$4)","v":0},0]
[null,null,null,null,null,null,0,{"$f":"INDEX(Ranks!1689:1689,$G$4)","v":0},0]
[null,null,null,null,null,null,0,{"$f":"INDEX(Ranks!1690:1690,$G$4)","v":0},0]
[null,null,null,null,null,null,0,{"$f":"INDEX(Ranks!1691:1691,$G$4)","v":0},0]
[null,null,null,null,null,null,0,{"$f":"INDEX(Ranks!1692:1692,$G$4)","v":0},0]
[null,null,null,null,null,null,0,{"$f":"INDEX(Ranks!1693:1693,$G$4)","v":0},0]
[null,null,null,null,null,null,0,{"$f":"INDEX(Ranks!1694:1694,$G$4)","v":0},0]
[null,null,null,null,null,null,0,{"$f":"INDEX(Ranks!1695:1695,$G$4)","v":0},0]
[null,null,null,null,null,null,0,{"$f":"INDEX(Ranks!1696:1696,$G$4)","v":0},0]
[null,null,null,null,null,null,0,{"$f":"INDEX(Ranks!1697:1697,$G$4)","v":0},0]
[null,null,null,null,null,null,0,{"$f":"INDEX(Ranks!1698:1698,$G$4)","v":0},0]
[null,null,null,null,null,null,0,{"$f":"INDEX(Ranks!1699:1699,$G$4)","v":0},0]
[null,null,null,null,null,null,0,{"$f":"INDEX(Ranks!1700:1700,$G$4)","v":0},0]
[null,null,null,null,null,null,0,{"$f":"INDEX(Ranks!1701:1701,$G$4)","v":0},0]
[null,null,null,null,null,null,0,{"$f":"INDEX(Ranks!1702:1702,$G$4)","v":0},0]
[null,null,null,null,null,null,0,{"$f":"INDEX(Ranks!1703:1703,$G$4)","v":0},0]
[null,null,null,null,null,null,0,{"$f":"INDEX(Ranks!1704:1704,$G$4)","v":0},0]
[null,null,null,null,null,null,0,{"$f":"INDEX(Ranks!1705:1705,$G$4)","v":0},0]
[null,null,null,null,null,null,0,{"$f":"INDEX(Ranks!1706:1706,$G$4)","v":0},0]
[null,null,null,null,null,null,0,{"$f":"INDEX(Ranks!1707:1707,$G$4)","v":0},0]
[null,null,null,null,null,null,0,{"$f":"INDEX(Ranks!1708:1708,$G$4)","v":0},0]
[null,null,null,null,null,null,0,{"$f":"INDEX(Ranks!1709:1709,$G$4)","v":0},0]
[null,null,null,null,null,null,0,{"$f":"INDEX(Ranks!1710:1710,$G$4)","v":0},0]
[null,null,null,null,null,null,0,{"$f":"INDEX(Ranks!1711:1711,$G$4)","v":0},0]
[null,null,null,null,null,null,0,{"$f":"INDEX(Ranks!1712:1712,$G$4)","v":0},0]
[null,null,null,null,null,null,0,{"$f":"INDEX(Ranks!1713:1713,$G$4)","v":0},0]
[null,null,null,null,null,null,0,{"$f":"INDEX(Ranks!1714:1714,$G$4)","v":0},0]
[null,null,null,null,null,null,0,{"$f":"INDEX(Ranks!1715:1715,$G$4)","v":0},0]
[null,null,null,null,null,null,0,{"$f":"INDEX(Ranks!1716:1716,$G$4)","v":0},0]
[null,null,null,null,null,null,0,{"$f":"INDEX(Ranks!1717:1717,$G$4)","v":0},0]
[null,null,null,null,null,null,0,{"$f":"INDEX(Ranks!1718:1718,$G$4)","v":0},0]
[null,null,null,null,null,null,0,{"$f":"INDEX(Ranks!1719:1719,$G$4)","v":0},0]
[null,null,null,null,null,null,0,{"$f":"INDEX(Ranks!1720:1720,$G$4)","v":0},0]
[null,null,null,null,null,null,0,{"$f":"INDEX(Ranks!1721:1721,$G$4)","v":0},0]
[null,null,null,null,null,null,0,{"$f":"INDEX(Ranks!1722:1722,$G$4)","v":0},0]
[null,null,null,null,null,null,0,{"$f":"INDEX(Ranks!1723:1723,$G$4)","v":0},0]
[null,null,null,null,null,null,0,{"$f":"INDEX(Ranks!1724:1724,$G$4)","v":0},0]
[null,null,null,null,null,null,0,{"$f":"INDEX(Ranks!1725:1725,$G$4)","v":0},0]
[null,null,null,null,null,null,0,{"$f":"INDEX(Ranks!1726:1726,$G$4)","v":0},0]
[null,null,null,null,null,null,0,{"$f":"INDEX(Ranks!1727:1727,$G$4)","v":0},0]
[null,null,null,null,null,null,0,{"$f":"INDEX(Ranks!1728:1728,$G$4)","v":0},0]
[null,null,null,null,null,null,0,{"$f":"INDEX(Ranks!1729:1729,$G$4)","v":0},0]
[null,null,null,null,null,null,0,{"$f":"INDEX(Ranks!1730:1730,$G$4)","v":0},0]
[null,null,null,null,null,null,0,{"$f":"INDEX(Ranks!1731:1731,$G$4)","v":0},0]
[null,null,null,null,null,null,0,{"$f":"INDEX(Ranks!1732:1732,$G$4)","v":0},0]
[null,null,null,null,null,null,0,{"$f":"INDEX(Ranks!1733:1733,$G$4)","v":0},0]
[null,null,null,null,null,null,{"$f":"IFERROR(INT(H1734*100),H1734)","v":0},{"$f":"INDEX(Ranks!1734:1734,$G$4)","v":0},{"$f":"IF(H1734=\"\",-1,IF(H1734=-1,\"\",H1734))","v":0}]
[null,null,null,null,null,null,0,{"$f":"INDEX(Ranks!1735:1735,$G$4)","v":0},0]
[null,null,null,null,null,null,0,{"$f":"INDEX(Ranks!1736:1736,$G$4)","v":0},0]
[null,null,null,null,null,null,0,{"$f":"INDEX(Ranks!1737:1737,$G$4)","v":0},0]
[null,null,null,null,null,null,0,{"$f":"INDEX(Ranks!1738:1738,$G$4)","v":0},0]
[null,null,null,null,null,null,0,{"$f":"INDEX(Ranks!1739:1739,$G$4)","v":0},0]
[null,null,null,null,null,null,0,{"$f":"INDEX(Ranks!1740:1740,$G$4)","v":0},0]
[null,null,null,null,null,null,0,{"$f":"INDEX(Ranks!1741:1741,$G$4)","v":0},0]
[null,null,null,null,null,null,0,{"$f":"INDEX(Ranks!1742:1742,$G$4)","v":0},0]
[null,null,null,null,null,null,0,{"$f":"INDEX(Ranks!1743:1743,$G$4)","v":0},0]
[null,null,null,null,null,null,0,{"$f":"INDEX(Ranks!1744:1744,$G$4)","v":0},0]
[null,null,null,null,null,null,0,{"$f":"INDEX(Ranks!1745:1745,$G$4)","v":0},0]
[null,null,null,null,null,null,0,{"$f":"INDEX(Ranks!1746:1746,$G$4)","v":0},0]
[null,null,null,null,null,null,0,{"$f":"INDEX(Ranks!1747:1747,$G$4)","v":0},0]
[null,null,null,null,null,null,0,{"$f":"INDEX(Ranks!1748:1748,$G$4)","v":0},0]
[null,null,null,null,null,null,0,{"$f":"INDEX(Ranks!1749:1749,$G$4)","v":0},0]
[null,null,null,null,null,null,0,{"$f":"INDEX(Ranks!1750:1750,$G$4)","v":0},0]
[null,null,null,null,null,null,0,{"$f":"INDEX(Ranks!1751:1751,$G$4)","v":0},0]
[null,null,null,null,null,null,0,{"$f":"INDEX(Ranks!1752:1752,$G$4)","v":0},0]
[null,null,null,null,null,null,0,{"$f":"INDEX(Ranks!1753:1753,$G$4)","v":0},0]
[null,null,null,null,null,null,0,{"$f":"INDEX(Ranks!1754:1754,$G$4)","v":0},0]
[null,null,null,null,null,null,0,{"$f":"INDEX(Ranks!1755:1755,$G$4)","v":0},0]
[null,null,null,null,null,null,0,{"$f":"INDEX(Ranks!1756:1756,$G$4)","v":0},0]
[null,null,null,null,null,null,0,{"$f":"INDEX(Ranks!1757:1757,$G$4)","v":0},0]
[null,null,null,null,null,null,0,{"$f":"INDEX(Ranks!1758:1758,$G$4)","v":0},0]
[null,null,null,null,null,null,0,{"$f":"INDEX(Ranks!1759:1759,$G$4)","v":0},0]
[null,null,null,null,null,null,0,{"$f":"INDEX(Ranks!1760:1760,$G$4)","v":0},0]
[null,null,null,null,null,null,0,{"$f":"INDEX(Ranks!1761:1761,$G$4)","v":0},0]
[null,null,null,null,null,null,0,{"$f":"INDEX(Ranks!1762:1762,$G$4)","v":0},0]
[null,null,null,null,null,null,0,{"$f":"INDEX(Ranks!1763:1763,$G$4)","v":0},0]
[null,null,null,null,null,null,0,{"$f":"INDEX(Ranks!1764:1764,$G$4)","v":0},0]
[null,null,null,null,null,null,0,{"$f":"INDEX(Ranks!1765:1765,$G$4)","v":0},0]
[null,null,null,null,null,null,0,{"$f":"INDEX(Ranks!1766:1766,$G$4)","v":0},0]
[null,null,null,null,null,null,0,{"$f":"INDEX(Ranks!1767:1767,$G$4)","v":0},0]
[null,null,null,null,null,null,0,{"$f":"INDEX(Ranks!1768:1768,$G$4)","v":0},0]
[null,null,null,null,null,null,0,{"$f":"INDEX(Ranks!1769:1769,$G$4)","v":0},0]
[null,null,null,null,null,null,0,{"$f":"INDEX(Ranks!1770:1770,$G$4)","v":0},0]
[null,null,null,null,null,null,0,{"$f":"INDEX(Ranks!1771:1771,$G$4)","v":0},0]
[null,null,null,null,null,null,0,{"$f":"INDEX(Ranks!1772:1772,$G$4)","v":0},0]
[null,null,null,null,null,null,0,{"$f":"INDEX(Ranks!1773:1773,$G$4)","v":0},0]
[null,null,null,null,null,null,0,{"$f":"INDEX(Ranks!1774:1774,$G$4)","v":0},0]
[null,null,null,null,null,null,0,{"$f":"INDEX(Ranks!1775:1775,$G$4)","v":0},0]
[null,null,null,null,null,null,0,{"$f":"INDEX(Ranks!1776:1776,$G$4)","v":0},0]
[null,null,null,null,null,null,0,{"$f":"INDEX(Ranks!1777:1777,$G$4)","v":0},0]
[null,null,null,null,null,null,0,{"$f":"INDEX(Ranks!1778:1778,$G$4)","v":0},0]
[null,null,null,null,null,null,0,{"$f":"INDEX(Ranks!1779:1779,$G$4)","v":0},0]
[null,null,null,null,null,null,0,{"$f":"INDEX(Ranks!1780:1780,$G$4)","v":0},0]
[null,null,null,null,null,null,0,{"$f":"INDEX(Ranks!1781:1781,$G$4)","v":0},0]
[null,null,null,null,null,null,0,{"$f":"INDEX(Ranks!1782:1782,$G$4)","v":0},0]
[null,null,null,null,null,null,0,{"$f":"INDEX(Ranks!1783:1783,$G$4)","v":0},0]
[null,null,null,null,null,null,0,{"$f":"INDEX(Ranks!1784:1784,$G$4)","v":0},0]
[null,null,null,null,null,null,0,{"$f":"INDEX(Ranks!1785:1785,$G$4)","v":0},0]
[null,null,null,null,null,null,0,{"$f":"INDEX(Ranks!1786:1786,$G$4)","v":0},0]
[null,null,null,null,null,null,0,{"$f":"INDEX(Ranks!1787:1787,$G$4)","v":0},0]
[null,null,null,null,null,null,0,{"$f":"INDEX(Ranks!1788:1788,$G$4)","v":0},0]
[null,null,null,null,null,null,0,{"$f":"INDEX(Ranks!1789:1789,$G$4)","v":0},0]
[null,null,null,null,null,null,0,{"$f":"INDEX(Ranks!1790:1790,$G$4)","v":0},0]
[null,null,null,null,null,null,0,{"$f":"INDEX(Ranks!1791:1791,$G$4)","v":0},0]
[null,null,null,null,null,null,0,{"$f":"INDEX(Ranks!1792:1792,$G$4)","v":0},0]
[null,null,null,null,null,null,0,{"$f":"INDEX(Ranks!1793:1793,$G$4)","v":0},0]
[null,null,null,null,null,null,0,{"$f":"INDEX(Ranks!1794:1794,$G$4)","v":0},0]
[null,null,null,null,null,null,0,{"$f":"INDEX(Ranks!1795:1795,$G$4)","v":0},0]
[null,null,null,null,null,null,0,{"$f":"INDEX(Ranks!1796:1796,$G$4)","v":0},0]
[null,null,null,null,null,null,0,{"$f":"INDEX(Ranks!1797:1797,$G$4)","v":0},0]
[null,null,null,null,null,null,{"$f":"IFERROR(INT(H1798*100),H1798)","v":0},{"$f":"INDEX(Ranks!1798:1798,$G$4)","v":0},{"$f":"IF(H1798=\"\",-1,IF(H1798=-1,\"\",H1798))","v":0}]
[null,null,null,null,null,null,0,{"$f":"INDEX(Ranks!1799:1799,$G$4)","v":0},0]
[null,null,null,null,null,null,0,{"$f":"INDEX(Ranks!1800:1800,$G$4)","v":0},0]
[null,null,null,null,null,null,0,{"$f":"INDEX(Ranks!1801:1801,$G$4)","v":0},0]
[null,null,null,null,null,null,0,{"$f":"INDEX(Ranks!1802:1802,$G$4)","v":0},0]
[null,null,null,null,null,null,0,{"$f":"INDEX(Ranks!1803:1803,$G$4)","v":0},0]
[null,null,null,null,null,null,0,{"$f":"INDEX(Ranks!1804:1804,$G$4)","v":0},0]
[null,null,null,null,null,null,0,{"$f":"INDEX(Ranks!1805:1805,$G$4)","v":0},0]
[null,null,null,null,null,null,0,{"$f":"INDEX(Ranks!1806:1806,$G$4)","v":0},0]
[null,null,null,null,null,null,0,{"$f":"INDEX(Ranks!1807:1807,$G$4)","v":0},0]
[null,null,null,null,null,null,0,{"$f":"INDEX(Ranks!1808:1808,$G$4)","v":0},0]
[null,null,null,null,null,null,0,{"$f":"INDEX(Ranks!1809:1809,$G$4)","v":0},0]
[null,null,null,null,null,null,0,{"$f":"INDEX(Ranks!1810:1810,$G$4)","v":0},0]
[null,null,null,null,null,null,0,{"$f":"INDEX(Ranks!1811:1811,$G$4)","v":0},0]
[null,null,null,null,null,null,0,{"$f":"INDEX(Ranks!1812:1812,$G$4)","v":0},0]
[null,null,null,null,null,null,0,{"$f":"INDEX(Ranks!1813:1813,$G$4)","v":0},0]
[null,null,null,null,null,null,0,{"$f":"INDEX(Ranks!1814:1814,$G$4)","v":0},0]
[null,null,null,null,null,null,0,{"$f":"INDEX(Ranks!1815:1815,$G$4)","v":0},0]
[null,null,null,null,null,null,0,{"$f":"INDEX(Ranks!1816:1816,$G$4)","v":0},0]
[null,null,null,null,null,null,0,{"$f":"INDEX(Ranks!1817:1817,$G$4)","v":0},0]
[null,null,null,null,null,null,0,{"$f":"INDEX(Ranks!1818:1818,$G$4)","v":0},0]
[null,null,null,null,null,null,0,{"$f":"INDEX(Ranks!1819:1819,$G$4)","v":0},0]
[null,null,null,null,null,null,0,{"$f":"INDEX(Ranks!1820:1820,$G$4)","v":0},0]
[null,null,null,null,null,null,0,{"$f":"INDEX(Ranks!1821:1821,$G$4)","v":0},0]
[null,null,null,null,null,null,0,{"$f":"INDEX(Ranks!1822:1822,$G$4)","v":0},0]
[null,null,null,null,null,null,0,{"$f":"INDEX(Ranks!1823:1823,$G$4)","v":0},0]
[null,null,null,null,null,null,0,{"$f":"INDEX(Ranks!1824:1824,$G$4)","v":0},0]
[null,null,null,null,null,null,0,{"$f":"INDEX(Ranks!1825:1825,$G$4)","v":0},0]
[null,null,null,null,null,null,0,{"$f":"INDEX(Ranks!1826:1826,$G$4)","v":0},0]
[null,null,null,null,null,null,0,{"$f":"INDEX(Ranks!1827:1827,$G$4)","v":0},0]
[null,null,null,null,null,null,0,{"$f":"INDEX(Ranks!1828:1828,$G$4)","v":0},0]
[null,null,null,null,null,null,0,{"$f":"INDEX(Ranks!1829:1829,$G$4)","v":0},0]
[null,null,null,null,null,null,0,{"$f":"INDEX(Ranks!1830:1830,$G$4)","v":0},0]
[null,null,null,null,null,null,0,{"$f":"INDEX(Ranks!1831:1831,$G$4)","v":0},0]
[null,null,null,null,null,null,0,{"$f":"INDEX(Ranks!1832:1832,$G$4)","v":0},0]
[null,null,null,null,null,null,0,{"$f":"INDEX(Ranks!1833:1833,$G$4)","v":0},0]
[null,null,null,null,null,null,0,{"$f":"INDEX(Ranks!1834:1834,$G$4)","v":0},0]
[null,null,null,null,null,null,0,{"$f":"INDEX(Ranks!1835:1835,$G$4)","v":0},0]
[null,null,null,null,null,null,0,{"$f":"INDEX(Ranks!1836:1836,$G$4)","v":0},0]
[null,null,null,null,null,null,0,{"$f":"INDEX(Ranks!1837:1837,$G$4)","v":0},0]
[null,null,null,null,null,null,0,{"$f":"INDEX(Ranks!1838:1838,$G$4)","v":0},0]
[null,null,null,null,null,null,0,{"$f":"INDEX(Ranks!1839:1839,$G$4)","v":0},0]
[null,null,null,null,null,null,0,{"$f":"INDEX(Ranks!1840:1840,$G$4)","v":0},0]
[null,null,null,null,null,null,0,{"$f":"INDEX(Ranks!1841:1841,$G$4)","v":0},0]
[null,null,null,null,null,null,0,{"$f":"INDEX(Ranks!1842:1842,$G$4)","v":0},0]
[null,null,null,null,null,null,0,{"$f":"INDEX(Ranks!1843:1843,$G$4)","v":0},0]
[null,null,null,null,null,null,0,{"$f":"INDEX(Ranks!1844:1844,$G$4)","v":0},0]
[null,null,null,null,null,null,0,{"$f":"INDEX(Ranks!1845:1845,$G$4)","v":0},0]
[null,null,null,null,null,null,0,{"$f":"INDEX(Ranks!1846:1846,$G$4)","v":0},0]
[null,null,null,null,null,null,0,{"$f":"INDEX(Ranks!1847:1847,$G$4)","v":0},0]
[null,null,null,null,null,null,0,{"$f":"INDEX(Ranks!1848:1848,$G$4)","v":0},0]
[null,null,null,null,null,null,0,{"$f":"INDEX(Ranks!1849:1849,$G$4)","v":0},0]
[null,null,null,null,null,null,0,{"$f":"INDEX(Ranks!1850:1850,$G$4)","v":0},0]
[null,null,null,null,null,null,0,{"$f":"INDEX(Ranks!1851:1851,$G$4)","v":0},0]
[null,null,null,null,null,null,0,{"$f":"INDEX(Ranks!1852:1852,$G$4)","v":0},0]
[null,null,null,null,null,null,0,{"$f":"INDEX(Ranks!1853:1853,$G$4)","v":0},0]
[null,null,null,null,null,null,0,{"$f":"INDEX(Ranks!1854:1854,$G$4)","v":0},0]
[null,null,null,null,null,null,0,{"$f":"INDEX(Ranks!1855:1855,$G$4)","v":0},0]
[null,null,null,null,null,null,0,{"$f":"INDEX(Ranks!1856:1856,$G$4)","v":0},0]
[null,null,null,null,null,null,0,{"$f":"INDEX(Ranks!1857:1857,$G$4)","v":0},0]
[null,null,null,null,null,null,0,{"$f":"INDEX(Ranks!1858:1858,$G$4)","v":0},0]
[null,null,null,null,null,null,0,{"$f":"INDEX(Ranks!1859:1859,$G$4)","v":0},0]
[null,null,null,null,null,null,0,{"$f":"INDEX(Ranks!1860:1860,$G$4)","v":0},0]
[null,null,null,null,null,null,0,{"$f":"INDEX(Ranks!1861:1861,$G$4)","v":0},0]
[null,null,null,null,null,null,{"$f":"IFERROR(INT(H1862*100),H1862)","v":0},{"$f":"INDEX(Ranks!1862:1862,$G$4)","v":0},{"$f":"IF(H1862=\"\",-1,IF(H1862=-1,\"\",H1862))","v":0}]
[null,null,null,null,null,null,0,{"$f":"INDEX(Ranks!1863:1863,$G$4)","v":0},0]
[null,null,null,null,null,null,0,{"$f":"INDEX(Ranks!1864:1864,$G$4)","v":0},0]
[null,null,null,null,null,null,0,{"$f":"INDEX(Ranks!1865:1865,$G$4)","v":0},0]
[null,null,null,null,null,null,0,{"$f":"INDEX(Ranks!1866:1866,$G$4)","v":0},0]
[null,null,null,null,null,null,0,{"$f":"INDEX(Ranks!1867:1867,$G$4)","v":0},0]
[null,null,null,null,null,null,0,{"$f":"INDEX(Ranks!1868:1868,$G$4)","v":0},0]
[null,null,null,null,null,null,0,{"$f":"INDEX(Ranks!1869:1869,$G$4)","v":0},0]
[null,null,null,null,null,null,0,{"$f":"INDEX(Ranks!1870:1870,$G$4)","v":0},0]
[null,null,null,null,null,null,0,{"$f":"INDEX(Ranks!1871:1871,$G$4)","v":0},0]
[null,null,null,null,null,null,0,{"$f":"INDEX(Ranks!1872:1872,$G$4)","v":0},0]
[null,null,null,null,null,null,0,{"$f":"INDEX(Ranks!1873:1873,$G$4)","v":0},0]
[null,null,null,null,null,null,0,{"$f":"INDEX(Ranks!1874:1874,$G$4)","v":0},0]
[null,null,null,null,null,null,0,{"$f":"INDEX(Ranks!1875:1875,$G$4)","v":0},0]
[null,null,null,null,null,null,0,{"$f":"INDEX(Ranks!1876:1876,$G$4)","v":0},0]
[null,null,null,null,null,null,0,{"$f":"INDEX(Ranks!1877:1877,$G$4)","v":0},0]
[null,null,null,null,null,null,0,{"$f":"INDEX(Ranks!1878:1878,$G$4)","v":0},0]
[null,null,null,null,null,null,0,{"$f":"INDEX(Ranks!1879:1879,$G$4)","v":0},0]
[null,null,null,null,null,null,0,{"$f":"INDEX(Ranks!1880:1880,$G$4)","v":0},0]
[null,null,null,null,null,null,0,{"$f":"INDEX(Ranks!1881:1881,$G$4)","v":0},0]
[null,null,null,null,null,null,0,{"$f":"INDEX(Ranks!1882:1882,$G$4)","v":0},0]
[null,null,null,null,null,null,0,{"$f":"INDEX(Ranks!1883:1883,$G$4)","v":0},0]
[null,null,null,null,null,null,0,{"$f":"INDEX(Ranks!1884:1884,$G$4)","v":0},0]
[null,null,null,null,null,null,0,{"$f":"INDEX(Ranks!1885:1885,$G$4)","v":0},0]
[null,null,null,null,null,null,0,{"$f":"INDEX(Ranks!1886:1886,$G$4)","v":0},0]
[null,null,null,null,null,null,0,{"$f":"INDEX(Ranks!1887:1887,$G$4)","v":0},0]
[null,null,null,null,null,null,0,{"$f":"INDEX(Ranks!1888:1888,$G$4)","v":0},0]
[null,null,null,null,null,null,0,{"$f":"INDEX(Ranks!1889:1889,$G$4)","v":0},0]
[null,null,null,null,null,null,0,{"$f":"INDEX(Ranks!1890:1890,$G$4)","v":0},0]
[null,null,null,null,null,null,0,{"$f":"INDEX(Ranks!1891:1891,$G$4)","v":0},0]
[null,null,null,null,null,null,0,{"$f":"INDEX(Ranks!1892:1892,$G$4)","v":0},0]
[null,null,null,null,null,null,0,{"$f":"INDEX(Ranks!1893:1893,$G$4)","v":0},0]
[null,null,null,null,null,null,0,{"$f":"INDEX(Ranks!1894:1894,$G$4)","v":0},0]
[null,null,null,null,null,null,0,{"$f":"INDEX(Ranks!1895:1895,$G$4)","v":0},0]
[null,null,null,null,null,null,0,{"$f":"INDEX(Ranks!1896:1896,$G$4)","v":0},0]
[null,null,null,null,null,null,0,{"$f":"INDEX(Ranks!1897:1897,$G$4)","v":0},0]
[null,null,null,null,null,null,0,{"$f":"INDEX(Ranks!1898:1898,$G$4)","v":0},0]
[null,null,null,null,null,null,0,{"$f":"INDEX(Ranks!1899:1899,$G$4)","v":0},0]
[null,null,null,null,null,null,0,{"$f":"INDEX(Ranks!1900:1900,$G$4)","v":0},0]
[null,null,null,null,null,null,0,{"$f":"INDEX(Ranks!1901:1901,$G$4)","v":0},0]
[null,null,null,null,null,null,0,{"$f":"INDEX(Ranks!1902:1902,$G$4)","v":0},0]
[null,null,null,null,null,null,0,{"$f":"INDEX(Ranks!1903:1903,$G$4)","v":0},0]
[null,null,null,null,null,null,0,{"$f":"INDEX(Ranks!1904:1904,$G$4)","v":0},0]
[null,null,null,null,null,null,0,{"$f":"INDEX(Ranks!1905:1905,$G$4)","v":0},0]
[null,null,null,null,null,null,0,{"$f":"INDEX(Ranks!1906:1906,$G$4)","v":0},0]
[null,null,null,null,null,null,0,{"$f":"INDEX(Ranks!1907:1907,$G$4)","v":0},0]
[null,null,null,null,null,null,0,{"$f":"INDEX(Ranks!1908:1908,$G$4)","v":0},0]
[null,null,null,null,null,null,0,{"$f":"INDEX(Ranks!1909:1909,$G$4)","v":0},0]
[null,null,null,null,null,null,0,{"$f":"INDEX(Ranks!1910:1910,$G$4)","v":0},0]
[null,null,null,null,null,null,0,{"$f":"INDEX(Ranks!1911:1911,$G$4)","v":0},0]
[null,null,null,null,null,null,0,{"$f":"INDEX(Ranks!1912:1912,$G$4)","v":0},0]
[null,null,null,null,null,null,0,{"$f":"INDEX(Ranks!1913:1913,$G$4)","v":0},0]
[null,null,null,null,null,null,0,{"$f":"INDEX(Ranks!1914:1914,$G$4)","v":0},0]
[null,null,null,null,null,null,0,{"$f":"INDEX(Ranks!1915:1915,$G$4)","v":0},0]
[null,null,null,null,null,null,0,{"$f":"INDEX(Ranks!1916:1916,$G$4)","v":0},0]
[null,null,null,null,null,null,0,{"$f":"INDEX(Ranks!1917:1917,$G$4)","v":0},0]
[null,null,null,null,null,null,0,{"$f":"INDEX(Ranks!1918:1918,$G$4)","v":0},0]
[null,null,null,null,null,null,0,{"$f":"INDEX(Ranks!1919:1919,$G$4)","v":0},0]
[null,null,null,null,null,null,0,{"$f":"INDEX(Ranks!1920:1920,$G$4)","v":0},0]
[null,null,null,null,null,null,0,{"$f":"INDEX(Ranks!1921:1921,$G$4)","v":0},0]
[null,null,null,null,null,null,0,{"$f":"INDEX(Ranks!1922:1922,$G$4)","v":0},0]
[null,null,null,null,null,null,0,{"$f":"INDEX(Ranks!1923:1923,$G$4)","v":0},0]
[null,null,null,null,null,null,0,{"$f":"INDEX(Ranks!1924:1924,$G$4)","v":0},0]
[null,null,null,null,null,null,0,{"$f":"INDEX(Ranks!1925:1925,$G$4)","v":0},0]
[null,null,null,null,null,null,{"$f":"IFERROR(INT(H1926*100),H1926)","v":0},{"$f":"INDEX(Ranks!1926:1926,$G$4)","v":0},{"$f":"IF(H1926=\"\",-1,IF(H1926=-1,\"\",H1926))","v":0}]
[null,null,null,null,null,null,0,{"$f":"INDEX(Ranks!1927:1927,$G$4)","v":0},0]
[null,null,null,null,null,null,0,{"$f":"INDEX(Ranks!1928:1928,$G$4)","v":0},0]
[null,null,null,null,null,null,0,{"$f":"INDEX(Ranks!1929:1929,$G$4)","v":0},0]
[null,null,null,null,null,null,0,{"$f":"INDEX(Ranks!1930:1930,$G$4)","v":0},0]
[null,null,null,null,null,null,0,{"$f":"INDEX(Ranks!1931:1931,$G$4)","v":0},0]
[null,null,null,null,null,null,0,{"$f":"INDEX(Ranks!1932:1932,$G$4)","v":0},0]
[null,null,null,null,null,null,0,{"$f":"INDEX(Ranks!1933:1933,$G$4)","v":0},0]
[null,null,null,null,null,null,0,{"$f":"INDEX(Ranks!1934:1934,$G$4)","v":0},0]
[null,null,null,null,null,null,0,{"$f":"INDEX(Ranks!1935:1935,$G$4)","v":0},0]
[null,null,null,null,null,null,0,{"$f":"INDEX(Ranks!1936:1936,$G$4)","v":0},0]
[null,null,null,null,null,null,0,{"$f":"INDEX(Ranks!1937:1937,$G$4)","v":0},0]
[null,null,null,null,null,null,0,{"$f":"INDEX(Ranks!1938:1938,$G$4)","v":0},0]
[null,null,null,null,null,null,0,{"$f":"INDEX(Ranks!1939:1939,$G$4)","v":0},0]
[null,null,null,null,null,null,0,{"$f":"INDEX(Ranks!1940:1940,$G$4)","v":0},0]
[null,null,null,null,null,null,0,{"$f":"INDEX(Ranks!1941:1941,$G$4)","v":0},0]
[null,null,null,null,null,null,0,{"$f":"INDEX(Ranks!1942:1942,$G$4)","v":0},0]
[null,null,null,null,null,null,0,{"$f":"INDEX(Ranks!1943:1943,$G$4)","v":0},0]
[null,null,null,null,null,null,0,{"$f":"INDEX(Ranks!1944:1944,$G$4)","v":0},0]
[null,null,null,null,null,null,0,{"$f":"INDEX(Ranks!1945:1945,$G$4)","v":0},0]
[null,null,null,null,null,null,0,{"$f":"INDEX(Ranks!1946:1946,$G$4)","v":0},0]
[null,null,null,null,null,null,0,{"$f":"INDEX(Ranks!1947:1947,$G$4)","v":0},0]
[null,null,null,null,null,null,0,{"$f":"INDEX(Ranks!1948:1948,$G$4)","v":0},0]
[null,null,null,null,null,null,0,{"$f":"INDEX(Ranks!1949:1949,$G$4)","v":0},0]
[null,null,null,null,null,null,0,{"$f":"INDEX(Ranks!1950:1950,$G$4)","v":0},0]
[null,null,null,null,null,null,0,{"$f":"INDEX(Ranks!1951:1951,$G$4)","v":0},0]
[null,null,null,null,null,null,0,{"$f":"INDEX(Ranks!1952:1952,$G$4)","v":0},0]
[null,null,null,null,null,null,0,{"$f":"INDEX(Ranks!1953:1953,$G$4)","v":0},0]
[null,null,null,null,null,null,0,{"$f":"INDEX(Ranks!1954:1954,$G$4)","v":0},0]
[null,null,null,null,null,null,0,{"$f":"INDEX(Ranks!1955:1955,$G$4)","v":0},0]
[null,null,null,null,null,null,0,{"$f":"INDEX(Ranks!1956:1956,$G$4)","v":0},0]
[null,null,null,null,null,null,0,{"$f":"INDEX(Ranks!1957:1957,$G$4)","v":0},0]
[null,null,null,null,null,null,0,{"$f":"INDEX(Ranks!1958:1958,$G$4)","v":0},0]
[null,null,null,null,null,null,0,{"$f":"INDEX(Ranks!1959:1959,$G$4)","v":0},0]
[null,null,null,null,null,null,0,{"$f":"INDEX(Ranks!1960:1960,$G$4)","v":0},0]
[null,null,null,null,null,null,0,{"$f":"INDEX(Ranks!1961:1961,$G$4)","v":0},0]
[null,null,null,null,null,null,0,{"$f":"INDEX(Ranks!1962:1962,$G$4)","v":0},0]
[null,null,null,null,null,null,0,{"$f":"INDEX(Ranks!1963:1963,$G$4)","v":0},0]
[null,null,null,null,null,null,0,{"$f":"INDEX(Ranks!1964:1964,$G$4)","v":0},0]
[null,null,null,null,null,null,0,{"$f":"INDEX(Ranks!1965:1965,$G$4)","v":0},0]
[null,null,null,null,null,null,0,{"$f":"INDEX(Ranks!1966:1966,$G$4)","v":0},0]
[null,null,null,null,null,null,0,{"$f":"INDEX(Ranks!1967:1967,$G$4)","v":0},0]
[null,null,null,null,null,null,0,{"$f":"INDEX(Ranks!1968:1968,$G$4)","v":0},0]
[null,null,null,null,null,null,0,{"$f":"INDEX(Ranks!1969:1969,$G$4)","v":0},0]
[null,null,null,null,null,null,0,{"$f":"INDEX(Ranks!1970:1970,$G$4)","v":0},0]
[null,null,null,null,null,null,0,{"$f":"INDEX(Ranks!1971:1971,$G$4)","v":0},0]
[null,null,null,null,null,null,0,{"$f":"INDEX(Ranks!1972:1972,$G$4)","v":0},0]
[null,null,null,null,null,null,0,{"$f":"INDEX(Ranks!1973:1973,$G$4)","v":0},0]
[null,null,null,null,null,null,0,{"$f":"INDEX(Ranks!1974:1974,$G$4)","v":0},0]
[null,null,null,null,null,null,0,{"$f":"INDEX(Ranks!1975:1975,$G$4)","v":0},0]
[null,null,null,null,null,null,0,{"$f":"INDEX(Ranks!1976:1976,$G$4)","v":0},0]
[null,null,null,null,null,null,0,{"$f":"INDEX(Ranks!1977:1977,$G$4)","v":0},0]
[null,null,null,null,null,null,0,{"$f":"INDEX(Ranks!1978:1978,$G$4)","v":0},0]
[null,null,null,null,null,null,0,{"$f":"INDEX(Ranks!1979:1979,$G$4)","v":0},0]
[null,null,null,null,null,null,0,{"$f":"INDEX(Ranks!1980:1980,$G$4)","v":0},0]
[null,null,null,null,null,null,0,{"$f":"INDEX(Ranks!1981:1981,$G$4)","v":0},0]
[null,null,null,null,null,null,0,{"$f":"INDEX(Ranks!1982:1982,$G$4)","v":0},0]
[null,null,null,null,null,null,0,{"$f":"INDEX(Ranks!1983:1983,$G$4)","v":0},0]
[null,null,null,null,null,null,0,{"$f":"INDEX(Ranks!1984:1984,$G$4)","v":0},0]
[null,null,null,null,null,null,0,{"$f":"INDEX(Ranks!1985:1985,$G$4)","v":0},0]
[null,null,null,null,null,null,0,{"$f":"INDEX(Ranks!1986:1986,$G$4)","v":0},0]
[null,null,null,null,null,null,0,{"$f":"INDEX(Ranks!1987:1987,$G$4)","v":0},0]
[null,null,null,null,null,null,0,{"$f":"INDEX(Ranks!1988:1988,$G$4)","v":0},0]
[null,null,null,null,null,null,0,{"$f":"INDEX(Ranks!1989:1989,$G$4)","v":0},0]
[null,null,null,null,null,null,{"$f":"IFERROR(INT(H1990*100),H1990)","v":0},{"$f":"INDEX(Ranks!1990:1990,$G$4)","v":0},{"$f":"IF(H1990=\"\",-1,IF(H1990=-1,\"\",H1990))","v":0}]
[null,null,null,null,null,null,0,{"$f":"INDEX(Ranks!1991:1991,$G$4)","v":0},0]
[null,null,null,null,null,null,0,{"$f":"INDEX(Ranks!1992:1992,$G$4)","v":0},0]
[null,null,null,null,null,null,0,{"$f":"INDEX(Ranks!1993:1993,$G$4)","v":0},0]
[null,null,null,null,null,null,0,{"$f":"INDEX(Ranks!1994:1994,$G$4)","v":0},0]
[null,null,null,null,null,null,0,{"$f":"INDEX(Ranks!1995:1995,$G$4)","v":0},0]
[null,null,null,null,null,null,0,{"$f":"INDEX(Ranks!1996:1996,$G$4)","v":0},0]
[null,null,null,null,null,null,0,{"$f":"INDEX(Ranks!1997:1997,$G$4)","v":0},0]
[null,null,null,null,null,null,0,{"$f":"INDEX(Ranks!1998:1998,$G$4)","v":0},0]
[null,null,null,null,null,null,0,{"$f":"INDEX(Ranks!1999:1999,$G$4)","v":0},0]
[null,null,null,null,null,null,0,{"$f":"INDEX(Ranks!2000:2000,$G$4)","v":0},0]
[null,null,null,null,null,null,0,{"$f":"INDEX(Ranks!2001:2001,$G$4)","v":0},0]
[null,null,null,null,null,null,0,{"$f":"INDEX(Ranks!2002:2002,$G$4)","v":0},0]
[null,null,null,null,null,null,0,{"$f":"INDEX(Ranks!2003:2003,$G$4)","v":0},0]
[null,null,null,null,null,null,0,{"$f":"INDEX(Ranks!2004:2004,$G$4)","v":0},0]
[null,null,null,null,null,null,0,{"$f":"INDEX(Ranks!2005:2005,$G$4)","v":0},0]
[null,null,null,null,null,null,0,{"$f":"INDEX(Ranks!2006:2006,$G$4)","v":0},0]
[null,null,null,null,null,null,0,{"$f":"INDEX(Ranks!2007:2007,$G$4)","v":0},0]
[null,null,null,null,null,null,0,{"$f":"INDEX(Ranks!2008:2008,$G$4)","v":0},0]
[null,null,null,null,null,null,0,{"$f":"INDEX(Ranks!2009:2009,$G$4)","v":0},0]
[null,null,null,null,null,null,0,{"$f":"INDEX(Ranks!2010:2010,$G$4)","v":0},0]
[null,null,null,null,null,null,0,{"$f":"INDEX(Ranks!2011:2011,$G$4)","v":0},0]
[null,null,null,null,null,null,0,{"$f":"INDEX(Ranks!2012:2012,$G$4)","v":0},0]
[null,null,null,null,null,null,0,{"$f":"INDEX(Ranks!2013:2013,$G$4)","v":0},0]
[null,null,null,null,null,null,0,{"$f":"INDEX(Ranks!2014:2014,$G$4)","v":0},0]
[null,null,null,null,null,null,0,{"$f":"INDEX(Ranks!2015:2015,$G$4)","v":0},0]
[null,null,null,null,null,null,0,{"$f":"INDEX(Ranks!2016:2016,$G$4)","v":0},0]
[null,null,null,null,null,null,0,{"$f":"INDEX(Ranks!2017:2017,$G$4)","v":0},0]
[null,null,null,null,null,null,0,{"$f":"INDEX(Ranks!2018:2018,$G$4)","v":0},0]
[null,null,null,null,null,null,0,{"$f":"INDEX(Ranks!2019:2019,$G$4)","v":0},0]
[null,null,null,null,null,null,0,{"$f":"INDEX(Ranks!2020:2020,$G$4)","v":0},0]
[null,null,null,null,null,null,0,{"$f":"INDEX(Ranks!2021:2021,$G$4)","v":0},0]
[null,null,null,null,null,null,0,{"$f":"INDEX(Ranks!2022:2022,$G$4)","v":0},0]
[null,null,null,null,null,null,0,{"$f":"INDEX(Ranks!2023:2023,$G$4)","v":0},0]
[null,null,null,null,null,null,0,{"$f":"INDEX(Ranks!2024:2024,$G$4)","v":0},0]
[null,null,null,null,null,null,0,{"$f":"INDEX(Ranks!2025:2025,$G$4)","v":0},0]
[null,null,null,null,null,null,0,{"$f":"INDEX(Ranks!2026:2026,$G$4)","v":0},0]
[null,null,null,null,null,null,0,{"$f":"INDEX(Ranks!2027:2027,$G$4)","v":0},0]
[null,null,null,null,null,null,0,{"$f":"INDEX(Ranks!2028:2028,$G$4)","v":0},0]
[null,null,null,null,null,null,0,{"$f":"INDEX(Ranks!2029:2029,$G$4)","v":0},0]
[null,null,null,null,null,null,0,{"$f":"INDEX(Ranks!2030:2030,$G$4)","v":0},0]
[null,null,null,null,null,null,0,{"$f":"INDEX(Ranks!2031:2031,$G$4)","v":0},0]
[null,null,null,null,null,null,0,{"$f":"INDEX(Ranks!2032:2032,$G$4)","v":0},0]
[null,null,null,null,null,null,0,{"$f":"INDEX(Ranks!2033:2033,$G$4)","v":0},0]
[null,null,null,null,null,null,0,{"$f":"INDEX(Ranks!2034:2034,$G$4)","v":0},0]
[null,null,null,null,null,null,0,{"$f":"INDEX(Ranks!2035:2035,$G$4)","v":0},0]
[null,null,null,null,null,null,0,{"$f":"INDEX(Ranks!2036:2036,$G$4)","v":0},0]
[null,null,null,null,null,null,0,{"$f":"INDEX(Ranks!2037:2037,$G$4)","v":0},0]
[null,null,null,null,null,null,0,{"$f":"INDEX(Ranks!2038:2038,$G$4)","v":0},0]
[null,null,null,null,null,null,0,{"$f":"INDEX(Ranks!2039:2039,$G$4)","v":0},0]
[null,null,null,null,null,null,0,{"$f":"INDEX(Ranks!2040:2040,$G$4)","v":0},0]
[null,null,null,null,null,null,0,{"$f":"INDEX(Ranks!2041:2041,$G$4)","v":0},0]
[null,null,null,null,null,null,0,{"$f":"INDEX(Ranks!2042:2042,$G$4)","v":0},0]
[null,null,null,null,null,null,0,{"$f":"INDEX(Ranks!2043:2043,$G$4)","v":0},0]
[null,null,null,null,null,null,0,{"$f":"INDEX(Ranks!2044:2044,$G$4)","v":0},0]
[null,null,null,null,null,null,0,{"$f":"INDEX(Ranks!2045:2045,$G$4)","v":0},0]
[null,null,null,null,null,null,0,{"$f":"INDEX(Ranks!2046:2046,$G$4)","v":0},0]
[null,null,null,null,null,null,0,{"$f":"INDEX(Ranks!2047:2047,$G$4)","v":0},0]
[null,null,null,null,null,null,0,{"$f":"INDEX(Ranks!2048:2048,$G$4)","v":0},0]
[null,null,null,null,null,null,0,{"$f":"INDEX(Ranks!2049:2049,$G$4)","v":0},0]
[null,null,null,null,null,null,0,{"$f":"INDEX(Ranks!2050:2050,$G$4)","v":0},0]
[null,null,null,null,null,null,0,{"$f":"INDEX(Ranks!2051:2051,$G$4)","v":0},0]
[null,null,null,null,null,null,0,{"$f":"INDEX(Ranks!2052:2052,$G$4)","v":0},0]
[null,null,null,null,null,null,0,{"$f":"INDEX(Ranks!2053:2053,$G$4)","v":0},0]
[null,null,null,null,null,null,{"$f":"IFERROR(INT(H2054*100),H2054)","v":0},{"$f":"INDEX(Ranks!2054:2054,$G$4)","v":0},{"$f":"IF(H2054=\"\",-1,IF(H2054=-1,\"\",H2054))","v":0}]
[null,null,null,null,null,null,0,{"$f":"INDEX(Ranks!2055:2055,$G$4)","v":0},0]
[null,null,null,null,null,null,0,{"$f":"INDEX(Ranks!2056:2056,$G$4)","v":0},0]
[null,null,null,null,null,null,0,{"$f":"INDEX(Ranks!2057:2057,$G$4)","v":0},0]
[null,null,null,null,null,null,0,{"$f":"INDEX(Ranks!2058:2058,$G$4)","v":0},0]
[null,null,null,null,null,null,0,{"$f":"INDEX(Ranks!2059:2059,$G$4)","v":0},0]
[null,null,null,null,null,null,0,{"$f":"INDEX(Ranks!2060:2060,$G$4)","v":0},0]
[null,null,null,null,null,null,0,{"$f":"INDEX(Ranks!2061:2061,$G$4)","v":0},0]
[null,null,null,null,null,null,0,{"$f":"INDEX(Ranks!2062:2062,$G$4)","v":0},0]
[null,null,null,null,null,null,0,{"$f":"INDEX(Ranks!2063:2063,$G$4)","v":0},0]
[null,null,null,null,null,null,0,{"$f":"INDEX(Ranks!2064:2064,$G$4)","v":0},0]
[null,null,null,null,null,null,0,{"$f":"INDEX(Ranks!2065:2065,$G$4)","v":0},0]
[null,null,null,null,null,null,0,{"$f":"INDEX(Ranks!2066:2066,$G$4)","v":0},0]
[null,null,null,null,null,null,0,{"$f":"INDEX(Ranks!2067:2067,$G$4)","v":0},0]
[null,null,null,null,null,null,0,{"$f":"INDEX(Ranks!2068:2068,$G$4)","v":0},0]
[null,null,null,null,null,null,0,{"$f":"INDEX(Ranks!2069:2069,$G$4)","v":0},0]
[null,null,null,null,null,null,0,{"$f":"INDEX(Ranks!2070:2070,$G$4)","v":0},0]
[null,null,null,null,null,null,0,{"$f":"INDEX(Ranks!2071:2071,$G$4)","v":0},0]
[null,null,null,null,null,null,0,{"$f":"INDEX(Ranks!2072:2072,$G$4)","v":0},0]
[null,null,null,null,null,null,0,{"$f":"INDEX(Ranks!2073:2073,$G$4)","v":0},0]
[null,null,null,null,null,null,0,{"$f":"INDEX(Ranks!2074:2074,$G$4)","v":0},0]
[null,null,null,null,null,null,0,{"$f":"INDEX(Ranks!2075:2075,$G$4)","v":0},0]
[null,null,null,null,null,null,0,{"$f":"INDEX(Ranks!2076:2076,$G$4)","v":0},0]
[null,null,null,null,null,null,0,{"$f":"INDEX(Ranks!2077:2077,$G$4)","v":0},0]
[null,null,null,null,null,null,0,{"$f":"INDEX(Ranks!2078:2078,$G$4)","v":0},0]
[null,null,null,null,null,null,0,{"$f":"INDEX(Ranks!2079:2079,$G$4)","v":0},0]
[null,null,null,null,null,null,0,{"$f":"INDEX(Ranks!2080:2080,$G$4)","v":0},0]
[null,null,null,null,null,null,0,{"$f":"INDEX(Ranks!2081:2081,$G$4)","v":0},0]
[null,null,null,null,null,null,0,{"$f":"INDEX(Ranks!2082:2082,$G$4)","v":0},0]
[null,null,null,null,null,null,0,{"$f":"INDEX(Ranks!2083:2083,$G$4)","v":0},0]
[null,null,null,null,null,null,0,{"$f":"INDEX(Ranks!2084:2084,$G$4)","v":0},0]
[null,null,null,null,null,null,0,{"$f":"INDEX(Ranks!2085:2085,$G$4)","v":0},0]
[null,null,null,null,null,null,0,{"$f":"INDEX(Ranks!2086:2086,$G$4)","v":0},0]
[null,null,null,null,null,null,0,{"$f":"INDEX(Ranks!2087:2087,$G$4)","v":0},0]
[null,null,null,null,null,null,0,{"$f":"INDEX(Ranks!2088:2088,$G$4)","v":0},0]
[null,null,null,null,null,null,0,{"$f":"INDEX(Ranks!2089:2089,$G$4)","v":0},0]
[null,null,null,null,null,null,0,{"$f":"INDEX(Ranks!2090:2090,$G$4)","v":0},0]
[null,null,null,null,null,null,0,{"$f":"INDEX(Ranks!2091:2091,$G$4)","v":0},0]
[null,null,null,null,null,null,0,{"$f":"INDEX(Ranks!2092:2092,$G$4)","v":0},0]
[null,null,null,null,null,null,0,{"$f":"INDEX(Ranks!2093:2093,$G$4)","v":0},0]
[null,null,null,null,null,null,0,{"$f":"INDEX(Ranks!2094:2094,$G$4)","v":0},0]
[null,null,null,null,null,null,0,{"$f":"INDEX(Ranks!2095:2095,$G$4)","v":0},0]
[null,null,null,null,null,null,0,{"$f":"INDEX(Ranks!2096:2096,$G$4)","v":0},0]
[null,null,null,null,null,null,0,{"$f":"INDEX(Ranks!2097:2097,$G$4)","v":0},0]
[null,null,null,null,null,null,0,{"$f":"INDEX(Ranks!2098:2098,$G$4)","v":0},0]
[null,null,null,null,null,null,0,{"$f":"INDEX(Ranks!2099:2099,$G$4)","v":0},0]
[null,null,null,null,null,null,0,{"$f":"INDEX(Ranks!2100:2100,$G$4)","v":0},0]
[null,null,null,null,null,null,0,{"$f":"INDEX(Ranks!2101:2101,$G$4)","v":0},0]
[null,null,null,null,null,null,0,{"$f":"INDEX(Ranks!2102:2102,$G$4)","v":0},0]
[null,null,null,null,null,null,0,{"$f":"INDEX(Ranks!2103:2103,$G$4)","v":0},0]
[null,null,null,null,null,null,0,{"$f":"INDEX(Ranks!2104:2104,$G$4)","v":0},0]
[null,null,null,null,null,null,0,{"$f":"INDEX(Ranks!2105:2105,$G$4)","v":0},0]
[null,null,null,null,null,null,0,{"$f":"INDEX(Ranks!2106:2106,$G$4)","v":0},0]
[null,null,null,null,null,null,0,{"$f":"INDEX(Ranks!2107:2107,$G$4)","v":0},0]
[null,null,null,null,null,null,0,{"$f":"INDEX(Ranks!2108:2108,$G$4)","v":0},0]
[null,null,null,null,null,null,0,{"$f":"INDEX(Ranks!2109:2109,$G$4)","v":0},0]
[null,null,null,null,null,null,0,{"$f":"INDEX(Ranks!2110:2110,$G$4)","v":0},0]
[null,null,null,null,null,null,0,{"$f":"INDEX(Ranks!2111:2111,$G$4)","v":0},0]
[null,null,null,null,null,null,0,{"$f":"INDEX(Ranks!2112:2112,$G$4)","v":0},0]
[null,null,null,null,null,null,0,{"$f":"INDEX(Ranks!2113:2113,$G$4)","v":0},0]
[null,null,null,null,null,null,0,{"$f":"INDEX(Ranks!2114:2114,$G$4)","v":0},0]
[null,null,null,null,null,null,0,{"$f":"INDEX(Ranks!2115:2115,$G$4)","v":0},0]
[null,null,null,null,null,null,0,{"$f":"INDEX(Ranks!2116:2116,$G$4)","v":0},0]
[null,null,null,null,null,null,0,{"$f":"INDEX(Ranks!2117:2117,$G$4)","v":0},0]
[null,null,null,null,null,null,{"$f":"IFERROR(INT(H2118*100),H2118)","v":0},{"$f":"INDEX(Ranks!2118:2118,$G$4)","v":0},{"$f":"IF(H2118=\"\",-1,IF(H2118=-1,\"\",H2118))","v":0}]
[null,null,null,null,null,null,0,{"$f":"INDEX(Ranks!2119:2119,$G$4)","v":0},0]
[null,null,null,null,null,null,0,{"$f":"INDEX(Ranks!2120:2120,$G$4)","v":0},0]
[null,null,null,null,null,null,0,{"$f":"INDEX(Ranks!2121:2121,$G$4)","v":0},0]
[null,null,null,null,null,null,0,{"$f":"INDEX(Ranks!2122:2122,$G$4)","v":0},0]
[null,null,null,null,null,null,0,{"$f":"INDEX(Ranks!2123:2123,$G$4)","v":0},0]
[null,null,null,null,null,null,0,{"$f":"INDEX(Ranks!2124:2124,$G$4)","v":0},0]
[null,null,null,null,null,null,0,{"$f":"INDEX(Ranks!2125:2125,$G$4)","v":0},0]
[null,null,null,null,null,null,0,{"$f":"INDEX(Ranks!2126:2126,$G$4)","v":0},0]
[null,null,null,null,null,null,0,{"$f":"INDEX(Ranks!2127:2127,$G$4)","v":0},0]
[null,null,null,null,null,null,0,{"$f":"INDEX(Ranks!2128:2128,$G$4)","v":0},0]
[null,null,null,null,null,null,0,{"$f":"INDEX(Ranks!2129:2129,$G$4)","v":0},0]
[null,null,null,null,null,null,0,{"$f":"INDEX(Ranks!2130:2130,$G$4)","v":0},0]
[null,null,null,null,null,null,0,{"$f":"INDEX(Ranks!2131:2131,$G$4)","v":0},0]
[null,null,null,null,null,null,0,{"$f":"INDEX(Ranks!2132:2132,$G$4)","v":0},0]
[null,null,null,null,null,null,0,{"$f":"INDEX(Ranks!2133:2133,$G$4)","v":0},0]
[null,null,null,null,null,null,0,{"$f":"INDEX(Ranks!2134:2134,$G$4)","v":0},0]
[null,null,null,null,null,null,0,{"$f":"INDEX(Ranks!2135:2135,$G$4)","v":0},0]
[null,null,null,null,null,null,0,{"$f":"INDEX(Ranks!2136:2136,$G$4)","v":0},0]
[null,null,null,null,null,null,0,{"$f":"INDEX(Ranks!2137:2137,$G$4)","v":0},0]
[null,null,null,null,null,null,0,{"$f":"INDEX(Ranks!2138:2138,$G$4)","v":0},0]
[null,null,null,null,null,null,0,{"$f":"INDEX(Ranks!2139:2139,$G$4)","v":0},0]
[null,null,null,null,null,null,0,{"$f":"INDEX(Ranks!2140:2140,$G$4)","v":0},0]
[null,null,null,null,null,null,0,{"$f":"INDEX(Ranks!2141:2141,$G$4)","v":0},0]
[null,null,null,null,null,null,0,{"$f":"INDEX(Ranks!2142:2142,$G$4)","v":0},0]
[null,null,null,null,null,null,0,{"$f":"INDEX(Ranks!2143:2143,$G$4)","v":0},0]
[null,null,null,null,null,null,0,{"$f":"INDEX(Ranks!2144:2144,$G$4)","v":0},0]
[null,null,null,null,null,null,0,{"$f":"INDEX(Ranks!2145:2145,$G$4)","v":0},0]
[null,null,null,null,null,null,0,{"$f":"INDEX(Ranks!2146:2146,$G$4)","v":0},0]
[null,null,null,null,null,null,0,{"$f":"INDEX(Ranks!2147:2147,$G$4)","v":0},0]
[null,null,null,null,null,null,0,{"$f":"INDEX(Ranks!2148:2148,$G$4)","v":0},0]
[null,null,null,null,null,null,0,{"$f":"INDEX(Ranks!2149:2149,$G$4)","v":0},0]
[null,null,null,null,null,null,0,{"$f":"INDEX(Ranks!2150:2150,$G$4)","v":0},0]
[null,null,null,null,null,null,0,{"$f":"INDEX(Ranks!2151:2151,$G$4)","v":0},0]
[null,null,null,null,null,null,0,{"$f":"INDEX(Ranks!2152:2152,$G$4)","v":0},0]
[null,null,null,null,null,null,0,{"$f":"INDEX(Ranks!2153:2153,$G$4)","v":0},0]
[null,null,null,null,null,null,0,{"$f":"INDEX(Ranks!2154:2154,$G$4)","v":0},0]
[null,null,null,null,null,null,0,{"$f":"INDEX(Ranks!2155:2155,$G$4)","v":0},0]
[null,null,null,null,null,null,0,{"$f":"INDEX(Ranks!2156:2156,$G$4)","v":0},0]
[null,null,null,null,null,null,0,{"$f":"INDEX(Ranks!2157:2157,$G$4)","v":0},0]
[null,null,null,null,null,null,0,{"$f":"INDEX(Ranks!2158:2158,$G$4)","v":0},0]
[null,null,null,null,null,null,0,{"$f":"INDEX(Ranks!2159:2159,$G$4)","v":0},0]
[null,null,null,null,null,null,0,{"$f":"INDEX(Ranks!2160:2160,$G$4)","v":0},0]
[null,null,null,null,null,null,0,{"$f":"INDEX(Ranks!2161:2161,$G$4)","v":0},0]
[null,null,null,null,null,null,0,{"$f":"INDEX(Ranks!2162:2162,$G$4)","v":0},0]
[null,null,null,null,null,null,0,{"$f":"INDEX(Ranks!2163:2163,$G$4)","v":0},0]
[null,null,null,null,null,null,0,{"$f":"INDEX(Ranks!2164:2164,$G$4)","v":0},0]
[null,null,null,null,null,null,0,{"$f":"INDEX(Ranks!2165:2165,$G$4)","v":0},0]
[null,null,null,null,null,null,0,{"$f":"INDEX(Ranks!2166:2166,$G$4)","v":0},0]
[null,null,null,null,null,null,0,{"$f":"INDEX(Ranks!2167:2167,$G$4)","v":0},0]
[null,null,null,null,null,null,0,{"$f":"INDEX(Ranks!2168:2168,$G$4)","v":0},0]
[null,null,null,null,null,null,0,{"$f":"INDEX(Ranks!2169:2169,$G$4)","v":0},0]
[null,null,null,null,null,null,0,{"$f":"INDEX(Ranks!2170:2170,$G$4)","v":0},0]
[null,null,null,null,null,null,0,{"$f":"INDEX(Ranks!2171:2171,$G$4)","v":0},0]
[null,null,null,null,null,null,0,{"$f":"INDEX(Ranks!2172:2172,$G$4)","v":0},0]
[null,null,null,null,null,null,0,{"$f":"INDEX(Ranks!2173:2173,$G$4)","v":0},0]
[null,null,null,null,null,null,0,{"$f":"INDEX(Ranks!2174:2174,$G$4)","v":0},0]
[null,null,null,null,null,null,0,{"$f":"INDEX(Ranks!2175:2175,$G$4)","v":0},0]
[null,null,null,null,null,null,0,{"$f":"INDEX(Ranks!2176:2176,$G$4)","v":0},0]
[null,null,null,null,null,null,0,{"$f":"INDEX(Ranks!2177:2177,$G$4)","v":0},0]
[null,null,null,null,null,null,0,{"$f":"INDEX(Ranks!2178:2178,$G$4)","v":0},0]
[null,null,null,null,null,null,0,{"$f":"INDEX(Ranks!2179:2179,$G$4)","v":0},0]
[null,null,null,null,null,null,0,{"$f":"INDEX(Ranks!2180:2180,$G$4)","v":0},0]
[null,null,null,null,null,null,0,{"$f":"INDEX(Ranks!2181:2181,$G$4)","v":0},0]
[null,null,null,null,null,null,{"$f":"IFERROR(INT(H2182*100),H2182)","v":0},{"$f":"INDEX(Ranks!2182:2182,$G$4)","v":0},{"$f":"IF(H2182=\"\",-1,IF(H2182=-1,\"\",H2182))","v":0}]
[null,null,null,null,null,null,0,{"$f":"INDEX(Ranks!2183:2183,$G$4)","v":0},0]
[null,null,null,null,null,null,0,{"$f":"INDEX(Ranks!2184:2184,$G$4)","v":0},0]
[null,null,null,null,null,null,0,{"$f":"INDEX(Ranks!2185:2185,$G$4)","v":0},0]
[null,null,null,null,null,null,0,{"$f":"INDEX(Ranks!2186:2186,$G$4)","v":0},0]
[null,null,null,null,null,null,0,{"$f":"INDEX(Ranks!2187:2187,$G$4)","v":0},0]
[null,null,null,null,null,null,0,{"$f":"INDEX(Ranks!2188:2188,$G$4)","v":0},0]
[null,null,null,null,null,null,0,{"$f":"INDEX(Ranks!2189:2189,$G$4)","v":0},0]
[null,null,null,null,null,null,0,{"$f":"INDEX(Ranks!2190:2190,$G$4)","v":0},0]
[null,null,null,null,null,null,0,{"$f":"INDEX(Ranks!2191:2191,$G$4)","v":0},0]
[null,null,null,null,null,null,0,{"$f":"INDEX(Ranks!2192:2192,$G$4)","v":0},0]
[null,null,null,null,null,null,0,{"$f":"INDEX(Ranks!2193:2193,$G$4)","v":0},0]
[null,null,null,null,null,null,0,{"$f":"INDEX(Ranks!2194:2194,$G$4)","v":0},0]
[null,null,null,null,null,null,0,{"$f":"INDEX(Ranks!2195:2195,$G$4)","v":0},0]
[null,null,null,null,null,null,0,{"$f":"INDEX(Ranks!2196:2196,$G$4)","v":0},0]
[null,null,null,null,null,null,0,{"$f":"INDEX(Ranks!2197:2197,$G$4)","v":0},0]
[null,null,null,null,null,null,0,{"$f":"INDEX(Ranks!2198:2198,$G$4)","v":0},0]
[null,null,null,null,null,null,0,{"$f":"INDEX(Ranks!2199:2199,$G$4)","v":0},0]
[null,null,null,null,null,null,0,{"$f":"INDEX(Ranks!2200:2200,$G$4)","v":0},0]
[null,null,null,null,null,null,0,{"$f":"INDEX(Ranks!2201:2201,$G$4)","v":0},0]
[null,null,null,null,null,null,0,{"$f":"INDEX(Ranks!2202:2202,$G$4)","v":0},0]
[null,null,null,null,null,null,0,{"$f":"INDEX(Ranks!2203:2203,$G$4)","v":0},0]
[null,null,null,null,null,null,0,{"$f":"INDEX(Ranks!2204:2204,$G$4)","v":0},0]
[null,null,null,null,null,null,0,{"$f":"INDEX(Ranks!2205:2205,$G$4)","v":0},0]
[null,null,null,null,null,null,0,{"$f":"INDEX(Ranks!2206:2206,$G$4)","v":0},0]
[null,null,null,null,null,null,0,{"$f":"INDEX(Ranks!2207:2207,$G$4)","v":0},0]
[null,null,null,null,null,null,0,{"$f":"INDEX(Ranks!2208:2208,$G$4)","v":0},0]
[null,null,null,null,null,null,0,{"$f":"INDEX(Ranks!2209:2209,$G$4)","v":0},0]
[null,null,null,null,null,null,0,{"$f":"INDEX(Ranks!2210:2210,$G$4)","v":0},0]
[null,null,null,null,null,null,0,{"$f":"INDEX(Ranks!2211:2211,$G$4)","v":0},0]
[null,null,null,null,null,null,0,{"$f":"INDEX(Ranks!2212:2212,$G$4)","v":0},0]
[null,null,null,null,null,null,0,{"$f":"INDEX(Ranks!2213:2213,$G$4)","v":0},0]
[null,null,null,null,null,null,0,{"$f":"INDEX(Ranks!2214:2214,$G$4)","v":0},0]
[null,null,null,null,null,null,0,{"$f":"INDEX(Ranks!2215:2215,$G$4)","v":0},0]
[null,null,null,null,null,null,0,{"$f":"INDEX(Ranks!2216:2216,$G$4)","v":0},0]
[null,null,null,null,null,null,0,{"$f":"INDEX(Ranks!2217:2217,$G$4)","v":0},0]
[null,null,null,null,null,null,0,{"$f":"INDEX(Ranks!2218:2218,$G$4)","v":0},0]
[null,null,null,null,null,null,0,{"$f":"INDEX(Ranks!2219:2219,$G$4)","v":0},0]
[null,null,null,null,null,null,0,{"$f":"INDEX(Ranks!2220:2220,$G$4)","v":0},0]
[null,null,null,null,null,null,0,{"$f":"INDEX(Ranks!2221:2221,$G$4)","v":0},0]
[null,null,null,null,null,null,0,{"$f":"INDEX(Ranks!2222:2222,$G$4)","v":0},0]
[null,null,null,null,null,null,0,{"$f":"INDEX(Ranks!2223:2223,$G$4)","v":0},0]
[null,null,null,null,null,null,0,{"$f":"INDEX(Ranks!2224:2224,$G$4)","v":0},0]
[null,null,null,null,null,null,0,{"$f":"INDEX(Ranks!2225:2225,$G$4)","v":0},0]
[null,null,null,null,null,null,0,{"$f":"INDEX(Ranks!2226:2226,$G$4)","v":0},0]
[null,null,null,null,null,null,0,{"$f":"INDEX(Ranks!2227:2227,$G$4)","v":0},0]
[null,null,null,null,null,null,0,{"$f":"INDEX(Ranks!2228:2228,$G$4)","v":0},0]
[null,null,null,null,null,null,0,{"$f":"INDEX(Ranks!2229:2229,$G$4)","v":0},0]
[null,null,null,null,null,null,0,{"$f":"INDEX(Ranks!2230:2230,$G$4)","v":0},0]
[null,null,null,null,null,null,0,{"$f":"INDEX(Ranks!2231:2231,$G$4)","v":0},0]
[null,null,null,null,null,null,0,{"$f":"INDEX(Ranks!2232:2232,$G$4)","v":0},0]
[null,null,null,null,null,null,0,{"$f":"INDEX(Ranks!2233:2233,$G$4)","v":0},0]
[null,null,null,null,null,null,0,{"$f":"INDEX(Ranks!2234:2234,$G$4)","v":0},0]
[null,null,null,null,null,null,0,{"$f":"INDEX(Ranks!2235:2235,$G$4)","v":0},0]
[null,null,null,null,null,null,0,{"$f":"INDEX(Ranks!2236:2236,$G$4)","v":0},0]
[null,null,null,null,null,null,0,{"$f":"INDEX(Ranks!2237:2237,$G$4)","v":0},0]
[null,null,null,null,null,null,0,{"$f":"INDEX(Ranks!2238:2238,$G$4)","v":0},0]
[null,null,null,null,null,null,0,{"$f":"INDEX(Ranks!2239:2239,$G$4)","v":0},0]
[null,null,null,null,null,null,0,{"$f":"INDEX(Ranks!2240:2240,$G$4)","v":0},0]
[null,null,null,null,null,null,0,{"$f":"INDEX(Ranks!2241:2241,$G$4)","v":0},0]
[null,null,null,null,null,null,0,{"$f":"INDEX(Ranks!2242:2242,$G$4)","v":0},0]
[null,null,null,null,null,null,0,{"$f":"INDEX(Ranks!2243:2243,$G$4)","v":0},0]
[null,null,null,null,null,null,0,{"$f":"INDEX(Ranks!2244:2244,$G$4)","v":0},0]
[null,null,null,null,null,null,0,{"$f":"INDEX(Ranks!2245:2245,$G$4)","v":0},0]
[null,null,null,null,null,null,{"$f":"IFERROR(INT(H2246*100),H2246)","v":0},{"$f":"INDEX(Ranks!2246:2246,$G$4)","v":0},{"$f":"IF(H2246=\"\",-1,IF(H2246=-1,\"\",H2246))","v":0}]
[null,null,null,null,null,null,0,{"$f":"INDEX(Ranks!2247:2247,$G$4)","v":0},0]
[null,null,null,null,null,null,0,{"$f":"INDEX(Ranks!2248:2248,$G$4)","v":0},0]
[null,null,null,null,null,null,0,{"$f":"INDEX(Ranks!2249:2249,$G$4)","v":0},0]
[null,null,null,null,null,null,0,{"$f":"INDEX(Ranks!2250:2250,$G$4)","v":0},0]
[null,null,null,null,null,null,0,{"$f":"INDEX(Ranks!2251:2251,$G$4)","v":0},0]
[null,null,null,null,null,null,0,{"$f":"INDEX(Ranks!2252:2252,$G$4)","v":0},0]
[null,null,null,null,null,null,0,{"$f":"INDEX(Ranks!2253:2253,$G$4)","v":0},0]
[null,null,null,null,null,null,0,{"$f":"INDEX(Ranks!2254:2254,$G$4)","v":0},0]
[null,null,null,null,null,null,0,{"$f":"INDEX(Ranks!2255:2255,$G$4)","v":0},0]
[null,null,null,null,null,null,0,{"$f":"INDEX(Ranks!2256:2256,$G$4)","v":0},0]
[null,null,null,null,null,null,0,{"$f":"INDEX(Ranks!2257:2257,$G$4)","v":0},0]
[null,null,null,null,null,null,0,{"$f":"INDEX(Ranks!2258:2258,$G$4)","v":0},0]
[null,null,null,null,null,null,0,{"$f":"INDEX(Ranks!2259:2259,$G$4)","v":0},0]
[null,null,null,null,null,null,0,{"$f":"INDEX(Ranks!2260:2260,$G$4)","v":0},0]
[null,null,null,null,null,null,0,{"$f":"INDEX(Ranks!2261:2261,$G$4)","v":0},0]
[null,null,null,null,null,null,0,{"$f":"INDEX(Ranks!2262:2262,$G$4)","v":0},0]
[null,null,null,null,null,null,0,{"$f":"INDEX(Ranks!2263:2263,$G$4)","v":0},0]
[null,null,null,null,null,null,0,{"$f":"INDEX(Ranks!2264:2264,$G$4)","v":0},0]
[null,null,null,null,null,null,0,{"$f":"INDEX(Ranks!2265:2265,$G$4)","v":0},0]
[null,null,null,null,null,null,0,{"$f":"INDEX(Ranks!2266:2266,$G$4)","v":0},0]
[null,null,null,null,null,null,0,{"$f":"INDEX(Ranks!2267:2267,$G$4)","v":0},0]
[null,null,null,null,null,null,0,{"$f":"INDEX(Ranks!2268:2268,$G$4)","v":0},0]
[null,null,null,null,null,null,0,{"$f":"INDEX(Ranks!2269:2269,$G$4)","v":0},0]
[null,null,null,null,null,null,0,{"$f":"INDEX(Ranks!2270:2270,$G$4)","v":0},0]
[null,null,null,null,null,null,0,{"$f":"INDEX(Ranks!2271:2271,$G$4)","v":0},0]
[null,null,null,null,null,null,0,{"$f":"INDEX(Ranks!2272:2272,$G$4)","v":0},0]
[null,null,null,null,null,null,0,{"$f":"INDEX(Ranks!2273:2273,$G$4)","v":0},0]
[null,null,null,null,null,null,0,{"$f":"INDEX(Ranks!2274:2274,$G$4)","v":0},0]
[null,null,null,null,null,null,0,{"$f":"INDEX(Ranks!2275:2275,$G$4)","v":0},0]
[null,null,null,null,null,null,0,{"$f":"INDEX(Ranks!2276:2276,$G$4)","v":0},0]
[null,null,null,null,null,null,0,{"$f":"INDEX(Ranks!2277:2277,$G$4)","v":0},0]
[null,null,null,null,null,null,0,{"$f":"INDEX(Ranks!2278:2278,$G$4)","v":0},0]
[null,null,null,null,null,null,0,{"$f":"INDEX(Ranks!2279:2279,$G$4)","v":0},0]
[null,null,null,null,null,null,0,{"$f":"INDEX(Ranks!2280:2280,$G$4)","v":0},0]
[null,null,null,null,null,null,0,{"$f":"INDEX(Ranks!2281:2281,$G$4)","v":0},0]
[null,null,null,null,null,null,0,{"$f":"INDEX(Ranks!2282:2282,$G$4)","v":0},0]
[null,null,null,null,null,null,0,{"$f":"INDEX(Ranks!2283:2283,$G$4)","v":0},0]
[null,null,null,null,null,null,0,{"$f":"INDEX(Ranks!2284:2284,$G$4)","v":0},0]
[null,null,null,null,null,null,0,{"$f":"INDEX(Ranks!2285:2285,$G$4)","v":0},0]
[null,null,null,null,null,null,0,{"$f":"INDEX(Ranks!2286:2286,$G$4)","v":0},0]
[null,null,null,null,null,null,0,{"$f":"INDEX(Ranks!2287:2287,$G$4)","v":0},0]
[null,null,null,null,null,null,0,{"$f":"INDEX(Ranks!2288:2288,$G$4)","v":0},0]
[null,null,null,null,null,null,0,{"$f":"INDEX(Ranks!2289:2289,$G$4)","v":0},0]
[null,null,null,null,null,null,0,{"$f":"INDEX(Ranks!2290:2290,$G$4)","v":0},0]
[null,null,null,null,null,null,0,{"$f":"INDEX(Ranks!2291:2291,$G$4)","v":0},0]
[null,null,null,null,null,null,0,{"$f":"INDEX(Ranks!2292:2292,$G$4)","v":0},0]
[null,null,null,null,null,null,0,{"$f":"INDEX(Ranks!2293:2293,$G$4)","v":0},0]
[null,null,null,null,null,null,0,{"$f":"INDEX(Ranks!2294:2294,$G$4)","v":0},0]
[null,null,null,null,null,null,0,{"$f":"INDEX(Ranks!2295:2295,$G$4)","v":0},0]
[null,null,null,null,null,null,0,{"$f":"INDEX(Ranks!2296:2296,$G$4)","v":0},0]
[null,null,null,null,null,null,0,{"$f":"INDEX(Ranks!2297:2297,$G$4)","v":0},0]
[null,null,null,null,null,null,0,{"$f":"INDEX(Ranks!2298:2298,$G$4)","v":0},0]
[null,null,null,null,null,null,0,{"$f":"INDEX(Ranks!2299:2299,$G$4)","v":0},0]
[null,null,null,null,null,null,0,{"$f":"INDEX(Ranks!2300:2300,$G$4)","v":0},0]
[null,null,null,null,null,null,0,{"$f":"INDEX(Ranks!2301:2301,$G$4)","v":0},0]
[null,null,null,null,null,null,0,{"$f":"INDEX(Ranks!2302:2302,$G$4)","v":0},0]
[null,null,null,null,null,null,0,{"$f":"INDEX(Ranks!2303:2303,$G$4)","v":0},0]
[null,null,null,null,null,null,0,{"$f":"INDEX(Ranks!2304:2304,$G$4)","v":0},0]
[null,null,null,null,null,null,0,{"$f":"INDEX(Ranks!2305:2305,$G$4)","v":0},0]
[null,null,null,null,null,null,0,{"$f":"INDEX(Ranks!2306:2306,$G$4)","v":0},0]
[null,null,null,null,null,null,0,{"$f":"INDEX(Ranks!2307:2307,$G$4)","v":0},0]
[null,null,null,null,null,null,0,{"$f":"INDEX(Ranks!2308:2308,$G$4)","v":0},0]
[null,null,null,null,null,null,0,{"$f":"INDEX(Ranks!2309:2309,$G$4)","v":0},0]
[null,null,null,null,null,null,{"$f":"IFERROR(INT(H2310*100),H2310)","v":0},{"$f":"INDEX(Ranks!2310:2310,$G$4)","v":0},{"$f":"IF(H2310=\"\",-1,IF(H2310=-1,\"\",H2310))","v":0}]
[null,null,null,null,null,null,0,{"$f":"INDEX(Ranks!2311:2311,$G$4)","v":0},0]
[null,null,null,null,null,null,0,{"$f":"INDEX(Ranks!2312:2312,$G$4)","v":0},0]
[null,null,null,null,null,null,0,{"$f":"INDEX(Ranks!2313:2313,$G$4)","v":0},0]
[null,null,null,null,null,null,0,{"$f":"INDEX(Ranks!2314:2314,$G$4)","v":0},0]
[null,null,null,null,null,null,0,{"$f":"INDEX(Ranks!2315:2315,$G$4)","v":0},0]
[null,null,null,null,null,null,0,{"$f":"INDEX(Ranks!2316:2316,$G$4)","v":0},0]
[null,null,null,null,null,null,0,{"$f":"INDEX(Ranks!2317:2317,$G$4)","v":0},0]
[null,null,null,null,null,null,0,{"$f":"INDEX(Ranks!2318:2318,$G$4)","v":0},0]
[null,null,null,null,null,null,0,{"$f":"INDEX(Ranks!2319:2319,$G$4)","v":0},0]
[null,null,null,null,null,null,0,{"$f":"INDEX(Ranks!2320:2320,$G$4)","v":0},0]
[null,null,null,null,null,null,0,{"$f":"INDEX(Ranks!2321:2321,$G$4)","v":0},0]
[null,null,null,null,null,null,0,{"$f":"INDEX(Ranks!2322:2322,$G$4)","v":0},0]
[null,null,null,null,null,null,0,{"$f":"INDEX(Ranks!2323:2323,$G$4)","v":0},0]
[null,null,null,null,null,null,0,{"$f":"INDEX(Ranks!2324:2324,$G$4)","v":0},0]
[null,null,null,null,null,null,0,{"$f":"INDEX(Ranks!2325:2325,$G$4)","v":0},0]
[null,null,null,null,null,null,0,{"$f":"INDEX(Ranks!2326:2326,$G$4)","v":0},0]
[null,null,null,null,null,null,0,{"$f":"INDEX(Ranks!2327:2327,$G$4)","v":0},0]
[null,null,null,null,null,null,0,{"$f":"INDEX(Ranks!2328:2328,$G$4)","v":0},0]
[null,null,null,null,null,null,0,{"$f":"INDEX(Ranks!2329:2329,$G$4)","v":0},0]
[null,null,null,null,null,null,0,{"$f":"INDEX(Ranks!2330:2330,$G$4)","v":0},0]
[null,null,null,null,null,null,0,{"$f":"INDEX(Ranks!2331:2331,$G$4)","v":0},0]
[null,null,null,null,null,null,0,{"$f":"INDEX(Ranks!2332:2332,$G$4)","v":0},0]
[null,null,null,null,null,null,0,{"$f":"INDEX(Ranks!2333:2333,$G$4)","v":0},0]
[null,null,null,null,null,null,0,{"$f":"INDEX(Ranks!2334:2334,$G$4)","v":0},0]
[null,null,null,null,null,null,0,{"$f":"INDEX(Ranks!2335:2335,$G$4)","v":0},0]
[null,null,null,null,null,null,0,{"$f":"INDEX(Ranks!2336:2336,$G$4)","v":0},0]
[null,null,null,null,null,null,0,{"$f":"INDEX(Ranks!2337:2337,$G$4)","v":0},0]
[null,null,null,null,null,null,0,{"$f":"INDEX(Ranks!2338:2338,$G$4)","v":0},0]
[null,null,null,null,null,null,0,{"$f":"INDEX(Ranks!2339:2339,$G$4)","v":0},0]
[null,null,null,null,null,null,0,{"$f":"INDEX(Ranks!2340:2340,$G$4)","v":0},0]
[null,null,null,null,null,null,0,{"$f":"INDEX(Ranks!2341:2341,$G$4)","v":0},0]
[null,null,null,null,null,null,0,{"$f":"INDEX(Ranks!2342:2342,$G$4)","v":0},0]
[null,null,null,null,null,null,0,{"$f":"INDEX(Ranks!2343:2343,$G$4)","v":0},0]
[null,null,null,null,null,null,0,{"$f":"INDEX(Ranks!2344:2344,$G$4)","v":0},0]
[null,null,null,null,null,null,0,{"$f":"INDEX(Ranks!2345:2345,$G$4)","v":0},0]
[null,null,null,null,null,null,0,{"$f":"INDEX(Ranks!2346:2346,$G$4)","v":0},0]
[null,null,null,null,null,null,0,{"$f":"INDEX(Ranks!2347:2347,$G$4)","v":0},0]
[null,null,null,null,null,null,0,{"$f":"INDEX(Ranks!2348:2348,$G$4)","v":0},0]
[null,null,null,null,null,null,0,{"$f":"INDEX(Ranks!2349:2349,$G$4)","v":0},0]
[null,null,null,null,null,null,0,{"$f":"INDEX(Ranks!2350:2350,$G$4)","v":0},0]
[null,null,null,null,null,null,0,{"$f":"INDEX(Ranks!2351:2351,$G$4)","v":0},0]
[null,null,null,null,null,null,0,{"$f":"INDEX(Ranks!2352:2352,$G$4)","v":0},0]
[null,null,null,null,null,null,0,{"$f":"INDEX(Ranks!2353:2353,$G$4)","v":0},0]
[null,null,null,null,null,null,0,{"$f":"INDEX(Ranks!2354:2354,$G$4)","v":0},0]
[null,null,null,null,null,null,0,{"$f":"INDEX(Ranks!2355:2355,$G$4)","v":0},0]
[null,null,null,null,null,null,0,{"$f":"INDEX(Ranks!2356:2356,$G$4)","v":0},0]
[null,null,null,null,null,null,0,{"$f":"INDEX(Ranks!2357:2357,$G$4)","v":0},0]
[null,null,null,null,null,null,0,{"$f":"INDEX(Ranks!2358:2358,$G$4)","v":0},0]
[null,null,null,null,null,null,0,{"$f":"INDEX(Ranks!2359:2359,$G$4)","v":0},0]
[null,null,null,null,null,null,0,{"$f":"INDEX(Ranks!2360:2360,$G$4)","v":0},0]
[null,null,null,null,null,null,0,{"$f":"INDEX(Ranks!2361:2361,$G$4)","v":0},0]
[null,null,null,null,null,null,0,{"$f":"INDEX(Ranks!2362:2362,$G$4)","v":0},0]
[null,null,null,null,null,null,0,{"$f":"INDEX(Ranks!2363:2363,$G$4)","v":0},0]
[null,null,null,null,null,null,0,{"$f":"INDEX(Ranks!2364:2364,$G$4)","v":0},0]
[null,null,null,null,null,null,0,{"$f":"INDEX(Ranks!2365:2365,$G$4)","v":0},0]
[null,null,null,null,null,null,0,{"$f":"INDEX(Ranks!2366:2366,$G$4)","v":0},0]
[null,null,null,null,null,null,0,{"$f":"INDEX(Ranks!2367:2367,$G$4)","v":0},0]
[null,null,null,null,null,null,0,{"$f":"INDEX(Ranks!2368:2368,$G$4)","v":0},0]
[null,null,null,null,null,null,0,{"$f":"INDEX(Ranks!2369:2369,$G$4)","v":0},0]
[null,null,null,null,null,null,0,{"$f":"INDEX(Ranks!2370:2370,$G$4)","v":0},0]
[null,null,null,null,null,null,0,{"$f":"INDEX(Ranks!2371:2371,$G$4)","v":0},0]
[null,null,null,null,null,null,0,{"$f":"INDEX(Ranks!2372:2372,$G$4)","v":0},0]
[null,null,null,null,null,null,0,{"$f":"INDEX(Ranks!2373:2373,$G$4)","v":0},0]
[null,null,null,null,null,null,{"$f":"IFERROR(INT(H2374*100),H2374)","v":0},{"$f":"INDEX(Ranks!2374:2374,$G$4)","v":0},{"$f":"IF(H2374=\"\",-1,IF(H2374=-1,\"\",H2374))","v":0}]
[null,null,null,null,null,null,0,{"$f":"INDEX(Ranks!2375:2375,$G$4)","v":0},0]
[null,null,null,null,null,null,0,{"$f":"INDEX(Ranks!2376:2376,$G$4)","v":0},0]
[null,null,null,null,null,null,0,{"$f":"INDEX(Ranks!2377:2377,$G$4)","v":0},0]
[null,null,null,null,null,null,0,{"$f":"INDEX(Ranks!2378:2378,$G$4)","v":0},0]
[null,null,null,null,null,null,0,{"$f":"INDEX(Ranks!2379:2379,$G$4)","v":0},0]
[null,null,null,null,null,null,0,{"$f":"INDEX(Ranks!2380:2380,$G$4)","v":0},0]
[null,null,null,null,null,null,0,{"$f":"INDEX(Ranks!2381:2381,$G$4)","v":0},0]
[null,null,null,null,null,null,0,{"$f":"INDEX(Ranks!2382:2382,$G$4)","v":0},0]
[null,null,null,null,null,null,0,{"$f":"INDEX(Ranks!2383:2383,$G$4)","v":0},0]
[null,null,null,null,null,null,0,{"$f":"INDEX(Ranks!2384:2384,$G$4)","v":0},0]
[null,null,null,null,null,null,0,{"$f":"INDEX(Ranks!2385:2385,$G$4)","v":0},0]
[null,null,null,null,null,null,0,{"$f":"INDEX(Ranks!2386:2386,$G$4)","v":0},0]
[null,null,null,null,null,null,0,{"$f":"INDEX(Ranks!2387:2387,$G$4)","v":0},0]
[null,null,null,null,null,null,0,{"$f":"INDEX(Ranks!2388:2388,$G$4)","v":0},0]
[null,null,null,null,null,null,0,{"$f":"INDEX(Ranks!2389:2389,$G$4)","v":0},0]
[null,null,null,null,null,null,0,{"$f":"INDEX(Ranks!2390:2390,$G$4)","v":0},0]
[null,null,null,null,null,null,0,{"$f":"INDEX(Ranks!2391:2391,$G$4)","v":0},0]
[null,null,null,null,null,null,0,{"$f":"INDEX(Ranks!2392:2392,$G$4)","v":0},0]
[null,null,null,null,null,null,0,{"$f":"INDEX(Ranks!2393:2393,$G$4)","v":0},0]
[null,null,null,null,null,null,0,{"$f":"INDEX(Ranks!2394:2394,$G$4)","v":0},0]
[null,null,null,null,null,null,0,{"$f":"INDEX(Ranks!2395:2395,$G$4)","v":0},0]
[null,null,null,null,null,null,0,{"$f":"INDEX(Ranks!2396:2396,$G$4)","v":0},0]
[null,null,null,null,null,null,0,{"$f":"INDEX(Ranks!2397:2397,$G$4)","v":0},0]
[null,null,null,null,null,null,0,{"$f":"INDEX(Ranks!2398:2398,$G$4)","v":0},0]
[null,null,null,null,null,null,0,{"$f":"INDEX(Ranks!2399:2399,$G$4)","v":0},0]
[null,null,null,null,null,null,0,{"$f":"INDEX(Ranks!2400:2400,$G$4)","v":0},0]
[null,null,null,null,null,null,0,{"$f":"INDEX(Ranks!2401:2401,$G$4)","v":0},0]
[null,null,null,null,null,null,0,{"$f":"INDEX(Ranks!2402:2402,$G$4)","v":0},0]
[null,null,null,null,null,null,0,{"$f":"INDEX(Ranks!2403:2403,$G$4)","v":0},0]
[null,null,null,null,null,null,0,{"$f":"INDEX(Ranks!2404:2404,$G$4)","v":0},0]
[null,null,null,null,null,null,0,{"$f":"INDEX(Ranks!2405:2405,$G$4)","v":0},0]
[null,null,null,null,null,null,0,{"$f":"INDEX(Ranks!2406:2406,$G$4)","v":0},0]
[null,null,null,null,null,null,0,{"$f":"INDEX(Ranks!2407:2407,$G$4)","v":0},0]
[null,null,null,null,null,null,0,{"$f":"INDEX(Ranks!2408:2408,$G$4)","v":0},0]
[null,null,null,null,null,null,0,{"$f":"INDEX(Ranks!2409:2409,$G$4)","v":0},0]
[null,null,null,null,null,null,0,{"$f":"INDEX(Ranks!2410:2410,$G$4)","v":0},0]
[null,null,null,null,null,null,0,{"$f":"INDEX(Ranks!2411:2411,$G$4)","v":0},0]
[null,null,null,null,null,null,0,{"$f":"INDEX(Ranks!2412:2412,$G$4)","v":0},0]
[null,null,null,null,null,null,0,{"$f":"INDEX(Ranks!2413:2413,$G$4)","v":0},0]
[null,null,null,null,null,null,0,{"$f":"INDEX(Ranks!2414:2414,$G$4)","v":0},0]
[null,null,null,null,null,null,0,{"$f":"INDEX(Ranks!2415:2415,$G$4)","v":0},0]
[null,null,null,null,null,null,0,{"$f":"INDEX(Ranks!2416:2416,$G$4)","v":0},0]
[null,null,null,null,null,null,0,{"$f":"INDEX(Ranks!2417:2417,$G$4)","v":0},0]
[null,null,null,null,null,null,0,{"$f":"INDEX(Ranks!2418:2418,$G$4)","v":0},0]
[null,null,null,null,null,null,0,{"$f":"INDEX(Ranks!2419:2419,$G$4)","v":0},0]
[null,null,null,null,null,null,0,{"$f":"INDEX(Ranks!2420:2420,$G$4)","v":0},0]
[null,null,null,null,null,null,0,{"$f":"INDEX(Ranks!2421:2421,$G$4)","v":0},0]
[null,null,null,null,null,null,0,{"$f":"INDEX(Ranks!2422:2422,$G$4)","v":0},0]
[null,null,null,null,null,null,0,{"$f":"INDEX(Ranks!2423:2423,$G$4)","v":0},0]
[null,null,null,null,null,null,0,{"$f":"INDEX(Ranks!2424:2424,$G$4)","v":0},0]
[null,null,null,null,null,null,0,{"$f":"INDEX(Ranks!2425:2425,$G$4)","v":0},0]
[null,null,null,null,null,null,0,{"$f":"INDEX(Ranks!2426:2426,$G$4)","v":0},0]
[null,null,null,null,null,null,0,{"$f":"INDEX(Ranks!2427:2427,$G$4)","v":0},0]
[null,null,null,null,null,null,0,{"$f":"INDEX(Ranks!2428:2428,$G$4)","v":0},0]
[null,null,null,null,null,null,0,{"$f":"INDEX(Ranks!2429:2429,$G$4)","v":0},0]
[null,null,null,null,null,null,0,{"$f":"INDEX(Ranks!2430:2430,$G$4)","v":0},0]
[null,null,null,null,null,null,0,{"$f":"INDEX(Ranks!2431:2431,$G$4)","v":0},0]
[null,null,null,null,null,null,0,{"$f":"INDEX(Ranks!2432:2432,$G$4)","v":0},0]
[null,null,null,null,null,null,0,{"$f":"INDEX(Ranks!2433:2433,$G$4)","v":0},0]
[null,null,null,null,null,null,0,{"$f":"INDEX(Ranks!2434:2434,$G$4)","v":0},0]
[null,null,null,null,null,null,0,{"$f":"INDEX(Ranks!2435:2435,$G$4)","v":0},0]
[null,null,null,null,null,null,0,{"$f":"INDEX(Ranks!2436:2436,$G$4)","v":0},0]
[null,null,null,null,null,null,0,{"$f":"INDEX(Ranks!2437:2437,$G$4)","v":0},0]
[null,null,null,null,null,null,{"$f":"IFERROR(INT(H2438*100),H2438)","v":0},{"$f":"INDEX(Ranks!2438:2438,$G$4)","v":0},{"$f":"IF(H2438=\"\",-1,IF(H2438=-1,\"\",H2438))","v":0}]
[null,null,null,null,null,null,0,{"$f":"INDEX(Ranks!2439:2439,$G$4)","v":0},0]
[null,null,null,null,null,null,0,{"$f":"INDEX(Ranks!2440:2440,$G$4)","v":0},0]
[null,null,null,null,null,null,0,{"$f":"INDEX(Ranks!2441:2441,$G$4)","v":0},0]
[null,null,null,null,null,null,0,{"$f":"INDEX(Ranks!2442:2442,$G$4)","v":0},0]
[null,null,null,null,null,null,0,{"$f":"INDEX(Ranks!2443:2443,$G$4)","v":0},0]
[null,null,null,null,null,null,0,{"$f":"INDEX(Ranks!2444:2444,$G$4)","v":0},0]
[null,null,null,null,null,null,0,{"$f":"INDEX(Ranks!2445:2445,$G$4)","v":0},0]
[null,null,null,null,null,null,0,{"$f":"INDEX(Ranks!2446:2446,$G$4)","v":0},0]
[null,null,null,null,null,null,0,{"$f":"INDEX(Ranks!2447:2447,$G$4)","v":0},0]
[null,null,null,null,null,null,0,{"$f":"INDEX(Ranks!2448:2448,$G$4)","v":0},0]
[null,null,null,null,null,null,0,{"$f":"INDEX(Ranks!2449:2449,$G$4)","v":0},0]
[null,null,null,null,null,null,0,{"$f":"INDEX(Ranks!2450:2450,$G$4)","v":0},0]
[null,null,null,null,null,null,0,{"$f":"INDEX(Ranks!2451:2451,$G$4)","v":0},0]
[null,null,null,null,null,null,0,{"$f":"INDEX(Ranks!2452:2452,$G$4)","v":0},0]
[null,null,null,null,null,null,0,{"$f":"INDEX(Ranks!2453:2453,$G$4)","v":0},0]
[null,null,null,null,null,null,0,{"$f":"INDEX(Ranks!2454:2454,$G$4)","v":0},0]
[null,null,null,null,null,null,0,{"$f":"INDEX(Ranks!2455:2455,$G$4)","v":0},0]
[null,null,null,null,null,null,0,{"$f":"INDEX(Ranks!2456:2456,$G$4)","v":0},0]
[null,null,null,null,null,null,0,{"$f":"INDEX(Ranks!2457:2457,$G$4)","v":0},0]
[null,null,null,null,null,null,0,{"$f":"INDEX(Ranks!2458:2458,$G$4)","v":0},0]
[null,null,null,null,null,null,0,{"$f":"INDEX(Ranks!2459:2459,$G$4)","v":0},0]
[null,null,null,null,null,null,0,{"$f":"INDEX(Ranks!2460:2460,$G$4)","v":0},0]
[null,null,null,null,null,null,0,{"$f":"INDEX(Ranks!2461:2461,$G$4)","v":0},0]
[null,null,null,null,null,null,0,{"$f":"INDEX(Ranks!2462:2462,$G$4)","v":0},0]
[null,null,null,null,null,null,0,{"$f":"INDEX(Ranks!2463:2463,$G$4)","v":0},0]
[null,null,null,null,null,null,0,{"$f":"INDEX(Ranks!2464:2464,$G$4)","v":0},0]
[null,null,null,null,null,null,0,{"$f":"INDEX(Ranks!2465:2465,$G$4)","v":0},0]
[null,null,null,null,null,null,0,{"$f":"INDEX(Ranks!2466:2466,$G$4)","v":0},0]
[null,null,null,null,null,null,0,{"$f":"INDEX(Ranks!2467:2467,$G$4)","v":0},0]
[null,null,null,null,null,null,0,{"$f":"INDEX(Ranks!2468:2468,$G$4)","v":0},0]
[null,null,null,null,null,null,0,{"$f":"INDEX(Ranks!2469:2469,$G$4)","v":0},0]
[null,null,null,null,null,null,0,{"$f":"INDEX(Ranks!2470:2470,$G$4)","v":0},0]
[null,null,null,null,null,null,0,{"$f":"INDEX(Ranks!2471:2471,$G$4)","v":0},0]
[null,null,null,null,null,null,0,{"$f":"INDEX(Ranks!2472:2472,$G$4)","v":0},0]
[null,null,null,null,null,null,0,{"$f":"INDEX(Ranks!2473:2473,$G$4)","v":0},0]
[null,null,null,null,null,null,0,{"$f":"INDEX(Ranks!2474:2474,$G$4)","v":0},0]
[null,null,null,null,null,null,0,{"$f":"INDEX(Ranks!2475:2475,$G$4)","v":0},0]
[null,null,null,null,null,null,0,{"$f":"INDEX(Ranks!2476:2476,$G$4)","v":0},0]
[null,null,null,null,null,null,0,{"$f":"INDEX(Ranks!2477:2477,$G$4)","v":0},0]
[null,null,null,null,null,null,0,{"$f":"INDEX(Ranks!2478:2478,$G$4)","v":0},0]
[null,null,null,null,null,null,0,{"$f":"INDEX(Ranks!2479:2479,$G$4)","v":0},0]
[null,null,null,null,null,null,0,{"$f":"INDEX(Ranks!2480:2480,$G$4)","v":0},0]
[null,null,null,null,null,null,0,{"$f":"INDEX(Ranks!2481:2481,$G$4)","v":0},0]
[null,null,null,null,null,null,0,{"$f":"INDEX(Ranks!2482:2482,$G$4)","v":0},0]
[null,null,null,null,null,null,0,{"$f":"INDEX(Ranks!2483:2483,$G$4)","v":0},0]
[null,null,null,null,null,null,0,{"$f":"INDEX(Ranks!2484:2484,$G$4)","v":0},0]
[null,null,null,null,null,null,0,{"$f":"INDEX(Ranks!2485:2485,$G$4)","v":0},0]
[null,null,null,null,null,null,0,{"$f":"INDEX(Ranks!2486:2486,$G$4)","v":0},0]
[null,null,null,null,null,null,0,{"$f":"INDEX(Ranks!2487:2487,$G$4)","v":0},0]
[null,null,null,null,null,null,0,{"$f":"INDEX(Ranks!2488:2488,$G$4)","v":0},0]
[null,null,null,null,null,null,0,{"$f":"INDEX(Ranks!2489:2489,$G$4)","v":0},0]
[null,null,null,null,null,null,0,{"$f":"INDEX(Ranks!2490:2490,$G$4)","v":0},0]
[null,null,null,null,null,null,0,{"$f":"INDEX(Ranks!2491:2491,$G$4)","v":0},0]
[null,null,null,null,null,null,0,{"$f":"INDEX(Ranks!2492:2492,$G$4)","v":0},0]
[null,null,null,null,null,null,0,{"$f":"INDEX(Ranks!2493:2493,$G$4)","v":0},0]
[null,null,null,null,null,null,0,{"$f":"INDEX(Ranks!2494:2494,$G$4)","v":0},0]
[null,null,null,null,null,null,0,{"$f":"INDEX(Ranks!2495:2495,$G$4)","v":0},0]
[null,null,null,null,null,null,0,{"$f":"INDEX(Ranks!2496:2496,$G$4)","v":0},0]
[null,null,null,null,null,null,0,{"$f":"INDEX(Ranks!2497:2497,$G$4)","v":0},0]
[null,null,null,null,null,null,0,{"$f":"INDEX(Ranks!2498:2498,$G$4)","v":0},0]
[null,null,null,null,null,null,0,{"$f":"INDEX(Ranks!2499:2499,$G$4)","v":0},0]
[null,null,null,null,null,null,0,{"$f":"INDEX(Ranks!2500:2500,$G$4)","v":0},0]
[null,null,null,null,null,null,0,{"$f":"INDEX(Ranks!2501:2501,$G$4)","v":0},0]
[null,null,null,null,null,null,{"$f":"IFERROR(INT(H2502*100),H2502)","v":0},{"$f":"INDEX(Ranks!2502:2502,$G$4)","v":0},{"$f":"IF(H2502=\"\",-1,IF(H2502=-1,\"\",H2502))","v":0}]
[null,null,null,null,null,null,0,{"$f":"INDEX(Ranks!2503:2503,$G$4)","v":0},0]
[null,null,null,null,null,null,0,{"$f":"INDEX(Ranks!2504:2504,$G$4)","v":0},0]
[null,null,null,null,null,null,0,{"$f":"INDEX(Ranks!2505:2505,$G$4)","v":0},0]
[null,null,null,null,null,null,0,{"$f":"INDEX(Ranks!2506:2506,$G$4)","v":0},0]
[null,null,null,null,null,null,0,{"$f":"INDEX(Ranks!2507:2507,$G$4)","v":0},0]
[null,null,null,null,null,null,0,{"$f":"INDEX(Ranks!2508:2508,$G$4)","v":0},0]
[null,null,null,null,null,null,0,{"$f":"INDEX(Ranks!2509:2509,$G$4)","v":0},0]
[null,null,null,null,null,null,0,{"$f":"INDEX(Ranks!2510:2510,$G$4)","v":0},0]
[null,null,null,null,null,null,0,{"$f":"INDEX(Ranks!2511:2511,$G$4)","v":0},0]
[null,null,null,null,null,null,0,{"$f":"INDEX(Ranks!2512:2512,$G$4)","v":0},0]
[null,null,null,null,null,null,0,{"$f":"INDEX(Ranks!2513:2513,$G$4)","v":0},0]
[null,null,null,null,null,null,0,{"$f":"INDEX(Ranks!2514:2514,$G$4)","v":0},0]
[null,null,null,null,null,null,0,{"$f":"INDEX(Ranks!2515:2515,$G$4)","v":0},0]
[null,null,null,null,null,null,0,{"$f":"INDEX(Ranks!2516:2516,$G$4)","v":0},0]
[null,null,null,null,null,null,0,{"$f":"INDEX(Ranks!2517:2517,$G$4)","v":0},0]
[null,null,null,null,null,null,0,{"$f":"INDEX(Ranks!2518:2518,$G$4)","v":0},0]
[null,null,null,null,null,null,0,{"$f":"INDEX(Ranks!2519:2519,$G$4)","v":0},0]
[null,null,null,null,null,null,0,{"$f":"INDEX(Ranks!2520:2520,$G$4)","v":0},0]
[null,null,null,null,null,null,0,{"$f":"INDEX(Ranks!2521:2521,$G$4)","v":0},0]
[null,null,null,null,null,null,0,{"$f":"INDEX(Ranks!2522:2522,$G$4)","v":0},0]
[null,null,null,null,null,null,0,{"$f":"INDEX(Ranks!2523:2523,$G$4)","v":0},0]
[null,null,null,null,null,null,0,{"$f":"INDEX(Ranks!2524:2524,$G$4)","v":0},0]
[null,null,null,null,null,null,0,{"$f":"INDEX(Ranks!2525:2525,$G$4)","v":0},0]
[null,null,null,null,null,null,0,{"$f":"INDEX(Ranks!2526:2526,$G$4)","v":0},0]
[null,null,null,null,null,null,0,{"$f":"INDEX(Ranks!2527:2527,$G$4)","v":0},0]
[null,null,null,null,null,null,0,{"$f":"INDEX(Ranks!2528:2528,$G$4)","v":0},0]
[null,null,null,null,null,null,0,{"$f":"INDEX(Ranks!2529:2529,$G$4)","v":0},0]
[null,null,null,null,null,null,0,{"$f":"INDEX(Ranks!2530:2530,$G$4)","v":0},0]
[null,null,null,null,null,null,0,{"$f":"INDEX(Ranks!2531:2531,$G$4)","v":0},0]
[null,null,null,null,null,null,0,{"$f":"INDEX(Ranks!2532:2532,$G$4)","v":0},0]
[null,null,null,null,null,null,0,{"$f":"INDEX(Ranks!2533:2533,$G$4)","v":0},0]
[null,null,null,null,null,null,0,{"$f":"INDEX(Ranks!2534:2534,$G$4)","v":0},0]
[null,null,null,null,null,null,0,{"$f":"INDEX(Ranks!2535:2535,$G$4)","v":0},0]
[null,null,null,null,null,null,0,{"$f":"INDEX(Ranks!2536:2536,$G$4)","v":0},0]
[null,null,null,null,null,null,0,{"$f":"INDEX(Ranks!2537:2537,$G$4)","v":0},0]
[null,null,null,null,null,null,0,{"$f":"INDEX(Ranks!2538:2538,$G$4)","v":0},0]
[null,null,null,null,null,null,0,{"$f":"INDEX(Ranks!2539:2539,$G$4)","v":0},0]
[null,null,null,null,null,null,0,{"$f":"INDEX(Ranks!2540:2540,$G$4)","v":0},0]
[null,null,null,null,null,null,0,{"$f":"INDEX(Ranks!2541:2541,$G$4)","v":0},0]
[null,null,null,null,null,null,0,{"$f":"INDEX(Ranks!2542:2542,$G$4)","v":0},0]
[null,null,null,null,null,null,0,{"$f":"INDEX(Ranks!2543:2543,$G$4)","v":0},0]
[null,null,null,null,null,null,0,{"$f":"INDEX(Ranks!2544:2544,$G$4)","v":0},0]
[null,null,null,null,null,null,0,{"$f":"INDEX(Ranks!2545:2545,$G$4)","v":0},0]
[null,null,null,null,null,null,0,{"$f":"INDEX(Ranks!2546:2546,$G$4)","v":0},0]
[null,null,null,null,null,null,0,{"$f":"INDEX(Ranks!2547:2547,$G$4)","v":0},0]
[null,null,null,null,null,null,0,{"$f":"INDEX(Ranks!2548:2548,$G$4)","v":0},0]
[null,null,null,null,null,null,0,{"$f":"INDEX(Ranks!2549:2549,$G$4)","v":0},0]
[null,null,null,null,null,null,0,{"$f":"INDEX(Ranks!2550:2550,$G$4)","v":0},0]
[null,null,null,null,null,null,0,{"$f":"INDEX(Ranks!2551:2551,$G$4)","v":0},0]
[null,null,null,null,null,null,0,{"$f":"INDEX(Ranks!2552:2552,$G$4)","v":0},0]
[null,null,null,null,null,null,0,{"$f":"INDEX(Ranks!2553:2553,$G$4)","v":0},0]
[null,null,null,null,null,null,0,{"$f":"INDEX(Ranks!2554:2554,$G$4)","v":0},0]
[null,null,null,null,null,null,0,{"$f":"INDEX(Ranks!2555:2555,$G$4)","v":0},0]
[null,null,null,null,null,null,0,{"$f":"INDEX(Ranks!2556:2556,$G$4)","v":0},0]
[null,null,null,null,null,null,0,{"$f":"INDEX(Ranks!2557:2557,$G$4)","v":0},0]
[null,null,null,null,null,null,0,{"$f":"INDEX(Ranks!2558:2558,$G$4)","v":0},0]
[null,null,null,null,null,null,0,{"$f":"INDEX(Ranks!2559:2559,$G$4)","v":0},0]
[null,null,null,null,null,null,0,{"$f":"INDEX(Ranks!2560:2560,$G$4)","v":0},0]
[null,null,null,null,null,null,0,{"$f":"INDEX(Ranks!2561:2561,$G$4)","v":0},0]
[null,null,null,null,null,null,0,{"$f":"INDEX(Ranks!2562:2562,$G$4)","v":0},0]
[null,null,null,null,null,null,0,{"$f":"INDEX(Ranks!2563:2563,$G$4)","v":0},0]
[null,null,null,null,null,null,0,{"$f":"INDEX(Ranks!2564:2564,$G$4)","v":0},0]
[null,null,null,null,null,null,0,{"$f":"INDEX(Ranks!2565:2565,$G$4)","v":0},0]
[null,null,null,null,null,null,{"$f":"IFERROR(INT(H2566*100),H2566)","v":0},{"$f":"INDEX(Ranks!2566:2566,$G$4)","v":0},{"$f":"IF(H2566=\"\",-1,IF(H2566=-1,\"\",H2566))","v":0}]
[null,null,null,null,null,null,0,{"$f":"INDEX(Ranks!2567:2567,$G$4)","v":0},0]
[null,null,null,null,null,null,0,{"$f":"INDEX(Ranks!2568:2568,$G$4)","v":0},0]
[null,null,null,null,null,null,0,{"$f":"INDEX(Ranks!2569:2569,$G$4)","v":0},0]
[null,null,null,null,null,null,0,{"$f":"INDEX(Ranks!2570:2570,$G$4)","v":0},0]
[null,null,null,null,null,null,0,{"$f":"INDEX(Ranks!2571:2571,$G$4)","v":0},0]
[null,null,null,null,null,null,0,{"$f":"INDEX(Ranks!2572:2572,$G$4)","v":0},0]
[null,null,null,null,null,null,0,{"$f":"INDEX(Ranks!2573:2573,$G$4)","v":0},0]
[null,null,null,null,null,null,0,{"$f":"INDEX(Ranks!2574:2574,$G$4)","v":0},0]
[null,null,null,null,null,null,0,{"$f":"INDEX(Ranks!2575:2575,$G$4)","v":0},0]
[null,null,null,null,null,null,0,{"$f":"INDEX(Ranks!2576:2576,$G$4)","v":0},0]
[null,null,null,null,null,null,0,{"$f":"INDEX(Ranks!2577:2577,$G$4)","v":0},0]
[null,null,null,null,null,null,0,{"$f":"INDEX(Ranks!2578:2578,$G$4)","v":0},0]
[null,null,null,null,null,null,0,{"$f":"INDEX(Ranks!2579:2579,$G$4)","v":0},0]
[null,null,null,null,null,null,0,{"$f":"INDEX(Ranks!2580:2580,$G$4)","v":0},0]
[null,null,null,null,null,null,0,{"$f":"INDEX(Ranks!2581:2581,$G$4)","v":0},0]
[null,null,null,null,null,null,0,{"$f":"INDEX(Ranks!2582:2582,$G$4)","v":0},0]
[null,null,null,null,null,null,0,{"$f":"INDEX(Ranks!2583:2583,$G$4)","v":0},0]
[null,null,null,null,null,null,0,{"$f":"INDEX(Ranks!2584:2584,$G$4)","v":0},0]
[null,null,null,null,null,null,0,{"$f":"INDEX(Ranks!2585:2585,$G$4)","v":0},0]
[null,null,null,null,null,null,0,{"$f":"INDEX(Ranks!2586:2586,$G$4)","v":0},0]
[null,null,null,null,null,null,0,{"$f":"INDEX(Ranks!2587:2587,$G$4)","v":0},0]
[null,null,null,null,null,null,0,{"$f":"INDEX(Ranks!2588:2588,$G$4)","v":0},0]
[null,null,null,null,null,null,0,{"$f":"INDEX(Ranks!2589:2589,$G$4)","v":0},0]
[null,null,null,null,null,null,0,{"$f":"INDEX(Ranks!2590:2590,$G$4)","v":0},0]
[null,null,null,null,null,null,0,{"$f":"INDEX(Ranks!2591:2591,$G$4)","v":0},0]
[null,null,null,null,null,null,0,{"$f":"INDEX(Ranks!2592:2592,$G$4)","v":0},0]
[null,null,null,null,null,null,0,{"$f":"INDEX(Ranks!2593:2593,$G$4)","v":0},0]
[null,null,null,null,null,null,0,{"$f":"INDEX(Ranks!2594:2594,$G$4)","v":0},0]
[null,null,null,null,null,null,0,{"$f":"INDEX(Ranks!2595:2595,$G$4)","v":0},0]
[null,null,null,null,null,null,0,{"$f":"INDEX(Ranks!2596:2596,$G$4)","v":0},0]
[null,null,null,null,null,null,0,{"$f":"INDEX(Ranks!2597:2597,$G$4)","v":0},0]
[null,null,null,null,null,null,0,{"$f":"INDEX(Ranks!2598:2598,$G$4)","v":0},0]
[null,null,null,null,null,null,0,{"$f":"INDEX(Ranks!2599:2599,$G$4)","v":0},0]
[null,null,null,null,null,null,0,{"$f":"INDEX(Ranks!2600:2600,$G$4)","v":0},0]
[null,null,null,null,null,null,0,{"$f":"INDEX(Ranks!2601:2601,$G$4)","v":0},0]
[null,null,null,null,null,null,0,{"$f":"INDEX(Ranks!2602:2602,$G$4)","v":0},0]
[null,null,null,null,null,null,0,{"$f":"INDEX(Ranks!2603:2603,$G$4)","v":0},0]
[null,null,null,null,null,null,0,{"$f":"INDEX(Ranks!2604:2604,$G$4)","v":0},0]
[null,null,null,null,null,null,0,{"$f":"INDEX(Ranks!2605:2605,$G$4)","v":0},0]
[null,null,null,null,null,null,0,{"$f":"INDEX(Ranks!2606:2606,$G$4)","v":0},0]
[null,null,null,null,null,null,0,{"$f":"INDEX(Ranks!2607:2607,$G$4)","v":0},0]
[null,null,null,null,null,null,0,{"$f":"INDEX(Ranks!2608:2608,$G$4)","v":0},0]
[null,null,null,null,null,null,0,{"$f":"INDEX(Ranks!2609:2609,$G$4)","v":0},0]
[null,null,null,null,null,null,0,{"$f":"INDEX(Ranks!2610:2610,$G$4)","v":0},0]
[null,null,null,null,null,null,0,{"$f":"INDEX(Ranks!2611:2611,$G$4)","v":0},0]
[null,null,null,null,null,null,0,{"$f":"INDEX(Ranks!2612:2612,$G$4)","v":0},0]
[null,null,null,null,null,null,0,{"$f":"INDEX(Ranks!2613:2613,$G$4)","v":0},0]
[null,null,null,null,null,null,0,{"$f":"INDEX(Ranks!2614:2614,$G$4)","v":0},0]
[null,null,null,null,null,null,0,{"$f":"INDEX(Ranks!2615:2615,$G$4)","v":0},0]
[null,null,null,null,null,null,0,{"$f":"INDEX(Ranks!2616:2616,$G$4)","v":0},0]
[null,null,null,null,null,null,0,{"$f":"INDEX(Ranks!2617:2617,$G$4)","v":0},0]
[null,null,null,null,null,null,0,{"$f":"INDEX(Ranks!2618:2618,$G$4)","v":0},0]
[null,null,null,null,null,null,0,{"$f":"INDEX(Ranks!2619:2619,$G$4)","v":0},0]
[null,null,null,null,null,null,0,{"$f":"INDEX(Ranks!2620:2620,$G$4)","v":0},0]
[null,null,null,null,null,null,0,{"$f":"INDEX(Ranks!2621:2621,$G$4)","v":0},0]
[null,null,null,null,null,null,0,{"$f":"INDEX(Ranks!2622:2622,$G$4)","v":0},0]
[null,null,null,null,null,null,0,{"$f":"INDEX(Ranks!2623:2623,$G$4)","v":0},0]
[null,null,null,null,null,null,0,{"$f":"INDEX(Ranks!2624:2624,$G$4)","v":0},0]
[null,null,null,null,null,null,0,{"$f":"INDEX(Ranks!2625:2625,$G$4)","v":0},0]
[null,null,null,null,null,null,0,{"$f":"INDEX(Ranks!2626:2626,$G$4)","v":0},0]
[null,null,null,null,null,null,0,{"$f":"INDEX(Ranks!2627:2627,$G$4)","v":0},0]
[null,null,null,null,null,null,0,{"$f":"INDEX(Ranks!2628:2628,$G$4)","v":0},0]
[null,null,null,null,null,null,0,{"$f":"INDEX(Ranks!2629:2629,$G$4)","v":0},0]
[null,null,null,null,null,null,{"$f":"IFERROR(INT(H2630*100),H2630)","v":0},{"$f":"INDEX(Ranks!2630:2630,$G$4)","v":0},{"$f":"IF(H2630=\"\",-1,IF(H2630=-1,\"\",H2630))","v":0}]
[null,null,null,null,null,null,0,{"$f":"INDEX(Ranks!2631:2631,$G$4)","v":0},0]
[null,null,null,null,null,null,0,{"$f":"INDEX(Ranks!2632:2632,$G$4)","v":0},0]
[null,null,null,null,null,null,0,{"$f":"INDEX(Ranks!2633:2633,$G$4)","v":0},0]
[null,null,null,null,null,null,0,{"$f":"INDEX(Ranks!2634:2634,$G$4)","v":0},0]
[null,null,null,null,null,null,0,{"$f":"INDEX(Ranks!2635:2635,$G$4)","v":0},0]
[null,null,null,null,null,null,0,{"$f":"INDEX(Ranks!2636:2636,$G$4)","v":0},0]
[null,null,null,null,null,null,0,{"$f":"INDEX(Ranks!2637:2637,$G$4)","v":0},0]
[null,null,null,null,null,null,0,{"$f":"INDEX(Ranks!2638:2638,$G$4)","v":0},0]
[null,null,null,null,null,null,0,{"$f":"INDEX(Ranks!2639:2639,$G$4)","v":0},0]
[null,null,null,null,null,null,0,{"$f":"INDEX(Ranks!2640:2640,$G$4)","v":0},0]
[null,null,null,null,null,null,0,{"$f":"INDEX(Ranks!2641:2641,$G$4)","v":0},0]
[null,null,null,null,null,null,0,{"$f":"INDEX(Ranks!2642:2642,$G$4)","v":0},0]
[null,null,null,null,null,null,0,{"$f":"INDEX(Ranks!2643:2643,$G$4)","v":0},0]
[null,null,null,null,null,null,0,{"$f":"INDEX(Ranks!2644:2644,$G$4)","v":0},0]
[null,null,null,null,null,null,0,{"$f":"INDEX(Ranks!2645:2645,$G$4)","v":0},0]
[null,null,null,null,null,null,0,{"$f":"INDEX(Ranks!2646:2646,$G$4)","v":0},0]
[null,null,null,null,null,null,0,{"$f":"INDEX(Ranks!2647:2647,$G$4)","v":0},0]
[null,null,null,null,null,null,0,{"$f":"INDEX(Ranks!2648:2648,$G$4)","v":0},0]
[null,null,null,null,null,null,0,{"$f":"INDEX(Ranks!2649:2649,$G$4)","v":0},0]
[null,null,null,null,null,null,0,{"$f":"INDEX(Ranks!2650:2650,$G$4)","v":0},0]
[null,null,null,null,null,null,0,{"$f":"INDEX(Ranks!2651:2651,$G$4)","v":0},0]
[null,null,null,null,null,null,0,{"$f":"INDEX(Ranks!2652:2652,$G$4)","v":0},0]
[null,null,null,null,null,null,0,{"$f":"INDEX(Ranks!2653:2653,$G$4)","v":0},0]
[null,null,null,null,null,null,0,{"$f":"INDEX(Ranks!2654:2654,$G$4)","v":0},0]
[null,null,null,null,null,null,0,{"$f":"INDEX(Ranks!2655:2655,$G$4)","v":0},0]
[null,null,null,null,null,null,0,{"$f":"INDEX(Ranks!2656:2656,$G$4)","v":0},0]
[null,null,null,null,null,null,0,{"$f":"INDEX(Ranks!2657:2657,$G$4)","v":0},0]
[null,null,null,null,null,null,0,{"$f":"INDEX(Ranks!2658:2658,$G$4)","v":0},0]
[null,null,null,null,null,null,0,{"$f":"INDEX(Ranks!2659:2659,$G$4)","v":0},0]
[null,null,null,null,null,null,0,{"$f":"INDEX(Ranks!2660:2660,$G$4)","v":0},0]
[null,null,null,null,null,null,0,{"$f":"INDEX(Ranks!2661:2661,$G$4)","v":0},0]
[null,null,null,null,null,null,0,{"$f":"INDEX(Ranks!2662:2662,$G$4)","v":0},0]
[null,null,null,null,null,null,0,{"$f":"INDEX(Ranks!2663:2663,$G$4)","v":0},0]
[null,null,null,null,null,null,0,{"$f":"INDEX(Ranks!2664:2664,$G$4)","v":0},0]
[null,null,null,null,null,null,0,{"$f":"INDEX(Ranks!2665:2665,$G$4)","v":0},0]
[null,null,null,null,null,null,0,{"$f":"INDEX(Ranks!2666:2666,$G$4)","v":0},0]
[null,null,null,null,null,null,0,{"$f":"INDEX(Ranks!2667:2667,$G$4)","v":0},0]
[null,null,null,null,null,null,0,{"$f":"INDEX(Ranks!2668:2668,$G$4)","v":0},0]
[null,null,null,null,null,null,0,{"$f":"INDEX(Ranks!2669:2669,$G$4)","v":0},0]
[null,null,null,null,null,null,0,{"$f":"INDEX(Ranks!2670:2670,$G$4)","v":0},0]
[null,null,null,null,null,null,0,{"$f":"INDEX(Ranks!2671:2671,$G$4)","v":0},0]
[null,null,null,null,null,null,0,{"$f":"INDEX(Ranks!2672:2672,$G$4)","v":0},0]
[null,null,null,null,null,null,0,{"$f":"INDEX(Ranks!2673:2673,$G$4)","v":0},0]
[null,null,null,null,null,null,0,{"$f":"INDEX(Ranks!2674:2674,$G$4)","v":0},0]
[null,null,null,null,null,null,0,{"$f":"INDEX(Ranks!2675:2675,$G$4)","v":0},0]
[null,null,null,null,null,null,0,{"$f":"INDEX(Ranks!2676:2676,$G$4)","v":0},0]
[null,null,null,null,null,null,0,{"$f":"INDEX(Ranks!2677:2677,$G$4)","v":0},0]
[null,null,null,null,null,null,0,{"$f":"INDEX(Ranks!2678:2678,$G$4)","v":0},0]
[null,null,null,null,null,null,0,{"$f":"INDEX(Ranks!2679:2679,$G$4)","v":0},0]
[null,null,null,null,null,null,0,{"$f":"INDEX(Ranks!2680:2680,$G$4)","v":0},0]
[null,null,null,null,null,null,0,{"$f":"INDEX(Ranks!2681:2681,$G$4)","v":0},0]
[null,null,null,null,null,null,0,{"$f":"INDEX(Ranks!2682:2682,$G$4)","v":0},0]
[null,null,null,null,null,null,0,{"$f":"INDEX(Ranks!2683:2683,$G$4)","v":0},0]
[null,null,null,null,null,null,0,{"$f":"INDEX(Ranks!2684:2684,$G$4)","v":0},0]
[null,null,null,null,null,null,0,{"$f":"INDEX(Ranks!2685:2685,$G$4)","v":0},0]
[null,null,null,null,null,null,0,{"$f":"INDEX(Ranks!2686:2686,$G$4)","v":0},0]
[null,null,null,null,null,null,0,{"$f":"INDEX(Ranks!2687:2687,$G$4)","v":0},0]
[null,null,null,null,null,null,0,{"$f":"INDEX(Ranks!2688:2688,$G$4)","v":0},0]
[null,null,null,null,null,null,0,{"$f":"INDEX(Ranks!2689:2689,$G$4)","v":0},0]
[null,null,null,null,null,null,0,{"$f":"INDEX(Ranks!2690:2690,$G$4)","v":0},0]
[null,null,null,null,null,null,0,{"$f":"INDEX(Ranks!2691:2691,$G$4)","v":0},0]
[null,null,null,null,null,null,0,{"$f":"INDEX(Ranks!2692:2692,$G$4)","v":0},0]
[null,null,null,null,null,null,0,{"$f":"INDEX(Ranks!2693:2693,$G$4)","v":0},0]
[null,null,null,null,null,null,{"$f":"IFERROR(INT(H2694*100),H2694)","v":0},{"$f":"INDEX(Ranks!2694:2694,$G$4)","v":0},{"$f":"IF(H2694=\"\",-1,IF(H2694=-1,\"\",H2694))","v":0}]
[null,null,null,null,null,null,0,{"$f":"INDEX(Ranks!2695:2695,$G$4)","v":0},0]
[null,null,null,null,null,null,0,{"$f":"INDEX(Ranks!2696:2696,$G$4)","v":0},0]
[null,null,null,null,null,null,0,{"$f":"INDEX(Ranks!2697:2697,$G$4)","v":0},0]
[null,null,null,null,null,null,0,{"$f":"INDEX(Ranks!2698:2698,$G$4)","v":0},0]
[null,null,null,null,null,null,0,{"$f":"INDEX(Ranks!2699:2699,$G$4)","v":0},0]
[null,null,null,null,null,null,0,{"$f":"INDEX(Ranks!2700:2700,$G$4)","v":0},0]
[null,null,null,null,null,null,0,{"$f":"INDEX(Ranks!2701:2701,$G$4)","v":0},0]
[null,null,null,null,null,null,0,{"$f":"INDEX(Ranks!2702:2702,$G$4)","v":0},0]
[null,null,null,null,null,null,0,{"$f":"INDEX(Ranks!2703:2703,$G$4)","v":0},0]
[null,null,null,null,null,null,0,{"$f":"INDEX(Ranks!2704:2704,$G$4)","v":0},0]
[null,null,null,null,null,null,0,{"$f":"INDEX(Ranks!2705:2705,$G$4)","v":0},0]
[null,null,null,null,null,null,0,{"$f":"INDEX(Ranks!2706:2706,$G$4)","v":0},0]
[null,null,null,null,null,null,0,{"$f":"INDEX(Ranks!2707:2707,$G$4)","v":0},0]
[null,null,null,null,null,null,0,{"$f":"INDEX(Ranks!2708:2708,$G$4)","v":0},0]
[null,null,null,null,null,null,0,{"$f":"INDEX(Ranks!2709:2709,$G$4)","v":0},0]
[null,null,null,null,null,null,0,{"$f":"INDEX(Ranks!2710:2710,$G$4)","v":0},0]
[null,null,null,null,null,null,0,{"$f":"INDEX(Ranks!2711:2711,$G$4)","v":0},0]
[null,null,null,null,null,null,0,{"$f":"INDEX(Ranks!2712:2712,$G$4)","v":0},0]
[null,null,null,null,null,null,0,{"$f":"INDEX(Ranks!2713:2713,$G$4)","v":0},0]
[null,null,null,null,null,null,0,{"$f":"INDEX(Ranks!2714:2714,$G$4)","v":0},0]
[null,null,null,null,null,null,0,{"$f":"INDEX(Ranks!2715:2715,$G$4)","v":0},0]
[null,null,null,null,null,null,0,{"$f":"INDEX(Ranks!2716:2716,$G$4)","v":0},0]
[null,null,null,null,null,null,0,{"$f":"INDEX(Ranks!2717:2717,$G$4)","v":0},0]
[null,null,null,null,null,null,0,{"$f":"INDEX(Ranks!2718:2718,$G$4)","v":0},0]
[null,null,null,null,null,null,0,{"$f":"INDEX(Ranks!2719:2719,$G$4)","v":0},0]
[null,null,null,null,null,null,0,{"$f":"INDEX(Ranks!2720:2720,$G$4)","v":0},0]
[null,null,null,null,null,null,0,{"$f":"INDEX(Ranks!2721:2721,$G$4)","v":0},0]
[null,null,null,null,null,null,0,{"$f":"INDEX(Ranks!2722:2722,$G$4)","v":0},0]
[null,null,null,null,null,null,0,{"$f":"INDEX(Ranks!2723:2723,$G$4)","v":0},0]
[null,null,null,null,null,null,0,{"$f":"INDEX(Ranks!2724:2724,$G$4)","v":0},0]
[null,null,null,null,null,null,0,{"$f":"INDEX(Ranks!2725:2725,$G$4)","v":0},0]
[null,null,null,null,null,null,0,{"$f":"INDEX(Ranks!2726:2726,$G$4)","v":0},0]
[null,null,null,null,null,null,0,{"$f":"INDEX(Ranks!2727:2727,$G$4)","v":0},0]
[null,null,null,null,null,null,0,{"$f":"INDEX(Ranks!2728:2728,$G$4)","v":0},0]
[null,null,null,null,null,null,0,{"$f":"INDEX(Ranks!2729:2729,$G$4)","v":0},0]
[null,null,null,null,null,null,0,{"$f":"INDEX(Ranks!2730:2730,$G$4)","v":0},0]
[null,null,null,null,null,null,0,{"$f":"INDEX(Ranks!2731:2731,$G$4)","v":0},0]
[null,null,null,null,null,null,0,{"$f":"INDEX(Ranks!2732:2732,$G$4)","v":0},0]
[null,null,null,null,null,null,0,{"$f":"INDEX(Ranks!2733:2733,$G$4)","v":0},0]
[null,null,null,null,null,null,0,{"$f":"INDEX(Ranks!2734:2734,$G$4)","v":0},0]
[null,null,null,null,null,null,0,{"$f":"INDEX(Ranks!2735:2735,$G$4)","v":0},0]
[null,null,null,null,null,null,0,{"$f":"INDEX(Ranks!2736:2736,$G$4)","v":0},0]
[null,null,null,null,null,null,0,{"$f":"INDEX(Ranks!2737:2737,$G$4)","v":0},0]
[null,null,null,null,null,null,0,{"$f":"INDEX(Ranks!2738:2738,$G$4)","v":0},0]
[null,null,null,null,null,null,0,{"$f":"INDEX(Ranks!2739:2739,$G$4)","v":0},0]
[null,null,null,null,null,null,0,{"$f":"INDEX(Ranks!2740:2740,$G$4)","v":0},0]
[null,null,null,null,null,null,0,{"$f":"INDEX(Ranks!2741:2741,$G$4)","v":0},0]
[null,null,null,null,null,null,0,{"$f":"INDEX(Ranks!2742:2742,$G$4)","v":0},0]
[null,null,null,null,null,null,0,{"$f":"INDEX(Ranks!2743:2743,$G$4)","v":0},0]
[null,null,null,null,null,null,0,{"$f":"INDEX(Ranks!2744:2744,$G$4)","v":0},0]
[null,null,null,null,null,null,0,{"$f":"INDEX(Ranks!2745:2745,$G$4)","v":0},0]
[null,null,null,null,null,null,0,{"$f":"INDEX(Ranks!2746:2746,$G$4)","v":0},0]
[null,null,null,null,null,null,0,{"$f":"INDEX(Ranks!2747:2747,$G$4)","v":0},0]
[null,null,null,null,null,null,0,{"$f":"INDEX(Ranks!2748:2748,$G$4)","v":0},0]
[null,null,null,null,null,null,0,{"$f":"INDEX(Ranks!2749:2749,$G$4)","v":0},0]
[null,null,null,null,null,null,0,{"$f":"INDEX(Ranks!2750:2750,$G$4)","v":0},0]
[null,null,null,null,null,null,0,{"$f":"INDEX(Ranks!2751:2751,$G$4)","v":0},0]
[null,null,null,null,null,null,0,{"$f":"INDEX(Ranks!2752:2752,$G$4)","v":0},0]
[null,null,null,null,null,null,0,{"$f":"INDEX(Ranks!2753:2753,$G$4)","v":0},0]
[null,null,null,null,null,null,0,{"$f":"INDEX(Ranks!2754:2754,$G$4)","v":0},0]
[null,null,null,null,null,null,0,{"$f":"INDEX(Ranks!2755:2755,$G$4)","v":0},0]
[null,null,null,null,null,null,0,{"$f":"INDEX(Ranks!2756:2756,$G$4)","v":0},0]
[null,null,null,null,null,null,0,{"$f":"INDEX(Ranks!2757:2757,$G$4)","v":0},0]
[null,null,null,null,null,null,{"$f":"IFERROR(INT(H2758*100),H2758)","v":0},{"$f":"INDEX(Ranks!2758:2758,$G$4)","v":0},{"$f":"IF(H2758=\"\",-1,IF(H2758=-1,\"\",H2758))","v":0}]
[null,null,null,null,null,null,0,{"$f":"INDEX(Ranks!2759:2759,$G$4)","v":0},0]
[null,null,null,null,null,null,0,{"$f":"INDEX(Ranks!2760:2760,$G$4)","v":0},0]
[null,null,null,null,null,null,0,{"$f":"INDEX(Ranks!2761:2761,$G$4)","v":0},0]
[null,null,null,null,null,null,0,{"$f":"INDEX(Ranks!2762:2762,$G$4)","v":0},0]
[null,null,null,null,null,null,0,{"$f":"INDEX(Ranks!2763:2763,$G$4)","v":0},0]
[null,null,null,null,null,null,0,{"$f":"INDEX(Ranks!2764:2764,$G$4)","v":0},0]
[null,null,null,null,null,null,0,{"$f":"INDEX(Ranks!2765:2765,$G$4)","v":0},0]
[null,null,null,null,null,null,0,{"$f":"INDEX(Ranks!2766:2766,$G$4)","v":0},0]
[null,null,null,null,null,null,0,{"$f":"INDEX(Ranks!2767:2767,$G$4)","v":0},0]
[null,null,null,null,null,null,0,{"$f":"INDEX(Ranks!2768:2768,$G$4)","v":0},0]
[null,null,null,null,null,null,0,{"$f":"INDEX(Ranks!2769:2769,$G$4)","v":0},0]
[null,null,null,null,null,null,0,{"$f":"INDEX(Ranks!2770:2770,$G$4)","v":0},0]
[null,null,null,null,null,null,0,{"$f":"INDEX(Ranks!2771:2771,$G$4)","v":0},0]
[null,null,null,null,null,null,0,{"$f":"INDEX(Ranks!2772:2772,$G$4)","v":0},0]
[null,null,null,null,null,null,0,{"$f":"INDEX(Ranks!2773:2773,$G$4)","v":0},0]
[null,null,null,null,null,null,0,{"$f":"INDEX(Ranks!2774:2774,$G$4)","v":0},0]
[null,null,null,null,null,null,0,{"$f":"INDEX(Ranks!2775:2775,$G$4)","v":0},0]
[null,null,null,null,null,null,0,{"$f":"INDEX(Ranks!2776:2776,$G$4)","v":0},0]
[null,null,null,null,null,null,0,{"$f":"INDEX(Ranks!2777:2777,$G$4)","v":0},0]
[null,null,null,null,null,null,0,{"$f":"INDEX(Ranks!2778:2778,$G$4)","v":0},0]
[null,null,null,null,null,null,0,{"$f":"INDEX(Ranks!2779:2779,$G$4)","v":0},0]
[null,null,null,null,null,null,0,{"$f":"INDEX(Ranks!2780:2780,$G$4)","v":0},0]
[null,null,null,null,null,null,0,{"$f":"INDEX(Ranks!2781:2781,$G$4)","v":0},0]
[null,null,null,null,null,null,0,{"$f":"INDEX(Ranks!2782:2782,$G$4)","v":0},0]
[null,null,null,null,null,null,0,{"$f":"INDEX(Ranks!2783:2783,$G$4)","v":0},0]
[null,null,null,null,null,null,0,{"$f":"INDEX(Ranks!2784:2784,$G$4)","v":0},0]
[null,null,null,null,null,null,0,{"$f":"INDEX(Ranks!2785:2785,$G$4)","v":0},0]
[null,null,null,null,null,null,0,{"$f":"INDEX(Ranks!2786:2786,$G$4)","v":0},0]
[null,null,null,null,null,null,0,{"$f":"INDEX(Ranks!2787:2787,$G$4)","v":0},0]
[null,null,null,null,null,null,0,{"$f":"INDEX(Ranks!2788:2788,$G$4)","v":0},0]
[null,null,null,null,null,null,0,{"$f":"INDEX(Ranks!2789:2789,$G$4)","v":0},0]
[null,null,null,null,null,null,0,{"$f":"INDEX(Ranks!2790:2790,$G$4)","v":0},0]
[null,null,null,null,null,null,0,{"$f":"INDEX(Ranks!2791:2791,$G$4)","v":0},0]
[null,null,null,null,null,null,0,{"$f":"INDEX(Ranks!2792:2792,$G$4)","v":0},0]
[null,null,null,null,null,null,0,{"$f":"INDEX(Ranks!2793:2793,$G$4)","v":0},0]
[null,null,null,null,null,null,0,{"$f":"INDEX(Ranks!2794:2794,$G$4)","v":0},0]
[null,null,null,null,null,null,0,{"$f":"INDEX(Ranks!2795:2795,$G$4)","v":0},0]
[null,null,null,null,null,null,0,{"$f":"INDEX(Ranks!2796:2796,$G$4)","v":0},0]
[null,null,null,null,null,null,0,{"$f":"INDEX(Ranks!2797:2797,$G$4)","v":0},0]
[null,null,null,null,null,null,0,{"$f":"INDEX(Ranks!2798:2798,$G$4)","v":0},0]
[null,null,null,null,null,null,0,{"$f":"INDEX(Ranks!2799:2799,$G$4)","v":0},0]
[null,null,null,null,null,null,0,{"$f":"INDEX(Ranks!2800:2800,$G$4)","v":0},0]
[null,null,null,null,null,null,0,{"$f":"INDEX(Ranks!2801:2801,$G$4)","v":0},0]
[null,null,null,null,null,null,0,{"$f":"INDEX(Ranks!2802:2802,$G$4)","v":0},0]
[null,null,null,null,null,null,0,{"$f":"INDEX(Ranks!2803:2803,$G$4)","v":0},0]
[null,null,null,null,null,null,0,{"$f":"INDEX(Ranks!2804:2804,$G$4)","v":0},0]
[null,null,null,null,null,null,0,{"$f":"INDEX(Ranks!2805:2805,$G$4)","v":0},0]
[null,null,null,null,null,null,0,{"$f":"INDEX(Ranks!2806:2806,$G$4)","v":0},0]
[null,null,null,null,null,null,0,{"$f":"INDEX(Ranks!2807:2807,$G$4)","v":0},0]
[null,null,null,null,null,null,0,{"$f":"INDEX(Ranks!2808:2808,$G$4)","v":0},0]
[null,null,null,null,null,null,0,{"$f":"INDEX(Ranks!2809:2809,$G$4)","v":0},0]
[null,null,null,null,null,null,0,{"$f":"INDEX(Ranks!2810:2810,$G$4)","v":0},0]
[null,null,null,null,null,null,0,{"$f":"INDEX(Ranks!2811:2811,$G$4)","v":0},0]
[null,null,null,null,null,null,0,{"$f":"INDEX(Ranks!2812:2812,$G$4)","v":0},0]
[null,null,null,null,null,null,0,{"$f":"INDEX(Ranks!2813:2813,$G$4)","v":0},0]
[null,null,null,null,null,null,0,{"$f":"INDEX(Ranks!2814:2814,$G$4)","v":0},0]
[null,null,null,null,null,null,0,{"$f":"INDEX(Ranks!2815:2815,$G$4)","v":0},0]
[null,null,null,null,null,null,0,{"$f":"INDEX(Ranks!2816:2816,$G$4)","v":0},0]
[null,null,null,null,null,null,0,{"$f":"INDEX(Ranks!2817:2817,$G$4)","v":0},0]
[null,null,null,null,null,null,0,{"$f":"INDEX(Ranks!2818:2818,$G$4)","v":0},0]
[null,null,null,null,null,null,0,{"$f":"INDEX(Ranks!2819:2819,$G$4)","v":0},0]
[null,null,null,null,null,null,0,{"$f":"INDEX(Ranks!2820:2820,$G$4)","v":0},0]
[null,null,null,null,null,null,0,{"$f":"INDEX(Ranks!2821:2821,$G$4)","v":0},0]
[null,null,null,null,null,null,{"$f":"IFERROR(INT(H2822*100),H2822)","v":0},{"$f":"INDEX(Ranks!2822:2822,$G$4)","v":0},{"$f":"IF(H2822=\"\",-1,IF(H2822=-1,\"\",H2822))","v":0}]
[null,null,null,null,null,null,0,{"$f":"INDEX(Ranks!2823:2823,$G$4)","v":0},0]
[null,null,null,null,null,null,0,{"$f":"INDEX(Ranks!2824:2824,$G$4)","v":0},0]
[null,null,null,null,null,null,0,{"$f":"INDEX(Ranks!2825:2825,$G$4)","v":0},0]
[null,null,null,null,null,null,0,{"$f":"INDEX(Ranks!2826:2826,$G$4)","v":0},0]
[null,null,null,null,null,null,0,{"$f":"INDEX(Ranks!2827:2827,$G$4)","v":0},0]
[null,null,null,null,null,null,0,{"$f":"INDEX(Ranks!2828:2828,$G$4)","v":0},0]
[null,null,null,null,null,null,0,{"$f":"INDEX(Ranks!2829:2829,$G$4)","v":0},0]
[null,null,null,null,null,null,0,{"$f":"INDEX(Ranks!2830:2830,$G$4)","v":0},0]
[null,null,null,null,null,null,0,{"$f":"INDEX(Ranks!2831:2831,$G$4)","v":0},0]
[null,null,null,null,null,null,0,{"$f":"INDEX(Ranks!2832:2832,$G$4)","v":0},0]
[null,null,null,null,null,null,0,{"$f":"INDEX(Ranks!2833:2833,$G$4)","v":0},0]
[null,null,null,null,null,null,0,{"$f":"INDEX(Ranks!2834:2834,$G$4)","v":0},0]
[null,null,null,null,null,null,0,{"$f":"INDEX(Ranks!2835:2835,$G$4)","v":0},0]
[null,null,null,null,null,null,0,{"$f":"INDEX(Ranks!2836:2836,$G$4)","v":0},0]
[null,null,null,null,null,null,0,{"$f":"INDEX(Ranks!2837:2837,$G$4)","v":0},0]
[null,null,null,null,null,null,0,{"$f":"INDEX(Ranks!2838:2838,$G$4)","v":0},0]
[null,null,null,null,null,null,0,{"$f":"INDEX(Ranks!2839:2839,$G$4)","v":0},0]
[null,null,null,null,null,null,0,{"$f":"INDEX(Ranks!2840:2840,$G$4)","v":0},0]
[null,null,null,null,null,null,0,{"$f":"INDEX(Ranks!2841:2841,$G$4)","v":0},0]
[null,null,null,null,null,null,0,{"$f":"INDEX(Ranks!2842:2842,$G$4)","v":0},0]
[null,null,null,null,null,null,0,{"$f":"INDEX(Ranks!2843:2843,$G$4)","v":0},0]
[null,null,null,null,null,null,0,{"$f":"INDEX(Ranks!2844:2844,$G$4)","v":0},0]
[null,null,null,null,null,null,0,{"$f":"INDEX(Ranks!2845:2845,$G$4)","v":0},0]
[null,null,null,null,null,null,0,{"$f":"INDEX(Ranks!2846:2846,$G$4)","v":0},0]
[null,null,null,null,null,null,0,{"$f":"INDEX(Ranks!2847:2847,$G$4)","v":0},0]
[null,null,null,null,null,null,0,{"$f":"INDEX(Ranks!2848:2848,$G$4)","v":0},0]
[null,null,null,null,null,null,0,{"$f":"INDEX(Ranks!2849:2849,$G$4)","v":0},0]
[null,null,null,null,null,null,0,{"$f":"INDEX(Ranks!2850:2850,$G$4)","v":0},0]
[null,null,null,null,null,null,0,{"$f":"INDEX(Ranks!2851:2851,$G$4)","v":0},0]
[null,null,null,null,null,null,0,{"$f":"INDEX(Ranks!2852:2852,$G$4)","v":0},0]
[null,null,null,null,null,null,0,{"$f":"INDEX(Ranks!2853:2853,$G$4)","v":0},0]
[null,null,null,null,null,null,0,{"$f":"INDEX(Ranks!2854:2854,$G$4)","v":0},0]
[null,null,null,null,null,null,0,{"$f":"INDEX(Ranks!2855:2855,$G$4)","v":0},0]
[null,null,null,null,null,null,0,{"$f":"INDEX(Ranks!2856:2856,$G$4)","v":0},0]
[null,null,null,null,null,null,0,{"$f":"INDEX(Ranks!2857:2857,$G$4)","v":0},0]
[null,null,null,null,null,null,0,{"$f":"INDEX(Ranks!2858:2858,$G$4)","v":0},0]
[null,null,null,null,null,null,0,{"$f":"INDEX(Ranks!2859:2859,$G$4)","v":0},0]
[null,null,null,null,null,null,0,{"$f":"INDEX(Ranks!2860:2860,$G$4)","v":0},0]
[null,null,null,null,null,null,0,{"$f":"INDEX(Ranks!2861:2861,$G$4)","v":0},0]
[null,null,null,null,null,null,0,{"$f":"INDEX(Ranks!2862:2862,$G$4)","v":0},0]
[null,null,null,null,null,null,0,{"$f":"INDEX(Ranks!2863:2863,$G$4)","v":0},0]
[null,null,null,null,null,null,0,{"$f":"INDEX(Ranks!2864:2864,$G$4)","v":0},0]
[null,null,null,null,null,null,0,{"$f":"INDEX(Ranks!2865:2865,$G$4)","v":0},0]
[null,null,null,null,null,null,0,{"$f":"INDEX(Ranks!2866:2866,$G$4)","v":0},0]
[null,null,null,null,null,null,0,{"$f":"INDEX(Ranks!2867:2867,$G$4)","v":0},0]
[null,null,null,null,null,null,0,{"$f":"INDEX(Ranks!2868:2868,$G$4)","v":0},0]
[null,null,null,null,null,null,0,{"$f":"INDEX(Ranks!2869:2869,$G$4)","v":0},0]
[null,null,null,null,null,null,0,{"$f":"INDEX(Ranks!2870:2870,$G$4)","v":0},0]
[null,null,null,null,null,null,0,{"$f":"INDEX(Ranks!2871:2871,$G$4)","v":0},0]
[null,null,null,null,null,null,0,{"$f":"INDEX(Ranks!2872:2872,$G$4)","v":0},0]
[null,null,null,null,null,null,0,{"$f":"INDEX(Ranks!2873:2873,$G$4)","v":0},0]
[null,null,null,null,null,null,0,{"$f":"INDEX(Ranks!2874:2874,$G$4)","v":0},0]
[null,null,null,null,null,null,0,{"$f":"INDEX(Ranks!2875:2875,$G$4)","v":0},0]
[null,null,null,null,null,null,0,{"$f":"INDEX(Ranks!2876:2876,$G$4)","v":0},0]
[null,null,null,null,null,null,0,{"$f":"INDEX(Ranks!2877:2877,$G$4)","v":0},0]
[null,null,null,null,null,null,0,{"$f":"INDEX(Ranks!2878:2878,$G$4)","v":0},0]
[null,null,null,null,null,null,0,{"$f":"INDEX(Ranks!2879:2879,$G$4)","v":0},0]
[null,null,null,null,null,null,0,{"$f":"INDEX(Ranks!2880:2880,$G$4)","v":0},0]
[null,null,null,null,null,null,0,{"$f":"INDEX(Ranks!2881:2881,$G$4)","v":0},0]
[null,null,null,null,null,null,0,{"$f":"INDEX(Ranks!2882:2882,$G$4)","v":0},0]
[null,null,null,null,null,null,0,{"$f":"INDEX(Ranks!2883:2883,$G$4)","v":0},0]
[null,null,null,null,null,null,0,{"$f":"INDEX(Ranks!2884:2884,$G$4)","v":0},0]
[null,null,null,null,null,null,0,{"$f":"INDEX(Ranks!2885:2885,$G$4)","v":0},0]
[null,null,null,null,null,null,{"$f":"IFERROR(INT(H2886*100),H2886)","v":0},{"$f":"INDEX(Ranks!2886:2886,$G$4)","v":0},{"$f":"IF(H2886=\"\",-1,IF(H2886=-1,\"\",H2886))","v":0}]
[null,null,null,null,null,null,0,{"$f":"INDEX(Ranks!2887:2887,$G$4)","v":0},0]
[null,null,null,null,null,null,0,{"$f":"INDEX(Ranks!2888:2888,$G$4)","v":0},0]
[null,null,null,null,null,null,0,{"$f":"INDEX(Ranks!2889:2889,$G$4)","v":0},0]
[null,null,null,null,null,null,0,{"$f":"INDEX(Ranks!2890:2890,$G$4)","v":0},0]
[null,null,null,null,null,null,0,{"$f":"INDEX(Ranks!2891:2891,$G$4)","v":0},0]
[null,null,null,null,null,null,0,{"$f":"INDEX(Ranks!2892:2892,$G$4)","v":0},0]
[null,null,null,null,null,null,0,{"$f":"INDEX(Ranks!2893:2893,$G$4)","v":0},0]
[null,null,null,null,null,null,0,{"$f":"INDEX(Ranks!2894:2894,$G$4)","v":0},0]
[null,null,null,null,null,null,0,{"$f":"INDEX(Ranks!2895:2895,$G$4)","v":0},0]
[null,null,null,null,null,null,0,{"$f":"INDEX(Ranks!2896:2896,$G$4)","v":0},0]
[null,null,null,null,null,null,0,{"$f":"INDEX(Ranks!2897:2897,$G$4)","v":0},0]
[null,null,null,null,null,null,0,{"$f":"INDEX(Ranks!2898:2898,$G$4)","v":0},0]
[null,null,null,null,null,null,0,{"$f":"INDEX(Ranks!2899:2899,$G$4)","v":0},0]
[null,null,null,null,null,null,0,{"$f":"INDEX(Ranks!2900:2900,$G$4)","v":0},0]
[null,null,null,null,null,null,0,{"$f":"INDEX(Ranks!2901:2901,$G$4)","v":0},0]
[null,null,null,null,null,null,0,{"$f":"INDEX(Ranks!2902:2902,$G$4)","v":0},0]
[null,null,null,null,null,null,0,{"$f":"INDEX(Ranks!2903:2903,$G$4)","v":0},0]
[null,null,null,null,null,null,0,{"$f":"INDEX(Ranks!2904:2904,$G$4)","v":0},0]
[null,null,null,null,null,null,0,{"$f":"INDEX(Ranks!2905:2905,$G$4)","v":0},0]
[null,null,null,null,null,null,0,{"$f":"INDEX(Ranks!2906:2906,$G$4)","v":0},0]
[null,null,null,null,null,null,0,{"$f":"INDEX(Ranks!2907:2907,$G$4)","v":0},0]
[null,null,null,null,null,null,0,{"$f":"INDEX(Ranks!2908:2908,$G$4)","v":0},0]
[null,null,null,null,null,null,0,{"$f":"INDEX(Ranks!2909:2909,$G$4)","v":0},0]
[null,null,null,null,null,null,0,{"$f":"INDEX(Ranks!2910:2910,$G$4)","v":0},0]
[null,null,null,null,null,null,0,{"$f":"INDEX(Ranks!2911:2911,$G$4)","v":0},0]
[null,null,null,null,null,null,0,{"$f":"INDEX(Ranks!2912:2912,$G$4)","v":0},0]
[null,null,null,null,null,null,0,{"$f":"INDEX(Ranks!2913:2913,$G$4)","v":0},0]
[null,null,null,null,null,null,0,{"$f":"INDEX(Ranks!2914:2914,$G$4)","v":0},0]
[null,null,null,null,null,null,0,{"$f":"INDEX(Ranks!2915:2915,$G$4)","v":0},0]
[null,null,null,null,null,null,0,{"$f":"INDEX(Ranks!2916:2916,$G$4)","v":0},0]
[null,null,null,null,null,null,0,{"$f":"INDEX(Ranks!2917:2917,$G$4)","v":0},0]
[null,null,null,null,null,null,0,{"$f":"INDEX(Ranks!2918:2918,$G$4)","v":0},0]
[null,null,null,null,null,null,0,{"$f":"INDEX(Ranks!2919:2919,$G$4)","v":0},0]
[null,null,null,null,null,null,0,{"$f":"INDEX(Ranks!2920:2920,$G$4)","v":0},0]
[null,null,null,null,null,null,0,{"$f":"INDEX(Ranks!2921:2921,$G$4)","v":0},0]
[null,null,null,null,null,null,0,{"$f":"INDEX(Ranks!2922:2922,$G$4)","v":0},0]
[null,null,null,null,null,null,0,{"$f":"INDEX(Ranks!2923:2923,$G$4)","v":0},0]
[null,null,null,null,null,null,0,{"$f":"INDEX(Ranks!2924:2924,$G$4)","v":0},0]
[null,null,null,null,null,null,0,{"$f":"INDEX(Ranks!2925:2925,$G$4)","v":0},0]
[null,null,null,null,null,null,0,{"$f":"INDEX(Ranks!2926:2926,$G$4)","v":0},0]
[null,null,null,null,null,null,0,{"$f":"INDEX(Ranks!2927:2927,$G$4)","v":0},0]
[null,null,null,null,null,null,0,{"$f":"INDEX(Ranks!2928:2928,$G$4)","v":0},0]
[null,null,null,null,null,null,0,{"$f":"INDEX(Ranks!2929:2929,$G$4)","v":0},0]
[null,null,null,null,null,null,0,{"$f":"INDEX(Ranks!2930:2930,$G$4)","v":0},0]
[null,null,null,null,null,null,0,{"$f":"INDEX(Ranks!2931:2931,$G$4)","v":0},0]
[null,null,null,null,null,null,0,{"$f":"INDEX(Ranks!2932:2932,$G$4)","v":0},0]
[null,null,null,null,null,null,0,{"$f":"INDEX(Ranks!2933:2933,$G$4)","v":0},0]
[null,null,null,null,null,null,0,{"$f":"INDEX(Ranks!2934:2934,$G$4)","v":0},0]
[null,null,null,null,null,null,0,{"$f":"INDEX(Ranks!2935:2935,$G$4)","v":0},0]
[null,null,null,null,null,null,0,{"$f":"INDEX(Ranks!2936:2936,$G$4)","v":0},0]
[null,null,null,null,null,null,0,{"$f":"INDEX(Ranks!2937:2937,$G$4)","v":0},0]
[null,null,null,null,null,null,0,{"$f":"INDEX(Ranks!2938:2938,$G$4)","v":0},0]
[null,null,null,null,null,null,0,{"$f":"INDEX(Ranks!2939:2939,$G$4)","v":0},0]
[null,null,null,null,null,null,0,{"$f":"INDEX(Ranks!2940:2940,$G$4)","v":0},0]
[null,null,null,null,null,null,0,{"$f":"INDEX(Ranks!2941:2941,$G$4)","v":0},0]
[null,null,null,null,null,null,0,{"$f":"INDEX(Ranks!2942:2942,$G$4)","v":0},0]
[null,null,null,null,null,null,0,{"$f":"INDEX(Ranks!2943:2943,$G$4)","v":0},0]
[null,null,null,null,null,null,0,{"$f":"INDEX(Ranks!2944:2944,$G$4)","v":0},0]
[null,null,null,null,null,null,0,{"$f":"INDEX(Ranks!2945:2945,$G$4)","v":0},0]
[null,null,null,null,null,null,0,{"$f":"INDEX(Ranks!2946:2946,$G$4)","v":0},0]
[null,null,null,null,null,null,0,{"$f":"INDEX(Ranks!2947:2947,$G$4)","v":0},0]
[null,null,null,null,null,null,0,{"$f":"INDEX(Ranks!2948:2948,$G$4)","v":0},0]
[null,null,null,null,null,null,0,{"$f":"INDEX(Ranks!2949:2949,$G$4)","v":0},0]
[null,null,null,null,null,null,{"$f":"IFERROR(INT(H2950*100),H2950)","v":0},{"$f":"INDEX(Ranks!2950:2950,$G$4)","v":0},{"$f":"IF(H2950=\"\",-1,IF(H2950=-1,\"\",H2950))","v":0}]
[null,null,null,null,null,null,0,{"$f":"INDEX(Ranks!2951:2951,$G$4)","v":0},0]
[null,null,null,null,null,null,0,{"$f":"INDEX(Ranks!2952:2952,$G$4)","v":0},0]
[null,null,null,null,null,null,0,{"$f":"INDEX(Ranks!2953:2953,$G$4)","v":0},0]
[null,null,null,null,null,null,0,{"$f":"INDEX(Ranks!2954:2954,$G$4)","v":0},0]
[null,null,null,null,null,null,0,{"$f":"INDEX(Ranks!2955:2955,$G$4)","v":0},0]
[null,null,null,null,null,null,0,{"$f":"INDEX(Ranks!2956:2956,$G$4)","v":0},0]
[null,null,null,null,null,null,0,{"$f":"INDEX(Ranks!2957:2957,$G$4)","v":0},0]
[null,null,null,null,null,null,0,{"$f":"INDEX(Ranks!2958:2958,$G$4)","v":0},0]
[null,null,null,null,null,null,0,{"$f":"INDEX(Ranks!2959:2959,$G$4)","v":0},0]
[null,null,null,null,null,null,0,{"$f":"INDEX(Ranks!2960:2960,$G$4)","v":0},0]
[null,null,null,null,null,null,0,{"$f":"INDEX(Ranks!2961:2961,$G$4)","v":0},0]
[null,null,null,null,null,null,0,{"$f":"INDEX(Ranks!2962:2962,$G$4)","v":0},0]
[null,null,null,null,null,null,0,{"$f":"INDEX(Ranks!2963:2963,$G$4)","v":0},0]
[null,null,null,null,null,null,0,{"$f":"INDEX(Ranks!2964:2964,$G$4)","v":0},0]
[null,null,null,null,null,null,0,{"$f":"INDEX(Ranks!2965:2965,$G$4)","v":0},0]
[null,null,null,null,null,null,0,{"$f":"INDEX(Ranks!2966:2966,$G$4)","v":0},0]
[null,null,null,null,null,null,0,{"$f":"INDEX(Ranks!2967:2967,$G$4)","v":0},0]
[null,null,null,null,null,null,0,{"$f":"INDEX(Ranks!2968:2968,$G$4)","v":0},0]
[null,null,null,null,null,null,0,{"$f":"INDEX(Ranks!2969:2969,$G$4)","v":0},0]
[null,null,null,null,null,null,0,{"$f":"INDEX(Ranks!2970:2970,$G$4)","v":0},0]
[null,null,null,null,null,null,0,{"$f":"INDEX(Ranks!2971:2971,$G$4)","v":0},0]
[null,null,null,null,null,null,0,{"$f":"INDEX(Ranks!2972:2972,$G$4)","v":0},0]
[null,null,null,null,null,null,0,{"$f":"INDEX(Ranks!2973:2973,$G$4)","v":0},0]
[null,null,null,null,null,null,0,{"$f":"INDEX(Ranks!2974:2974,$G$4)","v":0},0]
[null,null,null,null,null,null,0,{"$f":"INDEX(Ranks!2975:2975,$G$4)","v":0},0]
[null,null,null,null,null,null,0,{"$f":"INDEX(Ranks!2976:2976,$G$4)","v":0},0]
[null,null,null,null,null,null,0,{"$f":"INDEX(Ranks!2977:2977,$G$4)","v":0},0]
[null,null,null,null,null,null,0,{"$f":"INDEX(Ranks!2978:2978,$G$4)","v":0},0]
[null,null,null,null,null,null,0,{"$f":"INDEX(Ranks!2979:2979,$G$4)","v":0},0]
[null,null,null,null,null,null,0,{"$f":"INDEX(Ranks!2980:2980,$G$4)","v":0},0]
[null,null,null,null,null,null,0,{"$f":"INDEX(Ranks!2981:2981,$G$4)","v":0},0]
[null,null,null,null,null,null,0,{"$f":"INDEX(Ranks!2982:2982,$G$4)","v":0},0]
[null,null,null,null,null,null,0,{"$f":"INDEX(Ranks!2983:2983,$G$4)","v":0},0]
[null,null,null,null,null,null,0,{"$f":"INDEX(Ranks!2984:2984,$G$4)","v":0},0]
[null,null,null,null,null,null,0,{"$f":"INDEX(Ranks!2985:2985,$G$4)","v":0},0]
[null,null,null,null,null,null,0,{"$f":"INDEX(Ranks!2986:2986,$G$4)","v":0},0]
[null,null,null,null,null,null,0,{"$f":"INDEX(Ranks!2987:2987,$G$4)","v":0},0]
[null,null,null,null,null,null,0,{"$f":"INDEX(Ranks!2988:2988,$G$4)","v":0},0]
[null,null,null,null,null,null,0,{"$f":"INDEX(Ranks!2989:2989,$G$4)","v":0},0]
[null,null,null,null,null,null,0,{"$f":"INDEX(Ranks!2990:2990,$G$4)","v":0},0]
[null,null,null,null,null,null,0,{"$f":"INDEX(Ranks!2991:2991,$G$4)","v":0},0]
[null,null,null,null,null,null,0,{"$f":"INDEX(Ranks!2992:2992,$G$4)","v":0},0]
[null,null,null,null,null,null,0,{"$f":"INDEX(Ranks!2993:2993,$G$4)","v":0},0]
[null,null,null,null,null,null,0,{"$f":"INDEX(Ranks!2994:2994,$G$4)","v":0},0]
[null,null,null,null,null,null,0,{"$f":"INDEX(Ranks!2995:2995,$G$4)","v":0},0]
[null,null,null,null,null,null,0,{"$f":"INDEX(Ranks!2996:2996,$G$4)","v":0},0]
[null,null,null,null,null,null,0,{"$f":"INDEX(Ranks!2997:2997,$G$4)","v":0},0]
[null,null,null,null,null,null,0,{"$f":"INDEX(Ranks!2998:2998,$G$4)","v":0},0]
[null,null,null,null,null,null,0,{"$f":"INDEX(Ranks!2999:2999,$G$4)","v":0},0]
[null,null,null,null,null,null,0,{"$f":"INDEX(Ranks!3000:3000,$G$4)","v":0},0]
[null,null,null,null,null,null,0,{"$f":"INDEX(Ranks!3001:3001,$G$4)","v":0},0]
[null,null,null,null,null,null,0,{"$f":"INDEX(Ranks!3002:3002,$G$4)","v":0},0]
[null,null,null,null,null,null,0,{"$f":"INDEX(Ranks!3003:3003,$G$4)","v":0},0]
[null,null,null,null,null,null,0,{"$f":"INDEX(Ranks!3004:3004,$G$4)","v":0},0]
[null,null,null,null,null,null,0,{"$f":"INDEX(Ranks!3005:3005,$G$4)","v":0},0]
[null,null,null,null,null,null,0,{"$f":"INDEX(Ranks!3006:3006,$G$4)","v":0},0]
[null,null,null,null,null,null,0,{"$f":"INDEX(Ranks!3007:3007,$G$4)","v":0},0]
[null,null,null,null,null,null,0,{"$f":"INDEX(Ranks!3008:3008,$G$4)","v":0},0]
[null,null,null,null,null,null,0,{"$f":"INDEX(Ranks!3009:3009,$G$4)","v":0},0]
[null,null,null,null,null,null,0,{"$f":"INDEX(Ranks!3010:3010,$G$4)","v":0},0]
[null,null,null,null,null,null,0,{"$f":"INDEX(Ranks!3011:3011,$G$4)","v":0},0]
[null,null,null,null,null,null,0,{"$f":"INDEX(Ranks!3012:3012,$G$4)","v":0},0]
[null,null,null,null,null,null,0,{"$f":"INDEX(Ranks!3013:3013,$G$4)","v":0},0]
[null,null,null,null,null,null,{"$f":"IFERROR(INT(H3014*100),H3014)","v":0},{"$f":"INDEX(Ranks!3014:3014,$G$4)","v":0},{"$f":"IF(H3014=\"\",-1,IF(H3014=-1,\"\",H3014))","v":0}]
[null,null,null,null,null,null,0,{"$f":"INDEX(Ranks!3015:3015,$G$4)","v":0},0]
[null,null,null,null,null,null,0,{"$f":"INDEX(Ranks!3016:3016,$G$4)","v":0},0]
[null,null,null,null,null,null,0,{"$f":"INDEX(Ranks!3017:3017,$G$4)","v":0},0]
[null,null,null,null,null,null,0,{"$f":"INDEX(Ranks!3018:3018,$G$4)","v":0},0]
[null,null,null,null,null,null,0,{"$f":"INDEX(Ranks!3019:3019,$G$4)","v":0},0]
[null,null,null,null,null,null,0,{"$f":"INDEX(Ranks!3020:3020,$G$4)","v":0},0]
[null,null,null,null,null,null,0,{"$f":"INDEX(Ranks!3021:3021,$G$4)","v":0},0]
[null,null,null,null,null,null,0,{"$f":"INDEX(Ranks!3022:3022,$G$4)","v":0},0]
[null,null,null,null,null,null,0,{"$f":"INDEX(Ranks!3023:3023,$G$4)","v":0},0]
[null,null,null,null,null,null,0,{"$f":"INDEX(Ranks!3024:3024,$G$4)","v":0},0]
[null,null,null,null,null,null,0,{"$f":"INDEX(Ranks!3025:3025,$G$4)","v":0},0]
[null,null,null,null,null,null,0,{"$f":"INDEX(Ranks!3026:3026,$G$4)","v":0},0]
[null,null,null,null,null,null,0,{"$f":"INDEX(Ranks!3027:3027,$G$4)","v":0},0]
[null,null,null,null,null,null,0,{"$f":"INDEX(Ranks!3028:3028,$G$4)","v":0},0]
[null,null,null,null,null,null,0,{"$f":"INDEX(Ranks!3029:3029,$G$4)","v":0},0]
[null,null,null,null,null,null,0,{"$f":"INDEX(Ranks!3030:3030,$G$4)","v":0},0]
[null,null,null,null,null,null,0,{"$f":"INDEX(Ranks!3031:3031,$G$4)","v":0},0]
[null,null,null,null,null,null,0,{"$f":"INDEX(Ranks!3032:3032,$G$4)","v":0},0]
[null,null,null,null,null,null,0,{"$f":"INDEX(Ranks!3033:3033,$G$4)","v":0},0]
[null,null,null,null,null,null,0,{"$f":"INDEX(Ranks!3034:3034,$G$4)","v":0},0]
[null,null,null,null,null,null,0,{"$f":"INDEX(Ranks!3035:3035,$G$4)","v":0},0]
[null,null,null,null,null,null,0,{"$f":"INDEX(Ranks!3036:3036,$G$4)","v":0},0]
[null,null,null,null,null,null,0,{"$f":"INDEX(Ranks!3037:3037,$G$4)","v":0},0]
[null,null,null,null,null,null,0,{"$f":"INDEX(Ranks!3038:3038,$G$4)","v":0},0]
[null,null,null,null,null,null,0,{"$f":"INDEX(Ranks!3039:3039,$G$4)","v":0},0]
[null,null,null,null,null,null,0,{"$f":"INDEX(Ranks!3040:3040,$G$4)","v":0},0]
[null,null,null,null,null,null,0,{"$f":"INDEX(Ranks!3041:3041,$G$4)","v":0},0]
[null,null,null,null,null,null,0,{"$f":"INDEX(Ranks!3042:3042,$G$4)","v":0},0]
[null,null,null,null,null,null,0,{"$f":"INDEX(Ranks!3043:3043,$G$4)","v":0},0]
[null,null,null,null,null,null,0,{"$f":"INDEX(Ranks!3044:3044,$G$4)","v":0},0]
[null,null,null,null,null,null,0,{"$f":"INDEX(Ranks!3045:3045,$G$4)","v":0},0]
[null,null,null,null,null,null,0,{"$f":"INDEX(Ranks!3046:3046,$G$4)","v":0},0]
[null,null,null,null,null,null,0,{"$f":"INDEX(Ranks!3047:3047,$G$4)","v":0},0]
[null,null,null,null,null,null,0,{"$f":"INDEX(Ranks!3048:3048,$G$4)","v":0},0]
[null,null,null,null,null,null,0,{"$f":"INDEX(Ranks!3049:3049,$G$4)","v":0},0]
[null,null,null,null,null,null,0,{"$f":"INDEX(Ranks!3050:3050,$G$4)","v":0},0]
[null,null,null,null,null,null,0,{"$f":"INDEX(Ranks!3051:3051,$G$4)","v":0},0]
[null,null,null,null,null,null,0,{"$f":"INDEX(Ranks!3052:3052,$G$4)","v":0},0]
[null,null,null,null,null,null,0,{"$f":"INDEX(Ranks!3053:3053,$G$4)","v":0},0]
[null,null,null,null,null,null,0,{"$f":"INDEX(Ranks!3054:3054,$G$4)","v":0},0]
[null,null,null,null,null,null,0,{"$f":"INDEX(Ranks!3055:3055,$G$4)","v":0},0]
[null,null,null,null,null,null,0,{"$f":"INDEX(Ranks!3056:3056,$G$4)","v":0},0]
[null,null,null,null,null,null,0,{"$f":"INDEX(Ranks!3057:3057,$G$4)","v":0},0]
[null,null,null,null,null,null,0,{"$f":"INDEX(Ranks!3058:3058,$G$4)","v":0},0]
[null,null,null,null,null,null,0,{"$f":"INDEX(Ranks!3059:3059,$G$4)","v":0},0]
[null,null,null,null,null,null,0,{"$f":"INDEX(Ranks!3060:3060,$G$4)","v":0},0]
[null,null,null,null,null,null,0,{"$f":"INDEX(Ranks!3061:3061,$G$4)","v":0},0]
[null,null,null,null,null,null,0,{"$f":"INDEX(Ranks!3062:3062,$G$4)","v":0},0]
[null,null,null,null,null,null,0,{"$f":"INDEX(Ranks!3063:3063,$G$4)","v":0},0]
[null,null,null,null,null,null,0,{"$f":"INDEX(Ranks!3064:3064,$G$4)","v":0},0]
[null,null,null,null,null,null,0,{"$f":"INDEX(Ranks!3065:3065,$G$4)","v":0},0]
[null,null,null,null,null,null,0,{"$f":"INDEX(Ranks!3066:3066,$G$4)","v":0},0]
[null,null,null,null,null,null,0,{"$f":"INDEX(Ranks!3067:3067,$G$4)","v":0},0]
[null,null,null,null,null,null,0,{"$f":"INDEX(Ranks!3068:3068,$G$4)","v":0},0]
[null,null,null,null,null,null,0,{"$f":"INDEX(Ranks!3069:3069,$G$4)","v":0},0]
[null,null,null,null,null,null,0,{"$f":"INDEX(Ranks!3070:3070,$G$4)","v":0},0]
[null,null,null,null,null,null,0,{"$f":"INDEX(Ranks!3071:3071,$G$4)","v":0},0]
[null,null,null,null,null,null,0,{"$f":"INDEX(Ranks!3072:3072,$G$4)","v":0},0]
[null,null,null,null,null,null,0,{"$f":"INDEX(Ranks!3073:3073,$G$4)","v":0},0]
[null,null,null,null,null,null,0,{"$f":"INDEX(Ranks!3074:3074,$G$4)","v":0},0]
[null,null,null,null,null,null,0,{"$f":"INDEX(Ranks!3075:3075,$G$4)","v":0},0]
[null,null,null,null,null,null,0,{"$f":"INDEX(Ranks!3076:3076,$G$4)","v":0},0]
[null,null,null,null,null,null,0,{"$f":"INDEX(Ranks!3077:3077,$G$4)","v":0},0]
[null,null,null,null,null,null,{"$f":"IFERROR(INT(H3078*100),H3078)","v":0},{"$f":"INDEX(Ranks!3078:3078,$G$4)","v":0},{"$f":"IF(H3078=\"\",-1,IF(H3078=-1,\"\",H3078))","v":0}]
[null,null,null,null,null,null,0,{"$f":"INDEX(Ranks!3079:3079,$G$4)","v":0},0]
[null,null,null,null,null,null,0,{"$f":"INDEX(Ranks!3080:3080,$G$4)","v":0},0]
[null,null,null,null,null,null,0,{"$f":"INDEX(Ranks!3081:3081,$G$4)","v":0},0]
[null,null,null,null,null,null,0,{"$f":"INDEX(Ranks!3082:3082,$G$4)","v":0},0]
[null,null,null,null,null,null,0,{"$f":"INDEX(Ranks!3083:3083,$G$4)","v":0},0]
[null,null,null,null,null,null,0,{"$f":"INDEX(Ranks!3084:3084,$G$4)","v":0},0]
[null,null,null,null,null,null,0,{"$f":"INDEX(Ranks!3085:3085,$G$4)","v":0},0]
[null,null,null,null,null,null,0,{"$f":"INDEX(Ranks!3086:3086,$G$4)","v":0},0]
[null,null,null,null,null,null,0,{"$f":"INDEX(Ranks!3087:3087,$G$4)","v":0},0]
[null,null,null,null,null,null,0,{"$f":"INDEX(Ranks!3088:3088,$G$4)","v":0},0]
[null,null,null,null,null,null,0,{"$f":"INDEX(Ranks!3089:3089,$G$4)","v":0},0]
[null,null,null,null,null,null,0,{"$f":"INDEX(Ranks!3090:3090,$G$4)","v":0},0]
[null,null,null,null,null,null,0,{"$f":"INDEX(Ranks!3091:3091,$G$4)","v":0},0]
[null,null,null,null,null,null,0,{"$f":"INDEX(Ranks!3092:3092,$G$4)","v":0},0]
[null,null,null,null,null,null,0,{"$f":"INDEX(Ranks!3093:3093,$G$4)","v":0},0]
[null,null,null,null,null,null,0,{"$f":"INDEX(Ranks!3094:3094,$G$4)","v":0},0]
[null,null,null,null,null,null,0,{"$f":"INDEX(Ranks!3095:3095,$G$4)","v":0},0]
[null,null,null,null,null,null,0,{"$f":"INDEX(Ranks!3096:3096,$G$4)","v":0},0]
[null,null,null,null,null,null,0,{"$f":"INDEX(Ranks!3097:3097,$G$4)","v":0},0]
[null,null,null,null,null,null,0,{"$f":"INDEX(Ranks!3098:3098,$G$4)","v":0},0]
[null,null,null,null,null,null,0,{"$f":"INDEX(Ranks!3099:3099,$G$4)","v":0},0]
[null,null,null,null,null,null,0,{"$f":"INDEX(Ranks!3100:3100,$G$4)","v":0},0]
[null,null,null,null,null,null,0,{"$f":"INDEX(Ranks!3101:3101,$G$4)","v":0},0]
[null,null,null,null,null,null,0,{"$f":"INDEX(Ranks!3102:3102,$G$4)","v":0},0]
[null,null,null,null,null,null,0,{"$f":"INDEX(Ranks!3103:3103,$G$4)","v":0},0]
[null,null,null,null,null,null,0,{"$f":"INDEX(Ranks!3104:3104,$G$4)","v":0},0]
[null,null,null,null,null,null,0,{"$f":"INDEX(Ranks!3105:3105,$G$4)","v":0},0]
[null,null,null,null,null,null,0,{"$f":"INDEX(Ranks!3106:3106,$G$4)","v":0},0]
[null,null,null,null,null,null,0,{"$f":"INDEX(Ranks!3107:3107,$G$4)","v":0},0]
[null,null,null,null,null,null,0,{"$f":"INDEX(Ranks!3108:3108,$G$4)","v":0},0]
[null,null,null,null,null,null,0,{"$f":"INDEX(Ranks!3109:3109,$G$4)","v":0},0]
[null,null,null,null,null,null,0,{"$f":"INDEX(Ranks!3110:3110,$G$4)","v":0},0]
[null,null,null,null,null,null,0,{"$f":"INDEX(Ranks!3111:3111,$G$4)","v":0},0]
[null,null,null,null,null,null,0,{"$f":"INDEX(Ranks!3112:3112,$G$4)","v":0},0]
[null,null,null,null,null,null,0,{"$f":"INDEX(Ranks!3113:3113,$G$4)","v":0},0]
[null,null,null,null,null,null,0,{"$f":"INDEX(Ranks!3114:3114,$G$4)","v":0},0]
[null,null,null,null,null,null,0,{"$f":"INDEX(Ranks!3115:3115,$G$4)","v":0},0]
[null,null,null,null,null,null,0,{"$f":"INDEX(Ranks!3116:3116,$G$4)","v":0},0]
[null,null,null,null,null,null,0,{"$f":"INDEX(Ranks!3117:3117,$G$4)","v":0},0]
[null,null,null,null,null,null,0,{"$f":"INDEX(Ranks!3118:3118,$G$4)","v":0},0]
[null,null,null,null,null,null,0,{"$f":"INDEX(Ranks!3119:3119,$G$4)","v":0},0]
[null,null,null,null,null,null,0,{"$f":"INDEX(Ranks!3120:3120,$G$4)","v":0},0]
[null,null,null,null,null,null,0,{"$f":"INDEX(Ranks!3121:3121,$G$4)","v":0},0]
[null,null,null,null,null,null,0,{"$f":"INDEX(Ranks!3122:3122,$G$4)","v":0},0]
[null,null,null,null,null,null,0,{"$f":"INDEX(Ranks!3123:3123,$G$4)","v":0},0]
[null,null,null,null,null,null,0,{"$f":"INDEX(Ranks!3124:3124,$G$4)","v":0},0]
[null,null,null,null,null,null,0,{"$f":"INDEX(Ranks!3125:3125,$G$4)","v":0},0]
[null,null,null,null,null,null,0,{"$f":"INDEX(Ranks!3126:3126,$G$4)","v":0},0]
[null,null,null,null,null,null,0,{"$f":"INDEX(Ranks!3127:3127,$G$4)","v":0},0]
[null,null,null,null,null,null,0,{"$f":"INDEX(Ranks!3128:3128,$G$4)","v":0},0]
[null,null,null,null,null,null,0,{"$f":"INDEX(Ranks!3129:3129,$G$4)","v":0},0]
[null,null,null,null,null,null,0,{"$f":"INDEX(Ranks!3130:3130,$G$4)","v":0},0]
[null,null,null,null,null,null,0,{"$f":"INDEX(Ranks!3131:3131,$G$4)","v":0},0]
[null,null,null,null,null,null,0,{"$f":"INDEX(Ranks!3132:3132,$G$4)","v":0},0]
[null,null,null,null,null,null,0,{"$f":"INDEX(Ranks!3133:3133,$G$4)","v":0},0]
[null,null,null,null,null,null,0,{"$f":"INDEX(Ranks!3134:3134,$G$4)","v":0},0]
[null,null,null,null,null,null,0,{"$f":"INDEX(Ranks!3135:3135,$G$4)","v":0},0]
[null,null,null,null,null,null,0,{"$f":"INDEX(Ranks!3136:3136,$G$4)","v":0},0]
[null,null,null,null,null,null,0,{"$f":"INDEX(Ranks!3137:3137,$G$4)","v":0},0]
[null,null,null,null,null,null,0,{"$f":"INDEX(Ranks!3138:3138,$G$4)","v":0},0]
[null,null,null,null,null,null,0,{"$f":"INDEX(Ranks!3139:3139,$G$4)","v":0},0]
[null,null,null,null,null,null,0,{"$f":"INDEX(Ranks!3140:3140,$G$4)","v":0},0]
[null,null,null,null,null,null,0,{"$f":"INDEX(Ranks!3141:3141,$G$4)","v":0},0]
[null,null,null,null,null,null,{"$f":"IFERROR(INT(H3142*100),H3142)","v":0},{"$f":"INDEX(Ranks!3142:3142,$G$4)","v":0},{"$f":"IF(H3142=\"\",-1,IF(H3142=-1,\"\",H3142))","v":0}]
[null,null,null,null,null,null,0,{"$f":"INDEX(Ranks!3143:3143,$G$4)","v":0},0]
[null,null,null,null,null,null,0,{"$f":"INDEX(Ranks!3144:3144,$G$4)","v":0},0]
[null,null,null,null,null,null,0,{"$f":"INDEX(Ranks!3145:3145,$G$4)","v":0},0]
[null,null,null,null,null,null,0,{"$f":"INDEX(Ranks!3146:3146,$G$4)","v":0},0]
[null,null,null,null,null,null,0,{"$f":"INDEX(Ranks!3147:3147,$G$4)","v":0},0]
[null,null,null,null,null,null,0,{"$f":"INDEX(Ranks!3148:3148,$G$4)","v":0},0]
[null,null,null,null,null,null,0,{"$f":"INDEX(Ranks!3149:3149,$G$4)","v":0},0]
[null,null,null,null,null,null,0,{"$f":"INDEX(Ranks!3150:3150,$G$4)","v":0},0]
[null,null,null,null,null,null,0,{"$f":"INDEX(Ranks!3151:3151,$G$4)","v":0},0]
[null,null,null,null,null,null,0,{"$f":"INDEX(Ranks!3152:3152,$G$4)","v":0},0]
[null,null,null,null,null,null,0,{"$f":"INDEX(Ranks!3153:3153,$G$4)","v":0},0]
[null,null,null,null,null,null,0,{"$f":"INDEX(Ranks!3154:3154,$G$4)","v":0},0]
[null,null,null,null,null,null,0,{"$f":"INDEX(Ranks!3155:3155,$G$4)","v":0},0]
[null,null,null,null,null,null,0,{"$f":"INDEX(Ranks!3156:3156,$G$4)","v":0},0]
[null,null,null,null,null,null,0,{"$f":"INDEX(Ranks!3157:3157,$G$4)","v":0},0]
[null,null,null,null,null,null,0,{"$f":"INDEX(Ranks!3158:3158,$G$4)","v":0},0]
[null,null,null,null,null,null,0,{"$f":"INDEX(Ranks!3159:3159,$G$4)","v":0},0]
[null,null,null,null,null,null,0,{"$f":"INDEX(Ranks!3160:3160,$G$4)","v":0},0]
[null,null,null,null,null,null,0,{"$f":"INDEX(Ranks!3161:3161,$G$4)","v":0},0]
[null,null,null,null,null,null,0,{"$f":"INDEX(Ranks!3162:3162,$G$4)","v":0},0]
[null,null,null,null,null,null,0,{"$f":"INDEX(Ranks!3163:3163,$G$4)","v":0},0]
[null,null,null,null,null,null,0,{"$f":"INDEX(Ranks!3164:3164,$G$4)","v":0},0]
[null,null,null,null,null,null,0,{"$f":"INDEX(Ranks!3165:3165,$G$4)","v":0},0]
[null,null,null,null,null,null,0,{"$f":"INDEX(Ranks!3166:3166,$G$4)","v":0},0]
[null,null,null,null,null,null,0,{"$f":"INDEX(Ranks!3167:3167,$G$4)","v":0},0]
[null,null,null,null,null,null,0,{"$f":"INDEX(Ranks!3168:3168,$G$4)","v":0},0]
[null,null,null,null,null,null,0,{"$f":"INDEX(Ranks!3169:3169,$G$4)","v":0},0]
[null,null,null,null,null,null,0,{"$f":"INDEX(Ranks!3170:3170,$G$4)","v":0},0]
[null,null,null,null,null,null,0,{"$f":"INDEX(Ranks!3171:3171,$G$4)","v":0},0]
[null,null,null,null,null,null,0,{"$f":"INDEX(Ranks!3172:3172,$G$4)","v":0},0]
[null,null,null,null,null,null,0,{"$f":"INDEX(Ranks!3173:3173,$G$4)","v":0},0]
[null,null,null,null,null,null,0,{"$f":"INDEX(Ranks!3174:3174,$G$4)","v":0},0]
[null,null,null,null,null,null,0,{"$f":"INDEX(Ranks!3175:3175,$G$4)","v":0},0]
[null,null,null,null,null,null,0,{"$f":"INDEX(Ranks!3176:3176,$G$4)","v":0},0]
[null,null,null,null,null,null,0,{"$f":"INDEX(Ranks!3177:3177,$G$4)","v":0},0]
[null,null,null,null,null,null,0,{"$f":"INDEX(Ranks!3178:3178,$G$4)","v":0},0]
[null,null,null,null,null,null,0,{"$f":"INDEX(Ranks!3179:3179,$G$4)","v":0},0]
[null,null,null,null,null,null,0,{"$f":"INDEX(Ranks!3180:3180,$G$4)","v":0},0]
[null,null,null,null,null,null,0,{"$f":"INDEX(Ranks!3181:3181,$G$4)","v":0},0]
[null,null,null,null,null,null,0,{"$f":"INDEX(Ranks!3182:3182,$G$4)","v":0},0]
[null,null,null,null,null,null,0,{"$f":"INDEX(Ranks!3183:3183,$G$4)","v":0},0]
[null,null,null,null,null,null,0,{"$f":"INDEX(Ranks!3184:3184,$G$4)","v":0},0]
[null,null,null,null,null,null,0,{"$f":"INDEX(Ranks!3185:3185,$G$4)","v":0},0]
[null,null,null,null,null,null,0,{"$f":"INDEX(Ranks!3186:3186,$G$4)","v":0},0]
[null,null,null,null,null,null,0,{"$f":"INDEX(Ranks!3187:3187,$G$4)","v":0},0]
[null,null,null,null,null,null,0,{"$f":"INDEX(Ranks!3188:3188,$G$4)","v":0},0]
[null,null,null,null,null,null,0,{"$f":"INDEX(Ranks!3189:3189,$G$4)","v":0},0]
[null,null,null,null,null,null,0,{"$f":"INDEX(Ranks!3190:3190,$G$4)","v":0},0]
[null,null,null,null,null,null,0,{"$f":"INDEX(Ranks!3191:3191,$G$4)","v":0},0]
[null,null,null,null,null,null,0,{"$f":"INDEX(Ranks!3192:3192,$G$4)","v":0},0]
[null,null,null,null,null,null,0,{"$f":"INDEX(Ranks!3193:3193,$G$4)","v":0},0]
[null,null,null,null,null,null,0,{"$f":"INDEX(Ranks!3194:3194,$G$4)","v":0},0]
[null,null,null,null,null,null,0,{"$f":"INDEX(Ranks!3195:3195,$G$4)","v":0},0]
[null,null,null,null,null,null,0,{"$f":"INDEX(Ranks!3196:3196,$G$4)","v":0},0]
[null,null,null,null,null,null,0,{"$f":"INDEX(Ranks!3197:3197,$G$4)","v":0},0]
[null,null,null,null,null,null,0,{"$f":"INDEX(Ranks!3198:3198,$G$4)","v":0},0]
[null,null,null,null,null,null,0,{"$f":"INDEX(Ranks!3199:3199,$G$4)","v":0},0]
[null,null,null,null,null,null,0,{"$f":"INDEX(Ranks!3200:3200,$G$4)","v":0},0]
[null,null,null,null,null,null,0,{"$f":"INDEX(Ranks!3201:3201,$G$4)","v":0},0]
[null,null,null,null,null,null,0,{"$f":"INDEX(Ranks!3202:3202,$G$4)","v":0},0]
[null,null,null,null,null,null,0,{"$f":"INDEX(Ranks!3203:3203,$G$4)","v":0},0]
[null,null,null,null,null,null,0,{"$f":"INDEX(Ranks!3204:3204,$G$4)","v":0},0]
[null,null,null,null,null,null,0,{"$f":"INDEX(Ranks!3205:3205,$G$4)","v":0},0]
[null,null,null,null,null,null,{"$f":"IFERROR(INT(H3206*100),H3206)","v":0},{"$f":"INDEX(Ranks!3206:3206,$G$4)","v":0},{"$f":"IF(H3206=\"\",-1,IF(H3206=-1,\"\",H3206))","v":0}]
[null,null,null,null,null,null,0,{"$f":"INDEX(Ranks!3207:3207,$G$4)","v":0},0]
[null,null,null,null,null,null,0,{"$f":"INDEX(Ranks!3208:3208,$G$4)","v":0},0]
[null,null,null,null,null,null,0,{"$f":"INDEX(Ranks!3209:3209,$G$4)","v":0},0]
[null,null,null,null,null,null,0,{"$f":"INDEX(Ranks!3210:3210,$G$4)","v":0},0]
[null,null,null,null,null,null,0,{"$f":"INDEX(Ranks!3211:3211,$G$4)","v":0},0]
[null,null,null,null,null,null,0,{"$f":"INDEX(Ranks!3212:3212,$G$4)","v":0},0]
[null,null,null,null,null,null,0,{"$f":"INDEX(Ranks!3213:3213,$G$4)","v":0},0]
[null,null,null,null,null,null,0,{"$f":"INDEX(Ranks!3214:3214,$G$4)","v":0},0]
[null,null,null,null,null,null,0,{"$f":"INDEX(Ranks!3215:3215,$G$4)","v":0},0]
[null,null,null,null,null,null,0,{"$f":"INDEX(Ranks!3216:3216,$G$4)","v":0},0]
[null,null,null,null,null,null,0,{"$f":"INDEX(Ranks!3217:3217,$G$4)","v":0},0]
[null,null,null,null,null,null,0,{"$f":"INDEX(Ranks!3218:3218,$G$4)","v":0},0]
[null,null,null,null,null,null,0,{"$f":"INDEX(Ranks!3219:3219,$G$4)","v":0},0]
[null,null,null,null,null,null,0,{"$f":"INDEX(Ranks!3220:3220,$G$4)","v":0},0]
[null,null,null,null,null,null,0,{"$f":"INDEX(Ranks!3221:3221,$G$4)","v":0},0]
[null,null,null,null,null,null,0,{"$f":"INDEX(Ranks!3222:3222,$G$4)","v":0},0]
[null,null,null,null,null,null,0,{"$f":"INDEX(Ranks!3223:3223,$G$4)","v":0},0]
[null,null,null,null,null,null,0,{"$f":"INDEX(Ranks!3224:3224,$G$4)","v":0},0]
[null,null,null,null,null,null,0,{"$f":"INDEX(Ranks!3225:3225,$G$4)","v":0},0]
[null,null,null,null,null,null,0,{"$f":"INDEX(Ranks!3226:3226,$G$4)","v":0},0]
[null,null,null,null,null,null,0,{"$f":"INDEX(Ranks!3227:3227,$G$4)","v":0},0]
[null,null,null,null,null,null,0,{"$f":"INDEX(Ranks!3228:3228,$G$4)","v":0},0]
[null,null,null,null,null,null,0,{"$f":"INDEX(Ranks!3229:3229,$G$4)","v":0},0]
[null,null,null,null,null,null,0,{"$f":"INDEX(Ranks!3230:3230,$G$4)","v":0},0]
[null,null,null,null,null,null,0,{"$f":"INDEX(Ranks!3231:3231,$G$4)","v":0},0]
[null,null,null,null,null,null,0,{"$f":"INDEX(Ranks!3232:3232,$G$4)","v":0},0]
[null,null,null,null,null,null,0,{"$f":"INDEX(Ranks!3233:3233,$G$4)","v":0},0]
[null,null,null,null,null,null,0,{"$f":"INDEX(Ranks!3234:3234,$G$4)","v":0},0]
[null,null,null,null,null,null,0,{"$f":"INDEX(Ranks!3235:3235,$G$4)","v":0},0]
[null,null,null,null,null,null,0,{"$f":"INDEX(Ranks!3236:3236,$G$4)","v":0},0]
[null,null,null,null,null,null,0,{"$f":"INDEX(Ranks!3237:3237,$G$4)","v":0},0]
[null,null,null,null,null,null,0,{"$f":"INDEX(Ranks!3238:3238,$G$4)","v":0},0]
[null,null,null,null,null,null,0,{"$f":"INDEX(Ranks!3239:3239,$G$4)","v":0},0]
[null,null,null,null,null,null,0,{"$f":"INDEX(Ranks!3240:3240,$G$4)","v":0},0]
[null,null,null,null,null,null,0,{"$f":"INDEX(Ranks!3241:3241,$G$4)","v":0},0]
[null,null,null,null,null,null,0,{"$f":"INDEX(Ranks!3242:3242,$G$4)","v":0},0]
[null,null,null,null,null,null,0,{"$f":"INDEX(Ranks!3243:3243,$G$4)","v":0},0]
[null,null,null,null,null,null,0,{"$f":"INDEX(Ranks!3244:3244,$G$4)","v":0},0]
[null,null,null,null,null,null,0,{"$f":"INDEX(Ranks!3245:3245,$G$4)","v":0},0]
[null,null,null,null,null,null,0,{"$f":"INDEX(Ranks!3246:3246,$G$4)","v":0},0]
[null,null,null,null,null,null,0,{"$f":"INDEX(Ranks!3247:3247,$G$4)","v":0},0]
[null,null,null,null,null,null,0,{"$f":"INDEX(Ranks!3248:3248,$G$4)","v":0},0]
[null,null,null,null,null,null,0,{"$f":"INDEX(Ranks!3249:3249,$G$4)","v":0},0]
[null,null,null,null,null,null,0,{"$f":"INDEX(Ranks!3250:3250,$G$4)","v":0},0]
[null,null,null,null,null,null,0,{"$f":"INDEX(Ranks!3251:3251,$G$4)","v":0},0]
[null,null,null,null,null,null,0,{"$f":"INDEX(Ranks!3252:3252,$G$4)","v":0},0]
[null,null,null,null,null,null,0,{"$f":"INDEX(Ranks!3253:3253,$G$4)","v":0},0]
[null,null,null,null,null,null,0,{"$f":"INDEX(Ranks!3254:3254,$G$4)","v":0},0]
[null,null,null,null,null,null,0,{"$f":"INDEX(Ranks!3255:3255,$G$4)","v":0},0]
[null,null,null,null,null,null,0,{"$f":"INDEX(Ranks!3256:3256,$G$4)","v":0},0]
[null,null,null,null,null,null,0,{"$f":"INDEX(Ranks!3257:3257,$G$4)","v":0},0]
[null,null,null,null,null,null,0,{"$f":"INDEX(Ranks!3258:3258,$G$4)","v":0},0]
[null,null,null,null,null,null,0,{"$f":"INDEX(Ranks!3259:3259,$G$4)","v":0},0]
[null,null,null,null,null,null,0,{"$f":"INDEX(Ranks!3260:3260,$G$4)","v":0},0]
[null,null,null,null,null,null,0,{"$f":"INDEX(Ranks!3261:3261,$G$4)","v":0},0]
[null,null,null,null,null,null,0,{"$f":"INDEX(Ranks!3262:3262,$G$4)","v":0},0]
[null,null,null,null,null,null,0,{"$f":"INDEX(Ranks!3263:3263,$G$4)","v":0},0]
[null,null,null,null,null,null,0,{"$f":"INDEX(Ranks!3264:3264,$G$4)","v":0},0]
[null,null,null,null,null,null,0,{"$f":"INDEX(Ranks!3265:3265,$G$4)","v":0},0]
[null,null,null,null,null,null,0,{"$f":"INDEX(Ranks!3266:3266,$G$4)","v":0},0]
[null,null,null,null,null,null,0,{"$f":"INDEX(Ranks!3267:3267,$G$4)","v":0},0]
[null,null,null,null,null,null,0,{"$f":"INDEX(Ranks!3268:3268,$G$4)","v":0},0]
[null,null,null,null,null,null,0,{"$f":"INDEX(Ranks!3269:3269,$G$4)","v":0},0]
[null,null,null,null,null,null,{"$f":"IFERROR(INT(H3270*100),H3270)","v":0},{"$f":"INDEX(Ranks!3270:3270,$G$4)","v":0},{"$f":"IF(H3270=\"\",-1,IF(H3270=-1,\"\",H3270))","v":0}]
[null,null,null,null,null,null,0,{"$f":"INDEX(Ranks!3271:3271,$G$4)","v":0},0]
[null,null,null,null,null,null,0,{"$f":"INDEX(Ranks!3272:3272,$G$4)","v":0},0]
[null,null,null,null,null,null,0,{"$f":"INDEX(Ranks!3273:3273,$G$4)","v":0},0]
[null,null,null,null,null,null,0,{"$f":"INDEX(Ranks!3274:3274,$G$4)","v":0},0]
[null,null,null,null,null,null,0,{"$f":"INDEX(Ranks!3275:3275,$G$4)","v":0},0]
[null,null,null,null,null,null,0,{"$f":"INDEX(Ranks!3276:3276,$G$4)","v":0},0]
[null,null,null,null,null,null,0,{"$f":"INDEX(Ranks!3277:3277,$G$4)","v":0},0]
[null,null,null,null,null,null,0,{"$f":"INDEX(Ranks!3278:3278,$G$4)","v":0},0]
[null,null,null,null,null,null,0,{"$f":"INDEX(Ranks!3279:3279,$G$4)","v":0},0]
[null,null,null,null,null,null,0,{"$f":"INDEX(Ranks!3280:3280,$G$4)","v":0},0]
[null,null,null,null,null,null,0,{"$f":"INDEX(Ranks!3281:3281,$G$4)","v":0},0]
[null,null,null,null,null,null,0,{"$f":"INDEX(Ranks!3282:3282,$G$4)","v":0},0]
[null,null,null,null,null,null,0,{"$f":"INDEX(Ranks!3283:3283,$G$4)","v":0},0]
[null,null,null,null,null,null,0,{"$f":"INDEX(Ranks!3284:3284,$G$4)","v":0},0]
[null,null,null,null,null,null,0,{"$f":"INDEX(Ranks!3285:3285,$G$4)","v":0},0]
[null,null,null,null,null,null,0,{"$f":"INDEX(Ranks!3286:3286,$G$4)","v":0},0]
[null,null,null,null,null,null,0,{"$f":"INDEX(Ranks!3287:3287,$G$4)","v":0},0]
[null,null,null,null,null,null,0,{"$f":"INDEX(Ranks!3288:3288,$G$4)","v":0},0]
[null,null,null,null,null,null,0,{"$f":"INDEX(Ranks!3289:3289,$G$4)","v":0},0]
[null,null,null,null,null,null,0,{"$f":"INDEX(Ranks!3290:3290,$G$4)","v":0},0]
[null,null,null,null,null,null,0,{"$f":"INDEX(Ranks!3291:3291,$G$4)","v":0},0]
[null,null,null,null,null,null,0,{"$f":"INDEX(Ranks!3292:3292,$G$4)","v":0},0]
[null,null,null,null,null,null,0,{"$f":"INDEX(Ranks!3293:3293,$G$4)","v":0},0]
[null,null,null,null,null,null,0,{"$f":"INDEX(Ranks!3294:3294,$G$4)","v":0},0]
[null,null,null,null,null,null,0,{"$f":"INDEX(Ranks!3295:3295,$G$4)","v":0},0]
[null,null,null,null,null,null,0,{"$f":"INDEX(Ranks!3296:3296,$G$4)","v":0},0]
[null,null,null,null,null,null,0,{"$f":"INDEX(Ranks!3297:3297,$G$4)","v":0},0]
[null,null,null,null,null,null,0,{"$f":"INDEX(Ranks!3298:3298,$G$4)","v":0},0]
[null,null,null,null,null,null,0,{"$f":"INDEX(Ranks!3299:3299,$G$4)","v":0},0]
[null,null,null,null,null,null,0,{"$f":"INDEX(Ranks!3300:3300,$G$4)","v":0},0]
[null,null,null,null,null,null,0,{"$f":"INDEX(Ranks!3301:3301,$G$4)","v":0},0]
[null,null,null,null,null,null,0,{"$f":"INDEX(Ranks!3302:3302,$G$4)","v":0},0]
[null,null,null,null,null,null,0,{"$f":"INDEX(Ranks!3303:3303,$G$4)","v":0},0]
[null,null,null,null,null,null,0,{"$f":"INDEX(Ranks!3304:3304,$G$4)","v":0},0]
[null,null,null,null,null,null,0,{"$f":"INDEX(Ranks!3305:3305,$G$4)","v":0},0]
[null,null,null,null,null,null,0,{"$f":"INDEX(Ranks!3306:3306,$G$4)","v":0},0]
[null,null,null,null,null,null,0,{"$f":"INDEX(Ranks!3307:3307,$G$4)","v":0},0]
[null,null,null,null,null,null,0,{"$f":"INDEX(Ranks!3308:3308,$G$4)","v":0},0]
[null,null,null,null,null,null,0,{"$f":"INDEX(Ranks!3309:3309,$G$4)","v":0},0]
[null,null,null,null,null,null,0,{"$f":"INDEX(Ranks!3310:3310,$G$4)","v":0},0]
[null,null,null,null,null,null,0,{"$f":"INDEX(Ranks!3311:3311,$G$4)","v":0},0]
[null,null,null,null,null,null,0,{"$f":"INDEX(Ranks!3312:3312,$G$4)","v":0},0]
[null,null,null,null,null,null,0,{"$f":"INDEX(Ranks!3313:3313,$G$4)","v":0},0]
[null,null,null,null,null,null,0,{"$f":"INDEX(Ranks!3314:3314,$G$4)","v":0},0]
[null,null,null,null,null,null,0,{"$f":"INDEX(Ranks!3315:3315,$G$4)","v":0},0]
[null,null,null,null,null,null,0,{"$f":"INDEX(Ranks!3316:3316,$G$4)","v":0},0]
[null,null,null,null,null,null,0,{"$f":"INDEX(Ranks!3317:3317,$G$4)","v":0},0]
[null,null,null,null,null,null,0,{"$f":"INDEX(Ranks!3318:3318,$G$4)","v":0},0]
[null,null,null,null,null,null,0,{"$f":"INDEX(Ranks!3319:3319,$G$4)","v":0},0]
[null,null,null,null,null,null,0,{"$f":"INDEX(Ranks!3320:3320,$G$4)","v":0},0]
[null,null,null,null,null,null,0,{"$f":"INDEX(Ranks!3321:3321,$G$4)","v":0},0]
[null,null,null,null,null,null,0,{"$f":"INDEX(Ranks!3322:3322,$G$4)","v":0},0]
[null,null,null,null,null,null,0,{"$f":"INDEX(Ranks!3323:3323,$G$4)","v":0},0]
[null,null,null,null,null,null,0,{"$f":"INDEX(Ranks!3324:3324,$G$4)","v":0},0]
[null,null,null,null,null,null,0,{"$f":"INDEX(Ranks!3325:3325,$G$4)","v":0},0]
[null,null,null,null,null,null,0,{"$f":"INDEX(Ranks!3326:3326,$G$4)","v":0},0]
[null,null,null,null,null,null,0,{"$f":"INDEX(Ranks!3327:3327,$G$4)","v":0},0]
[null,null,null,null,null,null,0,{"$f":"INDEX(Ranks!3328:3328,$G$4)","v":0},0]
[null,null,null,null,null,null,0,{"$f":"INDEX(Ranks!3329:3329,$G$4)","v":0},0]
[null,null,null,null,null,null,0,{"$f":"INDEX(Ranks!3330:3330,$G$4)","v":0},0]
[null,null,null,null,null,null,0,{"$f":"INDEX(Ranks!3331:3331,$G$4)","v":0},0]
[null,null,null,null,null,null,0,{"$f":"INDEX(Ranks!3332:3332,$G$4)","v":0},0]
[null,null,null,null,null,null,0,{"$f":"INDEX(Ranks!3333:3333,$G$4)","v":0},0]
[null,null,null,null,null,null,{"$f":"IFERROR(INT(H3334*100),H3334)","v":0},{"$f":"INDEX(Ranks!3334:3334,$G$4)","v":0},{"$f":"IF(H3334=\"\",-1,IF(H3334=-1,\"\",H3334))","v":0}]
[null,null,null,null,null,null,0,{"$f":"INDEX(Ranks!3335:3335,$G$4)","v":0},0]
[null,null,null,null,null,null,0,{"$f":"INDEX(Ranks!3336:3336,$G$4)","v":0},0]
[null,null,null,null,null,null,0,{"$f":"INDEX(Ranks!3337:3337,$G$4)","v":0},0]
[null,null,null,null,null,null,0,{"$f":"INDEX(Ranks!3338:3338,$G$4)","v":0},0]
[null,null,null,null,null,null,0,{"$f":"INDEX(Ranks!3339:3339,$G$4)","v":0},0]
[null,null,null,null,null,null,0,{"$f":"INDEX(Ranks!3340:3340,$G$4)","v":0},0]
[null,null,null,null,null,null,0,{"$f":"INDEX(Ranks!3341:3341,$G$4)","v":0},0]
[null,null,null,null,null,null,0,{"$f":"INDEX(Ranks!3342:3342,$G$4)","v":0},0]
[null,null,null,null,null,null,0,{"$f":"INDEX(Ranks!3343:3343,$G$4)","v":0},0]
[null,null,null,null,null,null,0,{"$f":"INDEX(Ranks!3344:3344,$G$4)","v":0},0]
[null,null,null,null,null,null,0,{"$f":"INDEX(Ranks!3345:3345,$G$4)","v":0},0]
[null,null,null,null,null,null,0,{"$f":"INDEX(Ranks!3346:3346,$G$4)","v":0},0]
[null,null,null,null,null,null,0,{"$f":"INDEX(Ranks!3347:3347,$G$4)","v":0},0]
[null,null,null,null,null,null,0,{"$f":"INDEX(Ranks!3348:3348,$G$4)","v":0},0]
[null,null,null,null,null,null,0,{"$f":"INDEX(Ranks!3349:3349,$G$4)","v":0},0]
[null,null,null,null,null,null,0,{"$f":"INDEX(Ranks!3350:3350,$G$4)","v":0},0]
[null,null,null,null,null,null,0,{"$f":"INDEX(Ranks!3351:3351,$G$4)","v":0},0]
[null,null,null,null,null,null,0,{"$f":"INDEX(Ranks!3352:3352,$G$4)","v":0},0]
[null,null,null,null,null,null,0,{"$f":"INDEX(Ranks!3353:3353,$G$4)","v":0},0]
[null,null,null,null,null,null,0,{"$f":"INDEX(Ranks!3354:3354,$G$4)","v":0},0]
[null,null,null,null,null,null,0,{"$f":"INDEX(Ranks!3355:3355,$G$4)","v":0},0]
[null,null,null,null,null,null,0,{"$f":"INDEX(Ranks!3356:3356,$G$4)","v":0},0]
[null,null,null,null,null,null,0,{"$f":"INDEX(Ranks!3357:3357,$G$4)","v":0},0]
[null,null,null,null,null,null,0,{"$f":"INDEX(Ranks!3358:3358,$G$4)","v":0},0]
[null,null,null,null,null,null,0,{"$f":"INDEX(Ranks!3359:3359,$G$4)","v":0},0]
[null,null,null,null,null,null,0,{"$f":"INDEX(Ranks!3360:3360,$G$4)","v":0},0]
[null,null,null,null,null,null,0,{"$f":"INDEX(Ranks!3361:3361,$G$4)","v":0},0]
[null,null,null,null,null,null,0,{"$f":"INDEX(Ranks!3362:3362,$G$4)","v":0},0]
[null,null,null,null,null,null,0,{"$f":"INDEX(Ranks!3363:3363,$G$4)","v":0},0]
[null,null,null,null,null,null,0,{"$f":"INDEX(Ranks!3364:3364,$G$4)","v":0},0]
[null,null,null,null,null,null,0,{"$f":"INDEX(Ranks!3365:3365,$G$4)","v":0},0]
[null,null,null,null,null,null,0,{"$f":"INDEX(Ranks!3366:3366,$G$4)","v":0},0]
[null,null,null,null,null,null,0,{"$f":"INDEX(Ranks!3367:3367,$G$4)","v":0},0]
[null,null,null,null,null,null,0,{"$f":"INDEX(Ranks!3368:3368,$G$4)","v":0},0]
[null,null,null,null,null,null,0,{"$f":"INDEX(Ranks!3369:3369,$G$4)","v":0},0]
[null,null,null,null,null,null,0,{"$f":"INDEX(Ranks!3370:3370,$G$4)","v":0},0]
[null,null,null,null,null,null,0,{"$f":"INDEX(Ranks!3371:3371,$G$4)","v":0},0]
[null,null,null,null,null,null,0,{"$f":"INDEX(Ranks!3372:3372,$G$4)","v":0},0]
[null,null,null,null,null,null,0,{"$f":"INDEX(Ranks!3373:3373,$G$4)","v":0},0]
[null,null,null,null,null,null,0,{"$f":"INDEX(Ranks!3374:3374,$G$4)","v":0},0]
[null,null,null,null,null,null,0,{"$f":"INDEX(Ranks!3375:3375,$G$4)","v":0},0]
[null,null,null,null,null,null,0,{"$f":"INDEX(Ranks!3376:3376,$G$4)","v":0},0]
[null,null,null,null,null,null,0,{"$f":"INDEX(Ranks!3377:3377,$G$4)","v":0},0]
[null,null,null,null,null,null,0,{"$f":"INDEX(Ranks!3378:3378,$G$4)","v":0},0]
[null,null,null,null,null,null,0,{"$f":"INDEX(Ranks!3379:3379,$G$4)","v":0},0]
[null,null,null,null,null,null,0,{"$f":"INDEX(Ranks!3380:3380,$G$4)","v":0},0]
[null,null,null,null,null,null,0,{"$f":"INDEX(Ranks!3381:3381,$G$4)","v":0},0]
[null,null,null,null,null,null,0,{"$f":"INDEX(Ranks!3382:3382,$G$4)","v":0},0]
[null,null,null,null,null,null,0,{"$f":"INDEX(Ranks!3383:3383,$G$4)","v":0},0]
[null,null,null,null,null,null,0,{"$f":"INDEX(Ranks!3384:3384,$G$4)","v":0},0]
[null,null,null,null,null,null,0,{"$f":"INDEX(Ranks!3385:3385,$G$4)","v":0},0]
[null,null,null,null,null,null,0,{"$f":"INDEX(Ranks!3386:3386,$G$4)","v":0},0]
[null,null,null,null,null,null,0,{"$f":"INDEX(Ranks!3387:3387,$G$4)","v":0},0]
[null,null,null,null,null,null,0,{"$f":"INDEX(Ranks!3388:3388,$G$4)","v":0},0]
[null,null,null,null,null,null,0,{"$f":"INDEX(Ranks!3389:3389,$G$4)","v":0},0]
[null,null,null,null,null,null,0,{"$f":"INDEX(Ranks!3390:3390,$G$4)","v":0},0]
[null,null,null,null,null,null,0,{"$f":"INDEX(Ranks!3391:3391,$G$4)","v":0},0]
[null,null,null,null,null,null,0,{"$f":"INDEX(Ranks!3392:3392,$G$4)","v":0},0]
[null,null,null,null,null,null,0,{"$f":"INDEX(Ranks!3393:3393,$G$4)","v":0},0]
[null,null,null,null,null,null,0,{"$f":"INDEX(Ranks!3394:3394,$G$4)","v":0},0]
[null,null,null,null,null,null,0,{"$f":"INDEX(Ranks!3395:3395,$G$4)","v":0},0]
[null,null,null,null,null,null,0,{"$f":"INDEX(Ranks!3396:3396,$G$4)","v":0},0]
[null,null,null,null,null,null,0,{"$f":"INDEX(Ranks!3397:3397,$G$4)","v":0},0]
[null,null,null,null,null,null,{"$f":"IFERROR(INT(H3398*100),H3398)","v":0},{"$f":"INDEX(Ranks!3398:3398,$G$4)","v":0},{"$f":"IF(H3398=\"\",-1,IF(H3398=-1,\"\",H3398))","v":0}]
[null,null,null,null,null,null,0,{"$f":"INDEX(Ranks!3399:3399,$G$4)","v":0},0]
[null,null,null,null,null,null,0,{"$f":"INDEX(Ranks!3400:3400,$G$4)","v":0},0]
[null,null,null,null,null,null,0,{"$f":"INDEX(Ranks!3401:3401,$G$4)","v":0},0]
[null,null,null,null,null,null,0,{"$f":"INDEX(Ranks!3402:3402,$G$4)","v":0},0]
[null,null,null,null,null,null,0,{"$f":"INDEX(Ranks!3403:3403,$G$4)","v":0},0]
[null,null,null,null,null,null,0,{"$f":"INDEX(Ranks!3404:3404,$G$4)","v":0},0]
[null,null,null,null,null,null,0,{"$f":"INDEX(Ranks!3405:3405,$G$4)","v":0},0]
[null,null,null,null,null,null,0,{"$f":"INDEX(Ranks!3406:3406,$G$4)","v":0},0]
[null,null,null,null,null,null,0,{"$f":"INDEX(Ranks!3407:3407,$G$4)","v":0},0]
[null,null,null,null,null,null,0,{"$f":"INDEX(Ranks!3408:3408,$G$4)","v":0},0]
[null,null,null,null,null,null,0,{"$f":"INDEX(Ranks!3409:3409,$G$4)","v":0},0]
[null,null,null,null,null,null,0,{"$f":"INDEX(Ranks!3410:3410,$G$4)","v":0},0]
[null,null,null,null,null,null,0,{"$f":"INDEX(Ranks!3411:3411,$G$4)","v":0},0]
[null,null,null,null,null,null,0,{"$f":"INDEX(Ranks!3412:3412,$G$4)","v":0},0]
[null,null,null,null,null,null,0,{"$f":"INDEX(Ranks!3413:3413,$G$4)","v":0},0]
[null,null,null,null,null,null,0,{"$f":"INDEX(Ranks!3414:3414,$G$4)","v":0},0]
[null,null,null,null,null,null,0,{"$f":"INDEX(Ranks!3415:3415,$G$4)","v":0},0]
[null,null,null,null,null,null,0,{"$f":"INDEX(Ranks!3416:3416,$G$4)","v":0},0]
[null,null,null,null,null,null,0,{"$f":"INDEX(Ranks!3417:3417,$G$4)","v":0},0]
[null,null,null,null,null,null,0,{"$f":"INDEX(Ranks!3418:3418,$G$4)","v":0},0]
[null,null,null,null,null,null,0,{"$f":"INDEX(Ranks!3419:3419,$G$4)","v":0},0]
[null,null,null,null,null,null,0,{"$f":"INDEX(Ranks!3420:3420,$G$4)","v":0},0]
[null,null,null,null,null,null,0,{"$f":"INDEX(Ranks!3421:3421,$G$4)","v":0},0]
[null,null,null,null,null,null,0,{"$f":"INDEX(Ranks!3422:3422,$G$4)","v":0},0]
[null,null,null,null,null,null,0,{"$f":"INDEX(Ranks!3423:3423,$G$4)","v":0},0]
[null,null,null,null,null,null,0,{"$f":"INDEX(Ranks!3424:3424,$G$4)","v":0},0]
[null,null,null,null,null,null,0,{"$f":"INDEX(Ranks!3425:3425,$G$4)","v":0},0]
[null,null,null,null,null,null,0,{"$f":"INDEX(Ranks!3426:3426,$G$4)","v":0},0]
[null,null,null,null,null,null,0,{"$f":"INDEX(Ranks!3427:3427,$G$4)","v":0},0]
[null,null,null,null,null,null,0,{"$f":"INDEX(Ranks!3428:3428,$G$4)","v":0},0]
[null,null,null,null,null,null,0,{"$f":"INDEX(Ranks!3429:3429,$G$4)","v":0},0]
[null,null,null,null,null,null,0,{"$f":"INDEX(Ranks!3430:3430,$G$4)","v":0},0]
[null,null,null,null,null,null,0,{"$f":"INDEX(Ranks!3431:3431,$G$4)","v":0},0]
[null,null,null,null,null,null,0,{"$f":"INDEX(Ranks!3432:3432,$G$4)","v":0},0]
[null,null,null,null,null,null,0,{"$f":"INDEX(Ranks!3433:3433,$G$4)","v":0},0]
[null,null,null,null,null,null,0,{"$f":"INDEX(Ranks!3434:3434,$G$4)","v":0},0]
[null,null,null,null,null,null,0,{"$f":"INDEX(Ranks!3435:3435,$G$4)","v":0},0]
[null,null,null,null,null,null,0,{"$f":"INDEX(Ranks!3436:3436,$G$4)","v":0},0]
[null,null,null,null,null,null,0,{"$f":"INDEX(Ranks!3437:3437,$G$4)","v":0},0]
[null,null,null,null,null,null,0,{"$f":"INDEX(Ranks!3438:3438,$G$4)","v":0},0]
[null,null,null,null,null,null,0,{"$f":"INDEX(Ranks!3439:3439,$G$4)","v":0},0]
[null,null,null,null,null,null,0,{"$f":"INDEX(Ranks!3440:3440,$G$4)","v":0},0]
[null,null,null,null,null,null,0,{"$f":"INDEX(Ranks!3441:3441,$G$4)","v":0},0]
[null,null,null,null,null,null,0,{"$f":"INDEX(Ranks!3442:3442,$G$4)","v":0},0]
[null,null,null,null,null,null,0,{"$f":"INDEX(Ranks!3443:3443,$G$4)","v":0},0]
[null,null,null,null,null,null,0,{"$f":"INDEX(Ranks!3444:3444,$G$4)","v":0},0]
[null,null,null,null,null,null,0,{"$f":"INDEX(Ranks!3445:3445,$G$4)","v":0},0]
[null,null,null,null,null,null,0,{"$f":"INDEX(Ranks!3446:3446,$G$4)","v":0},0]
[null,null,null,null,null,null,0,{"$f":"INDEX(Ranks!3447:3447,$G$4)","v":0},0]
[null,null,null,null,null,null,0,{"$f":"INDEX(Ranks!3448:3448,$G$4)","v":0},0]
[null,null,null,null,null,null,0,{"$f":"INDEX(Ranks!3449:3449,$G$4)","v":0},0]
[null,null,null,null,null,null,0,{"$f":"INDEX(Ranks!3450:3450,$G$4)","v":0},0]
[null,null,null,null,null,null,0,{"$f":"INDEX(Ranks!3451:3451,$G$4)","v":0},0]
[null,null,null,null,null,null,0,{"$f":"INDEX(Ranks!3452:3452,$G$4)","v":0},0]
[null,null,null,null,null,null,0,{"$f":"INDEX(Ranks!3453:3453,$G$4)","v":0},0]
[null,null,null,null,null,null,0,{"$f":"INDEX(Ranks!3454:3454,$G$4)","v":0},0]
[null,null,null,null,null,null,0,{"$f":"INDEX(Ranks!3455:3455,$G$4)","v":0},0]
[null,null,null,null,null,null,0,{"$f":"INDEX(Ranks!3456:3456,$G$4)","v":0},0]
[null,null,null,null,null,null,0,{"$f":"INDEX(Ranks!3457:3457,$G$4)","v":0},0]
[null,null,null,null,null,null,0,{"$f":"INDEX(Ranks!3458:3458,$G$4)","v":0},0]
[null,null,null,null,null,null,0,{"$f":"INDEX(Ranks!3459:3459,$G$4)","v":0},0]
[null,null,null,null,null,null,0,{"$f":"INDEX(Ranks!3460:3460,$G$4)","v":0},0]
[null,null,null,null,null,null,0,{"$f":"INDEX(Ranks!3461:3461,$G$4)","v":0},0]
[null,null,null,null,null,null,{"$f":"IFERROR(INT(H3462*100),H3462)","v":0},{"$f":"INDEX(Ranks!3462:3462,$G$4)","v":0},{"$f":"IF(H3462=\"\",-1,IF(H3462=-1,\"\",H3462))","v":0}]
[null,null,null,null,null,null,0,{"$f":"INDEX(Ranks!3463:3463,$G$4)","v":0},0]
[null,null,null,null,null,null,0,{"$f":"INDEX(Ranks!3464:3464,$G$4)","v":0},0]
[null,null,null,null,null,null,0,{"$f":"INDEX(Ranks!3465:3465,$G$4)","v":0},0]
[null,null,null,null,null,null,0,{"$f":"INDEX(Ranks!3466:3466,$G$4)","v":0},0]
[null,null,null,null,null,null,0,{"$f":"INDEX(Ranks!3467:3467,$G$4)","v":0},0]
[null,null,null,null,null,null,0,{"$f":"INDEX(Ranks!3468:3468,$G$4)","v":0},0]
[null,null,null,null,null,null,0,{"$f":"INDEX(Ranks!3469:3469,$G$4)","v":0},0]
[null,null,null,null,null,null,0,{"$f":"INDEX(Ranks!3470:3470,$G$4)","v":0},0]
[null,null,null,null,null,null,0,{"$f":"INDEX(Ranks!3471:3471,$G$4)","v":0},0]
[null,null,null,null,null,null,0,{"$f":"INDEX(Ranks!3472:3472,$G$4)","v":0},0]
[null,null,null,null,null,null,0,{"$f":"INDEX(Ranks!3473:3473,$G$4)","v":0},0]
[null,null,null,null,null,null,0,{"$f":"INDEX(Ranks!3474:3474,$G$4)","v":0},0]
[null,null,null,null,null,null,0,{"$f":"INDEX(Ranks!3475:3475,$G$4)","v":0},0]
[null,null,null,null,null,null,0,{"$f":"INDEX(Ranks!3476:3476,$G$4)","v":0},0]
[null,null,null,null,null,null,0,{"$f":"INDEX(Ranks!3477:3477,$G$4)","v":0},0]
[null,null,null,null,null,null,0,{"$f":"INDEX(Ranks!3478:3478,$G$4)","v":0},0]
[null,null,null,null,null,null,0,{"$f":"INDEX(Ranks!3479:3479,$G$4)","v":0},0]
[null,null,null,null,null,null,0,{"$f":"INDEX(Ranks!3480:3480,$G$4)","v":0},0]
[null,null,null,null,null,null,0,{"$f":"INDEX(Ranks!3481:3481,$G$4)","v":0},0]
[null,null,null,null,null,null,0,{"$f":"INDEX(Ranks!3482:3482,$G$4)","v":0},0]
[null,null,null,null,null,null,0,{"$f":"INDEX(Ranks!3483:3483,$G$4)","v":0},0]
[null,null,null,null,null,null,0,{"$f":"INDEX(Ranks!3484:3484,$G$4)","v":0},0]
[null,null,null,null,null,null,0,{"$f":"INDEX(Ranks!3485:3485,$G$4)","v":0},0]
[null,null,null,null,null,null,0,{"$f":"INDEX(Ranks!3486:3486,$G$4)","v":0},0]
[null,null,null,null,null,null,0,{"$f":"INDEX(Ranks!3487:3487,$G$4)","v":0},0]
[null,null,null,null,null,null,0,{"$f":"INDEX(Ranks!3488:3488,$G$4)","v":0},0]
[null,null,null,null,null,null,0,{"$f":"INDEX(Ranks!3489:3489,$G$4)","v":0},0]
[null,null,null,null,null,null,0,{"$f":"INDEX(Ranks!3490:3490,$G$4)","v":0},0]
[null,null,null,null,null,null,0,{"$f":"INDEX(Ranks!3491:3491,$G$4)","v":0},0]
[null,null,null,null,null,null,0,{"$f":"INDEX(Ranks!3492:3492,$G$4)","v":0},0]
[null,null,null,null,null,null,0,{"$f":"INDEX(Ranks!3493:3493,$G$4)","v":0},0]
[null,null,null,null,null,null,0,{"$f":"INDEX(Ranks!3494:3494,$G$4)","v":0},0]
[null,null,null,null,null,null,0,{"$f":"INDEX(Ranks!3495:3495,$G$4)","v":0},0]
[null,null,null,null,null,null,0,{"$f":"INDEX(Ranks!3496:3496,$G$4)","v":0},0]
[null,null,null,null,null,null,0,{"$f":"INDEX(Ranks!3497:3497,$G$4)","v":0},0]
[null,null,null,null,null,null,0,{"$f":"INDEX(Ranks!3498:3498,$G$4)","v":0},0]
[null,null,null,null,null,null,0,{"$f":"INDEX(Ranks!3499:3499,$G$4)","v":0},0]
[null,null,null,null,null,null,0,{"$f":"INDEX(Ranks!3500:3500,$G$4)","v":0},0]
[null,null,null,null,null,null,0,{"$f":"INDEX(Ranks!3501:3501,$G$4)","v":0},0]
[null,null,null,null,null,null,0,{"$f":"INDEX(Ranks!3502:3502,$G$4)","v":0},0]
[null,null,null,null,null,null,0,{"$f":"INDEX(Ranks!3503:3503,$G$4)","v":0},0]
[null,null,null,null,null,null,0,{"$f":"INDEX(Ranks!3504:3504,$G$4)","v":0},0]
[null,null,null,null,null,null,0,{"$f":"INDEX(Ranks!3505:3505,$G$4)","v":0},0]
[null,null,null,null,null,null,0,{"$f":"INDEX(Ranks!3506:3506,$G$4)","v":0},0]
[null,null,null,null,null,null,0,{"$f":"INDEX(Ranks!3507:3507,$G$4)","v":0},0]
[null,null,null,null,null,null,0,{"$f":"INDEX(Ranks!3508:3508,$G$4)","v":0},0]
[null,null,null,null,null,null,0,{"$f":"INDEX(Ranks!3509:3509,$G$4)","v":0},0]
[null,null,null,null,null,null,0,{"$f":"INDEX(Ranks!3510:3510,$G$4)","v":0},0]
[null,null,null,null,null,null,0,{"$f":"INDEX(Ranks!3511:3511,$G$4)","v":0},0]
[null,null,null,null,null,null,0,{"$f":"INDEX(Ranks!3512:3512,$G$4)","v":0},0]
[null,null,null,null,null,null,0,{"$f":"INDEX(Ranks!3513:3513,$G$4)","v":0},0]
[null,null,null,null,null,null,0,{"$f":"INDEX(Ranks!3514:3514,$G$4)","v":0},0]
[null,null,null,null,null,null,0,{"$f":"INDEX(Ranks!3515:3515,$G$4)","v":0},0]
[null,null,null,null,null,null,0,{"$f":"INDEX(Ranks!3516:3516,$G$4)","v":0},0]
[null,null,null,null,null,null,0,{"$f":"INDEX(Ranks!3517:3517,$G$4)","v":0},0]
[null,null,null,null,null,null,0,{"$f":"INDEX(Ranks!3518:3518,$G$4)","v":0},0]
[null,null,null,null,null,null,0,{"$f":"INDEX(Ranks!3519:3519,$G$4)","v":0},0]
[null,null,null,null,null,null,0,{"$f":"INDEX(Ranks!3520:3520,$G$4)","v":0},0]
[null,null,null,null,null,null,0,{"$f":"INDEX(Ranks!3521:3521,$G$4)","v":0},0]
[null,null,null,null,null,null,0,{"$f":"INDEX(Ranks!3522:3522,$G$4)","v":0},0]
[null,null,null,null,null,null,0,{"$f":"INDEX(Ranks!3523:3523,$G$4)","v":0},0]
[null,null,null,null,null,null,0,{"$f":"INDEX(Ranks!3524:3524,$G$4)","v":0},0]
[null,null,null,null,null,null,0,{"$f":"INDEX(Ranks!3525:3525,$G$4)","v":0},0]
[null,null,null,null,null,null,{"$f":"IFERROR(INT(H3526*100),H3526)","v":0},{"$f":"INDEX(Ranks!3526:3526,$G$4)","v":0},{"$f":"IF(H3526=\"\",-1,IF(H3526=-1,\"\",H3526))","v":0}]
[null,null,null,null,null,null,0,{"$f":"INDEX(Ranks!3527:3527,$G$4)","v":0},0]
[null,null,null,null,null,null,0,{"$f":"INDEX(Ranks!3528:3528,$G$4)","v":0},0]
[null,null,null,null,null,null,0,{"$f":"INDEX(Ranks!3529:3529,$G$4)","v":0},0]
[null,null,null,null,null,null,0,{"$f":"INDEX(Ranks!3530:3530,$G$4)","v":0},0]
[null,null,null,null,null,null,0,{"$f":"INDEX(Ranks!3531:3531,$G$4)","v":0},0]
[null,null,null,null,null,null,0,{"$f":"INDEX(Ranks!3532:3532,$G$4)","v":0},0]
[null,null,null,null,null,null,0,{"$f":"INDEX(Ranks!3533:3533,$G$4)","v":0},0]
[null,null,null,null,null,null,0,{"$f":"INDEX(Ranks!3534:3534,$G$4)","v":0},0]
[null,null,null,null,null,null,0,{"$f":"INDEX(Ranks!3535:3535,$G$4)","v":0},0]
[null,null,null,null,null,null,0,{"$f":"INDEX(Ranks!3536:3536,$G$4)","v":0},0]
[null,null,null,null,null,null,0,{"$f":"INDEX(Ranks!3537:3537,$G$4)","v":0},0]
[null,null,null,null,null,null,0,{"$f":"INDEX(Ranks!3538:3538,$G$4)","v":0},0]
[null,null,null,null,null,null,0,{"$f":"INDEX(Ranks!3539:3539,$G$4)","v":0},0]
[null,null,null,null,null,null,0,{"$f":"INDEX(Ranks!3540:3540,$G$4)","v":0},0]
[null,null,null,null,null,null,0,{"$f":"INDEX(Ranks!3541:3541,$G$4)","v":0},0]
[null,null,null,null,null,null,0,{"$f":"INDEX(Ranks!3542:3542,$G$4)","v":0},0]
[null,null,null,null,null,null,0,{"$f":"INDEX(Ranks!3543:3543,$G$4)","v":0},0]
[null,null,null,null,null,null,0,{"$f":"INDEX(Ranks!3544:3544,$G$4)","v":0},0]
[null,null,null,null,null,null,0,{"$f":"INDEX(Ranks!3545:3545,$G$4)","v":0},0]
[null,null,null,null,null,null,0,{"$f":"INDEX(Ranks!3546:3546,$G$4)","v":0},0]
[null,null,null,null,null,null,0,{"$f":"INDEX(Ranks!3547:3547,$G$4)","v":0},0]
[null,null,null,null,null,null,0,{"$f":"INDEX(Ranks!3548:3548,$G$4)","v":0},0]
[null,null,null,null,null,null,0,{"$f":"INDEX(Ranks!3549:3549,$G$4)","v":0},0]
[null,null,null,null,null,null,0,{"$f":"INDEX(Ranks!3550:3550,$G$4)","v":0},0]
[null,null,null,null,null,null,0,{"$f":"INDEX(Ranks!3551:3551,$G$4)","v":0},0]
[null,null,null,null,null,null,0,{"$f":"INDEX(Ranks!3552:3552,$G$4)","v":0},0]
[null,null,null,null,null,null,0,{"$f":"INDEX(Ranks!3553:3553,$G$4)","v":0},0]
[null,null,null,null,null,null,0,{"$f":"INDEX(Ranks!3554:3554,$G$4)","v":0},0]
[null,null,null,null,null,null,0,{"$f":"INDEX(Ranks!3555:3555,$G$4)","v":0},0]
[null,null,null,null,null,null,0,{"$f":"INDEX(Ranks!3556:3556,$G$4)","v":0},0]
[null,null,null,null,null,null,0,{"$f":"INDEX(Ranks!3557:3557,$G$4)","v":0},0]
[null,null,null,null,null,null,0,{"$f":"INDEX(Ranks!3558:3558,$G$4)","v":0},0]
[null,null,null,null,null,null,0,{"$f":"INDEX(Ranks!3559:3559,$G$4)","v":0},0]
[null,null,null,null,null,null,0,{"$f":"INDEX(Ranks!3560:3560,$G$4)","v":0},0]
[null,null,null,null,null,null,0,{"$f":"INDEX(Ranks!3561:3561,$G$4)","v":0},0]
[null,null,null,null,null,null,0,{"$f":"INDEX(Ranks!3562:3562,$G$4)","v":0},0]
[null,null,null,null,null,null,0,{"$f":"INDEX(Ranks!3563:3563,$G$4)","v":0},0]
[null,null,null,null,null,null,0,{"$f":"INDEX(Ranks!3564:3564,$G$4)","v":0},0]
[null,null,null,null,null,null,0,{"$f":"INDEX(Ranks!3565:3565,$G$4)","v":0},0]
[null,null,null,null,null,null,0,{"$f":"INDEX(Ranks!3566:3566,$G$4)","v":0},0]
[null,null,null,null,null,null,0,{"$f":"INDEX(Ranks!3567:3567,$G$4)","v":0},0]
[null,null,null,null,null,null,0,{"$f":"INDEX(Ranks!3568:3568,$G$4)","v":0},0]
[null,null,null,null,null,null,0,{"$f":"INDEX(Ranks!3569:3569,$G$4)","v":0},0]
[null,null,null,null,null,null,0,{"$f":"INDEX(Ranks!3570:3570,$G$4)","v":0},0]
[null,null,null,null,null,null,0,{"$f":"INDEX(Ranks!3571:3571,$G$4)","v":0},0]
[null,null,null,null,null,null,0,{"$f":"INDEX(Ranks!3572:3572,$G$4)","v":0},0]
[null,null,null,null,null,null,0,{"$f":"INDEX(Ranks!3573:3573,$G$4)","v":0},0]
[null,null,null,null,null,null,0,{"$f":"INDEX(Ranks!3574:3574,$G$4)","v":0},0]
[null,null,null,null,null,null,0,{"$f":"INDEX(Ranks!3575:3575,$G$4)","v":0},0]
[null,null,null,null,null,null,0,{"$f":"INDEX(Ranks!3576:3576,$G$4)","v":0},0]
[null,null,null,null,null,null,0,{"$f":"INDEX(Ranks!3577:3577,$G$4)","v":0},0]
[null,null,null,null,null,null,0,{"$f":"INDEX(Ranks!3578:3578,$G$4)","v":0},0]
[null,null,null,null,null,null,0,{"$f":"INDEX(Ranks!3579:3579,$G$4)","v":0},0]
[null,null,null,null,null,null,0,{"$f":"INDEX(Ranks!3580:3580,$G$4)","v":0},0]
[null,null,null,null,null,null,0,{"$f":"INDEX(Ranks!3581:3581,$G$4)","v":0},0]
[null,null,null,null,null,null,0,{"$f":"INDEX(Ranks!3582:3582,$G$4)","v":0},0]
[null,null,null,null,null,null,0,{"$f":"INDEX(Ranks!3583:3583,$G$4)","v":0},0]
[null,null,null,null,null,null,0,{"$f":"INDEX(Ranks!3584:3584,$G$4)","v":0},0]
[null,null,null,null,null,null,0,{"$f":"INDEX(Ranks!3585:3585,$G$4)","v":0},0]
[null,null,null,null,null,null,0,{"$f":"INDEX(Ranks!3586:3586,$G$4)","v":0},0]
[null,null,null,null,null,null,0,{"$f":"INDEX(Ranks!3587:3587,$G$4)","v":0},0]
[null,null,null,null,null,null,0,{"$f":"INDEX(Ranks!3588:3588,$G$4)","v":0},0]
[null,null,null,null,null,null,0,{"$f":"INDEX(Ranks!3589:3589,$G$4)","v":0},0]
[null,null,null,null,null,null,{"$f":"IFERROR(INT(H3590*100),H3590)","v":0},{"$f":"INDEX(Ranks!3590:3590,$G$4)","v":0},{"$f":"IF(H3590=\"\",-1,IF(H3590=-1,\"\",H3590))","v":0}]
[null,null,null,null,null,null,0,{"$f":"INDEX(Ranks!3591:3591,$G$4)","v":0},0]
[null,null,null,null,null,null,0,{"$f":"INDEX(Ranks!3592:3592,$G$4)","v":0},0]
[null,null,null,null,null,null,0,{"$f":"INDEX(Ranks!3593:3593,$G$4)","v":0},0]
[null,null,null,null,null,null,0,{"$f":"INDEX(Ranks!3594:3594,$G$4)","v":0},0]
[null,null,null,null,null,null,0,{"$f":"INDEX(Ranks!3595:3595,$G$4)","v":0},0]
[null,null,null,null,null,null,0,{"$f":"INDEX(Ranks!3596:3596,$G$4)","v":0},0]
[null,null,null,null,null,null,0,{"$f":"INDEX(Ranks!3597:3597,$G$4)","v":0},0]
[null,null,null,null,null,null,0,{"$f":"INDEX(Ranks!3598:3598,$G$4)","v":0},0]
[null,null,null,null,null,null,0,{"$f":"INDEX(Ranks!3599:3599,$G$4)","v":0},0]
[null,null,null,null,null,null,0,{"$f":"INDEX(Ranks!3600:3600,$G$4)","v":0},0]
[null,null,null,null,null,null,0,{"$f":"INDEX(Ranks!3601:3601,$G$4)","v":0},0]
[null,null,null,null,null,null,0,{"$f":"INDEX(Ranks!3602:3602,$G$4)","v":0},0]
[null,null,null,null,null,null,0,{"$f":"INDEX(Ranks!3603:3603,$G$4)","v":0},0]
[null,null,null,null,null,null,0,{"$f":"INDEX(Ranks!3604:3604,$G$4)","v":0},0]
[null,null,null,null,null,null,0,{"$f":"INDEX(Ranks!3605:3605,$G$4)","v":0},0]
[null,null,null,null,null,null,0,{"$f":"INDEX(Ranks!3606:3606,$G$4)","v":0},0]
[null,null,null,null,null,null,0,{"$f":"INDEX(Ranks!3607:3607,$G$4)","v":0},0]
[null,null,null,null,null,null,0,{"$f":"INDEX(Ranks!3608:3608,$G$4)","v":0},0]
[null,null,null,null,null,null,0,{"$f":"INDEX(Ranks!3609:3609,$G$4)","v":0},0]
[null,null,null,null,null,null,0,{"$f":"INDEX(Ranks!3610:3610,$G$4)","v":0},0]
[null,null,null,null,null,null,0,{"$f":"INDEX(Ranks!3611:3611,$G$4)","v":0},0]
[null,null,null,null,null,null,0,{"$f":"INDEX(Ranks!3612:3612,$G$4)","v":0},0]
[null,null,null,null,null,null,0,{"$f":"INDEX(Ranks!3613:3613,$G$4)","v":0},0]
[null,null,null,null,null,null,0,{"$f":"INDEX(Ranks!3614:3614,$G$4)","v":0},0]
[null,null,null,null,null,null,0,{"$f":"INDEX(Ranks!3615:3615,$G$4)","v":0},0]
[null,null,null,null,null,null,0,{"$f":"INDEX(Ranks!3616:3616,$G$4)","v":0},0]
[null,null,null,null,null,null,0,{"$f":"INDEX(Ranks!3617:3617,$G$4)","v":0},0]
[null,null,null,null,null,null,0,{"$f":"INDEX(Ranks!3618:3618,$G$4)","v":0},0]
[null,null,null,null,null,null,0,{"$f":"INDEX(Ranks!3619:3619,$G$4)","v":0},0]
[null,null,null,null,null,null,0,{"$f":"INDEX(Ranks!3620:3620,$G$4)","v":0},0]
[null,null,null,null,null,null,0,{"$f":"INDEX(Ranks!3621:3621,$G$4)","v":0},0]
[null,null,null,null,null,null,0,{"$f":"INDEX(Ranks!3622:3622,$G$4)","v":0},0]
[null,null,null,null,null,null,0,{"$f":"INDEX(Ranks!3623:3623,$G$4)","v":0},0]
[null,null,null,null,null,null,0,{"$f":"INDEX(Ranks!3624:3624,$G$4)","v":0},0]
[null,null,null,null,null,null,0,{"$f":"INDEX(Ranks!3625:3625,$G$4)","v":0},0]
[null,null,null,null,null,null,0,{"$f":"INDEX(Ranks!3626:3626,$G$4)","v":0},0]
[null,null,null,null,null,null,0,{"$f":"INDEX(Ranks!3627:3627,$G$4)","v":0},0]
[null,null,null,null,null,null,0,{"$f":"INDEX(Ranks!3628:3628,$G$4)","v":0},0]
[null,null,null,null,null,null,0,{"$f":"INDEX(Ranks!3629:3629,$G$4)","v":0},0]
[null,null,null,null,null,null,0,{"$f":"INDEX(Ranks!3630:3630,$G$4)","v":0},0]
[null,null,null,null,null,null,0,{"$f":"INDEX(Ranks!3631:3631,$G$4)","v":0},0]
[null,null,null,null,null,null,0,{"$f":"INDEX(Ranks!3632:3632,$G$4)","v":0},0]
[null,null,null,null,null,null,0,{"$f":"INDEX(Ranks!3633:3633,$G$4)","v":0},0]
[null,null,null,null,null,null,0,{"$f":"INDEX(Ranks!3634:3634,$G$4)","v":0},0]
[null,null,null,null,null,null,0,{"$f":"INDEX(Ranks!3635:3635,$G$4)","v":0},0]
[null,null,null,null,null,null,0,{"$f":"INDEX(Ranks!3636:3636,$G$4)","v":0},0]
[null,null,null,null,null,null,0,{"$f":"INDEX(Ranks!3637:3637,$G$4)","v":0},0]
[null,null,null,null,null,null,0,{"$f":"INDEX(Ranks!3638:3638,$G$4)","v":0},0]
[null,null,null,null,null,null,0,{"$f":"INDEX(Ranks!3639:3639,$G$4)","v":0},0]
[null,null,null,null,null,null,0,{"$f":"INDEX(Ranks!3640:3640,$G$4)","v":0},0]
[null,null,null,null,null,null,0,{"$f":"INDEX(Ranks!3641:3641,$G$4)","v":0},0]
[null,null,null,null,null,null,0,{"$f":"INDEX(Ranks!3642:3642,$G$4)","v":0},0]
[null,null,null,null,null,null,0,{"$f":"INDEX(Ranks!3643:3643,$G$4)","v":0},0]
[null,null,null,null,null,null,0,{"$f":"INDEX(Ranks!3644:3644,$G$4)","v":0},0]
[null,null,null,null,null,null,0,{"$f":"INDEX(Ranks!3645:3645,$G$4)","v":0},0]
[null,null,null,null,null,null,0,{"$f":"INDEX(Ranks!3646:3646,$G$4)","v":0},0]
[null,null,null,null,null,null,0,{"$f":"INDEX(Ranks!3647:3647,$G$4)","v":0},0]
[null,null,null,null,null,null,0,{"$f":"INDEX(Ranks!3648:3648,$G$4)","v":0},0]
[null,null,null,null,null,null,0,{"$f":"INDEX(Ranks!3649:3649,$G$4)","v":0},0]
[null,null,null,null,null,null,0,{"$f":"INDEX(Ranks!3650:3650,$G$4)","v":0},0]
[null,null,null,null,null,null,0,{"$f":"INDEX(Ranks!3651:3651,$G$4)","v":0},0]
[null,null,null,null,null,null,0,{"$f":"INDEX(Ranks!3652:3652,$G$4)","v":0},0]
[null,null,null,null,null,null,0,{"$f":"INDEX(Ranks!3653:3653,$G$4)","v":0},0]
[null,null,null,null,null,null,{"$f":"IFERROR(INT(H3654*100),H3654)","v":0},{"$f":"INDEX(Ranks!3654:3654,$G$4)","v":0},{"$f":"IF(H3654=\"\",-1,IF(H3654=-1,\"\",H3654))","v":0}]
[null,null,null,null,null,null,0,{"$f":"INDEX(Ranks!3655:3655,$G$4)","v":0},0]
[null,null,null,null,null,null,0,{"$f":"INDEX(Ranks!3656:3656,$G$4)","v":0},0]
[null,null,null,null,null,null,0,{"$f":"INDEX(Ranks!3657:3657,$G$4)","v":0},0]
[null,null,null,null,null,null,0,{"$f":"INDEX(Ranks!3658:3658,$G$4)","v":0},0]
[null,null,null,null,null,null,0,{"$f":"INDEX(Ranks!3659:3659,$G$4)","v":0},0]
[null,null,null,null,null,null,0,{"$f":"INDEX(Ranks!3660:3660,$G$4)","v":0},0]
[null,null,null,null,null,null,0,{"$f":"INDEX(Ranks!3661:3661,$G$4)","v":0},0]
[null,null,null,null,null,null,0,{"$f":"INDEX(Ranks!3662:3662,$G$4)","v":0},0]
[null,null,null,null,null,null,0,{"$f":"INDEX(Ranks!3663:3663,$G$4)","v":0},0]
[null,null,null,null,null,null,0,{"$f":"INDEX(Ranks!3664:3664,$G$4)","v":0},0]
[null,null,null,null,null,null,0,{"$f":"INDEX(Ranks!3665:3665,$G$4)","v":0},0]
[null,null,null,null,null,null,0,{"$f":"INDEX(Ranks!3666:3666,$G$4)","v":0},0]
[null,null,null,null,null,null,0,{"$f":"INDEX(Ranks!3667:3667,$G$4)","v":0},0]
[null,null,null,null,null,null,0,{"$f":"INDEX(Ranks!3668:3668,$G$4)","v":0},0]
[null,null,null,null,null,null,0,{"$f":"INDEX(Ranks!3669:3669,$G$4)","v":0},0]
[null,null,null,null,null,null,0,{"$f":"INDEX(Ranks!3670:3670,$G$4)","v":0},0]
[null,null,null,null,null,null,0,{"$f":"INDEX(Ranks!3671:3671,$G$4)","v":0},0]
[null,null,null,null,null,null,0,{"$f":"INDEX(Ranks!3672:3672,$G$4)","v":0},0]
[null,null,null,null,null,null,0,{"$f":"INDEX(Ranks!3673:3673,$G$4)","v":0},0]
[null,null,null,null,null,null,0,{"$f":"INDEX(Ranks!3674:3674,$G$4)","v":0},0]
[null,null,null,null,null,null,0,{"$f":"INDEX(Ranks!3675:3675,$G$4)","v":0},0]
[null,null,null,null,null,null,0,{"$f":"INDEX(Ranks!3676:3676,$G$4)","v":0},0]
[null,null,null,null,null,null,0,{"$f":"INDEX(Ranks!3677:3677,$G$4)","v":0},0]
[null,null,null,null,null,null,0,{"$f":"INDEX(Ranks!3678:3678,$G$4)","v":0},0]
[null,null,null,null,null,null,0,{"$f":"INDEX(Ranks!3679:3679,$G$4)","v":0},0]
[null,null,null,null,null,null,0,{"$f":"INDEX(Ranks!3680:3680,$G$4)","v":0},0]
[null,null,null,null,null,null,0,{"$f":"INDEX(Ranks!3681:3681,$G$4)","v":0},0]
[null,null,null,null,null,null,0,{"$f":"INDEX(Ranks!3682:3682,$G$4)","v":0},0]
[null,null,null,null,null,null,0,{"$f":"INDEX(Ranks!3683:3683,$G$4)","v":0},0]
[null,null,null,null,null,null,0,{"$f":"INDEX(Ranks!3684:3684,$G$4)","v":0},0]
[null,null,null,null,null,null,0,{"$f":"INDEX(Ranks!3685:3685,$G$4)","v":0},0]
[null,null,null,null,null,null,0,{"$f":"INDEX(Ranks!3686:3686,$G$4)","v":0},0]
[null,null,null,null,null,null,0,{"$f":"INDEX(Ranks!3687:3687,$G$4)","v":0},0]
[null,null,null,null,null,null,0,{"$f":"INDEX(Ranks!3688:3688,$G$4)","v":0},0]
[null,null,null,null,null,null,0,{"$f":"INDEX(Ranks!3689:3689,$G$4)","v":0},0]
[null,null,null,null,null,null,0,{"$f":"INDEX(Ranks!3690:3690,$G$4)","v":0},0]
[null,null,null,null,null,null,0,{"$f":"INDEX(Ranks!3691:3691,$G$4)","v":0},0]
[null,null,null,null,null,null,0,{"$f":"INDEX(Ranks!3692:3692,$G$4)","v":0},0]
[null,null,null,null,null,null,0,{"$f":"INDEX(Ranks!3693:3693,$G$4)","v":0},0]
[null,null,null,null,null,null,0,{"$f":"INDEX(Ranks!3694:3694,$G$4)","v":0},0]
[null,null,null,null,null,null,0,{"$f":"INDEX(Ranks!3695:3695,$G$4)","v":0},0]
[null,null,null,null,null,null,0,{"$f":"INDEX(Ranks!3696:3696,$G$4)","v":0},0]
[null,null,null,null,null,null,0,{"$f":"INDEX(Ranks!3697:3697,$G$4)","v":0},0]
[null,null,null,null,null,null,0,{"$f":"INDEX(Ranks!3698:3698,$G$4)","v":0},0]
[null,null,null,null,null,null,0,{"$f":"INDEX(Ranks!3699:3699,$G$4)","v":0},0]
[null,null,null,null,null,null,0,{"$f":"INDEX(Ranks!3700:3700,$G$4)","v":0},0]
[null,null,null,null,null,null,0,{"$f":"INDEX(Ranks!3701:3701,$G$4)","v":0},0]
[null,null,null,null,null,null,0,{"$f":"INDEX(Ranks!3702:3702,$G$4)","v":0},0]
[null,null,null,null,null,null,0,{"$f":"INDEX(Ranks!3703:3703,$G$4)","v":0},0]
[null,null,null,null,null,null,0,{"$f":"INDEX(Ranks!3704:3704,$G$4)","v":0},0]
[null,null,null,null,null,null,0,{"$f":"INDEX(Ranks!3705:3705,$G$4)","v":0},0]
[null,null,null,null,null,null,0,{"$f":"INDEX(Ranks!3706:3706,$G$4)","v":0},0]
[null,null,null,null,null,null,0,{"$f":"INDEX(Ranks!3707:3707,$G$4)","v":0},0]
[null,null,null,null,null,null,0,{"$f":"INDEX(Ranks!3708:3708,$G$4)","v":0},0]
[null,null,null,null,null,null,0,{"$f":"INDEX(Ranks!3709:3709,$G$4)","v":0},0]
[null,null,null,null,null,null,0,{"$f":"INDEX(Ranks!3710:3710,$G$4)","v":0},0]
[null,null,null,null,null,null,0,{"$f":"INDEX(Ranks!3711:3711,$G$4)","v":0},0]
[null,null,null,null,null,null,0,{"$f":"INDEX(Ranks!3712:3712,$G$4)","v":0},0]
[null,null,null,null,null,null,0,{"$f":"INDEX(Ranks!3713:3713,$G$4)","v":0},0]
[null,null,null,null,null,null,0,{"$f":"INDEX(Ranks!3714:3714,$G$4)","v":0},0]
[null,null,null,null,null,null,0,{"$f":"INDEX(Ranks!3715:3715,$G$4)","v":0},0]
[null,null,null,null,null,null,0,{"$f":"INDEX(Ranks!3716:3716,$G$4)","v":0},0]
[null,null,null,null,null,null,0,{"$f":"INDEX(Ranks!3717:3717,$G$4)","v":0},0]
[null,null,null,null,null,null,{"$f":"IFERROR(INT(H3718*100),H3718)","v":0},{"$f":"INDEX(Ranks!3718:3718,$G$4)","v":0},{"$f":"IF(H3718=\"\",-1,IF(H3718=-1,\"\",H3718))","v":0}]
[null,null,null,null,null,null,0,{"$f":"INDEX(Ranks!3719:3719,$G$4)","v":0},0]
[null,null,null,null,null,null,0,{"$f":"INDEX(Ranks!3720:3720,$G$4)","v":0},0]
[null,null,null,null,null,null,0,{"$f":"INDEX(Ranks!3721:3721,$G$4)","v":0},0]
[null,null,null,null,null,null,0,{"$f":"INDEX(Ranks!3722:3722,$G$4)","v":0},0]
[null,null,null,null,null,null,0,{"$f":"INDEX(Ranks!3723:3723,$G$4)","v":0},0]
[null,null,null,null,null,null,0,{"$f":"INDEX(Ranks!3724:3724,$G$4)","v":0},0]
[null,null,null,null,null,null,0,{"$f":"INDEX(Ranks!3725:3725,$G$4)","v":0},0]
[null,null,null,null,null,null,0,{"$f":"INDEX(Ranks!3726:3726,$G$4)","v":0},0]
[null,null,null,null,null,null,0,{"$f":"INDEX(Ranks!3727:3727,$G$4)","v":0},0]
[null,null,null,null,null,null,0,{"$f":"INDEX(Ranks!3728:3728,$G$4)","v":0},0]
[null,null,null,null,null,null,0,{"$f":"INDEX(Ranks!3729:3729,$G$4)","v":0},0]
[null,null,null,null,null,null,0,{"$f":"INDEX(Ranks!3730:3730,$G$4)","v":0},0]
[null,null,null,null,null,null,0,{"$f":"INDEX(Ranks!3731:3731,$G$4)","v":0},0]
[null,null,null,null,null,null,0,{"$f":"INDEX(Ranks!3732:3732,$G$4)","v":0},0]
[null,null,null,null,null,null,0,{"$f":"INDEX(Ranks!3733:3733,$G$4)","v":0},0]
[null,null,null,null,null,null,0,{"$f":"INDEX(Ranks!3734:3734,$G$4)","v":0},0]
[null,null,null,null,null,null,0,{"$f":"INDEX(Ranks!3735:3735,$G$4)","v":0},0]
[null,null,null,null,null,null,0,{"$f":"INDEX(Ranks!3736:3736,$G$4)","v":0},0]
[null,null,null,null,null,null,0,{"$f":"INDEX(Ranks!3737:3737,$G$4)","v":0},0]
[null,null,null,null,null,null,0,{"$f":"INDEX(Ranks!3738:3738,$G$4)","v":0},0]
[null,null,null,null,null,null,0,{"$f":"INDEX(Ranks!3739:3739,$G$4)","v":0},0]
[null,null,null,null,null,null,0,{"$f":"INDEX(Ranks!3740:3740,$G$4)","v":0},0]
[null,null,null,null,null,null,0,{"$f":"INDEX(Ranks!3741:3741,$G$4)","v":0},0]
[null,null,null,null,null,null,0,{"$f":"INDEX(Ranks!3742:3742,$G$4)","v":0},0]
[null,null,null,null,null,null,0,{"$f":"INDEX(Ranks!3743:3743,$G$4)","v":0},0]
[null,null,null,null,null,null,0,{"$f":"INDEX(Ranks!3744:3744,$G$4)","v":0},0]
[null,null,null,null,null,null,0,{"$f":"INDEX(Ranks!3745:3745,$G$4)","v":0},0]
[null,null,null,null,null,null,0,{"$f":"INDEX(Ranks!3746:3746,$G$4)","v":0},0]
[null,null,null,null,null,null,0,{"$f":"INDEX(Ranks!3747:3747,$G$4)","v":0},0]
[null,null,null,null,null,null,0,{"$f":"INDEX(Ranks!3748:3748,$G$4)","v":0},0]
[null,null,null,null,null,null,0,{"$f":"INDEX(Ranks!3749:3749,$G$4)","v":0},0]
[null,null,null,null,null,null,0,{"$f":"INDEX(Ranks!3750:3750,$G$4)","v":0},0]
[null,null,null,null,null,null,0,{"$f":"INDEX(Ranks!3751:3751,$G$4)","v":0},0]
[null,null,null,null,null,null,0,{"$f":"INDEX(Ranks!3752:3752,$G$4)","v":0},0]
[null,null,null,null,null,null,0,{"$f":"INDEX(Ranks!3753:3753,$G$4)","v":0},0]
[null,null,null,null,null,null,0,{"$f":"INDEX(Ranks!3754:3754,$G$4)","v":0},0]
[null,null,null,null,null,null,0,{"$f":"INDEX(Ranks!3755:3755,$G$4)","v":0},0]
[null,null,null,null,null,null,0,{"$f":"INDEX(Ranks!3756:3756,$G$4)","v":0},0]
[null,null,null,null,null,null,0,{"$f":"INDEX(Ranks!3757:3757,$G$4)","v":0},0]
[null,null,null,null,null,null,0,{"$f":"INDEX(Ranks!3758:3758,$G$4)","v":0},0]
[null,null,null,null,null,null,0,{"$f":"INDEX(Ranks!3759:3759,$G$4)","v":0},0]
[null,null,null,null,null,null,0,{"$f":"INDEX(Ranks!3760:3760,$G$4)","v":0},0]
[null,null,null,null,null,null,0,{"$f":"INDEX(Ranks!3761:3761,$G$4)","v":0},0]
[null,null,null,null,null,null,0,{"$f":"INDEX(Ranks!3762:3762,$G$4)","v":0},0]
[null,null,null,null,null,null,0,{"$f":"INDEX(Ranks!3763:3763,$G$4)","v":0},0]
[null,null,null,null,null,null,0,{"$f":"INDEX(Ranks!3764:3764,$G$4)","v":0},0]
[null,null,null,null,null,null,0,{"$f":"INDEX(Ranks!3765:3765,$G$4)","v":0},0]
[null,null,null,null,null,null,0,{"$f":"INDEX(Ranks!3766:3766,$G$4)","v":0},0]
[null,null,null,null,null,null,0,{"$f":"INDEX(Ranks!3767:3767,$G$4)","v":0},0]
[null,null,null,null,null,null,0,{"$f":"INDEX(Ranks!3768:3768,$G$4)","v":0},0]
[null,null,null,null,null,null,0,{"$f":"INDEX(Ranks!3769:3769,$G$4)","v":0},0]
[null,null,null,null,null,null,0,{"$f":"INDEX(Ranks!3770:3770,$G$4)","v":0},0]
[null,null,null,null,null,null,0,{"$f":"INDEX(Ranks!3771:3771,$G$4)","v":0},0]
[null,null,null,null,null,null,0,{"$f":"INDEX(Ranks!3772:3772,$G$4)","v":0},0]
[null,null,null,null,null,null,0,{"$f":"INDEX(Ranks!3773:3773,$G$4)","v":0},0]
[null,null,null,null,null,null,0,{"$f":"INDEX(Ranks!3774:3774,$G$4)","v":0},0]
[null,null,null,null,null,null,0,{"$f":"INDEX(Ranks!3775:3775,$G$4)","v":0},0]
[null,null,null,null,null,null,0,{"$f":"INDEX(Ranks!3776:3776,$G$4)","v":0},0]
[null,null,null,null,null,null,0,{"$f":"INDEX(Ranks!3777:3777,$G$4)","v":0},0]
[null,null,null,null,null,null,0,{"$f":"INDEX(Ranks!3778:3778,$G$4)","v":0},0]
[null,null,null,null,null,null,0,{"$f":"INDEX(Ranks!3779:3779,$G$4)","v":0},0]
[null,null,null,null,null,null,0,{"$f":"INDEX(Ranks!3780:3780,$G$4)","v":0},0]
[null,null,null,null,null,null,0,{"$f":"INDEX(Ranks!3781:3781,$G$4)","v":0},0]
[null,null,null,null,null,null,{"$f":"IFERROR(INT(H3782*100),H3782)","v":0},{"$f":"INDEX(Ranks!3782:3782,$G$4)","v":0},{"$f":"IF(H3782=\"\",-1,IF(H3782=-1,\"\",H3782))","v":0}]
[null,null,null,null,null,null,0,{"$f":"INDEX(Ranks!3783:3783,$G$4)","v":0},0]
[null,null,null,null,null,null,0,{"$f":"INDEX(Ranks!3784:3784,$G$4)","v":0},0]
[null,null,null,null,null,null,0,{"$f":"INDEX(Ranks!3785:3785,$G$4)","v":0},0]
[null,null,null,null,null,null,0,{"$f":"INDEX(Ranks!3786:3786,$G$4)","v":0},0]
[null,null,null,null,null,null,0,{"$f":"INDEX(Ranks!3787:3787,$G$4)","v":0},0]
[null,null,null,null,null,null,0,{"$f":"INDEX(Ranks!3788:3788,$G$4)","v":0},0]
[null,null,null,null,null,null,0,{"$f":"INDEX(Ranks!3789:3789,$G$4)","v":0},0]
[null,null,null,null,null,null,0,{"$f":"INDEX(Ranks!3790:3790,$G$4)","v":0},0]
[null,null,null,null,null,null,0,{"$f":"INDEX(Ranks!3791:3791,$G$4)","v":0},0]
[null,null,null,null,null,null,0,{"$f":"INDEX(Ranks!3792:3792,$G$4)","v":0},0]
[null,null,null,null,null,null,0,{"$f":"INDEX(Ranks!3793:3793,$G$4)","v":0},0]
[null,null,null,null,null,null,0,{"$f":"INDEX(Ranks!3794:3794,$G$4)","v":0},0]
[null,null,null,null,null,null,0,{"$f":"INDEX(Ranks!3795:3795,$G$4)","v":0},0]
[null,null,null,null,null,null,0,{"$f":"INDEX(Ranks!3796:3796,$G$4)","v":0},0]
[null,null,null,null,null,null,0,{"$f":"INDEX(Ranks!3797:3797,$G$4)","v":0},0]
[null,null,null,null,null,null,0,{"$f":"INDEX(Ranks!3798:3798,$G$4)","v":0},0]
[null,null,null,null,null,null,0,{"$f":"INDEX(Ranks!3799:3799,$G$4)","v":0},0]
[null,null,null,null,null,null,0,{"$f":"INDEX(Ranks!3800:3800,$G$4)","v":0},0]
[null,null,null,null,null,null,0,{"$f":"INDEX(Ranks!3801:3801,$G$4)","v":0},0]
[null,null,null,null,null,null,0,{"$f":"INDEX(Ranks!3802:3802,$G$4)","v":0},0]
[null,null,null,null,null,null,0,{"$f":"INDEX(Ranks!3803:3803,$G$4)","v":0},0]
[null,null,null,null,null,null,0,{"$f":"INDEX(Ranks!3804:3804,$G$4)","v":0},0]
[null,null,null,null,null,null,0,{"$f":"INDEX(Ranks!3805:3805,$G$4)","v":0},0]
[null,null,null,null,null,null,0,{"$f":"INDEX(Ranks!3806:3806,$G$4)","v":0},0]
[null,null,null,null,null,null,0,{"$f":"INDEX(Ranks!3807:3807,$G$4)","v":0},0]
[null,null,null,null,null,null,0,{"$f":"INDEX(Ranks!3808:3808,$G$4)","v":0},0]
[null,null,null,null,null,null,0,{"$f":"INDEX(Ranks!3809:3809,$G$4)","v":0},0]
[null,null,null,null,null,null,0,{"$f":"INDEX(Ranks!3810:3810,$G$4)","v":0},0]
[null,null,null,null,null,null,0,{"$f":"INDEX(Ranks!3811:3811,$G$4)","v":0},0]
[null,null,null,null,null,null,0,{"$f":"INDEX(Ranks!3812:3812,$G$4)","v":0},0]
[null,null,null,null,null,null,0,{"$f":"INDEX(Ranks!3813:3813,$G$4)","v":0},0]
[null,null,null,null,null,null,0,{"$f":"INDEX(Ranks!3814:3814,$G$4)","v":0},0]
[null,null,null,null,null,null,0,{"$f":"INDEX(Ranks!3815:3815,$G$4)","v":0},0]
[null,null,null,null,null,null,0,{"$f":"INDEX(Ranks!3816:3816,$G$4)","v":0},0]
[null,null,null,null,null,null,0,{"$f":"INDEX(Ranks!3817:3817,$G$4)","v":0},0]
[null,null,null,null,null,null,0,{"$f":"INDEX(Ranks!3818:3818,$G$4)","v":0},0]
[null,null,null,null,null,null,0,{"$f":"INDEX(Ranks!3819:3819,$G$4)","v":0},0]
[null,null,null,null,null,null,0,{"$f":"INDEX(Ranks!3820:3820,$G$4)","v":0},0]
[null,null,null,null,null,null,0,{"$f":"INDEX(Ranks!3821:3821,$G$4)","v":0},0]
[null,null,null,null,null,null,0,{"$f":"INDEX(Ranks!3822:3822,$G$4)","v":0},0]
[null,null,null,null,null,null,0,{"$f":"INDEX(Ranks!3823:3823,$G$4)","v":0},0]
[null,null,null,null,null,null,0,{"$f":"INDEX(Ranks!3824:3824,$G$4)","v":0},0]
[null,null,null,null,null,null,0,{"$f":"INDEX(Ranks!3825:3825,$G$4)","v":0},0]
[null,null,null,null,null,null,0,{"$f":"INDEX(Ranks!3826:3826,$G$4)","v":0},0]
[null,null,null,null,null,null,0,{"$f":"INDEX(Ranks!3827:3827,$G$4)","v":0},0]
[null,null,null,null,null,null,0,{"$f":"INDEX(Ranks!3828:3828,$G$4)","v":0},0]
[null,null,null,null,null,null,0,{"$f":"INDEX(Ranks!3829:3829,$G$4)","v":0},0]
[null,null,null,null,null,null,0,{"$f":"INDEX(Ranks!3830:3830,$G$4)","v":0},0]
[null,null,null,null,null,null,0,{"$f":"INDEX(Ranks!3831:3831,$G$4)","v":0},0]
[null,null,null,null,null,null,0,{"$f":"INDEX(Ranks!3832:3832,$G$4)","v":0},0]
[null,null,null,null,null,null,0,{"$f":"INDEX(Ranks!3833:3833,$G$4)","v":0},0]
[null,null,null,null,null,null,0,{"$f":"INDEX(Ranks!3834:3834,$G$4)","v":0},0]
[null,null,null,null,null,null,0,{"$f":"INDEX(Ranks!3835:3835,$G$4)","v":0},0]
[null,null,null,null,null,null,0,{"$f":"INDEX(Ranks!3836:3836,$G$4)","v":0},0]
[null,null,null,null,null,null,0,{"$f":"INDEX(Ranks!3837:3837,$G$4)","v":0},0]
[null,null,null,null,null,null,0,{"$f":"INDEX(Ranks!3838:3838,$G$4)","v":0},0]
[null,null,null,null,null,null,0,{"$f":"INDEX(Ranks!3839:3839,$G$4)","v":0},0]
[null,null,null,null,null,null,0,{"$f":"INDEX(Ranks!3840:3840,$G$4)","v":0},0]
[null,null,null,null,null,null,0,{"$f":"INDEX(Ranks!3841:3841,$G$4)","v":0},0]
[null,null,null,null,null,null,0,{"$f":"INDEX(Ranks!3842:3842,$G$4)","v":0},0]
[null,null,null,null,null,null,0,{"$f":"INDEX(Ranks!3843:3843,$G$4)","v":0},0]
[null,null,null,null,null,null,0,{"$f":"INDEX(Ranks!3844:3844,$G$4)","v":0},0]
[null,null,null,null,null,null,0,{"$f":"INDEX(Ranks!3845:3845,$G$4)","v":0},0]
[null,null,null,null,null,null,{"$f":"IFERROR(INT(H3846*100),H3846)","v":0},{"$f":"INDEX(Ranks!3846:3846,$G$4)","v":0},{"$f":"IF(H3846=\"\",-1,IF(H3846=-1,\"\",H3846))","v":0}]
[null,null,null,null,null,null,0,{"$f":"INDEX(Ranks!3847:3847,$G$4)","v":0},0]
[null,null,null,null,null,null,0,{"$f":"INDEX(Ranks!3848:3848,$G$4)","v":0},0]
[null,null,null,null,null,null,0,{"$f":"INDEX(Ranks!3849:3849,$G$4)","v":0},0]
[null,null,null,null,null,null,0,{"$f":"INDEX(Ranks!3850:3850,$G$4)","v":0},0]
[null,null,null,null,null,null,0,{"$f":"INDEX(Ranks!3851:3851,$G$4)","v":0},0]
[null,null,null,null,null,null,0,{"$f":"INDEX(Ranks!3852:3852,$G$4)","v":0},0]
[null,null,null,null,null,null,0,{"$f":"INDEX(Ranks!3853:3853,$G$4)","v":0},0]
[null,null,null,null,null,null,0,{"$f":"INDEX(Ranks!3854:3854,$G$4)","v":0},0]
[null,null,null,null,null,null,0,{"$f":"INDEX(Ranks!3855:3855,$G$4)","v":0},0]
[null,null,null,null,null,null,0,{"$f":"INDEX(Ranks!3856:3856,$G$4)","v":0},0]
[null,null,null,null,null,null,0,{"$f":"INDEX(Ranks!3857:3857,$G$4)","v":0},0]
[null,null,null,null,null,null,0,{"$f":"INDEX(Ranks!3858:3858,$G$4)","v":0},0]
[null,null,null,null,null,null,0,{"$f":"INDEX(Ranks!3859:3859,$G$4)","v":0},0]
[null,null,null,null,null,null,0,{"$f":"INDEX(Ranks!3860:3860,$G$4)","v":0},0]
[null,null,null,null,null,null,0,{"$f":"INDEX(Ranks!3861:3861,$G$4)","v":0},0]
[null,null,null,null,null,null,0,{"$f":"INDEX(Ranks!3862:3862,$G$4)","v":0},0]
[null,null,null,null,null,null,0,{"$f":"INDEX(Ranks!3863:3863,$G$4)","v":0},0]
[null,null,null,null,null,null,0,{"$f":"INDEX(Ranks!3864:3864,$G$4)","v":0},0]
[null,null,null,null,null,null,0,{"$f":"INDEX(Ranks!3865:3865,$G$4)","v":0},0]
[null,null,null,null,null,null,0,{"$f":"INDEX(Ranks!3866:3866,$G$4)","v":0},0]
[null,null,null,null,null,null,0,{"$f":"INDEX(Ranks!3867:3867,$G$4)","v":0},0]
[null,null,null,null,null,null,0,{"$f":"INDEX(Ranks!3868:3868,$G$4)","v":0},0]
[null,null,null,null,null,null,0,{"$f":"INDEX(Ranks!3869:3869,$G$4)","v":0},0]
[null,null,null,null,null,null,0,{"$f":"INDEX(Ranks!3870:3870,$G$4)","v":0},0]
[null,null,null,null,null,null,0,{"$f":"INDEX(Ranks!3871:3871,$G$4)","v":0},0]
[null,null,null,null,null,null,0,{"$f":"INDEX(Ranks!3872:3872,$G$4)","v":0},0]
[null,null,null,null,null,null,0,{"$f":"INDEX(Ranks!3873:3873,$G$4)","v":0},0]
[null,null,null,null,null,null,0,{"$f":"INDEX(Ranks!3874:3874,$G$4)","v":0},0]
[null,null,null,null,null,null,0,{"$f":"INDEX(Ranks!3875:3875,$G$4)","v":0},0]
[null,null,null,null,null,null,0,{"$f":"INDEX(Ranks!3876:3876,$G$4)","v":0},0]
[null,null,null,null,null,null,0,{"$f":"INDEX(Ranks!3877:3877,$G$4)","v":0},0]
[null,null,null,null,null,null,0,{"$f":"INDEX(Ranks!3878:3878,$G$4)","v":0},0]
[null,null,null,null,null,null,0,{"$f":"INDEX(Ranks!3879:3879,$G$4)","v":0},0]
[null,null,null,null,null,null,0,{"$f":"INDEX(Ranks!3880:3880,$G$4)","v":0},0]
[null,null,null,null,null,null,0,{"$f":"INDEX(Ranks!3881:3881,$G$4)","v":0},0]
[null,null,null,null,null,null,0,{"$f":"INDEX(Ranks!3882:3882,$G$4)","v":0},0]
[null,null,null,null,null,null,0,{"$f":"INDEX(Ranks!3883:3883,$G$4)","v":0},0]
[null,null,null,null,null,null,0,{"$f":"INDEX(Ranks!3884:3884,$G$4)","v":0},0]
[null,null,null,null,null,null,0,{"$f":"INDEX(Ranks!3885:3885,$G$4)","v":0},0]
[null,null,null,null,null,null,0,{"$f":"INDEX(Ranks!3886:3886,$G$4)","v":0},0]
[null,null,null,null,null,null,0,{"$f":"INDEX(Ranks!3887:3887,$G$4)","v":0},0]
[null,null,null,null,null,null,0,{"$f":"INDEX(Ranks!3888:3888,$G$4)","v":0},0]
[null,null,null,null,null,null,0,{"$f":"INDEX(Ranks!3889:3889,$G$4)","v":0},0]
[null,null,null,null,null,null,0,{"$f":"INDEX(Ranks!3890:3890,$G$4)","v":0},0]
[null,null,null,null,null,null,0,{"$f":"INDEX(Ranks!3891:3891,$G$4)","v":0},0]
[null,null,null,null,null,null,0,{"$f":"INDEX(Ranks!3892:3892,$G$4)","v":0},0]
[null,null,null,null,null,null,0,{"$f":"INDEX(Ranks!3893:3893,$G$4)","v":0},0]
[null,null,null,null,null,null,0,{"$f":"INDEX(Ranks!3894:3894,$G$4)","v":0},0]
[null,null,null,null,null,null,0,{"$f":"INDEX(Ranks!3895:3895,$G$4)","v":0},0]
[null,null,null,null,null,null,0,{"$f":"INDEX(Ranks!3896:3896,$G$4)","v":0},0]
[null,null,null,null,null,null,0,{"$f":"INDEX(Ranks!3897:3897,$G$4)","v":0},0]
[null,null,null,null,null,null,0,{"$f":"INDEX(Ranks!3898:3898,$G$4)","v":0},0]
[null,null,null,null,null,null,0,{"$f":"INDEX(Ranks!3899:3899,$G$4)","v":0},0]
[null,null,null,null,null,null,0,{"$f":"INDEX(Ranks!3900:3900,$G$4)","v":0},0]
[null,null,null,null,null,null,0,{"$f":"INDEX(Ranks!3901:3901,$G$4)","v":0},0]
[null,null,null,null,null,null,0,{"$f":"INDEX(Ranks!3902:3902,$G$4)","v":0},0]
[null,null,null,null,null,null,0,{"$f":"INDEX(Ranks!3903:3903,$G$4)","v":0},0]
[null,null,null,null,null,null,0,{"$f":"INDEX(Ranks!3904:3904,$G$4)","v":0},0]
[null,null,null,null,null,null,0,{"$f":"INDEX(Ranks!3905:3905,$G$4)","v":0},0]
[null,null,null,null,null,null,0,{"$f":"INDEX(Ranks!3906:3906,$G$4)","v":0},0]
[null,null,null,null,null,null,0,{"$f":"INDEX(Ranks!3907:3907,$G$4)","v":0},0]
[null,null,null,null,null,null,0,{"$f":"INDEX(Ranks!3908:3908,$G$4)","v":0},0]
[null,null,null,null,null,null,0,{"$f":"INDEX(Ranks!3909:3909,$G$4)","v":0},0]
[null,null,null,null,null,null,{"$f":"IFERROR(INT(H3910*100),H3910)","v":0},{"$f":"INDEX(Ranks!3910:3910,$G$4)","v":0},{"$f":"IF(H3910=\"\",-1,IF(H3910=-1,\"\",H3910))","v":0}]
[null,null,null,null,null,null,0,{"$f":"INDEX(Ranks!3911:3911,$G$4)","v":0},0]
[null,null,null,null,null,null,0,{"$f":"INDEX(Ranks!3912:3912,$G$4)","v":0},0]
[null,null,null,null,null,null,0,{"$f":"INDEX(Ranks!3913:3913,$G$4)","v":0},0]
[null,null,null,null,null,null,0,{"$f":"INDEX(Ranks!3914:3914,$G$4)","v":0},0]
[null,null,null,null,null,null,0,{"$f":"INDEX(Ranks!3915:3915,$G$4)","v":0},0]
[null,null,null,null,null,null,0,{"$f":"INDEX(Ranks!3916:3916,$G$4)","v":0},0]
[null,null,null,null,null,null,0,{"$f":"INDEX(Ranks!3917:3917,$G$4)","v":0},0]
[null,null,null,null,null,null,0,{"$f":"INDEX(Ranks!3918:3918,$G$4)","v":0},0]
[null,null,null,null,null,null,0,{"$f":"INDEX(Ranks!3919:3919,$G$4)","v":0},0]
[null,null,null,null,null,null,0,{"$f":"INDEX(Ranks!3920:3920,$G$4)","v":0},0]
[null,null,null,null,null,null,0,{"$f":"INDEX(Ranks!3921:3921,$G$4)","v":0},0]
[null,null,null,null,null,null,0,{"$f":"INDEX(Ranks!3922:3922,$G$4)","v":0},0]
[null,null,null,null,null,null,0,{"$f":"INDEX(Ranks!3923:3923,$G$4)","v":0},0]
[null,null,null,null,null,null,0,{"$f":"INDEX(Ranks!3924:3924,$G$4)","v":0},0]
[null,null,null,null,null,null,0,{"$f":"INDEX(Ranks!3925:3925,$G$4)","v":0},0]
[null,null,null,null,null,null,0,{"$f":"INDEX(Ranks!3926:3926,$G$4)","v":0},0]
[null,null,null,null,null,null,0,{"$f":"INDEX(Ranks!3927:3927,$G$4)","v":0},0]
[null,null,null,null,null,null,0,{"$f":"INDEX(Ranks!3928:3928,$G$4)","v":0},0]
[null,null,null,null,null,null,0,{"$f":"INDEX(Ranks!3929:3929,$G$4)","v":0},0]
[null,null,null,null,null,null,0,{"$f":"INDEX(Ranks!3930:3930,$G$4)","v":0},0]
[null,null,null,null,null,null,0,{"$f":"INDEX(Ranks!3931:3931,$G$4)","v":0},0]
[null,null,null,null,null,null,0,{"$f":"INDEX(Ranks!3932:3932,$G$4)","v":0},0]
[null,null,null,null,null,null,0,{"$f":"INDEX(Ranks!3933:3933,$G$4)","v":0},0]
[null,null,null,null,null,null,0,{"$f":"INDEX(Ranks!3934:3934,$G$4)","v":0},0]
[null,null,null,null,null,null,0,{"$f":"INDEX(Ranks!3935:3935,$G$4)","v":0},0]
[null,null,null,null,null,null,0,{"$f":"INDEX(Ranks!3936:3936,$G$4)","v":0},0]
[null,null,null,null,null,null,0,{"$f":"INDEX(Ranks!3937:3937,$G$4)","v":0},0]
[null,null,null,null,null,null,0,{"$f":"INDEX(Ranks!3938:3938,$G$4)","v":0},0]
[null,null,null,null,null,null,0,{"$f":"INDEX(Ranks!3939:3939,$G$4)","v":0},0]
[null,null,null,null,null,null,0,{"$f":"INDEX(Ranks!3940:3940,$G$4)","v":0},0]
[null,null,null,null,null,null,0,{"$f":"INDEX(Ranks!3941:3941,$G$4)","v":0},0]
[null,null,null,null,null,null,0,{"$f":"INDEX(Ranks!3942:3942,$G$4)","v":0},0]
[null,null,null,null,null,null,0,{"$f":"INDEX(Ranks!3943:3943,$G$4)","v":0},0]
[null,null,null,null,null,null,0,{"$f":"INDEX(Ranks!3944:3944,$G$4)","v":0},0]
[null,null,null,null,null,null,0,{"$f":"INDEX(Ranks!3945:3945,$G$4)","v":0},0]
[null,null,null,null,null,null,0,{"$f":"INDEX(Ranks!3946:3946,$G$4)","v":0},0]
[null,null,null,null,null,null,0,{"$f":"INDEX(Ranks!3947:3947,$G$4)","v":0},0]
[null,null,null,null,null,null,0,{"$f":"INDEX(Ranks!3948:3948,$G$4)","v":0},0]
[null,null,null,null,null,null,0,{"$f":"INDEX(Ranks!3949:3949,$G$4)","v":0},0]
[null,null,null,null,null,null,0,{"$f":"INDEX(Ranks!3950:3950,$G$4)","v":0},0]
[null,null,null,null,null,null,0,{"$f":"INDEX(Ranks!3951:3951,$G$4)","v":0},0]
[null,null,null,null,null,null,0,{"$f":"INDEX(Ranks!3952:3952,$G$4)","v":0},0]
[null,null,null,null,null,null,0,{"$f":"INDEX(Ranks!3953:3953,$G$4)","v":0},0]
[null,null,null,null,null,null,0,{"$f":"INDEX(Ranks!3954:3954,$G$4)","v":0},0]
[null,null,null,null,null,null,0,{"$f":"INDEX(Ranks!3955:3955,$G$4)","v":0},0]
[null,null,null,null,null,null,0,{"$f":"INDEX(Ranks!3956:3956,$G$4)","v":0},0]
[null,null,null,null,null,null,0,{"$f":"INDEX(Ranks!3957:3957,$G$4)","v":0},0]
[null,null,null,null,null,null,0,{"$f":"INDEX(Ranks!3958:3958,$G$4)","v":0},0]
[null,null,null,null,null,null,0,{"$f":"INDEX(Ranks!3959:3959,$G$4)","v":0},0]
[null,null,null,null,null,null,0,{"$f":"INDEX(Ranks!3960:3960,$G$4)","v":0},0]
[null,null,null,null,null,null,0,{"$f":"INDEX(Ranks!3961:3961,$G$4)","v":0},0]
[null,null,null,null,null,null,0,{"$f":"INDEX(Ranks!3962:3962,$G$4)","v":0},0]
[null,null,null,null,null,null,0,{"$f":"INDEX(Ranks!3963:3963,$G$4)","v":0},0]
[null,null,null,null,null,null,0,{"$f":"INDEX(Ranks!3964:3964,$G$4)","v":0},0]
[null,null,null,null,null,null,0,{"$f":"INDEX(Ranks!3965:3965,$G$4)","v":0},0]
[null,null,null,null,null,null,0,{"$f":"INDEX(Ranks!3966:3966,$G$4)","v":0},0]
[null,null,null,null,null,null,0,{"$f":"INDEX(Ranks!3967:3967,$G$4)","v":0},0]
[null,null,null,null,null,null,0,{"$f":"INDEX(Ranks!3968:3968,$G$4)","v":0},0]
[null,null,null,null,null,null,0,{"$f":"INDEX(Ranks!3969:3969,$G$4)","v":0},0]
[null,null,null,null,null,null,0,{"$f":"INDEX(Ranks!3970:3970,$G$4)","v":0},0]
[null,null,null,null,null,null,0,{"$f":"INDEX(Ranks!3971:3971,$G$4)","v":0},0]
[null,null,null,null,null,null,0,{"$f":"INDEX(Ranks!3972:3972,$G$4)","v":0},0]
[null,null,null,null,null,null,0,{"$f":"INDEX(Ranks!3973:3973,$G$4)","v":0},0]
[null,null,null,null,null,null,{"$f":"IFERROR(INT(H3974*100),H3974)","v":0},{"$f":"INDEX(Ranks!3974:3974,$G$4)","v":0},{"$f":"IF(H3974=\"\",-1,IF(H3974=-1,\"\",H3974))","v":0}]
[null,null,null,null,null,null,0,{"$f":"INDEX(Ranks!3975:3975,$G$4)","v":0},0]
[null,null,null,null,null,null,0,{"$f":"INDEX(Ranks!3976:3976,$G$4)","v":0},0]
[null,null,null,null,null,null,0,{"$f":"INDEX(Ranks!3977:3977,$G$4)","v":0},0]
[null,null,null,null,null,null,0,{"$f":"INDEX(Ranks!3978:3978,$G$4)","v":0},0]
[null,null,null,null,null,null,0,{"$f":"INDEX(Ranks!3979:3979,$G$4)","v":0},0]
[null,null,null,null,null,null,0,{"$f":"INDEX(Ranks!3980:3980,$G$4)","v":0},0]
[null,null,null,null,null,null,0,{"$f":"INDEX(Ranks!3981:3981,$G$4)","v":0},0]
[null,null,null,null,null,null,0,{"$f":"INDEX(Ranks!3982:3982,$G$4)","v":0},0]
[null,null,null,null,null,null,0,{"$f":"INDEX(Ranks!3983:3983,$G$4)","v":0},0]
[null,null,null,null,null,null,0,{"$f":"INDEX(Ranks!3984:3984,$G$4)","v":0},0]
[null,null,null,null,null,null,0,{"$f":"INDEX(Ranks!3985:3985,$G$4)","v":0},0]
[null,null,null,null,null,null,0,{"$f":"INDEX(Ranks!3986:3986,$G$4)","v":0},0]
[null,null,null,null,null,null,0,{"$f":"INDEX(Ranks!3987:3987,$G$4)","v":0},0]
[null,null,null,null,null,null,0,{"$f":"INDEX(Ranks!3988:3988,$G$4)","v":0},0]
[null,null,null,null,null,null,0,{"$f":"INDEX(Ranks!3989:3989,$G$4)","v":0},0]
[null,null,null,null,null,null,0,{"$f":"INDEX(Ranks!3990:3990,$G$4)","v":0},0]
[null,null,null,null,null,null,0,{"$f":"INDEX(Ranks!3991:3991,$G$4)","v":0},0]
[null,null,null,null,null,null,0,{"$f":"INDEX(Ranks!3992:3992,$G$4)","v":0},0]
[null,null,null,null,null,null,0,{"$f":"INDEX(Ranks!3993:3993,$G$4)","v":0},0]
[null,null,null,null,null,null,0,{"$f":"INDEX(Ranks!3994:3994,$G$4)","v":0},0]
[null,null,null,null,null,null,0,{"$f":"INDEX(Ranks!3995:3995,$G$4)","v":0},0]
[null,null,null,null,null,null,0,{"$f":"INDEX(Ranks!3996:3996,$G$4)","v":0},0]
[null,null,null,null,null,null,0,{"$f":"INDEX(Ranks!3997:3997,$G$4)","v":0},0]
[null,null,null,null,null,null,0,{"$f":"INDEX(Ranks!3998:3998,$G$4)","v":0},0]
[null,null,null,null,null,null,0,{"$f":"INDEX(Ranks!3999:3999,$G$4)","v":0},0]
[null,null,null,null,null,null,0,{"$f":"INDEX(Ranks!4000:4000,$G$4)","v":0},0]
[null,null,null,null,null,null,0,{"$f":"INDEX(Ranks!4001:4001,$G$4)","v":0},0]
[null,null,null,null,null,null,0,{"$f":"INDEX(Ranks!4002:4002,$G$4)","v":0},0]
[null,null,null,null,null,null,0,{"$f":"INDEX(Ranks!4003:4003,$G$4)","v":0},0]
[null,null,null,null,null,null,0,{"$f":"INDEX(Ranks!4004:4004,$G$4)","v":0},0]
[null,null,null,null,null,null,0,{"$f":"INDEX(Ranks!4005:4005,$G$4)","v":0},0]
[null,null,null,null,null,null,0,{"$f":"INDEX(Ranks!4006:4006,$G$4)","v":0},0]
[null,null,null,null,null,null,0,{"$f":"INDEX(Ranks!4007:4007,$G$4)","v":0},0]
[null,null,null,null,null,null,0,{"$f":"INDEX(Ranks!4008:4008,$G$4)","v":0},0]
[null,null,null,null,null,null,0,{"$f":"INDEX(Ranks!4009:4009,$G$4)","v":0},0]
[null,null,null,null,null,null,0,{"$f":"INDEX(Ranks!4010:4010,$G$4)","v":0},0]
[null,null,null,null,null,null,0,{"$f":"INDEX(Ranks!4011:4011,$G$4)","v":0},0]
[null,null,null,null,null,null,0,{"$f":"INDEX(Ranks!4012:4012,$G$4)","v":0},0]
[null,null,null,null,null,null,0,{"$f":"INDEX(Ranks!4013:4013,$G$4)","v":0},0]
[null,null,null,null,null,null,0,{"$f":"INDEX(Ranks!4014:4014,$G$4)","v":0},0]
[null,null,null,null,null,null,0,{"$f":"INDEX(Ranks!4015:4015,$G$4)","v":0},0]
[null,null,null,null,null,null,0,{"$f":"INDEX(Ranks!4016:4016,$G$4)","v":0},0]
[null,null,null,null,null,null,0,{"$f":"INDEX(Ranks!4017:4017,$G$4)","v":0},0]
[null,null,null,null,null,null,0,{"$f":"INDEX(Ranks!4018:4018,$G$4)","v":0},0]
[null,null,null,null,null,null,0,{"$f":"INDEX(Ranks!4019:4019,$G$4)","v":0},0]
[null,null,null,null,null,null,0,{"$f":"INDEX(Ranks!4020:4020,$G$4)","v":0},0]
[null,null,null,null,null,null,0,{"$f":"INDEX(Ranks!4021:4021,$G$4)","v":0},0]
[null,null,null,null,null,null,0,{"$f":"INDEX(Ranks!4022:4022,$G$4)","v":0},0]
[null,null,null,null,null,null,0,{"$f":"INDEX(Ranks!4023:4023,$G$4)","v":0},0]
[null,null,null,null,null,null,0,{"$f":"INDEX(Ranks!4024:4024,$G$4)","v":0},0]
[null,null,null,null,null,null,0,{"$f":"INDEX(Ranks!4025:4025,$G$4)","v":0},0]
[null,null,null,null,null,null,0,{"$f":"INDEX(Ranks!4026:4026,$G$4)","v":0},0]
[null,null,null,null,null,null,0,{"$f":"INDEX(Ranks!4027:4027,$G$4)","v":0},0]
[null,null,null,null,null,null,0,{"$f":"INDEX(Ranks!4028:4028,$G$4)","v":0},0]
[null,null,null,null,null,null,0,{"$f":"INDEX(Ranks!4029:4029,$G$4)","v":0},0]
[null,null,null,null,null,null,0,{"$f":"INDEX(Ranks!4030:4030,$G$4)","v":0},0]
[null,null,null,null,null,null,0,{"$f":"INDEX(Ranks!4031:4031,$G$4)","v":0},0]
[null,null,null,null,null,null,0,{"$f":"INDEX(Ranks!4032:4032,$G$4)","v":0},0]
[null,null,null,null,null,null,0,{"$f":"INDEX(Ranks!4033:4033,$G$4)","v":0},0]
[null,null,null,null,null,null,0,{"$f":"INDEX(Ranks!4034:4034,$G$4)","v":0},0]
[null,null,null,null,null,null,0,{"$f":"INDEX(Ranks!4035:4035,$G$4)","v":0},0]
[null,null,null,null,null,null,0,{"$f":"INDEX(Ranks!4036:4036,$G$4)","v":0},0]
[null,null,null,null,null,null,0,{"$f":"INDEX(Ranks!4037:4037,$G$4)","v":0},0]
[null,null,null,null,null,null,{"$f":"IFERROR(INT(H4038*100),H4038)","v":0},{"$f":"INDEX(Ranks!4038:4038,$G$4)","v":0},{"$f":"IF(H4038=\"\",-1,IF(H4038=-1,\"\",H4038))","v":0}]
[null,null,null,null,null,null,0,{"$f":"INDEX(Ranks!4039:4039,$G$4)","v":0},0]
[null,null,null,null,null,null,0,{"$f":"INDEX(Ranks!4040:4040,$G$4)","v":0},0]
[null,null,null,null,null,null,0,{"$f":"INDEX(Ranks!4041:4041,$G$4)","v":0},0]
[null,null,null,null,null,null,0,{"$f":"INDEX(Ranks!4042:4042,$G$4)","v":0},0]
[null,null,null,null,null,null,0,{"$f":"INDEX(Ranks!4043:4043,$G$4)","v":0},0]
[null,null,null,null,null,null,0,{"$f":"INDEX(Ranks!4044:4044,$G$4)","v":0},0]
[null,null,null,null,null,null,0,{"$f":"INDEX(Ranks!4045:4045,$G$4)","v":0},0]
[null,null,null,null,null,null,0,{"$f":"INDEX(Ranks!4046:4046,$G$4)","v":0},0]
[null,null,null,null,null,null,0,{"$f":"INDEX(Ranks!4047:4047,$G$4)","v":0},0]
[null,null,null,null,null,null,0,{"$f":"INDEX(Ranks!4048:4048,$G$4)","v":0},0]
[null,null,null,null,null,null,0,{"$f":"INDEX(Ranks!4049:4049,$G$4)","v":0},0]
[null,null,null,null,null,null,0,{"$f":"INDEX(Ranks!4050:4050,$G$4)","v":0},0]
[null,null,null,null,null,null,0,{"$f":"INDEX(Ranks!4051:4051,$G$4)","v":0},0]
[null,null,null,null,null,null,0,{"$f":"INDEX(Ranks!4052:4052,$G$4)","v":0},0]
[null,null,null,null,null,null,0,{"$f":"INDEX(Ranks!4053:4053,$G$4)","v":0},0]
[null,null,null,null,null,null,0,{"$f":"INDEX(Ranks!4054:4054,$G$4)","v":0},0]
[null,null,null,null,null,null,0,{"$f":"INDEX(Ranks!4055:4055,$G$4)","v":0},0]
[null,null,null,null,null,null,0,{"$f":"INDEX(Ranks!4056:4056,$G$4)","v":0},0]
[null,null,null,null,null,null,0,{"$f":"INDEX(Ranks!4057:4057,$G$4)","v":0},0]
[null,null,null,null,null,null,0,{"$f":"INDEX(Ranks!4058:4058,$G$4)","v":0},0]
[null,null,null,null,null,null,0,{"$f":"INDEX(Ranks!4059:4059,$G$4)","v":0},0]
[null,null,null,null,null,null,0,{"$f":"INDEX(Ranks!4060:4060,$G$4)","v":0},0]
[null,null,null,null,null,null,0,{"$f":"INDEX(Ranks!4061:4061,$G$4)","v":0},0]
[null,null,null,null,null,null,0,{"$f":"INDEX(Ranks!4062:4062,$G$4)","v":0},0]
[null,null,null,null,null,null,0,{"$f":"INDEX(Ranks!4063:4063,$G$4)","v":0},0]
[null,null,null,null,null,null,0,{"$f":"INDEX(Ranks!4064:4064,$G$4)","v":0},0]
[null,null,null,null,null,null,0,{"$f":"INDEX(Ranks!4065:4065,$G$4)","v":0},0]
[null,null,null,null,null,null,0,{"$f":"INDEX(Ranks!4066:4066,$G$4)","v":0},0]
[null,null,null,null,null,null,0,{"$f":"INDEX(Ranks!4067:4067,$G$4)","v":0},0]
[null,null,null,null,null,null,0,{"$f":"INDEX(Ranks!4068:4068,$G$4)","v":0},0]
[null,null,null,null,null,null,0,{"$f":"INDEX(Ranks!4069:4069,$G$4)","v":0},0]
[null,null,null,null,null,null,0,{"$f":"INDEX(Ranks!4070:4070,$G$4)","v":0},0]
[null,null,null,null,null,null,0,{"$f":"INDEX(Ranks!4071:4071,$G$4)","v":0},0]
[null,null,null,null,null,null,0,{"$f":"INDEX(Ranks!4072:4072,$G$4)","v":0},0]
[null,null,null,null,null,null,0,{"$f":"INDEX(Ranks!4073:4073,$G$4)","v":0},0]
[null,null,null,null,null,null,0,{"$f":"INDEX(Ranks!4074:4074,$G$4)","v":0},0]
[null,null,null,null,null,null,0,{"$f":"INDEX(Ranks!4075:4075,$G$4)","v":0},0]
[null,null,null,null,null,null,0,{"$f":"INDEX(Ranks!4076:4076,$G$4)","v":0},0]
[null,null,null,null,null,null,0,{"$f":"INDEX(Ranks!4077:4077,$G$4)","v":0},0]
[null,null,null,null,null,null,0,{"$f":"INDEX(Ranks!4078:4078,$G$4)","v":0},0]
[null,null,null,null,null,null,0,{"$f":"INDEX(Ranks!4079:4079,$G$4)","v":0},0]
[null,null,null,null,null,null,0,{"$f":"INDEX(Ranks!4080:4080,$G$4)","v":0},0]
[null,null,null,null,null,null,0,{"$f":"INDEX(Ranks!4081:4081,$G$4)","v":0},0]
[null,null,null,null,null,null,0,{"$f":"INDEX(Ranks!4082:4082,$G$4)","v":0},0]
[null,null,null,null,null,null,0,{"$f":"INDEX(Ranks!4083:4083,$G$4)","v":0},0]
[null,null,null,null,null,null,0,{"$f":"INDEX(Ranks!4084:4084,$G$4)","v":0},0]
[null,null,null,null,null,null,0,{"$f":"INDEX(Ranks!4085:4085,$G$4)","v":0},0]
[null,null,null,null,null,null,0,{"$f":"INDEX(Ranks!4086:4086,$G$4)","v":0},0]
[null,null,null,null,null,null,0,{"$f":"INDEX(Ranks!4087:4087,$G$4)","v":0},0]
[null,null,null,null,null,null,0,{"$f":"INDEX(Ranks!4088:4088,$G$4)","v":0},0]
[null,null,null,null,null,null,0,{"$f":"INDEX(Ranks!4089:4089,$G$4)","v":0},0]
[null,null,null,null,null,null,0,{"$f":"INDEX(Ranks!4090:4090,$G$4)","v":0},0]
[null,null,null,null,null,null,0,{"$f":"INDEX(Ranks!4091:4091,$G$4)","v":0},0]
[null,null,null,null,null,null,0,{"$f":"INDEX(Ranks!4092:4092,$G$4)","v":0},0]
[null,null,null,null,null,null,0,{"$f":"INDEX(Ranks!4093:4093,$G$4)","v":0},0]
[null,null,null,null,null,null,0,{"$f":"INDEX(Ranks!4094:4094,$G$4)","v":0},0]
[null,null,null,null,null,null,0,{"$f":"INDEX(Ranks!4095:4095,$G$4)","v":0},0]
[null,null,null,null,null,null,0,{"$f":"INDEX(Ranks!4096:4096,$G$4)","v":0},0]
[null,null,null,null,null,null,0,{"$f":"INDEX(Ranks!4097:4097,$G$4)","v":0},0]
[null,null,null,null,null,null,0,{"$f":"INDEX(Ranks!4098:4098,$G$4)","v":0},0]
[null,null,null,null,null,null,0,{"$f":"INDEX(Ranks!4099:4099,$G$4)","v":0},0]
[null,null,null,null,null,null,0,{"$f":"INDEX(Ranks!4100:4100,$G$4)","v":0},0]
[null,null,null,null,null,null,0,{"$f":"INDEX(Ranks!4101:4101,$G$4)","v":0},0]
[null,null,null,null,null,null,{"$f":"IFERROR(INT(H4102*100),H4102)","v":0},{"$f":"INDEX(Ranks!4102:4102,$G$4)","v":0},{"$f":"IF(H4102=\"\",-1,IF(H4102=-1,\"\",H4102))","v":0}]
[null,null,null,null,null,null,0,{"$f":"INDEX(Ranks!4103:4103,$G$4)","v":0},0]
[null,null,null,null,null,null,0,{"$f":"INDEX(Ranks!4104:4104,$G$4)","v":0},0]
[null,null,null,null,null,null,0,{"$f":"INDEX(Ranks!4105:4105,$G$4)","v":0},0]
[null,null,null,null,null,null,0,{"$f":"INDEX(Ranks!4106:4106,$G$4)","v":0},0]
[null,null,null,null,null,null,0,{"$f":"INDEX(Ranks!4107:4107,$G$4)","v":0},0]
[null,null,null,null,null,null,0,{"$f":"INDEX(Ranks!4108:4108,$G$4)","v":0},0]
[null,null,null,null,null,null,0,{"$f":"INDEX(Ranks!4109:4109,$G$4)","v":0},0]
[null,null,null,null,null,null,0,{"$f":"INDEX(Ranks!4110:4110,$G$4)","v":0},0]
[null,null,null,null,null,null,0,{"$f":"INDEX(Ranks!4111:4111,$G$4)","v":0},0]
[null,null,null,null,null,null,0,{"$f":"INDEX(Ranks!4112:4112,$G$4)","v":0},0]
[null,null,null,null,null,null,0,{"$f":"INDEX(Ranks!4113:4113,$G$4)","v":0},0]
[null,null,null,null,null,null,0,{"$f":"INDEX(Ranks!4114:4114,$G$4)","v":0},0]
[null,null,null,null,null,null,0,{"$f":"INDEX(Ranks!4115:4115,$G$4)","v":0},0]
[null,null,null,null,null,null,0,{"$f":"INDEX(Ranks!4116:4116,$G$4)","v":0},0]
[null,null,null,null,null,null,0,{"$f":"INDEX(Ranks!4117:4117,$G$4)","v":0},0]
[null,null,null,null,null,null,0,{"$f":"INDEX(Ranks!4118:4118,$G$4)","v":0},0]
[null,null,null,null,null,null,0,{"$f":"INDEX(Ranks!4119:4119,$G$4)","v":0},0]
[null,null,null,null,null,null,0,{"$f":"INDEX(Ranks!4120:4120,$G$4)","v":0},0]
[null,null,null,null,null,null,0,{"$f":"INDEX(Ranks!4121:4121,$G$4)","v":0},0]
[null,null,null,null,null,null,0,{"$f":"INDEX(Ranks!4122:4122,$G$4)","v":0},0]
[null,null,null,null,null,null,0,{"$f":"INDEX(Ranks!4123:4123,$G$4)","v":0},0]
[null,null,null,null,null,null,0,{"$f":"INDEX(Ranks!4124:4124,$G$4)","v":0},0]
[null,null,null,null,null,null,0,{"$f":"INDEX(Ranks!4125:4125,$G$4)","v":0},0]
[null,null,null,null,null,null,0,{"$f":"INDEX(Ranks!4126:4126,$G$4)","v":0},0]
[null,null,null,null,null,null,0,{"$f":"INDEX(Ranks!4127:4127,$G$4)","v":0},0]
[null,null,null,null,null,null,0,{"$f":"INDEX(Ranks!4128:4128,$G$4)","v":0},0]
[null,null,null,null,null,null,0,{"$f":"INDEX(Ranks!4129:4129,$G$4)","v":0},0]
[null,null,null,null,null,null,0,{"$f":"INDEX(Ranks!4130:4130,$G$4)","v":0},0]
[null,null,null,null,null,null,0,{"$f":"INDEX(Ranks!4131:4131,$G$4)","v":0},0]
[null,null,null,null,null,null,0,{"$f":"INDEX(Ranks!4132:4132,$G$4)","v":0},0]
[null,null,null,null,null,null,0,{"$f":"INDEX(Ranks!4133:4133,$G$4)","v":0},0]
[null,null,null,null,null,null,0,{"$f":"INDEX(Ranks!4134:4134,$G$4)","v":0},0]
[null,null,null,null,null,null,0,{"$f":"INDEX(Ranks!4135:4135,$G$4)","v":0},0]
[null,null,null,null,null,null,0,{"$f":"INDEX(Ranks!4136:4136,$G$4)","v":0},0]
[null,null,null,null,null,null,0,{"$f":"INDEX(Ranks!4137:4137,$G$4)","v":0},0]
[null,null,null,null,null,null,0,{"$f":"INDEX(Ranks!4138:4138,$G$4)","v":0},0]
[null,null,null,null,null,null,0,{"$f":"INDEX(Ranks!4139:4139,$G$4)","v":0},0]
[null,null,null,null,null,null,0,{"$f":"INDEX(Ranks!4140:4140,$G$4)","v":0},0]
[null,null,null,null,null,null,0,{"$f":"INDEX(Ranks!4141:4141,$G$4)","v":0},0]
[null,null,null,null,null,null,0,{"$f":"INDEX(Ranks!4142:4142,$G$4)","v":0},0]
[null,null,null,null,null,null,0,{"$f":"INDEX(Ranks!4143:4143,$G$4)","v":0},0]
[null,null,null,null,null,null,0,{"$f":"INDEX(Ranks!4144:4144,$G$4)","v":0},0]
[null,null,null,null,null,null,0,{"$f":"INDEX(Ranks!4145:4145,$G$4)","v":0},0]
[null,null,null,null,null,null,0,{"$f":"INDEX(Ranks!4146:4146,$G$4)","v":0},0]
[null,null,null,null,null,null,0,{"$f":"INDEX(Ranks!4147:4147,$G$4)","v":0},0]
[null,null,null,null,null,null,0,{"$f":"INDEX(Ranks!4148:4148,$G$4)","v":0},0]
[null,null,null,null,null,null,0,{"$f":"INDEX(Ranks!4149:4149,$G$4)","v":0},0]
[null,null,null,null,null,null,0,{"$f":"INDEX(Ranks!4150:4150,$G$4)","v":0},0]
[null,null,null,null,null,null,0,{"$f":"INDEX(Ranks!4151:4151,$G$4)","v":0},0]
[null,null,null,null,null,null,0,{"$f":"INDEX(Ranks!4152:4152,$G$4)","v":0},0]
[null,null,null,null,null,null,0,{"$f":"INDEX(Ranks!4153:4153,$G$4)","v":0},0]
[null,null,null,null,null,null,0,{"$f":"INDEX(Ranks!4154:4154,$G$4)","v":0},0]
[null,null,null,null,null,null,0,{"$f":"INDEX(Ranks!4155:4155,$G$4)","v":0},0]
[null,null,null,null,null,null,0,{"$f":"INDEX(Ranks!4156:4156,$G$4)","v":0},0]
[null,null,null,null,null,null,0,{"$f":"INDEX(Ranks!4157:4157,$G$4)","v":0},0]
[null,null,null,null,null,null,0,{"$f":"INDEX(Ranks!4158:4158,$G$4)","v":0},0]
[null,null,null,null,null,null,0,{"$f":"INDEX(Ranks!4159:4159,$G$4)","v":0},0]
[null,null,null,null,null,null,0,{"$f":"INDEX(Ranks!4160:4160,$G$4)","v":0},0]
[null,null,null,null,null,null,0,{"$f":"INDEX(Ranks!4161:4161,$G$4)","v":0},0]
[null,null,null,null,null,null,0,{"$f":"INDEX(Ranks!4162:4162,$G$4)","v":0},0]
[null,null,null,null,null,null,0,{"$f":"INDEX(Ranks!4163:4163,$G$4)","v":0},0]
[null,null,null,null,null,null,0,{"$f":"INDEX(Ranks!4164:4164,$G$4)","v":0},0]
[null,null,null,null,null,null,0,{"$f":"INDEX(Ranks!4165:4165,$G$4)","v":0},0]
[null,null,null,null,null,null,{"$f":"IFERROR(INT(H4166*100),H4166)","v":0},{"$f":"INDEX(Ranks!4166:4166,$G$4)","v":0},{"$f":"IF(H4166=\"\",-1,IF(H4166=-1,\"\",H4166))","v":0}]
[null,null,null,null,null,null,0,{"$f":"INDEX(Ranks!4167:4167,$G$4)","v":0},0]
[null,null,null,null,null,null,0,{"$f":"INDEX(Ranks!4168:4168,$G$4)","v":0},0]
[null,null,null,null,null,null,0,{"$f":"INDEX(Ranks!4169:4169,$G$4)","v":0},0]
[null,null,null,null,null,null,0,{"$f":"INDEX(Ranks!4170:4170,$G$4)","v":0},0]
[null,null,null,null,null,null,0,{"$f":"INDEX(Ranks!4171:4171,$G$4)","v":0},0]
[null,null,null,null,null,null,0,{"$f":"INDEX(Ranks!4172:4172,$G$4)","v":0},0]
[null,null,null,null,null,null,0,{"$f":"INDEX(Ranks!4173:4173,$G$4)","v":0},0]
[null,null,null,null,null,null,0,{"$f":"INDEX(Ranks!4174:4174,$G$4)","v":0},0]
[null,null,null,null,null,null,0,{"$f":"INDEX(Ranks!4175:4175,$G$4)","v":0},0]
[null,null,null,null,null,null,0,{"$f":"INDEX(Ranks!4176:4176,$G$4)","v":0},0]
[null,null,null,null,null,null,0,{"$f":"INDEX(Ranks!4177:4177,$G$4)","v":0},0]
[null,null,null,null,null,null,0,{"$f":"INDEX(Ranks!4178:4178,$G$4)","v":0},0]
[null,null,null,null,null,null,0,{"$f":"INDEX(Ranks!4179:4179,$G$4)","v":0},0]
[null,null,null,null,null,null,0,{"$f":"INDEX(Ranks!4180:4180,$G$4)","v":0},0]
[null,null,null,null,null,null,0,{"$f":"INDEX(Ranks!4181:4181,$G$4)","v":0},0]
[null,null,null,null,null,null,0,{"$f":"INDEX(Ranks!4182:4182,$G$4)","v":0},0]
[null,null,null,null,null,null,0,{"$f":"INDEX(Ranks!4183:4183,$G$4)","v":0},0]
[null,null,null,null,null,null,0,{"$f":"INDEX(Ranks!4184:4184,$G$4)","v":0},0]
[null,null,null,null,null,null,0,{"$f":"INDEX(Ranks!4185:4185,$G$4)","v":0},0]
[null,null,null,null,null,null,0,{"$f":"INDEX(Ranks!4186:4186,$G$4)","v":0},0]
[null,null,null,null,null,null,0,{"$f":"INDEX(Ranks!4187:4187,$G$4)","v":0},0]
[null,null,null,null,null,null,0,{"$f":"INDEX(Ranks!4188:4188,$G$4)","v":0},0]
[null,null,null,null,null,null,0,{"$f":"INDEX(Ranks!4189:4189,$G$4)","v":0},0]
[null,null,null,null,null,null,0,{"$f":"INDEX(Ranks!4190:4190,$G$4)","v":0},0]
[null,null,null,null,null,null,0,{"$f":"INDEX(Ranks!4191:4191,$G$4)","v":0},0]
[null,null,null,null,null,null,0,{"$f":"INDEX(Ranks!4192:4192,$G$4)","v":0},0]
[null,null,null,null,null,null,0,{"$f":"INDEX(Ranks!4193:4193,$G$4)","v":0},0]
[null,null,null,null,null,null,0,{"$f":"INDEX(Ranks!4194:4194,$G$4)","v":0},0]
[null,null,null,null,null,null,0,{"$f":"INDEX(Ranks!4195:4195,$G$4)","v":0},0]
[null,null,null,null,null,null,0,{"$f":"INDEX(Ranks!4196:4196,$G$4)","v":0},0]
[null,null,null,null,null,null,0,{"$f":"INDEX(Ranks!4197:4197,$G$4)","v":0},0]
[null,null,null,null,null,null,0,{"$f":"INDEX(Ranks!4198:4198,$G$4)","v":0},0]
[null,null,null,null,null,null,0,{"$f":"INDEX(Ranks!4199:4199,$G$4)","v":0},0]
[null,null,null,null,null,null,0,{"$f":"INDEX(Ranks!4200:4200,$G$4)","v":0},0]
[null,null,null,null,null,null,0,{"$f":"INDEX(Ranks!4201:4201,$G$4)","v":0},0]
[null,null,null,null,null,null,0,{"$f":"INDEX(Ranks!4202:4202,$G$4)","v":0},0]
[null,null,null,null,null,null,0,{"$f":"INDEX(Ranks!4203:4203,$G$4)","v":0},0]
[null,null,null,null,null,null,0,{"$f":"INDEX(Ranks!4204:4204,$G$4)","v":0},0]
[null,null,null,null,null,null,0,{"$f":"INDEX(Ranks!4205:4205,$G$4)","v":0},0]
[null,null,null,null,null,null,0,{"$f":"INDEX(Ranks!4206:4206,$G$4)","v":0},0]
[null,null,null,null,null,null,0,{"$f":"INDEX(Ranks!4207:4207,$G$4)","v":0},0]
[null,null,null,null,null,null,0,{"$f":"INDEX(Ranks!4208:4208,$G$4)","v":0},0]
[null,null,null,null,null,null,0,{"$f":"INDEX(Ranks!4209:4209,$G$4)","v":0},0]
[null,null,null,null,null,null,0,{"$f":"INDEX(Ranks!4210:4210,$G$4)","v":0},0]
[null,null,null,null,null,null,0,{"$f":"INDEX(Ranks!4211:4211,$G$4)","v":0},0]
[null,null,null,null,null,null,0,{"$f":"INDEX(Ranks!4212:4212,$G$4)","v":0},0]
[null,null,null,null,null,null,0,{"$f":"INDEX(Ranks!4213:4213,$G$4)","v":0},0]
[null,null,null,null,null,null,0,{"$f":"INDEX(Ranks!4214:4214,$G$4)","v":0},0]
[null,null,null,null,null,null,0,{"$f":"INDEX(Ranks!4215:4215,$G$4)","v":0},0]
[null,null,null,null,null,null,0,{"$f":"INDEX(Ranks!4216:4216,$G$4)","v":0},0]
[null,null,null,null,null,null,0,{"$f":"INDEX(Ranks!4217:4217,$G$4)","v":0},0]
[null,null,null,null,null,null,0,{"$f":"INDEX(Ranks!4218:4218,$G$4)","v":0},0]
[null,null,null,null,null,null,0,{"$f":"INDEX(Ranks!4219:4219,$G$4)","v":0},0]
[null,null,null,null,null,null,0,{"$f":"INDEX(Ranks!4220:4220,$G$4)","v":0},0]
[null,null,null,null,null,null,0,{"$f":"INDEX(Ranks!4221:4221,$G$4)","v":0},0]
[null,null,null,null,null,null,0,{"$f":"INDEX(Ranks!4222:4222,$G$4)","v":0},0]
[null,null,null,null,null,null,0,{"$f":"INDEX(Ranks!4223:4223,$G$4)","v":0},0]
[null,null,null,null,null,null,0,{"$f":"INDEX(Ranks!4224:4224,$G$4)","v":0},0]
[null,null,null,null,null,null,0,{"$f":"INDEX(Ranks!4225:4225,$G$4)","v":0},0]
[null,null,null,null,null,null,0,{"$f":"INDEX(Ranks!4226:4226,$G$4)","v":0},0]
[null,null,null,null,null,null,0,{"$f":"INDEX(Ranks!4227:4227,$G$4)","v":0},0]
[null,null,null,null,null,null,0,{"$f":"INDEX(Ranks!4228:4228,$G$4)","v":0},0]
[null,null,null,null,null,null,0,{"$f":"INDEX(Ranks!4229:4229,$G$4)","v":0},0]
[null,null,null,null,null,null,{"$f":"IFERROR(INT(H4230*100),H4230)","v":0},{"$f":"INDEX(Ranks!4230:4230,$G$4)","v":0},{"$f":"IF(H4230=\"\",-1,IF(H4230=-1,\"\",H4230))","v":0}]
[null,null,null,null,null,null,0,{"$f":"INDEX(Ranks!4231:4231,$G$4)","v":0},0]
[null,null,null,null,null,null,0,{"$f":"INDEX(Ranks!4232:4232,$G$4)","v":0},0]
[null,null,null,null,null,null,0,{"$f":"INDEX(Ranks!4233:4233,$G$4)","v":0},0]
[null,null,null,null,null,null,0,{"$f":"INDEX(Ranks!4234:4234,$G$4)","v":0},0]
[null,null,null,null,null,null,0,{"$f":"INDEX(Ranks!4235:4235,$G$4)","v":0},0]
[null,null,null,null,null,null,0,{"$f":"INDEX(Ranks!4236:4236,$G$4)","v":0},0]
[null,null,null,null,null,null,0,{"$f":"INDEX(Ranks!4237:4237,$G$4)","v":0},0]
[null,null,null,null,null,null,0,{"$f":"INDEX(Ranks!4238:4238,$G$4)","v":0},0]
[null,null,null,null,null,null,0,{"$f":"INDEX(Ranks!4239:4239,$G$4)","v":0},0]
[null,null,null,null,null,null,0,{"$f":"INDEX(Ranks!4240:4240,$G$4)","v":0},0]
[null,null,null,null,null,null,0,{"$f":"INDEX(Ranks!4241:4241,$G$4)","v":0},0]
[null,null,null,null,null,null,0,{"$f":"INDEX(Ranks!4242:4242,$G$4)","v":0},0]
[null,null,null,null,null,null,0,{"$f":"INDEX(Ranks!4243:4243,$G$4)","v":0},0]
[null,null,null,null,null,null,0,{"$f":"INDEX(Ranks!4244:4244,$G$4)","v":0},0]
[null,null,null,null,null,null,0,{"$f":"INDEX(Ranks!4245:4245,$G$4)","v":0},0]
[null,null,null,null,null,null,0,{"$f":"INDEX(Ranks!4246:4246,$G$4)","v":0},0]
[null,null,null,null,null,null,0,{"$f":"INDEX(Ranks!4247:4247,$G$4)","v":0},0]
[null,null,null,null,null,null,0,{"$f":"INDEX(Ranks!4248:4248,$G$4)","v":0},0]
[null,null,null,null,null,null,0,{"$f":"INDEX(Ranks!4249:4249,$G$4)","v":0},0]
[null,null,null,null,null,null,0,{"$f":"INDEX(Ranks!4250:4250,$G$4)","v":0},0]
[null,null,null,null,null,null,0,{"$f":"INDEX(Ranks!4251:4251,$G$4)","v":0},0]
[null,null,null,null,null,null,0,{"$f":"INDEX(Ranks!4252:4252,$G$4)","v":0},0]
[null,null,null,null,null,null,0,{"$f":"INDEX(Ranks!4253:4253,$G$4)","v":0},0]
[null,null,null,null,null,null,0,{"$f":"INDEX(Ranks!4254:4254,$G$4)","v":0},0]
[null,null,null,null,null,null,0,{"$f":"INDEX(Ranks!4255:4255,$G$4)","v":0},0]
[null,null,null,null,null,null,0,{"$f":"INDEX(Ranks!4256:4256,$G$4)","v":0},0]
[null,null,null,null,null,null,0,{"$f":"INDEX(Ranks!4257:4257,$G$4)","v":0},0]
[null,null,null,null,null,null,0,{"$f":"INDEX(Ranks!4258:4258,$G$4)","v":0},0]
[null,null,null,null,null,null,0,{"$f":"INDEX(Ranks!4259:4259,$G$4)","v":0},0]
[null,null,null,null,null,null,0,{"$f":"INDEX(Ranks!4260:4260,$G$4)","v":0},0]
[null,null,null,null,null,null,0,{"$f":"INDEX(Ranks!4261:4261,$G$4)","v":0},0]
[null,null,null,null,null,null,0,{"$f":"INDEX(Ranks!4262:4262,$G$4)","v":0},0]
[null,null,null,null,null,null,0,{"$f":"INDEX(Ranks!4263:4263,$G$4)","v":0},0]
[null,null,null,null,null,null,0,{"$f":"INDEX(Ranks!4264:4264,$G$4)","v":0},0]
[null,null,null,null,null,null,0,{"$f":"INDEX(Ranks!4265:4265,$G$4)","v":0},0]
[null,null,null,null,null,null,0,{"$f":"INDEX(Ranks!4266:4266,$G$4)","v":0},0]
[null,null,null,null,null,null,0,{"$f":"INDEX(Ranks!4267:4267,$G$4)","v":0},0]
[null,null,null,null,null,null,0,{"$f":"INDEX(Ranks!4268:4268,$G$4)","v":0},0]
[null,null,null,null,null,null,0,{"$f":"INDEX(Ranks!4269:4269,$G$4)","v":0},0]
[null,null,null,null,null,null,0,{"$f":"INDEX(Ranks!4270:4270,$G$4)","v":0},0]
[null,null,null,null,null,null,0,{"$f":"INDEX(Ranks!4271:4271,$G$4)","v":0},0]
[null,null,null,null,null,null,0,{"$f":"INDEX(Ranks!4272:4272,$G$4)","v":0},0]
[null,null,null,null,null,null,0,{"$f":"INDEX(Ranks!4273:4273,$G$4)","v":0},0]
[null,null,null,null,null,null,0,{"$f":"INDEX(Ranks!4274:4274,$G$4)","v":0},0]
[null,null,null,null,null,null,0,{"$f":"INDEX(Ranks!4275:4275,$G$4)","v":0},0]
[null,null,null,null,null,null,0,{"$f":"INDEX(Ranks!4276:4276,$G$4)","v":0},0]
[null,null,null,null,null,null,0,{"$f":"INDEX(Ranks!4277:4277,$G$4)","v":0},0]
[null,null,null,null,null,null,0,{"$f":"INDEX(Ranks!4278:4278,$G$4)","v":0},0]
[null,null,null,null,null,null,0,{"$f":"INDEX(Ranks!4279:4279,$G$4)","v":0},0]
[null,null,null,null,null,null,0,{"$f":"INDEX(Ranks!4280:4280,$G$4)","v":0},0]
[null,null,null,null,null,null,0,{"$f":"INDEX(Ranks!4281:4281,$G$4)","v":0},0]
[null,null,null,null,null,null,0,{"$f":"INDEX(Ranks!4282:4282,$G$4)","v":0},0]
[null,null,null,null,null,null,0,{"$f":"INDEX(Ranks!4283:4283,$G$4)","v":0},0]
[null,null,null,null,null,null,0,{"$f":"INDEX(Ranks!4284:4284,$G$4)","v":0},0]
[null,null,null,null,null,null,0,{"$f":"INDEX(Ranks!4285:4285,$G$4)","v":0},0]
[null,null,null,null,null,null,0,{"$f":"INDEX(Ranks!4286:4286,$G$4)","v":0},0]
[null,null,null,null,null,null,0,{"$f":"INDEX(Ranks!4287:4287,$G$4)","v":0},0]
[null,null,null,null,null,null,0,{"$f":"INDEX(Ranks!4288:4288,$G$4)","v":0},0]
[null,null,null,null,null,null,0,{"$f":"INDEX(Ranks!4289:4289,$G$4)","v":0},0]
[null,null,null,null,null,null,0,{"$f":"INDEX(Ranks!4290:4290,$G$4)","v":0},0]
[null,null,null,null,null,null,0,{"$f":"INDEX(Ranks!4291:4291,$G$4)","v":0},0]
[null,null,null,null,null,null,0,{"$f":"INDEX(Ranks!4292:4292,$G$4)","v":0},0]
[null,null,null,null,null,null,0,{"$f":"INDEX(Ranks!4293:4293,$G$4)","v":0},0]
[null,null,null,null,null,null,{"$f":"IFERROR(INT(H4294*100),H4294)","v":0},{"$f":"INDEX(Ranks!4294:4294,$G$4)","v":0},{"$f":"IF(H4294=\"\",-1,IF(H4294=-1,\"\",H4294))","v":0}]
[null,null,null,null,null,null,0,{"$f":"INDEX(Ranks!4295:4295,$G$4)","v":0},0]
[null,null,null,null,null,null,0,{"$f":"INDEX(Ranks!4296:4296,$G$4)","v":0},0]
[null,null,null,null,null,null,0,{"$f":"INDEX(Ranks!4297:4297,$G$4)","v":0},0]
[null,null,null,null,null,null,0,{"$f":"INDEX(Ranks!4298:4298,$G$4)","v":0},0]
[null,null,null,null,null,null,0,{"$f":"INDEX(Ranks!4299:4299,$G$4)","v":0},0]
[null,null,null,null,null,null,0,{"$f":"INDEX(Ranks!4300:4300,$G$4)","v":0},0]
[null,null,null,null,null,null,0,{"$f":"INDEX(Ranks!4301:4301,$G$4)","v":0},0]
[null,null,null,null,null,null,0,{"$f":"INDEX(Ranks!4302:4302,$G$4)","v":0},0]
[null,null,null,null,null,null,0,{"$f":"INDEX(Ranks!4303:4303,$G$4)","v":0},0]
[null,null,null,null,null,null,0,{"$f":"INDEX(Ranks!4304:4304,$G$4)","v":0},0]
[null,null,null,null,null,null,0,{"$f":"INDEX(Ranks!4305:4305,$G$4)","v":0},0]
[null,null,null,null,null,null,0,{"$f":"INDEX(Ranks!4306:4306,$G$4)","v":0},0]
[null,null,null,null,null,null,0,{"$f":"INDEX(Ranks!4307:4307,$G$4)","v":0},0]
[null,null,null,null,null,null,0,{"$f":"INDEX(Ranks!4308:4308,$G$4)","v":0},0]
[null,null,null,null,null,null,0,{"$f":"INDEX(Ranks!4309:4309,$G$4)","v":0},0]
[null,null,null,null,null,null,0,{"$f":"INDEX(Ranks!4310:4310,$G$4)","v":0},0]
[null,null,null,null,null,null,0,{"$f":"INDEX(Ranks!4311:4311,$G$4)","v":0},0]
[null,null,null,null,null,null,0,{"$f":"INDEX(Ranks!4312:4312,$G$4)","v":0},0]
[null,null,null,null,null,null,0,{"$f":"INDEX(Ranks!4313:4313,$G$4)","v":0},0]
[null,null,null,null,null,null,0,{"$f":"INDEX(Ranks!4314:4314,$G$4)","v":0},0]
[null,null,null,null,null,null,0,{"$f":"INDEX(Ranks!4315:4315,$G$4)","v":0},0]
[null,null,null,null,null,null,0,{"$f":"INDEX(Ranks!4316:4316,$G$4)","v":0},0]
[null,null,null,null,null,null,0,{"$f":"INDEX(Ranks!4317:4317,$G$4)","v":0},0]
[null,null,null,null,null,null,0,{"$f":"INDEX(Ranks!4318:4318,$G$4)","v":0},0]
[null,null,null,null,null,null,0,{"$f":"INDEX(Ranks!4319:4319,$G$4)","v":0},0]
[null,null,null,null,null,null,0,{"$f":"INDEX(Ranks!4320:4320,$G$4)","v":0},0]
[null,null,null,null,null,null,0,{"$f":"INDEX(Ranks!4321:4321,$G$4)","v":0},0]
[null,null,null,null,null,null,0,{"$f":"INDEX(Ranks!4322:4322,$G$4)","v":0},0]
[null,null,null,null,null,null,0,{"$f":"INDEX(Ranks!4323:4323,$G$4)","v":0},0]
[null,null,null,null,null,null,0,{"$f":"INDEX(Ranks!4324:4324,$G$4)","v":0},0]
[null,null,null,null,null,null,0,{"$f":"INDEX(Ranks!4325:4325,$G$4)","v":0},0]
[null,null,null,null,null,null,0,{"$f":"INDEX(Ranks!4326:4326,$G$4)","v":0},0]
[null,null,null,null,null,null,0,{"$f":"INDEX(Ranks!4327:4327,$G$4)","v":0},0]
[null,null,null,null,null,null,0,{"$f":"INDEX(Ranks!4328:4328,$G$4)","v":0},0]
[null,null,null,null,null,null,0,{"$f":"INDEX(Ranks!4329:4329,$G$4)","v":0},0]
[null,null,null,null,null,null,0,{"$f":"INDEX(Ranks!4330:4330,$G$4)","v":0},0]
[null,null,null,null,null,null,0,{"$f":"INDEX(Ranks!4331:4331,$G$4)","v":0},0]
[null,null,null,null,null,null,0,{"$f":"INDEX(Ranks!4332:4332,$G$4)","v":0},0]
[null,null,null,null,null,null,0,{"$f":"INDEX(Ranks!4333:4333,$G$4)","v":0},0]
[null,null,null,null,null,null,0,{"$f":"INDEX(Ranks!4334:4334,$G$4)","v":0},0]
[null,null,null,null,null,null,0,{"$f":"INDEX(Ranks!4335:4335,$G$4)","v":0},0]
[null,null,null,null,null,null,0,{"$f":"INDEX(Ranks!4336:4336,$G$4)","v":0},0]
[null,null,null,null,null,null,0,{"$f":"INDEX(Ranks!4337:4337,$G$4)","v":0},0]
[null,null,null,null,null,null,0,{"$f":"INDEX(Ranks!4338:4338,$G$4)","v":0},0]
[null,null,null,null,null,null,0,{"$f":"INDEX(Ranks!4339:4339,$G$4)","v":0},0]
[null,null,null,null,null,null,0,{"$f":"INDEX(Ranks!4340:4340,$G$4)","v":0},0]
[null,null,null,null,null,null,0,{"$f":"INDEX(Ranks!4341:4341,$G$4)","v":0},0]
[null,null,null,null,null,null,0,{"$f":"INDEX(Ranks!4342:4342,$G$4)","v":0},0]
[null,null,null,null,null,null,0,{"$f":"INDEX(Ranks!4343:4343,$G$4)","v":0},0]
[null,null,null,null,null,null,0,{"$f":"INDEX(Ranks!4344:4344,$G$4)","v":0},0]
[null,null,null,null,null,null,0,{"$f":"INDEX(Ranks!4345:4345,$G$4)","v":0},0]
[null,null,null,null,null,null,0,{"$f":"INDEX(Ranks!4346:4346,$G$4)","v":0},0]
[null,null,null,null,null,null,0,{"$f":"INDEX(Ranks!4347:4347,$G$4)","v":0},0]
[null,null,null,null,null,null,0,{"$f":"INDEX(Ranks!4348:4348,$G$4)","v":0},0]
[null,null,null,null,null,null,0,{"$f":"INDEX(Ranks!4349:4349,$G$4)","v":0},0]
[null,null,null,null,null,null,0,{"$f":"INDEX(Ranks!4350:4350,$G$4)","v":0},0]
[null,null,null,null,null,null,0,{"$f":"INDEX(Ranks!4351:4351,$G$4)","v":0},0]
[null,null,null,null,null,null,0,{"$f":"INDEX(Ranks!4352:4352,$G$4)","v":0},0]
[null,null,null,null,null,null,0,{"$f":"INDEX(Ranks!4353:4353,$G$4)","v":0},0]
[null,null,null,null,null,null,0,{"$f":"INDEX(Ranks!4354:4354,$G$4)","v":0},0]
[null,null,null,null,null,null,0,{"$f":"INDEX(Ranks!4355:4355,$G$4)","v":0},0]
[null,null,null,null,null,null,0,{"$f":"INDEX(Ranks!4356:4356,$G$4)","v":0},0]
[null,null,null,null,null,null,0,{"$f":"INDEX(Ranks!4357:4357,$G$4)","v":0},0]
[null,null,null,null,null,null,{"$f":"IFERROR(INT(H4358*100),H4358)","v":0},{"$f":"INDEX(Ranks!4358:4358,$G$4)","v":0},{"$f":"IF(H4358=\"\",-1,IF(H4358=-1,\"\",H4358))","v":0}]
[null,null,null,null,null,null,0,{"$f":"INDEX(Ranks!4359:4359,$G$4)","v":0},0]
[null,null,null,null,null,null,0,{"$f":"INDEX(Ranks!4360:4360,$G$4)","v":0},0]
[null,null,null,null,null,null,0,{"$f":"INDEX(Ranks!4361:4361,$G$4)","v":0},0]
[null,null,null,null,null,null,0,{"$f":"INDEX(Ranks!4362:4362,$G$4)","v":0},0]
[null,null,null,null,null,null,0,{"$f":"INDEX(Ranks!4363:4363,$G$4)","v":0},0]
[null,null,null,null,null,null,0,{"$f":"INDEX(Ranks!4364:4364,$G$4)","v":0},0]
[null,null,null,null,null,null,0,{"$f":"INDEX(Ranks!4365:4365,$G$4)","v":0},0]
[null,null,null,null,null,null,0,{"$f":"INDEX(Ranks!4366:4366,$G$4)","v":0},0]
[null,null,null,null,null,null,0,{"$f":"INDEX(Ranks!4367:4367,$G$4)","v":0},0]
[null,null,null,null,null,null,0,{"$f":"INDEX(Ranks!4368:4368,$G$4)","v":0},0]
[null,null,null,null,null,null,0,{"$f":"INDEX(Ranks!4369:4369,$G$4)","v":0},0]
[null,null,null,null,null,null,0,{"$f":"INDEX(Ranks!4370:4370,$G$4)","v":0},0]
[null,null,null,null,null,null,0,{"$f":"INDEX(Ranks!4371:4371,$G$4)","v":0},0]
[null,null,null,null,null,null,0,{"$f":"INDEX(Ranks!4372:4372,$G$4)","v":0},0]
[null,null,null,null,null,null,0,{"$f":"INDEX(Ranks!4373:4373,$G$4)","v":0},0]
[null,null,null,null,null,null,0,{"$f":"INDEX(Ranks!4374:4374,$G$4)","v":0},0]
[null,null,null,null,null,null,0,{"$f":"INDEX(Ranks!4375:4375,$G$4)","v":0},0]
[null,null,null,null,null,null,0,{"$f":"INDEX(Ranks!4376:4376,$G$4)","v":0},0]
[null,null,null,null,null,null,0,{"$f":"INDEX(Ranks!4377:4377,$G$4)","v":0},0]
[null,null,null,null,null,null,0,{"$f":"INDEX(Ranks!4378:4378,$G$4)","v":0},0]
[null,null,null,null,null,null,0,{"$f":"INDEX(Ranks!4379:4379,$G$4)","v":0},0]
[null,null,null,null,null,null,0,{"$f":"INDEX(Ranks!4380:4380,$G$4)","v":0},0]
[null,null,null,null,null,null,0,{"$f":"INDEX(Ranks!4381:4381,$G$4)","v":0},0]
[null,null,null,null,null,null,0,{"$f":"INDEX(Ranks!4382:4382,$G$4)","v":0},0]
[null,null,null,null,null,null,0,{"$f":"INDEX(Ranks!4383:4383,$G$4)","v":0},0]
[null,null,null,null,null,null,0,{"$f":"INDEX(Ranks!4384:4384,$G$4)","v":0},0]
[null,null,null,null,null,null,0,{"$f":"INDEX(Ranks!4385:4385,$G$4)","v":0},0]
[null,null,null,null,null,null,0,{"$f":"INDEX(Ranks!4386:4386,$G$4)","v":0},0]
[null,null,null,null,null,null,0,{"$f":"INDEX(Ranks!4387:4387,$G$4)","v":0},0]
[null,null,null,null,null,null,0,{"$f":"INDEX(Ranks!4388:4388,$G$4)","v":0},0]
[null,null,null,null,null,null,0,{"$f":"INDEX(Ranks!4389:4389,$G$4)","v":0},0]
[null,null,null,null,null,null,0,{"$f":"INDEX(Ranks!4390:4390,$G$4)","v":0},0]
[null,null,null,null,null,null,0,{"$f":"INDEX(Ranks!4391:4391,$G$4)","v":0},0]
[null,null,null,null,null,null,0,{"$f":"INDEX(Ranks!4392:4392,$G$4)","v":0},0]
[null,null,null,null,null,null,0,{"$f":"INDEX(Ranks!4393:4393,$G$4)","v":0},0]
[null,null,null,null,null,null,0,{"$f":"INDEX(Ranks!4394:4394,$G$4)","v":0},0]
[null,null,null,null,null,null,0,{"$f":"INDEX(Ranks!4395:4395,$G$4)","v":0},0]
[null,null,null,null,null,null,0,{"$f":"INDEX(Ranks!4396:4396,$G$4)","v":0},0]
[null,null,null,null,null,null,0,{"$f":"INDEX(Ranks!4397:4397,$G$4)","v":0},0]
[null,null,null,null,null,null,0,{"$f":"INDEX(Ranks!4398:4398,$G$4)","v":0},0]
[null,null,null,null,null,null,0,{"$f":"INDEX(Ranks!4399:4399,$G$4)","v":0},0]
[null,null,null,null,null,null,0,{"$f":"INDEX(Ranks!4400:4400,$G$4)","v":0},0]
[null,null,null,null,null,null,0,{"$f":"INDEX(Ranks!4401:4401,$G$4)","v":0},0]
[null,null,null,null,null,null,0,{"$f":"INDEX(Ranks!4402:4402,$G$4)","v":0},0]
[null,null,null,null,null,null,0,{"$f":"INDEX(Ranks!4403:4403,$G$4)","v":0},0]
[null,null,null,null,null,null,0,{"$f":"INDEX(Ranks!4404:4404,$G$4)","v":0},0]
[null,null,null,null,null,null,0,{"$f":"INDEX(Ranks!4405:4405,$G$4)","v":0},0]
[null,null,null,null,null,null,0,{"$f":"INDEX(Ranks!4406:4406,$G$4)","v":0},0]
[null,null,null,null,null,null,0,{"$f":"INDEX(Ranks!4407:4407,$G$4)","v":0},0]
[null,null,null,null,null,null,0,{"$f":"INDEX(Ranks!4408:4408,$G$4)","v":0},0]
[null,null,null,null,null,null,0,{"$f":"INDEX(Ranks!4409:4409,$G$4)","v":0},0]
[null,null,null,null,null,null,0,{"$f":"INDEX(Ranks!4410:4410,$G$4)","v":0},0]
[null,null,null,null,null,null,0,{"$f":"INDEX(Ranks!4411:4411,$G$4)","v":0},0]
[null,null,null,null,null,null,0,{"$f":"INDEX(Ranks!4412:4412,$G$4)","v":0},0]
[null,null,null,null,null,null,0,{"$f":"INDEX(Ranks!4413:4413,$G$4)","v":0},0]
[null,null,null,null,null,null,0,{"$f":"INDEX(Ranks!4414:4414,$G$4)","v":0},0]
[null,null,null,null,null,null,0,{"$f":"INDEX(Ranks!4415:4415,$G$4)","v":0},0]
[null,null,null,null,null,null,0,{"$f":"INDEX(Ranks!4416:4416,$G$4)","v":0},0]
[null,null,null,null,null,null,0,{"$f":"INDEX(Ranks!4417:4417,$G$4)","v":0},0]
[null,null,null,null,null,null,0,{"$f":"INDEX(Ranks!4418:4418,$G$4)","v":0},0]
[null,null,null,null,null,null,0,{"$f":"INDEX(Ranks!4419:4419,$G$4)","v":0},0]
[null,null,null,null,null,null,0,{"$f":"INDEX(Ranks!4420:4420,$G$4)","v":0},0]
[null,null,null,null,null,null,0,{"$f":"INDEX(Ranks!4421:4421,$G$4)","v":0},0]
[null,null,null,null,null,null,{"$f":"IFERROR(INT(H4422*100),H4422)","v":0},{"$f":"INDEX(Ranks!4422:4422,$G$4)","v":0},{"$f":"IF(H4422=\"\",-1,IF(H4422=-1,\"\",H4422))","v":0}]
[null,null,null,null,null,null,0,{"$f":"INDEX(Ranks!4423:4423,$G$4)","v":0},0]
[null,null,null,null,null,null,0,{"$f":"INDEX(Ranks!4424:4424,$G$4)","v":0},0]
[null,null,null,null,null,null,0,{"$f":"INDEX(Ranks!4425:4425,$G$4)","v":0},0]
[null,null,null,null,null,null,0,{"$f":"INDEX(Ranks!4426:4426,$G$4)","v":0},0]
[null,null,null,null,null,null,0,{"$f":"INDEX(Ranks!4427:4427,$G$4)","v":0},0]
[null,null,null,null,null,null,0,{"$f":"INDEX(Ranks!4428:4428,$G$4)","v":0},0]
[null,null,null,null,null,null,0,{"$f":"INDEX(Ranks!4429:4429,$G$4)","v":0},0]
[null,null,null,null,null,null,0,{"$f":"INDEX(Ranks!4430:4430,$G$4)","v":0},0]
[null,null,null,null,null,null,0,{"$f":"INDEX(Ranks!4431:4431,$G$4)","v":0},0]
[null,null,null,null,null,null,0,{"$f":"INDEX(Ranks!4432:4432,$G$4)","v":0},0]
[null,null,null,null,null,null,0,{"$f":"INDEX(Ranks!4433:4433,$G$4)","v":0},0]
[null,null,null,null,null,null,0,{"$f":"INDEX(Ranks!4434:4434,$G$4)","v":0},0]
[null,null,null,null,null,null,0,{"$f":"INDEX(Ranks!4435:4435,$G$4)","v":0},0]
[null,null,null,null,null,null,0,{"$f":"INDEX(Ranks!4436:4436,$G$4)","v":0},0]
[null,null,null,null,null,null,0,{"$f":"INDEX(Ranks!4437:4437,$G$4)","v":0},0]
[null,null,null,null,null,null,0,{"$f":"INDEX(Ranks!4438:4438,$G$4)","v":0},0]
[null,null,null,null,null,null,0,{"$f":"INDEX(Ranks!4439:4439,$G$4)","v":0},0]
[null,null,null,null,null,null,0,{"$f":"INDEX(Ranks!4440:4440,$G$4)","v":0},0]
[null,null,null,null,null,null,0,{"$f":"INDEX(Ranks!4441:4441,$G$4)","v":0},0]
[null,null,null,null,null,null,0,{"$f":"INDEX(Ranks!4442:4442,$G$4)","v":0},0]
[null,null,null,null,null,null,0,{"$f":"INDEX(Ranks!4443:4443,$G$4)","v":0},0]
[null,null,null,null,null,null,0,{"$f":"INDEX(Ranks!4444:4444,$G$4)","v":0},0]
[null,null,null,null,null,null,0,{"$f":"INDEX(Ranks!4445:4445,$G$4)","v":0},0]
[null,null,null,null,null,null,0,{"$f":"INDEX(Ranks!4446:4446,$G$4)","v":0},0]
[null,null,null,null,null,null,0,{"$f":"INDEX(Ranks!4447:4447,$G$4)","v":0},0]
[null,null,null,null,null,null,0,{"$f":"INDEX(Ranks!4448:4448,$G$4)","v":0},0]
[null,null,null,null,null,null,0,{"$f":"INDEX(Ranks!4449:4449,$G$4)","v":0},0]
[null,null,null,null,null,null,0,{"$f":"INDEX(Ranks!4450:4450,$G$4)","v":0},0]
[null,null,null,null,null,null,0,{"$f":"INDEX(Ranks!4451:4451,$G$4)","v":0},0]
[null,null,null,null,null,null,0,{"$f":"INDEX(Ranks!4452:4452,$G$4)","v":0},0]
[null,null,null,null,null,null,0,{"$f":"INDEX(Ranks!4453:4453,$G$4)","v":0},0]
[null,null,null,null,null,null,0,{"$f":"INDEX(Ranks!4454:4454,$G$4)","v":0},0]
[null,null,null,null,null,null,0,{"$f":"INDEX(Ranks!4455:4455,$G$4)","v":0},0]
[null,null,null,null,null,null,0,{"$f":"INDEX(Ranks!4456:4456,$G$4)","v":0},0]
[null,null,null,null,null,null,0,{"$f":"INDEX(Ranks!4457:4457,$G$4)","v":0},0]
[null,null,null,null,null,null,0,{"$f":"INDEX(Ranks!4458:4458,$G$4)","v":0},0]
[null,null,null,null,null,null,0,{"$f":"INDEX(Ranks!4459:4459,$G$4)","v":0},0]
[null,null,null,null,null,null,0,{"$f":"INDEX(Ranks!4460:4460,$G$4)","v":0},0]
[null,null,null,null,null,null,0,{"$f":"INDEX(Ranks!4461:4461,$G$4)","v":0},0]
[null,null,null,null,null,null,0,{"$f":"INDEX(Ranks!4462:4462,$G$4)","v":0},0]
[null,null,null,null,null,null,0,{"$f":"INDEX(Ranks!4463:4463,$G$4)","v":0},0]
[null,null,null,null,null,null,0,{"$f":"INDEX(Ranks!4464:4464,$G$4)","v":0},0]
[null,null,null,null,null,null,0,{"$f":"INDEX(Ranks!4465:4465,$G$4)","v":0},0]
[null,null,null,null,null,null,0,{"$f":"INDEX(Ranks!4466:4466,$G$4)","v":0},0]
[null,null,null,null,null,null,0,{"$f":"INDEX(Ranks!4467:4467,$G$4)","v":0},0]
[null,null,null,null,null,null,0,{"$f":"INDEX(Ranks!4468:4468,$G$4)","v":0},0]
[null,null,null,null,null,null,0,{"$f":"INDEX(Ranks!4469:4469,$G$4)","v":0},0]
[null,null,null,null,null,null,0,{"$f":"INDEX(Ranks!4470:4470,$G$4)","v":0},0]
[null,null,null,null,null,null,0,{"$f":"INDEX(Ranks!4471:4471,$G$4)","v":0},0]
[null,null,null,null,null,null,0,{"$f":"INDEX(Ranks!4472:4472,$G$4)","v":0},0]
[null,null,null,null,null,null,0,{"$f":"INDEX(Ranks!4473:4473,$G$4)","v":0},0]
[null,null,null,null,null,null,0,{"$f":"INDEX(Ranks!4474:4474,$G$4)","v":0},0]
[null,null,null,null,null,null,0,{"$f":"INDEX(Ranks!4475:4475,$G$4)","v":0},0]
[null,null,null,null,null,null,0,{"$f":"INDEX(Ranks!4476:4476,$G$4)","v":0},0]
[null,null,null,null,null,null,0,{"$f":"INDEX(Ranks!4477:4477,$G$4)","v":0},0]
[null,null,null,null,null,null,0,{"$f":"INDEX(Ranks!4478:4478,$G$4)","v":0},0]
[null,null,null,null,null,null,0,{"$f":"INDEX(Ranks!4479:4479,$G$4)","v":0},0]
[null,null,null,null,null,null,0,{"$f":"INDEX(Ranks!4480:4480,$G$4)","v":0},0]
[null,null,null,null,null,null,0,{"$f":"INDEX(Ranks!4481:4481,$G$4)","v":0},0]
[null,null,null,null,null,null,0,{"$f":"INDEX(Ranks!4482:4482,$G$4)","v":0},0]
[null,null,null,null,null,null,0,{"$f":"INDEX(Ranks!4483:4483,$G$4)","v":0},0]
[null,null,null,null,null,null,0,{"$f":"INDEX(Ranks!4484:4484,$G$4)","v":0},0]
[null,null,null,null,null,null,0,{"$f":"INDEX(Ranks!4485:4485,$G$4)","v":0},0]
[null,null,null,null,null,null,{"$f":"IFERROR(INT(H4486*100),H4486)","v":0},{"$f":"INDEX(Ranks!4486:4486,$G$4)","v":0},{"$f":"IF(H4486=\"\",-1,IF(H4486=-1,\"\",H4486))","v":0}]
[null,null,null,null,null,null,0,{"$f":"INDEX(Ranks!4487:4487,$G$4)","v":0},0]
[null,null,null,null,null,null,0,{"$f":"INDEX(Ranks!4488:4488,$G$4)","v":0},0]
[null,null,null,null,null,null,0,{"$f":"INDEX(Ranks!4489:4489,$G$4)","v":0},0]
[null,null,null,null,null,null,0,{"$f":"INDEX(Ranks!4490:4490,$G$4)","v":0},0]
[null,null,null,null,null,null,0,{"$f":"INDEX(Ranks!4491:4491,$G$4)","v":0},0]
[null,null,null,null,null,null,0,{"$f":"INDEX(Ranks!4492:4492,$G$4)","v":0},0]
[null,null,null,null,null,null,0,{"$f":"INDEX(Ranks!4493:4493,$G$4)","v":0},0]
[null,null,null,null,null,null,0,{"$f":"INDEX(Ranks!4494:4494,$G$4)","v":0},0]
[null,null,null,null,null,null,0,{"$f":"INDEX(Ranks!4495:4495,$G$4)","v":0},0]
[null,null,null,null,null,null,0,{"$f":"INDEX(Ranks!4496:4496,$G$4)","v":0},0]
[null,null,null,null,null,null,0,{"$f":"INDEX(Ranks!4497:4497,$G$4)","v":0},0]
[null,null,null,null,null,null,0,{"$f":"INDEX(Ranks!4498:4498,$G$4)","v":0},0]
[null,null,null,null,null,null,0,{"$f":"INDEX(Ranks!4499:4499,$G$4)","v":0},0]
[null,null,null,null,null,null,0,{"$f":"INDEX(Ranks!4500:4500,$G$4)","v":0},0]
[null,null,null,null,null,null,0,{"$f":"INDEX(Ranks!4501:4501,$G$4)","v":0},0]
[null,null,null,null,null,null,0,{"$f":"INDEX(Ranks!4502:4502,$G$4)","v":0},0]
[null,null,null,null,null,null,0,{"$f":"INDEX(Ranks!4503:4503,$G$4)","v":0},0]
[null,null,null,null,null,null,0,{"$f":"INDEX(Ranks!4504:4504,$G$4)","v":0},0]
[null,null,null,null,null,null,0,{"$f":"INDEX(Ranks!4505:4505,$G$4)","v":0},0]
[null,null,null,null,null,null,0,{"$f":"INDEX(Ranks!4506:4506,$G$4)","v":0},0]
[null,null,null,null,null,null,0,{"$f":"INDEX(Ranks!4507:4507,$G$4)","v":0},0]
[null,null,null,null,null,null,0,{"$f":"INDEX(Ranks!4508:4508,$G$4)","v":0},0]
[null,null,null,null,null,null,0,{"$f":"INDEX(Ranks!4509:4509,$G$4)","v":0},0]
[null,null,null,null,null,null,0,{"$f":"INDEX(Ranks!4510:4510,$G$4)","v":0},0]
[null,null,null,null,null,null,0,{"$f":"INDEX(Ranks!4511:4511,$G$4)","v":0},0]
[null,null,null,null,null,null,0,{"$f":"INDEX(Ranks!4512:4512,$G$4)","v":0},0]
[null,null,null,null,null,null,0,{"$f":"INDEX(Ranks!4513:4513,$G$4)","v":0},0]
[null,null,null,null,null,null,0,{"$f":"INDEX(Ranks!4514:4514,$G$4)","v":0},0]
[null,null,null,null,null,null,0,{"$f":"INDEX(Ranks!4515:4515,$G$4)","v":0},0]
[null,null,null,null,null,null,0,{"$f":"INDEX(Ranks!4516:4516,$G$4)","v":0},0]
[null,null,null,null,null,null,0,{"$f":"INDEX(Ranks!4517:4517,$G$4)","v":0},0]
[null,null,null,null,null,null,0,{"$f":"INDEX(Ranks!4518:4518,$G$4)","v":0},0]
[null,null,null,null,null,null,0,{"$f":"INDEX(Ranks!4519:4519,$G$4)","v":0},0]
[null,null,null,null,null,null,0,{"$f":"INDEX(Ranks!4520:4520,$G$4)","v":0},0]
[null,null,null,null,null,null,0,{"$f":"INDEX(Ranks!4521:4521,$G$4)","v":0},0]
[null,null,null,null,null,null,0,{"$f":"INDEX(Ranks!4522:4522,$G$4)","v":0},0]
[null,null,null,null,null,null,0,{"$f":"INDEX(Ranks!4523:4523,$G$4)","v":0},0]
[null,null,null,null,null,null,0,{"$f":"INDEX(Ranks!4524:4524,$G$4)","v":0},0]
[null,null,null,null,null,null,0,{"$f":"INDEX(Ranks!4525:4525,$G$4)","v":0},0]
[null,null,null,null,null,null,0,{"$f":"INDEX(Ranks!4526:4526,$G$4)","v":0},0]
[null,null,null,null,null,null,0,{"$f":"INDEX(Ranks!4527:4527,$G$4)","v":0},0]
[null,null,null,null,null,null,0,{"$f":"INDEX(Ranks!4528:4528,$G$4)","v":0},0]
[null,null,null,null,null,null,0,{"$f":"INDEX(Ranks!4529:4529,$G$4)","v":0},0]
[null,null,null,null,null,null,0,{"$f":"INDEX(Ranks!4530:4530,$G$4)","v":0},0]
[null,null,null,null,null,null,0,{"$f":"INDEX(Ranks!4531:4531,$G$4)","v":0},0]
[null,null,null,null,null,null,0,{"$f":"INDEX(Ranks!4532:4532,$G$4)","v":0},0]
[null,null,null,null,null,null,0,{"$f":"INDEX(Ranks!4533:4533,$G$4)","v":0},0]
[null,null,null,null,null,null,0,{"$f":"INDEX(Ranks!4534:4534,$G$4)","v":0},0]
[null,null,null,null,null,null,0,{"$f":"INDEX(Ranks!4535:4535,$G$4)","v":0},0]
[null,null,null,null,null,null,0,{"$f":"INDEX(Ranks!4536:4536,$G$4)","v":0},0]
[null,null,null,null,null,null,0,{"$f":"INDEX(Ranks!4537:4537,$G$4)","v":0},0]
[null,null,null,null,null,null,0,{"$f":"INDEX(Ranks!4538:4538,$G$4)","v":0},0]
[null,null,null,null,null,null,0,{"$f":"INDEX(Ranks!4539:4539,$G$4)","v":0},0]
[null,null,null,null,null,null,0,{"$f":"INDEX(Ranks!4540:4540,$G$4)","v":0},0]
[null,null,null,null,null,null,0,{"$f":"INDEX(Ranks!4541:4541,$G$4)","v":0},0]
[null,null,null,null,null,null,0,{"$f":"INDEX(Ranks!4542:4542,$G$4)","v":0},0]
[null,null,null,null,null,null,0,{"$f":"INDEX(Ranks!4543:4543,$G$4)","v":0},0]
[null,null,null,null,null,null,0,{"$f":"INDEX(Ranks!4544:4544,$G$4)","v":0},0]
[null,null,null,null,null,null,0,{"$f":"INDEX(Ranks!4545:4545,$G$4)","v":0},0]
[null,null,null,null,null,null,0,{"$f":"INDEX(Ranks!4546:4546,$G$4)","v":0},0]
[null,null,null,null,null,null,0,{"$f":"INDEX(Ranks!4547:4547,$G$4)","v":0},0]
[null,null,null,null,null,null,0,{"$f":"INDEX(Ranks!4548:4548,$G$4)","v":0},0]
[null,null,null,null,null,null,0,{"$f":"INDEX(Ranks!4549:4549,$G$4)","v":0},0]
[null,null,null,null,null,null,{"$f":"IFERROR(INT(H4550*100),H4550)","v":0},{"$f":"INDEX(Ranks!4550:4550,$G$4)","v":0},{"$f":"IF(H4550=\"\",-1,IF(H4550=-1,\"\",H4550))","v":0}]
[null,null,null,null,null,null,0,{"$f":"INDEX(Ranks!4551:4551,$G$4)","v":0},0]
[null,null,null,null,null,null,0,{"$f":"INDEX(Ranks!4552:4552,$G$4)","v":0},0]
[null,null,null,null,null,null,0,{"$f":"INDEX(Ranks!4553:4553,$G$4)","v":0},0]
[null,null,null,null,null,null,0,{"$f":"INDEX(Ranks!4554:4554,$G$4)","v":0},0]
[null,null,null,null,null,null,0,{"$f":"INDEX(Ranks!4555:4555,$G$4)","v":0},0]
[null,null,null,null,null,null,0,{"$f":"INDEX(Ranks!4556:4556,$G$4)","v":0},0]
[null,null,null,null,null,null,0,{"$f":"INDEX(Ranks!4557:4557,$G$4)","v":0},0]
[null,null,null,null,null,null,0,{"$f":"INDEX(Ranks!4558:4558,$G$4)","v":0},0]
[null,null,null,null,null,null,0,{"$f":"INDEX(Ranks!4559:4559,$G$4)","v":0},0]
[null,null,null,null,null,null,0,{"$f":"INDEX(Ranks!4560:4560,$G$4)","v":0},0]
[null,null,null,null,null,null,0,{"$f":"INDEX(Ranks!4561:4561,$G$4)","v":0},0]
[null,null,null,null,null,null,0,{"$f":"INDEX(Ranks!4562:4562,$G$4)","v":0},0]
[null,null,null,null,null,null,0,{"$f":"INDEX(Ranks!4563:4563,$G$4)","v":0},0]
[null,null,null,null,null,null,0,{"$f":"INDEX(Ranks!4564:4564,$G$4)","v":0},0]
[null,null,null,null,null,null,0,{"$f":"INDEX(Ranks!4565:4565,$G$4)","v":0},0]
[null,null,null,null,null,null,0,{"$f":"INDEX(Ranks!4566:4566,$G$4)","v":0},0]
[null,null,null,null,null,null,0,{"$f":"INDEX(Ranks!4567:4567,$G$4)","v":0},0]
[null,null,null,null,null,null,0,{"$f":"INDEX(Ranks!4568:4568,$G$4)","v":0},0]
[null,null,null,null,null,null,0,{"$f":"INDEX(Ranks!4569:4569,$G$4)","v":0},0]
[null,null,null,null,null,null,0,{"$f":"INDEX(Ranks!4570:4570,$G$4)","v":0},0]
[null,null,null,null,null,null,0,{"$f":"INDEX(Ranks!4571:4571,$G$4)","v":0},0]
[null,null,null,null,null,null,0,{"$f":"INDEX(Ranks!4572:4572,$G$4)","v":0},0]
[null,null,null,null,null,null,0,{"$f":"INDEX(Ranks!4573:4573,$G$4)","v":0},0]
[null,null,null,null,null,null,0,{"$f":"INDEX(Ranks!4574:4574,$G$4)","v":0},0]
[null,null,null,null,null,null,0,{"$f":"INDEX(Ranks!4575:4575,$G$4)","v":0},0]
[null,null,null,null,null,null,0,{"$f":"INDEX(Ranks!4576:4576,$G$4)","v":0},0]
[null,null,null,null,null,null,0,{"$f":"INDEX(Ranks!4577:4577,$G$4)","v":0},0]
[null,null,null,null,null,null,0,{"$f":"INDEX(Ranks!4578:4578,$G$4)","v":0},0]
[null,null,null,null,null,null,0,{"$f":"INDEX(Ranks!4579:4579,$G$4)","v":0},0]
[null,null,null,null,null,null,0,{"$f":"INDEX(Ranks!4580:4580,$G$4)","v":0},0]
[null,null,null,null,null,null,0,{"$f":"INDEX(Ranks!4581:4581,$G$4)","v":0},0]
[null,null,null,null,null,null,0,{"$f":"INDEX(Ranks!4582:4582,$G$4)","v":0},0]
[null,null,null,null,null,null,0,{"$f":"INDEX(Ranks!4583:4583,$G$4)","v":0},0]
[null,null,null,null,null,null,0,{"$f":"INDEX(Ranks!4584:4584,$G$4)","v":0},0]
[null,null,null,null,null,null,0,{"$f":"INDEX(Ranks!4585:4585,$G$4)","v":0},0]
[null,null,null,null,null,null,0,{"$f":"INDEX(Ranks!4586:4586,$G$4)","v":0},0]
[null,null,null,null,null,null,0,{"$f":"INDEX(Ranks!4587:4587,$G$4)","v":0},0]
[null,null,null,null,null,null,0,{"$f":"INDEX(Ranks!4588:4588,$G$4)","v":0},0]
[null,null,null,null,null,null,0,{"$f":"INDEX(Ranks!4589:4589,$G$4)","v":0},0]
[null,null,null,null,null,null,0,{"$f":"INDEX(Ranks!4590:4590,$G$4)","v":0},0]
[null,null,null,null,null,null,0,{"$f":"INDEX(Ranks!4591:4591,$G$4)","v":0},0]
[null,null,null,null,null,null,0,{"$f":"INDEX(Ranks!4592:4592,$G$4)","v":0},0]
[null,null,null,null,null,null,0,{"$f":"INDEX(Ranks!4593:4593,$G$4)","v":0},0]
[null,null,null,null,null,null,0,{"$f":"INDEX(Ranks!4594:4594,$G$4)","v":0},0]
[null,null,null,null,null,null,0,{"$f":"INDEX(Ranks!4595:4595,$G$4)","v":0},0]
[null,null,null,null,null,null,0,{"$f":"INDEX(Ranks!4596:4596,$G$4)","v":0},0]
[null,null,null,null,null,null,0,{"$f":"INDEX(Ranks!4597:4597,$G$4)","v":0},0]
[null,null,null,null,null,null,0,{"$f":"INDEX(Ranks!4598:4598,$G$4)","v":0},0]
[null,null,null,null,null,null,0,{"$f":"INDEX(Ranks!4599:4599,$G$4)","v":0},0]
[null,null,null,null,null,null,0,{"$f":"INDEX(Ranks!4600:4600,$G$4)","v":0},0]
[null,null,null,null,null,null,0,{"$f":"INDEX(Ranks!4601:4601,$G$4)","v":0},0]
[null,null,null,null,null,null,0,{"$f":"INDEX(Ranks!4602:4602,$G$4)","v":0},0]
[null,null,null,null,null,null,0,{"$f":"INDEX(Ranks!4603:4603,$G$4)","v":0},0]
[null,null,null,null,null,null,0,{"$f":"INDEX(Ranks!4604:4604,$G$4)","v":0},0]
[null,null,null,null,null,null,0,{"$f":"INDEX(Ranks!4605:4605,$G$4)","v":0},0]
[null,null,null,null,null,null,0,{"$f":"INDEX(Ranks!4606:4606,$G$4)","v":0},0]
[null,null,null,null,null,null,0,{"$f":"INDEX(Ranks!4607:4607,$G$4)","v":0},0]
[null,null,null,null,null,null,0,{"$f":"INDEX(Ranks!4608:4608,$G$4)","v":0},0]
[null,null,null,null,null,null,0,{"$f":"INDEX(Ranks!4609:4609,$G$4)","v":0},0]
[null,null,null,null,null,null,0,{"$f":"INDEX(Ranks!4610:4610,$G$4)","v":0},0]
[null,null,null,null,null,null,0,{"$f":"INDEX(Ranks!4611:4611,$G$4)","v":0},0]
[null,null,null,null,null,null,0,{"$f":"INDEX(Ranks!4612:4612,$G$4)","v":0},0]
[null,null,null,null,null,null,0,{"$f":"INDEX(Ranks!4613:4613,$G$4)","v":0},0]
[null,null,null,null,null,null,{"$f":"IFERROR(INT(H4614*100),H4614)","v":0},{"$f":"INDEX(Ranks!4614:4614,$G$4)","v":0},{"$f":"IF(H4614=\"\",-1,IF(H4614=-1,\"\",H4614))","v":0}]
[null,null,null,null,null,null,0,{"$f":"INDEX(Ranks!4615:4615,$G$4)","v":0},0]
[null,null,null,null,null,null,0,{"$f":"INDEX(Ranks!4616:4616,$G$4)","v":0},0]
[null,null,null,null,null,null,0,{"$f":"INDEX(Ranks!4617:4617,$G$4)","v":0},0]
[null,null,null,null,null,null,0,{"$f":"INDEX(Ranks!4618:4618,$G$4)","v":0},0]
[null,null,null,null,null,null,0,{"$f":"INDEX(Ranks!4619:4619,$G$4)","v":0},0]
[null,null,null,null,null,null,0,{"$f":"INDEX(Ranks!4620:4620,$G$4)","v":0},0]
[null,null,null,null,null,null,0,{"$f":"INDEX(Ranks!4621:4621,$G$4)","v":0},0]
[null,null,null,null,null,null,0,{"$f":"INDEX(Ranks!4622:4622,$G$4)","v":0},0]
[null,null,null,null,null,null,0,{"$f":"INDEX(Ranks!4623:4623,$G$4)","v":0},0]
[null,null,null,null,null,null,0,{"$f":"INDEX(Ranks!4624:4624,$G$4)","v":0},0]
[null,null,null,null,null,null,0,{"$f":"INDEX(Ranks!4625:4625,$G$4)","v":0},0]
[null,null,null,null,null,null,0,{"$f":"INDEX(Ranks!4626:4626,$G$4)","v":0},0]
[null,null,null,null,null,null,0,{"$f":"INDEX(Ranks!4627:4627,$G$4)","v":0},0]
[null,null,null,null,null,null,0,{"$f":"INDEX(Ranks!4628:4628,$G$4)","v":0},0]
[null,null,null,null,null,null,0,{"$f":"INDEX(Ranks!4629:4629,$G$4)","v":0},0]
[null,null,null,null,null,null,0,{"$f":"INDEX(Ranks!4630:4630,$G$4)","v":0},0]
[null,null,null,null,null,null,0,{"$f":"INDEX(Ranks!4631:4631,$G$4)","v":0},0]
[null,null,null,null,null,null,0,{"$f":"INDEX(Ranks!4632:4632,$G$4)","v":0},0]
[null,null,null,null,null,null,0,{"$f":"INDEX(Ranks!4633:4633,$G$4)","v":0},0]
[null,null,null,null,null,null,0,{"$f":"INDEX(Ranks!4634:4634,$G$4)","v":0},0]
[null,null,null,null,null,null,0,{"$f":"INDEX(Ranks!4635:4635,$G$4)","v":0},0]
[null,null,null,null,null,null,0,{"$f":"INDEX(Ranks!4636:4636,$G$4)","v":0},0]
[null,null,null,null,null,null,0,{"$f":"INDEX(Ranks!4637:4637,$G$4)","v":0},0]
[null,null,null,null,null,null,0,{"$f":"INDEX(Ranks!4638:4638,$G$4)","v":0},0]
[null,null,null,null,null,null,0,{"$f":"INDEX(Ranks!4639:4639,$G$4)","v":0},0]
[null,null,null,null,null,null,0,{"$f":"INDEX(Ranks!4640:4640,$G$4)","v":0},0]
[null,null,null,null,null,null,0,{"$f":"INDEX(Ranks!4641:4641,$G$4)","v":0},0]
[null,null,null,null,null,null,0,{"$f":"INDEX(Ranks!4642:4642,$G$4)","v":0},0]
[null,null,null,null,null,null,0,{"$f":"INDEX(Ranks!4643:4643,$G$4)","v":0},0]
[null,null,null,null,null,null,0,{"$f":"INDEX(Ranks!4644:4644,$G$4)","v":0},0]
[null,null,null,null,null,null,0,{"$f":"INDEX(Ranks!4645:4645,$G$4)","v":0},0]
[null,null,null,null,null,null,0,{"$f":"INDEX(Ranks!4646:4646,$G$4)","v":0},0]
[null,null,null,null,null,null,0,{"$f":"INDEX(Ranks!4647:4647,$G$4)","v":0},0]
[null,null,null,null,null,null,0,{"$f":"INDEX(Ranks!4648:4648,$G$4)","v":0},0]
[null,null,null,null,null,null,0,{"$f":"INDEX(Ranks!4649:4649,$G$4)","v":0},0]
[null,null,null,null,null,null,0,{"$f":"INDEX(Ranks!4650:4650,$G$4)","v":0},0]
[null,null,null,null,null,null,0,{"$f":"INDEX(Ranks!4651:4651,$G$4)","v":0},0]
[null,null,null,null,null,null,0,{"$f":"INDEX(Ranks!4652:4652,$G$4)","v":0},0]
[null,null,null,null,null,null,0,{"$f":"INDEX(Ranks!4653:4653,$G$4)","v":0},0]
[null,null,null,null,null,null,0,{"$f":"INDEX(Ranks!4654:4654,$G$4)","v":0},0]
[null,null,null,null,null,null,0,{"$f":"INDEX(Ranks!4655:4655,$G$4)","v":0},0]
[null,null,null,null,null,null,0,{"$f":"INDEX(Ranks!4656:4656,$G$4)","v":0},0]
[null,null,null,null,null,null,0,{"$f":"INDEX(Ranks!4657:4657,$G$4)","v":0},0]
[null,null,null,null,null,null,0,{"$f":"INDEX(Ranks!4658:4658,$G$4)","v":0},0]
[null,null,null,null,null,null,0,{"$f":"INDEX(Ranks!4659:4659,$G$4)","v":0},0]
[null,null,null,null,null,null,0,{"$f":"INDEX(Ranks!4660:4660,$G$4)","v":0},0]
[null,null,null,null,null,null,0,{"$f":"INDEX(Ranks!4661:4661,$G$4)","v":0},0]
[null,null,null,null,null,null,0,{"$f":"INDEX(Ranks!4662:4662,$G$4)","v":0},0]
[null,null,null,null,null,null,0,{"$f":"INDEX(Ranks!4663:4663,$G$4)","v":0},0]
[null,null,null,null,null,null,0,{"$f":"INDEX(Ranks!4664:4664,$G$4)","v":0},0]
[null,null,null,null,null,null,0,{"$f":"INDEX(Ranks!4665:4665,$G$4)","v":0},0]
[null,null,null,null,null,null,0,{"$f":"INDEX(Ranks!4666:4666,$G$4)","v":0},0]
[null,null,null,null,null,null,0,{"$f":"INDEX(Ranks!4667:4667,$G$4)","v":0},0]
[null,null,null,null,null,null,0,{"$f":"INDEX(Ranks!4668:4668,$G$4)","v":0},0]
[null,null,null,null,null,null,0,{"$f":"INDEX(Ranks!4669:4669,$G$4)","v":0},0]
[null,null,null,null,null,null,0,{"$f":"INDEX(Ranks!4670:4670,$G$4)","v":0},0]
[null,null,null,null,null,null,0,{"$f":"INDEX(Ranks!4671:4671,$G$4)","v":0},0]
[null,null,null,null,null,null,0,{"$f":"INDEX(Ranks!4672:4672,$G$4)","v":0},0]
[null,null,null,null,null,null,0,{"$f":"INDEX(Ranks!4673:4673,$G$4)","v":0},0]
[null,null,null,null,null,null,0,{"$f":"INDEX(Ranks!4674:4674,$G$4)","v":0},0]
[null,null,null,null,null,null,0,{"$f":"INDEX(Ranks!4675:4675,$G$4)","v":0},0]
[null,null,null,null,null,null,0,{"$f":"INDEX(Ranks!4676:4676,$G$4)","v":0},0]
[null,null,null,null,null,null,0,{"$f":"INDEX(Ranks!4677:4677,$G$4)","v":0},0]
[null,null,null,null,null,null,{"$f":"IFERROR(INT(H4678*100),H4678)","v":0},{"$f":"INDEX(Ranks!4678:4678,$G$4)","v":0},{"$f":"IF(H4678=\"\",-1,IF(H4678=-1,\"\",H4678))","v":0}]
[null,null,null,null,null,null,0,{"$f":"INDEX(Ranks!4679:4679,$G$4)","v":0},0]
[null,null,null,null,null,null,0,{"$f":"INDEX(Ranks!4680:4680,$G$4)","v":0},0]
[null,null,null,null,null,null,0,{"$f":"INDEX(Ranks!4681:4681,$G$4)","v":0},0]
[null,null,null,null,null,null,0,{"$f":"INDEX(Ranks!4682:4682,$G$4)","v":0},0]
[null,null,null,null,null,null,0,{"$f":"INDEX(Ranks!4683:4683,$G$4)","v":0},0]
[null,null,null,null,null,null,0,{"$f":"INDEX(Ranks!4684:4684,$G$4)","v":0},0]
[null,null,null,null,null,null,0,{"$f":"INDEX(Ranks!4685:4685,$G$4)","v":0},0]
[null,null,null,null,null,null,0,{"$f":"INDEX(Ranks!4686:4686,$G$4)","v":0},0]
[null,null,null,null,null,null,0,{"$f":"INDEX(Ranks!4687:4687,$G$4)","v":0},0]
[null,null,null,null,null,null,0,{"$f":"INDEX(Ranks!4688:4688,$G$4)","v":0},0]
[null,null,null,null,null,null,0,{"$f":"INDEX(Ranks!4689:4689,$G$4)","v":0},0]
[null,null,null,null,null,null,0,{"$f":"INDEX(Ranks!4690:4690,$G$4)","v":0},0]
[null,null,null,null,null,null,0,{"$f":"INDEX(Ranks!4691:4691,$G$4)","v":0},0]
[null,null,null,null,null,null,0,{"$f":"INDEX(Ranks!4692:4692,$G$4)","v":0},0]
[null,null,null,null,null,null,0,{"$f":"INDEX(Ranks!4693:4693,$G$4)","v":0},0]
[null,null,null,null,null,null,0,{"$f":"INDEX(Ranks!4694:4694,$G$4)","v":0},0]
[null,null,null,null,null,null,0,{"$f":"INDEX(Ranks!4695:4695,$G$4)","v":0},0]
[null,null,null,null,null,null,0,{"$f":"INDEX(Ranks!4696:4696,$G$4)","v":0},0]
[null,null,null,null,null,null,0,{"$f":"INDEX(Ranks!4697:4697,$G$4)","v":0},0]
[null,null,null,null,null,null,0,{"$f":"INDEX(Ranks!4698:4698,$G$4)","v":0},0]
[null,null,null,null,null,null,0,{"$f":"INDEX(Ranks!4699:4699,$G$4)","v":0},0]
[null,null,null,null,null,null,0,{"$f":"INDEX(Ranks!4700:4700,$G$4)","v":0},0]
[null,null,null,null,null,null,0,{"$f":"INDEX(Ranks!4701:4701,$G$4)","v":0},0]
[null,null,null,null,null,null,0,{"$f":"INDEX(Ranks!4702:4702,$G$4)","v":0},0]
[null,null,null,null,null,null,0,{"$f":"INDEX(Ranks!4703:4703,$G$4)","v":0},0]
[null,null,null,null,null,null,0,{"$f":"INDEX(Ranks!4704:4704,$G$4)","v":0},0]
[null,null,null,null,null,null,0,{"$f":"INDEX(Ranks!4705:4705,$G$4)","v":0},0]
[null,null,null,null,null,null,0,{"$f":"INDEX(Ranks!4706:4706,$G$4)","v":0},0]
[null,null,null,null,null,null,0,{"$f":"INDEX(Ranks!4707:4707,$G$4)","v":0},0]
[null,null,null,null,null,null,0,{"$f":"INDEX(Ranks!4708:4708,$G$4)","v":0},0]
[null,null,null,null,null,null,0,{"$f":"INDEX(Ranks!4709:4709,$G$4)","v":0},0]
[null,null,null,null,null,null,0,{"$f":"INDEX(Ranks!4710:4710,$G$4)","v":0},0]
[null,null,null,null,null,null,0,{"$f":"INDEX(Ranks!4711:4711,$G$4)","v":0},0]
[null,null,null,null,null,null,0,{"$f":"INDEX(Ranks!4712:4712,$G$4)","v":0},0]
[null,null,null,null,null,null,0,{"$f":"INDEX(Ranks!4713:4713,$G$4)","v":0},0]
[null,null,null,null,null,null,0,{"$f":"INDEX(Ranks!4714:4714,$G$4)","v":0},0]
[null,null,null,null,null,null,0,{"$f":"INDEX(Ranks!4715:4715,$G$4)","v":0},0]
[null,null,null,null,null,null,0,{"$f":"INDEX(Ranks!4716:4716,$G$4)","v":0},0]
[null,null,null,null,null,null,0,{"$f":"INDEX(Ranks!4717:4717,$G$4)","v":0},0]
[null,null,null,null,null,null,0,{"$f":"INDEX(Ranks!4718:4718,$G$4)","v":0},0]
[null,null,null,null,null,null,0,{"$f":"INDEX(Ranks!4719:4719,$G$4)","v":0},0]
[null,null,null,null,null,null,0,{"$f":"INDEX(Ranks!4720:4720,$G$4)","v":0},0]
[null,null,null,null,null,null,0,{"$f":"INDEX(Ranks!4721:4721,$G$4)","v":0},0]
[null,null,null,null,null,null,0,{"$f":"INDEX(Ranks!4722:4722,$G$4)","v":0},0]
[null,null,null,null,null,null,0,{"$f":"INDEX(Ranks!4723:4723,$G$4)","v":0},0]
[null,null,null,null,null,null,0,{"$f":"INDEX(Ranks!4724:4724,$G$4)","v":0},0]
[null,null,null,null,null,null,0,{"$f":"INDEX(Ranks!4725:4725,$G$4)","v":0},0]
[null,null,null,null,null,null,0,{"$f":"INDEX(Ranks!4726:4726,$G$4)","v":0},0]
[null,null,null,null,null,null,0,{"$f":"INDEX(Ranks!4727:4727,$G$4)","v":0},0]
[null,null,null,null,null,null,0,{"$f":"INDEX(Ranks!4728:4728,$G$4)","v":0},0]
[null,null,null,null,null,null,0,{"$f":"INDEX(Ranks!4729:4729,$G$4)","v":0},0]
[null,null,null,null,null,null,0,{"$f":"INDEX(Ranks!4730:4730,$G$4)","v":0},0]
[null,null,null,null,null,null,0,{"$f":"INDEX(Ranks!4731:4731,$G$4)","v":0},0]
[null,null,null,null,null,null,0,{"$f":"INDEX(Ranks!4732:4732,$G$4)","v":0},0]
[null,null,null,null,null,null,0,{"$f":"INDEX(Ranks!4733:4733,$G$4)","v":0},0]
[null,null,null,null,null,null,0,{"$f":"INDEX(Ranks!4734:4734,$G$4)","v":0},0]
[null,null,null,null,null,null,0,{"$f":"INDEX(Ranks!4735:4735,$G$4)","v":0},0]
[null,null,null,null,null,null,0,{"$f":"INDEX(Ranks!4736:4736,$G$4)","v":0},0]
[null,null,null,null,null,null,0,{"$f":"INDEX(Ranks!4737:4737,$G$4)","v":0},0]
[null,null,null,null,null,null,0,{"$f":"INDEX(Ranks!4738:4738,$G$4)","v":0},0]
[null,null,null,null,null,null,0,{"$f":"INDEX(Ranks!4739:4739,$G$4)","v":0},0]
[null,null,null,null,null,null,0,{"$f":"INDEX(Ranks!4740:4740,$G$4)","v":0},0]
[null,null,null,null,null,null,0,{"$f":"INDEX(Ranks!4741:4741,$G$4)","v":0},0]
[null,null,null,null,null,null,{"$f":"IFERROR(INT(H4742*100),H4742)","v":0},{"$f":"INDEX(Ranks!4742:4742,$G$4)","v":0},{"$f":"IF(H4742=\"\",-1,IF(H4742=-1,\"\",H4742))","v":0}]
[null,null,null,null,null,null,0,{"$f":"INDEX(Ranks!4743:4743,$G$4)","v":0},0]
[null,null,null,null,null,null,0,{"$f":"INDEX(Ranks!4744:4744,$G$4)","v":0},0]
[null,null,null,null,null,null,0,{"$f":"INDEX(Ranks!4745:4745,$G$4)","v":0},0]
[null,null,null,null,null,null,0,{"$f":"INDEX(Ranks!4746:4746,$G$4)","v":0},0]
[null,null,null,null,null,null,0,{"$f":"INDEX(Ranks!4747:4747,$G$4)","v":0},0]
[null,null,null,null,null,null,0,{"$f":"INDEX(Ranks!4748:4748,$G$4)","v":0},0]
[null,null,null,null,null,null,0,{"$f":"INDEX(Ranks!4749:4749,$G$4)","v":0},0]
[null,null,null,null,null,null,0,{"$f":"INDEX(Ranks!4750:4750,$G$4)","v":0},0]
[null,null,null,null,null,null,0,{"$f":"INDEX(Ranks!4751:4751,$G$4)","v":0},0]
[null,null,null,null,null,null,0,{"$f":"INDEX(Ranks!4752:4752,$G$4)","v":0},0]
[null,null,null,null,null,null,0,{"$f":"INDEX(Ranks!4753:4753,$G$4)","v":0},0]
[null,null,null,null,null,null,0,{"$f":"INDEX(Ranks!4754:4754,$G$4)","v":0},0]
[null,null,null,null,null,null,0,{"$f":"INDEX(Ranks!4755:4755,$G$4)","v":0},0]
[null,null,null,null,null,null,0,{"$f":"INDEX(Ranks!4756:4756,$G$4)","v":0},0]
[null,null,null,null,null,null,0,{"$f":"INDEX(Ranks!4757:4757,$G$4)","v":0},0]
[null,null,null,null,null,null,0,{"$f":"INDEX(Ranks!4758:4758,$G$4)","v":0},0]
[null,null,null,null,null,null,0,{"$f":"INDEX(Ranks!4759:4759,$G$4)","v":0},0]
[null,null,null,null,null,null,0,{"$f":"INDEX(Ranks!4760:4760,$G$4)","v":0},0]
[null,null,null,null,null,null,0,{"$f":"INDEX(Ranks!4761:4761,$G$4)","v":0},0]
[null,null,null,null,null,null,0,{"$f":"INDEX(Ranks!4762:4762,$G$4)","v":0},0]
[null,null,null,null,null,null,0,{"$f":"INDEX(Ranks!4763:4763,$G$4)","v":0},0]
[null,null,null,null,null,null,0,{"$f":"INDEX(Ranks!4764:4764,$G$4)","v":0},0]
[null,null,null,null,null,null,0,{"$f":"INDEX(Ranks!4765:4765,$G$4)","v":0},0]
[null,null,null,null,null,null,0,{"$f":"INDEX(Ranks!4766:4766,$G$4)","v":0},0]
[null,null,null,null,null,null,0,{"$f":"INDEX(Ranks!4767:4767,$G$4)","v":0},0]
[null,null,null,null,null,null,0,{"$f":"INDEX(Ranks!4768:4768,$G$4)","v":0},0]
[null,null,null,null,null,null,0,{"$f":"INDEX(Ranks!4769:4769,$G$4)","v":0},0]
[null,null,null,null,null,null,0,{"$f":"INDEX(Ranks!4770:4770,$G$4)","v":0},0]
[null,null,null,null,null,null,0,{"$f":"INDEX(Ranks!4771:4771,$G$4)","v":0},0]
[null,null,null,null,null,null,0,{"$f":"INDEX(Ranks!4772:4772,$G$4)","v":0},0]
[null,null,null,null,null,null,0,{"$f":"INDEX(Ranks!4773:4773,$G$4)","v":0},0]
[null,null,null,null,null,null,0,{"$f":"INDEX(Ranks!4774:4774,$G$4)","v":0},0]
[null,null,null,null,null,null,0,{"$f":"INDEX(Ranks!4775:4775,$G$4)","v":0},0]
[null,null,null,null,null,null,0,{"$f":"INDEX(Ranks!4776:4776,$G$4)","v":0},0]
[null,null,null,null,null,null,0,{"$f":"INDEX(Ranks!4777:4777,$G$4)","v":0},0]
[null,null,null,null,null,null,0,{"$f":"INDEX(Ranks!4778:4778,$G$4)","v":0},0]
[null,null,null,null,null,null,0,{"$f":"INDEX(Ranks!4779:4779,$G$4)","v":0},0]
[null,null,null,null,null,null,0,{"$f":"INDEX(Ranks!4780:4780,$G$4)","v":0},0]
[null,null,null,null,null,null,0,{"$f":"INDEX(Ranks!4781:4781,$G$4)","v":0},0]
[null,null,null,null,null,null,0,{"$f":"INDEX(Ranks!4782:4782,$G$4)","v":0},0]
[null,null,null,null,null,null,0,{"$f":"INDEX(Ranks!4783:4783,$G$4)","v":0},0]
[null,null,null,null,null,null,0,{"$f":"INDEX(Ranks!4784:4784,$G$4)","v":0},0]
[null,null,null,null,null,null,0,{"$f":"INDEX(Ranks!4785:4785,$G$4)","v":0},0]
[null,null,null,null,null,null,0,{"$f":"INDEX(Ranks!4786:4786,$G$4)","v":0},0]
[null,null,null,null,null,null,0,{"$f":"INDEX(Ranks!4787:4787,$G$4)","v":0},0]
[null,null,null,null,null,null,0,{"$f":"INDEX(Ranks!4788:4788,$G$4)","v":0},0]
[null,null,null,null,null,null,0,{"$f":"INDEX(Ranks!4789:4789,$G$4)","v":0},0]
[null,null,null,null,null,null,0,{"$f":"INDEX(Ranks!4790:4790,$G$4)","v":0},0]
[null,null,null,null,null,null,0,{"$f":"INDEX(Ranks!4791:4791,$G$4)","v":0},0]
[null,null,null,null,null,null,0,{"$f":"INDEX(Ranks!4792:4792,$G$4)","v":0},0]
[null,null,null,null,null,null,0,{"$f":"INDEX(Ranks!4793:4793,$G$4)","v":0},0]
[null,null,null,null,null,null,0,{"$f":"INDEX(Ranks!4794:4794,$G$4)","v":0},0]
[null,null,null,null,null,null,0,{"$f":"INDEX(Ranks!4795:4795,$G$4)","v":0},0]
[null,null,null,null,null,null,0,{"$f":"INDEX(Ranks!4796:4796,$G$4)","v":0},0]
[null,null,null,null,null,null,0,{"$f":"INDEX(Ranks!4797:4797,$G$4)","v":0},0]
[null,null,null,null,null,null,0,{"$f":"INDEX(Ranks!4798:4798,$G$4)","v":0},0]
[null,null,null,null,null,null,0,{"$f":"INDEX(Ranks!4799:4799,$G$4)","v":0},0]
[null,null,null,null,null,null,0,{"$f":"INDEX(Ranks!4800:4800,$G$4)","v":0},0]
[null,null,null,null,null,null,0,{"$f":"INDEX(Ranks!4801:4801,$G$4)","v":0},0]
[null,null,null,null,null,null,0,{"$f":"INDEX(Ranks!4802:4802,$G$4)","v":0},0]
[null,null,null,null,null,null,0,{"$f":"INDEX(Ranks!4803:4803,$G$4)","v":0},0]
[null,null,null,null,null,null,0,{"$f":"INDEX(Ranks!4804:4804,$G$4)","v":0},0]
[null,null,null,null,null,null,0,{"$f":"INDEX(Ranks!4805:4805,$G$4)","v":0},0]
[null,null,null,null,null,null,{"$f":"IFERROR(INT(H4806*100),H4806)","v":0},{"$f":"INDEX(Ranks!4806:4806,$G$4)","v":0},{"$f":"IF(H4806=\"\",-1,IF(H4806=-1,\"\",H4806))","v":0}]
[null,null,null,null,null,null,0,{"$f":"INDEX(Ranks!4807:4807,$G$4)","v":0},0]
[null,null,null,null,null,null,0,{"$f":"INDEX(Ranks!4808:4808,$G$4)","v":0},0]
[null,null,null,null,null,null,0,{"$f":"INDEX(Ranks!4809:4809,$G$4)","v":0},0]
[null,null,null,null,null,null,0,{"$f":"INDEX(Ranks!4810:4810,$G$4)","v":0},0]
[null,null,null,null,null,null,0,{"$f":"INDEX(Ranks!4811:4811,$G$4)","v":0},0]
[null,null,null,null,null,null,0,{"$f":"INDEX(Ranks!4812:4812,$G$4)","v":0},0]
[null,null,null,null,null,null,0,{"$f":"INDEX(Ranks!4813:4813,$G$4)","v":0},0]
[null,null,null,null,null,null,0,{"$f":"INDEX(Ranks!4814:4814,$G$4)","v":0},0]
[null,null,null,null,null,null,0,{"$f":"INDEX(Ranks!4815:4815,$G$4)","v":0},0]
[null,null,null,null,null,null,0,{"$f":"INDEX(Ranks!4816:4816,$G$4)","v":0},0]
[null,null,null,null,null,null,0,{"$f":"INDEX(Ranks!4817:4817,$G$4)","v":0},0]
[null,null,null,null,null,null,0,{"$f":"INDEX(Ranks!4818:4818,$G$4)","v":0},0]
[null,null,null,null,null,null,0,{"$f":"INDEX(Ranks!4819:4819,$G$4)","v":0},0]
[null,null,null,null,null,null,0,{"$f":"INDEX(Ranks!4820:4820,$G$4)","v":0},0]
[null,null,null,null,null,null,0,{"$f":"INDEX(Ranks!4821:4821,$G$4)","v":0},0]
[null,null,null,null,null,null,0,{"$f":"INDEX(Ranks!4822:4822,$G$4)","v":0},0]
[null,null,null,null,null,null,0,{"$f":"INDEX(Ranks!4823:4823,$G$4)","v":0},0]
[null,null,null,null,null,null,0,{"$f":"INDEX(Ranks!4824:4824,$G$4)","v":0},0]
[null,null,null,null,null,null,0,{"$f":"INDEX(Ranks!4825:4825,$G$4)","v":0},0]
[null,null,null,null,null,null,0,{"$f":"INDEX(Ranks!4826:4826,$G$4)","v":0},0]
[null,null,null,null,null,null,0,{"$f":"INDEX(Ranks!4827:4827,$G$4)","v":0},0]
[null,null,null,null,null,null,0,{"$f":"INDEX(Ranks!4828:4828,$G$4)","v":0},0]
[null,null,null,null,null,null,0,{"$f":"INDEX(Ranks!4829:4829,$G$4)","v":0},0]
[null,null,null,null,null,null,0,{"$f":"INDEX(Ranks!4830:4830,$G$4)","v":0},0]
[null,null,null,null,null,null,0,{"$f":"INDEX(Ranks!4831:4831,$G$4)","v":0},0]
[null,null,null,null,null,null,0,{"$f":"INDEX(Ranks!4832:4832,$G$4)","v":0},0]
[null,null,null,null,null,null,0,{"$f":"INDEX(Ranks!4833:4833,$G$4)","v":0},0]
[null,null,null,null,null,null,0,{"$f":"INDEX(Ranks!4834:4834,$G$4)","v":0},0]
[null,null,null,null,null,null,0,{"$f":"INDEX(Ranks!4835:4835,$G$4)","v":0},0]
[null,null,null,null,null,null,0,{"$f":"INDEX(Ranks!4836:4836,$G$4)","v":0},0]
[null,null,null,null,null,null,0,{"$f":"INDEX(Ranks!4837:4837,$G$4)","v":0},0]
[null,null,null,null,null,null,0,{"$f":"INDEX(Ranks!4838:4838,$G$4)","v":0},0]
[null,null,null,null,null,null,0,{"$f":"INDEX(Ranks!4839:4839,$G$4)","v":0},0]
[null,null,null,null,null,null,0,{"$f":"INDEX(Ranks!4840:4840,$G$4)","v":0},0]
[null,null,null,null,null,null,0,{"$f":"INDEX(Ranks!4841:4841,$G$4)","v":0},0]
[null,null,null,null,null,null,0,{"$f":"INDEX(Ranks!4842:4842,$G$4)","v":0},0]
[null,null,null,null,null,null,0,{"$f":"INDEX(Ranks!4843:4843,$G$4)","v":0},0]
[null,null,null,null,null,null,0,{"$f":"INDEX(Ranks!4844:4844,$G$4)","v":0},0]
[null,null,null,null,null,null,0,{"$f":"INDEX(Ranks!4845:4845,$G$4)","v":0},0]
[null,null,null,null,null,null,0,{"$f":"INDEX(Ranks!4846:4846,$G$4)","v":0},0]
[null,null,null,null,null,null,0,{"$f":"INDEX(Ranks!4847:4847,$G$4)","v":0},0]
[null,null,null,null,null,null,0,{"$f":"INDEX(Ranks!4848:4848,$G$4)","v":0},0]
[null,null,null,null,null,null,0,{"$f":"INDEX(Ranks!4849:4849,$G$4)","v":0},0]
[null,null,null,null,null,null,0,{"$f":"INDEX(Ranks!4850:4850,$G$4)","v":0},0]
[null,null,null,null,null,null,0,{"$f":"INDEX(Ranks!4851:4851,$G$4)","v":0},0]
[null,null,null,null,null,null,0,{"$f":"INDEX(Ranks!4852:4852,$G$4)","v":0},0]
[null,null,null,null,null,null,0,{"$f":"INDEX(Ranks!4853:4853,$G$4)","v":0},0]
[null,null,null,null,null,null,0,{"$f":"INDEX(Ranks!4854:4854,$G$4)","v":0},0]
[null,null,null,null,null,null,0,{"$f":"INDEX(Ranks!4855:4855,$G$4)","v":0},0]
[null,null,null,null,null,null,0,{"$f":"INDEX(Ranks!4856:4856,$G$4)","v":0},0]
[null,null,null,null,null,null,0,{"$f":"INDEX(Ranks!4857:4857,$G$4)","v":0},0]
[null,null,null,null,null,null,0,{"$f":"INDEX(Ranks!4858:4858,$G$4)","v":0},0]
[null,null,null,null,null,null,0,{"$f":"INDEX(Ranks!4859:4859,$G$4)","v":0},0]
[null,null,null,null,null,null,0,{"$f":"INDEX(Ranks!4860:4860,$G$4)","v":0},0]
[null,null,null,null,null,null,0,{"$f":"INDEX(Ranks!4861:4861,$G$4)","v":0},0]
[null,null,null,null,null,null,0,{"$f":"INDEX(Ranks!4862:4862,$G$4)","v":0},0]
[null,null,null,null,null,null,0,{"$f":"INDEX(Ranks!4863:4863,$G$4)","v":0},0]
[null,null,null,null,null,null,0,{"$f":"INDEX(Ranks!4864:4864,$G$4)","v":0},0]
[null,null,null,null,null,null,0,{"$f":"INDEX(Ranks!4865:4865,$G$4)","v":0},0]
[null,null,null,null,null,null,0,{"$f":"INDEX(Ranks!4866:4866,$G$4)","v":0},0]
[null,null,null,null,null,null,0,{"$f":"INDEX(Ranks!4867:4867,$G$4)","v":0},0]
[null,null,null,null,null,null,0,{"$f":"INDEX(Ranks!4868:4868,$G$4)","v":0},0]
[null,null,null,null,null,null,0,{"$f":"INDEX(Ranks!4869:4869,$G$4)","v":0},0]
[null,null,null,null,null,null,{"$f":"IFERROR(INT(H4870*100),H4870)","v":0},{"$f":"INDEX(Ranks!4870:4870,$G$4)","v":0},{"$f":"IF(H4870=\"\",-1,IF(H4870=-1,\"\",H4870))","v":0}]
[null,null,null,null,null,null,0,{"$f":"INDEX(Ranks!4871:4871,$G$4)","v":0},0]
[null,null,null,null,null,null,0,{"$f":"INDEX(Ranks!4872:4872,$G$4)","v":0},0]
[null,null,null,null,null,null,0,{"$f":"INDEX(Ranks!4873:4873,$G$4)","v":0},0]
[null,null,null,null,null,null,0,{"$f":"INDEX(Ranks!4874:4874,$G$4)","v":0},0]
[null,null,null,null,null,null,0,{"$f":"INDEX(Ranks!4875:4875,$G$4)","v":0},0]
[null,null,null,null,null,null,0,{"$f":"INDEX(Ranks!4876:4876,$G$4)","v":0},0]
[null,null,null,null,null,null,0,{"$f":"INDEX(Ranks!4877:4877,$G$4)","v":0},0]
[null,null,null,null,null,null,0,{"$f":"INDEX(Ranks!4878:4878,$G$4)","v":0},0]
[null,null,null,null,null,null,0,{"$f":"INDEX(Ranks!4879:4879,$G$4)","v":0},0]
[null,null,null,null,null,null,0,{"$f":"INDEX(Ranks!4880:4880,$G$4)","v":0},0]
[null,null,null,null,null,null,0,{"$f":"INDEX(Ranks!4881:4881,$G$4)","v":0},0]
[null,null,null,null,null,null,0,{"$f":"INDEX(Ranks!4882:4882,$G$4)","v":0},0]
[null,null,null,null,null,null,0,{"$f":"INDEX(Ranks!4883:4883,$G$4)","v":0},0]
[null,null,null,null,null,null,0,{"$f":"INDEX(Ranks!4884:4884,$G$4)","v":0},0]
[null,null,null,null,null,null,0,{"$f":"INDEX(Ranks!4885:4885,$G$4)","v":0},0]
[null,null,null,null,null,null,0,{"$f":"INDEX(Ranks!4886:4886,$G$4)","v":0},0]
[null,null,null,null,null,null,0,{"$f":"INDEX(Ranks!4887:4887,$G$4)","v":0},0]
[null,null,null,null,null,null,0,{"$f":"INDEX(Ranks!4888:4888,$G$4)","v":0},0]
[null,null,null,null,null,null,0,{"$f":"INDEX(Ranks!4889:4889,$G$4)","v":0},0]
[null,null,null,null,null,null,0,{"$f":"INDEX(Ranks!4890:4890,$G$4)","v":0},0]
[null,null,null,null,null,null,0,{"$f":"INDEX(Ranks!4891:4891,$G$4)","v":0},0]
[null,null,null,null,null,null,0,{"$f":"INDEX(Ranks!4892:4892,$G$4)","v":0},0]
[null,null,null,null,null,null,0,{"$f":"INDEX(Ranks!4893:4893,$G$4)","v":0},0]
[null,null,null,null,null,null,0,{"$f":"INDEX(Ranks!4894:4894,$G$4)","v":0},0]
[null,null,null,null,null,null,0,{"$f":"INDEX(Ranks!4895:4895,$G$4)","v":0},0]
[null,null,null,null,null,null,0,{"$f":"INDEX(Ranks!4896:4896,$G$4)","v":0},0]
[null,null,null,null,null,null,0,{"$f":"INDEX(Ranks!4897:4897,$G$4)","v":0},0]
[null,null,null,null,null,null,0,{"$f":"INDEX(Ranks!4898:4898,$G$4)","v":0},0]
[null,null,null,null,null,null,0,{"$f":"INDEX(Ranks!4899:4899,$G$4)","v":0},0]
[null,null,null,null,null,null,0,{"$f":"INDEX(Ranks!4900:4900,$G$4)","v":0},0]
[null,null,null,null,null,null,0,{"$f":"INDEX(Ranks!4901:4901,$G$4)","v":0},0]
[null,null,null,null,null,null,0,{"$f":"INDEX(Ranks!4902:4902,$G$4)","v":0},0]
[null,null,null,null,null,null,0,{"$f":"INDEX(Ranks!4903:4903,$G$4)","v":0},0]
[null,null,null,null,null,null,0,{"$f":"INDEX(Ranks!4904:4904,$G$4)","v":0},0]
[null,null,null,null,null,null,0,{"$f":"INDEX(Ranks!4905:4905,$G$4)","v":0},0]
[null,null,null,null,null,null,0,{"$f":"INDEX(Ranks!4906:4906,$G$4)","v":0},0]
[null,null,null,null,null,null,0,{"$f":"INDEX(Ranks!4907:4907,$G$4)","v":0},0]
[null,null,null,null,null,null,0,{"$f":"INDEX(Ranks!4908:4908,$G$4)","v":0},0]
[null,null,null,null,null,null,0,{"$f":"INDEX(Ranks!4909:4909,$G$4)","v":0},0]
[null,null,null,null,null,null,0,{"$f":"INDEX(Ranks!4910:4910,$G$4)","v":0},0]
[null,null,null,null,null,null,0,{"$f":"INDEX(Ranks!4911:4911,$G$4)","v":0},0]
[null,null,null,null,null,null,0,{"$f":"INDEX(Ranks!4912:4912,$G$4)","v":0},0]
[null,null,null,null,null,null,0,{"$f":"INDEX(Ranks!4913:4913,$G$4)","v":0},0]
[null,null,null,null,null,null,0,{"$f":"INDEX(Ranks!4914:4914,$G$4)","v":0},0]
[null,null,null,null,null,null,0,{"$f":"INDEX(Ranks!4915:4915,$G$4)","v":0},0]
[null,null,null,null,null,null,0,{"$f":"INDEX(Ranks!4916:4916,$G$4)","v":0},0]
[null,null,null,null,null,null,0,{"$f":"INDEX(Ranks!4917:4917,$G$4)","v":0},0]
[null,null,null,null,null,null,0,{"$f":"INDEX(Ranks!4918:4918,$G$4)","v":0},0]
[null,null,null,null,null,null,0,{"$f":"INDEX(Ranks!4919:4919,$G$4)","v":0},0]
[null,null,null,null,null,null,0,{"$f":"INDEX(Ranks!4920:4920,$G$4)","v":0},0]
[null,null,null,null,null,null,0,{"$f":"INDEX(Ranks!4921:4921,$G$4)","v":0},0]
[null,null,null,null,null,null,0,{"$f":"INDEX(Ranks!4922:4922,$G$4)","v":0},0]
[null,null,null,null,null,null,0,{"$f":"INDEX(Ranks!4923:4923,$G$4)","v":0},0]
[null,null,null,null,null,null,0,{"$f":"INDEX(Ranks!4924:4924,$G$4)","v":0},0]
[null,null,null,null,null,null,0,{"$f":"INDEX(Ranks!4925:4925,$G$4)","v":0},0]
[null,null,null,null,null,null,0,{"$f":"INDEX(Ranks!4926:4926,$G$4)","v":0},0]
[null,null,null,null,null,null,0,{"$f":"INDEX(Ranks!4927:4927,$G$4)","v":0},0]
[null,null,null,null,null,null,0,{"$f":"INDEX(Ranks!4928:4928,$G$4)","v":0},0]
[null,null,null,null,null,null,0,{"$f":"INDEX(Ranks!4929:4929,$G$4)","v":0},0]
[null,null,null,null,null,null,0,{"$f":"INDEX(Ranks!4930:4930,$G$4)","v":0},0]
[null,null,null,null,null,null,0,{"$f":"INDEX(Ranks!4931:4931,$G$4)","v":0},0]
[null,null,null,null,null,null,0,{"$f":"INDEX(Ranks!4932:4932,$G$4)","v":0},0]
[null,null,null,null,null,null,0,{"$f":"INDEX(Ranks!4933:4933,$G$4)","v":0},0]
[null,null,null,null,null,null,{"$f":"IFERROR(INT(H4934*100),H4934)","v":0},{"$f":"INDEX(Ranks!4934:4934,$G$4)","v":0},{"$f":"IF(H4934=\"\",-1,IF(H4934=-1,\"\",H4934))","v":0}]
[null,null,null,null,null,null,0,{"$f":"INDEX(Ranks!4935:4935,$G$4)","v":0},0]
[null,null,null,null,null,null,0,{"$f":"INDEX(Ranks!4936:4936,$G$4)","v":0},0]
[null,null,null,null,null,null,0,{"$f":"INDEX(Ranks!4937:4937,$G$4)","v":0},0]
[null,null,null,null,null,null,0,{"$f":"INDEX(Ranks!4938:4938,$G$4)","v":0},0]
[null,null,null,null,null,null,0,{"$f":"INDEX(Ranks!4939:4939,$G$4)","v":0},0]
[null,null,null,null,null,null,0,{"$f":"INDEX(Ranks!4940:4940,$G$4)","v":0},0]
[null,null,null,null,null,null,0,{"$f":"INDEX(Ranks!4941:4941,$G$4)","v":0},0]
[null,null,null,null,null,null,0,{"$f":"INDEX(Ranks!4942:4942,$G$4)","v":0},0]
[null,null,null,null,null,null,0,{"$f":"INDEX(Ranks!4943:4943,$G$4)","v":0},0]
[null,null,null,null,null,null,0,{"$f":"INDEX(Ranks!4944:4944,$G$4)","v":0},0]
[null,null,null,null,null,null,0,{"$f":"INDEX(Ranks!4945:4945,$G$4)","v":0},0]
[null,null,null,null,null,null,0,{"$f":"INDEX(Ranks!4946:4946,$G$4)","v":0},0]
[null,null,null,null,null,null,0,{"$f":"INDEX(Ranks!4947:4947,$G$4)","v":0},0]
[null,null,null,null,null,null,0,{"$f":"INDEX(Ranks!4948:4948,$G$4)","v":0},0]
[null,null,null,null,null,null,0,{"$f":"INDEX(Ranks!4949:4949,$G$4)","v":0},0]
[null,null,null,null,null,null,0,{"$f":"INDEX(Ranks!4950:4950,$G$4)","v":0},0]
[null,null,null,null,null,null,0,{"$f":"INDEX(Ranks!4951:4951,$G$4)","v":0},0]
[null,null,null,null,null,null,0,{"$f":"INDEX(Ranks!4952:4952,$G$4)","v":0},0]
[null,null,null,null,null,null,0,{"$f":"INDEX(Ranks!4953:4953,$G$4)","v":0},0]
[null,null,null,null,null,null,0,{"$f":"INDEX(Ranks!4954:4954,$G$4)","v":0},0]
[null,null,null,null,null,null,0,{"$f":"INDEX(Ranks!4955:4955,$G$4)","v":0},0]
[null,null,null,null,null,null,0,{"$f":"INDEX(Ranks!4956:4956,$G$4)","v":0},0]
[null,null,null,null,null,null,0,{"$f":"INDEX(Ranks!4957:4957,$G$4)","v":0},0]
[null,null,null,null,null,null,0,{"$f":"INDEX(Ranks!4958:4958,$G$4)","v":0},0]
[null,null,null,null,null,null,0,{"$f":"INDEX(Ranks!4959:4959,$G$4)","v":0},0]
[null,null,null,null,null,null,0,{"$f":"INDEX(Ranks!4960:4960,$G$4)","v":0},0]
[null,null,null,null,null,null,0,{"$f":"INDEX(Ranks!4961:4961,$G$4)","v":0},0]
[null,null,null,null,null,null,0,{"$f":"INDEX(Ranks!4962:4962,$G$4)","v":0},0]
[null,null,null,null,null,null,0,{"$f":"INDEX(Ranks!4963:4963,$G$4)","v":0},0]
[null,null,null,null,null,null,0,{"$f":"INDEX(Ranks!4964:4964,$G$4)","v":0},0]
[null,null,null,null,null,null,0,{"$f":"INDEX(Ranks!4965:4965,$G$4)","v":0},0]
[null,null,null,null,null,null,0,{"$f":"INDEX(Ranks!4966:4966,$G$4)","v":0},0]
[null,null,null,null,null,null,0,{"$f":"INDEX(Ranks!4967:4967,$G$4)","v":0},0]
[null,null,null,null,null,null,0,{"$f":"INDEX(Ranks!4968:4968,$G$4)","v":0},0]
[null,null,null,null,null,null,0,{"$f":"INDEX(Ranks!4969:4969,$G$4)","v":0},0]
[null,null,null,null,null,null,0,{"$f":"INDEX(Ranks!4970:4970,$G$4)","v":0},0]
[null,null,null,null,null,null,0,{"$f":"INDEX(Ranks!4971:4971,$G$4)","v":0},0]
[null,null,null,null,null,null,0,{"$f":"INDEX(Ranks!4972:4972,$G$4)","v":0},0]
[null,null,null,null,null,null,0,{"$f":"INDEX(Ranks!4973:4973,$G$4)","v":0},0]
[null,null,null,null,null,null,0,{"$f":"INDEX(Ranks!4974:4974,$G$4)","v":0},0]
[null,null,null,null,null,null,0,{"$f":"INDEX(Ranks!4975:4975,$G$4)","v":0},0]
[null,null,null,null,null,null,0,{"$f":"INDEX(Ranks!4976:4976,$G$4)","v":0},0]
[null,null,null,null,null,null,0,{"$f":"INDEX(Ranks!4977:4977,$G$4)","v":0},0]
[null,null,null,null,null,null,0,{"$f":"INDEX(Ranks!4978:4978,$G$4)","v":0},0]
[null,null,null,null,null,null,0,{"$f":"INDEX(Ranks!4979:4979,$G$4)","v":0},0]
[null,null,null,null,null,null,0,{"$f":"INDEX(Ranks!4980:4980,$G$4)","v":0},0]
[null,null,null,null,null,null,0,{"$f":"INDEX(Ranks!4981:4981,$G$4)","v":0},0]
[null,null,null,null,null,null,0,{"$f":"INDEX(Ranks!4982:4982,$G$4)","v":0},0]
[null,null,null,null,null,null,0,{"$f":"INDEX(Ranks!4983:4983,$G$4)","v":0},0]
[null,null,null,null,null,null,0,{"$f":"INDEX(Ranks!4984:4984,$G$4)","v":0},0]
[null,null,null,null,null,null,0,{"$f":"INDEX(Ranks!4985:4985,$G$4)","v":0},0]
[null,null,null,null,null,null,0,{"$f":"INDEX(Ranks!4986:4986,$G$4)","v":0},0]
[null,null,null,null,null,null,0,{"$f":"INDEX(Ranks!4987:4987,$G$4)","v":0},0]
[null,null,null,null,null,null,0,{"$f":"INDEX(Ranks!4988:4988,$G$4)","v":0},0]
[null,null,null,null,null,null,0,{"$f":"INDEX(Ranks!4989:4989,$G$4)","v":0},0]
[null,null,null,null,null,null,0,{"$f":"INDEX(Ranks!4990:4990,$G$4)","v":0},0]
[null,null,null,null,null,null,0,{"$f":"INDEX(Ranks!4991:4991,$G$4)","v":0},0]
[null,null,null,null,null,null,0,{"$f":"INDEX(Ranks!4992:4992,$G$4)","v":0},0]
[null,null,null,null,null,null,0,{"$f":"INDEX(Ranks!4993:4993,$G$4)","v":0},0]
[null,null,null,null,null,null,0,{"$f":"INDEX(Ranks!4994:4994,$G$4)","v":0},0]
[null,null,null,null,null,null,0,{"$f":"INDEX(Ranks!4995:4995,$G$4)","v":0},0]
[null,null,null,null,null,null,0,{"$f":"INDEX(Ranks!4996:4996,$G$4)","v":0},0]
[null,null,null,null,null,null,0,{"$f":"INDEX(Ranks!4997:4997,$G$4)","v":0},0]
[null,null,null,null,null,null,{"$f":"IFERROR(INT(H4998*100),H4998)","v":0},{"$f":"INDEX(Ranks!4998:4998,$G$4)","v":0},{"$f":"IF(H4998=\"\",-1,IF(H4998=-1,\"\",H4998))","v":0}]
[null,null,null,null,null,null,0,{"$f":"INDEX(Ranks!4999:4999,$G$4)","v":0},0]
[null,null,null,null,null,null,0,{"$f":"INDEX(Ranks!5000:5000,$G$4)","v":0},0]